{"text_format":"3","workbook":"xlsx","n_sheets":61,"sheets":["ANALYSIS DATABASE","BUDGET DATABASE","EXPENSE DATABASE","LISTS","EULA","ADMIN","INDEX","SETUP","CATEGORY SETUP","REHAB FINANCING SETUP","HOME","ANALYZE","1 REHAB ANALYZER","2 REPAIR ESTIMATOR","4 OFFERS","COMPS","WHOLESALE CALC","RENTAL ANALYSIS","RENTAL PURCHASE SETUP","RENTAL LOAN SETUP","MANAGE","SCHEDULER","TASKS","ACCOUNTING","ACCOUNTING SETUP","2 PROJECT BUDGETER","3 INCOME & EXPENSE","LOAN TRACKER","EXPENSE EXPORT","REPORTING","INSPECTION CHECKLIST","ESTIMATE REPORTS","PROJECT COST REPORT","INVESTMENT REPORTS","LENDER REPORTS","HOMEOWNER REPORT","COMPS REPORT","RENTAL PACKET","WHOLESALE REPORT","PREQUAL FORM","BID FORM","SCOPE OF WORK","CONTRACT","REHAB CHECKLIST","BID TRACKER","MATERIAL LIST","TASK CHECKLIST","PUNCHLIST","LIEN WAIVER","FOR SALE FLYER","VENDOR CONTACT LIST","PROJECT BUDGET REPORT","EXPENSE BY SCOPE","EXPENSE BY VENDOR","EXPENSE BY ACCOUNT","EXPENSE SUMMARY REPORT","PROJECTIONS REPORT","VENDOR TAX & INSUR","VENDOR 1099","FINAL PROFIT REPORT","PORTFOLIO REPORT"],"not_rendered":{"charts":5,"images":97,"macros":1,"external_links":4,"defined_names":2466},"read":"whole","date_system":"1900"}

{"sheet":"ANALYSIS DATABASE","index":0,"n_rows":261,"n_cols":6,"rows_kept":261,"hidden":true,"merged":[[2,1,2,2],[4,1,4,2],[20,1,20,2],[28,1,28,2],[33,1,33,2],[37,1,37,2],[48,1,48,2],[59,1,59,2],[73,1,73,2],[99,1,99,2],[125,1,125,2],[137,1,137,2],[151,1,151,2],[165,1,165,2],[181,1,181,2],[185,1,185,2],[208,1,208,2],[215,1,215,2],[237,1,237,2],[244,1,244,2],[255,1,255,2],[258,1,258,2]]}
[]
[]
[null,"Property Information"]
[null,"Current Analysis Input:","Rehab Analyzer"]
[]
[null,"Project Name",{"$f":"Project_Name","v":0}]
[null,"Property Type:",{"$f":"SETUP!AM10","v":0}]
[null,"Street Address:",{"$f":"SETUP!AM11","v":"1234 Main St"}]
[null,"City/State/Zip Code:",{"$f":"SETUP!AM12","v":"Kansas City, MO 64116"}]
[null,"Concatenated Address",{"$f":"CONCATENATE(Street_Address,\" \",City_State_Zip)","v":"1234 Main St Kansas City, MO 64116"}]
[null,"Neighborhood",{"$f":"SETUP!AM13","v":"The Coves"}]
[null,"School District:",{"$f":"School_District","v":"Park Hill School District"}]
[null,"# of Beds",{"$f":"SETUP!AM15","v":3}]
[null,"# of Baths",{"$f":"SETUP!BI15","v":2}]
[null,"Property Size",{"$f":"Square_Feet","v":1500}]
[null,"Original Square Feet",{"$f":"SETUP!AM16","v":1500}]
[null,"New Square Feet",{"$f":"SETUP!BI16","v":0}]
[null,"Square Feet",{"$f":"C16+C17","v":1500}]
[null,"Concatnated Property Size",{"$f":"CONCATENATE(Beds,\" beds, \",Baths,\" baths, \",Square_Feet,\" sf\")","v":"3 beds, 2 baths, 1500 sf"}]
[]
[null,"Company Information:"]
[null,"Company Name:",{"$f":"T(Company_Name)","v":"Dave Inc"}]
[null,"Street Address",{"$f":"T(Company_Street_Address)","v":"P.O. Box 12345"}]
[null,"City/State/Zip",{"$f":"T(Company_City_State_Zip)","v":""}]
[null,"Email",{"$f":"T(Company_Email)","v":"dave@venturesheets.com"}]
[null,"Phone",{"$f":"Company_Phone","v":8161234567}]
[null,"Website",{"$f":"T(Company_Website)","v":"www.venturesheets.com"}]
[]
[null,"Project Information"]
[null,"After Repair Value Result",{"$f":"AFTER_REPAIR_VALUE_CELL","v":165000}]
[null,"Purchase Price:",{"$f":"Known_Purchase_Price_Cell","v":0}]
[]
[]
[null,"Rehab Analyzer"]
[null,"Rehab Analyzer Calculation Method","Calculated Purchase Price"]
[null,"Analyzer Setting Description",{"$f":"IF(C35=\"Calculated Purchase Price\",\"Change Settings to Analyze Profitability by Known Purchase Price\",\"Change Settings to Calculate Maximum Purchase Price\")","v":"Change Settings to Analyze Profitability by Known Purchase Price"}]
[]
[null,"Buying Costs"]
[null,{"$f":"T('1 REHAB ANALYZER'!C21:Z22)","v":"BROKERAGE FEE ($300 Avg.)"},{"$f":"'1 REHAB ANALYZER'!AA21","v":1000}]
[null,{"$f":"T('1 REHAB ANALYZER'!C23:Z24)","v":"INSPECTION COSTS ($400 Avg.)"},{"$f":"'1 REHAB ANALYZER'!AA23","v":0}]
[null,{"$f":"T('1 REHAB ANALYZER'!C25:Z26)","v":"APPRAISAL FEE ($500 Avg.)"},{"$f":"'1 REHAB ANALYZER'!AA25","v":0}]
[null,{"$f":"T('1 REHAB ANALYZER'!C27:Z28)","v":"TITLE SEARCH ($300 Avg.)"},{"$f":"'1 REHAB ANALYZER'!AA27","v":0}]
[null,{"$f":"T('1 REHAB ANALYZER'!C29:Z30)","v":"TITLE INSURANCE ($150 Avg.)"},{"$f":"'1 REHAB ANALYZER'!AA29","v":0}]
[null,{"$f":"T('1 REHAB ANALYZER'!C75:P76)","v":"CLOSING COSTS & POINTS"},{"$f":"'1 REHAB ANALYZER'!AA75","v":0}]
[null,{"$f":"T('1 REHAB ANALYZER'!C31:Z32)","v":"OTHER"},{"$f":"'1 REHAB ANALYZER'!AA31","v":0}]
[null,"TOTALS",{"$f":"SUM(C39:C45)","v":1000}]
[null,"Buying Costs %:",{"$f":"IFERROR(C46/AFTER_REPAIR_VALUE_ESTIMATED,0)","v":{"v":0.006060606060606061,"d":"0.6%"}}]
[]
[null,"Holding Costs"]
[null,{"$f":"T('1 REHAB ANALYZER'!C77:K78)","v":"LOAN PAYMENT"},{"$f":"'1 REHAB ANALYZER'!AA77","v":0}]
[null,{"$f":"T('1 REHAB ANALYZER'!C39:K40)","v":"PROPERTY TAXES"},{"$f":"'1 REHAB ANALYZER'!AA39","v":1000}]
[null,{"$f":"T('1 REHAB ANALYZER'!C41:K42)","v":"UTILITIES"},{"$f":"'1 REHAB ANALYZER'!AA41","v":1500}]
[null,{"$f":"T('1 REHAB ANALYZER'!C43:K44)","v":"INSURANCE"},{"$f":"'1 REHAB ANALYZER'!AA43","v":500}]
[null,{"$f":"T('1 REHAB ANALYZER'!C45:J46)","v":"HOA DUES"},{"$f":"'1 REHAB ANALYZER'!AA45","v":0}]
[null,{"$f":"T('1 REHAB ANALYZER'!C47:J48)","v":"MAINTENANCE"},{"$f":"'1 REHAB ANALYZER'!AA47","v":0}]
[null,{"$f":"T('1 REHAB ANALYZER'!C49:L50)","v":"OTHER"},{"$f":"'1 REHAB ANALYZER'!AA49","v":0}]
[null,"TOTALS",{"$f":"SUM(C50:C56)","v":3000}]
[null,"Buying Costs %:",{"$f":"IFERROR(C57/AFTER_REPAIR_VALUE_ESTIMATED,0)","v":{"v":0.01818181818181818,"d":"1.8%"}}]
[]
[null,"Selling Costs"]
[null,{"$f":"T('1 REHAB ANALYZER'!C57:P58)","v":"COMMISSIONS"},{"$f":"'1 REHAB ANALYZER'!AA57","v":9900}]
[null,{"$f":"T('1 REHAB ANALYZER'!C59:P60)","v":"SELLER ASSISTED CLOSING COSTS"},{"$f":"'1 REHAB ANALYZER'!AA59","v":0}]
[null,{"$f":"T('1 REHAB ANALYZER'!C61:P62)","v":"BROKERAGE FEE ($300 Avg.)"},{"$f":"'1 REHAB ANALYZER'!AA61","v":0}]
[null,{"$f":"T('1 REHAB ANALYZER'!C63:P64)","v":"HOME WARRANTY ($450 Avg.)"},{"$f":"'1 REHAB ANALYZER'!AA63","v":450}]
[null,{"$f":"T('1 REHAB ANALYZER'!C65:P66)","v":"TITLE INSURANCE ($150 Avg.)"},{"$f":"'1 REHAB ANALYZER'!AA65","v":500}]
[null,{"$f":"T('1 REHAB ANALYZER'!C67:Z68)","v":"2ND APPRAISAL ($500 Avg.)"},{"$f":"'1 REHAB ANALYZER'!AA67","v":0}]
[null,{"$f":"T('1 REHAB ANALYZER'!C69:Z70)","v":"OTHER"},{"$f":"'1 REHAB ANALYZER'!AA69","v":0}]
[null,"TOTALS",{"$f":"SUM(C61:C67)","v":10850}]
[null,"Selling Costs %:",{"$f":"IFERROR(C68/AFTER_REPAIR_VALUE_ESTIMATED,0)","v":{"v":0.06575757575757575,"d":"6.6%"}}]
[]
[null,"Total Fixed Costs",{"$f":"C46","v":1000}]
[null,"Fixed Costs Percentage",{"$f":"IFERROR(C71/AFTER_REPAIR_VALUE_ESTIMATED,0)","v":{"v":0.006060606060606061,"d":"0.6%"}}]
[]
[null,"Raw Repair Estimate Costs (DIYED)",null,"% of Total","Adder Amount","Totals"]
[null,{"$f":"T(Category1)","v":"GENERAL CONDITIONS"},{"$f":"GC_ESTIMATE","v":750},{"$f":"IFERROR(C75/SUBTOTAL_ESTIMATE,0)","v":{"v":0.01507537688442211,"d":"1.5%"}},{"$f":"D75*TOTAL_ADDERS","v":{"v":0,"d":"$0"}},{"$f":"C75+E75","v":{"v":750,"d":"$750"}}]
[null,{"$f":"T(Category2)","v":"DEMOLITION"},{"$f":"DEMOLITION_ESTIMATE","v":1000},{"v":0.020100502512562814,"d":"2.0%"},{"v":0,"d":"$0"},{"$f":"C76+E76","v":{"v":1000,"d":"$1,000"}}]
[null,{"$f":"T(Category3)","v":"STRUCTURAL CONCRETE"},{"$f":"STRUCTURAL_ESTIMATE","v":0},{"v":0,"d":"0.0%"},{"v":0,"d":"$0"},{"v":0,"d":"$0"}]
[null,{"$f":"T(Category4)","v":"CONCRETE & FLATWORK"},{"$f":"CONCRETE_ESTIMATE","v":0},{"v":0,"d":"0.0%"},{"v":0,"d":"$0"},{"v":0,"d":"$0"}]
[null,{"$f":"T(Category5)","v":"MASONRY"},{"$f":"MASONRY_ESTIMATE","v":0},{"v":0,"d":"0.0%"},{"v":0,"d":"$0"},{"v":0,"d":"$0"}]
[null,{"$f":"T(Category6)","v":"SIDING"},{"$f":"SIDING_ESTIMATE","v":0},{"v":0,"d":"0.0%"},{"v":0,"d":"$0"},{"v":0,"d":"$0"}]
[null,{"$f":"T(Category7)","v":"DECKING AND PATIOS"},{"$f":"DECKING_ESTIMATE","v":5000},{"v":0.10050251256281408,"d":"10.1%"},{"v":0,"d":"$0"},{"v":5000,"d":"$5,000"}]
[null,{"$f":"T(Category8)","v":"ROOFING"},{"$f":"ROOFING_ESTIMATE","v":5500},{"v":0.11055276381909548,"d":"11.1%"},{"v":0,"d":"$0"},{"v":5500,"d":"$5,500"}]
[null,{"$f":"T(Category9)","v":"EXTERIOR DOORS & WINDOWS"},{"$f":"DOORS_WINDOWS_ESTIMATE","v":2000},{"v":0.04020100502512563,"d":"4.0%"},{"v":0,"d":"$0"},{"v":2000,"d":"$2,000"}]
[null,{"$f":"T(Category10)","v":"GARAGE DOORS"},{"$f":"GARAGE_DOORS_ESTIMATE","v":1250},{"v":0.02512562814070352,"d":"2.5%"},{"v":0,"d":"$0"},{"v":1250,"d":"$1,250"}]
[null,{"$f":"T(Category11)","v":"LANDSCAPING"},{"$f":"LANDSCAPING_ESTIMATE","v":500},{"v":0.010050251256281407,"d":"1.0%"},{"v":0,"d":"$0"},{"v":500,"d":"$500"}]
[null,{"$f":"T(Category12)","v":"MISC. EXTERIOR ITEMS"},{"$f":"MISC_EXT_IMPROV_ESTIMATE","v":0},{"v":0,"d":"0.0%"},{"v":0,"d":"$0"},{"v":0,"d":"$0"}]
[null,{"$f":"T(Category13)","v":"FRAMING & DRYWALL"},{"$f":"FRAMING_DRYWALL_ESTIMATE","v":500},{"v":0.010050251256281407,"d":"1.0%"},{"v":0,"d":"$0"},{"v":500,"d":"$500"}]
[null,{"$f":"T(Category14)","v":"CABINETS & COUNTERTOPS"},{"$f":"CABINETS_COUNTERS_ESTIMATE","v":7500},{"v":0.1507537688442211,"d":"15.1%"},{"v":0,"d":"$0"},{"v":7500,"d":"$7,500"}]
[null,{"$f":"T(Category15)","v":"DOORS & TRIM"},{"$f":"DOORS_TRIM_ESTIMATE","v":3000},{"v":0.06030150753768844,"d":"6.0%"},{"v":0,"d":"$0"},{"v":3000,"d":"$3,000"}]
[null,{"$f":"T(Category16)","v":"CARPET & RESILIENT"},{"$f":"CARPET_ESTIMATE","v":3000},{"v":0.06030150753768844,"d":"6.0%"},{"v":0,"d":"$0"},{"v":3000,"d":"$3,000"}]
[null,{"$f":"T(Category17)","v":"HARDWOOD FLOORING"},{"$f":"HARDWOOD_ESTIMATE","v":2500},{"v":0.05025125628140704,"d":"5.0%"},{"v":0,"d":"$0"},{"v":2500,"d":"$2,500"}]
[null,{"$f":"T(Category18)","v":"TILING"},{"$f":"TILING_ESTIMATE","v":3000},{"v":0.06030150753768844,"d":"6.0%"},{"v":0,"d":"$0"},{"v":3000,"d":"$3,000"}]
[null,{"$f":"T(Category19)","v":"PAINTING"},{"$f":"PAINTING_ESTIMATE","v":5000},{"v":0.10050251256281408,"d":"10.1%"},{"v":0,"d":"$0"},{"v":5000,"d":"$5,000"}]
[null,{"$f":"T(Category20)","v":"APPLIANCES"},{"$f":"APPLIANCES_ESTIMATE","v":2500},{"v":0.05025125628140704,"d":"5.0%"},{"v":0,"d":"$0"},{"v":2500,"d":"$2,500"}]
[null,{"$f":"T(Category21)","v":"PLUMBING"},{"$f":"PLUMBING_ESTIMATE","v":3000},{"v":0.06030150753768844,"d":"6.0%"},{"v":0,"d":"$0"},{"v":3000,"d":"$3,000"}]
[null,{"$f":"T(Category22)","v":"HVAC"},{"$f":"HVAC_ESTIMATE","v":250},{"v":0.005025125628140704,"d":"0.5%"},{"v":0,"d":"$0"},{"v":250,"d":"$250"}]
[null,{"$f":"T(Category23)","v":"ELECTRICAL"},{"$f":"ELECTRICAL_ESTIMATE","v":3500},{"v":0.07035175879396985,"d":"7.0%"},{"v":0,"d":"$0"},{"v":3500,"d":"$3,500"}]
[null,{"$f":"T(Category24)","v":"MISCELLANEOUS"},{"$f":"MISCELLANEOUS_ESTIMATE","v":0},{"v":0,"d":"0.0%"},{"v":0,"d":"$0"},{"v":0,"d":"$0"}]
[null,"TOTAL RAW ESTIMATE",{"$f":"SUM(C75:C98)","v":49750},{"v":1,"d":"100%"},{"$f":"SUM(E75:E98)","v":{"v":0,"d":"$0"}},{"$f":"SUM(F75:F98)","v":{"v":49750,"d":"$49,750"}}]
[null,"Repair Costs w/ Adders (DIYED)"]
[null,{"$f":"CONCATENATE(B75,\" w ADDERS\")","v":"GENERAL CONDITIONS w ADDERS"},{"$f":"F75","v":{"v":750,"d":"$750"}}]
[null,{"$f":"CONCATENATE(B76,\" w ADDERS\")","v":"DEMOLITION w ADDERS"},{"$f":"F76","v":{"v":1000,"d":"$1,000"}}]
[null,"STRUCTURAL CONCRETE w ADDERS",{"v":0,"d":"$0"}]
[null,"CONCRETE & FLATWORK w ADDERS",{"v":0,"d":"$0"}]
[null,"MASONRY w ADDERS",{"v":0,"d":"$0"}]
[null,"SIDING w ADDERS",{"v":0,"d":"$0"}]
[null,"DECKING AND PATIOS w ADDERS",{"v":5000,"d":"$5,000"}]
[null,"ROOFING w ADDERS",{"v":5500,"d":"$5,500"}]
[null,"EXTERIOR DOORS & WINDOWS w ADDERS",{"v":2000,"d":"$2,000"}]
[null,"GARAGE DOORS w ADDERS",{"v":1250,"d":"$1,250"}]
[null,"LANDSCAPING w ADDERS",{"v":500,"d":"$500"}]
[null,"MISC. EXTERIOR ITEMS w ADDERS",{"v":0,"d":"$0"}]
[null,"FRAMING & DRYWALL w ADDERS",{"v":500,"d":"$500"}]
[null,"CABINETS & COUNTERTOPS w ADDERS",{"v":7500,"d":"$7,500"}]
[null,"DOORS & TRIM w ADDERS",{"v":3000,"d":"$3,000"}]
[null,"CARPET & RESILIENT w ADDERS",{"v":3000,"d":"$3,000"}]
[null,"HARDWOOD FLOORING w ADDERS",{"v":2500,"d":"$2,500"}]
[null,"TILING w ADDERS",{"v":3000,"d":"$3,000"}]
[null,"PAINTING w ADDERS",{"v":5000,"d":"$5,000"}]
[null,"APPLIANCES w ADDERS",{"v":2500,"d":"$2,500"}]
[null,"PLUMBING w ADDERS",{"v":3000,"d":"$3,000"}]
[null,"HVAC w ADDERS",{"v":250,"d":"$250"}]
[null,"ELECTRICAL w ADDERS",{"v":3500,"d":"$3,500"}]
[null,"MISCELLANEOUS w ADDERS",{"v":0,"d":"$0"}]
[null,"TOTAL RAW ESTIMATE",{"$f":"SUM(C101:C124)","v":49750}]
[null,"ADDERS"]
[null,"Location Multiplier Adjustment - Repair Estimator",{"$f":"Estimator_Location_Multiplier_Cell","v":0}]
[null,"Permit Cost % - Repair Estimator",{"$f":"Estimator_Building_Permit_Cell","v":{"v":0,"d":"0%"}}]
[null,"Contractors Overhead and Profit % - Repair Estimator",{"$f":"Estimator_Contractor_Overhead_Cell","v":{"v":0,"d":"0%"}}]
[null,"Contingency % - Repair Estimator",{"$f":"Estimator_Contingency_Cell","v":{"v":0,"d":"0%"}}]
[null,"TOTAL ADDER %",{"$f":"'2 REPAIR ESTIMATOR'!H80","v":{"v":0,"d":"0%"}}]
[null,"Location Multiplier Adjustment - Repair Estimator",{"$f":"Estimator_Location_Multiplier_Amount","v":0}]
[null,"Permit Cost Adder - Repair Estimator",{"$f":"Estimator_Permit_Cost_Amount","v":0}]
[null,"Contractors Overhead and Profit - Repair Estimator",{"$f":"Estimator_Contractor_Overhead_Amount","v":0}]
[null,"Contingency - Repair Estimator",{"$f":"Estimator_Contingency_Amount","v":0}]
[null,"TOTAL ADDER AMOUNT",{"$f":"Estimator_Total_Adder_Amount","v":0}]
[null,"TOTAL ESTIMATE",{"$f":"SUBTOTAL_ESTIMATE+TOTAL_ADDERS","v":49750}]
[null,"Results Based upon Maximum Purchase Price Calculation"]
[null,"After Repair Value",{"$f":"AFTER_REPAIR_VALUE_CELL","v":165000}]
[null,"Maximum Purchase Price",{"$f":"Maximum_Purchase_Price","v":{"v":61836.912500000006,"d":"61837"}}]
[null,"Buying Costs",{"$f":"IF(Fixed_Cost_Calculation_Method=\"% OF ARV\",TOTAL_FIXED_COSTS_ESTIMATED/4,TOTAL_BUYING_COSTS_ESTIMATED)","v":1000}]
[null,"Holding Costs",{"$f":"IF(Fixed_Cost_Calculation_Method=\"% OF ARV\",TOTAL_FIXED_COSTS_ESTIMATED/4,TOTAL_HOLDING_COSTS_ESTIMATED)","v":3000}]
[null,"Selling Costs",{"$f":"IF(Fixed_Cost_Calculation_Method=\"% OF ARV\",TOTAL_FIXED_COSTS_ESTIMATED/4,TOTAL_SELLING_COSTS_ESTIMATED)","v":10850}]
[null,"Financing Costs",{"$f":"IF(Fixed_Cost_Calculation_Method=\"% OF ARV\",TOTAL_FIXED_COSTS_ESTIMATED/4,TOTAL_FINANCING_COSTS)","v":0}]
[null,"Total Fixed Costs",{"$f":"TOTAL_FIXED_COSTS_ESTIMATED","v":14850}]
[null,"Raw Repair Costs",{"$f":"ESTIMATE_SUBTOTAL","v":49750}]
[null,"Adders",{"$f":"'1 REHAB ANALYZER'!BG76","v":{"v":13813.0875,"d":"13813"}}]
[null,"Total Repair Costs",{"$f":"TOTAL_REMODEL_ESTIMATE","v":{"v":63563.0875,"d":"63563"}}]
[null,"Total Upfront Costs (excludes selling costs)",{"$f":"C140+C141+C142+C148+C144","v":129400}]
[null,"Total Project Costs",{"$f":"C140+C145+C148","v":140250}]
[null,"Profit",{"$f":"C139-C150","v":24750}]
[null,"Results Based upon Known Purchase Price"]
[null,"After Repair Value",{"$f":"AFTER_REPAIR_VALUE_CELL","v":165000}]
[null,"Known Purchase Price",{"$f":"Known_Purchase_Price_Cell","v":0}]
[null,"Buying Costs",{"$f":"IF(Fixed_Cost_Calculation_Method=\"% OF ARV\",TOTAL_FIXED_COSTS_ESTIMATED/4,TOTAL_BUYING_COSTS_ESTIMATED)","v":1000}]
[null,"Holding Costs",{"$f":"IF(Fixed_Cost_Calculation_Method=\"% OF ARV\",TOTAL_FIXED_COSTS_ESTIMATED/4,TOTAL_HOLDING_COSTS_ESTIMATED)","v":3000}]
[null,"Selling Costs",{"$f":"IF(Fixed_Cost_Calculation_Method=\"% OF ARV\",TOTAL_FIXED_COSTS_ESTIMATED/4,TOTAL_SELLING_COSTS_ESTIMATED)","v":10850}]
[null,"Financing Costs",{"$f":"IF(Fixed_Cost_Calculation_Method=\"% OF ARV\",TOTAL_FIXED_COSTS_ESTIMATED/4,TOTAL_FINANCING_COSTS)","v":0}]
[null,"Total Fixed Costs",{"$f":"TOTAL_FIXED_COSTS_ESTIMATED","v":14850}]
[null,"Raw Repair Costs",{"$f":"ESTIMATE_SUBTOTAL","v":49750}]
[null,"Adders",{"$f":"'1 REHAB ANALYZER'!BG76","v":{"v":13813.0875,"d":"13813"}}]
[null,"Total Repair Costs",{"$f":"TOTAL_REMODEL_ESTIMATE","v":{"v":63563.0875,"d":"63563"}}]
[null,"Total Upfront Costs (excludes selling costs)",{"$f":"C154+C155+C156+C162+C158","v":{"v":67563.0875,"d":"67563"}}]
[null,"Total Project Costs",{"$f":"C154+C159+C162","v":{"v":78413.0875,"d":"78413"}}]
[null,"Profit",{"$f":"C153-C164","v":{"v":86586.9125,"d":"86587"}}]
[null,"Deal Results Based Upon Analysis Selection"]
[null,"After Repair Value",{"$f":"IF(Rehab_Analyzer_Calculation_Method=\"Known Purchase Price\",C153,C139)","v":165000}]
[null,"Purchase price",{"$f":"IF(Rehab_Analyzer_Calculation_Method=\"Known Purchase Price\",C154,C140)","v":{"v":61836.912500000006,"d":"61837"}}]
[null,"Buying Costs",{"$f":"IF(Rehab_Analyzer_Calculation_Method=\"Known Purchase Price\",C155,C141)","v":1000}]
[null,"Holding Costs",{"$f":"IF(Rehab_Analyzer_Calculation_Method=\"Known Purchase Price\",C156,C142)","v":3000}]
[null,"Selling Costs",{"$f":"IF(Rehab_Analyzer_Calculation_Method=\"Known Purchase Price\",C157,C143)","v":10850}]
[null,"Total Fixed Costs",{"$f":"IF(Rehab_Analyzer_Calculation_Method=\"Known Purchase Price\",C159,C145)","v":14850}]
[null,"Raw Repair Costs",49750]
[null,"Adders",{"v":13813.0875,"d":"13813"},{"$f":"IFERROR(Adders_Result/Raw_Repair_Costs_Result,0)","v":{"v":0.27765,"d":"28%"}}]
[null,"Total Repair Costs",{"v":63563.0875,"d":"63563"}]
[null,"Total Upfront Costs (excludes selling costs)",{"$f":"IF(Rehab_Analyzer_Calculation_Method=\"Known Purchase Price\",C163,C149)","v":129400}]
[null,"Total Project Costs",140250]
[null,"Profit",24750]
[null,"ROI",{"$f":"IF(Total_Cash_Needed<0,\"Infinite ROI\",Total_Profit_Result/Total_Cash_Needed)","v":{"v":0.19126738794435857,"d":"19%"}}]
[null,"Annualized ROI",{"$f":"IF(Total_Cash_Needed<0,\"Infinite ROI\",(Total_Profit_Result/Total_Cash_Needed/(Total_Schedule_Cell/12)))","v":{"v":0.45904173106646057,"d":"46%"}}]
[null,"Profit",{"$f":"IF(Rehab_Analyzer_Calculation_Method=\"Known Purchase Price\",C167,C153)","v":165000}]
[null,"Financing Results"]
[null,"Funding Strategy","All Cash"]
[null,"Number of Loans",0]
[null,"Second Loan (Yes = 1, No = 0)",{"$f":"IF(Number_of_Loans=2,1,0)","v":0}]
[null,"Loan 1 Results"]
[null,"Loan 1 Basis","Purchase Price Only"]
[null,"Loan Type",{"$f":"'REHAB FINANCING SETUP'!BD18","v":"Interest Only"}]
[null,"Loan Term",{"$f":"'REHAB FINANCING SETUP'!BU18","v":15}]
[null,"Loan 1 Amount",{"$f":"IF(Funding_Strategy=\"All Cash\",0,IF(Loan1_Selection=\"Purchase Price Only\",Purchase_Price_Result,IF(Loan1_Selection=\"Repair Costs Only\",Total_Repair_Costs_Result,IF(Loan1_Selection=\"Purchase And Repairs\",Purchase_Price_Result+Total_Repair_Costs_Result,IF(Loan1_Selection=\"All Project Costs\",Total_Upfront_Costs_Result,IF(Loan1_Selection=\"ARV\",After_Repair_Value_Result,IF(Loan1_Selection=\"Specific Loan Amount\",'REHAB FINANCING SETUP'!BP22,0)))))))","v":0}]
[null,"Down Payment or LTV",{"$f":"IF('REHAB FINANCING SETUP'!AC26=\"LTV\",\"LTV\",\"Down Payment\")","v":"Down Payment"}]
[null,{"$f":"IF(C191=\"Down Payment\",\"Down Payment %\",\"LTV Reduction %\")","v":"Down Payment %"},{"$f":"IF(AND(C191=\"LTV\",'REHAB FINANCING SETUP'!AS26=0),1,'REHAB FINANCING SETUP'!AS26)","v":{"v":0,"d":"0%"}}]
[null,{"$f":"IF(C191=\"Down Payment\",\"Down Payment Amount\",\"LTV Reduction Amount\")","v":"Down Payment Amount"},{"$f":"IF(C191=\"Down Payment\",C192*Loan_Amount,(1-C192)*Loan_Amount)","v":0}]
[null,{"$f":"IF(C191=\"Down Payment\",\"Loan Balance After Down Payment\",\"Loan Balance After LTV Reduction\")","v":"Loan Balance After Down Payment"},{"$f":"Loan_Amount-Down_Payment","v":0}]
[null,"Interest Rate",{"$f":"Interest_Rate","v":{"v":0.12,"d":"12%"}}]
[null,"Interest Only Payment Amount",{"$f":"IFERROR(((Loan_Balance_After_DP_Loan1)*C195)/12,0)","v":0}]
[null,"Amortized (Interest Only Portion)",{"$f":"IFERROR(-CUMIPMT(C195/12,C189*12,Loan_Balance_After_DP_Loan1,1,Length_of_Loan_Payments_Loan1,0)/Length_of_Loan_Payments_Loan1,0)","v":0}]
[null,"Monthly Payment Amount",{"$f":"IF(C188=\"Amortized\",C197,C196)","v":0}]
[null,"Total Loan Payments",{"$f":"Length_of_Loan_Payments_Loan1*C198","v":0}]
[null,"Interest Payments Paid Monthly/Rolled",{"$f":"IF('REHAB FINANCING SETUP'!AS28=\"Rolled\",\"Rolled\",\"Monthly\")","v":"Monthly"}]
[null,"Interest Payments Rolled",{"$f":"IF(C200=\"Rolled\",C199,0)","v":0}]
[null,"Lender Points %",{"$f":"Lender_Points_Loan1","v":{"v":0.02,"d":"0"}}]
[null,"Lender Points Amount",{"$f":"C202*Loan_Balance_After_DP_Loan1","v":0}]
[null,"Points Paid Upfront/Rolled",{"$f":"IF('REHAB FINANCING SETUP'!AS30=\"Rolled\",\"Rolled\",\"Upfront\")","v":"Upfront"}]
[null,"Points Rolled",{"$f":"IF(C204=\"Rolled\",C203,0)","v":0}]
[null,"Other Financing Costs",{"$f":"'REHAB FINANCING SETUP'!BM33","v":0}]
[null,"Total Financing Costs",{"$f":"C199+C203+C206","v":0}]
[null,"Final Loan Amount (w/ interest/points rolled)",{"$f":"Loan_Balance_After_DP_Loan1+C201+C205","v":0}]
[null,"Loan 1 Cash Calculations"]
[null,"Down Payment",{"$f":"IF(C191=\"Down Payment\",Down_Payment,0)","v":0}]
[null,"Points Paid Upfront",{"$f":"IF(C204=\"Rolled\",0,C203)","v":0}]
[null,"Total Cash at Closing",{"$f":"C210+C211","v":0}]
[null,"Total Project Costs",{"$f":"C176","v":129400}]
[null,"Total Financed Amount",{"$f":"C208","v":0}]
[null,"Total Cash Required During Flip",{"$f":"C213-C214-C212","v":129400}]
[null,"Loan 2 Results"]
[null,"Loan 2 Basis","Specific Loan Amount"]
[null,"Loan Type",{"$f":"'REHAB FINANCING SETUP'!BD45","v":"Interest Only"}]
[null,"Loan Term",{"$f":"'REHAB FINANCING SETUP'!BU45","v":30}]
[null,"Loan 2 Amount",{"$f":"IF(Funding_Strategy=\"All Cash\",0,IF(Loan2_Selection=\"Purchase Price Only\",Purchase_Price_Result,IF(Loan2_Selection=\"Repair Costs Only\",Total_Repair_Costs_Result,IF(Loan2_Selection=\"Purchase And Repairs\",Purchase_Price_Result+Total_Repair_Costs_Result,IF(Loan2_Selection=\"All Project Costs\",Total_Upfront_Costs_Result,IF(Loan2_Selection=\"ARV\",After_Repair_Value_Result,IF(Loan2_Selection=\"Specific Loan Amount\",'REHAB FINANCING SETUP'!BP49,0)))))))*C185","v":0}]
[null,"Down Payment or LTV",{"$f":"IF('REHAB FINANCING SETUP'!AC53=\"LTV\",\"LTV\",\"Down Payment\")","v":"Down Payment"}]
[null,{"$f":"IF(C221=\"Down Payment\",\"Down Payment %\",\"LTV Reduction %\")","v":"Down Payment %"},{"$f":"IF(AND(C221=\"LTV\",'REHAB FINANCING SETUP'!AS54=0),1,'REHAB FINANCING SETUP'!AS54)*C185","v":{"v":0,"d":"0%"}}]
[null,{"$f":"IF(C221=\"Down Payment\",\"Down Payment Amount\",\"LTV Reduction Amount\")","v":"Down Payment Amount"},{"$f":"IF(C221=\"Down Payment\",C222*C220,(1-C222)*C220)","v":0}]
[null,{"$f":"IF(C221=\"Down Payment\",\"Loan Balance After Down Payment\",\"Loan Balance After LTV Reduction\")","v":"Loan Balance After Down Payment"},{"$f":"C220-C223","v":0}]
[null,"Interest Rate",{"$f":"'REHAB FINANCING SETUP'!AC55*C185","v":{"v":0,"d":"0%"}}]
[null,"Interest Only Payment Amount",{"$f":"IFERROR(((Loan_Balance_After_DP_Loan2)*C225)/12,0)","v":0}]
[null,"Amortized (Interest Only Portion)",{"$f":"-IFERROR(CUMIPMT(C225/12,C219*12,Loan_Balance_After_DP_Loan2,1,Length_of_Loan_Payments_Loan2,0)/Length_of_Loan_Payments_Loan2,0)","v":0}]
[null,"Monthly Payment Amount",{"$f":"IF(C218=\"Amortized\",C227,C226)","v":0}]
[null,"Total Loan Payments",{"$f":"Length_of_Loan_Payments_Loan2*C228","v":0}]
[null,"Interest Payments Paid Monthly/Rolled",{"$f":"IF('REHAB FINANCING SETUP'!AS55=\"Rolled\",\"Rolled\",\"Monthly\")","v":"Monthly"}]
[null,"Interest Payments Rolled",{"$f":"IF(C230=\"Rolled\",C229,0)","v":0}]
[null,"Lender Points %",{"$f":"Lender_Points_Loan2","v":0}]
[null,"Lender Points Amount",{"$f":"C232*Loan_Balance_After_DP_Loan2","v":0}]
[null,"Points Paid Upfront/Rolled",{"$f":"IF('REHAB FINANCING SETUP'!AS57=\"Rolled\",\"Rolled\",\"Upfront\")","v":"Upfront"}]
[null,"Points Rolled",{"$f":"IF(C234=\"Rolled\",C233,0)","v":0}]
[null,"Other Financing Costs",{"$f":"'REHAB FINANCING SETUP'!BM60","v":0}]
[null,"Final Loan Amount (w/ interest/points rolled)",{"$f":"Loan_Balance_After_DP_Loan2+C231+C235","v":0}]
[null,"Loan 2 Cash Calculations"]
[null,"Down Payment",{"$f":"IF(C221=\"Down Payment\",C223,0)","v":0}]
[null,"Points Paid Upfront",{"$f":"IF(C234=\"Rolled\",0,C233)","v":0}]
[null,"Total Cash at Closing",{"$f":"C239+C240","v":0}]
[null,"Total Project Costs",{"$f":"C176","v":129400}]
[null,"Total Financed Amount",{"$f":"C237","v":0}]
[null,"Total Cash Required During Flip",{"$f":"C242-C243-C241","v":129400}]
[null,"Total Cash Calculations"]
[null,"Down Payment",{"$f":"C210+C239","v":0}]
[null,"Points Paid Upfront",{"$f":"C211+C240","v":0}]
[null,"Total Cash at Closing",{"$f":"C212+C241","v":0}]
[null,"Total Project Costs",{"$f":"C176","v":129400}]
[null,"Total Financed Amount",{"$f":"C214+C243","v":0}]
[null,"Total Equity Investment",{"$f":"'REHAB FINANCING SETUP'!AP89","v":0}]
[null,"Total Cash Required During Flip",{"$f":"C249-C250-C251","v":129400}]
[null,"Total Cash Needed",{"$f":"C248+C252","v":129400}]
[null,"Description"]
[]
[null,"Comparables"]
[null,"Comparables?",{"$f":"IF(COUNTA(COMPS!AJ6:BV8)<>0,\"Yes\",\"No\")","v":"Yes"}]
[]
[null,"Rental Calculations"]
[null,"Rental Funding Strategy","All Cash"]
[null,"Rental Funding Type"]

{"sheet":"BUDGET DATABASE","index":1,"n_rows":69,"n_cols":4,"rows_kept":69,"hidden":true,"merged":[[2,1,2,2],[10,1,10,2],[20,1,20,2],[30,1,30,2]]}
[]
[]
[null,"Offers"]
[null,"Accepted Offer","Baseline"]
[null,"Accepted Offer Amount",{"$f":"Purchase_Price_Result","v":61836.912500000006}]
[null,"Purchase Price Result",{"$f":"Purchase_Price_Result","v":61836.912500000006}]
[null,"Purchase Price - Project Budgeter",{"$f":"PURCHASE_PRICE_BUDGET","v":{"$error":"#NAME?"}}]
[null,"Purchase Price Result",{"$f":"IF(C6<>C7,C7,C6)","v":{"$error":"#NAME?"}}]
[null,"Actual Purchase Price Result",{"$f":"IF(Accepted_Offer_Amount=0,C8,Accepted_Offer_Amount)","v":61836.912500000006}]
[]
[null,"Buying Costs"]
[null,{"$f":"T(#REF!)","v":{"$error":"#REF!"}},{"$f":"#REF!","v":{"$error":"#REF!"}}]
[null,{"$f":"T(#REF!)","v":{"$error":"#REF!"}},{"$f":"#REF!","v":{"$error":"#REF!"}}]
[null,{"$f":"T(#REF!)","v":{"$error":"#REF!"}},{"$f":"#REF!","v":{"$error":"#REF!"}}]
[null,{"$f":"T(#REF!)","v":{"$error":"#REF!"}},{"$f":"#REF!","v":{"$error":"#REF!"}}]
[null,{"$f":"T(#REF!)","v":{"$error":"#REF!"}},{"$f":"#REF!","v":{"$error":"#REF!"}}]
[null,{"$f":"T(#REF!)","v":{"$error":"#REF!"}},{"$f":"#REF!","v":{"$error":"#REF!"}}]
[null,{"$f":"T(#REF!)","v":{"$error":"#REF!"}},{"$f":"#REF!","v":{"$error":"#REF!"}}]
[null,"TOTAL BUYING COSTS",{"$f":"SUM(C12:C18)","v":{"$error":"#REF!"}}]
[]
[null,"Holding Costs"]
[null,{"$f":"T(#REF!)","v":{"$error":"#REF!"}},{"$f":"#REF!","v":{"$error":"#REF!"}},{"$f":"#REF!","v":{"$error":"#REF!"}}]
[null,{"$f":"T(#REF!)","v":{"$error":"#REF!"}},{"$f":"#REF!","v":{"$error":"#REF!"}},{"$f":"#REF!","v":{"$error":"#REF!"}}]
[null,{"$f":"T(#REF!)","v":{"$error":"#REF!"}},{"$f":"#REF!","v":{"$error":"#REF!"}},{"$f":"#REF!","v":{"$error":"#REF!"}}]
[null,{"$f":"T(#REF!)","v":{"$error":"#REF!"}},{"$f":"#REF!","v":{"$error":"#REF!"}},{"$f":"#REF!","v":{"$error":"#REF!"}}]
[null,{"$f":"T(#REF!)","v":{"$error":"#REF!"}},{"$f":"#REF!","v":{"$error":"#REF!"}},{"$f":"#REF!","v":{"$error":"#REF!"}}]
[null,{"$f":"T(#REF!)","v":{"$error":"#REF!"}},{"$f":"#REF!","v":{"$error":"#REF!"}},{"$f":"#REF!","v":{"$error":"#REF!"}}]
[null,{"$f":"T(#REF!)","v":{"$error":"#REF!"}},{"$f":"#REF!","v":{"$error":"#REF!"}},{"$f":"#REF!","v":{"$error":"#REF!"}}]
[null,"TOTAL BUYING COSTS",{"$f":"SUM(C22:C28)","v":{"$error":"#REF!"}},{"$f":"SUM(D22:D28)","v":{"$error":"#REF!"}}]
[]
[null,"Selling Costs"]
[null,{"$f":"T(#REF!)","v":{"$error":"#REF!"}},{"$f":"#REF!","v":{"$error":"#REF!"}}]
[null,{"$f":"T(#REF!)","v":{"$error":"#REF!"}},{"$f":"#REF!","v":{"$error":"#REF!"}}]
[null,{"$f":"T(#REF!)","v":{"$error":"#REF!"}},{"$f":"#REF!","v":{"$error":"#REF!"}}]
[null,{"$f":"T(#REF!)","v":{"$error":"#REF!"}},{"$f":"#REF!","v":{"$error":"#REF!"}}]
[null,{"$f":"T(#REF!)","v":{"$error":"#REF!"}},{"$f":"#REF!","v":{"$error":"#REF!"}}]
[null,{"$f":"T(#REF!)","v":{"$error":"#REF!"}},{"$f":"#REF!","v":{"$error":"#REF!"}}]
[null,{"$f":"T(#REF!)","v":{"$error":"#REF!"}},{"$f":"#REF!","v":{"$error":"#REF!"}}]
[null,"TOTAL BUYING COSTS",{"$f":"SUM(C32:C38)","v":{"$error":"#REF!"}}]
[]
[null,{"$f":"T(#REF!)","v":{"$error":"#REF!"}},{"$f":"GCs_Budget","v":{"$error":"#NAME?"}}]
[null,{"$f":"T(#REF!)","v":{"$error":"#REF!"}},{"$f":"DEMOLITION_BUDGET","v":{"$error":"#NAME?"}}]
[null,{"$f":"T(#REF!)","v":{"$error":"#REF!"}},{"$f":"STRUCTURAL_BUDGET","v":{"$error":"#NAME?"}}]
[null,{"$f":"T(#REF!)","v":{"$error":"#REF!"}},{"$f":"CONCRETE_BUDGET","v":{"$error":"#NAME?"}}]
[null,{"$f":"T(#REF!)","v":{"$error":"#REF!"}},{"$f":"MASONRY_BUDGET","v":{"$error":"#NAME?"}}]
[null,{"$f":"T(#REF!)","v":{"$error":"#REF!"}},{"$f":"SIDING_BUDGET","v":{"$error":"#NAME?"}}]
[null,{"$f":"T(#REF!)","v":{"$error":"#REF!"}},{"$f":"DECKING_BUDGET","v":{"$error":"#NAME?"}}]
[null,{"$f":"T(#REF!)","v":{"$error":"#REF!"}},{"$f":"ROOFING_BUDGET","v":{"$error":"#NAME?"}}]
[null,{"$f":"T(#REF!)","v":{"$error":"#REF!"}},{"$f":"DOORS_WINDOWS_BUDGET","v":{"$error":"#NAME?"}}]
[null,{"$f":"T(#REF!)","v":{"$error":"#REF!"}},{"$f":"GARAGE_DOORS_BUDGET","v":{"$error":"#NAME?"}}]
[null,{"$f":"T(#REF!)","v":{"$error":"#REF!"}},{"$f":"LANDSCAPING_BUDGET","v":{"$error":"#NAME?"}}]
[null,{"$f":"T(#REF!)","v":{"$error":"#REF!"}},{"$f":"MISC_EXT_IMPROV_BUDGET","v":{"$error":"#NAME?"}}]
[null,{"$f":"T(#REF!)","v":{"$error":"#REF!"}},{"$f":"FRAMING_DRYWALL_BUDGET","v":{"$error":"#NAME?"}}]
[null,{"$f":"T(#REF!)","v":{"$error":"#REF!"}},{"$f":"CABINETS_COUNTERS_BUDGET","v":{"$error":"#NAME?"}}]
[null,{"$f":"T(#REF!)","v":{"$error":"#REF!"}},{"$f":"DOORS_TRIM_BUDGET","v":{"$error":"#NAME?"}}]
[null,{"$f":"T(#REF!)","v":{"$error":"#REF!"}},{"$f":"CARPET_BUDGET","v":{"$error":"#NAME?"}}]
[null,{"$f":"T(#REF!)","v":{"$error":"#REF!"}},{"$f":"HARDWOOD_FLOORING_BUDGET","v":{"$error":"#NAME?"}}]
[null,{"$f":"T(#REF!)","v":{"$error":"#REF!"}},{"$f":"TILING_BUDGET","v":{"$error":"#NAME?"}}]
[null,{"$f":"T(#REF!)","v":{"$error":"#REF!"}},{"$f":"PAINTING_BUDGET","v":{"$error":"#NAME?"}}]
[null,{"$f":"T(#REF!)","v":{"$error":"#REF!"}},{"$f":"APPLIANCES_BUDGET","v":{"$error":"#NAME?"}}]
[null,{"$f":"T(#REF!)","v":{"$error":"#REF!"}},{"$f":"PLUMBING_BUDGET","v":{"$error":"#NAME?"}}]
[null,{"$f":"T(#REF!)","v":{"$error":"#REF!"}},{"$f":"HVAC_BUDGET","v":{"$error":"#NAME?"}}]
[null,{"$f":"T(#REF!)","v":{"$error":"#REF!"}},{"$f":"ELECTRICAL_BUDGET","v":{"$error":"#NAME?"}}]
[null,{"$f":"T(#REF!)","v":{"$error":"#REF!"}},{"$f":"MISCELLANEOUS_BUDGET","v":{"$error":"#NAME?"}}]
[null,"TOTAL RAW BUDGET",{"$f":"SUM(C41:C64)","v":{"$error":"#NAME?"}}]
[null,"BUDGET CONTINGENCY",{"$f":"REPAIR_CONTINGENCY_BUDGET","v":{"$error":"#NAME?"}},{"$f":"IFERROR(C66/C65,0)","v":0}]
[null,"TOTAL RAW BUDGET",{"$f":"C65+C66","v":{"$error":"#NAME?"}}]
[]
[null,"TOTAL RAW BUDGET",{"$f":"SUM(C45:C68)","v":{"$error":"#NAME?"}}]

{"sheet":"EXPENSE DATABASE","index":2,"n_rows":197,"n_cols":31,"rows_kept":197,"hidden":true,"merged":[[184,19,184,20],[184,21,184,28],[184,29,184,30],[185,19,186,20],[185,21,185,26],[185,29,186,30],[186,27,186,28],[187,19,187,20],[187,29,187,30],[188,29,190,30],[191,27,191,28],[192,19,192,20],[192,27,193,28],[193,19,193,20]]}
[]
[]
[null,"Expense Tracking"]
[]
[null,"Scopes of Work",null,null,"Expense by Scopes","LABOR","MAT'L","SUB","OTHER","Total",null,"#","Month","$ /Month","Trans / Month","REPAIRS","FIXED"]
[null,{"$f":"'ACCOUNTING SETUP'!AQ22","v":"PURCHASE PRICE"},1,null,{"$f":"T('EXPENSE DATABASE'!B6)","v":"PURCHASE PRICE"},{"$nulls":3},{"$f":"IF(J6<>SUM(F6:H6),J6,0)","v":{"v":52000,"d":"$52,000.00"}},{"$f":"(SUMIF('3 INCOME & EXPENSE'!$K$14:$K$763,T(E6),'3 INCOME & EXPENSE'!$O$14:$O$763))","v":{"v":52000,"d":"$52,000.00"}},null,1,"Jan",{"$f":"(SUMIF('3 INCOME & EXPENSE'!$AH$14:$AH$763,L6,'3 INCOME & EXPENSE'!$O14:$O$763))","v":0},{"$f":"(SUMIF('3 INCOME & EXPENSE'!$AH$14:$AH$763,L6,'3 INCOME & EXPENSE'!$R$14:$R$763))","v":0},{"$f":"(SUMIF('3 INCOME & EXPENSE'!$AH$14:$AH$763,L6,'3 INCOME & EXPENSE'!$S$14:$S$763))","v":0},{"$f":"(SUMIF('3 INCOME & EXPENSE'!$AH$14:$AH$763,L6,'3 INCOME & EXPENSE'!$T$14:$T$764))","v":0}]
[null,{"$f":"'ACCOUNTING SETUP'!AQ23","v":"BUYING COSTS"},2,null,{"$f":"T('EXPENSE DATABASE'!B7)","v":"BUYING COSTS"},{"$nulls":3},{"$f":"IF(J7<>SUM(F7:H7),J7,0)","v":{"v":1060,"d":"$1,060.00"}},{"$f":"(SUMIF('3 INCOME & EXPENSE'!$K$14:$K$763,T(E7),'3 INCOME & EXPENSE'!$O$14:$O$763))","v":{"v":1060,"d":"$1,060.00"}},null,2,"Feb",{"$f":"(SUMIF('3 INCOME & EXPENSE'!$AH$14:$AH$763,L7,'3 INCOME & EXPENSE'!$O15:$O$512))","v":0},{"$f":"(SUMIF('3 INCOME & EXPENSE'!$AH$14:$AH$763,L7,'3 INCOME & EXPENSE'!$R$14:$R$763))","v":0},{"$f":"(SUMIF('3 INCOME & EXPENSE'!$AH$14:$AH$763,L7,'3 INCOME & EXPENSE'!$S$14:$S$763))","v":0},{"$f":"(SUMIF('3 INCOME & EXPENSE'!$AH$14:$AH$763,L7,'3 INCOME & EXPENSE'!$T$14:$T$764))","v":0}]
[null,{"$f":"'ACCOUNTING SETUP'!AQ24","v":"HOLDING COSTS"},3,null,{"$f":"T('EXPENSE DATABASE'!B8)","v":"HOLDING COSTS"},{"$nulls":3},{"$f":"IF(J8<>SUM(F8:H8),J8,0)","v":{"v":0,"d":"$0.00"}},{"$f":"(SUMIF('3 INCOME & EXPENSE'!$K$14:$K$763,T(E8),'3 INCOME & EXPENSE'!$O$14:$O$763))","v":{"v":0,"d":"$0.00"}},null,3,"Mar",{"$f":"(SUMIF('3 INCOME & EXPENSE'!$AH$14:$AH$763,L8,'3 INCOME & EXPENSE'!$O16:$O$512))","v":0},{"$f":"(SUMIF('3 INCOME & EXPENSE'!$AH$14:$AH$763,L8,'3 INCOME & EXPENSE'!$R$14:$R$763))","v":0},{"$f":"(SUMIF('3 INCOME & EXPENSE'!$AH$14:$AH$763,L8,'3 INCOME & EXPENSE'!$S$14:$S$763))","v":0},{"$f":"(SUMIF('3 INCOME & EXPENSE'!$AH$14:$AH$763,L8,'3 INCOME & EXPENSE'!$T$14:$T$764))","v":0}]
[null,{"$f":"'ACCOUNTING SETUP'!AQ25","v":"SELLING COSTS"},4,null,{"$f":"T('EXPENSE DATABASE'!B9)","v":"SELLING COSTS"},{"$nulls":3},{"$f":"IF(J9<>SUM(F9:H9),J9,0)","v":{"v":0,"d":"$0.00"}},{"$f":"(SUMIF('3 INCOME & EXPENSE'!$K$14:$K$763,T(E9),'3 INCOME & EXPENSE'!$O$14:$O$763))","v":{"v":0,"d":"$0.00"}},null,4,"Apr",{"$f":"(SUMIF('3 INCOME & EXPENSE'!$AH$14:$AH$763,L9,'3 INCOME & EXPENSE'!$O17:$O$512))","v":0},{"$f":"(SUMIF('3 INCOME & EXPENSE'!$AH$14:$AH$763,L9,'3 INCOME & EXPENSE'!$R$14:$R$763))","v":0},{"$f":"(SUMIF('3 INCOME & EXPENSE'!$AH$14:$AH$763,L9,'3 INCOME & EXPENSE'!$S$14:$S$763))","v":0},{"$f":"(SUMIF('3 INCOME & EXPENSE'!$AH$14:$AH$763,L9,'3 INCOME & EXPENSE'!$T$14:$T$764))","v":0}]
[null,{"$f":"'ACCOUNTING SETUP'!AQ26","v":"FINANCING COSTS"},5,null,{"$f":"T('EXPENSE DATABASE'!B10)","v":"FINANCING COSTS"},{"$nulls":3},{"$f":"IF(J10<>SUM(F10:H10),J10,0)","v":{"v":0,"d":"$0.00"}},{"$f":"(SUMIF('3 INCOME & EXPENSE'!$K$14:$K$763,T(E10),'3 INCOME & EXPENSE'!$O$14:$O$763))","v":{"v":0,"d":"$0.00"}},null,5,"May",{"$f":"(SUMIF('3 INCOME & EXPENSE'!$AH$14:$AH$763,L10,'3 INCOME & EXPENSE'!$O18:$O$512))","v":0},{"$f":"(SUMIF('3 INCOME & EXPENSE'!$AH$14:$AH$763,L10,'3 INCOME & EXPENSE'!$R$14:$R$763))","v":0},{"$f":"(SUMIF('3 INCOME & EXPENSE'!$AH$14:$AH$763,L10,'3 INCOME & EXPENSE'!$S$14:$S$763))","v":0},{"$f":"(SUMIF('3 INCOME & EXPENSE'!$AH$14:$AH$763,L10,'3 INCOME & EXPENSE'!$T$14:$T$764))","v":0}]
[null,{"$f":"'ACCOUNTING SETUP'!AQ27","v":"GENERAL CONDITIONS"},6,null,{"$f":"T('EXPENSE DATABASE'!B11)","v":"GENERAL CONDITIONS"},{"$f":"SUMIF('3 INCOME & EXPENSE'!$K$14:$K$763,T(E11),'3 INCOME & EXPENSE'!$AE$14:$AE$763)","v":{"v":0,"d":"$0.00"}},{"$f":"SUMIF('3 INCOME & EXPENSE'!$K$14:$K$763,T(E11),'3 INCOME & EXPENSE'!$AF$14:$AF$763)","v":{"v":0,"d":"$0.00"}},{"$f":"SUMIF('3 INCOME & EXPENSE'!$K$14:$K$763,T(E11),'3 INCOME & EXPENSE'!$AG$14:$AG$763)","v":{"v":0,"d":"$0.00"}},{"$f":"IF(J11<>SUM(F11:H11),J11,0)","v":{"v":0,"d":"$0.00"}},{"$f":"(SUMIF('3 INCOME & EXPENSE'!$K$14:$K$763,T(E11),'3 INCOME & EXPENSE'!$O$14:$O$763))","v":{"v":0,"d":"$0.00"}},null,6,"Jun",{"$f":"(SUMIF('3 INCOME & EXPENSE'!$AH$14:$AH$763,L11,'3 INCOME & EXPENSE'!$O19:$O$512))","v":0},{"$f":"(SUMIF('3 INCOME & EXPENSE'!$AH$14:$AH$763,L11,'3 INCOME & EXPENSE'!$R$14:$R$763))","v":0},{"$f":"(SUMIF('3 INCOME & EXPENSE'!$AH$14:$AH$763,L11,'3 INCOME & EXPENSE'!$S$14:$S$763))","v":0},{"$f":"(SUMIF('3 INCOME & EXPENSE'!$AH$14:$AH$763,L11,'3 INCOME & EXPENSE'!$T$14:$T$764))","v":0}]
[null,{"$f":"'ACCOUNTING SETUP'!AQ28","v":"DEMOLITION"},7,null,{"$f":"T('EXPENSE DATABASE'!B12)","v":"DEMOLITION"},{"$f":"SUMIF('3 INCOME & EXPENSE'!$K$14:$K$763,T(E12),'3 INCOME & EXPENSE'!$AE$14:$AE$763)","v":{"v":0,"d":"$0.00"}},{"$f":"SUMIF('3 INCOME & EXPENSE'!$K$14:$K$763,T(E12),'3 INCOME & EXPENSE'!$AF$14:$AF$763)","v":{"v":740,"d":"$740.00"}},{"$f":"SUMIF('3 INCOME & EXPENSE'!$K$14:$K$763,T(E12),'3 INCOME & EXPENSE'!$AG$14:$AG$763)","v":{"v":1000,"d":"$1,000.00"}},{"v":0,"d":"$0.00"},{"$f":"(SUMIF('3 INCOME & EXPENSE'!$K$14:$K$763,T(E12),'3 INCOME & EXPENSE'!$O$14:$O$763))","v":{"v":1740,"d":"$1,740.00"}},null,7,"Jul",{"$f":"(SUMIF('3 INCOME & EXPENSE'!$AH$14:$AH$763,L12,'3 INCOME & EXPENSE'!$O20:$O$512))","v":8074.92},{"$f":"(SUMIF('3 INCOME & EXPENSE'!$AH$14:$AH$763,L12,'3 INCOME & EXPENSE'!$R$14:$R$763))","v":6},{"$f":"(SUMIF('3 INCOME & EXPENSE'!$AH$14:$AH$763,L12,'3 INCOME & EXPENSE'!$S$14:$S$763))","v":870},{"$f":"(SUMIF('3 INCOME & EXPENSE'!$AH$14:$AH$763,L12,'3 INCOME & EXPENSE'!$T$14:$T$764))","v":1060}]
[null,{"$f":"'ACCOUNTING SETUP'!AQ29","v":"STRUCTURAL CONCRETE"},8,null,{"$f":"T('EXPENSE DATABASE'!B13)","v":"STRUCTURAL CONCRETE"},{"$f":"SUMIF('3 INCOME & EXPENSE'!$K$14:$K$763,T(E13),'3 INCOME & EXPENSE'!$AE$14:$AE$763)","v":{"v":0,"d":"$0.00"}},{"$f":"SUMIF('3 INCOME & EXPENSE'!$K$14:$K$763,T(E13),'3 INCOME & EXPENSE'!$AF$14:$AF$763)","v":{"v":0,"d":"$0.00"}},{"$f":"SUMIF('3 INCOME & EXPENSE'!$K$14:$K$763,T(E13),'3 INCOME & EXPENSE'!$AG$14:$AG$763)","v":{"v":0,"d":"$0.00"}},{"v":0,"d":"$0.00"},{"$f":"(SUMIF('3 INCOME & EXPENSE'!$K$14:$K$763,T(E13),'3 INCOME & EXPENSE'!$O$14:$O$763))","v":{"v":0,"d":"$0.00"}},null,8,"Aug",{"$f":"(SUMIF('3 INCOME & EXPENSE'!$AH$14:$AH$763,L13,'3 INCOME & EXPENSE'!$O21:$O$512))","v":14762.279999999999},{"$f":"(SUMIF('3 INCOME & EXPENSE'!$AH$14:$AH$763,L13,'3 INCOME & EXPENSE'!$R$14:$R$763))","v":19},{"$f":"(SUMIF('3 INCOME & EXPENSE'!$AH$14:$AH$763,L13,'3 INCOME & EXPENSE'!$S$14:$S$763))","v":18587.28},{"$f":"(SUMIF('3 INCOME & EXPENSE'!$AH$14:$AH$763,L13,'3 INCOME & EXPENSE'!$T$14:$T$764))","v":0}]
[null,{"$f":"'ACCOUNTING SETUP'!AQ30","v":"CONCRETE & FLATWORK"},9,null,{"$f":"T('EXPENSE DATABASE'!B14)","v":"CONCRETE & FLATWORK"},{"$f":"SUMIF('3 INCOME & EXPENSE'!$K$14:$K$763,T(E14),'3 INCOME & EXPENSE'!$AE$14:$AE$763)","v":{"v":0,"d":"$0.00"}},{"$f":"SUMIF('3 INCOME & EXPENSE'!$K$14:$K$763,T(E14),'3 INCOME & EXPENSE'!$AF$14:$AF$763)","v":{"v":0,"d":"$0.00"}},{"$f":"SUMIF('3 INCOME & EXPENSE'!$K$14:$K$763,T(E14),'3 INCOME & EXPENSE'!$AG$14:$AG$763)","v":{"v":0,"d":"$0.00"}},{"v":0,"d":"$0.00"},{"$f":"(SUMIF('3 INCOME & EXPENSE'!$K$14:$K$763,T(E14),'3 INCOME & EXPENSE'!$O$14:$O$763))","v":{"v":0,"d":"$0.00"}},null,9,"Sep",{"$f":"(SUMIF('3 INCOME & EXPENSE'!$AH$14:$AH$763,L14,'3 INCOME & EXPENSE'!$O22:$O$512))","v":0},{"$f":"(SUMIF('3 INCOME & EXPENSE'!$AH$14:$AH$763,L14,'3 INCOME & EXPENSE'!$R$14:$R$763))","v":0},{"$f":"(SUMIF('3 INCOME & EXPENSE'!$AH$14:$AH$763,L14,'3 INCOME & EXPENSE'!$S$14:$S$763))","v":0},{"$f":"(SUMIF('3 INCOME & EXPENSE'!$AH$14:$AH$763,L14,'3 INCOME & EXPENSE'!$T$14:$T$764))","v":0}]
[null,{"$f":"'ACCOUNTING SETUP'!AQ31","v":"MASONRY"},10,null,{"$f":"T('EXPENSE DATABASE'!B15)","v":"MASONRY"},{"$f":"SUMIF('3 INCOME & EXPENSE'!$K$14:$K$763,T(E15),'3 INCOME & EXPENSE'!$AE$14:$AE$763)","v":{"v":0,"d":"$0.00"}},{"$f":"SUMIF('3 INCOME & EXPENSE'!$K$14:$K$763,T(E15),'3 INCOME & EXPENSE'!$AF$14:$AF$763)","v":{"v":0,"d":"$0.00"}},{"$f":"SUMIF('3 INCOME & EXPENSE'!$K$14:$K$763,T(E15),'3 INCOME & EXPENSE'!$AG$14:$AG$763)","v":{"v":0,"d":"$0.00"}},{"v":0,"d":"$0.00"},{"$f":"(SUMIF('3 INCOME & EXPENSE'!$K$14:$K$763,T(E15),'3 INCOME & EXPENSE'!$O$14:$O$763))","v":{"v":0,"d":"$0.00"}},null,10,"Oct",{"$f":"(SUMIF('3 INCOME & EXPENSE'!$AH$14:$AH$763,L15,'3 INCOME & EXPENSE'!$O23:$O$512))","v":0},{"$f":"(SUMIF('3 INCOME & EXPENSE'!$AH$14:$AH$763,L15,'3 INCOME & EXPENSE'!$R$14:$R$763))","v":0},{"$f":"(SUMIF('3 INCOME & EXPENSE'!$AH$14:$AH$763,L15,'3 INCOME & EXPENSE'!$S$14:$S$763))","v":0},{"$f":"(SUMIF('3 INCOME & EXPENSE'!$AH$14:$AH$763,L15,'3 INCOME & EXPENSE'!$T$14:$T$764))","v":0}]
[null,{"$f":"'ACCOUNTING SETUP'!AQ32","v":"SIDING"},11,null,{"$f":"T('EXPENSE DATABASE'!B16)","v":"SIDING"},{"$f":"SUMIF('3 INCOME & EXPENSE'!$K$14:$K$763,T(E16),'3 INCOME & EXPENSE'!$AE$14:$AE$763)","v":{"v":0,"d":"$0.00"}},{"$f":"SUMIF('3 INCOME & EXPENSE'!$K$14:$K$763,T(E16),'3 INCOME & EXPENSE'!$AF$14:$AF$763)","v":{"v":0,"d":"$0.00"}},{"$f":"SUMIF('3 INCOME & EXPENSE'!$K$14:$K$763,T(E16),'3 INCOME & EXPENSE'!$AG$14:$AG$763)","v":{"v":0,"d":"$0.00"}},{"v":0,"d":"$0.00"},{"$f":"(SUMIF('3 INCOME & EXPENSE'!$K$14:$K$763,T(E16),'3 INCOME & EXPENSE'!$O$14:$O$763))","v":{"v":0,"d":"$0.00"}},null,11,"Nov",{"$f":"(SUMIF('3 INCOME & EXPENSE'!$AH$14:$AH$763,L16,'3 INCOME & EXPENSE'!$O24:$O$512))","v":0},{"$f":"(SUMIF('3 INCOME & EXPENSE'!$AH$14:$AH$763,L16,'3 INCOME & EXPENSE'!$R$14:$R$763))","v":0},{"$f":"(SUMIF('3 INCOME & EXPENSE'!$AH$14:$AH$763,L16,'3 INCOME & EXPENSE'!$S$14:$S$763))","v":0},{"$f":"(SUMIF('3 INCOME & EXPENSE'!$AH$14:$AH$763,L16,'3 INCOME & EXPENSE'!$T$14:$T$764))","v":0}]
[null,{"$f":"'ACCOUNTING SETUP'!AQ33","v":"DECKING AND PATIOS"},12,null,{"$f":"T('EXPENSE DATABASE'!B17)","v":"DECKING AND PATIOS"},{"$f":"SUMIF('3 INCOME & EXPENSE'!$K$14:$K$763,T(E17),'3 INCOME & EXPENSE'!$AE$14:$AE$763)","v":{"v":0,"d":"$0.00"}},{"$f":"SUMIF('3 INCOME & EXPENSE'!$K$14:$K$763,T(E17),'3 INCOME & EXPENSE'!$AF$14:$AF$763)","v":{"v":0,"d":"$0.00"}},{"$f":"SUMIF('3 INCOME & EXPENSE'!$K$14:$K$763,T(E17),'3 INCOME & EXPENSE'!$AG$14:$AG$763)","v":{"v":0,"d":"$0.00"}},{"v":0,"d":"$0.00"},{"$f":"(SUMIF('3 INCOME & EXPENSE'!$K$14:$K$763,T(E17),'3 INCOME & EXPENSE'!$O$14:$O$763))","v":{"v":0,"d":"$0.00"}},null,12,"Dec",{"$f":"(SUMIF('3 INCOME & EXPENSE'!$AH$14:$AH$763,L17,'3 INCOME & EXPENSE'!$O25:$O$512))","v":0},{"$f":"(SUMIF('3 INCOME & EXPENSE'!$AH$14:$AH$763,L17,'3 INCOME & EXPENSE'!$R$14:$R$763))","v":0},{"$f":"(SUMIF('3 INCOME & EXPENSE'!$AH$14:$AH$763,L17,'3 INCOME & EXPENSE'!$S$14:$S$763))","v":0},{"$f":"(SUMIF('3 INCOME & EXPENSE'!$AH$14:$AH$763,L17,'3 INCOME & EXPENSE'!$T$14:$T$764))","v":0}]
[null,{"$f":"'ACCOUNTING SETUP'!AQ34","v":"ROOFING"},13,null,{"$f":"T('EXPENSE DATABASE'!B18)","v":"ROOFING"},{"$f":"SUMIF('3 INCOME & EXPENSE'!$K$14:$K$763,T(E18),'3 INCOME & EXPENSE'!$AE$14:$AE$763)","v":{"v":0,"d":"$0.00"}},{"$f":"SUMIF('3 INCOME & EXPENSE'!$K$14:$K$763,T(E18),'3 INCOME & EXPENSE'!$AF$14:$AF$763)","v":{"v":0,"d":"$0.00"}},{"$f":"SUMIF('3 INCOME & EXPENSE'!$K$14:$K$763,T(E18),'3 INCOME & EXPENSE'!$AG$14:$AG$763)","v":{"v":0,"d":"$0.00"}},{"v":0,"d":"$0.00"},{"$f":"(SUMIF('3 INCOME & EXPENSE'!$K$14:$K$763,T(E18),'3 INCOME & EXPENSE'!$O$14:$O$763))","v":{"v":0,"d":"$0.00"}}]
[null,{"$f":"'ACCOUNTING SETUP'!AQ35","v":"EXTERIOR DOORS & WINDOWS"},14,null,{"$f":"T('EXPENSE DATABASE'!B19)","v":"EXTERIOR DOORS & WINDOWS"},{"$f":"SUMIF('3 INCOME & EXPENSE'!$K$14:$K$763,T(E19),'3 INCOME & EXPENSE'!$AE$14:$AE$763)","v":{"v":0,"d":"$0.00"}},{"$f":"SUMIF('3 INCOME & EXPENSE'!$K$14:$K$763,T(E19),'3 INCOME & EXPENSE'!$AF$14:$AF$763)","v":{"v":0,"d":"$0.00"}},{"$f":"SUMIF('3 INCOME & EXPENSE'!$K$14:$K$763,T(E19),'3 INCOME & EXPENSE'!$AG$14:$AG$763)","v":{"v":0,"d":"$0.00"}},{"v":0,"d":"$0.00"},{"$f":"(SUMIF('3 INCOME & EXPENSE'!$K$14:$K$763,T(E19),'3 INCOME & EXPENSE'!$O$14:$O$763))","v":{"v":0,"d":"$0.00"}}]
[null,{"$f":"'ACCOUNTING SETUP'!AQ36","v":"GARAGE DOORS"},15,null,{"$f":"T('EXPENSE DATABASE'!B20)","v":"GARAGE DOORS"},{"$f":"SUMIF('3 INCOME & EXPENSE'!$K$14:$K$763,T(E20),'3 INCOME & EXPENSE'!$AE$14:$AE$763)","v":{"v":0,"d":"$0.00"}},{"$f":"SUMIF('3 INCOME & EXPENSE'!$K$14:$K$763,T(E20),'3 INCOME & EXPENSE'!$AF$14:$AF$763)","v":{"v":0,"d":"$0.00"}},{"$f":"SUMIF('3 INCOME & EXPENSE'!$K$14:$K$763,T(E20),'3 INCOME & EXPENSE'!$AG$14:$AG$763)","v":{"v":0,"d":"$0.00"}},{"v":0,"d":"$0.00"},{"$f":"(SUMIF('3 INCOME & EXPENSE'!$K$14:$K$763,T(E20),'3 INCOME & EXPENSE'!$O$14:$O$763))","v":{"v":0,"d":"$0.00"}},null,"Expense by Type","Total"]
[null,{"$f":"'ACCOUNTING SETUP'!AQ37","v":"LANDSCAPING"},16,null,{"$f":"T('EXPENSE DATABASE'!B21)","v":"LANDSCAPING"},{"$f":"SUMIF('3 INCOME & EXPENSE'!$K$14:$K$763,T(E21),'3 INCOME & EXPENSE'!$AE$14:$AE$763)","v":{"v":0,"d":"$0.00"}},{"$f":"SUMIF('3 INCOME & EXPENSE'!$K$14:$K$763,T(E21),'3 INCOME & EXPENSE'!$AF$14:$AF$763)","v":{"v":0,"d":"$0.00"}},{"$f":"SUMIF('3 INCOME & EXPENSE'!$K$14:$K$763,T(E21),'3 INCOME & EXPENSE'!$AG$14:$AG$763)","v":{"v":0,"d":"$0.00"}},{"v":0,"d":"$0.00"},{"$f":"(SUMIF('3 INCOME & EXPENSE'!$K$14:$K$763,T(E21),'3 INCOME & EXPENSE'!$O$14:$O$763))","v":{"v":0,"d":"$0.00"}},null,"PROPERTY PURCHASE",{"$f":"J6","v":{"v":52000,"d":"$52,000.00"}}]
[null,{"$f":"'ACCOUNTING SETUP'!AQ38","v":"MISC. EXTERIOR ITEMS"},17,null,{"$f":"T('EXPENSE DATABASE'!B22)","v":"MISC. EXTERIOR ITEMS"},{"$f":"SUMIF('3 INCOME & EXPENSE'!$K$14:$K$763,T(E22),'3 INCOME & EXPENSE'!$AE$14:$AE$763)","v":{"v":0,"d":"$0.00"}},{"$f":"SUMIF('3 INCOME & EXPENSE'!$K$14:$K$763,T(E22),'3 INCOME & EXPENSE'!$AF$14:$AF$763)","v":{"v":0,"d":"$0.00"}},{"$f":"SUMIF('3 INCOME & EXPENSE'!$K$14:$K$763,T(E22),'3 INCOME & EXPENSE'!$AG$14:$AG$763)","v":{"v":0,"d":"$0.00"}},{"v":0,"d":"$0.00"},{"$f":"(SUMIF('3 INCOME & EXPENSE'!$K$14:$K$763,T(E22),'3 INCOME & EXPENSE'!$O$14:$O$763))","v":{"v":0,"d":"$0.00"}},null,"FIXED EXPENSES",{"$f":"SUM('EXPENSE DATABASE'!J7:J10)","v":{"v":1060,"d":"$1,060.00"}}]
[null,{"$f":"'ACCOUNTING SETUP'!AQ39","v":"FRAMING & DRYWALL"},18,null,{"$f":"T('EXPENSE DATABASE'!B23)","v":"FRAMING & DRYWALL"},{"$f":"SUMIF('3 INCOME & EXPENSE'!$K$14:$K$763,T(E23),'3 INCOME & EXPENSE'!$AE$14:$AE$763)","v":{"v":500,"d":"$500.00"}},{"$f":"SUMIF('3 INCOME & EXPENSE'!$K$14:$K$763,T(E23),'3 INCOME & EXPENSE'!$AF$14:$AF$763)","v":{"v":0,"d":"$0.00"}},{"$f":"SUMIF('3 INCOME & EXPENSE'!$K$14:$K$763,T(E23),'3 INCOME & EXPENSE'!$AG$14:$AG$763)","v":{"v":0,"d":"$0.00"}},{"v":0,"d":"$0.00"},{"$f":"(SUMIF('3 INCOME & EXPENSE'!$K$14:$K$763,T(E23),'3 INCOME & EXPENSE'!$O$14:$O$763))","v":{"v":500,"d":"$500.00"}},null,"REPAIR EXPENSES",{"$f":"SUM('EXPENSE DATABASE'!J11:J34)","v":{"v":19457.28,"d":"$19,457.28"}}]
[null,{"$f":"'ACCOUNTING SETUP'!AQ40","v":"CABINETS & COUNTERTOPS"},19,null,{"$f":"T('EXPENSE DATABASE'!B24)","v":"CABINETS & COUNTERTOPS"},{"$f":"SUMIF('3 INCOME & EXPENSE'!$K$14:$K$763,T(E24),'3 INCOME & EXPENSE'!$AE$14:$AE$763)","v":{"v":0,"d":"$0.00"}},{"$f":"SUMIF('3 INCOME & EXPENSE'!$K$14:$K$763,T(E24),'3 INCOME & EXPENSE'!$AF$14:$AF$763)","v":{"v":0,"d":"$0.00"}},{"$f":"SUMIF('3 INCOME & EXPENSE'!$K$14:$K$763,T(E24),'3 INCOME & EXPENSE'!$AG$14:$AG$763)","v":{"v":0,"d":"$0.00"}},{"v":0,"d":"$0.00"},{"$f":"(SUMIF('3 INCOME & EXPENSE'!$K$14:$K$763,T(E24),'3 INCOME & EXPENSE'!$O$14:$O$763))","v":{"v":0,"d":"$0.00"}},null,"CHANGE ORDERS",{"$f":"Total_Change_Order_Expenses","v":{"v":0,"d":"$0.00"}}]
[null,{"$f":"'ACCOUNTING SETUP'!AQ41","v":"DOORS & TRIM"},20,null,{"$f":"T('EXPENSE DATABASE'!B25)","v":"DOORS & TRIM"},{"$f":"SUMIF('3 INCOME & EXPENSE'!$K$14:$K$763,T(E25),'3 INCOME & EXPENSE'!$AE$14:$AE$763)","v":{"v":1650,"d":"$1,650.00"}},{"$f":"SUMIF('3 INCOME & EXPENSE'!$K$14:$K$763,T(E25),'3 INCOME & EXPENSE'!$AF$14:$AF$763)","v":{"v":1689.32,"d":"$1,689.32"}},{"$f":"SUMIF('3 INCOME & EXPENSE'!$K$14:$K$763,T(E25),'3 INCOME & EXPENSE'!$AG$14:$AG$763)","v":{"v":0,"d":"$0.00"}},{"v":0,"d":"$0.00"},{"$f":"(SUMIF('3 INCOME & EXPENSE'!$K$14:$K$763,T(E25),'3 INCOME & EXPENSE'!$O$14:$O$763))","v":{"v":3339.3199999999997,"d":"$3,339.32"}},null,"TOTAL EXPENSES",{"$f":"SUM(M21:M24)","v":{"v":72517.28,"d":"$72,517.28"}}]
[null,{"$f":"'ACCOUNTING SETUP'!AQ42","v":"CARPET & RESILIENT"},21,null,{"$f":"T('EXPENSE DATABASE'!B26)","v":"CARPET & RESILIENT"},{"$f":"SUMIF('3 INCOME & EXPENSE'!$K$14:$K$763,T(E26),'3 INCOME & EXPENSE'!$AE$14:$AE$763)","v":{"v":0,"d":"$0.00"}},{"$f":"SUMIF('3 INCOME & EXPENSE'!$K$14:$K$763,T(E26),'3 INCOME & EXPENSE'!$AF$14:$AF$763)","v":{"v":0,"d":"$0.00"}},{"$f":"SUMIF('3 INCOME & EXPENSE'!$K$14:$K$763,T(E26),'3 INCOME & EXPENSE'!$AG$14:$AG$763)","v":{"v":0,"d":"$0.00"}},{"v":0,"d":"$0.00"},{"$f":"(SUMIF('3 INCOME & EXPENSE'!$K$14:$K$763,T(E26),'3 INCOME & EXPENSE'!$O$14:$O$763))","v":{"v":0,"d":"$0.00"}}]
[null,{"$f":"'ACCOUNTING SETUP'!AQ43","v":"HARDWOOD FLOORING"},22,null,{"$f":"T('EXPENSE DATABASE'!B27)","v":"HARDWOOD FLOORING"},{"$f":"SUMIF('3 INCOME & EXPENSE'!$K$14:$K$763,T(E27),'3 INCOME & EXPENSE'!$AE$14:$AE$763)","v":{"v":0,"d":"$0.00"}},{"$f":"SUMIF('3 INCOME & EXPENSE'!$K$14:$K$763,T(E27),'3 INCOME & EXPENSE'!$AF$14:$AF$763)","v":{"v":567.2,"d":"$567.20"}},{"$f":"SUMIF('3 INCOME & EXPENSE'!$K$14:$K$763,T(E27),'3 INCOME & EXPENSE'!$AG$14:$AG$763)","v":{"v":0,"d":"$0.00"}},{"v":0,"d":"$0.00"},{"$f":"(SUMIF('3 INCOME & EXPENSE'!$K$14:$K$763,T(E27),'3 INCOME & EXPENSE'!$O$14:$O$763))","v":{"v":567.2,"d":"$567.20"}}]
[null,{"$f":"'ACCOUNTING SETUP'!AQ44","v":"TILING"},23,null,{"$f":"T('EXPENSE DATABASE'!B28)","v":"TILING"},{"$f":"SUMIF('3 INCOME & EXPENSE'!$K$14:$K$763,T(E28),'3 INCOME & EXPENSE'!$AE$14:$AE$763)","v":{"v":650,"d":"$650.00"}},{"$f":"SUMIF('3 INCOME & EXPENSE'!$K$14:$K$763,T(E28),'3 INCOME & EXPENSE'!$AF$14:$AF$763)","v":{"v":1675.23,"d":"$1,675.23"}},{"$f":"SUMIF('3 INCOME & EXPENSE'!$K$14:$K$763,T(E28),'3 INCOME & EXPENSE'!$AG$14:$AG$763)","v":{"v":0,"d":"$0.00"}},{"v":0,"d":"$0.00"},{"$f":"(SUMIF('3 INCOME & EXPENSE'!$K$14:$K$763,T(E28),'3 INCOME & EXPENSE'!$O$14:$O$763))","v":{"v":2325.23,"d":"$2,325.23"}}]
[null,{"$f":"'ACCOUNTING SETUP'!AQ45","v":"PAINTING"},24,null,{"$f":"T('EXPENSE DATABASE'!B29)","v":"PAINTING"},{"$f":"SUMIF('3 INCOME & EXPENSE'!$K$14:$K$763,T(E29),'3 INCOME & EXPENSE'!$AE$14:$AE$763)","v":{"v":2250,"d":"$2,250.00"}},{"$f":"SUMIF('3 INCOME & EXPENSE'!$K$14:$K$763,T(E29),'3 INCOME & EXPENSE'!$AF$14:$AF$763)","v":{"v":2652.45,"d":"$2,652.45"}},{"$f":"SUMIF('3 INCOME & EXPENSE'!$K$14:$K$763,T(E29),'3 INCOME & EXPENSE'!$AG$14:$AG$763)","v":{"v":0,"d":"$0.00"}},{"v":0,"d":"$0.00"},{"$f":"(SUMIF('3 INCOME & EXPENSE'!$K$14:$K$763,T(E29),'3 INCOME & EXPENSE'!$O$14:$O$763))","v":{"v":4902.45,"d":"$4,902.45"}}]
[null,{"$f":"'ACCOUNTING SETUP'!AQ46","v":"APPLIANCES"},25,null,{"$f":"T('EXPENSE DATABASE'!B30)","v":"APPLIANCES"},{"$f":"SUMIF('3 INCOME & EXPENSE'!$K$14:$K$763,T(E30),'3 INCOME & EXPENSE'!$AE$14:$AE$763)","v":{"v":0,"d":"$0.00"}},{"$f":"SUMIF('3 INCOME & EXPENSE'!$K$14:$K$763,T(E30),'3 INCOME & EXPENSE'!$AF$14:$AF$763)","v":{"v":0,"d":"$0.00"}},{"$f":"SUMIF('3 INCOME & EXPENSE'!$K$14:$K$763,T(E30),'3 INCOME & EXPENSE'!$AG$14:$AG$763)","v":{"v":0,"d":"$0.00"}},{"v":0,"d":"$0.00"},{"$f":"(SUMIF('3 INCOME & EXPENSE'!$K$14:$K$763,T(E30),'3 INCOME & EXPENSE'!$O$14:$O$763))","v":{"v":0,"d":"$0.00"}}]
[null,{"$f":"'ACCOUNTING SETUP'!AQ47","v":"PLUMBING"},26,null,{"$f":"T('EXPENSE DATABASE'!B31)","v":"PLUMBING"},{"$f":"SUMIF('3 INCOME & EXPENSE'!$K$14:$K$763,T(E31),'3 INCOME & EXPENSE'!$AE$14:$AE$763)","v":{"v":1250,"d":"$1,250.00"}},{"$f":"SUMIF('3 INCOME & EXPENSE'!$K$14:$K$763,T(E31),'3 INCOME & EXPENSE'!$AF$14:$AF$763)","v":{"v":2223.08,"d":"$2,223.08"}},{"$f":"SUMIF('3 INCOME & EXPENSE'!$K$14:$K$763,T(E31),'3 INCOME & EXPENSE'!$AG$14:$AG$763)","v":{"v":0,"d":"$0.00"}},{"v":0,"d":"$0.00"},{"$f":"(SUMIF('3 INCOME & EXPENSE'!$K$14:$K$763,T(E31),'3 INCOME & EXPENSE'!$O$14:$O$763))","v":{"v":3473.08,"d":"$3,473.08"}}]
[null,{"$f":"'ACCOUNTING SETUP'!AQ48","v":"HVAC"},27,null,{"$f":"T('EXPENSE DATABASE'!B32)","v":"HVAC"},{"$f":"SUMIF('3 INCOME & EXPENSE'!$K$14:$K$763,T(E32),'3 INCOME & EXPENSE'!$AE$14:$AE$763)","v":{"v":0,"d":"$0.00"}},{"$f":"SUMIF('3 INCOME & EXPENSE'!$K$14:$K$763,T(E32),'3 INCOME & EXPENSE'!$AF$14:$AF$763)","v":{"v":0,"d":"$0.00"}},{"$f":"SUMIF('3 INCOME & EXPENSE'!$K$14:$K$763,T(E32),'3 INCOME & EXPENSE'!$AG$14:$AG$763)","v":{"v":0,"d":"$0.00"}},{"v":0,"d":"$0.00"},{"$f":"(SUMIF('3 INCOME & EXPENSE'!$K$14:$K$763,T(E32),'3 INCOME & EXPENSE'!$O$14:$O$763))","v":{"v":0,"d":"$0.00"}}]
[null,{"$f":"'ACCOUNTING SETUP'!AQ49","v":"ELECTRICAL"},28,null,{"$f":"T('EXPENSE DATABASE'!B33)","v":"ELECTRICAL"},{"$f":"SUMIF('3 INCOME & EXPENSE'!$K$14:$K$763,T(E33),'3 INCOME & EXPENSE'!$AE$14:$AE$763)","v":{"v":0,"d":"$0.00"}},{"$f":"SUMIF('3 INCOME & EXPENSE'!$K$14:$K$763,T(E33),'3 INCOME & EXPENSE'!$AF$14:$AF$763)","v":{"v":1360,"d":"$1,360.00"}},{"$f":"SUMIF('3 INCOME & EXPENSE'!$K$14:$K$763,T(E33),'3 INCOME & EXPENSE'!$AG$14:$AG$763)","v":{"v":1250,"d":"$1,250.00"}},{"v":0,"d":"$0.00"},{"$f":"(SUMIF('3 INCOME & EXPENSE'!$K$14:$K$763,T(E33),'3 INCOME & EXPENSE'!$O$14:$O$763))","v":{"v":2610,"d":"$2,610.00"}}]
[null,{"$f":"'ACCOUNTING SETUP'!AQ50","v":"MISCELLANEOUS"},29,null,{"$f":"T('EXPENSE DATABASE'!B34)","v":"MISCELLANEOUS"},{"$f":"SUMIF('3 INCOME & EXPENSE'!$K$14:$K$763,T(E34),'3 INCOME & EXPENSE'!$AE$14:$AE$763)","v":{"v":0,"d":"$0.00"}},{"$f":"SUMIF('3 INCOME & EXPENSE'!$K$14:$K$763,T(E34),'3 INCOME & EXPENSE'!$AF$14:$AF$763)","v":{"v":0,"d":"$0.00"}},{"$f":"SUMIF('3 INCOME & EXPENSE'!$K$14:$K$763,T(E34),'3 INCOME & EXPENSE'!$AG$14:$AG$763)","v":{"v":0,"d":"$0.00"}},{"v":0,"d":"$0.00"},{"$f":"(SUMIF('3 INCOME & EXPENSE'!$K$14:$K$763,T(E34),'3 INCOME & EXPENSE'!$O$14:$O$763))","v":{"v":0,"d":"$0.00"}}]
[null,{"$f":"'ACCOUNTING SETUP'!AQ51","v":"CHANGE ORDER"},30,null,{"$f":"T('EXPENSE DATABASE'!B35)","v":"CHANGE ORDER"},{"$f":"SUMIF('3 INCOME & EXPENSE'!$K$14:$K$763,T(E35),'3 INCOME & EXPENSE'!$AE$14:$AE$763)","v":{"v":0,"d":"$0.00"}},{"$f":"SUMIF('3 INCOME & EXPENSE'!$K$14:$K$763,T(E35),'3 INCOME & EXPENSE'!$AF$14:$AF$763)","v":{"v":0,"d":"$0.00"}},{"$f":"SUMIF('3 INCOME & EXPENSE'!$K$14:$K$763,T(E35),'3 INCOME & EXPENSE'!$AG$14:$AG$763)","v":{"v":0,"d":"$0.00"}},{"$f":"IF(J35<>SUM(F35:H35),J35,0)","v":{"v":0,"d":"$0.00"}},{"$f":"(SUMIF('3 INCOME & EXPENSE'!$K$14:$K$763,T(E35),'3 INCOME & EXPENSE'!$O$14:$O$763))","v":{"v":0,"d":"$0.00"}}]
[null,"Unassigned",31,null,"Unassigned",{"$nulls":3},{"v":4385.599999999991,"d":"$4,385.60"},{"$f":"TOTAL_EXPENSES-SUM(J6:J35)","v":{"v":4385.599999999991,"d":"$4,385.60"}}]
[{"$nulls":4},"Totals",{"$f":"SUM(F11:F36)","v":{"v":6300,"d":"$6,300"}},{"$f":"SUM(G11:G36)","v":{"v":10907.279999999999,"d":"$10,907"}},{"$f":"SUM(H11:H36)","v":{"v":2250,"d":"$2,250"}},{"$f":"SUM('EXPENSE DATABASE'!I6:I36)","v":{"v":57445.59999999999,"d":"$57,446"}},{"$f":"SUM('EXPENSE DATABASE'!J6:J36)","v":{"v":76902.87999999999,"d":"$76,903"}}]
[]
[]
[null,"Accounts",null,null,"Expense Breakdown by Account"]
[null,{"$f":"T('ACCOUNTING SETUP'!L9)","v":"HFS REI Checking Account"},1,null,{"$f":"T(B41)","v":"HFS REI Checking Account"},{"$f":"(SUMIF('3 INCOME & EXPENSE'!$I$14:$I$763,T(E41),'3 INCOME & EXPENSE'!$O$14:$O$763))","v":{"v":62865,"d":"$62,865.00"}}]
[null,{"$f":"T('ACCOUNTING SETUP'!L10)","v":"Chase SW Credit Card"},2,null,{"$f":"T(B42)","v":"Chase SW Credit Card"},{"$f":"(SUMIF('3 INCOME & EXPENSE'!$I$14:$I$763,T(E42),'3 INCOME & EXPENSE'!$O$14:$O$763))","v":{"v":5247.45,"d":"$5,247.45"}}]
[null,{"$f":"T('ACCOUNTING SETUP'!L11)","v":"Home Depot Credit Card"},3,null,"Home Depot Credit Card",{"$f":"(SUMIF('3 INCOME & EXPENSE'!$I$14:$I$763,T(E43),'3 INCOME & EXPENSE'!$O$14:$O$763))","v":{"v":4324.92,"d":"$4,324.92"}}]
[null,{"$f":"T('ACCOUNTING SETUP'!L12)","v":"Lowes Credit Card"},4,null,"Lowes Credit Card",{"$f":"(SUMIF('3 INCOME & EXPENSE'!$I$14:$I$763,T(E44),'3 INCOME & EXPENSE'!$O$14:$O$763))","v":{"v":4465.51,"d":"$4,465.51"}}]
[null,{"$f":"T('ACCOUNTING SETUP'!L13)","v":"Account 5"},5,null,"Account 5",{"$f":"(SUMIF('3 INCOME & EXPENSE'!$I$14:$I$763,T(E45),'3 INCOME & EXPENSE'!$O$14:$O$763))","v":{"v":0,"d":"$0.00"}}]
[null,{"$f":"T('ACCOUNTING SETUP'!L14)","v":"Account 6"},6,null,"Account 6",{"$f":"(SUMIF('3 INCOME & EXPENSE'!$I$14:$I$763,T(E46),'3 INCOME & EXPENSE'!$O$14:$O$763))","v":{"v":0,"d":"$0.00"}}]
[null,{"$f":"T('ACCOUNTING SETUP'!L15)","v":"Account 7"},7,null,"Account 7",{"$f":"(SUMIF('3 INCOME & EXPENSE'!$I$14:$I$763,T(E47),'3 INCOME & EXPENSE'!$O$14:$O$763))","v":{"v":0,"d":"$0.00"}}]
[null,{"$f":"T('ACCOUNTING SETUP'!L16)","v":"Account 8"},8,null,"Account 8",{"$f":"(SUMIF('3 INCOME & EXPENSE'!$I$14:$I$763,T(E48),'3 INCOME & EXPENSE'!$O$14:$O$763))","v":{"v":0,"d":"$0.00"}}]
[null,{"$f":"T('ACCOUNTING SETUP'!L17)","v":"Account 9"},9,null,"Account 9",{"$f":"(SUMIF('3 INCOME & EXPENSE'!$I$14:$I$763,T(E49),'3 INCOME & EXPENSE'!$O$14:$O$763))","v":{"v":0,"d":"$0.00"}}]
[null,{"$f":"T('ACCOUNTING SETUP'!L18)","v":"Account 10"},10,null,"Account 10",{"$f":"(SUMIF('3 INCOME & EXPENSE'!$I$14:$I$763,T(E50),'3 INCOME & EXPENSE'!$O$14:$O$763))","v":{"v":0,"d":"$0.00"}}]
[null,{"$f":"T('ACCOUNTING SETUP'!L19)","v":"Account 11"},11,null,"Account 11",{"$f":"(SUMIF('3 INCOME & EXPENSE'!$I$14:$I$763,T(E51),'3 INCOME & EXPENSE'!$O$14:$O$763))","v":{"v":0,"d":"$0.00"}}]
[null,{"$f":"T('ACCOUNTING SETUP'!L20)","v":"Account 12"},12,null,"Account 12",{"$f":"(SUMIF('3 INCOME & EXPENSE'!$I$14:$I$763,T(E52),'3 INCOME & EXPENSE'!$O$14:$O$763))","v":{"v":0,"d":"$0.00"}}]
[null,{"$f":"T('ACCOUNTING SETUP'!L21)","v":"Account 13"},13,null,"Account 13",{"$f":"(SUMIF('3 INCOME & EXPENSE'!$I$14:$I$763,T(E53),'3 INCOME & EXPENSE'!$O$14:$O$763))","v":{"v":0,"d":"$0.00"}}]
[null,{"$f":"T('ACCOUNTING SETUP'!L22)","v":"Account 14"},14,null,"Account 14",{"$f":"(SUMIF('3 INCOME & EXPENSE'!$I$14:$I$763,T(E54),'3 INCOME & EXPENSE'!$O$14:$O$763))","v":{"v":0,"d":"$0.00"}}]
[null,{"$f":"T('ACCOUNTING SETUP'!L23)","v":"Account 15"},15,null,"Account 15",{"$f":"(SUMIF('3 INCOME & EXPENSE'!$I$14:$I$763,T(E55),'3 INCOME & EXPENSE'!$O$14:$O$763))","v":{"v":0,"d":"$0.00"}}]
[null,{"$f":"T('ACCOUNTING SETUP'!L24)","v":"Account 16"},16,null,"Account 16",{"$f":"(SUMIF('3 INCOME & EXPENSE'!$I$14:$I$763,T(E56),'3 INCOME & EXPENSE'!$O$14:$O$763))","v":{"v":0,"d":"$0.00"}}]
[null,{"$f":"T('ACCOUNTING SETUP'!L25)","v":"Account 17"},17,null,"Account 17",{"$f":"(SUMIF('3 INCOME & EXPENSE'!$I$14:$I$763,T(E57),'3 INCOME & EXPENSE'!$O$14:$O$763))","v":{"v":0,"d":"$0.00"}}]
[null,{"$f":"T('ACCOUNTING SETUP'!L26)","v":"Account 18"},18,null,"Account 18",{"$f":"(SUMIF('3 INCOME & EXPENSE'!$I$14:$I$763,T(E58),'3 INCOME & EXPENSE'!$O$14:$O$763))","v":{"v":0,"d":"$0.00"}}]
[null,{"$f":"T('ACCOUNTING SETUP'!L27)","v":"Account 19"},19,null,"Account 19",{"$f":"(SUMIF('3 INCOME & EXPENSE'!$I$14:$I$763,T(E59),'3 INCOME & EXPENSE'!$O$14:$O$763))","v":{"v":0,"d":"$0.00"}}]
[null,{"$f":"T('ACCOUNTING SETUP'!L28)","v":"Account 20"},20,null,"Account 20",{"$f":"(SUMIF('3 INCOME & EXPENSE'!$I$14:$I$763,T(E60),'3 INCOME & EXPENSE'!$O$14:$O$763))","v":{"v":0,"d":"$0.00"}}]
[null,{"$f":"T('ACCOUNTING SETUP'!L29)","v":"Account 21"},21,null,"Account 21",{"$f":"(SUMIF('3 INCOME & EXPENSE'!$I$14:$I$763,T(E61),'3 INCOME & EXPENSE'!$O$14:$O$763))","v":{"v":0,"d":"$0.00"}}]
[null,{"$f":"T('ACCOUNTING SETUP'!L30)","v":"Account 22"},22,null,"Account 22",{"$f":"(SUMIF('3 INCOME & EXPENSE'!$I$14:$I$763,T(E62),'3 INCOME & EXPENSE'!$O$14:$O$763))","v":{"v":0,"d":"$0.00"}}]
[null,{"$f":"T('ACCOUNTING SETUP'!L31)","v":"Account 23"},23,null,"Account 23",{"$f":"(SUMIF('3 INCOME & EXPENSE'!$I$14:$I$763,T(E63),'3 INCOME & EXPENSE'!$O$14:$O$763))","v":{"v":0,"d":"$0.00"}}]
[null,{"$f":"T('ACCOUNTING SETUP'!L32)","v":"Account 24"},24,null,"Account 24",{"$f":"(SUMIF('3 INCOME & EXPENSE'!$I$14:$I$763,T(E64),'3 INCOME & EXPENSE'!$O$14:$O$763))","v":{"v":0,"d":"$0.00"}}]
[null,{"$f":"T('ACCOUNTING SETUP'!L33)","v":"Account 25"},25,null,"Account 25",{"$f":"(SUMIF('3 INCOME & EXPENSE'!$I$14:$I$763,T(E65),'3 INCOME & EXPENSE'!$O$14:$O$763))","v":{"v":0,"d":"$0.00"}}]
[{"$nulls":4},"UNASSIGNED",{"$f":"TOTAL_EXPENSES-SUM(F41:F65)","v":{"v":0,"d":"$0.00"}}]
[]
[null,"Vendors",null,null,"Expense by Vendor","Total","Unpaid","Paid"]
[null,{"$f":"T('ACCOUNTING SETUP'!AI9)","v":"First 1 Bank"},1,null,{"$f":"T('EXPENSE DATABASE'!B69)","v":"First 1 Bank"},{"$f":"(SUMIF('3 INCOME & EXPENSE'!$J$14:$J$763,T(E69),'3 INCOME & EXPENSE'!$O$14:$O$763))","v":{"v":52565,"d":"$52,565.00"}},{"$f":"(SUMIF('3 INCOME & EXPENSE'!$J$14:$J$763,T('EXPENSE DATABASE'!E69),'3 INCOME & EXPENSE'!$P$14:$P$763))","v":{"v":52565,"d":"$52,565.00"}},{"$f":"(SUMIF('3 INCOME & EXPENSE'!$J$14:$J$763,T('EXPENSE DATABASE'!E69),'3 INCOME & EXPENSE'!$Q$14:$Q$763))","v":{"v":0,"d":"$0.00"}}]
[null,{"$f":"T('ACCOUNTING SETUP'!AI10)","v":"Defenbaugh Industries"},2,null,{"$f":"T('EXPENSE DATABASE'!B70)","v":"Defenbaugh Industries"},{"$f":"(SUMIF('3 INCOME & EXPENSE'!$J$14:$J$763,T(E70),'3 INCOME & EXPENSE'!$O$14:$O$763))","v":{"v":740,"d":"$740.00"}},{"$f":"(SUMIF('3 INCOME & EXPENSE'!$J$14:$J$763,T('EXPENSE DATABASE'!E70),'3 INCOME & EXPENSE'!$P$14:$P$763))","v":{"v":740,"d":"$740.00"}},{"$f":"(SUMIF('3 INCOME & EXPENSE'!$J$14:$J$763,T('EXPENSE DATABASE'!E70),'3 INCOME & EXPENSE'!$Q$14:$Q$763))","v":{"v":0,"d":"$0.00"}}]
[null,{"$f":"T('ACCOUNTING SETUP'!AI11)","v":"Demolition Services Inc."},3,null,{"$f":"T('EXPENSE DATABASE'!B71)","v":"Demolition Services Inc."},{"$f":"(SUMIF('3 INCOME & EXPENSE'!$J$14:$J$763,T(E71),'3 INCOME & EXPENSE'!$O$14:$O$763))","v":{"v":1000,"d":"$1,000.00"}},{"$f":"(SUMIF('3 INCOME & EXPENSE'!$J$14:$J$763,T('EXPENSE DATABASE'!E71),'3 INCOME & EXPENSE'!$P$14:$P$763))","v":{"v":1000,"d":"$1,000.00"}},{"$f":"(SUMIF('3 INCOME & EXPENSE'!$J$14:$J$763,T('EXPENSE DATABASE'!E71),'3 INCOME & EXPENSE'!$Q$14:$Q$763))","v":{"v":0,"d":"$0.00"}}]
[null,{"$f":"T('ACCOUNTING SETUP'!AI12)","v":"Affordable Rehab & Remodeling"},4,null,{"$f":"T('EXPENSE DATABASE'!B72)","v":"Affordable Rehab & Remodeling"},{"$f":"(SUMIF('3 INCOME & EXPENSE'!$J$14:$J$763,T(E72),'3 INCOME & EXPENSE'!$O$14:$O$763))","v":{"v":6900,"d":"$6,900.00"}},{"$f":"(SUMIF('3 INCOME & EXPENSE'!$J$14:$J$763,T('EXPENSE DATABASE'!E72),'3 INCOME & EXPENSE'!$P$14:$P$763))","v":{"v":6900,"d":"$6,900.00"}},{"$f":"(SUMIF('3 INCOME & EXPENSE'!$J$14:$J$763,T('EXPENSE DATABASE'!E72),'3 INCOME & EXPENSE'!$Q$14:$Q$763))","v":{"v":0,"d":"$0.00"}}]
[null,{"$f":"T('ACCOUNTING SETUP'!AI13)","v":"Lowes"},5,null,{"$f":"T('EXPENSE DATABASE'!B73)","v":"Lowes"},{"$f":"(SUMIF('3 INCOME & EXPENSE'!$J$14:$J$763,T(E73),'3 INCOME & EXPENSE'!$O$14:$O$763))","v":{"v":8543.91,"d":"$8,543.91"}},{"$f":"(SUMIF('3 INCOME & EXPENSE'!$J$14:$J$763,T('EXPENSE DATABASE'!E73),'3 INCOME & EXPENSE'!$P$14:$P$763))","v":{"v":8543.91,"d":"$8,543.91"}},{"$f":"(SUMIF('3 INCOME & EXPENSE'!$J$14:$J$763,T('EXPENSE DATABASE'!E73),'3 INCOME & EXPENSE'!$Q$14:$Q$763))","v":{"v":0,"d":"$0.00"}}]
[null,{"$f":"T('ACCOUNTING SETUP'!AI14)","v":"Home Depot"},6,null,{"$f":"T('EXPENSE DATABASE'!B74)","v":"Home Depot"},{"$f":"(SUMIF('3 INCOME & EXPENSE'!$J$14:$J$763,T(E74),'3 INCOME & EXPENSE'!$O$14:$O$763))","v":{"v":2256.52,"d":"$2,256.52"}},{"$f":"(SUMIF('3 INCOME & EXPENSE'!$J$14:$J$763,T('EXPENSE DATABASE'!E74),'3 INCOME & EXPENSE'!$P$14:$P$763))","v":{"v":2256.52,"d":"$2,256.52"}},{"$f":"(SUMIF('3 INCOME & EXPENSE'!$J$14:$J$763,T('EXPENSE DATABASE'!E74),'3 INCOME & EXPENSE'!$Q$14:$Q$763))","v":{"v":0,"d":"$0.00"}}]
[null,{"$f":"T('ACCOUNTING SETUP'!AI15)","v":"Ace Electric"},7,null,{"$f":"T('EXPENSE DATABASE'!B75)","v":"Ace Electric"},{"$f":"(SUMIF('3 INCOME & EXPENSE'!$J$14:$J$763,T(E75),'3 INCOME & EXPENSE'!$O$14:$O$763))","v":{"v":1750,"d":"$1,750.00"}},{"$f":"(SUMIF('3 INCOME & EXPENSE'!$J$14:$J$763,T('EXPENSE DATABASE'!E75),'3 INCOME & EXPENSE'!$P$14:$P$763))","v":{"v":1750,"d":"$1,750.00"}},{"$f":"(SUMIF('3 INCOME & EXPENSE'!$J$14:$J$763,T('EXPENSE DATABASE'!E75),'3 INCOME & EXPENSE'!$Q$14:$Q$763))","v":{"v":0,"d":"$0.00"}}]
[null,{"$f":"T('ACCOUNTING SETUP'!AI16)","v":"Sherwin Williams"},8,null,{"$f":"T('EXPENSE DATABASE'!B76)","v":"Sherwin Williams"},{"$f":"(SUMIF('3 INCOME & EXPENSE'!$J$14:$J$763,T(E76),'3 INCOME & EXPENSE'!$O$14:$O$763))","v":{"v":2652.45,"d":"$2,652.45"}},{"$f":"(SUMIF('3 INCOME & EXPENSE'!$J$14:$J$763,T('EXPENSE DATABASE'!E76),'3 INCOME & EXPENSE'!$P$14:$P$763))","v":{"v":2652.45,"d":"$2,652.45"}},{"$f":"(SUMIF('3 INCOME & EXPENSE'!$J$14:$J$763,T('EXPENSE DATABASE'!E76),'3 INCOME & EXPENSE'!$Q$14:$Q$763))","v":{"v":0,"d":"$0.00"}}]
[null,{"$f":"T('ACCOUNTING SETUP'!AI17)","v":"Vendor 9"},9,null,{"$f":"T('EXPENSE DATABASE'!B77)","v":"Vendor 9"},{"$f":"(SUMIF('3 INCOME & EXPENSE'!$J$14:$J$763,T(E77),'3 INCOME & EXPENSE'!$O$14:$O$763))","v":{"v":0,"d":"$0.00"}},{"$f":"(SUMIF('3 INCOME & EXPENSE'!$J$14:$J$763,T('EXPENSE DATABASE'!E77),'3 INCOME & EXPENSE'!$P$14:$P$763))","v":{"v":0,"d":"$0.00"}},{"$f":"(SUMIF('3 INCOME & EXPENSE'!$J$14:$J$763,T('EXPENSE DATABASE'!E77),'3 INCOME & EXPENSE'!$Q$14:$Q$763))","v":{"v":0,"d":"$0.00"}}]
[null,{"$f":"T('ACCOUNTING SETUP'!AI18)","v":"Vendor 10"},10,null,{"$f":"T('EXPENSE DATABASE'!B78)","v":"Vendor 10"},{"$f":"(SUMIF('3 INCOME & EXPENSE'!$J$14:$J$763,T(E78),'3 INCOME & EXPENSE'!$O$14:$O$763))","v":{"v":0,"d":"$0.00"}},{"$f":"(SUMIF('3 INCOME & EXPENSE'!$J$14:$J$763,T('EXPENSE DATABASE'!E78),'3 INCOME & EXPENSE'!$P$14:$P$763))","v":{"v":0,"d":"$0.00"}},{"$f":"(SUMIF('3 INCOME & EXPENSE'!$J$14:$J$763,T('EXPENSE DATABASE'!E78),'3 INCOME & EXPENSE'!$Q$14:$Q$763))","v":{"v":0,"d":"$0.00"}}]
[null,{"$f":"T('ACCOUNTING SETUP'!AI19)","v":"Vendor 11"},11,null,{"$f":"T('EXPENSE DATABASE'!B79)","v":"Vendor 11"},{"$f":"(SUMIF('3 INCOME & EXPENSE'!$J$14:$J$763,T(E79),'3 INCOME & EXPENSE'!$O$14:$O$763))","v":{"v":0,"d":"$0.00"}},{"$f":"(SUMIF('3 INCOME & EXPENSE'!$J$14:$J$763,T('EXPENSE DATABASE'!E79),'3 INCOME & EXPENSE'!$P$14:$P$763))","v":{"v":0,"d":"$0.00"}},{"$f":"(SUMIF('3 INCOME & EXPENSE'!$J$14:$J$763,T('EXPENSE DATABASE'!E79),'3 INCOME & EXPENSE'!$Q$14:$Q$763))","v":{"v":0,"d":"$0.00"}}]
[null,{"$f":"T('ACCOUNTING SETUP'!AI20)","v":"Vendor 12"},12,null,{"$f":"T('EXPENSE DATABASE'!B80)","v":"Vendor 12"},{"$f":"(SUMIF('3 INCOME & EXPENSE'!$J$14:$J$763,T(E80),'3 INCOME & EXPENSE'!$O$14:$O$763))","v":{"v":0,"d":"$0.00"}},{"$f":"(SUMIF('3 INCOME & EXPENSE'!$J$14:$J$763,T('EXPENSE DATABASE'!E80),'3 INCOME & EXPENSE'!$P$14:$P$763))","v":{"v":0,"d":"$0.00"}},{"$f":"(SUMIF('3 INCOME & EXPENSE'!$J$14:$J$763,T('EXPENSE DATABASE'!E80),'3 INCOME & EXPENSE'!$Q$14:$Q$763))","v":{"v":0,"d":"$0.00"}}]
[null,{"$f":"T('ACCOUNTING SETUP'!AI21)","v":"Vendor 13"},13,null,{"$f":"T('EXPENSE DATABASE'!B81)","v":"Vendor 13"},{"$f":"(SUMIF('3 INCOME & EXPENSE'!$J$14:$J$763,T(E81),'3 INCOME & EXPENSE'!$O$14:$O$763))","v":{"v":0,"d":"$0.00"}},{"$f":"(SUMIF('3 INCOME & EXPENSE'!$J$14:$J$763,T('EXPENSE DATABASE'!E81),'3 INCOME & EXPENSE'!$P$14:$P$763))","v":{"v":0,"d":"$0.00"}},{"$f":"(SUMIF('3 INCOME & EXPENSE'!$J$14:$J$763,T('EXPENSE DATABASE'!E81),'3 INCOME & EXPENSE'!$Q$14:$Q$763))","v":{"v":0,"d":"$0.00"}}]
[null,{"$f":"T('ACCOUNTING SETUP'!AI22)","v":"Vendor 14"},14,null,{"$f":"T('EXPENSE DATABASE'!B82)","v":"Vendor 14"},{"$f":"(SUMIF('3 INCOME & EXPENSE'!$J$14:$J$763,T(E82),'3 INCOME & EXPENSE'!$O$14:$O$763))","v":{"v":0,"d":"$0.00"}},{"$f":"(SUMIF('3 INCOME & EXPENSE'!$J$14:$J$763,T('EXPENSE DATABASE'!E82),'3 INCOME & EXPENSE'!$P$14:$P$763))","v":{"v":0,"d":"$0.00"}},{"$f":"(SUMIF('3 INCOME & EXPENSE'!$J$14:$J$763,T('EXPENSE DATABASE'!E82),'3 INCOME & EXPENSE'!$Q$14:$Q$763))","v":{"v":0,"d":"$0.00"}}]
[null,{"$f":"T('ACCOUNTING SETUP'!AI23)","v":"Vendor 15"},15,null,{"$f":"T('EXPENSE DATABASE'!B83)","v":"Vendor 15"},{"$f":"(SUMIF('3 INCOME & EXPENSE'!$J$14:$J$763,T(E83),'3 INCOME & EXPENSE'!$O$14:$O$763))","v":{"v":0,"d":"$0.00"}},{"$f":"(SUMIF('3 INCOME & EXPENSE'!$J$14:$J$763,T('EXPENSE DATABASE'!E83),'3 INCOME & EXPENSE'!$P$14:$P$763))","v":{"v":0,"d":"$0.00"}},{"$f":"(SUMIF('3 INCOME & EXPENSE'!$J$14:$J$763,T('EXPENSE DATABASE'!E83),'3 INCOME & EXPENSE'!$Q$14:$Q$763))","v":{"v":0,"d":"$0.00"}}]
[null,{"$f":"T('ACCOUNTING SETUP'!AI24)","v":"Vendor 16"},16,null,{"$f":"T('EXPENSE DATABASE'!B84)","v":"Vendor 16"},{"$f":"(SUMIF('3 INCOME & EXPENSE'!$J$14:$J$763,T(E84),'3 INCOME & EXPENSE'!$O$14:$O$763))","v":{"v":0,"d":"$0.00"}},{"$f":"(SUMIF('3 INCOME & EXPENSE'!$J$14:$J$763,T('EXPENSE DATABASE'!E84),'3 INCOME & EXPENSE'!$P$14:$P$763))","v":{"v":0,"d":"$0.00"}},{"$f":"(SUMIF('3 INCOME & EXPENSE'!$J$14:$J$763,T('EXPENSE DATABASE'!E84),'3 INCOME & EXPENSE'!$Q$14:$Q$763))","v":{"v":0,"d":"$0.00"}}]
[null,{"$f":"T('ACCOUNTING SETUP'!AI25)","v":"Vendor 17"},17,null,{"$f":"T('EXPENSE DATABASE'!B85)","v":"Vendor 17"},{"$f":"(SUMIF('3 INCOME & EXPENSE'!$J$14:$J$763,T(E85),'3 INCOME & EXPENSE'!$O$14:$O$763))","v":{"v":0,"d":"$0.00"}},{"$f":"(SUMIF('3 INCOME & EXPENSE'!$J$14:$J$763,T('EXPENSE DATABASE'!E85),'3 INCOME & EXPENSE'!$P$14:$P$763))","v":{"v":0,"d":"$0.00"}},{"$f":"(SUMIF('3 INCOME & EXPENSE'!$J$14:$J$763,T('EXPENSE DATABASE'!E85),'3 INCOME & EXPENSE'!$Q$14:$Q$763))","v":{"v":0,"d":"$0.00"}}]
[null,{"$f":"T('ACCOUNTING SETUP'!AI26)","v":"Vendor 18"},18,null,{"$f":"T('EXPENSE DATABASE'!B86)","v":"Vendor 18"},{"$f":"(SUMIF('3 INCOME & EXPENSE'!$J$14:$J$763,T(E86),'3 INCOME & EXPENSE'!$O$14:$O$763))","v":{"v":0,"d":"$0.00"}},{"$f":"(SUMIF('3 INCOME & EXPENSE'!$J$14:$J$763,T('EXPENSE DATABASE'!E86),'3 INCOME & EXPENSE'!$P$14:$P$763))","v":{"v":0,"d":"$0.00"}},{"$f":"(SUMIF('3 INCOME & EXPENSE'!$J$14:$J$763,T('EXPENSE DATABASE'!E86),'3 INCOME & EXPENSE'!$Q$14:$Q$763))","v":{"v":0,"d":"$0.00"}}]
[null,{"$f":"T('ACCOUNTING SETUP'!AI27)","v":"Vendor 19"},19,null,{"$f":"T('EXPENSE DATABASE'!B87)","v":"Vendor 19"},{"$f":"(SUMIF('3 INCOME & EXPENSE'!$J$14:$J$763,T(E87),'3 INCOME & EXPENSE'!$O$14:$O$763))","v":{"v":0,"d":"$0.00"}},{"$f":"(SUMIF('3 INCOME & EXPENSE'!$J$14:$J$763,T('EXPENSE DATABASE'!E87),'3 INCOME & EXPENSE'!$P$14:$P$763))","v":{"v":0,"d":"$0.00"}},{"$f":"(SUMIF('3 INCOME & EXPENSE'!$J$14:$J$763,T('EXPENSE DATABASE'!E87),'3 INCOME & EXPENSE'!$Q$14:$Q$763))","v":{"v":0,"d":"$0.00"}}]
[null,{"$f":"T('ACCOUNTING SETUP'!AI28)","v":"Vendor 20"},20,null,{"$f":"T('EXPENSE DATABASE'!B88)","v":"Vendor 20"},{"$f":"(SUMIF('3 INCOME & EXPENSE'!$J$14:$J$763,T(E88),'3 INCOME & EXPENSE'!$O$14:$O$763))","v":{"v":0,"d":"$0.00"}},{"$f":"(SUMIF('3 INCOME & EXPENSE'!$J$14:$J$763,T('EXPENSE DATABASE'!E88),'3 INCOME & EXPENSE'!$P$14:$P$763))","v":{"v":0,"d":"$0.00"}},{"$f":"(SUMIF('3 INCOME & EXPENSE'!$J$14:$J$763,T('EXPENSE DATABASE'!E88),'3 INCOME & EXPENSE'!$Q$14:$Q$763))","v":{"v":0,"d":"$0.00"}}]
[null,{"$f":"T('ACCOUNTING SETUP'!AI29)","v":"Vendor 21"},21,null,{"$f":"T('EXPENSE DATABASE'!B89)","v":"Vendor 21"},{"$f":"(SUMIF('3 INCOME & EXPENSE'!$J$14:$J$763,T(E89),'3 INCOME & EXPENSE'!$O$14:$O$763))","v":{"v":0,"d":"$0.00"}},{"$f":"(SUMIF('3 INCOME & EXPENSE'!$J$14:$J$763,T('EXPENSE DATABASE'!E89),'3 INCOME & EXPENSE'!$P$14:$P$763))","v":{"v":0,"d":"$0.00"}},{"$f":"(SUMIF('3 INCOME & EXPENSE'!$J$14:$J$763,T('EXPENSE DATABASE'!E89),'3 INCOME & EXPENSE'!$Q$14:$Q$763))","v":{"v":0,"d":"$0.00"}}]
[null,{"$f":"T('ACCOUNTING SETUP'!AI30)","v":"Vendor 22"},22,null,{"$f":"T('EXPENSE DATABASE'!B90)","v":"Vendor 22"},{"$f":"(SUMIF('3 INCOME & EXPENSE'!$J$14:$J$763,T(E90),'3 INCOME & EXPENSE'!$O$14:$O$763))","v":{"v":0,"d":"$0.00"}},{"$f":"(SUMIF('3 INCOME & EXPENSE'!$J$14:$J$763,T('EXPENSE DATABASE'!E90),'3 INCOME & EXPENSE'!$P$14:$P$763))","v":{"v":0,"d":"$0.00"}},{"$f":"(SUMIF('3 INCOME & EXPENSE'!$J$14:$J$763,T('EXPENSE DATABASE'!E90),'3 INCOME & EXPENSE'!$Q$14:$Q$763))","v":{"v":0,"d":"$0.00"}}]
[null,{"$f":"T('ACCOUNTING SETUP'!AI31)","v":"Vendor 23"},23,null,{"$f":"T('EXPENSE DATABASE'!B91)","v":"Vendor 23"},{"$f":"(SUMIF('3 INCOME & EXPENSE'!$J$14:$J$763,T(E91),'3 INCOME & EXPENSE'!$O$14:$O$763))","v":{"v":0,"d":"$0.00"}},{"$f":"(SUMIF('3 INCOME & EXPENSE'!$J$14:$J$763,T('EXPENSE DATABASE'!E91),'3 INCOME & EXPENSE'!$P$14:$P$763))","v":{"v":0,"d":"$0.00"}},{"$f":"(SUMIF('3 INCOME & EXPENSE'!$J$14:$J$763,T('EXPENSE DATABASE'!E91),'3 INCOME & EXPENSE'!$Q$14:$Q$763))","v":{"v":0,"d":"$0.00"}}]
[null,{"$f":"T('ACCOUNTING SETUP'!AI32)","v":"Vendor 24"},24,null,{"$f":"T('EXPENSE DATABASE'!B92)","v":"Vendor 24"},{"$f":"(SUMIF('3 INCOME & EXPENSE'!$J$14:$J$763,T(E92),'3 INCOME & EXPENSE'!$O$14:$O$763))","v":{"v":0,"d":"$0.00"}},{"$f":"(SUMIF('3 INCOME & EXPENSE'!$J$14:$J$763,T('EXPENSE DATABASE'!E92),'3 INCOME & EXPENSE'!$P$14:$P$763))","v":{"v":0,"d":"$0.00"}},{"$f":"(SUMIF('3 INCOME & EXPENSE'!$J$14:$J$763,T('EXPENSE DATABASE'!E92),'3 INCOME & EXPENSE'!$Q$14:$Q$763))","v":{"v":0,"d":"$0.00"}}]
[null,{"$f":"T('ACCOUNTING SETUP'!AI33)","v":"Vendor 25"},25,null,{"$f":"T('EXPENSE DATABASE'!B93)","v":"Vendor 25"},{"$f":"(SUMIF('3 INCOME & EXPENSE'!$J$14:$J$763,T(E93),'3 INCOME & EXPENSE'!$O$14:$O$763))","v":{"v":0,"d":"$0.00"}},{"$f":"(SUMIF('3 INCOME & EXPENSE'!$J$14:$J$763,T('EXPENSE DATABASE'!E93),'3 INCOME & EXPENSE'!$P$14:$P$763))","v":{"v":0,"d":"$0.00"}},{"$f":"(SUMIF('3 INCOME & EXPENSE'!$J$14:$J$763,T('EXPENSE DATABASE'!E93),'3 INCOME & EXPENSE'!$Q$14:$Q$763))","v":{"v":0,"d":"$0.00"}}]
[null,{"$f":"T('ACCOUNTING SETUP'!AI34)","v":"Vendor 26"},26,null,{"$f":"T('EXPENSE DATABASE'!B94)","v":"Vendor 26"},{"$f":"(SUMIF('3 INCOME & EXPENSE'!$J$14:$J$763,T(E94),'3 INCOME & EXPENSE'!$O$14:$O$763))","v":{"v":0,"d":"$0.00"}},{"$f":"(SUMIF('3 INCOME & EXPENSE'!$J$14:$J$763,T('EXPENSE DATABASE'!E94),'3 INCOME & EXPENSE'!$P$14:$P$763))","v":{"v":0,"d":"$0.00"}},{"$f":"(SUMIF('3 INCOME & EXPENSE'!$J$14:$J$763,T('EXPENSE DATABASE'!E94),'3 INCOME & EXPENSE'!$Q$14:$Q$763))","v":{"v":0,"d":"$0.00"}}]
[null,{"$f":"T('ACCOUNTING SETUP'!AI35)","v":"Vendor 27"},27,null,{"$f":"T('EXPENSE DATABASE'!B95)","v":"Vendor 27"},{"$f":"(SUMIF('3 INCOME & EXPENSE'!$J$14:$J$763,T(E95),'3 INCOME & EXPENSE'!$O$14:$O$763))","v":{"v":0,"d":"$0.00"}},{"$f":"(SUMIF('3 INCOME & EXPENSE'!$J$14:$J$763,T('EXPENSE DATABASE'!E95),'3 INCOME & EXPENSE'!$P$14:$P$763))","v":{"v":0,"d":"$0.00"}},{"$f":"(SUMIF('3 INCOME & EXPENSE'!$J$14:$J$763,T('EXPENSE DATABASE'!E95),'3 INCOME & EXPENSE'!$Q$14:$Q$763))","v":{"v":0,"d":"$0.00"}}]
[null,{"$f":"T('ACCOUNTING SETUP'!AI36)","v":"Vendor 28"},28,null,{"$f":"T('EXPENSE DATABASE'!B96)","v":"Vendor 28"},{"$f":"(SUMIF('3 INCOME & EXPENSE'!$J$14:$J$763,T(E96),'3 INCOME & EXPENSE'!$O$14:$O$763))","v":{"v":0,"d":"$0.00"}},{"$f":"(SUMIF('3 INCOME & EXPENSE'!$J$14:$J$763,T('EXPENSE DATABASE'!E96),'3 INCOME & EXPENSE'!$P$14:$P$763))","v":{"v":0,"d":"$0.00"}},{"$f":"(SUMIF('3 INCOME & EXPENSE'!$J$14:$J$763,T('EXPENSE DATABASE'!E96),'3 INCOME & EXPENSE'!$Q$14:$Q$763))","v":{"v":0,"d":"$0.00"}}]
[null,{"$f":"T('ACCOUNTING SETUP'!AI37)","v":"Vendor 29"},29,null,{"$f":"T('EXPENSE DATABASE'!B97)","v":"Vendor 29"},{"$f":"(SUMIF('3 INCOME & EXPENSE'!$J$14:$J$763,T(E97),'3 INCOME & EXPENSE'!$O$14:$O$763))","v":{"v":0,"d":"$0.00"}},{"$f":"(SUMIF('3 INCOME & EXPENSE'!$J$14:$J$763,T('EXPENSE DATABASE'!E97),'3 INCOME & EXPENSE'!$P$14:$P$763))","v":{"v":0,"d":"$0.00"}},{"$f":"(SUMIF('3 INCOME & EXPENSE'!$J$14:$J$763,T('EXPENSE DATABASE'!E97),'3 INCOME & EXPENSE'!$Q$14:$Q$763))","v":{"v":0,"d":"$0.00"}}]
[null,{"$f":"T('ACCOUNTING SETUP'!AI38)","v":"Vendor 30"},30,null,{"$f":"T('EXPENSE DATABASE'!B98)","v":"Vendor 30"},{"$f":"(SUMIF('3 INCOME & EXPENSE'!$J$14:$J$763,T(E98),'3 INCOME & EXPENSE'!$O$14:$O$763))","v":{"v":0,"d":"$0.00"}},{"$f":"(SUMIF('3 INCOME & EXPENSE'!$J$14:$J$763,T('EXPENSE DATABASE'!E98),'3 INCOME & EXPENSE'!$P$14:$P$763))","v":{"v":0,"d":"$0.00"}},{"$f":"(SUMIF('3 INCOME & EXPENSE'!$J$14:$J$763,T('EXPENSE DATABASE'!E98),'3 INCOME & EXPENSE'!$Q$14:$Q$763))","v":{"v":0,"d":"$0.00"}}]
[null,{"$f":"T('ACCOUNTING SETUP'!AI39)","v":"Vendor 31"},31,null,{"$f":"T('EXPENSE DATABASE'!B99)","v":"Vendor 31"},{"$f":"(SUMIF('3 INCOME & EXPENSE'!$J$14:$J$763,T(E99),'3 INCOME & EXPENSE'!$O$14:$O$763))","v":{"v":0,"d":"$0.00"}},{"$f":"(SUMIF('3 INCOME & EXPENSE'!$J$14:$J$763,T('EXPENSE DATABASE'!E99),'3 INCOME & EXPENSE'!$P$14:$P$763))","v":{"v":0,"d":"$0.00"}},{"$f":"(SUMIF('3 INCOME & EXPENSE'!$J$14:$J$763,T('EXPENSE DATABASE'!E99),'3 INCOME & EXPENSE'!$Q$14:$Q$763))","v":{"v":0,"d":"$0.00"}}]
[null,{"$f":"T('ACCOUNTING SETUP'!AI40)","v":"Vendor 32"},32,null,{"$f":"T('EXPENSE DATABASE'!B100)","v":"Vendor 32"},{"$f":"(SUMIF('3 INCOME & EXPENSE'!$J$14:$J$763,T(E100),'3 INCOME & EXPENSE'!$O$14:$O$763))","v":{"v":0,"d":"$0.00"}},{"$f":"(SUMIF('3 INCOME & EXPENSE'!$J$14:$J$763,T('EXPENSE DATABASE'!E100),'3 INCOME & EXPENSE'!$P$14:$P$763))","v":{"v":0,"d":"$0.00"}},{"$f":"(SUMIF('3 INCOME & EXPENSE'!$J$14:$J$763,T('EXPENSE DATABASE'!E100),'3 INCOME & EXPENSE'!$Q$14:$Q$763))","v":{"v":0,"d":"$0.00"}}]
[null,{"$f":"T('ACCOUNTING SETUP'!AI41)","v":"Vendor 33"},33,null,{"$f":"T('EXPENSE DATABASE'!B101)","v":"Vendor 33"},{"$f":"(SUMIF('3 INCOME & EXPENSE'!$J$14:$J$763,T(E101),'3 INCOME & EXPENSE'!$O$14:$O$763))","v":{"v":0,"d":"$0.00"}},{"$f":"(SUMIF('3 INCOME & EXPENSE'!$J$14:$J$763,T('EXPENSE DATABASE'!E101),'3 INCOME & EXPENSE'!$P$14:$P$763))","v":{"v":0,"d":"$0.00"}},{"$f":"(SUMIF('3 INCOME & EXPENSE'!$J$14:$J$763,T('EXPENSE DATABASE'!E101),'3 INCOME & EXPENSE'!$Q$14:$Q$763))","v":{"v":0,"d":"$0.00"}}]
[null,{"$f":"T('ACCOUNTING SETUP'!AI42)","v":"Vendor 34"},34,null,{"$f":"T('EXPENSE DATABASE'!B102)","v":"Vendor 34"},{"$f":"(SUMIF('3 INCOME & EXPENSE'!$J$14:$J$763,T(E102),'3 INCOME & EXPENSE'!$O$14:$O$763))","v":{"v":0,"d":"$0.00"}},{"$f":"(SUMIF('3 INCOME & EXPENSE'!$J$14:$J$763,T('EXPENSE DATABASE'!E102),'3 INCOME & EXPENSE'!$P$14:$P$763))","v":{"v":0,"d":"$0.00"}},{"$f":"(SUMIF('3 INCOME & EXPENSE'!$J$14:$J$763,T('EXPENSE DATABASE'!E102),'3 INCOME & EXPENSE'!$Q$14:$Q$763))","v":{"v":0,"d":"$0.00"}}]
[null,{"$f":"T('ACCOUNTING SETUP'!AI43)","v":"Vendor 35"},35,null,{"$f":"T('EXPENSE DATABASE'!B103)","v":"Vendor 35"},{"$f":"(SUMIF('3 INCOME & EXPENSE'!$J$14:$J$763,T(E103),'3 INCOME & EXPENSE'!$O$14:$O$763))","v":{"v":0,"d":"$0.00"}},{"$f":"(SUMIF('3 INCOME & EXPENSE'!$J$14:$J$763,T('EXPENSE DATABASE'!E103),'3 INCOME & EXPENSE'!$P$14:$P$763))","v":{"v":0,"d":"$0.00"}},{"$f":"(SUMIF('3 INCOME & EXPENSE'!$J$14:$J$763,T('EXPENSE DATABASE'!E103),'3 INCOME & EXPENSE'!$Q$14:$Q$763))","v":{"v":0,"d":"$0.00"}}]
[null,{"$f":"T('ACCOUNTING SETUP'!AI44)","v":"Vendor 36"},36,null,{"$f":"T('EXPENSE DATABASE'!B104)","v":"Vendor 36"},{"$f":"(SUMIF('3 INCOME & EXPENSE'!$J$14:$J$763,T(E104),'3 INCOME & EXPENSE'!$O$14:$O$763))","v":{"v":0,"d":"$0.00"}},{"$f":"(SUMIF('3 INCOME & EXPENSE'!$J$14:$J$763,T('EXPENSE DATABASE'!E104),'3 INCOME & EXPENSE'!$P$14:$P$763))","v":{"v":0,"d":"$0.00"}},{"$f":"(SUMIF('3 INCOME & EXPENSE'!$J$14:$J$763,T('EXPENSE DATABASE'!E104),'3 INCOME & EXPENSE'!$Q$14:$Q$763))","v":{"v":0,"d":"$0.00"}}]
[null,{"$f":"T('ACCOUNTING SETUP'!AI45)","v":"Vendor 37"},37,null,{"$f":"T('EXPENSE DATABASE'!B105)","v":"Vendor 37"},{"$f":"(SUMIF('3 INCOME & EXPENSE'!$J$14:$J$763,T(E105),'3 INCOME & EXPENSE'!$O$14:$O$763))","v":{"v":0,"d":"$0.00"}},{"$f":"(SUMIF('3 INCOME & EXPENSE'!$J$14:$J$763,T('EXPENSE DATABASE'!E105),'3 INCOME & EXPENSE'!$P$14:$P$763))","v":{"v":0,"d":"$0.00"}},{"$f":"(SUMIF('3 INCOME & EXPENSE'!$J$14:$J$763,T('EXPENSE DATABASE'!E105),'3 INCOME & EXPENSE'!$Q$14:$Q$763))","v":{"v":0,"d":"$0.00"}}]
[null,{"$f":"T('ACCOUNTING SETUP'!AI46)","v":"Vendor 38"},38,null,{"$f":"T('EXPENSE DATABASE'!B106)","v":"Vendor 38"},{"$f":"(SUMIF('3 INCOME & EXPENSE'!$J$14:$J$763,T(E106),'3 INCOME & EXPENSE'!$O$14:$O$763))","v":{"v":0,"d":"$0.00"}},{"$f":"(SUMIF('3 INCOME & EXPENSE'!$J$14:$J$763,T('EXPENSE DATABASE'!E106),'3 INCOME & EXPENSE'!$P$14:$P$763))","v":{"v":0,"d":"$0.00"}},{"$f":"(SUMIF('3 INCOME & EXPENSE'!$J$14:$J$763,T('EXPENSE DATABASE'!E106),'3 INCOME & EXPENSE'!$Q$14:$Q$763))","v":{"v":0,"d":"$0.00"}}]
[null,{"$f":"T('ACCOUNTING SETUP'!AI47)","v":"Vendor 39"},39,null,{"$f":"T('EXPENSE DATABASE'!B107)","v":"Vendor 39"},{"$f":"(SUMIF('3 INCOME & EXPENSE'!$J$14:$J$763,T(E107),'3 INCOME & EXPENSE'!$O$14:$O$763))","v":{"v":0,"d":"$0.00"}},{"$f":"(SUMIF('3 INCOME & EXPENSE'!$J$14:$J$763,T('EXPENSE DATABASE'!E107),'3 INCOME & EXPENSE'!$P$14:$P$763))","v":{"v":0,"d":"$0.00"}},{"$f":"(SUMIF('3 INCOME & EXPENSE'!$J$14:$J$763,T('EXPENSE DATABASE'!E107),'3 INCOME & EXPENSE'!$Q$14:$Q$763))","v":{"v":0,"d":"$0.00"}}]
[null,{"$f":"T('ACCOUNTING SETUP'!AI48)","v":"Vendor 40"},40,null,{"$f":"T('EXPENSE DATABASE'!B108)","v":"Vendor 40"},{"$f":"(SUMIF('3 INCOME & EXPENSE'!$J$14:$J$763,T(E108),'3 INCOME & EXPENSE'!$O$14:$O$763))","v":{"v":0,"d":"$0.00"}},{"$f":"(SUMIF('3 INCOME & EXPENSE'!$J$14:$J$763,T('EXPENSE DATABASE'!E108),'3 INCOME & EXPENSE'!$P$14:$P$763))","v":{"v":0,"d":"$0.00"}},{"$f":"(SUMIF('3 INCOME & EXPENSE'!$J$14:$J$763,T('EXPENSE DATABASE'!E108),'3 INCOME & EXPENSE'!$Q$14:$Q$763))","v":{"v":0,"d":"$0.00"}}]
[null,{"$f":"T('ACCOUNTING SETUP'!AI49)","v":"Vendor 41"},41,null,{"$f":"T('EXPENSE DATABASE'!B109)","v":"Vendor 41"},{"$f":"(SUMIF('3 INCOME & EXPENSE'!$J$14:$J$763,T(E109),'3 INCOME & EXPENSE'!$O$14:$O$763))","v":{"v":0,"d":"$0.00"}},{"$f":"(SUMIF('3 INCOME & EXPENSE'!$J$14:$J$763,T('EXPENSE DATABASE'!E109),'3 INCOME & EXPENSE'!$P$14:$P$763))","v":{"v":0,"d":"$0.00"}},{"$f":"(SUMIF('3 INCOME & EXPENSE'!$J$14:$J$763,T('EXPENSE DATABASE'!E109),'3 INCOME & EXPENSE'!$Q$14:$Q$763))","v":{"v":0,"d":"$0.00"}}]
[null,{"$f":"T('ACCOUNTING SETUP'!AI50)","v":"Vendor 42"},42,null,{"$f":"T('EXPENSE DATABASE'!B110)","v":"Vendor 42"},{"$f":"(SUMIF('3 INCOME & EXPENSE'!$J$14:$J$763,T(E110),'3 INCOME & EXPENSE'!$O$14:$O$763))","v":{"v":0,"d":"$0.00"}},{"$f":"(SUMIF('3 INCOME & EXPENSE'!$J$14:$J$763,T('EXPENSE DATABASE'!E110),'3 INCOME & EXPENSE'!$P$14:$P$763))","v":{"v":0,"d":"$0.00"}},{"$f":"(SUMIF('3 INCOME & EXPENSE'!$J$14:$J$763,T('EXPENSE DATABASE'!E110),'3 INCOME & EXPENSE'!$Q$14:$Q$763))","v":{"v":0,"d":"$0.00"}}]
[null,{"$f":"T('ACCOUNTING SETUP'!#REF!)","v":{"$error":"#REF!"}},43,null,{"$f":"T('EXPENSE DATABASE'!B111)","v":{"$error":"#REF!"}},{"$f":"(SUMIF('3 INCOME & EXPENSE'!$J$14:$J$763,T(E111),'3 INCOME & EXPENSE'!$O$14:$O$763))","v":{"v":0,"d":"$0.00"}},{"$f":"(SUMIF('3 INCOME & EXPENSE'!$J$14:$J$763,T('EXPENSE DATABASE'!E111),'3 INCOME & EXPENSE'!$P$14:$P$763))","v":{"v":0,"d":"$0.00"}},{"$f":"(SUMIF('3 INCOME & EXPENSE'!$J$14:$J$763,T('EXPENSE DATABASE'!E111),'3 INCOME & EXPENSE'!$Q$14:$Q$763))","v":{"v":0,"d":"$0.00"}}]
[null,{"$f":"T('ACCOUNTING SETUP'!#REF!)","v":{"$error":"#REF!"}},44,null,{"$f":"T('EXPENSE DATABASE'!B112)","v":{"$error":"#REF!"}},{"$f":"(SUMIF('3 INCOME & EXPENSE'!$J$14:$J$763,T(E112),'3 INCOME & EXPENSE'!$O$14:$O$763))","v":{"v":0,"d":"$0.00"}},{"$f":"(SUMIF('3 INCOME & EXPENSE'!$J$14:$J$763,T('EXPENSE DATABASE'!E112),'3 INCOME & EXPENSE'!$P$14:$P$763))","v":{"v":0,"d":"$0.00"}},{"$f":"(SUMIF('3 INCOME & EXPENSE'!$J$14:$J$763,T('EXPENSE DATABASE'!E112),'3 INCOME & EXPENSE'!$Q$14:$Q$763))","v":{"v":0,"d":"$0.00"}}]
[null,{"$f":"T('ACCOUNTING SETUP'!#REF!)","v":{"$error":"#REF!"}},45,null,{"$f":"T('EXPENSE DATABASE'!B113)","v":{"$error":"#REF!"}},{"$f":"(SUMIF('3 INCOME & EXPENSE'!$J$14:$J$763,T(E113),'3 INCOME & EXPENSE'!$O$14:$O$763))","v":{"v":0,"d":"$0.00"}},{"$f":"(SUMIF('3 INCOME & EXPENSE'!$J$14:$J$763,T('EXPENSE DATABASE'!E113),'3 INCOME & EXPENSE'!$P$14:$P$763))","v":{"v":0,"d":"$0.00"}},{"$f":"(SUMIF('3 INCOME & EXPENSE'!$J$14:$J$763,T('EXPENSE DATABASE'!E113),'3 INCOME & EXPENSE'!$Q$14:$Q$763))","v":{"v":0,"d":"$0.00"}}]
[null,{"$f":"T('ACCOUNTING SETUP'!#REF!)","v":{"$error":"#REF!"}},46,null,{"$f":"T('EXPENSE DATABASE'!B114)","v":{"$error":"#REF!"}},{"$f":"(SUMIF('3 INCOME & EXPENSE'!$J$14:$J$763,T(E114),'3 INCOME & EXPENSE'!$O$14:$O$763))","v":{"v":0,"d":"$0.00"}},{"$f":"(SUMIF('3 INCOME & EXPENSE'!$J$14:$J$763,T('EXPENSE DATABASE'!E114),'3 INCOME & EXPENSE'!$P$14:$P$763))","v":{"v":0,"d":"$0.00"}},{"$f":"(SUMIF('3 INCOME & EXPENSE'!$J$14:$J$763,T('EXPENSE DATABASE'!E114),'3 INCOME & EXPENSE'!$Q$14:$Q$763))","v":{"v":0,"d":"$0.00"}}]
[null,{"$f":"T('ACCOUNTING SETUP'!#REF!)","v":{"$error":"#REF!"}},47,null,{"$f":"T('EXPENSE DATABASE'!B115)","v":{"$error":"#REF!"}},{"$f":"(SUMIF('3 INCOME & EXPENSE'!$J$14:$J$763,T(E115),'3 INCOME & EXPENSE'!$O$14:$O$763))","v":{"v":0,"d":"$0.00"}},{"$f":"(SUMIF('3 INCOME & EXPENSE'!$J$14:$J$763,T('EXPENSE DATABASE'!E115),'3 INCOME & EXPENSE'!$P$14:$P$763))","v":{"v":0,"d":"$0.00"}},{"$f":"(SUMIF('3 INCOME & EXPENSE'!$J$14:$J$763,T('EXPENSE DATABASE'!E115),'3 INCOME & EXPENSE'!$Q$14:$Q$763))","v":{"v":0,"d":"$0.00"}}]
[null,{"$f":"T('ACCOUNTING SETUP'!#REF!)","v":{"$error":"#REF!"}},48,null,{"$f":"T('EXPENSE DATABASE'!B116)","v":{"$error":"#REF!"}},{"$f":"(SUMIF('3 INCOME & EXPENSE'!$J$14:$J$763,T(E116),'3 INCOME & EXPENSE'!$O$14:$O$763))","v":{"v":0,"d":"$0.00"}},{"$f":"(SUMIF('3 INCOME & EXPENSE'!$J$14:$J$763,T('EXPENSE DATABASE'!E116),'3 INCOME & EXPENSE'!$P$14:$P$763))","v":{"v":0,"d":"$0.00"}},{"$f":"(SUMIF('3 INCOME & EXPENSE'!$J$14:$J$763,T('EXPENSE DATABASE'!E116),'3 INCOME & EXPENSE'!$Q$14:$Q$763))","v":{"v":0,"d":"$0.00"}}]
[null,{"$f":"T('ACCOUNTING SETUP'!#REF!)","v":{"$error":"#REF!"}},49,null,{"$f":"T('EXPENSE DATABASE'!B117)","v":{"$error":"#REF!"}},{"$f":"(SUMIF('3 INCOME & EXPENSE'!$J$14:$J$763,T(E117),'3 INCOME & EXPENSE'!$O$14:$O$763))","v":{"v":0,"d":"$0.00"}},{"$f":"(SUMIF('3 INCOME & EXPENSE'!$J$14:$J$763,T('EXPENSE DATABASE'!E117),'3 INCOME & EXPENSE'!$P$14:$P$763))","v":{"v":0,"d":"$0.00"}},{"$f":"(SUMIF('3 INCOME & EXPENSE'!$J$14:$J$763,T('EXPENSE DATABASE'!E117),'3 INCOME & EXPENSE'!$Q$14:$Q$763))","v":{"v":0,"d":"$0.00"}}]
[null,{"$f":"T('ACCOUNTING SETUP'!#REF!)","v":{"$error":"#REF!"}},50,null,{"$f":"T('EXPENSE DATABASE'!B118)","v":{"$error":"#REF!"}},{"$f":"(SUMIF('3 INCOME & EXPENSE'!$J$14:$J$763,T(E118),'3 INCOME & EXPENSE'!$O$14:$O$763))","v":{"v":0,"d":"$0.00"}},{"$f":"(SUMIF('3 INCOME & EXPENSE'!$J$14:$J$763,T('EXPENSE DATABASE'!E118),'3 INCOME & EXPENSE'!$P$14:$P$763))","v":{"v":0,"d":"$0.00"}},{"$f":"(SUMIF('3 INCOME & EXPENSE'!$J$14:$J$763,T('EXPENSE DATABASE'!E118),'3 INCOME & EXPENSE'!$Q$14:$Q$763))","v":{"v":0,"d":"$0.00"}}]
[null,{"$f":"T('ACCOUNTING SETUP'!#REF!)","v":{"$error":"#REF!"}},51,null,{"$f":"T('EXPENSE DATABASE'!B119)","v":{"$error":"#REF!"}},{"$f":"(SUMIF('3 INCOME & EXPENSE'!$J$14:$J$763,T(E119),'3 INCOME & EXPENSE'!$O$14:$O$763))","v":{"v":0,"d":"$0.00"}},{"$f":"(SUMIF('3 INCOME & EXPENSE'!$J$14:$J$763,T('EXPENSE DATABASE'!E119),'3 INCOME & EXPENSE'!$P$14:$P$763))","v":{"v":0,"d":"$0.00"}},{"$f":"(SUMIF('3 INCOME & EXPENSE'!$J$14:$J$763,T('EXPENSE DATABASE'!E119),'3 INCOME & EXPENSE'!$Q$14:$Q$763))","v":{"v":0,"d":"$0.00"}}]
[null,{"$f":"T('ACCOUNTING SETUP'!#REF!)","v":{"$error":"#REF!"}},52,null,{"$f":"T('EXPENSE DATABASE'!B120)","v":{"$error":"#REF!"}},{"$f":"(SUMIF('3 INCOME & EXPENSE'!$J$14:$J$763,T(E120),'3 INCOME & EXPENSE'!$O$14:$O$763))","v":{"v":0,"d":"$0.00"}},{"$f":"(SUMIF('3 INCOME & EXPENSE'!$J$14:$J$763,T('EXPENSE DATABASE'!E120),'3 INCOME & EXPENSE'!$P$14:$P$763))","v":{"v":0,"d":"$0.00"}},{"$f":"(SUMIF('3 INCOME & EXPENSE'!$J$14:$J$763,T('EXPENSE DATABASE'!E120),'3 INCOME & EXPENSE'!$Q$14:$Q$763))","v":{"v":0,"d":"$0.00"}}]
[null,{"$f":"T('ACCOUNTING SETUP'!#REF!)","v":{"$error":"#REF!"}},53,null,{"$f":"T('EXPENSE DATABASE'!B121)","v":{"$error":"#REF!"}},{"$f":"(SUMIF('3 INCOME & EXPENSE'!$J$14:$J$763,T(E121),'3 INCOME & EXPENSE'!$O$14:$O$763))","v":{"v":0,"d":"$0.00"}},{"$f":"(SUMIF('3 INCOME & EXPENSE'!$J$14:$J$763,T('EXPENSE DATABASE'!E121),'3 INCOME & EXPENSE'!$P$14:$P$763))","v":{"v":0,"d":"$0.00"}},{"$f":"(SUMIF('3 INCOME & EXPENSE'!$J$14:$J$763,T('EXPENSE DATABASE'!E121),'3 INCOME & EXPENSE'!$Q$14:$Q$763))","v":{"v":0,"d":"$0.00"}}]
[null,{"$f":"T('ACCOUNTING SETUP'!#REF!)","v":{"$error":"#REF!"}},54,null,{"$f":"T('EXPENSE DATABASE'!B122)","v":{"$error":"#REF!"}},{"$f":"(SUMIF('3 INCOME & EXPENSE'!$J$14:$J$763,T(E122),'3 INCOME & EXPENSE'!$O$14:$O$763))","v":{"v":0,"d":"$0.00"}},{"$f":"(SUMIF('3 INCOME & EXPENSE'!$J$14:$J$763,T('EXPENSE DATABASE'!E122),'3 INCOME & EXPENSE'!$P$14:$P$763))","v":{"v":0,"d":"$0.00"}},{"$f":"(SUMIF('3 INCOME & EXPENSE'!$J$14:$J$763,T('EXPENSE DATABASE'!E122),'3 INCOME & EXPENSE'!$Q$14:$Q$763))","v":{"v":0,"d":"$0.00"}}]
[null,{"$f":"T('ACCOUNTING SETUP'!AI51)","v":"Vendor 55"},55,null,{"$f":"T('EXPENSE DATABASE'!B123)","v":"Vendor 55"},{"$f":"(SUMIF('3 INCOME & EXPENSE'!$J$14:$J$763,T(E123),'3 INCOME & EXPENSE'!$O$14:$O$763))","v":{"v":0,"d":"$0.00"}},{"$f":"(SUMIF('3 INCOME & EXPENSE'!$J$14:$J$763,T('EXPENSE DATABASE'!E123),'3 INCOME & EXPENSE'!$P$14:$P$763))","v":{"v":0,"d":"$0.00"}},{"$f":"(SUMIF('3 INCOME & EXPENSE'!$J$14:$J$763,T('EXPENSE DATABASE'!E123),'3 INCOME & EXPENSE'!$Q$14:$Q$763))","v":{"v":0,"d":"$0.00"}}]
[null,{"$f":"T('ACCOUNTING SETUP'!AI52)","v":"Vendor 56"},56,null,{"$f":"T('EXPENSE DATABASE'!B124)","v":"Vendor 56"},{"$f":"(SUMIF('3 INCOME & EXPENSE'!$J$14:$J$763,T(E124),'3 INCOME & EXPENSE'!$O$14:$O$763))","v":{"v":0,"d":"$0.00"}},{"$f":"(SUMIF('3 INCOME & EXPENSE'!$J$14:$J$763,T('EXPENSE DATABASE'!E124),'3 INCOME & EXPENSE'!$P$14:$P$763))","v":{"v":0,"d":"$0.00"}},{"$f":"(SUMIF('3 INCOME & EXPENSE'!$J$14:$J$763,T('EXPENSE DATABASE'!E124),'3 INCOME & EXPENSE'!$Q$14:$Q$763))","v":{"v":0,"d":"$0.00"}}]
[null,{"$f":"T('ACCOUNTING SETUP'!AI53)","v":"Vendor 57"},57,null,{"$f":"T('EXPENSE DATABASE'!B125)","v":"Vendor 57"},{"$f":"(SUMIF('3 INCOME & EXPENSE'!$J$14:$J$763,T(E125),'3 INCOME & EXPENSE'!$O$14:$O$763))","v":{"v":0,"d":"$0.00"}},{"$f":"(SUMIF('3 INCOME & EXPENSE'!$J$14:$J$763,T('EXPENSE DATABASE'!E125),'3 INCOME & EXPENSE'!$P$14:$P$763))","v":{"v":0,"d":"$0.00"}},{"$f":"(SUMIF('3 INCOME & EXPENSE'!$J$14:$J$763,T('EXPENSE DATABASE'!E125),'3 INCOME & EXPENSE'!$Q$14:$Q$763))","v":{"v":0,"d":"$0.00"}}]
[null,{"$f":"T('ACCOUNTING SETUP'!AI54)","v":"Vendor 58"},58,null,{"$f":"T('EXPENSE DATABASE'!B126)","v":"Vendor 58"},{"$f":"(SUMIF('3 INCOME & EXPENSE'!$J$14:$J$763,T(E126),'3 INCOME & EXPENSE'!$O$14:$O$763))","v":{"v":0,"d":"$0.00"}},{"$f":"(SUMIF('3 INCOME & EXPENSE'!$J$14:$J$763,T('EXPENSE DATABASE'!E126),'3 INCOME & EXPENSE'!$P$14:$P$763))","v":{"v":0,"d":"$0.00"}},{"$f":"(SUMIF('3 INCOME & EXPENSE'!$J$14:$J$763,T('EXPENSE DATABASE'!E126),'3 INCOME & EXPENSE'!$Q$14:$Q$763))","v":{"v":0,"d":"$0.00"}}]
[null,{"$f":"T('ACCOUNTING SETUP'!AI55)","v":"Vendor 59"},59,null,{"$f":"T('EXPENSE DATABASE'!B127)","v":"Vendor 59"},{"$f":"(SUMIF('3 INCOME & EXPENSE'!$J$14:$J$763,T(E127),'3 INCOME & EXPENSE'!$O$14:$O$763))","v":{"v":0,"d":"$0.00"}},{"$f":"(SUMIF('3 INCOME & EXPENSE'!$J$14:$J$763,T('EXPENSE DATABASE'!E127),'3 INCOME & EXPENSE'!$P$14:$P$763))","v":{"v":0,"d":"$0.00"}},{"$f":"(SUMIF('3 INCOME & EXPENSE'!$J$14:$J$763,T('EXPENSE DATABASE'!E127),'3 INCOME & EXPENSE'!$Q$14:$Q$763))","v":{"v":0,"d":"$0.00"}}]
[null,{"$f":"T('ACCOUNTING SETUP'!AI56)","v":"Vendor 60"},60,null,{"$f":"T('EXPENSE DATABASE'!B128)","v":"Vendor 60"},{"$f":"(SUMIF('3 INCOME & EXPENSE'!$J$14:$J$763,T(E128),'3 INCOME & EXPENSE'!$O$14:$O$763))","v":{"v":0,"d":"$0.00"}},{"$f":"(SUMIF('3 INCOME & EXPENSE'!$J$14:$J$763,T('EXPENSE DATABASE'!E128),'3 INCOME & EXPENSE'!$P$14:$P$763))","v":{"v":0,"d":"$0.00"}},{"$f":"(SUMIF('3 INCOME & EXPENSE'!$J$14:$J$763,T('EXPENSE DATABASE'!E128),'3 INCOME & EXPENSE'!$Q$14:$Q$763))","v":{"v":0,"d":"$0.00"}}]
[null,{"$f":"T('ACCOUNTING SETUP'!AI57)","v":"Vendor 61"},61,null,{"$f":"T('EXPENSE DATABASE'!B129)","v":"Vendor 61"},{"$f":"(SUMIF('3 INCOME & EXPENSE'!$J$14:$J$763,T(E129),'3 INCOME & EXPENSE'!$O$14:$O$763))","v":{"v":0,"d":"$0.00"}},{"$f":"(SUMIF('3 INCOME & EXPENSE'!$J$14:$J$763,T('EXPENSE DATABASE'!E129),'3 INCOME & EXPENSE'!$P$14:$P$763))","v":{"v":0,"d":"$0.00"}},{"$f":"(SUMIF('3 INCOME & EXPENSE'!$J$14:$J$763,T('EXPENSE DATABASE'!E129),'3 INCOME & EXPENSE'!$Q$14:$Q$763))","v":{"v":0,"d":"$0.00"}}]
[null,{"$f":"T('ACCOUNTING SETUP'!AI58)","v":"Vendor 62"},62,null,{"$f":"T('EXPENSE DATABASE'!B130)","v":"Vendor 62"},{"$f":"(SUMIF('3 INCOME & EXPENSE'!$J$14:$J$763,T(E130),'3 INCOME & EXPENSE'!$O$14:$O$763))","v":{"v":0,"d":"$0.00"}},{"$f":"(SUMIF('3 INCOME & EXPENSE'!$J$14:$J$763,T('EXPENSE DATABASE'!E130),'3 INCOME & EXPENSE'!$P$14:$P$763))","v":{"v":0,"d":"$0.00"}},{"$f":"(SUMIF('3 INCOME & EXPENSE'!$J$14:$J$763,T('EXPENSE DATABASE'!E130),'3 INCOME & EXPENSE'!$Q$14:$Q$763))","v":{"v":0,"d":"$0.00"}}]
[null,{"$f":"T('ACCOUNTING SETUP'!AI59)","v":"Vendor 63"},63,null,{"$f":"T('EXPENSE DATABASE'!B131)","v":"Vendor 63"},{"$f":"(SUMIF('3 INCOME & EXPENSE'!$J$14:$J$763,T(E131),'3 INCOME & EXPENSE'!$O$14:$O$763))","v":{"v":0,"d":"$0.00"}},{"$f":"(SUMIF('3 INCOME & EXPENSE'!$J$14:$J$763,T('EXPENSE DATABASE'!E131),'3 INCOME & EXPENSE'!$P$14:$P$763))","v":{"v":0,"d":"$0.00"}},{"$f":"(SUMIF('3 INCOME & EXPENSE'!$J$14:$J$763,T('EXPENSE DATABASE'!E131),'3 INCOME & EXPENSE'!$Q$14:$Q$763))","v":{"v":0,"d":"$0.00"}}]
[null,{"$f":"T('ACCOUNTING SETUP'!AI60)","v":"Vendor 64"},64,null,{"$f":"T('EXPENSE DATABASE'!B132)","v":"Vendor 64"},{"$f":"(SUMIF('3 INCOME & EXPENSE'!$J$14:$J$763,T(E132),'3 INCOME & EXPENSE'!$O$14:$O$763))","v":{"v":0,"d":"$0.00"}},{"$f":"(SUMIF('3 INCOME & EXPENSE'!$J$14:$J$763,T('EXPENSE DATABASE'!E132),'3 INCOME & EXPENSE'!$P$14:$P$763))","v":{"v":0,"d":"$0.00"}},{"$f":"(SUMIF('3 INCOME & EXPENSE'!$J$14:$J$763,T('EXPENSE DATABASE'!E132),'3 INCOME & EXPENSE'!$Q$14:$Q$763))","v":{"v":0,"d":"$0.00"}}]
[null,{"$f":"T('ACCOUNTING SETUP'!AI61)","v":"Vendor 65"},65,null,{"$f":"T('EXPENSE DATABASE'!B133)","v":"Vendor 65"},{"$f":"(SUMIF('3 INCOME & EXPENSE'!$J$14:$J$763,T(E133),'3 INCOME & EXPENSE'!$O$14:$O$763))","v":{"v":0,"d":"$0.00"}},{"$f":"(SUMIF('3 INCOME & EXPENSE'!$J$14:$J$763,T('EXPENSE DATABASE'!E133),'3 INCOME & EXPENSE'!$P$14:$P$763))","v":{"v":0,"d":"$0.00"}},{"$f":"(SUMIF('3 INCOME & EXPENSE'!$J$14:$J$763,T('EXPENSE DATABASE'!E133),'3 INCOME & EXPENSE'!$Q$14:$Q$763))","v":{"v":0,"d":"$0.00"}}]
[null,{"$f":"T('ACCOUNTING SETUP'!AI62)","v":"Vendor 66"},66,null,{"$f":"T('EXPENSE DATABASE'!B134)","v":"Vendor 66"},{"$f":"(SUMIF('3 INCOME & EXPENSE'!$J$14:$J$763,T(E134),'3 INCOME & EXPENSE'!$O$14:$O$763))","v":{"v":0,"d":"$0.00"}},{"$f":"(SUMIF('3 INCOME & EXPENSE'!$J$14:$J$763,T('EXPENSE DATABASE'!E134),'3 INCOME & EXPENSE'!$P$14:$P$763))","v":{"v":0,"d":"$0.00"}},{"$f":"(SUMIF('3 INCOME & EXPENSE'!$J$14:$J$763,T('EXPENSE DATABASE'!E134),'3 INCOME & EXPENSE'!$Q$14:$Q$763))","v":{"v":0,"d":"$0.00"}}]
[null,{"$f":"T('ACCOUNTING SETUP'!AI63)","v":"Vendor 67"},67,null,{"$f":"T('EXPENSE DATABASE'!B135)","v":"Vendor 67"},{"$f":"(SUMIF('3 INCOME & EXPENSE'!$J$14:$J$763,T(E135),'3 INCOME & EXPENSE'!$O$14:$O$763))","v":{"v":0,"d":"$0.00"}},{"$f":"(SUMIF('3 INCOME & EXPENSE'!$J$14:$J$763,T('EXPENSE DATABASE'!E135),'3 INCOME & EXPENSE'!$P$14:$P$763))","v":{"v":0,"d":"$0.00"}},{"$f":"(SUMIF('3 INCOME & EXPENSE'!$J$14:$J$763,T('EXPENSE DATABASE'!E135),'3 INCOME & EXPENSE'!$Q$14:$Q$763))","v":{"v":0,"d":"$0.00"}}]
[null,{"$f":"T('ACCOUNTING SETUP'!AI64)","v":"Vendor 68"},68,null,{"$f":"T('EXPENSE DATABASE'!B136)","v":"Vendor 68"},{"$f":"(SUMIF('3 INCOME & EXPENSE'!$J$14:$J$763,T(E136),'3 INCOME & EXPENSE'!$O$14:$O$763))","v":{"v":0,"d":"$0.00"}},{"$f":"(SUMIF('3 INCOME & EXPENSE'!$J$14:$J$763,T('EXPENSE DATABASE'!E136),'3 INCOME & EXPENSE'!$P$14:$P$763))","v":{"v":0,"d":"$0.00"}},{"$f":"(SUMIF('3 INCOME & EXPENSE'!$J$14:$J$763,T('EXPENSE DATABASE'!E136),'3 INCOME & EXPENSE'!$Q$14:$Q$763))","v":{"v":0,"d":"$0.00"}}]
[null,{"$f":"T('ACCOUNTING SETUP'!AI65)","v":"Vendor 69"},69,null,{"$f":"T('EXPENSE DATABASE'!B137)","v":"Vendor 69"},{"$f":"(SUMIF('3 INCOME & EXPENSE'!$J$14:$J$763,T(E137),'3 INCOME & EXPENSE'!$O$14:$O$763))","v":{"v":0,"d":"$0.00"}},{"$f":"(SUMIF('3 INCOME & EXPENSE'!$J$14:$J$763,T('EXPENSE DATABASE'!E137),'3 INCOME & EXPENSE'!$P$14:$P$763))","v":{"v":0,"d":"$0.00"}},{"$f":"(SUMIF('3 INCOME & EXPENSE'!$J$14:$J$763,T('EXPENSE DATABASE'!E137),'3 INCOME & EXPENSE'!$Q$14:$Q$763))","v":{"v":0,"d":"$0.00"}}]
[null,{"$f":"T('ACCOUNTING SETUP'!AI66)","v":"Vendor 70"},70,null,{"$f":"T('EXPENSE DATABASE'!B138)","v":"Vendor 70"},{"$f":"(SUMIF('3 INCOME & EXPENSE'!$J$14:$J$763,T(E138),'3 INCOME & EXPENSE'!$O$14:$O$763))","v":{"v":0,"d":"$0.00"}},{"$f":"(SUMIF('3 INCOME & EXPENSE'!$J$14:$J$763,T('EXPENSE DATABASE'!E138),'3 INCOME & EXPENSE'!$P$14:$P$763))","v":{"v":0,"d":"$0.00"}},{"$f":"(SUMIF('3 INCOME & EXPENSE'!$J$14:$J$763,T('EXPENSE DATABASE'!E138),'3 INCOME & EXPENSE'!$Q$14:$Q$763))","v":{"v":0,"d":"$0.00"}}]
[null,{"$f":"T('ACCOUNTING SETUP'!AI67)","v":"Vendor 71"},71,null,{"$f":"T('EXPENSE DATABASE'!B139)","v":"Vendor 71"},{"$f":"(SUMIF('3 INCOME & EXPENSE'!$J$14:$J$763,T(E139),'3 INCOME & EXPENSE'!$O$14:$O$763))","v":{"v":0,"d":"$0.00"}},{"$f":"(SUMIF('3 INCOME & EXPENSE'!$J$14:$J$763,T('EXPENSE DATABASE'!E139),'3 INCOME & EXPENSE'!$P$14:$P$763))","v":{"v":0,"d":"$0.00"}},{"$f":"(SUMIF('3 INCOME & EXPENSE'!$J$14:$J$763,T('EXPENSE DATABASE'!E139),'3 INCOME & EXPENSE'!$Q$14:$Q$763))","v":{"v":0,"d":"$0.00"}}]
[null,{"$f":"T('ACCOUNTING SETUP'!AI68)","v":"Vendor 72"},72,null,{"$f":"T('EXPENSE DATABASE'!B140)","v":"Vendor 72"},{"$f":"(SUMIF('3 INCOME & EXPENSE'!$J$14:$J$763,T(E140),'3 INCOME & EXPENSE'!$O$14:$O$763))","v":{"v":0,"d":"$0.00"}},{"$f":"(SUMIF('3 INCOME & EXPENSE'!$J$14:$J$763,T('EXPENSE DATABASE'!E140),'3 INCOME & EXPENSE'!$P$14:$P$763))","v":{"v":0,"d":"$0.00"}},{"$f":"(SUMIF('3 INCOME & EXPENSE'!$J$14:$J$763,T('EXPENSE DATABASE'!E140),'3 INCOME & EXPENSE'!$Q$14:$Q$763))","v":{"v":0,"d":"$0.00"}}]
[null,{"$f":"T('ACCOUNTING SETUP'!AI69)","v":"Vendor 73"},73,null,{"$f":"T('EXPENSE DATABASE'!B141)","v":"Vendor 73"},{"$f":"(SUMIF('3 INCOME & EXPENSE'!$J$14:$J$763,T(E141),'3 INCOME & EXPENSE'!$O$14:$O$763))","v":{"v":0,"d":"$0.00"}},{"$f":"(SUMIF('3 INCOME & EXPENSE'!$J$14:$J$763,T('EXPENSE DATABASE'!E141),'3 INCOME & EXPENSE'!$P$14:$P$763))","v":{"v":0,"d":"$0.00"}},{"$f":"(SUMIF('3 INCOME & EXPENSE'!$J$14:$J$763,T('EXPENSE DATABASE'!E141),'3 INCOME & EXPENSE'!$Q$14:$Q$763))","v":{"v":0,"d":"$0.00"}}]
[null,{"$f":"T('ACCOUNTING SETUP'!AI70)","v":"Vendor 74"},74,null,{"$f":"T('EXPENSE DATABASE'!B142)","v":"Vendor 74"},{"$f":"(SUMIF('3 INCOME & EXPENSE'!$J$14:$J$763,T(E142),'3 INCOME & EXPENSE'!$O$14:$O$763))","v":{"v":0,"d":"$0.00"}},{"$f":"(SUMIF('3 INCOME & EXPENSE'!$J$14:$J$763,T('EXPENSE DATABASE'!E142),'3 INCOME & EXPENSE'!$P$14:$P$763))","v":{"v":0,"d":"$0.00"}},{"$f":"(SUMIF('3 INCOME & EXPENSE'!$J$14:$J$763,T('EXPENSE DATABASE'!E142),'3 INCOME & EXPENSE'!$Q$14:$Q$763))","v":{"v":0,"d":"$0.00"}}]
[null,{"$f":"T('ACCOUNTING SETUP'!AI71)","v":"Vendor 75"},75,null,{"$f":"T('EXPENSE DATABASE'!B143)","v":"Vendor 75"},{"$f":"(SUMIF('3 INCOME & EXPENSE'!$J$14:$J$763,T(E143),'3 INCOME & EXPENSE'!$O$14:$O$763))","v":{"v":0,"d":"$0.00"}},{"$f":"(SUMIF('3 INCOME & EXPENSE'!$J$14:$J$763,T('EXPENSE DATABASE'!E143),'3 INCOME & EXPENSE'!$P$14:$P$763))","v":{"v":0,"d":"$0.00"}},{"$f":"(SUMIF('3 INCOME & EXPENSE'!$J$14:$J$763,T('EXPENSE DATABASE'!E143),'3 INCOME & EXPENSE'!$Q$14:$Q$763))","v":{"v":0,"d":"$0.00"}}]
[null,{"$f":"T('ACCOUNTING SETUP'!AI72)","v":"Vendor 76"},76,null,{"$f":"T('EXPENSE DATABASE'!B144)","v":"Vendor 76"},{"$f":"(SUMIF('3 INCOME & EXPENSE'!$J$14:$J$763,T(E144),'3 INCOME & EXPENSE'!$O$14:$O$763))","v":{"v":0,"d":"$0.00"}},{"$f":"(SUMIF('3 INCOME & EXPENSE'!$J$14:$J$763,T('EXPENSE DATABASE'!E144),'3 INCOME & EXPENSE'!$P$14:$P$763))","v":{"v":0,"d":"$0.00"}},{"$f":"(SUMIF('3 INCOME & EXPENSE'!$J$14:$J$763,T('EXPENSE DATABASE'!E144),'3 INCOME & EXPENSE'!$Q$14:$Q$763))","v":{"v":0,"d":"$0.00"}}]
[null,{"$f":"T('ACCOUNTING SETUP'!AI73)","v":"Vendor 77"},77,null,{"$f":"T('EXPENSE DATABASE'!B145)","v":"Vendor 77"},{"$f":"(SUMIF('3 INCOME & EXPENSE'!$J$14:$J$763,T(E145),'3 INCOME & EXPENSE'!$O$14:$O$763))","v":{"v":0,"d":"$0.00"}},{"$f":"(SUMIF('3 INCOME & EXPENSE'!$J$14:$J$763,T('EXPENSE DATABASE'!E145),'3 INCOME & EXPENSE'!$P$14:$P$763))","v":{"v":0,"d":"$0.00"}},{"$f":"(SUMIF('3 INCOME & EXPENSE'!$J$14:$J$763,T('EXPENSE DATABASE'!E145),'3 INCOME & EXPENSE'!$Q$14:$Q$763))","v":{"v":0,"d":"$0.00"}}]
[null,{"$f":"T('ACCOUNTING SETUP'!AI74)","v":"Vendor 78"},78,null,{"$f":"T('EXPENSE DATABASE'!B146)","v":"Vendor 78"},{"$f":"(SUMIF('3 INCOME & EXPENSE'!$J$14:$J$763,T(E146),'3 INCOME & EXPENSE'!$O$14:$O$763))","v":{"v":0,"d":"$0.00"}},{"$f":"(SUMIF('3 INCOME & EXPENSE'!$J$14:$J$763,T('EXPENSE DATABASE'!E146),'3 INCOME & EXPENSE'!$P$14:$P$763))","v":{"v":0,"d":"$0.00"}},{"$f":"(SUMIF('3 INCOME & EXPENSE'!$J$14:$J$763,T('EXPENSE DATABASE'!E146),'3 INCOME & EXPENSE'!$Q$14:$Q$763))","v":{"v":0,"d":"$0.00"}}]
[null,{"$f":"T('ACCOUNTING SETUP'!AI75)","v":"Vendor 79"},79,null,{"$f":"T('EXPENSE DATABASE'!B147)","v":"Vendor 79"},{"$f":"(SUMIF('3 INCOME & EXPENSE'!$J$14:$J$763,T(E147),'3 INCOME & EXPENSE'!$O$14:$O$763))","v":{"v":0,"d":"$0.00"}},{"$f":"(SUMIF('3 INCOME & EXPENSE'!$J$14:$J$763,T('EXPENSE DATABASE'!E147),'3 INCOME & EXPENSE'!$P$14:$P$763))","v":{"v":0,"d":"$0.00"}},{"$f":"(SUMIF('3 INCOME & EXPENSE'!$J$14:$J$763,T('EXPENSE DATABASE'!E147),'3 INCOME & EXPENSE'!$Q$14:$Q$763))","v":{"v":0,"d":"$0.00"}}]
[null,{"$f":"T('ACCOUNTING SETUP'!AI76)","v":"Vendor 80"},80,null,{"$f":"T('EXPENSE DATABASE'!B148)","v":"Vendor 80"},{"$f":"(SUMIF('3 INCOME & EXPENSE'!$J$14:$J$763,T(E148),'3 INCOME & EXPENSE'!$O$14:$O$763))","v":{"v":0,"d":"$0.00"}},{"$f":"(SUMIF('3 INCOME & EXPENSE'!$J$14:$J$763,T('EXPENSE DATABASE'!E148),'3 INCOME & EXPENSE'!$P$14:$P$763))","v":{"v":0,"d":"$0.00"}},{"$f":"(SUMIF('3 INCOME & EXPENSE'!$J$14:$J$763,T('EXPENSE DATABASE'!E148),'3 INCOME & EXPENSE'!$Q$14:$Q$763))","v":{"v":0,"d":"$0.00"}}]
[null,{"$f":"T('ACCOUNTING SETUP'!AI77)","v":"Vendor 81"},81,null,{"$f":"T('EXPENSE DATABASE'!B149)","v":"Vendor 81"},{"$f":"(SUMIF('3 INCOME & EXPENSE'!$J$14:$J$763,T(E149),'3 INCOME & EXPENSE'!$O$14:$O$763))","v":{"v":0,"d":"$0.00"}},{"$f":"(SUMIF('3 INCOME & EXPENSE'!$J$14:$J$763,T('EXPENSE DATABASE'!E149),'3 INCOME & EXPENSE'!$P$14:$P$763))","v":{"v":0,"d":"$0.00"}},{"$f":"(SUMIF('3 INCOME & EXPENSE'!$J$14:$J$763,T('EXPENSE DATABASE'!E149),'3 INCOME & EXPENSE'!$Q$14:$Q$763))","v":{"v":0,"d":"$0.00"}}]
[null,{"$f":"T('ACCOUNTING SETUP'!AI78)","v":"Vendor 82"},82,null,{"$f":"T('EXPENSE DATABASE'!B150)","v":"Vendor 82"},{"$f":"(SUMIF('3 INCOME & EXPENSE'!$J$14:$J$763,T(E150),'3 INCOME & EXPENSE'!$O$14:$O$763))","v":{"v":0,"d":"$0.00"}},{"$f":"(SUMIF('3 INCOME & EXPENSE'!$J$14:$J$763,T('EXPENSE DATABASE'!E150),'3 INCOME & EXPENSE'!$P$14:$P$763))","v":{"v":0,"d":"$0.00"}},{"$f":"(SUMIF('3 INCOME & EXPENSE'!$J$14:$J$763,T('EXPENSE DATABASE'!E150),'3 INCOME & EXPENSE'!$Q$14:$Q$763))","v":{"v":0,"d":"$0.00"}}]
[null,{"$f":"T('ACCOUNTING SETUP'!AI79)","v":"Vendor 83"},83,null,{"$f":"T('EXPENSE DATABASE'!B151)","v":"Vendor 83"},{"$f":"(SUMIF('3 INCOME & EXPENSE'!$J$14:$J$763,T(E151),'3 INCOME & EXPENSE'!$O$14:$O$763))","v":{"v":0,"d":"$0.00"}},{"$f":"(SUMIF('3 INCOME & EXPENSE'!$J$14:$J$763,T('EXPENSE DATABASE'!E151),'3 INCOME & EXPENSE'!$P$14:$P$763))","v":{"v":0,"d":"$0.00"}},{"$f":"(SUMIF('3 INCOME & EXPENSE'!$J$14:$J$763,T('EXPENSE DATABASE'!E151),'3 INCOME & EXPENSE'!$Q$14:$Q$763))","v":{"v":0,"d":"$0.00"}}]
[null,{"$f":"T('ACCOUNTING SETUP'!AI80)","v":"Vendor 84"},84,null,{"$f":"T('EXPENSE DATABASE'!B152)","v":"Vendor 84"},{"$f":"(SUMIF('3 INCOME & EXPENSE'!$J$14:$J$763,T(E152),'3 INCOME & EXPENSE'!$O$14:$O$763))","v":{"v":0,"d":"$0.00"}},{"$f":"(SUMIF('3 INCOME & EXPENSE'!$J$14:$J$763,T('EXPENSE DATABASE'!E152),'3 INCOME & EXPENSE'!$P$14:$P$763))","v":{"v":0,"d":"$0.00"}},{"$f":"(SUMIF('3 INCOME & EXPENSE'!$J$14:$J$763,T('EXPENSE DATABASE'!E152),'3 INCOME & EXPENSE'!$Q$14:$Q$763))","v":{"v":0,"d":"$0.00"}}]
[null,{"$f":"T('ACCOUNTING SETUP'!AI81)","v":"Vendor 85"},85,null,{"$f":"T('EXPENSE DATABASE'!B153)","v":"Vendor 85"},{"$f":"(SUMIF('3 INCOME & EXPENSE'!$J$14:$J$763,T(E153),'3 INCOME & EXPENSE'!$O$14:$O$763))","v":{"v":0,"d":"$0.00"}},{"$f":"(SUMIF('3 INCOME & EXPENSE'!$J$14:$J$763,T('EXPENSE DATABASE'!E153),'3 INCOME & EXPENSE'!$P$14:$P$763))","v":{"v":0,"d":"$0.00"}},{"$f":"(SUMIF('3 INCOME & EXPENSE'!$J$14:$J$763,T('EXPENSE DATABASE'!E153),'3 INCOME & EXPENSE'!$Q$14:$Q$763))","v":{"v":0,"d":"$0.00"}}]
[null,{"$f":"T('ACCOUNTING SETUP'!AI82)","v":"Vendor 86"},86,null,{"$f":"T('EXPENSE DATABASE'!B154)","v":"Vendor 86"},{"$f":"(SUMIF('3 INCOME & EXPENSE'!$J$14:$J$763,T(E154),'3 INCOME & EXPENSE'!$O$14:$O$763))","v":{"v":0,"d":"$0.00"}},{"$f":"(SUMIF('3 INCOME & EXPENSE'!$J$14:$J$763,T('EXPENSE DATABASE'!E154),'3 INCOME & EXPENSE'!$P$14:$P$763))","v":{"v":0,"d":"$0.00"}},{"$f":"(SUMIF('3 INCOME & EXPENSE'!$J$14:$J$763,T('EXPENSE DATABASE'!E154),'3 INCOME & EXPENSE'!$Q$14:$Q$763))","v":{"v":0,"d":"$0.00"}}]
[null,{"$f":"T('ACCOUNTING SETUP'!AI83)","v":"Vendor 87"},87,null,{"$f":"T('EXPENSE DATABASE'!B155)","v":"Vendor 87"},{"$f":"(SUMIF('3 INCOME & EXPENSE'!$J$14:$J$763,T(E155),'3 INCOME & EXPENSE'!$O$14:$O$763))","v":{"v":0,"d":"$0.00"}},{"$f":"(SUMIF('3 INCOME & EXPENSE'!$J$14:$J$763,T('EXPENSE DATABASE'!E155),'3 INCOME & EXPENSE'!$P$14:$P$763))","v":{"v":0,"d":"$0.00"}},{"$f":"(SUMIF('3 INCOME & EXPENSE'!$J$14:$J$763,T('EXPENSE DATABASE'!E155),'3 INCOME & EXPENSE'!$Q$14:$Q$763))","v":{"v":0,"d":"$0.00"}}]
[null,{"$f":"T('ACCOUNTING SETUP'!AI84)","v":"Vendor 88"},88,null,{"$f":"T('EXPENSE DATABASE'!B156)","v":"Vendor 88"},{"$f":"(SUMIF('3 INCOME & EXPENSE'!$J$14:$J$763,T(E156),'3 INCOME & EXPENSE'!$O$14:$O$763))","v":{"v":0,"d":"$0.00"}},{"$f":"(SUMIF('3 INCOME & EXPENSE'!$J$14:$J$763,T('EXPENSE DATABASE'!E156),'3 INCOME & EXPENSE'!$P$14:$P$763))","v":{"v":0,"d":"$0.00"}},{"$f":"(SUMIF('3 INCOME & EXPENSE'!$J$14:$J$763,T('EXPENSE DATABASE'!E156),'3 INCOME & EXPENSE'!$Q$14:$Q$763))","v":{"v":0,"d":"$0.00"}}]
[null,{"$f":"T('ACCOUNTING SETUP'!AI85)","v":"Vendor 89"},89,null,{"$f":"T('EXPENSE DATABASE'!B157)","v":"Vendor 89"},{"$f":"(SUMIF('3 INCOME & EXPENSE'!$J$14:$J$763,T(E157),'3 INCOME & EXPENSE'!$O$14:$O$763))","v":{"v":0,"d":"$0.00"}},{"$f":"(SUMIF('3 INCOME & EXPENSE'!$J$14:$J$763,T('EXPENSE DATABASE'!E157),'3 INCOME & EXPENSE'!$P$14:$P$763))","v":{"v":0,"d":"$0.00"}},{"$f":"(SUMIF('3 INCOME & EXPENSE'!$J$14:$J$763,T('EXPENSE DATABASE'!E157),'3 INCOME & EXPENSE'!$Q$14:$Q$763))","v":{"v":0,"d":"$0.00"}}]
[null,{"$f":"T('ACCOUNTING SETUP'!AI86)","v":"Vendor 90"},90,null,{"$f":"T('EXPENSE DATABASE'!B158)","v":"Vendor 90"},{"$f":"(SUMIF('3 INCOME & EXPENSE'!$J$14:$J$763,T(E158),'3 INCOME & EXPENSE'!$O$14:$O$763))","v":{"v":0,"d":"$0.00"}},{"$f":"(SUMIF('3 INCOME & EXPENSE'!$J$14:$J$763,T('EXPENSE DATABASE'!E158),'3 INCOME & EXPENSE'!$P$14:$P$763))","v":{"v":0,"d":"$0.00"}},{"$f":"(SUMIF('3 INCOME & EXPENSE'!$J$14:$J$763,T('EXPENSE DATABASE'!E158),'3 INCOME & EXPENSE'!$Q$14:$Q$763))","v":{"v":0,"d":"$0.00"}}]
[null,{"$f":"T('ACCOUNTING SETUP'!AI87)","v":"Vendor 91"},91,null,{"$f":"T('EXPENSE DATABASE'!B159)","v":"Vendor 91"},{"$f":"(SUMIF('3 INCOME & EXPENSE'!$J$14:$J$763,T(E159),'3 INCOME & EXPENSE'!$O$14:$O$763))","v":{"v":0,"d":"$0.00"}},{"$f":"(SUMIF('3 INCOME & EXPENSE'!$J$14:$J$763,T('EXPENSE DATABASE'!E159),'3 INCOME & EXPENSE'!$P$14:$P$763))","v":{"v":0,"d":"$0.00"}},{"$f":"(SUMIF('3 INCOME & EXPENSE'!$J$14:$J$763,T('EXPENSE DATABASE'!E159),'3 INCOME & EXPENSE'!$Q$14:$Q$763))","v":{"v":0,"d":"$0.00"}}]
[null,{"$f":"T('ACCOUNTING SETUP'!AI88)","v":"Vendor 92"},92,null,{"$f":"T('EXPENSE DATABASE'!B160)","v":"Vendor 92"},{"$f":"(SUMIF('3 INCOME & EXPENSE'!$J$14:$J$763,T(E160),'3 INCOME & EXPENSE'!$O$14:$O$763))","v":{"v":0,"d":"$0.00"}},{"$f":"(SUMIF('3 INCOME & EXPENSE'!$J$14:$J$763,T('EXPENSE DATABASE'!E160),'3 INCOME & EXPENSE'!$P$14:$P$763))","v":{"v":0,"d":"$0.00"}},{"$f":"(SUMIF('3 INCOME & EXPENSE'!$J$14:$J$763,T('EXPENSE DATABASE'!E160),'3 INCOME & EXPENSE'!$Q$14:$Q$763))","v":{"v":0,"d":"$0.00"}}]
[null,{"$f":"T('ACCOUNTING SETUP'!AI89)","v":"Vendor 93"},93,null,{"$f":"T('EXPENSE DATABASE'!B161)","v":"Vendor 93"},{"$f":"(SUMIF('3 INCOME & EXPENSE'!$J$14:$J$763,T(E161),'3 INCOME & EXPENSE'!$O$14:$O$763))","v":{"v":0,"d":"$0.00"}},{"$f":"(SUMIF('3 INCOME & EXPENSE'!$J$14:$J$763,T('EXPENSE DATABASE'!E161),'3 INCOME & EXPENSE'!$P$14:$P$763))","v":{"v":0,"d":"$0.00"}},{"$f":"(SUMIF('3 INCOME & EXPENSE'!$J$14:$J$763,T('EXPENSE DATABASE'!E161),'3 INCOME & EXPENSE'!$Q$14:$Q$763))","v":{"v":0,"d":"$0.00"}}]
[null,{"$f":"T('ACCOUNTING SETUP'!AI90)","v":"Vendor 94"},94,null,{"$f":"T('EXPENSE DATABASE'!B162)","v":"Vendor 94"},{"$f":"(SUMIF('3 INCOME & EXPENSE'!$J$14:$J$763,T(E162),'3 INCOME & EXPENSE'!$O$14:$O$763))","v":{"v":0,"d":"$0.00"}},{"$f":"(SUMIF('3 INCOME & EXPENSE'!$J$14:$J$763,T('EXPENSE DATABASE'!E162),'3 INCOME & EXPENSE'!$P$14:$P$763))","v":{"v":0,"d":"$0.00"}},{"$f":"(SUMIF('3 INCOME & EXPENSE'!$J$14:$J$763,T('EXPENSE DATABASE'!E162),'3 INCOME & EXPENSE'!$Q$14:$Q$763))","v":{"v":0,"d":"$0.00"}}]
[null,{"$f":"T('ACCOUNTING SETUP'!AI91)","v":"Vendor 95"},95,null,{"$f":"T('EXPENSE DATABASE'!B163)","v":"Vendor 95"},{"$f":"(SUMIF('3 INCOME & EXPENSE'!$J$14:$J$763,T(E163),'3 INCOME & EXPENSE'!$O$14:$O$763))","v":{"v":0,"d":"$0.00"}},{"$f":"(SUMIF('3 INCOME & EXPENSE'!$J$14:$J$763,T('EXPENSE DATABASE'!E163),'3 INCOME & EXPENSE'!$P$14:$P$763))","v":{"v":0,"d":"$0.00"}},{"$f":"(SUMIF('3 INCOME & EXPENSE'!$J$14:$J$763,T('EXPENSE DATABASE'!E163),'3 INCOME & EXPENSE'!$Q$14:$Q$763))","v":{"v":0,"d":"$0.00"}}]
[null,{"$f":"T('ACCOUNTING SETUP'!AI92)","v":"Vendor 96"},96,null,{"$f":"T('EXPENSE DATABASE'!B164)","v":"Vendor 96"},{"$f":"(SUMIF('3 INCOME & EXPENSE'!$J$14:$J$763,T(E164),'3 INCOME & EXPENSE'!$O$14:$O$763))","v":{"v":0,"d":"$0.00"}},{"$f":"(SUMIF('3 INCOME & EXPENSE'!$J$14:$J$763,T('EXPENSE DATABASE'!E164),'3 INCOME & EXPENSE'!$P$14:$P$763))","v":{"v":0,"d":"$0.00"}},{"$f":"(SUMIF('3 INCOME & EXPENSE'!$J$14:$J$763,T('EXPENSE DATABASE'!E164),'3 INCOME & EXPENSE'!$Q$14:$Q$763))","v":{"v":0,"d":"$0.00"}}]
[null,{"$f":"T('ACCOUNTING SETUP'!AI93)","v":"Vendor 97"},97,null,{"$f":"T('EXPENSE DATABASE'!B165)","v":"Vendor 97"},{"$f":"(SUMIF('3 INCOME & EXPENSE'!$J$14:$J$763,T(E165),'3 INCOME & EXPENSE'!$O$14:$O$763))","v":{"v":0,"d":"$0.00"}},{"$f":"(SUMIF('3 INCOME & EXPENSE'!$J$14:$J$763,T('EXPENSE DATABASE'!E165),'3 INCOME & EXPENSE'!$P$14:$P$763))","v":{"v":0,"d":"$0.00"}},{"$f":"(SUMIF('3 INCOME & EXPENSE'!$J$14:$J$763,T('EXPENSE DATABASE'!E165),'3 INCOME & EXPENSE'!$Q$14:$Q$763))","v":{"v":0,"d":"$0.00"}}]
[null,{"$f":"T('ACCOUNTING SETUP'!AI94)","v":"Vendor 98"},98,null,{"$f":"T('EXPENSE DATABASE'!B166)","v":"Vendor 98"},{"$f":"(SUMIF('3 INCOME & EXPENSE'!$J$14:$J$763,T(E166),'3 INCOME & EXPENSE'!$O$14:$O$763))","v":{"v":0,"d":"$0.00"}},{"$f":"(SUMIF('3 INCOME & EXPENSE'!$J$14:$J$763,T('EXPENSE DATABASE'!E166),'3 INCOME & EXPENSE'!$P$14:$P$763))","v":{"v":0,"d":"$0.00"}},{"$f":"(SUMIF('3 INCOME & EXPENSE'!$J$14:$J$763,T('EXPENSE DATABASE'!E166),'3 INCOME & EXPENSE'!$Q$14:$Q$763))","v":{"v":0,"d":"$0.00"}}]
[null,{"$f":"T('ACCOUNTING SETUP'!AI95)","v":"Vendor 99"},99,null,{"$f":"T('EXPENSE DATABASE'!B167)","v":"Vendor 99"},{"$f":"(SUMIF('3 INCOME & EXPENSE'!$J$14:$J$763,T(E167),'3 INCOME & EXPENSE'!$O$14:$O$763))","v":{"v":0,"d":"$0.00"}},{"$f":"(SUMIF('3 INCOME & EXPENSE'!$J$14:$J$763,T('EXPENSE DATABASE'!E167),'3 INCOME & EXPENSE'!$P$14:$P$763))","v":{"v":0,"d":"$0.00"}},{"$f":"(SUMIF('3 INCOME & EXPENSE'!$J$14:$J$763,T('EXPENSE DATABASE'!E167),'3 INCOME & EXPENSE'!$Q$14:$Q$763))","v":{"v":0,"d":"$0.00"}}]
[null,{"$f":"T('ACCOUNTING SETUP'!AI96)","v":"Vendor 100"},100,null,{"$f":"T('EXPENSE DATABASE'!B168)","v":"Vendor 100"},{"$f":"(SUMIF('3 INCOME & EXPENSE'!$J$14:$J$763,T(E168),'3 INCOME & EXPENSE'!$O$14:$O$763))","v":{"v":0,"d":"$0.00"}},{"$f":"(SUMIF('3 INCOME & EXPENSE'!$J$14:$J$763,T('EXPENSE DATABASE'!E168),'3 INCOME & EXPENSE'!$P$14:$P$763))","v":{"v":0,"d":"$0.00"}},{"$f":"(SUMIF('3 INCOME & EXPENSE'!$J$14:$J$763,T('EXPENSE DATABASE'!E168),'3 INCOME & EXPENSE'!$Q$14:$Q$763))","v":{"v":0,"d":"$0.00"}}]
[{"$nulls":4},"Unassigned",{"$f":"(SUMIF('3 INCOME & EXPENSE'!$AD$14:$AD$763,0,'3 INCOME & EXPENSE'!O14:O763))","v":{"v":495,"d":"$495.00"}},{"$f":"(SUMIF('3 INCOME & EXPENSE'!$AD$14:$AD$763,0,'3 INCOME & EXPENSE'!P14:P763))","v":{"v":495,"d":"$495.00"}},{"$f":"(SUMIF('3 INCOME & EXPENSE'!$AD$14:$AD$763,0,'3 INCOME & EXPENSE'!Q14:Q763))","v":{"v":0,"d":"$0.00"}}]
[{"$nulls":4},"Totals",{"$f":"SUM(F69:F169)","v":{"v":76902.88,"d":"$76,902.88"}},{"$f":"SUM(G69:G169)","v":{"v":76902.88,"d":"$76,902.88"}},{"$f":"SUM(H69:H169)","v":{"v":0,"d":"$0.00"}}]
[]
[null,"Classes",null,null,"Expenses by Class","Total"]
[null,{"$f":"T('EXPENSE DATABASE'!AB188)","v":"LABOR/EQUIP"},1,null,{"$f":"T('EXPENSE DATABASE'!B173)","v":"LABOR/EQUIP"},{"$f":"(SUMIF('3 INCOME & EXPENSE'!$L$14:$L$763,T(E173),'3 INCOME & EXPENSE'!$O$14:O$763))","v":{"v":7550,"d":"$7,550.00"}}]
[null,{"$f":"T('EXPENSE DATABASE'!AB189)","v":"MATERIAL"},2,null,{"$f":"T('EXPENSE DATABASE'!B174)","v":"MATERIAL"},{"$f":"(SUMIF('3 INCOME & EXPENSE'!$L$14:$L$763,T(E174),'3 INCOME & EXPENSE'!$O$14:O$763))","v":{"v":13542.880000000001,"d":"$13,542.88"}}]
[null,{"$f":"T('EXPENSE DATABASE'!AB190)","v":"SUBCONTRACTOR"},3,null,{"$f":"T('EXPENSE DATABASE'!B175)","v":"SUBCONTRACTOR"},{"$f":"(SUMIF('3 INCOME & EXPENSE'!$L$14:$L$763,T(E175),'3 INCOME & EXPENSE'!$O$14:O$763))","v":{"v":2750,"d":"$2,750.00"}}]
[null,"OTHER",4,null,{"$f":"T('EXPENSE DATABASE'!B176)","v":"OTHER"},{"$f":"(SUMIF('3 INCOME & EXPENSE'!$L$14:$L$763,T(E176),'3 INCOME & EXPENSE'!$O$14:O$763))","v":{"v":0,"d":"$0.00"}}]
[{"$nulls":4},"Totals",{"$f":"SUM(F173:F176)","v":{"v":23842.88,"d":"$23,842.88"}}]
[]
[]
[{"$nulls":4},"Expenses by Paid/Unpaid","Total"]
[{"$nulls":4},"Paid",{"$f":"(SUMIF('3 INCOME & EXPENSE'!$D$14:$D$763,\"yes\",'3 INCOME & EXPENSE'!$O$14:$O$763))","v":{"v":0,"d":"$0.00"}}]
[{"$nulls":4},"Unpaid",{"$f":"(SUMIF('3 INCOME & EXPENSE'!$D$14:$D$763,\"no\",'3 INCOME & EXPENSE'!$O$14:$O$763)+(SUMIF('3 INCOME & EXPENSE'!$D$14:$D$763,\"\",'3 INCOME & EXPENSE'!$O$14:$O$763)))","v":{"v":76902.87999999999,"d":"$76,902.88"}}]
[{"$nulls":4},"Totals",{"$f":"SUM(F181:F182)","v":{"v":76902.87999999999,"d":"$76,902.88"}}]
[]
[null,"Income Accounts",null,null,"Income Accounts",{"$nulls":14},"PURCHASE PRICE",null,"REPAIR EXPENSES",{"$nulls":7},"TOTAL OTHER EXPENSES"]
[null,{"$f":"T('ACCOUNTING SETUP'!AQ9)","v":"RESALE INCOME"},1,null,{"$f":"T(B186)","v":"RESALE INCOME"},{"$f":"(SUMIF('3 INCOME & EXPENSE'!$AS$14:$AS$113,C186,'3 INCOME & EXPENSE'!$AP$14:$AP$113))","v":{"v":0,"d":"$0.00"}},{"$nulls":13},{"$f":"'EXPENSE DATABASE'!J6","v":{"v":52000,"d":"$52,000"}},null,"BREAKDOWN BY SCOPE",{"$nulls":7},{"$f":"M28","v":{"v":0,"d":"$0"}}]
[null,{"$f":"T('ACCOUNTING SETUP'!AQ10)","v":"RENTAL INCOME"},2,null,{"$f":"T(B187)","v":"RENTAL INCOME"},{"$f":"(SUMIF('3 INCOME & EXPENSE'!$AS$14:$AS$113,C187,'3 INCOME & EXPENSE'!$AP$14:$AP$113))","v":{"v":0,"d":"$0.00"}},{"$nulls":15},{"$f":"T(E11)","v":"GENERAL CONDITIONS"},{"$f":"'EXPENSE DATABASE'!J11","v":{"v":0,"d":"$0"}},{"$f":"T(B19)","v":"EXTERIOR DOORS & WINDOWS"},{"$f":"'EXPENSE DATABASE'!J19","v":{"v":0,"d":"$0"}},{"$f":"T(B27)","v":"HARDWOOD FLOORING"},{"$f":"'EXPENSE DATABASE'!J27","v":{"v":567.2,"d":"$567"}},"BREAKDOWN BY LMS"]
[null,{"$f":"T('ACCOUNTING SETUP'!AQ11)","v":"INTEREST INCOME"},3,null,"INTEREST INCOME",{"$f":"(SUMIF('3 INCOME & EXPENSE'!$AS$14:$AS$113,C188,'3 INCOME & EXPENSE'!$AP$14:$AP$113))","v":{"v":0,"d":"$0.00"}},{"$nulls":13},"FIXED EXPENSES",null,{"$f":"T(E12)","v":"DEMOLITION"},{"$f":"'EXPENSE DATABASE'!J12","v":{"v":1740,"d":"$1,740"}},{"$f":"T(B20)","v":"GARAGE DOORS"},{"$f":"'EXPENSE DATABASE'!J20","v":{"v":0,"d":"$0"}},{"$f":"T(B28)","v":"TILING"},{"$f":"'EXPENSE DATABASE'!J28","v":{"v":2325.23,"d":"$2,325"}},"LABOR/EQUIP",{"$f":"'EXPENSE DATABASE'!F173","v":{"v":7550,"d":"$7,550"}},"TOTAL INVESTMENT TO DATE"]
[null,{"$f":"T('ACCOUNTING SETUP'!AQ12)","v":"MISCELLANEOUS INCOME"},4,null,"MISCELLANEOUS INCOME",{"$f":"(SUMIF('3 INCOME & EXPENSE'!$AS$14:$AS$113,C189,'3 INCOME & EXPENSE'!$AP$14:$AP$113))","v":{"v":0,"d":"$0.00"}},{"$nulls":13},{"$f":"T('EXPENSE DATABASE'!E7)","v":"BUYING COSTS"},{"$f":"'EXPENSE DATABASE'!J7","v":{"v":1060,"d":"$1,060"}},"STRUCTURAL CONCRETE",{"$f":"'EXPENSE DATABASE'!J13","v":{"v":0,"d":"$0"}},"LANDSCAPING",{"$f":"'EXPENSE DATABASE'!J21","v":{"v":0,"d":"$0"}},"PAINTING",{"$f":"'EXPENSE DATABASE'!J29","v":{"v":4902.45,"d":"$4,902"}},"MATERIAL",{"$f":"'EXPENSE DATABASE'!F174","v":{"v":13542.880000000001,"d":"$13,543"}},{"$f":"Purchase_Expense+Total_Fixed_Expenses+Total_Repair_Expenses+Total_Other_Expenses+AE194","v":{"v":76902.87999999999,"d":"$76,903"}}]
[null,{"$f":"T('ACCOUNTING SETUP'!AQ13)","v":"INCOME CATEGORY 5"},5,null,"INCOME CATEGORY 5",{"$f":"(SUMIF('3 INCOME & EXPENSE'!$AS$14:$AS$113,C190,'3 INCOME & EXPENSE'!$AP$14:$AP$113))","v":{"v":0,"d":"$0.00"}},{"$nulls":13},{"$f":"T('EXPENSE DATABASE'!E8)","v":"HOLDING COSTS"},{"$f":"'EXPENSE DATABASE'!J8","v":{"v":0,"d":"$0"}},"CONCRETE & FLATWORK",{"$f":"'EXPENSE DATABASE'!J14","v":{"v":0,"d":"$0"}},"MISC. EXTERIOR ITEMS",{"$f":"'EXPENSE DATABASE'!J22","v":{"v":0,"d":"$0"}},"APPLIANCES",{"$f":"'EXPENSE DATABASE'!J30","v":{"v":0,"d":"$0"}},"SUBCONTRACTOR",{"$f":"'EXPENSE DATABASE'!F175","v":{"v":2750,"d":"$2,750"}}]
[null,{"$f":"T('ACCOUNTING SETUP'!AQ14)","v":"INCOME CATEGORY 6"},6,null,"INCOME CATEGORY 6",{"$f":"(SUMIF('3 INCOME & EXPENSE'!$AS$14:$AS$113,C191,'3 INCOME & EXPENSE'!$AP$14:$AP$113))","v":{"v":0,"d":"$0.00"}},{"$nulls":13},{"$f":"T('EXPENSE DATABASE'!E9)","v":"SELLING COSTS"},{"$f":"'EXPENSE DATABASE'!J9","v":{"v":0,"d":"$0"}},"MASONRY",{"$f":"'EXPENSE DATABASE'!J15","v":{"v":0,"d":"$0"}},"FRAMING & DRYWALL",{"$f":"'EXPENSE DATABASE'!J23","v":{"v":500,"d":"$500"}},"PLUMBING",{"$f":"'EXPENSE DATABASE'!J31","v":{"v":3473.08,"d":"$3,473"}},"OTHER",{"$f":"'EXPENSE DATABASE'!F176","v":{"v":0,"d":"$0"}}]
[null,{"$f":"T('ACCOUNTING SETUP'!AQ15)","v":"INCOME CATEGORY 7"},7,null,"INCOME CATEGORY 7",{"$f":"(SUMIF('3 INCOME & EXPENSE'!$AS$14:$AS$113,C192,'3 INCOME & EXPENSE'!$AP$14:$AP$113))","v":{"v":0,"d":"$0.00"}},{"$nulls":13},{"$f":"T('EXPENSE DATABASE'!E10)","v":"FINANCING COSTS"},{"$f":"'EXPENSE DATABASE'!J10","v":{"v":0,"d":"$0"}},"SIDING",{"$f":"'EXPENSE DATABASE'!J16","v":{"v":0,"d":"$0"}},"CABINETS & COUNTERTOPS",{"$f":"'EXPENSE DATABASE'!J24","v":{"v":0,"d":"$0"}},"HVAC",{"$f":"'EXPENSE DATABASE'!J32","v":{"v":0,"d":"$0"}},"TOTAL REPAIR EXPENSES",null,"PAID","UNPAID"]
[null,{"$f":"T('ACCOUNTING SETUP'!AQ16)","v":"INCOME CATEGORY 8"},8,null,"INCOME CATEGORY 8",{"$f":"(SUMIF('3 INCOME & EXPENSE'!$AS$14:$AS$113,C193,'3 INCOME & EXPENSE'!$AP$14:$AP$113))","v":{"v":0,"d":"$0.00"}},{"$nulls":13},"TOTAL FIXED EXPENSES",null,"DECKING AND PATIOS",{"$f":"'EXPENSE DATABASE'!J17","v":{"v":0,"d":"$0"}},"DOORS & TRIM",{"$f":"'EXPENSE DATABASE'!J25","v":{"v":3339.3199999999997,"d":"$3,339"}},"ELECTRICAL",{"$f":"'EXPENSE DATABASE'!J33","v":{"v":2610,"d":"$2,610"}},{"$f":"Total_Repair_Expenses","v":{"v":19457.28,"d":"$19,457"}},null,{"$f":"'3 INCOME & EXPENSE'!Q765","v":{"v":0,"d":"$0"}},{"$f":"'3 INCOME & EXPENSE'!P765","v":{"v":76902.87999999999,"d":"$76,903"}}]
[null,{"$f":"T('ACCOUNTING SETUP'!AQ17)","v":"INCOME CATEGORY 9"},9,null,"INCOME CATEGORY 9",{"$f":"(SUMIF('3 INCOME & EXPENSE'!$AS$14:$AS$113,C194,'3 INCOME & EXPENSE'!$AP$14:$AP$113))","v":{"v":0,"d":"$0.00"}},{"$nulls":13},{"$f":"Total_Fixed_Expenses","v":{"v":1060,"d":"$1,060"}},null,"ROOFING",{"$f":"'EXPENSE DATABASE'!J18","v":{"v":0,"d":"$0"}},"CARPET & RESILIENT",{"$f":"'EXPENSE DATABASE'!J26","v":{"v":0,"d":"$0"}},"MISCELLANEOUS",{"$f":"'EXPENSE DATABASE'!J34","v":{"v":0,"d":"$0"}},null,null,"UNASSIGNED:",{"$f":"'EXPENSE DATABASE'!J36","v":{"v":4385.599999999991,"d":"$4,386"}}]
[null,{"$f":"T('ACCOUNTING SETUP'!AQ18)","v":"INCOME CATEGORY 10"},10,null,"INCOME CATEGORY 10",{"$f":"(SUMIF('3 INCOME & EXPENSE'!$AS$14:$AS$113,C195,'3 INCOME & EXPENSE'!$AP$14:$AP$113))","v":{"v":0,"d":"$0.00"}}]
[null,"Unassigned",11,null,"Unassigned",{"$f":"(SUMIF('3 INCOME & EXPENSE'!$AS$14:$AS$113,C196,'3 INCOME & EXPENSE'!$AP$14:$AP$113))","v":{"v":175000,"d":"$175,000.00"}}]
[{"$nulls":4},"TOTAL INCOME",{"$f":"SUM(F186:F196)","v":{"v":175000,"d":"$175,000.00"}}]

{"sheet":"LISTS","index":3,"n_rows":58,"n_cols":13,"rows_kept":58,"hidden":true,"merged":[[0,2,0,10],[2,1,7,1],[9,1,10,1],[11,1,12,1],[13,1,14,1],[15,1,16,1],[17,1,18,1],[19,1,20,1],[21,1,22,1],[23,1,24,1],[25,1,26,1],[27,1,28,1],[29,1,30,1],[31,1,32,1],[33,1,34,1],[35,1,36,1],[37,1,38,1],[39,1,40,1],[41,1,42,1],[43,1,44,1],[45,1,46,1],[47,1,48,1],[49,1,50,1],[51,1,52,1],[53,1,54,1],[55,1,56,1],[58,1,59,1],[60,1,61,1],[62,1,63,1],[64,1,65,1],[66,1,67,1],[68,1,69,1],[70,1,71,1],[72,1,73,1],[74,1,75,1],[76,1,77,1],[78,1,79,1],[80,1,81,1],[82,1,83,1],[84,1,85,1],[86,1,87,1],[88,1,89,1],[90,1,91,1],[92,1,93,1],[94,1,95,1],[96,1,97,1],[98,1,99,1],[100,1,101,1],[102,1,103,1],[104,1,105,1],[106,1,107,1],[108,1,109,1],[110,1,111,1],[112,1,113,1],[114,1,115,1],[116,1,117,1],[118,1,119,1],[120,1,121,1],[122,1,123,1],[124,1,125,1],[126,1,127,1],[128,1,129,1],[130,1,131,1],[132,1,133,1],[134,1,135,1],[136,1,137,1],[138,1,139,1],[140,1,141,1],[142,1,143,1],[144,1,145,1],[146,1,147,1],[148,1,149,1],[150,1,151,1],[152,1,153,1],[154,1,155,1],[156,1,157,1],[158,1,159,1],[160,1,161,1],[162,1,163,1],[164,1,165,1],[166,1,167,1],[168,1,169,1],[170,1,171,1],[172,1,173,1],[174,1,175,1],[176,1,177,1],[178,1,179,1],[180,1,181,1],[182,1,183,1],[184,1,185,1],[186,1,187,1],[188,1,189,1],[190,1,191,1],[192,1,193,1],[194,1,195,1],[196,1,197,1],[198,1,199,1],[200,1,201,1],[202,1,203,1],[204,1,205,1],[206,1,207,1],[208,1,209,1],[210,1,211,1],[212,1,213,1],[214,1,215,1],[216,1,217,1],[218,1,219,1],[220,1,221,1],[222,1,223,1],[224,1,225,1],[226,1,227,1],[228,1,229,1],[230,1,231,1],[232,1,233,1],[234,1,235,1],[236,1,237,1],[238,1,239,1],[240,1,241,1],[242,1,243,1],[244,1,245,1],[246,1,247,1],[248,1,249,1],[250,1,251,1],[252,1,253,1],[254,1,255,1],[256,1,257,1],[258,1,259,1],[260,1,261,1],[262,1,263,1],[264,1,265,1],[266,1,267,1],[268,1,269,1],[270,1,271,1],[272,1,273,1],[274,1,275,1],[276,1,277,1],[278,1,279,1],[280,1,281,1],[282,1,283,1],[284,1,285,1],[286,1,287,1],[288,1,289,1],[290,1,291,1],[292,1,293,1],[294,1,295,1],[296,1,297,1],[298,1,299,1],[300,1,301,1],[302,1,303,1],[304,1,305,1],[306,1,307,1],[308,1,309,1],[310,1,311,1],[312,1,313,1],[314,1,315,1],[316,1,317,1],[318,1,319,1],[320,1,321,1],[322,1,323,1],[324,1,325,1],[326,1,327,1],[328,1,329,1],[330,1,331,1],[332,1,333,1],[334,1,335,1],[336,1,337,1],[338,1,339,1],[340,1,341,1],[342,1,343,1],[344,1,345,1],[346,1,347,1],[348,1,349,1],[350,1,351,1],[352,1,353,1],[354,1,355,1],[356,1,357,1],[358,1,359,1],[360,1,361,1],[362,1,363,1],[364,1,365,1],[366,1,367,1],[368,1,369,1],[370,1,371,1],[372,1,373,1],[374,1,375,1],[376,1,377,1],[378,1,379,1],[380,1,381,1],[382,1,383,1],[384,1,385,1],[386,1,387,1],[388,1,389,1],[390,1,391,1],[392,1,393,1],[394,1,395,1],[396,1,397,1],[398,1,399,1],[400,1,401,1],[402,1,403,1],[404,1,405,1],[406,1,407,1],[408,1,409,1],[410,1,411,1],[412,1,413,1],[414,1,415,1],[416,1,417,1],[418,1,419,1],[420,1,421,1],[422,1,423,1],[424,1,425,1],[426,1,427,1],[428,1,429,1],[430,1,431,1],[432,1,433,1],[434,1,435,1],[436,1,437,1],[438,1,439,1],[440,2,442,10]]}
[null,null,"Lists"]
[]
[]
[{"$nulls":3},"Yes/No"]
[{"$nulls":3},"Yes",null,"per month",{"$nulls":6},"Lists:"]
[{"$nulls":3},"No",null,"per year"]
[{"$nulls":12},"Property Type:"]
[{"$nulls":3},"States",{"$nulls":8},"Single Family Home"]
[{"$nulls":3},"Alabama",null,{"v":1.15,"d":"115%"},null,"Check",null,"Chart of Accounts",null,null,"Duplex"]
[{"$nulls":3},"Alaska",null,{"v":1.14,"d":"114%"},null,"Credit Card",null,"Bank Account",null,null,"Condo"]
[{"$nulls":3},"Arizona",null,{"v":1.13,"d":"113%"},null,"Debit Card",null,"Credit Card",null,null,"Apartment"]
[{"$nulls":3},"Arkansas",null,{"v":1.12,"d":"112%"},null,"Cash",null,"Loan"]
[{"$nulls":3},"California",null,{"v":1.11,"d":"111%"},null,"Bank Transfer",null,"Petty Cash",null,null,"Status:"]
[{"$nulls":3},"Colorado",null,{"v":1.1,"d":"110%"},null,"Paypal",null,"Expense Reimbursement",null,null,"REO"]
[{"$nulls":3},"Connecticut",null,{"v":1.09,"d":"109%"},null,"Other",null,"Other",null,null,"HUD"]
[{"$nulls":3},"Delaware",null,{"v":1.08,"d":"108%"},{"$nulls":6},"Homepath"]
[{"$nulls":3},"Florida",null,{"v":1.07,"d":"107%"},null,"Labor/Equipment",null,"Down Payment",null,null,"FSBO"]
[{"$nulls":3},"Georgia",null,{"v":1.06,"d":"106%"},null,"Material",null,"LTV",null,null,"Short Sale"]
[{"$nulls":3},"Hawaii",null,{"v":1.05,"d":"105%"},null,"Subcontractor"]
[{"$nulls":3},"Idaho",null,{"v":1.04,"d":"104%"},{"$nulls":6},"Offer Type:"]
[{"$nulls":3},"Illinois",null,{"v":1.03,"d":"103%"},null,"01",null,"DETAILED",null,null,"All Cash"]
[{"$nulls":3},"Indiana",null,{"v":1.02,"d":"102%"},null,"02",null,"% OF ARV",null,null,"Financed"]
[{"$nulls":3},"Iowa",null,{"v":1.01,"d":"101%"},null,"03"]
[{"$nulls":3},"Kansas",null,{"v":1,"d":"100%"},null,"04",null,"Data View",null,null,"Loan Required:"]
[{"$nulls":3},"Kentucky",null,{"v":0.99,"d":"99%"},null,"05",null,"Print View",null,null,"Purchase Price Only"]
[{"$nulls":3},"Louisiana",null,{"v":0.98,"d":"98%"},null,"06",{"$nulls":4},"Repair Cost Only"]
[{"$nulls":3},"Maine",null,{"v":0.97,"d":"97%"},null,"07",{"$nulls":4},"All Costs"]
[{"$nulls":3},"Maryland",null,{"v":0.96,"d":"96%"},null,"08",{"$nulls":4},"ARV"]
[{"$nulls":3},"Massachusetts",null,{"v":0.95,"d":"95%"},null,"09",{"$nulls":4},"Specific Loan Amount"]
[{"$nulls":3},"Michigan",null,{"v":0.94,"d":"94%"},null,"10"]
[{"$nulls":3},"Minnesota",null,{"v":0.93,"d":"93%"},null,"11"]
[{"$nulls":3},"Mississippi",null,{"v":0.92,"d":"92%"},null,"12",{"$nulls":4},"Down payment Yes or Nos?"]
[{"$nulls":3},"Missouri",null,{"v":0.91,"d":"91%"},null,"13",{"$nulls":4},"Yes"]
[{"$nulls":3},"Montana",null,{"v":0.9,"d":"90%"},null,"14",{"$nulls":4},"No"]
[{"$nulls":3},"Nebraska",null,{"v":0.89,"d":"89%"},null,"15"]
[{"$nulls":3},"Nevada",null,{"v":0.88,"d":"88%"},null,"16",{"$nulls":4},"Rolled"]
[{"$nulls":3},"New Hampshire",null,{"v":0.87,"d":"87%"},null,"17",{"$nulls":4},"Upfront"]
[{"$nulls":3},"New Jersey",null,{"v":0.86,"d":"86%"},null,"18"]
[{"$nulls":3},"New Mexico",null,{"v":0.85,"d":"85%"},null,"19",{"$nulls":4},"Monthly"]
[{"$nulls":3},"New York",null,{"v":0.84,"d":"84%"},null,"20",{"$nulls":4},"Rolled"]
[{"$nulls":3},"North Carolina",null,{"v":0.83,"d":"83%"},null,"21"]
[{"$nulls":3},"North Dakota",null,{"v":0.82,"d":"82%"},null,"22"]
[{"$nulls":3},"Ohio",null,{"v":0.81,"d":"81%"},null,"23",{"$nulls":4},1]
[{"$nulls":3},"Oklahoma",null,{"v":0.8,"d":"80%"},null,"24"]
[{"$nulls":3},"Oregon",null,{"v":0.79,"d":"79%"},null,"25",{"$nulls":4},"Interest Only"]
[{"$nulls":3},"Pennsylvania",null,{"v":0.78,"d":"78%"},{"$nulls":6},"Amortized"]
[{"$nulls":3},"Rhode Island",null,{"v":0.77,"d":"77%"}]
[{"$nulls":3},"South Carolina",null,{"v":0.76,"d":"76%"}]
[{"$nulls":3},"South Dakota",null,{"v":0.75,"d":"75%"}]
[{"$nulls":3},"Tennessee",null,{"v":0.74,"d":"74%"}]
[{"$nulls":3},"Texas",null,{"v":0.73,"d":"73%"}]
[{"$nulls":3},"Utah",null,{"v":0.72,"d":"72%"}]
[{"$nulls":3},"Vermont",null,{"v":0.71,"d":"71%"}]
[{"$nulls":3},"Virginia",null,{"v":0.7,"d":"70%"}]
[{"$nulls":3},"Washington"]
[{"$nulls":3},"West Virginia"]
[{"$nulls":3},"Wisconsin"]
[{"$nulls":3},"Wyoming"]

{"sheet":"EULA","index":4,"n_rows":52,"n_cols":25,"rows_kept":52,"merged":[[3,5,3,19],[4,5,4,19],[4,24,6,27],[5,5,6,19],[7,5,7,19],[8,5,9,19],[8,24,11,31],[11,5,11,19],[12,5,12,19],[12,24,12,31],[13,5,14,19],[13,24,14,31],[15,5,15,19],[16,5,17,19],[16,24,19,31],[19,5,19,19],[20,5,20,19],[20,24,22,31],[21,5,21,19],[22,5,22,19],[23,5,23,19],[24,5,24,19],[24,24,27,31],[25,5,25,19],[26,5,26,19],[27,5,27,19],[29,24,36,31],[38,24,42,31],[44,24,45,31],[47,24,49,31],[51,23,51,32]]}
[]
[]
[]
[{"$nulls":5},"Product Information:"]
[{"$nulls":5},"Product Name:",{"$nulls":18},"END-USER LICENSE AGREEMENT"]
[{"$nulls":5},"Pro"]
[]
[{"$nulls":5},"Release #:"]
[{"$nulls":5},6.2,{"$nulls":18},"IMPORTANT—READ CAREFULLY:   This End-User License Agreement (“EULA”) is a legal agreement between you and houseflippingspreadsheet.com that covers all products made by houseflippingspreadsheet.com. By downloading, accessing or otherwise using any spreadsheets you agree to be bound by the terms of this EULA. "]
[]
[]
[{"$nulls":5},"Licensing Information:"]
[{"$nulls":5},"Licensed To:",{"$nulls":18},"Spreadsheet License"]
[{"$nulls":5},"costp",{"$nulls":18},"Each spreadsheet is protected by copyright laws and international copyright treaties, as well as other intellectual property laws and treaties. "]
[]
[{"$nulls":5},"# of Licenses:"]
[{"$nulls":5},1,{"$nulls":18},"1. GRANT OF LICENSE.  This EULA grants you the right to use this spreadsheet for personal or business use only and it may not be distributed outside of your organization.  You may not sell, resell, license, rent, lease, lend, or otherwise transfer for value.  You may not remove or alter any logo, trademark, copyright, hyperlinks, disclaimers, terms of use, or other proprietary notices within the spreadsheet.  "]
[]
[]
[{"$nulls":5},"Copyright Information:"]
[{"$nulls":5},"Company:",{"$nulls":18},"2. TERMINATION.  Without prejudice to any other rights, houseflippingspreadsheet.com may terminate this EULA if you fail to comply with the terms and conditions of this EULA.  In such event, you must destroy all copies of any spreadsheet.  "]
[{"$nulls":5},"Costpoint Solutions, LLC DBA "]
[{"$nulls":5},"Houseflippingspreadsheet.com"]
[{"$nulls":5},"Company Address:"]
[{"$nulls":5},"P.O. Box 165324",{"$nulls":18},"3. DISCLAIMER.  Real property businesses and earnings derived therefrom, have unknown risks \ninvolved, and are not suitable for everyone.  Making decisions based on any information presented in our products or on our website, should be done only with the knowledge that you could experience significant losses, or make no money at all.  Only risk capital should be used.\n\n"]
[{"$nulls":5},"North Kansas City, MO 64116"]
[{"$nulls":5},"Company Phone:"]
[{"$nulls":5},"816.388.0197"]
[]
[{"$nulls":24},"All products and services of our company are for educational and informational purposes only and are provided \"As-Is\" without warranty of any kind.  Houseflippingspreadsheet.com hereby disclaim all warranties and conditions with regard to the products, including all implied warranties and conditions of merchantability, fitness for a particular purpose, title and non-infringement.  In no event shall houseflippingspreadsheet.com be liable for any special, indirect or consequential damages or any damages whatsoever resulting from loss of use, data or profits, whether in action of the contract, negligence or other tortious action, arising out of or in connection with the products.  Use caution and seek the advice of qualified professionals.  Check with your accountant, lawyer or professional advisor, before acting on this or any information."]
{"$rows_empty":8}
[{"$nulls":24},"Users of our products, services and website are advised to do their own due diligence when it comes to making business decisions and all information, programs, products and services that have been provided should be independently verified by your own qualified professionals.  Our information, products and services should be carefully considered and evaluated before reaching a business decision, or whether to rely on them.  "]
[]
[]
[]
[]
[]
[{"$nulls":24},"You agree that our company is not responsible for the success or failure of your business decisions relating to any information presented by our company, or our company products and/or services."]
[]
[]
[{"$nulls":24},"4. MISCELLANEOUS. Some states do not allow the limitation or exclusion of liability for incidental or consequential damages, so the above limitation may not apply to you."]
[]
[]
[]
[{"$nulls":23},"© 2018 by Houseflippingspreadsheet.com. All rights reserved"]

{"sheet":"ADMIN","index":5,"n_rows":65,"n_cols":53,"rows_kept":65,"hidden":true,"merged":[[2,22,2,44],[2,45,2,51],[2,52,2,64],[3,4,4,18],[3,22,3,44],[3,45,3,51],[3,52,3,64],[4,22,4,44],[4,45,4,51],[4,52,4,64],[5,22,5,44],[5,45,5,51],[5,52,5,64],[6,4,6,18],[6,22,6,44],[6,45,6,51],[6,52,6,64],[7,4,8,18],[7,22,7,44],[7,45,7,51],[7,52,7,64],[8,22,8,44],[8,45,8,51],[8,52,8,64],[9,22,9,44],[9,45,9,51],[9,52,9,64],[10,22,10,44],[10,45,10,51],[10,52,10,64],[11,22,11,44],[11,45,11,51],[11,52,11,64],[12,22,12,44],[12,45,12,51],[12,52,12,64],[13,22,13,44],[13,45,13,51],[13,52,13,64],[14,22,14,44],[14,45,14,51],[14,52,14,64],[15,22,15,44],[15,45,15,51],[15,52,15,64],[16,4,18,18],[16,22,16,44],[16,45,16,51],[16,52,16,64],[17,22,17,44],[17,45,17,51],[17,52,17,64],[18,22,18,44],[18,45,18,51],[18,52,18,64],[19,22,19,44],[19,45,19,51],[19,52,19,64],[20,22,20,44],[20,45,20,51],[20,52,20,64],[21,22,21,44],[21,45,21,51],[21,52,21,64],[22,22,22,44],[22,45,22,51],[22,52,22,64],[23,22,23,44],[23,45,23,51],[23,52,23,64],[24,22,24,44],[24,45,24,51],[24,52,24,64],[25,22,25,44],[25,45,25,51],[25,52,25,64],[26,22,26,44],[26,45,26,51],[26,52,26,64],[27,22,27,44],[27,45,27,51],[27,52,27,64],[28,22,28,44],[28,45,28,51],[28,52,28,64],[29,22,29,44],[29,45,29,51],[29,52,29,64],[30,22,30,44],[30,45,30,51],[30,52,30,64],[31,22,31,44],[31,45,31,51],[31,52,31,64],[32,22,32,44],[32,45,32,51],[32,52,32,64],[33,22,33,44],[33,45,33,51],[33,52,33,64],[34,22,34,44],[34,45,34,51],[34,52,34,64],[35,22,35,44],[35,45,35,51],[35,52,35,64],[36,22,36,44],[36,45,36,51],[36,52,36,64],[37,22,37,44],[37,45,37,51],[37,52,37,64],[38,22,38,44],[38,45,38,51],[38,52,38,64],[39,22,39,44],[39,45,39,51],[39,52,39,64],[40,22,40,44],[40,45,40,51],[40,52,40,64],[41,22,41,44],[41,45,41,51],[41,52,41,64],[42,22,42,44],[42,45,42,51],[42,52,42,64],[43,22,43,44],[43,45,43,51],[43,52,43,64],[44,22,44,44],[44,45,44,51],[44,52,44,64],[45,22,45,44],[45,45,45,51],[45,52,45,64],[46,22,46,44],[46,45,46,51],[46,52,46,64],[47,22,47,44],[47,45,47,51],[47,52,47,64],[48,22,48,44],[48,45,48,51],[48,52,48,64],[49,22,49,44],[49,45,49,51],[49,52,49,64],[50,22,50,44],[50,45,50,51],[50,52,50,64],[51,22,51,44],[51,45,51,51],[51,52,51,64],[52,22,52,44],[52,45,52,51],[52,52,52,64],[53,22,53,44],[53,45,53,51],[53,52,53,64],[54,22,54,44],[54,45,54,51],[54,52,54,64],[55,22,55,44],[55,45,55,51],[55,52,55,64],[56,22,56,44],[56,45,56,51],[56,52,56,64],[57,22,57,44],[57,45,57,51],[57,52,57,64],[58,22,58,44],[58,45,58,51],[58,52,58,64],[59,22,59,44],[59,45,59,51],[59,52,59,64],[60,22,60,44],[60,45,60,51],[60,52,60,64],[61,22,61,44],[61,45,61,51],[61,52,61,64],[62,22,62,44],[62,45,62,51],[62,52,62,64],[63,22,63,44],[63,45,63,51],[63,52,63,64],[64,22,65,64]]}
[]
[]
[{"$nulls":22},"TOOL OR REPORT",{"$nulls":22},"PASSWORD PROTECTED?",{"$nulls":6},"PASSWORD"]
[{"$nulls":4},"Click to Unlock Workbook",{"$nulls":17},"INFO SHEET"]
[{"$nulls":22},"FINANCING SHEET"]
[{"$nulls":22},"DEAL ANALYSIS TOOLS"]
[{"$nulls":4},"This Sheet's Password",{"$nulls":17},"REPAIR ESTIMATOR"]
[{"$nulls":22},"REHAB ANALYZER"]
[{"$nulls":22},"OFFER TRACKER"]
[{"$nulls":22},"COMPARABLE SALES"]
[{"$nulls":22},"ALTERNATIVE EXIT STRATEGIES"]
[{"$nulls":22},"WHOLESALE CALCULATOR"]
[{"$nulls":22},"RENTAL CALCULATOR"]
[{"$nulls":22},"DEAL ANALYSIS REPORTS"]
[{"$nulls":22},"INSPECTION CHECKLIST"]
[{"$nulls":22},"REPAIR COST ESTIMATE REPORT"]
[{"$nulls":4},"Note:  To Unlock the spreadsheet at anytime, you can press Cntrl + Shift + Z",{"$nulls":17},"INVESTMENT REPORT"]
[{"$nulls":22},"ALL PROJECT COSTS REPORT"]
[{"$nulls":22},"LENDER FUNDING REPORT"]
[{"$nulls":22},"HOMEOWNER OFFFER REPORT"]
[{"$nulls":22},"COMPARABLE SALES REPORT"]
[{"$nulls":22},"ALTERNATIVE STRATEGY REPORTS"]
[{"$nulls":22},"WHOLESALE REPORT"]
[{"$nulls":22},"RENTAL REPORT"]
[{"$nulls":22},"PROJECT MANAGEMENT TOOLS"]
[{"$nulls":22},"PROJECT SCHEDULER"]
[{"$nulls":22},"TASK MANAGER"]
[{"$nulls":22},"CONTACT MANAGER"]
[{"$nulls":22},"BID TRACKER"]
[{"$nulls":22},"PROJECT MANAGEMENT REPORTS"]
[{"$nulls":22},"CONTRACTOR PREQUALIFICATION FORM"]
[{"$nulls":22},"BID FORM"]
[{"$nulls":22},"REHAB CHECKLIST"]
[{"$nulls":22},"SCOPE OF WORK REPORT"]
[{"$nulls":22},"CONTRACT AGREEMENT"]
[{"$nulls":22},"PROJECT TASK LIST"]
[{"$nulls":22},"SHOPPING LIST REPORT"]
[{"$nulls":22},"PUNCH LIST REPORT"]
[{"$nulls":22},"LIEN WAIVER REPORT"]
[{"$nulls":22},"FOR SALE FLYER"]
[{"$nulls":22},"VENDOR CONTACT LIST"]
[{"$nulls":22},"VENDOR TAX & INSURANCE"]
[{"$nulls":22},"ACCOUNTING"]
[{"$nulls":22},"ACCOUNTING SETUP"]
[{"$nulls":22},"PROJECT BUDGETER"]
[{"$nulls":22},"INCOME & EXPENSE TRACKER"]
[{"$nulls":22},"OTHER"]
[{"$nulls":22},"LOAN TRACKER"]
[{"$nulls":22},"LOAN TRACKER"]
[{"$nulls":22},"EXPENSE IMPORTING/EXPORTING"]
[{"$nulls":22},"BUDGET REPORTS"]
[{"$nulls":22},"PROJECT BUDGET REPORT"]
[{"$nulls":22},"PROJECT BUDGET VS ESTIMATE"]
[{"$nulls":22},"EXPENSE REPORTS"]
[{"$nulls":22},"EXPENSE REPORT SUMMARY"]
[{"$nulls":22},"EXPENSE REPORT BY CATEGORY"]
[{"$nulls":22},"EXPENSE REPORT BY VENDOR"]
[{"$nulls":22},"EXPENSE REPORT BY ACCOUNT"]
[{"$nulls":22},"FORECASTING / FINAL PROFIT REPORTS"]
[{"$nulls":22},"PROJECTIONS REPORT"]
[{"$nulls":22},"FINAL PROFIT REPORT"]
[{"$nulls":22},"PROJECT PORTFOLIO REPORT"]
[{"$nulls":22},"VENDOR REPORTS"]
[{"$nulls":22},"VENDOR 1099 REPORT"]
[{"$nulls":22},"© 2018 by Houseflippingspreadsheet.com. All rights reserved"]

{"sheet":"INDEX","index":6,"n_rows":28,"n_cols":59,"rows_kept":28,"merged":[[1,14,1,20],[4,18,4,32],[4,38,4,52],[4,58,4,72],[6,18,6,32],[6,38,6,52],[6,58,6,72],[7,18,7,32],[7,38,7,52],[7,58,7,72],[8,18,8,32],[8,38,8,52],[8,58,8,72],[9,18,9,32],[9,38,9,52],[10,18,10,32],[10,38,10,52],[10,58,10,72],[11,18,11,32],[11,38,11,52],[14,18,14,32],[14,38,14,52],[14,58,14,72],[16,18,16,32],[16,38,16,52],[16,58,16,72],[17,18,17,32],[17,38,17,52],[17,58,17,72],[18,18,18,32],[18,38,18,52],[18,58,18,72],[19,18,19,32],[19,38,19,52],[19,58,19,72],[20,18,20,32],[20,38,20,52],[20,58,20,72],[21,18,21,32],[21,38,21,52],[21,58,21,72],[22,18,22,32],[22,38,22,52],[22,58,22,72],[23,18,23,32],[23,38,23,52],[23,58,23,72],[24,18,24,32],[24,38,24,52],[24,58,24,72],[25,18,25,32],[25,38,25,52],[25,58,25,72],[26,18,26,32],[26,38,26,52],[26,58,26,72],[27,38,27,52],[27,58,27,72]]}
[]
[{"$nulls":14},"INDEX"]
[]
[]
[{"$nulls":18},"Deal Analysis Tools",{"$nulls":19},"Management Tools",{"$nulls":19},"Accounting Tools"]
[]
[{"$nulls":18},"Repair Estimator",{"$nulls":19},"Project Scheduler",{"$nulls":19},"Accounting Setup"]
[{"$nulls":18},"Rehab Analyzer",{"$nulls":19},"Task Manager",{"$nulls":19},"Project Budgeter"]
[{"$nulls":18},"Offer Tracker",{"$nulls":19},"Bid Tracker",{"$nulls":19},"Expense Tracker"]
[{"$nulls":18},"Comparable Sales",{"$nulls":19},"Scope of Work Builder"]
[{"$nulls":18},"Rental Calculator",{"$nulls":19},"Material Manager"]
[{"$nulls":18},"Wholesale Calculator"]
[]
[]
[{"$nulls":18},"Deal Analysis Reports",{"$nulls":19},"Project Management Reports",{"$nulls":19},"Accounting Reports"]
[]
[{"$nulls":18},"Inspection Checklist",{"$nulls":19},"Contractor Prequalification",{"$nulls":19},"Project Budget Report"]
[{"$nulls":18},"Repair Estimate Report",{"$nulls":19},"Scope of Work",{"$nulls":19},"Project Forecast Report"]
[{"$nulls":18},"Investment Report",{"$nulls":19},"Contract Agreement",{"$nulls":19},"Final Profit Report"]
[{"$nulls":18},"All Project Costs Report",{"$nulls":19},"Bid Form",{"$nulls":19},"Project Portfolio Report"]
[{"$nulls":18},"Funding Report",{"$nulls":19},"Rehab Checklist",{"$nulls":19},"Expense Summary Report"]
[{"$nulls":18},"Home Owner Offer Report",{"$nulls":19},"Project Task List",{"$nulls":19},"Expense by Category Report"]
[{"$nulls":18},"Comparable Sales Report",{"$nulls":19},"Shopping List Report",{"$nulls":19},"Expense by Vendor Report"]
[{"$nulls":38},"Punchlist Report",{"$nulls":19},"Expense by Account Report"]
[{"$nulls":18},"Alternative Exit Strategies",{"$nulls":19},"Lien Waiver Report"]
[{"$nulls":18},"Rental Report",{"$nulls":19},"For Sale Flyer"]
[{"$nulls":18},"Wholesale Report",{"$nulls":19},"Vendor Contact List"]
[{"$nulls":38},"Vendor Tax & Insurance Report"]

{"sheet":"SETUP","index":7,"n_rows":26,"n_cols":76,"rows_kept":26,"hidden":true,"merged":[[2,12,2,21],[5,24,5,71],[7,24,7,71],[8,24,8,25],[8,26,8,37],[8,38,8,71],[9,24,9,25],[9,26,9,37],[9,38,9,71],[10,24,10,25],[10,26,10,37],[10,38,10,71],[11,24,11,25],[11,26,11,37],[11,38,11,71],[12,24,12,25],[12,26,12,37],[12,38,12,71],[13,24,13,25],[13,26,13,37],[13,38,13,71],[14,24,14,25],[14,26,14,37],[14,38,14,50],[14,51,14,59],[14,60,14,71],[15,26,15,37],[15,38,15,50],[15,51,15,59],[15,60,15,71],[17,24,17,71],[18,24,18,25],[18,26,18,37],[18,38,18,71],[19,24,19,25],[19,26,19,37],[19,38,19,71],[20,24,20,25],[20,26,20,37],[20,38,20,71],[21,24,21,25],[21,26,21,37],[21,38,21,71],[22,24,22,25],[22,26,22,37],[22,38,22,71],[23,24,23,25],[23,26,23,37],[23,38,23,71],[24,24,24,25],[24,26,24,37],[24,38,24,71],[25,24,25,25],[25,26,25,37],[25,38,25,71],[25,75,25,87]]}
[]
[]
[{"$nulls":12},"SETUP"]
[]
[]
[{"$nulls":24},"Setup Basic Property Information & Company Information which will be displayed on all reports."]
[]
[{"$nulls":24},"Property Information:"]
[{"$nulls":24},{"$f":"IF(AM9>0,1,0)","v":0},null,"Project Name:"]
[{"$nulls":24},0,null,"Property Type:"]
[{"$nulls":24},1,null,"Street Address:",{"$nulls":11},"1234 Main St"]
[{"$nulls":24},1,null,"City/State/Zip Code:",{"$nulls":11},"Kansas City, MO 64116"]
[{"$nulls":24},1,null,"Neighborhood:",{"$nulls":11},"The Coves"]
[{"$nulls":24},1,null,"School District:",{"$nulls":11},"Park Hill School District"]
[{"$nulls":24},1,null,"# of Beds:",{"$nulls":11},3,{"$nulls":12},"# of Baths:",{"$nulls":8},2]
[{"$nulls":26},"Square Feet:",{"$nulls":11},{"v":1500,"d":"1,500 sf"},{"$nulls":12},"New SF:"]
[]
[{"$nulls":24},"Company Information:"]
[{"$nulls":24},{"$f":"IF(AM19>0,1,0)","v":1},null,"Investor Name:",{"$nulls":11},"Dave"]
[{"$nulls":24},1,null,"Company Name:",{"$nulls":11},"Dave Inc"]
[{"$nulls":24},1,null,"Street Address:",{"$nulls":11},"P.O. Box 12345"]
[{"$nulls":24},0,null,"City/State/Zip:"]
[{"$nulls":24},1,null,"Email:",{"$nulls":11},"dave@venturesheets.com"]
[{"$nulls":24},1,null,"Phone:",{"$nulls":11},8161234567]
[{"$nulls":24},1,null,"Website:",{"$nulls":11},"www.venturesheets.com"]
[{"$nulls":24},0,null,"Income Tax Rate:",{"$nulls":48},"Start Analyzing the Deal"]

{"sheet":"CATEGORY SETUP","index":8,"n_rows":36,"n_cols":80,"rows_kept":36,"hidden":true,"merged":[[2,12,2,21],[5,24,5,71],[7,24,7,71],[8,24,8,25],[8,26,8,28],[8,29,8,51],[8,52,8,71],[9,24,9,25],[9,26,9,28],[9,29,9,51],[9,52,9,71],[10,24,10,25],[10,26,10,28],[10,29,10,51],[10,52,10,71],[11,24,11,25],[11,26,11,28],[11,29,11,51],[11,52,11,71],[12,24,12,25],[12,26,12,28],[12,29,12,51],[12,52,12,71],[13,24,13,25],[13,26,13,28],[13,29,13,51],[13,52,13,71],[14,24,14,25],[14,26,14,28],[14,29,14,51],[14,52,14,71],[15,24,15,25],[15,26,15,28],[15,29,15,51],[15,52,15,71],[16,24,16,25],[16,26,16,28],[16,29,16,51],[16,52,16,71],[17,24,17,25],[17,26,17,28],[17,29,17,51],[17,52,17,71],[18,24,18,25],[18,26,18,28],[18,29,18,51],[18,52,18,71],[19,24,19,25],[19,26,19,28],[19,29,19,51],[19,52,19,71],[20,24,20,25],[20,26,20,28],[20,29,20,51],[20,52,20,71],[21,24,21,25],[21,26,21,28],[21,29,21,51],[21,52,21,71],[22,24,22,25],[22,26,22,28],[22,29,22,51],[22,52,22,71],[23,24,23,25],[23,26,23,28],[23,29,23,51],[23,52,23,71],[24,24,24,25],[24,26,24,28],[24,29,24,51],[24,52,24,71],[25,24,25,25],[25,26,25,28],[25,29,25,51],[25,52,25,71],[26,24,26,25],[26,26,26,28],[26,29,26,51],[26,52,26,71],[27,24,27,25],[27,26,27,28],[27,29,27,51],[27,52,27,71],[28,24,28,25],[28,26,28,28],[28,29,28,51],[28,52,28,71],[29,24,29,25],[29,26,29,28],[29,29,29,51],[29,52,29,71],[30,24,30,25],[30,26,30,28],[30,29,30,51],[30,52,30,71],[31,24,31,25],[31,26,31,28],[31,29,31,51],[31,52,31,71],[32,24,32,25],[32,26,32,28],[32,29,32,51],[32,52,32,71],[35,79,37,90]]}
[]
[]
[{"$nulls":12},"CATEGORY SETUP"]
[]
[]
[{"$nulls":24},"Setup your Project Categories which will be used to Estimate Repairs and Track Project Costs."]
[]
[{"$nulls":24},"Categories"]
[{"$nulls":26},"#",null,null,"Category Name",{"$nulls":22},"Notes"]
[{"$nulls":24},{"$f":"IF(AD10>0,1,0)","v":1},null,1,null,null,"GENERAL CONDITIONS"]
[{"$nulls":24},{"$f":"IF(AD11>0,1,0)","v":1},null,2,null,null,"DEMOLITION"]
[{"$nulls":24},1,null,3,null,null,"STRUCTURAL CONCRETE"]
[{"$nulls":24},1,null,4,null,null,"CONCRETE & FLATWORK"]
[{"$nulls":24},1,null,5,null,null,"MASONRY"]
[{"$nulls":24},1,null,6,null,null,"SIDING"]
[{"$nulls":24},1,null,7,null,null,"DECKING AND PATIOS"]
[{"$nulls":24},1,null,8,null,null,"ROOFING"]
[{"$nulls":24},1,null,9,null,null,"EXTERIOR DOORS & WINDOWS"]
[{"$nulls":24},1,null,10,null,null,"GARAGE DOORS"]
[{"$nulls":24},1,null,11,null,null,"LANDSCAPING"]
[{"$nulls":24},1,null,12,null,null,"MISC. EXTERIOR ITEMS"]
[{"$nulls":24},1,null,13,null,null,"FRAMING & DRYWALL"]
[{"$nulls":24},1,null,14,null,null,"CABINETS & COUNTERTOPS"]
[{"$nulls":24},1,null,15,null,null,"DOORS & TRIM"]
[{"$nulls":24},1,null,16,null,null,"CARPET & RESILIENT"]
[{"$nulls":24},1,null,17,null,null,"HARDWOOD FLOORING"]
[{"$nulls":24},1,null,18,null,null,"TILING"]
[{"$nulls":24},{"$f":"IF(AD28>0,1,0)","v":1},null,19,null,null,"PAINTING"]
[{"$nulls":24},1,null,20,null,null,"APPLIANCES"]
[{"$nulls":24},1,null,21,null,null,"PLUMBING"]
[{"$nulls":24},1,null,22,null,null,"HVAC"]
[{"$nulls":24},1,null,23,null,null,"ELECTRICAL"]
[{"$nulls":24},1,null,24,null,null,"MISCELLANEOUS"]
[]
[]
[{"$nulls":79},"Back to Repair Estimator"]

{"sheet":"REHAB FINANCING SETUP","index":9,"n_rows":149,"n_cols":85,"rows_kept":149,"hidden":true,"merged":[[2,12,2,21],[5,30,5,32],[5,33,5,40],[5,41,5,42],[5,43,5,54],[5,55,5,56],[5,57,5,65],[7,19,7,76],[8,19,8,76],[10,21,10,22],[10,23,10,32],[10,34,10,35],[10,36,10,46],[10,48,10,49],[10,50,10,60],[10,62,10,63],[10,64,10,74],[12,19,12,76],[14,30,14,31],[14,33,14,34],[14,35,14,45],[14,51,14,52],[14,53,14,63],[17,40,17,54],[17,55,17,70],[17,72,17,75],[18,19,18,76],[20,1,21,17],[20,20,20,27],[20,29,20,36],[20,38,20,45],[20,47,20,54],[20,56,20,63],[20,65,20,75],[21,21,21,27],[21,30,21,36],[21,39,21,45],[21,48,21,54],[21,57,21,63],[21,65,21,66],[21,67,21,75],[21,88,21,95],[23,27,23,42],[23,43,23,52],[23,53,23,63],[25,19,26,20],[25,21,26,27],[25,28,26,34],[25,35,26,36],[25,37,26,43],[25,44,26,50],[25,51,25,63],[25,64,25,76],[26,51,26,63],[26,64,26,76],[27,19,28,20],[27,21,28,27],[27,28,28,34],[27,35,28,36],[27,37,28,43],[27,44,28,50],[27,51,27,56],[27,57,27,63],[27,64,27,76],[28,51,28,56],[28,57,28,63],[28,64,28,76],[29,19,30,20],[29,21,30,27],[29,28,30,34],[29,35,30,36],[29,37,30,43],[29,44,30,50],[29,51,29,63],[29,64,29,76],[30,51,30,63],[30,64,30,76],[31,19,32,20],[31,21,32,27],[31,28,32,34],[31,35,32,36],[31,37,32,43],[31,44,32,50],[31,51,32,63],[31,64,31,76],[32,64,32,76],[33,19,33,76],[35,21,35,30],[35,32,35,41],[35,43,35,52],[35,54,35,63],[35,65,35,74],[36,21,37,30],[36,32,37,41],[36,43,37,52],[36,54,37,63],[36,65,37,74],[39,21,39,30],[39,32,39,41],[39,43,39,52],[39,54,39,63],[39,65,39,74],[40,21,41,30],[40,32,41,41],[40,43,41,52],[40,54,41,63],[40,65,41,74],[44,40,44,54],[44,55,44,70],[44,72,44,75],[45,19,45,76],[47,1,48,17],[47,20,47,27],[47,29,47,36],[47,38,47,45],[47,47,47,54],[47,56,47,63],[47,65,47,75],[48,21,48,27],[48,30,48,36],[48,39,48,45],[48,48,48,54],[48,57,48,63],[48,65,48,66],[48,67,48,75],[48,88,48,95],[50,27,50,42],[50,43,50,52],[50,53,50,63],[52,19,53,20],[52,21,53,27],[52,28,53,34],[52,35,53,36],[52,37,53,43],[52,44,53,50],[52,51,52,63],[52,64,52,76],[53,51,53,63],[53,64,53,76],[54,19,55,20],[54,21,55,27],[54,28,55,34],[54,35,55,36],[54,37,55,43],[54,44,55,50],[54,51,54,56],[54,57,54,63],[54,64,54,76],[55,51,55,56],[55,57,55,63],[55,64,55,76],[56,19,57,20],[56,21,57,27],[56,28,57,34],[56,35,57,36],[56,37,57,43],[56,44,57,50],[56,51,56,63],[56,64,56,76],[57,51,57,63],[57,64,57,76],[58,19,59,20],[58,21,59,27],[58,28,59,34],[58,35,59,36],[58,37,59,43],[58,44,59,50],[58,51,59,63],[58,64,58,76],[59,64,59,76],[60,19,60,76],[62,21,62,30],[62,32,62,41],[62,43,62,52],[62,54,62,63],[62,65,62,74],[63,21,64,30],[63,32,64,41],[63,43,64,52],[63,54,64,63],[63,65,64,74],[66,21,66,30],[66,32,66,41],[66,43,66,52],[66,54,66,63],[66,65,66,74],[67,21,68,30],[67,32,68,41],[67,43,68,52],[67,54,68,63],[67,65,68,74],[71,19,71,76],[73,20,73,75],[75,34,75,60],[75,61,75,70],[77,20,77,22],[77,23,77,40],[77,41,77,50],[77,51,77,60],[77,61,77,70],[77,71,77,75],[78,20,78,22],[78,23,78,40],[78,41,78,50],[78,51,78,60],[78,61,78,70],[78,71,78,75],[79,20,79,22],[79,23,79,40],[79,41,79,50],[79,51,79,60],[79,61,79,70],[79,71,79,75],[80,20,80,22],[80,23,80,40],[80,41,80,50],[80,51,80,60],[80,61,80,70],[80,71,80,75],[81,20,81,22],[81,23,81,40],[81,41,81,50],[81,51,81,60],[81,61,81,70],[81,71,81,75],[82,20,82,22],[82,23,82,40],[82,41,82,50],[82,51,82,60],[82,61,82,70],[82,71,82,75],[83,20,83,22],[83,23,83,40],[83,41,83,50],[83,51,83,60],[83,61,83,70],[83,71,83,75],[84,20,84,22],[84,23,84,40],[84,41,84,50],[84,51,84,60],[84,61,84,70],[84,71,84,75],[85,20,85,22],[85,23,85,40],[85,41,85,50],[85,51,85,60],[85,61,85,70],[85,71,85,75],[86,20,86,22],[86,23,86,40],[86,41,86,50],[86,51,86,60],[86,61,86,70],[86,71,86,75],[87,20,87,22],[87,23,87,40],[87,41,87,50],[87,51,87,60],[87,61,87,70],[87,71,87,75],[88,20,88,40],[88,41,88,50],[88,51,88,60],[88,61,88,70],[88,71,88,75],[90,34,90,60],[90,61,90,70],[93,19,93,76],[95,23,95,62],[95,63,95,72],[96,23,96,62],[96,63,96,72],[96,77,97,100],[98,23,98,62],[98,63,98,72],[99,23,99,62],[99,63,99,72],[99,77,101,100],[100,23,100,62],[100,63,100,72],[101,23,101,62],[101,63,101,72],[102,23,102,62],[102,63,102,72],[103,23,103,62],[103,63,103,72],[103,77,103,100],[105,23,105,62],[105,63,105,72],[106,23,106,62],[106,63,106,72],[107,23,107,62],[107,63,107,72],[108,23,108,62],[108,63,108,72],[109,23,109,62],[109,63,109,72],[109,77,110,100],[111,19,111,76],[113,23,113,62],[113,63,113,72],[114,23,114,62],[115,23,115,62],[115,63,115,72],[116,23,116,62],[116,63,116,72],[117,23,117,62],[117,63,117,72],[118,23,118,62],[118,63,118,72],[119,23,119,62],[120,23,120,62],[120,63,120,72],[121,23,121,62],[121,63,121,72],[122,23,122,62],[122,63,122,72],[123,23,123,62],[123,63,123,72],[125,23,125,62],[125,63,125,72],[126,23,126,62],[126,63,126,72],[128,23,128,62],[128,63,128,72],[129,23,129,62],[129,63,129,72],[130,23,130,62],[130,63,130,72],[131,23,131,62],[131,63,131,72],[132,23,132,62],[132,63,132,72],[134,19,135,76],[135,84,137,96],[143,22,143,31],[143,33,143,42],[143,44,143,53],[143,55,143,64],[143,66,143,75],[144,22,145,31],[144,33,145,42],[144,44,145,53],[144,55,145,64],[144,66,145,75],[147,22,147,31],[147,33,147,42],[147,44,147,53],[147,55,147,64],[147,66,147,75],[148,22,149,31],[148,33,149,42],[148,44,149,53],[148,55,149,64],[148,66,149,75]]}
[]
[]
[{"$nulls":12},"SETUP"]
[]
[]
[{"$nulls":30},{"$f":"IF(1>0,1,0)","v":1},null,null,"Required Field",{"$nulls":7},{"$f":"IF(1>0,1,0)","v":1},null,"Suggested, but Not Required",{"$nulls":11},{"$f":"IF(1>0,1,0)","v":1},null,"Field Completed"]
[]
[{"$nulls":19},"Funding Strategy:"]
[{"$nulls":19},"How do you want to fund your Rehab Project?"]
[]
[{"$nulls":23},"All Cash",{"$nulls":12},"Debt (Loan)",{"$nulls":13},"Equity (Profit Share)",{"$nulls":13},"Combo"]
[]
[{"$nulls":19},"How many loans will be required to finance the project?"]
[]
[{"$nulls":35},"One",{"$nulls":17},"Two"]
[]
[]
[{"$nulls":40},"1st Loan:",{"$nulls":14},"Interest Only",{"$nulls":16},15]
[{"$nulls":19},"Select your Loan Amount Below:"]
[]
[null,"Note: Loan Amounts are Pending & will change based upon your remaining entries & calculations…",{"$nulls":18},"Purchase Price Only",{"$nulls":8},"Repair Costs Only",{"$nulls":8},"Purchase + Repairs",{"$nulls":8},"All Project Costs",{"$nulls":8},"ARV",{"$nulls":8},"Input Specific Amount"]
[{"$nulls":21},{"$f":"'ANALYSIS DATABASE'!C168","v":{"v":61836.912500000006,"d":"$61,837"}},{"$nulls":8},{"$f":"TOTAL_REPAIRS_ESTIMATE","v":{"v":63563.0875,"d":"$63,563"}},{"$nulls":8},{"$f":"V22+AE22","v":{"v":125400,"d":"$125,400"}},{"$nulls":8},{"$f":"'ANALYSIS DATABASE'!C176","v":{"v":129400,"d":"$129,400"}},{"$nulls":8},{"$f":"AFTER_REPAIR_VALUE_ESTIMATED","v":{"v":165000,"d":"$165,000"}},{"$nulls":9},{"v":100000,"d":"$100,000"}]
[]
[{"$nulls":27},"Length of Loan Payments (months)",{"$nulls":15},{"v":6,"d":"6 months"},{"$nulls":9},"input # (ex. 6)"]
[]
[{"$nulls":19},{"$f":"IF(AC26>0,1,0)","v":0},null,"Down Payment or LTV?: ",{"$nulls":13},{"$f":"IF(OR(AC26=\"NO\",AC26>0),1,0)","v":0},null,{"$f":"IF(AC26=\"LTV\",\"LTV Ratio\",\"Down Payment %\")","v":"Down Payment %"},{"$nulls":13},{"$f":"IF(AC26=\"Down Payment\",\"Down Payment Amount\",\"LTV Reduction\")","v":"LTV Reduction"},{"$nulls":12},"Loan Balance"]
[{"$nulls":51},{"$f":"IF(AND(AC26=\"LTV\",AS26=0),0,'ANALYSIS DATABASE'!C193)","v":{"v":0,"d":"$0"}},{"$nulls":12},{"$f":"Loan_Balance_After_DP_Loan1","v":{"v":0,"d":"$0"}}]
[{"$nulls":19},{"$f":"IF(AC28>0,1,0)","v":1},null,"Interest Rate %:",{"$nulls":6},{"v":0.12,"d":"12.00%"},{"$nulls":6},{"$f":"IF(AS28>0,1,0)","v":0},null,"Payments Made Monthly or Rolled?:",{"$nulls":13},"Monthly Interest",{"$nulls":5},"Total Interest",{"$nulls":6},"Interest Added to Loan Balance"]
[{"$nulls":51},{"$f":"'ANALYSIS DATABASE'!C198","v":{"v":0,"d":"$0"}},{"$nulls":5},{"$f":"'ANALYSIS DATABASE'!C199","v":{"v":0,"d":"$0"}},{"$nulls":6},{"$f":"'ANALYSIS DATABASE'!C201","v":{"v":0,"d":"$0"}}]
[{"$nulls":19},{"$f":"IF(AC30>0,1,0)","v":1},null," Lender Points %:",{"$nulls":6},{"v":0.02,"d":"2.00%"},{"$nulls":6},{"$f":"IF(AS30>0,1,0)","v":0},null,"Points Paid Upfront or Rolled?:",{"$nulls":13},"Points Amount",{"$nulls":12},"Points Added to Loan Balance"]
[{"$nulls":51},{"$f":"'ANALYSIS DATABASE'!C203","v":{"v":0,"d":"$0"}},{"$nulls":12},{"$f":"'ANALYSIS DATABASE'!C205","v":{"v":0,"d":"$0"}}]
[{"$nulls":19},{"$f":"IF(AC32>0,1,0)","v":0},null,"Other Costs:",{"$nulls":13},{"$f":"IF(AS32>0,1,0)","v":0},null,{"$f":"IF(AC32=\"% of Loan\",\"% of Loan\",\"Amount\")","v":"Amount"},{"$nulls":26},"Other Loan Costs"]
[{"$nulls":64},{"$f":"IF(AC32=\"% of Loan\",AS32*AG41,AS32)","v":{"v":0,"d":"$0"}}]
[{"$nulls":19},"Loan 1 Results:"]
[]
[{"$nulls":21},"Total Interest",{"$nulls":10},"Total Points",{"$nulls":10},"Other Loan Costs",{"$nulls":10},"Total Financing Costs",{"$nulls":10},"% of Loan"]
[{"$nulls":21},{"$f":"'ANALYSIS DATABASE'!C199","v":{"v":0,"d":"$0"}},{"$nulls":10},{"$f":"'ANALYSIS DATABASE'!C203","v":{"v":0,"d":"$0"}},{"$nulls":10},{"$f":"BM33","v":{"v":0,"d":"$0"}},{"$nulls":10},{"$f":"V37+AG37+AR37","v":{"v":0,"d":"$0"}},{"$nulls":10},{"$f":"IFERROR(BC37/AG41,0)","v":{"v":0,"d":"0.0%"}}]
[]
[]
[{"$nulls":21},"Total Capital ",{"$nulls":10},"Funding",{"$nulls":10},"Cash Upfront",{"$nulls":10},"Cash During Flip",{"$nulls":10},"Total Cash"]
[{"$nulls":21},{"$f":"'1 REHAB ANALYZER'!CW74","v":{"v":129400,"d":"$129,400"}},{"$nulls":10},{"$f":"'ANALYSIS DATABASE'!C214","v":{"v":0,"d":"$0"}},{"$nulls":10},{"$f":"'ANALYSIS DATABASE'!C212","v":{"v":0,"d":"$0"}},{"$nulls":10},{"$f":"'ANALYSIS DATABASE'!C215","v":{"v":129400,"d":"$129,400"}},{"$nulls":10},{"$f":"AR41+BC41","v":{"v":129400,"d":"$129,400"}}]
[]
[]
[]
[{"$nulls":40},"2nd Loan:",{"$nulls":14},"Interest Only",{"$nulls":16},30]
[{"$nulls":19},"Select your Loan Amount Below:"]
[]
[null,"Note: Loan Amounts are Pending & will change based upon your remaining entries & calculations…",{"$nulls":18},"Purchase Price Only",{"$nulls":8},"Repair Costs Only",{"$nulls":8},"Purchase + Repairs",{"$nulls":8},"All Project Costs",{"$nulls":8},"ARV",{"$nulls":8},"Input Specific Amount"]
[{"$nulls":21},{"$f":"'ANALYSIS DATABASE'!C168","v":{"v":61836.912500000006,"d":"$61,837"}},{"$nulls":8},{"$f":"TOTAL_REPAIRS_ESTIMATE","v":{"v":63563.0875,"d":"$63,563"}},{"$nulls":8},{"$f":"V49+AE49","v":{"v":125400,"d":"$125,400"}},{"$nulls":8},{"$f":"'ANALYSIS DATABASE'!C176","v":{"v":129400,"d":"$129,400"}},{"$nulls":8},{"$f":"AFTER_REPAIR_VALUE_ESTIMATED","v":{"v":165000,"d":"$165,000"}},{"$nulls":9},{"v":50000,"d":"$50,000"}]
[]
[{"$nulls":27},"Length of Loan Payments (months)",{"$nulls":25},"input # (ex. 6)"]
[]
[{"$nulls":19},{"$f":"IF(AC53>0,1,0)","v":0},null,"Down Payment or LTV?: ",{"$nulls":13},{"$f":"IF(AS53>0,1,0)","v":0},null,{"$f":"IF(AC53=\"LTV\",\"LTV Ratio\",\"Down Payment %\")","v":"Down Payment %"},{"$nulls":13},"Down Payment Amount",{"$nulls":12},"Loan Balance"]
[{"$nulls":51},{"$f":"'ANALYSIS DATABASE'!C223","v":{"v":0,"d":"$0"}},{"$nulls":12},{"$f":"'ANALYSIS DATABASE'!C224","v":{"v":0,"d":"$0"}}]
[{"$nulls":19},{"$f":"IF(AC55>0,1,0)","v":0},null,"Interest Rate %:",{"$nulls":13},{"$f":"IF(AS55>0,1,0)","v":0},null,"Payments Made Monthly or Rolled?:",{"$nulls":13},"Monthly Interest",{"$nulls":5},"Total Interest",{"$nulls":6},"Interest Added to Loan Balance"]
[{"$nulls":51},{"$f":"'ANALYSIS DATABASE'!C228","v":{"v":0,"d":"$0"}},{"$nulls":5},{"$f":"'ANALYSIS DATABASE'!C229","v":{"v":0,"d":"$0"}},{"$nulls":6},{"$f":"'ANALYSIS DATABASE'!C231","v":{"v":0,"d":"$0"}}]
[{"$nulls":19},{"$f":"IF(AC57>0,1,0)","v":0},null," Lender Points %:",{"$nulls":13},{"$f":"IF(AS57>0,1,0)","v":0},null,"Points Paid Upfront or Rolled?:",{"$nulls":13},"Points Amount",{"$nulls":12},"Points Added to Loan Balance"]
[{"$nulls":51},{"$f":"'ANALYSIS DATABASE'!C233","v":{"v":0,"d":"$0"}},{"$nulls":12},{"$f":"'ANALYSIS DATABASE'!C235","v":{"v":0,"d":"$0"}}]
[{"$nulls":19},{"$f":"IF(AC59>0,1,0)","v":0},null,"Other Costs:",{"$nulls":13},{"$f":"IF(AS59>0,1,0)","v":0},null,{"$f":"IF(AC59=\"% of Loan\",\"% of Loan\",\"Amount\")","v":"Amount"},{"$nulls":26},"Other Loan Costs"]
[{"$nulls":64},{"$f":"IF(AC59=\"% of Loan\",AS59*AG68,AS59)","v":{"v":0,"d":"$0"}}]
[{"$nulls":19},"Loan 2 Results:"]
[]
[{"$nulls":21},"Total Interest",{"$nulls":10},"Total Points",{"$nulls":10},"Other Loan Costs",{"$nulls":10},"Total Financing Costs",{"$nulls":10},"Financing %"]
[{"$nulls":21},{"$f":"'ANALYSIS DATABASE'!C229","v":{"v":0,"d":"$0"}},{"$nulls":10},{"$f":"'ANALYSIS DATABASE'!C233","v":{"v":0,"d":"$0"}},{"$nulls":10},{"$f":"BM60","v":{"v":0,"d":"$0"}},{"$nulls":10},{"$f":"V64+AG64+AR64","v":{"v":0,"d":"$0"}},{"$nulls":10},{"$f":"IFERROR(BC64/AG68,0)","v":{"v":0,"d":"0.0%"}}]
[]
[]
[{"$nulls":21},"Total Capital ",{"$nulls":10},"Funding",{"$nulls":10},"Cash Upfront",{"$nulls":10},"Cash During Flip",{"$nulls":10},"Total Cash"]
[{"$nulls":21},{"$f":"IF(AG68=0,0,V41)","v":{"v":0,"d":"$0"}},{"$nulls":10},{"$f":"'ANALYSIS DATABASE'!C243","v":{"v":0,"d":"$0"}},{"$nulls":10},{"$f":"'ANALYSIS DATABASE'!C241","v":{"v":0,"d":"$0"}},{"$nulls":10},{"$f":"IF(AG68=0,0,'ANALYSIS DATABASE'!C244)","v":{"v":0,"d":"$0"}},{"$nulls":10},{"$f":"AR68+BC68","v":{"v":0,"d":"$0"}}]
[]
[]
[]
[{"$nulls":19},"Equity"]
[]
[{"$nulls":20},"The Equity Option is used if you are partnering and sharing the Project Profit with Other Investors."]
[]
[{"$nulls":34},"Current Project Profit Amount:",{"$nulls":26},{"$f":"Total_Profit_Result","v":{"v":24750,"d":"$24,750.00"}}]
[]
[{"$nulls":20},"#",null,null,"Investor Name",{"$nulls":17},"Amount Invested",{"$nulls":9},"Profit Share %",{"$nulls":9},"Profit Amount",{"$nulls":9},"COCR"]
[{"$nulls":20},1,null,null,"Larry the Investor",{"$nulls":17},{"v":100000,"d":"$100,000"},{"$nulls":9},{"v":0.25,"d":"25.00%"},{"$nulls":9},{"$f":"$BJ$76*AZ79","v":{"v":6187.5,"d":"$6,187.50"}},{"$nulls":9},{"$f":"IFERROR(BJ79/AP79,0)","v":{"v":0.061875,"d":"6%"}}]
[{"$nulls":20},2,null,null,"Investor 2",{"$nulls":37},{"v":0,"d":"$0.00"},{"$nulls":9},{"$f":"IFERROR(BJ80/AP80,0)","v":{"v":0,"d":"0%"}}]
[{"$nulls":20},3,null,null,"Investor 3",{"$nulls":37},{"v":0,"d":"$0.00"},{"$nulls":9},{"v":0,"d":"0%"}]
[{"$nulls":20},4,null,null,"Investor 4",{"$nulls":37},{"v":0,"d":"$0.00"},{"$nulls":9},{"v":0,"d":"0%"}]
[{"$nulls":20},5,null,null,"Investor 5",{"$nulls":37},{"v":0,"d":"$0.00"},{"$nulls":9},{"v":0,"d":"0%"}]
[{"$nulls":20},6,null,null,"Investor 6",{"$nulls":37},{"v":0,"d":"$0.00"},{"$nulls":9},{"v":0,"d":"0%"}]
[{"$nulls":20},7,null,null,"Investor 7",{"$nulls":37},{"v":0,"d":"$0.00"},{"$nulls":9},{"v":0,"d":"0%"}]
[{"$nulls":20},8,null,null,"Investor 8",{"$nulls":37},{"v":0,"d":"$0.00"},{"$nulls":9},{"v":0,"d":"0%"}]
[{"$nulls":20},9,null,null,"Investor 9",{"$nulls":37},{"v":0,"d":"$0.00"},{"$nulls":9},{"v":0,"d":"0%"}]
[{"$nulls":20},10,null,null,"Investor 10",{"$nulls":37},{"v":0,"d":"$0.00"},{"$nulls":9},{"$f":"IFERROR(BJ88/AP88,0)","v":{"v":0,"d":"0%"}}]
[{"$nulls":20},"Totals",{"$nulls":20},{"$f":"IF(OR(Funding_Strategy=\"Equity\",Funding_Strategy=\"Combo\"),SUM(AP79:AY88),0)","v":{"v":0,"d":"$0.00"}},{"$nulls":9},{"$f":"SUM(AZ79:BI88)","v":{"v":0.25,"d":"25.00%"}},{"$nulls":9},{"$f":"SUM(BJ79:BS88)","v":{"v":6187.5,"d":"$6,187.50"}},{"$nulls":9},{"$f":"IFERROR(BJ89/AP89,0)","v":{"v":0,"d":"0%"}}]
[]
[{"$nulls":34},"Your Profit:",{"$nulls":26},{"$f":"BJ76-BJ89","v":{"v":18562.5,"d":"$18,562.50"}}]
[]
[]
[{"$nulls":19},"Project Capital Results:"]
[]
[{"$nulls":23},"Capital Item",{"$nulls":39},"Capital Amount"]
[{"$nulls":23},"Capital Needed (All Project Costs excluding Selling Costs)",{"$nulls":39},{"$f":"'1 REHAB ANALYZER'!BO74","v":{"v":129400,"d":"$129,400"}},{"$nulls":13},{"$f":"CONCATENATE(\"You will need \",TEXT(BL97,\"$#,###\"),\" in Capital to fund the purchase, repairs, buying, holding & financing costs.\")","v":"You will need $129,400 in Capital to fund the purchase, repairs, buying, holding & financing costs."}]
[]
[{"$nulls":23},"Debt Financing"]
[{"$nulls":23},"Loan 1 Amount",{"$nulls":39},{"$f":"IF(OR(Funding_Strategy=\"Financed\",Funding_Strategy=\"Combo\"),AG41,0)","v":{"v":0,"d":"$0"}},{"$nulls":13},{"$f":"CONCATENATE(\"You are receiving \",TEXT(BL102,\"$#,###\"),\" in Debt Financing (Loans)\")","v":"You are receiving $ in Debt Financing (Loans)"}]
[{"$nulls":23},"Loan 2 Amount",{"$nulls":39},{"$f":"IF(OR(Funding_Strategy=\"Financed\",Funding_Strategy=\"Combo\"),AG68,0)","v":{"v":0,"d":"$0"}}]
[{"$nulls":23},"Total Debt Financing",{"$nulls":39},{"$f":"SUM(BL100:BU101)","v":{"v":0,"d":"$0"}}]
[{"$nulls":23},"Equity Financing"]
[{"$nulls":23},"Outside Equity Investment Amount",{"$nulls":39},{"$f":"IF(OR(Funding_Strategy=\"Equity\",Funding_Strategy=\"Combo\"),AP89,0)","v":{"v":0,"d":"$0"}},{"$nulls":13},{"$f":"CONCATENATE(\"You are receiving \",TEXT(BL104,\"$#,###\"),\" in Equity Financing\")","v":"You are receiving $ in Equity Financing"}]
[]
[{"$nulls":23},"Cash Investment"]
[{"$nulls":23},"Capital Needed (All Project Costs excluding Selling Costs)",{"$nulls":39},{"$f":"BL97","v":{"v":129400,"d":"$129,400"}}]
[{"$nulls":23},"- Less Total Debt Financing",{"$nulls":39},{"$f":"-BL102","v":{"v":0,"d":"$0"}}]
[{"$nulls":23},"- Less Equity Financing",{"$nulls":39},{"$f":"-BL104","v":{"v":0,"d":"$0"}}]
[{"$nulls":23},"Rehabber's Cash Outlay",{"$nulls":39},{"$f":"SUM(BL107:BU109)","v":{"v":129400,"d":"$129,400"}},{"$nulls":13},{"$f":"IF(BL110<0,CONCATENATE(\"Your project is overcapitalized by \",TEXT(-BL110,\"$#,###\")),CONCATENATE(\"You will need \",TEXT(BL110,\"$#,###\"),\" of your Own Cash to fund this project\"))","v":"You will need $129,400 of your Own Cash to fund this project"}]
[]
[{"$nulls":19},"Total Financing Costs:"]
[]
[{"$nulls":23},"Debt Financing Costs"]
[{"$nulls":23},"Loan 1"]
[{"$nulls":23},"Loan 1 Interest",{"$nulls":39},{"$f":"IF(OR(Funding_Strategy=\"Financed\",Funding_Strategy=\"Combo\"),V37,0)","v":{"v":0,"d":"$0"}}]
[{"$nulls":23},"Loan 1 Points ",{"$nulls":39},{"$f":"IF(OR(Funding_Strategy=\"Financed\",Funding_Strategy=\"Combo\"),AG37,0)","v":{"v":0,"d":"$0"}}]
[{"$nulls":23},"Loan 1 Other Costs",{"$nulls":39},{"$f":"IF(OR(Funding_Strategy=\"Financed\",Funding_Strategy=\"Combo\"),AR37,0)","v":{"v":0,"d":"$0"}}]
[{"$nulls":23},"Total Loan 1 Financing Costs",{"$nulls":39},{"$f":"SUM(BL116:BU118)","v":{"v":0,"d":"$0"}}]
[{"$nulls":23},"Loan 2"]
[{"$nulls":23},"Loan 2 Interest",{"$nulls":39},{"$f":"IF(OR(Funding_Strategy=\"Financed\",Funding_Strategy=\"Combo\"),V64,0)","v":{"v":0,"d":"$0"}}]
[{"$nulls":23},"Loan 2 Points ",{"$nulls":39},{"$f":"IF(OR(Funding_Strategy=\"Financed\",Funding_Strategy=\"Combo\"),AG64,0)","v":{"v":0,"d":"$0"}}]
[{"$nulls":23},"Loan 2 Other Costs",{"$nulls":39},{"$f":"IF(OR(Funding_Strategy=\"Financed\",Funding_Strategy=\"Combo\"),AR64,0)","v":{"v":0,"d":"$0"}}]
[{"$nulls":23},"Total Loan 2 Financing Costs",{"$nulls":39},{"$f":"SUM(BL121:BU123)","v":{"v":0,"d":"$0"}}]
[]
[{"$nulls":23},"Equity Financing Costs"]
[{"$nulls":23},"Equity Investor Profit Split",{"$nulls":39},{"$f":"IF(OR(Funding_Strategy=\"Equity\",Funding_Strategy=\"Combo\"),BJ89,0)","v":{"v":0,"d":"$0"}}]
[]
[{"$nulls":23},"Total Financing Costs"]
[{"$nulls":23},"Loan 1 Financing Costs",{"$nulls":39},{"$f":"BL119","v":{"v":0,"d":"$0"}}]
[{"$nulls":23},"Loan 2 Financing Costs",{"$nulls":39},{"$f":"BL124","v":{"v":0,"d":"$0"}}]
[{"$nulls":23},"Equity Financing Costs (Profit Share)",{"$nulls":39},{"$f":"BL127","v":{"v":0,"d":"$0"}}]
[{"$nulls":23},"Total Financing Costs",{"$nulls":39},{"$f":"SUM(BL130:BU132)","v":{"v":0,"d":"$0"}}]
[]
[{"$nulls":19},"© 2018 by Houseflippingspreadsheet.com. All rights reserved"]
[{"$nulls":84},"Back to Rehab Analyzer"]
{"$rows_empty":7}
[{"$nulls":22},"Total Interest",{"$nulls":10},"Total Points",{"$nulls":10},"Other Loan Costs",{"$nulls":10},"Total Financing Costs",{"$nulls":10},"Financing %"]
[{"$nulls":22},{"$f":"V37+V64","v":{"v":0,"d":"$0"}},{"$nulls":10},{"$f":"AG37+AG64","v":{"v":0,"d":"$0"}},{"$nulls":10},{"$f":"AR37+AR64","v":{"v":0,"d":"$0"}},{"$nulls":10},{"$f":"BC37+BC64","v":{"v":0,"d":"$0"}},{"$nulls":10},{"$f":"IFERROR(BD145/AH149,0)","v":{"v":0,"d":"0.0%"}}]
[]
[]
[{"$nulls":22},"Total Capital ",{"$nulls":10},"Total Debt",{"$nulls":10},"Total Equity",{"$nulls":10},"Total Debt & Equity",{"$nulls":10},"Total Cash"]
[{"$nulls":22},{"$f":"'1 REHAB ANALYZER'!CW74","v":{"v":129400,"d":"$129,400"}},{"$nulls":10},{"$f":"'ANALYSIS DATABASE'!C250","v":{"v":0,"d":"$0"}},{"$nulls":10},{"$f":"AP89","v":{"v":0,"d":"$0"}},{"$nulls":10},{"$f":"AH149+AS149","v":{"v":0,"d":"$0"}},{"$nulls":10},{"$f":"'ANALYSIS DATABASE'!C253","v":{"v":129400,"d":"$129,400"}}]

{"sheet":"HOME","index":10,"n_rows":34,"n_cols":97,"rows_kept":34,"merged":[[3,15,4,77],[4,2,5,10],[6,61,7,74],[7,3,7,9],[8,3,9,9],[8,61,9,74],[10,2,12,10],[10,61,11,74],[11,16,13,34],[11,40,13,55],[12,61,13,74],[15,13,15,22],[15,23,15,60],[15,61,15,74],[18,15,19,29],[18,30,19,45],[29,19,29,25],[29,31,29,39],[29,41,29,54],[29,56,29,63],[29,66,29,76],[33,13,34,79]]}
[{"$nulls":96},"Shown"]
[]
[]
[{"$nulls":15},{"$f":"IF(Investor_Name=\"\",\"Welcome\",CONCATENATE(\"Welcome Back, \",Investor_Name,\"!\"))","v":"Welcome Back, Dave!"}]
[null,null,"Sheet Settings"]
[]
[{"$nulls":61},"Quick Links"]
[{"$nulls":3},"zoom setting"]
[{"$nulls":3},{"v":1,"d":"100%"},{"$nulls":57},"Rehab Analyzer"]
[]
[null,null,"Admin Settings",{"$nulls":58},"Repair Estimator"]
[{"$nulls":16},"Start Analyzing your Rehab Deal…",{"$nulls":23},"Video Tutorials…"]
[{"$nulls":61},"Project Budgeter"]
[]
[]
[{"$nulls":13},"WARNING",{"$nulls":9},"Macros may be disabled.  To test if macros are enabled, click any of the buttons on the Dashboard…",{"$nulls":37},"Enabling Macros Tutorial"]
[]
[]
[{"$nulls":15},"Rehab Workflow"]
{"$rows_empty":10}
[{"$nulls":19},"Project Setup",{"$nulls":11},"Deal Analysis Tools",{"$nulls":9},"Project Management Tools",{"$nulls":14},"Accounting Tools",{"$nulls":9},"Reporting"]
[]
[]
[]
[{"$nulls":13},"© 2018 by HouseFlippingSpreadsheet.com. All rights reserved"]

{"sheet":"ANALYZE","index":11,"n_rows":67,"n_cols":97,"rows_kept":67,"merged":[[0,1,0,11],[3,15,4,29],[3,30,4,45],[14,24,14,31],[14,43,14,50],[14,61,14,69],[19,15,20,33],[19,37,20,57],[21,15,22,32],[21,38,22,74],[23,15,24,32],[23,38,24,55],[23,60,24,77],[25,15,26,32],[25,38,26,55],[25,60,26,77],[27,38,28,55],[27,60,28,77],[29,15,30,32],[29,38,30,55],[29,60,30,77],[31,15,32,32],[31,38,32,74],[33,15,34,32],[33,38,34,55],[33,60,34,77],[38,15,39,42],[41,16,41,35],[43,17,43,18],[43,19,43,77],[45,17,45,18],[45,19,45,77],[47,17,47,18],[47,19,47,77],[49,17,49,18],[49,19,49,77],[51,17,51,18],[51,19,51,77],[53,17,53,18],[53,19,53,77],[55,17,55,18],[55,19,55,77],[57,16,57,35],[59,17,59,18],[59,19,59,77],[61,17,61,18],[61,19,61,77],[63,17,63,18],[63,19,63,77],[66,13,67,79]]}
[{"$nulls":96},"Shown"]
[]
[]
[{"$nulls":15},"Analyze Workflow",{"$nulls":14},"Analyze Your Rehab Deal"]
{"$rows_empty":10}
[{"$nulls":24},"Property Setup",{"$nulls":18},"Rehab Analyzer",{"$nulls":17},"Repair Estimator"]
[]
[]
[]
[]
[{"$nulls":15},"Other Tools",{"$nulls":21},"Deal Analysis Reports…"]
[]
[{"$nulls":15},"Rehab Tools",{"$nulls":22},"Rehab Reports"]
[]
[{"$nulls":15},"- Offer Tracker",{"$nulls":22},"- Inspection Checklist",{"$nulls":21},"- Lender Funding Report"]
[]
[{"$nulls":15},"- Comparables Tool",{"$nulls":22},"- Estimate Reports",{"$nulls":21},"- Homeowner Offer Report"]
[]
[{"$nulls":38},"- Investment Reports",{"$nulls":21},"- Comparables Report"]
[]
[{"$nulls":15},"Alternative Exit Strategies",{"$nulls":22},"- All Project Costs Report"]
[]
[{"$nulls":15},"- Rental Calculator",{"$nulls":22},"Alternative Exit Strategy Reports"]
[]
[{"$nulls":15},"- Wholesale Calculator",{"$nulls":22},"- Wholesale Reports",{"$nulls":21},"- Rental Cash Flow Report"]
[]
[]
[]
[]
[{"$nulls":15},"Submitting an Offer Checklist"]
[]
[]
[{"$nulls":16},"Due Diligence & Analysis"]
[]
[{"$nulls":19},"Contact Agent and Contractor to Walkthrough and Inspect Property"]
[]
[{"$nulls":19},"Walkthrough/Inspect property & create Detailed Scope of Work using the Inspection Checklist"]
[]
[{"$nulls":19},"Create Pre-liminary Repair Cost Estimate using the Repair Cost Estimator"]
[]
[{"$nulls":19},"Calculate the Maximum Purchase Price to Offer for the Property using the Rehab Analyzer"]
[]
[{"$nulls":19},"Distribute Financial Analysis (Investment Reports) to Partners (if applicable)"]
[]
[{"$nulls":19},"Make 'Go' or 'No-Go' Decision o Make an Offer"]
[]
[{"$nulls":19},"Track your Offers and Counter Offer using the Offer Tracker"]
[]
[{"$nulls":16},"Upon Offer Acceptance"]
[]
[{"$nulls":19},"Send Signed Offer/Purchase Agreement to Seller"]
[]
[{"$nulls":19},"Send Copy of Earnest Money Deposit/Certified Check (if required)"]
[]
[{"$nulls":19},"Send Proof of Funds Letter (if required)"]
[]
[]
[{"$nulls":13},"© 2018 by HouseFlippingSpreadsheet.com. All rights reserved"]

{"sheet":"1 REHAB ANALYZER","index":12,"n_rows":130,"n_cols":141,"rows_kept":130,"hidden":true,"merged":[[2,0,2,6],[2,7,2,19],[5,2,7,33],[5,40,7,57],[5,58,7,64],[5,66,7,98],[5,100,7,132],[8,2,14,33],[8,35,9,57],[8,58,9,64],[8,90,10,98],[8,100,10,132],[10,35,11,57],[10,58,11,64],[11,66,17,98],[11,100,17,132],[12,35,13,57],[12,58,13,64],[14,35,15,57],[14,58,15,64],[15,2,17,22],[15,23,17,28],[15,29,17,29],[15,30,17,32],[15,33,17,33],[16,35,17,57],[16,58,17,64],[18,2,19,33],[18,35,19,57],[18,58,19,64],[18,66,20,76],[18,77,20,87],[18,88,20,98],[18,100,46,115],[18,116,20,132],[20,2,21,25],[20,26,21,33],[20,35,21,57],[20,58,21,64],[21,66,27,76],[21,77,27,87],[21,88,27,98],[21,116,23,132],[22,2,23,25],[22,26,23,33],[22,35,23,57],[22,58,23,64],[24,2,25,25],[24,26,25,33],[24,35,25,57],[24,58,25,64],[24,116,46,132],[26,2,27,25],[26,26,27,33],[26,35,27,57],[26,58,27,64],[28,2,29,25],[28,26,29,33],[28,35,29,57],[28,58,29,64],[28,66,30,98],[30,2,31,25],[30,26,31,33],[30,35,31,57],[30,58,31,64],[31,66,37,98],[32,2,33,25],[32,26,33,33],[32,35,33,57],[32,58,33,64],[34,2,35,10],[34,11,35,16],[34,17,35,21],[34,35,35,57],[34,58,35,64],[36,35,37,57],[36,58,37,64],[38,2,39,9],[38,12,40,15],[38,17,39,21],[38,22,39,25],[38,26,39,33],[38,35,39,57],[38,58,39,64],[38,82,39,98],[40,2,41,9],[40,17,41,21],[40,22,41,25],[40,26,41,33],[40,35,41,57],[40,58,41,64],[40,82,43,98],[41,11,42,16],[42,2,43,9],[42,17,43,21],[42,22,43,25],[42,26,43,33],[42,35,43,57],[42,58,43,64],[43,12,45,15],[44,2,45,9],[44,17,45,21],[44,22,45,25],[44,26,45,33],[44,35,45,57],[44,58,45,64],[44,82,66,98],[46,2,47,9],[46,11,47,16],[46,17,47,21],[46,22,47,25],[46,26,47,33],[46,35,47,57],[46,58,47,64],[47,100,49,132],[48,2,49,11],[48,12,50,15],[48,17,49,21],[48,22,49,25],[48,26,49,33],[48,35,49,57],[48,58,49,64],[50,17,51,21],[50,22,51,25],[50,26,51,33],[50,35,51,57],[50,58,51,64],[50,100,51,105],[50,106,56,126],[50,127,51,132],[51,12,51,15],[52,35,53,57],[52,58,53,64],[52,100,56,105],[52,127,56,132],[54,2,55,11],[54,35,55,57],[54,58,55,64],[56,2,57,15],[56,17,57,21],[56,22,57,25],[56,26,57,33],[56,35,58,48],[56,50,58,56],[56,58,58,64],[57,100,59,110],[57,111,59,121],[57,122,59,132],[58,2,59,15],[58,17,59,21],[58,22,59,25],[58,26,59,33],[60,2,61,25],[60,26,61,33],[60,35,62,57],[60,58,62,64],[60,100,66,110],[60,111,66,121],[60,122,66,132],[62,2,63,25],[62,26,63,33],[63,35,65,49],[63,50,65,56],[63,58,65,64],[64,2,65,25],[64,26,65,33],[66,2,67,25],[66,26,67,33],[66,35,68,49],[66,50,68,56],[66,58,68,64],[67,66,69,98],[67,100,69,132],[68,2,69,25],[68,26,69,33],[69,35,71,49],[69,50,71,56],[69,58,71,64],[70,2,71,25],[70,26,71,33],[70,66,72,73],[70,74,72,81],[70,82,72,89],[70,90,72,98],[70,100,72,107],[70,108,72,115],[70,116,72,123],[70,124,72,132],[71,1,80,1],[72,2,73,11],[72,35,74,49],[72,50,74,56],[72,58,74,64],[73,66,79,73],[73,74,79,81],[73,82,79,89],[73,90,79,98],[73,100,79,107],[73,108,79,115],[73,116,79,123],[73,124,79,132],[74,2,75,15],[74,17,75,25],[74,26,75,33],[75,35,77,57],[75,58,77,64],[76,2,77,10],[76,11,77,16],[76,17,77,25],[76,26,77,33],[78,2,79,25],[78,26,79,33],[80,2,82,33],[80,35,82,64],[80,66,82,98],[80,100,82,132],[83,2,84,6],[83,7,89,28],[83,29,84,33],[83,35,84,39],[83,40,89,59],[83,60,84,64],[83,66,89,98],[83,100,89,132],[85,2,89,6],[85,29,89,33],[85,35,89,39],[85,60,89,64],[92,2,93,132],[96,17,96,21],[96,22,96,26],[96,27,96,31],[96,32,96,36],[96,37,96,41],[96,42,96,46],[97,10,97,16],[97,17,97,21],[97,22,97,26],[97,27,97,31],[97,32,97,36],[97,37,97,41],[97,42,97,46],[98,10,98,16],[98,17,98,21],[98,22,98,26],[98,27,98,31],[98,32,98,36],[98,37,98,41],[98,42,98,46],[98,49,98,53],[99,10,99,16],[99,17,99,21],[99,22,99,26],[99,27,99,31],[99,32,99,36],[99,37,99,41],[99,42,99,46],[99,49,99,53],[100,10,100,16],[100,17,100,21],[100,22,100,26],[100,27,100,31],[100,32,100,36],[100,37,100,41],[100,42,100,46],[101,10,101,16],[101,17,101,21],[101,22,101,26],[101,27,101,31],[101,32,101,36],[101,37,101,41],[101,42,101,46],[101,49,101,53],[102,10,102,16],[102,17,102,21],[102,22,102,26],[102,27,102,31],[102,32,102,36],[102,37,102,41],[102,42,102,46],[102,49,102,53],[103,10,103,16],[103,17,103,21],[103,22,103,26],[103,27,103,31],[103,32,103,36],[103,37,103,41],[103,42,103,46],[103,49,103,53],[104,10,104,16],[104,17,104,21],[104,22,104,26],[104,27,104,31],[104,32,104,36],[104,37,104,41],[104,42,104,46],[105,10,105,16],[105,17,105,21],[105,22,105,26],[105,27,105,31],[105,32,105,36],[105,37,105,41],[105,42,105,46],[105,49,105,53],[106,10,106,16],[106,17,106,21],[106,22,106,26],[106,27,106,31],[106,32,106,36],[106,37,106,41],[106,42,106,46],[106,49,106,53],[107,10,107,16],[107,17,107,21],[107,22,107,26],[107,27,107,31],[107,32,107,36],[107,37,107,41],[107,42,107,46],[108,10,108,16],[108,17,108,21],[108,22,108,26],[108,27,108,31],[108,32,108,36],[108,37,108,41],[108,42,108,46],[108,49,108,60],[109,10,109,16],[109,17,109,21],[109,22,109,26],[109,27,109,31],[109,32,109,36],[109,37,109,41],[109,42,109,46],[109,49,109,57],[109,58,109,60],[110,10,110,16],[110,17,110,21],[110,22,110,26],[110,27,110,31],[110,32,110,36],[110,37,110,41],[110,42,110,46],[110,49,110,57],[110,58,110,60],[111,10,111,16],[111,17,111,21],[111,22,111,26],[111,27,111,31],[111,32,111,36],[111,37,111,41],[111,42,111,46],[111,49,111,57],[111,58,111,60],[112,10,112,16],[112,17,112,21],[112,22,112,26],[112,27,112,31],[112,32,112,36],[112,37,112,41],[112,42,112,46],[112,49,112,57],[112,58,112,60],[113,10,113,16],[113,17,113,21],[113,22,113,26],[113,27,113,31],[113,32,113,36],[113,37,113,41],[113,42,113,46],[113,49,113,60],[114,10,114,16],[114,17,114,21],[114,22,114,26],[114,27,114,31],[114,32,114,36],[114,37,114,41],[114,42,114,46],[114,49,114,57],[114,58,114,60],[115,10,115,16],[115,17,115,21],[115,22,115,26],[115,27,115,31],[115,32,115,36],[115,37,115,41],[115,42,115,46],[115,49,115,57],[115,58,115,60],[116,10,116,16],[116,17,116,21],[116,22,116,26],[116,27,116,31],[116,32,116,36],[116,37,116,41],[116,42,116,46],[116,49,116,57],[116,58,116,60],[117,10,117,16],[117,17,117,21],[117,22,117,26],[117,27,117,31],[117,32,117,36],[117,37,117,41],[117,42,117,46],[117,49,117,57],[117,58,117,60],[118,10,118,16],[118,17,118,21],[118,22,118,26],[118,27,118,31],[118,32,118,36],[118,37,118,41],[118,42,118,46],[119,10,119,16],[119,17,119,21],[119,22,119,26],[119,27,119,31],[119,32,119,36],[119,37,119,41],[119,42,119,46],[119,49,119,60],[120,10,120,16],[120,17,120,21],[120,22,120,26],[120,27,120,31],[120,32,120,36],[120,37,120,41],[120,42,120,46],[120,49,120,57],[120,58,120,60],[121,10,121,16],[121,17,121,21],[121,22,121,26],[121,27,121,31],[121,32,121,36],[121,37,121,41],[121,42,121,46],[121,49,121,57],[121,58,121,60],[123,13,123,40],[123,44,125,55],[123,56,125,60],[126,45,128,55],[126,56,128,60],[129,56,131,59]]}
[]
[]
[{"$nulls":7},"REHAB ANALYZER"]
[]
[]
[null,null,"STEP 1: AFTER REPAIR VALUE",{"$nulls":37},"STEP 3: REPAIR COSTS",{"$nulls":17},"QUICK BID",{"$nulls":7},"STEP 4: REHAB PROFIT",{"$nulls":33},"PURCHASE PRICE"]
[]
[]
[null,null,{"v":165000,"d":"$165,000"},{"$nulls":32},{"$f":"T('2 REPAIR ESTIMATOR'!N75:T75)","v":"GENERAL CONDITIONS"},{"$nulls":22},{"v":750,"d":"$750"},{"$nulls":29},{"v":0.05,"d":"5%"},null,{"v":0.15,"d":"15%"},{"$nulls":9},"Input your Purchase Price below:"]
[]
[{"$nulls":35},{"$f":"T('2 REPAIR ESTIMATOR'!N76:T76)","v":"DEMOLITION"},{"$nulls":22},{"v":1000,"d":"$1,000"}]
[{"$nulls":66},{"$f":"AFTER_REPAIR_VALUE_ESTIMATED*Profit_Percentage_Cell","v":{"v":24750,"d":"$24,750"}},{"$nulls":33},{"v":0,"d":"$0"}]
[{"$nulls":35},{"$f":"T('2 REPAIR ESTIMATOR'!N77:T77)","v":"STRUCTURAL CONCRETE"}]
[]
[{"$nulls":35},{"$f":"T('2 REPAIR ESTIMATOR'!N78:T78)","v":"CONCRETE & FLATWORK"}]
[null,null,"STEP 2: FIXED COSTS",{"$nulls":20},"DETAILED",{"$nulls":6},{"v":0.15,"d":"15%"}]
[{"$nulls":35},{"$f":"T('2 REPAIR ESTIMATOR'!N79:T79)","v":"MASONRY"}]
[]
[null,null,"BUYING COSTS",{"$nulls":32},{"$f":"T('2 REPAIR ESTIMATOR'!N80:T80)","v":"SIDING"},{"$nulls":30},"PROFIT PER MONTH",{"$nulls":10},"CASH ROI",{"$nulls":10},"ANNUALIZED ROI",{"$nulls":27},"70% RULE"]
[]
[null,null,"BROKERAGE FEE ($300 Avg.)",{"$nulls":23},{"v":1000,"d":"$1,000"},{"$nulls":8},{"$f":"T('2 REPAIR ESTIMATOR'!N81:T81)","v":"DECKING AND PATIOS"},{"$nulls":22},{"v":5000,"d":"$5,000"}]
[{"$nulls":66},{"$f":"IF(Total_Schedule_Cell=0,\"\",BO12/Total_Schedule_Cell)","v":{"v":4950,"d":"$4,950"}},{"$nulls":10},{"$f":"IFERROR(IF(Total_Cash_Needed<0,\"Infinite ROI\",REHAB_PROFIT_ESTIMATED/Total_Cash_Needed),0)","v":{"v":0.19126738794435857,"d":"19.1%"}},{"$nulls":10},{"$f":"IFERROR(IF(Total_Cash_Needed<0,\"Infinite ROI\",((REHAB_PROFIT_ESTIMATED/Total_Cash_Needed)/(Total_Schedule_Cell/12))),0)","v":{"v":0.45904173106646057,"d":"45.9%"}},{"$nulls":27},"Purchase Price % OF ARV                "]
[null,null,"INSPECTION COSTS ($400 Avg.)",{"$nulls":32},{"$f":"T('2 REPAIR ESTIMATOR'!N82:T82)","v":"ROOFING"},{"$nulls":22},{"v":5500,"d":"$5,500"}]
[]
[null,null,"APPRAISAL FEE ($500 Avg.)",{"$nulls":32},{"$f":"T('2 REPAIR ESTIMATOR'!Y75:AE75)","v":"EXTERIOR DOORS & WINDOWS"},{"$nulls":22},{"v":2000,"d":"$2,000"},{"$nulls":57},{"$f":"IF(AFTER_REPAIR_VALUE_CELL=0,\"\",((Known_Purchase_Price_Cell+TOTAL_REPAIRS_ESTIMATE)/AFTER_REPAIR_VALUE_CELL))","v":{"v":0.38523083333333336,"d":"39%"}}]
[]
[null,null,"TITLE SEARCH ($300 Avg.)",{"$nulls":32},{"$f":"T('2 REPAIR ESTIMATOR'!Y76:AE76)","v":"GARAGE DOORS"},{"$nulls":22},{"v":1250,"d":"$1,250"}]
[]
[null,null,"TITLE INSURANCE ($150 Avg.)",{"$nulls":32},{"$f":"T('2 REPAIR ESTIMATOR'!Y77:AE77)","v":"LANDSCAPING"},{"$nulls":22},{"v":500,"d":"$500"},{"$nulls":7},"MAXIMUM PURCHASE PRICE"]
[]
[null,null,"OTHER",{"$nulls":32},{"$f":"T('2 REPAIR ESTIMATOR'!Y78:AE78)","v":"MISC. EXTERIOR ITEMS"}]
[{"$nulls":66},{"$f":"AFTER_REPAIR_VALUE_CELL-TOTAL_FIXED_COSTS_ESTIMATED-TOTAL_REMODEL_ESTIMATE-REHAB_PROFIT_ESTIMATED","v":{"v":61836.912500000006,"d":"$61,837"}},{"$nulls":73},{"$f":"IF(AY57=\"DIYED\",\"DIY SAVINGS\",\"\")","v":""}]
[null,null,"TOTAL BUYING COSTS",{"$nulls":23},{"$f":"IF(Fixed_Cost_Calculation_Method=\"% OF ARV\",0,SUM(AA21:AH32))","v":{"v":1000,"d":"$1,000"}},{"$nulls":8},{"$f":"T('2 REPAIR ESTIMATOR'!Y79:AE79)","v":"FRAMING & DRYWALL"},{"$nulls":22},{"v":500,"d":"$500"}]
[]
[null,null,"HOLDING COSTS",{"$nulls":8},"# OF MONTHS",{"$nulls":5},"Per Month",{"$nulls":17},{"$f":"T('2 REPAIR ESTIMATOR'!Y80:AE80)","v":"CABINETS & COUNTERTOPS"},{"$nulls":22},{"v":7500,"d":"$7,500"},{"$nulls":81},{"$f":"IF(AY57=\"DIYED\",DIY_Savings,\"\")","v":""}]
[]
[{"$nulls":35},{"$f":"T('2 REPAIR ESTIMATOR'!Y81:AE81)","v":"DOORS & TRIM"},{"$nulls":22},{"v":3000,"d":"$3,000"}]
[]
[null,null,"PROPERTY TAXES",{"$nulls":9},{"v":3,"d":"3.0"},{"$nulls":4},{"v":200,"d":"$200"},{"$nulls":8},{"$f":"R39*$M$49","v":{"v":1000,"d":"$1,000"}},{"$nulls":8},{"$f":"T('2 REPAIR ESTIMATOR'!Y82:AE82)","v":"CARPET & RESILIENT"},{"$nulls":22},{"v":3000,"d":"$3,000"},{"$nulls":23},"70% RULE"]
[]
[null,null,"UTILITIES",{"$nulls":14},{"v":300,"d":"$300"},{"$nulls":8},{"$f":"R41*$M$49","v":{"v":1500,"d":"$1,500"}},{"$nulls":8},{"$f":"T('2 REPAIR ESTIMATOR'!AJ75:AP75)","v":"HARDWOOD FLOORING"},{"$nulls":22},{"v":2500,"d":"$2,500"},{"$nulls":23},"Purchase Price % OF ARV                "]
[{"$nulls":11},"LISTING PERIOD"]
[null,null,"INSURANCE",{"$nulls":14},{"v":100,"d":"$100"},{"$nulls":8},{"$f":"R43*$M$49","v":{"v":500,"d":"$500"}},{"$nulls":8},{"$f":"T('2 REPAIR ESTIMATOR'!AJ76:AP76)","v":"TILING"},{"$nulls":22},{"v":3000,"d":"$3,000"}]
[{"$nulls":12},{"v":2,"d":"2.0"}]
[null,null,"HOA DUES",{"$nulls":23},{"$f":"R45*$M$49","v":{"v":0,"d":"$0"}},{"$nulls":8},{"$f":"T('2 REPAIR ESTIMATOR'!AJ77:AP77)","v":"PAINTING"},{"$nulls":22},{"v":5000,"d":"$5,000"},{"$nulls":23},{"$f":"IF(AFTER_REPAIR_VALUE_CELL=0,\"\",((Maximum_Purchase_Price+TOTAL_REPAIRS_ESTIMATE)/AFTER_REPAIR_VALUE_CELL))","v":{"v":0.76,"d":"76%"}}]
[]
[null,null,"MAINTENANCE",{"$nulls":8},"TOTAL HOLDING",{"$nulls":14},{"$f":"R47*$M$49","v":{"v":0,"d":"$0"}},{"$nulls":8},{"$f":"T('2 REPAIR ESTIMATOR'!AJ78:AP78)","v":"APPLIANCES"},{"$nulls":22},{"v":2500,"d":"$2,500"}]
[{"$nulls":100},"CALCULATED REHAB PROFIT"]
[null,null,"OTHER",{"$nulls":9},{"$f":"M39+M44","v":{"v":5,"d":"5.0"}},{"$nulls":13},{"$f":"R49*$M$49","v":{"v":0,"d":"$0"}},{"$nulls":8},{"$f":"T('2 REPAIR ESTIMATOR'!AJ79:AP79)","v":"PLUMBING"},{"$nulls":22},{"v":3000,"d":"$3,000"}]
[]
[{"$nulls":17},{"$f":"SUM(R39:V50)","v":{"v":600,"d":"$600"}},{"$nulls":4},"TOTALS",{"$nulls":3},{"$f":"IF(Fixed_Cost_Calculation_Method=\"% OF ARV\",0,SUM(AA39:AH50))","v":{"v":3000,"d":"$3,000"}},{"$nulls":8},{"$f":"T('2 REPAIR ESTIMATOR'!AJ80:AP80)","v":"HVAC"},{"$nulls":22},{"v":250,"d":"$250"},{"$nulls":41},{"$f":"IF(CW53=\"\",\"\",\"% of ARV\")","v":"% of ARV"},{"$nulls":5},{"$f":"AFTER_REPAIR_VALUE_ESTIMATED-TOTAL_FIXED_COSTS_ESTIMATED-TOTAL_REPAIRS_ESTIMATE-Known_Purchase_Price_Cell","v":{"v":86586.9125,"d":"$86,587"}},{"$nulls":20},{"$f":"IF(DX53=\"\",\"\",\"$/ SF\")","v":"$/ SF"}]
[]
[{"$nulls":35},{"$f":"T('2 REPAIR ESTIMATOR'!AJ81:AP81)","v":"ELECTRICAL"},{"$nulls":22},{"v":3500,"d":"$3,500"},{"$nulls":41},{"$f":"IFERROR(DC51/AFTER_REPAIR_VALUE_CELL,\"\")","v":{"v":0.5247691666666667,"d":"52.5%"}},{"$nulls":26},{"$f":"IFERROR(DC51/Square_Feet,\"\")","v":{"v":57.724608333333336,"d":"$57.72"}}]
[]
[null,null,"SELLING COSTS",{"$nulls":32},{"$f":"T('2 REPAIR ESTIMATOR'!AJ82:AP82)","v":"MISCELLANEOUS"}]
[]
[null,null,"COMMISSIONS",{"$nulls":14},{"v":0.06,"d":"6.0%"},{"$nulls":4},"of sale price",{"$nulls":3},{"$f":"R57*C9","v":{"v":9900,"d":"$9,900"}},{"$nulls":8},"SUBTOTAL ESTIMATE",{"$nulls":14},"SUBBED",{"$nulls":7},{"$f":"SUM(REPAIRS_FIRST_COLUMN)","v":{"v":49750,"d":"$49,750"}}]
[{"$nulls":100},"PROFIT PER MONTH",{"$nulls":10},"CASH ROI",{"$nulls":10},"ANNUALIZED ROI"]
[null,null,"SELLER ASSISTED CLOSING COSTS",{"$nulls":19},"of sale price",{"$nulls":3},{"$f":"R59*C9","v":{"v":0,"d":"$0"}}]
[]
[null,null,"BROKERAGE FEE ($300 Avg.)",{"$nulls":32},"ADDERS",{"$nulls":64},{"$f":"IF(Total_Schedule_Cell=0,\"\",DC51/Total_Schedule_Cell)","v":{"v":17317.3825,"d":"$17,317"}},{"$nulls":10},{"$f":"IFERROR(IF(Total_Cash_Needed<0,\"Infinite ROI\",DC51/Total_Cash_Needed),0)","v":{"v":0.6691415185471407,"d":"66.9%"}},{"$nulls":10},{"$f":"IFERROR(IF(Total_Cash_Needed<0,\"Infinite ROI\",((DC51/Total_Cash_Needed)/(Total_Schedule_Cell/12))),0)","v":{"v":1.6059396445131375,"d":"160.6%"}}]
[]
[null,null,"HOME WARRANTY ($450 Avg.)",{"$nulls":23},450]
[{"$nulls":35},"Location Multiplier:",{"$nulls":14},{"v":1,"d":"1.00"},{"$nulls":7},{"$f":"IF(Rehab_Analyzer_Location_Mutiplier=0,0,(AY64-1)*ESTIMATE_SUBTOTAL)","v":{"v":0,"d":"$0"}}]
[null,null,"TITLE INSURANCE ($150 Avg.)",{"$nulls":23},500]
[]
[null,null,"2ND APPRAISAL ($500 Avg.)",{"$nulls":32},"Permit Cost: (1 to 2%):",{"$nulls":14},{"v":0.01,"d":"1.0%"},{"$nulls":7},{"$f":"(ESTIMATE_SUBTOTAL+BG64)*AY67","v":{"v":497.5,"d":"$498"}}]
[{"$nulls":66},"INVESTMENT BREAKDOWN",{"$nulls":33},"INVESTMENT BREAKDOWN"]
[null,null,"OTHER"]
[{"$nulls":35},"Contractors OH & P: (10%+)",{"$nulls":14},{"v":0.1,"d":"10.0%"},{"$nulls":7},{"$f":"(ESTIMATE_SUBTOTAL+BG64+BG67)*AY70","v":{"v":5024.75,"d":"$5,025"}}]
[null,null,"TOTAL SELLING COSTS",{"$nulls":23},{"$f":"SUM(AA57:AH70)","v":{"v":10850,"d":"$10,850"}},{"$nulls":39},"CAPITAL NEEDED",{"$nulls":7},"DEBT",{"$nulls":7},"EQUITY",{"$nulls":7},"CASH",{"$nulls":9},"CAPITAL NEEDED",{"$nulls":7},"DEBT",{"$nulls":7},"EQUITY",{"$nulls":7},"CASH"]
[null,"Setup"]
[null,null,"FINANCING COSTS",{"$nulls":32},"Contingency  (5 to 15%):",{"$nulls":14},{"v":0.15,"d":"15.0%"},{"$nulls":7},{"$f":"(ESTIMATE_SUBTOTAL+BG64+BG67+BG70)*Repair_Contingency_Percentage_Cell","v":{"v":8290.8375,"d":"$8,291"}}]
[{"$nulls":66},{"$f":"'ANALYSIS DATABASE'!C249","v":{"v":129400,"d":"$129,400"}},{"$nulls":7},{"$f":"'ANALYSIS DATABASE'!C250","v":{"v":0,"d":"$0"}},{"$nulls":7},{"$f":"'REHAB FINANCING SETUP'!AP89","v":{"v":0,"d":"$0"}},{"$nulls":7},{"$f":"'ANALYSIS DATABASE'!C252","v":{"v":129400,"d":"$129,400"}},{"$nulls":9},{"$f":"'ANALYSIS DATABASE'!C249","v":{"v":129400,"d":"$129,400"}},{"$nulls":7},{"$f":"'REHAB FINANCING SETUP'!AH149","v":{"v":0,"d":"$0"}},{"$nulls":7},{"$f":"'REHAB FINANCING SETUP'!AS149","v":{"v":0,"d":"$0"}},{"$nulls":7},{"$f":"CW74-DE74-DM74","v":{"v":129400,"d":"$129,400"}}]
[null,null,"CLOSING COSTS & POINTS",{"$nulls":23},{"$f":"'REHAB FINANCING SETUP'!AZ31+'REHAB FINANCING SETUP'!AZ58+'REHAB FINANCING SETUP'!AR37+'REHAB FINANCING SETUP'!AR64","v":{"v":0,"d":"$0"}}]
[{"$nulls":35},"TOTAL ADDERS",{"$nulls":22},{"$f":"SUM(BG64:BK75)","v":{"v":13813.0875,"d":"$13,813"}}]
[null,null,"LOAN PAYMENT",{"$nulls":23},{"$f":"'REHAB FINANCING SETUP'!BF29+'REHAB FINANCING SETUP'!BF56","v":{"v":0,"d":"$0"}}]
[]
[null,null,"TOTAL FINANCING COSTS",{"$nulls":23},{"$f":"SUM(AA75:AH78)","v":{"v":0,"d":"$0"}}]
[]
[null,null,"TOTAL FIXED COSTS",{"$nulls":32},"TOTAL REPAIR ESTIMATE",{"$nulls":30},"TOTAL PROJECT COSTS",{"$nulls":33},"TOTAL PROJECT COSTS"]
[]
[]
[null,null,{"$f":"IF(C86=\"\",\"\",\"% of ARV\")","v":"% of ARV"},{"$nulls":4},{"$f":"IF(Fixed_Cost_Calculation_Method=\"% OF ARV\",AE16*AFTER_REPAIR_VALUE_CELL,TOTAL_BUYING_COSTS_ESTIMATED+TOTAL_HOLDING_COSTS_ESTIMATED+TOTAL_SELLING_COSTS_ESTIMATED+TOTAL_FINANCING_COSTS)","v":{"v":14850,"d":"$14,850"}},{"$nulls":21},{"$f":"IF(AD86=\"\",\"\",\"$ /SF\")","v":"$ /SF"},{"$nulls":5},{"$f":"IF(AJ86=\"\",\"\",\"% of ARV\")","v":"% of ARV"},{"$nulls":4},{"$f":"BE127","v":{"v":63563.0875,"d":"$63,563"}},{"$nulls":19},{"$f":"IF(BI86=\"\",\"\",\"$/ SF\")","v":"$/ SF"},{"$nulls":5},{"$f":"TOTAL_FIXED_COSTS_ESTIMATED+TOTAL_REPAIRS_ESTIMATE+Maximum_Purchase_Price","v":{"v":140250,"d":"$140,250"}},{"$nulls":33},{"$f":"TOTAL_FIXED_COSTS_ESTIMATED+TOTAL_REPAIRS_ESTIMATE+Known_Purchase_Price_Cell","v":{"v":78413.0875,"d":"$78,413"}}]
[]
[null,null,{"$f":"IFERROR(TOTAL_FIXED_COSTS_ESTIMATED/AFTER_REPAIR_VALUE_CELL,\"\")","v":{"v":0.09,"d":"9.0%"}},{"$nulls":26},{"$f":"IFERROR(TOTAL_FIXED_COSTS_ESTIMATED/Square_Feet,\"\")","v":{"v":9.9,"d":"$9.90"}},{"$nulls":5},{"$f":"IFERROR(TOTAL_REMODEL_ESTIMATE/AFTER_REPAIR_VALUE_CELL,\"\")","v":{"v":0.38523083333333336,"d":"38.5%"}},{"$nulls":24},{"$f":"IFERROR(TOTAL_REMODEL_ESTIMATE/Square_Feet,\"\")","v":{"v":42.375391666666665,"d":"$42.38"}}]
[]
[]
[]
[]
[]
[]
[null,null,"© 2018 by Houseflippingspreadsheet.com. All rights reserved"]
[]
[]
[]
[{"$nulls":10},"Scopes of Work DIY vs Subbed Sorter",{"$nulls":6},"LABOR",{"$nulls":4},"MATERIAL",{"$nulls":4},"SUB",{"$nulls":4},"SUM",{"$nulls":4},"Quick",{"$nulls":4},"TOTAL"]
[{"$nulls":10},{"$f":"T('2 REPAIR ESTIMATOR'!N75:T75)","v":"GENERAL CONDITIONS"},{"$nulls":6},{"$f":"IF($AY$57=\"SUBBED\",'2 REPAIR ESTIMATOR'!BN1198,'2 REPAIR ESTIMATOR'!BM1198)","v":{"v":80,"d":"$80.00"}},{"$nulls":4},{"$f":"'2 REPAIR ESTIMATOR'!BB129","v":{"v":454.75,"d":"$454.75"}},{"$nulls":4},{"$f":"'2 REPAIR ESTIMATOR'!BC129","v":{"v":0,"d":"$0.00"}},{"$nulls":4},{"$f":"SUM(R98:AF98)","v":{"v":534.75,"d":"$534.75"}},{"$nulls":4},{"$f":"BG9","v":{"v":750,"d":"$750.00"}},{"$nulls":4},{"$f":"IF(Repair_Cost_Calculation_Method=\"Quick Bid\",AL98,AG98)","v":{"v":750,"d":"$750.00"}}]
[{"$nulls":10},{"$f":"T('2 REPAIR ESTIMATOR'!N76:T76)","v":"DEMOLITION"},{"$nulls":6},{"$f":"IF($AY$57=\"SUBBED\",'2 REPAIR ESTIMATOR'!BN1199,'2 REPAIR ESTIMATOR'!BM1199)","v":{"v":1600,"d":"$1,600.00"}},{"$nulls":4},{"$f":"'2 REPAIR ESTIMATOR'!BB174","v":{"v":0,"d":"$0.00"}},{"$nulls":4},{"$f":"'2 REPAIR ESTIMATOR'!BC174","v":{"v":0,"d":"$0.00"}},{"$nulls":4},{"$f":"SUM(R99:AF99)","v":{"v":1600,"d":"$1,600.00"}},{"$nulls":4},{"$f":"BG11","v":{"v":1000,"d":"$1,000.00"}},{"$nulls":4},{"v":1000,"d":"$1,000.00"},{"$nulls":6},"DETAILED"]
[{"$nulls":10},{"$f":"T('2 REPAIR ESTIMATOR'!N77:T77)","v":"STRUCTURAL CONCRETE"},{"$nulls":6},{"$f":"IF($AY$57=\"SUBBED\",'2 REPAIR ESTIMATOR'!BN1200,'2 REPAIR ESTIMATOR'!BM1200)","v":{"v":0,"d":"$0.00"}},{"$nulls":4},{"$f":"'2 REPAIR ESTIMATOR'!BB219","v":{"v":0,"d":"$0.00"}},{"$nulls":4},{"$f":"'2 REPAIR ESTIMATOR'!BC219","v":{"v":0,"d":"$0.00"}},{"$nulls":4},{"v":0,"d":"$0.00"},{"$nulls":4},{"$f":"BG13","v":{"v":0,"d":"$0.00"}},{"$nulls":4},{"v":0,"d":"$0.00"},{"$nulls":6},"% OF ARV"]
[{"$nulls":10},{"$f":"T('2 REPAIR ESTIMATOR'!N78:T78)","v":"CONCRETE & FLATWORK"},{"$nulls":6},{"$f":"IF($AY$57=\"SUBBED\",'2 REPAIR ESTIMATOR'!BN1201,'2 REPAIR ESTIMATOR'!BM1201)","v":{"v":0,"d":"$0.00"}},{"$nulls":4},{"$f":"'2 REPAIR ESTIMATOR'!BB264","v":{"v":0,"d":"$0.00"}},{"$nulls":4},{"$f":"'2 REPAIR ESTIMATOR'!BC264","v":{"v":0,"d":"$0.00"}},{"$nulls":4},{"v":0,"d":"$0.00"},{"$nulls":4},{"$f":"BG15","v":{"v":0,"d":"$0.00"}},{"$nulls":4},{"v":0,"d":"$0.00"}]
[{"$nulls":10},{"$f":"T('2 REPAIR ESTIMATOR'!N79:T79)","v":"MASONRY"},{"$nulls":6},{"$f":"IF($AY$57=\"SUBBED\",'2 REPAIR ESTIMATOR'!BN1202,'2 REPAIR ESTIMATOR'!BM1202)","v":{"v":0,"d":"$0.00"}},{"$nulls":4},{"$f":"'2 REPAIR ESTIMATOR'!BB309","v":{"v":0,"d":"$0.00"}},{"$nulls":4},{"$f":"'2 REPAIR ESTIMATOR'!BC309","v":{"v":0,"d":"$0.00"}},{"$nulls":4},{"v":0,"d":"$0.00"},{"$nulls":4},{"$f":"BG17","v":{"v":0,"d":"$0.00"}},{"$nulls":4},{"v":0,"d":"$0.00"},{"$nulls":6},"DETAILED"]
[{"$nulls":10},{"$f":"T('2 REPAIR ESTIMATOR'!N80:T80)","v":"SIDING"},{"$nulls":6},{"$f":"IF($AY$57=\"SUBBED\",'2 REPAIR ESTIMATOR'!BN1203,'2 REPAIR ESTIMATOR'!BM1203)","v":{"v":0,"d":"$0.00"}},{"$nulls":4},{"$f":"'2 REPAIR ESTIMATOR'!BB354","v":{"v":0,"d":"$0.00"}},{"$nulls":4},{"$f":"'2 REPAIR ESTIMATOR'!BC354","v":{"v":0,"d":"$0.00"}},{"$nulls":4},{"v":0,"d":"$0.00"},{"$nulls":4},{"$f":"BG19","v":{"v":0,"d":"$0.00"}},{"$nulls":4},{"v":0,"d":"$0.00"},{"$nulls":6},"QUICK BID"]
[{"$nulls":10},{"$f":"T('2 REPAIR ESTIMATOR'!N81:T81)","v":"DECKING AND PATIOS"},{"$nulls":6},{"$f":"IF($AY$57=\"SUBBED\",'2 REPAIR ESTIMATOR'!BN1204,'2 REPAIR ESTIMATOR'!BM1204)","v":{"v":750,"d":"$750.00"}},{"$nulls":4},{"$f":"'2 REPAIR ESTIMATOR'!BB399","v":{"v":321,"d":"$321.00"}},{"$nulls":4},{"$f":"'2 REPAIR ESTIMATOR'!BC399","v":{"v":0,"d":"$0.00"}},{"$nulls":4},{"v":1071,"d":"$1,071.00"},{"$nulls":4},{"$f":"BG21","v":{"v":5000,"d":"$5,000.00"}},{"$nulls":4},{"v":5000,"d":"$5,000.00"},{"$nulls":6},"LUMP SUM"]
[{"$nulls":10},{"$f":"T('2 REPAIR ESTIMATOR'!N82:T82)","v":"ROOFING"},{"$nulls":6},{"$f":"IF($AY$57=\"SUBBED\",'2 REPAIR ESTIMATOR'!BN1205,'2 REPAIR ESTIMATOR'!BM1205)","v":{"v":3000,"d":"$3,000.00"}},{"$nulls":4},{"$f":"'2 REPAIR ESTIMATOR'!BB444","v":{"v":2461,"d":"$2,461.00"}},{"$nulls":4},{"$f":"'2 REPAIR ESTIMATOR'!BC444","v":{"v":0,"d":"$0.00"}},{"$nulls":4},{"v":5461,"d":"$5,461.00"},{"$nulls":4},{"$f":"BG23","v":{"v":5500,"d":"$5,500.00"}},{"$nulls":4},{"v":5500,"d":"$5,500.00"}]
[{"$nulls":10},{"$f":"T('2 REPAIR ESTIMATOR'!Y75:AE75)","v":"EXTERIOR DOORS & WINDOWS"},{"$nulls":6},{"$f":"IF($AY$57=\"subbed\",'2 REPAIR ESTIMATOR'!BN1206,'2 REPAIR ESTIMATOR'!BM1206)","v":{"v":1625,"d":"$1,625.00"}},{"$nulls":4},{"$f":"'2 REPAIR ESTIMATOR'!BB489","v":{"v":3210,"d":"$3,210.00"}},{"$nulls":4},{"$f":"'2 REPAIR ESTIMATOR'!BC489","v":{"v":0,"d":"$0.00"}},{"$nulls":4},{"v":4835,"d":"$4,835.00"},{"$nulls":4},{"$f":"BG25","v":{"v":2000,"d":"$2,000.00"}},{"$nulls":4},{"v":2000,"d":"$2,000.00"},{"$nulls":6},"DIYED"]
[{"$nulls":10},{"$f":"T('2 REPAIR ESTIMATOR'!Y76:AE76)","v":"GARAGE DOORS"},{"$nulls":6},{"$f":"IF($AY$57=\"subbed\",'2 REPAIR ESTIMATOR'!BN1207,'2 REPAIR ESTIMATOR'!BM1207)","v":{"v":400,"d":"$400.00"}},{"$nulls":4},{"$f":"'2 REPAIR ESTIMATOR'!BB534","v":{"v":963,"d":"$963.00"}},{"$nulls":4},{"$f":"'2 REPAIR ESTIMATOR'!BC534","v":{"v":0,"d":"$0.00"}},{"$nulls":4},{"v":1363,"d":"$1,363.00"},{"$nulls":4},{"$f":"BG27","v":{"v":1250,"d":"$1,250.00"}},{"$nulls":4},{"v":1250,"d":"$1,250.00"},{"$nulls":6},"SUBBED"]
[{"$nulls":10},{"$f":"T('2 REPAIR ESTIMATOR'!Y77:AE77)","v":"LANDSCAPING"},{"$nulls":6},{"$f":"IF($AY$57=\"subbed\",'2 REPAIR ESTIMATOR'!BN1208,'2 REPAIR ESTIMATOR'!BM1208)","v":{"v":250,"d":"$250.00"}},{"$nulls":4},{"$f":"'2 REPAIR ESTIMATOR'!BB579","v":{"v":321,"d":"$321.00"}},{"$nulls":4},{"$f":"'2 REPAIR ESTIMATOR'!BC579","v":{"v":0,"d":"$0.00"}},{"$nulls":4},{"v":571,"d":"$571.00"},{"$nulls":4},{"$f":"BG29","v":{"v":500,"d":"$500.00"}},{"$nulls":4},{"v":500,"d":"$500.00"}]
[{"$nulls":10},{"$f":"T('2 REPAIR ESTIMATOR'!Y78:AE78)","v":"MISC. EXTERIOR ITEMS"},{"$nulls":6},{"$f":"IF($AY$57=\"subbed\",'2 REPAIR ESTIMATOR'!BN1209,'2 REPAIR ESTIMATOR'!BM1209)","v":{"v":225,"d":"$225.00"}},{"$nulls":4},{"$f":"'2 REPAIR ESTIMATOR'!BB624","v":{"v":406.6,"d":"$406.60"}},{"$nulls":4},{"$f":"'2 REPAIR ESTIMATOR'!BC624","v":{"v":0,"d":"$0.00"}},{"$nulls":4},{"v":631.6,"d":"$631.60"},{"$nulls":4},{"$f":"BG31","v":{"v":0,"d":"$0.00"}},{"$nulls":4},{"v":0,"d":"$0.00"},{"$nulls":6},"Total Cost Graph -MPP"]
[{"$nulls":10},{"$f":"T('2 REPAIR ESTIMATOR'!Y79:AE79)","v":"FRAMING & DRYWALL"},{"$nulls":6},{"$f":"IF($AY$57=\"subbed\",'2 REPAIR ESTIMATOR'!BN1210,'2 REPAIR ESTIMATOR'!BM1210)","v":{"v":750,"d":"$750.00"}},{"$nulls":4},{"$f":"'2 REPAIR ESTIMATOR'!BB669","v":{"v":0,"d":"$0.00"}},{"$nulls":4},{"$f":"'2 REPAIR ESTIMATOR'!BC669","v":{"v":0,"d":"$0.00"}},{"$nulls":4},{"v":750,"d":"$750.00"},{"$nulls":4},{"$f":"BG33","v":{"v":500,"d":"$500.00"}},{"$nulls":4},{"v":500,"d":"$500.00"},{"$nulls":6},{"$f":"C81","v":"TOTAL FIXED COSTS"},{"$nulls":8},{"$f":"Total_Fixed_Costs_Result","v":{"v":14850,"d":"$14,850"}}]
[{"$nulls":10},{"$f":"T('2 REPAIR ESTIMATOR'!Y80:AE80)","v":"CABINETS & COUNTERTOPS"},{"$nulls":6},{"$f":"IF($AY$57=\"subbed\",'2 REPAIR ESTIMATOR'!BN1211,'2 REPAIR ESTIMATOR'!BM1211)","v":{"v":1950,"d":"$1,950.00"}},{"$nulls":4},{"$f":"'2 REPAIR ESTIMATOR'!BB714","v":{"v":9496.25,"d":"$9,496.25"}},{"$nulls":4},{"$f":"'2 REPAIR ESTIMATOR'!BC714","v":{"v":0,"d":"$0.00"}},{"$nulls":4},{"v":11446.25,"d":"$11,446.25"},{"$nulls":4},{"$f":"BG35","v":{"v":7500,"d":"$7,500.00"}},{"$nulls":4},{"v":7500,"d":"$7,500.00"},{"$nulls":6},{"$f":"BO6","v":"STEP 4: REHAB PROFIT"},{"$nulls":8},{"$f":"Total_Profit_Result","v":{"v":24750,"d":"$24,750"}}]
[{"$nulls":10},{"$f":"T('2 REPAIR ESTIMATOR'!Y81:AE81)","v":"DOORS & TRIM"},{"$nulls":6},{"$f":"IF($AY$57=\"subbed\",'2 REPAIR ESTIMATOR'!BN1212,'2 REPAIR ESTIMATOR'!BM1212)","v":{"v":1125,"d":"$1,125.00"}},{"$nulls":4},{"$f":"'2 REPAIR ESTIMATOR'!BB759","v":{"v":1284,"d":"$1,284.00"}},{"$nulls":4},{"$f":"'2 REPAIR ESTIMATOR'!BC759","v":{"v":0,"d":"$0.00"}},{"$nulls":4},{"v":2409,"d":"$2,409.00"},{"$nulls":4},{"$f":"BG37","v":{"v":3000,"d":"$3,000.00"}},{"$nulls":4},{"v":3000,"d":"$3,000.00"},{"$nulls":6},"REPAIR ESTIMATE",{"$nulls":8},{"$f":"TOTAL_REPAIRS_ESTIMATE","v":{"v":63563.0875,"d":"$63,563"}}]
[{"$nulls":10},{"$f":"T('2 REPAIR ESTIMATOR'!Y82:AE82)","v":"CARPET & RESILIENT"},{"$nulls":6},{"$f":"IF($AY$57=\"subbed\",'2 REPAIR ESTIMATOR'!BN1213,'2 REPAIR ESTIMATOR'!BM1213)","v":{"v":900,"d":"$900.00"}},{"$nulls":4},{"$f":"'2 REPAIR ESTIMATOR'!BB804","v":{"v":1605,"d":"$1,605.00"}},{"$nulls":4},{"$f":"'2 REPAIR ESTIMATOR'!BC804","v":{"v":0,"d":"$0.00"}},{"$nulls":4},{"v":2505,"d":"$2,505.00"},{"$nulls":4},{"$f":"BG39","v":{"v":3000,"d":"$3,000.00"}},{"$nulls":4},{"v":3000,"d":"$3,000.00"},{"$nulls":6},{"$f":"BO29","v":"MAXIMUM PURCHASE PRICE"},{"$nulls":8},{"$f":"Purchase_Price_Result","v":{"v":61836.912500000006,"d":"$61,837"}}]
[{"$nulls":10},{"$f":"T('2 REPAIR ESTIMATOR'!AJ75:AP75)","v":"HARDWOOD FLOORING"},{"$nulls":6},{"$f":"IF($AY$57=\"subbed\",'2 REPAIR ESTIMATOR'!BN1214,'2 REPAIR ESTIMATOR'!BM1214)","v":{"v":1425,"d":"$1,425.00"}},{"$nulls":4},{"$f":"'2 REPAIR ESTIMATOR'!BB849","v":{"v":2033.0000000000002,"d":"$2,033.00"}},{"$nulls":4},{"$f":"'2 REPAIR ESTIMATOR'!BC849","v":{"v":0,"d":"$0.00"}},{"$nulls":4},{"v":3458,"d":"$3,458.00"},{"$nulls":4},{"$f":"BG41","v":{"v":2500,"d":"$2,500.00"}},{"$nulls":4},{"v":2500,"d":"$2,500.00"},{"$nulls":6},"Total Cost Graph - KNOWN"]
[{"$nulls":10},{"$f":"T('2 REPAIR ESTIMATOR'!AJ76:AP76)","v":"TILING"},{"$nulls":6},{"$f":"IF($AY$57=\"subbed\",'2 REPAIR ESTIMATOR'!BN1215,'2 REPAIR ESTIMATOR'!BM1215)","v":{"v":1625,"d":"$1,625.00"}},{"$nulls":4},{"$f":"'2 REPAIR ESTIMATOR'!BB894","v":{"v":2279.1000000000004,"d":"$2,279.10"}},{"$nulls":4},{"$f":"'2 REPAIR ESTIMATOR'!BC894","v":{"v":0,"d":"$0.00"}},{"$nulls":4},{"v":3904.1000000000004,"d":"$3,904.10"},{"$nulls":4},{"$f":"BG43","v":{"v":3000,"d":"$3,000.00"}},{"$nulls":4},{"v":3000,"d":"$3,000.00"},{"$nulls":6},{"$f":"C81","v":"TOTAL FIXED COSTS"},{"$nulls":8},{"$f":"Total_Fixed_Costs_Result","v":{"v":14850,"d":"$14,850"}}]
[{"$nulls":10},{"$f":"T('2 REPAIR ESTIMATOR'!AJ77:AP77)","v":"PAINTING"},{"$nulls":6},{"$f":"IF($AY$57=\"subbed\",'2 REPAIR ESTIMATOR'!BN1216,'2 REPAIR ESTIMATOR'!BM1216)","v":{"v":4000,"d":"$4,000.00"}},{"$nulls":4},{"$f":"'2 REPAIR ESTIMATOR'!BB939","v":{"v":0,"d":"$0.00"}},{"$nulls":4},{"$f":"'2 REPAIR ESTIMATOR'!BC939","v":{"v":0,"d":"$0.00"}},{"$nulls":4},{"v":4000,"d":"$4,000.00"},{"$nulls":4},{"$f":"BG45","v":{"v":5000,"d":"$5,000.00"}},{"$nulls":4},{"v":5000,"d":"$5,000.00"},{"$nulls":6},{"$f":"BO6","v":"STEP 4: REHAB PROFIT"},{"$nulls":8},{"$f":"DC51","v":{"v":86586.9125,"d":"$86,587"}}]
[{"$nulls":10},{"$f":"T('2 REPAIR ESTIMATOR'!AJ78:AP78)","v":"APPLIANCES"},{"$nulls":6},{"$f":"IF($AY$57=\"subbed\",'2 REPAIR ESTIMATOR'!BN1217,'2 REPAIR ESTIMATOR'!BM1217)","v":{"v":0,"d":"$0.00"}},{"$nulls":4},{"$f":"'2 REPAIR ESTIMATOR'!BB984","v":{"v":3210,"d":"$3,210.00"}},{"$nulls":4},{"$f":"'2 REPAIR ESTIMATOR'!BC984","v":{"v":0,"d":"$0.00"}},{"$nulls":4},{"v":3210,"d":"$3,210.00"},{"$nulls":4},{"$f":"BG47","v":{"v":2500,"d":"$2,500.00"}},{"$nulls":4},{"v":2500,"d":"$2,500.00"},{"$nulls":6},"REPAIR ESTIMATE",{"$nulls":8},{"$f":"TOTAL_REPAIRS_ESTIMATE","v":{"v":63563.0875,"d":"$63,563"}}]
[{"$nulls":10},{"$f":"T('2 REPAIR ESTIMATOR'!AJ79:AP79)","v":"PLUMBING"},{"$nulls":6},{"$f":"IF($AY$57=\"subbed\",'2 REPAIR ESTIMATOR'!BN1218,'2 REPAIR ESTIMATOR'!BM1218)","v":{"v":1105,"d":"$1,105.00"}},{"$nulls":4},{"$f":"'2 REPAIR ESTIMATOR'!BB1029","v":{"v":1819,"d":"$1,819.00"}},{"$nulls":4},{"$f":"'2 REPAIR ESTIMATOR'!BC1029","v":{"v":0,"d":"$0.00"}},{"$nulls":4},{"v":2924,"d":"$2,924.00"},{"$nulls":4},{"$f":"BG49","v":{"v":3000,"d":"$3,000.00"}},{"$nulls":4},{"v":3000,"d":"$3,000.00"},{"$nulls":6},{"$f":"BO29","v":"MAXIMUM PURCHASE PRICE"},{"$nulls":8},{"$f":"Known_Purchase_Price_Cell","v":{"v":0,"d":"$0"}}]
[{"$nulls":10},{"$f":"T('2 REPAIR ESTIMATOR'!AJ80:AP80)","v":"HVAC"},{"$nulls":6},{"$f":"IF($AY$57=\"subbed\",'2 REPAIR ESTIMATOR'!BN1219,'2 REPAIR ESTIMATOR'!BM1219)","v":{"v":162.5,"d":"$162.50"}},{"$nulls":4},{"$f":"'2 REPAIR ESTIMATOR'!BB1074","v":{"v":321,"d":"$321.00"}},{"$nulls":4},{"$f":"'2 REPAIR ESTIMATOR'!BC1074","v":{"v":0,"d":"$0.00"}},{"$nulls":4},{"v":483.5,"d":"$483.50"},{"$nulls":4},{"$f":"BG51","v":{"v":250,"d":"$250.00"}},{"$nulls":4},{"v":250,"d":"$250.00"}]
[{"$nulls":10},{"$f":"T('2 REPAIR ESTIMATOR'!AJ81:AP81)","v":"ELECTRICAL"},{"$nulls":6},{"$f":"IF($AY$57=\"subbed\",'2 REPAIR ESTIMATOR'!BN1220,'2 REPAIR ESTIMATOR'!BM1220)","v":{"v":0,"d":"$0.00"}},{"$nulls":4},{"$f":"'2 REPAIR ESTIMATOR'!BB1119","v":{"v":1396.3500000000001,"d":"$1,396.35"}},{"$nulls":4},{"$f":"'2 REPAIR ESTIMATOR'!BC1119","v":{"v":900,"d":"$900.00"}},{"$nulls":4},{"v":2296.3500000000004,"d":"$2,296.35"},{"$nulls":4},{"$f":"BG53","v":{"v":3500,"d":"$3,500.00"}},{"$nulls":4},{"v":3500,"d":"$3,500.00"},{"$nulls":6},"Fixed Cost Graph"]
[{"$nulls":10},{"$f":"T('2 REPAIR ESTIMATOR'!AJ82:AP82)","v":"MISCELLANEOUS"},{"$nulls":6},{"$f":"IF($AY$57=\"subbed\",'2 REPAIR ESTIMATOR'!BN1221,'2 REPAIR ESTIMATOR'!BM1221)","v":{"v":0,"d":"$0.00"}},{"$nulls":4},{"$f":"'2 REPAIR ESTIMATOR'!BB1164","v":{"v":0,"d":"$0.00"}},{"$nulls":4},{"$f":"'2 REPAIR ESTIMATOR'!BC1164","v":{"v":0,"d":"$0.00"}},{"$nulls":4},{"v":0,"d":"$0.00"},{"$nulls":4},{"$f":"BG55","v":{"v":0,"d":"$0.00"}},{"$nulls":4},{"v":0,"d":"$0.00"},{"$nulls":6},"AFTER REPAIR VALUE",{"$nulls":8},{"$f":"1-BG122","v":{"v":0.91,"d":"91%"}}]
[{"$nulls":10},"TOTALS",{"$nulls":6},{"$f":"SUM(R98:V121)","v":{"v":20972.5,"d":"$20,972.50"}},{"$nulls":4},{"$f":"SUM(W98:AA121)","v":{"v":31581.049999999996,"d":"$31,581.05"}},{"$nulls":4},{"$f":"SUM(AB98:AF121)","v":{"v":900,"d":"$900.00"}},{"$nulls":4},{"$f":"SUM(AG98:AK121)","v":{"v":53453.549999999996,"d":"$53,453.55"}},{"$nulls":4},{"$f":"SUM(AL98:AP121)","v":{"v":49750,"d":"$49,750.00"}},{"$nulls":4},{"$f":"SUM(AQ98:AU121)","v":{"v":49750,"d":"$49,750.00"}},{"$nulls":6},"FIXED COSTS",{"$nulls":8},{"$f":"TOTAL_FIXED_COSTS_ESTIMATED/AFTER_REPAIR_VALUE_CELL","v":{"v":0.09,"d":"9%"}}]
[]
[{"$nulls":13},{"$f":"IF(Fixed_Cost_Calculation_Method=\"% of ARV\",CONCATENATE(\"Fixed Costs are being Calculated at \",TEXT(AE16,\"0%\"),\" of the ARV\"),\"\")","v":""},{"$nulls":30},"Raw Repair Estimate:",{"$nulls":11},{"$f":"ESTIMATE_SUBTOTAL","v":{"v":49750,"d":"$49,750"}}]
[]
[]
[{"$nulls":45},"Total Estimate:",{"$nulls":10},{"$f":"BG76+BE124","v":{"v":63563.0875,"d":"$63,563"}}]
[]
[]
[{"$nulls":56},{"$f":"IFERROR(BG76/ESTIMATE_SUBTOTAL,0)","v":{"v":0.27765,"d":"27.8%"}}]

{"sheet":"2 REPAIR ESTIMATOR","index":13,"n_rows":1222,"n_cols":66,"rows_kept":1222,"hidden":true,"merged":[[7,3,10,29],[15,33,15,41],[16,33,16,41],[17,33,17,41],[18,33,18,41],[19,33,19,41],[23,3,23,8],[23,10,23,15],[23,17,23,22],[23,24,23,29],[24,3,31,8],[24,10,31,15],[24,17,31,22],[24,24,31,29],[39,3,39,29],[40,3,43,43],[49,4,51,42],[54,2,54,12],[54,17,54,27],[54,32,54,42],[55,2,55,9],[55,10,55,14],[55,17,55,24],[55,25,55,29],[55,32,55,39],[55,40,55,44],[56,2,56,9],[56,10,56,14],[56,17,56,24],[56,25,56,29],[56,32,56,39],[56,40,56,44],[57,2,57,9],[57,10,57,14],[57,17,57,24],[57,25,57,29],[57,32,57,39],[57,40,57,44],[58,2,58,9],[58,10,58,14],[58,17,58,24],[58,25,58,29],[58,32,58,39],[58,40,58,44],[59,2,59,9],[59,10,59,14],[59,17,59,24],[59,25,59,29],[59,32,59,39],[59,40,59,44],[60,2,60,9],[60,10,60,14],[60,17,60,24],[60,25,60,29],[60,32,60,39],[60,40,60,44],[61,2,61,9],[61,10,61,14],[61,17,61,24],[61,25,61,29],[61,32,61,39],[61,40,61,44],[62,2,62,9],[62,10,62,14],[62,17,62,24],[62,25,62,29],[62,32,62,39],[62,40,62,44],[63,2,63,9],[63,10,63,14],[63,17,63,24],[63,25,63,29],[63,32,63,39],[63,40,63,44],[64,2,64,9],[64,10,64,14],[64,17,64,24],[64,25,64,29],[64,32,64,39],[64,40,64,44],[65,2,65,9],[65,10,65,14],[65,17,65,24],[65,25,65,29],[65,32,65,39],[65,40,65,44],[66,2,66,9],[66,10,66,14],[66,17,66,24],[66,25,66,29],[66,32,66,39],[66,40,66,44],[67,2,67,9],[67,10,67,14],[67,17,67,24],[67,25,67,29],[67,40,67,44],[68,3,68,9],[68,10,68,14],[68,18,68,24],[68,25,68,29],[68,33,68,39],[68,40,68,44],[70,2,70,9],[70,10,70,14],[70,17,70,24],[70,25,70,29],[70,32,70,39],[70,40,70,44],[71,17,71,24],[71,25,71,27],[71,32,71,39],[71,40,71,42],[952,3,952,14],[972,3,972,14],[977,1,977,2],[977,3,977,14],[977,15,977,17],[977,18,977,19],[977,20,977,22],[977,23,977,25],[977,26,977,28],[979,1,979,2],[979,3,979,14],[979,15,979,17],[979,18,979,19],[979,20,979,22],[979,23,979,25],[979,26,979,28],[979,29,979,31],[979,32,979,34],[979,35,979,37],[979,38,979,41],[979,42,979,45],[980,1,980,2],[980,3,980,14],[980,15,980,17],[980,18,980,19],[980,20,980,22],[980,23,980,25],[980,26,980,28],[980,29,980,31],[980,32,980,34],[980,35,980,37],[980,38,980,41],[980,42,980,45],[981,1,981,2],[981,3,981,14],[981,15,981,17],[981,18,981,19],[981,20,981,22],[981,23,981,25],[981,26,981,28],[981,29,981,31],[981,32,981,34],[981,35,981,37],[981,38,981,41],[981,42,981,45],[1007,1,1007,2],[1007,3,1007,14],[1007,15,1007,17],[1007,18,1007,19],[1007,20,1007,22],[1007,23,1007,25],[1007,26,1007,28],[1007,29,1007,31],[1007,32,1007,34],[1007,35,1007,37],[1007,38,1007,41],[1007,42,1007,45],[1012,1,1012,2],[1012,3,1012,14],[1012,15,1012,17],[1012,18,1012,19],[1012,20,1012,22],[1012,23,1012,25],[1012,26,1012,28],[1012,29,1012,31],[1012,32,1012,34],[1012,35,1012,37],[1012,38,1012,41],[1012,42,1012,45],[1013,1,1013,2],[1013,3,1013,14],[1013,15,1013,17],[1013,18,1013,19],[1013,20,1013,22],[1013,23,1013,25],[1013,26,1013,28],[1013,29,1013,31],[1013,32,1013,34],[1013,35,1013,37],[1013,38,1013,41],[1014,1,1014,2],[1014,3,1014,14],[1014,15,1014,17],[1014,18,1014,19],[1014,20,1014,22],[1014,23,1014,25],[1014,26,1014,28],[1014,29,1014,31],[1014,32,1014,34],[1014,35,1014,37],[1014,38,1014,41],[1014,42,1014,45],[1015,1,1015,2],[1015,3,1015,14],[1015,15,1015,17],[1015,18,1015,19],[1015,20,1015,22],[1015,23,1015,25],[1015,26,1015,28],[1015,29,1015,31],[1015,32,1015,34],[1015,35,1015,37],[1015,38,1015,41],[1015,42,1015,45],[1016,1,1016,2],[1016,3,1016,14],[1016,15,1016,17],[1016,18,1016,19],[1016,20,1016,22],[1016,23,1016,25],[1016,26,1016,28],[1016,29,1016,31],[1016,32,1016,34],[1016,35,1016,37],[1016,38,1016,41],[1016,42,1016,45],[1017,1,1017,2],[1017,3,1017,14],[1017,15,1017,17],[1017,18,1017,19],[1017,20,1017,22],[1017,23,1017,25],[1017,26,1017,28],[1017,29,1017,31],[1017,32,1017,34],[1017,35,1017,37],[1017,38,1017,41],[1017,42,1017,45],[1018,1,1018,2],[1018,3,1018,14],[1018,15,1018,17],[1018,18,1018,19],[1018,20,1018,22],[1018,23,1018,25],[1018,26,1018,28],[1018,29,1018,31],[1018,32,1018,34],[1018,35,1018,37],[1018,38,1018,41],[1018,42,1018,45],[1019,1,1019,2],[1019,3,1019,14],[1019,15,1019,17],[1019,18,1019,19],[1019,20,1019,22],[1019,23,1019,25],[1019,26,1019,28],[1019,29,1019,31],[1019,32,1019,34],[1019,35,1019,37],[1019,38,1019,41],[1019,42,1019,45],[1020,1,1020,2],[1020,3,1020,14],[1020,15,1020,17],[1020,18,1020,19],[1020,20,1020,22],[1020,23,1020,25],[1020,26,1020,28],[1020,29,1020,31],[1020,32,1020,34],[1020,35,1020,37],[1020,38,1020,41],[1020,42,1020,45],[1021,1,1021,2],[1021,3,1021,14],[1021,15,1021,17],[1021,18,1021,19],[1021,20,1021,22],[1021,23,1021,25],[1021,26,1021,28],[1021,29,1021,31],[1021,32,1021,34],[1021,35,1021,37],[1021,38,1021,41],[1021,42,1021,45],[1022,1,1022,2],[1022,3,1022,14],[1022,15,1022,17],[1022,18,1022,19],[1022,20,1022,22],[1022,23,1022,25],[1022,26,1022,28],[1022,29,1022,31],[1022,32,1022,34],[1022,35,1022,37],[1022,38,1022,41],[1022,42,1022,45],[1023,1,1023,2],[1023,3,1023,14],[1023,15,1023,17],[1023,18,1023,19],[1023,20,1023,22],[1023,23,1023,25],[1023,26,1023,28],[1023,29,1023,31],[1023,32,1023,34],[1023,35,1023,37],[1023,38,1023,41],[1023,42,1023,45],[1024,1,1024,2],[1024,3,1024,14],[1024,15,1024,17],[1024,18,1024,19],[1024,20,1024,22],[1024,23,1024,25],[1024,26,1024,28],[1024,29,1024,31],[1024,32,1024,34],[1024,35,1024,37],[1024,38,1024,41],[1024,42,1024,45],[1025,1,1025,2],[1025,3,1025,14],[1025,15,1025,17],[1025,18,1025,19],[1025,20,1025,22],[1025,23,1025,25],[1025,26,1025,28],[1025,29,1025,31],[1025,32,1025,34],[1025,35,1025,37],[1025,38,1025,41],[1025,42,1025,45],[1026,1,1026,2],[1026,3,1026,14],[1026,15,1026,17],[1026,18,1026,19],[1026,20,1026,22],[1026,23,1026,25],[1026,26,1026,28],[1026,29,1026,31],[1026,32,1026,34],[1026,35,1026,37],[1026,38,1026,41],[1026,42,1026,45],[1050,1,1050,2],[1050,3,1050,14],[1050,15,1050,17],[1050,18,1050,19],[1050,20,1050,22],[1050,23,1050,25],[1050,26,1050,28],[1050,29,1050,31],[1050,32,1050,34],[1050,35,1050,37],[1050,38,1050,41],[1050,42,1050,45],[1051,1,1051,2],[1051,3,1051,14],[1051,15,1051,17],[1051,18,1051,19],[1052,1,1052,2],[1052,3,1052,14],[1052,15,1052,17],[1052,18,1052,19],[1052,20,1052,22],[1052,23,1052,25],[1052,26,1052,28],[1052,29,1052,31],[1052,32,1052,34],[1052,35,1052,37],[1052,38,1052,41],[1052,42,1052,45],[1062,38,1062,41],[1062,42,1062,45],[1063,38,1063,41],[1064,1,1064,2],[1065,1,1065,2],[1065,3,1065,14],[1065,15,1065,17],[1065,18,1065,19],[1065,20,1065,22],[1065,23,1065,25],[1065,26,1065,28],[1065,29,1065,31],[1065,32,1065,34],[1065,35,1065,37],[1065,38,1065,41],[1065,42,1065,45],[1066,1,1066,2],[1066,3,1066,14],[1066,15,1066,17],[1066,18,1066,19],[1066,20,1066,22],[1066,23,1066,25],[1066,26,1066,28],[1066,29,1066,31],[1066,32,1066,34],[1066,35,1066,37],[1066,38,1066,41],[1066,42,1066,45],[1067,1,1067,2],[1067,3,1067,14],[1067,15,1067,17],[1067,18,1067,19],[1067,20,1067,22],[1067,23,1067,25],[1067,26,1067,28],[1067,29,1067,31],[1067,32,1067,34],[1067,35,1067,37],[1067,38,1067,41],[1067,42,1067,45],[1068,1,1068,2],[1068,3,1068,14],[1068,15,1068,17],[1068,18,1068,19],[1068,20,1068,22],[1068,23,1068,25],[1068,26,1068,28],[1068,29,1068,31],[1068,32,1068,34],[1068,35,1068,37],[1068,38,1068,41],[1068,42,1068,45],[1069,1,1069,2],[1069,3,1069,14],[1069,15,1069,17],[1069,18,1069,19],[1069,20,1069,22],[1069,23,1069,25],[1069,26,1069,28],[1069,29,1069,31],[1069,32,1069,34],[1069,35,1069,37],[1069,38,1069,41],[1069,42,1069,45],[1070,1,1070,2],[1070,3,1070,14],[1070,15,1070,17],[1070,18,1070,19],[1070,20,1070,22],[1070,23,1070,25],[1070,26,1070,28],[1070,29,1070,31],[1070,32,1070,34],[1070,35,1070,37],[1070,38,1070,41],[1070,42,1070,45],[1071,3,1071,14],[1071,15,1071,17],[1071,18,1071,19],[1071,20,1071,22],[1071,23,1071,25],[1071,26,1071,28],[1071,29,1071,31],[1071,32,1071,34],[1071,35,1071,37],[1071,38,1071,41],[1071,42,1071,45],[1073,42,1073,45],[1078,42,1078,45],[1080,42,1080,45],[1081,29,1081,31],[1081,32,1081,34],[1081,35,1081,37],[1082,42,1082,45],[1083,23,1083,25],[1083,42,1083,45],[1084,42,1084,45],[1085,42,1085,45],[1086,42,1086,45],[1087,42,1087,45],[1090,42,1090,45],[1091,42,1091,45],[1093,42,1093,45],[1096,42,1096,45],[1097,1,1097,2],[1097,3,1097,14],[1097,15,1097,17],[1097,18,1097,19],[1097,20,1097,22],[1097,23,1097,25],[1097,26,1097,28],[1097,29,1097,31],[1097,32,1097,34],[1097,35,1097,37],[1097,38,1097,41],[1097,42,1097,45],[1103,18,1103,19],[1103,20,1103,22],[1103,23,1103,25],[1103,26,1103,28],[1103,29,1103,31],[1103,32,1103,34],[1103,35,1103,37],[1103,38,1103,41],[1103,42,1103,45],[1105,18,1105,19],[1105,20,1105,22],[1105,23,1105,25],[1105,26,1105,28],[1106,1,1106,2],[1106,3,1106,14],[1106,15,1106,17],[1106,18,1106,19],[1106,20,1106,22],[1106,23,1106,25],[1106,26,1106,28],[1106,29,1106,31],[1106,32,1106,34],[1106,35,1106,37],[1106,38,1106,41],[1106,42,1106,45],[1107,1,1107,2],[1107,3,1107,14],[1107,15,1107,17],[1107,18,1107,19],[1107,20,1107,22],[1107,23,1107,25],[1107,26,1107,28],[1107,29,1107,31],[1107,32,1107,34],[1107,35,1107,37],[1107,38,1107,41],[1107,42,1107,45],[1108,1,1108,2],[1108,3,1108,14],[1108,15,1108,17],[1108,18,1108,19],[1108,20,1108,22],[1108,23,1108,25],[1108,26,1108,28],[1108,29,1108,31],[1108,32,1108,34],[1108,35,1108,37],[1108,38,1108,41],[1108,42,1108,45],[1109,1,1109,2],[1109,3,1109,14],[1109,15,1109,17],[1109,18,1109,19],[1109,20,1109,22],[1109,23,1109,25],[1109,26,1109,28],[1109,29,1109,31],[1109,32,1109,34],[1109,35,1109,37],[1109,38,1109,41],[1110,1,1110,2],[1110,3,1110,14],[1110,15,1110,17],[1110,18,1110,19],[1110,20,1110,22],[1110,23,1110,25],[1110,26,1110,28],[1110,29,1110,31],[1110,32,1110,34],[1110,35,1110,37],[1110,38,1110,41],[1110,42,1110,45],[1111,1,1111,2],[1111,3,1111,14],[1111,15,1111,17],[1111,18,1111,19],[1111,20,1111,22],[1111,23,1111,25],[1111,26,1111,28],[1111,29,1111,31],[1111,32,1111,34],[1111,35,1111,37],[1111,38,1111,41],[1111,42,1111,45],[1112,1,1112,2],[1112,3,1112,14],[1112,15,1112,17],[1112,18,1112,19],[1112,20,1112,22],[1112,23,1112,25],[1112,26,1112,28],[1112,29,1112,31],[1112,32,1112,34],[1112,35,1112,37],[1112,38,1112,41],[1112,42,1112,45],[1113,1,1113,2],[1113,3,1113,14],[1113,15,1113,17],[1113,18,1113,19],[1113,20,1113,22],[1113,23,1113,25],[1113,26,1113,28],[1113,29,1113,31],[1113,32,1113,34],[1113,35,1113,37],[1113,38,1113,41],[1113,42,1113,45],[1114,1,1114,2],[1114,3,1114,14],[1114,15,1114,17],[1114,18,1114,19],[1114,20,1114,22],[1114,23,1114,25],[1114,26,1114,28],[1114,29,1114,31],[1114,32,1114,34],[1114,35,1114,37],[1114,38,1114,41],[1114,42,1114,45],[1115,1,1115,2],[1115,3,1115,14],[1115,15,1115,17],[1115,18,1115,19],[1115,20,1115,22],[1115,23,1115,25],[1115,26,1115,28],[1115,29,1115,31],[1115,32,1115,34],[1115,35,1115,37],[1115,38,1115,41],[1115,42,1115,45],[1116,1,1116,2],[1116,3,1116,14],[1116,15,1116,17],[1116,18,1116,19],[1116,20,1116,22],[1116,23,1116,25],[1116,26,1116,28],[1116,29,1116,31],[1116,32,1116,34],[1116,35,1116,37],[1116,38,1116,41],[1116,42,1116,45],[1129,1,1129,2],[1131,26,1131,28],[1131,29,1131,31],[1131,32,1131,34],[1131,35,1131,37],[1131,38,1131,41],[1131,42,1131,45],[1132,1,1132,2],[1132,3,1132,14],[1132,15,1132,17],[1132,18,1132,19],[1132,20,1132,22],[1132,23,1132,25],[1133,1,1133,2],[1133,3,1133,14],[1133,15,1133,17],[1133,18,1133,19],[1133,20,1133,22],[1133,23,1133,25],[1133,26,1133,28],[1133,29,1133,31],[1133,32,1133,34],[1133,35,1133,37],[1133,38,1133,41],[1133,42,1133,45],[1134,1,1134,2],[1134,3,1134,14],[1134,15,1134,17],[1134,18,1134,19],[1134,20,1134,22],[1134,23,1134,25],[1134,26,1134,28],[1134,29,1134,31],[1134,32,1134,34],[1134,35,1134,37],[1134,38,1134,41],[1134,42,1134,45],[1135,1,1135,2],[1135,3,1135,14],[1135,15,1135,17],[1135,18,1135,19],[1135,20,1135,22],[1135,23,1135,25],[1135,26,1135,28],[1135,29,1135,31],[1135,32,1135,34],[1135,35,1135,37],[1135,38,1135,41],[1135,42,1135,45],[1136,1,1136,2],[1136,3,1136,14],[1136,15,1136,17],[1136,18,1136,19],[1136,20,1136,22],[1136,23,1136,25],[1136,26,1136,28],[1136,29,1136,31],[1136,32,1136,34],[1136,35,1136,37],[1136,38,1136,41],[1136,42,1136,45],[1137,1,1137,2],[1137,3,1137,14],[1137,15,1137,17],[1137,18,1137,19],[1137,20,1137,22],[1137,23,1137,25],[1137,26,1137,28],[1137,29,1137,31],[1137,32,1137,34],[1137,35,1137,37],[1137,38,1137,41],[1137,42,1137,45],[1138,1,1138,2],[1138,3,1138,14],[1138,15,1138,17],[1138,18,1138,19],[1138,20,1138,22],[1138,23,1138,25],[1138,26,1138,28],[1138,29,1138,31],[1138,32,1138,34],[1138,35,1138,37],[1138,38,1138,41],[1138,42,1138,45],[1139,1,1139,2],[1139,3,1139,14],[1139,15,1139,17],[1139,18,1139,19],[1139,20,1139,22],[1139,23,1139,25],[1139,26,1139,28],[1139,29,1139,31],[1139,32,1139,34],[1139,35,1139,37],[1139,38,1139,41],[1139,42,1139,45],[1140,1,1140,2],[1140,3,1140,14],[1140,15,1140,17],[1140,18,1140,19],[1140,20,1140,22],[1140,23,1140,25],[1140,26,1140,28],[1140,29,1140,31],[1140,32,1140,34],[1140,35,1140,37],[1140,38,1140,41],[1140,42,1140,45],[1141,1,1141,2],[1141,3,1141,14],[1141,15,1141,17],[1141,18,1141,19],[1141,20,1141,22],[1141,23,1141,25],[1141,26,1141,28],[1141,29,1141,31],[1141,32,1141,34],[1141,35,1141,37],[1141,38,1141,41],[1141,42,1141,45],[1142,1,1142,2],[1142,3,1142,14],[1142,15,1142,17],[1142,18,1142,19],[1142,20,1142,22],[1142,23,1142,25],[1142,26,1142,28],[1142,29,1142,31],[1142,32,1142,34],[1142,35,1142,37],[1142,38,1142,41],[1142,42,1142,45],[1143,1,1143,2],[1143,3,1143,14],[1143,15,1143,17],[1143,18,1143,19],[1143,20,1143,22],[1143,23,1143,25],[1143,26,1143,28],[1143,29,1143,31],[1143,32,1143,34],[1143,35,1143,37],[1143,38,1143,41],[1143,42,1143,45],[1144,1,1144,2],[1144,3,1144,14],[1144,15,1144,17],[1144,18,1144,19],[1144,20,1144,22],[1144,23,1144,25],[1144,26,1144,28],[1144,29,1144,31],[1144,32,1144,34],[1144,35,1144,37],[1144,38,1144,41],[1144,42,1144,45],[1145,1,1145,2],[1145,3,1145,14],[1145,15,1145,17],[1145,18,1145,19],[1145,20,1145,22],[1145,23,1145,25],[1145,26,1145,28],[1145,29,1145,31],[1145,32,1145,34],[1145,35,1145,37],[1145,38,1145,41],[1145,42,1145,45],[1146,1,1146,2],[1146,3,1146,14],[1146,15,1146,17],[1146,18,1146,19],[1146,20,1146,22],[1146,23,1146,25],[1146,26,1146,28],[1146,29,1146,31],[1146,32,1146,34],[1146,35,1146,37],[1146,38,1146,41],[1146,42,1146,45],[1147,1,1147,2],[1147,3,1147,14],[1147,15,1147,17],[1147,18,1147,19],[1147,20,1147,22],[1147,23,1147,25],[1147,26,1147,28],[1147,29,1147,31],[1147,32,1147,34],[1147,35,1147,37],[1147,38,1147,41],[1147,42,1147,45],[1148,1,1148,2],[1148,3,1148,14],[1148,15,1148,17],[1148,18,1148,19],[1148,20,1148,22],[1148,23,1148,25],[1148,26,1148,28],[1148,29,1148,31],[1148,32,1148,34],[1148,35,1148,37],[1148,38,1148,41],[1148,42,1148,45],[1149,1,1149,2],[1149,3,1149,14],[1149,15,1149,17],[1149,18,1149,19],[1149,20,1149,22],[1149,23,1149,25],[1149,26,1149,28],[1149,29,1149,31],[1149,32,1149,34],[1149,35,1149,37],[1149,38,1149,41],[1149,42,1149,45],[1150,1,1150,2],[1150,3,1150,14],[1150,15,1150,17],[1150,18,1150,19],[1150,20,1150,22],[1150,23,1150,25],[1150,26,1150,28],[1150,29,1150,31],[1150,32,1150,34],[1150,35,1150,37],[1150,38,1150,41],[1150,42,1150,45],[1151,1,1151,2],[1151,3,1151,14],[1151,15,1151,17],[1151,18,1151,19],[1151,20,1151,22],[1151,23,1151,25],[1151,26,1151,28],[1151,29,1151,31],[1151,32,1151,34],[1151,35,1151,37],[1151,38,1151,41],[1151,42,1151,45],[1152,1,1152,2],[1152,3,1152,14],[1152,15,1152,17],[1152,18,1152,19],[1152,20,1152,22],[1152,23,1152,25],[1152,26,1152,28],[1152,29,1152,31],[1152,32,1152,34],[1152,35,1152,37],[1152,38,1152,41],[1152,42,1152,45],[1153,1,1153,2],[1153,3,1153,14],[1153,15,1153,17],[1153,18,1153,19],[1153,20,1153,22],[1153,23,1153,25],[1153,26,1153,28],[1153,29,1153,31],[1153,32,1153,34],[1153,35,1153,37],[1153,38,1153,41],[1153,42,1153,45],[1154,1,1154,2],[1154,3,1154,14],[1154,15,1154,17],[1154,18,1154,19],[1154,20,1154,22],[1154,23,1154,25],[1154,26,1154,28],[1154,29,1154,31],[1154,32,1154,34],[1154,35,1154,37],[1154,38,1154,41],[1155,1,1155,2],[1155,3,1155,14],[1155,15,1155,17],[1155,18,1155,19],[1155,20,1155,22],[1155,23,1155,25],[1155,26,1155,28],[1155,29,1155,31],[1155,32,1155,34],[1155,35,1155,37],[1155,38,1155,41],[1155,42,1155,45],[1156,1,1156,2],[1156,3,1156,14],[1156,15,1156,17],[1156,18,1156,19],[1156,20,1156,22],[1156,23,1156,25],[1156,26,1156,28],[1156,29,1156,31],[1156,32,1156,34],[1156,35,1156,37],[1156,38,1156,41],[1156,42,1156,45],[1157,1,1157,2],[1157,3,1157,14],[1157,15,1157,17],[1157,18,1157,19],[1157,20,1157,22],[1157,23,1157,25],[1157,26,1157,28],[1157,29,1157,31],[1157,32,1157,34],[1157,35,1157,37],[1157,38,1157,41],[1157,42,1157,45],[1158,1,1158,2],[1158,3,1158,14],[1158,15,1158,17],[1158,18,1158,19],[1158,20,1158,22],[1158,23,1158,25],[1158,26,1158,28],[1158,29,1158,31],[1158,32,1158,34],[1158,35,1158,37],[1158,38,1158,41],[1158,42,1158,45],[1159,1,1159,2],[1159,3,1159,14],[1159,15,1159,17],[1159,18,1159,19],[1159,20,1159,22],[1159,23,1159,25],[1159,26,1159,28],[1159,29,1159,31],[1159,32,1159,34],[1159,35,1159,37],[1159,38,1159,41],[1159,42,1159,45],[1160,1,1160,2],[1160,3,1160,14],[1160,15,1160,17],[1160,18,1160,19],[1160,20,1160,22],[1160,23,1160,25],[1160,26,1160,28],[1160,29,1160,31],[1160,32,1160,34],[1160,35,1160,37],[1160,38,1160,41],[1160,42,1160,45],[1161,1,1161,2],[1161,3,1161,14],[1161,15,1161,17],[1161,18,1161,19],[1161,20,1161,22],[1161,23,1161,25],[1161,26,1161,28],[1161,29,1161,31],[1161,32,1161,34],[1161,35,1161,37],[1161,38,1161,41],[1161,42,1161,45],[1165,1,1165,45],[1178,4,1178,42],[1182,4,1182,42]],"merged_total":12218,"flags":["merged_cut"]}
[]
[]
["LOCKED","REPAIR ESTIMATOR"]
[]
[]
[]
[{"$nulls":3},"Repair Estimator Help"]
[{"$nulls":3},"Welcome to the Repair Cost Estimator.  The Repair Cost Estimator is pre-built with 24 Scopes of Work, and over 400 common work items and unit prices that you would typically see on a rehab project.  The cost database and information is based upon on National Averages.  However, these unit prices are just starting points, as there are many factors that can influence the unit pricing.  The most accurate way of estimating costs is to consult with local construction professionals in your area."]
[]
[]
[]
[{"$nulls":3},"Estimator Operation"]
[]
[{"$nulls":3},"Step 1:",{"$nulls":28},"Video Quick Links"]
[{"$nulls":3},"Inspect the property and create a detailed Scope of Work with quantities of repairs"]
[{"$nulls":33},"Repair Estimator - The Basics"]
[{"$nulls":3},"Step 2:",{"$nulls":29},"Changing Scopes of Work"]
[{"$nulls":3},"Input the quantities into the Quantity (Qty) column for the items that need repaired, replaced or installed.",{"$nulls":29},"Changing Unit Prices"]
[{"$nulls":33},"Estimate Report"]
[{"$nulls":3},"Step 3:"]
[{"$nulls":3},"Change the unit prices as necessary to meet your specific project needs & location."]
[]
[{"$nulls":3},"Factors that Affect Costs"]
[{"$nulls":3},"Quality ",{"$nulls":6},"Size of Project",{"$nulls":6},"Location",{"$nulls":6},"Project Characteristics",{"$nulls":6},"Season of Year",{"$nulls":6},"Other Factors"]
[{"$nulls":3},"The quality of materials, and quality of contractor craftsmanship can influence costs. The prices included assume hired licensed contractors to install according to builder-grade building standards.",{"$nulls":6},"The size, scope of work and type of construction will have a significant impact on cost.  'Economies of scale' can reduce costs for large projects.  Unit prices can often run higher for smaller projects.  Prices are based upon a ~ 1,500sf to 2,000 sf rehab project.",{"$nulls":6},"Construction costs can vary significantly by region and localized areas.  Adjust your project costs by your local modifier as necessary.  Also consider, in dense urban areas, traffic & site storage may increase costs.  In rural areas, lower wage rates may be in effect.",{"$nulls":6},"The types of properties and property characteristics can influence costs.  A 10 -year cookie cutter property will likely be cheaper to renovate than a 100 year-old historic home, due to the level of finishes, historic requirements, & MEP upgrades required to the historic property.",{"$nulls":6},"The time of the year can influence different trade labor rates and fees.  For example, HVAC contractors may charge more during the cold winter months as they get swamped with emergency calls for furnaces failures, than in the moderate months of the Fall/Spring."]
[{"$nulls":38},"- Weather Conditions"]
[{"$nulls":38},"- Code Requirements"]
[{"$nulls":38},"- Safety Requirements"]
[{"$nulls":38},"Availability of:"]
[{"$nulls":38},"- Skilled Labor"]
[{"$nulls":38},"- Building Materials"]
[]
[]
[{"$nulls":3},"Tip:"]
[{"$nulls":3},"If you are not comfortable estimating a particular scope of work, contact a local contractor in your area that specializes in that particular trade."]
[{"$nulls":3},"For example:  If your property needs a roof replaced, but you are unsure how to calculate the roof size and/or are unsure about your localized unit prices call a local roofing company in your area.  If you receive a secretary, ask for a sales representative or someone in 'Estimating'.  Describe the size of the property, the type of shingles you are requesting (generally 3-tab or architectural asphalt shingles) and any other pertinent information.  With this limited information, the roofing contractor should be able to give you a unit price, and a rough cost range of what the roof would cost to replace.  With this contractor feedback and information, you can input a realistic estimate for the roof costs in the estimator."]
[]
[]
[]
[{"$nulls":3},"Disclaimer"]
[{"$nulls":3},"House Flipping Spreadsheet.com has created the Repair Estimator database with their own personal experience, due diligence and judgmenet.  However, HFS makes no express or implied warranty or guarantee of accuracy, correctness, value, sufficiency or completeness of the data.  HFS shall have no liability to any customer or third party for any loss, expense, or damage, including consequential, incidental, special or punitive damage including lost profits or revene caused direcly or indircetly by any error or omission.  Use common sense, caution and seek professional advice from qualified professionals when creating estimates."]
[]
[]
[]
[]
[]
[]
[null,"Location Multipliers","Location Modifiers"]
[]
[{"$nulls":4},"Costs provided in the Repair Estimator are based upon National Averages for installation and materials.  To adjust these costs for a specific location, multiply the base cost by the location factor for your area.  For areas or cities that are not listed, use the factor for a nearby city with similar economic characteristics."]
[]
[]
[]
[]
[null,null,"East Coast:",{"$nulls":14},"Midwest/Mountain:",{"$nulls":14},"West Coast"]
[null,null,"Urban Areas:",{"$nulls":7},"Multiplier",{"$nulls":6},"Urban Areas:",{"$nulls":7},"Multiplier",{"$nulls":6},"Urban Areas:",{"$nulls":7},"Multiplier"]
[null,null,"New York, NY",{"$nulls":7},1.35,{"$nulls":6},"Chicago, IL",{"$nulls":7},1.25,{"$nulls":6},"San Francisco, CA",{"$nulls":7},1.35]
[null,null,"Boston, MA",{"$nulls":7},1.25,{"$nulls":6},"Minneapolis, MN",{"$nulls":7},1.15,{"$nulls":6},"San Jose, CA",{"$nulls":7},{"v":1.3,"d":"1.30"}]
[null,null,"Philadelphia, PA",{"$nulls":7},{"v":1.2,"d":"1.20"},{"$nulls":6},"Milwaukee, WI",{"$nulls":7},{"v":1.1,"d":"1.10"},{"$nulls":6},"Oakland, CA",{"$nulls":7},1.25]
[null,null,"Washington DC",{"$nulls":7},{"v":1.2,"d":"1.20"},{"$nulls":6},"Detroit, MI",{"$nulls":7},1.05,{"$nulls":6},"Los Angeles, CA",{"$nulls":7},{"v":1.2,"d":"1.20"}]
[null,null,"Pittsburgh, PA",{"$nulls":7},1.05,{"$nulls":6},"Kansas City, MO",{"$nulls":7},1.05,{"$nulls":6},"Santa Rosa, CA",{"$nulls":7},{"v":1.2,"d":"1.20"}]
[null,null,"Charlotte, NC",{"$nulls":7},{"v":1,"d":"1.00"},{"$nulls":6},"St. Louis",{"$nulls":7},1.05,{"$nulls":6},"Sacramento, CA",{"$nulls":7},1.15]
[null,null,"Jacksonville, FL",{"$nulls":7},{"v":1,"d":"1.00"},{"$nulls":6},"Denver, CO",{"$nulls":7},{"v":1,"d":"1.00"},{"$nulls":6},"San Diego, CA",{"$nulls":7},1.15]
[null,null,"Miami, FL",{"$nulls":7},{"v":1,"d":"1.00"},{"$nulls":6},"Houston, TX",{"$nulls":7},0.95,{"$nulls":6},"Seattle, WA",{"$nulls":7},1.15]
[null,null,"Indianapolis, IN",{"$nulls":7},1,{"$nulls":6},"Austin, TX",{"$nulls":7},0.95,{"$nulls":6},"Fresno, CA",{"$nulls":7},{"v":1.1,"d":"1.10"}]
[null,null,"Atlanta, GA",{"$nulls":7},0.95,{"$nulls":6},"San Antonio",{"$nulls":7},0.95,{"$nulls":6},"Bakersfield, CA",{"$nulls":7},{"v":1.1,"d":"1.10"}]
[null,null,"Nashville, TN",{"$nulls":7},0.95,{"$nulls":6},"Dallas",{"$nulls":7},0.95,{"$nulls":6},"Las Vegas, NV",{"$nulls":7},1.05]
[null,null,"New Orleans, LA",{"$nulls":7},0.95,{"$nulls":6},"Oklahoma City",{"$nulls":7},0.95,{"$nulls":6},"Portland, OR",{"$nulls":7},1.05]
[{"$nulls":3},"Average",{"$nulls":6},{"$f":"AVERAGE(K57:O68)","v":{"v":1.075,"d":"1.08"}},{"$nulls":7},"Average",{"$nulls":6},{"$f":"AVERAGE(Z57:AD68)","v":{"v":1.033333333333333,"d":"1.03"}},{"$nulls":7},"Average",{"$nulls":6},{"$f":"AVERAGE(AO57:AS68)","v":{"v":1.1708333333333336,"d":"1.17"}}]
[]
[null,null,"Rural Areas:",{"$nulls":7},".80 to 1.00",{"$nulls":6},"Rural Areas:",{"$nulls":7},".70 to .95",{"$nulls":6},"Rural Areas (CA)",{"$nulls":7},{"v":1,"d":"1.00"}]
[]
[]
[null,"TOTAL ESTIMATE:",{"$nulls":11},"ESTIMATE BREAKDOWN BY SCOPE OF WORK",{"$nulls":34},"ROOMS","TOTALS"]
[null,"SubTotal Estimate:",{"$nulls":7},{"$f":"AQ84","v":{"v":53453.549999999996,"d":"$53,454"}},{"$nulls":3},{"$f":"T('CATEGORY SETUP'!AD10:AZ10)","v":"GENERAL CONDITIONS"},{"$nulls":6},{"$f":"AQ129","v":{"v":534.75,"d":"$535"}},{"$nulls":3},{"$f":"T('CATEGORY SETUP'!AD18:AZ18)","v":"EXTERIOR DOORS & WINDOWS"},{"$nulls":6},{"$f":"AQ489","v":{"v":4835,"d":"$4,835"}},{"$nulls":3},{"$f":"T('CATEGORY SETUP'!AD26:AZ26)","v":"HARDWOOD FLOORING"},{"$nulls":6},{"$f":"AQ849","v":{"v":3458,"d":"$3,458"}},{"$nulls":5},"Kitchen",{"$f":"SUMIF($AW$87:$AW$1165,AW75,$AQ$87:$AQ$1165)","v":{"v":14169.5,"d":"$14,170"}},null,null,"DIY VS SUBBED"]
[null,"Location Multiplier",{"$nulls":7},{"$f":"IF(Estimator_Location_Multiplier_Cell=0,0,J75*(H76-1))","v":{"v":0,"d":"$0"}},{"$nulls":3},{"$f":"T('CATEGORY SETUP'!AD11:AZ11)","v":"DEMOLITION"},{"$nulls":6},{"$f":"AQ174","v":{"v":1600,"d":"$1,600"}},{"$nulls":3},{"$f":"T('CATEGORY SETUP'!AD19:AZ19)","v":"GARAGE DOORS"},{"$nulls":6},{"$f":"AQ534","v":{"v":1363,"d":"$1,363"}},{"$nulls":3},{"$f":"T('CATEGORY SETUP'!AD27:AZ27)","v":"TILING"},{"$nulls":6},{"$f":"AQ894","v":{"v":3904.1000000000004,"d":"$3,904"}},{"$nulls":5},"Bathrooms",{"v":7466.75,"d":"$7,467"},null,null,"DIYED",{"$f":"BF84","v":{"v":106907.09999999999,"d":"$106,907"}}]
[null,"Permit Cost: (1 to 2%)",{"$nulls":7},{"$f":"SUM(J75:M76)*H77","v":{"v":0,"d":"$0"}},{"$nulls":3},{"$f":"T('CATEGORY SETUP'!AD12:AZ12)","v":"STRUCTURAL CONCRETE"},{"$nulls":6},{"$f":"AQ219","v":{"v":0,"d":"$0"}},{"$nulls":3},{"$f":"T('CATEGORY SETUP'!AD20:AZ20)","v":"LANDSCAPING"},{"$nulls":6},{"$f":"AQ579","v":{"v":571,"d":"$571"}},{"$nulls":3},{"$f":"T('CATEGORY SETUP'!AD28:AZ28)","v":"PAINTING"},{"$nulls":6},{"$f":"AQ939","v":{"v":4000,"d":"$4,000"}},{"$nulls":5},"Bedrooms",{"v":0,"d":"$0"},null,null,"DIY SAVINGS",{"$f":"DIY_Savings","v":0}]
[null,"Contractor's  OH & P: (10%+)",{"$nulls":7},{"$f":"H78*SUM(J75:M77)","v":{"v":0,"d":"$0"}},{"$nulls":3},{"$f":"T('CATEGORY SETUP'!AD13:AZ13)","v":"CONCRETE & FLATWORK"},{"$nulls":6},{"$f":"AQ264","v":{"v":0,"d":"$0"}},{"$nulls":3},{"$f":"T('CATEGORY SETUP'!AD21:AZ21)","v":"MISC. EXTERIOR ITEMS"},{"$nulls":6},{"$f":"AQ624","v":{"v":631.6,"d":"$632"}},{"$nulls":3},{"$f":"T('CATEGORY SETUP'!AD29:AZ29)","v":"APPLIANCES"},{"$nulls":6},{"$f":"AQ984","v":{"v":3210,"d":"$3,210"}},{"$nulls":5},"Living Room",{"v":0,"d":"$0"},null,null,"SUBBED",{"$f":"DIYED+BB77","v":{"v":106907.09999999999,"d":"$106,907"}}]
[{"$f":"IFERROR(J75/Square_Feet,0)","v":{"v":35.6357,"d":"$36 /sf"}},"Contingency (5 to 25%)",{"$nulls":7},{"$f":"H79*SUM(J75:M78)","v":{"v":0,"d":"$0"}},{"$nulls":3},{"$f":"T('CATEGORY SETUP'!AD14:AZ14)","v":"MASONRY"},{"$nulls":6},{"$f":"AQ309","v":{"v":0,"d":"$0"}},{"$nulls":3},{"$f":"T('CATEGORY SETUP'!AD22:AZ22)","v":"FRAMING & DRYWALL"},{"$nulls":6},{"$f":"AQ669","v":{"v":750,"d":"$750"}},{"$nulls":3},{"$f":"T('CATEGORY SETUP'!AD30:AZ30)","v":"PLUMBING"},{"$nulls":6},{"$f":"AQ1029","v":{"v":2924,"d":"$2,924"}},{"$nulls":5},"Dining Room",{"v":0,"d":"$0"}]
[null,"Total Adders:",{"$nulls":5},{"$f":"IFERROR(Estimator_Total_Adder_Amount/J75,0)","v":{"v":0,"d":"0%"}},null,{"$f":"SUM(J76:M79)","v":{"v":0,"d":"$0"}},{"$nulls":3},{"$f":"T('CATEGORY SETUP'!AD15:AZ15)","v":"SIDING"},{"$nulls":6},{"$f":"AQ354","v":{"v":0,"d":"$0"}},{"$nulls":3},{"$f":"T('CATEGORY SETUP'!AD23:AZ23)","v":"CABINETS & COUNTERTOPS"},{"$nulls":6},{"$f":"AQ714","v":{"v":11446.25,"d":"$11,446"}},{"$nulls":3},{"$f":"T('CATEGORY SETUP'!AD31:AZ31)","v":"HVAC"},{"$nulls":6},{"$f":"AQ1074","v":{"v":483.5,"d":"$484"}},{"$nulls":5},"Basement",{"v":0,"d":"$0"}]
[null,"TOTAL ESTIMATE:",{"$nulls":5},{"$f":"J75+J80","v":{"v":53453.549999999996,"d":"$53,454"}},{"$nulls":5},{"$f":"T('CATEGORY SETUP'!AD16:AZ16)","v":"DECKING AND PATIOS"},{"$nulls":6},{"$f":"AQ399","v":{"v":1071,"d":"$1,071"}},{"$nulls":3},{"$f":"T('CATEGORY SETUP'!AD24:AZ24)","v":"DOORS & TRIM"},{"$nulls":6},{"$f":"AQ759","v":{"v":2409,"d":"$2,409"}},{"$nulls":3},{"$f":"T('CATEGORY SETUP'!AD32:AZ32)","v":"ELECTRICAL"},{"$nulls":6},{"$f":"AQ1119","v":{"v":2296.35,"d":"$2,296"}},{"$nulls":5},"Other 1",{"v":0,"d":"$0"}]
[{"$nulls":13},{"$f":"T('CATEGORY SETUP'!AD17:AZ17)","v":"ROOFING"},{"$nulls":6},{"$f":"AQ444","v":{"v":5461,"d":"$5,461"}},{"$nulls":3},{"$f":"T('CATEGORY SETUP'!AD25:AZ25)","v":"CARPET & RESILIENT"},{"$nulls":6},{"$f":"AQ804","v":{"v":2505,"d":"$2,505"}},{"$nulls":3},{"$f":"T('CATEGORY SETUP'!AD33:AZ33)","v":"MISCELLANEOUS"},{"$nulls":6},{"$f":"AQ1164","v":{"v":0,"d":"$0"}},{"$nulls":5},"Other 2",{"v":0,"d":"$0"},null,null,"LABOR, MATERIAL, SUB SORTER"]
[]
[null,"DIY (x)",null,"DESCRIPTION OF WORK",{"$nulls":11},"QTY",null,null,"UNIT",null,"UNIT PRICES",{"$nulls":8},{"$f":"AD129+AD174+AD219+AD264+AD309+AD354+AD399+AD444+AD489+AD534+AD579+AD624+AD669+AD714+AD759+AD804+AD849+AD894+AD939+AD984+AD1029+AD1074+AD1119+AD1164","v":{"v":20972.5,"d":"$20,973"}},null,null,{"$f":"AG129+AG174+AG219+AG264+AG309+AG354+AG399+AG444+AG489+AG534+AG579+AG624+AG669+AG714+AG759+AG804+AG849+AG894+AG939+AG984+AG1029+AG1074+AG1119+AG1164","v":{"v":31581.049999999996,"d":"$31,581"}},null,null,{"$f":"AJ129+AJ174+AJ219+AJ264+AJ309+AJ354+AJ399+AJ444+AJ489+AJ534+AJ579+AJ624+AJ669+AJ714+AJ759+AJ804+AJ849+AJ894+AJ939+AJ984+AJ1029+AJ1074+AJ1119+AJ1164","v":{"v":900,"d":"$900"}},null,null,{"$f":"AM129+AM174+AM219+AM264+AM309+AM354+AM399+AM444+AM489+AM534+AM579+AM624+AM669+AM714+AM759+AM804+AM849+AM894+AM939+AM984+AM1029+AM1074+AM1119+AM1164","v":{"v":0,"d":"$0"}},{"$nulls":3},{"$f":"Labor_Estimate+Material_Estimate+Sub_Estimate","v":{"v":53453.549999999996,"d":"$53,454"}},{"$nulls":4},"WORK BREAKDOWN BY SCOPE OF WORK","ROOMS","STORE","SKU #s","NOTES",{"$nulls":5},{"$f":"BF129+BF174+BF219+BF264+BF309+BF354+BF399+BF444+BF489+BF534+BF579+BF624+BF669+BF714+BF759+BF804+BF849+BF894+BF939+BF984+BF1029+BF1074+BF1119+BF1164","v":{"v":106907.09999999999,"d":"$106,907"}},"DIY SAVINGS",null,"DIYED LABOR","DIY SAVINGS","SUBBED LABOR"]
[{"$nulls":20},"LABOR/EQUIP",null,null,"MAT",{"v":0.07,"d":"7.0%"},null,"SUB",null,null,"LABOR/EQUIP",null,null,"MAT",null,null,"SUB",null,null,"DIY SAVINGS",{"$nulls":3},"TOTAL",{"$nulls":9},"LABOR","MAT","SUB","DIY SORT","TOTAL",{"$f":"AQ85","v":"TOTAL"},{"$f":"AM85","v":"DIY SAVINGS"},null,"DIYED LABOR","DIY SAVINGS","SUBBED LABOR"]
[]
["Visible",null,null,{"$f":"T(N75)","v":"GENERAL CONDITIONS"},{"$nulls":25},{"$f":"AD129","v":{"v":80,"d":"$80"}},null,null,{"$f":"AG129","v":{"v":454.75,"d":"$455"}},null,null,{"$f":"AJ129","v":{"v":0,"d":"$0"}},null,null,{"$f":"AM129","v":{"v":0,"d":"$0"}},{"$nulls":3},{"$f":"AQ129","v":{"v":534.75,"d":"$535"}},null,null,{"$f":"SUM(#REF!)","v":{"$error":"#REF!"}},null,{"$f":"$D$87","v":"GENERAL CONDITIONS"},{"$nulls":4},{"$f":"SUM(BA88:BA127)","v":80},{"$f":"SUM(BB88:BB127)","v":454.75},{"$f":"SUM(BC88:BC127)","v":0},{"$f":"SUM(BD88:BD127)","v":0},{"$f":"SUM(BE88:BE127)","v":534.75},{"$f":"AQ87","v":534.75},{"$f":"AM87","v":0},null,{"$f":"AD87","v":{"v":80,"d":"$80.00"}},{"$f":"AM87","v":{"v":0,"d":"$0.00"}},{"$f":"BJ87+BI87","v":{"v":80,"d":"$80.00"}}]
[{"$nulls":3},"Dumpster rental-40 yard",{"$nulls":11},1,null,null,"ea",{"$nulls":4},{"v":425,"d":"425.00"},{"$nulls":5},{"$f":"((P88*U88)-AM88)","v":{"v":0,"d":"$0"}},null,null,{"$f":"P88*X88*(1+$Y$85)","v":{"v":454.75,"d":"$455"}},null,null,{"$f":"P88*AA88","v":{"v":0,"d":"$0"}},null,null,{"$f":"IF($B88=\"x\",$P88*$U88,0)","v":{"v":0,"d":"$0"}},{"$nulls":3},{"$f":"SUM(AD88:AL88)","v":{"v":454.75,"d":"$455"}},{"$nulls":4},"GENERAL CONDITIONS",{"$nulls":4},{"$f":"AD88","v":0},{"$f":"AG88","v":454.75},{"$f":"AJ88","v":0},{"$f":"IF(B88=\"x\",1,0)","v":0},{"$f":"SUM(BA88:BC88)","v":454.75},454.75,0,null,{"$f":"AD88","v":{"v":0,"d":"$0.00"}},{"$f":"AM88","v":{"v":0,"d":"$0.00"}},{"$f":"BJ88+BI88","v":{"v":0,"d":"$0.00"}}]
[{"$nulls":3},"Storage Container",{"$nulls":14},"job","job",{"$nulls":3},{"v":200,"d":"200.00"},null,{"v":200,"d":"200.00"},{"$nulls":3},{"$f":"((P89*U89)-AM89)","v":{"v":0,"d":"$0"}},null,null,{"$f":"P89*X89*(1+$Y$85)","v":{"v":0,"d":"$0"}},null,null,{"$f":"P89*AA89","v":{"v":0,"d":"$0"}},null,null,{"v":0,"d":"$0"},{"$nulls":3},{"$f":"SUM(AD89:AL89)","v":{"v":0,"d":"$0"}},{"$nulls":4},"GENERAL CONDITIONS",{"$nulls":4},0,{"$f":"AG89","v":0},{"$f":"AJ89","v":0},0,{"$f":"SUM(BA89:BC89)","v":0},0,0,null,{"$f":"AD89","v":{"v":0,"d":"$0.00"}},{"$f":"AM89","v":{"v":0,"d":"$0.00"}},{"$f":"BJ89+BI89","v":{"v":0,"d":"$0.00"}}]
[{"$nulls":3},"Chemical Toilet",{"$nulls":14},"mo","mo",{"$nulls":3},{"v":85,"d":"85.00"},null,{"v":85,"d":"85.00"},{"$nulls":3},{"v":0,"d":"$0"},null,null,{"v":0,"d":"$0"},null,null,{"v":0,"d":"$0"},null,null,{"v":0,"d":"$0"},{"$nulls":3},{"v":0,"d":"$0"},{"$nulls":4},"GENERAL CONDITIONS",{"$nulls":4},0,0,0,0,0,0,0,null,{"v":0,"d":"$0.00"},{"v":0,"d":"$0.00"},{"v":0,"d":"$0.00"}]
[{"$nulls":3},"Misc. Tools & Materials",{"$nulls":14},"ls","mo",{"$nulls":3},{"v":250,"d":"250.00"},null,{"v":250,"d":"250.00"},{"$nulls":3},{"v":0,"d":"$0"},null,null,{"v":0,"d":"$0"},null,null,{"v":0,"d":"$0"},null,null,{"v":0,"d":"$0"},{"$nulls":3},{"v":0,"d":"$0"},{"$nulls":4},"GENERAL CONDITIONS",{"$nulls":4},0,0,0,0,0,0,0,null,{"v":0,"d":"$0.00"},{"v":0,"d":"$0.00"},{"v":0,"d":"$0.00"}]
[{"$nulls":3},"Rekey/lock box",{"$nulls":14},"ea","mo",{"v":45,"d":"45.00"},null,null,{"v":50,"d":"50.00"},null,{"v":50,"d":"50.00"},{"$nulls":3},{"v":0,"d":"$0"},null,null,{"v":0,"d":"$0"},null,null,{"v":0,"d":"$0"},null,null,{"v":0,"d":"$0"},{"$nulls":3},{"v":0,"d":"$0"},{"$nulls":4},"GENERAL CONDITIONS",{"$nulls":4},0,0,0,0,0,0,0,null,{"v":0,"d":"$0.00"},{"v":0,"d":"$0.00"},{"v":0,"d":"$0.00"}]
[{"$nulls":3},"Turn on utilities",{"$nulls":14},"ls","mo",{"$nulls":3},{"v":125,"d":"125.00"},null,{"v":125,"d":"125.00"},{"$nulls":3},{"v":0,"d":"$0"},null,null,{"v":0,"d":"$0"},null,null,{"v":0,"d":"$0"},null,null,{"v":0,"d":"$0"},{"$nulls":3},{"v":0,"d":"$0"},{"$nulls":4},"GENERAL CONDITIONS",{"$nulls":4},0,0,0,0,0,0,0,null,{"v":0,"d":"$0.00"},{"v":0,"d":"$0.00"},{"v":0,"d":"$0.00"}]
[{"$nulls":3},"Truck expense/car payment",{"$nulls":14},"month","mo",{"$nulls":3},{"v":250,"d":"250.00"},null,{"v":250,"d":"250.00"},{"$nulls":3},{"v":0,"d":"$0"},null,null,{"v":0,"d":"$0"},null,null,{"v":0,"d":"$0"},null,null,{"v":0,"d":"$0"},{"$nulls":3},{"v":0,"d":"$0"},{"$nulls":4},"GENERAL CONDITIONS",{"$nulls":4},0,0,0,0,0,0,0,null,{"v":0,"d":"$0.00"},{"v":0,"d":"$0.00"},{"v":0,"d":"$0.00"}]
[{"$nulls":3},"Fuel/gas expense",{"$nulls":14},"wk","mo",{"$nulls":3},{"v":50,"d":"50.00"},null,{"v":50,"d":"50.00"},{"$nulls":3},{"v":0,"d":"$0"},null,null,{"v":0,"d":"$0"},null,null,{"v":0,"d":"$0"},null,null,{"v":0,"d":"$0"},{"$nulls":3},{"v":0,"d":"$0"},{"$nulls":4},"GENERAL CONDITIONS",{"$nulls":4},0,0,0,0,0,0,0,null,{"v":0,"d":"$0.00"},{"v":0,"d":"$0.00"},{"v":0,"d":"$0.00"}]
[{"$nulls":3},"Project management",{"$nulls":14},"wk","mo",{"v":1250,"d":"1250.00"},{"$nulls":8},{"v":0,"d":"$0"},null,null,{"v":0,"d":"$0"},null,null,{"v":0,"d":"$0"},null,null,{"v":0,"d":"$0"},{"$nulls":3},{"v":0,"d":"$0"},{"$nulls":4},"GENERAL CONDITIONS",{"$nulls":4},0,0,0,0,0,0,0,null,{"v":0,"d":"$0.00"},{"v":0,"d":"$0.00"},{"v":0,"d":"$0.00"}]
[{"$nulls":3},"Architectural Fees",{"$nulls":14},"hrs","mo",{"$nulls":6},{"v":100,"d":"100.00"},null,null,{"v":0,"d":"$0"},null,null,{"v":0,"d":"$0"},null,null,{"v":0,"d":"$0"},null,null,{"v":0,"d":"$0"},{"$nulls":3},{"v":0,"d":"$0"},{"$nulls":4},"GENERAL CONDITIONS",{"$nulls":4},0,0,0,0,0,0,0,null,{"v":0,"d":"$0.00"},{"v":0,"d":"$0.00"},{"v":0,"d":"$0.00"}]
[{"$nulls":3},"Engineering Fees",{"$nulls":14},"hrs","mo",{"$nulls":6},{"v":125,"d":"125.00"},null,null,{"v":0,"d":"$0"},null,null,{"v":0,"d":"$0"},null,null,{"v":0,"d":"$0"},null,null,{"v":0,"d":"$0"},{"$nulls":3},{"v":0,"d":"$0"},{"$nulls":4},"GENERAL CONDITIONS",{"$nulls":4},0,0,0,0,0,0,0,null,{"v":0,"d":"$0.00"},{"v":0,"d":"$0.00"},{"v":0,"d":"$0.00"}]
[{"$nulls":3},"Professional Photography",{"$nulls":14},"ls","mo",{"$nulls":6},{"v":350,"d":"350.00"},null,null,{"v":0,"d":"$0"},null,null,{"v":0,"d":"$0"},null,null,{"v":0,"d":"$0"},null,null,{"v":0,"d":"$0"},{"$nulls":3},{"v":0,"d":"$0"},{"$nulls":4},"GENERAL CONDITIONS",{"$nulls":4},0,0,0,0,0,0,0,null,{"v":0,"d":"$0.00"},{"v":0,"d":"$0.00"},{"v":0,"d":"$0.00"}]
[{"$nulls":3},"Material Deliveries",{"$nulls":14},"ea","mo",{"$nulls":3},{"v":75,"d":"75.00"},{"$nulls":5},{"v":0,"d":"$0"},null,null,{"v":0,"d":"$0"},null,null,{"v":0,"d":"$0"},null,null,{"v":0,"d":"$0"},{"$nulls":3},{"v":0,"d":"$0"},{"$nulls":4},"GENERAL CONDITIONS",{"$nulls":4},0,0,0,0,0,0,0,null,{"v":0,"d":"$0.00"},{"v":0,"d":"$0.00"},{"v":0,"d":"$0.00"}]
[{"$nulls":3},"Final cleaning",{"$nulls":11},4,null,null,"hrs",null,{"v":20,"d":"20.00"},{"$nulls":8},{"v":80,"d":"$80"},null,null,{"v":0,"d":"$0"},null,null,{"v":0,"d":"$0"},null,null,{"v":0,"d":"$0"},{"$nulls":3},{"v":80,"d":"$80"},{"$nulls":4},"GENERAL CONDITIONS",{"$nulls":4},80,0,0,0,80,80,0,null,{"v":80,"d":"$80.00"},{"v":0,"d":"$0.00"},{"v":80,"d":"$80.00"}]
[{"$nulls":29},{"v":0,"d":"$0"},null,null,{"v":0,"d":"$0"},null,null,{"v":0,"d":"$0"},null,null,{"v":0,"d":"$0"},{"$nulls":3},{"v":0,"d":"$0"},{"$nulls":4},"GENERAL CONDITIONS",{"$nulls":4},0,0,0,0,0,0,0,null,{"v":0,"d":"$0.00"},{"v":0,"d":"$0.00"},{"v":0,"d":"$0.00"}]
[{"$nulls":29},{"v":0,"d":"$0"},null,null,{"v":0,"d":"$0"},null,null,{"v":0,"d":"$0"},null,null,{"v":0,"d":"$0"},{"$nulls":3},{"v":0,"d":"$0"},{"$nulls":4},"GENERAL CONDITIONS",{"$nulls":4},0,0,0,0,0,0,0,null,{"v":0,"d":"$0.00"},{"v":0,"d":"$0.00"},{"v":0,"d":"$0.00"}]
[{"$nulls":29},{"v":0,"d":"$0"},null,null,{"v":0,"d":"$0"},null,null,{"v":0,"d":"$0"},null,null,{"v":0,"d":"$0"},{"$nulls":3},{"v":0,"d":"$0"},{"$nulls":4},"GENERAL CONDITIONS",{"$nulls":4},0,0,0,0,0,0,0,null,{"v":0,"d":"$0.00"},{"v":0,"d":"$0.00"},{"v":0,"d":"$0.00"}]
[{"$nulls":29},{"$f":"((P105*U105)-AM105)","v":{"v":0,"d":"$0"}},null,null,{"v":0,"d":"$0"},null,null,{"$f":"P105*AA105","v":{"v":0,"d":"$0"}},null,null,{"v":0,"d":"$0"},{"$nulls":3},{"$f":"SUM(AD105:AL105)","v":{"v":0,"d":"$0"}},{"$nulls":4},"GENERAL CONDITIONS",{"$nulls":4},{"$f":"AD105","v":0},{"$f":"AG105","v":0},{"$f":"AJ105","v":0},{"$f":"IF(B105=\"x\",1,0)","v":0},{"$f":"SUM(BA105:BC105)","v":0},{"$f":"AQ105","v":0},{"$f":"AM105","v":0},null,{"$f":"AD105","v":{"v":0,"d":"$0.00"}},{"$f":"AM105","v":{"v":0,"d":"$0.00"}},{"$f":"BJ105+BI105","v":{"v":0,"d":"$0.00"}}]
[{"$nulls":29},{"v":0,"d":"$0"},null,null,{"v":0,"d":"$0"},null,null,{"v":0,"d":"$0"},null,null,{"v":0,"d":"$0"},{"$nulls":3},{"v":0,"d":"$0"},{"$nulls":4},"GENERAL CONDITIONS",{"$nulls":4},0,0,0,0,0,0,0,null,{"v":0,"d":"$0.00"},{"v":0,"d":"$0.00"},{"v":0,"d":"$0.00"}]
[{"$nulls":29},{"v":0,"d":"$0"},null,null,{"v":0,"d":"$0"},null,null,{"v":0,"d":"$0"},null,null,{"v":0,"d":"$0"},{"$nulls":3},{"v":0,"d":"$0"},{"$nulls":4},"GENERAL CONDITIONS",{"$nulls":4},0,0,0,0,0,0,0,null,{"v":0,"d":"$0.00"},{"v":0,"d":"$0.00"},{"v":0,"d":"$0.00"}]
[{"$nulls":29},{"v":0,"d":"$0"},null,null,{"v":0,"d":"$0"},null,null,{"v":0,"d":"$0"},null,null,{"v":0,"d":"$0"},{"$nulls":3},{"v":0,"d":"$0"},{"$nulls":4},"GENERAL CONDITIONS",{"$nulls":4},0,0,0,0,0,0,0,null,{"v":0,"d":"$0.00"},{"v":0,"d":"$0.00"},{"v":0,"d":"$0.00"}]
[{"$nulls":29},{"v":0,"d":"$0"},null,null,{"v":0,"d":"$0"},null,null,{"v":0,"d":"$0"},null,null,{"v":0,"d":"$0"},{"$nulls":3},{"v":0,"d":"$0"},{"$nulls":4},"GENERAL CONDITIONS",{"$nulls":4},0,0,0,0,0,0,0,null,{"v":0,"d":"$0.00"},{"v":0,"d":"$0.00"},{"v":0,"d":"$0.00"}]
[{"$nulls":29},{"v":0,"d":"$0"},null,null,{"v":0,"d":"$0"},null,null,{"v":0,"d":"$0"},null,null,{"v":0,"d":"$0"},{"$nulls":3},{"v":0,"d":"$0"},{"$nulls":4},"GENERAL CONDITIONS",{"$nulls":4},0,0,0,0,0,0,0,null,{"v":0,"d":"$0.00"},{"v":0,"d":"$0.00"},{"v":0,"d":"$0.00"}]
[{"$nulls":29},{"v":0,"d":"$0"},null,null,{"v":0,"d":"$0"},null,null,{"v":0,"d":"$0"},null,null,{"v":0,"d":"$0"},{"$nulls":3},{"v":0,"d":"$0"},{"$nulls":4},"GENERAL CONDITIONS",{"$nulls":4},0,0,0,0,0,0,0,null,{"v":0,"d":"$0.00"},{"v":0,"d":"$0.00"},{"v":0,"d":"$0.00"}]
[{"$nulls":29},{"v":0,"d":"$0"},null,null,{"v":0,"d":"$0"},null,null,{"v":0,"d":"$0"},null,null,{"v":0,"d":"$0"},{"$nulls":3},{"v":0,"d":"$0"},{"$nulls":4},"GENERAL CONDITIONS",{"$nulls":4},0,0,0,0,0,0,0,null,{"v":0,"d":"$0.00"},{"v":0,"d":"$0.00"},{"v":0,"d":"$0.00"}]
[{"$nulls":29},{"v":0,"d":"$0"},null,null,{"v":0,"d":"$0"},null,null,{"v":0,"d":"$0"},null,null,{"v":0,"d":"$0"},{"$nulls":3},{"v":0,"d":"$0"},{"$nulls":4},"GENERAL CONDITIONS",{"$nulls":4},0,0,0,0,0,0,0,null,{"v":0,"d":"$0.00"},{"v":0,"d":"$0.00"},{"v":0,"d":"$0.00"}]
[{"$nulls":29},{"v":0,"d":"$0"},null,null,{"v":0,"d":"$0"},null,null,{"v":0,"d":"$0"},null,null,{"v":0,"d":"$0"},{"$nulls":3},{"v":0,"d":"$0"},{"$nulls":4},"GENERAL CONDITIONS",{"$nulls":4},0,0,0,0,0,0,0,null,{"v":0,"d":"$0.00"},{"v":0,"d":"$0.00"},{"v":0,"d":"$0.00"}]
[{"$nulls":29},{"v":0,"d":"$0"},null,null,{"v":0,"d":"$0"},null,null,{"v":0,"d":"$0"},null,null,{"v":0,"d":"$0"},{"$nulls":3},{"v":0,"d":"$0"},{"$nulls":4},"GENERAL CONDITIONS",{"$nulls":4},0,0,0,0,{"$f":"SUM(BA115:BC115)","v":0},0,0,null,{"v":0,"d":"$0.00"},{"v":0,"d":"$0.00"},{"v":0,"d":"$0.00"}]
[{"$nulls":29},{"v":0,"d":"$0"},null,null,{"v":0,"d":"$0"},null,null,{"v":0,"d":"$0"},null,null,{"v":0,"d":"$0"},{"$nulls":3},{"v":0,"d":"$0"},{"$nulls":4},"GENERAL CONDITIONS",{"$nulls":4},0,0,0,0,{"$f":"SUM(BA116:BC116)","v":0},0,0,null,{"v":0,"d":"$0.00"},{"v":0,"d":"$0.00"},{"v":0,"d":"$0.00"}]
[{"$nulls":29},{"$f":"((P117*U117)-AM117)","v":{"v":0,"d":"$0"}},null,null,{"v":0,"d":"$0"},null,null,{"$f":"P117*AA117","v":{"v":0,"d":"$0"}},null,null,{"v":0,"d":"$0"},{"$nulls":3},{"$f":"SUM(AD117:AL117)","v":{"v":0,"d":"$0"}},{"$nulls":4},"GENERAL CONDITIONS",{"$nulls":4},{"$f":"AD117","v":0},{"$f":"AG117","v":0},{"$f":"AJ117","v":0},{"$f":"IF(B117=\"x\",1,0)","v":0},{"$f":"SUM(BA117:BC117)","v":0},{"$f":"AQ117","v":0},{"$f":"AM117","v":0},null,{"$f":"AD117","v":{"v":0,"d":"$0.00"}},{"$f":"AM117","v":{"v":0,"d":"$0.00"}},{"$f":"BJ117+BI117","v":{"v":0,"d":"$0.00"}}]
[{"$nulls":29},{"$f":"((P118*U118)-AM118)","v":{"v":0,"d":"$0"}},null,null,{"v":0,"d":"$0"},null,null,{"$f":"P118*AA118","v":{"v":0,"d":"$0"}},null,null,{"v":0,"d":"$0"},{"$nulls":3},{"$f":"SUM(AD118:AL118)","v":{"v":0,"d":"$0"}},{"$nulls":4},"GENERAL CONDITIONS",{"$nulls":4},{"$f":"AD118","v":0},{"$f":"AG118","v":0},{"$f":"AJ118","v":0},{"$f":"IF(B118=\"x\",1,0)","v":0},{"$f":"SUM(BA118:BC118)","v":0},{"$f":"AQ118","v":0},{"$f":"AM118","v":0},null,{"$f":"AD118","v":{"v":0,"d":"$0.00"}},{"$f":"AM118","v":{"v":0,"d":"$0.00"}},{"$f":"BJ118+BI118","v":{"v":0,"d":"$0.00"}}]
[{"$nulls":29},{"$f":"((P119*U119)-AM119)","v":{"v":0,"d":"$0"}},null,null,{"v":0,"d":"$0"},null,null,{"$f":"P119*AA119","v":{"v":0,"d":"$0"}},null,null,{"v":0,"d":"$0"},{"$nulls":3},{"$f":"SUM(AD119:AL119)","v":{"v":0,"d":"$0"}},{"$nulls":4},"GENERAL CONDITIONS",{"$nulls":4},{"$f":"AD119","v":0},{"$f":"AG119","v":0},{"$f":"AJ119","v":0},{"$f":"IF(B119=\"x\",1,0)","v":0},{"$f":"SUM(BA119:BC119)","v":0},{"$f":"AQ119","v":0},{"$f":"AM119","v":0},null,{"$f":"AD119","v":{"v":0,"d":"$0.00"}},{"$f":"AM119","v":{"v":0,"d":"$0.00"}},{"$f":"BJ119+BI119","v":{"v":0,"d":"$0.00"}}]
[{"$nulls":29},{"v":0,"d":"$0"},null,null,{"v":0,"d":"$0"},null,null,{"v":0,"d":"$0"},null,null,{"v":0,"d":"$0"},{"$nulls":3},{"v":0,"d":"$0"},{"$nulls":4},"GENERAL CONDITIONS",{"$nulls":4},0,0,0,0,0,0,0,null,{"v":0,"d":"$0.00"},{"v":0,"d":"$0.00"},{"v":0,"d":"$0.00"}]
[{"$nulls":29},{"v":0,"d":"$0"},null,null,{"v":0,"d":"$0"},null,null,{"v":0,"d":"$0"},null,null,{"v":0,"d":"$0"},{"$nulls":3},{"v":0,"d":"$0"},{"$nulls":4},"GENERAL CONDITIONS",{"$nulls":4},0,0,0,0,{"$f":"SUM(BA121:BC121)","v":0},0,0,null,{"v":0,"d":"$0.00"},{"v":0,"d":"$0.00"},{"v":0,"d":"$0.00"}]
[{"$nulls":29},{"v":0,"d":"$0"},null,null,{"v":0,"d":"$0"},null,null,{"v":0,"d":"$0"},null,null,{"v":0,"d":"$0"},{"$nulls":3},{"v":0,"d":"$0"},{"$nulls":4},"GENERAL CONDITIONS",{"$nulls":4},0,0,0,0,0,0,0,null,{"v":0,"d":"$0.00"},{"v":0,"d":"$0.00"},{"v":0,"d":"$0.00"}]
[{"$nulls":29},{"$f":"((P123*U123)-AM123)","v":{"v":0,"d":"$0"}},null,null,{"v":0,"d":"$0"},null,null,{"$f":"P123*AA123","v":{"v":0,"d":"$0"}},null,null,{"v":0,"d":"$0"},{"$nulls":3},{"$f":"SUM(AD123:AL123)","v":{"v":0,"d":"$0"}},{"$nulls":4},"GENERAL CONDITIONS",{"$nulls":4},{"$f":"AD123","v":0},{"$f":"AG123","v":0},{"$f":"AJ123","v":0},{"$f":"IF(B123=\"x\",1,0)","v":0},0,{"$f":"AQ123","v":0},{"$f":"AM123","v":0},null,{"$f":"AD123","v":{"v":0,"d":"$0.00"}},{"$f":"AM123","v":{"v":0,"d":"$0.00"}},{"$f":"BJ123+BI123","v":{"v":0,"d":"$0.00"}}]
[{"$nulls":29},{"$f":"((P124*U124)-AM124)","v":{"v":0,"d":"$0"}},null,null,{"v":0,"d":"$0"},null,null,{"$f":"P124*AA124","v":{"v":0,"d":"$0"}},null,null,{"v":0,"d":"$0"},{"$nulls":3},{"$f":"SUM(AD124:AL124)","v":{"v":0,"d":"$0"}},{"$nulls":4},"GENERAL CONDITIONS",{"$nulls":4},{"$f":"AD124","v":0},{"$f":"AG124","v":0},{"$f":"AJ124","v":0},{"$f":"IF(B124=\"x\",1,0)","v":0},0,{"$f":"AQ124","v":0},{"$f":"AM124","v":0},null,{"$f":"AD124","v":{"v":0,"d":"$0.00"}},{"$f":"AM124","v":{"v":0,"d":"$0.00"}},{"$f":"BJ124+BI124","v":{"v":0,"d":"$0.00"}}]
[{"$nulls":29},{"$f":"((P125*U125)-AM125)","v":{"v":0,"d":"$0"}},null,null,{"v":0,"d":"$0"},null,null,{"$f":"P125*AA125","v":{"v":0,"d":"$0"}},null,null,{"v":0,"d":"$0"},{"$nulls":3},{"$f":"SUM(AD125:AL125)","v":{"v":0,"d":"$0"}},{"$nulls":4},"GENERAL CONDITIONS",{"$nulls":4},{"$f":"AD125","v":0},{"$f":"AG125","v":0},{"$f":"AJ125","v":0},{"$f":"IF(B125=\"x\",1,0)","v":0},0,{"$f":"AQ125","v":0},{"$f":"AM125","v":0},null,{"$f":"AD125","v":{"v":0,"d":"$0.00"}},{"$f":"AM125","v":{"v":0,"d":"$0.00"}},{"$f":"BJ125+BI125","v":{"v":0,"d":"$0.00"}}]
[{"$nulls":29},{"$f":"((P126*U126)-AM126)","v":{"v":0,"d":"$0"}},null,null,{"v":0,"d":"$0"},null,null,{"$f":"P126*AA126","v":{"v":0,"d":"$0"}},null,null,{"v":0,"d":"$0"},{"$nulls":3},{"$f":"SUM(AD126:AL126)","v":{"v":0,"d":"$0"}},{"$nulls":4},"GENERAL CONDITIONS",{"$nulls":4},{"$f":"AD126","v":0},{"$f":"AG126","v":0},{"$f":"AJ126","v":0},{"$f":"IF(B126=\"x\",1,0)","v":0},0,{"$f":"AQ126","v":0},{"$f":"AM126","v":0},null,{"$f":"AD126","v":{"v":0,"d":"$0.00"}},{"$f":"AM126","v":{"v":0,"d":"$0.00"}},{"$f":"BJ126+BI126","v":{"v":0,"d":"$0.00"}}]
[{"$nulls":29},{"$f":"((P127*U127)-AM127)","v":{"v":0,"d":"$0"}},null,null,{"v":0,"d":"$0"},null,null,{"$f":"P127*AA127","v":{"v":0,"d":"$0"}},null,null,{"v":0,"d":"$0"},{"$nulls":3},{"$f":"SUM(AD127:AL127)","v":{"v":0,"d":"$0"}},{"$nulls":4},"GENERAL CONDITIONS",{"$nulls":4},{"$f":"AD127","v":0},{"$f":"AG127","v":0},{"$f":"AJ127","v":0},{"$f":"IF(B127=\"x\",1,0)","v":0},0,{"$f":"AQ127","v":0},{"$f":"AM127","v":0},null,{"$f":"AD127","v":{"v":0,"d":"$0.00"}},{"$f":"AM127","v":{"v":0,"d":"$0.00"}},{"$f":"BJ127+BI127","v":{"v":0,"d":"$0.00"}}]
[{"$nulls":47},"GENERAL CONDITIONS",{"$nulls":4},{"$f":"BA87","v":{"v":80,"d":"$80"}},{"$f":"BB87","v":{"v":454.75,"d":"$455"}},{"$f":"BC87","v":{"v":0,"d":"$0"}},{"$f":"BD87","v":{"v":0,"d":"$0"}},{"$f":"BE87","v":{"v":534.75,"d":"$535"}}]
[{"$nulls":28},{"$f":"CONCATENATE(D87,\" \",\"TOTAL\")","v":"GENERAL CONDITIONS TOTAL"},{"$f":"SUBTOTAL(9,AD88:AD128)","v":{"v":80,"d":"$80"}},null,null,{"$f":"SUBTOTAL(9,AG88:AG128)","v":{"v":454.75,"d":"$455"}},null,null,{"$f":"SUBTOTAL(9,AJ88:AJ128)","v":{"v":0,"d":"$0"}},null,null,{"$f":"SUBTOTAL(9,AM88:AM128)","v":{"v":0,"d":"$0"}},{"$nulls":3},{"$f":"SUBTOTAL(9,AQ88:AQ128)","v":{"v":534.75,"d":"$535"}},null,null,{"$f":"SUM(AT85:AT120)","v":{"$error":"#REF!"}},null,"GENERAL CONDITIONS",{"$nulls":4},{"$f":"BA87","v":80},{"$f":"BB87","v":454.75},{"$f":"BC87","v":0},{"$f":"BD87","v":0},{"$f":"BE87","v":534.75},{"$f":"SUM(BF87:BF128)","v":1069.5},{"$f":"SUM(BG87:BG128)","v":0},null,{"$f":"SUM(BI88:BI128)","v":80},{"$f":"SUM(BJ88:BJ128)","v":0},{"$f":"SUM(BK88:BK128)","v":80}]
[{"$nulls":47},"GENERAL CONDITIONS",{"$nulls":4},{"$f":"BA87","v":{"v":80,"d":"$80"}},{"$f":"BB87","v":{"v":454.75,"d":"$455"}},{"$f":"BC87","v":{"v":0,"d":"$0"}},{"$f":"BD87","v":{"v":0,"d":"$0"}},{"$f":"BE87","v":{"v":534.75,"d":"$535"}}]
[{"$nulls":52},{"$f":"BA129","v":80},{"$f":"BB129","v":454.75},{"$f":"BC129","v":0},0,534.75,1069.5,0]
["Hidden",null,null,{"$f":"T(N76)","v":"DEMOLITION"},{"$nulls":25},{"$f":"AD174","v":{"v":1600,"d":"$1,600"}},null,null,{"$f":"AG174","v":{"v":0,"d":"$0"}},null,null,{"$f":"AJ174","v":{"v":0,"d":"$0"}},null,null,{"$f":"AM174","v":{"v":0,"d":"$0"}},{"$nulls":3},{"$f":"AQ174","v":{"v":1600,"d":"$1,600"}},null,null,{"$f":"SUM(#REF!)","v":{"$error":"#REF!"}},null,{"$f":"$D$132","v":"DEMOLITION"},{"$nulls":4},{"$f":"SUM(BA133:BA172)","v":1600},{"$f":"SUM(BB133:BB172)","v":0},{"$f":"SUM(BC133:BC172)","v":0},{"$f":"SUM(BD133:BD172)","v":0},{"$f":"SUM(BE133:BE172)","v":1600},{"$f":"AQ132","v":1600},{"$f":"AM132","v":0},null,{"$f":"AD132","v":{"v":1600,"d":"$1,600.00"}},{"$f":"AM132","v":{"v":0,"d":"$0.00"}},{"$f":"BJ132+BI132","v":{"v":1600,"d":"$1,600.00"}}]
[{"$nulls":3},"Demolition",{"$nulls":14},"ls","hrs",{"$nulls":9},{"$f":"((P133*U133)-AM133)","v":{"v":0,"d":"$0"}},null,null,{"$f":"P133*X133*(1+$Y$85)","v":{"v":0,"d":"$0"}},null,null,{"$f":"P133*AA133","v":{"v":0,"d":"$0"}},null,null,{"$f":"IF($B133=\"x\",$P133*$U133,0)","v":{"v":0,"d":"$0"}},{"$nulls":3},{"$f":"SUM(AD133:AL133)","v":{"v":0,"d":"$0"}},null,null,{"$f":"SUM(AD133:AL133)","v":{"v":0,"d":"$0"}},null,"DEMOLITION",{"$nulls":4},{"$f":"AD133","v":0},{"$f":"AG133","v":0},{"$f":"AJ133","v":0},{"$f":"IF(B133=\"x\",1,0)","v":0},{"$f":"SUM(BA133:BC133)","v":0},0,0,null,{"$f":"AD133","v":{"v":0,"d":"$0.00"}},{"$f":"AM133","v":{"v":0,"d":"$0.00"}},{"$f":"BJ133+BI133","v":{"v":0,"d":"$0.00"}}]
[{"$nulls":3},"Demo bid/allowance",{"$nulls":14},"ls","ls",{"$nulls":9},{"v":0,"d":"$0"},null,null,{"$f":"P134*X134*(1+$Y$85)","v":{"v":0,"d":"$0"}},null,null,{"v":0,"d":"$0"},null,null,{"v":0,"d":"$0"},{"$nulls":3},{"v":0,"d":"$0"},null,null,{"v":0,"d":"$0"},null,"DEMOLITION",{"$nulls":4},0,{"$f":"AG134","v":0},{"$f":"AJ134","v":0},0,{"$f":"SUM(BA134:BC134)","v":0},0,0,null,{"$f":"AD134","v":{"v":0,"d":"$0.00"}},{"v":0,"d":"$0.00"},{"$f":"BJ134+BI134","v":{"v":0,"d":"$0.00"}}]
[{"$nulls":3},"Demolition work per hour",{"$nulls":11},80,null,null,"hrs",null,{"v":20,"d":"20.00"},{"$nulls":8},{"v":1600,"d":"$1,600"},null,null,{"v":0,"d":"$0"},null,null,{"v":0,"d":"$0"},null,null,{"v":0,"d":"$0"},{"$nulls":3},{"v":1600,"d":"$1,600"},null,null,{"v":1600,"d":"$1,600"},null,"DEMOLITION",{"$nulls":4},1600,0,0,0,1600,1600,0,null,{"v":1600,"d":"$1,600.00"},{"v":0,"d":"$0.00"},{"v":1600,"d":"$1,600.00"}]
[{"$nulls":3},"Room demolition, typical room",{"$nulls":14},"sf",null,{"v":0.5,"d":"0.50"},{"$nulls":8},{"v":0,"d":"$0"},null,null,{"v":0,"d":"$0"},null,null,{"v":0,"d":"$0"},null,null,{"v":0,"d":"$0"},{"$nulls":3},{"v":0,"d":"$0"},null,null,{"v":0,"d":"$0"},null,"DEMOLITION",{"$nulls":4},0,0,0,0,0,0,0,null,{"v":0,"d":"$0.00"},{"v":0,"d":"$0.00"},{"v":0,"d":"$0.00"}]
[{"$nulls":3},"Room demolition, bathroom",{"$nulls":14},"sf",null,{"v":5,"d":"5.00"},{"$nulls":8},{"v":0,"d":"$0"},null,null,{"v":0,"d":"$0"},null,null,{"v":0,"d":"$0"},null,null,{"v":0,"d":"$0"},{"$nulls":3},{"v":0,"d":"$0"},null,null,{"v":0,"d":"$0"},null,"DEMOLITION",{"$nulls":4},0,0,0,0,0,0,0,null,{"v":0,"d":"$0.00"},{"v":0,"d":"$0.00"},{"v":0,"d":"$0.00"}]
[{"$nulls":3},"Room demolition, kitchen",{"$nulls":14},"sf",null,{"v":4,"d":"4.00"},{"$nulls":8},{"v":0,"d":"$0"},null,null,{"v":0,"d":"$0"},null,null,{"v":0,"d":"$0"},null,null,{"v":0,"d":"$0"},{"$nulls":3},{"v":0,"d":"$0"},null,null,{"v":0,"d":"$0"},null,"DEMOLITION",{"$nulls":4},0,0,0,0,0,0,0,null,{"v":0,"d":"$0.00"},{"v":0,"d":"$0.00"},{"v":0,"d":"$0.00"}]
[{"$nulls":3},"Building demolition, 1-story wood-framed",{"$nulls":14},"sf",null,{"v":4,"d":"4.00"},{"$nulls":8},{"v":0,"d":"$0"},null,null,{"v":0,"d":"$0"},null,null,{"v":0,"d":"$0"},null,null,{"v":0,"d":"$0"},{"$nulls":3},{"v":0,"d":"$0"},null,null,{"v":0,"d":"$0"},null,"DEMOLITION",{"$nulls":4},0,0,0,0,0,0,0,null,{"v":0,"d":"$0.00"},{"v":0,"d":"$0.00"},{"v":0,"d":"$0.00"}]
[{"$nulls":3},"Building demolition, 2-story wood framed",{"$nulls":14},"sf",null,4.25,{"$nulls":8},{"v":0,"d":"$0"},null,null,{"v":0,"d":"$0"},null,null,{"v":0,"d":"$0"},null,null,{"v":0,"d":"$0"},{"$nulls":3},{"v":0,"d":"$0"},null,null,{"v":0,"d":"$0"},null,"DEMOLITION",{"$nulls":4},0,0,0,0,0,0,0,null,{"v":0,"d":"$0.00"},{"v":0,"d":"$0.00"},{"v":0,"d":"$0.00"}]
[{"$nulls":3},"Building demolition, masonry",{"$nulls":14},"sf",null,{"v":5,"d":"5.00"},{"$nulls":8},{"v":0,"d":"$0"},null,null,{"v":0,"d":"$0"},null,null,{"v":0,"d":"$0"},null,null,{"v":0,"d":"$0"},{"$nulls":3},{"v":0,"d":"$0"},null,null,{"v":0,"d":"$0"},null,"DEMOLITION",{"$nulls":4},0,0,0,0,0,0,0,null,{"v":0,"d":"$0.00"},{"v":0,"d":"$0.00"},{"v":0,"d":"$0.00"}]
[{"$nulls":3},"Building demolition, steel/concrete",{"$nulls":14},"sf",null,{"v":6,"d":"6.00"},{"$nulls":8},{"v":0,"d":"$0"},null,null,{"v":0,"d":"$0"},null,null,{"v":0,"d":"$0"},null,null,{"v":0,"d":"$0"},{"$nulls":3},{"v":0,"d":"$0"},null,null,{"v":0,"d":"$0"},null,"DEMOLITION",{"$nulls":4},0,0,0,0,0,0,0,null,{"v":0,"d":"$0.00"},{"v":0,"d":"$0.00"},{"v":0,"d":"$0.00"}]
[{"$nulls":3},"Concrete slab demolition, 4\"-6\"",{"$nulls":16},{"v":4,"d":"4.00"},{"$nulls":8},{"v":0,"d":"$0"},null,null,{"v":0,"d":"$0"},null,null,{"v":0,"d":"$0"},null,null,{"v":0,"d":"$0"},{"$nulls":3},{"v":0,"d":"$0"},null,null,{"v":0,"d":"$0"},null,"DEMOLITION",{"$nulls":4},0,0,0,0,0,0,0,null,{"v":0,"d":"$0.00"},{"v":0,"d":"$0.00"},{"v":0,"d":"$0.00"}]
[{"$nulls":29},{"v":0,"d":"$0"},null,null,{"v":0,"d":"$0"},null,null,{"v":0,"d":"$0"},null,null,{"v":0,"d":"$0"},{"$nulls":3},{"v":0,"d":"$0"},null,null,{"v":0,"d":"$0"},null,"DEMOLITION",{"$nulls":4},0,0,0,0,0,0,0,null,{"v":0,"d":"$0.00"},{"v":0,"d":"$0.00"},{"v":0,"d":"$0.00"}]
[{"$nulls":29},{"v":0,"d":"$0"},null,null,{"v":0,"d":"$0"},null,null,{"v":0,"d":"$0"},null,null,{"v":0,"d":"$0"},{"$nulls":3},{"v":0,"d":"$0"},null,null,{"v":0,"d":"$0"},null,"DEMOLITION",{"$nulls":4},0,0,0,0,0,0,0,null,{"v":0,"d":"$0.00"},{"v":0,"d":"$0.00"},{"v":0,"d":"$0.00"}]
[{"$nulls":3},"Abatement",{"$nulls":14},"ls",{"$nulls":10},{"v":0,"d":"$0"},null,null,{"v":0,"d":"$0"},null,null,{"v":0,"d":"$0"},null,null,{"v":0,"d":"$0"},{"$nulls":3},{"v":0,"d":"$0"},null,null,{"v":0,"d":"$0"},null,"DEMOLITION",{"$nulls":4},0,0,0,0,0,0,0,null,{"v":0,"d":"$0.00"},{"v":0,"d":"$0.00"},{"v":0,"d":"$0.00"}]
[{"$nulls":3},"Asbestos bid/allowance",{"$nulls":14},"ls","ls",{"$nulls":9},{"v":0,"d":"$0"},null,null,{"v":0,"d":"$0"},null,null,{"v":0,"d":"$0"},null,null,{"v":0,"d":"$0"},{"$nulls":3},{"v":0,"d":"$0"},null,null,{"v":0,"d":"$0"},null,"DEMOLITION",{"$nulls":4},0,0,0,0,0,0,0,null,{"v":0,"d":"$0.00"},{"v":0,"d":"$0.00"},{"v":0,"d":"$0.00"}]
[{"$nulls":3},"Asbestos testing",{"$nulls":14},"ea",{"$nulls":7},{"v":225,"d":"225.00"},null,null,{"v":0,"d":"$0"},null,null,{"v":0,"d":"$0"},null,null,{"v":0,"d":"$0"},null,null,{"v":0,"d":"$0"},{"$nulls":3},{"v":0,"d":"$0"},null,null,{"v":0,"d":"$0"},null,"DEMOLITION",{"$nulls":4},0,0,0,0,0,0,0,null,{"v":0,"d":"$0.00"},{"v":0,"d":"$0.00"},{"v":0,"d":"$0.00"}]
[{"$nulls":3},"Asbestos abatement, minimum charge",{"$nulls":14},"ea",{"$nulls":7},{"v":2500,"d":"2500.00"},null,null,{"v":0,"d":"$0"},null,null,{"v":0,"d":"$0"},null,null,{"v":0,"d":"$0"},null,null,{"v":0,"d":"$0"},{"$nulls":3},{"v":0,"d":"$0"},null,null,{"v":0,"d":"$0"},null,"DEMOLITION",{"$nulls":4},0,0,0,0,0,0,0,null,{"v":0,"d":"$0.00"},{"v":0,"d":"$0.00"},{"v":0,"d":"$0.00"}]
[{"$nulls":3},"Mold, minimum charge",{"$nulls":22},{"v":2500,"d":"2500.00"},null,null,{"v":0,"d":"$0"},null,null,{"v":0,"d":"$0"},null,null,{"v":0,"d":"$0"},null,null,{"v":0,"d":"$0"},{"$nulls":3},{"v":0,"d":"$0"},null,null,{"v":0,"d":"$0"},null,"DEMOLITION",{"$nulls":4},0,0,0,0,0,0,0,null,{"v":0,"d":"$0.00"},{"v":0,"d":"$0.00"},{"v":0,"d":"$0.00"}]
[{"$nulls":29},{"$f":"((P151*U151)-AM151)","v":{"v":0,"d":"$0"}},null,null,{"v":0,"d":"$0"},null,null,{"$f":"P151*AA151","v":{"v":0,"d":"$0"}},null,null,{"v":0,"d":"$0"},{"$nulls":3},{"$f":"SUM(AD151:AL151)","v":{"v":0,"d":"$0"}},null,null,{"$f":"SUM(AD151:AL151)","v":{"v":0,"d":"$0"}},null,"DEMOLITION",{"$nulls":4},{"$f":"AD151","v":0},{"$f":"AG151","v":0},{"$f":"AJ151","v":0},{"$f":"IF(B151=\"x\",1,0)","v":0},{"$f":"SUM(BA151:BC151)","v":0},{"$f":"AQ151","v":0},{"$f":"AM151","v":0},null,{"$f":"AD151","v":{"v":0,"d":"$0.00"}},{"$f":"AM151","v":{"v":0,"d":"$0.00"}},{"$f":"BJ151+BI151","v":{"v":0,"d":"$0.00"}}]
[{"$nulls":29},{"v":0,"d":"$0"},null,null,{"v":0,"d":"$0"},null,null,{"v":0,"d":"$0"},null,null,{"v":0,"d":"$0"},{"$nulls":3},{"v":0,"d":"$0"},null,null,{"v":0,"d":"$0"},null,"DEMOLITION",{"$nulls":4},0,0,0,0,0,0,0,null,{"v":0,"d":"$0.00"},{"v":0,"d":"$0.00"},{"v":0,"d":"$0.00"}]
[{"$nulls":29},{"v":0,"d":"$0"},null,null,{"v":0,"d":"$0"},null,null,{"v":0,"d":"$0"},null,null,{"v":0,"d":"$0"},{"$nulls":3},{"v":0,"d":"$0"},null,null,{"v":0,"d":"$0"},null,"DEMOLITION",{"$nulls":4},0,0,0,0,0,0,0,null,{"v":0,"d":"$0.00"},{"v":0,"d":"$0.00"},{"v":0,"d":"$0.00"}]
[{"$nulls":29},{"v":0,"d":"$0"},null,null,{"v":0,"d":"$0"},null,null,{"v":0,"d":"$0"},null,null,{"v":0,"d":"$0"},{"$nulls":3},{"v":0,"d":"$0"},null,null,{"v":0,"d":"$0"},null,"DEMOLITION",{"$nulls":4},0,0,0,0,0,0,0,null,{"v":0,"d":"$0.00"},{"v":0,"d":"$0.00"},{"v":0,"d":"$0.00"}]
[{"$nulls":29},{"v":0,"d":"$0"},null,null,{"v":0,"d":"$0"},null,null,{"v":0,"d":"$0"},null,null,{"v":0,"d":"$0"},{"$nulls":3},{"v":0,"d":"$0"},null,null,{"v":0,"d":"$0"},null,"DEMOLITION",{"$nulls":4},0,0,0,0,0,0,0,null,{"v":0,"d":"$0.00"},{"v":0,"d":"$0.00"},{"v":0,"d":"$0.00"}]
[{"$nulls":29},{"v":0,"d":"$0"},null,null,{"v":0,"d":"$0"},null,null,{"v":0,"d":"$0"},null,null,{"v":0,"d":"$0"},{"$nulls":3},{"v":0,"d":"$0"},null,null,{"v":0,"d":"$0"},null,"DEMOLITION",{"$nulls":4},0,0,0,0,0,0,0,null,{"v":0,"d":"$0.00"},{"v":0,"d":"$0.00"},{"v":0,"d":"$0.00"}]
[{"$nulls":29},{"v":0,"d":"$0"},null,null,{"v":0,"d":"$0"},null,null,{"v":0,"d":"$0"},null,null,{"v":0,"d":"$0"},{"$nulls":3},{"v":0,"d":"$0"},null,null,{"v":0,"d":"$0"},null,"DEMOLITION",{"$nulls":4},0,0,0,0,0,0,0,null,{"v":0,"d":"$0.00"},{"v":0,"d":"$0.00"},{"v":0,"d":"$0.00"}]
[{"$nulls":29},{"v":0,"d":"$0"},null,null,{"v":0,"d":"$0"},null,null,{"v":0,"d":"$0"},null,null,{"v":0,"d":"$0"},{"$nulls":3},{"v":0,"d":"$0"},null,null,{"v":0,"d":"$0"},null,"DEMOLITION",{"$nulls":4},0,0,0,0,0,0,0,null,{"v":0,"d":"$0.00"},{"v":0,"d":"$0.00"},{"v":0,"d":"$0.00"}]
[{"$nulls":29},{"v":0,"d":"$0"},null,null,{"v":0,"d":"$0"},null,null,{"v":0,"d":"$0"},null,null,{"v":0,"d":"$0"},{"$nulls":3},{"v":0,"d":"$0"},null,null,{"v":0,"d":"$0"},null,"DEMOLITION",{"$nulls":4},0,0,0,0,0,0,0,null,{"v":0,"d":"$0.00"},{"v":0,"d":"$0.00"},{"v":0,"d":"$0.00"}]
[{"$nulls":29},{"v":0,"d":"$0"},null,null,{"v":0,"d":"$0"},null,null,{"v":0,"d":"$0"},null,null,{"v":0,"d":"$0"},{"$nulls":3},{"v":0,"d":"$0"},null,null,{"v":0,"d":"$0"},null,"DEMOLITION",{"$nulls":4},0,0,0,0,0,0,0,null,{"v":0,"d":"$0.00"},{"v":0,"d":"$0.00"},{"v":0,"d":"$0.00"}]
[{"$nulls":29},{"$f":"((P161*U161)-AM161)","v":{"v":0,"d":"$0"}},null,null,{"v":0,"d":"$0"},null,null,{"$f":"P161*AA161","v":{"v":0,"d":"$0"}},null,null,{"v":0,"d":"$0"},{"$nulls":3},{"$f":"SUM(AD161:AL161)","v":{"v":0,"d":"$0"}},null,null,{"$f":"SUM(AD161:AL161)","v":{"v":0,"d":"$0"}},null,"DEMOLITION",{"$nulls":4},{"$f":"AD161","v":0},{"$f":"AG161","v":0},{"$f":"AJ161","v":0},{"$f":"IF(B161=\"x\",1,0)","v":0},0,{"$f":"AQ161","v":0},{"$f":"AM161","v":0},null,{"$f":"AD161","v":{"v":0,"d":"$0.00"}},{"$f":"AM161","v":{"v":0,"d":"$0.00"}},{"$f":"BJ161+BI161","v":{"v":0,"d":"$0.00"}}]
[{"$nulls":29},{"v":0,"d":"$0"},null,null,{"v":0,"d":"$0"},null,null,{"v":0,"d":"$0"},null,null,{"v":0,"d":"$0"},{"$nulls":3},{"v":0,"d":"$0"},null,null,{"v":0,"d":"$0"},null,"DEMOLITION",{"$nulls":4},0,0,0,0,0,0,0,null,{"v":0,"d":"$0.00"},{"v":0,"d":"$0.00"},{"v":0,"d":"$0.00"}]
[{"$nulls":29},{"$f":"((P163*U163)-AM163)","v":{"v":0,"d":"$0"}},null,null,{"v":0,"d":"$0"},null,null,{"$f":"P163*AA163","v":{"v":0,"d":"$0"}},null,null,{"v":0,"d":"$0"},{"$nulls":3},{"$f":"SUM(AD163:AL163)","v":{"v":0,"d":"$0"}},null,null,{"$f":"SUM(AD163:AL163)","v":{"v":0,"d":"$0"}},null,"DEMOLITION",{"$nulls":4},{"$f":"AD163","v":0},{"$f":"AG163","v":0},{"$f":"AJ163","v":0},{"$f":"IF(B163=\"x\",1,0)","v":0},0,{"$f":"AQ163","v":0},{"$f":"AM163","v":0},null,{"$f":"AD163","v":{"v":0,"d":"$0.00"}},{"$f":"AM163","v":{"v":0,"d":"$0.00"}},{"$f":"BJ163+BI163","v":{"v":0,"d":"$0.00"}}]
[{"$nulls":29},{"$f":"((P164*U164)-AM164)","v":{"v":0,"d":"$0"}},null,null,{"v":0,"d":"$0"},null,null,{"$f":"P164*AA164","v":{"v":0,"d":"$0"}},null,null,{"v":0,"d":"$0"},{"$nulls":3},{"$f":"SUM(AD164:AL164)","v":{"v":0,"d":"$0"}},null,null,{"$f":"SUM(AD164:AL164)","v":{"v":0,"d":"$0"}},null,"DEMOLITION",{"$nulls":4},{"$f":"AD164","v":0},{"$f":"AG164","v":0},{"$f":"AJ164","v":0},{"$f":"IF(B164=\"x\",1,0)","v":0},0,{"$f":"AQ164","v":0},{"$f":"AM164","v":0},null,{"$f":"AD164","v":{"v":0,"d":"$0.00"}},{"$f":"AM164","v":{"v":0,"d":"$0.00"}},{"$f":"BJ164+BI164","v":{"v":0,"d":"$0.00"}}]
[{"$nulls":29},{"v":0,"d":"$0"},null,null,{"v":0,"d":"$0"},null,null,{"v":0,"d":"$0"},null,null,{"v":0,"d":"$0"},{"$nulls":3},{"v":0,"d":"$0"},null,null,{"v":0,"d":"$0"},null,"DEMOLITION",{"$nulls":4},0,0,0,0,0,0,0,null,{"v":0,"d":"$0.00"},{"v":0,"d":"$0.00"},{"v":0,"d":"$0.00"}]
[{"$nulls":29},{"v":0,"d":"$0"},null,null,{"v":0,"d":"$0"},null,null,{"v":0,"d":"$0"},null,null,{"v":0,"d":"$0"},{"$nulls":3},{"v":0,"d":"$0"},null,null,{"v":0,"d":"$0"},null,"DEMOLITION",{"$nulls":4},0,0,0,0,0,0,0,null,{"v":0,"d":"$0.00"},{"v":0,"d":"$0.00"},{"v":0,"d":"$0.00"}]
[{"$nulls":29},{"v":0,"d":"$0"},null,null,{"v":0,"d":"$0"},null,null,{"v":0,"d":"$0"},null,null,{"v":0,"d":"$0"},{"$nulls":3},{"v":0,"d":"$0"},null,null,{"v":0,"d":"$0"},null,"DEMOLITION",{"$nulls":4},0,0,0,0,0,0,0,null,{"v":0,"d":"$0.00"},{"v":0,"d":"$0.00"},{"v":0,"d":"$0.00"}]
[{"$nulls":29},{"v":0,"d":"$0"},null,null,{"v":0,"d":"$0"},null,null,{"v":0,"d":"$0"},null,null,{"v":0,"d":"$0"},{"$nulls":3},{"v":0,"d":"$0"},null,null,{"v":0,"d":"$0"},null,"DEMOLITION",{"$nulls":4},0,0,0,0,0,0,0,null,{"v":0,"d":"$0.00"},{"v":0,"d":"$0.00"},{"v":0,"d":"$0.00"}]
[{"$nulls":29},{"$f":"((P169*U169)-AM169)","v":{"v":0,"d":"$0"}},null,null,{"v":0,"d":"$0"},null,null,{"$f":"P169*AA169","v":{"v":0,"d":"$0"}},null,null,{"v":0,"d":"$0"},{"$nulls":3},{"$f":"SUM(AD169:AL169)","v":{"v":0,"d":"$0"}},null,null,{"$f":"SUM(AD169:AL169)","v":{"v":0,"d":"$0"}},null,"DEMOLITION",{"$nulls":4},{"$f":"AD169","v":0},{"$f":"AG169","v":0},{"$f":"AJ169","v":0},{"$f":"IF(B169=\"x\",1,0)","v":0},0,{"$f":"AQ169","v":0},{"$f":"AM169","v":0},null,{"$f":"AD169","v":{"v":0,"d":"$0.00"}},{"$f":"AM169","v":{"v":0,"d":"$0.00"}},{"$f":"BJ169+BI169","v":{"v":0,"d":"$0.00"}}]
[{"$nulls":29},{"$f":"((P170*U170)-AM170)","v":{"v":0,"d":"$0"}},null,null,{"v":0,"d":"$0"},null,null,{"$f":"P170*AA170","v":{"v":0,"d":"$0"}},null,null,{"v":0,"d":"$0"},{"$nulls":3},{"$f":"SUM(AD170:AL170)","v":{"v":0,"d":"$0"}},null,null,{"$f":"SUM(AD170:AL170)","v":{"v":0,"d":"$0"}},null,"DEMOLITION",{"$nulls":4},{"$f":"AD170","v":0},{"$f":"AG170","v":0},{"$f":"AJ170","v":0},{"$f":"IF(B170=\"x\",1,0)","v":0},0,{"$f":"AQ170","v":0},{"$f":"AM170","v":0},null,{"$f":"AD170","v":{"v":0,"d":"$0.00"}},{"$f":"AM170","v":{"v":0,"d":"$0.00"}},{"$f":"BJ170+BI170","v":{"v":0,"d":"$0.00"}}]
[{"$nulls":29},{"v":0,"d":"$0"},null,null,{"v":0,"d":"$0"},null,null,{"v":0,"d":"$0"},null,null,{"v":0,"d":"$0"},{"$nulls":3},{"v":0,"d":"$0"},null,null,{"v":0,"d":"$0"},null,"DEMOLITION",{"$nulls":4},0,0,0,0,0,0,0,null,{"v":0,"d":"$0.00"},{"v":0,"d":"$0.00"},{"v":0,"d":"$0.00"}]
[{"$nulls":29},{"v":0,"d":"$0"},null,null,{"v":0,"d":"$0"},null,null,{"v":0,"d":"$0"},null,null,{"v":0,"d":"$0"},{"$nulls":3},{"v":0,"d":"$0"},null,null,{"v":0,"d":"$0"},null,"DEMOLITION",{"$nulls":4},0,0,0,0,0,0,0,null,{"v":0,"d":"$0.00"},{"v":0,"d":"$0.00"},{"v":0,"d":"$0.00"}]
[{"$nulls":47},"DEMOLITION",{"$nulls":4},{"$f":"BA132","v":{"v":1600,"d":"$1,600"}},{"$f":"BB132","v":{"v":0,"d":"$0"}},{"$f":"BC132","v":{"v":0,"d":"$0"}},{"$f":"BD132","v":{"v":0,"d":"$0"}},{"$f":"BE132","v":{"v":1600,"d":"$1,600"}}]
[{"$nulls":28},{"$f":"CONCATENATE(D132,\" \",\"TOTAL\")","v":"DEMOLITION TOTAL"},{"$f":"SUBTOTAL(9,AD133:AD173)","v":{"v":1600,"d":"$1,600"}},null,null,{"$f":"SUBTOTAL(9,AG133:AG173)","v":{"v":0,"d":"$0"}},null,null,{"$f":"SUBTOTAL(9,AJ133:AJ173)","v":{"v":0,"d":"$0"}},null,null,{"$f":"SUBTOTAL(9,AM133:AM173)","v":{"v":0,"d":"$0"}},{"$nulls":3},{"$f":"SUBTOTAL(9,AQ133:AQ173)","v":{"v":1600,"d":"$1,600"}},null,null,{"$f":"SUM(AT130:AT165)","v":{"$error":"#REF!"}},null,"DEMOLITION",{"$nulls":4},{"$f":"BA132","v":1600},{"$f":"BB132","v":0},{"$f":"BC132","v":0},{"$f":"BD132","v":0},{"$f":"BE132","v":1600},{"$f":"SUM(BF132:BF173)","v":3200},{"$f":"SUM(BG132:BG173)","v":0},null,{"$f":"SUM(BI133:BI173)","v":1600},{"$f":"SUM(BJ133:BJ173)","v":0},{"$f":"SUM(BK133:BK173)","v":1600}]
[{"$nulls":47},"DEMOLITION",{"$nulls":4},{"$f":"BA132","v":{"v":1600,"d":"$1,600"}},{"$f":"BB132","v":{"v":0,"d":"$0"}},{"$f":"BC132","v":{"v":0,"d":"$0"}},{"$f":"BD132","v":{"v":0,"d":"$0"}},{"$f":"BE132","v":{"v":1600,"d":"$1,600"}}]
[{"$nulls":47},"DEMOLITION",{"$nulls":4},{"$f":"BA174","v":1600},{"$f":"BB174","v":0},{"$f":"BC174","v":0},0,1600,3200,0]
["Hidden",null,null,{"$f":"T(N77)","v":"STRUCTURAL CONCRETE"},{"$nulls":25},{"$f":"AD219","v":{"v":0,"d":"$0"}},null,null,{"$f":"AG219","v":{"v":0,"d":"$0"}},null,null,{"$f":"AJ219","v":{"v":0,"d":"$0"}},null,null,{"$f":"AM219","v":{"v":0,"d":"$0"}},{"$nulls":3},{"$f":"AQ219","v":{"v":0,"d":"$0"}},null,null,{"$f":"SUM(#REF!)","v":{"$error":"#REF!"}},null,{"$f":"$D$177","v":"STRUCTURAL CONCRETE"},{"$nulls":4},{"$f":"SUM(BA178:BA217)","v":0},{"$f":"SUM(BB178:BB217)","v":0},{"$f":"SUM(BC178:BC217)","v":0},{"$f":"SUM(BD178:BD217)","v":0},{"$f":"SUM(BE178:BE217)","v":0},{"$f":"AQ177","v":0},{"$f":"AM177","v":0},null,{"$f":"AD177","v":{"v":0,"d":"$0.00"}},{"$f":"AM177","v":{"v":0,"d":"$0.00"}},{"$f":"BJ177+BI177","v":{"v":0,"d":"$0.00"}}]
[{"$nulls":3},"Excavation",{"$nulls":25},{"$f":"((P178*U178)-AM178)","v":{"v":0,"d":"$0"}},null,null,{"$f":"P178*X178*(1+$Y$85)","v":{"v":0,"d":"$0"}},null,null,{"$f":"P178*AA178","v":{"v":0,"d":"$0"}},null,null,{"$f":"IF($B178=\"x\",$P178*$U178,0)","v":{"v":0,"d":"$0"}},{"$nulls":3},{"$f":"SUM(AD178:AL178)","v":{"v":0,"d":"$0"}},null,null,{"$f":"SUM(AD178:AL178)","v":{"v":0,"d":"$0"}},null,"STRUCTURAL CONCRETE",{"$nulls":4},{"$f":"AD178","v":0},{"$f":"AG178","v":0},{"$f":"AJ178","v":0},{"$f":"IF(B178=\"x\",1,0)","v":0},{"$f":"SUM(BA178:BC178)","v":0},0,0,null,{"$f":"AD178","v":{"v":0,"d":"$0.00"}},{"$f":"AM178","v":{"v":0,"d":"$0.00"}},{"$f":"BJ178+BI178","v":{"v":0,"d":"$0.00"}}]
[{"$nulls":3},"Excavation bid/allowance",{"$nulls":14},"ls","ls",{"$nulls":9},{"v":0,"d":"$0"},null,null,{"$f":"P179*X179*(1+$Y$85)","v":{"v":0,"d":"$0"}},null,null,{"v":0,"d":"$0"},null,null,{"v":0,"d":"$0"},{"$nulls":3},{"v":0,"d":"$0"},null,null,{"v":0,"d":"$0"},null,"STRUCTURAL CONCRETE",{"$nulls":4},0,{"$f":"AG179","v":0},{"$f":"AJ179","v":0},0,{"$f":"SUM(BA179:BC179)","v":0},0,0,null,{"$f":"AD179","v":{"v":0,"d":"$0.00"}},{"v":0,"d":"$0.00"},{"$f":"BJ179+BI179","v":{"v":0,"d":"$0.00"}}]
[{"$nulls":3},"Footing trenching",{"$nulls":14},"cy","lf",{"v":25,"d":"25.00"},{"$nulls":8},{"v":0,"d":"$0"},null,null,{"v":0,"d":"$0"},null,null,{"v":0,"d":"$0"},null,null,{"v":0,"d":"$0"},{"$nulls":3},{"v":0,"d":"$0"},null,null,{"v":0,"d":"$0"},null,"STRUCTURAL CONCRETE",{"$nulls":4},0,0,0,0,0,0,0,null,{"v":0,"d":"$0.00"},{"v":0,"d":"$0.00"},{"v":0,"d":"$0.00"}]
[{"$nulls":3},"Backfill of trenches ",{"$nulls":14},"cy","lf",{"v":15,"d":"15.00"},{"$nulls":8},{"v":0,"d":"$0"},null,null,{"v":0,"d":"$0"},null,null,{"v":0,"d":"$0"},null,null,{"v":0,"d":"$0"},{"$nulls":3},{"v":0,"d":"$0"},null,null,{"v":0,"d":"$0"},null,"STRUCTURAL CONCRETE",{"$nulls":4},0,0,0,0,0,0,0,null,{"v":0,"d":"$0.00"},{"v":0,"d":"$0.00"},{"v":0,"d":"$0.00"}]
[{"$nulls":29},{"v":0,"d":"$0"},null,null,{"v":0,"d":"$0"},null,null,{"v":0,"d":"$0"},null,null,{"v":0,"d":"$0"},{"$nulls":3},{"v":0,"d":"$0"},null,null,{"v":0,"d":"$0"},null,"STRUCTURAL CONCRETE",{"$nulls":4},0,0,0,0,0,0,0,null,{"v":0,"d":"$0.00"},{"v":0,"d":"$0.00"},{"v":0,"d":"$0.00"}]
[{"$nulls":29},{"v":0,"d":"$0"},null,null,{"v":0,"d":"$0"},null,null,{"v":0,"d":"$0"},null,null,{"v":0,"d":"$0"},{"$nulls":3},{"v":0,"d":"$0"},null,null,{"v":0,"d":"$0"},null,"STRUCTURAL CONCRETE",{"$nulls":4},0,0,0,0,0,0,0,null,{"v":0,"d":"$0.00"},{"v":0,"d":"$0.00"},{"v":0,"d":"$0.00"}]
[{"$nulls":3},"Foundation",{"$nulls":25},{"v":0,"d":"$0"},null,null,{"v":0,"d":"$0"},null,null,{"v":0,"d":"$0"},null,null,{"v":0,"d":"$0"},{"$nulls":3},{"v":0,"d":"$0"},null,null,{"v":0,"d":"$0"},null,"STRUCTURAL CONCRETE",{"$nulls":4},0,0,0,0,0,0,0,null,{"v":0,"d":"$0.00"},{"v":0,"d":"$0.00"},{"v":0,"d":"$0.00"}]
[{"$nulls":3},"Foundation bid/allowance",{"$nulls":14},"ls","ls",{"$nulls":9},{"v":0,"d":"$0"},null,null,{"v":0,"d":"$0"},null,null,{"v":0,"d":"$0"},null,null,{"v":0,"d":"$0"},{"$nulls":3},{"v":0,"d":"$0"},null,null,{"v":0,"d":"$0"},null,"STRUCTURAL CONCRETE",{"$nulls":4},0,0,0,0,0,0,0,null,{"v":0,"d":"$0.00"},{"v":0,"d":"$0.00"},{"v":0,"d":"$0.00"}]
[{"$nulls":3},"Concrete slab on grade, 4\" thick",{"$nulls":14},"sf","ls",{"v":3,"d":"3.00"},null,null,{"v":2.5,"d":"2.50"},null,{"v":2.5,"d":"2.50"},{"$nulls":3},{"v":0,"d":"$0"},null,null,{"v":0,"d":"$0"},null,null,{"v":0,"d":"$0"},null,null,{"v":0,"d":"$0"},{"$nulls":3},{"v":0,"d":"$0"},null,null,{"v":0,"d":"$0"},null,"STRUCTURAL CONCRETE",{"$nulls":4},0,0,0,0,0,0,0,null,{"v":0,"d":"$0.00"},{"v":0,"d":"$0.00"},{"v":0,"d":"$0.00"}]
[{"$nulls":3},"Concrete footing, 12\" wide ",{"$nulls":14},"lf","lf",{"v":25,"d":"25.00"},null,null,{"v":15,"d":"15.00"},null,{"v":10,"d":"10.00"},{"$nulls":3},{"v":0,"d":"$0"},null,null,{"v":0,"d":"$0"},null,null,{"v":0,"d":"$0"},null,null,{"v":0,"d":"$0"},{"$nulls":3},{"v":0,"d":"$0"},null,null,{"v":0,"d":"$0"},null,"STRUCTURAL CONCRETE",{"$nulls":4},0,0,0,0,0,0,0,null,{"v":0,"d":"$0.00"},{"v":0,"d":"$0.00"},{"v":0,"d":"$0.00"}]
[{"$nulls":3},"Stem wall, single story",{"$nulls":14},"lf","lf",{"v":115,"d":"115.00"},null,null,{"v":30,"d":"30.00"},null,{"v":30,"d":"30.00"},{"$nulls":3},{"v":0,"d":"$0"},null,null,{"v":0,"d":"$0"},null,null,{"v":0,"d":"$0"},null,null,{"v":0,"d":"$0"},{"$nulls":3},{"v":0,"d":"$0"},null,null,{"v":0,"d":"$0"},null,"STRUCTURAL CONCRETE",{"$nulls":4},0,0,0,0,0,0,0,null,{"v":0,"d":"$0.00"},{"v":0,"d":"$0.00"},{"v":0,"d":"$0.00"}]
[{"$nulls":29},{"v":0,"d":"$0"},null,null,{"v":0,"d":"$0"},null,null,{"v":0,"d":"$0"},null,null,{"v":0,"d":"$0"},{"$nulls":3},{"v":0,"d":"$0"},null,null,{"v":0,"d":"$0"},null,"STRUCTURAL CONCRETE",{"$nulls":4},0,0,0,0,0,0,0,null,{"v":0,"d":"$0.00"},{"v":0,"d":"$0.00"},{"v":0,"d":"$0.00"}]
[{"$nulls":29},{"v":0,"d":"$0"},null,null,{"v":0,"d":"$0"},null,null,{"v":0,"d":"$0"},null,null,{"v":0,"d":"$0"},{"$nulls":3},{"v":0,"d":"$0"},null,null,{"v":0,"d":"$0"},null,"STRUCTURAL CONCRETE",{"$nulls":4},0,0,0,0,0,0,0,null,{"v":0,"d":"$0.00"},{"v":0,"d":"$0.00"},{"v":0,"d":"$0.00"}]
[{"$nulls":3},"Structural Repairs",{"$nulls":25},{"v":0,"d":"$0"},null,null,{"v":0,"d":"$0"},null,null,{"v":0,"d":"$0"},null,null,{"v":0,"d":"$0"},{"$nulls":3},{"v":0,"d":"$0"},null,null,{"v":0,"d":"$0"},null,"STRUCTURAL CONCRETE",{"$nulls":4},0,0,0,0,0,0,0,null,{"v":0,"d":"$0.00"},{"v":0,"d":"$0.00"},{"v":0,"d":"$0.00"}]
[{"$nulls":3},"Structural Repairs bid/allowance",{"$nulls":14},"ls","ls",{"$nulls":9},{"v":0,"d":"$0"},null,null,{"v":0,"d":"$0"},null,null,{"v":0,"d":"$0"},null,null,{"v":0,"d":"$0"},{"$nulls":3},{"v":0,"d":"$0"},null,null,{"v":0,"d":"$0"},null,"STRUCTURAL CONCRETE",{"$nulls":4},0,0,0,0,0,0,0,null,{"v":0,"d":"$0.00"},{"v":0,"d":"$0.00"},{"v":0,"d":"$0.00"}]
[{"$nulls":3},"Stair mud jacking, case by case",{"$nulls":14},"ea","ls",{"$nulls":6},{"v":500,"d":"500.00"},null,{"v":500,"d":"500.00"},{"v":0,"d":"$0"},null,null,{"v":0,"d":"$0"},null,null,{"v":0,"d":"$0"},null,null,{"v":0,"d":"$0"},{"$nulls":3},{"v":0,"d":"$0"},null,null,{"v":0,"d":"$0"},null,"STRUCTURAL CONCRETE",{"$nulls":4},0,0,0,0,0,0,0,null,{"v":0,"d":"$0.00"},{"v":0,"d":"$0.00"},{"v":0,"d":"$0.00"}]
[{"$nulls":3},"Bowing foundation walls, vertical I-Beams",{"$nulls":14},"ea","ea",{"$nulls":6},{"v":800,"d":"800.00"},null,{"v":500,"d":"500.00"},{"v":0,"d":"$0"},null,null,{"v":0,"d":"$0"},null,null,{"v":0,"d":"$0"},null,null,{"v":0,"d":"$0"},{"$nulls":3},{"v":0,"d":"$0"},null,null,{"v":0,"d":"$0"},null,"STRUCTURAL CONCRETE",{"$nulls":4},0,0,0,0,0,0,0,null,{"v":0,"d":"$0.00"},{"v":0,"d":"$0.00"},{"v":0,"d":"$0.00"}]
[{"$nulls":3},"Settled foundation walls, concrete piers/underpinning",{"$nulls":14},"ea","ea",{"$nulls":6},{"v":1100,"d":"1100.00"},null,{"v":850,"d":"850.00"},{"v":0,"d":"$0"},null,null,{"v":0,"d":"$0"},null,null,{"v":0,"d":"$0"},null,null,{"v":0,"d":"$0"},{"$nulls":3},{"v":0,"d":"$0"},null,null,{"v":0,"d":"$0"},null,"STRUCTURAL CONCRETE",{"$nulls":4},0,0,0,0,0,0,0,null,{"v":0,"d":"$0.00"},{"v":0,"d":"$0.00"},{"v":0,"d":"$0.00"}]
[{"$nulls":3},"Foundation waterproofing & drain tile, single story",{"$nulls":14},"lf",{"$nulls":7},{"v":145,"d":"145.00"},null,null,{"v":0,"d":"$0"},null,null,{"v":0,"d":"$0"},null,null,{"v":0,"d":"$0"},null,null,{"v":0,"d":"$0"},{"$nulls":3},{"v":0,"d":"$0"},null,null,{"v":0,"d":"$0"},null,"STRUCTURAL CONCRETE",{"$nulls":4},0,0,0,0,{"$f":"SUM(BA196:BC196)","v":0},0,0,null,{"v":0,"d":"$0.00"},{"v":0,"d":"$0.00"},{"v":0,"d":"$0.00"}]
[{"$nulls":3},"Epoxy crack injection",{"$nulls":14},"lf",{"$nulls":7},{"v":70,"d":"70.00"},null,null,{"v":0,"d":"$0"},null,null,{"v":0,"d":"$0"},null,null,{"v":0,"d":"$0"},null,null,{"v":0,"d":"$0"},{"$nulls":3},{"v":0,"d":"$0"},null,null,{"v":0,"d":"$0"},null,"STRUCTURAL CONCRETE",{"$nulls":4},0,0,0,0,{"$f":"SUM(BA197:BC197)","v":0},0,0,null,{"v":0,"d":"$0.00"},{"v":0,"d":"$0.00"},{"v":0,"d":"$0.00"}]
[{"$nulls":29},{"$f":"((P198*U198)-AM198)","v":{"v":0,"d":"$0"}},null,null,{"v":0,"d":"$0"},null,null,{"$f":"P198*AA198","v":{"v":0,"d":"$0"}},null,null,{"v":0,"d":"$0"},{"$nulls":3},{"$f":"SUM(AD198:AL198)","v":{"v":0,"d":"$0"}},null,null,{"$f":"SUM(AD198:AL198)","v":{"v":0,"d":"$0"}},null,"STRUCTURAL CONCRETE",{"$nulls":4},{"$f":"AD198","v":0},{"$f":"AG198","v":0},{"$f":"AJ198","v":0},{"$f":"IF(B198=\"x\",1,0)","v":0},{"$f":"SUM(BA198:BC198)","v":0},{"$f":"AQ198","v":0},{"$f":"AM198","v":0},null,{"$f":"AD198","v":{"v":0,"d":"$0.00"}},{"$f":"AM198","v":{"v":0,"d":"$0.00"}},{"$f":"BJ198+BI198","v":{"v":0,"d":"$0.00"}}]
[{"$nulls":29},{"v":0,"d":"$0"},null,null,{"v":0,"d":"$0"},null,null,{"v":0,"d":"$0"},null,null,{"v":0,"d":"$0"},{"$nulls":3},{"v":0,"d":"$0"},null,null,{"v":0,"d":"$0"},null,"STRUCTURAL CONCRETE",{"$nulls":4},0,0,0,0,0,0,0,null,{"v":0,"d":"$0.00"},{"v":0,"d":"$0.00"},{"v":0,"d":"$0.00"}]
[{"$nulls":29},{"v":0,"d":"$0"},null,null,{"v":0,"d":"$0"},null,null,{"v":0,"d":"$0"},null,null,{"v":0,"d":"$0"},{"$nulls":3},{"v":0,"d":"$0"},null,null,{"v":0,"d":"$0"},null,"STRUCTURAL CONCRETE",{"$nulls":4},0,0,0,0,0,0,0,null,{"v":0,"d":"$0.00"},{"v":0,"d":"$0.00"},{"v":0,"d":"$0.00"}]
[{"$nulls":29},{"v":0,"d":"$0"},null,null,{"v":0,"d":"$0"},null,null,{"v":0,"d":"$0"},null,null,{"v":0,"d":"$0"},{"$nulls":3},{"v":0,"d":"$0"},null,null,{"v":0,"d":"$0"},null,"STRUCTURAL CONCRETE",{"$nulls":4},0,0,0,0,0,0,0,null,{"v":0,"d":"$0.00"},{"v":0,"d":"$0.00"},{"v":0,"d":"$0.00"}]
[{"$nulls":29},{"v":0,"d":"$0"},null,null,{"v":0,"d":"$0"},null,null,{"v":0,"d":"$0"},null,null,{"v":0,"d":"$0"},{"$nulls":3},{"v":0,"d":"$0"},null,null,{"v":0,"d":"$0"},null,"STRUCTURAL CONCRETE",{"$nulls":4},0,0,0,0,0,0,0,null,{"v":0,"d":"$0.00"},{"v":0,"d":"$0.00"},{"v":0,"d":"$0.00"}]
[{"$nulls":29},{"v":0,"d":"$0"},null,null,{"v":0,"d":"$0"},null,null,{"v":0,"d":"$0"},null,null,{"v":0,"d":"$0"},{"$nulls":3},{"v":0,"d":"$0"},null,null,{"v":0,"d":"$0"},null,"STRUCTURAL CONCRETE",{"$nulls":4},0,0,0,0,0,0,0,null,{"v":0,"d":"$0.00"},{"v":0,"d":"$0.00"},{"v":0,"d":"$0.00"}]
[{"$nulls":29},{"v":0,"d":"$0"},null,null,{"v":0,"d":"$0"},null,null,{"v":0,"d":"$0"},null,null,{"v":0,"d":"$0"},{"$nulls":3},{"v":0,"d":"$0"},null,null,{"v":0,"d":"$0"},null,"STRUCTURAL CONCRETE",{"$nulls":4},0,0,0,0,0,0,0,null,{"v":0,"d":"$0.00"},{"v":0,"d":"$0.00"},{"v":0,"d":"$0.00"}]
[{"$nulls":29},{"v":0,"d":"$0"},null,null,{"v":0,"d":"$0"},null,null,{"v":0,"d":"$0"},null,null,{"v":0,"d":"$0"},{"$nulls":3},{"v":0,"d":"$0"},null,null,{"v":0,"d":"$0"},null,"STRUCTURAL CONCRETE",{"$nulls":4},0,0,0,0,0,0,0,null,{"v":0,"d":"$0.00"},{"v":0,"d":"$0.00"},{"v":0,"d":"$0.00"}]
[{"$nulls":29},{"v":0,"d":"$0"},null,null,{"v":0,"d":"$0"},null,null,{"v":0,"d":"$0"},null,null,{"v":0,"d":"$0"},{"$nulls":3},{"v":0,"d":"$0"},null,null,{"v":0,"d":"$0"},null,"STRUCTURAL CONCRETE",{"$nulls":4},0,0,0,0,0,0,0,null,{"v":0,"d":"$0.00"},{"v":0,"d":"$0.00"},{"v":0,"d":"$0.00"}]
[{"$nulls":29},{"v":0,"d":"$0"},null,null,{"v":0,"d":"$0"},null,null,{"v":0,"d":"$0"},null,null,{"v":0,"d":"$0"},{"$nulls":3},{"v":0,"d":"$0"},null,null,{"v":0,"d":"$0"},null,"STRUCTURAL CONCRETE",{"$nulls":4},0,0,0,0,0,0,0,null,{"v":0,"d":"$0.00"},{"v":0,"d":"$0.00"},{"v":0,"d":"$0.00"}]
[{"$nulls":29},{"v":0,"d":"$0"},null,null,{"v":0,"d":"$0"},null,null,{"v":0,"d":"$0"},null,null,{"v":0,"d":"$0"},{"$nulls":3},{"v":0,"d":"$0"},null,null,{"v":0,"d":"$0"},null,"STRUCTURAL CONCRETE",{"$nulls":4},0,0,0,0,{"$f":"SUM(BA208:BC208)","v":0},0,0,null,{"v":0,"d":"$0.00"},{"v":0,"d":"$0.00"},{"v":0,"d":"$0.00"}]
[{"$nulls":29},{"v":0,"d":"$0"},null,null,{"v":0,"d":"$0"},null,null,{"v":0,"d":"$0"},null,null,{"v":0,"d":"$0"},{"$nulls":3},{"v":0,"d":"$0"},null,null,{"v":0,"d":"$0"},null,"STRUCTURAL CONCRETE",{"$nulls":4},0,0,0,0,0,0,0,null,{"v":0,"d":"$0.00"},{"v":0,"d":"$0.00"},{"v":0,"d":"$0.00"}]
[{"$nulls":29},{"$f":"((P210*U210)-AM210)","v":{"v":0,"d":"$0"}},null,null,{"v":0,"d":"$0"},null,null,{"$f":"P210*AA210","v":{"v":0,"d":"$0"}},null,null,{"v":0,"d":"$0"},{"$nulls":3},{"$f":"SUM(AD210:AL210)","v":{"v":0,"d":"$0"}},null,null,{"$f":"SUM(AD210:AL210)","v":{"v":0,"d":"$0"}},null,"STRUCTURAL CONCRETE",{"$nulls":4},{"$f":"AD210","v":0},{"$f":"AG210","v":0},{"$f":"AJ210","v":0},{"$f":"IF(B210=\"x\",1,0)","v":0},0,{"$f":"AQ210","v":0},{"$f":"AM210","v":0},null,{"$f":"AD210","v":{"v":0,"d":"$0.00"}},{"$f":"AM210","v":{"v":0,"d":"$0.00"}},{"$f":"BJ210+BI210","v":{"v":0,"d":"$0.00"}}]
[{"$nulls":29},{"$f":"((P211*U211)-AM211)","v":{"v":0,"d":"$0"}},null,null,{"v":0,"d":"$0"},null,null,{"$f":"P211*AA211","v":{"v":0,"d":"$0"}},null,null,{"v":0,"d":"$0"},{"$nulls":3},{"$f":"SUM(AD211:AL211)","v":{"v":0,"d":"$0"}},null,null,{"$f":"SUM(AD211:AL211)","v":{"v":0,"d":"$0"}},null,"STRUCTURAL CONCRETE",{"$nulls":4},{"$f":"AD211","v":0},{"$f":"AG211","v":0},{"$f":"AJ211","v":0},{"$f":"IF(B211=\"x\",1,0)","v":0},0,{"$f":"AQ211","v":0},{"$f":"AM211","v":0},null,{"$f":"AD211","v":{"v":0,"d":"$0.00"}},{"$f":"AM211","v":{"v":0,"d":"$0.00"}},{"$f":"BJ211+BI211","v":{"v":0,"d":"$0.00"}}]
[{"$nulls":29},{"$f":"((P212*U212)-AM212)","v":{"v":0,"d":"$0"}},null,null,{"v":0,"d":"$0"},null,null,{"$f":"P212*AA212","v":{"v":0,"d":"$0"}},null,null,{"v":0,"d":"$0"},{"$nulls":3},{"$f":"SUM(AD212:AL212)","v":{"v":0,"d":"$0"}},null,null,{"$f":"SUM(AD212:AL212)","v":{"v":0,"d":"$0"}},null,"STRUCTURAL CONCRETE",{"$nulls":4},{"$f":"AD212","v":0},{"$f":"AG212","v":0},{"$f":"AJ212","v":0},{"$f":"IF(B212=\"x\",1,0)","v":0},0,{"$f":"AQ212","v":0},{"$f":"AM212","v":0},null,{"$f":"AD212","v":{"v":0,"d":"$0.00"}},{"$f":"AM212","v":{"v":0,"d":"$0.00"}},{"$f":"BJ212+BI212","v":{"v":0,"d":"$0.00"}}]
[{"$nulls":29},{"$f":"((P213*U213)-AM213)","v":{"v":0,"d":"$0"}},null,null,{"v":0,"d":"$0"},null,null,{"$f":"P213*AA213","v":{"v":0,"d":"$0"}},null,null,{"v":0,"d":"$0"},{"$nulls":3},{"$f":"SUM(AD213:AL213)","v":{"v":0,"d":"$0"}},null,null,{"$f":"SUM(AD213:AL213)","v":{"v":0,"d":"$0"}},null,"STRUCTURAL CONCRETE",{"$nulls":4},{"$f":"AD213","v":0},{"$f":"AG213","v":0},{"$f":"AJ213","v":0},{"$f":"IF(B213=\"x\",1,0)","v":0},0,{"$f":"AQ213","v":0},{"$f":"AM213","v":0},null,{"$f":"AD213","v":{"v":0,"d":"$0.00"}},{"$f":"AM213","v":{"v":0,"d":"$0.00"}},{"$f":"BJ213+BI213","v":{"v":0,"d":"$0.00"}}]
[{"$nulls":29},{"v":0,"d":"$0"},null,null,{"v":0,"d":"$0"},null,null,{"v":0,"d":"$0"},null,null,{"v":0,"d":"$0"},{"$nulls":3},{"v":0,"d":"$0"},null,null,{"v":0,"d":"$0"},null,"STRUCTURAL CONCRETE",{"$nulls":4},0,0,0,0,0,0,0,null,{"v":0,"d":"$0.00"},{"v":0,"d":"$0.00"},{"v":0,"d":"$0.00"}]
[{"$nulls":29},{"v":0,"d":"$0"},null,null,{"v":0,"d":"$0"},null,null,{"v":0,"d":"$0"},null,null,{"v":0,"d":"$0"},{"$nulls":3},{"v":0,"d":"$0"},null,null,{"v":0,"d":"$0"},null,"STRUCTURAL CONCRETE",{"$nulls":4},0,0,0,0,0,0,0,null,{"v":0,"d":"$0.00"},{"v":0,"d":"$0.00"},{"v":0,"d":"$0.00"}]
[{"$nulls":29},{"$f":"((P216*U216)-AM216)","v":{"v":0,"d":"$0"}},null,null,{"v":0,"d":"$0"},null,null,{"$f":"P216*AA216","v":{"v":0,"d":"$0"}},null,null,{"v":0,"d":"$0"},{"$nulls":3},{"$f":"SUM(AD216:AL216)","v":{"v":0,"d":"$0"}},null,null,{"$f":"SUM(AD216:AL216)","v":{"v":0,"d":"$0"}},null,"STRUCTURAL CONCRETE",{"$nulls":4},{"$f":"AD216","v":0},{"$f":"AG216","v":0},{"$f":"AJ216","v":0},{"$f":"IF(B216=\"x\",1,0)","v":0},0,{"$f":"AQ216","v":0},{"$f":"AM216","v":0},null,{"$f":"AD216","v":{"v":0,"d":"$0.00"}},{"$f":"AM216","v":{"v":0,"d":"$0.00"}},{"$f":"BJ216+BI216","v":{"v":0,"d":"$0.00"}}]
[{"$nulls":29},{"$f":"((P217*U217)-AM217)","v":{"v":0,"d":"$0"}},null,null,{"v":0,"d":"$0"},null,null,{"$f":"P217*AA217","v":{"v":0,"d":"$0"}},null,null,{"v":0,"d":"$0"},{"$nulls":3},{"$f":"SUM(AD217:AL217)","v":{"v":0,"d":"$0"}},null,null,{"$f":"SUM(AD217:AL217)","v":{"v":0,"d":"$0"}},null,"STRUCTURAL CONCRETE",{"$nulls":4},{"$f":"AD217","v":0},{"$f":"AG217","v":0},{"$f":"AJ217","v":0},{"$f":"IF(B217=\"x\",1,0)","v":0},0,{"$f":"AQ217","v":0},{"$f":"AM217","v":0},null,{"$f":"AD217","v":{"v":0,"d":"$0.00"}},{"$f":"AM217","v":{"v":0,"d":"$0.00"}},{"$f":"BJ217+BI217","v":{"v":0,"d":"$0.00"}}]
[{"$nulls":47},"STRUCTURAL CONCRETE",{"$nulls":4},{"$f":"BA177","v":{"v":0,"d":"$0"}},{"$f":"BB177","v":{"v":0,"d":"$0"}},{"$f":"BC177","v":{"v":0,"d":"$0"}},{"$f":"BD177","v":{"v":0,"d":"$0"}},{"$f":"BE177","v":{"v":0,"d":"$0"}}]
[{"$nulls":28},{"$f":"CONCATENATE(D177,\" \",\"TOTAL\")","v":"STRUCTURAL CONCRETE TOTAL"},{"$f":"SUBTOTAL(9,AD178:AD218)","v":{"v":0,"d":"$0"}},null,null,{"$f":"SUBTOTAL(9,AG178:AG218)","v":{"v":0,"d":"$0"}},null,null,{"$f":"SUBTOTAL(9,AJ178:AJ218)","v":{"v":0,"d":"$0"}},null,null,{"$f":"SUBTOTAL(9,AM178:AM218)","v":{"v":0,"d":"$0"}},{"$nulls":3},{"$f":"SUBTOTAL(9,AQ178:AQ218)","v":{"v":0,"d":"$0"}},null,null,{"$f":"SUM(AT175:AT210)","v":{"$error":"#REF!"}},null,"STRUCTURAL CONCRETE",{"$nulls":4},{"$f":"BA177","v":0},{"$f":"BB177","v":0},{"$f":"BC177","v":0},{"$f":"BD177","v":0},{"$f":"BE177","v":0},{"$f":"SUM(BF177:BF218)","v":0},{"$f":"SUM(BG177:BG218)","v":0},null,{"$f":"SUM(BI178:BI218)","v":0},{"$f":"SUM(BJ178:BJ218)","v":0},{"$f":"SUM(BK178:BK218)","v":0}]
[{"$nulls":47},"STRUCTURAL CONCRETE",{"$nulls":4},{"$f":"BA177","v":{"v":0,"d":"$0"}},{"$f":"BB177","v":{"v":0,"d":"$0"}},{"$f":"BC177","v":{"v":0,"d":"$0"}},{"$f":"BD177","v":{"v":0,"d":"$0"}},{"$f":"BE177","v":{"v":0,"d":"$0"}}]
[{"$nulls":47},"STRUCTURAL CONCRETE",{"$nulls":4},{"$f":"BA219","v":0},{"$f":"BB219","v":0},{"$f":"BC219","v":0},0,0,0,0]
["Hidden",null,null,{"$f":"T(N78)","v":"CONCRETE & FLATWORK"},{"$nulls":25},{"$f":"AD264","v":{"v":0,"d":"$0"}},null,null,{"$f":"AG264","v":{"v":0,"d":"$0"}},null,null,{"$f":"AJ264","v":{"v":0,"d":"$0"}},null,null,{"$f":"AM264","v":{"v":0,"d":"$0"}},{"$nulls":3},{"$f":"AQ264","v":{"v":0,"d":"$0"}},null,null,{"$f":"SUM(#REF!)","v":{"$error":"#REF!"}},null,{"$f":"$D$222","v":"CONCRETE & FLATWORK"},{"$nulls":4},{"$f":"SUM(BA223:BA262)","v":0},{"$f":"SUM(BB223:BB262)","v":0},{"$f":"SUM(BC223:BC262)","v":0},{"$f":"SUM(BD223:BD262)","v":0},{"$f":"SUM(BE223:BE262)","v":0},{"$f":"AQ222","v":0},{"$f":"AM222","v":0},null,{"$f":"AD222","v":{"v":0,"d":"$0.00"}},{"$f":"AM222","v":{"v":0,"d":"$0.00"}},{"$f":"BJ222+BI222","v":{"v":0,"d":"$0.00"}}]
[{"$nulls":3},"Concrete",{"$nulls":15},"ls",{"$nulls":9},{"$f":"((P223*U223)-AM223)","v":{"v":0,"d":"$0"}},null,null,{"$f":"P223*X223*(1+$Y$85)","v":{"v":0,"d":"$0"}},null,null,{"$f":"P223*AA223","v":{"v":0,"d":"$0"}},null,null,{"$f":"IF($B223=\"x\",$P223*$U223,0)","v":{"v":0,"d":"$0"}},{"$nulls":3},{"$f":"SUM(AD223:AL223)","v":{"v":0,"d":"$0"}},{"$nulls":4},"CONCRETE & FLATWORK",{"$nulls":4},{"$f":"AD223","v":0},{"$f":"AG223","v":0},{"$f":"AJ223","v":0},{"$f":"IF(B223=\"x\",1,0)","v":0},{"$f":"SUM(BA223:BC223)","v":0},0,0,null,{"$f":"AD223","v":{"v":0,"d":"$0.00"}},{"$f":"AM223","v":{"v":0,"d":"$0.00"}},{"$f":"BJ223+BI223","v":{"v":0,"d":"$0.00"}}]
[{"$nulls":3},"Concrete bid/allowance",{"$nulls":14},"ls","sf",{"$nulls":9},{"v":0,"d":"$0"},null,null,{"$f":"P224*X224*(1+$Y$85)","v":{"v":0,"d":"$0"}},null,null,{"v":0,"d":"$0"},null,null,{"v":0,"d":"$0"},{"$nulls":3},{"v":0,"d":"$0"},{"$nulls":4},"CONCRETE & FLATWORK",{"$nulls":4},0,{"$f":"AG224","v":0},{"$f":"AJ224","v":0},0,{"$f":"SUM(BA224:BC224)","v":0},0,0,null,{"$f":"AD224","v":{"v":0,"d":"$0.00"}},{"v":0,"d":"$0.00"},{"$f":"BJ224+BI224","v":{"v":0,"d":"$0.00"}}]
[{"$nulls":3},"Concrete flatwork demo",{"$nulls":14},"sf","sf",{"v":2,"d":"2.00"},{"$nulls":8},{"v":0,"d":"$0"},null,null,{"v":0,"d":"$0"},null,null,{"v":0,"d":"$0"},null,null,{"v":0,"d":"$0"},{"$nulls":3},{"v":0,"d":"$0"},{"$nulls":4},"CONCRETE & FLATWORK",{"$nulls":4},0,0,0,0,0,0,0,null,{"v":0,"d":"$0.00"},{"v":0,"d":"$0.00"},{"v":0,"d":"$0.00"}]
[{"$nulls":3},"Concrete driveway/patio, 6\" thick",{"$nulls":14},"sf","sf",{"v":3,"d":"3.00"},null,null,{"v":2,"d":"2.00"},null,1.75,{"$nulls":3},{"v":0,"d":"$0"},null,null,{"v":0,"d":"$0"},null,null,{"v":0,"d":"$0"},null,null,{"v":0,"d":"$0"},{"$nulls":3},{"v":0,"d":"$0"},{"$nulls":4},"CONCRETE & FLATWORK",{"$nulls":4},0,0,0,0,0,0,0,null,{"v":0,"d":"$0.00"},{"v":0,"d":"$0.00"},{"v":0,"d":"$0.00"}]
[{"$nulls":3},"Concrete sidewalk, 4\" thick",{"$nulls":14},"sf",null,{"v":3.5,"d":"3.50"},null,null,1.75,{"$nulls":5},{"v":0,"d":"$0"},null,null,{"v":0,"d":"$0"},null,null,{"v":0,"d":"$0"},null,null,{"v":0,"d":"$0"},{"$nulls":3},{"v":0,"d":"$0"},{"$nulls":4},"CONCRETE & FLATWORK",{"$nulls":4},0,0,0,0,0,0,0,null,{"v":0,"d":"$0.00"},{"v":0,"d":"$0.00"},{"v":0,"d":"$0.00"}]
[{"$nulls":3},"Add for 4\" base rock below concrete pavement",{"$nulls":14},"sf",null,0.25,null,null,0.75,{"$nulls":5},{"v":0,"d":"$0"},null,null,{"v":0,"d":"$0"},null,null,{"v":0,"d":"$0"},null,null,{"v":0,"d":"$0"},{"$nulls":3},{"v":0,"d":"$0"},{"$nulls":4},"CONCRETE & FLATWORK",{"$nulls":4},0,0,0,0,0,0,0,null,{"v":0,"d":"$0.00"},{"v":0,"d":"$0.00"},{"v":0,"d":"$0.00"}]
[{"$nulls":29},{"v":0,"d":"$0"},null,null,{"v":0,"d":"$0"},null,null,{"v":0,"d":"$0"},null,null,{"v":0,"d":"$0"},{"$nulls":3},{"v":0,"d":"$0"},{"$nulls":4},"CONCRETE & FLATWORK",{"$nulls":4},0,0,0,0,0,0,0,null,{"v":0,"d":"$0.00"},{"v":0,"d":"$0.00"},{"v":0,"d":"$0.00"}]
[{"$nulls":3},"Asphalt",{"$nulls":25},{"v":0,"d":"$0"},null,null,{"v":0,"d":"$0"},null,null,{"v":0,"d":"$0"},null,null,{"v":0,"d":"$0"},{"$nulls":3},{"v":0,"d":"$0"},{"$nulls":4},"CONCRETE & FLATWORK",{"$nulls":4},0,0,0,0,0,0,0,null,{"v":0,"d":"$0.00"},{"v":0,"d":"$0.00"},{"v":0,"d":"$0.00"}]
[{"$nulls":3},"Asphalt bid/allowance",{"$nulls":14},"ls",{"$nulls":10},{"v":0,"d":"$0"},null,null,{"v":0,"d":"$0"},null,null,{"v":0,"d":"$0"},null,null,{"v":0,"d":"$0"},{"$nulls":3},{"v":0,"d":"$0"},{"$nulls":4},"CONCRETE & FLATWORK",{"$nulls":4},0,0,0,0,0,0,0,null,{"v":0,"d":"$0.00"},{"v":0,"d":"$0.00"},{"v":0,"d":"$0.00"}]
[{"$nulls":3},"Asphalt pavement, 5\" thick",{"$nulls":14},"sy",{"$nulls":7},{"v":25,"d":"25.00"},null,null,{"v":0,"d":"$0"},null,null,{"v":0,"d":"$0"},null,null,{"v":0,"d":"$0"},null,null,{"v":0,"d":"$0"},{"$nulls":3},{"v":0,"d":"$0"},{"$nulls":4},"CONCRETE & FLATWORK",{"$nulls":4},0,0,0,0,0,0,0,null,{"v":0,"d":"$0.00"},{"v":0,"d":"$0.00"},{"v":0,"d":"$0.00"}]
[{"$nulls":3},"Asphalt pavement, 7\" thick",{"$nulls":14},"sy",{"$nulls":7},{"v":30,"d":"30.00"},null,null,{"v":0,"d":"$0"},null,null,{"v":0,"d":"$0"},null,null,{"v":0,"d":"$0"},null,null,{"v":0,"d":"$0"},{"$nulls":3},{"v":0,"d":"$0"},{"$nulls":4},"CONCRETE & FLATWORK",{"$nulls":4},0,0,0,0,0,0,0,null,{"v":0,"d":"$0.00"},{"v":0,"d":"$0.00"},{"v":0,"d":"$0.00"}]
[{"$nulls":3},"Asphalt pavement, wearing course, 1\" thick only",{"$nulls":14},"sy",{"$nulls":7},{"v":15,"d":"15.00"},null,null,{"v":0,"d":"$0"},null,null,{"v":0,"d":"$0"},null,null,{"v":0,"d":"$0"},null,null,{"v":0,"d":"$0"},{"$nulls":3},{"v":0,"d":"$0"},{"$nulls":4},"CONCRETE & FLATWORK",{"$nulls":4},0,0,0,0,0,0,0,null,{"v":0,"d":"$0.00"},{"v":0,"d":"$0.00"},{"v":0,"d":"$0.00"}]
[{"$nulls":3},"Asphalt seal coat",{"$nulls":14},"sy",{"$nulls":7},{"v":3,"d":"3.00"},null,null,{"v":0,"d":"$0"},null,null,{"v":0,"d":"$0"},null,null,{"v":0,"d":"$0"},null,null,{"v":0,"d":"$0"},{"$nulls":3},{"v":0,"d":"$0"},{"$nulls":4},"CONCRETE & FLATWORK",{"$nulls":4},0,0,0,0,0,0,0,null,{"v":0,"d":"$0.00"},{"v":0,"d":"$0.00"},{"v":0,"d":"$0.00"}]
[{"$nulls":3},"Add for 4\" base rock below asphalt pavement",{"$nulls":14},"sy",{"$nulls":7},{"v":9,"d":"9.00"},null,null,{"v":0,"d":"$0"},null,null,{"v":0,"d":"$0"},null,null,{"v":0,"d":"$0"},null,null,{"v":0,"d":"$0"},{"$nulls":3},{"v":0,"d":"$0"},{"$nulls":4},"CONCRETE & FLATWORK",{"$nulls":4},0,0,0,0,0,0,0,null,{"v":0,"d":"$0.00"},{"v":0,"d":"$0.00"},{"v":0,"d":"$0.00"}]
[{"$nulls":29},{"v":0,"d":"$0"},null,null,{"v":0,"d":"$0"},null,null,{"v":0,"d":"$0"},null,null,{"v":0,"d":"$0"},{"$nulls":3},{"v":0,"d":"$0"},{"$nulls":4},"CONCRETE & FLATWORK",{"$nulls":4},0,0,0,0,0,0,0,null,{"v":0,"d":"$0.00"},{"v":0,"d":"$0.00"},{"v":0,"d":"$0.00"}]
[{"$nulls":3},"Pavers",{"$nulls":25},{"v":0,"d":"$0"},null,null,{"v":0,"d":"$0"},null,null,{"v":0,"d":"$0"},null,null,{"v":0,"d":"$0"},{"$nulls":3},{"v":0,"d":"$0"},{"$nulls":4},"CONCRETE & FLATWORK",{"$nulls":4},0,0,0,0,0,0,0,null,{"v":0,"d":"$0.00"},{"v":0,"d":"$0.00"},{"v":0,"d":"$0.00"}]
[{"$nulls":3},"Pavers bid/allowance",{"$nulls":14},"ls",{"$nulls":10},{"v":0,"d":"$0"},null,null,{"v":0,"d":"$0"},null,null,{"v":0,"d":"$0"},null,null,{"v":0,"d":"$0"},{"$nulls":3},{"v":0,"d":"$0"},{"$nulls":4},"CONCRETE & FLATWORK",{"$nulls":4},0,0,0,0,0,0,0,null,{"v":0,"d":"$0.00"},{"v":0,"d":"$0.00"},{"v":0,"d":"$0.00"}]
[{"$nulls":3},"Brick pavers, sand base",{"$nulls":14},"sf",null,{"v":6.5,"d":"6.50"},null,null,{"v":3.5,"d":"3.50"},{"$nulls":5},{"v":0,"d":"$0"},null,null,{"v":0,"d":"$0"},null,null,{"v":0,"d":"$0"},null,null,{"v":0,"d":"$0"},{"$nulls":3},{"v":0,"d":"$0"},{"$nulls":4},"CONCRETE & FLATWORK",{"$nulls":4},0,0,0,0,0,0,0,null,{"v":0,"d":"$0.00"},{"v":0,"d":"$0.00"},{"v":0,"d":"$0.00"}]
[{"$nulls":3},"Brick pavers, mortar base",{"$nulls":14},"sf",null,{"v":9.5,"d":"9.50"},null,null,{"v":6,"d":"6.00"},{"$nulls":5},{"v":0,"d":"$0"},null,null,{"v":0,"d":"$0"},null,null,{"v":0,"d":"$0"},null,null,{"v":0,"d":"$0"},{"$nulls":3},{"v":0,"d":"$0"},{"$nulls":4},"CONCRETE & FLATWORK",{"$nulls":4},0,0,0,0,{"$f":"SUM(BA241:BC241)","v":0},0,0,null,{"v":0,"d":"$0.00"},{"v":0,"d":"$0.00"},{"v":0,"d":"$0.00"}]
[{"$nulls":29},{"$f":"((P242*U242)-AM242)","v":{"v":0,"d":"$0"}},null,null,{"v":0,"d":"$0"},null,null,{"$f":"P242*AA242","v":{"v":0,"d":"$0"}},null,null,{"v":0,"d":"$0"},{"$nulls":3},{"$f":"SUM(AD242:AL242)","v":{"v":0,"d":"$0"}},{"$nulls":4},"CONCRETE & FLATWORK",{"$nulls":4},{"$f":"AD242","v":0},{"$f":"AG242","v":0},{"$f":"AJ242","v":0},{"$f":"IF(B242=\"x\",1,0)","v":0},0,{"$f":"AQ242","v":0},{"$f":"AM242","v":0},null,{"$f":"AD242","v":{"v":0,"d":"$0.00"}},{"$f":"AM242","v":{"v":0,"d":"$0.00"}},{"$f":"BJ242+BI242","v":{"v":0,"d":"$0.00"}}]
[{"$nulls":29},{"v":0,"d":"$0"},null,null,{"v":0,"d":"$0"},null,null,{"v":0,"d":"$0"},null,null,{"v":0,"d":"$0"},{"$nulls":3},{"v":0,"d":"$0"},{"$nulls":4},"CONCRETE & FLATWORK",{"$nulls":4},0,0,0,0,0,0,0,null,{"v":0,"d":"$0.00"},{"v":0,"d":"$0.00"},{"v":0,"d":"$0.00"}]
[{"$nulls":29},{"v":0,"d":"$0"},null,null,{"v":0,"d":"$0"},null,null,{"v":0,"d":"$0"},null,null,{"v":0,"d":"$0"},{"$nulls":3},{"v":0,"d":"$0"},{"$nulls":4},"CONCRETE & FLATWORK",{"$nulls":4},0,0,0,0,0,0,0,null,{"v":0,"d":"$0.00"},{"v":0,"d":"$0.00"},{"v":0,"d":"$0.00"}]
[{"$nulls":29},{"v":0,"d":"$0"},null,null,{"v":0,"d":"$0"},null,null,{"v":0,"d":"$0"},null,null,{"v":0,"d":"$0"},{"$nulls":3},{"v":0,"d":"$0"},{"$nulls":4},"CONCRETE & FLATWORK",{"$nulls":4},0,0,0,0,0,0,0,null,{"v":0,"d":"$0.00"},{"v":0,"d":"$0.00"},{"v":0,"d":"$0.00"}]
[{"$nulls":29},{"v":0,"d":"$0"},null,null,{"v":0,"d":"$0"},null,null,{"v":0,"d":"$0"},null,null,{"v":0,"d":"$0"},{"$nulls":3},{"v":0,"d":"$0"},{"$nulls":4},"CONCRETE & FLATWORK",{"$nulls":4},0,0,0,0,0,0,0,null,{"v":0,"d":"$0.00"},{"v":0,"d":"$0.00"},{"v":0,"d":"$0.00"}]
[{"$nulls":29},{"v":0,"d":"$0"},null,null,{"v":0,"d":"$0"},null,null,{"v":0,"d":"$0"},null,null,{"v":0,"d":"$0"},{"$nulls":3},{"v":0,"d":"$0"},{"$nulls":4},"CONCRETE & FLATWORK",{"$nulls":4},0,0,0,0,0,0,0,null,{"v":0,"d":"$0.00"},{"v":0,"d":"$0.00"},{"v":0,"d":"$0.00"}]
[{"$nulls":29},{"v":0,"d":"$0"},null,null,{"v":0,"d":"$0"},null,null,{"v":0,"d":"$0"},null,null,{"v":0,"d":"$0"},{"$nulls":3},{"v":0,"d":"$0"},{"$nulls":4},"CONCRETE & FLATWORK",{"$nulls":4},0,0,0,0,0,0,0,null,{"v":0,"d":"$0.00"},{"v":0,"d":"$0.00"},{"v":0,"d":"$0.00"}]
[{"$nulls":29},{"v":0,"d":"$0"},null,null,{"v":0,"d":"$0"},null,null,{"v":0,"d":"$0"},null,null,{"v":0,"d":"$0"},{"$nulls":3},{"v":0,"d":"$0"},{"$nulls":4},"CONCRETE & FLATWORK",{"$nulls":4},0,0,0,0,0,0,0,null,{"v":0,"d":"$0.00"},{"v":0,"d":"$0.00"},{"v":0,"d":"$0.00"}]
[{"$nulls":29},{"v":0,"d":"$0"},null,null,{"v":0,"d":"$0"},null,null,{"v":0,"d":"$0"},null,null,{"v":0,"d":"$0"},{"$nulls":3},{"v":0,"d":"$0"},{"$nulls":4},"CONCRETE & FLATWORK",{"$nulls":4},0,0,0,0,0,0,0,null,{"v":0,"d":"$0.00"},{"v":0,"d":"$0.00"},{"v":0,"d":"$0.00"}]
[{"$nulls":29},{"v":0,"d":"$0"},null,null,{"v":0,"d":"$0"},null,null,{"v":0,"d":"$0"},null,null,{"v":0,"d":"$0"},{"$nulls":3},{"v":0,"d":"$0"},{"$nulls":4},"CONCRETE & FLATWORK",{"$nulls":4},0,0,0,0,0,0,0,null,{"v":0,"d":"$0.00"},{"v":0,"d":"$0.00"},{"v":0,"d":"$0.00"}]
[{"$nulls":29},{"v":0,"d":"$0"},null,null,{"v":0,"d":"$0"},null,null,{"v":0,"d":"$0"},null,null,{"v":0,"d":"$0"},{"$nulls":3},{"v":0,"d":"$0"},{"$nulls":4},"CONCRETE & FLATWORK",{"$nulls":4},0,0,0,0,0,0,0,null,{"v":0,"d":"$0.00"},{"v":0,"d":"$0.00"},{"v":0,"d":"$0.00"}]
[{"$nulls":29},{"v":0,"d":"$0"},null,null,{"v":0,"d":"$0"},null,null,{"v":0,"d":"$0"},null,null,{"v":0,"d":"$0"},{"$nulls":3},{"v":0,"d":"$0"},{"$nulls":4},"CONCRETE & FLATWORK",{"$nulls":4},0,0,0,0,0,0,0,null,{"v":0,"d":"$0.00"},{"v":0,"d":"$0.00"},{"v":0,"d":"$0.00"}]
[{"$nulls":29},{"$f":"((P254*U254)-AM254)","v":{"v":0,"d":"$0"}},null,null,{"v":0,"d":"$0"},null,null,{"$f":"P254*AA254","v":{"v":0,"d":"$0"}},null,null,{"v":0,"d":"$0"},{"$nulls":3},{"$f":"SUM(AD254:AL254)","v":{"v":0,"d":"$0"}},{"$nulls":4},"CONCRETE & FLATWORK",{"$nulls":4},{"$f":"AD254","v":0},{"$f":"AG254","v":0},{"$f":"AJ254","v":0},{"$f":"IF(B254=\"x\",1,0)","v":0},0,{"$f":"AQ254","v":0},{"$f":"AM254","v":0},null,{"$f":"AD254","v":{"v":0,"d":"$0.00"}},{"$f":"AM254","v":{"v":0,"d":"$0.00"}},{"$f":"BJ254+BI254","v":{"v":0,"d":"$0.00"}}]
[{"$nulls":29},{"$f":"((P255*U255)-AM255)","v":{"v":0,"d":"$0"}},null,null,{"v":0,"d":"$0"},null,null,{"$f":"P255*AA255","v":{"v":0,"d":"$0"}},null,null,{"v":0,"d":"$0"},{"$nulls":3},{"$f":"SUM(AD255:AL255)","v":{"v":0,"d":"$0"}},{"$nulls":4},"CONCRETE & FLATWORK",{"$nulls":4},{"$f":"AD255","v":0},{"$f":"AG255","v":0},{"$f":"AJ255","v":0},{"$f":"IF(B255=\"x\",1,0)","v":0},0,{"$f":"AQ255","v":0},{"$f":"AM255","v":0},null,{"$f":"AD255","v":{"v":0,"d":"$0.00"}},{"$f":"AM255","v":{"v":0,"d":"$0.00"}},{"$f":"BJ255+BI255","v":{"v":0,"d":"$0.00"}}]
[{"$nulls":29},{"$f":"((P256*U256)-AM256)","v":{"v":0,"d":"$0"}},null,null,{"v":0,"d":"$0"},null,null,{"$f":"P256*AA256","v":{"v":0,"d":"$0"}},null,null,{"v":0,"d":"$0"},{"$nulls":3},{"$f":"SUM(AD256:AL256)","v":{"v":0,"d":"$0"}},{"$nulls":4},"CONCRETE & FLATWORK",{"$nulls":4},{"$f":"AD256","v":0},{"$f":"AG256","v":0},{"$f":"AJ256","v":0},{"$f":"IF(B256=\"x\",1,0)","v":0},0,{"$f":"AQ256","v":0},{"$f":"AM256","v":0},null,{"$f":"AD256","v":{"v":0,"d":"$0.00"}},{"$f":"AM256","v":{"v":0,"d":"$0.00"}},{"$f":"BJ256+BI256","v":{"v":0,"d":"$0.00"}}]
[{"$nulls":29},{"$f":"((P257*U257)-AM257)","v":{"v":0,"d":"$0"}},null,null,{"v":0,"d":"$0"},null,null,{"$f":"P257*AA257","v":{"v":0,"d":"$0"}},null,null,{"v":0,"d":"$0"},{"$nulls":3},{"$f":"SUM(AD257:AL257)","v":{"v":0,"d":"$0"}},{"$nulls":4},"CONCRETE & FLATWORK",{"$nulls":4},{"$f":"AD257","v":0},{"$f":"AG257","v":0},{"$f":"AJ257","v":0},{"$f":"IF(B257=\"x\",1,0)","v":0},0,{"$f":"AQ257","v":0},{"$f":"AM257","v":0},null,{"$f":"AD257","v":{"v":0,"d":"$0.00"}},{"$f":"AM257","v":{"v":0,"d":"$0.00"}},{"$f":"BJ257+BI257","v":{"v":0,"d":"$0.00"}}]
[{"$nulls":29},{"v":0,"d":"$0"},null,null,{"v":0,"d":"$0"},null,null,{"v":0,"d":"$0"},null,null,{"v":0,"d":"$0"},{"$nulls":3},{"v":0,"d":"$0"},{"$nulls":4},"CONCRETE & FLATWORK",{"$nulls":4},0,0,0,0,0,0,0,null,{"v":0,"d":"$0.00"},{"v":0,"d":"$0.00"},{"v":0,"d":"$0.00"}]
[{"$nulls":29},{"v":0,"d":"$0"},null,null,{"v":0,"d":"$0"},null,null,{"v":0,"d":"$0"},null,null,{"v":0,"d":"$0"},{"$nulls":3},{"v":0,"d":"$0"},{"$nulls":4},"CONCRETE & FLATWORK",{"$nulls":4},0,0,0,0,0,0,0,null,{"v":0,"d":"$0.00"},{"v":0,"d":"$0.00"},{"v":0,"d":"$0.00"}]
[{"$nulls":29},{"$f":"((P260*U260)-AM260)","v":{"v":0,"d":"$0"}},null,null,{"v":0,"d":"$0"},null,null,{"$f":"P260*AA260","v":{"v":0,"d":"$0"}},null,null,{"v":0,"d":"$0"},{"$nulls":3},{"$f":"SUM(AD260:AL260)","v":{"v":0,"d":"$0"}},{"$nulls":4},"CONCRETE & FLATWORK",{"$nulls":4},{"$f":"AD260","v":0},{"$f":"AG260","v":0},{"$f":"AJ260","v":0},{"$f":"IF(B260=\"x\",1,0)","v":0},0,{"$f":"AQ260","v":0},{"$f":"AM260","v":0},null,{"$f":"AD260","v":{"v":0,"d":"$0.00"}},{"$f":"AM260","v":{"v":0,"d":"$0.00"}},{"$f":"BJ260+BI260","v":{"v":0,"d":"$0.00"}}]
[{"$nulls":29},{"$f":"((P261*U261)-AM261)","v":{"v":0,"d":"$0"}},null,null,{"v":0,"d":"$0"},null,null,{"$f":"P261*AA261","v":{"v":0,"d":"$0"}},null,null,{"v":0,"d":"$0"},{"$nulls":3},{"$f":"SUM(AD261:AL261)","v":{"v":0,"d":"$0"}},{"$nulls":4},"CONCRETE & FLATWORK",{"$nulls":4},{"$f":"AD261","v":0},{"$f":"AG261","v":0},{"$f":"AJ261","v":0},{"$f":"IF(B261=\"x\",1,0)","v":0},0,{"$f":"AQ261","v":0},{"$f":"AM261","v":0},null,{"$f":"AD261","v":{"v":0,"d":"$0.00"}},{"$f":"AM261","v":{"v":0,"d":"$0.00"}},{"$f":"BJ261+BI261","v":{"v":0,"d":"$0.00"}}]
[{"$nulls":29},{"v":0,"d":"$0"},null,null,{"v":0,"d":"$0"},null,null,{"v":0,"d":"$0"},null,null,{"v":0,"d":"$0"},{"$nulls":3},{"v":0,"d":"$0"},{"$nulls":4},"CONCRETE & FLATWORK",{"$nulls":4},0,0,0,0,0,0,0,null,{"v":0,"d":"$0.00"},{"v":0,"d":"$0.00"},{"v":0,"d":"$0.00"}]
[{"$nulls":47},"CONCRETE & FLATWORK",{"$nulls":4},{"$f":"BA222","v":{"v":0,"d":"$0"}},{"$f":"BB222","v":{"v":0,"d":"$0"}},{"$f":"BC222","v":{"v":0,"d":"$0"}},{"$f":"BD222","v":{"v":0,"d":"$0"}},{"$f":"BE222","v":{"v":0,"d":"$0"}}]
[{"$nulls":28},{"$f":"CONCATENATE(D222,\" \",\"TOTAL\")","v":"CONCRETE & FLATWORK TOTAL"},{"$f":"SUBTOTAL(9,AD223:AD263)","v":{"v":0,"d":"$0"}},null,null,{"$f":"SUBTOTAL(9,AG223:AG263)","v":{"v":0,"d":"$0"}},null,null,{"$f":"SUBTOTAL(9,AJ223:AJ263)","v":{"v":0,"d":"$0"}},null,null,{"$f":"SUBTOTAL(9,AM223:AM263)","v":{"v":0,"d":"$0"}},{"$nulls":3},{"$f":"SUBTOTAL(9,AQ223:AQ263)","v":{"v":0,"d":"$0"}},null,null,{"$f":"SUM(AT220:AT255)","v":{"$error":"#REF!"}},null,"CONCRETE & FLATWORK",{"$nulls":4},{"$f":"BA222","v":0},{"$f":"BB222","v":0},{"$f":"BC222","v":0},{"$f":"BD222","v":0},{"$f":"BE222","v":0},{"$f":"SUM(BF222:BF263)","v":0},{"$f":"SUM(BG222:BG263)","v":0},null,{"$f":"SUM(BI223:BI263)","v":0},{"$f":"SUM(BJ223:BJ263)","v":0},{"$f":"SUM(BK223:BK263)","v":0}]
[{"$nulls":47},"CONCRETE & FLATWORK",{"$nulls":4},{"$f":"BA222","v":{"v":0,"d":"$0"}},{"$f":"BB222","v":{"v":0,"d":"$0"}},{"$f":"BC222","v":{"v":0,"d":"$0"}},{"$f":"BD222","v":{"v":0,"d":"$0"}},{"$f":"BE222","v":{"v":0,"d":"$0"}}]
[{"$nulls":47},"CONCRETE & FLATWORK",{"$nulls":4},{"$f":"BA264","v":0},{"$f":"BB264","v":0},{"$f":"BC264","v":0},0,0,0,0]
["Hidden",null,null,{"$f":"T(N79)","v":"MASONRY"},{"$nulls":25},{"$f":"AD309","v":{"v":0,"d":"$0"}},null,null,{"$f":"AG309","v":{"v":0,"d":"$0"}},null,null,{"$f":"AJ309","v":{"v":0,"d":"$0"}},null,null,{"$f":"AM309","v":{"v":0,"d":"$0"}},{"$nulls":3},{"$f":"AQ309","v":{"v":0,"d":"$0"}},null,null,{"$f":"SUM(#REF!)","v":{"$error":"#REF!"}},null,{"$f":"$D$267","v":"MASONRY"},{"$nulls":4},{"$f":"SUM(BA268:BA307)","v":0},{"$f":"SUM(BB268:BB307)","v":0},{"$f":"SUM(BC268:BC307)","v":0},{"$f":"SUM(BD268:BD307)","v":0},{"$f":"SUM(BE268:BE307)","v":0},{"$f":"AQ267","v":0},{"$f":"AM267","v":0},null,{"$f":"AD267","v":{"v":0,"d":"$0.00"}},{"$f":"AM267","v":{"v":0,"d":"$0.00"}},{"$f":"BJ267+BI267","v":{"v":0,"d":"$0.00"}}]
[{"$nulls":3},"Masonry bid/allowance",{"$nulls":14},"ls","ls",{"$nulls":9},{"$f":"((P268*U268)-AM268)","v":{"v":0,"d":"$0"}},null,null,{"$f":"P268*X268*(1+$Y$85)","v":{"v":0,"d":"$0"}},null,null,{"$f":"P268*AA268","v":{"v":0,"d":"$0"}},null,null,{"$f":"IF($B268=\"x\",$P268*$U268,0)","v":{"v":0,"d":"$0"}},{"$nulls":3},{"$f":"SUM(AD268:AL268)","v":{"v":0,"d":"$0"}},{"$nulls":4},"MASONRY",{"$nulls":4},{"$f":"AD268","v":0},{"$f":"AG268","v":0},{"$f":"AJ268","v":0},{"$f":"IF(B268=\"x\",1,0)","v":0},{"$f":"SUM(BA268:BC268)","v":0},0,0,null,{"$f":"AD268","v":{"v":0,"d":"$0.00"}},{"$f":"AM268","v":{"v":0,"d":"$0.00"}},{"$f":"BJ268+BI268","v":{"v":0,"d":"$0.00"}}]
[{"$nulls":3},"CMU, 4x8",{"$nulls":14},"sf","sf",{"v":4,"d":"4.00"},null,null,2.25,null,{"v":2,"d":"2.00"},{"$nulls":3},{"v":0,"d":"$0"},null,null,{"$f":"P269*X269*(1+$Y$85)","v":{"v":0,"d":"$0"}},null,null,{"v":0,"d":"$0"},null,null,{"v":0,"d":"$0"},{"$nulls":3},{"v":0,"d":"$0"},{"$nulls":4},"MASONRY",{"$nulls":4},0,{"$f":"AG269","v":0},{"$f":"AJ269","v":0},0,{"$f":"SUM(BA269:BC269)","v":0},0,0,null,{"$f":"AD269","v":{"v":0,"d":"$0.00"}},{"v":0,"d":"$0.00"},{"$f":"BJ269+BI269","v":{"v":0,"d":"$0.00"}}]
[{"$nulls":3},"CMU, 8x8",{"$nulls":14},"sf","sf",{"v":4.5,"d":"4.50"},null,null,{"v":2.5,"d":"2.50"},null,{"v":4,"d":"4.00"},{"$nulls":3},{"v":0,"d":"$0"},null,null,{"v":0,"d":"$0"},null,null,{"v":0,"d":"$0"},null,null,{"v":0,"d":"$0"},{"$nulls":3},{"v":0,"d":"$0"},{"$nulls":4},"MASONRY",{"$nulls":4},0,0,0,0,0,0,0,null,{"v":0,"d":"$0.00"},{"v":0,"d":"$0.00"},{"v":0,"d":"$0.00"}]
[{"$nulls":3},"Brick veneer",{"$nulls":14},"sf","sf",{"v":10,"d":"10.00"},null,null,{"v":8,"d":"8.00"},null,{"v":8,"d":"8.00"},{"$nulls":3},{"v":0,"d":"$0"},null,null,{"v":0,"d":"$0"},null,null,{"v":0,"d":"$0"},null,null,{"v":0,"d":"$0"},{"$nulls":3},{"v":0,"d":"$0"},{"$nulls":4},"MASONRY",{"$nulls":4},0,0,0,0,0,0,0,null,{"v":0,"d":"$0.00"},{"v":0,"d":"$0.00"},{"v":0,"d":"$0.00"}]
[{"$nulls":3},"Natural stone",{"$nulls":14},"sf","ls",{"v":17,"d":"17.00"},null,null,{"v":13,"d":"13.00"},null,{"v":2000,"d":"2000.00"},{"$nulls":3},{"v":0,"d":"$0"},null,null,{"v":0,"d":"$0"},null,null,{"v":0,"d":"$0"},null,null,{"v":0,"d":"$0"},{"$nulls":3},{"v":0,"d":"$0"},{"$nulls":4},"MASONRY",{"$nulls":4},0,0,0,0,0,0,0,null,{"v":0,"d":"$0.00"},{"v":0,"d":"$0.00"},{"v":0,"d":"$0.00"}]
[{"$nulls":3},"Masonry waterproofing",{"$nulls":14},"sf","sf",{"v":0.8,"d":"0.80"},null,null,{"v":0.5,"d":"0.50"},null,{"v":0.5,"d":"0.50"},{"$nulls":3},{"v":0,"d":"$0"},null,null,{"v":0,"d":"$0"},null,null,{"v":0,"d":"$0"},null,null,{"v":0,"d":"$0"},{"$nulls":3},{"v":0,"d":"$0"},{"$nulls":4},"MASONRY",{"$nulls":4},0,0,0,0,0,0,0,null,{"v":0,"d":"$0.00"},{"v":0,"d":"$0.00"},{"v":0,"d":"$0.00"}]
[{"$nulls":3},"Tuck-point masonry",{"$nulls":14},"sf","sf",5.75,null,null,{"v":0.5,"d":"0.50"},{"$nulls":5},{"v":0,"d":"$0"},null,null,{"v":0,"d":"$0"},null,null,{"v":0,"d":"$0"},null,null,{"v":0,"d":"$0"},{"$nulls":3},{"v":0,"d":"$0"},{"$nulls":4},"MASONRY",{"$nulls":4},0,0,0,0,0,0,0,null,{"v":0,"d":"$0.00"},{"v":0,"d":"$0.00"},{"v":0,"d":"$0.00"}]
[{"$nulls":3},"Power wash masonry",{"$nulls":14},"sf",null,{"v":0.5,"d":"0.50"},{"$nulls":8},{"v":0,"d":"$0"},null,null,{"v":0,"d":"$0"},null,null,{"v":0,"d":"$0"},null,null,{"v":0,"d":"$0"},{"$nulls":3},{"v":0,"d":"$0"},{"$nulls":4},"MASONRY",{"$nulls":4},0,0,0,0,0,0,0,null,{"v":0,"d":"$0.00"},{"v":0,"d":"$0.00"},{"v":0,"d":"$0.00"}]
[{"$nulls":3},"Chimney, brick ",{"$nulls":14},"vlf",null,{"v":50,"d":"50.00"},null,null,{"v":35,"d":"35.00"},{"$nulls":5},{"v":0,"d":"$0"},null,null,{"v":0,"d":"$0"},null,null,{"v":0,"d":"$0"},null,null,{"v":0,"d":"$0"},{"$nulls":3},{"v":0,"d":"$0"},{"$nulls":4},"MASONRY",{"$nulls":4},0,0,0,0,0,0,0,null,{"v":0,"d":"$0.00"},{"v":0,"d":"$0.00"},{"v":0,"d":"$0.00"}]
[{"$nulls":3},"Chimney, stone",{"$nulls":14},"vlf",null,{"v":70,"d":"70.00"},null,null,{"v":75,"d":"75.00"},{"$nulls":5},{"v":0,"d":"$0"},null,null,{"v":0,"d":"$0"},null,null,{"v":0,"d":"$0"},null,null,{"v":0,"d":"$0"},{"$nulls":3},{"v":0,"d":"$0"},{"$nulls":4},"MASONRY",{"$nulls":4},0,0,0,0,0,0,0,null,{"v":0,"d":"$0.00"},{"v":0,"d":"$0.00"},{"v":0,"d":"$0.00"}]
[{"$nulls":3},"Add to above for chimney cap",{"$nulls":14},"ea",null,{"v":35,"d":"35.00"},null,null,{"v":50,"d":"50.00"},{"$nulls":5},{"v":0,"d":"$0"},null,null,{"v":0,"d":"$0"},null,null,{"v":0,"d":"$0"},null,null,{"v":0,"d":"$0"},{"$nulls":3},{"v":0,"d":"$0"},{"$nulls":4},"MASONRY",{"$nulls":4},0,0,0,0,0,0,0,null,{"v":0,"d":"$0.00"},{"v":0,"d":"$0.00"},{"v":0,"d":"$0.00"}]
[{"$nulls":3},"Fireplace complete, brick, 3ft-4ft wide w/ chimney",{"$nulls":14},"ea",null,{"v":3500,"d":"3500.00"},null,null,{"v":2000,"d":"2000.00"},{"$nulls":5},{"v":0,"d":"$0"},null,null,{"v":0,"d":"$0"},null,null,{"v":0,"d":"$0"},null,null,{"v":0,"d":"$0"},{"$nulls":3},{"v":0,"d":"$0"},{"$nulls":4},"MASONRY",{"$nulls":4},0,0,0,0,0,0,0,null,{"v":0,"d":"$0.00"},{"v":0,"d":"$0.00"},{"v":0,"d":"$0.00"}]
[{"$nulls":29},{"$f":"((P280*U280)-AM280)","v":{"v":0,"d":"$0"}},null,null,{"v":0,"d":"$0"},null,null,{"$f":"P280*AA280","v":{"v":0,"d":"$0"}},null,null,{"v":0,"d":"$0"},{"$nulls":3},{"$f":"SUM(AD280:AL280)","v":{"v":0,"d":"$0"}},{"$nulls":4},"MASONRY",{"$nulls":4},{"$f":"AD280","v":0},{"$f":"AG280","v":0},{"$f":"AJ280","v":0},{"$f":"IF(B280=\"x\",1,0)","v":0},{"$f":"SUM(BA280:BC280)","v":0},{"$f":"AQ280","v":0},{"$f":"AM280","v":0},null,{"$f":"AD280","v":{"v":0,"d":"$0.00"}},{"$f":"AM280","v":{"v":0,"d":"$0.00"}},{"$f":"BJ280+BI280","v":{"v":0,"d":"$0.00"}}]
[{"$nulls":29},{"v":0,"d":"$0"},null,null,{"v":0,"d":"$0"},null,null,{"v":0,"d":"$0"},null,null,{"v":0,"d":"$0"},{"$nulls":3},{"v":0,"d":"$0"},{"$nulls":4},"MASONRY",{"$nulls":4},0,0,0,0,0,0,0,null,{"v":0,"d":"$0.00"},{"v":0,"d":"$0.00"},{"v":0,"d":"$0.00"}]
[{"$nulls":29},{"v":0,"d":"$0"},null,null,{"v":0,"d":"$0"},null,null,{"v":0,"d":"$0"},null,null,{"v":0,"d":"$0"},{"$nulls":3},{"v":0,"d":"$0"},{"$nulls":4},"MASONRY",{"$nulls":4},0,0,0,0,0,0,0,null,{"v":0,"d":"$0.00"},{"v":0,"d":"$0.00"},{"v":0,"d":"$0.00"}]
[{"$nulls":29},{"v":0,"d":"$0"},null,null,{"v":0,"d":"$0"},null,null,{"v":0,"d":"$0"},null,null,{"v":0,"d":"$0"},{"$nulls":3},{"v":0,"d":"$0"},{"$nulls":4},"MASONRY",{"$nulls":4},0,0,0,0,0,0,0,null,{"v":0,"d":"$0.00"},{"v":0,"d":"$0.00"},{"v":0,"d":"$0.00"}]
[{"$nulls":29},{"v":0,"d":"$0"},null,null,{"v":0,"d":"$0"},null,null,{"v":0,"d":"$0"},null,null,{"v":0,"d":"$0"},{"$nulls":3},{"v":0,"d":"$0"},{"$nulls":4},"MASONRY",{"$nulls":4},0,0,0,0,0,0,0,null,{"v":0,"d":"$0.00"},{"v":0,"d":"$0.00"},{"v":0,"d":"$0.00"}]
[{"$nulls":29},{"v":0,"d":"$0"},null,null,{"v":0,"d":"$0"},null,null,{"v":0,"d":"$0"},null,null,{"v":0,"d":"$0"},{"$nulls":3},{"v":0,"d":"$0"},{"$nulls":4},"MASONRY",{"$nulls":4},0,0,0,0,0,0,0,null,{"v":0,"d":"$0.00"},{"v":0,"d":"$0.00"},{"v":0,"d":"$0.00"}]
[{"$nulls":29},{"v":0,"d":"$0"},null,null,{"v":0,"d":"$0"},null,null,{"v":0,"d":"$0"},null,null,{"v":0,"d":"$0"},{"$nulls":3},{"v":0,"d":"$0"},{"$nulls":4},"MASONRY",{"$nulls":4},0,0,0,0,{"$f":"SUM(BA286:BC286)","v":0},0,0,null,{"v":0,"d":"$0.00"},{"v":0,"d":"$0.00"},{"v":0,"d":"$0.00"}]
[{"$nulls":29},{"v":0,"d":"$0"},null,null,{"v":0,"d":"$0"},null,null,{"v":0,"d":"$0"},null,null,{"v":0,"d":"$0"},{"$nulls":3},{"v":0,"d":"$0"},{"$nulls":4},"MASONRY",{"$nulls":4},0,0,0,0,{"$f":"SUM(BA287:BC287)","v":0},0,0,null,{"v":0,"d":"$0.00"},{"v":0,"d":"$0.00"},{"v":0,"d":"$0.00"}]
[{"$nulls":29},{"v":0,"d":"$0"},null,null,{"v":0,"d":"$0"},null,null,{"v":0,"d":"$0"},null,null,{"v":0,"d":"$0"},{"$nulls":3},{"v":0,"d":"$0"},{"$nulls":4},"MASONRY",{"$nulls":4},0,0,0,0,0,0,0,null,{"v":0,"d":"$0.00"},{"v":0,"d":"$0.00"},{"v":0,"d":"$0.00"}]
[{"$nulls":29},{"v":0,"d":"$0"},null,null,{"v":0,"d":"$0"},null,null,{"v":0,"d":"$0"},null,null,{"v":0,"d":"$0"},{"$nulls":3},{"v":0,"d":"$0"},{"$nulls":4},"MASONRY",{"$nulls":4},0,0,0,0,0,0,0,null,{"v":0,"d":"$0.00"},{"v":0,"d":"$0.00"},{"v":0,"d":"$0.00"}]
[{"$nulls":29},{"v":0,"d":"$0"},null,null,{"v":0,"d":"$0"},null,null,{"v":0,"d":"$0"},null,null,{"v":0,"d":"$0"},{"$nulls":3},{"v":0,"d":"$0"},{"$nulls":4},"MASONRY",{"$nulls":4},0,0,0,0,0,0,0,null,{"v":0,"d":"$0.00"},{"v":0,"d":"$0.00"},{"v":0,"d":"$0.00"}]
[{"$nulls":29},{"v":0,"d":"$0"},null,null,{"v":0,"d":"$0"},null,null,{"v":0,"d":"$0"},null,null,{"v":0,"d":"$0"},{"$nulls":3},{"v":0,"d":"$0"},{"$nulls":4},"MASONRY",{"$nulls":4},0,0,0,0,0,0,0,null,{"v":0,"d":"$0.00"},{"v":0,"d":"$0.00"},{"v":0,"d":"$0.00"}]
[{"$nulls":29},{"v":0,"d":"$0"},null,null,{"v":0,"d":"$0"},null,null,{"v":0,"d":"$0"},null,null,{"v":0,"d":"$0"},{"$nulls":3},{"v":0,"d":"$0"},{"$nulls":4},"MASONRY",{"$nulls":4},0,0,0,0,0,0,0,null,{"v":0,"d":"$0.00"},{"v":0,"d":"$0.00"},{"v":0,"d":"$0.00"}]
[{"$nulls":29},{"v":0,"d":"$0"},null,null,{"v":0,"d":"$0"},null,null,{"v":0,"d":"$0"},null,null,{"v":0,"d":"$0"},{"$nulls":3},{"v":0,"d":"$0"},{"$nulls":4},"MASONRY",{"$nulls":4},0,0,0,0,0,0,0,null,{"v":0,"d":"$0.00"},{"v":0,"d":"$0.00"},{"v":0,"d":"$0.00"}]
[{"$nulls":29},{"v":0,"d":"$0"},null,null,{"v":0,"d":"$0"},null,null,{"v":0,"d":"$0"},null,null,{"v":0,"d":"$0"},{"$nulls":3},{"v":0,"d":"$0"},{"$nulls":4},"MASONRY",{"$nulls":4},0,0,0,0,{"$f":"SUM(BA294:BC294)","v":0},0,0,null,{"v":0,"d":"$0.00"},{"v":0,"d":"$0.00"},{"v":0,"d":"$0.00"}]
[{"$nulls":29},{"v":0,"d":"$0"},null,null,{"v":0,"d":"$0"},null,null,{"v":0,"d":"$0"},null,null,{"v":0,"d":"$0"},{"$nulls":3},{"v":0,"d":"$0"},{"$nulls":4},"MASONRY",{"$nulls":4},0,0,0,0,{"$f":"SUM(BA295:BC295)","v":0},0,0,null,{"v":0,"d":"$0.00"},{"v":0,"d":"$0.00"},{"v":0,"d":"$0.00"}]
[{"$nulls":29},{"v":0,"d":"$0"},null,null,{"v":0,"d":"$0"},null,null,{"v":0,"d":"$0"},null,null,{"v":0,"d":"$0"},{"$nulls":3},{"v":0,"d":"$0"},{"$nulls":4},"MASONRY",{"$nulls":4},0,0,0,0,{"$f":"SUM(BA296:BC296)","v":0},0,0,null,{"v":0,"d":"$0.00"},{"v":0,"d":"$0.00"},{"v":0,"d":"$0.00"}]
[{"$nulls":29},{"v":0,"d":"$0"},null,null,{"v":0,"d":"$0"},null,null,{"v":0,"d":"$0"},null,null,{"v":0,"d":"$0"},{"$nulls":3},{"v":0,"d":"$0"},{"$nulls":4},"MASONRY",{"$nulls":4},0,0,0,0,0,0,0,null,{"v":0,"d":"$0.00"},{"v":0,"d":"$0.00"},{"v":0,"d":"$0.00"}]
[{"$nulls":29},{"v":0,"d":"$0"},null,null,{"v":0,"d":"$0"},null,null,{"v":0,"d":"$0"},null,null,{"v":0,"d":"$0"},{"$nulls":3},{"v":0,"d":"$0"},{"$nulls":4},"MASONRY",{"$nulls":4},0,0,0,0,0,0,0,null,{"v":0,"d":"$0.00"},{"v":0,"d":"$0.00"},{"v":0,"d":"$0.00"}]
[{"$nulls":29},{"v":0,"d":"$0"},null,null,{"v":0,"d":"$0"},null,null,{"v":0,"d":"$0"},null,null,{"v":0,"d":"$0"},{"$nulls":3},{"v":0,"d":"$0"},{"$nulls":4},"MASONRY",{"$nulls":4},0,0,0,0,0,0,0,null,{"v":0,"d":"$0.00"},{"v":0,"d":"$0.00"},{"v":0,"d":"$0.00"}]
[{"$nulls":29},{"v":0,"d":"$0"},null,null,{"v":0,"d":"$0"},null,null,{"v":0,"d":"$0"},null,null,{"v":0,"d":"$0"},{"$nulls":3},{"v":0,"d":"$0"},{"$nulls":4},"MASONRY",{"$nulls":4},0,0,0,0,0,0,0,null,{"v":0,"d":"$0.00"},{"v":0,"d":"$0.00"},{"v":0,"d":"$0.00"}]
[{"$nulls":29},{"v":0,"d":"$0"},null,null,{"v":0,"d":"$0"},null,null,{"v":0,"d":"$0"},null,null,{"v":0,"d":"$0"},{"$nulls":3},{"v":0,"d":"$0"},{"$nulls":4},"MASONRY",{"$nulls":4},0,0,0,0,0,0,0,null,{"v":0,"d":"$0.00"},{"v":0,"d":"$0.00"},{"v":0,"d":"$0.00"}]
[{"$nulls":29},{"v":0,"d":"$0"},null,null,{"v":0,"d":"$0"},null,null,{"v":0,"d":"$0"},null,null,{"v":0,"d":"$0"},{"$nulls":3},{"v":0,"d":"$0"},{"$nulls":4},"MASONRY",{"$nulls":4},0,0,0,0,{"$f":"SUM(BA302:BC302)","v":0},0,0,null,{"v":0,"d":"$0.00"},{"v":0,"d":"$0.00"},{"v":0,"d":"$0.00"}]
[{"$nulls":29},{"v":0,"d":"$0"},null,null,{"v":0,"d":"$0"},null,null,{"v":0,"d":"$0"},null,null,{"v":0,"d":"$0"},{"$nulls":3},{"v":0,"d":"$0"},{"$nulls":4},"MASONRY",{"$nulls":4},0,0,0,0,0,0,0,null,{"v":0,"d":"$0.00"},{"v":0,"d":"$0.00"},{"v":0,"d":"$0.00"}]
[{"$nulls":29},{"$f":"((P304*U304)-AM304)","v":{"v":0,"d":"$0"}},null,null,{"v":0,"d":"$0"},null,null,{"$f":"P304*AA304","v":{"v":0,"d":"$0"}},null,null,{"v":0,"d":"$0"},{"$nulls":3},{"$f":"SUM(AD304:AL304)","v":{"v":0,"d":"$0"}},{"$nulls":4},"MASONRY",{"$nulls":4},{"$f":"AD304","v":0},{"$f":"AG304","v":0},{"$f":"AJ304","v":0},{"$f":"IF(B304=\"x\",1,0)","v":0},0,{"$f":"AQ304","v":0},{"$f":"AM304","v":0},null,{"$f":"AD304","v":{"v":0,"d":"$0.00"}},{"$f":"AM304","v":{"v":0,"d":"$0.00"}},{"$f":"BJ304+BI304","v":{"v":0,"d":"$0.00"}}]
[{"$nulls":29},{"$f":"((P305*U305)-AM305)","v":{"v":0,"d":"$0"}},null,null,{"v":0,"d":"$0"},null,null,{"$f":"P305*AA305","v":{"v":0,"d":"$0"}},null,null,{"v":0,"d":"$0"},{"$nulls":3},{"$f":"SUM(AD305:AL305)","v":{"v":0,"d":"$0"}},{"$nulls":4},"MASONRY",{"$nulls":4},{"$f":"AD305","v":0},{"$f":"AG305","v":0},{"$f":"AJ305","v":0},{"$f":"IF(B305=\"x\",1,0)","v":0},0,{"$f":"AQ305","v":0},{"$f":"AM305","v":0},null,{"$f":"AD305","v":{"v":0,"d":"$0.00"}},{"$f":"AM305","v":{"v":0,"d":"$0.00"}},{"$f":"BJ305+BI305","v":{"v":0,"d":"$0.00"}}]
[{"$nulls":29},{"$f":"((P306*U306)-AM306)","v":{"v":0,"d":"$0"}},null,null,{"v":0,"d":"$0"},null,null,{"$f":"P306*AA306","v":{"v":0,"d":"$0"}},null,null,{"v":0,"d":"$0"},{"$nulls":3},{"$f":"SUM(AD306:AL306)","v":{"v":0,"d":"$0"}},{"$nulls":4},"MASONRY",{"$nulls":4},{"$f":"AD306","v":0},{"$f":"AG306","v":0},{"$f":"AJ306","v":0},{"$f":"IF(B306=\"x\",1,0)","v":0},0,{"$f":"AQ306","v":0},{"$f":"AM306","v":0},null,{"$f":"AD306","v":{"v":0,"d":"$0.00"}},{"$f":"AM306","v":{"v":0,"d":"$0.00"}},{"$f":"BJ306+BI306","v":{"v":0,"d":"$0.00"}}]
[{"$nulls":29},{"$f":"((P307*U307)-AM307)","v":{"v":0,"d":"$0"}},null,null,{"v":0,"d":"$0"},null,null,{"$f":"P307*AA307","v":{"v":0,"d":"$0"}},null,null,{"v":0,"d":"$0"},{"$nulls":3},{"$f":"SUM(AD307:AL307)","v":{"v":0,"d":"$0"}},{"$nulls":4},"MASONRY",{"$nulls":4},{"$f":"AD307","v":0},{"$f":"AG307","v":0},{"$f":"AJ307","v":0},{"$f":"IF(B307=\"x\",1,0)","v":0},0,{"$f":"AQ307","v":0},{"$f":"AM307","v":0},null,{"$f":"AD307","v":{"v":0,"d":"$0.00"}},{"$f":"AM307","v":{"v":0,"d":"$0.00"}},{"$f":"BJ307+BI307","v":{"v":0,"d":"$0.00"}}]
[{"$nulls":47},"MASONRY",{"$nulls":4},{"$f":"BA267","v":{"v":0,"d":"$0"}},{"$f":"BB267","v":{"v":0,"d":"$0"}},{"$f":"BC267","v":{"v":0,"d":"$0"}},{"$f":"BD267","v":{"v":0,"d":"$0"}},{"$f":"BE267","v":{"v":0,"d":"$0"}}]
[{"$nulls":28},{"$f":"CONCATENATE(D267,\" \",\"TOTAL\")","v":"MASONRY TOTAL"},{"$f":"SUBTOTAL(9,AD268:AD308)","v":{"v":0,"d":"$0"}},null,null,{"$f":"SUBTOTAL(9,AG268:AG308)","v":{"v":0,"d":"$0"}},null,null,{"$f":"SUBTOTAL(9,AJ268:AJ308)","v":{"v":0,"d":"$0"}},null,null,{"$f":"SUBTOTAL(9,AM268:AM308)","v":{"v":0,"d":"$0"}},{"$nulls":3},{"$f":"SUBTOTAL(9,AQ268:AQ308)","v":{"v":0,"d":"$0"}},null,null,{"$f":"SUM(AT265:AT300)","v":{"$error":"#REF!"}},null,"MASONRY",{"$nulls":4},{"$f":"BA267","v":0},{"$f":"BB267","v":0},{"$f":"BC267","v":0},{"$f":"BD267","v":0},{"$f":"BE267","v":0},{"$f":"SUM(BF267:BF308)","v":0},{"$f":"SUM(BG267:BG308)","v":0},null,{"$f":"SUM(BI268:BI308)","v":0},{"$f":"SUM(BJ268:BJ308)","v":0},{"$f":"SUM(BK268:BK308)","v":0}]
[{"$nulls":47},"MASONRY",{"$nulls":4},{"$f":"BA267","v":{"v":0,"d":"$0"}},{"$f":"BB267","v":{"v":0,"d":"$0"}},{"$f":"BC267","v":{"v":0,"d":"$0"}},{"$f":"BD267","v":{"v":0,"d":"$0"}},{"$f":"BE267","v":{"v":0,"d":"$0"}}]
[{"$nulls":47},"MASONRY",{"$nulls":4},{"$f":"BA309","v":0},{"$f":"BB309","v":0},{"$f":"BC309","v":0},0,0,0,0]
["Hidden",null,null,{"$f":"T(N80)","v":"SIDING"},{"$nulls":25},{"$f":"AD354","v":{"v":0,"d":"$0"}},null,null,{"$f":"AG354","v":{"v":0,"d":"$0"}},null,null,{"$f":"AJ354","v":{"v":0,"d":"$0"}},null,null,{"$f":"AM354","v":{"v":0,"d":"$0"}},{"$nulls":3},{"$f":"AQ354","v":{"v":0,"d":"$0"}},null,null,{"$f":"SUM(#REF!)","v":{"$error":"#REF!"}},null,{"$f":"$D$312","v":"SIDING"},{"$nulls":4},{"$f":"SUM(BA313:BA352)","v":0},{"$f":"SUM(BB313:BB352)","v":0},{"$f":"SUM(BC313:BC352)","v":0},{"$f":"SUM(BD313:BD352)","v":0},{"$f":"SUM(BE313:BE352)","v":0},{"$f":"AQ312","v":0},{"$f":"AM312","v":0},null,{"$f":"AD312","v":{"v":0,"d":"$0.00"}},{"$f":"AM312","v":{"v":0,"d":"$0.00"}},{"$f":"BJ312+BI312","v":{"v":0,"d":"$0.00"}}]
[{"$nulls":3},"Siding bid/allowance",{"$nulls":11},1,null,null,"ls","ls",{"$nulls":9},{"$f":"((P313*U313)-AM313)","v":{"v":0,"d":"$0"}},null,null,{"$f":"P313*X313*(1+$Y$85)","v":{"v":0,"d":"$0"}},null,null,{"$f":"P313*AA313","v":{"v":0,"d":"$0"}},null,null,{"$f":"IF($B313=\"x\",$P313*$U313,0)","v":{"v":0,"d":"$0"}},{"$nulls":3},{"$f":"SUM(AD313:AL313)","v":{"v":0,"d":"$0"}},null,null,{"$f":"SUM(AD313:AL313)","v":{"v":0,"d":"$0"}},null,"SIDING",{"$nulls":4},{"$f":"AD313","v":0},{"$f":"AG313","v":0},{"$f":"AJ313","v":0},{"$f":"IF(B313=\"x\",1,0)","v":0},{"$f":"SUM(BA313:BC313)","v":0},0,0,null,{"$f":"AD313","v":{"v":0,"d":"$0.00"}},{"$f":"AM313","v":{"v":0,"d":"$0.00"}},{"$f":"BJ313+BI313","v":{"v":0,"d":"$0.00"}}]
[{"$nulls":3},"Demo existing siding",{"$nulls":14},"sf","sf",0.75,{"$nulls":8},{"v":0,"d":"$0"},null,null,{"$f":"P314*X314*(1+$Y$85)","v":{"v":0,"d":"$0"}},null,null,{"v":0,"d":"$0"},null,null,{"v":0,"d":"$0"},{"$nulls":3},{"v":0,"d":"$0"},null,null,{"v":0,"d":"$0"},null,"SIDING",{"$nulls":4},0,{"$f":"AG314","v":0},{"$f":"AJ314","v":0},0,{"$f":"SUM(BA314:BC314)","v":0},0,0,null,{"$f":"AD314","v":{"v":0,"d":"$0.00"}},{"v":0,"d":"$0.00"},{"$f":"BJ314+BI314","v":{"v":0,"d":"$0.00"}}]
[{"$nulls":3},"Plywood panel, douglas fir",{"$nulls":14},"sf","sf",1.15,null,null,1.25,null,1.25,{"$nulls":3},{"v":0,"d":"$0"},null,null,{"v":0,"d":"$0"},null,null,{"v":0,"d":"$0"},null,null,{"v":0,"d":"$0"},{"$nulls":3},{"v":0,"d":"$0"},null,null,{"v":0,"d":"$0"},null,"SIDING",{"$nulls":4},0,0,0,0,0,0,0,null,{"v":0,"d":"$0.00"},{"v":0,"d":"$0.00"},{"v":0,"d":"$0.00"}]
[{"$nulls":3},"Plywood panel, cedar",{"$nulls":14},"sf","sf",{"v":1.2,"d":"1.20"},null,null,2.75,null,{"v":1,"d":"1.00"},{"$nulls":3},{"v":0,"d":"$0"},null,null,{"v":0,"d":"$0"},null,null,{"v":0,"d":"$0"},null,null,{"v":0,"d":"$0"},{"$nulls":3},{"v":0,"d":"$0"},null,null,{"v":0,"d":"$0"},null,"SIDING",{"$nulls":4},0,0,0,0,0,0,0,null,{"v":0,"d":"$0.00"},{"v":0,"d":"$0.00"},{"v":0,"d":"$0.00"}]
[{"$nulls":3},"Tongue and groove, douglas fir",{"$nulls":14},"sf","sf",1.25,null,null,{"v":2.5,"d":"2.50"},null,{"v":1.5,"d":"1.50"},{"$nulls":3},{"v":0,"d":"$0"},null,null,{"v":0,"d":"$0"},null,null,{"v":0,"d":"$0"},null,null,{"v":0,"d":"$0"},{"$nulls":3},{"v":0,"d":"$0"},null,null,{"v":0,"d":"$0"},null,"SIDING",{"$nulls":4},0,0,0,0,0,0,0,null,{"v":0,"d":"$0.00"},{"v":0,"d":"$0.00"},{"v":0,"d":"$0.00"}]
[{"$nulls":3},"Tongue and groove, cedar",{"$nulls":14},"sf","sf",1.75,null,null,{"v":4,"d":"4.00"},null,{"v":1,"d":"1.00"},{"$nulls":3},{"v":0,"d":"$0"},null,null,{"v":0,"d":"$0"},null,null,{"v":0,"d":"$0"},null,null,{"v":0,"d":"$0"},{"$nulls":3},{"v":0,"d":"$0"},null,null,{"v":0,"d":"$0"},null,"SIDING",{"$nulls":4},0,0,0,0,0,0,0,null,{"v":0,"d":"$0.00"},{"v":0,"d":"$0.00"},{"v":0,"d":"$0.00"}]
[{"$nulls":3},"Board and batten, douglas fir",{"$nulls":14},"sf","sf",2.25,null,null,{"v":1,"d":"1.00"},null,{"v":1.5,"d":"1.50"},{"$nulls":3},{"v":0,"d":"$0"},null,null,{"v":0,"d":"$0"},null,null,{"v":0,"d":"$0"},null,null,{"v":0,"d":"$0"},{"$nulls":3},{"v":0,"d":"$0"},null,null,{"v":0,"d":"$0"},null,"SIDING",{"$nulls":4},0,0,0,0,0,0,0,null,{"v":0,"d":"$0.00"},{"v":0,"d":"$0.00"},{"v":0,"d":"$0.00"}]
[{"$nulls":3},"Board and batten, cedar",{"$nulls":14},"sf",null,{"v":2.5,"d":"2.50"},null,null,{"v":1,"d":"1.00"},{"$nulls":5},{"v":0,"d":"$0"},null,null,{"v":0,"d":"$0"},null,null,{"v":0,"d":"$0"},null,null,{"v":0,"d":"$0"},{"$nulls":3},{"v":0,"d":"$0"},null,null,{"v":0,"d":"$0"},null,"SIDING",{"$nulls":4},0,0,0,0,0,0,0,null,{"v":0,"d":"$0.00"},{"v":0,"d":"$0.00"},{"v":0,"d":"$0.00"}]
[{"$nulls":3},"Wood shingle/shake",{"$nulls":14},"sf",null,2.75,null,null,1.75,{"$nulls":5},{"v":0,"d":"$0"},null,null,{"v":0,"d":"$0"},null,null,{"v":0,"d":"$0"},null,null,{"v":0,"d":"$0"},{"$nulls":3},{"v":0,"d":"$0"},null,null,{"v":0,"d":"$0"},null,"SIDING",{"$nulls":4},0,0,0,0,0,0,0,null,{"v":0,"d":"$0.00"},{"v":0,"d":"$0.00"},{"v":0,"d":"$0.00"}]
[{"$nulls":3},"Fiber cement siding, 4x8 panels",{"$nulls":14},"sf",null,0.85,null,null,{"v":1,"d":"1.00"},{"$nulls":5},{"v":0,"d":"$0"},null,null,{"v":0,"d":"$0"},null,null,{"v":0,"d":"$0"},null,null,{"v":0,"d":"$0"},{"$nulls":3},{"v":0,"d":"$0"},null,null,{"v":0,"d":"$0"},null,"SIDING",{"$nulls":4},0,0,0,0,0,0,0,null,{"v":0,"d":"$0.00"},{"v":0,"d":"$0.00"},{"v":0,"d":"$0.00"}]
[{"$nulls":3},"Fiber cement siding, lap",{"$nulls":14},"sf",null,{"v":1.5,"d":"1.50"},null,null,{"v":1.2,"d":"1.20"},{"$nulls":5},{"v":0,"d":"$0"},null,null,{"v":0,"d":"$0"},null,null,{"v":0,"d":"$0"},null,null,{"v":0,"d":"$0"},{"$nulls":3},{"v":0,"d":"$0"},null,null,{"v":0,"d":"$0"},null,"SIDING",{"$nulls":4},0,0,0,0,0,0,0,null,{"v":0,"d":"$0.00"},{"v":0,"d":"$0.00"},{"v":0,"d":"$0.00"}]
[{"$nulls":3},"Vinyl siding, non-insulated",{"$nulls":14},"sf",null,{"v":1.5,"d":"1.50"},null,null,{"v":1.3,"d":"1.30"},{"$nulls":5},{"v":0,"d":"$0"},null,null,{"v":0,"d":"$0"},null,null,{"v":0,"d":"$0"},null,null,{"v":0,"d":"$0"},{"$nulls":3},{"v":0,"d":"$0"},null,null,{"v":0,"d":"$0"},null,"SIDING",{"$nulls":4},0,0,0,0,0,0,0,null,{"v":0,"d":"$0.00"},{"v":0,"d":"$0.00"},{"v":0,"d":"$0.00"}]
[{"$nulls":3},"Vinyl siding, insulated",{"$nulls":14},"sf",null,{"v":3,"d":"3.00"},null,null,1.75,{"$nulls":5},{"v":0,"d":"$0"},null,null,{"v":0,"d":"$0"},null,null,{"v":0,"d":"$0"},null,null,{"v":0,"d":"$0"},{"$nulls":3},{"v":0,"d":"$0"},null,null,{"v":0,"d":"$0"},null,"SIDING",{"$nulls":4},0,0,0,0,0,0,0,null,{"v":0,"d":"$0.00"},{"v":0,"d":"$0.00"},{"v":0,"d":"$0.00"}]
[{"$nulls":3},"Trim, 1\"x3\", pine",{"$nulls":14},"lf",null,1.25,null,null,{"v":0.4,"d":"0.40"},{"$nulls":5},{"v":0,"d":"$0"},null,null,{"v":0,"d":"$0"},null,null,{"v":0,"d":"$0"},null,null,{"v":0,"d":"$0"},{"$nulls":3},{"v":0,"d":"$0"},null,null,{"v":0,"d":"$0"},null,"SIDING",{"$nulls":4},0,0,0,0,0,0,0,null,{"v":0,"d":"$0.00"},{"v":0,"d":"$0.00"},{"v":0,"d":"$0.00"}]
[{"$nulls":3},"Trim, 1\"x4\", pine",{"$nulls":14},"lf",null,{"v":1.5,"d":"1.50"},null,null,{"v":0.9,"d":"0.90"},{"$nulls":5},{"v":0,"d":"$0"},null,null,{"v":0,"d":"$0"},null,null,{"v":0,"d":"$0"},null,null,{"v":0,"d":"$0"},{"$nulls":3},{"v":0,"d":"$0"},null,null,{"v":0,"d":"$0"},null,"SIDING",{"$nulls":4},0,0,0,0,0,0,0,null,{"v":0,"d":"$0.00"},{"v":0,"d":"$0.00"},{"v":0,"d":"$0.00"}]
[{"$nulls":3},"Trim, 1\"x6\", pine",{"$nulls":14},"lf",null,{"v":1.5,"d":"1.50"},null,null,{"v":1.3,"d":"1.30"},{"$nulls":5},{"v":0,"d":"$0"},null,null,{"v":0,"d":"$0"},null,null,{"v":0,"d":"$0"},null,null,{"v":0,"d":"$0"},{"$nulls":3},{"v":0,"d":"$0"},null,null,{"v":0,"d":"$0"},null,"SIDING",{"$nulls":4},0,0,0,0,0,0,0,null,{"v":0,"d":"$0.00"},{"v":0,"d":"$0.00"},{"v":0,"d":"$0.00"}]
[{"$nulls":3},"Siding patch, window/door, siding, insulation",{"$nulls":14},"ea",null,{"v":125,"d":"125.00"},null,null,{"v":75,"d":"75.00"},{"$nulls":5},{"v":0,"d":"$0"},null,null,{"v":0,"d":"$0"},null,null,{"v":0,"d":"$0"},null,null,{"v":0,"d":"$0"},{"$nulls":3},{"v":0,"d":"$0"},null,null,{"v":0,"d":"$0"},null,"SIDING",{"$nulls":4},0,0,0,0,0,0,0,null,{"v":0,"d":"$0.00"},{"v":0,"d":"$0.00"},{"v":0,"d":"$0.00"}]
[{"$nulls":3},"Stucco",{"$nulls":14},"sf",null,7.25,null,null,{"v":3,"d":"3.00"},{"$nulls":5},{"v":0,"d":"$0"},null,null,{"v":0,"d":"$0"},null,null,{"v":0,"d":"$0"},null,null,{"v":0,"d":"$0"},{"$nulls":3},{"v":0,"d":"$0"},null,null,{"v":0,"d":"$0"},null,"SIDING",{"$nulls":4},0,0,0,0,0,0,0,null,{"v":0,"d":"$0.00"},{"v":0,"d":"$0.00"},{"v":0,"d":"$0.00"}]
[{"$nulls":29},{"v":0,"d":"$0"},null,null,{"v":0,"d":"$0"},null,null,{"v":0,"d":"$0"},null,null,{"v":0,"d":"$0"},{"$nulls":3},{"v":0,"d":"$0"},null,null,{"v":0,"d":"$0"},null,"SIDING",{"$nulls":4},0,0,0,0,{"$f":"SUM(BA331:BC331)","v":0},0,0,null,{"v":0,"d":"$0.00"},{"v":0,"d":"$0.00"},{"v":0,"d":"$0.00"}]
[{"$nulls":29},{"v":0,"d":"$0"},null,null,{"v":0,"d":"$0"},null,null,{"v":0,"d":"$0"},null,null,{"v":0,"d":"$0"},{"$nulls":3},{"v":0,"d":"$0"},null,null,{"v":0,"d":"$0"},null,"SIDING",{"$nulls":4},0,0,0,0,0,0,0,null,{"v":0,"d":"$0.00"},{"v":0,"d":"$0.00"},{"v":0,"d":"$0.00"}]
[{"$nulls":29},{"$f":"((P333*U333)-AM333)","v":{"v":0,"d":"$0"}},null,null,{"v":0,"d":"$0"},null,null,{"$f":"P333*AA333","v":{"v":0,"d":"$0"}},null,null,{"v":0,"d":"$0"},{"$nulls":3},{"$f":"SUM(AD333:AL333)","v":{"v":0,"d":"$0"}},null,null,{"$f":"SUM(AD333:AL333)","v":{"v":0,"d":"$0"}},null,"SIDING",{"$nulls":4},{"$f":"AD333","v":0},{"$f":"AG333","v":0},{"$f":"AJ333","v":0},{"$f":"IF(B333=\"x\",1,0)","v":0},0,{"$f":"AQ333","v":0},{"$f":"AM333","v":0},null,{"$f":"AD333","v":{"v":0,"d":"$0.00"}},{"$f":"AM333","v":{"v":0,"d":"$0.00"}},{"$f":"BJ333+BI333","v":{"v":0,"d":"$0.00"}}]
[{"$nulls":29},{"$f":"((P334*U334)-AM334)","v":{"v":0,"d":"$0"}},null,null,{"v":0,"d":"$0"},null,null,{"$f":"P334*AA334","v":{"v":0,"d":"$0"}},null,null,{"v":0,"d":"$0"},{"$nulls":3},{"$f":"SUM(AD334:AL334)","v":{"v":0,"d":"$0"}},null,null,{"$f":"SUM(AD334:AL334)","v":{"v":0,"d":"$0"}},null,"SIDING",{"$nulls":4},{"$f":"AD334","v":0},{"$f":"AG334","v":0},{"$f":"AJ334","v":0},{"$f":"IF(B334=\"x\",1,0)","v":0},0,{"$f":"AQ334","v":0},{"$f":"AM334","v":0},null,{"$f":"AD334","v":{"v":0,"d":"$0.00"}},{"$f":"AM334","v":{"v":0,"d":"$0.00"}},{"$f":"BJ334+BI334","v":{"v":0,"d":"$0.00"}}]
[{"$nulls":29},{"$f":"((P335*U335)-AM335)","v":{"v":0,"d":"$0"}},null,null,{"v":0,"d":"$0"},null,null,{"$f":"P335*AA335","v":{"v":0,"d":"$0"}},null,null,{"v":0,"d":"$0"},{"$nulls":3},{"$f":"SUM(AD335:AL335)","v":{"v":0,"d":"$0"}},null,null,{"$f":"SUM(AD335:AL335)","v":{"v":0,"d":"$0"}},null,"SIDING",{"$nulls":4},{"$f":"AD335","v":0},{"$f":"AG335","v":0},{"$f":"AJ335","v":0},{"$f":"IF(B335=\"x\",1,0)","v":0},0,{"$f":"AQ335","v":0},{"$f":"AM335","v":0},null,{"$f":"AD335","v":{"v":0,"d":"$0.00"}},{"$f":"AM335","v":{"v":0,"d":"$0.00"}},{"$f":"BJ335+BI335","v":{"v":0,"d":"$0.00"}}]
[{"$nulls":29},{"$f":"((P336*U336)-AM336)","v":{"v":0,"d":"$0"}},null,null,{"v":0,"d":"$0"},null,null,{"$f":"P336*AA336","v":{"v":0,"d":"$0"}},null,null,{"v":0,"d":"$0"},{"$nulls":3},{"$f":"SUM(AD336:AL336)","v":{"v":0,"d":"$0"}},null,null,{"$f":"SUM(AD336:AL336)","v":{"v":0,"d":"$0"}},null,"SIDING",{"$nulls":4},{"$f":"AD336","v":0},{"$f":"AG336","v":0},{"$f":"AJ336","v":0},{"$f":"IF(B336=\"x\",1,0)","v":0},0,{"$f":"AQ336","v":0},{"$f":"AM336","v":0},null,{"$f":"AD336","v":{"v":0,"d":"$0.00"}},{"$f":"AM336","v":{"v":0,"d":"$0.00"}},{"$f":"BJ336+BI336","v":{"v":0,"d":"$0.00"}}]
[{"$nulls":29},{"$f":"((P337*U337)-AM337)","v":{"v":0,"d":"$0"}},null,null,{"v":0,"d":"$0"},null,null,{"$f":"P337*AA337","v":{"v":0,"d":"$0"}},null,null,{"v":0,"d":"$0"},{"$nulls":3},{"$f":"SUM(AD337:AL337)","v":{"v":0,"d":"$0"}},null,null,{"$f":"SUM(AD337:AL337)","v":{"v":0,"d":"$0"}},null,"SIDING",{"$nulls":4},{"$f":"AD337","v":0},{"$f":"AG337","v":0},{"$f":"AJ337","v":0},{"$f":"IF(B337=\"x\",1,0)","v":0},0,{"$f":"AQ337","v":0},{"$f":"AM337","v":0},null,{"$f":"AD337","v":{"v":0,"d":"$0.00"}},{"$f":"AM337","v":{"v":0,"d":"$0.00"}},{"$f":"BJ337+BI337","v":{"v":0,"d":"$0.00"}}]
[{"$nulls":29},{"v":0,"d":"$0"},null,null,{"v":0,"d":"$0"},null,null,{"v":0,"d":"$0"},null,null,{"v":0,"d":"$0"},{"$nulls":3},{"v":0,"d":"$0"},null,null,{"v":0,"d":"$0"},null,"SIDING",{"$nulls":4},0,0,0,0,0,0,0,null,{"v":0,"d":"$0.00"},{"v":0,"d":"$0.00"},{"v":0,"d":"$0.00"}]
[{"$nulls":29},{"v":0,"d":"$0"},null,null,{"v":0,"d":"$0"},null,null,{"v":0,"d":"$0"},null,null,{"v":0,"d":"$0"},{"$nulls":3},{"v":0,"d":"$0"},null,null,{"v":0,"d":"$0"},null,"SIDING",{"$nulls":4},0,0,0,0,0,0,0,null,{"v":0,"d":"$0.00"},{"v":0,"d":"$0.00"},{"v":0,"d":"$0.00"}]
[{"$nulls":29},{"v":0,"d":"$0"},null,null,{"v":0,"d":"$0"},null,null,{"v":0,"d":"$0"},null,null,{"v":0,"d":"$0"},{"$nulls":3},{"v":0,"d":"$0"},null,null,{"v":0,"d":"$0"},null,"SIDING",{"$nulls":4},0,0,0,0,0,0,0,null,{"v":0,"d":"$0.00"},{"v":0,"d":"$0.00"},{"v":0,"d":"$0.00"}]
[{"$nulls":29},{"v":0,"d":"$0"},null,null,{"v":0,"d":"$0"},null,null,{"v":0,"d":"$0"},null,null,{"v":0,"d":"$0"},{"$nulls":3},{"v":0,"d":"$0"},null,null,{"v":0,"d":"$0"},null,"SIDING",{"$nulls":4},0,0,0,0,0,0,0,null,{"v":0,"d":"$0.00"},{"v":0,"d":"$0.00"},{"v":0,"d":"$0.00"}]
[{"$nulls":29},{"v":0,"d":"$0"},null,null,{"v":0,"d":"$0"},null,null,{"v":0,"d":"$0"},null,null,{"v":0,"d":"$0"},{"$nulls":3},{"v":0,"d":"$0"},null,null,{"v":0,"d":"$0"},null,"SIDING",{"$nulls":4},0,0,0,0,0,0,0,null,{"v":0,"d":"$0.00"},{"v":0,"d":"$0.00"},{"v":0,"d":"$0.00"}]
[{"$nulls":29},{"v":0,"d":"$0"},null,null,{"v":0,"d":"$0"},null,null,{"v":0,"d":"$0"},null,null,{"v":0,"d":"$0"},{"$nulls":3},{"v":0,"d":"$0"},null,null,{"v":0,"d":"$0"},null,"SIDING",{"$nulls":4},0,0,0,0,0,0,0,null,{"v":0,"d":"$0.00"},{"v":0,"d":"$0.00"},{"v":0,"d":"$0.00"}]
[{"$nulls":29},{"v":0,"d":"$0"},null,null,{"v":0,"d":"$0"},null,null,{"v":0,"d":"$0"},null,null,{"v":0,"d":"$0"},{"$nulls":3},{"v":0,"d":"$0"},null,null,{"v":0,"d":"$0"},null,"SIDING",{"$nulls":4},0,0,0,0,0,0,0,null,{"v":0,"d":"$0.00"},{"v":0,"d":"$0.00"},{"v":0,"d":"$0.00"}]
[{"$nulls":29},{"$f":"((P345*U345)-AM345)","v":{"v":0,"d":"$0"}},null,null,{"v":0,"d":"$0"},null,null,{"$f":"P345*AA345","v":{"v":0,"d":"$0"}},null,null,{"v":0,"d":"$0"},{"$nulls":3},{"$f":"SUM(AD345:AL345)","v":{"v":0,"d":"$0"}},null,null,{"$f":"SUM(AD345:AL345)","v":{"v":0,"d":"$0"}},null,"SIDING",{"$nulls":4},{"$f":"AD345","v":0},{"$f":"AG345","v":0},{"$f":"AJ345","v":0},{"$f":"IF(B345=\"x\",1,0)","v":0},0,{"$f":"AQ345","v":0},{"$f":"AM345","v":0},null,{"$f":"AD345","v":{"v":0,"d":"$0.00"}},{"$f":"AM345","v":{"v":0,"d":"$0.00"}},{"$f":"BJ345+BI345","v":{"v":0,"d":"$0.00"}}]
[{"$nulls":29},{"v":0,"d":"$0"},null,null,{"v":0,"d":"$0"},null,null,{"v":0,"d":"$0"},null,null,{"v":0,"d":"$0"},{"$nulls":3},{"v":0,"d":"$0"},null,null,{"v":0,"d":"$0"},null,"SIDING",{"$nulls":4},0,0,0,0,0,0,0,null,{"v":0,"d":"$0.00"},{"v":0,"d":"$0.00"},{"v":0,"d":"$0.00"}]
[{"$nulls":29},{"v":0,"d":"$0"},null,null,{"v":0,"d":"$0"},null,null,{"v":0,"d":"$0"},null,null,{"v":0,"d":"$0"},{"$nulls":3},{"v":0,"d":"$0"},null,null,{"v":0,"d":"$0"},null,"SIDING",{"$nulls":4},0,0,0,0,0,0,0,null,{"v":0,"d":"$0.00"},{"v":0,"d":"$0.00"},{"v":0,"d":"$0.00"}]
[{"$nulls":29},{"v":0,"d":"$0"},null,null,{"v":0,"d":"$0"},null,null,{"v":0,"d":"$0"},null,null,{"v":0,"d":"$0"},{"$nulls":3},{"v":0,"d":"$0"},null,null,{"v":0,"d":"$0"},null,"SIDING",{"$nulls":4},0,0,0,0,0,0,0,null,{"v":0,"d":"$0.00"},{"v":0,"d":"$0.00"},{"v":0,"d":"$0.00"}]
[{"$nulls":29},{"v":0,"d":"$0"},null,null,{"v":0,"d":"$0"},null,null,{"v":0,"d":"$0"},null,null,{"v":0,"d":"$0"},{"$nulls":3},{"v":0,"d":"$0"},null,null,{"v":0,"d":"$0"},null,"SIDING",{"$nulls":4},0,0,0,0,0,0,0,null,{"v":0,"d":"$0.00"},{"v":0,"d":"$0.00"},{"v":0,"d":"$0.00"}]
[{"$nulls":29},{"v":0,"d":"$0"},null,null,{"v":0,"d":"$0"},null,null,{"v":0,"d":"$0"},null,null,{"v":0,"d":"$0"},{"$nulls":3},{"v":0,"d":"$0"},null,null,{"v":0,"d":"$0"},null,"SIDING",{"$nulls":4},0,0,0,0,0,0,0,null,{"v":0,"d":"$0.00"},{"v":0,"d":"$0.00"},{"v":0,"d":"$0.00"}]
[{"$nulls":29},{"v":0,"d":"$0"},null,null,{"v":0,"d":"$0"},null,null,{"v":0,"d":"$0"},null,null,{"v":0,"d":"$0"},{"$nulls":3},{"v":0,"d":"$0"},null,null,{"v":0,"d":"$0"},null,"SIDING",{"$nulls":4},0,0,0,0,0,0,0,null,{"v":0,"d":"$0.00"},{"v":0,"d":"$0.00"},{"v":0,"d":"$0.00"}]
[{"$nulls":29},{"$f":"((P352*U352)-AM352)","v":{"v":0,"d":"$0"}},null,null,{"v":0,"d":"$0"},null,null,{"$f":"P352*AA352","v":{"v":0,"d":"$0"}},null,null,{"v":0,"d":"$0"},{"$nulls":3},{"$f":"SUM(AD352:AL352)","v":{"v":0,"d":"$0"}},null,null,{"$f":"SUM(AD352:AL352)","v":{"v":0,"d":"$0"}},null,"SIDING",{"$nulls":4},{"$f":"AD352","v":0},{"$f":"AG352","v":0},{"$f":"AJ352","v":0},{"$f":"IF(B352=\"x\",1,0)","v":0},0,{"$f":"AQ352","v":0},{"$f":"AM352","v":0},null,{"$f":"AD352","v":{"v":0,"d":"$0.00"}},{"$f":"AM352","v":{"v":0,"d":"$0.00"}},{"$f":"BJ352+BI352","v":{"v":0,"d":"$0.00"}}]
[{"$nulls":47},"SIDING",{"$nulls":4},{"$f":"BA312","v":{"v":0,"d":"$0"}},{"$f":"BB312","v":{"v":0,"d":"$0"}},{"$f":"BC312","v":{"v":0,"d":"$0"}},{"$f":"BD312","v":{"v":0,"d":"$0"}},{"$f":"BE312","v":{"v":0,"d":"$0"}}]
[{"$nulls":28},{"$f":"CONCATENATE(D312,\" \",\"TOTAL\")","v":"SIDING TOTAL"},{"$f":"SUBTOTAL(9,AD313:AD353)","v":{"v":0,"d":"$0"}},null,null,{"$f":"SUBTOTAL(9,AG313:AG353)","v":{"v":0,"d":"$0"}},null,null,{"$f":"SUBTOTAL(9,AJ313:AJ353)","v":{"v":0,"d":"$0"}},null,null,{"$f":"SUBTOTAL(9,AM313:AM353)","v":{"v":0,"d":"$0"}},{"$nulls":3},{"$f":"SUBTOTAL(9,AQ313:AQ353)","v":{"v":0,"d":"$0"}},null,null,{"$f":"SUM(AT310:AT345)","v":{"$error":"#REF!"}},null,"SIDING",{"$nulls":4},{"$f":"BA312","v":0},{"$f":"BB312","v":0},{"$f":"BC312","v":0},{"$f":"BD312","v":0},{"$f":"BE312","v":0},{"$f":"SUM(BF312:BF353)","v":0},{"$f":"SUM(BG312:BG353)","v":0},null,{"$f":"SUM(BI313:BI353)","v":0},{"$f":"SUM(BJ313:BJ353)","v":0},{"$f":"SUM(BK313:BK353)","v":0}]
[{"$nulls":47},"SIDING",{"$nulls":4},{"$f":"BA312","v":{"v":0,"d":"$0"}},{"$f":"BB312","v":{"v":0,"d":"$0"}},{"$f":"BC312","v":{"v":0,"d":"$0"}},{"$f":"BD312","v":{"v":0,"d":"$0"}},{"$f":"BE312","v":{"v":0,"d":"$0"}}]
[{"$nulls":47},"SIDING",{"$nulls":4},{"$f":"BA354","v":0},{"$f":"BB354","v":0},{"$f":"BC354","v":0},0,0,0,0]
["Hidden",null,null,{"$f":"T(N81)","v":"DECKING AND PATIOS"},{"$nulls":25},{"$f":"AD399","v":{"v":750,"d":"$750"}},null,null,{"$f":"AG399","v":{"v":321,"d":"$321"}},null,null,{"$f":"AJ399","v":{"v":0,"d":"$0"}},null,null,{"$f":"AM399","v":{"v":0,"d":"$0"}},{"$nulls":3},{"$f":"AQ399","v":{"v":1071,"d":"$1,071"}},null,null,{"$f":"SUM(#REF!)","v":{"$error":"#REF!"}},null,{"$f":"$D$357","v":"DECKING AND PATIOS"},{"$nulls":4},{"$f":"SUM(BA358:BA397)","v":750},{"$f":"SUM(BB358:BB397)","v":321},{"$f":"SUM(BC358:BC397)","v":0},{"$f":"SUM(BD358:BD397)","v":0},{"$f":"SUM(BE358:BE397)","v":1071},{"$f":"AQ357","v":1071},{"$f":"AM357","v":0},null,{"$f":"AD357","v":{"v":750,"d":"$750.00"}},{"$f":"AM357","v":{"v":0,"d":"$0.00"}},{"$f":"BJ357+BI357","v":{"v":750,"d":"$750.00"}}]
[{"$nulls":3},"Decking",{"$nulls":25},{"$f":"((P358*U358)-AM358)","v":{"v":0,"d":"$0"}},null,null,{"$f":"P358*X358*(1+$Y$85)","v":{"v":0,"d":"$0"}},null,null,{"$f":"P358*AA358","v":{"v":0,"d":"$0"}},null,null,{"$f":"IF($B358=\"x\",$P358*$U358,0)","v":{"v":0,"d":"$0"}},{"$nulls":3},{"$f":"SUM(AD358:AL358)","v":{"v":0,"d":"$0"}},null,null,{"$f":"SUM(AD358:AL358)","v":{"v":0,"d":"$0"}},null,"DECKING AND PATIOS",{"$nulls":4},{"$f":"AD358","v":0},{"$f":"AG358","v":0},{"$f":"AJ358","v":0},{"$f":"IF(B358=\"x\",1,0)","v":0},{"$f":"SUM(BA358:BC358)","v":0},0,0,null,{"$f":"AD358","v":{"v":0,"d":"$0.00"}},{"$f":"AM358","v":{"v":0,"d":"$0.00"}},{"$f":"BJ358+BI358","v":{"v":0,"d":"$0.00"}}]
[{"$nulls":3},"Deck bid/allowance",{"$nulls":14},"ls","ls",{"$nulls":9},{"v":0,"d":"$0"},null,null,{"$f":"P359*X359*(1+$Y$85)","v":{"v":0,"d":"$0"}},null,null,{"v":0,"d":"$0"},null,null,{"v":0,"d":"$0"},{"$nulls":3},{"v":0,"d":"$0"},null,null,{"v":0,"d":"$0"},null,"DECKING AND PATIOS",{"$nulls":4},0,{"$f":"AG359","v":0},{"$f":"AJ359","v":0},0,{"$f":"SUM(BA359:BC359)","v":0},0,0,null,{"$f":"AD359","v":{"v":0,"d":"$0.00"}},{"v":0,"d":"$0.00"},{"$f":"BJ359+BI359","v":{"v":0,"d":"$0.00"}}]
[{"$nulls":3},"New deck, columns, joists, railing-treated lumber",{"$nulls":14},"sf","sf",{"v":10,"d":"10.00"},null,null,{"v":5,"d":"5.00"},null,{"v":5,"d":"5.00"},{"$nulls":3},{"v":0,"d":"$0"},null,null,{"v":0,"d":"$0"},null,null,{"v":0,"d":"$0"},null,null,{"v":0,"d":"$0"},{"$nulls":3},{"v":0,"d":"$0"},null,null,{"v":0,"d":"$0"},null,"DECKING AND PATIOS",{"$nulls":4},0,0,0,0,0,0,0,null,{"v":0,"d":"$0.00"},{"v":0,"d":"$0.00"},{"v":0,"d":"$0.00"}]
[{"$nulls":3},"New deck, columns, joists, railing-cedar",{"$nulls":14},"sf","sf",{"v":10,"d":"10.00"},null,null,{"v":9,"d":"9.00"},null,{"v":8.5,"d":"8.50"},{"$nulls":3},{"v":0,"d":"$0"},null,null,{"v":0,"d":"$0"},null,null,{"v":0,"d":"$0"},null,null,{"v":0,"d":"$0"},{"$nulls":3},{"v":0,"d":"$0"},null,null,{"v":0,"d":"$0"},null,"DECKING AND PATIOS",{"$nulls":4},0,0,0,0,0,0,0,null,{"v":0,"d":"$0.00"},{"v":0,"d":"$0.00"},{"v":0,"d":"$0.00"}]
[{"$nulls":3},"Existing deck, replace decking",{"$nulls":11},150,null,null,"sf","sf",{"v":5,"d":"5.00"},null,null,{"v":2,"d":"2.00"},null,{"v":2,"d":"2.00"},{"$nulls":3},{"v":750,"d":"$750"},null,null,{"v":321,"d":"$321"},null,null,{"v":0,"d":"$0"},null,null,{"v":0,"d":"$0"},{"$nulls":3},{"v":1071,"d":"$1,071"},null,null,{"v":1071,"d":"$1,071"},null,"DECKING AND PATIOS",{"$nulls":4},750,321,0,0,1071,1071,0,null,{"v":750,"d":"$750.00"},{"v":0,"d":"$0.00"},{"v":750,"d":"$750.00"}]
[{"$nulls":3},"Install railing w/ wood balusters only",{"$nulls":14},"lf","lf",{"v":15,"d":"15.00"},null,null,{"v":15,"d":"15.00"},null,{"v":7.5,"d":"7.50"},{"$nulls":3},{"v":0,"d":"$0"},null,null,{"v":0,"d":"$0"},null,null,{"v":0,"d":"$0"},null,null,{"v":0,"d":"$0"},{"$nulls":3},{"v":0,"d":"$0"},null,null,{"v":0,"d":"$0"},null,"DECKING AND PATIOS",{"$nulls":4},0,0,0,0,0,0,0,null,{"v":0,"d":"$0.00"},{"v":0,"d":"$0.00"},{"v":0,"d":"$0.00"}]
[{"$nulls":3},"Install railing w/ metal balusters only",{"$nulls":14},"lf","lf",{"v":15,"d":"15.00"},null,null,{"v":25,"d":"25.00"},null,{"v":25,"d":"25.00"},{"$nulls":3},{"v":0,"d":"$0"},null,null,{"v":0,"d":"$0"},null,null,{"v":0,"d":"$0"},null,null,{"v":0,"d":"$0"},{"$nulls":3},{"v":0,"d":"$0"},null,null,{"v":0,"d":"$0"},null,"DECKING AND PATIOS",{"$nulls":4},0,0,0,0,0,0,0,null,{"v":0,"d":"$0.00"},{"v":0,"d":"$0.00"},{"v":0,"d":"$0.00"}]
[{"$nulls":3},"Stairs, 5 to 7 risers",{"$nulls":14},"ea",null,{"v":700,"d":"700.00"},null,null,{"v":175,"d":"175.00"},{"$nulls":5},{"v":0,"d":"$0"},null,null,{"v":0,"d":"$0"},null,null,{"v":0,"d":"$0"},null,null,{"v":0,"d":"$0"},{"$nulls":3},{"v":0,"d":"$0"},null,null,{"v":0,"d":"$0"},null,"DECKING AND PATIOS",{"$nulls":4},0,0,0,0,0,0,0,null,{"v":0,"d":"$0.00"},{"v":0,"d":"$0.00"},{"v":0,"d":"$0.00"}]
[{"$nulls":29},{"v":0,"d":"$0"},null,null,{"v":0,"d":"$0"},null,null,{"v":0,"d":"$0"},null,null,{"v":0,"d":"$0"},{"$nulls":3},{"v":0,"d":"$0"},null,null,{"v":0,"d":"$0"},null,"DECKING AND PATIOS",{"$nulls":4},0,0,0,0,0,0,0,null,{"v":0,"d":"$0.00"},{"v":0,"d":"$0.00"},{"v":0,"d":"$0.00"}]
[{"$nulls":29},{"v":0,"d":"$0"},null,null,{"v":0,"d":"$0"},null,null,{"v":0,"d":"$0"},null,null,{"v":0,"d":"$0"},{"$nulls":3},{"v":0,"d":"$0"},null,null,{"v":0,"d":"$0"},null,"DECKING AND PATIOS",{"$nulls":4},0,0,0,0,0,0,0,null,{"v":0,"d":"$0.00"},{"v":0,"d":"$0.00"},{"v":0,"d":"$0.00"}]
[{"$nulls":3},"Covered Patio",{"$nulls":25},{"v":0,"d":"$0"},null,null,{"v":0,"d":"$0"},null,null,{"v":0,"d":"$0"},null,null,{"v":0,"d":"$0"},{"$nulls":3},{"v":0,"d":"$0"},null,null,{"v":0,"d":"$0"},null,"DECKING AND PATIOS",{"$nulls":4},0,0,0,0,0,0,0,null,{"v":0,"d":"$0.00"},{"v":0,"d":"$0.00"},{"v":0,"d":"$0.00"}]
[{"$nulls":3},"Covered Patio bid/allowance",{"$nulls":14},"ls","ls",{"$nulls":9},{"v":0,"d":"$0"},null,null,{"v":0,"d":"$0"},null,null,{"v":0,"d":"$0"},null,null,{"v":0,"d":"$0"},{"$nulls":3},{"v":0,"d":"$0"},null,null,{"v":0,"d":"$0"},null,"DECKING AND PATIOS",{"$nulls":4},0,0,0,0,0,0,0,null,{"v":0,"d":"$0.00"},{"v":0,"d":"$0.00"},{"v":0,"d":"$0.00"}]
[{"$nulls":3},"Covered patio, floor, roof frame, decking, treated",{"$nulls":14},"sf",null,{"v":20,"d":"20.00"},null,null,{"v":15,"d":"15.00"},{"$nulls":5},{"v":0,"d":"$0"},null,null,{"v":0,"d":"$0"},null,null,{"v":0,"d":"$0"},null,null,{"v":0,"d":"$0"},{"$nulls":3},{"v":0,"d":"$0"},null,null,{"v":0,"d":"$0"},null,"DECKING AND PATIOS",{"$nulls":4},0,0,0,0,0,0,0,null,{"v":0,"d":"$0.00"},{"v":0,"d":"$0.00"},{"v":0,"d":"$0.00"}]
[{"$nulls":3},"Install railing w/ wood balusters only",{"$nulls":14},"lf","lf",{"v":15,"d":"15.00"},null,null,{"v":15,"d":"15.00"},null,{"v":7.5,"d":"7.50"},{"$nulls":3},{"v":0,"d":"$0"},null,null,{"v":0,"d":"$0"},null,null,{"v":0,"d":"$0"},null,null,{"v":0,"d":"$0"},{"$nulls":3},{"v":0,"d":"$0"},null,null,{"v":0,"d":"$0"},null,"DECKING AND PATIOS",{"$nulls":4},0,0,0,0,0,0,0,null,{"v":0,"d":"$0.00"},{"v":0,"d":"$0.00"},{"v":0,"d":"$0.00"}]
[{"$nulls":3},"Install railing w/ metal balusters only",{"$nulls":14},"lf","lf",{"v":15,"d":"15.00"},null,null,{"v":25,"d":"25.00"},null,{"v":25,"d":"25.00"},{"$nulls":3},{"v":0,"d":"$0"},null,null,{"v":0,"d":"$0"},null,null,{"v":0,"d":"$0"},null,null,{"v":0,"d":"$0"},{"$nulls":3},{"v":0,"d":"$0"},null,null,{"v":0,"d":"$0"},null,"DECKING AND PATIOS",{"$nulls":4},0,0,0,0,0,0,0,null,{"v":0,"d":"$0.00"},{"v":0,"d":"$0.00"},{"v":0,"d":"$0.00"}]
[{"$nulls":3},"Stairs, 5 to 7 risers",{"$nulls":14},"ea",null,{"v":700,"d":"700.00"},null,null,{"v":175,"d":"175.00"},{"$nulls":5},{"v":0,"d":"$0"},null,null,{"v":0,"d":"$0"},null,null,{"v":0,"d":"$0"},null,null,{"v":0,"d":"$0"},{"$nulls":3},{"v":0,"d":"$0"},null,null,{"v":0,"d":"$0"},null,"DECKING AND PATIOS",{"$nulls":4},0,0,0,0,0,0,0,null,{"v":0,"d":"$0.00"},{"v":0,"d":"$0.00"},{"v":0,"d":"$0.00"}]
[{"$nulls":3},"Wood board ceiling, tongue and groove",{"$nulls":14},"sf",null,1.75,null,null,{"v":2,"d":"2.00"},{"$nulls":5},{"v":0,"d":"$0"},null,null,{"v":0,"d":"$0"},null,null,{"v":0,"d":"$0"},null,null,{"v":0,"d":"$0"},{"$nulls":3},{"v":0,"d":"$0"},null,null,{"v":0,"d":"$0"},null,"DECKING AND PATIOS",{"$nulls":4},0,0,0,0,0,0,0,null,{"v":0,"d":"$0.00"},{"v":0,"d":"$0.00"},{"v":0,"d":"$0.00"}]
[{"$nulls":3},"Insect screening",{"$nulls":14},"sf",null,{"v":1.5,"d":"1.50"},null,null,1.25,{"$nulls":5},{"v":0,"d":"$0"},null,null,{"v":0,"d":"$0"},null,null,{"v":0,"d":"$0"},null,null,{"v":0,"d":"$0"},{"$nulls":3},{"v":0,"d":"$0"},null,null,{"v":0,"d":"$0"},null,"DECKING AND PATIOS",{"$nulls":4},0,0,0,0,0,0,0,null,{"v":0,"d":"$0.00"},{"v":0,"d":"$0.00"},{"v":0,"d":"$0.00"}]
[{"$nulls":29},{"v":0,"d":"$0"},null,null,{"v":0,"d":"$0"},null,null,{"v":0,"d":"$0"},null,null,{"v":0,"d":"$0"},{"$nulls":3},{"v":0,"d":"$0"},null,null,{"v":0,"d":"$0"},null,"DECKING AND PATIOS",{"$nulls":4},0,0,0,0,{"$f":"SUM(BA376:BC376)","v":0},0,0,null,{"v":0,"d":"$0.00"},{"v":0,"d":"$0.00"},{"v":0,"d":"$0.00"}]
[{"$nulls":29},{"v":0,"d":"$0"},null,null,{"v":0,"d":"$0"},null,null,{"v":0,"d":"$0"},null,null,{"v":0,"d":"$0"},{"$nulls":3},{"v":0,"d":"$0"},null,null,{"v":0,"d":"$0"},null,"DECKING AND PATIOS",{"$nulls":4},0,0,0,0,0,0,0,null,{"v":0,"d":"$0.00"},{"v":0,"d":"$0.00"},{"v":0,"d":"$0.00"}]
[{"$nulls":29},{"$f":"((P378*U378)-AM378)","v":{"v":0,"d":"$0"}},null,null,{"v":0,"d":"$0"},null,null,{"$f":"P378*AA378","v":{"v":0,"d":"$0"}},null,null,{"v":0,"d":"$0"},{"$nulls":3},{"$f":"SUM(AD378:AL378)","v":{"v":0,"d":"$0"}},null,null,{"$f":"SUM(AD378:AL378)","v":{"v":0,"d":"$0"}},null,"DECKING AND PATIOS",{"$nulls":4},{"$f":"AD378","v":0},{"$f":"AG378","v":0},{"$f":"AJ378","v":0},{"$f":"IF(B378=\"x\",1,0)","v":0},0,{"$f":"AQ378","v":0},{"$f":"AM378","v":0},null,{"$f":"AD378","v":{"v":0,"d":"$0.00"}},{"$f":"AM378","v":{"v":0,"d":"$0.00"}},{"$f":"BJ378+BI378","v":{"v":0,"d":"$0.00"}}]
[{"$nulls":29},{"$f":"((P379*U379)-AM379)","v":{"v":0,"d":"$0"}},null,null,{"v":0,"d":"$0"},null,null,{"$f":"P379*AA379","v":{"v":0,"d":"$0"}},null,null,{"v":0,"d":"$0"},{"$nulls":3},{"$f":"SUM(AD379:AL379)","v":{"v":0,"d":"$0"}},null,null,{"$f":"SUM(AD379:AL379)","v":{"v":0,"d":"$0"}},null,"DECKING AND PATIOS",{"$nulls":4},{"$f":"AD379","v":0},{"$f":"AG379","v":0},{"$f":"AJ379","v":0},{"$f":"IF(B379=\"x\",1,0)","v":0},0,{"$f":"AQ379","v":0},{"$f":"AM379","v":0},null,{"$f":"AD379","v":{"v":0,"d":"$0.00"}},{"$f":"AM379","v":{"v":0,"d":"$0.00"}},{"$f":"BJ379+BI379","v":{"v":0,"d":"$0.00"}}]
[{"$nulls":29},{"$f":"((P380*U380)-AM380)","v":{"v":0,"d":"$0"}},null,null,{"v":0,"d":"$0"},null,null,{"$f":"P380*AA380","v":{"v":0,"d":"$0"}},null,null,{"v":0,"d":"$0"},{"$nulls":3},{"$f":"SUM(AD380:AL380)","v":{"v":0,"d":"$0"}},null,null,{"$f":"SUM(AD380:AL380)","v":{"v":0,"d":"$0"}},null,"DECKING AND PATIOS",{"$nulls":4},{"$f":"AD380","v":0},{"$f":"AG380","v":0},{"$f":"AJ380","v":0},{"$f":"IF(B380=\"x\",1,0)","v":0},0,{"$f":"AQ380","v":0},{"$f":"AM380","v":0},null,{"$f":"AD380","v":{"v":0,"d":"$0.00"}},{"$f":"AM380","v":{"v":0,"d":"$0.00"}},{"$f":"BJ380+BI380","v":{"v":0,"d":"$0.00"}}]
[{"$nulls":29},{"v":0,"d":"$0"},null,null,{"v":0,"d":"$0"},null,null,{"v":0,"d":"$0"},null,null,{"v":0,"d":"$0"},{"$nulls":3},{"v":0,"d":"$0"},null,null,{"v":0,"d":"$0"},null,"DECKING AND PATIOS",{"$nulls":4},0,0,0,0,0,0,0,null,{"v":0,"d":"$0.00"},{"v":0,"d":"$0.00"},{"v":0,"d":"$0.00"}]
[{"$nulls":29},{"v":0,"d":"$0"},null,null,{"v":0,"d":"$0"},null,null,{"v":0,"d":"$0"},null,null,{"v":0,"d":"$0"},{"$nulls":3},{"v":0,"d":"$0"},null,null,{"v":0,"d":"$0"},null,"DECKING AND PATIOS",{"$nulls":4},0,0,0,0,0,0,0,null,{"v":0,"d":"$0.00"},{"v":0,"d":"$0.00"},{"v":0,"d":"$0.00"}]
[{"$nulls":29},{"v":0,"d":"$0"},null,null,{"v":0,"d":"$0"},null,null,{"v":0,"d":"$0"},null,null,{"v":0,"d":"$0"},{"$nulls":3},{"v":0,"d":"$0"},null,null,{"v":0,"d":"$0"},null,"DECKING AND PATIOS",{"$nulls":4},0,0,0,0,0,0,0,null,{"v":0,"d":"$0.00"},{"v":0,"d":"$0.00"},{"v":0,"d":"$0.00"}]
[{"$nulls":29},{"v":0,"d":"$0"},null,null,{"v":0,"d":"$0"},null,null,{"v":0,"d":"$0"},null,null,{"v":0,"d":"$0"},{"$nulls":3},{"v":0,"d":"$0"},null,null,{"v":0,"d":"$0"},null,"DECKING AND PATIOS",{"$nulls":4},0,0,0,0,0,0,0,null,{"v":0,"d":"$0.00"},{"v":0,"d":"$0.00"},{"v":0,"d":"$0.00"}]
[{"$nulls":29},{"v":0,"d":"$0"},null,null,{"v":0,"d":"$0"},null,null,{"v":0,"d":"$0"},null,null,{"v":0,"d":"$0"},{"$nulls":3},{"v":0,"d":"$0"},null,null,{"v":0,"d":"$0"},null,"DECKING AND PATIOS",{"$nulls":4},0,0,0,0,0,0,0,null,{"v":0,"d":"$0.00"},{"v":0,"d":"$0.00"},{"v":0,"d":"$0.00"}]
[{"$nulls":29},{"$f":"((P386*U386)-AM386)","v":{"v":0,"d":"$0"}},null,null,{"v":0,"d":"$0"},null,null,{"$f":"P386*AA386","v":{"v":0,"d":"$0"}},null,null,{"v":0,"d":"$0"},{"$nulls":3},{"$f":"SUM(AD386:AL386)","v":{"v":0,"d":"$0"}},null,null,{"$f":"SUM(AD386:AL386)","v":{"v":0,"d":"$0"}},null,"DECKING AND PATIOS",{"$nulls":4},{"$f":"AD386","v":0},{"$f":"AG386","v":0},{"$f":"AJ386","v":0},{"$f":"IF(B386=\"x\",1,0)","v":0},0,{"$f":"AQ386","v":0},{"$f":"AM386","v":0},null,{"$f":"AD386","v":{"v":0,"d":"$0.00"}},{"$f":"AM386","v":{"v":0,"d":"$0.00"}},{"$f":"BJ386+BI386","v":{"v":0,"d":"$0.00"}}]
[{"$nulls":29},{"v":0,"d":"$0"},null,null,{"v":0,"d":"$0"},null,null,{"v":0,"d":"$0"},null,null,{"v":0,"d":"$0"},{"$nulls":3},{"v":0,"d":"$0"},null,null,{"v":0,"d":"$0"},null,"DECKING AND PATIOS",{"$nulls":4},0,0,0,0,0,0,0,null,{"v":0,"d":"$0.00"},{"v":0,"d":"$0.00"},{"v":0,"d":"$0.00"}]
[{"$nulls":29},{"v":0,"d":"$0"},null,null,{"v":0,"d":"$0"},null,null,{"v":0,"d":"$0"},null,null,{"v":0,"d":"$0"},{"$nulls":3},{"v":0,"d":"$0"},null,null,{"v":0,"d":"$0"},null,"DECKING AND PATIOS",{"$nulls":4},0,0,0,0,0,0,0,null,{"v":0,"d":"$0.00"},{"v":0,"d":"$0.00"},{"v":0,"d":"$0.00"}]
[{"$nulls":29},{"v":0,"d":"$0"},null,null,{"v":0,"d":"$0"},null,null,{"v":0,"d":"$0"},null,null,{"v":0,"d":"$0"},{"$nulls":3},{"v":0,"d":"$0"},null,null,{"v":0,"d":"$0"},null,"DECKING AND PATIOS",{"$nulls":4},0,0,0,0,0,0,0,null,{"v":0,"d":"$0.00"},{"v":0,"d":"$0.00"},{"v":0,"d":"$0.00"}]
[{"$nulls":29},{"v":0,"d":"$0"},null,null,{"v":0,"d":"$0"},null,null,{"v":0,"d":"$0"},null,null,{"v":0,"d":"$0"},{"$nulls":3},{"v":0,"d":"$0"},null,null,{"v":0,"d":"$0"},null,"DECKING AND PATIOS",{"$nulls":4},0,0,0,0,0,0,0,null,{"v":0,"d":"$0.00"},{"v":0,"d":"$0.00"},{"v":0,"d":"$0.00"}]
[{"$nulls":29},{"v":0,"d":"$0"},null,null,{"v":0,"d":"$0"},null,null,{"v":0,"d":"$0"},null,null,{"v":0,"d":"$0"},{"$nulls":3},{"v":0,"d":"$0"},null,null,{"v":0,"d":"$0"},null,"DECKING AND PATIOS",{"$nulls":4},0,0,0,0,0,0,0,null,{"v":0,"d":"$0.00"},{"v":0,"d":"$0.00"},{"v":0,"d":"$0.00"}]
[{"$nulls":29},{"v":0,"d":"$0"},null,null,{"v":0,"d":"$0"},null,null,{"v":0,"d":"$0"},null,null,{"v":0,"d":"$0"},{"$nulls":3},{"v":0,"d":"$0"},null,null,{"v":0,"d":"$0"},null,"DECKING AND PATIOS",{"$nulls":4},0,0,0,0,0,0,0,null,{"v":0,"d":"$0.00"},{"v":0,"d":"$0.00"},{"v":0,"d":"$0.00"}]
[{"$nulls":29},{"v":0,"d":"$0"},null,null,{"v":0,"d":"$0"},null,null,{"v":0,"d":"$0"},null,null,{"v":0,"d":"$0"},{"$nulls":3},{"v":0,"d":"$0"},null,null,{"v":0,"d":"$0"},null,"DECKING AND PATIOS",{"$nulls":4},0,0,0,0,0,0,0,null,{"v":0,"d":"$0.00"},{"v":0,"d":"$0.00"},{"v":0,"d":"$0.00"}]
[{"$nulls":29},{"v":0,"d":"$0"},null,null,{"v":0,"d":"$0"},null,null,{"v":0,"d":"$0"},null,null,{"v":0,"d":"$0"},{"$nulls":3},{"v":0,"d":"$0"},null,null,{"v":0,"d":"$0"},null,"DECKING AND PATIOS",{"$nulls":4},0,0,0,0,0,0,0,null,{"v":0,"d":"$0.00"},{"v":0,"d":"$0.00"},{"v":0,"d":"$0.00"}]
[{"$nulls":29},{"v":0,"d":"$0"},null,null,{"v":0,"d":"$0"},null,null,{"v":0,"d":"$0"},null,null,{"v":0,"d":"$0"},{"$nulls":3},{"v":0,"d":"$0"},null,null,{"v":0,"d":"$0"},null,"DECKING AND PATIOS",{"$nulls":4},0,0,0,0,0,0,0,null,{"v":0,"d":"$0.00"},{"v":0,"d":"$0.00"},{"v":0,"d":"$0.00"}]
[{"$nulls":29},{"v":0,"d":"$0"},null,null,{"v":0,"d":"$0"},null,null,{"v":0,"d":"$0"},null,null,{"v":0,"d":"$0"},{"$nulls":3},{"v":0,"d":"$0"},null,null,{"v":0,"d":"$0"},null,"DECKING AND PATIOS",{"$nulls":4},0,0,0,0,0,0,0,null,{"v":0,"d":"$0.00"},{"v":0,"d":"$0.00"},{"v":0,"d":"$0.00"}]
[{"$nulls":29},{"$f":"((P397*U397)-AM397)","v":{"v":0,"d":"$0"}},null,null,{"v":0,"d":"$0"},null,null,{"$f":"P397*AA397","v":{"v":0,"d":"$0"}},null,null,{"v":0,"d":"$0"},{"$nulls":3},{"$f":"SUM(AD397:AL397)","v":{"v":0,"d":"$0"}},null,null,{"$f":"SUM(AD397:AL397)","v":{"v":0,"d":"$0"}},null,"DECKING AND PATIOS",{"$nulls":4},{"$f":"AD397","v":0},{"$f":"AG397","v":0},{"$f":"AJ397","v":0},{"$f":"IF(B397=\"x\",1,0)","v":0},0,{"$f":"AQ397","v":0},{"$f":"AM397","v":0},null,{"$f":"AD397","v":{"v":0,"d":"$0.00"}},{"$f":"AM397","v":{"v":0,"d":"$0.00"}},{"$f":"BJ397+BI397","v":{"v":0,"d":"$0.00"}}]
[{"$nulls":47},"DECKING AND PATIOS",{"$nulls":4},{"$f":"BA357","v":{"v":750,"d":"$750"}},{"$f":"BB357","v":{"v":321,"d":"$321"}},{"$f":"BC357","v":{"v":0,"d":"$0"}},{"$f":"BD357","v":{"v":0,"d":"$0"}},{"$f":"BE357","v":{"v":1071,"d":"$1,071"}}]
[{"$nulls":28},{"$f":"CONCATENATE(D357,\" \",\"TOTAL\")","v":"DECKING AND PATIOS TOTAL"},{"$f":"SUBTOTAL(9,AD358:AD398)","v":{"v":750,"d":"$750"}},null,null,{"$f":"SUBTOTAL(9,AG358:AG398)","v":{"v":321,"d":"$321"}},null,null,{"$f":"SUBTOTAL(9,AJ358:AJ398)","v":{"v":0,"d":"$0"}},null,null,{"$f":"SUBTOTAL(9,AM358:AM398)","v":{"v":0,"d":"$0"}},{"$nulls":3},{"$f":"SUBTOTAL(9,AQ358:AQ398)","v":{"v":1071,"d":"$1,071"}},null,null,{"$f":"SUM(AT355:AT390)","v":{"$error":"#REF!"}},null,"DECKING AND PATIOS",{"$nulls":4},{"$f":"BA357","v":750},{"$f":"BB357","v":321},{"$f":"BC357","v":0},{"$f":"BD357","v":0},{"$f":"BE357","v":1071},{"$f":"SUM(BF357:BF398)","v":2142},{"$f":"SUM(BG357:BG398)","v":0},null,{"$f":"SUM(BI358:BI398)","v":750},{"$f":"SUM(BJ358:BJ398)","v":0},{"$f":"SUM(BK358:BK398)","v":750}]
[{"$nulls":47},"DECKING AND PATIOS",{"$nulls":4},{"$f":"BA357","v":{"v":750,"d":"$750"}},{"$f":"BB357","v":{"v":321,"d":"$321"}},{"$f":"BC357","v":{"v":0,"d":"$0"}},{"$f":"BD357","v":{"v":0,"d":"$0"}},{"$f":"BE357","v":{"v":1071,"d":"$1,071"}}]
[{"$nulls":47},"DECKING AND PATIOS",{"$nulls":4},{"$f":"BA399","v":750},{"$f":"BB399","v":321},{"$f":"BC399","v":0},0,1071,2142,0]
["Hidden",null,null,{"$f":"T(N82)","v":"ROOFING"},{"$nulls":25},{"$f":"AD444","v":{"v":3000,"d":"$3,000"}},null,null,{"$f":"AG444","v":{"v":2461,"d":"$2,461"}},null,null,{"$f":"AJ444","v":{"v":0,"d":"$0"}},null,null,{"$f":"AM444","v":{"v":0,"d":"$0"}},{"$nulls":3},{"$f":"AQ444","v":{"v":5461,"d":"$5,461"}},null,null,{"$f":"SUM(#REF!)","v":{"$error":"#REF!"}},null,{"$f":"$D$402","v":"ROOFING"},{"$nulls":4},{"$f":"SUM(BA403:BA442)","v":3000},{"$f":"SUM(BB403:BB442)","v":2461},{"$f":"SUM(BC403:BC442)","v":0},{"$f":"SUM(BD403:BD442)","v":0},{"$f":"SUM(BE403:BE442)","v":5461},{"$f":"AQ402","v":5461},{"$f":"AM402","v":0},null,{"$f":"AD402","v":{"v":3000,"d":"$3,000.00"}},{"$f":"AM402","v":{"v":0,"d":"$0.00"}},{"$f":"BJ402+BI402","v":{"v":3000,"d":"$3,000.00"}}]
[{"$nulls":3},"Roofing bid/allowance",{"$nulls":14},"ls","ls",{"$nulls":9},{"$f":"((P403*U403)-AM403)","v":{"v":0,"d":"$0"}},null,null,{"$f":"P403*X403*(1+$Y$85)","v":{"v":0,"d":"$0"}},null,null,{"$f":"P403*AA403","v":{"v":0,"d":"$0"}},null,null,{"$f":"IF($B403=\"x\",$P403*$U403,0)","v":{"v":0,"d":"$0"}},{"$nulls":3},{"$f":"SUM(AD403:AL403)","v":{"v":0,"d":"$0"}},null,null,{"$f":"SUM(AD403:AL403)","v":{"v":0,"d":"$0"}},null,"ROOFING",{"$nulls":4},{"$f":"AD403","v":0},{"$f":"AG403","v":0},{"$f":"AJ403","v":0},{"$f":"IF(B403=\"x\",1,0)","v":0},{"$f":"SUM(BA403:BC403)","v":0},0,0,null,{"$f":"AD403","v":{"v":0,"d":"$0.00"}},{"$f":"AM403","v":{"v":0,"d":"$0.00"}},{"$f":"BJ403+BI403","v":{"v":0,"d":"$0.00"}}]
[{"$nulls":3},"Asphalt shingle roof",{"$nulls":25},{"v":0,"d":"$0"},null,null,{"$f":"P404*X404*(1+$Y$85)","v":{"v":0,"d":"$0"}},null,null,{"v":0,"d":"$0"},null,null,{"v":0,"d":"$0"},{"$nulls":3},{"v":0,"d":"$0"},null,null,{"v":0,"d":"$0"},null,"ROOFING",{"$nulls":4},0,{"$f":"AG404","v":0},{"$f":"AJ404","v":0},0,{"$f":"SUM(BA404:BC404)","v":0},0,0,null,{"$f":"AD404","v":{"v":0,"d":"$0.00"}},{"v":0,"d":"$0.00"},{"$f":"BJ404+BI404","v":{"v":0,"d":"$0.00"}}]
[{"$nulls":3},"Roof repair/patch, asphalt",{"$nulls":14},"ea","ea",{"v":250,"d":"250.00"},null,null,{"v":100,"d":"100.00"},null,{"v":100,"d":"100.00"},{"$nulls":3},{"v":0,"d":"$0"},null,null,{"v":0,"d":"$0"},null,null,{"v":0,"d":"$0"},null,null,{"v":0,"d":"$0"},{"$nulls":3},{"v":0,"d":"$0"},null,null,{"v":0,"d":"$0"},null,"ROOFING",{"$nulls":4},0,0,0,0,0,0,0,null,{"v":0,"d":"$0.00"},{"v":0,"d":"$0.00"},{"v":0,"d":"$0.00"}]
[{"$nulls":3},"Roof replacement-demo & replace, 3-tab",{"$nulls":14},"sq",null,{"v":135,"d":"135.00"},null,null,{"v":95,"d":"95.00"},{"$nulls":5},{"v":0,"d":"$0"},null,null,{"v":0,"d":"$0"},null,null,{"v":0,"d":"$0"},null,null,{"v":0,"d":"$0"},{"$nulls":3},{"v":0,"d":"$0"},null,null,{"v":0,"d":"$0"},null,"ROOFING",{"$nulls":4},0,0,0,0,0,0,0,null,{"v":0,"d":"$0.00"},{"v":0,"d":"$0.00"},{"v":0,"d":"$0.00"}]
[{"$nulls":3},"Roof replacement-demo & replace, architectural",{"$nulls":11},20,null,null,"sq",null,{"v":150,"d":"150.00"},null,null,{"v":115,"d":"115.00"},null,{"v":100,"d":"100.00"},{"$nulls":3},{"v":3000,"d":"$3,000"},null,null,{"v":2461,"d":"$2,461"},null,null,{"v":0,"d":"$0"},null,null,{"v":0,"d":"$0"},{"$nulls":3},{"v":5461,"d":"$5,461"},null,null,{"v":5461,"d":"$5,461"},null,"ROOFING",{"$nulls":4},3000,2461,0,0,5461,5461,0,null,{"v":3000,"d":"$3,000.00"},{"v":0,"d":"$0.00"},{"v":3000,"d":"$3,000.00"}]
[{"$nulls":3},"Premium for 3 layer tear off",{"$nulls":14},"sq","sq",{"v":35,"d":"35.00"},{"$nulls":8},{"v":0,"d":"$0"},null,null,{"v":0,"d":"$0"},null,null,{"v":0,"d":"$0"},null,null,{"v":0,"d":"$0"},{"$nulls":3},{"v":0,"d":"$0"},null,null,{"v":0,"d":"$0"},null,"ROOFING",{"$nulls":4},0,0,0,0,0,0,0,null,{"v":0,"d":"$0.00"},{"v":0,"d":"$0.00"},{"v":0,"d":"$0.00"}]
[{"$nulls":3},"Premium for steep pitch roof",{"$nulls":14},"sq","sq",{"v":25,"d":"25.00"},{"$nulls":8},{"v":0,"d":"$0"},null,null,{"v":0,"d":"$0"},null,null,{"v":0,"d":"$0"},null,null,{"v":0,"d":"$0"},{"$nulls":3},{"v":0,"d":"$0"},null,null,{"v":0,"d":"$0"},null,"ROOFING",{"$nulls":4},0,0,0,0,0,0,0,null,{"v":0,"d":"$0.00"},{"v":0,"d":"$0.00"},{"v":0,"d":"$0.00"}]
[{"$nulls":29},{"v":0,"d":"$0"},null,null,{"v":0,"d":"$0"},null,null,{"v":0,"d":"$0"},null,null,{"v":0,"d":"$0"},{"$nulls":3},{"v":0,"d":"$0"},null,null,{"v":0,"d":"$0"},null,"ROOFING",{"$nulls":4},0,0,0,0,0,0,0,null,{"v":0,"d":"$0.00"},{"v":0,"d":"$0.00"},{"v":0,"d":"$0.00"}]
[{"$nulls":3},"Wood Shingle Roof",{"$nulls":25},{"v":0,"d":"$0"},null,null,{"v":0,"d":"$0"},null,null,{"v":0,"d":"$0"},null,null,{"v":0,"d":"$0"},{"$nulls":3},{"v":0,"d":"$0"},null,null,{"v":0,"d":"$0"},null,"ROOFING",{"$nulls":4},0,0,0,0,0,0,0,null,{"v":0,"d":"$0.00"},{"v":0,"d":"$0.00"},{"v":0,"d":"$0.00"}]
[{"$nulls":3},"Roof repair/patch, wood",{"$nulls":14},"ea","ea",{"v":250,"d":"250.00"},null,null,{"v":100,"d":"100.00"},null,{"v":100,"d":"100.00"},{"$nulls":3},{"v":0,"d":"$0"},null,null,{"v":0,"d":"$0"},null,null,{"v":0,"d":"$0"},null,null,{"v":0,"d":"$0"},{"$nulls":3},{"v":0,"d":"$0"},null,null,{"v":0,"d":"$0"},null,"ROOFING",{"$nulls":4},0,0,0,0,0,0,0,null,{"v":0,"d":"$0.00"},{"v":0,"d":"$0.00"},{"v":0,"d":"$0.00"}]
[{"$nulls":3},"Roof replacement-demo & replace, 3-tab",{"$nulls":14},"sq",null,{"v":75,"d":"75.00"},null,null,{"v":50,"d":"50.00"},{"$nulls":5},{"v":0,"d":"$0"},null,null,{"v":0,"d":"$0"},null,null,{"v":0,"d":"$0"},null,null,{"v":0,"d":"$0"},{"$nulls":3},{"v":0,"d":"$0"},null,null,{"v":0,"d":"$0"},null,"ROOFING",{"$nulls":4},0,0,0,0,0,0,0,null,{"v":0,"d":"$0.00"},{"v":0,"d":"$0.00"},{"v":0,"d":"$0.00"}]
[{"$nulls":3},"Wood shingle, low end",{"$nulls":14},"sq",null,{"v":250,"d":"250.00"},null,null,{"v":175,"d":"175.00"},{"$nulls":5},{"v":0,"d":"$0"},null,null,{"v":0,"d":"$0"},null,null,{"v":0,"d":"$0"},null,null,{"v":0,"d":"$0"},{"$nulls":3},{"v":0,"d":"$0"},null,null,{"v":0,"d":"$0"},null,"ROOFING",{"$nulls":4},0,0,0,0,0,0,0,null,{"v":0,"d":"$0.00"},{"v":0,"d":"$0.00"},{"v":0,"d":"$0.00"}]
[{"$nulls":3},"Wood shingle, high end",{"$nulls":14},"sq",null,{"v":250,"d":"250.00"},null,null,{"v":350,"d":"350.00"},{"$nulls":5},{"v":0,"d":"$0"},null,null,{"v":0,"d":"$0"},null,null,{"v":0,"d":"$0"},null,null,{"v":0,"d":"$0"},{"$nulls":3},{"v":0,"d":"$0"},null,null,{"v":0,"d":"$0"},null,"ROOFING",{"$nulls":4},0,0,0,0,0,0,0,null,{"v":0,"d":"$0.00"},{"v":0,"d":"$0.00"},{"v":0,"d":"$0.00"}]
[{"$nulls":3},"Roof sheathing, plywood 1/2\", remove & install",{"$nulls":14},"sheet","sheet",{"v":15,"d":"15.00"},null,null,{"v":25,"d":"25.00"},null,{"v":25,"d":"25.00"},{"$nulls":3},{"v":0,"d":"$0"},null,null,{"v":0,"d":"$0"},null,null,{"v":0,"d":"$0"},null,null,{"v":0,"d":"$0"},{"$nulls":3},{"v":0,"d":"$0"},null,null,{"v":0,"d":"$0"},null,"ROOFING",{"$nulls":4},0,0,0,0,0,0,0,null,{"v":0,"d":"$0.00"},{"v":0,"d":"$0.00"},{"v":0,"d":"$0.00"}]
[{"$nulls":29},{"v":0,"d":"$0"},null,null,{"v":0,"d":"$0"},null,null,{"v":0,"d":"$0"},null,null,{"v":0,"d":"$0"},{"$nulls":3},{"v":0,"d":"$0"},null,null,{"v":0,"d":"$0"},null,"ROOFING",{"$nulls":4},0,0,0,0,0,0,0,null,{"v":0,"d":"$0.00"},{"v":0,"d":"$0.00"},{"v":0,"d":"$0.00"}]
[{"$nulls":3},"Slate/Clay Tile",{"$nulls":25},{"v":0,"d":"$0"},null,null,{"v":0,"d":"$0"},null,null,{"v":0,"d":"$0"},null,null,{"v":0,"d":"$0"},{"$nulls":3},{"v":0,"d":"$0"},null,null,{"v":0,"d":"$0"},null,"ROOFING",{"$nulls":4},0,0,0,0,0,0,0,null,{"v":0,"d":"$0.00"},{"v":0,"d":"$0.00"},{"v":0,"d":"$0.00"}]
[{"$nulls":3},"Roof replacement-demo & replace, slate",{"$nulls":14},"sq",null,{"v":300,"d":"300.00"},null,null,{"v":500,"d":"500.00"},{"$nulls":5},{"v":0,"d":"$0"},null,null,{"v":0,"d":"$0"},null,null,{"v":0,"d":"$0"},null,null,{"v":0,"d":"$0"},{"$nulls":3},{"v":0,"d":"$0"},null,null,{"v":0,"d":"$0"},null,"ROOFING",{"$nulls":4},0,0,0,0,0,0,0,null,{"v":0,"d":"$0.00"},{"v":0,"d":"$0.00"},{"v":0,"d":"$0.00"}]
[{"$nulls":29},{"v":0,"d":"$0"},null,null,{"v":0,"d":"$0"},null,null,{"v":0,"d":"$0"},null,null,{"v":0,"d":"$0"},{"$nulls":3},{"v":0,"d":"$0"},null,null,{"v":0,"d":"$0"},null,"ROOFING",{"$nulls":4},0,0,0,0,0,0,0,null,{"v":0,"d":"$0.00"},{"v":0,"d":"$0.00"},{"v":0,"d":"$0.00"}]
[{"$nulls":3},"Gutters & downspouts, aluminum",{"$nulls":14},"lf",null,{"v":4,"d":"4.00"},null,null,{"v":3,"d":"3.00"},{"$nulls":5},{"v":0,"d":"$0"},null,null,{"v":0,"d":"$0"},null,null,{"v":0,"d":"$0"},null,null,{"v":0,"d":"$0"},{"$nulls":3},{"v":0,"d":"$0"},null,null,{"v":0,"d":"$0"},null,"ROOFING",{"$nulls":4},0,0,0,0,{"$f":"SUM(BA421:BC421)","v":0},0,0,null,{"v":0,"d":"$0.00"},{"v":0,"d":"$0.00"},{"v":0,"d":"$0.00"}]
[{"$nulls":3},"Clean gutters & downspouts",{"$nulls":14},"hrs",null,{"v":20,"d":"20.00"},{"$nulls":8},{"v":0,"d":"$0"},null,null,{"v":0,"d":"$0"},null,null,{"v":0,"d":"$0"},null,null,{"v":0,"d":"$0"},{"$nulls":3},{"v":0,"d":"$0"},null,null,{"v":0,"d":"$0"},null,"ROOFING",{"$nulls":4},0,0,0,0,{"$f":"SUM(BA422:BC422)","v":0},0,0,null,{"v":0,"d":"$0.00"},{"v":0,"d":"$0.00"},{"v":0,"d":"$0.00"}]
[{"$nulls":29},{"v":0,"d":"$0"},null,null,{"v":0,"d":"$0"},null,null,{"v":0,"d":"$0"},null,null,{"v":0,"d":"$0"},{"$nulls":3},{"v":0,"d":"$0"},null,null,{"v":0,"d":"$0"},null,"ROOFING",{"$nulls":4},0,0,0,0,{"$f":"SUM(BA423:BC423)","v":0},0,0,null,{"v":0,"d":"$0.00"},{"v":0,"d":"$0.00"},{"v":0,"d":"$0.00"}]
[{"$nulls":29},{"v":0,"d":"$0"},null,null,{"v":0,"d":"$0"},null,null,{"v":0,"d":"$0"},null,null,{"v":0,"d":"$0"},{"$nulls":3},{"v":0,"d":"$0"},null,null,{"v":0,"d":"$0"},null,"ROOFING",{"$nulls":4},0,0,0,0,0,0,0,null,{"v":0,"d":"$0.00"},{"v":0,"d":"$0.00"},{"v":0,"d":"$0.00"}]
[{"$nulls":29},{"v":0,"d":"$0"},null,null,{"v":0,"d":"$0"},null,null,{"v":0,"d":"$0"},null,null,{"v":0,"d":"$0"},{"$nulls":3},{"v":0,"d":"$0"},null,null,{"v":0,"d":"$0"},null,"ROOFING",{"$nulls":4},0,0,0,0,0,0,0,null,{"v":0,"d":"$0.00"},{"v":0,"d":"$0.00"},{"v":0,"d":"$0.00"}]
[{"$nulls":29},{"v":0,"d":"$0"},null,null,{"v":0,"d":"$0"},null,null,{"v":0,"d":"$0"},null,null,{"v":0,"d":"$0"},{"$nulls":3},{"v":0,"d":"$0"},null,null,{"v":0,"d":"$0"},null,"ROOFING",{"$nulls":4},0,0,0,0,0,0,0,null,{"v":0,"d":"$0.00"},{"v":0,"d":"$0.00"},{"v":0,"d":"$0.00"}]
[{"$nulls":29},{"v":0,"d":"$0"},null,null,{"v":0,"d":"$0"},null,null,{"v":0,"d":"$0"},null,null,{"v":0,"d":"$0"},{"$nulls":3},{"v":0,"d":"$0"},null,null,{"v":0,"d":"$0"},null,"ROOFING",{"$nulls":4},0,0,0,0,0,0,0,null,{"v":0,"d":"$0.00"},{"v":0,"d":"$0.00"},{"v":0,"d":"$0.00"}]
[{"$nulls":29},{"v":0,"d":"$0"},null,null,{"v":0,"d":"$0"},null,null,{"v":0,"d":"$0"},null,null,{"v":0,"d":"$0"},{"$nulls":3},{"v":0,"d":"$0"},null,null,{"v":0,"d":"$0"},null,"ROOFING",{"$nulls":4},0,0,0,0,0,0,0,null,{"v":0,"d":"$0.00"},{"v":0,"d":"$0.00"},{"v":0,"d":"$0.00"}]
[{"$nulls":29},{"$f":"((P429*U429)-AM429)","v":{"v":0,"d":"$0"}},null,null,{"v":0,"d":"$0"},null,null,{"$f":"P429*AA429","v":{"v":0,"d":"$0"}},null,null,{"v":0,"d":"$0"},{"$nulls":3},{"$f":"SUM(AD429:AL429)","v":{"v":0,"d":"$0"}},null,null,{"$f":"SUM(AD429:AL429)","v":{"v":0,"d":"$0"}},null,"ROOFING",{"$nulls":4},{"$f":"AD429","v":0},{"$f":"AG429","v":0},{"$f":"AJ429","v":0},{"$f":"IF(B429=\"x\",1,0)","v":0},{"$f":"SUM(BA429:BC429)","v":0},{"$f":"AQ429","v":0},{"$f":"AM429","v":0},null,{"$f":"AD429","v":{"v":0,"d":"$0.00"}},{"$f":"AM429","v":{"v":0,"d":"$0.00"}},{"$f":"BJ429+BI429","v":{"v":0,"d":"$0.00"}}]
[{"$nulls":29},{"v":0,"d":"$0"},null,null,{"v":0,"d":"$0"},null,null,{"v":0,"d":"$0"},null,null,{"v":0,"d":"$0"},{"$nulls":3},{"v":0,"d":"$0"},null,null,{"v":0,"d":"$0"},null,"ROOFING",{"$nulls":4},0,0,0,0,0,0,0,null,{"v":0,"d":"$0.00"},{"v":0,"d":"$0.00"},{"v":0,"d":"$0.00"}]
[{"$nulls":29},{"v":0,"d":"$0"},null,null,{"v":0,"d":"$0"},null,null,{"v":0,"d":"$0"},null,null,{"v":0,"d":"$0"},{"$nulls":3},{"v":0,"d":"$0"},null,null,{"v":0,"d":"$0"},null,"ROOFING",{"$nulls":4},0,0,0,0,0,0,0,null,{"v":0,"d":"$0.00"},{"v":0,"d":"$0.00"},{"v":0,"d":"$0.00"}]
[{"$nulls":29},{"v":0,"d":"$0"},null,null,{"v":0,"d":"$0"},null,null,{"v":0,"d":"$0"},null,null,{"v":0,"d":"$0"},{"$nulls":3},{"v":0,"d":"$0"},null,null,{"v":0,"d":"$0"},null,"ROOFING",{"$nulls":4},0,0,0,0,0,0,0,null,{"v":0,"d":"$0.00"},{"v":0,"d":"$0.00"},{"v":0,"d":"$0.00"}]
[{"$nulls":29},{"v":0,"d":"$0"},null,null,{"v":0,"d":"$0"},null,null,{"v":0,"d":"$0"},null,null,{"v":0,"d":"$0"},{"$nulls":3},{"v":0,"d":"$0"},null,null,{"v":0,"d":"$0"},null,"ROOFING",{"$nulls":4},0,0,0,0,0,0,0,null,{"v":0,"d":"$0.00"},{"v":0,"d":"$0.00"},{"v":0,"d":"$0.00"}]
[{"$nulls":29},{"v":0,"d":"$0"},null,null,{"v":0,"d":"$0"},null,null,{"v":0,"d":"$0"},null,null,{"v":0,"d":"$0"},{"$nulls":3},{"v":0,"d":"$0"},null,null,{"v":0,"d":"$0"},null,"ROOFING",{"$nulls":4},0,0,0,0,0,0,0,null,{"v":0,"d":"$0.00"},{"v":0,"d":"$0.00"},{"v":0,"d":"$0.00"}]
[{"$nulls":29},{"v":0,"d":"$0"},null,null,{"v":0,"d":"$0"},null,null,{"v":0,"d":"$0"},null,null,{"v":0,"d":"$0"},{"$nulls":3},{"v":0,"d":"$0"},null,null,{"v":0,"d":"$0"},null,"ROOFING",{"$nulls":4},0,0,0,0,0,0,0,null,{"v":0,"d":"$0.00"},{"v":0,"d":"$0.00"},{"v":0,"d":"$0.00"}]
[{"$nulls":29},{"v":0,"d":"$0"},null,null,{"v":0,"d":"$0"},null,null,{"v":0,"d":"$0"},null,null,{"v":0,"d":"$0"},{"$nulls":3},{"v":0,"d":"$0"},null,null,{"v":0,"d":"$0"},null,"ROOFING",{"$nulls":4},0,0,0,0,0,0,0,null,{"v":0,"d":"$0.00"},{"v":0,"d":"$0.00"},{"v":0,"d":"$0.00"}]
[{"$nulls":29},{"v":0,"d":"$0"},null,null,{"v":0,"d":"$0"},null,null,{"v":0,"d":"$0"},null,null,{"v":0,"d":"$0"},{"$nulls":3},{"v":0,"d":"$0"},null,null,{"v":0,"d":"$0"},null,"ROOFING",{"$nulls":4},0,0,0,0,{"$f":"SUM(BA437:BC437)","v":0},0,0,null,{"v":0,"d":"$0.00"},{"v":0,"d":"$0.00"},{"v":0,"d":"$0.00"}]
[{"$nulls":29},{"v":0,"d":"$0"},null,null,{"v":0,"d":"$0"},null,null,{"v":0,"d":"$0"},null,null,{"v":0,"d":"$0"},{"$nulls":3},{"v":0,"d":"$0"},null,null,{"v":0,"d":"$0"},null,"ROOFING",{"$nulls":4},0,0,0,0,0,0,0,null,{"v":0,"d":"$0.00"},{"v":0,"d":"$0.00"},{"v":0,"d":"$0.00"}]
[{"$nulls":29},{"$f":"((P439*U439)-AM439)","v":{"v":0,"d":"$0"}},null,null,{"v":0,"d":"$0"},null,null,{"$f":"P439*AA439","v":{"v":0,"d":"$0"}},null,null,{"v":0,"d":"$0"},{"$nulls":3},{"$f":"SUM(AD439:AL439)","v":{"v":0,"d":"$0"}},null,null,{"$f":"SUM(AD439:AL439)","v":{"v":0,"d":"$0"}},null,"ROOFING",{"$nulls":4},{"$f":"AD439","v":0},{"$f":"AG439","v":0},{"$f":"AJ439","v":0},{"$f":"IF(B439=\"x\",1,0)","v":0},0,{"$f":"AQ439","v":0},{"$f":"AM439","v":0},null,{"$f":"AD439","v":{"v":0,"d":"$0.00"}},{"$f":"AM439","v":{"v":0,"d":"$0.00"}},{"$f":"BJ439+BI439","v":{"v":0,"d":"$0.00"}}]
[{"$nulls":29},{"$f":"((P440*U440)-AM440)","v":{"v":0,"d":"$0"}},null,null,{"v":0,"d":"$0"},null,null,{"$f":"P440*AA440","v":{"v":0,"d":"$0"}},null,null,{"v":0,"d":"$0"},{"$nulls":3},{"$f":"SUM(AD440:AL440)","v":{"v":0,"d":"$0"}},null,null,{"$f":"SUM(AD440:AL440)","v":{"v":0,"d":"$0"}},null,"ROOFING",{"$nulls":4},{"$f":"AD440","v":0},{"$f":"AG440","v":0},{"$f":"AJ440","v":0},{"$f":"IF(B440=\"x\",1,0)","v":0},0,{"$f":"AQ440","v":0},{"$f":"AM440","v":0},null,{"$f":"AD440","v":{"v":0,"d":"$0.00"}},{"$f":"AM440","v":{"v":0,"d":"$0.00"}},{"$f":"BJ440+BI440","v":{"v":0,"d":"$0.00"}}]
[{"$nulls":29},{"$f":"((P441*U441)-AM441)","v":{"v":0,"d":"$0"}},null,null,{"v":0,"d":"$0"},null,null,{"$f":"P441*AA441","v":{"v":0,"d":"$0"}},null,null,{"v":0,"d":"$0"},{"$nulls":3},{"$f":"SUM(AD441:AL441)","v":{"v":0,"d":"$0"}},null,null,{"$f":"SUM(AD441:AL441)","v":{"v":0,"d":"$0"}},null,"ROOFING",{"$nulls":4},{"$f":"AD441","v":0},{"$f":"AG441","v":0},{"$f":"AJ441","v":0},{"$f":"IF(B441=\"x\",1,0)","v":0},0,{"$f":"AQ441","v":0},{"$f":"AM441","v":0},null,{"$f":"AD441","v":{"v":0,"d":"$0.00"}},{"$f":"AM441","v":{"v":0,"d":"$0.00"}},{"$f":"BJ441+BI441","v":{"v":0,"d":"$0.00"}}]
[{"$nulls":29},{"$f":"((P442*U442)-AM442)","v":{"v":0,"d":"$0"}},null,null,{"v":0,"d":"$0"},null,null,{"$f":"P442*AA442","v":{"v":0,"d":"$0"}},null,null,{"v":0,"d":"$0"},{"$nulls":3},{"$f":"SUM(AD442:AL442)","v":{"v":0,"d":"$0"}},null,null,{"$f":"SUM(AD442:AL442)","v":{"v":0,"d":"$0"}},null,"ROOFING",{"$nulls":4},{"$f":"AD442","v":0},{"$f":"AG442","v":0},{"$f":"AJ442","v":0},{"$f":"IF(B442=\"x\",1,0)","v":0},0,{"$f":"AQ442","v":0},{"$f":"AM442","v":0},null,{"$f":"AD442","v":{"v":0,"d":"$0.00"}},{"$f":"AM442","v":{"v":0,"d":"$0.00"}},{"$f":"BJ442+BI442","v":{"v":0,"d":"$0.00"}}]
[{"$nulls":47},"ROOFING",{"$nulls":4},{"$f":"BA402","v":{"v":3000,"d":"$3,000"}},{"$f":"BB402","v":{"v":2461,"d":"$2,461"}},{"$f":"BC402","v":{"v":0,"d":"$0"}},{"$f":"BD402","v":{"v":0,"d":"$0"}},{"$f":"BE402","v":{"v":5461,"d":"$5,461"}}]
[{"$nulls":28},{"$f":"CONCATENATE(D402,\" \",\"TOTAL\")","v":"ROOFING TOTAL"},{"$f":"SUBTOTAL(9,AD403:AD443)","v":{"v":3000,"d":"$3,000"}},null,null,{"$f":"SUBTOTAL(9,AG403:AG443)","v":{"v":2461,"d":"$2,461"}},null,null,{"$f":"SUBTOTAL(9,AJ403:AJ443)","v":{"v":0,"d":"$0"}},null,null,{"$f":"SUBTOTAL(9,AM403:AM443)","v":{"v":0,"d":"$0"}},{"$nulls":3},{"$f":"SUBTOTAL(9,AQ403:AQ443)","v":{"v":5461,"d":"$5,461"}},null,null,{"$f":"SUM(AT400:AT435)","v":{"$error":"#REF!"}},null,"ROOFING",{"$nulls":4},{"$f":"BA402","v":3000},{"$f":"BB402","v":2461},{"$f":"BC402","v":0},{"$f":"BD402","v":0},{"$f":"BE402","v":5461},{"$f":"SUM(BF402:BF443)","v":10922},{"$f":"SUM(BG402:BG443)","v":0},null,{"$f":"SUM(BI403:BI443)","v":3000},{"$f":"SUM(BJ403:BJ443)","v":0},{"$f":"SUM(BK403:BK443)","v":3000}]
[{"$nulls":47},"ROOFING",{"$nulls":4},{"$f":"BA402","v":{"v":3000,"d":"$3,000"}},{"$f":"BB402","v":{"v":2461,"d":"$2,461"}},{"$f":"BC402","v":{"v":0,"d":"$0"}},{"$f":"BD402","v":{"v":0,"d":"$0"}},{"$f":"BE402","v":{"v":5461,"d":"$5,461"}}]
[{"$nulls":47},"ROOFING",{"$nulls":4},{"$f":"BA444","v":3000},{"$f":"BB444","v":2461},{"$f":"BC444","v":0},0,5461,10922,0]
["Hidden",null,null,{"$f":"T(Y75)","v":"EXTERIOR DOORS & WINDOWS"},{"$nulls":25},{"$f":"AD489","v":{"v":1625,"d":"$1,625"}},null,null,{"$f":"AG489","v":{"v":3210,"d":"$3,210"}},null,null,{"$f":"AJ489","v":{"v":0,"d":"$0"}},null,null,{"$f":"AM489","v":{"v":0,"d":"$0"}},{"$nulls":3},{"$f":"AQ489","v":{"v":4835,"d":"$4,835"}},null,null,{"$f":"SUM(#REF!)","v":{"$error":"#REF!"}},null,{"$f":"$D$447","v":"EXTERIOR DOORS & WINDOWS"},{"$nulls":4},{"$f":"SUM(BA448:BA487)","v":1625},{"$f":"SUM(BB448:BB487)","v":3210},{"$f":"SUM(BC448:BC487)","v":0},{"$f":"SUM(BD448:BD487)","v":0},{"$f":"SUM(BE448:BE487)","v":4835},{"$f":"AQ447","v":4835},{"$f":"AM447","v":0},null,{"$f":"AD447","v":{"v":1625,"d":"$1,625.00"}},{"$f":"AM447","v":{"v":0,"d":"$0.00"}},{"$f":"BJ447+BI447","v":{"v":1625,"d":"$1,625.00"}}]
[{"$nulls":3},"Exterior Doors",{"$nulls":25},{"$f":"((P448*U448)-AM448)","v":{"v":0,"d":"$0"}},null,null,{"$f":"P448*X448*(1+$Y$85)","v":{"v":0,"d":"$0"}},null,null,{"$f":"P448*AA448","v":{"v":0,"d":"$0"}},null,null,{"$f":"IF($B448=\"x\",$P448*$U448,0)","v":{"v":0,"d":"$0"}},{"$nulls":3},{"$f":"SUM(AD448:AL448)","v":{"v":0,"d":"$0"}},null,null,{"$f":"SUM(AD448:AL448)","v":{"v":0,"d":"$0"}},null,"EXTERIOR DOORS & WINDOWS",{"$nulls":4},{"$f":"AD448","v":0},{"$f":"AG448","v":0},{"$f":"AJ448","v":0},{"$f":"IF(B448=\"x\",1,0)","v":0},{"$f":"SUM(BA448:BC448)","v":0},0,0,null,{"$f":"AD448","v":{"v":0,"d":"$0.00"}},{"$f":"AM448","v":{"v":0,"d":"$0.00"}},{"$f":"BJ448+BI448","v":{"v":0,"d":"$0.00"}}]
[{"$nulls":3},"Exterior doors bid/allowance",{"$nulls":14},"ls","ls",{"$nulls":9},{"v":0,"d":"$0"},null,null,{"$f":"P449*X449*(1+$Y$85)","v":{"v":0,"d":"$0"}},null,null,{"v":0,"d":"$0"},null,null,{"v":0,"d":"$0"},{"$nulls":3},{"v":0,"d":"$0"},null,null,{"v":0,"d":"$0"},null,"EXTERIOR DOORS & WINDOWS",{"$nulls":4},0,{"$f":"AG449","v":0},{"$f":"AJ449","v":0},0,{"$f":"SUM(BA449:BC449)","v":0},0,0,null,{"$f":"AD449","v":{"v":0,"d":"$0.00"}},{"v":0,"d":"$0.00"},{"$f":"BJ449+BI449","v":{"v":0,"d":"$0.00"}}]
[{"$nulls":3},"Steel entry door,  single",{"$nulls":11},3,null,null,"ea","ea",{"v":200,"d":"200.00"},null,null,{"v":250,"d":"250.00"},null,{"v":175,"d":"175.00"},{"$nulls":3},{"v":600,"d":"$600"},null,null,{"v":802.5,"d":"$803"},null,null,{"v":0,"d":"$0"},null,null,{"v":0,"d":"$0"},{"$nulls":3},{"v":1402.5,"d":"$1,403"},null,null,{"v":1402.5,"d":"$1,403"},null,"EXTERIOR DOORS & WINDOWS",{"$nulls":4},600,802.5,0,0,1402.5,1402.5,0,null,{"v":600,"d":"$600.00"},{"v":0,"d":"$0.00"},{"v":600,"d":"$600.00"}]
[{"$nulls":3},"French patio door, pair",{"$nulls":14},"ea","ea",{"v":300,"d":"300.00"},null,null,{"v":500,"d":"500.00"},null,{"v":400,"d":"400.00"},{"$nulls":3},{"v":0,"d":"$0"},null,null,{"v":0,"d":"$0"},null,null,{"v":0,"d":"$0"},null,null,{"v":0,"d":"$0"},{"$nulls":3},{"v":0,"d":"$0"},null,null,{"v":0,"d":"$0"},null,"EXTERIOR DOORS & WINDOWS",{"$nulls":4},0,0,0,0,0,0,0,null,{"v":0,"d":"$0.00"},{"v":0,"d":"$0.00"},{"v":0,"d":"$0.00"}]
[{"$nulls":3},"Exterior door hardware w/ dead bolt ",{"$nulls":11},3,null,null,"ea","ea",{"v":25,"d":"25.00"},null,null,{"v":25,"d":"25.00"},null,{"v":25,"d":"25.00"},{"$nulls":3},{"v":75,"d":"$75"},null,null,{"v":80.25,"d":"$80"},null,null,{"v":0,"d":"$0"},null,null,{"v":0,"d":"$0"},{"$nulls":3},{"v":155.25,"d":"$155"},null,null,{"v":155.25,"d":"$155"},null,"EXTERIOR DOORS & WINDOWS",{"$nulls":4},75,80.25,0,0,155.25,155.25,0,null,{"v":75,"d":"$75.00"},{"v":0,"d":"$0.00"},{"v":75,"d":"$75.00"}]
[{"$nulls":3},"Glass storm door, single",{"$nulls":11},1,null,null,"ea","ea",{"v":125,"d":"125.00"},null,null,{"v":250,"d":"250.00"},null,{"v":225,"d":"225.00"},{"$nulls":3},{"v":125,"d":"$125"},null,null,{"v":267.5,"d":"$268"},null,null,{"v":0,"d":"$0"},null,null,{"v":0,"d":"$0"},{"$nulls":3},{"v":392.5,"d":"$393"},null,null,{"v":392.5,"d":"$393"},null,"EXTERIOR DOORS & WINDOWS",{"$nulls":4},125,267.5,0,0,392.5,392.5,0,null,{"v":125,"d":"$125.00"},{"v":0,"d":"$0.00"},{"v":125,"d":"$125.00"}]
[{"$nulls":3},"Sliding glass door, vinyl, double",{"$nulls":14},"ea","ea",{"v":300,"d":"300.00"},null,null,{"v":500,"d":"500.00"},null,{"v":400,"d":"400.00"},{"$nulls":3},{"v":0,"d":"$0"},null,null,{"v":0,"d":"$0"},null,null,{"v":0,"d":"$0"},null,null,{"v":0,"d":"$0"},{"$nulls":3},{"v":0,"d":"$0"},null,null,{"v":0,"d":"$0"},null,"EXTERIOR DOORS & WINDOWS",{"$nulls":4},0,0,0,0,0,0,0,null,{"v":0,"d":"$0.00"},{"v":0,"d":"$0.00"},{"v":0,"d":"$0.00"}]
[{"$nulls":29},{"v":0,"d":"$0"},null,null,{"v":0,"d":"$0"},null,null,{"v":0,"d":"$0"},null,null,{"v":0,"d":"$0"},{"$nulls":3},{"v":0,"d":"$0"},null,null,{"v":0,"d":"$0"},null,"EXTERIOR DOORS & WINDOWS",{"$nulls":4},0,0,0,0,0,0,0,null,{"v":0,"d":"$0.00"},{"v":0,"d":"$0.00"},{"v":0,"d":"$0.00"}]
[{"$nulls":29},{"v":0,"d":"$0"},null,null,{"v":0,"d":"$0"},null,null,{"v":0,"d":"$0"},null,null,{"v":0,"d":"$0"},{"$nulls":3},{"v":0,"d":"$0"},null,null,{"v":0,"d":"$0"},null,"EXTERIOR DOORS & WINDOWS",{"$nulls":4},0,0,0,0,0,0,0,null,{"v":0,"d":"$0.00"},{"v":0,"d":"$0.00"},{"v":0,"d":"$0.00"}]
[{"$nulls":3},"Windows",{"$nulls":25},{"v":0,"d":"$0"},null,null,{"v":0,"d":"$0"},null,null,{"v":0,"d":"$0"},null,null,{"v":0,"d":"$0"},{"$nulls":3},{"v":0,"d":"$0"},null,null,{"v":0,"d":"$0"},null,"EXTERIOR DOORS & WINDOWS",{"$nulls":4},0,0,0,0,0,0,0,null,{"v":0,"d":"$0.00"},{"v":0,"d":"$0.00"},{"v":0,"d":"$0.00"}]
[{"$nulls":3},"New windows, vinyl, average size",{"$nulls":11},11,null,null,"ea",null,{"v":75,"d":"75.00"},null,null,{"v":175,"d":"175.00"},{"$nulls":5},{"v":825,"d":"$825"},null,null,{"v":2059.75,"d":"$2,060"},null,null,{"v":0,"d":"$0"},null,null,{"v":0,"d":"$0"},{"$nulls":3},{"v":2884.75,"d":"$2,885"},null,null,{"v":2884.75,"d":"$2,885"},null,"EXTERIOR DOORS & WINDOWS",{"$nulls":4},825,2059.75,0,0,2884.75,2884.75,0,null,{"v":825,"d":"$825.00"},{"v":0,"d":"$0.00"},{"v":825,"d":"$825.00"}]
[{"$nulls":3},"Replacement windows, vinyl, average size",{"$nulls":14},"ea",null,{"v":75,"d":"75.00"},null,null,{"v":175,"d":"175.00"},{"$nulls":5},{"v":0,"d":"$0"},null,null,{"v":0,"d":"$0"},null,null,{"v":0,"d":"$0"},null,null,{"v":0,"d":"$0"},{"$nulls":3},{"v":0,"d":"$0"},null,null,{"v":0,"d":"$0"},null,"EXTERIOR DOORS & WINDOWS",{"$nulls":4},0,0,0,0,0,0,0,null,{"v":0,"d":"$0.00"},{"v":0,"d":"$0.00"},{"v":0,"d":"$0.00"}]
[{"$nulls":3},"Wood windows, average size",{"$nulls":14},"ea",null,{"v":75,"d":"75.00"},null,null,{"v":350,"d":"350.00"},{"$nulls":5},{"v":0,"d":"$0"},null,null,{"v":0,"d":"$0"},null,null,{"v":0,"d":"$0"},null,null,{"v":0,"d":"$0"},{"$nulls":3},{"v":0,"d":"$0"},null,null,{"v":0,"d":"$0"},null,"EXTERIOR DOORS & WINDOWS",{"$nulls":4},0,0,0,0,0,0,0,null,{"v":0,"d":"$0.00"},{"v":0,"d":"$0.00"},{"v":0,"d":"$0.00"}]
[{"$nulls":3},"Replace broken window pane",{"$nulls":14},"ea",null,{"v":75,"d":"75.00"},null,null,{"v":50,"d":"50.00"},{"$nulls":5},{"$f":"((P461*U461)-AM461)","v":{"v":0,"d":"$0"}},null,null,{"v":0,"d":"$0"},null,null,{"$f":"P461*AA461","v":{"v":0,"d":"$0"}},null,null,{"$f":"IF($B461=\"x\",$P461*$U461,0)","v":{"v":0,"d":"$0"}},{"$nulls":3},{"v":0,"d":"$0"},null,null,{"v":0,"d":"$0"},null,"EXTERIOR DOORS & WINDOWS",{"$nulls":4},0,0,0,0,0,0,0,null,{"v":0,"d":"$0.00"},{"v":0,"d":"$0.00"},{"v":0,"d":"$0.00"}]
[{"$nulls":3},"Replace broken screens",{"$nulls":14},"ea",null,{"v":10,"d":"10.00"},null,null,{"v":50,"d":"50.00"},{"$nulls":5},{"$f":"((P462*U462)-AM462)","v":{"v":0,"d":"$0"}},null,null,{"v":0,"d":"$0"},null,null,{"$f":"P462*AA462","v":{"v":0,"d":"$0"}},null,null,{"$f":"IF($B462=\"x\",$P462*$U462,0)","v":{"v":0,"d":"$0"}},{"$nulls":3},{"v":0,"d":"$0"},null,null,{"v":0,"d":"$0"},null,"EXTERIOR DOORS & WINDOWS",{"$nulls":4},0,0,0,0,0,0,0,null,{"v":0,"d":"$0.00"},{"v":0,"d":"$0.00"},{"v":0,"d":"$0.00"}]
[{"$nulls":3},"Repair broken screens",{"$nulls":14},"ea",null,{"v":10,"d":"10.00"},null,null,{"v":12,"d":"12.00"},{"$nulls":5},{"$f":"((P463*U463)-AM463)","v":{"v":0,"d":"$0"}},null,null,{"v":0,"d":"$0"},null,null,{"$f":"P463*AA463","v":{"v":0,"d":"$0"}},null,null,{"$f":"IF($B463=\"x\",$P463*$U463,0)","v":{"v":0,"d":"$0"}},{"$nulls":3},{"v":0,"d":"$0"},null,null,{"v":0,"d":"$0"},null,"EXTERIOR DOORS & WINDOWS",{"$nulls":4},0,0,0,0,0,0,0,null,{"v":0,"d":"$0.00"},{"v":0,"d":"$0.00"},{"v":0,"d":"$0.00"}]
[{"$nulls":3},"Skylight, 3x3, fixed",{"$nulls":14},"ea","ea",{"v":20,"d":"20.00"},null,null,{"v":300,"d":"300.00"},null,{"v":150,"d":"150.00"},{"$nulls":3},{"v":0,"d":"$0"},null,null,{"v":0,"d":"$0"},null,null,{"v":0,"d":"$0"},null,null,{"v":0,"d":"$0"},{"$nulls":3},{"v":0,"d":"$0"},null,null,{"v":0,"d":"$0"},null,"EXTERIOR DOORS & WINDOWS",{"$nulls":4},0,0,0,0,0,0,0,null,{"v":0,"d":"$0.00"},{"v":0,"d":"$0.00"},{"v":0,"d":"$0.00"}]
[{"$nulls":3},"Skylight, operable",{"$nulls":14},"ea","ea",{"v":200,"d":"200.00"},null,null,{"v":400,"d":"400.00"},{"$nulls":5},{"v":0,"d":"$0"},null,null,{"v":0,"d":"$0"},null,null,{"v":0,"d":"$0"},null,null,{"v":0,"d":"$0"},{"$nulls":3},{"v":0,"d":"$0"},null,null,{"v":0,"d":"$0"},null,"EXTERIOR DOORS & WINDOWS",{"$nulls":4},0,0,0,0,0,0,0,null,{"v":0,"d":"$0.00"},{"v":0,"d":"$0.00"},{"v":0,"d":"$0.00"}]
[{"$nulls":29},{"v":0,"d":"$0"},null,null,{"v":0,"d":"$0"},null,null,{"v":0,"d":"$0"},null,null,{"v":0,"d":"$0"},{"$nulls":3},{"v":0,"d":"$0"},null,null,{"v":0,"d":"$0"},null,"EXTERIOR DOORS & WINDOWS",{"$nulls":4},0,0,0,0,{"$f":"SUM(BA466:BC466)","v":0},0,0,null,{"v":0,"d":"$0.00"},{"v":0,"d":"$0.00"},{"v":0,"d":"$0.00"}]
[{"$nulls":29},{"v":0,"d":"$0"},null,null,{"v":0,"d":"$0"},null,null,{"v":0,"d":"$0"},null,null,{"v":0,"d":"$0"},{"$nulls":3},{"v":0,"d":"$0"},null,null,{"v":0,"d":"$0"},null,"EXTERIOR DOORS & WINDOWS",{"$nulls":4},0,0,0,0,0,0,0,null,{"v":0,"d":"$0.00"},{"v":0,"d":"$0.00"},{"v":0,"d":"$0.00"}]
[{"$nulls":29},{"v":0,"d":"$0"},null,null,{"v":0,"d":"$0"},null,null,{"v":0,"d":"$0"},null,null,{"v":0,"d":"$0"},{"$nulls":3},{"v":0,"d":"$0"},null,null,{"v":0,"d":"$0"},null,"EXTERIOR DOORS & WINDOWS",{"$nulls":4},0,0,0,0,0,0,0,null,{"v":0,"d":"$0.00"},{"v":0,"d":"$0.00"},{"v":0,"d":"$0.00"}]
[{"$nulls":29},{"v":0,"d":"$0"},null,null,{"v":0,"d":"$0"},null,null,{"v":0,"d":"$0"},null,null,{"v":0,"d":"$0"},{"$nulls":3},{"v":0,"d":"$0"},null,null,{"v":0,"d":"$0"},null,"EXTERIOR DOORS & WINDOWS",{"$nulls":4},0,0,0,0,0,0,0,null,{"v":0,"d":"$0.00"},{"v":0,"d":"$0.00"},{"v":0,"d":"$0.00"}]
[{"$nulls":29},{"$f":"((P470*U470)-AM470)","v":{"v":0,"d":"$0"}},null,null,{"v":0,"d":"$0"},null,null,{"$f":"P470*AA470","v":{"v":0,"d":"$0"}},null,null,{"v":0,"d":"$0"},{"$nulls":3},{"$f":"SUM(AD470:AL470)","v":{"v":0,"d":"$0"}},null,null,{"$f":"SUM(AD470:AL470)","v":{"v":0,"d":"$0"}},null,"EXTERIOR DOORS & WINDOWS",{"$nulls":4},{"$f":"AD470","v":0},{"$f":"AG470","v":0},{"$f":"AJ470","v":0},{"$f":"IF(B470=\"x\",1,0)","v":0},0,{"$f":"AQ470","v":0},{"$f":"AM470","v":0},null,{"$f":"AD470","v":{"v":0,"d":"$0.00"}},{"$f":"AM470","v":{"v":0,"d":"$0.00"}},{"$f":"BJ470+BI470","v":{"v":0,"d":"$0.00"}}]
[{"$nulls":29},{"v":0,"d":"$0"},null,null,{"v":0,"d":"$0"},null,null,{"v":0,"d":"$0"},null,null,{"v":0,"d":"$0"},{"$nulls":3},{"v":0,"d":"$0"},null,null,{"v":0,"d":"$0"},null,"EXTERIOR DOORS & WINDOWS",{"$nulls":4},0,0,0,0,0,0,0,null,{"v":0,"d":"$0.00"},{"v":0,"d":"$0.00"},{"v":0,"d":"$0.00"}]
[{"$nulls":29},{"v":0,"d":"$0"},null,null,{"v":0,"d":"$0"},null,null,{"v":0,"d":"$0"},null,null,{"v":0,"d":"$0"},{"$nulls":3},{"v":0,"d":"$0"},null,null,{"v":0,"d":"$0"},null,"EXTERIOR DOORS & WINDOWS",{"$nulls":4},0,0,0,0,0,0,0,null,{"v":0,"d":"$0.00"},{"v":0,"d":"$0.00"},{"v":0,"d":"$0.00"}]
[{"$nulls":29},{"v":0,"d":"$0"},null,null,{"v":0,"d":"$0"},null,null,{"v":0,"d":"$0"},null,null,{"v":0,"d":"$0"},{"$nulls":3},{"v":0,"d":"$0"},null,null,{"v":0,"d":"$0"},null,"EXTERIOR DOORS & WINDOWS",{"$nulls":4},0,0,0,0,0,0,0,null,{"v":0,"d":"$0.00"},{"v":0,"d":"$0.00"},{"v":0,"d":"$0.00"}]
[{"$nulls":29},{"v":0,"d":"$0"},null,null,{"v":0,"d":"$0"},null,null,{"v":0,"d":"$0"},null,null,{"v":0,"d":"$0"},{"$nulls":3},{"v":0,"d":"$0"},null,null,{"v":0,"d":"$0"},null,"EXTERIOR DOORS & WINDOWS",{"$nulls":4},0,0,0,0,0,0,0,null,{"v":0,"d":"$0.00"},{"v":0,"d":"$0.00"},{"v":0,"d":"$0.00"}]
[{"$nulls":29},{"v":0,"d":"$0"},null,null,{"v":0,"d":"$0"},null,null,{"v":0,"d":"$0"},null,null,{"v":0,"d":"$0"},{"$nulls":3},{"v":0,"d":"$0"},null,null,{"v":0,"d":"$0"},null,"EXTERIOR DOORS & WINDOWS",{"$nulls":4},0,0,0,0,0,0,0,null,{"v":0,"d":"$0.00"},{"v":0,"d":"$0.00"},{"v":0,"d":"$0.00"}]
[{"$nulls":29},{"$f":"((P476*U476)-AM476)","v":{"v":0,"d":"$0"}},null,null,{"v":0,"d":"$0"},null,null,{"$f":"P476*AA476","v":{"v":0,"d":"$0"}},null,null,{"v":0,"d":"$0"},{"$nulls":3},{"$f":"SUM(AD476:AL476)","v":{"v":0,"d":"$0"}},null,null,{"$f":"SUM(AD476:AL476)","v":{"v":0,"d":"$0"}},null,"EXTERIOR DOORS & WINDOWS",{"$nulls":4},{"$f":"AD476","v":0},{"$f":"AG476","v":0},{"$f":"AJ476","v":0},{"$f":"IF(B476=\"x\",1,0)","v":0},0,{"$f":"AQ476","v":0},{"$f":"AM476","v":0},null,{"$f":"AD476","v":{"v":0,"d":"$0.00"}},{"$f":"AM476","v":{"v":0,"d":"$0.00"}},{"$f":"BJ476+BI476","v":{"v":0,"d":"$0.00"}}]
[{"$nulls":29},{"$f":"((P477*U477)-AM477)","v":{"v":0,"d":"$0"}},null,null,{"v":0,"d":"$0"},null,null,{"$f":"P477*AA477","v":{"v":0,"d":"$0"}},null,null,{"v":0,"d":"$0"},{"$nulls":3},{"$f":"SUM(AD477:AL477)","v":{"v":0,"d":"$0"}},null,null,{"$f":"SUM(AD477:AL477)","v":{"v":0,"d":"$0"}},null,"EXTERIOR DOORS & WINDOWS",{"$nulls":4},{"$f":"AD477","v":0},{"$f":"AG477","v":0},{"$f":"AJ477","v":0},{"$f":"IF(B477=\"x\",1,0)","v":0},0,{"$f":"AQ477","v":0},{"$f":"AM477","v":0},null,{"$f":"AD477","v":{"v":0,"d":"$0.00"}},{"$f":"AM477","v":{"v":0,"d":"$0.00"}},{"$f":"BJ477+BI477","v":{"v":0,"d":"$0.00"}}]
[{"$nulls":29},{"$f":"((P478*U478)-AM478)","v":{"v":0,"d":"$0"}},null,null,{"v":0,"d":"$0"},null,null,{"$f":"P478*AA478","v":{"v":0,"d":"$0"}},null,null,{"v":0,"d":"$0"},{"$nulls":3},{"$f":"SUM(AD478:AL478)","v":{"v":0,"d":"$0"}},null,null,{"$f":"SUM(AD478:AL478)","v":{"v":0,"d":"$0"}},null,"EXTERIOR DOORS & WINDOWS",{"$nulls":4},{"$f":"AD478","v":0},{"$f":"AG478","v":0},{"$f":"AJ478","v":0},{"$f":"IF(B478=\"x\",1,0)","v":0},0,{"$f":"AQ478","v":0},{"$f":"AM478","v":0},null,{"$f":"AD478","v":{"v":0,"d":"$0.00"}},{"$f":"AM478","v":{"v":0,"d":"$0.00"}},{"$f":"BJ478+BI478","v":{"v":0,"d":"$0.00"}}]
[{"$nulls":29},{"$f":"((P479*U479)-AM479)","v":{"v":0,"d":"$0"}},null,null,{"v":0,"d":"$0"},null,null,{"$f":"P479*AA479","v":{"v":0,"d":"$0"}},null,null,{"v":0,"d":"$0"},{"$nulls":3},{"$f":"SUM(AD479:AL479)","v":{"v":0,"d":"$0"}},null,null,{"$f":"SUM(AD479:AL479)","v":{"v":0,"d":"$0"}},null,"EXTERIOR DOORS & WINDOWS",{"$nulls":4},{"$f":"AD479","v":0},{"$f":"AG479","v":0},{"$f":"AJ479","v":0},{"$f":"IF(B479=\"x\",1,0)","v":0},0,{"$f":"AQ479","v":0},{"$f":"AM479","v":0},null,{"$f":"AD479","v":{"v":0,"d":"$0.00"}},{"$f":"AM479","v":{"v":0,"d":"$0.00"}},{"$f":"BJ479+BI479","v":{"v":0,"d":"$0.00"}}]
[{"$nulls":29},{"v":0,"d":"$0"},null,null,{"v":0,"d":"$0"},null,null,{"v":0,"d":"$0"},null,null,{"v":0,"d":"$0"},{"$nulls":3},{"v":0,"d":"$0"},null,null,{"v":0,"d":"$0"},null,"EXTERIOR DOORS & WINDOWS",{"$nulls":4},0,0,0,0,0,0,0,null,{"v":0,"d":"$0.00"},{"v":0,"d":"$0.00"},{"v":0,"d":"$0.00"}]
[{"$nulls":29},{"v":0,"d":"$0"},null,null,{"v":0,"d":"$0"},null,null,{"v":0,"d":"$0"},null,null,{"v":0,"d":"$0"},{"$nulls":3},{"v":0,"d":"$0"},null,null,{"v":0,"d":"$0"},null,"EXTERIOR DOORS & WINDOWS",{"$nulls":4},0,0,0,0,0,0,0,null,{"v":0,"d":"$0.00"},{"v":0,"d":"$0.00"},{"v":0,"d":"$0.00"}]
[{"$nulls":29},{"$f":"((P482*U482)-AM482)","v":{"v":0,"d":"$0"}},null,null,{"v":0,"d":"$0"},null,null,{"$f":"P482*AA482","v":{"v":0,"d":"$0"}},null,null,{"v":0,"d":"$0"},{"$nulls":3},{"$f":"SUM(AD482:AL482)","v":{"v":0,"d":"$0"}},null,null,{"$f":"SUM(AD482:AL482)","v":{"v":0,"d":"$0"}},null,"EXTERIOR DOORS & WINDOWS",{"$nulls":4},{"$f":"AD482","v":0},{"$f":"AG482","v":0},{"$f":"AJ482","v":0},{"$f":"IF(B482=\"x\",1,0)","v":0},0,{"$f":"AQ482","v":0},{"$f":"AM482","v":0},null,{"$f":"AD482","v":{"v":0,"d":"$0.00"}},{"$f":"AM482","v":{"v":0,"d":"$0.00"}},{"$f":"BJ482+BI482","v":{"v":0,"d":"$0.00"}}]
[{"$nulls":29},{"$f":"((P483*U483)-AM483)","v":{"v":0,"d":"$0"}},null,null,{"v":0,"d":"$0"},null,null,{"$f":"P483*AA483","v":{"v":0,"d":"$0"}},null,null,{"v":0,"d":"$0"},{"$nulls":3},{"$f":"SUM(AD483:AL483)","v":{"v":0,"d":"$0"}},null,null,{"$f":"SUM(AD483:AL483)","v":{"v":0,"d":"$0"}},null,"EXTERIOR DOORS & WINDOWS",{"$nulls":4},{"$f":"AD483","v":0},{"$f":"AG483","v":0},{"$f":"AJ483","v":0},{"$f":"IF(B483=\"x\",1,0)","v":0},0,{"$f":"AQ483","v":0},{"$f":"AM483","v":0},null,{"$f":"AD483","v":{"v":0,"d":"$0.00"}},{"$f":"AM483","v":{"v":0,"d":"$0.00"}},{"$f":"BJ483+BI483","v":{"v":0,"d":"$0.00"}}]
[{"$nulls":29},{"$f":"((P484*U484)-AM484)","v":{"v":0,"d":"$0"}},null,null,{"v":0,"d":"$0"},null,null,{"$f":"P484*AA484","v":{"v":0,"d":"$0"}},null,null,{"v":0,"d":"$0"},{"$nulls":3},{"$f":"SUM(AD484:AL484)","v":{"v":0,"d":"$0"}},null,null,{"$f":"SUM(AD484:AL484)","v":{"v":0,"d":"$0"}},null,"EXTERIOR DOORS & WINDOWS",{"$nulls":4},{"$f":"AD484","v":0},{"$f":"AG484","v":0},{"$f":"AJ484","v":0},{"$f":"IF(B484=\"x\",1,0)","v":0},0,{"$f":"AQ484","v":0},{"$f":"AM484","v":0},null,{"$f":"AD484","v":{"v":0,"d":"$0.00"}},{"$f":"AM484","v":{"v":0,"d":"$0.00"}},{"$f":"BJ484+BI484","v":{"v":0,"d":"$0.00"}}]
[{"$nulls":29},{"$f":"((P485*U485)-AM485)","v":{"v":0,"d":"$0"}},null,null,{"v":0,"d":"$0"},null,null,{"$f":"P485*AA485","v":{"v":0,"d":"$0"}},null,null,{"v":0,"d":"$0"},{"$nulls":3},{"$f":"SUM(AD485:AL485)","v":{"v":0,"d":"$0"}},null,null,{"$f":"SUM(AD485:AL485)","v":{"v":0,"d":"$0"}},null,"EXTERIOR DOORS & WINDOWS",{"$nulls":4},{"$f":"AD485","v":0},{"$f":"AG485","v":0},{"$f":"AJ485","v":0},{"$f":"IF(B485=\"x\",1,0)","v":0},0,{"$f":"AQ485","v":0},{"$f":"AM485","v":0},null,{"$f":"AD485","v":{"v":0,"d":"$0.00"}},{"$f":"AM485","v":{"v":0,"d":"$0.00"}},{"$f":"BJ485+BI485","v":{"v":0,"d":"$0.00"}}]
[{"$nulls":29},{"v":0,"d":"$0"},null,null,{"v":0,"d":"$0"},null,null,{"v":0,"d":"$0"},null,null,{"v":0,"d":"$0"},{"$nulls":3},{"v":0,"d":"$0"},null,null,{"v":0,"d":"$0"},null,"EXTERIOR DOORS & WINDOWS",{"$nulls":4},0,0,0,0,0,0,0,null,{"v":0,"d":"$0.00"},{"v":0,"d":"$0.00"},{"v":0,"d":"$0.00"}]
[{"$nulls":29},{"v":0,"d":"$0"},null,null,{"v":0,"d":"$0"},null,null,{"v":0,"d":"$0"},null,null,{"v":0,"d":"$0"},{"$nulls":3},{"v":0,"d":"$0"},null,null,{"v":0,"d":"$0"},null,"EXTERIOR DOORS & WINDOWS",{"$nulls":4},0,0,0,0,0,0,0,null,{"v":0,"d":"$0.00"},{"v":0,"d":"$0.00"},{"v":0,"d":"$0.00"}]
[{"$nulls":47},"EXTERIOR DOORS & WINDOWS",{"$nulls":4},{"$f":"BA447","v":{"v":1625,"d":"$1,625"}},{"$f":"BB447","v":{"v":3210,"d":"$3,210"}},{"$f":"BC447","v":{"v":0,"d":"$0"}},{"$f":"BD447","v":{"v":0,"d":"$0"}},{"$f":"BE447","v":{"v":4835,"d":"$4,835"}}]
[{"$nulls":28},{"$f":"CONCATENATE(D447,\" \",\"TOTAL\")","v":"EXTERIOR DOORS & WINDOWS TOTAL"},{"$f":"SUBTOTAL(9,AD448:AD488)","v":{"v":1625,"d":"$1,625"}},null,null,{"$f":"SUBTOTAL(9,AG448:AG488)","v":{"v":3210,"d":"$3,210"}},null,null,{"$f":"SUBTOTAL(9,AJ448:AJ488)","v":{"v":0,"d":"$0"}},null,null,{"$f":"SUBTOTAL(9,AM448:AM488)","v":{"v":0,"d":"$0"}},{"$nulls":3},{"$f":"SUBTOTAL(9,AQ448:AQ488)","v":{"v":4835,"d":"$4,835"}},null,null,{"$f":"SUM(AT445:AT480)","v":{"$error":"#REF!"}},null,"EXTERIOR DOORS & WINDOWS",{"$nulls":4},{"$f":"BA447","v":1625},{"$f":"BB447","v":3210},{"$f":"BC447","v":0},{"$f":"BD447","v":0},{"$f":"BE447","v":4835},{"$f":"SUM(BF447:BF488)","v":9670},{"$f":"SUM(BG447:BG488)","v":0},null,{"$f":"SUM(BI448:BI488)","v":1625},{"$f":"SUM(BJ448:BJ488)","v":0},{"$f":"SUM(BK448:BK488)","v":1625}]
[{"$nulls":47},"EXTERIOR DOORS & WINDOWS",{"$nulls":4},{"$f":"BA447","v":{"v":1625,"d":"$1,625"}},{"$f":"BB447","v":{"v":3210,"d":"$3,210"}},{"$f":"BC447","v":{"v":0,"d":"$0"}},{"$f":"BD447","v":{"v":0,"d":"$0"}},{"$f":"BE447","v":{"v":4835,"d":"$4,835"}}]
[{"$nulls":47},"EXTERIOR DOORS & WINDOWS",{"$nulls":4},{"$f":"BA489","v":1625},{"$f":"BB489","v":3210},{"$f":"BC489","v":0},0,4835,9670,0]
["Hidden",null,null,{"$f":"T(Y76)","v":"GARAGE DOORS"},{"$nulls":25},{"$f":"AD534","v":{"v":400,"d":"$400"}},null,null,{"$f":"AG534","v":{"v":963,"d":"$963"}},null,null,{"$f":"AJ534","v":{"v":0,"d":"$0"}},null,null,{"$f":"AM534","v":{"v":0,"d":"$0"}},{"$nulls":3},{"$f":"AQ534","v":{"v":1363,"d":"$1,363"}},null,null,{"$f":"SUM(#REF!)","v":{"$error":"#REF!"}},null,{"$f":"$D$492","v":"GARAGE DOORS"},{"$nulls":4},{"$f":"SUM(BA493:BA532)","v":400},{"$f":"SUM(BB493:BB532)","v":963},{"$f":"SUM(BC493:BC532)","v":0},{"$f":"SUM(BD493:BD532)","v":0},{"$f":"SUM(BE493:BE532)","v":1363},{"$f":"AQ492","v":1363},{"$f":"AM492","v":0},null,{"$f":"AD492","v":{"v":400,"d":"$400.00"}},{"$f":"AM492","v":{"v":0,"d":"$0.00"}},{"$f":"BJ492+BI492","v":{"v":400,"d":"$400.00"}}]
[{"$nulls":3},"Garage Doors Bid/Allowance",{"$nulls":14},"ls","ea",{"$nulls":9},{"$f":"((P493*U493)-AM493)","v":{"v":0,"d":"$0"}},null,null,{"$f":"P493*X493*(1+$Y$85)","v":{"v":0,"d":"$0"}},null,null,{"$f":"P493*AA493","v":{"v":0,"d":"$0"}},null,null,{"$f":"IF($B493=\"x\",$P493*$U493,0)","v":{"v":0,"d":"$0"}},{"$nulls":3},{"$f":"SUM(AD493:AL493)","v":{"v":0,"d":"$0"}},null,null,{"$f":"SUM(AD493:AL493)","v":{"v":0,"d":"$0"}},null,"GARAGE DOORS",{"$nulls":4},{"$f":"AD493","v":0},{"$f":"AG493","v":0},{"$f":"AJ493","v":0},{"$f":"IF(B493=\"x\",1,0)","v":0},{"$f":"SUM(BA493:BC493)","v":0},0,0,null,{"$f":"AD493","v":{"v":0,"d":"$0.00"}},{"$f":"AM493","v":{"v":0,"d":"$0.00"}},{"$f":"BJ493+BI493","v":{"v":0,"d":"$0.00"}}]
[{"$nulls":3},"Garage Doors Only- 9'x7'  door, manual",{"$nulls":14},"ea","ea",{"v":200,"d":"200.00"},null,null,{"v":450,"d":"450.00"},null,{"v":400,"d":"400.00"},{"$nulls":3},{"v":0,"d":"$0"},null,null,{"$f":"P494*X494*(1+$Y$85)","v":{"v":0,"d":"$0"}},null,null,{"v":0,"d":"$0"},null,null,{"v":0,"d":"$0"},{"$nulls":3},{"v":0,"d":"$0"},null,null,{"v":0,"d":"$0"},null,"GARAGE DOORS",{"$nulls":4},0,{"$f":"AG494","v":0},{"$f":"AJ494","v":0},0,{"$f":"SUM(BA494:BC494)","v":0},0,0,null,{"$f":"AD494","v":{"v":0,"d":"$0.00"}},{"v":0,"d":"$0.00"},{"$f":"BJ494+BI494","v":{"v":0,"d":"$0.00"}}]
[{"$nulls":3},"Garage Doors Only- 16' door, manual",{"$nulls":11},1,null,null,"ea","ea",{"v":300,"d":"300.00"},null,null,{"v":750,"d":"750.00"},null,{"v":750,"d":"750.00"},{"$nulls":3},{"v":300,"d":"$300"},null,null,{"v":802.5,"d":"$803"},null,null,{"v":0,"d":"$0"},null,null,{"v":0,"d":"$0"},{"$nulls":3},{"v":1102.5,"d":"$1,103"},null,null,{"v":1102.5,"d":"$1,103"},null,"GARAGE DOORS",{"$nulls":4},300,802.5,0,0,1102.5,1102.5,0,null,{"v":300,"d":"$300.00"},{"v":0,"d":"$0.00"},{"v":300,"d":"$300.00"}]
[{"$nulls":3},"Garage Door Operator only",{"$nulls":11},1,null,null,"ea","ea",{"v":100,"d":"100.00"},null,null,{"v":150,"d":"150.00"},null,{"v":150,"d":"150.00"},{"$nulls":3},{"v":100,"d":"$100"},null,null,{"v":160.5,"d":"$161"},null,null,{"v":0,"d":"$0"},null,null,{"v":0,"d":"$0"},{"$nulls":3},{"v":260.5,"d":"$261"},null,null,{"v":260.5,"d":"$261"},null,"GARAGE DOORS",{"$nulls":4},100,160.5,0,0,260.5,260.5,0,null,{"v":100,"d":"$100.00"},{"v":0,"d":"$0.00"},{"v":100,"d":"$100.00"}]
[{"$nulls":3},"Replace springs for garage door",{"$nulls":14},"ea",null,{"v":100,"d":"100.00"},null,null,{"v":50,"d":"50.00"},{"$nulls":5},{"v":0,"d":"$0"},null,null,{"v":0,"d":"$0"},null,null,{"v":0,"d":"$0"},null,null,{"v":0,"d":"$0"},{"$nulls":3},{"v":0,"d":"$0"},null,null,{"v":0,"d":"$0"},null,"GARAGE DOORS",{"$nulls":4},0,0,0,0,0,0,0,null,{"v":0,"d":"$0.00"},{"v":0,"d":"$0.00"},{"v":0,"d":"$0.00"}]
[{"$nulls":29},{"v":0,"d":"$0"},null,null,{"v":0,"d":"$0"},null,null,{"v":0,"d":"$0"},null,null,{"v":0,"d":"$0"},{"$nulls":3},{"v":0,"d":"$0"},null,null,{"v":0,"d":"$0"},null,"GARAGE DOORS",{"$nulls":4},0,0,0,0,0,0,0,null,{"v":0,"d":"$0.00"},{"v":0,"d":"$0.00"},{"v":0,"d":"$0.00"}]
[{"$nulls":29},{"v":0,"d":"$0"},null,null,{"v":0,"d":"$0"},null,null,{"v":0,"d":"$0"},null,null,{"v":0,"d":"$0"},{"$nulls":3},{"v":0,"d":"$0"},null,null,{"v":0,"d":"$0"},null,"GARAGE DOORS",{"$nulls":4},0,0,0,0,0,0,0,null,{"v":0,"d":"$0.00"},{"v":0,"d":"$0.00"},{"v":0,"d":"$0.00"}]
[{"$nulls":29},{"v":0,"d":"$0"},null,null,{"v":0,"d":"$0"},null,null,{"v":0,"d":"$0"},null,null,{"v":0,"d":"$0"},{"$nulls":3},{"v":0,"d":"$0"},null,null,{"v":0,"d":"$0"},null,"GARAGE DOORS",{"$nulls":4},0,0,0,0,0,0,0,null,{"v":0,"d":"$0.00"},{"v":0,"d":"$0.00"},{"v":0,"d":"$0.00"}]
[{"$nulls":29},{"v":0,"d":"$0"},null,null,{"v":0,"d":"$0"},null,null,{"v":0,"d":"$0"},null,null,{"v":0,"d":"$0"},{"$nulls":3},{"v":0,"d":"$0"},null,null,{"v":0,"d":"$0"},null,"GARAGE DOORS",{"$nulls":4},0,0,0,0,0,0,0,null,{"v":0,"d":"$0.00"},{"v":0,"d":"$0.00"},{"v":0,"d":"$0.00"}]
[{"$nulls":29},{"v":0,"d":"$0"},null,null,{"v":0,"d":"$0"},null,null,{"v":0,"d":"$0"},null,null,{"v":0,"d":"$0"},{"$nulls":3},{"v":0,"d":"$0"},null,null,{"v":0,"d":"$0"},null,"GARAGE DOORS",{"$nulls":4},0,0,0,0,0,0,0,null,{"v":0,"d":"$0.00"},{"v":0,"d":"$0.00"},{"v":0,"d":"$0.00"}]
[{"$nulls":29},{"v":0,"d":"$0"},null,null,{"v":0,"d":"$0"},null,null,{"v":0,"d":"$0"},null,null,{"v":0,"d":"$0"},{"$nulls":3},{"v":0,"d":"$0"},null,null,{"v":0,"d":"$0"},null,"GARAGE DOORS",{"$nulls":4},0,0,0,0,0,0,0,null,{"v":0,"d":"$0.00"},{"v":0,"d":"$0.00"},{"v":0,"d":"$0.00"}]
[{"$nulls":29},{"v":0,"d":"$0"},null,null,{"v":0,"d":"$0"},null,null,{"v":0,"d":"$0"},null,null,{"v":0,"d":"$0"},{"$nulls":3},{"v":0,"d":"$0"},null,null,{"v":0,"d":"$0"},null,"GARAGE DOORS",{"$nulls":4},0,0,0,0,0,0,0,null,{"v":0,"d":"$0.00"},{"v":0,"d":"$0.00"},{"v":0,"d":"$0.00"}]
[{"$nulls":29},{"v":0,"d":"$0"},null,null,{"v":0,"d":"$0"},null,null,{"v":0,"d":"$0"},null,null,{"v":0,"d":"$0"},{"$nulls":3},{"v":0,"d":"$0"},null,null,{"v":0,"d":"$0"},null,"GARAGE DOORS",{"$nulls":4},0,0,0,0,0,0,0,null,{"v":0,"d":"$0.00"},{"v":0,"d":"$0.00"},{"v":0,"d":"$0.00"}]
[{"$nulls":29},{"v":0,"d":"$0"},null,null,{"v":0,"d":"$0"},null,null,{"v":0,"d":"$0"},null,null,{"v":0,"d":"$0"},{"$nulls":3},{"v":0,"d":"$0"},null,null,{"v":0,"d":"$0"},null,"GARAGE DOORS",{"$nulls":4},0,0,0,0,0,0,0,null,{"v":0,"d":"$0.00"},{"v":0,"d":"$0.00"},{"v":0,"d":"$0.00"}]
[{"$nulls":29},{"v":0,"d":"$0"},null,null,{"v":0,"d":"$0"},null,null,{"v":0,"d":"$0"},null,null,{"v":0,"d":"$0"},{"$nulls":3},{"v":0,"d":"$0"},null,null,{"v":0,"d":"$0"},null,"GARAGE DOORS",{"$nulls":4},0,0,0,0,0,0,0,null,{"v":0,"d":"$0.00"},{"v":0,"d":"$0.00"},{"v":0,"d":"$0.00"}]
[{"$nulls":29},{"v":0,"d":"$0"},null,null,{"v":0,"d":"$0"},null,null,{"v":0,"d":"$0"},null,null,{"v":0,"d":"$0"},{"$nulls":3},{"v":0,"d":"$0"},null,null,{"v":0,"d":"$0"},null,"GARAGE DOORS",{"$nulls":4},0,0,0,0,0,0,0,null,{"v":0,"d":"$0.00"},{"v":0,"d":"$0.00"},{"v":0,"d":"$0.00"}]
[{"$nulls":29},{"v":0,"d":"$0"},null,null,{"v":0,"d":"$0"},null,null,{"v":0,"d":"$0"},null,null,{"v":0,"d":"$0"},{"$nulls":3},{"v":0,"d":"$0"},null,null,{"v":0,"d":"$0"},null,"GARAGE DOORS",{"$nulls":4},0,0,0,0,0,0,0,null,{"v":0,"d":"$0.00"},{"v":0,"d":"$0.00"},{"v":0,"d":"$0.00"}]
[{"$nulls":29},{"v":0,"d":"$0"},null,null,{"v":0,"d":"$0"},null,null,{"v":0,"d":"$0"},null,null,{"v":0,"d":"$0"},{"$nulls":3},{"v":0,"d":"$0"},null,null,{"v":0,"d":"$0"},null,"GARAGE DOORS",{"$nulls":4},0,0,0,0,0,0,0,null,{"v":0,"d":"$0.00"},{"v":0,"d":"$0.00"},{"v":0,"d":"$0.00"}]
[{"$nulls":29},{"v":0,"d":"$0"},null,null,{"v":0,"d":"$0"},null,null,{"v":0,"d":"$0"},null,null,{"v":0,"d":"$0"},{"$nulls":3},{"v":0,"d":"$0"},null,null,{"v":0,"d":"$0"},null,"GARAGE DOORS",{"$nulls":4},0,0,0,0,{"$f":"SUM(BA511:BC511)","v":0},0,0,null,{"v":0,"d":"$0.00"},{"v":0,"d":"$0.00"},{"v":0,"d":"$0.00"}]
[{"$nulls":29},{"v":0,"d":"$0"},null,null,{"v":0,"d":"$0"},null,null,{"v":0,"d":"$0"},null,null,{"v":0,"d":"$0"},{"$nulls":3},{"v":0,"d":"$0"},null,null,{"v":0,"d":"$0"},null,"GARAGE DOORS",{"$nulls":4},0,0,0,0,{"$f":"SUM(BA512:BC512)","v":0},0,0,null,{"v":0,"d":"$0.00"},{"v":0,"d":"$0.00"},{"v":0,"d":"$0.00"}]
[{"$nulls":29},{"$f":"((P513*U513)-AM513)","v":{"v":0,"d":"$0"}},null,null,{"v":0,"d":"$0"},null,null,{"$f":"P513*AA513","v":{"v":0,"d":"$0"}},null,null,{"v":0,"d":"$0"},{"$nulls":3},{"$f":"SUM(AD513:AL513)","v":{"v":0,"d":"$0"}},null,null,{"$f":"SUM(AD513:AL513)","v":{"v":0,"d":"$0"}},null,"GARAGE DOORS",{"$nulls":4},{"$f":"AD513","v":0},{"$f":"AG513","v":0},{"$f":"AJ513","v":0},{"$f":"IF(B513=\"x\",1,0)","v":0},{"$f":"SUM(BA513:BC513)","v":0},{"$f":"AQ513","v":0},{"$f":"AM513","v":0},null,{"$f":"AD513","v":{"v":0,"d":"$0.00"}},{"$f":"AM513","v":{"v":0,"d":"$0.00"}},{"$f":"BJ513+BI513","v":{"v":0,"d":"$0.00"}}]
[{"$nulls":29},{"v":0,"d":"$0"},null,null,{"v":0,"d":"$0"},null,null,{"v":0,"d":"$0"},null,null,{"v":0,"d":"$0"},{"$nulls":3},{"v":0,"d":"$0"},null,null,{"v":0,"d":"$0"},null,"GARAGE DOORS",{"$nulls":4},0,{"$f":"AG514","v":0},{"$f":"AJ514","v":0},0,{"$f":"SUM(BA514:BC514)","v":0},0,0,null,{"$f":"AD514","v":{"v":0,"d":"$0.00"}},{"v":0,"d":"$0.00"},{"$f":"BJ514+BI514","v":{"v":0,"d":"$0.00"}}]
[{"$nulls":29},{"v":0,"d":"$0"},null,null,{"v":0,"d":"$0"},null,null,{"v":0,"d":"$0"},null,null,{"v":0,"d":"$0"},{"$nulls":3},{"v":0,"d":"$0"},null,null,{"v":0,"d":"$0"},null,"GARAGE DOORS",{"$nulls":4},0,0,0,0,0,0,0,null,{"v":0,"d":"$0.00"},{"v":0,"d":"$0.00"},{"v":0,"d":"$0.00"}]
[{"$nulls":29},{"v":0,"d":"$0"},null,null,{"v":0,"d":"$0"},null,null,{"v":0,"d":"$0"},null,null,{"v":0,"d":"$0"},{"$nulls":3},{"v":0,"d":"$0"},null,null,{"v":0,"d":"$0"},null,"GARAGE DOORS",{"$nulls":4},0,0,0,0,0,0,0,null,{"v":0,"d":"$0.00"},{"v":0,"d":"$0.00"},{"v":0,"d":"$0.00"}]
[{"$nulls":29},{"v":0,"d":"$0"},null,null,{"v":0,"d":"$0"},null,null,{"v":0,"d":"$0"},null,null,{"v":0,"d":"$0"},{"$nulls":3},{"v":0,"d":"$0"},null,null,{"v":0,"d":"$0"},null,"GARAGE DOORS",{"$nulls":4},0,0,0,0,0,0,0,null,{"v":0,"d":"$0.00"},{"v":0,"d":"$0.00"},{"v":0,"d":"$0.00"}]
[{"$nulls":29},{"v":0,"d":"$0"},null,null,{"v":0,"d":"$0"},null,null,{"v":0,"d":"$0"},null,null,{"v":0,"d":"$0"},{"$nulls":3},{"v":0,"d":"$0"},null,null,{"v":0,"d":"$0"},null,"GARAGE DOORS",{"$nulls":4},0,0,0,0,0,0,0,null,{"v":0,"d":"$0.00"},{"v":0,"d":"$0.00"},{"v":0,"d":"$0.00"}]
[{"$nulls":29},{"v":0,"d":"$0"},null,null,{"v":0,"d":"$0"},null,null,{"v":0,"d":"$0"},null,null,{"v":0,"d":"$0"},{"$nulls":3},{"v":0,"d":"$0"},null,null,{"v":0,"d":"$0"},null,"GARAGE DOORS",{"$nulls":4},0,0,0,0,0,0,0,null,{"v":0,"d":"$0.00"},{"v":0,"d":"$0.00"},{"v":0,"d":"$0.00"}]
[{"$nulls":29},{"v":0,"d":"$0"},null,null,{"v":0,"d":"$0"},null,null,{"v":0,"d":"$0"},null,null,{"v":0,"d":"$0"},{"$nulls":3},{"v":0,"d":"$0"},null,null,{"v":0,"d":"$0"},null,"GARAGE DOORS",{"$nulls":4},0,0,0,0,0,0,0,null,{"v":0,"d":"$0.00"},{"v":0,"d":"$0.00"},{"v":0,"d":"$0.00"}]
[{"$nulls":29},{"v":0,"d":"$0"},null,null,{"v":0,"d":"$0"},null,null,{"v":0,"d":"$0"},null,null,{"v":0,"d":"$0"},{"$nulls":3},{"v":0,"d":"$0"},null,null,{"v":0,"d":"$0"},null,"GARAGE DOORS",{"$nulls":4},0,0,0,0,0,0,0,null,{"v":0,"d":"$0.00"},{"v":0,"d":"$0.00"},{"v":0,"d":"$0.00"}]
[{"$nulls":29},{"v":0,"d":"$0"},null,null,{"v":0,"d":"$0"},null,null,{"v":0,"d":"$0"},null,null,{"v":0,"d":"$0"},{"$nulls":3},{"v":0,"d":"$0"},null,null,{"v":0,"d":"$0"},null,"GARAGE DOORS",{"$nulls":4},0,0,0,0,0,0,0,null,{"v":0,"d":"$0.00"},{"v":0,"d":"$0.00"},{"v":0,"d":"$0.00"}]
[{"$nulls":29},{"v":0,"d":"$0"},null,null,{"v":0,"d":"$0"},null,null,{"v":0,"d":"$0"},null,null,{"v":0,"d":"$0"},{"$nulls":3},{"v":0,"d":"$0"},null,null,{"v":0,"d":"$0"},null,"GARAGE DOORS",{"$nulls":4},0,0,0,0,0,0,0,null,{"v":0,"d":"$0.00"},{"v":0,"d":"$0.00"},{"v":0,"d":"$0.00"}]
[{"$nulls":29},{"v":0,"d":"$0"},null,null,{"v":0,"d":"$0"},null,null,{"v":0,"d":"$0"},null,null,{"v":0,"d":"$0"},{"$nulls":3},{"v":0,"d":"$0"},null,null,{"v":0,"d":"$0"},null,"GARAGE DOORS",{"$nulls":4},0,0,0,0,0,0,0,null,{"v":0,"d":"$0.00"},{"v":0,"d":"$0.00"},{"v":0,"d":"$0.00"}]
[{"$nulls":29},{"v":0,"d":"$0"},null,null,{"v":0,"d":"$0"},null,null,{"v":0,"d":"$0"},null,null,{"v":0,"d":"$0"},{"$nulls":3},{"v":0,"d":"$0"},null,null,{"v":0,"d":"$0"},null,"GARAGE DOORS",{"$nulls":4},0,0,0,0,0,0,0,null,{"v":0,"d":"$0.00"},{"v":0,"d":"$0.00"},{"v":0,"d":"$0.00"}]
[{"$nulls":29},{"v":0,"d":"$0"},null,null,{"v":0,"d":"$0"},null,null,{"v":0,"d":"$0"},null,null,{"v":0,"d":"$0"},{"$nulls":3},{"v":0,"d":"$0"},null,null,{"v":0,"d":"$0"},null,"GARAGE DOORS",{"$nulls":4},0,0,0,0,0,0,0,null,{"v":0,"d":"$0.00"},{"v":0,"d":"$0.00"},{"v":0,"d":"$0.00"}]
[{"$nulls":29},{"v":0,"d":"$0"},null,null,{"v":0,"d":"$0"},null,null,{"v":0,"d":"$0"},null,null,{"v":0,"d":"$0"},{"$nulls":3},{"v":0,"d":"$0"},null,null,{"v":0,"d":"$0"},null,"GARAGE DOORS",{"$nulls":4},0,0,0,0,0,0,0,null,{"v":0,"d":"$0.00"},{"v":0,"d":"$0.00"},{"v":0,"d":"$0.00"}]
[{"$nulls":29},{"v":0,"d":"$0"},null,null,{"v":0,"d":"$0"},null,null,{"v":0,"d":"$0"},null,null,{"v":0,"d":"$0"},{"$nulls":3},{"v":0,"d":"$0"},null,null,{"v":0,"d":"$0"},null,"GARAGE DOORS",{"$nulls":4},0,0,0,0,0,0,0,null,{"v":0,"d":"$0.00"},{"v":0,"d":"$0.00"},{"v":0,"d":"$0.00"}]
[{"$nulls":29},{"v":0,"d":"$0"},null,null,{"v":0,"d":"$0"},null,null,{"v":0,"d":"$0"},null,null,{"v":0,"d":"$0"},{"$nulls":3},{"v":0,"d":"$0"},null,null,{"v":0,"d":"$0"},null,"GARAGE DOORS",{"$nulls":4},0,0,0,0,0,0,0,null,{"v":0,"d":"$0.00"},{"v":0,"d":"$0.00"},{"v":0,"d":"$0.00"}]
[{"$nulls":29},{"v":0,"d":"$0"},null,null,{"v":0,"d":"$0"},null,null,{"v":0,"d":"$0"},null,null,{"v":0,"d":"$0"},{"$nulls":3},{"v":0,"d":"$0"},null,null,{"v":0,"d":"$0"},null,"GARAGE DOORS",{"$nulls":4},0,0,0,0,0,0,0,null,{"v":0,"d":"$0.00"},{"v":0,"d":"$0.00"},{"v":0,"d":"$0.00"}]
[{"$nulls":29},{"v":0,"d":"$0"},null,null,{"v":0,"d":"$0"},null,null,{"v":0,"d":"$0"},null,null,{"v":0,"d":"$0"},{"$nulls":3},{"v":0,"d":"$0"},null,null,{"v":0,"d":"$0"},null,"GARAGE DOORS",{"$nulls":4},0,0,0,0,{"$f":"SUM(BA531:BC531)","v":0},0,0,null,{"v":0,"d":"$0.00"},{"v":0,"d":"$0.00"},{"v":0,"d":"$0.00"}]
[{"$nulls":29},{"v":0,"d":"$0"},null,null,{"v":0,"d":"$0"},null,null,{"v":0,"d":"$0"},null,null,{"v":0,"d":"$0"},{"$nulls":3},{"v":0,"d":"$0"},null,null,{"v":0,"d":"$0"},null,"GARAGE DOORS",{"$nulls":4},0,0,0,0,{"$f":"SUM(BA532:BC532)","v":0},0,0,null,{"v":0,"d":"$0.00"},{"v":0,"d":"$0.00"},{"v":0,"d":"$0.00"}]
[{"$nulls":47},"GARAGE DOORS",{"$nulls":4},{"$f":"BA492","v":{"v":400,"d":"$400"}},{"$f":"BB492","v":{"v":963,"d":"$963"}},{"$f":"BC492","v":{"v":0,"d":"$0"}},{"$f":"BD492","v":{"v":0,"d":"$0"}},{"$f":"BE492","v":{"v":1363,"d":"$1,363"}}]
[{"$nulls":28},{"$f":"CONCATENATE(D492,\" \",\"TOTAL\")","v":"GARAGE DOORS TOTAL"},{"$f":"SUBTOTAL(9,AD493:AD533)","v":{"v":400,"d":"$400"}},null,null,{"$f":"SUBTOTAL(9,AG493:AG533)","v":{"v":963,"d":"$963"}},null,null,{"$f":"SUBTOTAL(9,AJ493:AJ533)","v":{"v":0,"d":"$0"}},null,null,{"$f":"SUBTOTAL(9,AM493:AM533)","v":{"v":0,"d":"$0"}},{"$nulls":3},{"$f":"SUBTOTAL(9,AQ493:AQ533)","v":{"v":1363,"d":"$1,363"}},null,null,{"$f":"SUM(AT490:AT525)","v":{"$error":"#REF!"}},null,"GARAGE DOORS",{"$nulls":4},{"$f":"BA492","v":400},{"$f":"BB492","v":963},{"$f":"BC492","v":0},{"$f":"BD492","v":0},{"$f":"BE492","v":1363},{"$f":"SUM(BF492:BF533)","v":2726},{"$f":"SUM(BG492:BG533)","v":0},null,{"$f":"SUM(BI493:BI533)","v":400},{"$f":"SUM(BJ493:BJ533)","v":0},{"$f":"SUM(BK493:BK533)","v":400}]
[{"$nulls":47},"GARAGE DOORS",{"$nulls":4},{"$f":"BA492","v":{"v":400,"d":"$400"}},{"$f":"BB492","v":{"v":963,"d":"$963"}},{"$f":"BC492","v":{"v":0,"d":"$0"}},{"$f":"BD492","v":{"v":0,"d":"$0"}},{"$f":"BE492","v":{"v":1363,"d":"$1,363"}}]
[{"$nulls":47},"GARAGE DOORS",{"$nulls":4},{"$f":"BA534","v":400},{"$f":"BB534","v":963},{"$f":"BC534","v":0},0,1363,2726,0]
["Hidden",null,null,{"$f":"T(Y77)","v":"LANDSCAPING"},{"$nulls":25},{"$f":"AD579","v":{"v":250,"d":"$250"}},null,null,{"$f":"AG579","v":{"v":321,"d":"$321"}},null,null,{"$f":"AJ579","v":{"v":0,"d":"$0"}},null,null,{"$f":"AM579","v":{"v":0,"d":"$0"}},{"$nulls":3},{"$f":"AQ579","v":{"v":571,"d":"$571"}},null,null,{"$f":"SUM(#REF!)","v":{"$error":"#REF!"}},null,{"$f":"$D$537","v":"LANDSCAPING"},{"$nulls":4},{"$f":"SUM(BA538:BA577)","v":250},{"$f":"SUM(BB538:BB577)","v":321},{"$f":"SUM(BC538:BC577)","v":0},{"$f":"SUM(BD538:BD577)","v":0},{"$f":"SUM(BE538:BE577)","v":571},{"$f":"AQ537","v":571},{"$f":"AM537","v":0},null,{"$f":"AD537","v":{"v":250,"d":"$250.00"}},{"$f":"AM537","v":{"v":0,"d":"$0.00"}},{"$f":"BJ537+BI537","v":{"v":250,"d":"$250.00"}}]
[{"$nulls":3},"Landscaping bid/allowance, trees, bushes, flowers",{"$nulls":11},1,null,null,"ls","ls",{"v":250,"d":"250.00"},null,null,{"v":300,"d":"300.00"},{"$nulls":5},{"$f":"((P538*U538)-AM538)","v":{"v":250,"d":"$250"}},null,null,{"$f":"P538*X538*(1+$Y$85)","v":{"v":321,"d":"$321"}},null,null,{"$f":"P538*AA538","v":{"v":0,"d":"$0"}},null,null,{"$f":"IF($B538=\"x\",$P538*$U538,0)","v":{"v":0,"d":"$0"}},{"$nulls":3},{"$f":"SUM(AD538:AL538)","v":{"v":571,"d":"$571"}},null,null,{"$f":"SUM(AD538:AL538)","v":{"v":571,"d":"$571"}},null,"LANDSCAPING",{"$nulls":4},{"$f":"AD538","v":250},{"$f":"AG538","v":321},{"$f":"AJ538","v":0},{"$f":"IF(B538=\"x\",1,0)","v":0},{"$f":"SUM(BA538:BC538)","v":571},{"$f":"AQ538","v":571},{"$f":"AM538","v":0},null,{"$f":"AD538","v":{"v":250,"d":"$250.00"}},{"$f":"AM538","v":{"v":0,"d":"$0.00"}},{"$f":"BJ538+BI538","v":{"v":250,"d":"$250.00"}}]
[{"$nulls":3},"Sod",{"$nulls":14},"sf","sf",0.15,null,null,0.25,null,0.25,{"$nulls":3},{"v":0,"d":"$0"},null,null,{"$f":"P539*X539*(1+$Y$85)","v":{"v":0,"d":"$0"}},null,null,{"v":0,"d":"$0"},null,null,{"v":0,"d":"$0"},{"$nulls":3},{"v":0,"d":"$0"},null,null,{"v":0,"d":"$0"},null,"LANDSCAPING",{"$nulls":4},0,{"$f":"AG539","v":0},{"$f":"AJ539","v":0},0,{"$f":"SUM(BA539:BC539)","v":0},0,0,null,{"$f":"AD539","v":{"v":0,"d":"$0.00"}},{"v":0,"d":"$0.00"},{"$f":"BJ539+BI539","v":{"v":0,"d":"$0.00"}}]
[{"$nulls":3},"Seeding",{"$nulls":14},"sf","sf",0.05,null,null,0.05,null,0.05,{"$nulls":3},{"v":0,"d":"$0"},null,null,{"v":0,"d":"$0"},null,null,{"v":0,"d":"$0"},null,null,{"v":0,"d":"$0"},{"$nulls":3},{"v":0,"d":"$0"},null,null,{"v":0,"d":"$0"},null,"LANDSCAPING",{"$nulls":4},0,0,0,0,0,0,0,null,{"v":0,"d":"$0.00"},{"v":0,"d":"$0.00"},{"v":0,"d":"$0.00"}]
[{"$nulls":3},"Shrubs/plantings, 1 gallon",{"$nulls":14},"ea","ea",{"v":10,"d":"10.00"},null,null,{"v":10,"d":"10.00"},null,{"v":10,"d":"10.00"},{"$nulls":3},{"v":0,"d":"$0"},null,null,{"v":0,"d":"$0"},null,null,{"v":0,"d":"$0"},null,null,{"v":0,"d":"$0"},{"$nulls":3},{"v":0,"d":"$0"},null,null,{"v":0,"d":"$0"},null,"LANDSCAPING",{"$nulls":4},0,0,0,0,0,0,0,null,{"v":0,"d":"$0.00"},{"v":0,"d":"$0.00"},{"v":0,"d":"$0.00"}]
[{"$nulls":3},"Shrubs/plantings, 2 gallon",{"$nulls":14},"ea","ea",{"v":15,"d":"15.00"},null,null,{"v":20,"d":"20.00"},null,{"v":25,"d":"25.00"},{"$nulls":3},{"v":0,"d":"$0"},null,null,{"v":0,"d":"$0"},null,null,{"v":0,"d":"$0"},null,null,{"v":0,"d":"$0"},{"$nulls":3},{"v":0,"d":"$0"},null,null,{"v":0,"d":"$0"},null,"LANDSCAPING",{"$nulls":4},0,0,0,0,0,0,0,null,{"v":0,"d":"$0.00"},{"v":0,"d":"$0.00"},{"v":0,"d":"$0.00"}]
[{"$nulls":3},"Shrubs/plantings, 5 gallon",{"$nulls":14},"ea",null,{"v":25,"d":"25.00"},null,null,{"v":35,"d":"35.00"},{"$nulls":5},{"v":0,"d":"$0"},null,null,{"v":0,"d":"$0"},null,null,{"v":0,"d":"$0"},null,null,{"v":0,"d":"$0"},{"$nulls":3},{"v":0,"d":"$0"},null,null,{"v":0,"d":"$0"},null,"LANDSCAPING",{"$nulls":4},0,0,0,0,0,0,0,null,{"v":0,"d":"$0.00"},{"v":0,"d":"$0.00"},{"v":0,"d":"$0.00"}]
[{"$nulls":3},"Small trees, 1-2\" caliper, 10 gallon",{"$nulls":14},"ea","ea",{"v":45,"d":"45.00"},null,null,{"v":50,"d":"50.00"},null,{"v":85,"d":"85.00"},{"$nulls":3},{"v":0,"d":"$0"},null,null,{"v":0,"d":"$0"},null,null,{"v":0,"d":"$0"},null,null,{"v":0,"d":"$0"},{"$nulls":3},{"v":0,"d":"$0"},null,null,{"v":0,"d":"$0"},null,"LANDSCAPING",{"$nulls":4},0,0,0,0,0,0,0,null,{"v":0,"d":"$0.00"},{"v":0,"d":"$0.00"},{"v":0,"d":"$0.00"}]
[{"$nulls":3},"Small trees, 1-2\" 15 gallon",{"$nulls":14},"ea",null,{"v":50,"d":"50.00"},null,null,{"v":75,"d":"75.00"},{"$nulls":5},{"v":0,"d":"$0"},null,null,{"v":0,"d":"$0"},null,null,{"v":0,"d":"$0"},null,null,{"v":0,"d":"$0"},{"$nulls":3},{"v":0,"d":"$0"},null,null,{"v":0,"d":"$0"},null,"LANDSCAPING",{"$nulls":4},0,0,0,0,0,0,0,null,{"v":0,"d":"$0.00"},{"v":0,"d":"$0.00"},{"v":0,"d":"$0.00"}]
[{"$nulls":3},"36\" box tree",{"$nulls":14},"ea",null,{"v":75,"d":"75.00"},null,null,{"v":200,"d":"200.00"},{"$nulls":5},{"v":0,"d":"$0"},null,null,{"v":0,"d":"$0"},null,null,{"v":0,"d":"$0"},null,null,{"v":0,"d":"$0"},{"$nulls":3},{"v":0,"d":"$0"},null,null,{"v":0,"d":"$0"},null,"LANDSCAPING",{"$nulls":4},0,0,0,0,0,0,0,null,{"v":0,"d":"$0.00"},{"v":0,"d":"$0.00"},{"v":0,"d":"$0.00"}]
[{"$nulls":3},"Mulch, standard 3\" thick",{"$nulls":14},"sf","sf",0.25,null,null,{"v":0.5,"d":"0.50"},null,{"v":0.5,"d":"0.50"},{"$nulls":3},{"v":0,"d":"$0"},null,null,{"v":0,"d":"$0"},null,null,{"v":0,"d":"$0"},null,null,{"v":0,"d":"$0"},{"$nulls":3},{"v":0,"d":"$0"},null,null,{"v":0,"d":"$0"},null,"LANDSCAPING",{"$nulls":4},0,0,0,0,0,0,0,null,{"v":0,"d":"$0.00"},{"v":0,"d":"$0.00"},{"v":0,"d":"$0.00"}]
[{"$nulls":3},"Landscape rock, 3/4\"",{"$nulls":14},"sf",null,{"v":0.5,"d":"0.50"},null,null,{"v":1,"d":"1.00"},{"$nulls":5},{"v":0,"d":"$0"},null,null,{"v":0,"d":"$0"},null,null,{"v":0,"d":"$0"},null,null,{"v":0,"d":"$0"},{"$nulls":3},{"v":0,"d":"$0"},null,null,{"v":0,"d":"$0"},null,"LANDSCAPING",{"$nulls":4},0,0,0,0,0,0,0,null,{"v":0,"d":"$0.00"},{"v":0,"d":"$0.00"},{"v":0,"d":"$0.00"}]
[{"$nulls":3},"Cobble stone rock",{"$nulls":14},"sf",null,{"v":0.5,"d":"0.50"},null,null,1.75,{"$nulls":5},{"v":0,"d":"$0"},null,null,{"v":0,"d":"$0"},null,null,{"v":0,"d":"$0"},null,null,{"v":0,"d":"$0"},{"$nulls":3},{"v":0,"d":"$0"},null,null,{"v":0,"d":"$0"},null,"LANDSCAPING",{"$nulls":4},0,0,0,0,0,0,0,null,{"v":0,"d":"$0.00"},{"v":0,"d":"$0.00"},{"v":0,"d":"$0.00"}]
[{"$nulls":3},"Tree removal, per tree",{"$nulls":14},"ea","ea",{"v":500,"d":"500.00"},{"$nulls":8},{"v":0,"d":"$0"},null,null,{"v":0,"d":"$0"},null,null,{"v":0,"d":"$0"},null,null,{"v":0,"d":"$0"},{"$nulls":3},{"v":0,"d":"$0"},null,null,{"v":0,"d":"$0"},null,"LANDSCAPING",{"$nulls":4},0,0,0,0,0,0,0,null,{"v":0,"d":"$0.00"},{"v":0,"d":"$0.00"},{"v":0,"d":"$0.00"}]
[{"$nulls":3},"Stacked, retaining wall",{"$nulls":14},"sf","sf",{"v":10,"d":"10.00"},null,null,{"v":7.5,"d":"7.50"},null,{"v":7.5,"d":"7.50"},{"$nulls":3},{"v":0,"d":"$0"},null,null,{"v":0,"d":"$0"},null,null,{"v":0,"d":"$0"},null,null,{"v":0,"d":"$0"},{"$nulls":3},{"v":0,"d":"$0"},null,null,{"v":0,"d":"$0"},null,"LANDSCAPING",{"$nulls":4},0,0,0,0,0,0,0,null,{"v":0,"d":"$0.00"},{"v":0,"d":"$0.00"},{"v":0,"d":"$0.00"}]
[{"$nulls":29},{"v":0,"d":"$0"},null,null,{"v":0,"d":"$0"},null,null,{"v":0,"d":"$0"},null,null,{"v":0,"d":"$0"},{"$nulls":3},{"v":0,"d":"$0"},null,null,{"v":0,"d":"$0"},null,"LANDSCAPING",{"$nulls":4},0,0,0,0,0,0,0,null,{"v":0,"d":"$0.00"},{"v":0,"d":"$0.00"},{"v":0,"d":"$0.00"}]
[{"$nulls":29},{"v":0,"d":"$0"},null,null,{"v":0,"d":"$0"},null,null,{"v":0,"d":"$0"},null,null,{"v":0,"d":"$0"},{"$nulls":3},{"v":0,"d":"$0"},null,null,{"v":0,"d":"$0"},null,"LANDSCAPING",{"$nulls":4},0,0,0,0,0,0,0,null,{"v":0,"d":"$0.00"},{"v":0,"d":"$0.00"},{"v":0,"d":"$0.00"}]
[{"$nulls":29},{"v":0,"d":"$0"},null,null,{"v":0,"d":"$0"},null,null,{"v":0,"d":"$0"},null,null,{"v":0,"d":"$0"},{"$nulls":3},{"v":0,"d":"$0"},null,null,{"v":0,"d":"$0"},null,"LANDSCAPING",{"$nulls":4},0,0,0,0,0,0,0,null,{"v":0,"d":"$0.00"},{"v":0,"d":"$0.00"},{"v":0,"d":"$0.00"}]
[{"$nulls":29},{"v":0,"d":"$0"},null,null,{"v":0,"d":"$0"},null,null,{"v":0,"d":"$0"},null,null,{"v":0,"d":"$0"},{"$nulls":3},{"v":0,"d":"$0"},null,null,{"v":0,"d":"$0"},null,"LANDSCAPING",{"$nulls":4},0,0,0,0,0,0,0,null,{"v":0,"d":"$0.00"},{"v":0,"d":"$0.00"},{"v":0,"d":"$0.00"}]
[{"$nulls":29},{"v":0,"d":"$0"},null,null,{"v":0,"d":"$0"},null,null,{"v":0,"d":"$0"},null,null,{"v":0,"d":"$0"},{"$nulls":3},{"v":0,"d":"$0"},null,null,{"v":0,"d":"$0"},null,"LANDSCAPING",{"$nulls":4},0,0,0,0,{"$f":"SUM(BA556:BC556)","v":0},0,0,null,{"v":0,"d":"$0.00"},{"v":0,"d":"$0.00"},{"v":0,"d":"$0.00"}]
[{"$nulls":29},{"v":0,"d":"$0"},null,null,{"v":0,"d":"$0"},null,null,{"v":0,"d":"$0"},null,null,{"v":0,"d":"$0"},{"$nulls":3},{"v":0,"d":"$0"},null,null,{"v":0,"d":"$0"},null,"LANDSCAPING",{"$nulls":4},0,0,0,0,{"$f":"SUM(BA557:BC557)","v":0},0,0,null,{"v":0,"d":"$0.00"},{"v":0,"d":"$0.00"},{"v":0,"d":"$0.00"}]
[{"$nulls":29},{"$f":"((P558*U558)-AM558)","v":{"v":0,"d":"$0"}},null,null,{"v":0,"d":"$0"},null,null,{"$f":"P558*AA558","v":{"v":0,"d":"$0"}},null,null,{"v":0,"d":"$0"},{"$nulls":3},{"$f":"SUM(AD558:AL558)","v":{"v":0,"d":"$0"}},null,null,{"$f":"SUM(AD558:AL558)","v":{"v":0,"d":"$0"}},null,"LANDSCAPING",{"$nulls":4},{"$f":"AD558","v":0},{"$f":"AG558","v":0},{"$f":"AJ558","v":0},{"$f":"IF(B558=\"x\",1,0)","v":0},{"$f":"SUM(BA558:BC558)","v":0},{"$f":"AQ558","v":0},{"$f":"AM558","v":0},null,{"$f":"AD558","v":{"v":0,"d":"$0.00"}},{"$f":"AM558","v":{"v":0,"d":"$0.00"}},{"$f":"BJ558+BI558","v":{"v":0,"d":"$0.00"}}]
[{"$nulls":29},{"v":0,"d":"$0"},null,null,{"v":0,"d":"$0"},null,null,{"v":0,"d":"$0"},null,null,{"v":0,"d":"$0"},{"$nulls":3},{"v":0,"d":"$0"},null,null,{"v":0,"d":"$0"},null,"LANDSCAPING",{"$nulls":4},0,{"$f":"AG559","v":0},{"$f":"AJ559","v":0},0,{"$f":"SUM(BA559:BC559)","v":0},0,0,null,{"$f":"AD559","v":{"v":0,"d":"$0.00"}},{"v":0,"d":"$0.00"},{"$f":"BJ559+BI559","v":{"v":0,"d":"$0.00"}}]
[{"$nulls":29},{"v":0,"d":"$0"},null,null,{"v":0,"d":"$0"},null,null,{"v":0,"d":"$0"},null,null,{"v":0,"d":"$0"},{"$nulls":3},{"v":0,"d":"$0"},null,null,{"v":0,"d":"$0"},null,"LANDSCAPING",{"$nulls":4},0,0,0,0,0,0,0,null,{"v":0,"d":"$0.00"},{"v":0,"d":"$0.00"},{"v":0,"d":"$0.00"}]
[{"$nulls":29},{"v":0,"d":"$0"},null,null,{"v":0,"d":"$0"},null,null,{"v":0,"d":"$0"},null,null,{"v":0,"d":"$0"},{"$nulls":3},{"v":0,"d":"$0"},null,null,{"v":0,"d":"$0"},null,"LANDSCAPING",{"$nulls":4},0,0,0,0,0,0,0,null,{"v":0,"d":"$0.00"},{"v":0,"d":"$0.00"},{"v":0,"d":"$0.00"}]
[{"$nulls":29},{"v":0,"d":"$0"},null,null,{"v":0,"d":"$0"},null,null,{"v":0,"d":"$0"},null,null,{"v":0,"d":"$0"},{"$nulls":3},{"v":0,"d":"$0"},null,null,{"v":0,"d":"$0"},null,"LANDSCAPING",{"$nulls":4},0,0,0,0,0,0,0,null,{"v":0,"d":"$0.00"},{"v":0,"d":"$0.00"},{"v":0,"d":"$0.00"}]
[{"$nulls":29},{"v":0,"d":"$0"},null,null,{"v":0,"d":"$0"},null,null,{"v":0,"d":"$0"},null,null,{"v":0,"d":"$0"},{"$nulls":3},{"v":0,"d":"$0"},null,null,{"v":0,"d":"$0"},null,"LANDSCAPING",{"$nulls":4},0,0,0,0,0,0,0,null,{"v":0,"d":"$0.00"},{"v":0,"d":"$0.00"},{"v":0,"d":"$0.00"}]
[{"$nulls":29},{"v":0,"d":"$0"},null,null,{"v":0,"d":"$0"},null,null,{"v":0,"d":"$0"},null,null,{"v":0,"d":"$0"},{"$nulls":3},{"v":0,"d":"$0"},null,null,{"v":0,"d":"$0"},null,"LANDSCAPING",{"$nulls":4},0,0,0,0,0,0,0,null,{"v":0,"d":"$0.00"},{"v":0,"d":"$0.00"},{"v":0,"d":"$0.00"}]
[{"$nulls":29},{"v":0,"d":"$0"},null,null,{"v":0,"d":"$0"},null,null,{"v":0,"d":"$0"},null,null,{"v":0,"d":"$0"},{"$nulls":3},{"v":0,"d":"$0"},null,null,{"v":0,"d":"$0"},null,"LANDSCAPING",{"$nulls":4},0,0,0,0,0,0,0,null,{"v":0,"d":"$0.00"},{"v":0,"d":"$0.00"},{"v":0,"d":"$0.00"}]
[{"$nulls":29},{"v":0,"d":"$0"},null,null,{"v":0,"d":"$0"},null,null,{"v":0,"d":"$0"},null,null,{"v":0,"d":"$0"},{"$nulls":3},{"v":0,"d":"$0"},null,null,{"v":0,"d":"$0"},null,"LANDSCAPING",{"$nulls":4},0,0,0,0,0,0,0,null,{"v":0,"d":"$0.00"},{"v":0,"d":"$0.00"},{"v":0,"d":"$0.00"}]
[{"$nulls":29},{"v":0,"d":"$0"},null,null,{"v":0,"d":"$0"},null,null,{"v":0,"d":"$0"},null,null,{"v":0,"d":"$0"},{"$nulls":3},{"v":0,"d":"$0"},null,null,{"v":0,"d":"$0"},null,"LANDSCAPING",{"$nulls":4},0,0,0,0,0,0,0,null,{"v":0,"d":"$0.00"},{"v":0,"d":"$0.00"},{"v":0,"d":"$0.00"}]
[{"$nulls":29},{"v":0,"d":"$0"},null,null,{"v":0,"d":"$0"},null,null,{"v":0,"d":"$0"},null,null,{"v":0,"d":"$0"},{"$nulls":3},{"v":0,"d":"$0"},null,null,{"v":0,"d":"$0"},null,"LANDSCAPING",{"$nulls":4},0,0,0,0,0,0,0,null,{"v":0,"d":"$0.00"},{"v":0,"d":"$0.00"},{"v":0,"d":"$0.00"}]
[{"$nulls":29},{"v":0,"d":"$0"},null,null,{"v":0,"d":"$0"},null,null,{"v":0,"d":"$0"},null,null,{"v":0,"d":"$0"},{"$nulls":3},{"v":0,"d":"$0"},null,null,{"v":0,"d":"$0"},null,"LANDSCAPING",{"$nulls":4},0,0,0,0,0,0,0,null,{"v":0,"d":"$0.00"},{"v":0,"d":"$0.00"},{"v":0,"d":"$0.00"}]
[{"$nulls":29},{"v":0,"d":"$0"},null,null,{"v":0,"d":"$0"},null,null,{"v":0,"d":"$0"},null,null,{"v":0,"d":"$0"},{"$nulls":3},{"v":0,"d":"$0"},null,null,{"v":0,"d":"$0"},null,"LANDSCAPING",{"$nulls":4},0,0,0,0,0,0,0,null,{"v":0,"d":"$0.00"},{"v":0,"d":"$0.00"},{"v":0,"d":"$0.00"}]
[{"$nulls":29},{"v":0,"d":"$0"},null,null,{"v":0,"d":"$0"},null,null,{"v":0,"d":"$0"},null,null,{"v":0,"d":"$0"},{"$nulls":3},{"v":0,"d":"$0"},null,null,{"v":0,"d":"$0"},null,"LANDSCAPING",{"$nulls":4},0,0,0,0,0,0,0,null,{"v":0,"d":"$0.00"},{"v":0,"d":"$0.00"},{"v":0,"d":"$0.00"}]
[{"$nulls":29},{"v":0,"d":"$0"},null,null,{"v":0,"d":"$0"},null,null,{"v":0,"d":"$0"},null,null,{"v":0,"d":"$0"},{"$nulls":3},{"v":0,"d":"$0"},null,null,{"v":0,"d":"$0"},null,"LANDSCAPING",{"$nulls":4},0,0,0,0,0,0,0,null,{"v":0,"d":"$0.00"},{"v":0,"d":"$0.00"},{"v":0,"d":"$0.00"}]
[{"$nulls":29},{"v":0,"d":"$0"},null,null,{"v":0,"d":"$0"},null,null,{"v":0,"d":"$0"},null,null,{"v":0,"d":"$0"},{"$nulls":3},{"v":0,"d":"$0"},null,null,{"v":0,"d":"$0"},null,"LANDSCAPING",{"$nulls":4},0,0,0,0,0,0,0,null,{"v":0,"d":"$0.00"},{"v":0,"d":"$0.00"},{"v":0,"d":"$0.00"}]
[{"$nulls":29},{"v":0,"d":"$0"},null,null,{"v":0,"d":"$0"},null,null,{"v":0,"d":"$0"},null,null,{"v":0,"d":"$0"},{"$nulls":3},{"v":0,"d":"$0"},null,null,{"v":0,"d":"$0"},null,"LANDSCAPING",{"$nulls":4},0,0,0,0,0,0,0,null,{"v":0,"d":"$0.00"},{"v":0,"d":"$0.00"},{"v":0,"d":"$0.00"}]
[{"$nulls":29},{"v":0,"d":"$0"},null,null,{"v":0,"d":"$0"},null,null,{"v":0,"d":"$0"},null,null,{"v":0,"d":"$0"},{"$nulls":3},{"v":0,"d":"$0"},null,null,{"v":0,"d":"$0"},null,"LANDSCAPING",{"$nulls":4},0,0,0,0,0,0,0,null,{"v":0,"d":"$0.00"},{"v":0,"d":"$0.00"},{"v":0,"d":"$0.00"}]
[{"$nulls":29},{"v":0,"d":"$0"},null,null,{"v":0,"d":"$0"},null,null,{"v":0,"d":"$0"},null,null,{"v":0,"d":"$0"},{"$nulls":3},{"v":0,"d":"$0"},null,null,{"v":0,"d":"$0"},null,"LANDSCAPING",{"$nulls":4},0,0,0,0,{"$f":"SUM(BA576:BC576)","v":0},0,0,null,{"v":0,"d":"$0.00"},{"v":0,"d":"$0.00"},{"v":0,"d":"$0.00"}]
[{"$nulls":29},{"v":0,"d":"$0"},null,null,{"v":0,"d":"$0"},null,null,{"v":0,"d":"$0"},null,null,{"v":0,"d":"$0"},{"$nulls":3},{"v":0,"d":"$0"},null,null,{"v":0,"d":"$0"},null,"LANDSCAPING",{"$nulls":4},0,0,0,0,{"$f":"SUM(BA577:BC577)","v":0},0,0,null,{"v":0,"d":"$0.00"},{"v":0,"d":"$0.00"},{"v":0,"d":"$0.00"}]
[{"$nulls":47},"LANDSCAPING",{"$nulls":4},{"$f":"BA537","v":{"v":250,"d":"$250"}},{"$f":"BB537","v":{"v":321,"d":"$321"}},{"$f":"BC537","v":{"v":0,"d":"$0"}},{"$f":"BD537","v":{"v":0,"d":"$0"}},{"$f":"BE537","v":{"v":571,"d":"$571"}}]
[{"$nulls":28},{"$f":"CONCATENATE(D537,\" \",\"TOTAL\")","v":"LANDSCAPING TOTAL"},{"$f":"SUBTOTAL(9,AD538:AD578)","v":{"v":250,"d":"$250"}},null,null,{"$f":"SUBTOTAL(9,AG538:AG578)","v":{"v":321,"d":"$321"}},null,null,{"$f":"SUBTOTAL(9,AJ538:AJ578)","v":{"v":0,"d":"$0"}},null,null,{"$f":"SUBTOTAL(9,AM538:AM578)","v":{"v":0,"d":"$0"}},{"$nulls":3},{"$f":"SUBTOTAL(9,AQ538:AQ578)","v":{"v":571,"d":"$571"}},null,null,{"$f":"SUM(AT535:AT570)","v":{"$error":"#REF!"}},null,"LANDSCAPING",{"$nulls":4},{"$f":"BA537","v":250},{"$f":"BB537","v":321},{"$f":"BC537","v":0},{"$f":"BD537","v":0},{"$f":"BE537","v":571},{"$f":"SUM(BF537:BF578)","v":1142},{"$f":"SUM(BG537:BG578)","v":0},null,{"$f":"SUM(BI538:BI578)","v":250},{"$f":"SUM(BJ538:BJ578)","v":0},{"$f":"SUM(BK538:BK578)","v":250}]
[{"$nulls":47},"LANDSCAPING",{"$nulls":4},{"$f":"BA537","v":{"v":250,"d":"$250"}},{"$f":"BB537","v":{"v":321,"d":"$321"}},{"$f":"BC537","v":{"v":0,"d":"$0"}},{"$f":"BD537","v":{"v":0,"d":"$0"}},{"$f":"BE537","v":{"v":571,"d":"$571"}}]
[{"$nulls":47},"LANDSCAPING",{"$nulls":4},{"$f":"BA579","v":250},{"$f":"BB579","v":321},{"$f":"BC579","v":0},0,571,1142,0]
["Hidden",null,null,{"$f":"T(Y78)","v":"MISC. EXTERIOR ITEMS"},{"$nulls":25},{"$f":"AD624","v":{"v":225,"d":"$225"}},null,null,{"$f":"AG624","v":{"v":406.6,"d":"$407"}},null,null,{"$f":"AJ624","v":{"v":0,"d":"$0"}},null,null,{"$f":"AM624","v":{"v":0,"d":"$0"}},{"$nulls":3},{"$f":"AQ624","v":{"v":631.6,"d":"$632"}},null,null,{"$f":"SUM(#REF!)","v":{"$error":"#REF!"}},null,{"$f":"$D$582","v":"MISC. EXTERIOR ITEMS"},{"$nulls":4},{"$f":"SUM(BA583:BA622)","v":225},{"$f":"SUM(BB583:BB622)","v":406.6},{"$f":"SUM(BC583:BC622)","v":0},{"$f":"SUM(BD583:BD622)","v":0},{"$f":"SUM(BE583:BE622)","v":631.6},{"$f":"AQ582","v":631.6},{"$f":"AM582","v":0},null,{"$f":"AD582","v":{"v":225,"d":"$225.00"}},{"$f":"AM582","v":{"v":0,"d":"$0.00"}},{"$f":"BJ582+BI582","v":{"v":225,"d":"$225.00"}}]
[{"$nulls":3},"Misc. Ext Improvements bid/allowance",{"$nulls":14},"ls","sf",{"$nulls":9},{"$f":"((P583*U583)-AM583)","v":{"v":0,"d":"$0"}},null,null,{"$f":"P583*X583*(1+$Y$85)","v":{"v":0,"d":"$0"}},null,null,{"$f":"P583*AA583","v":{"v":0,"d":"$0"}},null,null,{"$f":"IF($B583=\"x\",$P583*$U583,0)","v":{"v":0,"d":"$0"}},{"$nulls":3},{"$f":"SUM(AD583:AL583)","v":{"v":0,"d":"$0"}},null,null,{"$f":"SUM(AD583:AL583)","v":{"v":0,"d":"$0"}},null,"MISC. EXTERIOR ITEMS",{"$nulls":4},{"$f":"AD583","v":0},{"$f":"AG583","v":0},{"$f":"AJ583","v":0},{"$f":"IF(B583=\"x\",1,0)","v":0},{"$f":"SUM(BA583:BC583)","v":0},0,0,null,{"$f":"AD583","v":{"v":0,"d":"$0.00"}},{"$f":"AM583","v":{"v":0,"d":"$0.00"}},{"$f":"BJ583+BI583","v":{"v":0,"d":"$0.00"}}]
[{"$nulls":3},"Miscellaneous Improvements",{"$nulls":25},{"v":0,"d":"$0"},null,null,{"$f":"P584*X584*(1+$Y$85)","v":{"v":0,"d":"$0"}},null,null,{"v":0,"d":"$0"},null,null,{"v":0,"d":"$0"},{"$nulls":3},{"v":0,"d":"$0"},null,null,{"v":0,"d":"$0"},null,"MISC. EXTERIOR ITEMS",{"$nulls":4},0,{"$f":"AG584","v":0},{"$f":"AJ584","v":0},0,{"$f":"SUM(BA584:BC584)","v":0},0,0,null,{"$f":"AD584","v":{"v":0,"d":"$0.00"}},{"v":0,"d":"$0.00"},{"$f":"BJ584+BI584","v":{"v":0,"d":"$0.00"}}]
[{"$nulls":3},"New mailbox",{"$nulls":11},1,null,null,"ea",null,{"v":50,"d":"50.00"},null,null,{"v":100,"d":"100.00"},{"$nulls":5},{"v":50,"d":"$50"},null,null,{"v":107,"d":"$107"},null,null,{"v":0,"d":"$0"},null,null,{"v":0,"d":"$0"},{"$nulls":3},{"v":157,"d":"$157"},null,null,{"v":157,"d":"$157"},null,"MISC. EXTERIOR ITEMS",{"$nulls":4},50,107,0,0,157,157,0,null,{"v":50,"d":"$50.00"},{"v":0,"d":"$0.00"},{"v":50,"d":"$50.00"}]
[{"$nulls":3},"New address #",{"$nulls":11},1,null,null,"ea",null,{"v":25,"d":"25.00"},null,null,{"v":40,"d":"40.00"},{"$nulls":5},{"v":25,"d":"$25"},null,null,{"v":42.800000000000004,"d":"$43"},null,null,{"v":0,"d":"$0"},null,null,{"v":0,"d":"$0"},{"$nulls":3},{"v":67.80000000000001,"d":"$68"},null,null,{"v":67.80000000000001,"d":"$68"},null,"MISC. EXTERIOR ITEMS",{"$nulls":4},25,42.800000000000004,0,0,67.80000000000001,67.80000000000001,0,null,{"v":25,"d":"$25.00"},{"v":0,"d":"$0.00"},{"v":25,"d":"$25.00"}]
[{"$nulls":3},"Shutters",{"$nulls":11},6,null,null,"ea",null,{"v":25,"d":"25.00"},null,null,{"v":40,"d":"40.00"},{"$nulls":5},{"v":150,"d":"$150"},null,null,{"v":256.8,"d":"$257"},null,null,{"v":0,"d":"$0"},null,null,{"v":0,"d":"$0"},{"$nulls":3},{"v":406.8,"d":"$407"},null,null,{"v":406.8,"d":"$407"},null,"MISC. EXTERIOR ITEMS",{"$nulls":4},150,256.8,0,0,406.8,406.8,0,null,{"v":150,"d":"$150.00"},{"v":0,"d":"$0.00"},{"v":150,"d":"$150.00"}]
[{"$nulls":29},{"v":0,"d":"$0"},null,null,{"v":0,"d":"$0"},null,null,{"v":0,"d":"$0"},null,null,{"v":0,"d":"$0"},{"$nulls":3},{"v":0,"d":"$0"},null,null,{"v":0,"d":"$0"},null,"MISC. EXTERIOR ITEMS",{"$nulls":4},0,0,0,0,0,0,0,null,{"v":0,"d":"$0.00"},{"v":0,"d":"$0.00"},{"v":0,"d":"$0.00"}]
[{"$nulls":3},"Fencing",{"$nulls":25},{"v":0,"d":"$0"},null,null,{"v":0,"d":"$0"},null,null,{"v":0,"d":"$0"},null,null,{"v":0,"d":"$0"},{"$nulls":3},{"v":0,"d":"$0"},null,null,{"v":0,"d":"$0"},null,"MISC. EXTERIOR ITEMS",{"$nulls":4},0,0,0,0,0,0,0,null,{"v":0,"d":"$0.00"},{"v":0,"d":"$0.00"},{"v":0,"d":"$0.00"}]
[{"$nulls":3},"Chain link fencing",{"$nulls":14},"lf",null,{"v":7,"d":"7.00"},null,null,{"v":8,"d":"8.00"},{"$nulls":5},{"v":0,"d":"$0"},null,null,{"v":0,"d":"$0"},null,null,{"v":0,"d":"$0"},null,null,{"v":0,"d":"$0"},{"$nulls":3},{"v":0,"d":"$0"},null,null,{"v":0,"d":"$0"},null,"MISC. EXTERIOR ITEMS",{"$nulls":4},0,0,0,0,0,0,0,null,{"v":0,"d":"$0.00"},{"v":0,"d":"$0.00"},{"v":0,"d":"$0.00"}]
[{"$nulls":3},"Wood fencing",{"$nulls":14},"lf",null,{"v":10,"d":"10.00"},null,null,{"v":13.5,"d":"13.50"},{"$nulls":5},{"v":0,"d":"$0"},null,null,{"v":0,"d":"$0"},null,null,{"v":0,"d":"$0"},null,null,{"v":0,"d":"$0"},{"$nulls":3},{"v":0,"d":"$0"},null,null,{"v":0,"d":"$0"},null,"MISC. EXTERIOR ITEMS",{"$nulls":4},0,0,0,0,0,0,0,null,{"v":0,"d":"$0.00"},{"v":0,"d":"$0.00"},{"v":0,"d":"$0.00"}]
[{"$nulls":29},{"v":0,"d":"$0"},null,null,{"v":0,"d":"$0"},null,null,{"v":0,"d":"$0"},null,null,{"v":0,"d":"$0"},{"$nulls":3},{"v":0,"d":"$0"},null,null,{"v":0,"d":"$0"},null,"MISC. EXTERIOR ITEMS",{"$nulls":4},0,0,0,0,0,0,0,null,{"v":0,"d":"$0.00"},{"v":0,"d":"$0.00"},{"v":0,"d":"$0.00"}]
[{"$nulls":3},"Misc. Exterior Structures",{"$nulls":25},{"v":0,"d":"$0"},null,null,{"v":0,"d":"$0"},null,null,{"v":0,"d":"$0"},null,null,{"v":0,"d":"$0"},{"$nulls":3},{"v":0,"d":"$0"},null,null,{"v":0,"d":"$0"},null,"MISC. EXTERIOR ITEMS",{"$nulls":4},0,0,0,0,0,0,0,null,{"v":0,"d":"$0.00"},{"v":0,"d":"$0.00"},{"v":0,"d":"$0.00"}]
[{"$nulls":3},"Premanufactured carport",{"$nulls":14},"ea","lf",{"v":750,"d":"750.00"},null,null,{"v":4500,"d":"4500.00"},null,{"v":4500,"d":"4500.00"},{"$nulls":3},{"v":0,"d":"$0"},null,null,{"v":0,"d":"$0"},null,null,{"v":0,"d":"$0"},null,null,{"v":0,"d":"$0"},{"$nulls":3},{"v":0,"d":"$0"},null,null,{"v":0,"d":"$0"},null,"MISC. EXTERIOR ITEMS",{"$nulls":4},0,0,0,0,0,0,0,null,{"v":0,"d":"$0.00"},{"v":0,"d":"$0.00"},{"v":0,"d":"$0.00"}]
[{"$nulls":3},"Storage shed, wood",{"$nulls":14},"ea","ea",{"v":500,"d":"500.00"},null,null,{"v":1750,"d":"1750.00"},null,{"v":1600,"d":"1600.00"},{"$nulls":3},{"v":0,"d":"$0"},null,null,{"v":0,"d":"$0"},null,null,{"v":0,"d":"$0"},null,null,{"v":0,"d":"$0"},{"$nulls":3},{"v":0,"d":"$0"},null,null,{"v":0,"d":"$0"},null,"MISC. EXTERIOR ITEMS",{"$nulls":4},0,0,0,0,0,0,0,null,{"v":0,"d":"$0.00"},{"v":0,"d":"$0.00"},{"v":0,"d":"$0.00"}]
[{"$nulls":3},"Gazebo",{"$nulls":14},"sf",null,{"v":30,"d":"30.00"},null,null,{"v":45,"d":"45.00"},{"$nulls":5},{"v":0,"d":"$0"},null,null,{"v":0,"d":"$0"},null,null,{"v":0,"d":"$0"},null,null,{"v":0,"d":"$0"},{"$nulls":3},{"v":0,"d":"$0"},null,null,{"v":0,"d":"$0"},null,"MISC. EXTERIOR ITEMS",{"$nulls":4},0,0,0,0,0,0,0,null,{"v":0,"d":"$0.00"},{"v":0,"d":"$0.00"},{"v":0,"d":"$0.00"}]
[{"$nulls":29},{"v":0,"d":"$0"},null,null,{"v":0,"d":"$0"},null,null,{"v":0,"d":"$0"},null,null,{"v":0,"d":"$0"},{"$nulls":3},{"v":0,"d":"$0"},null,null,{"v":0,"d":"$0"},null,"MISC. EXTERIOR ITEMS",{"$nulls":4},0,0,0,0,0,0,0,null,{"v":0,"d":"$0.00"},{"v":0,"d":"$0.00"},{"v":0,"d":"$0.00"}]
[{"$nulls":3},"Pools",{"$nulls":25},{"v":0,"d":"$0"},null,null,{"v":0,"d":"$0"},null,null,{"v":0,"d":"$0"},null,null,{"v":0,"d":"$0"},{"$nulls":3},{"v":0,"d":"$0"},null,null,{"v":0,"d":"$0"},null,"MISC. EXTERIOR ITEMS",{"$nulls":4},0,0,0,0,0,0,0,null,{"v":0,"d":"$0.00"},{"v":0,"d":"$0.00"},{"v":0,"d":"$0.00"}]
[{"$nulls":3},"New Pool structure",{"$nulls":14},"sf",{"$nulls":7},{"v":65,"d":"65.00"},null,null,{"v":0,"d":"$0"},null,null,{"v":0,"d":"$0"},null,null,{"v":0,"d":"$0"},null,null,{"v":0,"d":"$0"},{"$nulls":3},{"v":0,"d":"$0"},null,null,{"v":0,"d":"$0"},null,"MISC. EXTERIOR ITEMS",{"$nulls":4},0,0,0,0,0,0,0,null,{"v":0,"d":"$0.00"},{"v":0,"d":"$0.00"},{"v":0,"d":"$0.00"}]
[{"$nulls":3},"Pool heater/motor",{"$nulls":14},"ea",null,{"v":2400,"d":"2400.00"},null,null,{"v":500,"d":"500.00"},{"$nulls":5},{"v":0,"d":"$0"},null,null,{"v":0,"d":"$0"},null,null,{"v":0,"d":"$0"},null,null,{"v":0,"d":"$0"},{"$nulls":3},{"v":0,"d":"$0"},null,null,{"v":0,"d":"$0"},null,"MISC. EXTERIOR ITEMS",{"$nulls":4},0,0,0,0,0,0,0,null,{"v":0,"d":"$0.00"},{"v":0,"d":"$0.00"},{"v":0,"d":"$0.00"}]
[{"$nulls":3},"Pool filter system",{"$nulls":14},"ea",null,{"v":1500,"d":"1500.00"},null,null,{"v":400,"d":"400.00"},{"$nulls":5},{"v":0,"d":"$0"},null,null,{"v":0,"d":"$0"},null,null,{"v":0,"d":"$0"},null,null,{"v":0,"d":"$0"},{"$nulls":3},{"v":0,"d":"$0"},null,null,{"v":0,"d":"$0"},null,"MISC. EXTERIOR ITEMS",{"$nulls":4},0,0,0,0,{"$f":"SUM(BA601:BC601)","v":0},0,0,null,{"v":0,"d":"$0.00"},{"v":0,"d":"$0.00"},{"v":0,"d":"$0.00"}]
[{"$nulls":3},"Replaster existing pool wall",{"$nulls":14},"sf",null,{"v":9,"d":"9.00"},null,null,{"v":1.5,"d":"1.50"},{"$nulls":5},{"v":0,"d":"$0"},null,null,{"v":0,"d":"$0"},null,null,{"v":0,"d":"$0"},null,null,{"v":0,"d":"$0"},{"$nulls":3},{"v":0,"d":"$0"},null,null,{"v":0,"d":"$0"},null,"MISC. EXTERIOR ITEMS",{"$nulls":4},0,0,0,0,0,0,0,null,{"v":0,"d":"$0.00"},{"v":0,"d":"$0.00"},{"v":0,"d":"$0.00"}]
[{"$nulls":29},{"v":0,"d":"$0"},null,null,{"v":0,"d":"$0"},null,null,{"v":0,"d":"$0"},null,null,{"v":0,"d":"$0"},{"$nulls":3},{"v":0,"d":"$0"},null,null,{"v":0,"d":"$0"},null,"MISC. EXTERIOR ITEMS",{"$nulls":4},0,0,0,0,0,0,0,null,{"v":0,"d":"$0.00"},{"v":0,"d":"$0.00"},{"v":0,"d":"$0.00"}]
[{"$nulls":29},{"v":0,"d":"$0"},null,null,{"v":0,"d":"$0"},null,null,{"v":0,"d":"$0"},null,null,{"v":0,"d":"$0"},{"$nulls":3},{"v":0,"d":"$0"},null,null,{"v":0,"d":"$0"},null,"MISC. EXTERIOR ITEMS",{"$nulls":4},0,0,0,0,0,0,0,null,{"v":0,"d":"$0.00"},{"v":0,"d":"$0.00"},{"v":0,"d":"$0.00"}]
[{"$nulls":29},{"$f":"((P605*U605)-AM605)","v":{"v":0,"d":"$0"}},null,null,{"v":0,"d":"$0"},null,null,{"$f":"P605*AA605","v":{"v":0,"d":"$0"}},null,null,{"v":0,"d":"$0"},{"$nulls":3},{"$f":"SUM(AD605:AL605)","v":{"v":0,"d":"$0"}},null,null,{"$f":"SUM(AD605:AL605)","v":{"v":0,"d":"$0"}},null,"MISC. EXTERIOR ITEMS",{"$nulls":4},{"$f":"AD605","v":0},{"$f":"AG605","v":0},{"$f":"AJ605","v":0},{"$f":"IF(B605=\"x\",1,0)","v":0},0,{"$f":"AQ605","v":0},{"$f":"AM605","v":0},null,{"$f":"AD605","v":{"v":0,"d":"$0.00"}},{"$f":"AM605","v":{"v":0,"d":"$0.00"}},{"$f":"BJ605+BI605","v":{"v":0,"d":"$0.00"}}]
[{"$nulls":29},{"v":0,"d":"$0"},null,null,{"v":0,"d":"$0"},null,null,{"v":0,"d":"$0"},null,null,{"v":0,"d":"$0"},{"$nulls":3},{"v":0,"d":"$0"},null,null,{"v":0,"d":"$0"},null,"MISC. EXTERIOR ITEMS",{"$nulls":4},0,0,0,0,0,0,0,null,{"v":0,"d":"$0.00"},{"v":0,"d":"$0.00"},{"v":0,"d":"$0.00"}]
[{"$nulls":29},{"v":0,"d":"$0"},null,null,{"v":0,"d":"$0"},null,null,{"v":0,"d":"$0"},null,null,{"v":0,"d":"$0"},{"$nulls":3},{"v":0,"d":"$0"},null,null,{"v":0,"d":"$0"},null,"MISC. EXTERIOR ITEMS",{"$nulls":4},0,0,0,0,0,0,0,null,{"v":0,"d":"$0.00"},{"v":0,"d":"$0.00"},{"v":0,"d":"$0.00"}]
[{"$nulls":29},{"v":0,"d":"$0"},null,null,{"v":0,"d":"$0"},null,null,{"v":0,"d":"$0"},null,null,{"v":0,"d":"$0"},{"$nulls":3},{"v":0,"d":"$0"},null,null,{"v":0,"d":"$0"},null,"MISC. EXTERIOR ITEMS",{"$nulls":4},0,0,0,0,0,0,0,null,{"v":0,"d":"$0.00"},{"v":0,"d":"$0.00"},{"v":0,"d":"$0.00"}]
[{"$nulls":29},{"v":0,"d":"$0"},null,null,{"v":0,"d":"$0"},null,null,{"v":0,"d":"$0"},null,null,{"v":0,"d":"$0"},{"$nulls":3},{"v":0,"d":"$0"},null,null,{"v":0,"d":"$0"},null,"MISC. EXTERIOR ITEMS",{"$nulls":4},0,0,0,0,0,0,0,null,{"v":0,"d":"$0.00"},{"v":0,"d":"$0.00"},{"v":0,"d":"$0.00"}]
[{"$nulls":29},{"v":0,"d":"$0"},null,null,{"v":0,"d":"$0"},null,null,{"v":0,"d":"$0"},null,null,{"v":0,"d":"$0"},{"$nulls":3},{"v":0,"d":"$0"},null,null,{"v":0,"d":"$0"},null,"MISC. EXTERIOR ITEMS",{"$nulls":4},0,0,0,0,0,0,0,null,{"v":0,"d":"$0.00"},{"v":0,"d":"$0.00"},{"v":0,"d":"$0.00"}]
[{"$nulls":29},{"v":0,"d":"$0"},null,null,{"v":0,"d":"$0"},null,null,{"v":0,"d":"$0"},null,null,{"v":0,"d":"$0"},{"$nulls":3},{"v":0,"d":"$0"},null,null,{"v":0,"d":"$0"},null,"MISC. EXTERIOR ITEMS",{"$nulls":4},0,0,0,0,0,0,0,null,{"v":0,"d":"$0.00"},{"v":0,"d":"$0.00"},{"v":0,"d":"$0.00"}]
[{"$nulls":29},{"v":0,"d":"$0"},null,null,{"v":0,"d":"$0"},null,null,{"v":0,"d":"$0"},null,null,{"v":0,"d":"$0"},{"$nulls":3},{"v":0,"d":"$0"},null,null,{"v":0,"d":"$0"},null,"MISC. EXTERIOR ITEMS",{"$nulls":4},0,0,0,0,0,0,0,null,{"v":0,"d":"$0.00"},{"v":0,"d":"$0.00"},{"v":0,"d":"$0.00"}]
[{"$nulls":29},{"$f":"((P613*U613)-AM613)","v":{"v":0,"d":"$0"}},null,null,{"v":0,"d":"$0"},null,null,{"$f":"P613*AA613","v":{"v":0,"d":"$0"}},null,null,{"v":0,"d":"$0"},{"$nulls":3},{"$f":"SUM(AD613:AL613)","v":{"v":0,"d":"$0"}},null,null,{"$f":"SUM(AD613:AL613)","v":{"v":0,"d":"$0"}},null,"MISC. EXTERIOR ITEMS",{"$nulls":4},{"$f":"AD613","v":0},{"$f":"AG613","v":0},{"$f":"AJ613","v":0},{"$f":"IF(B613=\"x\",1,0)","v":0},0,{"$f":"AQ613","v":0},{"$f":"AM613","v":0},null,{"$f":"AD613","v":{"v":0,"d":"$0.00"}},{"$f":"AM613","v":{"v":0,"d":"$0.00"}},{"$f":"BJ613+BI613","v":{"v":0,"d":"$0.00"}}]
[{"$nulls":29},{"$f":"((P614*U614)-AM614)","v":{"v":0,"d":"$0"}},null,null,{"v":0,"d":"$0"},null,null,{"$f":"P614*AA614","v":{"v":0,"d":"$0"}},null,null,{"v":0,"d":"$0"},{"$nulls":3},{"$f":"SUM(AD614:AL614)","v":{"v":0,"d":"$0"}},null,null,{"$f":"SUM(AD614:AL614)","v":{"v":0,"d":"$0"}},null,"MISC. EXTERIOR ITEMS",{"$nulls":4},{"$f":"AD614","v":0},{"$f":"AG614","v":0},{"$f":"AJ614","v":0},{"$f":"IF(B614=\"x\",1,0)","v":0},0,{"$f":"AQ614","v":0},{"$f":"AM614","v":0},null,{"$f":"AD614","v":{"v":0,"d":"$0.00"}},{"$f":"AM614","v":{"v":0,"d":"$0.00"}},{"$f":"BJ614+BI614","v":{"v":0,"d":"$0.00"}}]
[{"$nulls":29},{"v":0,"d":"$0"},null,null,{"v":0,"d":"$0"},null,null,{"v":0,"d":"$0"},null,null,{"v":0,"d":"$0"},{"$nulls":3},{"v":0,"d":"$0"},null,null,{"v":0,"d":"$0"},null,"MISC. EXTERIOR ITEMS",{"$nulls":4},0,0,0,0,0,0,0,null,{"v":0,"d":"$0.00"},{"v":0,"d":"$0.00"},{"v":0,"d":"$0.00"}]
[{"$nulls":29},{"v":0,"d":"$0"},null,null,{"v":0,"d":"$0"},null,null,{"v":0,"d":"$0"},null,null,{"v":0,"d":"$0"},{"$nulls":3},{"v":0,"d":"$0"},null,null,{"v":0,"d":"$0"},null,"MISC. EXTERIOR ITEMS",{"$nulls":4},0,0,0,0,0,0,0,null,{"v":0,"d":"$0.00"},{"v":0,"d":"$0.00"},{"v":0,"d":"$0.00"}]
[{"$nulls":29},{"v":0,"d":"$0"},null,null,{"v":0,"d":"$0"},null,null,{"v":0,"d":"$0"},null,null,{"v":0,"d":"$0"},{"$nulls":3},{"v":0,"d":"$0"},null,null,{"v":0,"d":"$0"},null,"MISC. EXTERIOR ITEMS",{"$nulls":4},0,0,0,0,0,0,0,null,{"v":0,"d":"$0.00"},{"v":0,"d":"$0.00"},{"v":0,"d":"$0.00"}]
[{"$nulls":29},{"v":0,"d":"$0"},null,null,{"v":0,"d":"$0"},null,null,{"v":0,"d":"$0"},null,null,{"v":0,"d":"$0"},{"$nulls":3},{"v":0,"d":"$0"},null,null,{"v":0,"d":"$0"},null,"MISC. EXTERIOR ITEMS",{"$nulls":4},0,0,0,0,0,0,0,null,{"v":0,"d":"$0.00"},{"v":0,"d":"$0.00"},{"v":0,"d":"$0.00"}]
[{"$nulls":29},{"$f":"((P619*U619)-AM619)","v":{"v":0,"d":"$0"}},null,null,{"v":0,"d":"$0"},null,null,{"$f":"P619*AA619","v":{"v":0,"d":"$0"}},null,null,{"v":0,"d":"$0"},{"$nulls":3},{"$f":"SUM(AD619:AL619)","v":{"v":0,"d":"$0"}},null,null,{"$f":"SUM(AD619:AL619)","v":{"v":0,"d":"$0"}},null,"MISC. EXTERIOR ITEMS",{"$nulls":4},{"$f":"AD619","v":0},{"$f":"AG619","v":0},{"$f":"AJ619","v":0},{"$f":"IF(B619=\"x\",1,0)","v":0},0,{"$f":"AQ619","v":0},{"$f":"AM619","v":0},null,{"$f":"AD619","v":{"v":0,"d":"$0.00"}},{"$f":"AM619","v":{"v":0,"d":"$0.00"}},{"$f":"BJ619+BI619","v":{"v":0,"d":"$0.00"}}]
[{"$nulls":29},{"$f":"((P620*U620)-AM620)","v":{"v":0,"d":"$0"}},null,null,{"v":0,"d":"$0"},null,null,{"$f":"P620*AA620","v":{"v":0,"d":"$0"}},null,null,{"v":0,"d":"$0"},{"$nulls":3},{"$f":"SUM(AD620:AL620)","v":{"v":0,"d":"$0"}},null,null,{"$f":"SUM(AD620:AL620)","v":{"v":0,"d":"$0"}},null,"MISC. EXTERIOR ITEMS",{"$nulls":4},{"$f":"AD620","v":0},{"$f":"AG620","v":0},{"$f":"AJ620","v":0},{"$f":"IF(B620=\"x\",1,0)","v":0},0,{"$f":"AQ620","v":0},{"$f":"AM620","v":0},null,{"$f":"AD620","v":{"v":0,"d":"$0.00"}},{"$f":"AM620","v":{"v":0,"d":"$0.00"}},{"$f":"BJ620+BI620","v":{"v":0,"d":"$0.00"}}]
[{"$nulls":29},{"$f":"((P621*U621)-AM621)","v":{"v":0,"d":"$0"}},null,null,{"v":0,"d":"$0"},null,null,{"$f":"P621*AA621","v":{"v":0,"d":"$0"}},null,null,{"v":0,"d":"$0"},{"$nulls":3},{"$f":"SUM(AD621:AL621)","v":{"v":0,"d":"$0"}},null,null,{"$f":"SUM(AD621:AL621)","v":{"v":0,"d":"$0"}},null,"MISC. EXTERIOR ITEMS",{"$nulls":4},{"$f":"AD621","v":0},{"$f":"AG621","v":0},{"$f":"AJ621","v":0},{"$f":"IF(B621=\"x\",1,0)","v":0},0,{"$f":"AQ621","v":0},{"$f":"AM621","v":0},null,{"$f":"AD621","v":{"v":0,"d":"$0.00"}},{"$f":"AM621","v":{"v":0,"d":"$0.00"}},{"$f":"BJ621+BI621","v":{"v":0,"d":"$0.00"}}]
[{"$nulls":29},{"$f":"((P622*U622)-AM622)","v":{"v":0,"d":"$0"}},null,null,{"v":0,"d":"$0"},null,null,{"$f":"P622*AA622","v":{"v":0,"d":"$0"}},null,null,{"v":0,"d":"$0"},{"$nulls":3},{"$f":"SUM(AD622:AL622)","v":{"v":0,"d":"$0"}},null,null,{"$f":"SUM(AD622:AL622)","v":{"v":0,"d":"$0"}},null,"MISC. EXTERIOR ITEMS",{"$nulls":4},{"$f":"AD622","v":0},{"$f":"AG622","v":0},{"$f":"AJ622","v":0},{"$f":"IF(B622=\"x\",1,0)","v":0},0,{"$f":"AQ622","v":0},{"$f":"AM622","v":0},null,{"$f":"AD622","v":{"v":0,"d":"$0.00"}},{"$f":"AM622","v":{"v":0,"d":"$0.00"}},{"$f":"BJ622+BI622","v":{"v":0,"d":"$0.00"}}]
[{"$nulls":47},"MISC. EXTERIOR ITEMS",{"$nulls":4},{"$f":"BA582","v":{"v":225,"d":"$225"}},{"$f":"BB582","v":{"v":406.6,"d":"$407"}},{"$f":"BC582","v":{"v":0,"d":"$0"}},{"$f":"BD582","v":{"v":0,"d":"$0"}},{"$f":"BE582","v":{"v":631.6,"d":"$632"}}]
[{"$nulls":28},{"$f":"CONCATENATE(D582,\" \",\"TOTAL\")","v":"MISC. EXTERIOR ITEMS TOTAL"},{"$f":"SUBTOTAL(9,AD583:AD623)","v":{"v":225,"d":"$225"}},null,null,{"$f":"SUBTOTAL(9,AG583:AG623)","v":{"v":406.6,"d":"$407"}},null,null,{"$f":"SUBTOTAL(9,AJ583:AJ623)","v":{"v":0,"d":"$0"}},null,null,{"$f":"SUBTOTAL(9,AM583:AM623)","v":{"v":0,"d":"$0"}},{"$nulls":3},{"$f":"SUBTOTAL(9,AQ583:AQ623)","v":{"v":631.6,"d":"$632"}},null,null,{"$f":"SUM(AT580:AT615)","v":{"$error":"#REF!"}},null,"MISC. EXTERIOR ITEMS",{"$nulls":4},{"$f":"BA582","v":225},{"$f":"BB582","v":406.6},{"$f":"BC582","v":0},{"$f":"BD582","v":0},{"$f":"BE582","v":631.6},{"$f":"SUM(BF582:BF623)","v":1263.2},{"$f":"SUM(BG582:BG623)","v":0},null,{"$f":"SUM(BI583:BI623)","v":225},{"$f":"SUM(BJ583:BJ623)","v":0},{"$f":"SUM(BK583:BK623)","v":225}]
[{"$nulls":47},"MISC. EXTERIOR ITEMS",{"$nulls":4},{"$f":"BA582","v":{"v":225,"d":"$225"}},{"$f":"BB582","v":{"v":406.6,"d":"$407"}},{"$f":"BC582","v":{"v":0,"d":"$0"}},{"$f":"BD582","v":{"v":0,"d":"$0"}},{"$f":"BE582","v":{"v":631.6,"d":"$632"}}]
[{"$nulls":47},"MISC. EXTERIOR ITEMS",{"$nulls":4},{"$f":"BA624","v":225},{"$f":"BB624","v":406.6},{"$f":"BC624","v":0},0,631.6,1263.2,0]
["Hidden",null,null,{"$f":"T(Y79)","v":"FRAMING & DRYWALL"},{"$nulls":25},{"$f":"AD669","v":{"v":750,"d":"$750"}},null,null,{"$f":"AG669","v":{"v":0,"d":"$0"}},null,null,{"$f":"AJ669","v":{"v":0,"d":"$0"}},null,null,{"$f":"AM669","v":{"v":0,"d":"$0"}},{"$nulls":3},{"$f":"AQ669","v":{"v":750,"d":"$750"}},null,null,{"$f":"SUM(#REF!)","v":{"$error":"#REF!"}},null,{"$f":"$D$627","v":"FRAMING & DRYWALL"},{"$nulls":4},{"$f":"SUM(BA628:BA667)","v":750},{"$f":"SUM(BB628:BB667)","v":0},{"$f":"SUM(BC628:BC667)","v":0},{"$f":"SUM(BD628:BD667)","v":0},{"$f":"SUM(BE628:BE667)","v":750},{"$f":"AQ627","v":750},{"$f":"AM627","v":0},null,{"$f":"AD627","v":{"v":750,"d":"$750.00"}},{"$f":"AM627","v":{"v":0,"d":"$0.00"}},{"$f":"BJ627+BI627","v":{"v":750,"d":"$750.00"}}]
[{"$nulls":3},"Framing",{"$nulls":25},{"$f":"((P628*U628)-AM628)","v":{"v":0,"d":"$0"}},null,null,{"$f":"P628*X628*(1+$Y$85)","v":{"v":0,"d":"$0"}},null,null,{"$f":"P628*AA628","v":{"v":0,"d":"$0"}},null,null,{"$f":"IF($B628=\"x\",$P628*$U628,0)","v":{"v":0,"d":"$0"}},{"$nulls":3},{"$f":"SUM(AD628:AL628)","v":{"v":0,"d":"$0"}},null,null,{"$f":"SUM(AD628:AL628)","v":{"v":0,"d":"$0"}},null,"FRAMING & DRYWALL",{"$nulls":4},{"$f":"AD628","v":0},{"$f":"AG628","v":0},{"$f":"AJ628","v":0},{"$f":"IF(B628=\"x\",1,0)","v":0},{"$f":"SUM(BA628:BC628)","v":0},0,0,null,{"$f":"AD628","v":{"v":0,"d":"$0.00"}},{"$f":"AM628","v":{"v":0,"d":"$0.00"}},{"$f":"BJ628+BI628","v":{"v":0,"d":"$0.00"}}]
[{"$nulls":3},"Structural framing bid/allowance, case by case",{"$nulls":14},"ls","ls",{"$nulls":6},{"v":750,"d":"750.00"},null,null,{"v":0,"d":"$0"},null,null,{"$f":"P629*X629*(1+$Y$85)","v":{"v":0,"d":"$0"}},null,null,{"v":0,"d":"$0"},null,null,{"v":0,"d":"$0"},{"$nulls":3},{"v":0,"d":"$0"},null,null,{"v":0,"d":"$0"},null,"FRAMING & DRYWALL",{"$nulls":4},0,{"$f":"AG629","v":0},{"$f":"AJ629","v":0},0,{"$f":"SUM(BA629:BC629)","v":0},0,0,null,{"$f":"AD629","v":{"v":0,"d":"$0.00"}},{"v":0,"d":"$0.00"},{"$f":"BJ629+BI629","v":{"v":0,"d":"$0.00"}}]
[{"$nulls":3},"Subflooring, 3/4\" plywood",{"$nulls":14},"sf","sf",{"v":1,"d":"1.00"},null,null,0.85,null,0.85,{"$nulls":3},{"v":0,"d":"$0"},null,null,{"v":0,"d":"$0"},null,null,{"v":0,"d":"$0"},null,null,{"v":0,"d":"$0"},{"$nulls":3},{"v":0,"d":"$0"},null,null,{"v":0,"d":"$0"},null,"FRAMING & DRYWALL",{"$nulls":4},0,0,0,0,0,0,0,null,{"v":0,"d":"$0.00"},{"v":0,"d":"$0.00"},{"v":0,"d":"$0.00"}]
[{"$nulls":3},"Interior wall framing",{"$nulls":14},"sf","sf",{"v":1,"d":"1.00"},null,null,1.75,{"$nulls":5},{"v":0,"d":"$0"},null,null,{"v":0,"d":"$0"},null,null,{"v":0,"d":"$0"},null,null,{"v":0,"d":"$0"},{"$nulls":3},{"v":0,"d":"$0"},null,null,{"v":0,"d":"$0"},null,"FRAMING & DRYWALL",{"$nulls":4},0,0,0,0,0,0,0,null,{"v":0,"d":"$0.00"},{"v":0,"d":"$0.00"},{"v":0,"d":"$0.00"}]
[{"$nulls":3},"Structural/Exterior wall framing",{"$nulls":14},"sf","sf",1.25,null,null,1.75,null,1.75,{"$nulls":3},{"v":0,"d":"$0"},null,null,{"v":0,"d":"$0"},null,null,{"v":0,"d":"$0"},null,null,{"v":0,"d":"$0"},{"$nulls":3},{"v":0,"d":"$0"},null,null,{"v":0,"d":"$0"},null,"FRAMING & DRYWALL",{"$nulls":4},0,0,0,0,0,0,0,null,{"v":0,"d":"$0.00"},{"v":0,"d":"$0.00"},{"v":0,"d":"$0.00"}]
[{"$nulls":3},"Rough-in openings",{"$nulls":14},"ea","ea",{"v":25,"d":"25.00"},null,null,{"v":20,"d":"20.00"},null,{"v":20,"d":"20.00"},{"$nulls":3},{"v":0,"d":"$0"},null,null,{"v":0,"d":"$0"},null,null,{"v":0,"d":"$0"},null,null,{"v":0,"d":"$0"},{"$nulls":3},{"v":0,"d":"$0"},null,null,{"v":0,"d":"$0"},null,"FRAMING & DRYWALL",{"$nulls":4},0,0,0,0,0,0,0,null,{"v":0,"d":"$0.00"},{"v":0,"d":"$0.00"},{"v":0,"d":"$0.00"}]
[{"$nulls":3},"Floor joists/ceiling joists",{"$nulls":14},"sf","sf",0.75,null,null,0.75,null,0.75,{"$nulls":3},{"v":0,"d":"$0"},null,null,{"v":0,"d":"$0"},null,null,{"v":0,"d":"$0"},null,null,{"v":0,"d":"$0"},{"$nulls":3},{"v":0,"d":"$0"},null,null,{"v":0,"d":"$0"},null,"FRAMING & DRYWALL",{"$nulls":4},0,0,0,0,0,0,0,null,{"v":0,"d":"$0.00"},{"v":0,"d":"$0.00"},{"v":0,"d":"$0.00"}]
[{"$nulls":3},"Roof framing/rafters",{"$nulls":14},"sf","sf",1.25,null,null,{"v":1,"d":"1.00"},null,{"v":1,"d":"1.00"},{"$nulls":3},{"v":0,"d":"$0"},null,null,{"v":0,"d":"$0"},null,null,{"v":0,"d":"$0"},null,null,{"v":0,"d":"$0"},{"$nulls":3},{"v":0,"d":"$0"},null,null,{"v":0,"d":"$0"},null,"FRAMING & DRYWALL",{"$nulls":4},0,0,0,0,0,0,0,null,{"v":0,"d":"$0.00"},{"v":0,"d":"$0.00"},{"v":0,"d":"$0.00"}]
[{"$nulls":3},"Open load bearing/structural wall",{"$nulls":14},"ea","ea",{"v":750,"d":"750.00"},null,null,{"v":250,"d":"250.00"},null,{"v":250,"d":"250.00"},{"$nulls":3},{"v":0,"d":"$0"},null,null,{"v":0,"d":"$0"},null,null,{"v":0,"d":"$0"},null,null,{"v":0,"d":"$0"},{"$nulls":3},{"v":0,"d":"$0"},null,null,{"v":0,"d":"$0"},null,"FRAMING & DRYWALL",{"$nulls":4},0,0,0,0,0,0,0,null,{"v":0,"d":"$0.00"},{"v":0,"d":"$0.00"},{"v":0,"d":"$0.00"}]
[{"$nulls":3},"Insulation",{"$nulls":25},{"v":0,"d":"$0"},null,null,{"v":0,"d":"$0"},null,null,{"v":0,"d":"$0"},null,null,{"v":0,"d":"$0"},{"$nulls":3},{"v":0,"d":"$0"},null,null,{"v":0,"d":"$0"},null,"FRAMING & DRYWALL",{"$nulls":4},0,0,0,0,0,0,0,null,{"v":0,"d":"$0.00"},{"v":0,"d":"$0.00"},{"v":0,"d":"$0.00"}]
[{"$nulls":3},"Insulation bid/allowance",{"$nulls":14},"ls","ls",{"$nulls":9},{"v":0,"d":"$0"},null,null,{"v":0,"d":"$0"},null,null,{"v":0,"d":"$0"},null,null,{"v":0,"d":"$0"},{"$nulls":3},{"v":0,"d":"$0"},null,null,{"v":0,"d":"$0"},null,"FRAMING & DRYWALL",{"$nulls":4},0,0,0,0,0,0,0,null,{"v":0,"d":"$0.00"},{"v":0,"d":"$0.00"},{"v":0,"d":"$0.00"}]
[{"$nulls":3},"Wall insulation",{"$nulls":14},"sf","sf",{"v":0.5,"d":"0.50"},null,null,{"v":0.5,"d":"0.50"},null,{"v":0.5,"d":"0.50"},{"$nulls":3},{"v":0,"d":"$0"},null,null,{"v":0,"d":"$0"},null,null,{"v":0,"d":"$0"},null,null,{"v":0,"d":"$0"},{"$nulls":3},{"v":0,"d":"$0"},null,null,{"v":0,"d":"$0"},null,"FRAMING & DRYWALL",{"$nulls":4},0,0,0,0,0,0,0,null,{"v":0,"d":"$0.00"},{"v":0,"d":"$0.00"},{"v":0,"d":"$0.00"}]
[{"$nulls":3},"Floor insulation",{"$nulls":14},"sf","sf",0.75,null,null,{"v":0.5,"d":"0.50"},null,{"v":0.5,"d":"0.50"},{"$nulls":3},{"v":0,"d":"$0"},null,null,{"v":0,"d":"$0"},null,null,{"v":0,"d":"$0"},null,null,{"v":0,"d":"$0"},{"$nulls":3},{"v":0,"d":"$0"},null,null,{"v":0,"d":"$0"},null,"FRAMING & DRYWALL",{"$nulls":4},0,0,0,0,0,0,0,null,{"v":0,"d":"$0.00"},{"v":0,"d":"$0.00"},{"v":0,"d":"$0.00"}]
[{"$nulls":3},"Attic insulation, blown-in",{"$nulls":14},"sf","sf",{"v":0.5,"d":"0.50"},null,null,{"v":0.3,"d":"0.30"},null,{"v":0.3,"d":"0.30"},{"$nulls":3},{"v":0,"d":"$0"},null,null,{"v":0,"d":"$0"},null,null,{"v":0,"d":"$0"},null,null,{"v":0,"d":"$0"},{"$nulls":3},{"v":0,"d":"$0"},null,null,{"v":0,"d":"$0"},null,"FRAMING & DRYWALL",{"$nulls":4},0,0,0,0,0,0,0,null,{"v":0,"d":"$0.00"},{"v":0,"d":"$0.00"},{"v":0,"d":"$0.00"}]
[{"$nulls":3},"Walls/Ceilings",{"$nulls":25},{"v":0,"d":"$0"},null,null,{"v":0,"d":"$0"},null,null,{"v":0,"d":"$0"},null,null,{"v":0,"d":"$0"},{"$nulls":3},{"v":0,"d":"$0"},null,null,{"v":0,"d":"$0"},null,"FRAMING & DRYWALL",{"$nulls":4},0,0,0,0,0,0,0,null,{"v":0,"d":"$0.00"},{"v":0,"d":"$0.00"},{"v":0,"d":"$0.00"}]
[{"$nulls":3},"Drywall bid/allowance, case by case",{"$nulls":11},1,null,null,"ls","ls",{"v":750,"d":"750.00"},{"$nulls":8},{"v":750,"d":"$750"},null,null,{"v":0,"d":"$0"},null,null,{"v":0,"d":"$0"},null,null,{"v":0,"d":"$0"},{"$nulls":3},{"v":750,"d":"$750"},null,null,{"v":750,"d":"$750"},null,"FRAMING & DRYWALL",{"$nulls":4},750,0,0,0,750,750,0,null,{"v":750,"d":"$750.00"},{"v":0,"d":"$0.00"},{"v":750,"d":"$750.00"}]
[{"$nulls":3},"Drywall wallboard, 1/2\" thick, finish one side",{"$nulls":14},"sf","sf",1.75,null,null,{"v":1,"d":"1.00"},null,{"v":1,"d":"1.00"},{"$nulls":3},{"v":0,"d":"$0"},null,null,{"v":0,"d":"$0"},null,null,{"v":0,"d":"$0"},null,null,{"v":0,"d":"$0"},{"$nulls":3},{"v":0,"d":"$0"},null,null,{"v":0,"d":"$0"},null,"FRAMING & DRYWALL",{"$nulls":4},0,0,0,0,0,0,0,null,{"v":0,"d":"$0.00"},{"v":0,"d":"$0.00"},{"v":0,"d":"$0.00"}]
[{"$nulls":3},"Drywall ceilings, 1/2\" thick",{"$nulls":14},"sf","sf",{"v":4,"d":"4.00"},null,null,0.75,null,0.75,{"$nulls":3},{"v":0,"d":"$0"},null,null,{"v":0,"d":"$0"},null,null,{"v":0,"d":"$0"},null,null,{"v":0,"d":"$0"},{"$nulls":3},{"v":0,"d":"$0"},null,null,{"v":0,"d":"$0"},null,"FRAMING & DRYWALL",{"$nulls":4},0,0,0,0,0,0,0,null,{"v":0,"d":"$0.00"},{"v":0,"d":"$0.00"},{"v":0,"d":"$0.00"}]
[{"$nulls":3},"Skim coating/texturing walls",{"$nulls":14},"sf","sf",{"v":1,"d":"1.00"},null,null,0.25,null,0.25,{"$nulls":3},{"v":0,"d":"$0"},null,null,{"v":0,"d":"$0"},null,null,{"v":0,"d":"$0"},null,null,{"v":0,"d":"$0"},{"$nulls":3},{"v":0,"d":"$0"},null,null,{"v":0,"d":"$0"},null,"FRAMING & DRYWALL",{"$nulls":4},0,0,0,0,{"$f":"SUM(BA646:BC646)","v":0},0,0,null,{"v":0,"d":"$0.00"},{"v":0,"d":"$0.00"},{"v":0,"d":"$0.00"}]
[{"$nulls":3},"Skim coating/texturing ceilings",{"$nulls":14},"sf","sf",1.25,null,null,0.25,null,0.25,{"$nulls":3},{"v":0,"d":"$0"},null,null,{"v":0,"d":"$0"},null,null,{"v":0,"d":"$0"},null,null,{"v":0,"d":"$0"},{"$nulls":3},{"v":0,"d":"$0"},null,null,{"v":0,"d":"$0"},null,"FRAMING & DRYWALL",{"$nulls":4},0,0,0,0,{"$f":"SUM(BA647:BC647)","v":0},0,0,null,{"v":0,"d":"$0.00"},{"v":0,"d":"$0.00"},{"v":0,"d":"$0.00"}]
[{"$nulls":29},{"$f":"((P648*U648)-AM648)","v":{"v":0,"d":"$0"}},null,null,{"v":0,"d":"$0"},null,null,{"$f":"P648*AA648","v":{"v":0,"d":"$0"}},null,null,{"v":0,"d":"$0"},{"$nulls":3},{"$f":"SUM(AD648:AL648)","v":{"v":0,"d":"$0"}},null,null,{"$f":"SUM(AD648:AL648)","v":{"v":0,"d":"$0"}},null,"FRAMING & DRYWALL",{"$nulls":4},{"$f":"AD648","v":0},{"$f":"AG648","v":0},{"$f":"AJ648","v":0},{"$f":"IF(B648=\"x\",1,0)","v":0},{"$f":"SUM(BA648:BC648)","v":0},{"$f":"AQ648","v":0},{"$f":"AM648","v":0},null,{"$f":"AD648","v":{"v":0,"d":"$0.00"}},{"$f":"AM648","v":{"v":0,"d":"$0.00"}},{"$f":"BJ648+BI648","v":{"v":0,"d":"$0.00"}}]
[{"$nulls":29},{"v":0,"d":"$0"},null,null,{"v":0,"d":"$0"},null,null,{"v":0,"d":"$0"},null,null,{"v":0,"d":"$0"},{"$nulls":3},{"v":0,"d":"$0"},null,null,{"v":0,"d":"$0"},null,"FRAMING & DRYWALL",{"$nulls":4},0,{"$f":"AG649","v":0},{"$f":"AJ649","v":0},0,{"$f":"SUM(BA649:BC649)","v":0},0,0,null,{"$f":"AD649","v":{"v":0,"d":"$0.00"}},{"v":0,"d":"$0.00"},{"$f":"BJ649+BI649","v":{"v":0,"d":"$0.00"}}]
[{"$nulls":29},{"v":0,"d":"$0"},null,null,{"v":0,"d":"$0"},null,null,{"v":0,"d":"$0"},null,null,{"v":0,"d":"$0"},{"$nulls":3},{"v":0,"d":"$0"},null,null,{"v":0,"d":"$0"},null,"FRAMING & DRYWALL",{"$nulls":4},0,0,0,0,0,0,0,null,{"v":0,"d":"$0.00"},{"v":0,"d":"$0.00"},{"v":0,"d":"$0.00"}]
[{"$nulls":29},{"v":0,"d":"$0"},null,null,{"v":0,"d":"$0"},null,null,{"v":0,"d":"$0"},null,null,{"v":0,"d":"$0"},{"$nulls":3},{"v":0,"d":"$0"},null,null,{"v":0,"d":"$0"},null,"FRAMING & DRYWALL",{"$nulls":4},0,0,0,0,0,0,0,null,{"v":0,"d":"$0.00"},{"v":0,"d":"$0.00"},{"v":0,"d":"$0.00"}]
[{"$nulls":29},{"v":0,"d":"$0"},null,null,{"v":0,"d":"$0"},null,null,{"v":0,"d":"$0"},null,null,{"v":0,"d":"$0"},{"$nulls":3},{"v":0,"d":"$0"},null,null,{"v":0,"d":"$0"},null,"FRAMING & DRYWALL",{"$nulls":4},0,0,0,0,0,0,0,null,{"v":0,"d":"$0.00"},{"v":0,"d":"$0.00"},{"v":0,"d":"$0.00"}]
[{"$nulls":29},{"v":0,"d":"$0"},null,null,{"v":0,"d":"$0"},null,null,{"v":0,"d":"$0"},null,null,{"v":0,"d":"$0"},{"$nulls":3},{"v":0,"d":"$0"},null,null,{"v":0,"d":"$0"},null,"FRAMING & DRYWALL",{"$nulls":4},0,0,0,0,0,0,0,null,{"v":0,"d":"$0.00"},{"v":0,"d":"$0.00"},{"v":0,"d":"$0.00"}]
[{"$nulls":29},{"v":0,"d":"$0"},null,null,{"v":0,"d":"$0"},null,null,{"v":0,"d":"$0"},null,null,{"v":0,"d":"$0"},{"$nulls":3},{"v":0,"d":"$0"},null,null,{"v":0,"d":"$0"},null,"FRAMING & DRYWALL",{"$nulls":4},0,0,0,0,0,0,0,null,{"v":0,"d":"$0.00"},{"v":0,"d":"$0.00"},{"v":0,"d":"$0.00"}]
[{"$nulls":29},{"v":0,"d":"$0"},null,null,{"v":0,"d":"$0"},null,null,{"v":0,"d":"$0"},null,null,{"v":0,"d":"$0"},{"$nulls":3},{"v":0,"d":"$0"},null,null,{"v":0,"d":"$0"},null,"FRAMING & DRYWALL",{"$nulls":4},0,0,0,0,0,0,0,null,{"v":0,"d":"$0.00"},{"v":0,"d":"$0.00"},{"v":0,"d":"$0.00"}]
[{"$nulls":29},{"v":0,"d":"$0"},null,null,{"v":0,"d":"$0"},null,null,{"v":0,"d":"$0"},null,null,{"v":0,"d":"$0"},{"$nulls":3},{"v":0,"d":"$0"},null,null,{"v":0,"d":"$0"},null,"FRAMING & DRYWALL",{"$nulls":4},0,0,0,0,0,0,0,null,{"v":0,"d":"$0.00"},{"v":0,"d":"$0.00"},{"v":0,"d":"$0.00"}]
[{"$nulls":29},{"v":0,"d":"$0"},null,null,{"v":0,"d":"$0"},null,null,{"v":0,"d":"$0"},null,null,{"v":0,"d":"$0"},{"$nulls":3},{"v":0,"d":"$0"},null,null,{"v":0,"d":"$0"},null,"FRAMING & DRYWALL",{"$nulls":4},0,0,0,0,0,0,0,null,{"v":0,"d":"$0.00"},{"v":0,"d":"$0.00"},{"v":0,"d":"$0.00"}]
[{"$nulls":29},{"v":0,"d":"$0"},null,null,{"v":0,"d":"$0"},null,null,{"v":0,"d":"$0"},null,null,{"v":0,"d":"$0"},{"$nulls":3},{"v":0,"d":"$0"},null,null,{"v":0,"d":"$0"},null,"FRAMING & DRYWALL",{"$nulls":4},0,0,0,0,0,0,0,null,{"v":0,"d":"$0.00"},{"v":0,"d":"$0.00"},{"v":0,"d":"$0.00"}]
[{"$nulls":29},{"v":0,"d":"$0"},null,null,{"v":0,"d":"$0"},null,null,{"v":0,"d":"$0"},null,null,{"v":0,"d":"$0"},{"$nulls":3},{"v":0,"d":"$0"},null,null,{"v":0,"d":"$0"},null,"FRAMING & DRYWALL",{"$nulls":4},0,0,0,0,0,0,0,null,{"v":0,"d":"$0.00"},{"v":0,"d":"$0.00"},{"v":0,"d":"$0.00"}]
[{"$nulls":29},{"v":0,"d":"$0"},null,null,{"v":0,"d":"$0"},null,null,{"v":0,"d":"$0"},null,null,{"v":0,"d":"$0"},{"$nulls":3},{"v":0,"d":"$0"},null,null,{"v":0,"d":"$0"},null,"FRAMING & DRYWALL",{"$nulls":4},0,0,0,0,0,0,0,null,{"v":0,"d":"$0.00"},{"v":0,"d":"$0.00"},{"v":0,"d":"$0.00"}]
[{"$nulls":29},{"v":0,"d":"$0"},null,null,{"v":0,"d":"$0"},null,null,{"v":0,"d":"$0"},null,null,{"v":0,"d":"$0"},{"$nulls":3},{"v":0,"d":"$0"},null,null,{"v":0,"d":"$0"},null,"FRAMING & DRYWALL",{"$nulls":4},0,0,0,0,0,0,0,null,{"v":0,"d":"$0.00"},{"v":0,"d":"$0.00"},{"v":0,"d":"$0.00"}]
[{"$nulls":29},{"v":0,"d":"$0"},null,null,{"v":0,"d":"$0"},null,null,{"v":0,"d":"$0"},null,null,{"v":0,"d":"$0"},{"$nulls":3},{"v":0,"d":"$0"},null,null,{"v":0,"d":"$0"},null,"FRAMING & DRYWALL",{"$nulls":4},0,0,0,0,0,0,0,null,{"v":0,"d":"$0.00"},{"v":0,"d":"$0.00"},{"v":0,"d":"$0.00"}]
[{"$nulls":29},{"v":0,"d":"$0"},null,null,{"v":0,"d":"$0"},null,null,{"v":0,"d":"$0"},null,null,{"v":0,"d":"$0"},{"$nulls":3},{"v":0,"d":"$0"},null,null,{"v":0,"d":"$0"},null,"FRAMING & DRYWALL",{"$nulls":4},0,0,0,0,0,0,0,null,{"v":0,"d":"$0.00"},{"v":0,"d":"$0.00"},{"v":0,"d":"$0.00"}]
[{"$nulls":29},{"v":0,"d":"$0"},null,null,{"v":0,"d":"$0"},null,null,{"v":0,"d":"$0"},null,null,{"v":0,"d":"$0"},{"$nulls":3},{"v":0,"d":"$0"},null,null,{"v":0,"d":"$0"},null,"FRAMING & DRYWALL",{"$nulls":4},0,0,0,0,0,0,0,null,{"v":0,"d":"$0.00"},{"v":0,"d":"$0.00"},{"v":0,"d":"$0.00"}]
[{"$nulls":29},{"v":0,"d":"$0"},null,null,{"v":0,"d":"$0"},null,null,{"v":0,"d":"$0"},null,null,{"v":0,"d":"$0"},{"$nulls":3},{"v":0,"d":"$0"},null,null,{"v":0,"d":"$0"},null,"FRAMING & DRYWALL",{"$nulls":4},0,0,0,0,0,0,0,null,{"v":0,"d":"$0.00"},{"v":0,"d":"$0.00"},{"v":0,"d":"$0.00"}]
[{"$nulls":29},{"v":0,"d":"$0"},null,null,{"v":0,"d":"$0"},null,null,{"v":0,"d":"$0"},null,null,{"v":0,"d":"$0"},{"$nulls":3},{"v":0,"d":"$0"},null,null,{"v":0,"d":"$0"},null,"FRAMING & DRYWALL",{"$nulls":4},0,0,0,0,{"$f":"SUM(BA666:BC666)","v":0},0,0,null,{"v":0,"d":"$0.00"},{"v":0,"d":"$0.00"},{"v":0,"d":"$0.00"}]
[{"$nulls":29},{"v":0,"d":"$0"},null,null,{"v":0,"d":"$0"},null,null,{"v":0,"d":"$0"},null,null,{"v":0,"d":"$0"},{"$nulls":3},{"v":0,"d":"$0"},null,null,{"v":0,"d":"$0"},null,"FRAMING & DRYWALL",{"$nulls":4},0,0,0,0,{"$f":"SUM(BA667:BC667)","v":0},0,0,null,{"v":0,"d":"$0.00"},{"v":0,"d":"$0.00"},{"v":0,"d":"$0.00"}]
[{"$nulls":47},"FRAMING & DRYWALL",{"$nulls":4},{"$f":"BA627","v":{"v":750,"d":"$750"}},{"$f":"BB627","v":{"v":0,"d":"$0"}},{"$f":"BC627","v":{"v":0,"d":"$0"}},{"$f":"BD627","v":{"v":0,"d":"$0"}},{"$f":"BE627","v":{"v":750,"d":"$750"}}]
[{"$nulls":28},{"$f":"CONCATENATE(D627,\" \",\"TOTAL\")","v":"FRAMING & DRYWALL TOTAL"},{"$f":"SUBTOTAL(9,AD628:AD668)","v":{"v":750,"d":"$750"}},null,null,{"$f":"SUBTOTAL(9,AG628:AG668)","v":{"v":0,"d":"$0"}},null,null,{"$f":"SUBTOTAL(9,AJ628:AJ668)","v":{"v":0,"d":"$0"}},null,null,{"$f":"SUBTOTAL(9,AM628:AM668)","v":{"v":0,"d":"$0"}},{"$nulls":3},{"$f":"SUBTOTAL(9,AQ628:AQ668)","v":{"v":750,"d":"$750"}},null,null,{"$f":"SUM(AT625:AT660)","v":{"$error":"#REF!"}},null,"FRAMING & DRYWALL",{"$nulls":4},{"$f":"BA627","v":750},{"$f":"BB627","v":0},{"$f":"BC627","v":0},{"$f":"BD627","v":0},{"$f":"BE627","v":750},{"$f":"SUM(BF627:BF668)","v":1500},{"$f":"SUM(BG627:BG668)","v":0},null,{"$f":"SUM(BI628:BI668)","v":750},{"$f":"SUM(BJ628:BJ668)","v":0},{"$f":"SUM(BK628:BK668)","v":750}]
[{"$nulls":47},"FRAMING & DRYWALL",{"$nulls":4},{"$f":"BA627","v":{"v":750,"d":"$750"}},{"$f":"BB627","v":{"v":0,"d":"$0"}},{"$f":"BC627","v":{"v":0,"d":"$0"}},{"$f":"BD627","v":{"v":0,"d":"$0"}},{"$f":"BE627","v":{"v":750,"d":"$750"}}]
[{"$nulls":47},"FRAMING & DRYWALL",{"$nulls":4},{"$f":"BA669","v":750},{"$f":"BB669","v":0},{"$f":"BC669","v":0},0,750,1500,0]
["Hidden",null,null,{"$f":"T(Y80)","v":"CABINETS & COUNTERTOPS"},{"$nulls":25},{"$f":"AD714","v":{"v":1950,"d":"$1,950"}},null,null,{"$f":"AG714","v":{"v":9496.25,"d":"$9,496"}},null,null,{"$f":"AJ714","v":{"v":0,"d":"$0"}},null,null,{"$f":"AM714","v":{"v":0,"d":"$0"}},{"$nulls":3},{"$f":"AQ714","v":{"v":11446.25,"d":"$11,446"}},null,null,{"$f":"SUM(#REF!)","v":{"$error":"#REF!"}},null,{"$f":"$D$672","v":"CABINETS & COUNTERTOPS"},{"$nulls":4},{"$f":"SUM(BA673:BA712)","v":1950},{"$f":"SUM(BB673:BB712)","v":9496.25},{"$f":"SUM(BC673:BC712)","v":0},{"$f":"SUM(BD673:BD712)","v":0},{"$f":"SUM(BE673:BE712)","v":11446.25},{"$f":"AQ672","v":11446.25},{"$f":"AM672","v":0},null,{"$f":"AD672","v":{"v":1950,"d":"$1,950.00"}},{"$f":"AM672","v":{"v":0,"d":"$0.00"}},{"$f":"BJ672+BI672","v":{"v":1950,"d":"$1,950.00"}}]
[{"$nulls":3},"Cabinet Installation bid/allowance",{"$nulls":14},"ls","ls",{"$nulls":9},{"$f":"((P673*U673)-AM673)","v":{"v":0,"d":"$0"}},null,null,{"$f":"P673*X673*(1+$Y$85)","v":{"v":0,"d":"$0"}},null,null,{"$f":"P673*AA673","v":{"v":0,"d":"$0"}},null,null,{"$f":"IF($B673=\"x\",$P673*$U673,0)","v":{"v":0,"d":"$0"}},{"$nulls":3},{"$f":"SUM(AD673:AL673)","v":{"v":0,"d":"$0"}},{"$nulls":4},"CABINETS & COUNTERTOPS","Kitchen",{"$nulls":3},{"$f":"AD673","v":0},{"$f":"AG673","v":0},{"$f":"AJ673","v":0},{"$f":"IF(B673=\"x\",1,0)","v":0},{"$f":"SUM(BA673:BC673)","v":0},0,0,null,{"$f":"AD673","v":{"v":0,"d":"$0.00"}},{"$f":"AM673","v":{"v":0,"d":"$0.00"}},{"$f":"BJ673+BI673","v":{"v":0,"d":"$0.00"}}]
[{"$nulls":3},"Cabinet Material bid/allowance",{"$nulls":14},"ls","ls",{"$nulls":9},{"v":0,"d":"$0"},null,null,{"$f":"P674*X674*(1+$Y$85)","v":{"v":0,"d":"$0"}},null,null,{"v":0,"d":"$0"},null,null,{"v":0,"d":"$0"},{"$nulls":3},{"v":0,"d":"$0"},{"$nulls":4},"CABINETS & COUNTERTOPS","Kitchen",{"$nulls":3},0,{"$f":"AG674","v":0},{"$f":"AJ674","v":0},0,{"$f":"SUM(BA674:BC674)","v":0},0,0,null,{"$f":"AD674","v":{"v":0,"d":"$0.00"}},{"v":0,"d":"$0.00"},{"$f":"BJ674+BI674","v":{"v":0,"d":"$0.00"}}]
[{"$nulls":3},"Countertop bid/allowance",{"$nulls":14},"ls","ls",{"$nulls":9},{"v":0,"d":"$0"},null,null,{"v":0,"d":"$0"},null,null,{"v":0,"d":"$0"},null,null,{"v":0,"d":"$0"},{"$nulls":3},{"v":0,"d":"$0"},{"$nulls":4},"CABINETS & COUNTERTOPS","Kitchen",{"$nulls":3},0,0,0,0,0,0,0,null,{"v":0,"d":"$0.00"},{"v":0,"d":"$0.00"},{"v":0,"d":"$0.00"}]
[{"$nulls":3},"Kitchen",{"$nulls":15},"ls",{"$nulls":9},{"v":0,"d":"$0"},null,null,{"v":0,"d":"$0"},null,null,{"v":0,"d":"$0"},null,null,{"v":0,"d":"$0"},{"$nulls":3},{"v":0,"d":"$0"},{"$nulls":4},"CABINETS & COUNTERTOPS","Kitchen",{"$nulls":3},0,0,0,0,0,0,0,null,{"v":0,"d":"$0.00"},{"v":0,"d":"$0.00"},{"v":0,"d":"$0.00"}]
[{"$nulls":3},"Kitchen Base Cabinetry",{"$nulls":11},15,null,null,"lf","lf",{"v":50,"d":"50.00"},null,null,{"v":175,"d":"175.00"},null,{"v":130,"d":"130.00"},{"$nulls":3},{"v":750,"d":"$750"},null,null,{"v":2808.75,"d":"$2,809"},null,null,{"v":0,"d":"$0"},null,null,{"v":0,"d":"$0"},{"$nulls":3},{"v":3558.75,"d":"$3,559"},{"$nulls":4},"CABINETS & COUNTERTOPS","Kitchen",{"$nulls":3},750,2808.75,0,0,3558.75,3558.75,0,null,{"v":750,"d":"$750.00"},{"v":0,"d":"$0.00"},{"v":750,"d":"$750.00"}]
[{"$nulls":3},"Kitchen Upper Cabinetry",{"$nulls":11},15,null,null,"lf","lf",{"v":35,"d":"35.00"},null,null,{"v":150,"d":"150.00"},null,{"v":100,"d":"100.00"},{"$nulls":3},{"v":525,"d":"$525"},null,null,{"v":2407.5,"d":"$2,408"},null,null,{"v":0,"d":"$0"},null,null,{"v":0,"d":"$0"},{"$nulls":3},{"v":2932.5,"d":"$2,933"},{"$nulls":4},"CABINETS & COUNTERTOPS","Kitchen",{"$nulls":3},525,2407.5,0,0,2932.5,2932.5,0,null,{"v":525,"d":"$525.00"},{"v":0,"d":"$0.00"},{"v":525,"d":"$525.00"}]
[{"$nulls":3},"Kitchen Pantry Cabinet",{"$nulls":11},1,null,null,"ea","ea",{"v":175,"d":"175.00"},null,null,{"v":900,"d":"900.00"},null,{"v":800,"d":"800.00"},{"$nulls":3},{"v":175,"d":"$175"},null,null,{"v":963,"d":"$963"},null,null,{"v":0,"d":"$0"},null,null,{"v":0,"d":"$0"},{"$nulls":3},{"v":1138,"d":"$1,138"},{"$nulls":4},"CABINETS & COUNTERTOPS","Kitchen",{"$nulls":3},175,963,0,0,1138,1138,0,null,{"v":175,"d":"$175.00"},{"v":0,"d":"$0.00"},{"v":175,"d":"$175.00"}]
[{"$nulls":3},"Plastic laminate countertop",{"$nulls":14},"sf","sf",{"v":5,"d":"5.00"},null,null,{"v":12.5,"d":"12.50"},null,{"v":12.5,"d":"12.50"},{"$nulls":3},{"v":0,"d":"$0"},null,null,{"v":0,"d":"$0"},null,null,{"v":0,"d":"$0"},null,null,{"v":0,"d":"$0"},{"$nulls":3},{"v":0,"d":"$0"},{"$nulls":4},"CABINETS & COUNTERTOPS","Kitchen",{"$nulls":3},0,0,0,0,0,0,0,null,{"v":0,"d":"$0.00"},{"v":0,"d":"$0.00"},{"v":0,"d":"$0.00"}]
[{"$nulls":3},"Replace cabinet doors, only",{"$nulls":14},"ea","ea",{"v":25,"d":"25.00"},null,null,{"v":100,"d":"100.00"},null,{"v":100,"d":"100.00"},{"$nulls":3},{"v":0,"d":"$0"},null,null,{"v":0,"d":"$0"},null,null,{"v":0,"d":"$0"},null,null,{"v":0,"d":"$0"},{"$nulls":3},{"v":0,"d":"$0"},{"$nulls":4},"CABINETS & COUNTERTOPS","Kitchen",{"$nulls":3},0,0,0,0,0,0,0,null,{"v":0,"d":"$0.00"},{"v":0,"d":"$0.00"},{"v":0,"d":"$0.00"}]
[{"$nulls":3},"Replace cabinet drawer fronts, only",{"$nulls":14},"ea","ea",{"v":25,"d":"25.00"},null,null,{"v":40,"d":"40.00"},null,{"v":40,"d":"40.00"},{"$nulls":3},{"v":0,"d":"$0"},null,null,{"v":0,"d":"$0"},null,null,{"v":0,"d":"$0"},null,null,{"v":0,"d":"$0"},{"$nulls":3},{"v":0,"d":"$0"},{"$nulls":4},"CABINETS & COUNTERTOPS","Kitchen",{"$nulls":3},0,0,0,0,0,0,0,null,{"v":0,"d":"$0.00"},{"v":0,"d":"$0.00"},{"v":0,"d":"$0.00"}]
[{"$nulls":3},"New cabinet door pulls",{"$nulls":14},"ea","ea",{"v":5,"d":"5.00"},null,null,{"v":5,"d":"5.00"},null,{"v":3,"d":"3.00"},{"$nulls":3},{"v":0,"d":"$0"},null,null,{"v":0,"d":"$0"},null,null,{"v":0,"d":"$0"},null,null,{"v":0,"d":"$0"},{"$nulls":3},{"v":0,"d":"$0"},{"$nulls":4},"CABINETS & COUNTERTOPS","Kitchen",{"$nulls":3},0,0,0,0,0,0,0,null,{"v":0,"d":"$0.00"},{"v":0,"d":"$0.00"},{"v":0,"d":"$0.00"}]
[{"$nulls":3},"Stone/solid surface countertop, kitchen",{"$nulls":11},30,null,null,"sf","sf",{"$nulls":3},{"v":55,"d":"55.00"},null,{"v":45,"d":"45.00"},{"$nulls":3},{"v":0,"d":"$0"},null,null,{"v":1765.5,"d":"$1,766"},null,null,{"v":0,"d":"$0"},null,null,{"v":0,"d":"$0"},{"$nulls":3},{"v":1765.5,"d":"$1,766"},{"$nulls":4},"CABINETS & COUNTERTOPS","Kitchen",{"$nulls":3},0,1765.5,0,0,1765.5,1765.5,0,null,{"v":0,"d":"$0.00"},{"v":0,"d":"$0.00"},{"v":0,"d":"$0.00"}]
[{"$nulls":3},"Kitchen sink bowl, stainless steel, undermount",{"$nulls":11},1,null,null,"ea","ea",{"v":100,"d":"100.00"},null,null,{"v":250,"d":"250.00"},null,{"v":300,"d":"300.00"},{"$nulls":3},{"v":100,"d":"$100"},null,null,{"v":267.5,"d":"$268"},null,null,{"v":0,"d":"$0"},null,null,{"v":0,"d":"$0"},{"$nulls":3},{"v":367.5,"d":"$368"},{"$nulls":4},"CABINETS & COUNTERTOPS","Kitchen",{"$nulls":3},100,267.5,0,0,367.5,367.5,0,null,{"v":100,"d":"$100.00"},{"v":0,"d":"$0.00"},{"v":100,"d":"$100.00"}]
[{"$nulls":3},"Kitchen sink bowl, composite, undermount",{"$nulls":14},"ea","ea",{"v":100,"d":"100.00"},null,null,{"v":350,"d":"350.00"},null,{"v":300,"d":"300.00"},{"$nulls":3},{"v":0,"d":"$0"},null,null,{"v":0,"d":"$0"},null,null,{"v":0,"d":"$0"},null,null,{"v":0,"d":"$0"},{"$nulls":3},{"v":0,"d":"$0"},{"$nulls":4},"CABINETS & COUNTERTOPS","Kitchen",{"$nulls":3},0,0,0,0,0,0,0,null,{"v":0,"d":"$0.00"},{"v":0,"d":"$0.00"},{"v":0,"d":"$0.00"}]
[{"$nulls":3},"Bathrooms",{"$nulls":15},"ls",{"$nulls":9},{"v":0,"d":"$0"},null,null,{"v":0,"d":"$0"},null,null,{"v":0,"d":"$0"},null,null,{"v":0,"d":"$0"},{"$nulls":3},{"v":0,"d":"$0"},{"$nulls":4},"CABINETS & COUNTERTOPS","Bathrooms",{"$nulls":3},0,0,0,0,0,0,0,null,{"v":0,"d":"$0.00"},{"v":0,"d":"$0.00"},{"v":0,"d":"$0.00"}]
[{"$nulls":3},"Vanity cabinet",{"$nulls":11},2,null,null,"ea","ea",{"v":200,"d":"200.00"},null,null,{"v":600,"d":"600.00"},null,{"v":450,"d":"450.00"},{"$nulls":3},{"v":400,"d":"$400"},null,null,{"v":1284,"d":"$1,284"},null,null,{"v":0,"d":"$0"},null,null,{"v":0,"d":"$0"},{"$nulls":3},{"v":1684,"d":"$1,684"},{"$nulls":4},"CABINETS & COUNTERTOPS","Bathrooms",{"$nulls":3},400,1284,0,0,1684,1684,0,null,{"v":400,"d":"$400.00"},{"v":0,"d":"$0.00"},{"v":400,"d":"$400.00"}]
[{"$nulls":3},"New cabinet door pulls",{"$nulls":14},"ea","ea",{"v":4,"d":"4.00"},null,null,4.25,null,4.25,{"$nulls":3},{"v":0,"d":"$0"},null,null,{"v":0,"d":"$0"},null,null,{"v":0,"d":"$0"},null,null,{"v":0,"d":"$0"},{"$nulls":3},{"v":0,"d":"$0"},{"$nulls":4},"CABINETS & COUNTERTOPS","Bathrooms",{"$nulls":3},0,0,0,0,0,0,0,null,{"v":0,"d":"$0.00"},{"v":0,"d":"$0.00"},{"v":0,"d":"$0.00"}]
[{"$nulls":3},"Vanity countertop, stone/solid surface",{"$nulls":14},"sf","sf",{"$nulls":3},{"v":50,"d":"50.00"},null,{"v":50,"d":"50.00"},{"$nulls":3},{"v":0,"d":"$0"},null,null,{"v":0,"d":"$0"},null,null,{"v":0,"d":"$0"},null,null,{"v":0,"d":"$0"},{"$nulls":3},{"v":0,"d":"$0"},{"$nulls":4},"CABINETS & COUNTERTOPS","Bathrooms",{"$nulls":3},0,0,0,0,0,0,0,null,{"v":0,"d":"$0.00"},{"v":0,"d":"$0.00"},{"v":0,"d":"$0.00"}]
[{"$nulls":29},{"$f":"((P691*U691)-AM691)","v":{"v":0,"d":"$0"}},null,null,{"v":0,"d":"$0"},null,null,{"$f":"P691*AA691","v":{"v":0,"d":"$0"}},null,null,{"v":0,"d":"$0"},{"$nulls":3},{"$f":"SUM(AD691:AL691)","v":{"v":0,"d":"$0"}},{"$nulls":4},"CABINETS & COUNTERTOPS",{"$nulls":4},{"$f":"AD691","v":0},{"$f":"AG691","v":0},{"$f":"AJ691","v":0},{"$f":"IF(B691=\"x\",1,0)","v":0},{"$f":"SUM(BA691:BC691)","v":0},{"$f":"AQ691","v":0},{"$f":"AM691","v":0},null,{"$f":"AD691","v":{"v":0,"d":"$0.00"}},{"$f":"AM691","v":{"v":0,"d":"$0.00"}},{"$f":"BJ691+BI691","v":{"v":0,"d":"$0.00"}}]
[{"$nulls":29},{"v":0,"d":"$0"},null,null,{"v":0,"d":"$0"},null,null,{"v":0,"d":"$0"},null,null,{"v":0,"d":"$0"},{"$nulls":3},{"v":0,"d":"$0"},{"$nulls":4},"CABINETS & COUNTERTOPS",{"$nulls":4},0,0,0,0,0,0,0,null,{"v":0,"d":"$0.00"},{"v":0,"d":"$0.00"},{"v":0,"d":"$0.00"}]
[{"$nulls":29},{"v":0,"d":"$0"},null,null,{"v":0,"d":"$0"},null,null,{"v":0,"d":"$0"},null,null,{"v":0,"d":"$0"},{"$nulls":3},{"v":0,"d":"$0"},{"$nulls":4},"CABINETS & COUNTERTOPS",{"$nulls":4},0,0,0,0,0,0,0,null,{"v":0,"d":"$0.00"},{"v":0,"d":"$0.00"},{"v":0,"d":"$0.00"}]
[{"$nulls":29},{"v":0,"d":"$0"},null,null,{"v":0,"d":"$0"},null,null,{"v":0,"d":"$0"},null,null,{"v":0,"d":"$0"},{"$nulls":3},{"v":0,"d":"$0"},{"$nulls":4},"CABINETS & COUNTERTOPS",{"$nulls":4},0,0,0,0,0,0,0,null,{"v":0,"d":"$0.00"},{"v":0,"d":"$0.00"},{"v":0,"d":"$0.00"}]
[{"$nulls":29},{"v":0,"d":"$0"},null,null,{"v":0,"d":"$0"},null,null,{"v":0,"d":"$0"},null,null,{"v":0,"d":"$0"},{"$nulls":3},{"v":0,"d":"$0"},{"$nulls":4},"CABINETS & COUNTERTOPS",{"$nulls":4},0,0,0,0,0,0,0,null,{"v":0,"d":"$0.00"},{"v":0,"d":"$0.00"},{"v":0,"d":"$0.00"}]
[{"$nulls":29},{"v":0,"d":"$0"},null,null,{"v":0,"d":"$0"},null,null,{"v":0,"d":"$0"},null,null,{"v":0,"d":"$0"},{"$nulls":3},{"v":0,"d":"$0"},{"$nulls":4},"CABINETS & COUNTERTOPS",{"$nulls":4},0,0,0,0,0,0,0,null,{"v":0,"d":"$0.00"},{"v":0,"d":"$0.00"},{"v":0,"d":"$0.00"}]
[{"$nulls":29},{"v":0,"d":"$0"},null,null,{"v":0,"d":"$0"},null,null,{"v":0,"d":"$0"},null,null,{"v":0,"d":"$0"},{"$nulls":3},{"v":0,"d":"$0"},{"$nulls":4},"CABINETS & COUNTERTOPS",{"$nulls":4},0,0,0,0,0,0,0,null,{"v":0,"d":"$0.00"},{"v":0,"d":"$0.00"},{"v":0,"d":"$0.00"}]
[{"$nulls":29},{"v":0,"d":"$0"},null,null,{"v":0,"d":"$0"},null,null,{"v":0,"d":"$0"},null,null,{"v":0,"d":"$0"},{"$nulls":3},{"v":0,"d":"$0"},{"$nulls":4},"CABINETS & COUNTERTOPS",{"$nulls":4},0,0,0,0,0,0,0,null,{"v":0,"d":"$0.00"},{"v":0,"d":"$0.00"},{"v":0,"d":"$0.00"}]
[{"$nulls":29},{"$f":"((P699*U699)-AM699)","v":{"v":0,"d":"$0"}},null,null,{"v":0,"d":"$0"},null,null,{"$f":"P699*AA699","v":{"v":0,"d":"$0"}},null,null,{"v":0,"d":"$0"},{"$nulls":3},{"$f":"SUM(AD699:AL699)","v":{"v":0,"d":"$0"}},{"$nulls":4},"CABINETS & COUNTERTOPS",{"$nulls":4},{"$f":"AD699","v":0},{"$f":"AG699","v":0},{"$f":"AJ699","v":0},{"$f":"IF(B699=\"x\",1,0)","v":0},0,{"$f":"AQ699","v":0},{"$f":"AM699","v":0},null,{"$f":"AD699","v":{"v":0,"d":"$0.00"}},{"$f":"AM699","v":{"v":0,"d":"$0.00"}},{"$f":"BJ699+BI699","v":{"v":0,"d":"$0.00"}}]
[{"$nulls":29},{"v":0,"d":"$0"},null,null,{"v":0,"d":"$0"},null,null,{"v":0,"d":"$0"},null,null,{"v":0,"d":"$0"},{"$nulls":3},{"v":0,"d":"$0"},{"$nulls":4},"CABINETS & COUNTERTOPS",{"$nulls":4},0,0,0,0,0,0,0,null,{"v":0,"d":"$0.00"},{"v":0,"d":"$0.00"},{"v":0,"d":"$0.00"}]
[{"$nulls":29},{"v":0,"d":"$0"},null,null,{"v":0,"d":"$0"},null,null,{"v":0,"d":"$0"},null,null,{"v":0,"d":"$0"},{"$nulls":3},{"v":0,"d":"$0"},{"$nulls":4},"CABINETS & COUNTERTOPS",{"$nulls":4},0,0,0,0,0,0,0,null,{"v":0,"d":"$0.00"},{"v":0,"d":"$0.00"},{"v":0,"d":"$0.00"}]
[{"$nulls":29},{"v":0,"d":"$0"},null,null,{"v":0,"d":"$0"},null,null,{"v":0,"d":"$0"},null,null,{"v":0,"d":"$0"},{"$nulls":3},{"v":0,"d":"$0"},{"$nulls":4},"CABINETS & COUNTERTOPS",{"$nulls":4},0,0,0,0,0,0,0,null,{"v":0,"d":"$0.00"},{"v":0,"d":"$0.00"},{"v":0,"d":"$0.00"}]
[{"$nulls":29},{"v":0,"d":"$0"},null,null,{"v":0,"d":"$0"},null,null,{"v":0,"d":"$0"},null,null,{"v":0,"d":"$0"},{"$nulls":3},{"v":0,"d":"$0"},{"$nulls":4},"CABINETS & COUNTERTOPS",{"$nulls":4},0,0,0,0,0,0,0,null,{"v":0,"d":"$0.00"},{"v":0,"d":"$0.00"},{"v":0,"d":"$0.00"}]
[{"$nulls":29},{"v":0,"d":"$0"},null,null,{"v":0,"d":"$0"},null,null,{"v":0,"d":"$0"},null,null,{"v":0,"d":"$0"},{"$nulls":3},{"v":0,"d":"$0"},{"$nulls":4},"CABINETS & COUNTERTOPS",{"$nulls":4},0,0,0,0,0,0,0,null,{"v":0,"d":"$0.00"},{"v":0,"d":"$0.00"},{"v":0,"d":"$0.00"}]
[{"$nulls":29},{"v":0,"d":"$0"},null,null,{"v":0,"d":"$0"},null,null,{"v":0,"d":"$0"},null,null,{"v":0,"d":"$0"},{"$nulls":3},{"v":0,"d":"$0"},{"$nulls":4},"CABINETS & COUNTERTOPS",{"$nulls":4},0,0,0,0,0,0,0,null,{"v":0,"d":"$0.00"},{"v":0,"d":"$0.00"},{"v":0,"d":"$0.00"}]
[{"$nulls":29},{"v":0,"d":"$0"},null,null,{"v":0,"d":"$0"},null,null,{"v":0,"d":"$0"},null,null,{"v":0,"d":"$0"},{"$nulls":3},{"v":0,"d":"$0"},{"$nulls":4},"CABINETS & COUNTERTOPS",{"$nulls":4},0,0,0,0,0,0,0,null,{"v":0,"d":"$0.00"},{"v":0,"d":"$0.00"},{"v":0,"d":"$0.00"}]
[{"$nulls":29},{"v":0,"d":"$0"},null,null,{"v":0,"d":"$0"},null,null,{"v":0,"d":"$0"},null,null,{"v":0,"d":"$0"},{"$nulls":3},{"v":0,"d":"$0"},{"$nulls":4},"CABINETS & COUNTERTOPS",{"$nulls":4},0,0,0,0,0,0,0,null,{"v":0,"d":"$0.00"},{"v":0,"d":"$0.00"},{"v":0,"d":"$0.00"}]
[{"$nulls":29},{"v":0,"d":"$0"},null,null,{"v":0,"d":"$0"},null,null,{"v":0,"d":"$0"},null,null,{"v":0,"d":"$0"},{"$nulls":3},{"v":0,"d":"$0"},{"$nulls":4},"CABINETS & COUNTERTOPS",{"$nulls":4},0,0,0,0,0,0,0,null,{"v":0,"d":"$0.00"},{"v":0,"d":"$0.00"},{"v":0,"d":"$0.00"}]
[{"$nulls":29},{"v":0,"d":"$0"},null,null,{"v":0,"d":"$0"},null,null,{"v":0,"d":"$0"},null,null,{"v":0,"d":"$0"},{"$nulls":3},{"v":0,"d":"$0"},{"$nulls":4},"CABINETS & COUNTERTOPS",{"$nulls":4},0,0,0,0,0,0,0,null,{"v":0,"d":"$0.00"},{"v":0,"d":"$0.00"},{"v":0,"d":"$0.00"}]
[{"$nulls":29},{"$f":"((P710*U710)-AM710)","v":{"v":0,"d":"$0"}},null,null,{"v":0,"d":"$0"},null,null,{"$f":"P710*AA710","v":{"v":0,"d":"$0"}},null,null,{"v":0,"d":"$0"},{"$nulls":3},{"$f":"SUM(AD710:AL710)","v":{"v":0,"d":"$0"}},{"$nulls":4},"CABINETS & COUNTERTOPS",{"$nulls":4},{"$f":"AD710","v":0},{"$f":"AG710","v":0},{"$f":"AJ710","v":0},{"$f":"IF(B710=\"x\",1,0)","v":0},0,{"$f":"AQ710","v":0},{"$f":"AM710","v":0},null,{"$f":"AD710","v":{"v":0,"d":"$0.00"}},{"$f":"AM710","v":{"v":0,"d":"$0.00"}},{"$f":"BJ710+BI710","v":{"v":0,"d":"$0.00"}}]
[{"$nulls":29},{"$f":"((P711*U711)-AM711)","v":{"v":0,"d":"$0"}},null,null,{"v":0,"d":"$0"},null,null,{"$f":"P711*AA711","v":{"v":0,"d":"$0"}},null,null,{"v":0,"d":"$0"},{"$nulls":3},{"$f":"SUM(AD711:AL711)","v":{"v":0,"d":"$0"}},{"$nulls":4},"CABINETS & COUNTERTOPS",{"$nulls":4},{"$f":"AD711","v":0},{"$f":"AG711","v":0},{"$f":"AJ711","v":0},{"$f":"IF(B711=\"x\",1,0)","v":0},0,{"$f":"AQ711","v":0},{"$f":"AM711","v":0},null,{"$f":"AD711","v":{"v":0,"d":"$0.00"}},{"$f":"AM711","v":{"v":0,"d":"$0.00"}},{"$f":"BJ711+BI711","v":{"v":0,"d":"$0.00"}}]
[{"$nulls":29},{"$f":"((P712*U712)-AM712)","v":{"v":0,"d":"$0"}},null,null,{"v":0,"d":"$0"},null,null,{"$f":"P712*AA712","v":{"v":0,"d":"$0"}},null,null,{"v":0,"d":"$0"},{"$nulls":3},{"$f":"SUM(AD712:AL712)","v":{"v":0,"d":"$0"}},{"$nulls":4},"CABINETS & COUNTERTOPS",{"$nulls":4},{"$f":"AD712","v":0},{"$f":"AG712","v":0},{"$f":"AJ712","v":0},{"$f":"IF(B712=\"x\",1,0)","v":0},0,{"$f":"AQ712","v":0},{"$f":"AM712","v":0},null,{"$f":"AD712","v":{"v":0,"d":"$0.00"}},{"$f":"AM712","v":{"v":0,"d":"$0.00"}},{"$f":"BJ712+BI712","v":{"v":0,"d":"$0.00"}}]
[{"$nulls":47},"CABINETS & COUNTERTOPS",{"$nulls":4},{"$f":"BA672","v":{"v":1950,"d":"$1,950"}},{"$f":"BB672","v":{"v":9496.25,"d":"$9,496"}},{"$f":"BC672","v":{"v":0,"d":"$0"}},{"$f":"BD672","v":{"v":0,"d":"$0"}},{"$f":"BE672","v":{"v":11446.25,"d":"$11,446"}}]
[{"$nulls":28},{"$f":"CONCATENATE(D672,\" \",\"TOTAL\")","v":"CABINETS & COUNTERTOPS TOTAL"},{"$f":"SUBTOTAL(9,AD673:AD713)","v":{"v":1950,"d":"$1,950"}},null,null,{"$f":"SUBTOTAL(9,AG673:AG713)","v":{"v":9496.25,"d":"$9,496"}},null,null,{"$f":"SUBTOTAL(9,AJ673:AJ713)","v":{"v":0,"d":"$0"}},null,null,{"$f":"SUBTOTAL(9,AM673:AM713)","v":{"v":0,"d":"$0"}},{"$nulls":3},{"$f":"SUBTOTAL(9,AQ673:AQ713)","v":{"v":11446.25,"d":"$11,446"}},null,null,{"$f":"SUM(AT670:AT705)","v":{"$error":"#REF!"}},null,"CABINETS & COUNTERTOPS",{"$nulls":4},{"$f":"BA672","v":1950},{"$f":"BB672","v":9496.25},{"$f":"BC672","v":0},{"$f":"BD672","v":0},{"$f":"BE672","v":11446.25},{"$f":"SUM(BF672:BF713)","v":22892.5},{"$f":"SUM(BG672:BG713)","v":0},null,{"$f":"SUM(BI673:BI713)","v":1950},{"$f":"SUM(BJ673:BJ713)","v":0},{"$f":"SUM(BK673:BK713)","v":1950}]
[{"$nulls":47},"CABINETS & COUNTERTOPS",{"$nulls":4},{"$f":"BA672","v":{"v":1950,"d":"$1,950"}},{"$f":"BB672","v":{"v":9496.25,"d":"$9,496"}},{"$f":"BC672","v":{"v":0,"d":"$0"}},{"$f":"BD672","v":{"v":0,"d":"$0"}},{"$f":"BE672","v":{"v":11446.25,"d":"$11,446"}}]
[{"$nulls":47},"CABINETS & COUNTERTOPS",{"$nulls":4},{"$f":"BA714","v":1950},{"$f":"BB714","v":9496.25},{"$f":"BC714","v":0},0,11446.25,22892.5,0]
["Hidden",null,null,{"$f":"T(Y81)","v":"DOORS & TRIM"},{"$nulls":25},{"$f":"AD759","v":{"v":1125,"d":"$1,125"}},null,null,{"$f":"AG759","v":{"v":1284,"d":"$1,284"}},null,null,{"$f":"AJ759","v":{"v":0,"d":"$0"}},null,null,{"$f":"AM759","v":{"v":0,"d":"$0"}},{"$nulls":3},{"$f":"AQ759","v":{"v":2409,"d":"$2,409"}},null,null,{"$f":"SUM(#REF!)","v":{"$error":"#REF!"}},null,{"$f":"$D$717","v":"DOORS & TRIM"},{"$nulls":4},{"$f":"SUM(BA718:BA757)","v":1125},{"$f":"SUM(BB718:BB757)","v":1284},{"$f":"SUM(BC718:BC757)","v":0},{"$f":"SUM(BD718:BD757)","v":0},{"$f":"SUM(BE718:BE757)","v":2409},{"$f":"AQ717","v":2409},{"$f":"AM717","v":0},null,{"$f":"AD717","v":{"v":1125,"d":"$1,125.00"}},{"$f":"AM717","v":{"v":0,"d":"$0.00"}},{"$f":"BJ717+BI717","v":{"v":1125,"d":"$1,125.00"}}]
[{"$nulls":3},"Finish carpentry bid/allowance",{"$nulls":14},"ls","ls",{"$nulls":9},{"$f":"((P718*U718)-AM718)","v":{"v":0,"d":"$0"}},null,null,{"$f":"P718*X718*(1+$Y$85)","v":{"v":0,"d":"$0"}},null,null,{"$f":"P718*AA718","v":{"v":0,"d":"$0"}},null,null,{"$f":"IF($B718=\"x\",$P718*$U718,0)","v":{"v":0,"d":"$0"}},{"$nulls":3},{"$f":"SUM(AD718:AL718)","v":{"v":0,"d":"$0"}},null,null,{"$f":"SUM(AD718:AL718)","v":{"v":0,"d":"$0"}},null,"DOORS & TRIM",{"$nulls":4},{"$f":"AD718","v":0},{"$f":"AG718","v":0},{"$f":"AJ718","v":0},{"$f":"IF(B718=\"x\",1,0)","v":0},{"$f":"SUM(BA718:BC718)","v":0},0,0,null,{"$f":"AD718","v":{"v":0,"d":"$0.00"}},{"$f":"AM718","v":{"v":0,"d":"$0.00"}},{"$f":"BJ718+BI718","v":{"v":0,"d":"$0.00"}}]
[{"$nulls":3},"Interior door, prehung, hollow-core door",{"$nulls":11},15,null,null,"ea","ea",{"v":75,"d":"75.00"},null,null,{"v":80,"d":"80.00"},null,{"v":75,"d":"75.00"},{"$nulls":3},{"v":1125,"d":"$1,125"},null,null,{"$f":"P719*X719*(1+$Y$85)","v":{"v":1284,"d":"$1,284"}},null,null,{"v":0,"d":"$0"},null,null,{"v":0,"d":"$0"},{"$nulls":3},{"v":2409,"d":"$2,409"},null,null,{"v":2409,"d":"$2,409"},null,"DOORS & TRIM",{"$nulls":4},1125,{"$f":"AG719","v":1284},{"$f":"AJ719","v":0},0,{"$f":"SUM(BA719:BC719)","v":2409},2409,0,null,{"$f":"AD719","v":{"v":1125,"d":"$1,125.00"}},{"v":0,"d":"$0.00"},{"$f":"BJ719+BI719","v":{"v":1125,"d":"$1,125.00"}}]
[{"$nulls":3},"Interior mirrored, sliding, closet doors",{"$nulls":14},"ea","ea",{"v":75,"d":"75.00"},null,null,{"v":95,"d":"95.00"},null,{"v":75,"d":"75.00"},{"$nulls":3},{"v":0,"d":"$0"},null,null,{"v":0,"d":"$0"},null,null,{"v":0,"d":"$0"},null,null,{"v":0,"d":"$0"},{"$nulls":3},{"v":0,"d":"$0"},null,null,{"v":0,"d":"$0"},null,"DOORS & TRIM",{"$nulls":4},0,0,0,0,0,0,0,null,{"v":0,"d":"$0.00"},{"v":0,"d":"$0.00"},{"v":0,"d":"$0.00"}]
[{"$nulls":3},"Interior bi-fold, closet doors",{"$nulls":14},"ea","ea",{"v":75,"d":"75.00"},null,null,{"v":100,"d":"100.00"},null,{"v":100,"d":"100.00"},{"$nulls":3},{"v":0,"d":"$0"},null,null,{"v":0,"d":"$0"},null,null,{"v":0,"d":"$0"},null,null,{"v":0,"d":"$0"},{"$nulls":3},{"v":0,"d":"$0"},null,null,{"v":0,"d":"$0"},null,"DOORS & TRIM",{"$nulls":4},0,0,0,0,0,0,0,null,{"v":0,"d":"$0.00"},{"v":0,"d":"$0.00"},{"v":0,"d":"$0.00"}]
[{"$nulls":3},"Door hardware, knobs only",{"$nulls":14},"ea","ea",{"v":15,"d":"15.00"},null,null,{"v":15,"d":"15.00"},null,{"v":15,"d":"15.00"},{"$nulls":3},{"v":0,"d":"$0"},null,null,{"v":0,"d":"$0"},null,null,{"v":0,"d":"$0"},null,null,{"v":0,"d":"$0"},{"$nulls":3},{"v":0,"d":"$0"},null,null,{"v":0,"d":"$0"},null,"DOORS & TRIM",{"$nulls":4},0,0,0,0,0,0,0,null,{"v":0,"d":"$0.00"},{"v":0,"d":"$0.00"},{"v":0,"d":"$0.00"}]
[{"$nulls":3},"Door casings",{"$nulls":14},"ea","lf",{"v":50,"d":"50.00"},null,null,{"v":25,"d":"25.00"},{"$nulls":5},{"v":0,"d":"$0"},null,null,{"v":0,"d":"$0"},null,null,{"v":0,"d":"$0"},null,null,{"v":0,"d":"$0"},{"$nulls":3},{"v":0,"d":"$0"},null,null,{"v":0,"d":"$0"},null,"DOORS & TRIM",{"$nulls":4},0,0,0,0,0,0,0,null,{"v":0,"d":"$0.00"},{"v":0,"d":"$0.00"},{"v":0,"d":"$0.00"}]
[{"$nulls":3},"Window casings",{"$nulls":14},"ea",null,{"v":50,"d":"50.00"},null,null,{"v":30,"d":"30.00"},{"$nulls":5},{"v":0,"d":"$0"},null,null,{"v":0,"d":"$0"},null,null,{"v":0,"d":"$0"},null,null,{"v":0,"d":"$0"},{"$nulls":3},{"v":0,"d":"$0"},null,null,{"v":0,"d":"$0"},null,"DOORS & TRIM",{"$nulls":4},0,0,0,0,0,0,0,null,{"v":0,"d":"$0.00"},{"v":0,"d":"$0.00"},{"v":0,"d":"$0.00"}]
[{"$nulls":3},"Window sills",{"$nulls":14},"lf",null,{"v":5,"d":"5.00"},null,null,{"v":2.5,"d":"2.50"},{"$nulls":5},{"v":0,"d":"$0"},null,null,{"v":0,"d":"$0"},null,null,{"v":0,"d":"$0"},null,null,{"v":0,"d":"$0"},{"$nulls":3},{"v":0,"d":"$0"},null,null,{"v":0,"d":"$0"},null,"DOORS & TRIM",{"$nulls":4},0,0,0,0,0,0,0,null,{"v":0,"d":"$0.00"},{"v":0,"d":"$0.00"},{"v":0,"d":"$0.00"}]
[{"$nulls":3},"Wood  base",{"$nulls":14},"lf","lf",2.25,null,null,1.25,null,{"v":1,"d":"1.00"},{"$nulls":3},{"v":0,"d":"$0"},null,null,{"v":0,"d":"$0"},null,null,{"v":0,"d":"$0"},null,null,{"v":0,"d":"$0"},{"$nulls":3},{"v":0,"d":"$0"},null,null,{"v":0,"d":"$0"},null,"DOORS & TRIM",{"$nulls":4},0,0,0,0,0,0,0,null,{"v":0,"d":"$0.00"},{"v":0,"d":"$0.00"},{"v":0,"d":"$0.00"}]
[{"$nulls":3},"Crown molding",{"$nulls":14},"lf","lf",{"v":3.5,"d":"3.50"},null,null,{"v":2,"d":"2.00"},null,1.75,{"$nulls":3},{"v":0,"d":"$0"},null,null,{"v":0,"d":"$0"},null,null,{"v":0,"d":"$0"},null,null,{"v":0,"d":"$0"},{"$nulls":3},{"v":0,"d":"$0"},null,null,{"v":0,"d":"$0"},null,"DOORS & TRIM",{"$nulls":4},0,0,0,0,0,0,0,null,{"v":0,"d":"$0.00"},{"v":0,"d":"$0.00"},{"v":0,"d":"$0.00"}]
[{"$nulls":3},"Raised panel wood wainscoting",{"$nulls":14},"lf","lf",{"v":10,"d":"10.00"},null,null,{"v":7.5,"d":"7.50"},null,{"v":7.5,"d":"7.50"},{"$nulls":3},{"v":0,"d":"$0"},null,null,{"v":0,"d":"$0"},null,null,{"v":0,"d":"$0"},null,null,{"v":0,"d":"$0"},{"$nulls":3},{"v":0,"d":"$0"},null,null,{"v":0,"d":"$0"},null,"DOORS & TRIM",{"$nulls":4},0,0,0,0,0,0,0,null,{"v":0,"d":"$0.00"},{"v":0,"d":"$0.00"},{"v":0,"d":"$0.00"}]
[{"$nulls":3},"Bead board wainscoting",{"$nulls":14},"lf","lf",{"v":17.5,"d":"17.50"},null,null,{"v":12.5,"d":"12.50"},null,{"v":12.5,"d":"12.50"},{"$nulls":3},{"v":0,"d":"$0"},null,null,{"v":0,"d":"$0"},null,null,{"v":0,"d":"$0"},null,null,{"v":0,"d":"$0"},{"$nulls":3},{"v":0,"d":"$0"},null,null,{"v":0,"d":"$0"},null,"DOORS & TRIM",{"$nulls":4},0,0,0,0,0,0,0,null,{"v":0,"d":"$0.00"},{"v":0,"d":"$0.00"},{"v":0,"d":"$0.00"}]
[{"$nulls":3},"Fireplace mantel",{"$nulls":14},"ea","ea",{"v":250,"d":"250.00"},null,null,{"v":300,"d":"300.00"},null,{"v":300,"d":"300.00"},{"$nulls":3},{"v":0,"d":"$0"},null,null,{"v":0,"d":"$0"},null,null,{"v":0,"d":"$0"},null,null,{"v":0,"d":"$0"},{"$nulls":3},{"v":0,"d":"$0"},null,null,{"v":0,"d":"$0"},null,"DOORS & TRIM",{"$nulls":4},0,0,0,0,0,0,0,null,{"v":0,"d":"$0.00"},{"v":0,"d":"$0.00"},{"v":0,"d":"$0.00"}]
[{"$nulls":3},"Wood columns",{"$nulls":14},"ea","ea",{"v":150,"d":"150.00"},null,null,{"v":150,"d":"150.00"},null,{"v":125,"d":"125.00"},{"$nulls":3},{"v":0,"d":"$0"},null,null,{"v":0,"d":"$0"},null,null,{"v":0,"d":"$0"},null,null,{"v":0,"d":"$0"},{"$nulls":3},{"v":0,"d":"$0"},null,null,{"v":0,"d":"$0"},null,"DOORS & TRIM",{"$nulls":4},0,0,0,0,0,0,0,null,{"v":0,"d":"$0.00"},{"v":0,"d":"$0.00"},{"v":0,"d":"$0.00"}]
[{"$nulls":3},"Closet shelf and rod",{"$nulls":14},"lf","lf",{"v":10,"d":"10.00"},null,null,{"v":3.5,"d":"3.50"},null,{"v":3.5,"d":"3.50"},{"$nulls":3},{"v":0,"d":"$0"},null,null,{"v":0,"d":"$0"},null,null,{"v":0,"d":"$0"},null,null,{"v":0,"d":"$0"},{"$nulls":3},{"v":0,"d":"$0"},null,null,{"v":0,"d":"$0"},null,"DOORS & TRIM",{"$nulls":4},0,0,0,0,0,0,0,null,{"v":0,"d":"$0.00"},{"v":0,"d":"$0.00"},{"v":0,"d":"$0.00"}]
[{"$nulls":3},"Closet kit, 8ft long",{"$nulls":14},"lf",null,{"v":125,"d":"125.00"},null,null,{"v":350,"d":"350.00"},{"$nulls":5},{"v":0,"d":"$0"},null,null,{"v":0,"d":"$0"},null,null,{"v":0,"d":"$0"},null,null,{"v":0,"d":"$0"},{"$nulls":3},{"v":0,"d":"$0"},null,null,{"v":0,"d":"$0"},null,"DOORS & TRIM",{"$nulls":4},0,0,0,0,0,0,0,null,{"v":0,"d":"$0.00"},{"v":0,"d":"$0.00"},{"v":0,"d":"$0.00"}]
[{"$nulls":3},"Wood handrail - rail only",{"$nulls":14},"lf","lf",{"v":10,"d":"10.00"},null,null,{"v":4,"d":"4.00"},null,{"v":4,"d":"4.00"},{"$nulls":3},{"v":0,"d":"$0"},null,null,{"v":0,"d":"$0"},null,null,{"v":0,"d":"$0"},null,null,{"v":0,"d":"$0"},{"$nulls":3},{"v":0,"d":"$0"},null,null,{"v":0,"d":"$0"},null,"DOORS & TRIM",{"$nulls":4},0,0,0,0,0,0,0,null,{"v":0,"d":"$0.00"},{"v":0,"d":"$0.00"},{"v":0,"d":"$0.00"}]
[{"$nulls":3},"Wood balusters",{"$nulls":14},"lf","lf",{"v":20,"d":"20.00"},null,null,{"v":10,"d":"10.00"},null,{"v":4,"d":"4.00"},{"$nulls":3},{"v":0,"d":"$0"},null,null,{"v":0,"d":"$0"},null,null,{"v":0,"d":"$0"},null,null,{"v":0,"d":"$0"},{"$nulls":3},{"v":0,"d":"$0"},null,null,{"v":0,"d":"$0"},null,"DOORS & TRIM",{"$nulls":4},0,0,0,0,0,0,0,null,{"v":0,"d":"$0.00"},{"v":0,"d":"$0.00"},{"v":0,"d":"$0.00"}]
[{"$nulls":3},"Iron balusters",{"$nulls":14},"lf","lf",{"v":25,"d":"25.00"},null,null,{"v":30,"d":"30.00"},null,{"v":21,"d":"21.00"},{"$nulls":3},{"v":0,"d":"$0"},null,null,{"v":0,"d":"$0"},null,null,{"v":0,"d":"$0"},null,null,{"v":0,"d":"$0"},{"$nulls":3},{"v":0,"d":"$0"},null,null,{"v":0,"d":"$0"},null,"DOORS & TRIM",{"$nulls":4},0,0,0,0,{"$f":"SUM(BA736:BC736)","v":0},0,0,null,{"v":0,"d":"$0.00"},{"v":0,"d":"$0.00"},{"v":0,"d":"$0.00"}]
[{"$nulls":29},{"v":0,"d":"$0"},null,null,{"v":0,"d":"$0"},null,null,{"v":0,"d":"$0"},null,null,{"v":0,"d":"$0"},{"$nulls":3},{"v":0,"d":"$0"},null,null,{"v":0,"d":"$0"},null,"DOORS & TRIM",{"$nulls":4},0,0,0,0,{"$f":"SUM(BA737:BC737)","v":0},0,0,null,{"v":0,"d":"$0.00"},{"v":0,"d":"$0.00"},{"v":0,"d":"$0.00"}]
[{"$nulls":29},{"$f":"((P738*U738)-AM738)","v":{"v":0,"d":"$0"}},null,null,{"v":0,"d":"$0"},null,null,{"$f":"P738*AA738","v":{"v":0,"d":"$0"}},null,null,{"v":0,"d":"$0"},{"$nulls":3},{"$f":"SUM(AD738:AL738)","v":{"v":0,"d":"$0"}},null,null,{"$f":"SUM(AD738:AL738)","v":{"v":0,"d":"$0"}},null,"DOORS & TRIM",{"$nulls":4},{"$f":"AD738","v":0},{"$f":"AG738","v":0},{"$f":"AJ738","v":0},{"$f":"IF(B738=\"x\",1,0)","v":0},{"$f":"SUM(BA738:BC738)","v":0},{"$f":"AQ738","v":0},{"$f":"AM738","v":0},null,{"$f":"AD738","v":{"v":0,"d":"$0.00"}},{"$f":"AM738","v":{"v":0,"d":"$0.00"}},{"$f":"BJ738+BI738","v":{"v":0,"d":"$0.00"}}]
[{"$nulls":29},{"v":0,"d":"$0"},null,null,{"v":0,"d":"$0"},null,null,{"v":0,"d":"$0"},null,null,{"v":0,"d":"$0"},{"$nulls":3},{"v":0,"d":"$0"},null,null,{"v":0,"d":"$0"},null,"DOORS & TRIM",{"$nulls":4},0,{"$f":"AG739","v":0},{"$f":"AJ739","v":0},0,{"$f":"SUM(BA739:BC739)","v":0},0,0,null,{"$f":"AD739","v":{"v":0,"d":"$0.00"}},{"v":0,"d":"$0.00"},{"$f":"BJ739+BI739","v":{"v":0,"d":"$0.00"}}]
[{"$nulls":29},{"v":0,"d":"$0"},null,null,{"v":0,"d":"$0"},null,null,{"v":0,"d":"$0"},null,null,{"v":0,"d":"$0"},{"$nulls":3},{"v":0,"d":"$0"},null,null,{"v":0,"d":"$0"},null,"DOORS & TRIM",{"$nulls":4},0,0,0,0,0,0,0,null,{"v":0,"d":"$0.00"},{"v":0,"d":"$0.00"},{"v":0,"d":"$0.00"}]
[{"$nulls":29},{"v":0,"d":"$0"},null,null,{"v":0,"d":"$0"},null,null,{"v":0,"d":"$0"},null,null,{"v":0,"d":"$0"},{"$nulls":3},{"v":0,"d":"$0"},null,null,{"v":0,"d":"$0"},null,"DOORS & TRIM",{"$nulls":4},0,0,0,0,0,0,0,null,{"v":0,"d":"$0.00"},{"v":0,"d":"$0.00"},{"v":0,"d":"$0.00"}]
[{"$nulls":29},{"v":0,"d":"$0"},null,null,{"v":0,"d":"$0"},null,null,{"v":0,"d":"$0"},null,null,{"v":0,"d":"$0"},{"$nulls":3},{"v":0,"d":"$0"},null,null,{"v":0,"d":"$0"},null,"DOORS & TRIM",{"$nulls":4},0,0,0,0,0,0,0,null,{"v":0,"d":"$0.00"},{"v":0,"d":"$0.00"},{"v":0,"d":"$0.00"}]
[{"$nulls":29},{"v":0,"d":"$0"},null,null,{"v":0,"d":"$0"},null,null,{"v":0,"d":"$0"},null,null,{"v":0,"d":"$0"},{"$nulls":3},{"v":0,"d":"$0"},null,null,{"v":0,"d":"$0"},null,"DOORS & TRIM",{"$nulls":4},0,0,0,0,0,0,0,null,{"v":0,"d":"$0.00"},{"v":0,"d":"$0.00"},{"v":0,"d":"$0.00"}]
[{"$nulls":29},{"v":0,"d":"$0"},null,null,{"v":0,"d":"$0"},null,null,{"v":0,"d":"$0"},null,null,{"v":0,"d":"$0"},{"$nulls":3},{"v":0,"d":"$0"},null,null,{"v":0,"d":"$0"},null,"DOORS & TRIM",{"$nulls":4},0,0,0,0,0,0,0,null,{"v":0,"d":"$0.00"},{"v":0,"d":"$0.00"},{"v":0,"d":"$0.00"}]
[{"$nulls":29},{"v":0,"d":"$0"},null,null,{"v":0,"d":"$0"},null,null,{"v":0,"d":"$0"},null,null,{"v":0,"d":"$0"},{"$nulls":3},{"v":0,"d":"$0"},null,null,{"v":0,"d":"$0"},null,"DOORS & TRIM",{"$nulls":4},0,0,0,0,0,0,0,null,{"v":0,"d":"$0.00"},{"v":0,"d":"$0.00"},{"v":0,"d":"$0.00"}]
[{"$nulls":29},{"v":0,"d":"$0"},null,null,{"v":0,"d":"$0"},null,null,{"v":0,"d":"$0"},null,null,{"v":0,"d":"$0"},{"$nulls":3},{"v":0,"d":"$0"},null,null,{"v":0,"d":"$0"},null,"DOORS & TRIM",{"$nulls":4},0,0,0,0,0,0,0,null,{"v":0,"d":"$0.00"},{"v":0,"d":"$0.00"},{"v":0,"d":"$0.00"}]
[{"$nulls":29},{"v":0,"d":"$0"},null,null,{"v":0,"d":"$0"},null,null,{"v":0,"d":"$0"},null,null,{"v":0,"d":"$0"},{"$nulls":3},{"v":0,"d":"$0"},null,null,{"v":0,"d":"$0"},null,"DOORS & TRIM",{"$nulls":4},0,0,0,0,0,0,0,null,{"v":0,"d":"$0.00"},{"v":0,"d":"$0.00"},{"v":0,"d":"$0.00"}]
[{"$nulls":29},{"v":0,"d":"$0"},null,null,{"v":0,"d":"$0"},null,null,{"v":0,"d":"$0"},null,null,{"v":0,"d":"$0"},{"$nulls":3},{"v":0,"d":"$0"},null,null,{"v":0,"d":"$0"},null,"DOORS & TRIM",{"$nulls":4},0,0,0,0,0,0,0,null,{"v":0,"d":"$0.00"},{"v":0,"d":"$0.00"},{"v":0,"d":"$0.00"}]
[{"$nulls":29},{"v":0,"d":"$0"},null,null,{"v":0,"d":"$0"},null,null,{"v":0,"d":"$0"},null,null,{"v":0,"d":"$0"},{"$nulls":3},{"v":0,"d":"$0"},null,null,{"v":0,"d":"$0"},null,"DOORS & TRIM",{"$nulls":4},0,0,0,0,0,0,0,null,{"v":0,"d":"$0.00"},{"v":0,"d":"$0.00"},{"v":0,"d":"$0.00"}]
[{"$nulls":29},{"v":0,"d":"$0"},null,null,{"v":0,"d":"$0"},null,null,{"v":0,"d":"$0"},null,null,{"v":0,"d":"$0"},{"$nulls":3},{"v":0,"d":"$0"},null,null,{"v":0,"d":"$0"},null,"DOORS & TRIM",{"$nulls":4},0,0,0,0,0,0,0,null,{"v":0,"d":"$0.00"},{"v":0,"d":"$0.00"},{"v":0,"d":"$0.00"}]
[{"$nulls":29},{"v":0,"d":"$0"},null,null,{"v":0,"d":"$0"},null,null,{"v":0,"d":"$0"},null,null,{"v":0,"d":"$0"},{"$nulls":3},{"v":0,"d":"$0"},null,null,{"v":0,"d":"$0"},null,"DOORS & TRIM",{"$nulls":4},0,0,0,0,0,0,0,null,{"v":0,"d":"$0.00"},{"v":0,"d":"$0.00"},{"v":0,"d":"$0.00"}]
[{"$nulls":29},{"v":0,"d":"$0"},null,null,{"v":0,"d":"$0"},null,null,{"v":0,"d":"$0"},null,null,{"v":0,"d":"$0"},{"$nulls":3},{"v":0,"d":"$0"},null,null,{"v":0,"d":"$0"},null,"DOORS & TRIM",{"$nulls":4},0,0,0,0,0,0,0,null,{"v":0,"d":"$0.00"},{"v":0,"d":"$0.00"},{"v":0,"d":"$0.00"}]
[{"$nulls":29},{"v":0,"d":"$0"},null,null,{"v":0,"d":"$0"},null,null,{"v":0,"d":"$0"},null,null,{"v":0,"d":"$0"},{"$nulls":3},{"v":0,"d":"$0"},null,null,{"v":0,"d":"$0"},null,"DOORS & TRIM",{"$nulls":4},0,0,0,0,0,0,0,null,{"v":0,"d":"$0.00"},{"v":0,"d":"$0.00"},{"v":0,"d":"$0.00"}]
[{"$nulls":29},{"v":0,"d":"$0"},null,null,{"v":0,"d":"$0"},null,null,{"v":0,"d":"$0"},null,null,{"v":0,"d":"$0"},{"$nulls":3},{"v":0,"d":"$0"},null,null,{"v":0,"d":"$0"},null,"DOORS & TRIM",{"$nulls":4},0,0,0,0,0,0,0,null,{"v":0,"d":"$0.00"},{"v":0,"d":"$0.00"},{"v":0,"d":"$0.00"}]
[{"$nulls":29},{"v":0,"d":"$0"},null,null,{"v":0,"d":"$0"},null,null,{"v":0,"d":"$0"},null,null,{"v":0,"d":"$0"},{"$nulls":3},{"v":0,"d":"$0"},null,null,{"v":0,"d":"$0"},null,"DOORS & TRIM",{"$nulls":4},0,0,0,0,0,0,0,null,{"v":0,"d":"$0.00"},{"v":0,"d":"$0.00"},{"v":0,"d":"$0.00"}]
[{"$nulls":29},{"v":0,"d":"$0"},null,null,{"v":0,"d":"$0"},null,null,{"v":0,"d":"$0"},null,null,{"v":0,"d":"$0"},{"$nulls":3},{"v":0,"d":"$0"},null,null,{"v":0,"d":"$0"},null,"DOORS & TRIM",{"$nulls":4},0,0,0,0,{"$f":"SUM(BA756:BC756)","v":0},0,0,null,{"v":0,"d":"$0.00"},{"v":0,"d":"$0.00"},{"v":0,"d":"$0.00"}]
[{"$nulls":29},{"v":0,"d":"$0"},null,null,{"v":0,"d":"$0"},null,null,{"v":0,"d":"$0"},null,null,{"v":0,"d":"$0"},{"$nulls":3},{"v":0,"d":"$0"},null,null,{"v":0,"d":"$0"},null,"DOORS & TRIM",{"$nulls":4},0,0,0,0,{"$f":"SUM(BA757:BC757)","v":0},0,0,null,{"v":0,"d":"$0.00"},{"v":0,"d":"$0.00"},{"v":0,"d":"$0.00"}]
[{"$nulls":47},"DOORS & TRIM",{"$nulls":4},{"$f":"BA717","v":{"v":1125,"d":"$1,125"}},{"$f":"BB717","v":{"v":1284,"d":"$1,284"}},{"$f":"BC717","v":{"v":0,"d":"$0"}},{"$f":"BD717","v":{"v":0,"d":"$0"}},{"$f":"BE717","v":{"v":2409,"d":"$2,409"}}]
[{"$nulls":28},{"$f":"CONCATENATE(D717,\" \",\"TOTAL\")","v":"DOORS & TRIM TOTAL"},{"$f":"SUBTOTAL(9,AD718:AD758)","v":{"v":1125,"d":"$1,125"}},null,null,{"$f":"SUBTOTAL(9,AG718:AG758)","v":{"v":1284,"d":"$1,284"}},null,null,{"$f":"SUBTOTAL(9,AJ718:AJ758)","v":{"v":0,"d":"$0"}},null,null,{"$f":"SUBTOTAL(9,AM718:AM758)","v":{"v":0,"d":"$0"}},{"$nulls":3},{"$f":"SUBTOTAL(9,AQ718:AQ758)","v":{"v":2409,"d":"$2,409"}},null,null,{"$f":"SUM(AT715:AT750)","v":{"$error":"#REF!"}},null,"DOORS & TRIM",{"$nulls":4},{"$f":"BA717","v":1125},{"$f":"BB717","v":1284},{"$f":"BC717","v":0},{"$f":"BD717","v":0},{"$f":"BE717","v":2409},{"$f":"SUM(BF717:BF758)","v":4818},{"$f":"SUM(BG717:BG758)","v":0},null,{"$f":"SUM(BI718:BI758)","v":1125},{"$f":"SUM(BJ718:BJ758)","v":0},{"$f":"SUM(BK718:BK758)","v":1125}]
[{"$nulls":47},"DOORS & TRIM",{"$nulls":4},{"$f":"BA717","v":{"v":1125,"d":"$1,125"}},{"$f":"BB717","v":{"v":1284,"d":"$1,284"}},{"$f":"BC717","v":{"v":0,"d":"$0"}},{"$f":"BD717","v":{"v":0,"d":"$0"}},{"$f":"BE717","v":{"v":2409,"d":"$2,409"}}]
[{"$nulls":47},"DOORS & TRIM",{"$nulls":4},{"$f":"BA759","v":1125},{"$f":"BB759","v":1284},{"$f":"BC759","v":0},0,2409,4818,0]
["Hidden",null,null,{"$f":"T(Y82)","v":"CARPET & RESILIENT"},{"$nulls":25},{"$f":"AD804","v":{"v":900,"d":"$900"}},null,null,{"$f":"AG804","v":{"v":1605,"d":"$1,605"}},null,null,{"$f":"AJ804","v":{"v":0,"d":"$0"}},null,null,{"$f":"AM804","v":{"v":0,"d":"$0"}},{"$nulls":3},{"$f":"AQ804","v":{"v":2505,"d":"$2,505"}},null,null,{"$f":"SUM(#REF!)","v":{"$error":"#REF!"}},null,{"$f":"$D$762","v":"CARPET & RESILIENT"},{"$nulls":4},{"$f":"SUM(BA763:BA802)","v":900},{"$f":"SUM(BB763:BB802)","v":1605},{"$f":"SUM(BC763:BC802)","v":0},{"$f":"SUM(BD763:BD802)","v":0},{"$f":"SUM(BE763:BE802)","v":2505},{"$f":"AQ762","v":2505},{"$f":"AM762","v":0},null,{"$f":"AD762","v":{"v":900,"d":"$900.00"}},{"$f":"AM762","v":{"v":0,"d":"$0.00"}},{"$f":"BJ762+BI762","v":{"v":900,"d":"$900.00"}}]
[{"$nulls":3},"Carpeting & Resilient bid/allowance",{"$nulls":14},"ls","ls",{"$nulls":9},{"$f":"((P763*U763)-AM763)","v":{"v":0,"d":"$0"}},null,null,{"$f":"P763*X763*(1+$Y$85)","v":{"v":0,"d":"$0"}},null,null,{"$f":"P763*AA763","v":{"v":0,"d":"$0"}},null,null,{"$f":"IF($B763=\"x\",$P763*$U763,0)","v":{"v":0,"d":"$0"}},{"$nulls":3},{"$f":"SUM(AD763:AL763)","v":{"v":0,"d":"$0"}},null,null,{"$f":"SUM(AD763:AL763)","v":{"v":0,"d":"$0"}},null,"CARPET & RESILIENT",{"$nulls":4},{"$f":"AD763","v":0},{"$f":"AG763","v":0},{"$f":"AJ763","v":0},{"$f":"IF(B763=\"x\",1,0)","v":0},{"$f":"SUM(BA763:BC763)","v":0},0,0,null,{"$f":"AD763","v":{"v":0,"d":"$0.00"}},{"$f":"AM763","v":{"v":0,"d":"$0.00"}},{"$f":"BJ763+BI763","v":{"v":0,"d":"$0.00"}}]
[{"$nulls":3},"Carpeting",{"$nulls":25},{"v":0,"d":"$0"},null,null,{"$f":"P764*X764*(1+$Y$85)","v":{"v":0,"d":"$0"}},null,null,{"v":0,"d":"$0"},null,null,{"v":0,"d":"$0"},{"$nulls":3},{"v":0,"d":"$0"},null,null,{"v":0,"d":"$0"},null,"CARPET & RESILIENT",{"$nulls":4},0,{"$f":"AG764","v":0},{"$f":"AJ764","v":0},0,{"$f":"SUM(BA764:BC764)","v":0},0,0,null,{"$f":"AD764","v":{"v":0,"d":"$0.00"}},{"v":0,"d":"$0.00"},{"$f":"BJ764+BI764","v":{"v":0,"d":"$0.00"}}]
[{"$nulls":3},"Carpet, economy grade",{"$nulls":11},1200,null,null,"sf",null,0.75,null,null,1.25,{"$nulls":5},{"v":900,"d":"$900"},null,null,{"v":1605,"d":"$1,605"},null,null,{"v":0,"d":"$0"},null,null,{"v":0,"d":"$0"},{"$nulls":3},{"v":2505,"d":"$2,505"},null,null,{"v":2505,"d":"$2,505"},null,"CARPET & RESILIENT",{"$nulls":4},900,1605,0,0,2505,2505,0,null,{"v":900,"d":"$900.00"},{"v":0,"d":"$0.00"},{"v":900,"d":"$900.00"}]
[{"$nulls":3},"Carpet average grade",{"$nulls":14},"sf",null,0.75,null,null,{"v":2,"d":"2.00"},{"$nulls":5},{"v":0,"d":"$0"},null,null,{"v":0,"d":"$0"},null,null,{"v":0,"d":"$0"},null,null,{"v":0,"d":"$0"},{"$nulls":3},{"v":0,"d":"$0"},null,null,{"v":0,"d":"$0"},null,"CARPET & RESILIENT",{"$nulls":4},0,0,0,0,0,0,0,null,{"v":0,"d":"$0.00"},{"v":0,"d":"$0.00"},{"v":0,"d":"$0.00"}]
[{"$nulls":3},"Carpet, premium grade",{"$nulls":14},"sf",null,0.75,null,null,{"v":3,"d":"3.00"},{"$nulls":5},{"v":0,"d":"$0"},null,null,{"v":0,"d":"$0"},null,null,{"v":0,"d":"$0"},null,null,{"v":0,"d":"$0"},{"$nulls":3},{"v":0,"d":"$0"},null,null,{"v":0,"d":"$0"},null,"CARPET & RESILIENT",{"$nulls":4},0,0,0,0,0,0,0,null,{"v":0,"d":"$0.00"},{"v":0,"d":"$0.00"},{"v":0,"d":"$0.00"}]
[{"$nulls":29},{"v":0,"d":"$0"},null,null,{"v":0,"d":"$0"},null,null,{"v":0,"d":"$0"},null,null,{"v":0,"d":"$0"},{"$nulls":3},{"v":0,"d":"$0"},null,null,{"v":0,"d":"$0"},null,"CARPET & RESILIENT",{"$nulls":4},0,0,0,0,0,0,0,null,{"v":0,"d":"$0.00"},{"v":0,"d":"$0.00"},{"v":0,"d":"$0.00"}]
[{"$nulls":29},{"v":0,"d":"$0"},null,null,{"v":0,"d":"$0"},null,null,{"v":0,"d":"$0"},null,null,{"v":0,"d":"$0"},{"$nulls":3},{"v":0,"d":"$0"},null,null,{"v":0,"d":"$0"},null,"CARPET & RESILIENT",{"$nulls":4},0,0,0,0,0,0,0,null,{"v":0,"d":"$0.00"},{"v":0,"d":"$0.00"},{"v":0,"d":"$0.00"}]
[{"$nulls":3},"Sheet Vinyl",{"$nulls":25},{"v":0,"d":"$0"},null,null,{"v":0,"d":"$0"},null,null,{"v":0,"d":"$0"},null,null,{"v":0,"d":"$0"},{"$nulls":3},{"v":0,"d":"$0"},null,null,{"v":0,"d":"$0"},null,"CARPET & RESILIENT",{"$nulls":4},0,0,0,0,0,0,0,null,{"v":0,"d":"$0.00"},{"v":0,"d":"$0.00"},{"v":0,"d":"$0.00"}]
[{"$nulls":3},"Sheet vinyl, economy grade",{"$nulls":14},"sf",null,{"v":1,"d":"1.00"},null,null,{"v":2,"d":"2.00"},{"$nulls":5},{"v":0,"d":"$0"},null,null,{"v":0,"d":"$0"},null,null,{"v":0,"d":"$0"},null,null,{"v":0,"d":"$0"},{"$nulls":3},{"v":0,"d":"$0"},null,null,{"v":0,"d":"$0"},null,"CARPET & RESILIENT",{"$nulls":4},0,0,0,0,0,0,0,null,{"v":0,"d":"$0.00"},{"v":0,"d":"$0.00"},{"v":0,"d":"$0.00"}]
[{"$nulls":3},"Sheet vinyl, average grade",{"$nulls":14},"sf",null,{"v":1,"d":"1.00"},null,null,{"v":3,"d":"3.00"},{"$nulls":5},{"v":0,"d":"$0"},null,null,{"v":0,"d":"$0"},null,null,{"v":0,"d":"$0"},null,null,{"v":0,"d":"$0"},{"$nulls":3},{"v":0,"d":"$0"},null,null,{"v":0,"d":"$0"},null,"CARPET & RESILIENT",{"$nulls":4},0,0,0,0,0,0,0,null,{"v":0,"d":"$0.00"},{"v":0,"d":"$0.00"},{"v":0,"d":"$0.00"}]
[{"$nulls":3},"Sheet vinyl, premium grade",{"$nulls":14},"sf",null,{"v":1,"d":"1.00"},null,null,{"v":4.5,"d":"4.50"},{"$nulls":5},{"v":0,"d":"$0"},null,null,{"v":0,"d":"$0"},null,null,{"v":0,"d":"$0"},null,null,{"v":0,"d":"$0"},{"$nulls":3},{"v":0,"d":"$0"},null,null,{"v":0,"d":"$0"},null,"CARPET & RESILIENT",{"$nulls":4},0,0,0,0,0,0,0,null,{"v":0,"d":"$0.00"},{"v":0,"d":"$0.00"},{"v":0,"d":"$0.00"}]
[{"$nulls":3},"Clean and wax vinyl",{"$nulls":14},"sf",null,0.17,null,null,0.03,{"$nulls":5},{"v":0,"d":"$0"},null,null,{"v":0,"d":"$0"},null,null,{"v":0,"d":"$0"},null,null,{"v":0,"d":"$0"},{"$nulls":3},{"v":0,"d":"$0"},null,null,{"v":0,"d":"$0"},null,"CARPET & RESILIENT",{"$nulls":4},0,0,0,0,0,0,0,null,{"v":0,"d":"$0.00"},{"v":0,"d":"$0.00"},{"v":0,"d":"$0.00"}]
[{"$nulls":29},{"v":0,"d":"$0"},null,null,{"v":0,"d":"$0"},null,null,{"v":0,"d":"$0"},null,null,{"v":0,"d":"$0"},{"$nulls":3},{"v":0,"d":"$0"},null,null,{"v":0,"d":"$0"},null,"CARPET & RESILIENT",{"$nulls":4},0,0,0,0,0,0,0,null,{"v":0,"d":"$0.00"},{"v":0,"d":"$0.00"},{"v":0,"d":"$0.00"}]
[{"$nulls":3},"Vinyl Tile",{"$nulls":15},"sf",{"$nulls":9},{"v":0,"d":"$0"},null,null,{"v":0,"d":"$0"},null,null,{"v":0,"d":"$0"},null,null,{"v":0,"d":"$0"},{"$nulls":3},{"v":0,"d":"$0"},null,null,{"v":0,"d":"$0"},null,"CARPET & RESILIENT",{"$nulls":4},0,0,0,0,0,0,0,null,{"v":0,"d":"$0.00"},{"v":0,"d":"$0.00"},{"v":0,"d":"$0.00"}]
[{"$nulls":3},"Vinyl tile, economy grade",{"$nulls":14},"sf","lf",0.65,null,null,{"v":2,"d":"2.00"},{"$nulls":5},{"v":0,"d":"$0"},null,null,{"v":0,"d":"$0"},null,null,{"v":0,"d":"$0"},null,null,{"v":0,"d":"$0"},{"$nulls":3},{"v":0,"d":"$0"},null,null,{"v":0,"d":"$0"},null,"CARPET & RESILIENT",{"$nulls":4},0,0,0,0,0,0,0,null,{"v":0,"d":"$0.00"},{"v":0,"d":"$0.00"},{"v":0,"d":"$0.00"}]
[{"$nulls":3},"Vinyl tile, average grade",{"$nulls":14},"sf",null,0.65,null,null,{"v":5,"d":"5.00"},{"$nulls":5},{"v":0,"d":"$0"},null,null,{"v":0,"d":"$0"},null,null,{"v":0,"d":"$0"},null,null,{"v":0,"d":"$0"},{"$nulls":3},{"v":0,"d":"$0"},null,null,{"v":0,"d":"$0"},null,"CARPET & RESILIENT",{"$nulls":4},0,0,0,0,0,0,0,null,{"v":0,"d":"$0.00"},{"v":0,"d":"$0.00"},{"v":0,"d":"$0.00"}]
[{"$nulls":3},"Vinyl tile, premium grade",{"$nulls":14},"sf",null,0.65,null,null,{"v":8,"d":"8.00"},{"$nulls":5},{"v":0,"d":"$0"},null,null,{"v":0,"d":"$0"},null,null,{"v":0,"d":"$0"},null,null,{"v":0,"d":"$0"},{"$nulls":3},{"v":0,"d":"$0"},null,null,{"v":0,"d":"$0"},null,"CARPET & RESILIENT",{"$nulls":4},0,0,0,0,0,0,0,null,{"v":0,"d":"$0.00"},{"v":0,"d":"$0.00"},{"v":0,"d":"$0.00"}]
[{"$nulls":3},"Clean and wax vinyl",{"$nulls":14},"sf",null,0.17,null,null,0.03,{"$nulls":5},{"v":0,"d":"$0"},null,null,{"v":0,"d":"$0"},null,null,{"v":0,"d":"$0"},null,null,{"v":0,"d":"$0"},{"$nulls":3},{"v":0,"d":"$0"},null,null,{"v":0,"d":"$0"},null,"CARPET & RESILIENT",{"$nulls":4},0,0,0,0,0,0,0,null,{"v":0,"d":"$0.00"},{"v":0,"d":"$0.00"},{"v":0,"d":"$0.00"}]
[{"$nulls":29},{"v":0,"d":"$0"},null,null,{"v":0,"d":"$0"},null,null,{"v":0,"d":"$0"},null,null,{"v":0,"d":"$0"},{"$nulls":3},{"v":0,"d":"$0"},null,null,{"v":0,"d":"$0"},null,"CARPET & RESILIENT",{"$nulls":4},0,0,0,0,{"$f":"SUM(BA781:BC781)","v":0},0,0,null,{"v":0,"d":"$0.00"},{"v":0,"d":"$0.00"},{"v":0,"d":"$0.00"}]
[{"$nulls":29},{"v":0,"d":"$0"},null,null,{"v":0,"d":"$0"},null,null,{"v":0,"d":"$0"},null,null,{"v":0,"d":"$0"},{"$nulls":3},{"v":0,"d":"$0"},null,null,{"v":0,"d":"$0"},null,"CARPET & RESILIENT",{"$nulls":4},0,0,0,0,{"$f":"SUM(BA782:BC782)","v":0},0,0,null,{"v":0,"d":"$0.00"},{"v":0,"d":"$0.00"},{"v":0,"d":"$0.00"}]
[{"$nulls":29},{"$f":"((P783*U783)-AM783)","v":{"v":0,"d":"$0"}},null,null,{"v":0,"d":"$0"},null,null,{"$f":"P783*AA783","v":{"v":0,"d":"$0"}},null,null,{"v":0,"d":"$0"},{"$nulls":3},{"$f":"SUM(AD783:AL783)","v":{"v":0,"d":"$0"}},null,null,{"$f":"SUM(AD783:AL783)","v":{"v":0,"d":"$0"}},null,"CARPET & RESILIENT",{"$nulls":4},{"$f":"AD783","v":0},{"$f":"AG783","v":0},{"$f":"AJ783","v":0},{"$f":"IF(B783=\"x\",1,0)","v":0},{"$f":"SUM(BA783:BC783)","v":0},{"$f":"AQ783","v":0},{"$f":"AM783","v":0},null,{"$f":"AD783","v":{"v":0,"d":"$0.00"}},{"$f":"AM783","v":{"v":0,"d":"$0.00"}},{"$f":"BJ783+BI783","v":{"v":0,"d":"$0.00"}}]
[{"$nulls":29},{"v":0,"d":"$0"},null,null,{"v":0,"d":"$0"},null,null,{"v":0,"d":"$0"},null,null,{"v":0,"d":"$0"},{"$nulls":3},{"v":0,"d":"$0"},null,null,{"v":0,"d":"$0"},null,"CARPET & RESILIENT",{"$nulls":4},0,{"$f":"AG784","v":0},{"$f":"AJ784","v":0},0,{"$f":"SUM(BA784:BC784)","v":0},0,0,null,{"$f":"AD784","v":{"v":0,"d":"$0.00"}},{"v":0,"d":"$0.00"},{"$f":"BJ784+BI784","v":{"v":0,"d":"$0.00"}}]
[{"$nulls":29},{"v":0,"d":"$0"},null,null,{"v":0,"d":"$0"},null,null,{"v":0,"d":"$0"},null,null,{"v":0,"d":"$0"},{"$nulls":3},{"v":0,"d":"$0"},null,null,{"v":0,"d":"$0"},null,"CARPET & RESILIENT",{"$nulls":4},0,0,0,0,0,0,0,null,{"v":0,"d":"$0.00"},{"v":0,"d":"$0.00"},{"v":0,"d":"$0.00"}]
[{"$nulls":29},{"v":0,"d":"$0"},null,null,{"v":0,"d":"$0"},null,null,{"v":0,"d":"$0"},null,null,{"v":0,"d":"$0"},{"$nulls":3},{"v":0,"d":"$0"},null,null,{"v":0,"d":"$0"},null,"CARPET & RESILIENT",{"$nulls":4},0,0,0,0,0,0,0,null,{"v":0,"d":"$0.00"},{"v":0,"d":"$0.00"},{"v":0,"d":"$0.00"}]
[{"$nulls":29},{"v":0,"d":"$0"},null,null,{"v":0,"d":"$0"},null,null,{"v":0,"d":"$0"},null,null,{"v":0,"d":"$0"},{"$nulls":3},{"v":0,"d":"$0"},null,null,{"v":0,"d":"$0"},null,"CARPET & RESILIENT",{"$nulls":4},0,0,0,0,0,0,0,null,{"v":0,"d":"$0.00"},{"v":0,"d":"$0.00"},{"v":0,"d":"$0.00"}]
[{"$nulls":29},{"v":0,"d":"$0"},null,null,{"v":0,"d":"$0"},null,null,{"v":0,"d":"$0"},null,null,{"v":0,"d":"$0"},{"$nulls":3},{"v":0,"d":"$0"},null,null,{"v":0,"d":"$0"},null,"CARPET & RESILIENT",{"$nulls":4},0,0,0,0,0,0,0,null,{"v":0,"d":"$0.00"},{"v":0,"d":"$0.00"},{"v":0,"d":"$0.00"}]
[{"$nulls":29},{"v":0,"d":"$0"},null,null,{"v":0,"d":"$0"},null,null,{"v":0,"d":"$0"},null,null,{"v":0,"d":"$0"},{"$nulls":3},{"v":0,"d":"$0"},null,null,{"v":0,"d":"$0"},null,"CARPET & RESILIENT",{"$nulls":4},0,0,0,0,0,0,0,null,{"v":0,"d":"$0.00"},{"v":0,"d":"$0.00"},{"v":0,"d":"$0.00"}]
[{"$nulls":29},{"v":0,"d":"$0"},null,null,{"v":0,"d":"$0"},null,null,{"v":0,"d":"$0"},null,null,{"v":0,"d":"$0"},{"$nulls":3},{"v":0,"d":"$0"},null,null,{"v":0,"d":"$0"},null,"CARPET & RESILIENT",{"$nulls":4},0,0,0,0,0,0,0,null,{"v":0,"d":"$0.00"},{"v":0,"d":"$0.00"},{"v":0,"d":"$0.00"}]
[{"$nulls":29},{"v":0,"d":"$0"},null,null,{"v":0,"d":"$0"},null,null,{"v":0,"d":"$0"},null,null,{"v":0,"d":"$0"},{"$nulls":3},{"v":0,"d":"$0"},null,null,{"v":0,"d":"$0"},null,"CARPET & RESILIENT",{"$nulls":4},0,0,0,0,0,0,0,null,{"v":0,"d":"$0.00"},{"v":0,"d":"$0.00"},{"v":0,"d":"$0.00"}]
[{"$nulls":29},{"v":0,"d":"$0"},null,null,{"v":0,"d":"$0"},null,null,{"v":0,"d":"$0"},null,null,{"v":0,"d":"$0"},{"$nulls":3},{"v":0,"d":"$0"},null,null,{"v":0,"d":"$0"},null,"CARPET & RESILIENT",{"$nulls":4},0,0,0,0,0,0,0,null,{"v":0,"d":"$0.00"},{"v":0,"d":"$0.00"},{"v":0,"d":"$0.00"}]
[{"$nulls":29},{"v":0,"d":"$0"},null,null,{"v":0,"d":"$0"},null,null,{"v":0,"d":"$0"},null,null,{"v":0,"d":"$0"},{"$nulls":3},{"v":0,"d":"$0"},null,null,{"v":0,"d":"$0"},null,"CARPET & RESILIENT",{"$nulls":4},0,0,0,0,0,0,0,null,{"v":0,"d":"$0.00"},{"v":0,"d":"$0.00"},{"v":0,"d":"$0.00"}]
[{"$nulls":29},{"v":0,"d":"$0"},null,null,{"v":0,"d":"$0"},null,null,{"v":0,"d":"$0"},null,null,{"v":0,"d":"$0"},{"$nulls":3},{"v":0,"d":"$0"},null,null,{"v":0,"d":"$0"},null,"CARPET & RESILIENT",{"$nulls":4},0,0,0,0,0,0,0,null,{"v":0,"d":"$0.00"},{"v":0,"d":"$0.00"},{"v":0,"d":"$0.00"}]
[{"$nulls":29},{"v":0,"d":"$0"},null,null,{"v":0,"d":"$0"},null,null,{"v":0,"d":"$0"},null,null,{"v":0,"d":"$0"},{"$nulls":3},{"v":0,"d":"$0"},null,null,{"v":0,"d":"$0"},null,"CARPET & RESILIENT",{"$nulls":4},0,0,0,0,0,0,0,null,{"v":0,"d":"$0.00"},{"v":0,"d":"$0.00"},{"v":0,"d":"$0.00"}]
[{"$nulls":29},{"v":0,"d":"$0"},null,null,{"v":0,"d":"$0"},null,null,{"v":0,"d":"$0"},null,null,{"v":0,"d":"$0"},{"$nulls":3},{"v":0,"d":"$0"},null,null,{"v":0,"d":"$0"},null,"CARPET & RESILIENT",{"$nulls":4},0,0,0,0,0,0,0,null,{"v":0,"d":"$0.00"},{"v":0,"d":"$0.00"},{"v":0,"d":"$0.00"}]
[{"$nulls":29},{"v":0,"d":"$0"},null,null,{"v":0,"d":"$0"},null,null,{"v":0,"d":"$0"},null,null,{"v":0,"d":"$0"},{"$nulls":3},{"v":0,"d":"$0"},null,null,{"v":0,"d":"$0"},null,"CARPET & RESILIENT",{"$nulls":4},0,0,0,0,0,0,0,null,{"v":0,"d":"$0.00"},{"v":0,"d":"$0.00"},{"v":0,"d":"$0.00"}]
[{"$nulls":29},{"v":0,"d":"$0"},null,null,{"v":0,"d":"$0"},null,null,{"v":0,"d":"$0"},null,null,{"v":0,"d":"$0"},{"$nulls":3},{"v":0,"d":"$0"},null,null,{"v":0,"d":"$0"},null,"CARPET & RESILIENT",{"$nulls":4},0,0,0,0,0,0,0,null,{"v":0,"d":"$0.00"},{"v":0,"d":"$0.00"},{"v":0,"d":"$0.00"}]
[{"$nulls":29},{"v":0,"d":"$0"},null,null,{"v":0,"d":"$0"},null,null,{"v":0,"d":"$0"},null,null,{"v":0,"d":"$0"},{"$nulls":3},{"v":0,"d":"$0"},null,null,{"v":0,"d":"$0"},null,"CARPET & RESILIENT",{"$nulls":4},0,0,0,0,0,0,0,null,{"v":0,"d":"$0.00"},{"v":0,"d":"$0.00"},{"v":0,"d":"$0.00"}]
[{"$nulls":29},{"v":0,"d":"$0"},null,null,{"v":0,"d":"$0"},null,null,{"v":0,"d":"$0"},null,null,{"v":0,"d":"$0"},{"$nulls":3},{"v":0,"d":"$0"},null,null,{"v":0,"d":"$0"},null,"CARPET & RESILIENT",{"$nulls":4},0,0,0,0,0,0,0,null,{"v":0,"d":"$0.00"},{"v":0,"d":"$0.00"},{"v":0,"d":"$0.00"}]
[{"$nulls":29},{"v":0,"d":"$0"},null,null,{"v":0,"d":"$0"},null,null,{"v":0,"d":"$0"},null,null,{"v":0,"d":"$0"},{"$nulls":3},{"v":0,"d":"$0"},null,null,{"v":0,"d":"$0"},null,"CARPET & RESILIENT",{"$nulls":4},0,0,0,0,{"$f":"SUM(BA801:BC801)","v":0},0,0,null,{"v":0,"d":"$0.00"},{"v":0,"d":"$0.00"},{"v":0,"d":"$0.00"}]
[{"$nulls":29},{"v":0,"d":"$0"},null,null,{"v":0,"d":"$0"},null,null,{"v":0,"d":"$0"},null,null,{"v":0,"d":"$0"},{"$nulls":3},{"v":0,"d":"$0"},null,null,{"v":0,"d":"$0"},null,"CARPET & RESILIENT",{"$nulls":4},0,0,0,0,{"$f":"SUM(BA802:BC802)","v":0},0,0,null,{"v":0,"d":"$0.00"},{"v":0,"d":"$0.00"},{"v":0,"d":"$0.00"}]
[{"$nulls":47},"CARPET & RESILIENT",{"$nulls":4},{"$f":"BA762","v":{"v":900,"d":"$900"}},{"$f":"BB762","v":{"v":1605,"d":"$1,605"}},{"$f":"BC762","v":{"v":0,"d":"$0"}},{"$f":"BD762","v":{"v":0,"d":"$0"}},{"$f":"BE762","v":{"v":2505,"d":"$2,505"}}]
[{"$nulls":28},{"$f":"CONCATENATE(D762,\" \",\"TOTAL\")","v":"CARPET & RESILIENT TOTAL"},{"$f":"SUBTOTAL(9,AD763:AD803)","v":{"v":900,"d":"$900"}},null,null,{"$f":"SUBTOTAL(9,AG763:AG803)","v":{"v":1605,"d":"$1,605"}},null,null,{"$f":"SUBTOTAL(9,AJ763:AJ803)","v":{"v":0,"d":"$0"}},null,null,{"$f":"SUBTOTAL(9,AM763:AM803)","v":{"v":0,"d":"$0"}},{"$nulls":3},{"$f":"SUBTOTAL(9,AQ763:AQ803)","v":{"v":2505,"d":"$2,505"}},null,null,{"$f":"SUM(AT760:AT795)","v":{"$error":"#REF!"}},null,"CARPET & RESILIENT",{"$nulls":4},{"$f":"BA762","v":900},{"$f":"BB762","v":1605},{"$f":"BC762","v":0},{"$f":"BD762","v":0},{"$f":"BE762","v":2505},{"$f":"SUM(BF762:BF803)","v":5010},{"$f":"SUM(BG762:BG803)","v":0},null,{"$f":"SUM(BI763:BI803)","v":900},{"$f":"SUM(BJ763:BJ803)","v":0},{"$f":"SUM(BK763:BK803)","v":900}]
[{"$nulls":47},"CARPET & RESILIENT",{"$nulls":4},{"$f":"BA762","v":{"v":900,"d":"$900"}},{"$f":"BB762","v":{"v":1605,"d":"$1,605"}},{"$f":"BC762","v":{"v":0,"d":"$0"}},{"$f":"BD762","v":{"v":0,"d":"$0"}},{"$f":"BE762","v":{"v":2505,"d":"$2,505"}}]
[{"$nulls":47},"CARPET & RESILIENT",{"$nulls":4},{"$f":"BA804","v":900},{"$f":"BB804","v":1605},{"$f":"BC804","v":0},0,2505,5010,0]
["Hidden",null,null,{"$f":"T(AJ75)","v":"HARDWOOD FLOORING"},{"$nulls":25},{"$f":"AD849","v":{"v":1425,"d":"$1,425"}},null,null,{"$f":"AG849","v":{"v":2033.0000000000002,"d":"$2,033"}},null,null,{"$f":"AJ849","v":{"v":0,"d":"$0"}},null,null,{"$f":"AM849","v":{"v":0,"d":"$0"}},{"$nulls":3},{"$f":"AQ849","v":{"v":3458,"d":"$3,458"}},null,null,{"$f":"SUM(#REF!)","v":{"$error":"#REF!"}},null,{"$f":"$D$807","v":"HARDWOOD FLOORING"},{"$nulls":4},{"$f":"SUM(BA808:BA847)","v":1425},{"$f":"SUM(BB808:BB847)","v":2033.0000000000002},{"$f":"SUM(BC808:BC847)","v":0},{"$f":"SUM(BD808:BD847)","v":0},{"$f":"SUM(BE808:BE847)","v":3458},{"$f":"AQ807","v":3458},{"$f":"AM807","v":0},null,{"$f":"AD807","v":{"v":1425,"d":"$1,425.00"}},{"$f":"AM807","v":{"v":0,"d":"$0.00"}},{"$f":"BJ807+BI807","v":{"v":1425,"d":"$1,425.00"}}]
[{"$nulls":3},"Hardwood floors, bid/allowance",{"$nulls":14},"ls","ls",{"$nulls":9},{"$f":"((P808*U808)-AM808)","v":{"v":0,"d":"$0"}},null,null,{"$f":"P808*X808*(1+$Y$85)","v":{"v":0,"d":"$0"}},null,null,{"$f":"P808*AA808","v":{"v":0,"d":"$0"}},null,null,{"$f":"IF($B808=\"x\",$P808*$U808,0)","v":{"v":0,"d":"$0"}},{"$nulls":3},{"$f":"SUM(AD808:AL808)","v":{"v":0,"d":"$0"}},null,null,{"$f":"SUM(AD808:AL808)","v":{"v":0,"d":"$0"}},null,"HARDWOOD FLOORING",{"$nulls":4},{"$f":"AD808","v":0},{"$f":"AG808","v":0},{"$f":"AJ808","v":0},{"$f":"IF(B808=\"x\",1,0)","v":0},{"$f":"SUM(BA808:BC808)","v":0},0,0,null,{"$f":"AD808","v":{"v":0,"d":"$0.00"}},{"$f":"AM808","v":{"v":0,"d":"$0.00"}},{"$f":"BJ808+BI808","v":{"v":0,"d":"$0.00"}}]
[{"$nulls":3},"Laminate Flooring",{"$nulls":25},{"v":0,"d":"$0"},null,null,{"$f":"P809*X809*(1+$Y$85)","v":{"v":0,"d":"$0"}},null,null,{"v":0,"d":"$0"},null,null,{"v":0,"d":"$0"},{"$nulls":3},{"v":0,"d":"$0"},null,null,{"v":0,"d":"$0"},null,"HARDWOOD FLOORING",{"$nulls":4},0,{"$f":"AG809","v":0},{"$f":"AJ809","v":0},0,{"$f":"SUM(BA809:BC809)","v":0},0,0,null,{"$f":"AD809","v":{"v":0,"d":"$0.00"}},{"v":0,"d":"$0.00"},{"$f":"BJ809+BI809","v":{"v":0,"d":"$0.00"}}]
[{"$nulls":3},"Laminate wood flooring, economy grade",{"$nulls":14},"sf","sf",{"v":2,"d":"2.00"},null,null,{"v":1,"d":"1.00"},null,{"v":4,"d":"4.00"},{"$nulls":3},{"v":0,"d":"$0"},null,null,{"v":0,"d":"$0"},null,null,{"v":0,"d":"$0"},null,null,{"v":0,"d":"$0"},{"$nulls":3},{"v":0,"d":"$0"},null,null,{"v":0,"d":"$0"},null,"HARDWOOD FLOORING",{"$nulls":4},0,0,0,0,0,0,0,null,{"v":0,"d":"$0.00"},{"v":0,"d":"$0.00"},{"v":0,"d":"$0.00"}]
[{"$nulls":3},"Laminate wood flooring, average grade",{"$nulls":14},"sf","sf",{"v":2,"d":"2.00"},null,null,1.75,{"$nulls":5},{"v":0,"d":"$0"},null,null,{"v":0,"d":"$0"},null,null,{"v":0,"d":"$0"},null,null,{"v":0,"d":"$0"},{"$nulls":3},{"v":0,"d":"$0"},null,null,{"v":0,"d":"$0"},null,"HARDWOOD FLOORING",{"$nulls":4},0,0,0,0,0,0,0,null,{"v":0,"d":"$0.00"},{"v":0,"d":"$0.00"},{"v":0,"d":"$0.00"}]
[{"$nulls":3},"Laminate wood flooring, premium grade",{"$nulls":14},"sf",null,{"v":2,"d":"2.00"},null,null,{"v":2.5,"d":"2.50"},{"$nulls":5},{"v":0,"d":"$0"},null,null,{"v":0,"d":"$0"},null,null,{"v":0,"d":"$0"},null,null,{"v":0,"d":"$0"},{"$nulls":3},{"v":0,"d":"$0"},null,null,{"v":0,"d":"$0"},null,"HARDWOOD FLOORING",{"$nulls":4},0,0,0,0,0,0,0,null,{"v":0,"d":"$0.00"},{"v":0,"d":"$0.00"},{"v":0,"d":"$0.00"}]
[{"$nulls":29},{"v":0,"d":"$0"},null,null,{"v":0,"d":"$0"},null,null,{"v":0,"d":"$0"},null,null,{"v":0,"d":"$0"},{"$nulls":3},{"v":0,"d":"$0"},null,null,{"v":0,"d":"$0"},null,"HARDWOOD FLOORING",{"$nulls":4},0,0,0,0,0,0,0,null,{"v":0,"d":"$0.00"},{"v":0,"d":"$0.00"},{"v":0,"d":"$0.00"}]
[{"$nulls":3},"Hardwood Flooring",{"$nulls":25},{"v":0,"d":"$0"},null,null,{"v":0,"d":"$0"},null,null,{"v":0,"d":"$0"},null,null,{"v":0,"d":"$0"},{"$nulls":3},{"v":0,"d":"$0"},null,null,{"v":0,"d":"$0"},null,"HARDWOOD FLOORING",{"$nulls":4},0,0,0,0,0,0,0,null,{"v":0,"d":"$0.00"},{"v":0,"d":"$0.00"},{"v":0,"d":"$0.00"}]
[{"$nulls":3},"Hardwood flooring, economy grade",{"$nulls":14},"sf",null,{"v":3,"d":"3.00"},null,null,{"v":2.5,"d":"2.50"},{"$nulls":5},{"v":0,"d":"$0"},null,null,{"v":0,"d":"$0"},null,null,{"v":0,"d":"$0"},null,null,{"v":0,"d":"$0"},{"$nulls":3},{"v":0,"d":"$0"},null,null,{"v":0,"d":"$0"},null,"HARDWOOD FLOORING",{"$nulls":4},0,0,0,0,0,0,0,null,{"v":0,"d":"$0.00"},{"v":0,"d":"$0.00"},{"v":0,"d":"$0.00"}]
[{"$nulls":3},"Hardwood flooring, average grade",{"$nulls":11},475,null,null,"sf",null,{"v":3,"d":"3.00"},null,null,{"v":4,"d":"4.00"},{"$nulls":5},{"v":1425,"d":"$1,425"},null,null,{"v":2033.0000000000002,"d":"$2,033"},null,null,{"v":0,"d":"$0"},null,null,{"v":0,"d":"$0"},{"$nulls":3},{"v":3458,"d":"$3,458"},null,null,{"v":3458,"d":"$3,458"},null,"HARDWOOD FLOORING",{"$nulls":4},1425,2033.0000000000002,0,0,3458,3458,0,null,{"v":1425,"d":"$1,425.00"},{"v":0,"d":"$0.00"},{"v":1425,"d":"$1,425.00"}]
[{"$nulls":3},"Hardwood flooring, premium grade",{"$nulls":14},"sf",null,{"v":3,"d":"3.00"},null,null,{"v":7,"d":"7.00"},{"$nulls":5},{"v":0,"d":"$0"},null,null,{"v":0,"d":"$0"},null,null,{"v":0,"d":"$0"},null,null,{"v":0,"d":"$0"},{"$nulls":3},{"v":0,"d":"$0"},null,null,{"v":0,"d":"$0"},null,"HARDWOOD FLOORING",{"$nulls":4},0,0,0,0,0,0,0,null,{"v":0,"d":"$0.00"},{"v":0,"d":"$0.00"},{"v":0,"d":"$0.00"}]
[{"$nulls":29},{"v":0,"d":"$0"},null,null,{"v":0,"d":"$0"},null,null,{"v":0,"d":"$0"},null,null,{"v":0,"d":"$0"},{"$nulls":3},{"v":0,"d":"$0"},null,null,{"v":0,"d":"$0"},null,"HARDWOOD FLOORING",{"$nulls":4},0,0,0,0,0,0,0,null,{"v":0,"d":"$0.00"},{"v":0,"d":"$0.00"},{"v":0,"d":"$0.00"}]
[{"$nulls":3},"Hardwood Floor Refinishing",{"$nulls":25},{"$f":"((P819*U819)-AM819)","v":{"v":0,"d":"$0"}},null,null,{"v":0,"d":"$0"},null,null,{"$f":"P819*AA819","v":{"v":0,"d":"$0"}},null,null,{"$f":"IF($B819=\"x\",$P819*$U819,0)","v":{"v":0,"d":"$0"}},{"$nulls":3},{"v":0,"d":"$0"},null,null,{"v":0,"d":"$0"},null,"HARDWOOD FLOORING",{"$nulls":4},0,0,0,0,0,0,0,null,{"v":0,"d":"$0.00"},{"v":0,"d":"$0.00"},{"v":0,"d":"$0.00"}]
[{"$nulls":3},"Floor refinishing",{"$nulls":14},"sf",null,2.25,null,null,0.25,{"$nulls":5},{"v":0,"d":"$0"},null,null,{"v":0,"d":"$0"},null,null,{"v":0,"d":"$0"},null,null,{"v":0,"d":"$0"},{"$nulls":3},{"v":0,"d":"$0"},null,null,{"v":0,"d":"$0"},null,"HARDWOOD FLOORING",{"$nulls":4},0,0,0,0,0,0,0,null,{"v":0,"d":"$0.00"},{"v":0,"d":"$0.00"},{"v":0,"d":"$0.00"}]
[{"$nulls":3},"Lacing new hardwood to match existing, case-by-case",{"$nulls":14},"sf",null,{"v":10,"d":"10.00"},null,null,{"v":4,"d":"4.00"},{"$nulls":5},{"v":0,"d":"$0"},null,null,{"v":0,"d":"$0"},null,null,{"v":0,"d":"$0"},null,null,{"v":0,"d":"$0"},{"$nulls":3},{"v":0,"d":"$0"},null,null,{"v":0,"d":"$0"},null,"HARDWOOD FLOORING",{"$nulls":4},0,0,0,0,0,0,0,null,{"v":0,"d":"$0.00"},{"v":0,"d":"$0.00"},{"v":0,"d":"$0.00"}]
[{"$nulls":29},{"v":0,"d":"$0"},null,null,{"v":0,"d":"$0"},null,null,{"v":0,"d":"$0"},null,null,{"v":0,"d":"$0"},{"$nulls":3},{"v":0,"d":"$0"},null,null,{"v":0,"d":"$0"},null,"HARDWOOD FLOORING",{"$nulls":4},0,0,0,0,0,0,0,null,{"v":0,"d":"$0.00"},{"v":0,"d":"$0.00"},{"v":0,"d":"$0.00"}]
[{"$nulls":3},"Miscellaneous",{"$nulls":25},{"v":0,"d":"$0"},null,null,{"v":0,"d":"$0"},null,null,{"v":0,"d":"$0"},null,null,{"v":0,"d":"$0"},{"$nulls":3},{"v":0,"d":"$0"},null,null,{"v":0,"d":"$0"},null,"HARDWOOD FLOORING",{"$nulls":4},0,0,0,0,0,0,0,null,{"v":0,"d":"$0.00"},{"v":0,"d":"$0.00"},{"v":0,"d":"$0.00"}]
[{"$nulls":3},"Stair treads, 4ft avg",{"$nulls":14},"ea",null,{"v":50,"d":"50.00"},null,null,{"v":85,"d":"85.00"},{"$nulls":5},{"v":0,"d":"$0"},null,null,{"v":0,"d":"$0"},null,null,{"v":0,"d":"$0"},null,null,{"v":0,"d":"$0"},{"$nulls":3},{"v":0,"d":"$0"},null,null,{"v":0,"d":"$0"},null,"HARDWOOD FLOORING",{"$nulls":4},0,0,0,0,0,0,0,null,{"v":0,"d":"$0.00"},{"v":0,"d":"$0.00"},{"v":0,"d":"$0.00"}]
[{"$nulls":3},"Shoe moldings",{"$nulls":14},"lf",null,0.75,null,null,{"v":0.8,"d":"0.80"},{"$nulls":5},{"v":0,"d":"$0"},null,null,{"v":0,"d":"$0"},null,null,{"v":0,"d":"$0"},null,null,{"v":0,"d":"$0"},{"$nulls":3},{"v":0,"d":"$0"},null,null,{"v":0,"d":"$0"},null,"HARDWOOD FLOORING",{"$nulls":4},0,0,0,0,0,0,0,null,{"v":0,"d":"$0.00"},{"v":0,"d":"$0.00"},{"v":0,"d":"$0.00"}]
[{"$nulls":3},"Underlayment",{"$nulls":14},"sf",null,0.25,null,null,0.25,null,0.25,{"$nulls":3},{"v":0,"d":"$0"},null,null,{"v":0,"d":"$0"},null,null,{"v":0,"d":"$0"},null,null,{"v":0,"d":"$0"},{"$nulls":3},{"v":0,"d":"$0"},null,null,{"v":0,"d":"$0"},null,"HARDWOOD FLOORING",{"$nulls":4},0,0,0,0,{"$f":"SUM(BA826:BC826)","v":0},0,0,null,{"v":0,"d":"$0.00"},{"v":0,"d":"$0.00"},{"v":0,"d":"$0.00"}]
[{"$nulls":29},{"v":0,"d":"$0"},null,null,{"v":0,"d":"$0"},null,null,{"v":0,"d":"$0"},null,null,{"v":0,"d":"$0"},{"$nulls":3},{"v":0,"d":"$0"},null,null,{"v":0,"d":"$0"},null,"HARDWOOD FLOORING",{"$nulls":4},0,0,0,0,{"$f":"SUM(BA827:BC827)","v":0},0,0,null,{"v":0,"d":"$0.00"},{"v":0,"d":"$0.00"},{"v":0,"d":"$0.00"}]
[{"$nulls":29},{"$f":"((P828*U828)-AM828)","v":{"v":0,"d":"$0"}},null,null,{"v":0,"d":"$0"},null,null,{"$f":"P828*AA828","v":{"v":0,"d":"$0"}},null,null,{"v":0,"d":"$0"},{"$nulls":3},{"$f":"SUM(AD828:AL828)","v":{"v":0,"d":"$0"}},null,null,{"$f":"SUM(AD828:AL828)","v":{"v":0,"d":"$0"}},null,"HARDWOOD FLOORING",{"$nulls":4},{"$f":"AD828","v":0},{"$f":"AG828","v":0},{"$f":"AJ828","v":0},{"$f":"IF(B828=\"x\",1,0)","v":0},{"$f":"SUM(BA828:BC828)","v":0},{"$f":"AQ828","v":0},{"$f":"AM828","v":0},null,{"$f":"AD828","v":{"v":0,"d":"$0.00"}},{"$f":"AM828","v":{"v":0,"d":"$0.00"}},{"$f":"BJ828+BI828","v":{"v":0,"d":"$0.00"}}]
[{"$nulls":29},{"v":0,"d":"$0"},null,null,{"v":0,"d":"$0"},null,null,{"v":0,"d":"$0"},null,null,{"v":0,"d":"$0"},{"$nulls":3},{"v":0,"d":"$0"},null,null,{"v":0,"d":"$0"},null,"HARDWOOD FLOORING",{"$nulls":4},0,{"$f":"AG829","v":0},{"$f":"AJ829","v":0},0,{"$f":"SUM(BA829:BC829)","v":0},0,0,null,{"$f":"AD829","v":{"v":0,"d":"$0.00"}},{"v":0,"d":"$0.00"},{"$f":"BJ829+BI829","v":{"v":0,"d":"$0.00"}}]
[{"$nulls":29},{"v":0,"d":"$0"},null,null,{"v":0,"d":"$0"},null,null,{"v":0,"d":"$0"},null,null,{"v":0,"d":"$0"},{"$nulls":3},{"v":0,"d":"$0"},null,null,{"v":0,"d":"$0"},null,"HARDWOOD FLOORING",{"$nulls":4},0,0,0,0,0,0,0,null,{"v":0,"d":"$0.00"},{"v":0,"d":"$0.00"},{"v":0,"d":"$0.00"}]
[{"$nulls":29},{"v":0,"d":"$0"},null,null,{"v":0,"d":"$0"},null,null,{"v":0,"d":"$0"},null,null,{"v":0,"d":"$0"},{"$nulls":3},{"v":0,"d":"$0"},null,null,{"v":0,"d":"$0"},null,"HARDWOOD FLOORING",{"$nulls":4},0,0,0,0,0,0,0,null,{"v":0,"d":"$0.00"},{"v":0,"d":"$0.00"},{"v":0,"d":"$0.00"}]
[{"$nulls":29},{"v":0,"d":"$0"},null,null,{"v":0,"d":"$0"},null,null,{"v":0,"d":"$0"},null,null,{"v":0,"d":"$0"},{"$nulls":3},{"v":0,"d":"$0"},null,null,{"v":0,"d":"$0"},null,"HARDWOOD FLOORING",{"$nulls":4},0,0,0,0,0,0,0,null,{"v":0,"d":"$0.00"},{"v":0,"d":"$0.00"},{"v":0,"d":"$0.00"}]
[{"$nulls":29},{"v":0,"d":"$0"},null,null,{"v":0,"d":"$0"},null,null,{"v":0,"d":"$0"},null,null,{"v":0,"d":"$0"},{"$nulls":3},{"v":0,"d":"$0"},null,null,{"v":0,"d":"$0"},null,"HARDWOOD FLOORING",{"$nulls":4},0,0,0,0,0,0,0,null,{"v":0,"d":"$0.00"},{"v":0,"d":"$0.00"},{"v":0,"d":"$0.00"}]
[{"$nulls":29},{"v":0,"d":"$0"},null,null,{"v":0,"d":"$0"},null,null,{"v":0,"d":"$0"},null,null,{"v":0,"d":"$0"},{"$nulls":3},{"v":0,"d":"$0"},null,null,{"v":0,"d":"$0"},null,"HARDWOOD FLOORING",{"$nulls":4},0,0,0,0,0,0,0,null,{"v":0,"d":"$0.00"},{"v":0,"d":"$0.00"},{"v":0,"d":"$0.00"}]
[{"$nulls":29},{"v":0,"d":"$0"},null,null,{"v":0,"d":"$0"},null,null,{"v":0,"d":"$0"},null,null,{"v":0,"d":"$0"},{"$nulls":3},{"v":0,"d":"$0"},null,null,{"v":0,"d":"$0"},null,"HARDWOOD FLOORING",{"$nulls":4},0,0,0,0,0,0,0,null,{"v":0,"d":"$0.00"},{"v":0,"d":"$0.00"},{"v":0,"d":"$0.00"}]
[{"$nulls":29},{"v":0,"d":"$0"},null,null,{"v":0,"d":"$0"},null,null,{"v":0,"d":"$0"},null,null,{"v":0,"d":"$0"},{"$nulls":3},{"v":0,"d":"$0"},null,null,{"v":0,"d":"$0"},null,"HARDWOOD FLOORING",{"$nulls":4},0,0,0,0,0,0,0,null,{"v":0,"d":"$0.00"},{"v":0,"d":"$0.00"},{"v":0,"d":"$0.00"}]
[{"$nulls":29},{"v":0,"d":"$0"},null,null,{"v":0,"d":"$0"},null,null,{"v":0,"d":"$0"},null,null,{"v":0,"d":"$0"},{"$nulls":3},{"v":0,"d":"$0"},null,null,{"v":0,"d":"$0"},null,"HARDWOOD FLOORING",{"$nulls":4},0,0,0,0,0,0,0,null,{"v":0,"d":"$0.00"},{"v":0,"d":"$0.00"},{"v":0,"d":"$0.00"}]
[{"$nulls":29},{"v":0,"d":"$0"},null,null,{"v":0,"d":"$0"},null,null,{"v":0,"d":"$0"},null,null,{"v":0,"d":"$0"},{"$nulls":3},{"v":0,"d":"$0"},null,null,{"v":0,"d":"$0"},null,"HARDWOOD FLOORING",{"$nulls":4},0,0,0,0,0,0,0,null,{"v":0,"d":"$0.00"},{"v":0,"d":"$0.00"},{"v":0,"d":"$0.00"}]
[{"$nulls":29},{"v":0,"d":"$0"},null,null,{"v":0,"d":"$0"},null,null,{"v":0,"d":"$0"},null,null,{"v":0,"d":"$0"},{"$nulls":3},{"v":0,"d":"$0"},null,null,{"v":0,"d":"$0"},null,"HARDWOOD FLOORING",{"$nulls":4},0,0,0,0,0,0,0,null,{"v":0,"d":"$0.00"},{"v":0,"d":"$0.00"},{"v":0,"d":"$0.00"}]
[{"$nulls":29},{"v":0,"d":"$0"},null,null,{"v":0,"d":"$0"},null,null,{"v":0,"d":"$0"},null,null,{"v":0,"d":"$0"},{"$nulls":3},{"v":0,"d":"$0"},null,null,{"v":0,"d":"$0"},null,"HARDWOOD FLOORING",{"$nulls":4},0,0,0,0,0,0,0,null,{"v":0,"d":"$0.00"},{"v":0,"d":"$0.00"},{"v":0,"d":"$0.00"}]
[{"$nulls":29},{"v":0,"d":"$0"},null,null,{"v":0,"d":"$0"},null,null,{"v":0,"d":"$0"},null,null,{"v":0,"d":"$0"},{"$nulls":3},{"v":0,"d":"$0"},null,null,{"v":0,"d":"$0"},null,"HARDWOOD FLOORING",{"$nulls":4},0,0,0,0,0,0,0,null,{"v":0,"d":"$0.00"},{"v":0,"d":"$0.00"},{"v":0,"d":"$0.00"}]
[{"$nulls":29},{"v":0,"d":"$0"},null,null,{"v":0,"d":"$0"},null,null,{"v":0,"d":"$0"},null,null,{"v":0,"d":"$0"},{"$nulls":3},{"v":0,"d":"$0"},null,null,{"v":0,"d":"$0"},null,"HARDWOOD FLOORING",{"$nulls":4},0,0,0,0,0,0,0,null,{"v":0,"d":"$0.00"},{"v":0,"d":"$0.00"},{"v":0,"d":"$0.00"}]
[{"$nulls":29},{"v":0,"d":"$0"},null,null,{"v":0,"d":"$0"},null,null,{"v":0,"d":"$0"},null,null,{"v":0,"d":"$0"},{"$nulls":3},{"v":0,"d":"$0"},null,null,{"v":0,"d":"$0"},null,"HARDWOOD FLOORING",{"$nulls":4},0,0,0,0,0,0,0,null,{"v":0,"d":"$0.00"},{"v":0,"d":"$0.00"},{"v":0,"d":"$0.00"}]
[{"$nulls":29},{"v":0,"d":"$0"},null,null,{"v":0,"d":"$0"},null,null,{"v":0,"d":"$0"},null,null,{"v":0,"d":"$0"},{"$nulls":3},{"v":0,"d":"$0"},null,null,{"v":0,"d":"$0"},null,"HARDWOOD FLOORING",{"$nulls":4},0,0,0,0,0,0,0,null,{"v":0,"d":"$0.00"},{"v":0,"d":"$0.00"},{"v":0,"d":"$0.00"}]
[{"$nulls":29},{"v":0,"d":"$0"},null,null,{"v":0,"d":"$0"},null,null,{"v":0,"d":"$0"},null,null,{"v":0,"d":"$0"},{"$nulls":3},{"v":0,"d":"$0"},null,null,{"v":0,"d":"$0"},null,"HARDWOOD FLOORING",{"$nulls":4},0,0,0,0,0,0,0,null,{"v":0,"d":"$0.00"},{"v":0,"d":"$0.00"},{"v":0,"d":"$0.00"}]
[{"$nulls":29},{"v":0,"d":"$0"},null,null,{"v":0,"d":"$0"},null,null,{"v":0,"d":"$0"},null,null,{"v":0,"d":"$0"},{"$nulls":3},{"v":0,"d":"$0"},null,null,{"v":0,"d":"$0"},null,"HARDWOOD FLOORING",{"$nulls":4},0,0,0,0,{"$f":"SUM(BA846:BC846)","v":0},0,0,null,{"v":0,"d":"$0.00"},{"v":0,"d":"$0.00"},{"v":0,"d":"$0.00"}]
[{"$nulls":29},{"v":0,"d":"$0"},null,null,{"v":0,"d":"$0"},null,null,{"v":0,"d":"$0"},null,null,{"v":0,"d":"$0"},{"$nulls":3},{"v":0,"d":"$0"},null,null,{"v":0,"d":"$0"},null,"HARDWOOD FLOORING",{"$nulls":4},0,0,0,0,{"$f":"SUM(BA847:BC847)","v":0},0,0,null,{"v":0,"d":"$0.00"},{"v":0,"d":"$0.00"},{"v":0,"d":"$0.00"}]
[{"$nulls":47},"HARDWOOD FLOORING",{"$nulls":4},{"$f":"BA807","v":{"v":1425,"d":"$1,425"}},{"$f":"BB807","v":{"v":2033.0000000000002,"d":"$2,033"}},{"$f":"BC807","v":{"v":0,"d":"$0"}},{"$f":"BD807","v":{"v":0,"d":"$0"}},{"$f":"BE807","v":{"v":3458,"d":"$3,458"}}]
[{"$nulls":28},{"$f":"CONCATENATE(D807,\" \",\"TOTAL\")","v":"HARDWOOD FLOORING TOTAL"},{"$f":"SUBTOTAL(9,AD808:AD848)","v":{"v":1425,"d":"$1,425"}},null,null,{"$f":"SUBTOTAL(9,AG808:AG848)","v":{"v":2033.0000000000002,"d":"$2,033"}},null,null,{"$f":"SUBTOTAL(9,AJ808:AJ848)","v":{"v":0,"d":"$0"}},null,null,{"$f":"SUBTOTAL(9,AM808:AM848)","v":{"v":0,"d":"$0"}},{"$nulls":3},{"$f":"SUBTOTAL(9,AQ808:AQ848)","v":{"v":3458,"d":"$3,458"}},null,null,{"$f":"SUM(AT805:AT840)","v":{"$error":"#REF!"}},null,"HARDWOOD FLOORING",{"$nulls":4},{"$f":"BA807","v":1425},{"$f":"BB807","v":2033.0000000000002},{"$f":"BC807","v":0},{"$f":"BD807","v":0},{"$f":"BE807","v":3458},{"$f":"SUM(BF807:BF848)","v":6916},{"$f":"SUM(BG807:BG848)","v":0},null,{"$f":"SUM(BI808:BI848)","v":1425},{"$f":"SUM(BJ808:BJ848)","v":0},{"$f":"SUM(BK808:BK848)","v":1425}]
[{"$nulls":47},"HARDWOOD FLOORING",{"$nulls":4},{"$f":"BA807","v":{"v":1425,"d":"$1,425"}},{"$f":"BB807","v":{"v":2033.0000000000002,"d":"$2,033"}},{"$f":"BC807","v":{"v":0,"d":"$0"}},{"$f":"BD807","v":{"v":0,"d":"$0"}},{"$f":"BE807","v":{"v":3458,"d":"$3,458"}}]
[{"$nulls":47},"HARDWOOD FLOORING",{"$nulls":4},{"$f":"BA849","v":1425},{"$f":"BB849","v":2033.0000000000002},{"$f":"BC849","v":0},0,3458,6916,0]
["Hidden",null,null,{"$f":"T(AJ76)","v":"TILING"},{"$nulls":25},{"$f":"AD894","v":{"v":1625,"d":"$1,625"}},null,null,{"$f":"AG894","v":{"v":2279.1000000000004,"d":"$2,279"}},null,null,{"$f":"AJ894","v":{"v":0,"d":"$0"}},null,null,{"$f":"AM894","v":{"v":0,"d":"$0"}},{"$nulls":3},{"$f":"AQ894","v":{"v":3904.1000000000004,"d":"$3,904"}},null,null,{"$f":"SUM(#REF!)","v":{"$error":"#REF!"}},null,{"$f":"$D$852","v":"TILING"},{"$nulls":4},{"$f":"SUM(BA853:BA892)","v":1625},{"$f":"SUM(BB853:BB892)","v":2279.1000000000004},{"$f":"SUM(BC853:BC892)","v":0},{"$f":"SUM(BD853:BD892)","v":0},{"$f":"SUM(BE853:BE892)","v":3904.1000000000004},{"$f":"AQ852","v":3904.1000000000004},{"$f":"AM852","v":0},null,{"$f":"AD852","v":{"v":1625,"d":"$1,625.00"}},{"$f":"AM852","v":{"v":0,"d":"$0.00"}},{"$f":"BJ852+BI852","v":{"v":1625,"d":"$1,625.00"}}]
[{"$nulls":3},"Tiling bid/allowance",{"$nulls":14},"ls","ls",{"$nulls":9},{"$f":"((P853*U853)-AM853)","v":{"v":0,"d":"$0"}},null,null,{"$f":"P853*X853*(1+$Y$85)","v":{"v":0,"d":"$0"}},null,null,{"$f":"P853*AA853","v":{"v":0,"d":"$0"}},null,null,{"$f":"IF($B853=\"x\",$P853*$U853,0)","v":{"v":0,"d":"$0"}},{"$nulls":3},{"$f":"SUM(AD853:AL853)","v":{"v":0,"d":"$0"}},null,null,{"$f":"SUM(AD853:AL853)","v":{"v":0,"d":"$0"}},null,"TILING",{"$nulls":4},{"$f":"AD853","v":0},{"$f":"AG853","v":0},{"$f":"AJ853","v":0},{"$f":"IF(B853=\"x\",1,0)","v":0},{"$f":"SUM(BA853:BC853)","v":0},0,0,null,{"$f":"AD853","v":{"v":0,"d":"$0.00"}},{"$f":"AM853","v":{"v":0,"d":"$0.00"}},{"$f":"BJ853+BI853","v":{"v":0,"d":"$0.00"}}]
[{"$nulls":3},"Kitchen ",{"$nulls":15},"sf",{"$nulls":9},{"v":0,"d":"$0"},null,null,{"$f":"P854*X854*(1+$Y$85)","v":{"v":0,"d":"$0"}},null,null,{"v":0,"d":"$0"},null,null,{"v":0,"d":"$0"},{"$nulls":3},{"v":0,"d":"$0"},null,null,{"v":0,"d":"$0"},null,"TILING",{"$nulls":4},0,{"$f":"AG854","v":0},{"$f":"AJ854","v":0},0,{"$f":"SUM(BA854:BC854)","v":0},0,0,null,{"$f":"AD854","v":{"v":0,"d":"$0.00"}},{"v":0,"d":"$0.00"},{"$f":"BJ854+BI854","v":{"v":0,"d":"$0.00"}}]
[{"$nulls":3},"Kitchen backsplash, mosaic tile",{"$nulls":11},25,null,null,"sf","sf",{"v":10,"d":"10.00"},null,null,{"v":15,"d":"15.00"},null,{"v":10,"d":"10.00"},{"$nulls":3},{"v":250,"d":"$250"},null,null,{"v":401.25,"d":"$401"},null,null,{"v":0,"d":"$0"},null,null,{"v":0,"d":"$0"},{"$nulls":3},{"v":651.25,"d":"$651"},null,null,{"v":651.25,"d":"$651"},null,"TILING","Kitchen",{"$nulls":3},250,401.25,0,0,651.25,651.25,0,null,{"v":250,"d":"$250.00"},{"v":0,"d":"$0.00"},{"v":250,"d":"$250.00"}]
[{"$nulls":3},"Floor tile, Kitchen",{"$nulls":14},"sf","sf",{"v":5,"d":"5.00"},null,null,{"v":4,"d":"4.00"},null,{"v":6,"d":"6.00"},{"$nulls":3},{"v":0,"d":"$0"},null,null,{"v":0,"d":"$0"},null,null,{"v":0,"d":"$0"},null,null,{"v":0,"d":"$0"},{"$nulls":3},{"v":0,"d":"$0"},null,null,{"v":0,"d":"$0"},null,"TILING","Kitchen",{"$nulls":3},0,0,0,0,0,0,0,null,{"v":0,"d":"$0.00"},{"v":0,"d":"$0.00"},{"v":0,"d":"$0.00"}]
[{"$nulls":29},{"v":0,"d":"$0"},null,null,{"v":0,"d":"$0"},null,null,{"v":0,"d":"$0"},null,null,{"v":0,"d":"$0"},{"$nulls":3},{"v":0,"d":"$0"},null,null,{"v":0,"d":"$0"},null,"TILING","Kitchen",{"$nulls":3},0,0,0,0,0,0,0,null,{"v":0,"d":"$0.00"},{"v":0,"d":"$0.00"},{"v":0,"d":"$0.00"}]
[{"$nulls":29},{"v":0,"d":"$0"},null,null,{"v":0,"d":"$0"},null,null,{"v":0,"d":"$0"},null,null,{"v":0,"d":"$0"},{"$nulls":3},{"v":0,"d":"$0"},null,null,{"v":0,"d":"$0"},null,"TILING","Kitchen",{"$nulls":3},0,0,0,0,0,0,0,null,{"v":0,"d":"$0.00"},{"v":0,"d":"$0.00"},{"v":0,"d":"$0.00"}]
[{"$nulls":3},"Bathrooms",{"$nulls":15},"sf",{"$nulls":9},{"v":0,"d":"$0"},null,null,{"v":0,"d":"$0"},null,null,{"v":0,"d":"$0"},null,null,{"v":0,"d":"$0"},{"$nulls":3},{"v":0,"d":"$0"},null,null,{"v":0,"d":"$0"},null,"TILING",{"$nulls":4},0,0,0,0,0,0,0,null,{"v":0,"d":"$0.00"},{"v":0,"d":"$0.00"},{"v":0,"d":"$0.00"}]
[{"$nulls":3},"Shower tile, standard",{"$nulls":11},180,null,null,"sf","sf",{"v":5,"d":"5.00"},null,null,{"v":6,"d":"6.00"},null,{"v":4,"d":"4.00"},{"$nulls":3},{"v":900,"d":"$900"},null,null,{"v":1155.6000000000001,"d":"$1,156"},null,null,{"v":0,"d":"$0"},null,null,{"v":0,"d":"$0"},{"$nulls":3},{"v":2055.6000000000004,"d":"$2,056"},null,null,{"v":2055.6000000000004,"d":"$2,056"},null,"TILING","Bathrooms",{"$nulls":3},900,1155.6000000000001,0,0,2055.6000000000004,2055.6000000000004,0,null,{"v":900,"d":"$900.00"},{"v":0,"d":"$0.00"},{"v":900,"d":"$900.00"}]
[{"$nulls":3},"Shower tile, accent mosaic tile",{"$nulls":11},20,null,null,"sf","sf",{"v":5,"d":"5.00"},null,null,{"v":15,"d":"15.00"},null,{"v":12,"d":"12.00"},{"$nulls":3},{"v":100,"d":"$100"},null,null,{"v":321,"d":"$321"},null,null,{"v":0,"d":"$0"},null,null,{"v":0,"d":"$0"},{"$nulls":3},{"v":421,"d":"$421"},null,null,{"v":421,"d":"$421"},null,"TILING","Bathrooms",{"$nulls":3},100,321,0,0,421,421,0,null,{"v":100,"d":"$100.00"},{"v":0,"d":"$0.00"},{"v":100,"d":"$100.00"}]
[{"$nulls":3},"Floor tile, bathrooms",{"$nulls":11},75,null,null,"sf","sf",{"v":5,"d":"5.00"},null,null,{"v":5,"d":"5.00"},null,{"v":5,"d":"5.00"},{"$nulls":3},{"v":375,"d":"$375"},null,null,{"v":401.25,"d":"$401"},null,null,{"v":0,"d":"$0"},null,null,{"v":0,"d":"$0"},{"$nulls":3},{"v":776.25,"d":"$776"},null,null,{"v":776.25,"d":"$776"},null,"TILING","Bathrooms",{"$nulls":3},375,401.25,0,0,776.25,776.25,0,null,{"v":375,"d":"$375.00"},{"v":0,"d":"$0.00"},{"v":375,"d":"$375.00"}]
[{"$nulls":29},{"v":0,"d":"$0"},null,null,{"v":0,"d":"$0"},null,null,{"v":0,"d":"$0"},null,null,{"v":0,"d":"$0"},{"$nulls":3},{"v":0,"d":"$0"},null,null,{"v":0,"d":"$0"},null,"TILING",{"$nulls":4},0,0,0,0,0,0,0,null,{"v":0,"d":"$0.00"},{"v":0,"d":"$0.00"},{"v":0,"d":"$0.00"}]
[{"$nulls":29},{"v":0,"d":"$0"},null,null,{"v":0,"d":"$0"},null,null,{"v":0,"d":"$0"},null,null,{"v":0,"d":"$0"},{"$nulls":3},{"v":0,"d":"$0"},null,null,{"v":0,"d":"$0"},null,"TILING",{"$nulls":4},0,0,0,0,0,0,0,null,{"v":0,"d":"$0.00"},{"v":0,"d":"$0.00"},{"v":0,"d":"$0.00"}]
[{"$nulls":3},"Miscellaneous Tiling",{"$nulls":15},"sf",{"$nulls":9},{"v":0,"d":"$0"},null,null,{"v":0,"d":"$0"},null,null,{"v":0,"d":"$0"},null,null,{"v":0,"d":"$0"},{"$nulls":3},{"v":0,"d":"$0"},null,null,{"v":0,"d":"$0"},null,"TILING",{"$nulls":4},0,0,0,0,0,0,0,null,{"v":0,"d":"$0.00"},{"v":0,"d":"$0.00"},{"v":0,"d":"$0.00"}]
[{"$nulls":3},"Floor tile, entry ",{"$nulls":14},"sf","sf",{"v":5,"d":"5.00"},null,null,{"v":4,"d":"4.00"},null,{"v":4,"d":"4.00"},{"$nulls":3},{"v":0,"d":"$0"},null,null,{"v":0,"d":"$0"},null,null,{"v":0,"d":"$0"},null,null,{"v":0,"d":"$0"},{"$nulls":3},{"v":0,"d":"$0"},null,null,{"v":0,"d":"$0"},null,"TILING",{"$nulls":4},0,0,0,0,0,0,0,null,{"v":0,"d":"$0.00"},{"v":0,"d":"$0.00"},{"v":0,"d":"$0.00"}]
[{"$nulls":3},"Fireplace tiling",{"$nulls":14},"sf","sf",{"v":10,"d":"10.00"},null,null,{"v":12,"d":"12.00"},null,{"v":12,"d":"12.00"},{"$nulls":3},{"v":0,"d":"$0"},null,null,{"v":0,"d":"$0"},null,null,{"v":0,"d":"$0"},null,null,{"v":0,"d":"$0"},{"$nulls":3},{"v":0,"d":"$0"},null,null,{"v":0,"d":"$0"},null,"TILING",{"$nulls":4},0,0,0,0,0,0,0,null,{"v":0,"d":"$0.00"},{"v":0,"d":"$0.00"},{"v":0,"d":"$0.00"}]
[{"$nulls":29},{"v":0,"d":"$0"},null,null,{"v":0,"d":"$0"},null,null,{"v":0,"d":"$0"},null,null,{"v":0,"d":"$0"},{"$nulls":3},{"v":0,"d":"$0"},null,null,{"v":0,"d":"$0"},null,"TILING",{"$nulls":4},0,0,0,0,0,0,0,null,{"v":0,"d":"$0.00"},{"v":0,"d":"$0.00"},{"v":0,"d":"$0.00"}]
[{"$nulls":29},{"v":0,"d":"$0"},null,null,{"v":0,"d":"$0"},null,null,{"v":0,"d":"$0"},null,null,{"v":0,"d":"$0"},{"$nulls":3},{"v":0,"d":"$0"},null,null,{"v":0,"d":"$0"},null,"TILING",{"$nulls":4},0,0,0,0,0,0,0,null,{"v":0,"d":"$0.00"},{"v":0,"d":"$0.00"},{"v":0,"d":"$0.00"}]
[{"$nulls":3},"Other",{"$nulls":15},"sf",{"$nulls":9},{"v":0,"d":"$0"},null,null,{"v":0,"d":"$0"},null,null,{"v":0,"d":"$0"},null,null,{"v":0,"d":"$0"},{"$nulls":3},{"v":0,"d":"$0"},null,null,{"v":0,"d":"$0"},null,"TILING",{"$nulls":4},0,0,0,0,0,0,0,null,{"v":0,"d":"$0.00"},{"v":0,"d":"$0.00"},{"v":0,"d":"$0.00"}]
[{"$nulls":3},"Backer board 1/4\" at floor tile",{"$nulls":14},"sf","sf",{"v":1,"d":"1.00"},null,null,0.75,null,0.75,{"$nulls":3},{"v":0,"d":"$0"},null,null,{"v":0,"d":"$0"},null,null,{"v":0,"d":"$0"},null,null,{"v":0,"d":"$0"},{"$nulls":3},{"v":0,"d":"$0"},null,null,{"v":0,"d":"$0"},null,"TILING",{"$nulls":4},0,0,0,0,{"$f":"SUM(BA871:BC871)","v":0},0,0,null,{"v":0,"d":"$0.00"},{"v":0,"d":"$0.00"},{"v":0,"d":"$0.00"}]
[{"$nulls":3},"Backer board 1/2\" at wall tile",{"$nulls":14},"sf","sf",{"v":1.5,"d":"1.50"},null,null,0.85,null,0.85,{"$nulls":3},{"v":0,"d":"$0"},null,null,{"v":0,"d":"$0"},null,null,{"v":0,"d":"$0"},null,null,{"v":0,"d":"$0"},{"$nulls":3},{"v":0,"d":"$0"},null,null,{"v":0,"d":"$0"},null,"TILING",{"$nulls":4},0,0,0,0,{"$f":"SUM(BA872:BC872)","v":0},0,0,null,{"v":0,"d":"$0.00"},{"v":0,"d":"$0.00"},{"v":0,"d":"$0.00"}]
[{"$nulls":29},{"$f":"((P873*U873)-AM873)","v":{"v":0,"d":"$0"}},null,null,{"v":0,"d":"$0"},null,null,{"$f":"P873*AA873","v":{"v":0,"d":"$0"}},null,null,{"v":0,"d":"$0"},{"$nulls":3},{"$f":"SUM(AD873:AL873)","v":{"v":0,"d":"$0"}},null,null,{"$f":"SUM(AD873:AL873)","v":{"v":0,"d":"$0"}},null,"TILING",{"$nulls":4},{"$f":"AD873","v":0},{"$f":"AG873","v":0},{"$f":"AJ873","v":0},{"$f":"IF(B873=\"x\",1,0)","v":0},{"$f":"SUM(BA873:BC873)","v":0},{"$f":"AQ873","v":0},{"$f":"AM873","v":0},null,{"$f":"AD873","v":{"v":0,"d":"$0.00"}},{"$f":"AM873","v":{"v":0,"d":"$0.00"}},{"$f":"BJ873+BI873","v":{"v":0,"d":"$0.00"}}]
[{"$nulls":29},{"v":0,"d":"$0"},null,null,{"v":0,"d":"$0"},null,null,{"v":0,"d":"$0"},null,null,{"v":0,"d":"$0"},{"$nulls":3},{"v":0,"d":"$0"},null,null,{"v":0,"d":"$0"},null,"TILING",{"$nulls":4},0,{"$f":"AG874","v":0},{"$f":"AJ874","v":0},0,{"$f":"SUM(BA874:BC874)","v":0},0,0,null,{"$f":"AD874","v":{"v":0,"d":"$0.00"}},{"v":0,"d":"$0.00"},{"$f":"BJ874+BI874","v":{"v":0,"d":"$0.00"}}]
[{"$nulls":29},{"v":0,"d":"$0"},null,null,{"v":0,"d":"$0"},null,null,{"v":0,"d":"$0"},null,null,{"v":0,"d":"$0"},{"$nulls":3},{"v":0,"d":"$0"},null,null,{"v":0,"d":"$0"},null,"TILING",{"$nulls":4},0,0,0,0,0,0,0,null,{"v":0,"d":"$0.00"},{"v":0,"d":"$0.00"},{"v":0,"d":"$0.00"}]
[{"$nulls":29},{"v":0,"d":"$0"},null,null,{"v":0,"d":"$0"},null,null,{"v":0,"d":"$0"},null,null,{"v":0,"d":"$0"},{"$nulls":3},{"v":0,"d":"$0"},null,null,{"v":0,"d":"$0"},null,"TILING",{"$nulls":4},0,0,0,0,0,0,0,null,{"v":0,"d":"$0.00"},{"v":0,"d":"$0.00"},{"v":0,"d":"$0.00"}]
[{"$nulls":29},{"v":0,"d":"$0"},null,null,{"v":0,"d":"$0"},null,null,{"v":0,"d":"$0"},null,null,{"v":0,"d":"$0"},{"$nulls":3},{"v":0,"d":"$0"},null,null,{"v":0,"d":"$0"},null,"TILING",{"$nulls":4},0,0,0,0,0,0,0,null,{"v":0,"d":"$0.00"},{"v":0,"d":"$0.00"},{"v":0,"d":"$0.00"}]
[{"$nulls":29},{"v":0,"d":"$0"},null,null,{"v":0,"d":"$0"},null,null,{"v":0,"d":"$0"},null,null,{"v":0,"d":"$0"},{"$nulls":3},{"v":0,"d":"$0"},null,null,{"v":0,"d":"$0"},null,"TILING",{"$nulls":4},0,0,0,0,0,0,0,null,{"v":0,"d":"$0.00"},{"v":0,"d":"$0.00"},{"v":0,"d":"$0.00"}]
[{"$nulls":29},{"v":0,"d":"$0"},null,null,{"v":0,"d":"$0"},null,null,{"v":0,"d":"$0"},null,null,{"v":0,"d":"$0"},{"$nulls":3},{"v":0,"d":"$0"},null,null,{"v":0,"d":"$0"},null,"TILING",{"$nulls":4},0,0,0,0,0,0,0,null,{"v":0,"d":"$0.00"},{"v":0,"d":"$0.00"},{"v":0,"d":"$0.00"}]
[{"$nulls":29},{"v":0,"d":"$0"},null,null,{"v":0,"d":"$0"},null,null,{"v":0,"d":"$0"},null,null,{"v":0,"d":"$0"},{"$nulls":3},{"v":0,"d":"$0"},null,null,{"v":0,"d":"$0"},null,"TILING",{"$nulls":4},0,0,0,0,0,0,0,null,{"v":0,"d":"$0.00"},{"v":0,"d":"$0.00"},{"v":0,"d":"$0.00"}]
[{"$nulls":29},{"v":0,"d":"$0"},null,null,{"v":0,"d":"$0"},null,null,{"v":0,"d":"$0"},null,null,{"v":0,"d":"$0"},{"$nulls":3},{"v":0,"d":"$0"},null,null,{"v":0,"d":"$0"},null,"TILING",{"$nulls":4},0,0,0,0,0,0,0,null,{"v":0,"d":"$0.00"},{"v":0,"d":"$0.00"},{"v":0,"d":"$0.00"}]
[{"$nulls":29},{"v":0,"d":"$0"},null,null,{"v":0,"d":"$0"},null,null,{"v":0,"d":"$0"},null,null,{"v":0,"d":"$0"},{"$nulls":3},{"v":0,"d":"$0"},null,null,{"v":0,"d":"$0"},null,"TILING",{"$nulls":4},0,0,0,0,0,0,0,null,{"v":0,"d":"$0.00"},{"v":0,"d":"$0.00"},{"v":0,"d":"$0.00"}]
[{"$nulls":29},{"v":0,"d":"$0"},null,null,{"v":0,"d":"$0"},null,null,{"v":0,"d":"$0"},null,null,{"v":0,"d":"$0"},{"$nulls":3},{"v":0,"d":"$0"},null,null,{"v":0,"d":"$0"},null,"TILING",{"$nulls":4},0,0,0,0,0,0,0,null,{"v":0,"d":"$0.00"},{"v":0,"d":"$0.00"},{"v":0,"d":"$0.00"}]
[{"$nulls":29},{"v":0,"d":"$0"},null,null,{"v":0,"d":"$0"},null,null,{"v":0,"d":"$0"},null,null,{"v":0,"d":"$0"},{"$nulls":3},{"v":0,"d":"$0"},null,null,{"v":0,"d":"$0"},null,"TILING",{"$nulls":4},0,0,0,0,0,0,0,null,{"v":0,"d":"$0.00"},{"v":0,"d":"$0.00"},{"v":0,"d":"$0.00"}]
[{"$nulls":29},{"v":0,"d":"$0"},null,null,{"v":0,"d":"$0"},null,null,{"v":0,"d":"$0"},null,null,{"v":0,"d":"$0"},{"$nulls":3},{"v":0,"d":"$0"},null,null,{"v":0,"d":"$0"},null,"TILING",{"$nulls":4},0,0,0,0,0,0,0,null,{"v":0,"d":"$0.00"},{"v":0,"d":"$0.00"},{"v":0,"d":"$0.00"}]
[{"$nulls":29},{"v":0,"d":"$0"},null,null,{"v":0,"d":"$0"},null,null,{"v":0,"d":"$0"},null,null,{"v":0,"d":"$0"},{"$nulls":3},{"v":0,"d":"$0"},null,null,{"v":0,"d":"$0"},null,"TILING",{"$nulls":4},0,0,0,0,0,0,0,null,{"v":0,"d":"$0.00"},{"v":0,"d":"$0.00"},{"v":0,"d":"$0.00"}]
[{"$nulls":29},{"v":0,"d":"$0"},null,null,{"v":0,"d":"$0"},null,null,{"v":0,"d":"$0"},null,null,{"v":0,"d":"$0"},{"$nulls":3},{"v":0,"d":"$0"},null,null,{"v":0,"d":"$0"},null,"TILING",{"$nulls":4},0,0,0,0,0,0,0,null,{"v":0,"d":"$0.00"},{"v":0,"d":"$0.00"},{"v":0,"d":"$0.00"}]
[{"$nulls":29},{"v":0,"d":"$0"},null,null,{"v":0,"d":"$0"},null,null,{"v":0,"d":"$0"},null,null,{"v":0,"d":"$0"},{"$nulls":3},{"v":0,"d":"$0"},null,null,{"v":0,"d":"$0"},null,"TILING",{"$nulls":4},0,0,0,0,0,0,0,null,{"v":0,"d":"$0.00"},{"v":0,"d":"$0.00"},{"v":0,"d":"$0.00"}]
[{"$nulls":29},{"v":0,"d":"$0"},null,null,{"v":0,"d":"$0"},null,null,{"v":0,"d":"$0"},null,null,{"v":0,"d":"$0"},{"$nulls":3},{"v":0,"d":"$0"},null,null,{"v":0,"d":"$0"},null,"TILING",{"$nulls":4},0,0,0,0,0,0,0,null,{"v":0,"d":"$0.00"},{"v":0,"d":"$0.00"},{"v":0,"d":"$0.00"}]
[{"$nulls":29},{"v":0,"d":"$0"},null,null,{"v":0,"d":"$0"},null,null,{"v":0,"d":"$0"},null,null,{"v":0,"d":"$0"},{"$nulls":3},{"v":0,"d":"$0"},null,null,{"v":0,"d":"$0"},null,"TILING",{"$nulls":4},0,0,0,0,0,0,0,null,{"v":0,"d":"$0.00"},{"v":0,"d":"$0.00"},{"v":0,"d":"$0.00"}]
[{"$nulls":29},{"v":0,"d":"$0"},null,null,{"v":0,"d":"$0"},null,null,{"v":0,"d":"$0"},null,null,{"v":0,"d":"$0"},{"$nulls":3},{"v":0,"d":"$0"},null,null,{"v":0,"d":"$0"},null,"TILING",{"$nulls":4},0,0,0,0,{"$f":"SUM(BA891:BC891)","v":0},0,0,null,{"v":0,"d":"$0.00"},{"v":0,"d":"$0.00"},{"v":0,"d":"$0.00"}]
[{"$nulls":29},{"v":0,"d":"$0"},null,null,{"v":0,"d":"$0"},null,null,{"v":0,"d":"$0"},null,null,{"v":0,"d":"$0"},{"$nulls":3},{"v":0,"d":"$0"},null,null,{"v":0,"d":"$0"},null,"TILING",{"$nulls":4},0,0,0,0,{"$f":"SUM(BA892:BC892)","v":0},0,0,null,{"v":0,"d":"$0.00"},{"v":0,"d":"$0.00"},{"v":0,"d":"$0.00"}]
[{"$nulls":47},"TILING",{"$nulls":4},{"$f":"BA852","v":{"v":1625,"d":"$1,625"}},{"$f":"BB852","v":{"v":2279.1000000000004,"d":"$2,279"}},{"$f":"BC852","v":{"v":0,"d":"$0"}},{"$f":"BD852","v":{"v":0,"d":"$0"}},{"$f":"BE852","v":{"v":3904.1000000000004,"d":"$3,904"}}]
[{"$nulls":28},{"$f":"CONCATENATE(D852,\" \",\"TOTAL\")","v":"TILING TOTAL"},{"$f":"SUBTOTAL(9,AD853:AD893)","v":{"v":1625,"d":"$1,625"}},null,null,{"$f":"SUBTOTAL(9,AG853:AG893)","v":{"v":2279.1000000000004,"d":"$2,279"}},null,null,{"$f":"SUBTOTAL(9,AJ853:AJ893)","v":{"v":0,"d":"$0"}},null,null,{"$f":"SUBTOTAL(9,AM853:AM893)","v":{"v":0,"d":"$0"}},{"$nulls":3},{"$f":"SUBTOTAL(9,AQ853:AQ893)","v":{"v":3904.1000000000004,"d":"$3,904"}},{"$nulls":4},"TILING",{"$nulls":4},{"$f":"BA852","v":1625},{"$f":"BB852","v":2279.1000000000004},{"$f":"BC852","v":0},{"$f":"BD852","v":0},{"$f":"BE852","v":3904.1000000000004},{"$f":"SUM(BF852:BF893)","v":7808.200000000001},{"$f":"SUM(BG852:BG893)","v":0},null,{"$f":"SUM(BI853:BI893)","v":1625},{"$f":"SUM(BJ853:BJ893)","v":0},{"$f":"SUM(BK853:BK893)","v":1625}]
[{"$nulls":47},"TILING",{"$nulls":4},{"$f":"BA852","v":{"v":1625,"d":"$1,625"}},{"$f":"BB852","v":{"v":2279.1000000000004,"d":"$2,279"}},{"$f":"BC852","v":{"v":0,"d":"$0"}},{"$f":"BD852","v":{"v":0,"d":"$0"}},{"$f":"BE852","v":{"v":3904.1000000000004,"d":"$3,904"}}]
[{"$nulls":47},"TILING",{"$nulls":4},{"$f":"BA894","v":1625},{"$f":"BB894","v":2279.1000000000004},{"$f":"BC894","v":0},0,3904.1000000000004,7808.200000000001,0]
["Hidden",null,null,{"$f":"T(AJ77)","v":"PAINTING"},{"$nulls":25},{"$f":"AD939","v":{"v":4000,"d":"$4,000"}},null,null,{"$f":"AG939","v":{"v":0,"d":"$0"}},null,null,{"$f":"AJ939","v":{"v":0,"d":"$0"}},null,null,{"$f":"AM939","v":{"v":0,"d":"$0"}},{"$nulls":3},{"$f":"AQ939","v":{"v":4000,"d":"$4,000"}},null,null,{"$f":"SUM(#REF!)","v":{"$error":"#REF!"}},null,{"$f":"$D$897","v":"PAINTING"},{"$nulls":4},{"$f":"SUM(BA898:BA937)","v":4000},{"$f":"SUM(BB898:BB937)","v":0},{"$f":"SUM(BC898:BC937)","v":0},{"$f":"SUM(BD898:BD937)","v":0},{"$f":"SUM(BE898:BE937)","v":4000},{"$f":"AQ897","v":4000},{"$f":"AM897","v":0},null,{"$f":"AD897","v":{"v":4000,"d":"$4,000.00"}},{"$f":"AM897","v":{"v":0,"d":"$0.00"}},{"$f":"BJ897+BI897","v":{"v":4000,"d":"$4,000.00"}}]
[{"$nulls":3},"Exterior Painting",{"$nulls":25},{"$f":"((P898*U898)-AM898)","v":{"v":0,"d":"$0"}},null,null,{"$f":"P898*X898*(1+$Y$85)","v":{"v":0,"d":"$0"}},null,null,{"$f":"P898*AA898","v":{"v":0,"d":"$0"}},null,null,{"$f":"IF($B898=\"x\",$P898*$U898,0)","v":{"v":0,"d":"$0"}},{"$nulls":3},{"$f":"SUM(AD898:AL898)","v":{"v":0,"d":"$0"}},null,null,{"$f":"SUM(AD898:AL898)","v":{"v":0,"d":"$0"}},null,"PAINTING",{"$nulls":4},{"$f":"AD898","v":0},{"$f":"AG898","v":0},{"$f":"AJ898","v":0},{"$f":"IF(B898=\"x\",1,0)","v":0},{"$f":"SUM(BA898:BC898)","v":0},0,0,null,{"$f":"AD898","v":{"v":0,"d":"$0.00"}},{"$f":"AM898","v":{"v":0,"d":"$0.00"}},{"$f":"BJ898+BI898","v":{"v":0,"d":"$0.00"}}]
[{"$nulls":3},"Exterior painting, bid/allowance",{"$nulls":11},1,null,null,"ls","ls",{"v":2000,"d":"2000.00"},{"$nulls":8},{"v":2000,"d":"$2,000"},null,null,{"$f":"P899*X899*(1+$Y$85)","v":{"v":0,"d":"$0"}},null,null,{"v":0,"d":"$0"},null,null,{"v":0,"d":"$0"},{"$nulls":3},{"v":2000,"d":"$2,000"},null,null,{"v":2000,"d":"$2,000"},null,"PAINTING",{"$nulls":4},2000,{"$f":"AG899","v":0},{"$f":"AJ899","v":0},0,{"$f":"SUM(BA899:BC899)","v":2000},2000,0,null,{"$f":"AD899","v":{"v":2000,"d":"$2,000.00"}},{"v":0,"d":"$0.00"},{"$f":"BJ899+BI899","v":{"v":2000,"d":"$2,000.00"}}]
[{"$nulls":3},"Exterior painting materials allowance",{"$nulls":14},"gal","gall",{"$nulls":3},{"v":35,"d":"35.00"},null,{"v":35,"d":"35.00"},{"$nulls":3},{"v":0,"d":"$0"},null,null,{"v":0,"d":"$0"},null,null,{"v":0,"d":"$0"},null,null,{"v":0,"d":"$0"},{"$nulls":3},{"v":0,"d":"$0"},null,null,{"v":0,"d":"$0"},null,"PAINTING",{"$nulls":4},0,0,0,0,0,0,0,null,{"v":0,"d":"$0.00"},{"v":0,"d":"$0.00"},{"v":0,"d":"$0.00"}]
[{"$nulls":3},"Prep/clean siding",{"$nulls":14},"sf","sf",{"v":0.2,"d":"0.20"},{"$nulls":8},{"v":0,"d":"$0"},null,null,{"v":0,"d":"$0"},null,null,{"v":0,"d":"$0"},null,null,{"v":0,"d":"$0"},{"$nulls":3},{"v":0,"d":"$0"},null,null,{"v":0,"d":"$0"},null,"PAINTING",{"$nulls":4},0,0,0,0,0,0,0,null,{"v":0,"d":"$0.00"},{"v":0,"d":"$0.00"},{"v":0,"d":"$0.00"}]
[{"$nulls":3},"Paint siding",{"$nulls":14},"sf","sf",0.75,null,null,0.25,null,0.25,{"$nulls":3},{"v":0,"d":"$0"},null,null,{"v":0,"d":"$0"},null,null,{"v":0,"d":"$0"},null,null,{"v":0,"d":"$0"},{"$nulls":3},{"v":0,"d":"$0"},null,null,{"v":0,"d":"$0"},null,"PAINTING",{"$nulls":4},0,0,0,0,0,0,0,null,{"v":0,"d":"$0.00"},{"v":0,"d":"$0.00"},{"v":0,"d":"$0.00"}]
[{"$nulls":3},"Paint exterior door",{"$nulls":14},"ea","ea",{"v":75,"d":"75.00"},null,null,{"v":10,"d":"10.00"},null,{"v":10,"d":"10.00"},{"$nulls":3},{"v":0,"d":"$0"},null,null,{"v":0,"d":"$0"},null,null,{"v":0,"d":"$0"},null,null,{"v":0,"d":"$0"},{"$nulls":3},{"v":0,"d":"$0"},null,null,{"v":0,"d":"$0"},null,"PAINTING",{"$nulls":4},0,0,0,0,0,0,0,null,{"v":0,"d":"$0.00"},{"v":0,"d":"$0.00"},{"v":0,"d":"$0.00"}]
[{"$nulls":3},"Paint trim only",{"$nulls":14},"lf","lf",{"v":1.5,"d":"1.50"},null,null,0.15,null,0.15,{"$nulls":3},{"v":0,"d":"$0"},null,null,{"v":0,"d":"$0"},null,null,{"v":0,"d":"$0"},null,null,{"v":0,"d":"$0"},{"$nulls":3},{"v":0,"d":"$0"},null,null,{"v":0,"d":"$0"},null,"PAINTING",{"$nulls":4},0,0,0,0,0,0,0,null,{"v":0,"d":"$0.00"},{"v":0,"d":"$0.00"},{"v":0,"d":"$0.00"}]
[{"$nulls":3},"Sand & refinish decking",{"$nulls":14},"sf","sf",{"v":1.5,"d":"1.50"},null,null,0.25,null,0.25,{"$nulls":3},{"v":0,"d":"$0"},null,null,{"v":0,"d":"$0"},null,null,{"v":0,"d":"$0"},null,null,{"v":0,"d":"$0"},{"$nulls":3},{"v":0,"d":"$0"},null,null,{"v":0,"d":"$0"},null,"PAINTING",{"$nulls":4},0,0,0,0,0,0,0,null,{"v":0,"d":"$0.00"},{"v":0,"d":"$0.00"},{"v":0,"d":"$0.00"}]
[{"$nulls":29},{"v":0,"d":"$0"},null,null,{"v":0,"d":"$0"},null,null,{"v":0,"d":"$0"},null,null,{"v":0,"d":"$0"},{"$nulls":3},{"v":0,"d":"$0"},null,null,{"v":0,"d":"$0"},null,"PAINTING",{"$nulls":4},0,0,0,0,0,0,0,null,{"v":0,"d":"$0.00"},{"v":0,"d":"$0.00"},{"v":0,"d":"$0.00"}]
[{"$nulls":29},{"v":0,"d":"$0"},null,null,{"v":0,"d":"$0"},null,null,{"v":0,"d":"$0"},null,null,{"v":0,"d":"$0"},{"$nulls":3},{"v":0,"d":"$0"},null,null,{"v":0,"d":"$0"},null,"PAINTING",{"$nulls":4},0,0,0,0,0,0,0,null,{"v":0,"d":"$0.00"},{"v":0,"d":"$0.00"},{"v":0,"d":"$0.00"}]
[{"$nulls":3},"Interior Painting",{"$nulls":25},{"v":0,"d":"$0"},null,null,{"v":0,"d":"$0"},null,null,{"v":0,"d":"$0"},null,null,{"v":0,"d":"$0"},{"$nulls":3},{"v":0,"d":"$0"},null,null,{"v":0,"d":"$0"},null,"PAINTING",{"$nulls":4},0,0,0,0,0,0,0,null,{"v":0,"d":"$0.00"},{"v":0,"d":"$0.00"},{"v":0,"d":"$0.00"}]
[{"$nulls":3},"Interior painting, bid/allowance",{"$nulls":11},1,null,null,"ls","ls",{"v":2000,"d":"2000.00"},{"$nulls":8},{"v":2000,"d":"$2,000"},null,null,{"v":0,"d":"$0"},null,null,{"v":0,"d":"$0"},null,null,{"v":0,"d":"$0"},{"$nulls":3},{"v":2000,"d":"$2,000"},null,null,{"v":2000,"d":"$2,000"},null,"PAINTING",{"$nulls":4},2000,0,0,0,2000,2000,0,null,{"v":2000,"d":"$2,000.00"},{"v":0,"d":"$0.00"},{"v":2000,"d":"$2,000.00"}]
[{"$nulls":3},"Interior painting materials allowance",{"$nulls":14},"gal","gall",{"$nulls":3},{"v":35,"d":"35.00"},null,{"v":35,"d":"35.00"},{"$nulls":3},{"v":0,"d":"$0"},null,null,{"v":0,"d":"$0"},null,null,{"v":0,"d":"$0"},null,null,{"v":0,"d":"$0"},{"$nulls":3},{"v":0,"d":"$0"},null,null,{"v":0,"d":"$0"},null,"PAINTING",{"$nulls":4},0,0,0,0,0,0,0,null,{"v":0,"d":"$0.00"},{"v":0,"d":"$0.00"},{"v":0,"d":"$0.00"}]
[{"$nulls":3},"Paint doors & frames",{"$nulls":14},"ea","ea",{"v":50,"d":"50.00"},null,null,{"v":5,"d":"5.00"},null,{"v":5,"d":"5.00"},{"$nulls":3},{"v":0,"d":"$0"},null,null,{"v":0,"d":"$0"},null,null,{"v":0,"d":"$0"},null,null,{"v":0,"d":"$0"},{"$nulls":3},{"v":0,"d":"$0"},null,null,{"v":0,"d":"$0"},null,"PAINTING",{"$nulls":4},0,0,0,0,0,0,0,null,{"v":0,"d":"$0.00"},{"v":0,"d":"$0.00"},{"v":0,"d":"$0.00"}]
[{"$nulls":3},"Paint walls",{"$nulls":14},"sf","sf",{"v":1,"d":"1.00"},null,null,{"v":0.2,"d":"0.20"},null,{"v":0.2,"d":"0.20"},{"$nulls":3},{"v":0,"d":"$0"},null,null,{"v":0,"d":"$0"},null,null,{"v":0,"d":"$0"},null,null,{"v":0,"d":"$0"},{"$nulls":3},{"v":0,"d":"$0"},null,null,{"v":0,"d":"$0"},null,"PAINTING",{"$nulls":4},0,0,0,0,0,0,0,null,{"v":0,"d":"$0.00"},{"v":0,"d":"$0.00"},{"v":0,"d":"$0.00"}]
[{"$nulls":3},"Paint ceilings",{"$nulls":14},"sf","sf",1.25,null,null,0.25,null,0.25,{"$nulls":3},{"v":0,"d":"$0"},null,null,{"v":0,"d":"$0"},null,null,{"v":0,"d":"$0"},null,null,{"v":0,"d":"$0"},{"$nulls":3},{"v":0,"d":"$0"},null,null,{"v":0,"d":"$0"},null,"PAINTING",{"$nulls":4},0,0,0,0,0,0,0,null,{"v":0,"d":"$0.00"},{"v":0,"d":"$0.00"},{"v":0,"d":"$0.00"}]
[{"$nulls":3},"Paint wood base",{"$nulls":14},"lf","lf",{"v":2,"d":"2.00"},null,null,{"v":0.1,"d":"0.10"},null,{"v":0.1,"d":"0.10"},{"$nulls":3},{"v":0,"d":"$0"},null,null,{"v":0,"d":"$0"},null,null,{"v":0,"d":"$0"},null,null,{"v":0,"d":"$0"},{"$nulls":3},{"v":0,"d":"$0"},null,null,{"v":0,"d":"$0"},null,"PAINTING",{"$nulls":4},0,0,0,0,0,0,0,null,{"v":0,"d":"$0.00"},{"v":0,"d":"$0.00"},{"v":0,"d":"$0.00"}]
[{"$nulls":3},"Strip, paint cabinets/vanities",{"$nulls":14},"sf","sf",{"v":2.5,"d":"2.50"},null,null,{"v":0.5,"d":"0.50"},null,{"v":0.5,"d":"0.50"},{"$nulls":3},{"v":0,"d":"$0"},null,null,{"v":0,"d":"$0"},null,null,{"v":0,"d":"$0"},null,null,{"v":0,"d":"$0"},{"$nulls":3},{"v":0,"d":"$0"},null,null,{"v":0,"d":"$0"},null,"PAINTING",{"$nulls":4},0,0,0,0,0,0,0,null,{"v":0,"d":"$0.00"},{"v":0,"d":"$0.00"},{"v":0,"d":"$0.00"}]
[{"$nulls":29},{"v":0,"d":"$0"},null,null,{"v":0,"d":"$0"},null,null,{"v":0,"d":"$0"},null,null,{"v":0,"d":"$0"},{"$nulls":3},{"v":0,"d":"$0"},null,null,{"v":0,"d":"$0"},null,"PAINTING",{"$nulls":4},0,0,0,0,{"$f":"SUM(BA916:BC916)","v":0},0,0,null,{"v":0,"d":"$0.00"},{"v":0,"d":"$0.00"},{"v":0,"d":"$0.00"}]
[{"$nulls":29},{"v":0,"d":"$0"},null,null,{"v":0,"d":"$0"},null,null,{"v":0,"d":"$0"},null,null,{"v":0,"d":"$0"},{"$nulls":3},{"v":0,"d":"$0"},null,null,{"v":0,"d":"$0"},null,"PAINTING",{"$nulls":4},0,0,0,0,{"$f":"SUM(BA917:BC917)","v":0},0,0,null,{"v":0,"d":"$0.00"},{"v":0,"d":"$0.00"},{"v":0,"d":"$0.00"}]
[{"$nulls":29},{"$f":"((P918*U918)-AM918)","v":{"v":0,"d":"$0"}},null,null,{"v":0,"d":"$0"},null,null,{"$f":"P918*AA918","v":{"v":0,"d":"$0"}},null,null,{"v":0,"d":"$0"},{"$nulls":3},{"$f":"SUM(AD918:AL918)","v":{"v":0,"d":"$0"}},null,null,{"$f":"SUM(AD918:AL918)","v":{"v":0,"d":"$0"}},null,"PAINTING",{"$nulls":4},{"$f":"AD918","v":0},{"$f":"AG918","v":0},{"$f":"AJ918","v":0},{"$f":"IF(B918=\"x\",1,0)","v":0},{"$f":"SUM(BA918:BC918)","v":0},{"$f":"AQ918","v":0},{"$f":"AM918","v":0},null,{"$f":"AD918","v":{"v":0,"d":"$0.00"}},{"$f":"AM918","v":{"v":0,"d":"$0.00"}},{"$f":"BJ918+BI918","v":{"v":0,"d":"$0.00"}}]
[{"$nulls":29},{"v":0,"d":"$0"},null,null,{"v":0,"d":"$0"},null,null,{"v":0,"d":"$0"},null,null,{"v":0,"d":"$0"},{"$nulls":3},{"v":0,"d":"$0"},null,null,{"v":0,"d":"$0"},null,"PAINTING",{"$nulls":4},0,{"$f":"AG919","v":0},{"$f":"AJ919","v":0},0,{"$f":"SUM(BA919:BC919)","v":0},0,0,null,{"$f":"AD919","v":{"v":0,"d":"$0.00"}},{"v":0,"d":"$0.00"},{"$f":"BJ919+BI919","v":{"v":0,"d":"$0.00"}}]
[{"$nulls":29},{"v":0,"d":"$0"},null,null,{"v":0,"d":"$0"},null,null,{"v":0,"d":"$0"},null,null,{"v":0,"d":"$0"},{"$nulls":3},{"v":0,"d":"$0"},null,null,{"v":0,"d":"$0"},null,"PAINTING",{"$nulls":4},0,0,0,0,0,0,0,null,{"v":0,"d":"$0.00"},{"v":0,"d":"$0.00"},{"v":0,"d":"$0.00"}]
[{"$nulls":29},{"v":0,"d":"$0"},null,null,{"v":0,"d":"$0"},null,null,{"v":0,"d":"$0"},null,null,{"v":0,"d":"$0"},{"$nulls":3},{"v":0,"d":"$0"},null,null,{"v":0,"d":"$0"},null,"PAINTING",{"$nulls":4},0,0,0,0,0,0,0,null,{"v":0,"d":"$0.00"},{"v":0,"d":"$0.00"},{"v":0,"d":"$0.00"}]
[{"$nulls":29},{"v":0,"d":"$0"},null,null,{"v":0,"d":"$0"},null,null,{"v":0,"d":"$0"},null,null,{"v":0,"d":"$0"},{"$nulls":3},{"v":0,"d":"$0"},null,null,{"v":0,"d":"$0"},null,"PAINTING",{"$nulls":4},0,0,0,0,0,0,0,null,{"v":0,"d":"$0.00"},{"v":0,"d":"$0.00"},{"v":0,"d":"$0.00"}]
[{"$nulls":29},{"v":0,"d":"$0"},null,null,{"v":0,"d":"$0"},null,null,{"v":0,"d":"$0"},null,null,{"v":0,"d":"$0"},{"$nulls":3},{"v":0,"d":"$0"},null,null,{"v":0,"d":"$0"},null,"PAINTING",{"$nulls":4},0,0,0,0,0,0,0,null,{"v":0,"d":"$0.00"},{"v":0,"d":"$0.00"},{"v":0,"d":"$0.00"}]
[{"$nulls":29},{"v":0,"d":"$0"},null,null,{"v":0,"d":"$0"},null,null,{"v":0,"d":"$0"},null,null,{"v":0,"d":"$0"},{"$nulls":3},{"v":0,"d":"$0"},null,null,{"v":0,"d":"$0"},null,"PAINTING",{"$nulls":4},0,0,0,0,0,0,0,null,{"v":0,"d":"$0.00"},{"v":0,"d":"$0.00"},{"v":0,"d":"$0.00"}]
[{"$nulls":29},{"v":0,"d":"$0"},null,null,{"v":0,"d":"$0"},null,null,{"v":0,"d":"$0"},null,null,{"v":0,"d":"$0"},{"$nulls":3},{"v":0,"d":"$0"},null,null,{"v":0,"d":"$0"},null,"PAINTING",{"$nulls":4},0,0,0,0,0,0,0,null,{"v":0,"d":"$0.00"},{"v":0,"d":"$0.00"},{"v":0,"d":"$0.00"}]
[{"$nulls":29},{"v":0,"d":"$0"},null,null,{"v":0,"d":"$0"},null,null,{"v":0,"d":"$0"},null,null,{"v":0,"d":"$0"},{"$nulls":3},{"v":0,"d":"$0"},null,null,{"v":0,"d":"$0"},null,"PAINTING",{"$nulls":4},0,0,0,0,0,0,0,null,{"v":0,"d":"$0.00"},{"v":0,"d":"$0.00"},{"v":0,"d":"$0.00"}]
[{"$nulls":29},{"v":0,"d":"$0"},null,null,{"v":0,"d":"$0"},null,null,{"v":0,"d":"$0"},null,null,{"v":0,"d":"$0"},{"$nulls":3},{"v":0,"d":"$0"},null,null,{"v":0,"d":"$0"},null,"PAINTING",{"$nulls":4},0,0,0,0,0,0,0,null,{"v":0,"d":"$0.00"},{"v":0,"d":"$0.00"},{"v":0,"d":"$0.00"}]
[{"$nulls":29},{"v":0,"d":"$0"},null,null,{"v":0,"d":"$0"},null,null,{"v":0,"d":"$0"},null,null,{"v":0,"d":"$0"},{"$nulls":3},{"v":0,"d":"$0"},null,null,{"v":0,"d":"$0"},null,"PAINTING",{"$nulls":4},0,0,0,0,0,0,0,null,{"v":0,"d":"$0.00"},{"v":0,"d":"$0.00"},{"v":0,"d":"$0.00"}]
[{"$nulls":29},{"v":0,"d":"$0"},null,null,{"v":0,"d":"$0"},null,null,{"v":0,"d":"$0"},null,null,{"v":0,"d":"$0"},{"$nulls":3},{"v":0,"d":"$0"},null,null,{"v":0,"d":"$0"},null,"PAINTING",{"$nulls":4},0,0,0,0,0,0,0,null,{"v":0,"d":"$0.00"},{"v":0,"d":"$0.00"},{"v":0,"d":"$0.00"}]
[{"$nulls":29},{"v":0,"d":"$0"},null,null,{"v":0,"d":"$0"},null,null,{"v":0,"d":"$0"},null,null,{"v":0,"d":"$0"},{"$nulls":3},{"v":0,"d":"$0"},null,null,{"v":0,"d":"$0"},null,"PAINTING",{"$nulls":4},0,0,0,0,0,0,0,null,{"v":0,"d":"$0.00"},{"v":0,"d":"$0.00"},{"v":0,"d":"$0.00"}]
[{"$nulls":29},{"v":0,"d":"$0"},null,null,{"v":0,"d":"$0"},null,null,{"v":0,"d":"$0"},null,null,{"v":0,"d":"$0"},{"$nulls":3},{"v":0,"d":"$0"},null,null,{"v":0,"d":"$0"},null,"PAINTING",{"$nulls":4},0,0,0,0,0,0,0,null,{"v":0,"d":"$0.00"},{"v":0,"d":"$0.00"},{"v":0,"d":"$0.00"}]
[{"$nulls":29},{"v":0,"d":"$0"},null,null,{"v":0,"d":"$0"},null,null,{"v":0,"d":"$0"},null,null,{"v":0,"d":"$0"},{"$nulls":3},{"v":0,"d":"$0"},null,null,{"v":0,"d":"$0"},null,"PAINTING",{"$nulls":4},0,0,0,0,0,0,0,null,{"v":0,"d":"$0.00"},{"v":0,"d":"$0.00"},{"v":0,"d":"$0.00"}]
[{"$nulls":29},{"v":0,"d":"$0"},null,null,{"v":0,"d":"$0"},null,null,{"v":0,"d":"$0"},null,null,{"v":0,"d":"$0"},{"$nulls":3},{"v":0,"d":"$0"},null,null,{"v":0,"d":"$0"},null,"PAINTING",{"$nulls":4},0,0,0,0,0,0,0,null,{"v":0,"d":"$0.00"},{"v":0,"d":"$0.00"},{"v":0,"d":"$0.00"}]
[{"$nulls":29},{"v":0,"d":"$0"},null,null,{"v":0,"d":"$0"},null,null,{"v":0,"d":"$0"},null,null,{"v":0,"d":"$0"},{"$nulls":3},{"v":0,"d":"$0"},null,null,{"v":0,"d":"$0"},null,"PAINTING",{"$nulls":4},0,0,0,0,0,0,0,null,{"v":0,"d":"$0.00"},{"v":0,"d":"$0.00"},{"v":0,"d":"$0.00"}]
[{"$nulls":29},{"v":0,"d":"$0"},null,null,{"v":0,"d":"$0"},null,null,{"v":0,"d":"$0"},null,null,{"v":0,"d":"$0"},{"$nulls":3},{"v":0,"d":"$0"},null,null,{"v":0,"d":"$0"},null,"PAINTING",{"$nulls":4},0,0,0,0,0,0,0,null,{"v":0,"d":"$0.00"},{"v":0,"d":"$0.00"},{"v":0,"d":"$0.00"}]
[{"$nulls":29},{"v":0,"d":"$0"},null,null,{"v":0,"d":"$0"},null,null,{"v":0,"d":"$0"},null,null,{"v":0,"d":"$0"},{"$nulls":3},{"v":0,"d":"$0"},null,null,{"v":0,"d":"$0"},null,"PAINTING",{"$nulls":4},0,0,0,0,{"$f":"SUM(BA936:BC936)","v":0},0,0,null,{"v":0,"d":"$0.00"},{"v":0,"d":"$0.00"},{"v":0,"d":"$0.00"}]
[{"$nulls":29},{"v":0,"d":"$0"},null,null,{"v":0,"d":"$0"},null,null,{"v":0,"d":"$0"},null,null,{"v":0,"d":"$0"},{"$nulls":3},{"v":0,"d":"$0"},null,null,{"v":0,"d":"$0"},null,"PAINTING",{"$nulls":4},0,0,0,0,{"$f":"SUM(BA937:BC937)","v":0},0,0,null,{"v":0,"d":"$0.00"},{"v":0,"d":"$0.00"},{"v":0,"d":"$0.00"}]
[{"$nulls":47},"PAINTING",{"$nulls":4},{"$f":"BA897","v":{"v":4000,"d":"$4,000"}},{"$f":"BB897","v":{"v":0,"d":"$0"}},{"$f":"BC897","v":{"v":0,"d":"$0"}},{"$f":"BD897","v":{"v":0,"d":"$0"}},{"$f":"BE897","v":{"v":4000,"d":"$4,000"}}]
[{"$nulls":28},{"$f":"CONCATENATE(D897,\" \",\"TOTAL\")","v":"PAINTING TOTAL"},{"$f":"SUBTOTAL(9,AD898:AD938)","v":{"v":4000,"d":"$4,000"}},null,null,{"$f":"SUBTOTAL(9,AG898:AG938)","v":{"v":0,"d":"$0"}},null,null,{"$f":"SUBTOTAL(9,AJ898:AJ938)","v":{"v":0,"d":"$0"}},null,null,{"$f":"SUBTOTAL(9,AM898:AM938)","v":{"v":0,"d":"$0"}},{"$nulls":3},{"$f":"SUBTOTAL(9,AQ898:AQ938)","v":{"v":4000,"d":"$4,000"}},null,null,{"$f":"SUM(AT895:AT930)","v":{"$error":"#REF!"}},null,"PAINTING",{"$nulls":4},{"$f":"BA897","v":4000},{"$f":"BB897","v":0},{"$f":"BC897","v":0},{"$f":"BD897","v":0},{"$f":"BE897","v":4000},{"$f":"SUM(BF897:BF938)","v":8000},{"$f":"SUM(BG897:BG938)","v":0},null,{"$f":"SUM(BI898:BI938)","v":4000},{"$f":"SUM(BJ898:BJ938)","v":0},{"$f":"SUM(BK898:BK938)","v":4000}]
[{"$nulls":47},"PAINTING",{"$nulls":4},{"$f":"BA897","v":{"v":4000,"d":"$4,000"}},{"$f":"BB897","v":{"v":0,"d":"$0"}},{"$f":"BC897","v":{"v":0,"d":"$0"}},{"$f":"BD897","v":{"v":0,"d":"$0"}},{"$f":"BE897","v":{"v":4000,"d":"$4,000"}}]
[{"$nulls":47},"PAINTING",{"$nulls":4},{"$f":"BA939","v":4000},{"$f":"BB939","v":0},{"$f":"BC939","v":0},0,4000,8000,0]
["Hidden",null,null,{"$f":"T(AJ78)","v":"APPLIANCES"},{"$nulls":25},{"$f":"AD984","v":{"v":0,"d":"$0"}},null,null,{"$f":"AG984","v":{"v":3210,"d":"$3,210"}},null,null,{"$f":"AJ984","v":{"v":0,"d":"$0"}},null,null,{"$f":"AM984","v":{"v":0,"d":"$0"}},{"$nulls":3},{"$f":"AQ984","v":{"v":3210,"d":"$3,210"}},null,null,{"$f":"SUM(#REF!)","v":{"$error":"#REF!"}},null,{"$f":"$D$942","v":"APPLIANCES"},{"$nulls":4},{"$f":"SUM(BA943:BA982)","v":0},{"$f":"SUM(BB943:BB982)","v":3210},{"$f":"SUM(BC943:BC982)","v":0},{"$f":"SUM(BD943:BD982)","v":0},{"$f":"SUM(BE943:BE982)","v":3210},{"$f":"AQ942","v":3210},{"$f":"AM942","v":0},null,{"$f":"AD942","v":{"v":0,"d":"$0.00"}},{"$f":"AM942","v":{"v":0,"d":"$0.00"}},{"$f":"BJ942+BI942","v":{"v":0,"d":"$0.00"}}]
[{"$nulls":3},"Appliances, Bid/Allowance",{"$nulls":14},"ls",{"$nulls":4},{"v":2500,"d":"2500.00"},{"$nulls":5},{"$f":"((P943*U943)-AM943)","v":{"v":0,"d":"$0"}},null,null,{"$f":"P943*X943*(1+$Y$85)","v":{"v":0,"d":"$0"}},null,null,{"$f":"P943*AA943","v":{"v":0,"d":"$0"}},null,null,{"$f":"IF($B943=\"x\",$P943*$U943,0)","v":{"v":0,"d":"$0"}},{"$nulls":3},{"$f":"SUM(AD943:AL943)","v":{"v":0,"d":"$0"}},null,null,{"$f":"SUM(AD943:AL943)","v":{"v":0,"d":"$0"}},null,"APPLIANCES","Kitchen",{"$nulls":3},{"$f":"AD943","v":0},{"$f":"AG943","v":0},{"$f":"AJ943","v":0},{"$f":"IF(B943=\"x\",1,0)","v":0},{"$f":"SUM(BA943:BC943)","v":0},0,0,null,{"$f":"AD943","v":{"v":0,"d":"$0.00"}},{"$f":"AM943","v":{"v":0,"d":"$0.00"}},{"$f":"BJ943+BI943","v":{"v":0,"d":"$0.00"}}]
[{"$nulls":29},{"v":0,"d":"$0"},null,null,{"$f":"P944*X944*(1+$Y$85)","v":{"v":0,"d":"$0"}},null,null,{"v":0,"d":"$0"},null,null,{"v":0,"d":"$0"},{"$nulls":3},{"v":0,"d":"$0"},null,null,{"v":0,"d":"$0"},null,"APPLIANCES","Kitchen",{"$nulls":3},0,{"$f":"AG944","v":0},{"$f":"AJ944","v":0},0,{"$f":"SUM(BA944:BC944)","v":0},0,0,null,{"$f":"AD944","v":{"v":0,"d":"$0.00"}},{"v":0,"d":"$0.00"},{"$f":"BJ944+BI944","v":{"v":0,"d":"$0.00"}}]
[{"$nulls":3},"Appliance Package",{"$nulls":25},{"v":0,"d":"$0"},null,null,{"v":0,"d":"$0"},null,null,{"v":0,"d":"$0"},null,null,{"v":0,"d":"$0"},{"$nulls":3},{"v":0,"d":"$0"},null,null,{"v":0,"d":"$0"},null,"APPLIANCES","Kitchen",{"$nulls":3},0,0,0,0,0,0,0,null,{"v":0,"d":"$0.00"},{"v":0,"d":"$0.00"},{"v":0,"d":"$0.00"}]
[{"$nulls":3},"Economy, (fridge, range, hood, dw, microwave)",{"$nulls":14},"ea",{"$nulls":4},{"v":1800,"d":"1800.00"},{"$nulls":5},{"v":0,"d":"$0"},null,null,{"v":0,"d":"$0"},null,null,{"v":0,"d":"$0"},null,null,{"v":0,"d":"$0"},{"$nulls":3},{"v":0,"d":"$0"},null,null,{"v":0,"d":"$0"},null,"APPLIANCES","Kitchen",{"$nulls":3},0,0,0,0,0,0,0,null,{"v":0,"d":"$0.00"},{"v":0,"d":"$0.00"},{"v":0,"d":"$0.00"}]
[{"$nulls":3},"Average, (fridge, range, hood, dw, microwave)",{"$nulls":11},1,null,null,"ea",{"$nulls":4},{"v":3000,"d":"3000.00"},{"$nulls":5},{"v":0,"d":"$0"},null,null,{"v":3210,"d":"$3,210"},null,null,{"v":0,"d":"$0"},null,null,{"v":0,"d":"$0"},{"$nulls":3},{"v":3210,"d":"$3,210"},null,null,{"v":3210,"d":"$3,210"},null,"APPLIANCES","Kitchen",{"$nulls":3},0,3210,0,0,3210,3210,0,null,{"v":0,"d":"$0.00"},{"v":0,"d":"$0.00"},{"v":0,"d":"$0.00"}]
[{"$nulls":3},"High End, (fridge, range, hood, dw, microwave)",{"$nulls":14},"ea",{"$nulls":4},{"v":7500,"d":"7500.00"},{"$nulls":5},{"v":0,"d":"$0"},null,null,{"v":0,"d":"$0"},null,null,{"v":0,"d":"$0"},null,null,{"v":0,"d":"$0"},{"$nulls":3},{"v":0,"d":"$0"},null,null,{"v":0,"d":"$0"},null,"APPLIANCES","Kitchen",{"$nulls":3},0,0,0,0,0,0,0,null,{"v":0,"d":"$0.00"},{"v":0,"d":"$0.00"},{"v":0,"d":"$0.00"}]
[{"$nulls":29},{"v":0,"d":"$0"},null,null,{"v":0,"d":"$0"},null,null,{"v":0,"d":"$0"},null,null,{"v":0,"d":"$0"},{"$nulls":3},{"v":0,"d":"$0"},null,null,{"v":0,"d":"$0"},null,"APPLIANCES","Kitchen",{"$nulls":3},0,0,0,0,0,0,0,null,{"v":0,"d":"$0.00"},{"v":0,"d":"$0.00"},{"v":0,"d":"$0.00"}]
[{"$nulls":29},{"v":0,"d":"$0"},null,null,{"v":0,"d":"$0"},null,null,{"v":0,"d":"$0"},null,null,{"v":0,"d":"$0"},{"$nulls":3},{"v":0,"d":"$0"},null,null,{"v":0,"d":"$0"},null,"APPLIANCES","Kitchen",{"$nulls":3},0,0,0,0,0,0,0,null,{"v":0,"d":"$0.00"},{"v":0,"d":"$0.00"},{"v":0,"d":"$0.00"}]
[{"$nulls":3},"Appliances, Detailed, Ecomony",{"$nulls":25},{"v":0,"d":"$0"},null,null,{"v":0,"d":"$0"},null,null,{"v":0,"d":"$0"},null,null,{"v":0,"d":"$0"},{"$nulls":3},{"v":0,"d":"$0"},null,null,{"v":0,"d":"$0"},null,"APPLIANCES","Kitchen",{"$nulls":3},0,0,0,0,0,0,0,null,{"v":0,"d":"$0.00"},{"v":0,"d":"$0.00"},{"v":0,"d":"$0.00"}]
[{"$nulls":3},"Refrigerator, economy",{"$nulls":14},"ea",{"$nulls":4},{"v":750,"d":"750.00"},{"$nulls":5},{"v":0,"d":"$0"},null,null,{"v":0,"d":"$0"},null,null,{"v":0,"d":"$0"},null,null,{"v":0,"d":"$0"},{"$nulls":3},{"v":0,"d":"$0"},null,null,{"v":0,"d":"$0"},null,"APPLIANCES","Kitchen",{"$nulls":3},0,0,0,0,0,0,0,null,{"v":0,"d":"$0.00"},{"v":0,"d":"$0.00"},{"v":0,"d":"$0.00"}]
[{"$nulls":3},"Range, economy",{"$nulls":14},"ea",{"$nulls":4},{"v":375,"d":"375.00"},{"$nulls":5},{"v":0,"d":"$0"},null,null,{"v":0,"d":"$0"},null,null,{"v":0,"d":"$0"},null,null,{"v":0,"d":"$0"},{"$nulls":3},{"v":0,"d":"$0"},null,null,{"v":0,"d":"$0"},null,"APPLIANCES","Kitchen",{"$nulls":3},0,0,0,0,0,0,0,null,{"v":0,"d":"$0.00"},{"v":0,"d":"$0.00"},{"v":0,"d":"$0.00"}]
[{"$nulls":3},"Range Hood, economy",{"$nulls":14},"ea",{"$nulls":4},{"v":200,"d":"200.00"},{"$nulls":5},{"v":0,"d":"$0"},null,null,{"v":0,"d":"$0"},null,null,{"v":0,"d":"$0"},null,null,{"v":0,"d":"$0"},{"$nulls":3},{"v":0,"d":"$0"},null,null,{"v":0,"d":"$0"},null,"APPLIANCES","Kitchen",{"$nulls":3},0,0,0,0,0,0,0,null,{"v":0,"d":"$0.00"},{"v":0,"d":"$0.00"},{"v":0,"d":"$0.00"}]
[{"$nulls":3},"Dishwasher, economy",{"$nulls":14},"ea",{"$nulls":4},{"v":300,"d":"300.00"},{"$nulls":5},{"v":0,"d":"$0"},null,null,{"v":0,"d":"$0"},null,null,{"v":0,"d":"$0"},null,null,{"v":0,"d":"$0"},{"$nulls":3},{"v":0,"d":"$0"},null,null,{"v":0,"d":"$0"},null,"APPLIANCES","Kitchen",{"$nulls":3},0,0,0,0,0,0,0,null,{"v":0,"d":"$0.00"},{"v":0,"d":"$0.00"},{"v":0,"d":"$0.00"}]
[{"$nulls":3},"Microwave, economy",{"$nulls":14},"ea",{"$nulls":4},{"v":100,"d":"100.00"},{"$nulls":5},{"v":0,"d":"$0"},null,null,{"v":0,"d":"$0"},null,null,{"v":0,"d":"$0"},null,null,{"v":0,"d":"$0"},{"$nulls":3},{"v":0,"d":"$0"},null,null,{"v":0,"d":"$0"},null,"APPLIANCES","Kitchen",{"$nulls":3},0,0,0,0,0,0,0,null,{"v":0,"d":"$0.00"},{"v":0,"d":"$0.00"},{"v":0,"d":"$0.00"}]
[{"$nulls":3},"Appliance delivery",{"$nulls":14},"ea",{"$nulls":4},{"v":75,"d":"75.00"},{"$nulls":5},{"v":0,"d":"$0"},null,null,{"v":0,"d":"$0"},null,null,{"v":0,"d":"$0"},null,null,{"v":0,"d":"$0"},{"$nulls":3},{"v":0,"d":"$0"},null,null,{"v":0,"d":"$0"},null,"APPLIANCES","Kitchen",{"$nulls":3},0,0,0,0,0,0,0,null,{"v":0,"d":"$0.00"},{"v":0,"d":"$0.00"},{"v":0,"d":"$0.00"}]
[{"$nulls":29},{"v":0,"d":"$0"},null,null,{"v":0,"d":"$0"},null,null,{"v":0,"d":"$0"},null,null,{"v":0,"d":"$0"},{"$nulls":3},{"v":0,"d":"$0"},null,null,{"v":0,"d":"$0"},null,"APPLIANCES","Kitchen",{"$nulls":3},0,0,0,0,0,0,0,null,{"v":0,"d":"$0.00"},{"v":0,"d":"$0.00"},{"v":0,"d":"$0.00"}]
[{"$nulls":29},{"v":0,"d":"$0"},null,null,{"v":0,"d":"$0"},null,null,{"v":0,"d":"$0"},null,null,{"v":0,"d":"$0"},{"$nulls":3},{"v":0,"d":"$0"},null,null,{"v":0,"d":"$0"},null,"APPLIANCES","Kitchen",{"$nulls":3},0,0,0,0,0,0,0,null,{"v":0,"d":"$0.00"},{"v":0,"d":"$0.00"},{"v":0,"d":"$0.00"}]
[{"$nulls":3},"Appliances, Detailed, Average",{"$nulls":25},{"v":0,"d":"$0"},null,null,{"v":0,"d":"$0"},null,null,{"v":0,"d":"$0"},null,null,{"v":0,"d":"$0"},{"$nulls":3},{"v":0,"d":"$0"},null,null,{"v":0,"d":"$0"},null,"APPLIANCES","Kitchen",{"$nulls":3},0,0,0,0,0,0,0,null,{"v":0,"d":"$0.00"},{"v":0,"d":"$0.00"},{"v":0,"d":"$0.00"}]
[{"$nulls":3},"Refrigerator, average",{"$nulls":14},"ea",{"$nulls":4},{"v":1150,"d":"1150.00"},{"$nulls":5},{"v":0,"d":"$0"},null,null,{"v":0,"d":"$0"},null,null,{"v":0,"d":"$0"},null,null,{"v":0,"d":"$0"},{"$nulls":3},{"v":0,"d":"$0"},null,null,{"v":0,"d":"$0"},null,"APPLIANCES",{"$nulls":4},0,0,0,0,{"$f":"SUM(BA961:BC961)","v":0},0,0,null,{"v":0,"d":"$0.00"},{"v":0,"d":"$0.00"},{"v":0,"d":"$0.00"}]
[{"$nulls":3},"Range, average",{"$nulls":14},"ea",{"$nulls":4},{"v":750,"d":"750.00"},{"$nulls":5},{"v":0,"d":"$0"},null,null,{"v":0,"d":"$0"},null,null,{"v":0,"d":"$0"},null,null,{"v":0,"d":"$0"},{"$nulls":3},{"v":0,"d":"$0"},null,null,{"v":0,"d":"$0"},null,"APPLIANCES",{"$nulls":4},0,0,0,0,{"$f":"SUM(BA962:BC962)","v":0},0,0,null,{"v":0,"d":"$0.00"},{"v":0,"d":"$0.00"},{"v":0,"d":"$0.00"}]
[{"$nulls":3},"Range Hood, average",{"$nulls":14},"ea",{"$nulls":4},{"v":350,"d":"350.00"},{"$nulls":5},{"$f":"((P963*U963)-AM963)","v":{"v":0,"d":"$0"}},null,null,{"v":0,"d":"$0"},null,null,{"$f":"P963*AA963","v":{"v":0,"d":"$0"}},null,null,{"v":0,"d":"$0"},{"$nulls":3},{"$f":"SUM(AD963:AL963)","v":{"v":0,"d":"$0"}},null,null,{"$f":"SUM(AD963:AL963)","v":{"v":0,"d":"$0"}},null,"APPLIANCES",{"$nulls":4},{"$f":"AD963","v":0},{"$f":"AG963","v":0},{"$f":"AJ963","v":0},{"$f":"IF(B963=\"x\",1,0)","v":0},{"$f":"SUM(BA963:BC963)","v":0},{"$f":"AQ963","v":0},{"$f":"AM963","v":0},null,{"$f":"AD963","v":{"v":0,"d":"$0.00"}},{"$f":"AM963","v":{"v":0,"d":"$0.00"}},{"$f":"BJ963+BI963","v":{"v":0,"d":"$0.00"}}]
[{"$nulls":3},"Dishwasher, average",{"$nulls":14},"ea",{"$nulls":4},{"v":500,"d":"500.00"},{"$nulls":5},{"v":0,"d":"$0"},null,null,{"v":0,"d":"$0"},null,null,{"v":0,"d":"$0"},null,null,{"v":0,"d":"$0"},{"$nulls":3},{"v":0,"d":"$0"},null,null,{"v":0,"d":"$0"},null,"APPLIANCES",{"$nulls":4},0,{"$f":"AG964","v":0},{"$f":"AJ964","v":0},0,{"$f":"SUM(BA964:BC964)","v":0},0,0,null,{"$f":"AD964","v":{"v":0,"d":"$0.00"}},{"v":0,"d":"$0.00"},{"$f":"BJ964+BI964","v":{"v":0,"d":"$0.00"}}]
[{"$nulls":3},"Microwave, average",{"$nulls":14},"ea",{"$nulls":4},{"v":175,"d":"175.00"},{"$nulls":5},{"v":0,"d":"$0"},null,null,{"v":0,"d":"$0"},null,null,{"v":0,"d":"$0"},null,null,{"v":0,"d":"$0"},{"$nulls":3},{"v":0,"d":"$0"},null,null,{"v":0,"d":"$0"},null,"APPLIANCES",{"$nulls":4},0,0,0,0,0,0,0,null,{"v":0,"d":"$0.00"},{"v":0,"d":"$0.00"},{"v":0,"d":"$0.00"}]
[{"$nulls":3},"Appliance delivery",{"$nulls":14},"ea",{"$nulls":4},{"v":75,"d":"75.00"},{"$nulls":5},{"v":0,"d":"$0"},null,null,{"v":0,"d":"$0"},null,null,{"v":0,"d":"$0"},null,null,{"v":0,"d":"$0"},{"$nulls":3},{"v":0,"d":"$0"},null,null,{"v":0,"d":"$0"},null,"APPLIANCES",{"$nulls":4},0,0,0,0,0,0,0,null,{"v":0,"d":"$0.00"},{"v":0,"d":"$0.00"},{"v":0,"d":"$0.00"}]
[{"$nulls":29},{"v":0,"d":"$0"},null,null,{"v":0,"d":"$0"},null,null,{"v":0,"d":"$0"},null,null,{"v":0,"d":"$0"},{"$nulls":3},{"v":0,"d":"$0"},null,null,{"v":0,"d":"$0"},null,"APPLIANCES",{"$nulls":4},0,0,0,0,0,0,0,null,{"v":0,"d":"$0.00"},{"v":0,"d":"$0.00"},{"v":0,"d":"$0.00"}]
[{"$nulls":29},{"v":0,"d":"$0"},null,null,{"v":0,"d":"$0"},null,null,{"v":0,"d":"$0"},null,null,{"v":0,"d":"$0"},{"$nulls":3},{"v":0,"d":"$0"},null,null,{"v":0,"d":"$0"},null,"APPLIANCES",{"$nulls":4},0,0,0,0,0,0,0,null,{"v":0,"d":"$0.00"},{"v":0,"d":"$0.00"},{"v":0,"d":"$0.00"}]
[{"$nulls":3},"Appliances, Detailed, High End",{"$nulls":25},{"v":0,"d":"$0"},null,null,{"v":0,"d":"$0"},null,null,{"v":0,"d":"$0"},null,null,{"v":0,"d":"$0"},{"$nulls":3},{"v":0,"d":"$0"},null,null,{"v":0,"d":"$0"},null,"APPLIANCES",{"$nulls":4},0,0,0,0,0,0,0,null,{"v":0,"d":"$0.00"},{"v":0,"d":"$0.00"},{"v":0,"d":"$0.00"}]
[{"$nulls":3},"Refrigerator, high end",{"$nulls":14},"ea",{"$nulls":4},{"v":3000,"d":"3000.00"},{"$nulls":5},{"v":0,"d":"$0"},null,null,{"v":0,"d":"$0"},null,null,{"v":0,"d":"$0"},null,null,{"v":0,"d":"$0"},{"$nulls":3},{"v":0,"d":"$0"},null,null,{"v":0,"d":"$0"},null,"APPLIANCES",{"$nulls":4},0,0,0,0,0,0,0,null,{"v":0,"d":"$0.00"},{"v":0,"d":"$0.00"},{"v":0,"d":"$0.00"}]
[{"$nulls":3},"Range, high end",{"$nulls":14},"ea",{"$nulls":4},{"v":2000,"d":"2000.00"},{"$nulls":5},{"v":0,"d":"$0"},null,null,{"v":0,"d":"$0"},null,null,{"v":0,"d":"$0"},null,null,{"v":0,"d":"$0"},{"$nulls":3},{"v":0,"d":"$0"},null,null,{"v":0,"d":"$0"},null,"APPLIANCES",{"$nulls":4},0,0,0,0,0,0,0,null,{"v":0,"d":"$0.00"},{"v":0,"d":"$0.00"},{"v":0,"d":"$0.00"}]
[{"$nulls":3},"Range Hood, high end",{"$nulls":14},"ea",{"$nulls":4},{"v":750,"d":"750.00"},{"$nulls":5},{"v":0,"d":"$0"},null,null,{"v":0,"d":"$0"},null,null,{"v":0,"d":"$0"},null,null,{"v":0,"d":"$0"},{"$nulls":3},{"v":0,"d":"$0"},null,null,{"v":0,"d":"$0"},null,"APPLIANCES",{"$nulls":4},0,0,0,0,0,0,0,null,{"v":0,"d":"$0.00"},{"v":0,"d":"$0.00"},{"v":0,"d":"$0.00"}]
[{"$nulls":3},"Dishwasher, high end",{"$nulls":14},"ea",{"$nulls":4},{"v":1250,"d":"1250.00"},{"$nulls":5},{"v":0,"d":"$0"},null,null,{"v":0,"d":"$0"},null,null,{"v":0,"d":"$0"},null,null,{"v":0,"d":"$0"},{"$nulls":3},{"v":0,"d":"$0"},null,null,{"v":0,"d":"$0"},null,"APPLIANCES",{"$nulls":4},0,0,0,0,0,0,0,null,{"v":0,"d":"$0.00"},{"v":0,"d":"$0.00"},{"v":0,"d":"$0.00"}]
[{"$nulls":3},"Microwave, high end",{"$nulls":14},"ea",{"$nulls":4},{"v":400,"d":"400.00"},{"$nulls":5},{"v":0,"d":"$0"},null,null,{"v":0,"d":"$0"},null,null,{"v":0,"d":"$0"},null,null,{"v":0,"d":"$0"},{"$nulls":3},{"v":0,"d":"$0"},null,null,{"v":0,"d":"$0"},null,"APPLIANCES",{"$nulls":4},0,0,0,0,0,0,0,null,{"v":0,"d":"$0.00"},{"v":0,"d":"$0.00"},{"v":0,"d":"$0.00"}]
[{"$nulls":3},"Appliance delivery",{"$nulls":14},"ea",{"$nulls":4},{"v":75,"d":"75.00"},{"$nulls":5},{"v":0,"d":"$0"},null,null,{"v":0,"d":"$0"},null,null,{"v":0,"d":"$0"},null,null,{"v":0,"d":"$0"},{"$nulls":3},{"v":0,"d":"$0"},null,null,{"v":0,"d":"$0"},null,"APPLIANCES",{"$nulls":4},0,0,0,0,0,0,0,null,{"v":0,"d":"$0.00"},{"v":0,"d":"$0.00"},{"v":0,"d":"$0.00"}]
[{"$nulls":29},{"v":0,"d":"$0"},null,null,{"v":0,"d":"$0"},null,null,{"v":0,"d":"$0"},null,null,{"v":0,"d":"$0"},{"$nulls":3},{"v":0,"d":"$0"},null,null,{"v":0,"d":"$0"},null,"APPLIANCES",{"$nulls":4},0,0,0,0,0,0,0,null,{"v":0,"d":"$0.00"},{"v":0,"d":"$0.00"},{"v":0,"d":"$0.00"}]
[{"$nulls":29},{"v":0,"d":"$0"},null,null,{"v":0,"d":"$0"},null,null,{"v":0,"d":"$0"},null,null,{"v":0,"d":"$0"},{"$nulls":3},{"v":0,"d":"$0"},null,null,{"v":0,"d":"$0"},null,"APPLIANCES",{"$nulls":4},0,0,0,0,0,0,0,null,{"v":0,"d":"$0.00"},{"v":0,"d":"$0.00"},{"v":0,"d":"$0.00"}]
[{"$nulls":29},{"v":0,"d":"$0"},null,null,{"v":0,"d":"$0"},null,null,{"v":0,"d":"$0"},null,null,{"v":0,"d":"$0"},{"$nulls":3},{"v":0,"d":"$0"},null,null,{"v":0,"d":"$0"},null,"APPLIANCES",{"$nulls":4},0,0,0,0,0,0,0,null,{"v":0,"d":"$0.00"},{"v":0,"d":"$0.00"},{"v":0,"d":"$0.00"}]
[{"$nulls":29},{"v":0,"d":"$0"},null,null,{"v":0,"d":"$0"},null,null,{"v":0,"d":"$0"},null,null,{"v":0,"d":"$0"},{"$nulls":3},{"v":0,"d":"$0"},null,null,{"v":0,"d":"$0"},null,"APPLIANCES",{"$nulls":4},0,0,0,0,0,0,0,null,{"v":0,"d":"$0.00"},{"v":0,"d":"$0.00"},{"v":0,"d":"$0.00"}]
[{"$nulls":29},{"v":0,"d":"$0"},null,null,{"v":0,"d":"$0"},null,null,{"v":0,"d":"$0"},null,null,{"v":0,"d":"$0"},{"$nulls":3},{"v":0,"d":"$0"},null,null,{"v":0,"d":"$0"},null,"APPLIANCES",{"$nulls":4},0,0,0,0,0,0,0,null,{"v":0,"d":"$0.00"},{"v":0,"d":"$0.00"},{"v":0,"d":"$0.00"}]
[{"$nulls":29},{"v":0,"d":"$0"},null,null,{"v":0,"d":"$0"},null,null,{"v":0,"d":"$0"},null,null,{"v":0,"d":"$0"},{"$nulls":3},{"v":0,"d":"$0"},null,null,{"v":0,"d":"$0"},null,"APPLIANCES",{"$nulls":4},0,0,0,0,{"$f":"SUM(BA981:BC981)","v":0},0,0,null,{"v":0,"d":"$0.00"},{"v":0,"d":"$0.00"},{"v":0,"d":"$0.00"}]
[{"$nulls":29},{"v":0,"d":"$0"},null,null,{"v":0,"d":"$0"},null,null,{"v":0,"d":"$0"},null,null,{"v":0,"d":"$0"},{"$nulls":3},{"v":0,"d":"$0"},null,null,{"v":0,"d":"$0"},null,"APPLIANCES",{"$nulls":4},0,0,0,0,{"$f":"SUM(BA982:BC982)","v":0},0,0,null,{"v":0,"d":"$0.00"},{"v":0,"d":"$0.00"},{"v":0,"d":"$0.00"}]
[{"$nulls":47},"APPLIANCES",{"$nulls":4},{"$f":"BA942","v":{"v":0,"d":"$0"}},{"$f":"BB942","v":{"v":3210,"d":"$3,210"}},{"$f":"BC942","v":{"v":0,"d":"$0"}},{"$f":"BD942","v":{"v":0,"d":"$0"}},{"$f":"BE942","v":{"v":3210,"d":"$3,210"}}]
[{"$nulls":28},{"$f":"CONCATENATE(D942,\" \",\"TOTAL\")","v":"APPLIANCES TOTAL"},{"$f":"SUBTOTAL(9,AD943:AD983)","v":{"v":0,"d":"$0"}},null,null,{"$f":"SUBTOTAL(9,AG943:AG983)","v":{"v":3210,"d":"$3,210"}},null,null,{"$f":"SUBTOTAL(9,AJ943:AJ983)","v":{"v":0,"d":"$0"}},null,null,{"$f":"SUBTOTAL(9,AM943:AM983)","v":{"v":0,"d":"$0"}},{"$nulls":3},{"$f":"SUBTOTAL(9,AQ943:AQ983)","v":{"v":3210,"d":"$3,210"}},null,null,{"$f":"SUM(AT940:AT975)","v":{"$error":"#REF!"}},null,"APPLIANCES",{"$nulls":4},{"$f":"BA942","v":0},{"$f":"BB942","v":3210},{"$f":"BC942","v":0},{"$f":"BD942","v":0},{"$f":"BE942","v":3210},{"$f":"SUM(BF942:BF983)","v":6420},{"$f":"SUM(BG942:BG983)","v":0},null,{"$f":"SUM(BI943:BI983)","v":0},{"$f":"SUM(BJ943:BJ983)","v":0},{"$f":"SUM(BK943:BK983)","v":0}]
[{"$nulls":47},"APPLIANCES",{"$nulls":4},{"$f":"BA942","v":{"v":0,"d":"$0"}},{"$f":"BB942","v":{"v":3210,"d":"$3,210"}},{"$f":"BC942","v":{"v":0,"d":"$0"}},{"$f":"BD942","v":{"v":0,"d":"$0"}},{"$f":"BE942","v":{"v":3210,"d":"$3,210"}}]
[{"$nulls":47},"APPLIANCES",{"$nulls":4},{"$f":"BA984","v":0},{"$f":"BB984","v":3210},{"$f":"BC984","v":0},0,3210,6420,0]
["Hidden",null,null,{"$f":"T(AJ79)","v":"PLUMBING"},{"$nulls":25},{"$f":"AD1029","v":{"v":1105,"d":"$1,105"}},null,null,{"$f":"AG1029","v":{"v":1819,"d":"$1,819"}},null,null,{"$f":"AJ1029","v":{"v":0,"d":"$0"}},null,null,{"$f":"AM1029","v":{"v":0,"d":"$0"}},{"$nulls":3},{"$f":"AQ1029","v":{"v":2924,"d":"$2,924"}},null,null,{"$f":"SUM(#REF!)","v":{"$error":"#REF!"}},null,{"$f":"$D$987","v":"PLUMBING"},{"$nulls":4},{"$f":"SUM(BA988:BA1027)","v":1105},{"$f":"SUM(BB988:BB1027)","v":1819},{"$f":"SUM(BC988:BC1027)","v":0},{"$f":"SUM(BD988:BD1027)","v":0},{"$f":"SUM(BE988:BE1027)","v":2924},{"$f":"AQ987","v":2924},{"$f":"AM987","v":0},null,{"$f":"AD987","v":{"v":1105,"d":"$1,105.00"}},{"$f":"AM987","v":{"v":0,"d":"$0.00"}},{"$f":"BJ987+BI987","v":{"v":1105,"d":"$1,105.00"}}]
[{"$nulls":3},"Plumbing, bid/allowance",{"$nulls":14},"ls","ls",{"$nulls":3},{"v":3500,"d":"3500.00"},{"$nulls":5},{"$f":"((P988*U988)-AM988)","v":{"v":0,"d":"$0"}},null,null,{"$f":"P988*X988*(1+$Y$85)","v":{"v":0,"d":"$0"}},null,null,{"$f":"P988*AA988","v":{"v":0,"d":"$0"}},null,null,{"$f":"IF($B988=\"x\",$P988*$U988,0)","v":{"v":0,"d":"$0"}},{"$nulls":3},{"$f":"SUM(AD988:AL988)","v":{"v":0,"d":"$0"}},null,null,{"$f":"SUM(AD988:AL988)","v":{"v":0,"d":"$0"}},null,"PLUMBING",{"$nulls":4},{"$f":"AD988","v":0},{"$f":"AG988","v":0},{"$f":"AJ988","v":0},{"$f":"IF(B988=\"x\",1,0)","v":0},{"$f":"SUM(BA988:BC988)","v":0},0,0,null,{"$f":"AD988","v":{"v":0,"d":"$0.00"}},{"$f":"AM988","v":{"v":0,"d":"$0.00"}},{"$f":"BJ988+BI988","v":{"v":0,"d":"$0.00"}}]
[{"$nulls":3},"Miscellaneous Plumbing",{"$nulls":14},"ls",{"$nulls":10},{"v":0,"d":"$0"},null,null,{"$f":"P989*X989*(1+$Y$85)","v":{"v":0,"d":"$0"}},null,null,{"v":0,"d":"$0"},null,null,{"v":0,"d":"$0"},{"$nulls":3},{"v":0,"d":"$0"},null,null,{"v":0,"d":"$0"},null,"PLUMBING",{"$nulls":4},0,{"$f":"AG989","v":0},{"$f":"AJ989","v":0},0,{"$f":"SUM(BA989:BC989)","v":0},0,0,null,{"$f":"AD989","v":{"v":0,"d":"$0.00"}},{"v":0,"d":"$0.00"},{"$f":"BJ989+BI989","v":{"v":0,"d":"$0.00"}}]
[{"$nulls":3},"Plumbing rough-in, per hour",{"$nulls":11},2,null,null,"hrs","hrs",{"v":65,"d":"65.00"},{"$nulls":8},{"v":130,"d":"$130"},null,null,{"v":0,"d":"$0"},null,null,{"v":0,"d":"$0"},null,null,{"v":0,"d":"$0"},{"$nulls":3},{"v":130,"d":"$130"},null,null,{"v":130,"d":"$130"},null,"PLUMBING",{"$nulls":4},130,0,0,0,130,130,0,null,{"v":130,"d":"$130.00"},{"v":0,"d":"$0.00"},{"v":130,"d":"$130.00"}]
[{"$nulls":3},"Concrete demo for below slab rough-in",{"$nulls":14},"sf","sf",{"v":10,"d":"10.00"},{"$nulls":8},{"v":0,"d":"$0"},null,null,{"v":0,"d":"$0"},null,null,{"v":0,"d":"$0"},null,null,{"v":0,"d":"$0"},{"$nulls":3},{"v":0,"d":"$0"},null,null,{"v":0,"d":"$0"},null,"PLUMBING",{"$nulls":4},0,0,0,0,0,0,0,null,{"v":0,"d":"$0.00"},{"v":0,"d":"$0.00"},{"v":0,"d":"$0.00"}]
[{"$nulls":3},"Plumbing finish work, per hour",{"$nulls":14},"hrs","hrs",{"v":65,"d":"65.00"},{"$nulls":8},{"v":0,"d":"$0"},null,null,{"v":0,"d":"$0"},null,null,{"v":0,"d":"$0"},null,null,{"v":0,"d":"$0"},{"$nulls":3},{"v":0,"d":"$0"},null,null,{"v":0,"d":"$0"},null,"PLUMBING",{"$nulls":4},0,0,0,0,0,0,0,null,{"v":0,"d":"$0.00"},{"v":0,"d":"$0.00"},{"v":0,"d":"$0.00"}]
[{"$nulls":3},"Replace gas hot water heater, 40 gallon",{"$nulls":14},"ea","ea",{"v":200,"d":"200.00"},null,null,{"v":350,"d":"350.00"},null,{"v":350,"d":"350.00"},{"$nulls":3},{"v":0,"d":"$0"},null,null,{"v":0,"d":"$0"},null,null,{"v":0,"d":"$0"},null,null,{"v":0,"d":"$0"},{"$nulls":3},{"v":0,"d":"$0"},null,null,{"v":0,"d":"$0"},null,"PLUMBING",{"$nulls":4},0,0,0,0,0,0,0,null,{"v":0,"d":"$0.00"},{"v":0,"d":"$0.00"},{"v":0,"d":"$0.00"}]
[{"$nulls":3},"Kitchen",{"$nulls":25},{"v":0,"d":"$0"},null,null,{"v":0,"d":"$0"},null,null,{"v":0,"d":"$0"},null,null,{"v":0,"d":"$0"},{"$nulls":3},{"v":0,"d":"$0"},null,null,{"v":0,"d":"$0"},null,"PLUMBING",{"$nulls":4},0,0,0,0,0,0,0,null,{"v":0,"d":"$0.00"},{"v":0,"d":"$0.00"},{"v":0,"d":"$0.00"}]
[{"$nulls":3},"Kitchen faucet fixture",{"$nulls":11},1,null,null,"ea","ea",{"v":75,"d":"75.00"},null,null,{"v":150,"d":"150.00"},{"$nulls":5},{"v":75,"d":"$75"},null,null,{"v":160.5,"d":"$161"},null,null,{"v":0,"d":"$0"},null,null,{"v":0,"d":"$0"},{"$nulls":3},{"v":235.5,"d":"$236"},null,null,{"v":235.5,"d":"$236"},null,"PLUMBING","Kitchen",{"$nulls":3},75,160.5,0,0,235.5,235.5,0,null,{"v":75,"d":"$75.00"},{"v":0,"d":"$0.00"},{"v":75,"d":"$75.00"}]
[{"$nulls":3},"Garbage disposal",{"$nulls":11},1,null,null,"ea","ea",{"v":50,"d":"50.00"},null,null,{"v":100,"d":"100.00"},{"$nulls":5},{"v":50,"d":"$50"},null,null,{"v":107,"d":"$107"},null,null,{"v":0,"d":"$0"},null,null,{"v":0,"d":"$0"},{"$nulls":3},{"v":157,"d":"$157"},null,null,{"v":157,"d":"$157"},null,"PLUMBING","Kitchen",{"$nulls":3},50,107,0,0,157,157,0,null,{"v":50,"d":"$50.00"},{"v":0,"d":"$0.00"},{"v":50,"d":"$50.00"}]
[{"$nulls":3},"Hookup dishwasher",{"$nulls":11},1,null,null,"ea","ea",{"v":50,"d":"50.00"},null,null,{"v":25,"d":"25.00"},{"$nulls":5},{"v":50,"d":"$50"},null,null,{"v":26.75,"d":"$27"},null,null,{"v":0,"d":"$0"},null,null,{"v":0,"d":"$0"},{"$nulls":3},{"v":76.75,"d":"$77"},null,null,{"v":76.75,"d":"$77"},null,"PLUMBING","Kitchen",{"$nulls":3},50,26.75,0,0,76.75,76.75,0,null,{"v":50,"d":"$50.00"},{"v":0,"d":"$0.00"},{"v":50,"d":"$50.00"}]
[{"$nulls":3},"Water supply line for refrigerator",{"$nulls":11},1,null,null,"ea","ea",{"v":50,"d":"50.00"},null,null,{"v":25,"d":"25.00"},{"$nulls":5},{"v":50,"d":"$50"},null,null,{"v":26.75,"d":"$27"},null,null,{"v":0,"d":"$0"},null,null,{"v":0,"d":"$0"},{"$nulls":3},{"v":76.75,"d":"$77"},null,null,{"v":76.75,"d":"$77"},null,"PLUMBING","Kitchen",{"$nulls":3},50,26.75,0,0,76.75,76.75,0,null,{"v":50,"d":"$50.00"},{"v":0,"d":"$0.00"},{"v":50,"d":"$50.00"}]
[{"$nulls":3},"Bathrooms",{"$nulls":25},{"v":0,"d":"$0"},null,null,{"v":0,"d":"$0"},null,null,{"v":0,"d":"$0"},null,null,{"v":0,"d":"$0"},{"$nulls":3},{"v":0,"d":"$0"},null,null,{"v":0,"d":"$0"},null,"PLUMBING",{"$nulls":4},0,0,0,0,0,0,0,null,{"v":0,"d":"$0.00"},{"v":0,"d":"$0.00"},{"v":0,"d":"$0.00"}]
[{"$nulls":3},"Bathroom faucet fixture",{"$nulls":11},2,null,null,"ea","ea",{"v":75,"d":"75.00"},null,null,{"v":125,"d":"125.00"},null,{"v":125,"d":"125.00"},{"$nulls":3},{"v":150,"d":"$150"},null,null,{"v":267.5,"d":"$268"},null,null,{"v":0,"d":"$0"},null,null,{"v":0,"d":"$0"},{"$nulls":3},{"v":417.5,"d":"$418"},null,null,{"v":417.5,"d":"$418"},null,"PLUMBING","Bathrooms",{"$nulls":3},150,267.5,0,0,417.5,417.5,0,null,{"v":150,"d":"$150.00"},{"v":0,"d":"$0.00"},{"v":150,"d":"$150.00"}]
[{"$nulls":3},"Fiberglass shower stall",{"$nulls":14},"ea","ea",{"v":150,"d":"150.00"},null,null,{"v":300,"d":"300.00"},null,{"v":250,"d":"250.00"},{"$nulls":3},{"v":0,"d":"$0"},null,null,{"v":0,"d":"$0"},null,null,{"v":0,"d":"$0"},null,null,{"v":0,"d":"$0"},{"$nulls":3},{"v":0,"d":"$0"},null,null,{"v":0,"d":"$0"},null,"PLUMBING","Bathrooms",{"$nulls":3},0,0,0,0,0,0,0,null,{"v":0,"d":"$0.00"},{"v":0,"d":"$0.00"},{"v":0,"d":"$0.00"}]
[{"$nulls":3},"Fiberglass tub",{"$nulls":11},2,null,null,"ea","ea",{"v":150,"d":"150.00"},null,null,{"v":300,"d":"300.00"},null,{"v":185,"d":"185.00"},{"$nulls":3},{"v":300,"d":"$300"},null,null,{"v":642,"d":"$642"},null,null,{"v":0,"d":"$0"},null,null,{"v":0,"d":"$0"},{"$nulls":3},{"v":942,"d":"$942"},null,null,{"v":942,"d":"$942"},null,"PLUMBING","Bathrooms",{"$nulls":3},300,642,0,0,942,942,0,null,{"v":300,"d":"$300.00"},{"v":0,"d":"$0.00"},{"v":300,"d":"$300.00"}]
[{"$nulls":3},"Fiberglass tub/shower surround",{"$nulls":14},"ea","ea",{"v":200,"d":"200.00"},null,null,{"v":400,"d":"400.00"},null,{"v":300,"d":"300.00"},{"$nulls":3},{"v":0,"d":"$0"},null,null,{"v":0,"d":"$0"},null,null,{"v":0,"d":"$0"},null,null,{"v":0,"d":"$0"},{"$nulls":3},{"v":0,"d":"$0"},null,null,{"v":0,"d":"$0"},null,"PLUMBING","Bathrooms",{"$nulls":3},0,0,0,0,0,0,0,null,{"v":0,"d":"$0.00"},{"v":0,"d":"$0.00"},{"v":0,"d":"$0.00"}]
[{"$nulls":3},"Showerhead/tub kit",{"$nulls":11},2,null,null,"ea","ea",{"v":75,"d":"75.00"},null,null,{"v":150,"d":"150.00"},null,{"v":135,"d":"135.00"},{"$nulls":3},{"v":150,"d":"$150"},null,null,{"v":321,"d":"$321"},null,null,{"v":0,"d":"$0"},null,null,{"v":0,"d":"$0"},{"$nulls":3},{"v":471,"d":"$471"},null,null,{"v":471,"d":"$471"},null,"PLUMBING","Bathrooms",{"$nulls":3},150,321,0,0,471,471,0,null,{"v":150,"d":"$150.00"},{"v":0,"d":"$0.00"},{"v":150,"d":"$150.00"}]
[{"$nulls":3},"Toilets",{"$nulls":11},2,null,null,"ea","ea",{"v":75,"d":"75.00"},null,null,{"v":125,"d":"125.00"},null,{"v":125,"d":"125.00"},{"$nulls":3},{"v":150,"d":"$150"},null,null,{"v":267.5,"d":"$268"},null,null,{"v":0,"d":"$0"},null,null,{"v":0,"d":"$0"},{"$nulls":3},{"v":417.5,"d":"$418"},null,null,{"v":417.5,"d":"$418"},null,"PLUMBING","Bathrooms",{"$nulls":3},150,267.5,0,0,417.5,417.5,0,null,{"v":150,"d":"$150.00"},{"v":0,"d":"$0.00"},{"v":150,"d":"$150.00"}]
[{"$nulls":3},"Toilet seats",{"$nulls":14},"ea","ea",{"v":12,"d":"12.00"},null,null,{"v":20,"d":"20.00"},null,{"v":20,"d":"20.00"},{"$nulls":3},{"v":0,"d":"$0"},null,null,{"v":0,"d":"$0"},null,null,{"v":0,"d":"$0"},null,null,{"v":0,"d":"$0"},{"$nulls":3},{"v":0,"d":"$0"},null,null,{"v":0,"d":"$0"},null,"PLUMBING","Bathrooms",{"$nulls":3},0,0,0,0,{"$f":"SUM(BA1006:BC1006)","v":0},0,0,null,{"v":0,"d":"$0.00"},{"v":0,"d":"$0.00"},{"v":0,"d":"$0.00"}]
[{"$nulls":3},"Pedestal sink",{"$nulls":14},"ea","ea",{"v":100,"d":"100.00"},null,null,{"v":250,"d":"250.00"},null,{"v":250,"d":"250.00"},{"$nulls":3},{"v":0,"d":"$0"},null,null,{"v":0,"d":"$0"},null,null,{"v":0,"d":"$0"},null,null,{"v":0,"d":"$0"},{"$nulls":3},{"v":0,"d":"$0"},null,null,{"v":0,"d":"$0"},null,"PLUMBING","Bathrooms",{"$nulls":3},0,0,0,0,{"$f":"SUM(BA1007:BC1007)","v":0},0,0,null,{"v":0,"d":"$0.00"},{"v":0,"d":"$0.00"},{"v":0,"d":"$0.00"}]
[{"$nulls":29},{"$f":"((P1008*U1008)-AM1008)","v":{"v":0,"d":"$0"}},null,null,{"v":0,"d":"$0"},null,null,{"$f":"P1008*AA1008","v":{"v":0,"d":"$0"}},null,null,{"v":0,"d":"$0"},{"$nulls":3},{"$f":"SUM(AD1008:AL1008)","v":{"v":0,"d":"$0"}},null,null,{"$f":"SUM(AD1008:AL1008)","v":{"v":0,"d":"$0"}},null,"PLUMBING",{"$nulls":4},{"$f":"AD1008","v":0},{"$f":"AG1008","v":0},{"$f":"AJ1008","v":0},{"$f":"IF(B1008=\"x\",1,0)","v":0},{"$f":"SUM(BA1008:BC1008)","v":0},{"$f":"AQ1008","v":0},{"$f":"AM1008","v":0},null,{"$f":"AD1008","v":{"v":0,"d":"$0.00"}},{"$f":"AM1008","v":{"v":0,"d":"$0.00"}},{"$f":"BJ1008+BI1008","v":{"v":0,"d":"$0.00"}}]
[{"$nulls":29},{"v":0,"d":"$0"},null,null,{"v":0,"d":"$0"},null,null,{"v":0,"d":"$0"},null,null,{"v":0,"d":"$0"},{"$nulls":3},{"v":0,"d":"$0"},null,null,{"v":0,"d":"$0"},null,"PLUMBING",{"$nulls":4},0,{"$f":"AG1009","v":0},{"$f":"AJ1009","v":0},0,{"$f":"SUM(BA1009:BC1009)","v":0},0,0,null,{"$f":"AD1009","v":{"v":0,"d":"$0.00"}},{"v":0,"d":"$0.00"},{"$f":"BJ1009+BI1009","v":{"v":0,"d":"$0.00"}}]
[{"$nulls":29},{"v":0,"d":"$0"},null,null,{"v":0,"d":"$0"},null,null,{"v":0,"d":"$0"},null,null,{"v":0,"d":"$0"},{"$nulls":3},{"v":0,"d":"$0"},null,null,{"v":0,"d":"$0"},null,"PLUMBING",{"$nulls":4},0,0,0,0,0,0,0,null,{"v":0,"d":"$0.00"},{"v":0,"d":"$0.00"},{"v":0,"d":"$0.00"}]
[{"$nulls":29},{"v":0,"d":"$0"},null,null,{"v":0,"d":"$0"},null,null,{"v":0,"d":"$0"},null,null,{"v":0,"d":"$0"},{"$nulls":3},{"v":0,"d":"$0"},null,null,{"v":0,"d":"$0"},null,"PLUMBING",{"$nulls":4},0,0,0,0,0,0,0,null,{"v":0,"d":"$0.00"},{"v":0,"d":"$0.00"},{"v":0,"d":"$0.00"}]
[{"$nulls":29},{"v":0,"d":"$0"},null,null,{"v":0,"d":"$0"},null,null,{"v":0,"d":"$0"},null,null,{"v":0,"d":"$0"},{"$nulls":3},{"v":0,"d":"$0"},null,null,{"v":0,"d":"$0"},null,"PLUMBING",{"$nulls":4},0,0,0,0,0,0,0,null,{"v":0,"d":"$0.00"},{"v":0,"d":"$0.00"},{"v":0,"d":"$0.00"}]
[{"$nulls":29},{"v":0,"d":"$0"},null,null,{"v":0,"d":"$0"},null,null,{"v":0,"d":"$0"},null,null,{"v":0,"d":"$0"},{"$nulls":3},{"v":0,"d":"$0"},null,null,{"v":0,"d":"$0"},null,"PLUMBING",{"$nulls":4},0,0,0,0,0,0,0,null,{"v":0,"d":"$0.00"},{"v":0,"d":"$0.00"},{"v":0,"d":"$0.00"}]
[{"$nulls":29},{"v":0,"d":"$0"},null,null,{"v":0,"d":"$0"},null,null,{"v":0,"d":"$0"},null,null,{"v":0,"d":"$0"},{"$nulls":3},{"v":0,"d":"$0"},null,null,{"v":0,"d":"$0"},null,"PLUMBING",{"$nulls":4},0,0,0,0,0,0,0,null,{"v":0,"d":"$0.00"},{"v":0,"d":"$0.00"},{"v":0,"d":"$0.00"}]
[{"$nulls":29},{"v":0,"d":"$0"},null,null,{"v":0,"d":"$0"},null,null,{"v":0,"d":"$0"},null,null,{"v":0,"d":"$0"},{"$nulls":3},{"v":0,"d":"$0"},null,null,{"v":0,"d":"$0"},null,"PLUMBING",{"$nulls":4},0,0,0,0,0,0,0,null,{"v":0,"d":"$0.00"},{"v":0,"d":"$0.00"},{"v":0,"d":"$0.00"}]
[{"$nulls":29},{"v":0,"d":"$0"},null,null,{"v":0,"d":"$0"},null,null,{"v":0,"d":"$0"},null,null,{"v":0,"d":"$0"},{"$nulls":3},{"v":0,"d":"$0"},null,null,{"v":0,"d":"$0"},null,"PLUMBING",{"$nulls":4},0,0,0,0,0,0,0,null,{"v":0,"d":"$0.00"},{"v":0,"d":"$0.00"},{"v":0,"d":"$0.00"}]
[{"$nulls":29},{"v":0,"d":"$0"},null,null,{"v":0,"d":"$0"},null,null,{"v":0,"d":"$0"},null,null,{"v":0,"d":"$0"},{"$nulls":3},{"v":0,"d":"$0"},null,null,{"v":0,"d":"$0"},null,"PLUMBING",{"$nulls":4},0,0,0,0,0,0,0,null,{"v":0,"d":"$0.00"},{"v":0,"d":"$0.00"},{"v":0,"d":"$0.00"}]
[{"$nulls":29},{"v":0,"d":"$0"},null,null,{"v":0,"d":"$0"},null,null,{"v":0,"d":"$0"},null,null,{"v":0,"d":"$0"},{"$nulls":3},{"v":0,"d":"$0"},null,null,{"v":0,"d":"$0"},null,"PLUMBING",{"$nulls":4},0,0,0,0,0,0,0,null,{"v":0,"d":"$0.00"},{"v":0,"d":"$0.00"},{"v":0,"d":"$0.00"}]
[{"$nulls":29},{"v":0,"d":"$0"},null,null,{"v":0,"d":"$0"},null,null,{"v":0,"d":"$0"},null,null,{"v":0,"d":"$0"},{"$nulls":3},{"v":0,"d":"$0"},null,null,{"v":0,"d":"$0"},null,"PLUMBING",{"$nulls":4},0,0,0,0,0,0,0,null,{"v":0,"d":"$0.00"},{"v":0,"d":"$0.00"},{"v":0,"d":"$0.00"}]
[{"$nulls":29},{"v":0,"d":"$0"},null,null,{"v":0,"d":"$0"},null,null,{"v":0,"d":"$0"},null,null,{"v":0,"d":"$0"},{"$nulls":3},{"v":0,"d":"$0"},null,null,{"v":0,"d":"$0"},null,"PLUMBING",{"$nulls":4},0,0,0,0,0,0,0,null,{"v":0,"d":"$0.00"},{"v":0,"d":"$0.00"},{"v":0,"d":"$0.00"}]
[{"$nulls":29},{"v":0,"d":"$0"},null,null,{"v":0,"d":"$0"},null,null,{"v":0,"d":"$0"},null,null,{"v":0,"d":"$0"},{"$nulls":3},{"v":0,"d":"$0"},null,null,{"v":0,"d":"$0"},null,"PLUMBING",{"$nulls":4},0,0,0,0,0,0,0,null,{"v":0,"d":"$0.00"},{"v":0,"d":"$0.00"},{"v":0,"d":"$0.00"}]
[{"$nulls":29},{"v":0,"d":"$0"},null,null,{"v":0,"d":"$0"},null,null,{"v":0,"d":"$0"},null,null,{"v":0,"d":"$0"},{"$nulls":3},{"v":0,"d":"$0"},null,null,{"v":0,"d":"$0"},null,"PLUMBING",{"$nulls":4},0,0,0,0,0,0,0,null,{"v":0,"d":"$0.00"},{"v":0,"d":"$0.00"},{"v":0,"d":"$0.00"}]
[{"$nulls":29},{"v":0,"d":"$0"},null,null,{"v":0,"d":"$0"},null,null,{"v":0,"d":"$0"},null,null,{"v":0,"d":"$0"},{"$nulls":3},{"v":0,"d":"$0"},null,null,{"v":0,"d":"$0"},null,"PLUMBING",{"$nulls":4},0,0,0,0,0,0,0,null,{"v":0,"d":"$0.00"},{"v":0,"d":"$0.00"},{"v":0,"d":"$0.00"}]
[{"$nulls":29},{"v":0,"d":"$0"},null,null,{"v":0,"d":"$0"},null,null,{"v":0,"d":"$0"},null,null,{"v":0,"d":"$0"},{"$nulls":3},{"v":0,"d":"$0"},null,null,{"v":0,"d":"$0"},null,"PLUMBING",{"$nulls":4},0,0,0,0,0,0,0,null,{"v":0,"d":"$0.00"},{"v":0,"d":"$0.00"},{"v":0,"d":"$0.00"}]
[{"$nulls":29},{"v":0,"d":"$0"},null,null,{"v":0,"d":"$0"},null,null,{"v":0,"d":"$0"},null,null,{"v":0,"d":"$0"},{"$nulls":3},{"v":0,"d":"$0"},null,null,{"v":0,"d":"$0"},null,"PLUMBING",{"$nulls":4},0,0,0,0,0,0,0,null,{"v":0,"d":"$0.00"},{"v":0,"d":"$0.00"},{"v":0,"d":"$0.00"}]
[{"$nulls":29},{"v":0,"d":"$0"},null,null,{"v":0,"d":"$0"},null,null,{"v":0,"d":"$0"},null,null,{"v":0,"d":"$0"},{"$nulls":3},{"v":0,"d":"$0"},null,null,{"v":0,"d":"$0"},null,"PLUMBING",{"$nulls":4},0,0,0,0,{"$f":"SUM(BA1026:BC1026)","v":0},0,0,null,{"v":0,"d":"$0.00"},{"v":0,"d":"$0.00"},{"v":0,"d":"$0.00"}]
[{"$nulls":29},{"v":0,"d":"$0"},null,null,{"v":0,"d":"$0"},null,null,{"v":0,"d":"$0"},null,null,{"v":0,"d":"$0"},{"$nulls":3},{"v":0,"d":"$0"},null,null,{"v":0,"d":"$0"},null,"PLUMBING",{"$nulls":4},0,0,0,0,{"$f":"SUM(BA1027:BC1027)","v":0},0,0,null,{"v":0,"d":"$0.00"},{"v":0,"d":"$0.00"},{"v":0,"d":"$0.00"}]
[{"$nulls":47},"PLUMBING",{"$nulls":4},{"$f":"BA987","v":{"v":1105,"d":"$1,105"}},{"$f":"BB987","v":{"v":1819,"d":"$1,819"}},{"$f":"BC987","v":{"v":0,"d":"$0"}},{"$f":"BD987","v":{"v":0,"d":"$0"}},{"$f":"BE987","v":{"v":2924,"d":"$2,924"}}]
[{"$nulls":28},{"$f":"CONCATENATE(D987,\" \",\"TOTAL\")","v":"PLUMBING TOTAL"},{"$f":"SUBTOTAL(9,AD988:AD1028)","v":{"v":1105,"d":"$1,105"}},null,null,{"$f":"SUBTOTAL(9,AG988:AG1028)","v":{"v":1819,"d":"$1,819"}},null,null,{"$f":"SUBTOTAL(9,AJ988:AJ1028)","v":{"v":0,"d":"$0"}},null,null,{"$f":"SUBTOTAL(9,AM988:AM1028)","v":{"v":0,"d":"$0"}},{"$nulls":3},{"$f":"SUBTOTAL(9,AQ988:AQ1028)","v":{"v":2924,"d":"$2,924"}},null,null,{"$f":"SUM(AT985:AT1020)","v":{"$error":"#REF!"}},null,"PLUMBING",{"$nulls":4},{"$f":"BA987","v":1105},{"$f":"BB987","v":1819},{"$f":"BC987","v":0},{"$f":"BD987","v":0},{"$f":"BE987","v":2924},{"$f":"SUM(BF987:BF1028)","v":5848},{"$f":"SUM(BG987:BG1028)","v":0},null,{"$f":"SUM(BI988:BI1028)","v":1105},{"$f":"SUM(BJ988:BJ1028)","v":0},{"$f":"SUM(BK988:BK1028)","v":1105}]
[{"$nulls":47},"PLUMBING",{"$nulls":4},{"$f":"BA987","v":{"v":1105,"d":"$1,105"}},{"$f":"BB987","v":{"v":1819,"d":"$1,819"}},{"$f":"BC987","v":{"v":0,"d":"$0"}},{"$f":"BD987","v":{"v":0,"d":"$0"}},{"$f":"BE987","v":{"v":2924,"d":"$2,924"}}]
[{"$nulls":47},"PLUMBING",{"$nulls":4},{"$f":"BA1029","v":1105},{"$f":"BB1029","v":1819},{"$f":"BC1029","v":0},0,2924,5848,0]
["Hidden",null,null,{"$f":"T(AJ80)","v":"HVAC"},{"$nulls":25},{"$f":"AD1074","v":{"v":162.5,"d":"$163"}},null,null,{"$f":"AG1074","v":{"v":321,"d":"$321"}},null,null,{"$f":"AJ1074","v":{"v":0,"d":"$0"}},null,null,{"$f":"AM1074","v":{"v":0,"d":"$0"}},{"$nulls":3},{"$f":"AQ1074","v":{"v":483.5,"d":"$484"}},null,null,{"$f":"SUM(#REF!)","v":{"$error":"#REF!"}},null,{"$f":"$D$1032","v":"HVAC"},{"$nulls":4},{"$f":"SUM(BA1033:BA1072)","v":162.5},{"$f":"SUM(BB1033:BB1072)","v":321},{"$f":"SUM(BC1033:BC1072)","v":0},{"$f":"SUM(BD1033:BD1072)","v":0},{"$f":"SUM(BE1033:BE1072)","v":483.5},{"$f":"AQ1032","v":483.5},{"$f":"AM1032","v":0},null,{"$f":"AD1032","v":{"v":162.5,"d":"$162.50"}},{"$f":"AM1032","v":{"v":0,"d":"$0.00"}},{"$f":"BJ1032+BI1032","v":{"v":162.5,"d":"$162.50"}}]
[{"$nulls":3},"HVAC, bid/allowance",{"$nulls":14},"ls","ls",{"$nulls":6},{"v":4000,"d":"4000.00"},null,null,{"$f":"((P1033*U1033)-AM1033)","v":{"v":0,"d":"$0"}},null,null,{"$f":"P1033*X1033*(1+$Y$85)","v":{"v":0,"d":"$0"}},null,null,{"$f":"P1033*AA1033","v":{"v":0,"d":"$0"}},null,null,{"$f":"IF($B1033=\"x\",$P1033*$U1033,0)","v":{"v":0,"d":"$0"}},{"$nulls":3},{"$f":"SUM(AD1033:AL1033)","v":{"v":0,"d":"$0"}},null,null,{"$f":"SUM(AD1033:AL1033)","v":{"v":0,"d":"$0"}},null,"HVAC",{"$nulls":4},{"$f":"AD1033","v":0},{"$f":"AG1033","v":0},{"$f":"AJ1033","v":0},{"$f":"IF(B1033=\"x\",1,0)","v":0},{"$f":"SUM(BA1033:BC1033)","v":0},0,0,null,{"$f":"AD1033","v":{"v":0,"d":"$0.00"}},{"$f":"AM1033","v":{"v":0,"d":"$0.00"}},{"$f":"BJ1033+BI1033","v":{"v":0,"d":"$0.00"}}]
[{"$nulls":3},"HVAC Rough-In, per hour",{"$nulls":14},"hrs","hrs",{"$nulls":6},{"v":65,"d":"65.00"},null,{"v":65,"d":"65.00"},{"v":0,"d":"$0"},null,null,{"$f":"P1034*X1034*(1+$Y$85)","v":{"v":0,"d":"$0"}},null,null,{"v":0,"d":"$0"},null,null,{"v":0,"d":"$0"},{"$nulls":3},{"v":0,"d":"$0"},null,null,{"v":0,"d":"$0"},null,"HVAC",{"$nulls":4},0,{"$f":"AG1034","v":0},{"$f":"AJ1034","v":0},0,{"$f":"SUM(BA1034:BC1034)","v":0},0,0,null,{"$f":"AD1034","v":{"v":0,"d":"$0.00"}},{"v":0,"d":"$0.00"},{"$f":"BJ1034+BI1034","v":{"v":0,"d":"$0.00"}}]
[{"$nulls":3},"HVAC Finish Work, per hour",{"$nulls":14},"hrs",{"$nulls":7},{"v":65,"d":"65.00"},null,null,{"v":0,"d":"$0"},null,null,{"v":0,"d":"$0"},null,null,{"v":0,"d":"$0"},null,null,{"v":0,"d":"$0"},{"$nulls":3},{"v":0,"d":"$0"},null,null,{"v":0,"d":"$0"},null,"HVAC",{"$nulls":4},0,0,0,0,0,0,0,null,{"v":0,"d":"$0.00"},{"v":0,"d":"$0.00"},{"v":0,"d":"$0.00"}]
[{"$nulls":3},"Replace gas fired forced air unit, 1000 sf, 60k btus",{"$nulls":14},"ea","ea",{"$nulls":6},{"v":1650,"d":"1650.00"},null,{"v":1650,"d":"1650.00"},{"v":0,"d":"$0"},null,null,{"v":0,"d":"$0"},null,null,{"v":0,"d":"$0"},null,null,{"v":0,"d":"$0"},{"$nulls":3},{"v":0,"d":"$0"},null,null,{"v":0,"d":"$0"},null,"HVAC",{"$nulls":4},0,0,0,0,0,0,0,null,{"v":0,"d":"$0.00"},{"v":0,"d":"$0.00"},{"v":0,"d":"$0.00"}]
[{"$nulls":3},"Replace gas fired forced air unit, 2,000, 80k btus",{"$nulls":14},"ea",{"$nulls":7},{"v":2300,"d":"2300.00"},null,null,{"v":0,"d":"$0"},null,null,{"v":0,"d":"$0"},null,null,{"v":0,"d":"$0"},null,null,{"v":0,"d":"$0"},{"$nulls":3},{"v":0,"d":"$0"},null,null,{"v":0,"d":"$0"},null,"HVAC",{"$nulls":4},0,0,0,0,0,0,0,null,{"v":0,"d":"$0.00"},{"v":0,"d":"$0.00"},{"v":0,"d":"$0.00"}]
[{"$nulls":3},"Replace gas fired forced air unit, 3,000, 100k btus",{"$nulls":14},"ea",{"$nulls":7},{"v":2750,"d":"2750.00"},null,null,{"v":0,"d":"$0"},null,null,{"v":0,"d":"$0"},null,null,{"v":0,"d":"$0"},null,null,{"v":0,"d":"$0"},{"$nulls":3},{"v":0,"d":"$0"},null,null,{"v":0,"d":"$0"},null,"HVAC",{"$nulls":4},0,0,0,0,0,0,0,null,{"v":0,"d":"$0.00"},{"v":0,"d":"$0.00"},{"v":0,"d":"$0.00"}]
[{"$nulls":3},"Replace air conditioning unit, ~1,000 sf, 2 ton",{"$nulls":14},"ea",{"$nulls":7},{"v":1850,"d":"1850.00"},null,null,{"v":0,"d":"$0"},null,null,{"v":0,"d":"$0"},null,null,{"v":0,"d":"$0"},null,null,{"v":0,"d":"$0"},{"$nulls":3},{"v":0,"d":"$0"},null,null,{"v":0,"d":"$0"},null,"HVAC",{"$nulls":4},0,0,0,0,0,0,0,null,{"v":0,"d":"$0.00"},{"v":0,"d":"$0.00"},{"v":0,"d":"$0.00"}]
[{"$nulls":3},"Replace air conditioning unit, ~2,000 sf, 3.5 ton",{"$nulls":14},"ea",{"$nulls":7},{"v":2850,"d":"2850.00"},null,null,{"v":0,"d":"$0"},null,null,{"v":0,"d":"$0"},null,null,{"v":0,"d":"$0"},null,null,{"v":0,"d":"$0"},{"$nulls":3},{"v":0,"d":"$0"},null,null,{"v":0,"d":"$0"},null,"HVAC",{"$nulls":4},0,0,0,0,0,0,0,null,{"v":0,"d":"$0.00"},{"v":0,"d":"$0.00"},{"v":0,"d":"$0.00"}]
[{"$nulls":3},"Replace air conditioning unit, ~3,000sf, 5 ton",{"$nulls":14},"ea",{"$nulls":7},{"v":3250,"d":"3250.00"},null,null,{"v":0,"d":"$0"},null,null,{"v":0,"d":"$0"},null,null,{"v":0,"d":"$0"},null,null,{"v":0,"d":"$0"},{"$nulls":3},{"v":0,"d":"$0"},null,null,{"v":0,"d":"$0"},null,"HVAC",{"$nulls":4},0,0,0,0,0,0,0,null,{"v":0,"d":"$0.00"},{"v":0,"d":"$0.00"},{"v":0,"d":"$0.00"}]
[{"$nulls":3},"Hotel type, hot/cold packaged unit",{"$nulls":14},"ea",{"$nulls":7},{"v":1200,"d":"1200.00"},null,null,{"v":0,"d":"$0"},null,null,{"v":0,"d":"$0"},null,null,{"v":0,"d":"$0"},null,null,{"v":0,"d":"$0"},{"$nulls":3},{"v":0,"d":"$0"},null,null,{"v":0,"d":"$0"},null,"HVAC",{"$nulls":4},0,0,0,0,0,0,0,null,{"v":0,"d":"$0.00"},{"v":0,"d":"$0.00"},{"v":0,"d":"$0.00"}]
[{"$nulls":3},"Window mounted unit",{"$nulls":14},"ea",{"$nulls":7},{"v":400,"d":"400.00"},null,null,{"v":0,"d":"$0"},null,null,{"v":0,"d":"$0"},null,null,{"v":0,"d":"$0"},null,null,{"v":0,"d":"$0"},{"$nulls":3},{"v":0,"d":"$0"},null,null,{"v":0,"d":"$0"},null,"HVAC",{"$nulls":4},0,0,0,0,0,0,0,null,{"v":0,"d":"$0.00"},{"v":0,"d":"$0.00"},{"v":0,"d":"$0.00"}]
[{"$nulls":3},"HVAC equipment tune-up/service call",{"$nulls":14},"ea",{"$nulls":7},{"v":250,"d":"250.00"},null,null,{"v":0,"d":"$0"},null,null,{"v":0,"d":"$0"},null,null,{"v":0,"d":"$0"},null,null,{"v":0,"d":"$0"},{"$nulls":3},{"v":0,"d":"$0"},null,null,{"v":0,"d":"$0"},null,"HVAC",{"$nulls":4},0,0,0,0,0,0,0,null,{"v":0,"d":"$0.00"},{"v":0,"d":"$0.00"},{"v":0,"d":"$0.00"}]
[{"$nulls":3},"Programmable thermostat",{"$nulls":11},1,null,null,"ea","ea",{"v":50,"d":"50.00"},null,null,{"v":75,"d":"75.00"},null,{"v":50,"d":"50.00"},{"$nulls":3},{"v":50,"d":"$50"},null,null,{"v":80.25,"d":"$80"},null,null,{"v":0,"d":"$0"},null,null,{"v":0,"d":"$0"},{"$nulls":3},{"v":130.25,"d":"$130"},null,null,{"v":130.25,"d":"$130"},null,"HVAC",{"$nulls":4},50,80.25,0,0,130.25,130.25,0,null,{"v":50,"d":"$50.00"},{"v":0,"d":"$0.00"},{"v":50,"d":"$50.00"}]
[{"$nulls":3},"Replace supply air grilles/returns",{"$nulls":11},15,null,null,"ea","ea",{"v":7.5,"d":"7.50"},null,null,{"v":15,"d":"15.00"},{"$nulls":5},{"v":112.5,"d":"$113"},null,null,{"v":240.75,"d":"$241"},null,null,{"v":0,"d":"$0"},null,null,{"v":0,"d":"$0"},{"$nulls":3},{"v":353.25,"d":"$353"},null,null,{"v":353.25,"d":"$353"},null,"HVAC",{"$nulls":4},112.5,240.75,0,0,353.25,353.25,0,null,{"v":112.5,"d":"$112.50"},{"v":0,"d":"$0.00"},{"v":112.5,"d":"$112.50"}]
[{"$nulls":3},"Clean ductwork",{"$nulls":14},"ls","ea",{"$nulls":6},{"v":250,"d":"250.00"},null,{"v":1850,"d":"1850.00"},{"v":0,"d":"$0"},null,null,{"v":0,"d":"$0"},null,null,{"v":0,"d":"$0"},null,null,{"v":0,"d":"$0"},{"$nulls":3},{"v":0,"d":"$0"},null,null,{"v":0,"d":"$0"},null,"HVAC",{"$nulls":4},0,0,0,0,0,0,0,null,{"v":0,"d":"$0.00"},{"v":0,"d":"$0.00"},{"v":0,"d":"$0.00"}]
[{"$nulls":29},{"v":0,"d":"$0"},null,null,{"v":0,"d":"$0"},null,null,{"v":0,"d":"$0"},null,null,{"v":0,"d":"$0"},{"$nulls":3},{"v":0,"d":"$0"},null,null,{"v":0,"d":"$0"},null,"HVAC",{"$nulls":4},0,0,0,0,0,0,0,null,{"v":0,"d":"$0.00"},{"v":0,"d":"$0.00"},{"v":0,"d":"$0.00"}]
[{"$nulls":29},{"v":0,"d":"$0"},null,null,{"v":0,"d":"$0"},null,null,{"v":0,"d":"$0"},null,null,{"v":0,"d":"$0"},{"$nulls":3},{"v":0,"d":"$0"},null,null,{"v":0,"d":"$0"},null,"HVAC",{"$nulls":4},0,0,0,0,0,0,0,null,{"v":0,"d":"$0.00"},{"v":0,"d":"$0.00"},{"v":0,"d":"$0.00"}]
[{"$nulls":29},{"v":0,"d":"$0"},null,null,{"v":0,"d":"$0"},null,null,{"v":0,"d":"$0"},null,null,{"v":0,"d":"$0"},{"$nulls":3},{"v":0,"d":"$0"},null,null,{"v":0,"d":"$0"},null,"HVAC",{"$nulls":4},0,0,0,0,0,0,0,null,{"v":0,"d":"$0.00"},{"v":0,"d":"$0.00"},{"v":0,"d":"$0.00"}]
[{"$nulls":29},{"v":0,"d":"$0"},null,null,{"v":0,"d":"$0"},null,null,{"v":0,"d":"$0"},null,null,{"v":0,"d":"$0"},{"$nulls":3},{"v":0,"d":"$0"},null,null,{"v":0,"d":"$0"},null,"HVAC",{"$nulls":4},0,0,0,0,{"$f":"SUM(BA1051:BC1051)","v":0},0,0,null,{"v":0,"d":"$0.00"},{"v":0,"d":"$0.00"},{"v":0,"d":"$0.00"}]
[{"$nulls":29},{"v":0,"d":"$0"},null,null,{"v":0,"d":"$0"},null,null,{"v":0,"d":"$0"},null,null,{"v":0,"d":"$0"},{"$nulls":3},{"v":0,"d":"$0"},null,null,{"v":0,"d":"$0"},null,"HVAC",{"$nulls":4},0,0,0,0,{"$f":"SUM(BA1052:BC1052)","v":0},0,0,null,{"v":0,"d":"$0.00"},{"v":0,"d":"$0.00"},{"v":0,"d":"$0.00"}]
[{"$nulls":29},{"$f":"((P1053*U1053)-AM1053)","v":{"v":0,"d":"$0"}},null,null,{"v":0,"d":"$0"},null,null,{"$f":"P1053*AA1053","v":{"v":0,"d":"$0"}},null,null,{"v":0,"d":"$0"},{"$nulls":3},{"$f":"SUM(AD1053:AL1053)","v":{"v":0,"d":"$0"}},null,null,{"$f":"SUM(AD1053:AL1053)","v":{"v":0,"d":"$0"}},null,"HVAC",{"$nulls":4},{"$f":"AD1053","v":0},{"$f":"AG1053","v":0},{"$f":"AJ1053","v":0},{"$f":"IF(B1053=\"x\",1,0)","v":0},{"$f":"SUM(BA1053:BC1053)","v":0},{"$f":"AQ1053","v":0},{"$f":"AM1053","v":0},null,{"$f":"AD1053","v":{"v":0,"d":"$0.00"}},{"$f":"AM1053","v":{"v":0,"d":"$0.00"}},{"$f":"BJ1053+BI1053","v":{"v":0,"d":"$0.00"}}]
[{"$nulls":29},{"v":0,"d":"$0"},null,null,{"v":0,"d":"$0"},null,null,{"v":0,"d":"$0"},null,null,{"v":0,"d":"$0"},{"$nulls":3},{"v":0,"d":"$0"},null,null,{"v":0,"d":"$0"},null,"HVAC",{"$nulls":4},0,{"$f":"AG1054","v":0},{"$f":"AJ1054","v":0},0,{"$f":"SUM(BA1054:BC1054)","v":0},0,0,null,{"$f":"AD1054","v":{"v":0,"d":"$0.00"}},{"v":0,"d":"$0.00"},{"$f":"BJ1054+BI1054","v":{"v":0,"d":"$0.00"}}]
[{"$nulls":29},{"v":0,"d":"$0"},null,null,{"v":0,"d":"$0"},null,null,{"v":0,"d":"$0"},null,null,{"v":0,"d":"$0"},{"$nulls":3},{"v":0,"d":"$0"},null,null,{"v":0,"d":"$0"},null,"HVAC",{"$nulls":4},0,0,0,0,0,0,0,null,{"v":0,"d":"$0.00"},{"v":0,"d":"$0.00"},{"v":0,"d":"$0.00"}]
[{"$nulls":29},{"v":0,"d":"$0"},null,null,{"v":0,"d":"$0"},null,null,{"v":0,"d":"$0"},null,null,{"v":0,"d":"$0"},{"$nulls":3},{"v":0,"d":"$0"},null,null,{"v":0,"d":"$0"},null,"HVAC",{"$nulls":4},0,0,0,0,0,0,0,null,{"v":0,"d":"$0.00"},{"v":0,"d":"$0.00"},{"v":0,"d":"$0.00"}]
[{"$nulls":29},{"v":0,"d":"$0"},null,null,{"v":0,"d":"$0"},null,null,{"v":0,"d":"$0"},null,null,{"v":0,"d":"$0"},{"$nulls":3},{"v":0,"d":"$0"},null,null,{"v":0,"d":"$0"},null,"HVAC",{"$nulls":4},0,0,0,0,0,0,0,null,{"v":0,"d":"$0.00"},{"v":0,"d":"$0.00"},{"v":0,"d":"$0.00"}]
[{"$nulls":29},{"v":0,"d":"$0"},null,null,{"v":0,"d":"$0"},null,null,{"v":0,"d":"$0"},null,null,{"v":0,"d":"$0"},{"$nulls":3},{"v":0,"d":"$0"},null,null,{"v":0,"d":"$0"},null,"HVAC",{"$nulls":4},0,0,0,0,0,0,0,null,{"v":0,"d":"$0.00"},{"v":0,"d":"$0.00"},{"v":0,"d":"$0.00"}]
[{"$nulls":29},{"v":0,"d":"$0"},null,null,{"v":0,"d":"$0"},null,null,{"v":0,"d":"$0"},null,null,{"v":0,"d":"$0"},{"$nulls":3},{"v":0,"d":"$0"},null,null,{"v":0,"d":"$0"},null,"HVAC",{"$nulls":4},0,0,0,0,0,0,0,null,{"v":0,"d":"$0.00"},{"v":0,"d":"$0.00"},{"v":0,"d":"$0.00"}]
[{"$nulls":29},{"v":0,"d":"$0"},null,null,{"v":0,"d":"$0"},null,null,{"v":0,"d":"$0"},null,null,{"v":0,"d":"$0"},{"$nulls":3},{"v":0,"d":"$0"},null,null,{"v":0,"d":"$0"},null,"HVAC",{"$nulls":4},0,0,0,0,0,0,0,null,{"v":0,"d":"$0.00"},{"v":0,"d":"$0.00"},{"v":0,"d":"$0.00"}]
[{"$nulls":29},{"v":0,"d":"$0"},null,null,{"v":0,"d":"$0"},null,null,{"v":0,"d":"$0"},null,null,{"v":0,"d":"$0"},{"$nulls":3},{"v":0,"d":"$0"},null,null,{"v":0,"d":"$0"},null,"HVAC",{"$nulls":4},0,0,0,0,0,0,0,null,{"v":0,"d":"$0.00"},{"v":0,"d":"$0.00"},{"v":0,"d":"$0.00"}]
[{"$nulls":29},{"v":0,"d":"$0"},null,null,{"v":0,"d":"$0"},null,null,{"v":0,"d":"$0"},null,null,{"v":0,"d":"$0"},{"$nulls":3},{"v":0,"d":"$0"},null,null,{"v":0,"d":"$0"},null,"HVAC",{"$nulls":4},0,0,0,0,0,0,0,null,{"v":0,"d":"$0.00"},{"v":0,"d":"$0.00"},{"v":0,"d":"$0.00"}]
[{"$nulls":29},{"v":0,"d":"$0"},null,null,{"v":0,"d":"$0"},null,null,{"v":0,"d":"$0"},null,null,{"v":0,"d":"$0"},{"$nulls":3},{"v":0,"d":"$0"},null,null,{"v":0,"d":"$0"},null,"HVAC",{"$nulls":4},0,0,0,0,0,0,0,null,{"v":0,"d":"$0.00"},{"v":0,"d":"$0.00"},{"v":0,"d":"$0.00"}]
[{"$nulls":29},{"v":0,"d":"$0"},null,null,{"v":0,"d":"$0"},null,null,{"v":0,"d":"$0"},null,null,{"v":0,"d":"$0"},{"$nulls":3},{"v":0,"d":"$0"},null,null,{"v":0,"d":"$0"},null,"HVAC",{"$nulls":4},0,0,0,0,0,0,0,null,{"v":0,"d":"$0.00"},{"v":0,"d":"$0.00"},{"v":0,"d":"$0.00"}]
[{"$nulls":29},{"v":0,"d":"$0"},null,null,{"v":0,"d":"$0"},null,null,{"v":0,"d":"$0"},null,null,{"v":0,"d":"$0"},{"$nulls":3},{"v":0,"d":"$0"},null,null,{"v":0,"d":"$0"},null,"HVAC",{"$nulls":4},0,0,0,0,0,0,0,null,{"v":0,"d":"$0.00"},{"v":0,"d":"$0.00"},{"v":0,"d":"$0.00"}]
[{"$nulls":29},{"v":0,"d":"$0"},null,null,{"v":0,"d":"$0"},null,null,{"v":0,"d":"$0"},null,null,{"v":0,"d":"$0"},{"$nulls":3},{"v":0,"d":"$0"},null,null,{"v":0,"d":"$0"},null,"HVAC",{"$nulls":4},0,0,0,0,0,0,0,null,{"v":0,"d":"$0.00"},{"v":0,"d":"$0.00"},{"v":0,"d":"$0.00"}]
[{"$nulls":29},{"v":0,"d":"$0"},null,null,{"v":0,"d":"$0"},null,null,{"v":0,"d":"$0"},null,null,{"v":0,"d":"$0"},{"$nulls":3},{"v":0,"d":"$0"},null,null,{"v":0,"d":"$0"},null,"HVAC",{"$nulls":4},0,0,0,0,0,0,0,null,{"v":0,"d":"$0.00"},{"v":0,"d":"$0.00"},{"v":0,"d":"$0.00"}]
[{"$nulls":29},{"v":0,"d":"$0"},null,null,{"v":0,"d":"$0"},null,null,{"v":0,"d":"$0"},null,null,{"v":0,"d":"$0"},{"$nulls":3},{"v":0,"d":"$0"},null,null,{"v":0,"d":"$0"},null,"HVAC",{"$nulls":4},0,0,0,0,0,0,0,null,{"v":0,"d":"$0.00"},{"v":0,"d":"$0.00"},{"v":0,"d":"$0.00"}]
[{"$nulls":29},{"v":0,"d":"$0"},null,null,{"v":0,"d":"$0"},null,null,{"v":0,"d":"$0"},null,null,{"v":0,"d":"$0"},{"$nulls":3},{"v":0,"d":"$0"},null,null,{"v":0,"d":"$0"},null,"HVAC",{"$nulls":4},0,0,0,0,0,0,0,null,{"v":0,"d":"$0.00"},{"v":0,"d":"$0.00"},{"v":0,"d":"$0.00"}]
[{"$nulls":29},{"v":0,"d":"$0"},null,null,{"v":0,"d":"$0"},null,null,{"v":0,"d":"$0"},null,null,{"v":0,"d":"$0"},{"$nulls":3},{"v":0,"d":"$0"},null,null,{"v":0,"d":"$0"},null,"HVAC",{"$nulls":4},0,0,0,0,0,0,0,null,{"v":0,"d":"$0.00"},{"v":0,"d":"$0.00"},{"v":0,"d":"$0.00"}]
[{"$nulls":29},{"v":0,"d":"$0"},null,null,{"v":0,"d":"$0"},null,null,{"v":0,"d":"$0"},null,null,{"v":0,"d":"$0"},{"$nulls":3},{"v":0,"d":"$0"},null,null,{"v":0,"d":"$0"},null,"HVAC",{"$nulls":4},0,0,0,0,{"$f":"SUM(BA1071:BC1071)","v":0},0,0,null,{"v":0,"d":"$0.00"},{"v":0,"d":"$0.00"},{"v":0,"d":"$0.00"}]
[{"$nulls":29},{"v":0,"d":"$0"},null,null,{"v":0,"d":"$0"},null,null,{"v":0,"d":"$0"},null,null,{"v":0,"d":"$0"},{"$nulls":3},{"v":0,"d":"$0"},null,null,{"v":0,"d":"$0"},null,"HVAC",{"$nulls":4},0,0,0,0,{"$f":"SUM(BA1072:BC1072)","v":0},0,0,null,{"v":0,"d":"$0.00"},{"v":0,"d":"$0.00"},{"v":0,"d":"$0.00"}]
[{"$nulls":47},"HVAC",{"$nulls":4},{"$f":"BA1032","v":{"v":162.5,"d":"$163"}},{"$f":"BB1032","v":{"v":321,"d":"$321"}},{"$f":"BC1032","v":{"v":0,"d":"$0"}},{"$f":"BD1032","v":{"v":0,"d":"$0"}},{"$f":"BE1032","v":{"v":483.5,"d":"$484"}}]
[{"$nulls":28},{"$f":"CONCATENATE(D1032,\" \",\"TOTAL\")","v":"HVAC TOTAL"},{"$f":"SUBTOTAL(9,AD1033:AD1073)","v":{"v":162.5,"d":"$163"}},null,null,{"$f":"SUBTOTAL(9,AG1033:AG1073)","v":{"v":321,"d":"$321"}},null,null,{"$f":"SUBTOTAL(9,AJ1033:AJ1073)","v":{"v":0,"d":"$0"}},null,null,{"$f":"SUBTOTAL(9,AM1033:AM1073)","v":{"v":0,"d":"$0"}},{"$nulls":3},{"$f":"SUBTOTAL(9,AQ1033:AQ1073)","v":{"v":483.5,"d":"$484"}},null,null,{"$f":"SUM(AT1030:AT1065)","v":{"$error":"#REF!"}},null,"HVAC",{"$nulls":4},{"$f":"BA1032","v":162.5},{"$f":"BB1032","v":321},{"$f":"BC1032","v":0},{"$f":"BD1032","v":0},{"$f":"BE1032","v":483.5},{"$f":"SUM(BF1032:BF1073)","v":967},{"$f":"SUM(BG1032:BG1073)","v":0},null,{"$f":"SUM(BI1033:BI1073)","v":162.5},{"$f":"SUM(BJ1033:BJ1073)","v":0},{"$f":"SUM(BK1033:BK1073)","v":162.5}]
[{"$nulls":47},"HVAC",{"$nulls":4},{"$f":"BA1032","v":{"v":162.5,"d":"$163"}},{"$f":"BB1032","v":{"v":321,"d":"$321"}},{"$f":"BC1032","v":{"v":0,"d":"$0"}},{"$f":"BD1032","v":{"v":0,"d":"$0"}},{"$f":"BE1032","v":{"v":483.5,"d":"$484"}}]
[{"$nulls":47},"HVAC",{"$nulls":4},{"$f":"BA1074","v":162.5},{"$f":"BB1074","v":321},{"$f":"BC1074","v":0},0,483.5,967,0]
["Hidden",null,null,{"$f":"T(AJ81)","v":"ELECTRICAL"},{"$nulls":25},{"$f":"AD1119","v":{"v":0,"d":"$0"}},null,null,{"$f":"AG1119","v":{"v":1396.3500000000001,"d":"$1,396"}},null,null,{"$f":"AJ1119","v":{"v":900,"d":"$900"}},null,null,{"$f":"AM1119","v":{"v":0,"d":"$0"}},{"$nulls":3},{"$f":"AQ1119","v":{"v":2296.35,"d":"$2,296"}},null,null,{"$f":"SUM(#REF!)","v":{"$error":"#REF!"}},null,{"$f":"$D$1077","v":"ELECTRICAL"},{"$nulls":4},{"$f":"SUM(BA1078:BA1117)","v":0},{"$f":"SUM(BB1078:BB1117)","v":1396.3500000000001},{"$f":"SUM(BC1078:BC1117)","v":900},{"$f":"SUM(BD1078:BD1117)","v":0},{"$f":"SUM(BE1078:BE1117)","v":2296.35},{"$f":"AQ1077","v":2296.35},{"$f":"AM1077","v":0},null,{"$f":"AD1077","v":{"v":0,"d":"$0.00"}},{"$f":"AM1077","v":{"v":0,"d":"$0.00"}},{"$f":"BJ1077+BI1077","v":{"v":0,"d":"$0.00"}}]
[{"$nulls":3},"Electrical, bid/allowance",{"$nulls":14},"ls","ls",{"$nulls":9},{"$f":"((P1078*U1078)-AM1078)","v":{"v":0,"d":"$0"}},null,null,{"$f":"P1078*X1078*(1+$Y$85)","v":{"v":0,"d":"$0"}},null,null,{"$f":"P1078*AA1078","v":{"v":0,"d":"$0"}},null,null,{"$f":"IF($B1078=\"x\",$P1078*$U1078,0)","v":{"v":0,"d":"$0"}},{"$nulls":3},{"$f":"SUM(AD1078:AL1078)","v":{"v":0,"d":"$0"}},null,null,{"$f":"SUM(AD1078:AL1078)","v":{"v":0,"d":"$0"}},null,"ELECTRICAL",{"$nulls":4},{"$f":"AD1078","v":0},{"$f":"AG1078","v":0},{"$f":"AJ1078","v":0},{"$f":"IF(B1078=\"x\",1,0)","v":0},{"$f":"SUM(BA1078:BC1078)","v":0},0,0,null,{"$f":"AD1078","v":{"v":0,"d":"$0.00"}},{"$f":"AM1078","v":{"v":0,"d":"$0.00"}},{"$f":"BJ1078+BI1078","v":{"v":0,"d":"$0.00"}}]
[{"$nulls":3},"Miscellaneous Electrical ",{"$nulls":25},{"v":0,"d":"$0"},null,null,{"$f":"P1079*X1079*(1+$Y$85)","v":{"v":0,"d":"$0"}},null,null,{"v":0,"d":"$0"},null,null,{"v":0,"d":"$0"},{"$nulls":3},{"v":0,"d":"$0"},null,null,{"v":0,"d":"$0"},null,"ELECTRICAL",{"$nulls":4},0,{"$f":"AG1079","v":0},{"$f":"AJ1079","v":0},0,{"$f":"SUM(BA1079:BC1079)","v":0},0,0,null,{"$f":"AD1079","v":{"v":0,"d":"$0.00"}},{"v":0,"d":"$0.00"},{"$f":"BJ1079+BI1079","v":{"v":0,"d":"$0.00"}}]
[{"$nulls":3},"Electrical Rough-in, per hour",{"$nulls":14},"hrs","hrs",{"$nulls":6},{"v":60,"d":"60.00"},null,null,{"v":0,"d":"$0"},null,null,{"v":0,"d":"$0"},null,null,{"v":0,"d":"$0"},null,null,{"v":0,"d":"$0"},{"$nulls":3},{"v":0,"d":"$0"},null,null,{"v":0,"d":"$0"},null,"ELECTRICAL",{"$nulls":4},0,0,0,0,0,0,0,null,{"v":0,"d":"$0.00"},{"v":0,"d":"$0.00"},{"v":0,"d":"$0.00"}]
[{"$nulls":3},"CATV Rough-in, per hour",{"$nulls":14},"hrs","hrs",{"$nulls":6},{"v":60,"d":"60.00"},null,null,{"v":0,"d":"$0"},null,null,{"v":0,"d":"$0"},null,null,{"v":0,"d":"$0"},null,null,{"v":0,"d":"$0"},{"$nulls":3},{"v":0,"d":"$0"},null,null,{"v":0,"d":"$0"},null,"ELECTRICAL",{"$nulls":4},0,0,0,0,0,0,0,null,{"v":0,"d":"$0.00"},{"v":0,"d":"$0.00"},{"v":0,"d":"$0.00"}]
[{"$nulls":3},"Electrical Finish Work, per hour",{"$nulls":14},"hrs","hrs",{"$nulls":6},{"v":60,"d":"60.00"},null,null,{"v":0,"d":"$0"},null,null,{"v":0,"d":"$0"},null,null,{"v":0,"d":"$0"},null,null,{"v":0,"d":"$0"},{"$nulls":3},{"v":0,"d":"$0"},null,null,{"v":0,"d":"$0"},null,"ELECTRICAL",{"$nulls":4},0,0,0,0,0,0,0,null,{"v":0,"d":"$0.00"},{"v":0,"d":"$0.00"},{"v":0,"d":"$0.00"}]
[{"$nulls":3},"Replace electrical panel, 100 AMP",{"$nulls":14},"ea","ea",{"$nulls":6},{"v":975,"d":"975.00"},null,null,{"v":0,"d":"$0"},null,null,{"v":0,"d":"$0"},null,null,{"v":0,"d":"$0"},null,null,{"v":0,"d":"$0"},{"$nulls":3},{"v":0,"d":"$0"},null,null,{"v":0,"d":"$0"},null,"ELECTRICAL",{"$nulls":4},0,0,0,0,0,0,0,null,{"v":0,"d":"$0.00"},{"v":0,"d":"$0.00"},{"v":0,"d":"$0.00"}]
[{"$nulls":3},"Replace electrical panel, 200 AMP",{"$nulls":14},"ea","ea",{"$nulls":6},{"v":1250,"d":"1250.00"},null,null,{"v":0,"d":"$0"},null,null,{"v":0,"d":"$0"},null,null,{"v":0,"d":"$0"},null,null,{"v":0,"d":"$0"},{"$nulls":3},{"v":0,"d":"$0"},null,null,{"v":0,"d":"$0"},null,"ELECTRICAL",{"$nulls":4},0,0,0,0,0,0,0,null,{"v":0,"d":"$0.00"},{"v":0,"d":"$0.00"},{"v":0,"d":"$0.00"}]
[{"$nulls":3},"Replace outlets, light switches",{"$nulls":14},"ea","ea",{"$nulls":6},{"v":10,"d":"10.00"},null,null,{"v":0,"d":"$0"},null,null,{"v":0,"d":"$0"},null,null,{"v":0,"d":"$0"},null,null,{"v":0,"d":"$0"},{"$nulls":3},{"v":0,"d":"$0"},null,null,{"v":0,"d":"$0"},null,"ELECTRICAL",{"$nulls":4},0,0,0,0,0,0,0,null,{"v":0,"d":"$0.00"},{"v":0,"d":"$0.00"},{"v":0,"d":"$0.00"}]
[{"$nulls":3},"Replace GFI outlets/ground back to panel",{"$nulls":14},"ea","ea",{"$nulls":6},{"v":75,"d":"75.00"},null,null,{"v":0,"d":"$0"},null,null,{"v":0,"d":"$0"},null,null,{"v":0,"d":"$0"},null,null,{"v":0,"d":"$0"},{"$nulls":3},{"v":0,"d":"$0"},null,null,{"v":0,"d":"$0"},null,"ELECTRICAL",{"$nulls":4},0,0,0,0,0,0,0,null,{"v":0,"d":"$0.00"},{"v":0,"d":"$0.00"},{"v":0,"d":"$0.00"}]
[{"$nulls":3},"Exhaust Fan",{"$nulls":14},"ea","ea",{"$nulls":3},{"v":40,"d":"40.00"},null,{"v":40,"d":"40.00"},{"v":85,"d":"85.00"},null,null,{"v":0,"d":"$0"},null,null,{"v":0,"d":"$0"},null,null,{"v":0,"d":"$0"},null,null,{"v":0,"d":"$0"},{"$nulls":3},{"v":0,"d":"$0"},null,null,{"v":0,"d":"$0"},null,"ELECTRICAL",{"$nulls":4},0,0,0,0,0,0,0,null,{"v":0,"d":"$0.00"},{"v":0,"d":"$0.00"},{"v":0,"d":"$0.00"}]
[{"$nulls":3},"Smoke detectors",{"$nulls":11},5,null,null,"ea","ea",{"$nulls":3},{"v":15,"d":"15.00"},null,{"v":15,"d":"15.00"},{"v":25,"d":"25.00"},null,null,{"v":0,"d":"$0"},null,null,{"v":80.25,"d":"$80"},null,null,{"v":125,"d":"$125"},null,null,{"v":0,"d":"$0"},{"$nulls":3},{"v":205.25,"d":"$205"},null,null,{"v":205.25,"d":"$205"},null,"ELECTRICAL",{"$nulls":4},0,80.25,125,0,205.25,205.25,0,null,{"v":0,"d":"$0.00"},{"v":0,"d":"$0.00"},{"v":0,"d":"$0.00"}]
[{"$nulls":3},"Carbon monoxide detector",{"$nulls":14},"ea","ea",{"$nulls":3},{"v":20,"d":"20.00"},null,{"v":20,"d":"20.00"},{"v":25,"d":"25.00"},null,null,{"v":0,"d":"$0"},null,null,{"v":0,"d":"$0"},null,null,{"v":0,"d":"$0"},null,null,{"v":0,"d":"$0"},{"$nulls":3},{"v":0,"d":"$0"},null,null,{"v":0,"d":"$0"},null,"ELECTRICAL",{"$nulls":4},0,0,0,0,0,0,0,null,{"v":0,"d":"$0.00"},{"v":0,"d":"$0.00"},{"v":0,"d":"$0.00"}]
[{"$nulls":3},"Lighting",{"$nulls":15},"ea",{"$nulls":3},{"v":35,"d":"35.00"},null,{"v":35,"d":"35.00"},{"v":25,"d":"25.00"},null,null,{"v":0,"d":"$0"},null,null,{"v":0,"d":"$0"},null,null,{"v":0,"d":"$0"},null,null,{"v":0,"d":"$0"},{"$nulls":3},{"v":0,"d":"$0"},null,null,{"v":0,"d":"$0"},null,"ELECTRICAL",{"$nulls":4},0,0,0,0,0,0,0,null,{"v":0,"d":"$0.00"},{"v":0,"d":"$0.00"},{"v":0,"d":"$0.00"}]
[{"$nulls":3},"Track/Pendent light",{"$nulls":11},1,null,null,"ea","ea",{"$nulls":3},{"v":100,"d":"100.00"},null,{"v":100,"d":"100.00"},{"v":50,"d":"50.00"},null,null,{"v":0,"d":"$0"},null,null,{"v":107,"d":"$107"},null,null,{"v":50,"d":"$50"},null,null,{"v":0,"d":"$0"},{"$nulls":3},{"v":157,"d":"$157"},null,null,{"v":157,"d":"$157"},null,"ELECTRICAL",{"$nulls":4},0,107,50,0,157,157,0,null,{"v":0,"d":"$0.00"},{"v":0,"d":"$0.00"},{"v":0,"d":"$0.00"}]
[{"$nulls":3},"Chandelier light fixture",{"$nulls":11},1,null,null,"ea","ea",{"$nulls":3},{"v":175,"d":"175.00"},null,{"v":150,"d":"150.00"},{"v":100,"d":"100.00"},null,null,{"v":0,"d":"$0"},null,null,{"v":187.25,"d":"$187"},null,null,{"v":100,"d":"$100"},null,null,{"v":0,"d":"$0"},{"$nulls":3},{"v":287.25,"d":"$287"},null,null,{"v":287.25,"d":"$287"},null,"ELECTRICAL",{"$nulls":4},0,187.25,100,0,287.25,287.25,0,null,{"v":0,"d":"$0.00"},{"v":0,"d":"$0.00"},{"v":0,"d":"$0.00"}]
[{"$nulls":3},"Ceiling dome light",{"$nulls":11},5,null,null,"ea","ea",{"$nulls":3},{"v":35,"d":"35.00"},null,{"v":35,"d":"35.00"},{"v":25,"d":"25.00"},null,null,{"v":0,"d":"$0"},null,null,{"v":187.25,"d":"$187"},null,null,{"v":125,"d":"$125"},null,null,{"v":0,"d":"$0"},{"$nulls":3},{"v":312.25,"d":"$312"},null,null,{"v":312.25,"d":"$312"},null,"ELECTRICAL",{"$nulls":4},0,187.25,125,0,312.25,312.25,0,null,{"v":0,"d":"$0.00"},{"v":0,"d":"$0.00"},{"v":0,"d":"$0.00"}]
[{"$nulls":3},"Ceiling fan fixture",{"$nulls":11},4,null,null,"ea","ea",{"$nulls":3},{"v":115,"d":"115.00"},null,{"v":115,"d":"115.00"},{"v":75,"d":"75.00"},null,null,{"v":0,"d":"$0"},null,null,{"v":492.20000000000005,"d":"$492"},null,null,{"v":300,"d":"$300"},null,null,{"v":0,"d":"$0"},{"$nulls":3},{"v":792.2,"d":"$792"},null,null,{"v":792.2,"d":"$792"},null,"ELECTRICAL",{"$nulls":4},0,492.20000000000005,300,0,792.2,792.2,0,null,{"v":0,"d":"$0.00"},{"v":0,"d":"$0.00"},{"v":0,"d":"$0.00"}]
[{"$nulls":3},"Bathroom vanity light",{"$nulls":11},2,null,null,"ea","ea",{"$nulls":3},{"v":85,"d":"85.00"},null,{"v":85,"d":"85.00"},{"v":50,"d":"50.00"},null,null,{"v":0,"d":"$0"},null,null,{"v":181.9,"d":"$182"},null,null,{"v":100,"d":"$100"},null,null,{"v":0,"d":"$0"},{"$nulls":3},{"v":281.9,"d":"$282"},null,null,{"v":281.9,"d":"$282"},null,"ELECTRICAL","Bathrooms",{"$nulls":3},0,181.9,100,0,281.9,281.9,0,null,{"v":0,"d":"$0.00"},{"v":0,"d":"$0.00"},{"v":0,"d":"$0.00"}]
[{"$nulls":3},"Can lighting",{"$nulls":14},"ea","ea",{"$nulls":3},{"v":25,"d":"25.00"},null,{"v":21.5,"d":"21.50"},{"v":125,"d":"125.00"},null,null,{"v":0,"d":"$0"},null,null,{"v":0,"d":"$0"},null,null,{"v":0,"d":"$0"},null,null,{"v":0,"d":"$0"},{"$nulls":3},{"v":0,"d":"$0"},null,null,{"v":0,"d":"$0"},null,"ELECTRICAL",{"$nulls":4},0,0,0,0,{"$f":"SUM(BA1096:BC1096)","v":0},0,0,null,{"v":0,"d":"$0.00"},{"v":0,"d":"$0.00"},{"v":0,"d":"$0.00"}]
[{"$nulls":3},"Exterior light fixture",{"$nulls":11},2,null,null,"ea","ea",{"$nulls":3},{"v":75,"d":"75.00"},null,{"v":75,"d":"75.00"},{"v":50,"d":"50.00"},null,null,{"v":0,"d":"$0"},null,null,{"v":160.5,"d":"$161"},null,null,{"v":100,"d":"$100"},null,null,{"v":0,"d":"$0"},{"$nulls":3},{"v":260.5,"d":"$261"},null,null,{"v":260.5,"d":"$261"},null,"ELECTRICAL",{"$nulls":4},0,160.5,100,0,{"$f":"SUM(BA1097:BC1097)","v":260.5},260.5,0,null,{"v":0,"d":"$0.00"},{"v":0,"d":"$0.00"},{"v":0,"d":"$0.00"}]
[{"$nulls":29},{"$f":"((P1098*U1098)-AM1098)","v":{"v":0,"d":"$0"}},null,null,{"v":0,"d":"$0"},null,null,{"$f":"P1098*AA1098","v":{"v":0,"d":"$0"}},null,null,{"v":0,"d":"$0"},{"$nulls":3},{"$f":"SUM(AD1098:AL1098)","v":{"v":0,"d":"$0"}},null,null,{"$f":"SUM(AD1098:AL1098)","v":{"v":0,"d":"$0"}},null,"ELECTRICAL",{"$nulls":4},{"$f":"AD1098","v":0},{"$f":"AG1098","v":0},{"$f":"AJ1098","v":0},{"$f":"IF(B1098=\"x\",1,0)","v":0},{"$f":"SUM(BA1098:BC1098)","v":0},{"$f":"AQ1098","v":0},{"$f":"AM1098","v":0},null,{"$f":"AD1098","v":{"v":0,"d":"$0.00"}},{"$f":"AM1098","v":{"v":0,"d":"$0.00"}},{"$f":"BJ1098+BI1098","v":{"v":0,"d":"$0.00"}}]
[{"$nulls":29},{"v":0,"d":"$0"},null,null,{"v":0,"d":"$0"},null,null,{"v":0,"d":"$0"},null,null,{"v":0,"d":"$0"},{"$nulls":3},{"v":0,"d":"$0"},null,null,{"v":0,"d":"$0"},null,"ELECTRICAL",{"$nulls":4},0,{"$f":"AG1099","v":0},{"$f":"AJ1099","v":0},0,{"$f":"SUM(BA1099:BC1099)","v":0},0,0,null,{"$f":"AD1099","v":{"v":0,"d":"$0.00"}},{"v":0,"d":"$0.00"},{"$f":"BJ1099+BI1099","v":{"v":0,"d":"$0.00"}}]
[{"$nulls":29},{"v":0,"d":"$0"},null,null,{"v":0,"d":"$0"},null,null,{"v":0,"d":"$0"},null,null,{"v":0,"d":"$0"},{"$nulls":3},{"v":0,"d":"$0"},null,null,{"v":0,"d":"$0"},null,"ELECTRICAL",{"$nulls":4},0,0,0,0,0,0,0,null,{"v":0,"d":"$0.00"},{"v":0,"d":"$0.00"},{"v":0,"d":"$0.00"}]
[{"$nulls":29},{"v":0,"d":"$0"},null,null,{"v":0,"d":"$0"},null,null,{"v":0,"d":"$0"},null,null,{"v":0,"d":"$0"},{"$nulls":3},{"v":0,"d":"$0"},null,null,{"v":0,"d":"$0"},null,"ELECTRICAL",{"$nulls":4},0,0,0,0,0,0,0,null,{"v":0,"d":"$0.00"},{"v":0,"d":"$0.00"},{"v":0,"d":"$0.00"}]
[{"$nulls":29},{"v":0,"d":"$0"},null,null,{"v":0,"d":"$0"},null,null,{"v":0,"d":"$0"},null,null,{"v":0,"d":"$0"},{"$nulls":3},{"v":0,"d":"$0"},null,null,{"v":0,"d":"$0"},null,"ELECTRICAL",{"$nulls":4},0,0,0,0,0,0,0,null,{"v":0,"d":"$0.00"},{"v":0,"d":"$0.00"},{"v":0,"d":"$0.00"}]
[{"$nulls":29},{"v":0,"d":"$0"},null,null,{"v":0,"d":"$0"},null,null,{"v":0,"d":"$0"},null,null,{"v":0,"d":"$0"},{"$nulls":3},{"v":0,"d":"$0"},null,null,{"v":0,"d":"$0"},null,"ELECTRICAL",{"$nulls":4},0,0,0,0,0,0,0,null,{"v":0,"d":"$0.00"},{"v":0,"d":"$0.00"},{"v":0,"d":"$0.00"}]
[{"$nulls":29},{"v":0,"d":"$0"},null,null,{"v":0,"d":"$0"},null,null,{"v":0,"d":"$0"},null,null,{"v":0,"d":"$0"},{"$nulls":3},{"v":0,"d":"$0"},null,null,{"v":0,"d":"$0"},null,"ELECTRICAL",{"$nulls":4},0,0,0,0,0,0,0,null,{"v":0,"d":"$0.00"},{"v":0,"d":"$0.00"},{"v":0,"d":"$0.00"}]
[{"$nulls":29},{"v":0,"d":"$0"},null,null,{"v":0,"d":"$0"},null,null,{"v":0,"d":"$0"},null,null,{"v":0,"d":"$0"},{"$nulls":3},{"v":0,"d":"$0"},null,null,{"v":0,"d":"$0"},null,"ELECTRICAL",{"$nulls":4},0,0,0,0,0,0,0,null,{"v":0,"d":"$0.00"},{"v":0,"d":"$0.00"},{"v":0,"d":"$0.00"}]
[{"$nulls":29},{"v":0,"d":"$0"},null,null,{"v":0,"d":"$0"},null,null,{"v":0,"d":"$0"},null,null,{"v":0,"d":"$0"},{"$nulls":3},{"v":0,"d":"$0"},null,null,{"v":0,"d":"$0"},null,"ELECTRICAL",{"$nulls":4},0,0,0,0,0,0,0,null,{"v":0,"d":"$0.00"},{"v":0,"d":"$0.00"},{"v":0,"d":"$0.00"}]
[{"$nulls":29},{"v":0,"d":"$0"},null,null,{"v":0,"d":"$0"},null,null,{"v":0,"d":"$0"},null,null,{"v":0,"d":"$0"},{"$nulls":3},{"v":0,"d":"$0"},null,null,{"v":0,"d":"$0"},null,"ELECTRICAL",{"$nulls":4},0,0,0,0,0,0,0,null,{"v":0,"d":"$0.00"},{"v":0,"d":"$0.00"},{"v":0,"d":"$0.00"}]
[{"$nulls":29},{"v":0,"d":"$0"},null,null,{"v":0,"d":"$0"},null,null,{"v":0,"d":"$0"},null,null,{"v":0,"d":"$0"},{"$nulls":3},{"v":0,"d":"$0"},null,null,{"v":0,"d":"$0"},null,"ELECTRICAL",{"$nulls":4},0,0,0,0,0,0,0,null,{"v":0,"d":"$0.00"},{"v":0,"d":"$0.00"},{"v":0,"d":"$0.00"}]
[{"$nulls":29},{"v":0,"d":"$0"},null,null,{"v":0,"d":"$0"},null,null,{"v":0,"d":"$0"},null,null,{"v":0,"d":"$0"},{"$nulls":3},{"v":0,"d":"$0"},null,null,{"v":0,"d":"$0"},null,"ELECTRICAL",{"$nulls":4},0,0,0,0,0,0,0,null,{"v":0,"d":"$0.00"},{"v":0,"d":"$0.00"},{"v":0,"d":"$0.00"}]
[{"$nulls":29},{"v":0,"d":"$0"},null,null,{"v":0,"d":"$0"},null,null,{"v":0,"d":"$0"},null,null,{"v":0,"d":"$0"},{"$nulls":3},{"v":0,"d":"$0"},null,null,{"v":0,"d":"$0"},null,"ELECTRICAL",{"$nulls":4},0,0,0,0,0,0,0,null,{"v":0,"d":"$0.00"},{"v":0,"d":"$0.00"},{"v":0,"d":"$0.00"}]
[{"$nulls":29},{"v":0,"d":"$0"},null,null,{"v":0,"d":"$0"},null,null,{"v":0,"d":"$0"},null,null,{"v":0,"d":"$0"},{"$nulls":3},{"v":0,"d":"$0"},null,null,{"v":0,"d":"$0"},null,"ELECTRICAL",{"$nulls":4},0,0,0,0,0,0,0,null,{"v":0,"d":"$0.00"},{"v":0,"d":"$0.00"},{"v":0,"d":"$0.00"}]
[{"$nulls":29},{"v":0,"d":"$0"},null,null,{"v":0,"d":"$0"},null,null,{"v":0,"d":"$0"},null,null,{"v":0,"d":"$0"},{"$nulls":3},{"v":0,"d":"$0"},null,null,{"v":0,"d":"$0"},null,"ELECTRICAL",{"$nulls":4},0,0,0,0,0,0,0,null,{"v":0,"d":"$0.00"},{"v":0,"d":"$0.00"},{"v":0,"d":"$0.00"}]
[{"$nulls":29},{"v":0,"d":"$0"},null,null,{"v":0,"d":"$0"},null,null,{"v":0,"d":"$0"},null,null,{"v":0,"d":"$0"},{"$nulls":3},{"v":0,"d":"$0"},null,null,{"v":0,"d":"$0"},null,"ELECTRICAL",{"$nulls":4},0,0,0,0,0,0,0,null,{"v":0,"d":"$0.00"},{"v":0,"d":"$0.00"},{"v":0,"d":"$0.00"}]
[{"$nulls":29},{"v":0,"d":"$0"},null,null,{"v":0,"d":"$0"},null,null,{"v":0,"d":"$0"},null,null,{"v":0,"d":"$0"},{"$nulls":3},{"v":0,"d":"$0"},null,null,{"v":0,"d":"$0"},null,"ELECTRICAL",{"$nulls":4},0,0,0,0,0,0,0,null,{"v":0,"d":"$0.00"},{"v":0,"d":"$0.00"},{"v":0,"d":"$0.00"}]
[{"$nulls":29},{"v":0,"d":"$0"},null,null,{"v":0,"d":"$0"},null,null,{"v":0,"d":"$0"},null,null,{"v":0,"d":"$0"},{"$nulls":3},{"v":0,"d":"$0"},null,null,{"v":0,"d":"$0"},null,"ELECTRICAL",{"$nulls":4},0,0,0,0,0,0,0,null,{"v":0,"d":"$0.00"},{"v":0,"d":"$0.00"},{"v":0,"d":"$0.00"}]
[{"$nulls":29},{"v":0,"d":"$0"},null,null,{"v":0,"d":"$0"},null,null,{"v":0,"d":"$0"},null,null,{"v":0,"d":"$0"},{"$nulls":3},{"v":0,"d":"$0"},null,null,{"v":0,"d":"$0"},null,"ELECTRICAL",{"$nulls":4},0,0,0,0,{"$f":"SUM(BA1116:BC1116)","v":0},0,0,null,{"v":0,"d":"$0.00"},{"v":0,"d":"$0.00"},{"v":0,"d":"$0.00"}]
[{"$nulls":29},{"v":0,"d":"$0"},null,null,{"v":0,"d":"$0"},null,null,{"v":0,"d":"$0"},null,null,{"v":0,"d":"$0"},{"$nulls":3},{"v":0,"d":"$0"},null,null,{"v":0,"d":"$0"},null,"ELECTRICAL",{"$nulls":4},0,0,0,0,{"$f":"SUM(BA1117:BC1117)","v":0},0,0,null,{"v":0,"d":"$0.00"},{"v":0,"d":"$0.00"},{"v":0,"d":"$0.00"}]
[{"$nulls":47},"ELECTRICAL",{"$nulls":4},{"$f":"BA1077","v":{"v":0,"d":"$0"}},{"$f":"BB1077","v":{"v":1396.3500000000001,"d":"$1,396"}},{"$f":"BC1077","v":{"v":900,"d":"$900"}},{"$f":"BD1077","v":{"v":0,"d":"$0"}},{"$f":"BE1077","v":{"v":2296.35,"d":"$2,296"}}]
[{"$nulls":28},{"$f":"CONCATENATE(D1077,\" \",\"TOTAL\")","v":"ELECTRICAL TOTAL"},{"$f":"SUBTOTAL(9,AD1078:AD1118)","v":{"v":0,"d":"$0"}},null,null,{"$f":"SUBTOTAL(9,AG1078:AG1118)","v":{"v":1396.3500000000001,"d":"$1,396"}},null,null,{"$f":"SUBTOTAL(9,AJ1078:AJ1118)","v":{"v":900,"d":"$900"}},null,null,{"$f":"SUBTOTAL(9,AM1078:AM1118)","v":{"v":0,"d":"$0"}},{"$nulls":3},{"$f":"SUBTOTAL(9,AQ1078:AQ1118)","v":{"v":2296.35,"d":"$2,296"}},null,null,{"$f":"SUM(AT1075:AT1110)","v":{"$error":"#REF!"}},null,"ELECTRICAL",{"$nulls":4},{"$f":"BA1077","v":0},{"$f":"BB1077","v":1396.3500000000001},{"$f":"BC1077","v":900},{"$f":"BD1077","v":0},{"$f":"BE1077","v":2296.35},{"$f":"SUM(BF1077:BF1118)","v":4592.7},{"$f":"SUM(BG1077:BG1118)","v":0},null,{"$f":"SUM(BI1078:BI1118)","v":0},{"$f":"SUM(BJ1078:BJ1118)","v":0},{"$f":"SUM(BK1078:BK1118)","v":0}]
[{"$nulls":47},"ELECTRICAL",{"$nulls":4},{"$f":"BA1077","v":{"v":0,"d":"$0"}},{"$f":"BB1077","v":{"v":1396.3500000000001,"d":"$1,396"}},{"$f":"BC1077","v":{"v":900,"d":"$900"}},{"$f":"BD1077","v":{"v":0,"d":"$0"}},{"$f":"BE1077","v":{"v":2296.35,"d":"$2,296"}}]
[{"$nulls":47},"ELECTRICAL",{"$nulls":4},{"$f":"BA1119","v":0},{"$f":"BB1119","v":1396.3500000000001},{"$f":"BC1119","v":900},0,2296.35,4592.7,0]
["Hidden",null,null,{"$f":"T(AJ82)","v":"MISCELLANEOUS"},{"$nulls":25},{"$f":"AD1164","v":{"v":0,"d":"$0"}},null,null,{"$f":"AG1164","v":{"v":0,"d":"$0"}},null,null,{"$f":"AJ1164","v":{"v":0,"d":"$0"}},null,null,{"$f":"AM1164","v":{"v":0,"d":"$0"}},{"$nulls":3},{"$f":"AQ1164","v":{"v":0,"d":"$0"}},null,null,{"$f":"SUM(#REF!)","v":{"$error":"#REF!"}},null,{"$f":"$D$1122","v":"MISCELLANEOUS"},{"$nulls":4},{"$f":"SUM(BA1123:BA1162)","v":0},{"$f":"SUM(BB1123:BB1162)","v":0},{"$f":"SUM(BC1123:BC1162)","v":0},{"$f":"SUM(BD1123:BD1162)","v":0},{"$f":"SUM(BE1123:BE1162)","v":0},{"$f":"AQ1122","v":0},{"$f":"AM1122","v":0},null,{"$f":"AD1122","v":{"v":0,"d":"$0.00"}},{"$f":"AM1122","v":{"v":0,"d":"$0.00"}},{"$f":"BJ1122+BI1122","v":{"v":0,"d":"$0.00"}}]
[{"$nulls":3},"Bath accessories, towel bar, toilet disp, ea bathroom",{"$nulls":14},"ea","ea",{"v":50,"d":"50.00"},null,null,{"v":50,"d":"50.00"},null,{"v":50,"d":"50.00"},{"$nulls":3},{"$f":"((P1123*U1123)-AM1123)","v":{"v":0,"d":"$0"}},null,null,{"$f":"P1123*X1123*(1+$Y$85)","v":{"v":0,"d":"$0"}},null,null,{"$f":"P1123*AA1123","v":{"v":0,"d":"$0"}},null,null,{"$f":"IF($B1123=\"x\",$P1123*$U1123,0)","v":{"v":0,"d":"$0"}},{"$nulls":3},{"$f":"SUM(AD1123:AL1123)","v":{"v":0,"d":"$0"}},null,null,{"$f":"SUM(AD1123:AL1123)","v":{"v":0,"d":"$0"}},null,"MISCELLANEOUS","Bathrooms",{"$nulls":3},{"$f":"AD1123","v":0},{"$f":"AG1123","v":0},{"$f":"AJ1123","v":0},{"$f":"IF(B1123=\"x\",1,0)","v":0},{"$f":"SUM(BA1123:BC1123)","v":0},0,0,null,{"$f":"AD1123","v":{"v":0,"d":"$0.00"}},{"$f":"AM1123","v":{"v":0,"d":"$0.00"}},{"$f":"BJ1123+BI1123","v":{"v":0,"d":"$0.00"}}]
[{"$nulls":3},"Bathroom mirrors",{"$nulls":14},"ea","ea",{"v":25,"d":"25.00"},null,null,{"v":70,"d":"70.00"},null,{"v":70,"d":"70.00"},{"$nulls":3},{"v":0,"d":"$0"},null,null,{"$f":"P1124*X1124*(1+$Y$85)","v":{"v":0,"d":"$0"}},null,null,{"v":0,"d":"$0"},null,null,{"v":0,"d":"$0"},{"$nulls":3},{"v":0,"d":"$0"},null,null,{"v":0,"d":"$0"},null,"MISCELLANEOUS","Bathrooms",{"$nulls":3},0,{"$f":"AG1124","v":0},{"$f":"AJ1124","v":0},0,{"$f":"SUM(BA1124:BC1124)","v":0},0,0,null,{"$f":"AD1124","v":{"v":0,"d":"$0.00"}},{"v":0,"d":"$0.00"},{"$f":"BJ1124+BI1124","v":{"v":0,"d":"$0.00"}}]
[{"$nulls":3},"Window coverings, each window",{"$nulls":14},"ea","ea",{"v":25,"d":"25.00"},null,null,{"v":50,"d":"50.00"},null,{"v":50,"d":"50.00"},{"$nulls":3},{"v":0,"d":"$0"},null,null,{"v":0,"d":"$0"},null,null,{"v":0,"d":"$0"},null,null,{"v":0,"d":"$0"},{"$nulls":3},{"v":0,"d":"$0"},null,null,{"v":0,"d":"$0"},null,"MISCELLANEOUS",{"$nulls":4},0,0,0,0,0,0,0,null,{"v":0,"d":"$0.00"},{"v":0,"d":"$0.00"},{"v":0,"d":"$0.00"}]
[{"$nulls":29},{"v":0,"d":"$0"},null,null,{"v":0,"d":"$0"},null,null,{"v":0,"d":"$0"},null,null,{"v":0,"d":"$0"},{"$nulls":3},{"v":0,"d":"$0"},null,null,{"v":0,"d":"$0"},null,"MISCELLANEOUS",{"$nulls":4},0,0,0,0,0,0,0,null,{"v":0,"d":"$0.00"},{"v":0,"d":"$0.00"},{"v":0,"d":"$0.00"}]
[{"$nulls":29},{"v":0,"d":"$0"},null,null,{"v":0,"d":"$0"},null,null,{"v":0,"d":"$0"},null,null,{"v":0,"d":"$0"},{"$nulls":3},{"v":0,"d":"$0"},null,null,{"v":0,"d":"$0"},null,"MISCELLANEOUS",{"$nulls":4},0,0,0,0,0,0,0,null,{"v":0,"d":"$0.00"},{"v":0,"d":"$0.00"},{"v":0,"d":"$0.00"}]
[{"$nulls":29},{"v":0,"d":"$0"},null,null,{"v":0,"d":"$0"},null,null,{"v":0,"d":"$0"},null,null,{"v":0,"d":"$0"},{"$nulls":3},{"v":0,"d":"$0"},null,null,{"v":0,"d":"$0"},null,"MISCELLANEOUS",{"$nulls":4},0,0,0,0,0,0,0,null,{"v":0,"d":"$0.00"},{"v":0,"d":"$0.00"},{"v":0,"d":"$0.00"}]
[{"$nulls":29},{"v":0,"d":"$0"},null,null,{"v":0,"d":"$0"},null,null,{"v":0,"d":"$0"},null,null,{"v":0,"d":"$0"},{"$nulls":3},{"v":0,"d":"$0"},null,null,{"v":0,"d":"$0"},null,"MISCELLANEOUS",{"$nulls":4},0,0,0,0,0,0,0,null,{"v":0,"d":"$0.00"},{"v":0,"d":"$0.00"},{"v":0,"d":"$0.00"}]
[{"$nulls":29},{"v":0,"d":"$0"},null,null,{"v":0,"d":"$0"},null,null,{"v":0,"d":"$0"},null,null,{"v":0,"d":"$0"},{"$nulls":3},{"v":0,"d":"$0"},null,null,{"v":0,"d":"$0"},null,"MISCELLANEOUS",{"$nulls":4},0,0,0,0,0,0,0,null,{"v":0,"d":"$0.00"},{"v":0,"d":"$0.00"},{"v":0,"d":"$0.00"}]
[{"$nulls":29},{"v":0,"d":"$0"},null,null,{"v":0,"d":"$0"},null,null,{"v":0,"d":"$0"},null,null,{"v":0,"d":"$0"},{"$nulls":3},{"v":0,"d":"$0"},null,null,{"v":0,"d":"$0"},null,"MISCELLANEOUS",{"$nulls":4},0,0,0,0,0,0,0,null,{"v":0,"d":"$0.00"},{"v":0,"d":"$0.00"},{"v":0,"d":"$0.00"}]
[{"$nulls":29},{"v":0,"d":"$0"},null,null,{"v":0,"d":"$0"},null,null,{"v":0,"d":"$0"},null,null,{"v":0,"d":"$0"},{"$nulls":3},{"v":0,"d":"$0"},null,null,{"v":0,"d":"$0"},null,"MISCELLANEOUS",{"$nulls":4},0,0,0,0,0,0,0,null,{"v":0,"d":"$0.00"},{"v":0,"d":"$0.00"},{"v":0,"d":"$0.00"}]
[{"$nulls":29},{"v":0,"d":"$0"},null,null,{"v":0,"d":"$0"},null,null,{"v":0,"d":"$0"},null,null,{"v":0,"d":"$0"},{"$nulls":3},{"v":0,"d":"$0"},null,null,{"v":0,"d":"$0"},null,"MISCELLANEOUS",{"$nulls":4},0,0,0,0,0,0,0,null,{"v":0,"d":"$0.00"},{"v":0,"d":"$0.00"},{"v":0,"d":"$0.00"}]
[{"$nulls":29},{"v":0,"d":"$0"},null,null,{"v":0,"d":"$0"},null,null,{"v":0,"d":"$0"},null,null,{"v":0,"d":"$0"},{"$nulls":3},{"v":0,"d":"$0"},null,null,{"v":0,"d":"$0"},null,"MISCELLANEOUS",{"$nulls":4},0,0,0,0,0,0,0,null,{"v":0,"d":"$0.00"},{"v":0,"d":"$0.00"},{"v":0,"d":"$0.00"}]
[{"$nulls":29},{"v":0,"d":"$0"},null,null,{"v":0,"d":"$0"},null,null,{"v":0,"d":"$0"},null,null,{"v":0,"d":"$0"},{"$nulls":3},{"v":0,"d":"$0"},null,null,{"v":0,"d":"$0"},null,"MISCELLANEOUS",{"$nulls":4},0,0,0,0,0,0,0,null,{"v":0,"d":"$0.00"},{"v":0,"d":"$0.00"},{"v":0,"d":"$0.00"}]
[{"$nulls":29},{"v":0,"d":"$0"},null,null,{"v":0,"d":"$0"},null,null,{"v":0,"d":"$0"},null,null,{"v":0,"d":"$0"},{"$nulls":3},{"v":0,"d":"$0"},null,null,{"v":0,"d":"$0"},null,"MISCELLANEOUS",{"$nulls":4},0,0,0,0,0,0,0,null,{"v":0,"d":"$0.00"},{"v":0,"d":"$0.00"},{"v":0,"d":"$0.00"}]
[{"$nulls":29},{"v":0,"d":"$0"},null,null,{"v":0,"d":"$0"},null,null,{"v":0,"d":"$0"},null,null,{"v":0,"d":"$0"},{"$nulls":3},{"v":0,"d":"$0"},null,null,{"v":0,"d":"$0"},null,"MISCELLANEOUS",{"$nulls":4},0,0,0,0,0,0,0,null,{"v":0,"d":"$0.00"},{"v":0,"d":"$0.00"},{"v":0,"d":"$0.00"}]
[{"$nulls":29},{"v":0,"d":"$0"},null,null,{"v":0,"d":"$0"},null,null,{"v":0,"d":"$0"},null,null,{"v":0,"d":"$0"},{"$nulls":3},{"v":0,"d":"$0"},null,null,{"v":0,"d":"$0"},null,"MISCELLANEOUS",{"$nulls":4},0,0,0,0,0,0,0,null,{"v":0,"d":"$0.00"},{"v":0,"d":"$0.00"},{"v":0,"d":"$0.00"}]
[{"$nulls":29},{"v":0,"d":"$0"},null,null,{"v":0,"d":"$0"},null,null,{"v":0,"d":"$0"},null,null,{"v":0,"d":"$0"},{"$nulls":3},{"v":0,"d":"$0"},null,null,{"v":0,"d":"$0"},null,"MISCELLANEOUS",{"$nulls":4},0,0,0,0,0,0,0,null,{"v":0,"d":"$0.00"},{"v":0,"d":"$0.00"},{"v":0,"d":"$0.00"}]
[{"$nulls":29},{"v":0,"d":"$0"},null,null,{"v":0,"d":"$0"},null,null,{"v":0,"d":"$0"},null,null,{"v":0,"d":"$0"},{"$nulls":3},{"v":0,"d":"$0"},null,null,{"v":0,"d":"$0"},null,"MISCELLANEOUS",{"$nulls":4},0,0,0,0,0,0,0,null,{"v":0,"d":"$0.00"},{"v":0,"d":"$0.00"},{"v":0,"d":"$0.00"}]
[{"$nulls":29},{"v":0,"d":"$0"},null,null,{"v":0,"d":"$0"},null,null,{"v":0,"d":"$0"},null,null,{"v":0,"d":"$0"},{"$nulls":3},{"v":0,"d":"$0"},null,null,{"v":0,"d":"$0"},null,"MISCELLANEOUS",{"$nulls":4},0,0,0,0,{"$f":"SUM(BA1141:BC1141)","v":0},0,0,null,{"v":0,"d":"$0.00"},{"v":0,"d":"$0.00"},{"v":0,"d":"$0.00"}]
[{"$nulls":29},{"v":0,"d":"$0"},null,null,{"v":0,"d":"$0"},null,null,{"v":0,"d":"$0"},null,null,{"v":0,"d":"$0"},{"$nulls":3},{"v":0,"d":"$0"},null,null,{"v":0,"d":"$0"},null,"MISCELLANEOUS",{"$nulls":4},0,0,0,0,{"$f":"SUM(BA1142:BC1142)","v":0},0,0,null,{"v":0,"d":"$0.00"},{"v":0,"d":"$0.00"},{"v":0,"d":"$0.00"}]
[{"$nulls":29},{"$f":"((P1143*U1143)-AM1143)","v":{"v":0,"d":"$0"}},null,null,{"v":0,"d":"$0"},null,null,{"$f":"P1143*AA1143","v":{"v":0,"d":"$0"}},null,null,{"v":0,"d":"$0"},{"$nulls":3},{"$f":"SUM(AD1143:AL1143)","v":{"v":0,"d":"$0"}},null,null,{"$f":"SUM(AD1143:AL1143)","v":{"v":0,"d":"$0"}},null,"MISCELLANEOUS",{"$nulls":4},{"$f":"AD1143","v":0},{"$f":"AG1143","v":0},{"$f":"AJ1143","v":0},{"$f":"IF(B1143=\"x\",1,0)","v":0},{"$f":"SUM(BA1143:BC1143)","v":0},{"$f":"AQ1143","v":0},{"$f":"AM1143","v":0},null,{"$f":"AD1143","v":{"v":0,"d":"$0.00"}},{"$f":"AM1143","v":{"v":0,"d":"$0.00"}},{"$f":"BJ1143+BI1143","v":{"v":0,"d":"$0.00"}}]
[{"$nulls":29},{"v":0,"d":"$0"},null,null,{"v":0,"d":"$0"},null,null,{"v":0,"d":"$0"},null,null,{"v":0,"d":"$0"},{"$nulls":3},{"v":0,"d":"$0"},null,null,{"v":0,"d":"$0"},null,"MISCELLANEOUS",{"$nulls":4},0,{"$f":"AG1144","v":0},{"$f":"AJ1144","v":0},0,{"$f":"SUM(BA1144:BC1144)","v":0},0,0,null,{"$f":"AD1144","v":{"v":0,"d":"$0.00"}},{"v":0,"d":"$0.00"},{"$f":"BJ1144+BI1144","v":{"v":0,"d":"$0.00"}}]
[{"$nulls":29},{"v":0,"d":"$0"},null,null,{"v":0,"d":"$0"},null,null,{"v":0,"d":"$0"},null,null,{"v":0,"d":"$0"},{"$nulls":3},{"v":0,"d":"$0"},null,null,{"v":0,"d":"$0"},null,"MISCELLANEOUS",{"$nulls":4},0,0,0,0,0,0,0,null,{"v":0,"d":"$0.00"},{"v":0,"d":"$0.00"},{"v":0,"d":"$0.00"}]
[{"$nulls":29},{"v":0,"d":"$0"},null,null,{"v":0,"d":"$0"},null,null,{"v":0,"d":"$0"},null,null,{"v":0,"d":"$0"},{"$nulls":3},{"v":0,"d":"$0"},null,null,{"v":0,"d":"$0"},null,"MISCELLANEOUS",{"$nulls":4},0,0,0,0,0,0,0,null,{"v":0,"d":"$0.00"},{"v":0,"d":"$0.00"},{"v":0,"d":"$0.00"}]
[{"$nulls":29},{"v":0,"d":"$0"},null,null,{"v":0,"d":"$0"},null,null,{"v":0,"d":"$0"},null,null,{"v":0,"d":"$0"},{"$nulls":3},{"v":0,"d":"$0"},null,null,{"v":0,"d":"$0"},null,"MISCELLANEOUS",{"$nulls":4},0,0,0,0,0,0,0,null,{"v":0,"d":"$0.00"},{"v":0,"d":"$0.00"},{"v":0,"d":"$0.00"}]
[{"$nulls":29},{"v":0,"d":"$0"},null,null,{"v":0,"d":"$0"},null,null,{"v":0,"d":"$0"},null,null,{"v":0,"d":"$0"},{"$nulls":3},{"v":0,"d":"$0"},null,null,{"v":0,"d":"$0"},null,"MISCELLANEOUS",{"$nulls":4},0,0,0,0,0,0,0,null,{"v":0,"d":"$0.00"},{"v":0,"d":"$0.00"},{"v":0,"d":"$0.00"}]
[{"$nulls":29},{"v":0,"d":"$0"},null,null,{"v":0,"d":"$0"},null,null,{"v":0,"d":"$0"},null,null,{"v":0,"d":"$0"},{"$nulls":3},{"v":0,"d":"$0"},null,null,{"v":0,"d":"$0"},null,"MISCELLANEOUS",{"$nulls":4},0,0,0,0,0,0,0,null,{"v":0,"d":"$0.00"},{"v":0,"d":"$0.00"},{"v":0,"d":"$0.00"}]
[{"$nulls":29},{"v":0,"d":"$0"},null,null,{"v":0,"d":"$0"},null,null,{"v":0,"d":"$0"},null,null,{"v":0,"d":"$0"},{"$nulls":3},{"v":0,"d":"$0"},null,null,{"v":0,"d":"$0"},null,"MISCELLANEOUS",{"$nulls":4},0,0,0,0,0,0,0,null,{"v":0,"d":"$0.00"},{"v":0,"d":"$0.00"},{"v":0,"d":"$0.00"}]
[{"$nulls":29},{"v":0,"d":"$0"},null,null,{"v":0,"d":"$0"},null,null,{"v":0,"d":"$0"},null,null,{"v":0,"d":"$0"},{"$nulls":3},{"v":0,"d":"$0"},null,null,{"v":0,"d":"$0"},null,"MISCELLANEOUS",{"$nulls":4},0,0,0,0,0,0,0,null,{"v":0,"d":"$0.00"},{"v":0,"d":"$0.00"},{"v":0,"d":"$0.00"}]
[{"$nulls":29},{"v":0,"d":"$0"},null,null,{"v":0,"d":"$0"},null,null,{"v":0,"d":"$0"},null,null,{"v":0,"d":"$0"},{"$nulls":3},{"v":0,"d":"$0"},null,null,{"v":0,"d":"$0"},null,"MISCELLANEOUS",{"$nulls":4},0,0,0,0,0,0,0,null,{"v":0,"d":"$0.00"},{"v":0,"d":"$0.00"},{"v":0,"d":"$0.00"}]
[{"$nulls":29},{"v":0,"d":"$0"},null,null,{"v":0,"d":"$0"},null,null,{"v":0,"d":"$0"},null,null,{"v":0,"d":"$0"},{"$nulls":3},{"v":0,"d":"$0"},null,null,{"v":0,"d":"$0"},null,"MISCELLANEOUS",{"$nulls":4},0,0,0,0,0,0,0,null,{"v":0,"d":"$0.00"},{"v":0,"d":"$0.00"},{"v":0,"d":"$0.00"}]
[{"$nulls":29},{"v":0,"d":"$0"},null,null,{"v":0,"d":"$0"},null,null,{"v":0,"d":"$0"},null,null,{"v":0,"d":"$0"},{"$nulls":3},{"v":0,"d":"$0"},null,null,{"v":0,"d":"$0"},null,"MISCELLANEOUS",{"$nulls":4},0,0,0,0,0,0,0,null,{"v":0,"d":"$0.00"},{"v":0,"d":"$0.00"},{"v":0,"d":"$0.00"}]
[{"$nulls":29},{"v":0,"d":"$0"},null,null,{"v":0,"d":"$0"},null,null,{"v":0,"d":"$0"},null,null,{"v":0,"d":"$0"},{"$nulls":3},{"v":0,"d":"$0"},null,null,{"v":0,"d":"$0"},null,"MISCELLANEOUS",{"$nulls":4},0,0,0,0,0,0,0,null,{"v":0,"d":"$0.00"},{"v":0,"d":"$0.00"},{"v":0,"d":"$0.00"}]
[{"$nulls":29},{"v":0,"d":"$0"},null,null,{"v":0,"d":"$0"},null,null,{"v":0,"d":"$0"},null,null,{"v":0,"d":"$0"},{"$nulls":3},{"v":0,"d":"$0"},null,null,{"v":0,"d":"$0"},null,"MISCELLANEOUS",{"$nulls":4},0,0,0,0,0,0,0,null,{"v":0,"d":"$0.00"},{"v":0,"d":"$0.00"},{"v":0,"d":"$0.00"}]
[{"$nulls":29},{"v":0,"d":"$0"},null,null,{"v":0,"d":"$0"},null,null,{"v":0,"d":"$0"},null,null,{"v":0,"d":"$0"},{"$nulls":3},{"v":0,"d":"$0"},null,null,{"v":0,"d":"$0"},null,"MISCELLANEOUS",{"$nulls":4},0,0,0,0,0,0,0,null,{"v":0,"d":"$0.00"},{"v":0,"d":"$0.00"},{"v":0,"d":"$0.00"}]
[{"$nulls":29},{"v":0,"d":"$0"},null,null,{"v":0,"d":"$0"},null,null,{"v":0,"d":"$0"},null,null,{"v":0,"d":"$0"},{"$nulls":3},{"v":0,"d":"$0"},null,null,{"v":0,"d":"$0"},null,"MISCELLANEOUS",{"$nulls":4},0,0,0,0,0,0,0,null,{"v":0,"d":"$0.00"},{"v":0,"d":"$0.00"},{"v":0,"d":"$0.00"}]
[{"$nulls":29},{"v":0,"d":"$0"},null,null,{"v":0,"d":"$0"},null,null,{"v":0,"d":"$0"},null,null,{"v":0,"d":"$0"},{"$nulls":3},{"v":0,"d":"$0"},null,null,{"v":0,"d":"$0"},null,"MISCELLANEOUS",{"$nulls":4},0,0,0,0,0,0,0,null,{"v":0,"d":"$0.00"},{"v":0,"d":"$0.00"},{"v":0,"d":"$0.00"}]
[{"$nulls":29},{"v":0,"d":"$0"},null,null,{"v":0,"d":"$0"},null,null,{"v":0,"d":"$0"},null,null,{"v":0,"d":"$0"},{"$nulls":3},{"v":0,"d":"$0"},null,null,{"v":0,"d":"$0"},null,"MISCELLANEOUS",{"$nulls":4},0,0,0,0,0,0,0,null,{"v":0,"d":"$0.00"},{"v":0,"d":"$0.00"},{"v":0,"d":"$0.00"}]
[{"$nulls":29},{"v":0,"d":"$0"},null,null,{"v":0,"d":"$0"},null,null,{"v":0,"d":"$0"},null,null,{"v":0,"d":"$0"},{"$nulls":3},{"v":0,"d":"$0"},null,null,{"v":0,"d":"$0"},null,"MISCELLANEOUS",{"$nulls":4},0,0,0,0,{"$f":"SUM(BA1161:BC1161)","v":0},0,0,null,{"v":0,"d":"$0.00"},{"v":0,"d":"$0.00"},{"v":0,"d":"$0.00"}]
[{"$nulls":29},{"v":0,"d":"$0"},null,null,{"v":0,"d":"$0"},null,null,{"v":0,"d":"$0"},null,null,{"v":0,"d":"$0"},{"$nulls":3},{"v":0,"d":"$0"},null,null,{"v":0,"d":"$0"},null,"MISCELLANEOUS",{"$nulls":4},0,0,0,0,{"$f":"SUM(BA1162:BC1162)","v":0},0,0,null,{"v":0,"d":"$0.00"},{"v":0,"d":"$0.00"},{"v":0,"d":"$0.00"}]
[{"$nulls":47},"MISCELLANEOUS",{"$nulls":4},{"$f":"BA1122","v":{"v":0,"d":"$0"}},{"$f":"BB1122","v":{"v":0,"d":"$0"}},{"$f":"BC1122","v":{"v":0,"d":"$0"}},{"$f":"BD1122","v":{"v":0,"d":"$0"}},{"$f":"BE1122","v":{"v":0,"d":"$0"}}]
[{"$nulls":28},{"$f":"CONCATENATE(D1122,\" \",\"TOTAL\")","v":"MISCELLANEOUS TOTAL"},{"$f":"SUBTOTAL(9,AD1123:AD1163)","v":{"v":0,"d":"$0"}},null,null,{"$f":"SUBTOTAL(9,AG1123:AG1163)","v":{"v":0,"d":"$0"}},null,null,{"$f":"SUBTOTAL(9,AJ1123:AJ1163)","v":{"v":0,"d":"$0"}},null,null,{"$f":"SUBTOTAL(9,AM1123:AM1163)","v":{"v":0,"d":"$0"}},{"$nulls":3},{"$f":"SUBTOTAL(9,AQ1123:AQ1163)","v":{"v":0,"d":"$0"}},null,null,{"$f":"SUM(AT1120:AT1155)","v":{"$error":"#REF!"}},null,"MISCELLANEOUS",{"$nulls":4},{"$f":"BA1122","v":0},{"$f":"BB1122","v":0},{"$f":"BC1122","v":0},{"$f":"BD1122","v":0},{"$f":"BE1122","v":0},{"$f":"SUM(BF1122:BF1163)","v":0},{"$f":"SUM(BG1122:BG1163)","v":0},null,{"$f":"SUM(BI1123:BI1163)","v":0},{"$f":"SUM(BJ1123:BJ1163)","v":0},{"$f":"SUM(BK1123:BK1163)","v":0}]
[{"$nulls":47},"MISCELLANEOUS",{"$nulls":4},{"$f":"BA1122","v":{"v":0,"d":"$0"}},{"$f":"BB1122","v":{"v":0,"d":"$0"}},{"$f":"BC1122","v":{"v":0,"d":"$0"}},{"$f":"BD1122","v":{"v":0,"d":"$0"}},{"$f":"BE1122","v":{"v":0,"d":"$0"}}]
[null,"© 2016 by Houseflippingspreadsheet.com. All rights reserved",{"$nulls":58},{"$f":"SUM(BI129+BI174+BI219+BI264+BI309+BI354+BI399+BI444+BI489+BI534+BI579+BI624+BI669+BI714+BI759+BI849+BI804+BI894+BI939+BI984+BI1029+BI1074+BI1119+BI1164)","v":{"v":20972.5,"d":"$20,972.50"}},{"$f":"SUM(BJ129+BJ174+BJ219+BJ264+BJ309+BJ354+BJ399+BJ444+BJ489+BJ534+BJ579+BJ624+BJ669+BJ714+BJ759+BJ849+BJ804+BJ894+BJ939+BJ984+BJ1029+BJ1074+BJ1119+BJ1164)","v":{"v":0,"d":"$0.00"}},{"$f":"SUM(BK129+BK174+BK219+BK264+BK309+BK354+BK399+BK444+BK489+BK534+BK579+BK624+BK669+BK714+BK759+BK849+BK804+BK894+BK939+BK984+BK1029+BK1074+BK1119+BK1164)","v":{"v":20972.5,"d":"$20,972.50"}}]
[{"$nulls":47},"Lists"]
[]
[null,null,"Estimating Checklist",{"$nulls":44},"Units"]
[]
[{"$nulls":4},"Did you include all components (Scopes of Work, Work Items, and correct Quantities) in your Estimate?",{"$nulls":42},"ls"]
[]
[{"$nulls":4},"Did you double check your quantities, prices & figures for accuracy?",{"$nulls":42},"ea"]
[]
[{"$nulls":4},"Did you adjust your unit prices to fit your specific quality and level of finish?",{"$nulls":42},"lf"]
[]
[{"$nulls":4},"Did you adjust your unit prices for the size of the project ('economies of scale')?",{"$nulls":42},"sf"]
[]
[{"$nulls":4},"Did you adjust your unit prices to fit your specific location? Use the Location Multipliers as necessary.",{"$nulls":42},"sy"]
[]
[{"$nulls":4},"Will your project be requiring Building Permits?  (Generally, permits can cost 1 to 2% of construction costs)",{"$nulls":42},"sq"]
[]
[{"$nulls":4},"Are you managing the project yourself or hiring a General Contractor?  If hiring a GC did you factor in Contractor Overhead & Profit? (10 to 15%)",{"$nulls":42},"sq"]
[]
[{"$nulls":4},"Did you include an Estimating Contingency to cover any estimating errors, omissions & unforseen issues?  (varies depending on construction knowledge and estimating experience, from 5% up to 25% may be required)",{"$nulls":42},"sq"]
[]
[{"$nulls":47},"hrs"]
[{"$nulls":47},"wk"]
[{"$nulls":47},"mo"]
[{"$nulls":47},"sheet"]
[{"$nulls":47},"gall"]
[null,"ls"]
[null,"ea"]
[null,"lf"]
[null,"sf"]
[null,"sy"]
[null,"cy",{"$nulls":62},"DIYED","SUBBED"]
[null,"sq",{"$nulls":58},{"$f":"CONCATENATE(N75,\" \",\"BUDGET\")","v":"GENERAL CONDITIONS BUDGET"},null,null,{"$f":"N75","v":"GENERAL CONDITIONS"},{"$f":"BI129","v":80},{"$f":"BK129","v":80}]
[null,"hrs",{"$nulls":58},"DEMOLITION BUDGET",null,null,{"$f":"N76","v":"DEMOLITION"},{"$f":"BI174","v":1600},{"$f":"BK174","v":1600}]
[null,"week",{"$nulls":58},"STRUCTURAL CONCRETE BUDGET",null,null,"STRUCTURAL CONCRETE",{"$f":"BI219","v":0},{"$f":"BK219","v":0}]
[null,"month",{"$nulls":58},"CONCRETE & FLATWORK BUDGET",null,null,"CONCRETE & FLATWORK",{"$f":"BI264","v":0},{"$f":"BK264","v":0}]
[null,"sheet",{"$nulls":58},"MASONRY BUDGET",null,null,"MASONRY",{"$f":"BI309","v":0},{"$f":"BK309","v":0}]
[null,"gallon",{"$nulls":58},"SIDING BUDGET",null,null,"SIDING",{"$f":"BI354","v":0},{"$f":"BK354","v":0}]
[{"$nulls":60},"DECKING AND PATIOS BUDGET",null,null,"DECKING AND PATIOS",{"$f":"BI399","v":750},{"$f":"BK399","v":750}]
[{"$nulls":60},"ROOFING BUDGET",null,null,"ROOFING",{"$f":"BI444","v":3000},{"$f":"BK444","v":3000}]
[{"$nulls":60},{"$f":"CONCATENATE(Y75,\" \",\"BUDGET\")","v":"EXTERIOR DOORS & WINDOWS BUDGET"},null,null,{"$f":"Y75","v":"EXTERIOR DOORS & WINDOWS"},{"$f":"BI489","v":1625},{"$f":"BK489","v":1625}]
[{"$nulls":60},"GARAGE DOORS BUDGET",null,null,{"$f":"Y76","v":"GARAGE DOORS"},{"$f":"BI534","v":400},{"$f":"BK534","v":400}]
[{"$nulls":60},"LANDSCAPING BUDGET",null,null,"LANDSCAPING",{"$f":"BI579","v":250},{"$f":"BK579","v":250}]
[{"$nulls":60},"MISC. EXTERIOR ITEMS BUDGET",null,null,"MISC. EXTERIOR ITEMS",{"$f":"BI624","v":225},{"$f":"BK624","v":225}]
[{"$nulls":60},"FRAMING & DRYWALL BUDGET",null,null,"FRAMING & DRYWALL",{"$f":"BI669","v":750},{"$f":"BK669","v":750}]
[{"$nulls":60},"CABINETS & COUNTERTOPS BUDGET",null,null,"CABINETS & COUNTERTOPS",{"$f":"BI714","v":1950},{"$f":"BK714","v":1950}]
[{"$nulls":60},"DOORS & TRIM BUDGET",null,null,"DOORS & TRIM",{"$f":"BI759","v":1125},{"$f":"BK759","v":1125}]
[{"$nulls":60},"CARPET & RESILIENT BUDGET",null,null,"CARPET & RESILIENT",{"$f":"BI804","v":900},{"$f":"BK804","v":900}]
[{"$nulls":60},{"$f":"CONCATENATE(AJ75,\" \",\"BUDGET\")","v":"HARDWOOD FLOORING BUDGET"},null,null,{"$f":"AJ75","v":"HARDWOOD FLOORING"},{"$f":"BI849","v":1425},{"$f":"BK849","v":1425}]
[{"$nulls":60},"TILING BUDGET",null,null,{"$f":"AJ76","v":"TILING"},{"$f":"BI894","v":1625},{"$f":"BK894","v":1625}]
[{"$nulls":60},"PAINTING BUDGET",null,null,"PAINTING",{"$f":"BI939","v":4000},{"$f":"BK939","v":4000}]
[{"$nulls":60},"APPLIANCES BUDGET",null,null,"APPLIANCES",{"$f":"BI984","v":0},{"$f":"BK984","v":0}]
[{"$nulls":60},"PLUMBING BUDGET",null,null,"PLUMBING",{"$f":"BI1029","v":1105},{"$f":"BK1029","v":1105}]
[{"$nulls":60},"HVAC BUDGET",null,null,"HVAC",{"$f":"BI1074","v":162.5},{"$f":"BK1074","v":162.5}]
[{"$nulls":60},"ELECTRICAL BUDGET",null,null,"ELECTRICAL",{"$f":"BI1119","v":0},{"$f":"BK1119","v":0}]
[{"$nulls":60},"MISCELLANEOUS BUDGET",null,null,"MISCELLANEOUS",{"$f":"BI1164","v":0},{"$f":"BK1164","v":0}]
[{"$nulls":64},{"$f":"SUM(BM1198:BM1221)","v":20972.5},{"$f":"SUM(BN1198:BN1221)","v":20972.5}]

{"sheet":"4 OFFERS","index":14,"n_rows":32,"n_cols":74,"rows_kept":32,"hidden":true,"merged":[[2,0,2,7],[2,8,2,20],[5,8,5,72],[7,18,8,26],[7,27,8,35],[7,36,8,44],[7,45,8,53],[7,54,8,62],[7,63,8,71],[12,18,12,26],[12,27,12,35],[12,36,12,44],[12,45,12,53],[12,54,12,62],[12,63,12,71],[13,9,13,17],[13,18,13,26],[13,27,13,35],[13,36,13,44],[13,45,13,53],[13,54,13,62],[13,63,13,71],[15,9,15,17],[15,18,15,26],[15,27,15,35],[15,36,15,44],[15,45,15,53],[15,54,15,62],[15,63,15,71],[17,9,17,17],[18,9,18,17],[18,18,18,26],[18,27,18,35],[18,36,18,44],[18,45,18,53],[18,54,18,62],[18,63,18,71],[19,9,19,17],[19,18,19,26],[19,27,19,35],[19,36,19,44],[19,45,19,53],[19,54,19,62],[19,63,19,71],[20,9,20,17],[20,18,20,26],[20,27,20,35],[20,36,20,44],[20,45,20,53],[20,54,20,62],[20,63,20,71],[21,9,21,17],[21,18,21,26],[21,27,21,35],[21,36,21,44],[21,45,21,53],[21,54,21,62],[21,63,21,71],[23,9,23,17],[23,18,23,26],[24,9,24,17],[24,18,24,26],[24,27,24,35],[24,36,24,44],[24,45,24,53],[24,54,24,62],[24,63,24,71],[25,9,25,17],[25,18,25,26],[25,27,25,35],[25,36,25,44],[25,45,25,53],[25,54,25,62],[25,63,25,71],[26,9,26,17],[26,18,26,26],[26,27,26,35],[26,36,26,44],[26,45,26,53],[26,54,26,62],[26,63,26,71],[28,9,28,17],[28,18,28,26],[28,27,28,35],[28,36,28,44],[28,45,28,53],[28,54,28,62],[28,63,28,71],[29,9,29,17],[29,18,29,26],[29,27,29,35],[29,36,29,44],[29,45,29,53],[29,54,29,62],[29,63,29,71],[30,9,30,17],[30,18,30,26],[30,27,30,35],[30,36,30,44],[30,45,30,53],[30,54,30,62],[30,63,30,71],[31,9,31,17],[31,18,31,26],[31,27,31,35],[31,36,31,44],[31,45,31,53],[31,54,31,62],[31,63,31,71]]}
[]
[]
[{"$nulls":8},"OFFER TRACKER"]
[]
[]
[{"$nulls":8},"Offer Tracker"]
[]
[{"$nulls":18},"BASELINE OFFER",{"$nulls":8},"OFFER 1",{"$nulls":8},"OFFER 2",{"$nulls":8},"OFFER 3",{"$nulls":8},"OFFER 4",{"$nulls":8},"OFFER 5"]
[]
[]
[]
[]
[{"$nulls":18},"Maximum Purchase Price",{"$nulls":8},"Input Offer 1 Below:",{"$nulls":8},"Input Offer 2 Below:",{"$nulls":8},"Input Offer 3 Below:",{"$nulls":8},"Input Offer 4 Below:",{"$nulls":8},"Input Offer 5 Below:"]
[{"$nulls":9},"Offer Price",{"$nulls":8},{"$f":"Purchase_Price_Result","v":{"v":61836.912500000006,"d":"$61,837"}},{"$nulls":54},"<- Input Offer Amounts"]
[]
[{"$nulls":9},"After Repair Value:",{"$nulls":8},{"$f":"AFTER_REPAIR_VALUE_ESTIMATED","v":{"v":165000,"d":"$165,000"}},{"$nulls":8},{"$f":"AFTER_REPAIR_VALUE_ESTIMATED","v":{"v":165000,"d":"$165,000"}},{"$nulls":8},{"$f":"AFTER_REPAIR_VALUE_ESTIMATED","v":{"v":165000,"d":"$165,000"}},{"$nulls":8},{"$f":"AFTER_REPAIR_VALUE_ESTIMATED","v":{"v":165000,"d":"$165,000"}},{"$nulls":8},{"$f":"AFTER_REPAIR_VALUE_ESTIMATED","v":{"v":165000,"d":"$165,000"}},{"$nulls":8},{"$f":"AFTER_REPAIR_VALUE_ESTIMATED","v":{"v":165000,"d":"$165,000"}}]
[]
[{"$nulls":9},"Fixed Costs"]
[{"$nulls":9},"Buying Costs:",{"$nulls":8},{"$f":"Buying_Costs_Result","v":{"v":1000,"d":"$1,000"}},{"$nulls":8},{"$f":"Buying_Costs_Result","v":{"v":1000,"d":"$1,000"}},{"$nulls":8},{"$f":"Buying_Costs_Result","v":{"v":1000,"d":"$1,000"}},{"$nulls":8},{"$f":"Buying_Costs_Result","v":{"v":1000,"d":"$1,000"}},{"$nulls":8},{"$f":"Buying_Costs_Result","v":{"v":1000,"d":"$1,000"}},{"$nulls":8},{"$f":"Buying_Costs_Result","v":{"v":1000,"d":"$1,000"}}]
[{"$nulls":9},"Holding Costs",{"$nulls":8},{"$f":"Holding_Costs_Result","v":{"v":3000,"d":"$3,000"}},{"$nulls":8},{"$f":"Holding_Costs_Result","v":{"v":3000,"d":"$3,000"}},{"$nulls":8},{"$f":"Holding_Costs_Result","v":{"v":3000,"d":"$3,000"}},{"$nulls":8},{"$f":"Holding_Costs_Result","v":{"v":3000,"d":"$3,000"}},{"$nulls":8},{"$f":"Holding_Costs_Result","v":{"v":3000,"d":"$3,000"}},{"$nulls":8},{"$f":"Holding_Costs_Result","v":{"v":3000,"d":"$3,000"}}]
[{"$nulls":9},"Selling Costs",{"$nulls":8},{"$f":"Selling_Costs_Result","v":{"v":10850,"d":"$10,850"}},{"$nulls":8},{"$f":"Selling_Costs_Result","v":{"v":10850,"d":"$10,850"}},{"$nulls":8},{"$f":"Selling_Costs_Result","v":{"v":10850,"d":"$10,850"}},{"$nulls":8},{"$f":"Selling_Costs_Result","v":{"v":10850,"d":"$10,850"}},{"$nulls":8},{"$f":"Selling_Costs_Result","v":{"v":10850,"d":"$10,850"}},{"$nulls":8},{"$f":"Selling_Costs_Result","v":{"v":10850,"d":"$10,850"}}]
[{"$nulls":9},"Total Fixed Costs",{"$nulls":8},{"$f":"SUM(S19:AA21)","v":{"v":14850,"d":"$14,850"}},{"$nulls":8},{"$f":"SUM(AB19:AJ21)","v":{"v":14850,"d":"$14,850"}},{"$nulls":8},{"$f":"SUM(AK19:AS21)","v":{"v":14850,"d":"$14,850"}},{"$nulls":8},{"$f":"SUM(AT19:BB21)","v":{"v":14850,"d":"$14,850"}},{"$nulls":8},{"$f":"SUM(BC19:BK21)","v":{"v":14850,"d":"$14,850"}},{"$nulls":8},{"$f":"SUM(BL19:BT21)","v":{"v":14850,"d":"$14,850"}}]
[]
[{"$nulls":9},"Repair Costs"]
[{"$nulls":9},"Raw Repair Estimate",{"$nulls":8},{"$f":"SUBTOTAL_ESTIMATE","v":{"v":49750,"d":"$49,750"}},{"$nulls":8},{"$f":"SUBTOTAL_ESTIMATE","v":{"v":49750,"d":"$49,750"}},{"$nulls":8},{"$f":"SUBTOTAL_ESTIMATE","v":{"v":49750,"d":"$49,750"}},{"$nulls":8},{"$f":"SUBTOTAL_ESTIMATE","v":{"v":49750,"d":"$49,750"}},{"$nulls":8},{"$f":"SUBTOTAL_ESTIMATE","v":{"v":49750,"d":"$49,750"}},{"$nulls":8},{"$f":"SUBTOTAL_ESTIMATE","v":{"v":49750,"d":"$49,750"}}]
[{"$nulls":9},"Adders",{"$nulls":8},{"$f":"Adders_Result","v":{"v":13813.0875,"d":"$13,813"}},{"$nulls":8},{"$f":"Adders_Result","v":{"v":13813.0875,"d":"$13,813"}},{"$nulls":8},{"$f":"Adders_Result","v":{"v":13813.0875,"d":"$13,813"}},{"$nulls":8},{"$f":"Adders_Result","v":{"v":13813.0875,"d":"$13,813"}},{"$nulls":8},{"$f":"Adders_Result","v":{"v":13813.0875,"d":"$13,813"}},{"$nulls":8},{"$f":"Adders_Result","v":{"v":13813.0875,"d":"$13,813"}}]
[{"$nulls":9},"Total Repair Estimate",{"$nulls":8},{"$f":"SUM(S25:AA26)","v":{"v":63563.0875,"d":"$63,563"}},{"$nulls":8},{"$f":"SUM(AB25:AJ26)","v":{"v":63563.0875,"d":"$63,563"}},{"$nulls":8},{"$f":"SUM(AK25:AS26)","v":{"v":63563.0875,"d":"$63,563"}},{"$nulls":8},{"$f":"SUM(AT25:BB26)","v":{"v":63563.0875,"d":"$63,563"}},{"$nulls":8},{"$f":"SUM(BC25:BK26)","v":{"v":63563.0875,"d":"$63,563"}},{"$nulls":8},{"$f":"SUM(BL25:BT26)","v":{"v":63563.0875,"d":"$63,563"}}]
[]
[{"$nulls":9},"Total Profit",{"$nulls":8},{"$f":"S16-S14-S22-S27","v":{"v":24749.999999999993,"d":"$24,750"}},{"$nulls":8},{"$f":"IF(AB14=0,\"Enter Offer Above\",AB16-AB14-AB22-AB27)","v":"Enter Offer Above"},{"$nulls":8},{"$f":"IF(AK14=0,\"Enter Offer Above\",AK16-AK14-AK22-AK27)","v":"Enter Offer Above"},{"$nulls":8},{"$f":"IF(AT14=0,\"Enter Offer Above\",AT16-AT14-AT22-AT27)","v":"Enter Offer Above"},{"$nulls":8},{"$f":"IF(BC14=0,\"Enter Offer Above\",BC16-BC14-BC22-BC27)","v":"Enter Offer Above"},{"$nulls":8},{"$f":"IF(BL14=0,\"Enter Offer Above\",BL16-BL14-BL22-BL27)","v":"Enter Offer Above"}]
[{"$nulls":9},"Profit per Month",{"$nulls":8},{"$f":"IFERROR(IF(S14=\"\",\"\",S29/Total_Schedule_Cell),\"\")","v":{"v":4949.999999999998,"d":"$4,950"}},{"$nulls":8},{"$f":"IFERROR(IF(AB14=\"\",\"\",AB29/Total_Schedule_Cell),\"\")","v":""},{"$nulls":8},{"$f":"IFERROR(IF(AK14=\"\",\"\",AK29/Total_Schedule_Cell),\"\")","v":""},{"$nulls":8},{"$f":"IFERROR(IF(AT14=\"\",\"\",AT29/Total_Schedule_Cell),\"\")","v":""},{"$nulls":8},{"$f":"IFERROR(IF(BC14=\"\",\"\",BC29/Total_Schedule_Cell),\"\")","v":""},{"$nulls":8},{"$f":"IFERROR(IF(BL14=\"\",\"\",BL29/Total_Schedule_Cell),\"\")","v":""}]
[{"$nulls":9},"Cash on Cash ROI",{"$nulls":8},{"$f":"IFERROR(IF(S14=\"\",\"\",S29/Total_Cash_Needed),\"\")","v":{"v":0.19126738794435852,"d":"19%"}},{"$nulls":8},{"$f":"IFERROR(IF(AB14=\"\",\"\",AB29/Total_Cash_Needed),\"\")","v":""},{"$nulls":8},{"$f":"IFERROR(IF(AK14=\"\",\"\",AK29/Total_Cash_Needed),\"\")","v":""},{"$nulls":8},{"$f":"IFERROR(IF(AT14=\"\",\"\",AT29/Total_Cash_Needed),\"\")","v":""},{"$nulls":8},{"$f":"IFERROR(IF(BC14=\"\",\"\",BC29/Total_Cash_Needed),\"\")","v":""},{"$nulls":8},{"$f":"IFERROR(IF(BL14=\"\",\"\",BL29/Total_Cash_Needed),\"\")","v":""}]
[{"$nulls":9},"Annualized COCR",{"$nulls":8},{"$f":"IFERROR(IF(S14=\"\",\"\",S31/(Total_Schedule_Cell/12)),\"\")","v":{"v":0.4590417310664604,"d":"46%"}},{"$nulls":8},{"$f":"IFERROR(IF(AB14=\"\",\"\",AB31/(Total_Schedule_Cell/12)),\"\")","v":""},{"$nulls":8},{"$f":"IFERROR(IF(AK14=\"\",\"\",AK31/(Total_Schedule_Cell/12)),\"\")","v":""},{"$nulls":8},{"$f":"IFERROR(IF(AT14=\"\",\"\",AT31/(Total_Schedule_Cell/12)),\"\")","v":""},{"$nulls":8},{"$f":"IFERROR(IF(BC14=\"\",\"\",BC31/(Total_Schedule_Cell/12)),\"\")","v":""},{"$nulls":8},{"$f":"IFERROR(IF(BL14=\"\",\"\",BL31/(Total_Schedule_Cell/12)),\"\")","v":""}]

{"sheet":"COMPS","index":15,"n_rows":51,"n_cols":70,"rows_kept":51,"hidden":true,"merged":[[1,8,1,20],[3,12,3,73],[4,12,4,21],[4,22,4,34],[4,35,4,47],[4,48,4,60],[4,61,4,73],[5,12,5,21],[5,22,5,34],[5,35,5,47],[5,48,5,60],[5,61,5,73],[6,12,6,21],[6,22,6,34],[6,35,6,47],[6,48,6,60],[6,61,6,73],[7,12,7,21],[7,22,7,34],[7,35,7,47],[7,48,7,60],[7,61,7,73],[8,12,8,21],[8,22,8,34],[8,35,8,47],[8,48,8,60],[8,61,8,73],[9,12,9,21],[9,22,9,34],[9,35,9,47],[9,48,9,60],[9,61,9,73],[10,12,10,21],[10,22,10,34],[10,35,10,47],[10,48,10,60],[10,61,10,73],[11,12,11,21],[11,22,11,34],[11,35,11,47],[11,48,11,60],[11,61,11,73],[12,12,12,21],[12,22,12,34],[12,35,12,47],[12,48,12,60],[12,61,12,73],[13,12,13,73],[14,12,14,21],[14,22,14,29],[14,30,14,34],[14,35,14,42],[14,43,14,47],[14,48,14,55],[14,56,14,60],[14,61,14,68],[14,69,14,73],[15,12,15,21],[15,22,15,29],[15,30,15,34],[15,35,15,42],[15,43,15,47],[15,48,15,55],[15,56,15,60],[15,61,15,68],[15,69,15,73],[16,12,16,21],[16,22,16,29],[16,30,16,34],[16,35,16,42],[16,43,16,47],[16,48,16,55],[16,56,16,60],[16,61,16,68],[16,69,16,73],[17,12,17,21],[17,22,17,29],[17,30,17,34],[17,35,17,42],[17,43,17,47],[17,48,17,55],[17,56,17,60],[17,61,17,68],[17,69,17,73],[18,12,18,21],[18,22,18,29],[18,30,18,34],[18,35,18,42],[18,43,18,47],[18,48,18,55],[18,56,18,60],[18,61,18,68],[18,69,18,73],[19,12,19,21],[19,22,19,29],[19,30,19,34],[19,35,19,42],[19,43,19,47],[19,48,19,55],[19,56,19,60],[19,61,19,68],[19,69,19,73],[20,12,20,21],[20,22,20,29],[20,30,20,34],[20,35,20,42],[20,43,20,47],[20,48,20,55],[20,56,20,60],[20,61,20,68],[20,69,20,73],[21,12,21,21],[21,22,21,29],[21,30,21,34],[21,35,21,42],[21,43,21,47],[21,48,21,55],[21,56,21,60],[21,61,21,68],[21,69,21,73],[22,12,22,21],[22,22,22,29],[22,30,22,34],[22,35,22,42],[22,43,22,47],[22,48,22,55],[22,56,22,60],[22,61,22,68],[22,69,22,73],[23,12,23,21],[23,22,23,29],[23,30,23,34],[23,35,23,42],[23,43,23,47],[23,48,23,55],[23,56,23,60],[23,61,23,68],[23,69,23,73],[24,12,24,21],[24,22,24,29],[24,30,24,34],[24,35,24,42],[24,43,24,47],[24,48,24,55],[24,56,24,60],[24,61,24,68],[24,69,24,73],[25,12,31,21],[25,22,31,34],[25,35,31,47],[25,48,31,60],[25,61,31,73],[32,12,32,21],[32,22,32,34],[32,35,32,47],[32,48,32,60],[32,61,32,73],[33,12,33,21],[33,22,33,34],[33,35,33,47],[33,48,33,60],[33,61,33,73]]}
[]
[{"$nulls":8},"COMPARABLES"]
[]
[{"$nulls":12},"Comparables Sales"]
[{"$nulls":12},"Property Info",{"$nulls":9},"Subject Property:",{"$nulls":12},"Comparable 1",{"$nulls":12},"Comparable 2",{"$nulls":12},"Comparable 3"]
[{"$nulls":12},"Street Address",{"$nulls":9},{"$f":"T('ANALYSIS DATABASE'!C8)","v":"1234 Main St"},{"$nulls":12},"2345 N. Main St",{"$nulls":12},"2345 N. Main St",{"$nulls":12},"2345 N. Main St"]
[{"$nulls":12},"City, State, Zip Code",{"$nulls":9},{"$f":"T('ANALYSIS DATABASE'!C9)","v":"Kansas City, MO 64116"},{"$nulls":12},"Kansas City, MO 64116",{"$nulls":12},"Kansas City, MO 64116",{"$nulls":12},"Kansas City, MO 64116"]
[{"$nulls":12},"Neigbhorhood",{"$nulls":9},"The Coves",{"$nulls":12},"The Coves",{"$nulls":12},"The Coves",{"$nulls":12},"The Coves"]
[{"$nulls":12},"School District:",{"$nulls":9},"Park Hill School District",{"$nulls":12},"Park Hill School District",{"$nulls":12},"Park Hill School District",{"$nulls":12},"Park Hill School District"]
[{"$nulls":12},"List Price/Sales Price",{"$nulls":9},{"$f":"After_Repair_Value_Result","v":{"v":165000,"d":"$165,000"}},{"$nulls":12},{"v":245000,"d":"$245,000"},{"$nulls":12},{"v":260000,"d":"$260,000"},{"$nulls":12},{"v":240000,"d":"$240,000"}]
[{"$nulls":12},"Current Status",{"$nulls":22},"Sold",{"$nulls":12},"Sold",{"$nulls":12},"Sold"]
[{"$nulls":12},"Status Date",{"$nulls":22},"2018-08-01",{"$nulls":12},"2018-07-15",{"$nulls":12},"2018-07-02"]
[{"$nulls":12},"Days on Market",{"$nulls":22},{"v":54,"d":"54.00"},{"$nulls":12},{"v":45,"d":"45.00"},{"$nulls":12},{"v":40,"d":"40.00"}]
[{"$nulls":12},"Characteristics"]
[{"$nulls":12},"Property Characteristic:",{"$nulls":9},"Description:",{"$nulls":7},"+ / -",{"$nulls":4},"Description:",{"$nulls":7},"+ / -",{"$nulls":4},"Description:",{"$nulls":7},"+ / -",{"$nulls":4},"Description:",{"$nulls":7},"+ / -"]
[{"$nulls":12},"# of Beds",{"$nulls":9},{"$f":"'ANALYSIS DATABASE'!C13","v":{"v":3,"d":"3 beds"}},{"$nulls":12},{"v":3,"d":"3 beds"},{"$nulls":12},{"v":3,"d":"3 beds"},{"$nulls":12},{"v":3,"d":"3 beds"}]
[{"$nulls":12},"# of Baths",{"$nulls":9},{"$f":"'ANALYSIS DATABASE'!C14","v":{"v":2,"d":"2 baths"}},{"$nulls":12},{"v":2,"d":"2 baths"},{"$nulls":12},{"v":2,"d":"2 baths"},{"$nulls":12},{"v":2,"d":"2 baths"}]
[{"$nulls":12},"# of Garages"]
[{"$nulls":12},"Square Footage",{"$nulls":9},{"$f":"'ANALYSIS DATABASE'!C18","v":{"v":1500,"d":"1500 sf"}},{"$nulls":12},{"v":1450,"d":"1450 sf"},{"$nulls":7},{"$f":"50*165","v":{"v":8250,"d":"$8,250"}},{"$nulls":4},{"v":1505,"d":"1505 sf"},{"$nulls":12},{"v":1400,"d":"1400 sf"},{"$nulls":7},{"$f":"100*150","v":{"v":15000,"d":"$15,000"}}]
[{"$nulls":12},"Year Built",{"$nulls":9},1982,{"$nulls":12},1981,{"$nulls":12},1983,{"$nulls":12},1985]
[{"$nulls":12},"Basement Type:",{"$nulls":9},"Finished",{"$nulls":12},"Finished",{"$nulls":12},"Finished",{"$nulls":12},"Finished"]
[{"$nulls":12},"Central Heat",{"$nulls":9},"Yes",{"$nulls":12},"Yes",{"$nulls":12},"Yes",{"$nulls":12},"Yes"]
[{"$nulls":12},"Air Conditioning",{"$nulls":9},"Yes",{"$nulls":12},"Yes",{"$nulls":12},"Yes",{"$nulls":12},"Yes"]
[{"$nulls":12},"Property Condition",{"$nulls":9},"Fully Renovated",{"$nulls":12},"Moderate Updates",{"$nulls":7},{"v":10000,"d":"$10,000"},{"$nulls":4},"Fully Renovated",{"$nulls":12},"Moderate Updates",{"$nulls":7},{"v":10000,"d":"$10,000"}]
[{"$nulls":12},"Other Improvements:"]
[{"$nulls":12},"Notes:",{"$nulls":35},"Property appears to have been rehabbed and flipped by an investor.  Property has similar finishes to the finishes planned for subject property."]
[]
[]
[]
[]
[]
[]
[{"$nulls":12},"Value w/ Adjustments:",{"$nulls":9},{"$f":"After_Repair_Value_Result+SUM(AE16:AI25)","v":{"v":165000,"d":"$165,000"}},{"$nulls":12},{"$f":"AJ10+SUM(AR16:AV25)","v":{"v":263250,"d":"$263,250"}},{"$nulls":12},{"$f":"AW10+SUM(BE16:BI25)","v":{"v":260000,"d":"$260,000"}},{"$nulls":12},{"$f":"BJ10+SUM(BR16:BV25)","v":{"v":265000,"d":"$265,000"}}]
[{"$nulls":12},"Price per Square Foot",{"$nulls":9},{"$f":"IFERROR(W33/W19,0)","v":{"v":110,"d":"$110.00"}},{"$nulls":12},{"$f":"IFERROR(AJ33/AJ19,0)","v":{"v":181.55172413793105,"d":"$181.55"}},{"$nulls":12},{"$f":"IFERROR(AW33/AW19,0)","v":{"v":172.75747508305648,"d":"$172.76"}},{"$nulls":12},{"$f":"IFERROR(BJ33/BJ19,0)","v":{"v":189.28571428571428,"d":"$189.29"}}]
[]
[]
[{"$nulls":22},"Yes"]
[{"$nulls":22},"No"]
[]
[{"$nulls":22},"Active"]
[{"$nulls":22},"Pending"]
[{"$nulls":22},"Sold"]
[]
[{"$nulls":22},"No Basement"]
[{"$nulls":22},"Unfinished "]
[{"$nulls":22},"Finished"]
[{"$nulls":22},"Finished, Walkout"]
[]
[{"$nulls":22},"As-Is, Distressed"]
[{"$nulls":22},"Moderate Updates"]
[{"$nulls":22},"Fully Renovated"]

{"sheet":"WHOLESALE CALC","index":16,"n_rows":115,"n_cols":90,"rows_kept":115,"hidden":true,"merged":[[0,0,0,16383],[1,4,1,18],[3,1,5,32],[3,34,5,56],[3,57,5,63],[3,65,5,97],[6,1,12,32],[6,34,7,43],[6,44,7,48],[6,49,7,58],[6,59,7,63],[6,89,8,97],[8,34,9,43],[8,44,9,48],[8,49,9,58],[8,59,9,63],[9,65,15,97],[10,34,11,43],[10,44,11,48],[10,49,11,58],[10,59,11,63],[12,34,13,43],[12,44,13,48],[12,49,13,58],[12,59,13,63],[13,1,15,21],[13,22,15,27],[13,28,15,28],[13,29,15,31],[13,32,15,32],[14,34,15,43],[14,44,15,48],[14,49,15,58],[14,59,15,63],[16,1,17,32],[16,34,17,43],[16,44,17,48],[16,49,17,58],[16,59,17,63],[16,65,18,75],[16,76,18,86],[16,87,18,97],[18,1,19,24],[18,25,19,32],[18,34,19,43],[18,44,19,48],[18,49,19,58],[18,59,19,63],[19,65,22,75],[19,76,22,86],[19,87,22,97],[20,1,21,24],[20,25,21,32],[20,34,21,43],[20,44,21,48],[20,49,21,58],[20,59,21,63],[22,1,23,24],[22,25,23,32],[22,34,23,43],[22,44,23,48],[22,49,23,58],[22,59,23,63],[23,73,24,76],[23,83,25,97],[24,1,25,24],[24,25,25,32],[24,34,25,43],[24,44,25,48],[24,49,25,58],[24,59,25,63],[25,73,25,76],[26,1,27,24],[26,25,27,32],[26,34,27,43],[26,44,27,48],[26,49,27,58],[26,59,27,63],[26,83,29,97],[28,1,29,14],[28,25,29,32],[28,34,29,43],[28,44,29,48],[28,49,29,58],[28,59,29,63],[30,1,31,24],[30,25,31,32],[30,34,32,63],[30,83,49,97],[32,1,33,24],[32,25,33,32],[33,34,34,38],[33,39,39,58],[33,59,34,63],[34,1,35,9],[34,10,35,15],[34,16,35,20],[35,34,39,38],[35,59,39,63],[36,1,37,9],[36,10,37,15],[36,16,37,20],[36,25,37,32],[38,1,39,8],[38,11,40,14],[38,16,39,20],[38,25,39,32],[40,1,41,8],[40,16,41,20],[40,25,41,32],[40,34,42,63],[41,10,42,15],[42,1,43,8],[42,16,43,20],[42,25,43,32],[43,11,45,14],[44,1,45,8],[44,16,45,20],[44,25,45,32],[44,52,45,55],[44,57,45,63],[46,1,47,8],[46,10,47,15],[46,16,47,20],[46,25,47,32],[46,34,48,49],[46,50,48,51],[46,52,48,55],[46,56,48,57],[46,58,48,62],[48,1,49,10],[48,11,50,14],[48,16,49,20],[48,25,49,32],[49,34,51,50],[49,52,51,55],[49,56,51,57],[49,58,51,62],[50,16,51,20],[50,21,51,24],[50,25,51,32],[50,65,52,97],[52,1,53,9],[52,34,54,50],[52,52,54,55],[52,56,54,57],[52,58,54,62],[53,65,59,97],[54,1,55,14],[54,16,55,20],[54,21,55,24],[54,25,55,32],[55,34,57,50],[55,52,57,55],[55,56,57,57],[55,58,57,62],[56,1,57,14],[56,16,57,20],[56,21,57,24],[56,25,57,32],[58,1,59,24],[58,25,59,32],[58,34,60,51],[58,52,60,55],[58,58,60,62],[60,1,61,24],[60,25,61,32],[60,65,62,97],[62,1,63,24],[62,25,63,32],[63,46,65,57],[63,58,65,62],[63,65,69,97],[64,1,65,24],[64,25,65,32],[66,1,67,24],[66,25,67,32],[66,47,68,57],[66,58,68,62],[68,1,69,24],[68,25,69,32],[70,1,72,32],[70,34,72,63],[70,65,72,97],[73,1,79,32],[73,34,74,38],[73,39,79,58],[73,59,74,63],[73,65,79,97],[75,34,79,38],[75,59,79,63],[80,1,83,97],[86,21,86,25],[86,26,86,30],[86,31,86,35],[86,36,86,40],[87,14,87,20],[87,21,87,25],[87,26,87,30],[87,31,87,35],[87,36,87,40],[88,14,88,20],[88,21,88,25],[88,26,88,30],[88,31,88,35],[88,36,88,40],[89,14,89,20],[89,21,89,25],[89,26,89,30],[89,31,89,35],[89,36,89,40],[89,42,89,46],[90,14,90,20],[90,21,90,25],[90,26,90,30],[90,31,90,35],[90,36,90,40],[90,42,90,46],[91,14,91,20],[91,21,91,25],[91,26,91,30],[91,31,91,35],[91,36,91,40],[92,14,92,20],[92,21,92,25],[92,26,92,30],[92,31,92,35],[92,36,92,40],[92,42,92,46],[93,14,93,20],[93,21,93,25],[93,26,93,30],[93,31,93,35],[93,36,93,40],[93,42,93,46],[94,14,94,20],[94,21,94,25],[94,26,94,30],[94,31,94,35],[94,36,94,40],[94,42,94,46],[95,14,95,20],[95,21,95,25],[95,26,95,30],[95,31,95,35],[95,36,95,40],[96,14,96,20],[96,21,96,25],[96,26,96,30],[96,31,96,35],[96,36,96,40],[96,42,96,53],[97,14,97,20],[97,21,97,25],[97,26,97,30],[97,31,97,35],[97,36,97,40],[97,42,97,50],[97,51,97,53],[98,14,98,20],[98,21,98,25],[98,26,98,30],[98,31,98,35],[98,36,98,40],[98,42,98,50],[98,51,98,53],[99,14,99,20],[99,21,99,25],[99,26,99,30],[99,31,99,35],[99,36,99,40],[100,14,100,20],[100,21,100,25],[100,26,100,30],[100,31,100,35],[100,36,100,40],[101,14,101,20],[101,21,101,25],[101,26,101,30],[101,31,101,35],[101,36,101,40],[102,14,102,20],[102,21,102,25],[102,26,102,30],[102,31,102,35],[102,36,102,40],[103,14,103,20],[103,21,103,25],[103,26,103,30],[103,31,103,35],[103,36,103,40],[104,14,104,20],[104,21,104,25],[104,26,104,30],[104,31,104,35],[104,36,104,40],[105,14,105,20],[105,21,105,25],[105,26,105,30],[105,31,105,35],[105,36,105,40],[106,14,106,20],[106,21,106,25],[106,26,106,30],[106,31,106,35],[106,36,106,40],[107,14,107,20],[107,21,107,25],[107,26,107,30],[107,31,107,35],[107,36,107,40],[108,14,108,20],[108,21,108,25],[108,26,108,30],[108,31,108,35],[108,36,108,40],[109,14,109,20],[109,21,109,25],[109,26,109,30],[109,31,109,35],[109,36,109,40],[110,14,110,20],[110,21,110,25],[110,26,110,30],[110,31,110,35],[110,36,110,40],[111,14,111,20],[111,21,111,25],[111,26,111,30],[111,31,111,35],[111,36,111,40],[114,14,114,41]]}
[]
[{"$nulls":4},"WHOLESALE CALCULATOR"]
[]
[null,"AFTER REPAIR VALUE",{"$nulls":32},"REPAIR ESTIMATE",{"$nulls":22},"QUICK BID",{"$nulls":7},"REHABBER PROFIT"]
[]
[]
[null,{"v":250000,"d":"$250,000"},{"$nulls":32},{"$f":"T('2 REPAIR ESTIMATOR'!N75:T75)","v":"GENERAL CONDITIONS"},{"$nulls":14},{"$f":"T('2 REPAIR ESTIMATOR'!Y79:AE79)","v":"FRAMING & DRYWALL"},{"$nulls":37},{"v":0.05,"d":"5%"},null,{"v":0.15,"d":"15%"}]
[]
[{"$nulls":34},{"$f":"T('2 REPAIR ESTIMATOR'!N76:T76)","v":"DEMOLITION"},{"$nulls":14},{"$f":"T('2 REPAIR ESTIMATOR'!Y80:AE80)","v":"CABINETS & COUNTERTOPS"},{"$nulls":15},{"$f":"B6*CL6","v":0}]
[{"$nulls":65},{"$f":"AFTER_REPAIR_VALUE_WHOLESALE*Wholesale_Profit_Percentage_Cell","v":{"v":37500,"d":"$37,500"}}]
[{"$nulls":34},{"$f":"T('2 REPAIR ESTIMATOR'!N77:T77)","v":"STRUCTURAL CONCRETE"},{"$nulls":14},{"$f":"T('2 REPAIR ESTIMATOR'!Y81:AE81)","v":"DOORS & TRIM"}]
[]
[{"$nulls":34},{"$f":"T('2 REPAIR ESTIMATOR'!N78:T78)","v":"CONCRETE & FLATWORK"},{"$nulls":14},{"$f":"T('2 REPAIR ESTIMATOR'!Y82:AE82)","v":"CARPET & RESILIENT"}]
[null,"FIXED COSTS",{"$nulls":20},"% OF ARV",{"$nulls":6},{"v":0.15,"d":"15%"}]
[{"$nulls":34},{"$f":"T('2 REPAIR ESTIMATOR'!N79:T79)","v":"MASONRY"},{"$nulls":14},{"$f":"T('2 REPAIR ESTIMATOR'!AJ75:AP75)","v":"HARDWOOD FLOORING"}]
[]
[null,"BUYING COSTS",{"$nulls":32},{"$f":"T('2 REPAIR ESTIMATOR'!N80:T80)","v":"SIDING"},{"$nulls":14},{"$f":"T('2 REPAIR ESTIMATOR'!AJ76:AP76)","v":"TILING"},{"$nulls":15},"PROFIT PER MONTH",{"$nulls":10},"CASH ROI",{"$nulls":10},"ANNUALIZED ROI"]
[]
[null,"BROKERAGE FEE ($300 Avg.)",{"$nulls":32},{"$f":"T('2 REPAIR ESTIMATOR'!N81:T81)","v":"DECKING AND PATIOS"},{"$nulls":14},{"$f":"T('2 REPAIR ESTIMATOR'!AJ77:AP77)","v":"PAINTING"}]
[{"$nulls":65},{"$f":"IF(Total_Schedule_Cell=0,\"\",BT10/Total_Schedule_Cell)","v":{"v":0,"d":"$0"}},{"$nulls":10},{"$f":"IFERROR(IF(Total_Cash_Needed<0,\"Infinite ROI\",REHAB_PROFIT_ESTIMATED/Total_Cash_Needed),0)","v":{"v":0.19126738794435857,"d":"19.1%"}},{"$nulls":10},{"$f":"IFERROR(IF(Total_Cash_Needed<0,\"Infinite ROI\",((REHAB_PROFIT_ESTIMATED/Total_Cash_Needed)/(Schedule/12))),0)","v":{"v":0,"d":"0.0%"}}]
[null,"INSPECTION COSTS ($400 Avg.)",{"$nulls":32},{"$f":"T('2 REPAIR ESTIMATOR'!N82:T82)","v":"ROOFING"},{"$nulls":14},{"$f":"T('2 REPAIR ESTIMATOR'!AJ78:AP78)","v":"APPLIANCES"}]
[]
[null,"APPRAISAL FEE ($500 Avg.)",{"$nulls":32},{"$f":"T('2 REPAIR ESTIMATOR'!Y75:AE75)","v":"EXTERIOR DOORS & WINDOWS"},{"$nulls":14},{"$f":"T('2 REPAIR ESTIMATOR'!AJ79:AP79)","v":"PLUMBING"}]
[{"$nulls":83},"70% RULE"]
[null,"TITLE SEARCH ($300 Avg.)",{"$nulls":32},{"$f":"T('2 REPAIR ESTIMATOR'!Y76:AE76)","v":"GARAGE DOORS"},{"$nulls":14},{"$f":"T('2 REPAIR ESTIMATOR'!AJ80:AP80)","v":"HVAC"}]
[]
[null,"TITLE INSURANCE ($150 Avg.)",{"$nulls":32},{"$f":"T('2 REPAIR ESTIMATOR'!Y77:AE77)","v":"LANDSCAPING"},{"$nulls":14},{"$f":"T('2 REPAIR ESTIMATOR'!AJ81:AP81)","v":"ELECTRICAL"},{"$nulls":33},"Purchase Price % OF ARV                "]
[]
[null,"CLOSING COSTS &POINTS",{"$nulls":23},{"$f":"'REHAB FINANCING SETUP'!AZ31+'REHAB FINANCING SETUP'!AZ58","v":{"v":0,"d":"$0"}},{"$nulls":8},{"$f":"T('2 REPAIR ESTIMATOR'!Y78:AE78)","v":"MISC. EXTERIOR ITEMS"},{"$nulls":14},{"$f":"T('2 REPAIR ESTIMATOR'!AJ82:AP82)","v":"MISCELLANEOUS"}]
[]
[null,"OTHER ",{"$nulls":32},"RAW REPAIR ESTIMATE",{"$nulls":44},"FIXED COSTS",{"$f":"TOTAL_FIXED_COSTS_WHOLESALE","v":{"v":37500,"d":"$37,500"}},null,null,{"$f":"IF(AFTER_REPAIR_VALUE_WHOLESALE=0,\"\",((MAXIMUM_PURCHASE_PRICE_WHOLESALE+TOTAL_REPAIR_ESTIMATE_WHOLESALE)/AFTER_REPAIR_VALUE_WHOLESALE))","v":{"v":0.7,"d":"70%"}}]
[{"$nulls":79},"REHAB PROFIT",{"$f":"REHABBER_PROFIT_WHOLESALE","v":{"v":37500,"d":"$37,500"}}]
[null,"TOTAL BUYING COSTS",{"$nulls":23},{"$f":"IF(Wholesale_Calculator_Fixed_Cost_Calculation_Method=\"% OF ARV\",TOTAL_FIXED_COSTS_WHOLESALE/3,SUM(Z19:AG32))","v":{"v":12500,"d":"$12,500"}},{"$nulls":53},"REPAIR ESTIMATE",{"$f":"TOTAL_REPAIR_ESTIMATE_WHOLESALE","v":{"v":50000,"d":"$50,000"}}]
[{"$nulls":34},"% of ARV",{"$nulls":4},{"v":50000,"d":"$50,000"},{"$nulls":19},{"$f":"IF(BH36=\"\",\"\",\"$/ SF\")","v":"$/ SF"},{"$nulls":19},{"$f":"T(BN51)","v":"REHABBER MAXIMUM PURCHASE PRICE"},{"$f":"MAXIMUM_PURCHASE_PRICE_WHOLESALE","v":{"v":125000,"d":"$125,000"}}]
[null,"HOLDING COSTS",{"$nulls":8},"# OF MONTHS",{"$nulls":5},"Per Month"]
[{"$nulls":34},{"$f":"IFERROR(ESTIMATE_SUBTOTAL/AFTER_REPAIR_VALUE_CELL,0)","v":{"v":0.3015151515151515,"d":"30.2%"}},{"$nulls":24},{"$f":"IFERROR(ESTIMATE_SUBTOTAL/Square_Feet,\"\")","v":{"v":33.166666666666664,"d":"$33.17"}}]
[null,"LOAN PAYMENT",{"$nulls":8},"REHAB SCHEDULE",{"$nulls":5},{"$f":"IFERROR(Z37/L49,0)","v":{"v":0,"d":"$0"}},{"$nulls":8},{"$f":"'REHAB FINANCING SETUP'!BF29+'REHAB FINANCING SETUP'!BF56","v":{"v":0,"d":"$0"}}]
[]
[null,"PROPERTY TAXES",{"$nulls":9},{"v":2,"d":"2.0"},{"$nulls":13},{"$f":"Q39*$L$49","v":{"v":0,"d":"$0"}}]
[]
[null,"UTILITIES",{"$nulls":23},{"$f":"Q41*$L$49","v":{"v":0,"d":"$0"}},{"$nulls":8},"ADDERS"]
[{"$nulls":10},"LISTING PERIOD"]
[null,"INSURANCE",{"$nulls":23},{"$f":"Q43*$L$49","v":{"v":0,"d":"$0"}}]
[{"$nulls":11},{"v":2,"d":"2.0"}]
[null,"HOA DUES",{"$nulls":23},{"$f":"Q45*$L$49","v":{"v":0,"d":"$0"}},{"$nulls":31},"Adder Amount"]
[]
[null,"MAINTENANCE",{"$nulls":8},"TOTAL HOLDING",{"$nulls":14},{"$f":"Q47*$L$49","v":{"v":0,"d":"$0"}},{"$nulls":8},"Location Multiplier:",{"$nulls":23},{"$f":"IF(Wholesale_Calculator_Location_Mutiplier=0,0,(BA47-1)*TOTAL_REPAIR_COSTS_WHOLESALE)","v":{"v":0,"d":"$0"}}]
[]
[null,"OTHER",{"$nulls":9},{"$f":"L39+L44","v":{"v":4,"d":"4.0"}},{"$nulls":13},{"$f":"Q49*$L$49","v":{"v":0,"d":"$0"}}]
[{"$nulls":34},"Permit Cost: (1 to 2%):",{"$nulls":23},{"$f":"(TOTAL_REPAIR_COSTS_WHOLESALE+BG47)*BA50","v":{"v":0,"d":"$0"}}]
[{"$nulls":16},{"$f":"SUM(Q37:U50)","v":{"v":0,"d":"$0"}},{"$nulls":4},"TOTALS",{"$nulls":3},{"$f":"IF(Wholesale_Calculator_Fixed_Cost_Calculation_Method=\"% of ARV\",TOTAL_FIXED_COSTS_WHOLESALE/3,SUM(Z37:AG50))","v":{"v":12500,"d":"$12,500"}},{"$nulls":39},"REHABBER MAXIMUM PURCHASE PRICE"]
[]
[null,"SELLING COSTS",{"$nulls":32},"Contractors OH & P: (10%+)",{"$nulls":23},{"$f":"(TOTAL_REPAIR_COSTS_WHOLESALE+BG47+BG50)*BA53","v":{"v":0,"d":"$0"}}]
[{"$nulls":65},{"$f":"AFTER_REPAIR_VALUE_WHOLESALE-TOTAL_FIXED_COSTS_WHOLESALE-TOTAL_REPAIR_ESTIMATE_WHOLESALE-REHABBER_PROFIT_WHOLESALE","v":{"v":125000,"d":"$125,000"}}]
[null,"COMMISSIONS",{"$nulls":14},{"v":0.06,"d":"6.0%"},{"$nulls":4},"of sale price",{"$nulls":3},{"$f":"Q55*B7","v":{"v":15000,"d":"$15,000"}}]
[{"$nulls":34},"Contingency  (5 to 15%):",{"$nulls":23},{"$f":"(TOTAL_REPAIR_COSTS_WHOLESALE+BG47+BG50+BG53)*Wholesale_Calculator_Contingency","v":{"v":0,"d":"$0"}}]
[null,"SELLER ASSISTED CLOSING COSTS",{"$nulls":19},"of sale price",{"$nulls":3},{"$f":"Q57*B7","v":{"v":0,"d":"$0"}}]
[]
[null,"BROKERAGE FEE ($300 Avg.)",{"$nulls":32},"Total Adders:",{"$nulls":17},{"$f":"IFERROR(BG59/ESTIMATE_SUBTOTAL,0)","v":{"v":0,"d":"0.0%"}},{"$nulls":5},{"$f":"SUM(BG47:BK58)","v":{"v":0,"d":"$0"}}]
[]
[null,"HOME WARRANTY ($450 Avg.)",{"$nulls":63},"WHOLESALER ASSIGNMENT FEE"]
[]
[null,"TITLE INSURANCE ($150 Avg.)"]
[{"$nulls":46},"Raw Repair Estimate:",{"$nulls":11},{"$f":"TOTAL_REPAIR_COSTS_WHOLESALE","v":{"v":50000,"d":"$50,000"}},{"$nulls":6},{"v":0,"d":"$0"}]
[null,"2ND APPRAISAL ($500 Avg.)"]
[]
[null,"OTHER",{"$nulls":45},"Total Estimate:",{"$nulls":10},{"$f":"BG59+BG64","v":{"v":50000,"d":"$50,000"}}]
[]
[null,"TOTAL SELLING COSTS",{"$nulls":23},{"$f":"IF(Wholesale_Calculator_Fixed_Cost_Calculation_Method=\"% of ARV\",TOTAL_FIXED_COSTS_WHOLESALE/3,SUM(Z55:AG68))","v":{"v":12500,"d":"$12,500"}}]
[]
[null,"TOTAL FIXED COSTS",{"$nulls":32},"TOTAL REPAIR ESTIMATE",{"$nulls":30},"WHOLESALER MAXIMUM ALLOWABLE OFFER"]
[]
[]
[null,{"$f":"IF(W14=\"% OF ARV\",(AD14*B7),Z33+Z51+Z69)","v":{"v":37500,"d":"$37,500"}},{"$nulls":32},"% of ARV",{"$nulls":4},{"$f":"BG67","v":{"v":50000,"d":"$50,000"}},{"$nulls":19},{"$f":"IF(BH76=\"\",\"\",\"$/ SF\")","v":"$/ SF"},{"$nulls":5},{"$f":"MAXIMUM_PURCHASE_PRICE_WHOLESALE-Wholesale_Profit","v":{"v":125000,"d":"$125,000"}}]
[]
[{"$nulls":34},{"$f":"IFERROR(TOTAL_REMODEL_ESTIMATE/AFTER_REPAIR_VALUE_CELL,0)","v":{"v":0.38523083333333336,"d":"38.5%"}},{"$nulls":24},{"$f":"IFERROR(TOTAL_REMODEL_ESTIMATE/Square_Feet,\"\")","v":{"v":42.375391666666665,"d":"$42.38"}}]
[]
[]
[]
[]
[null,"© 2016 by Houseflippingspreadsheet.com. All rights reserved"]
[]
[]
[]
[]
[]
[{"$nulls":14},"Scopes of Work DIY vs Subbed Sorter",{"$nulls":6},"LABOR",{"$nulls":4},"MATERIAL",{"$nulls":4},"SUB",{"$nulls":4},"TOTAL"]
[{"$nulls":14},{"$f":"'1 REHAB ANALYZER'!K98","v":"GENERAL CONDITIONS"},{"$nulls":6},{"$f":"'1 REHAB ANALYZER'!R98","v":{"v":80,"d":"$80.00"}},{"$nulls":4},{"$f":"'1 REHAB ANALYZER'!W98","v":{"v":454.75,"d":"$454.75"}},{"$nulls":4},{"$f":"'1 REHAB ANALYZER'!AB98","v":{"v":0,"d":"$0.00"}},{"$nulls":4},{"$f":"SUM(V88:AJ88)","v":{"v":534.75,"d":"$534.75"}}]
[{"$nulls":14},{"$f":"'1 REHAB ANALYZER'!K99","v":"DEMOLITION"},{"$nulls":6},{"$f":"'1 REHAB ANALYZER'!R99","v":{"v":1600,"d":"$1,600.00"}},{"$nulls":4},{"$f":"'1 REHAB ANALYZER'!W99","v":{"v":0,"d":"$0.00"}},{"$nulls":4},{"$f":"'1 REHAB ANALYZER'!AB99","v":{"v":0,"d":"$0.00"}},{"$nulls":4},{"$f":"SUM(V89:AJ89)","v":{"v":1600,"d":"$1,600.00"}}]
[{"$nulls":14},{"$f":"'1 REHAB ANALYZER'!K100","v":"STRUCTURAL CONCRETE"},{"$nulls":6},{"$f":"'1 REHAB ANALYZER'!R100","v":{"v":0,"d":"$0.00"}},{"$nulls":4},{"$f":"'1 REHAB ANALYZER'!W100","v":{"v":0,"d":"$0.00"}},{"$nulls":4},{"$f":"'1 REHAB ANALYZER'!AB100","v":{"v":0,"d":"$0.00"}},{"$nulls":4},{"v":0,"d":"$0.00"},{"$nulls":5},"DETAILED"]
[{"$nulls":14},{"$f":"'1 REHAB ANALYZER'!K101","v":"CONCRETE & FLATWORK"},{"$nulls":6},{"$f":"'1 REHAB ANALYZER'!R101","v":{"v":0,"d":"$0.00"}},{"$nulls":4},{"$f":"'1 REHAB ANALYZER'!W101","v":{"v":0,"d":"$0.00"}},{"$nulls":4},{"$f":"'1 REHAB ANALYZER'!AB101","v":{"v":0,"d":"$0.00"}},{"$nulls":4},{"v":0,"d":"$0.00"},{"$nulls":5},"% OF ARV"]
[{"$nulls":14},{"$f":"'1 REHAB ANALYZER'!K102","v":"MASONRY"},{"$nulls":6},{"$f":"'1 REHAB ANALYZER'!R102","v":{"v":0,"d":"$0.00"}},{"$nulls":4},{"$f":"'1 REHAB ANALYZER'!W102","v":{"v":0,"d":"$0.00"}},{"$nulls":4},{"$f":"'1 REHAB ANALYZER'!AB102","v":{"v":0,"d":"$0.00"}},{"$nulls":4},{"v":0,"d":"$0.00"}]
[{"$nulls":14},{"$f":"'1 REHAB ANALYZER'!K103","v":"SIDING"},{"$nulls":6},{"$f":"'1 REHAB ANALYZER'!R103","v":{"v":0,"d":"$0.00"}},{"$nulls":4},{"$f":"'1 REHAB ANALYZER'!W103","v":{"v":0,"d":"$0.00"}},{"$nulls":4},{"$f":"'1 REHAB ANALYZER'!AB103","v":{"v":0,"d":"$0.00"}},{"$nulls":4},{"v":0,"d":"$0.00"},{"$nulls":5},"DETAILED"]
[{"$nulls":14},{"$f":"'1 REHAB ANALYZER'!K104","v":"DECKING AND PATIOS"},{"$nulls":6},{"$f":"'1 REHAB ANALYZER'!R104","v":{"v":750,"d":"$750.00"}},{"$nulls":4},{"$f":"'1 REHAB ANALYZER'!W104","v":{"v":321,"d":"$321.00"}},{"$nulls":4},{"$f":"'1 REHAB ANALYZER'!AB104","v":{"v":0,"d":"$0.00"}},{"$nulls":4},{"v":1071,"d":"$1,071.00"},{"$nulls":5},"QUICK BID"]
[{"$nulls":14},{"$f":"'1 REHAB ANALYZER'!K105","v":"ROOFING"},{"$nulls":6},{"$f":"'1 REHAB ANALYZER'!R105","v":{"v":3000,"d":"$3,000.00"}},{"$nulls":4},{"$f":"'1 REHAB ANALYZER'!W105","v":{"v":2461,"d":"$2,461.00"}},{"$nulls":4},{"$f":"'1 REHAB ANALYZER'!AB105","v":{"v":0,"d":"$0.00"}},{"$nulls":4},{"v":5461,"d":"$5,461.00"},{"$nulls":5},"LUMP SUM"]
[{"$nulls":14},{"$f":"'1 REHAB ANALYZER'!K106","v":"EXTERIOR DOORS & WINDOWS"},{"$nulls":6},{"$f":"'1 REHAB ANALYZER'!R106","v":{"v":1625,"d":"$1,625.00"}},{"$nulls":4},{"$f":"'1 REHAB ANALYZER'!W106","v":{"v":3210,"d":"$3,210.00"}},{"$nulls":4},{"$f":"'1 REHAB ANALYZER'!AB106","v":{"v":0,"d":"$0.00"}},{"$nulls":4},{"v":4835,"d":"$4,835.00"}]
[{"$nulls":14},{"$f":"'1 REHAB ANALYZER'!K107","v":"GARAGE DOORS"},{"$nulls":6},{"$f":"'1 REHAB ANALYZER'!R107","v":{"v":400,"d":"$400.00"}},{"$nulls":4},{"$f":"'1 REHAB ANALYZER'!W107","v":{"v":963,"d":"$963.00"}},{"$nulls":4},{"$f":"'1 REHAB ANALYZER'!AB107","v":{"v":0,"d":"$0.00"}},{"$nulls":4},{"v":1363,"d":"$1,363.00"},{"$nulls":5},"Fixed Cost Graph"]
[{"$nulls":14},{"$f":"'1 REHAB ANALYZER'!K108","v":"LANDSCAPING"},{"$nulls":6},{"$f":"'1 REHAB ANALYZER'!R108","v":{"v":250,"d":"$250.00"}},{"$nulls":4},{"$f":"'1 REHAB ANALYZER'!W108","v":{"v":321,"d":"$321.00"}},{"$nulls":4},{"$f":"'1 REHAB ANALYZER'!AB108","v":{"v":0,"d":"$0.00"}},{"$nulls":4},{"v":571,"d":"$571.00"},{"$nulls":5},"AFTER REPAIR VALUE",{"$nulls":8},{"$f":"1-AZ99","v":{"v":0.85,"d":"85%"}}]
[{"$nulls":14},{"$f":"'1 REHAB ANALYZER'!K109","v":"MISC. EXTERIOR ITEMS"},{"$nulls":6},{"$f":"'1 REHAB ANALYZER'!R109","v":{"v":225,"d":"$225.00"}},{"$nulls":4},{"$f":"'1 REHAB ANALYZER'!W109","v":{"v":406.6,"d":"$406.60"}},{"$nulls":4},{"$f":"'1 REHAB ANALYZER'!AB109","v":{"v":0,"d":"$0.00"}},{"$nulls":4},{"v":631.6,"d":"$631.60"},{"$nulls":5},"FIXED COSTS",{"$nulls":8},{"$f":"TOTAL_FIXED_COSTS_WHOLESALE/AFTER_REPAIR_VALUE_WHOLESALE","v":{"v":0.15,"d":"15%"}}]
[{"$nulls":14},{"$f":"'1 REHAB ANALYZER'!K110","v":"FRAMING & DRYWALL"},{"$nulls":6},{"$f":"'1 REHAB ANALYZER'!R110","v":{"v":750,"d":"$750.00"}},{"$nulls":4},{"$f":"'1 REHAB ANALYZER'!W110","v":{"v":0,"d":"$0.00"}},{"$nulls":4},{"$f":"'1 REHAB ANALYZER'!AB110","v":{"v":0,"d":"$0.00"}},{"$nulls":4},{"v":750,"d":"$750.00"}]
[{"$nulls":14},{"$f":"'1 REHAB ANALYZER'!K111","v":"CABINETS & COUNTERTOPS"},{"$nulls":6},{"$f":"'1 REHAB ANALYZER'!R111","v":{"v":1950,"d":"$1,950.00"}},{"$nulls":4},{"$f":"'1 REHAB ANALYZER'!W111","v":{"v":9496.25,"d":"$9,496.25"}},{"$nulls":4},{"$f":"'1 REHAB ANALYZER'!AB111","v":{"v":0,"d":"$0.00"}},{"$nulls":4},{"v":11446.25,"d":"$11,446.25"}]
[{"$nulls":14},{"$f":"'1 REHAB ANALYZER'!K112","v":"DOORS & TRIM"},{"$nulls":6},{"$f":"'1 REHAB ANALYZER'!R112","v":{"v":1125,"d":"$1,125.00"}},{"$nulls":4},{"$f":"'1 REHAB ANALYZER'!W112","v":{"v":1284,"d":"$1,284.00"}},{"$nulls":4},{"$f":"'1 REHAB ANALYZER'!AB112","v":{"v":0,"d":"$0.00"}},{"$nulls":4},{"v":2409,"d":"$2,409.00"}]
[{"$nulls":14},{"$f":"'1 REHAB ANALYZER'!K113","v":"CARPET & RESILIENT"},{"$nulls":6},{"$f":"'1 REHAB ANALYZER'!R113","v":{"v":900,"d":"$900.00"}},{"$nulls":4},{"$f":"'1 REHAB ANALYZER'!W113","v":{"v":1605,"d":"$1,605.00"}},{"$nulls":4},{"$f":"'1 REHAB ANALYZER'!AB113","v":{"v":0,"d":"$0.00"}},{"$nulls":4},{"v":2505,"d":"$2,505.00"}]
[{"$nulls":14},{"$f":"'1 REHAB ANALYZER'!K114","v":"HARDWOOD FLOORING"},{"$nulls":6},{"$f":"'1 REHAB ANALYZER'!R114","v":{"v":1425,"d":"$1,425.00"}},{"$nulls":4},{"$f":"'1 REHAB ANALYZER'!W114","v":{"v":2033.0000000000002,"d":"$2,033.00"}},{"$nulls":4},{"$f":"'1 REHAB ANALYZER'!AB114","v":{"v":0,"d":"$0.00"}},{"$nulls":4},{"v":3458,"d":"$3,458.00"}]
[{"$nulls":14},{"$f":"'1 REHAB ANALYZER'!K115","v":"TILING"},{"$nulls":6},{"$f":"'1 REHAB ANALYZER'!R115","v":{"v":1625,"d":"$1,625.00"}},{"$nulls":4},{"$f":"'1 REHAB ANALYZER'!W115","v":{"v":2279.1000000000004,"d":"$2,279.10"}},{"$nulls":4},{"$f":"'1 REHAB ANALYZER'!AB115","v":{"v":0,"d":"$0.00"}},{"$nulls":4},{"v":3904.1000000000004,"d":"$3,904.10"}]
[{"$nulls":14},{"$f":"'1 REHAB ANALYZER'!K116","v":"PAINTING"},{"$nulls":6},{"$f":"'1 REHAB ANALYZER'!R116","v":{"v":4000,"d":"$4,000.00"}},{"$nulls":4},{"$f":"'1 REHAB ANALYZER'!W116","v":{"v":0,"d":"$0.00"}},{"$nulls":4},{"$f":"'1 REHAB ANALYZER'!AB116","v":{"v":0,"d":"$0.00"}},{"$nulls":4},{"v":4000,"d":"$4,000.00"}]
[{"$nulls":14},{"$f":"'1 REHAB ANALYZER'!K117","v":"APPLIANCES"},{"$nulls":6},{"$f":"'1 REHAB ANALYZER'!R117","v":{"v":0,"d":"$0.00"}},{"$nulls":4},{"$f":"'1 REHAB ANALYZER'!W117","v":{"v":3210,"d":"$3,210.00"}},{"$nulls":4},{"$f":"'1 REHAB ANALYZER'!AB117","v":{"v":0,"d":"$0.00"}},{"$nulls":4},{"v":3210,"d":"$3,210.00"}]
[{"$nulls":14},{"$f":"'1 REHAB ANALYZER'!K118","v":"PLUMBING"},{"$nulls":6},{"$f":"'1 REHAB ANALYZER'!R118","v":{"v":1105,"d":"$1,105.00"}},{"$nulls":4},{"$f":"'1 REHAB ANALYZER'!W118","v":{"v":1819,"d":"$1,819.00"}},{"$nulls":4},{"$f":"'1 REHAB ANALYZER'!AB118","v":{"v":0,"d":"$0.00"}},{"$nulls":4},{"v":2924,"d":"$2,924.00"}]
[{"$nulls":14},{"$f":"'1 REHAB ANALYZER'!K119","v":"HVAC"},{"$nulls":6},{"$f":"'1 REHAB ANALYZER'!R119","v":{"v":162.5,"d":"$162.50"}},{"$nulls":4},{"$f":"'1 REHAB ANALYZER'!W119","v":{"v":321,"d":"$321.00"}},{"$nulls":4},{"$f":"'1 REHAB ANALYZER'!AB119","v":{"v":0,"d":"$0.00"}},{"$nulls":4},{"v":483.5,"d":"$483.50"}]
[{"$nulls":14},{"$f":"'1 REHAB ANALYZER'!K120","v":"ELECTRICAL"},{"$nulls":6},{"$f":"'1 REHAB ANALYZER'!R120","v":{"v":0,"d":"$0.00"}},{"$nulls":4},{"$f":"'1 REHAB ANALYZER'!W120","v":{"v":1396.3500000000001,"d":"$1,396.35"}},{"$nulls":4},{"$f":"'1 REHAB ANALYZER'!AB120","v":{"v":900,"d":"$900.00"}},{"$nulls":4},{"v":2296.3500000000004,"d":"$2,296.35"}]
[{"$nulls":14},{"$f":"'1 REHAB ANALYZER'!K121","v":"MISCELLANEOUS"},{"$nulls":6},{"$f":"'1 REHAB ANALYZER'!R121","v":{"v":0,"d":"$0.00"}},{"$nulls":4},{"$f":"'1 REHAB ANALYZER'!W121","v":{"v":0,"d":"$0.00"}},{"$nulls":4},{"$f":"'1 REHAB ANALYZER'!AB121","v":{"v":0,"d":"$0.00"}},{"$nulls":4},{"v":0,"d":"$0.00"}]
[{"$nulls":14},"TOTALS",{"$nulls":6},{"$f":"SUM(V88:Z111)","v":{"v":20972.5,"d":"$20,972.50"}},{"$nulls":4},{"$f":"SUM(AA88:AE111)","v":{"v":31581.049999999996,"d":"$31,581.05"}},{"$nulls":4},{"$f":"SUM(AF88:AJ111)","v":{"v":900,"d":"$900.00"}},{"$nulls":4},{"$f":"SUM(AK88:AO111)","v":{"v":53453.549999999996,"d":"$53,453.55"}}]
[]
[]
[{"$nulls":14},{"$f":"IF(W14=\"% of ARV\",CONCATENATE(\"Fixed Costs are being Calculated at \",TEXT(AD14,\"0%\"),\" of the ARV\"),\"\")","v":"Fixed Costs are being Calculated at 15% of the ARV"}]

{"sheet":"RENTAL ANALYSIS","index":17,"n_rows":108,"n_cols":55,"rows_kept":108,"hidden":true,"merged":[[1,0,3,2],[1,3,3,6],[1,7,3,10],[1,11,3,14],[4,3,4,18],[5,3,5,18],[7,3,7,13],[7,14,7,18],[8,3,8,13],[8,14,8,18],[9,3,9,13],[9,14,9,18],[10,3,10,13],[10,14,10,18],[11,3,11,13],[11,14,11,18],[12,3,12,13],[12,14,12,18],[13,3,13,13],[13,14,13,18],[15,20,15,22],[16,3,16,11],[16,12,16,15],[16,16,16,18],[17,3,17,12],[17,13,17,15],[17,16,17,18],[18,3,18,12],[18,13,18,15],[18,16,18,18],[19,3,19,12],[19,13,19,15],[19,16,19,18],[20,3,20,12],[20,13,20,15],[20,16,20,18],[21,3,21,12],[21,13,21,15],[21,16,21,18],[22,3,22,18],[23,3,23,12],[23,13,23,15],[23,16,23,18],[24,3,24,12],[24,13,24,15],[24,16,24,18],[25,3,25,12],[25,13,25,15],[25,16,25,18],[26,3,26,18],[28,3,28,11],[28,12,28,15],[28,16,28,18],[29,3,29,18],[30,3,30,12],[30,13,30,15],[30,16,30,18],[31,3,31,12],[31,13,31,15],[31,16,31,18],[32,3,32,12],[32,13,32,15],[32,16,32,18],[33,3,33,12],[33,13,33,15],[33,16,33,18],[34,3,34,12],[34,13,34,15],[34,16,34,18],[35,3,35,12],[35,13,35,15],[35,16,35,18],[36,3,36,12],[36,13,36,15],[36,16,36,18],[37,3,37,12],[37,13,37,15],[37,16,37,18],[38,3,38,12],[38,13,38,15],[38,16,38,18],[39,3,39,12],[39,13,39,15],[39,16,39,18],[40,3,40,12],[40,13,40,15],[40,16,40,18],[41,3,41,12],[41,13,41,15],[41,16,41,18],[42,3,42,12],[42,13,42,15],[42,16,42,18],[43,3,43,12],[43,13,43,15],[43,16,43,18],[44,3,44,12],[44,13,44,15],[44,16,44,18],[45,3,45,12],[45,13,45,15],[45,16,45,18],[46,3,46,12],[46,13,46,15],[46,16,46,18],[47,3,47,18],[49,3,49,18],[51,1,56,2],[51,3,51,18],[51,20,51,22],[52,3,52,18],[53,3,53,18],[54,3,54,18],[55,3,55,13],[55,15,55,18],[56,3,56,18],[58,3,58,18],[59,3,59,18],[60,3,60,18],[61,7,61,11],[62,3,62,7],[62,8,62,10],[62,11,62,15],[62,16,62,18],[63,3,63,18],[64,3,64,18],[65,3,65,18],[67,3,67,18],[68,3,68,18],[69,3,69,18],[70,3,70,18],[71,3,71,18],[73,3,73,18],[74,3,74,18],[75,3,75,18],[76,3,76,18],[77,3,77,18],[78,3,78,18],[80,3,80,18],[81,3,81,18],[82,3,82,18],[83,3,83,18],[84,3,84,18],[85,3,85,18],[88,2,88,34]]}
[]
[{"$nulls":3},"Rental Purchase",{"$nulls":3},"Rental Analysis",{"$nulls":3},"Long-Term Financing"]
[{"$nulls":20},"Year of Sale",30,null,null,"01","02","03","04","05","06","07","08","09","10","11","12","13","14","15","16","17","18","19","20","21","22","23","24","25","26","27","28","29","30"]
[]
[]
[{"$nulls":3},"Project Capital"]
[]
[{"$nulls":3},"After Repair Value",{"$nulls":10},{"$f":"'RENTAL PURCHASE SETUP'!AA57","v":{"v":250000,"d":"$250,000"}}]
[{"$nulls":3},{"$f":"T('RENTAL PURCHASE SETUP'!K58:Z58)","v":"- Less Purchase Costs"},{"$nulls":10},{"$f":"'RENTAL PURCHASE SETUP'!AA58","v":{"v":-103000,"d":"-$103,000"}}]
[{"$nulls":3},{"$f":"T('RENTAL PURCHASE SETUP'!K59:Z59)","v":"- Less Construction Costs"},{"$nulls":10},{"$f":"'RENTAL PURCHASE SETUP'!AA59","v":{"v":-52500,"d":"-$52,500"}}]
[{"$nulls":3},{"$f":"T('RENTAL PURCHASE SETUP'!K60:Z60)","v":"- Less Holding Costs"},{"$nulls":10},{"$f":"'RENTAL PURCHASE SETUP'!AA60","v":{"v":-2190,"d":"-$2,190"}}]
[{"$nulls":3},{"$f":"T('RENTAL PURCHASE SETUP'!K61:Z61)","v":"- Less Bridge Loan Financing Costs"},{"$nulls":10},{"$f":"'RENTAL PURCHASE SETUP'!AA61","v":{"v":0,"d":"$0"}}]
[{"$nulls":3},{"$f":"T('RENTAL PURCHASE SETUP'!K62:Z62)","v":"- Less Selling Costs"},{"$nulls":10},{"$f":"'RENTAL PURCHASE SETUP'!AA62","v":{"v":-17500,"d":"-$17,500"}}]
[{"$nulls":3},{"$f":"T('RENTAL PURCHASE SETUP'!K63:Z63)","v":"TOTAL PROFIT/EQUITY AFTER REHAB:"},{"$nulls":10},{"$f":"'RENTAL PURCHASE SETUP'!AA63","v":{"v":74810,"d":"$74,810"}}]
[]
[{"$nulls":20},"YEAR 01",{"$nulls":3},"01","02","03","04","05","06","07","08","09","10","11","12","13","14","15","16","17","18","19","20","21","22","23","24","25","26","27","28","29","30"]
[{"$nulls":3},"Revenues",{"$nulls":8},"% Increase per Year",{"$nulls":3},{"v":0.01,"d":"1.00%"},{"$nulls":3},"per month","per year","% "]
[{"$nulls":3},"Rental Unit 1  -  ( units, square feet, beds, baths)",{"$nulls":9},1250,null,null,"per month",{"$nulls":3},{"$f":"IF(Q18=\"per month\",N18,N18/12)","v":{"v":1250,"d":"$1,250"}},{"$f":"U18*12","v":{"v":15000,"d":"$15,000"}},{"$f":"IFERROR(V18/$V$23,\"\")","v":{"v":1,"d":"100.0%"}},null,{"$f":"IF($V$3>=Y$90,V18,\"\")","v":{"v":15000,"d":"$15,000"}},{"$f":"IF($V$3>=Z$90,(Y18*(1+$Q$17)),\"\")","v":{"v":15150,"d":"$15,150"}},{"v":15301.5,"d":"$15,302"},{"v":15454.515,"d":"$15,455"},{"v":15609.06015,"d":"$15,609"},{"v":15765.1507515,"d":"$15,765"},{"v":15922.802259015,"d":"$15,923"},{"v":16082.03028160515,"d":"$16,082"},{"v":16242.850584421201,"d":"$16,243"},{"v":16405.279090265412,"d":"$16,405"},{"v":16569.331881168066,"d":"$16,569"},{"v":16735.025199979747,"d":"$16,735"},{"v":16902.375451979544,"d":"$16,902"},{"v":17071.39920649934,"d":"$17,071"},{"v":17242.113198564333,"d":"$17,242"},{"v":17414.534330549977,"d":"$17,415"},{"v":17588.679673855477,"d":"$17,589"},{"v":17764.566470594033,"d":"$17,765"},{"v":17942.212135299975,"d":"$17,942"},{"v":18121.634256652975,"d":"$18,122"},{"v":18302.850599219506,"d":"$18,303"},{"v":18485.8791052117,"d":"$18,486"},{"v":18670.737896263818,"d":"$18,671"},{"v":18857.445275226455,"d":"$18,857"},{"v":19046.01972797872,"d":"$19,046"},{"v":19236.479925258507,"d":"$19,236"},{"v":19428.84472451109,"d":"$19,429"},{"v":19623.133171756203,"d":"$19,623"},{"v":19819.364503473764,"d":"$19,819"},{"v":20017.558148508502,"d":"$20,018"}]
[{"$nulls":3},"Rental Unit 2  -  ( units, square feet, beds, baths)",{"$nulls":12},"per month",{"$nulls":3},{"$f":"IF(Q19=\"per month\",N19,N19/12)","v":{"v":0,"d":"$0"}},{"$f":"U19*12","v":{"v":0,"d":"$0"}},{"$f":"IFERROR(V19/$V$23,\"\")","v":{"v":0,"d":"0.0%"}},null,{"$f":"IF($V$3>=Y$90,V19,\"\")","v":{"v":0,"d":"$0"}},{"$f":"IF($V$3>=Z$90,(Y19*(1+$Q$17)),\"\")","v":{"v":0,"d":"$0"}},{"v":0,"d":"$0"},{"v":0,"d":"$0"},{"v":0,"d":"$0"},{"v":0,"d":"$0"},{"v":0,"d":"$0"},{"v":0,"d":"$0"},{"v":0,"d":"$0"},{"v":0,"d":"$0"},{"v":0,"d":"$0"},{"v":0,"d":"$0"},{"v":0,"d":"$0"},{"v":0,"d":"$0"},{"v":0,"d":"$0"},{"v":0,"d":"$0"},{"v":0,"d":"$0"},{"v":0,"d":"$0"},{"v":0,"d":"$0"},{"v":0,"d":"$0"},{"v":0,"d":"$0"},{"v":0,"d":"$0"},{"v":0,"d":"$0"},{"v":0,"d":"$0"},{"v":0,"d":"$0"},{"v":0,"d":"$0"},{"v":0,"d":"$0"},{"v":0,"d":"$0"},{"v":0,"d":"$0"},{"v":0,"d":"$0"}]
[{"$nulls":3},"Rental Unit 3  -  ( units, square feet, beds, baths)",{"$nulls":12},"per month",{"$nulls":3},{"$f":"IF(Q20=\"per month\",N20,N20/12)","v":{"v":0,"d":"$0"}},{"$f":"U20*12","v":{"v":0,"d":"$0"}},{"$f":"IFERROR(V20/$V$23,\"\")","v":{"v":0,"d":"0.0%"}},null,{"$f":"IF($V$3>=Y$90,V20,\"\")","v":{"v":0,"d":"$0"}},{"$f":"IF($V$3>=Z$90,(Y20*(1+$Q$17)),\"\")","v":{"v":0,"d":"$0"}},{"v":0,"d":"$0"},{"v":0,"d":"$0"},{"v":0,"d":"$0"},{"v":0,"d":"$0"},{"v":0,"d":"$0"},{"v":0,"d":"$0"},{"v":0,"d":"$0"},{"v":0,"d":"$0"},{"v":0,"d":"$0"},{"v":0,"d":"$0"},{"v":0,"d":"$0"},{"v":0,"d":"$0"},{"v":0,"d":"$0"},{"v":0,"d":"$0"},{"v":0,"d":"$0"},{"v":0,"d":"$0"},{"v":0,"d":"$0"},{"v":0,"d":"$0"},{"v":0,"d":"$0"},{"v":0,"d":"$0"},{"v":0,"d":"$0"},{"v":0,"d":"$0"},{"v":0,"d":"$0"},{"v":0,"d":"$0"},{"v":0,"d":"$0"},{"v":0,"d":"$0"},{"v":0,"d":"$0"},{"v":0,"d":"$0"}]
[{"$nulls":3},"Rental Unit 4  -  ( units, square feet, beds, baths)",{"$nulls":12},"per month",{"$nulls":3},{"$f":"IF(Q21=\"per month\",N21,N21/12)","v":{"v":0,"d":"$0"}},{"$f":"U21*12","v":{"v":0,"d":"$0"}},{"$f":"IFERROR(V21/$V$23,\"\")","v":{"v":0,"d":"0.0%"}},null,{"$f":"IF($V$3>=Y$90,V21,\"\")","v":{"v":0,"d":"$0"}},{"$f":"IF($V$3>=Z$90,(Y21*(1+$Q$17)),\"\")","v":{"v":0,"d":"$0"}},{"v":0,"d":"$0"},{"v":0,"d":"$0"},{"v":0,"d":"$0"},{"v":0,"d":"$0"},{"v":0,"d":"$0"},{"v":0,"d":"$0"},{"v":0,"d":"$0"},{"v":0,"d":"$0"},{"v":0,"d":"$0"},{"v":0,"d":"$0"},{"v":0,"d":"$0"},{"v":0,"d":"$0"},{"v":0,"d":"$0"},{"v":0,"d":"$0"},{"v":0,"d":"$0"},{"v":0,"d":"$0"},{"v":0,"d":"$0"},{"v":0,"d":"$0"},{"v":0,"d":"$0"},{"v":0,"d":"$0"},{"v":0,"d":"$0"},{"v":0,"d":"$0"},{"v":0,"d":"$0"},{"v":0,"d":"$0"},{"v":0,"d":"$0"},{"v":0,"d":"$0"},{"v":0,"d":"$0"},{"v":0,"d":"$0"}]
[{"$nulls":3},"Rental Unit 5  -  ( units, square feet, beds, baths)",{"$nulls":12},"per month",{"$nulls":3},{"$f":"IF(Q22=\"per month\",N22,N22/12)","v":{"v":0,"d":"$0"}},{"$f":"U22*12","v":{"v":0,"d":"$0"}},{"$f":"IFERROR(V22/$V$23,\"\")","v":{"v":0,"d":"0.0%"}},null,{"$f":"IF($V$3>=Y$90,V22,\"\")","v":{"v":0,"d":"$0"}},{"$f":"IF($V$3>=Z$90,(Y22*(1+$Q$17)),\"\")","v":{"v":0,"d":"$0"}},{"v":0,"d":"$0"},{"v":0,"d":"$0"},{"v":0,"d":"$0"},{"v":0,"d":"$0"},{"v":0,"d":"$0"},{"v":0,"d":"$0"},{"v":0,"d":"$0"},{"v":0,"d":"$0"},{"v":0,"d":"$0"},{"v":0,"d":"$0"},{"v":0,"d":"$0"},{"v":0,"d":"$0"},{"v":0,"d":"$0"},{"v":0,"d":"$0"},{"v":0,"d":"$0"},{"v":0,"d":"$0"},{"v":0,"d":"$0"},{"v":0,"d":"$0"},{"v":0,"d":"$0"},{"v":0,"d":"$0"},{"v":0,"d":"$0"},{"v":0,"d":"$0"},{"v":0,"d":"$0"},{"v":0,"d":"$0"},{"v":0,"d":"$0"},{"v":0,"d":"$0"},{"v":0,"d":"$0"},{"v":0,"d":"$0"}]
[{"$nulls":3},"GROSS SCHEDULED INCOME",{"$nulls":16},{"$f":"SUM(U18:U22)","v":{"v":1250,"d":"$1,250"}},{"$f":"SUM(V18:V22)","v":{"v":15000,"d":"$15,000"}},"",null,{"$f":"IF($V$3>=Y$90,SUM(Y18:Y22),\"\")","v":{"v":15000,"d":"$15,000"}},{"$f":"IF($V$3>=Z$90,SUM(Z18:Z22),\"\")","v":{"v":15150,"d":"$15,150"}},{"v":15301.5,"d":"$15,302"},{"v":15454.515,"d":"$15,455"},{"v":15609.06015,"d":"$15,609"},{"v":15765.1507515,"d":"$15,765"},{"v":15922.802259015,"d":"$15,923"},{"v":16082.03028160515,"d":"$16,082"},{"v":16242.850584421201,"d":"$16,243"},{"v":16405.279090265412,"d":"$16,405"},{"v":16569.331881168066,"d":"$16,569"},{"v":16735.025199979747,"d":"$16,735"},{"v":16902.375451979544,"d":"$16,902"},{"v":17071.39920649934,"d":"$17,071"},{"v":17242.113198564333,"d":"$17,242"},{"v":17414.534330549977,"d":"$17,415"},{"v":17588.679673855477,"d":"$17,589"},{"v":17764.566470594033,"d":"$17,765"},{"v":17942.212135299975,"d":"$17,942"},{"v":18121.634256652975,"d":"$18,122"},{"v":18302.850599219506,"d":"$18,303"},{"v":18485.8791052117,"d":"$18,486"},{"v":18670.737896263818,"d":"$18,671"},{"v":18857.445275226455,"d":"$18,857"},{"v":19046.01972797872,"d":"$19,046"},{"v":19236.479925258507,"d":"$19,236"},{"v":19428.84472451109,"d":"$19,429"},{"v":19623.133171756203,"d":"$19,623"},{"v":19819.364503473764,"d":"$19,819"},{"v":20017.558148508502,"d":"$20,018"}]
[{"$nulls":3},"Vacancy Loss Amount",{"$nulls":12},"# of months",{"$nulls":3},{"$f":"IF(Q24=\"# of Months\",-(U23*N24)/12,(-U23*(N24/100)))","v":{"v":0,"d":"$0"}},{"$f":"U24*12","v":{"v":0,"d":"$0"}},{"$f":"IFERROR(V24/$V$23,\"\")","v":{"v":0,"d":"0.0%"}},null,{"$f":"IF(Y23=\"\",\"\",V24)","v":{"v":0,"d":"$0"}},{"$f":"IF(Z23=\"\",\"\",Y24*(1+Revenue_Increase_Per_Year))","v":{"v":0,"d":"$0"}},{"v":0,"d":"$0"},{"v":0,"d":"$0"},{"v":0,"d":"$0"},{"v":0,"d":"$0"},{"v":0,"d":"$0"},{"v":0,"d":"$0"},{"v":0,"d":"$0"},{"v":0,"d":"$0"},{"v":0,"d":"$0"},{"v":0,"d":"$0"},{"v":0,"d":"$0"},{"v":0,"d":"$0"},{"v":0,"d":"$0"},{"v":0,"d":"$0"},{"v":0,"d":"$0"},{"v":0,"d":"$0"},{"v":0,"d":"$0"},{"v":0,"d":"$0"},{"v":0,"d":"$0"},{"v":0,"d":"$0"},{"v":0,"d":"$0"},{"v":0,"d":"$0"},{"v":0,"d":"$0"},{"v":0,"d":"$0"},{"v":0,"d":"$0"},{"v":0,"d":"$0"},{"v":0,"d":"$0"},{"v":0,"d":"$0"}]
[{"$nulls":3},"Tenant Concessions",{"$nulls":12},"# of months",{"$nulls":3},{"$f":"IF(Q25=\"# of Months\",-(U23*N25)/12,(-U23*(N25/100)))","v":{"v":0,"d":"$0"}},{"$f":"U25*12","v":{"v":0,"d":"$0"}},{"$f":"IFERROR(V25/$V$23,\"\")","v":{"v":0,"d":"0.0%"}},null,{"$f":"V25","v":{"v":0,"d":"$0"}},{"$f":"IF(Z23=\"\",\"\",Y25*(1+Revenue_Increase_Per_Year))","v":{"v":0,"d":"$0"}},{"v":0,"d":"$0"},{"v":0,"d":"$0"},{"v":0,"d":"$0"},{"v":0,"d":"$0"},{"v":0,"d":"$0"},{"v":0,"d":"$0"},{"v":0,"d":"$0"},{"v":0,"d":"$0"},{"v":0,"d":"$0"},{"v":0,"d":"$0"},{"v":0,"d":"$0"},{"v":0,"d":"$0"},{"v":0,"d":"$0"},{"v":0,"d":"$0"},{"v":0,"d":"$0"},{"v":0,"d":"$0"},{"v":0,"d":"$0"},{"v":0,"d":"$0"},{"v":0,"d":"$0"},{"v":0,"d":"$0"},{"v":0,"d":"$0"},{"v":0,"d":"$0"},{"v":0,"d":"$0"},{"v":0,"d":"$0"},{"v":0,"d":"$0"},{"v":0,"d":"$0"},{"v":0,"d":"$0"},{"v":0,"d":"$0"}]
[{"$nulls":3},"Other Income",{"$nulls":12},"per month",{"$nulls":3},{"$f":"IF(Q26=\"per month\",N26,N26/12)","v":{"v":0,"d":"$0"}},{"$f":"U26*12","v":{"v":0,"d":"$0"}},{"$f":"IFERROR(V26/$V$23,\"\")","v":{"v":0,"d":"0.0%"}},null,{"$f":"IF($V$3>=Y$90,$V$26,\"\")","v":{"v":0,"d":"$0"}},{"$f":"IF($V$3>=Z$90,(Y26+(Y26*$Q$17)),\"\")","v":{"v":0,"d":"$0"}},{"v":0,"d":"$0"},{"v":0,"d":"$0"},{"v":0,"d":"$0"},{"v":0,"d":"$0"},{"v":0,"d":"$0"},{"v":0,"d":"$0"},{"v":0,"d":"$0"},{"v":0,"d":"$0"},{"v":0,"d":"$0"},{"v":0,"d":"$0"},{"v":0,"d":"$0"},{"v":0,"d":"$0"},{"v":0,"d":"$0"},{"v":0,"d":"$0"},{"v":0,"d":"$0"},{"v":0,"d":"$0"},{"v":0,"d":"$0"},{"v":0,"d":"$0"},{"v":0,"d":"$0"},{"v":0,"d":"$0"},{"v":0,"d":"$0"},{"v":0,"d":"$0"},{"v":0,"d":"$0"},{"v":0,"d":"$0"},{"v":0,"d":"$0"},{"v":0,"d":"$0"},{"v":0,"d":"$0"},{"v":0,"d":"$0"}]
[{"$nulls":3},"GROSS OPERATING INCOME",{"$nulls":16},{"$f":"SUM(U23:U26)","v":{"v":1250,"d":"$1,250"}},{"$f":"SUM(V23:V26)","v":{"v":15000,"d":"$15,000"}},{"$f":"SUM(W23:W26)","v":{"v":0,"d":"0%"}},null,{"$f":"IF(Y23=\"\",\"\",SUM(Y23:Y26))","v":{"v":15000,"d":"$15,000"}},{"v":15150,"d":"$15,150"},{"v":15301.5,"d":"$15,302"},{"v":15454.515,"d":"$15,455"},{"v":15609.06015,"d":"$15,609"},{"v":15765.1507515,"d":"$15,765"},{"v":15922.802259015,"d":"$15,923"},{"v":16082.03028160515,"d":"$16,082"},{"v":16242.850584421201,"d":"$16,243"},{"v":16405.279090265412,"d":"$16,405"},{"v":16569.331881168066,"d":"$16,569"},{"v":16735.025199979747,"d":"$16,735"},{"v":16902.375451979544,"d":"$16,902"},{"v":17071.39920649934,"d":"$17,071"},{"v":17242.113198564333,"d":"$17,242"},{"v":17414.534330549977,"d":"$17,415"},{"v":17588.679673855477,"d":"$17,589"},{"v":17764.566470594033,"d":"$17,765"},{"v":17942.212135299975,"d":"$17,942"},{"v":18121.634256652975,"d":"$18,122"},{"v":18302.850599219506,"d":"$18,303"},{"v":18485.8791052117,"d":"$18,486"},{"v":18670.737896263818,"d":"$18,671"},{"v":18857.445275226455,"d":"$18,857"},{"v":19046.01972797872,"d":"$19,046"},{"v":19236.479925258507,"d":"$19,236"},{"$f":"IF(AY23=\"\",\"\",SUM(AY23:AY26))","v":{"v":19428.84472451109,"d":"$19,429"}},{"$f":"IF(AZ23=\"\",\"\",SUM(AZ23:AZ26))","v":{"v":19623.133171756203,"d":"$19,623"}},{"$f":"IF(BA23=\"\",\"\",SUM(BA23:BA26))","v":{"v":19819.364503473764,"d":"$19,819"}},{"$f":"IF(BB23=\"\",\"\",SUM(BB23:BB26))","v":{"v":20017.558148508502,"d":"$20,018"}}]
[]
[{"$nulls":3},"Operating Expenses",{"$nulls":8},"% Increase per Year",{"$nulls":3},{"v":0.01,"d":"1.00%"},{"$nulls":8},{"$f":"$Q$29","v":{"v":0.01,"d":"1.00%"}},{"v":0.01,"d":"1.00%"},{"v":0.01,"d":"1.00%"},{"v":0.01,"d":"1.00%"},{"v":0.01,"d":"1.00%"},{"v":0.01,"d":"1.00%"},{"v":0.01,"d":"1.00%"},{"v":0.01,"d":"1.00%"},{"v":0.01,"d":"1.00%"},{"v":0.01,"d":"1.00%"},{"v":0.01,"d":"1.00%"},{"v":0.01,"d":"1.00%"},{"v":0.01,"d":"1.00%"},{"v":0.01,"d":"1.00%"},{"v":0.01,"d":"1.00%"},{"v":0.01,"d":"1.00%"},{"v":0.01,"d":"1.00%"},{"v":0.01,"d":"1.00%"},{"v":0.01,"d":"1.00%"},{"v":0.01,"d":"1.00%"},{"v":0.01,"d":"1.00%"},{"v":0.01,"d":"1.00%"},{"v":0.01,"d":"1.00%"},{"v":0.01,"d":"1.00%"},{"v":0.01,"d":"1.00%"},{"v":0.01,"d":"1.00%"},{"v":0.01,"d":"1.00%"},{"v":0.01,"d":"1.00%"},{"v":0.01,"d":"1.00%"}]
[{"$nulls":3},"Fixed Expenses:"]
[{"$nulls":3},"Property Taxes",{"$nulls":9},2000,null,null,"per year",{"$nulls":3},{"$f":"-IF(Q31=\"per year\",N31/12,IF(Q31=\"% of GSI\",(N31/100)*$U$23,IF(Q31=\"% of GOI\",(N31/100)*$U$27,N31)))*1","v":{"v":-166.66666666666666,"d":"-$167"}},{"$f":"U31*12","v":{"v":-2000,"d":"-$2,000"}},{"$f":"IFERROR(V31/$V$23,\"\")","v":{"v":-0.13333333333333333,"d":"-13%"}},null,{"$f":"IF($V$3>=Y$90,V31*1,\"\")","v":{"v":-2000,"d":"-$2,000"}},{"$f":"IF($V$3>=Z$90,Y31*(1+$Q$29),\"\")","v":{"v":-2020,"d":"-$2,020"}},{"v":-2040.2,"d":"-$2,040"},{"v":-2060.602,"d":"-$2,061"},{"v":-2081.20802,"d":"-$2,081"},{"v":-2102.0201002,"d":"-$2,102"},{"v":-2123.0403012019997,"d":"-$2,123"},{"v":-2144.2707042140196,"d":"-$2,144"},{"v":-2165.71341125616,"d":"-$2,166"},{"v":-2187.3705453687217,"d":"-$2,187"},{"v":-2209.244250822409,"d":"-$2,209"},{"v":-2231.336693330633,"d":"-$2,231"},{"v":-2253.6500602639394,"d":"-$2,254"},{"v":-2276.186560866579,"d":"-$2,276"},{"v":-2298.9484264752446,"d":"-$2,299"},{"v":-2321.937910739997,"d":"-$2,322"},{"v":-2345.157289847397,"d":"-$2,345"},{"v":-2368.6088627458707,"d":"-$2,369"},{"v":-2392.2949513733292,"d":"-$2,392"},{"v":-2416.2179008870626,"d":"-$2,416"},{"v":-2440.3800798959332,"d":"-$2,440"},{"v":-2464.7838806948926,"d":"-$2,465"},{"v":-2489.4317195018416,"d":"-$2,489"},{"v":-2514.3260366968602,"d":"-$2,514"},{"v":-2539.469297063829,"d":"-$2,539"},{"v":-2564.8639900344674,"d":"-$2,565"},{"v":-2590.512629934812,"d":"-$2,591"},{"v":-2616.41775623416,"d":"-$2,616"},{"v":-2642.5819337965017,"d":"-$2,643"},{"v":-2669.007753134467,"d":"-$2,669"}]
[{"$nulls":3},"Property Insurance",{"$nulls":9},100,null,null,"per year",{"$nulls":3},{"v":-8.333333333333334,"d":"-$8"},{"$f":"U32*12","v":{"v":-100,"d":"-$100"}},{"v":-0.006666666666666667,"d":"-1%"},null,{"v":-100,"d":"-$100"},{"$f":"IF($V$3>=Z$90,Y32*(1+$Q$29),\"\")","v":{"v":-101,"d":"-$101"}},{"v":-102.01,"d":"-$102"},{"v":-103.0301,"d":"-$103"},{"v":-104.060401,"d":"-$104"},{"v":-105.10100501,"d":"-$105"},{"v":-106.1520150601,"d":"-$106"},{"v":-107.213535210701,"d":"-$107"},{"v":-108.28567056280801,"d":"-$108"},{"v":-109.36852726843608,"d":"-$109"},{"v":-110.46221254112045,"d":"-$110"},{"v":-111.56683466653166,"d":"-$112"},{"v":-112.68250301319698,"d":"-$113"},{"v":-113.80932804332895,"d":"-$114"},{"v":-114.94742132376224,"d":"-$115"},{"v":-116.09689553699987,"d":"-$116"},{"v":-117.25786449236986,"d":"-$117"},{"v":-118.43044313729357,"d":"-$118"},{"v":-119.6147475686665,"d":"-$120"},{"v":-120.81089504435317,"d":"-$121"},{"v":-122.0190039947967,"d":"-$122"},{"v":-123.23919403474467,"d":"-$123"},{"v":-124.47158597509213,"d":"-$124"},{"v":-125.71630183484305,"d":"-$126"},{"v":-126.97346485319149,"d":"-$127"},{"v":-128.2431995017234,"d":"-$128"},{"v":-129.52563149674066,"d":"-$130"},{"v":-130.82088781170808,"d":"-$131"},{"v":-132.12909668982516,"d":"-$132"},{"v":-133.45038765672342,"d":"-$133"}]
[{"$nulls":3},"Cleaning and Maintenance:",{"$nulls":12},"per month",{"$nulls":3},{"v":0,"d":"$0"},{"v":0,"d":"$0"},{"v":0,"d":"0%"},null,{"v":0,"d":"$0"},{"$f":"IF($V$3>=Z$90,Y33*(1+$Q$29),\"\")","v":{"v":0,"d":"$0"}},{"v":0,"d":"$0"},{"v":0,"d":"$0"},{"v":0,"d":"$0"},{"v":0,"d":"$0"},{"v":0,"d":"$0"},{"v":0,"d":"$0"},{"v":0,"d":"$0"},{"v":0,"d":"$0"},{"v":0,"d":"$0"},{"v":0,"d":"$0"},{"v":0,"d":"$0"},{"v":0,"d":"$0"},{"v":0,"d":"$0"},{"v":0,"d":"$0"},{"v":0,"d":"$0"},{"v":0,"d":"$0"},{"v":0,"d":"$0"},{"v":0,"d":"$0"},{"v":0,"d":"$0"},{"v":0,"d":"$0"},{"v":0,"d":"$0"},{"v":0,"d":"$0"},{"v":0,"d":"$0"},{"v":0,"d":"$0"},{"v":0,"d":"$0"},{"v":0,"d":"$0"},{"v":0,"d":"$0"},{"v":0,"d":"$0"}]
[{"$nulls":3},"HOA Dues:",{"$nulls":12},"per month",{"$nulls":3},{"v":0,"d":"$0"},{"v":0,"d":"$0"},{"v":0,"d":"0%"},null,{"v":0,"d":"$0"},{"$f":"IF($V$3>=Z$90,Y34*(1+$Q$29),\"\")","v":{"v":0,"d":"$0"}},{"v":0,"d":"$0"},{"v":0,"d":"$0"},{"v":0,"d":"$0"},{"v":0,"d":"$0"},{"v":0,"d":"$0"},{"v":0,"d":"$0"},{"v":0,"d":"$0"},{"v":0,"d":"$0"},{"v":0,"d":"$0"},{"v":0,"d":"$0"},{"v":0,"d":"$0"},{"v":0,"d":"$0"},{"v":0,"d":"$0"},{"v":0,"d":"$0"},{"v":0,"d":"$0"},{"v":0,"d":"$0"},{"v":0,"d":"$0"},{"v":0,"d":"$0"},{"v":0,"d":"$0"},{"v":0,"d":"$0"},{"v":0,"d":"$0"},{"v":0,"d":"$0"},{"v":0,"d":"$0"},{"v":0,"d":"$0"},{"v":0,"d":"$0"},{"v":0,"d":"$0"},{"v":0,"d":"$0"},{"v":0,"d":"$0"}]
[{"$nulls":3},"Lawn and Groundskeeping:",{"$nulls":12},"per month",{"$nulls":3},{"v":0,"d":"$0"},{"v":0,"d":"$0"},{"v":0,"d":"0%"},null,{"v":0,"d":"$0"},{"$f":"IF($V$3>=Z$90,Y35*(1+$Q$29),\"\")","v":{"v":0,"d":"$0"}},{"v":0,"d":"$0"},{"v":0,"d":"$0"},{"v":0,"d":"$0"},{"v":0,"d":"$0"},{"v":0,"d":"$0"},{"v":0,"d":"$0"},{"v":0,"d":"$0"},{"v":0,"d":"$0"},{"v":0,"d":"$0"},{"v":0,"d":"$0"},{"v":0,"d":"$0"},{"v":0,"d":"$0"},{"v":0,"d":"$0"},{"v":0,"d":"$0"},{"v":0,"d":"$0"},{"v":0,"d":"$0"},{"v":0,"d":"$0"},{"v":0,"d":"$0"},{"v":0,"d":"$0"},{"v":0,"d":"$0"},{"v":0,"d":"$0"},{"v":0,"d":"$0"},{"v":0,"d":"$0"},{"v":0,"d":"$0"},{"v":0,"d":"$0"},{"v":0,"d":"$0"},{"v":0,"d":"$0"},{"v":0,"d":"$0"}]
[{"$nulls":3},"Auto and Travel:",{"$nulls":12},"per month",{"$nulls":3},{"v":0,"d":"$0"},{"v":0,"d":"$0"},{"v":0,"d":"0%"},null,{"v":0,"d":"$0"},{"$f":"IF($V$3>=Z$90,Y36*(1+$Q$29),\"\")","v":{"v":0,"d":"$0"}},{"v":0,"d":"$0"},{"v":0,"d":"$0"},{"v":0,"d":"$0"},{"v":0,"d":"$0"},{"v":0,"d":"$0"},{"v":0,"d":"$0"},{"v":0,"d":"$0"},{"v":0,"d":"$0"},{"v":0,"d":"$0"},{"v":0,"d":"$0"},{"v":0,"d":"$0"},{"v":0,"d":"$0"},{"v":0,"d":"$0"},{"v":0,"d":"$0"},{"v":0,"d":"$0"},{"v":0,"d":"$0"},{"v":0,"d":"$0"},{"v":0,"d":"$0"},{"v":0,"d":"$0"},{"v":0,"d":"$0"},{"v":0,"d":"$0"},{"v":0,"d":"$0"},{"v":0,"d":"$0"},{"v":0,"d":"$0"},{"v":0,"d":"$0"},{"v":0,"d":"$0"},{"v":0,"d":"$0"},{"v":0,"d":"$0"}]
[{"$nulls":3},"Electrical Utilities:",{"$nulls":12},"per month",{"$nulls":3},{"v":0,"d":"$0"},{"v":0,"d":"$0"},{"v":0,"d":"0%"},null,{"v":0,"d":"$0"},{"$f":"IF($V$3>=Z$90,Y37*(1+$Q$29),\"\")","v":{"v":0,"d":"$0"}},{"v":0,"d":"$0"},{"v":0,"d":"$0"},{"v":0,"d":"$0"},{"v":0,"d":"$0"},{"v":0,"d":"$0"},{"v":0,"d":"$0"},{"v":0,"d":"$0"},{"v":0,"d":"$0"},{"v":0,"d":"$0"},{"v":0,"d":"$0"},{"v":0,"d":"$0"},{"v":0,"d":"$0"},{"v":0,"d":"$0"},{"v":0,"d":"$0"},{"v":0,"d":"$0"},{"v":0,"d":"$0"},{"v":0,"d":"$0"},{"v":0,"d":"$0"},{"v":0,"d":"$0"},{"v":0,"d":"$0"},{"v":0,"d":"$0"},{"v":0,"d":"$0"},{"v":0,"d":"$0"},{"v":0,"d":"$0"},{"v":0,"d":"$0"},{"v":0,"d":"$0"},{"v":0,"d":"$0"},{"v":0,"d":"$0"}]
[{"$nulls":3},"Water Utilities:",{"$nulls":12},"per month",{"$nulls":3},{"v":0,"d":"$0"},{"v":0,"d":"$0"},{"v":0,"d":"0%"},null,{"v":0,"d":"$0"},{"$f":"IF($V$3>=Z$90,Y38*(1+$Q$29),\"\")","v":{"v":0,"d":"$0"}},{"v":0,"d":"$0"},{"v":0,"d":"$0"},{"v":0,"d":"$0"},{"v":0,"d":"$0"},{"v":0,"d":"$0"},{"v":0,"d":"$0"},{"v":0,"d":"$0"},{"v":0,"d":"$0"},{"v":0,"d":"$0"},{"v":0,"d":"$0"},{"v":0,"d":"$0"},{"v":0,"d":"$0"},{"v":0,"d":"$0"},{"v":0,"d":"$0"},{"v":0,"d":"$0"},{"v":0,"d":"$0"},{"v":0,"d":"$0"},{"v":0,"d":"$0"},{"v":0,"d":"$0"},{"v":0,"d":"$0"},{"v":0,"d":"$0"},{"v":0,"d":"$0"},{"v":0,"d":"$0"},{"v":0,"d":"$0"},{"v":0,"d":"$0"},{"v":0,"d":"$0"},{"v":0,"d":"$0"},{"v":0,"d":"$0"}]
[{"$nulls":3},"Gas Utilities:",{"$nulls":12},"per month",{"$nulls":3},{"v":0,"d":"$0"},{"v":0,"d":"$0"},{"v":0,"d":"0%"},null,{"v":0,"d":"$0"},{"$f":"IF($V$3>=Z$90,Y39*(1+$Q$29),\"\")","v":{"v":0,"d":"$0"}},{"v":0,"d":"$0"},{"v":0,"d":"$0"},{"v":0,"d":"$0"},{"v":0,"d":"$0"},{"v":0,"d":"$0"},{"v":0,"d":"$0"},{"v":0,"d":"$0"},{"v":0,"d":"$0"},{"v":0,"d":"$0"},{"v":0,"d":"$0"},{"v":0,"d":"$0"},{"v":0,"d":"$0"},{"v":0,"d":"$0"},{"v":0,"d":"$0"},{"v":0,"d":"$0"},{"v":0,"d":"$0"},{"v":0,"d":"$0"},{"v":0,"d":"$0"},{"v":0,"d":"$0"},{"v":0,"d":"$0"},{"v":0,"d":"$0"},{"v":0,"d":"$0"},{"v":0,"d":"$0"},{"v":0,"d":"$0"},{"v":0,"d":"$0"},{"v":0,"d":"$0"},{"v":0,"d":"$0"},{"v":0,"d":"$0"}]
[{"$nulls":3},"Garbage:",{"$nulls":12},"per month",{"$nulls":3},{"v":0,"d":"$0"},{"v":0,"d":"$0"},{"v":0,"d":"0%"},null,{"v":0,"d":"$0"},{"$f":"IF($V$3>=Z$90,Y40*(1+$Q$29),\"\")","v":{"v":0,"d":"$0"}},{"v":0,"d":"$0"},{"v":0,"d":"$0"},{"v":0,"d":"$0"},{"v":0,"d":"$0"},{"v":0,"d":"$0"},{"v":0,"d":"$0"},{"v":0,"d":"$0"},{"v":0,"d":"$0"},{"v":0,"d":"$0"},{"v":0,"d":"$0"},{"v":0,"d":"$0"},{"v":0,"d":"$0"},{"v":0,"d":"$0"},{"v":0,"d":"$0"},{"v":0,"d":"$0"},{"v":0,"d":"$0"},{"v":0,"d":"$0"},{"v":0,"d":"$0"},{"v":0,"d":"$0"},{"v":0,"d":"$0"},{"v":0,"d":"$0"},{"v":0,"d":"$0"},{"v":0,"d":"$0"},{"v":0,"d":"$0"},{"v":0,"d":"$0"},{"v":0,"d":"$0"},{"v":0,"d":"$0"},{"v":0,"d":"$0"}]
[{"$nulls":3},"Advertising:",{"$nulls":12},"per year",{"$nulls":3},{"v":0,"d":"$0"},{"v":0,"d":"$0"},{"v":0,"d":"0%"},null,{"v":0,"d":"$0"},{"$f":"IF($V$3>=Z$90,Y41*(1+$Q$29),\"\")","v":{"v":0,"d":"$0"}},{"v":0,"d":"$0"},{"v":0,"d":"$0"},{"v":0,"d":"$0"},{"v":0,"d":"$0"},{"v":0,"d":"$0"},{"v":0,"d":"$0"},{"v":0,"d":"$0"},{"v":0,"d":"$0"},{"v":0,"d":"$0"},{"v":0,"d":"$0"},{"v":0,"d":"$0"},{"v":0,"d":"$0"},{"v":0,"d":"$0"},{"v":0,"d":"$0"},{"v":0,"d":"$0"},{"v":0,"d":"$0"},{"v":0,"d":"$0"},{"v":0,"d":"$0"},{"v":0,"d":"$0"},{"v":0,"d":"$0"},{"v":0,"d":"$0"},{"v":0,"d":"$0"},{"v":0,"d":"$0"},{"v":0,"d":"$0"},{"v":0,"d":"$0"},{"v":0,"d":"$0"},{"v":0,"d":"$0"},{"v":0,"d":"$0"}]
[{"$nulls":3},"Accounting & Legal:",{"$nulls":12},"per year",{"$nulls":3},{"v":0,"d":"$0"},{"v":0,"d":"$0"},{"v":0,"d":"0%"},null,{"v":0,"d":"$0"},{"$f":"IF($V$3>=Z$90,Y42*(1+$Q$29),\"\")","v":{"v":0,"d":"$0"}},{"v":0,"d":"$0"},{"v":0,"d":"$0"},{"v":0,"d":"$0"},{"v":0,"d":"$0"},{"v":0,"d":"$0"},{"v":0,"d":"$0"},{"v":0,"d":"$0"},{"v":0,"d":"$0"},{"v":0,"d":"$0"},{"v":0,"d":"$0"},{"v":0,"d":"$0"},{"v":0,"d":"$0"},{"v":0,"d":"$0"},{"v":0,"d":"$0"},{"v":0,"d":"$0"},{"v":0,"d":"$0"},{"v":0,"d":"$0"},{"v":0,"d":"$0"},{"v":0,"d":"$0"},{"v":0,"d":"$0"},{"v":0,"d":"$0"},{"v":0,"d":"$0"},{"v":0,"d":"$0"},{"v":0,"d":"$0"},{"v":0,"d":"$0"},{"v":0,"d":"$0"},{"v":0,"d":"$0"},{"v":0,"d":"$0"}]
[{"$nulls":3},"Other 1:",{"$nulls":12},"per year",{"$nulls":3},{"v":0,"d":"$0"},{"v":0,"d":"$0"},{"v":0,"d":"0%"},null,{"v":0,"d":"$0"},{"$f":"IF($V$3>=Z$90,Y43*(1+$Q$29),\"\")","v":{"v":0,"d":"$0"}},{"v":0,"d":"$0"},{"v":0,"d":"$0"},{"v":0,"d":"$0"},{"v":0,"d":"$0"},{"v":0,"d":"$0"},{"v":0,"d":"$0"},{"v":0,"d":"$0"},{"v":0,"d":"$0"},{"v":0,"d":"$0"},{"v":0,"d":"$0"},{"v":0,"d":"$0"},{"v":0,"d":"$0"},{"v":0,"d":"$0"},{"v":0,"d":"$0"},{"v":0,"d":"$0"},{"v":0,"d":"$0"},{"v":0,"d":"$0"},{"v":0,"d":"$0"},{"v":0,"d":"$0"},{"v":0,"d":"$0"},{"v":0,"d":"$0"},{"v":0,"d":"$0"},{"v":0,"d":"$0"},{"v":0,"d":"$0"},{"v":0,"d":"$0"},{"v":0,"d":"$0"},{"v":0,"d":"$0"},{"v":0,"d":"$0"}]
[{"$nulls":3},"Other 2:",{"$nulls":12},"per year",{"$nulls":3},{"v":0,"d":"$0"},{"v":0,"d":"$0"},{"v":0,"d":"0%"},null,{"v":0,"d":"$0"},{"$f":"IF($V$3>=Z$90,Y44*(1+$Q$29),\"\")","v":{"v":0,"d":"$0"}},{"v":0,"d":"$0"},{"v":0,"d":"$0"},{"v":0,"d":"$0"},{"v":0,"d":"$0"},{"v":0,"d":"$0"},{"v":0,"d":"$0"},{"v":0,"d":"$0"},{"v":0,"d":"$0"},{"v":0,"d":"$0"},{"v":0,"d":"$0"},{"v":0,"d":"$0"},{"v":0,"d":"$0"},{"v":0,"d":"$0"},{"v":0,"d":"$0"},{"v":0,"d":"$0"},{"v":0,"d":"$0"},{"v":0,"d":"$0"},{"v":0,"d":"$0"},{"v":0,"d":"$0"},{"v":0,"d":"$0"},{"v":0,"d":"$0"},{"v":0,"d":"$0"},{"v":0,"d":"$0"},{"v":0,"d":"$0"},{"v":0,"d":"$0"},{"v":0,"d":"$0"},{"v":0,"d":"$0"},{"v":0,"d":"$0"}]
[{"$nulls":3},"Property Management:",{"$nulls":9},10,null,null,"% of GSI",{"$nulls":3},{"v":-125,"d":"-$125"},{"v":-1500,"d":"-$1,500"},{"v":-0.1,"d":"-10%"},null,{"v":-1500,"d":"-$1,500"},{"$f":"IF($V$3>=Z$90,Y45*(1+$Q$29),\"\")","v":{"v":-1515,"d":"-$1,515"}},{"v":-1530.15,"d":"-$1,530"},{"v":-1545.4515000000001,"d":"-$1,545"},{"v":-1560.9060150000003,"d":"-$1,561"},{"v":-1576.5150751500003,"d":"-$1,577"},{"v":-1592.2802259015002,"d":"-$1,592"},{"v":-1608.2030281605153,"d":"-$1,608"},{"v":-1624.2850584421203,"d":"-$1,624"},{"v":-1640.5279090265415,"d":"-$1,641"},{"v":-1656.9331881168068,"d":"-$1,657"},{"v":-1673.502519997975,"d":"-$1,674"},{"v":-1690.237545197955,"d":"-$1,690"},{"v":-1707.1399206499345,"d":"-$1,707"},{"v":-1724.2113198564339,"d":"-$1,724"},{"v":-1741.4534330549982,"d":"-$1,741"},{"v":-1758.8679673855481,"d":"-$1,759"},{"v":-1776.4566470594036,"d":"-$1,776"},{"v":-1794.2212135299976,"d":"-$1,794"},{"v":-1812.1634256652976,"d":"-$1,812"},{"v":-1830.2850599219505,"d":"-$1,830"},{"v":-1848.58791052117,"d":"-$1,849"},{"v":-1867.0737896263818,"d":"-$1,867"},{"v":-1885.7445275226455,"d":"-$1,886"},{"v":-1904.601972797872,"d":"-$1,905"},{"v":-1923.6479925258507,"d":"-$1,924"},{"v":-1942.884472451109,"d":"-$1,943"},{"v":-1962.31331717562,"d":"-$1,962"},{"v":-1981.9364503473764,"d":"-$1,982"},{"v":-2001.7558148508501,"d":"-$2,002"}]
[{"$nulls":3},"Repairs:",{"$nulls":9},10,null,null,"% of GSI",{"$nulls":3},{"v":-125,"d":"-$125"},{"v":-1500,"d":"-$1,500"},{"v":-0.1,"d":"-10%"},null,{"v":-1500,"d":"-$1,500"},{"$f":"IF($V$3>=Z$90,Y46*(1+$Q$29),\"\")","v":{"v":-1515,"d":"-$1,515"}},{"v":-1530.15,"d":"-$1,530"},{"v":-1545.4515000000001,"d":"-$1,545"},{"v":-1560.9060150000003,"d":"-$1,561"},{"v":-1576.5150751500003,"d":"-$1,577"},{"v":-1592.2802259015002,"d":"-$1,592"},{"v":-1608.2030281605153,"d":"-$1,608"},{"v":-1624.2850584421203,"d":"-$1,624"},{"v":-1640.5279090265415,"d":"-$1,641"},{"v":-1656.9331881168068,"d":"-$1,657"},{"v":-1673.502519997975,"d":"-$1,674"},{"v":-1690.237545197955,"d":"-$1,690"},{"v":-1707.1399206499345,"d":"-$1,707"},{"v":-1724.2113198564339,"d":"-$1,724"},{"v":-1741.4534330549982,"d":"-$1,741"},{"v":-1758.8679673855481,"d":"-$1,759"},{"v":-1776.4566470594036,"d":"-$1,776"},{"v":-1794.2212135299976,"d":"-$1,794"},{"v":-1812.1634256652976,"d":"-$1,812"},{"v":-1830.2850599219505,"d":"-$1,830"},{"v":-1848.58791052117,"d":"-$1,849"},{"v":-1867.0737896263818,"d":"-$1,867"},{"v":-1885.7445275226455,"d":"-$1,886"},{"v":-1904.601972797872,"d":"-$1,905"},{"v":-1923.6479925258507,"d":"-$1,924"},{"v":-1942.884472451109,"d":"-$1,943"},{"v":-1962.31331717562,"d":"-$1,962"},{"v":-1981.9364503473764,"d":"-$1,982"},{"v":-2001.7558148508501,"d":"-$2,002"}]
[{"$nulls":3},"Cap Ex:",{"$nulls":9},10,null,null,"% of GSI",{"$nulls":3},{"v":-125,"d":"-$125"},{"v":-1500,"d":"-$1,500"},{"v":-0.1,"d":"-10%"},null,{"v":-1500,"d":"-$1,500"},{"$f":"IF($V$3>=Z$90,Y47*(1+$Q$29),\"\")","v":{"v":-1515,"d":"-$1,515"}},{"v":-1530.15,"d":"-$1,530"},{"v":-1545.4515000000001,"d":"-$1,545"},{"v":-1560.9060150000003,"d":"-$1,561"},{"v":-1576.5150751500003,"d":"-$1,577"},{"v":-1592.2802259015002,"d":"-$1,592"},{"v":-1608.2030281605153,"d":"-$1,608"},{"v":-1624.2850584421203,"d":"-$1,624"},{"v":-1640.5279090265415,"d":"-$1,641"},{"v":-1656.9331881168068,"d":"-$1,657"},{"v":-1673.502519997975,"d":"-$1,674"},{"v":-1690.237545197955,"d":"-$1,690"},{"v":-1707.1399206499345,"d":"-$1,707"},{"v":-1724.2113198564339,"d":"-$1,724"},{"v":-1741.4534330549982,"d":"-$1,741"},{"v":-1758.8679673855481,"d":"-$1,759"},{"v":-1776.4566470594036,"d":"-$1,776"},{"v":-1794.2212135299976,"d":"-$1,794"},{"v":-1812.1634256652976,"d":"-$1,812"},{"v":-1830.2850599219505,"d":"-$1,830"},{"v":-1848.58791052117,"d":"-$1,849"},{"v":-1867.0737896263818,"d":"-$1,867"},{"v":-1885.7445275226455,"d":"-$1,886"},{"v":-1904.601972797872,"d":"-$1,905"},{"v":-1923.6479925258507,"d":"-$1,924"},{"v":-1942.884472451109,"d":"-$1,943"},{"v":-1962.31331717562,"d":"-$1,962"},{"v":-1981.9364503473764,"d":"-$1,982"},{"v":-2001.7558148508501,"d":"-$2,002"}]
[{"$nulls":3},"TOTAL OPERATING EXPENSES",{"$nulls":16},{"$f":"SUM(U31:U47)","v":{"v":-550,"d":"-$550"}},{"$f":"SUM(V31:V47)","v":{"v":-6600,"d":"-$6,600"}},{"$f":"SUM(W31:W47)","v":{"v":-0.43999999999999995,"d":"-44%"}},null,{"$f":"IF(Y27=\"\",\"\",SUM(Y31:Y47))","v":{"v":-6600,"d":"-$6,600"}},{"v":-6666,"d":"-$6,666"},{"v":-6732.66,"d":"-$6,733"},{"v":-6799.9866,"d":"-$6,800"},{"v":-6867.986466000001,"d":"-$6,868"},{"v":-6936.666330660001,"d":"-$6,937"},{"v":-7006.032993966601,"d":"-$7,006"},{"v":-7076.093323906267,"d":"-$7,076"},{"v":-7146.854257145328,"d":"-$7,147"},{"v":-7218.322799716781,"d":"-$7,218"},{"v":-7290.506027713951,"d":"-$7,291"},{"v":-7363.4110879910895,"d":"-$7,363"},{"v":-7437.045198871001,"d":"-$7,437"},{"v":-7511.415650859712,"d":"-$7,511"},{"v":-7586.529807368308,"d":"-$7,587"},{"v":-7662.39510544199,"d":"-$7,662"},{"v":-7739.0190564964105,"d":"-$7,739"},{"v":-7816.409247061375,"d":"-$7,816"},{"v":-7894.573339531989,"d":"-$7,895"},{"v":-7973.519072927309,"d":"-$7,974"},{"v":-8053.254263656581,"d":"-$8,053"},{"v":-8133.786806293147,"d":"-$8,134"},{"v":-8215.124674356079,"d":"-$8,215"},{"v":-8297.27592109964,"d":"-$8,297"},{"v":-8380.248680310637,"d":"-$8,380"},{"v":-8464.051167113743,"d":"-$8,464"},{"v":-8548.69167878488,"d":"-$8,549"},{"v":-8634.178595572728,"d":"-$8,634"},{"v":-8720.520381528457,"d":"-$8,721"},{"v":-8807.725585343742,"d":"-$8,808"}]
[]
[{"$nulls":3},"NET OPERATING INCOME",{"$nulls":16},{"$f":"U27+U48","v":{"v":700,"d":"$700"}},{"$f":"V27+V48","v":{"v":8400,"d":"$8,400"}},{"$f":"W27+W48","v":{"v":-0.43999999999999995,"d":"-44%"}},null,{"$f":"IFERROR(Y27+Y48,\"\")","v":{"v":8400,"d":"$8,400"}},{"v":8484,"d":"$8,484"},{"v":8568.84,"d":"$8,569"},{"v":8654.5284,"d":"$8,655"},{"v":8741.073683999999,"d":"$8,741"},{"v":8828.484420839999,"d":"$8,828"},{"v":8916.769265048399,"d":"$8,917"},{"v":9005.936957698883,"d":"$9,006"},{"v":9095.996327275872,"d":"$9,096"},{"v":9186.956290548631,"d":"$9,187"},{"v":9278.825853454115,"d":"$9,279"},{"v":9371.614111988658,"d":"$9,372"},{"v":9465.330253108543,"d":"$9,465"},{"v":9559.983555639628,"d":"$9,560"},{"v":9655.583391196025,"d":"$9,656"},{"v":9752.139225107987,"d":"$9,752"},{"v":9849.660617359066,"d":"$9,850"},{"v":9948.157223532657,"d":"$9,948"},{"v":10047.638795767985,"d":"$10,048"},{"v":10148.115183725666,"d":"$10,148"},{"v":10249.596335562925,"d":"$10,250"},{"v":10352.092298918555,"d":"$10,352"},{"v":10455.613221907739,"d":"$10,456"},{"v":10560.169354126816,"d":"$10,560"},{"v":10665.771047668084,"d":"$10,666"},{"v":10772.428758144764,"d":"$10,772"},{"$f":"IFERROR(AY27+AY48,\"\")","v":{"v":10880.15304572621,"d":"$10,880"}},{"$f":"IFERROR(AZ27+AZ48,\"\")","v":{"v":10988.954576183474,"d":"$10,989"}},{"$f":"IFERROR(BA27+BA48,\"\")","v":{"v":11098.844121945307,"d":"$11,099"}},{"$f":"IFERROR(BB27+BB48,\"\")","v":{"v":11209.83256316476,"d":"$11,210"}}]
[]
[null,"Setup",null,"Long-Term Financing"]
[{"$nulls":3},"Mortgage Payment (Interest Amount)",{"$nulls":16},{"$f":"V53/12","v":{"v":-724.2803940426526,"d":"-$724"}},{"$f":"IFERROR(CUMIPMT('RENTAL LOAN SETUP'!$V$12/12,'RENTAL LOAN SETUP'!$V$11*12,'RENTAL LOAN SETUP'!$AA$9,Y91,Y92,0),0)","v":{"v":-8691.364728511831,"d":"-$8,691"}},{"$f":"IFERROR(V53/$V$23,\"\")","v":{"v":-0.5794243152341221,"d":"-58%"}},null,{"$f":"IFERROR(IF(Long_Term_Loan_Type=\"Amortized\",IF($V$3>=Y90,CUMIPMT('RENTAL LOAN SETUP'!$V$12/12,'RENTAL LOAN SETUP'!$V$11*12,'RENTAL LOAN SETUP'!$AA$9,Y91,Y92,0),\"\"),-'RENTAL LOAN SETUP'!$AA$9*'RENTAL LOAN SETUP'!$V$12),\"\")","v":{"v":-8691.364728511831,"d":"-$8,691"}},{"$f":"IFERROR(IF(Long_Term_Loan_Type=\"Amortized\",IF($V$3>=Z90,CUMIPMT('RENTAL LOAN SETUP'!$V$12/12,'RENTAL LOAN SETUP'!$V$11*12,'RENTAL LOAN SETUP'!$AA$9,Z91,Z92,0),\"\"),-'RENTAL LOAN SETUP'!$AA$9*'RENTAL LOAN SETUP'!$V$12),\"\")","v":{"v":-8559.27036900253,"d":"-$8,559"}},{"$f":"IFERROR(IF(Long_Term_Loan_Type=\"Amortized\",IF($V$3>=AA90,CUMIPMT('RENTAL LOAN SETUP'!$V$12/12,'RENTAL LOAN SETUP'!$V$11*12,'RENTAL LOAN SETUP'!$AA$9,AA91,AA92,0),\"\"),-'RENTAL LOAN SETUP'!$AA$9*'RENTAL LOAN SETUP'!$V$12),\"\")","v":{"v":-8420.417811361263,"d":"-$8,420"}},{"$f":"IFERROR(IF(Long_Term_Loan_Type=\"Amortized\",IF($V$3>=AB90,CUMIPMT('RENTAL LOAN SETUP'!$V$12/12,'RENTAL LOAN SETUP'!$V$11*12,'RENTAL LOAN SETUP'!$AA$9,AB91,AB92,0),\"\"),-'RENTAL LOAN SETUP'!$AA$9*'RENTAL LOAN SETUP'!$V$12),\"\")","v":{"v":-8274.461293345335,"d":"-$8,274"}},{"$f":"IFERROR(IF(Long_Term_Loan_Type=\"Amortized\",IF($V$3>=AC90,CUMIPMT('RENTAL LOAN SETUP'!$V$12/12,'RENTAL LOAN SETUP'!$V$11*12,'RENTAL LOAN SETUP'!$AA$9,AC91,AC92,0),\"\"),-'RENTAL LOAN SETUP'!$AA$9*'RENTAL LOAN SETUP'!$V$12),\"\")","v":{"v":-8121.0373628595025,"d":"-$8,121"}},{"$f":"IFERROR(IF(Long_Term_Loan_Type=\"Amortized\",IF($V$3>=AD90,CUMIPMT('RENTAL LOAN SETUP'!$V$12/12,'RENTAL LOAN SETUP'!$V$11*12,'RENTAL LOAN SETUP'!$AA$9,AD91,AD92,0),\"\"),-'RENTAL LOAN SETUP'!$AA$9*'RENTAL LOAN SETUP'!$V$12),\"\")","v":{"v":-7959.763972909541,"d":"-$7,960"}},{"$f":"IFERROR(IF(Long_Term_Loan_Type=\"Amortized\",IF($V$3>=AE90,CUMIPMT('RENTAL LOAN SETUP'!$V$12/12,'RENTAL LOAN SETUP'!$V$11*12,'RENTAL LOAN SETUP'!$AA$9,AE91,AE92,0),\"\"),-'RENTAL LOAN SETUP'!$AA$9*'RENTAL LOAN SETUP'!$V$12),\"\")","v":{"v":-7790.239530251918,"d":"-$7,790"}},{"$f":"IFERROR(IF(Long_Term_Loan_Type=\"Amortized\",IF($V$3>=AF90,CUMIPMT('RENTAL LOAN SETUP'!$V$12/12,'RENTAL LOAN SETUP'!$V$11*12,'RENTAL LOAN SETUP'!$AA$9,AF91,AF92,0),\"\"),-'RENTAL LOAN SETUP'!$AA$9*'RENTAL LOAN SETUP'!$V$12),\"\")","v":{"v":-7612.0418953705885,"d":"-$7,612"}},{"$f":"IFERROR(IF(Long_Term_Loan_Type=\"Amortized\",IF($V$3>=AG90,CUMIPMT('RENTAL LOAN SETUP'!$V$12/12,'RENTAL LOAN SETUP'!$V$11*12,'RENTAL LOAN SETUP'!$AA$9,AG91,AG92,0),\"\"),-'RENTAL LOAN SETUP'!$AA$9*'RENTAL LOAN SETUP'!$V$12),\"\")","v":{"v":-7424.727331290693,"d":"-$7,425"}},{"$f":"IFERROR(IF(Long_Term_Loan_Type=\"Amortized\",IF($V$3>=AH90,CUMIPMT('RENTAL LOAN SETUP'!$V$12/12,'RENTAL LOAN SETUP'!$V$11*12,'RENTAL LOAN SETUP'!$AA$9,AH91,AH92,0),\"\"),-'RENTAL LOAN SETUP'!$AA$9*'RENTAL LOAN SETUP'!$V$12),\"\")","v":{"v":-7227.8293986115805,"d":"-$7,228"}},{"$f":"IFERROR(IF(Long_Term_Loan_Type=\"Amortized\",IF($V$3>=AI90,CUMIPMT('RENTAL LOAN SETUP'!$V$12/12,'RENTAL LOAN SETUP'!$V$11*12,'RENTAL LOAN SETUP'!$AA$9,AI91,AI92,0),\"\"),-'RENTAL LOAN SETUP'!$AA$9*'RENTAL LOAN SETUP'!$V$12),\"\")","v":{"v":-7020.857794007615,"d":"-$7,021"}},{"$f":"IFERROR(IF(Long_Term_Loan_Type=\"Amortized\",IF($V$3>=AJ90,CUMIPMT('RENTAL LOAN SETUP'!$V$12/12,'RENTAL LOAN SETUP'!$V$11*12,'RENTAL LOAN SETUP'!$AA$9,AJ91,AJ92,0),\"\"),-'RENTAL LOAN SETUP'!$AA$9*'RENTAL LOAN SETUP'!$V$12),\"\")","v":{"v":-6803.297129304484,"d":"-$6,803"}},{"$f":"IFERROR(IF(Long_Term_Loan_Type=\"Amortized\",IF($V$3>=AK90,CUMIPMT('RENTAL LOAN SETUP'!$V$12/12,'RENTAL LOAN SETUP'!$V$11*12,'RENTAL LOAN SETUP'!$AA$9,AK91,AK92,0),\"\"),-'RENTAL LOAN SETUP'!$AA$9*'RENTAL LOAN SETUP'!$V$12),\"\")","v":{"v":-6574.605648090728,"d":"-$6,575"}},{"$f":"IFERROR(IF(Long_Term_Loan_Type=\"Amortized\",IF($V$3>=AL90,CUMIPMT('RENTAL LOAN SETUP'!$V$12/12,'RENTAL LOAN SETUP'!$V$11*12,'RENTAL LOAN SETUP'!$AA$9,AL91,AL92,0),\"\"),-'RENTAL LOAN SETUP'!$AA$9*'RENTAL LOAN SETUP'!$V$12),\"\")","v":{"v":-6334.213876668692,"d":"-$6,334"}},{"$f":"IFERROR(IF(Long_Term_Loan_Type=\"Amortized\",IF($V$3>=AM90,CUMIPMT('RENTAL LOAN SETUP'!$V$12/12,'RENTAL LOAN SETUP'!$V$11*12,'RENTAL LOAN SETUP'!$AA$9,AM91,AM92,0),\"\"),-'RENTAL LOAN SETUP'!$AA$9*'RENTAL LOAN SETUP'!$V$12),\"\")","v":{"v":-6081.523205985554,"d":"-$6,082"}},{"$f":"IFERROR(IF(Long_Term_Loan_Type=\"Amortized\",IF($V$3>=AN90,CUMIPMT('RENTAL LOAN SETUP'!$V$12/12,'RENTAL LOAN SETUP'!$V$11*12,'RENTAL LOAN SETUP'!$AA$9,AN91,AN92,0),\"\"),-'RENTAL LOAN SETUP'!$AA$9*'RENTAL LOAN SETUP'!$V$12),\"\")","v":{"v":-5815.904401013258,"d":"-$5,816"}},{"$f":"IFERROR(IF(Long_Term_Loan_Type=\"Amortized\",IF($V$3>=AO90,CUMIPMT('RENTAL LOAN SETUP'!$V$12/12,'RENTAL LOAN SETUP'!$V$11*12,'RENTAL LOAN SETUP'!$AA$9,AO91,AO92,0),\"\"),-'RENTAL LOAN SETUP'!$AA$9*'RENTAL LOAN SETUP'!$V$12),\"\")","v":{"v":-5536.696033865501,"d":"-$5,537"}},{"$f":"IFERROR(IF(Long_Term_Loan_Type=\"Amortized\",IF($V$3>=AP90,CUMIPMT('RENTAL LOAN SETUP'!$V$12/12,'RENTAL LOAN SETUP'!$V$11*12,'RENTAL LOAN SETUP'!$AA$9,AP91,AP92,0),\"\"),-'RENTAL LOAN SETUP'!$AA$9*'RENTAL LOAN SETUP'!$V$12),\"\")","v":{"v":-5243.202836750005,"d":"-$5,243"}},{"$f":"IFERROR(IF(Long_Term_Loan_Type=\"Amortized\",IF($V$3>=AQ90,CUMIPMT('RENTAL LOAN SETUP'!$V$12/12,'RENTAL LOAN SETUP'!$V$11*12,'RENTAL LOAN SETUP'!$AA$9,AQ91,AQ92,0),\"\"),-'RENTAL LOAN SETUP'!$AA$9*'RENTAL LOAN SETUP'!$V$12),\"\")","v":{"v":-4934.693970654702,"d":"-$4,935"}},{"$f":"IFERROR(IF(Long_Term_Loan_Type=\"Amortized\",IF($V$3>=AR90,CUMIPMT('RENTAL LOAN SETUP'!$V$12/12,'RENTAL LOAN SETUP'!$V$11*12,'RENTAL LOAN SETUP'!$AA$9,AR91,AR92,0),\"\"),-'RENTAL LOAN SETUP'!$AA$9*'RENTAL LOAN SETUP'!$V$12),\"\")","v":{"v":-4610.401205456623,"d":"-$4,610"}},{"$f":"IFERROR(IF(Long_Term_Loan_Type=\"Amortized\",IF($V$3>=AS90,CUMIPMT('RENTAL LOAN SETUP'!$V$12/12,'RENTAL LOAN SETUP'!$V$11*12,'RENTAL LOAN SETUP'!$AA$9,AS91,AS92,0),\"\"),-'RENTAL LOAN SETUP'!$AA$9*'RENTAL LOAN SETUP'!$V$12),\"\")","v":{"v":-4269.517006921694,"d":"-$4,270"}},{"$f":"IFERROR(IF(Long_Term_Loan_Type=\"Amortized\",IF($V$3>=AT90,CUMIPMT('RENTAL LOAN SETUP'!$V$12/12,'RENTAL LOAN SETUP'!$V$11*12,'RENTAL LOAN SETUP'!$AA$9,AT91,AT92,0),\"\"),-'RENTAL LOAN SETUP'!$AA$9*'RENTAL LOAN SETUP'!$V$12),\"\")","v":{"v":-3911.192525831825,"d":"-$3,911"}},{"$f":"IFERROR(IF(Long_Term_Loan_Type=\"Amortized\",IF($V$3>=AU90,CUMIPMT('RENTAL LOAN SETUP'!$V$12/12,'RENTAL LOAN SETUP'!$V$11*12,'RENTAL LOAN SETUP'!$AA$9,AU91,AU92,0),\"\"),-'RENTAL LOAN SETUP'!$AA$9*'RENTAL LOAN SETUP'!$V$12),\"\")","v":{"v":-3534.535484231912,"d":"-$3,535"}},{"$f":"IFERROR(IF(Long_Term_Loan_Type=\"Amortized\",IF($V$3>=AV90,CUMIPMT('RENTAL LOAN SETUP'!$V$12/12,'RENTAL LOAN SETUP'!$V$11*12,'RENTAL LOAN SETUP'!$AA$9,AV91,AV92,0),\"\"),-'RENTAL LOAN SETUP'!$AA$9*'RENTAL LOAN SETUP'!$V$12),\"\")","v":{"v":-3138.6079535332256,"d":"-$3,139"}},{"$f":"IFERROR(IF(Long_Term_Loan_Type=\"Amortized\",IF($V$3>=AW90,CUMIPMT('RENTAL LOAN SETUP'!$V$12/12,'RENTAL LOAN SETUP'!$V$11*12,'RENTAL LOAN SETUP'!$AA$9,AW91,AW92,0),\"\"),-'RENTAL LOAN SETUP'!$AA$9*'RENTAL LOAN SETUP'!$V$12),\"\")","v":{"v":-2722.42401894037,"d":"-$2,722"}},{"$f":"IFERROR(IF(Long_Term_Loan_Type=\"Amortized\",IF($V$3>=AX90,CUMIPMT('RENTAL LOAN SETUP'!$V$12/12,'RENTAL LOAN SETUP'!$V$11*12,'RENTAL LOAN SETUP'!$AA$9,AX91,AX92,0),\"\"),-'RENTAL LOAN SETUP'!$AA$9*'RENTAL LOAN SETUP'!$V$12),\"\")","v":{"v":-2284.947324385854,"d":"-$2,285"}},{"$f":"IFERROR(IF(Long_Term_Loan_Type=\"Amortized\",IF($V$3>=AY90,CUMIPMT('RENTAL LOAN SETUP'!$V$12/12,'RENTAL LOAN SETUP'!$V$11*12,'RENTAL LOAN SETUP'!$AA$9,AY91,AY92,0),\"\"),-'RENTAL LOAN SETUP'!$AA$9*'RENTAL LOAN SETUP'!$V$12),\"\")","v":{"v":-1825.0884918589036,"d":"-$1,825"}},{"$f":"IFERROR(IF(Long_Term_Loan_Type=\"Amortized\",IF($V$3>=AZ90,CUMIPMT('RENTAL LOAN SETUP'!$V$12/12,'RENTAL LOAN SETUP'!$V$11*12,'RENTAL LOAN SETUP'!$AA$9,AZ91,AZ92,0),\"\"),-'RENTAL LOAN SETUP'!$AA$9*'RENTAL LOAN SETUP'!$V$12),\"\")","v":{"v":-1341.7024087021946,"d":"-$1,342"}},{"$f":"IFERROR(IF(Long_Term_Loan_Type=\"Amortized\",IF($V$3>=BA90,CUMIPMT('RENTAL LOAN SETUP'!$V$12/12,'RENTAL LOAN SETUP'!$V$11*12,'RENTAL LOAN SETUP'!$AA$9,BA91,BA92,0),\"\"),-'RENTAL LOAN SETUP'!$AA$9*'RENTAL LOAN SETUP'!$V$12),\"\")","v":{"v":-833.5853761215731,"d":"-$834"}},{"$f":"IFERROR(IF(Long_Term_Loan_Type=\"Amortized\",IF($V$3>=BB90,CUMIPMT('RENTAL LOAN SETUP'!$V$12/12,'RENTAL LOAN SETUP'!$V$11*12,'RENTAL LOAN SETUP'!$AA$9,BB91,BB92,0),\"\"),-'RENTAL LOAN SETUP'!$AA$9*'RENTAL LOAN SETUP'!$V$12),\"\")","v":{"v":-299.47211180809245,"d":"-$299"}}]
[{"$nulls":3},"Mortgage Payment (Principal Amount)",{"$nulls":16},{"$f":"V54/12","v":{"v":-215.15744622859083,"d":"-$215"}},{"$f":"IFERROR(CUMPRINC('RENTAL LOAN SETUP'!$V$12/12,'RENTAL LOAN SETUP'!$V$11*12,'RENTAL LOAN SETUP'!$AA$9,Y91,Y92,0),0)","v":{"v":-2581.88935474309,"d":"-$2,582"}},{"$f":"IFERROR(V54/$V$23,\"\")","v":{"v":-0.17212595698287267,"d":"-17%"}},null,{"$f":"IFERROR(IF(Long_Term_Loan_Type=\"Amortized\",IF($V$3>=Y90,CUMPRINC('RENTAL LOAN SETUP'!$V$12/12,'RENTAL LOAN SETUP'!$V$11*12,'RENTAL LOAN SETUP'!$AA$9,Y91,Y92,0),\"\"),0),\"\")","v":{"v":-2581.88935474309,"d":"-$2,582"}},{"$f":"IFERROR(IF(Long_Term_Loan_Type=\"Amortized\",IF($V$3>=Z90,CUMPRINC('RENTAL LOAN SETUP'!$V$12/12,'RENTAL LOAN SETUP'!$V$11*12,'RENTAL LOAN SETUP'!$AA$9,Z91,Z92,0),\"\"),0),\"\")","v":{"v":-2713.9837142523897,"d":"-$2,714"}},{"$f":"IFERROR(IF(Long_Term_Loan_Type=\"Amortized\",IF($V$3>=AA90,CUMPRINC('RENTAL LOAN SETUP'!$V$12/12,'RENTAL LOAN SETUP'!$V$11*12,'RENTAL LOAN SETUP'!$AA$9,AA91,AA92,0),\"\"),0),\"\")","v":{"v":-2852.8362718936573,"d":"-$2,853"}},{"$f":"IFERROR(IF(Long_Term_Loan_Type=\"Amortized\",IF($V$3>=AB90,CUMPRINC('RENTAL LOAN SETUP'!$V$12/12,'RENTAL LOAN SETUP'!$V$11*12,'RENTAL LOAN SETUP'!$AA$9,AB91,AB92,0),\"\"),0),\"\")","v":{"v":-2998.792789909585,"d":"-$2,999"}},{"$f":"IFERROR(IF(Long_Term_Loan_Type=\"Amortized\",IF($V$3>=AC90,CUMPRINC('RENTAL LOAN SETUP'!$V$12/12,'RENTAL LOAN SETUP'!$V$11*12,'RENTAL LOAN SETUP'!$AA$9,AC91,AC92,0),\"\"),0),\"\")","v":{"v":-3152.2167203954173,"d":"-$3,152"}},{"$f":"IFERROR(IF(Long_Term_Loan_Type=\"Amortized\",IF($V$3>=AD90,CUMPRINC('RENTAL LOAN SETUP'!$V$12/12,'RENTAL LOAN SETUP'!$V$11*12,'RENTAL LOAN SETUP'!$AA$9,AD91,AD92,0),\"\"),0),\"\")","v":{"v":-3313.490110345379,"d":"-$3,313"}},{"$f":"IFERROR(IF(Long_Term_Loan_Type=\"Amortized\",IF($V$3>=AE90,CUMPRINC('RENTAL LOAN SETUP'!$V$12/12,'RENTAL LOAN SETUP'!$V$11*12,'RENTAL LOAN SETUP'!$AA$9,AE91,AE92,0),\"\"),0),\"\")","v":{"v":-3483.0145530030027,"d":"-$3,483"}},{"$f":"IFERROR(IF(Long_Term_Loan_Type=\"Amortized\",IF($V$3>=AF90,CUMPRINC('RENTAL LOAN SETUP'!$V$12/12,'RENTAL LOAN SETUP'!$V$11*12,'RENTAL LOAN SETUP'!$AA$9,AF91,AF92,0),\"\"),0),\"\")","v":{"v":-3661.212187884332,"d":"-$3,661"}},{"$f":"IFERROR(IF(Long_Term_Loan_Type=\"Amortized\",IF($V$3>=AG90,CUMPRINC('RENTAL LOAN SETUP'!$V$12/12,'RENTAL LOAN SETUP'!$V$11*12,'RENTAL LOAN SETUP'!$AA$9,AG91,AG92,0),\"\"),0),\"\")","v":{"v":-3848.526751964227,"d":"-$3,849"}},{"$f":"IFERROR(IF(Long_Term_Loan_Type=\"Amortized\",IF($V$3>=AH90,CUMPRINC('RENTAL LOAN SETUP'!$V$12/12,'RENTAL LOAN SETUP'!$V$11*12,'RENTAL LOAN SETUP'!$AA$9,AH91,AH92,0),\"\"),0),\"\")","v":{"v":-4045.42468464334,"d":"-$4,045"}},{"$f":"IFERROR(IF(Long_Term_Loan_Type=\"Amortized\",IF($V$3>=AI90,CUMPRINC('RENTAL LOAN SETUP'!$V$12/12,'RENTAL LOAN SETUP'!$V$11*12,'RENTAL LOAN SETUP'!$AA$9,AI91,AI92,0),\"\"),0),\"\")","v":{"v":-4252.3962892473055,"d":"-$4,252"}},{"$f":"IFERROR(IF(Long_Term_Loan_Type=\"Amortized\",IF($V$3>=AJ90,CUMPRINC('RENTAL LOAN SETUP'!$V$12/12,'RENTAL LOAN SETUP'!$V$11*12,'RENTAL LOAN SETUP'!$AA$9,AJ91,AJ92,0),\"\"),0),\"\")","v":{"v":-4469.956953950436,"d":"-$4,470"}},{"$f":"IFERROR(IF(Long_Term_Loan_Type=\"Amortized\",IF($V$3>=AK90,CUMPRINC('RENTAL LOAN SETUP'!$V$12/12,'RENTAL LOAN SETUP'!$V$11*12,'RENTAL LOAN SETUP'!$AA$9,AK91,AK92,0),\"\"),0),\"\")","v":{"v":-4698.648435164192,"d":"-$4,699"}},{"$f":"IFERROR(IF(Long_Term_Loan_Type=\"Amortized\",IF($V$3>=AL90,CUMPRINC('RENTAL LOAN SETUP'!$V$12/12,'RENTAL LOAN SETUP'!$V$11*12,'RENTAL LOAN SETUP'!$AA$9,AL91,AL92,0),\"\"),0),\"\")","v":{"v":-4939.040206586228,"d":"-$4,939"}},{"$f":"IFERROR(IF(Long_Term_Loan_Type=\"Amortized\",IF($V$3>=AM90,CUMPRINC('RENTAL LOAN SETUP'!$V$12/12,'RENTAL LOAN SETUP'!$V$11*12,'RENTAL LOAN SETUP'!$AA$9,AM91,AM92,0),\"\"),0),\"\")","v":{"v":-5191.730877269366,"d":"-$5,192"}},{"$f":"IFERROR(IF(Long_Term_Loan_Type=\"Amortized\",IF($V$3>=AN90,CUMPRINC('RENTAL LOAN SETUP'!$V$12/12,'RENTAL LOAN SETUP'!$V$11*12,'RENTAL LOAN SETUP'!$AA$9,AN91,AN92,0),\"\"),0),\"\")","v":{"v":-5457.349682241662,"d":"-$5,457"}},{"$f":"IFERROR(IF(Long_Term_Loan_Type=\"Amortized\",IF($V$3>=AO90,CUMPRINC('RENTAL LOAN SETUP'!$V$12/12,'RENTAL LOAN SETUP'!$V$11*12,'RENTAL LOAN SETUP'!$AA$9,AO91,AO92,0),\"\"),0),\"\")","v":{"v":-5736.5580493894195,"d":"-$5,737"}},{"$f":"IFERROR(IF(Long_Term_Loan_Type=\"Amortized\",IF($V$3>=AP90,CUMPRINC('RENTAL LOAN SETUP'!$V$12/12,'RENTAL LOAN SETUP'!$V$11*12,'RENTAL LOAN SETUP'!$AA$9,AP91,AP92,0),\"\"),0),\"\")","v":{"v":-6030.051246504915,"d":"-$6,030"}},{"$f":"IFERROR(IF(Long_Term_Loan_Type=\"Amortized\",IF($V$3>=AQ90,CUMPRINC('RENTAL LOAN SETUP'!$V$12/12,'RENTAL LOAN SETUP'!$V$11*12,'RENTAL LOAN SETUP'!$AA$9,AQ91,AQ92,0),\"\"),0),\"\")","v":{"v":-6338.560112600218,"d":"-$6,339"}},{"$f":"IFERROR(IF(Long_Term_Loan_Type=\"Amortized\",IF($V$3>=AR90,CUMPRINC('RENTAL LOAN SETUP'!$V$12/12,'RENTAL LOAN SETUP'!$V$11*12,'RENTAL LOAN SETUP'!$AA$9,AR91,AR92,0),\"\"),0),\"\")","v":{"v":-6662.852877798297,"d":"-$6,663"}},{"$f":"IFERROR(IF(Long_Term_Loan_Type=\"Amortized\",IF($V$3>=AS90,CUMPRINC('RENTAL LOAN SETUP'!$V$12/12,'RENTAL LOAN SETUP'!$V$11*12,'RENTAL LOAN SETUP'!$AA$9,AS91,AS92,0),\"\"),0),\"\")","v":{"v":-7003.7370763332265,"d":"-$7,004"}},{"$f":"IFERROR(IF(Long_Term_Loan_Type=\"Amortized\",IF($V$3>=AT90,CUMPRINC('RENTAL LOAN SETUP'!$V$12/12,'RENTAL LOAN SETUP'!$V$11*12,'RENTAL LOAN SETUP'!$AA$9,AT91,AT92,0),\"\"),0),\"\")","v":{"v":-7362.061557423095,"d":"-$7,362"}},{"$f":"IFERROR(IF(Long_Term_Loan_Type=\"Amortized\",IF($V$3>=AU90,CUMPRINC('RENTAL LOAN SETUP'!$V$12/12,'RENTAL LOAN SETUP'!$V$11*12,'RENTAL LOAN SETUP'!$AA$9,AU91,AU92,0),\"\"),0),\"\")","v":{"v":-7738.718599023008,"d":"-$7,739"}},{"$f":"IFERROR(IF(Long_Term_Loan_Type=\"Amortized\",IF($V$3>=AV90,CUMPRINC('RENTAL LOAN SETUP'!$V$12/12,'RENTAL LOAN SETUP'!$V$11*12,'RENTAL LOAN SETUP'!$AA$9,AV91,AV92,0),\"\"),0),\"\")","v":{"v":-8134.646129721695,"d":"-$8,135"}},{"$f":"IFERROR(IF(Long_Term_Loan_Type=\"Amortized\",IF($V$3>=AW90,CUMPRINC('RENTAL LOAN SETUP'!$V$12/12,'RENTAL LOAN SETUP'!$V$11*12,'RENTAL LOAN SETUP'!$AA$9,AW91,AW92,0),\"\"),0),\"\")","v":{"v":-8550.83006431455,"d":"-$8,551"}},{"$f":"IFERROR(IF(Long_Term_Loan_Type=\"Amortized\",IF($V$3>=AX90,CUMPRINC('RENTAL LOAN SETUP'!$V$12/12,'RENTAL LOAN SETUP'!$V$11*12,'RENTAL LOAN SETUP'!$AA$9,AX91,AX92,0),\"\"),0),\"\")","v":{"v":-8988.306758869066,"d":"-$8,988"}},{"$f":"IFERROR(IF(Long_Term_Loan_Type=\"Amortized\",IF($V$3>=AY90,CUMPRINC('RENTAL LOAN SETUP'!$V$12/12,'RENTAL LOAN SETUP'!$V$11*12,'RENTAL LOAN SETUP'!$AA$9,AY91,AY92,0),\"\"),0),\"\")","v":{"v":-9448.165591396017,"d":"-$9,448"}},{"$f":"IFERROR(IF(Long_Term_Loan_Type=\"Amortized\",IF($V$3>=AZ90,CUMPRINC('RENTAL LOAN SETUP'!$V$12/12,'RENTAL LOAN SETUP'!$V$11*12,'RENTAL LOAN SETUP'!$AA$9,AZ91,AZ92,0),\"\"),0),\"\")","v":{"v":-9931.551674552726,"d":"-$9,932"}},{"$f":"IFERROR(IF(Long_Term_Loan_Type=\"Amortized\",IF($V$3>=BA90,CUMPRINC('RENTAL LOAN SETUP'!$V$12/12,'RENTAL LOAN SETUP'!$V$11*12,'RENTAL LOAN SETUP'!$AA$9,BA91,BA92,0),\"\"),0),\"\")","v":{"v":-10439.668707133347,"d":"-$10,440"}},{"$f":"IFERROR(IF(Long_Term_Loan_Type=\"Amortized\",IF($V$3>=BB90,CUMPRINC('RENTAL LOAN SETUP'!$V$12/12,'RENTAL LOAN SETUP'!$V$11*12,'RENTAL LOAN SETUP'!$AA$9,BB91,BB92,0),\"\"),0),\"\")","v":{"v":-10973.781971446828,"d":"-$10,974"}}]
[{"$nulls":3},"TOTAL FINANCING",{"$nulls":16},{"$f":"SUM(U53:U54)","v":{"v":-939.4378402712434,"d":"-$939"}},{"$f":"SUM(V53:V54)","v":{"v":-11273.25408325492,"d":"-$11,273"}},{"$f":"IFERROR(V55/V23,\"\")","v":{"v":-0.7515502722169947,"d":"-75%"}},null,{"$f":"IF(Y27=\"\",\"\",SUM(Y53:Y54))","v":{"v":-11273.25408325492,"d":"-$11,273"}},{"v":-11273.25408325492,"d":"-$11,273"},{"v":-11273.25408325492,"d":"-$11,273"},{"v":-11273.25408325492,"d":"-$11,273"},{"v":-11273.25408325492,"d":"-$11,273"},{"v":-11273.25408325492,"d":"-$11,273"},{"v":-11273.25408325492,"d":"-$11,273"},{"v":-11273.25408325492,"d":"-$11,273"},{"v":-11273.25408325492,"d":"-$11,273"},{"v":-11273.25408325492,"d":"-$11,273"},{"v":-11273.25408325492,"d":"-$11,273"},{"v":-11273.25408325492,"d":"-$11,273"},{"v":-11273.25408325492,"d":"-$11,273"},{"v":-11273.25408325492,"d":"-$11,273"},{"v":-11273.25408325492,"d":"-$11,273"},{"v":-11273.25408325492,"d":"-$11,273"},{"v":-11273.25408325492,"d":"-$11,273"},{"v":-11273.25408325492,"d":"-$11,273"},{"v":-11273.25408325492,"d":"-$11,273"},{"v":-11273.25408325492,"d":"-$11,273"},{"v":-11273.25408325492,"d":"-$11,273"},{"v":-11273.25408325492,"d":"-$11,273"},{"v":-11273.25408325492,"d":"-$11,273"},{"v":-11273.25408325492,"d":"-$11,273"},{"v":-11273.25408325492,"d":"-$11,273"},{"v":-11273.25408325492,"d":"-$11,273"},{"v":-11273.25408325492,"d":"-$11,273"},{"v":-11273.25408325492,"d":"-$11,273"},{"v":-11273.25408325492,"d":"-$11,273"},{"$f":"IF(BB27=\"\",\"\",SUM(BB53:BB54))","v":{"v":-11273.25408325492,"d":"-$11,273"}}]
[{"$nulls":3},"Loan Balance",{"$nulls":11},{"$f":"'RENTAL LOAN SETUP'!AA9","v":{"v":175000,"d":"$175,000"}},{"$nulls":8},{"$f":"IFERROR(IF($V$3>=Y90,P56+Y54,\"\"),\"\")","v":{"v":172418.1106452569,"d":"$172,418"}},{"$f":"IFERROR(IF($V$3>=Z90,Y56+Z54,\"\"),\"\")","v":{"v":169704.12693100452,"d":"$169,704"}},{"v":166851.29065911085,"d":"$166,851"},{"v":163852.49786920127,"d":"$163,852"},{"v":160700.28114880584,"d":"$160,700"},{"v":157386.79103846045,"d":"$157,387"},{"v":153903.77648545743,"d":"$153,904"},{"v":150242.56429757312,"d":"$150,243"},{"v":146394.03754560888,"d":"$146,394"},{"v":142348.61286096554,"d":"$142,349"},{"v":138096.21657171825,"d":"$138,096"},{"v":133626.25961776782,"d":"$133,626"},{"v":128927.61118260364,"d":"$128,928"},{"v":123988.5709760174,"d":"$123,989"},{"v":118796.84009874804,"d":"$118,797"},{"v":113339.49041650638,"d":"$113,339"},{"v":107602.93236711695,"d":"$107,603"},{"v":101572.88112061204,"d":"$101,573"},{"v":95234.32100801183,"d":"$95,234"},{"v":88571.46813021353,"d":"$88,571"},{"v":81567.7310538803,"d":"$81,568"},{"v":74205.66949645721,"d":"$74,206"},{"v":66466.9508974342,"d":"$66,467"},{"v":58332.30476771251,"d":"$58,332"},{"v":49781.47470339796,"d":"$49,781"},{"v":40793.16794452889,"d":"$40,793"},{"v":31345.002353132873,"d":"$31,345"},{"v":21413.45067858015,"d":"$21,413"},{"v":10973.781971446802,"d":"$10,974"},{"v":-2.546585164964199e-11,"d":"-$0"}]
[{"$nulls":3},"Debt Service Coverage Ratio (DSCR) (Lenders generally require >1.20)",{"$nulls":20},{"$f":"IFERROR(IF(Y50/-Y55=0,\"\",Y50/-Y55),\"\")","v":{"v":0.745126468184302,"d":"0.75"}},{"$f":"IFERROR(IF(Z50/-Z55=0,\"\",Z50/-Z55),\"\")","v":{"v":0.752577732866145,"d":"0.75"}},{"v":0.7601035101948065,"d":"0.76"},{"v":0.7677045452967545,"d":"0.77"},{"v":0.775381590749722,"d":"0.78"},{"v":0.7831354066572193,"d":"0.78"},{"v":0.7909667607237914,"d":"0.79"},{"v":0.7988764283310293,"d":"0.80"},{"v":0.8068651926143396,"d":"0.81"},{"v":0.814933844540483,"d":"0.81"},{"v":0.8230831829858877,"d":"0.82"},{"v":0.8313140148157467,"d":"0.83"},{"v":0.839627154963904,"d":"0.84"},{"v":0.8480234265135431,"d":"0.85"},{"v":0.8565036607786786,"d":"0.86"},{"v":0.8650686973864655,"d":"0.87"},{"v":0.87371938436033,"d":"0.87"},{"v":0.8824565782039334,"d":"0.88"},{"v":0.8912811439859729,"d":"0.89"},{"v":0.9001939554258327,"d":"0.90"},{"v":0.9091958949800912,"d":"0.91"},{"v":0.9182878539298922,"d":"0.92"},{"v":0.927470732469191,"d":"0.93"},{"v":0.9367454397938828,"d":"0.94"},{"v":0.9461128941918217,"d":"0.95"},{"v":0.9555740231337398,"d":"0.96"},{"v":0.9651297633650772,"d":"0.97"},{"v":0.9747810609987281,"d":"0.97"},{"v":0.9845288716087152,"d":"0.98"},{"v":0.9943741603248023,"d":"0.99"}]
[]
[{"$nulls":3},"Investor Cash Remaining in Deal",{"$nulls":17},{"$f":"'RENTAL LOAN SETUP'!AA25","v":{"v":-17310,"d":"-$17,310"}},null,null,{"$f":"IF($V$3>=Y$90,V59,\"\")","v":{"v":-17310,"d":"-$17,310"}},{"$f":"IF($V$3>=Z$90,Y59,\"\")","v":{"v":-17310,"d":"-$17,310"}},{"v":-17310,"d":"-$17,310"},{"v":-17310,"d":"-$17,310"},{"v":-17310,"d":"-$17,310"},{"v":-17310,"d":"-$17,310"},{"v":-17310,"d":"-$17,310"},{"v":-17310,"d":"-$17,310"},{"v":-17310,"d":"-$17,310"},{"v":-17310,"d":"-$17,310"},{"v":-17310,"d":"-$17,310"},{"v":-17310,"d":"-$17,310"},{"v":-17310,"d":"-$17,310"},{"v":-17310,"d":"-$17,310"},{"v":-17310,"d":"-$17,310"},{"v":-17310,"d":"-$17,310"},{"v":-17310,"d":"-$17,310"},{"v":-17310,"d":"-$17,310"},{"v":-17310,"d":"-$17,310"},{"v":-17310,"d":"-$17,310"},{"v":-17310,"d":"-$17,310"},{"v":-17310,"d":"-$17,310"},{"v":-17310,"d":"-$17,310"},{"v":-17310,"d":"-$17,310"},{"v":-17310,"d":"-$17,310"},{"v":-17310,"d":"-$17,310"},{"v":-17310,"d":"-$17,310"},{"v":-17310,"d":"-$17,310"},{"v":-17310,"d":"-$17,310"},{"v":-17310,"d":"-$17,310"}]
[]
[{"$nulls":3},"Returns"]
[{"$nulls":7},"Calculation Method"]
[{"$nulls":3},"Property Value",{"$nulls":4},"Appreciation",null,null,{"$f":"IF(I63=\"Cap Rate\",\"Input Cap Rate % - >\",\"% Increase per Year\")","v":"% Increase per Year"},{"$nulls":4},{"v":0.025,"d":"2.50%"},{"$nulls":4},{"$f":"After_Repair_Value_Rental","v":{"v":250000,"d":"$250,000"}},null,null,{"$f":"IF($V$3>=Y$90,IF($I$63=\"Cap Rate\",Y50/$Q$63,V63*(1+$Q$63)),\"\")","v":{"v":256249.99999999997,"d":"$256,250"}},{"$f":"IF($V$3>=Z$90,IF($I$63=\"Cap Rate\",Z50/$Q$63,Y63*(1+$Q$63)),\"\")","v":{"v":262656.24999999994,"d":"$262,656"}},{"v":269222.65624999994,"d":"$269,223"},{"v":275953.22265624994,"d":"$275,953"},{"v":282852.0532226562,"d":"$282,852"},{"v":289923.3545532226,"d":"$289,923"},{"v":297171.43841705314,"d":"$297,171"},{"v":304600.72437747946,"d":"$304,601"},{"v":312215.7424869164,"d":"$312,216"},{"v":320021.1360490893,"d":"$320,021"},{"v":328021.6644503165,"d":"$328,022"},{"v":336222.2060615744,"d":"$336,222"},{"v":344627.7612131137,"d":"$344,628"},{"v":353243.45524344157,"d":"$353,243"},{"v":362074.5416245276,"d":"$362,075"},{"v":371126.40516514075,"d":"$371,126"},{"v":380404.56529426924,"d":"$380,405"},{"v":389914.67942662595,"d":"$389,915"},{"v":399662.5464122916,"d":"$399,663"},{"v":409654.11007259885,"d":"$409,654"},{"v":419895.4628244138,"d":"$419,895"},{"v":430392.84939502407,"d":"$430,393"},{"v":441152.67062989966,"d":"$441,153"},{"v":452181.4873956471,"d":"$452,181"},{"v":463486.0245805382,"d":"$463,486"},{"v":475073.17519505165,"d":"$475,073"},{"v":486950.0045749279,"d":"$486,950"},{"v":499123.7546893011,"d":"$499,124"},{"v":511601.8485565336,"d":"$511,602"},{"v":524391.8947704468,"d":"$524,392"}]
[{"$nulls":3},"Purchase Capitalization Rate (NOI/Total Investment)",{"$nulls":20},{"$f":"IFERROR(IF(Y50/-'RENTAL PURCHASE SETUP'!#REF!=0,\"\",Y50/-'RENTAL PURCHASE SETUP'!#REF!),\"\")","v":""},{"$f":"IFERROR(IF(Z50/-'RENTAL PURCHASE SETUP'!#REF!=0,\"\",Z50/-'RENTAL PURCHASE SETUP'!#REF!),\"\")","v":""},{"$f":"IFERROR(IF(AA50/-'RENTAL PURCHASE SETUP'!#REF!=0,\"\",AA50/-'RENTAL PURCHASE SETUP'!#REF!),\"\")","v":""},{"$f":"IFERROR(IF(AB50/-'RENTAL PURCHASE SETUP'!#REF!=0,\"\",AB50/-'RENTAL PURCHASE SETUP'!#REF!),\"\")","v":""},{"$f":"IFERROR(IF(AC50/-'RENTAL PURCHASE SETUP'!#REF!=0,\"\",AC50/-'RENTAL PURCHASE SETUP'!#REF!),\"\")","v":""},{"$f":"IFERROR(IF(AD50/-'RENTAL PURCHASE SETUP'!#REF!=0,\"\",AD50/-'RENTAL PURCHASE SETUP'!#REF!),\"\")","v":""},{"$f":"IFERROR(IF(AE50/-'RENTAL PURCHASE SETUP'!#REF!=0,\"\",AE50/-'RENTAL PURCHASE SETUP'!#REF!),\"\")","v":""},{"$f":"IFERROR(IF(AF50/-'RENTAL PURCHASE SETUP'!#REF!=0,\"\",AF50/-'RENTAL PURCHASE SETUP'!#REF!),\"\")","v":""},{"$f":"IFERROR(IF(AG50/-'RENTAL PURCHASE SETUP'!#REF!=0,\"\",AG50/-'RENTAL PURCHASE SETUP'!#REF!),\"\")","v":""},{"$f":"IFERROR(IF(AH50/-'RENTAL PURCHASE SETUP'!#REF!=0,\"\",AH50/-'RENTAL PURCHASE SETUP'!#REF!),\"\")","v":""},{"$f":"IFERROR(IF(AI50/-'RENTAL PURCHASE SETUP'!#REF!=0,\"\",AI50/-'RENTAL PURCHASE SETUP'!#REF!),\"\")","v":""},{"$f":"IFERROR(IF(AJ50/-'RENTAL PURCHASE SETUP'!#REF!=0,\"\",AJ50/-'RENTAL PURCHASE SETUP'!#REF!),\"\")","v":""},{"$f":"IFERROR(IF(AK50/-'RENTAL PURCHASE SETUP'!#REF!=0,\"\",AK50/-'RENTAL PURCHASE SETUP'!#REF!),\"\")","v":""},{"$f":"IFERROR(IF(AL50/-'RENTAL PURCHASE SETUP'!#REF!=0,\"\",AL50/-'RENTAL PURCHASE SETUP'!#REF!),\"\")","v":""},{"$f":"IFERROR(IF(AM50/-'RENTAL PURCHASE SETUP'!#REF!=0,\"\",AM50/-'RENTAL PURCHASE SETUP'!#REF!),\"\")","v":""},{"$f":"IFERROR(IF(AN50/-'RENTAL PURCHASE SETUP'!#REF!=0,\"\",AN50/-'RENTAL PURCHASE SETUP'!#REF!),\"\")","v":""},{"$f":"IFERROR(IF(AO50/-'RENTAL PURCHASE SETUP'!#REF!=0,\"\",AO50/-'RENTAL PURCHASE SETUP'!#REF!),\"\")","v":""},{"$f":"IFERROR(IF(AP50/-'RENTAL PURCHASE SETUP'!#REF!=0,\"\",AP50/-'RENTAL PURCHASE SETUP'!#REF!),\"\")","v":""},{"$f":"IFERROR(IF(AQ50/-'RENTAL PURCHASE SETUP'!#REF!=0,\"\",AQ50/-'RENTAL PURCHASE SETUP'!#REF!),\"\")","v":""},{"$f":"IFERROR(IF(AR50/-'RENTAL PURCHASE SETUP'!#REF!=0,\"\",AR50/-'RENTAL PURCHASE SETUP'!#REF!),\"\")","v":""},{"$f":"IFERROR(IF(AS50/-'RENTAL PURCHASE SETUP'!#REF!=0,\"\",AS50/-'RENTAL PURCHASE SETUP'!#REF!),\"\")","v":""},{"$f":"IFERROR(IF(AT50/-'RENTAL PURCHASE SETUP'!#REF!=0,\"\",AT50/-'RENTAL PURCHASE SETUP'!#REF!),\"\")","v":""},{"$f":"IFERROR(IF(AU50/-'RENTAL PURCHASE SETUP'!#REF!=0,\"\",AU50/-'RENTAL PURCHASE SETUP'!#REF!),\"\")","v":""},{"$f":"IFERROR(IF(AV50/-'RENTAL PURCHASE SETUP'!#REF!=0,\"\",AV50/-'RENTAL PURCHASE SETUP'!#REF!),\"\")","v":""},{"$f":"IFERROR(IF(AW50/-'RENTAL PURCHASE SETUP'!#REF!=0,\"\",AW50/-'RENTAL PURCHASE SETUP'!#REF!),\"\")","v":""},{"$f":"IFERROR(IF(AX50/-'RENTAL PURCHASE SETUP'!#REF!=0,\"\",AX50/-'RENTAL PURCHASE SETUP'!#REF!),\"\")","v":""},{"$f":"IFERROR(IF(AY50/-'RENTAL PURCHASE SETUP'!#REF!=0,\"\",AY50/-'RENTAL PURCHASE SETUP'!#REF!),\"\")","v":""},{"$f":"IFERROR(IF(AZ50/-'RENTAL PURCHASE SETUP'!#REF!=0,\"\",AZ50/-'RENTAL PURCHASE SETUP'!#REF!),\"\")","v":""},{"$f":"IFERROR(IF(BA50/-'RENTAL PURCHASE SETUP'!#REF!=0,\"\",BA50/-'RENTAL PURCHASE SETUP'!#REF!),\"\")","v":""},{"$f":"IFERROR(IF(BB50/-'RENTAL PURCHASE SETUP'!#REF!=0,\"\",BB50/-'RENTAL PURCHASE SETUP'!#REF!),\"\")","v":""}]
[{"$nulls":3},"Resale Capitalization Rate (NOI / Property Value)",{"$nulls":20},{"$f":"IFERROR(IF(Y50/Y63=0,\"\",Y50/Y63),\"\")","v":{"v":0.03278048780487805,"d":"3.28%"}},{"$f":"IFERROR(IF(Z50/Z63=0,\"\",Z50/Z63),\"\")","v":{"v":0.03230077334919691,"d":"3.23%"}},{"v":0.03182807910506232,"d":"3.18%"},{"v":0.031362302337671163,"d":"3.14%"},{"v":0.030903341815656463,"d":"3.09%"},{"v":0.030451097789085883,"d":"3.05%"},{"v":0.030005471967782187,"d":"3.00%"},{"v":0.029566367499960985,"d":"2.96%"},{"v":0.029133688951181073,"d":"2.91%"},{"v":0.028707342283602815,"d":"2.87%"},{"v":0.028287234835550085,"d":"2.83%"},{"v":0.027873275301371313,"d":"2.79%"},{"v":0.027465373711595145,"d":"2.75%"},{"v":0.02706344141337668,"d":"2.71%"},{"v":0.026667391051229707,"d":"2.67%"},{"v":0.026277136548040987,"d":"2.63%"},{"v":0.02589259308636234,"d":"2.59%"},{"v":0.02551367708997655,"d":"2.55%"},{"v":0.025140306205732994,"d":"2.51%"},{"v":0.024772399285649102,"d":"2.48%"},{"v":0.024409876369273754,"d":"2.44%"},{"v":0.02405265866630878,"d":"2.41%"},{"v":0.023700668539484746,"d":"2.37%"},{"v":0.02335382948768741,"d":"2.34%"},{"v":0.023012066129331012,"d":"2.30%"},{"v":0.022675304185974948,"d":"2.27%"},{"v":0.022343470466180192,"d":"2.23%"},{"v":0.02201649284960195,"d":"2.20%"},{"v":0.021694300271315088,"d":"2.17%"},{"v":0.02137682270636902,"d":"2.14%"}]
[{"$nulls":3},"Gross Rent Multiplier",{"$nulls":20},{"$f":"IFERROR(IF(Y63/Y23=0,\"\",Y63/Y23),\"\")","v":{"v":17.083333333333332,"d":"17.08"}},{"$f":"IFERROR(IF(Z63/Z23=0,\"\",Z63/Z23),\"\")","v":{"v":17.337046204620457,"d":"17.34"}},{"v":17.594527088847496,"d":"17.59"},{"v":17.855831946602656,"d":"17.86"},{"v":18.121017569572004,"d":"18.12"},{"v":18.39014159288248,"d":"18.39"},{"v":18.663262507628257,"d":"18.66"},{"v":18.940439673583132,"d":"18.94"},{"v":19.22173333210169,"d":"19.22"},{"v":19.50720461921211,"d":"19.51"},{"v":19.79691557890338,"d":"19.80"},{"v":20.090929176609862,"d":"20.09"},{"v":20.389309312896145,"d":"20.39"},{"v":20.692120837345097,"d":"20.69"},{"v":20.999429562652203,"d":"21.00"},{"v":21.31130227892921,"d":"21.31"},{"v":21.62780676822024,"d":"21.63"},{"v":21.94901181923341,"d":"21.95"},{"v":22.274987242291328,"d":"22.27"},{"v":22.605803884503572,"d":"22.61"},{"v":22.941533645164515,"d":"22.94"},{"v":23.282249491379826,"d":"23.28"},{"v":23.62802547392507,"d":"23.63"},{"v":23.978936743339798,"d":"23.98"},{"v":24.335059566260682,"d":"24.34"},{"v":24.696471341997224,"d":"24.70"},{"v":25.06325061935362,"d":"25.06"},{"v":25.435477113700454,"d":"25.44"},{"v":25.813231724299964,"d":"25.81"},{"v":26.19659655188857,"d":"26.20"}]
[]
[{"$nulls":3},"Cash Flow From Operations"]
[{"$nulls":3},"Cash Flow Before Debt (NOI)",{"$nulls":16},{"$f":"U50","v":{"v":700,"d":"$700"}},{"$f":"V50","v":{"v":8400,"d":"$8,400"}},null,null,{"$f":"Y50","v":{"v":8400,"d":"$8,400"}},{"v":8484,"d":"$8,484"},{"v":8568.84,"d":"$8,569"},{"v":8654.5284,"d":"$8,655"},{"v":8741.073683999999,"d":"$8,741"},{"v":8828.484420839999,"d":"$8,828"},{"v":8916.769265048399,"d":"$8,917"},{"v":9005.936957698883,"d":"$9,006"},{"v":9095.996327275872,"d":"$9,096"},{"v":9186.956290548631,"d":"$9,187"},{"v":9278.825853454115,"d":"$9,279"},{"v":9371.614111988658,"d":"$9,372"},{"v":9465.330253108543,"d":"$9,465"},{"v":9559.983555639628,"d":"$9,560"},{"v":9655.583391196025,"d":"$9,656"},{"v":9752.139225107987,"d":"$9,752"},{"v":9849.660617359066,"d":"$9,850"},{"v":9948.157223532657,"d":"$9,948"},{"v":10047.638795767985,"d":"$10,048"},{"v":10148.115183725666,"d":"$10,148"},{"v":10249.596335562925,"d":"$10,250"},{"v":10352.092298918555,"d":"$10,352"},{"v":10455.613221907739,"d":"$10,456"},{"v":10560.169354126816,"d":"$10,560"},{"v":10665.771047668084,"d":"$10,666"},{"v":10772.428758144764,"d":"$10,772"},{"v":10880.15304572621,"d":"$10,880"},{"v":10988.954576183474,"d":"$10,989"},{"v":11098.844121945307,"d":"$11,099"},{"v":11209.83256316476,"d":"$11,210"}]
[{"$nulls":3},"Cash Flow After Debt (NOI - Debt Service)",{"$nulls":16},{"$f":"U50+U55","v":{"v":-239.43784027124343,"d":"-$239"}},{"$f":"V50+V55","v":{"v":-2873.2540832549203,"d":"-$2,873"}},null,null,{"$f":"IFERROR(Y50+Y55,\"\")","v":{"v":-2873.2540832549203,"d":"-$2,873"}},{"v":-2789.2540832549203,"d":"-$2,789"},{"v":-2704.41408325492,"d":"-$2,704"},{"v":-2618.725683254921,"d":"-$2,619"},{"v":-2532.180399254921,"d":"-$2,532"},{"v":-2444.769662414921,"d":"-$2,445"},{"v":-2356.4848182065216,"d":"-$2,356"},{"v":-2267.3171255560374,"d":"-$2,267"},{"v":-2177.257755979048,"d":"-$2,177"},{"v":-2086.2977927062893,"d":"-$2,086"},{"v":-1994.4282298008056,"d":"-$1,994"},{"v":-1901.6399712662624,"d":"-$1,902"},{"v":-1807.9238301463774,"d":"-$1,808"},{"v":-1713.270527615292,"d":"-$1,713"},{"v":-1617.670692058895,"d":"-$1,618"},{"v":-1521.1148581469333,"d":"-$1,521"},{"v":-1423.593465895854,"d":"-$1,424"},{"v":-1325.0968597222636,"d":"-$1,325"},{"v":-1225.615287486935,"d":"-$1,226"},{"v":-1125.1388995292546,"d":"-$1,125"},{"v":-1023.6577476919956,"d":"-$1,024"},{"v":-921.1617843363656,"d":"-$921"},{"v":-817.6408613471813,"d":"-$818"},{"v":-713.0847291281043,"d":"-$713"},{"v":-607.4830355868362,"d":"-$607"},{"v":-500.825325110156,"d":"-$501"},{"v":-393.10103752870964,"d":"-$393"},{"v":-284.299507071446,"d":"-$284"},{"v":-174.4099613096132,"d":"-$174"},{"$f":"IFERROR(BB50+BB55,\"\")","v":{"v":-63.4215200901599,"d":"-$63"}}]
[{"$nulls":3},"Unlevered Cash-On-Cash ROI (Cash Flow Before Debt / Cash in Deal)",{"$nulls":20},{"$f":"IFERROR(Y69/'RENTAL PURCHASE SETUP'!$AA$66,\"\")","v":{"v":0.05326907223032532,"d":"5.33%"}},{"$f":"IFERROR(Z69/'RENTAL PURCHASE SETUP'!$AA$66,\"\")","v":{"v":0.053801762952628576,"d":"5.38%"}},{"$f":"IFERROR(AA69/'RENTAL PURCHASE SETUP'!$AA$66,\"\")","v":{"v":0.05433978058215486,"d":"5.43%"}},{"$f":"IFERROR(AB69/'RENTAL PURCHASE SETUP'!$AA$66,\"\")","v":{"v":0.054883178387976406,"d":"5.49%"}},{"$f":"IFERROR(AC69/'RENTAL PURCHASE SETUP'!$AA$66,\"\")","v":{"v":0.055432010171856165,"d":"5.54%"}},{"$f":"IFERROR(AD69/'RENTAL PURCHASE SETUP'!$AA$66,\"\")","v":{"v":0.055986330273574726,"d":"5.60%"}},{"$f":"IFERROR(AE69/'RENTAL PURCHASE SETUP'!$AA$66,\"\")","v":{"v":0.05654619357631047,"d":"5.65%"}},{"$f":"IFERROR(AF69/'RENTAL PURCHASE SETUP'!$AA$66,\"\")","v":{"v":0.05711165551207358,"d":"5.71%"}},{"$f":"IFERROR(AG69/'RENTAL PURCHASE SETUP'!$AA$66,\"\")","v":{"v":0.05768277206719432,"d":"5.77%"}},{"$f":"IFERROR(AH69/'RENTAL PURCHASE SETUP'!$AA$66,\"\")","v":{"v":0.05825959978786626,"d":"5.83%"}},{"$f":"IFERROR(AI69/'RENTAL PURCHASE SETUP'!$AA$66,\"\")","v":{"v":0.05884219578574491,"d":"5.88%"}},{"$f":"IFERROR(AJ69/'RENTAL PURCHASE SETUP'!$AA$66,\"\")","v":{"v":0.05943061774360237,"d":"5.94%"}},{"$f":"IFERROR(AK69/'RENTAL PURCHASE SETUP'!$AA$66,\"\")","v":{"v":0.060024923921038385,"d":"6.00%"}},{"$f":"IFERROR(AL69/'RENTAL PURCHASE SETUP'!$AA$66,\"\")","v":{"v":0.06062517316024877,"d":"6.06%"}},{"$f":"IFERROR(AM69/'RENTAL PURCHASE SETUP'!$AA$66,\"\")","v":{"v":0.06123142489185126,"d":"6.12%"}},{"$f":"IFERROR(AN69/'RENTAL PURCHASE SETUP'!$AA$66,\"\")","v":{"v":0.06184373914076978,"d":"6.18%"}},{"$f":"IFERROR(AO69/'RENTAL PURCHASE SETUP'!$AA$66,\"\")","v":{"v":0.06246217653217748,"d":"6.25%"}},{"$f":"IFERROR(AP69/'RENTAL PURCHASE SETUP'!$AA$66,\"\")","v":{"v":0.06308679829749925,"d":"6.31%"}},{"$f":"IFERROR(AQ69/'RENTAL PURCHASE SETUP'!$AA$66,\"\")","v":{"v":0.06371766628047426,"d":"6.37%"}},{"$f":"IFERROR(AR69/'RENTAL PURCHASE SETUP'!$AA$66,\"\")","v":{"v":0.064354842943279,"d":"6.44%"}},{"$f":"IFERROR(AS69/'RENTAL PURCHASE SETUP'!$AA$66,\"\")","v":{"v":0.06499839137271181,"d":"6.50%"}},{"$f":"IFERROR(AT69/'RENTAL PURCHASE SETUP'!$AA$66,\"\")","v":{"v":0.06564837528643892,"d":"6.56%"}},{"$f":"IFERROR(AU69/'RENTAL PURCHASE SETUP'!$AA$66,\"\")","v":{"v":0.0663048590393033,"d":"6.63%"}},{"$f":"IFERROR(AV69/'RENTAL PURCHASE SETUP'!$AA$66,\"\")","v":{"v":0.06696790762969634,"d":"6.70%"}},{"$f":"IFERROR(AW69/'RENTAL PURCHASE SETUP'!$AA$66,\"\")","v":{"v":0.0676375867059933,"d":"6.76%"}},{"$f":"IFERROR(AX69/'RENTAL PURCHASE SETUP'!$AA$66,\"\")","v":{"v":0.06831396257305324,"d":"6.83%"}},{"$f":"IFERROR(AY69/'RENTAL PURCHASE SETUP'!$AA$66,\"\")","v":{"v":0.06899710219878376,"d":"6.90%"}},{"$f":"IFERROR(AZ69/'RENTAL PURCHASE SETUP'!$AA$66,\"\")","v":{"v":0.0696870732207716,"d":"6.97%"}},{"$f":"IFERROR(BA69/'RENTAL PURCHASE SETUP'!$AA$66,\"\")","v":{"v":0.07038394395297931,"d":"7.04%"}},{"$f":"IFERROR(BB69/'RENTAL PURCHASE SETUP'!$AA$66,\"\")","v":{"v":0.0710877833925091,"d":"7.11%"}}]
[{"$nulls":3},"Levered Cash On-Cash ROI (Cash Flow After Debt / Cash in Deal)",{"$nulls":20},{"$f":"IFERROR(IF(Y59<0,\"inf %\",Y70/Y59),\"\")","v":"inf %"},{"$f":"IFERROR(IF(Z59<0,\"inf %\",Z70/Z59),\"\")","v":"inf %"},"inf %","inf %","inf %","inf %","inf %","inf %","inf %","inf %","inf %","inf %","inf %","inf %","inf %","inf %","inf %","inf %","inf %","inf %","inf %","inf %","inf %","inf %","inf %","inf %","inf %","inf %","inf %","inf %"]
[]
[{"$nulls":3},"Equity"]
[{"$nulls":3},"Equity Earned from Purchase & Rehab",{"$nulls":16},{"$f":"V75/12","v":{"v":6234.166666666667,"d":"$6,234"}},{"$f":"'RENTAL PURCHASE SETUP'!$AA$63","v":{"v":74810,"d":"$74,810"}},null,null,{"$f":"'RENTAL PURCHASE SETUP'!$AA$63","v":{"v":74810,"d":"$74,810"}},{"$f":"IF(Z27=\"\",\"\",0)","v":{"v":0,"d":"$0"}},{"v":0,"d":"$0"},{"v":0,"d":"$0"},{"v":0,"d":"$0"},{"v":0,"d":"$0"},{"v":0,"d":"$0"},{"v":0,"d":"$0"},{"v":0,"d":"$0"},{"v":0,"d":"$0"},{"v":0,"d":"$0"},{"v":0,"d":"$0"},{"v":0,"d":"$0"},{"v":0,"d":"$0"},{"v":0,"d":"$0"},{"v":0,"d":"$0"},{"v":0,"d":"$0"},{"v":0,"d":"$0"},{"v":0,"d":"$0"},{"v":0,"d":"$0"},{"v":0,"d":"$0"},{"v":0,"d":"$0"},{"v":0,"d":"$0"},{"v":0,"d":"$0"},{"v":0,"d":"$0"},{"v":0,"d":"$0"},{"v":0,"d":"$0"},{"v":0,"d":"$0"},{"v":0,"d":"$0"},{"$f":"IF(BB27=\"\",\"\",0)","v":{"v":0,"d":"$0"}}]
[{"$nulls":3},"Equity Earned (Principal Paydown)",{"$nulls":16},{"$f":"-U54","v":{"v":215.15744622859083,"d":"$215"}},{"$f":"-V54","v":{"v":2581.88935474309,"d":"$2,582"}},null,null,{"$f":"IFERROR(-Y54,\"\")","v":{"v":2581.88935474309,"d":"$2,582"}},{"v":2713.9837142523897,"d":"$2,714"},{"v":2852.8362718936573,"d":"$2,853"},{"v":2998.792789909585,"d":"$2,999"},{"v":3152.2167203954173,"d":"$3,152"},{"v":3313.490110345379,"d":"$3,313"},{"v":3483.0145530030027,"d":"$3,483"},{"v":3661.212187884332,"d":"$3,661"},{"v":3848.526751964227,"d":"$3,849"},{"v":4045.42468464334,"d":"$4,045"},{"v":4252.3962892473055,"d":"$4,252"},{"v":4469.956953950436,"d":"$4,470"},{"v":4698.648435164192,"d":"$4,699"},{"v":4939.040206586228,"d":"$4,939"},{"v":5191.730877269366,"d":"$5,192"},{"v":5457.349682241662,"d":"$5,457"},{"v":5736.5580493894195,"d":"$5,737"},{"v":6030.051246504915,"d":"$6,030"},{"v":6338.560112600218,"d":"$6,339"},{"v":6662.852877798297,"d":"$6,663"},{"v":7003.7370763332265,"d":"$7,004"},{"v":7362.061557423095,"d":"$7,362"},{"v":7738.718599023008,"d":"$7,739"},{"v":8134.646129721695,"d":"$8,135"},{"v":8550.83006431455,"d":"$8,551"},{"v":8988.306758869066,"d":"$8,988"},{"v":9448.165591396017,"d":"$9,448"},{"v":9931.551674552726,"d":"$9,932"},{"v":10439.668707133347,"d":"$10,440"},{"$f":"IFERROR(-BB54,\"\")","v":{"v":10973.781971446828,"d":"$10,974"}}]
[{"$nulls":3},"Equity Earned (Property Appreciation)",{"$nulls":16},{"$f":"Z77/12","v":{"v":533.8541666666642,"d":"$534"}},{"$f":"U77*12","v":{"v":6406.249999999971,"d":"$6,406"}},null,null,{"$f":"IF($V$3>=Y$90,Y63-V63,\"\")","v":{"v":6249.999999999971,"d":"$6,250"}},{"$f":"IF($V$3>=Z$90,Z63-Y63,\"\")","v":{"v":6406.249999999971,"d":"$6,406"}},{"v":6566.40625,"d":"$6,566"},{"v":6730.56640625,"d":"$6,731"},{"v":6898.83056640625,"d":"$6,899"},{"v":7071.301330566406,"d":"$7,071"},{"v":7248.083863830543,"d":"$7,248"},{"v":7429.285960426321,"d":"$7,429"},{"v":7615.018109436962,"d":"$7,615"},{"v":7805.393562172889,"d":"$7,805"},{"v":8000.528401227202,"d":"$8,001"},{"v":8200.541611257882,"d":"$8,201"},{"v":8405.55515153933,"d":"$8,406"},{"v":8615.694030327839,"d":"$8,616"},{"v":8831.086381086032,"d":"$8,831"},{"v":9051.86354061315,"d":"$9,052"},{"v":9278.16012912849,"d":"$9,278"},{"v":9510.114132356714,"d":"$9,510"},{"v":9747.866985665634,"d":"$9,748"},{"v":9991.563660307263,"d":"$9,992"},{"v":10241.352751814935,"d":"$10,241"},{"v":10497.38657061028,"d":"$10,497"},{"v":10759.821234875591,"d":"$10,760"},{"v":11028.81676574744,"d":"$11,029"},{"v":11304.537184891116,"d":"$11,305"},{"v":11587.150614513434,"d":"$11,587"},{"v":11876.82937987626,"d":"$11,877"},{"v":12173.750114373164,"d":"$12,174"},{"v":12478.0938672325,"d":"$12,478"},{"v":12790.046213913243,"d":"$12,790"}]
[{"$nulls":3},"Total Equity Earned (Rehab Equity + Principal Paydown + Appreciation)",{"$nulls":16},{"$f":"SUM(U75:U77)","v":{"v":6983.178279561922,"d":"$6,983"}},{"$f":"SUM(V75:V77)","v":{"v":83798.13935474306,"d":"$83,798"}},null,null,{"$f":"IF(Y27=\"\",\"\",SUM(Y75:Y77))","v":{"v":83641.88935474306,"d":"$83,642"}},{"v":9120.233714252361,"d":"$9,120"},{"v":9419.242521893657,"d":"$9,419"},{"v":9729.359196159585,"d":"$9,729"},{"v":10051.047286801668,"d":"$10,051"},{"v":10384.791440911786,"d":"$10,385"},{"v":10731.098416833545,"d":"$10,731"},{"v":11090.498148310653,"d":"$11,090"},{"v":11463.54486140119,"d":"$11,464"},{"v":11850.818246816229,"d":"$11,851"},{"v":12252.924690474509,"d":"$12,253"},{"v":12670.49856520832,"d":"$12,670"},{"v":13104.203586703523,"d":"$13,104"},{"v":13554.734236914068,"d":"$13,555"},{"v":14022.817258355397,"d":"$14,023"},{"v":14509.213222854813,"d":"$14,509"},{"v":15014.71817851791,"d":"$15,015"},{"v":15540.165378861628,"d":"$15,540"},{"v":16086.427098265853,"d":"$16,086"},{"v":16654.41653810556,"d":"$16,654"},{"v":17245.08982814816,"d":"$17,245"},{"v":17859.448128033375,"d":"$17,859"},{"v":18498.539833898598,"d":"$18,499"},{"v":19163.462895469136,"d":"$19,163"},{"v":19855.367249205665,"d":"$19,855"},{"v":20575.457373382502,"d":"$20,575"},{"v":21324.994971272277,"d":"$21,325"},{"v":22105.30178892589,"d":"$22,105"},{"v":22917.762574365846,"d":"$22,918"},{"$f":"IF(BB27=\"\",\"\",SUM(BB75:BB77))","v":{"v":23763.82818536007,"d":"$23,764"}}]
[{"$nulls":3},"Equity-on-Cash ROI",{"$nulls":20},{"$f":"IFERROR(IF(Y59<0,\"inf %\",Y78/Y59),\"\")","v":"inf %"},{"$f":"IFERROR(IF(Z59<0,\"inf %\",Z78/Z59),\"\")","v":"inf %"},"inf %","inf %","inf %","inf %","inf %","inf %","inf %","inf %","inf %","inf %","inf %","inf %","inf %","inf %","inf %","inf %","inf %","inf %","inf %","inf %","inf %","inf %","inf %","inf %","inf %","inf %","inf %","inf %"]
[]
[{"$nulls":3},"Total Return"]
[{"$nulls":3},"Total Return (Cash Flow + Equity)",{"$nulls":16},{"$f":"U70+U78","v":{"v":6743.740439290678,"d":"$6,744"}},{"$f":"V70+V78","v":{"v":80924.88527148814,"d":"$80,925"}},null,null,{"$f":"IFERROR(Y70+Y78,\"\")","v":{"v":80768.63527148814,"d":"$80,769"}},{"v":6330.979630997441,"d":"$6,331"},{"v":6714.828438638737,"d":"$6,715"},{"v":7110.633512904664,"d":"$7,111"},{"v":7518.8668875467465,"d":"$7,519"},{"v":7940.0217784968645,"d":"$7,940"},{"v":8374.613598627024,"d":"$8,375"},{"v":8823.181022754616,"d":"$8,823"},{"v":9286.287105422141,"d":"$9,286"},{"v":9764.52045410994,"d":"$9,765"},{"v":10258.496460673703,"d":"$10,258"},{"v":10768.858593942057,"d":"$10,769"},{"v":11296.279756557145,"d":"$11,296"},{"v":11841.463709298776,"d":"$11,841"},{"v":12405.146566296502,"d":"$12,405"},{"v":12988.09836470788,"d":"$12,988"},{"v":13591.124712622055,"d":"$13,591"},{"v":14215.068519139364,"d":"$14,215"},{"v":14860.811810778918,"d":"$14,861"},{"v":15529.277638576306,"d":"$15,529"},{"v":16221.432080456165,"d":"$16,221"},{"v":16938.286343697007,"d":"$16,938"},{"v":17680.89897255142,"d":"$17,681"},{"v":18450.378166341034,"d":"$18,450"},{"v":19247.88421361883,"d":"$19,248"},{"v":20074.632048272346,"d":"$20,075"},{"v":20931.893933743566,"d":"$20,932"},{"v":21821.002281854446,"d":"$21,821"},{"v":22743.35261305623,"d":"$22,743"},{"$f":"IFERROR(BB70+BB78,\"\")","v":{"v":23700.40666526991,"d":"$23,700"}}]
[{"$nulls":3},"Total Return Accrued",{"$nulls":20},{"$f":"IF($V$3>=Y$90,Y82,\"\")","v":{"v":80768.63527148814,"d":"$80,769"}},{"$f":"IF($V$3>=Z$90,Y83+Z82,\"\")","v":{"v":87099.61490248557,"d":"$87,100"}},{"v":93814.44334112431,"d":"$93,814"},{"v":100925.07685402897,"d":"$100,925"},{"v":108443.94374157571,"d":"$108,444"},{"v":116383.96552007258,"d":"$116,384"},{"v":124758.5791186996,"d":"$124,759"},{"v":133581.76014145423,"d":"$133,582"},{"v":142868.04724687638,"d":"$142,868"},{"v":152632.5677009863,"d":"$152,633"},{"v":162891.06416166,"d":"$162,891"},{"v":173659.92275560205,"d":"$173,660"},{"v":184956.2025121592,"d":"$184,956"},{"v":196797.66622145797,"d":"$196,798"},{"v":209202.81278775446,"d":"$209,203"},{"v":222190.91115246233,"d":"$222,191"},{"v":235782.03586508438,"d":"$235,782"},{"v":249997.10438422376,"d":"$249,997"},{"v":264857.9161950027,"d":"$264,858"},{"v":280387.19383357896,"d":"$280,387"},{"v":296608.62591403513,"d":"$296,609"},{"v":313546.9122577321,"d":"$313,547"},{"v":331227.8112302835,"d":"$331,228"},{"v":349678.18939662457,"d":"$349,678"},{"v":368926.0736102434,"d":"$368,926"},{"v":389000.70565851574,"d":"$389,001"},{"v":409932.5995922593,"d":"$409,933"},{"v":431753.6018741138,"d":"$431,754"},{"v":454496.95448717003,"d":"$454,497"},{"v":478197.36115243996,"d":"$478,197"}]
[{"$nulls":3},"Total Return on Cash",{"$nulls":20},{"$f":"IFERROR(IF(Y59<0,\"inf %\",Y82/Y59),\"\")","v":"inf %"},{"$f":"IFERROR(IF(Z59<0,\"inf %\",Z82/Z59),\"\")","v":"inf %"},"inf %","inf %","inf %","inf %","inf %","inf %","inf %","inf %","inf %","inf %","inf %","inf %","inf %","inf %","inf %","inf %","inf %","inf %","inf %","inf %","inf %","inf %","inf %","inf %","inf %","inf %","inf %","inf %"]
[{"$nulls":3},"Total Return-on-Cash Accrued",{"$nulls":20},{"$f":"IFERROR(IF(Y59<0,\"inf %\",Y83/Y59),\"\")","v":"inf %"},"inf %","inf %","inf %","inf %","inf %","inf %","inf %","inf %","inf %","inf %","inf %","inf %","inf %","inf %","inf %","inf %","inf %","inf %","inf %","inf %","inf %","inf %","inf %","inf %","inf %","inf %","inf %","inf %","inf %"]
[{"$nulls":3},"Internal Rate of Return",{"$nulls":20},"","","","","","","","","","","","","","","","","","","","","","","","","","","","","",""]
[]
[]
[null,null,"© 2018 by HouseFlippingSpreadsheet.com. All rights reserved"]
[{"$nulls":20},"Year",null,null,0,1,2,3,4,5,6,7,8,9,10,11,12,13,14,15,16,17,18,19,20,21,22,23,24,25,26,27,28,29,30]
[{"$nulls":3},"per month",{"$nulls":6},"# of months",{"$nulls":9},"Month ",{"$nulls":3},1,{"$f":"Y91+12","v":13},25,37,49,61,73,85,97,109,121,133,145,157,169,181,193,205,217,229,241,253,265,277,289,301,313,325,337,349]
[{"$nulls":3},"per year",{"$nulls":6},"% of rent",{"$nulls":9},"Month ",{"$nulls":3},{"$f":"Y91+11","v":12},24,36,48,60,72,84,96,108,120,132,144,156,168,180,192,204,216,228,240,252,264,276,288,300,312,324,336,348,360]
[]
[]
[{"$nulls":20},"Property Value",null,null,{"$f":"After_Repair_Value","v":{"$error":"#NAME?"}},{"$f":"Y63","v":{"v":256249.99999999997,"d":"$256,250"}},{"v":262656.24999999994,"d":"$262,656"},{"v":269222.65624999994,"d":"$269,223"},{"v":275953.22265624994,"d":"$275,953"},{"v":282852.0532226562,"d":"$282,852"},{"v":289923.3545532226,"d":"$289,923"},{"v":297171.43841705314,"d":"$297,171"},{"v":304600.72437747946,"d":"$304,601"},{"v":312215.7424869164,"d":"$312,216"},{"v":320021.1360490893,"d":"$320,021"},{"v":328021.6644503165,"d":"$328,022"},{"v":336222.2060615744,"d":"$336,222"},{"v":344627.7612131137,"d":"$344,628"},{"v":353243.45524344157,"d":"$353,243"},{"v":362074.5416245276,"d":"$362,075"},{"v":371126.40516514075,"d":"$371,126"},{"v":380404.56529426924,"d":"$380,405"},{"v":389914.67942662595,"d":"$389,915"},{"v":399662.5464122916,"d":"$399,663"},{"v":409654.11007259885,"d":"$409,654"},{"v":419895.4628244138,"d":"$419,895"},{"v":430392.84939502407,"d":"$430,393"},{"v":441152.67062989966,"d":"$441,153"},{"v":452181.4873956471,"d":"$452,181"},{"v":463486.0245805382,"d":"$463,486"},{"v":475073.17519505165,"d":"$475,073"},{"v":486950.0045749279,"d":"$486,950"},{"v":499123.7546893011,"d":"$499,124"},{"v":511601.8485565336,"d":"$511,602"},{"v":524391.8947704468,"d":"$524,392"},0]
[{"$nulls":20},"-Less Selling Costs",null,null,{"$f":"-IF('RENTAL PURCHASE SETUP'!$R$27=\"Lump Sum\",'RENTAL PURCHASE SETUP'!$AA$27,'RENTAL PURCHASE SETUP'!$W$27*X95)","v":{"$error":"#NAME?"}},{"$f":"-IF('RENTAL PURCHASE SETUP'!$R$27=\"Lump Sum\",'RENTAL PURCHASE SETUP'!$AA$27,'RENTAL PURCHASE SETUP'!$W$27*Y95)","v":{"v":-17937.5,"d":"-17938"}},{"$f":"-IF('RENTAL PURCHASE SETUP'!$R$27=\"Lump Sum\",'RENTAL PURCHASE SETUP'!$AA$27,'RENTAL PURCHASE SETUP'!$W$27*Z95)","v":{"v":-18385.937499999996,"d":"-18386"}},{"$f":"-IF('RENTAL PURCHASE SETUP'!$R$27=\"Lump Sum\",'RENTAL PURCHASE SETUP'!$AA$27,'RENTAL PURCHASE SETUP'!$W$27*AA95)","v":{"v":-18845.585937499996,"d":"-18846"}},{"$f":"-IF('RENTAL PURCHASE SETUP'!$R$27=\"Lump Sum\",'RENTAL PURCHASE SETUP'!$AA$27,'RENTAL PURCHASE SETUP'!$W$27*AB95)","v":{"v":-19316.725585937496,"d":"-19317"}},{"$f":"-IF('RENTAL PURCHASE SETUP'!$R$27=\"Lump Sum\",'RENTAL PURCHASE SETUP'!$AA$27,'RENTAL PURCHASE SETUP'!$W$27*AC95)","v":{"v":-19799.643725585935,"d":"-19800"}},{"$f":"-IF('RENTAL PURCHASE SETUP'!$R$27=\"Lump Sum\",'RENTAL PURCHASE SETUP'!$AA$27,'RENTAL PURCHASE SETUP'!$W$27*AD95)","v":{"v":-20294.634818725583,"d":"-20295"}},{"$f":"-IF('RENTAL PURCHASE SETUP'!$R$27=\"Lump Sum\",'RENTAL PURCHASE SETUP'!$AA$27,'RENTAL PURCHASE SETUP'!$W$27*AE95)","v":{"v":-20802.000689193723,"d":"-20802"}},{"$f":"-IF('RENTAL PURCHASE SETUP'!$R$27=\"Lump Sum\",'RENTAL PURCHASE SETUP'!$AA$27,'RENTAL PURCHASE SETUP'!$W$27*AF95)","v":{"v":-21322.050706423564,"d":"-21322"}},{"$f":"-IF('RENTAL PURCHASE SETUP'!$R$27=\"Lump Sum\",'RENTAL PURCHASE SETUP'!$AA$27,'RENTAL PURCHASE SETUP'!$W$27*AG95)","v":{"v":-21855.10197408415,"d":"-21855"}},{"$f":"-IF('RENTAL PURCHASE SETUP'!$R$27=\"Lump Sum\",'RENTAL PURCHASE SETUP'!$AA$27,'RENTAL PURCHASE SETUP'!$W$27*AH95)","v":{"v":-22401.479523436254,"d":"-22401"}},{"$f":"-IF('RENTAL PURCHASE SETUP'!$R$27=\"Lump Sum\",'RENTAL PURCHASE SETUP'!$AA$27,'RENTAL PURCHASE SETUP'!$W$27*AI95)","v":{"v":-22961.516511522157,"d":"-22962"}},{"$f":"-IF('RENTAL PURCHASE SETUP'!$R$27=\"Lump Sum\",'RENTAL PURCHASE SETUP'!$AA$27,'RENTAL PURCHASE SETUP'!$W$27*AJ95)","v":{"v":-23535.55442431021,"d":"-23536"}},{"$f":"-IF('RENTAL PURCHASE SETUP'!$R$27=\"Lump Sum\",'RENTAL PURCHASE SETUP'!$AA$27,'RENTAL PURCHASE SETUP'!$W$27*AK95)","v":{"v":-24123.943284917965,"d":"-24124"}},{"$f":"-IF('RENTAL PURCHASE SETUP'!$R$27=\"Lump Sum\",'RENTAL PURCHASE SETUP'!$AA$27,'RENTAL PURCHASE SETUP'!$W$27*AL95)","v":{"v":-24727.041867040913,"d":"-24727"}},{"$f":"-IF('RENTAL PURCHASE SETUP'!$R$27=\"Lump Sum\",'RENTAL PURCHASE SETUP'!$AA$27,'RENTAL PURCHASE SETUP'!$W$27*AM95)","v":{"v":-25345.217913716933,"d":"-25345"}},{"$f":"-IF('RENTAL PURCHASE SETUP'!$R$27=\"Lump Sum\",'RENTAL PURCHASE SETUP'!$AA$27,'RENTAL PURCHASE SETUP'!$W$27*AN95)","v":{"v":-25978.848361559856,"d":"-25979"}},{"$f":"-IF('RENTAL PURCHASE SETUP'!$R$27=\"Lump Sum\",'RENTAL PURCHASE SETUP'!$AA$27,'RENTAL PURCHASE SETUP'!$W$27*AO95)","v":{"v":-26628.31957059885,"d":"-26628"}},{"$f":"-IF('RENTAL PURCHASE SETUP'!$R$27=\"Lump Sum\",'RENTAL PURCHASE SETUP'!$AA$27,'RENTAL PURCHASE SETUP'!$W$27*AP95)","v":{"v":-27294.027559863818,"d":"-27294"}},{"$f":"-IF('RENTAL PURCHASE SETUP'!$R$27=\"Lump Sum\",'RENTAL PURCHASE SETUP'!$AA$27,'RENTAL PURCHASE SETUP'!$W$27*AQ95)","v":{"v":-27976.378248860412,"d":"-27976"}},{"$f":"-IF('RENTAL PURCHASE SETUP'!$R$27=\"Lump Sum\",'RENTAL PURCHASE SETUP'!$AA$27,'RENTAL PURCHASE SETUP'!$W$27*AR95)","v":{"v":-28675.787705081922,"d":"-28676"}},{"$f":"-IF('RENTAL PURCHASE SETUP'!$R$27=\"Lump Sum\",'RENTAL PURCHASE SETUP'!$AA$27,'RENTAL PURCHASE SETUP'!$W$27*AS95)","v":{"v":-29392.682397708966,"d":"-29393"}},{"$f":"-IF('RENTAL PURCHASE SETUP'!$R$27=\"Lump Sum\",'RENTAL PURCHASE SETUP'!$AA$27,'RENTAL PURCHASE SETUP'!$W$27*AT95)","v":{"v":-30127.499457651687,"d":"-30127"}},{"$f":"-IF('RENTAL PURCHASE SETUP'!$R$27=\"Lump Sum\",'RENTAL PURCHASE SETUP'!$AA$27,'RENTAL PURCHASE SETUP'!$W$27*AU95)","v":{"v":-30880.68694409298,"d":"-30881"}},{"$f":"-IF('RENTAL PURCHASE SETUP'!$R$27=\"Lump Sum\",'RENTAL PURCHASE SETUP'!$AA$27,'RENTAL PURCHASE SETUP'!$W$27*AV95)","v":{"v":-31652.7041176953,"d":"-31653"}},{"$f":"-IF('RENTAL PURCHASE SETUP'!$R$27=\"Lump Sum\",'RENTAL PURCHASE SETUP'!$AA$27,'RENTAL PURCHASE SETUP'!$W$27*AW95)","v":{"v":-32444.021720637676,"d":"-32444"}},{"$f":"-IF('RENTAL PURCHASE SETUP'!$R$27=\"Lump Sum\",'RENTAL PURCHASE SETUP'!$AA$27,'RENTAL PURCHASE SETUP'!$W$27*AX95)","v":{"v":-33255.12226365362,"d":"-33255"}},{"$f":"-IF('RENTAL PURCHASE SETUP'!$R$27=\"Lump Sum\",'RENTAL PURCHASE SETUP'!$AA$27,'RENTAL PURCHASE SETUP'!$W$27*AY95)","v":{"v":-34086.50032024496,"d":"-34087"}},{"$f":"-IF('RENTAL PURCHASE SETUP'!$R$27=\"Lump Sum\",'RENTAL PURCHASE SETUP'!$AA$27,'RENTAL PURCHASE SETUP'!$W$27*AZ95)","v":{"v":-34938.66282825108,"d":"-34939"}},{"$f":"-IF('RENTAL PURCHASE SETUP'!$R$27=\"Lump Sum\",'RENTAL PURCHASE SETUP'!$AA$27,'RENTAL PURCHASE SETUP'!$W$27*BA95)","v":{"v":-35812.12939895735,"d":"-35812"}},{"$f":"-IF('RENTAL PURCHASE SETUP'!$R$27=\"Lump Sum\",'RENTAL PURCHASE SETUP'!$AA$27,'RENTAL PURCHASE SETUP'!$W$27*BB95)","v":{"v":-36707.43263393128,"d":"-36707"}}]
[{"$nulls":20},"-Less Loan Payback",null,null,{"$f":"-P56","v":{"v":-175000,"d":"-$175,000"}},{"$f":"IFERROR(-Y56,\"\")","v":{"v":-172418.1106452569,"d":"-$172,418"}},{"v":-169704.12693100452,"d":"-$169,704"},{"v":-166851.29065911085,"d":"-$166,851"},{"v":-163852.49786920127,"d":"-$163,852"},{"v":-160700.28114880584,"d":"-$160,700"},{"v":-157386.79103846045,"d":"-$157,387"},{"v":-153903.77648545743,"d":"-$153,904"},{"v":-150242.56429757312,"d":"-$150,243"},{"v":-146394.03754560888,"d":"-$146,394"},{"v":-142348.61286096554,"d":"-$142,349"},{"v":-138096.21657171825,"d":"-$138,096"},{"v":-133626.25961776782,"d":"-$133,626"},{"v":-128927.61118260364,"d":"-$128,928"},{"v":-123988.5709760174,"d":"-$123,989"},{"v":-118796.84009874804,"d":"-$118,797"},{"v":-113339.49041650638,"d":"-$113,339"},{"v":-107602.93236711695,"d":"-$107,603"},{"v":-101572.88112061204,"d":"-$101,573"},{"v":-95234.32100801183,"d":"-$95,234"},{"v":-88571.46813021353,"d":"-$88,571"},{"v":-81567.7310538803,"d":"-$81,568"},{"v":-74205.66949645721,"d":"-$74,206"},{"v":-66466.9508974342,"d":"-$66,467"},{"v":-58332.30476771251,"d":"-$58,332"},{"v":-49781.47470339796,"d":"-$49,781"},{"v":-40793.16794452889,"d":"-$40,793"},{"v":-31345.002353132873,"d":"-$31,345"},{"v":-21413.45067858015,"d":"-$21,413"},{"v":-10973.781971446802,"d":"-$10,974"},{"v":2.546585164964199e-11,"d":"$0"}]
[{"$nulls":20},"-Less Investor Cash",null,null,{"$f":"-V59","v":{"v":17310,"d":"$17,310"}},{"$f":"-Y59","v":{"v":17310,"d":"$17,310"}},{"v":17310,"d":"$17,310"},{"v":17310,"d":"$17,310"},{"v":17310,"d":"$17,310"},{"v":17310,"d":"$17,310"},{"v":17310,"d":"$17,310"},{"v":17310,"d":"$17,310"},{"v":17310,"d":"$17,310"},{"v":17310,"d":"$17,310"},{"v":17310,"d":"$17,310"},{"v":17310,"d":"$17,310"},{"v":17310,"d":"$17,310"},{"v":17310,"d":"$17,310"},{"v":17310,"d":"$17,310"},{"v":17310,"d":"$17,310"},{"v":17310,"d":"$17,310"},{"v":17310,"d":"$17,310"},{"v":17310,"d":"$17,310"},{"v":17310,"d":"$17,310"},{"v":17310,"d":"$17,310"},{"v":17310,"d":"$17,310"},{"v":17310,"d":"$17,310"},{"v":17310,"d":"$17,310"},{"v":17310,"d":"$17,310"},{"v":17310,"d":"$17,310"},{"v":17310,"d":"$17,310"},{"v":17310,"d":"$17,310"},{"v":17310,"d":"$17,310"},{"v":17310,"d":"$17,310"},{"v":17310,"d":"$17,310"}]
[{"$nulls":20},"Cash Flow From Sale",null,null,{"$f":"SUM(X95:X98)","v":{"$error":"#NAME?"}},{"$f":"SUM(Y95:Y98)","v":{"v":83204.38935474306,"d":"$83,204"}},{"v":91876.18556899542,"d":"$91,876"},{"v":100835.7796533891,"d":"$100,836"},{"v":110093.99920111118,"d":"$110,094"},{"v":119662.1283482644,"d":"$119,662"},{"v":129551.92869603657,"d":"$129,552"},{"v":139775.66124240198,"d":"$139,776"},{"v":150346.10937348276,"d":"$150,346"},{"v":161276.60296722339,"d":"$161,277"},{"v":172581.04366468755,"d":"$172,581"},{"v":184273.9313670761,"d":"$184,274"},{"v":196370.39201949636,"d":"$196,370"},{"v":208886.20674559212,"d":"$208,886"},{"v":221837.84240038326,"d":"$221,838"},{"v":235242.48361206264,"d":"$235,242"},{"v":249118.06638707453,"d":"$249,118"},{"v":263483.31335655344,"d":"$263,483"},{"v":278357.7707461501,"d":"$278,358"},{"v":293761.84715541935,"d":"$293,762"},{"v":309716.85423730337,"d":"$309,717"},{"v":326245.0493728245,"d":"$326,245"},{"v":343369.68044091517,"d":"$343,370"},{"v":361115.0327883725,"d":"$361,115"},{"v":379506.47851023934,"d":"$379,506"},{"v":398570.5281565026,"d":"$398,571"},{"v":418334.8849868692,"d":"$418,335"},{"v":438828.50190155004,"d":"$438,829"},{"v":460081.64118246984,"d":"$460,082"},{"v":482125.9371861294,"d":"$482,126"},{"v":504994.46213651553,"d":"$504,994"}]
[{"$nulls":20},"Cash Flow From Operations",null,null,{"$f":"SUM(X96:X99)","v":{"$error":"#NAME?"}},{"v":-89841.22129051384,"d":"-$89,841"},{"v":-78903.87886200909,"d":"-$78,904"},{"v":-67551.09694322175,"d":"-$67,551"},{"v":-55765.22425402759,"d":"-$55,765"},{"v":-43527.79652612735,"d":"-$43,528"},{"v":-30819.497161149455,"d":"-$30,819"},{"v":-17620.115932249173,"d":"-$17,620"},{"v":-3908.505630513915,"d":"-$3,909"},{"v":10337.463447530346,"d":"$10,337"},{"v":25140.95128028575,"d":"$25,141"},{"v":40526.19828383569,"d":"$40,526"},{"v":56518.57797741832,"d":"$56,519"},{"v":73144.65227807051,"d":"$73,145"},{"v":90432.22955732496,"d":"$90,432"},{"v":108410.42559959766,"d":"$108,410"},{"v":127109.72760900829,"d":"$127,110"},{"v":146562.06141883763,"d":"$146,562"},{"v":166800.86206567424,"d":"$166,801"},{"v":187861.14789854712,"d":"$187,861"},{"v":209779.59840200792,"d":"$209,780"},{"v":232594.63592123523,"d":"$232,595"},{"v":256346.51148680627,"d":"$256,347"},{"v":281077.3949468453,"d":"$281,077"},{"v":306831.4696248315,"d":"$306,831"},{"v":333655.03173246694,"d":"$333,655"},{"v":361596.59477868665,"d":"$361,597"},{"v":390706.99922817224,"d":"$390,707"},{"v":421039.5276756386,"d":"$421,040"},{"v":452650.0258157252,"d":"$452,650"},{"v":485597.02950258425,"d":"$485,597"}]
[]
[{"$nulls":20},"IRR Calculations",{"$nulls":3},1,2,3,4,5,6,7,8,9,10,11,12,13,14,15,16,17,18,19,20,21,22,23,24,25,26,27,28,29,30]
[]
[{"$nulls":24},{"$f":"YEAR(TODAY())","v":2019},{"$f":"Y104+1","v":2020},{"$f":"Z104+1","v":2021},2022,2023,2024,2025,2026,2027,2028,2029,2030,2031,2032,2033,2034,2035,2036,2037,2038,2039,2040,2041,2042,2043,2044,2045,2046,2047,2048]
[{"$nulls":20},"Investor Cash Outlay",null,null,{"$f":"-V59","v":{"v":17310,"d":"$17,310"}}]
[{"$nulls":20},"Cash Flow from Operations",null,null,{"$f":"0","v":0},{"$f":"Y70","v":{"v":-2873.2540832549203,"d":"-$2,873"}},{"v":-2789.2540832549203,"d":"-$2,789"},{"v":-2704.41408325492,"d":"-$2,704"},{"v":-2618.725683254921,"d":"-$2,619"},{"v":-2532.180399254921,"d":"-$2,532"},{"v":-2444.769662414921,"d":"-$2,445"},{"v":-2356.4848182065216,"d":"-$2,356"},{"v":-2267.3171255560374,"d":"-$2,267"},{"v":-2177.257755979048,"d":"-$2,177"},{"v":-2086.2977927062893,"d":"-$2,086"},{"v":-1994.4282298008056,"d":"-$1,994"},{"v":-1901.6399712662624,"d":"-$1,902"},{"v":-1807.9238301463774,"d":"-$1,808"},{"v":-1713.270527615292,"d":"-$1,713"},{"v":-1617.670692058895,"d":"-$1,618"},{"v":-1521.1148581469333,"d":"-$1,521"},{"v":-1423.593465895854,"d":"-$1,424"},{"v":-1325.0968597222636,"d":"-$1,325"},{"v":-1225.615287486935,"d":"-$1,226"},{"v":-1125.1388995292546,"d":"-$1,125"},{"v":-1023.6577476919956,"d":"-$1,024"},{"v":-921.1617843363656,"d":"-$921"},{"v":-817.6408613471813,"d":"-$818"},{"v":-713.0847291281043,"d":"-$713"},{"v":-607.4830355868362,"d":"-$607"},{"v":-500.825325110156,"d":"-$501"},{"v":-393.10103752870964,"d":"-$393"},{"v":-284.299507071446,"d":"-$284"},{"v":-174.4099613096132,"d":"-$174"},{"v":-63.4215200901599,"d":"-$63"}]
[{"$nulls":20},"Profit if Sold",null,null,0,{"$f":"Y78","v":{"v":83641.88935474306,"d":"$83,642"}},{"$f":"Y107+Z78","v":{"v":92762.12306899542,"d":"$92,762"}},{"v":102181.36559088908,"d":"$102,181"},{"v":111910.72478704866,"d":"$111,911"},{"v":121961.77207385033,"d":"$121,962"},{"v":132346.56351476212,"d":"$132,347"},{"v":143077.66193159568,"d":"$143,078"},{"v":154168.16007990635,"d":"$154,168"},{"v":165631.70494130754,"d":"$165,632"},{"v":177482.52318812377,"d":"$177,483"},{"v":189735.4478785983,"d":"$189,735"},{"v":202405.9464438066,"d":"$202,406"},{"v":215510.15003051012,"d":"$215,510"},{"v":229064.88426742418,"d":"$229,065"},{"v":243087.70152577956,"d":"$243,088"},{"v":257596.91474863436,"d":"$257,597"},{"v":272611.63292715227,"d":"$272,612"},{"v":288151.7983060139,"d":"$288,152"},{"v":304238.2254042798,"d":"$304,238"},{"v":320892.64194238535,"d":"$320,893"},{"v":338137.7317705335,"d":"$338,138"},{"v":355997.17989856686,"d":"$355,997"},{"v":374495.71973246546,"d":"$374,496"},{"v":393659.1826279346,"d":"$393,659"},{"v":413514.54987714026,"d":"$413,515"},{"v":434090.0072505228,"d":"$434,090"},{"v":455415.0022217951,"d":"$455,415"},{"v":477520.304010721,"d":"$477,520"},{"v":500438.0665850868,"d":"$500,438"},{"v":524201.8947704469,"d":"$524,202"}]
[{"$nulls":20},"IRR"]

{"sheet":"RENTAL PURCHASE SETUP","index":18,"n_rows":74,"n_cols":33,"rows_kept":74,"hidden":true,"merged":[[1,0,3,2],[1,3,3,6],[1,7,3,10],[1,11,3,14],[4,12,4,32],[5,1,6,8],[5,10,5,25],[5,26,5,30],[6,10,6,25],[6,26,6,30],[7,1,9,8],[8,10,8,25],[8,26,8,30],[8,34,8,35],[9,10,9,16],[9,22,9,25],[9,26,9,30],[9,34,9,35],[10,10,10,16],[10,17,10,21],[10,22,10,25],[10,26,10,30],[10,34,10,35],[11,10,11,25],[11,26,11,30],[11,34,11,35],[13,10,13,25],[13,26,13,30],[14,10,14,16],[14,17,14,21],[14,22,14,25],[14,26,14,30],[14,31,14,45],[16,10,16,21],[16,22,16,25],[16,26,16,30],[17,10,17,16],[17,17,18,20],[17,22,17,25],[17,26,17,30],[17,34,17,35],[18,10,18,16],[18,22,18,25],[18,26,18,30],[18,34,18,35],[19,10,19,16],[19,17,19,20],[19,22,19,25],[19,26,19,30],[19,34,19,35],[20,10,20,16],[20,22,20,25],[20,26,20,30],[20,34,20,35],[21,10,21,16],[21,22,21,25],[21,26,21,30],[21,34,21,35],[22,10,22,16],[22,22,22,25],[22,26,22,30],[22,34,22,35],[23,10,23,21],[23,22,23,25],[23,26,23,30],[23,34,23,35],[25,10,25,25],[25,26,25,30],[25,34,25,35],[26,10,26,16],[26,17,26,21],[26,22,26,25],[26,26,26,30],[26,34,26,35],[27,10,27,25],[27,26,27,30],[27,34,27,35],[29,10,29,30],[30,10,30,30],[32,15,32,19],[32,22,32,26],[34,10,34,30],[36,15,36,19],[36,22,36,26],[39,10,40,30],[45,10,45,25],[45,26,45,30],[46,1,50,8],[46,10,46,20],[46,21,46,25],[46,26,46,30],[47,10,47,20],[47,21,47,25],[47,26,47,30],[48,10,48,25],[48,26,48,30],[49,10,49,20],[49,21,49,25],[49,26,49,30],[50,10,50,20],[50,21,50,25],[50,26,50,30],[51,10,51,20],[51,21,51,25],[51,26,51,30],[52,10,52,25],[52,26,52,30],[52,34,52,35],[55,10,55,30],[56,1,57,8],[56,10,56,25],[56,26,56,30],[57,10,57,25],[57,26,57,30],[58,10,58,25],[58,26,58,30],[59,10,59,25],[59,26,59,30],[60,10,60,25],[60,26,60,30],[61,10,61,25],[61,26,61,30],[62,10,62,25],[62,26,62,30],[64,10,64,30],[65,10,65,25],[65,26,65,30],[65,32,65,36],[66,10,66,25],[66,26,66,30],[67,10,67,25],[67,26,67,30],[70,1,70,45]]}
[]
[{"$nulls":3},"Rental Purchase",{"$nulls":3},"Rental Analysis",{"$nulls":3},"Long-Term Financing"]
[]
[]
[]
[null,"Rental Purchase",{"$nulls":8},"Property Value",{"$nulls":15},"Amounts"]
[{"$nulls":10},"After Repair Value",{"$nulls":15},{"v":250000,"d":"$250,000"}]
[null,"Analyze the Profit/Equity you can build into the property upfront by buying the property at a discount & rehabbing the property."]
[{"$nulls":10},"Buying Costs",{"$nulls":15},"Amounts"]
[{"$nulls":10},"Purchase Price",{"$nulls":11},{"$f":"IF(R11=\"% of Purchase\",\"% of Purch\",\"\")","v":"% of Purch"},{"$nulls":3},{"v":100000,"d":"$100,000"}]
[{"$nulls":10},"Buying Costs",{"$nulls":6},"% of Purchase",{"$nulls":4},{"v":0.03,"d":"3.00%"},{"$nulls":3},{"$f":"Purchase_Price*Percent_of_Purchase_Cell","v":{"v":3000,"d":"$3,000"}}]
[{"$nulls":10},"TOTAL PURCHASE COSTS",{"$nulls":15},{"$f":"SUM(AA10:AE11)","v":{"v":103000,"d":"$103,000"}}]
[]
[{"$nulls":10},"Repair Costs",{"$nulls":15},"Amounts"]
[{"$nulls":10},"Construction Costs",{"$nulls":6},"$ per SF",{"$nulls":4},{"v":35,"d":"$35.00"},{"$nulls":3},{"$f":"Property_Size*Construction_Costs_Dollar_per_SF","v":{"v":52500,"d":"$52,500"}},{"$nulls":4},{"$f":"IF(Construction_Costs_Dropdown=\"$ per SF\",\"Note: Construction Costs are calculated by mutiplying $ per SF * Square Footage\",IF(Construction_Costs_Dropdown=\"Detailed\",\"Note: Detailed Estimate information feeds from Estimator tool\",\"\"))","v":"Note: Construction Costs are calculated by mutiplying $ per SF * Square Footage"}]
[]
[{"$nulls":10},"Holding Costs During Rehab:",{"$nulls":11},"$ per Month",{"$nulls":3},"Amounts"]
[{"$nulls":10},"Property Taxes",{"$nulls":6},"# of Months for Rehab",{"$nulls":4},{"v":200,"d":"$200"},{"$nulls":3},{"$f":"$R$20*W18","v":{"v":600,"d":"$600"}}]
[{"$nulls":10},"Utilities",{"$nulls":11},{"v":300,"d":"$300"},{"$nulls":3},{"v":900,"d":"$900"}]
[{"$nulls":10},"Insurance",{"$nulls":6},{"v":3,"d":"3.0 mos"},{"$nulls":4},{"v":150,"d":"$150"},{"$nulls":3},{"v":450,"d":"$450"}]
[{"$nulls":10},"HOA Dues",{"$nulls":15},{"v":0,"d":"$0"}]
[{"$nulls":10},"Maintenance",{"$nulls":11},{"v":80,"d":"$80"},{"$nulls":3},{"v":240,"d":"$240"}]
[{"$nulls":10},"Other Holding Costs",{"$nulls":15},{"v":0,"d":"$0"}]
[{"$nulls":10},"TOTAL HOLDING COSTS",{"$nulls":11},{"$f":"SUM(W18:Z23)","v":{"v":730,"d":"$730"}},{"$nulls":3},{"$f":"SUM(AA18:AE23)","v":{"v":2190,"d":"$2,190"}}]
[]
[{"$nulls":10},"Selling Costs",{"$nulls":15},"Amounts"]
[{"$nulls":10},"Selling Costs:",{"$nulls":6},"% of ARV",{"$nulls":4},{"v":0.07,"d":"7.00%"},{"$nulls":3},{"$f":"Selling_Costs_Percent*After_Repair_Value_Rental","v":{"v":17500,"d":"$17,500"}}]
[{"$nulls":10},"TOTAL SELLING COSTS",{"$nulls":15},{"$f":"SUM(AA25:AE27)","v":{"v":17500,"d":"$17,500"}}]
[]
[{"$nulls":10},"Funding Strategy"]
[{"$nulls":10},"How do you plan on Funding Your Rental Purchase?"]
[]
[{"$nulls":15},"Cash Purchase",{"$nulls":6},"Outside Funding"]
[]
[{"$nulls":10},"What type of Funding will you use for your Purchase?"]
[]
[{"$nulls":15},"Long-Term Conventional",{"$nulls":6},"Bridge Loan"]
[]
[]
[{"$nulls":10},"Your Conventional Loan information will be setup on the Long Term Funding Sheet.  "]
[]
[]
[]
[]
[]
[{"$nulls":10},"Short Term Financing (Bridge Loan)",{"$nulls":15},"Amounts"]
[null,"Note: This Loan Setup is the for the initial short-term Bridge Loan that will be used to Purchase the property and fund the repair costs.  You can setup your long term conventional financing on the Rental Analysis page.",{"$nulls":8},"Loan Amount (input value or select from dropdown)",{"$nulls":15},{"$f":"IF(V47=\"Purchase\",AA12,IF(V47=\"Purchase + Repairs\",AA12+AA15,IF(V47=\"After Repair Value\",After_Repair_Value_Rental,V47)))","v":{"v":0,"d":"$0"}}]
[{"$nulls":10},"LTV Ratio (generally 65 to 80%)",{"$nulls":10},{"v":1,"d":"100.00%"},{"$nulls":4},{"$f":"IF(V48=\"\",0,(V48-1)*AA47)","v":{"v":0,"d":"$0"}}]
[{"$nulls":10},"BRIDGE LOAN AMOUNT:",{"$nulls":15},{"$f":"SUM(AA47:AE48)","v":{"v":0,"d":"$0"}}]
[{"$nulls":10},"Loan Term (# of Months):",{"$nulls":10},{"v":6,"d":"6.0 mos"},{"$nulls":4},{"$f":"IF(R50=\"$/SF\",W50*#REF!,\"\")","v":""}]
[{"$nulls":10},"Interest Rate (Annual %)",{"$nulls":10},{"v":0.12,"d":"12.00%"},{"$nulls":4},{"$f":"((V51*AA49)/12)*V50","v":{"v":0,"d":"$0"}}]
[{"$nulls":10},"Points/Fees (% of Loan):",{"$nulls":10},{"v":0.02,"d":"2.00%"},{"$nulls":4},{"$f":"V52*AA49","v":{"v":0,"d":"$0"}}]
[{"$nulls":10},"TOTAL FINANCING COSTS",{"$nulls":15},{"$f":"SUM(AA51:AE52)","v":{"v":0,"d":"$0"}}]
[]
[]
[{"$nulls":10},"Rehab Profit Calculation"]
[null,"Purchase Results",{"$nulls":8},"After Repair Value",{"$nulls":15},{"$f":"AA7","v":{"v":250000,"d":"$250,000"}}]
[{"$nulls":10},"- Less Purchase Costs",{"$nulls":15},{"$f":"-AA12","v":{"v":-103000,"d":"-$103,000"}}]
[{"$nulls":10},"- Less Construction Costs",{"$nulls":15},{"$f":"-Construction_Costs_Lump_Sum","v":{"v":-52500,"d":"-$52,500"}}]
[{"$nulls":10},"- Less Holding Costs",{"$nulls":15},{"$f":"-AA24","v":{"v":-2190,"d":"-$2,190"}}]
[{"$nulls":10},"- Less Bridge Loan Financing Costs",{"$nulls":15},{"$f":"-AA53","v":{"v":0,"d":"$0"}}]
[{"$nulls":10},"- Less Selling Costs",{"$nulls":15},{"$f":"-AA28","v":{"v":-17500,"d":"-$17,500"}}]
[{"$nulls":10},"TOTAL PROFIT/EQUITY AFTER REHAB:",{"$nulls":15},{"$f":"SUM(AA57:AE62)","v":{"v":74810,"d":"$74,810"}}]
[]
[{"$nulls":10},"Cash Outlay Calculation"]
[{"$nulls":10},"Total Project Costs (excl. Selling Costs):",{"$nulls":15},{"$f":"IF(Rental_Funding_Strategy=\"All Cash\",AA12+AA15+AA24,AA12+AA15+AA24+AA53)","v":{"v":157690,"d":"$157,690"}},{"$nulls":5},"Back to Rental Analysis"]
[{"$nulls":10},"Short Term Loan (Bridge Loan) Amount:",{"$nulls":15},{"$f":"-AA49","v":{"v":0,"d":"$0"}}]
[{"$nulls":10},"TOTAL INVESTOR CASH OUTLAY:",{"$nulls":15},{"$f":"SUM(AA66:AE67)","v":{"v":157690,"d":"$157,690"}}]
[]
[]
[null,"© 2018 by HouseFlippingSpreadsheet.com. All rights reserved"]
[]
[{"$nulls":12},"per month",{"$nulls":9},"# of months"]
[{"$nulls":12},"per year",{"$nulls":9},"% of rent"]

{"sheet":"RENTAL LOAN SETUP","index":19,"n_rows":31,"n_cols":32,"rows_kept":31,"hidden":true,"merged":[[1,0,3,2],[1,3,3,6],[1,7,3,10],[1,11,3,14],[5,1,6,8],[5,10,5,25],[5,26,5,30],[6,10,6,20],[6,21,6,25],[6,26,6,30],[7,1,11,8],[7,10,7,20],[7,21,7,25],[7,26,7,30],[8,10,8,25],[8,26,8,30],[9,15,9,25],[9,26,9,30],[10,10,10,20],[10,21,10,25],[10,26,10,30],[11,10,11,20],[11,21,11,25],[11,26,11,30],[12,10,12,20],[12,21,12,25],[12,26,12,30],[13,10,13,25],[13,26,13,30],[15,10,15,30],[16,10,16,25],[16,26,16,30],[17,10,17,25],[17,26,17,30],[18,10,18,25],[18,26,18,30],[20,10,20,30],[21,10,21,25],[21,26,21,30],[22,10,22,25],[22,26,22,30],[22,31,22,38],[23,10,23,25],[23,26,23,30],[24,10,24,25],[24,26,24,30],[27,1,27,43]]}
[]
[{"$nulls":3},"Rental Purchase",{"$nulls":3},"Rental Analysis",{"$nulls":3},"Long-Term Financing"]
[]
[]
[]
[null,"Long-Term Financing Setup",{"$nulls":8},"Long-Term Financing Setup",{"$nulls":15},"Amounts"]
[{"$nulls":10},"Loan Amount (select or type in your own value)",{"$nulls":10},"ARV",{"$nulls":4},{"$f":"IF(V7=\"Purchase\",'RENTAL PURCHASE SETUP'!AA10,IF(V7=\"Purchase + Repairs\",'RENTAL PURCHASE SETUP'!AA10+'RENTAL PURCHASE SETUP'!AA15,IF(V7=\"ARV\",'RENTAL PURCHASE SETUP'!AA7,V7)))","v":{"v":250000,"d":"$250,000"}}]
[null,"Note: This Loan Setup is the for the Long-Term amortized, conventional loan that will be used to finance or refinance the property.",{"$nulls":8},"LTV Ratio (generally 65 to 80%)",{"$nulls":10},{"v":0.7,"d":"70.00%"},{"$nulls":4},{"$f":"IF(V8=\"\",0,(V8-1)*AA7)","v":{"v":-75000.00000000001,"d":"-$75,000"}}]
[{"$nulls":10},"LONG-TERM LOAN AMOUNT:",{"$nulls":15},{"$f":"SUM(AA7:AE8)","v":{"v":175000,"d":"$175,000"}}]
[{"$nulls":15},"Loan Terms",{"$nulls":10},"Amortized"]
[{"$nulls":10},"Loan Term (Years):",{"$nulls":10},{"v":30,"d":"30.0 years"},{"$nulls":4},{"$f":"IF(R11=\"$/SF\",W11*#REF!,\"\")","v":""}]
[{"$nulls":10},"Interest Rate (Annual %):",{"$nulls":10},{"v":0.05,"d":"5.00%"}]
[{"$nulls":10},"Points/Fees (% of Loan):",{"$nulls":15},{"$f":"V13*AA9","v":{"v":0,"d":"$0"}}]
[{"$nulls":10},"TOTAL FINANCING COSTS",{"$nulls":15},{"$f":"AA13","v":{"v":0,"d":"$0"}}]
[]
[{"$nulls":10},"Initial Cash Outlay at Purchase"]
[{"$nulls":10},"TOTAL PROJECT COSTS (Excl. Selling Costs)",{"$nulls":15},{"$f":"'RENTAL PURCHASE SETUP'!AA66","v":{"v":157690,"d":"$157,690"}}]
[{"$nulls":10},{"$f":"IF(AND(Rental_Funding_Strategy=\"Financed\",Rental_Funding_Type=\"Conventional\"),\"LONG-TERM FINANCING LOAN AMOUNT\",\"TOTAL SHORT TERM FINANCING (BRIGE LOAN)\")","v":"TOTAL SHORT TERM FINANCING (BRIGE LOAN)"},{"$nulls":15},{"$f":"IF(Rental_Funding_Type=\"Conventional\",-AA9,'RENTAL PURCHASE SETUP'!AA67)","v":{"v":0,"d":"$0"}}]
[{"$nulls":10},"INITIAL INVESTOR CASH OUTLAY",{"$nulls":15},{"$f":"SUM(AA17:AE18)","v":{"v":157690,"d":"$157,690"}}]
[]
[{"$nulls":10},{"$f":"IF(Rental_Funding_Type=\"Conventional\",\"Cash Remaining In Deal\",\"Cash Remaining In Deal After Refinance\")","v":"Cash Remaining In Deal After Refinance"}]
[{"$nulls":10},"EXISTING BRIDGE LOAN AMOUNT",{"$nulls":15},{"$f":"-AA18","v":{"v":0,"d":"$0"}}]
[{"$nulls":10},"INITIAL INVESTOR CASH OUTLAY + REFINANCING COSTS",{"$nulls":15},{"$f":"AA19+AA14","v":{"v":157690,"d":"$157,690"}},{"$nulls":4},"Go Back To: Rental Analysis"]
[{"$nulls":10},"LONG-TERM FINANCING AMOUNT",{"$nulls":15},{"$f":"-AA9","v":{"v":-175000,"d":"-$175,000"}}]
[{"$nulls":10},"CASH REMAINING IN DEAL",{"$nulls":15},{"$f":"IF(AA24=0,AA19,SUM(AA22:AE24))","v":{"v":-17310,"d":"-$17,310"}}]
[]
[]
[null,"© 2018 by HouseFlippingSpreadsheet.com. All rights reserved"]
[]
[{"$nulls":11},"per month",{"$nulls":9},"# of months"]
[{"$nulls":11},"per year",{"$nulls":9},"% of rent"]

{"sheet":"MANAGE","index":20,"n_rows":62,"n_cols":97,"rows_kept":62,"merged":[[0,1,0,11],[3,15,4,29],[3,30,4,49],[3,63,4,77],[6,70,6,73],[6,74,6,77],[7,63,9,68],[7,70,9,73],[7,74,9,77],[10,63,12,68],[10,70,12,73],[10,74,12,77],[13,63,15,68],[13,70,15,73],[13,74,15,77],[14,24,14,32],[14,42,14,51],[19,15,20,49],[22,15,23,32],[22,38,23,55],[22,60,23,77],[24,15,25,32],[24,38,25,55],[24,60,25,77],[26,15,27,32],[26,38,27,55],[26,60,27,77],[28,15,29,32],[28,38,29,55],[30,15,31,32],[30,38,31,55],[32,38,33,55],[38,15,39,42],[42,17,42,18],[42,19,42,77],[44,17,44,18],[44,19,44,77],[46,17,46,18],[46,19,46,77],[48,17,48,18],[48,19,48,77],[50,17,50,18],[50,19,50,77],[52,17,52,18],[52,19,52,77],[54,17,54,18],[54,19,54,77],[56,17,56,18],[56,19,56,77],[58,17,58,18],[58,19,58,77],[61,13,62,79]]}
[{"$nulls":96},"Shown"]
[]
[]
[{"$nulls":15},"Management Tools",{"$nulls":14},"Manage your Rehab Project",{"$nulls":32},"To Do"]
[]
[]
[{"$nulls":70},"Schedule",{"$nulls":3},"To Do"]
[{"$nulls":63},"Today",{"$nulls":6},{"$f":"SCHEDULER!AC11","v":0},{"$nulls":3},{"$f":"TASKS!AS4","v":0}]
[]
[]
[{"$nulls":63},"Tomorrow",{"$nulls":6},{"$f":"SCHEDULER!AD11","v":0},{"$nulls":3},{"$f":"TASKS!AH4","v":0}]
[]
[]
[{"$nulls":63},"Next 5 Days",{"$nulls":10},{"$f":"TASKS!W4","v":0}]
[{"$nulls":24},"Project Scheduler",{"$nulls":17},"Task Manager"]
[]
[]
[]
[]
[{"$nulls":15},"Project Management Reports…"]
[]
[]
[{"$nulls":15},"Pre-Construction Documents",{"$nulls":22},"Construction Management Documents",{"$nulls":21},"Post Construction Documents"]
[]
[{"$nulls":15},"- Contractor Pre-Qualification",{"$nulls":22},"- Rehab Checklist",{"$nulls":21},"- For Sale Flyer"]
[]
[{"$nulls":15},"- Scope of Work Report",{"$nulls":22},"- Project Task List",{"$nulls":21},"- Lien Waiver"]
[]
[{"$nulls":15},"- Independent Contractor Agreement",{"$nulls":22},"- Material List Report"]
[]
[{"$nulls":15},"- Bid Form",{"$nulls":22},"- Punch List Report"]
[]
[{"$nulls":38},"- Vendor Contact List"]
[]
[]
[]
[]
[]
[{"$nulls":15},"Project Management Checklist"]
[]
[]
[]
[{"$nulls":19},"Create a Rehab Budget using the Rehab Budgeter"]
[]
[{"$nulls":19},"Create a Detailed Scope of Work to Solicit Proposals from your Contractors"]
[]
[{"$nulls":19},"Evaluate and Track Contractor Proposals to Determine the Lowest, Qualified Bidder using Bid Tracker"]
[]
[{"$nulls":19},"Award Contracts to Contractors (Get Signed Contractor Agreements, Scope of Work, & Payment Schedule)"]
[]
[{"$nulls":19},"Create a Project Schedule & Schedule Contractors to Begin Construction"]
[]
[{"$nulls":19},"Manage and Coordinate Material Purchases using the Material List Report"]
[]
[{"$nulls":19},"Ensure Project Scope of Work & Tasks are Completed as Contracted using Project Task List"]
[]
[{"$nulls":19},"Receive Signed Lien Waivers from Contractors"]
[]
[{"$nulls":19},"Perform Final Project Punchlist Inspection to Ensure Property is Ready for Listing"]
[]
[]
[{"$nulls":13},"© 2018 by HouseFlippingSpreadsheet.com. All rights reserved"]

{"sheet":"SCHEDULER","index":21,"n_rows":114,"n_cols":402,"rows_kept":114,"hidden":true,"merged":[[0,1,0,23],[1,4,1,10],[3,1,4,9],[3,10,3,16],[3,17,3,23],[3,39,3,44],[4,10,5,13],[4,18,5,21],[4,22,4,23],[5,1,5,4],[5,5,5,9],[5,14,5,15],[5,22,5,23],[6,1,6,9],[6,10,6,15],[6,17,6,23],[8,1,10,1],[8,2,10,2],[8,3,10,9],[8,10,8,16],[8,17,8,23],[8,24,9,24],[8,25,9,25],[9,10,9,12],[9,13,9,16],[9,17,9,20],[9,21,9,23],[10,10,10,12],[10,13,10,16],[10,17,10,20],[10,21,10,23],[11,3,11,9],[11,10,11,12],[11,13,11,15],[11,18,11,20],[11,21,11,23],[12,3,12,9],[12,10,12,12],[12,13,12,15],[12,18,12,20],[12,21,12,23],[13,3,13,9],[13,10,13,12],[13,13,13,15],[13,18,13,20],[13,21,13,23],[13,401,13,412],[14,3,14,9],[14,10,14,12],[14,13,14,15],[14,18,14,20],[14,21,14,23],[14,401,14,412],[15,3,15,9],[15,10,15,12],[15,13,15,15],[15,18,15,20],[15,21,15,23],[15,401,15,412],[16,3,16,9],[16,10,16,12],[16,13,16,15],[16,18,16,20],[16,21,16,23],[16,401,16,412],[17,3,17,9],[17,10,17,12],[17,13,17,15],[17,18,17,20],[17,21,17,23],[17,401,17,412],[18,3,18,9],[18,10,18,12],[18,13,18,15],[18,18,18,20],[18,21,18,23],[18,401,18,412],[19,3,19,9],[19,10,19,12],[19,13,19,15],[19,18,19,20],[19,21,19,23],[19,401,19,412],[20,3,20,9],[20,10,20,12],[20,13,20,15],[20,18,20,20],[20,21,20,23],[20,401,20,412],[21,3,21,9],[21,10,21,12],[21,13,21,15],[21,18,21,20],[21,21,21,23],[21,401,21,412],[22,3,22,9],[22,10,22,12],[22,13,22,15],[22,18,22,20],[22,21,22,23],[22,401,22,412],[23,3,23,9],[23,10,23,12],[23,13,23,15],[23,18,23,20],[23,21,23,23],[23,401,23,412],[24,3,24,9],[24,10,24,12],[24,13,24,15],[24,18,24,20],[24,21,24,23],[24,401,24,412],[25,3,25,9],[25,10,25,12],[25,13,25,15],[25,18,25,20],[25,21,25,23],[25,401,25,412],[26,3,26,9],[26,10,26,12],[26,13,26,15],[26,18,26,20],[26,21,26,23],[26,401,26,412],[27,3,27,9],[27,10,27,12],[27,13,27,15],[27,18,27,20],[27,21,27,23],[27,401,27,412],[28,3,28,9],[28,10,28,12],[28,13,28,15],[28,18,28,20],[28,21,28,23],[28,401,28,412],[29,3,29,9],[29,10,29,12],[29,13,29,15],[29,18,29,20],[29,21,29,23],[29,401,29,412],[30,3,30,9],[30,10,30,12],[30,13,30,15],[30,18,30,20],[30,21,30,23],[30,401,30,412],[31,3,31,9],[31,10,31,12],[31,13,31,15],[31,18,31,20],[31,21,31,23],[31,401,31,412],[32,3,32,9],[32,10,32,12],[32,13,32,15],[32,18,32,20],[32,21,32,23],[32,401,32,412],[33,3,33,9],[33,10,33,12],[33,13,33,15],[33,18,33,20],[33,21,33,23],[33,401,33,412],[34,3,34,9],[34,10,34,12],[34,13,34,15],[34,18,34,20],[34,21,34,23],[34,401,34,412],[35,3,35,9],[35,10,35,12],[35,13,35,15],[35,18,35,20],[35,21,35,23],[35,401,35,412],[36,3,36,9],[36,10,36,12],[36,13,36,15],[36,18,36,20],[36,21,36,23],[36,401,36,412],[37,3,37,9],[37,10,37,12],[37,13,37,15],[37,18,37,20],[37,21,37,23],[37,401,37,412],[38,3,38,9],[38,10,38,12],[38,13,38,15],[38,18,38,20],[38,21,38,23],[38,401,38,412],[39,3,39,9],[39,10,39,12],[39,13,39,15],[39,18,39,20],[39,21,39,23],[39,401,39,412],[40,3,40,9],[40,10,40,12],[40,13,40,15],[40,18,40,20],[40,21,40,23],[40,401,40,412],[41,3,41,9],[41,10,41,12],[41,13,41,15],[41,18,41,20],[41,21,41,23],[41,401,41,412],[42,3,42,9],[42,10,42,12],[42,13,42,15],[42,18,42,20],[42,21,42,23],[42,401,42,412],[43,3,43,9],[43,10,43,12],[43,13,43,15],[43,18,43,20],[43,21,43,23],[43,401,43,412],[44,3,44,9],[44,10,44,12],[44,13,44,15],[44,18,44,20],[44,21,44,23],[44,401,44,412],[45,3,45,9],[45,10,45,12],[45,13,45,15],[45,18,45,20],[45,21,45,23],[45,401,45,412],[46,3,46,9],[46,10,46,12],[46,13,46,15],[46,18,46,20],[46,21,46,23],[46,401,46,412],[47,3,47,9],[47,10,47,12],[47,13,47,15],[47,18,47,20],[47,21,47,23],[47,401,47,412],[48,3,48,9],[48,10,48,12],[48,13,48,15],[48,18,48,20],[48,21,48,23],[48,401,48,412],[49,3,49,9],[49,10,49,12],[49,13,49,15],[49,18,49,20],[49,21,49,23],[49,401,49,412],[50,3,50,9],[50,10,50,12],[50,13,50,15],[50,18,50,20],[50,21,50,23],[50,401,50,412],[51,3,51,9],[51,10,51,12],[51,13,51,15],[51,18,51,20],[51,21,51,23],[51,401,51,412],[52,3,52,9],[52,10,52,12],[52,13,52,15],[52,18,52,20],[52,21,52,23],[52,401,52,412],[53,3,53,9],[53,10,53,12],[53,13,53,15],[53,18,53,20],[53,21,53,23],[53,401,53,412],[54,3,54,9],[54,10,54,12],[54,13,54,15],[54,18,54,20],[54,21,54,23],[54,401,54,412],[55,3,55,9],[55,10,55,12],[55,13,55,15],[55,18,55,20],[55,21,55,23],[55,401,55,412],[56,3,56,9],[56,10,56,12],[56,13,56,15],[56,18,56,20],[56,21,56,23],[56,401,56,412],[57,3,57,9],[57,10,57,12],[57,13,57,15],[57,18,57,20],[57,21,57,23],[57,401,57,412],[58,3,58,9],[58,10,58,12],[58,13,58,15],[58,18,58,20],[58,21,58,23],[58,401,58,412],[59,3,59,9],[59,10,59,12],[59,13,59,15],[59,18,59,20],[59,21,59,23],[59,401,59,412],[60,3,60,9],[60,10,60,12],[60,13,60,15],[60,18,60,20],[60,21,60,23],[60,401,60,412],[61,3,61,9],[61,10,61,12],[61,13,61,15],[61,18,61,20],[61,21,61,23],[62,3,62,9],[62,10,62,12],[62,13,62,15],[62,18,62,20],[62,21,62,23],[63,3,63,9],[63,10,63,12],[63,13,63,15],[63,18,63,20],[63,21,63,23],[64,3,64,9],[64,10,64,12],[64,13,64,15],[64,18,64,20],[64,21,64,23],[65,3,65,9],[65,10,65,12],[65,13,65,15],[65,18,65,20],[65,21,65,23],[66,3,66,9],[66,10,66,12],[66,13,66,15],[66,18,66,20],[66,21,66,23],[67,3,67,9],[67,10,67,12],[67,13,67,15],[67,18,67,20],[67,21,67,23],[68,3,68,9],[68,10,68,12],[68,13,68,15],[68,18,68,20],[68,21,68,23],[69,3,69,9],[69,10,69,12],[69,13,69,15],[69,18,69,20],[69,21,69,23],[70,3,70,9],[70,10,70,12],[70,13,70,15],[70,18,70,20],[70,21,70,23],[71,3,71,9],[71,10,71,12],[71,13,71,15],[71,18,71,20],[71,21,71,23],[72,3,72,9],[72,10,72,12],[72,13,72,15],[72,18,72,20],[72,21,72,23],[73,3,73,9],[73,10,73,12],[73,13,73,15],[73,18,73,20],[73,21,73,23],[74,3,74,9],[74,10,74,12],[74,13,74,15],[74,18,74,20],[74,21,74,23],[75,3,75,9],[75,10,75,12],[75,13,75,15],[75,18,75,20],[75,21,75,23],[76,3,76,9],[76,10,76,12],[76,13,76,15],[76,18,76,20],[76,21,76,23],[77,3,77,9],[77,10,77,12],[77,13,77,15],[77,18,77,20],[77,21,77,23],[78,3,78,9],[78,10,78,12],[78,13,78,15],[78,18,78,20],[78,21,78,23],[79,3,79,9],[79,10,79,12],[79,13,79,15],[79,18,79,20],[79,21,79,23],[80,3,80,9],[80,10,80,12],[80,13,80,15],[80,18,80,20],[80,21,80,23],[81,3,81,9],[81,10,81,12],[81,13,81,15],[81,18,81,20],[81,21,81,23],[82,3,82,9],[82,10,82,12],[82,13,82,15],[82,18,82,20],[82,21,82,23],[83,3,83,9],[83,10,83,12],[83,13,83,15],[83,18,83,20],[83,21,83,23],[84,3,84,9],[84,10,84,12],[84,13,84,15],[84,18,84,20],[84,21,84,23],[85,3,85,9],[85,10,85,12],[85,13,85,15],[85,18,85,20],[85,21,85,23],[86,3,86,9],[86,10,86,12],[86,13,86,15],[86,18,86,20],[86,21,86,23],[87,3,87,9],[87,10,87,12],[87,13,87,15],[87,18,87,20],[87,21,87,23],[88,3,88,9],[88,10,88,12],[88,13,88,15],[88,18,88,20],[88,21,88,23],[89,3,89,9],[89,10,89,12],[89,13,89,15],[89,18,89,20],[89,21,89,23],[90,3,90,9],[90,10,90,12],[90,13,90,15],[90,18,90,20],[90,21,90,23],[91,3,91,9],[91,10,91,12],[91,13,91,15],[91,18,91,20],[91,21,91,23],[92,3,92,9],[92,10,92,12],[92,13,92,15],[92,18,92,20],[92,21,92,23],[93,3,93,9],[93,10,93,12],[93,13,93,15],[93,18,93,20],[93,21,93,23],[94,3,94,9],[94,10,94,12],[94,13,94,15],[94,18,94,20],[94,21,94,23],[95,3,95,9],[95,10,95,12],[95,13,95,15],[95,18,95,20],[95,21,95,23],[96,3,96,9],[96,10,96,12],[96,13,96,15],[96,18,96,20],[96,21,96,23],[97,3,97,9],[97,10,97,12],[97,13,97,15],[97,18,97,20],[97,21,97,23],[98,3,98,9],[98,10,98,12],[98,13,98,15],[98,18,98,20],[98,21,98,23],[99,3,99,9],[99,10,99,12],[99,13,99,15],[99,18,99,20],[99,21,99,23],[100,3,100,9],[100,10,100,12],[100,13,100,15],[100,18,100,20],[100,21,100,23],[101,3,101,9],[101,10,101,12],[101,13,101,15],[101,18,101,20],[101,21,101,23],[102,3,102,9],[102,10,102,12],[102,13,102,15],[102,18,102,20],[102,21,102,23],[103,3,103,9],[103,10,103,12],[103,13,103,15],[103,18,103,20],[103,21,103,23],[104,3,104,9],[104,10,104,12],[104,13,104,15],[104,18,104,20],[104,21,104,23],[105,3,105,9],[105,10,105,12],[105,13,105,15],[105,18,105,20],[105,21,105,23],[106,3,106,9],[106,10,106,12],[106,13,106,15],[106,18,106,20],[106,21,106,23],[107,3,107,9],[107,10,107,12],[107,13,107,15],[107,18,107,20],[107,21,107,23],[108,3,108,9],[108,10,108,12],[108,13,108,15],[108,18,108,20],[108,21,108,23],[109,3,109,9],[109,10,109,12],[109,13,109,15],[109,18,109,20],[109,21,109,23],[110,3,110,9],[110,10,110,12],[110,13,110,15],[110,18,110,20],[110,21,110,23],[113,1,114,23]]}
[]
[{"$nulls":4},"PROJECT SCHEDULER"]
[]
[null,"Start by Setting up your Planned Start Date below, & then input your project tasks.",{"$nulls":8},"PLANNED",{"$nulls":6},"ACTUAL/PROJECTED",{"$nulls":21},"SCHEDULE KEY"]
[{"$nulls":10},{"$f":"Y11","v":7},{"$nulls":6},{"$f":"AH11","v":1},{"$f":"Z11","v":0},{"$nulls":3},{"$f":"IF(Z11=0,\"\",S5-K5)","v":""},{"$nulls":5},{"$f":"(TODAY()-F6)+1","v":{"v":334,"d":"334.00"}},{"$f":"(TODAY()-F6)+2","v":{"v":335,"d":"335.00"}},{"$f":"(TODAY()-F6)+5","v":{"v":338,"d":"338.00"}},{"$nulls":5},"Planned",{"$nulls":4},"Actual/Projected",{"$nulls":4},"Actual (beyond planned)"]
[null,"Planned Start Date:",{"$nulls":3},"2018-07-25",{"$nulls":8},"days",{"$nulls":7},"days"]
[null,"*Project Schedule is Calculated in Calendar Days",{"$nulls":8},{"$f":"IF(F6=0,\"\",K5+F6)","v":"2018-08-01"},{"$nulls":6},{"$f":"IF(S5=0,\"\",S5+F6)","v":""}]
[]
[null,"Complete","ITEM","TASK NAME",{"$nulls":6},"PLANNED",{"$nulls":6},"ACTUAL/PROJECTED",{"$nulls":6},"Plan Algo","Actual Algo",{"$nulls":7},{"$f":"F6","v":"2018-07-25"},{"$f":"AH9+1","v":"2018-07-26"},{"$f":"AI9+1","v":"2018-07-27"},"2018-07-28","2018-07-29","2018-07-30","2018-07-31","2018-08-01","2018-08-02","2018-08-03","2018-08-04","2018-08-05","2018-08-06","2018-08-07","2018-08-08","2018-08-09","2018-08-10","2018-08-11","2018-08-12","2018-08-13","2018-08-14","2018-08-15","2018-08-16","2018-08-17","2018-08-18","2018-08-19","2018-08-20","2018-08-21","2018-08-22","2018-08-23","2018-08-24","2018-08-25","2018-08-26","2018-08-27","2018-08-28","2018-08-29","2018-08-30","2018-08-31","2018-09-01","2018-09-02","2018-09-03","2018-09-04","2018-09-05","2018-09-06","2018-09-07","2018-09-08","2018-09-09","2018-09-10","2018-09-11","2018-09-12","2018-09-13","2018-09-14","2018-09-15","2018-09-16","2018-09-17","2018-09-18","2018-09-19","2018-09-20","2018-09-21","2018-09-22","2018-09-23","2018-09-24","2018-09-25","2018-09-26","2018-09-27","2018-09-28",{"$f":"CU9+1","v":"2018-09-29"},"2018-09-30","2018-10-01","2018-10-02","2018-10-03","2018-10-04","2018-10-05","2018-10-06","2018-10-07","2018-10-08","2018-10-09","2018-10-10","2018-10-11","2018-10-12","2018-10-13","2018-10-14","2018-10-15","2018-10-16","2018-10-17","2018-10-18","2018-10-19","2018-10-20","2018-10-21","2018-10-22","2018-10-23","2018-10-24","2018-10-25","2018-10-26","2018-10-27","2018-10-28","2018-10-29","2018-10-30","2018-10-31","2018-11-01","2018-11-02","2018-11-03","2018-11-04","2018-11-05","2018-11-06","2018-11-07","2018-11-08","2018-11-09","2018-11-10","2018-11-11","2018-11-12","2018-11-13","2018-11-14","2018-11-15","2018-11-16","2018-11-17","2018-11-18","2018-11-19","2018-11-20","2018-11-21","2018-11-22","2018-11-23","2018-11-24","2018-11-25","2018-11-26","2018-11-27","2018-11-28","2018-11-29","2018-11-30","2018-12-01",{"$f":"FG9+1","v":"2018-12-02"},"2018-12-03","2018-12-04","2018-12-05","2018-12-06","2018-12-07","2018-12-08","2018-12-09","2018-12-10","2018-12-11","2018-12-12","2018-12-13","2018-12-14","2018-12-15","2018-12-16","2018-12-17","2018-12-18","2018-12-19","2018-12-20","2018-12-21","2018-12-22","2018-12-23","2018-12-24","2018-12-25","2018-12-26","2018-12-27","2018-12-28","2018-12-29","2018-12-30","2018-12-31","2019-01-01","2019-01-02","2019-01-03","2019-01-04","2019-01-05","2019-01-06","2019-01-07","2019-01-08","2019-01-09","2019-01-10","2019-01-11","2019-01-12","2019-01-13","2019-01-14","2019-01-15","2019-01-16","2019-01-17","2019-01-18","2019-01-19","2019-01-20","2019-01-21","2019-01-22","2019-01-23","2019-01-24","2019-01-25","2019-01-26","2019-01-27","2019-01-28","2019-01-29","2019-01-30","2019-01-31","2019-02-01","2019-02-02","2019-02-03",{"$f":"HS9+1","v":"2019-02-04"},"2019-02-05","2019-02-06","2019-02-07","2019-02-08","2019-02-09","2019-02-10","2019-02-11","2019-02-12","2019-02-13","2019-02-14","2019-02-15","2019-02-16","2019-02-17","2019-02-18","2019-02-19","2019-02-20","2019-02-21","2019-02-22","2019-02-23","2019-02-24","2019-02-25","2019-02-26","2019-02-27","2019-02-28","2019-03-01","2019-03-02","2019-03-03","2019-03-04","2019-03-05","2019-03-06","2019-03-07","2019-03-08","2019-03-09","2019-03-10","2019-03-11","2019-03-12","2019-03-13","2019-03-14","2019-03-15","2019-03-16","2019-03-17","2019-03-18","2019-03-19","2019-03-20","2019-03-21","2019-03-22","2019-03-23","2019-03-24","2019-03-25","2019-03-26","2019-03-27","2019-03-28","2019-03-29","2019-03-30","2019-03-31","2019-04-01","2019-04-02","2019-04-03","2019-04-04","2019-04-05","2019-04-06","2019-04-07","2019-04-08",{"$f":"KE9+1","v":"2019-04-09"},"2019-04-10","2019-04-11","2019-04-12","2019-04-13","2019-04-14","2019-04-15","2019-04-16","2019-04-17","2019-04-18","2019-04-19","2019-04-20","2019-04-21","2019-04-22","2019-04-23","2019-04-24","2019-04-25","2019-04-26","2019-04-27","2019-04-28","2019-04-29","2019-04-30","2019-05-01","2019-05-02","2019-05-03","2019-05-04","2019-05-05","2019-05-06","2019-05-07","2019-05-08","2019-05-09","2019-05-10","2019-05-11","2019-05-12","2019-05-13","2019-05-14","2019-05-15","2019-05-16","2019-05-17","2019-05-18","2019-05-19","2019-05-20","2019-05-21","2019-05-22","2019-05-23","2019-05-24","2019-05-25","2019-05-26","2019-05-27","2019-05-28","2019-05-29","2019-05-30","2019-05-31","2019-06-01","2019-06-02","2019-06-03","2019-06-04","2019-06-05","2019-06-06","2019-06-07","2019-06-08","2019-06-09","2019-06-10","2019-06-11",{"$f":"MQ9+1","v":"2019-06-12"},"2019-06-13","2019-06-14","2019-06-15","2019-06-16","2019-06-17","2019-06-18","2019-06-19","2019-06-20","2019-06-21","2019-06-22","2019-06-23","2019-06-24","2019-06-25","2019-06-26","2019-06-27","2019-06-28","2019-06-29","2019-06-30","2019-07-01","2019-07-02","2019-07-03","2019-07-04","2019-07-05","2019-07-06","2019-07-07","2019-07-08","2019-07-09","2019-07-10","2019-07-11","2019-07-12","2019-07-13","2019-07-14","2019-07-15","2019-07-16","2019-07-17","2019-07-18","2019-07-19","2019-07-20","2019-07-21","2019-07-22","2019-07-23","2019-07-24"]
[{"$nulls":10},"START",null,null,"DURATION",{"$nulls":3},"START",{"$nulls":3},"DURATION",{"$nulls":4},"First Day","Last Day","Today","Tomorrow","5 Days Out",null,null,{"$f":"TEXT(AH9,\"ddd\")","v":"Wed"},{"$f":"TEXT(AI9,\"ddd\")","v":"Thu"},"Fri","Sat","Sun","Mon","Tue","Wed","Thu","Fri","Sat","Sun","Mon","Tue","Wed","Thu","Fri","Sat","Sun","Mon","Tue","Wed","Thu","Fri","Sat","Sun","Mon","Tue","Wed","Thu","Fri","Sat","Sun","Mon","Tue","Wed","Thu","Fri","Sat","Sun","Mon","Tue","Wed","Thu","Fri","Sat","Sun","Mon","Tue","Wed","Thu","Fri","Sat","Sun","Mon","Tue","Wed","Thu","Fri","Sat","Sun","Mon","Tue","Wed","Thu",{"$f":"TEXT(CU9,\"ddd\")","v":"Fri"},"Sat","Sun","Mon","Tue","Wed","Thu","Fri","Sat","Sun","Mon","Tue","Wed","Thu","Fri","Sat","Sun","Mon","Tue","Wed","Thu","Fri","Sat","Sun","Mon","Tue","Wed","Thu","Fri","Sat","Sun","Mon","Tue","Wed","Thu","Fri","Sat","Sun","Mon","Tue","Wed","Thu","Fri","Sat","Sun","Mon","Tue","Wed","Thu","Fri","Sat","Sun","Mon","Tue","Wed","Thu","Fri","Sat","Sun","Mon","Tue","Wed","Thu","Fri",{"$f":"TEXT(FG9,\"ddd\")","v":"Sat"},"Sun","Mon","Tue","Wed","Thu","Fri","Sat","Sun","Mon","Tue","Wed","Thu","Fri","Sat","Sun","Mon","Tue","Wed","Thu","Fri","Sat","Sun","Mon","Tue","Wed","Thu","Fri","Sat","Sun","Mon","Tue","Wed","Thu","Fri","Sat","Sun","Mon","Tue","Wed","Thu","Fri","Sat","Sun","Mon","Tue","Wed","Thu","Fri","Sat","Sun","Mon","Tue","Wed","Thu","Fri","Sat","Sun","Mon","Tue","Wed","Thu","Fri","Sat",{"$f":"TEXT(HS9,\"ddd\")","v":"Sun"},"Mon","Tue","Wed","Thu","Fri","Sat","Sun","Mon","Tue","Wed","Thu","Fri","Sat","Sun","Mon","Tue","Wed","Thu","Fri","Sat","Sun","Mon","Tue","Wed","Thu","Fri","Sat","Sun","Mon","Tue","Wed","Thu","Fri","Sat","Sun","Mon","Tue","Wed","Thu","Fri","Sat","Sun","Mon","Tue","Wed","Thu","Fri","Sat","Sun","Mon","Tue","Wed","Thu","Fri","Sat","Sun","Mon","Tue","Wed","Thu","Fri","Sat","Sun",{"$f":"TEXT(KE9,\"ddd\")","v":"Mon"},"Tue","Wed","Thu","Fri","Sat","Sun","Mon","Tue","Wed","Thu","Fri","Sat","Sun","Mon","Tue","Wed","Thu","Fri","Sat","Sun","Mon","Tue","Wed","Thu","Fri","Sat","Sun","Mon","Tue","Wed","Thu","Fri","Sat","Sun","Mon","Tue","Wed","Thu","Fri","Sat","Sun","Mon","Tue","Wed","Thu","Fri","Sat","Sun","Mon","Tue","Wed","Thu","Fri","Sat","Sun","Mon","Tue","Wed","Thu","Fri","Sat","Sun","Mon",{"$f":"TEXT(MQ9,\"ddd\")","v":"Tue"},"Wed","Thu","Fri","Sat","Sun","Mon","Tue","Wed","Thu","Fri","Sat","Sun","Mon","Tue","Wed","Thu","Fri","Sat","Sun","Mon","Tue","Wed","Thu","Fri","Sat","Sun","Mon","Tue","Wed","Thu","Fri","Sat","Sun","Mon","Tue","Wed","Thu","Fri","Sat","Sun","Mon","Tue","Wed"]
[{"$nulls":10},"DAY #",null,null,"# OF DAYS",{"$nulls":3},"DAY #",{"$nulls":3},"# OF DAYS",null,null,{"$f":"IF(SUM(K12:K86)<1,0,LARGE(Y12:Y86,1)-1)","v":7},{"$f":"IF(SUM(S12:S86)<1,0,LARGE(Z12:Z86,1)-1)","v":0},null,null,{"$f":"SUM(AC12:AC111)","v":0},{"$f":"SUM(AD12:AD111)","v":0},{"$nulls":3},1,2,3,4,5,6,7,8,9,10,11,12,13,14,15,16,17,18,19,20,21,22,23,24,25,26,27,28,29,30,31,32,33,34,35,36,37,38,39,40,41,42,43,44,45,46,47,48,49,50,51,52,53,54,55,56,57,58,59,60,61,62,63,64,65,66,67,68,69,70,71,72,73,74,75,76,77,78,79,80,81,82,83,84,85,86,87,88,89,90,91,92,93,94,95,96,97,98,99,100,101,102,103,104,105,106,107,108,109,110,111,112,113,114,115,116,117,118,119,120,121,122,123,124,125,126,127,128,129,130,131,132,133,134,135,136,137,138,139,140,141,142,143,144,145,146,147,148,149,150,151,152,153,154,155,156,157,158,159,160,161,162,163,164,165,166,167,168,169,170,171,172,173,174,175,176,177,178,179,180,181,182,183,184,185,186,187,188,189,190,191,192,193,194,195,196,197,198,199,200,201,202,203,204,205,206,207,208,209,210,211,212,213,214,215,216,217,218,219,220,221,222,223,224,225,226,227,228,229,230,231,232,233,234,235,236,237,238,239,240,241,242,243,244,245,246,247,248,249,250,251,252,253,254,255,256,257,258,259,260,261,262,263,264,265,266,267,268,269,270,271,272,273,274,275,276,277,278,279,280,281,282,283,284,285,286,287,288,289,290,291,292,293,294,295,296,297,298,299,300,301,302,303,304,305,306,307,308,309,310,311,312,313,314,315,316,317,318,319,320,321,322,323,324,325,326,327,328,329,330,331,332,333,334,335,336,337,338,339,340,341,342,343,344,345,346,347,348,349,350,351,352,353,354,355,356,357,358,359,360,361,362,363,364,365]
[null,null,1,{"$nulls":7},1,null,null,5,{"$nulls":10},{"$f":"K12+N12","v":6},{"$f":"S12+V12","v":0},{"$f":"K12","v":1},{"$f":"IF(K12+N12<>0,(K12+N12)-1,0)","v":5},{"$f":"IF(AND($AC$5<=AB12,$AC$5>=AA12),1,0)","v":0},{"$f":"IF(AND($AD$5<=AB12,$AD$5>=AA12),1,0)","v":0},{"$f":"IF(AB12+AA12=0,0,AA12+4)","v":5},{"$f":"IF(AE12<=AB12,1,0)","v":1}]
[null,null,2,{"$nulls":7},4,null,null,4,{"$nulls":10},{"$f":"K13+N13","v":8},{"$f":"S13+V13","v":0},{"$f":"K13","v":4},{"$f":"IF(K13+N13<>0,(K13+N13)-1,0)","v":7},0,{"$f":"IF(AND($AD$5<=AB13,$AD$5>=AA13),1,0)","v":0},{"$f":"IF(AB13+AA13=0,0,AA13+4)","v":8},0]
[null,null,3,{"$nulls":21},0,0,0,{"$f":"IF(K14+N14<>0,(K14+N14)-1,0)","v":0},0,0,{"$f":"IF(AB14+AA14=0,0,AA14+4)","v":0},1,{"$nulls":369},"Schedule Items"]
[null,null,4,{"$nulls":21},0,0,0,{"$f":"IF(K15+N15<>0,(K15+N15)-1,0)","v":0},0,0,{"$f":"IF(AB15+AA15=0,0,AA15+4)","v":0},1,{"$nulls":369},"Seller Accepted Offer"]
[null,null,5,{"$nulls":21},0,0,0,0,0,0,0,1,{"$nulls":369},"Property Inspections"]
[null,null,6,{"$nulls":21},0,0,0,0,0,0,0,1,{"$nulls":369},"Contractor Preparation / Bidding"]
[null,null,7,{"$nulls":21},0,0,0,0,0,0,0,{"$nulls":370},"Material Procurement"]
[null,null,8,{"$nulls":21},0,0,0,0,0,0,0,{"$nulls":370},"Architectural/Structural Design"]
[null,null,9,{"$nulls":21},0,0,0,0,0,0,0,{"$nulls":370},"Utility Locates"]
[null,null,10,{"$nulls":21},0,0,0,0,0,0,0,{"$nulls":370},"Dumpster Delivery"]
[null,null,11,{"$nulls":21},0,0,0,0,0,0,0,{"$nulls":370},"Property Purchase Closing Date"]
[null,null,12,{"$nulls":21},0,0,0,0,0,0,0,{"$nulls":370},"Demolition"]
[null,null,13,{"$nulls":21},0,0,0,0,0,0,0,{"$nulls":370},"Structural Repairs"]
[null,null,14,{"$nulls":21},0,0,0,0,0,0,0,{"$nulls":370},"Driveway Repairs/Replacement"]
[null,null,15,{"$nulls":21},0,0,0,0,0,0,0,{"$nulls":370},"Siding"]
[null,null,16,{"$nulls":21},0,0,0,0,0,0,0,{"$nulls":370},"Deck Repair/Construction"]
[null,null,17,{"$nulls":21},0,0,0,0,0,0,0,{"$nulls":370},"Roof repair"]
[null,null,18,{"$nulls":21},0,0,0,0,0,0,0,{"$nulls":370},"Roof Replacement"]
[null,null,19,{"$nulls":21},0,0,0,0,0,0,0,{"$nulls":370},"Replace windows"]
[null,null,20,{"$nulls":21},0,0,0,0,0,0,0,{"$nulls":370},"Replace garage doors"]
[null,null,21,{"$nulls":21},0,0,0,0,0,0,0,{"$nulls":370},"Exterior Painting"]
[null,null,22,{"$nulls":21},0,0,0,0,0,0,0,{"$nulls":370},"Landscaping"]
[null,null,23,{"$nulls":21},0,0,0,0,0,0,0,{"$nulls":370},"Plumbing Rough In"]
[null,null,24,{"$nulls":21},0,0,0,0,0,0,0,{"$nulls":370},"Mechanical Rough In"]
[null,null,25,{"$nulls":21},0,0,0,0,0,0,0,{"$nulls":370},"Install new furnace"]
[null,null,26,{"$nulls":21},0,0,0,0,0,0,0,{"$nulls":370},"Install new A/C"]
[null,null,27,{"$nulls":21},0,0,0,0,0,0,0,{"$nulls":370},"Electrical Rough In"]
[null,null,28,{"$nulls":21},0,0,0,0,0,0,0,{"$nulls":370},"Electrical Panel"]
[null,null,29,{"$nulls":21},0,0,0,0,0,0,0,{"$nulls":370},"Framing/Drywall"]
[null,null,30,{"$nulls":21},0,0,0,0,0,0,0,{"$nulls":370},"Doors and Trim"]
[null,null,31,{"$nulls":21},0,0,0,0,0,0,0,{"$nulls":370},"Interior Painting"]
[null,null,32,{"$nulls":21},0,0,0,0,0,0,0,{"$nulls":370},"Light Fixtures"]
[null,null,33,{"$nulls":21},0,0,0,0,{"$f":"IF(AND($AC$5<=AB44,$AC$5>=AA44),1,0)","v":0},0,0,{"$nulls":370},"Kitchen Cabinets"]
[null,null,34,{"$nulls":21},0,0,0,0,0,0,0,{"$nulls":370},"Countertops"]
[null,null,35,{"$nulls":21},0,0,0,0,0,0,0,{"$nulls":370},"Bathroom Finishes"]
[null,null,36,{"$nulls":21},0,0,0,0,0,0,0,{"$nulls":370},"Bathroom Fixtures"]
[null,null,37,{"$nulls":21},0,0,0,0,0,0,0,{"$nulls":370},"Hardwood Flooring"]
[null,null,38,{"$nulls":21},0,0,0,0,0,0,0,{"$nulls":370},"Carpet Flooring"]
[null,null,39,{"$nulls":21},0,0,0,0,0,0,0,{"$nulls":370},"MEP Finish Work (cover plates, grilles/registers)"]
[null,null,40,{"$nulls":21},0,0,0,0,0,0,0,{"$nulls":370},"Appliances"]
[null,null,41,{"$nulls":21},0,0,0,0,0,0,0,{"$nulls":370},"Punchlist /Pre-Inspection"]
[null,null,42,{"$nulls":21},0,0,0,0,0,0,0,{"$nulls":370},"Furnishings/Stagings"]
[null,null,43,{"$nulls":21},0,0,0,0,0,0,0,{"$nulls":370},"Listing Day"]
[null,null,44,{"$nulls":21},0,0,0,0,0,0,0,{"$nulls":370},"Open House"]
[null,null,45,{"$nulls":21},0,0,0,0,0,0,0,{"$nulls":370},"Days-On-Market "]
[null,null,46,{"$nulls":21},0,0,0,0,0,0,0,{"$nulls":370},"Accepted Offer"]
[null,null,47,{"$nulls":21},0,0,0,0,0,0,0,{"$nulls":370},"Buyer Inspections"]
[null,null,48,{"$nulls":21},0,0,0,0,0,0,0,{"$nulls":370},"Inspection Repairs"]
[null,null,49,{"$nulls":21},0,0,0,0,0,0,0,{"$nulls":370},"Closing Period"]
[null,null,50,{"$nulls":21},0,0,0,0,0,0,0,{"$nulls":370},"Property Sale Closing Date"]
[null,null,51,{"$nulls":21},0,0,0,0,0,0,0]
[null,null,52,{"$nulls":21},0,0,0,0,0,0,0]
[null,null,53,{"$nulls":21},0,0,0,0,0,0,0]
[null,null,54,{"$nulls":21},0,0,0,0,0,0,0]
[null,null,55,{"$nulls":21},0,0,0,0,0,0,0]
[null,null,56,{"$nulls":21},0,0,0,0,0,0,0]
[null,null,57,{"$nulls":21},0,0,0,0,0,0,0]
[null,null,58,{"$nulls":21},0,0,0,0,0,0,0]
[null,null,59,{"$nulls":21},0,0,0,0,0,0,0]
[null,null,60,{"$nulls":21},0,0,0,0,0,0,0]
[null,null,61,{"$nulls":21},0,0,0,0,0,0,0]
[null,null,62,{"$nulls":21},0,0,0,0,0,0,0]
[null,null,63,{"$nulls":21},0,0,0,0,0,0,0]
[null,null,64,{"$nulls":21},0,0,0,0,0,0,0]
[null,null,65,{"$nulls":21},0,0,0,0,{"$f":"IF(AND($AC$5<=AB76,$AC$5>=AA76),1,0)","v":0},0,0]
[null,null,66,{"$nulls":21},{"$f":"K77+N77","v":0},{"$f":"S77+V77","v":0},{"$f":"K77","v":0},0,0,{"$f":"IF(AND($AD$5<=AB77,$AD$5>=AA77),1,0)","v":0},0]
[null,null,67,{"$nulls":21},0,0,0,0,0,0,0]
[null,null,68,{"$nulls":21},0,0,0,{"$f":"IF(K79+N79<>0,(K79+N79)-1,0)","v":0},0,0,{"$f":"IF(AB79+AA79=0,0,AA79+4)","v":0}]
[null,null,69,{"$nulls":21},0,0,0,0,0,0,0]
[null,null,70,{"$nulls":21},0,0,0,0,0,0,0]
[null,null,71,{"$nulls":21},0,0,0,0,0,0,0]
[null,null,72,{"$nulls":21},0,0,0,0,0,0,0]
[null,null,73,{"$nulls":21},0,0,0,0,0,0,0]
[null,null,74,{"$nulls":21},0,0,0,0,0,0,0]
[null,null,75,{"$nulls":21},0,0,0,0,0,0,0]
[null,null,76,{"$nulls":21},0,0,0,0,0,0,0]
[null,null,77,{"$nulls":21},0,0,0,0,0,0,0]
[null,null,78,{"$nulls":21},0,0,0,0,0,0,0]
[null,null,79,{"$nulls":21},0,0,0,0,0,0,0]
[null,null,80,{"$nulls":21},0,0,0,0,0,0,0]
[null,null,81,{"$nulls":21},0,0,0,0,0,0,0]
[null,null,82,{"$nulls":21},0,0,0,0,0,0,0]
[null,null,83,{"$nulls":21},0,0,0,0,0,0,0]
[null,null,84,{"$nulls":21},0,0,0,0,0,0,0]
[null,null,85,{"$nulls":21},0,0,0,0,0,0,0]
[null,null,86,{"$nulls":21},0,0,0,0,0,0,0]
[null,null,87,{"$nulls":21},0,0,0,0,0,0,0]
[null,null,88,{"$nulls":21},0,0,0,0,0,0,0]
[null,null,89,{"$nulls":21},0,0,0,0,0,0,0]
[null,null,90,{"$nulls":21},0,0,0,0,0,0,0]
[null,null,91,{"$nulls":21},0,0,0,0,0,0,0]
[null,null,92,{"$nulls":21},0,0,0,0,0,0,0]
[null,null,93,{"$nulls":21},0,0,0,0,0,0,0]
[null,null,94,{"$nulls":21},0,0,0,0,0,0,0]
[null,null,95,{"$nulls":21},0,0,0,0,0,0,0]
[null,null,96,{"$nulls":21},0,0,0,0,0,0,0]
[null,null,97,{"$nulls":21},0,0,0,0,{"$f":"IF(AND($AC$5<=AB108,$AC$5>=AA108),1,0)","v":0},0,0]
[null,null,98,{"$nulls":21},0,0,0,0,{"$f":"IF(AND($AC$5<=AB109,$AC$5>=AA109),1,0)","v":0},0,0]
[null,null,99,{"$nulls":21},0,0,0,0,{"$f":"IF(AND($AC$5<=AB110,$AC$5>=AA110),1,0)","v":0},0,0]
[null,null,100,{"$nulls":21},0,0,0,0,{"$f":"IF(AND($AC$5<=AB111,$AC$5>=AA111),1,0)","v":0},0,0]
[]
[]
[null,"© 2018 by Houseflippingspreadsheet.com. All rights reserved"]

{"sheet":"TASKS","index":22,"n_rows":761,"n_cols":97,"rows_kept":761,"hidden":true,"merged":[[567,51,567,59],[567,60,567,83],[570,40,570,45],[570,46,570,50],[571,40,571,45],[574,5,574,28],[574,29,574,39],[574,40,574,45],[574,46,574,50],[574,51,574,59],[574,60,574,83],[575,5,575,28],[575,29,575,39],[575,40,575,45],[575,46,575,50],[575,51,575,59],[575,60,575,83],[576,5,576,28],[576,29,576,39],[576,40,576,45],[576,46,576,50],[576,51,576,59],[576,60,576,83],[577,40,577,45],[577,46,577,50],[577,51,577,59],[577,60,577,83],[578,5,578,28],[578,29,578,39],[578,40,578,45],[578,46,578,50],[578,51,578,59],[578,60,578,83],[579,5,579,28],[579,29,579,39],[579,40,579,45],[579,46,579,50],[579,51,579,59],[579,60,579,83],[580,5,580,28],[580,29,580,39],[580,40,580,45],[580,46,580,50],[580,51,580,59],[580,60,580,83],[581,5,581,28],[581,29,581,39],[581,40,581,45],[581,46,581,50],[581,51,581,59],[581,60,581,83],[582,5,582,28],[582,29,582,39],[582,40,582,45],[582,46,582,50],[582,51,582,59],[582,60,582,83],[583,40,583,45],[583,46,583,50],[583,51,583,59],[583,60,583,83],[584,5,584,28],[584,29,584,39],[584,40,584,45],[584,46,584,50],[584,51,584,59],[584,60,584,83],[585,5,585,28],[585,29,585,39],[585,40,585,45],[585,46,585,50],[585,51,585,59],[585,60,585,83],[586,5,586,28],[586,29,586,39],[586,40,586,45],[586,46,586,50],[586,51,586,59],[586,60,586,83],[587,5,587,28],[587,29,587,39],[587,40,587,45],[587,46,587,50],[587,51,587,59],[587,60,587,83],[588,5,588,28],[588,29,588,39],[588,40,588,45],[588,46,588,50],[588,51,588,59],[588,60,588,83],[589,5,589,28],[589,29,589,39],[589,40,589,45],[589,46,589,50],[589,51,589,59],[589,60,589,83],[590,5,590,28],[590,29,590,39],[590,40,590,45],[590,46,590,50],[590,51,590,59],[590,60,590,83],[591,5,591,28],[591,29,591,39],[591,40,591,45],[591,46,591,50],[591,51,591,59],[591,60,591,83],[592,5,592,28],[592,29,592,39],[592,40,592,45],[592,46,592,50],[592,51,592,59],[592,60,592,83],[593,5,593,28],[593,29,593,39],[593,40,593,45],[593,46,593,50],[593,51,593,59],[593,60,593,83],[594,5,594,28],[594,29,594,39],[594,40,594,45],[594,46,594,50],[594,51,594,59],[594,60,594,83],[595,5,595,28],[595,29,595,39],[595,40,595,45],[595,46,595,50],[595,51,595,59],[595,60,595,83],[596,5,596,28],[596,29,596,39],[597,5,597,28],[597,29,597,39],[597,40,597,45],[597,46,597,50],[597,51,597,59],[597,60,597,83],[600,5,600,28],[600,29,600,39],[602,40,602,45],[602,46,602,50],[602,51,602,59],[602,60,602,83],[603,5,603,28],[603,29,603,39],[603,40,603,45],[603,46,603,50],[603,51,603,59],[603,60,603,83],[604,5,604,28],[604,29,604,39],[604,40,604,45],[604,46,604,50],[604,51,604,59],[604,60,604,83],[605,5,605,28],[605,29,605,39],[605,40,605,45],[605,46,605,50],[606,40,606,45],[606,46,606,50],[606,51,606,59],[606,60,606,83],[607,5,607,28],[607,29,607,39],[607,40,607,45],[607,46,607,50],[607,51,607,59],[607,60,607,83],[608,5,608,28],[608,29,608,39],[608,40,608,45],[608,46,608,50],[608,51,608,59],[608,60,608,83],[609,40,609,45],[609,46,609,50],[609,51,609,59],[609,60,609,83],[610,5,610,28],[610,29,610,39],[610,40,610,45],[610,46,610,50],[610,51,610,59],[610,60,610,83],[611,5,611,28],[611,29,611,39],[611,40,611,45],[611,46,611,50],[611,51,611,59],[611,60,611,83],[612,5,612,28],[612,29,612,39],[612,40,612,45],[612,46,612,50],[612,51,612,59],[612,60,612,83],[613,5,613,28],[613,29,613,39],[613,40,613,45],[613,46,613,50],[613,51,613,59],[613,60,613,83],[614,5,614,28],[614,29,614,39],[614,40,614,45],[614,46,614,50],[614,51,614,59],[614,60,614,83],[615,5,615,28],[615,29,615,39],[615,40,615,45],[615,46,615,50],[615,51,615,59],[615,60,615,83],[616,5,616,28],[616,29,616,39],[616,40,616,45],[616,46,616,50],[616,51,616,59],[616,60,616,83],[617,5,617,28],[617,29,617,39],[617,40,617,45],[617,46,617,50],[617,51,617,59],[617,60,617,83],[618,40,618,45],[618,46,618,50],[618,51,618,59],[618,60,618,83],[619,5,619,28],[619,29,619,39],[619,40,619,45],[619,46,619,50],[619,51,619,59],[619,60,619,83],[620,5,620,28],[620,29,620,39],[620,40,620,45],[620,46,620,50],[620,51,620,59],[620,60,620,83],[621,40,621,45],[621,46,621,50],[621,51,621,59],[621,60,621,83],[622,5,622,28],[622,29,622,39],[622,40,622,45],[622,46,622,50],[622,51,622,59],[622,60,622,83],[623,5,623,28],[623,29,623,39],[623,40,623,45],[623,46,623,50],[623,51,623,59],[623,60,623,83],[624,40,624,45],[624,46,624,50],[624,51,624,59],[624,60,624,83],[625,5,625,28],[625,29,625,39],[625,40,625,45],[625,46,625,50],[625,51,625,59],[625,60,625,83],[626,5,626,28],[626,29,626,39],[626,40,626,45],[626,46,626,50],[626,51,626,59],[626,60,626,83],[627,5,627,28],[627,29,627,39],[627,40,627,45],[627,46,627,50],[627,51,627,59],[627,60,627,83],[628,5,628,28],[628,29,628,39],[628,40,628,45],[628,46,628,50],[628,51,628,59],[628,60,628,83],[629,5,629,28],[629,29,629,39],[629,40,629,45],[629,46,629,50],[629,51,629,59],[629,60,629,83],[630,40,630,45],[630,46,630,50],[630,51,630,59],[630,60,630,83],[631,5,631,28],[631,29,631,39],[631,40,631,45],[631,46,631,50],[631,51,631,59],[631,60,631,83],[632,5,632,28],[632,29,632,39],[632,40,632,45],[632,46,632,50],[632,51,632,59],[632,60,632,83],[633,40,633,45],[633,46,633,50],[633,51,633,59],[633,60,633,83],[634,5,634,28],[634,29,634,39],[634,40,634,45],[634,46,634,50],[634,51,634,59],[634,60,634,83],[635,5,635,28],[635,29,635,39],[635,40,635,45],[635,46,635,50],[635,51,635,59],[635,60,635,83],[636,40,636,45],[636,46,636,50],[636,51,636,59],[636,60,636,83],[637,5,637,28],[637,29,637,39],[637,40,637,45],[637,46,637,50],[637,51,637,59],[637,60,637,83],[638,5,638,28],[638,29,638,39],[638,40,638,45],[638,46,638,50],[638,51,638,59],[638,60,638,83],[639,5,639,28],[639,29,639,39],[639,40,639,45],[639,46,639,50],[639,51,639,59],[639,60,639,83],[640,5,640,28],[640,29,640,39],[640,40,640,45],[640,46,640,50],[640,51,640,59],[640,60,640,83],[641,5,641,28],[641,29,641,39],[641,40,641,45],[641,46,641,50],[641,51,641,59],[641,60,641,83],[642,40,642,45],[642,46,642,50],[642,51,642,59],[642,60,642,83],[643,5,643,28],[643,29,643,39],[643,40,643,45],[643,46,643,50],[643,51,643,59],[643,60,643,83],[644,5,644,28],[644,29,644,39],[644,40,644,45],[644,46,644,50],[644,51,644,59],[644,60,644,83],[645,40,645,45],[645,46,645,50],[645,51,645,59],[645,60,645,83],[646,5,646,28],[646,29,646,39],[646,40,646,45],[646,46,646,50],[646,51,646,59],[646,60,646,83],[647,5,647,28],[647,29,647,39],[647,40,647,45],[647,46,647,50],[647,51,647,59],[647,60,647,83],[648,40,648,45],[648,46,648,50],[648,51,648,59],[648,60,648,83],[649,5,649,28],[649,29,649,39],[649,40,649,45],[649,46,649,50],[649,51,649,59],[649,60,649,83],[650,5,650,28],[650,29,650,39],[650,40,650,45],[650,46,650,50],[650,51,650,59],[650,60,650,83],[651,5,651,28],[651,29,651,39],[651,40,651,45],[651,46,651,50],[651,51,651,59],[651,60,651,83],[652,5,652,28],[652,29,652,39],[652,40,652,45],[652,46,652,50],[652,51,652,59],[652,60,652,83],[653,5,653,28],[653,29,653,39],[653,40,653,45],[653,46,653,50],[653,51,653,59],[653,60,653,83],[654,40,654,45],[654,46,654,50],[654,51,654,59],[654,60,654,83],[655,5,655,28],[655,29,655,39],[655,40,655,45],[655,46,655,50],[655,51,655,59],[655,60,655,83],[656,5,656,28],[656,29,656,39],[656,40,656,45],[656,46,656,50],[656,51,656,59],[656,60,656,83],[657,5,657,28],[657,29,657,39],[657,40,657,45],[657,46,657,50],[657,51,657,59],[657,60,657,83],[658,5,658,28],[658,29,658,39],[658,40,658,45],[658,46,658,50],[658,51,658,59],[658,60,658,83],[659,5,659,28],[659,29,659,39],[659,40,659,45],[659,46,659,50],[659,51,659,59],[659,60,659,83],[660,5,660,28],[660,29,660,39],[660,40,660,45],[660,46,660,50],[660,51,660,59],[660,60,660,83],[661,5,661,28],[661,29,661,39],[661,40,661,45],[661,46,661,50],[661,51,661,59],[661,60,661,83],[662,5,662,28],[662,29,662,39],[662,40,662,45],[662,46,662,50],[662,51,662,59],[662,60,662,83],[663,5,663,28],[663,29,663,39],[663,40,663,45],[663,46,663,50],[663,51,663,59],[663,60,663,83],[664,5,664,28],[664,29,664,39],[664,40,664,45],[664,46,664,50],[664,51,664,59],[664,60,664,83],[665,5,665,28],[665,29,665,39],[665,40,665,45],[665,46,665,50],[665,51,665,59],[665,60,665,83],[666,5,666,28],[666,29,666,39],[666,40,666,45],[666,46,666,50],[666,51,666,59],[666,60,666,83],[667,5,667,28],[667,29,667,39],[670,5,670,28],[670,29,670,39],[670,40,670,45],[670,46,670,50],[670,51,670,59],[670,60,670,83],[671,5,671,28],[671,29,671,39],[671,40,671,45],[671,46,671,50],[671,51,671,59],[671,60,671,83],[672,40,672,45],[672,46,672,50],[673,5,673,28],[673,29,673,39],[673,40,673,45],[673,46,673,50],[673,51,673,59],[673,60,673,83],[674,5,674,28],[674,29,674,39],[674,40,674,45],[674,46,674,50],[674,51,674,59],[674,60,674,83],[676,5,676,28],[676,29,676,39],[676,40,676,45],[676,46,676,50],[676,51,676,59],[676,60,676,83],[677,5,677,28],[677,29,677,39],[677,40,677,45],[677,46,677,50],[677,51,677,59],[677,60,677,83],[678,5,678,28],[678,29,678,39],[678,40,678,45],[678,46,678,50],[678,51,678,59],[678,60,678,83],[679,5,679,28],[679,29,679,39],[679,40,679,45],[679,46,679,50],[679,51,679,59],[679,60,679,83],[680,5,680,28],[680,29,680,39],[680,40,680,45],[680,46,680,50],[680,51,680,59],[680,60,680,83],[681,5,681,28],[681,29,681,39],[681,40,681,45],[681,46,681,50],[681,51,681,59],[681,60,681,83],[682,5,682,28],[682,29,682,39],[682,40,682,45],[682,46,682,50],[682,51,682,59],[682,60,682,83],[683,5,683,28],[683,29,683,39],[683,40,683,45],[683,46,683,50],[683,51,683,59],[683,60,683,83],[684,5,684,28],[684,29,684,39],[684,40,684,45],[684,46,684,50],[684,51,684,59],[684,60,684,83],[685,40,685,45],[685,46,685,50],[685,51,685,59],[685,60,685,83],[686,5,686,28],[686,29,686,39],[686,40,686,45],[686,46,686,50],[686,51,686,59],[686,60,686,83],[687,5,687,28],[687,29,687,39],[687,40,687,45],[687,46,687,50],[687,51,687,59],[687,60,687,83],[688,5,688,28],[688,29,688,39],[688,40,688,45],[688,46,688,50],[688,51,688,59],[688,60,688,83],[689,5,689,28],[689,29,689,39],[689,40,689,45],[689,46,689,50],[689,51,689,59],[689,60,689,83],[690,5,690,28],[690,29,690,39],[690,40,690,45],[690,46,690,50],[690,51,690,59],[690,60,690,83],[691,40,691,45],[691,46,691,50],[691,51,691,59],[691,60,691,83],[692,5,692,28],[692,29,692,39],[692,40,692,45],[692,46,692,50],[692,51,692,59],[692,60,692,83],[693,5,693,28],[693,29,693,39],[693,40,693,45],[693,46,693,50],[693,51,693,59],[693,60,693,83],[694,5,694,28],[694,29,694,39],[694,40,694,45],[694,46,694,50],[694,51,694,59],[694,60,694,83],[695,5,695,28],[695,29,695,39],[695,40,695,45],[695,46,695,50],[695,51,695,59],[695,60,695,83],[696,5,696,28],[696,29,696,39],[696,40,696,45],[696,46,696,50],[696,51,696,59],[696,60,696,83],[697,40,697,45],[697,46,697,50],[697,51,697,59],[697,60,697,83],[698,5,698,28],[698,29,698,39],[698,40,698,45],[698,46,698,50],[698,51,698,59],[698,60,698,83],[699,5,699,28],[699,29,699,39],[699,40,699,45],[699,46,699,50],[699,51,699,59],[699,60,699,83],[700,5,700,28],[700,29,700,39],[700,40,700,45],[700,46,700,50],[700,51,700,59],[700,60,700,83],[701,5,701,28],[701,29,701,39],[701,40,701,45],[701,46,701,50],[701,51,701,59],[701,60,701,83],[702,5,702,28],[702,29,702,39],[702,40,702,45],[702,46,702,50],[702,51,702,59],[702,60,702,83],[703,5,703,28],[703,29,703,39],[705,46,705,50],[705,51,705,59],[705,60,705,83],[706,5,706,28],[706,29,706,39],[706,40,706,45],[706,46,706,50],[706,51,706,59],[706,60,706,83],[707,5,707,28],[707,29,707,39],[707,40,707,45],[707,46,707,50],[707,51,707,59],[707,60,707,83],[708,5,708,28],[708,29,708,39],[708,40,708,45],[708,46,708,50],[708,51,708,59],[708,60,708,83],[709,5,709,28],[709,29,709,39],[709,40,709,45],[709,46,709,50],[709,51,709,59],[709,60,709,83],[710,5,710,28],[710,29,710,39],[710,40,710,45],[710,46,710,50],[710,51,710,59],[710,60,710,83],[711,5,711,28],[711,29,711,39],[711,40,711,45],[711,46,711,50],[711,51,711,59],[711,60,711,83],[712,5,712,28],[712,29,712,39],[712,40,712,45],[712,46,712,50],[712,51,712,59],[712,60,712,83],[713,5,713,28],[713,29,713,39],[713,40,713,45],[713,46,713,50],[713,51,713,59],[713,60,713,83],[714,5,714,28],[714,29,714,39],[714,40,714,45],[714,46,714,50],[714,51,714,59],[714,60,714,83],[715,40,715,45],[715,46,715,50],[715,51,715,59],[715,60,715,83],[716,5,716,28],[716,29,716,39],[716,40,716,45],[716,46,716,50],[716,51,716,59],[716,60,716,83],[717,5,717,28],[717,29,717,39],[717,40,717,45],[717,46,717,50],[717,51,717,59],[717,60,717,83],[718,5,718,28],[718,29,718,39],[718,40,718,45],[718,46,718,50],[718,51,718,59],[718,60,718,83],[719,5,719,28],[719,29,719,39],[719,40,719,45],[719,46,719,50],[719,51,719,59],[719,60,719,83],[720,5,720,28],[720,29,720,39],[720,40,720,45],[720,46,720,50],[720,51,720,59],[720,60,720,83],[721,40,721,45],[721,46,721,50],[721,51,721,59],[721,60,721,83],[722,5,722,28],[722,29,722,39],[722,40,722,45],[722,46,722,50],[722,51,722,59],[722,60,722,83],[723,5,723,28],[723,29,723,39],[723,40,723,45],[723,46,723,50],[723,51,723,59],[723,60,723,83],[724,5,724,28],[724,29,724,39],[724,40,724,45],[724,46,724,50],[724,51,724,59],[724,60,724,83],[725,5,725,28],[725,29,725,39],[725,40,725,45],[725,46,725,50],[725,51,725,59],[725,60,725,83],[726,5,726,28],[726,29,726,39],[726,40,726,45],[726,46,726,50],[726,51,726,59],[726,60,726,83],[727,40,727,45],[727,46,727,50],[727,51,727,59],[727,60,727,83],[728,5,728,28],[728,29,728,39],[728,40,728,45],[728,46,728,50],[728,51,728,59],[728,60,728,83],[729,5,729,28],[729,29,729,39],[729,40,729,45],[729,46,729,50],[729,51,729,59],[729,60,729,83],[730,5,730,28],[730,29,730,39],[730,40,730,45],[730,46,730,50],[730,51,730,59],[730,60,730,83],[731,5,731,28],[731,29,731,39],[731,40,731,45],[731,46,731,50],[731,51,731,59],[731,60,731,83],[732,5,732,28],[732,29,732,39],[732,40,732,45],[732,46,732,50],[732,51,732,59],[732,60,732,83],[733,40,733,45],[733,46,733,50],[733,51,733,59],[733,60,733,83],[734,5,734,28],[734,29,734,39],[734,40,734,45],[734,46,734,50],[734,51,734,59],[734,60,734,83],[735,5,735,28],[735,29,735,39],[735,40,735,45],[735,46,735,50],[735,51,735,59],[735,60,735,83],[736,5,736,28],[736,29,736,39],[736,40,736,45],[736,46,736,50],[736,51,736,59],[736,60,736,83],[737,5,737,28],[737,29,737,39],[737,40,737,45],[737,46,737,50],[737,51,737,59],[737,60,737,83],[738,5,738,28],[738,29,738,39],[738,40,738,45],[738,46,738,50],[738,51,738,59],[738,60,738,83],[739,40,739,45],[739,46,739,50],[739,51,739,59],[739,60,739,83],[740,5,740,28],[740,29,740,39],[740,40,740,45],[740,46,740,50],[740,51,740,59],[740,60,740,83],[741,5,741,28],[741,29,741,39],[741,40,741,45],[741,46,741,50],[741,51,741,59],[741,60,741,83],[742,5,742,28],[742,29,742,39],[742,40,742,45],[742,46,742,50],[742,51,742,59],[742,60,742,83],[743,5,743,28],[743,29,743,39],[743,40,743,45],[743,46,743,50],[743,51,743,59],[743,60,743,83],[744,5,744,28],[744,29,744,39],[744,40,744,45],[744,46,744,50],[744,51,744,59],[744,60,744,83],[745,40,745,45],[745,46,745,50],[745,51,745,59],[745,60,745,83],[746,5,746,28],[746,29,746,39],[746,40,746,45],[746,46,746,50],[746,51,746,59],[746,60,746,83],[747,5,747,28],[747,29,747,39],[747,40,747,45],[747,46,747,50],[747,51,747,59],[747,60,747,83],[748,5,748,28],[748,29,748,39],[748,40,748,45],[748,46,748,50],[748,51,748,59],[748,60,748,83],[749,5,749,28],[749,29,749,39],[749,40,749,45],[749,46,749,50],[749,51,749,59],[749,60,749,83],[750,5,750,28],[750,29,750,39],[750,40,750,45],[750,46,750,50],[750,51,750,59],[750,60,750,83],[751,40,751,45],[751,46,751,50],[751,51,751,59],[751,60,751,83],[752,5,752,28],[752,29,752,39],[752,40,752,45],[752,46,752,50],[752,51,752,59],[752,60,752,83],[753,5,753,28],[753,29,753,39],[753,40,753,45],[753,46,753,50],[753,51,753,59],[753,60,753,83],[754,5,754,28],[754,29,754,39],[754,40,754,45],[754,46,754,50],[754,51,754,59],[754,60,754,83],[755,5,755,28],[755,29,755,39],[755,40,755,45],[755,46,755,50],[755,51,755,59],[755,60,755,83],[756,5,756,28],[756,29,756,39],[756,40,756,45],[756,46,756,50],[756,51,756,59],[756,60,756,83],[757,5,757,28],[757,29,757,39],[757,40,757,45],[757,46,757,50],[757,51,757,59],[757,60,757,83],[758,5,758,28],[758,29,758,39],[758,40,758,45],[758,46,758,50],[758,51,758,59],[758,60,758,83],[759,46,759,50],[760,4,761,83]],"merged_total":4537,"flags":["merged_cut"]}
[]
[{"$nulls":84},81,82,83,84,85,86,87,88,89,90,91]
[{"$nulls":11},"TASKS TO DO",{"$nulls":10},"NEXT 5 DAYS",{"$nulls":10},"DUE TOMORROW",{"$nulls":10},"DUE TODAY",{"$nulls":10},"OVERDUE",{"$nulls":10},"TASKS COMPLETED",{"$nulls":24},1,"Yellow"]
[{"$nulls":11},{"$f":"CQ761","v":0},{"$nulls":10},{"$f":"CK761","v":0},{"$nulls":10},{"$f":"CL761","v":0},{"$nulls":10},{"$f":"CM761","v":0},{"$nulls":10},{"$f":"CN761","v":0},{"$nulls":10},{"$f":"CI761","v":0},{"$nulls":24},2,"Orange"]
[{"$nulls":91},3,"Red",{"$f":"TODAY()","v":"2019-06-23"}]
[{"$nulls":91},4,"Red"]
[]
[{"$nulls":4},"x","DESCRIPTION",{"$nulls":23},"RESPONSIBILITY",{"$nulls":10},"DUE DATE",{"$nulls":5},"DAYS REMAINING",{"$nulls":4},"STATUS",{"$nulls":8},"NOTES",{"$nulls":23},"TASKS","x","TASKS COMPLETED","TASKS TO DO","NEXT 5 DAYS","TOMORROW","TODAY","OVERDUE","COLOR","TASKS TO DO AND BLANK","TASKS TO DO"]
[]
[]
[{"$nulls":46},{"$f":"IF(AO11=0,\"\",AO11-TODAY())","v":""},{"$nulls":4},{"$f":"IF(AO11=0,\"\",IF(AU11>5,\"5+ Days Out\",IF(CI11=1,\"Completed\",IF(CK11=1,\"Due in Next 5 Days\",IF(CL11=1,\"Due Tomorrow\",IF(CM11=1,\"Due Today\",IF(CN11=1,\"Overdue\",\"\")))))))","v":""},{"$nulls":32},{"$f":"IF(F11>0,1,0)","v":0},{"$f":"IF(E11=\"x\",1,0)","v":0},{"$f":"IF(CG11+CH11=2,1,0)","v":0},{"$f":"CG11-CI11","v":0},{"$f":"IF(AND(AU11>1,AU11<6),1,0)","v":0},{"$f":"IF(AU11=1,1,0)","v":0},{"$f":"IF(AU11=0,1,0)","v":0},{"$f":"IF(AU11<0,1,0)","v":0},{"$f":"IF(CK11=1,1,IF(CL11=1,2,IF(CM11=1,3,IF(CN11=1,4,0))))*CJ11","v":0},{"$f":"IF(F11=0,1,0)+CJ11","v":1},{"$f":"CG11-CI11","v":0},null,"TODAY"]
[{"$nulls":46},{"$f":"IF(AO12=0,\"\",AO12-TODAY())","v":""},{"$nulls":4},"",{"$nulls":32},0,0,0,0,0,0,0,0,0,1,0,null,"TODAY"]
[{"$nulls":46},"",{"$nulls":4},"",{"$nulls":32},0,0,0,0,0,0,0,0,0,1,0,null,"TODAY"]
[{"$nulls":46},"",{"$nulls":4},"",{"$nulls":32},0,0,0,0,0,0,0,0,0,1,0,null,"TODAY"]
[{"$nulls":46},"",{"$nulls":4},"",{"$nulls":32},0,0,0,0,0,0,0,0,0,1,0,null,"TODAY"]
[{"$nulls":46},"",{"$nulls":4},"",{"$nulls":32},0,0,0,0,0,0,0,0,0,1,0,null,"TODAY"]
[{"$nulls":46},"",{"$nulls":4},"",{"$nulls":32},0,0,0,0,0,0,0,0,0,1,0,null,"TODAY"]
[{"$nulls":46},"",{"$nulls":4},"",{"$nulls":32},0,0,0,0,0,0,0,0,0,1,0,null,"TODAY"]
[{"$nulls":46},"",{"$nulls":4},"",{"$nulls":32},0,0,0,0,0,0,0,0,0,1,0,null,"TODAY"]
[{"$nulls":46},"",{"$nulls":4},"",{"$nulls":32},0,0,0,0,0,0,0,0,0,1,0,null,"TODAY"]
[{"$nulls":46},"",{"$nulls":4},"",{"$nulls":32},0,0,0,0,0,0,0,0,0,1,0,null,"TODAY"]
[{"$nulls":46},"",{"$nulls":4},"",{"$nulls":32},0,0,0,0,0,0,0,0,0,1,0,null,"TODAY"]
[{"$nulls":46},"",{"$nulls":4},"",{"$nulls":32},0,0,0,0,0,0,0,0,0,1,0,null,"TODAY"]
[{"$nulls":46},"",{"$nulls":4},"",{"$nulls":32},0,0,0,0,0,0,0,0,0,1,0,null,"TODAY"]
[{"$nulls":46},"",{"$nulls":4},"",{"$nulls":32},0,0,0,0,0,0,0,0,0,1,0,null,"TODAY"]
[{"$nulls":46},"",{"$nulls":4},"",{"$nulls":32},0,0,0,0,0,0,0,0,0,1,0,null,"TODAY"]
[{"$nulls":46},"",{"$nulls":4},"",{"$nulls":32},0,0,0,0,0,0,0,0,0,1,0,null,"TODAY"]
[{"$nulls":46},"",{"$nulls":4},"",{"$nulls":32},0,0,0,0,0,0,0,0,0,1,0,null,"TODAY"]
[{"$nulls":46},"",{"$nulls":4},"",{"$nulls":32},0,0,0,0,0,0,0,0,0,1,0,null,"TODAY"]
[{"$nulls":46},"",{"$nulls":4},"",{"$nulls":32},0,0,0,0,0,0,0,0,0,1,0,null,"TODAY"]
[{"$nulls":46},"",{"$nulls":4},"",{"$nulls":32},0,0,0,0,0,0,0,0,0,1,0,null,"TODAY"]
[{"$nulls":46},"",{"$nulls":4},"",{"$nulls":32},0,0,0,0,0,0,0,0,0,1,0,null,"TODAY"]
[{"$nulls":46},"",{"$nulls":4},"",{"$nulls":32},0,0,0,0,0,0,0,0,0,1,0,null,"TODAY"]
[{"$nulls":46},"",{"$nulls":4},"",{"$nulls":32},0,0,0,0,0,0,0,0,0,1,0,null,"TODAY"]
[{"$nulls":46},"",{"$nulls":4},"",{"$nulls":32},0,0,0,0,0,0,0,0,0,1,0,null,"TODAY"]
[{"$nulls":46},"",{"$nulls":4},"",{"$nulls":32},0,0,0,0,0,0,0,0,0,1,0,null,"TODAY"]
[{"$nulls":46},"",{"$nulls":4},"",{"$nulls":32},0,0,0,0,0,0,0,0,0,1,0,null,"TODAY"]
[{"$nulls":46},"",{"$nulls":4},"",{"$nulls":32},0,0,0,0,0,0,0,0,0,1,0,null,"TODAY"]
[{"$nulls":46},"",{"$nulls":4},"",{"$nulls":32},0,0,0,0,0,0,0,0,0,1,0,null,"TODAY"]
[{"$nulls":46},"",{"$nulls":4},"",{"$nulls":32},0,0,0,0,0,0,0,0,0,1,0,null,"TODAY"]
[{"$nulls":46},"",{"$nulls":4},"",{"$nulls":32},0,0,0,0,0,0,0,0,0,1,0,null,"TODAY"]
[{"$nulls":46},"",{"$nulls":4},"",{"$nulls":32},0,0,0,0,0,0,0,0,0,1,0,null,"TODAY"]
[{"$nulls":46},"",{"$nulls":4},"",{"$nulls":32},0,0,0,0,0,0,0,0,0,1,0,null,"TODAY"]
[{"$nulls":46},"",{"$nulls":4},"",{"$nulls":32},0,0,0,0,0,0,0,0,0,1,0,null,"TODAY"]
[{"$nulls":46},"",{"$nulls":4},"",{"$nulls":32},0,0,0,0,0,0,0,0,0,1,0,null,"TODAY"]
[{"$nulls":46},"",{"$nulls":4},"",{"$nulls":32},0,0,0,0,0,0,0,0,0,1,0,null,"TODAY"]
[{"$nulls":46},"",{"$nulls":4},"",{"$nulls":32},0,0,0,0,0,0,0,0,0,1,0,null,"TODAY"]
[{"$nulls":46},"",{"$nulls":4},"",{"$nulls":32},0,0,0,0,0,0,0,0,0,1,0,null,"TODAY"]
[{"$nulls":46},"",{"$nulls":4},"",{"$nulls":32},0,0,0,0,0,0,0,0,0,1,0,null,"TODAY"]
[{"$nulls":46},"",{"$nulls":4},"",{"$nulls":32},0,0,0,0,0,0,0,0,0,1,0,null,"TODAY"]
[{"$nulls":46},"",{"$nulls":4},"",{"$nulls":32},0,0,0,0,0,0,0,0,0,1,0,null,"TODAY"]
[{"$nulls":46},"",{"$nulls":4},"",{"$nulls":32},0,0,0,0,0,0,0,0,0,1,0,null,"TODAY"]
[{"$nulls":46},"",{"$nulls":4},"",{"$nulls":32},0,0,0,0,0,0,0,0,0,1,0,null,"TODAY"]
[{"$nulls":46},"",{"$nulls":4},"",{"$nulls":32},0,0,0,0,0,0,0,0,0,1,0,null,"TODAY"]
[{"$nulls":46},"",{"$nulls":4},"",{"$nulls":32},0,0,0,0,0,0,0,0,0,1,0,null,"TODAY"]
[{"$nulls":46},"",{"$nulls":4},"",{"$nulls":32},0,0,0,0,0,0,0,0,0,1,0,null,"TODAY"]
[{"$nulls":46},"",{"$nulls":4},"",{"$nulls":32},0,0,0,0,0,0,0,0,0,1,0,null,"TODAY"]
[{"$nulls":46},"",{"$nulls":4},"",{"$nulls":32},0,0,0,0,0,0,0,0,0,1,0,null,"TODAY"]
[{"$nulls":46},"",{"$nulls":4},"",{"$nulls":32},0,0,0,0,0,0,0,0,0,1,0,null,"TODAY"]
[{"$nulls":46},"",{"$nulls":4},"",{"$nulls":32},0,0,0,0,0,0,0,0,0,1,0,null,"TODAY"]
[{"$nulls":46},"",{"$nulls":4},"",{"$nulls":32},0,0,0,0,0,0,0,0,0,1,0,null,"TODAY"]
[{"$nulls":46},"",{"$nulls":4},"",{"$nulls":32},0,0,0,0,0,0,0,0,0,1,0,null,"TODAY"]
[{"$nulls":46},"",{"$nulls":4},"",{"$nulls":32},0,0,0,0,0,0,0,0,0,1,0,null,"TODAY"]
[{"$nulls":46},"",{"$nulls":4},"",{"$nulls":32},0,0,0,0,0,0,0,0,0,1,0,null,"TODAY"]
[{"$nulls":46},"",{"$nulls":4},"",{"$nulls":32},0,0,0,0,0,0,0,0,0,1,0,null,"TODAY"]
[{"$nulls":46},"",{"$nulls":4},"",{"$nulls":32},0,0,0,0,0,0,0,0,0,1,0,null,"TODAY"]
[{"$nulls":46},"",{"$nulls":4},"",{"$nulls":32},0,0,0,0,0,0,0,0,0,1,0,null,"TODAY"]
[{"$nulls":46},"",{"$nulls":4},"",{"$nulls":32},0,0,0,0,0,0,0,0,0,1,0,null,"TODAY"]
[{"$nulls":46},"",{"$nulls":4},"",{"$nulls":32},0,0,0,0,0,0,0,0,0,1,0,null,"TODAY"]
[{"$nulls":46},"",{"$nulls":4},"",{"$nulls":32},0,0,0,0,0,0,0,0,0,1,0,null,"TODAY"]
[{"$nulls":46},"",{"$nulls":4},"",{"$nulls":32},0,0,0,0,0,0,0,0,0,1,0,null,"TODAY"]
[{"$nulls":46},"",{"$nulls":4},"",{"$nulls":32},0,0,0,0,0,0,0,0,0,1,0,null,"TODAY"]
[{"$nulls":46},"",{"$nulls":4},"",{"$nulls":32},0,0,0,0,0,0,0,0,0,1,0,null,"TODAY"]
[{"$nulls":46},"",{"$nulls":4},"",{"$nulls":32},0,0,0,0,0,0,0,0,0,1,0,null,"TODAY"]
[{"$nulls":46},"",{"$nulls":4},{"$f":"IF(AO75=0,\"\",IF(AU75>5,\"5+ Days Out\",IF(CI75=1,\"Completed\",IF(CK75=1,\"Due in Next 5 Days\",IF(CL75=1,\"Due Tomorrow\",IF(CM75=1,\"Due Today\",IF(CN75=1,\"Overdue\",\"\")))))))","v":""},{"$nulls":32},{"$f":"IF(F75>0,1,0)","v":0},{"$f":"IF(E75=\"x\",1,0)","v":0},{"$f":"IF(CG75+CH75=2,1,0)","v":0},{"$f":"CG75-CI75","v":0},{"$f":"IF(AND(AU75>1,AU75<6),1,0)","v":0},{"$f":"IF(AU75=1,1,0)","v":0},{"$f":"IF(AU75=0,1,0)","v":0},{"$f":"IF(AU75<0,1,0)","v":0},{"$f":"IF(CK75=1,1,IF(CL75=1,2,IF(CM75=1,3,IF(CN75=1,4,0))))*CJ75","v":0},{"$f":"IF(F75=0,1,0)+CJ75","v":1},{"$f":"CG75-CI75","v":0},null,"TODAY"]
[{"$nulls":46},{"$f":"IF(AO76=0,\"\",AO76-TODAY())","v":""},{"$nulls":4},"",{"$nulls":32},0,0,0,0,0,0,0,0,0,1,0,null,"TODAY"]
[{"$nulls":46},"",{"$nulls":4},"",{"$nulls":32},0,0,0,0,0,0,0,0,0,1,0,null,"TODAY"]
[{"$nulls":46},"",{"$nulls":4},"",{"$nulls":32},0,0,0,0,0,0,0,0,0,1,0,null,"TODAY"]
[{"$nulls":46},"",{"$nulls":4},"",{"$nulls":32},0,0,0,0,0,0,0,0,0,1,0,null,"TODAY"]
[{"$nulls":46},"",{"$nulls":4},"",{"$nulls":32},0,0,0,0,0,0,0,0,0,1,0,null,"TODAY"]
[{"$nulls":46},"",{"$nulls":4},"",{"$nulls":32},0,0,0,0,0,0,0,0,0,1,0,null,"TODAY"]
[{"$nulls":46},"",{"$nulls":4},"",{"$nulls":32},0,0,0,0,0,0,0,0,0,1,0,null,"TODAY"]
[{"$nulls":46},"",{"$nulls":4},"",{"$nulls":32},0,0,0,0,0,0,0,0,0,1,0,null,"TODAY"]
[{"$nulls":46},"",{"$nulls":4},"",{"$nulls":32},0,0,0,0,0,0,0,0,0,1,0,null,"TODAY"]
[{"$nulls":46},"",{"$nulls":4},"",{"$nulls":32},0,0,0,0,0,0,0,0,0,1,0,null,"TODAY"]
[{"$nulls":46},"",{"$nulls":4},"",{"$nulls":32},0,0,0,0,0,0,0,0,0,1,0,null,"TODAY"]
[{"$nulls":46},"",{"$nulls":4},"",{"$nulls":32},0,0,0,0,0,0,0,0,0,1,0,null,"TODAY"]
[{"$nulls":46},"",{"$nulls":4},"",{"$nulls":32},0,0,0,0,0,0,0,0,0,1,0,null,"TODAY"]
[{"$nulls":46},"",{"$nulls":4},"",{"$nulls":32},0,0,0,0,0,0,0,0,0,1,0,null,"TODAY"]
[{"$nulls":46},"",{"$nulls":4},"",{"$nulls":32},0,0,0,0,0,0,0,0,0,1,0,null,"TODAY"]
[{"$nulls":46},"",{"$nulls":4},"",{"$nulls":32},0,0,0,0,0,0,0,0,0,1,0,null,"TODAY"]
[{"$nulls":46},"",{"$nulls":4},"",{"$nulls":32},0,0,0,0,0,0,0,0,0,1,0,null,"TODAY"]
[{"$nulls":46},"",{"$nulls":4},"",{"$nulls":32},0,0,0,0,0,0,0,0,0,1,0,null,"TODAY"]
[{"$nulls":46},"",{"$nulls":4},"",{"$nulls":32},0,0,0,0,0,0,0,0,0,1,0,null,"TODAY"]
[{"$nulls":46},"",{"$nulls":4},"",{"$nulls":32},0,0,0,0,0,0,0,0,0,1,0,null,"TODAY"]
[{"$nulls":46},"",{"$nulls":4},"",{"$nulls":32},0,0,0,0,0,0,0,0,0,1,0,null,"TODAY"]
[{"$nulls":46},"",{"$nulls":4},"",{"$nulls":32},0,0,0,0,0,0,0,0,0,1,0,null,"TODAY"]
[{"$nulls":46},"",{"$nulls":4},"",{"$nulls":32},0,0,0,0,0,0,0,0,0,1,0,null,"TODAY"]
[{"$nulls":46},"",{"$nulls":4},"",{"$nulls":32},0,0,0,0,0,0,0,0,0,1,0,null,"TODAY"]
[{"$nulls":46},"",{"$nulls":4},"",{"$nulls":32},0,0,0,0,0,0,0,0,0,1,0,null,"TODAY"]
[{"$nulls":46},"",{"$nulls":4},"",{"$nulls":32},0,0,0,0,0,0,0,0,0,1,0,null,"TODAY"]
[{"$nulls":46},"",{"$nulls":4},"",{"$nulls":32},0,0,0,0,0,0,0,0,0,1,0,null,"TODAY"]
[{"$nulls":46},"",{"$nulls":4},"",{"$nulls":32},0,0,0,0,0,0,0,0,0,1,0,null,"TODAY"]
[{"$nulls":46},"",{"$nulls":4},"",{"$nulls":32},0,0,0,0,0,0,0,0,0,1,0,null,"TODAY"]
[{"$nulls":46},"",{"$nulls":4},"",{"$nulls":32},0,0,0,0,0,0,0,0,0,1,0,null,"TODAY"]
[{"$nulls":46},"",{"$nulls":4},"",{"$nulls":32},0,0,0,0,0,0,0,0,0,1,0,null,"TODAY"]
[{"$nulls":46},"",{"$nulls":4},"",{"$nulls":32},0,0,0,0,0,0,0,0,0,1,0,null,"TODAY"]
[{"$nulls":46},"",{"$nulls":4},"",{"$nulls":32},0,0,0,0,0,0,0,0,0,1,0,null,"TODAY"]
[{"$nulls":46},"",{"$nulls":4},"",{"$nulls":32},0,0,0,0,0,0,0,0,0,1,0,null,"TODAY"]
[{"$nulls":46},"",{"$nulls":4},"",{"$nulls":32},0,0,0,0,0,0,0,0,0,1,0,null,"TODAY"]
[{"$nulls":46},"",{"$nulls":4},"",{"$nulls":32},0,0,0,0,0,0,0,0,0,1,0,null,"TODAY"]
[{"$nulls":46},"",{"$nulls":4},"",{"$nulls":32},0,0,0,0,0,0,0,0,0,1,0,null,"TODAY"]
[{"$nulls":46},"",{"$nulls":4},"",{"$nulls":32},0,0,0,0,0,0,0,0,0,1,0,null,"TODAY"]
[{"$nulls":46},"",{"$nulls":4},"",{"$nulls":32},0,0,0,0,0,0,0,0,0,1,0,null,"TODAY"]
[{"$nulls":46},"",{"$nulls":4},"",{"$nulls":32},0,0,0,0,0,0,0,0,0,1,0,null,"TODAY"]
[{"$nulls":46},"",{"$nulls":4},"",{"$nulls":32},0,0,0,0,0,0,0,0,0,1,0,null,"TODAY"]
[{"$nulls":46},"",{"$nulls":4},"",{"$nulls":32},0,0,0,0,0,0,0,0,0,1,0,null,"TODAY"]
[{"$nulls":46},"",{"$nulls":4},"",{"$nulls":32},0,0,0,0,0,0,0,0,0,1,0,null,"TODAY"]
[{"$nulls":46},"",{"$nulls":4},"",{"$nulls":32},0,0,0,0,0,0,0,0,0,1,0,null,"TODAY"]
[{"$nulls":46},"",{"$nulls":4},"",{"$nulls":32},0,0,0,0,0,0,0,0,0,1,0,null,"TODAY"]
[{"$nulls":46},"",{"$nulls":4},"",{"$nulls":32},0,0,0,0,0,0,0,0,0,1,0,null,"TODAY"]
[{"$nulls":46},"",{"$nulls":4},"",{"$nulls":32},0,0,0,0,0,0,0,0,0,1,0,null,"TODAY"]
[{"$nulls":46},"",{"$nulls":4},"",{"$nulls":32},0,0,0,0,0,0,0,0,0,1,0,null,"TODAY"]
[{"$nulls":46},"",{"$nulls":4},"",{"$nulls":32},0,0,0,0,0,0,0,0,0,1,0,null,"TODAY"]
[{"$nulls":46},"",{"$nulls":4},"",{"$nulls":32},0,0,0,0,0,0,0,0,0,1,0,null,"TODAY"]
[{"$nulls":46},"",{"$nulls":4},"",{"$nulls":32},0,0,0,0,0,0,0,0,0,1,0,null,"TODAY"]
[{"$nulls":46},"",{"$nulls":4},"",{"$nulls":32},0,0,0,0,0,0,0,0,0,1,0,null,"TODAY"]
[{"$nulls":46},"",{"$nulls":4},"",{"$nulls":32},0,0,0,0,0,0,0,0,0,1,0,null,"TODAY"]
[{"$nulls":46},"",{"$nulls":4},"",{"$nulls":32},0,0,0,0,0,0,0,0,0,1,0,null,"TODAY"]
[{"$nulls":46},"",{"$nulls":4},"",{"$nulls":32},0,0,0,0,0,0,0,0,0,1,0,null,"TODAY"]
[{"$nulls":46},"",{"$nulls":4},"",{"$nulls":32},0,0,0,0,0,0,0,0,0,1,0,null,"TODAY"]
[{"$nulls":46},"",{"$nulls":4},"",{"$nulls":32},0,0,0,0,0,0,0,0,0,1,0,null,"TODAY"]
[{"$nulls":46},"",{"$nulls":4},"",{"$nulls":32},0,0,0,0,0,0,0,0,0,1,0,null,"TODAY"]
[{"$nulls":46},"",{"$nulls":4},"",{"$nulls":32},0,0,0,0,0,0,0,0,0,1,0,null,"TODAY"]
[{"$nulls":46},"",{"$nulls":4},"",{"$nulls":32},0,0,0,0,0,0,0,0,0,1,0,null,"TODAY"]
[{"$nulls":46},"",{"$nulls":4},"",{"$nulls":32},0,0,0,0,0,0,0,0,0,1,0,null,"TODAY"]
[{"$nulls":46},"",{"$nulls":4},"",{"$nulls":32},0,0,0,0,0,0,0,0,0,1,0,null,"TODAY"]
[{"$nulls":46},"",{"$nulls":4},"",{"$nulls":32},0,0,0,0,0,0,0,0,0,1,0,null,"TODAY"]
[{"$nulls":46},"",{"$nulls":4},{"$f":"IF(AO139=0,\"\",IF(AU139>5,\"5+ Days Out\",IF(CI139=1,\"Completed\",IF(CK139=1,\"Due in Next 5 Days\",IF(CL139=1,\"Due Tomorrow\",IF(CM139=1,\"Due Today\",IF(CN139=1,\"Overdue\",\"\")))))))","v":""},{"$nulls":32},{"$f":"IF(F139>0,1,0)","v":0},{"$f":"IF(E139=\"x\",1,0)","v":0},{"$f":"IF(CG139+CH139=2,1,0)","v":0},{"$f":"CG139-CI139","v":0},{"$f":"IF(AND(AU139>1,AU139<6),1,0)","v":0},{"$f":"IF(AU139=1,1,0)","v":0},{"$f":"IF(AU139=0,1,0)","v":0},{"$f":"IF(AU139<0,1,0)","v":0},{"$f":"IF(CK139=1,1,IF(CL139=1,2,IF(CM139=1,3,IF(CN139=1,4,0))))*CJ139","v":0},{"$f":"IF(F139=0,1,0)+CJ139","v":1},{"$f":"CG139-CI139","v":0},null,"TODAY"]
[{"$nulls":46},{"$f":"IF(AO140=0,\"\",AO140-TODAY())","v":""},{"$nulls":4},"",{"$nulls":32},0,0,0,0,0,0,0,0,0,1,0,null,"TODAY"]
[{"$nulls":46},"",{"$nulls":4},"",{"$nulls":32},0,0,0,0,0,0,0,0,0,1,0,null,"TODAY"]
[{"$nulls":46},"",{"$nulls":4},"",{"$nulls":32},0,0,0,0,0,0,0,0,0,1,0,null,"TODAY"]
[{"$nulls":46},"",{"$nulls":4},"",{"$nulls":32},0,0,0,0,0,0,0,0,0,1,0,null,"TODAY"]
[{"$nulls":46},"",{"$nulls":4},"",{"$nulls":32},0,0,0,0,0,0,0,0,0,1,0,null,"TODAY"]
[{"$nulls":46},"",{"$nulls":4},"",{"$nulls":32},0,0,0,0,0,0,0,0,0,1,0,null,"TODAY"]
[{"$nulls":46},"",{"$nulls":4},"",{"$nulls":32},0,0,0,0,0,0,0,0,0,1,0,null,"TODAY"]
[{"$nulls":46},"",{"$nulls":4},"",{"$nulls":32},0,0,0,0,0,0,0,0,0,1,0,null,"TODAY"]
[{"$nulls":46},"",{"$nulls":4},"",{"$nulls":32},0,0,0,0,0,0,0,0,0,1,0,null,"TODAY"]
[{"$nulls":46},"",{"$nulls":4},"",{"$nulls":32},0,0,0,0,0,0,0,0,0,1,0,null,"TODAY"]
[{"$nulls":46},"",{"$nulls":4},"",{"$nulls":32},0,0,0,0,0,0,0,0,0,1,0,null,"TODAY"]
[{"$nulls":46},"",{"$nulls":4},"",{"$nulls":32},0,0,0,0,0,0,0,0,0,1,0,null,"TODAY"]
[{"$nulls":46},"",{"$nulls":4},"",{"$nulls":32},0,0,0,0,0,0,0,0,0,1,0,null,"TODAY"]
[{"$nulls":46},"",{"$nulls":4},"",{"$nulls":32},0,0,0,0,0,0,0,0,0,1,0,null,"TODAY"]
[{"$nulls":46},"",{"$nulls":4},"",{"$nulls":32},0,0,0,0,0,0,0,0,0,1,0,null,"TODAY"]
[{"$nulls":46},"",{"$nulls":4},"",{"$nulls":32},0,0,0,0,0,0,0,0,0,1,0,null,"TODAY"]
[{"$nulls":46},"",{"$nulls":4},"",{"$nulls":32},0,0,0,0,0,0,0,0,0,1,0,null,"TODAY"]
[{"$nulls":46},"",{"$nulls":4},"",{"$nulls":32},0,0,0,0,0,0,0,0,0,1,0,null,"TODAY"]
[{"$nulls":46},"",{"$nulls":4},"",{"$nulls":32},0,0,0,0,0,0,0,0,0,1,0,null,"TODAY"]
[{"$nulls":46},"",{"$nulls":4},"",{"$nulls":32},0,0,0,0,0,0,0,0,0,1,0,null,"TODAY"]
[{"$nulls":46},"",{"$nulls":4},"",{"$nulls":32},0,0,0,0,0,0,0,0,0,1,0,null,"TODAY"]
[{"$nulls":46},"",{"$nulls":4},"",{"$nulls":32},0,0,0,0,0,0,0,0,0,1,0,null,"TODAY"]
[{"$nulls":46},"",{"$nulls":4},"",{"$nulls":32},0,0,0,0,0,0,0,0,0,1,0,null,"TODAY"]
[{"$nulls":46},"",{"$nulls":4},"",{"$nulls":32},0,0,0,0,0,0,0,0,0,1,0,null,"TODAY"]
[{"$nulls":46},"",{"$nulls":4},"",{"$nulls":32},0,0,0,0,0,0,0,0,0,1,0,null,"TODAY"]
[{"$nulls":46},"",{"$nulls":4},"",{"$nulls":32},0,0,0,0,0,0,0,0,0,1,0,null,"TODAY"]
[{"$nulls":46},"",{"$nulls":4},"",{"$nulls":32},0,0,0,0,0,0,0,0,0,1,0,null,"TODAY"]
[{"$nulls":46},"",{"$nulls":4},"",{"$nulls":32},0,0,0,0,0,0,0,0,0,1,0,null,"TODAY"]
[{"$nulls":46},"",{"$nulls":4},"",{"$nulls":32},0,0,0,0,0,0,0,0,0,1,0,null,"TODAY"]
[{"$nulls":46},"",{"$nulls":4},"",{"$nulls":32},0,0,0,0,0,0,0,0,0,1,0,null,"TODAY"]
[{"$nulls":46},"",{"$nulls":4},"",{"$nulls":32},0,0,0,0,0,0,0,0,0,1,0,null,"TODAY"]
[{"$nulls":46},"",{"$nulls":4},"",{"$nulls":32},0,0,0,0,0,0,0,0,0,1,0,null,"TODAY"]
[{"$nulls":46},"",{"$nulls":4},"",{"$nulls":32},0,0,0,0,0,0,0,0,0,1,0,null,"TODAY"]
[{"$nulls":46},"",{"$nulls":4},"",{"$nulls":32},0,0,0,0,0,0,0,0,0,1,0,null,"TODAY"]
[{"$nulls":46},"",{"$nulls":4},"",{"$nulls":32},0,0,0,0,0,0,0,0,0,1,0,null,"TODAY"]
[{"$nulls":46},"",{"$nulls":4},"",{"$nulls":32},0,0,0,0,0,0,0,0,0,1,0,null,"TODAY"]
[{"$nulls":46},"",{"$nulls":4},"",{"$nulls":32},0,0,0,0,0,0,0,0,0,1,0,null,"TODAY"]
[{"$nulls":46},"",{"$nulls":4},"",{"$nulls":32},0,0,0,0,0,0,0,0,0,1,0,null,"TODAY"]
[{"$nulls":46},"",{"$nulls":4},"",{"$nulls":32},0,0,0,0,0,0,0,0,0,1,0,null,"TODAY"]
[{"$nulls":46},"",{"$nulls":4},"",{"$nulls":32},0,0,0,0,0,0,0,0,0,1,0,null,"TODAY"]
[{"$nulls":46},"",{"$nulls":4},"",{"$nulls":32},0,0,0,0,0,0,0,0,0,1,0,null,"TODAY"]
[{"$nulls":46},"",{"$nulls":4},"",{"$nulls":32},0,0,0,0,0,0,0,0,0,1,0,null,"TODAY"]
[{"$nulls":46},"",{"$nulls":4},"",{"$nulls":32},0,0,0,0,0,0,0,0,0,1,0,null,"TODAY"]
[{"$nulls":46},"",{"$nulls":4},"",{"$nulls":32},0,0,0,0,0,0,0,0,0,1,0,null,"TODAY"]
[{"$nulls":46},"",{"$nulls":4},"",{"$nulls":32},0,0,0,0,0,0,0,0,0,1,0,null,"TODAY"]
[{"$nulls":46},"",{"$nulls":4},"",{"$nulls":32},0,0,0,0,0,0,0,0,0,1,0,null,"TODAY"]
[{"$nulls":46},"",{"$nulls":4},"",{"$nulls":32},0,0,0,0,0,0,0,0,0,1,0,null,"TODAY"]
[{"$nulls":46},"",{"$nulls":4},"",{"$nulls":32},0,0,0,0,0,0,0,0,0,1,0,null,"TODAY"]
[{"$nulls":46},"",{"$nulls":4},"",{"$nulls":32},0,0,0,0,0,0,0,0,0,1,0,null,"TODAY"]
[{"$nulls":46},"",{"$nulls":4},"",{"$nulls":32},0,0,0,0,0,0,0,0,0,1,0,null,"TODAY"]
[{"$nulls":46},"",{"$nulls":4},"",{"$nulls":32},0,0,0,0,0,0,0,0,0,1,0,null,"TODAY"]
[{"$nulls":46},"",{"$nulls":4},"",{"$nulls":32},0,0,0,0,0,0,0,0,0,1,0,null,"TODAY"]
[{"$nulls":46},"",{"$nulls":4},"",{"$nulls":32},0,0,0,0,0,0,0,0,0,1,0,null,"TODAY"]
[{"$nulls":46},"",{"$nulls":4},"",{"$nulls":32},0,0,0,0,0,0,0,0,0,1,0,null,"TODAY"]
[{"$nulls":46},"",{"$nulls":4},"",{"$nulls":32},0,0,0,0,0,0,0,0,0,1,0,null,"TODAY"]
[{"$nulls":46},"",{"$nulls":4},"",{"$nulls":32},0,0,0,0,0,0,0,0,0,1,0,null,"TODAY"]
[{"$nulls":46},"",{"$nulls":4},"",{"$nulls":32},0,0,0,0,0,0,0,0,0,1,0,null,"TODAY"]
[{"$nulls":46},"",{"$nulls":4},"",{"$nulls":32},0,0,0,0,0,0,0,0,0,1,0,null,"TODAY"]
[{"$nulls":46},"",{"$nulls":4},"",{"$nulls":32},0,0,0,0,0,0,0,0,0,1,0,null,"TODAY"]
[{"$nulls":46},"",{"$nulls":4},"",{"$nulls":32},0,0,0,0,0,0,0,0,0,1,0,null,"TODAY"]
[{"$nulls":46},"",{"$nulls":4},"",{"$nulls":32},0,0,0,0,0,0,0,0,0,1,0,null,"TODAY"]
[{"$nulls":46},"",{"$nulls":4},"",{"$nulls":32},0,0,0,0,0,0,0,0,0,1,0,null,"TODAY"]
[{"$nulls":46},"",{"$nulls":4},"",{"$nulls":32},0,0,0,0,0,0,0,0,0,1,0,null,"TODAY"]
[{"$nulls":46},"",{"$nulls":4},{"$f":"IF(AO203=0,\"\",IF(AU203>5,\"5+ Days Out\",IF(CI203=1,\"Completed\",IF(CK203=1,\"Due in Next 5 Days\",IF(CL203=1,\"Due Tomorrow\",IF(CM203=1,\"Due Today\",IF(CN203=1,\"Overdue\",\"\")))))))","v":""},{"$nulls":32},{"$f":"IF(F203>0,1,0)","v":0},{"$f":"IF(E203=\"x\",1,0)","v":0},{"$f":"IF(CG203+CH203=2,1,0)","v":0},{"$f":"CG203-CI203","v":0},{"$f":"IF(AND(AU203>1,AU203<6),1,0)","v":0},{"$f":"IF(AU203=1,1,0)","v":0},{"$f":"IF(AU203=0,1,0)","v":0},{"$f":"IF(AU203<0,1,0)","v":0},{"$f":"IF(CK203=1,1,IF(CL203=1,2,IF(CM203=1,3,IF(CN203=1,4,0))))*CJ203","v":0},{"$f":"IF(F203=0,1,0)+CJ203","v":1},{"$f":"CG203-CI203","v":0},null,"TODAY"]
[{"$nulls":46},{"$f":"IF(AO204=0,\"\",AO204-TODAY())","v":""},{"$nulls":4},"",{"$nulls":32},0,0,0,0,0,0,0,0,0,1,0,null,"TODAY"]
[{"$nulls":46},"",{"$nulls":4},"",{"$nulls":32},0,0,0,0,0,0,0,0,0,1,0,null,"TODAY"]
[{"$nulls":46},"",{"$nulls":4},"",{"$nulls":32},0,0,0,0,0,0,0,0,0,1,0,null,"TODAY"]
[{"$nulls":46},"",{"$nulls":4},"",{"$nulls":32},0,0,0,0,0,0,0,0,0,1,0,null,"TODAY"]
[{"$nulls":46},"",{"$nulls":4},"",{"$nulls":32},0,0,0,0,0,0,0,0,0,1,0,null,"TODAY"]
[{"$nulls":46},"",{"$nulls":4},"",{"$nulls":32},0,0,0,0,0,0,0,0,0,1,0,null,"TODAY"]
[{"$nulls":46},"",{"$nulls":4},"",{"$nulls":32},0,0,0,0,0,0,0,0,0,1,0,null,"TODAY"]
[{"$nulls":46},"",{"$nulls":4},"",{"$nulls":32},0,0,0,0,0,0,0,0,0,1,0,null,"TODAY"]
[{"$nulls":46},"",{"$nulls":4},"",{"$nulls":32},0,0,0,0,0,0,0,0,0,1,0,null,"TODAY"]
[{"$nulls":46},"",{"$nulls":4},"",{"$nulls":32},0,0,0,0,0,0,0,0,0,1,0,null,"TODAY"]
[{"$nulls":46},"",{"$nulls":4},"",{"$nulls":32},0,0,0,0,0,0,0,0,0,1,0,null,"TODAY"]
[{"$nulls":46},"",{"$nulls":4},"",{"$nulls":32},0,0,0,0,0,0,0,0,0,1,0,null,"TODAY"]
[{"$nulls":46},"",{"$nulls":4},"",{"$nulls":32},0,0,0,0,0,0,0,0,0,1,0,null,"TODAY"]
[{"$nulls":46},"",{"$nulls":4},"",{"$nulls":32},0,0,0,0,0,0,0,0,0,1,0,null,"TODAY"]
[{"$nulls":46},"",{"$nulls":4},"",{"$nulls":32},0,0,0,0,0,0,0,0,0,1,0,null,"TODAY"]
[{"$nulls":46},"",{"$nulls":4},"",{"$nulls":32},0,0,0,0,0,0,0,0,0,1,0,null,"TODAY"]
[{"$nulls":46},"",{"$nulls":4},"",{"$nulls":32},0,0,0,0,0,0,0,0,0,1,0,null,"TODAY"]
[{"$nulls":46},"",{"$nulls":4},"",{"$nulls":32},0,0,0,0,0,0,0,0,0,1,0,null,"TODAY"]
[{"$nulls":46},"",{"$nulls":4},"",{"$nulls":32},0,0,0,0,0,0,0,0,0,1,0,null,"TODAY"]
[{"$nulls":46},"",{"$nulls":4},"",{"$nulls":32},0,0,0,0,0,0,0,0,0,1,0,null,"TODAY"]
[{"$nulls":46},"",{"$nulls":4},"",{"$nulls":32},0,0,0,0,0,0,0,0,0,1,0,null,"TODAY"]
[{"$nulls":46},"",{"$nulls":4},"",{"$nulls":32},0,0,0,0,0,0,0,0,0,1,0,null,"TODAY"]
[{"$nulls":46},"",{"$nulls":4},"",{"$nulls":32},0,0,0,0,0,0,0,0,0,1,0,null,"TODAY"]
[{"$nulls":46},"",{"$nulls":4},"",{"$nulls":32},0,0,0,0,0,0,0,0,0,1,0,null,"TODAY"]
[{"$nulls":46},"",{"$nulls":4},"",{"$nulls":32},0,0,0,0,0,0,0,0,0,1,0,null,"TODAY"]
[{"$nulls":46},"",{"$nulls":4},"",{"$nulls":32},0,0,0,0,0,0,0,0,0,1,0,null,"TODAY"]
[{"$nulls":46},"",{"$nulls":4},"",{"$nulls":32},0,0,0,0,0,0,0,0,0,1,0,null,"TODAY"]
[{"$nulls":46},"",{"$nulls":4},"",{"$nulls":32},0,0,0,0,0,0,0,0,0,1,0,null,"TODAY"]
[{"$nulls":46},"",{"$nulls":4},"",{"$nulls":32},0,0,0,0,0,0,0,0,0,1,0,null,"TODAY"]
[{"$nulls":46},"",{"$nulls":4},"",{"$nulls":32},0,0,0,0,0,0,0,0,0,1,0,null,"TODAY"]
[{"$nulls":46},"",{"$nulls":4},"",{"$nulls":32},0,0,0,0,0,0,0,0,0,1,0,null,"TODAY"]
[{"$nulls":46},"",{"$nulls":4},"",{"$nulls":32},0,0,0,0,0,0,0,0,0,1,0,null,"TODAY"]
[{"$nulls":46},"",{"$nulls":4},"",{"$nulls":32},0,0,0,0,0,0,0,0,0,1,0,null,"TODAY"]
[{"$nulls":46},"",{"$nulls":4},"",{"$nulls":32},0,0,0,0,0,0,0,0,0,1,0,null,"TODAY"]
[{"$nulls":46},"",{"$nulls":4},"",{"$nulls":32},0,0,0,0,0,0,0,0,0,1,0,null,"TODAY"]
[{"$nulls":46},"",{"$nulls":4},"",{"$nulls":32},0,0,0,0,0,0,0,0,0,1,0,null,"TODAY"]
[{"$nulls":46},"",{"$nulls":4},"",{"$nulls":32},0,0,0,0,0,0,0,0,0,1,0,null,"TODAY"]
[{"$nulls":46},"",{"$nulls":4},"",{"$nulls":32},0,0,0,0,0,0,0,0,0,1,0,null,"TODAY"]
[{"$nulls":46},"",{"$nulls":4},"",{"$nulls":32},0,0,0,0,0,0,0,0,0,1,0,null,"TODAY"]
[{"$nulls":46},"",{"$nulls":4},"",{"$nulls":32},0,0,0,0,0,0,0,0,0,1,0,null,"TODAY"]
[{"$nulls":46},"",{"$nulls":4},"",{"$nulls":32},0,0,0,0,0,0,0,0,0,1,0,null,"TODAY"]
[{"$nulls":46},"",{"$nulls":4},"",{"$nulls":32},0,0,0,0,0,0,0,0,0,1,0,null,"TODAY"]
[{"$nulls":46},"",{"$nulls":4},"",{"$nulls":32},0,0,0,0,0,0,0,0,0,1,0,null,"TODAY"]
[{"$nulls":46},"",{"$nulls":4},"",{"$nulls":32},0,0,0,0,0,0,0,0,0,1,0,null,"TODAY"]
[{"$nulls":46},"",{"$nulls":4},"",{"$nulls":32},0,0,0,0,0,0,0,0,0,1,0,null,"TODAY"]
[{"$nulls":46},"",{"$nulls":4},"",{"$nulls":32},0,0,0,0,0,0,0,0,0,1,0,null,"TODAY"]
[{"$nulls":46},"",{"$nulls":4},"",{"$nulls":32},0,0,0,0,0,0,0,0,0,1,0,null,"TODAY"]
[{"$nulls":46},"",{"$nulls":4},"",{"$nulls":32},0,0,0,0,0,0,0,0,0,1,0,null,"TODAY"]
[{"$nulls":46},"",{"$nulls":4},"",{"$nulls":32},0,0,0,0,0,0,0,0,0,1,0,null,"TODAY"]
[{"$nulls":46},"",{"$nulls":4},"",{"$nulls":32},0,0,0,0,0,0,0,0,0,1,0,null,"TODAY"]
[{"$nulls":46},"",{"$nulls":4},"",{"$nulls":32},0,0,0,0,0,0,0,0,0,1,0,null,"TODAY"]
[{"$nulls":46},"",{"$nulls":4},"",{"$nulls":32},0,0,0,0,0,0,0,0,0,1,0,null,"TODAY"]
[{"$nulls":46},"",{"$nulls":4},"",{"$nulls":32},0,0,0,0,0,0,0,0,0,1,0,null,"TODAY"]
[{"$nulls":46},"",{"$nulls":4},"",{"$nulls":32},0,0,0,0,0,0,0,0,0,1,0,null,"TODAY"]
[{"$nulls":46},"",{"$nulls":4},"",{"$nulls":32},0,0,0,0,0,0,0,0,0,1,0,null,"TODAY"]
[{"$nulls":46},"",{"$nulls":4},"",{"$nulls":32},0,0,0,0,0,0,0,0,0,1,0,null,"TODAY"]
[{"$nulls":46},"",{"$nulls":4},"",{"$nulls":32},0,0,0,0,0,0,0,0,0,1,0,null,"TODAY"]
[{"$nulls":46},"",{"$nulls":4},"",{"$nulls":32},0,0,0,0,0,0,0,0,0,1,0,null,"TODAY"]
[{"$nulls":46},"",{"$nulls":4},"",{"$nulls":32},0,0,0,0,0,0,0,0,0,1,0,null,"TODAY"]
[{"$nulls":46},"",{"$nulls":4},"",{"$nulls":32},0,0,0,0,0,0,0,0,0,1,0,null,"TODAY"]
[{"$nulls":46},"",{"$nulls":4},"",{"$nulls":32},0,0,0,0,0,0,0,0,0,1,0,null,"TODAY"]
[{"$nulls":46},"",{"$nulls":4},"",{"$nulls":32},0,0,0,0,0,0,0,0,0,1,0,null,"TODAY"]
[{"$nulls":46},"",{"$nulls":4},"",{"$nulls":32},0,0,0,0,0,0,0,0,0,1,0,null,"TODAY"]
[{"$nulls":46},"",{"$nulls":4},{"$f":"IF(AO267=0,\"\",IF(AU267>5,\"5+ Days Out\",IF(CI267=1,\"Completed\",IF(CK267=1,\"Due in Next 5 Days\",IF(CL267=1,\"Due Tomorrow\",IF(CM267=1,\"Due Today\",IF(CN267=1,\"Overdue\",\"\")))))))","v":""},{"$nulls":32},{"$f":"IF(F267>0,1,0)","v":0},{"$f":"IF(E267=\"x\",1,0)","v":0},{"$f":"IF(CG267+CH267=2,1,0)","v":0},{"$f":"CG267-CI267","v":0},{"$f":"IF(AND(AU267>1,AU267<6),1,0)","v":0},{"$f":"IF(AU267=1,1,0)","v":0},{"$f":"IF(AU267=0,1,0)","v":0},{"$f":"IF(AU267<0,1,0)","v":0},{"$f":"IF(CK267=1,1,IF(CL267=1,2,IF(CM267=1,3,IF(CN267=1,4,0))))*CJ267","v":0},{"$f":"IF(F267=0,1,0)+CJ267","v":1},{"$f":"CG267-CI267","v":0},null,"TODAY"]
[{"$nulls":46},{"$f":"IF(AO268=0,\"\",AO268-TODAY())","v":""},{"$nulls":4},"",{"$nulls":32},0,0,0,0,0,0,0,0,0,1,0,null,"TODAY"]
[{"$nulls":46},"",{"$nulls":4},"",{"$nulls":32},0,0,0,0,0,0,0,0,0,1,0,null,"TODAY"]
[{"$nulls":46},"",{"$nulls":4},"",{"$nulls":32},0,0,0,0,0,0,0,0,0,1,0,null,"TODAY"]
[{"$nulls":46},"",{"$nulls":4},"",{"$nulls":32},0,0,0,0,0,0,0,0,0,1,0,null,"TODAY"]
[{"$nulls":46},"",{"$nulls":4},"",{"$nulls":32},0,0,0,0,0,0,0,0,0,1,0,null,"TODAY"]
[{"$nulls":46},"",{"$nulls":4},"",{"$nulls":32},0,0,0,0,0,0,0,0,0,1,0,null,"TODAY"]
[{"$nulls":46},"",{"$nulls":4},"",{"$nulls":32},0,0,0,0,0,0,0,0,0,1,0,null,"TODAY"]
[{"$nulls":46},"",{"$nulls":4},"",{"$nulls":32},0,0,0,0,0,0,0,0,0,1,0,null,"TODAY"]
[{"$nulls":46},"",{"$nulls":4},"",{"$nulls":32},0,0,0,0,0,0,0,0,0,1,0,null,"TODAY"]
[{"$nulls":46},"",{"$nulls":4},"",{"$nulls":32},0,0,0,0,0,0,0,0,0,1,0,null,"TODAY"]
[{"$nulls":46},"",{"$nulls":4},"",{"$nulls":32},0,0,0,0,0,0,0,0,0,1,0,null,"TODAY"]
[{"$nulls":46},"",{"$nulls":4},"",{"$nulls":32},0,0,0,0,0,0,0,0,0,1,0,null,"TODAY"]
[{"$nulls":46},"",{"$nulls":4},"",{"$nulls":32},0,0,0,0,0,0,0,0,0,1,0,null,"TODAY"]
[{"$nulls":46},"",{"$nulls":4},"",{"$nulls":32},0,0,0,0,0,0,0,0,0,1,0,null,"TODAY"]
[{"$nulls":46},"",{"$nulls":4},"",{"$nulls":32},0,0,0,0,0,0,0,0,0,1,0,null,"TODAY"]
[{"$nulls":46},"",{"$nulls":4},"",{"$nulls":32},0,0,0,0,0,0,0,0,0,1,0,null,"TODAY"]
[{"$nulls":46},"",{"$nulls":4},"",{"$nulls":32},0,0,0,0,0,0,0,0,0,1,0,null,"TODAY"]
[{"$nulls":46},"",{"$nulls":4},"",{"$nulls":32},0,0,0,0,0,0,0,0,0,1,0,null,"TODAY"]
[{"$nulls":46},"",{"$nulls":4},"",{"$nulls":32},0,0,0,0,0,0,0,0,0,1,0,null,"TODAY"]
[{"$nulls":46},"",{"$nulls":4},"",{"$nulls":32},0,0,0,0,0,0,0,0,0,1,0,null,"TODAY"]
[{"$nulls":46},"",{"$nulls":4},"",{"$nulls":32},0,0,0,0,0,0,0,0,0,1,0,null,"TODAY"]
[{"$nulls":46},"",{"$nulls":4},"",{"$nulls":32},0,0,0,0,0,0,0,0,0,1,0,null,"TODAY"]
[{"$nulls":46},"",{"$nulls":4},"",{"$nulls":32},0,0,0,0,0,0,0,0,0,1,0,null,"TODAY"]
[{"$nulls":46},"",{"$nulls":4},"",{"$nulls":32},0,0,0,0,0,0,0,0,0,1,0,null,"TODAY"]
[{"$nulls":46},"",{"$nulls":4},"",{"$nulls":32},0,0,0,0,0,0,0,0,0,1,0,null,"TODAY"]
[{"$nulls":46},"",{"$nulls":4},"",{"$nulls":32},0,0,0,0,0,0,0,0,0,1,0,null,"TODAY"]
[{"$nulls":46},"",{"$nulls":4},"",{"$nulls":32},0,0,0,0,0,0,0,0,0,1,0,null,"TODAY"]
[{"$nulls":46},"",{"$nulls":4},"",{"$nulls":32},0,0,0,0,0,0,0,0,0,1,0,null,"TODAY"]
[{"$nulls":46},"",{"$nulls":4},"",{"$nulls":32},0,0,0,0,0,0,0,0,0,1,0,null,"TODAY"]
[{"$nulls":46},"",{"$nulls":4},"",{"$nulls":32},0,0,0,0,0,0,0,0,0,1,0,null,"TODAY"]
[{"$nulls":46},"",{"$nulls":4},"",{"$nulls":32},0,0,0,0,0,0,0,0,0,1,0,null,"TODAY"]
[{"$nulls":46},"",{"$nulls":4},"",{"$nulls":32},0,0,0,0,0,0,0,0,0,1,0,null,"TODAY"]
[{"$nulls":46},"",{"$nulls":4},"",{"$nulls":32},0,0,0,0,0,0,0,0,0,1,0,null,"TODAY"]
[{"$nulls":46},"",{"$nulls":4},"",{"$nulls":32},0,0,0,0,0,0,0,0,0,1,0,null,"TODAY"]
[{"$nulls":46},"",{"$nulls":4},"",{"$nulls":32},0,0,0,0,0,0,0,0,0,1,0,null,"TODAY"]
[{"$nulls":46},"",{"$nulls":4},"",{"$nulls":32},0,0,0,0,0,0,0,0,0,1,0,null,"TODAY"]
[{"$nulls":46},"",{"$nulls":4},"",{"$nulls":32},0,0,0,0,0,0,0,0,0,1,0,null,"TODAY"]
[{"$nulls":46},"",{"$nulls":4},"",{"$nulls":32},0,0,0,0,0,0,0,0,0,1,0,null,"TODAY"]
[{"$nulls":46},"",{"$nulls":4},"",{"$nulls":32},0,0,0,0,0,0,0,0,0,1,0,null,"TODAY"]
[{"$nulls":46},"",{"$nulls":4},"",{"$nulls":32},0,0,0,0,0,0,0,0,0,1,0,null,"TODAY"]
[{"$nulls":46},"",{"$nulls":4},"",{"$nulls":32},0,0,0,0,0,0,0,0,0,1,0,null,"TODAY"]
[{"$nulls":46},"",{"$nulls":4},"",{"$nulls":32},0,0,0,0,0,0,0,0,0,1,0,null,"TODAY"]
[{"$nulls":46},"",{"$nulls":4},"",{"$nulls":32},0,0,0,0,0,0,0,0,0,1,0,null,"TODAY"]
[{"$nulls":46},"",{"$nulls":4},"",{"$nulls":32},0,0,0,0,0,0,0,0,0,1,0,null,"TODAY"]
[{"$nulls":46},"",{"$nulls":4},"",{"$nulls":32},0,0,0,0,0,0,0,0,0,1,0,null,"TODAY"]
[{"$nulls":46},"",{"$nulls":4},"",{"$nulls":32},0,0,0,0,0,0,0,0,0,1,0,null,"TODAY"]
[{"$nulls":46},"",{"$nulls":4},"",{"$nulls":32},0,0,0,0,0,0,0,0,0,1,0,null,"TODAY"]
[{"$nulls":46},"",{"$nulls":4},"",{"$nulls":32},0,0,0,0,0,0,0,0,0,1,0,null,"TODAY"]
[{"$nulls":46},"",{"$nulls":4},"",{"$nulls":32},0,0,0,0,0,0,0,0,0,1,0,null,"TODAY"]
[{"$nulls":46},"",{"$nulls":4},"",{"$nulls":32},0,0,0,0,0,0,0,0,0,1,0,null,"TODAY"]
[{"$nulls":46},"",{"$nulls":4},"",{"$nulls":32},0,0,0,0,0,0,0,0,0,1,0,null,"TODAY"]
[{"$nulls":46},"",{"$nulls":4},"",{"$nulls":32},0,0,0,0,0,0,0,0,0,1,0,null,"TODAY"]
[{"$nulls":46},"",{"$nulls":4},"",{"$nulls":32},0,0,0,0,0,0,0,0,0,1,0,null,"TODAY"]
[{"$nulls":46},"",{"$nulls":4},"",{"$nulls":32},0,0,0,0,0,0,0,0,0,1,0,null,"TODAY"]
[{"$nulls":46},"",{"$nulls":4},"",{"$nulls":32},0,0,0,0,0,0,0,0,0,1,0,null,"TODAY"]
[{"$nulls":46},"",{"$nulls":4},"",{"$nulls":32},0,0,0,0,0,0,0,0,0,1,0,null,"TODAY"]
[{"$nulls":46},"",{"$nulls":4},"",{"$nulls":32},0,0,0,0,0,0,0,0,0,1,0,null,"TODAY"]
[{"$nulls":46},"",{"$nulls":4},"",{"$nulls":32},0,0,0,0,0,0,0,0,0,1,0,null,"TODAY"]
[{"$nulls":46},"",{"$nulls":4},"",{"$nulls":32},0,0,0,0,0,0,0,0,0,1,0,null,"TODAY"]
[{"$nulls":46},"",{"$nulls":4},"",{"$nulls":32},0,0,0,0,0,0,0,0,0,1,0,null,"TODAY"]
[{"$nulls":46},"",{"$nulls":4},"",{"$nulls":32},0,0,0,0,0,0,0,0,0,1,0,null,"TODAY"]
[{"$nulls":46},"",{"$nulls":4},"",{"$nulls":32},0,0,0,0,0,0,0,0,0,1,0,null,"TODAY"]
[{"$nulls":46},"",{"$nulls":4},"",{"$nulls":32},0,0,0,0,0,0,0,0,0,1,0,null,"TODAY"]
[{"$nulls":46},"",{"$nulls":4},{"$f":"IF(AO331=0,\"\",IF(AU331>5,\"5+ Days Out\",IF(CI331=1,\"Completed\",IF(CK331=1,\"Due in Next 5 Days\",IF(CL331=1,\"Due Tomorrow\",IF(CM331=1,\"Due Today\",IF(CN331=1,\"Overdue\",\"\")))))))","v":""},{"$nulls":32},{"$f":"IF(F331>0,1,0)","v":0},{"$f":"IF(E331=\"x\",1,0)","v":0},{"$f":"IF(CG331+CH331=2,1,0)","v":0},{"$f":"CG331-CI331","v":0},{"$f":"IF(AND(AU331>1,AU331<6),1,0)","v":0},{"$f":"IF(AU331=1,1,0)","v":0},{"$f":"IF(AU331=0,1,0)","v":0},{"$f":"IF(AU331<0,1,0)","v":0},{"$f":"IF(CK331=1,1,IF(CL331=1,2,IF(CM331=1,3,IF(CN331=1,4,0))))*CJ331","v":0},{"$f":"IF(F331=0,1,0)+CJ331","v":1},{"$f":"CG331-CI331","v":0},null,"TODAY"]
[{"$nulls":46},{"$f":"IF(AO332=0,\"\",AO332-TODAY())","v":""},{"$nulls":4},"",{"$nulls":32},0,0,0,0,0,0,0,0,0,1,0,null,"TODAY"]
[{"$nulls":46},"",{"$nulls":4},"",{"$nulls":32},0,0,0,0,0,0,0,0,0,1,0,null,"TODAY"]
[{"$nulls":46},"",{"$nulls":4},"",{"$nulls":32},0,0,0,0,0,0,0,0,0,1,0,null,"TODAY"]
[{"$nulls":46},"",{"$nulls":4},"",{"$nulls":32},0,0,0,0,0,0,0,0,0,1,0,null,"TODAY"]
[{"$nulls":46},"",{"$nulls":4},"",{"$nulls":32},0,0,0,0,0,0,0,0,0,1,0,null,"TODAY"]
[{"$nulls":46},"",{"$nulls":4},"",{"$nulls":32},0,0,0,0,0,0,0,0,0,1,0,null,"TODAY"]
[{"$nulls":46},"",{"$nulls":4},"",{"$nulls":32},0,0,0,0,0,0,0,0,0,1,0,null,"TODAY"]
[{"$nulls":46},"",{"$nulls":4},"",{"$nulls":32},0,0,0,0,0,0,0,0,0,1,0,null,"TODAY"]
[{"$nulls":46},"",{"$nulls":4},"",{"$nulls":32},0,0,0,0,0,0,0,0,0,1,0,null,"TODAY"]
[{"$nulls":46},"",{"$nulls":4},"",{"$nulls":32},0,0,0,0,0,0,0,0,0,1,0,null,"TODAY"]
[{"$nulls":46},"",{"$nulls":4},"",{"$nulls":32},0,0,0,0,0,0,0,0,0,1,0,null,"TODAY"]
[{"$nulls":46},"",{"$nulls":4},"",{"$nulls":32},0,0,0,0,0,0,0,0,0,1,0,null,"TODAY"]
[{"$nulls":46},"",{"$nulls":4},"",{"$nulls":32},0,0,0,0,0,0,0,0,0,1,0,null,"TODAY"]
[{"$nulls":46},"",{"$nulls":4},"",{"$nulls":32},0,0,0,0,0,0,0,0,0,1,0,null,"TODAY"]
[{"$nulls":46},"",{"$nulls":4},"",{"$nulls":32},0,0,0,0,0,0,0,0,0,1,0,null,"TODAY"]
[{"$nulls":46},"",{"$nulls":4},"",{"$nulls":32},0,0,0,0,0,0,0,0,0,1,0,null,"TODAY"]
[{"$nulls":46},"",{"$nulls":4},"",{"$nulls":32},0,0,0,0,0,0,0,0,0,1,0,null,"TODAY"]
[{"$nulls":46},"",{"$nulls":4},"",{"$nulls":32},0,0,0,0,0,0,0,0,0,1,0,null,"TODAY"]
[{"$nulls":46},"",{"$nulls":4},"",{"$nulls":32},0,0,0,0,0,0,0,0,0,1,0,null,"TODAY"]
[{"$nulls":46},"",{"$nulls":4},"",{"$nulls":32},0,0,0,0,0,0,0,0,0,1,0,null,"TODAY"]
[{"$nulls":46},"",{"$nulls":4},"",{"$nulls":32},0,0,0,0,0,0,0,0,0,1,0,null,"TODAY"]
[{"$nulls":46},"",{"$nulls":4},"",{"$nulls":32},0,0,0,0,0,0,0,0,0,1,0,null,"TODAY"]
[{"$nulls":46},"",{"$nulls":4},"",{"$nulls":32},0,0,0,0,0,0,0,0,0,1,0,null,"TODAY"]
[{"$nulls":46},"",{"$nulls":4},"",{"$nulls":32},0,0,0,0,0,0,0,0,0,1,0,null,"TODAY"]
[{"$nulls":46},"",{"$nulls":4},"",{"$nulls":32},0,0,0,0,0,0,0,0,0,1,0,null,"TODAY"]
[{"$nulls":46},"",{"$nulls":4},"",{"$nulls":32},0,0,0,0,0,0,0,0,0,1,0,null,"TODAY"]
[{"$nulls":46},"",{"$nulls":4},"",{"$nulls":32},0,0,0,0,0,0,0,0,0,1,0,null,"TODAY"]
[{"$nulls":46},"",{"$nulls":4},"",{"$nulls":32},0,0,0,0,0,0,0,0,0,1,0,null,"TODAY"]
[{"$nulls":46},"",{"$nulls":4},"",{"$nulls":32},0,0,0,0,0,0,0,0,0,1,0,null,"TODAY"]
[{"$nulls":46},"",{"$nulls":4},"",{"$nulls":32},0,0,0,0,0,0,0,0,0,1,0,null,"TODAY"]
[{"$nulls":46},"",{"$nulls":4},"",{"$nulls":32},0,0,0,0,0,0,0,0,0,1,0,null,"TODAY"]
[{"$nulls":46},"",{"$nulls":4},"",{"$nulls":32},0,0,0,0,0,0,0,0,0,1,0,null,"TODAY"]
[{"$nulls":46},"",{"$nulls":4},"",{"$nulls":32},0,0,0,0,0,0,0,0,0,1,0,null,"TODAY"]
[{"$nulls":46},"",{"$nulls":4},"",{"$nulls":32},0,0,0,0,0,0,0,0,0,1,0,null,"TODAY"]
[{"$nulls":46},"",{"$nulls":4},"",{"$nulls":32},0,0,0,0,0,0,0,0,0,1,0,null,"TODAY"]
[{"$nulls":46},"",{"$nulls":4},"",{"$nulls":32},0,0,0,0,0,0,0,0,0,1,0,null,"TODAY"]
[{"$nulls":46},"",{"$nulls":4},"",{"$nulls":32},0,0,0,0,0,0,0,0,0,1,0,null,"TODAY"]
[{"$nulls":46},"",{"$nulls":4},"",{"$nulls":32},0,0,0,0,0,0,0,0,0,1,0,null,"TODAY"]
[{"$nulls":46},"",{"$nulls":4},"",{"$nulls":32},0,0,0,0,0,0,0,0,0,1,0,null,"TODAY"]
[{"$nulls":46},"",{"$nulls":4},"",{"$nulls":32},0,0,0,0,0,0,0,0,0,1,0,null,"TODAY"]
[{"$nulls":46},"",{"$nulls":4},"",{"$nulls":32},0,0,0,0,0,0,0,0,0,1,0,null,"TODAY"]
[{"$nulls":46},"",{"$nulls":4},"",{"$nulls":32},0,0,0,0,0,0,0,0,0,1,0,null,"TODAY"]
[{"$nulls":46},"",{"$nulls":4},"",{"$nulls":32},0,0,0,0,0,0,0,0,0,1,0,null,"TODAY"]
[{"$nulls":46},"",{"$nulls":4},"",{"$nulls":32},0,0,0,0,0,0,0,0,0,1,0,null,"TODAY"]
[{"$nulls":46},"",{"$nulls":4},"",{"$nulls":32},0,0,0,0,0,0,0,0,0,1,0,null,"TODAY"]
[{"$nulls":46},"",{"$nulls":4},"",{"$nulls":32},0,0,0,0,0,0,0,0,0,1,0,null,"TODAY"]
[{"$nulls":46},"",{"$nulls":4},"",{"$nulls":32},0,0,0,0,0,0,0,0,0,1,0,null,"TODAY"]
[{"$nulls":46},"",{"$nulls":4},"",{"$nulls":32},0,0,0,0,0,0,0,0,0,1,0,null,"TODAY"]
[{"$nulls":46},"",{"$nulls":4},"",{"$nulls":32},0,0,0,0,0,0,0,0,0,1,0,null,"TODAY"]
[{"$nulls":46},"",{"$nulls":4},"",{"$nulls":32},0,0,0,0,0,0,0,0,0,1,0,null,"TODAY"]
[{"$nulls":46},"",{"$nulls":4},"",{"$nulls":32},0,0,0,0,0,0,0,0,0,1,0,null,"TODAY"]
[{"$nulls":46},"",{"$nulls":4},"",{"$nulls":32},0,0,0,0,0,0,0,0,0,1,0,null,"TODAY"]
[{"$nulls":46},"",{"$nulls":4},"",{"$nulls":32},0,0,0,0,0,0,0,0,0,1,0,null,"TODAY"]
[{"$nulls":46},"",{"$nulls":4},"",{"$nulls":32},0,0,0,0,0,0,0,0,0,1,0,null,"TODAY"]
[{"$nulls":46},"",{"$nulls":4},"",{"$nulls":32},0,0,0,0,0,0,0,0,0,1,0,null,"TODAY"]
[{"$nulls":46},"",{"$nulls":4},"",{"$nulls":32},0,0,0,0,0,0,0,0,0,1,0,null,"TODAY"]
[{"$nulls":46},"",{"$nulls":4},"",{"$nulls":32},0,0,0,0,0,0,0,0,0,1,0,null,"TODAY"]
[{"$nulls":46},"",{"$nulls":4},"",{"$nulls":32},0,0,0,0,0,0,0,0,0,1,0,null,"TODAY"]
[{"$nulls":46},"",{"$nulls":4},"",{"$nulls":32},0,0,0,0,0,0,0,0,0,1,0,null,"TODAY"]
[{"$nulls":46},"",{"$nulls":4},"",{"$nulls":32},0,0,0,0,0,0,0,0,0,1,0,null,"TODAY"]
[{"$nulls":46},"",{"$nulls":4},"",{"$nulls":32},0,0,0,0,0,0,0,0,0,1,0,null,"TODAY"]
[{"$nulls":46},"",{"$nulls":4},"",{"$nulls":32},0,0,0,0,0,0,0,0,0,1,0,null,"TODAY"]
[{"$nulls":46},"",{"$nulls":4},"",{"$nulls":32},0,0,0,0,0,0,0,0,0,1,0,null,"TODAY"]
[{"$nulls":46},"",{"$nulls":4},{"$f":"IF(AO395=0,\"\",IF(AU395>5,\"5+ Days Out\",IF(CI395=1,\"Completed\",IF(CK395=1,\"Due in Next 5 Days\",IF(CL395=1,\"Due Tomorrow\",IF(CM395=1,\"Due Today\",IF(CN395=1,\"Overdue\",\"\")))))))","v":""},{"$nulls":32},{"$f":"IF(F395>0,1,0)","v":0},{"$f":"IF(E395=\"x\",1,0)","v":0},{"$f":"IF(CG395+CH395=2,1,0)","v":0},{"$f":"CG395-CI395","v":0},{"$f":"IF(AND(AU395>1,AU395<6),1,0)","v":0},{"$f":"IF(AU395=1,1,0)","v":0},{"$f":"IF(AU395=0,1,0)","v":0},{"$f":"IF(AU395<0,1,0)","v":0},{"$f":"IF(CK395=1,1,IF(CL395=1,2,IF(CM395=1,3,IF(CN395=1,4,0))))*CJ395","v":0},{"$f":"IF(F395=0,1,0)+CJ395","v":1},{"$f":"CG395-CI395","v":0},null,"TODAY"]
[{"$nulls":46},{"$f":"IF(AO396=0,\"\",AO396-TODAY())","v":""},{"$nulls":4},"",{"$nulls":32},0,0,0,0,0,0,0,0,0,1,0,null,"TODAY"]
[{"$nulls":46},"",{"$nulls":4},"",{"$nulls":32},0,0,0,0,0,0,0,0,0,1,0,null,"TODAY"]
[{"$nulls":46},"",{"$nulls":4},"",{"$nulls":32},0,0,0,0,0,0,0,0,0,1,0,null,"TODAY"]
[{"$nulls":46},"",{"$nulls":4},"",{"$nulls":32},0,0,0,0,0,0,0,0,0,1,0,null,"TODAY"]
[{"$nulls":46},"",{"$nulls":4},"",{"$nulls":32},0,0,0,0,0,0,0,0,0,1,0,null,"TODAY"]
[{"$nulls":46},"",{"$nulls":4},"",{"$nulls":32},0,0,0,0,0,0,0,0,0,1,0,null,"TODAY"]
[{"$nulls":46},"",{"$nulls":4},"",{"$nulls":32},0,0,0,0,0,0,0,0,0,1,0,null,"TODAY"]
[{"$nulls":46},"",{"$nulls":4},"",{"$nulls":32},0,0,0,0,0,0,0,0,0,1,0,null,"TODAY"]
[{"$nulls":46},"",{"$nulls":4},"",{"$nulls":32},0,0,0,0,0,0,0,0,0,1,0,null,"TODAY"]
[{"$nulls":46},"",{"$nulls":4},"",{"$nulls":32},0,0,0,0,0,0,0,0,0,1,0,null,"TODAY"]
[{"$nulls":46},"",{"$nulls":4},"",{"$nulls":32},0,0,0,0,0,0,0,0,0,1,0,null,"TODAY"]
[{"$nulls":46},"",{"$nulls":4},"",{"$nulls":32},0,0,0,0,0,0,0,0,0,1,0,null,"TODAY"]
[{"$nulls":46},"",{"$nulls":4},"",{"$nulls":32},0,0,0,0,0,0,0,0,0,1,0,null,"TODAY"]
[{"$nulls":46},"",{"$nulls":4},"",{"$nulls":32},0,0,0,0,0,0,0,0,0,1,0,null,"TODAY"]
[{"$nulls":46},"",{"$nulls":4},"",{"$nulls":32},0,0,0,0,0,0,0,0,0,1,0,null,"TODAY"]
[{"$nulls":46},"",{"$nulls":4},"",{"$nulls":32},0,0,0,0,0,0,0,0,0,1,0,null,"TODAY"]
[{"$nulls":46},"",{"$nulls":4},"",{"$nulls":32},0,0,0,0,0,0,0,0,0,1,0,null,"TODAY"]
[{"$nulls":46},"",{"$nulls":4},"",{"$nulls":32},0,0,0,0,0,0,0,0,0,1,0,null,"TODAY"]
[{"$nulls":46},"",{"$nulls":4},"",{"$nulls":32},0,0,0,0,0,0,0,0,0,1,0,null,"TODAY"]
[{"$nulls":46},"",{"$nulls":4},"",{"$nulls":32},0,0,0,0,0,0,0,0,0,1,0,null,"TODAY"]
[{"$nulls":46},"",{"$nulls":4},"",{"$nulls":32},0,0,0,0,0,0,0,0,0,1,0,null,"TODAY"]
[{"$nulls":46},"",{"$nulls":4},"",{"$nulls":32},0,0,0,0,0,0,0,0,0,1,0,null,"TODAY"]
[{"$nulls":46},"",{"$nulls":4},"",{"$nulls":32},0,0,0,0,0,0,0,0,0,1,0,null,"TODAY"]
[{"$nulls":46},"",{"$nulls":4},"",{"$nulls":32},0,0,0,0,0,0,0,0,0,1,0,null,"TODAY"]
[{"$nulls":46},"",{"$nulls":4},"",{"$nulls":32},0,0,0,0,0,0,0,0,0,1,0,null,"TODAY"]
[{"$nulls":46},"",{"$nulls":4},"",{"$nulls":32},0,0,0,0,0,0,0,0,0,1,0,null,"TODAY"]
[{"$nulls":46},"",{"$nulls":4},"",{"$nulls":32},0,0,0,0,0,0,0,0,0,1,0,null,"TODAY"]
[{"$nulls":46},"",{"$nulls":4},"",{"$nulls":32},0,0,0,0,0,0,0,0,0,1,0,null,"TODAY"]
[{"$nulls":46},"",{"$nulls":4},"",{"$nulls":32},0,0,0,0,0,0,0,0,0,1,0,null,"TODAY"]
[{"$nulls":46},"",{"$nulls":4},"",{"$nulls":32},0,0,0,0,0,0,0,0,0,1,0,null,"TODAY"]
[{"$nulls":46},"",{"$nulls":4},"",{"$nulls":32},0,0,0,0,0,0,0,0,0,1,0,null,"TODAY"]
[{"$nulls":46},"",{"$nulls":4},"",{"$nulls":32},0,0,0,0,0,0,0,0,0,1,0,null,"TODAY"]
[{"$nulls":46},"",{"$nulls":4},"",{"$nulls":32},0,0,0,0,0,0,0,0,0,1,0,null,"TODAY"]
[{"$nulls":46},"",{"$nulls":4},"",{"$nulls":32},0,0,0,0,0,0,0,0,0,1,0,null,"TODAY"]
[{"$nulls":46},"",{"$nulls":4},"",{"$nulls":32},0,0,0,0,0,0,0,0,0,1,0,null,"TODAY"]
[{"$nulls":46},"",{"$nulls":4},"",{"$nulls":32},0,0,0,0,0,0,0,0,0,1,0,null,"TODAY"]
[{"$nulls":46},"",{"$nulls":4},"",{"$nulls":32},0,0,0,0,0,0,0,0,0,1,0,null,"TODAY"]
[{"$nulls":46},"",{"$nulls":4},"",{"$nulls":32},0,0,0,0,0,0,0,0,0,1,0,null,"TODAY"]
[{"$nulls":46},"",{"$nulls":4},"",{"$nulls":32},0,0,0,0,0,0,0,0,0,1,0,null,"TODAY"]
[{"$nulls":46},"",{"$nulls":4},"",{"$nulls":32},0,0,0,0,0,0,0,0,0,1,0,null,"TODAY"]
[{"$nulls":46},"",{"$nulls":4},"",{"$nulls":32},0,0,0,0,0,0,0,0,0,1,0,null,"TODAY"]
[{"$nulls":46},"",{"$nulls":4},"",{"$nulls":32},0,0,0,0,0,0,0,0,0,1,0,null,"TODAY"]
[{"$nulls":46},"",{"$nulls":4},"",{"$nulls":32},0,0,0,0,0,0,0,0,0,1,0,null,"TODAY"]
[{"$nulls":46},"",{"$nulls":4},"",{"$nulls":32},0,0,0,0,0,0,0,0,0,1,0,null,"TODAY"]
[{"$nulls":46},"",{"$nulls":4},"",{"$nulls":32},0,0,0,0,0,0,0,0,0,1,0,null,"TODAY"]
[{"$nulls":46},"",{"$nulls":4},"",{"$nulls":32},0,0,0,0,0,0,0,0,0,1,0,null,"TODAY"]
[{"$nulls":46},"",{"$nulls":4},"",{"$nulls":32},0,0,0,0,0,0,0,0,0,1,0,null,"TODAY"]
[{"$nulls":46},"",{"$nulls":4},"",{"$nulls":32},0,0,0,0,0,0,0,0,0,1,0,null,"TODAY"]
[{"$nulls":46},"",{"$nulls":4},"",{"$nulls":32},0,0,0,0,0,0,0,0,0,1,0,null,"TODAY"]
[{"$nulls":46},"",{"$nulls":4},"",{"$nulls":32},0,0,0,0,0,0,0,0,0,1,0,null,"TODAY"]
[{"$nulls":46},"",{"$nulls":4},"",{"$nulls":32},0,0,0,0,0,0,0,0,0,1,0,null,"TODAY"]
[{"$nulls":46},"",{"$nulls":4},"",{"$nulls":32},0,0,0,0,0,0,0,0,0,1,0,null,"TODAY"]
[{"$nulls":46},"",{"$nulls":4},"",{"$nulls":32},0,0,0,0,0,0,0,0,0,1,0,null,"TODAY"]
[{"$nulls":46},"",{"$nulls":4},"",{"$nulls":32},0,0,0,0,0,0,0,0,0,1,0,null,"TODAY"]
[{"$nulls":46},"",{"$nulls":4},"",{"$nulls":32},0,0,0,0,0,0,0,0,0,1,0,null,"TODAY"]
[{"$nulls":46},"",{"$nulls":4},"",{"$nulls":32},0,0,0,0,0,0,0,0,0,1,0,null,"TODAY"]
[{"$nulls":46},"",{"$nulls":4},"",{"$nulls":32},0,0,0,0,0,0,0,0,0,1,0,null,"TODAY"]
[{"$nulls":46},"",{"$nulls":4},"",{"$nulls":32},0,0,0,0,0,0,0,0,0,1,0,null,"TODAY"]
[{"$nulls":46},"",{"$nulls":4},"",{"$nulls":32},0,0,0,0,0,0,0,0,0,1,0,null,"TODAY"]
[{"$nulls":46},"",{"$nulls":4},"",{"$nulls":32},0,0,0,0,0,0,0,0,0,1,0,null,"TODAY"]
[{"$nulls":46},"",{"$nulls":4},"",{"$nulls":32},0,0,0,0,0,0,0,0,0,1,0,null,"TODAY"]
[{"$nulls":46},"",{"$nulls":4},"",{"$nulls":32},0,0,0,0,0,0,0,0,0,1,0,null,"TODAY"]
[{"$nulls":46},"",{"$nulls":4},"",{"$nulls":32},0,0,0,0,0,0,0,0,0,1,0,null,"TODAY"]
[{"$nulls":46},"",{"$nulls":4},{"$f":"IF(AO459=0,\"\",IF(AU459>5,\"5+ Days Out\",IF(CI459=1,\"Completed\",IF(CK459=1,\"Due in Next 5 Days\",IF(CL459=1,\"Due Tomorrow\",IF(CM459=1,\"Due Today\",IF(CN459=1,\"Overdue\",\"\")))))))","v":""},{"$nulls":32},{"$f":"IF(F459>0,1,0)","v":0},{"$f":"IF(E459=\"x\",1,0)","v":0},{"$f":"IF(CG459+CH459=2,1,0)","v":0},{"$f":"CG459-CI459","v":0},{"$f":"IF(AND(AU459>1,AU459<6),1,0)","v":0},{"$f":"IF(AU459=1,1,0)","v":0},{"$f":"IF(AU459=0,1,0)","v":0},{"$f":"IF(AU459<0,1,0)","v":0},{"$f":"IF(CK459=1,1,IF(CL459=1,2,IF(CM459=1,3,IF(CN459=1,4,0))))*CJ459","v":0},{"$f":"IF(F459=0,1,0)+CJ459","v":1},{"$f":"CG459-CI459","v":0},null,"TODAY"]
[{"$nulls":46},{"$f":"IF(AO460=0,\"\",AO460-TODAY())","v":""},{"$nulls":4},"",{"$nulls":32},0,0,0,0,0,0,0,0,0,1,0,null,"TODAY"]
[{"$nulls":46},"",{"$nulls":4},"",{"$nulls":32},0,0,0,0,0,0,0,0,0,1,0,null,"TODAY"]
[{"$nulls":46},"",{"$nulls":4},"",{"$nulls":32},0,0,0,0,0,0,0,0,0,1,0,null,"TODAY"]
[{"$nulls":46},"",{"$nulls":4},"",{"$nulls":32},0,0,0,0,0,0,0,0,0,1,0,null,"TODAY"]
[{"$nulls":46},"",{"$nulls":4},"",{"$nulls":32},0,0,0,0,0,0,0,0,0,1,0,null,"TODAY"]
[{"$nulls":46},"",{"$nulls":4},"",{"$nulls":32},0,0,0,0,0,0,0,0,0,1,0,null,"TODAY"]
[{"$nulls":46},"",{"$nulls":4},"",{"$nulls":32},0,0,0,0,0,0,0,0,0,1,0,null,"TODAY"]
[{"$nulls":46},"",{"$nulls":4},"",{"$nulls":32},0,0,0,0,0,0,0,0,0,1,0,null,"TODAY"]
[{"$nulls":46},"",{"$nulls":4},"",{"$nulls":32},0,0,0,0,0,0,0,0,0,1,0,null,"TODAY"]
[{"$nulls":46},"",{"$nulls":4},"",{"$nulls":32},0,0,0,0,0,0,0,0,0,1,0,null,"TODAY"]
[{"$nulls":46},"",{"$nulls":4},"",{"$nulls":32},0,0,0,0,0,0,0,0,0,1,0,null,"TODAY"]
[{"$nulls":46},"",{"$nulls":4},"",{"$nulls":32},0,0,0,0,0,0,0,0,0,1,0,null,"TODAY"]
[{"$nulls":46},"",{"$nulls":4},"",{"$nulls":32},0,0,0,0,0,0,0,0,0,1,0,null,"TODAY"]
[{"$nulls":46},"",{"$nulls":4},"",{"$nulls":32},0,0,0,0,0,0,0,0,0,1,0,null,"TODAY"]
[{"$nulls":46},"",{"$nulls":4},"",{"$nulls":32},0,0,0,0,0,0,0,0,0,1,0,null,"TODAY"]
[{"$nulls":46},"",{"$nulls":4},"",{"$nulls":32},0,0,0,0,0,0,0,0,0,1,0,null,"TODAY"]
[{"$nulls":46},"",{"$nulls":4},"",{"$nulls":32},0,0,0,0,0,0,0,0,0,1,0,null,"TODAY"]
[{"$nulls":46},"",{"$nulls":4},"",{"$nulls":32},0,0,0,0,0,0,0,0,0,1,0,null,"TODAY"]
[{"$nulls":46},"",{"$nulls":4},"",{"$nulls":32},0,0,0,0,0,0,0,0,0,1,0,null,"TODAY"]
[{"$nulls":46},"",{"$nulls":4},"",{"$nulls":32},0,0,0,0,0,0,0,0,0,1,0,null,"TODAY"]
[{"$nulls":46},"",{"$nulls":4},"",{"$nulls":32},0,0,0,0,0,0,0,0,0,1,0,null,"TODAY"]
[{"$nulls":46},"",{"$nulls":4},"",{"$nulls":32},0,0,0,0,0,0,0,0,0,1,0,null,"TODAY"]
[{"$nulls":46},"",{"$nulls":4},"",{"$nulls":32},0,0,0,0,0,0,0,0,0,1,0,null,"TODAY"]
[{"$nulls":46},"",{"$nulls":4},"",{"$nulls":32},0,0,0,0,0,0,0,0,0,1,0,null,"TODAY"]
[{"$nulls":46},"",{"$nulls":4},"",{"$nulls":32},0,0,0,0,0,0,0,0,0,1,0,null,"TODAY"]
[{"$nulls":46},"",{"$nulls":4},"",{"$nulls":32},0,0,0,0,0,0,0,0,0,1,0,null,"TODAY"]
[{"$nulls":46},"",{"$nulls":4},"",{"$nulls":32},0,0,0,0,0,0,0,0,0,1,0,null,"TODAY"]
[{"$nulls":46},"",{"$nulls":4},"",{"$nulls":32},0,0,0,0,0,0,0,0,0,1,0,null,"TODAY"]
[{"$nulls":46},"",{"$nulls":4},"",{"$nulls":32},0,0,0,0,0,0,0,0,0,1,0,null,"TODAY"]
[{"$nulls":46},"",{"$nulls":4},"",{"$nulls":32},0,0,0,0,0,0,0,0,0,1,0,null,"TODAY"]
[{"$nulls":46},"",{"$nulls":4},"",{"$nulls":32},0,0,0,0,0,0,0,0,0,1,0,null,"TODAY"]
[{"$nulls":46},"",{"$nulls":4},"",{"$nulls":32},0,0,0,0,0,0,0,0,0,1,0,null,"TODAY"]
[{"$nulls":46},"",{"$nulls":4},"",{"$nulls":32},0,0,0,0,0,0,0,0,0,1,0,null,"TODAY"]
[{"$nulls":46},"",{"$nulls":4},"",{"$nulls":32},0,0,0,0,0,0,0,0,0,1,0,null,"TODAY"]
[{"$nulls":46},"",{"$nulls":4},"",{"$nulls":32},0,0,0,0,0,0,0,0,0,1,0,null,"TODAY"]
[{"$nulls":46},"",{"$nulls":4},"",{"$nulls":32},0,0,0,0,0,0,0,0,0,1,0,null,"TODAY"]
[{"$nulls":46},"",{"$nulls":4},"",{"$nulls":32},0,0,0,0,0,0,0,0,0,1,0,null,"TODAY"]
[{"$nulls":46},"",{"$nulls":4},"",{"$nulls":32},0,0,0,0,0,0,0,0,0,1,0,null,"TODAY"]
[{"$nulls":46},"",{"$nulls":4},"",{"$nulls":32},0,0,0,0,0,0,0,0,0,1,0,null,"TODAY"]
[{"$nulls":46},"",{"$nulls":4},"",{"$nulls":32},0,0,0,0,0,0,0,0,0,1,0,null,"TODAY"]
[{"$nulls":46},"",{"$nulls":4},"",{"$nulls":32},0,0,0,0,0,0,0,0,0,1,0,null,"TODAY"]
[{"$nulls":46},"",{"$nulls":4},"",{"$nulls":32},0,0,0,0,0,0,0,0,0,1,0,null,"TODAY"]
[{"$nulls":46},"",{"$nulls":4},"",{"$nulls":32},0,0,0,0,0,0,0,0,0,1,0,null,"TODAY"]
[{"$nulls":46},"",{"$nulls":4},"",{"$nulls":32},0,0,0,0,0,0,0,0,0,1,0,null,"TODAY"]
[{"$nulls":46},"",{"$nulls":4},"",{"$nulls":32},0,0,0,0,0,0,0,0,0,1,0,null,"TODAY"]
[{"$nulls":46},"",{"$nulls":4},"",{"$nulls":32},0,0,0,0,0,0,0,0,0,1,0,null,"TODAY"]
[{"$nulls":46},"",{"$nulls":4},"",{"$nulls":32},0,0,0,0,0,0,0,0,0,1,0,null,"TODAY"]
[{"$nulls":46},"",{"$nulls":4},"",{"$nulls":32},0,0,0,0,0,0,0,0,0,1,0,null,"TODAY"]
[{"$nulls":46},"",{"$nulls":4},"",{"$nulls":32},0,0,0,0,0,0,0,0,0,1,0,null,"TODAY"]
[{"$nulls":46},"",{"$nulls":4},"",{"$nulls":32},0,0,0,0,0,0,0,0,0,1,0,null,"TODAY"]
[{"$nulls":46},"",{"$nulls":4},"",{"$nulls":32},0,0,0,0,0,0,0,0,0,1,0,null,"TODAY"]
[{"$nulls":46},"",{"$nulls":4},"",{"$nulls":32},0,0,0,0,0,0,0,0,0,1,0,null,"TODAY"]
[{"$nulls":46},"",{"$nulls":4},"",{"$nulls":32},0,0,0,0,0,0,0,0,0,1,0,null,"TODAY"]
[{"$nulls":46},"",{"$nulls":4},"",{"$nulls":32},0,0,0,0,0,0,0,0,0,1,0,null,"TODAY"]
[{"$nulls":46},"",{"$nulls":4},"",{"$nulls":32},0,0,0,0,0,0,0,0,0,1,0,null,"TODAY"]
[{"$nulls":46},"",{"$nulls":4},"",{"$nulls":32},0,0,0,0,0,0,0,0,0,1,0,null,"TODAY"]
[{"$nulls":46},"",{"$nulls":4},"",{"$nulls":32},0,0,0,0,0,0,0,0,0,1,0,null,"TODAY"]
[{"$nulls":46},"",{"$nulls":4},"",{"$nulls":32},0,0,0,0,0,0,0,0,0,1,0,null,"TODAY"]
[{"$nulls":46},"",{"$nulls":4},"",{"$nulls":32},0,0,0,0,0,0,0,0,0,1,0,null,"TODAY"]
[{"$nulls":46},"",{"$nulls":4},"",{"$nulls":32},0,0,0,0,0,0,0,0,0,1,0,null,"TODAY"]
[{"$nulls":46},"",{"$nulls":4},"",{"$nulls":32},0,0,0,0,0,0,0,0,0,1,0,null,"TODAY"]
[{"$nulls":46},"",{"$nulls":4},"",{"$nulls":32},0,0,0,0,0,0,0,0,0,1,0,null,"TODAY"]
[{"$nulls":46},"",{"$nulls":4},"",{"$nulls":32},0,0,0,0,0,0,0,0,0,1,0,null,"TODAY"]
[{"$nulls":46},"",{"$nulls":4},{"$f":"IF(AO523=0,\"\",IF(AU523>5,\"5+ Days Out\",IF(CI523=1,\"Completed\",IF(CK523=1,\"Due in Next 5 Days\",IF(CL523=1,\"Due Tomorrow\",IF(CM523=1,\"Due Today\",IF(CN523=1,\"Overdue\",\"\")))))))","v":""},{"$nulls":32},{"$f":"IF(F523>0,1,0)","v":0},{"$f":"IF(E523=\"x\",1,0)","v":0},{"$f":"IF(CG523+CH523=2,1,0)","v":0},{"$f":"CG523-CI523","v":0},{"$f":"IF(AND(AU523>1,AU523<6),1,0)","v":0},{"$f":"IF(AU523=1,1,0)","v":0},{"$f":"IF(AU523=0,1,0)","v":0},{"$f":"IF(AU523<0,1,0)","v":0},{"$f":"IF(CK523=1,1,IF(CL523=1,2,IF(CM523=1,3,IF(CN523=1,4,0))))*CJ523","v":0},{"$f":"IF(F523=0,1,0)+CJ523","v":1},{"$f":"CG523-CI523","v":0},null,"TODAY"]
[{"$nulls":46},{"$f":"IF(AO524=0,\"\",AO524-TODAY())","v":""},{"$nulls":4},"",{"$nulls":32},0,0,0,0,0,0,0,0,0,1,0,null,"TODAY"]
[{"$nulls":46},"",{"$nulls":4},"",{"$nulls":32},0,0,0,0,0,0,0,0,0,1,0,null,"TODAY"]
[{"$nulls":46},"",{"$nulls":4},"",{"$nulls":32},0,0,0,0,0,0,0,0,0,1,0,null,"TODAY"]
[{"$nulls":46},"",{"$nulls":4},"",{"$nulls":32},0,0,0,0,0,0,0,0,0,1,0,null,"TODAY"]
[{"$nulls":46},"",{"$nulls":4},"",{"$nulls":32},0,0,0,0,0,0,0,0,0,1,0,null,"TODAY"]
[{"$nulls":46},"",{"$nulls":4},"",{"$nulls":32},0,0,0,0,0,0,0,0,0,1,0,null,"TODAY"]
[{"$nulls":46},"",{"$nulls":4},"",{"$nulls":32},0,0,0,0,0,0,0,0,0,1,0,null,"TODAY"]
[{"$nulls":46},"",{"$nulls":4},"",{"$nulls":32},0,0,0,0,0,0,0,0,0,1,0,null,"TODAY"]
[{"$nulls":46},"",{"$nulls":4},"",{"$nulls":32},0,0,0,0,0,0,0,0,0,1,0,null,"TODAY"]
[{"$nulls":46},"",{"$nulls":4},"",{"$nulls":32},0,0,0,0,0,0,0,0,0,1,0,null,"TODAY"]
[{"$nulls":46},"",{"$nulls":4},"",{"$nulls":32},0,0,0,0,0,0,0,0,0,1,0,null,"TODAY"]
[{"$nulls":46},"",{"$nulls":4},"",{"$nulls":32},0,0,0,0,0,0,0,0,0,1,0,null,"TODAY"]
[{"$nulls":46},"",{"$nulls":4},"",{"$nulls":32},0,0,0,0,0,0,0,0,0,1,0,null,"TODAY"]
[{"$nulls":46},"",{"$nulls":4},"",{"$nulls":32},0,0,0,0,0,0,0,0,0,1,0,null,"TODAY"]
[{"$nulls":46},"",{"$nulls":4},"",{"$nulls":32},0,0,0,0,0,0,0,0,0,1,0,null,"TODAY"]
[{"$nulls":46},"",{"$nulls":4},"",{"$nulls":32},0,0,0,0,0,0,0,0,0,1,0,null,"TODAY"]
[{"$nulls":46},"",{"$nulls":4},"",{"$nulls":32},0,0,0,0,0,0,0,0,0,1,0,null,"TODAY"]
[{"$nulls":46},"",{"$nulls":4},"",{"$nulls":32},0,0,0,0,0,0,0,0,0,1,0,null,"TODAY"]
[{"$nulls":46},"",{"$nulls":4},"",{"$nulls":32},0,0,0,0,0,0,0,0,0,1,0,null,"TODAY"]
[{"$nulls":46},"",{"$nulls":4},"",{"$nulls":32},0,0,0,0,0,0,0,0,0,1,0,null,"TODAY"]
[{"$nulls":46},"",{"$nulls":4},"",{"$nulls":32},0,0,0,0,0,0,0,0,0,1,0,null,"TODAY"]
[{"$nulls":46},"",{"$nulls":4},"",{"$nulls":32},0,0,0,0,0,0,0,0,0,1,0,null,"TODAY"]
[{"$nulls":46},"",{"$nulls":4},"",{"$nulls":32},0,0,0,0,0,0,0,0,0,1,0,null,"TODAY"]
[{"$nulls":46},"",{"$nulls":4},"",{"$nulls":32},0,0,0,0,0,0,0,0,0,1,0,null,"TODAY"]
[{"$nulls":46},"",{"$nulls":4},"",{"$nulls":32},0,0,0,0,0,0,0,0,0,1,0,null,"TODAY"]
[{"$nulls":46},"",{"$nulls":4},"",{"$nulls":32},0,0,0,0,0,0,0,0,0,1,0,null,"TODAY"]
[{"$nulls":46},"",{"$nulls":4},"",{"$nulls":32},0,0,0,0,0,0,0,0,0,1,0,null,"TODAY"]
[{"$nulls":46},"",{"$nulls":4},"",{"$nulls":32},0,0,0,0,0,0,0,0,0,1,0,null,"TODAY"]
[{"$nulls":46},"",{"$nulls":4},"",{"$nulls":32},0,0,0,0,0,0,0,0,0,1,0,null,"TODAY"]
[{"$nulls":46},"",{"$nulls":4},"",{"$nulls":32},0,0,0,0,0,0,0,0,0,1,0,null,"TODAY"]
[{"$nulls":46},"",{"$nulls":4},"",{"$nulls":32},0,0,0,0,0,0,0,0,0,1,0,null,"TODAY"]
[{"$nulls":46},"",{"$nulls":4},"",{"$nulls":32},0,0,0,0,0,0,0,0,0,1,0,null,"TODAY"]
[{"$nulls":46},"",{"$nulls":4},"",{"$nulls":32},0,0,0,0,0,0,0,0,0,1,0,null,"TODAY"]
[{"$nulls":46},"",{"$nulls":4},"",{"$nulls":32},0,0,0,0,0,0,0,0,0,1,0,null,"TODAY"]
[{"$nulls":46},"",{"$nulls":4},"",{"$nulls":32},0,0,0,0,0,0,0,0,0,1,0,null,"TODAY"]
[{"$nulls":46},"",{"$nulls":4},"",{"$nulls":32},0,0,0,0,0,0,0,0,0,1,0,null,"TODAY"]
[{"$nulls":46},"",{"$nulls":4},"",{"$nulls":32},0,0,0,0,0,0,0,0,0,1,0,null,"TODAY"]
[{"$nulls":46},"",{"$nulls":4},"",{"$nulls":32},0,0,0,0,0,0,0,0,0,1,0,null,"TODAY"]
[{"$nulls":46},"",{"$nulls":4},"",{"$nulls":32},0,0,0,0,0,0,0,0,0,1,0,null,"TODAY"]
[{"$nulls":46},"",{"$nulls":4},"",{"$nulls":32},0,0,0,0,0,0,0,0,0,1,0,null,"TODAY"]
[{"$nulls":46},"",{"$nulls":4},"",{"$nulls":32},0,0,0,0,0,0,0,0,0,1,0,null,"TODAY"]
[{"$nulls":46},"",{"$nulls":4},"",{"$nulls":32},0,0,0,0,0,0,0,0,0,1,0,null,"TODAY"]
[{"$nulls":46},"",{"$nulls":4},"",{"$nulls":32},0,0,0,0,0,0,0,0,0,1,0,null,"TODAY"]
[{"$nulls":46},"",{"$nulls":4},"",{"$nulls":32},0,0,0,0,0,0,0,0,0,1,0,null,"TODAY"]
[{"$nulls":46},"",{"$nulls":4},"",{"$nulls":32},0,0,0,0,0,0,0,0,0,1,0,null,"TODAY"]
[{"$nulls":46},"",{"$nulls":4},"",{"$nulls":32},0,0,0,0,0,0,0,0,0,1,0,null,"TODAY"]
[{"$nulls":46},"",{"$nulls":4},"",{"$nulls":32},0,0,0,0,0,0,0,0,0,1,0,null,"TODAY"]
[{"$nulls":46},"",{"$nulls":4},"",{"$nulls":32},0,0,0,0,0,0,0,0,0,1,0,null,"TODAY"]
[{"$nulls":46},"",{"$nulls":4},"",{"$nulls":32},0,0,0,0,0,0,0,0,0,1,0,null,"TODAY"]
[{"$nulls":46},"",{"$nulls":4},"",{"$nulls":32},0,0,0,0,0,0,0,0,0,1,0,null,"TODAY"]
[{"$nulls":46},"",{"$nulls":4},"",{"$nulls":32},0,0,0,0,0,0,0,0,0,1,0,null,"TODAY"]
[{"$nulls":46},"",{"$nulls":4},"",{"$nulls":32},0,0,0,0,0,0,0,0,0,1,0,null,"TODAY"]
[{"$nulls":46},"",{"$nulls":4},"",{"$nulls":32},0,0,0,0,0,0,0,0,0,1,0,null,"TODAY"]
[{"$nulls":46},"",{"$nulls":4},"",{"$nulls":32},0,0,0,0,0,0,0,0,0,1,0,null,"TODAY"]
[{"$nulls":46},"",{"$nulls":4},"",{"$nulls":32},0,0,0,0,0,0,0,0,0,1,0,null,"TODAY"]
[{"$nulls":46},"",{"$nulls":4},"",{"$nulls":32},0,0,0,0,0,0,0,0,0,1,0,null,"TODAY"]
[{"$nulls":46},"",{"$nulls":4},"",{"$nulls":32},0,0,0,0,0,0,0,0,0,1,0,null,"TODAY"]
[{"$nulls":46},"",{"$nulls":4},"",{"$nulls":32},0,0,0,0,0,0,0,0,0,1,0,null,"TODAY"]
[{"$nulls":46},"",{"$nulls":4},"",{"$nulls":32},0,0,0,0,0,0,0,0,0,1,0,null,"TODAY"]
[{"$nulls":46},"",{"$nulls":4},"",{"$nulls":32},0,0,0,0,0,0,0,0,0,1,0,null,"TODAY"]
[{"$nulls":46},"",{"$nulls":4},"",{"$nulls":32},0,0,0,0,0,0,0,0,0,1,0,null,"TODAY"]
[{"$nulls":46},"",{"$nulls":4},"",{"$nulls":32},0,0,0,0,0,0,0,0,0,1,0,null,"TODAY"]
[{"$nulls":46},"",{"$nulls":4},"",{"$nulls":32},0,0,0,0,0,0,0,0,0,1,0,null,"TODAY"]
[{"$nulls":46},"",{"$nulls":4},{"$f":"IF(AO587=0,\"\",IF(AU587>5,\"5+ Days Out\",IF(CI587=1,\"Completed\",IF(CK587=1,\"Due in Next 5 Days\",IF(CL587=1,\"Due Tomorrow\",IF(CM587=1,\"Due Today\",IF(CN587=1,\"Overdue\",\"\")))))))","v":""},{"$nulls":32},{"$f":"IF(F587>0,1,0)","v":0},{"$f":"IF(E587=\"x\",1,0)","v":0},{"$f":"IF(CG587+CH587=2,1,0)","v":0},{"$f":"CG587-CI587","v":0},{"$f":"IF(AND(AU587>1,AU587<6),1,0)","v":0},{"$f":"IF(AU587=1,1,0)","v":0},{"$f":"IF(AU587=0,1,0)","v":0},{"$f":"IF(AU587<0,1,0)","v":0},{"$f":"IF(CK587=1,1,IF(CL587=1,2,IF(CM587=1,3,IF(CN587=1,4,0))))*CJ587","v":0},{"$f":"IF(F587=0,1,0)+CJ587","v":1},{"$f":"CG587-CI587","v":0},null,"TODAY"]
[{"$nulls":46},{"$f":"IF(AO588=0,\"\",AO588-TODAY())","v":""},{"$nulls":4},"",{"$nulls":32},0,0,0,0,0,0,0,0,0,1,0,null,"TODAY"]
[{"$nulls":46},"",{"$nulls":4},"",{"$nulls":32},0,0,0,0,0,0,0,0,0,1,0,null,"TODAY"]
[{"$nulls":46},"",{"$nulls":4},"",{"$nulls":32},0,0,0,0,0,0,0,0,0,1,0,null,"TODAY"]
[{"$nulls":46},"",{"$nulls":4},"",{"$nulls":32},0,0,0,0,0,0,0,0,0,1,0,null,"TODAY"]
[{"$nulls":46},"",{"$nulls":4},"",{"$nulls":32},0,0,0,0,0,0,0,0,0,1,0,null,"TODAY"]
[{"$nulls":46},"",{"$nulls":4},"",{"$nulls":32},0,0,0,0,0,0,0,0,0,1,0,null,"TODAY"]
[{"$nulls":46},"",{"$nulls":4},"",{"$nulls":32},0,0,0,0,0,0,0,0,0,1,0,null,"TODAY"]
[{"$nulls":46},"",{"$nulls":4},"",{"$nulls":32},0,0,0,0,0,0,0,0,0,1,0,null,"TODAY"]
[{"$nulls":46},"",{"$nulls":4},"",{"$nulls":32},0,0,0,0,0,0,0,0,0,1,0,null,"TODAY"]
[{"$nulls":46},"",{"$nulls":4},"",{"$nulls":32},0,0,0,0,0,0,0,0,0,1,0,null,"TODAY"]
[{"$nulls":46},"",{"$nulls":4},"",{"$nulls":32},0,0,0,0,0,0,0,0,0,1,0,null,"TODAY"]
[{"$nulls":46},"",{"$nulls":4},"",{"$nulls":32},0,0,0,0,0,0,0,0,0,1,0,null,"TODAY"]
[{"$nulls":46},"",{"$nulls":4},"",{"$nulls":32},0,0,0,0,0,0,0,0,0,1,0,null,"TODAY"]
[{"$nulls":46},"",{"$nulls":4},"",{"$nulls":32},0,0,0,0,0,0,0,0,0,1,0,null,"TODAY"]
[{"$nulls":46},"",{"$nulls":4},"",{"$nulls":32},0,0,0,0,0,0,0,0,0,1,0,null,"TODAY"]
[{"$nulls":46},"",{"$nulls":4},"",{"$nulls":32},0,0,0,0,0,0,0,0,0,1,0,null,"TODAY"]
[{"$nulls":46},"",{"$nulls":4},"",{"$nulls":32},0,0,0,0,0,0,0,0,0,1,0,null,"TODAY"]
[{"$nulls":46},"",{"$nulls":4},"",{"$nulls":32},0,0,0,0,0,0,0,0,0,1,0,null,"TODAY"]
[{"$nulls":46},"",{"$nulls":4},"",{"$nulls":32},0,0,0,0,0,0,0,0,0,1,0,null,"TODAY"]
[{"$nulls":46},"",{"$nulls":4},"",{"$nulls":32},0,0,0,0,0,0,0,0,0,1,0,null,"TODAY"]
[{"$nulls":46},"",{"$nulls":4},"",{"$nulls":32},0,0,0,0,0,0,0,0,0,1,0,null,"TODAY"]
[{"$nulls":46},"",{"$nulls":4},"",{"$nulls":32},0,0,0,0,0,0,0,0,0,1,0,null,"TODAY"]
[{"$nulls":46},"",{"$nulls":4},"",{"$nulls":32},0,0,0,0,0,0,0,0,0,1,0,null,"TODAY"]
[{"$nulls":46},"",{"$nulls":4},"",{"$nulls":32},0,0,0,0,0,0,0,0,0,1,0,null,"TODAY"]
[{"$nulls":46},"",{"$nulls":4},"",{"$nulls":32},0,0,0,0,0,0,0,0,0,1,0,null,"TODAY"]
[{"$nulls":46},"",{"$nulls":4},"",{"$nulls":32},0,0,0,0,0,0,0,0,0,1,0,null,"TODAY"]
[{"$nulls":46},"",{"$nulls":4},"",{"$nulls":32},0,0,0,0,0,0,0,0,0,1,0,null,"TODAY"]
[{"$nulls":46},"",{"$nulls":4},"",{"$nulls":32},0,0,0,0,0,0,0,0,0,1,0,null,"TODAY"]
[{"$nulls":46},"",{"$nulls":4},"",{"$nulls":32},0,0,0,0,0,0,0,0,0,1,0,null,"TODAY"]
[{"$nulls":46},"",{"$nulls":4},"",{"$nulls":32},0,0,0,0,0,0,0,0,0,1,0,null,"TODAY"]
[{"$nulls":46},"",{"$nulls":4},"",{"$nulls":32},0,0,0,0,0,0,0,0,0,1,0,null,"TODAY"]
[{"$nulls":46},"",{"$nulls":4},"",{"$nulls":32},0,0,0,0,0,0,0,0,0,1,0,null,"TODAY"]
[{"$nulls":46},"",{"$nulls":4},"",{"$nulls":32},0,0,0,0,0,0,0,0,0,1,0,null,"TODAY"]
[{"$nulls":46},"",{"$nulls":4},"",{"$nulls":32},0,0,0,0,0,0,0,0,0,1,0,null,"TODAY"]
[{"$nulls":46},"",{"$nulls":4},"",{"$nulls":32},0,0,0,0,0,0,0,0,0,1,0,null,"TODAY"]
[{"$nulls":46},"",{"$nulls":4},"",{"$nulls":32},0,0,0,0,0,0,0,0,0,1,0,null,"TODAY"]
[{"$nulls":46},"",{"$nulls":4},"",{"$nulls":32},0,0,0,0,0,0,0,0,0,1,0,null,"TODAY"]
[{"$nulls":46},"",{"$nulls":4},"",{"$nulls":32},0,0,0,0,0,0,0,0,0,1,0,null,"TODAY"]
[{"$nulls":46},"",{"$nulls":4},"",{"$nulls":32},0,0,0,0,0,0,0,0,0,1,0,null,"TODAY"]
[{"$nulls":46},"",{"$nulls":4},"",{"$nulls":32},0,0,0,0,0,0,0,0,0,1,0,null,"TODAY"]
[{"$nulls":46},"",{"$nulls":4},"",{"$nulls":32},0,0,0,0,0,0,0,0,0,1,0,null,"TODAY"]
[{"$nulls":46},"",{"$nulls":4},"",{"$nulls":32},0,0,0,0,0,0,0,0,0,1,0,null,"TODAY"]
[{"$nulls":46},"",{"$nulls":4},"",{"$nulls":32},0,0,0,0,0,0,0,0,0,1,0,null,"TODAY"]
[{"$nulls":46},"",{"$nulls":4},"",{"$nulls":32},0,0,0,0,0,0,0,0,0,1,0,null,"TODAY"]
[{"$nulls":46},"",{"$nulls":4},"",{"$nulls":32},0,0,0,0,0,0,0,0,0,1,0,null,"TODAY"]
[{"$nulls":46},"",{"$nulls":4},"",{"$nulls":32},0,0,0,0,0,0,0,0,0,1,0,null,"TODAY"]
[{"$nulls":46},"",{"$nulls":4},"",{"$nulls":32},0,0,0,0,0,0,0,0,0,1,0,null,"TODAY"]
[{"$nulls":46},"",{"$nulls":4},"",{"$nulls":32},0,0,0,0,0,0,0,0,0,1,0,null,"TODAY"]
[{"$nulls":46},"",{"$nulls":4},"",{"$nulls":32},0,0,0,0,0,0,0,0,0,1,0,null,"TODAY"]
[{"$nulls":46},"",{"$nulls":4},"",{"$nulls":32},0,0,0,0,0,0,0,0,0,1,0,null,"TODAY"]
[{"$nulls":46},"",{"$nulls":4},"",{"$nulls":32},0,0,0,0,0,0,0,0,0,1,0,null,"TODAY"]
[{"$nulls":46},"",{"$nulls":4},"",{"$nulls":32},0,0,0,0,0,0,0,0,0,1,0,null,"TODAY"]
[{"$nulls":46},"",{"$nulls":4},"",{"$nulls":32},0,0,0,0,0,0,0,0,0,1,0,null,"TODAY"]
[{"$nulls":46},"",{"$nulls":4},"",{"$nulls":32},0,0,0,0,0,0,0,0,0,1,0,null,"TODAY"]
[{"$nulls":46},"",{"$nulls":4},"",{"$nulls":32},0,0,0,0,0,0,0,0,0,1,0,null,"TODAY"]
[{"$nulls":46},"",{"$nulls":4},"",{"$nulls":32},0,0,0,0,0,0,0,0,0,1,0,null,"TODAY"]
[{"$nulls":46},"",{"$nulls":4},"",{"$nulls":32},0,0,0,0,0,0,0,0,0,1,0,null,"TODAY"]
[{"$nulls":46},"",{"$nulls":4},"",{"$nulls":32},0,0,0,0,0,0,0,0,0,1,0,null,"TODAY"]
[{"$nulls":46},"",{"$nulls":4},"",{"$nulls":32},0,0,0,0,0,0,0,0,0,1,0,null,"TODAY"]
[{"$nulls":46},"",{"$nulls":4},"",{"$nulls":32},0,0,0,0,0,0,0,0,0,1,0,null,"TODAY"]
[{"$nulls":46},"",{"$nulls":4},"",{"$nulls":32},0,0,0,0,0,0,0,0,0,1,0,null,"TODAY"]
[{"$nulls":46},"",{"$nulls":4},"",{"$nulls":32},0,0,0,0,0,0,0,0,0,1,0,null,"TODAY"]
[{"$nulls":46},"",{"$nulls":4},"",{"$nulls":32},0,0,0,0,0,0,0,0,0,1,0,null,"TODAY"]
[{"$nulls":46},"",{"$nulls":4},{"$f":"IF(AO651=0,\"\",IF(AU651>5,\"5+ Days Out\",IF(CI651=1,\"Completed\",IF(CK651=1,\"Due in Next 5 Days\",IF(CL651=1,\"Due Tomorrow\",IF(CM651=1,\"Due Today\",IF(CN651=1,\"Overdue\",\"\")))))))","v":""},{"$nulls":32},{"$f":"IF(F651>0,1,0)","v":0},{"$f":"IF(E651=\"x\",1,0)","v":0},{"$f":"IF(CG651+CH651=2,1,0)","v":0},{"$f":"CG651-CI651","v":0},{"$f":"IF(AND(AU651>1,AU651<6),1,0)","v":0},{"$f":"IF(AU651=1,1,0)","v":0},{"$f":"IF(AU651=0,1,0)","v":0},{"$f":"IF(AU651<0,1,0)","v":0},{"$f":"IF(CK651=1,1,IF(CL651=1,2,IF(CM651=1,3,IF(CN651=1,4,0))))*CJ651","v":0},{"$f":"IF(F651=0,1,0)+CJ651","v":1},{"$f":"CG651-CI651","v":0},null,"TODAY"]
[{"$nulls":46},{"$f":"IF(AO652=0,\"\",AO652-TODAY())","v":""},{"$nulls":4},"",{"$nulls":32},0,0,0,0,0,0,0,0,0,1,0,null,"TODAY"]
[{"$nulls":46},"",{"$nulls":4},"",{"$nulls":32},0,0,0,0,0,0,0,0,0,1,0,null,"TODAY"]
[{"$nulls":46},"",{"$nulls":4},"",{"$nulls":32},0,0,0,0,0,0,0,0,0,1,0,null,"TODAY"]
[{"$nulls":46},"",{"$nulls":4},"",{"$nulls":32},0,0,0,0,0,0,0,0,0,1,0,null,"TODAY"]
[{"$nulls":46},"",{"$nulls":4},"",{"$nulls":32},0,0,0,0,0,0,0,0,0,1,0,null,"TODAY"]
[{"$nulls":46},"",{"$nulls":4},"",{"$nulls":32},0,0,0,0,0,0,0,0,0,1,0,null,"TODAY"]
[{"$nulls":46},"",{"$nulls":4},"",{"$nulls":32},0,0,0,0,0,0,0,0,0,1,0,null,"TODAY"]
[{"$nulls":46},"",{"$nulls":4},"",{"$nulls":32},0,0,0,0,0,0,0,0,0,1,0,null,"TODAY"]
[{"$nulls":46},"",{"$nulls":4},"",{"$nulls":32},0,0,0,0,0,0,0,0,0,1,0,null,"TODAY"]
[{"$nulls":46},"",{"$nulls":4},"",{"$nulls":32},0,0,0,0,0,0,0,0,0,1,0,null,"TODAY"]
[{"$nulls":46},"",{"$nulls":4},"",{"$nulls":32},0,0,0,0,0,0,0,0,0,1,0,null,"TODAY"]
[{"$nulls":46},"",{"$nulls":4},"",{"$nulls":32},0,0,0,0,0,0,0,0,0,1,0,null,"TODAY"]
[{"$nulls":46},"",{"$nulls":4},"",{"$nulls":32},0,0,0,0,0,0,0,0,0,1,0,null,"TODAY"]
[{"$nulls":46},"",{"$nulls":4},"",{"$nulls":32},0,0,0,0,0,0,0,0,0,1,0,null,"TODAY"]
[{"$nulls":46},"",{"$nulls":4},"",{"$nulls":32},0,0,0,0,0,0,0,0,0,1,0,null,"TODAY"]
[{"$nulls":46},"",{"$nulls":4},"",{"$nulls":32},0,0,0,0,0,0,0,0,0,1,0,null,"TODAY"]
[{"$nulls":46},"",{"$nulls":4},"",{"$nulls":32},0,0,0,0,0,0,0,0,0,1,0,null,"TODAY"]
[{"$nulls":46},"",{"$nulls":4},"",{"$nulls":32},0,0,0,0,0,0,0,0,0,1,0,null,"TODAY"]
[{"$nulls":46},"",{"$nulls":4},"",{"$nulls":32},0,0,0,0,0,0,0,0,0,1,0,null,"TODAY"]
[{"$nulls":46},"",{"$nulls":4},"",{"$nulls":32},0,0,0,0,0,0,0,0,0,1,0,null,"TODAY"]
[{"$nulls":46},"",{"$nulls":4},"",{"$nulls":32},0,0,0,0,0,0,0,0,0,1,0,null,"TODAY"]
[{"$nulls":46},"",{"$nulls":4},"",{"$nulls":32},0,0,0,0,0,0,0,0,0,1,0,null,"TODAY"]
[{"$nulls":46},"",{"$nulls":4},"",{"$nulls":32},0,0,0,0,0,0,0,0,0,1,0,null,"TODAY"]
[{"$nulls":46},"",{"$nulls":4},"",{"$nulls":32},0,0,0,0,0,0,0,0,0,1,0,null,"TODAY"]
[{"$nulls":46},"",{"$nulls":4},"",{"$nulls":32},0,0,0,0,0,0,0,0,0,1,0,null,"TODAY"]
[{"$nulls":46},"",{"$nulls":4},"",{"$nulls":32},0,0,0,0,0,0,0,0,0,1,0,null,"TODAY"]
[{"$nulls":46},"",{"$nulls":4},"",{"$nulls":32},0,0,0,0,0,0,0,0,0,1,0,null,"TODAY"]
[{"$nulls":46},"",{"$nulls":4},"",{"$nulls":32},0,0,0,0,0,0,0,0,0,1,0,null,"TODAY"]
[{"$nulls":46},"",{"$nulls":4},"",{"$nulls":32},0,0,0,0,0,0,0,0,0,1,0,null,"TODAY"]
[{"$nulls":46},"",{"$nulls":4},"",{"$nulls":32},0,0,0,0,0,0,0,0,0,1,0,null,"TODAY"]
[{"$nulls":46},"",{"$nulls":4},"",{"$nulls":32},0,0,0,0,0,0,0,0,0,1,0,null,"TODAY"]
[{"$nulls":46},"",{"$nulls":4},"",{"$nulls":32},0,0,0,0,0,0,0,0,0,1,0,null,"TODAY"]
[{"$nulls":46},"",{"$nulls":4},"",{"$nulls":32},0,0,0,0,0,0,0,0,0,1,0,null,"TODAY"]
[{"$nulls":46},"",{"$nulls":4},"",{"$nulls":32},0,0,0,0,0,0,0,0,0,1,0,null,"TODAY"]
[{"$nulls":46},"",{"$nulls":4},"",{"$nulls":32},0,0,0,0,0,0,0,0,0,1,0,null,"TODAY"]
[{"$nulls":46},"",{"$nulls":4},"",{"$nulls":32},0,0,0,0,0,0,0,0,0,1,0,null,"TODAY"]
[{"$nulls":46},"",{"$nulls":4},"",{"$nulls":32},0,0,0,0,0,0,0,0,0,1,0,null,"TODAY"]
[{"$nulls":46},"",{"$nulls":4},"",{"$nulls":32},0,0,0,0,0,0,0,0,0,1,0,null,"TODAY"]
[{"$nulls":46},"",{"$nulls":4},"",{"$nulls":32},0,0,0,0,0,0,0,0,0,1,0,null,"TODAY"]
[{"$nulls":46},"",{"$nulls":4},"",{"$nulls":32},0,0,0,0,0,0,0,0,0,1,0,null,"TODAY"]
[{"$nulls":46},"",{"$nulls":4},"",{"$nulls":32},0,0,0,0,0,0,0,0,0,1,0,null,"TODAY"]
[{"$nulls":46},"",{"$nulls":4},"",{"$nulls":32},0,0,0,0,0,0,0,0,0,1,0,null,"TODAY"]
[{"$nulls":46},"",{"$nulls":4},"",{"$nulls":32},0,0,0,0,0,0,0,0,0,1,0,null,"TODAY"]
[{"$nulls":46},"",{"$nulls":4},"",{"$nulls":32},0,0,0,0,0,0,0,0,0,1,0,null,"TODAY"]
[{"$nulls":46},"",{"$nulls":4},"",{"$nulls":32},0,0,0,0,0,0,0,0,0,1,0,null,"TODAY"]
[{"$nulls":46},"",{"$nulls":4},"",{"$nulls":32},0,0,0,0,0,0,0,0,0,1,0,null,"TODAY"]
[{"$nulls":46},"",{"$nulls":4},"",{"$nulls":32},0,0,0,0,0,0,0,0,0,1,0,null,"TODAY"]
[{"$nulls":46},"",{"$nulls":4},"",{"$nulls":32},0,0,0,0,0,0,0,0,0,1,0,null,"TODAY"]
[{"$nulls":46},"",{"$nulls":4},"",{"$nulls":32},0,0,0,0,0,0,0,0,0,1,0,null,"TODAY"]
[{"$nulls":46},"",{"$nulls":4},"",{"$nulls":32},0,0,0,0,0,0,0,0,0,1,0,null,"TODAY"]
[{"$nulls":46},"",{"$nulls":4},"",{"$nulls":32},0,0,0,0,0,0,0,0,0,1,0,null,"TODAY"]
[{"$nulls":46},"",{"$nulls":4},"",{"$nulls":32},0,0,0,0,0,0,0,0,0,1,0,null,"TODAY"]
[{"$nulls":46},"",{"$nulls":4},"",{"$nulls":32},0,0,0,0,0,0,0,0,0,1,0,null,"TODAY"]
[{"$nulls":46},"",{"$nulls":4},"",{"$nulls":32},0,0,0,0,0,0,0,0,0,1,0,null,"TODAY"]
[{"$nulls":46},"",{"$nulls":4},"",{"$nulls":32},0,0,0,0,0,0,0,0,0,1,0,null,"TODAY"]
[{"$nulls":46},"",{"$nulls":4},"",{"$nulls":32},0,0,0,0,0,0,0,0,0,1,0,null,"TODAY"]
[{"$nulls":46},"",{"$nulls":4},"",{"$nulls":32},0,0,0,0,0,0,0,0,0,1,0,null,"TODAY"]
[{"$nulls":46},"",{"$nulls":4},"",{"$nulls":32},0,0,0,0,0,0,0,0,0,1,0,null,"TODAY"]
[{"$nulls":46},"",{"$nulls":4},"",{"$nulls":32},0,0,0,0,0,0,0,0,0,1,0,null,"TODAY"]
[{"$nulls":46},"",{"$nulls":4},"",{"$nulls":32},0,0,0,0,0,0,0,0,0,1,0,null,"TODAY"]
[{"$nulls":46},"",{"$nulls":4},"",{"$nulls":32},0,0,0,0,0,0,0,0,0,1,0,null,"TODAY"]
[{"$nulls":46},"",{"$nulls":4},"",{"$nulls":32},0,0,0,0,0,0,0,0,0,1,0,null,"TODAY"]
[{"$nulls":46},"",{"$nulls":4},"",{"$nulls":32},0,0,0,0,0,0,0,0,0,1,0,null,"TODAY"]
[{"$nulls":46},"",{"$nulls":4},{"$f":"IF(AO715=0,\"\",IF(AU715>5,\"5+ Days Out\",IF(CI715=1,\"Completed\",IF(CK715=1,\"Due in Next 5 Days\",IF(CL715=1,\"Due Tomorrow\",IF(CM715=1,\"Due Today\",IF(CN715=1,\"Overdue\",\"\")))))))","v":""},{"$nulls":32},{"$f":"IF(F715>0,1,0)","v":0},{"$f":"IF(E715=\"x\",1,0)","v":0},{"$f":"IF(CG715+CH715=2,1,0)","v":0},{"$f":"CG715-CI715","v":0},{"$f":"IF(AND(AU715>1,AU715<6),1,0)","v":0},{"$f":"IF(AU715=1,1,0)","v":0},{"$f":"IF(AU715=0,1,0)","v":0},{"$f":"IF(AU715<0,1,0)","v":0},{"$f":"IF(CK715=1,1,IF(CL715=1,2,IF(CM715=1,3,IF(CN715=1,4,0))))*CJ715","v":0},{"$f":"IF(F715=0,1,0)+CJ715","v":1},{"$f":"CG715-CI715","v":0},null,"TODAY"]
[{"$nulls":46},{"$f":"IF(AO716=0,\"\",AO716-TODAY())","v":""},{"$nulls":4},"",{"$nulls":32},0,0,0,0,0,0,0,0,0,1,0,null,"TODAY"]
[{"$nulls":46},"",{"$nulls":4},"",{"$nulls":32},0,0,0,0,0,0,0,0,0,1,0,null,"TODAY"]
[{"$nulls":46},"",{"$nulls":4},"",{"$nulls":32},0,0,0,0,0,0,0,0,0,1,0,null,"TODAY"]
[{"$nulls":46},"",{"$nulls":4},"",{"$nulls":32},0,0,0,0,0,0,0,0,0,1,0,null,"TODAY"]
[{"$nulls":46},"",{"$nulls":4},"",{"$nulls":32},0,0,0,0,0,0,0,0,0,1,0,null,"TODAY"]
[{"$nulls":46},"",{"$nulls":4},"",{"$nulls":32},0,0,0,0,0,0,0,0,0,1,0,null,"TODAY"]
[{"$nulls":46},"",{"$nulls":4},"",{"$nulls":32},0,0,0,0,0,0,0,0,0,1,0,null,"TODAY"]
[{"$nulls":46},"",{"$nulls":4},"",{"$nulls":32},0,0,0,0,0,0,0,0,0,1,0,null,"TODAY"]
[{"$nulls":46},"",{"$nulls":4},"",{"$nulls":32},0,0,0,0,0,0,0,0,0,1,0,null,"TODAY"]
[{"$nulls":46},"",{"$nulls":4},"",{"$nulls":32},0,0,0,0,0,0,0,0,0,1,0,null,"TODAY"]
[{"$nulls":46},"",{"$nulls":4},"",{"$nulls":32},0,0,0,0,0,0,0,0,0,1,0,null,"TODAY"]
[{"$nulls":46},"",{"$nulls":4},"",{"$nulls":32},0,0,0,0,0,0,0,0,0,1,0,null,"TODAY"]
[{"$nulls":46},"",{"$nulls":4},"",{"$nulls":32},0,0,0,0,0,0,0,0,0,1,0,null,"TODAY"]
[{"$nulls":46},"",{"$nulls":4},"",{"$nulls":32},0,0,0,0,0,0,0,0,0,1,0,null,"TODAY"]
[{"$nulls":46},"",{"$nulls":4},"",{"$nulls":32},0,0,0,0,0,0,0,0,0,1,0,null,"TODAY"]
[{"$nulls":46},"",{"$nulls":4},"",{"$nulls":32},0,0,0,0,0,0,0,0,0,1,0,null,"TODAY"]
[{"$nulls":46},"",{"$nulls":4},"",{"$nulls":32},0,0,0,0,0,0,0,0,0,1,0,null,"TODAY"]
[{"$nulls":46},"",{"$nulls":4},"",{"$nulls":32},0,0,0,0,0,0,0,0,0,1,0,null,"TODAY"]
[{"$nulls":46},"",{"$nulls":4},"",{"$nulls":32},0,0,0,0,0,0,0,0,0,1,0,null,"TODAY"]
[{"$nulls":46},"",{"$nulls":4},"",{"$nulls":32},0,0,0,0,0,0,0,0,0,1,0,null,"TODAY"]
[{"$nulls":46},"",{"$nulls":4},"",{"$nulls":32},0,0,0,0,0,0,0,0,0,1,0,null,"TODAY"]
[{"$nulls":46},"",{"$nulls":4},"",{"$nulls":32},0,0,0,0,0,0,0,0,0,1,0,null,"TODAY"]
[{"$nulls":46},"",{"$nulls":4},"",{"$nulls":32},0,0,0,0,0,0,0,0,0,1,0,null,"TODAY"]
[{"$nulls":46},"",{"$nulls":4},"",{"$nulls":32},0,0,0,0,0,0,0,0,0,1,0,null,"TODAY"]
[{"$nulls":46},"",{"$nulls":4},"",{"$nulls":32},0,0,0,0,0,0,0,0,0,1,0,null,"TODAY"]
[{"$nulls":46},"",{"$nulls":4},"",{"$nulls":32},0,0,0,0,0,0,0,0,0,1,0,null,"TODAY"]
[{"$nulls":46},"",{"$nulls":4},"",{"$nulls":32},0,0,0,0,0,0,0,0,0,1,0,null,"TODAY"]
[{"$nulls":46},"",{"$nulls":4},"",{"$nulls":32},0,0,0,0,0,0,0,0,0,1,0,null,"TODAY"]
[{"$nulls":46},"",{"$nulls":4},"",{"$nulls":32},0,0,0,0,0,0,0,0,0,1,0,null,"TODAY"]
[{"$nulls":46},"",{"$nulls":4},"",{"$nulls":32},0,0,0,0,0,0,0,0,0,1,0,null,"TODAY"]
[{"$nulls":46},"",{"$nulls":4},"",{"$nulls":32},0,0,0,0,0,0,0,0,0,1,0,null,"TODAY"]
[{"$nulls":46},"",{"$nulls":4},"",{"$nulls":32},0,0,0,0,0,0,0,0,0,1,0,null,"TODAY"]
[{"$nulls":46},"",{"$nulls":4},"",{"$nulls":32},0,0,0,0,0,0,0,0,0,1,0,null,"TODAY"]
[{"$nulls":46},"",{"$nulls":4},"",{"$nulls":32},0,0,0,0,0,0,0,0,0,1,0,null,"TODAY"]
[{"$nulls":46},"",{"$nulls":4},"",{"$nulls":32},0,0,0,0,0,0,0,0,0,1,0,null,"TODAY"]
[{"$nulls":46},"",{"$nulls":4},"",{"$nulls":32},0,0,0,0,0,0,0,0,0,1,0,null,"TODAY"]
[{"$nulls":46},"",{"$nulls":4},"",{"$nulls":32},0,0,0,0,0,0,0,0,0,1,0,null,"TODAY"]
[{"$nulls":46},"",{"$nulls":4},"",{"$nulls":32},0,0,0,0,0,0,0,0,0,1,0,null,"TODAY"]
[{"$nulls":46},"",{"$nulls":4},"",{"$nulls":32},0,0,0,0,0,0,0,0,0,1,0,null,"TODAY"]
[{"$nulls":46},"",{"$nulls":4},"",{"$nulls":32},0,0,0,0,0,0,0,0,0,1,0,null,"TODAY"]
[{"$nulls":46},"",{"$nulls":4},"",{"$nulls":32},0,0,0,0,0,0,0,0,0,1,0,null,"TODAY"]
[{"$nulls":46},"",{"$nulls":4},"",{"$nulls":32},0,0,0,0,0,0,0,0,0,1,0,null,"TODAY"]
[{"$nulls":46},"",{"$nulls":4},"",{"$nulls":32},0,0,0,0,0,0,0,0,0,1,0,null,"TODAY"]
[{"$nulls":46},"",{"$nulls":4},"",{"$nulls":32},0,0,0,0,0,0,0,0,0,1,0,null,"TODAY"]
[]
[{"$nulls":4},"© 2018 by Houseflippingspreadsheet.com. All rights reserved",{"$nulls":79},{"$f":"SUM(CG11:CG760)","v":0},0,0,0,0,0,0,0,0,749,0]

{"sheet":"ACCOUNTING","index":23,"n_rows":54,"n_cols":97,"rows_kept":54,"merged":[[0,1,0,11],[3,15,4,30],[3,31,4,77],[14,14,15,20],[14,23,14,32],[14,33,14,40],[14,42,14,51],[14,61,14,70],[19,15,20,30],[19,37,20,77],[21,38,22,55],[21,58,22,75],[22,15,23,30],[23,38,24,55],[23,58,24,75],[24,15,25,30],[25,38,26,55],[25,58,26,75],[27,38,28,55],[27,58,28,75],[29,38,30,54],[29,58,30,75],[36,15,37,42],[40,17,40,18],[40,19,40,77],[42,17,42,18],[42,19,42,77],[44,17,44,18],[44,19,44,77],[46,17,46,18],[46,19,46,77],[48,17,48,18],[48,19,48,77],[50,17,50,18],[50,19,50,77],[53,13,54,79]]}
[{"$nulls":96},"Shown"]
[]
[]
[{"$nulls":15},"Accounting Workflow",{"$nulls":15},"Manage Your Budgets & Track Project Income and Expenses"]
{"$rows_empty":10}
[{"$nulls":23},"Accounting Setup",{"$nulls":18},"Project Budgeter",{"$nulls":18},"Income/Expense Trackers"]
[]
[]
[]
[]
[{"$nulls":15},"Other Tools",{"$nulls":21},"Accounting Reports…"]
[]
[{"$nulls":38},"Budget Reports",{"$nulls":19},"Expense Reports"]
[{"$nulls":15},"- Loan Tracker"]
[{"$nulls":38},"Project Budget Reports",{"$nulls":19},"Expense Summary Report"]
[{"$nulls":15},"- Data Export Tool"]
[{"$nulls":38},"Project Forecast Report",{"$nulls":19},"Expense by Category Report"]
[]
[{"$nulls":38},"Project Portfolio Report",{"$nulls":19},"Expense by Vendor Report"]
[]
[{"$nulls":38},"Final Profit Report",{"$nulls":19},"Expense by Account Report"]
[]
[]
[]
[]
[]
[]
[{"$nulls":15},"Accounting Checklist"]
[]
[]
[]
[{"$nulls":19},"Setup Chart of Accounts using Account Setup"]
[]
[{"$nulls":19},"Setup Project Vendors using Vendor Setup"]
[]
[{"$nulls":19},"Create an Overall Project Budget using the Project Budgeter"]
[]
[{"$nulls":19},"Track your Project Income and Expenses using the Expense Tracker"]
[]
[{"$nulls":19},"Create and print a Final Profit Statement that summarizes your Project Financial Results for Tax Purposes."]
[]
[{"$nulls":19},"Create a Project Portfolio Report that showcases your Financial Results & Final Project Photos"]
[]
[]
[{"$nulls":13},"© 2018 by HouseFlippingSpreadsheet.com. All rights reserved"]

{"sheet":"ACCOUNTING SETUP","index":24,"n_rows":98,"n_cols":43,"rows_kept":98,"hidden":true,"merged":[[6,4,6,5],[6,6,6,7],[6,16,6,17],[6,18,6,21],[6,22,6,26],[6,27,6,30],[6,39,6,40],[18,39,19,40]]}
[]
[]
[{"$nulls":4},"ACCOUNTING SETUP"]
[]
[]
[{"$nulls":4},{"$f":"IF(J34>0,J34,\"Accounts\")","v":{"v":4,"d":"+ 4 Accounts"}},{"$nulls":11},{"$f":"IF(AG98>0,AG98,\"Vendors\")","v":{"v":8,"d":"+ 8 Vendors"}}]
[null,"Vendor",null,null,"Account Information",null,"Name on Account",{"$nulls":9},"Company Information",null,"Address Information",{"$nulls":3},"Contact Information",{"$nulls":4},"Tax and Insurance Information",{"$nulls":11},"INCOME CATEGORIES"]
[{"$nulls":4},"Account Name","Account #","First Name","Last Name","Notes","# of Accounts","Account","Results",{"$nulls":4},"Company Name","Vendor Category","Street Address","City","State","Zip","First Name","Last Name","Job Title","Phone #","Email","TAX ID","1099 ELIG","WRK CMP EXP","GEN LIAB EXP","Notes","# OF Vendors","# OF Vendors2","Result",{"$nulls":4},"Income Category","Description/Memo"]
[{"$nulls":4},"HFS REI Checking Account",{"$nulls":4},{"$f":"IF(COUNTA(E9:I9)>0,1,0)","v":1},"Account 1",{"$f":"IF(J9=1,E9,K9)","v":"HFS REI Checking Account"},{"$nulls":4},"First 1 Bank","Bank",{"$nulls":14},{"$f":"IF(Q9>0,1,0)","v":1},"Vendor 1",{"$f":"IF(AG9=1,Q9,AH9)","v":"First 1 Bank"},{"$nulls":4},"RESALE INCOME",null,"INCOME CATEGORY 1",{"$f":"IF(Income_Category_First_Cell=\"\",AP9,UPPER(Income_Category_First_Cell))","v":"RESALE INCOME"}]
[{"$nulls":4},"Chase SW Credit Card",{"$nulls":4},{"$f":"IF(COUNTA(E10:I10)>0,1,0)","v":1},"Account 2",{"$f":"IF(J10=1,E10,K10)","v":"Chase SW Credit Card"},{"$nulls":4},"Defenbaugh Industries","Dumpster Rental",{"$nulls":14},1,"Vendor 2","Defenbaugh Industries",{"$nulls":4},"RENTAL INCOME",null,"INCOME CATEGORY 2",{"$f":"IF(AN10=\"\",AP10,UPPER(AN10))","v":"RENTAL INCOME"}]
[{"$nulls":4},"Home Depot Credit Card",{"$nulls":4},1,"Account 3","Home Depot Credit Card",{"$nulls":4},"Demolition Services Inc.","Demolition Contractor",{"$nulls":14},1,"Vendor 3","Demolition Services Inc.",{"$nulls":4},"INTEREST INCOME",null,"INCOME CATEGORY 3",{"$f":"IF(AN11=\"\",AP11,UPPER(AN11))","v":"INTEREST INCOME"}]
[{"$nulls":4},"Lowes Credit Card",{"$nulls":4},1,"Account 4","Lowes Credit Card",{"$nulls":4},"Affordable Rehab & Remodeling","General Contractor",{"$nulls":14},1,"Vendor 4","Affordable Rehab & Remodeling",{"$nulls":4},"MISCELLANEOUS INCOME",null,"INCOME CATEGORY 4","MISCELLANEOUS INCOME"]
[{"$nulls":9},0,"Account 5","Account 5",{"$nulls":4},"Lowes","Material Supplier",{"$nulls":14},1,"Vendor 5","Lowes",{"$nulls":6},"INCOME CATEGORY 5","INCOME CATEGORY 5"]
[{"$nulls":9},0,"Account 6","Account 6",{"$nulls":4},"Home Depot","Material Supplier",{"$nulls":14},1,"Vendor 6","Home Depot",{"$nulls":6},"INCOME CATEGORY 6","INCOME CATEGORY 6"]
[{"$nulls":9},0,"Account 7","Account 7",{"$nulls":4},"Ace Electric","Electrical Contractor",{"$nulls":14},1,"Vendor 7","Ace Electric",{"$nulls":6},"INCOME CATEGORY 7","INCOME CATEGORY 7"]
[{"$nulls":9},0,"Account 8","Account 8",{"$nulls":4},"Sherwin Williams","Material Supplier",{"$nulls":14},1,"Vendor 8","Sherwin Williams",{"$nulls":6},"INCOME CATEGORY 8","INCOME CATEGORY 8"]
[{"$nulls":9},0,"Account 9","Account 9",{"$nulls":20},0,"Vendor 9","Vendor 9",{"$nulls":6},"INCOME CATEGORY 9","INCOME CATEGORY 9"]
[{"$nulls":9},0,"Account 10","Account 10",{"$nulls":20},0,"Vendor 10","Vendor 10",{"$nulls":6},"INCOME CATEGORY 10","INCOME CATEGORY 10"]
[{"$nulls":9},0,"Account 11","Account 11",{"$nulls":20},0,"Vendor 11","Vendor 11",{"$nulls":4},"EXPENSE CATEGORIES"]
[{"$nulls":9},0,"Account 12","Account 12",{"$nulls":20},0,"Vendor 12","Vendor 12"]
[{"$nulls":9},0,"Account 13","Account 13",{"$nulls":20},0,"Vendor 13","Vendor 13",{"$nulls":4},"Expense Category","Description/Memo"]
[{"$nulls":9},0,"Account 14","Account 14",{"$nulls":20},0,"Vendor 14","Vendor 14",{"$nulls":4},"PURCHASE PRICE",null,"EXPENSE CATEGORY 1",{"$f":"IF(AN22=\"\",AP22,UPPER(AN22))","v":"PURCHASE PRICE"}]
[{"$nulls":9},0,"Account 15","Account 15",{"$nulls":20},0,"Vendor 15","Vendor 15",{"$nulls":4},"BUYING COSTS",null,"EXPENSE CATEGORY 2",{"$f":"IF(AN23=\"\",AP23,UPPER(AN23))","v":"BUYING COSTS"}]
[{"$nulls":9},0,"Account 16","Account 16",{"$nulls":20},0,"Vendor 16","Vendor 16",{"$nulls":4},"HOLDING COSTS",null,"EXPENSE CATEGORY 3","HOLDING COSTS"]
[{"$nulls":9},0,"Account 17","Account 17",{"$nulls":20},0,"Vendor 17","Vendor 17",{"$nulls":4},"SELLING COSTS",null,"EXPENSE CATEGORY 4","SELLING COSTS"]
[{"$nulls":9},0,"Account 18","Account 18",{"$nulls":20},0,"Vendor 18","Vendor 18",{"$nulls":4},"FINANCING COSTS",null,"EXPENSE CATEGORY 5","FINANCING COSTS"]
[{"$nulls":9},0,"Account 19","Account 19",{"$nulls":20},0,"Vendor 19","Vendor 19",{"$nulls":4},{"$f":"T('ANALYSIS DATABASE'!B75)","v":"GENERAL CONDITIONS"},null,"EXPENSE CATEGORY 6","GENERAL CONDITIONS"]
[{"$nulls":9},0,"Account 20","Account 20",null,"Vendor Categories",{"$nulls":18},0,"Vendor 20","Vendor 20",{"$nulls":4},{"$f":"T('ANALYSIS DATABASE'!B76)","v":"DEMOLITION"},null,"EXPENSE CATEGORY 7","DEMOLITION"]
[{"$nulls":9},0,"Account 21","Account 21",null,"General Contractor",{"$nulls":18},0,"Vendor 21","Vendor 21",{"$nulls":4},{"$f":"T('ANALYSIS DATABASE'!B77)","v":"STRUCTURAL CONCRETE"},null,"EXPENSE CATEGORY 8","STRUCTURAL CONCRETE"]
[{"$nulls":9},0,"Account 22","Account 22",null,"Handy Man",{"$nulls":18},0,"Vendor 22","Vendor 22",{"$nulls":4},{"$f":"T('ANALYSIS DATABASE'!B78)","v":"CONCRETE & FLATWORK"},null,"EXPENSE CATEGORY 9","CONCRETE & FLATWORK"]
[{"$nulls":9},0,"Account 23","Account 23",null,"Labor Ready",{"$nulls":18},0,"Vendor 23","Vendor 23",{"$nulls":4},{"$f":"T('ANALYSIS DATABASE'!B79)","v":"MASONRY"},null,"EXPENSE CATEGORY 10","MASONRY"]
[{"$nulls":9},0,"Account 24","Account 24",null,"Home Improvement Store",{"$nulls":18},0,"Vendor 24","Vendor 24",{"$nulls":4},{"$f":"T('ANALYSIS DATABASE'!B80)","v":"SIDING"},null,"EXPENSE CATEGORY 11","SIDING"]
[{"$nulls":9},0,"Account 25","Account 25",null,"Material Supplier",{"$nulls":18},0,"Vendor 25","Vendor 25",{"$nulls":4},{"$f":"T('ANALYSIS DATABASE'!B81)","v":"DECKING AND PATIOS"},null,"EXPENSE CATEGORY 12","DECKING AND PATIOS"]
[{"$nulls":9},{"$f":"SUM(J9:J33)","v":4},{"$nulls":3},"Equipment Rental",{"$nulls":18},0,"Vendor 26","Vendor 26",{"$nulls":4},{"$f":"T('ANALYSIS DATABASE'!B82)","v":"ROOFING"},null,"EXPENSE CATEGORY 13","ROOFING"]
[{"$nulls":13},"Appliances Supplier",{"$nulls":18},0,"Vendor 27","Vendor 27",{"$nulls":4},{"$f":"T('ANALYSIS DATABASE'!B83)","v":"EXTERIOR DOORS & WINDOWS"},null,"EXPENSE CATEGORY 14","EXTERIOR DOORS & WINDOWS"]
[{"$nulls":13},"Dumpster Rental",{"$nulls":18},0,"Vendor 28","Vendor 28",{"$nulls":4},{"$f":"T('ANALYSIS DATABASE'!B84)","v":"GARAGE DOORS"},null,"EXPENSE CATEGORY 15","GARAGE DOORS"]
[{"$nulls":13},"Demolition Contractor",{"$nulls":18},0,"Vendor 29","Vendor 29",{"$nulls":4},{"$f":"T('ANALYSIS DATABASE'!B85)","v":"LANDSCAPING"},null,"EXPENSE CATEGORY 16","LANDSCAPING"]
[{"$nulls":13},"Structural Repairs Contractor",{"$nulls":18},0,"Vendor 30","Vendor 30",{"$nulls":4},{"$f":"T('ANALYSIS DATABASE'!B86)","v":"MISC. EXTERIOR ITEMS"},null,"EXPENSE CATEGORY 17","MISC. EXTERIOR ITEMS"]
[{"$nulls":13},"Earthwork Contractor",{"$nulls":18},0,"Vendor 31","Vendor 31",{"$nulls":4},{"$f":"T('ANALYSIS DATABASE'!B87)","v":"FRAMING & DRYWALL"},null,"EXPENSE CATEGORY 18","FRAMING & DRYWALL"]
[{"$nulls":13},"Concrete Contractor",{"$nulls":18},0,"Vendor 32","Vendor 32",{"$nulls":4},{"$f":"T('ANALYSIS DATABASE'!B88)","v":"CABINETS & COUNTERTOPS"},null,"EXPENSE CATEGORY 19","CABINETS & COUNTERTOPS"]
[{"$nulls":13},"Masonry Contractor",{"$nulls":18},{"$f":"IF(Q41>0,1,0)","v":0},"Vendor 33",{"$f":"IF(AG41=1,Q41,AH41)","v":"Vendor 33"},{"$nulls":4},{"$f":"T('ANALYSIS DATABASE'!B89)","v":"DOORS & TRIM"},null,"EXPENSE CATEGORY 20","DOORS & TRIM"]
[{"$nulls":13},"Siding Contractor",{"$nulls":18},0,"Vendor 34","Vendor 34",{"$nulls":4},{"$f":"T('ANALYSIS DATABASE'!B90)","v":"CARPET & RESILIENT"},null,"EXPENSE CATEGORY 21","CARPET & RESILIENT"]
[{"$nulls":13},"Finish Carpentry Contractor",{"$nulls":18},0,"Vendor 35","Vendor 35",{"$nulls":4},{"$f":"T('ANALYSIS DATABASE'!B91)","v":"HARDWOOD FLOORING"},null,"EXPENSE CATEGORY 22","HARDWOOD FLOORING"]
[{"$nulls":13},"Roofing Contractor",{"$nulls":18},0,"Vendor 36","Vendor 36",{"$nulls":4},{"$f":"T('ANALYSIS DATABASE'!B92)","v":"TILING"},null,"EXPENSE CATEGORY 23","TILING"]
[{"$nulls":13},"Window Contractor",{"$nulls":18},0,"Vendor 37","Vendor 37",{"$nulls":4},{"$f":"T('ANALYSIS DATABASE'!B93)","v":"PAINTING"},null,"EXPENSE CATEGORY 24","PAINTING"]
[{"$nulls":13},"Garage Door Contractor",{"$nulls":18},0,"Vendor 38","Vendor 38",{"$nulls":4},{"$f":"T('ANALYSIS DATABASE'!B94)","v":"APPLIANCES"},null,"EXPENSE CATEGORY 25","APPLIANCES"]
[{"$nulls":13},"Landscaping Contractor",{"$nulls":18},0,"Vendor 39","Vendor 39",{"$nulls":4},{"$f":"T('ANALYSIS DATABASE'!B95)","v":"PLUMBING"},null,"EXPENSE CATEGORY 26","PLUMBING"]
[{"$nulls":13},"Drywall Contractor",{"$nulls":18},0,"Vendor 40","Vendor 40",{"$nulls":4},{"$f":"T('ANALYSIS DATABASE'!B96)","v":"HVAC"},null,"EXPENSE CATEGORY 27","HVAC"]
[{"$nulls":13},"Cabinetry and Woodwork Contractor",{"$nulls":18},0,"Vendor 41","Vendor 41",{"$nulls":4},{"$f":"T('ANALYSIS DATABASE'!B97)","v":"ELECTRICAL"},null,"EXPENSE CATEGORY 28","ELECTRICAL"]
[{"$nulls":13},"Countertops Contractor",{"$nulls":18},0,"Vendor 42","Vendor 42",{"$nulls":4},{"$f":"T('ANALYSIS DATABASE'!B98)","v":"MISCELLANEOUS"},null,"EXPENSE CATEGORY 29","MISCELLANEOUS"]
[{"$nulls":13},"Law Services",{"$nulls":18},0,"Vendor 55","Vendor 55",{"$nulls":7},"CHANGE ORDER"]
[{"$nulls":13},"Accounting Services",{"$nulls":18},0,"Vendor 56","Vendor 56"]
[{"$nulls":32},0,"Vendor 57","Vendor 57"]
[{"$nulls":32},0,"Vendor 58","Vendor 58"]
[{"$nulls":32},0,"Vendor 59","Vendor 59"]
[{"$nulls":32},0,"Vendor 60","Vendor 60"]
[{"$nulls":32},0,"Vendor 61","Vendor 61"]
[{"$nulls":32},0,"Vendor 62","Vendor 62"]
[{"$nulls":32},0,"Vendor 63","Vendor 63"]
[{"$nulls":32},0,"Vendor 64","Vendor 64"]
[{"$nulls":32},{"$f":"IF(Q61>0,1,0)","v":0},"Vendor 65",{"$f":"IF(AG61=1,Q61,AH61)","v":"Vendor 65"}]
[{"$nulls":32},0,"Vendor 66","Vendor 66"]
[{"$nulls":32},0,"Vendor 67","Vendor 67"]
[{"$nulls":32},0,"Vendor 68","Vendor 68"]
[{"$nulls":32},0,"Vendor 69","Vendor 69"]
[{"$nulls":32},0,"Vendor 70","Vendor 70"]
[{"$nulls":32},0,"Vendor 71","Vendor 71"]
[{"$nulls":32},0,"Vendor 72","Vendor 72"]
[{"$nulls":32},0,"Vendor 73","Vendor 73"]
[{"$nulls":32},0,"Vendor 74","Vendor 74"]
[{"$nulls":32},0,"Vendor 75","Vendor 75"]
[{"$nulls":32},0,"Vendor 76","Vendor 76"]
[{"$nulls":32},0,"Vendor 77","Vendor 77"]
[{"$nulls":32},0,"Vendor 78","Vendor 78"]
[{"$nulls":32},0,"Vendor 79","Vendor 79"]
[{"$nulls":32},0,"Vendor 80","Vendor 80"]
[{"$nulls":32},0,"Vendor 81","Vendor 81"]
[{"$nulls":32},0,"Vendor 82","Vendor 82"]
[{"$nulls":32},0,"Vendor 83","Vendor 83"]
[{"$nulls":32},0,"Vendor 84","Vendor 84"]
[{"$nulls":32},0,"Vendor 85","Vendor 85"]
[{"$nulls":32},0,"Vendor 86","Vendor 86"]
[{"$nulls":32},0,"Vendor 87","Vendor 87"]
[{"$nulls":32},0,"Vendor 88","Vendor 88"]
[{"$nulls":32},0,"Vendor 89","Vendor 89"]
[{"$nulls":32},0,"Vendor 90","Vendor 90"]
[{"$nulls":32},0,"Vendor 91","Vendor 91"]
[{"$nulls":32},0,"Vendor 92","Vendor 92"]
[{"$nulls":32},0,"Vendor 93","Vendor 93"]
[{"$nulls":32},0,"Vendor 94","Vendor 94"]
[{"$nulls":32},0,"Vendor 95","Vendor 95"]
[{"$nulls":32},0,"Vendor 96","Vendor 96"]
[{"$nulls":32},0,"Vendor 97",{"$f":"IF(AG93=1,Q93,AH93)","v":"Vendor 97"}]
[{"$nulls":32},0,"Vendor 98",{"$f":"IF(AG94=1,Q94,AH94)","v":"Vendor 98"}]
[{"$nulls":32},0,"Vendor 99",{"$f":"IF(AG95=1,Q95,AH95)","v":"Vendor 99"}]
[{"$nulls":32},0,"Vendor 100",{"$f":"IF(AG96=1,Q96,AH96)","v":"Vendor 100"}]
[]
[{"$nulls":32},{"$f":"SUM(AG9:AG96)","v":8},{"$f":"SUM(AH9:AH96)","v":0},{"$f":"SUM(AI9:AI96)","v":0}]

{"sheet":"2 PROJECT BUDGETER","index":25,"n_rows":51,"n_cols":10,"rows_kept":51,"hidden":true,"merged":[[1,1,1,3]]}
[]
[null,"PROJECT BUDGETER",{"$nulls":3},{"$f":"IF(Budgeter_Setting=\"Shown\",\"Hide Rows\",\"Show Rows\")","v":"Hide Rows"},{"$nulls":3},"Shown"]
[]
[null,null,"Budgeted amounts feed from initial Deal Analysis","Spent to date amounts feed from Income/Expense Tracker","% Complete is used to input the % of Expenses that have been completed which is used for forecasting projected values.","Projected amounts are calcualted by dividing the Amount Spent to Date / % Complete",null,"Over / Under Variance Amounts calculate the difference between Projected & Budgeted Values","% Variance calculates the % variance between the Projected & Budgeted Values"]
[]
[null,"BUDGET ITEM","BUDGETED","TO DATE","% COMPLETE","PROJECTED",null,"OVER/UNDER","% VARIANCE"]
[]
[null,"PURCHASE PRICE",{"$f":"Purchase_Price_Result","v":{"v":61836.912500000006,"d":"$61,837"}},{"$f":"Purchase_Expense","v":{"v":52000,"d":"$52,000"}},{"v":1,"d":"100%"},{"$f":"IF(E8<>0,D8/E8,C8)","v":{"v":52000,"d":"$52,000"}},null,{"$f":"F8-Project_Budgeter_First_Cell","v":{"v":-9836.912500000006,"d":"($9,837)"}},{"$f":"IFERROR(H8/Project_Budgeter_First_Cell,0)","v":{"v":-0.15907832558748797,"d":"-16%"}},{"$f":"IF(SUM(C8:F8)>0,1,0)","v":1}]
[{"$nulls":9},1]
[null,"FIXED COSTS","ESTIMATED/BUDGETED","SPENT TO DATE","% COMPLETE","PROJECTED",null,"OVER/UNDER","% VARIANCE",1]
[null,"BUYING COSTS",{"$f":"Buying_Costs_Result","v":{"v":1000,"d":"$1,000"}},{"$f":"'EXPENSE DATABASE'!J7","v":{"v":1060,"d":"$1,060"}},{"v":1,"d":"100%"},{"$f":"IF(E11<>0,D11/E11,C11)","v":{"v":1060,"d":"$1,060"}},null,{"$f":"F11-C11","v":{"v":60,"d":"$60"}},{"$f":"IFERROR(H11/C11,0)","v":{"v":0.06,"d":"6%"}},{"$f":"IF(SUM(C11:F11)>0,1,0)","v":1}]
[null,"HOLDING COSTS",{"$f":"Holding_Costs_Result","v":{"v":3000,"d":"$3,000"}},{"$f":"'EXPENSE DATABASE'!J8","v":{"v":0,"d":"$0"}},null,{"$f":"IF(E12<>0,D12/E12,C12)","v":{"v":3000,"d":"$3,000"}},null,{"$f":"F12-C12","v":{"v":0,"d":"$0"}},{"$f":"IFERROR(H12/C12,0)","v":{"v":0,"d":"0%"}},{"$f":"IF(SUM(C12:F12)>0,1,0)","v":1}]
[null,"SELLING COSTS",{"$f":"Selling_Costs_Result","v":{"v":10850,"d":"$10,850"}},{"$f":"'EXPENSE DATABASE'!J9","v":{"v":0,"d":"$0"}},null,{"$f":"IF(E13<>0,D13/E13,C13)","v":{"v":10850,"d":"$10,850"}},null,{"$f":"F13-C13","v":{"v":0,"d":"$0"}},{"$f":"IFERROR(H13/C13,0)","v":{"v":0,"d":"0%"}},{"$f":"IF(SUM(C13:F13)>0,1,0)","v":1}]
[null,"FINANCING COSTS",{"$f":"TOTAL_FINANCING_COSTS","v":{"v":0,"d":"$0"}},{"$f":"'EXPENSE DATABASE'!J10","v":{"v":0,"d":"$0"}},null,{"$f":"IF(E14<>0,D14/E14,C14)","v":{"v":0,"d":"$0"}},null,{"$f":"F14-C14","v":{"v":0,"d":"$0"}},{"$f":"IFERROR(H14/C14,0)","v":{"v":0,"d":"0%"}},{"$f":"IF(SUM(C14:F14)>0,1,0)","v":0}]
[null,"TOTAL FIXED COSTS",{"$f":"SUM(C11:C14)","v":{"v":14850,"d":"$14,850"}},{"$f":"SUM(D11:D14)","v":{"v":1060,"d":"$1,060"}},null,{"$f":"SUM(F11:F14)","v":{"v":14910,"d":"$14,910"}},null,{"$f":"SUM(H11:H14)","v":{"v":60,"d":"$60"}},{"$f":"H15/C15","v":{"v":0.00404040404040404,"d":"0%"}},{"$f":"IF(SUM(C15:F15)>0,1,0)","v":1}]
[{"$nulls":9},1]
[null,"REPAIR COSTS",{"$nulls":7},1]
[null,{"$f":"T('ACCOUNTING SETUP'!AQ27)","v":"GENERAL CONDITIONS"},{"$f":"'ANALYSIS DATABASE'!C75","v":{"v":750,"d":"$750"}},{"$f":"'EXPENSE DATABASE'!J11","v":{"v":0,"d":"$0"}},null,{"$f":"IF(E18<>0,D18/E18,C18)","v":{"v":750,"d":"$750"}},null,{"$f":"F18-C18","v":{"v":0,"d":"$0"}},{"$f":"IFERROR(H18/C18,0)","v":{"v":0,"d":"0%"}},{"$f":"IF(SUM(C18:F18)>0,1,0)","v":1}]
[null,{"$f":"T('ACCOUNTING SETUP'!AQ28)","v":"DEMOLITION"},{"$f":"'ANALYSIS DATABASE'!C76","v":{"v":1000,"d":"$1,000"}},{"$f":"'EXPENSE DATABASE'!J12","v":{"v":1740,"d":"$1,740"}},{"v":1,"d":"100%"},{"v":1740,"d":"$1,740"},null,{"v":740,"d":"$740"},{"v":0.74,"d":"74%"},1]
[null,{"$f":"T('ACCOUNTING SETUP'!AQ29)","v":"STRUCTURAL CONCRETE"},{"$f":"'ANALYSIS DATABASE'!C77","v":{"v":0,"d":"$0"}},{"$f":"'EXPENSE DATABASE'!J13","v":{"v":0,"d":"$0"}},null,{"v":0,"d":"$0"},null,{"v":0,"d":"$0"},{"v":0,"d":"0%"},0]
[null,{"$f":"T('ACCOUNTING SETUP'!AQ30)","v":"CONCRETE & FLATWORK"},{"$f":"'ANALYSIS DATABASE'!C78","v":{"v":0,"d":"$0"}},{"$f":"'EXPENSE DATABASE'!J14","v":{"v":0,"d":"$0"}},null,{"v":0,"d":"$0"},null,{"v":0,"d":"$0"},{"v":0,"d":"0%"},0]
[null,{"$f":"T('ACCOUNTING SETUP'!AQ31)","v":"MASONRY"},{"$f":"'ANALYSIS DATABASE'!C79","v":{"v":0,"d":"$0"}},{"$f":"'EXPENSE DATABASE'!J15","v":{"v":0,"d":"$0"}},null,{"v":0,"d":"$0"},null,{"v":0,"d":"$0"},{"v":0,"d":"0%"},0]
[null,{"$f":"T('ACCOUNTING SETUP'!AQ32)","v":"SIDING"},{"$f":"'ANALYSIS DATABASE'!C80","v":{"v":0,"d":"$0"}},{"$f":"'EXPENSE DATABASE'!J16","v":{"v":0,"d":"$0"}},null,{"v":0,"d":"$0"},null,{"v":0,"d":"$0"},{"v":0,"d":"0%"},0]
[null,{"$f":"T('ACCOUNTING SETUP'!AQ33)","v":"DECKING AND PATIOS"},{"$f":"'ANALYSIS DATABASE'!C81","v":{"v":5000,"d":"$5,000"}},{"$f":"'EXPENSE DATABASE'!J17","v":{"v":0,"d":"$0"}},null,{"v":5000,"d":"$5,000"},null,{"v":0,"d":"$0"},{"v":0,"d":"0%"},1]
[null,{"$f":"T('ACCOUNTING SETUP'!AQ34)","v":"ROOFING"},{"$f":"'ANALYSIS DATABASE'!C82","v":{"v":5500,"d":"$5,500"}},{"$f":"'EXPENSE DATABASE'!J18","v":{"v":0,"d":"$0"}},null,{"v":5500,"d":"$5,500"},null,{"v":0,"d":"$0"},{"v":0,"d":"0%"},1]
[null,{"$f":"T('ACCOUNTING SETUP'!AQ35)","v":"EXTERIOR DOORS & WINDOWS"},{"$f":"'ANALYSIS DATABASE'!C83","v":{"v":2000,"d":"$2,000"}},{"$f":"'EXPENSE DATABASE'!J19","v":{"v":0,"d":"$0"}},null,{"v":2000,"d":"$2,000"},null,{"v":0,"d":"$0"},{"v":0,"d":"0%"},1]
[null,{"$f":"T('ACCOUNTING SETUP'!AQ36)","v":"GARAGE DOORS"},{"$f":"'ANALYSIS DATABASE'!C84","v":{"v":1250,"d":"$1,250"}},{"$f":"'EXPENSE DATABASE'!J20","v":{"v":0,"d":"$0"}},null,{"v":1250,"d":"$1,250"},null,{"v":0,"d":"$0"},{"v":0,"d":"0%"},1]
[null,{"$f":"T('ACCOUNTING SETUP'!AQ37)","v":"LANDSCAPING"},{"$f":"'ANALYSIS DATABASE'!C85","v":{"v":500,"d":"$500"}},{"$f":"'EXPENSE DATABASE'!J21","v":{"v":0,"d":"$0"}},null,{"v":500,"d":"$500"},null,{"v":0,"d":"$0"},{"v":0,"d":"0%"},1]
[null,{"$f":"T('ACCOUNTING SETUP'!AQ38)","v":"MISC. EXTERIOR ITEMS"},{"$f":"'ANALYSIS DATABASE'!C86","v":{"v":0,"d":"$0"}},{"$f":"'EXPENSE DATABASE'!J22","v":{"v":0,"d":"$0"}},null,{"v":0,"d":"$0"},null,{"v":0,"d":"$0"},{"v":0,"d":"0%"},0]
[null,{"$f":"T('ACCOUNTING SETUP'!AQ39)","v":"FRAMING & DRYWALL"},{"$f":"'ANALYSIS DATABASE'!C87","v":{"v":500,"d":"$500"}},{"$f":"'EXPENSE DATABASE'!J23","v":{"v":500,"d":"$500"}},{"v":1,"d":"100%"},{"v":500,"d":"$500"},null,{"v":0,"d":"$0"},{"v":0,"d":"0%"},1]
[null,{"$f":"T('ACCOUNTING SETUP'!AQ40)","v":"CABINETS & COUNTERTOPS"},{"$f":"'ANALYSIS DATABASE'!C88","v":{"v":7500,"d":"$7,500"}},{"$f":"'EXPENSE DATABASE'!J24","v":{"v":0,"d":"$0"}},null,{"v":7500,"d":"$7,500"},null,{"v":0,"d":"$0"},{"v":0,"d":"0%"},1]
[null,{"$f":"T('ACCOUNTING SETUP'!AQ41)","v":"DOORS & TRIM"},{"$f":"'ANALYSIS DATABASE'!C89","v":{"v":3000,"d":"$3,000"}},{"$f":"'EXPENSE DATABASE'!J25","v":{"v":3339.3199999999997,"d":"$3,339"}},{"v":1,"d":"100%"},{"v":3339.3199999999997,"d":"$3,339"},null,{"v":339.3199999999997,"d":"$339"},{"v":0.11310666666666656,"d":"11%"},1]
[null,{"$f":"T('ACCOUNTING SETUP'!AQ42)","v":"CARPET & RESILIENT"},{"$f":"'ANALYSIS DATABASE'!C90","v":{"v":3000,"d":"$3,000"}},{"$f":"'EXPENSE DATABASE'!J26","v":{"v":0,"d":"$0"}},null,{"v":3000,"d":"$3,000"},null,{"v":0,"d":"$0"},{"v":0,"d":"0%"},1]
[null,{"$f":"T('ACCOUNTING SETUP'!AQ43)","v":"HARDWOOD FLOORING"},{"$f":"'ANALYSIS DATABASE'!C91","v":{"v":2500,"d":"$2,500"}},{"$f":"'EXPENSE DATABASE'!J27","v":{"v":567.2,"d":"$567"}},{"v":0.25,"d":"25%"},{"v":2268.8,"d":"$2,269"},null,{"v":-231.19999999999982,"d":"($231)"},{"v":-0.09247999999999992,"d":"-9%"},1]
[null,{"$f":"T('ACCOUNTING SETUP'!AQ44)","v":"TILING"},{"$f":"'ANALYSIS DATABASE'!C92","v":{"v":3000,"d":"$3,000"}},{"$f":"'EXPENSE DATABASE'!J28","v":{"v":2325.23,"d":"$2,325"}},{"v":1,"d":"100%"},{"v":2325.23,"d":"$2,325"},null,{"v":-674.77,"d":"($675)"},{"v":-0.22492333333333334,"d":"-22%"},1]
[null,{"$f":"T('ACCOUNTING SETUP'!AQ45)","v":"PAINTING"},{"$f":"'ANALYSIS DATABASE'!C93","v":{"v":5000,"d":"$5,000"}},{"$f":"'EXPENSE DATABASE'!J29","v":{"v":4902.45,"d":"$4,902"}},{"v":1,"d":"100%"},{"v":4902.45,"d":"$4,902"},null,{"v":-97.55000000000018,"d":"($98)"},{"v":-0.019510000000000038,"d":"-2%"},1]
[null,{"$f":"T('ACCOUNTING SETUP'!AQ46)","v":"APPLIANCES"},{"$f":"'ANALYSIS DATABASE'!C94","v":{"v":2500,"d":"$2,500"}},{"$f":"'EXPENSE DATABASE'!J30","v":{"v":0,"d":"$0"}},null,{"v":2500,"d":"$2,500"},null,{"v":0,"d":"$0"},{"v":0,"d":"0%"},1]
[null,{"$f":"T('ACCOUNTING SETUP'!AQ47)","v":"PLUMBING"},{"$f":"'ANALYSIS DATABASE'!C95","v":{"v":3000,"d":"$3,000"}},{"$f":"'EXPENSE DATABASE'!J31","v":{"v":3473.08,"d":"$3,473"}},{"v":1,"d":"100%"},{"v":3473.08,"d":"$3,473"},null,{"v":473.0799999999999,"d":"$473"},{"v":0.1576933333333333,"d":"16%"},1]
[null,{"$f":"T('ACCOUNTING SETUP'!AQ48)","v":"HVAC"},{"$f":"'ANALYSIS DATABASE'!C96","v":{"v":250,"d":"$250"}},{"$f":"'EXPENSE DATABASE'!J32","v":{"v":0,"d":"$0"}},null,{"v":250,"d":"$250"},null,{"v":0,"d":"$0"},{"v":0,"d":"0%"},1]
[null,{"$f":"T('ACCOUNTING SETUP'!AQ49)","v":"ELECTRICAL"},{"$f":"'ANALYSIS DATABASE'!C97","v":{"v":3500,"d":"$3,500"}},{"$f":"'EXPENSE DATABASE'!J33","v":{"v":2610,"d":"$2,610"}},{"v":1,"d":"100%"},{"v":2610,"d":"$2,610"},null,{"v":-890,"d":"($890)"},{"v":-0.2542857142857143,"d":"-25%"},1]
[null,{"$f":"T('ACCOUNTING SETUP'!AQ50)","v":"MISCELLANEOUS"},{"$f":"'ANALYSIS DATABASE'!C98","v":{"v":0,"d":"$0"}},{"$f":"'EXPENSE DATABASE'!J34","v":{"v":0,"d":"$0"}},null,{"v":0,"d":"$0"},null,{"v":0,"d":"$0"},{"v":0,"d":"0%"},0]
[null,"SUBTOTAL REPAIR COSTS",{"$f":"SUM(C18:C41)","v":{"v":49750,"d":"$49,750"}},{"$f":"SUM(D18:D41)","v":{"v":19457.28,"d":"$19,457"}},null,{"$f":"SUM(F18:F41)","v":{"v":49408.880000000005,"d":"$49,409"}},null,{"$f":"SUM(H18:H41)","v":{"v":-341.12000000000035,"d":"($341)"}},{"v":-6.8566834170854345E-3,"d":"-1%"},1]
[null,"ADDERS/CONTINGENCY/CHANGE ORDERS",{"$f":"Adders_Result","v":{"v":13813.0875,"d":"$13,813"}},{"$f":"'EXPENSE DATABASE'!J35","v":{"v":0,"d":"$0"}},null,{"v":13813.0875,"d":"$13,813"},null,{"v":0,"d":"$0"},{"v":0,"d":"0%"},1]
[null,"TOTAL REPAIR COSTS",{"$f":"C42+C43","v":{"v":63563.0875,"d":"$63,563"}},{"$f":"D42+D43","v":{"v":19457.28,"d":"$19,457"}},null,{"$f":"F42+F43","v":{"v":63221.967500000006,"d":"$63,222"}},null,{"$f":"H42+H43","v":{"v":-341.12000000000035,"d":"($341)"}},{"$f":"I42+I43","v":{"v":-6.8566834170854345E-3,"d":"-1%"}},1]
[null,"UNASSIGNED",{"v":0,"d":"$0"},{"$f":"Total_Unassigned_Expenses","v":{"v":4385.599999999991,"d":"$4,386"}},null,{"$f":"D45","v":{"v":4385.599999999991,"d":"$4,386"}},null,{"$f":"F45-C45","v":{"v":4385.599999999991,"d":"$4,386"}},{"$f":"IFERROR(H45/C45,0)","v":{"v":0,"d":"0%"}},1]
[null,"TOTAL PROJECT COSTS",{"$f":"Project_Budgeter_First_Cell+C15+C44+C45","v":{"v":140250,"d":"$140,250"}},{"$f":"D8+D15+D44+D45","v":{"v":76902.87999999999,"d":"$76,903"}},null,{"$f":"F8+F15+F44+F45","v":{"v":134517.5675,"d":"$134,518"}},null,{"$f":"H8+H15+H44+H45","v":{"v":-5732.432500000015,"d":"($5,732)"}},{"$f":"I8+I15+I44+I45","v":{"v":-0.16189460496416935,"d":"-16%"}},{"$f":"IF(SUM(C46:F46)>0,1,0)","v":1}]
[{"$nulls":9},1]
[null,"BUDGET ITEM","ESTIMATED/BUDGETED","TO DATE","% COMPLETE","PROJECTED",null,"OVER/UNDER","% VARIANCE",1]
[null,"RESALE VALUE (INCOME)",{"$f":"After_Repair_Value_Result","v":{"v":165000,"d":"$165,000"}},{"$f":"IF('3 INCOME & EXPENSE'!AP114=0,C49,'3 INCOME & EXPENSE'!AP114)","v":{"v":175000,"d":"$175,000"}},{"v":1,"d":"100%"},{"$f":"IF(E49<>0,D49/E49,C49)","v":{"v":175000,"d":"$175,000"}},null,{"$f":"F49-C49","v":{"v":10000,"d":"$10,000"}},{"$f":"IFERROR(H49/C49,0)","v":{"v":0.06060606060606061,"d":"6%"}},{"$f":"IF(SUM(C49:F49)>0,1,0)","v":1}]
[null,"PROJECT COSTS (EXPENSES)",{"$f":"C46","v":{"v":140250,"d":"$140,250"}},{"$f":"D46","v":{"v":76902.87999999999,"d":"$76,903"}},null,{"$f":"F46","v":{"v":134517.5675,"d":"$134,518"}},null,{"$f":"H46","v":{"v":-5732.432500000015,"d":"($5,732)"}},{"$f":"IFERROR(H50/C50,0)","v":{"v":-0.040872959001782644,"d":"-4%"}},{"$f":"IF(SUM(C50:F50)>0,1,0)","v":1}]
[null,"PROFIT",{"$f":"C49-C50","v":{"v":24750,"d":"$24,750"}},{"$f":"D49-D50","v":{"v":98097.12000000001,"d":"$98,097"}},null,{"$f":"F49-F50","v":{"v":40482.432499999995,"d":"$40,482"}},null,{"$f":"H49-H50","v":{"v":15732.432500000015,"d":"$15,732"}},{"$f":"IFERROR(H51/C51,0)","v":{"v":0.635653838383839,"d":"64%"}},{"$f":"IF(SUM(C51:F51)>0,1,0)","v":1}]

{"sheet":"3 INCOME & EXPENSE","index":26,"n_rows":765,"n_cols":45,"rows_kept":765,"hidden":true,"merged":[[1,0,1,3],[1,4,1,6],[3,12,3,14],[4,12,4,13],[5,12,5,13],[6,12,6,13],[7,12,7,13],[8,12,8,13],[9,12,9,13],[13,1,13,2],[14,1,14,2],[15,1,15,2],[16,1,16,2],[17,1,17,2],[18,1,18,2],[19,1,19,2],[20,1,20,2],[21,1,21,2],[22,1,22,2],[23,1,23,2],[24,1,24,2],[25,1,25,2],[26,1,26,2],[27,1,27,2],[28,1,28,2],[29,1,29,2],[30,1,30,2],[31,1,31,2],[32,1,32,2],[33,1,33,2],[34,1,34,2],[35,1,35,2],[36,1,36,2],[37,1,37,2],[38,1,38,2],[39,1,39,2],[40,1,40,2],[41,1,41,2],[42,1,42,2],[43,1,43,2],[44,1,44,2],[45,1,45,2],[46,1,46,2],[47,1,47,2],[48,1,48,2],[49,1,49,2],[50,1,50,2],[51,1,51,2],[52,1,52,2],[53,1,53,2],[54,1,54,2],[55,1,55,2],[56,1,56,2],[57,1,57,2],[58,1,58,2],[59,1,59,2],[60,1,60,2],[61,1,61,2],[62,1,62,2],[63,1,63,2],[64,1,64,2],[65,1,65,2],[66,1,66,2],[67,1,67,2],[68,1,68,2],[69,1,69,2],[70,1,70,2],[71,1,71,2],[72,1,72,2],[73,1,73,2],[74,1,74,2],[75,1,75,2],[76,1,76,2],[77,1,77,2],[78,1,78,2],[79,1,79,2],[80,1,80,2],[81,1,81,2],[82,1,82,2],[83,1,83,2],[84,1,84,2],[85,1,85,2],[86,1,86,2],[87,1,87,2],[88,1,88,2],[89,1,89,2],[90,1,90,2],[91,1,91,2],[92,1,92,2],[93,1,93,2],[94,1,94,2],[95,1,95,2],[96,1,96,2],[97,1,97,2],[98,1,98,2],[99,1,99,2],[100,1,100,2],[101,1,101,2],[102,1,102,2],[103,1,103,2],[104,1,104,2],[105,1,105,2],[106,1,106,2],[107,1,107,2],[108,1,108,2],[109,1,109,2],[110,1,110,2],[111,1,111,2],[112,1,112,2],[113,1,113,2],[114,1,114,2],[115,1,115,2],[116,1,116,2],[117,1,117,2],[118,1,118,2],[119,1,119,2],[120,1,120,2],[121,1,121,2],[122,1,122,2],[123,1,123,2],[124,1,124,2],[125,1,125,2],[126,1,126,2],[127,1,127,2],[128,1,128,2],[129,1,129,2],[130,1,130,2],[131,1,131,2],[132,1,132,2],[133,1,133,2],[134,1,134,2],[135,1,135,2],[136,1,136,2],[137,1,137,2],[138,1,138,2],[139,1,139,2],[140,1,140,2],[141,1,141,2],[142,1,142,2],[143,1,143,2],[144,1,144,2],[145,1,145,2],[146,1,146,2],[147,1,147,2],[148,1,148,2],[149,1,149,2],[150,1,150,2],[151,1,151,2],[152,1,152,2],[153,1,153,2],[154,1,154,2],[155,1,155,2],[156,1,156,2],[157,1,157,2],[158,1,158,2],[159,1,159,2],[160,1,160,2],[161,1,161,2],[162,1,162,2],[163,1,163,2],[164,1,164,2],[165,1,165,2],[166,1,166,2],[167,1,167,2],[168,1,168,2],[169,1,169,2],[170,1,170,2],[171,1,171,2],[172,1,172,2],[173,1,173,2],[174,1,174,2],[175,1,175,2],[176,1,176,2],[177,1,177,2],[178,1,178,2],[179,1,179,2],[180,1,180,2],[181,1,181,2],[182,1,182,2],[183,1,183,2],[184,1,184,2],[185,1,185,2],[186,1,186,2],[187,1,187,2],[188,1,188,2],[189,1,189,2],[190,1,190,2],[191,1,191,2],[192,1,192,2],[193,1,193,2],[194,1,194,2],[195,1,195,2],[196,1,196,2],[197,1,197,2],[198,1,198,2],[199,1,199,2],[200,1,200,2],[201,1,201,2],[202,1,202,2],[203,1,203,2],[204,1,204,2],[205,1,205,2],[206,1,206,2],[207,1,207,2],[208,1,208,2],[209,1,209,2],[210,1,210,2],[211,1,211,2],[212,1,212,2],[213,1,213,2],[214,1,214,2],[215,1,215,2],[216,1,216,2],[217,1,217,2],[218,1,218,2],[219,1,219,2],[220,1,220,2],[221,1,221,2],[222,1,222,2],[223,1,223,2],[224,1,224,2],[225,1,225,2],[226,1,226,2],[227,1,227,2],[228,1,228,2],[229,1,229,2],[230,1,230,2],[231,1,231,2],[232,1,232,2],[233,1,233,2],[234,1,234,2],[235,1,235,2],[236,1,236,2],[237,1,237,2],[238,1,238,2],[239,1,239,2],[240,1,240,2],[241,1,241,2],[242,1,242,2],[243,1,243,2],[244,1,244,2],[245,1,245,2],[246,1,246,2],[247,1,247,2],[248,1,248,2],[249,1,249,2],[250,1,250,2],[251,1,251,2],[252,1,252,2],[253,1,253,2],[254,1,254,2],[255,1,255,2],[256,1,256,2],[257,1,257,2],[258,1,258,2],[259,1,259,2],[260,1,260,2],[261,1,261,2],[262,1,262,2],[263,1,263,2],[264,1,264,2],[265,1,265,2],[266,1,266,2],[267,1,267,2],[268,1,268,2],[269,1,269,2],[270,1,270,2],[271,1,271,2],[272,1,272,2],[273,1,273,2],[274,1,274,2],[275,1,275,2],[276,1,276,2],[277,1,277,2],[278,1,278,2],[279,1,279,2],[280,1,280,2],[281,1,281,2],[282,1,282,2],[283,1,283,2],[284,1,284,2],[285,1,285,2],[286,1,286,2],[287,1,287,2],[288,1,288,2],[289,1,289,2],[290,1,290,2],[291,1,291,2],[292,1,292,2],[293,1,293,2],[294,1,294,2],[295,1,295,2],[296,1,296,2],[297,1,297,2],[298,1,298,2],[299,1,299,2],[300,1,300,2],[301,1,301,2],[302,1,302,2],[303,1,303,2],[304,1,304,2],[305,1,305,2],[306,1,306,2],[307,1,307,2],[308,1,308,2],[309,1,309,2],[310,1,310,2],[311,1,311,2],[312,1,312,2],[313,1,313,2],[314,1,314,2],[315,1,315,2],[316,1,316,2],[317,1,317,2],[318,1,318,2],[319,1,319,2],[320,1,320,2],[321,1,321,2],[322,1,322,2],[323,1,323,2],[324,1,324,2],[325,1,325,2],[326,1,326,2],[327,1,327,2],[328,1,328,2],[329,1,329,2],[330,1,330,2],[331,1,331,2],[332,1,332,2],[333,1,333,2],[334,1,334,2],[335,1,335,2],[336,1,336,2],[337,1,337,2],[338,1,338,2],[339,1,339,2],[340,1,340,2],[341,1,341,2],[342,1,342,2],[343,1,343,2],[344,1,344,2],[345,1,345,2],[346,1,346,2],[347,1,347,2],[348,1,348,2],[349,1,349,2],[350,1,350,2],[351,1,351,2],[352,1,352,2],[353,1,353,2],[354,1,354,2],[355,1,355,2],[356,1,356,2],[357,1,357,2],[358,1,358,2],[359,1,359,2],[360,1,360,2],[361,1,361,2],[362,1,362,2],[363,1,363,2],[364,1,364,2],[365,1,365,2],[366,1,366,2],[367,1,367,2],[368,1,368,2],[369,1,369,2],[370,1,370,2],[371,1,371,2],[372,1,372,2],[373,1,373,2],[374,1,374,2],[375,1,375,2],[376,1,376,2],[377,1,377,2],[378,1,378,2],[379,1,379,2],[380,1,380,2],[381,1,381,2],[382,1,382,2],[383,1,383,2],[384,1,384,2],[385,1,385,2],[386,1,386,2],[387,1,387,2],[388,1,388,2],[389,1,389,2],[390,1,390,2],[391,1,391,2],[392,1,392,2],[393,1,393,2],[394,1,394,2],[395,1,395,2],[396,1,396,2],[397,1,397,2],[398,1,398,2],[399,1,399,2],[400,1,400,2],[401,1,401,2],[402,1,402,2],[403,1,403,2],[404,1,404,2],[405,1,405,2],[406,1,406,2],[407,1,407,2],[408,1,408,2],[409,1,409,2],[410,1,410,2],[411,1,411,2],[412,1,412,2],[413,1,413,2],[414,1,414,2],[415,1,415,2],[416,1,416,2],[417,1,417,2],[418,1,418,2],[419,1,419,2],[420,1,420,2],[421,1,421,2],[422,1,422,2],[423,1,423,2],[424,1,424,2],[425,1,425,2],[426,1,426,2],[427,1,427,2],[428,1,428,2],[429,1,429,2],[430,1,430,2],[431,1,431,2],[432,1,432,2],[433,1,433,2],[434,1,434,2],[435,1,435,2],[436,1,436,2],[437,1,437,2],[438,1,438,2],[439,1,439,2],[440,1,440,2],[441,1,441,2],[442,1,442,2],[443,1,443,2],[444,1,444,2],[445,1,445,2],[446,1,446,2],[447,1,447,2],[448,1,448,2],[449,1,449,2],[450,1,450,2],[451,1,451,2],[452,1,452,2],[453,1,453,2],[454,1,454,2],[455,1,455,2],[456,1,456,2],[457,1,457,2],[458,1,458,2],[459,1,459,2],[460,1,460,2],[461,1,461,2],[462,1,462,2],[463,1,463,2],[464,1,464,2],[465,1,465,2],[466,1,466,2],[467,1,467,2],[468,1,468,2],[469,1,469,2],[470,1,470,2],[471,1,471,2],[472,1,472,2],[473,1,473,2],[474,1,474,2],[475,1,475,2],[476,1,476,2],[477,1,477,2],[478,1,478,2],[479,1,479,2],[480,1,480,2],[481,1,481,2],[482,1,482,2],[483,1,483,2],[484,1,484,2],[485,1,485,2],[486,1,486,2],[487,1,487,2],[488,1,488,2],[489,1,489,2],[490,1,490,2],[491,1,491,2],[492,1,492,2],[493,1,493,2],[494,1,494,2],[495,1,495,2],[496,1,496,2],[497,1,497,2],[498,1,498,2],[499,1,499,2],[500,1,500,2],[501,1,501,2],[502,1,502,2],[503,1,503,2],[504,1,504,2],[505,1,505,2],[506,1,506,2],[507,1,507,2],[508,1,508,2],[509,1,509,2],[510,1,510,2],[511,1,511,2],[512,1,512,2],[513,1,513,2],[514,1,514,2],[515,1,515,2],[516,1,516,2],[517,1,517,2],[518,1,518,2],[519,1,519,2],[520,1,520,2],[521,1,521,2],[522,1,522,2],[523,1,523,2],[524,1,524,2],[525,1,525,2],[526,1,526,2],[527,1,527,2],[528,1,528,2],[529,1,529,2],[530,1,530,2],[531,1,531,2],[532,1,532,2],[533,1,533,2],[534,1,534,2],[535,1,535,2],[536,1,536,2],[537,1,537,2],[538,1,538,2],[539,1,539,2],[540,1,540,2],[541,1,541,2],[542,1,542,2],[543,1,543,2],[544,1,544,2],[545,1,545,2],[546,1,546,2],[547,1,547,2],[548,1,548,2],[549,1,549,2],[550,1,550,2],[551,1,551,2],[552,1,552,2],[553,1,553,2],[554,1,554,2],[555,1,555,2],[556,1,556,2],[557,1,557,2],[558,1,558,2],[559,1,559,2],[560,1,560,2],[561,1,561,2],[562,1,562,2],[563,1,563,2],[564,1,564,2],[565,1,565,2],[566,1,566,2],[567,1,567,2],[568,1,568,2],[569,1,569,2],[570,1,570,2],[571,1,571,2],[572,1,572,2],[573,1,573,2],[574,1,574,2],[575,1,575,2],[576,1,576,2],[577,1,577,2],[578,1,578,2],[579,1,579,2],[580,1,580,2],[581,1,581,2],[582,1,582,2],[583,1,583,2],[584,1,584,2],[585,1,585,2],[586,1,586,2],[587,1,587,2],[588,1,588,2],[589,1,589,2],[590,1,590,2],[591,1,591,2],[592,1,592,2],[593,1,593,2],[594,1,594,2],[595,1,595,2],[596,1,596,2],[597,1,597,2],[598,1,598,2],[599,1,599,2],[600,1,600,2],[601,1,601,2],[602,1,602,2],[603,1,603,2],[604,1,604,2],[605,1,605,2],[606,1,606,2],[607,1,607,2],[608,1,608,2],[609,1,609,2],[610,1,610,2],[611,1,611,2],[612,1,612,2],[613,1,613,2],[614,1,614,2],[615,1,615,2],[616,1,616,2],[617,1,617,2],[618,1,618,2],[619,1,619,2],[620,1,620,2],[621,1,621,2],[622,1,622,2],[623,1,623,2],[624,1,624,2],[625,1,625,2],[626,1,626,2],[627,1,627,2],[628,1,628,2],[629,1,629,2],[630,1,630,2],[631,1,631,2],[632,1,632,2],[633,1,633,2],[634,1,634,2],[635,1,635,2],[636,1,636,2],[637,1,637,2],[638,1,638,2],[639,1,639,2],[640,1,640,2],[641,1,641,2],[642,1,642,2],[643,1,643,2],[644,1,644,2],[645,1,645,2],[646,1,646,2],[647,1,647,2],[648,1,648,2],[649,1,649,2],[650,1,650,2],[651,1,651,2],[652,1,652,2],[653,1,653,2],[654,1,654,2],[655,1,655,2],[656,1,656,2],[657,1,657,2],[658,1,658,2],[659,1,659,2],[660,1,660,2],[661,1,661,2],[662,1,662,2],[663,1,663,2],[664,1,664,2],[665,1,665,2],[666,1,666,2],[667,1,667,2],[668,1,668,2],[669,1,669,2],[670,1,670,2],[671,1,671,2],[672,1,672,2],[673,1,673,2],[674,1,674,2],[675,1,675,2],[676,1,676,2],[677,1,677,2],[678,1,678,2],[679,1,679,2],[680,1,680,2],[681,1,681,2],[682,1,682,2],[683,1,683,2],[684,1,684,2],[685,1,685,2],[686,1,686,2],[687,1,687,2],[688,1,688,2],[689,1,689,2],[690,1,690,2],[691,1,691,2],[692,1,692,2],[693,1,693,2],[694,1,694,2],[695,1,695,2],[696,1,696,2],[697,1,697,2],[698,1,698,2],[699,1,699,2],[700,1,700,2],[701,1,701,2],[702,1,702,2],[703,1,703,2],[704,1,704,2],[705,1,705,2],[706,1,706,2],[707,1,707,2],[708,1,708,2],[709,1,709,2],[710,1,710,2],[711,1,711,2],[712,1,712,2],[713,1,713,2],[714,1,714,2],[715,1,715,2],[716,1,716,2],[717,1,717,2],[718,1,718,2],[719,1,719,2],[720,1,720,2],[721,1,721,2],[722,1,722,2],[723,1,723,2],[724,1,724,2],[725,1,725,2],[726,1,726,2],[727,1,727,2],[728,1,728,2],[729,1,729,2],[730,1,730,2],[731,1,731,2],[732,1,732,2],[733,1,733,2],[734,1,734,2],[735,1,735,2],[736,1,736,2],[737,1,737,2],[738,1,738,2],[739,1,739,2],[740,1,740,2],[741,1,741,2],[742,1,742,2],[743,1,743,2],[744,1,744,2],[745,1,745,2],[746,1,746,2],[747,1,747,2],[748,1,748,2],[749,1,749,2],[750,1,750,2],[751,1,751,2],[752,1,752,2],[753,1,753,2],[754,1,754,2],[755,1,755,2],[756,1,756,2],[757,1,757,2],[758,1,758,2],[759,1,759,2],[760,1,760,2],[761,1,761,2],[762,1,762,2],[764,4,764,13]]}
[]
["Switch to Expense",{"$nulls":3},"EXPENSE TRACKER",{"$nulls":30},"INCOME TRACKER"]
[]
[{"$nulls":12},"Total Expenses To Date"]
[{"$nulls":12},"Purchase Amount",null,{"$f":"Purchase_Expense","v":{"v":52000,"d":"$52,000.00"}}]
[{"$nulls":12},"Fixed Costs",null,{"$f":"Total_Fixed_Expenses","v":{"v":1060,"d":"$1,060.00"}}]
[{"$nulls":12},"Repair Costs",null,{"$f":"Total_Repair_Expenses","v":{"v":19457.28,"d":"$19,457.28"}}]
[{"$nulls":12},"Change Orders",null,{"$f":"Total_Change_Order_Expenses","v":{"v":0,"d":"$0.00"}}]
[{"$nulls":12},"Unassigned",null,{"$f":"Total_Unassigned_Expenses","v":{"v":4385.599999999991,"d":"$4,385.60"}}]
[{"$nulls":12},"Total Project Costs",null,{"$f":"'EXPENSE DATABASE'!J37","v":{"v":76902.87999999999,"d":"$76,902.88"}}]
[]
[]
[{"$nulls":3},"PAID","DATE","INVOICE #","DESCRIPTION / MEMO","PMT Type","ACCOUNT","VENDOR","EXPENSE TYPE","EXPENSE CLASS","QTY","UNIT COST","TOTAL AMOUNT","UNPAID","PAID2","# of Transactions","FIXED OR REPAIR","FIXED OR REPAIR3","EXPENSE BY ACCOUNT","Column4","EXPENSE BY VENDOR","Column5","EXPENSE BY SCOPE #","Column6","EXPENSE BY CLASS","Column7","UNASSIGNED SCOPE","UNASSIGNED VENDOR ","LABOR","MATERIAL","SUB","Month of Expense","Number",null,"Date","DESCRIPTION / MEMO","INCOME TYPE","QTY","UNIT COST","TOTAL AMOUNT","# of Transactions","INCOME BY CAT","CAT #"]
[{"$f":"IF(COUNTA(D14,E14,F14,G14,H14,I14,J14,K14,L14,M14,N14)>0,1,0)","v":1},{"$f":"IF((COUNTA(I14:L14)=4),1,-1)*A14","v":-1},null,null,"2014-07-20",null,"Purchase Price for Property - Reference HUD -1","Bank Transfer","HFS REI Checking Account","First 1 Bank","PURCHASE PRICE",null,{"v":1,"d":"1.0"},{"v":52000,"d":"$52,000.00"},{"$f":"M14*N14","v":{"v":52000,"d":"$52,000.00"}},{"$f":"IF(OR(D14=\"No\",D14=\"\"),O14,0)","v":{"v":52000,"d":"$52,000.00"}},{"$f":"IF(D14=\"Yes\",O14,0)","v":{"v":0,"d":"$0.00"}},{"$f":"IF(O14>0,1,0)","v":1},{"$f":"IF(OR(K14='EXPENSE DATABASE'!$V$187,K14='EXPENSE DATABASE'!$V$188,K14='EXPENSE DATABASE'!$V$189,K14='EXPENSE DATABASE'!$V$190,K14='EXPENSE DATABASE'!$V$191,K14='EXPENSE DATABASE'!$V$192,K14='EXPENSE DATABASE'!$V$193,K14='EXPENSE DATABASE'!$V$194,K14='EXPENSE DATABASE'!$X$187,K14='EXPENSE DATABASE'!$X$188,K14='EXPENSE DATABASE'!$X$189,K14='EXPENSE DATABASE'!$X$190,K14='EXPENSE DATABASE'!$X$191,K14='EXPENSE DATABASE'!$X$192,K14='EXPENSE DATABASE'!$X$193,K14='EXPENSE DATABASE'!$X$194,K14='EXPENSE DATABASE'!$Z$187,K14='EXPENSE DATABASE'!$Z$188,K14='EXPENSE DATABASE'!$Z$189,K14='EXPENSE DATABASE'!$Z$190,K14='EXPENSE DATABASE'!$Z$191,K14='EXPENSE DATABASE'!$Z$192,K14='EXPENSE DATABASE'!$Z$193,K14='EXPENSE DATABASE'!$Z$194),O14,\"\")","v":""},{"$f":"IF(OR(K14='EXPENSE DATABASE'!$T$189,K14='EXPENSE DATABASE'!$T$190,K14='EXPENSE DATABASE'!$T$191),O14,\"\")","v":""},{"$f":"VLOOKUP(I14,'EXPENSE DATABASE'!$B$41:$C$65,2,FALSE)","v":1},{"$f":"IFERROR(U14,100)","v":1},{"$f":"VLOOKUP(J14,'EXPENSE DATABASE'!$B$69:$C$168,2,FALSE)","v":1},{"$f":"IFERROR(W14,101)","v":1},{"$f":"VLOOKUP(K14,'EXPENSE DATABASE'!$B$6:$C$35,2,FALSE)","v":1},{"$f":"IFERROR(Y14,31)","v":1},{"$f":"VLOOKUP(L14,'EXPENSE DATABASE'!$B$173:$C$176,2,FALSE)","v":{"$error":"#N/A"}},{"$f":"IFERROR(AA14,100)","v":100},{"$f":"IF(K14=0,0,1)","v":1},{"$f":"IF(J14=0,0,1)","v":1},{"$f":"IF(L14=T('EXPENSE DATABASE'!$E$173),O14,0)","v":0},{"$f":"IF(L14=T('EXPENSE DATABASE'!$E$174),O14,0)","v":0},{"$f":"IF(L14=T('EXPENSE DATABASE'!$E$175),O14,0)","v":0},{"$f":"IF(OR(N14=0,E14=0),0,MONTH(E14))","v":7},3,null,null,"Sold the property",null,{"v":1,"d":"1.0"},{"v":175000,"d":"175000.00"},{"$f":"Table6[[#This Row],[QTY]]*Table6[[#This Row],[UNIT COST]]","v":{"v":175000,"d":"$175,000.00"}},{"$f":"IF(Table6[[#This Row],[TOTAL AMOUNT]]>0,1,0)","v":1},{"$f":"VLOOKUP(Table6[[#This Row],[INCOME TYPE]],'EXPENSE DATABASE'!$B$186:$C$195,2,FALSE)","v":{"$error":"#N/A"}},{"$f":"IFERROR(AR14,11)","v":11}]
[1,-1,null,null,"2014-07-20",null,"Buying Expenses for Property - Reference HUD-1","Bank Transfer","HFS REI Checking Account","First 1 Bank","BUYING COSTS",null,{"v":1,"d":"1.0"},{"v":565,"d":"$565.00"},{"v":565,"d":"$565.00"},{"v":565,"d":"$565.00"},{"v":0,"d":"$0.00"},1,{"$f":"IF(OR(K15='EXPENSE DATABASE'!$V$187,K15='EXPENSE DATABASE'!$V$188,K15='EXPENSE DATABASE'!$V$189,K15='EXPENSE DATABASE'!$V$190,K15='EXPENSE DATABASE'!$V$191,K15='EXPENSE DATABASE'!$V$192,K15='EXPENSE DATABASE'!$V$193,K15='EXPENSE DATABASE'!$V$194,K15='EXPENSE DATABASE'!$X$187,K15='EXPENSE DATABASE'!$X$188,K15='EXPENSE DATABASE'!$X$189,K15='EXPENSE DATABASE'!$X$190,K15='EXPENSE DATABASE'!$X$191,K15='EXPENSE DATABASE'!$X$192,K15='EXPENSE DATABASE'!$X$193,K15='EXPENSE DATABASE'!$X$194,K15='EXPENSE DATABASE'!$Z$187,K15='EXPENSE DATABASE'!$Z$188,K15='EXPENSE DATABASE'!$Z$189,K15='EXPENSE DATABASE'!$Z$190,K15='EXPENSE DATABASE'!$Z$191,K15='EXPENSE DATABASE'!$Z$192,K15='EXPENSE DATABASE'!$Z$193,K15='EXPENSE DATABASE'!$Z$194),O15,\"\")","v":""},{"$f":"IF(OR(K15='EXPENSE DATABASE'!$T$189,K15='EXPENSE DATABASE'!$T$190,K15='EXPENSE DATABASE'!$T$191),O15,\"\")","v":565},{"$f":"VLOOKUP(I15,'EXPENSE DATABASE'!$B$41:$C$65,2,FALSE)","v":1},1,{"$f":"VLOOKUP(J15,'EXPENSE DATABASE'!$B$69:$C$168,2,FALSE)","v":1},1,{"$f":"VLOOKUP(K15,'EXPENSE DATABASE'!$B$6:$C$35,2,FALSE)","v":2},2,{"$f":"VLOOKUP(L15,'EXPENSE DATABASE'!$B$173:$C$176,2,FALSE)","v":{"$error":"#N/A"}},100,1,1,{"$f":"IF(L15=T('EXPENSE DATABASE'!$E$173),O15,0)","v":0},{"$f":"IF(L15=T('EXPENSE DATABASE'!$E$174),O15,0)","v":0},{"$f":"IF(L15=T('EXPENSE DATABASE'!$E$175),O15,0)","v":0},7,2,{"$nulls":6},{"$f":"Table6[[#This Row],[QTY]]*Table6[[#This Row],[UNIT COST]]","v":{"v":0,"d":"$0.00"}},{"$f":"IF(Table6[[#This Row],[TOTAL AMOUNT]]>0,1,0)","v":0},{"$f":"VLOOKUP(Table6[[#This Row],[INCOME TYPE]],'EXPENSE DATABASE'!$B$186:$C$195,2,FALSE)","v":{"$error":"#N/A"}},{"$f":"IFERROR(AR15,11)","v":11}]
[1,-1,null,null,"2014-07-21",null,"Property Inspection","Credit Card","Chase SW Credit Card",null,"BUYING COSTS",null,{"v":1,"d":"1.0"},{"v":495,"d":"$495.00"},{"v":495,"d":"$495.00"},{"v":495,"d":"$495.00"},{"v":0,"d":"$0.00"},1,{"$f":"IF(OR(K16='EXPENSE DATABASE'!$V$187,K16='EXPENSE DATABASE'!$V$188,K16='EXPENSE DATABASE'!$V$189,K16='EXPENSE DATABASE'!$V$190,K16='EXPENSE DATABASE'!$V$191,K16='EXPENSE DATABASE'!$V$192,K16='EXPENSE DATABASE'!$V$193,K16='EXPENSE DATABASE'!$V$194,K16='EXPENSE DATABASE'!$X$187,K16='EXPENSE DATABASE'!$X$188,K16='EXPENSE DATABASE'!$X$189,K16='EXPENSE DATABASE'!$X$190,K16='EXPENSE DATABASE'!$X$191,K16='EXPENSE DATABASE'!$X$192,K16='EXPENSE DATABASE'!$X$193,K16='EXPENSE DATABASE'!$X$194,K16='EXPENSE DATABASE'!$Z$187,K16='EXPENSE DATABASE'!$Z$188,K16='EXPENSE DATABASE'!$Z$189,K16='EXPENSE DATABASE'!$Z$190,K16='EXPENSE DATABASE'!$Z$191,K16='EXPENSE DATABASE'!$Z$192,K16='EXPENSE DATABASE'!$Z$193,K16='EXPENSE DATABASE'!$Z$194),O16,\"\")","v":""},{"$f":"IF(OR(K16='EXPENSE DATABASE'!$T$189,K16='EXPENSE DATABASE'!$T$190,K16='EXPENSE DATABASE'!$T$191),O16,\"\")","v":495},{"$f":"VLOOKUP(I16,'EXPENSE DATABASE'!$B$41:$C$65,2,FALSE)","v":2},2,{"$f":"VLOOKUP(J16,'EXPENSE DATABASE'!$B$69:$C$168,2,FALSE)","v":{"$error":"#N/A"}},101,{"$f":"VLOOKUP(K16,'EXPENSE DATABASE'!$B$6:$C$35,2,FALSE)","v":2},2,{"$f":"VLOOKUP(L16,'EXPENSE DATABASE'!$B$173:$C$176,2,FALSE)","v":{"$error":"#N/A"}},100,1,0,{"$f":"IF(L16=T('EXPENSE DATABASE'!$E$173),O16,0)","v":0},{"$f":"IF(L16=T('EXPENSE DATABASE'!$E$174),O16,0)","v":0},{"$f":"IF(L16=T('EXPENSE DATABASE'!$E$175),O16,0)","v":0},7,1,{"$nulls":6},{"$f":"Table6[[#This Row],[QTY]]*Table6[[#This Row],[UNIT COST]]","v":{"v":0,"d":"$0.00"}},{"$f":"IF(Table6[[#This Row],[TOTAL AMOUNT]]>0,1,0)","v":0},{"$f":"VLOOKUP(Table6[[#This Row],[INCOME TYPE]],'EXPENSE DATABASE'!$B$186:$C$195,2,FALSE)","v":{"$error":"#N/A"}},11]
[1,1,null,null,"2014-07-25",null,"Dumpster Rental","Credit Card","Chase SW Credit Card","Defenbaugh Industries","DEMOLITION","MATERIAL",{"v":1,"d":"1.0"},{"v":370,"d":"$370.00"},{"v":370,"d":"$370.00"},{"v":370,"d":"$370.00"},{"v":0,"d":"$0.00"},1,{"$f":"IF(OR(K17='EXPENSE DATABASE'!$V$187,K17='EXPENSE DATABASE'!$V$188,K17='EXPENSE DATABASE'!$V$189,K17='EXPENSE DATABASE'!$V$190,K17='EXPENSE DATABASE'!$V$191,K17='EXPENSE DATABASE'!$V$192,K17='EXPENSE DATABASE'!$V$193,K17='EXPENSE DATABASE'!$V$194,K17='EXPENSE DATABASE'!$X$187,K17='EXPENSE DATABASE'!$X$188,K17='EXPENSE DATABASE'!$X$189,K17='EXPENSE DATABASE'!$X$190,K17='EXPENSE DATABASE'!$X$191,K17='EXPENSE DATABASE'!$X$192,K17='EXPENSE DATABASE'!$X$193,K17='EXPENSE DATABASE'!$X$194,K17='EXPENSE DATABASE'!$Z$187,K17='EXPENSE DATABASE'!$Z$188,K17='EXPENSE DATABASE'!$Z$189,K17='EXPENSE DATABASE'!$Z$190,K17='EXPENSE DATABASE'!$Z$191,K17='EXPENSE DATABASE'!$Z$192,K17='EXPENSE DATABASE'!$Z$193,K17='EXPENSE DATABASE'!$Z$194),O17,\"\")","v":370},{"$f":"IF(OR(K17='EXPENSE DATABASE'!$T$189,K17='EXPENSE DATABASE'!$T$190,K17='EXPENSE DATABASE'!$T$191),O17,\"\")","v":""},{"$f":"VLOOKUP(I17,'EXPENSE DATABASE'!$B$41:$C$65,2,FALSE)","v":2},2,{"$f":"VLOOKUP(J17,'EXPENSE DATABASE'!$B$69:$C$168,2,FALSE)","v":2},2,{"$f":"VLOOKUP(K17,'EXPENSE DATABASE'!$B$6:$C$35,2,FALSE)","v":7},7,{"$f":"VLOOKUP(L17,'EXPENSE DATABASE'!$B$173:$C$176,2,FALSE)","v":2},2,1,1,{"$f":"IF(L17=T('EXPENSE DATABASE'!$E$173),O17,0)","v":0},{"$f":"IF(L17=T('EXPENSE DATABASE'!$E$174),O17,0)","v":370},{"$f":"IF(L17=T('EXPENSE DATABASE'!$E$175),O17,0)","v":0},7,5,{"$nulls":6},{"$f":"Table6[[#This Row],[QTY]]*Table6[[#This Row],[UNIT COST]]","v":{"v":0,"d":"$0.00"}},{"$f":"IF(Table6[[#This Row],[TOTAL AMOUNT]]>0,1,0)","v":0},{"$f":"VLOOKUP(Table6[[#This Row],[INCOME TYPE]],'EXPENSE DATABASE'!$B$186:$C$195,2,FALSE)","v":{"$error":"#N/A"}},11]
[1,1,null,null,"2014-07-28",null,"Demolition - 1st Payment","Check","HFS REI Checking Account","Demolition Services Inc.","DEMOLITION","SUBCONTRACTOR",{"v":1,"d":"1.0"},{"v":500,"d":"$500.00"},{"v":500,"d":"$500.00"},{"v":500,"d":"$500.00"},{"v":0,"d":"$0.00"},1,{"$f":"IF(OR(K18='EXPENSE DATABASE'!$V$187,K18='EXPENSE DATABASE'!$V$188,K18='EXPENSE DATABASE'!$V$189,K18='EXPENSE DATABASE'!$V$190,K18='EXPENSE DATABASE'!$V$191,K18='EXPENSE DATABASE'!$V$192,K18='EXPENSE DATABASE'!$V$193,K18='EXPENSE DATABASE'!$V$194,K18='EXPENSE DATABASE'!$X$187,K18='EXPENSE DATABASE'!$X$188,K18='EXPENSE DATABASE'!$X$189,K18='EXPENSE DATABASE'!$X$190,K18='EXPENSE DATABASE'!$X$191,K18='EXPENSE DATABASE'!$X$192,K18='EXPENSE DATABASE'!$X$193,K18='EXPENSE DATABASE'!$X$194,K18='EXPENSE DATABASE'!$Z$187,K18='EXPENSE DATABASE'!$Z$188,K18='EXPENSE DATABASE'!$Z$189,K18='EXPENSE DATABASE'!$Z$190,K18='EXPENSE DATABASE'!$Z$191,K18='EXPENSE DATABASE'!$Z$192,K18='EXPENSE DATABASE'!$Z$193,K18='EXPENSE DATABASE'!$Z$194),O18,\"\")","v":500},{"$f":"IF(OR(K18='EXPENSE DATABASE'!$T$189,K18='EXPENSE DATABASE'!$T$190,K18='EXPENSE DATABASE'!$T$191),O18,\"\")","v":""},{"$f":"VLOOKUP(I18,'EXPENSE DATABASE'!$B$41:$C$65,2,FALSE)","v":1},1,{"$f":"VLOOKUP(J18,'EXPENSE DATABASE'!$B$69:$C$168,2,FALSE)","v":3},3,{"$f":"VLOOKUP(K18,'EXPENSE DATABASE'!$B$6:$C$35,2,FALSE)","v":7},7,{"$f":"VLOOKUP(L18,'EXPENSE DATABASE'!$B$173:$C$176,2,FALSE)","v":3},3,1,1,{"$f":"IF(L18=T('EXPENSE DATABASE'!$E$173),O18,0)","v":0},{"$f":"IF(L18=T('EXPENSE DATABASE'!$E$174),O18,0)","v":0},{"$f":"IF(L18=T('EXPENSE DATABASE'!$E$175),O18,0)","v":500},7,4,{"$nulls":6},{"$f":"Table6[[#This Row],[QTY]]*Table6[[#This Row],[UNIT COST]]","v":{"v":0,"d":"$0.00"}},{"$f":"IF(Table6[[#This Row],[TOTAL AMOUNT]]>0,1,0)","v":0},{"$f":"VLOOKUP(Table6[[#This Row],[INCOME TYPE]],'EXPENSE DATABASE'!$B$186:$C$195,2,FALSE)","v":{"$error":"#N/A"}},11]
[1,1,null,null,"2014-08-01",null,"Demolition - 2nd Payment","Check","HFS REI Checking Account","Demolition Services Inc.","DEMOLITION","SUBCONTRACTOR",{"v":1,"d":"1.0"},{"v":500,"d":"$500.00"},{"v":500,"d":"$500.00"},{"v":500,"d":"$500.00"},{"v":0,"d":"$0.00"},1,{"$f":"IF(OR(K19='EXPENSE DATABASE'!$V$187,K19='EXPENSE DATABASE'!$V$188,K19='EXPENSE DATABASE'!$V$189,K19='EXPENSE DATABASE'!$V$190,K19='EXPENSE DATABASE'!$V$191,K19='EXPENSE DATABASE'!$V$192,K19='EXPENSE DATABASE'!$V$193,K19='EXPENSE DATABASE'!$V$194,K19='EXPENSE DATABASE'!$X$187,K19='EXPENSE DATABASE'!$X$188,K19='EXPENSE DATABASE'!$X$189,K19='EXPENSE DATABASE'!$X$190,K19='EXPENSE DATABASE'!$X$191,K19='EXPENSE DATABASE'!$X$192,K19='EXPENSE DATABASE'!$X$193,K19='EXPENSE DATABASE'!$X$194,K19='EXPENSE DATABASE'!$Z$187,K19='EXPENSE DATABASE'!$Z$188,K19='EXPENSE DATABASE'!$Z$189,K19='EXPENSE DATABASE'!$Z$190,K19='EXPENSE DATABASE'!$Z$191,K19='EXPENSE DATABASE'!$Z$192,K19='EXPENSE DATABASE'!$Z$193,K19='EXPENSE DATABASE'!$Z$194),O19,\"\")","v":500},{"$f":"IF(OR(K19='EXPENSE DATABASE'!$T$189,K19='EXPENSE DATABASE'!$T$190,K19='EXPENSE DATABASE'!$T$191),O19,\"\")","v":""},{"$f":"VLOOKUP(I19,'EXPENSE DATABASE'!$B$41:$C$65,2,FALSE)","v":1},1,{"$f":"VLOOKUP(J19,'EXPENSE DATABASE'!$B$69:$C$168,2,FALSE)","v":3},3,{"$f":"VLOOKUP(K19,'EXPENSE DATABASE'!$B$6:$C$35,2,FALSE)","v":7},7,{"$f":"VLOOKUP(L19,'EXPENSE DATABASE'!$B$173:$C$176,2,FALSE)","v":3},3,1,1,{"$f":"IF(L19=T('EXPENSE DATABASE'!$E$173),O19,0)","v":0},{"$f":"IF(L19=T('EXPENSE DATABASE'!$E$174),O19,0)","v":0},{"$f":"IF(L19=T('EXPENSE DATABASE'!$E$175),O19,0)","v":500},8,6,{"$nulls":6},{"$f":"Table6[[#This Row],[QTY]]*Table6[[#This Row],[UNIT COST]]","v":{"v":0,"d":"$0.00"}},{"$f":"IF(Table6[[#This Row],[TOTAL AMOUNT]]>0,1,0)","v":0},{"$f":"VLOOKUP(Table6[[#This Row],[INCOME TYPE]],'EXPENSE DATABASE'!$B$186:$C$195,2,FALSE)","v":{"$error":"#N/A"}},11]
[1,1,null,null,"2014-07-28",null,"Exterior doors and window material","Credit Card","Home Depot Credit Card","Lowes","EXT. DOORS & WINDOWS","MATERIAL",{"v":1,"d":"1.0"},{"v":2635.6,"d":"$2,635.60"},{"v":2635.6,"d":"$2,635.60"},{"v":2635.6,"d":"$2,635.60"},{"v":0,"d":"$0.00"},1,{"$f":"IF(OR(K20='EXPENSE DATABASE'!$V$187,K20='EXPENSE DATABASE'!$V$188,K20='EXPENSE DATABASE'!$V$189,K20='EXPENSE DATABASE'!$V$190,K20='EXPENSE DATABASE'!$V$191,K20='EXPENSE DATABASE'!$V$192,K20='EXPENSE DATABASE'!$V$193,K20='EXPENSE DATABASE'!$V$194,K20='EXPENSE DATABASE'!$X$187,K20='EXPENSE DATABASE'!$X$188,K20='EXPENSE DATABASE'!$X$189,K20='EXPENSE DATABASE'!$X$190,K20='EXPENSE DATABASE'!$X$191,K20='EXPENSE DATABASE'!$X$192,K20='EXPENSE DATABASE'!$X$193,K20='EXPENSE DATABASE'!$X$194,K20='EXPENSE DATABASE'!$Z$187,K20='EXPENSE DATABASE'!$Z$188,K20='EXPENSE DATABASE'!$Z$189,K20='EXPENSE DATABASE'!$Z$190,K20='EXPENSE DATABASE'!$Z$191,K20='EXPENSE DATABASE'!$Z$192,K20='EXPENSE DATABASE'!$Z$193,K20='EXPENSE DATABASE'!$Z$194),O20,\"\")","v":""},{"$f":"IF(OR(K20='EXPENSE DATABASE'!$T$189,K20='EXPENSE DATABASE'!$T$190,K20='EXPENSE DATABASE'!$T$191),O20,\"\")","v":""},{"$f":"VLOOKUP(I20,'EXPENSE DATABASE'!$B$41:$C$65,2,FALSE)","v":3},3,{"$f":"VLOOKUP(J20,'EXPENSE DATABASE'!$B$69:$C$168,2,FALSE)","v":5},5,{"$f":"VLOOKUP(K20,'EXPENSE DATABASE'!$B$6:$C$35,2,FALSE)","v":{"$error":"#N/A"}},31,{"$f":"VLOOKUP(L20,'EXPENSE DATABASE'!$B$173:$C$176,2,FALSE)","v":2},2,1,1,{"$f":"IF(L20=T('EXPENSE DATABASE'!$E$173),O20,0)","v":0},{"$f":"IF(L20=T('EXPENSE DATABASE'!$E$174),O20,0)","v":2635.6},{"$f":"IF(L20=T('EXPENSE DATABASE'!$E$175),O20,0)","v":0},7,7,{"$nulls":6},{"$f":"Table6[[#This Row],[QTY]]*Table6[[#This Row],[UNIT COST]]","v":{"v":0,"d":"$0.00"}},{"$f":"IF(Table6[[#This Row],[TOTAL AMOUNT]]>0,1,0)","v":0},{"$f":"VLOOKUP(Table6[[#This Row],[INCOME TYPE]],'EXPENSE DATABASE'!$B$186:$C$195,2,FALSE)","v":{"$error":"#N/A"}},11]
[1,1,null,null,"2014-08-01",null,"Exterior Doors & Windows - 1st Payment","Check","HFS REI Checking Account","Affordable Rehab & Remodeling","EXT. DOORS & WINDOWS","LABOR/EQUIP",{"v":1,"d":"1.0"},{"v":750,"d":"$750.00"},{"v":750,"d":"$750.00"},{"v":750,"d":"$750.00"},{"v":0,"d":"$0.00"},1,{"$f":"IF(OR(K21='EXPENSE DATABASE'!$V$187,K21='EXPENSE DATABASE'!$V$188,K21='EXPENSE DATABASE'!$V$189,K21='EXPENSE DATABASE'!$V$190,K21='EXPENSE DATABASE'!$V$191,K21='EXPENSE DATABASE'!$V$192,K21='EXPENSE DATABASE'!$V$193,K21='EXPENSE DATABASE'!$V$194,K21='EXPENSE DATABASE'!$X$187,K21='EXPENSE DATABASE'!$X$188,K21='EXPENSE DATABASE'!$X$189,K21='EXPENSE DATABASE'!$X$190,K21='EXPENSE DATABASE'!$X$191,K21='EXPENSE DATABASE'!$X$192,K21='EXPENSE DATABASE'!$X$193,K21='EXPENSE DATABASE'!$X$194,K21='EXPENSE DATABASE'!$Z$187,K21='EXPENSE DATABASE'!$Z$188,K21='EXPENSE DATABASE'!$Z$189,K21='EXPENSE DATABASE'!$Z$190,K21='EXPENSE DATABASE'!$Z$191,K21='EXPENSE DATABASE'!$Z$192,K21='EXPENSE DATABASE'!$Z$193,K21='EXPENSE DATABASE'!$Z$194),O21,\"\")","v":""},{"$f":"IF(OR(K21='EXPENSE DATABASE'!$T$189,K21='EXPENSE DATABASE'!$T$190,K21='EXPENSE DATABASE'!$T$191),O21,\"\")","v":""},{"$f":"VLOOKUP(I21,'EXPENSE DATABASE'!$B$41:$C$65,2,FALSE)","v":1},1,{"$f":"VLOOKUP(J21,'EXPENSE DATABASE'!$B$69:$C$168,2,FALSE)","v":4},4,{"$f":"VLOOKUP(K21,'EXPENSE DATABASE'!$B$6:$C$35,2,FALSE)","v":{"$error":"#N/A"}},31,{"$f":"VLOOKUP(L21,'EXPENSE DATABASE'!$B$173:$C$176,2,FALSE)","v":1},1,1,1,{"$f":"IF(L21=T('EXPENSE DATABASE'!$E$173),O21,0)","v":750},{"$f":"IF(L21=T('EXPENSE DATABASE'!$E$174),O21,0)","v":0},{"$f":"IF(L21=T('EXPENSE DATABASE'!$E$175),O21,0)","v":0},8,8,{"$nulls":6},{"$f":"Table6[[#This Row],[QTY]]*Table6[[#This Row],[UNIT COST]]","v":{"v":0,"d":"$0.00"}},{"$f":"IF(Table6[[#This Row],[TOTAL AMOUNT]]>0,1,0)","v":0},{"$f":"VLOOKUP(Table6[[#This Row],[INCOME TYPE]],'EXPENSE DATABASE'!$B$186:$C$195,2,FALSE)","v":{"$error":"#N/A"}},11]
[1,1,null,null,"2014-08-05",null,"Exterior Doors & Windows - 2nd Payment","Check","HFS REI Checking Account","Affordable Rehab & Remodeling","EXT. DOORS & WINDOWS","LABOR/EQUIP",{"v":1,"d":"1.0"},{"v":500,"d":"$500.00"},{"v":500,"d":"$500.00"},{"v":500,"d":"$500.00"},{"v":0,"d":"$0.00"},1,{"$f":"IF(OR(K22='EXPENSE DATABASE'!$V$187,K22='EXPENSE DATABASE'!$V$188,K22='EXPENSE DATABASE'!$V$189,K22='EXPENSE DATABASE'!$V$190,K22='EXPENSE DATABASE'!$V$191,K22='EXPENSE DATABASE'!$V$192,K22='EXPENSE DATABASE'!$V$193,K22='EXPENSE DATABASE'!$V$194,K22='EXPENSE DATABASE'!$X$187,K22='EXPENSE DATABASE'!$X$188,K22='EXPENSE DATABASE'!$X$189,K22='EXPENSE DATABASE'!$X$190,K22='EXPENSE DATABASE'!$X$191,K22='EXPENSE DATABASE'!$X$192,K22='EXPENSE DATABASE'!$X$193,K22='EXPENSE DATABASE'!$X$194,K22='EXPENSE DATABASE'!$Z$187,K22='EXPENSE DATABASE'!$Z$188,K22='EXPENSE DATABASE'!$Z$189,K22='EXPENSE DATABASE'!$Z$190,K22='EXPENSE DATABASE'!$Z$191,K22='EXPENSE DATABASE'!$Z$192,K22='EXPENSE DATABASE'!$Z$193,K22='EXPENSE DATABASE'!$Z$194),O22,\"\")","v":""},{"$f":"IF(OR(K22='EXPENSE DATABASE'!$T$189,K22='EXPENSE DATABASE'!$T$190,K22='EXPENSE DATABASE'!$T$191),O22,\"\")","v":""},{"$f":"VLOOKUP(I22,'EXPENSE DATABASE'!$B$41:$C$65,2,FALSE)","v":1},1,{"$f":"VLOOKUP(J22,'EXPENSE DATABASE'!$B$69:$C$168,2,FALSE)","v":4},4,{"$f":"VLOOKUP(K22,'EXPENSE DATABASE'!$B$6:$C$35,2,FALSE)","v":{"$error":"#N/A"}},31,{"$f":"VLOOKUP(L22,'EXPENSE DATABASE'!$B$173:$C$176,2,FALSE)","v":1},1,1,1,{"$f":"IF(L22=T('EXPENSE DATABASE'!$E$173),O22,0)","v":500},{"$f":"IF(L22=T('EXPENSE DATABASE'!$E$174),O22,0)","v":0},{"$f":"IF(L22=T('EXPENSE DATABASE'!$E$175),O22,0)","v":0},8,9,{"$nulls":6},{"$f":"Table6[[#This Row],[QTY]]*Table6[[#This Row],[UNIT COST]]","v":{"v":0,"d":"$0.00"}},{"$f":"IF(Table6[[#This Row],[TOTAL AMOUNT]]>0,1,0)","v":0},{"$f":"VLOOKUP(Table6[[#This Row],[INCOME TYPE]],'EXPENSE DATABASE'!$B$186:$C$195,2,FALSE)","v":{"$error":"#N/A"}},11]
[1,1,null,null,"2014-08-08",null,"Plumbing Rough in - 1st Payment","Check","HFS REI Checking Account","Affordable Rehab & Remodeling","PLUMBING","LABOR/EQUIP",{"v":1,"d":"1.0"},{"v":1250,"d":"$1,250.00"},{"v":1250,"d":"$1,250.00"},{"v":1250,"d":"$1,250.00"},{"v":0,"d":"$0.00"},1,{"$f":"IF(OR(K23='EXPENSE DATABASE'!$V$187,K23='EXPENSE DATABASE'!$V$188,K23='EXPENSE DATABASE'!$V$189,K23='EXPENSE DATABASE'!$V$190,K23='EXPENSE DATABASE'!$V$191,K23='EXPENSE DATABASE'!$V$192,K23='EXPENSE DATABASE'!$V$193,K23='EXPENSE DATABASE'!$V$194,K23='EXPENSE DATABASE'!$X$187,K23='EXPENSE DATABASE'!$X$188,K23='EXPENSE DATABASE'!$X$189,K23='EXPENSE DATABASE'!$X$190,K23='EXPENSE DATABASE'!$X$191,K23='EXPENSE DATABASE'!$X$192,K23='EXPENSE DATABASE'!$X$193,K23='EXPENSE DATABASE'!$X$194,K23='EXPENSE DATABASE'!$Z$187,K23='EXPENSE DATABASE'!$Z$188,K23='EXPENSE DATABASE'!$Z$189,K23='EXPENSE DATABASE'!$Z$190,K23='EXPENSE DATABASE'!$Z$191,K23='EXPENSE DATABASE'!$Z$192,K23='EXPENSE DATABASE'!$Z$193,K23='EXPENSE DATABASE'!$Z$194),O23,\"\")","v":1250},{"$f":"IF(OR(K23='EXPENSE DATABASE'!$T$189,K23='EXPENSE DATABASE'!$T$190,K23='EXPENSE DATABASE'!$T$191),O23,\"\")","v":""},{"$f":"VLOOKUP(I23,'EXPENSE DATABASE'!$B$41:$C$65,2,FALSE)","v":1},1,{"$f":"VLOOKUP(J23,'EXPENSE DATABASE'!$B$69:$C$168,2,FALSE)","v":4},4,{"$f":"VLOOKUP(K23,'EXPENSE DATABASE'!$B$6:$C$35,2,FALSE)","v":26},26,{"$f":"VLOOKUP(L23,'EXPENSE DATABASE'!$B$173:$C$176,2,FALSE)","v":1},1,1,1,{"$f":"IF(L23=T('EXPENSE DATABASE'!$E$173),O23,0)","v":1250},{"$f":"IF(L23=T('EXPENSE DATABASE'!$E$174),O23,0)","v":0},{"$f":"IF(L23=T('EXPENSE DATABASE'!$E$175),O23,0)","v":0},8,10,{"$nulls":6},{"$f":"Table6[[#This Row],[QTY]]*Table6[[#This Row],[UNIT COST]]","v":{"v":0,"d":"$0.00"}},{"$f":"IF(Table6[[#This Row],[TOTAL AMOUNT]]>0,1,0)","v":0},{"$f":"VLOOKUP(Table6[[#This Row],[INCOME TYPE]],'EXPENSE DATABASE'!$B$186:$C$195,2,FALSE)","v":{"$error":"#N/A"}},11]
[1,1,null,null,"2014-08-08",null,"Electrical Rough in - 1st Payment","Check","HFS REI Checking Account","Ace Electric","ELECTRICAL","SUBCONTRACTOR",{"v":1,"d":"1.0"},{"v":1250,"d":"$1,250.00"},{"v":1250,"d":"$1,250.00"},{"v":1250,"d":"$1,250.00"},{"v":0,"d":"$0.00"},1,{"$f":"IF(OR(K24='EXPENSE DATABASE'!$V$187,K24='EXPENSE DATABASE'!$V$188,K24='EXPENSE DATABASE'!$V$189,K24='EXPENSE DATABASE'!$V$190,K24='EXPENSE DATABASE'!$V$191,K24='EXPENSE DATABASE'!$V$192,K24='EXPENSE DATABASE'!$V$193,K24='EXPENSE DATABASE'!$V$194,K24='EXPENSE DATABASE'!$X$187,K24='EXPENSE DATABASE'!$X$188,K24='EXPENSE DATABASE'!$X$189,K24='EXPENSE DATABASE'!$X$190,K24='EXPENSE DATABASE'!$X$191,K24='EXPENSE DATABASE'!$X$192,K24='EXPENSE DATABASE'!$X$193,K24='EXPENSE DATABASE'!$X$194,K24='EXPENSE DATABASE'!$Z$187,K24='EXPENSE DATABASE'!$Z$188,K24='EXPENSE DATABASE'!$Z$189,K24='EXPENSE DATABASE'!$Z$190,K24='EXPENSE DATABASE'!$Z$191,K24='EXPENSE DATABASE'!$Z$192,K24='EXPENSE DATABASE'!$Z$193,K24='EXPENSE DATABASE'!$Z$194),O24,\"\")","v":1250},{"$f":"IF(OR(K24='EXPENSE DATABASE'!$T$189,K24='EXPENSE DATABASE'!$T$190,K24='EXPENSE DATABASE'!$T$191),O24,\"\")","v":""},{"$f":"VLOOKUP(I24,'EXPENSE DATABASE'!$B$41:$C$65,2,FALSE)","v":1},1,{"$f":"VLOOKUP(J24,'EXPENSE DATABASE'!$B$69:$C$168,2,FALSE)","v":7},7,{"$f":"VLOOKUP(K24,'EXPENSE DATABASE'!$B$6:$C$35,2,FALSE)","v":28},28,{"$f":"VLOOKUP(L24,'EXPENSE DATABASE'!$B$173:$C$176,2,FALSE)","v":3},3,1,1,{"$f":"IF(L24=T('EXPENSE DATABASE'!$E$173),O24,0)","v":0},{"$f":"IF(L24=T('EXPENSE DATABASE'!$E$174),O24,0)","v":0},{"$f":"IF(L24=T('EXPENSE DATABASE'!$E$175),O24,0)","v":1250},8,11,{"$nulls":6},{"$f":"Table6[[#This Row],[QTY]]*Table6[[#This Row],[UNIT COST]]","v":{"v":0,"d":"$0.00"}},{"$f":"IF(Table6[[#This Row],[TOTAL AMOUNT]]>0,1,0)","v":0},{"$f":"VLOOKUP(Table6[[#This Row],[INCOME TYPE]],'EXPENSE DATABASE'!$B$186:$C$195,2,FALSE)","v":{"$error":"#N/A"}},11]
[1,1,null,null,"2014-08-11",null,"Drywall Patching & Prep","Check","HFS REI Checking Account","Affordable Rehab & Remodeling","FRAMING & DRYWALL","LABOR/EQUIP",{"v":1,"d":"1.0"},{"v":500,"d":"$500.00"},{"v":500,"d":"$500.00"},{"v":500,"d":"$500.00"},{"v":0,"d":"$0.00"},1,{"$f":"IF(OR(K25='EXPENSE DATABASE'!$V$187,K25='EXPENSE DATABASE'!$V$188,K25='EXPENSE DATABASE'!$V$189,K25='EXPENSE DATABASE'!$V$190,K25='EXPENSE DATABASE'!$V$191,K25='EXPENSE DATABASE'!$V$192,K25='EXPENSE DATABASE'!$V$193,K25='EXPENSE DATABASE'!$V$194,K25='EXPENSE DATABASE'!$X$187,K25='EXPENSE DATABASE'!$X$188,K25='EXPENSE DATABASE'!$X$189,K25='EXPENSE DATABASE'!$X$190,K25='EXPENSE DATABASE'!$X$191,K25='EXPENSE DATABASE'!$X$192,K25='EXPENSE DATABASE'!$X$193,K25='EXPENSE DATABASE'!$X$194,K25='EXPENSE DATABASE'!$Z$187,K25='EXPENSE DATABASE'!$Z$188,K25='EXPENSE DATABASE'!$Z$189,K25='EXPENSE DATABASE'!$Z$190,K25='EXPENSE DATABASE'!$Z$191,K25='EXPENSE DATABASE'!$Z$192,K25='EXPENSE DATABASE'!$Z$193,K25='EXPENSE DATABASE'!$Z$194),O25,\"\")","v":500},{"$f":"IF(OR(K25='EXPENSE DATABASE'!$T$189,K25='EXPENSE DATABASE'!$T$190,K25='EXPENSE DATABASE'!$T$191),O25,\"\")","v":""},{"$f":"VLOOKUP(I25,'EXPENSE DATABASE'!$B$41:$C$65,2,FALSE)","v":1},1,{"$f":"VLOOKUP(J25,'EXPENSE DATABASE'!$B$69:$C$168,2,FALSE)","v":4},4,{"$f":"VLOOKUP(K25,'EXPENSE DATABASE'!$B$6:$C$35,2,FALSE)","v":18},18,{"$f":"VLOOKUP(L25,'EXPENSE DATABASE'!$B$173:$C$176,2,FALSE)","v":1},1,1,1,{"$f":"IF(L25=T('EXPENSE DATABASE'!$E$173),O25,0)","v":500},{"$f":"IF(L25=T('EXPENSE DATABASE'!$E$174),O25,0)","v":0},{"$f":"IF(L25=T('EXPENSE DATABASE'!$E$175),O25,0)","v":0},8,12,{"$nulls":6},{"$f":"Table6[[#This Row],[QTY]]*Table6[[#This Row],[UNIT COST]]","v":{"v":0,"d":"$0.00"}},{"$f":"IF(Table6[[#This Row],[TOTAL AMOUNT]]>0,1,0)","v":0},{"$f":"VLOOKUP(Table6[[#This Row],[INCOME TYPE]],'EXPENSE DATABASE'!$B$186:$C$195,2,FALSE)","v":{"$error":"#N/A"}},11]
[1,1,null,null,"2014-08-05",null,"Doors, Trim, Handrail - Home Depot","Credit Card","Home Depot Credit Card","Home Depot","DOORS & TRIM","MATERIAL",{"v":1,"d":"1.0"},{"v":1689.32,"d":"$1,689.32"},{"v":1689.32,"d":"$1,689.32"},{"v":1689.32,"d":"$1,689.32"},{"v":0,"d":"$0.00"},1,{"$f":"IF(OR(K26='EXPENSE DATABASE'!$V$187,K26='EXPENSE DATABASE'!$V$188,K26='EXPENSE DATABASE'!$V$189,K26='EXPENSE DATABASE'!$V$190,K26='EXPENSE DATABASE'!$V$191,K26='EXPENSE DATABASE'!$V$192,K26='EXPENSE DATABASE'!$V$193,K26='EXPENSE DATABASE'!$V$194,K26='EXPENSE DATABASE'!$X$187,K26='EXPENSE DATABASE'!$X$188,K26='EXPENSE DATABASE'!$X$189,K26='EXPENSE DATABASE'!$X$190,K26='EXPENSE DATABASE'!$X$191,K26='EXPENSE DATABASE'!$X$192,K26='EXPENSE DATABASE'!$X$193,K26='EXPENSE DATABASE'!$X$194,K26='EXPENSE DATABASE'!$Z$187,K26='EXPENSE DATABASE'!$Z$188,K26='EXPENSE DATABASE'!$Z$189,K26='EXPENSE DATABASE'!$Z$190,K26='EXPENSE DATABASE'!$Z$191,K26='EXPENSE DATABASE'!$Z$192,K26='EXPENSE DATABASE'!$Z$193,K26='EXPENSE DATABASE'!$Z$194),O26,\"\")","v":1689.32},{"$f":"IF(OR(K26='EXPENSE DATABASE'!$T$189,K26='EXPENSE DATABASE'!$T$190,K26='EXPENSE DATABASE'!$T$191),O26,\"\")","v":""},{"$f":"VLOOKUP(I26,'EXPENSE DATABASE'!$B$41:$C$65,2,FALSE)","v":3},3,{"$f":"VLOOKUP(J26,'EXPENSE DATABASE'!$B$69:$C$168,2,FALSE)","v":6},6,{"$f":"VLOOKUP(K26,'EXPENSE DATABASE'!$B$6:$C$35,2,FALSE)","v":20},20,{"$f":"VLOOKUP(L26,'EXPENSE DATABASE'!$B$173:$C$176,2,FALSE)","v":2},2,1,1,{"$f":"IF(L26=T('EXPENSE DATABASE'!$E$173),O26,0)","v":0},{"$f":"IF(L26=T('EXPENSE DATABASE'!$E$174),O26,0)","v":1689.32},{"$f":"IF(L26=T('EXPENSE DATABASE'!$E$175),O26,0)","v":0},8,13,{"$nulls":6},{"$f":"Table6[[#This Row],[QTY]]*Table6[[#This Row],[UNIT COST]]","v":{"v":0,"d":"$0.00"}},{"$f":"IF(Table6[[#This Row],[TOTAL AMOUNT]]>0,1,0)","v":0},{"$f":"VLOOKUP(Table6[[#This Row],[INCOME TYPE]],'EXPENSE DATABASE'!$B$186:$C$195,2,FALSE)","v":{"$error":"#N/A"}},11]
[1,1,null,null,"2014-08-11",null,"Doors & Trim Installation - 1st Payment","Check","HFS REI Checking Account","Affordable Rehab & Remodeling","DOORS & TRIM","LABOR/EQUIP",{"v":1,"d":"1.0"},{"v":825,"d":"$825.00"},{"v":825,"d":"$825.00"},{"v":825,"d":"$825.00"},{"v":0,"d":"$0.00"},1,{"$f":"IF(OR(K27='EXPENSE DATABASE'!$V$187,K27='EXPENSE DATABASE'!$V$188,K27='EXPENSE DATABASE'!$V$189,K27='EXPENSE DATABASE'!$V$190,K27='EXPENSE DATABASE'!$V$191,K27='EXPENSE DATABASE'!$V$192,K27='EXPENSE DATABASE'!$V$193,K27='EXPENSE DATABASE'!$V$194,K27='EXPENSE DATABASE'!$X$187,K27='EXPENSE DATABASE'!$X$188,K27='EXPENSE DATABASE'!$X$189,K27='EXPENSE DATABASE'!$X$190,K27='EXPENSE DATABASE'!$X$191,K27='EXPENSE DATABASE'!$X$192,K27='EXPENSE DATABASE'!$X$193,K27='EXPENSE DATABASE'!$X$194,K27='EXPENSE DATABASE'!$Z$187,K27='EXPENSE DATABASE'!$Z$188,K27='EXPENSE DATABASE'!$Z$189,K27='EXPENSE DATABASE'!$Z$190,K27='EXPENSE DATABASE'!$Z$191,K27='EXPENSE DATABASE'!$Z$192,K27='EXPENSE DATABASE'!$Z$193,K27='EXPENSE DATABASE'!$Z$194),O27,\"\")","v":825},{"$f":"IF(OR(K27='EXPENSE DATABASE'!$T$189,K27='EXPENSE DATABASE'!$T$190,K27='EXPENSE DATABASE'!$T$191),O27,\"\")","v":""},{"$f":"VLOOKUP(I27,'EXPENSE DATABASE'!$B$41:$C$65,2,FALSE)","v":1},1,{"$f":"VLOOKUP(J27,'EXPENSE DATABASE'!$B$69:$C$168,2,FALSE)","v":4},4,{"$f":"VLOOKUP(K27,'EXPENSE DATABASE'!$B$6:$C$35,2,FALSE)","v":20},20,{"$f":"VLOOKUP(L27,'EXPENSE DATABASE'!$B$173:$C$176,2,FALSE)","v":1},1,1,1,{"$f":"IF(L27=T('EXPENSE DATABASE'!$E$173),O27,0)","v":825},{"$f":"IF(L27=T('EXPENSE DATABASE'!$E$174),O27,0)","v":0},{"$f":"IF(L27=T('EXPENSE DATABASE'!$E$175),O27,0)","v":0},8,14,{"$nulls":6},{"$f":"Table6[[#This Row],[QTY]]*Table6[[#This Row],[UNIT COST]]","v":{"v":0,"d":"$0.00"}},{"$f":"IF(Table6[[#This Row],[TOTAL AMOUNT]]>0,1,0)","v":0},{"$f":"VLOOKUP(Table6[[#This Row],[INCOME TYPE]],'EXPENSE DATABASE'!$B$186:$C$195,2,FALSE)","v":{"$error":"#N/A"}},11]
[1,1,null,null,"2014-08-14",null,"Electrical Fixtures","Credit Card","Chase SW Credit Card","Lowes","ELECTRICAL","MATERIAL",{"v":1,"d":"1.0"},{"v":1360,"d":"$1,360.00"},{"v":1360,"d":"$1,360.00"},{"v":1360,"d":"$1,360.00"},{"v":0,"d":"$0.00"},1,{"$f":"IF(OR(K28='EXPENSE DATABASE'!$V$187,K28='EXPENSE DATABASE'!$V$188,K28='EXPENSE DATABASE'!$V$189,K28='EXPENSE DATABASE'!$V$190,K28='EXPENSE DATABASE'!$V$191,K28='EXPENSE DATABASE'!$V$192,K28='EXPENSE DATABASE'!$V$193,K28='EXPENSE DATABASE'!$V$194,K28='EXPENSE DATABASE'!$X$187,K28='EXPENSE DATABASE'!$X$188,K28='EXPENSE DATABASE'!$X$189,K28='EXPENSE DATABASE'!$X$190,K28='EXPENSE DATABASE'!$X$191,K28='EXPENSE DATABASE'!$X$192,K28='EXPENSE DATABASE'!$X$193,K28='EXPENSE DATABASE'!$X$194,K28='EXPENSE DATABASE'!$Z$187,K28='EXPENSE DATABASE'!$Z$188,K28='EXPENSE DATABASE'!$Z$189,K28='EXPENSE DATABASE'!$Z$190,K28='EXPENSE DATABASE'!$Z$191,K28='EXPENSE DATABASE'!$Z$192,K28='EXPENSE DATABASE'!$Z$193,K28='EXPENSE DATABASE'!$Z$194),O28,\"\")","v":1360},{"$f":"IF(OR(K28='EXPENSE DATABASE'!$T$189,K28='EXPENSE DATABASE'!$T$190,K28='EXPENSE DATABASE'!$T$191),O28,\"\")","v":""},{"$f":"VLOOKUP(I28,'EXPENSE DATABASE'!$B$41:$C$65,2,FALSE)","v":2},2,{"$f":"VLOOKUP(J28,'EXPENSE DATABASE'!$B$69:$C$168,2,FALSE)","v":5},5,{"$f":"VLOOKUP(K28,'EXPENSE DATABASE'!$B$6:$C$35,2,FALSE)","v":28},28,{"$f":"VLOOKUP(L28,'EXPENSE DATABASE'!$B$173:$C$176,2,FALSE)","v":2},2,1,1,{"$f":"IF(L28=T('EXPENSE DATABASE'!$E$173),O28,0)","v":0},{"$f":"IF(L28=T('EXPENSE DATABASE'!$E$174),O28,0)","v":1360},{"$f":"IF(L28=T('EXPENSE DATABASE'!$E$175),O28,0)","v":0},8,15,{"$nulls":6},{"$f":"Table6[[#This Row],[QTY]]*Table6[[#This Row],[UNIT COST]]","v":{"v":0,"d":"$0.00"}},{"$f":"IF(Table6[[#This Row],[TOTAL AMOUNT]]>0,1,0)","v":0},{"$f":"VLOOKUP(Table6[[#This Row],[INCOME TYPE]],'EXPENSE DATABASE'!$B$186:$C$195,2,FALSE)","v":{"$error":"#N/A"}},11]
[1,1,null,null,"2014-08-14",null,"Plumbing Fixtures","Credit Card","Lowes Credit Card","Lowes","PLUMBING","MATERIAL",{"v":1,"d":"1.0"},{"v":2223.08,"d":"$2,223.08"},{"v":2223.08,"d":"$2,223.08"},{"v":2223.08,"d":"$2,223.08"},{"v":0,"d":"$0.00"},1,{"$f":"IF(OR(K29='EXPENSE DATABASE'!$V$187,K29='EXPENSE DATABASE'!$V$188,K29='EXPENSE DATABASE'!$V$189,K29='EXPENSE DATABASE'!$V$190,K29='EXPENSE DATABASE'!$V$191,K29='EXPENSE DATABASE'!$V$192,K29='EXPENSE DATABASE'!$V$193,K29='EXPENSE DATABASE'!$V$194,K29='EXPENSE DATABASE'!$X$187,K29='EXPENSE DATABASE'!$X$188,K29='EXPENSE DATABASE'!$X$189,K29='EXPENSE DATABASE'!$X$190,K29='EXPENSE DATABASE'!$X$191,K29='EXPENSE DATABASE'!$X$192,K29='EXPENSE DATABASE'!$X$193,K29='EXPENSE DATABASE'!$X$194,K29='EXPENSE DATABASE'!$Z$187,K29='EXPENSE DATABASE'!$Z$188,K29='EXPENSE DATABASE'!$Z$189,K29='EXPENSE DATABASE'!$Z$190,K29='EXPENSE DATABASE'!$Z$191,K29='EXPENSE DATABASE'!$Z$192,K29='EXPENSE DATABASE'!$Z$193,K29='EXPENSE DATABASE'!$Z$194),O29,\"\")","v":2223.08},{"$f":"IF(OR(K29='EXPENSE DATABASE'!$T$189,K29='EXPENSE DATABASE'!$T$190,K29='EXPENSE DATABASE'!$T$191),O29,\"\")","v":""},{"$f":"VLOOKUP(I29,'EXPENSE DATABASE'!$B$41:$C$65,2,FALSE)","v":4},4,{"$f":"VLOOKUP(J29,'EXPENSE DATABASE'!$B$69:$C$168,2,FALSE)","v":5},5,{"$f":"VLOOKUP(K29,'EXPENSE DATABASE'!$B$6:$C$35,2,FALSE)","v":26},26,{"$f":"VLOOKUP(L29,'EXPENSE DATABASE'!$B$173:$C$176,2,FALSE)","v":2},2,1,1,{"$f":"IF(L29=T('EXPENSE DATABASE'!$E$173),O29,0)","v":0},{"$f":"IF(L29=T('EXPENSE DATABASE'!$E$174),O29,0)","v":2223.08},{"$f":"IF(L29=T('EXPENSE DATABASE'!$E$175),O29,0)","v":0},8,16,{"$nulls":6},{"$f":"Table6[[#This Row],[QTY]]*Table6[[#This Row],[UNIT COST]]","v":{"v":0,"d":"$0.00"}},{"$f":"IF(Table6[[#This Row],[TOTAL AMOUNT]]>0,1,0)","v":0},{"$f":"VLOOKUP(Table6[[#This Row],[INCOME TYPE]],'EXPENSE DATABASE'!$B$186:$C$195,2,FALSE)","v":{"$error":"#N/A"}},11]
[1,1,null,null,"2014-08-14",null,"Tiling Materials","Credit Card","Lowes Credit Card","Lowes","TILING","MATERIAL",{"v":1,"d":"1.0"},{"v":1675.23,"d":"$1,675.23"},{"v":1675.23,"d":"$1,675.23"},{"v":1675.23,"d":"$1,675.23"},{"v":0,"d":"$0.00"},1,{"$f":"IF(OR(K30='EXPENSE DATABASE'!$V$187,K30='EXPENSE DATABASE'!$V$188,K30='EXPENSE DATABASE'!$V$189,K30='EXPENSE DATABASE'!$V$190,K30='EXPENSE DATABASE'!$V$191,K30='EXPENSE DATABASE'!$V$192,K30='EXPENSE DATABASE'!$V$193,K30='EXPENSE DATABASE'!$V$194,K30='EXPENSE DATABASE'!$X$187,K30='EXPENSE DATABASE'!$X$188,K30='EXPENSE DATABASE'!$X$189,K30='EXPENSE DATABASE'!$X$190,K30='EXPENSE DATABASE'!$X$191,K30='EXPENSE DATABASE'!$X$192,K30='EXPENSE DATABASE'!$X$193,K30='EXPENSE DATABASE'!$X$194,K30='EXPENSE DATABASE'!$Z$187,K30='EXPENSE DATABASE'!$Z$188,K30='EXPENSE DATABASE'!$Z$189,K30='EXPENSE DATABASE'!$Z$190,K30='EXPENSE DATABASE'!$Z$191,K30='EXPENSE DATABASE'!$Z$192,K30='EXPENSE DATABASE'!$Z$193,K30='EXPENSE DATABASE'!$Z$194),O30,\"\")","v":1675.23},{"$f":"IF(OR(K30='EXPENSE DATABASE'!$T$189,K30='EXPENSE DATABASE'!$T$190,K30='EXPENSE DATABASE'!$T$191),O30,\"\")","v":""},{"$f":"VLOOKUP(I30,'EXPENSE DATABASE'!$B$41:$C$65,2,FALSE)","v":4},4,{"$f":"VLOOKUP(J30,'EXPENSE DATABASE'!$B$69:$C$168,2,FALSE)","v":5},5,{"$f":"VLOOKUP(K30,'EXPENSE DATABASE'!$B$6:$C$35,2,FALSE)","v":23},23,{"$f":"VLOOKUP(L30,'EXPENSE DATABASE'!$B$173:$C$176,2,FALSE)","v":2},2,1,1,{"$f":"IF(L30=T('EXPENSE DATABASE'!$E$173),O30,0)","v":0},{"$f":"IF(L30=T('EXPENSE DATABASE'!$E$174),O30,0)","v":1675.23},{"$f":"IF(L30=T('EXPENSE DATABASE'!$E$175),O30,0)","v":0},8,17,{"$nulls":6},{"$f":"Table6[[#This Row],[QTY]]*Table6[[#This Row],[UNIT COST]]","v":{"v":0,"d":"$0.00"}},{"$f":"IF(Table6[[#This Row],[TOTAL AMOUNT]]>0,1,0)","v":0},{"$f":"VLOOKUP(Table6[[#This Row],[INCOME TYPE]],'EXPENSE DATABASE'!$B$186:$C$195,2,FALSE)","v":{"$error":"#N/A"}},11]
[1,1,null,null,"2014-08-15",null,"Doors & Trim Installation - 2ndPayment","Check","HFS REI Checking Account","Affordable Rehab & Remodeling","DOORS & TRIM","LABOR/EQUIP",{"v":1,"d":"1.0"},{"v":825,"d":"$825.00"},{"v":825,"d":"$825.00"},{"v":825,"d":"$825.00"},{"v":0,"d":"$0.00"},1,{"$f":"IF(OR(K31='EXPENSE DATABASE'!$V$187,K31='EXPENSE DATABASE'!$V$188,K31='EXPENSE DATABASE'!$V$189,K31='EXPENSE DATABASE'!$V$190,K31='EXPENSE DATABASE'!$V$191,K31='EXPENSE DATABASE'!$V$192,K31='EXPENSE DATABASE'!$V$193,K31='EXPENSE DATABASE'!$V$194,K31='EXPENSE DATABASE'!$X$187,K31='EXPENSE DATABASE'!$X$188,K31='EXPENSE DATABASE'!$X$189,K31='EXPENSE DATABASE'!$X$190,K31='EXPENSE DATABASE'!$X$191,K31='EXPENSE DATABASE'!$X$192,K31='EXPENSE DATABASE'!$X$193,K31='EXPENSE DATABASE'!$X$194,K31='EXPENSE DATABASE'!$Z$187,K31='EXPENSE DATABASE'!$Z$188,K31='EXPENSE DATABASE'!$Z$189,K31='EXPENSE DATABASE'!$Z$190,K31='EXPENSE DATABASE'!$Z$191,K31='EXPENSE DATABASE'!$Z$192,K31='EXPENSE DATABASE'!$Z$193,K31='EXPENSE DATABASE'!$Z$194),O31,\"\")","v":825},{"$f":"IF(OR(K31='EXPENSE DATABASE'!$T$189,K31='EXPENSE DATABASE'!$T$190,K31='EXPENSE DATABASE'!$T$191),O31,\"\")","v":""},{"$f":"VLOOKUP(I31,'EXPENSE DATABASE'!$B$41:$C$65,2,FALSE)","v":1},1,{"$f":"VLOOKUP(J31,'EXPENSE DATABASE'!$B$69:$C$168,2,FALSE)","v":4},4,{"$f":"VLOOKUP(K31,'EXPENSE DATABASE'!$B$6:$C$35,2,FALSE)","v":20},20,{"$f":"VLOOKUP(L31,'EXPENSE DATABASE'!$B$173:$C$176,2,FALSE)","v":1},1,1,1,{"$f":"IF(L31=T('EXPENSE DATABASE'!$E$173),O31,0)","v":825},{"$f":"IF(L31=T('EXPENSE DATABASE'!$E$174),O31,0)","v":0},{"$f":"IF(L31=T('EXPENSE DATABASE'!$E$175),O31,0)","v":0},8,18,{"$nulls":6},{"$f":"Table6[[#This Row],[QTY]]*Table6[[#This Row],[UNIT COST]]","v":{"v":0,"d":"$0.00"}},{"$f":"IF(Table6[[#This Row],[TOTAL AMOUNT]]>0,1,0)","v":0},{"$f":"VLOOKUP(Table6[[#This Row],[INCOME TYPE]],'EXPENSE DATABASE'!$B$186:$C$195,2,FALSE)","v":{"$error":"#N/A"}},11]
[1,1,null,null,"2014-08-18",null,"Paint Materials","Credit Card","Chase SW Credit Card","Sherwin Williams","PAINTING","MATERIAL",{"v":1,"d":"1.0"},{"v":2652.45,"d":"$2,652.45"},{"v":2652.45,"d":"$2,652.45"},{"v":2652.45,"d":"$2,652.45"},{"v":0,"d":"$0.00"},1,{"$f":"IF(OR(K32='EXPENSE DATABASE'!$V$187,K32='EXPENSE DATABASE'!$V$188,K32='EXPENSE DATABASE'!$V$189,K32='EXPENSE DATABASE'!$V$190,K32='EXPENSE DATABASE'!$V$191,K32='EXPENSE DATABASE'!$V$192,K32='EXPENSE DATABASE'!$V$193,K32='EXPENSE DATABASE'!$V$194,K32='EXPENSE DATABASE'!$X$187,K32='EXPENSE DATABASE'!$X$188,K32='EXPENSE DATABASE'!$X$189,K32='EXPENSE DATABASE'!$X$190,K32='EXPENSE DATABASE'!$X$191,K32='EXPENSE DATABASE'!$X$192,K32='EXPENSE DATABASE'!$X$193,K32='EXPENSE DATABASE'!$X$194,K32='EXPENSE DATABASE'!$Z$187,K32='EXPENSE DATABASE'!$Z$188,K32='EXPENSE DATABASE'!$Z$189,K32='EXPENSE DATABASE'!$Z$190,K32='EXPENSE DATABASE'!$Z$191,K32='EXPENSE DATABASE'!$Z$192,K32='EXPENSE DATABASE'!$Z$193,K32='EXPENSE DATABASE'!$Z$194),O32,\"\")","v":2652.45},{"$f":"IF(OR(K32='EXPENSE DATABASE'!$T$189,K32='EXPENSE DATABASE'!$T$190,K32='EXPENSE DATABASE'!$T$191),O32,\"\")","v":""},{"$f":"VLOOKUP(I32,'EXPENSE DATABASE'!$B$41:$C$65,2,FALSE)","v":2},2,{"$f":"VLOOKUP(J32,'EXPENSE DATABASE'!$B$69:$C$168,2,FALSE)","v":8},8,{"$f":"VLOOKUP(K32,'EXPENSE DATABASE'!$B$6:$C$35,2,FALSE)","v":24},24,{"$f":"VLOOKUP(L32,'EXPENSE DATABASE'!$B$173:$C$176,2,FALSE)","v":2},2,1,1,{"$f":"IF(L32=T('EXPENSE DATABASE'!$E$173),O32,0)","v":0},{"$f":"IF(L32=T('EXPENSE DATABASE'!$E$174),O32,0)","v":2652.45},{"$f":"IF(L32=T('EXPENSE DATABASE'!$E$175),O32,0)","v":0},8,19,{"$nulls":6},{"$f":"Table6[[#This Row],[QTY]]*Table6[[#This Row],[UNIT COST]]","v":{"v":0,"d":"$0.00"}},{"$f":"IF(Table6[[#This Row],[TOTAL AMOUNT]]>0,1,0)","v":0},{"$f":"VLOOKUP(Table6[[#This Row],[INCOME TYPE]],'EXPENSE DATABASE'!$B$186:$C$195,2,FALSE)","v":{"$error":"#N/A"}},11]
[1,1,null,null,"2014-08-18",null,"Exterior Painting - 1st Payment","Check","HFS REI Checking Account","Affordable Rehab & Remodeling","PAINTING","LABOR/EQUIP",{"v":1,"d":"1.0"},{"v":1250,"d":"$1,250.00"},{"v":1250,"d":"$1,250.00"},{"v":1250,"d":"$1,250.00"},{"v":0,"d":"$0.00"},1,{"$f":"IF(OR(K33='EXPENSE DATABASE'!$V$187,K33='EXPENSE DATABASE'!$V$188,K33='EXPENSE DATABASE'!$V$189,K33='EXPENSE DATABASE'!$V$190,K33='EXPENSE DATABASE'!$V$191,K33='EXPENSE DATABASE'!$V$192,K33='EXPENSE DATABASE'!$V$193,K33='EXPENSE DATABASE'!$V$194,K33='EXPENSE DATABASE'!$X$187,K33='EXPENSE DATABASE'!$X$188,K33='EXPENSE DATABASE'!$X$189,K33='EXPENSE DATABASE'!$X$190,K33='EXPENSE DATABASE'!$X$191,K33='EXPENSE DATABASE'!$X$192,K33='EXPENSE DATABASE'!$X$193,K33='EXPENSE DATABASE'!$X$194,K33='EXPENSE DATABASE'!$Z$187,K33='EXPENSE DATABASE'!$Z$188,K33='EXPENSE DATABASE'!$Z$189,K33='EXPENSE DATABASE'!$Z$190,K33='EXPENSE DATABASE'!$Z$191,K33='EXPENSE DATABASE'!$Z$192,K33='EXPENSE DATABASE'!$Z$193,K33='EXPENSE DATABASE'!$Z$194),O33,\"\")","v":1250},{"$f":"IF(OR(K33='EXPENSE DATABASE'!$T$189,K33='EXPENSE DATABASE'!$T$190,K33='EXPENSE DATABASE'!$T$191),O33,\"\")","v":""},{"$f":"VLOOKUP(I33,'EXPENSE DATABASE'!$B$41:$C$65,2,FALSE)","v":1},1,{"$f":"VLOOKUP(J33,'EXPENSE DATABASE'!$B$69:$C$168,2,FALSE)","v":4},4,{"$f":"VLOOKUP(K33,'EXPENSE DATABASE'!$B$6:$C$35,2,FALSE)","v":24},24,{"$f":"VLOOKUP(L33,'EXPENSE DATABASE'!$B$173:$C$176,2,FALSE)","v":1},1,1,1,{"$f":"IF(L33=T('EXPENSE DATABASE'!$E$173),O33,0)","v":1250},{"$f":"IF(L33=T('EXPENSE DATABASE'!$E$174),O33,0)","v":0},{"$f":"IF(L33=T('EXPENSE DATABASE'!$E$175),O33,0)","v":0},8,20,{"$nulls":6},{"$f":"Table6[[#This Row],[QTY]]*Table6[[#This Row],[UNIT COST]]","v":{"v":0,"d":"$0.00"}},{"$f":"IF(Table6[[#This Row],[TOTAL AMOUNT]]>0,1,0)","v":0},{"$f":"VLOOKUP(Table6[[#This Row],[INCOME TYPE]],'EXPENSE DATABASE'!$B$186:$C$195,2,FALSE)","v":{"$error":"#N/A"}},11]
[1,1,null,null,"2014-08-18",null,"Interior Painting - 1st Payment","Check","HFS REI Checking Account","Affordable Rehab & Remodeling","PAINTING","LABOR/EQUIP",{"v":1,"d":"1.0"},{"v":1000,"d":"$1,000.00"},{"v":1000,"d":"$1,000.00"},{"v":1000,"d":"$1,000.00"},{"v":0,"d":"$0.00"},1,{"$f":"IF(OR(K34='EXPENSE DATABASE'!$V$187,K34='EXPENSE DATABASE'!$V$188,K34='EXPENSE DATABASE'!$V$189,K34='EXPENSE DATABASE'!$V$190,K34='EXPENSE DATABASE'!$V$191,K34='EXPENSE DATABASE'!$V$192,K34='EXPENSE DATABASE'!$V$193,K34='EXPENSE DATABASE'!$V$194,K34='EXPENSE DATABASE'!$X$187,K34='EXPENSE DATABASE'!$X$188,K34='EXPENSE DATABASE'!$X$189,K34='EXPENSE DATABASE'!$X$190,K34='EXPENSE DATABASE'!$X$191,K34='EXPENSE DATABASE'!$X$192,K34='EXPENSE DATABASE'!$X$193,K34='EXPENSE DATABASE'!$X$194,K34='EXPENSE DATABASE'!$Z$187,K34='EXPENSE DATABASE'!$Z$188,K34='EXPENSE DATABASE'!$Z$189,K34='EXPENSE DATABASE'!$Z$190,K34='EXPENSE DATABASE'!$Z$191,K34='EXPENSE DATABASE'!$Z$192,K34='EXPENSE DATABASE'!$Z$193,K34='EXPENSE DATABASE'!$Z$194),O34,\"\")","v":1000},{"$f":"IF(OR(K34='EXPENSE DATABASE'!$T$189,K34='EXPENSE DATABASE'!$T$190,K34='EXPENSE DATABASE'!$T$191),O34,\"\")","v":""},{"$f":"VLOOKUP(I34,'EXPENSE DATABASE'!$B$41:$C$65,2,FALSE)","v":1},1,{"$f":"VLOOKUP(J34,'EXPENSE DATABASE'!$B$69:$C$168,2,FALSE)","v":4},4,{"$f":"VLOOKUP(K34,'EXPENSE DATABASE'!$B$6:$C$35,2,FALSE)","v":24},24,{"$f":"VLOOKUP(L34,'EXPENSE DATABASE'!$B$173:$C$176,2,FALSE)","v":1},1,1,1,{"$f":"IF(L34=T('EXPENSE DATABASE'!$E$173),O34,0)","v":1000},{"$f":"IF(L34=T('EXPENSE DATABASE'!$E$174),O34,0)","v":0},{"$f":"IF(L34=T('EXPENSE DATABASE'!$E$175),O34,0)","v":0},8,21,{"$nulls":6},{"$f":"Table6[[#This Row],[QTY]]*Table6[[#This Row],[UNIT COST]]","v":{"v":0,"d":"$0.00"}},{"$f":"IF(Table6[[#This Row],[TOTAL AMOUNT]]>0,1,0)","v":0},{"$f":"VLOOKUP(Table6[[#This Row],[INCOME TYPE]],'EXPENSE DATABASE'!$B$186:$C$195,2,FALSE)","v":{"$error":"#N/A"}},11]
[1,1,null,null,"2014-08-25",null,"Tiling - 1st Payment","Check","HFS REI Checking Account","Lowes","TILING","LABOR/EQUIP",{"v":1,"d":"1.0"},{"v":650,"d":"$650.00"},{"v":650,"d":"$650.00"},{"v":650,"d":"$650.00"},{"v":0,"d":"$0.00"},1,{"$f":"IF(OR(K35='EXPENSE DATABASE'!$V$187,K35='EXPENSE DATABASE'!$V$188,K35='EXPENSE DATABASE'!$V$189,K35='EXPENSE DATABASE'!$V$190,K35='EXPENSE DATABASE'!$V$191,K35='EXPENSE DATABASE'!$V$192,K35='EXPENSE DATABASE'!$V$193,K35='EXPENSE DATABASE'!$V$194,K35='EXPENSE DATABASE'!$X$187,K35='EXPENSE DATABASE'!$X$188,K35='EXPENSE DATABASE'!$X$189,K35='EXPENSE DATABASE'!$X$190,K35='EXPENSE DATABASE'!$X$191,K35='EXPENSE DATABASE'!$X$192,K35='EXPENSE DATABASE'!$X$193,K35='EXPENSE DATABASE'!$X$194,K35='EXPENSE DATABASE'!$Z$187,K35='EXPENSE DATABASE'!$Z$188,K35='EXPENSE DATABASE'!$Z$189,K35='EXPENSE DATABASE'!$Z$190,K35='EXPENSE DATABASE'!$Z$191,K35='EXPENSE DATABASE'!$Z$192,K35='EXPENSE DATABASE'!$Z$193,K35='EXPENSE DATABASE'!$Z$194),O35,\"\")","v":650},{"$f":"IF(OR(K35='EXPENSE DATABASE'!$T$189,K35='EXPENSE DATABASE'!$T$190,K35='EXPENSE DATABASE'!$T$191),O35,\"\")","v":""},{"$f":"VLOOKUP(I35,'EXPENSE DATABASE'!$B$41:$C$65,2,FALSE)","v":1},1,{"$f":"VLOOKUP(J35,'EXPENSE DATABASE'!$B$69:$C$168,2,FALSE)","v":5},5,{"$f":"VLOOKUP(K35,'EXPENSE DATABASE'!$B$6:$C$35,2,FALSE)","v":23},23,{"$f":"VLOOKUP(L35,'EXPENSE DATABASE'!$B$173:$C$176,2,FALSE)","v":1},1,1,1,{"$f":"IF(L35=T('EXPENSE DATABASE'!$E$173),O35,0)","v":650},{"$f":"IF(L35=T('EXPENSE DATABASE'!$E$174),O35,0)","v":0},{"$f":"IF(L35=T('EXPENSE DATABASE'!$E$175),O35,0)","v":0},8,22,{"$nulls":6},{"$f":"Table6[[#This Row],[QTY]]*Table6[[#This Row],[UNIT COST]]","v":{"v":0,"d":"$0.00"}},{"$f":"IF(Table6[[#This Row],[TOTAL AMOUNT]]>0,1,0)","v":0},{"$f":"VLOOKUP(Table6[[#This Row],[INCOME TYPE]],'EXPENSE DATABASE'!$B$186:$C$195,2,FALSE)","v":{"$error":"#N/A"}},11]
[1,1,null,null,"2014-08-25",null,"Hardwood flooring materials","Credit Card","Lowes Credit Card","Home Depot","HARDWOOD FLOORING","MATERIAL",{"v":1,"d":"1.0"},{"v":567.2,"d":"$567.20"},{"v":567.2,"d":"$567.20"},{"v":567.2,"d":"$567.20"},{"v":0,"d":"$0.00"},1,{"$f":"IF(OR(K36='EXPENSE DATABASE'!$V$187,K36='EXPENSE DATABASE'!$V$188,K36='EXPENSE DATABASE'!$V$189,K36='EXPENSE DATABASE'!$V$190,K36='EXPENSE DATABASE'!$V$191,K36='EXPENSE DATABASE'!$V$192,K36='EXPENSE DATABASE'!$V$193,K36='EXPENSE DATABASE'!$V$194,K36='EXPENSE DATABASE'!$X$187,K36='EXPENSE DATABASE'!$X$188,K36='EXPENSE DATABASE'!$X$189,K36='EXPENSE DATABASE'!$X$190,K36='EXPENSE DATABASE'!$X$191,K36='EXPENSE DATABASE'!$X$192,K36='EXPENSE DATABASE'!$X$193,K36='EXPENSE DATABASE'!$X$194,K36='EXPENSE DATABASE'!$Z$187,K36='EXPENSE DATABASE'!$Z$188,K36='EXPENSE DATABASE'!$Z$189,K36='EXPENSE DATABASE'!$Z$190,K36='EXPENSE DATABASE'!$Z$191,K36='EXPENSE DATABASE'!$Z$192,K36='EXPENSE DATABASE'!$Z$193,K36='EXPENSE DATABASE'!$Z$194),O36,\"\")","v":567.2},{"$f":"IF(OR(K36='EXPENSE DATABASE'!$T$189,K36='EXPENSE DATABASE'!$T$190,K36='EXPENSE DATABASE'!$T$191),O36,\"\")","v":""},{"$f":"VLOOKUP(I36,'EXPENSE DATABASE'!$B$41:$C$65,2,FALSE)","v":4},4,{"$f":"VLOOKUP(J36,'EXPENSE DATABASE'!$B$69:$C$168,2,FALSE)","v":6},6,{"$f":"VLOOKUP(K36,'EXPENSE DATABASE'!$B$6:$C$35,2,FALSE)","v":22},22,{"$f":"VLOOKUP(L36,'EXPENSE DATABASE'!$B$173:$C$176,2,FALSE)","v":2},2,1,1,{"$f":"IF(L36=T('EXPENSE DATABASE'!$E$173),O36,0)","v":0},{"$f":"IF(L36=T('EXPENSE DATABASE'!$E$174),O36,0)","v":567.2},{"$f":"IF(L36=T('EXPENSE DATABASE'!$E$175),O36,0)","v":0},8,23,{"$nulls":6},{"$f":"Table6[[#This Row],[QTY]]*Table6[[#This Row],[UNIT COST]]","v":{"v":0,"d":"$0.00"}},{"$f":"IF(Table6[[#This Row],[TOTAL AMOUNT]]>0,1,0)","v":0},{"$f":"VLOOKUP(Table6[[#This Row],[INCOME TYPE]],'EXPENSE DATABASE'!$B$186:$C$195,2,FALSE)","v":{"$error":"#N/A"}},11]
[1,1,null,null,"2014-08-25",null,"Dumpster Rental","Credit Card","Chase SW Credit Card","Defenbaugh Industries","DEMOLITION","MATERIAL",{"v":1,"d":"1.0"},{"v":370,"d":"$370.00"},{"v":370,"d":"$370.00"},{"v":370,"d":"$370.00"},{"v":0,"d":"$0.00"},1,{"$f":"IF(OR(K37='EXPENSE DATABASE'!$V$187,K37='EXPENSE DATABASE'!$V$188,K37='EXPENSE DATABASE'!$V$189,K37='EXPENSE DATABASE'!$V$190,K37='EXPENSE DATABASE'!$V$191,K37='EXPENSE DATABASE'!$V$192,K37='EXPENSE DATABASE'!$V$193,K37='EXPENSE DATABASE'!$V$194,K37='EXPENSE DATABASE'!$X$187,K37='EXPENSE DATABASE'!$X$188,K37='EXPENSE DATABASE'!$X$189,K37='EXPENSE DATABASE'!$X$190,K37='EXPENSE DATABASE'!$X$191,K37='EXPENSE DATABASE'!$X$192,K37='EXPENSE DATABASE'!$X$193,K37='EXPENSE DATABASE'!$X$194,K37='EXPENSE DATABASE'!$Z$187,K37='EXPENSE DATABASE'!$Z$188,K37='EXPENSE DATABASE'!$Z$189,K37='EXPENSE DATABASE'!$Z$190,K37='EXPENSE DATABASE'!$Z$191,K37='EXPENSE DATABASE'!$Z$192,K37='EXPENSE DATABASE'!$Z$193,K37='EXPENSE DATABASE'!$Z$194),O37,\"\")","v":370},{"$f":"IF(OR(K37='EXPENSE DATABASE'!$T$189,K37='EXPENSE DATABASE'!$T$190,K37='EXPENSE DATABASE'!$T$191),O37,\"\")","v":""},{"$f":"VLOOKUP(I37,'EXPENSE DATABASE'!$B$41:$C$65,2,FALSE)","v":2},2,{"$f":"VLOOKUP(J37,'EXPENSE DATABASE'!$B$69:$C$168,2,FALSE)","v":2},2,{"$f":"VLOOKUP(K37,'EXPENSE DATABASE'!$B$6:$C$35,2,FALSE)","v":7},7,{"$f":"VLOOKUP(L37,'EXPENSE DATABASE'!$B$173:$C$176,2,FALSE)","v":2},2,1,1,{"$f":"IF(L37=T('EXPENSE DATABASE'!$E$173),O37,0)","v":0},{"$f":"IF(L37=T('EXPENSE DATABASE'!$E$174),O37,0)","v":370},{"$f":"IF(L37=T('EXPENSE DATABASE'!$E$175),O37,0)","v":0},8,24,{"$nulls":6},{"$f":"Table6[[#This Row],[QTY]]*Table6[[#This Row],[UNIT COST]]","v":{"v":0,"d":"$0.00"}},{"$f":"IF(Table6[[#This Row],[TOTAL AMOUNT]]>0,1,0)","v":0},{"$f":"VLOOKUP(Table6[[#This Row],[INCOME TYPE]],'EXPENSE DATABASE'!$B$186:$C$195,2,FALSE)","v":{"$error":"#N/A"}},11]
[1,-1,null,null,"2014-08-25",null,"Electrical Change order","Check","HFS REI Checking Account","Ace Electric",null,"SUBCONTRACTOR",{"v":1,"d":"1.0"},{"v":500,"d":"$500.00"},{"v":500,"d":"$500.00"},{"v":500,"d":"$500.00"},{"v":0,"d":"$0.00"},1,{"$f":"IF(OR(K38='EXPENSE DATABASE'!$V$187,K38='EXPENSE DATABASE'!$V$188,K38='EXPENSE DATABASE'!$V$189,K38='EXPENSE DATABASE'!$V$190,K38='EXPENSE DATABASE'!$V$191,K38='EXPENSE DATABASE'!$V$192,K38='EXPENSE DATABASE'!$V$193,K38='EXPENSE DATABASE'!$V$194,K38='EXPENSE DATABASE'!$X$187,K38='EXPENSE DATABASE'!$X$188,K38='EXPENSE DATABASE'!$X$189,K38='EXPENSE DATABASE'!$X$190,K38='EXPENSE DATABASE'!$X$191,K38='EXPENSE DATABASE'!$X$192,K38='EXPENSE DATABASE'!$X$193,K38='EXPENSE DATABASE'!$X$194,K38='EXPENSE DATABASE'!$Z$187,K38='EXPENSE DATABASE'!$Z$188,K38='EXPENSE DATABASE'!$Z$189,K38='EXPENSE DATABASE'!$Z$190,K38='EXPENSE DATABASE'!$Z$191,K38='EXPENSE DATABASE'!$Z$192,K38='EXPENSE DATABASE'!$Z$193,K38='EXPENSE DATABASE'!$Z$194),O38,\"\")","v":""},{"$f":"IF(OR(K38='EXPENSE DATABASE'!$T$189,K38='EXPENSE DATABASE'!$T$190,K38='EXPENSE DATABASE'!$T$191),O38,\"\")","v":""},{"$f":"VLOOKUP(I38,'EXPENSE DATABASE'!$B$41:$C$65,2,FALSE)","v":1},1,{"$f":"VLOOKUP(J38,'EXPENSE DATABASE'!$B$69:$C$168,2,FALSE)","v":7},7,{"$f":"VLOOKUP(K38,'EXPENSE DATABASE'!$B$6:$C$35,2,FALSE)","v":{"$error":"#N/A"}},31,{"$f":"VLOOKUP(L38,'EXPENSE DATABASE'!$B$173:$C$176,2,FALSE)","v":3},3,0,1,{"$f":"IF(L38=T('EXPENSE DATABASE'!$E$173),O38,0)","v":0},{"$f":"IF(L38=T('EXPENSE DATABASE'!$E$174),O38,0)","v":0},{"$f":"IF(L38=T('EXPENSE DATABASE'!$E$175),O38,0)","v":500},8,25,{"$nulls":6},{"$f":"Table6[[#This Row],[QTY]]*Table6[[#This Row],[UNIT COST]]","v":{"v":0,"d":"$0.00"}},{"$f":"IF(Table6[[#This Row],[TOTAL AMOUNT]]>0,1,0)","v":0},{"$f":"VLOOKUP(Table6[[#This Row],[INCOME TYPE]],'EXPENSE DATABASE'!$B$186:$C$195,2,FALSE)","v":{"$error":"#N/A"}},11]
[0,0,{"$nulls":12},{"v":0,"d":"$0.00"},{"v":0,"d":"$0.00"},{"v":0,"d":"$0.00"},0,{"$f":"IF(OR(K39='EXPENSE DATABASE'!$V$187,K39='EXPENSE DATABASE'!$V$188,K39='EXPENSE DATABASE'!$V$189,K39='EXPENSE DATABASE'!$V$190,K39='EXPENSE DATABASE'!$V$191,K39='EXPENSE DATABASE'!$V$192,K39='EXPENSE DATABASE'!$V$193,K39='EXPENSE DATABASE'!$V$194,K39='EXPENSE DATABASE'!$X$187,K39='EXPENSE DATABASE'!$X$188,K39='EXPENSE DATABASE'!$X$189,K39='EXPENSE DATABASE'!$X$190,K39='EXPENSE DATABASE'!$X$191,K39='EXPENSE DATABASE'!$X$192,K39='EXPENSE DATABASE'!$X$193,K39='EXPENSE DATABASE'!$X$194,K39='EXPENSE DATABASE'!$Z$187,K39='EXPENSE DATABASE'!$Z$188,K39='EXPENSE DATABASE'!$Z$189,K39='EXPENSE DATABASE'!$Z$190,K39='EXPENSE DATABASE'!$Z$191,K39='EXPENSE DATABASE'!$Z$192,K39='EXPENSE DATABASE'!$Z$193,K39='EXPENSE DATABASE'!$Z$194),O39,\"\")","v":""},{"$f":"IF(OR(K39='EXPENSE DATABASE'!$T$189,K39='EXPENSE DATABASE'!$T$190,K39='EXPENSE DATABASE'!$T$191),O39,\"\")","v":""},{"$f":"VLOOKUP(I39,'EXPENSE DATABASE'!$B$41:$C$65,2,FALSE)","v":{"$error":"#N/A"}},100,{"$f":"VLOOKUP(J39,'EXPENSE DATABASE'!$B$69:$C$168,2,FALSE)","v":{"$error":"#N/A"}},101,{"$f":"VLOOKUP(K39,'EXPENSE DATABASE'!$B$6:$C$35,2,FALSE)","v":{"$error":"#N/A"}},31,{"$f":"VLOOKUP(L39,'EXPENSE DATABASE'!$B$173:$C$176,2,FALSE)","v":{"$error":"#N/A"}},100,0,0,{"$f":"IF(L39=T('EXPENSE DATABASE'!$E$173),O39,0)","v":0},{"$f":"IF(L39=T('EXPENSE DATABASE'!$E$174),O39,0)","v":0},{"$f":"IF(L39=T('EXPENSE DATABASE'!$E$175),O39,0)","v":0},0,26,{"$nulls":6},{"$f":"Table6[[#This Row],[QTY]]*Table6[[#This Row],[UNIT COST]]","v":{"v":0,"d":"$0.00"}},{"$f":"IF(Table6[[#This Row],[TOTAL AMOUNT]]>0,1,0)","v":0},{"$f":"VLOOKUP(Table6[[#This Row],[INCOME TYPE]],'EXPENSE DATABASE'!$B$186:$C$195,2,FALSE)","v":{"$error":"#N/A"}},11]
[0,0,{"$nulls":12},{"v":0,"d":"$0.00"},{"v":0,"d":"$0.00"},{"v":0,"d":"$0.00"},0,{"$f":"IF(OR(K40='EXPENSE DATABASE'!$V$187,K40='EXPENSE DATABASE'!$V$188,K40='EXPENSE DATABASE'!$V$189,K40='EXPENSE DATABASE'!$V$190,K40='EXPENSE DATABASE'!$V$191,K40='EXPENSE DATABASE'!$V$192,K40='EXPENSE DATABASE'!$V$193,K40='EXPENSE DATABASE'!$V$194,K40='EXPENSE DATABASE'!$X$187,K40='EXPENSE DATABASE'!$X$188,K40='EXPENSE DATABASE'!$X$189,K40='EXPENSE DATABASE'!$X$190,K40='EXPENSE DATABASE'!$X$191,K40='EXPENSE DATABASE'!$X$192,K40='EXPENSE DATABASE'!$X$193,K40='EXPENSE DATABASE'!$X$194,K40='EXPENSE DATABASE'!$Z$187,K40='EXPENSE DATABASE'!$Z$188,K40='EXPENSE DATABASE'!$Z$189,K40='EXPENSE DATABASE'!$Z$190,K40='EXPENSE DATABASE'!$Z$191,K40='EXPENSE DATABASE'!$Z$192,K40='EXPENSE DATABASE'!$Z$193,K40='EXPENSE DATABASE'!$Z$194),O40,\"\")","v":""},{"$f":"IF(OR(K40='EXPENSE DATABASE'!$T$189,K40='EXPENSE DATABASE'!$T$190,K40='EXPENSE DATABASE'!$T$191),O40,\"\")","v":""},{"$f":"VLOOKUP(I40,'EXPENSE DATABASE'!$B$41:$C$65,2,FALSE)","v":{"$error":"#N/A"}},100,{"$f":"VLOOKUP(J40,'EXPENSE DATABASE'!$B$69:$C$168,2,FALSE)","v":{"$error":"#N/A"}},101,{"$f":"VLOOKUP(K40,'EXPENSE DATABASE'!$B$6:$C$35,2,FALSE)","v":{"$error":"#N/A"}},31,{"$f":"VLOOKUP(L40,'EXPENSE DATABASE'!$B$173:$C$176,2,FALSE)","v":{"$error":"#N/A"}},100,0,0,{"$f":"IF(L40=T('EXPENSE DATABASE'!$E$173),O40,0)","v":0},{"$f":"IF(L40=T('EXPENSE DATABASE'!$E$174),O40,0)","v":0},{"$f":"IF(L40=T('EXPENSE DATABASE'!$E$175),O40,0)","v":0},0,27,{"$nulls":6},{"$f":"Table6[[#This Row],[QTY]]*Table6[[#This Row],[UNIT COST]]","v":{"v":0,"d":"$0.00"}},{"$f":"IF(Table6[[#This Row],[TOTAL AMOUNT]]>0,1,0)","v":0},{"$f":"VLOOKUP(Table6[[#This Row],[INCOME TYPE]],'EXPENSE DATABASE'!$B$186:$C$195,2,FALSE)","v":{"$error":"#N/A"}},11]
[0,0,{"$nulls":12},{"v":0,"d":"$0.00"},{"v":0,"d":"$0.00"},{"v":0,"d":"$0.00"},0,{"$f":"IF(OR(K41='EXPENSE DATABASE'!$V$187,K41='EXPENSE DATABASE'!$V$188,K41='EXPENSE DATABASE'!$V$189,K41='EXPENSE DATABASE'!$V$190,K41='EXPENSE DATABASE'!$V$191,K41='EXPENSE DATABASE'!$V$192,K41='EXPENSE DATABASE'!$V$193,K41='EXPENSE DATABASE'!$V$194,K41='EXPENSE DATABASE'!$X$187,K41='EXPENSE DATABASE'!$X$188,K41='EXPENSE DATABASE'!$X$189,K41='EXPENSE DATABASE'!$X$190,K41='EXPENSE DATABASE'!$X$191,K41='EXPENSE DATABASE'!$X$192,K41='EXPENSE DATABASE'!$X$193,K41='EXPENSE DATABASE'!$X$194,K41='EXPENSE DATABASE'!$Z$187,K41='EXPENSE DATABASE'!$Z$188,K41='EXPENSE DATABASE'!$Z$189,K41='EXPENSE DATABASE'!$Z$190,K41='EXPENSE DATABASE'!$Z$191,K41='EXPENSE DATABASE'!$Z$192,K41='EXPENSE DATABASE'!$Z$193,K41='EXPENSE DATABASE'!$Z$194),O41,\"\")","v":""},{"$f":"IF(OR(K41='EXPENSE DATABASE'!$T$189,K41='EXPENSE DATABASE'!$T$190,K41='EXPENSE DATABASE'!$T$191),O41,\"\")","v":""},{"$f":"VLOOKUP(I41,'EXPENSE DATABASE'!$B$41:$C$65,2,FALSE)","v":{"$error":"#N/A"}},100,{"$f":"VLOOKUP(J41,'EXPENSE DATABASE'!$B$69:$C$168,2,FALSE)","v":{"$error":"#N/A"}},101,{"$f":"VLOOKUP(K41,'EXPENSE DATABASE'!$B$6:$C$35,2,FALSE)","v":{"$error":"#N/A"}},31,{"$f":"VLOOKUP(L41,'EXPENSE DATABASE'!$B$173:$C$176,2,FALSE)","v":{"$error":"#N/A"}},100,0,0,{"$f":"IF(L41=T('EXPENSE DATABASE'!$E$173),O41,0)","v":0},{"$f":"IF(L41=T('EXPENSE DATABASE'!$E$174),O41,0)","v":0},{"$f":"IF(L41=T('EXPENSE DATABASE'!$E$175),O41,0)","v":0},0,28,{"$nulls":6},{"$f":"Table6[[#This Row],[QTY]]*Table6[[#This Row],[UNIT COST]]","v":{"v":0,"d":"$0.00"}},{"$f":"IF(Table6[[#This Row],[TOTAL AMOUNT]]>0,1,0)","v":0},{"$f":"VLOOKUP(Table6[[#This Row],[INCOME TYPE]],'EXPENSE DATABASE'!$B$186:$C$195,2,FALSE)","v":{"$error":"#N/A"}},11]
[0,0,{"$nulls":12},{"v":0,"d":"$0.00"},{"v":0,"d":"$0.00"},{"v":0,"d":"$0.00"},0,{"$f":"IF(OR(K42='EXPENSE DATABASE'!$V$187,K42='EXPENSE DATABASE'!$V$188,K42='EXPENSE DATABASE'!$V$189,K42='EXPENSE DATABASE'!$V$190,K42='EXPENSE DATABASE'!$V$191,K42='EXPENSE DATABASE'!$V$192,K42='EXPENSE DATABASE'!$V$193,K42='EXPENSE DATABASE'!$V$194,K42='EXPENSE DATABASE'!$X$187,K42='EXPENSE DATABASE'!$X$188,K42='EXPENSE DATABASE'!$X$189,K42='EXPENSE DATABASE'!$X$190,K42='EXPENSE DATABASE'!$X$191,K42='EXPENSE DATABASE'!$X$192,K42='EXPENSE DATABASE'!$X$193,K42='EXPENSE DATABASE'!$X$194,K42='EXPENSE DATABASE'!$Z$187,K42='EXPENSE DATABASE'!$Z$188,K42='EXPENSE DATABASE'!$Z$189,K42='EXPENSE DATABASE'!$Z$190,K42='EXPENSE DATABASE'!$Z$191,K42='EXPENSE DATABASE'!$Z$192,K42='EXPENSE DATABASE'!$Z$193,K42='EXPENSE DATABASE'!$Z$194),O42,\"\")","v":""},{"$f":"IF(OR(K42='EXPENSE DATABASE'!$T$189,K42='EXPENSE DATABASE'!$T$190,K42='EXPENSE DATABASE'!$T$191),O42,\"\")","v":""},{"$f":"VLOOKUP(I42,'EXPENSE DATABASE'!$B$41:$C$65,2,FALSE)","v":{"$error":"#N/A"}},100,{"$f":"VLOOKUP(J42,'EXPENSE DATABASE'!$B$69:$C$168,2,FALSE)","v":{"$error":"#N/A"}},101,{"$f":"VLOOKUP(K42,'EXPENSE DATABASE'!$B$6:$C$35,2,FALSE)","v":{"$error":"#N/A"}},31,{"$f":"VLOOKUP(L42,'EXPENSE DATABASE'!$B$173:$C$176,2,FALSE)","v":{"$error":"#N/A"}},100,0,0,{"$f":"IF(L42=T('EXPENSE DATABASE'!$E$173),O42,0)","v":0},{"$f":"IF(L42=T('EXPENSE DATABASE'!$E$174),O42,0)","v":0},{"$f":"IF(L42=T('EXPENSE DATABASE'!$E$175),O42,0)","v":0},0,29,{"$nulls":6},{"$f":"Table6[[#This Row],[QTY]]*Table6[[#This Row],[UNIT COST]]","v":{"v":0,"d":"$0.00"}},{"$f":"IF(Table6[[#This Row],[TOTAL AMOUNT]]>0,1,0)","v":0},{"$f":"VLOOKUP(Table6[[#This Row],[INCOME TYPE]],'EXPENSE DATABASE'!$B$186:$C$195,2,FALSE)","v":{"$error":"#N/A"}},11]
[0,0,{"$nulls":12},{"v":0,"d":"$0.00"},{"v":0,"d":"$0.00"},{"v":0,"d":"$0.00"},0,{"$f":"IF(OR(K43='EXPENSE DATABASE'!$V$187,K43='EXPENSE DATABASE'!$V$188,K43='EXPENSE DATABASE'!$V$189,K43='EXPENSE DATABASE'!$V$190,K43='EXPENSE DATABASE'!$V$191,K43='EXPENSE DATABASE'!$V$192,K43='EXPENSE DATABASE'!$V$193,K43='EXPENSE DATABASE'!$V$194,K43='EXPENSE DATABASE'!$X$187,K43='EXPENSE DATABASE'!$X$188,K43='EXPENSE DATABASE'!$X$189,K43='EXPENSE DATABASE'!$X$190,K43='EXPENSE DATABASE'!$X$191,K43='EXPENSE DATABASE'!$X$192,K43='EXPENSE DATABASE'!$X$193,K43='EXPENSE DATABASE'!$X$194,K43='EXPENSE DATABASE'!$Z$187,K43='EXPENSE DATABASE'!$Z$188,K43='EXPENSE DATABASE'!$Z$189,K43='EXPENSE DATABASE'!$Z$190,K43='EXPENSE DATABASE'!$Z$191,K43='EXPENSE DATABASE'!$Z$192,K43='EXPENSE DATABASE'!$Z$193,K43='EXPENSE DATABASE'!$Z$194),O43,\"\")","v":""},{"$f":"IF(OR(K43='EXPENSE DATABASE'!$T$189,K43='EXPENSE DATABASE'!$T$190,K43='EXPENSE DATABASE'!$T$191),O43,\"\")","v":""},{"$f":"VLOOKUP(I43,'EXPENSE DATABASE'!$B$41:$C$65,2,FALSE)","v":{"$error":"#N/A"}},100,{"$f":"VLOOKUP(J43,'EXPENSE DATABASE'!$B$69:$C$168,2,FALSE)","v":{"$error":"#N/A"}},101,{"$f":"VLOOKUP(K43,'EXPENSE DATABASE'!$B$6:$C$35,2,FALSE)","v":{"$error":"#N/A"}},31,{"$f":"VLOOKUP(L43,'EXPENSE DATABASE'!$B$173:$C$176,2,FALSE)","v":{"$error":"#N/A"}},100,0,0,{"$f":"IF(L43=T('EXPENSE DATABASE'!$E$173),O43,0)","v":0},{"$f":"IF(L43=T('EXPENSE DATABASE'!$E$174),O43,0)","v":0},{"$f":"IF(L43=T('EXPENSE DATABASE'!$E$175),O43,0)","v":0},0,30,{"$nulls":6},{"$f":"Table6[[#This Row],[QTY]]*Table6[[#This Row],[UNIT COST]]","v":{"v":0,"d":"$0.00"}},{"$f":"IF(Table6[[#This Row],[TOTAL AMOUNT]]>0,1,0)","v":0},{"$f":"VLOOKUP(Table6[[#This Row],[INCOME TYPE]],'EXPENSE DATABASE'!$B$186:$C$195,2,FALSE)","v":{"$error":"#N/A"}},11]
[0,0,{"$nulls":12},{"v":0,"d":"$0.00"},{"v":0,"d":"$0.00"},{"v":0,"d":"$0.00"},0,{"$f":"IF(OR(K44='EXPENSE DATABASE'!$V$187,K44='EXPENSE DATABASE'!$V$188,K44='EXPENSE DATABASE'!$V$189,K44='EXPENSE DATABASE'!$V$190,K44='EXPENSE DATABASE'!$V$191,K44='EXPENSE DATABASE'!$V$192,K44='EXPENSE DATABASE'!$V$193,K44='EXPENSE DATABASE'!$V$194,K44='EXPENSE DATABASE'!$X$187,K44='EXPENSE DATABASE'!$X$188,K44='EXPENSE DATABASE'!$X$189,K44='EXPENSE DATABASE'!$X$190,K44='EXPENSE DATABASE'!$X$191,K44='EXPENSE DATABASE'!$X$192,K44='EXPENSE DATABASE'!$X$193,K44='EXPENSE DATABASE'!$X$194,K44='EXPENSE DATABASE'!$Z$187,K44='EXPENSE DATABASE'!$Z$188,K44='EXPENSE DATABASE'!$Z$189,K44='EXPENSE DATABASE'!$Z$190,K44='EXPENSE DATABASE'!$Z$191,K44='EXPENSE DATABASE'!$Z$192,K44='EXPENSE DATABASE'!$Z$193,K44='EXPENSE DATABASE'!$Z$194),O44,\"\")","v":""},{"$f":"IF(OR(K44='EXPENSE DATABASE'!$T$189,K44='EXPENSE DATABASE'!$T$190,K44='EXPENSE DATABASE'!$T$191),O44,\"\")","v":""},{"$f":"VLOOKUP(I44,'EXPENSE DATABASE'!$B$41:$C$65,2,FALSE)","v":{"$error":"#N/A"}},100,{"$f":"VLOOKUP(J44,'EXPENSE DATABASE'!$B$69:$C$168,2,FALSE)","v":{"$error":"#N/A"}},101,{"$f":"VLOOKUP(K44,'EXPENSE DATABASE'!$B$6:$C$35,2,FALSE)","v":{"$error":"#N/A"}},31,{"$f":"VLOOKUP(L44,'EXPENSE DATABASE'!$B$173:$C$176,2,FALSE)","v":{"$error":"#N/A"}},100,0,0,{"$f":"IF(L44=T('EXPENSE DATABASE'!$E$173),O44,0)","v":0},{"$f":"IF(L44=T('EXPENSE DATABASE'!$E$174),O44,0)","v":0},{"$f":"IF(L44=T('EXPENSE DATABASE'!$E$175),O44,0)","v":0},0,31,{"$nulls":6},{"$f":"Table6[[#This Row],[QTY]]*Table6[[#This Row],[UNIT COST]]","v":{"v":0,"d":"$0.00"}},{"$f":"IF(Table6[[#This Row],[TOTAL AMOUNT]]>0,1,0)","v":0},{"$f":"VLOOKUP(Table6[[#This Row],[INCOME TYPE]],'EXPENSE DATABASE'!$B$186:$C$195,2,FALSE)","v":{"$error":"#N/A"}},11]
[0,0,{"$nulls":12},{"v":0,"d":"$0.00"},{"v":0,"d":"$0.00"},{"v":0,"d":"$0.00"},0,{"$f":"IF(OR(K45='EXPENSE DATABASE'!$V$187,K45='EXPENSE DATABASE'!$V$188,K45='EXPENSE DATABASE'!$V$189,K45='EXPENSE DATABASE'!$V$190,K45='EXPENSE DATABASE'!$V$191,K45='EXPENSE DATABASE'!$V$192,K45='EXPENSE DATABASE'!$V$193,K45='EXPENSE DATABASE'!$V$194,K45='EXPENSE DATABASE'!$X$187,K45='EXPENSE DATABASE'!$X$188,K45='EXPENSE DATABASE'!$X$189,K45='EXPENSE DATABASE'!$X$190,K45='EXPENSE DATABASE'!$X$191,K45='EXPENSE DATABASE'!$X$192,K45='EXPENSE DATABASE'!$X$193,K45='EXPENSE DATABASE'!$X$194,K45='EXPENSE DATABASE'!$Z$187,K45='EXPENSE DATABASE'!$Z$188,K45='EXPENSE DATABASE'!$Z$189,K45='EXPENSE DATABASE'!$Z$190,K45='EXPENSE DATABASE'!$Z$191,K45='EXPENSE DATABASE'!$Z$192,K45='EXPENSE DATABASE'!$Z$193,K45='EXPENSE DATABASE'!$Z$194),O45,\"\")","v":""},{"$f":"IF(OR(K45='EXPENSE DATABASE'!$T$189,K45='EXPENSE DATABASE'!$T$190,K45='EXPENSE DATABASE'!$T$191),O45,\"\")","v":""},{"$f":"VLOOKUP(I45,'EXPENSE DATABASE'!$B$41:$C$65,2,FALSE)","v":{"$error":"#N/A"}},100,{"$f":"VLOOKUP(J45,'EXPENSE DATABASE'!$B$69:$C$168,2,FALSE)","v":{"$error":"#N/A"}},101,{"$f":"VLOOKUP(K45,'EXPENSE DATABASE'!$B$6:$C$35,2,FALSE)","v":{"$error":"#N/A"}},31,{"$f":"VLOOKUP(L45,'EXPENSE DATABASE'!$B$173:$C$176,2,FALSE)","v":{"$error":"#N/A"}},100,0,0,{"$f":"IF(L45=T('EXPENSE DATABASE'!$E$173),O45,0)","v":0},{"$f":"IF(L45=T('EXPENSE DATABASE'!$E$174),O45,0)","v":0},{"$f":"IF(L45=T('EXPENSE DATABASE'!$E$175),O45,0)","v":0},0,32,{"$nulls":6},{"$f":"Table6[[#This Row],[QTY]]*Table6[[#This Row],[UNIT COST]]","v":{"v":0,"d":"$0.00"}},{"$f":"IF(Table6[[#This Row],[TOTAL AMOUNT]]>0,1,0)","v":0},{"$f":"VLOOKUP(Table6[[#This Row],[INCOME TYPE]],'EXPENSE DATABASE'!$B$186:$C$195,2,FALSE)","v":{"$error":"#N/A"}},11]
[{"$f":"IF(COUNTA(D46,E46,F46,G46,H46,I46,J46,K46,L46,M46,N46)>0,1,0)","v":0},{"$f":"IF((COUNTA(I46:L46)=4),1,-1)*A46","v":0},{"$nulls":12},{"v":0,"d":"$0.00"},{"v":0,"d":"$0.00"},{"v":0,"d":"$0.00"},0,{"$f":"IF(OR(K46='EXPENSE DATABASE'!$V$187,K46='EXPENSE DATABASE'!$V$188,K46='EXPENSE DATABASE'!$V$189,K46='EXPENSE DATABASE'!$V$190,K46='EXPENSE DATABASE'!$V$191,K46='EXPENSE DATABASE'!$V$192,K46='EXPENSE DATABASE'!$V$193,K46='EXPENSE DATABASE'!$V$194,K46='EXPENSE DATABASE'!$X$187,K46='EXPENSE DATABASE'!$X$188,K46='EXPENSE DATABASE'!$X$189,K46='EXPENSE DATABASE'!$X$190,K46='EXPENSE DATABASE'!$X$191,K46='EXPENSE DATABASE'!$X$192,K46='EXPENSE DATABASE'!$X$193,K46='EXPENSE DATABASE'!$X$194,K46='EXPENSE DATABASE'!$Z$187,K46='EXPENSE DATABASE'!$Z$188,K46='EXPENSE DATABASE'!$Z$189,K46='EXPENSE DATABASE'!$Z$190,K46='EXPENSE DATABASE'!$Z$191,K46='EXPENSE DATABASE'!$Z$192,K46='EXPENSE DATABASE'!$Z$193,K46='EXPENSE DATABASE'!$Z$194),O46,\"\")","v":""},{"$f":"IF(OR(K46='EXPENSE DATABASE'!$T$189,K46='EXPENSE DATABASE'!$T$190,K46='EXPENSE DATABASE'!$T$191),O46,\"\")","v":""},{"$f":"VLOOKUP(I46,'EXPENSE DATABASE'!$B$41:$C$65,2,FALSE)","v":{"$error":"#N/A"}},100,{"$f":"VLOOKUP(J46,'EXPENSE DATABASE'!$B$69:$C$168,2,FALSE)","v":{"$error":"#N/A"}},101,{"$f":"VLOOKUP(K46,'EXPENSE DATABASE'!$B$6:$C$35,2,FALSE)","v":{"$error":"#N/A"}},31,{"$f":"VLOOKUP(L46,'EXPENSE DATABASE'!$B$173:$C$176,2,FALSE)","v":{"$error":"#N/A"}},100,0,0,{"$f":"IF(L46=T('EXPENSE DATABASE'!$E$173),O46,0)","v":0},{"$f":"IF(L46=T('EXPENSE DATABASE'!$E$174),O46,0)","v":0},{"$f":"IF(L46=T('EXPENSE DATABASE'!$E$175),O46,0)","v":0},0,33,{"$nulls":6},{"$f":"Table6[[#This Row],[QTY]]*Table6[[#This Row],[UNIT COST]]","v":{"v":0,"d":"$0.00"}},{"$f":"IF(Table6[[#This Row],[TOTAL AMOUNT]]>0,1,0)","v":0},{"$f":"VLOOKUP(Table6[[#This Row],[INCOME TYPE]],'EXPENSE DATABASE'!$B$186:$C$195,2,FALSE)","v":{"$error":"#N/A"}},11]
[0,0,{"$nulls":12},{"v":0,"d":"$0.00"},{"v":0,"d":"$0.00"},{"v":0,"d":"$0.00"},0,{"$f":"IF(OR(K47='EXPENSE DATABASE'!$V$187,K47='EXPENSE DATABASE'!$V$188,K47='EXPENSE DATABASE'!$V$189,K47='EXPENSE DATABASE'!$V$190,K47='EXPENSE DATABASE'!$V$191,K47='EXPENSE DATABASE'!$V$192,K47='EXPENSE DATABASE'!$V$193,K47='EXPENSE DATABASE'!$V$194,K47='EXPENSE DATABASE'!$X$187,K47='EXPENSE DATABASE'!$X$188,K47='EXPENSE DATABASE'!$X$189,K47='EXPENSE DATABASE'!$X$190,K47='EXPENSE DATABASE'!$X$191,K47='EXPENSE DATABASE'!$X$192,K47='EXPENSE DATABASE'!$X$193,K47='EXPENSE DATABASE'!$X$194,K47='EXPENSE DATABASE'!$Z$187,K47='EXPENSE DATABASE'!$Z$188,K47='EXPENSE DATABASE'!$Z$189,K47='EXPENSE DATABASE'!$Z$190,K47='EXPENSE DATABASE'!$Z$191,K47='EXPENSE DATABASE'!$Z$192,K47='EXPENSE DATABASE'!$Z$193,K47='EXPENSE DATABASE'!$Z$194),O47,\"\")","v":""},{"$f":"IF(OR(K47='EXPENSE DATABASE'!$T$189,K47='EXPENSE DATABASE'!$T$190,K47='EXPENSE DATABASE'!$T$191),O47,\"\")","v":""},{"$f":"VLOOKUP(I47,'EXPENSE DATABASE'!$B$41:$C$65,2,FALSE)","v":{"$error":"#N/A"}},100,{"$f":"VLOOKUP(J47,'EXPENSE DATABASE'!$B$69:$C$168,2,FALSE)","v":{"$error":"#N/A"}},101,{"$f":"VLOOKUP(K47,'EXPENSE DATABASE'!$B$6:$C$35,2,FALSE)","v":{"$error":"#N/A"}},31,{"$f":"VLOOKUP(L47,'EXPENSE DATABASE'!$B$173:$C$176,2,FALSE)","v":{"$error":"#N/A"}},100,0,0,{"$f":"IF(L47=T('EXPENSE DATABASE'!$E$173),O47,0)","v":0},{"$f":"IF(L47=T('EXPENSE DATABASE'!$E$174),O47,0)","v":0},{"$f":"IF(L47=T('EXPENSE DATABASE'!$E$175),O47,0)","v":0},0,34,{"$nulls":6},{"$f":"Table6[[#This Row],[QTY]]*Table6[[#This Row],[UNIT COST]]","v":{"v":0,"d":"$0.00"}},{"$f":"IF(Table6[[#This Row],[TOTAL AMOUNT]]>0,1,0)","v":0},{"$f":"VLOOKUP(Table6[[#This Row],[INCOME TYPE]],'EXPENSE DATABASE'!$B$186:$C$195,2,FALSE)","v":{"$error":"#N/A"}},11]
[0,0,{"$nulls":12},{"v":0,"d":"$0.00"},{"v":0,"d":"$0.00"},{"v":0,"d":"$0.00"},0,{"$f":"IF(OR(K48='EXPENSE DATABASE'!$V$187,K48='EXPENSE DATABASE'!$V$188,K48='EXPENSE DATABASE'!$V$189,K48='EXPENSE DATABASE'!$V$190,K48='EXPENSE DATABASE'!$V$191,K48='EXPENSE DATABASE'!$V$192,K48='EXPENSE DATABASE'!$V$193,K48='EXPENSE DATABASE'!$V$194,K48='EXPENSE DATABASE'!$X$187,K48='EXPENSE DATABASE'!$X$188,K48='EXPENSE DATABASE'!$X$189,K48='EXPENSE DATABASE'!$X$190,K48='EXPENSE DATABASE'!$X$191,K48='EXPENSE DATABASE'!$X$192,K48='EXPENSE DATABASE'!$X$193,K48='EXPENSE DATABASE'!$X$194,K48='EXPENSE DATABASE'!$Z$187,K48='EXPENSE DATABASE'!$Z$188,K48='EXPENSE DATABASE'!$Z$189,K48='EXPENSE DATABASE'!$Z$190,K48='EXPENSE DATABASE'!$Z$191,K48='EXPENSE DATABASE'!$Z$192,K48='EXPENSE DATABASE'!$Z$193,K48='EXPENSE DATABASE'!$Z$194),O48,\"\")","v":""},{"$f":"IF(OR(K48='EXPENSE DATABASE'!$T$189,K48='EXPENSE DATABASE'!$T$190,K48='EXPENSE DATABASE'!$T$191),O48,\"\")","v":""},{"$f":"VLOOKUP(I48,'EXPENSE DATABASE'!$B$41:$C$65,2,FALSE)","v":{"$error":"#N/A"}},100,{"$f":"VLOOKUP(J48,'EXPENSE DATABASE'!$B$69:$C$168,2,FALSE)","v":{"$error":"#N/A"}},101,{"$f":"VLOOKUP(K48,'EXPENSE DATABASE'!$B$6:$C$35,2,FALSE)","v":{"$error":"#N/A"}},31,{"$f":"VLOOKUP(L48,'EXPENSE DATABASE'!$B$173:$C$176,2,FALSE)","v":{"$error":"#N/A"}},100,0,0,{"$f":"IF(L48=T('EXPENSE DATABASE'!$E$173),O48,0)","v":0},{"$f":"IF(L48=T('EXPENSE DATABASE'!$E$174),O48,0)","v":0},{"$f":"IF(L48=T('EXPENSE DATABASE'!$E$175),O48,0)","v":0},0,35,{"$nulls":6},{"$f":"Table6[[#This Row],[QTY]]*Table6[[#This Row],[UNIT COST]]","v":{"v":0,"d":"$0.00"}},{"$f":"IF(Table6[[#This Row],[TOTAL AMOUNT]]>0,1,0)","v":0},{"$f":"VLOOKUP(Table6[[#This Row],[INCOME TYPE]],'EXPENSE DATABASE'!$B$186:$C$195,2,FALSE)","v":{"$error":"#N/A"}},11]
[0,0,{"$nulls":12},{"v":0,"d":"$0.00"},{"v":0,"d":"$0.00"},{"v":0,"d":"$0.00"},0,{"$f":"IF(OR(K49='EXPENSE DATABASE'!$V$187,K49='EXPENSE DATABASE'!$V$188,K49='EXPENSE DATABASE'!$V$189,K49='EXPENSE DATABASE'!$V$190,K49='EXPENSE DATABASE'!$V$191,K49='EXPENSE DATABASE'!$V$192,K49='EXPENSE DATABASE'!$V$193,K49='EXPENSE DATABASE'!$V$194,K49='EXPENSE DATABASE'!$X$187,K49='EXPENSE DATABASE'!$X$188,K49='EXPENSE DATABASE'!$X$189,K49='EXPENSE DATABASE'!$X$190,K49='EXPENSE DATABASE'!$X$191,K49='EXPENSE DATABASE'!$X$192,K49='EXPENSE DATABASE'!$X$193,K49='EXPENSE DATABASE'!$X$194,K49='EXPENSE DATABASE'!$Z$187,K49='EXPENSE DATABASE'!$Z$188,K49='EXPENSE DATABASE'!$Z$189,K49='EXPENSE DATABASE'!$Z$190,K49='EXPENSE DATABASE'!$Z$191,K49='EXPENSE DATABASE'!$Z$192,K49='EXPENSE DATABASE'!$Z$193,K49='EXPENSE DATABASE'!$Z$194),O49,\"\")","v":""},{"$f":"IF(OR(K49='EXPENSE DATABASE'!$T$189,K49='EXPENSE DATABASE'!$T$190,K49='EXPENSE DATABASE'!$T$191),O49,\"\")","v":""},{"$f":"VLOOKUP(I49,'EXPENSE DATABASE'!$B$41:$C$65,2,FALSE)","v":{"$error":"#N/A"}},100,{"$f":"VLOOKUP(J49,'EXPENSE DATABASE'!$B$69:$C$168,2,FALSE)","v":{"$error":"#N/A"}},101,{"$f":"VLOOKUP(K49,'EXPENSE DATABASE'!$B$6:$C$35,2,FALSE)","v":{"$error":"#N/A"}},31,{"$f":"VLOOKUP(L49,'EXPENSE DATABASE'!$B$173:$C$176,2,FALSE)","v":{"$error":"#N/A"}},100,0,0,{"$f":"IF(L49=T('EXPENSE DATABASE'!$E$173),O49,0)","v":0},{"$f":"IF(L49=T('EXPENSE DATABASE'!$E$174),O49,0)","v":0},{"$f":"IF(L49=T('EXPENSE DATABASE'!$E$175),O49,0)","v":0},0,36,{"$nulls":6},{"$f":"Table6[[#This Row],[QTY]]*Table6[[#This Row],[UNIT COST]]","v":{"v":0,"d":"$0.00"}},{"$f":"IF(Table6[[#This Row],[TOTAL AMOUNT]]>0,1,0)","v":0},{"$f":"VLOOKUP(Table6[[#This Row],[INCOME TYPE]],'EXPENSE DATABASE'!$B$186:$C$195,2,FALSE)","v":{"$error":"#N/A"}},11]
[0,0,{"$nulls":12},{"v":0,"d":"$0.00"},{"v":0,"d":"$0.00"},{"v":0,"d":"$0.00"},0,{"$f":"IF(OR(K50='EXPENSE DATABASE'!$V$187,K50='EXPENSE DATABASE'!$V$188,K50='EXPENSE DATABASE'!$V$189,K50='EXPENSE DATABASE'!$V$190,K50='EXPENSE DATABASE'!$V$191,K50='EXPENSE DATABASE'!$V$192,K50='EXPENSE DATABASE'!$V$193,K50='EXPENSE DATABASE'!$V$194,K50='EXPENSE DATABASE'!$X$187,K50='EXPENSE DATABASE'!$X$188,K50='EXPENSE DATABASE'!$X$189,K50='EXPENSE DATABASE'!$X$190,K50='EXPENSE DATABASE'!$X$191,K50='EXPENSE DATABASE'!$X$192,K50='EXPENSE DATABASE'!$X$193,K50='EXPENSE DATABASE'!$X$194,K50='EXPENSE DATABASE'!$Z$187,K50='EXPENSE DATABASE'!$Z$188,K50='EXPENSE DATABASE'!$Z$189,K50='EXPENSE DATABASE'!$Z$190,K50='EXPENSE DATABASE'!$Z$191,K50='EXPENSE DATABASE'!$Z$192,K50='EXPENSE DATABASE'!$Z$193,K50='EXPENSE DATABASE'!$Z$194),O50,\"\")","v":""},{"$f":"IF(OR(K50='EXPENSE DATABASE'!$T$189,K50='EXPENSE DATABASE'!$T$190,K50='EXPENSE DATABASE'!$T$191),O50,\"\")","v":""},{"$f":"VLOOKUP(I50,'EXPENSE DATABASE'!$B$41:$C$65,2,FALSE)","v":{"$error":"#N/A"}},100,{"$f":"VLOOKUP(J50,'EXPENSE DATABASE'!$B$69:$C$168,2,FALSE)","v":{"$error":"#N/A"}},101,{"$f":"VLOOKUP(K50,'EXPENSE DATABASE'!$B$6:$C$35,2,FALSE)","v":{"$error":"#N/A"}},31,{"$f":"VLOOKUP(L50,'EXPENSE DATABASE'!$B$173:$C$176,2,FALSE)","v":{"$error":"#N/A"}},100,0,0,{"$f":"IF(L50=T('EXPENSE DATABASE'!$E$173),O50,0)","v":0},{"$f":"IF(L50=T('EXPENSE DATABASE'!$E$174),O50,0)","v":0},{"$f":"IF(L50=T('EXPENSE DATABASE'!$E$175),O50,0)","v":0},0,37,{"$nulls":6},{"$f":"Table6[[#This Row],[QTY]]*Table6[[#This Row],[UNIT COST]]","v":{"v":0,"d":"$0.00"}},{"$f":"IF(Table6[[#This Row],[TOTAL AMOUNT]]>0,1,0)","v":0},{"$f":"VLOOKUP(Table6[[#This Row],[INCOME TYPE]],'EXPENSE DATABASE'!$B$186:$C$195,2,FALSE)","v":{"$error":"#N/A"}},11]
[0,0,{"$nulls":12},{"v":0,"d":"$0.00"},{"v":0,"d":"$0.00"},{"v":0,"d":"$0.00"},0,{"$f":"IF(OR(K51='EXPENSE DATABASE'!$V$187,K51='EXPENSE DATABASE'!$V$188,K51='EXPENSE DATABASE'!$V$189,K51='EXPENSE DATABASE'!$V$190,K51='EXPENSE DATABASE'!$V$191,K51='EXPENSE DATABASE'!$V$192,K51='EXPENSE DATABASE'!$V$193,K51='EXPENSE DATABASE'!$V$194,K51='EXPENSE DATABASE'!$X$187,K51='EXPENSE DATABASE'!$X$188,K51='EXPENSE DATABASE'!$X$189,K51='EXPENSE DATABASE'!$X$190,K51='EXPENSE DATABASE'!$X$191,K51='EXPENSE DATABASE'!$X$192,K51='EXPENSE DATABASE'!$X$193,K51='EXPENSE DATABASE'!$X$194,K51='EXPENSE DATABASE'!$Z$187,K51='EXPENSE DATABASE'!$Z$188,K51='EXPENSE DATABASE'!$Z$189,K51='EXPENSE DATABASE'!$Z$190,K51='EXPENSE DATABASE'!$Z$191,K51='EXPENSE DATABASE'!$Z$192,K51='EXPENSE DATABASE'!$Z$193,K51='EXPENSE DATABASE'!$Z$194),O51,\"\")","v":""},{"$f":"IF(OR(K51='EXPENSE DATABASE'!$T$189,K51='EXPENSE DATABASE'!$T$190,K51='EXPENSE DATABASE'!$T$191),O51,\"\")","v":""},{"$f":"VLOOKUP(I51,'EXPENSE DATABASE'!$B$41:$C$65,2,FALSE)","v":{"$error":"#N/A"}},100,{"$f":"VLOOKUP(J51,'EXPENSE DATABASE'!$B$69:$C$168,2,FALSE)","v":{"$error":"#N/A"}},101,{"$f":"VLOOKUP(K51,'EXPENSE DATABASE'!$B$6:$C$35,2,FALSE)","v":{"$error":"#N/A"}},31,{"$f":"VLOOKUP(L51,'EXPENSE DATABASE'!$B$173:$C$176,2,FALSE)","v":{"$error":"#N/A"}},100,0,0,{"$f":"IF(L51=T('EXPENSE DATABASE'!$E$173),O51,0)","v":0},{"$f":"IF(L51=T('EXPENSE DATABASE'!$E$174),O51,0)","v":0},{"$f":"IF(L51=T('EXPENSE DATABASE'!$E$175),O51,0)","v":0},0,38,{"$nulls":6},{"$f":"Table6[[#This Row],[QTY]]*Table6[[#This Row],[UNIT COST]]","v":{"v":0,"d":"$0.00"}},{"$f":"IF(Table6[[#This Row],[TOTAL AMOUNT]]>0,1,0)","v":0},{"$f":"VLOOKUP(Table6[[#This Row],[INCOME TYPE]],'EXPENSE DATABASE'!$B$186:$C$195,2,FALSE)","v":{"$error":"#N/A"}},11]
[0,0,{"$nulls":12},{"v":0,"d":"$0.00"},{"v":0,"d":"$0.00"},{"v":0,"d":"$0.00"},0,{"$f":"IF(OR(K52='EXPENSE DATABASE'!$V$187,K52='EXPENSE DATABASE'!$V$188,K52='EXPENSE DATABASE'!$V$189,K52='EXPENSE DATABASE'!$V$190,K52='EXPENSE DATABASE'!$V$191,K52='EXPENSE DATABASE'!$V$192,K52='EXPENSE DATABASE'!$V$193,K52='EXPENSE DATABASE'!$V$194,K52='EXPENSE DATABASE'!$X$187,K52='EXPENSE DATABASE'!$X$188,K52='EXPENSE DATABASE'!$X$189,K52='EXPENSE DATABASE'!$X$190,K52='EXPENSE DATABASE'!$X$191,K52='EXPENSE DATABASE'!$X$192,K52='EXPENSE DATABASE'!$X$193,K52='EXPENSE DATABASE'!$X$194,K52='EXPENSE DATABASE'!$Z$187,K52='EXPENSE DATABASE'!$Z$188,K52='EXPENSE DATABASE'!$Z$189,K52='EXPENSE DATABASE'!$Z$190,K52='EXPENSE DATABASE'!$Z$191,K52='EXPENSE DATABASE'!$Z$192,K52='EXPENSE DATABASE'!$Z$193,K52='EXPENSE DATABASE'!$Z$194),O52,\"\")","v":""},{"$f":"IF(OR(K52='EXPENSE DATABASE'!$T$189,K52='EXPENSE DATABASE'!$T$190,K52='EXPENSE DATABASE'!$T$191),O52,\"\")","v":""},{"$f":"VLOOKUP(I52,'EXPENSE DATABASE'!$B$41:$C$65,2,FALSE)","v":{"$error":"#N/A"}},100,{"$f":"VLOOKUP(J52,'EXPENSE DATABASE'!$B$69:$C$168,2,FALSE)","v":{"$error":"#N/A"}},101,{"$f":"VLOOKUP(K52,'EXPENSE DATABASE'!$B$6:$C$35,2,FALSE)","v":{"$error":"#N/A"}},31,{"$f":"VLOOKUP(L52,'EXPENSE DATABASE'!$B$173:$C$176,2,FALSE)","v":{"$error":"#N/A"}},100,0,0,{"$f":"IF(L52=T('EXPENSE DATABASE'!$E$173),O52,0)","v":0},{"$f":"IF(L52=T('EXPENSE DATABASE'!$E$174),O52,0)","v":0},{"$f":"IF(L52=T('EXPENSE DATABASE'!$E$175),O52,0)","v":0},0,39,{"$nulls":6},{"$f":"Table6[[#This Row],[QTY]]*Table6[[#This Row],[UNIT COST]]","v":{"v":0,"d":"$0.00"}},{"$f":"IF(Table6[[#This Row],[TOTAL AMOUNT]]>0,1,0)","v":0},{"$f":"VLOOKUP(Table6[[#This Row],[INCOME TYPE]],'EXPENSE DATABASE'!$B$186:$C$195,2,FALSE)","v":{"$error":"#N/A"}},11]
[0,0,{"$nulls":12},{"v":0,"d":"$0.00"},{"v":0,"d":"$0.00"},{"v":0,"d":"$0.00"},0,{"$f":"IF(OR(K53='EXPENSE DATABASE'!$V$187,K53='EXPENSE DATABASE'!$V$188,K53='EXPENSE DATABASE'!$V$189,K53='EXPENSE DATABASE'!$V$190,K53='EXPENSE DATABASE'!$V$191,K53='EXPENSE DATABASE'!$V$192,K53='EXPENSE DATABASE'!$V$193,K53='EXPENSE DATABASE'!$V$194,K53='EXPENSE DATABASE'!$X$187,K53='EXPENSE DATABASE'!$X$188,K53='EXPENSE DATABASE'!$X$189,K53='EXPENSE DATABASE'!$X$190,K53='EXPENSE DATABASE'!$X$191,K53='EXPENSE DATABASE'!$X$192,K53='EXPENSE DATABASE'!$X$193,K53='EXPENSE DATABASE'!$X$194,K53='EXPENSE DATABASE'!$Z$187,K53='EXPENSE DATABASE'!$Z$188,K53='EXPENSE DATABASE'!$Z$189,K53='EXPENSE DATABASE'!$Z$190,K53='EXPENSE DATABASE'!$Z$191,K53='EXPENSE DATABASE'!$Z$192,K53='EXPENSE DATABASE'!$Z$193,K53='EXPENSE DATABASE'!$Z$194),O53,\"\")","v":""},{"$f":"IF(OR(K53='EXPENSE DATABASE'!$T$189,K53='EXPENSE DATABASE'!$T$190,K53='EXPENSE DATABASE'!$T$191),O53,\"\")","v":""},{"$f":"VLOOKUP(I53,'EXPENSE DATABASE'!$B$41:$C$65,2,FALSE)","v":{"$error":"#N/A"}},100,{"$f":"VLOOKUP(J53,'EXPENSE DATABASE'!$B$69:$C$168,2,FALSE)","v":{"$error":"#N/A"}},101,{"$f":"VLOOKUP(K53,'EXPENSE DATABASE'!$B$6:$C$35,2,FALSE)","v":{"$error":"#N/A"}},31,{"$f":"VLOOKUP(L53,'EXPENSE DATABASE'!$B$173:$C$176,2,FALSE)","v":{"$error":"#N/A"}},100,0,0,{"$f":"IF(L53=T('EXPENSE DATABASE'!$E$173),O53,0)","v":0},{"$f":"IF(L53=T('EXPENSE DATABASE'!$E$174),O53,0)","v":0},{"$f":"IF(L53=T('EXPENSE DATABASE'!$E$175),O53,0)","v":0},0,40,{"$nulls":6},{"$f":"Table6[[#This Row],[QTY]]*Table6[[#This Row],[UNIT COST]]","v":{"v":0,"d":"$0.00"}},{"$f":"IF(Table6[[#This Row],[TOTAL AMOUNT]]>0,1,0)","v":0},{"$f":"VLOOKUP(Table6[[#This Row],[INCOME TYPE]],'EXPENSE DATABASE'!$B$186:$C$195,2,FALSE)","v":{"$error":"#N/A"}},11]
[0,0,{"$nulls":12},{"v":0,"d":"$0.00"},{"v":0,"d":"$0.00"},{"v":0,"d":"$0.00"},0,{"$f":"IF(OR(K54='EXPENSE DATABASE'!$V$187,K54='EXPENSE DATABASE'!$V$188,K54='EXPENSE DATABASE'!$V$189,K54='EXPENSE DATABASE'!$V$190,K54='EXPENSE DATABASE'!$V$191,K54='EXPENSE DATABASE'!$V$192,K54='EXPENSE DATABASE'!$V$193,K54='EXPENSE DATABASE'!$V$194,K54='EXPENSE DATABASE'!$X$187,K54='EXPENSE DATABASE'!$X$188,K54='EXPENSE DATABASE'!$X$189,K54='EXPENSE DATABASE'!$X$190,K54='EXPENSE DATABASE'!$X$191,K54='EXPENSE DATABASE'!$X$192,K54='EXPENSE DATABASE'!$X$193,K54='EXPENSE DATABASE'!$X$194,K54='EXPENSE DATABASE'!$Z$187,K54='EXPENSE DATABASE'!$Z$188,K54='EXPENSE DATABASE'!$Z$189,K54='EXPENSE DATABASE'!$Z$190,K54='EXPENSE DATABASE'!$Z$191,K54='EXPENSE DATABASE'!$Z$192,K54='EXPENSE DATABASE'!$Z$193,K54='EXPENSE DATABASE'!$Z$194),O54,\"\")","v":""},{"$f":"IF(OR(K54='EXPENSE DATABASE'!$T$189,K54='EXPENSE DATABASE'!$T$190,K54='EXPENSE DATABASE'!$T$191),O54,\"\")","v":""},{"$f":"VLOOKUP(I54,'EXPENSE DATABASE'!$B$41:$C$65,2,FALSE)","v":{"$error":"#N/A"}},100,{"$f":"VLOOKUP(J54,'EXPENSE DATABASE'!$B$69:$C$168,2,FALSE)","v":{"$error":"#N/A"}},101,{"$f":"VLOOKUP(K54,'EXPENSE DATABASE'!$B$6:$C$35,2,FALSE)","v":{"$error":"#N/A"}},31,{"$f":"VLOOKUP(L54,'EXPENSE DATABASE'!$B$173:$C$176,2,FALSE)","v":{"$error":"#N/A"}},100,0,0,{"$f":"IF(L54=T('EXPENSE DATABASE'!$E$173),O54,0)","v":0},{"$f":"IF(L54=T('EXPENSE DATABASE'!$E$174),O54,0)","v":0},{"$f":"IF(L54=T('EXPENSE DATABASE'!$E$175),O54,0)","v":0},0,41,{"$nulls":6},{"$f":"Table6[[#This Row],[QTY]]*Table6[[#This Row],[UNIT COST]]","v":{"v":0,"d":"$0.00"}},{"$f":"IF(Table6[[#This Row],[TOTAL AMOUNT]]>0,1,0)","v":0},{"$f":"VLOOKUP(Table6[[#This Row],[INCOME TYPE]],'EXPENSE DATABASE'!$B$186:$C$195,2,FALSE)","v":{"$error":"#N/A"}},11]
[0,0,{"$nulls":12},{"v":0,"d":"$0.00"},{"v":0,"d":"$0.00"},{"v":0,"d":"$0.00"},0,{"$f":"IF(OR(K55='EXPENSE DATABASE'!$V$187,K55='EXPENSE DATABASE'!$V$188,K55='EXPENSE DATABASE'!$V$189,K55='EXPENSE DATABASE'!$V$190,K55='EXPENSE DATABASE'!$V$191,K55='EXPENSE DATABASE'!$V$192,K55='EXPENSE DATABASE'!$V$193,K55='EXPENSE DATABASE'!$V$194,K55='EXPENSE DATABASE'!$X$187,K55='EXPENSE DATABASE'!$X$188,K55='EXPENSE DATABASE'!$X$189,K55='EXPENSE DATABASE'!$X$190,K55='EXPENSE DATABASE'!$X$191,K55='EXPENSE DATABASE'!$X$192,K55='EXPENSE DATABASE'!$X$193,K55='EXPENSE DATABASE'!$X$194,K55='EXPENSE DATABASE'!$Z$187,K55='EXPENSE DATABASE'!$Z$188,K55='EXPENSE DATABASE'!$Z$189,K55='EXPENSE DATABASE'!$Z$190,K55='EXPENSE DATABASE'!$Z$191,K55='EXPENSE DATABASE'!$Z$192,K55='EXPENSE DATABASE'!$Z$193,K55='EXPENSE DATABASE'!$Z$194),O55,\"\")","v":""},{"$f":"IF(OR(K55='EXPENSE DATABASE'!$T$189,K55='EXPENSE DATABASE'!$T$190,K55='EXPENSE DATABASE'!$T$191),O55,\"\")","v":""},{"$f":"VLOOKUP(I55,'EXPENSE DATABASE'!$B$41:$C$65,2,FALSE)","v":{"$error":"#N/A"}},100,{"$f":"VLOOKUP(J55,'EXPENSE DATABASE'!$B$69:$C$168,2,FALSE)","v":{"$error":"#N/A"}},101,{"$f":"VLOOKUP(K55,'EXPENSE DATABASE'!$B$6:$C$35,2,FALSE)","v":{"$error":"#N/A"}},31,{"$f":"VLOOKUP(L55,'EXPENSE DATABASE'!$B$173:$C$176,2,FALSE)","v":{"$error":"#N/A"}},100,0,0,{"$f":"IF(L55=T('EXPENSE DATABASE'!$E$173),O55,0)","v":0},{"$f":"IF(L55=T('EXPENSE DATABASE'!$E$174),O55,0)","v":0},{"$f":"IF(L55=T('EXPENSE DATABASE'!$E$175),O55,0)","v":0},0,42,{"$nulls":6},{"$f":"Table6[[#This Row],[QTY]]*Table6[[#This Row],[UNIT COST]]","v":{"v":0,"d":"$0.00"}},{"$f":"IF(Table6[[#This Row],[TOTAL AMOUNT]]>0,1,0)","v":0},{"$f":"VLOOKUP(Table6[[#This Row],[INCOME TYPE]],'EXPENSE DATABASE'!$B$186:$C$195,2,FALSE)","v":{"$error":"#N/A"}},11]
[0,0,{"$nulls":12},{"v":0,"d":"$0.00"},{"v":0,"d":"$0.00"},{"v":0,"d":"$0.00"},0,{"$f":"IF(OR(K56='EXPENSE DATABASE'!$V$187,K56='EXPENSE DATABASE'!$V$188,K56='EXPENSE DATABASE'!$V$189,K56='EXPENSE DATABASE'!$V$190,K56='EXPENSE DATABASE'!$V$191,K56='EXPENSE DATABASE'!$V$192,K56='EXPENSE DATABASE'!$V$193,K56='EXPENSE DATABASE'!$V$194,K56='EXPENSE DATABASE'!$X$187,K56='EXPENSE DATABASE'!$X$188,K56='EXPENSE DATABASE'!$X$189,K56='EXPENSE DATABASE'!$X$190,K56='EXPENSE DATABASE'!$X$191,K56='EXPENSE DATABASE'!$X$192,K56='EXPENSE DATABASE'!$X$193,K56='EXPENSE DATABASE'!$X$194,K56='EXPENSE DATABASE'!$Z$187,K56='EXPENSE DATABASE'!$Z$188,K56='EXPENSE DATABASE'!$Z$189,K56='EXPENSE DATABASE'!$Z$190,K56='EXPENSE DATABASE'!$Z$191,K56='EXPENSE DATABASE'!$Z$192,K56='EXPENSE DATABASE'!$Z$193,K56='EXPENSE DATABASE'!$Z$194),O56,\"\")","v":""},{"$f":"IF(OR(K56='EXPENSE DATABASE'!$T$189,K56='EXPENSE DATABASE'!$T$190,K56='EXPENSE DATABASE'!$T$191),O56,\"\")","v":""},{"$f":"VLOOKUP(I56,'EXPENSE DATABASE'!$B$41:$C$65,2,FALSE)","v":{"$error":"#N/A"}},100,{"$f":"VLOOKUP(J56,'EXPENSE DATABASE'!$B$69:$C$168,2,FALSE)","v":{"$error":"#N/A"}},101,{"$f":"VLOOKUP(K56,'EXPENSE DATABASE'!$B$6:$C$35,2,FALSE)","v":{"$error":"#N/A"}},31,{"$f":"VLOOKUP(L56,'EXPENSE DATABASE'!$B$173:$C$176,2,FALSE)","v":{"$error":"#N/A"}},100,0,0,{"$f":"IF(L56=T('EXPENSE DATABASE'!$E$173),O56,0)","v":0},{"$f":"IF(L56=T('EXPENSE DATABASE'!$E$174),O56,0)","v":0},{"$f":"IF(L56=T('EXPENSE DATABASE'!$E$175),O56,0)","v":0},0,43,{"$nulls":6},{"$f":"Table6[[#This Row],[QTY]]*Table6[[#This Row],[UNIT COST]]","v":{"v":0,"d":"$0.00"}},{"$f":"IF(Table6[[#This Row],[TOTAL AMOUNT]]>0,1,0)","v":0},{"$f":"VLOOKUP(Table6[[#This Row],[INCOME TYPE]],'EXPENSE DATABASE'!$B$186:$C$195,2,FALSE)","v":{"$error":"#N/A"}},11]
[0,0,{"$nulls":12},{"v":0,"d":"$0.00"},{"v":0,"d":"$0.00"},{"v":0,"d":"$0.00"},0,{"$f":"IF(OR(K57='EXPENSE DATABASE'!$V$187,K57='EXPENSE DATABASE'!$V$188,K57='EXPENSE DATABASE'!$V$189,K57='EXPENSE DATABASE'!$V$190,K57='EXPENSE DATABASE'!$V$191,K57='EXPENSE DATABASE'!$V$192,K57='EXPENSE DATABASE'!$V$193,K57='EXPENSE DATABASE'!$V$194,K57='EXPENSE DATABASE'!$X$187,K57='EXPENSE DATABASE'!$X$188,K57='EXPENSE DATABASE'!$X$189,K57='EXPENSE DATABASE'!$X$190,K57='EXPENSE DATABASE'!$X$191,K57='EXPENSE DATABASE'!$X$192,K57='EXPENSE DATABASE'!$X$193,K57='EXPENSE DATABASE'!$X$194,K57='EXPENSE DATABASE'!$Z$187,K57='EXPENSE DATABASE'!$Z$188,K57='EXPENSE DATABASE'!$Z$189,K57='EXPENSE DATABASE'!$Z$190,K57='EXPENSE DATABASE'!$Z$191,K57='EXPENSE DATABASE'!$Z$192,K57='EXPENSE DATABASE'!$Z$193,K57='EXPENSE DATABASE'!$Z$194),O57,\"\")","v":""},{"$f":"IF(OR(K57='EXPENSE DATABASE'!$T$189,K57='EXPENSE DATABASE'!$T$190,K57='EXPENSE DATABASE'!$T$191),O57,\"\")","v":""},{"$f":"VLOOKUP(I57,'EXPENSE DATABASE'!$B$41:$C$65,2,FALSE)","v":{"$error":"#N/A"}},100,{"$f":"VLOOKUP(J57,'EXPENSE DATABASE'!$B$69:$C$168,2,FALSE)","v":{"$error":"#N/A"}},101,{"$f":"VLOOKUP(K57,'EXPENSE DATABASE'!$B$6:$C$35,2,FALSE)","v":{"$error":"#N/A"}},31,{"$f":"VLOOKUP(L57,'EXPENSE DATABASE'!$B$173:$C$176,2,FALSE)","v":{"$error":"#N/A"}},100,0,0,{"$f":"IF(L57=T('EXPENSE DATABASE'!$E$173),O57,0)","v":0},{"$f":"IF(L57=T('EXPENSE DATABASE'!$E$174),O57,0)","v":0},{"$f":"IF(L57=T('EXPENSE DATABASE'!$E$175),O57,0)","v":0},0,44,{"$nulls":6},{"$f":"Table6[[#This Row],[QTY]]*Table6[[#This Row],[UNIT COST]]","v":{"v":0,"d":"$0.00"}},{"$f":"IF(Table6[[#This Row],[TOTAL AMOUNT]]>0,1,0)","v":0},{"$f":"VLOOKUP(Table6[[#This Row],[INCOME TYPE]],'EXPENSE DATABASE'!$B$186:$C$195,2,FALSE)","v":{"$error":"#N/A"}},11]
[0,0,{"$nulls":12},{"v":0,"d":"$0.00"},{"v":0,"d":"$0.00"},{"v":0,"d":"$0.00"},0,{"$f":"IF(OR(K58='EXPENSE DATABASE'!$V$187,K58='EXPENSE DATABASE'!$V$188,K58='EXPENSE DATABASE'!$V$189,K58='EXPENSE DATABASE'!$V$190,K58='EXPENSE DATABASE'!$V$191,K58='EXPENSE DATABASE'!$V$192,K58='EXPENSE DATABASE'!$V$193,K58='EXPENSE DATABASE'!$V$194,K58='EXPENSE DATABASE'!$X$187,K58='EXPENSE DATABASE'!$X$188,K58='EXPENSE DATABASE'!$X$189,K58='EXPENSE DATABASE'!$X$190,K58='EXPENSE DATABASE'!$X$191,K58='EXPENSE DATABASE'!$X$192,K58='EXPENSE DATABASE'!$X$193,K58='EXPENSE DATABASE'!$X$194,K58='EXPENSE DATABASE'!$Z$187,K58='EXPENSE DATABASE'!$Z$188,K58='EXPENSE DATABASE'!$Z$189,K58='EXPENSE DATABASE'!$Z$190,K58='EXPENSE DATABASE'!$Z$191,K58='EXPENSE DATABASE'!$Z$192,K58='EXPENSE DATABASE'!$Z$193,K58='EXPENSE DATABASE'!$Z$194),O58,\"\")","v":""},{"$f":"IF(OR(K58='EXPENSE DATABASE'!$T$189,K58='EXPENSE DATABASE'!$T$190,K58='EXPENSE DATABASE'!$T$191),O58,\"\")","v":""},{"$f":"VLOOKUP(I58,'EXPENSE DATABASE'!$B$41:$C$65,2,FALSE)","v":{"$error":"#N/A"}},100,{"$f":"VLOOKUP(J58,'EXPENSE DATABASE'!$B$69:$C$168,2,FALSE)","v":{"$error":"#N/A"}},101,{"$f":"VLOOKUP(K58,'EXPENSE DATABASE'!$B$6:$C$35,2,FALSE)","v":{"$error":"#N/A"}},31,{"$f":"VLOOKUP(L58,'EXPENSE DATABASE'!$B$173:$C$176,2,FALSE)","v":{"$error":"#N/A"}},100,0,0,{"$f":"IF(L58=T('EXPENSE DATABASE'!$E$173),O58,0)","v":0},{"$f":"IF(L58=T('EXPENSE DATABASE'!$E$174),O58,0)","v":0},{"$f":"IF(L58=T('EXPENSE DATABASE'!$E$175),O58,0)","v":0},0,45,{"$nulls":6},{"$f":"Table6[[#This Row],[QTY]]*Table6[[#This Row],[UNIT COST]]","v":{"v":0,"d":"$0.00"}},{"$f":"IF(Table6[[#This Row],[TOTAL AMOUNT]]>0,1,0)","v":0},{"$f":"VLOOKUP(Table6[[#This Row],[INCOME TYPE]],'EXPENSE DATABASE'!$B$186:$C$195,2,FALSE)","v":{"$error":"#N/A"}},11]
[0,0,{"$nulls":12},{"v":0,"d":"$0.00"},{"v":0,"d":"$0.00"},{"v":0,"d":"$0.00"},0,{"$f":"IF(OR(K59='EXPENSE DATABASE'!$V$187,K59='EXPENSE DATABASE'!$V$188,K59='EXPENSE DATABASE'!$V$189,K59='EXPENSE DATABASE'!$V$190,K59='EXPENSE DATABASE'!$V$191,K59='EXPENSE DATABASE'!$V$192,K59='EXPENSE DATABASE'!$V$193,K59='EXPENSE DATABASE'!$V$194,K59='EXPENSE DATABASE'!$X$187,K59='EXPENSE DATABASE'!$X$188,K59='EXPENSE DATABASE'!$X$189,K59='EXPENSE DATABASE'!$X$190,K59='EXPENSE DATABASE'!$X$191,K59='EXPENSE DATABASE'!$X$192,K59='EXPENSE DATABASE'!$X$193,K59='EXPENSE DATABASE'!$X$194,K59='EXPENSE DATABASE'!$Z$187,K59='EXPENSE DATABASE'!$Z$188,K59='EXPENSE DATABASE'!$Z$189,K59='EXPENSE DATABASE'!$Z$190,K59='EXPENSE DATABASE'!$Z$191,K59='EXPENSE DATABASE'!$Z$192,K59='EXPENSE DATABASE'!$Z$193,K59='EXPENSE DATABASE'!$Z$194),O59,\"\")","v":""},{"$f":"IF(OR(K59='EXPENSE DATABASE'!$T$189,K59='EXPENSE DATABASE'!$T$190,K59='EXPENSE DATABASE'!$T$191),O59,\"\")","v":""},{"$f":"VLOOKUP(I59,'EXPENSE DATABASE'!$B$41:$C$65,2,FALSE)","v":{"$error":"#N/A"}},100,{"$f":"VLOOKUP(J59,'EXPENSE DATABASE'!$B$69:$C$168,2,FALSE)","v":{"$error":"#N/A"}},101,{"$f":"VLOOKUP(K59,'EXPENSE DATABASE'!$B$6:$C$35,2,FALSE)","v":{"$error":"#N/A"}},31,{"$f":"VLOOKUP(L59,'EXPENSE DATABASE'!$B$173:$C$176,2,FALSE)","v":{"$error":"#N/A"}},100,0,0,{"$f":"IF(L59=T('EXPENSE DATABASE'!$E$173),O59,0)","v":0},{"$f":"IF(L59=T('EXPENSE DATABASE'!$E$174),O59,0)","v":0},{"$f":"IF(L59=T('EXPENSE DATABASE'!$E$175),O59,0)","v":0},0,46,{"$nulls":6},{"$f":"Table6[[#This Row],[QTY]]*Table6[[#This Row],[UNIT COST]]","v":{"v":0,"d":"$0.00"}},{"$f":"IF(Table6[[#This Row],[TOTAL AMOUNT]]>0,1,0)","v":0},{"$f":"VLOOKUP(Table6[[#This Row],[INCOME TYPE]],'EXPENSE DATABASE'!$B$186:$C$195,2,FALSE)","v":{"$error":"#N/A"}},11]
[0,0,{"$nulls":12},{"v":0,"d":"$0.00"},{"v":0,"d":"$0.00"},{"v":0,"d":"$0.00"},0,{"$f":"IF(OR(K60='EXPENSE DATABASE'!$V$187,K60='EXPENSE DATABASE'!$V$188,K60='EXPENSE DATABASE'!$V$189,K60='EXPENSE DATABASE'!$V$190,K60='EXPENSE DATABASE'!$V$191,K60='EXPENSE DATABASE'!$V$192,K60='EXPENSE DATABASE'!$V$193,K60='EXPENSE DATABASE'!$V$194,K60='EXPENSE DATABASE'!$X$187,K60='EXPENSE DATABASE'!$X$188,K60='EXPENSE DATABASE'!$X$189,K60='EXPENSE DATABASE'!$X$190,K60='EXPENSE DATABASE'!$X$191,K60='EXPENSE DATABASE'!$X$192,K60='EXPENSE DATABASE'!$X$193,K60='EXPENSE DATABASE'!$X$194,K60='EXPENSE DATABASE'!$Z$187,K60='EXPENSE DATABASE'!$Z$188,K60='EXPENSE DATABASE'!$Z$189,K60='EXPENSE DATABASE'!$Z$190,K60='EXPENSE DATABASE'!$Z$191,K60='EXPENSE DATABASE'!$Z$192,K60='EXPENSE DATABASE'!$Z$193,K60='EXPENSE DATABASE'!$Z$194),O60,\"\")","v":""},{"$f":"IF(OR(K60='EXPENSE DATABASE'!$T$189,K60='EXPENSE DATABASE'!$T$190,K60='EXPENSE DATABASE'!$T$191),O60,\"\")","v":""},{"$f":"VLOOKUP(I60,'EXPENSE DATABASE'!$B$41:$C$65,2,FALSE)","v":{"$error":"#N/A"}},100,{"$f":"VLOOKUP(J60,'EXPENSE DATABASE'!$B$69:$C$168,2,FALSE)","v":{"$error":"#N/A"}},101,{"$f":"VLOOKUP(K60,'EXPENSE DATABASE'!$B$6:$C$35,2,FALSE)","v":{"$error":"#N/A"}},31,{"$f":"VLOOKUP(L60,'EXPENSE DATABASE'!$B$173:$C$176,2,FALSE)","v":{"$error":"#N/A"}},100,0,0,{"$f":"IF(L60=T('EXPENSE DATABASE'!$E$173),O60,0)","v":0},{"$f":"IF(L60=T('EXPENSE DATABASE'!$E$174),O60,0)","v":0},{"$f":"IF(L60=T('EXPENSE DATABASE'!$E$175),O60,0)","v":0},0,47,{"$nulls":6},{"$f":"Table6[[#This Row],[QTY]]*Table6[[#This Row],[UNIT COST]]","v":{"v":0,"d":"$0.00"}},{"$f":"IF(Table6[[#This Row],[TOTAL AMOUNT]]>0,1,0)","v":0},{"$f":"VLOOKUP(Table6[[#This Row],[INCOME TYPE]],'EXPENSE DATABASE'!$B$186:$C$195,2,FALSE)","v":{"$error":"#N/A"}},11]
[0,0,{"$nulls":12},{"v":0,"d":"$0.00"},{"v":0,"d":"$0.00"},{"v":0,"d":"$0.00"},0,{"$f":"IF(OR(K61='EXPENSE DATABASE'!$V$187,K61='EXPENSE DATABASE'!$V$188,K61='EXPENSE DATABASE'!$V$189,K61='EXPENSE DATABASE'!$V$190,K61='EXPENSE DATABASE'!$V$191,K61='EXPENSE DATABASE'!$V$192,K61='EXPENSE DATABASE'!$V$193,K61='EXPENSE DATABASE'!$V$194,K61='EXPENSE DATABASE'!$X$187,K61='EXPENSE DATABASE'!$X$188,K61='EXPENSE DATABASE'!$X$189,K61='EXPENSE DATABASE'!$X$190,K61='EXPENSE DATABASE'!$X$191,K61='EXPENSE DATABASE'!$X$192,K61='EXPENSE DATABASE'!$X$193,K61='EXPENSE DATABASE'!$X$194,K61='EXPENSE DATABASE'!$Z$187,K61='EXPENSE DATABASE'!$Z$188,K61='EXPENSE DATABASE'!$Z$189,K61='EXPENSE DATABASE'!$Z$190,K61='EXPENSE DATABASE'!$Z$191,K61='EXPENSE DATABASE'!$Z$192,K61='EXPENSE DATABASE'!$Z$193,K61='EXPENSE DATABASE'!$Z$194),O61,\"\")","v":""},{"$f":"IF(OR(K61='EXPENSE DATABASE'!$T$189,K61='EXPENSE DATABASE'!$T$190,K61='EXPENSE DATABASE'!$T$191),O61,\"\")","v":""},{"$f":"VLOOKUP(I61,'EXPENSE DATABASE'!$B$41:$C$65,2,FALSE)","v":{"$error":"#N/A"}},100,{"$f":"VLOOKUP(J61,'EXPENSE DATABASE'!$B$69:$C$168,2,FALSE)","v":{"$error":"#N/A"}},101,{"$f":"VLOOKUP(K61,'EXPENSE DATABASE'!$B$6:$C$35,2,FALSE)","v":{"$error":"#N/A"}},31,{"$f":"VLOOKUP(L61,'EXPENSE DATABASE'!$B$173:$C$176,2,FALSE)","v":{"$error":"#N/A"}},100,0,0,{"$f":"IF(L61=T('EXPENSE DATABASE'!$E$173),O61,0)","v":0},{"$f":"IF(L61=T('EXPENSE DATABASE'!$E$174),O61,0)","v":0},{"$f":"IF(L61=T('EXPENSE DATABASE'!$E$175),O61,0)","v":0},0,48,{"$nulls":6},{"$f":"Table6[[#This Row],[QTY]]*Table6[[#This Row],[UNIT COST]]","v":{"v":0,"d":"$0.00"}},{"$f":"IF(Table6[[#This Row],[TOTAL AMOUNT]]>0,1,0)","v":0},{"$f":"VLOOKUP(Table6[[#This Row],[INCOME TYPE]],'EXPENSE DATABASE'!$B$186:$C$195,2,FALSE)","v":{"$error":"#N/A"}},11]
[0,0,{"$nulls":12},{"v":0,"d":"$0.00"},{"v":0,"d":"$0.00"},{"v":0,"d":"$0.00"},0,{"$f":"IF(OR(K62='EXPENSE DATABASE'!$V$187,K62='EXPENSE DATABASE'!$V$188,K62='EXPENSE DATABASE'!$V$189,K62='EXPENSE DATABASE'!$V$190,K62='EXPENSE DATABASE'!$V$191,K62='EXPENSE DATABASE'!$V$192,K62='EXPENSE DATABASE'!$V$193,K62='EXPENSE DATABASE'!$V$194,K62='EXPENSE DATABASE'!$X$187,K62='EXPENSE DATABASE'!$X$188,K62='EXPENSE DATABASE'!$X$189,K62='EXPENSE DATABASE'!$X$190,K62='EXPENSE DATABASE'!$X$191,K62='EXPENSE DATABASE'!$X$192,K62='EXPENSE DATABASE'!$X$193,K62='EXPENSE DATABASE'!$X$194,K62='EXPENSE DATABASE'!$Z$187,K62='EXPENSE DATABASE'!$Z$188,K62='EXPENSE DATABASE'!$Z$189,K62='EXPENSE DATABASE'!$Z$190,K62='EXPENSE DATABASE'!$Z$191,K62='EXPENSE DATABASE'!$Z$192,K62='EXPENSE DATABASE'!$Z$193,K62='EXPENSE DATABASE'!$Z$194),O62,\"\")","v":""},{"$f":"IF(OR(K62='EXPENSE DATABASE'!$T$189,K62='EXPENSE DATABASE'!$T$190,K62='EXPENSE DATABASE'!$T$191),O62,\"\")","v":""},{"$f":"VLOOKUP(I62,'EXPENSE DATABASE'!$B$41:$C$65,2,FALSE)","v":{"$error":"#N/A"}},100,{"$f":"VLOOKUP(J62,'EXPENSE DATABASE'!$B$69:$C$168,2,FALSE)","v":{"$error":"#N/A"}},101,{"$f":"VLOOKUP(K62,'EXPENSE DATABASE'!$B$6:$C$35,2,FALSE)","v":{"$error":"#N/A"}},31,{"$f":"VLOOKUP(L62,'EXPENSE DATABASE'!$B$173:$C$176,2,FALSE)","v":{"$error":"#N/A"}},100,0,0,{"$f":"IF(L62=T('EXPENSE DATABASE'!$E$173),O62,0)","v":0},{"$f":"IF(L62=T('EXPENSE DATABASE'!$E$174),O62,0)","v":0},{"$f":"IF(L62=T('EXPENSE DATABASE'!$E$175),O62,0)","v":0},0,49,{"$nulls":6},{"$f":"Table6[[#This Row],[QTY]]*Table6[[#This Row],[UNIT COST]]","v":{"v":0,"d":"$0.00"}},{"$f":"IF(Table6[[#This Row],[TOTAL AMOUNT]]>0,1,0)","v":0},{"$f":"VLOOKUP(Table6[[#This Row],[INCOME TYPE]],'EXPENSE DATABASE'!$B$186:$C$195,2,FALSE)","v":{"$error":"#N/A"}},11]
[0,0,{"$nulls":12},{"v":0,"d":"$0.00"},{"v":0,"d":"$0.00"},{"v":0,"d":"$0.00"},0,{"$f":"IF(OR(K63='EXPENSE DATABASE'!$V$187,K63='EXPENSE DATABASE'!$V$188,K63='EXPENSE DATABASE'!$V$189,K63='EXPENSE DATABASE'!$V$190,K63='EXPENSE DATABASE'!$V$191,K63='EXPENSE DATABASE'!$V$192,K63='EXPENSE DATABASE'!$V$193,K63='EXPENSE DATABASE'!$V$194,K63='EXPENSE DATABASE'!$X$187,K63='EXPENSE DATABASE'!$X$188,K63='EXPENSE DATABASE'!$X$189,K63='EXPENSE DATABASE'!$X$190,K63='EXPENSE DATABASE'!$X$191,K63='EXPENSE DATABASE'!$X$192,K63='EXPENSE DATABASE'!$X$193,K63='EXPENSE DATABASE'!$X$194,K63='EXPENSE DATABASE'!$Z$187,K63='EXPENSE DATABASE'!$Z$188,K63='EXPENSE DATABASE'!$Z$189,K63='EXPENSE DATABASE'!$Z$190,K63='EXPENSE DATABASE'!$Z$191,K63='EXPENSE DATABASE'!$Z$192,K63='EXPENSE DATABASE'!$Z$193,K63='EXPENSE DATABASE'!$Z$194),O63,\"\")","v":""},{"$f":"IF(OR(K63='EXPENSE DATABASE'!$T$189,K63='EXPENSE DATABASE'!$T$190,K63='EXPENSE DATABASE'!$T$191),O63,\"\")","v":""},{"$f":"VLOOKUP(I63,'EXPENSE DATABASE'!$B$41:$C$65,2,FALSE)","v":{"$error":"#N/A"}},100,{"$f":"VLOOKUP(J63,'EXPENSE DATABASE'!$B$69:$C$168,2,FALSE)","v":{"$error":"#N/A"}},101,{"$f":"VLOOKUP(K63,'EXPENSE DATABASE'!$B$6:$C$35,2,FALSE)","v":{"$error":"#N/A"}},31,{"$f":"VLOOKUP(L63,'EXPENSE DATABASE'!$B$173:$C$176,2,FALSE)","v":{"$error":"#N/A"}},100,0,0,{"$f":"IF(L63=T('EXPENSE DATABASE'!$E$173),O63,0)","v":0},{"$f":"IF(L63=T('EXPENSE DATABASE'!$E$174),O63,0)","v":0},{"$f":"IF(L63=T('EXPENSE DATABASE'!$E$175),O63,0)","v":0},0,50,{"$nulls":6},{"$f":"Table6[[#This Row],[QTY]]*Table6[[#This Row],[UNIT COST]]","v":{"v":0,"d":"$0.00"}},{"$f":"IF(Table6[[#This Row],[TOTAL AMOUNT]]>0,1,0)","v":0},{"$f":"VLOOKUP(Table6[[#This Row],[INCOME TYPE]],'EXPENSE DATABASE'!$B$186:$C$195,2,FALSE)","v":{"$error":"#N/A"}},11]
[0,0,{"$nulls":12},{"v":0,"d":"$0.00"},{"v":0,"d":"$0.00"},{"v":0,"d":"$0.00"},0,{"$f":"IF(OR(K64='EXPENSE DATABASE'!$V$187,K64='EXPENSE DATABASE'!$V$188,K64='EXPENSE DATABASE'!$V$189,K64='EXPENSE DATABASE'!$V$190,K64='EXPENSE DATABASE'!$V$191,K64='EXPENSE DATABASE'!$V$192,K64='EXPENSE DATABASE'!$V$193,K64='EXPENSE DATABASE'!$V$194,K64='EXPENSE DATABASE'!$X$187,K64='EXPENSE DATABASE'!$X$188,K64='EXPENSE DATABASE'!$X$189,K64='EXPENSE DATABASE'!$X$190,K64='EXPENSE DATABASE'!$X$191,K64='EXPENSE DATABASE'!$X$192,K64='EXPENSE DATABASE'!$X$193,K64='EXPENSE DATABASE'!$X$194,K64='EXPENSE DATABASE'!$Z$187,K64='EXPENSE DATABASE'!$Z$188,K64='EXPENSE DATABASE'!$Z$189,K64='EXPENSE DATABASE'!$Z$190,K64='EXPENSE DATABASE'!$Z$191,K64='EXPENSE DATABASE'!$Z$192,K64='EXPENSE DATABASE'!$Z$193,K64='EXPENSE DATABASE'!$Z$194),O64,\"\")","v":""},{"$f":"IF(OR(K64='EXPENSE DATABASE'!$T$189,K64='EXPENSE DATABASE'!$T$190,K64='EXPENSE DATABASE'!$T$191),O64,\"\")","v":""},{"$f":"VLOOKUP(I64,'EXPENSE DATABASE'!$B$41:$C$65,2,FALSE)","v":{"$error":"#N/A"}},100,{"$f":"VLOOKUP(J64,'EXPENSE DATABASE'!$B$69:$C$168,2,FALSE)","v":{"$error":"#N/A"}},101,{"$f":"VLOOKUP(K64,'EXPENSE DATABASE'!$B$6:$C$35,2,FALSE)","v":{"$error":"#N/A"}},31,{"$f":"VLOOKUP(L64,'EXPENSE DATABASE'!$B$173:$C$176,2,FALSE)","v":{"$error":"#N/A"}},100,0,0,{"$f":"IF(L64=T('EXPENSE DATABASE'!$E$173),O64,0)","v":0},{"$f":"IF(L64=T('EXPENSE DATABASE'!$E$174),O64,0)","v":0},{"$f":"IF(L64=T('EXPENSE DATABASE'!$E$175),O64,0)","v":0},0,51,{"$nulls":6},{"$f":"Table6[[#This Row],[QTY]]*Table6[[#This Row],[UNIT COST]]","v":{"v":0,"d":"$0.00"}},{"$f":"IF(Table6[[#This Row],[TOTAL AMOUNT]]>0,1,0)","v":0},{"$f":"VLOOKUP(Table6[[#This Row],[INCOME TYPE]],'EXPENSE DATABASE'!$B$186:$C$195,2,FALSE)","v":{"$error":"#N/A"}},11]
[0,0,{"$nulls":12},{"v":0,"d":"$0.00"},{"v":0,"d":"$0.00"},{"v":0,"d":"$0.00"},0,{"$f":"IF(OR(K65='EXPENSE DATABASE'!$V$187,K65='EXPENSE DATABASE'!$V$188,K65='EXPENSE DATABASE'!$V$189,K65='EXPENSE DATABASE'!$V$190,K65='EXPENSE DATABASE'!$V$191,K65='EXPENSE DATABASE'!$V$192,K65='EXPENSE DATABASE'!$V$193,K65='EXPENSE DATABASE'!$V$194,K65='EXPENSE DATABASE'!$X$187,K65='EXPENSE DATABASE'!$X$188,K65='EXPENSE DATABASE'!$X$189,K65='EXPENSE DATABASE'!$X$190,K65='EXPENSE DATABASE'!$X$191,K65='EXPENSE DATABASE'!$X$192,K65='EXPENSE DATABASE'!$X$193,K65='EXPENSE DATABASE'!$X$194,K65='EXPENSE DATABASE'!$Z$187,K65='EXPENSE DATABASE'!$Z$188,K65='EXPENSE DATABASE'!$Z$189,K65='EXPENSE DATABASE'!$Z$190,K65='EXPENSE DATABASE'!$Z$191,K65='EXPENSE DATABASE'!$Z$192,K65='EXPENSE DATABASE'!$Z$193,K65='EXPENSE DATABASE'!$Z$194),O65,\"\")","v":""},{"$f":"IF(OR(K65='EXPENSE DATABASE'!$T$189,K65='EXPENSE DATABASE'!$T$190,K65='EXPENSE DATABASE'!$T$191),O65,\"\")","v":""},{"$f":"VLOOKUP(I65,'EXPENSE DATABASE'!$B$41:$C$65,2,FALSE)","v":{"$error":"#N/A"}},100,{"$f":"VLOOKUP(J65,'EXPENSE DATABASE'!$B$69:$C$168,2,FALSE)","v":{"$error":"#N/A"}},101,{"$f":"VLOOKUP(K65,'EXPENSE DATABASE'!$B$6:$C$35,2,FALSE)","v":{"$error":"#N/A"}},31,{"$f":"VLOOKUP(L65,'EXPENSE DATABASE'!$B$173:$C$176,2,FALSE)","v":{"$error":"#N/A"}},100,0,0,{"$f":"IF(L65=T('EXPENSE DATABASE'!$E$173),O65,0)","v":0},{"$f":"IF(L65=T('EXPENSE DATABASE'!$E$174),O65,0)","v":0},{"$f":"IF(L65=T('EXPENSE DATABASE'!$E$175),O65,0)","v":0},0,52,{"$nulls":6},{"$f":"Table6[[#This Row],[QTY]]*Table6[[#This Row],[UNIT COST]]","v":{"v":0,"d":"$0.00"}},{"$f":"IF(Table6[[#This Row],[TOTAL AMOUNT]]>0,1,0)","v":0},{"$f":"VLOOKUP(Table6[[#This Row],[INCOME TYPE]],'EXPENSE DATABASE'!$B$186:$C$195,2,FALSE)","v":{"$error":"#N/A"}},11]
[0,0,{"$nulls":12},{"v":0,"d":"$0.00"},{"v":0,"d":"$0.00"},{"v":0,"d":"$0.00"},0,{"$f":"IF(OR(K66='EXPENSE DATABASE'!$V$187,K66='EXPENSE DATABASE'!$V$188,K66='EXPENSE DATABASE'!$V$189,K66='EXPENSE DATABASE'!$V$190,K66='EXPENSE DATABASE'!$V$191,K66='EXPENSE DATABASE'!$V$192,K66='EXPENSE DATABASE'!$V$193,K66='EXPENSE DATABASE'!$V$194,K66='EXPENSE DATABASE'!$X$187,K66='EXPENSE DATABASE'!$X$188,K66='EXPENSE DATABASE'!$X$189,K66='EXPENSE DATABASE'!$X$190,K66='EXPENSE DATABASE'!$X$191,K66='EXPENSE DATABASE'!$X$192,K66='EXPENSE DATABASE'!$X$193,K66='EXPENSE DATABASE'!$X$194,K66='EXPENSE DATABASE'!$Z$187,K66='EXPENSE DATABASE'!$Z$188,K66='EXPENSE DATABASE'!$Z$189,K66='EXPENSE DATABASE'!$Z$190,K66='EXPENSE DATABASE'!$Z$191,K66='EXPENSE DATABASE'!$Z$192,K66='EXPENSE DATABASE'!$Z$193,K66='EXPENSE DATABASE'!$Z$194),O66,\"\")","v":""},{"$f":"IF(OR(K66='EXPENSE DATABASE'!$T$189,K66='EXPENSE DATABASE'!$T$190,K66='EXPENSE DATABASE'!$T$191),O66,\"\")","v":""},{"$f":"VLOOKUP(I66,'EXPENSE DATABASE'!$B$41:$C$65,2,FALSE)","v":{"$error":"#N/A"}},100,{"$f":"VLOOKUP(J66,'EXPENSE DATABASE'!$B$69:$C$168,2,FALSE)","v":{"$error":"#N/A"}},101,{"$f":"VLOOKUP(K66,'EXPENSE DATABASE'!$B$6:$C$35,2,FALSE)","v":{"$error":"#N/A"}},31,{"$f":"VLOOKUP(L66,'EXPENSE DATABASE'!$B$173:$C$176,2,FALSE)","v":{"$error":"#N/A"}},100,0,0,{"$f":"IF(L66=T('EXPENSE DATABASE'!$E$173),O66,0)","v":0},{"$f":"IF(L66=T('EXPENSE DATABASE'!$E$174),O66,0)","v":0},{"$f":"IF(L66=T('EXPENSE DATABASE'!$E$175),O66,0)","v":0},0,53,{"$nulls":6},{"$f":"Table6[[#This Row],[QTY]]*Table6[[#This Row],[UNIT COST]]","v":{"v":0,"d":"$0.00"}},{"$f":"IF(Table6[[#This Row],[TOTAL AMOUNT]]>0,1,0)","v":0},{"$f":"VLOOKUP(Table6[[#This Row],[INCOME TYPE]],'EXPENSE DATABASE'!$B$186:$C$195,2,FALSE)","v":{"$error":"#N/A"}},11]
[0,0,{"$nulls":12},{"v":0,"d":"$0.00"},{"v":0,"d":"$0.00"},{"v":0,"d":"$0.00"},0,{"$f":"IF(OR(K67='EXPENSE DATABASE'!$V$187,K67='EXPENSE DATABASE'!$V$188,K67='EXPENSE DATABASE'!$V$189,K67='EXPENSE DATABASE'!$V$190,K67='EXPENSE DATABASE'!$V$191,K67='EXPENSE DATABASE'!$V$192,K67='EXPENSE DATABASE'!$V$193,K67='EXPENSE DATABASE'!$V$194,K67='EXPENSE DATABASE'!$X$187,K67='EXPENSE DATABASE'!$X$188,K67='EXPENSE DATABASE'!$X$189,K67='EXPENSE DATABASE'!$X$190,K67='EXPENSE DATABASE'!$X$191,K67='EXPENSE DATABASE'!$X$192,K67='EXPENSE DATABASE'!$X$193,K67='EXPENSE DATABASE'!$X$194,K67='EXPENSE DATABASE'!$Z$187,K67='EXPENSE DATABASE'!$Z$188,K67='EXPENSE DATABASE'!$Z$189,K67='EXPENSE DATABASE'!$Z$190,K67='EXPENSE DATABASE'!$Z$191,K67='EXPENSE DATABASE'!$Z$192,K67='EXPENSE DATABASE'!$Z$193,K67='EXPENSE DATABASE'!$Z$194),O67,\"\")","v":""},{"$f":"IF(OR(K67='EXPENSE DATABASE'!$T$189,K67='EXPENSE DATABASE'!$T$190,K67='EXPENSE DATABASE'!$T$191),O67,\"\")","v":""},{"$f":"VLOOKUP(I67,'EXPENSE DATABASE'!$B$41:$C$65,2,FALSE)","v":{"$error":"#N/A"}},100,{"$f":"VLOOKUP(J67,'EXPENSE DATABASE'!$B$69:$C$168,2,FALSE)","v":{"$error":"#N/A"}},101,{"$f":"VLOOKUP(K67,'EXPENSE DATABASE'!$B$6:$C$35,2,FALSE)","v":{"$error":"#N/A"}},31,{"$f":"VLOOKUP(L67,'EXPENSE DATABASE'!$B$173:$C$176,2,FALSE)","v":{"$error":"#N/A"}},100,0,0,{"$f":"IF(L67=T('EXPENSE DATABASE'!$E$173),O67,0)","v":0},{"$f":"IF(L67=T('EXPENSE DATABASE'!$E$174),O67,0)","v":0},{"$f":"IF(L67=T('EXPENSE DATABASE'!$E$175),O67,0)","v":0},0,54,{"$nulls":6},{"$f":"Table6[[#This Row],[QTY]]*Table6[[#This Row],[UNIT COST]]","v":{"v":0,"d":"$0.00"}},{"$f":"IF(Table6[[#This Row],[TOTAL AMOUNT]]>0,1,0)","v":0},{"$f":"VLOOKUP(Table6[[#This Row],[INCOME TYPE]],'EXPENSE DATABASE'!$B$186:$C$195,2,FALSE)","v":{"$error":"#N/A"}},11]
[0,0,{"$nulls":12},{"v":0,"d":"$0.00"},{"v":0,"d":"$0.00"},{"v":0,"d":"$0.00"},0,{"$f":"IF(OR(K68='EXPENSE DATABASE'!$V$187,K68='EXPENSE DATABASE'!$V$188,K68='EXPENSE DATABASE'!$V$189,K68='EXPENSE DATABASE'!$V$190,K68='EXPENSE DATABASE'!$V$191,K68='EXPENSE DATABASE'!$V$192,K68='EXPENSE DATABASE'!$V$193,K68='EXPENSE DATABASE'!$V$194,K68='EXPENSE DATABASE'!$X$187,K68='EXPENSE DATABASE'!$X$188,K68='EXPENSE DATABASE'!$X$189,K68='EXPENSE DATABASE'!$X$190,K68='EXPENSE DATABASE'!$X$191,K68='EXPENSE DATABASE'!$X$192,K68='EXPENSE DATABASE'!$X$193,K68='EXPENSE DATABASE'!$X$194,K68='EXPENSE DATABASE'!$Z$187,K68='EXPENSE DATABASE'!$Z$188,K68='EXPENSE DATABASE'!$Z$189,K68='EXPENSE DATABASE'!$Z$190,K68='EXPENSE DATABASE'!$Z$191,K68='EXPENSE DATABASE'!$Z$192,K68='EXPENSE DATABASE'!$Z$193,K68='EXPENSE DATABASE'!$Z$194),O68,\"\")","v":""},{"$f":"IF(OR(K68='EXPENSE DATABASE'!$T$189,K68='EXPENSE DATABASE'!$T$190,K68='EXPENSE DATABASE'!$T$191),O68,\"\")","v":""},{"$f":"VLOOKUP(I68,'EXPENSE DATABASE'!$B$41:$C$65,2,FALSE)","v":{"$error":"#N/A"}},100,{"$f":"VLOOKUP(J68,'EXPENSE DATABASE'!$B$69:$C$168,2,FALSE)","v":{"$error":"#N/A"}},101,{"$f":"VLOOKUP(K68,'EXPENSE DATABASE'!$B$6:$C$35,2,FALSE)","v":{"$error":"#N/A"}},31,{"$f":"VLOOKUP(L68,'EXPENSE DATABASE'!$B$173:$C$176,2,FALSE)","v":{"$error":"#N/A"}},100,0,0,{"$f":"IF(L68=T('EXPENSE DATABASE'!$E$173),O68,0)","v":0},{"$f":"IF(L68=T('EXPENSE DATABASE'!$E$174),O68,0)","v":0},{"$f":"IF(L68=T('EXPENSE DATABASE'!$E$175),O68,0)","v":0},0,55,{"$nulls":6},{"$f":"Table6[[#This Row],[QTY]]*Table6[[#This Row],[UNIT COST]]","v":{"v":0,"d":"$0.00"}},{"$f":"IF(Table6[[#This Row],[TOTAL AMOUNT]]>0,1,0)","v":0},{"$f":"VLOOKUP(Table6[[#This Row],[INCOME TYPE]],'EXPENSE DATABASE'!$B$186:$C$195,2,FALSE)","v":{"$error":"#N/A"}},11]
[0,0,{"$nulls":12},{"v":0,"d":"$0.00"},{"v":0,"d":"$0.00"},{"v":0,"d":"$0.00"},0,{"$f":"IF(OR(K69='EXPENSE DATABASE'!$V$187,K69='EXPENSE DATABASE'!$V$188,K69='EXPENSE DATABASE'!$V$189,K69='EXPENSE DATABASE'!$V$190,K69='EXPENSE DATABASE'!$V$191,K69='EXPENSE DATABASE'!$V$192,K69='EXPENSE DATABASE'!$V$193,K69='EXPENSE DATABASE'!$V$194,K69='EXPENSE DATABASE'!$X$187,K69='EXPENSE DATABASE'!$X$188,K69='EXPENSE DATABASE'!$X$189,K69='EXPENSE DATABASE'!$X$190,K69='EXPENSE DATABASE'!$X$191,K69='EXPENSE DATABASE'!$X$192,K69='EXPENSE DATABASE'!$X$193,K69='EXPENSE DATABASE'!$X$194,K69='EXPENSE DATABASE'!$Z$187,K69='EXPENSE DATABASE'!$Z$188,K69='EXPENSE DATABASE'!$Z$189,K69='EXPENSE DATABASE'!$Z$190,K69='EXPENSE DATABASE'!$Z$191,K69='EXPENSE DATABASE'!$Z$192,K69='EXPENSE DATABASE'!$Z$193,K69='EXPENSE DATABASE'!$Z$194),O69,\"\")","v":""},{"$f":"IF(OR(K69='EXPENSE DATABASE'!$T$189,K69='EXPENSE DATABASE'!$T$190,K69='EXPENSE DATABASE'!$T$191),O69,\"\")","v":""},{"$f":"VLOOKUP(I69,'EXPENSE DATABASE'!$B$41:$C$65,2,FALSE)","v":{"$error":"#N/A"}},100,{"$f":"VLOOKUP(J69,'EXPENSE DATABASE'!$B$69:$C$168,2,FALSE)","v":{"$error":"#N/A"}},101,{"$f":"VLOOKUP(K69,'EXPENSE DATABASE'!$B$6:$C$35,2,FALSE)","v":{"$error":"#N/A"}},31,{"$f":"VLOOKUP(L69,'EXPENSE DATABASE'!$B$173:$C$176,2,FALSE)","v":{"$error":"#N/A"}},100,0,0,{"$f":"IF(L69=T('EXPENSE DATABASE'!$E$173),O69,0)","v":0},{"$f":"IF(L69=T('EXPENSE DATABASE'!$E$174),O69,0)","v":0},{"$f":"IF(L69=T('EXPENSE DATABASE'!$E$175),O69,0)","v":0},0,56,{"$nulls":6},{"$f":"Table6[[#This Row],[QTY]]*Table6[[#This Row],[UNIT COST]]","v":{"v":0,"d":"$0.00"}},{"$f":"IF(Table6[[#This Row],[TOTAL AMOUNT]]>0,1,0)","v":0},{"$f":"VLOOKUP(Table6[[#This Row],[INCOME TYPE]],'EXPENSE DATABASE'!$B$186:$C$195,2,FALSE)","v":{"$error":"#N/A"}},11]
[0,0,{"$nulls":12},{"v":0,"d":"$0.00"},{"v":0,"d":"$0.00"},{"v":0,"d":"$0.00"},0,{"$f":"IF(OR(K70='EXPENSE DATABASE'!$V$187,K70='EXPENSE DATABASE'!$V$188,K70='EXPENSE DATABASE'!$V$189,K70='EXPENSE DATABASE'!$V$190,K70='EXPENSE DATABASE'!$V$191,K70='EXPENSE DATABASE'!$V$192,K70='EXPENSE DATABASE'!$V$193,K70='EXPENSE DATABASE'!$V$194,K70='EXPENSE DATABASE'!$X$187,K70='EXPENSE DATABASE'!$X$188,K70='EXPENSE DATABASE'!$X$189,K70='EXPENSE DATABASE'!$X$190,K70='EXPENSE DATABASE'!$X$191,K70='EXPENSE DATABASE'!$X$192,K70='EXPENSE DATABASE'!$X$193,K70='EXPENSE DATABASE'!$X$194,K70='EXPENSE DATABASE'!$Z$187,K70='EXPENSE DATABASE'!$Z$188,K70='EXPENSE DATABASE'!$Z$189,K70='EXPENSE DATABASE'!$Z$190,K70='EXPENSE DATABASE'!$Z$191,K70='EXPENSE DATABASE'!$Z$192,K70='EXPENSE DATABASE'!$Z$193,K70='EXPENSE DATABASE'!$Z$194),O70,\"\")","v":""},{"$f":"IF(OR(K70='EXPENSE DATABASE'!$T$189,K70='EXPENSE DATABASE'!$T$190,K70='EXPENSE DATABASE'!$T$191),O70,\"\")","v":""},{"$f":"VLOOKUP(I70,'EXPENSE DATABASE'!$B$41:$C$65,2,FALSE)","v":{"$error":"#N/A"}},100,{"$f":"VLOOKUP(J70,'EXPENSE DATABASE'!$B$69:$C$168,2,FALSE)","v":{"$error":"#N/A"}},101,{"$f":"VLOOKUP(K70,'EXPENSE DATABASE'!$B$6:$C$35,2,FALSE)","v":{"$error":"#N/A"}},31,{"$f":"VLOOKUP(L70,'EXPENSE DATABASE'!$B$173:$C$176,2,FALSE)","v":{"$error":"#N/A"}},100,0,0,{"$f":"IF(L70=T('EXPENSE DATABASE'!$E$173),O70,0)","v":0},{"$f":"IF(L70=T('EXPENSE DATABASE'!$E$174),O70,0)","v":0},{"$f":"IF(L70=T('EXPENSE DATABASE'!$E$175),O70,0)","v":0},0,57,{"$nulls":6},{"$f":"Table6[[#This Row],[QTY]]*Table6[[#This Row],[UNIT COST]]","v":{"v":0,"d":"$0.00"}},{"$f":"IF(Table6[[#This Row],[TOTAL AMOUNT]]>0,1,0)","v":0},{"$f":"VLOOKUP(Table6[[#This Row],[INCOME TYPE]],'EXPENSE DATABASE'!$B$186:$C$195,2,FALSE)","v":{"$error":"#N/A"}},11]
[0,0,{"$nulls":12},{"v":0,"d":"$0.00"},{"v":0,"d":"$0.00"},{"v":0,"d":"$0.00"},0,{"$f":"IF(OR(K71='EXPENSE DATABASE'!$V$187,K71='EXPENSE DATABASE'!$V$188,K71='EXPENSE DATABASE'!$V$189,K71='EXPENSE DATABASE'!$V$190,K71='EXPENSE DATABASE'!$V$191,K71='EXPENSE DATABASE'!$V$192,K71='EXPENSE DATABASE'!$V$193,K71='EXPENSE DATABASE'!$V$194,K71='EXPENSE DATABASE'!$X$187,K71='EXPENSE DATABASE'!$X$188,K71='EXPENSE DATABASE'!$X$189,K71='EXPENSE DATABASE'!$X$190,K71='EXPENSE DATABASE'!$X$191,K71='EXPENSE DATABASE'!$X$192,K71='EXPENSE DATABASE'!$X$193,K71='EXPENSE DATABASE'!$X$194,K71='EXPENSE DATABASE'!$Z$187,K71='EXPENSE DATABASE'!$Z$188,K71='EXPENSE DATABASE'!$Z$189,K71='EXPENSE DATABASE'!$Z$190,K71='EXPENSE DATABASE'!$Z$191,K71='EXPENSE DATABASE'!$Z$192,K71='EXPENSE DATABASE'!$Z$193,K71='EXPENSE DATABASE'!$Z$194),O71,\"\")","v":""},{"$f":"IF(OR(K71='EXPENSE DATABASE'!$T$189,K71='EXPENSE DATABASE'!$T$190,K71='EXPENSE DATABASE'!$T$191),O71,\"\")","v":""},{"$f":"VLOOKUP(I71,'EXPENSE DATABASE'!$B$41:$C$65,2,FALSE)","v":{"$error":"#N/A"}},100,{"$f":"VLOOKUP(J71,'EXPENSE DATABASE'!$B$69:$C$168,2,FALSE)","v":{"$error":"#N/A"}},101,{"$f":"VLOOKUP(K71,'EXPENSE DATABASE'!$B$6:$C$35,2,FALSE)","v":{"$error":"#N/A"}},31,{"$f":"VLOOKUP(L71,'EXPENSE DATABASE'!$B$173:$C$176,2,FALSE)","v":{"$error":"#N/A"}},100,0,0,{"$f":"IF(L71=T('EXPENSE DATABASE'!$E$173),O71,0)","v":0},{"$f":"IF(L71=T('EXPENSE DATABASE'!$E$174),O71,0)","v":0},{"$f":"IF(L71=T('EXPENSE DATABASE'!$E$175),O71,0)","v":0},0,58,{"$nulls":6},{"$f":"Table6[[#This Row],[QTY]]*Table6[[#This Row],[UNIT COST]]","v":{"v":0,"d":"$0.00"}},{"$f":"IF(Table6[[#This Row],[TOTAL AMOUNT]]>0,1,0)","v":0},{"$f":"VLOOKUP(Table6[[#This Row],[INCOME TYPE]],'EXPENSE DATABASE'!$B$186:$C$195,2,FALSE)","v":{"$error":"#N/A"}},11]
[0,0,{"$nulls":12},{"v":0,"d":"$0.00"},{"v":0,"d":"$0.00"},{"v":0,"d":"$0.00"},0,{"$f":"IF(OR(K72='EXPENSE DATABASE'!$V$187,K72='EXPENSE DATABASE'!$V$188,K72='EXPENSE DATABASE'!$V$189,K72='EXPENSE DATABASE'!$V$190,K72='EXPENSE DATABASE'!$V$191,K72='EXPENSE DATABASE'!$V$192,K72='EXPENSE DATABASE'!$V$193,K72='EXPENSE DATABASE'!$V$194,K72='EXPENSE DATABASE'!$X$187,K72='EXPENSE DATABASE'!$X$188,K72='EXPENSE DATABASE'!$X$189,K72='EXPENSE DATABASE'!$X$190,K72='EXPENSE DATABASE'!$X$191,K72='EXPENSE DATABASE'!$X$192,K72='EXPENSE DATABASE'!$X$193,K72='EXPENSE DATABASE'!$X$194,K72='EXPENSE DATABASE'!$Z$187,K72='EXPENSE DATABASE'!$Z$188,K72='EXPENSE DATABASE'!$Z$189,K72='EXPENSE DATABASE'!$Z$190,K72='EXPENSE DATABASE'!$Z$191,K72='EXPENSE DATABASE'!$Z$192,K72='EXPENSE DATABASE'!$Z$193,K72='EXPENSE DATABASE'!$Z$194),O72,\"\")","v":""},{"$f":"IF(OR(K72='EXPENSE DATABASE'!$T$189,K72='EXPENSE DATABASE'!$T$190,K72='EXPENSE DATABASE'!$T$191),O72,\"\")","v":""},{"$f":"VLOOKUP(I72,'EXPENSE DATABASE'!$B$41:$C$65,2,FALSE)","v":{"$error":"#N/A"}},100,{"$f":"VLOOKUP(J72,'EXPENSE DATABASE'!$B$69:$C$168,2,FALSE)","v":{"$error":"#N/A"}},101,{"$f":"VLOOKUP(K72,'EXPENSE DATABASE'!$B$6:$C$35,2,FALSE)","v":{"$error":"#N/A"}},31,{"$f":"VLOOKUP(L72,'EXPENSE DATABASE'!$B$173:$C$176,2,FALSE)","v":{"$error":"#N/A"}},100,0,0,{"$f":"IF(L72=T('EXPENSE DATABASE'!$E$173),O72,0)","v":0},{"$f":"IF(L72=T('EXPENSE DATABASE'!$E$174),O72,0)","v":0},{"$f":"IF(L72=T('EXPENSE DATABASE'!$E$175),O72,0)","v":0},0,59,{"$nulls":6},{"$f":"Table6[[#This Row],[QTY]]*Table6[[#This Row],[UNIT COST]]","v":{"v":0,"d":"$0.00"}},{"$f":"IF(Table6[[#This Row],[TOTAL AMOUNT]]>0,1,0)","v":0},{"$f":"VLOOKUP(Table6[[#This Row],[INCOME TYPE]],'EXPENSE DATABASE'!$B$186:$C$195,2,FALSE)","v":{"$error":"#N/A"}},11]
[0,0,{"$nulls":12},{"v":0,"d":"$0.00"},{"v":0,"d":"$0.00"},{"v":0,"d":"$0.00"},0,{"$f":"IF(OR(K73='EXPENSE DATABASE'!$V$187,K73='EXPENSE DATABASE'!$V$188,K73='EXPENSE DATABASE'!$V$189,K73='EXPENSE DATABASE'!$V$190,K73='EXPENSE DATABASE'!$V$191,K73='EXPENSE DATABASE'!$V$192,K73='EXPENSE DATABASE'!$V$193,K73='EXPENSE DATABASE'!$V$194,K73='EXPENSE DATABASE'!$X$187,K73='EXPENSE DATABASE'!$X$188,K73='EXPENSE DATABASE'!$X$189,K73='EXPENSE DATABASE'!$X$190,K73='EXPENSE DATABASE'!$X$191,K73='EXPENSE DATABASE'!$X$192,K73='EXPENSE DATABASE'!$X$193,K73='EXPENSE DATABASE'!$X$194,K73='EXPENSE DATABASE'!$Z$187,K73='EXPENSE DATABASE'!$Z$188,K73='EXPENSE DATABASE'!$Z$189,K73='EXPENSE DATABASE'!$Z$190,K73='EXPENSE DATABASE'!$Z$191,K73='EXPENSE DATABASE'!$Z$192,K73='EXPENSE DATABASE'!$Z$193,K73='EXPENSE DATABASE'!$Z$194),O73,\"\")","v":""},{"$f":"IF(OR(K73='EXPENSE DATABASE'!$T$189,K73='EXPENSE DATABASE'!$T$190,K73='EXPENSE DATABASE'!$T$191),O73,\"\")","v":""},{"$f":"VLOOKUP(I73,'EXPENSE DATABASE'!$B$41:$C$65,2,FALSE)","v":{"$error":"#N/A"}},100,{"$f":"VLOOKUP(J73,'EXPENSE DATABASE'!$B$69:$C$168,2,FALSE)","v":{"$error":"#N/A"}},101,{"$f":"VLOOKUP(K73,'EXPENSE DATABASE'!$B$6:$C$35,2,FALSE)","v":{"$error":"#N/A"}},31,{"$f":"VLOOKUP(L73,'EXPENSE DATABASE'!$B$173:$C$176,2,FALSE)","v":{"$error":"#N/A"}},100,0,0,{"$f":"IF(L73=T('EXPENSE DATABASE'!$E$173),O73,0)","v":0},{"$f":"IF(L73=T('EXPENSE DATABASE'!$E$174),O73,0)","v":0},{"$f":"IF(L73=T('EXPENSE DATABASE'!$E$175),O73,0)","v":0},0,60,{"$nulls":6},{"$f":"Table6[[#This Row],[QTY]]*Table6[[#This Row],[UNIT COST]]","v":{"v":0,"d":"$0.00"}},{"$f":"IF(Table6[[#This Row],[TOTAL AMOUNT]]>0,1,0)","v":0},{"$f":"VLOOKUP(Table6[[#This Row],[INCOME TYPE]],'EXPENSE DATABASE'!$B$186:$C$195,2,FALSE)","v":{"$error":"#N/A"}},11]
[0,0,{"$nulls":12},{"v":0,"d":"$0.00"},{"v":0,"d":"$0.00"},{"v":0,"d":"$0.00"},0,{"$f":"IF(OR(K74='EXPENSE DATABASE'!$V$187,K74='EXPENSE DATABASE'!$V$188,K74='EXPENSE DATABASE'!$V$189,K74='EXPENSE DATABASE'!$V$190,K74='EXPENSE DATABASE'!$V$191,K74='EXPENSE DATABASE'!$V$192,K74='EXPENSE DATABASE'!$V$193,K74='EXPENSE DATABASE'!$V$194,K74='EXPENSE DATABASE'!$X$187,K74='EXPENSE DATABASE'!$X$188,K74='EXPENSE DATABASE'!$X$189,K74='EXPENSE DATABASE'!$X$190,K74='EXPENSE DATABASE'!$X$191,K74='EXPENSE DATABASE'!$X$192,K74='EXPENSE DATABASE'!$X$193,K74='EXPENSE DATABASE'!$X$194,K74='EXPENSE DATABASE'!$Z$187,K74='EXPENSE DATABASE'!$Z$188,K74='EXPENSE DATABASE'!$Z$189,K74='EXPENSE DATABASE'!$Z$190,K74='EXPENSE DATABASE'!$Z$191,K74='EXPENSE DATABASE'!$Z$192,K74='EXPENSE DATABASE'!$Z$193,K74='EXPENSE DATABASE'!$Z$194),O74,\"\")","v":""},{"$f":"IF(OR(K74='EXPENSE DATABASE'!$T$189,K74='EXPENSE DATABASE'!$T$190,K74='EXPENSE DATABASE'!$T$191),O74,\"\")","v":""},{"$f":"VLOOKUP(I74,'EXPENSE DATABASE'!$B$41:$C$65,2,FALSE)","v":{"$error":"#N/A"}},100,{"$f":"VLOOKUP(J74,'EXPENSE DATABASE'!$B$69:$C$168,2,FALSE)","v":{"$error":"#N/A"}},101,{"$f":"VLOOKUP(K74,'EXPENSE DATABASE'!$B$6:$C$35,2,FALSE)","v":{"$error":"#N/A"}},31,{"$f":"VLOOKUP(L74,'EXPENSE DATABASE'!$B$173:$C$176,2,FALSE)","v":{"$error":"#N/A"}},100,0,0,{"$f":"IF(L74=T('EXPENSE DATABASE'!$E$173),O74,0)","v":0},{"$f":"IF(L74=T('EXPENSE DATABASE'!$E$174),O74,0)","v":0},{"$f":"IF(L74=T('EXPENSE DATABASE'!$E$175),O74,0)","v":0},0,61,{"$nulls":6},{"$f":"Table6[[#This Row],[QTY]]*Table6[[#This Row],[UNIT COST]]","v":{"v":0,"d":"$0.00"}},{"$f":"IF(Table6[[#This Row],[TOTAL AMOUNT]]>0,1,0)","v":0},{"$f":"VLOOKUP(Table6[[#This Row],[INCOME TYPE]],'EXPENSE DATABASE'!$B$186:$C$195,2,FALSE)","v":{"$error":"#N/A"}},11]
[0,0,{"$nulls":12},{"v":0,"d":"$0.00"},{"v":0,"d":"$0.00"},{"v":0,"d":"$0.00"},0,{"$f":"IF(OR(K75='EXPENSE DATABASE'!$V$187,K75='EXPENSE DATABASE'!$V$188,K75='EXPENSE DATABASE'!$V$189,K75='EXPENSE DATABASE'!$V$190,K75='EXPENSE DATABASE'!$V$191,K75='EXPENSE DATABASE'!$V$192,K75='EXPENSE DATABASE'!$V$193,K75='EXPENSE DATABASE'!$V$194,K75='EXPENSE DATABASE'!$X$187,K75='EXPENSE DATABASE'!$X$188,K75='EXPENSE DATABASE'!$X$189,K75='EXPENSE DATABASE'!$X$190,K75='EXPENSE DATABASE'!$X$191,K75='EXPENSE DATABASE'!$X$192,K75='EXPENSE DATABASE'!$X$193,K75='EXPENSE DATABASE'!$X$194,K75='EXPENSE DATABASE'!$Z$187,K75='EXPENSE DATABASE'!$Z$188,K75='EXPENSE DATABASE'!$Z$189,K75='EXPENSE DATABASE'!$Z$190,K75='EXPENSE DATABASE'!$Z$191,K75='EXPENSE DATABASE'!$Z$192,K75='EXPENSE DATABASE'!$Z$193,K75='EXPENSE DATABASE'!$Z$194),O75,\"\")","v":""},{"$f":"IF(OR(K75='EXPENSE DATABASE'!$T$189,K75='EXPENSE DATABASE'!$T$190,K75='EXPENSE DATABASE'!$T$191),O75,\"\")","v":""},{"$f":"VLOOKUP(I75,'EXPENSE DATABASE'!$B$41:$C$65,2,FALSE)","v":{"$error":"#N/A"}},100,{"$f":"VLOOKUP(J75,'EXPENSE DATABASE'!$B$69:$C$168,2,FALSE)","v":{"$error":"#N/A"}},101,{"$f":"VLOOKUP(K75,'EXPENSE DATABASE'!$B$6:$C$35,2,FALSE)","v":{"$error":"#N/A"}},31,{"$f":"VLOOKUP(L75,'EXPENSE DATABASE'!$B$173:$C$176,2,FALSE)","v":{"$error":"#N/A"}},100,0,0,{"$f":"IF(L75=T('EXPENSE DATABASE'!$E$173),O75,0)","v":0},{"$f":"IF(L75=T('EXPENSE DATABASE'!$E$174),O75,0)","v":0},{"$f":"IF(L75=T('EXPENSE DATABASE'!$E$175),O75,0)","v":0},0,62,{"$nulls":6},{"$f":"Table6[[#This Row],[QTY]]*Table6[[#This Row],[UNIT COST]]","v":{"v":0,"d":"$0.00"}},{"$f":"IF(Table6[[#This Row],[TOTAL AMOUNT]]>0,1,0)","v":0},{"$f":"VLOOKUP(Table6[[#This Row],[INCOME TYPE]],'EXPENSE DATABASE'!$B$186:$C$195,2,FALSE)","v":{"$error":"#N/A"}},11]
[0,0,{"$nulls":12},{"v":0,"d":"$0.00"},{"v":0,"d":"$0.00"},{"v":0,"d":"$0.00"},0,{"$f":"IF(OR(K76='EXPENSE DATABASE'!$V$187,K76='EXPENSE DATABASE'!$V$188,K76='EXPENSE DATABASE'!$V$189,K76='EXPENSE DATABASE'!$V$190,K76='EXPENSE DATABASE'!$V$191,K76='EXPENSE DATABASE'!$V$192,K76='EXPENSE DATABASE'!$V$193,K76='EXPENSE DATABASE'!$V$194,K76='EXPENSE DATABASE'!$X$187,K76='EXPENSE DATABASE'!$X$188,K76='EXPENSE DATABASE'!$X$189,K76='EXPENSE DATABASE'!$X$190,K76='EXPENSE DATABASE'!$X$191,K76='EXPENSE DATABASE'!$X$192,K76='EXPENSE DATABASE'!$X$193,K76='EXPENSE DATABASE'!$X$194,K76='EXPENSE DATABASE'!$Z$187,K76='EXPENSE DATABASE'!$Z$188,K76='EXPENSE DATABASE'!$Z$189,K76='EXPENSE DATABASE'!$Z$190,K76='EXPENSE DATABASE'!$Z$191,K76='EXPENSE DATABASE'!$Z$192,K76='EXPENSE DATABASE'!$Z$193,K76='EXPENSE DATABASE'!$Z$194),O76,\"\")","v":""},{"$f":"IF(OR(K76='EXPENSE DATABASE'!$T$189,K76='EXPENSE DATABASE'!$T$190,K76='EXPENSE DATABASE'!$T$191),O76,\"\")","v":""},{"$f":"VLOOKUP(I76,'EXPENSE DATABASE'!$B$41:$C$65,2,FALSE)","v":{"$error":"#N/A"}},100,{"$f":"VLOOKUP(J76,'EXPENSE DATABASE'!$B$69:$C$168,2,FALSE)","v":{"$error":"#N/A"}},101,{"$f":"VLOOKUP(K76,'EXPENSE DATABASE'!$B$6:$C$35,2,FALSE)","v":{"$error":"#N/A"}},31,{"$f":"VLOOKUP(L76,'EXPENSE DATABASE'!$B$173:$C$176,2,FALSE)","v":{"$error":"#N/A"}},100,0,0,{"$f":"IF(L76=T('EXPENSE DATABASE'!$E$173),O76,0)","v":0},{"$f":"IF(L76=T('EXPENSE DATABASE'!$E$174),O76,0)","v":0},{"$f":"IF(L76=T('EXPENSE DATABASE'!$E$175),O76,0)","v":0},0,63,{"$nulls":6},{"$f":"Table6[[#This Row],[QTY]]*Table6[[#This Row],[UNIT COST]]","v":{"v":0,"d":"$0.00"}},{"$f":"IF(Table6[[#This Row],[TOTAL AMOUNT]]>0,1,0)","v":0},{"$f":"VLOOKUP(Table6[[#This Row],[INCOME TYPE]],'EXPENSE DATABASE'!$B$186:$C$195,2,FALSE)","v":{"$error":"#N/A"}},11]
[0,0,{"$nulls":12},{"v":0,"d":"$0.00"},{"v":0,"d":"$0.00"},{"v":0,"d":"$0.00"},0,{"$f":"IF(OR(K77='EXPENSE DATABASE'!$V$187,K77='EXPENSE DATABASE'!$V$188,K77='EXPENSE DATABASE'!$V$189,K77='EXPENSE DATABASE'!$V$190,K77='EXPENSE DATABASE'!$V$191,K77='EXPENSE DATABASE'!$V$192,K77='EXPENSE DATABASE'!$V$193,K77='EXPENSE DATABASE'!$V$194,K77='EXPENSE DATABASE'!$X$187,K77='EXPENSE DATABASE'!$X$188,K77='EXPENSE DATABASE'!$X$189,K77='EXPENSE DATABASE'!$X$190,K77='EXPENSE DATABASE'!$X$191,K77='EXPENSE DATABASE'!$X$192,K77='EXPENSE DATABASE'!$X$193,K77='EXPENSE DATABASE'!$X$194,K77='EXPENSE DATABASE'!$Z$187,K77='EXPENSE DATABASE'!$Z$188,K77='EXPENSE DATABASE'!$Z$189,K77='EXPENSE DATABASE'!$Z$190,K77='EXPENSE DATABASE'!$Z$191,K77='EXPENSE DATABASE'!$Z$192,K77='EXPENSE DATABASE'!$Z$193,K77='EXPENSE DATABASE'!$Z$194),O77,\"\")","v":""},{"$f":"IF(OR(K77='EXPENSE DATABASE'!$T$189,K77='EXPENSE DATABASE'!$T$190,K77='EXPENSE DATABASE'!$T$191),O77,\"\")","v":""},{"$f":"VLOOKUP(I77,'EXPENSE DATABASE'!$B$41:$C$65,2,FALSE)","v":{"$error":"#N/A"}},100,{"$f":"VLOOKUP(J77,'EXPENSE DATABASE'!$B$69:$C$168,2,FALSE)","v":{"$error":"#N/A"}},101,{"$f":"VLOOKUP(K77,'EXPENSE DATABASE'!$B$6:$C$35,2,FALSE)","v":{"$error":"#N/A"}},31,{"$f":"VLOOKUP(L77,'EXPENSE DATABASE'!$B$173:$C$176,2,FALSE)","v":{"$error":"#N/A"}},100,0,0,{"$f":"IF(L77=T('EXPENSE DATABASE'!$E$173),O77,0)","v":0},{"$f":"IF(L77=T('EXPENSE DATABASE'!$E$174),O77,0)","v":0},{"$f":"IF(L77=T('EXPENSE DATABASE'!$E$175),O77,0)","v":0},0,64,{"$nulls":6},{"$f":"Table6[[#This Row],[QTY]]*Table6[[#This Row],[UNIT COST]]","v":{"v":0,"d":"$0.00"}},{"$f":"IF(Table6[[#This Row],[TOTAL AMOUNT]]>0,1,0)","v":0},{"$f":"VLOOKUP(Table6[[#This Row],[INCOME TYPE]],'EXPENSE DATABASE'!$B$186:$C$195,2,FALSE)","v":{"$error":"#N/A"}},11]
[{"$f":"IF(COUNTA(D78,E78,F78,G78,H78,I78,J78,K78,L78,M78,N78)>0,1,0)","v":0},{"$f":"IF((COUNTA(I78:L78)=4),1,-1)*A78","v":0},{"$nulls":12},{"$f":"M78*N78","v":{"v":0,"d":"$0.00"}},{"$f":"IF(OR(D78=\"No\",D78=\"\"),O78,0)","v":{"v":0,"d":"$0.00"}},{"$f":"IF(D78=\"Yes\",O78,0)","v":{"v":0,"d":"$0.00"}},{"$f":"IF(O78>0,1,0)","v":0},{"$f":"IF(OR(K78='EXPENSE DATABASE'!$V$187,K78='EXPENSE DATABASE'!$V$188,K78='EXPENSE DATABASE'!$V$189,K78='EXPENSE DATABASE'!$V$190,K78='EXPENSE DATABASE'!$V$191,K78='EXPENSE DATABASE'!$V$192,K78='EXPENSE DATABASE'!$V$193,K78='EXPENSE DATABASE'!$V$194,K78='EXPENSE DATABASE'!$X$187,K78='EXPENSE DATABASE'!$X$188,K78='EXPENSE DATABASE'!$X$189,K78='EXPENSE DATABASE'!$X$190,K78='EXPENSE DATABASE'!$X$191,K78='EXPENSE DATABASE'!$X$192,K78='EXPENSE DATABASE'!$X$193,K78='EXPENSE DATABASE'!$X$194,K78='EXPENSE DATABASE'!$Z$187,K78='EXPENSE DATABASE'!$Z$188,K78='EXPENSE DATABASE'!$Z$189,K78='EXPENSE DATABASE'!$Z$190,K78='EXPENSE DATABASE'!$Z$191,K78='EXPENSE DATABASE'!$Z$192,K78='EXPENSE DATABASE'!$Z$193,K78='EXPENSE DATABASE'!$Z$194),O78,\"\")","v":""},{"$f":"IF(OR(K78='EXPENSE DATABASE'!$T$189,K78='EXPENSE DATABASE'!$T$190,K78='EXPENSE DATABASE'!$T$191),O78,\"\")","v":""},{"$f":"VLOOKUP(I78,'EXPENSE DATABASE'!$B$41:$C$65,2,FALSE)","v":{"$error":"#N/A"}},{"$f":"IFERROR(U78,100)","v":100},{"$f":"VLOOKUP(J78,'EXPENSE DATABASE'!$B$69:$C$168,2,FALSE)","v":{"$error":"#N/A"}},{"$f":"IFERROR(W78,101)","v":101},{"$f":"VLOOKUP(K78,'EXPENSE DATABASE'!$B$6:$C$35,2,FALSE)","v":{"$error":"#N/A"}},{"$f":"IFERROR(Y78,31)","v":31},{"$f":"VLOOKUP(L78,'EXPENSE DATABASE'!$B$173:$C$176,2,FALSE)","v":{"$error":"#N/A"}},{"$f":"IFERROR(AA78,100)","v":100},{"$f":"IF(K78=0,0,1)","v":0},{"$f":"IF(J78=0,0,1)","v":0},{"$f":"IF(L78=T('EXPENSE DATABASE'!$E$173),O78,0)","v":0},{"$f":"IF(L78=T('EXPENSE DATABASE'!$E$174),O78,0)","v":0},{"$f":"IF(L78=T('EXPENSE DATABASE'!$E$175),O78,0)","v":0},{"$f":"IF(OR(N78=0,E78=0),0,MONTH(E78))","v":0},65,{"$nulls":6},{"$f":"Table6[[#This Row],[QTY]]*Table6[[#This Row],[UNIT COST]]","v":{"v":0,"d":"$0.00"}},{"$f":"IF(Table6[[#This Row],[TOTAL AMOUNT]]>0,1,0)","v":0},{"$f":"VLOOKUP(Table6[[#This Row],[INCOME TYPE]],'EXPENSE DATABASE'!$B$186:$C$195,2,FALSE)","v":{"$error":"#N/A"}},11]
[0,0,{"$nulls":12},{"v":0,"d":"$0.00"},{"v":0,"d":"$0.00"},{"v":0,"d":"$0.00"},0,{"$f":"IF(OR(K79='EXPENSE DATABASE'!$V$187,K79='EXPENSE DATABASE'!$V$188,K79='EXPENSE DATABASE'!$V$189,K79='EXPENSE DATABASE'!$V$190,K79='EXPENSE DATABASE'!$V$191,K79='EXPENSE DATABASE'!$V$192,K79='EXPENSE DATABASE'!$V$193,K79='EXPENSE DATABASE'!$V$194,K79='EXPENSE DATABASE'!$X$187,K79='EXPENSE DATABASE'!$X$188,K79='EXPENSE DATABASE'!$X$189,K79='EXPENSE DATABASE'!$X$190,K79='EXPENSE DATABASE'!$X$191,K79='EXPENSE DATABASE'!$X$192,K79='EXPENSE DATABASE'!$X$193,K79='EXPENSE DATABASE'!$X$194,K79='EXPENSE DATABASE'!$Z$187,K79='EXPENSE DATABASE'!$Z$188,K79='EXPENSE DATABASE'!$Z$189,K79='EXPENSE DATABASE'!$Z$190,K79='EXPENSE DATABASE'!$Z$191,K79='EXPENSE DATABASE'!$Z$192,K79='EXPENSE DATABASE'!$Z$193,K79='EXPENSE DATABASE'!$Z$194),O79,\"\")","v":""},{"$f":"IF(OR(K79='EXPENSE DATABASE'!$T$189,K79='EXPENSE DATABASE'!$T$190,K79='EXPENSE DATABASE'!$T$191),O79,\"\")","v":""},{"$f":"VLOOKUP(I79,'EXPENSE DATABASE'!$B$41:$C$65,2,FALSE)","v":{"$error":"#N/A"}},100,{"$f":"VLOOKUP(J79,'EXPENSE DATABASE'!$B$69:$C$168,2,FALSE)","v":{"$error":"#N/A"}},101,{"$f":"VLOOKUP(K79,'EXPENSE DATABASE'!$B$6:$C$35,2,FALSE)","v":{"$error":"#N/A"}},31,{"$f":"VLOOKUP(L79,'EXPENSE DATABASE'!$B$173:$C$176,2,FALSE)","v":{"$error":"#N/A"}},100,0,0,{"$f":"IF(L79=T('EXPENSE DATABASE'!$E$173),O79,0)","v":0},{"$f":"IF(L79=T('EXPENSE DATABASE'!$E$174),O79,0)","v":0},{"$f":"IF(L79=T('EXPENSE DATABASE'!$E$175),O79,0)","v":0},0,66,{"$nulls":6},{"$f":"Table6[[#This Row],[QTY]]*Table6[[#This Row],[UNIT COST]]","v":{"v":0,"d":"$0.00"}},{"$f":"IF(Table6[[#This Row],[TOTAL AMOUNT]]>0,1,0)","v":0},{"$f":"VLOOKUP(Table6[[#This Row],[INCOME TYPE]],'EXPENSE DATABASE'!$B$186:$C$195,2,FALSE)","v":{"$error":"#N/A"}},{"$f":"IFERROR(AR79,11)","v":11}]
[0,0,{"$nulls":12},{"v":0,"d":"$0.00"},{"v":0,"d":"$0.00"},{"v":0,"d":"$0.00"},0,{"$f":"IF(OR(K80='EXPENSE DATABASE'!$V$187,K80='EXPENSE DATABASE'!$V$188,K80='EXPENSE DATABASE'!$V$189,K80='EXPENSE DATABASE'!$V$190,K80='EXPENSE DATABASE'!$V$191,K80='EXPENSE DATABASE'!$V$192,K80='EXPENSE DATABASE'!$V$193,K80='EXPENSE DATABASE'!$V$194,K80='EXPENSE DATABASE'!$X$187,K80='EXPENSE DATABASE'!$X$188,K80='EXPENSE DATABASE'!$X$189,K80='EXPENSE DATABASE'!$X$190,K80='EXPENSE DATABASE'!$X$191,K80='EXPENSE DATABASE'!$X$192,K80='EXPENSE DATABASE'!$X$193,K80='EXPENSE DATABASE'!$X$194,K80='EXPENSE DATABASE'!$Z$187,K80='EXPENSE DATABASE'!$Z$188,K80='EXPENSE DATABASE'!$Z$189,K80='EXPENSE DATABASE'!$Z$190,K80='EXPENSE DATABASE'!$Z$191,K80='EXPENSE DATABASE'!$Z$192,K80='EXPENSE DATABASE'!$Z$193,K80='EXPENSE DATABASE'!$Z$194),O80,\"\")","v":""},{"$f":"IF(OR(K80='EXPENSE DATABASE'!$T$189,K80='EXPENSE DATABASE'!$T$190,K80='EXPENSE DATABASE'!$T$191),O80,\"\")","v":""},{"$f":"VLOOKUP(I80,'EXPENSE DATABASE'!$B$41:$C$65,2,FALSE)","v":{"$error":"#N/A"}},100,{"$f":"VLOOKUP(J80,'EXPENSE DATABASE'!$B$69:$C$168,2,FALSE)","v":{"$error":"#N/A"}},101,{"$f":"VLOOKUP(K80,'EXPENSE DATABASE'!$B$6:$C$35,2,FALSE)","v":{"$error":"#N/A"}},31,{"$f":"VLOOKUP(L80,'EXPENSE DATABASE'!$B$173:$C$176,2,FALSE)","v":{"$error":"#N/A"}},100,0,0,{"$f":"IF(L80=T('EXPENSE DATABASE'!$E$173),O80,0)","v":0},{"$f":"IF(L80=T('EXPENSE DATABASE'!$E$174),O80,0)","v":0},{"$f":"IF(L80=T('EXPENSE DATABASE'!$E$175),O80,0)","v":0},0,67,{"$nulls":6},{"$f":"Table6[[#This Row],[QTY]]*Table6[[#This Row],[UNIT COST]]","v":{"v":0,"d":"$0.00"}},{"$f":"IF(Table6[[#This Row],[TOTAL AMOUNT]]>0,1,0)","v":0},{"$f":"VLOOKUP(Table6[[#This Row],[INCOME TYPE]],'EXPENSE DATABASE'!$B$186:$C$195,2,FALSE)","v":{"$error":"#N/A"}},11]
[0,0,{"$nulls":12},{"v":0,"d":"$0.00"},{"v":0,"d":"$0.00"},{"v":0,"d":"$0.00"},0,{"$f":"IF(OR(K81='EXPENSE DATABASE'!$V$187,K81='EXPENSE DATABASE'!$V$188,K81='EXPENSE DATABASE'!$V$189,K81='EXPENSE DATABASE'!$V$190,K81='EXPENSE DATABASE'!$V$191,K81='EXPENSE DATABASE'!$V$192,K81='EXPENSE DATABASE'!$V$193,K81='EXPENSE DATABASE'!$V$194,K81='EXPENSE DATABASE'!$X$187,K81='EXPENSE DATABASE'!$X$188,K81='EXPENSE DATABASE'!$X$189,K81='EXPENSE DATABASE'!$X$190,K81='EXPENSE DATABASE'!$X$191,K81='EXPENSE DATABASE'!$X$192,K81='EXPENSE DATABASE'!$X$193,K81='EXPENSE DATABASE'!$X$194,K81='EXPENSE DATABASE'!$Z$187,K81='EXPENSE DATABASE'!$Z$188,K81='EXPENSE DATABASE'!$Z$189,K81='EXPENSE DATABASE'!$Z$190,K81='EXPENSE DATABASE'!$Z$191,K81='EXPENSE DATABASE'!$Z$192,K81='EXPENSE DATABASE'!$Z$193,K81='EXPENSE DATABASE'!$Z$194),O81,\"\")","v":""},{"$f":"IF(OR(K81='EXPENSE DATABASE'!$T$189,K81='EXPENSE DATABASE'!$T$190,K81='EXPENSE DATABASE'!$T$191),O81,\"\")","v":""},{"$f":"VLOOKUP(I81,'EXPENSE DATABASE'!$B$41:$C$65,2,FALSE)","v":{"$error":"#N/A"}},100,{"$f":"VLOOKUP(J81,'EXPENSE DATABASE'!$B$69:$C$168,2,FALSE)","v":{"$error":"#N/A"}},101,{"$f":"VLOOKUP(K81,'EXPENSE DATABASE'!$B$6:$C$35,2,FALSE)","v":{"$error":"#N/A"}},31,{"$f":"VLOOKUP(L81,'EXPENSE DATABASE'!$B$173:$C$176,2,FALSE)","v":{"$error":"#N/A"}},100,0,0,{"$f":"IF(L81=T('EXPENSE DATABASE'!$E$173),O81,0)","v":0},{"$f":"IF(L81=T('EXPENSE DATABASE'!$E$174),O81,0)","v":0},{"$f":"IF(L81=T('EXPENSE DATABASE'!$E$175),O81,0)","v":0},0,68,{"$nulls":6},{"$f":"Table6[[#This Row],[QTY]]*Table6[[#This Row],[UNIT COST]]","v":{"v":0,"d":"$0.00"}},{"$f":"IF(Table6[[#This Row],[TOTAL AMOUNT]]>0,1,0)","v":0},{"$f":"VLOOKUP(Table6[[#This Row],[INCOME TYPE]],'EXPENSE DATABASE'!$B$186:$C$195,2,FALSE)","v":{"$error":"#N/A"}},11]
[0,0,{"$nulls":12},{"v":0,"d":"$0.00"},{"v":0,"d":"$0.00"},{"v":0,"d":"$0.00"},0,{"$f":"IF(OR(K82='EXPENSE DATABASE'!$V$187,K82='EXPENSE DATABASE'!$V$188,K82='EXPENSE DATABASE'!$V$189,K82='EXPENSE DATABASE'!$V$190,K82='EXPENSE DATABASE'!$V$191,K82='EXPENSE DATABASE'!$V$192,K82='EXPENSE DATABASE'!$V$193,K82='EXPENSE DATABASE'!$V$194,K82='EXPENSE DATABASE'!$X$187,K82='EXPENSE DATABASE'!$X$188,K82='EXPENSE DATABASE'!$X$189,K82='EXPENSE DATABASE'!$X$190,K82='EXPENSE DATABASE'!$X$191,K82='EXPENSE DATABASE'!$X$192,K82='EXPENSE DATABASE'!$X$193,K82='EXPENSE DATABASE'!$X$194,K82='EXPENSE DATABASE'!$Z$187,K82='EXPENSE DATABASE'!$Z$188,K82='EXPENSE DATABASE'!$Z$189,K82='EXPENSE DATABASE'!$Z$190,K82='EXPENSE DATABASE'!$Z$191,K82='EXPENSE DATABASE'!$Z$192,K82='EXPENSE DATABASE'!$Z$193,K82='EXPENSE DATABASE'!$Z$194),O82,\"\")","v":""},{"$f":"IF(OR(K82='EXPENSE DATABASE'!$T$189,K82='EXPENSE DATABASE'!$T$190,K82='EXPENSE DATABASE'!$T$191),O82,\"\")","v":""},{"$f":"VLOOKUP(I82,'EXPENSE DATABASE'!$B$41:$C$65,2,FALSE)","v":{"$error":"#N/A"}},100,{"$f":"VLOOKUP(J82,'EXPENSE DATABASE'!$B$69:$C$168,2,FALSE)","v":{"$error":"#N/A"}},101,{"$f":"VLOOKUP(K82,'EXPENSE DATABASE'!$B$6:$C$35,2,FALSE)","v":{"$error":"#N/A"}},31,{"$f":"VLOOKUP(L82,'EXPENSE DATABASE'!$B$173:$C$176,2,FALSE)","v":{"$error":"#N/A"}},100,0,0,{"$f":"IF(L82=T('EXPENSE DATABASE'!$E$173),O82,0)","v":0},{"$f":"IF(L82=T('EXPENSE DATABASE'!$E$174),O82,0)","v":0},{"$f":"IF(L82=T('EXPENSE DATABASE'!$E$175),O82,0)","v":0},0,69,{"$nulls":6},{"$f":"Table6[[#This Row],[QTY]]*Table6[[#This Row],[UNIT COST]]","v":{"v":0,"d":"$0.00"}},{"$f":"IF(Table6[[#This Row],[TOTAL AMOUNT]]>0,1,0)","v":0},{"$f":"VLOOKUP(Table6[[#This Row],[INCOME TYPE]],'EXPENSE DATABASE'!$B$186:$C$195,2,FALSE)","v":{"$error":"#N/A"}},11]
[0,0,{"$nulls":12},{"v":0,"d":"$0.00"},{"v":0,"d":"$0.00"},{"v":0,"d":"$0.00"},0,{"$f":"IF(OR(K83='EXPENSE DATABASE'!$V$187,K83='EXPENSE DATABASE'!$V$188,K83='EXPENSE DATABASE'!$V$189,K83='EXPENSE DATABASE'!$V$190,K83='EXPENSE DATABASE'!$V$191,K83='EXPENSE DATABASE'!$V$192,K83='EXPENSE DATABASE'!$V$193,K83='EXPENSE DATABASE'!$V$194,K83='EXPENSE DATABASE'!$X$187,K83='EXPENSE DATABASE'!$X$188,K83='EXPENSE DATABASE'!$X$189,K83='EXPENSE DATABASE'!$X$190,K83='EXPENSE DATABASE'!$X$191,K83='EXPENSE DATABASE'!$X$192,K83='EXPENSE DATABASE'!$X$193,K83='EXPENSE DATABASE'!$X$194,K83='EXPENSE DATABASE'!$Z$187,K83='EXPENSE DATABASE'!$Z$188,K83='EXPENSE DATABASE'!$Z$189,K83='EXPENSE DATABASE'!$Z$190,K83='EXPENSE DATABASE'!$Z$191,K83='EXPENSE DATABASE'!$Z$192,K83='EXPENSE DATABASE'!$Z$193,K83='EXPENSE DATABASE'!$Z$194),O83,\"\")","v":""},{"$f":"IF(OR(K83='EXPENSE DATABASE'!$T$189,K83='EXPENSE DATABASE'!$T$190,K83='EXPENSE DATABASE'!$T$191),O83,\"\")","v":""},{"$f":"VLOOKUP(I83,'EXPENSE DATABASE'!$B$41:$C$65,2,FALSE)","v":{"$error":"#N/A"}},100,{"$f":"VLOOKUP(J83,'EXPENSE DATABASE'!$B$69:$C$168,2,FALSE)","v":{"$error":"#N/A"}},101,{"$f":"VLOOKUP(K83,'EXPENSE DATABASE'!$B$6:$C$35,2,FALSE)","v":{"$error":"#N/A"}},31,{"$f":"VLOOKUP(L83,'EXPENSE DATABASE'!$B$173:$C$176,2,FALSE)","v":{"$error":"#N/A"}},100,0,0,{"$f":"IF(L83=T('EXPENSE DATABASE'!$E$173),O83,0)","v":0},{"$f":"IF(L83=T('EXPENSE DATABASE'!$E$174),O83,0)","v":0},{"$f":"IF(L83=T('EXPENSE DATABASE'!$E$175),O83,0)","v":0},0,70,{"$nulls":6},{"$f":"Table6[[#This Row],[QTY]]*Table6[[#This Row],[UNIT COST]]","v":{"v":0,"d":"$0.00"}},{"$f":"IF(Table6[[#This Row],[TOTAL AMOUNT]]>0,1,0)","v":0},{"$f":"VLOOKUP(Table6[[#This Row],[INCOME TYPE]],'EXPENSE DATABASE'!$B$186:$C$195,2,FALSE)","v":{"$error":"#N/A"}},11]
[0,0,{"$nulls":12},{"v":0,"d":"$0.00"},{"v":0,"d":"$0.00"},{"v":0,"d":"$0.00"},0,{"$f":"IF(OR(K84='EXPENSE DATABASE'!$V$187,K84='EXPENSE DATABASE'!$V$188,K84='EXPENSE DATABASE'!$V$189,K84='EXPENSE DATABASE'!$V$190,K84='EXPENSE DATABASE'!$V$191,K84='EXPENSE DATABASE'!$V$192,K84='EXPENSE DATABASE'!$V$193,K84='EXPENSE DATABASE'!$V$194,K84='EXPENSE DATABASE'!$X$187,K84='EXPENSE DATABASE'!$X$188,K84='EXPENSE DATABASE'!$X$189,K84='EXPENSE DATABASE'!$X$190,K84='EXPENSE DATABASE'!$X$191,K84='EXPENSE DATABASE'!$X$192,K84='EXPENSE DATABASE'!$X$193,K84='EXPENSE DATABASE'!$X$194,K84='EXPENSE DATABASE'!$Z$187,K84='EXPENSE DATABASE'!$Z$188,K84='EXPENSE DATABASE'!$Z$189,K84='EXPENSE DATABASE'!$Z$190,K84='EXPENSE DATABASE'!$Z$191,K84='EXPENSE DATABASE'!$Z$192,K84='EXPENSE DATABASE'!$Z$193,K84='EXPENSE DATABASE'!$Z$194),O84,\"\")","v":""},{"$f":"IF(OR(K84='EXPENSE DATABASE'!$T$189,K84='EXPENSE DATABASE'!$T$190,K84='EXPENSE DATABASE'!$T$191),O84,\"\")","v":""},{"$f":"VLOOKUP(I84,'EXPENSE DATABASE'!$B$41:$C$65,2,FALSE)","v":{"$error":"#N/A"}},100,{"$f":"VLOOKUP(J84,'EXPENSE DATABASE'!$B$69:$C$168,2,FALSE)","v":{"$error":"#N/A"}},101,{"$f":"VLOOKUP(K84,'EXPENSE DATABASE'!$B$6:$C$35,2,FALSE)","v":{"$error":"#N/A"}},31,{"$f":"VLOOKUP(L84,'EXPENSE DATABASE'!$B$173:$C$176,2,FALSE)","v":{"$error":"#N/A"}},100,0,0,{"$f":"IF(L84=T('EXPENSE DATABASE'!$E$173),O84,0)","v":0},{"$f":"IF(L84=T('EXPENSE DATABASE'!$E$174),O84,0)","v":0},{"$f":"IF(L84=T('EXPENSE DATABASE'!$E$175),O84,0)","v":0},0,71,{"$nulls":6},{"$f":"Table6[[#This Row],[QTY]]*Table6[[#This Row],[UNIT COST]]","v":{"v":0,"d":"$0.00"}},{"$f":"IF(Table6[[#This Row],[TOTAL AMOUNT]]>0,1,0)","v":0},{"$f":"VLOOKUP(Table6[[#This Row],[INCOME TYPE]],'EXPENSE DATABASE'!$B$186:$C$195,2,FALSE)","v":{"$error":"#N/A"}},11]
[0,0,{"$nulls":12},{"v":0,"d":"$0.00"},{"v":0,"d":"$0.00"},{"v":0,"d":"$0.00"},0,{"$f":"IF(OR(K85='EXPENSE DATABASE'!$V$187,K85='EXPENSE DATABASE'!$V$188,K85='EXPENSE DATABASE'!$V$189,K85='EXPENSE DATABASE'!$V$190,K85='EXPENSE DATABASE'!$V$191,K85='EXPENSE DATABASE'!$V$192,K85='EXPENSE DATABASE'!$V$193,K85='EXPENSE DATABASE'!$V$194,K85='EXPENSE DATABASE'!$X$187,K85='EXPENSE DATABASE'!$X$188,K85='EXPENSE DATABASE'!$X$189,K85='EXPENSE DATABASE'!$X$190,K85='EXPENSE DATABASE'!$X$191,K85='EXPENSE DATABASE'!$X$192,K85='EXPENSE DATABASE'!$X$193,K85='EXPENSE DATABASE'!$X$194,K85='EXPENSE DATABASE'!$Z$187,K85='EXPENSE DATABASE'!$Z$188,K85='EXPENSE DATABASE'!$Z$189,K85='EXPENSE DATABASE'!$Z$190,K85='EXPENSE DATABASE'!$Z$191,K85='EXPENSE DATABASE'!$Z$192,K85='EXPENSE DATABASE'!$Z$193,K85='EXPENSE DATABASE'!$Z$194),O85,\"\")","v":""},{"$f":"IF(OR(K85='EXPENSE DATABASE'!$T$189,K85='EXPENSE DATABASE'!$T$190,K85='EXPENSE DATABASE'!$T$191),O85,\"\")","v":""},{"$f":"VLOOKUP(I85,'EXPENSE DATABASE'!$B$41:$C$65,2,FALSE)","v":{"$error":"#N/A"}},100,{"$f":"VLOOKUP(J85,'EXPENSE DATABASE'!$B$69:$C$168,2,FALSE)","v":{"$error":"#N/A"}},101,{"$f":"VLOOKUP(K85,'EXPENSE DATABASE'!$B$6:$C$35,2,FALSE)","v":{"$error":"#N/A"}},31,{"$f":"VLOOKUP(L85,'EXPENSE DATABASE'!$B$173:$C$176,2,FALSE)","v":{"$error":"#N/A"}},100,0,0,{"$f":"IF(L85=T('EXPENSE DATABASE'!$E$173),O85,0)","v":0},{"$f":"IF(L85=T('EXPENSE DATABASE'!$E$174),O85,0)","v":0},{"$f":"IF(L85=T('EXPENSE DATABASE'!$E$175),O85,0)","v":0},0,72,{"$nulls":6},{"$f":"Table6[[#This Row],[QTY]]*Table6[[#This Row],[UNIT COST]]","v":{"v":0,"d":"$0.00"}},{"$f":"IF(Table6[[#This Row],[TOTAL AMOUNT]]>0,1,0)","v":0},{"$f":"VLOOKUP(Table6[[#This Row],[INCOME TYPE]],'EXPENSE DATABASE'!$B$186:$C$195,2,FALSE)","v":{"$error":"#N/A"}},11]
[0,0,{"$nulls":12},{"v":0,"d":"$0.00"},{"v":0,"d":"$0.00"},{"v":0,"d":"$0.00"},0,{"$f":"IF(OR(K86='EXPENSE DATABASE'!$V$187,K86='EXPENSE DATABASE'!$V$188,K86='EXPENSE DATABASE'!$V$189,K86='EXPENSE DATABASE'!$V$190,K86='EXPENSE DATABASE'!$V$191,K86='EXPENSE DATABASE'!$V$192,K86='EXPENSE DATABASE'!$V$193,K86='EXPENSE DATABASE'!$V$194,K86='EXPENSE DATABASE'!$X$187,K86='EXPENSE DATABASE'!$X$188,K86='EXPENSE DATABASE'!$X$189,K86='EXPENSE DATABASE'!$X$190,K86='EXPENSE DATABASE'!$X$191,K86='EXPENSE DATABASE'!$X$192,K86='EXPENSE DATABASE'!$X$193,K86='EXPENSE DATABASE'!$X$194,K86='EXPENSE DATABASE'!$Z$187,K86='EXPENSE DATABASE'!$Z$188,K86='EXPENSE DATABASE'!$Z$189,K86='EXPENSE DATABASE'!$Z$190,K86='EXPENSE DATABASE'!$Z$191,K86='EXPENSE DATABASE'!$Z$192,K86='EXPENSE DATABASE'!$Z$193,K86='EXPENSE DATABASE'!$Z$194),O86,\"\")","v":""},{"$f":"IF(OR(K86='EXPENSE DATABASE'!$T$189,K86='EXPENSE DATABASE'!$T$190,K86='EXPENSE DATABASE'!$T$191),O86,\"\")","v":""},{"$f":"VLOOKUP(I86,'EXPENSE DATABASE'!$B$41:$C$65,2,FALSE)","v":{"$error":"#N/A"}},100,{"$f":"VLOOKUP(J86,'EXPENSE DATABASE'!$B$69:$C$168,2,FALSE)","v":{"$error":"#N/A"}},101,{"$f":"VLOOKUP(K86,'EXPENSE DATABASE'!$B$6:$C$35,2,FALSE)","v":{"$error":"#N/A"}},31,{"$f":"VLOOKUP(L86,'EXPENSE DATABASE'!$B$173:$C$176,2,FALSE)","v":{"$error":"#N/A"}},100,0,0,{"$f":"IF(L86=T('EXPENSE DATABASE'!$E$173),O86,0)","v":0},{"$f":"IF(L86=T('EXPENSE DATABASE'!$E$174),O86,0)","v":0},{"$f":"IF(L86=T('EXPENSE DATABASE'!$E$175),O86,0)","v":0},0,73,{"$nulls":6},{"$f":"Table6[[#This Row],[QTY]]*Table6[[#This Row],[UNIT COST]]","v":{"v":0,"d":"$0.00"}},{"$f":"IF(Table6[[#This Row],[TOTAL AMOUNT]]>0,1,0)","v":0},{"$f":"VLOOKUP(Table6[[#This Row],[INCOME TYPE]],'EXPENSE DATABASE'!$B$186:$C$195,2,FALSE)","v":{"$error":"#N/A"}},11]
[0,0,{"$nulls":12},{"v":0,"d":"$0.00"},{"v":0,"d":"$0.00"},{"v":0,"d":"$0.00"},0,{"$f":"IF(OR(K87='EXPENSE DATABASE'!$V$187,K87='EXPENSE DATABASE'!$V$188,K87='EXPENSE DATABASE'!$V$189,K87='EXPENSE DATABASE'!$V$190,K87='EXPENSE DATABASE'!$V$191,K87='EXPENSE DATABASE'!$V$192,K87='EXPENSE DATABASE'!$V$193,K87='EXPENSE DATABASE'!$V$194,K87='EXPENSE DATABASE'!$X$187,K87='EXPENSE DATABASE'!$X$188,K87='EXPENSE DATABASE'!$X$189,K87='EXPENSE DATABASE'!$X$190,K87='EXPENSE DATABASE'!$X$191,K87='EXPENSE DATABASE'!$X$192,K87='EXPENSE DATABASE'!$X$193,K87='EXPENSE DATABASE'!$X$194,K87='EXPENSE DATABASE'!$Z$187,K87='EXPENSE DATABASE'!$Z$188,K87='EXPENSE DATABASE'!$Z$189,K87='EXPENSE DATABASE'!$Z$190,K87='EXPENSE DATABASE'!$Z$191,K87='EXPENSE DATABASE'!$Z$192,K87='EXPENSE DATABASE'!$Z$193,K87='EXPENSE DATABASE'!$Z$194),O87,\"\")","v":""},{"$f":"IF(OR(K87='EXPENSE DATABASE'!$T$189,K87='EXPENSE DATABASE'!$T$190,K87='EXPENSE DATABASE'!$T$191),O87,\"\")","v":""},{"$f":"VLOOKUP(I87,'EXPENSE DATABASE'!$B$41:$C$65,2,FALSE)","v":{"$error":"#N/A"}},100,{"$f":"VLOOKUP(J87,'EXPENSE DATABASE'!$B$69:$C$168,2,FALSE)","v":{"$error":"#N/A"}},101,{"$f":"VLOOKUP(K87,'EXPENSE DATABASE'!$B$6:$C$35,2,FALSE)","v":{"$error":"#N/A"}},31,{"$f":"VLOOKUP(L87,'EXPENSE DATABASE'!$B$173:$C$176,2,FALSE)","v":{"$error":"#N/A"}},100,0,0,{"$f":"IF(L87=T('EXPENSE DATABASE'!$E$173),O87,0)","v":0},{"$f":"IF(L87=T('EXPENSE DATABASE'!$E$174),O87,0)","v":0},{"$f":"IF(L87=T('EXPENSE DATABASE'!$E$175),O87,0)","v":0},0,74,{"$nulls":6},{"$f":"Table6[[#This Row],[QTY]]*Table6[[#This Row],[UNIT COST]]","v":{"v":0,"d":"$0.00"}},{"$f":"IF(Table6[[#This Row],[TOTAL AMOUNT]]>0,1,0)","v":0},{"$f":"VLOOKUP(Table6[[#This Row],[INCOME TYPE]],'EXPENSE DATABASE'!$B$186:$C$195,2,FALSE)","v":{"$error":"#N/A"}},11]
[0,0,{"$nulls":12},{"v":0,"d":"$0.00"},{"v":0,"d":"$0.00"},{"v":0,"d":"$0.00"},0,{"$f":"IF(OR(K88='EXPENSE DATABASE'!$V$187,K88='EXPENSE DATABASE'!$V$188,K88='EXPENSE DATABASE'!$V$189,K88='EXPENSE DATABASE'!$V$190,K88='EXPENSE DATABASE'!$V$191,K88='EXPENSE DATABASE'!$V$192,K88='EXPENSE DATABASE'!$V$193,K88='EXPENSE DATABASE'!$V$194,K88='EXPENSE DATABASE'!$X$187,K88='EXPENSE DATABASE'!$X$188,K88='EXPENSE DATABASE'!$X$189,K88='EXPENSE DATABASE'!$X$190,K88='EXPENSE DATABASE'!$X$191,K88='EXPENSE DATABASE'!$X$192,K88='EXPENSE DATABASE'!$X$193,K88='EXPENSE DATABASE'!$X$194,K88='EXPENSE DATABASE'!$Z$187,K88='EXPENSE DATABASE'!$Z$188,K88='EXPENSE DATABASE'!$Z$189,K88='EXPENSE DATABASE'!$Z$190,K88='EXPENSE DATABASE'!$Z$191,K88='EXPENSE DATABASE'!$Z$192,K88='EXPENSE DATABASE'!$Z$193,K88='EXPENSE DATABASE'!$Z$194),O88,\"\")","v":""},{"$f":"IF(OR(K88='EXPENSE DATABASE'!$T$189,K88='EXPENSE DATABASE'!$T$190,K88='EXPENSE DATABASE'!$T$191),O88,\"\")","v":""},{"$f":"VLOOKUP(I88,'EXPENSE DATABASE'!$B$41:$C$65,2,FALSE)","v":{"$error":"#N/A"}},100,{"$f":"VLOOKUP(J88,'EXPENSE DATABASE'!$B$69:$C$168,2,FALSE)","v":{"$error":"#N/A"}},101,{"$f":"VLOOKUP(K88,'EXPENSE DATABASE'!$B$6:$C$35,2,FALSE)","v":{"$error":"#N/A"}},31,{"$f":"VLOOKUP(L88,'EXPENSE DATABASE'!$B$173:$C$176,2,FALSE)","v":{"$error":"#N/A"}},100,0,0,{"$f":"IF(L88=T('EXPENSE DATABASE'!$E$173),O88,0)","v":0},{"$f":"IF(L88=T('EXPENSE DATABASE'!$E$174),O88,0)","v":0},{"$f":"IF(L88=T('EXPENSE DATABASE'!$E$175),O88,0)","v":0},0,75,{"$nulls":6},{"$f":"Table6[[#This Row],[QTY]]*Table6[[#This Row],[UNIT COST]]","v":{"v":0,"d":"$0.00"}},{"$f":"IF(Table6[[#This Row],[TOTAL AMOUNT]]>0,1,0)","v":0},{"$f":"VLOOKUP(Table6[[#This Row],[INCOME TYPE]],'EXPENSE DATABASE'!$B$186:$C$195,2,FALSE)","v":{"$error":"#N/A"}},11]
[0,0,{"$nulls":12},{"v":0,"d":"$0.00"},{"v":0,"d":"$0.00"},{"v":0,"d":"$0.00"},0,{"$f":"IF(OR(K89='EXPENSE DATABASE'!$V$187,K89='EXPENSE DATABASE'!$V$188,K89='EXPENSE DATABASE'!$V$189,K89='EXPENSE DATABASE'!$V$190,K89='EXPENSE DATABASE'!$V$191,K89='EXPENSE DATABASE'!$V$192,K89='EXPENSE DATABASE'!$V$193,K89='EXPENSE DATABASE'!$V$194,K89='EXPENSE DATABASE'!$X$187,K89='EXPENSE DATABASE'!$X$188,K89='EXPENSE DATABASE'!$X$189,K89='EXPENSE DATABASE'!$X$190,K89='EXPENSE DATABASE'!$X$191,K89='EXPENSE DATABASE'!$X$192,K89='EXPENSE DATABASE'!$X$193,K89='EXPENSE DATABASE'!$X$194,K89='EXPENSE DATABASE'!$Z$187,K89='EXPENSE DATABASE'!$Z$188,K89='EXPENSE DATABASE'!$Z$189,K89='EXPENSE DATABASE'!$Z$190,K89='EXPENSE DATABASE'!$Z$191,K89='EXPENSE DATABASE'!$Z$192,K89='EXPENSE DATABASE'!$Z$193,K89='EXPENSE DATABASE'!$Z$194),O89,\"\")","v":""},{"$f":"IF(OR(K89='EXPENSE DATABASE'!$T$189,K89='EXPENSE DATABASE'!$T$190,K89='EXPENSE DATABASE'!$T$191),O89,\"\")","v":""},{"$f":"VLOOKUP(I89,'EXPENSE DATABASE'!$B$41:$C$65,2,FALSE)","v":{"$error":"#N/A"}},100,{"$f":"VLOOKUP(J89,'EXPENSE DATABASE'!$B$69:$C$168,2,FALSE)","v":{"$error":"#N/A"}},101,{"$f":"VLOOKUP(K89,'EXPENSE DATABASE'!$B$6:$C$35,2,FALSE)","v":{"$error":"#N/A"}},31,{"$f":"VLOOKUP(L89,'EXPENSE DATABASE'!$B$173:$C$176,2,FALSE)","v":{"$error":"#N/A"}},100,0,0,{"$f":"IF(L89=T('EXPENSE DATABASE'!$E$173),O89,0)","v":0},{"$f":"IF(L89=T('EXPENSE DATABASE'!$E$174),O89,0)","v":0},{"$f":"IF(L89=T('EXPENSE DATABASE'!$E$175),O89,0)","v":0},0,76,{"$nulls":6},{"$f":"Table6[[#This Row],[QTY]]*Table6[[#This Row],[UNIT COST]]","v":{"v":0,"d":"$0.00"}},{"$f":"IF(Table6[[#This Row],[TOTAL AMOUNT]]>0,1,0)","v":0},{"$f":"VLOOKUP(Table6[[#This Row],[INCOME TYPE]],'EXPENSE DATABASE'!$B$186:$C$195,2,FALSE)","v":{"$error":"#N/A"}},11]
[0,0,{"$nulls":12},{"v":0,"d":"$0.00"},{"v":0,"d":"$0.00"},{"v":0,"d":"$0.00"},0,{"$f":"IF(OR(K90='EXPENSE DATABASE'!$V$187,K90='EXPENSE DATABASE'!$V$188,K90='EXPENSE DATABASE'!$V$189,K90='EXPENSE DATABASE'!$V$190,K90='EXPENSE DATABASE'!$V$191,K90='EXPENSE DATABASE'!$V$192,K90='EXPENSE DATABASE'!$V$193,K90='EXPENSE DATABASE'!$V$194,K90='EXPENSE DATABASE'!$X$187,K90='EXPENSE DATABASE'!$X$188,K90='EXPENSE DATABASE'!$X$189,K90='EXPENSE DATABASE'!$X$190,K90='EXPENSE DATABASE'!$X$191,K90='EXPENSE DATABASE'!$X$192,K90='EXPENSE DATABASE'!$X$193,K90='EXPENSE DATABASE'!$X$194,K90='EXPENSE DATABASE'!$Z$187,K90='EXPENSE DATABASE'!$Z$188,K90='EXPENSE DATABASE'!$Z$189,K90='EXPENSE DATABASE'!$Z$190,K90='EXPENSE DATABASE'!$Z$191,K90='EXPENSE DATABASE'!$Z$192,K90='EXPENSE DATABASE'!$Z$193,K90='EXPENSE DATABASE'!$Z$194),O90,\"\")","v":""},{"$f":"IF(OR(K90='EXPENSE DATABASE'!$T$189,K90='EXPENSE DATABASE'!$T$190,K90='EXPENSE DATABASE'!$T$191),O90,\"\")","v":""},{"$f":"VLOOKUP(I90,'EXPENSE DATABASE'!$B$41:$C$65,2,FALSE)","v":{"$error":"#N/A"}},100,{"$f":"VLOOKUP(J90,'EXPENSE DATABASE'!$B$69:$C$168,2,FALSE)","v":{"$error":"#N/A"}},101,{"$f":"VLOOKUP(K90,'EXPENSE DATABASE'!$B$6:$C$35,2,FALSE)","v":{"$error":"#N/A"}},31,{"$f":"VLOOKUP(L90,'EXPENSE DATABASE'!$B$173:$C$176,2,FALSE)","v":{"$error":"#N/A"}},100,0,0,{"$f":"IF(L90=T('EXPENSE DATABASE'!$E$173),O90,0)","v":0},{"$f":"IF(L90=T('EXPENSE DATABASE'!$E$174),O90,0)","v":0},{"$f":"IF(L90=T('EXPENSE DATABASE'!$E$175),O90,0)","v":0},0,77,{"$nulls":6},{"$f":"Table6[[#This Row],[QTY]]*Table6[[#This Row],[UNIT COST]]","v":{"v":0,"d":"$0.00"}},{"$f":"IF(Table6[[#This Row],[TOTAL AMOUNT]]>0,1,0)","v":0},{"$f":"VLOOKUP(Table6[[#This Row],[INCOME TYPE]],'EXPENSE DATABASE'!$B$186:$C$195,2,FALSE)","v":{"$error":"#N/A"}},11]
[0,0,{"$nulls":12},{"v":0,"d":"$0.00"},{"v":0,"d":"$0.00"},{"v":0,"d":"$0.00"},0,{"$f":"IF(OR(K91='EXPENSE DATABASE'!$V$187,K91='EXPENSE DATABASE'!$V$188,K91='EXPENSE DATABASE'!$V$189,K91='EXPENSE DATABASE'!$V$190,K91='EXPENSE DATABASE'!$V$191,K91='EXPENSE DATABASE'!$V$192,K91='EXPENSE DATABASE'!$V$193,K91='EXPENSE DATABASE'!$V$194,K91='EXPENSE DATABASE'!$X$187,K91='EXPENSE DATABASE'!$X$188,K91='EXPENSE DATABASE'!$X$189,K91='EXPENSE DATABASE'!$X$190,K91='EXPENSE DATABASE'!$X$191,K91='EXPENSE DATABASE'!$X$192,K91='EXPENSE DATABASE'!$X$193,K91='EXPENSE DATABASE'!$X$194,K91='EXPENSE DATABASE'!$Z$187,K91='EXPENSE DATABASE'!$Z$188,K91='EXPENSE DATABASE'!$Z$189,K91='EXPENSE DATABASE'!$Z$190,K91='EXPENSE DATABASE'!$Z$191,K91='EXPENSE DATABASE'!$Z$192,K91='EXPENSE DATABASE'!$Z$193,K91='EXPENSE DATABASE'!$Z$194),O91,\"\")","v":""},{"$f":"IF(OR(K91='EXPENSE DATABASE'!$T$189,K91='EXPENSE DATABASE'!$T$190,K91='EXPENSE DATABASE'!$T$191),O91,\"\")","v":""},{"$f":"VLOOKUP(I91,'EXPENSE DATABASE'!$B$41:$C$65,2,FALSE)","v":{"$error":"#N/A"}},100,{"$f":"VLOOKUP(J91,'EXPENSE DATABASE'!$B$69:$C$168,2,FALSE)","v":{"$error":"#N/A"}},101,{"$f":"VLOOKUP(K91,'EXPENSE DATABASE'!$B$6:$C$35,2,FALSE)","v":{"$error":"#N/A"}},31,{"$f":"VLOOKUP(L91,'EXPENSE DATABASE'!$B$173:$C$176,2,FALSE)","v":{"$error":"#N/A"}},100,0,0,{"$f":"IF(L91=T('EXPENSE DATABASE'!$E$173),O91,0)","v":0},{"$f":"IF(L91=T('EXPENSE DATABASE'!$E$174),O91,0)","v":0},{"$f":"IF(L91=T('EXPENSE DATABASE'!$E$175),O91,0)","v":0},0,78,{"$nulls":6},{"$f":"Table6[[#This Row],[QTY]]*Table6[[#This Row],[UNIT COST]]","v":{"v":0,"d":"$0.00"}},{"$f":"IF(Table6[[#This Row],[TOTAL AMOUNT]]>0,1,0)","v":0},{"$f":"VLOOKUP(Table6[[#This Row],[INCOME TYPE]],'EXPENSE DATABASE'!$B$186:$C$195,2,FALSE)","v":{"$error":"#N/A"}},11]
[0,0,{"$nulls":12},{"v":0,"d":"$0.00"},{"v":0,"d":"$0.00"},{"v":0,"d":"$0.00"},0,{"$f":"IF(OR(K92='EXPENSE DATABASE'!$V$187,K92='EXPENSE DATABASE'!$V$188,K92='EXPENSE DATABASE'!$V$189,K92='EXPENSE DATABASE'!$V$190,K92='EXPENSE DATABASE'!$V$191,K92='EXPENSE DATABASE'!$V$192,K92='EXPENSE DATABASE'!$V$193,K92='EXPENSE DATABASE'!$V$194,K92='EXPENSE DATABASE'!$X$187,K92='EXPENSE DATABASE'!$X$188,K92='EXPENSE DATABASE'!$X$189,K92='EXPENSE DATABASE'!$X$190,K92='EXPENSE DATABASE'!$X$191,K92='EXPENSE DATABASE'!$X$192,K92='EXPENSE DATABASE'!$X$193,K92='EXPENSE DATABASE'!$X$194,K92='EXPENSE DATABASE'!$Z$187,K92='EXPENSE DATABASE'!$Z$188,K92='EXPENSE DATABASE'!$Z$189,K92='EXPENSE DATABASE'!$Z$190,K92='EXPENSE DATABASE'!$Z$191,K92='EXPENSE DATABASE'!$Z$192,K92='EXPENSE DATABASE'!$Z$193,K92='EXPENSE DATABASE'!$Z$194),O92,\"\")","v":""},{"$f":"IF(OR(K92='EXPENSE DATABASE'!$T$189,K92='EXPENSE DATABASE'!$T$190,K92='EXPENSE DATABASE'!$T$191),O92,\"\")","v":""},{"$f":"VLOOKUP(I92,'EXPENSE DATABASE'!$B$41:$C$65,2,FALSE)","v":{"$error":"#N/A"}},100,{"$f":"VLOOKUP(J92,'EXPENSE DATABASE'!$B$69:$C$168,2,FALSE)","v":{"$error":"#N/A"}},101,{"$f":"VLOOKUP(K92,'EXPENSE DATABASE'!$B$6:$C$35,2,FALSE)","v":{"$error":"#N/A"}},31,{"$f":"VLOOKUP(L92,'EXPENSE DATABASE'!$B$173:$C$176,2,FALSE)","v":{"$error":"#N/A"}},100,0,0,{"$f":"IF(L92=T('EXPENSE DATABASE'!$E$173),O92,0)","v":0},{"$f":"IF(L92=T('EXPENSE DATABASE'!$E$174),O92,0)","v":0},{"$f":"IF(L92=T('EXPENSE DATABASE'!$E$175),O92,0)","v":0},0,79,{"$nulls":6},{"$f":"Table6[[#This Row],[QTY]]*Table6[[#This Row],[UNIT COST]]","v":{"v":0,"d":"$0.00"}},{"$f":"IF(Table6[[#This Row],[TOTAL AMOUNT]]>0,1,0)","v":0},{"$f":"VLOOKUP(Table6[[#This Row],[INCOME TYPE]],'EXPENSE DATABASE'!$B$186:$C$195,2,FALSE)","v":{"$error":"#N/A"}},11]
[0,0,{"$nulls":12},{"v":0,"d":"$0.00"},{"v":0,"d":"$0.00"},{"v":0,"d":"$0.00"},0,{"$f":"IF(OR(K93='EXPENSE DATABASE'!$V$187,K93='EXPENSE DATABASE'!$V$188,K93='EXPENSE DATABASE'!$V$189,K93='EXPENSE DATABASE'!$V$190,K93='EXPENSE DATABASE'!$V$191,K93='EXPENSE DATABASE'!$V$192,K93='EXPENSE DATABASE'!$V$193,K93='EXPENSE DATABASE'!$V$194,K93='EXPENSE DATABASE'!$X$187,K93='EXPENSE DATABASE'!$X$188,K93='EXPENSE DATABASE'!$X$189,K93='EXPENSE DATABASE'!$X$190,K93='EXPENSE DATABASE'!$X$191,K93='EXPENSE DATABASE'!$X$192,K93='EXPENSE DATABASE'!$X$193,K93='EXPENSE DATABASE'!$X$194,K93='EXPENSE DATABASE'!$Z$187,K93='EXPENSE DATABASE'!$Z$188,K93='EXPENSE DATABASE'!$Z$189,K93='EXPENSE DATABASE'!$Z$190,K93='EXPENSE DATABASE'!$Z$191,K93='EXPENSE DATABASE'!$Z$192,K93='EXPENSE DATABASE'!$Z$193,K93='EXPENSE DATABASE'!$Z$194),O93,\"\")","v":""},{"$f":"IF(OR(K93='EXPENSE DATABASE'!$T$189,K93='EXPENSE DATABASE'!$T$190,K93='EXPENSE DATABASE'!$T$191),O93,\"\")","v":""},{"$f":"VLOOKUP(I93,'EXPENSE DATABASE'!$B$41:$C$65,2,FALSE)","v":{"$error":"#N/A"}},100,{"$f":"VLOOKUP(J93,'EXPENSE DATABASE'!$B$69:$C$168,2,FALSE)","v":{"$error":"#N/A"}},101,{"$f":"VLOOKUP(K93,'EXPENSE DATABASE'!$B$6:$C$35,2,FALSE)","v":{"$error":"#N/A"}},31,{"$f":"VLOOKUP(L93,'EXPENSE DATABASE'!$B$173:$C$176,2,FALSE)","v":{"$error":"#N/A"}},100,0,0,{"$f":"IF(L93=T('EXPENSE DATABASE'!$E$173),O93,0)","v":0},{"$f":"IF(L93=T('EXPENSE DATABASE'!$E$174),O93,0)","v":0},{"$f":"IF(L93=T('EXPENSE DATABASE'!$E$175),O93,0)","v":0},0,80,{"$nulls":6},{"$f":"Table6[[#This Row],[QTY]]*Table6[[#This Row],[UNIT COST]]","v":{"v":0,"d":"$0.00"}},{"$f":"IF(Table6[[#This Row],[TOTAL AMOUNT]]>0,1,0)","v":0},{"$f":"VLOOKUP(Table6[[#This Row],[INCOME TYPE]],'EXPENSE DATABASE'!$B$186:$C$195,2,FALSE)","v":{"$error":"#N/A"}},11]
[0,0,{"$nulls":12},{"v":0,"d":"$0.00"},{"v":0,"d":"$0.00"},{"v":0,"d":"$0.00"},0,{"$f":"IF(OR(K94='EXPENSE DATABASE'!$V$187,K94='EXPENSE DATABASE'!$V$188,K94='EXPENSE DATABASE'!$V$189,K94='EXPENSE DATABASE'!$V$190,K94='EXPENSE DATABASE'!$V$191,K94='EXPENSE DATABASE'!$V$192,K94='EXPENSE DATABASE'!$V$193,K94='EXPENSE DATABASE'!$V$194,K94='EXPENSE DATABASE'!$X$187,K94='EXPENSE DATABASE'!$X$188,K94='EXPENSE DATABASE'!$X$189,K94='EXPENSE DATABASE'!$X$190,K94='EXPENSE DATABASE'!$X$191,K94='EXPENSE DATABASE'!$X$192,K94='EXPENSE DATABASE'!$X$193,K94='EXPENSE DATABASE'!$X$194,K94='EXPENSE DATABASE'!$Z$187,K94='EXPENSE DATABASE'!$Z$188,K94='EXPENSE DATABASE'!$Z$189,K94='EXPENSE DATABASE'!$Z$190,K94='EXPENSE DATABASE'!$Z$191,K94='EXPENSE DATABASE'!$Z$192,K94='EXPENSE DATABASE'!$Z$193,K94='EXPENSE DATABASE'!$Z$194),O94,\"\")","v":""},{"$f":"IF(OR(K94='EXPENSE DATABASE'!$T$189,K94='EXPENSE DATABASE'!$T$190,K94='EXPENSE DATABASE'!$T$191),O94,\"\")","v":""},{"$f":"VLOOKUP(I94,'EXPENSE DATABASE'!$B$41:$C$65,2,FALSE)","v":{"$error":"#N/A"}},100,{"$f":"VLOOKUP(J94,'EXPENSE DATABASE'!$B$69:$C$168,2,FALSE)","v":{"$error":"#N/A"}},101,{"$f":"VLOOKUP(K94,'EXPENSE DATABASE'!$B$6:$C$35,2,FALSE)","v":{"$error":"#N/A"}},31,{"$f":"VLOOKUP(L94,'EXPENSE DATABASE'!$B$173:$C$176,2,FALSE)","v":{"$error":"#N/A"}},100,0,0,{"$f":"IF(L94=T('EXPENSE DATABASE'!$E$173),O94,0)","v":0},{"$f":"IF(L94=T('EXPENSE DATABASE'!$E$174),O94,0)","v":0},{"$f":"IF(L94=T('EXPENSE DATABASE'!$E$175),O94,0)","v":0},0,81,{"$nulls":6},{"$f":"Table6[[#This Row],[QTY]]*Table6[[#This Row],[UNIT COST]]","v":{"v":0,"d":"$0.00"}},{"$f":"IF(Table6[[#This Row],[TOTAL AMOUNT]]>0,1,0)","v":0},{"$f":"VLOOKUP(Table6[[#This Row],[INCOME TYPE]],'EXPENSE DATABASE'!$B$186:$C$195,2,FALSE)","v":{"$error":"#N/A"}},11]
[0,0,{"$nulls":12},{"v":0,"d":"$0.00"},{"v":0,"d":"$0.00"},{"v":0,"d":"$0.00"},0,{"$f":"IF(OR(K95='EXPENSE DATABASE'!$V$187,K95='EXPENSE DATABASE'!$V$188,K95='EXPENSE DATABASE'!$V$189,K95='EXPENSE DATABASE'!$V$190,K95='EXPENSE DATABASE'!$V$191,K95='EXPENSE DATABASE'!$V$192,K95='EXPENSE DATABASE'!$V$193,K95='EXPENSE DATABASE'!$V$194,K95='EXPENSE DATABASE'!$X$187,K95='EXPENSE DATABASE'!$X$188,K95='EXPENSE DATABASE'!$X$189,K95='EXPENSE DATABASE'!$X$190,K95='EXPENSE DATABASE'!$X$191,K95='EXPENSE DATABASE'!$X$192,K95='EXPENSE DATABASE'!$X$193,K95='EXPENSE DATABASE'!$X$194,K95='EXPENSE DATABASE'!$Z$187,K95='EXPENSE DATABASE'!$Z$188,K95='EXPENSE DATABASE'!$Z$189,K95='EXPENSE DATABASE'!$Z$190,K95='EXPENSE DATABASE'!$Z$191,K95='EXPENSE DATABASE'!$Z$192,K95='EXPENSE DATABASE'!$Z$193,K95='EXPENSE DATABASE'!$Z$194),O95,\"\")","v":""},{"$f":"IF(OR(K95='EXPENSE DATABASE'!$T$189,K95='EXPENSE DATABASE'!$T$190,K95='EXPENSE DATABASE'!$T$191),O95,\"\")","v":""},{"$f":"VLOOKUP(I95,'EXPENSE DATABASE'!$B$41:$C$65,2,FALSE)","v":{"$error":"#N/A"}},100,{"$f":"VLOOKUP(J95,'EXPENSE DATABASE'!$B$69:$C$168,2,FALSE)","v":{"$error":"#N/A"}},101,{"$f":"VLOOKUP(K95,'EXPENSE DATABASE'!$B$6:$C$35,2,FALSE)","v":{"$error":"#N/A"}},31,{"$f":"VLOOKUP(L95,'EXPENSE DATABASE'!$B$173:$C$176,2,FALSE)","v":{"$error":"#N/A"}},100,0,0,{"$f":"IF(L95=T('EXPENSE DATABASE'!$E$173),O95,0)","v":0},{"$f":"IF(L95=T('EXPENSE DATABASE'!$E$174),O95,0)","v":0},{"$f":"IF(L95=T('EXPENSE DATABASE'!$E$175),O95,0)","v":0},0,82,{"$nulls":6},{"$f":"Table6[[#This Row],[QTY]]*Table6[[#This Row],[UNIT COST]]","v":{"v":0,"d":"$0.00"}},{"$f":"IF(Table6[[#This Row],[TOTAL AMOUNT]]>0,1,0)","v":0},{"$f":"VLOOKUP(Table6[[#This Row],[INCOME TYPE]],'EXPENSE DATABASE'!$B$186:$C$195,2,FALSE)","v":{"$error":"#N/A"}},11]
[0,0,{"$nulls":12},{"v":0,"d":"$0.00"},{"v":0,"d":"$0.00"},{"v":0,"d":"$0.00"},0,{"$f":"IF(OR(K96='EXPENSE DATABASE'!$V$187,K96='EXPENSE DATABASE'!$V$188,K96='EXPENSE DATABASE'!$V$189,K96='EXPENSE DATABASE'!$V$190,K96='EXPENSE DATABASE'!$V$191,K96='EXPENSE DATABASE'!$V$192,K96='EXPENSE DATABASE'!$V$193,K96='EXPENSE DATABASE'!$V$194,K96='EXPENSE DATABASE'!$X$187,K96='EXPENSE DATABASE'!$X$188,K96='EXPENSE DATABASE'!$X$189,K96='EXPENSE DATABASE'!$X$190,K96='EXPENSE DATABASE'!$X$191,K96='EXPENSE DATABASE'!$X$192,K96='EXPENSE DATABASE'!$X$193,K96='EXPENSE DATABASE'!$X$194,K96='EXPENSE DATABASE'!$Z$187,K96='EXPENSE DATABASE'!$Z$188,K96='EXPENSE DATABASE'!$Z$189,K96='EXPENSE DATABASE'!$Z$190,K96='EXPENSE DATABASE'!$Z$191,K96='EXPENSE DATABASE'!$Z$192,K96='EXPENSE DATABASE'!$Z$193,K96='EXPENSE DATABASE'!$Z$194),O96,\"\")","v":""},{"$f":"IF(OR(K96='EXPENSE DATABASE'!$T$189,K96='EXPENSE DATABASE'!$T$190,K96='EXPENSE DATABASE'!$T$191),O96,\"\")","v":""},{"$f":"VLOOKUP(I96,'EXPENSE DATABASE'!$B$41:$C$65,2,FALSE)","v":{"$error":"#N/A"}},100,{"$f":"VLOOKUP(J96,'EXPENSE DATABASE'!$B$69:$C$168,2,FALSE)","v":{"$error":"#N/A"}},101,{"$f":"VLOOKUP(K96,'EXPENSE DATABASE'!$B$6:$C$35,2,FALSE)","v":{"$error":"#N/A"}},31,{"$f":"VLOOKUP(L96,'EXPENSE DATABASE'!$B$173:$C$176,2,FALSE)","v":{"$error":"#N/A"}},100,0,0,{"$f":"IF(L96=T('EXPENSE DATABASE'!$E$173),O96,0)","v":0},{"$f":"IF(L96=T('EXPENSE DATABASE'!$E$174),O96,0)","v":0},{"$f":"IF(L96=T('EXPENSE DATABASE'!$E$175),O96,0)","v":0},0,83,{"$nulls":6},{"$f":"Table6[[#This Row],[QTY]]*Table6[[#This Row],[UNIT COST]]","v":{"v":0,"d":"$0.00"}},{"$f":"IF(Table6[[#This Row],[TOTAL AMOUNT]]>0,1,0)","v":0},{"$f":"VLOOKUP(Table6[[#This Row],[INCOME TYPE]],'EXPENSE DATABASE'!$B$186:$C$195,2,FALSE)","v":{"$error":"#N/A"}},11]
[0,0,{"$nulls":12},{"v":0,"d":"$0.00"},{"v":0,"d":"$0.00"},{"v":0,"d":"$0.00"},0,{"$f":"IF(OR(K97='EXPENSE DATABASE'!$V$187,K97='EXPENSE DATABASE'!$V$188,K97='EXPENSE DATABASE'!$V$189,K97='EXPENSE DATABASE'!$V$190,K97='EXPENSE DATABASE'!$V$191,K97='EXPENSE DATABASE'!$V$192,K97='EXPENSE DATABASE'!$V$193,K97='EXPENSE DATABASE'!$V$194,K97='EXPENSE DATABASE'!$X$187,K97='EXPENSE DATABASE'!$X$188,K97='EXPENSE DATABASE'!$X$189,K97='EXPENSE DATABASE'!$X$190,K97='EXPENSE DATABASE'!$X$191,K97='EXPENSE DATABASE'!$X$192,K97='EXPENSE DATABASE'!$X$193,K97='EXPENSE DATABASE'!$X$194,K97='EXPENSE DATABASE'!$Z$187,K97='EXPENSE DATABASE'!$Z$188,K97='EXPENSE DATABASE'!$Z$189,K97='EXPENSE DATABASE'!$Z$190,K97='EXPENSE DATABASE'!$Z$191,K97='EXPENSE DATABASE'!$Z$192,K97='EXPENSE DATABASE'!$Z$193,K97='EXPENSE DATABASE'!$Z$194),O97,\"\")","v":""},{"$f":"IF(OR(K97='EXPENSE DATABASE'!$T$189,K97='EXPENSE DATABASE'!$T$190,K97='EXPENSE DATABASE'!$T$191),O97,\"\")","v":""},{"$f":"VLOOKUP(I97,'EXPENSE DATABASE'!$B$41:$C$65,2,FALSE)","v":{"$error":"#N/A"}},100,{"$f":"VLOOKUP(J97,'EXPENSE DATABASE'!$B$69:$C$168,2,FALSE)","v":{"$error":"#N/A"}},101,{"$f":"VLOOKUP(K97,'EXPENSE DATABASE'!$B$6:$C$35,2,FALSE)","v":{"$error":"#N/A"}},31,{"$f":"VLOOKUP(L97,'EXPENSE DATABASE'!$B$173:$C$176,2,FALSE)","v":{"$error":"#N/A"}},100,0,0,{"$f":"IF(L97=T('EXPENSE DATABASE'!$E$173),O97,0)","v":0},{"$f":"IF(L97=T('EXPENSE DATABASE'!$E$174),O97,0)","v":0},{"$f":"IF(L97=T('EXPENSE DATABASE'!$E$175),O97,0)","v":0},0,84,{"$nulls":6},{"$f":"Table6[[#This Row],[QTY]]*Table6[[#This Row],[UNIT COST]]","v":{"v":0,"d":"$0.00"}},{"$f":"IF(Table6[[#This Row],[TOTAL AMOUNT]]>0,1,0)","v":0},{"$f":"VLOOKUP(Table6[[#This Row],[INCOME TYPE]],'EXPENSE DATABASE'!$B$186:$C$195,2,FALSE)","v":{"$error":"#N/A"}},11]
[0,0,{"$nulls":12},{"v":0,"d":"$0.00"},{"v":0,"d":"$0.00"},{"v":0,"d":"$0.00"},0,{"$f":"IF(OR(K98='EXPENSE DATABASE'!$V$187,K98='EXPENSE DATABASE'!$V$188,K98='EXPENSE DATABASE'!$V$189,K98='EXPENSE DATABASE'!$V$190,K98='EXPENSE DATABASE'!$V$191,K98='EXPENSE DATABASE'!$V$192,K98='EXPENSE DATABASE'!$V$193,K98='EXPENSE DATABASE'!$V$194,K98='EXPENSE DATABASE'!$X$187,K98='EXPENSE DATABASE'!$X$188,K98='EXPENSE DATABASE'!$X$189,K98='EXPENSE DATABASE'!$X$190,K98='EXPENSE DATABASE'!$X$191,K98='EXPENSE DATABASE'!$X$192,K98='EXPENSE DATABASE'!$X$193,K98='EXPENSE DATABASE'!$X$194,K98='EXPENSE DATABASE'!$Z$187,K98='EXPENSE DATABASE'!$Z$188,K98='EXPENSE DATABASE'!$Z$189,K98='EXPENSE DATABASE'!$Z$190,K98='EXPENSE DATABASE'!$Z$191,K98='EXPENSE DATABASE'!$Z$192,K98='EXPENSE DATABASE'!$Z$193,K98='EXPENSE DATABASE'!$Z$194),O98,\"\")","v":""},{"$f":"IF(OR(K98='EXPENSE DATABASE'!$T$189,K98='EXPENSE DATABASE'!$T$190,K98='EXPENSE DATABASE'!$T$191),O98,\"\")","v":""},{"$f":"VLOOKUP(I98,'EXPENSE DATABASE'!$B$41:$C$65,2,FALSE)","v":{"$error":"#N/A"}},100,{"$f":"VLOOKUP(J98,'EXPENSE DATABASE'!$B$69:$C$168,2,FALSE)","v":{"$error":"#N/A"}},101,{"$f":"VLOOKUP(K98,'EXPENSE DATABASE'!$B$6:$C$35,2,FALSE)","v":{"$error":"#N/A"}},31,{"$f":"VLOOKUP(L98,'EXPENSE DATABASE'!$B$173:$C$176,2,FALSE)","v":{"$error":"#N/A"}},100,0,0,{"$f":"IF(L98=T('EXPENSE DATABASE'!$E$173),O98,0)","v":0},{"$f":"IF(L98=T('EXPENSE DATABASE'!$E$174),O98,0)","v":0},{"$f":"IF(L98=T('EXPENSE DATABASE'!$E$175),O98,0)","v":0},0,85,{"$nulls":6},{"$f":"Table6[[#This Row],[QTY]]*Table6[[#This Row],[UNIT COST]]","v":{"v":0,"d":"$0.00"}},{"$f":"IF(Table6[[#This Row],[TOTAL AMOUNT]]>0,1,0)","v":0},{"$f":"VLOOKUP(Table6[[#This Row],[INCOME TYPE]],'EXPENSE DATABASE'!$B$186:$C$195,2,FALSE)","v":{"$error":"#N/A"}},11]
[0,0,{"$nulls":12},{"v":0,"d":"$0.00"},{"v":0,"d":"$0.00"},{"v":0,"d":"$0.00"},0,{"$f":"IF(OR(K99='EXPENSE DATABASE'!$V$187,K99='EXPENSE DATABASE'!$V$188,K99='EXPENSE DATABASE'!$V$189,K99='EXPENSE DATABASE'!$V$190,K99='EXPENSE DATABASE'!$V$191,K99='EXPENSE DATABASE'!$V$192,K99='EXPENSE DATABASE'!$V$193,K99='EXPENSE DATABASE'!$V$194,K99='EXPENSE DATABASE'!$X$187,K99='EXPENSE DATABASE'!$X$188,K99='EXPENSE DATABASE'!$X$189,K99='EXPENSE DATABASE'!$X$190,K99='EXPENSE DATABASE'!$X$191,K99='EXPENSE DATABASE'!$X$192,K99='EXPENSE DATABASE'!$X$193,K99='EXPENSE DATABASE'!$X$194,K99='EXPENSE DATABASE'!$Z$187,K99='EXPENSE DATABASE'!$Z$188,K99='EXPENSE DATABASE'!$Z$189,K99='EXPENSE DATABASE'!$Z$190,K99='EXPENSE DATABASE'!$Z$191,K99='EXPENSE DATABASE'!$Z$192,K99='EXPENSE DATABASE'!$Z$193,K99='EXPENSE DATABASE'!$Z$194),O99,\"\")","v":""},{"$f":"IF(OR(K99='EXPENSE DATABASE'!$T$189,K99='EXPENSE DATABASE'!$T$190,K99='EXPENSE DATABASE'!$T$191),O99,\"\")","v":""},{"$f":"VLOOKUP(I99,'EXPENSE DATABASE'!$B$41:$C$65,2,FALSE)","v":{"$error":"#N/A"}},100,{"$f":"VLOOKUP(J99,'EXPENSE DATABASE'!$B$69:$C$168,2,FALSE)","v":{"$error":"#N/A"}},101,{"$f":"VLOOKUP(K99,'EXPENSE DATABASE'!$B$6:$C$35,2,FALSE)","v":{"$error":"#N/A"}},31,{"$f":"VLOOKUP(L99,'EXPENSE DATABASE'!$B$173:$C$176,2,FALSE)","v":{"$error":"#N/A"}},100,0,0,{"$f":"IF(L99=T('EXPENSE DATABASE'!$E$173),O99,0)","v":0},{"$f":"IF(L99=T('EXPENSE DATABASE'!$E$174),O99,0)","v":0},{"$f":"IF(L99=T('EXPENSE DATABASE'!$E$175),O99,0)","v":0},0,86,{"$nulls":6},{"$f":"Table6[[#This Row],[QTY]]*Table6[[#This Row],[UNIT COST]]","v":{"v":0,"d":"$0.00"}},{"$f":"IF(Table6[[#This Row],[TOTAL AMOUNT]]>0,1,0)","v":0},{"$f":"VLOOKUP(Table6[[#This Row],[INCOME TYPE]],'EXPENSE DATABASE'!$B$186:$C$195,2,FALSE)","v":{"$error":"#N/A"}},11]
[0,0,{"$nulls":12},{"v":0,"d":"$0.00"},{"v":0,"d":"$0.00"},{"v":0,"d":"$0.00"},0,{"$f":"IF(OR(K100='EXPENSE DATABASE'!$V$187,K100='EXPENSE DATABASE'!$V$188,K100='EXPENSE DATABASE'!$V$189,K100='EXPENSE DATABASE'!$V$190,K100='EXPENSE DATABASE'!$V$191,K100='EXPENSE DATABASE'!$V$192,K100='EXPENSE DATABASE'!$V$193,K100='EXPENSE DATABASE'!$V$194,K100='EXPENSE DATABASE'!$X$187,K100='EXPENSE DATABASE'!$X$188,K100='EXPENSE DATABASE'!$X$189,K100='EXPENSE DATABASE'!$X$190,K100='EXPENSE DATABASE'!$X$191,K100='EXPENSE DATABASE'!$X$192,K100='EXPENSE DATABASE'!$X$193,K100='EXPENSE DATABASE'!$X$194,K100='EXPENSE DATABASE'!$Z$187,K100='EXPENSE DATABASE'!$Z$188,K100='EXPENSE DATABASE'!$Z$189,K100='EXPENSE DATABASE'!$Z$190,K100='EXPENSE DATABASE'!$Z$191,K100='EXPENSE DATABASE'!$Z$192,K100='EXPENSE DATABASE'!$Z$193,K100='EXPENSE DATABASE'!$Z$194),O100,\"\")","v":""},{"$f":"IF(OR(K100='EXPENSE DATABASE'!$T$189,K100='EXPENSE DATABASE'!$T$190,K100='EXPENSE DATABASE'!$T$191),O100,\"\")","v":""},{"$f":"VLOOKUP(I100,'EXPENSE DATABASE'!$B$41:$C$65,2,FALSE)","v":{"$error":"#N/A"}},100,{"$f":"VLOOKUP(J100,'EXPENSE DATABASE'!$B$69:$C$168,2,FALSE)","v":{"$error":"#N/A"}},101,{"$f":"VLOOKUP(K100,'EXPENSE DATABASE'!$B$6:$C$35,2,FALSE)","v":{"$error":"#N/A"}},31,{"$f":"VLOOKUP(L100,'EXPENSE DATABASE'!$B$173:$C$176,2,FALSE)","v":{"$error":"#N/A"}},100,0,0,{"$f":"IF(L100=T('EXPENSE DATABASE'!$E$173),O100,0)","v":0},{"$f":"IF(L100=T('EXPENSE DATABASE'!$E$174),O100,0)","v":0},{"$f":"IF(L100=T('EXPENSE DATABASE'!$E$175),O100,0)","v":0},0,87,{"$nulls":6},{"$f":"Table6[[#This Row],[QTY]]*Table6[[#This Row],[UNIT COST]]","v":{"v":0,"d":"$0.00"}},{"$f":"IF(Table6[[#This Row],[TOTAL AMOUNT]]>0,1,0)","v":0},{"$f":"VLOOKUP(Table6[[#This Row],[INCOME TYPE]],'EXPENSE DATABASE'!$B$186:$C$195,2,FALSE)","v":{"$error":"#N/A"}},11]
[0,0,{"$nulls":12},{"v":0,"d":"$0.00"},{"v":0,"d":"$0.00"},{"v":0,"d":"$0.00"},0,{"$f":"IF(OR(K101='EXPENSE DATABASE'!$V$187,K101='EXPENSE DATABASE'!$V$188,K101='EXPENSE DATABASE'!$V$189,K101='EXPENSE DATABASE'!$V$190,K101='EXPENSE DATABASE'!$V$191,K101='EXPENSE DATABASE'!$V$192,K101='EXPENSE DATABASE'!$V$193,K101='EXPENSE DATABASE'!$V$194,K101='EXPENSE DATABASE'!$X$187,K101='EXPENSE DATABASE'!$X$188,K101='EXPENSE DATABASE'!$X$189,K101='EXPENSE DATABASE'!$X$190,K101='EXPENSE DATABASE'!$X$191,K101='EXPENSE DATABASE'!$X$192,K101='EXPENSE DATABASE'!$X$193,K101='EXPENSE DATABASE'!$X$194,K101='EXPENSE DATABASE'!$Z$187,K101='EXPENSE DATABASE'!$Z$188,K101='EXPENSE DATABASE'!$Z$189,K101='EXPENSE DATABASE'!$Z$190,K101='EXPENSE DATABASE'!$Z$191,K101='EXPENSE DATABASE'!$Z$192,K101='EXPENSE DATABASE'!$Z$193,K101='EXPENSE DATABASE'!$Z$194),O101,\"\")","v":""},{"$f":"IF(OR(K101='EXPENSE DATABASE'!$T$189,K101='EXPENSE DATABASE'!$T$190,K101='EXPENSE DATABASE'!$T$191),O101,\"\")","v":""},{"$f":"VLOOKUP(I101,'EXPENSE DATABASE'!$B$41:$C$65,2,FALSE)","v":{"$error":"#N/A"}},100,{"$f":"VLOOKUP(J101,'EXPENSE DATABASE'!$B$69:$C$168,2,FALSE)","v":{"$error":"#N/A"}},101,{"$f":"VLOOKUP(K101,'EXPENSE DATABASE'!$B$6:$C$35,2,FALSE)","v":{"$error":"#N/A"}},31,{"$f":"VLOOKUP(L101,'EXPENSE DATABASE'!$B$173:$C$176,2,FALSE)","v":{"$error":"#N/A"}},100,0,0,{"$f":"IF(L101=T('EXPENSE DATABASE'!$E$173),O101,0)","v":0},{"$f":"IF(L101=T('EXPENSE DATABASE'!$E$174),O101,0)","v":0},{"$f":"IF(L101=T('EXPENSE DATABASE'!$E$175),O101,0)","v":0},0,88,{"$nulls":6},{"$f":"Table6[[#This Row],[QTY]]*Table6[[#This Row],[UNIT COST]]","v":{"v":0,"d":"$0.00"}},{"$f":"IF(Table6[[#This Row],[TOTAL AMOUNT]]>0,1,0)","v":0},{"$f":"VLOOKUP(Table6[[#This Row],[INCOME TYPE]],'EXPENSE DATABASE'!$B$186:$C$195,2,FALSE)","v":{"$error":"#N/A"}},11]
[0,0,{"$nulls":12},{"v":0,"d":"$0.00"},{"v":0,"d":"$0.00"},{"v":0,"d":"$0.00"},0,{"$f":"IF(OR(K102='EXPENSE DATABASE'!$V$187,K102='EXPENSE DATABASE'!$V$188,K102='EXPENSE DATABASE'!$V$189,K102='EXPENSE DATABASE'!$V$190,K102='EXPENSE DATABASE'!$V$191,K102='EXPENSE DATABASE'!$V$192,K102='EXPENSE DATABASE'!$V$193,K102='EXPENSE DATABASE'!$V$194,K102='EXPENSE DATABASE'!$X$187,K102='EXPENSE DATABASE'!$X$188,K102='EXPENSE DATABASE'!$X$189,K102='EXPENSE DATABASE'!$X$190,K102='EXPENSE DATABASE'!$X$191,K102='EXPENSE DATABASE'!$X$192,K102='EXPENSE DATABASE'!$X$193,K102='EXPENSE DATABASE'!$X$194,K102='EXPENSE DATABASE'!$Z$187,K102='EXPENSE DATABASE'!$Z$188,K102='EXPENSE DATABASE'!$Z$189,K102='EXPENSE DATABASE'!$Z$190,K102='EXPENSE DATABASE'!$Z$191,K102='EXPENSE DATABASE'!$Z$192,K102='EXPENSE DATABASE'!$Z$193,K102='EXPENSE DATABASE'!$Z$194),O102,\"\")","v":""},{"$f":"IF(OR(K102='EXPENSE DATABASE'!$T$189,K102='EXPENSE DATABASE'!$T$190,K102='EXPENSE DATABASE'!$T$191),O102,\"\")","v":""},{"$f":"VLOOKUP(I102,'EXPENSE DATABASE'!$B$41:$C$65,2,FALSE)","v":{"$error":"#N/A"}},100,{"$f":"VLOOKUP(J102,'EXPENSE DATABASE'!$B$69:$C$168,2,FALSE)","v":{"$error":"#N/A"}},101,{"$f":"VLOOKUP(K102,'EXPENSE DATABASE'!$B$6:$C$35,2,FALSE)","v":{"$error":"#N/A"}},31,{"$f":"VLOOKUP(L102,'EXPENSE DATABASE'!$B$173:$C$176,2,FALSE)","v":{"$error":"#N/A"}},100,0,0,{"$f":"IF(L102=T('EXPENSE DATABASE'!$E$173),O102,0)","v":0},{"$f":"IF(L102=T('EXPENSE DATABASE'!$E$174),O102,0)","v":0},{"$f":"IF(L102=T('EXPENSE DATABASE'!$E$175),O102,0)","v":0},0,89,{"$nulls":6},{"$f":"Table6[[#This Row],[QTY]]*Table6[[#This Row],[UNIT COST]]","v":{"v":0,"d":"$0.00"}},{"$f":"IF(Table6[[#This Row],[TOTAL AMOUNT]]>0,1,0)","v":0},{"$f":"VLOOKUP(Table6[[#This Row],[INCOME TYPE]],'EXPENSE DATABASE'!$B$186:$C$195,2,FALSE)","v":{"$error":"#N/A"}},11]
[0,0,{"$nulls":12},{"v":0,"d":"$0.00"},{"v":0,"d":"$0.00"},{"v":0,"d":"$0.00"},0,{"$f":"IF(OR(K103='EXPENSE DATABASE'!$V$187,K103='EXPENSE DATABASE'!$V$188,K103='EXPENSE DATABASE'!$V$189,K103='EXPENSE DATABASE'!$V$190,K103='EXPENSE DATABASE'!$V$191,K103='EXPENSE DATABASE'!$V$192,K103='EXPENSE DATABASE'!$V$193,K103='EXPENSE DATABASE'!$V$194,K103='EXPENSE DATABASE'!$X$187,K103='EXPENSE DATABASE'!$X$188,K103='EXPENSE DATABASE'!$X$189,K103='EXPENSE DATABASE'!$X$190,K103='EXPENSE DATABASE'!$X$191,K103='EXPENSE DATABASE'!$X$192,K103='EXPENSE DATABASE'!$X$193,K103='EXPENSE DATABASE'!$X$194,K103='EXPENSE DATABASE'!$Z$187,K103='EXPENSE DATABASE'!$Z$188,K103='EXPENSE DATABASE'!$Z$189,K103='EXPENSE DATABASE'!$Z$190,K103='EXPENSE DATABASE'!$Z$191,K103='EXPENSE DATABASE'!$Z$192,K103='EXPENSE DATABASE'!$Z$193,K103='EXPENSE DATABASE'!$Z$194),O103,\"\")","v":""},{"$f":"IF(OR(K103='EXPENSE DATABASE'!$T$189,K103='EXPENSE DATABASE'!$T$190,K103='EXPENSE DATABASE'!$T$191),O103,\"\")","v":""},{"$f":"VLOOKUP(I103,'EXPENSE DATABASE'!$B$41:$C$65,2,FALSE)","v":{"$error":"#N/A"}},100,{"$f":"VLOOKUP(J103,'EXPENSE DATABASE'!$B$69:$C$168,2,FALSE)","v":{"$error":"#N/A"}},101,{"$f":"VLOOKUP(K103,'EXPENSE DATABASE'!$B$6:$C$35,2,FALSE)","v":{"$error":"#N/A"}},31,{"$f":"VLOOKUP(L103,'EXPENSE DATABASE'!$B$173:$C$176,2,FALSE)","v":{"$error":"#N/A"}},100,0,0,{"$f":"IF(L103=T('EXPENSE DATABASE'!$E$173),O103,0)","v":0},{"$f":"IF(L103=T('EXPENSE DATABASE'!$E$174),O103,0)","v":0},{"$f":"IF(L103=T('EXPENSE DATABASE'!$E$175),O103,0)","v":0},0,90,{"$nulls":6},{"$f":"Table6[[#This Row],[QTY]]*Table6[[#This Row],[UNIT COST]]","v":{"v":0,"d":"$0.00"}},{"$f":"IF(Table6[[#This Row],[TOTAL AMOUNT]]>0,1,0)","v":0},{"$f":"VLOOKUP(Table6[[#This Row],[INCOME TYPE]],'EXPENSE DATABASE'!$B$186:$C$195,2,FALSE)","v":{"$error":"#N/A"}},11]
[0,0,{"$nulls":12},{"v":0,"d":"$0.00"},{"v":0,"d":"$0.00"},{"v":0,"d":"$0.00"},0,{"$f":"IF(OR(K104='EXPENSE DATABASE'!$V$187,K104='EXPENSE DATABASE'!$V$188,K104='EXPENSE DATABASE'!$V$189,K104='EXPENSE DATABASE'!$V$190,K104='EXPENSE DATABASE'!$V$191,K104='EXPENSE DATABASE'!$V$192,K104='EXPENSE DATABASE'!$V$193,K104='EXPENSE DATABASE'!$V$194,K104='EXPENSE DATABASE'!$X$187,K104='EXPENSE DATABASE'!$X$188,K104='EXPENSE DATABASE'!$X$189,K104='EXPENSE DATABASE'!$X$190,K104='EXPENSE DATABASE'!$X$191,K104='EXPENSE DATABASE'!$X$192,K104='EXPENSE DATABASE'!$X$193,K104='EXPENSE DATABASE'!$X$194,K104='EXPENSE DATABASE'!$Z$187,K104='EXPENSE DATABASE'!$Z$188,K104='EXPENSE DATABASE'!$Z$189,K104='EXPENSE DATABASE'!$Z$190,K104='EXPENSE DATABASE'!$Z$191,K104='EXPENSE DATABASE'!$Z$192,K104='EXPENSE DATABASE'!$Z$193,K104='EXPENSE DATABASE'!$Z$194),O104,\"\")","v":""},{"$f":"IF(OR(K104='EXPENSE DATABASE'!$T$189,K104='EXPENSE DATABASE'!$T$190,K104='EXPENSE DATABASE'!$T$191),O104,\"\")","v":""},{"$f":"VLOOKUP(I104,'EXPENSE DATABASE'!$B$41:$C$65,2,FALSE)","v":{"$error":"#N/A"}},100,{"$f":"VLOOKUP(J104,'EXPENSE DATABASE'!$B$69:$C$168,2,FALSE)","v":{"$error":"#N/A"}},101,{"$f":"VLOOKUP(K104,'EXPENSE DATABASE'!$B$6:$C$35,2,FALSE)","v":{"$error":"#N/A"}},31,{"$f":"VLOOKUP(L104,'EXPENSE DATABASE'!$B$173:$C$176,2,FALSE)","v":{"$error":"#N/A"}},100,0,0,{"$f":"IF(L104=T('EXPENSE DATABASE'!$E$173),O104,0)","v":0},{"$f":"IF(L104=T('EXPENSE DATABASE'!$E$174),O104,0)","v":0},{"$f":"IF(L104=T('EXPENSE DATABASE'!$E$175),O104,0)","v":0},0,91,{"$nulls":6},{"$f":"Table6[[#This Row],[QTY]]*Table6[[#This Row],[UNIT COST]]","v":{"v":0,"d":"$0.00"}},{"$f":"IF(Table6[[#This Row],[TOTAL AMOUNT]]>0,1,0)","v":0},{"$f":"VLOOKUP(Table6[[#This Row],[INCOME TYPE]],'EXPENSE DATABASE'!$B$186:$C$195,2,FALSE)","v":{"$error":"#N/A"}},11]
[0,0,{"$nulls":12},{"v":0,"d":"$0.00"},{"v":0,"d":"$0.00"},{"v":0,"d":"$0.00"},0,{"$f":"IF(OR(K105='EXPENSE DATABASE'!$V$187,K105='EXPENSE DATABASE'!$V$188,K105='EXPENSE DATABASE'!$V$189,K105='EXPENSE DATABASE'!$V$190,K105='EXPENSE DATABASE'!$V$191,K105='EXPENSE DATABASE'!$V$192,K105='EXPENSE DATABASE'!$V$193,K105='EXPENSE DATABASE'!$V$194,K105='EXPENSE DATABASE'!$X$187,K105='EXPENSE DATABASE'!$X$188,K105='EXPENSE DATABASE'!$X$189,K105='EXPENSE DATABASE'!$X$190,K105='EXPENSE DATABASE'!$X$191,K105='EXPENSE DATABASE'!$X$192,K105='EXPENSE DATABASE'!$X$193,K105='EXPENSE DATABASE'!$X$194,K105='EXPENSE DATABASE'!$Z$187,K105='EXPENSE DATABASE'!$Z$188,K105='EXPENSE DATABASE'!$Z$189,K105='EXPENSE DATABASE'!$Z$190,K105='EXPENSE DATABASE'!$Z$191,K105='EXPENSE DATABASE'!$Z$192,K105='EXPENSE DATABASE'!$Z$193,K105='EXPENSE DATABASE'!$Z$194),O105,\"\")","v":""},{"$f":"IF(OR(K105='EXPENSE DATABASE'!$T$189,K105='EXPENSE DATABASE'!$T$190,K105='EXPENSE DATABASE'!$T$191),O105,\"\")","v":""},{"$f":"VLOOKUP(I105,'EXPENSE DATABASE'!$B$41:$C$65,2,FALSE)","v":{"$error":"#N/A"}},100,{"$f":"VLOOKUP(J105,'EXPENSE DATABASE'!$B$69:$C$168,2,FALSE)","v":{"$error":"#N/A"}},101,{"$f":"VLOOKUP(K105,'EXPENSE DATABASE'!$B$6:$C$35,2,FALSE)","v":{"$error":"#N/A"}},31,{"$f":"VLOOKUP(L105,'EXPENSE DATABASE'!$B$173:$C$176,2,FALSE)","v":{"$error":"#N/A"}},100,0,0,{"$f":"IF(L105=T('EXPENSE DATABASE'!$E$173),O105,0)","v":0},{"$f":"IF(L105=T('EXPENSE DATABASE'!$E$174),O105,0)","v":0},{"$f":"IF(L105=T('EXPENSE DATABASE'!$E$175),O105,0)","v":0},0,92,{"$nulls":6},{"$f":"Table6[[#This Row],[QTY]]*Table6[[#This Row],[UNIT COST]]","v":{"v":0,"d":"$0.00"}},{"$f":"IF(Table6[[#This Row],[TOTAL AMOUNT]]>0,1,0)","v":0},{"$f":"VLOOKUP(Table6[[#This Row],[INCOME TYPE]],'EXPENSE DATABASE'!$B$186:$C$195,2,FALSE)","v":{"$error":"#N/A"}},11]
[0,0,{"$nulls":12},{"v":0,"d":"$0.00"},{"v":0,"d":"$0.00"},{"v":0,"d":"$0.00"},0,{"$f":"IF(OR(K106='EXPENSE DATABASE'!$V$187,K106='EXPENSE DATABASE'!$V$188,K106='EXPENSE DATABASE'!$V$189,K106='EXPENSE DATABASE'!$V$190,K106='EXPENSE DATABASE'!$V$191,K106='EXPENSE DATABASE'!$V$192,K106='EXPENSE DATABASE'!$V$193,K106='EXPENSE DATABASE'!$V$194,K106='EXPENSE DATABASE'!$X$187,K106='EXPENSE DATABASE'!$X$188,K106='EXPENSE DATABASE'!$X$189,K106='EXPENSE DATABASE'!$X$190,K106='EXPENSE DATABASE'!$X$191,K106='EXPENSE DATABASE'!$X$192,K106='EXPENSE DATABASE'!$X$193,K106='EXPENSE DATABASE'!$X$194,K106='EXPENSE DATABASE'!$Z$187,K106='EXPENSE DATABASE'!$Z$188,K106='EXPENSE DATABASE'!$Z$189,K106='EXPENSE DATABASE'!$Z$190,K106='EXPENSE DATABASE'!$Z$191,K106='EXPENSE DATABASE'!$Z$192,K106='EXPENSE DATABASE'!$Z$193,K106='EXPENSE DATABASE'!$Z$194),O106,\"\")","v":""},{"$f":"IF(OR(K106='EXPENSE DATABASE'!$T$189,K106='EXPENSE DATABASE'!$T$190,K106='EXPENSE DATABASE'!$T$191),O106,\"\")","v":""},{"$f":"VLOOKUP(I106,'EXPENSE DATABASE'!$B$41:$C$65,2,FALSE)","v":{"$error":"#N/A"}},100,{"$f":"VLOOKUP(J106,'EXPENSE DATABASE'!$B$69:$C$168,2,FALSE)","v":{"$error":"#N/A"}},101,{"$f":"VLOOKUP(K106,'EXPENSE DATABASE'!$B$6:$C$35,2,FALSE)","v":{"$error":"#N/A"}},31,{"$f":"VLOOKUP(L106,'EXPENSE DATABASE'!$B$173:$C$176,2,FALSE)","v":{"$error":"#N/A"}},100,0,0,{"$f":"IF(L106=T('EXPENSE DATABASE'!$E$173),O106,0)","v":0},{"$f":"IF(L106=T('EXPENSE DATABASE'!$E$174),O106,0)","v":0},{"$f":"IF(L106=T('EXPENSE DATABASE'!$E$175),O106,0)","v":0},0,93,{"$nulls":6},{"$f":"Table6[[#This Row],[QTY]]*Table6[[#This Row],[UNIT COST]]","v":{"v":0,"d":"$0.00"}},{"$f":"IF(Table6[[#This Row],[TOTAL AMOUNT]]>0,1,0)","v":0},{"$f":"VLOOKUP(Table6[[#This Row],[INCOME TYPE]],'EXPENSE DATABASE'!$B$186:$C$195,2,FALSE)","v":{"$error":"#N/A"}},11]
[0,0,{"$nulls":12},{"v":0,"d":"$0.00"},{"v":0,"d":"$0.00"},{"v":0,"d":"$0.00"},0,{"$f":"IF(OR(K107='EXPENSE DATABASE'!$V$187,K107='EXPENSE DATABASE'!$V$188,K107='EXPENSE DATABASE'!$V$189,K107='EXPENSE DATABASE'!$V$190,K107='EXPENSE DATABASE'!$V$191,K107='EXPENSE DATABASE'!$V$192,K107='EXPENSE DATABASE'!$V$193,K107='EXPENSE DATABASE'!$V$194,K107='EXPENSE DATABASE'!$X$187,K107='EXPENSE DATABASE'!$X$188,K107='EXPENSE DATABASE'!$X$189,K107='EXPENSE DATABASE'!$X$190,K107='EXPENSE DATABASE'!$X$191,K107='EXPENSE DATABASE'!$X$192,K107='EXPENSE DATABASE'!$X$193,K107='EXPENSE DATABASE'!$X$194,K107='EXPENSE DATABASE'!$Z$187,K107='EXPENSE DATABASE'!$Z$188,K107='EXPENSE DATABASE'!$Z$189,K107='EXPENSE DATABASE'!$Z$190,K107='EXPENSE DATABASE'!$Z$191,K107='EXPENSE DATABASE'!$Z$192,K107='EXPENSE DATABASE'!$Z$193,K107='EXPENSE DATABASE'!$Z$194),O107,\"\")","v":""},{"$f":"IF(OR(K107='EXPENSE DATABASE'!$T$189,K107='EXPENSE DATABASE'!$T$190,K107='EXPENSE DATABASE'!$T$191),O107,\"\")","v":""},{"$f":"VLOOKUP(I107,'EXPENSE DATABASE'!$B$41:$C$65,2,FALSE)","v":{"$error":"#N/A"}},100,{"$f":"VLOOKUP(J107,'EXPENSE DATABASE'!$B$69:$C$168,2,FALSE)","v":{"$error":"#N/A"}},101,{"$f":"VLOOKUP(K107,'EXPENSE DATABASE'!$B$6:$C$35,2,FALSE)","v":{"$error":"#N/A"}},31,{"$f":"VLOOKUP(L107,'EXPENSE DATABASE'!$B$173:$C$176,2,FALSE)","v":{"$error":"#N/A"}},100,0,0,{"$f":"IF(L107=T('EXPENSE DATABASE'!$E$173),O107,0)","v":0},{"$f":"IF(L107=T('EXPENSE DATABASE'!$E$174),O107,0)","v":0},{"$f":"IF(L107=T('EXPENSE DATABASE'!$E$175),O107,0)","v":0},0,94,{"$nulls":6},{"$f":"Table6[[#This Row],[QTY]]*Table6[[#This Row],[UNIT COST]]","v":{"v":0,"d":"$0.00"}},{"$f":"IF(Table6[[#This Row],[TOTAL AMOUNT]]>0,1,0)","v":0},{"$f":"VLOOKUP(Table6[[#This Row],[INCOME TYPE]],'EXPENSE DATABASE'!$B$186:$C$195,2,FALSE)","v":{"$error":"#N/A"}},11]
[0,0,{"$nulls":12},{"v":0,"d":"$0.00"},{"v":0,"d":"$0.00"},{"v":0,"d":"$0.00"},0,{"$f":"IF(OR(K108='EXPENSE DATABASE'!$V$187,K108='EXPENSE DATABASE'!$V$188,K108='EXPENSE DATABASE'!$V$189,K108='EXPENSE DATABASE'!$V$190,K108='EXPENSE DATABASE'!$V$191,K108='EXPENSE DATABASE'!$V$192,K108='EXPENSE DATABASE'!$V$193,K108='EXPENSE DATABASE'!$V$194,K108='EXPENSE DATABASE'!$X$187,K108='EXPENSE DATABASE'!$X$188,K108='EXPENSE DATABASE'!$X$189,K108='EXPENSE DATABASE'!$X$190,K108='EXPENSE DATABASE'!$X$191,K108='EXPENSE DATABASE'!$X$192,K108='EXPENSE DATABASE'!$X$193,K108='EXPENSE DATABASE'!$X$194,K108='EXPENSE DATABASE'!$Z$187,K108='EXPENSE DATABASE'!$Z$188,K108='EXPENSE DATABASE'!$Z$189,K108='EXPENSE DATABASE'!$Z$190,K108='EXPENSE DATABASE'!$Z$191,K108='EXPENSE DATABASE'!$Z$192,K108='EXPENSE DATABASE'!$Z$193,K108='EXPENSE DATABASE'!$Z$194),O108,\"\")","v":""},{"$f":"IF(OR(K108='EXPENSE DATABASE'!$T$189,K108='EXPENSE DATABASE'!$T$190,K108='EXPENSE DATABASE'!$T$191),O108,\"\")","v":""},{"$f":"VLOOKUP(I108,'EXPENSE DATABASE'!$B$41:$C$65,2,FALSE)","v":{"$error":"#N/A"}},100,{"$f":"VLOOKUP(J108,'EXPENSE DATABASE'!$B$69:$C$168,2,FALSE)","v":{"$error":"#N/A"}},101,{"$f":"VLOOKUP(K108,'EXPENSE DATABASE'!$B$6:$C$35,2,FALSE)","v":{"$error":"#N/A"}},31,{"$f":"VLOOKUP(L108,'EXPENSE DATABASE'!$B$173:$C$176,2,FALSE)","v":{"$error":"#N/A"}},100,0,0,{"$f":"IF(L108=T('EXPENSE DATABASE'!$E$173),O108,0)","v":0},{"$f":"IF(L108=T('EXPENSE DATABASE'!$E$174),O108,0)","v":0},{"$f":"IF(L108=T('EXPENSE DATABASE'!$E$175),O108,0)","v":0},0,95,{"$nulls":6},{"$f":"Table6[[#This Row],[QTY]]*Table6[[#This Row],[UNIT COST]]","v":{"v":0,"d":"$0.00"}},{"$f":"IF(Table6[[#This Row],[TOTAL AMOUNT]]>0,1,0)","v":0},{"$f":"VLOOKUP(Table6[[#This Row],[INCOME TYPE]],'EXPENSE DATABASE'!$B$186:$C$195,2,FALSE)","v":{"$error":"#N/A"}},11]
[0,0,{"$nulls":12},{"v":0,"d":"$0.00"},{"v":0,"d":"$0.00"},{"v":0,"d":"$0.00"},0,{"$f":"IF(OR(K109='EXPENSE DATABASE'!$V$187,K109='EXPENSE DATABASE'!$V$188,K109='EXPENSE DATABASE'!$V$189,K109='EXPENSE DATABASE'!$V$190,K109='EXPENSE DATABASE'!$V$191,K109='EXPENSE DATABASE'!$V$192,K109='EXPENSE DATABASE'!$V$193,K109='EXPENSE DATABASE'!$V$194,K109='EXPENSE DATABASE'!$X$187,K109='EXPENSE DATABASE'!$X$188,K109='EXPENSE DATABASE'!$X$189,K109='EXPENSE DATABASE'!$X$190,K109='EXPENSE DATABASE'!$X$191,K109='EXPENSE DATABASE'!$X$192,K109='EXPENSE DATABASE'!$X$193,K109='EXPENSE DATABASE'!$X$194,K109='EXPENSE DATABASE'!$Z$187,K109='EXPENSE DATABASE'!$Z$188,K109='EXPENSE DATABASE'!$Z$189,K109='EXPENSE DATABASE'!$Z$190,K109='EXPENSE DATABASE'!$Z$191,K109='EXPENSE DATABASE'!$Z$192,K109='EXPENSE DATABASE'!$Z$193,K109='EXPENSE DATABASE'!$Z$194),O109,\"\")","v":""},{"$f":"IF(OR(K109='EXPENSE DATABASE'!$T$189,K109='EXPENSE DATABASE'!$T$190,K109='EXPENSE DATABASE'!$T$191),O109,\"\")","v":""},{"$f":"VLOOKUP(I109,'EXPENSE DATABASE'!$B$41:$C$65,2,FALSE)","v":{"$error":"#N/A"}},100,{"$f":"VLOOKUP(J109,'EXPENSE DATABASE'!$B$69:$C$168,2,FALSE)","v":{"$error":"#N/A"}},101,{"$f":"VLOOKUP(K109,'EXPENSE DATABASE'!$B$6:$C$35,2,FALSE)","v":{"$error":"#N/A"}},31,{"$f":"VLOOKUP(L109,'EXPENSE DATABASE'!$B$173:$C$176,2,FALSE)","v":{"$error":"#N/A"}},100,0,0,{"$f":"IF(L109=T('EXPENSE DATABASE'!$E$173),O109,0)","v":0},{"$f":"IF(L109=T('EXPENSE DATABASE'!$E$174),O109,0)","v":0},{"$f":"IF(L109=T('EXPENSE DATABASE'!$E$175),O109,0)","v":0},0,96,{"$nulls":6},{"$f":"Table6[[#This Row],[QTY]]*Table6[[#This Row],[UNIT COST]]","v":{"v":0,"d":"$0.00"}},{"$f":"IF(Table6[[#This Row],[TOTAL AMOUNT]]>0,1,0)","v":0},{"$f":"VLOOKUP(Table6[[#This Row],[INCOME TYPE]],'EXPENSE DATABASE'!$B$186:$C$195,2,FALSE)","v":{"$error":"#N/A"}},11]
[{"$f":"IF(COUNTA(D110,E110,F110,G110,H110,I110,J110,K110,L110,M110,N110)>0,1,0)","v":0},{"$f":"IF((COUNTA(I110:L110)=4),1,-1)*A110","v":0},{"$nulls":12},{"v":0,"d":"$0.00"},{"v":0,"d":"$0.00"},{"v":0,"d":"$0.00"},0,{"$f":"IF(OR(K110='EXPENSE DATABASE'!$V$187,K110='EXPENSE DATABASE'!$V$188,K110='EXPENSE DATABASE'!$V$189,K110='EXPENSE DATABASE'!$V$190,K110='EXPENSE DATABASE'!$V$191,K110='EXPENSE DATABASE'!$V$192,K110='EXPENSE DATABASE'!$V$193,K110='EXPENSE DATABASE'!$V$194,K110='EXPENSE DATABASE'!$X$187,K110='EXPENSE DATABASE'!$X$188,K110='EXPENSE DATABASE'!$X$189,K110='EXPENSE DATABASE'!$X$190,K110='EXPENSE DATABASE'!$X$191,K110='EXPENSE DATABASE'!$X$192,K110='EXPENSE DATABASE'!$X$193,K110='EXPENSE DATABASE'!$X$194,K110='EXPENSE DATABASE'!$Z$187,K110='EXPENSE DATABASE'!$Z$188,K110='EXPENSE DATABASE'!$Z$189,K110='EXPENSE DATABASE'!$Z$190,K110='EXPENSE DATABASE'!$Z$191,K110='EXPENSE DATABASE'!$Z$192,K110='EXPENSE DATABASE'!$Z$193,K110='EXPENSE DATABASE'!$Z$194),O110,\"\")","v":""},{"$f":"IF(OR(K110='EXPENSE DATABASE'!$T$189,K110='EXPENSE DATABASE'!$T$190,K110='EXPENSE DATABASE'!$T$191),O110,\"\")","v":""},{"$f":"VLOOKUP(I110,'EXPENSE DATABASE'!$B$41:$C$65,2,FALSE)","v":{"$error":"#N/A"}},100,{"$f":"VLOOKUP(J110,'EXPENSE DATABASE'!$B$69:$C$168,2,FALSE)","v":{"$error":"#N/A"}},101,{"$f":"VLOOKUP(K110,'EXPENSE DATABASE'!$B$6:$C$35,2,FALSE)","v":{"$error":"#N/A"}},31,{"$f":"VLOOKUP(L110,'EXPENSE DATABASE'!$B$173:$C$176,2,FALSE)","v":{"$error":"#N/A"}},100,0,0,{"$f":"IF(L110=T('EXPENSE DATABASE'!$E$173),O110,0)","v":0},{"$f":"IF(L110=T('EXPENSE DATABASE'!$E$174),O110,0)","v":0},{"$f":"IF(L110=T('EXPENSE DATABASE'!$E$175),O110,0)","v":0},0,97,{"$nulls":6},{"$f":"Table6[[#This Row],[QTY]]*Table6[[#This Row],[UNIT COST]]","v":{"v":0,"d":"$0.00"}},{"$f":"IF(Table6[[#This Row],[TOTAL AMOUNT]]>0,1,0)","v":0},{"$f":"VLOOKUP(Table6[[#This Row],[INCOME TYPE]],'EXPENSE DATABASE'!$B$186:$C$195,2,FALSE)","v":{"$error":"#N/A"}},11]
[0,0,{"$nulls":12},{"v":0,"d":"$0.00"},{"v":0,"d":"$0.00"},{"v":0,"d":"$0.00"},0,{"$f":"IF(OR(K111='EXPENSE DATABASE'!$V$187,K111='EXPENSE DATABASE'!$V$188,K111='EXPENSE DATABASE'!$V$189,K111='EXPENSE DATABASE'!$V$190,K111='EXPENSE DATABASE'!$V$191,K111='EXPENSE DATABASE'!$V$192,K111='EXPENSE DATABASE'!$V$193,K111='EXPENSE DATABASE'!$V$194,K111='EXPENSE DATABASE'!$X$187,K111='EXPENSE DATABASE'!$X$188,K111='EXPENSE DATABASE'!$X$189,K111='EXPENSE DATABASE'!$X$190,K111='EXPENSE DATABASE'!$X$191,K111='EXPENSE DATABASE'!$X$192,K111='EXPENSE DATABASE'!$X$193,K111='EXPENSE DATABASE'!$X$194,K111='EXPENSE DATABASE'!$Z$187,K111='EXPENSE DATABASE'!$Z$188,K111='EXPENSE DATABASE'!$Z$189,K111='EXPENSE DATABASE'!$Z$190,K111='EXPENSE DATABASE'!$Z$191,K111='EXPENSE DATABASE'!$Z$192,K111='EXPENSE DATABASE'!$Z$193,K111='EXPENSE DATABASE'!$Z$194),O111,\"\")","v":""},{"$f":"IF(OR(K111='EXPENSE DATABASE'!$T$189,K111='EXPENSE DATABASE'!$T$190,K111='EXPENSE DATABASE'!$T$191),O111,\"\")","v":""},{"$f":"VLOOKUP(I111,'EXPENSE DATABASE'!$B$41:$C$65,2,FALSE)","v":{"$error":"#N/A"}},100,{"$f":"VLOOKUP(J111,'EXPENSE DATABASE'!$B$69:$C$168,2,FALSE)","v":{"$error":"#N/A"}},101,{"$f":"VLOOKUP(K111,'EXPENSE DATABASE'!$B$6:$C$35,2,FALSE)","v":{"$error":"#N/A"}},31,{"$f":"VLOOKUP(L111,'EXPENSE DATABASE'!$B$173:$C$176,2,FALSE)","v":{"$error":"#N/A"}},100,0,0,{"$f":"IF(L111=T('EXPENSE DATABASE'!$E$173),O111,0)","v":0},{"$f":"IF(L111=T('EXPENSE DATABASE'!$E$174),O111,0)","v":0},{"$f":"IF(L111=T('EXPENSE DATABASE'!$E$175),O111,0)","v":0},0,98,{"$nulls":6},{"$f":"Table6[[#This Row],[QTY]]*Table6[[#This Row],[UNIT COST]]","v":{"v":0,"d":"$0.00"}},{"$f":"IF(Table6[[#This Row],[TOTAL AMOUNT]]>0,1,0)","v":0},{"$f":"VLOOKUP(Table6[[#This Row],[INCOME TYPE]],'EXPENSE DATABASE'!$B$186:$C$195,2,FALSE)","v":{"$error":"#N/A"}},11]
[0,0,{"$nulls":12},{"v":0,"d":"$0.00"},{"v":0,"d":"$0.00"},{"v":0,"d":"$0.00"},0,{"$f":"IF(OR(K112='EXPENSE DATABASE'!$V$187,K112='EXPENSE DATABASE'!$V$188,K112='EXPENSE DATABASE'!$V$189,K112='EXPENSE DATABASE'!$V$190,K112='EXPENSE DATABASE'!$V$191,K112='EXPENSE DATABASE'!$V$192,K112='EXPENSE DATABASE'!$V$193,K112='EXPENSE DATABASE'!$V$194,K112='EXPENSE DATABASE'!$X$187,K112='EXPENSE DATABASE'!$X$188,K112='EXPENSE DATABASE'!$X$189,K112='EXPENSE DATABASE'!$X$190,K112='EXPENSE DATABASE'!$X$191,K112='EXPENSE DATABASE'!$X$192,K112='EXPENSE DATABASE'!$X$193,K112='EXPENSE DATABASE'!$X$194,K112='EXPENSE DATABASE'!$Z$187,K112='EXPENSE DATABASE'!$Z$188,K112='EXPENSE DATABASE'!$Z$189,K112='EXPENSE DATABASE'!$Z$190,K112='EXPENSE DATABASE'!$Z$191,K112='EXPENSE DATABASE'!$Z$192,K112='EXPENSE DATABASE'!$Z$193,K112='EXPENSE DATABASE'!$Z$194),O112,\"\")","v":""},{"$f":"IF(OR(K112='EXPENSE DATABASE'!$T$189,K112='EXPENSE DATABASE'!$T$190,K112='EXPENSE DATABASE'!$T$191),O112,\"\")","v":""},{"$f":"VLOOKUP(I112,'EXPENSE DATABASE'!$B$41:$C$65,2,FALSE)","v":{"$error":"#N/A"}},100,{"$f":"VLOOKUP(J112,'EXPENSE DATABASE'!$B$69:$C$168,2,FALSE)","v":{"$error":"#N/A"}},101,{"$f":"VLOOKUP(K112,'EXPENSE DATABASE'!$B$6:$C$35,2,FALSE)","v":{"$error":"#N/A"}},31,{"$f":"VLOOKUP(L112,'EXPENSE DATABASE'!$B$173:$C$176,2,FALSE)","v":{"$error":"#N/A"}},100,0,0,{"$f":"IF(L112=T('EXPENSE DATABASE'!$E$173),O112,0)","v":0},{"$f":"IF(L112=T('EXPENSE DATABASE'!$E$174),O112,0)","v":0},{"$f":"IF(L112=T('EXPENSE DATABASE'!$E$175),O112,0)","v":0},0,99,{"$nulls":6},{"$f":"Table6[[#This Row],[QTY]]*Table6[[#This Row],[UNIT COST]]","v":{"v":0,"d":"$0.00"}},{"$f":"IF(Table6[[#This Row],[TOTAL AMOUNT]]>0,1,0)","v":0},{"$f":"VLOOKUP(Table6[[#This Row],[INCOME TYPE]],'EXPENSE DATABASE'!$B$186:$C$195,2,FALSE)","v":{"$error":"#N/A"}},11]
[0,0,{"$nulls":12},{"v":0,"d":"$0.00"},{"v":0,"d":"$0.00"},{"v":0,"d":"$0.00"},0,{"$f":"IF(OR(K113='EXPENSE DATABASE'!$V$187,K113='EXPENSE DATABASE'!$V$188,K113='EXPENSE DATABASE'!$V$189,K113='EXPENSE DATABASE'!$V$190,K113='EXPENSE DATABASE'!$V$191,K113='EXPENSE DATABASE'!$V$192,K113='EXPENSE DATABASE'!$V$193,K113='EXPENSE DATABASE'!$V$194,K113='EXPENSE DATABASE'!$X$187,K113='EXPENSE DATABASE'!$X$188,K113='EXPENSE DATABASE'!$X$189,K113='EXPENSE DATABASE'!$X$190,K113='EXPENSE DATABASE'!$X$191,K113='EXPENSE DATABASE'!$X$192,K113='EXPENSE DATABASE'!$X$193,K113='EXPENSE DATABASE'!$X$194,K113='EXPENSE DATABASE'!$Z$187,K113='EXPENSE DATABASE'!$Z$188,K113='EXPENSE DATABASE'!$Z$189,K113='EXPENSE DATABASE'!$Z$190,K113='EXPENSE DATABASE'!$Z$191,K113='EXPENSE DATABASE'!$Z$192,K113='EXPENSE DATABASE'!$Z$193,K113='EXPENSE DATABASE'!$Z$194),O113,\"\")","v":""},{"$f":"IF(OR(K113='EXPENSE DATABASE'!$T$189,K113='EXPENSE DATABASE'!$T$190,K113='EXPENSE DATABASE'!$T$191),O113,\"\")","v":""},{"$f":"VLOOKUP(I113,'EXPENSE DATABASE'!$B$41:$C$65,2,FALSE)","v":{"$error":"#N/A"}},100,{"$f":"VLOOKUP(J113,'EXPENSE DATABASE'!$B$69:$C$168,2,FALSE)","v":{"$error":"#N/A"}},101,{"$f":"VLOOKUP(K113,'EXPENSE DATABASE'!$B$6:$C$35,2,FALSE)","v":{"$error":"#N/A"}},31,{"$f":"VLOOKUP(L113,'EXPENSE DATABASE'!$B$173:$C$176,2,FALSE)","v":{"$error":"#N/A"}},100,0,0,{"$f":"IF(L113=T('EXPENSE DATABASE'!$E$173),O113,0)","v":0},{"$f":"IF(L113=T('EXPENSE DATABASE'!$E$174),O113,0)","v":0},{"$f":"IF(L113=T('EXPENSE DATABASE'!$E$175),O113,0)","v":0},0,100,{"$nulls":6},{"$f":"Table6[[#This Row],[QTY]]*Table6[[#This Row],[UNIT COST]]","v":{"v":0,"d":"$0.00"}},{"$f":"IF(Table6[[#This Row],[TOTAL AMOUNT]]>0,1,0)","v":0},{"$f":"VLOOKUP(Table6[[#This Row],[INCOME TYPE]],'EXPENSE DATABASE'!$B$186:$C$195,2,FALSE)","v":{"$error":"#N/A"}},11]
[0,0,{"$nulls":12},{"v":0,"d":"$0.00"},{"v":0,"d":"$0.00"},{"v":0,"d":"$0.00"},0,{"$f":"IF(OR(K114='EXPENSE DATABASE'!$V$187,K114='EXPENSE DATABASE'!$V$188,K114='EXPENSE DATABASE'!$V$189,K114='EXPENSE DATABASE'!$V$190,K114='EXPENSE DATABASE'!$V$191,K114='EXPENSE DATABASE'!$V$192,K114='EXPENSE DATABASE'!$V$193,K114='EXPENSE DATABASE'!$V$194,K114='EXPENSE DATABASE'!$X$187,K114='EXPENSE DATABASE'!$X$188,K114='EXPENSE DATABASE'!$X$189,K114='EXPENSE DATABASE'!$X$190,K114='EXPENSE DATABASE'!$X$191,K114='EXPENSE DATABASE'!$X$192,K114='EXPENSE DATABASE'!$X$193,K114='EXPENSE DATABASE'!$X$194,K114='EXPENSE DATABASE'!$Z$187,K114='EXPENSE DATABASE'!$Z$188,K114='EXPENSE DATABASE'!$Z$189,K114='EXPENSE DATABASE'!$Z$190,K114='EXPENSE DATABASE'!$Z$191,K114='EXPENSE DATABASE'!$Z$192,K114='EXPENSE DATABASE'!$Z$193,K114='EXPENSE DATABASE'!$Z$194),O114,\"\")","v":""},{"$f":"IF(OR(K114='EXPENSE DATABASE'!$T$189,K114='EXPENSE DATABASE'!$T$190,K114='EXPENSE DATABASE'!$T$191),O114,\"\")","v":""},{"$f":"VLOOKUP(I114,'EXPENSE DATABASE'!$B$41:$C$65,2,FALSE)","v":{"$error":"#N/A"}},100,{"$f":"VLOOKUP(J114,'EXPENSE DATABASE'!$B$69:$C$168,2,FALSE)","v":{"$error":"#N/A"}},101,{"$f":"VLOOKUP(K114,'EXPENSE DATABASE'!$B$6:$C$35,2,FALSE)","v":{"$error":"#N/A"}},31,{"$f":"VLOOKUP(L114,'EXPENSE DATABASE'!$B$173:$C$176,2,FALSE)","v":{"$error":"#N/A"}},100,0,0,{"$f":"IF(L114=T('EXPENSE DATABASE'!$E$173),O114,0)","v":0},{"$f":"IF(L114=T('EXPENSE DATABASE'!$E$174),O114,0)","v":0},{"$f":"IF(L114=T('EXPENSE DATABASE'!$E$175),O114,0)","v":0},0,101,{"$nulls":5},"TOTAL INCOME",{"$f":"SUM(Table6[TOTAL AMOUNT])","v":{"v":175000,"d":"$175,000.00"}},{"$f":"SUM(Table6['# of Transactions])","v":1}]
[0,0,{"$nulls":12},{"v":0,"d":"$0.00"},{"v":0,"d":"$0.00"},{"v":0,"d":"$0.00"},0,{"$f":"IF(OR(K115='EXPENSE DATABASE'!$V$187,K115='EXPENSE DATABASE'!$V$188,K115='EXPENSE DATABASE'!$V$189,K115='EXPENSE DATABASE'!$V$190,K115='EXPENSE DATABASE'!$V$191,K115='EXPENSE DATABASE'!$V$192,K115='EXPENSE DATABASE'!$V$193,K115='EXPENSE DATABASE'!$V$194,K115='EXPENSE DATABASE'!$X$187,K115='EXPENSE DATABASE'!$X$188,K115='EXPENSE DATABASE'!$X$189,K115='EXPENSE DATABASE'!$X$190,K115='EXPENSE DATABASE'!$X$191,K115='EXPENSE DATABASE'!$X$192,K115='EXPENSE DATABASE'!$X$193,K115='EXPENSE DATABASE'!$X$194,K115='EXPENSE DATABASE'!$Z$187,K115='EXPENSE DATABASE'!$Z$188,K115='EXPENSE DATABASE'!$Z$189,K115='EXPENSE DATABASE'!$Z$190,K115='EXPENSE DATABASE'!$Z$191,K115='EXPENSE DATABASE'!$Z$192,K115='EXPENSE DATABASE'!$Z$193,K115='EXPENSE DATABASE'!$Z$194),O115,\"\")","v":""},{"$f":"IF(OR(K115='EXPENSE DATABASE'!$T$189,K115='EXPENSE DATABASE'!$T$190,K115='EXPENSE DATABASE'!$T$191),O115,\"\")","v":""},{"$f":"VLOOKUP(I115,'EXPENSE DATABASE'!$B$41:$C$65,2,FALSE)","v":{"$error":"#N/A"}},100,{"$f":"VLOOKUP(J115,'EXPENSE DATABASE'!$B$69:$C$168,2,FALSE)","v":{"$error":"#N/A"}},101,{"$f":"VLOOKUP(K115,'EXPENSE DATABASE'!$B$6:$C$35,2,FALSE)","v":{"$error":"#N/A"}},31,{"$f":"VLOOKUP(L115,'EXPENSE DATABASE'!$B$173:$C$176,2,FALSE)","v":{"$error":"#N/A"}},100,0,0,{"$f":"IF(L115=T('EXPENSE DATABASE'!$E$173),O115,0)","v":0},{"$f":"IF(L115=T('EXPENSE DATABASE'!$E$174),O115,0)","v":0},{"$f":"IF(L115=T('EXPENSE DATABASE'!$E$175),O115,0)","v":0},0,102]
[0,0,{"$nulls":12},{"v":0,"d":"$0.00"},{"v":0,"d":"$0.00"},{"v":0,"d":"$0.00"},0,{"$f":"IF(OR(K116='EXPENSE DATABASE'!$V$187,K116='EXPENSE DATABASE'!$V$188,K116='EXPENSE DATABASE'!$V$189,K116='EXPENSE DATABASE'!$V$190,K116='EXPENSE DATABASE'!$V$191,K116='EXPENSE DATABASE'!$V$192,K116='EXPENSE DATABASE'!$V$193,K116='EXPENSE DATABASE'!$V$194,K116='EXPENSE DATABASE'!$X$187,K116='EXPENSE DATABASE'!$X$188,K116='EXPENSE DATABASE'!$X$189,K116='EXPENSE DATABASE'!$X$190,K116='EXPENSE DATABASE'!$X$191,K116='EXPENSE DATABASE'!$X$192,K116='EXPENSE DATABASE'!$X$193,K116='EXPENSE DATABASE'!$X$194,K116='EXPENSE DATABASE'!$Z$187,K116='EXPENSE DATABASE'!$Z$188,K116='EXPENSE DATABASE'!$Z$189,K116='EXPENSE DATABASE'!$Z$190,K116='EXPENSE DATABASE'!$Z$191,K116='EXPENSE DATABASE'!$Z$192,K116='EXPENSE DATABASE'!$Z$193,K116='EXPENSE DATABASE'!$Z$194),O116,\"\")","v":""},{"$f":"IF(OR(K116='EXPENSE DATABASE'!$T$189,K116='EXPENSE DATABASE'!$T$190,K116='EXPENSE DATABASE'!$T$191),O116,\"\")","v":""},{"$f":"VLOOKUP(I116,'EXPENSE DATABASE'!$B$41:$C$65,2,FALSE)","v":{"$error":"#N/A"}},100,{"$f":"VLOOKUP(J116,'EXPENSE DATABASE'!$B$69:$C$168,2,FALSE)","v":{"$error":"#N/A"}},101,{"$f":"VLOOKUP(K116,'EXPENSE DATABASE'!$B$6:$C$35,2,FALSE)","v":{"$error":"#N/A"}},31,{"$f":"VLOOKUP(L116,'EXPENSE DATABASE'!$B$173:$C$176,2,FALSE)","v":{"$error":"#N/A"}},100,0,0,{"$f":"IF(L116=T('EXPENSE DATABASE'!$E$173),O116,0)","v":0},{"$f":"IF(L116=T('EXPENSE DATABASE'!$E$174),O116,0)","v":0},{"$f":"IF(L116=T('EXPENSE DATABASE'!$E$175),O116,0)","v":0},0,103]
[0,0,{"$nulls":12},{"v":0,"d":"$0.00"},{"v":0,"d":"$0.00"},{"v":0,"d":"$0.00"},0,{"$f":"IF(OR(K117='EXPENSE DATABASE'!$V$187,K117='EXPENSE DATABASE'!$V$188,K117='EXPENSE DATABASE'!$V$189,K117='EXPENSE DATABASE'!$V$190,K117='EXPENSE DATABASE'!$V$191,K117='EXPENSE DATABASE'!$V$192,K117='EXPENSE DATABASE'!$V$193,K117='EXPENSE DATABASE'!$V$194,K117='EXPENSE DATABASE'!$X$187,K117='EXPENSE DATABASE'!$X$188,K117='EXPENSE DATABASE'!$X$189,K117='EXPENSE DATABASE'!$X$190,K117='EXPENSE DATABASE'!$X$191,K117='EXPENSE DATABASE'!$X$192,K117='EXPENSE DATABASE'!$X$193,K117='EXPENSE DATABASE'!$X$194,K117='EXPENSE DATABASE'!$Z$187,K117='EXPENSE DATABASE'!$Z$188,K117='EXPENSE DATABASE'!$Z$189,K117='EXPENSE DATABASE'!$Z$190,K117='EXPENSE DATABASE'!$Z$191,K117='EXPENSE DATABASE'!$Z$192,K117='EXPENSE DATABASE'!$Z$193,K117='EXPENSE DATABASE'!$Z$194),O117,\"\")","v":""},{"$f":"IF(OR(K117='EXPENSE DATABASE'!$T$189,K117='EXPENSE DATABASE'!$T$190,K117='EXPENSE DATABASE'!$T$191),O117,\"\")","v":""},{"$f":"VLOOKUP(I117,'EXPENSE DATABASE'!$B$41:$C$65,2,FALSE)","v":{"$error":"#N/A"}},100,{"$f":"VLOOKUP(J117,'EXPENSE DATABASE'!$B$69:$C$168,2,FALSE)","v":{"$error":"#N/A"}},101,{"$f":"VLOOKUP(K117,'EXPENSE DATABASE'!$B$6:$C$35,2,FALSE)","v":{"$error":"#N/A"}},31,{"$f":"VLOOKUP(L117,'EXPENSE DATABASE'!$B$173:$C$176,2,FALSE)","v":{"$error":"#N/A"}},100,0,0,{"$f":"IF(L117=T('EXPENSE DATABASE'!$E$173),O117,0)","v":0},{"$f":"IF(L117=T('EXPENSE DATABASE'!$E$174),O117,0)","v":0},{"$f":"IF(L117=T('EXPENSE DATABASE'!$E$175),O117,0)","v":0},0,104]
[0,0,{"$nulls":12},{"v":0,"d":"$0.00"},{"v":0,"d":"$0.00"},{"v":0,"d":"$0.00"},0,{"$f":"IF(OR(K118='EXPENSE DATABASE'!$V$187,K118='EXPENSE DATABASE'!$V$188,K118='EXPENSE DATABASE'!$V$189,K118='EXPENSE DATABASE'!$V$190,K118='EXPENSE DATABASE'!$V$191,K118='EXPENSE DATABASE'!$V$192,K118='EXPENSE DATABASE'!$V$193,K118='EXPENSE DATABASE'!$V$194,K118='EXPENSE DATABASE'!$X$187,K118='EXPENSE DATABASE'!$X$188,K118='EXPENSE DATABASE'!$X$189,K118='EXPENSE DATABASE'!$X$190,K118='EXPENSE DATABASE'!$X$191,K118='EXPENSE DATABASE'!$X$192,K118='EXPENSE DATABASE'!$X$193,K118='EXPENSE DATABASE'!$X$194,K118='EXPENSE DATABASE'!$Z$187,K118='EXPENSE DATABASE'!$Z$188,K118='EXPENSE DATABASE'!$Z$189,K118='EXPENSE DATABASE'!$Z$190,K118='EXPENSE DATABASE'!$Z$191,K118='EXPENSE DATABASE'!$Z$192,K118='EXPENSE DATABASE'!$Z$193,K118='EXPENSE DATABASE'!$Z$194),O118,\"\")","v":""},{"$f":"IF(OR(K118='EXPENSE DATABASE'!$T$189,K118='EXPENSE DATABASE'!$T$190,K118='EXPENSE DATABASE'!$T$191),O118,\"\")","v":""},{"$f":"VLOOKUP(I118,'EXPENSE DATABASE'!$B$41:$C$65,2,FALSE)","v":{"$error":"#N/A"}},100,{"$f":"VLOOKUP(J118,'EXPENSE DATABASE'!$B$69:$C$168,2,FALSE)","v":{"$error":"#N/A"}},101,{"$f":"VLOOKUP(K118,'EXPENSE DATABASE'!$B$6:$C$35,2,FALSE)","v":{"$error":"#N/A"}},31,{"$f":"VLOOKUP(L118,'EXPENSE DATABASE'!$B$173:$C$176,2,FALSE)","v":{"$error":"#N/A"}},100,0,0,{"$f":"IF(L118=T('EXPENSE DATABASE'!$E$173),O118,0)","v":0},{"$f":"IF(L118=T('EXPENSE DATABASE'!$E$174),O118,0)","v":0},{"$f":"IF(L118=T('EXPENSE DATABASE'!$E$175),O118,0)","v":0},0,105]
[0,0,{"$nulls":12},{"v":0,"d":"$0.00"},{"v":0,"d":"$0.00"},{"v":0,"d":"$0.00"},0,{"$f":"IF(OR(K119='EXPENSE DATABASE'!$V$187,K119='EXPENSE DATABASE'!$V$188,K119='EXPENSE DATABASE'!$V$189,K119='EXPENSE DATABASE'!$V$190,K119='EXPENSE DATABASE'!$V$191,K119='EXPENSE DATABASE'!$V$192,K119='EXPENSE DATABASE'!$V$193,K119='EXPENSE DATABASE'!$V$194,K119='EXPENSE DATABASE'!$X$187,K119='EXPENSE DATABASE'!$X$188,K119='EXPENSE DATABASE'!$X$189,K119='EXPENSE DATABASE'!$X$190,K119='EXPENSE DATABASE'!$X$191,K119='EXPENSE DATABASE'!$X$192,K119='EXPENSE DATABASE'!$X$193,K119='EXPENSE DATABASE'!$X$194,K119='EXPENSE DATABASE'!$Z$187,K119='EXPENSE DATABASE'!$Z$188,K119='EXPENSE DATABASE'!$Z$189,K119='EXPENSE DATABASE'!$Z$190,K119='EXPENSE DATABASE'!$Z$191,K119='EXPENSE DATABASE'!$Z$192,K119='EXPENSE DATABASE'!$Z$193,K119='EXPENSE DATABASE'!$Z$194),O119,\"\")","v":""},{"$f":"IF(OR(K119='EXPENSE DATABASE'!$T$189,K119='EXPENSE DATABASE'!$T$190,K119='EXPENSE DATABASE'!$T$191),O119,\"\")","v":""},{"$f":"VLOOKUP(I119,'EXPENSE DATABASE'!$B$41:$C$65,2,FALSE)","v":{"$error":"#N/A"}},100,{"$f":"VLOOKUP(J119,'EXPENSE DATABASE'!$B$69:$C$168,2,FALSE)","v":{"$error":"#N/A"}},101,{"$f":"VLOOKUP(K119,'EXPENSE DATABASE'!$B$6:$C$35,2,FALSE)","v":{"$error":"#N/A"}},31,{"$f":"VLOOKUP(L119,'EXPENSE DATABASE'!$B$173:$C$176,2,FALSE)","v":{"$error":"#N/A"}},100,0,0,{"$f":"IF(L119=T('EXPENSE DATABASE'!$E$173),O119,0)","v":0},{"$f":"IF(L119=T('EXPENSE DATABASE'!$E$174),O119,0)","v":0},{"$f":"IF(L119=T('EXPENSE DATABASE'!$E$175),O119,0)","v":0},0,106]
[0,0,{"$nulls":12},{"v":0,"d":"$0.00"},{"v":0,"d":"$0.00"},{"v":0,"d":"$0.00"},0,{"$f":"IF(OR(K120='EXPENSE DATABASE'!$V$187,K120='EXPENSE DATABASE'!$V$188,K120='EXPENSE DATABASE'!$V$189,K120='EXPENSE DATABASE'!$V$190,K120='EXPENSE DATABASE'!$V$191,K120='EXPENSE DATABASE'!$V$192,K120='EXPENSE DATABASE'!$V$193,K120='EXPENSE DATABASE'!$V$194,K120='EXPENSE DATABASE'!$X$187,K120='EXPENSE DATABASE'!$X$188,K120='EXPENSE DATABASE'!$X$189,K120='EXPENSE DATABASE'!$X$190,K120='EXPENSE DATABASE'!$X$191,K120='EXPENSE DATABASE'!$X$192,K120='EXPENSE DATABASE'!$X$193,K120='EXPENSE DATABASE'!$X$194,K120='EXPENSE DATABASE'!$Z$187,K120='EXPENSE DATABASE'!$Z$188,K120='EXPENSE DATABASE'!$Z$189,K120='EXPENSE DATABASE'!$Z$190,K120='EXPENSE DATABASE'!$Z$191,K120='EXPENSE DATABASE'!$Z$192,K120='EXPENSE DATABASE'!$Z$193,K120='EXPENSE DATABASE'!$Z$194),O120,\"\")","v":""},{"$f":"IF(OR(K120='EXPENSE DATABASE'!$T$189,K120='EXPENSE DATABASE'!$T$190,K120='EXPENSE DATABASE'!$T$191),O120,\"\")","v":""},{"$f":"VLOOKUP(I120,'EXPENSE DATABASE'!$B$41:$C$65,2,FALSE)","v":{"$error":"#N/A"}},100,{"$f":"VLOOKUP(J120,'EXPENSE DATABASE'!$B$69:$C$168,2,FALSE)","v":{"$error":"#N/A"}},101,{"$f":"VLOOKUP(K120,'EXPENSE DATABASE'!$B$6:$C$35,2,FALSE)","v":{"$error":"#N/A"}},31,{"$f":"VLOOKUP(L120,'EXPENSE DATABASE'!$B$173:$C$176,2,FALSE)","v":{"$error":"#N/A"}},100,0,0,{"$f":"IF(L120=T('EXPENSE DATABASE'!$E$173),O120,0)","v":0},{"$f":"IF(L120=T('EXPENSE DATABASE'!$E$174),O120,0)","v":0},{"$f":"IF(L120=T('EXPENSE DATABASE'!$E$175),O120,0)","v":0},0,107]
[0,0,{"$nulls":12},{"v":0,"d":"$0.00"},{"v":0,"d":"$0.00"},{"v":0,"d":"$0.00"},0,{"$f":"IF(OR(K121='EXPENSE DATABASE'!$V$187,K121='EXPENSE DATABASE'!$V$188,K121='EXPENSE DATABASE'!$V$189,K121='EXPENSE DATABASE'!$V$190,K121='EXPENSE DATABASE'!$V$191,K121='EXPENSE DATABASE'!$V$192,K121='EXPENSE DATABASE'!$V$193,K121='EXPENSE DATABASE'!$V$194,K121='EXPENSE DATABASE'!$X$187,K121='EXPENSE DATABASE'!$X$188,K121='EXPENSE DATABASE'!$X$189,K121='EXPENSE DATABASE'!$X$190,K121='EXPENSE DATABASE'!$X$191,K121='EXPENSE DATABASE'!$X$192,K121='EXPENSE DATABASE'!$X$193,K121='EXPENSE DATABASE'!$X$194,K121='EXPENSE DATABASE'!$Z$187,K121='EXPENSE DATABASE'!$Z$188,K121='EXPENSE DATABASE'!$Z$189,K121='EXPENSE DATABASE'!$Z$190,K121='EXPENSE DATABASE'!$Z$191,K121='EXPENSE DATABASE'!$Z$192,K121='EXPENSE DATABASE'!$Z$193,K121='EXPENSE DATABASE'!$Z$194),O121,\"\")","v":""},{"$f":"IF(OR(K121='EXPENSE DATABASE'!$T$189,K121='EXPENSE DATABASE'!$T$190,K121='EXPENSE DATABASE'!$T$191),O121,\"\")","v":""},{"$f":"VLOOKUP(I121,'EXPENSE DATABASE'!$B$41:$C$65,2,FALSE)","v":{"$error":"#N/A"}},100,{"$f":"VLOOKUP(J121,'EXPENSE DATABASE'!$B$69:$C$168,2,FALSE)","v":{"$error":"#N/A"}},101,{"$f":"VLOOKUP(K121,'EXPENSE DATABASE'!$B$6:$C$35,2,FALSE)","v":{"$error":"#N/A"}},31,{"$f":"VLOOKUP(L121,'EXPENSE DATABASE'!$B$173:$C$176,2,FALSE)","v":{"$error":"#N/A"}},100,0,0,{"$f":"IF(L121=T('EXPENSE DATABASE'!$E$173),O121,0)","v":0},{"$f":"IF(L121=T('EXPENSE DATABASE'!$E$174),O121,0)","v":0},{"$f":"IF(L121=T('EXPENSE DATABASE'!$E$175),O121,0)","v":0},0,108]
[0,0,{"$nulls":12},{"v":0,"d":"$0.00"},{"v":0,"d":"$0.00"},{"v":0,"d":"$0.00"},0,{"$f":"IF(OR(K122='EXPENSE DATABASE'!$V$187,K122='EXPENSE DATABASE'!$V$188,K122='EXPENSE DATABASE'!$V$189,K122='EXPENSE DATABASE'!$V$190,K122='EXPENSE DATABASE'!$V$191,K122='EXPENSE DATABASE'!$V$192,K122='EXPENSE DATABASE'!$V$193,K122='EXPENSE DATABASE'!$V$194,K122='EXPENSE DATABASE'!$X$187,K122='EXPENSE DATABASE'!$X$188,K122='EXPENSE DATABASE'!$X$189,K122='EXPENSE DATABASE'!$X$190,K122='EXPENSE DATABASE'!$X$191,K122='EXPENSE DATABASE'!$X$192,K122='EXPENSE DATABASE'!$X$193,K122='EXPENSE DATABASE'!$X$194,K122='EXPENSE DATABASE'!$Z$187,K122='EXPENSE DATABASE'!$Z$188,K122='EXPENSE DATABASE'!$Z$189,K122='EXPENSE DATABASE'!$Z$190,K122='EXPENSE DATABASE'!$Z$191,K122='EXPENSE DATABASE'!$Z$192,K122='EXPENSE DATABASE'!$Z$193,K122='EXPENSE DATABASE'!$Z$194),O122,\"\")","v":""},{"$f":"IF(OR(K122='EXPENSE DATABASE'!$T$189,K122='EXPENSE DATABASE'!$T$190,K122='EXPENSE DATABASE'!$T$191),O122,\"\")","v":""},{"$f":"VLOOKUP(I122,'EXPENSE DATABASE'!$B$41:$C$65,2,FALSE)","v":{"$error":"#N/A"}},100,{"$f":"VLOOKUP(J122,'EXPENSE DATABASE'!$B$69:$C$168,2,FALSE)","v":{"$error":"#N/A"}},101,{"$f":"VLOOKUP(K122,'EXPENSE DATABASE'!$B$6:$C$35,2,FALSE)","v":{"$error":"#N/A"}},31,{"$f":"VLOOKUP(L122,'EXPENSE DATABASE'!$B$173:$C$176,2,FALSE)","v":{"$error":"#N/A"}},100,0,0,{"$f":"IF(L122=T('EXPENSE DATABASE'!$E$173),O122,0)","v":0},{"$f":"IF(L122=T('EXPENSE DATABASE'!$E$174),O122,0)","v":0},{"$f":"IF(L122=T('EXPENSE DATABASE'!$E$175),O122,0)","v":0},0,109]
[0,0,{"$nulls":12},{"v":0,"d":"$0.00"},{"v":0,"d":"$0.00"},{"v":0,"d":"$0.00"},0,{"$f":"IF(OR(K123='EXPENSE DATABASE'!$V$187,K123='EXPENSE DATABASE'!$V$188,K123='EXPENSE DATABASE'!$V$189,K123='EXPENSE DATABASE'!$V$190,K123='EXPENSE DATABASE'!$V$191,K123='EXPENSE DATABASE'!$V$192,K123='EXPENSE DATABASE'!$V$193,K123='EXPENSE DATABASE'!$V$194,K123='EXPENSE DATABASE'!$X$187,K123='EXPENSE DATABASE'!$X$188,K123='EXPENSE DATABASE'!$X$189,K123='EXPENSE DATABASE'!$X$190,K123='EXPENSE DATABASE'!$X$191,K123='EXPENSE DATABASE'!$X$192,K123='EXPENSE DATABASE'!$X$193,K123='EXPENSE DATABASE'!$X$194,K123='EXPENSE DATABASE'!$Z$187,K123='EXPENSE DATABASE'!$Z$188,K123='EXPENSE DATABASE'!$Z$189,K123='EXPENSE DATABASE'!$Z$190,K123='EXPENSE DATABASE'!$Z$191,K123='EXPENSE DATABASE'!$Z$192,K123='EXPENSE DATABASE'!$Z$193,K123='EXPENSE DATABASE'!$Z$194),O123,\"\")","v":""},{"$f":"IF(OR(K123='EXPENSE DATABASE'!$T$189,K123='EXPENSE DATABASE'!$T$190,K123='EXPENSE DATABASE'!$T$191),O123,\"\")","v":""},{"$f":"VLOOKUP(I123,'EXPENSE DATABASE'!$B$41:$C$65,2,FALSE)","v":{"$error":"#N/A"}},100,{"$f":"VLOOKUP(J123,'EXPENSE DATABASE'!$B$69:$C$168,2,FALSE)","v":{"$error":"#N/A"}},101,{"$f":"VLOOKUP(K123,'EXPENSE DATABASE'!$B$6:$C$35,2,FALSE)","v":{"$error":"#N/A"}},31,{"$f":"VLOOKUP(L123,'EXPENSE DATABASE'!$B$173:$C$176,2,FALSE)","v":{"$error":"#N/A"}},100,0,0,{"$f":"IF(L123=T('EXPENSE DATABASE'!$E$173),O123,0)","v":0},{"$f":"IF(L123=T('EXPENSE DATABASE'!$E$174),O123,0)","v":0},{"$f":"IF(L123=T('EXPENSE DATABASE'!$E$175),O123,0)","v":0},0,110]
[0,0,{"$nulls":12},{"v":0,"d":"$0.00"},{"v":0,"d":"$0.00"},{"v":0,"d":"$0.00"},0,{"$f":"IF(OR(K124='EXPENSE DATABASE'!$V$187,K124='EXPENSE DATABASE'!$V$188,K124='EXPENSE DATABASE'!$V$189,K124='EXPENSE DATABASE'!$V$190,K124='EXPENSE DATABASE'!$V$191,K124='EXPENSE DATABASE'!$V$192,K124='EXPENSE DATABASE'!$V$193,K124='EXPENSE DATABASE'!$V$194,K124='EXPENSE DATABASE'!$X$187,K124='EXPENSE DATABASE'!$X$188,K124='EXPENSE DATABASE'!$X$189,K124='EXPENSE DATABASE'!$X$190,K124='EXPENSE DATABASE'!$X$191,K124='EXPENSE DATABASE'!$X$192,K124='EXPENSE DATABASE'!$X$193,K124='EXPENSE DATABASE'!$X$194,K124='EXPENSE DATABASE'!$Z$187,K124='EXPENSE DATABASE'!$Z$188,K124='EXPENSE DATABASE'!$Z$189,K124='EXPENSE DATABASE'!$Z$190,K124='EXPENSE DATABASE'!$Z$191,K124='EXPENSE DATABASE'!$Z$192,K124='EXPENSE DATABASE'!$Z$193,K124='EXPENSE DATABASE'!$Z$194),O124,\"\")","v":""},{"$f":"IF(OR(K124='EXPENSE DATABASE'!$T$189,K124='EXPENSE DATABASE'!$T$190,K124='EXPENSE DATABASE'!$T$191),O124,\"\")","v":""},{"$f":"VLOOKUP(I124,'EXPENSE DATABASE'!$B$41:$C$65,2,FALSE)","v":{"$error":"#N/A"}},100,{"$f":"VLOOKUP(J124,'EXPENSE DATABASE'!$B$69:$C$168,2,FALSE)","v":{"$error":"#N/A"}},101,{"$f":"VLOOKUP(K124,'EXPENSE DATABASE'!$B$6:$C$35,2,FALSE)","v":{"$error":"#N/A"}},31,{"$f":"VLOOKUP(L124,'EXPENSE DATABASE'!$B$173:$C$176,2,FALSE)","v":{"$error":"#N/A"}},100,0,0,{"$f":"IF(L124=T('EXPENSE DATABASE'!$E$173),O124,0)","v":0},{"$f":"IF(L124=T('EXPENSE DATABASE'!$E$174),O124,0)","v":0},{"$f":"IF(L124=T('EXPENSE DATABASE'!$E$175),O124,0)","v":0},0,111]
[0,0,{"$nulls":12},{"v":0,"d":"$0.00"},{"v":0,"d":"$0.00"},{"v":0,"d":"$0.00"},0,{"$f":"IF(OR(K125='EXPENSE DATABASE'!$V$187,K125='EXPENSE DATABASE'!$V$188,K125='EXPENSE DATABASE'!$V$189,K125='EXPENSE DATABASE'!$V$190,K125='EXPENSE DATABASE'!$V$191,K125='EXPENSE DATABASE'!$V$192,K125='EXPENSE DATABASE'!$V$193,K125='EXPENSE DATABASE'!$V$194,K125='EXPENSE DATABASE'!$X$187,K125='EXPENSE DATABASE'!$X$188,K125='EXPENSE DATABASE'!$X$189,K125='EXPENSE DATABASE'!$X$190,K125='EXPENSE DATABASE'!$X$191,K125='EXPENSE DATABASE'!$X$192,K125='EXPENSE DATABASE'!$X$193,K125='EXPENSE DATABASE'!$X$194,K125='EXPENSE DATABASE'!$Z$187,K125='EXPENSE DATABASE'!$Z$188,K125='EXPENSE DATABASE'!$Z$189,K125='EXPENSE DATABASE'!$Z$190,K125='EXPENSE DATABASE'!$Z$191,K125='EXPENSE DATABASE'!$Z$192,K125='EXPENSE DATABASE'!$Z$193,K125='EXPENSE DATABASE'!$Z$194),O125,\"\")","v":""},{"$f":"IF(OR(K125='EXPENSE DATABASE'!$T$189,K125='EXPENSE DATABASE'!$T$190,K125='EXPENSE DATABASE'!$T$191),O125,\"\")","v":""},{"$f":"VLOOKUP(I125,'EXPENSE DATABASE'!$B$41:$C$65,2,FALSE)","v":{"$error":"#N/A"}},100,{"$f":"VLOOKUP(J125,'EXPENSE DATABASE'!$B$69:$C$168,2,FALSE)","v":{"$error":"#N/A"}},101,{"$f":"VLOOKUP(K125,'EXPENSE DATABASE'!$B$6:$C$35,2,FALSE)","v":{"$error":"#N/A"}},31,{"$f":"VLOOKUP(L125,'EXPENSE DATABASE'!$B$173:$C$176,2,FALSE)","v":{"$error":"#N/A"}},100,0,0,{"$f":"IF(L125=T('EXPENSE DATABASE'!$E$173),O125,0)","v":0},{"$f":"IF(L125=T('EXPENSE DATABASE'!$E$174),O125,0)","v":0},{"$f":"IF(L125=T('EXPENSE DATABASE'!$E$175),O125,0)","v":0},0,112]
[0,0,{"$nulls":12},{"v":0,"d":"$0.00"},{"v":0,"d":"$0.00"},{"v":0,"d":"$0.00"},0,{"$f":"IF(OR(K126='EXPENSE DATABASE'!$V$187,K126='EXPENSE DATABASE'!$V$188,K126='EXPENSE DATABASE'!$V$189,K126='EXPENSE DATABASE'!$V$190,K126='EXPENSE DATABASE'!$V$191,K126='EXPENSE DATABASE'!$V$192,K126='EXPENSE DATABASE'!$V$193,K126='EXPENSE DATABASE'!$V$194,K126='EXPENSE DATABASE'!$X$187,K126='EXPENSE DATABASE'!$X$188,K126='EXPENSE DATABASE'!$X$189,K126='EXPENSE DATABASE'!$X$190,K126='EXPENSE DATABASE'!$X$191,K126='EXPENSE DATABASE'!$X$192,K126='EXPENSE DATABASE'!$X$193,K126='EXPENSE DATABASE'!$X$194,K126='EXPENSE DATABASE'!$Z$187,K126='EXPENSE DATABASE'!$Z$188,K126='EXPENSE DATABASE'!$Z$189,K126='EXPENSE DATABASE'!$Z$190,K126='EXPENSE DATABASE'!$Z$191,K126='EXPENSE DATABASE'!$Z$192,K126='EXPENSE DATABASE'!$Z$193,K126='EXPENSE DATABASE'!$Z$194),O126,\"\")","v":""},{"$f":"IF(OR(K126='EXPENSE DATABASE'!$T$189,K126='EXPENSE DATABASE'!$T$190,K126='EXPENSE DATABASE'!$T$191),O126,\"\")","v":""},{"$f":"VLOOKUP(I126,'EXPENSE DATABASE'!$B$41:$C$65,2,FALSE)","v":{"$error":"#N/A"}},100,{"$f":"VLOOKUP(J126,'EXPENSE DATABASE'!$B$69:$C$168,2,FALSE)","v":{"$error":"#N/A"}},101,{"$f":"VLOOKUP(K126,'EXPENSE DATABASE'!$B$6:$C$35,2,FALSE)","v":{"$error":"#N/A"}},31,{"$f":"VLOOKUP(L126,'EXPENSE DATABASE'!$B$173:$C$176,2,FALSE)","v":{"$error":"#N/A"}},100,0,0,{"$f":"IF(L126=T('EXPENSE DATABASE'!$E$173),O126,0)","v":0},{"$f":"IF(L126=T('EXPENSE DATABASE'!$E$174),O126,0)","v":0},{"$f":"IF(L126=T('EXPENSE DATABASE'!$E$175),O126,0)","v":0},0,113]
[0,0,{"$nulls":12},{"v":0,"d":"$0.00"},{"v":0,"d":"$0.00"},{"v":0,"d":"$0.00"},0,{"$f":"IF(OR(K127='EXPENSE DATABASE'!$V$187,K127='EXPENSE DATABASE'!$V$188,K127='EXPENSE DATABASE'!$V$189,K127='EXPENSE DATABASE'!$V$190,K127='EXPENSE DATABASE'!$V$191,K127='EXPENSE DATABASE'!$V$192,K127='EXPENSE DATABASE'!$V$193,K127='EXPENSE DATABASE'!$V$194,K127='EXPENSE DATABASE'!$X$187,K127='EXPENSE DATABASE'!$X$188,K127='EXPENSE DATABASE'!$X$189,K127='EXPENSE DATABASE'!$X$190,K127='EXPENSE DATABASE'!$X$191,K127='EXPENSE DATABASE'!$X$192,K127='EXPENSE DATABASE'!$X$193,K127='EXPENSE DATABASE'!$X$194,K127='EXPENSE DATABASE'!$Z$187,K127='EXPENSE DATABASE'!$Z$188,K127='EXPENSE DATABASE'!$Z$189,K127='EXPENSE DATABASE'!$Z$190,K127='EXPENSE DATABASE'!$Z$191,K127='EXPENSE DATABASE'!$Z$192,K127='EXPENSE DATABASE'!$Z$193,K127='EXPENSE DATABASE'!$Z$194),O127,\"\")","v":""},{"$f":"IF(OR(K127='EXPENSE DATABASE'!$T$189,K127='EXPENSE DATABASE'!$T$190,K127='EXPENSE DATABASE'!$T$191),O127,\"\")","v":""},{"$f":"VLOOKUP(I127,'EXPENSE DATABASE'!$B$41:$C$65,2,FALSE)","v":{"$error":"#N/A"}},100,{"$f":"VLOOKUP(J127,'EXPENSE DATABASE'!$B$69:$C$168,2,FALSE)","v":{"$error":"#N/A"}},101,{"$f":"VLOOKUP(K127,'EXPENSE DATABASE'!$B$6:$C$35,2,FALSE)","v":{"$error":"#N/A"}},31,{"$f":"VLOOKUP(L127,'EXPENSE DATABASE'!$B$173:$C$176,2,FALSE)","v":{"$error":"#N/A"}},100,0,0,{"$f":"IF(L127=T('EXPENSE DATABASE'!$E$173),O127,0)","v":0},{"$f":"IF(L127=T('EXPENSE DATABASE'!$E$174),O127,0)","v":0},{"$f":"IF(L127=T('EXPENSE DATABASE'!$E$175),O127,0)","v":0},0,114]
[0,0,{"$nulls":12},{"v":0,"d":"$0.00"},{"v":0,"d":"$0.00"},{"v":0,"d":"$0.00"},0,{"$f":"IF(OR(K128='EXPENSE DATABASE'!$V$187,K128='EXPENSE DATABASE'!$V$188,K128='EXPENSE DATABASE'!$V$189,K128='EXPENSE DATABASE'!$V$190,K128='EXPENSE DATABASE'!$V$191,K128='EXPENSE DATABASE'!$V$192,K128='EXPENSE DATABASE'!$V$193,K128='EXPENSE DATABASE'!$V$194,K128='EXPENSE DATABASE'!$X$187,K128='EXPENSE DATABASE'!$X$188,K128='EXPENSE DATABASE'!$X$189,K128='EXPENSE DATABASE'!$X$190,K128='EXPENSE DATABASE'!$X$191,K128='EXPENSE DATABASE'!$X$192,K128='EXPENSE DATABASE'!$X$193,K128='EXPENSE DATABASE'!$X$194,K128='EXPENSE DATABASE'!$Z$187,K128='EXPENSE DATABASE'!$Z$188,K128='EXPENSE DATABASE'!$Z$189,K128='EXPENSE DATABASE'!$Z$190,K128='EXPENSE DATABASE'!$Z$191,K128='EXPENSE DATABASE'!$Z$192,K128='EXPENSE DATABASE'!$Z$193,K128='EXPENSE DATABASE'!$Z$194),O128,\"\")","v":""},{"$f":"IF(OR(K128='EXPENSE DATABASE'!$T$189,K128='EXPENSE DATABASE'!$T$190,K128='EXPENSE DATABASE'!$T$191),O128,\"\")","v":""},{"$f":"VLOOKUP(I128,'EXPENSE DATABASE'!$B$41:$C$65,2,FALSE)","v":{"$error":"#N/A"}},100,{"$f":"VLOOKUP(J128,'EXPENSE DATABASE'!$B$69:$C$168,2,FALSE)","v":{"$error":"#N/A"}},101,{"$f":"VLOOKUP(K128,'EXPENSE DATABASE'!$B$6:$C$35,2,FALSE)","v":{"$error":"#N/A"}},31,{"$f":"VLOOKUP(L128,'EXPENSE DATABASE'!$B$173:$C$176,2,FALSE)","v":{"$error":"#N/A"}},100,0,0,{"$f":"IF(L128=T('EXPENSE DATABASE'!$E$173),O128,0)","v":0},{"$f":"IF(L128=T('EXPENSE DATABASE'!$E$174),O128,0)","v":0},{"$f":"IF(L128=T('EXPENSE DATABASE'!$E$175),O128,0)","v":0},0,115]
[0,0,{"$nulls":12},{"v":0,"d":"$0.00"},{"v":0,"d":"$0.00"},{"v":0,"d":"$0.00"},0,{"$f":"IF(OR(K129='EXPENSE DATABASE'!$V$187,K129='EXPENSE DATABASE'!$V$188,K129='EXPENSE DATABASE'!$V$189,K129='EXPENSE DATABASE'!$V$190,K129='EXPENSE DATABASE'!$V$191,K129='EXPENSE DATABASE'!$V$192,K129='EXPENSE DATABASE'!$V$193,K129='EXPENSE DATABASE'!$V$194,K129='EXPENSE DATABASE'!$X$187,K129='EXPENSE DATABASE'!$X$188,K129='EXPENSE DATABASE'!$X$189,K129='EXPENSE DATABASE'!$X$190,K129='EXPENSE DATABASE'!$X$191,K129='EXPENSE DATABASE'!$X$192,K129='EXPENSE DATABASE'!$X$193,K129='EXPENSE DATABASE'!$X$194,K129='EXPENSE DATABASE'!$Z$187,K129='EXPENSE DATABASE'!$Z$188,K129='EXPENSE DATABASE'!$Z$189,K129='EXPENSE DATABASE'!$Z$190,K129='EXPENSE DATABASE'!$Z$191,K129='EXPENSE DATABASE'!$Z$192,K129='EXPENSE DATABASE'!$Z$193,K129='EXPENSE DATABASE'!$Z$194),O129,\"\")","v":""},{"$f":"IF(OR(K129='EXPENSE DATABASE'!$T$189,K129='EXPENSE DATABASE'!$T$190,K129='EXPENSE DATABASE'!$T$191),O129,\"\")","v":""},{"$f":"VLOOKUP(I129,'EXPENSE DATABASE'!$B$41:$C$65,2,FALSE)","v":{"$error":"#N/A"}},100,{"$f":"VLOOKUP(J129,'EXPENSE DATABASE'!$B$69:$C$168,2,FALSE)","v":{"$error":"#N/A"}},101,{"$f":"VLOOKUP(K129,'EXPENSE DATABASE'!$B$6:$C$35,2,FALSE)","v":{"$error":"#N/A"}},31,{"$f":"VLOOKUP(L129,'EXPENSE DATABASE'!$B$173:$C$176,2,FALSE)","v":{"$error":"#N/A"}},100,0,0,{"$f":"IF(L129=T('EXPENSE DATABASE'!$E$173),O129,0)","v":0},{"$f":"IF(L129=T('EXPENSE DATABASE'!$E$174),O129,0)","v":0},{"$f":"IF(L129=T('EXPENSE DATABASE'!$E$175),O129,0)","v":0},0,116]
[0,0,{"$nulls":12},{"v":0,"d":"$0.00"},{"v":0,"d":"$0.00"},{"v":0,"d":"$0.00"},0,{"$f":"IF(OR(K130='EXPENSE DATABASE'!$V$187,K130='EXPENSE DATABASE'!$V$188,K130='EXPENSE DATABASE'!$V$189,K130='EXPENSE DATABASE'!$V$190,K130='EXPENSE DATABASE'!$V$191,K130='EXPENSE DATABASE'!$V$192,K130='EXPENSE DATABASE'!$V$193,K130='EXPENSE DATABASE'!$V$194,K130='EXPENSE DATABASE'!$X$187,K130='EXPENSE DATABASE'!$X$188,K130='EXPENSE DATABASE'!$X$189,K130='EXPENSE DATABASE'!$X$190,K130='EXPENSE DATABASE'!$X$191,K130='EXPENSE DATABASE'!$X$192,K130='EXPENSE DATABASE'!$X$193,K130='EXPENSE DATABASE'!$X$194,K130='EXPENSE DATABASE'!$Z$187,K130='EXPENSE DATABASE'!$Z$188,K130='EXPENSE DATABASE'!$Z$189,K130='EXPENSE DATABASE'!$Z$190,K130='EXPENSE DATABASE'!$Z$191,K130='EXPENSE DATABASE'!$Z$192,K130='EXPENSE DATABASE'!$Z$193,K130='EXPENSE DATABASE'!$Z$194),O130,\"\")","v":""},{"$f":"IF(OR(K130='EXPENSE DATABASE'!$T$189,K130='EXPENSE DATABASE'!$T$190,K130='EXPENSE DATABASE'!$T$191),O130,\"\")","v":""},{"$f":"VLOOKUP(I130,'EXPENSE DATABASE'!$B$41:$C$65,2,FALSE)","v":{"$error":"#N/A"}},100,{"$f":"VLOOKUP(J130,'EXPENSE DATABASE'!$B$69:$C$168,2,FALSE)","v":{"$error":"#N/A"}},101,{"$f":"VLOOKUP(K130,'EXPENSE DATABASE'!$B$6:$C$35,2,FALSE)","v":{"$error":"#N/A"}},31,{"$f":"VLOOKUP(L130,'EXPENSE DATABASE'!$B$173:$C$176,2,FALSE)","v":{"$error":"#N/A"}},100,0,0,{"$f":"IF(L130=T('EXPENSE DATABASE'!$E$173),O130,0)","v":0},{"$f":"IF(L130=T('EXPENSE DATABASE'!$E$174),O130,0)","v":0},{"$f":"IF(L130=T('EXPENSE DATABASE'!$E$175),O130,0)","v":0},0,117]
[0,0,{"$nulls":12},{"v":0,"d":"$0.00"},{"v":0,"d":"$0.00"},{"v":0,"d":"$0.00"},0,{"$f":"IF(OR(K131='EXPENSE DATABASE'!$V$187,K131='EXPENSE DATABASE'!$V$188,K131='EXPENSE DATABASE'!$V$189,K131='EXPENSE DATABASE'!$V$190,K131='EXPENSE DATABASE'!$V$191,K131='EXPENSE DATABASE'!$V$192,K131='EXPENSE DATABASE'!$V$193,K131='EXPENSE DATABASE'!$V$194,K131='EXPENSE DATABASE'!$X$187,K131='EXPENSE DATABASE'!$X$188,K131='EXPENSE DATABASE'!$X$189,K131='EXPENSE DATABASE'!$X$190,K131='EXPENSE DATABASE'!$X$191,K131='EXPENSE DATABASE'!$X$192,K131='EXPENSE DATABASE'!$X$193,K131='EXPENSE DATABASE'!$X$194,K131='EXPENSE DATABASE'!$Z$187,K131='EXPENSE DATABASE'!$Z$188,K131='EXPENSE DATABASE'!$Z$189,K131='EXPENSE DATABASE'!$Z$190,K131='EXPENSE DATABASE'!$Z$191,K131='EXPENSE DATABASE'!$Z$192,K131='EXPENSE DATABASE'!$Z$193,K131='EXPENSE DATABASE'!$Z$194),O131,\"\")","v":""},{"$f":"IF(OR(K131='EXPENSE DATABASE'!$T$189,K131='EXPENSE DATABASE'!$T$190,K131='EXPENSE DATABASE'!$T$191),O131,\"\")","v":""},{"$f":"VLOOKUP(I131,'EXPENSE DATABASE'!$B$41:$C$65,2,FALSE)","v":{"$error":"#N/A"}},100,{"$f":"VLOOKUP(J131,'EXPENSE DATABASE'!$B$69:$C$168,2,FALSE)","v":{"$error":"#N/A"}},101,{"$f":"VLOOKUP(K131,'EXPENSE DATABASE'!$B$6:$C$35,2,FALSE)","v":{"$error":"#N/A"}},31,{"$f":"VLOOKUP(L131,'EXPENSE DATABASE'!$B$173:$C$176,2,FALSE)","v":{"$error":"#N/A"}},100,0,0,{"$f":"IF(L131=T('EXPENSE DATABASE'!$E$173),O131,0)","v":0},{"$f":"IF(L131=T('EXPENSE DATABASE'!$E$174),O131,0)","v":0},{"$f":"IF(L131=T('EXPENSE DATABASE'!$E$175),O131,0)","v":0},0,118]
[0,0,{"$nulls":12},{"v":0,"d":"$0.00"},{"v":0,"d":"$0.00"},{"v":0,"d":"$0.00"},0,{"$f":"IF(OR(K132='EXPENSE DATABASE'!$V$187,K132='EXPENSE DATABASE'!$V$188,K132='EXPENSE DATABASE'!$V$189,K132='EXPENSE DATABASE'!$V$190,K132='EXPENSE DATABASE'!$V$191,K132='EXPENSE DATABASE'!$V$192,K132='EXPENSE DATABASE'!$V$193,K132='EXPENSE DATABASE'!$V$194,K132='EXPENSE DATABASE'!$X$187,K132='EXPENSE DATABASE'!$X$188,K132='EXPENSE DATABASE'!$X$189,K132='EXPENSE DATABASE'!$X$190,K132='EXPENSE DATABASE'!$X$191,K132='EXPENSE DATABASE'!$X$192,K132='EXPENSE DATABASE'!$X$193,K132='EXPENSE DATABASE'!$X$194,K132='EXPENSE DATABASE'!$Z$187,K132='EXPENSE DATABASE'!$Z$188,K132='EXPENSE DATABASE'!$Z$189,K132='EXPENSE DATABASE'!$Z$190,K132='EXPENSE DATABASE'!$Z$191,K132='EXPENSE DATABASE'!$Z$192,K132='EXPENSE DATABASE'!$Z$193,K132='EXPENSE DATABASE'!$Z$194),O132,\"\")","v":""},{"$f":"IF(OR(K132='EXPENSE DATABASE'!$T$189,K132='EXPENSE DATABASE'!$T$190,K132='EXPENSE DATABASE'!$T$191),O132,\"\")","v":""},{"$f":"VLOOKUP(I132,'EXPENSE DATABASE'!$B$41:$C$65,2,FALSE)","v":{"$error":"#N/A"}},100,{"$f":"VLOOKUP(J132,'EXPENSE DATABASE'!$B$69:$C$168,2,FALSE)","v":{"$error":"#N/A"}},101,{"$f":"VLOOKUP(K132,'EXPENSE DATABASE'!$B$6:$C$35,2,FALSE)","v":{"$error":"#N/A"}},31,{"$f":"VLOOKUP(L132,'EXPENSE DATABASE'!$B$173:$C$176,2,FALSE)","v":{"$error":"#N/A"}},100,0,0,{"$f":"IF(L132=T('EXPENSE DATABASE'!$E$173),O132,0)","v":0},{"$f":"IF(L132=T('EXPENSE DATABASE'!$E$174),O132,0)","v":0},{"$f":"IF(L132=T('EXPENSE DATABASE'!$E$175),O132,0)","v":0},0,119]
[0,0,{"$nulls":12},{"v":0,"d":"$0.00"},{"v":0,"d":"$0.00"},{"v":0,"d":"$0.00"},0,{"$f":"IF(OR(K133='EXPENSE DATABASE'!$V$187,K133='EXPENSE DATABASE'!$V$188,K133='EXPENSE DATABASE'!$V$189,K133='EXPENSE DATABASE'!$V$190,K133='EXPENSE DATABASE'!$V$191,K133='EXPENSE DATABASE'!$V$192,K133='EXPENSE DATABASE'!$V$193,K133='EXPENSE DATABASE'!$V$194,K133='EXPENSE DATABASE'!$X$187,K133='EXPENSE DATABASE'!$X$188,K133='EXPENSE DATABASE'!$X$189,K133='EXPENSE DATABASE'!$X$190,K133='EXPENSE DATABASE'!$X$191,K133='EXPENSE DATABASE'!$X$192,K133='EXPENSE DATABASE'!$X$193,K133='EXPENSE DATABASE'!$X$194,K133='EXPENSE DATABASE'!$Z$187,K133='EXPENSE DATABASE'!$Z$188,K133='EXPENSE DATABASE'!$Z$189,K133='EXPENSE DATABASE'!$Z$190,K133='EXPENSE DATABASE'!$Z$191,K133='EXPENSE DATABASE'!$Z$192,K133='EXPENSE DATABASE'!$Z$193,K133='EXPENSE DATABASE'!$Z$194),O133,\"\")","v":""},{"$f":"IF(OR(K133='EXPENSE DATABASE'!$T$189,K133='EXPENSE DATABASE'!$T$190,K133='EXPENSE DATABASE'!$T$191),O133,\"\")","v":""},{"$f":"VLOOKUP(I133,'EXPENSE DATABASE'!$B$41:$C$65,2,FALSE)","v":{"$error":"#N/A"}},100,{"$f":"VLOOKUP(J133,'EXPENSE DATABASE'!$B$69:$C$168,2,FALSE)","v":{"$error":"#N/A"}},101,{"$f":"VLOOKUP(K133,'EXPENSE DATABASE'!$B$6:$C$35,2,FALSE)","v":{"$error":"#N/A"}},31,{"$f":"VLOOKUP(L133,'EXPENSE DATABASE'!$B$173:$C$176,2,FALSE)","v":{"$error":"#N/A"}},100,0,0,{"$f":"IF(L133=T('EXPENSE DATABASE'!$E$173),O133,0)","v":0},{"$f":"IF(L133=T('EXPENSE DATABASE'!$E$174),O133,0)","v":0},{"$f":"IF(L133=T('EXPENSE DATABASE'!$E$175),O133,0)","v":0},0,120]
[0,0,{"$nulls":12},{"v":0,"d":"$0.00"},{"v":0,"d":"$0.00"},{"v":0,"d":"$0.00"},0,{"$f":"IF(OR(K134='EXPENSE DATABASE'!$V$187,K134='EXPENSE DATABASE'!$V$188,K134='EXPENSE DATABASE'!$V$189,K134='EXPENSE DATABASE'!$V$190,K134='EXPENSE DATABASE'!$V$191,K134='EXPENSE DATABASE'!$V$192,K134='EXPENSE DATABASE'!$V$193,K134='EXPENSE DATABASE'!$V$194,K134='EXPENSE DATABASE'!$X$187,K134='EXPENSE DATABASE'!$X$188,K134='EXPENSE DATABASE'!$X$189,K134='EXPENSE DATABASE'!$X$190,K134='EXPENSE DATABASE'!$X$191,K134='EXPENSE DATABASE'!$X$192,K134='EXPENSE DATABASE'!$X$193,K134='EXPENSE DATABASE'!$X$194,K134='EXPENSE DATABASE'!$Z$187,K134='EXPENSE DATABASE'!$Z$188,K134='EXPENSE DATABASE'!$Z$189,K134='EXPENSE DATABASE'!$Z$190,K134='EXPENSE DATABASE'!$Z$191,K134='EXPENSE DATABASE'!$Z$192,K134='EXPENSE DATABASE'!$Z$193,K134='EXPENSE DATABASE'!$Z$194),O134,\"\")","v":""},{"$f":"IF(OR(K134='EXPENSE DATABASE'!$T$189,K134='EXPENSE DATABASE'!$T$190,K134='EXPENSE DATABASE'!$T$191),O134,\"\")","v":""},{"$f":"VLOOKUP(I134,'EXPENSE DATABASE'!$B$41:$C$65,2,FALSE)","v":{"$error":"#N/A"}},100,{"$f":"VLOOKUP(J134,'EXPENSE DATABASE'!$B$69:$C$168,2,FALSE)","v":{"$error":"#N/A"}},101,{"$f":"VLOOKUP(K134,'EXPENSE DATABASE'!$B$6:$C$35,2,FALSE)","v":{"$error":"#N/A"}},31,{"$f":"VLOOKUP(L134,'EXPENSE DATABASE'!$B$173:$C$176,2,FALSE)","v":{"$error":"#N/A"}},100,0,0,{"$f":"IF(L134=T('EXPENSE DATABASE'!$E$173),O134,0)","v":0},{"$f":"IF(L134=T('EXPENSE DATABASE'!$E$174),O134,0)","v":0},{"$f":"IF(L134=T('EXPENSE DATABASE'!$E$175),O134,0)","v":0},0,121]
[0,0,{"$nulls":12},{"v":0,"d":"$0.00"},{"v":0,"d":"$0.00"},{"v":0,"d":"$0.00"},0,{"$f":"IF(OR(K135='EXPENSE DATABASE'!$V$187,K135='EXPENSE DATABASE'!$V$188,K135='EXPENSE DATABASE'!$V$189,K135='EXPENSE DATABASE'!$V$190,K135='EXPENSE DATABASE'!$V$191,K135='EXPENSE DATABASE'!$V$192,K135='EXPENSE DATABASE'!$V$193,K135='EXPENSE DATABASE'!$V$194,K135='EXPENSE DATABASE'!$X$187,K135='EXPENSE DATABASE'!$X$188,K135='EXPENSE DATABASE'!$X$189,K135='EXPENSE DATABASE'!$X$190,K135='EXPENSE DATABASE'!$X$191,K135='EXPENSE DATABASE'!$X$192,K135='EXPENSE DATABASE'!$X$193,K135='EXPENSE DATABASE'!$X$194,K135='EXPENSE DATABASE'!$Z$187,K135='EXPENSE DATABASE'!$Z$188,K135='EXPENSE DATABASE'!$Z$189,K135='EXPENSE DATABASE'!$Z$190,K135='EXPENSE DATABASE'!$Z$191,K135='EXPENSE DATABASE'!$Z$192,K135='EXPENSE DATABASE'!$Z$193,K135='EXPENSE DATABASE'!$Z$194),O135,\"\")","v":""},{"$f":"IF(OR(K135='EXPENSE DATABASE'!$T$189,K135='EXPENSE DATABASE'!$T$190,K135='EXPENSE DATABASE'!$T$191),O135,\"\")","v":""},{"$f":"VLOOKUP(I135,'EXPENSE DATABASE'!$B$41:$C$65,2,FALSE)","v":{"$error":"#N/A"}},100,{"$f":"VLOOKUP(J135,'EXPENSE DATABASE'!$B$69:$C$168,2,FALSE)","v":{"$error":"#N/A"}},101,{"$f":"VLOOKUP(K135,'EXPENSE DATABASE'!$B$6:$C$35,2,FALSE)","v":{"$error":"#N/A"}},31,{"$f":"VLOOKUP(L135,'EXPENSE DATABASE'!$B$173:$C$176,2,FALSE)","v":{"$error":"#N/A"}},100,0,0,{"$f":"IF(L135=T('EXPENSE DATABASE'!$E$173),O135,0)","v":0},{"$f":"IF(L135=T('EXPENSE DATABASE'!$E$174),O135,0)","v":0},{"$f":"IF(L135=T('EXPENSE DATABASE'!$E$175),O135,0)","v":0},0,122]
[0,0,{"$nulls":12},{"v":0,"d":"$0.00"},{"v":0,"d":"$0.00"},{"v":0,"d":"$0.00"},0,{"$f":"IF(OR(K136='EXPENSE DATABASE'!$V$187,K136='EXPENSE DATABASE'!$V$188,K136='EXPENSE DATABASE'!$V$189,K136='EXPENSE DATABASE'!$V$190,K136='EXPENSE DATABASE'!$V$191,K136='EXPENSE DATABASE'!$V$192,K136='EXPENSE DATABASE'!$V$193,K136='EXPENSE DATABASE'!$V$194,K136='EXPENSE DATABASE'!$X$187,K136='EXPENSE DATABASE'!$X$188,K136='EXPENSE DATABASE'!$X$189,K136='EXPENSE DATABASE'!$X$190,K136='EXPENSE DATABASE'!$X$191,K136='EXPENSE DATABASE'!$X$192,K136='EXPENSE DATABASE'!$X$193,K136='EXPENSE DATABASE'!$X$194,K136='EXPENSE DATABASE'!$Z$187,K136='EXPENSE DATABASE'!$Z$188,K136='EXPENSE DATABASE'!$Z$189,K136='EXPENSE DATABASE'!$Z$190,K136='EXPENSE DATABASE'!$Z$191,K136='EXPENSE DATABASE'!$Z$192,K136='EXPENSE DATABASE'!$Z$193,K136='EXPENSE DATABASE'!$Z$194),O136,\"\")","v":""},{"$f":"IF(OR(K136='EXPENSE DATABASE'!$T$189,K136='EXPENSE DATABASE'!$T$190,K136='EXPENSE DATABASE'!$T$191),O136,\"\")","v":""},{"$f":"VLOOKUP(I136,'EXPENSE DATABASE'!$B$41:$C$65,2,FALSE)","v":{"$error":"#N/A"}},100,{"$f":"VLOOKUP(J136,'EXPENSE DATABASE'!$B$69:$C$168,2,FALSE)","v":{"$error":"#N/A"}},101,{"$f":"VLOOKUP(K136,'EXPENSE DATABASE'!$B$6:$C$35,2,FALSE)","v":{"$error":"#N/A"}},31,{"$f":"VLOOKUP(L136,'EXPENSE DATABASE'!$B$173:$C$176,2,FALSE)","v":{"$error":"#N/A"}},100,0,0,{"$f":"IF(L136=T('EXPENSE DATABASE'!$E$173),O136,0)","v":0},{"$f":"IF(L136=T('EXPENSE DATABASE'!$E$174),O136,0)","v":0},{"$f":"IF(L136=T('EXPENSE DATABASE'!$E$175),O136,0)","v":0},0,123]
[0,0,{"$nulls":12},{"v":0,"d":"$0.00"},{"v":0,"d":"$0.00"},{"v":0,"d":"$0.00"},0,{"$f":"IF(OR(K137='EXPENSE DATABASE'!$V$187,K137='EXPENSE DATABASE'!$V$188,K137='EXPENSE DATABASE'!$V$189,K137='EXPENSE DATABASE'!$V$190,K137='EXPENSE DATABASE'!$V$191,K137='EXPENSE DATABASE'!$V$192,K137='EXPENSE DATABASE'!$V$193,K137='EXPENSE DATABASE'!$V$194,K137='EXPENSE DATABASE'!$X$187,K137='EXPENSE DATABASE'!$X$188,K137='EXPENSE DATABASE'!$X$189,K137='EXPENSE DATABASE'!$X$190,K137='EXPENSE DATABASE'!$X$191,K137='EXPENSE DATABASE'!$X$192,K137='EXPENSE DATABASE'!$X$193,K137='EXPENSE DATABASE'!$X$194,K137='EXPENSE DATABASE'!$Z$187,K137='EXPENSE DATABASE'!$Z$188,K137='EXPENSE DATABASE'!$Z$189,K137='EXPENSE DATABASE'!$Z$190,K137='EXPENSE DATABASE'!$Z$191,K137='EXPENSE DATABASE'!$Z$192,K137='EXPENSE DATABASE'!$Z$193,K137='EXPENSE DATABASE'!$Z$194),O137,\"\")","v":""},{"$f":"IF(OR(K137='EXPENSE DATABASE'!$T$189,K137='EXPENSE DATABASE'!$T$190,K137='EXPENSE DATABASE'!$T$191),O137,\"\")","v":""},{"$f":"VLOOKUP(I137,'EXPENSE DATABASE'!$B$41:$C$65,2,FALSE)","v":{"$error":"#N/A"}},100,{"$f":"VLOOKUP(J137,'EXPENSE DATABASE'!$B$69:$C$168,2,FALSE)","v":{"$error":"#N/A"}},101,{"$f":"VLOOKUP(K137,'EXPENSE DATABASE'!$B$6:$C$35,2,FALSE)","v":{"$error":"#N/A"}},31,{"$f":"VLOOKUP(L137,'EXPENSE DATABASE'!$B$173:$C$176,2,FALSE)","v":{"$error":"#N/A"}},100,0,0,{"$f":"IF(L137=T('EXPENSE DATABASE'!$E$173),O137,0)","v":0},{"$f":"IF(L137=T('EXPENSE DATABASE'!$E$174),O137,0)","v":0},{"$f":"IF(L137=T('EXPENSE DATABASE'!$E$175),O137,0)","v":0},0,124]
[0,0,{"$nulls":12},{"v":0,"d":"$0.00"},{"v":0,"d":"$0.00"},{"v":0,"d":"$0.00"},0,{"$f":"IF(OR(K138='EXPENSE DATABASE'!$V$187,K138='EXPENSE DATABASE'!$V$188,K138='EXPENSE DATABASE'!$V$189,K138='EXPENSE DATABASE'!$V$190,K138='EXPENSE DATABASE'!$V$191,K138='EXPENSE DATABASE'!$V$192,K138='EXPENSE DATABASE'!$V$193,K138='EXPENSE DATABASE'!$V$194,K138='EXPENSE DATABASE'!$X$187,K138='EXPENSE DATABASE'!$X$188,K138='EXPENSE DATABASE'!$X$189,K138='EXPENSE DATABASE'!$X$190,K138='EXPENSE DATABASE'!$X$191,K138='EXPENSE DATABASE'!$X$192,K138='EXPENSE DATABASE'!$X$193,K138='EXPENSE DATABASE'!$X$194,K138='EXPENSE DATABASE'!$Z$187,K138='EXPENSE DATABASE'!$Z$188,K138='EXPENSE DATABASE'!$Z$189,K138='EXPENSE DATABASE'!$Z$190,K138='EXPENSE DATABASE'!$Z$191,K138='EXPENSE DATABASE'!$Z$192,K138='EXPENSE DATABASE'!$Z$193,K138='EXPENSE DATABASE'!$Z$194),O138,\"\")","v":""},{"$f":"IF(OR(K138='EXPENSE DATABASE'!$T$189,K138='EXPENSE DATABASE'!$T$190,K138='EXPENSE DATABASE'!$T$191),O138,\"\")","v":""},{"$f":"VLOOKUP(I138,'EXPENSE DATABASE'!$B$41:$C$65,2,FALSE)","v":{"$error":"#N/A"}},100,{"$f":"VLOOKUP(J138,'EXPENSE DATABASE'!$B$69:$C$168,2,FALSE)","v":{"$error":"#N/A"}},101,{"$f":"VLOOKUP(K138,'EXPENSE DATABASE'!$B$6:$C$35,2,FALSE)","v":{"$error":"#N/A"}},31,{"$f":"VLOOKUP(L138,'EXPENSE DATABASE'!$B$173:$C$176,2,FALSE)","v":{"$error":"#N/A"}},100,0,0,{"$f":"IF(L138=T('EXPENSE DATABASE'!$E$173),O138,0)","v":0},{"$f":"IF(L138=T('EXPENSE DATABASE'!$E$174),O138,0)","v":0},{"$f":"IF(L138=T('EXPENSE DATABASE'!$E$175),O138,0)","v":0},0,125]
[0,0,{"$nulls":12},{"v":0,"d":"$0.00"},{"v":0,"d":"$0.00"},{"v":0,"d":"$0.00"},0,{"$f":"IF(OR(K139='EXPENSE DATABASE'!$V$187,K139='EXPENSE DATABASE'!$V$188,K139='EXPENSE DATABASE'!$V$189,K139='EXPENSE DATABASE'!$V$190,K139='EXPENSE DATABASE'!$V$191,K139='EXPENSE DATABASE'!$V$192,K139='EXPENSE DATABASE'!$V$193,K139='EXPENSE DATABASE'!$V$194,K139='EXPENSE DATABASE'!$X$187,K139='EXPENSE DATABASE'!$X$188,K139='EXPENSE DATABASE'!$X$189,K139='EXPENSE DATABASE'!$X$190,K139='EXPENSE DATABASE'!$X$191,K139='EXPENSE DATABASE'!$X$192,K139='EXPENSE DATABASE'!$X$193,K139='EXPENSE DATABASE'!$X$194,K139='EXPENSE DATABASE'!$Z$187,K139='EXPENSE DATABASE'!$Z$188,K139='EXPENSE DATABASE'!$Z$189,K139='EXPENSE DATABASE'!$Z$190,K139='EXPENSE DATABASE'!$Z$191,K139='EXPENSE DATABASE'!$Z$192,K139='EXPENSE DATABASE'!$Z$193,K139='EXPENSE DATABASE'!$Z$194),O139,\"\")","v":""},{"$f":"IF(OR(K139='EXPENSE DATABASE'!$T$189,K139='EXPENSE DATABASE'!$T$190,K139='EXPENSE DATABASE'!$T$191),O139,\"\")","v":""},{"$f":"VLOOKUP(I139,'EXPENSE DATABASE'!$B$41:$C$65,2,FALSE)","v":{"$error":"#N/A"}},100,{"$f":"VLOOKUP(J139,'EXPENSE DATABASE'!$B$69:$C$168,2,FALSE)","v":{"$error":"#N/A"}},101,{"$f":"VLOOKUP(K139,'EXPENSE DATABASE'!$B$6:$C$35,2,FALSE)","v":{"$error":"#N/A"}},31,{"$f":"VLOOKUP(L139,'EXPENSE DATABASE'!$B$173:$C$176,2,FALSE)","v":{"$error":"#N/A"}},100,0,0,{"$f":"IF(L139=T('EXPENSE DATABASE'!$E$173),O139,0)","v":0},{"$f":"IF(L139=T('EXPENSE DATABASE'!$E$174),O139,0)","v":0},{"$f":"IF(L139=T('EXPENSE DATABASE'!$E$175),O139,0)","v":0},0,126]
[0,0,{"$nulls":12},{"v":0,"d":"$0.00"},{"v":0,"d":"$0.00"},{"v":0,"d":"$0.00"},0,{"$f":"IF(OR(K140='EXPENSE DATABASE'!$V$187,K140='EXPENSE DATABASE'!$V$188,K140='EXPENSE DATABASE'!$V$189,K140='EXPENSE DATABASE'!$V$190,K140='EXPENSE DATABASE'!$V$191,K140='EXPENSE DATABASE'!$V$192,K140='EXPENSE DATABASE'!$V$193,K140='EXPENSE DATABASE'!$V$194,K140='EXPENSE DATABASE'!$X$187,K140='EXPENSE DATABASE'!$X$188,K140='EXPENSE DATABASE'!$X$189,K140='EXPENSE DATABASE'!$X$190,K140='EXPENSE DATABASE'!$X$191,K140='EXPENSE DATABASE'!$X$192,K140='EXPENSE DATABASE'!$X$193,K140='EXPENSE DATABASE'!$X$194,K140='EXPENSE DATABASE'!$Z$187,K140='EXPENSE DATABASE'!$Z$188,K140='EXPENSE DATABASE'!$Z$189,K140='EXPENSE DATABASE'!$Z$190,K140='EXPENSE DATABASE'!$Z$191,K140='EXPENSE DATABASE'!$Z$192,K140='EXPENSE DATABASE'!$Z$193,K140='EXPENSE DATABASE'!$Z$194),O140,\"\")","v":""},{"$f":"IF(OR(K140='EXPENSE DATABASE'!$T$189,K140='EXPENSE DATABASE'!$T$190,K140='EXPENSE DATABASE'!$T$191),O140,\"\")","v":""},{"$f":"VLOOKUP(I140,'EXPENSE DATABASE'!$B$41:$C$65,2,FALSE)","v":{"$error":"#N/A"}},100,{"$f":"VLOOKUP(J140,'EXPENSE DATABASE'!$B$69:$C$168,2,FALSE)","v":{"$error":"#N/A"}},101,{"$f":"VLOOKUP(K140,'EXPENSE DATABASE'!$B$6:$C$35,2,FALSE)","v":{"$error":"#N/A"}},31,{"$f":"VLOOKUP(L140,'EXPENSE DATABASE'!$B$173:$C$176,2,FALSE)","v":{"$error":"#N/A"}},100,0,0,{"$f":"IF(L140=T('EXPENSE DATABASE'!$E$173),O140,0)","v":0},{"$f":"IF(L140=T('EXPENSE DATABASE'!$E$174),O140,0)","v":0},{"$f":"IF(L140=T('EXPENSE DATABASE'!$E$175),O140,0)","v":0},0,127]
[0,0,{"$nulls":12},{"v":0,"d":"$0.00"},{"v":0,"d":"$0.00"},{"v":0,"d":"$0.00"},0,{"$f":"IF(OR(K141='EXPENSE DATABASE'!$V$187,K141='EXPENSE DATABASE'!$V$188,K141='EXPENSE DATABASE'!$V$189,K141='EXPENSE DATABASE'!$V$190,K141='EXPENSE DATABASE'!$V$191,K141='EXPENSE DATABASE'!$V$192,K141='EXPENSE DATABASE'!$V$193,K141='EXPENSE DATABASE'!$V$194,K141='EXPENSE DATABASE'!$X$187,K141='EXPENSE DATABASE'!$X$188,K141='EXPENSE DATABASE'!$X$189,K141='EXPENSE DATABASE'!$X$190,K141='EXPENSE DATABASE'!$X$191,K141='EXPENSE DATABASE'!$X$192,K141='EXPENSE DATABASE'!$X$193,K141='EXPENSE DATABASE'!$X$194,K141='EXPENSE DATABASE'!$Z$187,K141='EXPENSE DATABASE'!$Z$188,K141='EXPENSE DATABASE'!$Z$189,K141='EXPENSE DATABASE'!$Z$190,K141='EXPENSE DATABASE'!$Z$191,K141='EXPENSE DATABASE'!$Z$192,K141='EXPENSE DATABASE'!$Z$193,K141='EXPENSE DATABASE'!$Z$194),O141,\"\")","v":""},{"$f":"IF(OR(K141='EXPENSE DATABASE'!$T$189,K141='EXPENSE DATABASE'!$T$190,K141='EXPENSE DATABASE'!$T$191),O141,\"\")","v":""},{"$f":"VLOOKUP(I141,'EXPENSE DATABASE'!$B$41:$C$65,2,FALSE)","v":{"$error":"#N/A"}},100,{"$f":"VLOOKUP(J141,'EXPENSE DATABASE'!$B$69:$C$168,2,FALSE)","v":{"$error":"#N/A"}},101,{"$f":"VLOOKUP(K141,'EXPENSE DATABASE'!$B$6:$C$35,2,FALSE)","v":{"$error":"#N/A"}},31,{"$f":"VLOOKUP(L141,'EXPENSE DATABASE'!$B$173:$C$176,2,FALSE)","v":{"$error":"#N/A"}},100,0,0,{"$f":"IF(L141=T('EXPENSE DATABASE'!$E$173),O141,0)","v":0},{"$f":"IF(L141=T('EXPENSE DATABASE'!$E$174),O141,0)","v":0},{"$f":"IF(L141=T('EXPENSE DATABASE'!$E$175),O141,0)","v":0},0,128]
[{"$f":"IF(COUNTA(D142,E142,F142,G142,H142,I142,J142,K142,L142,M142,N142)>0,1,0)","v":0},{"$f":"IF((COUNTA(I142:L142)=4),1,-1)*A142","v":0},{"$nulls":12},{"$f":"M142*N142","v":{"v":0,"d":"$0.00"}},{"$f":"IF(OR(D142=\"No\",D142=\"\"),O142,0)","v":{"v":0,"d":"$0.00"}},{"$f":"IF(D142=\"Yes\",O142,0)","v":{"v":0,"d":"$0.00"}},{"$f":"IF(O142>0,1,0)","v":0},{"$f":"IF(OR(K142='EXPENSE DATABASE'!$V$187,K142='EXPENSE DATABASE'!$V$188,K142='EXPENSE DATABASE'!$V$189,K142='EXPENSE DATABASE'!$V$190,K142='EXPENSE DATABASE'!$V$191,K142='EXPENSE DATABASE'!$V$192,K142='EXPENSE DATABASE'!$V$193,K142='EXPENSE DATABASE'!$V$194,K142='EXPENSE DATABASE'!$X$187,K142='EXPENSE DATABASE'!$X$188,K142='EXPENSE DATABASE'!$X$189,K142='EXPENSE DATABASE'!$X$190,K142='EXPENSE DATABASE'!$X$191,K142='EXPENSE DATABASE'!$X$192,K142='EXPENSE DATABASE'!$X$193,K142='EXPENSE DATABASE'!$X$194,K142='EXPENSE DATABASE'!$Z$187,K142='EXPENSE DATABASE'!$Z$188,K142='EXPENSE DATABASE'!$Z$189,K142='EXPENSE DATABASE'!$Z$190,K142='EXPENSE DATABASE'!$Z$191,K142='EXPENSE DATABASE'!$Z$192,K142='EXPENSE DATABASE'!$Z$193,K142='EXPENSE DATABASE'!$Z$194),O142,\"\")","v":""},{"$f":"IF(OR(K142='EXPENSE DATABASE'!$T$189,K142='EXPENSE DATABASE'!$T$190,K142='EXPENSE DATABASE'!$T$191),O142,\"\")","v":""},{"$f":"VLOOKUP(I142,'EXPENSE DATABASE'!$B$41:$C$65,2,FALSE)","v":{"$error":"#N/A"}},{"$f":"IFERROR(U142,100)","v":100},{"$f":"VLOOKUP(J142,'EXPENSE DATABASE'!$B$69:$C$168,2,FALSE)","v":{"$error":"#N/A"}},{"$f":"IFERROR(W142,101)","v":101},{"$f":"VLOOKUP(K142,'EXPENSE DATABASE'!$B$6:$C$35,2,FALSE)","v":{"$error":"#N/A"}},{"$f":"IFERROR(Y142,31)","v":31},{"$f":"VLOOKUP(L142,'EXPENSE DATABASE'!$B$173:$C$176,2,FALSE)","v":{"$error":"#N/A"}},{"$f":"IFERROR(AA142,100)","v":100},{"$f":"IF(K142=0,0,1)","v":0},{"$f":"IF(J142=0,0,1)","v":0},{"$f":"IF(L142=T('EXPENSE DATABASE'!$E$173),O142,0)","v":0},{"$f":"IF(L142=T('EXPENSE DATABASE'!$E$174),O142,0)","v":0},{"$f":"IF(L142=T('EXPENSE DATABASE'!$E$175),O142,0)","v":0},{"$f":"IF(OR(N142=0,E142=0),0,MONTH(E142))","v":0},129]
[0,0,{"$nulls":12},{"v":0,"d":"$0.00"},{"v":0,"d":"$0.00"},{"v":0,"d":"$0.00"},0,{"$f":"IF(OR(K143='EXPENSE DATABASE'!$V$187,K143='EXPENSE DATABASE'!$V$188,K143='EXPENSE DATABASE'!$V$189,K143='EXPENSE DATABASE'!$V$190,K143='EXPENSE DATABASE'!$V$191,K143='EXPENSE DATABASE'!$V$192,K143='EXPENSE DATABASE'!$V$193,K143='EXPENSE DATABASE'!$V$194,K143='EXPENSE DATABASE'!$X$187,K143='EXPENSE DATABASE'!$X$188,K143='EXPENSE DATABASE'!$X$189,K143='EXPENSE DATABASE'!$X$190,K143='EXPENSE DATABASE'!$X$191,K143='EXPENSE DATABASE'!$X$192,K143='EXPENSE DATABASE'!$X$193,K143='EXPENSE DATABASE'!$X$194,K143='EXPENSE DATABASE'!$Z$187,K143='EXPENSE DATABASE'!$Z$188,K143='EXPENSE DATABASE'!$Z$189,K143='EXPENSE DATABASE'!$Z$190,K143='EXPENSE DATABASE'!$Z$191,K143='EXPENSE DATABASE'!$Z$192,K143='EXPENSE DATABASE'!$Z$193,K143='EXPENSE DATABASE'!$Z$194),O143,\"\")","v":""},{"$f":"IF(OR(K143='EXPENSE DATABASE'!$T$189,K143='EXPENSE DATABASE'!$T$190,K143='EXPENSE DATABASE'!$T$191),O143,\"\")","v":""},{"$f":"VLOOKUP(I143,'EXPENSE DATABASE'!$B$41:$C$65,2,FALSE)","v":{"$error":"#N/A"}},100,{"$f":"VLOOKUP(J143,'EXPENSE DATABASE'!$B$69:$C$168,2,FALSE)","v":{"$error":"#N/A"}},101,{"$f":"VLOOKUP(K143,'EXPENSE DATABASE'!$B$6:$C$35,2,FALSE)","v":{"$error":"#N/A"}},31,{"$f":"VLOOKUP(L143,'EXPENSE DATABASE'!$B$173:$C$176,2,FALSE)","v":{"$error":"#N/A"}},100,0,0,{"$f":"IF(L143=T('EXPENSE DATABASE'!$E$173),O143,0)","v":0},{"$f":"IF(L143=T('EXPENSE DATABASE'!$E$174),O143,0)","v":0},{"$f":"IF(L143=T('EXPENSE DATABASE'!$E$175),O143,0)","v":0},0,130]
[0,0,{"$nulls":12},{"v":0,"d":"$0.00"},{"v":0,"d":"$0.00"},{"v":0,"d":"$0.00"},0,{"$f":"IF(OR(K144='EXPENSE DATABASE'!$V$187,K144='EXPENSE DATABASE'!$V$188,K144='EXPENSE DATABASE'!$V$189,K144='EXPENSE DATABASE'!$V$190,K144='EXPENSE DATABASE'!$V$191,K144='EXPENSE DATABASE'!$V$192,K144='EXPENSE DATABASE'!$V$193,K144='EXPENSE DATABASE'!$V$194,K144='EXPENSE DATABASE'!$X$187,K144='EXPENSE DATABASE'!$X$188,K144='EXPENSE DATABASE'!$X$189,K144='EXPENSE DATABASE'!$X$190,K144='EXPENSE DATABASE'!$X$191,K144='EXPENSE DATABASE'!$X$192,K144='EXPENSE DATABASE'!$X$193,K144='EXPENSE DATABASE'!$X$194,K144='EXPENSE DATABASE'!$Z$187,K144='EXPENSE DATABASE'!$Z$188,K144='EXPENSE DATABASE'!$Z$189,K144='EXPENSE DATABASE'!$Z$190,K144='EXPENSE DATABASE'!$Z$191,K144='EXPENSE DATABASE'!$Z$192,K144='EXPENSE DATABASE'!$Z$193,K144='EXPENSE DATABASE'!$Z$194),O144,\"\")","v":""},{"$f":"IF(OR(K144='EXPENSE DATABASE'!$T$189,K144='EXPENSE DATABASE'!$T$190,K144='EXPENSE DATABASE'!$T$191),O144,\"\")","v":""},{"$f":"VLOOKUP(I144,'EXPENSE DATABASE'!$B$41:$C$65,2,FALSE)","v":{"$error":"#N/A"}},100,{"$f":"VLOOKUP(J144,'EXPENSE DATABASE'!$B$69:$C$168,2,FALSE)","v":{"$error":"#N/A"}},101,{"$f":"VLOOKUP(K144,'EXPENSE DATABASE'!$B$6:$C$35,2,FALSE)","v":{"$error":"#N/A"}},31,{"$f":"VLOOKUP(L144,'EXPENSE DATABASE'!$B$173:$C$176,2,FALSE)","v":{"$error":"#N/A"}},100,0,0,{"$f":"IF(L144=T('EXPENSE DATABASE'!$E$173),O144,0)","v":0},{"$f":"IF(L144=T('EXPENSE DATABASE'!$E$174),O144,0)","v":0},{"$f":"IF(L144=T('EXPENSE DATABASE'!$E$175),O144,0)","v":0},0,131]
[0,0,{"$nulls":12},{"v":0,"d":"$0.00"},{"v":0,"d":"$0.00"},{"v":0,"d":"$0.00"},0,{"$f":"IF(OR(K145='EXPENSE DATABASE'!$V$187,K145='EXPENSE DATABASE'!$V$188,K145='EXPENSE DATABASE'!$V$189,K145='EXPENSE DATABASE'!$V$190,K145='EXPENSE DATABASE'!$V$191,K145='EXPENSE DATABASE'!$V$192,K145='EXPENSE DATABASE'!$V$193,K145='EXPENSE DATABASE'!$V$194,K145='EXPENSE DATABASE'!$X$187,K145='EXPENSE DATABASE'!$X$188,K145='EXPENSE DATABASE'!$X$189,K145='EXPENSE DATABASE'!$X$190,K145='EXPENSE DATABASE'!$X$191,K145='EXPENSE DATABASE'!$X$192,K145='EXPENSE DATABASE'!$X$193,K145='EXPENSE DATABASE'!$X$194,K145='EXPENSE DATABASE'!$Z$187,K145='EXPENSE DATABASE'!$Z$188,K145='EXPENSE DATABASE'!$Z$189,K145='EXPENSE DATABASE'!$Z$190,K145='EXPENSE DATABASE'!$Z$191,K145='EXPENSE DATABASE'!$Z$192,K145='EXPENSE DATABASE'!$Z$193,K145='EXPENSE DATABASE'!$Z$194),O145,\"\")","v":""},{"$f":"IF(OR(K145='EXPENSE DATABASE'!$T$189,K145='EXPENSE DATABASE'!$T$190,K145='EXPENSE DATABASE'!$T$191),O145,\"\")","v":""},{"$f":"VLOOKUP(I145,'EXPENSE DATABASE'!$B$41:$C$65,2,FALSE)","v":{"$error":"#N/A"}},100,{"$f":"VLOOKUP(J145,'EXPENSE DATABASE'!$B$69:$C$168,2,FALSE)","v":{"$error":"#N/A"}},101,{"$f":"VLOOKUP(K145,'EXPENSE DATABASE'!$B$6:$C$35,2,FALSE)","v":{"$error":"#N/A"}},31,{"$f":"VLOOKUP(L145,'EXPENSE DATABASE'!$B$173:$C$176,2,FALSE)","v":{"$error":"#N/A"}},100,0,0,{"$f":"IF(L145=T('EXPENSE DATABASE'!$E$173),O145,0)","v":0},{"$f":"IF(L145=T('EXPENSE DATABASE'!$E$174),O145,0)","v":0},{"$f":"IF(L145=T('EXPENSE DATABASE'!$E$175),O145,0)","v":0},0,132]
[0,0,{"$nulls":12},{"v":0,"d":"$0.00"},{"v":0,"d":"$0.00"},{"v":0,"d":"$0.00"},0,{"$f":"IF(OR(K146='EXPENSE DATABASE'!$V$187,K146='EXPENSE DATABASE'!$V$188,K146='EXPENSE DATABASE'!$V$189,K146='EXPENSE DATABASE'!$V$190,K146='EXPENSE DATABASE'!$V$191,K146='EXPENSE DATABASE'!$V$192,K146='EXPENSE DATABASE'!$V$193,K146='EXPENSE DATABASE'!$V$194,K146='EXPENSE DATABASE'!$X$187,K146='EXPENSE DATABASE'!$X$188,K146='EXPENSE DATABASE'!$X$189,K146='EXPENSE DATABASE'!$X$190,K146='EXPENSE DATABASE'!$X$191,K146='EXPENSE DATABASE'!$X$192,K146='EXPENSE DATABASE'!$X$193,K146='EXPENSE DATABASE'!$X$194,K146='EXPENSE DATABASE'!$Z$187,K146='EXPENSE DATABASE'!$Z$188,K146='EXPENSE DATABASE'!$Z$189,K146='EXPENSE DATABASE'!$Z$190,K146='EXPENSE DATABASE'!$Z$191,K146='EXPENSE DATABASE'!$Z$192,K146='EXPENSE DATABASE'!$Z$193,K146='EXPENSE DATABASE'!$Z$194),O146,\"\")","v":""},{"$f":"IF(OR(K146='EXPENSE DATABASE'!$T$189,K146='EXPENSE DATABASE'!$T$190,K146='EXPENSE DATABASE'!$T$191),O146,\"\")","v":""},{"$f":"VLOOKUP(I146,'EXPENSE DATABASE'!$B$41:$C$65,2,FALSE)","v":{"$error":"#N/A"}},100,{"$f":"VLOOKUP(J146,'EXPENSE DATABASE'!$B$69:$C$168,2,FALSE)","v":{"$error":"#N/A"}},101,{"$f":"VLOOKUP(K146,'EXPENSE DATABASE'!$B$6:$C$35,2,FALSE)","v":{"$error":"#N/A"}},31,{"$f":"VLOOKUP(L146,'EXPENSE DATABASE'!$B$173:$C$176,2,FALSE)","v":{"$error":"#N/A"}},100,0,0,{"$f":"IF(L146=T('EXPENSE DATABASE'!$E$173),O146,0)","v":0},{"$f":"IF(L146=T('EXPENSE DATABASE'!$E$174),O146,0)","v":0},{"$f":"IF(L146=T('EXPENSE DATABASE'!$E$175),O146,0)","v":0},0,133]
[0,0,{"$nulls":12},{"v":0,"d":"$0.00"},{"v":0,"d":"$0.00"},{"v":0,"d":"$0.00"},0,{"$f":"IF(OR(K147='EXPENSE DATABASE'!$V$187,K147='EXPENSE DATABASE'!$V$188,K147='EXPENSE DATABASE'!$V$189,K147='EXPENSE DATABASE'!$V$190,K147='EXPENSE DATABASE'!$V$191,K147='EXPENSE DATABASE'!$V$192,K147='EXPENSE DATABASE'!$V$193,K147='EXPENSE DATABASE'!$V$194,K147='EXPENSE DATABASE'!$X$187,K147='EXPENSE DATABASE'!$X$188,K147='EXPENSE DATABASE'!$X$189,K147='EXPENSE DATABASE'!$X$190,K147='EXPENSE DATABASE'!$X$191,K147='EXPENSE DATABASE'!$X$192,K147='EXPENSE DATABASE'!$X$193,K147='EXPENSE DATABASE'!$X$194,K147='EXPENSE DATABASE'!$Z$187,K147='EXPENSE DATABASE'!$Z$188,K147='EXPENSE DATABASE'!$Z$189,K147='EXPENSE DATABASE'!$Z$190,K147='EXPENSE DATABASE'!$Z$191,K147='EXPENSE DATABASE'!$Z$192,K147='EXPENSE DATABASE'!$Z$193,K147='EXPENSE DATABASE'!$Z$194),O147,\"\")","v":""},{"$f":"IF(OR(K147='EXPENSE DATABASE'!$T$189,K147='EXPENSE DATABASE'!$T$190,K147='EXPENSE DATABASE'!$T$191),O147,\"\")","v":""},{"$f":"VLOOKUP(I147,'EXPENSE DATABASE'!$B$41:$C$65,2,FALSE)","v":{"$error":"#N/A"}},100,{"$f":"VLOOKUP(J147,'EXPENSE DATABASE'!$B$69:$C$168,2,FALSE)","v":{"$error":"#N/A"}},101,{"$f":"VLOOKUP(K147,'EXPENSE DATABASE'!$B$6:$C$35,2,FALSE)","v":{"$error":"#N/A"}},31,{"$f":"VLOOKUP(L147,'EXPENSE DATABASE'!$B$173:$C$176,2,FALSE)","v":{"$error":"#N/A"}},100,0,0,{"$f":"IF(L147=T('EXPENSE DATABASE'!$E$173),O147,0)","v":0},{"$f":"IF(L147=T('EXPENSE DATABASE'!$E$174),O147,0)","v":0},{"$f":"IF(L147=T('EXPENSE DATABASE'!$E$175),O147,0)","v":0},0,134]
[0,0,{"$nulls":12},{"v":0,"d":"$0.00"},{"v":0,"d":"$0.00"},{"v":0,"d":"$0.00"},0,{"$f":"IF(OR(K148='EXPENSE DATABASE'!$V$187,K148='EXPENSE DATABASE'!$V$188,K148='EXPENSE DATABASE'!$V$189,K148='EXPENSE DATABASE'!$V$190,K148='EXPENSE DATABASE'!$V$191,K148='EXPENSE DATABASE'!$V$192,K148='EXPENSE DATABASE'!$V$193,K148='EXPENSE DATABASE'!$V$194,K148='EXPENSE DATABASE'!$X$187,K148='EXPENSE DATABASE'!$X$188,K148='EXPENSE DATABASE'!$X$189,K148='EXPENSE DATABASE'!$X$190,K148='EXPENSE DATABASE'!$X$191,K148='EXPENSE DATABASE'!$X$192,K148='EXPENSE DATABASE'!$X$193,K148='EXPENSE DATABASE'!$X$194,K148='EXPENSE DATABASE'!$Z$187,K148='EXPENSE DATABASE'!$Z$188,K148='EXPENSE DATABASE'!$Z$189,K148='EXPENSE DATABASE'!$Z$190,K148='EXPENSE DATABASE'!$Z$191,K148='EXPENSE DATABASE'!$Z$192,K148='EXPENSE DATABASE'!$Z$193,K148='EXPENSE DATABASE'!$Z$194),O148,\"\")","v":""},{"$f":"IF(OR(K148='EXPENSE DATABASE'!$T$189,K148='EXPENSE DATABASE'!$T$190,K148='EXPENSE DATABASE'!$T$191),O148,\"\")","v":""},{"$f":"VLOOKUP(I148,'EXPENSE DATABASE'!$B$41:$C$65,2,FALSE)","v":{"$error":"#N/A"}},100,{"$f":"VLOOKUP(J148,'EXPENSE DATABASE'!$B$69:$C$168,2,FALSE)","v":{"$error":"#N/A"}},101,{"$f":"VLOOKUP(K148,'EXPENSE DATABASE'!$B$6:$C$35,2,FALSE)","v":{"$error":"#N/A"}},31,{"$f":"VLOOKUP(L148,'EXPENSE DATABASE'!$B$173:$C$176,2,FALSE)","v":{"$error":"#N/A"}},100,0,0,{"$f":"IF(L148=T('EXPENSE DATABASE'!$E$173),O148,0)","v":0},{"$f":"IF(L148=T('EXPENSE DATABASE'!$E$174),O148,0)","v":0},{"$f":"IF(L148=T('EXPENSE DATABASE'!$E$175),O148,0)","v":0},0,135]
[0,0,{"$nulls":12},{"v":0,"d":"$0.00"},{"v":0,"d":"$0.00"},{"v":0,"d":"$0.00"},0,{"$f":"IF(OR(K149='EXPENSE DATABASE'!$V$187,K149='EXPENSE DATABASE'!$V$188,K149='EXPENSE DATABASE'!$V$189,K149='EXPENSE DATABASE'!$V$190,K149='EXPENSE DATABASE'!$V$191,K149='EXPENSE DATABASE'!$V$192,K149='EXPENSE DATABASE'!$V$193,K149='EXPENSE DATABASE'!$V$194,K149='EXPENSE DATABASE'!$X$187,K149='EXPENSE DATABASE'!$X$188,K149='EXPENSE DATABASE'!$X$189,K149='EXPENSE DATABASE'!$X$190,K149='EXPENSE DATABASE'!$X$191,K149='EXPENSE DATABASE'!$X$192,K149='EXPENSE DATABASE'!$X$193,K149='EXPENSE DATABASE'!$X$194,K149='EXPENSE DATABASE'!$Z$187,K149='EXPENSE DATABASE'!$Z$188,K149='EXPENSE DATABASE'!$Z$189,K149='EXPENSE DATABASE'!$Z$190,K149='EXPENSE DATABASE'!$Z$191,K149='EXPENSE DATABASE'!$Z$192,K149='EXPENSE DATABASE'!$Z$193,K149='EXPENSE DATABASE'!$Z$194),O149,\"\")","v":""},{"$f":"IF(OR(K149='EXPENSE DATABASE'!$T$189,K149='EXPENSE DATABASE'!$T$190,K149='EXPENSE DATABASE'!$T$191),O149,\"\")","v":""},{"$f":"VLOOKUP(I149,'EXPENSE DATABASE'!$B$41:$C$65,2,FALSE)","v":{"$error":"#N/A"}},100,{"$f":"VLOOKUP(J149,'EXPENSE DATABASE'!$B$69:$C$168,2,FALSE)","v":{"$error":"#N/A"}},101,{"$f":"VLOOKUP(K149,'EXPENSE DATABASE'!$B$6:$C$35,2,FALSE)","v":{"$error":"#N/A"}},31,{"$f":"VLOOKUP(L149,'EXPENSE DATABASE'!$B$173:$C$176,2,FALSE)","v":{"$error":"#N/A"}},100,0,0,{"$f":"IF(L149=T('EXPENSE DATABASE'!$E$173),O149,0)","v":0},{"$f":"IF(L149=T('EXPENSE DATABASE'!$E$174),O149,0)","v":0},{"$f":"IF(L149=T('EXPENSE DATABASE'!$E$175),O149,0)","v":0},0,136]
[0,0,{"$nulls":12},{"v":0,"d":"$0.00"},{"v":0,"d":"$0.00"},{"v":0,"d":"$0.00"},0,{"$f":"IF(OR(K150='EXPENSE DATABASE'!$V$187,K150='EXPENSE DATABASE'!$V$188,K150='EXPENSE DATABASE'!$V$189,K150='EXPENSE DATABASE'!$V$190,K150='EXPENSE DATABASE'!$V$191,K150='EXPENSE DATABASE'!$V$192,K150='EXPENSE DATABASE'!$V$193,K150='EXPENSE DATABASE'!$V$194,K150='EXPENSE DATABASE'!$X$187,K150='EXPENSE DATABASE'!$X$188,K150='EXPENSE DATABASE'!$X$189,K150='EXPENSE DATABASE'!$X$190,K150='EXPENSE DATABASE'!$X$191,K150='EXPENSE DATABASE'!$X$192,K150='EXPENSE DATABASE'!$X$193,K150='EXPENSE DATABASE'!$X$194,K150='EXPENSE DATABASE'!$Z$187,K150='EXPENSE DATABASE'!$Z$188,K150='EXPENSE DATABASE'!$Z$189,K150='EXPENSE DATABASE'!$Z$190,K150='EXPENSE DATABASE'!$Z$191,K150='EXPENSE DATABASE'!$Z$192,K150='EXPENSE DATABASE'!$Z$193,K150='EXPENSE DATABASE'!$Z$194),O150,\"\")","v":""},{"$f":"IF(OR(K150='EXPENSE DATABASE'!$T$189,K150='EXPENSE DATABASE'!$T$190,K150='EXPENSE DATABASE'!$T$191),O150,\"\")","v":""},{"$f":"VLOOKUP(I150,'EXPENSE DATABASE'!$B$41:$C$65,2,FALSE)","v":{"$error":"#N/A"}},100,{"$f":"VLOOKUP(J150,'EXPENSE DATABASE'!$B$69:$C$168,2,FALSE)","v":{"$error":"#N/A"}},101,{"$f":"VLOOKUP(K150,'EXPENSE DATABASE'!$B$6:$C$35,2,FALSE)","v":{"$error":"#N/A"}},31,{"$f":"VLOOKUP(L150,'EXPENSE DATABASE'!$B$173:$C$176,2,FALSE)","v":{"$error":"#N/A"}},100,0,0,{"$f":"IF(L150=T('EXPENSE DATABASE'!$E$173),O150,0)","v":0},{"$f":"IF(L150=T('EXPENSE DATABASE'!$E$174),O150,0)","v":0},{"$f":"IF(L150=T('EXPENSE DATABASE'!$E$175),O150,0)","v":0},0,137]
[0,0,{"$nulls":12},{"v":0,"d":"$0.00"},{"v":0,"d":"$0.00"},{"v":0,"d":"$0.00"},0,{"$f":"IF(OR(K151='EXPENSE DATABASE'!$V$187,K151='EXPENSE DATABASE'!$V$188,K151='EXPENSE DATABASE'!$V$189,K151='EXPENSE DATABASE'!$V$190,K151='EXPENSE DATABASE'!$V$191,K151='EXPENSE DATABASE'!$V$192,K151='EXPENSE DATABASE'!$V$193,K151='EXPENSE DATABASE'!$V$194,K151='EXPENSE DATABASE'!$X$187,K151='EXPENSE DATABASE'!$X$188,K151='EXPENSE DATABASE'!$X$189,K151='EXPENSE DATABASE'!$X$190,K151='EXPENSE DATABASE'!$X$191,K151='EXPENSE DATABASE'!$X$192,K151='EXPENSE DATABASE'!$X$193,K151='EXPENSE DATABASE'!$X$194,K151='EXPENSE DATABASE'!$Z$187,K151='EXPENSE DATABASE'!$Z$188,K151='EXPENSE DATABASE'!$Z$189,K151='EXPENSE DATABASE'!$Z$190,K151='EXPENSE DATABASE'!$Z$191,K151='EXPENSE DATABASE'!$Z$192,K151='EXPENSE DATABASE'!$Z$193,K151='EXPENSE DATABASE'!$Z$194),O151,\"\")","v":""},{"$f":"IF(OR(K151='EXPENSE DATABASE'!$T$189,K151='EXPENSE DATABASE'!$T$190,K151='EXPENSE DATABASE'!$T$191),O151,\"\")","v":""},{"$f":"VLOOKUP(I151,'EXPENSE DATABASE'!$B$41:$C$65,2,FALSE)","v":{"$error":"#N/A"}},100,{"$f":"VLOOKUP(J151,'EXPENSE DATABASE'!$B$69:$C$168,2,FALSE)","v":{"$error":"#N/A"}},101,{"$f":"VLOOKUP(K151,'EXPENSE DATABASE'!$B$6:$C$35,2,FALSE)","v":{"$error":"#N/A"}},31,{"$f":"VLOOKUP(L151,'EXPENSE DATABASE'!$B$173:$C$176,2,FALSE)","v":{"$error":"#N/A"}},100,0,0,{"$f":"IF(L151=T('EXPENSE DATABASE'!$E$173),O151,0)","v":0},{"$f":"IF(L151=T('EXPENSE DATABASE'!$E$174),O151,0)","v":0},{"$f":"IF(L151=T('EXPENSE DATABASE'!$E$175),O151,0)","v":0},0,138]
[0,0,{"$nulls":12},{"v":0,"d":"$0.00"},{"v":0,"d":"$0.00"},{"v":0,"d":"$0.00"},0,{"$f":"IF(OR(K152='EXPENSE DATABASE'!$V$187,K152='EXPENSE DATABASE'!$V$188,K152='EXPENSE DATABASE'!$V$189,K152='EXPENSE DATABASE'!$V$190,K152='EXPENSE DATABASE'!$V$191,K152='EXPENSE DATABASE'!$V$192,K152='EXPENSE DATABASE'!$V$193,K152='EXPENSE DATABASE'!$V$194,K152='EXPENSE DATABASE'!$X$187,K152='EXPENSE DATABASE'!$X$188,K152='EXPENSE DATABASE'!$X$189,K152='EXPENSE DATABASE'!$X$190,K152='EXPENSE DATABASE'!$X$191,K152='EXPENSE DATABASE'!$X$192,K152='EXPENSE DATABASE'!$X$193,K152='EXPENSE DATABASE'!$X$194,K152='EXPENSE DATABASE'!$Z$187,K152='EXPENSE DATABASE'!$Z$188,K152='EXPENSE DATABASE'!$Z$189,K152='EXPENSE DATABASE'!$Z$190,K152='EXPENSE DATABASE'!$Z$191,K152='EXPENSE DATABASE'!$Z$192,K152='EXPENSE DATABASE'!$Z$193,K152='EXPENSE DATABASE'!$Z$194),O152,\"\")","v":""},{"$f":"IF(OR(K152='EXPENSE DATABASE'!$T$189,K152='EXPENSE DATABASE'!$T$190,K152='EXPENSE DATABASE'!$T$191),O152,\"\")","v":""},{"$f":"VLOOKUP(I152,'EXPENSE DATABASE'!$B$41:$C$65,2,FALSE)","v":{"$error":"#N/A"}},100,{"$f":"VLOOKUP(J152,'EXPENSE DATABASE'!$B$69:$C$168,2,FALSE)","v":{"$error":"#N/A"}},101,{"$f":"VLOOKUP(K152,'EXPENSE DATABASE'!$B$6:$C$35,2,FALSE)","v":{"$error":"#N/A"}},31,{"$f":"VLOOKUP(L152,'EXPENSE DATABASE'!$B$173:$C$176,2,FALSE)","v":{"$error":"#N/A"}},100,0,0,{"$f":"IF(L152=T('EXPENSE DATABASE'!$E$173),O152,0)","v":0},{"$f":"IF(L152=T('EXPENSE DATABASE'!$E$174),O152,0)","v":0},{"$f":"IF(L152=T('EXPENSE DATABASE'!$E$175),O152,0)","v":0},0,139]
[0,0,{"$nulls":12},{"v":0,"d":"$0.00"},{"v":0,"d":"$0.00"},{"v":0,"d":"$0.00"},0,{"$f":"IF(OR(K153='EXPENSE DATABASE'!$V$187,K153='EXPENSE DATABASE'!$V$188,K153='EXPENSE DATABASE'!$V$189,K153='EXPENSE DATABASE'!$V$190,K153='EXPENSE DATABASE'!$V$191,K153='EXPENSE DATABASE'!$V$192,K153='EXPENSE DATABASE'!$V$193,K153='EXPENSE DATABASE'!$V$194,K153='EXPENSE DATABASE'!$X$187,K153='EXPENSE DATABASE'!$X$188,K153='EXPENSE DATABASE'!$X$189,K153='EXPENSE DATABASE'!$X$190,K153='EXPENSE DATABASE'!$X$191,K153='EXPENSE DATABASE'!$X$192,K153='EXPENSE DATABASE'!$X$193,K153='EXPENSE DATABASE'!$X$194,K153='EXPENSE DATABASE'!$Z$187,K153='EXPENSE DATABASE'!$Z$188,K153='EXPENSE DATABASE'!$Z$189,K153='EXPENSE DATABASE'!$Z$190,K153='EXPENSE DATABASE'!$Z$191,K153='EXPENSE DATABASE'!$Z$192,K153='EXPENSE DATABASE'!$Z$193,K153='EXPENSE DATABASE'!$Z$194),O153,\"\")","v":""},{"$f":"IF(OR(K153='EXPENSE DATABASE'!$T$189,K153='EXPENSE DATABASE'!$T$190,K153='EXPENSE DATABASE'!$T$191),O153,\"\")","v":""},{"$f":"VLOOKUP(I153,'EXPENSE DATABASE'!$B$41:$C$65,2,FALSE)","v":{"$error":"#N/A"}},100,{"$f":"VLOOKUP(J153,'EXPENSE DATABASE'!$B$69:$C$168,2,FALSE)","v":{"$error":"#N/A"}},101,{"$f":"VLOOKUP(K153,'EXPENSE DATABASE'!$B$6:$C$35,2,FALSE)","v":{"$error":"#N/A"}},31,{"$f":"VLOOKUP(L153,'EXPENSE DATABASE'!$B$173:$C$176,2,FALSE)","v":{"$error":"#N/A"}},100,0,0,{"$f":"IF(L153=T('EXPENSE DATABASE'!$E$173),O153,0)","v":0},{"$f":"IF(L153=T('EXPENSE DATABASE'!$E$174),O153,0)","v":0},{"$f":"IF(L153=T('EXPENSE DATABASE'!$E$175),O153,0)","v":0},0,140]
[0,0,{"$nulls":12},{"v":0,"d":"$0.00"},{"v":0,"d":"$0.00"},{"v":0,"d":"$0.00"},0,{"$f":"IF(OR(K154='EXPENSE DATABASE'!$V$187,K154='EXPENSE DATABASE'!$V$188,K154='EXPENSE DATABASE'!$V$189,K154='EXPENSE DATABASE'!$V$190,K154='EXPENSE DATABASE'!$V$191,K154='EXPENSE DATABASE'!$V$192,K154='EXPENSE DATABASE'!$V$193,K154='EXPENSE DATABASE'!$V$194,K154='EXPENSE DATABASE'!$X$187,K154='EXPENSE DATABASE'!$X$188,K154='EXPENSE DATABASE'!$X$189,K154='EXPENSE DATABASE'!$X$190,K154='EXPENSE DATABASE'!$X$191,K154='EXPENSE DATABASE'!$X$192,K154='EXPENSE DATABASE'!$X$193,K154='EXPENSE DATABASE'!$X$194,K154='EXPENSE DATABASE'!$Z$187,K154='EXPENSE DATABASE'!$Z$188,K154='EXPENSE DATABASE'!$Z$189,K154='EXPENSE DATABASE'!$Z$190,K154='EXPENSE DATABASE'!$Z$191,K154='EXPENSE DATABASE'!$Z$192,K154='EXPENSE DATABASE'!$Z$193,K154='EXPENSE DATABASE'!$Z$194),O154,\"\")","v":""},{"$f":"IF(OR(K154='EXPENSE DATABASE'!$T$189,K154='EXPENSE DATABASE'!$T$190,K154='EXPENSE DATABASE'!$T$191),O154,\"\")","v":""},{"$f":"VLOOKUP(I154,'EXPENSE DATABASE'!$B$41:$C$65,2,FALSE)","v":{"$error":"#N/A"}},100,{"$f":"VLOOKUP(J154,'EXPENSE DATABASE'!$B$69:$C$168,2,FALSE)","v":{"$error":"#N/A"}},101,{"$f":"VLOOKUP(K154,'EXPENSE DATABASE'!$B$6:$C$35,2,FALSE)","v":{"$error":"#N/A"}},31,{"$f":"VLOOKUP(L154,'EXPENSE DATABASE'!$B$173:$C$176,2,FALSE)","v":{"$error":"#N/A"}},100,0,0,{"$f":"IF(L154=T('EXPENSE DATABASE'!$E$173),O154,0)","v":0},{"$f":"IF(L154=T('EXPENSE DATABASE'!$E$174),O154,0)","v":0},{"$f":"IF(L154=T('EXPENSE DATABASE'!$E$175),O154,0)","v":0},0,141]
[0,0,{"$nulls":12},{"v":0,"d":"$0.00"},{"v":0,"d":"$0.00"},{"v":0,"d":"$0.00"},0,{"$f":"IF(OR(K155='EXPENSE DATABASE'!$V$187,K155='EXPENSE DATABASE'!$V$188,K155='EXPENSE DATABASE'!$V$189,K155='EXPENSE DATABASE'!$V$190,K155='EXPENSE DATABASE'!$V$191,K155='EXPENSE DATABASE'!$V$192,K155='EXPENSE DATABASE'!$V$193,K155='EXPENSE DATABASE'!$V$194,K155='EXPENSE DATABASE'!$X$187,K155='EXPENSE DATABASE'!$X$188,K155='EXPENSE DATABASE'!$X$189,K155='EXPENSE DATABASE'!$X$190,K155='EXPENSE DATABASE'!$X$191,K155='EXPENSE DATABASE'!$X$192,K155='EXPENSE DATABASE'!$X$193,K155='EXPENSE DATABASE'!$X$194,K155='EXPENSE DATABASE'!$Z$187,K155='EXPENSE DATABASE'!$Z$188,K155='EXPENSE DATABASE'!$Z$189,K155='EXPENSE DATABASE'!$Z$190,K155='EXPENSE DATABASE'!$Z$191,K155='EXPENSE DATABASE'!$Z$192,K155='EXPENSE DATABASE'!$Z$193,K155='EXPENSE DATABASE'!$Z$194),O155,\"\")","v":""},{"$f":"IF(OR(K155='EXPENSE DATABASE'!$T$189,K155='EXPENSE DATABASE'!$T$190,K155='EXPENSE DATABASE'!$T$191),O155,\"\")","v":""},{"$f":"VLOOKUP(I155,'EXPENSE DATABASE'!$B$41:$C$65,2,FALSE)","v":{"$error":"#N/A"}},100,{"$f":"VLOOKUP(J155,'EXPENSE DATABASE'!$B$69:$C$168,2,FALSE)","v":{"$error":"#N/A"}},101,{"$f":"VLOOKUP(K155,'EXPENSE DATABASE'!$B$6:$C$35,2,FALSE)","v":{"$error":"#N/A"}},31,{"$f":"VLOOKUP(L155,'EXPENSE DATABASE'!$B$173:$C$176,2,FALSE)","v":{"$error":"#N/A"}},100,0,0,{"$f":"IF(L155=T('EXPENSE DATABASE'!$E$173),O155,0)","v":0},{"$f":"IF(L155=T('EXPENSE DATABASE'!$E$174),O155,0)","v":0},{"$f":"IF(L155=T('EXPENSE DATABASE'!$E$175),O155,0)","v":0},0,142]
[0,0,{"$nulls":12},{"v":0,"d":"$0.00"},{"v":0,"d":"$0.00"},{"v":0,"d":"$0.00"},0,{"$f":"IF(OR(K156='EXPENSE DATABASE'!$V$187,K156='EXPENSE DATABASE'!$V$188,K156='EXPENSE DATABASE'!$V$189,K156='EXPENSE DATABASE'!$V$190,K156='EXPENSE DATABASE'!$V$191,K156='EXPENSE DATABASE'!$V$192,K156='EXPENSE DATABASE'!$V$193,K156='EXPENSE DATABASE'!$V$194,K156='EXPENSE DATABASE'!$X$187,K156='EXPENSE DATABASE'!$X$188,K156='EXPENSE DATABASE'!$X$189,K156='EXPENSE DATABASE'!$X$190,K156='EXPENSE DATABASE'!$X$191,K156='EXPENSE DATABASE'!$X$192,K156='EXPENSE DATABASE'!$X$193,K156='EXPENSE DATABASE'!$X$194,K156='EXPENSE DATABASE'!$Z$187,K156='EXPENSE DATABASE'!$Z$188,K156='EXPENSE DATABASE'!$Z$189,K156='EXPENSE DATABASE'!$Z$190,K156='EXPENSE DATABASE'!$Z$191,K156='EXPENSE DATABASE'!$Z$192,K156='EXPENSE DATABASE'!$Z$193,K156='EXPENSE DATABASE'!$Z$194),O156,\"\")","v":""},{"$f":"IF(OR(K156='EXPENSE DATABASE'!$T$189,K156='EXPENSE DATABASE'!$T$190,K156='EXPENSE DATABASE'!$T$191),O156,\"\")","v":""},{"$f":"VLOOKUP(I156,'EXPENSE DATABASE'!$B$41:$C$65,2,FALSE)","v":{"$error":"#N/A"}},100,{"$f":"VLOOKUP(J156,'EXPENSE DATABASE'!$B$69:$C$168,2,FALSE)","v":{"$error":"#N/A"}},101,{"$f":"VLOOKUP(K156,'EXPENSE DATABASE'!$B$6:$C$35,2,FALSE)","v":{"$error":"#N/A"}},31,{"$f":"VLOOKUP(L156,'EXPENSE DATABASE'!$B$173:$C$176,2,FALSE)","v":{"$error":"#N/A"}},100,0,0,{"$f":"IF(L156=T('EXPENSE DATABASE'!$E$173),O156,0)","v":0},{"$f":"IF(L156=T('EXPENSE DATABASE'!$E$174),O156,0)","v":0},{"$f":"IF(L156=T('EXPENSE DATABASE'!$E$175),O156,0)","v":0},0,143]
[0,0,{"$nulls":12},{"v":0,"d":"$0.00"},{"v":0,"d":"$0.00"},{"v":0,"d":"$0.00"},0,{"$f":"IF(OR(K157='EXPENSE DATABASE'!$V$187,K157='EXPENSE DATABASE'!$V$188,K157='EXPENSE DATABASE'!$V$189,K157='EXPENSE DATABASE'!$V$190,K157='EXPENSE DATABASE'!$V$191,K157='EXPENSE DATABASE'!$V$192,K157='EXPENSE DATABASE'!$V$193,K157='EXPENSE DATABASE'!$V$194,K157='EXPENSE DATABASE'!$X$187,K157='EXPENSE DATABASE'!$X$188,K157='EXPENSE DATABASE'!$X$189,K157='EXPENSE DATABASE'!$X$190,K157='EXPENSE DATABASE'!$X$191,K157='EXPENSE DATABASE'!$X$192,K157='EXPENSE DATABASE'!$X$193,K157='EXPENSE DATABASE'!$X$194,K157='EXPENSE DATABASE'!$Z$187,K157='EXPENSE DATABASE'!$Z$188,K157='EXPENSE DATABASE'!$Z$189,K157='EXPENSE DATABASE'!$Z$190,K157='EXPENSE DATABASE'!$Z$191,K157='EXPENSE DATABASE'!$Z$192,K157='EXPENSE DATABASE'!$Z$193,K157='EXPENSE DATABASE'!$Z$194),O157,\"\")","v":""},{"$f":"IF(OR(K157='EXPENSE DATABASE'!$T$189,K157='EXPENSE DATABASE'!$T$190,K157='EXPENSE DATABASE'!$T$191),O157,\"\")","v":""},{"$f":"VLOOKUP(I157,'EXPENSE DATABASE'!$B$41:$C$65,2,FALSE)","v":{"$error":"#N/A"}},100,{"$f":"VLOOKUP(J157,'EXPENSE DATABASE'!$B$69:$C$168,2,FALSE)","v":{"$error":"#N/A"}},101,{"$f":"VLOOKUP(K157,'EXPENSE DATABASE'!$B$6:$C$35,2,FALSE)","v":{"$error":"#N/A"}},31,{"$f":"VLOOKUP(L157,'EXPENSE DATABASE'!$B$173:$C$176,2,FALSE)","v":{"$error":"#N/A"}},100,0,0,{"$f":"IF(L157=T('EXPENSE DATABASE'!$E$173),O157,0)","v":0},{"$f":"IF(L157=T('EXPENSE DATABASE'!$E$174),O157,0)","v":0},{"$f":"IF(L157=T('EXPENSE DATABASE'!$E$175),O157,0)","v":0},0,144]
[0,0,{"$nulls":12},{"v":0,"d":"$0.00"},{"v":0,"d":"$0.00"},{"v":0,"d":"$0.00"},0,{"$f":"IF(OR(K158='EXPENSE DATABASE'!$V$187,K158='EXPENSE DATABASE'!$V$188,K158='EXPENSE DATABASE'!$V$189,K158='EXPENSE DATABASE'!$V$190,K158='EXPENSE DATABASE'!$V$191,K158='EXPENSE DATABASE'!$V$192,K158='EXPENSE DATABASE'!$V$193,K158='EXPENSE DATABASE'!$V$194,K158='EXPENSE DATABASE'!$X$187,K158='EXPENSE DATABASE'!$X$188,K158='EXPENSE DATABASE'!$X$189,K158='EXPENSE DATABASE'!$X$190,K158='EXPENSE DATABASE'!$X$191,K158='EXPENSE DATABASE'!$X$192,K158='EXPENSE DATABASE'!$X$193,K158='EXPENSE DATABASE'!$X$194,K158='EXPENSE DATABASE'!$Z$187,K158='EXPENSE DATABASE'!$Z$188,K158='EXPENSE DATABASE'!$Z$189,K158='EXPENSE DATABASE'!$Z$190,K158='EXPENSE DATABASE'!$Z$191,K158='EXPENSE DATABASE'!$Z$192,K158='EXPENSE DATABASE'!$Z$193,K158='EXPENSE DATABASE'!$Z$194),O158,\"\")","v":""},{"$f":"IF(OR(K158='EXPENSE DATABASE'!$T$189,K158='EXPENSE DATABASE'!$T$190,K158='EXPENSE DATABASE'!$T$191),O158,\"\")","v":""},{"$f":"VLOOKUP(I158,'EXPENSE DATABASE'!$B$41:$C$65,2,FALSE)","v":{"$error":"#N/A"}},100,{"$f":"VLOOKUP(J158,'EXPENSE DATABASE'!$B$69:$C$168,2,FALSE)","v":{"$error":"#N/A"}},101,{"$f":"VLOOKUP(K158,'EXPENSE DATABASE'!$B$6:$C$35,2,FALSE)","v":{"$error":"#N/A"}},31,{"$f":"VLOOKUP(L158,'EXPENSE DATABASE'!$B$173:$C$176,2,FALSE)","v":{"$error":"#N/A"}},100,0,0,{"$f":"IF(L158=T('EXPENSE DATABASE'!$E$173),O158,0)","v":0},{"$f":"IF(L158=T('EXPENSE DATABASE'!$E$174),O158,0)","v":0},{"$f":"IF(L158=T('EXPENSE DATABASE'!$E$175),O158,0)","v":0},0,145]
[0,0,{"$nulls":12},{"v":0,"d":"$0.00"},{"v":0,"d":"$0.00"},{"v":0,"d":"$0.00"},0,{"$f":"IF(OR(K159='EXPENSE DATABASE'!$V$187,K159='EXPENSE DATABASE'!$V$188,K159='EXPENSE DATABASE'!$V$189,K159='EXPENSE DATABASE'!$V$190,K159='EXPENSE DATABASE'!$V$191,K159='EXPENSE DATABASE'!$V$192,K159='EXPENSE DATABASE'!$V$193,K159='EXPENSE DATABASE'!$V$194,K159='EXPENSE DATABASE'!$X$187,K159='EXPENSE DATABASE'!$X$188,K159='EXPENSE DATABASE'!$X$189,K159='EXPENSE DATABASE'!$X$190,K159='EXPENSE DATABASE'!$X$191,K159='EXPENSE DATABASE'!$X$192,K159='EXPENSE DATABASE'!$X$193,K159='EXPENSE DATABASE'!$X$194,K159='EXPENSE DATABASE'!$Z$187,K159='EXPENSE DATABASE'!$Z$188,K159='EXPENSE DATABASE'!$Z$189,K159='EXPENSE DATABASE'!$Z$190,K159='EXPENSE DATABASE'!$Z$191,K159='EXPENSE DATABASE'!$Z$192,K159='EXPENSE DATABASE'!$Z$193,K159='EXPENSE DATABASE'!$Z$194),O159,\"\")","v":""},{"$f":"IF(OR(K159='EXPENSE DATABASE'!$T$189,K159='EXPENSE DATABASE'!$T$190,K159='EXPENSE DATABASE'!$T$191),O159,\"\")","v":""},{"$f":"VLOOKUP(I159,'EXPENSE DATABASE'!$B$41:$C$65,2,FALSE)","v":{"$error":"#N/A"}},100,{"$f":"VLOOKUP(J159,'EXPENSE DATABASE'!$B$69:$C$168,2,FALSE)","v":{"$error":"#N/A"}},101,{"$f":"VLOOKUP(K159,'EXPENSE DATABASE'!$B$6:$C$35,2,FALSE)","v":{"$error":"#N/A"}},31,{"$f":"VLOOKUP(L159,'EXPENSE DATABASE'!$B$173:$C$176,2,FALSE)","v":{"$error":"#N/A"}},100,0,0,{"$f":"IF(L159=T('EXPENSE DATABASE'!$E$173),O159,0)","v":0},{"$f":"IF(L159=T('EXPENSE DATABASE'!$E$174),O159,0)","v":0},{"$f":"IF(L159=T('EXPENSE DATABASE'!$E$175),O159,0)","v":0},0,146]
[0,0,{"$nulls":12},{"v":0,"d":"$0.00"},{"v":0,"d":"$0.00"},{"v":0,"d":"$0.00"},0,{"$f":"IF(OR(K160='EXPENSE DATABASE'!$V$187,K160='EXPENSE DATABASE'!$V$188,K160='EXPENSE DATABASE'!$V$189,K160='EXPENSE DATABASE'!$V$190,K160='EXPENSE DATABASE'!$V$191,K160='EXPENSE DATABASE'!$V$192,K160='EXPENSE DATABASE'!$V$193,K160='EXPENSE DATABASE'!$V$194,K160='EXPENSE DATABASE'!$X$187,K160='EXPENSE DATABASE'!$X$188,K160='EXPENSE DATABASE'!$X$189,K160='EXPENSE DATABASE'!$X$190,K160='EXPENSE DATABASE'!$X$191,K160='EXPENSE DATABASE'!$X$192,K160='EXPENSE DATABASE'!$X$193,K160='EXPENSE DATABASE'!$X$194,K160='EXPENSE DATABASE'!$Z$187,K160='EXPENSE DATABASE'!$Z$188,K160='EXPENSE DATABASE'!$Z$189,K160='EXPENSE DATABASE'!$Z$190,K160='EXPENSE DATABASE'!$Z$191,K160='EXPENSE DATABASE'!$Z$192,K160='EXPENSE DATABASE'!$Z$193,K160='EXPENSE DATABASE'!$Z$194),O160,\"\")","v":""},{"$f":"IF(OR(K160='EXPENSE DATABASE'!$T$189,K160='EXPENSE DATABASE'!$T$190,K160='EXPENSE DATABASE'!$T$191),O160,\"\")","v":""},{"$f":"VLOOKUP(I160,'EXPENSE DATABASE'!$B$41:$C$65,2,FALSE)","v":{"$error":"#N/A"}},100,{"$f":"VLOOKUP(J160,'EXPENSE DATABASE'!$B$69:$C$168,2,FALSE)","v":{"$error":"#N/A"}},101,{"$f":"VLOOKUP(K160,'EXPENSE DATABASE'!$B$6:$C$35,2,FALSE)","v":{"$error":"#N/A"}},31,{"$f":"VLOOKUP(L160,'EXPENSE DATABASE'!$B$173:$C$176,2,FALSE)","v":{"$error":"#N/A"}},100,0,0,{"$f":"IF(L160=T('EXPENSE DATABASE'!$E$173),O160,0)","v":0},{"$f":"IF(L160=T('EXPENSE DATABASE'!$E$174),O160,0)","v":0},{"$f":"IF(L160=T('EXPENSE DATABASE'!$E$175),O160,0)","v":0},0,147]
[0,0,{"$nulls":12},{"v":0,"d":"$0.00"},{"v":0,"d":"$0.00"},{"v":0,"d":"$0.00"},0,{"$f":"IF(OR(K161='EXPENSE DATABASE'!$V$187,K161='EXPENSE DATABASE'!$V$188,K161='EXPENSE DATABASE'!$V$189,K161='EXPENSE DATABASE'!$V$190,K161='EXPENSE DATABASE'!$V$191,K161='EXPENSE DATABASE'!$V$192,K161='EXPENSE DATABASE'!$V$193,K161='EXPENSE DATABASE'!$V$194,K161='EXPENSE DATABASE'!$X$187,K161='EXPENSE DATABASE'!$X$188,K161='EXPENSE DATABASE'!$X$189,K161='EXPENSE DATABASE'!$X$190,K161='EXPENSE DATABASE'!$X$191,K161='EXPENSE DATABASE'!$X$192,K161='EXPENSE DATABASE'!$X$193,K161='EXPENSE DATABASE'!$X$194,K161='EXPENSE DATABASE'!$Z$187,K161='EXPENSE DATABASE'!$Z$188,K161='EXPENSE DATABASE'!$Z$189,K161='EXPENSE DATABASE'!$Z$190,K161='EXPENSE DATABASE'!$Z$191,K161='EXPENSE DATABASE'!$Z$192,K161='EXPENSE DATABASE'!$Z$193,K161='EXPENSE DATABASE'!$Z$194),O161,\"\")","v":""},{"$f":"IF(OR(K161='EXPENSE DATABASE'!$T$189,K161='EXPENSE DATABASE'!$T$190,K161='EXPENSE DATABASE'!$T$191),O161,\"\")","v":""},{"$f":"VLOOKUP(I161,'EXPENSE DATABASE'!$B$41:$C$65,2,FALSE)","v":{"$error":"#N/A"}},100,{"$f":"VLOOKUP(J161,'EXPENSE DATABASE'!$B$69:$C$168,2,FALSE)","v":{"$error":"#N/A"}},101,{"$f":"VLOOKUP(K161,'EXPENSE DATABASE'!$B$6:$C$35,2,FALSE)","v":{"$error":"#N/A"}},31,{"$f":"VLOOKUP(L161,'EXPENSE DATABASE'!$B$173:$C$176,2,FALSE)","v":{"$error":"#N/A"}},100,0,0,{"$f":"IF(L161=T('EXPENSE DATABASE'!$E$173),O161,0)","v":0},{"$f":"IF(L161=T('EXPENSE DATABASE'!$E$174),O161,0)","v":0},{"$f":"IF(L161=T('EXPENSE DATABASE'!$E$175),O161,0)","v":0},0,148]
[0,0,{"$nulls":12},{"v":0,"d":"$0.00"},{"v":0,"d":"$0.00"},{"v":0,"d":"$0.00"},0,{"$f":"IF(OR(K162='EXPENSE DATABASE'!$V$187,K162='EXPENSE DATABASE'!$V$188,K162='EXPENSE DATABASE'!$V$189,K162='EXPENSE DATABASE'!$V$190,K162='EXPENSE DATABASE'!$V$191,K162='EXPENSE DATABASE'!$V$192,K162='EXPENSE DATABASE'!$V$193,K162='EXPENSE DATABASE'!$V$194,K162='EXPENSE DATABASE'!$X$187,K162='EXPENSE DATABASE'!$X$188,K162='EXPENSE DATABASE'!$X$189,K162='EXPENSE DATABASE'!$X$190,K162='EXPENSE DATABASE'!$X$191,K162='EXPENSE DATABASE'!$X$192,K162='EXPENSE DATABASE'!$X$193,K162='EXPENSE DATABASE'!$X$194,K162='EXPENSE DATABASE'!$Z$187,K162='EXPENSE DATABASE'!$Z$188,K162='EXPENSE DATABASE'!$Z$189,K162='EXPENSE DATABASE'!$Z$190,K162='EXPENSE DATABASE'!$Z$191,K162='EXPENSE DATABASE'!$Z$192,K162='EXPENSE DATABASE'!$Z$193,K162='EXPENSE DATABASE'!$Z$194),O162,\"\")","v":""},{"$f":"IF(OR(K162='EXPENSE DATABASE'!$T$189,K162='EXPENSE DATABASE'!$T$190,K162='EXPENSE DATABASE'!$T$191),O162,\"\")","v":""},{"$f":"VLOOKUP(I162,'EXPENSE DATABASE'!$B$41:$C$65,2,FALSE)","v":{"$error":"#N/A"}},100,{"$f":"VLOOKUP(J162,'EXPENSE DATABASE'!$B$69:$C$168,2,FALSE)","v":{"$error":"#N/A"}},101,{"$f":"VLOOKUP(K162,'EXPENSE DATABASE'!$B$6:$C$35,2,FALSE)","v":{"$error":"#N/A"}},31,{"$f":"VLOOKUP(L162,'EXPENSE DATABASE'!$B$173:$C$176,2,FALSE)","v":{"$error":"#N/A"}},100,0,0,{"$f":"IF(L162=T('EXPENSE DATABASE'!$E$173),O162,0)","v":0},{"$f":"IF(L162=T('EXPENSE DATABASE'!$E$174),O162,0)","v":0},{"$f":"IF(L162=T('EXPENSE DATABASE'!$E$175),O162,0)","v":0},0,149]
[0,0,{"$nulls":12},{"v":0,"d":"$0.00"},{"v":0,"d":"$0.00"},{"v":0,"d":"$0.00"},0,{"$f":"IF(OR(K163='EXPENSE DATABASE'!$V$187,K163='EXPENSE DATABASE'!$V$188,K163='EXPENSE DATABASE'!$V$189,K163='EXPENSE DATABASE'!$V$190,K163='EXPENSE DATABASE'!$V$191,K163='EXPENSE DATABASE'!$V$192,K163='EXPENSE DATABASE'!$V$193,K163='EXPENSE DATABASE'!$V$194,K163='EXPENSE DATABASE'!$X$187,K163='EXPENSE DATABASE'!$X$188,K163='EXPENSE DATABASE'!$X$189,K163='EXPENSE DATABASE'!$X$190,K163='EXPENSE DATABASE'!$X$191,K163='EXPENSE DATABASE'!$X$192,K163='EXPENSE DATABASE'!$X$193,K163='EXPENSE DATABASE'!$X$194,K163='EXPENSE DATABASE'!$Z$187,K163='EXPENSE DATABASE'!$Z$188,K163='EXPENSE DATABASE'!$Z$189,K163='EXPENSE DATABASE'!$Z$190,K163='EXPENSE DATABASE'!$Z$191,K163='EXPENSE DATABASE'!$Z$192,K163='EXPENSE DATABASE'!$Z$193,K163='EXPENSE DATABASE'!$Z$194),O163,\"\")","v":""},{"$f":"IF(OR(K163='EXPENSE DATABASE'!$T$189,K163='EXPENSE DATABASE'!$T$190,K163='EXPENSE DATABASE'!$T$191),O163,\"\")","v":""},{"$f":"VLOOKUP(I163,'EXPENSE DATABASE'!$B$41:$C$65,2,FALSE)","v":{"$error":"#N/A"}},100,{"$f":"VLOOKUP(J163,'EXPENSE DATABASE'!$B$69:$C$168,2,FALSE)","v":{"$error":"#N/A"}},101,{"$f":"VLOOKUP(K163,'EXPENSE DATABASE'!$B$6:$C$35,2,FALSE)","v":{"$error":"#N/A"}},31,{"$f":"VLOOKUP(L163,'EXPENSE DATABASE'!$B$173:$C$176,2,FALSE)","v":{"$error":"#N/A"}},100,0,0,{"$f":"IF(L163=T('EXPENSE DATABASE'!$E$173),O163,0)","v":0},{"$f":"IF(L163=T('EXPENSE DATABASE'!$E$174),O163,0)","v":0},{"$f":"IF(L163=T('EXPENSE DATABASE'!$E$175),O163,0)","v":0},0,150]
[0,0,{"$nulls":12},{"v":0,"d":"$0.00"},{"v":0,"d":"$0.00"},{"v":0,"d":"$0.00"},0,{"$f":"IF(OR(K164='EXPENSE DATABASE'!$V$187,K164='EXPENSE DATABASE'!$V$188,K164='EXPENSE DATABASE'!$V$189,K164='EXPENSE DATABASE'!$V$190,K164='EXPENSE DATABASE'!$V$191,K164='EXPENSE DATABASE'!$V$192,K164='EXPENSE DATABASE'!$V$193,K164='EXPENSE DATABASE'!$V$194,K164='EXPENSE DATABASE'!$X$187,K164='EXPENSE DATABASE'!$X$188,K164='EXPENSE DATABASE'!$X$189,K164='EXPENSE DATABASE'!$X$190,K164='EXPENSE DATABASE'!$X$191,K164='EXPENSE DATABASE'!$X$192,K164='EXPENSE DATABASE'!$X$193,K164='EXPENSE DATABASE'!$X$194,K164='EXPENSE DATABASE'!$Z$187,K164='EXPENSE DATABASE'!$Z$188,K164='EXPENSE DATABASE'!$Z$189,K164='EXPENSE DATABASE'!$Z$190,K164='EXPENSE DATABASE'!$Z$191,K164='EXPENSE DATABASE'!$Z$192,K164='EXPENSE DATABASE'!$Z$193,K164='EXPENSE DATABASE'!$Z$194),O164,\"\")","v":""},{"$f":"IF(OR(K164='EXPENSE DATABASE'!$T$189,K164='EXPENSE DATABASE'!$T$190,K164='EXPENSE DATABASE'!$T$191),O164,\"\")","v":""},{"$f":"VLOOKUP(I164,'EXPENSE DATABASE'!$B$41:$C$65,2,FALSE)","v":{"$error":"#N/A"}},100,{"$f":"VLOOKUP(J164,'EXPENSE DATABASE'!$B$69:$C$168,2,FALSE)","v":{"$error":"#N/A"}},101,{"$f":"VLOOKUP(K164,'EXPENSE DATABASE'!$B$6:$C$35,2,FALSE)","v":{"$error":"#N/A"}},31,{"$f":"VLOOKUP(L164,'EXPENSE DATABASE'!$B$173:$C$176,2,FALSE)","v":{"$error":"#N/A"}},100,0,0,{"$f":"IF(L164=T('EXPENSE DATABASE'!$E$173),O164,0)","v":0},{"$f":"IF(L164=T('EXPENSE DATABASE'!$E$174),O164,0)","v":0},{"$f":"IF(L164=T('EXPENSE DATABASE'!$E$175),O164,0)","v":0},0,151]
[0,0,{"$nulls":12},{"v":0,"d":"$0.00"},{"v":0,"d":"$0.00"},{"v":0,"d":"$0.00"},0,{"$f":"IF(OR(K165='EXPENSE DATABASE'!$V$187,K165='EXPENSE DATABASE'!$V$188,K165='EXPENSE DATABASE'!$V$189,K165='EXPENSE DATABASE'!$V$190,K165='EXPENSE DATABASE'!$V$191,K165='EXPENSE DATABASE'!$V$192,K165='EXPENSE DATABASE'!$V$193,K165='EXPENSE DATABASE'!$V$194,K165='EXPENSE DATABASE'!$X$187,K165='EXPENSE DATABASE'!$X$188,K165='EXPENSE DATABASE'!$X$189,K165='EXPENSE DATABASE'!$X$190,K165='EXPENSE DATABASE'!$X$191,K165='EXPENSE DATABASE'!$X$192,K165='EXPENSE DATABASE'!$X$193,K165='EXPENSE DATABASE'!$X$194,K165='EXPENSE DATABASE'!$Z$187,K165='EXPENSE DATABASE'!$Z$188,K165='EXPENSE DATABASE'!$Z$189,K165='EXPENSE DATABASE'!$Z$190,K165='EXPENSE DATABASE'!$Z$191,K165='EXPENSE DATABASE'!$Z$192,K165='EXPENSE DATABASE'!$Z$193,K165='EXPENSE DATABASE'!$Z$194),O165,\"\")","v":""},{"$f":"IF(OR(K165='EXPENSE DATABASE'!$T$189,K165='EXPENSE DATABASE'!$T$190,K165='EXPENSE DATABASE'!$T$191),O165,\"\")","v":""},{"$f":"VLOOKUP(I165,'EXPENSE DATABASE'!$B$41:$C$65,2,FALSE)","v":{"$error":"#N/A"}},100,{"$f":"VLOOKUP(J165,'EXPENSE DATABASE'!$B$69:$C$168,2,FALSE)","v":{"$error":"#N/A"}},101,{"$f":"VLOOKUP(K165,'EXPENSE DATABASE'!$B$6:$C$35,2,FALSE)","v":{"$error":"#N/A"}},31,{"$f":"VLOOKUP(L165,'EXPENSE DATABASE'!$B$173:$C$176,2,FALSE)","v":{"$error":"#N/A"}},100,0,0,{"$f":"IF(L165=T('EXPENSE DATABASE'!$E$173),O165,0)","v":0},{"$f":"IF(L165=T('EXPENSE DATABASE'!$E$174),O165,0)","v":0},{"$f":"IF(L165=T('EXPENSE DATABASE'!$E$175),O165,0)","v":0},0,152]
[0,0,{"$nulls":12},{"v":0,"d":"$0.00"},{"v":0,"d":"$0.00"},{"v":0,"d":"$0.00"},0,{"$f":"IF(OR(K166='EXPENSE DATABASE'!$V$187,K166='EXPENSE DATABASE'!$V$188,K166='EXPENSE DATABASE'!$V$189,K166='EXPENSE DATABASE'!$V$190,K166='EXPENSE DATABASE'!$V$191,K166='EXPENSE DATABASE'!$V$192,K166='EXPENSE DATABASE'!$V$193,K166='EXPENSE DATABASE'!$V$194,K166='EXPENSE DATABASE'!$X$187,K166='EXPENSE DATABASE'!$X$188,K166='EXPENSE DATABASE'!$X$189,K166='EXPENSE DATABASE'!$X$190,K166='EXPENSE DATABASE'!$X$191,K166='EXPENSE DATABASE'!$X$192,K166='EXPENSE DATABASE'!$X$193,K166='EXPENSE DATABASE'!$X$194,K166='EXPENSE DATABASE'!$Z$187,K166='EXPENSE DATABASE'!$Z$188,K166='EXPENSE DATABASE'!$Z$189,K166='EXPENSE DATABASE'!$Z$190,K166='EXPENSE DATABASE'!$Z$191,K166='EXPENSE DATABASE'!$Z$192,K166='EXPENSE DATABASE'!$Z$193,K166='EXPENSE DATABASE'!$Z$194),O166,\"\")","v":""},{"$f":"IF(OR(K166='EXPENSE DATABASE'!$T$189,K166='EXPENSE DATABASE'!$T$190,K166='EXPENSE DATABASE'!$T$191),O166,\"\")","v":""},{"$f":"VLOOKUP(I166,'EXPENSE DATABASE'!$B$41:$C$65,2,FALSE)","v":{"$error":"#N/A"}},100,{"$f":"VLOOKUP(J166,'EXPENSE DATABASE'!$B$69:$C$168,2,FALSE)","v":{"$error":"#N/A"}},101,{"$f":"VLOOKUP(K166,'EXPENSE DATABASE'!$B$6:$C$35,2,FALSE)","v":{"$error":"#N/A"}},31,{"$f":"VLOOKUP(L166,'EXPENSE DATABASE'!$B$173:$C$176,2,FALSE)","v":{"$error":"#N/A"}},100,0,0,{"$f":"IF(L166=T('EXPENSE DATABASE'!$E$173),O166,0)","v":0},{"$f":"IF(L166=T('EXPENSE DATABASE'!$E$174),O166,0)","v":0},{"$f":"IF(L166=T('EXPENSE DATABASE'!$E$175),O166,0)","v":0},0,153]
[0,0,{"$nulls":12},{"v":0,"d":"$0.00"},{"v":0,"d":"$0.00"},{"v":0,"d":"$0.00"},0,{"$f":"IF(OR(K167='EXPENSE DATABASE'!$V$187,K167='EXPENSE DATABASE'!$V$188,K167='EXPENSE DATABASE'!$V$189,K167='EXPENSE DATABASE'!$V$190,K167='EXPENSE DATABASE'!$V$191,K167='EXPENSE DATABASE'!$V$192,K167='EXPENSE DATABASE'!$V$193,K167='EXPENSE DATABASE'!$V$194,K167='EXPENSE DATABASE'!$X$187,K167='EXPENSE DATABASE'!$X$188,K167='EXPENSE DATABASE'!$X$189,K167='EXPENSE DATABASE'!$X$190,K167='EXPENSE DATABASE'!$X$191,K167='EXPENSE DATABASE'!$X$192,K167='EXPENSE DATABASE'!$X$193,K167='EXPENSE DATABASE'!$X$194,K167='EXPENSE DATABASE'!$Z$187,K167='EXPENSE DATABASE'!$Z$188,K167='EXPENSE DATABASE'!$Z$189,K167='EXPENSE DATABASE'!$Z$190,K167='EXPENSE DATABASE'!$Z$191,K167='EXPENSE DATABASE'!$Z$192,K167='EXPENSE DATABASE'!$Z$193,K167='EXPENSE DATABASE'!$Z$194),O167,\"\")","v":""},{"$f":"IF(OR(K167='EXPENSE DATABASE'!$T$189,K167='EXPENSE DATABASE'!$T$190,K167='EXPENSE DATABASE'!$T$191),O167,\"\")","v":""},{"$f":"VLOOKUP(I167,'EXPENSE DATABASE'!$B$41:$C$65,2,FALSE)","v":{"$error":"#N/A"}},100,{"$f":"VLOOKUP(J167,'EXPENSE DATABASE'!$B$69:$C$168,2,FALSE)","v":{"$error":"#N/A"}},101,{"$f":"VLOOKUP(K167,'EXPENSE DATABASE'!$B$6:$C$35,2,FALSE)","v":{"$error":"#N/A"}},31,{"$f":"VLOOKUP(L167,'EXPENSE DATABASE'!$B$173:$C$176,2,FALSE)","v":{"$error":"#N/A"}},100,0,0,{"$f":"IF(L167=T('EXPENSE DATABASE'!$E$173),O167,0)","v":0},{"$f":"IF(L167=T('EXPENSE DATABASE'!$E$174),O167,0)","v":0},{"$f":"IF(L167=T('EXPENSE DATABASE'!$E$175),O167,0)","v":0},0,154]
[0,0,{"$nulls":12},{"v":0,"d":"$0.00"},{"v":0,"d":"$0.00"},{"v":0,"d":"$0.00"},0,{"$f":"IF(OR(K168='EXPENSE DATABASE'!$V$187,K168='EXPENSE DATABASE'!$V$188,K168='EXPENSE DATABASE'!$V$189,K168='EXPENSE DATABASE'!$V$190,K168='EXPENSE DATABASE'!$V$191,K168='EXPENSE DATABASE'!$V$192,K168='EXPENSE DATABASE'!$V$193,K168='EXPENSE DATABASE'!$V$194,K168='EXPENSE DATABASE'!$X$187,K168='EXPENSE DATABASE'!$X$188,K168='EXPENSE DATABASE'!$X$189,K168='EXPENSE DATABASE'!$X$190,K168='EXPENSE DATABASE'!$X$191,K168='EXPENSE DATABASE'!$X$192,K168='EXPENSE DATABASE'!$X$193,K168='EXPENSE DATABASE'!$X$194,K168='EXPENSE DATABASE'!$Z$187,K168='EXPENSE DATABASE'!$Z$188,K168='EXPENSE DATABASE'!$Z$189,K168='EXPENSE DATABASE'!$Z$190,K168='EXPENSE DATABASE'!$Z$191,K168='EXPENSE DATABASE'!$Z$192,K168='EXPENSE DATABASE'!$Z$193,K168='EXPENSE DATABASE'!$Z$194),O168,\"\")","v":""},{"$f":"IF(OR(K168='EXPENSE DATABASE'!$T$189,K168='EXPENSE DATABASE'!$T$190,K168='EXPENSE DATABASE'!$T$191),O168,\"\")","v":""},{"$f":"VLOOKUP(I168,'EXPENSE DATABASE'!$B$41:$C$65,2,FALSE)","v":{"$error":"#N/A"}},100,{"$f":"VLOOKUP(J168,'EXPENSE DATABASE'!$B$69:$C$168,2,FALSE)","v":{"$error":"#N/A"}},101,{"$f":"VLOOKUP(K168,'EXPENSE DATABASE'!$B$6:$C$35,2,FALSE)","v":{"$error":"#N/A"}},31,{"$f":"VLOOKUP(L168,'EXPENSE DATABASE'!$B$173:$C$176,2,FALSE)","v":{"$error":"#N/A"}},100,0,0,{"$f":"IF(L168=T('EXPENSE DATABASE'!$E$173),O168,0)","v":0},{"$f":"IF(L168=T('EXPENSE DATABASE'!$E$174),O168,0)","v":0},{"$f":"IF(L168=T('EXPENSE DATABASE'!$E$175),O168,0)","v":0},0,155]
[0,0,{"$nulls":12},{"v":0,"d":"$0.00"},{"v":0,"d":"$0.00"},{"v":0,"d":"$0.00"},0,{"$f":"IF(OR(K169='EXPENSE DATABASE'!$V$187,K169='EXPENSE DATABASE'!$V$188,K169='EXPENSE DATABASE'!$V$189,K169='EXPENSE DATABASE'!$V$190,K169='EXPENSE DATABASE'!$V$191,K169='EXPENSE DATABASE'!$V$192,K169='EXPENSE DATABASE'!$V$193,K169='EXPENSE DATABASE'!$V$194,K169='EXPENSE DATABASE'!$X$187,K169='EXPENSE DATABASE'!$X$188,K169='EXPENSE DATABASE'!$X$189,K169='EXPENSE DATABASE'!$X$190,K169='EXPENSE DATABASE'!$X$191,K169='EXPENSE DATABASE'!$X$192,K169='EXPENSE DATABASE'!$X$193,K169='EXPENSE DATABASE'!$X$194,K169='EXPENSE DATABASE'!$Z$187,K169='EXPENSE DATABASE'!$Z$188,K169='EXPENSE DATABASE'!$Z$189,K169='EXPENSE DATABASE'!$Z$190,K169='EXPENSE DATABASE'!$Z$191,K169='EXPENSE DATABASE'!$Z$192,K169='EXPENSE DATABASE'!$Z$193,K169='EXPENSE DATABASE'!$Z$194),O169,\"\")","v":""},{"$f":"IF(OR(K169='EXPENSE DATABASE'!$T$189,K169='EXPENSE DATABASE'!$T$190,K169='EXPENSE DATABASE'!$T$191),O169,\"\")","v":""},{"$f":"VLOOKUP(I169,'EXPENSE DATABASE'!$B$41:$C$65,2,FALSE)","v":{"$error":"#N/A"}},100,{"$f":"VLOOKUP(J169,'EXPENSE DATABASE'!$B$69:$C$168,2,FALSE)","v":{"$error":"#N/A"}},101,{"$f":"VLOOKUP(K169,'EXPENSE DATABASE'!$B$6:$C$35,2,FALSE)","v":{"$error":"#N/A"}},31,{"$f":"VLOOKUP(L169,'EXPENSE DATABASE'!$B$173:$C$176,2,FALSE)","v":{"$error":"#N/A"}},100,0,0,{"$f":"IF(L169=T('EXPENSE DATABASE'!$E$173),O169,0)","v":0},{"$f":"IF(L169=T('EXPENSE DATABASE'!$E$174),O169,0)","v":0},{"$f":"IF(L169=T('EXPENSE DATABASE'!$E$175),O169,0)","v":0},0,156]
[0,0,{"$nulls":12},{"v":0,"d":"$0.00"},{"v":0,"d":"$0.00"},{"v":0,"d":"$0.00"},0,{"$f":"IF(OR(K170='EXPENSE DATABASE'!$V$187,K170='EXPENSE DATABASE'!$V$188,K170='EXPENSE DATABASE'!$V$189,K170='EXPENSE DATABASE'!$V$190,K170='EXPENSE DATABASE'!$V$191,K170='EXPENSE DATABASE'!$V$192,K170='EXPENSE DATABASE'!$V$193,K170='EXPENSE DATABASE'!$V$194,K170='EXPENSE DATABASE'!$X$187,K170='EXPENSE DATABASE'!$X$188,K170='EXPENSE DATABASE'!$X$189,K170='EXPENSE DATABASE'!$X$190,K170='EXPENSE DATABASE'!$X$191,K170='EXPENSE DATABASE'!$X$192,K170='EXPENSE DATABASE'!$X$193,K170='EXPENSE DATABASE'!$X$194,K170='EXPENSE DATABASE'!$Z$187,K170='EXPENSE DATABASE'!$Z$188,K170='EXPENSE DATABASE'!$Z$189,K170='EXPENSE DATABASE'!$Z$190,K170='EXPENSE DATABASE'!$Z$191,K170='EXPENSE DATABASE'!$Z$192,K170='EXPENSE DATABASE'!$Z$193,K170='EXPENSE DATABASE'!$Z$194),O170,\"\")","v":""},{"$f":"IF(OR(K170='EXPENSE DATABASE'!$T$189,K170='EXPENSE DATABASE'!$T$190,K170='EXPENSE DATABASE'!$T$191),O170,\"\")","v":""},{"$f":"VLOOKUP(I170,'EXPENSE DATABASE'!$B$41:$C$65,2,FALSE)","v":{"$error":"#N/A"}},100,{"$f":"VLOOKUP(J170,'EXPENSE DATABASE'!$B$69:$C$168,2,FALSE)","v":{"$error":"#N/A"}},101,{"$f":"VLOOKUP(K170,'EXPENSE DATABASE'!$B$6:$C$35,2,FALSE)","v":{"$error":"#N/A"}},31,{"$f":"VLOOKUP(L170,'EXPENSE DATABASE'!$B$173:$C$176,2,FALSE)","v":{"$error":"#N/A"}},100,0,0,{"$f":"IF(L170=T('EXPENSE DATABASE'!$E$173),O170,0)","v":0},{"$f":"IF(L170=T('EXPENSE DATABASE'!$E$174),O170,0)","v":0},{"$f":"IF(L170=T('EXPENSE DATABASE'!$E$175),O170,0)","v":0},0,157]
[0,0,{"$nulls":12},{"v":0,"d":"$0.00"},{"v":0,"d":"$0.00"},{"v":0,"d":"$0.00"},0,{"$f":"IF(OR(K171='EXPENSE DATABASE'!$V$187,K171='EXPENSE DATABASE'!$V$188,K171='EXPENSE DATABASE'!$V$189,K171='EXPENSE DATABASE'!$V$190,K171='EXPENSE DATABASE'!$V$191,K171='EXPENSE DATABASE'!$V$192,K171='EXPENSE DATABASE'!$V$193,K171='EXPENSE DATABASE'!$V$194,K171='EXPENSE DATABASE'!$X$187,K171='EXPENSE DATABASE'!$X$188,K171='EXPENSE DATABASE'!$X$189,K171='EXPENSE DATABASE'!$X$190,K171='EXPENSE DATABASE'!$X$191,K171='EXPENSE DATABASE'!$X$192,K171='EXPENSE DATABASE'!$X$193,K171='EXPENSE DATABASE'!$X$194,K171='EXPENSE DATABASE'!$Z$187,K171='EXPENSE DATABASE'!$Z$188,K171='EXPENSE DATABASE'!$Z$189,K171='EXPENSE DATABASE'!$Z$190,K171='EXPENSE DATABASE'!$Z$191,K171='EXPENSE DATABASE'!$Z$192,K171='EXPENSE DATABASE'!$Z$193,K171='EXPENSE DATABASE'!$Z$194),O171,\"\")","v":""},{"$f":"IF(OR(K171='EXPENSE DATABASE'!$T$189,K171='EXPENSE DATABASE'!$T$190,K171='EXPENSE DATABASE'!$T$191),O171,\"\")","v":""},{"$f":"VLOOKUP(I171,'EXPENSE DATABASE'!$B$41:$C$65,2,FALSE)","v":{"$error":"#N/A"}},100,{"$f":"VLOOKUP(J171,'EXPENSE DATABASE'!$B$69:$C$168,2,FALSE)","v":{"$error":"#N/A"}},101,{"$f":"VLOOKUP(K171,'EXPENSE DATABASE'!$B$6:$C$35,2,FALSE)","v":{"$error":"#N/A"}},31,{"$f":"VLOOKUP(L171,'EXPENSE DATABASE'!$B$173:$C$176,2,FALSE)","v":{"$error":"#N/A"}},100,0,0,{"$f":"IF(L171=T('EXPENSE DATABASE'!$E$173),O171,0)","v":0},{"$f":"IF(L171=T('EXPENSE DATABASE'!$E$174),O171,0)","v":0},{"$f":"IF(L171=T('EXPENSE DATABASE'!$E$175),O171,0)","v":0},0,158]
[0,0,{"$nulls":12},{"v":0,"d":"$0.00"},{"v":0,"d":"$0.00"},{"v":0,"d":"$0.00"},0,{"$f":"IF(OR(K172='EXPENSE DATABASE'!$V$187,K172='EXPENSE DATABASE'!$V$188,K172='EXPENSE DATABASE'!$V$189,K172='EXPENSE DATABASE'!$V$190,K172='EXPENSE DATABASE'!$V$191,K172='EXPENSE DATABASE'!$V$192,K172='EXPENSE DATABASE'!$V$193,K172='EXPENSE DATABASE'!$V$194,K172='EXPENSE DATABASE'!$X$187,K172='EXPENSE DATABASE'!$X$188,K172='EXPENSE DATABASE'!$X$189,K172='EXPENSE DATABASE'!$X$190,K172='EXPENSE DATABASE'!$X$191,K172='EXPENSE DATABASE'!$X$192,K172='EXPENSE DATABASE'!$X$193,K172='EXPENSE DATABASE'!$X$194,K172='EXPENSE DATABASE'!$Z$187,K172='EXPENSE DATABASE'!$Z$188,K172='EXPENSE DATABASE'!$Z$189,K172='EXPENSE DATABASE'!$Z$190,K172='EXPENSE DATABASE'!$Z$191,K172='EXPENSE DATABASE'!$Z$192,K172='EXPENSE DATABASE'!$Z$193,K172='EXPENSE DATABASE'!$Z$194),O172,\"\")","v":""},{"$f":"IF(OR(K172='EXPENSE DATABASE'!$T$189,K172='EXPENSE DATABASE'!$T$190,K172='EXPENSE DATABASE'!$T$191),O172,\"\")","v":""},{"$f":"VLOOKUP(I172,'EXPENSE DATABASE'!$B$41:$C$65,2,FALSE)","v":{"$error":"#N/A"}},100,{"$f":"VLOOKUP(J172,'EXPENSE DATABASE'!$B$69:$C$168,2,FALSE)","v":{"$error":"#N/A"}},101,{"$f":"VLOOKUP(K172,'EXPENSE DATABASE'!$B$6:$C$35,2,FALSE)","v":{"$error":"#N/A"}},31,{"$f":"VLOOKUP(L172,'EXPENSE DATABASE'!$B$173:$C$176,2,FALSE)","v":{"$error":"#N/A"}},100,0,0,{"$f":"IF(L172=T('EXPENSE DATABASE'!$E$173),O172,0)","v":0},{"$f":"IF(L172=T('EXPENSE DATABASE'!$E$174),O172,0)","v":0},{"$f":"IF(L172=T('EXPENSE DATABASE'!$E$175),O172,0)","v":0},0,159]
[0,0,{"$nulls":12},{"v":0,"d":"$0.00"},{"v":0,"d":"$0.00"},{"v":0,"d":"$0.00"},0,{"$f":"IF(OR(K173='EXPENSE DATABASE'!$V$187,K173='EXPENSE DATABASE'!$V$188,K173='EXPENSE DATABASE'!$V$189,K173='EXPENSE DATABASE'!$V$190,K173='EXPENSE DATABASE'!$V$191,K173='EXPENSE DATABASE'!$V$192,K173='EXPENSE DATABASE'!$V$193,K173='EXPENSE DATABASE'!$V$194,K173='EXPENSE DATABASE'!$X$187,K173='EXPENSE DATABASE'!$X$188,K173='EXPENSE DATABASE'!$X$189,K173='EXPENSE DATABASE'!$X$190,K173='EXPENSE DATABASE'!$X$191,K173='EXPENSE DATABASE'!$X$192,K173='EXPENSE DATABASE'!$X$193,K173='EXPENSE DATABASE'!$X$194,K173='EXPENSE DATABASE'!$Z$187,K173='EXPENSE DATABASE'!$Z$188,K173='EXPENSE DATABASE'!$Z$189,K173='EXPENSE DATABASE'!$Z$190,K173='EXPENSE DATABASE'!$Z$191,K173='EXPENSE DATABASE'!$Z$192,K173='EXPENSE DATABASE'!$Z$193,K173='EXPENSE DATABASE'!$Z$194),O173,\"\")","v":""},{"$f":"IF(OR(K173='EXPENSE DATABASE'!$T$189,K173='EXPENSE DATABASE'!$T$190,K173='EXPENSE DATABASE'!$T$191),O173,\"\")","v":""},{"$f":"VLOOKUP(I173,'EXPENSE DATABASE'!$B$41:$C$65,2,FALSE)","v":{"$error":"#N/A"}},100,{"$f":"VLOOKUP(J173,'EXPENSE DATABASE'!$B$69:$C$168,2,FALSE)","v":{"$error":"#N/A"}},101,{"$f":"VLOOKUP(K173,'EXPENSE DATABASE'!$B$6:$C$35,2,FALSE)","v":{"$error":"#N/A"}},31,{"$f":"VLOOKUP(L173,'EXPENSE DATABASE'!$B$173:$C$176,2,FALSE)","v":{"$error":"#N/A"}},100,0,0,{"$f":"IF(L173=T('EXPENSE DATABASE'!$E$173),O173,0)","v":0},{"$f":"IF(L173=T('EXPENSE DATABASE'!$E$174),O173,0)","v":0},{"$f":"IF(L173=T('EXPENSE DATABASE'!$E$175),O173,0)","v":0},0,160]
[{"$f":"IF(COUNTA(D174,E174,F174,G174,H174,I174,J174,K174,L174,M174,N174)>0,1,0)","v":0},{"$f":"IF((COUNTA(I174:L174)=4),1,-1)*A174","v":0},{"$nulls":12},{"v":0,"d":"$0.00"},{"v":0,"d":"$0.00"},{"v":0,"d":"$0.00"},0,{"$f":"IF(OR(K174='EXPENSE DATABASE'!$V$187,K174='EXPENSE DATABASE'!$V$188,K174='EXPENSE DATABASE'!$V$189,K174='EXPENSE DATABASE'!$V$190,K174='EXPENSE DATABASE'!$V$191,K174='EXPENSE DATABASE'!$V$192,K174='EXPENSE DATABASE'!$V$193,K174='EXPENSE DATABASE'!$V$194,K174='EXPENSE DATABASE'!$X$187,K174='EXPENSE DATABASE'!$X$188,K174='EXPENSE DATABASE'!$X$189,K174='EXPENSE DATABASE'!$X$190,K174='EXPENSE DATABASE'!$X$191,K174='EXPENSE DATABASE'!$X$192,K174='EXPENSE DATABASE'!$X$193,K174='EXPENSE DATABASE'!$X$194,K174='EXPENSE DATABASE'!$Z$187,K174='EXPENSE DATABASE'!$Z$188,K174='EXPENSE DATABASE'!$Z$189,K174='EXPENSE DATABASE'!$Z$190,K174='EXPENSE DATABASE'!$Z$191,K174='EXPENSE DATABASE'!$Z$192,K174='EXPENSE DATABASE'!$Z$193,K174='EXPENSE DATABASE'!$Z$194),O174,\"\")","v":""},{"$f":"IF(OR(K174='EXPENSE DATABASE'!$T$189,K174='EXPENSE DATABASE'!$T$190,K174='EXPENSE DATABASE'!$T$191),O174,\"\")","v":""},{"$f":"VLOOKUP(I174,'EXPENSE DATABASE'!$B$41:$C$65,2,FALSE)","v":{"$error":"#N/A"}},100,{"$f":"VLOOKUP(J174,'EXPENSE DATABASE'!$B$69:$C$168,2,FALSE)","v":{"$error":"#N/A"}},101,{"$f":"VLOOKUP(K174,'EXPENSE DATABASE'!$B$6:$C$35,2,FALSE)","v":{"$error":"#N/A"}},31,{"$f":"VLOOKUP(L174,'EXPENSE DATABASE'!$B$173:$C$176,2,FALSE)","v":{"$error":"#N/A"}},100,0,0,{"$f":"IF(L174=T('EXPENSE DATABASE'!$E$173),O174,0)","v":0},{"$f":"IF(L174=T('EXPENSE DATABASE'!$E$174),O174,0)","v":0},{"$f":"IF(L174=T('EXPENSE DATABASE'!$E$175),O174,0)","v":0},0,161]
[0,0,{"$nulls":12},{"v":0,"d":"$0.00"},{"v":0,"d":"$0.00"},{"v":0,"d":"$0.00"},0,{"$f":"IF(OR(K175='EXPENSE DATABASE'!$V$187,K175='EXPENSE DATABASE'!$V$188,K175='EXPENSE DATABASE'!$V$189,K175='EXPENSE DATABASE'!$V$190,K175='EXPENSE DATABASE'!$V$191,K175='EXPENSE DATABASE'!$V$192,K175='EXPENSE DATABASE'!$V$193,K175='EXPENSE DATABASE'!$V$194,K175='EXPENSE DATABASE'!$X$187,K175='EXPENSE DATABASE'!$X$188,K175='EXPENSE DATABASE'!$X$189,K175='EXPENSE DATABASE'!$X$190,K175='EXPENSE DATABASE'!$X$191,K175='EXPENSE DATABASE'!$X$192,K175='EXPENSE DATABASE'!$X$193,K175='EXPENSE DATABASE'!$X$194,K175='EXPENSE DATABASE'!$Z$187,K175='EXPENSE DATABASE'!$Z$188,K175='EXPENSE DATABASE'!$Z$189,K175='EXPENSE DATABASE'!$Z$190,K175='EXPENSE DATABASE'!$Z$191,K175='EXPENSE DATABASE'!$Z$192,K175='EXPENSE DATABASE'!$Z$193,K175='EXPENSE DATABASE'!$Z$194),O175,\"\")","v":""},{"$f":"IF(OR(K175='EXPENSE DATABASE'!$T$189,K175='EXPENSE DATABASE'!$T$190,K175='EXPENSE DATABASE'!$T$191),O175,\"\")","v":""},{"$f":"VLOOKUP(I175,'EXPENSE DATABASE'!$B$41:$C$65,2,FALSE)","v":{"$error":"#N/A"}},100,{"$f":"VLOOKUP(J175,'EXPENSE DATABASE'!$B$69:$C$168,2,FALSE)","v":{"$error":"#N/A"}},101,{"$f":"VLOOKUP(K175,'EXPENSE DATABASE'!$B$6:$C$35,2,FALSE)","v":{"$error":"#N/A"}},31,{"$f":"VLOOKUP(L175,'EXPENSE DATABASE'!$B$173:$C$176,2,FALSE)","v":{"$error":"#N/A"}},100,0,0,{"$f":"IF(L175=T('EXPENSE DATABASE'!$E$173),O175,0)","v":0},{"$f":"IF(L175=T('EXPENSE DATABASE'!$E$174),O175,0)","v":0},{"$f":"IF(L175=T('EXPENSE DATABASE'!$E$175),O175,0)","v":0},0,162]
[0,0,{"$nulls":12},{"v":0,"d":"$0.00"},{"v":0,"d":"$0.00"},{"v":0,"d":"$0.00"},0,{"$f":"IF(OR(K176='EXPENSE DATABASE'!$V$187,K176='EXPENSE DATABASE'!$V$188,K176='EXPENSE DATABASE'!$V$189,K176='EXPENSE DATABASE'!$V$190,K176='EXPENSE DATABASE'!$V$191,K176='EXPENSE DATABASE'!$V$192,K176='EXPENSE DATABASE'!$V$193,K176='EXPENSE DATABASE'!$V$194,K176='EXPENSE DATABASE'!$X$187,K176='EXPENSE DATABASE'!$X$188,K176='EXPENSE DATABASE'!$X$189,K176='EXPENSE DATABASE'!$X$190,K176='EXPENSE DATABASE'!$X$191,K176='EXPENSE DATABASE'!$X$192,K176='EXPENSE DATABASE'!$X$193,K176='EXPENSE DATABASE'!$X$194,K176='EXPENSE DATABASE'!$Z$187,K176='EXPENSE DATABASE'!$Z$188,K176='EXPENSE DATABASE'!$Z$189,K176='EXPENSE DATABASE'!$Z$190,K176='EXPENSE DATABASE'!$Z$191,K176='EXPENSE DATABASE'!$Z$192,K176='EXPENSE DATABASE'!$Z$193,K176='EXPENSE DATABASE'!$Z$194),O176,\"\")","v":""},{"$f":"IF(OR(K176='EXPENSE DATABASE'!$T$189,K176='EXPENSE DATABASE'!$T$190,K176='EXPENSE DATABASE'!$T$191),O176,\"\")","v":""},{"$f":"VLOOKUP(I176,'EXPENSE DATABASE'!$B$41:$C$65,2,FALSE)","v":{"$error":"#N/A"}},100,{"$f":"VLOOKUP(J176,'EXPENSE DATABASE'!$B$69:$C$168,2,FALSE)","v":{"$error":"#N/A"}},101,{"$f":"VLOOKUP(K176,'EXPENSE DATABASE'!$B$6:$C$35,2,FALSE)","v":{"$error":"#N/A"}},31,{"$f":"VLOOKUP(L176,'EXPENSE DATABASE'!$B$173:$C$176,2,FALSE)","v":{"$error":"#N/A"}},100,0,0,{"$f":"IF(L176=T('EXPENSE DATABASE'!$E$173),O176,0)","v":0},{"$f":"IF(L176=T('EXPENSE DATABASE'!$E$174),O176,0)","v":0},{"$f":"IF(L176=T('EXPENSE DATABASE'!$E$175),O176,0)","v":0},0,163]
[0,0,{"$nulls":12},{"v":0,"d":"$0.00"},{"v":0,"d":"$0.00"},{"v":0,"d":"$0.00"},0,{"$f":"IF(OR(K177='EXPENSE DATABASE'!$V$187,K177='EXPENSE DATABASE'!$V$188,K177='EXPENSE DATABASE'!$V$189,K177='EXPENSE DATABASE'!$V$190,K177='EXPENSE DATABASE'!$V$191,K177='EXPENSE DATABASE'!$V$192,K177='EXPENSE DATABASE'!$V$193,K177='EXPENSE DATABASE'!$V$194,K177='EXPENSE DATABASE'!$X$187,K177='EXPENSE DATABASE'!$X$188,K177='EXPENSE DATABASE'!$X$189,K177='EXPENSE DATABASE'!$X$190,K177='EXPENSE DATABASE'!$X$191,K177='EXPENSE DATABASE'!$X$192,K177='EXPENSE DATABASE'!$X$193,K177='EXPENSE DATABASE'!$X$194,K177='EXPENSE DATABASE'!$Z$187,K177='EXPENSE DATABASE'!$Z$188,K177='EXPENSE DATABASE'!$Z$189,K177='EXPENSE DATABASE'!$Z$190,K177='EXPENSE DATABASE'!$Z$191,K177='EXPENSE DATABASE'!$Z$192,K177='EXPENSE DATABASE'!$Z$193,K177='EXPENSE DATABASE'!$Z$194),O177,\"\")","v":""},{"$f":"IF(OR(K177='EXPENSE DATABASE'!$T$189,K177='EXPENSE DATABASE'!$T$190,K177='EXPENSE DATABASE'!$T$191),O177,\"\")","v":""},{"$f":"VLOOKUP(I177,'EXPENSE DATABASE'!$B$41:$C$65,2,FALSE)","v":{"$error":"#N/A"}},100,{"$f":"VLOOKUP(J177,'EXPENSE DATABASE'!$B$69:$C$168,2,FALSE)","v":{"$error":"#N/A"}},101,{"$f":"VLOOKUP(K177,'EXPENSE DATABASE'!$B$6:$C$35,2,FALSE)","v":{"$error":"#N/A"}},31,{"$f":"VLOOKUP(L177,'EXPENSE DATABASE'!$B$173:$C$176,2,FALSE)","v":{"$error":"#N/A"}},100,0,0,{"$f":"IF(L177=T('EXPENSE DATABASE'!$E$173),O177,0)","v":0},{"$f":"IF(L177=T('EXPENSE DATABASE'!$E$174),O177,0)","v":0},{"$f":"IF(L177=T('EXPENSE DATABASE'!$E$175),O177,0)","v":0},0,164]
[0,0,{"$nulls":12},{"v":0,"d":"$0.00"},{"v":0,"d":"$0.00"},{"v":0,"d":"$0.00"},0,{"$f":"IF(OR(K178='EXPENSE DATABASE'!$V$187,K178='EXPENSE DATABASE'!$V$188,K178='EXPENSE DATABASE'!$V$189,K178='EXPENSE DATABASE'!$V$190,K178='EXPENSE DATABASE'!$V$191,K178='EXPENSE DATABASE'!$V$192,K178='EXPENSE DATABASE'!$V$193,K178='EXPENSE DATABASE'!$V$194,K178='EXPENSE DATABASE'!$X$187,K178='EXPENSE DATABASE'!$X$188,K178='EXPENSE DATABASE'!$X$189,K178='EXPENSE DATABASE'!$X$190,K178='EXPENSE DATABASE'!$X$191,K178='EXPENSE DATABASE'!$X$192,K178='EXPENSE DATABASE'!$X$193,K178='EXPENSE DATABASE'!$X$194,K178='EXPENSE DATABASE'!$Z$187,K178='EXPENSE DATABASE'!$Z$188,K178='EXPENSE DATABASE'!$Z$189,K178='EXPENSE DATABASE'!$Z$190,K178='EXPENSE DATABASE'!$Z$191,K178='EXPENSE DATABASE'!$Z$192,K178='EXPENSE DATABASE'!$Z$193,K178='EXPENSE DATABASE'!$Z$194),O178,\"\")","v":""},{"$f":"IF(OR(K178='EXPENSE DATABASE'!$T$189,K178='EXPENSE DATABASE'!$T$190,K178='EXPENSE DATABASE'!$T$191),O178,\"\")","v":""},{"$f":"VLOOKUP(I178,'EXPENSE DATABASE'!$B$41:$C$65,2,FALSE)","v":{"$error":"#N/A"}},100,{"$f":"VLOOKUP(J178,'EXPENSE DATABASE'!$B$69:$C$168,2,FALSE)","v":{"$error":"#N/A"}},101,{"$f":"VLOOKUP(K178,'EXPENSE DATABASE'!$B$6:$C$35,2,FALSE)","v":{"$error":"#N/A"}},31,{"$f":"VLOOKUP(L178,'EXPENSE DATABASE'!$B$173:$C$176,2,FALSE)","v":{"$error":"#N/A"}},100,0,0,{"$f":"IF(L178=T('EXPENSE DATABASE'!$E$173),O178,0)","v":0},{"$f":"IF(L178=T('EXPENSE DATABASE'!$E$174),O178,0)","v":0},{"$f":"IF(L178=T('EXPENSE DATABASE'!$E$175),O178,0)","v":0},0,165]
[0,0,{"$nulls":12},{"v":0,"d":"$0.00"},{"v":0,"d":"$0.00"},{"v":0,"d":"$0.00"},0,{"$f":"IF(OR(K179='EXPENSE DATABASE'!$V$187,K179='EXPENSE DATABASE'!$V$188,K179='EXPENSE DATABASE'!$V$189,K179='EXPENSE DATABASE'!$V$190,K179='EXPENSE DATABASE'!$V$191,K179='EXPENSE DATABASE'!$V$192,K179='EXPENSE DATABASE'!$V$193,K179='EXPENSE DATABASE'!$V$194,K179='EXPENSE DATABASE'!$X$187,K179='EXPENSE DATABASE'!$X$188,K179='EXPENSE DATABASE'!$X$189,K179='EXPENSE DATABASE'!$X$190,K179='EXPENSE DATABASE'!$X$191,K179='EXPENSE DATABASE'!$X$192,K179='EXPENSE DATABASE'!$X$193,K179='EXPENSE DATABASE'!$X$194,K179='EXPENSE DATABASE'!$Z$187,K179='EXPENSE DATABASE'!$Z$188,K179='EXPENSE DATABASE'!$Z$189,K179='EXPENSE DATABASE'!$Z$190,K179='EXPENSE DATABASE'!$Z$191,K179='EXPENSE DATABASE'!$Z$192,K179='EXPENSE DATABASE'!$Z$193,K179='EXPENSE DATABASE'!$Z$194),O179,\"\")","v":""},{"$f":"IF(OR(K179='EXPENSE DATABASE'!$T$189,K179='EXPENSE DATABASE'!$T$190,K179='EXPENSE DATABASE'!$T$191),O179,\"\")","v":""},{"$f":"VLOOKUP(I179,'EXPENSE DATABASE'!$B$41:$C$65,2,FALSE)","v":{"$error":"#N/A"}},100,{"$f":"VLOOKUP(J179,'EXPENSE DATABASE'!$B$69:$C$168,2,FALSE)","v":{"$error":"#N/A"}},101,{"$f":"VLOOKUP(K179,'EXPENSE DATABASE'!$B$6:$C$35,2,FALSE)","v":{"$error":"#N/A"}},31,{"$f":"VLOOKUP(L179,'EXPENSE DATABASE'!$B$173:$C$176,2,FALSE)","v":{"$error":"#N/A"}},100,0,0,{"$f":"IF(L179=T('EXPENSE DATABASE'!$E$173),O179,0)","v":0},{"$f":"IF(L179=T('EXPENSE DATABASE'!$E$174),O179,0)","v":0},{"$f":"IF(L179=T('EXPENSE DATABASE'!$E$175),O179,0)","v":0},0,166]
[0,0,{"$nulls":12},{"v":0,"d":"$0.00"},{"v":0,"d":"$0.00"},{"v":0,"d":"$0.00"},0,{"$f":"IF(OR(K180='EXPENSE DATABASE'!$V$187,K180='EXPENSE DATABASE'!$V$188,K180='EXPENSE DATABASE'!$V$189,K180='EXPENSE DATABASE'!$V$190,K180='EXPENSE DATABASE'!$V$191,K180='EXPENSE DATABASE'!$V$192,K180='EXPENSE DATABASE'!$V$193,K180='EXPENSE DATABASE'!$V$194,K180='EXPENSE DATABASE'!$X$187,K180='EXPENSE DATABASE'!$X$188,K180='EXPENSE DATABASE'!$X$189,K180='EXPENSE DATABASE'!$X$190,K180='EXPENSE DATABASE'!$X$191,K180='EXPENSE DATABASE'!$X$192,K180='EXPENSE DATABASE'!$X$193,K180='EXPENSE DATABASE'!$X$194,K180='EXPENSE DATABASE'!$Z$187,K180='EXPENSE DATABASE'!$Z$188,K180='EXPENSE DATABASE'!$Z$189,K180='EXPENSE DATABASE'!$Z$190,K180='EXPENSE DATABASE'!$Z$191,K180='EXPENSE DATABASE'!$Z$192,K180='EXPENSE DATABASE'!$Z$193,K180='EXPENSE DATABASE'!$Z$194),O180,\"\")","v":""},{"$f":"IF(OR(K180='EXPENSE DATABASE'!$T$189,K180='EXPENSE DATABASE'!$T$190,K180='EXPENSE DATABASE'!$T$191),O180,\"\")","v":""},{"$f":"VLOOKUP(I180,'EXPENSE DATABASE'!$B$41:$C$65,2,FALSE)","v":{"$error":"#N/A"}},100,{"$f":"VLOOKUP(J180,'EXPENSE DATABASE'!$B$69:$C$168,2,FALSE)","v":{"$error":"#N/A"}},101,{"$f":"VLOOKUP(K180,'EXPENSE DATABASE'!$B$6:$C$35,2,FALSE)","v":{"$error":"#N/A"}},31,{"$f":"VLOOKUP(L180,'EXPENSE DATABASE'!$B$173:$C$176,2,FALSE)","v":{"$error":"#N/A"}},100,0,0,{"$f":"IF(L180=T('EXPENSE DATABASE'!$E$173),O180,0)","v":0},{"$f":"IF(L180=T('EXPENSE DATABASE'!$E$174),O180,0)","v":0},{"$f":"IF(L180=T('EXPENSE DATABASE'!$E$175),O180,0)","v":0},0,167]
[0,0,{"$nulls":12},{"v":0,"d":"$0.00"},{"v":0,"d":"$0.00"},{"v":0,"d":"$0.00"},0,{"$f":"IF(OR(K181='EXPENSE DATABASE'!$V$187,K181='EXPENSE DATABASE'!$V$188,K181='EXPENSE DATABASE'!$V$189,K181='EXPENSE DATABASE'!$V$190,K181='EXPENSE DATABASE'!$V$191,K181='EXPENSE DATABASE'!$V$192,K181='EXPENSE DATABASE'!$V$193,K181='EXPENSE DATABASE'!$V$194,K181='EXPENSE DATABASE'!$X$187,K181='EXPENSE DATABASE'!$X$188,K181='EXPENSE DATABASE'!$X$189,K181='EXPENSE DATABASE'!$X$190,K181='EXPENSE DATABASE'!$X$191,K181='EXPENSE DATABASE'!$X$192,K181='EXPENSE DATABASE'!$X$193,K181='EXPENSE DATABASE'!$X$194,K181='EXPENSE DATABASE'!$Z$187,K181='EXPENSE DATABASE'!$Z$188,K181='EXPENSE DATABASE'!$Z$189,K181='EXPENSE DATABASE'!$Z$190,K181='EXPENSE DATABASE'!$Z$191,K181='EXPENSE DATABASE'!$Z$192,K181='EXPENSE DATABASE'!$Z$193,K181='EXPENSE DATABASE'!$Z$194),O181,\"\")","v":""},{"$f":"IF(OR(K181='EXPENSE DATABASE'!$T$189,K181='EXPENSE DATABASE'!$T$190,K181='EXPENSE DATABASE'!$T$191),O181,\"\")","v":""},{"$f":"VLOOKUP(I181,'EXPENSE DATABASE'!$B$41:$C$65,2,FALSE)","v":{"$error":"#N/A"}},100,{"$f":"VLOOKUP(J181,'EXPENSE DATABASE'!$B$69:$C$168,2,FALSE)","v":{"$error":"#N/A"}},101,{"$f":"VLOOKUP(K181,'EXPENSE DATABASE'!$B$6:$C$35,2,FALSE)","v":{"$error":"#N/A"}},31,{"$f":"VLOOKUP(L181,'EXPENSE DATABASE'!$B$173:$C$176,2,FALSE)","v":{"$error":"#N/A"}},100,0,0,{"$f":"IF(L181=T('EXPENSE DATABASE'!$E$173),O181,0)","v":0},{"$f":"IF(L181=T('EXPENSE DATABASE'!$E$174),O181,0)","v":0},{"$f":"IF(L181=T('EXPENSE DATABASE'!$E$175),O181,0)","v":0},0,168]
[0,0,{"$nulls":12},{"v":0,"d":"$0.00"},{"v":0,"d":"$0.00"},{"v":0,"d":"$0.00"},0,{"$f":"IF(OR(K182='EXPENSE DATABASE'!$V$187,K182='EXPENSE DATABASE'!$V$188,K182='EXPENSE DATABASE'!$V$189,K182='EXPENSE DATABASE'!$V$190,K182='EXPENSE DATABASE'!$V$191,K182='EXPENSE DATABASE'!$V$192,K182='EXPENSE DATABASE'!$V$193,K182='EXPENSE DATABASE'!$V$194,K182='EXPENSE DATABASE'!$X$187,K182='EXPENSE DATABASE'!$X$188,K182='EXPENSE DATABASE'!$X$189,K182='EXPENSE DATABASE'!$X$190,K182='EXPENSE DATABASE'!$X$191,K182='EXPENSE DATABASE'!$X$192,K182='EXPENSE DATABASE'!$X$193,K182='EXPENSE DATABASE'!$X$194,K182='EXPENSE DATABASE'!$Z$187,K182='EXPENSE DATABASE'!$Z$188,K182='EXPENSE DATABASE'!$Z$189,K182='EXPENSE DATABASE'!$Z$190,K182='EXPENSE DATABASE'!$Z$191,K182='EXPENSE DATABASE'!$Z$192,K182='EXPENSE DATABASE'!$Z$193,K182='EXPENSE DATABASE'!$Z$194),O182,\"\")","v":""},{"$f":"IF(OR(K182='EXPENSE DATABASE'!$T$189,K182='EXPENSE DATABASE'!$T$190,K182='EXPENSE DATABASE'!$T$191),O182,\"\")","v":""},{"$f":"VLOOKUP(I182,'EXPENSE DATABASE'!$B$41:$C$65,2,FALSE)","v":{"$error":"#N/A"}},100,{"$f":"VLOOKUP(J182,'EXPENSE DATABASE'!$B$69:$C$168,2,FALSE)","v":{"$error":"#N/A"}},101,{"$f":"VLOOKUP(K182,'EXPENSE DATABASE'!$B$6:$C$35,2,FALSE)","v":{"$error":"#N/A"}},31,{"$f":"VLOOKUP(L182,'EXPENSE DATABASE'!$B$173:$C$176,2,FALSE)","v":{"$error":"#N/A"}},100,0,0,{"$f":"IF(L182=T('EXPENSE DATABASE'!$E$173),O182,0)","v":0},{"$f":"IF(L182=T('EXPENSE DATABASE'!$E$174),O182,0)","v":0},{"$f":"IF(L182=T('EXPENSE DATABASE'!$E$175),O182,0)","v":0},0,169]
[0,0,{"$nulls":12},{"v":0,"d":"$0.00"},{"v":0,"d":"$0.00"},{"v":0,"d":"$0.00"},0,{"$f":"IF(OR(K183='EXPENSE DATABASE'!$V$187,K183='EXPENSE DATABASE'!$V$188,K183='EXPENSE DATABASE'!$V$189,K183='EXPENSE DATABASE'!$V$190,K183='EXPENSE DATABASE'!$V$191,K183='EXPENSE DATABASE'!$V$192,K183='EXPENSE DATABASE'!$V$193,K183='EXPENSE DATABASE'!$V$194,K183='EXPENSE DATABASE'!$X$187,K183='EXPENSE DATABASE'!$X$188,K183='EXPENSE DATABASE'!$X$189,K183='EXPENSE DATABASE'!$X$190,K183='EXPENSE DATABASE'!$X$191,K183='EXPENSE DATABASE'!$X$192,K183='EXPENSE DATABASE'!$X$193,K183='EXPENSE DATABASE'!$X$194,K183='EXPENSE DATABASE'!$Z$187,K183='EXPENSE DATABASE'!$Z$188,K183='EXPENSE DATABASE'!$Z$189,K183='EXPENSE DATABASE'!$Z$190,K183='EXPENSE DATABASE'!$Z$191,K183='EXPENSE DATABASE'!$Z$192,K183='EXPENSE DATABASE'!$Z$193,K183='EXPENSE DATABASE'!$Z$194),O183,\"\")","v":""},{"$f":"IF(OR(K183='EXPENSE DATABASE'!$T$189,K183='EXPENSE DATABASE'!$T$190,K183='EXPENSE DATABASE'!$T$191),O183,\"\")","v":""},{"$f":"VLOOKUP(I183,'EXPENSE DATABASE'!$B$41:$C$65,2,FALSE)","v":{"$error":"#N/A"}},100,{"$f":"VLOOKUP(J183,'EXPENSE DATABASE'!$B$69:$C$168,2,FALSE)","v":{"$error":"#N/A"}},101,{"$f":"VLOOKUP(K183,'EXPENSE DATABASE'!$B$6:$C$35,2,FALSE)","v":{"$error":"#N/A"}},31,{"$f":"VLOOKUP(L183,'EXPENSE DATABASE'!$B$173:$C$176,2,FALSE)","v":{"$error":"#N/A"}},100,0,0,{"$f":"IF(L183=T('EXPENSE DATABASE'!$E$173),O183,0)","v":0},{"$f":"IF(L183=T('EXPENSE DATABASE'!$E$174),O183,0)","v":0},{"$f":"IF(L183=T('EXPENSE DATABASE'!$E$175),O183,0)","v":0},0,170]
[0,0,{"$nulls":12},{"v":0,"d":"$0.00"},{"v":0,"d":"$0.00"},{"v":0,"d":"$0.00"},0,{"$f":"IF(OR(K184='EXPENSE DATABASE'!$V$187,K184='EXPENSE DATABASE'!$V$188,K184='EXPENSE DATABASE'!$V$189,K184='EXPENSE DATABASE'!$V$190,K184='EXPENSE DATABASE'!$V$191,K184='EXPENSE DATABASE'!$V$192,K184='EXPENSE DATABASE'!$V$193,K184='EXPENSE DATABASE'!$V$194,K184='EXPENSE DATABASE'!$X$187,K184='EXPENSE DATABASE'!$X$188,K184='EXPENSE DATABASE'!$X$189,K184='EXPENSE DATABASE'!$X$190,K184='EXPENSE DATABASE'!$X$191,K184='EXPENSE DATABASE'!$X$192,K184='EXPENSE DATABASE'!$X$193,K184='EXPENSE DATABASE'!$X$194,K184='EXPENSE DATABASE'!$Z$187,K184='EXPENSE DATABASE'!$Z$188,K184='EXPENSE DATABASE'!$Z$189,K184='EXPENSE DATABASE'!$Z$190,K184='EXPENSE DATABASE'!$Z$191,K184='EXPENSE DATABASE'!$Z$192,K184='EXPENSE DATABASE'!$Z$193,K184='EXPENSE DATABASE'!$Z$194),O184,\"\")","v":""},{"$f":"IF(OR(K184='EXPENSE DATABASE'!$T$189,K184='EXPENSE DATABASE'!$T$190,K184='EXPENSE DATABASE'!$T$191),O184,\"\")","v":""},{"$f":"VLOOKUP(I184,'EXPENSE DATABASE'!$B$41:$C$65,2,FALSE)","v":{"$error":"#N/A"}},100,{"$f":"VLOOKUP(J184,'EXPENSE DATABASE'!$B$69:$C$168,2,FALSE)","v":{"$error":"#N/A"}},101,{"$f":"VLOOKUP(K184,'EXPENSE DATABASE'!$B$6:$C$35,2,FALSE)","v":{"$error":"#N/A"}},31,{"$f":"VLOOKUP(L184,'EXPENSE DATABASE'!$B$173:$C$176,2,FALSE)","v":{"$error":"#N/A"}},100,0,0,{"$f":"IF(L184=T('EXPENSE DATABASE'!$E$173),O184,0)","v":0},{"$f":"IF(L184=T('EXPENSE DATABASE'!$E$174),O184,0)","v":0},{"$f":"IF(L184=T('EXPENSE DATABASE'!$E$175),O184,0)","v":0},0,171]
[0,0,{"$nulls":12},{"v":0,"d":"$0.00"},{"v":0,"d":"$0.00"},{"v":0,"d":"$0.00"},0,{"$f":"IF(OR(K185='EXPENSE DATABASE'!$V$187,K185='EXPENSE DATABASE'!$V$188,K185='EXPENSE DATABASE'!$V$189,K185='EXPENSE DATABASE'!$V$190,K185='EXPENSE DATABASE'!$V$191,K185='EXPENSE DATABASE'!$V$192,K185='EXPENSE DATABASE'!$V$193,K185='EXPENSE DATABASE'!$V$194,K185='EXPENSE DATABASE'!$X$187,K185='EXPENSE DATABASE'!$X$188,K185='EXPENSE DATABASE'!$X$189,K185='EXPENSE DATABASE'!$X$190,K185='EXPENSE DATABASE'!$X$191,K185='EXPENSE DATABASE'!$X$192,K185='EXPENSE DATABASE'!$X$193,K185='EXPENSE DATABASE'!$X$194,K185='EXPENSE DATABASE'!$Z$187,K185='EXPENSE DATABASE'!$Z$188,K185='EXPENSE DATABASE'!$Z$189,K185='EXPENSE DATABASE'!$Z$190,K185='EXPENSE DATABASE'!$Z$191,K185='EXPENSE DATABASE'!$Z$192,K185='EXPENSE DATABASE'!$Z$193,K185='EXPENSE DATABASE'!$Z$194),O185,\"\")","v":""},{"$f":"IF(OR(K185='EXPENSE DATABASE'!$T$189,K185='EXPENSE DATABASE'!$T$190,K185='EXPENSE DATABASE'!$T$191),O185,\"\")","v":""},{"$f":"VLOOKUP(I185,'EXPENSE DATABASE'!$B$41:$C$65,2,FALSE)","v":{"$error":"#N/A"}},100,{"$f":"VLOOKUP(J185,'EXPENSE DATABASE'!$B$69:$C$168,2,FALSE)","v":{"$error":"#N/A"}},101,{"$f":"VLOOKUP(K185,'EXPENSE DATABASE'!$B$6:$C$35,2,FALSE)","v":{"$error":"#N/A"}},31,{"$f":"VLOOKUP(L185,'EXPENSE DATABASE'!$B$173:$C$176,2,FALSE)","v":{"$error":"#N/A"}},100,0,0,{"$f":"IF(L185=T('EXPENSE DATABASE'!$E$173),O185,0)","v":0},{"$f":"IF(L185=T('EXPENSE DATABASE'!$E$174),O185,0)","v":0},{"$f":"IF(L185=T('EXPENSE DATABASE'!$E$175),O185,0)","v":0},0,172]
[0,0,{"$nulls":12},{"v":0,"d":"$0.00"},{"v":0,"d":"$0.00"},{"v":0,"d":"$0.00"},0,{"$f":"IF(OR(K186='EXPENSE DATABASE'!$V$187,K186='EXPENSE DATABASE'!$V$188,K186='EXPENSE DATABASE'!$V$189,K186='EXPENSE DATABASE'!$V$190,K186='EXPENSE DATABASE'!$V$191,K186='EXPENSE DATABASE'!$V$192,K186='EXPENSE DATABASE'!$V$193,K186='EXPENSE DATABASE'!$V$194,K186='EXPENSE DATABASE'!$X$187,K186='EXPENSE DATABASE'!$X$188,K186='EXPENSE DATABASE'!$X$189,K186='EXPENSE DATABASE'!$X$190,K186='EXPENSE DATABASE'!$X$191,K186='EXPENSE DATABASE'!$X$192,K186='EXPENSE DATABASE'!$X$193,K186='EXPENSE DATABASE'!$X$194,K186='EXPENSE DATABASE'!$Z$187,K186='EXPENSE DATABASE'!$Z$188,K186='EXPENSE DATABASE'!$Z$189,K186='EXPENSE DATABASE'!$Z$190,K186='EXPENSE DATABASE'!$Z$191,K186='EXPENSE DATABASE'!$Z$192,K186='EXPENSE DATABASE'!$Z$193,K186='EXPENSE DATABASE'!$Z$194),O186,\"\")","v":""},{"$f":"IF(OR(K186='EXPENSE DATABASE'!$T$189,K186='EXPENSE DATABASE'!$T$190,K186='EXPENSE DATABASE'!$T$191),O186,\"\")","v":""},{"$f":"VLOOKUP(I186,'EXPENSE DATABASE'!$B$41:$C$65,2,FALSE)","v":{"$error":"#N/A"}},100,{"$f":"VLOOKUP(J186,'EXPENSE DATABASE'!$B$69:$C$168,2,FALSE)","v":{"$error":"#N/A"}},101,{"$f":"VLOOKUP(K186,'EXPENSE DATABASE'!$B$6:$C$35,2,FALSE)","v":{"$error":"#N/A"}},31,{"$f":"VLOOKUP(L186,'EXPENSE DATABASE'!$B$173:$C$176,2,FALSE)","v":{"$error":"#N/A"}},100,0,0,{"$f":"IF(L186=T('EXPENSE DATABASE'!$E$173),O186,0)","v":0},{"$f":"IF(L186=T('EXPENSE DATABASE'!$E$174),O186,0)","v":0},{"$f":"IF(L186=T('EXPENSE DATABASE'!$E$175),O186,0)","v":0},0,173]
[0,0,{"$nulls":12},{"v":0,"d":"$0.00"},{"v":0,"d":"$0.00"},{"v":0,"d":"$0.00"},0,{"$f":"IF(OR(K187='EXPENSE DATABASE'!$V$187,K187='EXPENSE DATABASE'!$V$188,K187='EXPENSE DATABASE'!$V$189,K187='EXPENSE DATABASE'!$V$190,K187='EXPENSE DATABASE'!$V$191,K187='EXPENSE DATABASE'!$V$192,K187='EXPENSE DATABASE'!$V$193,K187='EXPENSE DATABASE'!$V$194,K187='EXPENSE DATABASE'!$X$187,K187='EXPENSE DATABASE'!$X$188,K187='EXPENSE DATABASE'!$X$189,K187='EXPENSE DATABASE'!$X$190,K187='EXPENSE DATABASE'!$X$191,K187='EXPENSE DATABASE'!$X$192,K187='EXPENSE DATABASE'!$X$193,K187='EXPENSE DATABASE'!$X$194,K187='EXPENSE DATABASE'!$Z$187,K187='EXPENSE DATABASE'!$Z$188,K187='EXPENSE DATABASE'!$Z$189,K187='EXPENSE DATABASE'!$Z$190,K187='EXPENSE DATABASE'!$Z$191,K187='EXPENSE DATABASE'!$Z$192,K187='EXPENSE DATABASE'!$Z$193,K187='EXPENSE DATABASE'!$Z$194),O187,\"\")","v":""},{"$f":"IF(OR(K187='EXPENSE DATABASE'!$T$189,K187='EXPENSE DATABASE'!$T$190,K187='EXPENSE DATABASE'!$T$191),O187,\"\")","v":""},{"$f":"VLOOKUP(I187,'EXPENSE DATABASE'!$B$41:$C$65,2,FALSE)","v":{"$error":"#N/A"}},100,{"$f":"VLOOKUP(J187,'EXPENSE DATABASE'!$B$69:$C$168,2,FALSE)","v":{"$error":"#N/A"}},101,{"$f":"VLOOKUP(K187,'EXPENSE DATABASE'!$B$6:$C$35,2,FALSE)","v":{"$error":"#N/A"}},31,{"$f":"VLOOKUP(L187,'EXPENSE DATABASE'!$B$173:$C$176,2,FALSE)","v":{"$error":"#N/A"}},100,0,0,{"$f":"IF(L187=T('EXPENSE DATABASE'!$E$173),O187,0)","v":0},{"$f":"IF(L187=T('EXPENSE DATABASE'!$E$174),O187,0)","v":0},{"$f":"IF(L187=T('EXPENSE DATABASE'!$E$175),O187,0)","v":0},0,174]
[0,0,{"$nulls":12},{"v":0,"d":"$0.00"},{"v":0,"d":"$0.00"},{"v":0,"d":"$0.00"},0,{"$f":"IF(OR(K188='EXPENSE DATABASE'!$V$187,K188='EXPENSE DATABASE'!$V$188,K188='EXPENSE DATABASE'!$V$189,K188='EXPENSE DATABASE'!$V$190,K188='EXPENSE DATABASE'!$V$191,K188='EXPENSE DATABASE'!$V$192,K188='EXPENSE DATABASE'!$V$193,K188='EXPENSE DATABASE'!$V$194,K188='EXPENSE DATABASE'!$X$187,K188='EXPENSE DATABASE'!$X$188,K188='EXPENSE DATABASE'!$X$189,K188='EXPENSE DATABASE'!$X$190,K188='EXPENSE DATABASE'!$X$191,K188='EXPENSE DATABASE'!$X$192,K188='EXPENSE DATABASE'!$X$193,K188='EXPENSE DATABASE'!$X$194,K188='EXPENSE DATABASE'!$Z$187,K188='EXPENSE DATABASE'!$Z$188,K188='EXPENSE DATABASE'!$Z$189,K188='EXPENSE DATABASE'!$Z$190,K188='EXPENSE DATABASE'!$Z$191,K188='EXPENSE DATABASE'!$Z$192,K188='EXPENSE DATABASE'!$Z$193,K188='EXPENSE DATABASE'!$Z$194),O188,\"\")","v":""},{"$f":"IF(OR(K188='EXPENSE DATABASE'!$T$189,K188='EXPENSE DATABASE'!$T$190,K188='EXPENSE DATABASE'!$T$191),O188,\"\")","v":""},{"$f":"VLOOKUP(I188,'EXPENSE DATABASE'!$B$41:$C$65,2,FALSE)","v":{"$error":"#N/A"}},100,{"$f":"VLOOKUP(J188,'EXPENSE DATABASE'!$B$69:$C$168,2,FALSE)","v":{"$error":"#N/A"}},101,{"$f":"VLOOKUP(K188,'EXPENSE DATABASE'!$B$6:$C$35,2,FALSE)","v":{"$error":"#N/A"}},31,{"$f":"VLOOKUP(L188,'EXPENSE DATABASE'!$B$173:$C$176,2,FALSE)","v":{"$error":"#N/A"}},100,0,0,{"$f":"IF(L188=T('EXPENSE DATABASE'!$E$173),O188,0)","v":0},{"$f":"IF(L188=T('EXPENSE DATABASE'!$E$174),O188,0)","v":0},{"$f":"IF(L188=T('EXPENSE DATABASE'!$E$175),O188,0)","v":0},0,175]
[0,0,{"$nulls":12},{"v":0,"d":"$0.00"},{"v":0,"d":"$0.00"},{"v":0,"d":"$0.00"},0,{"$f":"IF(OR(K189='EXPENSE DATABASE'!$V$187,K189='EXPENSE DATABASE'!$V$188,K189='EXPENSE DATABASE'!$V$189,K189='EXPENSE DATABASE'!$V$190,K189='EXPENSE DATABASE'!$V$191,K189='EXPENSE DATABASE'!$V$192,K189='EXPENSE DATABASE'!$V$193,K189='EXPENSE DATABASE'!$V$194,K189='EXPENSE DATABASE'!$X$187,K189='EXPENSE DATABASE'!$X$188,K189='EXPENSE DATABASE'!$X$189,K189='EXPENSE DATABASE'!$X$190,K189='EXPENSE DATABASE'!$X$191,K189='EXPENSE DATABASE'!$X$192,K189='EXPENSE DATABASE'!$X$193,K189='EXPENSE DATABASE'!$X$194,K189='EXPENSE DATABASE'!$Z$187,K189='EXPENSE DATABASE'!$Z$188,K189='EXPENSE DATABASE'!$Z$189,K189='EXPENSE DATABASE'!$Z$190,K189='EXPENSE DATABASE'!$Z$191,K189='EXPENSE DATABASE'!$Z$192,K189='EXPENSE DATABASE'!$Z$193,K189='EXPENSE DATABASE'!$Z$194),O189,\"\")","v":""},{"$f":"IF(OR(K189='EXPENSE DATABASE'!$T$189,K189='EXPENSE DATABASE'!$T$190,K189='EXPENSE DATABASE'!$T$191),O189,\"\")","v":""},{"$f":"VLOOKUP(I189,'EXPENSE DATABASE'!$B$41:$C$65,2,FALSE)","v":{"$error":"#N/A"}},100,{"$f":"VLOOKUP(J189,'EXPENSE DATABASE'!$B$69:$C$168,2,FALSE)","v":{"$error":"#N/A"}},101,{"$f":"VLOOKUP(K189,'EXPENSE DATABASE'!$B$6:$C$35,2,FALSE)","v":{"$error":"#N/A"}},31,{"$f":"VLOOKUP(L189,'EXPENSE DATABASE'!$B$173:$C$176,2,FALSE)","v":{"$error":"#N/A"}},100,0,0,{"$f":"IF(L189=T('EXPENSE DATABASE'!$E$173),O189,0)","v":0},{"$f":"IF(L189=T('EXPENSE DATABASE'!$E$174),O189,0)","v":0},{"$f":"IF(L189=T('EXPENSE DATABASE'!$E$175),O189,0)","v":0},0,176]
[0,0,{"$nulls":12},{"v":0,"d":"$0.00"},{"v":0,"d":"$0.00"},{"v":0,"d":"$0.00"},0,{"$f":"IF(OR(K190='EXPENSE DATABASE'!$V$187,K190='EXPENSE DATABASE'!$V$188,K190='EXPENSE DATABASE'!$V$189,K190='EXPENSE DATABASE'!$V$190,K190='EXPENSE DATABASE'!$V$191,K190='EXPENSE DATABASE'!$V$192,K190='EXPENSE DATABASE'!$V$193,K190='EXPENSE DATABASE'!$V$194,K190='EXPENSE DATABASE'!$X$187,K190='EXPENSE DATABASE'!$X$188,K190='EXPENSE DATABASE'!$X$189,K190='EXPENSE DATABASE'!$X$190,K190='EXPENSE DATABASE'!$X$191,K190='EXPENSE DATABASE'!$X$192,K190='EXPENSE DATABASE'!$X$193,K190='EXPENSE DATABASE'!$X$194,K190='EXPENSE DATABASE'!$Z$187,K190='EXPENSE DATABASE'!$Z$188,K190='EXPENSE DATABASE'!$Z$189,K190='EXPENSE DATABASE'!$Z$190,K190='EXPENSE DATABASE'!$Z$191,K190='EXPENSE DATABASE'!$Z$192,K190='EXPENSE DATABASE'!$Z$193,K190='EXPENSE DATABASE'!$Z$194),O190,\"\")","v":""},{"$f":"IF(OR(K190='EXPENSE DATABASE'!$T$189,K190='EXPENSE DATABASE'!$T$190,K190='EXPENSE DATABASE'!$T$191),O190,\"\")","v":""},{"$f":"VLOOKUP(I190,'EXPENSE DATABASE'!$B$41:$C$65,2,FALSE)","v":{"$error":"#N/A"}},100,{"$f":"VLOOKUP(J190,'EXPENSE DATABASE'!$B$69:$C$168,2,FALSE)","v":{"$error":"#N/A"}},101,{"$f":"VLOOKUP(K190,'EXPENSE DATABASE'!$B$6:$C$35,2,FALSE)","v":{"$error":"#N/A"}},31,{"$f":"VLOOKUP(L190,'EXPENSE DATABASE'!$B$173:$C$176,2,FALSE)","v":{"$error":"#N/A"}},100,0,0,{"$f":"IF(L190=T('EXPENSE DATABASE'!$E$173),O190,0)","v":0},{"$f":"IF(L190=T('EXPENSE DATABASE'!$E$174),O190,0)","v":0},{"$f":"IF(L190=T('EXPENSE DATABASE'!$E$175),O190,0)","v":0},0,177]
[0,0,{"$nulls":12},{"v":0,"d":"$0.00"},{"v":0,"d":"$0.00"},{"v":0,"d":"$0.00"},0,{"$f":"IF(OR(K191='EXPENSE DATABASE'!$V$187,K191='EXPENSE DATABASE'!$V$188,K191='EXPENSE DATABASE'!$V$189,K191='EXPENSE DATABASE'!$V$190,K191='EXPENSE DATABASE'!$V$191,K191='EXPENSE DATABASE'!$V$192,K191='EXPENSE DATABASE'!$V$193,K191='EXPENSE DATABASE'!$V$194,K191='EXPENSE DATABASE'!$X$187,K191='EXPENSE DATABASE'!$X$188,K191='EXPENSE DATABASE'!$X$189,K191='EXPENSE DATABASE'!$X$190,K191='EXPENSE DATABASE'!$X$191,K191='EXPENSE DATABASE'!$X$192,K191='EXPENSE DATABASE'!$X$193,K191='EXPENSE DATABASE'!$X$194,K191='EXPENSE DATABASE'!$Z$187,K191='EXPENSE DATABASE'!$Z$188,K191='EXPENSE DATABASE'!$Z$189,K191='EXPENSE DATABASE'!$Z$190,K191='EXPENSE DATABASE'!$Z$191,K191='EXPENSE DATABASE'!$Z$192,K191='EXPENSE DATABASE'!$Z$193,K191='EXPENSE DATABASE'!$Z$194),O191,\"\")","v":""},{"$f":"IF(OR(K191='EXPENSE DATABASE'!$T$189,K191='EXPENSE DATABASE'!$T$190,K191='EXPENSE DATABASE'!$T$191),O191,\"\")","v":""},{"$f":"VLOOKUP(I191,'EXPENSE DATABASE'!$B$41:$C$65,2,FALSE)","v":{"$error":"#N/A"}},100,{"$f":"VLOOKUP(J191,'EXPENSE DATABASE'!$B$69:$C$168,2,FALSE)","v":{"$error":"#N/A"}},101,{"$f":"VLOOKUP(K191,'EXPENSE DATABASE'!$B$6:$C$35,2,FALSE)","v":{"$error":"#N/A"}},31,{"$f":"VLOOKUP(L191,'EXPENSE DATABASE'!$B$173:$C$176,2,FALSE)","v":{"$error":"#N/A"}},100,0,0,{"$f":"IF(L191=T('EXPENSE DATABASE'!$E$173),O191,0)","v":0},{"$f":"IF(L191=T('EXPENSE DATABASE'!$E$174),O191,0)","v":0},{"$f":"IF(L191=T('EXPENSE DATABASE'!$E$175),O191,0)","v":0},0,178]
[0,0,{"$nulls":12},{"v":0,"d":"$0.00"},{"v":0,"d":"$0.00"},{"v":0,"d":"$0.00"},0,{"$f":"IF(OR(K192='EXPENSE DATABASE'!$V$187,K192='EXPENSE DATABASE'!$V$188,K192='EXPENSE DATABASE'!$V$189,K192='EXPENSE DATABASE'!$V$190,K192='EXPENSE DATABASE'!$V$191,K192='EXPENSE DATABASE'!$V$192,K192='EXPENSE DATABASE'!$V$193,K192='EXPENSE DATABASE'!$V$194,K192='EXPENSE DATABASE'!$X$187,K192='EXPENSE DATABASE'!$X$188,K192='EXPENSE DATABASE'!$X$189,K192='EXPENSE DATABASE'!$X$190,K192='EXPENSE DATABASE'!$X$191,K192='EXPENSE DATABASE'!$X$192,K192='EXPENSE DATABASE'!$X$193,K192='EXPENSE DATABASE'!$X$194,K192='EXPENSE DATABASE'!$Z$187,K192='EXPENSE DATABASE'!$Z$188,K192='EXPENSE DATABASE'!$Z$189,K192='EXPENSE DATABASE'!$Z$190,K192='EXPENSE DATABASE'!$Z$191,K192='EXPENSE DATABASE'!$Z$192,K192='EXPENSE DATABASE'!$Z$193,K192='EXPENSE DATABASE'!$Z$194),O192,\"\")","v":""},{"$f":"IF(OR(K192='EXPENSE DATABASE'!$T$189,K192='EXPENSE DATABASE'!$T$190,K192='EXPENSE DATABASE'!$T$191),O192,\"\")","v":""},{"$f":"VLOOKUP(I192,'EXPENSE DATABASE'!$B$41:$C$65,2,FALSE)","v":{"$error":"#N/A"}},100,{"$f":"VLOOKUP(J192,'EXPENSE DATABASE'!$B$69:$C$168,2,FALSE)","v":{"$error":"#N/A"}},101,{"$f":"VLOOKUP(K192,'EXPENSE DATABASE'!$B$6:$C$35,2,FALSE)","v":{"$error":"#N/A"}},31,{"$f":"VLOOKUP(L192,'EXPENSE DATABASE'!$B$173:$C$176,2,FALSE)","v":{"$error":"#N/A"}},100,0,0,{"$f":"IF(L192=T('EXPENSE DATABASE'!$E$173),O192,0)","v":0},{"$f":"IF(L192=T('EXPENSE DATABASE'!$E$174),O192,0)","v":0},{"$f":"IF(L192=T('EXPENSE DATABASE'!$E$175),O192,0)","v":0},0,179]
[0,0,{"$nulls":12},{"v":0,"d":"$0.00"},{"v":0,"d":"$0.00"},{"v":0,"d":"$0.00"},0,{"$f":"IF(OR(K193='EXPENSE DATABASE'!$V$187,K193='EXPENSE DATABASE'!$V$188,K193='EXPENSE DATABASE'!$V$189,K193='EXPENSE DATABASE'!$V$190,K193='EXPENSE DATABASE'!$V$191,K193='EXPENSE DATABASE'!$V$192,K193='EXPENSE DATABASE'!$V$193,K193='EXPENSE DATABASE'!$V$194,K193='EXPENSE DATABASE'!$X$187,K193='EXPENSE DATABASE'!$X$188,K193='EXPENSE DATABASE'!$X$189,K193='EXPENSE DATABASE'!$X$190,K193='EXPENSE DATABASE'!$X$191,K193='EXPENSE DATABASE'!$X$192,K193='EXPENSE DATABASE'!$X$193,K193='EXPENSE DATABASE'!$X$194,K193='EXPENSE DATABASE'!$Z$187,K193='EXPENSE DATABASE'!$Z$188,K193='EXPENSE DATABASE'!$Z$189,K193='EXPENSE DATABASE'!$Z$190,K193='EXPENSE DATABASE'!$Z$191,K193='EXPENSE DATABASE'!$Z$192,K193='EXPENSE DATABASE'!$Z$193,K193='EXPENSE DATABASE'!$Z$194),O193,\"\")","v":""},{"$f":"IF(OR(K193='EXPENSE DATABASE'!$T$189,K193='EXPENSE DATABASE'!$T$190,K193='EXPENSE DATABASE'!$T$191),O193,\"\")","v":""},{"$f":"VLOOKUP(I193,'EXPENSE DATABASE'!$B$41:$C$65,2,FALSE)","v":{"$error":"#N/A"}},100,{"$f":"VLOOKUP(J193,'EXPENSE DATABASE'!$B$69:$C$168,2,FALSE)","v":{"$error":"#N/A"}},101,{"$f":"VLOOKUP(K193,'EXPENSE DATABASE'!$B$6:$C$35,2,FALSE)","v":{"$error":"#N/A"}},31,{"$f":"VLOOKUP(L193,'EXPENSE DATABASE'!$B$173:$C$176,2,FALSE)","v":{"$error":"#N/A"}},100,0,0,{"$f":"IF(L193=T('EXPENSE DATABASE'!$E$173),O193,0)","v":0},{"$f":"IF(L193=T('EXPENSE DATABASE'!$E$174),O193,0)","v":0},{"$f":"IF(L193=T('EXPENSE DATABASE'!$E$175),O193,0)","v":0},0,180]
[0,0,{"$nulls":12},{"v":0,"d":"$0.00"},{"v":0,"d":"$0.00"},{"v":0,"d":"$0.00"},0,{"$f":"IF(OR(K194='EXPENSE DATABASE'!$V$187,K194='EXPENSE DATABASE'!$V$188,K194='EXPENSE DATABASE'!$V$189,K194='EXPENSE DATABASE'!$V$190,K194='EXPENSE DATABASE'!$V$191,K194='EXPENSE DATABASE'!$V$192,K194='EXPENSE DATABASE'!$V$193,K194='EXPENSE DATABASE'!$V$194,K194='EXPENSE DATABASE'!$X$187,K194='EXPENSE DATABASE'!$X$188,K194='EXPENSE DATABASE'!$X$189,K194='EXPENSE DATABASE'!$X$190,K194='EXPENSE DATABASE'!$X$191,K194='EXPENSE DATABASE'!$X$192,K194='EXPENSE DATABASE'!$X$193,K194='EXPENSE DATABASE'!$X$194,K194='EXPENSE DATABASE'!$Z$187,K194='EXPENSE DATABASE'!$Z$188,K194='EXPENSE DATABASE'!$Z$189,K194='EXPENSE DATABASE'!$Z$190,K194='EXPENSE DATABASE'!$Z$191,K194='EXPENSE DATABASE'!$Z$192,K194='EXPENSE DATABASE'!$Z$193,K194='EXPENSE DATABASE'!$Z$194),O194,\"\")","v":""},{"$f":"IF(OR(K194='EXPENSE DATABASE'!$T$189,K194='EXPENSE DATABASE'!$T$190,K194='EXPENSE DATABASE'!$T$191),O194,\"\")","v":""},{"$f":"VLOOKUP(I194,'EXPENSE DATABASE'!$B$41:$C$65,2,FALSE)","v":{"$error":"#N/A"}},100,{"$f":"VLOOKUP(J194,'EXPENSE DATABASE'!$B$69:$C$168,2,FALSE)","v":{"$error":"#N/A"}},101,{"$f":"VLOOKUP(K194,'EXPENSE DATABASE'!$B$6:$C$35,2,FALSE)","v":{"$error":"#N/A"}},31,{"$f":"VLOOKUP(L194,'EXPENSE DATABASE'!$B$173:$C$176,2,FALSE)","v":{"$error":"#N/A"}},100,0,0,{"$f":"IF(L194=T('EXPENSE DATABASE'!$E$173),O194,0)","v":0},{"$f":"IF(L194=T('EXPENSE DATABASE'!$E$174),O194,0)","v":0},{"$f":"IF(L194=T('EXPENSE DATABASE'!$E$175),O194,0)","v":0},0,181]
[0,0,{"$nulls":12},{"v":0,"d":"$0.00"},{"v":0,"d":"$0.00"},{"v":0,"d":"$0.00"},0,{"$f":"IF(OR(K195='EXPENSE DATABASE'!$V$187,K195='EXPENSE DATABASE'!$V$188,K195='EXPENSE DATABASE'!$V$189,K195='EXPENSE DATABASE'!$V$190,K195='EXPENSE DATABASE'!$V$191,K195='EXPENSE DATABASE'!$V$192,K195='EXPENSE DATABASE'!$V$193,K195='EXPENSE DATABASE'!$V$194,K195='EXPENSE DATABASE'!$X$187,K195='EXPENSE DATABASE'!$X$188,K195='EXPENSE DATABASE'!$X$189,K195='EXPENSE DATABASE'!$X$190,K195='EXPENSE DATABASE'!$X$191,K195='EXPENSE DATABASE'!$X$192,K195='EXPENSE DATABASE'!$X$193,K195='EXPENSE DATABASE'!$X$194,K195='EXPENSE DATABASE'!$Z$187,K195='EXPENSE DATABASE'!$Z$188,K195='EXPENSE DATABASE'!$Z$189,K195='EXPENSE DATABASE'!$Z$190,K195='EXPENSE DATABASE'!$Z$191,K195='EXPENSE DATABASE'!$Z$192,K195='EXPENSE DATABASE'!$Z$193,K195='EXPENSE DATABASE'!$Z$194),O195,\"\")","v":""},{"$f":"IF(OR(K195='EXPENSE DATABASE'!$T$189,K195='EXPENSE DATABASE'!$T$190,K195='EXPENSE DATABASE'!$T$191),O195,\"\")","v":""},{"$f":"VLOOKUP(I195,'EXPENSE DATABASE'!$B$41:$C$65,2,FALSE)","v":{"$error":"#N/A"}},100,{"$f":"VLOOKUP(J195,'EXPENSE DATABASE'!$B$69:$C$168,2,FALSE)","v":{"$error":"#N/A"}},101,{"$f":"VLOOKUP(K195,'EXPENSE DATABASE'!$B$6:$C$35,2,FALSE)","v":{"$error":"#N/A"}},31,{"$f":"VLOOKUP(L195,'EXPENSE DATABASE'!$B$173:$C$176,2,FALSE)","v":{"$error":"#N/A"}},100,0,0,{"$f":"IF(L195=T('EXPENSE DATABASE'!$E$173),O195,0)","v":0},{"$f":"IF(L195=T('EXPENSE DATABASE'!$E$174),O195,0)","v":0},{"$f":"IF(L195=T('EXPENSE DATABASE'!$E$175),O195,0)","v":0},0,182]
[0,0,{"$nulls":12},{"v":0,"d":"$0.00"},{"v":0,"d":"$0.00"},{"v":0,"d":"$0.00"},0,{"$f":"IF(OR(K196='EXPENSE DATABASE'!$V$187,K196='EXPENSE DATABASE'!$V$188,K196='EXPENSE DATABASE'!$V$189,K196='EXPENSE DATABASE'!$V$190,K196='EXPENSE DATABASE'!$V$191,K196='EXPENSE DATABASE'!$V$192,K196='EXPENSE DATABASE'!$V$193,K196='EXPENSE DATABASE'!$V$194,K196='EXPENSE DATABASE'!$X$187,K196='EXPENSE DATABASE'!$X$188,K196='EXPENSE DATABASE'!$X$189,K196='EXPENSE DATABASE'!$X$190,K196='EXPENSE DATABASE'!$X$191,K196='EXPENSE DATABASE'!$X$192,K196='EXPENSE DATABASE'!$X$193,K196='EXPENSE DATABASE'!$X$194,K196='EXPENSE DATABASE'!$Z$187,K196='EXPENSE DATABASE'!$Z$188,K196='EXPENSE DATABASE'!$Z$189,K196='EXPENSE DATABASE'!$Z$190,K196='EXPENSE DATABASE'!$Z$191,K196='EXPENSE DATABASE'!$Z$192,K196='EXPENSE DATABASE'!$Z$193,K196='EXPENSE DATABASE'!$Z$194),O196,\"\")","v":""},{"$f":"IF(OR(K196='EXPENSE DATABASE'!$T$189,K196='EXPENSE DATABASE'!$T$190,K196='EXPENSE DATABASE'!$T$191),O196,\"\")","v":""},{"$f":"VLOOKUP(I196,'EXPENSE DATABASE'!$B$41:$C$65,2,FALSE)","v":{"$error":"#N/A"}},100,{"$f":"VLOOKUP(J196,'EXPENSE DATABASE'!$B$69:$C$168,2,FALSE)","v":{"$error":"#N/A"}},101,{"$f":"VLOOKUP(K196,'EXPENSE DATABASE'!$B$6:$C$35,2,FALSE)","v":{"$error":"#N/A"}},31,{"$f":"VLOOKUP(L196,'EXPENSE DATABASE'!$B$173:$C$176,2,FALSE)","v":{"$error":"#N/A"}},100,0,0,{"$f":"IF(L196=T('EXPENSE DATABASE'!$E$173),O196,0)","v":0},{"$f":"IF(L196=T('EXPENSE DATABASE'!$E$174),O196,0)","v":0},{"$f":"IF(L196=T('EXPENSE DATABASE'!$E$175),O196,0)","v":0},0,183]
[0,0,{"$nulls":12},{"v":0,"d":"$0.00"},{"v":0,"d":"$0.00"},{"v":0,"d":"$0.00"},0,{"$f":"IF(OR(K197='EXPENSE DATABASE'!$V$187,K197='EXPENSE DATABASE'!$V$188,K197='EXPENSE DATABASE'!$V$189,K197='EXPENSE DATABASE'!$V$190,K197='EXPENSE DATABASE'!$V$191,K197='EXPENSE DATABASE'!$V$192,K197='EXPENSE DATABASE'!$V$193,K197='EXPENSE DATABASE'!$V$194,K197='EXPENSE DATABASE'!$X$187,K197='EXPENSE DATABASE'!$X$188,K197='EXPENSE DATABASE'!$X$189,K197='EXPENSE DATABASE'!$X$190,K197='EXPENSE DATABASE'!$X$191,K197='EXPENSE DATABASE'!$X$192,K197='EXPENSE DATABASE'!$X$193,K197='EXPENSE DATABASE'!$X$194,K197='EXPENSE DATABASE'!$Z$187,K197='EXPENSE DATABASE'!$Z$188,K197='EXPENSE DATABASE'!$Z$189,K197='EXPENSE DATABASE'!$Z$190,K197='EXPENSE DATABASE'!$Z$191,K197='EXPENSE DATABASE'!$Z$192,K197='EXPENSE DATABASE'!$Z$193,K197='EXPENSE DATABASE'!$Z$194),O197,\"\")","v":""},{"$f":"IF(OR(K197='EXPENSE DATABASE'!$T$189,K197='EXPENSE DATABASE'!$T$190,K197='EXPENSE DATABASE'!$T$191),O197,\"\")","v":""},{"$f":"VLOOKUP(I197,'EXPENSE DATABASE'!$B$41:$C$65,2,FALSE)","v":{"$error":"#N/A"}},100,{"$f":"VLOOKUP(J197,'EXPENSE DATABASE'!$B$69:$C$168,2,FALSE)","v":{"$error":"#N/A"}},101,{"$f":"VLOOKUP(K197,'EXPENSE DATABASE'!$B$6:$C$35,2,FALSE)","v":{"$error":"#N/A"}},31,{"$f":"VLOOKUP(L197,'EXPENSE DATABASE'!$B$173:$C$176,2,FALSE)","v":{"$error":"#N/A"}},100,0,0,{"$f":"IF(L197=T('EXPENSE DATABASE'!$E$173),O197,0)","v":0},{"$f":"IF(L197=T('EXPENSE DATABASE'!$E$174),O197,0)","v":0},{"$f":"IF(L197=T('EXPENSE DATABASE'!$E$175),O197,0)","v":0},0,184]
[0,0,{"$nulls":12},{"v":0,"d":"$0.00"},{"v":0,"d":"$0.00"},{"v":0,"d":"$0.00"},0,{"$f":"IF(OR(K198='EXPENSE DATABASE'!$V$187,K198='EXPENSE DATABASE'!$V$188,K198='EXPENSE DATABASE'!$V$189,K198='EXPENSE DATABASE'!$V$190,K198='EXPENSE DATABASE'!$V$191,K198='EXPENSE DATABASE'!$V$192,K198='EXPENSE DATABASE'!$V$193,K198='EXPENSE DATABASE'!$V$194,K198='EXPENSE DATABASE'!$X$187,K198='EXPENSE DATABASE'!$X$188,K198='EXPENSE DATABASE'!$X$189,K198='EXPENSE DATABASE'!$X$190,K198='EXPENSE DATABASE'!$X$191,K198='EXPENSE DATABASE'!$X$192,K198='EXPENSE DATABASE'!$X$193,K198='EXPENSE DATABASE'!$X$194,K198='EXPENSE DATABASE'!$Z$187,K198='EXPENSE DATABASE'!$Z$188,K198='EXPENSE DATABASE'!$Z$189,K198='EXPENSE DATABASE'!$Z$190,K198='EXPENSE DATABASE'!$Z$191,K198='EXPENSE DATABASE'!$Z$192,K198='EXPENSE DATABASE'!$Z$193,K198='EXPENSE DATABASE'!$Z$194),O198,\"\")","v":""},{"$f":"IF(OR(K198='EXPENSE DATABASE'!$T$189,K198='EXPENSE DATABASE'!$T$190,K198='EXPENSE DATABASE'!$T$191),O198,\"\")","v":""},{"$f":"VLOOKUP(I198,'EXPENSE DATABASE'!$B$41:$C$65,2,FALSE)","v":{"$error":"#N/A"}},100,{"$f":"VLOOKUP(J198,'EXPENSE DATABASE'!$B$69:$C$168,2,FALSE)","v":{"$error":"#N/A"}},101,{"$f":"VLOOKUP(K198,'EXPENSE DATABASE'!$B$6:$C$35,2,FALSE)","v":{"$error":"#N/A"}},31,{"$f":"VLOOKUP(L198,'EXPENSE DATABASE'!$B$173:$C$176,2,FALSE)","v":{"$error":"#N/A"}},100,0,0,{"$f":"IF(L198=T('EXPENSE DATABASE'!$E$173),O198,0)","v":0},{"$f":"IF(L198=T('EXPENSE DATABASE'!$E$174),O198,0)","v":0},{"$f":"IF(L198=T('EXPENSE DATABASE'!$E$175),O198,0)","v":0},0,185]
[0,0,{"$nulls":12},{"v":0,"d":"$0.00"},{"v":0,"d":"$0.00"},{"v":0,"d":"$0.00"},0,{"$f":"IF(OR(K199='EXPENSE DATABASE'!$V$187,K199='EXPENSE DATABASE'!$V$188,K199='EXPENSE DATABASE'!$V$189,K199='EXPENSE DATABASE'!$V$190,K199='EXPENSE DATABASE'!$V$191,K199='EXPENSE DATABASE'!$V$192,K199='EXPENSE DATABASE'!$V$193,K199='EXPENSE DATABASE'!$V$194,K199='EXPENSE DATABASE'!$X$187,K199='EXPENSE DATABASE'!$X$188,K199='EXPENSE DATABASE'!$X$189,K199='EXPENSE DATABASE'!$X$190,K199='EXPENSE DATABASE'!$X$191,K199='EXPENSE DATABASE'!$X$192,K199='EXPENSE DATABASE'!$X$193,K199='EXPENSE DATABASE'!$X$194,K199='EXPENSE DATABASE'!$Z$187,K199='EXPENSE DATABASE'!$Z$188,K199='EXPENSE DATABASE'!$Z$189,K199='EXPENSE DATABASE'!$Z$190,K199='EXPENSE DATABASE'!$Z$191,K199='EXPENSE DATABASE'!$Z$192,K199='EXPENSE DATABASE'!$Z$193,K199='EXPENSE DATABASE'!$Z$194),O199,\"\")","v":""},{"$f":"IF(OR(K199='EXPENSE DATABASE'!$T$189,K199='EXPENSE DATABASE'!$T$190,K199='EXPENSE DATABASE'!$T$191),O199,\"\")","v":""},{"$f":"VLOOKUP(I199,'EXPENSE DATABASE'!$B$41:$C$65,2,FALSE)","v":{"$error":"#N/A"}},100,{"$f":"VLOOKUP(J199,'EXPENSE DATABASE'!$B$69:$C$168,2,FALSE)","v":{"$error":"#N/A"}},101,{"$f":"VLOOKUP(K199,'EXPENSE DATABASE'!$B$6:$C$35,2,FALSE)","v":{"$error":"#N/A"}},31,{"$f":"VLOOKUP(L199,'EXPENSE DATABASE'!$B$173:$C$176,2,FALSE)","v":{"$error":"#N/A"}},100,0,0,{"$f":"IF(L199=T('EXPENSE DATABASE'!$E$173),O199,0)","v":0},{"$f":"IF(L199=T('EXPENSE DATABASE'!$E$174),O199,0)","v":0},{"$f":"IF(L199=T('EXPENSE DATABASE'!$E$175),O199,0)","v":0},0,186]
[0,0,{"$nulls":12},{"v":0,"d":"$0.00"},{"v":0,"d":"$0.00"},{"v":0,"d":"$0.00"},0,{"$f":"IF(OR(K200='EXPENSE DATABASE'!$V$187,K200='EXPENSE DATABASE'!$V$188,K200='EXPENSE DATABASE'!$V$189,K200='EXPENSE DATABASE'!$V$190,K200='EXPENSE DATABASE'!$V$191,K200='EXPENSE DATABASE'!$V$192,K200='EXPENSE DATABASE'!$V$193,K200='EXPENSE DATABASE'!$V$194,K200='EXPENSE DATABASE'!$X$187,K200='EXPENSE DATABASE'!$X$188,K200='EXPENSE DATABASE'!$X$189,K200='EXPENSE DATABASE'!$X$190,K200='EXPENSE DATABASE'!$X$191,K200='EXPENSE DATABASE'!$X$192,K200='EXPENSE DATABASE'!$X$193,K200='EXPENSE DATABASE'!$X$194,K200='EXPENSE DATABASE'!$Z$187,K200='EXPENSE DATABASE'!$Z$188,K200='EXPENSE DATABASE'!$Z$189,K200='EXPENSE DATABASE'!$Z$190,K200='EXPENSE DATABASE'!$Z$191,K200='EXPENSE DATABASE'!$Z$192,K200='EXPENSE DATABASE'!$Z$193,K200='EXPENSE DATABASE'!$Z$194),O200,\"\")","v":""},{"$f":"IF(OR(K200='EXPENSE DATABASE'!$T$189,K200='EXPENSE DATABASE'!$T$190,K200='EXPENSE DATABASE'!$T$191),O200,\"\")","v":""},{"$f":"VLOOKUP(I200,'EXPENSE DATABASE'!$B$41:$C$65,2,FALSE)","v":{"$error":"#N/A"}},100,{"$f":"VLOOKUP(J200,'EXPENSE DATABASE'!$B$69:$C$168,2,FALSE)","v":{"$error":"#N/A"}},101,{"$f":"VLOOKUP(K200,'EXPENSE DATABASE'!$B$6:$C$35,2,FALSE)","v":{"$error":"#N/A"}},31,{"$f":"VLOOKUP(L200,'EXPENSE DATABASE'!$B$173:$C$176,2,FALSE)","v":{"$error":"#N/A"}},100,0,0,{"$f":"IF(L200=T('EXPENSE DATABASE'!$E$173),O200,0)","v":0},{"$f":"IF(L200=T('EXPENSE DATABASE'!$E$174),O200,0)","v":0},{"$f":"IF(L200=T('EXPENSE DATABASE'!$E$175),O200,0)","v":0},0,187]
[0,0,{"$nulls":12},{"v":0,"d":"$0.00"},{"v":0,"d":"$0.00"},{"v":0,"d":"$0.00"},0,{"$f":"IF(OR(K201='EXPENSE DATABASE'!$V$187,K201='EXPENSE DATABASE'!$V$188,K201='EXPENSE DATABASE'!$V$189,K201='EXPENSE DATABASE'!$V$190,K201='EXPENSE DATABASE'!$V$191,K201='EXPENSE DATABASE'!$V$192,K201='EXPENSE DATABASE'!$V$193,K201='EXPENSE DATABASE'!$V$194,K201='EXPENSE DATABASE'!$X$187,K201='EXPENSE DATABASE'!$X$188,K201='EXPENSE DATABASE'!$X$189,K201='EXPENSE DATABASE'!$X$190,K201='EXPENSE DATABASE'!$X$191,K201='EXPENSE DATABASE'!$X$192,K201='EXPENSE DATABASE'!$X$193,K201='EXPENSE DATABASE'!$X$194,K201='EXPENSE DATABASE'!$Z$187,K201='EXPENSE DATABASE'!$Z$188,K201='EXPENSE DATABASE'!$Z$189,K201='EXPENSE DATABASE'!$Z$190,K201='EXPENSE DATABASE'!$Z$191,K201='EXPENSE DATABASE'!$Z$192,K201='EXPENSE DATABASE'!$Z$193,K201='EXPENSE DATABASE'!$Z$194),O201,\"\")","v":""},{"$f":"IF(OR(K201='EXPENSE DATABASE'!$T$189,K201='EXPENSE DATABASE'!$T$190,K201='EXPENSE DATABASE'!$T$191),O201,\"\")","v":""},{"$f":"VLOOKUP(I201,'EXPENSE DATABASE'!$B$41:$C$65,2,FALSE)","v":{"$error":"#N/A"}},100,{"$f":"VLOOKUP(J201,'EXPENSE DATABASE'!$B$69:$C$168,2,FALSE)","v":{"$error":"#N/A"}},101,{"$f":"VLOOKUP(K201,'EXPENSE DATABASE'!$B$6:$C$35,2,FALSE)","v":{"$error":"#N/A"}},31,{"$f":"VLOOKUP(L201,'EXPENSE DATABASE'!$B$173:$C$176,2,FALSE)","v":{"$error":"#N/A"}},100,0,0,{"$f":"IF(L201=T('EXPENSE DATABASE'!$E$173),O201,0)","v":0},{"$f":"IF(L201=T('EXPENSE DATABASE'!$E$174),O201,0)","v":0},{"$f":"IF(L201=T('EXPENSE DATABASE'!$E$175),O201,0)","v":0},0,188]
[0,0,{"$nulls":12},{"v":0,"d":"$0.00"},{"v":0,"d":"$0.00"},{"v":0,"d":"$0.00"},0,{"$f":"IF(OR(K202='EXPENSE DATABASE'!$V$187,K202='EXPENSE DATABASE'!$V$188,K202='EXPENSE DATABASE'!$V$189,K202='EXPENSE DATABASE'!$V$190,K202='EXPENSE DATABASE'!$V$191,K202='EXPENSE DATABASE'!$V$192,K202='EXPENSE DATABASE'!$V$193,K202='EXPENSE DATABASE'!$V$194,K202='EXPENSE DATABASE'!$X$187,K202='EXPENSE DATABASE'!$X$188,K202='EXPENSE DATABASE'!$X$189,K202='EXPENSE DATABASE'!$X$190,K202='EXPENSE DATABASE'!$X$191,K202='EXPENSE DATABASE'!$X$192,K202='EXPENSE DATABASE'!$X$193,K202='EXPENSE DATABASE'!$X$194,K202='EXPENSE DATABASE'!$Z$187,K202='EXPENSE DATABASE'!$Z$188,K202='EXPENSE DATABASE'!$Z$189,K202='EXPENSE DATABASE'!$Z$190,K202='EXPENSE DATABASE'!$Z$191,K202='EXPENSE DATABASE'!$Z$192,K202='EXPENSE DATABASE'!$Z$193,K202='EXPENSE DATABASE'!$Z$194),O202,\"\")","v":""},{"$f":"IF(OR(K202='EXPENSE DATABASE'!$T$189,K202='EXPENSE DATABASE'!$T$190,K202='EXPENSE DATABASE'!$T$191),O202,\"\")","v":""},{"$f":"VLOOKUP(I202,'EXPENSE DATABASE'!$B$41:$C$65,2,FALSE)","v":{"$error":"#N/A"}},100,{"$f":"VLOOKUP(J202,'EXPENSE DATABASE'!$B$69:$C$168,2,FALSE)","v":{"$error":"#N/A"}},101,{"$f":"VLOOKUP(K202,'EXPENSE DATABASE'!$B$6:$C$35,2,FALSE)","v":{"$error":"#N/A"}},31,{"$f":"VLOOKUP(L202,'EXPENSE DATABASE'!$B$173:$C$176,2,FALSE)","v":{"$error":"#N/A"}},100,0,0,{"$f":"IF(L202=T('EXPENSE DATABASE'!$E$173),O202,0)","v":0},{"$f":"IF(L202=T('EXPENSE DATABASE'!$E$174),O202,0)","v":0},{"$f":"IF(L202=T('EXPENSE DATABASE'!$E$175),O202,0)","v":0},0,189]
[0,0,{"$nulls":12},{"v":0,"d":"$0.00"},{"v":0,"d":"$0.00"},{"v":0,"d":"$0.00"},0,{"$f":"IF(OR(K203='EXPENSE DATABASE'!$V$187,K203='EXPENSE DATABASE'!$V$188,K203='EXPENSE DATABASE'!$V$189,K203='EXPENSE DATABASE'!$V$190,K203='EXPENSE DATABASE'!$V$191,K203='EXPENSE DATABASE'!$V$192,K203='EXPENSE DATABASE'!$V$193,K203='EXPENSE DATABASE'!$V$194,K203='EXPENSE DATABASE'!$X$187,K203='EXPENSE DATABASE'!$X$188,K203='EXPENSE DATABASE'!$X$189,K203='EXPENSE DATABASE'!$X$190,K203='EXPENSE DATABASE'!$X$191,K203='EXPENSE DATABASE'!$X$192,K203='EXPENSE DATABASE'!$X$193,K203='EXPENSE DATABASE'!$X$194,K203='EXPENSE DATABASE'!$Z$187,K203='EXPENSE DATABASE'!$Z$188,K203='EXPENSE DATABASE'!$Z$189,K203='EXPENSE DATABASE'!$Z$190,K203='EXPENSE DATABASE'!$Z$191,K203='EXPENSE DATABASE'!$Z$192,K203='EXPENSE DATABASE'!$Z$193,K203='EXPENSE DATABASE'!$Z$194),O203,\"\")","v":""},{"$f":"IF(OR(K203='EXPENSE DATABASE'!$T$189,K203='EXPENSE DATABASE'!$T$190,K203='EXPENSE DATABASE'!$T$191),O203,\"\")","v":""},{"$f":"VLOOKUP(I203,'EXPENSE DATABASE'!$B$41:$C$65,2,FALSE)","v":{"$error":"#N/A"}},100,{"$f":"VLOOKUP(J203,'EXPENSE DATABASE'!$B$69:$C$168,2,FALSE)","v":{"$error":"#N/A"}},101,{"$f":"VLOOKUP(K203,'EXPENSE DATABASE'!$B$6:$C$35,2,FALSE)","v":{"$error":"#N/A"}},31,{"$f":"VLOOKUP(L203,'EXPENSE DATABASE'!$B$173:$C$176,2,FALSE)","v":{"$error":"#N/A"}},100,0,0,{"$f":"IF(L203=T('EXPENSE DATABASE'!$E$173),O203,0)","v":0},{"$f":"IF(L203=T('EXPENSE DATABASE'!$E$174),O203,0)","v":0},{"$f":"IF(L203=T('EXPENSE DATABASE'!$E$175),O203,0)","v":0},0,190]
[0,0,{"$nulls":12},{"v":0,"d":"$0.00"},{"v":0,"d":"$0.00"},{"v":0,"d":"$0.00"},0,{"$f":"IF(OR(K204='EXPENSE DATABASE'!$V$187,K204='EXPENSE DATABASE'!$V$188,K204='EXPENSE DATABASE'!$V$189,K204='EXPENSE DATABASE'!$V$190,K204='EXPENSE DATABASE'!$V$191,K204='EXPENSE DATABASE'!$V$192,K204='EXPENSE DATABASE'!$V$193,K204='EXPENSE DATABASE'!$V$194,K204='EXPENSE DATABASE'!$X$187,K204='EXPENSE DATABASE'!$X$188,K204='EXPENSE DATABASE'!$X$189,K204='EXPENSE DATABASE'!$X$190,K204='EXPENSE DATABASE'!$X$191,K204='EXPENSE DATABASE'!$X$192,K204='EXPENSE DATABASE'!$X$193,K204='EXPENSE DATABASE'!$X$194,K204='EXPENSE DATABASE'!$Z$187,K204='EXPENSE DATABASE'!$Z$188,K204='EXPENSE DATABASE'!$Z$189,K204='EXPENSE DATABASE'!$Z$190,K204='EXPENSE DATABASE'!$Z$191,K204='EXPENSE DATABASE'!$Z$192,K204='EXPENSE DATABASE'!$Z$193,K204='EXPENSE DATABASE'!$Z$194),O204,\"\")","v":""},{"$f":"IF(OR(K204='EXPENSE DATABASE'!$T$189,K204='EXPENSE DATABASE'!$T$190,K204='EXPENSE DATABASE'!$T$191),O204,\"\")","v":""},{"$f":"VLOOKUP(I204,'EXPENSE DATABASE'!$B$41:$C$65,2,FALSE)","v":{"$error":"#N/A"}},100,{"$f":"VLOOKUP(J204,'EXPENSE DATABASE'!$B$69:$C$168,2,FALSE)","v":{"$error":"#N/A"}},101,{"$f":"VLOOKUP(K204,'EXPENSE DATABASE'!$B$6:$C$35,2,FALSE)","v":{"$error":"#N/A"}},31,{"$f":"VLOOKUP(L204,'EXPENSE DATABASE'!$B$173:$C$176,2,FALSE)","v":{"$error":"#N/A"}},100,0,0,{"$f":"IF(L204=T('EXPENSE DATABASE'!$E$173),O204,0)","v":0},{"$f":"IF(L204=T('EXPENSE DATABASE'!$E$174),O204,0)","v":0},{"$f":"IF(L204=T('EXPENSE DATABASE'!$E$175),O204,0)","v":0},0,191]
[0,0,{"$nulls":12},{"v":0,"d":"$0.00"},{"v":0,"d":"$0.00"},{"v":0,"d":"$0.00"},0,{"$f":"IF(OR(K205='EXPENSE DATABASE'!$V$187,K205='EXPENSE DATABASE'!$V$188,K205='EXPENSE DATABASE'!$V$189,K205='EXPENSE DATABASE'!$V$190,K205='EXPENSE DATABASE'!$V$191,K205='EXPENSE DATABASE'!$V$192,K205='EXPENSE DATABASE'!$V$193,K205='EXPENSE DATABASE'!$V$194,K205='EXPENSE DATABASE'!$X$187,K205='EXPENSE DATABASE'!$X$188,K205='EXPENSE DATABASE'!$X$189,K205='EXPENSE DATABASE'!$X$190,K205='EXPENSE DATABASE'!$X$191,K205='EXPENSE DATABASE'!$X$192,K205='EXPENSE DATABASE'!$X$193,K205='EXPENSE DATABASE'!$X$194,K205='EXPENSE DATABASE'!$Z$187,K205='EXPENSE DATABASE'!$Z$188,K205='EXPENSE DATABASE'!$Z$189,K205='EXPENSE DATABASE'!$Z$190,K205='EXPENSE DATABASE'!$Z$191,K205='EXPENSE DATABASE'!$Z$192,K205='EXPENSE DATABASE'!$Z$193,K205='EXPENSE DATABASE'!$Z$194),O205,\"\")","v":""},{"$f":"IF(OR(K205='EXPENSE DATABASE'!$T$189,K205='EXPENSE DATABASE'!$T$190,K205='EXPENSE DATABASE'!$T$191),O205,\"\")","v":""},{"$f":"VLOOKUP(I205,'EXPENSE DATABASE'!$B$41:$C$65,2,FALSE)","v":{"$error":"#N/A"}},100,{"$f":"VLOOKUP(J205,'EXPENSE DATABASE'!$B$69:$C$168,2,FALSE)","v":{"$error":"#N/A"}},101,{"$f":"VLOOKUP(K205,'EXPENSE DATABASE'!$B$6:$C$35,2,FALSE)","v":{"$error":"#N/A"}},31,{"$f":"VLOOKUP(L205,'EXPENSE DATABASE'!$B$173:$C$176,2,FALSE)","v":{"$error":"#N/A"}},100,0,0,{"$f":"IF(L205=T('EXPENSE DATABASE'!$E$173),O205,0)","v":0},{"$f":"IF(L205=T('EXPENSE DATABASE'!$E$174),O205,0)","v":0},{"$f":"IF(L205=T('EXPENSE DATABASE'!$E$175),O205,0)","v":0},0,192]
[{"$f":"IF(COUNTA(D206,E206,F206,G206,H206,I206,J206,K206,L206,M206,N206)>0,1,0)","v":0},{"$f":"IF((COUNTA(I206:L206)=4),1,-1)*A206","v":0},{"$nulls":12},{"$f":"M206*N206","v":{"v":0,"d":"$0.00"}},{"$f":"IF(OR(D206=\"No\",D206=\"\"),O206,0)","v":{"v":0,"d":"$0.00"}},{"$f":"IF(D206=\"Yes\",O206,0)","v":{"v":0,"d":"$0.00"}},{"$f":"IF(O206>0,1,0)","v":0},{"$f":"IF(OR(K206='EXPENSE DATABASE'!$V$187,K206='EXPENSE DATABASE'!$V$188,K206='EXPENSE DATABASE'!$V$189,K206='EXPENSE DATABASE'!$V$190,K206='EXPENSE DATABASE'!$V$191,K206='EXPENSE DATABASE'!$V$192,K206='EXPENSE DATABASE'!$V$193,K206='EXPENSE DATABASE'!$V$194,K206='EXPENSE DATABASE'!$X$187,K206='EXPENSE DATABASE'!$X$188,K206='EXPENSE DATABASE'!$X$189,K206='EXPENSE DATABASE'!$X$190,K206='EXPENSE DATABASE'!$X$191,K206='EXPENSE DATABASE'!$X$192,K206='EXPENSE DATABASE'!$X$193,K206='EXPENSE DATABASE'!$X$194,K206='EXPENSE DATABASE'!$Z$187,K206='EXPENSE DATABASE'!$Z$188,K206='EXPENSE DATABASE'!$Z$189,K206='EXPENSE DATABASE'!$Z$190,K206='EXPENSE DATABASE'!$Z$191,K206='EXPENSE DATABASE'!$Z$192,K206='EXPENSE DATABASE'!$Z$193,K206='EXPENSE DATABASE'!$Z$194),O206,\"\")","v":""},{"$f":"IF(OR(K206='EXPENSE DATABASE'!$T$189,K206='EXPENSE DATABASE'!$T$190,K206='EXPENSE DATABASE'!$T$191),O206,\"\")","v":""},{"$f":"VLOOKUP(I206,'EXPENSE DATABASE'!$B$41:$C$65,2,FALSE)","v":{"$error":"#N/A"}},{"$f":"IFERROR(U206,100)","v":100},{"$f":"VLOOKUP(J206,'EXPENSE DATABASE'!$B$69:$C$168,2,FALSE)","v":{"$error":"#N/A"}},{"$f":"IFERROR(W206,101)","v":101},{"$f":"VLOOKUP(K206,'EXPENSE DATABASE'!$B$6:$C$35,2,FALSE)","v":{"$error":"#N/A"}},{"$f":"IFERROR(Y206,31)","v":31},{"$f":"VLOOKUP(L206,'EXPENSE DATABASE'!$B$173:$C$176,2,FALSE)","v":{"$error":"#N/A"}},{"$f":"IFERROR(AA206,100)","v":100},{"$f":"IF(K206=0,0,1)","v":0},{"$f":"IF(J206=0,0,1)","v":0},{"$f":"IF(L206=T('EXPENSE DATABASE'!$E$173),O206,0)","v":0},{"$f":"IF(L206=T('EXPENSE DATABASE'!$E$174),O206,0)","v":0},{"$f":"IF(L206=T('EXPENSE DATABASE'!$E$175),O206,0)","v":0},{"$f":"IF(OR(N206=0,E206=0),0,MONTH(E206))","v":0},193]
[0,0,{"$nulls":12},{"v":0,"d":"$0.00"},{"v":0,"d":"$0.00"},{"v":0,"d":"$0.00"},0,{"$f":"IF(OR(K207='EXPENSE DATABASE'!$V$187,K207='EXPENSE DATABASE'!$V$188,K207='EXPENSE DATABASE'!$V$189,K207='EXPENSE DATABASE'!$V$190,K207='EXPENSE DATABASE'!$V$191,K207='EXPENSE DATABASE'!$V$192,K207='EXPENSE DATABASE'!$V$193,K207='EXPENSE DATABASE'!$V$194,K207='EXPENSE DATABASE'!$X$187,K207='EXPENSE DATABASE'!$X$188,K207='EXPENSE DATABASE'!$X$189,K207='EXPENSE DATABASE'!$X$190,K207='EXPENSE DATABASE'!$X$191,K207='EXPENSE DATABASE'!$X$192,K207='EXPENSE DATABASE'!$X$193,K207='EXPENSE DATABASE'!$X$194,K207='EXPENSE DATABASE'!$Z$187,K207='EXPENSE DATABASE'!$Z$188,K207='EXPENSE DATABASE'!$Z$189,K207='EXPENSE DATABASE'!$Z$190,K207='EXPENSE DATABASE'!$Z$191,K207='EXPENSE DATABASE'!$Z$192,K207='EXPENSE DATABASE'!$Z$193,K207='EXPENSE DATABASE'!$Z$194),O207,\"\")","v":""},{"$f":"IF(OR(K207='EXPENSE DATABASE'!$T$189,K207='EXPENSE DATABASE'!$T$190,K207='EXPENSE DATABASE'!$T$191),O207,\"\")","v":""},{"$f":"VLOOKUP(I207,'EXPENSE DATABASE'!$B$41:$C$65,2,FALSE)","v":{"$error":"#N/A"}},100,{"$f":"VLOOKUP(J207,'EXPENSE DATABASE'!$B$69:$C$168,2,FALSE)","v":{"$error":"#N/A"}},101,{"$f":"VLOOKUP(K207,'EXPENSE DATABASE'!$B$6:$C$35,2,FALSE)","v":{"$error":"#N/A"}},31,{"$f":"VLOOKUP(L207,'EXPENSE DATABASE'!$B$173:$C$176,2,FALSE)","v":{"$error":"#N/A"}},100,0,0,{"$f":"IF(L207=T('EXPENSE DATABASE'!$E$173),O207,0)","v":0},{"$f":"IF(L207=T('EXPENSE DATABASE'!$E$174),O207,0)","v":0},{"$f":"IF(L207=T('EXPENSE DATABASE'!$E$175),O207,0)","v":0},0,194]
[0,0,{"$nulls":12},{"v":0,"d":"$0.00"},{"v":0,"d":"$0.00"},{"v":0,"d":"$0.00"},0,{"$f":"IF(OR(K208='EXPENSE DATABASE'!$V$187,K208='EXPENSE DATABASE'!$V$188,K208='EXPENSE DATABASE'!$V$189,K208='EXPENSE DATABASE'!$V$190,K208='EXPENSE DATABASE'!$V$191,K208='EXPENSE DATABASE'!$V$192,K208='EXPENSE DATABASE'!$V$193,K208='EXPENSE DATABASE'!$V$194,K208='EXPENSE DATABASE'!$X$187,K208='EXPENSE DATABASE'!$X$188,K208='EXPENSE DATABASE'!$X$189,K208='EXPENSE DATABASE'!$X$190,K208='EXPENSE DATABASE'!$X$191,K208='EXPENSE DATABASE'!$X$192,K208='EXPENSE DATABASE'!$X$193,K208='EXPENSE DATABASE'!$X$194,K208='EXPENSE DATABASE'!$Z$187,K208='EXPENSE DATABASE'!$Z$188,K208='EXPENSE DATABASE'!$Z$189,K208='EXPENSE DATABASE'!$Z$190,K208='EXPENSE DATABASE'!$Z$191,K208='EXPENSE DATABASE'!$Z$192,K208='EXPENSE DATABASE'!$Z$193,K208='EXPENSE DATABASE'!$Z$194),O208,\"\")","v":""},{"$f":"IF(OR(K208='EXPENSE DATABASE'!$T$189,K208='EXPENSE DATABASE'!$T$190,K208='EXPENSE DATABASE'!$T$191),O208,\"\")","v":""},{"$f":"VLOOKUP(I208,'EXPENSE DATABASE'!$B$41:$C$65,2,FALSE)","v":{"$error":"#N/A"}},100,{"$f":"VLOOKUP(J208,'EXPENSE DATABASE'!$B$69:$C$168,2,FALSE)","v":{"$error":"#N/A"}},101,{"$f":"VLOOKUP(K208,'EXPENSE DATABASE'!$B$6:$C$35,2,FALSE)","v":{"$error":"#N/A"}},31,{"$f":"VLOOKUP(L208,'EXPENSE DATABASE'!$B$173:$C$176,2,FALSE)","v":{"$error":"#N/A"}},100,0,0,{"$f":"IF(L208=T('EXPENSE DATABASE'!$E$173),O208,0)","v":0},{"$f":"IF(L208=T('EXPENSE DATABASE'!$E$174),O208,0)","v":0},{"$f":"IF(L208=T('EXPENSE DATABASE'!$E$175),O208,0)","v":0},0,195]
[0,0,{"$nulls":12},{"v":0,"d":"$0.00"},{"v":0,"d":"$0.00"},{"v":0,"d":"$0.00"},0,{"$f":"IF(OR(K209='EXPENSE DATABASE'!$V$187,K209='EXPENSE DATABASE'!$V$188,K209='EXPENSE DATABASE'!$V$189,K209='EXPENSE DATABASE'!$V$190,K209='EXPENSE DATABASE'!$V$191,K209='EXPENSE DATABASE'!$V$192,K209='EXPENSE DATABASE'!$V$193,K209='EXPENSE DATABASE'!$V$194,K209='EXPENSE DATABASE'!$X$187,K209='EXPENSE DATABASE'!$X$188,K209='EXPENSE DATABASE'!$X$189,K209='EXPENSE DATABASE'!$X$190,K209='EXPENSE DATABASE'!$X$191,K209='EXPENSE DATABASE'!$X$192,K209='EXPENSE DATABASE'!$X$193,K209='EXPENSE DATABASE'!$X$194,K209='EXPENSE DATABASE'!$Z$187,K209='EXPENSE DATABASE'!$Z$188,K209='EXPENSE DATABASE'!$Z$189,K209='EXPENSE DATABASE'!$Z$190,K209='EXPENSE DATABASE'!$Z$191,K209='EXPENSE DATABASE'!$Z$192,K209='EXPENSE DATABASE'!$Z$193,K209='EXPENSE DATABASE'!$Z$194),O209,\"\")","v":""},{"$f":"IF(OR(K209='EXPENSE DATABASE'!$T$189,K209='EXPENSE DATABASE'!$T$190,K209='EXPENSE DATABASE'!$T$191),O209,\"\")","v":""},{"$f":"VLOOKUP(I209,'EXPENSE DATABASE'!$B$41:$C$65,2,FALSE)","v":{"$error":"#N/A"}},100,{"$f":"VLOOKUP(J209,'EXPENSE DATABASE'!$B$69:$C$168,2,FALSE)","v":{"$error":"#N/A"}},101,{"$f":"VLOOKUP(K209,'EXPENSE DATABASE'!$B$6:$C$35,2,FALSE)","v":{"$error":"#N/A"}},31,{"$f":"VLOOKUP(L209,'EXPENSE DATABASE'!$B$173:$C$176,2,FALSE)","v":{"$error":"#N/A"}},100,0,0,{"$f":"IF(L209=T('EXPENSE DATABASE'!$E$173),O209,0)","v":0},{"$f":"IF(L209=T('EXPENSE DATABASE'!$E$174),O209,0)","v":0},{"$f":"IF(L209=T('EXPENSE DATABASE'!$E$175),O209,0)","v":0},0,196]
[0,0,{"$nulls":12},{"v":0,"d":"$0.00"},{"v":0,"d":"$0.00"},{"v":0,"d":"$0.00"},0,{"$f":"IF(OR(K210='EXPENSE DATABASE'!$V$187,K210='EXPENSE DATABASE'!$V$188,K210='EXPENSE DATABASE'!$V$189,K210='EXPENSE DATABASE'!$V$190,K210='EXPENSE DATABASE'!$V$191,K210='EXPENSE DATABASE'!$V$192,K210='EXPENSE DATABASE'!$V$193,K210='EXPENSE DATABASE'!$V$194,K210='EXPENSE DATABASE'!$X$187,K210='EXPENSE DATABASE'!$X$188,K210='EXPENSE DATABASE'!$X$189,K210='EXPENSE DATABASE'!$X$190,K210='EXPENSE DATABASE'!$X$191,K210='EXPENSE DATABASE'!$X$192,K210='EXPENSE DATABASE'!$X$193,K210='EXPENSE DATABASE'!$X$194,K210='EXPENSE DATABASE'!$Z$187,K210='EXPENSE DATABASE'!$Z$188,K210='EXPENSE DATABASE'!$Z$189,K210='EXPENSE DATABASE'!$Z$190,K210='EXPENSE DATABASE'!$Z$191,K210='EXPENSE DATABASE'!$Z$192,K210='EXPENSE DATABASE'!$Z$193,K210='EXPENSE DATABASE'!$Z$194),O210,\"\")","v":""},{"$f":"IF(OR(K210='EXPENSE DATABASE'!$T$189,K210='EXPENSE DATABASE'!$T$190,K210='EXPENSE DATABASE'!$T$191),O210,\"\")","v":""},{"$f":"VLOOKUP(I210,'EXPENSE DATABASE'!$B$41:$C$65,2,FALSE)","v":{"$error":"#N/A"}},100,{"$f":"VLOOKUP(J210,'EXPENSE DATABASE'!$B$69:$C$168,2,FALSE)","v":{"$error":"#N/A"}},101,{"$f":"VLOOKUP(K210,'EXPENSE DATABASE'!$B$6:$C$35,2,FALSE)","v":{"$error":"#N/A"}},31,{"$f":"VLOOKUP(L210,'EXPENSE DATABASE'!$B$173:$C$176,2,FALSE)","v":{"$error":"#N/A"}},100,0,0,{"$f":"IF(L210=T('EXPENSE DATABASE'!$E$173),O210,0)","v":0},{"$f":"IF(L210=T('EXPENSE DATABASE'!$E$174),O210,0)","v":0},{"$f":"IF(L210=T('EXPENSE DATABASE'!$E$175),O210,0)","v":0},0,197]
[0,0,{"$nulls":12},{"v":0,"d":"$0.00"},{"v":0,"d":"$0.00"},{"v":0,"d":"$0.00"},0,{"$f":"IF(OR(K211='EXPENSE DATABASE'!$V$187,K211='EXPENSE DATABASE'!$V$188,K211='EXPENSE DATABASE'!$V$189,K211='EXPENSE DATABASE'!$V$190,K211='EXPENSE DATABASE'!$V$191,K211='EXPENSE DATABASE'!$V$192,K211='EXPENSE DATABASE'!$V$193,K211='EXPENSE DATABASE'!$V$194,K211='EXPENSE DATABASE'!$X$187,K211='EXPENSE DATABASE'!$X$188,K211='EXPENSE DATABASE'!$X$189,K211='EXPENSE DATABASE'!$X$190,K211='EXPENSE DATABASE'!$X$191,K211='EXPENSE DATABASE'!$X$192,K211='EXPENSE DATABASE'!$X$193,K211='EXPENSE DATABASE'!$X$194,K211='EXPENSE DATABASE'!$Z$187,K211='EXPENSE DATABASE'!$Z$188,K211='EXPENSE DATABASE'!$Z$189,K211='EXPENSE DATABASE'!$Z$190,K211='EXPENSE DATABASE'!$Z$191,K211='EXPENSE DATABASE'!$Z$192,K211='EXPENSE DATABASE'!$Z$193,K211='EXPENSE DATABASE'!$Z$194),O211,\"\")","v":""},{"$f":"IF(OR(K211='EXPENSE DATABASE'!$T$189,K211='EXPENSE DATABASE'!$T$190,K211='EXPENSE DATABASE'!$T$191),O211,\"\")","v":""},{"$f":"VLOOKUP(I211,'EXPENSE DATABASE'!$B$41:$C$65,2,FALSE)","v":{"$error":"#N/A"}},100,{"$f":"VLOOKUP(J211,'EXPENSE DATABASE'!$B$69:$C$168,2,FALSE)","v":{"$error":"#N/A"}},101,{"$f":"VLOOKUP(K211,'EXPENSE DATABASE'!$B$6:$C$35,2,FALSE)","v":{"$error":"#N/A"}},31,{"$f":"VLOOKUP(L211,'EXPENSE DATABASE'!$B$173:$C$176,2,FALSE)","v":{"$error":"#N/A"}},100,0,0,{"$f":"IF(L211=T('EXPENSE DATABASE'!$E$173),O211,0)","v":0},{"$f":"IF(L211=T('EXPENSE DATABASE'!$E$174),O211,0)","v":0},{"$f":"IF(L211=T('EXPENSE DATABASE'!$E$175),O211,0)","v":0},0,198]
[0,0,{"$nulls":12},{"v":0,"d":"$0.00"},{"v":0,"d":"$0.00"},{"v":0,"d":"$0.00"},0,{"$f":"IF(OR(K212='EXPENSE DATABASE'!$V$187,K212='EXPENSE DATABASE'!$V$188,K212='EXPENSE DATABASE'!$V$189,K212='EXPENSE DATABASE'!$V$190,K212='EXPENSE DATABASE'!$V$191,K212='EXPENSE DATABASE'!$V$192,K212='EXPENSE DATABASE'!$V$193,K212='EXPENSE DATABASE'!$V$194,K212='EXPENSE DATABASE'!$X$187,K212='EXPENSE DATABASE'!$X$188,K212='EXPENSE DATABASE'!$X$189,K212='EXPENSE DATABASE'!$X$190,K212='EXPENSE DATABASE'!$X$191,K212='EXPENSE DATABASE'!$X$192,K212='EXPENSE DATABASE'!$X$193,K212='EXPENSE DATABASE'!$X$194,K212='EXPENSE DATABASE'!$Z$187,K212='EXPENSE DATABASE'!$Z$188,K212='EXPENSE DATABASE'!$Z$189,K212='EXPENSE DATABASE'!$Z$190,K212='EXPENSE DATABASE'!$Z$191,K212='EXPENSE DATABASE'!$Z$192,K212='EXPENSE DATABASE'!$Z$193,K212='EXPENSE DATABASE'!$Z$194),O212,\"\")","v":""},{"$f":"IF(OR(K212='EXPENSE DATABASE'!$T$189,K212='EXPENSE DATABASE'!$T$190,K212='EXPENSE DATABASE'!$T$191),O212,\"\")","v":""},{"$f":"VLOOKUP(I212,'EXPENSE DATABASE'!$B$41:$C$65,2,FALSE)","v":{"$error":"#N/A"}},100,{"$f":"VLOOKUP(J212,'EXPENSE DATABASE'!$B$69:$C$168,2,FALSE)","v":{"$error":"#N/A"}},101,{"$f":"VLOOKUP(K212,'EXPENSE DATABASE'!$B$6:$C$35,2,FALSE)","v":{"$error":"#N/A"}},31,{"$f":"VLOOKUP(L212,'EXPENSE DATABASE'!$B$173:$C$176,2,FALSE)","v":{"$error":"#N/A"}},100,0,0,{"$f":"IF(L212=T('EXPENSE DATABASE'!$E$173),O212,0)","v":0},{"$f":"IF(L212=T('EXPENSE DATABASE'!$E$174),O212,0)","v":0},{"$f":"IF(L212=T('EXPENSE DATABASE'!$E$175),O212,0)","v":0},0,199]
[0,0,{"$nulls":12},{"v":0,"d":"$0.00"},{"v":0,"d":"$0.00"},{"v":0,"d":"$0.00"},0,{"$f":"IF(OR(K213='EXPENSE DATABASE'!$V$187,K213='EXPENSE DATABASE'!$V$188,K213='EXPENSE DATABASE'!$V$189,K213='EXPENSE DATABASE'!$V$190,K213='EXPENSE DATABASE'!$V$191,K213='EXPENSE DATABASE'!$V$192,K213='EXPENSE DATABASE'!$V$193,K213='EXPENSE DATABASE'!$V$194,K213='EXPENSE DATABASE'!$X$187,K213='EXPENSE DATABASE'!$X$188,K213='EXPENSE DATABASE'!$X$189,K213='EXPENSE DATABASE'!$X$190,K213='EXPENSE DATABASE'!$X$191,K213='EXPENSE DATABASE'!$X$192,K213='EXPENSE DATABASE'!$X$193,K213='EXPENSE DATABASE'!$X$194,K213='EXPENSE DATABASE'!$Z$187,K213='EXPENSE DATABASE'!$Z$188,K213='EXPENSE DATABASE'!$Z$189,K213='EXPENSE DATABASE'!$Z$190,K213='EXPENSE DATABASE'!$Z$191,K213='EXPENSE DATABASE'!$Z$192,K213='EXPENSE DATABASE'!$Z$193,K213='EXPENSE DATABASE'!$Z$194),O213,\"\")","v":""},{"$f":"IF(OR(K213='EXPENSE DATABASE'!$T$189,K213='EXPENSE DATABASE'!$T$190,K213='EXPENSE DATABASE'!$T$191),O213,\"\")","v":""},{"$f":"VLOOKUP(I213,'EXPENSE DATABASE'!$B$41:$C$65,2,FALSE)","v":{"$error":"#N/A"}},100,{"$f":"VLOOKUP(J213,'EXPENSE DATABASE'!$B$69:$C$168,2,FALSE)","v":{"$error":"#N/A"}},101,{"$f":"VLOOKUP(K213,'EXPENSE DATABASE'!$B$6:$C$35,2,FALSE)","v":{"$error":"#N/A"}},31,{"$f":"VLOOKUP(L213,'EXPENSE DATABASE'!$B$173:$C$176,2,FALSE)","v":{"$error":"#N/A"}},100,0,0,{"$f":"IF(L213=T('EXPENSE DATABASE'!$E$173),O213,0)","v":0},{"$f":"IF(L213=T('EXPENSE DATABASE'!$E$174),O213,0)","v":0},{"$f":"IF(L213=T('EXPENSE DATABASE'!$E$175),O213,0)","v":0},0,200]
[0,0,{"$nulls":12},{"v":0,"d":"$0.00"},{"v":0,"d":"$0.00"},{"v":0,"d":"$0.00"},0,{"$f":"IF(OR(K214='EXPENSE DATABASE'!$V$187,K214='EXPENSE DATABASE'!$V$188,K214='EXPENSE DATABASE'!$V$189,K214='EXPENSE DATABASE'!$V$190,K214='EXPENSE DATABASE'!$V$191,K214='EXPENSE DATABASE'!$V$192,K214='EXPENSE DATABASE'!$V$193,K214='EXPENSE DATABASE'!$V$194,K214='EXPENSE DATABASE'!$X$187,K214='EXPENSE DATABASE'!$X$188,K214='EXPENSE DATABASE'!$X$189,K214='EXPENSE DATABASE'!$X$190,K214='EXPENSE DATABASE'!$X$191,K214='EXPENSE DATABASE'!$X$192,K214='EXPENSE DATABASE'!$X$193,K214='EXPENSE DATABASE'!$X$194,K214='EXPENSE DATABASE'!$Z$187,K214='EXPENSE DATABASE'!$Z$188,K214='EXPENSE DATABASE'!$Z$189,K214='EXPENSE DATABASE'!$Z$190,K214='EXPENSE DATABASE'!$Z$191,K214='EXPENSE DATABASE'!$Z$192,K214='EXPENSE DATABASE'!$Z$193,K214='EXPENSE DATABASE'!$Z$194),O214,\"\")","v":""},{"$f":"IF(OR(K214='EXPENSE DATABASE'!$T$189,K214='EXPENSE DATABASE'!$T$190,K214='EXPENSE DATABASE'!$T$191),O214,\"\")","v":""},{"$f":"VLOOKUP(I214,'EXPENSE DATABASE'!$B$41:$C$65,2,FALSE)","v":{"$error":"#N/A"}},100,{"$f":"VLOOKUP(J214,'EXPENSE DATABASE'!$B$69:$C$168,2,FALSE)","v":{"$error":"#N/A"}},101,{"$f":"VLOOKUP(K214,'EXPENSE DATABASE'!$B$6:$C$35,2,FALSE)","v":{"$error":"#N/A"}},31,{"$f":"VLOOKUP(L214,'EXPENSE DATABASE'!$B$173:$C$176,2,FALSE)","v":{"$error":"#N/A"}},100,0,0,{"$f":"IF(L214=T('EXPENSE DATABASE'!$E$173),O214,0)","v":0},{"$f":"IF(L214=T('EXPENSE DATABASE'!$E$174),O214,0)","v":0},{"$f":"IF(L214=T('EXPENSE DATABASE'!$E$175),O214,0)","v":0},0,201]
[0,0,{"$nulls":12},{"v":0,"d":"$0.00"},{"v":0,"d":"$0.00"},{"v":0,"d":"$0.00"},0,{"$f":"IF(OR(K215='EXPENSE DATABASE'!$V$187,K215='EXPENSE DATABASE'!$V$188,K215='EXPENSE DATABASE'!$V$189,K215='EXPENSE DATABASE'!$V$190,K215='EXPENSE DATABASE'!$V$191,K215='EXPENSE DATABASE'!$V$192,K215='EXPENSE DATABASE'!$V$193,K215='EXPENSE DATABASE'!$V$194,K215='EXPENSE DATABASE'!$X$187,K215='EXPENSE DATABASE'!$X$188,K215='EXPENSE DATABASE'!$X$189,K215='EXPENSE DATABASE'!$X$190,K215='EXPENSE DATABASE'!$X$191,K215='EXPENSE DATABASE'!$X$192,K215='EXPENSE DATABASE'!$X$193,K215='EXPENSE DATABASE'!$X$194,K215='EXPENSE DATABASE'!$Z$187,K215='EXPENSE DATABASE'!$Z$188,K215='EXPENSE DATABASE'!$Z$189,K215='EXPENSE DATABASE'!$Z$190,K215='EXPENSE DATABASE'!$Z$191,K215='EXPENSE DATABASE'!$Z$192,K215='EXPENSE DATABASE'!$Z$193,K215='EXPENSE DATABASE'!$Z$194),O215,\"\")","v":""},{"$f":"IF(OR(K215='EXPENSE DATABASE'!$T$189,K215='EXPENSE DATABASE'!$T$190,K215='EXPENSE DATABASE'!$T$191),O215,\"\")","v":""},{"$f":"VLOOKUP(I215,'EXPENSE DATABASE'!$B$41:$C$65,2,FALSE)","v":{"$error":"#N/A"}},100,{"$f":"VLOOKUP(J215,'EXPENSE DATABASE'!$B$69:$C$168,2,FALSE)","v":{"$error":"#N/A"}},101,{"$f":"VLOOKUP(K215,'EXPENSE DATABASE'!$B$6:$C$35,2,FALSE)","v":{"$error":"#N/A"}},31,{"$f":"VLOOKUP(L215,'EXPENSE DATABASE'!$B$173:$C$176,2,FALSE)","v":{"$error":"#N/A"}},100,0,0,{"$f":"IF(L215=T('EXPENSE DATABASE'!$E$173),O215,0)","v":0},{"$f":"IF(L215=T('EXPENSE DATABASE'!$E$174),O215,0)","v":0},{"$f":"IF(L215=T('EXPENSE DATABASE'!$E$175),O215,0)","v":0},0,202]
[0,0,{"$nulls":12},{"v":0,"d":"$0.00"},{"v":0,"d":"$0.00"},{"v":0,"d":"$0.00"},0,{"$f":"IF(OR(K216='EXPENSE DATABASE'!$V$187,K216='EXPENSE DATABASE'!$V$188,K216='EXPENSE DATABASE'!$V$189,K216='EXPENSE DATABASE'!$V$190,K216='EXPENSE DATABASE'!$V$191,K216='EXPENSE DATABASE'!$V$192,K216='EXPENSE DATABASE'!$V$193,K216='EXPENSE DATABASE'!$V$194,K216='EXPENSE DATABASE'!$X$187,K216='EXPENSE DATABASE'!$X$188,K216='EXPENSE DATABASE'!$X$189,K216='EXPENSE DATABASE'!$X$190,K216='EXPENSE DATABASE'!$X$191,K216='EXPENSE DATABASE'!$X$192,K216='EXPENSE DATABASE'!$X$193,K216='EXPENSE DATABASE'!$X$194,K216='EXPENSE DATABASE'!$Z$187,K216='EXPENSE DATABASE'!$Z$188,K216='EXPENSE DATABASE'!$Z$189,K216='EXPENSE DATABASE'!$Z$190,K216='EXPENSE DATABASE'!$Z$191,K216='EXPENSE DATABASE'!$Z$192,K216='EXPENSE DATABASE'!$Z$193,K216='EXPENSE DATABASE'!$Z$194),O216,\"\")","v":""},{"$f":"IF(OR(K216='EXPENSE DATABASE'!$T$189,K216='EXPENSE DATABASE'!$T$190,K216='EXPENSE DATABASE'!$T$191),O216,\"\")","v":""},{"$f":"VLOOKUP(I216,'EXPENSE DATABASE'!$B$41:$C$65,2,FALSE)","v":{"$error":"#N/A"}},100,{"$f":"VLOOKUP(J216,'EXPENSE DATABASE'!$B$69:$C$168,2,FALSE)","v":{"$error":"#N/A"}},101,{"$f":"VLOOKUP(K216,'EXPENSE DATABASE'!$B$6:$C$35,2,FALSE)","v":{"$error":"#N/A"}},31,{"$f":"VLOOKUP(L216,'EXPENSE DATABASE'!$B$173:$C$176,2,FALSE)","v":{"$error":"#N/A"}},100,0,0,{"$f":"IF(L216=T('EXPENSE DATABASE'!$E$173),O216,0)","v":0},{"$f":"IF(L216=T('EXPENSE DATABASE'!$E$174),O216,0)","v":0},{"$f":"IF(L216=T('EXPENSE DATABASE'!$E$175),O216,0)","v":0},0,203]
[0,0,{"$nulls":12},{"v":0,"d":"$0.00"},{"v":0,"d":"$0.00"},{"v":0,"d":"$0.00"},0,{"$f":"IF(OR(K217='EXPENSE DATABASE'!$V$187,K217='EXPENSE DATABASE'!$V$188,K217='EXPENSE DATABASE'!$V$189,K217='EXPENSE DATABASE'!$V$190,K217='EXPENSE DATABASE'!$V$191,K217='EXPENSE DATABASE'!$V$192,K217='EXPENSE DATABASE'!$V$193,K217='EXPENSE DATABASE'!$V$194,K217='EXPENSE DATABASE'!$X$187,K217='EXPENSE DATABASE'!$X$188,K217='EXPENSE DATABASE'!$X$189,K217='EXPENSE DATABASE'!$X$190,K217='EXPENSE DATABASE'!$X$191,K217='EXPENSE DATABASE'!$X$192,K217='EXPENSE DATABASE'!$X$193,K217='EXPENSE DATABASE'!$X$194,K217='EXPENSE DATABASE'!$Z$187,K217='EXPENSE DATABASE'!$Z$188,K217='EXPENSE DATABASE'!$Z$189,K217='EXPENSE DATABASE'!$Z$190,K217='EXPENSE DATABASE'!$Z$191,K217='EXPENSE DATABASE'!$Z$192,K217='EXPENSE DATABASE'!$Z$193,K217='EXPENSE DATABASE'!$Z$194),O217,\"\")","v":""},{"$f":"IF(OR(K217='EXPENSE DATABASE'!$T$189,K217='EXPENSE DATABASE'!$T$190,K217='EXPENSE DATABASE'!$T$191),O217,\"\")","v":""},{"$f":"VLOOKUP(I217,'EXPENSE DATABASE'!$B$41:$C$65,2,FALSE)","v":{"$error":"#N/A"}},100,{"$f":"VLOOKUP(J217,'EXPENSE DATABASE'!$B$69:$C$168,2,FALSE)","v":{"$error":"#N/A"}},101,{"$f":"VLOOKUP(K217,'EXPENSE DATABASE'!$B$6:$C$35,2,FALSE)","v":{"$error":"#N/A"}},31,{"$f":"VLOOKUP(L217,'EXPENSE DATABASE'!$B$173:$C$176,2,FALSE)","v":{"$error":"#N/A"}},100,0,0,{"$f":"IF(L217=T('EXPENSE DATABASE'!$E$173),O217,0)","v":0},{"$f":"IF(L217=T('EXPENSE DATABASE'!$E$174),O217,0)","v":0},{"$f":"IF(L217=T('EXPENSE DATABASE'!$E$175),O217,0)","v":0},0,204]
[0,0,{"$nulls":12},{"v":0,"d":"$0.00"},{"v":0,"d":"$0.00"},{"v":0,"d":"$0.00"},0,{"$f":"IF(OR(K218='EXPENSE DATABASE'!$V$187,K218='EXPENSE DATABASE'!$V$188,K218='EXPENSE DATABASE'!$V$189,K218='EXPENSE DATABASE'!$V$190,K218='EXPENSE DATABASE'!$V$191,K218='EXPENSE DATABASE'!$V$192,K218='EXPENSE DATABASE'!$V$193,K218='EXPENSE DATABASE'!$V$194,K218='EXPENSE DATABASE'!$X$187,K218='EXPENSE DATABASE'!$X$188,K218='EXPENSE DATABASE'!$X$189,K218='EXPENSE DATABASE'!$X$190,K218='EXPENSE DATABASE'!$X$191,K218='EXPENSE DATABASE'!$X$192,K218='EXPENSE DATABASE'!$X$193,K218='EXPENSE DATABASE'!$X$194,K218='EXPENSE DATABASE'!$Z$187,K218='EXPENSE DATABASE'!$Z$188,K218='EXPENSE DATABASE'!$Z$189,K218='EXPENSE DATABASE'!$Z$190,K218='EXPENSE DATABASE'!$Z$191,K218='EXPENSE DATABASE'!$Z$192,K218='EXPENSE DATABASE'!$Z$193,K218='EXPENSE DATABASE'!$Z$194),O218,\"\")","v":""},{"$f":"IF(OR(K218='EXPENSE DATABASE'!$T$189,K218='EXPENSE DATABASE'!$T$190,K218='EXPENSE DATABASE'!$T$191),O218,\"\")","v":""},{"$f":"VLOOKUP(I218,'EXPENSE DATABASE'!$B$41:$C$65,2,FALSE)","v":{"$error":"#N/A"}},100,{"$f":"VLOOKUP(J218,'EXPENSE DATABASE'!$B$69:$C$168,2,FALSE)","v":{"$error":"#N/A"}},101,{"$f":"VLOOKUP(K218,'EXPENSE DATABASE'!$B$6:$C$35,2,FALSE)","v":{"$error":"#N/A"}},31,{"$f":"VLOOKUP(L218,'EXPENSE DATABASE'!$B$173:$C$176,2,FALSE)","v":{"$error":"#N/A"}},100,0,0,{"$f":"IF(L218=T('EXPENSE DATABASE'!$E$173),O218,0)","v":0},{"$f":"IF(L218=T('EXPENSE DATABASE'!$E$174),O218,0)","v":0},{"$f":"IF(L218=T('EXPENSE DATABASE'!$E$175),O218,0)","v":0},0,205]
[0,0,{"$nulls":12},{"v":0,"d":"$0.00"},{"v":0,"d":"$0.00"},{"v":0,"d":"$0.00"},0,{"$f":"IF(OR(K219='EXPENSE DATABASE'!$V$187,K219='EXPENSE DATABASE'!$V$188,K219='EXPENSE DATABASE'!$V$189,K219='EXPENSE DATABASE'!$V$190,K219='EXPENSE DATABASE'!$V$191,K219='EXPENSE DATABASE'!$V$192,K219='EXPENSE DATABASE'!$V$193,K219='EXPENSE DATABASE'!$V$194,K219='EXPENSE DATABASE'!$X$187,K219='EXPENSE DATABASE'!$X$188,K219='EXPENSE DATABASE'!$X$189,K219='EXPENSE DATABASE'!$X$190,K219='EXPENSE DATABASE'!$X$191,K219='EXPENSE DATABASE'!$X$192,K219='EXPENSE DATABASE'!$X$193,K219='EXPENSE DATABASE'!$X$194,K219='EXPENSE DATABASE'!$Z$187,K219='EXPENSE DATABASE'!$Z$188,K219='EXPENSE DATABASE'!$Z$189,K219='EXPENSE DATABASE'!$Z$190,K219='EXPENSE DATABASE'!$Z$191,K219='EXPENSE DATABASE'!$Z$192,K219='EXPENSE DATABASE'!$Z$193,K219='EXPENSE DATABASE'!$Z$194),O219,\"\")","v":""},{"$f":"IF(OR(K219='EXPENSE DATABASE'!$T$189,K219='EXPENSE DATABASE'!$T$190,K219='EXPENSE DATABASE'!$T$191),O219,\"\")","v":""},{"$f":"VLOOKUP(I219,'EXPENSE DATABASE'!$B$41:$C$65,2,FALSE)","v":{"$error":"#N/A"}},100,{"$f":"VLOOKUP(J219,'EXPENSE DATABASE'!$B$69:$C$168,2,FALSE)","v":{"$error":"#N/A"}},101,{"$f":"VLOOKUP(K219,'EXPENSE DATABASE'!$B$6:$C$35,2,FALSE)","v":{"$error":"#N/A"}},31,{"$f":"VLOOKUP(L219,'EXPENSE DATABASE'!$B$173:$C$176,2,FALSE)","v":{"$error":"#N/A"}},100,0,0,{"$f":"IF(L219=T('EXPENSE DATABASE'!$E$173),O219,0)","v":0},{"$f":"IF(L219=T('EXPENSE DATABASE'!$E$174),O219,0)","v":0},{"$f":"IF(L219=T('EXPENSE DATABASE'!$E$175),O219,0)","v":0},0,206]
[0,0,{"$nulls":12},{"v":0,"d":"$0.00"},{"v":0,"d":"$0.00"},{"v":0,"d":"$0.00"},0,{"$f":"IF(OR(K220='EXPENSE DATABASE'!$V$187,K220='EXPENSE DATABASE'!$V$188,K220='EXPENSE DATABASE'!$V$189,K220='EXPENSE DATABASE'!$V$190,K220='EXPENSE DATABASE'!$V$191,K220='EXPENSE DATABASE'!$V$192,K220='EXPENSE DATABASE'!$V$193,K220='EXPENSE DATABASE'!$V$194,K220='EXPENSE DATABASE'!$X$187,K220='EXPENSE DATABASE'!$X$188,K220='EXPENSE DATABASE'!$X$189,K220='EXPENSE DATABASE'!$X$190,K220='EXPENSE DATABASE'!$X$191,K220='EXPENSE DATABASE'!$X$192,K220='EXPENSE DATABASE'!$X$193,K220='EXPENSE DATABASE'!$X$194,K220='EXPENSE DATABASE'!$Z$187,K220='EXPENSE DATABASE'!$Z$188,K220='EXPENSE DATABASE'!$Z$189,K220='EXPENSE DATABASE'!$Z$190,K220='EXPENSE DATABASE'!$Z$191,K220='EXPENSE DATABASE'!$Z$192,K220='EXPENSE DATABASE'!$Z$193,K220='EXPENSE DATABASE'!$Z$194),O220,\"\")","v":""},{"$f":"IF(OR(K220='EXPENSE DATABASE'!$T$189,K220='EXPENSE DATABASE'!$T$190,K220='EXPENSE DATABASE'!$T$191),O220,\"\")","v":""},{"$f":"VLOOKUP(I220,'EXPENSE DATABASE'!$B$41:$C$65,2,FALSE)","v":{"$error":"#N/A"}},100,{"$f":"VLOOKUP(J220,'EXPENSE DATABASE'!$B$69:$C$168,2,FALSE)","v":{"$error":"#N/A"}},101,{"$f":"VLOOKUP(K220,'EXPENSE DATABASE'!$B$6:$C$35,2,FALSE)","v":{"$error":"#N/A"}},31,{"$f":"VLOOKUP(L220,'EXPENSE DATABASE'!$B$173:$C$176,2,FALSE)","v":{"$error":"#N/A"}},100,0,0,{"$f":"IF(L220=T('EXPENSE DATABASE'!$E$173),O220,0)","v":0},{"$f":"IF(L220=T('EXPENSE DATABASE'!$E$174),O220,0)","v":0},{"$f":"IF(L220=T('EXPENSE DATABASE'!$E$175),O220,0)","v":0},0,207]
[0,0,{"$nulls":12},{"v":0,"d":"$0.00"},{"v":0,"d":"$0.00"},{"v":0,"d":"$0.00"},0,{"$f":"IF(OR(K221='EXPENSE DATABASE'!$V$187,K221='EXPENSE DATABASE'!$V$188,K221='EXPENSE DATABASE'!$V$189,K221='EXPENSE DATABASE'!$V$190,K221='EXPENSE DATABASE'!$V$191,K221='EXPENSE DATABASE'!$V$192,K221='EXPENSE DATABASE'!$V$193,K221='EXPENSE DATABASE'!$V$194,K221='EXPENSE DATABASE'!$X$187,K221='EXPENSE DATABASE'!$X$188,K221='EXPENSE DATABASE'!$X$189,K221='EXPENSE DATABASE'!$X$190,K221='EXPENSE DATABASE'!$X$191,K221='EXPENSE DATABASE'!$X$192,K221='EXPENSE DATABASE'!$X$193,K221='EXPENSE DATABASE'!$X$194,K221='EXPENSE DATABASE'!$Z$187,K221='EXPENSE DATABASE'!$Z$188,K221='EXPENSE DATABASE'!$Z$189,K221='EXPENSE DATABASE'!$Z$190,K221='EXPENSE DATABASE'!$Z$191,K221='EXPENSE DATABASE'!$Z$192,K221='EXPENSE DATABASE'!$Z$193,K221='EXPENSE DATABASE'!$Z$194),O221,\"\")","v":""},{"$f":"IF(OR(K221='EXPENSE DATABASE'!$T$189,K221='EXPENSE DATABASE'!$T$190,K221='EXPENSE DATABASE'!$T$191),O221,\"\")","v":""},{"$f":"VLOOKUP(I221,'EXPENSE DATABASE'!$B$41:$C$65,2,FALSE)","v":{"$error":"#N/A"}},100,{"$f":"VLOOKUP(J221,'EXPENSE DATABASE'!$B$69:$C$168,2,FALSE)","v":{"$error":"#N/A"}},101,{"$f":"VLOOKUP(K221,'EXPENSE DATABASE'!$B$6:$C$35,2,FALSE)","v":{"$error":"#N/A"}},31,{"$f":"VLOOKUP(L221,'EXPENSE DATABASE'!$B$173:$C$176,2,FALSE)","v":{"$error":"#N/A"}},100,0,0,{"$f":"IF(L221=T('EXPENSE DATABASE'!$E$173),O221,0)","v":0},{"$f":"IF(L221=T('EXPENSE DATABASE'!$E$174),O221,0)","v":0},{"$f":"IF(L221=T('EXPENSE DATABASE'!$E$175),O221,0)","v":0},0,208]
[0,0,{"$nulls":12},{"v":0,"d":"$0.00"},{"v":0,"d":"$0.00"},{"v":0,"d":"$0.00"},0,{"$f":"IF(OR(K222='EXPENSE DATABASE'!$V$187,K222='EXPENSE DATABASE'!$V$188,K222='EXPENSE DATABASE'!$V$189,K222='EXPENSE DATABASE'!$V$190,K222='EXPENSE DATABASE'!$V$191,K222='EXPENSE DATABASE'!$V$192,K222='EXPENSE DATABASE'!$V$193,K222='EXPENSE DATABASE'!$V$194,K222='EXPENSE DATABASE'!$X$187,K222='EXPENSE DATABASE'!$X$188,K222='EXPENSE DATABASE'!$X$189,K222='EXPENSE DATABASE'!$X$190,K222='EXPENSE DATABASE'!$X$191,K222='EXPENSE DATABASE'!$X$192,K222='EXPENSE DATABASE'!$X$193,K222='EXPENSE DATABASE'!$X$194,K222='EXPENSE DATABASE'!$Z$187,K222='EXPENSE DATABASE'!$Z$188,K222='EXPENSE DATABASE'!$Z$189,K222='EXPENSE DATABASE'!$Z$190,K222='EXPENSE DATABASE'!$Z$191,K222='EXPENSE DATABASE'!$Z$192,K222='EXPENSE DATABASE'!$Z$193,K222='EXPENSE DATABASE'!$Z$194),O222,\"\")","v":""},{"$f":"IF(OR(K222='EXPENSE DATABASE'!$T$189,K222='EXPENSE DATABASE'!$T$190,K222='EXPENSE DATABASE'!$T$191),O222,\"\")","v":""},{"$f":"VLOOKUP(I222,'EXPENSE DATABASE'!$B$41:$C$65,2,FALSE)","v":{"$error":"#N/A"}},100,{"$f":"VLOOKUP(J222,'EXPENSE DATABASE'!$B$69:$C$168,2,FALSE)","v":{"$error":"#N/A"}},101,{"$f":"VLOOKUP(K222,'EXPENSE DATABASE'!$B$6:$C$35,2,FALSE)","v":{"$error":"#N/A"}},31,{"$f":"VLOOKUP(L222,'EXPENSE DATABASE'!$B$173:$C$176,2,FALSE)","v":{"$error":"#N/A"}},100,0,0,{"$f":"IF(L222=T('EXPENSE DATABASE'!$E$173),O222,0)","v":0},{"$f":"IF(L222=T('EXPENSE DATABASE'!$E$174),O222,0)","v":0},{"$f":"IF(L222=T('EXPENSE DATABASE'!$E$175),O222,0)","v":0},0,209]
[0,0,{"$nulls":12},{"v":0,"d":"$0.00"},{"v":0,"d":"$0.00"},{"v":0,"d":"$0.00"},0,{"$f":"IF(OR(K223='EXPENSE DATABASE'!$V$187,K223='EXPENSE DATABASE'!$V$188,K223='EXPENSE DATABASE'!$V$189,K223='EXPENSE DATABASE'!$V$190,K223='EXPENSE DATABASE'!$V$191,K223='EXPENSE DATABASE'!$V$192,K223='EXPENSE DATABASE'!$V$193,K223='EXPENSE DATABASE'!$V$194,K223='EXPENSE DATABASE'!$X$187,K223='EXPENSE DATABASE'!$X$188,K223='EXPENSE DATABASE'!$X$189,K223='EXPENSE DATABASE'!$X$190,K223='EXPENSE DATABASE'!$X$191,K223='EXPENSE DATABASE'!$X$192,K223='EXPENSE DATABASE'!$X$193,K223='EXPENSE DATABASE'!$X$194,K223='EXPENSE DATABASE'!$Z$187,K223='EXPENSE DATABASE'!$Z$188,K223='EXPENSE DATABASE'!$Z$189,K223='EXPENSE DATABASE'!$Z$190,K223='EXPENSE DATABASE'!$Z$191,K223='EXPENSE DATABASE'!$Z$192,K223='EXPENSE DATABASE'!$Z$193,K223='EXPENSE DATABASE'!$Z$194),O223,\"\")","v":""},{"$f":"IF(OR(K223='EXPENSE DATABASE'!$T$189,K223='EXPENSE DATABASE'!$T$190,K223='EXPENSE DATABASE'!$T$191),O223,\"\")","v":""},{"$f":"VLOOKUP(I223,'EXPENSE DATABASE'!$B$41:$C$65,2,FALSE)","v":{"$error":"#N/A"}},100,{"$f":"VLOOKUP(J223,'EXPENSE DATABASE'!$B$69:$C$168,2,FALSE)","v":{"$error":"#N/A"}},101,{"$f":"VLOOKUP(K223,'EXPENSE DATABASE'!$B$6:$C$35,2,FALSE)","v":{"$error":"#N/A"}},31,{"$f":"VLOOKUP(L223,'EXPENSE DATABASE'!$B$173:$C$176,2,FALSE)","v":{"$error":"#N/A"}},100,0,0,{"$f":"IF(L223=T('EXPENSE DATABASE'!$E$173),O223,0)","v":0},{"$f":"IF(L223=T('EXPENSE DATABASE'!$E$174),O223,0)","v":0},{"$f":"IF(L223=T('EXPENSE DATABASE'!$E$175),O223,0)","v":0},0,210]
[0,0,{"$nulls":12},{"v":0,"d":"$0.00"},{"v":0,"d":"$0.00"},{"v":0,"d":"$0.00"},0,{"$f":"IF(OR(K224='EXPENSE DATABASE'!$V$187,K224='EXPENSE DATABASE'!$V$188,K224='EXPENSE DATABASE'!$V$189,K224='EXPENSE DATABASE'!$V$190,K224='EXPENSE DATABASE'!$V$191,K224='EXPENSE DATABASE'!$V$192,K224='EXPENSE DATABASE'!$V$193,K224='EXPENSE DATABASE'!$V$194,K224='EXPENSE DATABASE'!$X$187,K224='EXPENSE DATABASE'!$X$188,K224='EXPENSE DATABASE'!$X$189,K224='EXPENSE DATABASE'!$X$190,K224='EXPENSE DATABASE'!$X$191,K224='EXPENSE DATABASE'!$X$192,K224='EXPENSE DATABASE'!$X$193,K224='EXPENSE DATABASE'!$X$194,K224='EXPENSE DATABASE'!$Z$187,K224='EXPENSE DATABASE'!$Z$188,K224='EXPENSE DATABASE'!$Z$189,K224='EXPENSE DATABASE'!$Z$190,K224='EXPENSE DATABASE'!$Z$191,K224='EXPENSE DATABASE'!$Z$192,K224='EXPENSE DATABASE'!$Z$193,K224='EXPENSE DATABASE'!$Z$194),O224,\"\")","v":""},{"$f":"IF(OR(K224='EXPENSE DATABASE'!$T$189,K224='EXPENSE DATABASE'!$T$190,K224='EXPENSE DATABASE'!$T$191),O224,\"\")","v":""},{"$f":"VLOOKUP(I224,'EXPENSE DATABASE'!$B$41:$C$65,2,FALSE)","v":{"$error":"#N/A"}},100,{"$f":"VLOOKUP(J224,'EXPENSE DATABASE'!$B$69:$C$168,2,FALSE)","v":{"$error":"#N/A"}},101,{"$f":"VLOOKUP(K224,'EXPENSE DATABASE'!$B$6:$C$35,2,FALSE)","v":{"$error":"#N/A"}},31,{"$f":"VLOOKUP(L224,'EXPENSE DATABASE'!$B$173:$C$176,2,FALSE)","v":{"$error":"#N/A"}},100,0,0,{"$f":"IF(L224=T('EXPENSE DATABASE'!$E$173),O224,0)","v":0},{"$f":"IF(L224=T('EXPENSE DATABASE'!$E$174),O224,0)","v":0},{"$f":"IF(L224=T('EXPENSE DATABASE'!$E$175),O224,0)","v":0},0,211]
[0,0,{"$nulls":12},{"v":0,"d":"$0.00"},{"v":0,"d":"$0.00"},{"v":0,"d":"$0.00"},0,{"$f":"IF(OR(K225='EXPENSE DATABASE'!$V$187,K225='EXPENSE DATABASE'!$V$188,K225='EXPENSE DATABASE'!$V$189,K225='EXPENSE DATABASE'!$V$190,K225='EXPENSE DATABASE'!$V$191,K225='EXPENSE DATABASE'!$V$192,K225='EXPENSE DATABASE'!$V$193,K225='EXPENSE DATABASE'!$V$194,K225='EXPENSE DATABASE'!$X$187,K225='EXPENSE DATABASE'!$X$188,K225='EXPENSE DATABASE'!$X$189,K225='EXPENSE DATABASE'!$X$190,K225='EXPENSE DATABASE'!$X$191,K225='EXPENSE DATABASE'!$X$192,K225='EXPENSE DATABASE'!$X$193,K225='EXPENSE DATABASE'!$X$194,K225='EXPENSE DATABASE'!$Z$187,K225='EXPENSE DATABASE'!$Z$188,K225='EXPENSE DATABASE'!$Z$189,K225='EXPENSE DATABASE'!$Z$190,K225='EXPENSE DATABASE'!$Z$191,K225='EXPENSE DATABASE'!$Z$192,K225='EXPENSE DATABASE'!$Z$193,K225='EXPENSE DATABASE'!$Z$194),O225,\"\")","v":""},{"$f":"IF(OR(K225='EXPENSE DATABASE'!$T$189,K225='EXPENSE DATABASE'!$T$190,K225='EXPENSE DATABASE'!$T$191),O225,\"\")","v":""},{"$f":"VLOOKUP(I225,'EXPENSE DATABASE'!$B$41:$C$65,2,FALSE)","v":{"$error":"#N/A"}},100,{"$f":"VLOOKUP(J225,'EXPENSE DATABASE'!$B$69:$C$168,2,FALSE)","v":{"$error":"#N/A"}},101,{"$f":"VLOOKUP(K225,'EXPENSE DATABASE'!$B$6:$C$35,2,FALSE)","v":{"$error":"#N/A"}},31,{"$f":"VLOOKUP(L225,'EXPENSE DATABASE'!$B$173:$C$176,2,FALSE)","v":{"$error":"#N/A"}},100,0,0,{"$f":"IF(L225=T('EXPENSE DATABASE'!$E$173),O225,0)","v":0},{"$f":"IF(L225=T('EXPENSE DATABASE'!$E$174),O225,0)","v":0},{"$f":"IF(L225=T('EXPENSE DATABASE'!$E$175),O225,0)","v":0},0,212]
[0,0,{"$nulls":12},{"v":0,"d":"$0.00"},{"v":0,"d":"$0.00"},{"v":0,"d":"$0.00"},0,{"$f":"IF(OR(K226='EXPENSE DATABASE'!$V$187,K226='EXPENSE DATABASE'!$V$188,K226='EXPENSE DATABASE'!$V$189,K226='EXPENSE DATABASE'!$V$190,K226='EXPENSE DATABASE'!$V$191,K226='EXPENSE DATABASE'!$V$192,K226='EXPENSE DATABASE'!$V$193,K226='EXPENSE DATABASE'!$V$194,K226='EXPENSE DATABASE'!$X$187,K226='EXPENSE DATABASE'!$X$188,K226='EXPENSE DATABASE'!$X$189,K226='EXPENSE DATABASE'!$X$190,K226='EXPENSE DATABASE'!$X$191,K226='EXPENSE DATABASE'!$X$192,K226='EXPENSE DATABASE'!$X$193,K226='EXPENSE DATABASE'!$X$194,K226='EXPENSE DATABASE'!$Z$187,K226='EXPENSE DATABASE'!$Z$188,K226='EXPENSE DATABASE'!$Z$189,K226='EXPENSE DATABASE'!$Z$190,K226='EXPENSE DATABASE'!$Z$191,K226='EXPENSE DATABASE'!$Z$192,K226='EXPENSE DATABASE'!$Z$193,K226='EXPENSE DATABASE'!$Z$194),O226,\"\")","v":""},{"$f":"IF(OR(K226='EXPENSE DATABASE'!$T$189,K226='EXPENSE DATABASE'!$T$190,K226='EXPENSE DATABASE'!$T$191),O226,\"\")","v":""},{"$f":"VLOOKUP(I226,'EXPENSE DATABASE'!$B$41:$C$65,2,FALSE)","v":{"$error":"#N/A"}},100,{"$f":"VLOOKUP(J226,'EXPENSE DATABASE'!$B$69:$C$168,2,FALSE)","v":{"$error":"#N/A"}},101,{"$f":"VLOOKUP(K226,'EXPENSE DATABASE'!$B$6:$C$35,2,FALSE)","v":{"$error":"#N/A"}},31,{"$f":"VLOOKUP(L226,'EXPENSE DATABASE'!$B$173:$C$176,2,FALSE)","v":{"$error":"#N/A"}},100,0,0,{"$f":"IF(L226=T('EXPENSE DATABASE'!$E$173),O226,0)","v":0},{"$f":"IF(L226=T('EXPENSE DATABASE'!$E$174),O226,0)","v":0},{"$f":"IF(L226=T('EXPENSE DATABASE'!$E$175),O226,0)","v":0},0,213]
[0,0,{"$nulls":12},{"v":0,"d":"$0.00"},{"v":0,"d":"$0.00"},{"v":0,"d":"$0.00"},0,{"$f":"IF(OR(K227='EXPENSE DATABASE'!$V$187,K227='EXPENSE DATABASE'!$V$188,K227='EXPENSE DATABASE'!$V$189,K227='EXPENSE DATABASE'!$V$190,K227='EXPENSE DATABASE'!$V$191,K227='EXPENSE DATABASE'!$V$192,K227='EXPENSE DATABASE'!$V$193,K227='EXPENSE DATABASE'!$V$194,K227='EXPENSE DATABASE'!$X$187,K227='EXPENSE DATABASE'!$X$188,K227='EXPENSE DATABASE'!$X$189,K227='EXPENSE DATABASE'!$X$190,K227='EXPENSE DATABASE'!$X$191,K227='EXPENSE DATABASE'!$X$192,K227='EXPENSE DATABASE'!$X$193,K227='EXPENSE DATABASE'!$X$194,K227='EXPENSE DATABASE'!$Z$187,K227='EXPENSE DATABASE'!$Z$188,K227='EXPENSE DATABASE'!$Z$189,K227='EXPENSE DATABASE'!$Z$190,K227='EXPENSE DATABASE'!$Z$191,K227='EXPENSE DATABASE'!$Z$192,K227='EXPENSE DATABASE'!$Z$193,K227='EXPENSE DATABASE'!$Z$194),O227,\"\")","v":""},{"$f":"IF(OR(K227='EXPENSE DATABASE'!$T$189,K227='EXPENSE DATABASE'!$T$190,K227='EXPENSE DATABASE'!$T$191),O227,\"\")","v":""},{"$f":"VLOOKUP(I227,'EXPENSE DATABASE'!$B$41:$C$65,2,FALSE)","v":{"$error":"#N/A"}},100,{"$f":"VLOOKUP(J227,'EXPENSE DATABASE'!$B$69:$C$168,2,FALSE)","v":{"$error":"#N/A"}},101,{"$f":"VLOOKUP(K227,'EXPENSE DATABASE'!$B$6:$C$35,2,FALSE)","v":{"$error":"#N/A"}},31,{"$f":"VLOOKUP(L227,'EXPENSE DATABASE'!$B$173:$C$176,2,FALSE)","v":{"$error":"#N/A"}},100,0,0,{"$f":"IF(L227=T('EXPENSE DATABASE'!$E$173),O227,0)","v":0},{"$f":"IF(L227=T('EXPENSE DATABASE'!$E$174),O227,0)","v":0},{"$f":"IF(L227=T('EXPENSE DATABASE'!$E$175),O227,0)","v":0},0,214]
[0,0,{"$nulls":12},{"v":0,"d":"$0.00"},{"v":0,"d":"$0.00"},{"v":0,"d":"$0.00"},0,{"$f":"IF(OR(K228='EXPENSE DATABASE'!$V$187,K228='EXPENSE DATABASE'!$V$188,K228='EXPENSE DATABASE'!$V$189,K228='EXPENSE DATABASE'!$V$190,K228='EXPENSE DATABASE'!$V$191,K228='EXPENSE DATABASE'!$V$192,K228='EXPENSE DATABASE'!$V$193,K228='EXPENSE DATABASE'!$V$194,K228='EXPENSE DATABASE'!$X$187,K228='EXPENSE DATABASE'!$X$188,K228='EXPENSE DATABASE'!$X$189,K228='EXPENSE DATABASE'!$X$190,K228='EXPENSE DATABASE'!$X$191,K228='EXPENSE DATABASE'!$X$192,K228='EXPENSE DATABASE'!$X$193,K228='EXPENSE DATABASE'!$X$194,K228='EXPENSE DATABASE'!$Z$187,K228='EXPENSE DATABASE'!$Z$188,K228='EXPENSE DATABASE'!$Z$189,K228='EXPENSE DATABASE'!$Z$190,K228='EXPENSE DATABASE'!$Z$191,K228='EXPENSE DATABASE'!$Z$192,K228='EXPENSE DATABASE'!$Z$193,K228='EXPENSE DATABASE'!$Z$194),O228,\"\")","v":""},{"$f":"IF(OR(K228='EXPENSE DATABASE'!$T$189,K228='EXPENSE DATABASE'!$T$190,K228='EXPENSE DATABASE'!$T$191),O228,\"\")","v":""},{"$f":"VLOOKUP(I228,'EXPENSE DATABASE'!$B$41:$C$65,2,FALSE)","v":{"$error":"#N/A"}},100,{"$f":"VLOOKUP(J228,'EXPENSE DATABASE'!$B$69:$C$168,2,FALSE)","v":{"$error":"#N/A"}},101,{"$f":"VLOOKUP(K228,'EXPENSE DATABASE'!$B$6:$C$35,2,FALSE)","v":{"$error":"#N/A"}},31,{"$f":"VLOOKUP(L228,'EXPENSE DATABASE'!$B$173:$C$176,2,FALSE)","v":{"$error":"#N/A"}},100,0,0,{"$f":"IF(L228=T('EXPENSE DATABASE'!$E$173),O228,0)","v":0},{"$f":"IF(L228=T('EXPENSE DATABASE'!$E$174),O228,0)","v":0},{"$f":"IF(L228=T('EXPENSE DATABASE'!$E$175),O228,0)","v":0},0,215]
[0,0,{"$nulls":12},{"v":0,"d":"$0.00"},{"v":0,"d":"$0.00"},{"v":0,"d":"$0.00"},0,{"$f":"IF(OR(K229='EXPENSE DATABASE'!$V$187,K229='EXPENSE DATABASE'!$V$188,K229='EXPENSE DATABASE'!$V$189,K229='EXPENSE DATABASE'!$V$190,K229='EXPENSE DATABASE'!$V$191,K229='EXPENSE DATABASE'!$V$192,K229='EXPENSE DATABASE'!$V$193,K229='EXPENSE DATABASE'!$V$194,K229='EXPENSE DATABASE'!$X$187,K229='EXPENSE DATABASE'!$X$188,K229='EXPENSE DATABASE'!$X$189,K229='EXPENSE DATABASE'!$X$190,K229='EXPENSE DATABASE'!$X$191,K229='EXPENSE DATABASE'!$X$192,K229='EXPENSE DATABASE'!$X$193,K229='EXPENSE DATABASE'!$X$194,K229='EXPENSE DATABASE'!$Z$187,K229='EXPENSE DATABASE'!$Z$188,K229='EXPENSE DATABASE'!$Z$189,K229='EXPENSE DATABASE'!$Z$190,K229='EXPENSE DATABASE'!$Z$191,K229='EXPENSE DATABASE'!$Z$192,K229='EXPENSE DATABASE'!$Z$193,K229='EXPENSE DATABASE'!$Z$194),O229,\"\")","v":""},{"$f":"IF(OR(K229='EXPENSE DATABASE'!$T$189,K229='EXPENSE DATABASE'!$T$190,K229='EXPENSE DATABASE'!$T$191),O229,\"\")","v":""},{"$f":"VLOOKUP(I229,'EXPENSE DATABASE'!$B$41:$C$65,2,FALSE)","v":{"$error":"#N/A"}},100,{"$f":"VLOOKUP(J229,'EXPENSE DATABASE'!$B$69:$C$168,2,FALSE)","v":{"$error":"#N/A"}},101,{"$f":"VLOOKUP(K229,'EXPENSE DATABASE'!$B$6:$C$35,2,FALSE)","v":{"$error":"#N/A"}},31,{"$f":"VLOOKUP(L229,'EXPENSE DATABASE'!$B$173:$C$176,2,FALSE)","v":{"$error":"#N/A"}},100,0,0,{"$f":"IF(L229=T('EXPENSE DATABASE'!$E$173),O229,0)","v":0},{"$f":"IF(L229=T('EXPENSE DATABASE'!$E$174),O229,0)","v":0},{"$f":"IF(L229=T('EXPENSE DATABASE'!$E$175),O229,0)","v":0},0,216]
[0,0,{"$nulls":12},{"v":0,"d":"$0.00"},{"v":0,"d":"$0.00"},{"v":0,"d":"$0.00"},0,{"$f":"IF(OR(K230='EXPENSE DATABASE'!$V$187,K230='EXPENSE DATABASE'!$V$188,K230='EXPENSE DATABASE'!$V$189,K230='EXPENSE DATABASE'!$V$190,K230='EXPENSE DATABASE'!$V$191,K230='EXPENSE DATABASE'!$V$192,K230='EXPENSE DATABASE'!$V$193,K230='EXPENSE DATABASE'!$V$194,K230='EXPENSE DATABASE'!$X$187,K230='EXPENSE DATABASE'!$X$188,K230='EXPENSE DATABASE'!$X$189,K230='EXPENSE DATABASE'!$X$190,K230='EXPENSE DATABASE'!$X$191,K230='EXPENSE DATABASE'!$X$192,K230='EXPENSE DATABASE'!$X$193,K230='EXPENSE DATABASE'!$X$194,K230='EXPENSE DATABASE'!$Z$187,K230='EXPENSE DATABASE'!$Z$188,K230='EXPENSE DATABASE'!$Z$189,K230='EXPENSE DATABASE'!$Z$190,K230='EXPENSE DATABASE'!$Z$191,K230='EXPENSE DATABASE'!$Z$192,K230='EXPENSE DATABASE'!$Z$193,K230='EXPENSE DATABASE'!$Z$194),O230,\"\")","v":""},{"$f":"IF(OR(K230='EXPENSE DATABASE'!$T$189,K230='EXPENSE DATABASE'!$T$190,K230='EXPENSE DATABASE'!$T$191),O230,\"\")","v":""},{"$f":"VLOOKUP(I230,'EXPENSE DATABASE'!$B$41:$C$65,2,FALSE)","v":{"$error":"#N/A"}},100,{"$f":"VLOOKUP(J230,'EXPENSE DATABASE'!$B$69:$C$168,2,FALSE)","v":{"$error":"#N/A"}},101,{"$f":"VLOOKUP(K230,'EXPENSE DATABASE'!$B$6:$C$35,2,FALSE)","v":{"$error":"#N/A"}},31,{"$f":"VLOOKUP(L230,'EXPENSE DATABASE'!$B$173:$C$176,2,FALSE)","v":{"$error":"#N/A"}},100,0,0,{"$f":"IF(L230=T('EXPENSE DATABASE'!$E$173),O230,0)","v":0},{"$f":"IF(L230=T('EXPENSE DATABASE'!$E$174),O230,0)","v":0},{"$f":"IF(L230=T('EXPENSE DATABASE'!$E$175),O230,0)","v":0},0,217]
[0,0,{"$nulls":12},{"v":0,"d":"$0.00"},{"v":0,"d":"$0.00"},{"v":0,"d":"$0.00"},0,{"$f":"IF(OR(K231='EXPENSE DATABASE'!$V$187,K231='EXPENSE DATABASE'!$V$188,K231='EXPENSE DATABASE'!$V$189,K231='EXPENSE DATABASE'!$V$190,K231='EXPENSE DATABASE'!$V$191,K231='EXPENSE DATABASE'!$V$192,K231='EXPENSE DATABASE'!$V$193,K231='EXPENSE DATABASE'!$V$194,K231='EXPENSE DATABASE'!$X$187,K231='EXPENSE DATABASE'!$X$188,K231='EXPENSE DATABASE'!$X$189,K231='EXPENSE DATABASE'!$X$190,K231='EXPENSE DATABASE'!$X$191,K231='EXPENSE DATABASE'!$X$192,K231='EXPENSE DATABASE'!$X$193,K231='EXPENSE DATABASE'!$X$194,K231='EXPENSE DATABASE'!$Z$187,K231='EXPENSE DATABASE'!$Z$188,K231='EXPENSE DATABASE'!$Z$189,K231='EXPENSE DATABASE'!$Z$190,K231='EXPENSE DATABASE'!$Z$191,K231='EXPENSE DATABASE'!$Z$192,K231='EXPENSE DATABASE'!$Z$193,K231='EXPENSE DATABASE'!$Z$194),O231,\"\")","v":""},{"$f":"IF(OR(K231='EXPENSE DATABASE'!$T$189,K231='EXPENSE DATABASE'!$T$190,K231='EXPENSE DATABASE'!$T$191),O231,\"\")","v":""},{"$f":"VLOOKUP(I231,'EXPENSE DATABASE'!$B$41:$C$65,2,FALSE)","v":{"$error":"#N/A"}},100,{"$f":"VLOOKUP(J231,'EXPENSE DATABASE'!$B$69:$C$168,2,FALSE)","v":{"$error":"#N/A"}},101,{"$f":"VLOOKUP(K231,'EXPENSE DATABASE'!$B$6:$C$35,2,FALSE)","v":{"$error":"#N/A"}},31,{"$f":"VLOOKUP(L231,'EXPENSE DATABASE'!$B$173:$C$176,2,FALSE)","v":{"$error":"#N/A"}},100,0,0,{"$f":"IF(L231=T('EXPENSE DATABASE'!$E$173),O231,0)","v":0},{"$f":"IF(L231=T('EXPENSE DATABASE'!$E$174),O231,0)","v":0},{"$f":"IF(L231=T('EXPENSE DATABASE'!$E$175),O231,0)","v":0},0,218]
[0,0,{"$nulls":12},{"v":0,"d":"$0.00"},{"v":0,"d":"$0.00"},{"v":0,"d":"$0.00"},0,{"$f":"IF(OR(K232='EXPENSE DATABASE'!$V$187,K232='EXPENSE DATABASE'!$V$188,K232='EXPENSE DATABASE'!$V$189,K232='EXPENSE DATABASE'!$V$190,K232='EXPENSE DATABASE'!$V$191,K232='EXPENSE DATABASE'!$V$192,K232='EXPENSE DATABASE'!$V$193,K232='EXPENSE DATABASE'!$V$194,K232='EXPENSE DATABASE'!$X$187,K232='EXPENSE DATABASE'!$X$188,K232='EXPENSE DATABASE'!$X$189,K232='EXPENSE DATABASE'!$X$190,K232='EXPENSE DATABASE'!$X$191,K232='EXPENSE DATABASE'!$X$192,K232='EXPENSE DATABASE'!$X$193,K232='EXPENSE DATABASE'!$X$194,K232='EXPENSE DATABASE'!$Z$187,K232='EXPENSE DATABASE'!$Z$188,K232='EXPENSE DATABASE'!$Z$189,K232='EXPENSE DATABASE'!$Z$190,K232='EXPENSE DATABASE'!$Z$191,K232='EXPENSE DATABASE'!$Z$192,K232='EXPENSE DATABASE'!$Z$193,K232='EXPENSE DATABASE'!$Z$194),O232,\"\")","v":""},{"$f":"IF(OR(K232='EXPENSE DATABASE'!$T$189,K232='EXPENSE DATABASE'!$T$190,K232='EXPENSE DATABASE'!$T$191),O232,\"\")","v":""},{"$f":"VLOOKUP(I232,'EXPENSE DATABASE'!$B$41:$C$65,2,FALSE)","v":{"$error":"#N/A"}},100,{"$f":"VLOOKUP(J232,'EXPENSE DATABASE'!$B$69:$C$168,2,FALSE)","v":{"$error":"#N/A"}},101,{"$f":"VLOOKUP(K232,'EXPENSE DATABASE'!$B$6:$C$35,2,FALSE)","v":{"$error":"#N/A"}},31,{"$f":"VLOOKUP(L232,'EXPENSE DATABASE'!$B$173:$C$176,2,FALSE)","v":{"$error":"#N/A"}},100,0,0,{"$f":"IF(L232=T('EXPENSE DATABASE'!$E$173),O232,0)","v":0},{"$f":"IF(L232=T('EXPENSE DATABASE'!$E$174),O232,0)","v":0},{"$f":"IF(L232=T('EXPENSE DATABASE'!$E$175),O232,0)","v":0},0,219]
[0,0,{"$nulls":12},{"v":0,"d":"$0.00"},{"v":0,"d":"$0.00"},{"v":0,"d":"$0.00"},0,{"$f":"IF(OR(K233='EXPENSE DATABASE'!$V$187,K233='EXPENSE DATABASE'!$V$188,K233='EXPENSE DATABASE'!$V$189,K233='EXPENSE DATABASE'!$V$190,K233='EXPENSE DATABASE'!$V$191,K233='EXPENSE DATABASE'!$V$192,K233='EXPENSE DATABASE'!$V$193,K233='EXPENSE DATABASE'!$V$194,K233='EXPENSE DATABASE'!$X$187,K233='EXPENSE DATABASE'!$X$188,K233='EXPENSE DATABASE'!$X$189,K233='EXPENSE DATABASE'!$X$190,K233='EXPENSE DATABASE'!$X$191,K233='EXPENSE DATABASE'!$X$192,K233='EXPENSE DATABASE'!$X$193,K233='EXPENSE DATABASE'!$X$194,K233='EXPENSE DATABASE'!$Z$187,K233='EXPENSE DATABASE'!$Z$188,K233='EXPENSE DATABASE'!$Z$189,K233='EXPENSE DATABASE'!$Z$190,K233='EXPENSE DATABASE'!$Z$191,K233='EXPENSE DATABASE'!$Z$192,K233='EXPENSE DATABASE'!$Z$193,K233='EXPENSE DATABASE'!$Z$194),O233,\"\")","v":""},{"$f":"IF(OR(K233='EXPENSE DATABASE'!$T$189,K233='EXPENSE DATABASE'!$T$190,K233='EXPENSE DATABASE'!$T$191),O233,\"\")","v":""},{"$f":"VLOOKUP(I233,'EXPENSE DATABASE'!$B$41:$C$65,2,FALSE)","v":{"$error":"#N/A"}},100,{"$f":"VLOOKUP(J233,'EXPENSE DATABASE'!$B$69:$C$168,2,FALSE)","v":{"$error":"#N/A"}},101,{"$f":"VLOOKUP(K233,'EXPENSE DATABASE'!$B$6:$C$35,2,FALSE)","v":{"$error":"#N/A"}},31,{"$f":"VLOOKUP(L233,'EXPENSE DATABASE'!$B$173:$C$176,2,FALSE)","v":{"$error":"#N/A"}},100,0,0,{"$f":"IF(L233=T('EXPENSE DATABASE'!$E$173),O233,0)","v":0},{"$f":"IF(L233=T('EXPENSE DATABASE'!$E$174),O233,0)","v":0},{"$f":"IF(L233=T('EXPENSE DATABASE'!$E$175),O233,0)","v":0},0,220]
[0,0,{"$nulls":12},{"v":0,"d":"$0.00"},{"v":0,"d":"$0.00"},{"v":0,"d":"$0.00"},0,{"$f":"IF(OR(K234='EXPENSE DATABASE'!$V$187,K234='EXPENSE DATABASE'!$V$188,K234='EXPENSE DATABASE'!$V$189,K234='EXPENSE DATABASE'!$V$190,K234='EXPENSE DATABASE'!$V$191,K234='EXPENSE DATABASE'!$V$192,K234='EXPENSE DATABASE'!$V$193,K234='EXPENSE DATABASE'!$V$194,K234='EXPENSE DATABASE'!$X$187,K234='EXPENSE DATABASE'!$X$188,K234='EXPENSE DATABASE'!$X$189,K234='EXPENSE DATABASE'!$X$190,K234='EXPENSE DATABASE'!$X$191,K234='EXPENSE DATABASE'!$X$192,K234='EXPENSE DATABASE'!$X$193,K234='EXPENSE DATABASE'!$X$194,K234='EXPENSE DATABASE'!$Z$187,K234='EXPENSE DATABASE'!$Z$188,K234='EXPENSE DATABASE'!$Z$189,K234='EXPENSE DATABASE'!$Z$190,K234='EXPENSE DATABASE'!$Z$191,K234='EXPENSE DATABASE'!$Z$192,K234='EXPENSE DATABASE'!$Z$193,K234='EXPENSE DATABASE'!$Z$194),O234,\"\")","v":""},{"$f":"IF(OR(K234='EXPENSE DATABASE'!$T$189,K234='EXPENSE DATABASE'!$T$190,K234='EXPENSE DATABASE'!$T$191),O234,\"\")","v":""},{"$f":"VLOOKUP(I234,'EXPENSE DATABASE'!$B$41:$C$65,2,FALSE)","v":{"$error":"#N/A"}},100,{"$f":"VLOOKUP(J234,'EXPENSE DATABASE'!$B$69:$C$168,2,FALSE)","v":{"$error":"#N/A"}},101,{"$f":"VLOOKUP(K234,'EXPENSE DATABASE'!$B$6:$C$35,2,FALSE)","v":{"$error":"#N/A"}},31,{"$f":"VLOOKUP(L234,'EXPENSE DATABASE'!$B$173:$C$176,2,FALSE)","v":{"$error":"#N/A"}},100,0,0,{"$f":"IF(L234=T('EXPENSE DATABASE'!$E$173),O234,0)","v":0},{"$f":"IF(L234=T('EXPENSE DATABASE'!$E$174),O234,0)","v":0},{"$f":"IF(L234=T('EXPENSE DATABASE'!$E$175),O234,0)","v":0},0,221]
[0,0,{"$nulls":12},{"v":0,"d":"$0.00"},{"v":0,"d":"$0.00"},{"v":0,"d":"$0.00"},0,{"$f":"IF(OR(K235='EXPENSE DATABASE'!$V$187,K235='EXPENSE DATABASE'!$V$188,K235='EXPENSE DATABASE'!$V$189,K235='EXPENSE DATABASE'!$V$190,K235='EXPENSE DATABASE'!$V$191,K235='EXPENSE DATABASE'!$V$192,K235='EXPENSE DATABASE'!$V$193,K235='EXPENSE DATABASE'!$V$194,K235='EXPENSE DATABASE'!$X$187,K235='EXPENSE DATABASE'!$X$188,K235='EXPENSE DATABASE'!$X$189,K235='EXPENSE DATABASE'!$X$190,K235='EXPENSE DATABASE'!$X$191,K235='EXPENSE DATABASE'!$X$192,K235='EXPENSE DATABASE'!$X$193,K235='EXPENSE DATABASE'!$X$194,K235='EXPENSE DATABASE'!$Z$187,K235='EXPENSE DATABASE'!$Z$188,K235='EXPENSE DATABASE'!$Z$189,K235='EXPENSE DATABASE'!$Z$190,K235='EXPENSE DATABASE'!$Z$191,K235='EXPENSE DATABASE'!$Z$192,K235='EXPENSE DATABASE'!$Z$193,K235='EXPENSE DATABASE'!$Z$194),O235,\"\")","v":""},{"$f":"IF(OR(K235='EXPENSE DATABASE'!$T$189,K235='EXPENSE DATABASE'!$T$190,K235='EXPENSE DATABASE'!$T$191),O235,\"\")","v":""},{"$f":"VLOOKUP(I235,'EXPENSE DATABASE'!$B$41:$C$65,2,FALSE)","v":{"$error":"#N/A"}},100,{"$f":"VLOOKUP(J235,'EXPENSE DATABASE'!$B$69:$C$168,2,FALSE)","v":{"$error":"#N/A"}},101,{"$f":"VLOOKUP(K235,'EXPENSE DATABASE'!$B$6:$C$35,2,FALSE)","v":{"$error":"#N/A"}},31,{"$f":"VLOOKUP(L235,'EXPENSE DATABASE'!$B$173:$C$176,2,FALSE)","v":{"$error":"#N/A"}},100,0,0,{"$f":"IF(L235=T('EXPENSE DATABASE'!$E$173),O235,0)","v":0},{"$f":"IF(L235=T('EXPENSE DATABASE'!$E$174),O235,0)","v":0},{"$f":"IF(L235=T('EXPENSE DATABASE'!$E$175),O235,0)","v":0},0,222]
[0,0,{"$nulls":12},{"v":0,"d":"$0.00"},{"v":0,"d":"$0.00"},{"v":0,"d":"$0.00"},0,{"$f":"IF(OR(K236='EXPENSE DATABASE'!$V$187,K236='EXPENSE DATABASE'!$V$188,K236='EXPENSE DATABASE'!$V$189,K236='EXPENSE DATABASE'!$V$190,K236='EXPENSE DATABASE'!$V$191,K236='EXPENSE DATABASE'!$V$192,K236='EXPENSE DATABASE'!$V$193,K236='EXPENSE DATABASE'!$V$194,K236='EXPENSE DATABASE'!$X$187,K236='EXPENSE DATABASE'!$X$188,K236='EXPENSE DATABASE'!$X$189,K236='EXPENSE DATABASE'!$X$190,K236='EXPENSE DATABASE'!$X$191,K236='EXPENSE DATABASE'!$X$192,K236='EXPENSE DATABASE'!$X$193,K236='EXPENSE DATABASE'!$X$194,K236='EXPENSE DATABASE'!$Z$187,K236='EXPENSE DATABASE'!$Z$188,K236='EXPENSE DATABASE'!$Z$189,K236='EXPENSE DATABASE'!$Z$190,K236='EXPENSE DATABASE'!$Z$191,K236='EXPENSE DATABASE'!$Z$192,K236='EXPENSE DATABASE'!$Z$193,K236='EXPENSE DATABASE'!$Z$194),O236,\"\")","v":""},{"$f":"IF(OR(K236='EXPENSE DATABASE'!$T$189,K236='EXPENSE DATABASE'!$T$190,K236='EXPENSE DATABASE'!$T$191),O236,\"\")","v":""},{"$f":"VLOOKUP(I236,'EXPENSE DATABASE'!$B$41:$C$65,2,FALSE)","v":{"$error":"#N/A"}},100,{"$f":"VLOOKUP(J236,'EXPENSE DATABASE'!$B$69:$C$168,2,FALSE)","v":{"$error":"#N/A"}},101,{"$f":"VLOOKUP(K236,'EXPENSE DATABASE'!$B$6:$C$35,2,FALSE)","v":{"$error":"#N/A"}},31,{"$f":"VLOOKUP(L236,'EXPENSE DATABASE'!$B$173:$C$176,2,FALSE)","v":{"$error":"#N/A"}},100,0,0,{"$f":"IF(L236=T('EXPENSE DATABASE'!$E$173),O236,0)","v":0},{"$f":"IF(L236=T('EXPENSE DATABASE'!$E$174),O236,0)","v":0},{"$f":"IF(L236=T('EXPENSE DATABASE'!$E$175),O236,0)","v":0},0,223]
[0,0,{"$nulls":12},{"v":0,"d":"$0.00"},{"v":0,"d":"$0.00"},{"v":0,"d":"$0.00"},0,{"$f":"IF(OR(K237='EXPENSE DATABASE'!$V$187,K237='EXPENSE DATABASE'!$V$188,K237='EXPENSE DATABASE'!$V$189,K237='EXPENSE DATABASE'!$V$190,K237='EXPENSE DATABASE'!$V$191,K237='EXPENSE DATABASE'!$V$192,K237='EXPENSE DATABASE'!$V$193,K237='EXPENSE DATABASE'!$V$194,K237='EXPENSE DATABASE'!$X$187,K237='EXPENSE DATABASE'!$X$188,K237='EXPENSE DATABASE'!$X$189,K237='EXPENSE DATABASE'!$X$190,K237='EXPENSE DATABASE'!$X$191,K237='EXPENSE DATABASE'!$X$192,K237='EXPENSE DATABASE'!$X$193,K237='EXPENSE DATABASE'!$X$194,K237='EXPENSE DATABASE'!$Z$187,K237='EXPENSE DATABASE'!$Z$188,K237='EXPENSE DATABASE'!$Z$189,K237='EXPENSE DATABASE'!$Z$190,K237='EXPENSE DATABASE'!$Z$191,K237='EXPENSE DATABASE'!$Z$192,K237='EXPENSE DATABASE'!$Z$193,K237='EXPENSE DATABASE'!$Z$194),O237,\"\")","v":""},{"$f":"IF(OR(K237='EXPENSE DATABASE'!$T$189,K237='EXPENSE DATABASE'!$T$190,K237='EXPENSE DATABASE'!$T$191),O237,\"\")","v":""},{"$f":"VLOOKUP(I237,'EXPENSE DATABASE'!$B$41:$C$65,2,FALSE)","v":{"$error":"#N/A"}},100,{"$f":"VLOOKUP(J237,'EXPENSE DATABASE'!$B$69:$C$168,2,FALSE)","v":{"$error":"#N/A"}},101,{"$f":"VLOOKUP(K237,'EXPENSE DATABASE'!$B$6:$C$35,2,FALSE)","v":{"$error":"#N/A"}},31,{"$f":"VLOOKUP(L237,'EXPENSE DATABASE'!$B$173:$C$176,2,FALSE)","v":{"$error":"#N/A"}},100,0,0,{"$f":"IF(L237=T('EXPENSE DATABASE'!$E$173),O237,0)","v":0},{"$f":"IF(L237=T('EXPENSE DATABASE'!$E$174),O237,0)","v":0},{"$f":"IF(L237=T('EXPENSE DATABASE'!$E$175),O237,0)","v":0},0,224]
[0,0,{"$nulls":12},{"v":0,"d":"$0.00"},{"v":0,"d":"$0.00"},{"v":0,"d":"$0.00"},0,{"$f":"IF(OR(K238='EXPENSE DATABASE'!$V$187,K238='EXPENSE DATABASE'!$V$188,K238='EXPENSE DATABASE'!$V$189,K238='EXPENSE DATABASE'!$V$190,K238='EXPENSE DATABASE'!$V$191,K238='EXPENSE DATABASE'!$V$192,K238='EXPENSE DATABASE'!$V$193,K238='EXPENSE DATABASE'!$V$194,K238='EXPENSE DATABASE'!$X$187,K238='EXPENSE DATABASE'!$X$188,K238='EXPENSE DATABASE'!$X$189,K238='EXPENSE DATABASE'!$X$190,K238='EXPENSE DATABASE'!$X$191,K238='EXPENSE DATABASE'!$X$192,K238='EXPENSE DATABASE'!$X$193,K238='EXPENSE DATABASE'!$X$194,K238='EXPENSE DATABASE'!$Z$187,K238='EXPENSE DATABASE'!$Z$188,K238='EXPENSE DATABASE'!$Z$189,K238='EXPENSE DATABASE'!$Z$190,K238='EXPENSE DATABASE'!$Z$191,K238='EXPENSE DATABASE'!$Z$192,K238='EXPENSE DATABASE'!$Z$193,K238='EXPENSE DATABASE'!$Z$194),O238,\"\")","v":""},{"$f":"IF(OR(K238='EXPENSE DATABASE'!$T$189,K238='EXPENSE DATABASE'!$T$190,K238='EXPENSE DATABASE'!$T$191),O238,\"\")","v":""},{"$f":"VLOOKUP(I238,'EXPENSE DATABASE'!$B$41:$C$65,2,FALSE)","v":{"$error":"#N/A"}},100,{"$f":"VLOOKUP(J238,'EXPENSE DATABASE'!$B$69:$C$168,2,FALSE)","v":{"$error":"#N/A"}},101,{"$f":"VLOOKUP(K238,'EXPENSE DATABASE'!$B$6:$C$35,2,FALSE)","v":{"$error":"#N/A"}},31,{"$f":"VLOOKUP(L238,'EXPENSE DATABASE'!$B$173:$C$176,2,FALSE)","v":{"$error":"#N/A"}},100,0,0,{"$f":"IF(L238=T('EXPENSE DATABASE'!$E$173),O238,0)","v":0},{"$f":"IF(L238=T('EXPENSE DATABASE'!$E$174),O238,0)","v":0},{"$f":"IF(L238=T('EXPENSE DATABASE'!$E$175),O238,0)","v":0},0,225]
[0,0,{"$nulls":12},{"v":0,"d":"$0.00"},{"v":0,"d":"$0.00"},{"v":0,"d":"$0.00"},0,{"$f":"IF(OR(K239='EXPENSE DATABASE'!$V$187,K239='EXPENSE DATABASE'!$V$188,K239='EXPENSE DATABASE'!$V$189,K239='EXPENSE DATABASE'!$V$190,K239='EXPENSE DATABASE'!$V$191,K239='EXPENSE DATABASE'!$V$192,K239='EXPENSE DATABASE'!$V$193,K239='EXPENSE DATABASE'!$V$194,K239='EXPENSE DATABASE'!$X$187,K239='EXPENSE DATABASE'!$X$188,K239='EXPENSE DATABASE'!$X$189,K239='EXPENSE DATABASE'!$X$190,K239='EXPENSE DATABASE'!$X$191,K239='EXPENSE DATABASE'!$X$192,K239='EXPENSE DATABASE'!$X$193,K239='EXPENSE DATABASE'!$X$194,K239='EXPENSE DATABASE'!$Z$187,K239='EXPENSE DATABASE'!$Z$188,K239='EXPENSE DATABASE'!$Z$189,K239='EXPENSE DATABASE'!$Z$190,K239='EXPENSE DATABASE'!$Z$191,K239='EXPENSE DATABASE'!$Z$192,K239='EXPENSE DATABASE'!$Z$193,K239='EXPENSE DATABASE'!$Z$194),O239,\"\")","v":""},{"$f":"IF(OR(K239='EXPENSE DATABASE'!$T$189,K239='EXPENSE DATABASE'!$T$190,K239='EXPENSE DATABASE'!$T$191),O239,\"\")","v":""},{"$f":"VLOOKUP(I239,'EXPENSE DATABASE'!$B$41:$C$65,2,FALSE)","v":{"$error":"#N/A"}},100,{"$f":"VLOOKUP(J239,'EXPENSE DATABASE'!$B$69:$C$168,2,FALSE)","v":{"$error":"#N/A"}},101,{"$f":"VLOOKUP(K239,'EXPENSE DATABASE'!$B$6:$C$35,2,FALSE)","v":{"$error":"#N/A"}},31,{"$f":"VLOOKUP(L239,'EXPENSE DATABASE'!$B$173:$C$176,2,FALSE)","v":{"$error":"#N/A"}},100,0,0,{"$f":"IF(L239=T('EXPENSE DATABASE'!$E$173),O239,0)","v":0},{"$f":"IF(L239=T('EXPENSE DATABASE'!$E$174),O239,0)","v":0},{"$f":"IF(L239=T('EXPENSE DATABASE'!$E$175),O239,0)","v":0},0,226]
[0,0,{"$nulls":12},{"v":0,"d":"$0.00"},{"v":0,"d":"$0.00"},{"v":0,"d":"$0.00"},0,{"$f":"IF(OR(K240='EXPENSE DATABASE'!$V$187,K240='EXPENSE DATABASE'!$V$188,K240='EXPENSE DATABASE'!$V$189,K240='EXPENSE DATABASE'!$V$190,K240='EXPENSE DATABASE'!$V$191,K240='EXPENSE DATABASE'!$V$192,K240='EXPENSE DATABASE'!$V$193,K240='EXPENSE DATABASE'!$V$194,K240='EXPENSE DATABASE'!$X$187,K240='EXPENSE DATABASE'!$X$188,K240='EXPENSE DATABASE'!$X$189,K240='EXPENSE DATABASE'!$X$190,K240='EXPENSE DATABASE'!$X$191,K240='EXPENSE DATABASE'!$X$192,K240='EXPENSE DATABASE'!$X$193,K240='EXPENSE DATABASE'!$X$194,K240='EXPENSE DATABASE'!$Z$187,K240='EXPENSE DATABASE'!$Z$188,K240='EXPENSE DATABASE'!$Z$189,K240='EXPENSE DATABASE'!$Z$190,K240='EXPENSE DATABASE'!$Z$191,K240='EXPENSE DATABASE'!$Z$192,K240='EXPENSE DATABASE'!$Z$193,K240='EXPENSE DATABASE'!$Z$194),O240,\"\")","v":""},{"$f":"IF(OR(K240='EXPENSE DATABASE'!$T$189,K240='EXPENSE DATABASE'!$T$190,K240='EXPENSE DATABASE'!$T$191),O240,\"\")","v":""},{"$f":"VLOOKUP(I240,'EXPENSE DATABASE'!$B$41:$C$65,2,FALSE)","v":{"$error":"#N/A"}},100,{"$f":"VLOOKUP(J240,'EXPENSE DATABASE'!$B$69:$C$168,2,FALSE)","v":{"$error":"#N/A"}},101,{"$f":"VLOOKUP(K240,'EXPENSE DATABASE'!$B$6:$C$35,2,FALSE)","v":{"$error":"#N/A"}},31,{"$f":"VLOOKUP(L240,'EXPENSE DATABASE'!$B$173:$C$176,2,FALSE)","v":{"$error":"#N/A"}},100,0,0,{"$f":"IF(L240=T('EXPENSE DATABASE'!$E$173),O240,0)","v":0},{"$f":"IF(L240=T('EXPENSE DATABASE'!$E$174),O240,0)","v":0},{"$f":"IF(L240=T('EXPENSE DATABASE'!$E$175),O240,0)","v":0},0,227]
[0,0,{"$nulls":12},{"v":0,"d":"$0.00"},{"v":0,"d":"$0.00"},{"v":0,"d":"$0.00"},0,{"$f":"IF(OR(K241='EXPENSE DATABASE'!$V$187,K241='EXPENSE DATABASE'!$V$188,K241='EXPENSE DATABASE'!$V$189,K241='EXPENSE DATABASE'!$V$190,K241='EXPENSE DATABASE'!$V$191,K241='EXPENSE DATABASE'!$V$192,K241='EXPENSE DATABASE'!$V$193,K241='EXPENSE DATABASE'!$V$194,K241='EXPENSE DATABASE'!$X$187,K241='EXPENSE DATABASE'!$X$188,K241='EXPENSE DATABASE'!$X$189,K241='EXPENSE DATABASE'!$X$190,K241='EXPENSE DATABASE'!$X$191,K241='EXPENSE DATABASE'!$X$192,K241='EXPENSE DATABASE'!$X$193,K241='EXPENSE DATABASE'!$X$194,K241='EXPENSE DATABASE'!$Z$187,K241='EXPENSE DATABASE'!$Z$188,K241='EXPENSE DATABASE'!$Z$189,K241='EXPENSE DATABASE'!$Z$190,K241='EXPENSE DATABASE'!$Z$191,K241='EXPENSE DATABASE'!$Z$192,K241='EXPENSE DATABASE'!$Z$193,K241='EXPENSE DATABASE'!$Z$194),O241,\"\")","v":""},{"$f":"IF(OR(K241='EXPENSE DATABASE'!$T$189,K241='EXPENSE DATABASE'!$T$190,K241='EXPENSE DATABASE'!$T$191),O241,\"\")","v":""},{"$f":"VLOOKUP(I241,'EXPENSE DATABASE'!$B$41:$C$65,2,FALSE)","v":{"$error":"#N/A"}},100,{"$f":"VLOOKUP(J241,'EXPENSE DATABASE'!$B$69:$C$168,2,FALSE)","v":{"$error":"#N/A"}},101,{"$f":"VLOOKUP(K241,'EXPENSE DATABASE'!$B$6:$C$35,2,FALSE)","v":{"$error":"#N/A"}},31,{"$f":"VLOOKUP(L241,'EXPENSE DATABASE'!$B$173:$C$176,2,FALSE)","v":{"$error":"#N/A"}},100,0,0,{"$f":"IF(L241=T('EXPENSE DATABASE'!$E$173),O241,0)","v":0},{"$f":"IF(L241=T('EXPENSE DATABASE'!$E$174),O241,0)","v":0},{"$f":"IF(L241=T('EXPENSE DATABASE'!$E$175),O241,0)","v":0},0,228]
[0,0,{"$nulls":12},{"v":0,"d":"$0.00"},{"v":0,"d":"$0.00"},{"v":0,"d":"$0.00"},0,{"$f":"IF(OR(K242='EXPENSE DATABASE'!$V$187,K242='EXPENSE DATABASE'!$V$188,K242='EXPENSE DATABASE'!$V$189,K242='EXPENSE DATABASE'!$V$190,K242='EXPENSE DATABASE'!$V$191,K242='EXPENSE DATABASE'!$V$192,K242='EXPENSE DATABASE'!$V$193,K242='EXPENSE DATABASE'!$V$194,K242='EXPENSE DATABASE'!$X$187,K242='EXPENSE DATABASE'!$X$188,K242='EXPENSE DATABASE'!$X$189,K242='EXPENSE DATABASE'!$X$190,K242='EXPENSE DATABASE'!$X$191,K242='EXPENSE DATABASE'!$X$192,K242='EXPENSE DATABASE'!$X$193,K242='EXPENSE DATABASE'!$X$194,K242='EXPENSE DATABASE'!$Z$187,K242='EXPENSE DATABASE'!$Z$188,K242='EXPENSE DATABASE'!$Z$189,K242='EXPENSE DATABASE'!$Z$190,K242='EXPENSE DATABASE'!$Z$191,K242='EXPENSE DATABASE'!$Z$192,K242='EXPENSE DATABASE'!$Z$193,K242='EXPENSE DATABASE'!$Z$194),O242,\"\")","v":""},{"$f":"IF(OR(K242='EXPENSE DATABASE'!$T$189,K242='EXPENSE DATABASE'!$T$190,K242='EXPENSE DATABASE'!$T$191),O242,\"\")","v":""},{"$f":"VLOOKUP(I242,'EXPENSE DATABASE'!$B$41:$C$65,2,FALSE)","v":{"$error":"#N/A"}},100,{"$f":"VLOOKUP(J242,'EXPENSE DATABASE'!$B$69:$C$168,2,FALSE)","v":{"$error":"#N/A"}},101,{"$f":"VLOOKUP(K242,'EXPENSE DATABASE'!$B$6:$C$35,2,FALSE)","v":{"$error":"#N/A"}},31,{"$f":"VLOOKUP(L242,'EXPENSE DATABASE'!$B$173:$C$176,2,FALSE)","v":{"$error":"#N/A"}},100,0,0,{"$f":"IF(L242=T('EXPENSE DATABASE'!$E$173),O242,0)","v":0},{"$f":"IF(L242=T('EXPENSE DATABASE'!$E$174),O242,0)","v":0},{"$f":"IF(L242=T('EXPENSE DATABASE'!$E$175),O242,0)","v":0},0,229]
[0,0,{"$nulls":12},{"v":0,"d":"$0.00"},{"v":0,"d":"$0.00"},{"v":0,"d":"$0.00"},0,{"$f":"IF(OR(K243='EXPENSE DATABASE'!$V$187,K243='EXPENSE DATABASE'!$V$188,K243='EXPENSE DATABASE'!$V$189,K243='EXPENSE DATABASE'!$V$190,K243='EXPENSE DATABASE'!$V$191,K243='EXPENSE DATABASE'!$V$192,K243='EXPENSE DATABASE'!$V$193,K243='EXPENSE DATABASE'!$V$194,K243='EXPENSE DATABASE'!$X$187,K243='EXPENSE DATABASE'!$X$188,K243='EXPENSE DATABASE'!$X$189,K243='EXPENSE DATABASE'!$X$190,K243='EXPENSE DATABASE'!$X$191,K243='EXPENSE DATABASE'!$X$192,K243='EXPENSE DATABASE'!$X$193,K243='EXPENSE DATABASE'!$X$194,K243='EXPENSE DATABASE'!$Z$187,K243='EXPENSE DATABASE'!$Z$188,K243='EXPENSE DATABASE'!$Z$189,K243='EXPENSE DATABASE'!$Z$190,K243='EXPENSE DATABASE'!$Z$191,K243='EXPENSE DATABASE'!$Z$192,K243='EXPENSE DATABASE'!$Z$193,K243='EXPENSE DATABASE'!$Z$194),O243,\"\")","v":""},{"$f":"IF(OR(K243='EXPENSE DATABASE'!$T$189,K243='EXPENSE DATABASE'!$T$190,K243='EXPENSE DATABASE'!$T$191),O243,\"\")","v":""},{"$f":"VLOOKUP(I243,'EXPENSE DATABASE'!$B$41:$C$65,2,FALSE)","v":{"$error":"#N/A"}},100,{"$f":"VLOOKUP(J243,'EXPENSE DATABASE'!$B$69:$C$168,2,FALSE)","v":{"$error":"#N/A"}},101,{"$f":"VLOOKUP(K243,'EXPENSE DATABASE'!$B$6:$C$35,2,FALSE)","v":{"$error":"#N/A"}},31,{"$f":"VLOOKUP(L243,'EXPENSE DATABASE'!$B$173:$C$176,2,FALSE)","v":{"$error":"#N/A"}},100,0,0,{"$f":"IF(L243=T('EXPENSE DATABASE'!$E$173),O243,0)","v":0},{"$f":"IF(L243=T('EXPENSE DATABASE'!$E$174),O243,0)","v":0},{"$f":"IF(L243=T('EXPENSE DATABASE'!$E$175),O243,0)","v":0},0,230]
[0,0,{"$nulls":12},{"v":0,"d":"$0.00"},{"v":0,"d":"$0.00"},{"v":0,"d":"$0.00"},0,{"$f":"IF(OR(K244='EXPENSE DATABASE'!$V$187,K244='EXPENSE DATABASE'!$V$188,K244='EXPENSE DATABASE'!$V$189,K244='EXPENSE DATABASE'!$V$190,K244='EXPENSE DATABASE'!$V$191,K244='EXPENSE DATABASE'!$V$192,K244='EXPENSE DATABASE'!$V$193,K244='EXPENSE DATABASE'!$V$194,K244='EXPENSE DATABASE'!$X$187,K244='EXPENSE DATABASE'!$X$188,K244='EXPENSE DATABASE'!$X$189,K244='EXPENSE DATABASE'!$X$190,K244='EXPENSE DATABASE'!$X$191,K244='EXPENSE DATABASE'!$X$192,K244='EXPENSE DATABASE'!$X$193,K244='EXPENSE DATABASE'!$X$194,K244='EXPENSE DATABASE'!$Z$187,K244='EXPENSE DATABASE'!$Z$188,K244='EXPENSE DATABASE'!$Z$189,K244='EXPENSE DATABASE'!$Z$190,K244='EXPENSE DATABASE'!$Z$191,K244='EXPENSE DATABASE'!$Z$192,K244='EXPENSE DATABASE'!$Z$193,K244='EXPENSE DATABASE'!$Z$194),O244,\"\")","v":""},{"$f":"IF(OR(K244='EXPENSE DATABASE'!$T$189,K244='EXPENSE DATABASE'!$T$190,K244='EXPENSE DATABASE'!$T$191),O244,\"\")","v":""},{"$f":"VLOOKUP(I244,'EXPENSE DATABASE'!$B$41:$C$65,2,FALSE)","v":{"$error":"#N/A"}},100,{"$f":"VLOOKUP(J244,'EXPENSE DATABASE'!$B$69:$C$168,2,FALSE)","v":{"$error":"#N/A"}},101,{"$f":"VLOOKUP(K244,'EXPENSE DATABASE'!$B$6:$C$35,2,FALSE)","v":{"$error":"#N/A"}},31,{"$f":"VLOOKUP(L244,'EXPENSE DATABASE'!$B$173:$C$176,2,FALSE)","v":{"$error":"#N/A"}},100,0,0,{"$f":"IF(L244=T('EXPENSE DATABASE'!$E$173),O244,0)","v":0},{"$f":"IF(L244=T('EXPENSE DATABASE'!$E$174),O244,0)","v":0},{"$f":"IF(L244=T('EXPENSE DATABASE'!$E$175),O244,0)","v":0},0,231]
[0,0,{"$nulls":12},{"v":0,"d":"$0.00"},{"v":0,"d":"$0.00"},{"v":0,"d":"$0.00"},0,{"$f":"IF(OR(K245='EXPENSE DATABASE'!$V$187,K245='EXPENSE DATABASE'!$V$188,K245='EXPENSE DATABASE'!$V$189,K245='EXPENSE DATABASE'!$V$190,K245='EXPENSE DATABASE'!$V$191,K245='EXPENSE DATABASE'!$V$192,K245='EXPENSE DATABASE'!$V$193,K245='EXPENSE DATABASE'!$V$194,K245='EXPENSE DATABASE'!$X$187,K245='EXPENSE DATABASE'!$X$188,K245='EXPENSE DATABASE'!$X$189,K245='EXPENSE DATABASE'!$X$190,K245='EXPENSE DATABASE'!$X$191,K245='EXPENSE DATABASE'!$X$192,K245='EXPENSE DATABASE'!$X$193,K245='EXPENSE DATABASE'!$X$194,K245='EXPENSE DATABASE'!$Z$187,K245='EXPENSE DATABASE'!$Z$188,K245='EXPENSE DATABASE'!$Z$189,K245='EXPENSE DATABASE'!$Z$190,K245='EXPENSE DATABASE'!$Z$191,K245='EXPENSE DATABASE'!$Z$192,K245='EXPENSE DATABASE'!$Z$193,K245='EXPENSE DATABASE'!$Z$194),O245,\"\")","v":""},{"$f":"IF(OR(K245='EXPENSE DATABASE'!$T$189,K245='EXPENSE DATABASE'!$T$190,K245='EXPENSE DATABASE'!$T$191),O245,\"\")","v":""},{"$f":"VLOOKUP(I245,'EXPENSE DATABASE'!$B$41:$C$65,2,FALSE)","v":{"$error":"#N/A"}},100,{"$f":"VLOOKUP(J245,'EXPENSE DATABASE'!$B$69:$C$168,2,FALSE)","v":{"$error":"#N/A"}},101,{"$f":"VLOOKUP(K245,'EXPENSE DATABASE'!$B$6:$C$35,2,FALSE)","v":{"$error":"#N/A"}},31,{"$f":"VLOOKUP(L245,'EXPENSE DATABASE'!$B$173:$C$176,2,FALSE)","v":{"$error":"#N/A"}},100,0,0,{"$f":"IF(L245=T('EXPENSE DATABASE'!$E$173),O245,0)","v":0},{"$f":"IF(L245=T('EXPENSE DATABASE'!$E$174),O245,0)","v":0},{"$f":"IF(L245=T('EXPENSE DATABASE'!$E$175),O245,0)","v":0},0,232]
[0,0,{"$nulls":12},{"v":0,"d":"$0.00"},{"v":0,"d":"$0.00"},{"v":0,"d":"$0.00"},0,{"$f":"IF(OR(K246='EXPENSE DATABASE'!$V$187,K246='EXPENSE DATABASE'!$V$188,K246='EXPENSE DATABASE'!$V$189,K246='EXPENSE DATABASE'!$V$190,K246='EXPENSE DATABASE'!$V$191,K246='EXPENSE DATABASE'!$V$192,K246='EXPENSE DATABASE'!$V$193,K246='EXPENSE DATABASE'!$V$194,K246='EXPENSE DATABASE'!$X$187,K246='EXPENSE DATABASE'!$X$188,K246='EXPENSE DATABASE'!$X$189,K246='EXPENSE DATABASE'!$X$190,K246='EXPENSE DATABASE'!$X$191,K246='EXPENSE DATABASE'!$X$192,K246='EXPENSE DATABASE'!$X$193,K246='EXPENSE DATABASE'!$X$194,K246='EXPENSE DATABASE'!$Z$187,K246='EXPENSE DATABASE'!$Z$188,K246='EXPENSE DATABASE'!$Z$189,K246='EXPENSE DATABASE'!$Z$190,K246='EXPENSE DATABASE'!$Z$191,K246='EXPENSE DATABASE'!$Z$192,K246='EXPENSE DATABASE'!$Z$193,K246='EXPENSE DATABASE'!$Z$194),O246,\"\")","v":""},{"$f":"IF(OR(K246='EXPENSE DATABASE'!$T$189,K246='EXPENSE DATABASE'!$T$190,K246='EXPENSE DATABASE'!$T$191),O246,\"\")","v":""},{"$f":"VLOOKUP(I246,'EXPENSE DATABASE'!$B$41:$C$65,2,FALSE)","v":{"$error":"#N/A"}},100,{"$f":"VLOOKUP(J246,'EXPENSE DATABASE'!$B$69:$C$168,2,FALSE)","v":{"$error":"#N/A"}},101,{"$f":"VLOOKUP(K246,'EXPENSE DATABASE'!$B$6:$C$35,2,FALSE)","v":{"$error":"#N/A"}},31,{"$f":"VLOOKUP(L246,'EXPENSE DATABASE'!$B$173:$C$176,2,FALSE)","v":{"$error":"#N/A"}},100,0,0,{"$f":"IF(L246=T('EXPENSE DATABASE'!$E$173),O246,0)","v":0},{"$f":"IF(L246=T('EXPENSE DATABASE'!$E$174),O246,0)","v":0},{"$f":"IF(L246=T('EXPENSE DATABASE'!$E$175),O246,0)","v":0},0,233]
[0,0,{"$nulls":12},{"v":0,"d":"$0.00"},{"v":0,"d":"$0.00"},{"v":0,"d":"$0.00"},0,{"$f":"IF(OR(K247='EXPENSE DATABASE'!$V$187,K247='EXPENSE DATABASE'!$V$188,K247='EXPENSE DATABASE'!$V$189,K247='EXPENSE DATABASE'!$V$190,K247='EXPENSE DATABASE'!$V$191,K247='EXPENSE DATABASE'!$V$192,K247='EXPENSE DATABASE'!$V$193,K247='EXPENSE DATABASE'!$V$194,K247='EXPENSE DATABASE'!$X$187,K247='EXPENSE DATABASE'!$X$188,K247='EXPENSE DATABASE'!$X$189,K247='EXPENSE DATABASE'!$X$190,K247='EXPENSE DATABASE'!$X$191,K247='EXPENSE DATABASE'!$X$192,K247='EXPENSE DATABASE'!$X$193,K247='EXPENSE DATABASE'!$X$194,K247='EXPENSE DATABASE'!$Z$187,K247='EXPENSE DATABASE'!$Z$188,K247='EXPENSE DATABASE'!$Z$189,K247='EXPENSE DATABASE'!$Z$190,K247='EXPENSE DATABASE'!$Z$191,K247='EXPENSE DATABASE'!$Z$192,K247='EXPENSE DATABASE'!$Z$193,K247='EXPENSE DATABASE'!$Z$194),O247,\"\")","v":""},{"$f":"IF(OR(K247='EXPENSE DATABASE'!$T$189,K247='EXPENSE DATABASE'!$T$190,K247='EXPENSE DATABASE'!$T$191),O247,\"\")","v":""},{"$f":"VLOOKUP(I247,'EXPENSE DATABASE'!$B$41:$C$65,2,FALSE)","v":{"$error":"#N/A"}},100,{"$f":"VLOOKUP(J247,'EXPENSE DATABASE'!$B$69:$C$168,2,FALSE)","v":{"$error":"#N/A"}},101,{"$f":"VLOOKUP(K247,'EXPENSE DATABASE'!$B$6:$C$35,2,FALSE)","v":{"$error":"#N/A"}},31,{"$f":"VLOOKUP(L247,'EXPENSE DATABASE'!$B$173:$C$176,2,FALSE)","v":{"$error":"#N/A"}},100,0,0,{"$f":"IF(L247=T('EXPENSE DATABASE'!$E$173),O247,0)","v":0},{"$f":"IF(L247=T('EXPENSE DATABASE'!$E$174),O247,0)","v":0},{"$f":"IF(L247=T('EXPENSE DATABASE'!$E$175),O247,0)","v":0},0,234]
[0,0,{"$nulls":12},{"v":0,"d":"$0.00"},{"v":0,"d":"$0.00"},{"v":0,"d":"$0.00"},0,{"$f":"IF(OR(K248='EXPENSE DATABASE'!$V$187,K248='EXPENSE DATABASE'!$V$188,K248='EXPENSE DATABASE'!$V$189,K248='EXPENSE DATABASE'!$V$190,K248='EXPENSE DATABASE'!$V$191,K248='EXPENSE DATABASE'!$V$192,K248='EXPENSE DATABASE'!$V$193,K248='EXPENSE DATABASE'!$V$194,K248='EXPENSE DATABASE'!$X$187,K248='EXPENSE DATABASE'!$X$188,K248='EXPENSE DATABASE'!$X$189,K248='EXPENSE DATABASE'!$X$190,K248='EXPENSE DATABASE'!$X$191,K248='EXPENSE DATABASE'!$X$192,K248='EXPENSE DATABASE'!$X$193,K248='EXPENSE DATABASE'!$X$194,K248='EXPENSE DATABASE'!$Z$187,K248='EXPENSE DATABASE'!$Z$188,K248='EXPENSE DATABASE'!$Z$189,K248='EXPENSE DATABASE'!$Z$190,K248='EXPENSE DATABASE'!$Z$191,K248='EXPENSE DATABASE'!$Z$192,K248='EXPENSE DATABASE'!$Z$193,K248='EXPENSE DATABASE'!$Z$194),O248,\"\")","v":""},{"$f":"IF(OR(K248='EXPENSE DATABASE'!$T$189,K248='EXPENSE DATABASE'!$T$190,K248='EXPENSE DATABASE'!$T$191),O248,\"\")","v":""},{"$f":"VLOOKUP(I248,'EXPENSE DATABASE'!$B$41:$C$65,2,FALSE)","v":{"$error":"#N/A"}},100,{"$f":"VLOOKUP(J248,'EXPENSE DATABASE'!$B$69:$C$168,2,FALSE)","v":{"$error":"#N/A"}},101,{"$f":"VLOOKUP(K248,'EXPENSE DATABASE'!$B$6:$C$35,2,FALSE)","v":{"$error":"#N/A"}},31,{"$f":"VLOOKUP(L248,'EXPENSE DATABASE'!$B$173:$C$176,2,FALSE)","v":{"$error":"#N/A"}},100,0,0,{"$f":"IF(L248=T('EXPENSE DATABASE'!$E$173),O248,0)","v":0},{"$f":"IF(L248=T('EXPENSE DATABASE'!$E$174),O248,0)","v":0},{"$f":"IF(L248=T('EXPENSE DATABASE'!$E$175),O248,0)","v":0},0,235]
[0,0,{"$nulls":12},{"v":0,"d":"$0.00"},{"v":0,"d":"$0.00"},{"v":0,"d":"$0.00"},0,{"$f":"IF(OR(K249='EXPENSE DATABASE'!$V$187,K249='EXPENSE DATABASE'!$V$188,K249='EXPENSE DATABASE'!$V$189,K249='EXPENSE DATABASE'!$V$190,K249='EXPENSE DATABASE'!$V$191,K249='EXPENSE DATABASE'!$V$192,K249='EXPENSE DATABASE'!$V$193,K249='EXPENSE DATABASE'!$V$194,K249='EXPENSE DATABASE'!$X$187,K249='EXPENSE DATABASE'!$X$188,K249='EXPENSE DATABASE'!$X$189,K249='EXPENSE DATABASE'!$X$190,K249='EXPENSE DATABASE'!$X$191,K249='EXPENSE DATABASE'!$X$192,K249='EXPENSE DATABASE'!$X$193,K249='EXPENSE DATABASE'!$X$194,K249='EXPENSE DATABASE'!$Z$187,K249='EXPENSE DATABASE'!$Z$188,K249='EXPENSE DATABASE'!$Z$189,K249='EXPENSE DATABASE'!$Z$190,K249='EXPENSE DATABASE'!$Z$191,K249='EXPENSE DATABASE'!$Z$192,K249='EXPENSE DATABASE'!$Z$193,K249='EXPENSE DATABASE'!$Z$194),O249,\"\")","v":""},{"$f":"IF(OR(K249='EXPENSE DATABASE'!$T$189,K249='EXPENSE DATABASE'!$T$190,K249='EXPENSE DATABASE'!$T$191),O249,\"\")","v":""},{"$f":"VLOOKUP(I249,'EXPENSE DATABASE'!$B$41:$C$65,2,FALSE)","v":{"$error":"#N/A"}},100,{"$f":"VLOOKUP(J249,'EXPENSE DATABASE'!$B$69:$C$168,2,FALSE)","v":{"$error":"#N/A"}},101,{"$f":"VLOOKUP(K249,'EXPENSE DATABASE'!$B$6:$C$35,2,FALSE)","v":{"$error":"#N/A"}},31,{"$f":"VLOOKUP(L249,'EXPENSE DATABASE'!$B$173:$C$176,2,FALSE)","v":{"$error":"#N/A"}},100,0,0,{"$f":"IF(L249=T('EXPENSE DATABASE'!$E$173),O249,0)","v":0},{"$f":"IF(L249=T('EXPENSE DATABASE'!$E$174),O249,0)","v":0},{"$f":"IF(L249=T('EXPENSE DATABASE'!$E$175),O249,0)","v":0},0,236]
[0,0,{"$nulls":12},{"v":0,"d":"$0.00"},{"v":0,"d":"$0.00"},{"v":0,"d":"$0.00"},0,{"$f":"IF(OR(K250='EXPENSE DATABASE'!$V$187,K250='EXPENSE DATABASE'!$V$188,K250='EXPENSE DATABASE'!$V$189,K250='EXPENSE DATABASE'!$V$190,K250='EXPENSE DATABASE'!$V$191,K250='EXPENSE DATABASE'!$V$192,K250='EXPENSE DATABASE'!$V$193,K250='EXPENSE DATABASE'!$V$194,K250='EXPENSE DATABASE'!$X$187,K250='EXPENSE DATABASE'!$X$188,K250='EXPENSE DATABASE'!$X$189,K250='EXPENSE DATABASE'!$X$190,K250='EXPENSE DATABASE'!$X$191,K250='EXPENSE DATABASE'!$X$192,K250='EXPENSE DATABASE'!$X$193,K250='EXPENSE DATABASE'!$X$194,K250='EXPENSE DATABASE'!$Z$187,K250='EXPENSE DATABASE'!$Z$188,K250='EXPENSE DATABASE'!$Z$189,K250='EXPENSE DATABASE'!$Z$190,K250='EXPENSE DATABASE'!$Z$191,K250='EXPENSE DATABASE'!$Z$192,K250='EXPENSE DATABASE'!$Z$193,K250='EXPENSE DATABASE'!$Z$194),O250,\"\")","v":""},{"$f":"IF(OR(K250='EXPENSE DATABASE'!$T$189,K250='EXPENSE DATABASE'!$T$190,K250='EXPENSE DATABASE'!$T$191),O250,\"\")","v":""},{"$f":"VLOOKUP(I250,'EXPENSE DATABASE'!$B$41:$C$65,2,FALSE)","v":{"$error":"#N/A"}},100,{"$f":"VLOOKUP(J250,'EXPENSE DATABASE'!$B$69:$C$168,2,FALSE)","v":{"$error":"#N/A"}},101,{"$f":"VLOOKUP(K250,'EXPENSE DATABASE'!$B$6:$C$35,2,FALSE)","v":{"$error":"#N/A"}},31,{"$f":"VLOOKUP(L250,'EXPENSE DATABASE'!$B$173:$C$176,2,FALSE)","v":{"$error":"#N/A"}},100,0,0,{"$f":"IF(L250=T('EXPENSE DATABASE'!$E$173),O250,0)","v":0},{"$f":"IF(L250=T('EXPENSE DATABASE'!$E$174),O250,0)","v":0},{"$f":"IF(L250=T('EXPENSE DATABASE'!$E$175),O250,0)","v":0},0,237]
[0,0,{"$nulls":12},{"v":0,"d":"$0.00"},{"v":0,"d":"$0.00"},{"v":0,"d":"$0.00"},0,{"$f":"IF(OR(K251='EXPENSE DATABASE'!$V$187,K251='EXPENSE DATABASE'!$V$188,K251='EXPENSE DATABASE'!$V$189,K251='EXPENSE DATABASE'!$V$190,K251='EXPENSE DATABASE'!$V$191,K251='EXPENSE DATABASE'!$V$192,K251='EXPENSE DATABASE'!$V$193,K251='EXPENSE DATABASE'!$V$194,K251='EXPENSE DATABASE'!$X$187,K251='EXPENSE DATABASE'!$X$188,K251='EXPENSE DATABASE'!$X$189,K251='EXPENSE DATABASE'!$X$190,K251='EXPENSE DATABASE'!$X$191,K251='EXPENSE DATABASE'!$X$192,K251='EXPENSE DATABASE'!$X$193,K251='EXPENSE DATABASE'!$X$194,K251='EXPENSE DATABASE'!$Z$187,K251='EXPENSE DATABASE'!$Z$188,K251='EXPENSE DATABASE'!$Z$189,K251='EXPENSE DATABASE'!$Z$190,K251='EXPENSE DATABASE'!$Z$191,K251='EXPENSE DATABASE'!$Z$192,K251='EXPENSE DATABASE'!$Z$193,K251='EXPENSE DATABASE'!$Z$194),O251,\"\")","v":""},{"$f":"IF(OR(K251='EXPENSE DATABASE'!$T$189,K251='EXPENSE DATABASE'!$T$190,K251='EXPENSE DATABASE'!$T$191),O251,\"\")","v":""},{"$f":"VLOOKUP(I251,'EXPENSE DATABASE'!$B$41:$C$65,2,FALSE)","v":{"$error":"#N/A"}},100,{"$f":"VLOOKUP(J251,'EXPENSE DATABASE'!$B$69:$C$168,2,FALSE)","v":{"$error":"#N/A"}},101,{"$f":"VLOOKUP(K251,'EXPENSE DATABASE'!$B$6:$C$35,2,FALSE)","v":{"$error":"#N/A"}},31,{"$f":"VLOOKUP(L251,'EXPENSE DATABASE'!$B$173:$C$176,2,FALSE)","v":{"$error":"#N/A"}},100,0,0,{"$f":"IF(L251=T('EXPENSE DATABASE'!$E$173),O251,0)","v":0},{"$f":"IF(L251=T('EXPENSE DATABASE'!$E$174),O251,0)","v":0},{"$f":"IF(L251=T('EXPENSE DATABASE'!$E$175),O251,0)","v":0},0,238]
[0,0,{"$nulls":12},{"v":0,"d":"$0.00"},{"v":0,"d":"$0.00"},{"v":0,"d":"$0.00"},0,{"$f":"IF(OR(K252='EXPENSE DATABASE'!$V$187,K252='EXPENSE DATABASE'!$V$188,K252='EXPENSE DATABASE'!$V$189,K252='EXPENSE DATABASE'!$V$190,K252='EXPENSE DATABASE'!$V$191,K252='EXPENSE DATABASE'!$V$192,K252='EXPENSE DATABASE'!$V$193,K252='EXPENSE DATABASE'!$V$194,K252='EXPENSE DATABASE'!$X$187,K252='EXPENSE DATABASE'!$X$188,K252='EXPENSE DATABASE'!$X$189,K252='EXPENSE DATABASE'!$X$190,K252='EXPENSE DATABASE'!$X$191,K252='EXPENSE DATABASE'!$X$192,K252='EXPENSE DATABASE'!$X$193,K252='EXPENSE DATABASE'!$X$194,K252='EXPENSE DATABASE'!$Z$187,K252='EXPENSE DATABASE'!$Z$188,K252='EXPENSE DATABASE'!$Z$189,K252='EXPENSE DATABASE'!$Z$190,K252='EXPENSE DATABASE'!$Z$191,K252='EXPENSE DATABASE'!$Z$192,K252='EXPENSE DATABASE'!$Z$193,K252='EXPENSE DATABASE'!$Z$194),O252,\"\")","v":""},{"$f":"IF(OR(K252='EXPENSE DATABASE'!$T$189,K252='EXPENSE DATABASE'!$T$190,K252='EXPENSE DATABASE'!$T$191),O252,\"\")","v":""},{"$f":"VLOOKUP(I252,'EXPENSE DATABASE'!$B$41:$C$65,2,FALSE)","v":{"$error":"#N/A"}},100,{"$f":"VLOOKUP(J252,'EXPENSE DATABASE'!$B$69:$C$168,2,FALSE)","v":{"$error":"#N/A"}},101,{"$f":"VLOOKUP(K252,'EXPENSE DATABASE'!$B$6:$C$35,2,FALSE)","v":{"$error":"#N/A"}},31,{"$f":"VLOOKUP(L252,'EXPENSE DATABASE'!$B$173:$C$176,2,FALSE)","v":{"$error":"#N/A"}},100,0,0,{"$f":"IF(L252=T('EXPENSE DATABASE'!$E$173),O252,0)","v":0},{"$f":"IF(L252=T('EXPENSE DATABASE'!$E$174),O252,0)","v":0},{"$f":"IF(L252=T('EXPENSE DATABASE'!$E$175),O252,0)","v":0},0,239]
[0,0,{"$nulls":12},{"v":0,"d":"$0.00"},{"v":0,"d":"$0.00"},{"v":0,"d":"$0.00"},0,{"$f":"IF(OR(K253='EXPENSE DATABASE'!$V$187,K253='EXPENSE DATABASE'!$V$188,K253='EXPENSE DATABASE'!$V$189,K253='EXPENSE DATABASE'!$V$190,K253='EXPENSE DATABASE'!$V$191,K253='EXPENSE DATABASE'!$V$192,K253='EXPENSE DATABASE'!$V$193,K253='EXPENSE DATABASE'!$V$194,K253='EXPENSE DATABASE'!$X$187,K253='EXPENSE DATABASE'!$X$188,K253='EXPENSE DATABASE'!$X$189,K253='EXPENSE DATABASE'!$X$190,K253='EXPENSE DATABASE'!$X$191,K253='EXPENSE DATABASE'!$X$192,K253='EXPENSE DATABASE'!$X$193,K253='EXPENSE DATABASE'!$X$194,K253='EXPENSE DATABASE'!$Z$187,K253='EXPENSE DATABASE'!$Z$188,K253='EXPENSE DATABASE'!$Z$189,K253='EXPENSE DATABASE'!$Z$190,K253='EXPENSE DATABASE'!$Z$191,K253='EXPENSE DATABASE'!$Z$192,K253='EXPENSE DATABASE'!$Z$193,K253='EXPENSE DATABASE'!$Z$194),O253,\"\")","v":""},{"$f":"IF(OR(K253='EXPENSE DATABASE'!$T$189,K253='EXPENSE DATABASE'!$T$190,K253='EXPENSE DATABASE'!$T$191),O253,\"\")","v":""},{"$f":"VLOOKUP(I253,'EXPENSE DATABASE'!$B$41:$C$65,2,FALSE)","v":{"$error":"#N/A"}},100,{"$f":"VLOOKUP(J253,'EXPENSE DATABASE'!$B$69:$C$168,2,FALSE)","v":{"$error":"#N/A"}},101,{"$f":"VLOOKUP(K253,'EXPENSE DATABASE'!$B$6:$C$35,2,FALSE)","v":{"$error":"#N/A"}},31,{"$f":"VLOOKUP(L253,'EXPENSE DATABASE'!$B$173:$C$176,2,FALSE)","v":{"$error":"#N/A"}},100,0,0,{"$f":"IF(L253=T('EXPENSE DATABASE'!$E$173),O253,0)","v":0},{"$f":"IF(L253=T('EXPENSE DATABASE'!$E$174),O253,0)","v":0},{"$f":"IF(L253=T('EXPENSE DATABASE'!$E$175),O253,0)","v":0},0,240]
[0,0,{"$nulls":12},{"v":0,"d":"$0.00"},{"v":0,"d":"$0.00"},{"v":0,"d":"$0.00"},0,{"$f":"IF(OR(K254='EXPENSE DATABASE'!$V$187,K254='EXPENSE DATABASE'!$V$188,K254='EXPENSE DATABASE'!$V$189,K254='EXPENSE DATABASE'!$V$190,K254='EXPENSE DATABASE'!$V$191,K254='EXPENSE DATABASE'!$V$192,K254='EXPENSE DATABASE'!$V$193,K254='EXPENSE DATABASE'!$V$194,K254='EXPENSE DATABASE'!$X$187,K254='EXPENSE DATABASE'!$X$188,K254='EXPENSE DATABASE'!$X$189,K254='EXPENSE DATABASE'!$X$190,K254='EXPENSE DATABASE'!$X$191,K254='EXPENSE DATABASE'!$X$192,K254='EXPENSE DATABASE'!$X$193,K254='EXPENSE DATABASE'!$X$194,K254='EXPENSE DATABASE'!$Z$187,K254='EXPENSE DATABASE'!$Z$188,K254='EXPENSE DATABASE'!$Z$189,K254='EXPENSE DATABASE'!$Z$190,K254='EXPENSE DATABASE'!$Z$191,K254='EXPENSE DATABASE'!$Z$192,K254='EXPENSE DATABASE'!$Z$193,K254='EXPENSE DATABASE'!$Z$194),O254,\"\")","v":""},{"$f":"IF(OR(K254='EXPENSE DATABASE'!$T$189,K254='EXPENSE DATABASE'!$T$190,K254='EXPENSE DATABASE'!$T$191),O254,\"\")","v":""},{"$f":"VLOOKUP(I254,'EXPENSE DATABASE'!$B$41:$C$65,2,FALSE)","v":{"$error":"#N/A"}},100,{"$f":"VLOOKUP(J254,'EXPENSE DATABASE'!$B$69:$C$168,2,FALSE)","v":{"$error":"#N/A"}},101,{"$f":"VLOOKUP(K254,'EXPENSE DATABASE'!$B$6:$C$35,2,FALSE)","v":{"$error":"#N/A"}},31,{"$f":"VLOOKUP(L254,'EXPENSE DATABASE'!$B$173:$C$176,2,FALSE)","v":{"$error":"#N/A"}},100,0,0,{"$f":"IF(L254=T('EXPENSE DATABASE'!$E$173),O254,0)","v":0},{"$f":"IF(L254=T('EXPENSE DATABASE'!$E$174),O254,0)","v":0},{"$f":"IF(L254=T('EXPENSE DATABASE'!$E$175),O254,0)","v":0},0,241]
[0,0,{"$nulls":12},{"v":0,"d":"$0.00"},{"v":0,"d":"$0.00"},{"v":0,"d":"$0.00"},0,{"$f":"IF(OR(K255='EXPENSE DATABASE'!$V$187,K255='EXPENSE DATABASE'!$V$188,K255='EXPENSE DATABASE'!$V$189,K255='EXPENSE DATABASE'!$V$190,K255='EXPENSE DATABASE'!$V$191,K255='EXPENSE DATABASE'!$V$192,K255='EXPENSE DATABASE'!$V$193,K255='EXPENSE DATABASE'!$V$194,K255='EXPENSE DATABASE'!$X$187,K255='EXPENSE DATABASE'!$X$188,K255='EXPENSE DATABASE'!$X$189,K255='EXPENSE DATABASE'!$X$190,K255='EXPENSE DATABASE'!$X$191,K255='EXPENSE DATABASE'!$X$192,K255='EXPENSE DATABASE'!$X$193,K255='EXPENSE DATABASE'!$X$194,K255='EXPENSE DATABASE'!$Z$187,K255='EXPENSE DATABASE'!$Z$188,K255='EXPENSE DATABASE'!$Z$189,K255='EXPENSE DATABASE'!$Z$190,K255='EXPENSE DATABASE'!$Z$191,K255='EXPENSE DATABASE'!$Z$192,K255='EXPENSE DATABASE'!$Z$193,K255='EXPENSE DATABASE'!$Z$194),O255,\"\")","v":""},{"$f":"IF(OR(K255='EXPENSE DATABASE'!$T$189,K255='EXPENSE DATABASE'!$T$190,K255='EXPENSE DATABASE'!$T$191),O255,\"\")","v":""},{"$f":"VLOOKUP(I255,'EXPENSE DATABASE'!$B$41:$C$65,2,FALSE)","v":{"$error":"#N/A"}},100,{"$f":"VLOOKUP(J255,'EXPENSE DATABASE'!$B$69:$C$168,2,FALSE)","v":{"$error":"#N/A"}},101,{"$f":"VLOOKUP(K255,'EXPENSE DATABASE'!$B$6:$C$35,2,FALSE)","v":{"$error":"#N/A"}},31,{"$f":"VLOOKUP(L255,'EXPENSE DATABASE'!$B$173:$C$176,2,FALSE)","v":{"$error":"#N/A"}},100,0,0,{"$f":"IF(L255=T('EXPENSE DATABASE'!$E$173),O255,0)","v":0},{"$f":"IF(L255=T('EXPENSE DATABASE'!$E$174),O255,0)","v":0},{"$f":"IF(L255=T('EXPENSE DATABASE'!$E$175),O255,0)","v":0},0,242]
[0,0,{"$nulls":12},{"v":0,"d":"$0.00"},{"v":0,"d":"$0.00"},{"v":0,"d":"$0.00"},0,{"$f":"IF(OR(K256='EXPENSE DATABASE'!$V$187,K256='EXPENSE DATABASE'!$V$188,K256='EXPENSE DATABASE'!$V$189,K256='EXPENSE DATABASE'!$V$190,K256='EXPENSE DATABASE'!$V$191,K256='EXPENSE DATABASE'!$V$192,K256='EXPENSE DATABASE'!$V$193,K256='EXPENSE DATABASE'!$V$194,K256='EXPENSE DATABASE'!$X$187,K256='EXPENSE DATABASE'!$X$188,K256='EXPENSE DATABASE'!$X$189,K256='EXPENSE DATABASE'!$X$190,K256='EXPENSE DATABASE'!$X$191,K256='EXPENSE DATABASE'!$X$192,K256='EXPENSE DATABASE'!$X$193,K256='EXPENSE DATABASE'!$X$194,K256='EXPENSE DATABASE'!$Z$187,K256='EXPENSE DATABASE'!$Z$188,K256='EXPENSE DATABASE'!$Z$189,K256='EXPENSE DATABASE'!$Z$190,K256='EXPENSE DATABASE'!$Z$191,K256='EXPENSE DATABASE'!$Z$192,K256='EXPENSE DATABASE'!$Z$193,K256='EXPENSE DATABASE'!$Z$194),O256,\"\")","v":""},{"$f":"IF(OR(K256='EXPENSE DATABASE'!$T$189,K256='EXPENSE DATABASE'!$T$190,K256='EXPENSE DATABASE'!$T$191),O256,\"\")","v":""},{"$f":"VLOOKUP(I256,'EXPENSE DATABASE'!$B$41:$C$65,2,FALSE)","v":{"$error":"#N/A"}},100,{"$f":"VLOOKUP(J256,'EXPENSE DATABASE'!$B$69:$C$168,2,FALSE)","v":{"$error":"#N/A"}},101,{"$f":"VLOOKUP(K256,'EXPENSE DATABASE'!$B$6:$C$35,2,FALSE)","v":{"$error":"#N/A"}},31,{"$f":"VLOOKUP(L256,'EXPENSE DATABASE'!$B$173:$C$176,2,FALSE)","v":{"$error":"#N/A"}},100,0,0,{"$f":"IF(L256=T('EXPENSE DATABASE'!$E$173),O256,0)","v":0},{"$f":"IF(L256=T('EXPENSE DATABASE'!$E$174),O256,0)","v":0},{"$f":"IF(L256=T('EXPENSE DATABASE'!$E$175),O256,0)","v":0},0,243]
[0,0,{"$nulls":12},{"v":0,"d":"$0.00"},{"v":0,"d":"$0.00"},{"v":0,"d":"$0.00"},0,{"$f":"IF(OR(K257='EXPENSE DATABASE'!$V$187,K257='EXPENSE DATABASE'!$V$188,K257='EXPENSE DATABASE'!$V$189,K257='EXPENSE DATABASE'!$V$190,K257='EXPENSE DATABASE'!$V$191,K257='EXPENSE DATABASE'!$V$192,K257='EXPENSE DATABASE'!$V$193,K257='EXPENSE DATABASE'!$V$194,K257='EXPENSE DATABASE'!$X$187,K257='EXPENSE DATABASE'!$X$188,K257='EXPENSE DATABASE'!$X$189,K257='EXPENSE DATABASE'!$X$190,K257='EXPENSE DATABASE'!$X$191,K257='EXPENSE DATABASE'!$X$192,K257='EXPENSE DATABASE'!$X$193,K257='EXPENSE DATABASE'!$X$194,K257='EXPENSE DATABASE'!$Z$187,K257='EXPENSE DATABASE'!$Z$188,K257='EXPENSE DATABASE'!$Z$189,K257='EXPENSE DATABASE'!$Z$190,K257='EXPENSE DATABASE'!$Z$191,K257='EXPENSE DATABASE'!$Z$192,K257='EXPENSE DATABASE'!$Z$193,K257='EXPENSE DATABASE'!$Z$194),O257,\"\")","v":""},{"$f":"IF(OR(K257='EXPENSE DATABASE'!$T$189,K257='EXPENSE DATABASE'!$T$190,K257='EXPENSE DATABASE'!$T$191),O257,\"\")","v":""},{"$f":"VLOOKUP(I257,'EXPENSE DATABASE'!$B$41:$C$65,2,FALSE)","v":{"$error":"#N/A"}},100,{"$f":"VLOOKUP(J257,'EXPENSE DATABASE'!$B$69:$C$168,2,FALSE)","v":{"$error":"#N/A"}},101,{"$f":"VLOOKUP(K257,'EXPENSE DATABASE'!$B$6:$C$35,2,FALSE)","v":{"$error":"#N/A"}},31,{"$f":"VLOOKUP(L257,'EXPENSE DATABASE'!$B$173:$C$176,2,FALSE)","v":{"$error":"#N/A"}},100,0,0,{"$f":"IF(L257=T('EXPENSE DATABASE'!$E$173),O257,0)","v":0},{"$f":"IF(L257=T('EXPENSE DATABASE'!$E$174),O257,0)","v":0},{"$f":"IF(L257=T('EXPENSE DATABASE'!$E$175),O257,0)","v":0},0,244]
[0,0,{"$nulls":12},{"v":0,"d":"$0.00"},{"v":0,"d":"$0.00"},{"v":0,"d":"$0.00"},0,{"$f":"IF(OR(K258='EXPENSE DATABASE'!$V$187,K258='EXPENSE DATABASE'!$V$188,K258='EXPENSE DATABASE'!$V$189,K258='EXPENSE DATABASE'!$V$190,K258='EXPENSE DATABASE'!$V$191,K258='EXPENSE DATABASE'!$V$192,K258='EXPENSE DATABASE'!$V$193,K258='EXPENSE DATABASE'!$V$194,K258='EXPENSE DATABASE'!$X$187,K258='EXPENSE DATABASE'!$X$188,K258='EXPENSE DATABASE'!$X$189,K258='EXPENSE DATABASE'!$X$190,K258='EXPENSE DATABASE'!$X$191,K258='EXPENSE DATABASE'!$X$192,K258='EXPENSE DATABASE'!$X$193,K258='EXPENSE DATABASE'!$X$194,K258='EXPENSE DATABASE'!$Z$187,K258='EXPENSE DATABASE'!$Z$188,K258='EXPENSE DATABASE'!$Z$189,K258='EXPENSE DATABASE'!$Z$190,K258='EXPENSE DATABASE'!$Z$191,K258='EXPENSE DATABASE'!$Z$192,K258='EXPENSE DATABASE'!$Z$193,K258='EXPENSE DATABASE'!$Z$194),O258,\"\")","v":""},{"$f":"IF(OR(K258='EXPENSE DATABASE'!$T$189,K258='EXPENSE DATABASE'!$T$190,K258='EXPENSE DATABASE'!$T$191),O258,\"\")","v":""},{"$f":"VLOOKUP(I258,'EXPENSE DATABASE'!$B$41:$C$65,2,FALSE)","v":{"$error":"#N/A"}},100,{"$f":"VLOOKUP(J258,'EXPENSE DATABASE'!$B$69:$C$168,2,FALSE)","v":{"$error":"#N/A"}},101,{"$f":"VLOOKUP(K258,'EXPENSE DATABASE'!$B$6:$C$35,2,FALSE)","v":{"$error":"#N/A"}},31,{"$f":"VLOOKUP(L258,'EXPENSE DATABASE'!$B$173:$C$176,2,FALSE)","v":{"$error":"#N/A"}},100,0,0,{"$f":"IF(L258=T('EXPENSE DATABASE'!$E$173),O258,0)","v":0},{"$f":"IF(L258=T('EXPENSE DATABASE'!$E$174),O258,0)","v":0},{"$f":"IF(L258=T('EXPENSE DATABASE'!$E$175),O258,0)","v":0},0,245]
[0,0,{"$nulls":12},{"v":0,"d":"$0.00"},{"v":0,"d":"$0.00"},{"v":0,"d":"$0.00"},0,{"$f":"IF(OR(K259='EXPENSE DATABASE'!$V$187,K259='EXPENSE DATABASE'!$V$188,K259='EXPENSE DATABASE'!$V$189,K259='EXPENSE DATABASE'!$V$190,K259='EXPENSE DATABASE'!$V$191,K259='EXPENSE DATABASE'!$V$192,K259='EXPENSE DATABASE'!$V$193,K259='EXPENSE DATABASE'!$V$194,K259='EXPENSE DATABASE'!$X$187,K259='EXPENSE DATABASE'!$X$188,K259='EXPENSE DATABASE'!$X$189,K259='EXPENSE DATABASE'!$X$190,K259='EXPENSE DATABASE'!$X$191,K259='EXPENSE DATABASE'!$X$192,K259='EXPENSE DATABASE'!$X$193,K259='EXPENSE DATABASE'!$X$194,K259='EXPENSE DATABASE'!$Z$187,K259='EXPENSE DATABASE'!$Z$188,K259='EXPENSE DATABASE'!$Z$189,K259='EXPENSE DATABASE'!$Z$190,K259='EXPENSE DATABASE'!$Z$191,K259='EXPENSE DATABASE'!$Z$192,K259='EXPENSE DATABASE'!$Z$193,K259='EXPENSE DATABASE'!$Z$194),O259,\"\")","v":""},{"$f":"IF(OR(K259='EXPENSE DATABASE'!$T$189,K259='EXPENSE DATABASE'!$T$190,K259='EXPENSE DATABASE'!$T$191),O259,\"\")","v":""},{"$f":"VLOOKUP(I259,'EXPENSE DATABASE'!$B$41:$C$65,2,FALSE)","v":{"$error":"#N/A"}},100,{"$f":"VLOOKUP(J259,'EXPENSE DATABASE'!$B$69:$C$168,2,FALSE)","v":{"$error":"#N/A"}},101,{"$f":"VLOOKUP(K259,'EXPENSE DATABASE'!$B$6:$C$35,2,FALSE)","v":{"$error":"#N/A"}},31,{"$f":"VLOOKUP(L259,'EXPENSE DATABASE'!$B$173:$C$176,2,FALSE)","v":{"$error":"#N/A"}},100,0,0,{"$f":"IF(L259=T('EXPENSE DATABASE'!$E$173),O259,0)","v":0},{"$f":"IF(L259=T('EXPENSE DATABASE'!$E$174),O259,0)","v":0},{"$f":"IF(L259=T('EXPENSE DATABASE'!$E$175),O259,0)","v":0},0,246]
[0,0,{"$nulls":12},{"v":0,"d":"$0.00"},{"v":0,"d":"$0.00"},{"v":0,"d":"$0.00"},0,{"$f":"IF(OR(K260='EXPENSE DATABASE'!$V$187,K260='EXPENSE DATABASE'!$V$188,K260='EXPENSE DATABASE'!$V$189,K260='EXPENSE DATABASE'!$V$190,K260='EXPENSE DATABASE'!$V$191,K260='EXPENSE DATABASE'!$V$192,K260='EXPENSE DATABASE'!$V$193,K260='EXPENSE DATABASE'!$V$194,K260='EXPENSE DATABASE'!$X$187,K260='EXPENSE DATABASE'!$X$188,K260='EXPENSE DATABASE'!$X$189,K260='EXPENSE DATABASE'!$X$190,K260='EXPENSE DATABASE'!$X$191,K260='EXPENSE DATABASE'!$X$192,K260='EXPENSE DATABASE'!$X$193,K260='EXPENSE DATABASE'!$X$194,K260='EXPENSE DATABASE'!$Z$187,K260='EXPENSE DATABASE'!$Z$188,K260='EXPENSE DATABASE'!$Z$189,K260='EXPENSE DATABASE'!$Z$190,K260='EXPENSE DATABASE'!$Z$191,K260='EXPENSE DATABASE'!$Z$192,K260='EXPENSE DATABASE'!$Z$193,K260='EXPENSE DATABASE'!$Z$194),O260,\"\")","v":""},{"$f":"IF(OR(K260='EXPENSE DATABASE'!$T$189,K260='EXPENSE DATABASE'!$T$190,K260='EXPENSE DATABASE'!$T$191),O260,\"\")","v":""},{"$f":"VLOOKUP(I260,'EXPENSE DATABASE'!$B$41:$C$65,2,FALSE)","v":{"$error":"#N/A"}},100,{"$f":"VLOOKUP(J260,'EXPENSE DATABASE'!$B$69:$C$168,2,FALSE)","v":{"$error":"#N/A"}},101,{"$f":"VLOOKUP(K260,'EXPENSE DATABASE'!$B$6:$C$35,2,FALSE)","v":{"$error":"#N/A"}},31,{"$f":"VLOOKUP(L260,'EXPENSE DATABASE'!$B$173:$C$176,2,FALSE)","v":{"$error":"#N/A"}},100,0,0,{"$f":"IF(L260=T('EXPENSE DATABASE'!$E$173),O260,0)","v":0},{"$f":"IF(L260=T('EXPENSE DATABASE'!$E$174),O260,0)","v":0},{"$f":"IF(L260=T('EXPENSE DATABASE'!$E$175),O260,0)","v":0},0,247]
[0,0,{"$nulls":12},{"v":0,"d":"$0.00"},{"v":0,"d":"$0.00"},{"v":0,"d":"$0.00"},0,{"$f":"IF(OR(K261='EXPENSE DATABASE'!$V$187,K261='EXPENSE DATABASE'!$V$188,K261='EXPENSE DATABASE'!$V$189,K261='EXPENSE DATABASE'!$V$190,K261='EXPENSE DATABASE'!$V$191,K261='EXPENSE DATABASE'!$V$192,K261='EXPENSE DATABASE'!$V$193,K261='EXPENSE DATABASE'!$V$194,K261='EXPENSE DATABASE'!$X$187,K261='EXPENSE DATABASE'!$X$188,K261='EXPENSE DATABASE'!$X$189,K261='EXPENSE DATABASE'!$X$190,K261='EXPENSE DATABASE'!$X$191,K261='EXPENSE DATABASE'!$X$192,K261='EXPENSE DATABASE'!$X$193,K261='EXPENSE DATABASE'!$X$194,K261='EXPENSE DATABASE'!$Z$187,K261='EXPENSE DATABASE'!$Z$188,K261='EXPENSE DATABASE'!$Z$189,K261='EXPENSE DATABASE'!$Z$190,K261='EXPENSE DATABASE'!$Z$191,K261='EXPENSE DATABASE'!$Z$192,K261='EXPENSE DATABASE'!$Z$193,K261='EXPENSE DATABASE'!$Z$194),O261,\"\")","v":""},{"$f":"IF(OR(K261='EXPENSE DATABASE'!$T$189,K261='EXPENSE DATABASE'!$T$190,K261='EXPENSE DATABASE'!$T$191),O261,\"\")","v":""},{"$f":"VLOOKUP(I261,'EXPENSE DATABASE'!$B$41:$C$65,2,FALSE)","v":{"$error":"#N/A"}},100,{"$f":"VLOOKUP(J261,'EXPENSE DATABASE'!$B$69:$C$168,2,FALSE)","v":{"$error":"#N/A"}},101,{"$f":"VLOOKUP(K261,'EXPENSE DATABASE'!$B$6:$C$35,2,FALSE)","v":{"$error":"#N/A"}},31,{"$f":"VLOOKUP(L261,'EXPENSE DATABASE'!$B$173:$C$176,2,FALSE)","v":{"$error":"#N/A"}},100,0,0,{"$f":"IF(L261=T('EXPENSE DATABASE'!$E$173),O261,0)","v":0},{"$f":"IF(L261=T('EXPENSE DATABASE'!$E$174),O261,0)","v":0},{"$f":"IF(L261=T('EXPENSE DATABASE'!$E$175),O261,0)","v":0},0,248]
[0,0,{"$nulls":12},{"v":0,"d":"$0.00"},{"v":0,"d":"$0.00"},{"v":0,"d":"$0.00"},0,{"$f":"IF(OR(K262='EXPENSE DATABASE'!$V$187,K262='EXPENSE DATABASE'!$V$188,K262='EXPENSE DATABASE'!$V$189,K262='EXPENSE DATABASE'!$V$190,K262='EXPENSE DATABASE'!$V$191,K262='EXPENSE DATABASE'!$V$192,K262='EXPENSE DATABASE'!$V$193,K262='EXPENSE DATABASE'!$V$194,K262='EXPENSE DATABASE'!$X$187,K262='EXPENSE DATABASE'!$X$188,K262='EXPENSE DATABASE'!$X$189,K262='EXPENSE DATABASE'!$X$190,K262='EXPENSE DATABASE'!$X$191,K262='EXPENSE DATABASE'!$X$192,K262='EXPENSE DATABASE'!$X$193,K262='EXPENSE DATABASE'!$X$194,K262='EXPENSE DATABASE'!$Z$187,K262='EXPENSE DATABASE'!$Z$188,K262='EXPENSE DATABASE'!$Z$189,K262='EXPENSE DATABASE'!$Z$190,K262='EXPENSE DATABASE'!$Z$191,K262='EXPENSE DATABASE'!$Z$192,K262='EXPENSE DATABASE'!$Z$193,K262='EXPENSE DATABASE'!$Z$194),O262,\"\")","v":""},{"$f":"IF(OR(K262='EXPENSE DATABASE'!$T$189,K262='EXPENSE DATABASE'!$T$190,K262='EXPENSE DATABASE'!$T$191),O262,\"\")","v":""},{"$f":"VLOOKUP(I262,'EXPENSE DATABASE'!$B$41:$C$65,2,FALSE)","v":{"$error":"#N/A"}},100,{"$f":"VLOOKUP(J262,'EXPENSE DATABASE'!$B$69:$C$168,2,FALSE)","v":{"$error":"#N/A"}},101,{"$f":"VLOOKUP(K262,'EXPENSE DATABASE'!$B$6:$C$35,2,FALSE)","v":{"$error":"#N/A"}},31,{"$f":"VLOOKUP(L262,'EXPENSE DATABASE'!$B$173:$C$176,2,FALSE)","v":{"$error":"#N/A"}},100,0,0,{"$f":"IF(L262=T('EXPENSE DATABASE'!$E$173),O262,0)","v":0},{"$f":"IF(L262=T('EXPENSE DATABASE'!$E$174),O262,0)","v":0},{"$f":"IF(L262=T('EXPENSE DATABASE'!$E$175),O262,0)","v":0},0,249]
[0,0,{"$nulls":12},{"v":0,"d":"$0.00"},{"v":0,"d":"$0.00"},{"v":0,"d":"$0.00"},0,{"$f":"IF(OR(K263='EXPENSE DATABASE'!$V$187,K263='EXPENSE DATABASE'!$V$188,K263='EXPENSE DATABASE'!$V$189,K263='EXPENSE DATABASE'!$V$190,K263='EXPENSE DATABASE'!$V$191,K263='EXPENSE DATABASE'!$V$192,K263='EXPENSE DATABASE'!$V$193,K263='EXPENSE DATABASE'!$V$194,K263='EXPENSE DATABASE'!$X$187,K263='EXPENSE DATABASE'!$X$188,K263='EXPENSE DATABASE'!$X$189,K263='EXPENSE DATABASE'!$X$190,K263='EXPENSE DATABASE'!$X$191,K263='EXPENSE DATABASE'!$X$192,K263='EXPENSE DATABASE'!$X$193,K263='EXPENSE DATABASE'!$X$194,K263='EXPENSE DATABASE'!$Z$187,K263='EXPENSE DATABASE'!$Z$188,K263='EXPENSE DATABASE'!$Z$189,K263='EXPENSE DATABASE'!$Z$190,K263='EXPENSE DATABASE'!$Z$191,K263='EXPENSE DATABASE'!$Z$192,K263='EXPENSE DATABASE'!$Z$193,K263='EXPENSE DATABASE'!$Z$194),O263,\"\")","v":""},{"$f":"IF(OR(K263='EXPENSE DATABASE'!$T$189,K263='EXPENSE DATABASE'!$T$190,K263='EXPENSE DATABASE'!$T$191),O263,\"\")","v":""},{"$f":"VLOOKUP(I263,'EXPENSE DATABASE'!$B$41:$C$65,2,FALSE)","v":{"$error":"#N/A"}},100,{"$f":"VLOOKUP(J263,'EXPENSE DATABASE'!$B$69:$C$168,2,FALSE)","v":{"$error":"#N/A"}},101,{"$f":"VLOOKUP(K263,'EXPENSE DATABASE'!$B$6:$C$35,2,FALSE)","v":{"$error":"#N/A"}},31,{"$f":"VLOOKUP(L263,'EXPENSE DATABASE'!$B$173:$C$176,2,FALSE)","v":{"$error":"#N/A"}},100,0,0,{"$f":"IF(L263=T('EXPENSE DATABASE'!$E$173),O263,0)","v":0},{"$f":"IF(L263=T('EXPENSE DATABASE'!$E$174),O263,0)","v":0},{"$f":"IF(L263=T('EXPENSE DATABASE'!$E$175),O263,0)","v":0},0,250]
[0,0,{"$nulls":12},{"v":0,"d":"$0.00"},{"v":0,"d":"$0.00"},{"v":0,"d":"$0.00"},0,{"$f":"IF(OR(K264='EXPENSE DATABASE'!$V$187,K264='EXPENSE DATABASE'!$V$188,K264='EXPENSE DATABASE'!$V$189,K264='EXPENSE DATABASE'!$V$190,K264='EXPENSE DATABASE'!$V$191,K264='EXPENSE DATABASE'!$V$192,K264='EXPENSE DATABASE'!$V$193,K264='EXPENSE DATABASE'!$V$194,K264='EXPENSE DATABASE'!$X$187,K264='EXPENSE DATABASE'!$X$188,K264='EXPENSE DATABASE'!$X$189,K264='EXPENSE DATABASE'!$X$190,K264='EXPENSE DATABASE'!$X$191,K264='EXPENSE DATABASE'!$X$192,K264='EXPENSE DATABASE'!$X$193,K264='EXPENSE DATABASE'!$X$194,K264='EXPENSE DATABASE'!$Z$187,K264='EXPENSE DATABASE'!$Z$188,K264='EXPENSE DATABASE'!$Z$189,K264='EXPENSE DATABASE'!$Z$190,K264='EXPENSE DATABASE'!$Z$191,K264='EXPENSE DATABASE'!$Z$192,K264='EXPENSE DATABASE'!$Z$193,K264='EXPENSE DATABASE'!$Z$194),O264,\"\")","v":""},{"$f":"IF(OR(K264='EXPENSE DATABASE'!$T$189,K264='EXPENSE DATABASE'!$T$190,K264='EXPENSE DATABASE'!$T$191),O264,\"\")","v":""},{"$f":"VLOOKUP(I264,'EXPENSE DATABASE'!$B$41:$C$65,2,FALSE)","v":{"$error":"#N/A"}},100,{"$f":"VLOOKUP(J264,'EXPENSE DATABASE'!$B$69:$C$168,2,FALSE)","v":{"$error":"#N/A"}},101,{"$f":"VLOOKUP(K264,'EXPENSE DATABASE'!$B$6:$C$35,2,FALSE)","v":{"$error":"#N/A"}},31,{"$f":"VLOOKUP(L264,'EXPENSE DATABASE'!$B$173:$C$176,2,FALSE)","v":{"$error":"#N/A"}},100,0,0,{"$f":"IF(L264=T('EXPENSE DATABASE'!$E$173),O264,0)","v":0},{"$f":"IF(L264=T('EXPENSE DATABASE'!$E$174),O264,0)","v":0},{"$f":"IF(L264=T('EXPENSE DATABASE'!$E$175),O264,0)","v":0},0,251]
[0,0,{"$nulls":12},{"v":0,"d":"$0.00"},{"v":0,"d":"$0.00"},{"v":0,"d":"$0.00"},0,{"$f":"IF(OR(K265='EXPENSE DATABASE'!$V$187,K265='EXPENSE DATABASE'!$V$188,K265='EXPENSE DATABASE'!$V$189,K265='EXPENSE DATABASE'!$V$190,K265='EXPENSE DATABASE'!$V$191,K265='EXPENSE DATABASE'!$V$192,K265='EXPENSE DATABASE'!$V$193,K265='EXPENSE DATABASE'!$V$194,K265='EXPENSE DATABASE'!$X$187,K265='EXPENSE DATABASE'!$X$188,K265='EXPENSE DATABASE'!$X$189,K265='EXPENSE DATABASE'!$X$190,K265='EXPENSE DATABASE'!$X$191,K265='EXPENSE DATABASE'!$X$192,K265='EXPENSE DATABASE'!$X$193,K265='EXPENSE DATABASE'!$X$194,K265='EXPENSE DATABASE'!$Z$187,K265='EXPENSE DATABASE'!$Z$188,K265='EXPENSE DATABASE'!$Z$189,K265='EXPENSE DATABASE'!$Z$190,K265='EXPENSE DATABASE'!$Z$191,K265='EXPENSE DATABASE'!$Z$192,K265='EXPENSE DATABASE'!$Z$193,K265='EXPENSE DATABASE'!$Z$194),O265,\"\")","v":""},{"$f":"IF(OR(K265='EXPENSE DATABASE'!$T$189,K265='EXPENSE DATABASE'!$T$190,K265='EXPENSE DATABASE'!$T$191),O265,\"\")","v":""},{"$f":"VLOOKUP(I265,'EXPENSE DATABASE'!$B$41:$C$65,2,FALSE)","v":{"$error":"#N/A"}},100,{"$f":"VLOOKUP(J265,'EXPENSE DATABASE'!$B$69:$C$168,2,FALSE)","v":{"$error":"#N/A"}},101,{"$f":"VLOOKUP(K265,'EXPENSE DATABASE'!$B$6:$C$35,2,FALSE)","v":{"$error":"#N/A"}},31,{"$f":"VLOOKUP(L265,'EXPENSE DATABASE'!$B$173:$C$176,2,FALSE)","v":{"$error":"#N/A"}},100,0,0,{"$f":"IF(L265=T('EXPENSE DATABASE'!$E$173),O265,0)","v":0},{"$f":"IF(L265=T('EXPENSE DATABASE'!$E$174),O265,0)","v":0},{"$f":"IF(L265=T('EXPENSE DATABASE'!$E$175),O265,0)","v":0},0,252]
[0,0,{"$nulls":12},{"v":0,"d":"$0.00"},{"v":0,"d":"$0.00"},{"v":0,"d":"$0.00"},0,{"$f":"IF(OR(K266='EXPENSE DATABASE'!$V$187,K266='EXPENSE DATABASE'!$V$188,K266='EXPENSE DATABASE'!$V$189,K266='EXPENSE DATABASE'!$V$190,K266='EXPENSE DATABASE'!$V$191,K266='EXPENSE DATABASE'!$V$192,K266='EXPENSE DATABASE'!$V$193,K266='EXPENSE DATABASE'!$V$194,K266='EXPENSE DATABASE'!$X$187,K266='EXPENSE DATABASE'!$X$188,K266='EXPENSE DATABASE'!$X$189,K266='EXPENSE DATABASE'!$X$190,K266='EXPENSE DATABASE'!$X$191,K266='EXPENSE DATABASE'!$X$192,K266='EXPENSE DATABASE'!$X$193,K266='EXPENSE DATABASE'!$X$194,K266='EXPENSE DATABASE'!$Z$187,K266='EXPENSE DATABASE'!$Z$188,K266='EXPENSE DATABASE'!$Z$189,K266='EXPENSE DATABASE'!$Z$190,K266='EXPENSE DATABASE'!$Z$191,K266='EXPENSE DATABASE'!$Z$192,K266='EXPENSE DATABASE'!$Z$193,K266='EXPENSE DATABASE'!$Z$194),O266,\"\")","v":""},{"$f":"IF(OR(K266='EXPENSE DATABASE'!$T$189,K266='EXPENSE DATABASE'!$T$190,K266='EXPENSE DATABASE'!$T$191),O266,\"\")","v":""},{"$f":"VLOOKUP(I266,'EXPENSE DATABASE'!$B$41:$C$65,2,FALSE)","v":{"$error":"#N/A"}},100,{"$f":"VLOOKUP(J266,'EXPENSE DATABASE'!$B$69:$C$168,2,FALSE)","v":{"$error":"#N/A"}},101,{"$f":"VLOOKUP(K266,'EXPENSE DATABASE'!$B$6:$C$35,2,FALSE)","v":{"$error":"#N/A"}},31,{"$f":"VLOOKUP(L266,'EXPENSE DATABASE'!$B$173:$C$176,2,FALSE)","v":{"$error":"#N/A"}},100,0,0,{"$f":"IF(L266=T('EXPENSE DATABASE'!$E$173),O266,0)","v":0},{"$f":"IF(L266=T('EXPENSE DATABASE'!$E$174),O266,0)","v":0},{"$f":"IF(L266=T('EXPENSE DATABASE'!$E$175),O266,0)","v":0},0,253]
[0,0,{"$nulls":12},{"v":0,"d":"$0.00"},{"v":0,"d":"$0.00"},{"v":0,"d":"$0.00"},0,{"$f":"IF(OR(K267='EXPENSE DATABASE'!$V$187,K267='EXPENSE DATABASE'!$V$188,K267='EXPENSE DATABASE'!$V$189,K267='EXPENSE DATABASE'!$V$190,K267='EXPENSE DATABASE'!$V$191,K267='EXPENSE DATABASE'!$V$192,K267='EXPENSE DATABASE'!$V$193,K267='EXPENSE DATABASE'!$V$194,K267='EXPENSE DATABASE'!$X$187,K267='EXPENSE DATABASE'!$X$188,K267='EXPENSE DATABASE'!$X$189,K267='EXPENSE DATABASE'!$X$190,K267='EXPENSE DATABASE'!$X$191,K267='EXPENSE DATABASE'!$X$192,K267='EXPENSE DATABASE'!$X$193,K267='EXPENSE DATABASE'!$X$194,K267='EXPENSE DATABASE'!$Z$187,K267='EXPENSE DATABASE'!$Z$188,K267='EXPENSE DATABASE'!$Z$189,K267='EXPENSE DATABASE'!$Z$190,K267='EXPENSE DATABASE'!$Z$191,K267='EXPENSE DATABASE'!$Z$192,K267='EXPENSE DATABASE'!$Z$193,K267='EXPENSE DATABASE'!$Z$194),O267,\"\")","v":""},{"$f":"IF(OR(K267='EXPENSE DATABASE'!$T$189,K267='EXPENSE DATABASE'!$T$190,K267='EXPENSE DATABASE'!$T$191),O267,\"\")","v":""},{"$f":"VLOOKUP(I267,'EXPENSE DATABASE'!$B$41:$C$65,2,FALSE)","v":{"$error":"#N/A"}},100,{"$f":"VLOOKUP(J267,'EXPENSE DATABASE'!$B$69:$C$168,2,FALSE)","v":{"$error":"#N/A"}},101,{"$f":"VLOOKUP(K267,'EXPENSE DATABASE'!$B$6:$C$35,2,FALSE)","v":{"$error":"#N/A"}},31,{"$f":"VLOOKUP(L267,'EXPENSE DATABASE'!$B$173:$C$176,2,FALSE)","v":{"$error":"#N/A"}},100,0,0,{"$f":"IF(L267=T('EXPENSE DATABASE'!$E$173),O267,0)","v":0},{"$f":"IF(L267=T('EXPENSE DATABASE'!$E$174),O267,0)","v":0},{"$f":"IF(L267=T('EXPENSE DATABASE'!$E$175),O267,0)","v":0},0,254]
[0,0,{"$nulls":12},{"v":0,"d":"$0.00"},{"v":0,"d":"$0.00"},{"v":0,"d":"$0.00"},0,{"$f":"IF(OR(K268='EXPENSE DATABASE'!$V$187,K268='EXPENSE DATABASE'!$V$188,K268='EXPENSE DATABASE'!$V$189,K268='EXPENSE DATABASE'!$V$190,K268='EXPENSE DATABASE'!$V$191,K268='EXPENSE DATABASE'!$V$192,K268='EXPENSE DATABASE'!$V$193,K268='EXPENSE DATABASE'!$V$194,K268='EXPENSE DATABASE'!$X$187,K268='EXPENSE DATABASE'!$X$188,K268='EXPENSE DATABASE'!$X$189,K268='EXPENSE DATABASE'!$X$190,K268='EXPENSE DATABASE'!$X$191,K268='EXPENSE DATABASE'!$X$192,K268='EXPENSE DATABASE'!$X$193,K268='EXPENSE DATABASE'!$X$194,K268='EXPENSE DATABASE'!$Z$187,K268='EXPENSE DATABASE'!$Z$188,K268='EXPENSE DATABASE'!$Z$189,K268='EXPENSE DATABASE'!$Z$190,K268='EXPENSE DATABASE'!$Z$191,K268='EXPENSE DATABASE'!$Z$192,K268='EXPENSE DATABASE'!$Z$193,K268='EXPENSE DATABASE'!$Z$194),O268,\"\")","v":""},{"$f":"IF(OR(K268='EXPENSE DATABASE'!$T$189,K268='EXPENSE DATABASE'!$T$190,K268='EXPENSE DATABASE'!$T$191),O268,\"\")","v":""},{"$f":"VLOOKUP(I268,'EXPENSE DATABASE'!$B$41:$C$65,2,FALSE)","v":{"$error":"#N/A"}},100,{"$f":"VLOOKUP(J268,'EXPENSE DATABASE'!$B$69:$C$168,2,FALSE)","v":{"$error":"#N/A"}},101,{"$f":"VLOOKUP(K268,'EXPENSE DATABASE'!$B$6:$C$35,2,FALSE)","v":{"$error":"#N/A"}},31,{"$f":"VLOOKUP(L268,'EXPENSE DATABASE'!$B$173:$C$176,2,FALSE)","v":{"$error":"#N/A"}},100,0,0,{"$f":"IF(L268=T('EXPENSE DATABASE'!$E$173),O268,0)","v":0},{"$f":"IF(L268=T('EXPENSE DATABASE'!$E$174),O268,0)","v":0},{"$f":"IF(L268=T('EXPENSE DATABASE'!$E$175),O268,0)","v":0},0,255]
[0,0,{"$nulls":12},{"v":0,"d":"$0.00"},{"v":0,"d":"$0.00"},{"v":0,"d":"$0.00"},0,{"$f":"IF(OR(K269='EXPENSE DATABASE'!$V$187,K269='EXPENSE DATABASE'!$V$188,K269='EXPENSE DATABASE'!$V$189,K269='EXPENSE DATABASE'!$V$190,K269='EXPENSE DATABASE'!$V$191,K269='EXPENSE DATABASE'!$V$192,K269='EXPENSE DATABASE'!$V$193,K269='EXPENSE DATABASE'!$V$194,K269='EXPENSE DATABASE'!$X$187,K269='EXPENSE DATABASE'!$X$188,K269='EXPENSE DATABASE'!$X$189,K269='EXPENSE DATABASE'!$X$190,K269='EXPENSE DATABASE'!$X$191,K269='EXPENSE DATABASE'!$X$192,K269='EXPENSE DATABASE'!$X$193,K269='EXPENSE DATABASE'!$X$194,K269='EXPENSE DATABASE'!$Z$187,K269='EXPENSE DATABASE'!$Z$188,K269='EXPENSE DATABASE'!$Z$189,K269='EXPENSE DATABASE'!$Z$190,K269='EXPENSE DATABASE'!$Z$191,K269='EXPENSE DATABASE'!$Z$192,K269='EXPENSE DATABASE'!$Z$193,K269='EXPENSE DATABASE'!$Z$194),O269,\"\")","v":""},{"$f":"IF(OR(K269='EXPENSE DATABASE'!$T$189,K269='EXPENSE DATABASE'!$T$190,K269='EXPENSE DATABASE'!$T$191),O269,\"\")","v":""},{"$f":"VLOOKUP(I269,'EXPENSE DATABASE'!$B$41:$C$65,2,FALSE)","v":{"$error":"#N/A"}},100,{"$f":"VLOOKUP(J269,'EXPENSE DATABASE'!$B$69:$C$168,2,FALSE)","v":{"$error":"#N/A"}},101,{"$f":"VLOOKUP(K269,'EXPENSE DATABASE'!$B$6:$C$35,2,FALSE)","v":{"$error":"#N/A"}},31,{"$f":"VLOOKUP(L269,'EXPENSE DATABASE'!$B$173:$C$176,2,FALSE)","v":{"$error":"#N/A"}},100,0,0,{"$f":"IF(L269=T('EXPENSE DATABASE'!$E$173),O269,0)","v":0},{"$f":"IF(L269=T('EXPENSE DATABASE'!$E$174),O269,0)","v":0},{"$f":"IF(L269=T('EXPENSE DATABASE'!$E$175),O269,0)","v":0},0,256]
[{"$f":"IF(COUNTA(D270,E270,F270,G270,H270,I270,J270,K270,L270,M270,N270)>0,1,0)","v":0},{"$f":"IF((COUNTA(I270:L270)=4),1,-1)*A270","v":0},{"$nulls":12},{"$f":"M270*N270","v":{"v":0,"d":"$0.00"}},{"$f":"IF(OR(D270=\"No\",D270=\"\"),O270,0)","v":{"v":0,"d":"$0.00"}},{"$f":"IF(D270=\"Yes\",O270,0)","v":{"v":0,"d":"$0.00"}},{"$f":"IF(O270>0,1,0)","v":0},{"$f":"IF(OR(K270='EXPENSE DATABASE'!$V$187,K270='EXPENSE DATABASE'!$V$188,K270='EXPENSE DATABASE'!$V$189,K270='EXPENSE DATABASE'!$V$190,K270='EXPENSE DATABASE'!$V$191,K270='EXPENSE DATABASE'!$V$192,K270='EXPENSE DATABASE'!$V$193,K270='EXPENSE DATABASE'!$V$194,K270='EXPENSE DATABASE'!$X$187,K270='EXPENSE DATABASE'!$X$188,K270='EXPENSE DATABASE'!$X$189,K270='EXPENSE DATABASE'!$X$190,K270='EXPENSE DATABASE'!$X$191,K270='EXPENSE DATABASE'!$X$192,K270='EXPENSE DATABASE'!$X$193,K270='EXPENSE DATABASE'!$X$194,K270='EXPENSE DATABASE'!$Z$187,K270='EXPENSE DATABASE'!$Z$188,K270='EXPENSE DATABASE'!$Z$189,K270='EXPENSE DATABASE'!$Z$190,K270='EXPENSE DATABASE'!$Z$191,K270='EXPENSE DATABASE'!$Z$192,K270='EXPENSE DATABASE'!$Z$193,K270='EXPENSE DATABASE'!$Z$194),O270,\"\")","v":""},{"$f":"IF(OR(K270='EXPENSE DATABASE'!$T$189,K270='EXPENSE DATABASE'!$T$190,K270='EXPENSE DATABASE'!$T$191),O270,\"\")","v":""},{"$f":"VLOOKUP(I270,'EXPENSE DATABASE'!$B$41:$C$65,2,FALSE)","v":{"$error":"#N/A"}},{"$f":"IFERROR(U270,100)","v":100},{"$f":"VLOOKUP(J270,'EXPENSE DATABASE'!$B$69:$C$168,2,FALSE)","v":{"$error":"#N/A"}},{"$f":"IFERROR(W270,101)","v":101},{"$f":"VLOOKUP(K270,'EXPENSE DATABASE'!$B$6:$C$35,2,FALSE)","v":{"$error":"#N/A"}},{"$f":"IFERROR(Y270,31)","v":31},{"$f":"VLOOKUP(L270,'EXPENSE DATABASE'!$B$173:$C$176,2,FALSE)","v":{"$error":"#N/A"}},{"$f":"IFERROR(AA270,100)","v":100},{"$f":"IF(K270=0,0,1)","v":0},{"$f":"IF(J270=0,0,1)","v":0},{"$f":"IF(L270=T('EXPENSE DATABASE'!$E$173),O270,0)","v":0},{"$f":"IF(L270=T('EXPENSE DATABASE'!$E$174),O270,0)","v":0},{"$f":"IF(L270=T('EXPENSE DATABASE'!$E$175),O270,0)","v":0},{"$f":"IF(OR(N270=0,E270=0),0,MONTH(E270))","v":0},257]
[0,0,{"$nulls":12},{"v":0,"d":"$0.00"},{"v":0,"d":"$0.00"},{"v":0,"d":"$0.00"},0,{"$f":"IF(OR(K271='EXPENSE DATABASE'!$V$187,K271='EXPENSE DATABASE'!$V$188,K271='EXPENSE DATABASE'!$V$189,K271='EXPENSE DATABASE'!$V$190,K271='EXPENSE DATABASE'!$V$191,K271='EXPENSE DATABASE'!$V$192,K271='EXPENSE DATABASE'!$V$193,K271='EXPENSE DATABASE'!$V$194,K271='EXPENSE DATABASE'!$X$187,K271='EXPENSE DATABASE'!$X$188,K271='EXPENSE DATABASE'!$X$189,K271='EXPENSE DATABASE'!$X$190,K271='EXPENSE DATABASE'!$X$191,K271='EXPENSE DATABASE'!$X$192,K271='EXPENSE DATABASE'!$X$193,K271='EXPENSE DATABASE'!$X$194,K271='EXPENSE DATABASE'!$Z$187,K271='EXPENSE DATABASE'!$Z$188,K271='EXPENSE DATABASE'!$Z$189,K271='EXPENSE DATABASE'!$Z$190,K271='EXPENSE DATABASE'!$Z$191,K271='EXPENSE DATABASE'!$Z$192,K271='EXPENSE DATABASE'!$Z$193,K271='EXPENSE DATABASE'!$Z$194),O271,\"\")","v":""},{"$f":"IF(OR(K271='EXPENSE DATABASE'!$T$189,K271='EXPENSE DATABASE'!$T$190,K271='EXPENSE DATABASE'!$T$191),O271,\"\")","v":""},{"$f":"VLOOKUP(I271,'EXPENSE DATABASE'!$B$41:$C$65,2,FALSE)","v":{"$error":"#N/A"}},100,{"$f":"VLOOKUP(J271,'EXPENSE DATABASE'!$B$69:$C$168,2,FALSE)","v":{"$error":"#N/A"}},101,{"$f":"VLOOKUP(K271,'EXPENSE DATABASE'!$B$6:$C$35,2,FALSE)","v":{"$error":"#N/A"}},31,{"$f":"VLOOKUP(L271,'EXPENSE DATABASE'!$B$173:$C$176,2,FALSE)","v":{"$error":"#N/A"}},100,0,0,{"$f":"IF(L271=T('EXPENSE DATABASE'!$E$173),O271,0)","v":0},{"$f":"IF(L271=T('EXPENSE DATABASE'!$E$174),O271,0)","v":0},{"$f":"IF(L271=T('EXPENSE DATABASE'!$E$175),O271,0)","v":0},0,258]
[0,0,{"$nulls":12},{"v":0,"d":"$0.00"},{"v":0,"d":"$0.00"},{"v":0,"d":"$0.00"},0,{"$f":"IF(OR(K272='EXPENSE DATABASE'!$V$187,K272='EXPENSE DATABASE'!$V$188,K272='EXPENSE DATABASE'!$V$189,K272='EXPENSE DATABASE'!$V$190,K272='EXPENSE DATABASE'!$V$191,K272='EXPENSE DATABASE'!$V$192,K272='EXPENSE DATABASE'!$V$193,K272='EXPENSE DATABASE'!$V$194,K272='EXPENSE DATABASE'!$X$187,K272='EXPENSE DATABASE'!$X$188,K272='EXPENSE DATABASE'!$X$189,K272='EXPENSE DATABASE'!$X$190,K272='EXPENSE DATABASE'!$X$191,K272='EXPENSE DATABASE'!$X$192,K272='EXPENSE DATABASE'!$X$193,K272='EXPENSE DATABASE'!$X$194,K272='EXPENSE DATABASE'!$Z$187,K272='EXPENSE DATABASE'!$Z$188,K272='EXPENSE DATABASE'!$Z$189,K272='EXPENSE DATABASE'!$Z$190,K272='EXPENSE DATABASE'!$Z$191,K272='EXPENSE DATABASE'!$Z$192,K272='EXPENSE DATABASE'!$Z$193,K272='EXPENSE DATABASE'!$Z$194),O272,\"\")","v":""},{"$f":"IF(OR(K272='EXPENSE DATABASE'!$T$189,K272='EXPENSE DATABASE'!$T$190,K272='EXPENSE DATABASE'!$T$191),O272,\"\")","v":""},{"$f":"VLOOKUP(I272,'EXPENSE DATABASE'!$B$41:$C$65,2,FALSE)","v":{"$error":"#N/A"}},100,{"$f":"VLOOKUP(J272,'EXPENSE DATABASE'!$B$69:$C$168,2,FALSE)","v":{"$error":"#N/A"}},101,{"$f":"VLOOKUP(K272,'EXPENSE DATABASE'!$B$6:$C$35,2,FALSE)","v":{"$error":"#N/A"}},31,{"$f":"VLOOKUP(L272,'EXPENSE DATABASE'!$B$173:$C$176,2,FALSE)","v":{"$error":"#N/A"}},100,0,0,{"$f":"IF(L272=T('EXPENSE DATABASE'!$E$173),O272,0)","v":0},{"$f":"IF(L272=T('EXPENSE DATABASE'!$E$174),O272,0)","v":0},{"$f":"IF(L272=T('EXPENSE DATABASE'!$E$175),O272,0)","v":0},0,259]
[0,0,{"$nulls":12},{"v":0,"d":"$0.00"},{"v":0,"d":"$0.00"},{"v":0,"d":"$0.00"},0,{"$f":"IF(OR(K273='EXPENSE DATABASE'!$V$187,K273='EXPENSE DATABASE'!$V$188,K273='EXPENSE DATABASE'!$V$189,K273='EXPENSE DATABASE'!$V$190,K273='EXPENSE DATABASE'!$V$191,K273='EXPENSE DATABASE'!$V$192,K273='EXPENSE DATABASE'!$V$193,K273='EXPENSE DATABASE'!$V$194,K273='EXPENSE DATABASE'!$X$187,K273='EXPENSE DATABASE'!$X$188,K273='EXPENSE DATABASE'!$X$189,K273='EXPENSE DATABASE'!$X$190,K273='EXPENSE DATABASE'!$X$191,K273='EXPENSE DATABASE'!$X$192,K273='EXPENSE DATABASE'!$X$193,K273='EXPENSE DATABASE'!$X$194,K273='EXPENSE DATABASE'!$Z$187,K273='EXPENSE DATABASE'!$Z$188,K273='EXPENSE DATABASE'!$Z$189,K273='EXPENSE DATABASE'!$Z$190,K273='EXPENSE DATABASE'!$Z$191,K273='EXPENSE DATABASE'!$Z$192,K273='EXPENSE DATABASE'!$Z$193,K273='EXPENSE DATABASE'!$Z$194),O273,\"\")","v":""},{"$f":"IF(OR(K273='EXPENSE DATABASE'!$T$189,K273='EXPENSE DATABASE'!$T$190,K273='EXPENSE DATABASE'!$T$191),O273,\"\")","v":""},{"$f":"VLOOKUP(I273,'EXPENSE DATABASE'!$B$41:$C$65,2,FALSE)","v":{"$error":"#N/A"}},100,{"$f":"VLOOKUP(J273,'EXPENSE DATABASE'!$B$69:$C$168,2,FALSE)","v":{"$error":"#N/A"}},101,{"$f":"VLOOKUP(K273,'EXPENSE DATABASE'!$B$6:$C$35,2,FALSE)","v":{"$error":"#N/A"}},31,{"$f":"VLOOKUP(L273,'EXPENSE DATABASE'!$B$173:$C$176,2,FALSE)","v":{"$error":"#N/A"}},100,0,0,{"$f":"IF(L273=T('EXPENSE DATABASE'!$E$173),O273,0)","v":0},{"$f":"IF(L273=T('EXPENSE DATABASE'!$E$174),O273,0)","v":0},{"$f":"IF(L273=T('EXPENSE DATABASE'!$E$175),O273,0)","v":0},0,260]
[0,0,{"$nulls":12},{"v":0,"d":"$0.00"},{"v":0,"d":"$0.00"},{"v":0,"d":"$0.00"},0,{"$f":"IF(OR(K274='EXPENSE DATABASE'!$V$187,K274='EXPENSE DATABASE'!$V$188,K274='EXPENSE DATABASE'!$V$189,K274='EXPENSE DATABASE'!$V$190,K274='EXPENSE DATABASE'!$V$191,K274='EXPENSE DATABASE'!$V$192,K274='EXPENSE DATABASE'!$V$193,K274='EXPENSE DATABASE'!$V$194,K274='EXPENSE DATABASE'!$X$187,K274='EXPENSE DATABASE'!$X$188,K274='EXPENSE DATABASE'!$X$189,K274='EXPENSE DATABASE'!$X$190,K274='EXPENSE DATABASE'!$X$191,K274='EXPENSE DATABASE'!$X$192,K274='EXPENSE DATABASE'!$X$193,K274='EXPENSE DATABASE'!$X$194,K274='EXPENSE DATABASE'!$Z$187,K274='EXPENSE DATABASE'!$Z$188,K274='EXPENSE DATABASE'!$Z$189,K274='EXPENSE DATABASE'!$Z$190,K274='EXPENSE DATABASE'!$Z$191,K274='EXPENSE DATABASE'!$Z$192,K274='EXPENSE DATABASE'!$Z$193,K274='EXPENSE DATABASE'!$Z$194),O274,\"\")","v":""},{"$f":"IF(OR(K274='EXPENSE DATABASE'!$T$189,K274='EXPENSE DATABASE'!$T$190,K274='EXPENSE DATABASE'!$T$191),O274,\"\")","v":""},{"$f":"VLOOKUP(I274,'EXPENSE DATABASE'!$B$41:$C$65,2,FALSE)","v":{"$error":"#N/A"}},100,{"$f":"VLOOKUP(J274,'EXPENSE DATABASE'!$B$69:$C$168,2,FALSE)","v":{"$error":"#N/A"}},101,{"$f":"VLOOKUP(K274,'EXPENSE DATABASE'!$B$6:$C$35,2,FALSE)","v":{"$error":"#N/A"}},31,{"$f":"VLOOKUP(L274,'EXPENSE DATABASE'!$B$173:$C$176,2,FALSE)","v":{"$error":"#N/A"}},100,0,0,{"$f":"IF(L274=T('EXPENSE DATABASE'!$E$173),O274,0)","v":0},{"$f":"IF(L274=T('EXPENSE DATABASE'!$E$174),O274,0)","v":0},{"$f":"IF(L274=T('EXPENSE DATABASE'!$E$175),O274,0)","v":0},0,261]
[0,0,{"$nulls":12},{"v":0,"d":"$0.00"},{"v":0,"d":"$0.00"},{"v":0,"d":"$0.00"},0,{"$f":"IF(OR(K275='EXPENSE DATABASE'!$V$187,K275='EXPENSE DATABASE'!$V$188,K275='EXPENSE DATABASE'!$V$189,K275='EXPENSE DATABASE'!$V$190,K275='EXPENSE DATABASE'!$V$191,K275='EXPENSE DATABASE'!$V$192,K275='EXPENSE DATABASE'!$V$193,K275='EXPENSE DATABASE'!$V$194,K275='EXPENSE DATABASE'!$X$187,K275='EXPENSE DATABASE'!$X$188,K275='EXPENSE DATABASE'!$X$189,K275='EXPENSE DATABASE'!$X$190,K275='EXPENSE DATABASE'!$X$191,K275='EXPENSE DATABASE'!$X$192,K275='EXPENSE DATABASE'!$X$193,K275='EXPENSE DATABASE'!$X$194,K275='EXPENSE DATABASE'!$Z$187,K275='EXPENSE DATABASE'!$Z$188,K275='EXPENSE DATABASE'!$Z$189,K275='EXPENSE DATABASE'!$Z$190,K275='EXPENSE DATABASE'!$Z$191,K275='EXPENSE DATABASE'!$Z$192,K275='EXPENSE DATABASE'!$Z$193,K275='EXPENSE DATABASE'!$Z$194),O275,\"\")","v":""},{"$f":"IF(OR(K275='EXPENSE DATABASE'!$T$189,K275='EXPENSE DATABASE'!$T$190,K275='EXPENSE DATABASE'!$T$191),O275,\"\")","v":""},{"$f":"VLOOKUP(I275,'EXPENSE DATABASE'!$B$41:$C$65,2,FALSE)","v":{"$error":"#N/A"}},100,{"$f":"VLOOKUP(J275,'EXPENSE DATABASE'!$B$69:$C$168,2,FALSE)","v":{"$error":"#N/A"}},101,{"$f":"VLOOKUP(K275,'EXPENSE DATABASE'!$B$6:$C$35,2,FALSE)","v":{"$error":"#N/A"}},31,{"$f":"VLOOKUP(L275,'EXPENSE DATABASE'!$B$173:$C$176,2,FALSE)","v":{"$error":"#N/A"}},100,0,0,{"$f":"IF(L275=T('EXPENSE DATABASE'!$E$173),O275,0)","v":0},{"$f":"IF(L275=T('EXPENSE DATABASE'!$E$174),O275,0)","v":0},{"$f":"IF(L275=T('EXPENSE DATABASE'!$E$175),O275,0)","v":0},0,262]
[0,0,{"$nulls":12},{"v":0,"d":"$0.00"},{"v":0,"d":"$0.00"},{"v":0,"d":"$0.00"},0,{"$f":"IF(OR(K276='EXPENSE DATABASE'!$V$187,K276='EXPENSE DATABASE'!$V$188,K276='EXPENSE DATABASE'!$V$189,K276='EXPENSE DATABASE'!$V$190,K276='EXPENSE DATABASE'!$V$191,K276='EXPENSE DATABASE'!$V$192,K276='EXPENSE DATABASE'!$V$193,K276='EXPENSE DATABASE'!$V$194,K276='EXPENSE DATABASE'!$X$187,K276='EXPENSE DATABASE'!$X$188,K276='EXPENSE DATABASE'!$X$189,K276='EXPENSE DATABASE'!$X$190,K276='EXPENSE DATABASE'!$X$191,K276='EXPENSE DATABASE'!$X$192,K276='EXPENSE DATABASE'!$X$193,K276='EXPENSE DATABASE'!$X$194,K276='EXPENSE DATABASE'!$Z$187,K276='EXPENSE DATABASE'!$Z$188,K276='EXPENSE DATABASE'!$Z$189,K276='EXPENSE DATABASE'!$Z$190,K276='EXPENSE DATABASE'!$Z$191,K276='EXPENSE DATABASE'!$Z$192,K276='EXPENSE DATABASE'!$Z$193,K276='EXPENSE DATABASE'!$Z$194),O276,\"\")","v":""},{"$f":"IF(OR(K276='EXPENSE DATABASE'!$T$189,K276='EXPENSE DATABASE'!$T$190,K276='EXPENSE DATABASE'!$T$191),O276,\"\")","v":""},{"$f":"VLOOKUP(I276,'EXPENSE DATABASE'!$B$41:$C$65,2,FALSE)","v":{"$error":"#N/A"}},100,{"$f":"VLOOKUP(J276,'EXPENSE DATABASE'!$B$69:$C$168,2,FALSE)","v":{"$error":"#N/A"}},101,{"$f":"VLOOKUP(K276,'EXPENSE DATABASE'!$B$6:$C$35,2,FALSE)","v":{"$error":"#N/A"}},31,{"$f":"VLOOKUP(L276,'EXPENSE DATABASE'!$B$173:$C$176,2,FALSE)","v":{"$error":"#N/A"}},100,0,0,{"$f":"IF(L276=T('EXPENSE DATABASE'!$E$173),O276,0)","v":0},{"$f":"IF(L276=T('EXPENSE DATABASE'!$E$174),O276,0)","v":0},{"$f":"IF(L276=T('EXPENSE DATABASE'!$E$175),O276,0)","v":0},0,263]
[0,0,{"$nulls":12},{"v":0,"d":"$0.00"},{"v":0,"d":"$0.00"},{"v":0,"d":"$0.00"},0,{"$f":"IF(OR(K277='EXPENSE DATABASE'!$V$187,K277='EXPENSE DATABASE'!$V$188,K277='EXPENSE DATABASE'!$V$189,K277='EXPENSE DATABASE'!$V$190,K277='EXPENSE DATABASE'!$V$191,K277='EXPENSE DATABASE'!$V$192,K277='EXPENSE DATABASE'!$V$193,K277='EXPENSE DATABASE'!$V$194,K277='EXPENSE DATABASE'!$X$187,K277='EXPENSE DATABASE'!$X$188,K277='EXPENSE DATABASE'!$X$189,K277='EXPENSE DATABASE'!$X$190,K277='EXPENSE DATABASE'!$X$191,K277='EXPENSE DATABASE'!$X$192,K277='EXPENSE DATABASE'!$X$193,K277='EXPENSE DATABASE'!$X$194,K277='EXPENSE DATABASE'!$Z$187,K277='EXPENSE DATABASE'!$Z$188,K277='EXPENSE DATABASE'!$Z$189,K277='EXPENSE DATABASE'!$Z$190,K277='EXPENSE DATABASE'!$Z$191,K277='EXPENSE DATABASE'!$Z$192,K277='EXPENSE DATABASE'!$Z$193,K277='EXPENSE DATABASE'!$Z$194),O277,\"\")","v":""},{"$f":"IF(OR(K277='EXPENSE DATABASE'!$T$189,K277='EXPENSE DATABASE'!$T$190,K277='EXPENSE DATABASE'!$T$191),O277,\"\")","v":""},{"$f":"VLOOKUP(I277,'EXPENSE DATABASE'!$B$41:$C$65,2,FALSE)","v":{"$error":"#N/A"}},100,{"$f":"VLOOKUP(J277,'EXPENSE DATABASE'!$B$69:$C$168,2,FALSE)","v":{"$error":"#N/A"}},101,{"$f":"VLOOKUP(K277,'EXPENSE DATABASE'!$B$6:$C$35,2,FALSE)","v":{"$error":"#N/A"}},31,{"$f":"VLOOKUP(L277,'EXPENSE DATABASE'!$B$173:$C$176,2,FALSE)","v":{"$error":"#N/A"}},100,0,0,{"$f":"IF(L277=T('EXPENSE DATABASE'!$E$173),O277,0)","v":0},{"$f":"IF(L277=T('EXPENSE DATABASE'!$E$174),O277,0)","v":0},{"$f":"IF(L277=T('EXPENSE DATABASE'!$E$175),O277,0)","v":0},0,264]
[0,0,{"$nulls":12},{"v":0,"d":"$0.00"},{"v":0,"d":"$0.00"},{"v":0,"d":"$0.00"},0,{"$f":"IF(OR(K278='EXPENSE DATABASE'!$V$187,K278='EXPENSE DATABASE'!$V$188,K278='EXPENSE DATABASE'!$V$189,K278='EXPENSE DATABASE'!$V$190,K278='EXPENSE DATABASE'!$V$191,K278='EXPENSE DATABASE'!$V$192,K278='EXPENSE DATABASE'!$V$193,K278='EXPENSE DATABASE'!$V$194,K278='EXPENSE DATABASE'!$X$187,K278='EXPENSE DATABASE'!$X$188,K278='EXPENSE DATABASE'!$X$189,K278='EXPENSE DATABASE'!$X$190,K278='EXPENSE DATABASE'!$X$191,K278='EXPENSE DATABASE'!$X$192,K278='EXPENSE DATABASE'!$X$193,K278='EXPENSE DATABASE'!$X$194,K278='EXPENSE DATABASE'!$Z$187,K278='EXPENSE DATABASE'!$Z$188,K278='EXPENSE DATABASE'!$Z$189,K278='EXPENSE DATABASE'!$Z$190,K278='EXPENSE DATABASE'!$Z$191,K278='EXPENSE DATABASE'!$Z$192,K278='EXPENSE DATABASE'!$Z$193,K278='EXPENSE DATABASE'!$Z$194),O278,\"\")","v":""},{"$f":"IF(OR(K278='EXPENSE DATABASE'!$T$189,K278='EXPENSE DATABASE'!$T$190,K278='EXPENSE DATABASE'!$T$191),O278,\"\")","v":""},{"$f":"VLOOKUP(I278,'EXPENSE DATABASE'!$B$41:$C$65,2,FALSE)","v":{"$error":"#N/A"}},100,{"$f":"VLOOKUP(J278,'EXPENSE DATABASE'!$B$69:$C$168,2,FALSE)","v":{"$error":"#N/A"}},101,{"$f":"VLOOKUP(K278,'EXPENSE DATABASE'!$B$6:$C$35,2,FALSE)","v":{"$error":"#N/A"}},31,{"$f":"VLOOKUP(L278,'EXPENSE DATABASE'!$B$173:$C$176,2,FALSE)","v":{"$error":"#N/A"}},100,0,0,{"$f":"IF(L278=T('EXPENSE DATABASE'!$E$173),O278,0)","v":0},{"$f":"IF(L278=T('EXPENSE DATABASE'!$E$174),O278,0)","v":0},{"$f":"IF(L278=T('EXPENSE DATABASE'!$E$175),O278,0)","v":0},0,265]
[0,0,{"$nulls":12},{"v":0,"d":"$0.00"},{"v":0,"d":"$0.00"},{"v":0,"d":"$0.00"},0,{"$f":"IF(OR(K279='EXPENSE DATABASE'!$V$187,K279='EXPENSE DATABASE'!$V$188,K279='EXPENSE DATABASE'!$V$189,K279='EXPENSE DATABASE'!$V$190,K279='EXPENSE DATABASE'!$V$191,K279='EXPENSE DATABASE'!$V$192,K279='EXPENSE DATABASE'!$V$193,K279='EXPENSE DATABASE'!$V$194,K279='EXPENSE DATABASE'!$X$187,K279='EXPENSE DATABASE'!$X$188,K279='EXPENSE DATABASE'!$X$189,K279='EXPENSE DATABASE'!$X$190,K279='EXPENSE DATABASE'!$X$191,K279='EXPENSE DATABASE'!$X$192,K279='EXPENSE DATABASE'!$X$193,K279='EXPENSE DATABASE'!$X$194,K279='EXPENSE DATABASE'!$Z$187,K279='EXPENSE DATABASE'!$Z$188,K279='EXPENSE DATABASE'!$Z$189,K279='EXPENSE DATABASE'!$Z$190,K279='EXPENSE DATABASE'!$Z$191,K279='EXPENSE DATABASE'!$Z$192,K279='EXPENSE DATABASE'!$Z$193,K279='EXPENSE DATABASE'!$Z$194),O279,\"\")","v":""},{"$f":"IF(OR(K279='EXPENSE DATABASE'!$T$189,K279='EXPENSE DATABASE'!$T$190,K279='EXPENSE DATABASE'!$T$191),O279,\"\")","v":""},{"$f":"VLOOKUP(I279,'EXPENSE DATABASE'!$B$41:$C$65,2,FALSE)","v":{"$error":"#N/A"}},100,{"$f":"VLOOKUP(J279,'EXPENSE DATABASE'!$B$69:$C$168,2,FALSE)","v":{"$error":"#N/A"}},101,{"$f":"VLOOKUP(K279,'EXPENSE DATABASE'!$B$6:$C$35,2,FALSE)","v":{"$error":"#N/A"}},31,{"$f":"VLOOKUP(L279,'EXPENSE DATABASE'!$B$173:$C$176,2,FALSE)","v":{"$error":"#N/A"}},100,0,0,{"$f":"IF(L279=T('EXPENSE DATABASE'!$E$173),O279,0)","v":0},{"$f":"IF(L279=T('EXPENSE DATABASE'!$E$174),O279,0)","v":0},{"$f":"IF(L279=T('EXPENSE DATABASE'!$E$175),O279,0)","v":0},0,266]
[0,0,{"$nulls":12},{"v":0,"d":"$0.00"},{"v":0,"d":"$0.00"},{"v":0,"d":"$0.00"},0,{"$f":"IF(OR(K280='EXPENSE DATABASE'!$V$187,K280='EXPENSE DATABASE'!$V$188,K280='EXPENSE DATABASE'!$V$189,K280='EXPENSE DATABASE'!$V$190,K280='EXPENSE DATABASE'!$V$191,K280='EXPENSE DATABASE'!$V$192,K280='EXPENSE DATABASE'!$V$193,K280='EXPENSE DATABASE'!$V$194,K280='EXPENSE DATABASE'!$X$187,K280='EXPENSE DATABASE'!$X$188,K280='EXPENSE DATABASE'!$X$189,K280='EXPENSE DATABASE'!$X$190,K280='EXPENSE DATABASE'!$X$191,K280='EXPENSE DATABASE'!$X$192,K280='EXPENSE DATABASE'!$X$193,K280='EXPENSE DATABASE'!$X$194,K280='EXPENSE DATABASE'!$Z$187,K280='EXPENSE DATABASE'!$Z$188,K280='EXPENSE DATABASE'!$Z$189,K280='EXPENSE DATABASE'!$Z$190,K280='EXPENSE DATABASE'!$Z$191,K280='EXPENSE DATABASE'!$Z$192,K280='EXPENSE DATABASE'!$Z$193,K280='EXPENSE DATABASE'!$Z$194),O280,\"\")","v":""},{"$f":"IF(OR(K280='EXPENSE DATABASE'!$T$189,K280='EXPENSE DATABASE'!$T$190,K280='EXPENSE DATABASE'!$T$191),O280,\"\")","v":""},{"$f":"VLOOKUP(I280,'EXPENSE DATABASE'!$B$41:$C$65,2,FALSE)","v":{"$error":"#N/A"}},100,{"$f":"VLOOKUP(J280,'EXPENSE DATABASE'!$B$69:$C$168,2,FALSE)","v":{"$error":"#N/A"}},101,{"$f":"VLOOKUP(K280,'EXPENSE DATABASE'!$B$6:$C$35,2,FALSE)","v":{"$error":"#N/A"}},31,{"$f":"VLOOKUP(L280,'EXPENSE DATABASE'!$B$173:$C$176,2,FALSE)","v":{"$error":"#N/A"}},100,0,0,{"$f":"IF(L280=T('EXPENSE DATABASE'!$E$173),O280,0)","v":0},{"$f":"IF(L280=T('EXPENSE DATABASE'!$E$174),O280,0)","v":0},{"$f":"IF(L280=T('EXPENSE DATABASE'!$E$175),O280,0)","v":0},0,267]
[0,0,{"$nulls":12},{"v":0,"d":"$0.00"},{"v":0,"d":"$0.00"},{"v":0,"d":"$0.00"},0,{"$f":"IF(OR(K281='EXPENSE DATABASE'!$V$187,K281='EXPENSE DATABASE'!$V$188,K281='EXPENSE DATABASE'!$V$189,K281='EXPENSE DATABASE'!$V$190,K281='EXPENSE DATABASE'!$V$191,K281='EXPENSE DATABASE'!$V$192,K281='EXPENSE DATABASE'!$V$193,K281='EXPENSE DATABASE'!$V$194,K281='EXPENSE DATABASE'!$X$187,K281='EXPENSE DATABASE'!$X$188,K281='EXPENSE DATABASE'!$X$189,K281='EXPENSE DATABASE'!$X$190,K281='EXPENSE DATABASE'!$X$191,K281='EXPENSE DATABASE'!$X$192,K281='EXPENSE DATABASE'!$X$193,K281='EXPENSE DATABASE'!$X$194,K281='EXPENSE DATABASE'!$Z$187,K281='EXPENSE DATABASE'!$Z$188,K281='EXPENSE DATABASE'!$Z$189,K281='EXPENSE DATABASE'!$Z$190,K281='EXPENSE DATABASE'!$Z$191,K281='EXPENSE DATABASE'!$Z$192,K281='EXPENSE DATABASE'!$Z$193,K281='EXPENSE DATABASE'!$Z$194),O281,\"\")","v":""},{"$f":"IF(OR(K281='EXPENSE DATABASE'!$T$189,K281='EXPENSE DATABASE'!$T$190,K281='EXPENSE DATABASE'!$T$191),O281,\"\")","v":""},{"$f":"VLOOKUP(I281,'EXPENSE DATABASE'!$B$41:$C$65,2,FALSE)","v":{"$error":"#N/A"}},100,{"$f":"VLOOKUP(J281,'EXPENSE DATABASE'!$B$69:$C$168,2,FALSE)","v":{"$error":"#N/A"}},101,{"$f":"VLOOKUP(K281,'EXPENSE DATABASE'!$B$6:$C$35,2,FALSE)","v":{"$error":"#N/A"}},31,{"$f":"VLOOKUP(L281,'EXPENSE DATABASE'!$B$173:$C$176,2,FALSE)","v":{"$error":"#N/A"}},100,0,0,{"$f":"IF(L281=T('EXPENSE DATABASE'!$E$173),O281,0)","v":0},{"$f":"IF(L281=T('EXPENSE DATABASE'!$E$174),O281,0)","v":0},{"$f":"IF(L281=T('EXPENSE DATABASE'!$E$175),O281,0)","v":0},0,268]
[0,0,{"$nulls":12},{"v":0,"d":"$0.00"},{"v":0,"d":"$0.00"},{"v":0,"d":"$0.00"},0,{"$f":"IF(OR(K282='EXPENSE DATABASE'!$V$187,K282='EXPENSE DATABASE'!$V$188,K282='EXPENSE DATABASE'!$V$189,K282='EXPENSE DATABASE'!$V$190,K282='EXPENSE DATABASE'!$V$191,K282='EXPENSE DATABASE'!$V$192,K282='EXPENSE DATABASE'!$V$193,K282='EXPENSE DATABASE'!$V$194,K282='EXPENSE DATABASE'!$X$187,K282='EXPENSE DATABASE'!$X$188,K282='EXPENSE DATABASE'!$X$189,K282='EXPENSE DATABASE'!$X$190,K282='EXPENSE DATABASE'!$X$191,K282='EXPENSE DATABASE'!$X$192,K282='EXPENSE DATABASE'!$X$193,K282='EXPENSE DATABASE'!$X$194,K282='EXPENSE DATABASE'!$Z$187,K282='EXPENSE DATABASE'!$Z$188,K282='EXPENSE DATABASE'!$Z$189,K282='EXPENSE DATABASE'!$Z$190,K282='EXPENSE DATABASE'!$Z$191,K282='EXPENSE DATABASE'!$Z$192,K282='EXPENSE DATABASE'!$Z$193,K282='EXPENSE DATABASE'!$Z$194),O282,\"\")","v":""},{"$f":"IF(OR(K282='EXPENSE DATABASE'!$T$189,K282='EXPENSE DATABASE'!$T$190,K282='EXPENSE DATABASE'!$T$191),O282,\"\")","v":""},{"$f":"VLOOKUP(I282,'EXPENSE DATABASE'!$B$41:$C$65,2,FALSE)","v":{"$error":"#N/A"}},100,{"$f":"VLOOKUP(J282,'EXPENSE DATABASE'!$B$69:$C$168,2,FALSE)","v":{"$error":"#N/A"}},101,{"$f":"VLOOKUP(K282,'EXPENSE DATABASE'!$B$6:$C$35,2,FALSE)","v":{"$error":"#N/A"}},31,{"$f":"VLOOKUP(L282,'EXPENSE DATABASE'!$B$173:$C$176,2,FALSE)","v":{"$error":"#N/A"}},100,0,0,{"$f":"IF(L282=T('EXPENSE DATABASE'!$E$173),O282,0)","v":0},{"$f":"IF(L282=T('EXPENSE DATABASE'!$E$174),O282,0)","v":0},{"$f":"IF(L282=T('EXPENSE DATABASE'!$E$175),O282,0)","v":0},0,269]
[0,0,{"$nulls":12},{"v":0,"d":"$0.00"},{"v":0,"d":"$0.00"},{"v":0,"d":"$0.00"},0,{"$f":"IF(OR(K283='EXPENSE DATABASE'!$V$187,K283='EXPENSE DATABASE'!$V$188,K283='EXPENSE DATABASE'!$V$189,K283='EXPENSE DATABASE'!$V$190,K283='EXPENSE DATABASE'!$V$191,K283='EXPENSE DATABASE'!$V$192,K283='EXPENSE DATABASE'!$V$193,K283='EXPENSE DATABASE'!$V$194,K283='EXPENSE DATABASE'!$X$187,K283='EXPENSE DATABASE'!$X$188,K283='EXPENSE DATABASE'!$X$189,K283='EXPENSE DATABASE'!$X$190,K283='EXPENSE DATABASE'!$X$191,K283='EXPENSE DATABASE'!$X$192,K283='EXPENSE DATABASE'!$X$193,K283='EXPENSE DATABASE'!$X$194,K283='EXPENSE DATABASE'!$Z$187,K283='EXPENSE DATABASE'!$Z$188,K283='EXPENSE DATABASE'!$Z$189,K283='EXPENSE DATABASE'!$Z$190,K283='EXPENSE DATABASE'!$Z$191,K283='EXPENSE DATABASE'!$Z$192,K283='EXPENSE DATABASE'!$Z$193,K283='EXPENSE DATABASE'!$Z$194),O283,\"\")","v":""},{"$f":"IF(OR(K283='EXPENSE DATABASE'!$T$189,K283='EXPENSE DATABASE'!$T$190,K283='EXPENSE DATABASE'!$T$191),O283,\"\")","v":""},{"$f":"VLOOKUP(I283,'EXPENSE DATABASE'!$B$41:$C$65,2,FALSE)","v":{"$error":"#N/A"}},100,{"$f":"VLOOKUP(J283,'EXPENSE DATABASE'!$B$69:$C$168,2,FALSE)","v":{"$error":"#N/A"}},101,{"$f":"VLOOKUP(K283,'EXPENSE DATABASE'!$B$6:$C$35,2,FALSE)","v":{"$error":"#N/A"}},31,{"$f":"VLOOKUP(L283,'EXPENSE DATABASE'!$B$173:$C$176,2,FALSE)","v":{"$error":"#N/A"}},100,0,0,{"$f":"IF(L283=T('EXPENSE DATABASE'!$E$173),O283,0)","v":0},{"$f":"IF(L283=T('EXPENSE DATABASE'!$E$174),O283,0)","v":0},{"$f":"IF(L283=T('EXPENSE DATABASE'!$E$175),O283,0)","v":0},0,270]
[0,0,{"$nulls":12},{"v":0,"d":"$0.00"},{"v":0,"d":"$0.00"},{"v":0,"d":"$0.00"},0,{"$f":"IF(OR(K284='EXPENSE DATABASE'!$V$187,K284='EXPENSE DATABASE'!$V$188,K284='EXPENSE DATABASE'!$V$189,K284='EXPENSE DATABASE'!$V$190,K284='EXPENSE DATABASE'!$V$191,K284='EXPENSE DATABASE'!$V$192,K284='EXPENSE DATABASE'!$V$193,K284='EXPENSE DATABASE'!$V$194,K284='EXPENSE DATABASE'!$X$187,K284='EXPENSE DATABASE'!$X$188,K284='EXPENSE DATABASE'!$X$189,K284='EXPENSE DATABASE'!$X$190,K284='EXPENSE DATABASE'!$X$191,K284='EXPENSE DATABASE'!$X$192,K284='EXPENSE DATABASE'!$X$193,K284='EXPENSE DATABASE'!$X$194,K284='EXPENSE DATABASE'!$Z$187,K284='EXPENSE DATABASE'!$Z$188,K284='EXPENSE DATABASE'!$Z$189,K284='EXPENSE DATABASE'!$Z$190,K284='EXPENSE DATABASE'!$Z$191,K284='EXPENSE DATABASE'!$Z$192,K284='EXPENSE DATABASE'!$Z$193,K284='EXPENSE DATABASE'!$Z$194),O284,\"\")","v":""},{"$f":"IF(OR(K284='EXPENSE DATABASE'!$T$189,K284='EXPENSE DATABASE'!$T$190,K284='EXPENSE DATABASE'!$T$191),O284,\"\")","v":""},{"$f":"VLOOKUP(I284,'EXPENSE DATABASE'!$B$41:$C$65,2,FALSE)","v":{"$error":"#N/A"}},100,{"$f":"VLOOKUP(J284,'EXPENSE DATABASE'!$B$69:$C$168,2,FALSE)","v":{"$error":"#N/A"}},101,{"$f":"VLOOKUP(K284,'EXPENSE DATABASE'!$B$6:$C$35,2,FALSE)","v":{"$error":"#N/A"}},31,{"$f":"VLOOKUP(L284,'EXPENSE DATABASE'!$B$173:$C$176,2,FALSE)","v":{"$error":"#N/A"}},100,0,0,{"$f":"IF(L284=T('EXPENSE DATABASE'!$E$173),O284,0)","v":0},{"$f":"IF(L284=T('EXPENSE DATABASE'!$E$174),O284,0)","v":0},{"$f":"IF(L284=T('EXPENSE DATABASE'!$E$175),O284,0)","v":0},0,271]
[0,0,{"$nulls":12},{"v":0,"d":"$0.00"},{"v":0,"d":"$0.00"},{"v":0,"d":"$0.00"},0,{"$f":"IF(OR(K285='EXPENSE DATABASE'!$V$187,K285='EXPENSE DATABASE'!$V$188,K285='EXPENSE DATABASE'!$V$189,K285='EXPENSE DATABASE'!$V$190,K285='EXPENSE DATABASE'!$V$191,K285='EXPENSE DATABASE'!$V$192,K285='EXPENSE DATABASE'!$V$193,K285='EXPENSE DATABASE'!$V$194,K285='EXPENSE DATABASE'!$X$187,K285='EXPENSE DATABASE'!$X$188,K285='EXPENSE DATABASE'!$X$189,K285='EXPENSE DATABASE'!$X$190,K285='EXPENSE DATABASE'!$X$191,K285='EXPENSE DATABASE'!$X$192,K285='EXPENSE DATABASE'!$X$193,K285='EXPENSE DATABASE'!$X$194,K285='EXPENSE DATABASE'!$Z$187,K285='EXPENSE DATABASE'!$Z$188,K285='EXPENSE DATABASE'!$Z$189,K285='EXPENSE DATABASE'!$Z$190,K285='EXPENSE DATABASE'!$Z$191,K285='EXPENSE DATABASE'!$Z$192,K285='EXPENSE DATABASE'!$Z$193,K285='EXPENSE DATABASE'!$Z$194),O285,\"\")","v":""},{"$f":"IF(OR(K285='EXPENSE DATABASE'!$T$189,K285='EXPENSE DATABASE'!$T$190,K285='EXPENSE DATABASE'!$T$191),O285,\"\")","v":""},{"$f":"VLOOKUP(I285,'EXPENSE DATABASE'!$B$41:$C$65,2,FALSE)","v":{"$error":"#N/A"}},100,{"$f":"VLOOKUP(J285,'EXPENSE DATABASE'!$B$69:$C$168,2,FALSE)","v":{"$error":"#N/A"}},101,{"$f":"VLOOKUP(K285,'EXPENSE DATABASE'!$B$6:$C$35,2,FALSE)","v":{"$error":"#N/A"}},31,{"$f":"VLOOKUP(L285,'EXPENSE DATABASE'!$B$173:$C$176,2,FALSE)","v":{"$error":"#N/A"}},100,0,0,{"$f":"IF(L285=T('EXPENSE DATABASE'!$E$173),O285,0)","v":0},{"$f":"IF(L285=T('EXPENSE DATABASE'!$E$174),O285,0)","v":0},{"$f":"IF(L285=T('EXPENSE DATABASE'!$E$175),O285,0)","v":0},0,272]
[0,0,{"$nulls":12},{"v":0,"d":"$0.00"},{"v":0,"d":"$0.00"},{"v":0,"d":"$0.00"},0,{"$f":"IF(OR(K286='EXPENSE DATABASE'!$V$187,K286='EXPENSE DATABASE'!$V$188,K286='EXPENSE DATABASE'!$V$189,K286='EXPENSE DATABASE'!$V$190,K286='EXPENSE DATABASE'!$V$191,K286='EXPENSE DATABASE'!$V$192,K286='EXPENSE DATABASE'!$V$193,K286='EXPENSE DATABASE'!$V$194,K286='EXPENSE DATABASE'!$X$187,K286='EXPENSE DATABASE'!$X$188,K286='EXPENSE DATABASE'!$X$189,K286='EXPENSE DATABASE'!$X$190,K286='EXPENSE DATABASE'!$X$191,K286='EXPENSE DATABASE'!$X$192,K286='EXPENSE DATABASE'!$X$193,K286='EXPENSE DATABASE'!$X$194,K286='EXPENSE DATABASE'!$Z$187,K286='EXPENSE DATABASE'!$Z$188,K286='EXPENSE DATABASE'!$Z$189,K286='EXPENSE DATABASE'!$Z$190,K286='EXPENSE DATABASE'!$Z$191,K286='EXPENSE DATABASE'!$Z$192,K286='EXPENSE DATABASE'!$Z$193,K286='EXPENSE DATABASE'!$Z$194),O286,\"\")","v":""},{"$f":"IF(OR(K286='EXPENSE DATABASE'!$T$189,K286='EXPENSE DATABASE'!$T$190,K286='EXPENSE DATABASE'!$T$191),O286,\"\")","v":""},{"$f":"VLOOKUP(I286,'EXPENSE DATABASE'!$B$41:$C$65,2,FALSE)","v":{"$error":"#N/A"}},100,{"$f":"VLOOKUP(J286,'EXPENSE DATABASE'!$B$69:$C$168,2,FALSE)","v":{"$error":"#N/A"}},101,{"$f":"VLOOKUP(K286,'EXPENSE DATABASE'!$B$6:$C$35,2,FALSE)","v":{"$error":"#N/A"}},31,{"$f":"VLOOKUP(L286,'EXPENSE DATABASE'!$B$173:$C$176,2,FALSE)","v":{"$error":"#N/A"}},100,0,0,{"$f":"IF(L286=T('EXPENSE DATABASE'!$E$173),O286,0)","v":0},{"$f":"IF(L286=T('EXPENSE DATABASE'!$E$174),O286,0)","v":0},{"$f":"IF(L286=T('EXPENSE DATABASE'!$E$175),O286,0)","v":0},0,273]
[0,0,{"$nulls":12},{"v":0,"d":"$0.00"},{"v":0,"d":"$0.00"},{"v":0,"d":"$0.00"},0,{"$f":"IF(OR(K287='EXPENSE DATABASE'!$V$187,K287='EXPENSE DATABASE'!$V$188,K287='EXPENSE DATABASE'!$V$189,K287='EXPENSE DATABASE'!$V$190,K287='EXPENSE DATABASE'!$V$191,K287='EXPENSE DATABASE'!$V$192,K287='EXPENSE DATABASE'!$V$193,K287='EXPENSE DATABASE'!$V$194,K287='EXPENSE DATABASE'!$X$187,K287='EXPENSE DATABASE'!$X$188,K287='EXPENSE DATABASE'!$X$189,K287='EXPENSE DATABASE'!$X$190,K287='EXPENSE DATABASE'!$X$191,K287='EXPENSE DATABASE'!$X$192,K287='EXPENSE DATABASE'!$X$193,K287='EXPENSE DATABASE'!$X$194,K287='EXPENSE DATABASE'!$Z$187,K287='EXPENSE DATABASE'!$Z$188,K287='EXPENSE DATABASE'!$Z$189,K287='EXPENSE DATABASE'!$Z$190,K287='EXPENSE DATABASE'!$Z$191,K287='EXPENSE DATABASE'!$Z$192,K287='EXPENSE DATABASE'!$Z$193,K287='EXPENSE DATABASE'!$Z$194),O287,\"\")","v":""},{"$f":"IF(OR(K287='EXPENSE DATABASE'!$T$189,K287='EXPENSE DATABASE'!$T$190,K287='EXPENSE DATABASE'!$T$191),O287,\"\")","v":""},{"$f":"VLOOKUP(I287,'EXPENSE DATABASE'!$B$41:$C$65,2,FALSE)","v":{"$error":"#N/A"}},100,{"$f":"VLOOKUP(J287,'EXPENSE DATABASE'!$B$69:$C$168,2,FALSE)","v":{"$error":"#N/A"}},101,{"$f":"VLOOKUP(K287,'EXPENSE DATABASE'!$B$6:$C$35,2,FALSE)","v":{"$error":"#N/A"}},31,{"$f":"VLOOKUP(L287,'EXPENSE DATABASE'!$B$173:$C$176,2,FALSE)","v":{"$error":"#N/A"}},100,0,0,{"$f":"IF(L287=T('EXPENSE DATABASE'!$E$173),O287,0)","v":0},{"$f":"IF(L287=T('EXPENSE DATABASE'!$E$174),O287,0)","v":0},{"$f":"IF(L287=T('EXPENSE DATABASE'!$E$175),O287,0)","v":0},0,274]
[0,0,{"$nulls":12},{"v":0,"d":"$0.00"},{"v":0,"d":"$0.00"},{"v":0,"d":"$0.00"},0,{"$f":"IF(OR(K288='EXPENSE DATABASE'!$V$187,K288='EXPENSE DATABASE'!$V$188,K288='EXPENSE DATABASE'!$V$189,K288='EXPENSE DATABASE'!$V$190,K288='EXPENSE DATABASE'!$V$191,K288='EXPENSE DATABASE'!$V$192,K288='EXPENSE DATABASE'!$V$193,K288='EXPENSE DATABASE'!$V$194,K288='EXPENSE DATABASE'!$X$187,K288='EXPENSE DATABASE'!$X$188,K288='EXPENSE DATABASE'!$X$189,K288='EXPENSE DATABASE'!$X$190,K288='EXPENSE DATABASE'!$X$191,K288='EXPENSE DATABASE'!$X$192,K288='EXPENSE DATABASE'!$X$193,K288='EXPENSE DATABASE'!$X$194,K288='EXPENSE DATABASE'!$Z$187,K288='EXPENSE DATABASE'!$Z$188,K288='EXPENSE DATABASE'!$Z$189,K288='EXPENSE DATABASE'!$Z$190,K288='EXPENSE DATABASE'!$Z$191,K288='EXPENSE DATABASE'!$Z$192,K288='EXPENSE DATABASE'!$Z$193,K288='EXPENSE DATABASE'!$Z$194),O288,\"\")","v":""},{"$f":"IF(OR(K288='EXPENSE DATABASE'!$T$189,K288='EXPENSE DATABASE'!$T$190,K288='EXPENSE DATABASE'!$T$191),O288,\"\")","v":""},{"$f":"VLOOKUP(I288,'EXPENSE DATABASE'!$B$41:$C$65,2,FALSE)","v":{"$error":"#N/A"}},100,{"$f":"VLOOKUP(J288,'EXPENSE DATABASE'!$B$69:$C$168,2,FALSE)","v":{"$error":"#N/A"}},101,{"$f":"VLOOKUP(K288,'EXPENSE DATABASE'!$B$6:$C$35,2,FALSE)","v":{"$error":"#N/A"}},31,{"$f":"VLOOKUP(L288,'EXPENSE DATABASE'!$B$173:$C$176,2,FALSE)","v":{"$error":"#N/A"}},100,0,0,{"$f":"IF(L288=T('EXPENSE DATABASE'!$E$173),O288,0)","v":0},{"$f":"IF(L288=T('EXPENSE DATABASE'!$E$174),O288,0)","v":0},{"$f":"IF(L288=T('EXPENSE DATABASE'!$E$175),O288,0)","v":0},0,275]
[0,0,{"$nulls":12},{"v":0,"d":"$0.00"},{"v":0,"d":"$0.00"},{"v":0,"d":"$0.00"},0,{"$f":"IF(OR(K289='EXPENSE DATABASE'!$V$187,K289='EXPENSE DATABASE'!$V$188,K289='EXPENSE DATABASE'!$V$189,K289='EXPENSE DATABASE'!$V$190,K289='EXPENSE DATABASE'!$V$191,K289='EXPENSE DATABASE'!$V$192,K289='EXPENSE DATABASE'!$V$193,K289='EXPENSE DATABASE'!$V$194,K289='EXPENSE DATABASE'!$X$187,K289='EXPENSE DATABASE'!$X$188,K289='EXPENSE DATABASE'!$X$189,K289='EXPENSE DATABASE'!$X$190,K289='EXPENSE DATABASE'!$X$191,K289='EXPENSE DATABASE'!$X$192,K289='EXPENSE DATABASE'!$X$193,K289='EXPENSE DATABASE'!$X$194,K289='EXPENSE DATABASE'!$Z$187,K289='EXPENSE DATABASE'!$Z$188,K289='EXPENSE DATABASE'!$Z$189,K289='EXPENSE DATABASE'!$Z$190,K289='EXPENSE DATABASE'!$Z$191,K289='EXPENSE DATABASE'!$Z$192,K289='EXPENSE DATABASE'!$Z$193,K289='EXPENSE DATABASE'!$Z$194),O289,\"\")","v":""},{"$f":"IF(OR(K289='EXPENSE DATABASE'!$T$189,K289='EXPENSE DATABASE'!$T$190,K289='EXPENSE DATABASE'!$T$191),O289,\"\")","v":""},{"$f":"VLOOKUP(I289,'EXPENSE DATABASE'!$B$41:$C$65,2,FALSE)","v":{"$error":"#N/A"}},100,{"$f":"VLOOKUP(J289,'EXPENSE DATABASE'!$B$69:$C$168,2,FALSE)","v":{"$error":"#N/A"}},101,{"$f":"VLOOKUP(K289,'EXPENSE DATABASE'!$B$6:$C$35,2,FALSE)","v":{"$error":"#N/A"}},31,{"$f":"VLOOKUP(L289,'EXPENSE DATABASE'!$B$173:$C$176,2,FALSE)","v":{"$error":"#N/A"}},100,0,0,{"$f":"IF(L289=T('EXPENSE DATABASE'!$E$173),O289,0)","v":0},{"$f":"IF(L289=T('EXPENSE DATABASE'!$E$174),O289,0)","v":0},{"$f":"IF(L289=T('EXPENSE DATABASE'!$E$175),O289,0)","v":0},0,276]
[0,0,{"$nulls":12},{"v":0,"d":"$0.00"},{"v":0,"d":"$0.00"},{"v":0,"d":"$0.00"},0,{"$f":"IF(OR(K290='EXPENSE DATABASE'!$V$187,K290='EXPENSE DATABASE'!$V$188,K290='EXPENSE DATABASE'!$V$189,K290='EXPENSE DATABASE'!$V$190,K290='EXPENSE DATABASE'!$V$191,K290='EXPENSE DATABASE'!$V$192,K290='EXPENSE DATABASE'!$V$193,K290='EXPENSE DATABASE'!$V$194,K290='EXPENSE DATABASE'!$X$187,K290='EXPENSE DATABASE'!$X$188,K290='EXPENSE DATABASE'!$X$189,K290='EXPENSE DATABASE'!$X$190,K290='EXPENSE DATABASE'!$X$191,K290='EXPENSE DATABASE'!$X$192,K290='EXPENSE DATABASE'!$X$193,K290='EXPENSE DATABASE'!$X$194,K290='EXPENSE DATABASE'!$Z$187,K290='EXPENSE DATABASE'!$Z$188,K290='EXPENSE DATABASE'!$Z$189,K290='EXPENSE DATABASE'!$Z$190,K290='EXPENSE DATABASE'!$Z$191,K290='EXPENSE DATABASE'!$Z$192,K290='EXPENSE DATABASE'!$Z$193,K290='EXPENSE DATABASE'!$Z$194),O290,\"\")","v":""},{"$f":"IF(OR(K290='EXPENSE DATABASE'!$T$189,K290='EXPENSE DATABASE'!$T$190,K290='EXPENSE DATABASE'!$T$191),O290,\"\")","v":""},{"$f":"VLOOKUP(I290,'EXPENSE DATABASE'!$B$41:$C$65,2,FALSE)","v":{"$error":"#N/A"}},100,{"$f":"VLOOKUP(J290,'EXPENSE DATABASE'!$B$69:$C$168,2,FALSE)","v":{"$error":"#N/A"}},101,{"$f":"VLOOKUP(K290,'EXPENSE DATABASE'!$B$6:$C$35,2,FALSE)","v":{"$error":"#N/A"}},31,{"$f":"VLOOKUP(L290,'EXPENSE DATABASE'!$B$173:$C$176,2,FALSE)","v":{"$error":"#N/A"}},100,0,0,{"$f":"IF(L290=T('EXPENSE DATABASE'!$E$173),O290,0)","v":0},{"$f":"IF(L290=T('EXPENSE DATABASE'!$E$174),O290,0)","v":0},{"$f":"IF(L290=T('EXPENSE DATABASE'!$E$175),O290,0)","v":0},0,277]
[0,0,{"$nulls":12},{"v":0,"d":"$0.00"},{"v":0,"d":"$0.00"},{"v":0,"d":"$0.00"},0,{"$f":"IF(OR(K291='EXPENSE DATABASE'!$V$187,K291='EXPENSE DATABASE'!$V$188,K291='EXPENSE DATABASE'!$V$189,K291='EXPENSE DATABASE'!$V$190,K291='EXPENSE DATABASE'!$V$191,K291='EXPENSE DATABASE'!$V$192,K291='EXPENSE DATABASE'!$V$193,K291='EXPENSE DATABASE'!$V$194,K291='EXPENSE DATABASE'!$X$187,K291='EXPENSE DATABASE'!$X$188,K291='EXPENSE DATABASE'!$X$189,K291='EXPENSE DATABASE'!$X$190,K291='EXPENSE DATABASE'!$X$191,K291='EXPENSE DATABASE'!$X$192,K291='EXPENSE DATABASE'!$X$193,K291='EXPENSE DATABASE'!$X$194,K291='EXPENSE DATABASE'!$Z$187,K291='EXPENSE DATABASE'!$Z$188,K291='EXPENSE DATABASE'!$Z$189,K291='EXPENSE DATABASE'!$Z$190,K291='EXPENSE DATABASE'!$Z$191,K291='EXPENSE DATABASE'!$Z$192,K291='EXPENSE DATABASE'!$Z$193,K291='EXPENSE DATABASE'!$Z$194),O291,\"\")","v":""},{"$f":"IF(OR(K291='EXPENSE DATABASE'!$T$189,K291='EXPENSE DATABASE'!$T$190,K291='EXPENSE DATABASE'!$T$191),O291,\"\")","v":""},{"$f":"VLOOKUP(I291,'EXPENSE DATABASE'!$B$41:$C$65,2,FALSE)","v":{"$error":"#N/A"}},100,{"$f":"VLOOKUP(J291,'EXPENSE DATABASE'!$B$69:$C$168,2,FALSE)","v":{"$error":"#N/A"}},101,{"$f":"VLOOKUP(K291,'EXPENSE DATABASE'!$B$6:$C$35,2,FALSE)","v":{"$error":"#N/A"}},31,{"$f":"VLOOKUP(L291,'EXPENSE DATABASE'!$B$173:$C$176,2,FALSE)","v":{"$error":"#N/A"}},100,0,0,{"$f":"IF(L291=T('EXPENSE DATABASE'!$E$173),O291,0)","v":0},{"$f":"IF(L291=T('EXPENSE DATABASE'!$E$174),O291,0)","v":0},{"$f":"IF(L291=T('EXPENSE DATABASE'!$E$175),O291,0)","v":0},0,278]
[0,0,{"$nulls":12},{"v":0,"d":"$0.00"},{"v":0,"d":"$0.00"},{"v":0,"d":"$0.00"},0,{"$f":"IF(OR(K292='EXPENSE DATABASE'!$V$187,K292='EXPENSE DATABASE'!$V$188,K292='EXPENSE DATABASE'!$V$189,K292='EXPENSE DATABASE'!$V$190,K292='EXPENSE DATABASE'!$V$191,K292='EXPENSE DATABASE'!$V$192,K292='EXPENSE DATABASE'!$V$193,K292='EXPENSE DATABASE'!$V$194,K292='EXPENSE DATABASE'!$X$187,K292='EXPENSE DATABASE'!$X$188,K292='EXPENSE DATABASE'!$X$189,K292='EXPENSE DATABASE'!$X$190,K292='EXPENSE DATABASE'!$X$191,K292='EXPENSE DATABASE'!$X$192,K292='EXPENSE DATABASE'!$X$193,K292='EXPENSE DATABASE'!$X$194,K292='EXPENSE DATABASE'!$Z$187,K292='EXPENSE DATABASE'!$Z$188,K292='EXPENSE DATABASE'!$Z$189,K292='EXPENSE DATABASE'!$Z$190,K292='EXPENSE DATABASE'!$Z$191,K292='EXPENSE DATABASE'!$Z$192,K292='EXPENSE DATABASE'!$Z$193,K292='EXPENSE DATABASE'!$Z$194),O292,\"\")","v":""},{"$f":"IF(OR(K292='EXPENSE DATABASE'!$T$189,K292='EXPENSE DATABASE'!$T$190,K292='EXPENSE DATABASE'!$T$191),O292,\"\")","v":""},{"$f":"VLOOKUP(I292,'EXPENSE DATABASE'!$B$41:$C$65,2,FALSE)","v":{"$error":"#N/A"}},100,{"$f":"VLOOKUP(J292,'EXPENSE DATABASE'!$B$69:$C$168,2,FALSE)","v":{"$error":"#N/A"}},101,{"$f":"VLOOKUP(K292,'EXPENSE DATABASE'!$B$6:$C$35,2,FALSE)","v":{"$error":"#N/A"}},31,{"$f":"VLOOKUP(L292,'EXPENSE DATABASE'!$B$173:$C$176,2,FALSE)","v":{"$error":"#N/A"}},100,0,0,{"$f":"IF(L292=T('EXPENSE DATABASE'!$E$173),O292,0)","v":0},{"$f":"IF(L292=T('EXPENSE DATABASE'!$E$174),O292,0)","v":0},{"$f":"IF(L292=T('EXPENSE DATABASE'!$E$175),O292,0)","v":0},0,279]
[0,0,{"$nulls":12},{"v":0,"d":"$0.00"},{"v":0,"d":"$0.00"},{"v":0,"d":"$0.00"},0,{"$f":"IF(OR(K293='EXPENSE DATABASE'!$V$187,K293='EXPENSE DATABASE'!$V$188,K293='EXPENSE DATABASE'!$V$189,K293='EXPENSE DATABASE'!$V$190,K293='EXPENSE DATABASE'!$V$191,K293='EXPENSE DATABASE'!$V$192,K293='EXPENSE DATABASE'!$V$193,K293='EXPENSE DATABASE'!$V$194,K293='EXPENSE DATABASE'!$X$187,K293='EXPENSE DATABASE'!$X$188,K293='EXPENSE DATABASE'!$X$189,K293='EXPENSE DATABASE'!$X$190,K293='EXPENSE DATABASE'!$X$191,K293='EXPENSE DATABASE'!$X$192,K293='EXPENSE DATABASE'!$X$193,K293='EXPENSE DATABASE'!$X$194,K293='EXPENSE DATABASE'!$Z$187,K293='EXPENSE DATABASE'!$Z$188,K293='EXPENSE DATABASE'!$Z$189,K293='EXPENSE DATABASE'!$Z$190,K293='EXPENSE DATABASE'!$Z$191,K293='EXPENSE DATABASE'!$Z$192,K293='EXPENSE DATABASE'!$Z$193,K293='EXPENSE DATABASE'!$Z$194),O293,\"\")","v":""},{"$f":"IF(OR(K293='EXPENSE DATABASE'!$T$189,K293='EXPENSE DATABASE'!$T$190,K293='EXPENSE DATABASE'!$T$191),O293,\"\")","v":""},{"$f":"VLOOKUP(I293,'EXPENSE DATABASE'!$B$41:$C$65,2,FALSE)","v":{"$error":"#N/A"}},100,{"$f":"VLOOKUP(J293,'EXPENSE DATABASE'!$B$69:$C$168,2,FALSE)","v":{"$error":"#N/A"}},101,{"$f":"VLOOKUP(K293,'EXPENSE DATABASE'!$B$6:$C$35,2,FALSE)","v":{"$error":"#N/A"}},31,{"$f":"VLOOKUP(L293,'EXPENSE DATABASE'!$B$173:$C$176,2,FALSE)","v":{"$error":"#N/A"}},100,0,0,{"$f":"IF(L293=T('EXPENSE DATABASE'!$E$173),O293,0)","v":0},{"$f":"IF(L293=T('EXPENSE DATABASE'!$E$174),O293,0)","v":0},{"$f":"IF(L293=T('EXPENSE DATABASE'!$E$175),O293,0)","v":0},0,280]
[0,0,{"$nulls":12},{"v":0,"d":"$0.00"},{"v":0,"d":"$0.00"},{"v":0,"d":"$0.00"},0,{"$f":"IF(OR(K294='EXPENSE DATABASE'!$V$187,K294='EXPENSE DATABASE'!$V$188,K294='EXPENSE DATABASE'!$V$189,K294='EXPENSE DATABASE'!$V$190,K294='EXPENSE DATABASE'!$V$191,K294='EXPENSE DATABASE'!$V$192,K294='EXPENSE DATABASE'!$V$193,K294='EXPENSE DATABASE'!$V$194,K294='EXPENSE DATABASE'!$X$187,K294='EXPENSE DATABASE'!$X$188,K294='EXPENSE DATABASE'!$X$189,K294='EXPENSE DATABASE'!$X$190,K294='EXPENSE DATABASE'!$X$191,K294='EXPENSE DATABASE'!$X$192,K294='EXPENSE DATABASE'!$X$193,K294='EXPENSE DATABASE'!$X$194,K294='EXPENSE DATABASE'!$Z$187,K294='EXPENSE DATABASE'!$Z$188,K294='EXPENSE DATABASE'!$Z$189,K294='EXPENSE DATABASE'!$Z$190,K294='EXPENSE DATABASE'!$Z$191,K294='EXPENSE DATABASE'!$Z$192,K294='EXPENSE DATABASE'!$Z$193,K294='EXPENSE DATABASE'!$Z$194),O294,\"\")","v":""},{"$f":"IF(OR(K294='EXPENSE DATABASE'!$T$189,K294='EXPENSE DATABASE'!$T$190,K294='EXPENSE DATABASE'!$T$191),O294,\"\")","v":""},{"$f":"VLOOKUP(I294,'EXPENSE DATABASE'!$B$41:$C$65,2,FALSE)","v":{"$error":"#N/A"}},100,{"$f":"VLOOKUP(J294,'EXPENSE DATABASE'!$B$69:$C$168,2,FALSE)","v":{"$error":"#N/A"}},101,{"$f":"VLOOKUP(K294,'EXPENSE DATABASE'!$B$6:$C$35,2,FALSE)","v":{"$error":"#N/A"}},31,{"$f":"VLOOKUP(L294,'EXPENSE DATABASE'!$B$173:$C$176,2,FALSE)","v":{"$error":"#N/A"}},100,0,0,{"$f":"IF(L294=T('EXPENSE DATABASE'!$E$173),O294,0)","v":0},{"$f":"IF(L294=T('EXPENSE DATABASE'!$E$174),O294,0)","v":0},{"$f":"IF(L294=T('EXPENSE DATABASE'!$E$175),O294,0)","v":0},0,281]
[0,0,{"$nulls":12},{"v":0,"d":"$0.00"},{"v":0,"d":"$0.00"},{"v":0,"d":"$0.00"},0,{"$f":"IF(OR(K295='EXPENSE DATABASE'!$V$187,K295='EXPENSE DATABASE'!$V$188,K295='EXPENSE DATABASE'!$V$189,K295='EXPENSE DATABASE'!$V$190,K295='EXPENSE DATABASE'!$V$191,K295='EXPENSE DATABASE'!$V$192,K295='EXPENSE DATABASE'!$V$193,K295='EXPENSE DATABASE'!$V$194,K295='EXPENSE DATABASE'!$X$187,K295='EXPENSE DATABASE'!$X$188,K295='EXPENSE DATABASE'!$X$189,K295='EXPENSE DATABASE'!$X$190,K295='EXPENSE DATABASE'!$X$191,K295='EXPENSE DATABASE'!$X$192,K295='EXPENSE DATABASE'!$X$193,K295='EXPENSE DATABASE'!$X$194,K295='EXPENSE DATABASE'!$Z$187,K295='EXPENSE DATABASE'!$Z$188,K295='EXPENSE DATABASE'!$Z$189,K295='EXPENSE DATABASE'!$Z$190,K295='EXPENSE DATABASE'!$Z$191,K295='EXPENSE DATABASE'!$Z$192,K295='EXPENSE DATABASE'!$Z$193,K295='EXPENSE DATABASE'!$Z$194),O295,\"\")","v":""},{"$f":"IF(OR(K295='EXPENSE DATABASE'!$T$189,K295='EXPENSE DATABASE'!$T$190,K295='EXPENSE DATABASE'!$T$191),O295,\"\")","v":""},{"$f":"VLOOKUP(I295,'EXPENSE DATABASE'!$B$41:$C$65,2,FALSE)","v":{"$error":"#N/A"}},100,{"$f":"VLOOKUP(J295,'EXPENSE DATABASE'!$B$69:$C$168,2,FALSE)","v":{"$error":"#N/A"}},101,{"$f":"VLOOKUP(K295,'EXPENSE DATABASE'!$B$6:$C$35,2,FALSE)","v":{"$error":"#N/A"}},31,{"$f":"VLOOKUP(L295,'EXPENSE DATABASE'!$B$173:$C$176,2,FALSE)","v":{"$error":"#N/A"}},100,0,0,{"$f":"IF(L295=T('EXPENSE DATABASE'!$E$173),O295,0)","v":0},{"$f":"IF(L295=T('EXPENSE DATABASE'!$E$174),O295,0)","v":0},{"$f":"IF(L295=T('EXPENSE DATABASE'!$E$175),O295,0)","v":0},0,282]
[0,0,{"$nulls":12},{"v":0,"d":"$0.00"},{"v":0,"d":"$0.00"},{"v":0,"d":"$0.00"},0,{"$f":"IF(OR(K296='EXPENSE DATABASE'!$V$187,K296='EXPENSE DATABASE'!$V$188,K296='EXPENSE DATABASE'!$V$189,K296='EXPENSE DATABASE'!$V$190,K296='EXPENSE DATABASE'!$V$191,K296='EXPENSE DATABASE'!$V$192,K296='EXPENSE DATABASE'!$V$193,K296='EXPENSE DATABASE'!$V$194,K296='EXPENSE DATABASE'!$X$187,K296='EXPENSE DATABASE'!$X$188,K296='EXPENSE DATABASE'!$X$189,K296='EXPENSE DATABASE'!$X$190,K296='EXPENSE DATABASE'!$X$191,K296='EXPENSE DATABASE'!$X$192,K296='EXPENSE DATABASE'!$X$193,K296='EXPENSE DATABASE'!$X$194,K296='EXPENSE DATABASE'!$Z$187,K296='EXPENSE DATABASE'!$Z$188,K296='EXPENSE DATABASE'!$Z$189,K296='EXPENSE DATABASE'!$Z$190,K296='EXPENSE DATABASE'!$Z$191,K296='EXPENSE DATABASE'!$Z$192,K296='EXPENSE DATABASE'!$Z$193,K296='EXPENSE DATABASE'!$Z$194),O296,\"\")","v":""},{"$f":"IF(OR(K296='EXPENSE DATABASE'!$T$189,K296='EXPENSE DATABASE'!$T$190,K296='EXPENSE DATABASE'!$T$191),O296,\"\")","v":""},{"$f":"VLOOKUP(I296,'EXPENSE DATABASE'!$B$41:$C$65,2,FALSE)","v":{"$error":"#N/A"}},100,{"$f":"VLOOKUP(J296,'EXPENSE DATABASE'!$B$69:$C$168,2,FALSE)","v":{"$error":"#N/A"}},101,{"$f":"VLOOKUP(K296,'EXPENSE DATABASE'!$B$6:$C$35,2,FALSE)","v":{"$error":"#N/A"}},31,{"$f":"VLOOKUP(L296,'EXPENSE DATABASE'!$B$173:$C$176,2,FALSE)","v":{"$error":"#N/A"}},100,0,0,{"$f":"IF(L296=T('EXPENSE DATABASE'!$E$173),O296,0)","v":0},{"$f":"IF(L296=T('EXPENSE DATABASE'!$E$174),O296,0)","v":0},{"$f":"IF(L296=T('EXPENSE DATABASE'!$E$175),O296,0)","v":0},0,283]
[0,0,{"$nulls":12},{"v":0,"d":"$0.00"},{"v":0,"d":"$0.00"},{"v":0,"d":"$0.00"},0,{"$f":"IF(OR(K297='EXPENSE DATABASE'!$V$187,K297='EXPENSE DATABASE'!$V$188,K297='EXPENSE DATABASE'!$V$189,K297='EXPENSE DATABASE'!$V$190,K297='EXPENSE DATABASE'!$V$191,K297='EXPENSE DATABASE'!$V$192,K297='EXPENSE DATABASE'!$V$193,K297='EXPENSE DATABASE'!$V$194,K297='EXPENSE DATABASE'!$X$187,K297='EXPENSE DATABASE'!$X$188,K297='EXPENSE DATABASE'!$X$189,K297='EXPENSE DATABASE'!$X$190,K297='EXPENSE DATABASE'!$X$191,K297='EXPENSE DATABASE'!$X$192,K297='EXPENSE DATABASE'!$X$193,K297='EXPENSE DATABASE'!$X$194,K297='EXPENSE DATABASE'!$Z$187,K297='EXPENSE DATABASE'!$Z$188,K297='EXPENSE DATABASE'!$Z$189,K297='EXPENSE DATABASE'!$Z$190,K297='EXPENSE DATABASE'!$Z$191,K297='EXPENSE DATABASE'!$Z$192,K297='EXPENSE DATABASE'!$Z$193,K297='EXPENSE DATABASE'!$Z$194),O297,\"\")","v":""},{"$f":"IF(OR(K297='EXPENSE DATABASE'!$T$189,K297='EXPENSE DATABASE'!$T$190,K297='EXPENSE DATABASE'!$T$191),O297,\"\")","v":""},{"$f":"VLOOKUP(I297,'EXPENSE DATABASE'!$B$41:$C$65,2,FALSE)","v":{"$error":"#N/A"}},100,{"$f":"VLOOKUP(J297,'EXPENSE DATABASE'!$B$69:$C$168,2,FALSE)","v":{"$error":"#N/A"}},101,{"$f":"VLOOKUP(K297,'EXPENSE DATABASE'!$B$6:$C$35,2,FALSE)","v":{"$error":"#N/A"}},31,{"$f":"VLOOKUP(L297,'EXPENSE DATABASE'!$B$173:$C$176,2,FALSE)","v":{"$error":"#N/A"}},100,0,0,{"$f":"IF(L297=T('EXPENSE DATABASE'!$E$173),O297,0)","v":0},{"$f":"IF(L297=T('EXPENSE DATABASE'!$E$174),O297,0)","v":0},{"$f":"IF(L297=T('EXPENSE DATABASE'!$E$175),O297,0)","v":0},0,284]
[0,0,{"$nulls":12},{"v":0,"d":"$0.00"},{"v":0,"d":"$0.00"},{"v":0,"d":"$0.00"},0,{"$f":"IF(OR(K298='EXPENSE DATABASE'!$V$187,K298='EXPENSE DATABASE'!$V$188,K298='EXPENSE DATABASE'!$V$189,K298='EXPENSE DATABASE'!$V$190,K298='EXPENSE DATABASE'!$V$191,K298='EXPENSE DATABASE'!$V$192,K298='EXPENSE DATABASE'!$V$193,K298='EXPENSE DATABASE'!$V$194,K298='EXPENSE DATABASE'!$X$187,K298='EXPENSE DATABASE'!$X$188,K298='EXPENSE DATABASE'!$X$189,K298='EXPENSE DATABASE'!$X$190,K298='EXPENSE DATABASE'!$X$191,K298='EXPENSE DATABASE'!$X$192,K298='EXPENSE DATABASE'!$X$193,K298='EXPENSE DATABASE'!$X$194,K298='EXPENSE DATABASE'!$Z$187,K298='EXPENSE DATABASE'!$Z$188,K298='EXPENSE DATABASE'!$Z$189,K298='EXPENSE DATABASE'!$Z$190,K298='EXPENSE DATABASE'!$Z$191,K298='EXPENSE DATABASE'!$Z$192,K298='EXPENSE DATABASE'!$Z$193,K298='EXPENSE DATABASE'!$Z$194),O298,\"\")","v":""},{"$f":"IF(OR(K298='EXPENSE DATABASE'!$T$189,K298='EXPENSE DATABASE'!$T$190,K298='EXPENSE DATABASE'!$T$191),O298,\"\")","v":""},{"$f":"VLOOKUP(I298,'EXPENSE DATABASE'!$B$41:$C$65,2,FALSE)","v":{"$error":"#N/A"}},100,{"$f":"VLOOKUP(J298,'EXPENSE DATABASE'!$B$69:$C$168,2,FALSE)","v":{"$error":"#N/A"}},101,{"$f":"VLOOKUP(K298,'EXPENSE DATABASE'!$B$6:$C$35,2,FALSE)","v":{"$error":"#N/A"}},31,{"$f":"VLOOKUP(L298,'EXPENSE DATABASE'!$B$173:$C$176,2,FALSE)","v":{"$error":"#N/A"}},100,0,0,{"$f":"IF(L298=T('EXPENSE DATABASE'!$E$173),O298,0)","v":0},{"$f":"IF(L298=T('EXPENSE DATABASE'!$E$174),O298,0)","v":0},{"$f":"IF(L298=T('EXPENSE DATABASE'!$E$175),O298,0)","v":0},0,285]
[0,0,{"$nulls":12},{"v":0,"d":"$0.00"},{"v":0,"d":"$0.00"},{"v":0,"d":"$0.00"},0,{"$f":"IF(OR(K299='EXPENSE DATABASE'!$V$187,K299='EXPENSE DATABASE'!$V$188,K299='EXPENSE DATABASE'!$V$189,K299='EXPENSE DATABASE'!$V$190,K299='EXPENSE DATABASE'!$V$191,K299='EXPENSE DATABASE'!$V$192,K299='EXPENSE DATABASE'!$V$193,K299='EXPENSE DATABASE'!$V$194,K299='EXPENSE DATABASE'!$X$187,K299='EXPENSE DATABASE'!$X$188,K299='EXPENSE DATABASE'!$X$189,K299='EXPENSE DATABASE'!$X$190,K299='EXPENSE DATABASE'!$X$191,K299='EXPENSE DATABASE'!$X$192,K299='EXPENSE DATABASE'!$X$193,K299='EXPENSE DATABASE'!$X$194,K299='EXPENSE DATABASE'!$Z$187,K299='EXPENSE DATABASE'!$Z$188,K299='EXPENSE DATABASE'!$Z$189,K299='EXPENSE DATABASE'!$Z$190,K299='EXPENSE DATABASE'!$Z$191,K299='EXPENSE DATABASE'!$Z$192,K299='EXPENSE DATABASE'!$Z$193,K299='EXPENSE DATABASE'!$Z$194),O299,\"\")","v":""},{"$f":"IF(OR(K299='EXPENSE DATABASE'!$T$189,K299='EXPENSE DATABASE'!$T$190,K299='EXPENSE DATABASE'!$T$191),O299,\"\")","v":""},{"$f":"VLOOKUP(I299,'EXPENSE DATABASE'!$B$41:$C$65,2,FALSE)","v":{"$error":"#N/A"}},100,{"$f":"VLOOKUP(J299,'EXPENSE DATABASE'!$B$69:$C$168,2,FALSE)","v":{"$error":"#N/A"}},101,{"$f":"VLOOKUP(K299,'EXPENSE DATABASE'!$B$6:$C$35,2,FALSE)","v":{"$error":"#N/A"}},31,{"$f":"VLOOKUP(L299,'EXPENSE DATABASE'!$B$173:$C$176,2,FALSE)","v":{"$error":"#N/A"}},100,0,0,{"$f":"IF(L299=T('EXPENSE DATABASE'!$E$173),O299,0)","v":0},{"$f":"IF(L299=T('EXPENSE DATABASE'!$E$174),O299,0)","v":0},{"$f":"IF(L299=T('EXPENSE DATABASE'!$E$175),O299,0)","v":0},0,286]
[0,0,{"$nulls":12},{"v":0,"d":"$0.00"},{"v":0,"d":"$0.00"},{"v":0,"d":"$0.00"},0,{"$f":"IF(OR(K300='EXPENSE DATABASE'!$V$187,K300='EXPENSE DATABASE'!$V$188,K300='EXPENSE DATABASE'!$V$189,K300='EXPENSE DATABASE'!$V$190,K300='EXPENSE DATABASE'!$V$191,K300='EXPENSE DATABASE'!$V$192,K300='EXPENSE DATABASE'!$V$193,K300='EXPENSE DATABASE'!$V$194,K300='EXPENSE DATABASE'!$X$187,K300='EXPENSE DATABASE'!$X$188,K300='EXPENSE DATABASE'!$X$189,K300='EXPENSE DATABASE'!$X$190,K300='EXPENSE DATABASE'!$X$191,K300='EXPENSE DATABASE'!$X$192,K300='EXPENSE DATABASE'!$X$193,K300='EXPENSE DATABASE'!$X$194,K300='EXPENSE DATABASE'!$Z$187,K300='EXPENSE DATABASE'!$Z$188,K300='EXPENSE DATABASE'!$Z$189,K300='EXPENSE DATABASE'!$Z$190,K300='EXPENSE DATABASE'!$Z$191,K300='EXPENSE DATABASE'!$Z$192,K300='EXPENSE DATABASE'!$Z$193,K300='EXPENSE DATABASE'!$Z$194),O300,\"\")","v":""},{"$f":"IF(OR(K300='EXPENSE DATABASE'!$T$189,K300='EXPENSE DATABASE'!$T$190,K300='EXPENSE DATABASE'!$T$191),O300,\"\")","v":""},{"$f":"VLOOKUP(I300,'EXPENSE DATABASE'!$B$41:$C$65,2,FALSE)","v":{"$error":"#N/A"}},100,{"$f":"VLOOKUP(J300,'EXPENSE DATABASE'!$B$69:$C$168,2,FALSE)","v":{"$error":"#N/A"}},101,{"$f":"VLOOKUP(K300,'EXPENSE DATABASE'!$B$6:$C$35,2,FALSE)","v":{"$error":"#N/A"}},31,{"$f":"VLOOKUP(L300,'EXPENSE DATABASE'!$B$173:$C$176,2,FALSE)","v":{"$error":"#N/A"}},100,0,0,{"$f":"IF(L300=T('EXPENSE DATABASE'!$E$173),O300,0)","v":0},{"$f":"IF(L300=T('EXPENSE DATABASE'!$E$174),O300,0)","v":0},{"$f":"IF(L300=T('EXPENSE DATABASE'!$E$175),O300,0)","v":0},0,287]
[0,0,{"$nulls":12},{"v":0,"d":"$0.00"},{"v":0,"d":"$0.00"},{"v":0,"d":"$0.00"},0,{"$f":"IF(OR(K301='EXPENSE DATABASE'!$V$187,K301='EXPENSE DATABASE'!$V$188,K301='EXPENSE DATABASE'!$V$189,K301='EXPENSE DATABASE'!$V$190,K301='EXPENSE DATABASE'!$V$191,K301='EXPENSE DATABASE'!$V$192,K301='EXPENSE DATABASE'!$V$193,K301='EXPENSE DATABASE'!$V$194,K301='EXPENSE DATABASE'!$X$187,K301='EXPENSE DATABASE'!$X$188,K301='EXPENSE DATABASE'!$X$189,K301='EXPENSE DATABASE'!$X$190,K301='EXPENSE DATABASE'!$X$191,K301='EXPENSE DATABASE'!$X$192,K301='EXPENSE DATABASE'!$X$193,K301='EXPENSE DATABASE'!$X$194,K301='EXPENSE DATABASE'!$Z$187,K301='EXPENSE DATABASE'!$Z$188,K301='EXPENSE DATABASE'!$Z$189,K301='EXPENSE DATABASE'!$Z$190,K301='EXPENSE DATABASE'!$Z$191,K301='EXPENSE DATABASE'!$Z$192,K301='EXPENSE DATABASE'!$Z$193,K301='EXPENSE DATABASE'!$Z$194),O301,\"\")","v":""},{"$f":"IF(OR(K301='EXPENSE DATABASE'!$T$189,K301='EXPENSE DATABASE'!$T$190,K301='EXPENSE DATABASE'!$T$191),O301,\"\")","v":""},{"$f":"VLOOKUP(I301,'EXPENSE DATABASE'!$B$41:$C$65,2,FALSE)","v":{"$error":"#N/A"}},100,{"$f":"VLOOKUP(J301,'EXPENSE DATABASE'!$B$69:$C$168,2,FALSE)","v":{"$error":"#N/A"}},101,{"$f":"VLOOKUP(K301,'EXPENSE DATABASE'!$B$6:$C$35,2,FALSE)","v":{"$error":"#N/A"}},31,{"$f":"VLOOKUP(L301,'EXPENSE DATABASE'!$B$173:$C$176,2,FALSE)","v":{"$error":"#N/A"}},100,0,0,{"$f":"IF(L301=T('EXPENSE DATABASE'!$E$173),O301,0)","v":0},{"$f":"IF(L301=T('EXPENSE DATABASE'!$E$174),O301,0)","v":0},{"$f":"IF(L301=T('EXPENSE DATABASE'!$E$175),O301,0)","v":0},0,288]
[0,0,{"$nulls":12},{"v":0,"d":"$0.00"},{"v":0,"d":"$0.00"},{"v":0,"d":"$0.00"},0,{"$f":"IF(OR(K302='EXPENSE DATABASE'!$V$187,K302='EXPENSE DATABASE'!$V$188,K302='EXPENSE DATABASE'!$V$189,K302='EXPENSE DATABASE'!$V$190,K302='EXPENSE DATABASE'!$V$191,K302='EXPENSE DATABASE'!$V$192,K302='EXPENSE DATABASE'!$V$193,K302='EXPENSE DATABASE'!$V$194,K302='EXPENSE DATABASE'!$X$187,K302='EXPENSE DATABASE'!$X$188,K302='EXPENSE DATABASE'!$X$189,K302='EXPENSE DATABASE'!$X$190,K302='EXPENSE DATABASE'!$X$191,K302='EXPENSE DATABASE'!$X$192,K302='EXPENSE DATABASE'!$X$193,K302='EXPENSE DATABASE'!$X$194,K302='EXPENSE DATABASE'!$Z$187,K302='EXPENSE DATABASE'!$Z$188,K302='EXPENSE DATABASE'!$Z$189,K302='EXPENSE DATABASE'!$Z$190,K302='EXPENSE DATABASE'!$Z$191,K302='EXPENSE DATABASE'!$Z$192,K302='EXPENSE DATABASE'!$Z$193,K302='EXPENSE DATABASE'!$Z$194),O302,\"\")","v":""},{"$f":"IF(OR(K302='EXPENSE DATABASE'!$T$189,K302='EXPENSE DATABASE'!$T$190,K302='EXPENSE DATABASE'!$T$191),O302,\"\")","v":""},{"$f":"VLOOKUP(I302,'EXPENSE DATABASE'!$B$41:$C$65,2,FALSE)","v":{"$error":"#N/A"}},100,{"$f":"VLOOKUP(J302,'EXPENSE DATABASE'!$B$69:$C$168,2,FALSE)","v":{"$error":"#N/A"}},101,{"$f":"VLOOKUP(K302,'EXPENSE DATABASE'!$B$6:$C$35,2,FALSE)","v":{"$error":"#N/A"}},31,{"$f":"VLOOKUP(L302,'EXPENSE DATABASE'!$B$173:$C$176,2,FALSE)","v":{"$error":"#N/A"}},100,0,0,{"$f":"IF(L302=T('EXPENSE DATABASE'!$E$173),O302,0)","v":0},{"$f":"IF(L302=T('EXPENSE DATABASE'!$E$174),O302,0)","v":0},{"$f":"IF(L302=T('EXPENSE DATABASE'!$E$175),O302,0)","v":0},0,289]
[0,0,{"$nulls":12},{"v":0,"d":"$0.00"},{"v":0,"d":"$0.00"},{"v":0,"d":"$0.00"},0,{"$f":"IF(OR(K303='EXPENSE DATABASE'!$V$187,K303='EXPENSE DATABASE'!$V$188,K303='EXPENSE DATABASE'!$V$189,K303='EXPENSE DATABASE'!$V$190,K303='EXPENSE DATABASE'!$V$191,K303='EXPENSE DATABASE'!$V$192,K303='EXPENSE DATABASE'!$V$193,K303='EXPENSE DATABASE'!$V$194,K303='EXPENSE DATABASE'!$X$187,K303='EXPENSE DATABASE'!$X$188,K303='EXPENSE DATABASE'!$X$189,K303='EXPENSE DATABASE'!$X$190,K303='EXPENSE DATABASE'!$X$191,K303='EXPENSE DATABASE'!$X$192,K303='EXPENSE DATABASE'!$X$193,K303='EXPENSE DATABASE'!$X$194,K303='EXPENSE DATABASE'!$Z$187,K303='EXPENSE DATABASE'!$Z$188,K303='EXPENSE DATABASE'!$Z$189,K303='EXPENSE DATABASE'!$Z$190,K303='EXPENSE DATABASE'!$Z$191,K303='EXPENSE DATABASE'!$Z$192,K303='EXPENSE DATABASE'!$Z$193,K303='EXPENSE DATABASE'!$Z$194),O303,\"\")","v":""},{"$f":"IF(OR(K303='EXPENSE DATABASE'!$T$189,K303='EXPENSE DATABASE'!$T$190,K303='EXPENSE DATABASE'!$T$191),O303,\"\")","v":""},{"$f":"VLOOKUP(I303,'EXPENSE DATABASE'!$B$41:$C$65,2,FALSE)","v":{"$error":"#N/A"}},100,{"$f":"VLOOKUP(J303,'EXPENSE DATABASE'!$B$69:$C$168,2,FALSE)","v":{"$error":"#N/A"}},101,{"$f":"VLOOKUP(K303,'EXPENSE DATABASE'!$B$6:$C$35,2,FALSE)","v":{"$error":"#N/A"}},31,{"$f":"VLOOKUP(L303,'EXPENSE DATABASE'!$B$173:$C$176,2,FALSE)","v":{"$error":"#N/A"}},100,0,0,{"$f":"IF(L303=T('EXPENSE DATABASE'!$E$173),O303,0)","v":0},{"$f":"IF(L303=T('EXPENSE DATABASE'!$E$174),O303,0)","v":0},{"$f":"IF(L303=T('EXPENSE DATABASE'!$E$175),O303,0)","v":0},0,290]
[0,0,{"$nulls":12},{"v":0,"d":"$0.00"},{"v":0,"d":"$0.00"},{"v":0,"d":"$0.00"},0,{"$f":"IF(OR(K304='EXPENSE DATABASE'!$V$187,K304='EXPENSE DATABASE'!$V$188,K304='EXPENSE DATABASE'!$V$189,K304='EXPENSE DATABASE'!$V$190,K304='EXPENSE DATABASE'!$V$191,K304='EXPENSE DATABASE'!$V$192,K304='EXPENSE DATABASE'!$V$193,K304='EXPENSE DATABASE'!$V$194,K304='EXPENSE DATABASE'!$X$187,K304='EXPENSE DATABASE'!$X$188,K304='EXPENSE DATABASE'!$X$189,K304='EXPENSE DATABASE'!$X$190,K304='EXPENSE DATABASE'!$X$191,K304='EXPENSE DATABASE'!$X$192,K304='EXPENSE DATABASE'!$X$193,K304='EXPENSE DATABASE'!$X$194,K304='EXPENSE DATABASE'!$Z$187,K304='EXPENSE DATABASE'!$Z$188,K304='EXPENSE DATABASE'!$Z$189,K304='EXPENSE DATABASE'!$Z$190,K304='EXPENSE DATABASE'!$Z$191,K304='EXPENSE DATABASE'!$Z$192,K304='EXPENSE DATABASE'!$Z$193,K304='EXPENSE DATABASE'!$Z$194),O304,\"\")","v":""},{"$f":"IF(OR(K304='EXPENSE DATABASE'!$T$189,K304='EXPENSE DATABASE'!$T$190,K304='EXPENSE DATABASE'!$T$191),O304,\"\")","v":""},{"$f":"VLOOKUP(I304,'EXPENSE DATABASE'!$B$41:$C$65,2,FALSE)","v":{"$error":"#N/A"}},100,{"$f":"VLOOKUP(J304,'EXPENSE DATABASE'!$B$69:$C$168,2,FALSE)","v":{"$error":"#N/A"}},101,{"$f":"VLOOKUP(K304,'EXPENSE DATABASE'!$B$6:$C$35,2,FALSE)","v":{"$error":"#N/A"}},31,{"$f":"VLOOKUP(L304,'EXPENSE DATABASE'!$B$173:$C$176,2,FALSE)","v":{"$error":"#N/A"}},100,0,0,{"$f":"IF(L304=T('EXPENSE DATABASE'!$E$173),O304,0)","v":0},{"$f":"IF(L304=T('EXPENSE DATABASE'!$E$174),O304,0)","v":0},{"$f":"IF(L304=T('EXPENSE DATABASE'!$E$175),O304,0)","v":0},0,291]
[0,0,{"$nulls":12},{"v":0,"d":"$0.00"},{"v":0,"d":"$0.00"},{"v":0,"d":"$0.00"},0,{"$f":"IF(OR(K305='EXPENSE DATABASE'!$V$187,K305='EXPENSE DATABASE'!$V$188,K305='EXPENSE DATABASE'!$V$189,K305='EXPENSE DATABASE'!$V$190,K305='EXPENSE DATABASE'!$V$191,K305='EXPENSE DATABASE'!$V$192,K305='EXPENSE DATABASE'!$V$193,K305='EXPENSE DATABASE'!$V$194,K305='EXPENSE DATABASE'!$X$187,K305='EXPENSE DATABASE'!$X$188,K305='EXPENSE DATABASE'!$X$189,K305='EXPENSE DATABASE'!$X$190,K305='EXPENSE DATABASE'!$X$191,K305='EXPENSE DATABASE'!$X$192,K305='EXPENSE DATABASE'!$X$193,K305='EXPENSE DATABASE'!$X$194,K305='EXPENSE DATABASE'!$Z$187,K305='EXPENSE DATABASE'!$Z$188,K305='EXPENSE DATABASE'!$Z$189,K305='EXPENSE DATABASE'!$Z$190,K305='EXPENSE DATABASE'!$Z$191,K305='EXPENSE DATABASE'!$Z$192,K305='EXPENSE DATABASE'!$Z$193,K305='EXPENSE DATABASE'!$Z$194),O305,\"\")","v":""},{"$f":"IF(OR(K305='EXPENSE DATABASE'!$T$189,K305='EXPENSE DATABASE'!$T$190,K305='EXPENSE DATABASE'!$T$191),O305,\"\")","v":""},{"$f":"VLOOKUP(I305,'EXPENSE DATABASE'!$B$41:$C$65,2,FALSE)","v":{"$error":"#N/A"}},100,{"$f":"VLOOKUP(J305,'EXPENSE DATABASE'!$B$69:$C$168,2,FALSE)","v":{"$error":"#N/A"}},101,{"$f":"VLOOKUP(K305,'EXPENSE DATABASE'!$B$6:$C$35,2,FALSE)","v":{"$error":"#N/A"}},31,{"$f":"VLOOKUP(L305,'EXPENSE DATABASE'!$B$173:$C$176,2,FALSE)","v":{"$error":"#N/A"}},100,0,0,{"$f":"IF(L305=T('EXPENSE DATABASE'!$E$173),O305,0)","v":0},{"$f":"IF(L305=T('EXPENSE DATABASE'!$E$174),O305,0)","v":0},{"$f":"IF(L305=T('EXPENSE DATABASE'!$E$175),O305,0)","v":0},0,292]
[0,0,{"$nulls":12},{"v":0,"d":"$0.00"},{"v":0,"d":"$0.00"},{"v":0,"d":"$0.00"},0,{"$f":"IF(OR(K306='EXPENSE DATABASE'!$V$187,K306='EXPENSE DATABASE'!$V$188,K306='EXPENSE DATABASE'!$V$189,K306='EXPENSE DATABASE'!$V$190,K306='EXPENSE DATABASE'!$V$191,K306='EXPENSE DATABASE'!$V$192,K306='EXPENSE DATABASE'!$V$193,K306='EXPENSE DATABASE'!$V$194,K306='EXPENSE DATABASE'!$X$187,K306='EXPENSE DATABASE'!$X$188,K306='EXPENSE DATABASE'!$X$189,K306='EXPENSE DATABASE'!$X$190,K306='EXPENSE DATABASE'!$X$191,K306='EXPENSE DATABASE'!$X$192,K306='EXPENSE DATABASE'!$X$193,K306='EXPENSE DATABASE'!$X$194,K306='EXPENSE DATABASE'!$Z$187,K306='EXPENSE DATABASE'!$Z$188,K306='EXPENSE DATABASE'!$Z$189,K306='EXPENSE DATABASE'!$Z$190,K306='EXPENSE DATABASE'!$Z$191,K306='EXPENSE DATABASE'!$Z$192,K306='EXPENSE DATABASE'!$Z$193,K306='EXPENSE DATABASE'!$Z$194),O306,\"\")","v":""},{"$f":"IF(OR(K306='EXPENSE DATABASE'!$T$189,K306='EXPENSE DATABASE'!$T$190,K306='EXPENSE DATABASE'!$T$191),O306,\"\")","v":""},{"$f":"VLOOKUP(I306,'EXPENSE DATABASE'!$B$41:$C$65,2,FALSE)","v":{"$error":"#N/A"}},100,{"$f":"VLOOKUP(J306,'EXPENSE DATABASE'!$B$69:$C$168,2,FALSE)","v":{"$error":"#N/A"}},101,{"$f":"VLOOKUP(K306,'EXPENSE DATABASE'!$B$6:$C$35,2,FALSE)","v":{"$error":"#N/A"}},31,{"$f":"VLOOKUP(L306,'EXPENSE DATABASE'!$B$173:$C$176,2,FALSE)","v":{"$error":"#N/A"}},100,0,0,{"$f":"IF(L306=T('EXPENSE DATABASE'!$E$173),O306,0)","v":0},{"$f":"IF(L306=T('EXPENSE DATABASE'!$E$174),O306,0)","v":0},{"$f":"IF(L306=T('EXPENSE DATABASE'!$E$175),O306,0)","v":0},0,293]
[0,0,{"$nulls":12},{"v":0,"d":"$0.00"},{"v":0,"d":"$0.00"},{"v":0,"d":"$0.00"},0,{"$f":"IF(OR(K307='EXPENSE DATABASE'!$V$187,K307='EXPENSE DATABASE'!$V$188,K307='EXPENSE DATABASE'!$V$189,K307='EXPENSE DATABASE'!$V$190,K307='EXPENSE DATABASE'!$V$191,K307='EXPENSE DATABASE'!$V$192,K307='EXPENSE DATABASE'!$V$193,K307='EXPENSE DATABASE'!$V$194,K307='EXPENSE DATABASE'!$X$187,K307='EXPENSE DATABASE'!$X$188,K307='EXPENSE DATABASE'!$X$189,K307='EXPENSE DATABASE'!$X$190,K307='EXPENSE DATABASE'!$X$191,K307='EXPENSE DATABASE'!$X$192,K307='EXPENSE DATABASE'!$X$193,K307='EXPENSE DATABASE'!$X$194,K307='EXPENSE DATABASE'!$Z$187,K307='EXPENSE DATABASE'!$Z$188,K307='EXPENSE DATABASE'!$Z$189,K307='EXPENSE DATABASE'!$Z$190,K307='EXPENSE DATABASE'!$Z$191,K307='EXPENSE DATABASE'!$Z$192,K307='EXPENSE DATABASE'!$Z$193,K307='EXPENSE DATABASE'!$Z$194),O307,\"\")","v":""},{"$f":"IF(OR(K307='EXPENSE DATABASE'!$T$189,K307='EXPENSE DATABASE'!$T$190,K307='EXPENSE DATABASE'!$T$191),O307,\"\")","v":""},{"$f":"VLOOKUP(I307,'EXPENSE DATABASE'!$B$41:$C$65,2,FALSE)","v":{"$error":"#N/A"}},100,{"$f":"VLOOKUP(J307,'EXPENSE DATABASE'!$B$69:$C$168,2,FALSE)","v":{"$error":"#N/A"}},101,{"$f":"VLOOKUP(K307,'EXPENSE DATABASE'!$B$6:$C$35,2,FALSE)","v":{"$error":"#N/A"}},31,{"$f":"VLOOKUP(L307,'EXPENSE DATABASE'!$B$173:$C$176,2,FALSE)","v":{"$error":"#N/A"}},100,0,0,{"$f":"IF(L307=T('EXPENSE DATABASE'!$E$173),O307,0)","v":0},{"$f":"IF(L307=T('EXPENSE DATABASE'!$E$174),O307,0)","v":0},{"$f":"IF(L307=T('EXPENSE DATABASE'!$E$175),O307,0)","v":0},0,294]
[0,0,{"$nulls":12},{"v":0,"d":"$0.00"},{"v":0,"d":"$0.00"},{"v":0,"d":"$0.00"},0,{"$f":"IF(OR(K308='EXPENSE DATABASE'!$V$187,K308='EXPENSE DATABASE'!$V$188,K308='EXPENSE DATABASE'!$V$189,K308='EXPENSE DATABASE'!$V$190,K308='EXPENSE DATABASE'!$V$191,K308='EXPENSE DATABASE'!$V$192,K308='EXPENSE DATABASE'!$V$193,K308='EXPENSE DATABASE'!$V$194,K308='EXPENSE DATABASE'!$X$187,K308='EXPENSE DATABASE'!$X$188,K308='EXPENSE DATABASE'!$X$189,K308='EXPENSE DATABASE'!$X$190,K308='EXPENSE DATABASE'!$X$191,K308='EXPENSE DATABASE'!$X$192,K308='EXPENSE DATABASE'!$X$193,K308='EXPENSE DATABASE'!$X$194,K308='EXPENSE DATABASE'!$Z$187,K308='EXPENSE DATABASE'!$Z$188,K308='EXPENSE DATABASE'!$Z$189,K308='EXPENSE DATABASE'!$Z$190,K308='EXPENSE DATABASE'!$Z$191,K308='EXPENSE DATABASE'!$Z$192,K308='EXPENSE DATABASE'!$Z$193,K308='EXPENSE DATABASE'!$Z$194),O308,\"\")","v":""},{"$f":"IF(OR(K308='EXPENSE DATABASE'!$T$189,K308='EXPENSE DATABASE'!$T$190,K308='EXPENSE DATABASE'!$T$191),O308,\"\")","v":""},{"$f":"VLOOKUP(I308,'EXPENSE DATABASE'!$B$41:$C$65,2,FALSE)","v":{"$error":"#N/A"}},100,{"$f":"VLOOKUP(J308,'EXPENSE DATABASE'!$B$69:$C$168,2,FALSE)","v":{"$error":"#N/A"}},101,{"$f":"VLOOKUP(K308,'EXPENSE DATABASE'!$B$6:$C$35,2,FALSE)","v":{"$error":"#N/A"}},31,{"$f":"VLOOKUP(L308,'EXPENSE DATABASE'!$B$173:$C$176,2,FALSE)","v":{"$error":"#N/A"}},100,0,0,{"$f":"IF(L308=T('EXPENSE DATABASE'!$E$173),O308,0)","v":0},{"$f":"IF(L308=T('EXPENSE DATABASE'!$E$174),O308,0)","v":0},{"$f":"IF(L308=T('EXPENSE DATABASE'!$E$175),O308,0)","v":0},0,295]
[0,0,{"$nulls":12},{"v":0,"d":"$0.00"},{"v":0,"d":"$0.00"},{"v":0,"d":"$0.00"},0,{"$f":"IF(OR(K309='EXPENSE DATABASE'!$V$187,K309='EXPENSE DATABASE'!$V$188,K309='EXPENSE DATABASE'!$V$189,K309='EXPENSE DATABASE'!$V$190,K309='EXPENSE DATABASE'!$V$191,K309='EXPENSE DATABASE'!$V$192,K309='EXPENSE DATABASE'!$V$193,K309='EXPENSE DATABASE'!$V$194,K309='EXPENSE DATABASE'!$X$187,K309='EXPENSE DATABASE'!$X$188,K309='EXPENSE DATABASE'!$X$189,K309='EXPENSE DATABASE'!$X$190,K309='EXPENSE DATABASE'!$X$191,K309='EXPENSE DATABASE'!$X$192,K309='EXPENSE DATABASE'!$X$193,K309='EXPENSE DATABASE'!$X$194,K309='EXPENSE DATABASE'!$Z$187,K309='EXPENSE DATABASE'!$Z$188,K309='EXPENSE DATABASE'!$Z$189,K309='EXPENSE DATABASE'!$Z$190,K309='EXPENSE DATABASE'!$Z$191,K309='EXPENSE DATABASE'!$Z$192,K309='EXPENSE DATABASE'!$Z$193,K309='EXPENSE DATABASE'!$Z$194),O309,\"\")","v":""},{"$f":"IF(OR(K309='EXPENSE DATABASE'!$T$189,K309='EXPENSE DATABASE'!$T$190,K309='EXPENSE DATABASE'!$T$191),O309,\"\")","v":""},{"$f":"VLOOKUP(I309,'EXPENSE DATABASE'!$B$41:$C$65,2,FALSE)","v":{"$error":"#N/A"}},100,{"$f":"VLOOKUP(J309,'EXPENSE DATABASE'!$B$69:$C$168,2,FALSE)","v":{"$error":"#N/A"}},101,{"$f":"VLOOKUP(K309,'EXPENSE DATABASE'!$B$6:$C$35,2,FALSE)","v":{"$error":"#N/A"}},31,{"$f":"VLOOKUP(L309,'EXPENSE DATABASE'!$B$173:$C$176,2,FALSE)","v":{"$error":"#N/A"}},100,0,0,{"$f":"IF(L309=T('EXPENSE DATABASE'!$E$173),O309,0)","v":0},{"$f":"IF(L309=T('EXPENSE DATABASE'!$E$174),O309,0)","v":0},{"$f":"IF(L309=T('EXPENSE DATABASE'!$E$175),O309,0)","v":0},0,296]
[0,0,{"$nulls":12},{"v":0,"d":"$0.00"},{"v":0,"d":"$0.00"},{"v":0,"d":"$0.00"},0,{"$f":"IF(OR(K310='EXPENSE DATABASE'!$V$187,K310='EXPENSE DATABASE'!$V$188,K310='EXPENSE DATABASE'!$V$189,K310='EXPENSE DATABASE'!$V$190,K310='EXPENSE DATABASE'!$V$191,K310='EXPENSE DATABASE'!$V$192,K310='EXPENSE DATABASE'!$V$193,K310='EXPENSE DATABASE'!$V$194,K310='EXPENSE DATABASE'!$X$187,K310='EXPENSE DATABASE'!$X$188,K310='EXPENSE DATABASE'!$X$189,K310='EXPENSE DATABASE'!$X$190,K310='EXPENSE DATABASE'!$X$191,K310='EXPENSE DATABASE'!$X$192,K310='EXPENSE DATABASE'!$X$193,K310='EXPENSE DATABASE'!$X$194,K310='EXPENSE DATABASE'!$Z$187,K310='EXPENSE DATABASE'!$Z$188,K310='EXPENSE DATABASE'!$Z$189,K310='EXPENSE DATABASE'!$Z$190,K310='EXPENSE DATABASE'!$Z$191,K310='EXPENSE DATABASE'!$Z$192,K310='EXPENSE DATABASE'!$Z$193,K310='EXPENSE DATABASE'!$Z$194),O310,\"\")","v":""},{"$f":"IF(OR(K310='EXPENSE DATABASE'!$T$189,K310='EXPENSE DATABASE'!$T$190,K310='EXPENSE DATABASE'!$T$191),O310,\"\")","v":""},{"$f":"VLOOKUP(I310,'EXPENSE DATABASE'!$B$41:$C$65,2,FALSE)","v":{"$error":"#N/A"}},100,{"$f":"VLOOKUP(J310,'EXPENSE DATABASE'!$B$69:$C$168,2,FALSE)","v":{"$error":"#N/A"}},101,{"$f":"VLOOKUP(K310,'EXPENSE DATABASE'!$B$6:$C$35,2,FALSE)","v":{"$error":"#N/A"}},31,{"$f":"VLOOKUP(L310,'EXPENSE DATABASE'!$B$173:$C$176,2,FALSE)","v":{"$error":"#N/A"}},100,0,0,{"$f":"IF(L310=T('EXPENSE DATABASE'!$E$173),O310,0)","v":0},{"$f":"IF(L310=T('EXPENSE DATABASE'!$E$174),O310,0)","v":0},{"$f":"IF(L310=T('EXPENSE DATABASE'!$E$175),O310,0)","v":0},0,297]
[0,0,{"$nulls":12},{"v":0,"d":"$0.00"},{"v":0,"d":"$0.00"},{"v":0,"d":"$0.00"},0,{"$f":"IF(OR(K311='EXPENSE DATABASE'!$V$187,K311='EXPENSE DATABASE'!$V$188,K311='EXPENSE DATABASE'!$V$189,K311='EXPENSE DATABASE'!$V$190,K311='EXPENSE DATABASE'!$V$191,K311='EXPENSE DATABASE'!$V$192,K311='EXPENSE DATABASE'!$V$193,K311='EXPENSE DATABASE'!$V$194,K311='EXPENSE DATABASE'!$X$187,K311='EXPENSE DATABASE'!$X$188,K311='EXPENSE DATABASE'!$X$189,K311='EXPENSE DATABASE'!$X$190,K311='EXPENSE DATABASE'!$X$191,K311='EXPENSE DATABASE'!$X$192,K311='EXPENSE DATABASE'!$X$193,K311='EXPENSE DATABASE'!$X$194,K311='EXPENSE DATABASE'!$Z$187,K311='EXPENSE DATABASE'!$Z$188,K311='EXPENSE DATABASE'!$Z$189,K311='EXPENSE DATABASE'!$Z$190,K311='EXPENSE DATABASE'!$Z$191,K311='EXPENSE DATABASE'!$Z$192,K311='EXPENSE DATABASE'!$Z$193,K311='EXPENSE DATABASE'!$Z$194),O311,\"\")","v":""},{"$f":"IF(OR(K311='EXPENSE DATABASE'!$T$189,K311='EXPENSE DATABASE'!$T$190,K311='EXPENSE DATABASE'!$T$191),O311,\"\")","v":""},{"$f":"VLOOKUP(I311,'EXPENSE DATABASE'!$B$41:$C$65,2,FALSE)","v":{"$error":"#N/A"}},100,{"$f":"VLOOKUP(J311,'EXPENSE DATABASE'!$B$69:$C$168,2,FALSE)","v":{"$error":"#N/A"}},101,{"$f":"VLOOKUP(K311,'EXPENSE DATABASE'!$B$6:$C$35,2,FALSE)","v":{"$error":"#N/A"}},31,{"$f":"VLOOKUP(L311,'EXPENSE DATABASE'!$B$173:$C$176,2,FALSE)","v":{"$error":"#N/A"}},100,0,0,{"$f":"IF(L311=T('EXPENSE DATABASE'!$E$173),O311,0)","v":0},{"$f":"IF(L311=T('EXPENSE DATABASE'!$E$174),O311,0)","v":0},{"$f":"IF(L311=T('EXPENSE DATABASE'!$E$175),O311,0)","v":0},0,298]
[0,0,{"$nulls":12},{"v":0,"d":"$0.00"},{"v":0,"d":"$0.00"},{"v":0,"d":"$0.00"},0,{"$f":"IF(OR(K312='EXPENSE DATABASE'!$V$187,K312='EXPENSE DATABASE'!$V$188,K312='EXPENSE DATABASE'!$V$189,K312='EXPENSE DATABASE'!$V$190,K312='EXPENSE DATABASE'!$V$191,K312='EXPENSE DATABASE'!$V$192,K312='EXPENSE DATABASE'!$V$193,K312='EXPENSE DATABASE'!$V$194,K312='EXPENSE DATABASE'!$X$187,K312='EXPENSE DATABASE'!$X$188,K312='EXPENSE DATABASE'!$X$189,K312='EXPENSE DATABASE'!$X$190,K312='EXPENSE DATABASE'!$X$191,K312='EXPENSE DATABASE'!$X$192,K312='EXPENSE DATABASE'!$X$193,K312='EXPENSE DATABASE'!$X$194,K312='EXPENSE DATABASE'!$Z$187,K312='EXPENSE DATABASE'!$Z$188,K312='EXPENSE DATABASE'!$Z$189,K312='EXPENSE DATABASE'!$Z$190,K312='EXPENSE DATABASE'!$Z$191,K312='EXPENSE DATABASE'!$Z$192,K312='EXPENSE DATABASE'!$Z$193,K312='EXPENSE DATABASE'!$Z$194),O312,\"\")","v":""},{"$f":"IF(OR(K312='EXPENSE DATABASE'!$T$189,K312='EXPENSE DATABASE'!$T$190,K312='EXPENSE DATABASE'!$T$191),O312,\"\")","v":""},{"$f":"VLOOKUP(I312,'EXPENSE DATABASE'!$B$41:$C$65,2,FALSE)","v":{"$error":"#N/A"}},100,{"$f":"VLOOKUP(J312,'EXPENSE DATABASE'!$B$69:$C$168,2,FALSE)","v":{"$error":"#N/A"}},101,{"$f":"VLOOKUP(K312,'EXPENSE DATABASE'!$B$6:$C$35,2,FALSE)","v":{"$error":"#N/A"}},31,{"$f":"VLOOKUP(L312,'EXPENSE DATABASE'!$B$173:$C$176,2,FALSE)","v":{"$error":"#N/A"}},100,0,0,{"$f":"IF(L312=T('EXPENSE DATABASE'!$E$173),O312,0)","v":0},{"$f":"IF(L312=T('EXPENSE DATABASE'!$E$174),O312,0)","v":0},{"$f":"IF(L312=T('EXPENSE DATABASE'!$E$175),O312,0)","v":0},0,299]
[0,0,{"$nulls":12},{"v":0,"d":"$0.00"},{"v":0,"d":"$0.00"},{"v":0,"d":"$0.00"},0,{"$f":"IF(OR(K313='EXPENSE DATABASE'!$V$187,K313='EXPENSE DATABASE'!$V$188,K313='EXPENSE DATABASE'!$V$189,K313='EXPENSE DATABASE'!$V$190,K313='EXPENSE DATABASE'!$V$191,K313='EXPENSE DATABASE'!$V$192,K313='EXPENSE DATABASE'!$V$193,K313='EXPENSE DATABASE'!$V$194,K313='EXPENSE DATABASE'!$X$187,K313='EXPENSE DATABASE'!$X$188,K313='EXPENSE DATABASE'!$X$189,K313='EXPENSE DATABASE'!$X$190,K313='EXPENSE DATABASE'!$X$191,K313='EXPENSE DATABASE'!$X$192,K313='EXPENSE DATABASE'!$X$193,K313='EXPENSE DATABASE'!$X$194,K313='EXPENSE DATABASE'!$Z$187,K313='EXPENSE DATABASE'!$Z$188,K313='EXPENSE DATABASE'!$Z$189,K313='EXPENSE DATABASE'!$Z$190,K313='EXPENSE DATABASE'!$Z$191,K313='EXPENSE DATABASE'!$Z$192,K313='EXPENSE DATABASE'!$Z$193,K313='EXPENSE DATABASE'!$Z$194),O313,\"\")","v":""},{"$f":"IF(OR(K313='EXPENSE DATABASE'!$T$189,K313='EXPENSE DATABASE'!$T$190,K313='EXPENSE DATABASE'!$T$191),O313,\"\")","v":""},{"$f":"VLOOKUP(I313,'EXPENSE DATABASE'!$B$41:$C$65,2,FALSE)","v":{"$error":"#N/A"}},100,{"$f":"VLOOKUP(J313,'EXPENSE DATABASE'!$B$69:$C$168,2,FALSE)","v":{"$error":"#N/A"}},101,{"$f":"VLOOKUP(K313,'EXPENSE DATABASE'!$B$6:$C$35,2,FALSE)","v":{"$error":"#N/A"}},31,{"$f":"VLOOKUP(L313,'EXPENSE DATABASE'!$B$173:$C$176,2,FALSE)","v":{"$error":"#N/A"}},100,0,0,{"$f":"IF(L313=T('EXPENSE DATABASE'!$E$173),O313,0)","v":0},{"$f":"IF(L313=T('EXPENSE DATABASE'!$E$174),O313,0)","v":0},{"$f":"IF(L313=T('EXPENSE DATABASE'!$E$175),O313,0)","v":0},0,300]
[0,0,{"$nulls":12},{"v":0,"d":"$0.00"},{"v":0,"d":"$0.00"},{"v":0,"d":"$0.00"},0,{"$f":"IF(OR(K314='EXPENSE DATABASE'!$V$187,K314='EXPENSE DATABASE'!$V$188,K314='EXPENSE DATABASE'!$V$189,K314='EXPENSE DATABASE'!$V$190,K314='EXPENSE DATABASE'!$V$191,K314='EXPENSE DATABASE'!$V$192,K314='EXPENSE DATABASE'!$V$193,K314='EXPENSE DATABASE'!$V$194,K314='EXPENSE DATABASE'!$X$187,K314='EXPENSE DATABASE'!$X$188,K314='EXPENSE DATABASE'!$X$189,K314='EXPENSE DATABASE'!$X$190,K314='EXPENSE DATABASE'!$X$191,K314='EXPENSE DATABASE'!$X$192,K314='EXPENSE DATABASE'!$X$193,K314='EXPENSE DATABASE'!$X$194,K314='EXPENSE DATABASE'!$Z$187,K314='EXPENSE DATABASE'!$Z$188,K314='EXPENSE DATABASE'!$Z$189,K314='EXPENSE DATABASE'!$Z$190,K314='EXPENSE DATABASE'!$Z$191,K314='EXPENSE DATABASE'!$Z$192,K314='EXPENSE DATABASE'!$Z$193,K314='EXPENSE DATABASE'!$Z$194),O314,\"\")","v":""},{"$f":"IF(OR(K314='EXPENSE DATABASE'!$T$189,K314='EXPENSE DATABASE'!$T$190,K314='EXPENSE DATABASE'!$T$191),O314,\"\")","v":""},{"$f":"VLOOKUP(I314,'EXPENSE DATABASE'!$B$41:$C$65,2,FALSE)","v":{"$error":"#N/A"}},100,{"$f":"VLOOKUP(J314,'EXPENSE DATABASE'!$B$69:$C$168,2,FALSE)","v":{"$error":"#N/A"}},101,{"$f":"VLOOKUP(K314,'EXPENSE DATABASE'!$B$6:$C$35,2,FALSE)","v":{"$error":"#N/A"}},31,{"$f":"VLOOKUP(L314,'EXPENSE DATABASE'!$B$173:$C$176,2,FALSE)","v":{"$error":"#N/A"}},100,0,0,{"$f":"IF(L314=T('EXPENSE DATABASE'!$E$173),O314,0)","v":0},{"$f":"IF(L314=T('EXPENSE DATABASE'!$E$174),O314,0)","v":0},{"$f":"IF(L314=T('EXPENSE DATABASE'!$E$175),O314,0)","v":0},0,301]
[0,0,{"$nulls":12},{"v":0,"d":"$0.00"},{"v":0,"d":"$0.00"},{"v":0,"d":"$0.00"},0,{"$f":"IF(OR(K315='EXPENSE DATABASE'!$V$187,K315='EXPENSE DATABASE'!$V$188,K315='EXPENSE DATABASE'!$V$189,K315='EXPENSE DATABASE'!$V$190,K315='EXPENSE DATABASE'!$V$191,K315='EXPENSE DATABASE'!$V$192,K315='EXPENSE DATABASE'!$V$193,K315='EXPENSE DATABASE'!$V$194,K315='EXPENSE DATABASE'!$X$187,K315='EXPENSE DATABASE'!$X$188,K315='EXPENSE DATABASE'!$X$189,K315='EXPENSE DATABASE'!$X$190,K315='EXPENSE DATABASE'!$X$191,K315='EXPENSE DATABASE'!$X$192,K315='EXPENSE DATABASE'!$X$193,K315='EXPENSE DATABASE'!$X$194,K315='EXPENSE DATABASE'!$Z$187,K315='EXPENSE DATABASE'!$Z$188,K315='EXPENSE DATABASE'!$Z$189,K315='EXPENSE DATABASE'!$Z$190,K315='EXPENSE DATABASE'!$Z$191,K315='EXPENSE DATABASE'!$Z$192,K315='EXPENSE DATABASE'!$Z$193,K315='EXPENSE DATABASE'!$Z$194),O315,\"\")","v":""},{"$f":"IF(OR(K315='EXPENSE DATABASE'!$T$189,K315='EXPENSE DATABASE'!$T$190,K315='EXPENSE DATABASE'!$T$191),O315,\"\")","v":""},{"$f":"VLOOKUP(I315,'EXPENSE DATABASE'!$B$41:$C$65,2,FALSE)","v":{"$error":"#N/A"}},100,{"$f":"VLOOKUP(J315,'EXPENSE DATABASE'!$B$69:$C$168,2,FALSE)","v":{"$error":"#N/A"}},101,{"$f":"VLOOKUP(K315,'EXPENSE DATABASE'!$B$6:$C$35,2,FALSE)","v":{"$error":"#N/A"}},31,{"$f":"VLOOKUP(L315,'EXPENSE DATABASE'!$B$173:$C$176,2,FALSE)","v":{"$error":"#N/A"}},100,0,0,{"$f":"IF(L315=T('EXPENSE DATABASE'!$E$173),O315,0)","v":0},{"$f":"IF(L315=T('EXPENSE DATABASE'!$E$174),O315,0)","v":0},{"$f":"IF(L315=T('EXPENSE DATABASE'!$E$175),O315,0)","v":0},0,302]
[0,0,{"$nulls":12},{"v":0,"d":"$0.00"},{"v":0,"d":"$0.00"},{"v":0,"d":"$0.00"},0,{"$f":"IF(OR(K316='EXPENSE DATABASE'!$V$187,K316='EXPENSE DATABASE'!$V$188,K316='EXPENSE DATABASE'!$V$189,K316='EXPENSE DATABASE'!$V$190,K316='EXPENSE DATABASE'!$V$191,K316='EXPENSE DATABASE'!$V$192,K316='EXPENSE DATABASE'!$V$193,K316='EXPENSE DATABASE'!$V$194,K316='EXPENSE DATABASE'!$X$187,K316='EXPENSE DATABASE'!$X$188,K316='EXPENSE DATABASE'!$X$189,K316='EXPENSE DATABASE'!$X$190,K316='EXPENSE DATABASE'!$X$191,K316='EXPENSE DATABASE'!$X$192,K316='EXPENSE DATABASE'!$X$193,K316='EXPENSE DATABASE'!$X$194,K316='EXPENSE DATABASE'!$Z$187,K316='EXPENSE DATABASE'!$Z$188,K316='EXPENSE DATABASE'!$Z$189,K316='EXPENSE DATABASE'!$Z$190,K316='EXPENSE DATABASE'!$Z$191,K316='EXPENSE DATABASE'!$Z$192,K316='EXPENSE DATABASE'!$Z$193,K316='EXPENSE DATABASE'!$Z$194),O316,\"\")","v":""},{"$f":"IF(OR(K316='EXPENSE DATABASE'!$T$189,K316='EXPENSE DATABASE'!$T$190,K316='EXPENSE DATABASE'!$T$191),O316,\"\")","v":""},{"$f":"VLOOKUP(I316,'EXPENSE DATABASE'!$B$41:$C$65,2,FALSE)","v":{"$error":"#N/A"}},100,{"$f":"VLOOKUP(J316,'EXPENSE DATABASE'!$B$69:$C$168,2,FALSE)","v":{"$error":"#N/A"}},101,{"$f":"VLOOKUP(K316,'EXPENSE DATABASE'!$B$6:$C$35,2,FALSE)","v":{"$error":"#N/A"}},31,{"$f":"VLOOKUP(L316,'EXPENSE DATABASE'!$B$173:$C$176,2,FALSE)","v":{"$error":"#N/A"}},100,0,0,{"$f":"IF(L316=T('EXPENSE DATABASE'!$E$173),O316,0)","v":0},{"$f":"IF(L316=T('EXPENSE DATABASE'!$E$174),O316,0)","v":0},{"$f":"IF(L316=T('EXPENSE DATABASE'!$E$175),O316,0)","v":0},0,303]
[0,0,{"$nulls":12},{"v":0,"d":"$0.00"},{"v":0,"d":"$0.00"},{"v":0,"d":"$0.00"},0,{"$f":"IF(OR(K317='EXPENSE DATABASE'!$V$187,K317='EXPENSE DATABASE'!$V$188,K317='EXPENSE DATABASE'!$V$189,K317='EXPENSE DATABASE'!$V$190,K317='EXPENSE DATABASE'!$V$191,K317='EXPENSE DATABASE'!$V$192,K317='EXPENSE DATABASE'!$V$193,K317='EXPENSE DATABASE'!$V$194,K317='EXPENSE DATABASE'!$X$187,K317='EXPENSE DATABASE'!$X$188,K317='EXPENSE DATABASE'!$X$189,K317='EXPENSE DATABASE'!$X$190,K317='EXPENSE DATABASE'!$X$191,K317='EXPENSE DATABASE'!$X$192,K317='EXPENSE DATABASE'!$X$193,K317='EXPENSE DATABASE'!$X$194,K317='EXPENSE DATABASE'!$Z$187,K317='EXPENSE DATABASE'!$Z$188,K317='EXPENSE DATABASE'!$Z$189,K317='EXPENSE DATABASE'!$Z$190,K317='EXPENSE DATABASE'!$Z$191,K317='EXPENSE DATABASE'!$Z$192,K317='EXPENSE DATABASE'!$Z$193,K317='EXPENSE DATABASE'!$Z$194),O317,\"\")","v":""},{"$f":"IF(OR(K317='EXPENSE DATABASE'!$T$189,K317='EXPENSE DATABASE'!$T$190,K317='EXPENSE DATABASE'!$T$191),O317,\"\")","v":""},{"$f":"VLOOKUP(I317,'EXPENSE DATABASE'!$B$41:$C$65,2,FALSE)","v":{"$error":"#N/A"}},100,{"$f":"VLOOKUP(J317,'EXPENSE DATABASE'!$B$69:$C$168,2,FALSE)","v":{"$error":"#N/A"}},101,{"$f":"VLOOKUP(K317,'EXPENSE DATABASE'!$B$6:$C$35,2,FALSE)","v":{"$error":"#N/A"}},31,{"$f":"VLOOKUP(L317,'EXPENSE DATABASE'!$B$173:$C$176,2,FALSE)","v":{"$error":"#N/A"}},100,0,0,{"$f":"IF(L317=T('EXPENSE DATABASE'!$E$173),O317,0)","v":0},{"$f":"IF(L317=T('EXPENSE DATABASE'!$E$174),O317,0)","v":0},{"$f":"IF(L317=T('EXPENSE DATABASE'!$E$175),O317,0)","v":0},0,304]
[0,0,{"$nulls":12},{"v":0,"d":"$0.00"},{"v":0,"d":"$0.00"},{"v":0,"d":"$0.00"},0,{"$f":"IF(OR(K318='EXPENSE DATABASE'!$V$187,K318='EXPENSE DATABASE'!$V$188,K318='EXPENSE DATABASE'!$V$189,K318='EXPENSE DATABASE'!$V$190,K318='EXPENSE DATABASE'!$V$191,K318='EXPENSE DATABASE'!$V$192,K318='EXPENSE DATABASE'!$V$193,K318='EXPENSE DATABASE'!$V$194,K318='EXPENSE DATABASE'!$X$187,K318='EXPENSE DATABASE'!$X$188,K318='EXPENSE DATABASE'!$X$189,K318='EXPENSE DATABASE'!$X$190,K318='EXPENSE DATABASE'!$X$191,K318='EXPENSE DATABASE'!$X$192,K318='EXPENSE DATABASE'!$X$193,K318='EXPENSE DATABASE'!$X$194,K318='EXPENSE DATABASE'!$Z$187,K318='EXPENSE DATABASE'!$Z$188,K318='EXPENSE DATABASE'!$Z$189,K318='EXPENSE DATABASE'!$Z$190,K318='EXPENSE DATABASE'!$Z$191,K318='EXPENSE DATABASE'!$Z$192,K318='EXPENSE DATABASE'!$Z$193,K318='EXPENSE DATABASE'!$Z$194),O318,\"\")","v":""},{"$f":"IF(OR(K318='EXPENSE DATABASE'!$T$189,K318='EXPENSE DATABASE'!$T$190,K318='EXPENSE DATABASE'!$T$191),O318,\"\")","v":""},{"$f":"VLOOKUP(I318,'EXPENSE DATABASE'!$B$41:$C$65,2,FALSE)","v":{"$error":"#N/A"}},100,{"$f":"VLOOKUP(J318,'EXPENSE DATABASE'!$B$69:$C$168,2,FALSE)","v":{"$error":"#N/A"}},101,{"$f":"VLOOKUP(K318,'EXPENSE DATABASE'!$B$6:$C$35,2,FALSE)","v":{"$error":"#N/A"}},31,{"$f":"VLOOKUP(L318,'EXPENSE DATABASE'!$B$173:$C$176,2,FALSE)","v":{"$error":"#N/A"}},100,0,0,{"$f":"IF(L318=T('EXPENSE DATABASE'!$E$173),O318,0)","v":0},{"$f":"IF(L318=T('EXPENSE DATABASE'!$E$174),O318,0)","v":0},{"$f":"IF(L318=T('EXPENSE DATABASE'!$E$175),O318,0)","v":0},0,305]
[0,0,{"$nulls":12},{"v":0,"d":"$0.00"},{"v":0,"d":"$0.00"},{"v":0,"d":"$0.00"},0,{"$f":"IF(OR(K319='EXPENSE DATABASE'!$V$187,K319='EXPENSE DATABASE'!$V$188,K319='EXPENSE DATABASE'!$V$189,K319='EXPENSE DATABASE'!$V$190,K319='EXPENSE DATABASE'!$V$191,K319='EXPENSE DATABASE'!$V$192,K319='EXPENSE DATABASE'!$V$193,K319='EXPENSE DATABASE'!$V$194,K319='EXPENSE DATABASE'!$X$187,K319='EXPENSE DATABASE'!$X$188,K319='EXPENSE DATABASE'!$X$189,K319='EXPENSE DATABASE'!$X$190,K319='EXPENSE DATABASE'!$X$191,K319='EXPENSE DATABASE'!$X$192,K319='EXPENSE DATABASE'!$X$193,K319='EXPENSE DATABASE'!$X$194,K319='EXPENSE DATABASE'!$Z$187,K319='EXPENSE DATABASE'!$Z$188,K319='EXPENSE DATABASE'!$Z$189,K319='EXPENSE DATABASE'!$Z$190,K319='EXPENSE DATABASE'!$Z$191,K319='EXPENSE DATABASE'!$Z$192,K319='EXPENSE DATABASE'!$Z$193,K319='EXPENSE DATABASE'!$Z$194),O319,\"\")","v":""},{"$f":"IF(OR(K319='EXPENSE DATABASE'!$T$189,K319='EXPENSE DATABASE'!$T$190,K319='EXPENSE DATABASE'!$T$191),O319,\"\")","v":""},{"$f":"VLOOKUP(I319,'EXPENSE DATABASE'!$B$41:$C$65,2,FALSE)","v":{"$error":"#N/A"}},100,{"$f":"VLOOKUP(J319,'EXPENSE DATABASE'!$B$69:$C$168,2,FALSE)","v":{"$error":"#N/A"}},101,{"$f":"VLOOKUP(K319,'EXPENSE DATABASE'!$B$6:$C$35,2,FALSE)","v":{"$error":"#N/A"}},31,{"$f":"VLOOKUP(L319,'EXPENSE DATABASE'!$B$173:$C$176,2,FALSE)","v":{"$error":"#N/A"}},100,0,0,{"$f":"IF(L319=T('EXPENSE DATABASE'!$E$173),O319,0)","v":0},{"$f":"IF(L319=T('EXPENSE DATABASE'!$E$174),O319,0)","v":0},{"$f":"IF(L319=T('EXPENSE DATABASE'!$E$175),O319,0)","v":0},0,306]
[0,0,{"$nulls":12},{"v":0,"d":"$0.00"},{"v":0,"d":"$0.00"},{"v":0,"d":"$0.00"},0,{"$f":"IF(OR(K320='EXPENSE DATABASE'!$V$187,K320='EXPENSE DATABASE'!$V$188,K320='EXPENSE DATABASE'!$V$189,K320='EXPENSE DATABASE'!$V$190,K320='EXPENSE DATABASE'!$V$191,K320='EXPENSE DATABASE'!$V$192,K320='EXPENSE DATABASE'!$V$193,K320='EXPENSE DATABASE'!$V$194,K320='EXPENSE DATABASE'!$X$187,K320='EXPENSE DATABASE'!$X$188,K320='EXPENSE DATABASE'!$X$189,K320='EXPENSE DATABASE'!$X$190,K320='EXPENSE DATABASE'!$X$191,K320='EXPENSE DATABASE'!$X$192,K320='EXPENSE DATABASE'!$X$193,K320='EXPENSE DATABASE'!$X$194,K320='EXPENSE DATABASE'!$Z$187,K320='EXPENSE DATABASE'!$Z$188,K320='EXPENSE DATABASE'!$Z$189,K320='EXPENSE DATABASE'!$Z$190,K320='EXPENSE DATABASE'!$Z$191,K320='EXPENSE DATABASE'!$Z$192,K320='EXPENSE DATABASE'!$Z$193,K320='EXPENSE DATABASE'!$Z$194),O320,\"\")","v":""},{"$f":"IF(OR(K320='EXPENSE DATABASE'!$T$189,K320='EXPENSE DATABASE'!$T$190,K320='EXPENSE DATABASE'!$T$191),O320,\"\")","v":""},{"$f":"VLOOKUP(I320,'EXPENSE DATABASE'!$B$41:$C$65,2,FALSE)","v":{"$error":"#N/A"}},100,{"$f":"VLOOKUP(J320,'EXPENSE DATABASE'!$B$69:$C$168,2,FALSE)","v":{"$error":"#N/A"}},101,{"$f":"VLOOKUP(K320,'EXPENSE DATABASE'!$B$6:$C$35,2,FALSE)","v":{"$error":"#N/A"}},31,{"$f":"VLOOKUP(L320,'EXPENSE DATABASE'!$B$173:$C$176,2,FALSE)","v":{"$error":"#N/A"}},100,0,0,{"$f":"IF(L320=T('EXPENSE DATABASE'!$E$173),O320,0)","v":0},{"$f":"IF(L320=T('EXPENSE DATABASE'!$E$174),O320,0)","v":0},{"$f":"IF(L320=T('EXPENSE DATABASE'!$E$175),O320,0)","v":0},0,307]
[0,0,{"$nulls":12},{"v":0,"d":"$0.00"},{"v":0,"d":"$0.00"},{"v":0,"d":"$0.00"},0,{"$f":"IF(OR(K321='EXPENSE DATABASE'!$V$187,K321='EXPENSE DATABASE'!$V$188,K321='EXPENSE DATABASE'!$V$189,K321='EXPENSE DATABASE'!$V$190,K321='EXPENSE DATABASE'!$V$191,K321='EXPENSE DATABASE'!$V$192,K321='EXPENSE DATABASE'!$V$193,K321='EXPENSE DATABASE'!$V$194,K321='EXPENSE DATABASE'!$X$187,K321='EXPENSE DATABASE'!$X$188,K321='EXPENSE DATABASE'!$X$189,K321='EXPENSE DATABASE'!$X$190,K321='EXPENSE DATABASE'!$X$191,K321='EXPENSE DATABASE'!$X$192,K321='EXPENSE DATABASE'!$X$193,K321='EXPENSE DATABASE'!$X$194,K321='EXPENSE DATABASE'!$Z$187,K321='EXPENSE DATABASE'!$Z$188,K321='EXPENSE DATABASE'!$Z$189,K321='EXPENSE DATABASE'!$Z$190,K321='EXPENSE DATABASE'!$Z$191,K321='EXPENSE DATABASE'!$Z$192,K321='EXPENSE DATABASE'!$Z$193,K321='EXPENSE DATABASE'!$Z$194),O321,\"\")","v":""},{"$f":"IF(OR(K321='EXPENSE DATABASE'!$T$189,K321='EXPENSE DATABASE'!$T$190,K321='EXPENSE DATABASE'!$T$191),O321,\"\")","v":""},{"$f":"VLOOKUP(I321,'EXPENSE DATABASE'!$B$41:$C$65,2,FALSE)","v":{"$error":"#N/A"}},100,{"$f":"VLOOKUP(J321,'EXPENSE DATABASE'!$B$69:$C$168,2,FALSE)","v":{"$error":"#N/A"}},101,{"$f":"VLOOKUP(K321,'EXPENSE DATABASE'!$B$6:$C$35,2,FALSE)","v":{"$error":"#N/A"}},31,{"$f":"VLOOKUP(L321,'EXPENSE DATABASE'!$B$173:$C$176,2,FALSE)","v":{"$error":"#N/A"}},100,0,0,{"$f":"IF(L321=T('EXPENSE DATABASE'!$E$173),O321,0)","v":0},{"$f":"IF(L321=T('EXPENSE DATABASE'!$E$174),O321,0)","v":0},{"$f":"IF(L321=T('EXPENSE DATABASE'!$E$175),O321,0)","v":0},0,308]
[0,0,{"$nulls":12},{"v":0,"d":"$0.00"},{"v":0,"d":"$0.00"},{"v":0,"d":"$0.00"},0,{"$f":"IF(OR(K322='EXPENSE DATABASE'!$V$187,K322='EXPENSE DATABASE'!$V$188,K322='EXPENSE DATABASE'!$V$189,K322='EXPENSE DATABASE'!$V$190,K322='EXPENSE DATABASE'!$V$191,K322='EXPENSE DATABASE'!$V$192,K322='EXPENSE DATABASE'!$V$193,K322='EXPENSE DATABASE'!$V$194,K322='EXPENSE DATABASE'!$X$187,K322='EXPENSE DATABASE'!$X$188,K322='EXPENSE DATABASE'!$X$189,K322='EXPENSE DATABASE'!$X$190,K322='EXPENSE DATABASE'!$X$191,K322='EXPENSE DATABASE'!$X$192,K322='EXPENSE DATABASE'!$X$193,K322='EXPENSE DATABASE'!$X$194,K322='EXPENSE DATABASE'!$Z$187,K322='EXPENSE DATABASE'!$Z$188,K322='EXPENSE DATABASE'!$Z$189,K322='EXPENSE DATABASE'!$Z$190,K322='EXPENSE DATABASE'!$Z$191,K322='EXPENSE DATABASE'!$Z$192,K322='EXPENSE DATABASE'!$Z$193,K322='EXPENSE DATABASE'!$Z$194),O322,\"\")","v":""},{"$f":"IF(OR(K322='EXPENSE DATABASE'!$T$189,K322='EXPENSE DATABASE'!$T$190,K322='EXPENSE DATABASE'!$T$191),O322,\"\")","v":""},{"$f":"VLOOKUP(I322,'EXPENSE DATABASE'!$B$41:$C$65,2,FALSE)","v":{"$error":"#N/A"}},100,{"$f":"VLOOKUP(J322,'EXPENSE DATABASE'!$B$69:$C$168,2,FALSE)","v":{"$error":"#N/A"}},101,{"$f":"VLOOKUP(K322,'EXPENSE DATABASE'!$B$6:$C$35,2,FALSE)","v":{"$error":"#N/A"}},31,{"$f":"VLOOKUP(L322,'EXPENSE DATABASE'!$B$173:$C$176,2,FALSE)","v":{"$error":"#N/A"}},100,0,0,{"$f":"IF(L322=T('EXPENSE DATABASE'!$E$173),O322,0)","v":0},{"$f":"IF(L322=T('EXPENSE DATABASE'!$E$174),O322,0)","v":0},{"$f":"IF(L322=T('EXPENSE DATABASE'!$E$175),O322,0)","v":0},0,309]
[0,0,{"$nulls":12},{"v":0,"d":"$0.00"},{"v":0,"d":"$0.00"},{"v":0,"d":"$0.00"},0,{"$f":"IF(OR(K323='EXPENSE DATABASE'!$V$187,K323='EXPENSE DATABASE'!$V$188,K323='EXPENSE DATABASE'!$V$189,K323='EXPENSE DATABASE'!$V$190,K323='EXPENSE DATABASE'!$V$191,K323='EXPENSE DATABASE'!$V$192,K323='EXPENSE DATABASE'!$V$193,K323='EXPENSE DATABASE'!$V$194,K323='EXPENSE DATABASE'!$X$187,K323='EXPENSE DATABASE'!$X$188,K323='EXPENSE DATABASE'!$X$189,K323='EXPENSE DATABASE'!$X$190,K323='EXPENSE DATABASE'!$X$191,K323='EXPENSE DATABASE'!$X$192,K323='EXPENSE DATABASE'!$X$193,K323='EXPENSE DATABASE'!$X$194,K323='EXPENSE DATABASE'!$Z$187,K323='EXPENSE DATABASE'!$Z$188,K323='EXPENSE DATABASE'!$Z$189,K323='EXPENSE DATABASE'!$Z$190,K323='EXPENSE DATABASE'!$Z$191,K323='EXPENSE DATABASE'!$Z$192,K323='EXPENSE DATABASE'!$Z$193,K323='EXPENSE DATABASE'!$Z$194),O323,\"\")","v":""},{"$f":"IF(OR(K323='EXPENSE DATABASE'!$T$189,K323='EXPENSE DATABASE'!$T$190,K323='EXPENSE DATABASE'!$T$191),O323,\"\")","v":""},{"$f":"VLOOKUP(I323,'EXPENSE DATABASE'!$B$41:$C$65,2,FALSE)","v":{"$error":"#N/A"}},100,{"$f":"VLOOKUP(J323,'EXPENSE DATABASE'!$B$69:$C$168,2,FALSE)","v":{"$error":"#N/A"}},101,{"$f":"VLOOKUP(K323,'EXPENSE DATABASE'!$B$6:$C$35,2,FALSE)","v":{"$error":"#N/A"}},31,{"$f":"VLOOKUP(L323,'EXPENSE DATABASE'!$B$173:$C$176,2,FALSE)","v":{"$error":"#N/A"}},100,0,0,{"$f":"IF(L323=T('EXPENSE DATABASE'!$E$173),O323,0)","v":0},{"$f":"IF(L323=T('EXPENSE DATABASE'!$E$174),O323,0)","v":0},{"$f":"IF(L323=T('EXPENSE DATABASE'!$E$175),O323,0)","v":0},0,310]
[0,0,{"$nulls":12},{"v":0,"d":"$0.00"},{"v":0,"d":"$0.00"},{"v":0,"d":"$0.00"},0,{"$f":"IF(OR(K324='EXPENSE DATABASE'!$V$187,K324='EXPENSE DATABASE'!$V$188,K324='EXPENSE DATABASE'!$V$189,K324='EXPENSE DATABASE'!$V$190,K324='EXPENSE DATABASE'!$V$191,K324='EXPENSE DATABASE'!$V$192,K324='EXPENSE DATABASE'!$V$193,K324='EXPENSE DATABASE'!$V$194,K324='EXPENSE DATABASE'!$X$187,K324='EXPENSE DATABASE'!$X$188,K324='EXPENSE DATABASE'!$X$189,K324='EXPENSE DATABASE'!$X$190,K324='EXPENSE DATABASE'!$X$191,K324='EXPENSE DATABASE'!$X$192,K324='EXPENSE DATABASE'!$X$193,K324='EXPENSE DATABASE'!$X$194,K324='EXPENSE DATABASE'!$Z$187,K324='EXPENSE DATABASE'!$Z$188,K324='EXPENSE DATABASE'!$Z$189,K324='EXPENSE DATABASE'!$Z$190,K324='EXPENSE DATABASE'!$Z$191,K324='EXPENSE DATABASE'!$Z$192,K324='EXPENSE DATABASE'!$Z$193,K324='EXPENSE DATABASE'!$Z$194),O324,\"\")","v":""},{"$f":"IF(OR(K324='EXPENSE DATABASE'!$T$189,K324='EXPENSE DATABASE'!$T$190,K324='EXPENSE DATABASE'!$T$191),O324,\"\")","v":""},{"$f":"VLOOKUP(I324,'EXPENSE DATABASE'!$B$41:$C$65,2,FALSE)","v":{"$error":"#N/A"}},100,{"$f":"VLOOKUP(J324,'EXPENSE DATABASE'!$B$69:$C$168,2,FALSE)","v":{"$error":"#N/A"}},101,{"$f":"VLOOKUP(K324,'EXPENSE DATABASE'!$B$6:$C$35,2,FALSE)","v":{"$error":"#N/A"}},31,{"$f":"VLOOKUP(L324,'EXPENSE DATABASE'!$B$173:$C$176,2,FALSE)","v":{"$error":"#N/A"}},100,0,0,{"$f":"IF(L324=T('EXPENSE DATABASE'!$E$173),O324,0)","v":0},{"$f":"IF(L324=T('EXPENSE DATABASE'!$E$174),O324,0)","v":0},{"$f":"IF(L324=T('EXPENSE DATABASE'!$E$175),O324,0)","v":0},0,311]
[0,0,{"$nulls":12},{"v":0,"d":"$0.00"},{"v":0,"d":"$0.00"},{"v":0,"d":"$0.00"},0,{"$f":"IF(OR(K325='EXPENSE DATABASE'!$V$187,K325='EXPENSE DATABASE'!$V$188,K325='EXPENSE DATABASE'!$V$189,K325='EXPENSE DATABASE'!$V$190,K325='EXPENSE DATABASE'!$V$191,K325='EXPENSE DATABASE'!$V$192,K325='EXPENSE DATABASE'!$V$193,K325='EXPENSE DATABASE'!$V$194,K325='EXPENSE DATABASE'!$X$187,K325='EXPENSE DATABASE'!$X$188,K325='EXPENSE DATABASE'!$X$189,K325='EXPENSE DATABASE'!$X$190,K325='EXPENSE DATABASE'!$X$191,K325='EXPENSE DATABASE'!$X$192,K325='EXPENSE DATABASE'!$X$193,K325='EXPENSE DATABASE'!$X$194,K325='EXPENSE DATABASE'!$Z$187,K325='EXPENSE DATABASE'!$Z$188,K325='EXPENSE DATABASE'!$Z$189,K325='EXPENSE DATABASE'!$Z$190,K325='EXPENSE DATABASE'!$Z$191,K325='EXPENSE DATABASE'!$Z$192,K325='EXPENSE DATABASE'!$Z$193,K325='EXPENSE DATABASE'!$Z$194),O325,\"\")","v":""},{"$f":"IF(OR(K325='EXPENSE DATABASE'!$T$189,K325='EXPENSE DATABASE'!$T$190,K325='EXPENSE DATABASE'!$T$191),O325,\"\")","v":""},{"$f":"VLOOKUP(I325,'EXPENSE DATABASE'!$B$41:$C$65,2,FALSE)","v":{"$error":"#N/A"}},100,{"$f":"VLOOKUP(J325,'EXPENSE DATABASE'!$B$69:$C$168,2,FALSE)","v":{"$error":"#N/A"}},101,{"$f":"VLOOKUP(K325,'EXPENSE DATABASE'!$B$6:$C$35,2,FALSE)","v":{"$error":"#N/A"}},31,{"$f":"VLOOKUP(L325,'EXPENSE DATABASE'!$B$173:$C$176,2,FALSE)","v":{"$error":"#N/A"}},100,0,0,{"$f":"IF(L325=T('EXPENSE DATABASE'!$E$173),O325,0)","v":0},{"$f":"IF(L325=T('EXPENSE DATABASE'!$E$174),O325,0)","v":0},{"$f":"IF(L325=T('EXPENSE DATABASE'!$E$175),O325,0)","v":0},0,312]
[0,0,{"$nulls":12},{"v":0,"d":"$0.00"},{"v":0,"d":"$0.00"},{"v":0,"d":"$0.00"},0,{"$f":"IF(OR(K326='EXPENSE DATABASE'!$V$187,K326='EXPENSE DATABASE'!$V$188,K326='EXPENSE DATABASE'!$V$189,K326='EXPENSE DATABASE'!$V$190,K326='EXPENSE DATABASE'!$V$191,K326='EXPENSE DATABASE'!$V$192,K326='EXPENSE DATABASE'!$V$193,K326='EXPENSE DATABASE'!$V$194,K326='EXPENSE DATABASE'!$X$187,K326='EXPENSE DATABASE'!$X$188,K326='EXPENSE DATABASE'!$X$189,K326='EXPENSE DATABASE'!$X$190,K326='EXPENSE DATABASE'!$X$191,K326='EXPENSE DATABASE'!$X$192,K326='EXPENSE DATABASE'!$X$193,K326='EXPENSE DATABASE'!$X$194,K326='EXPENSE DATABASE'!$Z$187,K326='EXPENSE DATABASE'!$Z$188,K326='EXPENSE DATABASE'!$Z$189,K326='EXPENSE DATABASE'!$Z$190,K326='EXPENSE DATABASE'!$Z$191,K326='EXPENSE DATABASE'!$Z$192,K326='EXPENSE DATABASE'!$Z$193,K326='EXPENSE DATABASE'!$Z$194),O326,\"\")","v":""},{"$f":"IF(OR(K326='EXPENSE DATABASE'!$T$189,K326='EXPENSE DATABASE'!$T$190,K326='EXPENSE DATABASE'!$T$191),O326,\"\")","v":""},{"$f":"VLOOKUP(I326,'EXPENSE DATABASE'!$B$41:$C$65,2,FALSE)","v":{"$error":"#N/A"}},100,{"$f":"VLOOKUP(J326,'EXPENSE DATABASE'!$B$69:$C$168,2,FALSE)","v":{"$error":"#N/A"}},101,{"$f":"VLOOKUP(K326,'EXPENSE DATABASE'!$B$6:$C$35,2,FALSE)","v":{"$error":"#N/A"}},31,{"$f":"VLOOKUP(L326,'EXPENSE DATABASE'!$B$173:$C$176,2,FALSE)","v":{"$error":"#N/A"}},100,0,0,{"$f":"IF(L326=T('EXPENSE DATABASE'!$E$173),O326,0)","v":0},{"$f":"IF(L326=T('EXPENSE DATABASE'!$E$174),O326,0)","v":0},{"$f":"IF(L326=T('EXPENSE DATABASE'!$E$175),O326,0)","v":0},0,313]
[0,0,{"$nulls":12},{"v":0,"d":"$0.00"},{"v":0,"d":"$0.00"},{"v":0,"d":"$0.00"},0,{"$f":"IF(OR(K327='EXPENSE DATABASE'!$V$187,K327='EXPENSE DATABASE'!$V$188,K327='EXPENSE DATABASE'!$V$189,K327='EXPENSE DATABASE'!$V$190,K327='EXPENSE DATABASE'!$V$191,K327='EXPENSE DATABASE'!$V$192,K327='EXPENSE DATABASE'!$V$193,K327='EXPENSE DATABASE'!$V$194,K327='EXPENSE DATABASE'!$X$187,K327='EXPENSE DATABASE'!$X$188,K327='EXPENSE DATABASE'!$X$189,K327='EXPENSE DATABASE'!$X$190,K327='EXPENSE DATABASE'!$X$191,K327='EXPENSE DATABASE'!$X$192,K327='EXPENSE DATABASE'!$X$193,K327='EXPENSE DATABASE'!$X$194,K327='EXPENSE DATABASE'!$Z$187,K327='EXPENSE DATABASE'!$Z$188,K327='EXPENSE DATABASE'!$Z$189,K327='EXPENSE DATABASE'!$Z$190,K327='EXPENSE DATABASE'!$Z$191,K327='EXPENSE DATABASE'!$Z$192,K327='EXPENSE DATABASE'!$Z$193,K327='EXPENSE DATABASE'!$Z$194),O327,\"\")","v":""},{"$f":"IF(OR(K327='EXPENSE DATABASE'!$T$189,K327='EXPENSE DATABASE'!$T$190,K327='EXPENSE DATABASE'!$T$191),O327,\"\")","v":""},{"$f":"VLOOKUP(I327,'EXPENSE DATABASE'!$B$41:$C$65,2,FALSE)","v":{"$error":"#N/A"}},100,{"$f":"VLOOKUP(J327,'EXPENSE DATABASE'!$B$69:$C$168,2,FALSE)","v":{"$error":"#N/A"}},101,{"$f":"VLOOKUP(K327,'EXPENSE DATABASE'!$B$6:$C$35,2,FALSE)","v":{"$error":"#N/A"}},31,{"$f":"VLOOKUP(L327,'EXPENSE DATABASE'!$B$173:$C$176,2,FALSE)","v":{"$error":"#N/A"}},100,0,0,{"$f":"IF(L327=T('EXPENSE DATABASE'!$E$173),O327,0)","v":0},{"$f":"IF(L327=T('EXPENSE DATABASE'!$E$174),O327,0)","v":0},{"$f":"IF(L327=T('EXPENSE DATABASE'!$E$175),O327,0)","v":0},0,314]
[0,0,{"$nulls":12},{"v":0,"d":"$0.00"},{"v":0,"d":"$0.00"},{"v":0,"d":"$0.00"},0,{"$f":"IF(OR(K328='EXPENSE DATABASE'!$V$187,K328='EXPENSE DATABASE'!$V$188,K328='EXPENSE DATABASE'!$V$189,K328='EXPENSE DATABASE'!$V$190,K328='EXPENSE DATABASE'!$V$191,K328='EXPENSE DATABASE'!$V$192,K328='EXPENSE DATABASE'!$V$193,K328='EXPENSE DATABASE'!$V$194,K328='EXPENSE DATABASE'!$X$187,K328='EXPENSE DATABASE'!$X$188,K328='EXPENSE DATABASE'!$X$189,K328='EXPENSE DATABASE'!$X$190,K328='EXPENSE DATABASE'!$X$191,K328='EXPENSE DATABASE'!$X$192,K328='EXPENSE DATABASE'!$X$193,K328='EXPENSE DATABASE'!$X$194,K328='EXPENSE DATABASE'!$Z$187,K328='EXPENSE DATABASE'!$Z$188,K328='EXPENSE DATABASE'!$Z$189,K328='EXPENSE DATABASE'!$Z$190,K328='EXPENSE DATABASE'!$Z$191,K328='EXPENSE DATABASE'!$Z$192,K328='EXPENSE DATABASE'!$Z$193,K328='EXPENSE DATABASE'!$Z$194),O328,\"\")","v":""},{"$f":"IF(OR(K328='EXPENSE DATABASE'!$T$189,K328='EXPENSE DATABASE'!$T$190,K328='EXPENSE DATABASE'!$T$191),O328,\"\")","v":""},{"$f":"VLOOKUP(I328,'EXPENSE DATABASE'!$B$41:$C$65,2,FALSE)","v":{"$error":"#N/A"}},100,{"$f":"VLOOKUP(J328,'EXPENSE DATABASE'!$B$69:$C$168,2,FALSE)","v":{"$error":"#N/A"}},101,{"$f":"VLOOKUP(K328,'EXPENSE DATABASE'!$B$6:$C$35,2,FALSE)","v":{"$error":"#N/A"}},31,{"$f":"VLOOKUP(L328,'EXPENSE DATABASE'!$B$173:$C$176,2,FALSE)","v":{"$error":"#N/A"}},100,0,0,{"$f":"IF(L328=T('EXPENSE DATABASE'!$E$173),O328,0)","v":0},{"$f":"IF(L328=T('EXPENSE DATABASE'!$E$174),O328,0)","v":0},{"$f":"IF(L328=T('EXPENSE DATABASE'!$E$175),O328,0)","v":0},0,315]
[0,0,{"$nulls":12},{"v":0,"d":"$0.00"},{"v":0,"d":"$0.00"},{"v":0,"d":"$0.00"},0,{"$f":"IF(OR(K329='EXPENSE DATABASE'!$V$187,K329='EXPENSE DATABASE'!$V$188,K329='EXPENSE DATABASE'!$V$189,K329='EXPENSE DATABASE'!$V$190,K329='EXPENSE DATABASE'!$V$191,K329='EXPENSE DATABASE'!$V$192,K329='EXPENSE DATABASE'!$V$193,K329='EXPENSE DATABASE'!$V$194,K329='EXPENSE DATABASE'!$X$187,K329='EXPENSE DATABASE'!$X$188,K329='EXPENSE DATABASE'!$X$189,K329='EXPENSE DATABASE'!$X$190,K329='EXPENSE DATABASE'!$X$191,K329='EXPENSE DATABASE'!$X$192,K329='EXPENSE DATABASE'!$X$193,K329='EXPENSE DATABASE'!$X$194,K329='EXPENSE DATABASE'!$Z$187,K329='EXPENSE DATABASE'!$Z$188,K329='EXPENSE DATABASE'!$Z$189,K329='EXPENSE DATABASE'!$Z$190,K329='EXPENSE DATABASE'!$Z$191,K329='EXPENSE DATABASE'!$Z$192,K329='EXPENSE DATABASE'!$Z$193,K329='EXPENSE DATABASE'!$Z$194),O329,\"\")","v":""},{"$f":"IF(OR(K329='EXPENSE DATABASE'!$T$189,K329='EXPENSE DATABASE'!$T$190,K329='EXPENSE DATABASE'!$T$191),O329,\"\")","v":""},{"$f":"VLOOKUP(I329,'EXPENSE DATABASE'!$B$41:$C$65,2,FALSE)","v":{"$error":"#N/A"}},100,{"$f":"VLOOKUP(J329,'EXPENSE DATABASE'!$B$69:$C$168,2,FALSE)","v":{"$error":"#N/A"}},101,{"$f":"VLOOKUP(K329,'EXPENSE DATABASE'!$B$6:$C$35,2,FALSE)","v":{"$error":"#N/A"}},31,{"$f":"VLOOKUP(L329,'EXPENSE DATABASE'!$B$173:$C$176,2,FALSE)","v":{"$error":"#N/A"}},100,0,0,{"$f":"IF(L329=T('EXPENSE DATABASE'!$E$173),O329,0)","v":0},{"$f":"IF(L329=T('EXPENSE DATABASE'!$E$174),O329,0)","v":0},{"$f":"IF(L329=T('EXPENSE DATABASE'!$E$175),O329,0)","v":0},0,316]
[0,0,{"$nulls":12},{"v":0,"d":"$0.00"},{"v":0,"d":"$0.00"},{"v":0,"d":"$0.00"},0,{"$f":"IF(OR(K330='EXPENSE DATABASE'!$V$187,K330='EXPENSE DATABASE'!$V$188,K330='EXPENSE DATABASE'!$V$189,K330='EXPENSE DATABASE'!$V$190,K330='EXPENSE DATABASE'!$V$191,K330='EXPENSE DATABASE'!$V$192,K330='EXPENSE DATABASE'!$V$193,K330='EXPENSE DATABASE'!$V$194,K330='EXPENSE DATABASE'!$X$187,K330='EXPENSE DATABASE'!$X$188,K330='EXPENSE DATABASE'!$X$189,K330='EXPENSE DATABASE'!$X$190,K330='EXPENSE DATABASE'!$X$191,K330='EXPENSE DATABASE'!$X$192,K330='EXPENSE DATABASE'!$X$193,K330='EXPENSE DATABASE'!$X$194,K330='EXPENSE DATABASE'!$Z$187,K330='EXPENSE DATABASE'!$Z$188,K330='EXPENSE DATABASE'!$Z$189,K330='EXPENSE DATABASE'!$Z$190,K330='EXPENSE DATABASE'!$Z$191,K330='EXPENSE DATABASE'!$Z$192,K330='EXPENSE DATABASE'!$Z$193,K330='EXPENSE DATABASE'!$Z$194),O330,\"\")","v":""},{"$f":"IF(OR(K330='EXPENSE DATABASE'!$T$189,K330='EXPENSE DATABASE'!$T$190,K330='EXPENSE DATABASE'!$T$191),O330,\"\")","v":""},{"$f":"VLOOKUP(I330,'EXPENSE DATABASE'!$B$41:$C$65,2,FALSE)","v":{"$error":"#N/A"}},100,{"$f":"VLOOKUP(J330,'EXPENSE DATABASE'!$B$69:$C$168,2,FALSE)","v":{"$error":"#N/A"}},101,{"$f":"VLOOKUP(K330,'EXPENSE DATABASE'!$B$6:$C$35,2,FALSE)","v":{"$error":"#N/A"}},31,{"$f":"VLOOKUP(L330,'EXPENSE DATABASE'!$B$173:$C$176,2,FALSE)","v":{"$error":"#N/A"}},100,0,0,{"$f":"IF(L330=T('EXPENSE DATABASE'!$E$173),O330,0)","v":0},{"$f":"IF(L330=T('EXPENSE DATABASE'!$E$174),O330,0)","v":0},{"$f":"IF(L330=T('EXPENSE DATABASE'!$E$175),O330,0)","v":0},0,317]
[0,0,{"$nulls":12},{"v":0,"d":"$0.00"},{"v":0,"d":"$0.00"},{"v":0,"d":"$0.00"},0,{"$f":"IF(OR(K331='EXPENSE DATABASE'!$V$187,K331='EXPENSE DATABASE'!$V$188,K331='EXPENSE DATABASE'!$V$189,K331='EXPENSE DATABASE'!$V$190,K331='EXPENSE DATABASE'!$V$191,K331='EXPENSE DATABASE'!$V$192,K331='EXPENSE DATABASE'!$V$193,K331='EXPENSE DATABASE'!$V$194,K331='EXPENSE DATABASE'!$X$187,K331='EXPENSE DATABASE'!$X$188,K331='EXPENSE DATABASE'!$X$189,K331='EXPENSE DATABASE'!$X$190,K331='EXPENSE DATABASE'!$X$191,K331='EXPENSE DATABASE'!$X$192,K331='EXPENSE DATABASE'!$X$193,K331='EXPENSE DATABASE'!$X$194,K331='EXPENSE DATABASE'!$Z$187,K331='EXPENSE DATABASE'!$Z$188,K331='EXPENSE DATABASE'!$Z$189,K331='EXPENSE DATABASE'!$Z$190,K331='EXPENSE DATABASE'!$Z$191,K331='EXPENSE DATABASE'!$Z$192,K331='EXPENSE DATABASE'!$Z$193,K331='EXPENSE DATABASE'!$Z$194),O331,\"\")","v":""},{"$f":"IF(OR(K331='EXPENSE DATABASE'!$T$189,K331='EXPENSE DATABASE'!$T$190,K331='EXPENSE DATABASE'!$T$191),O331,\"\")","v":""},{"$f":"VLOOKUP(I331,'EXPENSE DATABASE'!$B$41:$C$65,2,FALSE)","v":{"$error":"#N/A"}},100,{"$f":"VLOOKUP(J331,'EXPENSE DATABASE'!$B$69:$C$168,2,FALSE)","v":{"$error":"#N/A"}},101,{"$f":"VLOOKUP(K331,'EXPENSE DATABASE'!$B$6:$C$35,2,FALSE)","v":{"$error":"#N/A"}},31,{"$f":"VLOOKUP(L331,'EXPENSE DATABASE'!$B$173:$C$176,2,FALSE)","v":{"$error":"#N/A"}},100,0,0,{"$f":"IF(L331=T('EXPENSE DATABASE'!$E$173),O331,0)","v":0},{"$f":"IF(L331=T('EXPENSE DATABASE'!$E$174),O331,0)","v":0},{"$f":"IF(L331=T('EXPENSE DATABASE'!$E$175),O331,0)","v":0},0,318]
[0,0,{"$nulls":12},{"v":0,"d":"$0.00"},{"v":0,"d":"$0.00"},{"v":0,"d":"$0.00"},0,{"$f":"IF(OR(K332='EXPENSE DATABASE'!$V$187,K332='EXPENSE DATABASE'!$V$188,K332='EXPENSE DATABASE'!$V$189,K332='EXPENSE DATABASE'!$V$190,K332='EXPENSE DATABASE'!$V$191,K332='EXPENSE DATABASE'!$V$192,K332='EXPENSE DATABASE'!$V$193,K332='EXPENSE DATABASE'!$V$194,K332='EXPENSE DATABASE'!$X$187,K332='EXPENSE DATABASE'!$X$188,K332='EXPENSE DATABASE'!$X$189,K332='EXPENSE DATABASE'!$X$190,K332='EXPENSE DATABASE'!$X$191,K332='EXPENSE DATABASE'!$X$192,K332='EXPENSE DATABASE'!$X$193,K332='EXPENSE DATABASE'!$X$194,K332='EXPENSE DATABASE'!$Z$187,K332='EXPENSE DATABASE'!$Z$188,K332='EXPENSE DATABASE'!$Z$189,K332='EXPENSE DATABASE'!$Z$190,K332='EXPENSE DATABASE'!$Z$191,K332='EXPENSE DATABASE'!$Z$192,K332='EXPENSE DATABASE'!$Z$193,K332='EXPENSE DATABASE'!$Z$194),O332,\"\")","v":""},{"$f":"IF(OR(K332='EXPENSE DATABASE'!$T$189,K332='EXPENSE DATABASE'!$T$190,K332='EXPENSE DATABASE'!$T$191),O332,\"\")","v":""},{"$f":"VLOOKUP(I332,'EXPENSE DATABASE'!$B$41:$C$65,2,FALSE)","v":{"$error":"#N/A"}},100,{"$f":"VLOOKUP(J332,'EXPENSE DATABASE'!$B$69:$C$168,2,FALSE)","v":{"$error":"#N/A"}},101,{"$f":"VLOOKUP(K332,'EXPENSE DATABASE'!$B$6:$C$35,2,FALSE)","v":{"$error":"#N/A"}},31,{"$f":"VLOOKUP(L332,'EXPENSE DATABASE'!$B$173:$C$176,2,FALSE)","v":{"$error":"#N/A"}},100,0,0,{"$f":"IF(L332=T('EXPENSE DATABASE'!$E$173),O332,0)","v":0},{"$f":"IF(L332=T('EXPENSE DATABASE'!$E$174),O332,0)","v":0},{"$f":"IF(L332=T('EXPENSE DATABASE'!$E$175),O332,0)","v":0},0,319]
[0,0,{"$nulls":12},{"v":0,"d":"$0.00"},{"v":0,"d":"$0.00"},{"v":0,"d":"$0.00"},0,{"$f":"IF(OR(K333='EXPENSE DATABASE'!$V$187,K333='EXPENSE DATABASE'!$V$188,K333='EXPENSE DATABASE'!$V$189,K333='EXPENSE DATABASE'!$V$190,K333='EXPENSE DATABASE'!$V$191,K333='EXPENSE DATABASE'!$V$192,K333='EXPENSE DATABASE'!$V$193,K333='EXPENSE DATABASE'!$V$194,K333='EXPENSE DATABASE'!$X$187,K333='EXPENSE DATABASE'!$X$188,K333='EXPENSE DATABASE'!$X$189,K333='EXPENSE DATABASE'!$X$190,K333='EXPENSE DATABASE'!$X$191,K333='EXPENSE DATABASE'!$X$192,K333='EXPENSE DATABASE'!$X$193,K333='EXPENSE DATABASE'!$X$194,K333='EXPENSE DATABASE'!$Z$187,K333='EXPENSE DATABASE'!$Z$188,K333='EXPENSE DATABASE'!$Z$189,K333='EXPENSE DATABASE'!$Z$190,K333='EXPENSE DATABASE'!$Z$191,K333='EXPENSE DATABASE'!$Z$192,K333='EXPENSE DATABASE'!$Z$193,K333='EXPENSE DATABASE'!$Z$194),O333,\"\")","v":""},{"$f":"IF(OR(K333='EXPENSE DATABASE'!$T$189,K333='EXPENSE DATABASE'!$T$190,K333='EXPENSE DATABASE'!$T$191),O333,\"\")","v":""},{"$f":"VLOOKUP(I333,'EXPENSE DATABASE'!$B$41:$C$65,2,FALSE)","v":{"$error":"#N/A"}},100,{"$f":"VLOOKUP(J333,'EXPENSE DATABASE'!$B$69:$C$168,2,FALSE)","v":{"$error":"#N/A"}},101,{"$f":"VLOOKUP(K333,'EXPENSE DATABASE'!$B$6:$C$35,2,FALSE)","v":{"$error":"#N/A"}},31,{"$f":"VLOOKUP(L333,'EXPENSE DATABASE'!$B$173:$C$176,2,FALSE)","v":{"$error":"#N/A"}},100,0,0,{"$f":"IF(L333=T('EXPENSE DATABASE'!$E$173),O333,0)","v":0},{"$f":"IF(L333=T('EXPENSE DATABASE'!$E$174),O333,0)","v":0},{"$f":"IF(L333=T('EXPENSE DATABASE'!$E$175),O333,0)","v":0},0,320]
[{"$f":"IF(COUNTA(D334,E334,F334,G334,H334,I334,J334,K334,L334,M334,N334)>0,1,0)","v":0},{"$f":"IF((COUNTA(I334:L334)=4),1,-1)*A334","v":0},{"$nulls":12},{"$f":"M334*N334","v":{"v":0,"d":"$0.00"}},{"$f":"IF(OR(D334=\"No\",D334=\"\"),O334,0)","v":{"v":0,"d":"$0.00"}},{"$f":"IF(D334=\"Yes\",O334,0)","v":{"v":0,"d":"$0.00"}},{"$f":"IF(O334>0,1,0)","v":0},{"$f":"IF(OR(K334='EXPENSE DATABASE'!$V$187,K334='EXPENSE DATABASE'!$V$188,K334='EXPENSE DATABASE'!$V$189,K334='EXPENSE DATABASE'!$V$190,K334='EXPENSE DATABASE'!$V$191,K334='EXPENSE DATABASE'!$V$192,K334='EXPENSE DATABASE'!$V$193,K334='EXPENSE DATABASE'!$V$194,K334='EXPENSE DATABASE'!$X$187,K334='EXPENSE DATABASE'!$X$188,K334='EXPENSE DATABASE'!$X$189,K334='EXPENSE DATABASE'!$X$190,K334='EXPENSE DATABASE'!$X$191,K334='EXPENSE DATABASE'!$X$192,K334='EXPENSE DATABASE'!$X$193,K334='EXPENSE DATABASE'!$X$194,K334='EXPENSE DATABASE'!$Z$187,K334='EXPENSE DATABASE'!$Z$188,K334='EXPENSE DATABASE'!$Z$189,K334='EXPENSE DATABASE'!$Z$190,K334='EXPENSE DATABASE'!$Z$191,K334='EXPENSE DATABASE'!$Z$192,K334='EXPENSE DATABASE'!$Z$193,K334='EXPENSE DATABASE'!$Z$194),O334,\"\")","v":""},{"$f":"IF(OR(K334='EXPENSE DATABASE'!$T$189,K334='EXPENSE DATABASE'!$T$190,K334='EXPENSE DATABASE'!$T$191),O334,\"\")","v":""},{"$f":"VLOOKUP(I334,'EXPENSE DATABASE'!$B$41:$C$65,2,FALSE)","v":{"$error":"#N/A"}},{"$f":"IFERROR(U334,100)","v":100},{"$f":"VLOOKUP(J334,'EXPENSE DATABASE'!$B$69:$C$168,2,FALSE)","v":{"$error":"#N/A"}},{"$f":"IFERROR(W334,101)","v":101},{"$f":"VLOOKUP(K334,'EXPENSE DATABASE'!$B$6:$C$35,2,FALSE)","v":{"$error":"#N/A"}},{"$f":"IFERROR(Y334,31)","v":31},{"$f":"VLOOKUP(L334,'EXPENSE DATABASE'!$B$173:$C$176,2,FALSE)","v":{"$error":"#N/A"}},{"$f":"IFERROR(AA334,100)","v":100},{"$f":"IF(K334=0,0,1)","v":0},{"$f":"IF(J334=0,0,1)","v":0},{"$f":"IF(L334=T('EXPENSE DATABASE'!$E$173),O334,0)","v":0},{"$f":"IF(L334=T('EXPENSE DATABASE'!$E$174),O334,0)","v":0},{"$f":"IF(L334=T('EXPENSE DATABASE'!$E$175),O334,0)","v":0},{"$f":"IF(OR(N334=0,E334=0),0,MONTH(E334))","v":0},321]
[0,0,{"$nulls":12},{"v":0,"d":"$0.00"},{"v":0,"d":"$0.00"},{"v":0,"d":"$0.00"},0,{"$f":"IF(OR(K335='EXPENSE DATABASE'!$V$187,K335='EXPENSE DATABASE'!$V$188,K335='EXPENSE DATABASE'!$V$189,K335='EXPENSE DATABASE'!$V$190,K335='EXPENSE DATABASE'!$V$191,K335='EXPENSE DATABASE'!$V$192,K335='EXPENSE DATABASE'!$V$193,K335='EXPENSE DATABASE'!$V$194,K335='EXPENSE DATABASE'!$X$187,K335='EXPENSE DATABASE'!$X$188,K335='EXPENSE DATABASE'!$X$189,K335='EXPENSE DATABASE'!$X$190,K335='EXPENSE DATABASE'!$X$191,K335='EXPENSE DATABASE'!$X$192,K335='EXPENSE DATABASE'!$X$193,K335='EXPENSE DATABASE'!$X$194,K335='EXPENSE DATABASE'!$Z$187,K335='EXPENSE DATABASE'!$Z$188,K335='EXPENSE DATABASE'!$Z$189,K335='EXPENSE DATABASE'!$Z$190,K335='EXPENSE DATABASE'!$Z$191,K335='EXPENSE DATABASE'!$Z$192,K335='EXPENSE DATABASE'!$Z$193,K335='EXPENSE DATABASE'!$Z$194),O335,\"\")","v":""},{"$f":"IF(OR(K335='EXPENSE DATABASE'!$T$189,K335='EXPENSE DATABASE'!$T$190,K335='EXPENSE DATABASE'!$T$191),O335,\"\")","v":""},{"$f":"VLOOKUP(I335,'EXPENSE DATABASE'!$B$41:$C$65,2,FALSE)","v":{"$error":"#N/A"}},100,{"$f":"VLOOKUP(J335,'EXPENSE DATABASE'!$B$69:$C$168,2,FALSE)","v":{"$error":"#N/A"}},101,{"$f":"VLOOKUP(K335,'EXPENSE DATABASE'!$B$6:$C$35,2,FALSE)","v":{"$error":"#N/A"}},31,{"$f":"VLOOKUP(L335,'EXPENSE DATABASE'!$B$173:$C$176,2,FALSE)","v":{"$error":"#N/A"}},100,0,0,{"$f":"IF(L335=T('EXPENSE DATABASE'!$E$173),O335,0)","v":0},{"$f":"IF(L335=T('EXPENSE DATABASE'!$E$174),O335,0)","v":0},{"$f":"IF(L335=T('EXPENSE DATABASE'!$E$175),O335,0)","v":0},0,322]
[0,0,{"$nulls":12},{"v":0,"d":"$0.00"},{"v":0,"d":"$0.00"},{"v":0,"d":"$0.00"},0,{"$f":"IF(OR(K336='EXPENSE DATABASE'!$V$187,K336='EXPENSE DATABASE'!$V$188,K336='EXPENSE DATABASE'!$V$189,K336='EXPENSE DATABASE'!$V$190,K336='EXPENSE DATABASE'!$V$191,K336='EXPENSE DATABASE'!$V$192,K336='EXPENSE DATABASE'!$V$193,K336='EXPENSE DATABASE'!$V$194,K336='EXPENSE DATABASE'!$X$187,K336='EXPENSE DATABASE'!$X$188,K336='EXPENSE DATABASE'!$X$189,K336='EXPENSE DATABASE'!$X$190,K336='EXPENSE DATABASE'!$X$191,K336='EXPENSE DATABASE'!$X$192,K336='EXPENSE DATABASE'!$X$193,K336='EXPENSE DATABASE'!$X$194,K336='EXPENSE DATABASE'!$Z$187,K336='EXPENSE DATABASE'!$Z$188,K336='EXPENSE DATABASE'!$Z$189,K336='EXPENSE DATABASE'!$Z$190,K336='EXPENSE DATABASE'!$Z$191,K336='EXPENSE DATABASE'!$Z$192,K336='EXPENSE DATABASE'!$Z$193,K336='EXPENSE DATABASE'!$Z$194),O336,\"\")","v":""},{"$f":"IF(OR(K336='EXPENSE DATABASE'!$T$189,K336='EXPENSE DATABASE'!$T$190,K336='EXPENSE DATABASE'!$T$191),O336,\"\")","v":""},{"$f":"VLOOKUP(I336,'EXPENSE DATABASE'!$B$41:$C$65,2,FALSE)","v":{"$error":"#N/A"}},100,{"$f":"VLOOKUP(J336,'EXPENSE DATABASE'!$B$69:$C$168,2,FALSE)","v":{"$error":"#N/A"}},101,{"$f":"VLOOKUP(K336,'EXPENSE DATABASE'!$B$6:$C$35,2,FALSE)","v":{"$error":"#N/A"}},31,{"$f":"VLOOKUP(L336,'EXPENSE DATABASE'!$B$173:$C$176,2,FALSE)","v":{"$error":"#N/A"}},100,0,0,{"$f":"IF(L336=T('EXPENSE DATABASE'!$E$173),O336,0)","v":0},{"$f":"IF(L336=T('EXPENSE DATABASE'!$E$174),O336,0)","v":0},{"$f":"IF(L336=T('EXPENSE DATABASE'!$E$175),O336,0)","v":0},0,323]
[0,0,{"$nulls":12},{"v":0,"d":"$0.00"},{"v":0,"d":"$0.00"},{"v":0,"d":"$0.00"},0,{"$f":"IF(OR(K337='EXPENSE DATABASE'!$V$187,K337='EXPENSE DATABASE'!$V$188,K337='EXPENSE DATABASE'!$V$189,K337='EXPENSE DATABASE'!$V$190,K337='EXPENSE DATABASE'!$V$191,K337='EXPENSE DATABASE'!$V$192,K337='EXPENSE DATABASE'!$V$193,K337='EXPENSE DATABASE'!$V$194,K337='EXPENSE DATABASE'!$X$187,K337='EXPENSE DATABASE'!$X$188,K337='EXPENSE DATABASE'!$X$189,K337='EXPENSE DATABASE'!$X$190,K337='EXPENSE DATABASE'!$X$191,K337='EXPENSE DATABASE'!$X$192,K337='EXPENSE DATABASE'!$X$193,K337='EXPENSE DATABASE'!$X$194,K337='EXPENSE DATABASE'!$Z$187,K337='EXPENSE DATABASE'!$Z$188,K337='EXPENSE DATABASE'!$Z$189,K337='EXPENSE DATABASE'!$Z$190,K337='EXPENSE DATABASE'!$Z$191,K337='EXPENSE DATABASE'!$Z$192,K337='EXPENSE DATABASE'!$Z$193,K337='EXPENSE DATABASE'!$Z$194),O337,\"\")","v":""},{"$f":"IF(OR(K337='EXPENSE DATABASE'!$T$189,K337='EXPENSE DATABASE'!$T$190,K337='EXPENSE DATABASE'!$T$191),O337,\"\")","v":""},{"$f":"VLOOKUP(I337,'EXPENSE DATABASE'!$B$41:$C$65,2,FALSE)","v":{"$error":"#N/A"}},100,{"$f":"VLOOKUP(J337,'EXPENSE DATABASE'!$B$69:$C$168,2,FALSE)","v":{"$error":"#N/A"}},101,{"$f":"VLOOKUP(K337,'EXPENSE DATABASE'!$B$6:$C$35,2,FALSE)","v":{"$error":"#N/A"}},31,{"$f":"VLOOKUP(L337,'EXPENSE DATABASE'!$B$173:$C$176,2,FALSE)","v":{"$error":"#N/A"}},100,0,0,{"$f":"IF(L337=T('EXPENSE DATABASE'!$E$173),O337,0)","v":0},{"$f":"IF(L337=T('EXPENSE DATABASE'!$E$174),O337,0)","v":0},{"$f":"IF(L337=T('EXPENSE DATABASE'!$E$175),O337,0)","v":0},0,324]
[0,0,{"$nulls":12},{"v":0,"d":"$0.00"},{"v":0,"d":"$0.00"},{"v":0,"d":"$0.00"},0,{"$f":"IF(OR(K338='EXPENSE DATABASE'!$V$187,K338='EXPENSE DATABASE'!$V$188,K338='EXPENSE DATABASE'!$V$189,K338='EXPENSE DATABASE'!$V$190,K338='EXPENSE DATABASE'!$V$191,K338='EXPENSE DATABASE'!$V$192,K338='EXPENSE DATABASE'!$V$193,K338='EXPENSE DATABASE'!$V$194,K338='EXPENSE DATABASE'!$X$187,K338='EXPENSE DATABASE'!$X$188,K338='EXPENSE DATABASE'!$X$189,K338='EXPENSE DATABASE'!$X$190,K338='EXPENSE DATABASE'!$X$191,K338='EXPENSE DATABASE'!$X$192,K338='EXPENSE DATABASE'!$X$193,K338='EXPENSE DATABASE'!$X$194,K338='EXPENSE DATABASE'!$Z$187,K338='EXPENSE DATABASE'!$Z$188,K338='EXPENSE DATABASE'!$Z$189,K338='EXPENSE DATABASE'!$Z$190,K338='EXPENSE DATABASE'!$Z$191,K338='EXPENSE DATABASE'!$Z$192,K338='EXPENSE DATABASE'!$Z$193,K338='EXPENSE DATABASE'!$Z$194),O338,\"\")","v":""},{"$f":"IF(OR(K338='EXPENSE DATABASE'!$T$189,K338='EXPENSE DATABASE'!$T$190,K338='EXPENSE DATABASE'!$T$191),O338,\"\")","v":""},{"$f":"VLOOKUP(I338,'EXPENSE DATABASE'!$B$41:$C$65,2,FALSE)","v":{"$error":"#N/A"}},100,{"$f":"VLOOKUP(J338,'EXPENSE DATABASE'!$B$69:$C$168,2,FALSE)","v":{"$error":"#N/A"}},101,{"$f":"VLOOKUP(K338,'EXPENSE DATABASE'!$B$6:$C$35,2,FALSE)","v":{"$error":"#N/A"}},31,{"$f":"VLOOKUP(L338,'EXPENSE DATABASE'!$B$173:$C$176,2,FALSE)","v":{"$error":"#N/A"}},100,0,0,{"$f":"IF(L338=T('EXPENSE DATABASE'!$E$173),O338,0)","v":0},{"$f":"IF(L338=T('EXPENSE DATABASE'!$E$174),O338,0)","v":0},{"$f":"IF(L338=T('EXPENSE DATABASE'!$E$175),O338,0)","v":0},0,325]
[0,0,{"$nulls":12},{"v":0,"d":"$0.00"},{"v":0,"d":"$0.00"},{"v":0,"d":"$0.00"},0,{"$f":"IF(OR(K339='EXPENSE DATABASE'!$V$187,K339='EXPENSE DATABASE'!$V$188,K339='EXPENSE DATABASE'!$V$189,K339='EXPENSE DATABASE'!$V$190,K339='EXPENSE DATABASE'!$V$191,K339='EXPENSE DATABASE'!$V$192,K339='EXPENSE DATABASE'!$V$193,K339='EXPENSE DATABASE'!$V$194,K339='EXPENSE DATABASE'!$X$187,K339='EXPENSE DATABASE'!$X$188,K339='EXPENSE DATABASE'!$X$189,K339='EXPENSE DATABASE'!$X$190,K339='EXPENSE DATABASE'!$X$191,K339='EXPENSE DATABASE'!$X$192,K339='EXPENSE DATABASE'!$X$193,K339='EXPENSE DATABASE'!$X$194,K339='EXPENSE DATABASE'!$Z$187,K339='EXPENSE DATABASE'!$Z$188,K339='EXPENSE DATABASE'!$Z$189,K339='EXPENSE DATABASE'!$Z$190,K339='EXPENSE DATABASE'!$Z$191,K339='EXPENSE DATABASE'!$Z$192,K339='EXPENSE DATABASE'!$Z$193,K339='EXPENSE DATABASE'!$Z$194),O339,\"\")","v":""},{"$f":"IF(OR(K339='EXPENSE DATABASE'!$T$189,K339='EXPENSE DATABASE'!$T$190,K339='EXPENSE DATABASE'!$T$191),O339,\"\")","v":""},{"$f":"VLOOKUP(I339,'EXPENSE DATABASE'!$B$41:$C$65,2,FALSE)","v":{"$error":"#N/A"}},100,{"$f":"VLOOKUP(J339,'EXPENSE DATABASE'!$B$69:$C$168,2,FALSE)","v":{"$error":"#N/A"}},101,{"$f":"VLOOKUP(K339,'EXPENSE DATABASE'!$B$6:$C$35,2,FALSE)","v":{"$error":"#N/A"}},31,{"$f":"VLOOKUP(L339,'EXPENSE DATABASE'!$B$173:$C$176,2,FALSE)","v":{"$error":"#N/A"}},100,0,0,{"$f":"IF(L339=T('EXPENSE DATABASE'!$E$173),O339,0)","v":0},{"$f":"IF(L339=T('EXPENSE DATABASE'!$E$174),O339,0)","v":0},{"$f":"IF(L339=T('EXPENSE DATABASE'!$E$175),O339,0)","v":0},0,326]
[0,0,{"$nulls":12},{"v":0,"d":"$0.00"},{"v":0,"d":"$0.00"},{"v":0,"d":"$0.00"},0,{"$f":"IF(OR(K340='EXPENSE DATABASE'!$V$187,K340='EXPENSE DATABASE'!$V$188,K340='EXPENSE DATABASE'!$V$189,K340='EXPENSE DATABASE'!$V$190,K340='EXPENSE DATABASE'!$V$191,K340='EXPENSE DATABASE'!$V$192,K340='EXPENSE DATABASE'!$V$193,K340='EXPENSE DATABASE'!$V$194,K340='EXPENSE DATABASE'!$X$187,K340='EXPENSE DATABASE'!$X$188,K340='EXPENSE DATABASE'!$X$189,K340='EXPENSE DATABASE'!$X$190,K340='EXPENSE DATABASE'!$X$191,K340='EXPENSE DATABASE'!$X$192,K340='EXPENSE DATABASE'!$X$193,K340='EXPENSE DATABASE'!$X$194,K340='EXPENSE DATABASE'!$Z$187,K340='EXPENSE DATABASE'!$Z$188,K340='EXPENSE DATABASE'!$Z$189,K340='EXPENSE DATABASE'!$Z$190,K340='EXPENSE DATABASE'!$Z$191,K340='EXPENSE DATABASE'!$Z$192,K340='EXPENSE DATABASE'!$Z$193,K340='EXPENSE DATABASE'!$Z$194),O340,\"\")","v":""},{"$f":"IF(OR(K340='EXPENSE DATABASE'!$T$189,K340='EXPENSE DATABASE'!$T$190,K340='EXPENSE DATABASE'!$T$191),O340,\"\")","v":""},{"$f":"VLOOKUP(I340,'EXPENSE DATABASE'!$B$41:$C$65,2,FALSE)","v":{"$error":"#N/A"}},100,{"$f":"VLOOKUP(J340,'EXPENSE DATABASE'!$B$69:$C$168,2,FALSE)","v":{"$error":"#N/A"}},101,{"$f":"VLOOKUP(K340,'EXPENSE DATABASE'!$B$6:$C$35,2,FALSE)","v":{"$error":"#N/A"}},31,{"$f":"VLOOKUP(L340,'EXPENSE DATABASE'!$B$173:$C$176,2,FALSE)","v":{"$error":"#N/A"}},100,0,0,{"$f":"IF(L340=T('EXPENSE DATABASE'!$E$173),O340,0)","v":0},{"$f":"IF(L340=T('EXPENSE DATABASE'!$E$174),O340,0)","v":0},{"$f":"IF(L340=T('EXPENSE DATABASE'!$E$175),O340,0)","v":0},0,327]
[0,0,{"$nulls":12},{"v":0,"d":"$0.00"},{"v":0,"d":"$0.00"},{"v":0,"d":"$0.00"},0,{"$f":"IF(OR(K341='EXPENSE DATABASE'!$V$187,K341='EXPENSE DATABASE'!$V$188,K341='EXPENSE DATABASE'!$V$189,K341='EXPENSE DATABASE'!$V$190,K341='EXPENSE DATABASE'!$V$191,K341='EXPENSE DATABASE'!$V$192,K341='EXPENSE DATABASE'!$V$193,K341='EXPENSE DATABASE'!$V$194,K341='EXPENSE DATABASE'!$X$187,K341='EXPENSE DATABASE'!$X$188,K341='EXPENSE DATABASE'!$X$189,K341='EXPENSE DATABASE'!$X$190,K341='EXPENSE DATABASE'!$X$191,K341='EXPENSE DATABASE'!$X$192,K341='EXPENSE DATABASE'!$X$193,K341='EXPENSE DATABASE'!$X$194,K341='EXPENSE DATABASE'!$Z$187,K341='EXPENSE DATABASE'!$Z$188,K341='EXPENSE DATABASE'!$Z$189,K341='EXPENSE DATABASE'!$Z$190,K341='EXPENSE DATABASE'!$Z$191,K341='EXPENSE DATABASE'!$Z$192,K341='EXPENSE DATABASE'!$Z$193,K341='EXPENSE DATABASE'!$Z$194),O341,\"\")","v":""},{"$f":"IF(OR(K341='EXPENSE DATABASE'!$T$189,K341='EXPENSE DATABASE'!$T$190,K341='EXPENSE DATABASE'!$T$191),O341,\"\")","v":""},{"$f":"VLOOKUP(I341,'EXPENSE DATABASE'!$B$41:$C$65,2,FALSE)","v":{"$error":"#N/A"}},100,{"$f":"VLOOKUP(J341,'EXPENSE DATABASE'!$B$69:$C$168,2,FALSE)","v":{"$error":"#N/A"}},101,{"$f":"VLOOKUP(K341,'EXPENSE DATABASE'!$B$6:$C$35,2,FALSE)","v":{"$error":"#N/A"}},31,{"$f":"VLOOKUP(L341,'EXPENSE DATABASE'!$B$173:$C$176,2,FALSE)","v":{"$error":"#N/A"}},100,0,0,{"$f":"IF(L341=T('EXPENSE DATABASE'!$E$173),O341,0)","v":0},{"$f":"IF(L341=T('EXPENSE DATABASE'!$E$174),O341,0)","v":0},{"$f":"IF(L341=T('EXPENSE DATABASE'!$E$175),O341,0)","v":0},0,328]
[0,0,{"$nulls":12},{"v":0,"d":"$0.00"},{"v":0,"d":"$0.00"},{"v":0,"d":"$0.00"},0,{"$f":"IF(OR(K342='EXPENSE DATABASE'!$V$187,K342='EXPENSE DATABASE'!$V$188,K342='EXPENSE DATABASE'!$V$189,K342='EXPENSE DATABASE'!$V$190,K342='EXPENSE DATABASE'!$V$191,K342='EXPENSE DATABASE'!$V$192,K342='EXPENSE DATABASE'!$V$193,K342='EXPENSE DATABASE'!$V$194,K342='EXPENSE DATABASE'!$X$187,K342='EXPENSE DATABASE'!$X$188,K342='EXPENSE DATABASE'!$X$189,K342='EXPENSE DATABASE'!$X$190,K342='EXPENSE DATABASE'!$X$191,K342='EXPENSE DATABASE'!$X$192,K342='EXPENSE DATABASE'!$X$193,K342='EXPENSE DATABASE'!$X$194,K342='EXPENSE DATABASE'!$Z$187,K342='EXPENSE DATABASE'!$Z$188,K342='EXPENSE DATABASE'!$Z$189,K342='EXPENSE DATABASE'!$Z$190,K342='EXPENSE DATABASE'!$Z$191,K342='EXPENSE DATABASE'!$Z$192,K342='EXPENSE DATABASE'!$Z$193,K342='EXPENSE DATABASE'!$Z$194),O342,\"\")","v":""},{"$f":"IF(OR(K342='EXPENSE DATABASE'!$T$189,K342='EXPENSE DATABASE'!$T$190,K342='EXPENSE DATABASE'!$T$191),O342,\"\")","v":""},{"$f":"VLOOKUP(I342,'EXPENSE DATABASE'!$B$41:$C$65,2,FALSE)","v":{"$error":"#N/A"}},100,{"$f":"VLOOKUP(J342,'EXPENSE DATABASE'!$B$69:$C$168,2,FALSE)","v":{"$error":"#N/A"}},101,{"$f":"VLOOKUP(K342,'EXPENSE DATABASE'!$B$6:$C$35,2,FALSE)","v":{"$error":"#N/A"}},31,{"$f":"VLOOKUP(L342,'EXPENSE DATABASE'!$B$173:$C$176,2,FALSE)","v":{"$error":"#N/A"}},100,0,0,{"$f":"IF(L342=T('EXPENSE DATABASE'!$E$173),O342,0)","v":0},{"$f":"IF(L342=T('EXPENSE DATABASE'!$E$174),O342,0)","v":0},{"$f":"IF(L342=T('EXPENSE DATABASE'!$E$175),O342,0)","v":0},0,329]
[0,0,{"$nulls":12},{"v":0,"d":"$0.00"},{"v":0,"d":"$0.00"},{"v":0,"d":"$0.00"},0,{"$f":"IF(OR(K343='EXPENSE DATABASE'!$V$187,K343='EXPENSE DATABASE'!$V$188,K343='EXPENSE DATABASE'!$V$189,K343='EXPENSE DATABASE'!$V$190,K343='EXPENSE DATABASE'!$V$191,K343='EXPENSE DATABASE'!$V$192,K343='EXPENSE DATABASE'!$V$193,K343='EXPENSE DATABASE'!$V$194,K343='EXPENSE DATABASE'!$X$187,K343='EXPENSE DATABASE'!$X$188,K343='EXPENSE DATABASE'!$X$189,K343='EXPENSE DATABASE'!$X$190,K343='EXPENSE DATABASE'!$X$191,K343='EXPENSE DATABASE'!$X$192,K343='EXPENSE DATABASE'!$X$193,K343='EXPENSE DATABASE'!$X$194,K343='EXPENSE DATABASE'!$Z$187,K343='EXPENSE DATABASE'!$Z$188,K343='EXPENSE DATABASE'!$Z$189,K343='EXPENSE DATABASE'!$Z$190,K343='EXPENSE DATABASE'!$Z$191,K343='EXPENSE DATABASE'!$Z$192,K343='EXPENSE DATABASE'!$Z$193,K343='EXPENSE DATABASE'!$Z$194),O343,\"\")","v":""},{"$f":"IF(OR(K343='EXPENSE DATABASE'!$T$189,K343='EXPENSE DATABASE'!$T$190,K343='EXPENSE DATABASE'!$T$191),O343,\"\")","v":""},{"$f":"VLOOKUP(I343,'EXPENSE DATABASE'!$B$41:$C$65,2,FALSE)","v":{"$error":"#N/A"}},100,{"$f":"VLOOKUP(J343,'EXPENSE DATABASE'!$B$69:$C$168,2,FALSE)","v":{"$error":"#N/A"}},101,{"$f":"VLOOKUP(K343,'EXPENSE DATABASE'!$B$6:$C$35,2,FALSE)","v":{"$error":"#N/A"}},31,{"$f":"VLOOKUP(L343,'EXPENSE DATABASE'!$B$173:$C$176,2,FALSE)","v":{"$error":"#N/A"}},100,0,0,{"$f":"IF(L343=T('EXPENSE DATABASE'!$E$173),O343,0)","v":0},{"$f":"IF(L343=T('EXPENSE DATABASE'!$E$174),O343,0)","v":0},{"$f":"IF(L343=T('EXPENSE DATABASE'!$E$175),O343,0)","v":0},0,330]
[0,0,{"$nulls":12},{"v":0,"d":"$0.00"},{"v":0,"d":"$0.00"},{"v":0,"d":"$0.00"},0,{"$f":"IF(OR(K344='EXPENSE DATABASE'!$V$187,K344='EXPENSE DATABASE'!$V$188,K344='EXPENSE DATABASE'!$V$189,K344='EXPENSE DATABASE'!$V$190,K344='EXPENSE DATABASE'!$V$191,K344='EXPENSE DATABASE'!$V$192,K344='EXPENSE DATABASE'!$V$193,K344='EXPENSE DATABASE'!$V$194,K344='EXPENSE DATABASE'!$X$187,K344='EXPENSE DATABASE'!$X$188,K344='EXPENSE DATABASE'!$X$189,K344='EXPENSE DATABASE'!$X$190,K344='EXPENSE DATABASE'!$X$191,K344='EXPENSE DATABASE'!$X$192,K344='EXPENSE DATABASE'!$X$193,K344='EXPENSE DATABASE'!$X$194,K344='EXPENSE DATABASE'!$Z$187,K344='EXPENSE DATABASE'!$Z$188,K344='EXPENSE DATABASE'!$Z$189,K344='EXPENSE DATABASE'!$Z$190,K344='EXPENSE DATABASE'!$Z$191,K344='EXPENSE DATABASE'!$Z$192,K344='EXPENSE DATABASE'!$Z$193,K344='EXPENSE DATABASE'!$Z$194),O344,\"\")","v":""},{"$f":"IF(OR(K344='EXPENSE DATABASE'!$T$189,K344='EXPENSE DATABASE'!$T$190,K344='EXPENSE DATABASE'!$T$191),O344,\"\")","v":""},{"$f":"VLOOKUP(I344,'EXPENSE DATABASE'!$B$41:$C$65,2,FALSE)","v":{"$error":"#N/A"}},100,{"$f":"VLOOKUP(J344,'EXPENSE DATABASE'!$B$69:$C$168,2,FALSE)","v":{"$error":"#N/A"}},101,{"$f":"VLOOKUP(K344,'EXPENSE DATABASE'!$B$6:$C$35,2,FALSE)","v":{"$error":"#N/A"}},31,{"$f":"VLOOKUP(L344,'EXPENSE DATABASE'!$B$173:$C$176,2,FALSE)","v":{"$error":"#N/A"}},100,0,0,{"$f":"IF(L344=T('EXPENSE DATABASE'!$E$173),O344,0)","v":0},{"$f":"IF(L344=T('EXPENSE DATABASE'!$E$174),O344,0)","v":0},{"$f":"IF(L344=T('EXPENSE DATABASE'!$E$175),O344,0)","v":0},0,331]
[0,0,{"$nulls":12},{"v":0,"d":"$0.00"},{"v":0,"d":"$0.00"},{"v":0,"d":"$0.00"},0,{"$f":"IF(OR(K345='EXPENSE DATABASE'!$V$187,K345='EXPENSE DATABASE'!$V$188,K345='EXPENSE DATABASE'!$V$189,K345='EXPENSE DATABASE'!$V$190,K345='EXPENSE DATABASE'!$V$191,K345='EXPENSE DATABASE'!$V$192,K345='EXPENSE DATABASE'!$V$193,K345='EXPENSE DATABASE'!$V$194,K345='EXPENSE DATABASE'!$X$187,K345='EXPENSE DATABASE'!$X$188,K345='EXPENSE DATABASE'!$X$189,K345='EXPENSE DATABASE'!$X$190,K345='EXPENSE DATABASE'!$X$191,K345='EXPENSE DATABASE'!$X$192,K345='EXPENSE DATABASE'!$X$193,K345='EXPENSE DATABASE'!$X$194,K345='EXPENSE DATABASE'!$Z$187,K345='EXPENSE DATABASE'!$Z$188,K345='EXPENSE DATABASE'!$Z$189,K345='EXPENSE DATABASE'!$Z$190,K345='EXPENSE DATABASE'!$Z$191,K345='EXPENSE DATABASE'!$Z$192,K345='EXPENSE DATABASE'!$Z$193,K345='EXPENSE DATABASE'!$Z$194),O345,\"\")","v":""},{"$f":"IF(OR(K345='EXPENSE DATABASE'!$T$189,K345='EXPENSE DATABASE'!$T$190,K345='EXPENSE DATABASE'!$T$191),O345,\"\")","v":""},{"$f":"VLOOKUP(I345,'EXPENSE DATABASE'!$B$41:$C$65,2,FALSE)","v":{"$error":"#N/A"}},100,{"$f":"VLOOKUP(J345,'EXPENSE DATABASE'!$B$69:$C$168,2,FALSE)","v":{"$error":"#N/A"}},101,{"$f":"VLOOKUP(K345,'EXPENSE DATABASE'!$B$6:$C$35,2,FALSE)","v":{"$error":"#N/A"}},31,{"$f":"VLOOKUP(L345,'EXPENSE DATABASE'!$B$173:$C$176,2,FALSE)","v":{"$error":"#N/A"}},100,0,0,{"$f":"IF(L345=T('EXPENSE DATABASE'!$E$173),O345,0)","v":0},{"$f":"IF(L345=T('EXPENSE DATABASE'!$E$174),O345,0)","v":0},{"$f":"IF(L345=T('EXPENSE DATABASE'!$E$175),O345,0)","v":0},0,332]
[0,0,{"$nulls":12},{"v":0,"d":"$0.00"},{"v":0,"d":"$0.00"},{"v":0,"d":"$0.00"},0,{"$f":"IF(OR(K346='EXPENSE DATABASE'!$V$187,K346='EXPENSE DATABASE'!$V$188,K346='EXPENSE DATABASE'!$V$189,K346='EXPENSE DATABASE'!$V$190,K346='EXPENSE DATABASE'!$V$191,K346='EXPENSE DATABASE'!$V$192,K346='EXPENSE DATABASE'!$V$193,K346='EXPENSE DATABASE'!$V$194,K346='EXPENSE DATABASE'!$X$187,K346='EXPENSE DATABASE'!$X$188,K346='EXPENSE DATABASE'!$X$189,K346='EXPENSE DATABASE'!$X$190,K346='EXPENSE DATABASE'!$X$191,K346='EXPENSE DATABASE'!$X$192,K346='EXPENSE DATABASE'!$X$193,K346='EXPENSE DATABASE'!$X$194,K346='EXPENSE DATABASE'!$Z$187,K346='EXPENSE DATABASE'!$Z$188,K346='EXPENSE DATABASE'!$Z$189,K346='EXPENSE DATABASE'!$Z$190,K346='EXPENSE DATABASE'!$Z$191,K346='EXPENSE DATABASE'!$Z$192,K346='EXPENSE DATABASE'!$Z$193,K346='EXPENSE DATABASE'!$Z$194),O346,\"\")","v":""},{"$f":"IF(OR(K346='EXPENSE DATABASE'!$T$189,K346='EXPENSE DATABASE'!$T$190,K346='EXPENSE DATABASE'!$T$191),O346,\"\")","v":""},{"$f":"VLOOKUP(I346,'EXPENSE DATABASE'!$B$41:$C$65,2,FALSE)","v":{"$error":"#N/A"}},100,{"$f":"VLOOKUP(J346,'EXPENSE DATABASE'!$B$69:$C$168,2,FALSE)","v":{"$error":"#N/A"}},101,{"$f":"VLOOKUP(K346,'EXPENSE DATABASE'!$B$6:$C$35,2,FALSE)","v":{"$error":"#N/A"}},31,{"$f":"VLOOKUP(L346,'EXPENSE DATABASE'!$B$173:$C$176,2,FALSE)","v":{"$error":"#N/A"}},100,0,0,{"$f":"IF(L346=T('EXPENSE DATABASE'!$E$173),O346,0)","v":0},{"$f":"IF(L346=T('EXPENSE DATABASE'!$E$174),O346,0)","v":0},{"$f":"IF(L346=T('EXPENSE DATABASE'!$E$175),O346,0)","v":0},0,333]
[0,0,{"$nulls":12},{"v":0,"d":"$0.00"},{"v":0,"d":"$0.00"},{"v":0,"d":"$0.00"},0,{"$f":"IF(OR(K347='EXPENSE DATABASE'!$V$187,K347='EXPENSE DATABASE'!$V$188,K347='EXPENSE DATABASE'!$V$189,K347='EXPENSE DATABASE'!$V$190,K347='EXPENSE DATABASE'!$V$191,K347='EXPENSE DATABASE'!$V$192,K347='EXPENSE DATABASE'!$V$193,K347='EXPENSE DATABASE'!$V$194,K347='EXPENSE DATABASE'!$X$187,K347='EXPENSE DATABASE'!$X$188,K347='EXPENSE DATABASE'!$X$189,K347='EXPENSE DATABASE'!$X$190,K347='EXPENSE DATABASE'!$X$191,K347='EXPENSE DATABASE'!$X$192,K347='EXPENSE DATABASE'!$X$193,K347='EXPENSE DATABASE'!$X$194,K347='EXPENSE DATABASE'!$Z$187,K347='EXPENSE DATABASE'!$Z$188,K347='EXPENSE DATABASE'!$Z$189,K347='EXPENSE DATABASE'!$Z$190,K347='EXPENSE DATABASE'!$Z$191,K347='EXPENSE DATABASE'!$Z$192,K347='EXPENSE DATABASE'!$Z$193,K347='EXPENSE DATABASE'!$Z$194),O347,\"\")","v":""},{"$f":"IF(OR(K347='EXPENSE DATABASE'!$T$189,K347='EXPENSE DATABASE'!$T$190,K347='EXPENSE DATABASE'!$T$191),O347,\"\")","v":""},{"$f":"VLOOKUP(I347,'EXPENSE DATABASE'!$B$41:$C$65,2,FALSE)","v":{"$error":"#N/A"}},100,{"$f":"VLOOKUP(J347,'EXPENSE DATABASE'!$B$69:$C$168,2,FALSE)","v":{"$error":"#N/A"}},101,{"$f":"VLOOKUP(K347,'EXPENSE DATABASE'!$B$6:$C$35,2,FALSE)","v":{"$error":"#N/A"}},31,{"$f":"VLOOKUP(L347,'EXPENSE DATABASE'!$B$173:$C$176,2,FALSE)","v":{"$error":"#N/A"}},100,0,0,{"$f":"IF(L347=T('EXPENSE DATABASE'!$E$173),O347,0)","v":0},{"$f":"IF(L347=T('EXPENSE DATABASE'!$E$174),O347,0)","v":0},{"$f":"IF(L347=T('EXPENSE DATABASE'!$E$175),O347,0)","v":0},0,334]
[0,0,{"$nulls":12},{"v":0,"d":"$0.00"},{"v":0,"d":"$0.00"},{"v":0,"d":"$0.00"},0,{"$f":"IF(OR(K348='EXPENSE DATABASE'!$V$187,K348='EXPENSE DATABASE'!$V$188,K348='EXPENSE DATABASE'!$V$189,K348='EXPENSE DATABASE'!$V$190,K348='EXPENSE DATABASE'!$V$191,K348='EXPENSE DATABASE'!$V$192,K348='EXPENSE DATABASE'!$V$193,K348='EXPENSE DATABASE'!$V$194,K348='EXPENSE DATABASE'!$X$187,K348='EXPENSE DATABASE'!$X$188,K348='EXPENSE DATABASE'!$X$189,K348='EXPENSE DATABASE'!$X$190,K348='EXPENSE DATABASE'!$X$191,K348='EXPENSE DATABASE'!$X$192,K348='EXPENSE DATABASE'!$X$193,K348='EXPENSE DATABASE'!$X$194,K348='EXPENSE DATABASE'!$Z$187,K348='EXPENSE DATABASE'!$Z$188,K348='EXPENSE DATABASE'!$Z$189,K348='EXPENSE DATABASE'!$Z$190,K348='EXPENSE DATABASE'!$Z$191,K348='EXPENSE DATABASE'!$Z$192,K348='EXPENSE DATABASE'!$Z$193,K348='EXPENSE DATABASE'!$Z$194),O348,\"\")","v":""},{"$f":"IF(OR(K348='EXPENSE DATABASE'!$T$189,K348='EXPENSE DATABASE'!$T$190,K348='EXPENSE DATABASE'!$T$191),O348,\"\")","v":""},{"$f":"VLOOKUP(I348,'EXPENSE DATABASE'!$B$41:$C$65,2,FALSE)","v":{"$error":"#N/A"}},100,{"$f":"VLOOKUP(J348,'EXPENSE DATABASE'!$B$69:$C$168,2,FALSE)","v":{"$error":"#N/A"}},101,{"$f":"VLOOKUP(K348,'EXPENSE DATABASE'!$B$6:$C$35,2,FALSE)","v":{"$error":"#N/A"}},31,{"$f":"VLOOKUP(L348,'EXPENSE DATABASE'!$B$173:$C$176,2,FALSE)","v":{"$error":"#N/A"}},100,0,0,{"$f":"IF(L348=T('EXPENSE DATABASE'!$E$173),O348,0)","v":0},{"$f":"IF(L348=T('EXPENSE DATABASE'!$E$174),O348,0)","v":0},{"$f":"IF(L348=T('EXPENSE DATABASE'!$E$175),O348,0)","v":0},0,335]
[0,0,{"$nulls":12},{"v":0,"d":"$0.00"},{"v":0,"d":"$0.00"},{"v":0,"d":"$0.00"},0,{"$f":"IF(OR(K349='EXPENSE DATABASE'!$V$187,K349='EXPENSE DATABASE'!$V$188,K349='EXPENSE DATABASE'!$V$189,K349='EXPENSE DATABASE'!$V$190,K349='EXPENSE DATABASE'!$V$191,K349='EXPENSE DATABASE'!$V$192,K349='EXPENSE DATABASE'!$V$193,K349='EXPENSE DATABASE'!$V$194,K349='EXPENSE DATABASE'!$X$187,K349='EXPENSE DATABASE'!$X$188,K349='EXPENSE DATABASE'!$X$189,K349='EXPENSE DATABASE'!$X$190,K349='EXPENSE DATABASE'!$X$191,K349='EXPENSE DATABASE'!$X$192,K349='EXPENSE DATABASE'!$X$193,K349='EXPENSE DATABASE'!$X$194,K349='EXPENSE DATABASE'!$Z$187,K349='EXPENSE DATABASE'!$Z$188,K349='EXPENSE DATABASE'!$Z$189,K349='EXPENSE DATABASE'!$Z$190,K349='EXPENSE DATABASE'!$Z$191,K349='EXPENSE DATABASE'!$Z$192,K349='EXPENSE DATABASE'!$Z$193,K349='EXPENSE DATABASE'!$Z$194),O349,\"\")","v":""},{"$f":"IF(OR(K349='EXPENSE DATABASE'!$T$189,K349='EXPENSE DATABASE'!$T$190,K349='EXPENSE DATABASE'!$T$191),O349,\"\")","v":""},{"$f":"VLOOKUP(I349,'EXPENSE DATABASE'!$B$41:$C$65,2,FALSE)","v":{"$error":"#N/A"}},100,{"$f":"VLOOKUP(J349,'EXPENSE DATABASE'!$B$69:$C$168,2,FALSE)","v":{"$error":"#N/A"}},101,{"$f":"VLOOKUP(K349,'EXPENSE DATABASE'!$B$6:$C$35,2,FALSE)","v":{"$error":"#N/A"}},31,{"$f":"VLOOKUP(L349,'EXPENSE DATABASE'!$B$173:$C$176,2,FALSE)","v":{"$error":"#N/A"}},100,0,0,{"$f":"IF(L349=T('EXPENSE DATABASE'!$E$173),O349,0)","v":0},{"$f":"IF(L349=T('EXPENSE DATABASE'!$E$174),O349,0)","v":0},{"$f":"IF(L349=T('EXPENSE DATABASE'!$E$175),O349,0)","v":0},0,336]
[0,0,{"$nulls":12},{"v":0,"d":"$0.00"},{"v":0,"d":"$0.00"},{"v":0,"d":"$0.00"},0,{"$f":"IF(OR(K350='EXPENSE DATABASE'!$V$187,K350='EXPENSE DATABASE'!$V$188,K350='EXPENSE DATABASE'!$V$189,K350='EXPENSE DATABASE'!$V$190,K350='EXPENSE DATABASE'!$V$191,K350='EXPENSE DATABASE'!$V$192,K350='EXPENSE DATABASE'!$V$193,K350='EXPENSE DATABASE'!$V$194,K350='EXPENSE DATABASE'!$X$187,K350='EXPENSE DATABASE'!$X$188,K350='EXPENSE DATABASE'!$X$189,K350='EXPENSE DATABASE'!$X$190,K350='EXPENSE DATABASE'!$X$191,K350='EXPENSE DATABASE'!$X$192,K350='EXPENSE DATABASE'!$X$193,K350='EXPENSE DATABASE'!$X$194,K350='EXPENSE DATABASE'!$Z$187,K350='EXPENSE DATABASE'!$Z$188,K350='EXPENSE DATABASE'!$Z$189,K350='EXPENSE DATABASE'!$Z$190,K350='EXPENSE DATABASE'!$Z$191,K350='EXPENSE DATABASE'!$Z$192,K350='EXPENSE DATABASE'!$Z$193,K350='EXPENSE DATABASE'!$Z$194),O350,\"\")","v":""},{"$f":"IF(OR(K350='EXPENSE DATABASE'!$T$189,K350='EXPENSE DATABASE'!$T$190,K350='EXPENSE DATABASE'!$T$191),O350,\"\")","v":""},{"$f":"VLOOKUP(I350,'EXPENSE DATABASE'!$B$41:$C$65,2,FALSE)","v":{"$error":"#N/A"}},100,{"$f":"VLOOKUP(J350,'EXPENSE DATABASE'!$B$69:$C$168,2,FALSE)","v":{"$error":"#N/A"}},101,{"$f":"VLOOKUP(K350,'EXPENSE DATABASE'!$B$6:$C$35,2,FALSE)","v":{"$error":"#N/A"}},31,{"$f":"VLOOKUP(L350,'EXPENSE DATABASE'!$B$173:$C$176,2,FALSE)","v":{"$error":"#N/A"}},100,0,0,{"$f":"IF(L350=T('EXPENSE DATABASE'!$E$173),O350,0)","v":0},{"$f":"IF(L350=T('EXPENSE DATABASE'!$E$174),O350,0)","v":0},{"$f":"IF(L350=T('EXPENSE DATABASE'!$E$175),O350,0)","v":0},0,337]
[0,0,{"$nulls":12},{"v":0,"d":"$0.00"},{"v":0,"d":"$0.00"},{"v":0,"d":"$0.00"},0,{"$f":"IF(OR(K351='EXPENSE DATABASE'!$V$187,K351='EXPENSE DATABASE'!$V$188,K351='EXPENSE DATABASE'!$V$189,K351='EXPENSE DATABASE'!$V$190,K351='EXPENSE DATABASE'!$V$191,K351='EXPENSE DATABASE'!$V$192,K351='EXPENSE DATABASE'!$V$193,K351='EXPENSE DATABASE'!$V$194,K351='EXPENSE DATABASE'!$X$187,K351='EXPENSE DATABASE'!$X$188,K351='EXPENSE DATABASE'!$X$189,K351='EXPENSE DATABASE'!$X$190,K351='EXPENSE DATABASE'!$X$191,K351='EXPENSE DATABASE'!$X$192,K351='EXPENSE DATABASE'!$X$193,K351='EXPENSE DATABASE'!$X$194,K351='EXPENSE DATABASE'!$Z$187,K351='EXPENSE DATABASE'!$Z$188,K351='EXPENSE DATABASE'!$Z$189,K351='EXPENSE DATABASE'!$Z$190,K351='EXPENSE DATABASE'!$Z$191,K351='EXPENSE DATABASE'!$Z$192,K351='EXPENSE DATABASE'!$Z$193,K351='EXPENSE DATABASE'!$Z$194),O351,\"\")","v":""},{"$f":"IF(OR(K351='EXPENSE DATABASE'!$T$189,K351='EXPENSE DATABASE'!$T$190,K351='EXPENSE DATABASE'!$T$191),O351,\"\")","v":""},{"$f":"VLOOKUP(I351,'EXPENSE DATABASE'!$B$41:$C$65,2,FALSE)","v":{"$error":"#N/A"}},100,{"$f":"VLOOKUP(J351,'EXPENSE DATABASE'!$B$69:$C$168,2,FALSE)","v":{"$error":"#N/A"}},101,{"$f":"VLOOKUP(K351,'EXPENSE DATABASE'!$B$6:$C$35,2,FALSE)","v":{"$error":"#N/A"}},31,{"$f":"VLOOKUP(L351,'EXPENSE DATABASE'!$B$173:$C$176,2,FALSE)","v":{"$error":"#N/A"}},100,0,0,{"$f":"IF(L351=T('EXPENSE DATABASE'!$E$173),O351,0)","v":0},{"$f":"IF(L351=T('EXPENSE DATABASE'!$E$174),O351,0)","v":0},{"$f":"IF(L351=T('EXPENSE DATABASE'!$E$175),O351,0)","v":0},0,338]
[0,0,{"$nulls":12},{"v":0,"d":"$0.00"},{"v":0,"d":"$0.00"},{"v":0,"d":"$0.00"},0,{"$f":"IF(OR(K352='EXPENSE DATABASE'!$V$187,K352='EXPENSE DATABASE'!$V$188,K352='EXPENSE DATABASE'!$V$189,K352='EXPENSE DATABASE'!$V$190,K352='EXPENSE DATABASE'!$V$191,K352='EXPENSE DATABASE'!$V$192,K352='EXPENSE DATABASE'!$V$193,K352='EXPENSE DATABASE'!$V$194,K352='EXPENSE DATABASE'!$X$187,K352='EXPENSE DATABASE'!$X$188,K352='EXPENSE DATABASE'!$X$189,K352='EXPENSE DATABASE'!$X$190,K352='EXPENSE DATABASE'!$X$191,K352='EXPENSE DATABASE'!$X$192,K352='EXPENSE DATABASE'!$X$193,K352='EXPENSE DATABASE'!$X$194,K352='EXPENSE DATABASE'!$Z$187,K352='EXPENSE DATABASE'!$Z$188,K352='EXPENSE DATABASE'!$Z$189,K352='EXPENSE DATABASE'!$Z$190,K352='EXPENSE DATABASE'!$Z$191,K352='EXPENSE DATABASE'!$Z$192,K352='EXPENSE DATABASE'!$Z$193,K352='EXPENSE DATABASE'!$Z$194),O352,\"\")","v":""},{"$f":"IF(OR(K352='EXPENSE DATABASE'!$T$189,K352='EXPENSE DATABASE'!$T$190,K352='EXPENSE DATABASE'!$T$191),O352,\"\")","v":""},{"$f":"VLOOKUP(I352,'EXPENSE DATABASE'!$B$41:$C$65,2,FALSE)","v":{"$error":"#N/A"}},100,{"$f":"VLOOKUP(J352,'EXPENSE DATABASE'!$B$69:$C$168,2,FALSE)","v":{"$error":"#N/A"}},101,{"$f":"VLOOKUP(K352,'EXPENSE DATABASE'!$B$6:$C$35,2,FALSE)","v":{"$error":"#N/A"}},31,{"$f":"VLOOKUP(L352,'EXPENSE DATABASE'!$B$173:$C$176,2,FALSE)","v":{"$error":"#N/A"}},100,0,0,{"$f":"IF(L352=T('EXPENSE DATABASE'!$E$173),O352,0)","v":0},{"$f":"IF(L352=T('EXPENSE DATABASE'!$E$174),O352,0)","v":0},{"$f":"IF(L352=T('EXPENSE DATABASE'!$E$175),O352,0)","v":0},0,339]
[0,0,{"$nulls":12},{"v":0,"d":"$0.00"},{"v":0,"d":"$0.00"},{"v":0,"d":"$0.00"},0,{"$f":"IF(OR(K353='EXPENSE DATABASE'!$V$187,K353='EXPENSE DATABASE'!$V$188,K353='EXPENSE DATABASE'!$V$189,K353='EXPENSE DATABASE'!$V$190,K353='EXPENSE DATABASE'!$V$191,K353='EXPENSE DATABASE'!$V$192,K353='EXPENSE DATABASE'!$V$193,K353='EXPENSE DATABASE'!$V$194,K353='EXPENSE DATABASE'!$X$187,K353='EXPENSE DATABASE'!$X$188,K353='EXPENSE DATABASE'!$X$189,K353='EXPENSE DATABASE'!$X$190,K353='EXPENSE DATABASE'!$X$191,K353='EXPENSE DATABASE'!$X$192,K353='EXPENSE DATABASE'!$X$193,K353='EXPENSE DATABASE'!$X$194,K353='EXPENSE DATABASE'!$Z$187,K353='EXPENSE DATABASE'!$Z$188,K353='EXPENSE DATABASE'!$Z$189,K353='EXPENSE DATABASE'!$Z$190,K353='EXPENSE DATABASE'!$Z$191,K353='EXPENSE DATABASE'!$Z$192,K353='EXPENSE DATABASE'!$Z$193,K353='EXPENSE DATABASE'!$Z$194),O353,\"\")","v":""},{"$f":"IF(OR(K353='EXPENSE DATABASE'!$T$189,K353='EXPENSE DATABASE'!$T$190,K353='EXPENSE DATABASE'!$T$191),O353,\"\")","v":""},{"$f":"VLOOKUP(I353,'EXPENSE DATABASE'!$B$41:$C$65,2,FALSE)","v":{"$error":"#N/A"}},100,{"$f":"VLOOKUP(J353,'EXPENSE DATABASE'!$B$69:$C$168,2,FALSE)","v":{"$error":"#N/A"}},101,{"$f":"VLOOKUP(K353,'EXPENSE DATABASE'!$B$6:$C$35,2,FALSE)","v":{"$error":"#N/A"}},31,{"$f":"VLOOKUP(L353,'EXPENSE DATABASE'!$B$173:$C$176,2,FALSE)","v":{"$error":"#N/A"}},100,0,0,{"$f":"IF(L353=T('EXPENSE DATABASE'!$E$173),O353,0)","v":0},{"$f":"IF(L353=T('EXPENSE DATABASE'!$E$174),O353,0)","v":0},{"$f":"IF(L353=T('EXPENSE DATABASE'!$E$175),O353,0)","v":0},0,340]
[0,0,{"$nulls":12},{"v":0,"d":"$0.00"},{"v":0,"d":"$0.00"},{"v":0,"d":"$0.00"},0,{"$f":"IF(OR(K354='EXPENSE DATABASE'!$V$187,K354='EXPENSE DATABASE'!$V$188,K354='EXPENSE DATABASE'!$V$189,K354='EXPENSE DATABASE'!$V$190,K354='EXPENSE DATABASE'!$V$191,K354='EXPENSE DATABASE'!$V$192,K354='EXPENSE DATABASE'!$V$193,K354='EXPENSE DATABASE'!$V$194,K354='EXPENSE DATABASE'!$X$187,K354='EXPENSE DATABASE'!$X$188,K354='EXPENSE DATABASE'!$X$189,K354='EXPENSE DATABASE'!$X$190,K354='EXPENSE DATABASE'!$X$191,K354='EXPENSE DATABASE'!$X$192,K354='EXPENSE DATABASE'!$X$193,K354='EXPENSE DATABASE'!$X$194,K354='EXPENSE DATABASE'!$Z$187,K354='EXPENSE DATABASE'!$Z$188,K354='EXPENSE DATABASE'!$Z$189,K354='EXPENSE DATABASE'!$Z$190,K354='EXPENSE DATABASE'!$Z$191,K354='EXPENSE DATABASE'!$Z$192,K354='EXPENSE DATABASE'!$Z$193,K354='EXPENSE DATABASE'!$Z$194),O354,\"\")","v":""},{"$f":"IF(OR(K354='EXPENSE DATABASE'!$T$189,K354='EXPENSE DATABASE'!$T$190,K354='EXPENSE DATABASE'!$T$191),O354,\"\")","v":""},{"$f":"VLOOKUP(I354,'EXPENSE DATABASE'!$B$41:$C$65,2,FALSE)","v":{"$error":"#N/A"}},100,{"$f":"VLOOKUP(J354,'EXPENSE DATABASE'!$B$69:$C$168,2,FALSE)","v":{"$error":"#N/A"}},101,{"$f":"VLOOKUP(K354,'EXPENSE DATABASE'!$B$6:$C$35,2,FALSE)","v":{"$error":"#N/A"}},31,{"$f":"VLOOKUP(L354,'EXPENSE DATABASE'!$B$173:$C$176,2,FALSE)","v":{"$error":"#N/A"}},100,0,0,{"$f":"IF(L354=T('EXPENSE DATABASE'!$E$173),O354,0)","v":0},{"$f":"IF(L354=T('EXPENSE DATABASE'!$E$174),O354,0)","v":0},{"$f":"IF(L354=T('EXPENSE DATABASE'!$E$175),O354,0)","v":0},0,341]
[0,0,{"$nulls":12},{"v":0,"d":"$0.00"},{"v":0,"d":"$0.00"},{"v":0,"d":"$0.00"},0,{"$f":"IF(OR(K355='EXPENSE DATABASE'!$V$187,K355='EXPENSE DATABASE'!$V$188,K355='EXPENSE DATABASE'!$V$189,K355='EXPENSE DATABASE'!$V$190,K355='EXPENSE DATABASE'!$V$191,K355='EXPENSE DATABASE'!$V$192,K355='EXPENSE DATABASE'!$V$193,K355='EXPENSE DATABASE'!$V$194,K355='EXPENSE DATABASE'!$X$187,K355='EXPENSE DATABASE'!$X$188,K355='EXPENSE DATABASE'!$X$189,K355='EXPENSE DATABASE'!$X$190,K355='EXPENSE DATABASE'!$X$191,K355='EXPENSE DATABASE'!$X$192,K355='EXPENSE DATABASE'!$X$193,K355='EXPENSE DATABASE'!$X$194,K355='EXPENSE DATABASE'!$Z$187,K355='EXPENSE DATABASE'!$Z$188,K355='EXPENSE DATABASE'!$Z$189,K355='EXPENSE DATABASE'!$Z$190,K355='EXPENSE DATABASE'!$Z$191,K355='EXPENSE DATABASE'!$Z$192,K355='EXPENSE DATABASE'!$Z$193,K355='EXPENSE DATABASE'!$Z$194),O355,\"\")","v":""},{"$f":"IF(OR(K355='EXPENSE DATABASE'!$T$189,K355='EXPENSE DATABASE'!$T$190,K355='EXPENSE DATABASE'!$T$191),O355,\"\")","v":""},{"$f":"VLOOKUP(I355,'EXPENSE DATABASE'!$B$41:$C$65,2,FALSE)","v":{"$error":"#N/A"}},100,{"$f":"VLOOKUP(J355,'EXPENSE DATABASE'!$B$69:$C$168,2,FALSE)","v":{"$error":"#N/A"}},101,{"$f":"VLOOKUP(K355,'EXPENSE DATABASE'!$B$6:$C$35,2,FALSE)","v":{"$error":"#N/A"}},31,{"$f":"VLOOKUP(L355,'EXPENSE DATABASE'!$B$173:$C$176,2,FALSE)","v":{"$error":"#N/A"}},100,0,0,{"$f":"IF(L355=T('EXPENSE DATABASE'!$E$173),O355,0)","v":0},{"$f":"IF(L355=T('EXPENSE DATABASE'!$E$174),O355,0)","v":0},{"$f":"IF(L355=T('EXPENSE DATABASE'!$E$175),O355,0)","v":0},0,342]
[0,0,{"$nulls":12},{"v":0,"d":"$0.00"},{"v":0,"d":"$0.00"},{"v":0,"d":"$0.00"},0,{"$f":"IF(OR(K356='EXPENSE DATABASE'!$V$187,K356='EXPENSE DATABASE'!$V$188,K356='EXPENSE DATABASE'!$V$189,K356='EXPENSE DATABASE'!$V$190,K356='EXPENSE DATABASE'!$V$191,K356='EXPENSE DATABASE'!$V$192,K356='EXPENSE DATABASE'!$V$193,K356='EXPENSE DATABASE'!$V$194,K356='EXPENSE DATABASE'!$X$187,K356='EXPENSE DATABASE'!$X$188,K356='EXPENSE DATABASE'!$X$189,K356='EXPENSE DATABASE'!$X$190,K356='EXPENSE DATABASE'!$X$191,K356='EXPENSE DATABASE'!$X$192,K356='EXPENSE DATABASE'!$X$193,K356='EXPENSE DATABASE'!$X$194,K356='EXPENSE DATABASE'!$Z$187,K356='EXPENSE DATABASE'!$Z$188,K356='EXPENSE DATABASE'!$Z$189,K356='EXPENSE DATABASE'!$Z$190,K356='EXPENSE DATABASE'!$Z$191,K356='EXPENSE DATABASE'!$Z$192,K356='EXPENSE DATABASE'!$Z$193,K356='EXPENSE DATABASE'!$Z$194),O356,\"\")","v":""},{"$f":"IF(OR(K356='EXPENSE DATABASE'!$T$189,K356='EXPENSE DATABASE'!$T$190,K356='EXPENSE DATABASE'!$T$191),O356,\"\")","v":""},{"$f":"VLOOKUP(I356,'EXPENSE DATABASE'!$B$41:$C$65,2,FALSE)","v":{"$error":"#N/A"}},100,{"$f":"VLOOKUP(J356,'EXPENSE DATABASE'!$B$69:$C$168,2,FALSE)","v":{"$error":"#N/A"}},101,{"$f":"VLOOKUP(K356,'EXPENSE DATABASE'!$B$6:$C$35,2,FALSE)","v":{"$error":"#N/A"}},31,{"$f":"VLOOKUP(L356,'EXPENSE DATABASE'!$B$173:$C$176,2,FALSE)","v":{"$error":"#N/A"}},100,0,0,{"$f":"IF(L356=T('EXPENSE DATABASE'!$E$173),O356,0)","v":0},{"$f":"IF(L356=T('EXPENSE DATABASE'!$E$174),O356,0)","v":0},{"$f":"IF(L356=T('EXPENSE DATABASE'!$E$175),O356,0)","v":0},0,343]
[0,0,{"$nulls":12},{"v":0,"d":"$0.00"},{"v":0,"d":"$0.00"},{"v":0,"d":"$0.00"},0,{"$f":"IF(OR(K357='EXPENSE DATABASE'!$V$187,K357='EXPENSE DATABASE'!$V$188,K357='EXPENSE DATABASE'!$V$189,K357='EXPENSE DATABASE'!$V$190,K357='EXPENSE DATABASE'!$V$191,K357='EXPENSE DATABASE'!$V$192,K357='EXPENSE DATABASE'!$V$193,K357='EXPENSE DATABASE'!$V$194,K357='EXPENSE DATABASE'!$X$187,K357='EXPENSE DATABASE'!$X$188,K357='EXPENSE DATABASE'!$X$189,K357='EXPENSE DATABASE'!$X$190,K357='EXPENSE DATABASE'!$X$191,K357='EXPENSE DATABASE'!$X$192,K357='EXPENSE DATABASE'!$X$193,K357='EXPENSE DATABASE'!$X$194,K357='EXPENSE DATABASE'!$Z$187,K357='EXPENSE DATABASE'!$Z$188,K357='EXPENSE DATABASE'!$Z$189,K357='EXPENSE DATABASE'!$Z$190,K357='EXPENSE DATABASE'!$Z$191,K357='EXPENSE DATABASE'!$Z$192,K357='EXPENSE DATABASE'!$Z$193,K357='EXPENSE DATABASE'!$Z$194),O357,\"\")","v":""},{"$f":"IF(OR(K357='EXPENSE DATABASE'!$T$189,K357='EXPENSE DATABASE'!$T$190,K357='EXPENSE DATABASE'!$T$191),O357,\"\")","v":""},{"$f":"VLOOKUP(I357,'EXPENSE DATABASE'!$B$41:$C$65,2,FALSE)","v":{"$error":"#N/A"}},100,{"$f":"VLOOKUP(J357,'EXPENSE DATABASE'!$B$69:$C$168,2,FALSE)","v":{"$error":"#N/A"}},101,{"$f":"VLOOKUP(K357,'EXPENSE DATABASE'!$B$6:$C$35,2,FALSE)","v":{"$error":"#N/A"}},31,{"$f":"VLOOKUP(L357,'EXPENSE DATABASE'!$B$173:$C$176,2,FALSE)","v":{"$error":"#N/A"}},100,0,0,{"$f":"IF(L357=T('EXPENSE DATABASE'!$E$173),O357,0)","v":0},{"$f":"IF(L357=T('EXPENSE DATABASE'!$E$174),O357,0)","v":0},{"$f":"IF(L357=T('EXPENSE DATABASE'!$E$175),O357,0)","v":0},0,344]
[0,0,{"$nulls":12},{"v":0,"d":"$0.00"},{"v":0,"d":"$0.00"},{"v":0,"d":"$0.00"},0,{"$f":"IF(OR(K358='EXPENSE DATABASE'!$V$187,K358='EXPENSE DATABASE'!$V$188,K358='EXPENSE DATABASE'!$V$189,K358='EXPENSE DATABASE'!$V$190,K358='EXPENSE DATABASE'!$V$191,K358='EXPENSE DATABASE'!$V$192,K358='EXPENSE DATABASE'!$V$193,K358='EXPENSE DATABASE'!$V$194,K358='EXPENSE DATABASE'!$X$187,K358='EXPENSE DATABASE'!$X$188,K358='EXPENSE DATABASE'!$X$189,K358='EXPENSE DATABASE'!$X$190,K358='EXPENSE DATABASE'!$X$191,K358='EXPENSE DATABASE'!$X$192,K358='EXPENSE DATABASE'!$X$193,K358='EXPENSE DATABASE'!$X$194,K358='EXPENSE DATABASE'!$Z$187,K358='EXPENSE DATABASE'!$Z$188,K358='EXPENSE DATABASE'!$Z$189,K358='EXPENSE DATABASE'!$Z$190,K358='EXPENSE DATABASE'!$Z$191,K358='EXPENSE DATABASE'!$Z$192,K358='EXPENSE DATABASE'!$Z$193,K358='EXPENSE DATABASE'!$Z$194),O358,\"\")","v":""},{"$f":"IF(OR(K358='EXPENSE DATABASE'!$T$189,K358='EXPENSE DATABASE'!$T$190,K358='EXPENSE DATABASE'!$T$191),O358,\"\")","v":""},{"$f":"VLOOKUP(I358,'EXPENSE DATABASE'!$B$41:$C$65,2,FALSE)","v":{"$error":"#N/A"}},100,{"$f":"VLOOKUP(J358,'EXPENSE DATABASE'!$B$69:$C$168,2,FALSE)","v":{"$error":"#N/A"}},101,{"$f":"VLOOKUP(K358,'EXPENSE DATABASE'!$B$6:$C$35,2,FALSE)","v":{"$error":"#N/A"}},31,{"$f":"VLOOKUP(L358,'EXPENSE DATABASE'!$B$173:$C$176,2,FALSE)","v":{"$error":"#N/A"}},100,0,0,{"$f":"IF(L358=T('EXPENSE DATABASE'!$E$173),O358,0)","v":0},{"$f":"IF(L358=T('EXPENSE DATABASE'!$E$174),O358,0)","v":0},{"$f":"IF(L358=T('EXPENSE DATABASE'!$E$175),O358,0)","v":0},0,345]
[0,0,{"$nulls":12},{"v":0,"d":"$0.00"},{"v":0,"d":"$0.00"},{"v":0,"d":"$0.00"},0,{"$f":"IF(OR(K359='EXPENSE DATABASE'!$V$187,K359='EXPENSE DATABASE'!$V$188,K359='EXPENSE DATABASE'!$V$189,K359='EXPENSE DATABASE'!$V$190,K359='EXPENSE DATABASE'!$V$191,K359='EXPENSE DATABASE'!$V$192,K359='EXPENSE DATABASE'!$V$193,K359='EXPENSE DATABASE'!$V$194,K359='EXPENSE DATABASE'!$X$187,K359='EXPENSE DATABASE'!$X$188,K359='EXPENSE DATABASE'!$X$189,K359='EXPENSE DATABASE'!$X$190,K359='EXPENSE DATABASE'!$X$191,K359='EXPENSE DATABASE'!$X$192,K359='EXPENSE DATABASE'!$X$193,K359='EXPENSE DATABASE'!$X$194,K359='EXPENSE DATABASE'!$Z$187,K359='EXPENSE DATABASE'!$Z$188,K359='EXPENSE DATABASE'!$Z$189,K359='EXPENSE DATABASE'!$Z$190,K359='EXPENSE DATABASE'!$Z$191,K359='EXPENSE DATABASE'!$Z$192,K359='EXPENSE DATABASE'!$Z$193,K359='EXPENSE DATABASE'!$Z$194),O359,\"\")","v":""},{"$f":"IF(OR(K359='EXPENSE DATABASE'!$T$189,K359='EXPENSE DATABASE'!$T$190,K359='EXPENSE DATABASE'!$T$191),O359,\"\")","v":""},{"$f":"VLOOKUP(I359,'EXPENSE DATABASE'!$B$41:$C$65,2,FALSE)","v":{"$error":"#N/A"}},100,{"$f":"VLOOKUP(J359,'EXPENSE DATABASE'!$B$69:$C$168,2,FALSE)","v":{"$error":"#N/A"}},101,{"$f":"VLOOKUP(K359,'EXPENSE DATABASE'!$B$6:$C$35,2,FALSE)","v":{"$error":"#N/A"}},31,{"$f":"VLOOKUP(L359,'EXPENSE DATABASE'!$B$173:$C$176,2,FALSE)","v":{"$error":"#N/A"}},100,0,0,{"$f":"IF(L359=T('EXPENSE DATABASE'!$E$173),O359,0)","v":0},{"$f":"IF(L359=T('EXPENSE DATABASE'!$E$174),O359,0)","v":0},{"$f":"IF(L359=T('EXPENSE DATABASE'!$E$175),O359,0)","v":0},0,346]
[0,0,{"$nulls":12},{"v":0,"d":"$0.00"},{"v":0,"d":"$0.00"},{"v":0,"d":"$0.00"},0,{"$f":"IF(OR(K360='EXPENSE DATABASE'!$V$187,K360='EXPENSE DATABASE'!$V$188,K360='EXPENSE DATABASE'!$V$189,K360='EXPENSE DATABASE'!$V$190,K360='EXPENSE DATABASE'!$V$191,K360='EXPENSE DATABASE'!$V$192,K360='EXPENSE DATABASE'!$V$193,K360='EXPENSE DATABASE'!$V$194,K360='EXPENSE DATABASE'!$X$187,K360='EXPENSE DATABASE'!$X$188,K360='EXPENSE DATABASE'!$X$189,K360='EXPENSE DATABASE'!$X$190,K360='EXPENSE DATABASE'!$X$191,K360='EXPENSE DATABASE'!$X$192,K360='EXPENSE DATABASE'!$X$193,K360='EXPENSE DATABASE'!$X$194,K360='EXPENSE DATABASE'!$Z$187,K360='EXPENSE DATABASE'!$Z$188,K360='EXPENSE DATABASE'!$Z$189,K360='EXPENSE DATABASE'!$Z$190,K360='EXPENSE DATABASE'!$Z$191,K360='EXPENSE DATABASE'!$Z$192,K360='EXPENSE DATABASE'!$Z$193,K360='EXPENSE DATABASE'!$Z$194),O360,\"\")","v":""},{"$f":"IF(OR(K360='EXPENSE DATABASE'!$T$189,K360='EXPENSE DATABASE'!$T$190,K360='EXPENSE DATABASE'!$T$191),O360,\"\")","v":""},{"$f":"VLOOKUP(I360,'EXPENSE DATABASE'!$B$41:$C$65,2,FALSE)","v":{"$error":"#N/A"}},100,{"$f":"VLOOKUP(J360,'EXPENSE DATABASE'!$B$69:$C$168,2,FALSE)","v":{"$error":"#N/A"}},101,{"$f":"VLOOKUP(K360,'EXPENSE DATABASE'!$B$6:$C$35,2,FALSE)","v":{"$error":"#N/A"}},31,{"$f":"VLOOKUP(L360,'EXPENSE DATABASE'!$B$173:$C$176,2,FALSE)","v":{"$error":"#N/A"}},100,0,0,{"$f":"IF(L360=T('EXPENSE DATABASE'!$E$173),O360,0)","v":0},{"$f":"IF(L360=T('EXPENSE DATABASE'!$E$174),O360,0)","v":0},{"$f":"IF(L360=T('EXPENSE DATABASE'!$E$175),O360,0)","v":0},0,347]
[0,0,{"$nulls":12},{"v":0,"d":"$0.00"},{"v":0,"d":"$0.00"},{"v":0,"d":"$0.00"},0,{"$f":"IF(OR(K361='EXPENSE DATABASE'!$V$187,K361='EXPENSE DATABASE'!$V$188,K361='EXPENSE DATABASE'!$V$189,K361='EXPENSE DATABASE'!$V$190,K361='EXPENSE DATABASE'!$V$191,K361='EXPENSE DATABASE'!$V$192,K361='EXPENSE DATABASE'!$V$193,K361='EXPENSE DATABASE'!$V$194,K361='EXPENSE DATABASE'!$X$187,K361='EXPENSE DATABASE'!$X$188,K361='EXPENSE DATABASE'!$X$189,K361='EXPENSE DATABASE'!$X$190,K361='EXPENSE DATABASE'!$X$191,K361='EXPENSE DATABASE'!$X$192,K361='EXPENSE DATABASE'!$X$193,K361='EXPENSE DATABASE'!$X$194,K361='EXPENSE DATABASE'!$Z$187,K361='EXPENSE DATABASE'!$Z$188,K361='EXPENSE DATABASE'!$Z$189,K361='EXPENSE DATABASE'!$Z$190,K361='EXPENSE DATABASE'!$Z$191,K361='EXPENSE DATABASE'!$Z$192,K361='EXPENSE DATABASE'!$Z$193,K361='EXPENSE DATABASE'!$Z$194),O361,\"\")","v":""},{"$f":"IF(OR(K361='EXPENSE DATABASE'!$T$189,K361='EXPENSE DATABASE'!$T$190,K361='EXPENSE DATABASE'!$T$191),O361,\"\")","v":""},{"$f":"VLOOKUP(I361,'EXPENSE DATABASE'!$B$41:$C$65,2,FALSE)","v":{"$error":"#N/A"}},100,{"$f":"VLOOKUP(J361,'EXPENSE DATABASE'!$B$69:$C$168,2,FALSE)","v":{"$error":"#N/A"}},101,{"$f":"VLOOKUP(K361,'EXPENSE DATABASE'!$B$6:$C$35,2,FALSE)","v":{"$error":"#N/A"}},31,{"$f":"VLOOKUP(L361,'EXPENSE DATABASE'!$B$173:$C$176,2,FALSE)","v":{"$error":"#N/A"}},100,0,0,{"$f":"IF(L361=T('EXPENSE DATABASE'!$E$173),O361,0)","v":0},{"$f":"IF(L361=T('EXPENSE DATABASE'!$E$174),O361,0)","v":0},{"$f":"IF(L361=T('EXPENSE DATABASE'!$E$175),O361,0)","v":0},0,348]
[0,0,{"$nulls":12},{"v":0,"d":"$0.00"},{"v":0,"d":"$0.00"},{"v":0,"d":"$0.00"},0,{"$f":"IF(OR(K362='EXPENSE DATABASE'!$V$187,K362='EXPENSE DATABASE'!$V$188,K362='EXPENSE DATABASE'!$V$189,K362='EXPENSE DATABASE'!$V$190,K362='EXPENSE DATABASE'!$V$191,K362='EXPENSE DATABASE'!$V$192,K362='EXPENSE DATABASE'!$V$193,K362='EXPENSE DATABASE'!$V$194,K362='EXPENSE DATABASE'!$X$187,K362='EXPENSE DATABASE'!$X$188,K362='EXPENSE DATABASE'!$X$189,K362='EXPENSE DATABASE'!$X$190,K362='EXPENSE DATABASE'!$X$191,K362='EXPENSE DATABASE'!$X$192,K362='EXPENSE DATABASE'!$X$193,K362='EXPENSE DATABASE'!$X$194,K362='EXPENSE DATABASE'!$Z$187,K362='EXPENSE DATABASE'!$Z$188,K362='EXPENSE DATABASE'!$Z$189,K362='EXPENSE DATABASE'!$Z$190,K362='EXPENSE DATABASE'!$Z$191,K362='EXPENSE DATABASE'!$Z$192,K362='EXPENSE DATABASE'!$Z$193,K362='EXPENSE DATABASE'!$Z$194),O362,\"\")","v":""},{"$f":"IF(OR(K362='EXPENSE DATABASE'!$T$189,K362='EXPENSE DATABASE'!$T$190,K362='EXPENSE DATABASE'!$T$191),O362,\"\")","v":""},{"$f":"VLOOKUP(I362,'EXPENSE DATABASE'!$B$41:$C$65,2,FALSE)","v":{"$error":"#N/A"}},100,{"$f":"VLOOKUP(J362,'EXPENSE DATABASE'!$B$69:$C$168,2,FALSE)","v":{"$error":"#N/A"}},101,{"$f":"VLOOKUP(K362,'EXPENSE DATABASE'!$B$6:$C$35,2,FALSE)","v":{"$error":"#N/A"}},31,{"$f":"VLOOKUP(L362,'EXPENSE DATABASE'!$B$173:$C$176,2,FALSE)","v":{"$error":"#N/A"}},100,0,0,{"$f":"IF(L362=T('EXPENSE DATABASE'!$E$173),O362,0)","v":0},{"$f":"IF(L362=T('EXPENSE DATABASE'!$E$174),O362,0)","v":0},{"$f":"IF(L362=T('EXPENSE DATABASE'!$E$175),O362,0)","v":0},0,349]
[0,0,{"$nulls":12},{"v":0,"d":"$0.00"},{"v":0,"d":"$0.00"},{"v":0,"d":"$0.00"},0,{"$f":"IF(OR(K363='EXPENSE DATABASE'!$V$187,K363='EXPENSE DATABASE'!$V$188,K363='EXPENSE DATABASE'!$V$189,K363='EXPENSE DATABASE'!$V$190,K363='EXPENSE DATABASE'!$V$191,K363='EXPENSE DATABASE'!$V$192,K363='EXPENSE DATABASE'!$V$193,K363='EXPENSE DATABASE'!$V$194,K363='EXPENSE DATABASE'!$X$187,K363='EXPENSE DATABASE'!$X$188,K363='EXPENSE DATABASE'!$X$189,K363='EXPENSE DATABASE'!$X$190,K363='EXPENSE DATABASE'!$X$191,K363='EXPENSE DATABASE'!$X$192,K363='EXPENSE DATABASE'!$X$193,K363='EXPENSE DATABASE'!$X$194,K363='EXPENSE DATABASE'!$Z$187,K363='EXPENSE DATABASE'!$Z$188,K363='EXPENSE DATABASE'!$Z$189,K363='EXPENSE DATABASE'!$Z$190,K363='EXPENSE DATABASE'!$Z$191,K363='EXPENSE DATABASE'!$Z$192,K363='EXPENSE DATABASE'!$Z$193,K363='EXPENSE DATABASE'!$Z$194),O363,\"\")","v":""},{"$f":"IF(OR(K363='EXPENSE DATABASE'!$T$189,K363='EXPENSE DATABASE'!$T$190,K363='EXPENSE DATABASE'!$T$191),O363,\"\")","v":""},{"$f":"VLOOKUP(I363,'EXPENSE DATABASE'!$B$41:$C$65,2,FALSE)","v":{"$error":"#N/A"}},100,{"$f":"VLOOKUP(J363,'EXPENSE DATABASE'!$B$69:$C$168,2,FALSE)","v":{"$error":"#N/A"}},101,{"$f":"VLOOKUP(K363,'EXPENSE DATABASE'!$B$6:$C$35,2,FALSE)","v":{"$error":"#N/A"}},31,{"$f":"VLOOKUP(L363,'EXPENSE DATABASE'!$B$173:$C$176,2,FALSE)","v":{"$error":"#N/A"}},100,0,0,{"$f":"IF(L363=T('EXPENSE DATABASE'!$E$173),O363,0)","v":0},{"$f":"IF(L363=T('EXPENSE DATABASE'!$E$174),O363,0)","v":0},{"$f":"IF(L363=T('EXPENSE DATABASE'!$E$175),O363,0)","v":0},0,350]
[0,0,{"$nulls":12},{"v":0,"d":"$0.00"},{"v":0,"d":"$0.00"},{"v":0,"d":"$0.00"},0,{"$f":"IF(OR(K364='EXPENSE DATABASE'!$V$187,K364='EXPENSE DATABASE'!$V$188,K364='EXPENSE DATABASE'!$V$189,K364='EXPENSE DATABASE'!$V$190,K364='EXPENSE DATABASE'!$V$191,K364='EXPENSE DATABASE'!$V$192,K364='EXPENSE DATABASE'!$V$193,K364='EXPENSE DATABASE'!$V$194,K364='EXPENSE DATABASE'!$X$187,K364='EXPENSE DATABASE'!$X$188,K364='EXPENSE DATABASE'!$X$189,K364='EXPENSE DATABASE'!$X$190,K364='EXPENSE DATABASE'!$X$191,K364='EXPENSE DATABASE'!$X$192,K364='EXPENSE DATABASE'!$X$193,K364='EXPENSE DATABASE'!$X$194,K364='EXPENSE DATABASE'!$Z$187,K364='EXPENSE DATABASE'!$Z$188,K364='EXPENSE DATABASE'!$Z$189,K364='EXPENSE DATABASE'!$Z$190,K364='EXPENSE DATABASE'!$Z$191,K364='EXPENSE DATABASE'!$Z$192,K364='EXPENSE DATABASE'!$Z$193,K364='EXPENSE DATABASE'!$Z$194),O364,\"\")","v":""},{"$f":"IF(OR(K364='EXPENSE DATABASE'!$T$189,K364='EXPENSE DATABASE'!$T$190,K364='EXPENSE DATABASE'!$T$191),O364,\"\")","v":""},{"$f":"VLOOKUP(I364,'EXPENSE DATABASE'!$B$41:$C$65,2,FALSE)","v":{"$error":"#N/A"}},100,{"$f":"VLOOKUP(J364,'EXPENSE DATABASE'!$B$69:$C$168,2,FALSE)","v":{"$error":"#N/A"}},101,{"$f":"VLOOKUP(K364,'EXPENSE DATABASE'!$B$6:$C$35,2,FALSE)","v":{"$error":"#N/A"}},31,{"$f":"VLOOKUP(L364,'EXPENSE DATABASE'!$B$173:$C$176,2,FALSE)","v":{"$error":"#N/A"}},100,0,0,{"$f":"IF(L364=T('EXPENSE DATABASE'!$E$173),O364,0)","v":0},{"$f":"IF(L364=T('EXPENSE DATABASE'!$E$174),O364,0)","v":0},{"$f":"IF(L364=T('EXPENSE DATABASE'!$E$175),O364,0)","v":0},0,351]
[0,0,{"$nulls":12},{"v":0,"d":"$0.00"},{"v":0,"d":"$0.00"},{"v":0,"d":"$0.00"},0,{"$f":"IF(OR(K365='EXPENSE DATABASE'!$V$187,K365='EXPENSE DATABASE'!$V$188,K365='EXPENSE DATABASE'!$V$189,K365='EXPENSE DATABASE'!$V$190,K365='EXPENSE DATABASE'!$V$191,K365='EXPENSE DATABASE'!$V$192,K365='EXPENSE DATABASE'!$V$193,K365='EXPENSE DATABASE'!$V$194,K365='EXPENSE DATABASE'!$X$187,K365='EXPENSE DATABASE'!$X$188,K365='EXPENSE DATABASE'!$X$189,K365='EXPENSE DATABASE'!$X$190,K365='EXPENSE DATABASE'!$X$191,K365='EXPENSE DATABASE'!$X$192,K365='EXPENSE DATABASE'!$X$193,K365='EXPENSE DATABASE'!$X$194,K365='EXPENSE DATABASE'!$Z$187,K365='EXPENSE DATABASE'!$Z$188,K365='EXPENSE DATABASE'!$Z$189,K365='EXPENSE DATABASE'!$Z$190,K365='EXPENSE DATABASE'!$Z$191,K365='EXPENSE DATABASE'!$Z$192,K365='EXPENSE DATABASE'!$Z$193,K365='EXPENSE DATABASE'!$Z$194),O365,\"\")","v":""},{"$f":"IF(OR(K365='EXPENSE DATABASE'!$T$189,K365='EXPENSE DATABASE'!$T$190,K365='EXPENSE DATABASE'!$T$191),O365,\"\")","v":""},{"$f":"VLOOKUP(I365,'EXPENSE DATABASE'!$B$41:$C$65,2,FALSE)","v":{"$error":"#N/A"}},100,{"$f":"VLOOKUP(J365,'EXPENSE DATABASE'!$B$69:$C$168,2,FALSE)","v":{"$error":"#N/A"}},101,{"$f":"VLOOKUP(K365,'EXPENSE DATABASE'!$B$6:$C$35,2,FALSE)","v":{"$error":"#N/A"}},31,{"$f":"VLOOKUP(L365,'EXPENSE DATABASE'!$B$173:$C$176,2,FALSE)","v":{"$error":"#N/A"}},100,0,0,{"$f":"IF(L365=T('EXPENSE DATABASE'!$E$173),O365,0)","v":0},{"$f":"IF(L365=T('EXPENSE DATABASE'!$E$174),O365,0)","v":0},{"$f":"IF(L365=T('EXPENSE DATABASE'!$E$175),O365,0)","v":0},0,352]
[0,0,{"$nulls":12},{"v":0,"d":"$0.00"},{"v":0,"d":"$0.00"},{"v":0,"d":"$0.00"},0,{"$f":"IF(OR(K366='EXPENSE DATABASE'!$V$187,K366='EXPENSE DATABASE'!$V$188,K366='EXPENSE DATABASE'!$V$189,K366='EXPENSE DATABASE'!$V$190,K366='EXPENSE DATABASE'!$V$191,K366='EXPENSE DATABASE'!$V$192,K366='EXPENSE DATABASE'!$V$193,K366='EXPENSE DATABASE'!$V$194,K366='EXPENSE DATABASE'!$X$187,K366='EXPENSE DATABASE'!$X$188,K366='EXPENSE DATABASE'!$X$189,K366='EXPENSE DATABASE'!$X$190,K366='EXPENSE DATABASE'!$X$191,K366='EXPENSE DATABASE'!$X$192,K366='EXPENSE DATABASE'!$X$193,K366='EXPENSE DATABASE'!$X$194,K366='EXPENSE DATABASE'!$Z$187,K366='EXPENSE DATABASE'!$Z$188,K366='EXPENSE DATABASE'!$Z$189,K366='EXPENSE DATABASE'!$Z$190,K366='EXPENSE DATABASE'!$Z$191,K366='EXPENSE DATABASE'!$Z$192,K366='EXPENSE DATABASE'!$Z$193,K366='EXPENSE DATABASE'!$Z$194),O366,\"\")","v":""},{"$f":"IF(OR(K366='EXPENSE DATABASE'!$T$189,K366='EXPENSE DATABASE'!$T$190,K366='EXPENSE DATABASE'!$T$191),O366,\"\")","v":""},{"$f":"VLOOKUP(I366,'EXPENSE DATABASE'!$B$41:$C$65,2,FALSE)","v":{"$error":"#N/A"}},100,{"$f":"VLOOKUP(J366,'EXPENSE DATABASE'!$B$69:$C$168,2,FALSE)","v":{"$error":"#N/A"}},101,{"$f":"VLOOKUP(K366,'EXPENSE DATABASE'!$B$6:$C$35,2,FALSE)","v":{"$error":"#N/A"}},31,{"$f":"VLOOKUP(L366,'EXPENSE DATABASE'!$B$173:$C$176,2,FALSE)","v":{"$error":"#N/A"}},100,0,0,{"$f":"IF(L366=T('EXPENSE DATABASE'!$E$173),O366,0)","v":0},{"$f":"IF(L366=T('EXPENSE DATABASE'!$E$174),O366,0)","v":0},{"$f":"IF(L366=T('EXPENSE DATABASE'!$E$175),O366,0)","v":0},0,353]
[0,0,{"$nulls":12},{"v":0,"d":"$0.00"},{"v":0,"d":"$0.00"},{"v":0,"d":"$0.00"},0,{"$f":"IF(OR(K367='EXPENSE DATABASE'!$V$187,K367='EXPENSE DATABASE'!$V$188,K367='EXPENSE DATABASE'!$V$189,K367='EXPENSE DATABASE'!$V$190,K367='EXPENSE DATABASE'!$V$191,K367='EXPENSE DATABASE'!$V$192,K367='EXPENSE DATABASE'!$V$193,K367='EXPENSE DATABASE'!$V$194,K367='EXPENSE DATABASE'!$X$187,K367='EXPENSE DATABASE'!$X$188,K367='EXPENSE DATABASE'!$X$189,K367='EXPENSE DATABASE'!$X$190,K367='EXPENSE DATABASE'!$X$191,K367='EXPENSE DATABASE'!$X$192,K367='EXPENSE DATABASE'!$X$193,K367='EXPENSE DATABASE'!$X$194,K367='EXPENSE DATABASE'!$Z$187,K367='EXPENSE DATABASE'!$Z$188,K367='EXPENSE DATABASE'!$Z$189,K367='EXPENSE DATABASE'!$Z$190,K367='EXPENSE DATABASE'!$Z$191,K367='EXPENSE DATABASE'!$Z$192,K367='EXPENSE DATABASE'!$Z$193,K367='EXPENSE DATABASE'!$Z$194),O367,\"\")","v":""},{"$f":"IF(OR(K367='EXPENSE DATABASE'!$T$189,K367='EXPENSE DATABASE'!$T$190,K367='EXPENSE DATABASE'!$T$191),O367,\"\")","v":""},{"$f":"VLOOKUP(I367,'EXPENSE DATABASE'!$B$41:$C$65,2,FALSE)","v":{"$error":"#N/A"}},100,{"$f":"VLOOKUP(J367,'EXPENSE DATABASE'!$B$69:$C$168,2,FALSE)","v":{"$error":"#N/A"}},101,{"$f":"VLOOKUP(K367,'EXPENSE DATABASE'!$B$6:$C$35,2,FALSE)","v":{"$error":"#N/A"}},31,{"$f":"VLOOKUP(L367,'EXPENSE DATABASE'!$B$173:$C$176,2,FALSE)","v":{"$error":"#N/A"}},100,0,0,{"$f":"IF(L367=T('EXPENSE DATABASE'!$E$173),O367,0)","v":0},{"$f":"IF(L367=T('EXPENSE DATABASE'!$E$174),O367,0)","v":0},{"$f":"IF(L367=T('EXPENSE DATABASE'!$E$175),O367,0)","v":0},0,354]
[0,0,{"$nulls":12},{"v":0,"d":"$0.00"},{"v":0,"d":"$0.00"},{"v":0,"d":"$0.00"},0,{"$f":"IF(OR(K368='EXPENSE DATABASE'!$V$187,K368='EXPENSE DATABASE'!$V$188,K368='EXPENSE DATABASE'!$V$189,K368='EXPENSE DATABASE'!$V$190,K368='EXPENSE DATABASE'!$V$191,K368='EXPENSE DATABASE'!$V$192,K368='EXPENSE DATABASE'!$V$193,K368='EXPENSE DATABASE'!$V$194,K368='EXPENSE DATABASE'!$X$187,K368='EXPENSE DATABASE'!$X$188,K368='EXPENSE DATABASE'!$X$189,K368='EXPENSE DATABASE'!$X$190,K368='EXPENSE DATABASE'!$X$191,K368='EXPENSE DATABASE'!$X$192,K368='EXPENSE DATABASE'!$X$193,K368='EXPENSE DATABASE'!$X$194,K368='EXPENSE DATABASE'!$Z$187,K368='EXPENSE DATABASE'!$Z$188,K368='EXPENSE DATABASE'!$Z$189,K368='EXPENSE DATABASE'!$Z$190,K368='EXPENSE DATABASE'!$Z$191,K368='EXPENSE DATABASE'!$Z$192,K368='EXPENSE DATABASE'!$Z$193,K368='EXPENSE DATABASE'!$Z$194),O368,\"\")","v":""},{"$f":"IF(OR(K368='EXPENSE DATABASE'!$T$189,K368='EXPENSE DATABASE'!$T$190,K368='EXPENSE DATABASE'!$T$191),O368,\"\")","v":""},{"$f":"VLOOKUP(I368,'EXPENSE DATABASE'!$B$41:$C$65,2,FALSE)","v":{"$error":"#N/A"}},100,{"$f":"VLOOKUP(J368,'EXPENSE DATABASE'!$B$69:$C$168,2,FALSE)","v":{"$error":"#N/A"}},101,{"$f":"VLOOKUP(K368,'EXPENSE DATABASE'!$B$6:$C$35,2,FALSE)","v":{"$error":"#N/A"}},31,{"$f":"VLOOKUP(L368,'EXPENSE DATABASE'!$B$173:$C$176,2,FALSE)","v":{"$error":"#N/A"}},100,0,0,{"$f":"IF(L368=T('EXPENSE DATABASE'!$E$173),O368,0)","v":0},{"$f":"IF(L368=T('EXPENSE DATABASE'!$E$174),O368,0)","v":0},{"$f":"IF(L368=T('EXPENSE DATABASE'!$E$175),O368,0)","v":0},0,355]
[0,0,{"$nulls":12},{"v":0,"d":"$0.00"},{"v":0,"d":"$0.00"},{"v":0,"d":"$0.00"},0,{"$f":"IF(OR(K369='EXPENSE DATABASE'!$V$187,K369='EXPENSE DATABASE'!$V$188,K369='EXPENSE DATABASE'!$V$189,K369='EXPENSE DATABASE'!$V$190,K369='EXPENSE DATABASE'!$V$191,K369='EXPENSE DATABASE'!$V$192,K369='EXPENSE DATABASE'!$V$193,K369='EXPENSE DATABASE'!$V$194,K369='EXPENSE DATABASE'!$X$187,K369='EXPENSE DATABASE'!$X$188,K369='EXPENSE DATABASE'!$X$189,K369='EXPENSE DATABASE'!$X$190,K369='EXPENSE DATABASE'!$X$191,K369='EXPENSE DATABASE'!$X$192,K369='EXPENSE DATABASE'!$X$193,K369='EXPENSE DATABASE'!$X$194,K369='EXPENSE DATABASE'!$Z$187,K369='EXPENSE DATABASE'!$Z$188,K369='EXPENSE DATABASE'!$Z$189,K369='EXPENSE DATABASE'!$Z$190,K369='EXPENSE DATABASE'!$Z$191,K369='EXPENSE DATABASE'!$Z$192,K369='EXPENSE DATABASE'!$Z$193,K369='EXPENSE DATABASE'!$Z$194),O369,\"\")","v":""},{"$f":"IF(OR(K369='EXPENSE DATABASE'!$T$189,K369='EXPENSE DATABASE'!$T$190,K369='EXPENSE DATABASE'!$T$191),O369,\"\")","v":""},{"$f":"VLOOKUP(I369,'EXPENSE DATABASE'!$B$41:$C$65,2,FALSE)","v":{"$error":"#N/A"}},100,{"$f":"VLOOKUP(J369,'EXPENSE DATABASE'!$B$69:$C$168,2,FALSE)","v":{"$error":"#N/A"}},101,{"$f":"VLOOKUP(K369,'EXPENSE DATABASE'!$B$6:$C$35,2,FALSE)","v":{"$error":"#N/A"}},31,{"$f":"VLOOKUP(L369,'EXPENSE DATABASE'!$B$173:$C$176,2,FALSE)","v":{"$error":"#N/A"}},100,0,0,{"$f":"IF(L369=T('EXPENSE DATABASE'!$E$173),O369,0)","v":0},{"$f":"IF(L369=T('EXPENSE DATABASE'!$E$174),O369,0)","v":0},{"$f":"IF(L369=T('EXPENSE DATABASE'!$E$175),O369,0)","v":0},0,356]
[0,0,{"$nulls":12},{"v":0,"d":"$0.00"},{"v":0,"d":"$0.00"},{"v":0,"d":"$0.00"},0,{"$f":"IF(OR(K370='EXPENSE DATABASE'!$V$187,K370='EXPENSE DATABASE'!$V$188,K370='EXPENSE DATABASE'!$V$189,K370='EXPENSE DATABASE'!$V$190,K370='EXPENSE DATABASE'!$V$191,K370='EXPENSE DATABASE'!$V$192,K370='EXPENSE DATABASE'!$V$193,K370='EXPENSE DATABASE'!$V$194,K370='EXPENSE DATABASE'!$X$187,K370='EXPENSE DATABASE'!$X$188,K370='EXPENSE DATABASE'!$X$189,K370='EXPENSE DATABASE'!$X$190,K370='EXPENSE DATABASE'!$X$191,K370='EXPENSE DATABASE'!$X$192,K370='EXPENSE DATABASE'!$X$193,K370='EXPENSE DATABASE'!$X$194,K370='EXPENSE DATABASE'!$Z$187,K370='EXPENSE DATABASE'!$Z$188,K370='EXPENSE DATABASE'!$Z$189,K370='EXPENSE DATABASE'!$Z$190,K370='EXPENSE DATABASE'!$Z$191,K370='EXPENSE DATABASE'!$Z$192,K370='EXPENSE DATABASE'!$Z$193,K370='EXPENSE DATABASE'!$Z$194),O370,\"\")","v":""},{"$f":"IF(OR(K370='EXPENSE DATABASE'!$T$189,K370='EXPENSE DATABASE'!$T$190,K370='EXPENSE DATABASE'!$T$191),O370,\"\")","v":""},{"$f":"VLOOKUP(I370,'EXPENSE DATABASE'!$B$41:$C$65,2,FALSE)","v":{"$error":"#N/A"}},100,{"$f":"VLOOKUP(J370,'EXPENSE DATABASE'!$B$69:$C$168,2,FALSE)","v":{"$error":"#N/A"}},101,{"$f":"VLOOKUP(K370,'EXPENSE DATABASE'!$B$6:$C$35,2,FALSE)","v":{"$error":"#N/A"}},31,{"$f":"VLOOKUP(L370,'EXPENSE DATABASE'!$B$173:$C$176,2,FALSE)","v":{"$error":"#N/A"}},100,0,0,{"$f":"IF(L370=T('EXPENSE DATABASE'!$E$173),O370,0)","v":0},{"$f":"IF(L370=T('EXPENSE DATABASE'!$E$174),O370,0)","v":0},{"$f":"IF(L370=T('EXPENSE DATABASE'!$E$175),O370,0)","v":0},0,357]
[0,0,{"$nulls":12},{"v":0,"d":"$0.00"},{"v":0,"d":"$0.00"},{"v":0,"d":"$0.00"},0,{"$f":"IF(OR(K371='EXPENSE DATABASE'!$V$187,K371='EXPENSE DATABASE'!$V$188,K371='EXPENSE DATABASE'!$V$189,K371='EXPENSE DATABASE'!$V$190,K371='EXPENSE DATABASE'!$V$191,K371='EXPENSE DATABASE'!$V$192,K371='EXPENSE DATABASE'!$V$193,K371='EXPENSE DATABASE'!$V$194,K371='EXPENSE DATABASE'!$X$187,K371='EXPENSE DATABASE'!$X$188,K371='EXPENSE DATABASE'!$X$189,K371='EXPENSE DATABASE'!$X$190,K371='EXPENSE DATABASE'!$X$191,K371='EXPENSE DATABASE'!$X$192,K371='EXPENSE DATABASE'!$X$193,K371='EXPENSE DATABASE'!$X$194,K371='EXPENSE DATABASE'!$Z$187,K371='EXPENSE DATABASE'!$Z$188,K371='EXPENSE DATABASE'!$Z$189,K371='EXPENSE DATABASE'!$Z$190,K371='EXPENSE DATABASE'!$Z$191,K371='EXPENSE DATABASE'!$Z$192,K371='EXPENSE DATABASE'!$Z$193,K371='EXPENSE DATABASE'!$Z$194),O371,\"\")","v":""},{"$f":"IF(OR(K371='EXPENSE DATABASE'!$T$189,K371='EXPENSE DATABASE'!$T$190,K371='EXPENSE DATABASE'!$T$191),O371,\"\")","v":""},{"$f":"VLOOKUP(I371,'EXPENSE DATABASE'!$B$41:$C$65,2,FALSE)","v":{"$error":"#N/A"}},100,{"$f":"VLOOKUP(J371,'EXPENSE DATABASE'!$B$69:$C$168,2,FALSE)","v":{"$error":"#N/A"}},101,{"$f":"VLOOKUP(K371,'EXPENSE DATABASE'!$B$6:$C$35,2,FALSE)","v":{"$error":"#N/A"}},31,{"$f":"VLOOKUP(L371,'EXPENSE DATABASE'!$B$173:$C$176,2,FALSE)","v":{"$error":"#N/A"}},100,0,0,{"$f":"IF(L371=T('EXPENSE DATABASE'!$E$173),O371,0)","v":0},{"$f":"IF(L371=T('EXPENSE DATABASE'!$E$174),O371,0)","v":0},{"$f":"IF(L371=T('EXPENSE DATABASE'!$E$175),O371,0)","v":0},0,358]
[0,0,{"$nulls":12},{"v":0,"d":"$0.00"},{"v":0,"d":"$0.00"},{"v":0,"d":"$0.00"},0,{"$f":"IF(OR(K372='EXPENSE DATABASE'!$V$187,K372='EXPENSE DATABASE'!$V$188,K372='EXPENSE DATABASE'!$V$189,K372='EXPENSE DATABASE'!$V$190,K372='EXPENSE DATABASE'!$V$191,K372='EXPENSE DATABASE'!$V$192,K372='EXPENSE DATABASE'!$V$193,K372='EXPENSE DATABASE'!$V$194,K372='EXPENSE DATABASE'!$X$187,K372='EXPENSE DATABASE'!$X$188,K372='EXPENSE DATABASE'!$X$189,K372='EXPENSE DATABASE'!$X$190,K372='EXPENSE DATABASE'!$X$191,K372='EXPENSE DATABASE'!$X$192,K372='EXPENSE DATABASE'!$X$193,K372='EXPENSE DATABASE'!$X$194,K372='EXPENSE DATABASE'!$Z$187,K372='EXPENSE DATABASE'!$Z$188,K372='EXPENSE DATABASE'!$Z$189,K372='EXPENSE DATABASE'!$Z$190,K372='EXPENSE DATABASE'!$Z$191,K372='EXPENSE DATABASE'!$Z$192,K372='EXPENSE DATABASE'!$Z$193,K372='EXPENSE DATABASE'!$Z$194),O372,\"\")","v":""},{"$f":"IF(OR(K372='EXPENSE DATABASE'!$T$189,K372='EXPENSE DATABASE'!$T$190,K372='EXPENSE DATABASE'!$T$191),O372,\"\")","v":""},{"$f":"VLOOKUP(I372,'EXPENSE DATABASE'!$B$41:$C$65,2,FALSE)","v":{"$error":"#N/A"}},100,{"$f":"VLOOKUP(J372,'EXPENSE DATABASE'!$B$69:$C$168,2,FALSE)","v":{"$error":"#N/A"}},101,{"$f":"VLOOKUP(K372,'EXPENSE DATABASE'!$B$6:$C$35,2,FALSE)","v":{"$error":"#N/A"}},31,{"$f":"VLOOKUP(L372,'EXPENSE DATABASE'!$B$173:$C$176,2,FALSE)","v":{"$error":"#N/A"}},100,0,0,{"$f":"IF(L372=T('EXPENSE DATABASE'!$E$173),O372,0)","v":0},{"$f":"IF(L372=T('EXPENSE DATABASE'!$E$174),O372,0)","v":0},{"$f":"IF(L372=T('EXPENSE DATABASE'!$E$175),O372,0)","v":0},0,359]
[0,0,{"$nulls":12},{"v":0,"d":"$0.00"},{"v":0,"d":"$0.00"},{"v":0,"d":"$0.00"},0,{"$f":"IF(OR(K373='EXPENSE DATABASE'!$V$187,K373='EXPENSE DATABASE'!$V$188,K373='EXPENSE DATABASE'!$V$189,K373='EXPENSE DATABASE'!$V$190,K373='EXPENSE DATABASE'!$V$191,K373='EXPENSE DATABASE'!$V$192,K373='EXPENSE DATABASE'!$V$193,K373='EXPENSE DATABASE'!$V$194,K373='EXPENSE DATABASE'!$X$187,K373='EXPENSE DATABASE'!$X$188,K373='EXPENSE DATABASE'!$X$189,K373='EXPENSE DATABASE'!$X$190,K373='EXPENSE DATABASE'!$X$191,K373='EXPENSE DATABASE'!$X$192,K373='EXPENSE DATABASE'!$X$193,K373='EXPENSE DATABASE'!$X$194,K373='EXPENSE DATABASE'!$Z$187,K373='EXPENSE DATABASE'!$Z$188,K373='EXPENSE DATABASE'!$Z$189,K373='EXPENSE DATABASE'!$Z$190,K373='EXPENSE DATABASE'!$Z$191,K373='EXPENSE DATABASE'!$Z$192,K373='EXPENSE DATABASE'!$Z$193,K373='EXPENSE DATABASE'!$Z$194),O373,\"\")","v":""},{"$f":"IF(OR(K373='EXPENSE DATABASE'!$T$189,K373='EXPENSE DATABASE'!$T$190,K373='EXPENSE DATABASE'!$T$191),O373,\"\")","v":""},{"$f":"VLOOKUP(I373,'EXPENSE DATABASE'!$B$41:$C$65,2,FALSE)","v":{"$error":"#N/A"}},100,{"$f":"VLOOKUP(J373,'EXPENSE DATABASE'!$B$69:$C$168,2,FALSE)","v":{"$error":"#N/A"}},101,{"$f":"VLOOKUP(K373,'EXPENSE DATABASE'!$B$6:$C$35,2,FALSE)","v":{"$error":"#N/A"}},31,{"$f":"VLOOKUP(L373,'EXPENSE DATABASE'!$B$173:$C$176,2,FALSE)","v":{"$error":"#N/A"}},100,0,0,{"$f":"IF(L373=T('EXPENSE DATABASE'!$E$173),O373,0)","v":0},{"$f":"IF(L373=T('EXPENSE DATABASE'!$E$174),O373,0)","v":0},{"$f":"IF(L373=T('EXPENSE DATABASE'!$E$175),O373,0)","v":0},0,360]
[0,0,{"$nulls":12},{"v":0,"d":"$0.00"},{"v":0,"d":"$0.00"},{"v":0,"d":"$0.00"},0,{"$f":"IF(OR(K374='EXPENSE DATABASE'!$V$187,K374='EXPENSE DATABASE'!$V$188,K374='EXPENSE DATABASE'!$V$189,K374='EXPENSE DATABASE'!$V$190,K374='EXPENSE DATABASE'!$V$191,K374='EXPENSE DATABASE'!$V$192,K374='EXPENSE DATABASE'!$V$193,K374='EXPENSE DATABASE'!$V$194,K374='EXPENSE DATABASE'!$X$187,K374='EXPENSE DATABASE'!$X$188,K374='EXPENSE DATABASE'!$X$189,K374='EXPENSE DATABASE'!$X$190,K374='EXPENSE DATABASE'!$X$191,K374='EXPENSE DATABASE'!$X$192,K374='EXPENSE DATABASE'!$X$193,K374='EXPENSE DATABASE'!$X$194,K374='EXPENSE DATABASE'!$Z$187,K374='EXPENSE DATABASE'!$Z$188,K374='EXPENSE DATABASE'!$Z$189,K374='EXPENSE DATABASE'!$Z$190,K374='EXPENSE DATABASE'!$Z$191,K374='EXPENSE DATABASE'!$Z$192,K374='EXPENSE DATABASE'!$Z$193,K374='EXPENSE DATABASE'!$Z$194),O374,\"\")","v":""},{"$f":"IF(OR(K374='EXPENSE DATABASE'!$T$189,K374='EXPENSE DATABASE'!$T$190,K374='EXPENSE DATABASE'!$T$191),O374,\"\")","v":""},{"$f":"VLOOKUP(I374,'EXPENSE DATABASE'!$B$41:$C$65,2,FALSE)","v":{"$error":"#N/A"}},100,{"$f":"VLOOKUP(J374,'EXPENSE DATABASE'!$B$69:$C$168,2,FALSE)","v":{"$error":"#N/A"}},101,{"$f":"VLOOKUP(K374,'EXPENSE DATABASE'!$B$6:$C$35,2,FALSE)","v":{"$error":"#N/A"}},31,{"$f":"VLOOKUP(L374,'EXPENSE DATABASE'!$B$173:$C$176,2,FALSE)","v":{"$error":"#N/A"}},100,0,0,{"$f":"IF(L374=T('EXPENSE DATABASE'!$E$173),O374,0)","v":0},{"$f":"IF(L374=T('EXPENSE DATABASE'!$E$174),O374,0)","v":0},{"$f":"IF(L374=T('EXPENSE DATABASE'!$E$175),O374,0)","v":0},0,361]
[0,0,{"$nulls":12},{"v":0,"d":"$0.00"},{"v":0,"d":"$0.00"},{"v":0,"d":"$0.00"},0,{"$f":"IF(OR(K375='EXPENSE DATABASE'!$V$187,K375='EXPENSE DATABASE'!$V$188,K375='EXPENSE DATABASE'!$V$189,K375='EXPENSE DATABASE'!$V$190,K375='EXPENSE DATABASE'!$V$191,K375='EXPENSE DATABASE'!$V$192,K375='EXPENSE DATABASE'!$V$193,K375='EXPENSE DATABASE'!$V$194,K375='EXPENSE DATABASE'!$X$187,K375='EXPENSE DATABASE'!$X$188,K375='EXPENSE DATABASE'!$X$189,K375='EXPENSE DATABASE'!$X$190,K375='EXPENSE DATABASE'!$X$191,K375='EXPENSE DATABASE'!$X$192,K375='EXPENSE DATABASE'!$X$193,K375='EXPENSE DATABASE'!$X$194,K375='EXPENSE DATABASE'!$Z$187,K375='EXPENSE DATABASE'!$Z$188,K375='EXPENSE DATABASE'!$Z$189,K375='EXPENSE DATABASE'!$Z$190,K375='EXPENSE DATABASE'!$Z$191,K375='EXPENSE DATABASE'!$Z$192,K375='EXPENSE DATABASE'!$Z$193,K375='EXPENSE DATABASE'!$Z$194),O375,\"\")","v":""},{"$f":"IF(OR(K375='EXPENSE DATABASE'!$T$189,K375='EXPENSE DATABASE'!$T$190,K375='EXPENSE DATABASE'!$T$191),O375,\"\")","v":""},{"$f":"VLOOKUP(I375,'EXPENSE DATABASE'!$B$41:$C$65,2,FALSE)","v":{"$error":"#N/A"}},100,{"$f":"VLOOKUP(J375,'EXPENSE DATABASE'!$B$69:$C$168,2,FALSE)","v":{"$error":"#N/A"}},101,{"$f":"VLOOKUP(K375,'EXPENSE DATABASE'!$B$6:$C$35,2,FALSE)","v":{"$error":"#N/A"}},31,{"$f":"VLOOKUP(L375,'EXPENSE DATABASE'!$B$173:$C$176,2,FALSE)","v":{"$error":"#N/A"}},100,0,0,{"$f":"IF(L375=T('EXPENSE DATABASE'!$E$173),O375,0)","v":0},{"$f":"IF(L375=T('EXPENSE DATABASE'!$E$174),O375,0)","v":0},{"$f":"IF(L375=T('EXPENSE DATABASE'!$E$175),O375,0)","v":0},0,362]
[0,0,{"$nulls":12},{"v":0,"d":"$0.00"},{"v":0,"d":"$0.00"},{"v":0,"d":"$0.00"},0,{"$f":"IF(OR(K376='EXPENSE DATABASE'!$V$187,K376='EXPENSE DATABASE'!$V$188,K376='EXPENSE DATABASE'!$V$189,K376='EXPENSE DATABASE'!$V$190,K376='EXPENSE DATABASE'!$V$191,K376='EXPENSE DATABASE'!$V$192,K376='EXPENSE DATABASE'!$V$193,K376='EXPENSE DATABASE'!$V$194,K376='EXPENSE DATABASE'!$X$187,K376='EXPENSE DATABASE'!$X$188,K376='EXPENSE DATABASE'!$X$189,K376='EXPENSE DATABASE'!$X$190,K376='EXPENSE DATABASE'!$X$191,K376='EXPENSE DATABASE'!$X$192,K376='EXPENSE DATABASE'!$X$193,K376='EXPENSE DATABASE'!$X$194,K376='EXPENSE DATABASE'!$Z$187,K376='EXPENSE DATABASE'!$Z$188,K376='EXPENSE DATABASE'!$Z$189,K376='EXPENSE DATABASE'!$Z$190,K376='EXPENSE DATABASE'!$Z$191,K376='EXPENSE DATABASE'!$Z$192,K376='EXPENSE DATABASE'!$Z$193,K376='EXPENSE DATABASE'!$Z$194),O376,\"\")","v":""},{"$f":"IF(OR(K376='EXPENSE DATABASE'!$T$189,K376='EXPENSE DATABASE'!$T$190,K376='EXPENSE DATABASE'!$T$191),O376,\"\")","v":""},{"$f":"VLOOKUP(I376,'EXPENSE DATABASE'!$B$41:$C$65,2,FALSE)","v":{"$error":"#N/A"}},100,{"$f":"VLOOKUP(J376,'EXPENSE DATABASE'!$B$69:$C$168,2,FALSE)","v":{"$error":"#N/A"}},101,{"$f":"VLOOKUP(K376,'EXPENSE DATABASE'!$B$6:$C$35,2,FALSE)","v":{"$error":"#N/A"}},31,{"$f":"VLOOKUP(L376,'EXPENSE DATABASE'!$B$173:$C$176,2,FALSE)","v":{"$error":"#N/A"}},100,0,0,{"$f":"IF(L376=T('EXPENSE DATABASE'!$E$173),O376,0)","v":0},{"$f":"IF(L376=T('EXPENSE DATABASE'!$E$174),O376,0)","v":0},{"$f":"IF(L376=T('EXPENSE DATABASE'!$E$175),O376,0)","v":0},0,363]
[0,0,{"$nulls":12},{"v":0,"d":"$0.00"},{"v":0,"d":"$0.00"},{"v":0,"d":"$0.00"},0,{"$f":"IF(OR(K377='EXPENSE DATABASE'!$V$187,K377='EXPENSE DATABASE'!$V$188,K377='EXPENSE DATABASE'!$V$189,K377='EXPENSE DATABASE'!$V$190,K377='EXPENSE DATABASE'!$V$191,K377='EXPENSE DATABASE'!$V$192,K377='EXPENSE DATABASE'!$V$193,K377='EXPENSE DATABASE'!$V$194,K377='EXPENSE DATABASE'!$X$187,K377='EXPENSE DATABASE'!$X$188,K377='EXPENSE DATABASE'!$X$189,K377='EXPENSE DATABASE'!$X$190,K377='EXPENSE DATABASE'!$X$191,K377='EXPENSE DATABASE'!$X$192,K377='EXPENSE DATABASE'!$X$193,K377='EXPENSE DATABASE'!$X$194,K377='EXPENSE DATABASE'!$Z$187,K377='EXPENSE DATABASE'!$Z$188,K377='EXPENSE DATABASE'!$Z$189,K377='EXPENSE DATABASE'!$Z$190,K377='EXPENSE DATABASE'!$Z$191,K377='EXPENSE DATABASE'!$Z$192,K377='EXPENSE DATABASE'!$Z$193,K377='EXPENSE DATABASE'!$Z$194),O377,\"\")","v":""},{"$f":"IF(OR(K377='EXPENSE DATABASE'!$T$189,K377='EXPENSE DATABASE'!$T$190,K377='EXPENSE DATABASE'!$T$191),O377,\"\")","v":""},{"$f":"VLOOKUP(I377,'EXPENSE DATABASE'!$B$41:$C$65,2,FALSE)","v":{"$error":"#N/A"}},100,{"$f":"VLOOKUP(J377,'EXPENSE DATABASE'!$B$69:$C$168,2,FALSE)","v":{"$error":"#N/A"}},101,{"$f":"VLOOKUP(K377,'EXPENSE DATABASE'!$B$6:$C$35,2,FALSE)","v":{"$error":"#N/A"}},31,{"$f":"VLOOKUP(L377,'EXPENSE DATABASE'!$B$173:$C$176,2,FALSE)","v":{"$error":"#N/A"}},100,0,0,{"$f":"IF(L377=T('EXPENSE DATABASE'!$E$173),O377,0)","v":0},{"$f":"IF(L377=T('EXPENSE DATABASE'!$E$174),O377,0)","v":0},{"$f":"IF(L377=T('EXPENSE DATABASE'!$E$175),O377,0)","v":0},0,364]
[0,0,{"$nulls":12},{"v":0,"d":"$0.00"},{"v":0,"d":"$0.00"},{"v":0,"d":"$0.00"},0,{"$f":"IF(OR(K378='EXPENSE DATABASE'!$V$187,K378='EXPENSE DATABASE'!$V$188,K378='EXPENSE DATABASE'!$V$189,K378='EXPENSE DATABASE'!$V$190,K378='EXPENSE DATABASE'!$V$191,K378='EXPENSE DATABASE'!$V$192,K378='EXPENSE DATABASE'!$V$193,K378='EXPENSE DATABASE'!$V$194,K378='EXPENSE DATABASE'!$X$187,K378='EXPENSE DATABASE'!$X$188,K378='EXPENSE DATABASE'!$X$189,K378='EXPENSE DATABASE'!$X$190,K378='EXPENSE DATABASE'!$X$191,K378='EXPENSE DATABASE'!$X$192,K378='EXPENSE DATABASE'!$X$193,K378='EXPENSE DATABASE'!$X$194,K378='EXPENSE DATABASE'!$Z$187,K378='EXPENSE DATABASE'!$Z$188,K378='EXPENSE DATABASE'!$Z$189,K378='EXPENSE DATABASE'!$Z$190,K378='EXPENSE DATABASE'!$Z$191,K378='EXPENSE DATABASE'!$Z$192,K378='EXPENSE DATABASE'!$Z$193,K378='EXPENSE DATABASE'!$Z$194),O378,\"\")","v":""},{"$f":"IF(OR(K378='EXPENSE DATABASE'!$T$189,K378='EXPENSE DATABASE'!$T$190,K378='EXPENSE DATABASE'!$T$191),O378,\"\")","v":""},{"$f":"VLOOKUP(I378,'EXPENSE DATABASE'!$B$41:$C$65,2,FALSE)","v":{"$error":"#N/A"}},100,{"$f":"VLOOKUP(J378,'EXPENSE DATABASE'!$B$69:$C$168,2,FALSE)","v":{"$error":"#N/A"}},101,{"$f":"VLOOKUP(K378,'EXPENSE DATABASE'!$B$6:$C$35,2,FALSE)","v":{"$error":"#N/A"}},31,{"$f":"VLOOKUP(L378,'EXPENSE DATABASE'!$B$173:$C$176,2,FALSE)","v":{"$error":"#N/A"}},100,0,0,{"$f":"IF(L378=T('EXPENSE DATABASE'!$E$173),O378,0)","v":0},{"$f":"IF(L378=T('EXPENSE DATABASE'!$E$174),O378,0)","v":0},{"$f":"IF(L378=T('EXPENSE DATABASE'!$E$175),O378,0)","v":0},0,365]
[0,0,{"$nulls":12},{"v":0,"d":"$0.00"},{"v":0,"d":"$0.00"},{"v":0,"d":"$0.00"},0,{"$f":"IF(OR(K379='EXPENSE DATABASE'!$V$187,K379='EXPENSE DATABASE'!$V$188,K379='EXPENSE DATABASE'!$V$189,K379='EXPENSE DATABASE'!$V$190,K379='EXPENSE DATABASE'!$V$191,K379='EXPENSE DATABASE'!$V$192,K379='EXPENSE DATABASE'!$V$193,K379='EXPENSE DATABASE'!$V$194,K379='EXPENSE DATABASE'!$X$187,K379='EXPENSE DATABASE'!$X$188,K379='EXPENSE DATABASE'!$X$189,K379='EXPENSE DATABASE'!$X$190,K379='EXPENSE DATABASE'!$X$191,K379='EXPENSE DATABASE'!$X$192,K379='EXPENSE DATABASE'!$X$193,K379='EXPENSE DATABASE'!$X$194,K379='EXPENSE DATABASE'!$Z$187,K379='EXPENSE DATABASE'!$Z$188,K379='EXPENSE DATABASE'!$Z$189,K379='EXPENSE DATABASE'!$Z$190,K379='EXPENSE DATABASE'!$Z$191,K379='EXPENSE DATABASE'!$Z$192,K379='EXPENSE DATABASE'!$Z$193,K379='EXPENSE DATABASE'!$Z$194),O379,\"\")","v":""},{"$f":"IF(OR(K379='EXPENSE DATABASE'!$T$189,K379='EXPENSE DATABASE'!$T$190,K379='EXPENSE DATABASE'!$T$191),O379,\"\")","v":""},{"$f":"VLOOKUP(I379,'EXPENSE DATABASE'!$B$41:$C$65,2,FALSE)","v":{"$error":"#N/A"}},100,{"$f":"VLOOKUP(J379,'EXPENSE DATABASE'!$B$69:$C$168,2,FALSE)","v":{"$error":"#N/A"}},101,{"$f":"VLOOKUP(K379,'EXPENSE DATABASE'!$B$6:$C$35,2,FALSE)","v":{"$error":"#N/A"}},31,{"$f":"VLOOKUP(L379,'EXPENSE DATABASE'!$B$173:$C$176,2,FALSE)","v":{"$error":"#N/A"}},100,0,0,{"$f":"IF(L379=T('EXPENSE DATABASE'!$E$173),O379,0)","v":0},{"$f":"IF(L379=T('EXPENSE DATABASE'!$E$174),O379,0)","v":0},{"$f":"IF(L379=T('EXPENSE DATABASE'!$E$175),O379,0)","v":0},0,366]
[0,0,{"$nulls":12},{"v":0,"d":"$0.00"},{"v":0,"d":"$0.00"},{"v":0,"d":"$0.00"},0,{"$f":"IF(OR(K380='EXPENSE DATABASE'!$V$187,K380='EXPENSE DATABASE'!$V$188,K380='EXPENSE DATABASE'!$V$189,K380='EXPENSE DATABASE'!$V$190,K380='EXPENSE DATABASE'!$V$191,K380='EXPENSE DATABASE'!$V$192,K380='EXPENSE DATABASE'!$V$193,K380='EXPENSE DATABASE'!$V$194,K380='EXPENSE DATABASE'!$X$187,K380='EXPENSE DATABASE'!$X$188,K380='EXPENSE DATABASE'!$X$189,K380='EXPENSE DATABASE'!$X$190,K380='EXPENSE DATABASE'!$X$191,K380='EXPENSE DATABASE'!$X$192,K380='EXPENSE DATABASE'!$X$193,K380='EXPENSE DATABASE'!$X$194,K380='EXPENSE DATABASE'!$Z$187,K380='EXPENSE DATABASE'!$Z$188,K380='EXPENSE DATABASE'!$Z$189,K380='EXPENSE DATABASE'!$Z$190,K380='EXPENSE DATABASE'!$Z$191,K380='EXPENSE DATABASE'!$Z$192,K380='EXPENSE DATABASE'!$Z$193,K380='EXPENSE DATABASE'!$Z$194),O380,\"\")","v":""},{"$f":"IF(OR(K380='EXPENSE DATABASE'!$T$189,K380='EXPENSE DATABASE'!$T$190,K380='EXPENSE DATABASE'!$T$191),O380,\"\")","v":""},{"$f":"VLOOKUP(I380,'EXPENSE DATABASE'!$B$41:$C$65,2,FALSE)","v":{"$error":"#N/A"}},100,{"$f":"VLOOKUP(J380,'EXPENSE DATABASE'!$B$69:$C$168,2,FALSE)","v":{"$error":"#N/A"}},101,{"$f":"VLOOKUP(K380,'EXPENSE DATABASE'!$B$6:$C$35,2,FALSE)","v":{"$error":"#N/A"}},31,{"$f":"VLOOKUP(L380,'EXPENSE DATABASE'!$B$173:$C$176,2,FALSE)","v":{"$error":"#N/A"}},100,0,0,{"$f":"IF(L380=T('EXPENSE DATABASE'!$E$173),O380,0)","v":0},{"$f":"IF(L380=T('EXPENSE DATABASE'!$E$174),O380,0)","v":0},{"$f":"IF(L380=T('EXPENSE DATABASE'!$E$175),O380,0)","v":0},0,367]
[0,0,{"$nulls":12},{"v":0,"d":"$0.00"},{"v":0,"d":"$0.00"},{"v":0,"d":"$0.00"},0,{"$f":"IF(OR(K381='EXPENSE DATABASE'!$V$187,K381='EXPENSE DATABASE'!$V$188,K381='EXPENSE DATABASE'!$V$189,K381='EXPENSE DATABASE'!$V$190,K381='EXPENSE DATABASE'!$V$191,K381='EXPENSE DATABASE'!$V$192,K381='EXPENSE DATABASE'!$V$193,K381='EXPENSE DATABASE'!$V$194,K381='EXPENSE DATABASE'!$X$187,K381='EXPENSE DATABASE'!$X$188,K381='EXPENSE DATABASE'!$X$189,K381='EXPENSE DATABASE'!$X$190,K381='EXPENSE DATABASE'!$X$191,K381='EXPENSE DATABASE'!$X$192,K381='EXPENSE DATABASE'!$X$193,K381='EXPENSE DATABASE'!$X$194,K381='EXPENSE DATABASE'!$Z$187,K381='EXPENSE DATABASE'!$Z$188,K381='EXPENSE DATABASE'!$Z$189,K381='EXPENSE DATABASE'!$Z$190,K381='EXPENSE DATABASE'!$Z$191,K381='EXPENSE DATABASE'!$Z$192,K381='EXPENSE DATABASE'!$Z$193,K381='EXPENSE DATABASE'!$Z$194),O381,\"\")","v":""},{"$f":"IF(OR(K381='EXPENSE DATABASE'!$T$189,K381='EXPENSE DATABASE'!$T$190,K381='EXPENSE DATABASE'!$T$191),O381,\"\")","v":""},{"$f":"VLOOKUP(I381,'EXPENSE DATABASE'!$B$41:$C$65,2,FALSE)","v":{"$error":"#N/A"}},100,{"$f":"VLOOKUP(J381,'EXPENSE DATABASE'!$B$69:$C$168,2,FALSE)","v":{"$error":"#N/A"}},101,{"$f":"VLOOKUP(K381,'EXPENSE DATABASE'!$B$6:$C$35,2,FALSE)","v":{"$error":"#N/A"}},31,{"$f":"VLOOKUP(L381,'EXPENSE DATABASE'!$B$173:$C$176,2,FALSE)","v":{"$error":"#N/A"}},100,0,0,{"$f":"IF(L381=T('EXPENSE DATABASE'!$E$173),O381,0)","v":0},{"$f":"IF(L381=T('EXPENSE DATABASE'!$E$174),O381,0)","v":0},{"$f":"IF(L381=T('EXPENSE DATABASE'!$E$175),O381,0)","v":0},0,368]
[0,0,{"$nulls":12},{"v":0,"d":"$0.00"},{"v":0,"d":"$0.00"},{"v":0,"d":"$0.00"},0,{"$f":"IF(OR(K382='EXPENSE DATABASE'!$V$187,K382='EXPENSE DATABASE'!$V$188,K382='EXPENSE DATABASE'!$V$189,K382='EXPENSE DATABASE'!$V$190,K382='EXPENSE DATABASE'!$V$191,K382='EXPENSE DATABASE'!$V$192,K382='EXPENSE DATABASE'!$V$193,K382='EXPENSE DATABASE'!$V$194,K382='EXPENSE DATABASE'!$X$187,K382='EXPENSE DATABASE'!$X$188,K382='EXPENSE DATABASE'!$X$189,K382='EXPENSE DATABASE'!$X$190,K382='EXPENSE DATABASE'!$X$191,K382='EXPENSE DATABASE'!$X$192,K382='EXPENSE DATABASE'!$X$193,K382='EXPENSE DATABASE'!$X$194,K382='EXPENSE DATABASE'!$Z$187,K382='EXPENSE DATABASE'!$Z$188,K382='EXPENSE DATABASE'!$Z$189,K382='EXPENSE DATABASE'!$Z$190,K382='EXPENSE DATABASE'!$Z$191,K382='EXPENSE DATABASE'!$Z$192,K382='EXPENSE DATABASE'!$Z$193,K382='EXPENSE DATABASE'!$Z$194),O382,\"\")","v":""},{"$f":"IF(OR(K382='EXPENSE DATABASE'!$T$189,K382='EXPENSE DATABASE'!$T$190,K382='EXPENSE DATABASE'!$T$191),O382,\"\")","v":""},{"$f":"VLOOKUP(I382,'EXPENSE DATABASE'!$B$41:$C$65,2,FALSE)","v":{"$error":"#N/A"}},100,{"$f":"VLOOKUP(J382,'EXPENSE DATABASE'!$B$69:$C$168,2,FALSE)","v":{"$error":"#N/A"}},101,{"$f":"VLOOKUP(K382,'EXPENSE DATABASE'!$B$6:$C$35,2,FALSE)","v":{"$error":"#N/A"}},31,{"$f":"VLOOKUP(L382,'EXPENSE DATABASE'!$B$173:$C$176,2,FALSE)","v":{"$error":"#N/A"}},100,0,0,{"$f":"IF(L382=T('EXPENSE DATABASE'!$E$173),O382,0)","v":0},{"$f":"IF(L382=T('EXPENSE DATABASE'!$E$174),O382,0)","v":0},{"$f":"IF(L382=T('EXPENSE DATABASE'!$E$175),O382,0)","v":0},0,369]
[0,0,{"$nulls":12},{"v":0,"d":"$0.00"},{"v":0,"d":"$0.00"},{"v":0,"d":"$0.00"},0,{"$f":"IF(OR(K383='EXPENSE DATABASE'!$V$187,K383='EXPENSE DATABASE'!$V$188,K383='EXPENSE DATABASE'!$V$189,K383='EXPENSE DATABASE'!$V$190,K383='EXPENSE DATABASE'!$V$191,K383='EXPENSE DATABASE'!$V$192,K383='EXPENSE DATABASE'!$V$193,K383='EXPENSE DATABASE'!$V$194,K383='EXPENSE DATABASE'!$X$187,K383='EXPENSE DATABASE'!$X$188,K383='EXPENSE DATABASE'!$X$189,K383='EXPENSE DATABASE'!$X$190,K383='EXPENSE DATABASE'!$X$191,K383='EXPENSE DATABASE'!$X$192,K383='EXPENSE DATABASE'!$X$193,K383='EXPENSE DATABASE'!$X$194,K383='EXPENSE DATABASE'!$Z$187,K383='EXPENSE DATABASE'!$Z$188,K383='EXPENSE DATABASE'!$Z$189,K383='EXPENSE DATABASE'!$Z$190,K383='EXPENSE DATABASE'!$Z$191,K383='EXPENSE DATABASE'!$Z$192,K383='EXPENSE DATABASE'!$Z$193,K383='EXPENSE DATABASE'!$Z$194),O383,\"\")","v":""},{"$f":"IF(OR(K383='EXPENSE DATABASE'!$T$189,K383='EXPENSE DATABASE'!$T$190,K383='EXPENSE DATABASE'!$T$191),O383,\"\")","v":""},{"$f":"VLOOKUP(I383,'EXPENSE DATABASE'!$B$41:$C$65,2,FALSE)","v":{"$error":"#N/A"}},100,{"$f":"VLOOKUP(J383,'EXPENSE DATABASE'!$B$69:$C$168,2,FALSE)","v":{"$error":"#N/A"}},101,{"$f":"VLOOKUP(K383,'EXPENSE DATABASE'!$B$6:$C$35,2,FALSE)","v":{"$error":"#N/A"}},31,{"$f":"VLOOKUP(L383,'EXPENSE DATABASE'!$B$173:$C$176,2,FALSE)","v":{"$error":"#N/A"}},100,0,0,{"$f":"IF(L383=T('EXPENSE DATABASE'!$E$173),O383,0)","v":0},{"$f":"IF(L383=T('EXPENSE DATABASE'!$E$174),O383,0)","v":0},{"$f":"IF(L383=T('EXPENSE DATABASE'!$E$175),O383,0)","v":0},0,370]
[0,0,{"$nulls":12},{"v":0,"d":"$0.00"},{"v":0,"d":"$0.00"},{"v":0,"d":"$0.00"},0,{"$f":"IF(OR(K384='EXPENSE DATABASE'!$V$187,K384='EXPENSE DATABASE'!$V$188,K384='EXPENSE DATABASE'!$V$189,K384='EXPENSE DATABASE'!$V$190,K384='EXPENSE DATABASE'!$V$191,K384='EXPENSE DATABASE'!$V$192,K384='EXPENSE DATABASE'!$V$193,K384='EXPENSE DATABASE'!$V$194,K384='EXPENSE DATABASE'!$X$187,K384='EXPENSE DATABASE'!$X$188,K384='EXPENSE DATABASE'!$X$189,K384='EXPENSE DATABASE'!$X$190,K384='EXPENSE DATABASE'!$X$191,K384='EXPENSE DATABASE'!$X$192,K384='EXPENSE DATABASE'!$X$193,K384='EXPENSE DATABASE'!$X$194,K384='EXPENSE DATABASE'!$Z$187,K384='EXPENSE DATABASE'!$Z$188,K384='EXPENSE DATABASE'!$Z$189,K384='EXPENSE DATABASE'!$Z$190,K384='EXPENSE DATABASE'!$Z$191,K384='EXPENSE DATABASE'!$Z$192,K384='EXPENSE DATABASE'!$Z$193,K384='EXPENSE DATABASE'!$Z$194),O384,\"\")","v":""},{"$f":"IF(OR(K384='EXPENSE DATABASE'!$T$189,K384='EXPENSE DATABASE'!$T$190,K384='EXPENSE DATABASE'!$T$191),O384,\"\")","v":""},{"$f":"VLOOKUP(I384,'EXPENSE DATABASE'!$B$41:$C$65,2,FALSE)","v":{"$error":"#N/A"}},100,{"$f":"VLOOKUP(J384,'EXPENSE DATABASE'!$B$69:$C$168,2,FALSE)","v":{"$error":"#N/A"}},101,{"$f":"VLOOKUP(K384,'EXPENSE DATABASE'!$B$6:$C$35,2,FALSE)","v":{"$error":"#N/A"}},31,{"$f":"VLOOKUP(L384,'EXPENSE DATABASE'!$B$173:$C$176,2,FALSE)","v":{"$error":"#N/A"}},100,0,0,{"$f":"IF(L384=T('EXPENSE DATABASE'!$E$173),O384,0)","v":0},{"$f":"IF(L384=T('EXPENSE DATABASE'!$E$174),O384,0)","v":0},{"$f":"IF(L384=T('EXPENSE DATABASE'!$E$175),O384,0)","v":0},0,371]
[0,0,{"$nulls":12},{"v":0,"d":"$0.00"},{"v":0,"d":"$0.00"},{"v":0,"d":"$0.00"},0,{"$f":"IF(OR(K385='EXPENSE DATABASE'!$V$187,K385='EXPENSE DATABASE'!$V$188,K385='EXPENSE DATABASE'!$V$189,K385='EXPENSE DATABASE'!$V$190,K385='EXPENSE DATABASE'!$V$191,K385='EXPENSE DATABASE'!$V$192,K385='EXPENSE DATABASE'!$V$193,K385='EXPENSE DATABASE'!$V$194,K385='EXPENSE DATABASE'!$X$187,K385='EXPENSE DATABASE'!$X$188,K385='EXPENSE DATABASE'!$X$189,K385='EXPENSE DATABASE'!$X$190,K385='EXPENSE DATABASE'!$X$191,K385='EXPENSE DATABASE'!$X$192,K385='EXPENSE DATABASE'!$X$193,K385='EXPENSE DATABASE'!$X$194,K385='EXPENSE DATABASE'!$Z$187,K385='EXPENSE DATABASE'!$Z$188,K385='EXPENSE DATABASE'!$Z$189,K385='EXPENSE DATABASE'!$Z$190,K385='EXPENSE DATABASE'!$Z$191,K385='EXPENSE DATABASE'!$Z$192,K385='EXPENSE DATABASE'!$Z$193,K385='EXPENSE DATABASE'!$Z$194),O385,\"\")","v":""},{"$f":"IF(OR(K385='EXPENSE DATABASE'!$T$189,K385='EXPENSE DATABASE'!$T$190,K385='EXPENSE DATABASE'!$T$191),O385,\"\")","v":""},{"$f":"VLOOKUP(I385,'EXPENSE DATABASE'!$B$41:$C$65,2,FALSE)","v":{"$error":"#N/A"}},100,{"$f":"VLOOKUP(J385,'EXPENSE DATABASE'!$B$69:$C$168,2,FALSE)","v":{"$error":"#N/A"}},101,{"$f":"VLOOKUP(K385,'EXPENSE DATABASE'!$B$6:$C$35,2,FALSE)","v":{"$error":"#N/A"}},31,{"$f":"VLOOKUP(L385,'EXPENSE DATABASE'!$B$173:$C$176,2,FALSE)","v":{"$error":"#N/A"}},100,0,0,{"$f":"IF(L385=T('EXPENSE DATABASE'!$E$173),O385,0)","v":0},{"$f":"IF(L385=T('EXPENSE DATABASE'!$E$174),O385,0)","v":0},{"$f":"IF(L385=T('EXPENSE DATABASE'!$E$175),O385,0)","v":0},0,372]
[0,0,{"$nulls":12},{"v":0,"d":"$0.00"},{"v":0,"d":"$0.00"},{"v":0,"d":"$0.00"},0,{"$f":"IF(OR(K386='EXPENSE DATABASE'!$V$187,K386='EXPENSE DATABASE'!$V$188,K386='EXPENSE DATABASE'!$V$189,K386='EXPENSE DATABASE'!$V$190,K386='EXPENSE DATABASE'!$V$191,K386='EXPENSE DATABASE'!$V$192,K386='EXPENSE DATABASE'!$V$193,K386='EXPENSE DATABASE'!$V$194,K386='EXPENSE DATABASE'!$X$187,K386='EXPENSE DATABASE'!$X$188,K386='EXPENSE DATABASE'!$X$189,K386='EXPENSE DATABASE'!$X$190,K386='EXPENSE DATABASE'!$X$191,K386='EXPENSE DATABASE'!$X$192,K386='EXPENSE DATABASE'!$X$193,K386='EXPENSE DATABASE'!$X$194,K386='EXPENSE DATABASE'!$Z$187,K386='EXPENSE DATABASE'!$Z$188,K386='EXPENSE DATABASE'!$Z$189,K386='EXPENSE DATABASE'!$Z$190,K386='EXPENSE DATABASE'!$Z$191,K386='EXPENSE DATABASE'!$Z$192,K386='EXPENSE DATABASE'!$Z$193,K386='EXPENSE DATABASE'!$Z$194),O386,\"\")","v":""},{"$f":"IF(OR(K386='EXPENSE DATABASE'!$T$189,K386='EXPENSE DATABASE'!$T$190,K386='EXPENSE DATABASE'!$T$191),O386,\"\")","v":""},{"$f":"VLOOKUP(I386,'EXPENSE DATABASE'!$B$41:$C$65,2,FALSE)","v":{"$error":"#N/A"}},100,{"$f":"VLOOKUP(J386,'EXPENSE DATABASE'!$B$69:$C$168,2,FALSE)","v":{"$error":"#N/A"}},101,{"$f":"VLOOKUP(K386,'EXPENSE DATABASE'!$B$6:$C$35,2,FALSE)","v":{"$error":"#N/A"}},31,{"$f":"VLOOKUP(L386,'EXPENSE DATABASE'!$B$173:$C$176,2,FALSE)","v":{"$error":"#N/A"}},100,0,0,{"$f":"IF(L386=T('EXPENSE DATABASE'!$E$173),O386,0)","v":0},{"$f":"IF(L386=T('EXPENSE DATABASE'!$E$174),O386,0)","v":0},{"$f":"IF(L386=T('EXPENSE DATABASE'!$E$175),O386,0)","v":0},0,373]
[0,0,{"$nulls":12},{"v":0,"d":"$0.00"},{"v":0,"d":"$0.00"},{"v":0,"d":"$0.00"},0,{"$f":"IF(OR(K387='EXPENSE DATABASE'!$V$187,K387='EXPENSE DATABASE'!$V$188,K387='EXPENSE DATABASE'!$V$189,K387='EXPENSE DATABASE'!$V$190,K387='EXPENSE DATABASE'!$V$191,K387='EXPENSE DATABASE'!$V$192,K387='EXPENSE DATABASE'!$V$193,K387='EXPENSE DATABASE'!$V$194,K387='EXPENSE DATABASE'!$X$187,K387='EXPENSE DATABASE'!$X$188,K387='EXPENSE DATABASE'!$X$189,K387='EXPENSE DATABASE'!$X$190,K387='EXPENSE DATABASE'!$X$191,K387='EXPENSE DATABASE'!$X$192,K387='EXPENSE DATABASE'!$X$193,K387='EXPENSE DATABASE'!$X$194,K387='EXPENSE DATABASE'!$Z$187,K387='EXPENSE DATABASE'!$Z$188,K387='EXPENSE DATABASE'!$Z$189,K387='EXPENSE DATABASE'!$Z$190,K387='EXPENSE DATABASE'!$Z$191,K387='EXPENSE DATABASE'!$Z$192,K387='EXPENSE DATABASE'!$Z$193,K387='EXPENSE DATABASE'!$Z$194),O387,\"\")","v":""},{"$f":"IF(OR(K387='EXPENSE DATABASE'!$T$189,K387='EXPENSE DATABASE'!$T$190,K387='EXPENSE DATABASE'!$T$191),O387,\"\")","v":""},{"$f":"VLOOKUP(I387,'EXPENSE DATABASE'!$B$41:$C$65,2,FALSE)","v":{"$error":"#N/A"}},100,{"$f":"VLOOKUP(J387,'EXPENSE DATABASE'!$B$69:$C$168,2,FALSE)","v":{"$error":"#N/A"}},101,{"$f":"VLOOKUP(K387,'EXPENSE DATABASE'!$B$6:$C$35,2,FALSE)","v":{"$error":"#N/A"}},31,{"$f":"VLOOKUP(L387,'EXPENSE DATABASE'!$B$173:$C$176,2,FALSE)","v":{"$error":"#N/A"}},100,0,0,{"$f":"IF(L387=T('EXPENSE DATABASE'!$E$173),O387,0)","v":0},{"$f":"IF(L387=T('EXPENSE DATABASE'!$E$174),O387,0)","v":0},{"$f":"IF(L387=T('EXPENSE DATABASE'!$E$175),O387,0)","v":0},0,374]
[0,0,{"$nulls":12},{"v":0,"d":"$0.00"},{"v":0,"d":"$0.00"},{"v":0,"d":"$0.00"},0,{"$f":"IF(OR(K388='EXPENSE DATABASE'!$V$187,K388='EXPENSE DATABASE'!$V$188,K388='EXPENSE DATABASE'!$V$189,K388='EXPENSE DATABASE'!$V$190,K388='EXPENSE DATABASE'!$V$191,K388='EXPENSE DATABASE'!$V$192,K388='EXPENSE DATABASE'!$V$193,K388='EXPENSE DATABASE'!$V$194,K388='EXPENSE DATABASE'!$X$187,K388='EXPENSE DATABASE'!$X$188,K388='EXPENSE DATABASE'!$X$189,K388='EXPENSE DATABASE'!$X$190,K388='EXPENSE DATABASE'!$X$191,K388='EXPENSE DATABASE'!$X$192,K388='EXPENSE DATABASE'!$X$193,K388='EXPENSE DATABASE'!$X$194,K388='EXPENSE DATABASE'!$Z$187,K388='EXPENSE DATABASE'!$Z$188,K388='EXPENSE DATABASE'!$Z$189,K388='EXPENSE DATABASE'!$Z$190,K388='EXPENSE DATABASE'!$Z$191,K388='EXPENSE DATABASE'!$Z$192,K388='EXPENSE DATABASE'!$Z$193,K388='EXPENSE DATABASE'!$Z$194),O388,\"\")","v":""},{"$f":"IF(OR(K388='EXPENSE DATABASE'!$T$189,K388='EXPENSE DATABASE'!$T$190,K388='EXPENSE DATABASE'!$T$191),O388,\"\")","v":""},{"$f":"VLOOKUP(I388,'EXPENSE DATABASE'!$B$41:$C$65,2,FALSE)","v":{"$error":"#N/A"}},100,{"$f":"VLOOKUP(J388,'EXPENSE DATABASE'!$B$69:$C$168,2,FALSE)","v":{"$error":"#N/A"}},101,{"$f":"VLOOKUP(K388,'EXPENSE DATABASE'!$B$6:$C$35,2,FALSE)","v":{"$error":"#N/A"}},31,{"$f":"VLOOKUP(L388,'EXPENSE DATABASE'!$B$173:$C$176,2,FALSE)","v":{"$error":"#N/A"}},100,0,0,{"$f":"IF(L388=T('EXPENSE DATABASE'!$E$173),O388,0)","v":0},{"$f":"IF(L388=T('EXPENSE DATABASE'!$E$174),O388,0)","v":0},{"$f":"IF(L388=T('EXPENSE DATABASE'!$E$175),O388,0)","v":0},0,375]
[0,0,{"$nulls":12},{"v":0,"d":"$0.00"},{"v":0,"d":"$0.00"},{"v":0,"d":"$0.00"},0,{"$f":"IF(OR(K389='EXPENSE DATABASE'!$V$187,K389='EXPENSE DATABASE'!$V$188,K389='EXPENSE DATABASE'!$V$189,K389='EXPENSE DATABASE'!$V$190,K389='EXPENSE DATABASE'!$V$191,K389='EXPENSE DATABASE'!$V$192,K389='EXPENSE DATABASE'!$V$193,K389='EXPENSE DATABASE'!$V$194,K389='EXPENSE DATABASE'!$X$187,K389='EXPENSE DATABASE'!$X$188,K389='EXPENSE DATABASE'!$X$189,K389='EXPENSE DATABASE'!$X$190,K389='EXPENSE DATABASE'!$X$191,K389='EXPENSE DATABASE'!$X$192,K389='EXPENSE DATABASE'!$X$193,K389='EXPENSE DATABASE'!$X$194,K389='EXPENSE DATABASE'!$Z$187,K389='EXPENSE DATABASE'!$Z$188,K389='EXPENSE DATABASE'!$Z$189,K389='EXPENSE DATABASE'!$Z$190,K389='EXPENSE DATABASE'!$Z$191,K389='EXPENSE DATABASE'!$Z$192,K389='EXPENSE DATABASE'!$Z$193,K389='EXPENSE DATABASE'!$Z$194),O389,\"\")","v":""},{"$f":"IF(OR(K389='EXPENSE DATABASE'!$T$189,K389='EXPENSE DATABASE'!$T$190,K389='EXPENSE DATABASE'!$T$191),O389,\"\")","v":""},{"$f":"VLOOKUP(I389,'EXPENSE DATABASE'!$B$41:$C$65,2,FALSE)","v":{"$error":"#N/A"}},100,{"$f":"VLOOKUP(J389,'EXPENSE DATABASE'!$B$69:$C$168,2,FALSE)","v":{"$error":"#N/A"}},101,{"$f":"VLOOKUP(K389,'EXPENSE DATABASE'!$B$6:$C$35,2,FALSE)","v":{"$error":"#N/A"}},31,{"$f":"VLOOKUP(L389,'EXPENSE DATABASE'!$B$173:$C$176,2,FALSE)","v":{"$error":"#N/A"}},100,0,0,{"$f":"IF(L389=T('EXPENSE DATABASE'!$E$173),O389,0)","v":0},{"$f":"IF(L389=T('EXPENSE DATABASE'!$E$174),O389,0)","v":0},{"$f":"IF(L389=T('EXPENSE DATABASE'!$E$175),O389,0)","v":0},0,376]
[0,0,{"$nulls":12},{"v":0,"d":"$0.00"},{"v":0,"d":"$0.00"},{"v":0,"d":"$0.00"},0,{"$f":"IF(OR(K390='EXPENSE DATABASE'!$V$187,K390='EXPENSE DATABASE'!$V$188,K390='EXPENSE DATABASE'!$V$189,K390='EXPENSE DATABASE'!$V$190,K390='EXPENSE DATABASE'!$V$191,K390='EXPENSE DATABASE'!$V$192,K390='EXPENSE DATABASE'!$V$193,K390='EXPENSE DATABASE'!$V$194,K390='EXPENSE DATABASE'!$X$187,K390='EXPENSE DATABASE'!$X$188,K390='EXPENSE DATABASE'!$X$189,K390='EXPENSE DATABASE'!$X$190,K390='EXPENSE DATABASE'!$X$191,K390='EXPENSE DATABASE'!$X$192,K390='EXPENSE DATABASE'!$X$193,K390='EXPENSE DATABASE'!$X$194,K390='EXPENSE DATABASE'!$Z$187,K390='EXPENSE DATABASE'!$Z$188,K390='EXPENSE DATABASE'!$Z$189,K390='EXPENSE DATABASE'!$Z$190,K390='EXPENSE DATABASE'!$Z$191,K390='EXPENSE DATABASE'!$Z$192,K390='EXPENSE DATABASE'!$Z$193,K390='EXPENSE DATABASE'!$Z$194),O390,\"\")","v":""},{"$f":"IF(OR(K390='EXPENSE DATABASE'!$T$189,K390='EXPENSE DATABASE'!$T$190,K390='EXPENSE DATABASE'!$T$191),O390,\"\")","v":""},{"$f":"VLOOKUP(I390,'EXPENSE DATABASE'!$B$41:$C$65,2,FALSE)","v":{"$error":"#N/A"}},100,{"$f":"VLOOKUP(J390,'EXPENSE DATABASE'!$B$69:$C$168,2,FALSE)","v":{"$error":"#N/A"}},101,{"$f":"VLOOKUP(K390,'EXPENSE DATABASE'!$B$6:$C$35,2,FALSE)","v":{"$error":"#N/A"}},31,{"$f":"VLOOKUP(L390,'EXPENSE DATABASE'!$B$173:$C$176,2,FALSE)","v":{"$error":"#N/A"}},100,0,0,{"$f":"IF(L390=T('EXPENSE DATABASE'!$E$173),O390,0)","v":0},{"$f":"IF(L390=T('EXPENSE DATABASE'!$E$174),O390,0)","v":0},{"$f":"IF(L390=T('EXPENSE DATABASE'!$E$175),O390,0)","v":0},0,377]
[0,0,{"$nulls":12},{"v":0,"d":"$0.00"},{"v":0,"d":"$0.00"},{"v":0,"d":"$0.00"},0,{"$f":"IF(OR(K391='EXPENSE DATABASE'!$V$187,K391='EXPENSE DATABASE'!$V$188,K391='EXPENSE DATABASE'!$V$189,K391='EXPENSE DATABASE'!$V$190,K391='EXPENSE DATABASE'!$V$191,K391='EXPENSE DATABASE'!$V$192,K391='EXPENSE DATABASE'!$V$193,K391='EXPENSE DATABASE'!$V$194,K391='EXPENSE DATABASE'!$X$187,K391='EXPENSE DATABASE'!$X$188,K391='EXPENSE DATABASE'!$X$189,K391='EXPENSE DATABASE'!$X$190,K391='EXPENSE DATABASE'!$X$191,K391='EXPENSE DATABASE'!$X$192,K391='EXPENSE DATABASE'!$X$193,K391='EXPENSE DATABASE'!$X$194,K391='EXPENSE DATABASE'!$Z$187,K391='EXPENSE DATABASE'!$Z$188,K391='EXPENSE DATABASE'!$Z$189,K391='EXPENSE DATABASE'!$Z$190,K391='EXPENSE DATABASE'!$Z$191,K391='EXPENSE DATABASE'!$Z$192,K391='EXPENSE DATABASE'!$Z$193,K391='EXPENSE DATABASE'!$Z$194),O391,\"\")","v":""},{"$f":"IF(OR(K391='EXPENSE DATABASE'!$T$189,K391='EXPENSE DATABASE'!$T$190,K391='EXPENSE DATABASE'!$T$191),O391,\"\")","v":""},{"$f":"VLOOKUP(I391,'EXPENSE DATABASE'!$B$41:$C$65,2,FALSE)","v":{"$error":"#N/A"}},100,{"$f":"VLOOKUP(J391,'EXPENSE DATABASE'!$B$69:$C$168,2,FALSE)","v":{"$error":"#N/A"}},101,{"$f":"VLOOKUP(K391,'EXPENSE DATABASE'!$B$6:$C$35,2,FALSE)","v":{"$error":"#N/A"}},31,{"$f":"VLOOKUP(L391,'EXPENSE DATABASE'!$B$173:$C$176,2,FALSE)","v":{"$error":"#N/A"}},100,0,0,{"$f":"IF(L391=T('EXPENSE DATABASE'!$E$173),O391,0)","v":0},{"$f":"IF(L391=T('EXPENSE DATABASE'!$E$174),O391,0)","v":0},{"$f":"IF(L391=T('EXPENSE DATABASE'!$E$175),O391,0)","v":0},0,378]
[0,0,{"$nulls":12},{"v":0,"d":"$0.00"},{"v":0,"d":"$0.00"},{"v":0,"d":"$0.00"},0,{"$f":"IF(OR(K392='EXPENSE DATABASE'!$V$187,K392='EXPENSE DATABASE'!$V$188,K392='EXPENSE DATABASE'!$V$189,K392='EXPENSE DATABASE'!$V$190,K392='EXPENSE DATABASE'!$V$191,K392='EXPENSE DATABASE'!$V$192,K392='EXPENSE DATABASE'!$V$193,K392='EXPENSE DATABASE'!$V$194,K392='EXPENSE DATABASE'!$X$187,K392='EXPENSE DATABASE'!$X$188,K392='EXPENSE DATABASE'!$X$189,K392='EXPENSE DATABASE'!$X$190,K392='EXPENSE DATABASE'!$X$191,K392='EXPENSE DATABASE'!$X$192,K392='EXPENSE DATABASE'!$X$193,K392='EXPENSE DATABASE'!$X$194,K392='EXPENSE DATABASE'!$Z$187,K392='EXPENSE DATABASE'!$Z$188,K392='EXPENSE DATABASE'!$Z$189,K392='EXPENSE DATABASE'!$Z$190,K392='EXPENSE DATABASE'!$Z$191,K392='EXPENSE DATABASE'!$Z$192,K392='EXPENSE DATABASE'!$Z$193,K392='EXPENSE DATABASE'!$Z$194),O392,\"\")","v":""},{"$f":"IF(OR(K392='EXPENSE DATABASE'!$T$189,K392='EXPENSE DATABASE'!$T$190,K392='EXPENSE DATABASE'!$T$191),O392,\"\")","v":""},{"$f":"VLOOKUP(I392,'EXPENSE DATABASE'!$B$41:$C$65,2,FALSE)","v":{"$error":"#N/A"}},100,{"$f":"VLOOKUP(J392,'EXPENSE DATABASE'!$B$69:$C$168,2,FALSE)","v":{"$error":"#N/A"}},101,{"$f":"VLOOKUP(K392,'EXPENSE DATABASE'!$B$6:$C$35,2,FALSE)","v":{"$error":"#N/A"}},31,{"$f":"VLOOKUP(L392,'EXPENSE DATABASE'!$B$173:$C$176,2,FALSE)","v":{"$error":"#N/A"}},100,0,0,{"$f":"IF(L392=T('EXPENSE DATABASE'!$E$173),O392,0)","v":0},{"$f":"IF(L392=T('EXPENSE DATABASE'!$E$174),O392,0)","v":0},{"$f":"IF(L392=T('EXPENSE DATABASE'!$E$175),O392,0)","v":0},0,379]
[0,0,{"$nulls":12},{"v":0,"d":"$0.00"},{"v":0,"d":"$0.00"},{"v":0,"d":"$0.00"},0,{"$f":"IF(OR(K393='EXPENSE DATABASE'!$V$187,K393='EXPENSE DATABASE'!$V$188,K393='EXPENSE DATABASE'!$V$189,K393='EXPENSE DATABASE'!$V$190,K393='EXPENSE DATABASE'!$V$191,K393='EXPENSE DATABASE'!$V$192,K393='EXPENSE DATABASE'!$V$193,K393='EXPENSE DATABASE'!$V$194,K393='EXPENSE DATABASE'!$X$187,K393='EXPENSE DATABASE'!$X$188,K393='EXPENSE DATABASE'!$X$189,K393='EXPENSE DATABASE'!$X$190,K393='EXPENSE DATABASE'!$X$191,K393='EXPENSE DATABASE'!$X$192,K393='EXPENSE DATABASE'!$X$193,K393='EXPENSE DATABASE'!$X$194,K393='EXPENSE DATABASE'!$Z$187,K393='EXPENSE DATABASE'!$Z$188,K393='EXPENSE DATABASE'!$Z$189,K393='EXPENSE DATABASE'!$Z$190,K393='EXPENSE DATABASE'!$Z$191,K393='EXPENSE DATABASE'!$Z$192,K393='EXPENSE DATABASE'!$Z$193,K393='EXPENSE DATABASE'!$Z$194),O393,\"\")","v":""},{"$f":"IF(OR(K393='EXPENSE DATABASE'!$T$189,K393='EXPENSE DATABASE'!$T$190,K393='EXPENSE DATABASE'!$T$191),O393,\"\")","v":""},{"$f":"VLOOKUP(I393,'EXPENSE DATABASE'!$B$41:$C$65,2,FALSE)","v":{"$error":"#N/A"}},100,{"$f":"VLOOKUP(J393,'EXPENSE DATABASE'!$B$69:$C$168,2,FALSE)","v":{"$error":"#N/A"}},101,{"$f":"VLOOKUP(K393,'EXPENSE DATABASE'!$B$6:$C$35,2,FALSE)","v":{"$error":"#N/A"}},31,{"$f":"VLOOKUP(L393,'EXPENSE DATABASE'!$B$173:$C$176,2,FALSE)","v":{"$error":"#N/A"}},100,0,0,{"$f":"IF(L393=T('EXPENSE DATABASE'!$E$173),O393,0)","v":0},{"$f":"IF(L393=T('EXPENSE DATABASE'!$E$174),O393,0)","v":0},{"$f":"IF(L393=T('EXPENSE DATABASE'!$E$175),O393,0)","v":0},0,380]
[0,0,{"$nulls":12},{"v":0,"d":"$0.00"},{"v":0,"d":"$0.00"},{"v":0,"d":"$0.00"},0,{"$f":"IF(OR(K394='EXPENSE DATABASE'!$V$187,K394='EXPENSE DATABASE'!$V$188,K394='EXPENSE DATABASE'!$V$189,K394='EXPENSE DATABASE'!$V$190,K394='EXPENSE DATABASE'!$V$191,K394='EXPENSE DATABASE'!$V$192,K394='EXPENSE DATABASE'!$V$193,K394='EXPENSE DATABASE'!$V$194,K394='EXPENSE DATABASE'!$X$187,K394='EXPENSE DATABASE'!$X$188,K394='EXPENSE DATABASE'!$X$189,K394='EXPENSE DATABASE'!$X$190,K394='EXPENSE DATABASE'!$X$191,K394='EXPENSE DATABASE'!$X$192,K394='EXPENSE DATABASE'!$X$193,K394='EXPENSE DATABASE'!$X$194,K394='EXPENSE DATABASE'!$Z$187,K394='EXPENSE DATABASE'!$Z$188,K394='EXPENSE DATABASE'!$Z$189,K394='EXPENSE DATABASE'!$Z$190,K394='EXPENSE DATABASE'!$Z$191,K394='EXPENSE DATABASE'!$Z$192,K394='EXPENSE DATABASE'!$Z$193,K394='EXPENSE DATABASE'!$Z$194),O394,\"\")","v":""},{"$f":"IF(OR(K394='EXPENSE DATABASE'!$T$189,K394='EXPENSE DATABASE'!$T$190,K394='EXPENSE DATABASE'!$T$191),O394,\"\")","v":""},{"$f":"VLOOKUP(I394,'EXPENSE DATABASE'!$B$41:$C$65,2,FALSE)","v":{"$error":"#N/A"}},100,{"$f":"VLOOKUP(J394,'EXPENSE DATABASE'!$B$69:$C$168,2,FALSE)","v":{"$error":"#N/A"}},101,{"$f":"VLOOKUP(K394,'EXPENSE DATABASE'!$B$6:$C$35,2,FALSE)","v":{"$error":"#N/A"}},31,{"$f":"VLOOKUP(L394,'EXPENSE DATABASE'!$B$173:$C$176,2,FALSE)","v":{"$error":"#N/A"}},100,0,0,{"$f":"IF(L394=T('EXPENSE DATABASE'!$E$173),O394,0)","v":0},{"$f":"IF(L394=T('EXPENSE DATABASE'!$E$174),O394,0)","v":0},{"$f":"IF(L394=T('EXPENSE DATABASE'!$E$175),O394,0)","v":0},0,381]
[0,0,{"$nulls":12},{"v":0,"d":"$0.00"},{"v":0,"d":"$0.00"},{"v":0,"d":"$0.00"},0,{"$f":"IF(OR(K395='EXPENSE DATABASE'!$V$187,K395='EXPENSE DATABASE'!$V$188,K395='EXPENSE DATABASE'!$V$189,K395='EXPENSE DATABASE'!$V$190,K395='EXPENSE DATABASE'!$V$191,K395='EXPENSE DATABASE'!$V$192,K395='EXPENSE DATABASE'!$V$193,K395='EXPENSE DATABASE'!$V$194,K395='EXPENSE DATABASE'!$X$187,K395='EXPENSE DATABASE'!$X$188,K395='EXPENSE DATABASE'!$X$189,K395='EXPENSE DATABASE'!$X$190,K395='EXPENSE DATABASE'!$X$191,K395='EXPENSE DATABASE'!$X$192,K395='EXPENSE DATABASE'!$X$193,K395='EXPENSE DATABASE'!$X$194,K395='EXPENSE DATABASE'!$Z$187,K395='EXPENSE DATABASE'!$Z$188,K395='EXPENSE DATABASE'!$Z$189,K395='EXPENSE DATABASE'!$Z$190,K395='EXPENSE DATABASE'!$Z$191,K395='EXPENSE DATABASE'!$Z$192,K395='EXPENSE DATABASE'!$Z$193,K395='EXPENSE DATABASE'!$Z$194),O395,\"\")","v":""},{"$f":"IF(OR(K395='EXPENSE DATABASE'!$T$189,K395='EXPENSE DATABASE'!$T$190,K395='EXPENSE DATABASE'!$T$191),O395,\"\")","v":""},{"$f":"VLOOKUP(I395,'EXPENSE DATABASE'!$B$41:$C$65,2,FALSE)","v":{"$error":"#N/A"}},100,{"$f":"VLOOKUP(J395,'EXPENSE DATABASE'!$B$69:$C$168,2,FALSE)","v":{"$error":"#N/A"}},101,{"$f":"VLOOKUP(K395,'EXPENSE DATABASE'!$B$6:$C$35,2,FALSE)","v":{"$error":"#N/A"}},31,{"$f":"VLOOKUP(L395,'EXPENSE DATABASE'!$B$173:$C$176,2,FALSE)","v":{"$error":"#N/A"}},100,0,0,{"$f":"IF(L395=T('EXPENSE DATABASE'!$E$173),O395,0)","v":0},{"$f":"IF(L395=T('EXPENSE DATABASE'!$E$174),O395,0)","v":0},{"$f":"IF(L395=T('EXPENSE DATABASE'!$E$175),O395,0)","v":0},0,382]
[0,0,{"$nulls":12},{"v":0,"d":"$0.00"},{"v":0,"d":"$0.00"},{"v":0,"d":"$0.00"},0,{"$f":"IF(OR(K396='EXPENSE DATABASE'!$V$187,K396='EXPENSE DATABASE'!$V$188,K396='EXPENSE DATABASE'!$V$189,K396='EXPENSE DATABASE'!$V$190,K396='EXPENSE DATABASE'!$V$191,K396='EXPENSE DATABASE'!$V$192,K396='EXPENSE DATABASE'!$V$193,K396='EXPENSE DATABASE'!$V$194,K396='EXPENSE DATABASE'!$X$187,K396='EXPENSE DATABASE'!$X$188,K396='EXPENSE DATABASE'!$X$189,K396='EXPENSE DATABASE'!$X$190,K396='EXPENSE DATABASE'!$X$191,K396='EXPENSE DATABASE'!$X$192,K396='EXPENSE DATABASE'!$X$193,K396='EXPENSE DATABASE'!$X$194,K396='EXPENSE DATABASE'!$Z$187,K396='EXPENSE DATABASE'!$Z$188,K396='EXPENSE DATABASE'!$Z$189,K396='EXPENSE DATABASE'!$Z$190,K396='EXPENSE DATABASE'!$Z$191,K396='EXPENSE DATABASE'!$Z$192,K396='EXPENSE DATABASE'!$Z$193,K396='EXPENSE DATABASE'!$Z$194),O396,\"\")","v":""},{"$f":"IF(OR(K396='EXPENSE DATABASE'!$T$189,K396='EXPENSE DATABASE'!$T$190,K396='EXPENSE DATABASE'!$T$191),O396,\"\")","v":""},{"$f":"VLOOKUP(I396,'EXPENSE DATABASE'!$B$41:$C$65,2,FALSE)","v":{"$error":"#N/A"}},100,{"$f":"VLOOKUP(J396,'EXPENSE DATABASE'!$B$69:$C$168,2,FALSE)","v":{"$error":"#N/A"}},101,{"$f":"VLOOKUP(K396,'EXPENSE DATABASE'!$B$6:$C$35,2,FALSE)","v":{"$error":"#N/A"}},31,{"$f":"VLOOKUP(L396,'EXPENSE DATABASE'!$B$173:$C$176,2,FALSE)","v":{"$error":"#N/A"}},100,0,0,{"$f":"IF(L396=T('EXPENSE DATABASE'!$E$173),O396,0)","v":0},{"$f":"IF(L396=T('EXPENSE DATABASE'!$E$174),O396,0)","v":0},{"$f":"IF(L396=T('EXPENSE DATABASE'!$E$175),O396,0)","v":0},0,383]
[0,0,{"$nulls":12},{"v":0,"d":"$0.00"},{"v":0,"d":"$0.00"},{"v":0,"d":"$0.00"},0,{"$f":"IF(OR(K397='EXPENSE DATABASE'!$V$187,K397='EXPENSE DATABASE'!$V$188,K397='EXPENSE DATABASE'!$V$189,K397='EXPENSE DATABASE'!$V$190,K397='EXPENSE DATABASE'!$V$191,K397='EXPENSE DATABASE'!$V$192,K397='EXPENSE DATABASE'!$V$193,K397='EXPENSE DATABASE'!$V$194,K397='EXPENSE DATABASE'!$X$187,K397='EXPENSE DATABASE'!$X$188,K397='EXPENSE DATABASE'!$X$189,K397='EXPENSE DATABASE'!$X$190,K397='EXPENSE DATABASE'!$X$191,K397='EXPENSE DATABASE'!$X$192,K397='EXPENSE DATABASE'!$X$193,K397='EXPENSE DATABASE'!$X$194,K397='EXPENSE DATABASE'!$Z$187,K397='EXPENSE DATABASE'!$Z$188,K397='EXPENSE DATABASE'!$Z$189,K397='EXPENSE DATABASE'!$Z$190,K397='EXPENSE DATABASE'!$Z$191,K397='EXPENSE DATABASE'!$Z$192,K397='EXPENSE DATABASE'!$Z$193,K397='EXPENSE DATABASE'!$Z$194),O397,\"\")","v":""},{"$f":"IF(OR(K397='EXPENSE DATABASE'!$T$189,K397='EXPENSE DATABASE'!$T$190,K397='EXPENSE DATABASE'!$T$191),O397,\"\")","v":""},{"$f":"VLOOKUP(I397,'EXPENSE DATABASE'!$B$41:$C$65,2,FALSE)","v":{"$error":"#N/A"}},100,{"$f":"VLOOKUP(J397,'EXPENSE DATABASE'!$B$69:$C$168,2,FALSE)","v":{"$error":"#N/A"}},101,{"$f":"VLOOKUP(K397,'EXPENSE DATABASE'!$B$6:$C$35,2,FALSE)","v":{"$error":"#N/A"}},31,{"$f":"VLOOKUP(L397,'EXPENSE DATABASE'!$B$173:$C$176,2,FALSE)","v":{"$error":"#N/A"}},100,0,0,{"$f":"IF(L397=T('EXPENSE DATABASE'!$E$173),O397,0)","v":0},{"$f":"IF(L397=T('EXPENSE DATABASE'!$E$174),O397,0)","v":0},{"$f":"IF(L397=T('EXPENSE DATABASE'!$E$175),O397,0)","v":0},0,384]
[{"$f":"IF(COUNTA(D398,E398,F398,G398,H398,I398,J398,K398,L398,M398,N398)>0,1,0)","v":0},{"$f":"IF((COUNTA(I398:L398)=4),1,-1)*A398","v":0},{"$nulls":12},{"$f":"M398*N398","v":{"v":0,"d":"$0.00"}},{"$f":"IF(OR(D398=\"No\",D398=\"\"),O398,0)","v":{"v":0,"d":"$0.00"}},{"$f":"IF(D398=\"Yes\",O398,0)","v":{"v":0,"d":"$0.00"}},{"$f":"IF(O398>0,1,0)","v":0},{"$f":"IF(OR(K398='EXPENSE DATABASE'!$V$187,K398='EXPENSE DATABASE'!$V$188,K398='EXPENSE DATABASE'!$V$189,K398='EXPENSE DATABASE'!$V$190,K398='EXPENSE DATABASE'!$V$191,K398='EXPENSE DATABASE'!$V$192,K398='EXPENSE DATABASE'!$V$193,K398='EXPENSE DATABASE'!$V$194,K398='EXPENSE DATABASE'!$X$187,K398='EXPENSE DATABASE'!$X$188,K398='EXPENSE DATABASE'!$X$189,K398='EXPENSE DATABASE'!$X$190,K398='EXPENSE DATABASE'!$X$191,K398='EXPENSE DATABASE'!$X$192,K398='EXPENSE DATABASE'!$X$193,K398='EXPENSE DATABASE'!$X$194,K398='EXPENSE DATABASE'!$Z$187,K398='EXPENSE DATABASE'!$Z$188,K398='EXPENSE DATABASE'!$Z$189,K398='EXPENSE DATABASE'!$Z$190,K398='EXPENSE DATABASE'!$Z$191,K398='EXPENSE DATABASE'!$Z$192,K398='EXPENSE DATABASE'!$Z$193,K398='EXPENSE DATABASE'!$Z$194),O398,\"\")","v":""},{"$f":"IF(OR(K398='EXPENSE DATABASE'!$T$189,K398='EXPENSE DATABASE'!$T$190,K398='EXPENSE DATABASE'!$T$191),O398,\"\")","v":""},{"$f":"VLOOKUP(I398,'EXPENSE DATABASE'!$B$41:$C$65,2,FALSE)","v":{"$error":"#N/A"}},{"$f":"IFERROR(U398,100)","v":100},{"$f":"VLOOKUP(J398,'EXPENSE DATABASE'!$B$69:$C$168,2,FALSE)","v":{"$error":"#N/A"}},{"$f":"IFERROR(W398,101)","v":101},{"$f":"VLOOKUP(K398,'EXPENSE DATABASE'!$B$6:$C$35,2,FALSE)","v":{"$error":"#N/A"}},{"$f":"IFERROR(Y398,31)","v":31},{"$f":"VLOOKUP(L398,'EXPENSE DATABASE'!$B$173:$C$176,2,FALSE)","v":{"$error":"#N/A"}},{"$f":"IFERROR(AA398,100)","v":100},{"$f":"IF(K398=0,0,1)","v":0},{"$f":"IF(J398=0,0,1)","v":0},{"$f":"IF(L398=T('EXPENSE DATABASE'!$E$173),O398,0)","v":0},{"$f":"IF(L398=T('EXPENSE DATABASE'!$E$174),O398,0)","v":0},{"$f":"IF(L398=T('EXPENSE DATABASE'!$E$175),O398,0)","v":0},{"$f":"IF(OR(N398=0,E398=0),0,MONTH(E398))","v":0},385]
[0,0,{"$nulls":12},{"v":0,"d":"$0.00"},{"v":0,"d":"$0.00"},{"v":0,"d":"$0.00"},0,{"$f":"IF(OR(K399='EXPENSE DATABASE'!$V$187,K399='EXPENSE DATABASE'!$V$188,K399='EXPENSE DATABASE'!$V$189,K399='EXPENSE DATABASE'!$V$190,K399='EXPENSE DATABASE'!$V$191,K399='EXPENSE DATABASE'!$V$192,K399='EXPENSE DATABASE'!$V$193,K399='EXPENSE DATABASE'!$V$194,K399='EXPENSE DATABASE'!$X$187,K399='EXPENSE DATABASE'!$X$188,K399='EXPENSE DATABASE'!$X$189,K399='EXPENSE DATABASE'!$X$190,K399='EXPENSE DATABASE'!$X$191,K399='EXPENSE DATABASE'!$X$192,K399='EXPENSE DATABASE'!$X$193,K399='EXPENSE DATABASE'!$X$194,K399='EXPENSE DATABASE'!$Z$187,K399='EXPENSE DATABASE'!$Z$188,K399='EXPENSE DATABASE'!$Z$189,K399='EXPENSE DATABASE'!$Z$190,K399='EXPENSE DATABASE'!$Z$191,K399='EXPENSE DATABASE'!$Z$192,K399='EXPENSE DATABASE'!$Z$193,K399='EXPENSE DATABASE'!$Z$194),O399,\"\")","v":""},{"$f":"IF(OR(K399='EXPENSE DATABASE'!$T$189,K399='EXPENSE DATABASE'!$T$190,K399='EXPENSE DATABASE'!$T$191),O399,\"\")","v":""},{"$f":"VLOOKUP(I399,'EXPENSE DATABASE'!$B$41:$C$65,2,FALSE)","v":{"$error":"#N/A"}},100,{"$f":"VLOOKUP(J399,'EXPENSE DATABASE'!$B$69:$C$168,2,FALSE)","v":{"$error":"#N/A"}},101,{"$f":"VLOOKUP(K399,'EXPENSE DATABASE'!$B$6:$C$35,2,FALSE)","v":{"$error":"#N/A"}},31,{"$f":"VLOOKUP(L399,'EXPENSE DATABASE'!$B$173:$C$176,2,FALSE)","v":{"$error":"#N/A"}},100,0,0,{"$f":"IF(L399=T('EXPENSE DATABASE'!$E$173),O399,0)","v":0},{"$f":"IF(L399=T('EXPENSE DATABASE'!$E$174),O399,0)","v":0},{"$f":"IF(L399=T('EXPENSE DATABASE'!$E$175),O399,0)","v":0},0,386]
[0,0,{"$nulls":12},{"v":0,"d":"$0.00"},{"v":0,"d":"$0.00"},{"v":0,"d":"$0.00"},0,{"$f":"IF(OR(K400='EXPENSE DATABASE'!$V$187,K400='EXPENSE DATABASE'!$V$188,K400='EXPENSE DATABASE'!$V$189,K400='EXPENSE DATABASE'!$V$190,K400='EXPENSE DATABASE'!$V$191,K400='EXPENSE DATABASE'!$V$192,K400='EXPENSE DATABASE'!$V$193,K400='EXPENSE DATABASE'!$V$194,K400='EXPENSE DATABASE'!$X$187,K400='EXPENSE DATABASE'!$X$188,K400='EXPENSE DATABASE'!$X$189,K400='EXPENSE DATABASE'!$X$190,K400='EXPENSE DATABASE'!$X$191,K400='EXPENSE DATABASE'!$X$192,K400='EXPENSE DATABASE'!$X$193,K400='EXPENSE DATABASE'!$X$194,K400='EXPENSE DATABASE'!$Z$187,K400='EXPENSE DATABASE'!$Z$188,K400='EXPENSE DATABASE'!$Z$189,K400='EXPENSE DATABASE'!$Z$190,K400='EXPENSE DATABASE'!$Z$191,K400='EXPENSE DATABASE'!$Z$192,K400='EXPENSE DATABASE'!$Z$193,K400='EXPENSE DATABASE'!$Z$194),O400,\"\")","v":""},{"$f":"IF(OR(K400='EXPENSE DATABASE'!$T$189,K400='EXPENSE DATABASE'!$T$190,K400='EXPENSE DATABASE'!$T$191),O400,\"\")","v":""},{"$f":"VLOOKUP(I400,'EXPENSE DATABASE'!$B$41:$C$65,2,FALSE)","v":{"$error":"#N/A"}},100,{"$f":"VLOOKUP(J400,'EXPENSE DATABASE'!$B$69:$C$168,2,FALSE)","v":{"$error":"#N/A"}},101,{"$f":"VLOOKUP(K400,'EXPENSE DATABASE'!$B$6:$C$35,2,FALSE)","v":{"$error":"#N/A"}},31,{"$f":"VLOOKUP(L400,'EXPENSE DATABASE'!$B$173:$C$176,2,FALSE)","v":{"$error":"#N/A"}},100,0,0,{"$f":"IF(L400=T('EXPENSE DATABASE'!$E$173),O400,0)","v":0},{"$f":"IF(L400=T('EXPENSE DATABASE'!$E$174),O400,0)","v":0},{"$f":"IF(L400=T('EXPENSE DATABASE'!$E$175),O400,0)","v":0},0,387]
[0,0,{"$nulls":12},{"v":0,"d":"$0.00"},{"v":0,"d":"$0.00"},{"v":0,"d":"$0.00"},0,{"$f":"IF(OR(K401='EXPENSE DATABASE'!$V$187,K401='EXPENSE DATABASE'!$V$188,K401='EXPENSE DATABASE'!$V$189,K401='EXPENSE DATABASE'!$V$190,K401='EXPENSE DATABASE'!$V$191,K401='EXPENSE DATABASE'!$V$192,K401='EXPENSE DATABASE'!$V$193,K401='EXPENSE DATABASE'!$V$194,K401='EXPENSE DATABASE'!$X$187,K401='EXPENSE DATABASE'!$X$188,K401='EXPENSE DATABASE'!$X$189,K401='EXPENSE DATABASE'!$X$190,K401='EXPENSE DATABASE'!$X$191,K401='EXPENSE DATABASE'!$X$192,K401='EXPENSE DATABASE'!$X$193,K401='EXPENSE DATABASE'!$X$194,K401='EXPENSE DATABASE'!$Z$187,K401='EXPENSE DATABASE'!$Z$188,K401='EXPENSE DATABASE'!$Z$189,K401='EXPENSE DATABASE'!$Z$190,K401='EXPENSE DATABASE'!$Z$191,K401='EXPENSE DATABASE'!$Z$192,K401='EXPENSE DATABASE'!$Z$193,K401='EXPENSE DATABASE'!$Z$194),O401,\"\")","v":""},{"$f":"IF(OR(K401='EXPENSE DATABASE'!$T$189,K401='EXPENSE DATABASE'!$T$190,K401='EXPENSE DATABASE'!$T$191),O401,\"\")","v":""},{"$f":"VLOOKUP(I401,'EXPENSE DATABASE'!$B$41:$C$65,2,FALSE)","v":{"$error":"#N/A"}},100,{"$f":"VLOOKUP(J401,'EXPENSE DATABASE'!$B$69:$C$168,2,FALSE)","v":{"$error":"#N/A"}},101,{"$f":"VLOOKUP(K401,'EXPENSE DATABASE'!$B$6:$C$35,2,FALSE)","v":{"$error":"#N/A"}},31,{"$f":"VLOOKUP(L401,'EXPENSE DATABASE'!$B$173:$C$176,2,FALSE)","v":{"$error":"#N/A"}},100,0,0,{"$f":"IF(L401=T('EXPENSE DATABASE'!$E$173),O401,0)","v":0},{"$f":"IF(L401=T('EXPENSE DATABASE'!$E$174),O401,0)","v":0},{"$f":"IF(L401=T('EXPENSE DATABASE'!$E$175),O401,0)","v":0},0,388]
[0,0,{"$nulls":12},{"v":0,"d":"$0.00"},{"v":0,"d":"$0.00"},{"v":0,"d":"$0.00"},0,{"$f":"IF(OR(K402='EXPENSE DATABASE'!$V$187,K402='EXPENSE DATABASE'!$V$188,K402='EXPENSE DATABASE'!$V$189,K402='EXPENSE DATABASE'!$V$190,K402='EXPENSE DATABASE'!$V$191,K402='EXPENSE DATABASE'!$V$192,K402='EXPENSE DATABASE'!$V$193,K402='EXPENSE DATABASE'!$V$194,K402='EXPENSE DATABASE'!$X$187,K402='EXPENSE DATABASE'!$X$188,K402='EXPENSE DATABASE'!$X$189,K402='EXPENSE DATABASE'!$X$190,K402='EXPENSE DATABASE'!$X$191,K402='EXPENSE DATABASE'!$X$192,K402='EXPENSE DATABASE'!$X$193,K402='EXPENSE DATABASE'!$X$194,K402='EXPENSE DATABASE'!$Z$187,K402='EXPENSE DATABASE'!$Z$188,K402='EXPENSE DATABASE'!$Z$189,K402='EXPENSE DATABASE'!$Z$190,K402='EXPENSE DATABASE'!$Z$191,K402='EXPENSE DATABASE'!$Z$192,K402='EXPENSE DATABASE'!$Z$193,K402='EXPENSE DATABASE'!$Z$194),O402,\"\")","v":""},{"$f":"IF(OR(K402='EXPENSE DATABASE'!$T$189,K402='EXPENSE DATABASE'!$T$190,K402='EXPENSE DATABASE'!$T$191),O402,\"\")","v":""},{"$f":"VLOOKUP(I402,'EXPENSE DATABASE'!$B$41:$C$65,2,FALSE)","v":{"$error":"#N/A"}},100,{"$f":"VLOOKUP(J402,'EXPENSE DATABASE'!$B$69:$C$168,2,FALSE)","v":{"$error":"#N/A"}},101,{"$f":"VLOOKUP(K402,'EXPENSE DATABASE'!$B$6:$C$35,2,FALSE)","v":{"$error":"#N/A"}},31,{"$f":"VLOOKUP(L402,'EXPENSE DATABASE'!$B$173:$C$176,2,FALSE)","v":{"$error":"#N/A"}},100,0,0,{"$f":"IF(L402=T('EXPENSE DATABASE'!$E$173),O402,0)","v":0},{"$f":"IF(L402=T('EXPENSE DATABASE'!$E$174),O402,0)","v":0},{"$f":"IF(L402=T('EXPENSE DATABASE'!$E$175),O402,0)","v":0},0,389]
[0,0,{"$nulls":12},{"v":0,"d":"$0.00"},{"v":0,"d":"$0.00"},{"v":0,"d":"$0.00"},0,{"$f":"IF(OR(K403='EXPENSE DATABASE'!$V$187,K403='EXPENSE DATABASE'!$V$188,K403='EXPENSE DATABASE'!$V$189,K403='EXPENSE DATABASE'!$V$190,K403='EXPENSE DATABASE'!$V$191,K403='EXPENSE DATABASE'!$V$192,K403='EXPENSE DATABASE'!$V$193,K403='EXPENSE DATABASE'!$V$194,K403='EXPENSE DATABASE'!$X$187,K403='EXPENSE DATABASE'!$X$188,K403='EXPENSE DATABASE'!$X$189,K403='EXPENSE DATABASE'!$X$190,K403='EXPENSE DATABASE'!$X$191,K403='EXPENSE DATABASE'!$X$192,K403='EXPENSE DATABASE'!$X$193,K403='EXPENSE DATABASE'!$X$194,K403='EXPENSE DATABASE'!$Z$187,K403='EXPENSE DATABASE'!$Z$188,K403='EXPENSE DATABASE'!$Z$189,K403='EXPENSE DATABASE'!$Z$190,K403='EXPENSE DATABASE'!$Z$191,K403='EXPENSE DATABASE'!$Z$192,K403='EXPENSE DATABASE'!$Z$193,K403='EXPENSE DATABASE'!$Z$194),O403,\"\")","v":""},{"$f":"IF(OR(K403='EXPENSE DATABASE'!$T$189,K403='EXPENSE DATABASE'!$T$190,K403='EXPENSE DATABASE'!$T$191),O403,\"\")","v":""},{"$f":"VLOOKUP(I403,'EXPENSE DATABASE'!$B$41:$C$65,2,FALSE)","v":{"$error":"#N/A"}},100,{"$f":"VLOOKUP(J403,'EXPENSE DATABASE'!$B$69:$C$168,2,FALSE)","v":{"$error":"#N/A"}},101,{"$f":"VLOOKUP(K403,'EXPENSE DATABASE'!$B$6:$C$35,2,FALSE)","v":{"$error":"#N/A"}},31,{"$f":"VLOOKUP(L403,'EXPENSE DATABASE'!$B$173:$C$176,2,FALSE)","v":{"$error":"#N/A"}},100,0,0,{"$f":"IF(L403=T('EXPENSE DATABASE'!$E$173),O403,0)","v":0},{"$f":"IF(L403=T('EXPENSE DATABASE'!$E$174),O403,0)","v":0},{"$f":"IF(L403=T('EXPENSE DATABASE'!$E$175),O403,0)","v":0},0,390]
[0,0,{"$nulls":12},{"v":0,"d":"$0.00"},{"v":0,"d":"$0.00"},{"v":0,"d":"$0.00"},0,{"$f":"IF(OR(K404='EXPENSE DATABASE'!$V$187,K404='EXPENSE DATABASE'!$V$188,K404='EXPENSE DATABASE'!$V$189,K404='EXPENSE DATABASE'!$V$190,K404='EXPENSE DATABASE'!$V$191,K404='EXPENSE DATABASE'!$V$192,K404='EXPENSE DATABASE'!$V$193,K404='EXPENSE DATABASE'!$V$194,K404='EXPENSE DATABASE'!$X$187,K404='EXPENSE DATABASE'!$X$188,K404='EXPENSE DATABASE'!$X$189,K404='EXPENSE DATABASE'!$X$190,K404='EXPENSE DATABASE'!$X$191,K404='EXPENSE DATABASE'!$X$192,K404='EXPENSE DATABASE'!$X$193,K404='EXPENSE DATABASE'!$X$194,K404='EXPENSE DATABASE'!$Z$187,K404='EXPENSE DATABASE'!$Z$188,K404='EXPENSE DATABASE'!$Z$189,K404='EXPENSE DATABASE'!$Z$190,K404='EXPENSE DATABASE'!$Z$191,K404='EXPENSE DATABASE'!$Z$192,K404='EXPENSE DATABASE'!$Z$193,K404='EXPENSE DATABASE'!$Z$194),O404,\"\")","v":""},{"$f":"IF(OR(K404='EXPENSE DATABASE'!$T$189,K404='EXPENSE DATABASE'!$T$190,K404='EXPENSE DATABASE'!$T$191),O404,\"\")","v":""},{"$f":"VLOOKUP(I404,'EXPENSE DATABASE'!$B$41:$C$65,2,FALSE)","v":{"$error":"#N/A"}},100,{"$f":"VLOOKUP(J404,'EXPENSE DATABASE'!$B$69:$C$168,2,FALSE)","v":{"$error":"#N/A"}},101,{"$f":"VLOOKUP(K404,'EXPENSE DATABASE'!$B$6:$C$35,2,FALSE)","v":{"$error":"#N/A"}},31,{"$f":"VLOOKUP(L404,'EXPENSE DATABASE'!$B$173:$C$176,2,FALSE)","v":{"$error":"#N/A"}},100,0,0,{"$f":"IF(L404=T('EXPENSE DATABASE'!$E$173),O404,0)","v":0},{"$f":"IF(L404=T('EXPENSE DATABASE'!$E$174),O404,0)","v":0},{"$f":"IF(L404=T('EXPENSE DATABASE'!$E$175),O404,0)","v":0},0,391]
[0,0,{"$nulls":12},{"v":0,"d":"$0.00"},{"v":0,"d":"$0.00"},{"v":0,"d":"$0.00"},0,{"$f":"IF(OR(K405='EXPENSE DATABASE'!$V$187,K405='EXPENSE DATABASE'!$V$188,K405='EXPENSE DATABASE'!$V$189,K405='EXPENSE DATABASE'!$V$190,K405='EXPENSE DATABASE'!$V$191,K405='EXPENSE DATABASE'!$V$192,K405='EXPENSE DATABASE'!$V$193,K405='EXPENSE DATABASE'!$V$194,K405='EXPENSE DATABASE'!$X$187,K405='EXPENSE DATABASE'!$X$188,K405='EXPENSE DATABASE'!$X$189,K405='EXPENSE DATABASE'!$X$190,K405='EXPENSE DATABASE'!$X$191,K405='EXPENSE DATABASE'!$X$192,K405='EXPENSE DATABASE'!$X$193,K405='EXPENSE DATABASE'!$X$194,K405='EXPENSE DATABASE'!$Z$187,K405='EXPENSE DATABASE'!$Z$188,K405='EXPENSE DATABASE'!$Z$189,K405='EXPENSE DATABASE'!$Z$190,K405='EXPENSE DATABASE'!$Z$191,K405='EXPENSE DATABASE'!$Z$192,K405='EXPENSE DATABASE'!$Z$193,K405='EXPENSE DATABASE'!$Z$194),O405,\"\")","v":""},{"$f":"IF(OR(K405='EXPENSE DATABASE'!$T$189,K405='EXPENSE DATABASE'!$T$190,K405='EXPENSE DATABASE'!$T$191),O405,\"\")","v":""},{"$f":"VLOOKUP(I405,'EXPENSE DATABASE'!$B$41:$C$65,2,FALSE)","v":{"$error":"#N/A"}},100,{"$f":"VLOOKUP(J405,'EXPENSE DATABASE'!$B$69:$C$168,2,FALSE)","v":{"$error":"#N/A"}},101,{"$f":"VLOOKUP(K405,'EXPENSE DATABASE'!$B$6:$C$35,2,FALSE)","v":{"$error":"#N/A"}},31,{"$f":"VLOOKUP(L405,'EXPENSE DATABASE'!$B$173:$C$176,2,FALSE)","v":{"$error":"#N/A"}},100,0,0,{"$f":"IF(L405=T('EXPENSE DATABASE'!$E$173),O405,0)","v":0},{"$f":"IF(L405=T('EXPENSE DATABASE'!$E$174),O405,0)","v":0},{"$f":"IF(L405=T('EXPENSE DATABASE'!$E$175),O405,0)","v":0},0,392]
[0,0,{"$nulls":12},{"v":0,"d":"$0.00"},{"v":0,"d":"$0.00"},{"v":0,"d":"$0.00"},0,{"$f":"IF(OR(K406='EXPENSE DATABASE'!$V$187,K406='EXPENSE DATABASE'!$V$188,K406='EXPENSE DATABASE'!$V$189,K406='EXPENSE DATABASE'!$V$190,K406='EXPENSE DATABASE'!$V$191,K406='EXPENSE DATABASE'!$V$192,K406='EXPENSE DATABASE'!$V$193,K406='EXPENSE DATABASE'!$V$194,K406='EXPENSE DATABASE'!$X$187,K406='EXPENSE DATABASE'!$X$188,K406='EXPENSE DATABASE'!$X$189,K406='EXPENSE DATABASE'!$X$190,K406='EXPENSE DATABASE'!$X$191,K406='EXPENSE DATABASE'!$X$192,K406='EXPENSE DATABASE'!$X$193,K406='EXPENSE DATABASE'!$X$194,K406='EXPENSE DATABASE'!$Z$187,K406='EXPENSE DATABASE'!$Z$188,K406='EXPENSE DATABASE'!$Z$189,K406='EXPENSE DATABASE'!$Z$190,K406='EXPENSE DATABASE'!$Z$191,K406='EXPENSE DATABASE'!$Z$192,K406='EXPENSE DATABASE'!$Z$193,K406='EXPENSE DATABASE'!$Z$194),O406,\"\")","v":""},{"$f":"IF(OR(K406='EXPENSE DATABASE'!$T$189,K406='EXPENSE DATABASE'!$T$190,K406='EXPENSE DATABASE'!$T$191),O406,\"\")","v":""},{"$f":"VLOOKUP(I406,'EXPENSE DATABASE'!$B$41:$C$65,2,FALSE)","v":{"$error":"#N/A"}},100,{"$f":"VLOOKUP(J406,'EXPENSE DATABASE'!$B$69:$C$168,2,FALSE)","v":{"$error":"#N/A"}},101,{"$f":"VLOOKUP(K406,'EXPENSE DATABASE'!$B$6:$C$35,2,FALSE)","v":{"$error":"#N/A"}},31,{"$f":"VLOOKUP(L406,'EXPENSE DATABASE'!$B$173:$C$176,2,FALSE)","v":{"$error":"#N/A"}},100,0,0,{"$f":"IF(L406=T('EXPENSE DATABASE'!$E$173),O406,0)","v":0},{"$f":"IF(L406=T('EXPENSE DATABASE'!$E$174),O406,0)","v":0},{"$f":"IF(L406=T('EXPENSE DATABASE'!$E$175),O406,0)","v":0},0,393]
[0,0,{"$nulls":12},{"v":0,"d":"$0.00"},{"v":0,"d":"$0.00"},{"v":0,"d":"$0.00"},0,{"$f":"IF(OR(K407='EXPENSE DATABASE'!$V$187,K407='EXPENSE DATABASE'!$V$188,K407='EXPENSE DATABASE'!$V$189,K407='EXPENSE DATABASE'!$V$190,K407='EXPENSE DATABASE'!$V$191,K407='EXPENSE DATABASE'!$V$192,K407='EXPENSE DATABASE'!$V$193,K407='EXPENSE DATABASE'!$V$194,K407='EXPENSE DATABASE'!$X$187,K407='EXPENSE DATABASE'!$X$188,K407='EXPENSE DATABASE'!$X$189,K407='EXPENSE DATABASE'!$X$190,K407='EXPENSE DATABASE'!$X$191,K407='EXPENSE DATABASE'!$X$192,K407='EXPENSE DATABASE'!$X$193,K407='EXPENSE DATABASE'!$X$194,K407='EXPENSE DATABASE'!$Z$187,K407='EXPENSE DATABASE'!$Z$188,K407='EXPENSE DATABASE'!$Z$189,K407='EXPENSE DATABASE'!$Z$190,K407='EXPENSE DATABASE'!$Z$191,K407='EXPENSE DATABASE'!$Z$192,K407='EXPENSE DATABASE'!$Z$193,K407='EXPENSE DATABASE'!$Z$194),O407,\"\")","v":""},{"$f":"IF(OR(K407='EXPENSE DATABASE'!$T$189,K407='EXPENSE DATABASE'!$T$190,K407='EXPENSE DATABASE'!$T$191),O407,\"\")","v":""},{"$f":"VLOOKUP(I407,'EXPENSE DATABASE'!$B$41:$C$65,2,FALSE)","v":{"$error":"#N/A"}},100,{"$f":"VLOOKUP(J407,'EXPENSE DATABASE'!$B$69:$C$168,2,FALSE)","v":{"$error":"#N/A"}},101,{"$f":"VLOOKUP(K407,'EXPENSE DATABASE'!$B$6:$C$35,2,FALSE)","v":{"$error":"#N/A"}},31,{"$f":"VLOOKUP(L407,'EXPENSE DATABASE'!$B$173:$C$176,2,FALSE)","v":{"$error":"#N/A"}},100,0,0,{"$f":"IF(L407=T('EXPENSE DATABASE'!$E$173),O407,0)","v":0},{"$f":"IF(L407=T('EXPENSE DATABASE'!$E$174),O407,0)","v":0},{"$f":"IF(L407=T('EXPENSE DATABASE'!$E$175),O407,0)","v":0},0,394]
[0,0,{"$nulls":12},{"v":0,"d":"$0.00"},{"v":0,"d":"$0.00"},{"v":0,"d":"$0.00"},0,{"$f":"IF(OR(K408='EXPENSE DATABASE'!$V$187,K408='EXPENSE DATABASE'!$V$188,K408='EXPENSE DATABASE'!$V$189,K408='EXPENSE DATABASE'!$V$190,K408='EXPENSE DATABASE'!$V$191,K408='EXPENSE DATABASE'!$V$192,K408='EXPENSE DATABASE'!$V$193,K408='EXPENSE DATABASE'!$V$194,K408='EXPENSE DATABASE'!$X$187,K408='EXPENSE DATABASE'!$X$188,K408='EXPENSE DATABASE'!$X$189,K408='EXPENSE DATABASE'!$X$190,K408='EXPENSE DATABASE'!$X$191,K408='EXPENSE DATABASE'!$X$192,K408='EXPENSE DATABASE'!$X$193,K408='EXPENSE DATABASE'!$X$194,K408='EXPENSE DATABASE'!$Z$187,K408='EXPENSE DATABASE'!$Z$188,K408='EXPENSE DATABASE'!$Z$189,K408='EXPENSE DATABASE'!$Z$190,K408='EXPENSE DATABASE'!$Z$191,K408='EXPENSE DATABASE'!$Z$192,K408='EXPENSE DATABASE'!$Z$193,K408='EXPENSE DATABASE'!$Z$194),O408,\"\")","v":""},{"$f":"IF(OR(K408='EXPENSE DATABASE'!$T$189,K408='EXPENSE DATABASE'!$T$190,K408='EXPENSE DATABASE'!$T$191),O408,\"\")","v":""},{"$f":"VLOOKUP(I408,'EXPENSE DATABASE'!$B$41:$C$65,2,FALSE)","v":{"$error":"#N/A"}},100,{"$f":"VLOOKUP(J408,'EXPENSE DATABASE'!$B$69:$C$168,2,FALSE)","v":{"$error":"#N/A"}},101,{"$f":"VLOOKUP(K408,'EXPENSE DATABASE'!$B$6:$C$35,2,FALSE)","v":{"$error":"#N/A"}},31,{"$f":"VLOOKUP(L408,'EXPENSE DATABASE'!$B$173:$C$176,2,FALSE)","v":{"$error":"#N/A"}},100,0,0,{"$f":"IF(L408=T('EXPENSE DATABASE'!$E$173),O408,0)","v":0},{"$f":"IF(L408=T('EXPENSE DATABASE'!$E$174),O408,0)","v":0},{"$f":"IF(L408=T('EXPENSE DATABASE'!$E$175),O408,0)","v":0},0,395]
[0,0,{"$nulls":12},{"v":0,"d":"$0.00"},{"v":0,"d":"$0.00"},{"v":0,"d":"$0.00"},0,{"$f":"IF(OR(K409='EXPENSE DATABASE'!$V$187,K409='EXPENSE DATABASE'!$V$188,K409='EXPENSE DATABASE'!$V$189,K409='EXPENSE DATABASE'!$V$190,K409='EXPENSE DATABASE'!$V$191,K409='EXPENSE DATABASE'!$V$192,K409='EXPENSE DATABASE'!$V$193,K409='EXPENSE DATABASE'!$V$194,K409='EXPENSE DATABASE'!$X$187,K409='EXPENSE DATABASE'!$X$188,K409='EXPENSE DATABASE'!$X$189,K409='EXPENSE DATABASE'!$X$190,K409='EXPENSE DATABASE'!$X$191,K409='EXPENSE DATABASE'!$X$192,K409='EXPENSE DATABASE'!$X$193,K409='EXPENSE DATABASE'!$X$194,K409='EXPENSE DATABASE'!$Z$187,K409='EXPENSE DATABASE'!$Z$188,K409='EXPENSE DATABASE'!$Z$189,K409='EXPENSE DATABASE'!$Z$190,K409='EXPENSE DATABASE'!$Z$191,K409='EXPENSE DATABASE'!$Z$192,K409='EXPENSE DATABASE'!$Z$193,K409='EXPENSE DATABASE'!$Z$194),O409,\"\")","v":""},{"$f":"IF(OR(K409='EXPENSE DATABASE'!$T$189,K409='EXPENSE DATABASE'!$T$190,K409='EXPENSE DATABASE'!$T$191),O409,\"\")","v":""},{"$f":"VLOOKUP(I409,'EXPENSE DATABASE'!$B$41:$C$65,2,FALSE)","v":{"$error":"#N/A"}},100,{"$f":"VLOOKUP(J409,'EXPENSE DATABASE'!$B$69:$C$168,2,FALSE)","v":{"$error":"#N/A"}},101,{"$f":"VLOOKUP(K409,'EXPENSE DATABASE'!$B$6:$C$35,2,FALSE)","v":{"$error":"#N/A"}},31,{"$f":"VLOOKUP(L409,'EXPENSE DATABASE'!$B$173:$C$176,2,FALSE)","v":{"$error":"#N/A"}},100,0,0,{"$f":"IF(L409=T('EXPENSE DATABASE'!$E$173),O409,0)","v":0},{"$f":"IF(L409=T('EXPENSE DATABASE'!$E$174),O409,0)","v":0},{"$f":"IF(L409=T('EXPENSE DATABASE'!$E$175),O409,0)","v":0},0,396]
[0,0,{"$nulls":12},{"v":0,"d":"$0.00"},{"v":0,"d":"$0.00"},{"v":0,"d":"$0.00"},0,{"$f":"IF(OR(K410='EXPENSE DATABASE'!$V$187,K410='EXPENSE DATABASE'!$V$188,K410='EXPENSE DATABASE'!$V$189,K410='EXPENSE DATABASE'!$V$190,K410='EXPENSE DATABASE'!$V$191,K410='EXPENSE DATABASE'!$V$192,K410='EXPENSE DATABASE'!$V$193,K410='EXPENSE DATABASE'!$V$194,K410='EXPENSE DATABASE'!$X$187,K410='EXPENSE DATABASE'!$X$188,K410='EXPENSE DATABASE'!$X$189,K410='EXPENSE DATABASE'!$X$190,K410='EXPENSE DATABASE'!$X$191,K410='EXPENSE DATABASE'!$X$192,K410='EXPENSE DATABASE'!$X$193,K410='EXPENSE DATABASE'!$X$194,K410='EXPENSE DATABASE'!$Z$187,K410='EXPENSE DATABASE'!$Z$188,K410='EXPENSE DATABASE'!$Z$189,K410='EXPENSE DATABASE'!$Z$190,K410='EXPENSE DATABASE'!$Z$191,K410='EXPENSE DATABASE'!$Z$192,K410='EXPENSE DATABASE'!$Z$193,K410='EXPENSE DATABASE'!$Z$194),O410,\"\")","v":""},{"$f":"IF(OR(K410='EXPENSE DATABASE'!$T$189,K410='EXPENSE DATABASE'!$T$190,K410='EXPENSE DATABASE'!$T$191),O410,\"\")","v":""},{"$f":"VLOOKUP(I410,'EXPENSE DATABASE'!$B$41:$C$65,2,FALSE)","v":{"$error":"#N/A"}},100,{"$f":"VLOOKUP(J410,'EXPENSE DATABASE'!$B$69:$C$168,2,FALSE)","v":{"$error":"#N/A"}},101,{"$f":"VLOOKUP(K410,'EXPENSE DATABASE'!$B$6:$C$35,2,FALSE)","v":{"$error":"#N/A"}},31,{"$f":"VLOOKUP(L410,'EXPENSE DATABASE'!$B$173:$C$176,2,FALSE)","v":{"$error":"#N/A"}},100,0,0,{"$f":"IF(L410=T('EXPENSE DATABASE'!$E$173),O410,0)","v":0},{"$f":"IF(L410=T('EXPENSE DATABASE'!$E$174),O410,0)","v":0},{"$f":"IF(L410=T('EXPENSE DATABASE'!$E$175),O410,0)","v":0},0,397]
[0,0,{"$nulls":12},{"v":0,"d":"$0.00"},{"v":0,"d":"$0.00"},{"v":0,"d":"$0.00"},0,{"$f":"IF(OR(K411='EXPENSE DATABASE'!$V$187,K411='EXPENSE DATABASE'!$V$188,K411='EXPENSE DATABASE'!$V$189,K411='EXPENSE DATABASE'!$V$190,K411='EXPENSE DATABASE'!$V$191,K411='EXPENSE DATABASE'!$V$192,K411='EXPENSE DATABASE'!$V$193,K411='EXPENSE DATABASE'!$V$194,K411='EXPENSE DATABASE'!$X$187,K411='EXPENSE DATABASE'!$X$188,K411='EXPENSE DATABASE'!$X$189,K411='EXPENSE DATABASE'!$X$190,K411='EXPENSE DATABASE'!$X$191,K411='EXPENSE DATABASE'!$X$192,K411='EXPENSE DATABASE'!$X$193,K411='EXPENSE DATABASE'!$X$194,K411='EXPENSE DATABASE'!$Z$187,K411='EXPENSE DATABASE'!$Z$188,K411='EXPENSE DATABASE'!$Z$189,K411='EXPENSE DATABASE'!$Z$190,K411='EXPENSE DATABASE'!$Z$191,K411='EXPENSE DATABASE'!$Z$192,K411='EXPENSE DATABASE'!$Z$193,K411='EXPENSE DATABASE'!$Z$194),O411,\"\")","v":""},{"$f":"IF(OR(K411='EXPENSE DATABASE'!$T$189,K411='EXPENSE DATABASE'!$T$190,K411='EXPENSE DATABASE'!$T$191),O411,\"\")","v":""},{"$f":"VLOOKUP(I411,'EXPENSE DATABASE'!$B$41:$C$65,2,FALSE)","v":{"$error":"#N/A"}},100,{"$f":"VLOOKUP(J411,'EXPENSE DATABASE'!$B$69:$C$168,2,FALSE)","v":{"$error":"#N/A"}},101,{"$f":"VLOOKUP(K411,'EXPENSE DATABASE'!$B$6:$C$35,2,FALSE)","v":{"$error":"#N/A"}},31,{"$f":"VLOOKUP(L411,'EXPENSE DATABASE'!$B$173:$C$176,2,FALSE)","v":{"$error":"#N/A"}},100,0,0,{"$f":"IF(L411=T('EXPENSE DATABASE'!$E$173),O411,0)","v":0},{"$f":"IF(L411=T('EXPENSE DATABASE'!$E$174),O411,0)","v":0},{"$f":"IF(L411=T('EXPENSE DATABASE'!$E$175),O411,0)","v":0},0,398]
[0,0,{"$nulls":12},{"v":0,"d":"$0.00"},{"v":0,"d":"$0.00"},{"v":0,"d":"$0.00"},0,{"$f":"IF(OR(K412='EXPENSE DATABASE'!$V$187,K412='EXPENSE DATABASE'!$V$188,K412='EXPENSE DATABASE'!$V$189,K412='EXPENSE DATABASE'!$V$190,K412='EXPENSE DATABASE'!$V$191,K412='EXPENSE DATABASE'!$V$192,K412='EXPENSE DATABASE'!$V$193,K412='EXPENSE DATABASE'!$V$194,K412='EXPENSE DATABASE'!$X$187,K412='EXPENSE DATABASE'!$X$188,K412='EXPENSE DATABASE'!$X$189,K412='EXPENSE DATABASE'!$X$190,K412='EXPENSE DATABASE'!$X$191,K412='EXPENSE DATABASE'!$X$192,K412='EXPENSE DATABASE'!$X$193,K412='EXPENSE DATABASE'!$X$194,K412='EXPENSE DATABASE'!$Z$187,K412='EXPENSE DATABASE'!$Z$188,K412='EXPENSE DATABASE'!$Z$189,K412='EXPENSE DATABASE'!$Z$190,K412='EXPENSE DATABASE'!$Z$191,K412='EXPENSE DATABASE'!$Z$192,K412='EXPENSE DATABASE'!$Z$193,K412='EXPENSE DATABASE'!$Z$194),O412,\"\")","v":""},{"$f":"IF(OR(K412='EXPENSE DATABASE'!$T$189,K412='EXPENSE DATABASE'!$T$190,K412='EXPENSE DATABASE'!$T$191),O412,\"\")","v":""},{"$f":"VLOOKUP(I412,'EXPENSE DATABASE'!$B$41:$C$65,2,FALSE)","v":{"$error":"#N/A"}},100,{"$f":"VLOOKUP(J412,'EXPENSE DATABASE'!$B$69:$C$168,2,FALSE)","v":{"$error":"#N/A"}},101,{"$f":"VLOOKUP(K412,'EXPENSE DATABASE'!$B$6:$C$35,2,FALSE)","v":{"$error":"#N/A"}},31,{"$f":"VLOOKUP(L412,'EXPENSE DATABASE'!$B$173:$C$176,2,FALSE)","v":{"$error":"#N/A"}},100,0,0,{"$f":"IF(L412=T('EXPENSE DATABASE'!$E$173),O412,0)","v":0},{"$f":"IF(L412=T('EXPENSE DATABASE'!$E$174),O412,0)","v":0},{"$f":"IF(L412=T('EXPENSE DATABASE'!$E$175),O412,0)","v":0},0,399]
[0,0,{"$nulls":12},{"v":0,"d":"$0.00"},{"v":0,"d":"$0.00"},{"v":0,"d":"$0.00"},0,{"$f":"IF(OR(K413='EXPENSE DATABASE'!$V$187,K413='EXPENSE DATABASE'!$V$188,K413='EXPENSE DATABASE'!$V$189,K413='EXPENSE DATABASE'!$V$190,K413='EXPENSE DATABASE'!$V$191,K413='EXPENSE DATABASE'!$V$192,K413='EXPENSE DATABASE'!$V$193,K413='EXPENSE DATABASE'!$V$194,K413='EXPENSE DATABASE'!$X$187,K413='EXPENSE DATABASE'!$X$188,K413='EXPENSE DATABASE'!$X$189,K413='EXPENSE DATABASE'!$X$190,K413='EXPENSE DATABASE'!$X$191,K413='EXPENSE DATABASE'!$X$192,K413='EXPENSE DATABASE'!$X$193,K413='EXPENSE DATABASE'!$X$194,K413='EXPENSE DATABASE'!$Z$187,K413='EXPENSE DATABASE'!$Z$188,K413='EXPENSE DATABASE'!$Z$189,K413='EXPENSE DATABASE'!$Z$190,K413='EXPENSE DATABASE'!$Z$191,K413='EXPENSE DATABASE'!$Z$192,K413='EXPENSE DATABASE'!$Z$193,K413='EXPENSE DATABASE'!$Z$194),O413,\"\")","v":""},{"$f":"IF(OR(K413='EXPENSE DATABASE'!$T$189,K413='EXPENSE DATABASE'!$T$190,K413='EXPENSE DATABASE'!$T$191),O413,\"\")","v":""},{"$f":"VLOOKUP(I413,'EXPENSE DATABASE'!$B$41:$C$65,2,FALSE)","v":{"$error":"#N/A"}},100,{"$f":"VLOOKUP(J413,'EXPENSE DATABASE'!$B$69:$C$168,2,FALSE)","v":{"$error":"#N/A"}},101,{"$f":"VLOOKUP(K413,'EXPENSE DATABASE'!$B$6:$C$35,2,FALSE)","v":{"$error":"#N/A"}},31,{"$f":"VLOOKUP(L413,'EXPENSE DATABASE'!$B$173:$C$176,2,FALSE)","v":{"$error":"#N/A"}},100,0,0,{"$f":"IF(L413=T('EXPENSE DATABASE'!$E$173),O413,0)","v":0},{"$f":"IF(L413=T('EXPENSE DATABASE'!$E$174),O413,0)","v":0},{"$f":"IF(L413=T('EXPENSE DATABASE'!$E$175),O413,0)","v":0},0,400]
[0,0,{"$nulls":12},{"v":0,"d":"$0.00"},{"v":0,"d":"$0.00"},{"v":0,"d":"$0.00"},0,{"$f":"IF(OR(K414='EXPENSE DATABASE'!$V$187,K414='EXPENSE DATABASE'!$V$188,K414='EXPENSE DATABASE'!$V$189,K414='EXPENSE DATABASE'!$V$190,K414='EXPENSE DATABASE'!$V$191,K414='EXPENSE DATABASE'!$V$192,K414='EXPENSE DATABASE'!$V$193,K414='EXPENSE DATABASE'!$V$194,K414='EXPENSE DATABASE'!$X$187,K414='EXPENSE DATABASE'!$X$188,K414='EXPENSE DATABASE'!$X$189,K414='EXPENSE DATABASE'!$X$190,K414='EXPENSE DATABASE'!$X$191,K414='EXPENSE DATABASE'!$X$192,K414='EXPENSE DATABASE'!$X$193,K414='EXPENSE DATABASE'!$X$194,K414='EXPENSE DATABASE'!$Z$187,K414='EXPENSE DATABASE'!$Z$188,K414='EXPENSE DATABASE'!$Z$189,K414='EXPENSE DATABASE'!$Z$190,K414='EXPENSE DATABASE'!$Z$191,K414='EXPENSE DATABASE'!$Z$192,K414='EXPENSE DATABASE'!$Z$193,K414='EXPENSE DATABASE'!$Z$194),O414,\"\")","v":""},{"$f":"IF(OR(K414='EXPENSE DATABASE'!$T$189,K414='EXPENSE DATABASE'!$T$190,K414='EXPENSE DATABASE'!$T$191),O414,\"\")","v":""},{"$f":"VLOOKUP(I414,'EXPENSE DATABASE'!$B$41:$C$65,2,FALSE)","v":{"$error":"#N/A"}},100,{"$f":"VLOOKUP(J414,'EXPENSE DATABASE'!$B$69:$C$168,2,FALSE)","v":{"$error":"#N/A"}},101,{"$f":"VLOOKUP(K414,'EXPENSE DATABASE'!$B$6:$C$35,2,FALSE)","v":{"$error":"#N/A"}},31,{"$f":"VLOOKUP(L414,'EXPENSE DATABASE'!$B$173:$C$176,2,FALSE)","v":{"$error":"#N/A"}},100,0,0,{"$f":"IF(L414=T('EXPENSE DATABASE'!$E$173),O414,0)","v":0},{"$f":"IF(L414=T('EXPENSE DATABASE'!$E$174),O414,0)","v":0},{"$f":"IF(L414=T('EXPENSE DATABASE'!$E$175),O414,0)","v":0},0,401]
[0,0,{"$nulls":12},{"v":0,"d":"$0.00"},{"v":0,"d":"$0.00"},{"v":0,"d":"$0.00"},0,{"$f":"IF(OR(K415='EXPENSE DATABASE'!$V$187,K415='EXPENSE DATABASE'!$V$188,K415='EXPENSE DATABASE'!$V$189,K415='EXPENSE DATABASE'!$V$190,K415='EXPENSE DATABASE'!$V$191,K415='EXPENSE DATABASE'!$V$192,K415='EXPENSE DATABASE'!$V$193,K415='EXPENSE DATABASE'!$V$194,K415='EXPENSE DATABASE'!$X$187,K415='EXPENSE DATABASE'!$X$188,K415='EXPENSE DATABASE'!$X$189,K415='EXPENSE DATABASE'!$X$190,K415='EXPENSE DATABASE'!$X$191,K415='EXPENSE DATABASE'!$X$192,K415='EXPENSE DATABASE'!$X$193,K415='EXPENSE DATABASE'!$X$194,K415='EXPENSE DATABASE'!$Z$187,K415='EXPENSE DATABASE'!$Z$188,K415='EXPENSE DATABASE'!$Z$189,K415='EXPENSE DATABASE'!$Z$190,K415='EXPENSE DATABASE'!$Z$191,K415='EXPENSE DATABASE'!$Z$192,K415='EXPENSE DATABASE'!$Z$193,K415='EXPENSE DATABASE'!$Z$194),O415,\"\")","v":""},{"$f":"IF(OR(K415='EXPENSE DATABASE'!$T$189,K415='EXPENSE DATABASE'!$T$190,K415='EXPENSE DATABASE'!$T$191),O415,\"\")","v":""},{"$f":"VLOOKUP(I415,'EXPENSE DATABASE'!$B$41:$C$65,2,FALSE)","v":{"$error":"#N/A"}},100,{"$f":"VLOOKUP(J415,'EXPENSE DATABASE'!$B$69:$C$168,2,FALSE)","v":{"$error":"#N/A"}},101,{"$f":"VLOOKUP(K415,'EXPENSE DATABASE'!$B$6:$C$35,2,FALSE)","v":{"$error":"#N/A"}},31,{"$f":"VLOOKUP(L415,'EXPENSE DATABASE'!$B$173:$C$176,2,FALSE)","v":{"$error":"#N/A"}},100,0,0,{"$f":"IF(L415=T('EXPENSE DATABASE'!$E$173),O415,0)","v":0},{"$f":"IF(L415=T('EXPENSE DATABASE'!$E$174),O415,0)","v":0},{"$f":"IF(L415=T('EXPENSE DATABASE'!$E$175),O415,0)","v":0},0,402]
[0,0,{"$nulls":12},{"v":0,"d":"$0.00"},{"v":0,"d":"$0.00"},{"v":0,"d":"$0.00"},0,{"$f":"IF(OR(K416='EXPENSE DATABASE'!$V$187,K416='EXPENSE DATABASE'!$V$188,K416='EXPENSE DATABASE'!$V$189,K416='EXPENSE DATABASE'!$V$190,K416='EXPENSE DATABASE'!$V$191,K416='EXPENSE DATABASE'!$V$192,K416='EXPENSE DATABASE'!$V$193,K416='EXPENSE DATABASE'!$V$194,K416='EXPENSE DATABASE'!$X$187,K416='EXPENSE DATABASE'!$X$188,K416='EXPENSE DATABASE'!$X$189,K416='EXPENSE DATABASE'!$X$190,K416='EXPENSE DATABASE'!$X$191,K416='EXPENSE DATABASE'!$X$192,K416='EXPENSE DATABASE'!$X$193,K416='EXPENSE DATABASE'!$X$194,K416='EXPENSE DATABASE'!$Z$187,K416='EXPENSE DATABASE'!$Z$188,K416='EXPENSE DATABASE'!$Z$189,K416='EXPENSE DATABASE'!$Z$190,K416='EXPENSE DATABASE'!$Z$191,K416='EXPENSE DATABASE'!$Z$192,K416='EXPENSE DATABASE'!$Z$193,K416='EXPENSE DATABASE'!$Z$194),O416,\"\")","v":""},{"$f":"IF(OR(K416='EXPENSE DATABASE'!$T$189,K416='EXPENSE DATABASE'!$T$190,K416='EXPENSE DATABASE'!$T$191),O416,\"\")","v":""},{"$f":"VLOOKUP(I416,'EXPENSE DATABASE'!$B$41:$C$65,2,FALSE)","v":{"$error":"#N/A"}},100,{"$f":"VLOOKUP(J416,'EXPENSE DATABASE'!$B$69:$C$168,2,FALSE)","v":{"$error":"#N/A"}},101,{"$f":"VLOOKUP(K416,'EXPENSE DATABASE'!$B$6:$C$35,2,FALSE)","v":{"$error":"#N/A"}},31,{"$f":"VLOOKUP(L416,'EXPENSE DATABASE'!$B$173:$C$176,2,FALSE)","v":{"$error":"#N/A"}},100,0,0,{"$f":"IF(L416=T('EXPENSE DATABASE'!$E$173),O416,0)","v":0},{"$f":"IF(L416=T('EXPENSE DATABASE'!$E$174),O416,0)","v":0},{"$f":"IF(L416=T('EXPENSE DATABASE'!$E$175),O416,0)","v":0},0,403]
[0,0,{"$nulls":12},{"v":0,"d":"$0.00"},{"v":0,"d":"$0.00"},{"v":0,"d":"$0.00"},0,{"$f":"IF(OR(K417='EXPENSE DATABASE'!$V$187,K417='EXPENSE DATABASE'!$V$188,K417='EXPENSE DATABASE'!$V$189,K417='EXPENSE DATABASE'!$V$190,K417='EXPENSE DATABASE'!$V$191,K417='EXPENSE DATABASE'!$V$192,K417='EXPENSE DATABASE'!$V$193,K417='EXPENSE DATABASE'!$V$194,K417='EXPENSE DATABASE'!$X$187,K417='EXPENSE DATABASE'!$X$188,K417='EXPENSE DATABASE'!$X$189,K417='EXPENSE DATABASE'!$X$190,K417='EXPENSE DATABASE'!$X$191,K417='EXPENSE DATABASE'!$X$192,K417='EXPENSE DATABASE'!$X$193,K417='EXPENSE DATABASE'!$X$194,K417='EXPENSE DATABASE'!$Z$187,K417='EXPENSE DATABASE'!$Z$188,K417='EXPENSE DATABASE'!$Z$189,K417='EXPENSE DATABASE'!$Z$190,K417='EXPENSE DATABASE'!$Z$191,K417='EXPENSE DATABASE'!$Z$192,K417='EXPENSE DATABASE'!$Z$193,K417='EXPENSE DATABASE'!$Z$194),O417,\"\")","v":""},{"$f":"IF(OR(K417='EXPENSE DATABASE'!$T$189,K417='EXPENSE DATABASE'!$T$190,K417='EXPENSE DATABASE'!$T$191),O417,\"\")","v":""},{"$f":"VLOOKUP(I417,'EXPENSE DATABASE'!$B$41:$C$65,2,FALSE)","v":{"$error":"#N/A"}},100,{"$f":"VLOOKUP(J417,'EXPENSE DATABASE'!$B$69:$C$168,2,FALSE)","v":{"$error":"#N/A"}},101,{"$f":"VLOOKUP(K417,'EXPENSE DATABASE'!$B$6:$C$35,2,FALSE)","v":{"$error":"#N/A"}},31,{"$f":"VLOOKUP(L417,'EXPENSE DATABASE'!$B$173:$C$176,2,FALSE)","v":{"$error":"#N/A"}},100,0,0,{"$f":"IF(L417=T('EXPENSE DATABASE'!$E$173),O417,0)","v":0},{"$f":"IF(L417=T('EXPENSE DATABASE'!$E$174),O417,0)","v":0},{"$f":"IF(L417=T('EXPENSE DATABASE'!$E$175),O417,0)","v":0},0,404]
[0,0,{"$nulls":12},{"v":0,"d":"$0.00"},{"v":0,"d":"$0.00"},{"v":0,"d":"$0.00"},0,{"$f":"IF(OR(K418='EXPENSE DATABASE'!$V$187,K418='EXPENSE DATABASE'!$V$188,K418='EXPENSE DATABASE'!$V$189,K418='EXPENSE DATABASE'!$V$190,K418='EXPENSE DATABASE'!$V$191,K418='EXPENSE DATABASE'!$V$192,K418='EXPENSE DATABASE'!$V$193,K418='EXPENSE DATABASE'!$V$194,K418='EXPENSE DATABASE'!$X$187,K418='EXPENSE DATABASE'!$X$188,K418='EXPENSE DATABASE'!$X$189,K418='EXPENSE DATABASE'!$X$190,K418='EXPENSE DATABASE'!$X$191,K418='EXPENSE DATABASE'!$X$192,K418='EXPENSE DATABASE'!$X$193,K418='EXPENSE DATABASE'!$X$194,K418='EXPENSE DATABASE'!$Z$187,K418='EXPENSE DATABASE'!$Z$188,K418='EXPENSE DATABASE'!$Z$189,K418='EXPENSE DATABASE'!$Z$190,K418='EXPENSE DATABASE'!$Z$191,K418='EXPENSE DATABASE'!$Z$192,K418='EXPENSE DATABASE'!$Z$193,K418='EXPENSE DATABASE'!$Z$194),O418,\"\")","v":""},{"$f":"IF(OR(K418='EXPENSE DATABASE'!$T$189,K418='EXPENSE DATABASE'!$T$190,K418='EXPENSE DATABASE'!$T$191),O418,\"\")","v":""},{"$f":"VLOOKUP(I418,'EXPENSE DATABASE'!$B$41:$C$65,2,FALSE)","v":{"$error":"#N/A"}},100,{"$f":"VLOOKUP(J418,'EXPENSE DATABASE'!$B$69:$C$168,2,FALSE)","v":{"$error":"#N/A"}},101,{"$f":"VLOOKUP(K418,'EXPENSE DATABASE'!$B$6:$C$35,2,FALSE)","v":{"$error":"#N/A"}},31,{"$f":"VLOOKUP(L418,'EXPENSE DATABASE'!$B$173:$C$176,2,FALSE)","v":{"$error":"#N/A"}},100,0,0,{"$f":"IF(L418=T('EXPENSE DATABASE'!$E$173),O418,0)","v":0},{"$f":"IF(L418=T('EXPENSE DATABASE'!$E$174),O418,0)","v":0},{"$f":"IF(L418=T('EXPENSE DATABASE'!$E$175),O418,0)","v":0},0,405]
[0,0,{"$nulls":12},{"v":0,"d":"$0.00"},{"v":0,"d":"$0.00"},{"v":0,"d":"$0.00"},0,{"$f":"IF(OR(K419='EXPENSE DATABASE'!$V$187,K419='EXPENSE DATABASE'!$V$188,K419='EXPENSE DATABASE'!$V$189,K419='EXPENSE DATABASE'!$V$190,K419='EXPENSE DATABASE'!$V$191,K419='EXPENSE DATABASE'!$V$192,K419='EXPENSE DATABASE'!$V$193,K419='EXPENSE DATABASE'!$V$194,K419='EXPENSE DATABASE'!$X$187,K419='EXPENSE DATABASE'!$X$188,K419='EXPENSE DATABASE'!$X$189,K419='EXPENSE DATABASE'!$X$190,K419='EXPENSE DATABASE'!$X$191,K419='EXPENSE DATABASE'!$X$192,K419='EXPENSE DATABASE'!$X$193,K419='EXPENSE DATABASE'!$X$194,K419='EXPENSE DATABASE'!$Z$187,K419='EXPENSE DATABASE'!$Z$188,K419='EXPENSE DATABASE'!$Z$189,K419='EXPENSE DATABASE'!$Z$190,K419='EXPENSE DATABASE'!$Z$191,K419='EXPENSE DATABASE'!$Z$192,K419='EXPENSE DATABASE'!$Z$193,K419='EXPENSE DATABASE'!$Z$194),O419,\"\")","v":""},{"$f":"IF(OR(K419='EXPENSE DATABASE'!$T$189,K419='EXPENSE DATABASE'!$T$190,K419='EXPENSE DATABASE'!$T$191),O419,\"\")","v":""},{"$f":"VLOOKUP(I419,'EXPENSE DATABASE'!$B$41:$C$65,2,FALSE)","v":{"$error":"#N/A"}},100,{"$f":"VLOOKUP(J419,'EXPENSE DATABASE'!$B$69:$C$168,2,FALSE)","v":{"$error":"#N/A"}},101,{"$f":"VLOOKUP(K419,'EXPENSE DATABASE'!$B$6:$C$35,2,FALSE)","v":{"$error":"#N/A"}},31,{"$f":"VLOOKUP(L419,'EXPENSE DATABASE'!$B$173:$C$176,2,FALSE)","v":{"$error":"#N/A"}},100,0,0,{"$f":"IF(L419=T('EXPENSE DATABASE'!$E$173),O419,0)","v":0},{"$f":"IF(L419=T('EXPENSE DATABASE'!$E$174),O419,0)","v":0},{"$f":"IF(L419=T('EXPENSE DATABASE'!$E$175),O419,0)","v":0},0,406]
[0,0,{"$nulls":12},{"v":0,"d":"$0.00"},{"v":0,"d":"$0.00"},{"v":0,"d":"$0.00"},0,{"$f":"IF(OR(K420='EXPENSE DATABASE'!$V$187,K420='EXPENSE DATABASE'!$V$188,K420='EXPENSE DATABASE'!$V$189,K420='EXPENSE DATABASE'!$V$190,K420='EXPENSE DATABASE'!$V$191,K420='EXPENSE DATABASE'!$V$192,K420='EXPENSE DATABASE'!$V$193,K420='EXPENSE DATABASE'!$V$194,K420='EXPENSE DATABASE'!$X$187,K420='EXPENSE DATABASE'!$X$188,K420='EXPENSE DATABASE'!$X$189,K420='EXPENSE DATABASE'!$X$190,K420='EXPENSE DATABASE'!$X$191,K420='EXPENSE DATABASE'!$X$192,K420='EXPENSE DATABASE'!$X$193,K420='EXPENSE DATABASE'!$X$194,K420='EXPENSE DATABASE'!$Z$187,K420='EXPENSE DATABASE'!$Z$188,K420='EXPENSE DATABASE'!$Z$189,K420='EXPENSE DATABASE'!$Z$190,K420='EXPENSE DATABASE'!$Z$191,K420='EXPENSE DATABASE'!$Z$192,K420='EXPENSE DATABASE'!$Z$193,K420='EXPENSE DATABASE'!$Z$194),O420,\"\")","v":""},{"$f":"IF(OR(K420='EXPENSE DATABASE'!$T$189,K420='EXPENSE DATABASE'!$T$190,K420='EXPENSE DATABASE'!$T$191),O420,\"\")","v":""},{"$f":"VLOOKUP(I420,'EXPENSE DATABASE'!$B$41:$C$65,2,FALSE)","v":{"$error":"#N/A"}},100,{"$f":"VLOOKUP(J420,'EXPENSE DATABASE'!$B$69:$C$168,2,FALSE)","v":{"$error":"#N/A"}},101,{"$f":"VLOOKUP(K420,'EXPENSE DATABASE'!$B$6:$C$35,2,FALSE)","v":{"$error":"#N/A"}},31,{"$f":"VLOOKUP(L420,'EXPENSE DATABASE'!$B$173:$C$176,2,FALSE)","v":{"$error":"#N/A"}},100,0,0,{"$f":"IF(L420=T('EXPENSE DATABASE'!$E$173),O420,0)","v":0},{"$f":"IF(L420=T('EXPENSE DATABASE'!$E$174),O420,0)","v":0},{"$f":"IF(L420=T('EXPENSE DATABASE'!$E$175),O420,0)","v":0},0,407]
[0,0,{"$nulls":12},{"v":0,"d":"$0.00"},{"v":0,"d":"$0.00"},{"v":0,"d":"$0.00"},0,{"$f":"IF(OR(K421='EXPENSE DATABASE'!$V$187,K421='EXPENSE DATABASE'!$V$188,K421='EXPENSE DATABASE'!$V$189,K421='EXPENSE DATABASE'!$V$190,K421='EXPENSE DATABASE'!$V$191,K421='EXPENSE DATABASE'!$V$192,K421='EXPENSE DATABASE'!$V$193,K421='EXPENSE DATABASE'!$V$194,K421='EXPENSE DATABASE'!$X$187,K421='EXPENSE DATABASE'!$X$188,K421='EXPENSE DATABASE'!$X$189,K421='EXPENSE DATABASE'!$X$190,K421='EXPENSE DATABASE'!$X$191,K421='EXPENSE DATABASE'!$X$192,K421='EXPENSE DATABASE'!$X$193,K421='EXPENSE DATABASE'!$X$194,K421='EXPENSE DATABASE'!$Z$187,K421='EXPENSE DATABASE'!$Z$188,K421='EXPENSE DATABASE'!$Z$189,K421='EXPENSE DATABASE'!$Z$190,K421='EXPENSE DATABASE'!$Z$191,K421='EXPENSE DATABASE'!$Z$192,K421='EXPENSE DATABASE'!$Z$193,K421='EXPENSE DATABASE'!$Z$194),O421,\"\")","v":""},{"$f":"IF(OR(K421='EXPENSE DATABASE'!$T$189,K421='EXPENSE DATABASE'!$T$190,K421='EXPENSE DATABASE'!$T$191),O421,\"\")","v":""},{"$f":"VLOOKUP(I421,'EXPENSE DATABASE'!$B$41:$C$65,2,FALSE)","v":{"$error":"#N/A"}},100,{"$f":"VLOOKUP(J421,'EXPENSE DATABASE'!$B$69:$C$168,2,FALSE)","v":{"$error":"#N/A"}},101,{"$f":"VLOOKUP(K421,'EXPENSE DATABASE'!$B$6:$C$35,2,FALSE)","v":{"$error":"#N/A"}},31,{"$f":"VLOOKUP(L421,'EXPENSE DATABASE'!$B$173:$C$176,2,FALSE)","v":{"$error":"#N/A"}},100,0,0,{"$f":"IF(L421=T('EXPENSE DATABASE'!$E$173),O421,0)","v":0},{"$f":"IF(L421=T('EXPENSE DATABASE'!$E$174),O421,0)","v":0},{"$f":"IF(L421=T('EXPENSE DATABASE'!$E$175),O421,0)","v":0},0,408]
[0,0,{"$nulls":12},{"v":0,"d":"$0.00"},{"v":0,"d":"$0.00"},{"v":0,"d":"$0.00"},0,{"$f":"IF(OR(K422='EXPENSE DATABASE'!$V$187,K422='EXPENSE DATABASE'!$V$188,K422='EXPENSE DATABASE'!$V$189,K422='EXPENSE DATABASE'!$V$190,K422='EXPENSE DATABASE'!$V$191,K422='EXPENSE DATABASE'!$V$192,K422='EXPENSE DATABASE'!$V$193,K422='EXPENSE DATABASE'!$V$194,K422='EXPENSE DATABASE'!$X$187,K422='EXPENSE DATABASE'!$X$188,K422='EXPENSE DATABASE'!$X$189,K422='EXPENSE DATABASE'!$X$190,K422='EXPENSE DATABASE'!$X$191,K422='EXPENSE DATABASE'!$X$192,K422='EXPENSE DATABASE'!$X$193,K422='EXPENSE DATABASE'!$X$194,K422='EXPENSE DATABASE'!$Z$187,K422='EXPENSE DATABASE'!$Z$188,K422='EXPENSE DATABASE'!$Z$189,K422='EXPENSE DATABASE'!$Z$190,K422='EXPENSE DATABASE'!$Z$191,K422='EXPENSE DATABASE'!$Z$192,K422='EXPENSE DATABASE'!$Z$193,K422='EXPENSE DATABASE'!$Z$194),O422,\"\")","v":""},{"$f":"IF(OR(K422='EXPENSE DATABASE'!$T$189,K422='EXPENSE DATABASE'!$T$190,K422='EXPENSE DATABASE'!$T$191),O422,\"\")","v":""},{"$f":"VLOOKUP(I422,'EXPENSE DATABASE'!$B$41:$C$65,2,FALSE)","v":{"$error":"#N/A"}},100,{"$f":"VLOOKUP(J422,'EXPENSE DATABASE'!$B$69:$C$168,2,FALSE)","v":{"$error":"#N/A"}},101,{"$f":"VLOOKUP(K422,'EXPENSE DATABASE'!$B$6:$C$35,2,FALSE)","v":{"$error":"#N/A"}},31,{"$f":"VLOOKUP(L422,'EXPENSE DATABASE'!$B$173:$C$176,2,FALSE)","v":{"$error":"#N/A"}},100,0,0,{"$f":"IF(L422=T('EXPENSE DATABASE'!$E$173),O422,0)","v":0},{"$f":"IF(L422=T('EXPENSE DATABASE'!$E$174),O422,0)","v":0},{"$f":"IF(L422=T('EXPENSE DATABASE'!$E$175),O422,0)","v":0},0,409]
[0,0,{"$nulls":12},{"v":0,"d":"$0.00"},{"v":0,"d":"$0.00"},{"v":0,"d":"$0.00"},0,{"$f":"IF(OR(K423='EXPENSE DATABASE'!$V$187,K423='EXPENSE DATABASE'!$V$188,K423='EXPENSE DATABASE'!$V$189,K423='EXPENSE DATABASE'!$V$190,K423='EXPENSE DATABASE'!$V$191,K423='EXPENSE DATABASE'!$V$192,K423='EXPENSE DATABASE'!$V$193,K423='EXPENSE DATABASE'!$V$194,K423='EXPENSE DATABASE'!$X$187,K423='EXPENSE DATABASE'!$X$188,K423='EXPENSE DATABASE'!$X$189,K423='EXPENSE DATABASE'!$X$190,K423='EXPENSE DATABASE'!$X$191,K423='EXPENSE DATABASE'!$X$192,K423='EXPENSE DATABASE'!$X$193,K423='EXPENSE DATABASE'!$X$194,K423='EXPENSE DATABASE'!$Z$187,K423='EXPENSE DATABASE'!$Z$188,K423='EXPENSE DATABASE'!$Z$189,K423='EXPENSE DATABASE'!$Z$190,K423='EXPENSE DATABASE'!$Z$191,K423='EXPENSE DATABASE'!$Z$192,K423='EXPENSE DATABASE'!$Z$193,K423='EXPENSE DATABASE'!$Z$194),O423,\"\")","v":""},{"$f":"IF(OR(K423='EXPENSE DATABASE'!$T$189,K423='EXPENSE DATABASE'!$T$190,K423='EXPENSE DATABASE'!$T$191),O423,\"\")","v":""},{"$f":"VLOOKUP(I423,'EXPENSE DATABASE'!$B$41:$C$65,2,FALSE)","v":{"$error":"#N/A"}},100,{"$f":"VLOOKUP(J423,'EXPENSE DATABASE'!$B$69:$C$168,2,FALSE)","v":{"$error":"#N/A"}},101,{"$f":"VLOOKUP(K423,'EXPENSE DATABASE'!$B$6:$C$35,2,FALSE)","v":{"$error":"#N/A"}},31,{"$f":"VLOOKUP(L423,'EXPENSE DATABASE'!$B$173:$C$176,2,FALSE)","v":{"$error":"#N/A"}},100,0,0,{"$f":"IF(L423=T('EXPENSE DATABASE'!$E$173),O423,0)","v":0},{"$f":"IF(L423=T('EXPENSE DATABASE'!$E$174),O423,0)","v":0},{"$f":"IF(L423=T('EXPENSE DATABASE'!$E$175),O423,0)","v":0},0,410]
[0,0,{"$nulls":12},{"v":0,"d":"$0.00"},{"v":0,"d":"$0.00"},{"v":0,"d":"$0.00"},0,{"$f":"IF(OR(K424='EXPENSE DATABASE'!$V$187,K424='EXPENSE DATABASE'!$V$188,K424='EXPENSE DATABASE'!$V$189,K424='EXPENSE DATABASE'!$V$190,K424='EXPENSE DATABASE'!$V$191,K424='EXPENSE DATABASE'!$V$192,K424='EXPENSE DATABASE'!$V$193,K424='EXPENSE DATABASE'!$V$194,K424='EXPENSE DATABASE'!$X$187,K424='EXPENSE DATABASE'!$X$188,K424='EXPENSE DATABASE'!$X$189,K424='EXPENSE DATABASE'!$X$190,K424='EXPENSE DATABASE'!$X$191,K424='EXPENSE DATABASE'!$X$192,K424='EXPENSE DATABASE'!$X$193,K424='EXPENSE DATABASE'!$X$194,K424='EXPENSE DATABASE'!$Z$187,K424='EXPENSE DATABASE'!$Z$188,K424='EXPENSE DATABASE'!$Z$189,K424='EXPENSE DATABASE'!$Z$190,K424='EXPENSE DATABASE'!$Z$191,K424='EXPENSE DATABASE'!$Z$192,K424='EXPENSE DATABASE'!$Z$193,K424='EXPENSE DATABASE'!$Z$194),O424,\"\")","v":""},{"$f":"IF(OR(K424='EXPENSE DATABASE'!$T$189,K424='EXPENSE DATABASE'!$T$190,K424='EXPENSE DATABASE'!$T$191),O424,\"\")","v":""},{"$f":"VLOOKUP(I424,'EXPENSE DATABASE'!$B$41:$C$65,2,FALSE)","v":{"$error":"#N/A"}},100,{"$f":"VLOOKUP(J424,'EXPENSE DATABASE'!$B$69:$C$168,2,FALSE)","v":{"$error":"#N/A"}},101,{"$f":"VLOOKUP(K424,'EXPENSE DATABASE'!$B$6:$C$35,2,FALSE)","v":{"$error":"#N/A"}},31,{"$f":"VLOOKUP(L424,'EXPENSE DATABASE'!$B$173:$C$176,2,FALSE)","v":{"$error":"#N/A"}},100,0,0,{"$f":"IF(L424=T('EXPENSE DATABASE'!$E$173),O424,0)","v":0},{"$f":"IF(L424=T('EXPENSE DATABASE'!$E$174),O424,0)","v":0},{"$f":"IF(L424=T('EXPENSE DATABASE'!$E$175),O424,0)","v":0},0,411]
[0,0,{"$nulls":12},{"v":0,"d":"$0.00"},{"v":0,"d":"$0.00"},{"v":0,"d":"$0.00"},0,{"$f":"IF(OR(K425='EXPENSE DATABASE'!$V$187,K425='EXPENSE DATABASE'!$V$188,K425='EXPENSE DATABASE'!$V$189,K425='EXPENSE DATABASE'!$V$190,K425='EXPENSE DATABASE'!$V$191,K425='EXPENSE DATABASE'!$V$192,K425='EXPENSE DATABASE'!$V$193,K425='EXPENSE DATABASE'!$V$194,K425='EXPENSE DATABASE'!$X$187,K425='EXPENSE DATABASE'!$X$188,K425='EXPENSE DATABASE'!$X$189,K425='EXPENSE DATABASE'!$X$190,K425='EXPENSE DATABASE'!$X$191,K425='EXPENSE DATABASE'!$X$192,K425='EXPENSE DATABASE'!$X$193,K425='EXPENSE DATABASE'!$X$194,K425='EXPENSE DATABASE'!$Z$187,K425='EXPENSE DATABASE'!$Z$188,K425='EXPENSE DATABASE'!$Z$189,K425='EXPENSE DATABASE'!$Z$190,K425='EXPENSE DATABASE'!$Z$191,K425='EXPENSE DATABASE'!$Z$192,K425='EXPENSE DATABASE'!$Z$193,K425='EXPENSE DATABASE'!$Z$194),O425,\"\")","v":""},{"$f":"IF(OR(K425='EXPENSE DATABASE'!$T$189,K425='EXPENSE DATABASE'!$T$190,K425='EXPENSE DATABASE'!$T$191),O425,\"\")","v":""},{"$f":"VLOOKUP(I425,'EXPENSE DATABASE'!$B$41:$C$65,2,FALSE)","v":{"$error":"#N/A"}},100,{"$f":"VLOOKUP(J425,'EXPENSE DATABASE'!$B$69:$C$168,2,FALSE)","v":{"$error":"#N/A"}},101,{"$f":"VLOOKUP(K425,'EXPENSE DATABASE'!$B$6:$C$35,2,FALSE)","v":{"$error":"#N/A"}},31,{"$f":"VLOOKUP(L425,'EXPENSE DATABASE'!$B$173:$C$176,2,FALSE)","v":{"$error":"#N/A"}},100,0,0,{"$f":"IF(L425=T('EXPENSE DATABASE'!$E$173),O425,0)","v":0},{"$f":"IF(L425=T('EXPENSE DATABASE'!$E$174),O425,0)","v":0},{"$f":"IF(L425=T('EXPENSE DATABASE'!$E$175),O425,0)","v":0},0,412]
[0,0,{"$nulls":12},{"v":0,"d":"$0.00"},{"v":0,"d":"$0.00"},{"v":0,"d":"$0.00"},0,{"$f":"IF(OR(K426='EXPENSE DATABASE'!$V$187,K426='EXPENSE DATABASE'!$V$188,K426='EXPENSE DATABASE'!$V$189,K426='EXPENSE DATABASE'!$V$190,K426='EXPENSE DATABASE'!$V$191,K426='EXPENSE DATABASE'!$V$192,K426='EXPENSE DATABASE'!$V$193,K426='EXPENSE DATABASE'!$V$194,K426='EXPENSE DATABASE'!$X$187,K426='EXPENSE DATABASE'!$X$188,K426='EXPENSE DATABASE'!$X$189,K426='EXPENSE DATABASE'!$X$190,K426='EXPENSE DATABASE'!$X$191,K426='EXPENSE DATABASE'!$X$192,K426='EXPENSE DATABASE'!$X$193,K426='EXPENSE DATABASE'!$X$194,K426='EXPENSE DATABASE'!$Z$187,K426='EXPENSE DATABASE'!$Z$188,K426='EXPENSE DATABASE'!$Z$189,K426='EXPENSE DATABASE'!$Z$190,K426='EXPENSE DATABASE'!$Z$191,K426='EXPENSE DATABASE'!$Z$192,K426='EXPENSE DATABASE'!$Z$193,K426='EXPENSE DATABASE'!$Z$194),O426,\"\")","v":""},{"$f":"IF(OR(K426='EXPENSE DATABASE'!$T$189,K426='EXPENSE DATABASE'!$T$190,K426='EXPENSE DATABASE'!$T$191),O426,\"\")","v":""},{"$f":"VLOOKUP(I426,'EXPENSE DATABASE'!$B$41:$C$65,2,FALSE)","v":{"$error":"#N/A"}},100,{"$f":"VLOOKUP(J426,'EXPENSE DATABASE'!$B$69:$C$168,2,FALSE)","v":{"$error":"#N/A"}},101,{"$f":"VLOOKUP(K426,'EXPENSE DATABASE'!$B$6:$C$35,2,FALSE)","v":{"$error":"#N/A"}},31,{"$f":"VLOOKUP(L426,'EXPENSE DATABASE'!$B$173:$C$176,2,FALSE)","v":{"$error":"#N/A"}},100,0,0,{"$f":"IF(L426=T('EXPENSE DATABASE'!$E$173),O426,0)","v":0},{"$f":"IF(L426=T('EXPENSE DATABASE'!$E$174),O426,0)","v":0},{"$f":"IF(L426=T('EXPENSE DATABASE'!$E$175),O426,0)","v":0},0,413]
[0,0,{"$nulls":12},{"v":0,"d":"$0.00"},{"v":0,"d":"$0.00"},{"v":0,"d":"$0.00"},0,{"$f":"IF(OR(K427='EXPENSE DATABASE'!$V$187,K427='EXPENSE DATABASE'!$V$188,K427='EXPENSE DATABASE'!$V$189,K427='EXPENSE DATABASE'!$V$190,K427='EXPENSE DATABASE'!$V$191,K427='EXPENSE DATABASE'!$V$192,K427='EXPENSE DATABASE'!$V$193,K427='EXPENSE DATABASE'!$V$194,K427='EXPENSE DATABASE'!$X$187,K427='EXPENSE DATABASE'!$X$188,K427='EXPENSE DATABASE'!$X$189,K427='EXPENSE DATABASE'!$X$190,K427='EXPENSE DATABASE'!$X$191,K427='EXPENSE DATABASE'!$X$192,K427='EXPENSE DATABASE'!$X$193,K427='EXPENSE DATABASE'!$X$194,K427='EXPENSE DATABASE'!$Z$187,K427='EXPENSE DATABASE'!$Z$188,K427='EXPENSE DATABASE'!$Z$189,K427='EXPENSE DATABASE'!$Z$190,K427='EXPENSE DATABASE'!$Z$191,K427='EXPENSE DATABASE'!$Z$192,K427='EXPENSE DATABASE'!$Z$193,K427='EXPENSE DATABASE'!$Z$194),O427,\"\")","v":""},{"$f":"IF(OR(K427='EXPENSE DATABASE'!$T$189,K427='EXPENSE DATABASE'!$T$190,K427='EXPENSE DATABASE'!$T$191),O427,\"\")","v":""},{"$f":"VLOOKUP(I427,'EXPENSE DATABASE'!$B$41:$C$65,2,FALSE)","v":{"$error":"#N/A"}},100,{"$f":"VLOOKUP(J427,'EXPENSE DATABASE'!$B$69:$C$168,2,FALSE)","v":{"$error":"#N/A"}},101,{"$f":"VLOOKUP(K427,'EXPENSE DATABASE'!$B$6:$C$35,2,FALSE)","v":{"$error":"#N/A"}},31,{"$f":"VLOOKUP(L427,'EXPENSE DATABASE'!$B$173:$C$176,2,FALSE)","v":{"$error":"#N/A"}},100,0,0,{"$f":"IF(L427=T('EXPENSE DATABASE'!$E$173),O427,0)","v":0},{"$f":"IF(L427=T('EXPENSE DATABASE'!$E$174),O427,0)","v":0},{"$f":"IF(L427=T('EXPENSE DATABASE'!$E$175),O427,0)","v":0},0,414]
[0,0,{"$nulls":12},{"v":0,"d":"$0.00"},{"v":0,"d":"$0.00"},{"v":0,"d":"$0.00"},0,{"$f":"IF(OR(K428='EXPENSE DATABASE'!$V$187,K428='EXPENSE DATABASE'!$V$188,K428='EXPENSE DATABASE'!$V$189,K428='EXPENSE DATABASE'!$V$190,K428='EXPENSE DATABASE'!$V$191,K428='EXPENSE DATABASE'!$V$192,K428='EXPENSE DATABASE'!$V$193,K428='EXPENSE DATABASE'!$V$194,K428='EXPENSE DATABASE'!$X$187,K428='EXPENSE DATABASE'!$X$188,K428='EXPENSE DATABASE'!$X$189,K428='EXPENSE DATABASE'!$X$190,K428='EXPENSE DATABASE'!$X$191,K428='EXPENSE DATABASE'!$X$192,K428='EXPENSE DATABASE'!$X$193,K428='EXPENSE DATABASE'!$X$194,K428='EXPENSE DATABASE'!$Z$187,K428='EXPENSE DATABASE'!$Z$188,K428='EXPENSE DATABASE'!$Z$189,K428='EXPENSE DATABASE'!$Z$190,K428='EXPENSE DATABASE'!$Z$191,K428='EXPENSE DATABASE'!$Z$192,K428='EXPENSE DATABASE'!$Z$193,K428='EXPENSE DATABASE'!$Z$194),O428,\"\")","v":""},{"$f":"IF(OR(K428='EXPENSE DATABASE'!$T$189,K428='EXPENSE DATABASE'!$T$190,K428='EXPENSE DATABASE'!$T$191),O428,\"\")","v":""},{"$f":"VLOOKUP(I428,'EXPENSE DATABASE'!$B$41:$C$65,2,FALSE)","v":{"$error":"#N/A"}},100,{"$f":"VLOOKUP(J428,'EXPENSE DATABASE'!$B$69:$C$168,2,FALSE)","v":{"$error":"#N/A"}},101,{"$f":"VLOOKUP(K428,'EXPENSE DATABASE'!$B$6:$C$35,2,FALSE)","v":{"$error":"#N/A"}},31,{"$f":"VLOOKUP(L428,'EXPENSE DATABASE'!$B$173:$C$176,2,FALSE)","v":{"$error":"#N/A"}},100,0,0,{"$f":"IF(L428=T('EXPENSE DATABASE'!$E$173),O428,0)","v":0},{"$f":"IF(L428=T('EXPENSE DATABASE'!$E$174),O428,0)","v":0},{"$f":"IF(L428=T('EXPENSE DATABASE'!$E$175),O428,0)","v":0},0,415]
[0,0,{"$nulls":12},{"v":0,"d":"$0.00"},{"v":0,"d":"$0.00"},{"v":0,"d":"$0.00"},0,{"$f":"IF(OR(K429='EXPENSE DATABASE'!$V$187,K429='EXPENSE DATABASE'!$V$188,K429='EXPENSE DATABASE'!$V$189,K429='EXPENSE DATABASE'!$V$190,K429='EXPENSE DATABASE'!$V$191,K429='EXPENSE DATABASE'!$V$192,K429='EXPENSE DATABASE'!$V$193,K429='EXPENSE DATABASE'!$V$194,K429='EXPENSE DATABASE'!$X$187,K429='EXPENSE DATABASE'!$X$188,K429='EXPENSE DATABASE'!$X$189,K429='EXPENSE DATABASE'!$X$190,K429='EXPENSE DATABASE'!$X$191,K429='EXPENSE DATABASE'!$X$192,K429='EXPENSE DATABASE'!$X$193,K429='EXPENSE DATABASE'!$X$194,K429='EXPENSE DATABASE'!$Z$187,K429='EXPENSE DATABASE'!$Z$188,K429='EXPENSE DATABASE'!$Z$189,K429='EXPENSE DATABASE'!$Z$190,K429='EXPENSE DATABASE'!$Z$191,K429='EXPENSE DATABASE'!$Z$192,K429='EXPENSE DATABASE'!$Z$193,K429='EXPENSE DATABASE'!$Z$194),O429,\"\")","v":""},{"$f":"IF(OR(K429='EXPENSE DATABASE'!$T$189,K429='EXPENSE DATABASE'!$T$190,K429='EXPENSE DATABASE'!$T$191),O429,\"\")","v":""},{"$f":"VLOOKUP(I429,'EXPENSE DATABASE'!$B$41:$C$65,2,FALSE)","v":{"$error":"#N/A"}},100,{"$f":"VLOOKUP(J429,'EXPENSE DATABASE'!$B$69:$C$168,2,FALSE)","v":{"$error":"#N/A"}},101,{"$f":"VLOOKUP(K429,'EXPENSE DATABASE'!$B$6:$C$35,2,FALSE)","v":{"$error":"#N/A"}},31,{"$f":"VLOOKUP(L429,'EXPENSE DATABASE'!$B$173:$C$176,2,FALSE)","v":{"$error":"#N/A"}},100,0,0,{"$f":"IF(L429=T('EXPENSE DATABASE'!$E$173),O429,0)","v":0},{"$f":"IF(L429=T('EXPENSE DATABASE'!$E$174),O429,0)","v":0},{"$f":"IF(L429=T('EXPENSE DATABASE'!$E$175),O429,0)","v":0},0,416]
[0,0,{"$nulls":12},{"v":0,"d":"$0.00"},{"v":0,"d":"$0.00"},{"v":0,"d":"$0.00"},0,{"$f":"IF(OR(K430='EXPENSE DATABASE'!$V$187,K430='EXPENSE DATABASE'!$V$188,K430='EXPENSE DATABASE'!$V$189,K430='EXPENSE DATABASE'!$V$190,K430='EXPENSE DATABASE'!$V$191,K430='EXPENSE DATABASE'!$V$192,K430='EXPENSE DATABASE'!$V$193,K430='EXPENSE DATABASE'!$V$194,K430='EXPENSE DATABASE'!$X$187,K430='EXPENSE DATABASE'!$X$188,K430='EXPENSE DATABASE'!$X$189,K430='EXPENSE DATABASE'!$X$190,K430='EXPENSE DATABASE'!$X$191,K430='EXPENSE DATABASE'!$X$192,K430='EXPENSE DATABASE'!$X$193,K430='EXPENSE DATABASE'!$X$194,K430='EXPENSE DATABASE'!$Z$187,K430='EXPENSE DATABASE'!$Z$188,K430='EXPENSE DATABASE'!$Z$189,K430='EXPENSE DATABASE'!$Z$190,K430='EXPENSE DATABASE'!$Z$191,K430='EXPENSE DATABASE'!$Z$192,K430='EXPENSE DATABASE'!$Z$193,K430='EXPENSE DATABASE'!$Z$194),O430,\"\")","v":""},{"$f":"IF(OR(K430='EXPENSE DATABASE'!$T$189,K430='EXPENSE DATABASE'!$T$190,K430='EXPENSE DATABASE'!$T$191),O430,\"\")","v":""},{"$f":"VLOOKUP(I430,'EXPENSE DATABASE'!$B$41:$C$65,2,FALSE)","v":{"$error":"#N/A"}},100,{"$f":"VLOOKUP(J430,'EXPENSE DATABASE'!$B$69:$C$168,2,FALSE)","v":{"$error":"#N/A"}},101,{"$f":"VLOOKUP(K430,'EXPENSE DATABASE'!$B$6:$C$35,2,FALSE)","v":{"$error":"#N/A"}},31,{"$f":"VLOOKUP(L430,'EXPENSE DATABASE'!$B$173:$C$176,2,FALSE)","v":{"$error":"#N/A"}},100,0,0,{"$f":"IF(L430=T('EXPENSE DATABASE'!$E$173),O430,0)","v":0},{"$f":"IF(L430=T('EXPENSE DATABASE'!$E$174),O430,0)","v":0},{"$f":"IF(L430=T('EXPENSE DATABASE'!$E$175),O430,0)","v":0},0,417]
[0,0,{"$nulls":12},{"v":0,"d":"$0.00"},{"v":0,"d":"$0.00"},{"v":0,"d":"$0.00"},0,{"$f":"IF(OR(K431='EXPENSE DATABASE'!$V$187,K431='EXPENSE DATABASE'!$V$188,K431='EXPENSE DATABASE'!$V$189,K431='EXPENSE DATABASE'!$V$190,K431='EXPENSE DATABASE'!$V$191,K431='EXPENSE DATABASE'!$V$192,K431='EXPENSE DATABASE'!$V$193,K431='EXPENSE DATABASE'!$V$194,K431='EXPENSE DATABASE'!$X$187,K431='EXPENSE DATABASE'!$X$188,K431='EXPENSE DATABASE'!$X$189,K431='EXPENSE DATABASE'!$X$190,K431='EXPENSE DATABASE'!$X$191,K431='EXPENSE DATABASE'!$X$192,K431='EXPENSE DATABASE'!$X$193,K431='EXPENSE DATABASE'!$X$194,K431='EXPENSE DATABASE'!$Z$187,K431='EXPENSE DATABASE'!$Z$188,K431='EXPENSE DATABASE'!$Z$189,K431='EXPENSE DATABASE'!$Z$190,K431='EXPENSE DATABASE'!$Z$191,K431='EXPENSE DATABASE'!$Z$192,K431='EXPENSE DATABASE'!$Z$193,K431='EXPENSE DATABASE'!$Z$194),O431,\"\")","v":""},{"$f":"IF(OR(K431='EXPENSE DATABASE'!$T$189,K431='EXPENSE DATABASE'!$T$190,K431='EXPENSE DATABASE'!$T$191),O431,\"\")","v":""},{"$f":"VLOOKUP(I431,'EXPENSE DATABASE'!$B$41:$C$65,2,FALSE)","v":{"$error":"#N/A"}},100,{"$f":"VLOOKUP(J431,'EXPENSE DATABASE'!$B$69:$C$168,2,FALSE)","v":{"$error":"#N/A"}},101,{"$f":"VLOOKUP(K431,'EXPENSE DATABASE'!$B$6:$C$35,2,FALSE)","v":{"$error":"#N/A"}},31,{"$f":"VLOOKUP(L431,'EXPENSE DATABASE'!$B$173:$C$176,2,FALSE)","v":{"$error":"#N/A"}},100,0,0,{"$f":"IF(L431=T('EXPENSE DATABASE'!$E$173),O431,0)","v":0},{"$f":"IF(L431=T('EXPENSE DATABASE'!$E$174),O431,0)","v":0},{"$f":"IF(L431=T('EXPENSE DATABASE'!$E$175),O431,0)","v":0},0,418]
[0,0,{"$nulls":12},{"v":0,"d":"$0.00"},{"v":0,"d":"$0.00"},{"v":0,"d":"$0.00"},0,{"$f":"IF(OR(K432='EXPENSE DATABASE'!$V$187,K432='EXPENSE DATABASE'!$V$188,K432='EXPENSE DATABASE'!$V$189,K432='EXPENSE DATABASE'!$V$190,K432='EXPENSE DATABASE'!$V$191,K432='EXPENSE DATABASE'!$V$192,K432='EXPENSE DATABASE'!$V$193,K432='EXPENSE DATABASE'!$V$194,K432='EXPENSE DATABASE'!$X$187,K432='EXPENSE DATABASE'!$X$188,K432='EXPENSE DATABASE'!$X$189,K432='EXPENSE DATABASE'!$X$190,K432='EXPENSE DATABASE'!$X$191,K432='EXPENSE DATABASE'!$X$192,K432='EXPENSE DATABASE'!$X$193,K432='EXPENSE DATABASE'!$X$194,K432='EXPENSE DATABASE'!$Z$187,K432='EXPENSE DATABASE'!$Z$188,K432='EXPENSE DATABASE'!$Z$189,K432='EXPENSE DATABASE'!$Z$190,K432='EXPENSE DATABASE'!$Z$191,K432='EXPENSE DATABASE'!$Z$192,K432='EXPENSE DATABASE'!$Z$193,K432='EXPENSE DATABASE'!$Z$194),O432,\"\")","v":""},{"$f":"IF(OR(K432='EXPENSE DATABASE'!$T$189,K432='EXPENSE DATABASE'!$T$190,K432='EXPENSE DATABASE'!$T$191),O432,\"\")","v":""},{"$f":"VLOOKUP(I432,'EXPENSE DATABASE'!$B$41:$C$65,2,FALSE)","v":{"$error":"#N/A"}},100,{"$f":"VLOOKUP(J432,'EXPENSE DATABASE'!$B$69:$C$168,2,FALSE)","v":{"$error":"#N/A"}},101,{"$f":"VLOOKUP(K432,'EXPENSE DATABASE'!$B$6:$C$35,2,FALSE)","v":{"$error":"#N/A"}},31,{"$f":"VLOOKUP(L432,'EXPENSE DATABASE'!$B$173:$C$176,2,FALSE)","v":{"$error":"#N/A"}},100,0,0,{"$f":"IF(L432=T('EXPENSE DATABASE'!$E$173),O432,0)","v":0},{"$f":"IF(L432=T('EXPENSE DATABASE'!$E$174),O432,0)","v":0},{"$f":"IF(L432=T('EXPENSE DATABASE'!$E$175),O432,0)","v":0},0,419]
[0,0,{"$nulls":12},{"v":0,"d":"$0.00"},{"v":0,"d":"$0.00"},{"v":0,"d":"$0.00"},0,{"$f":"IF(OR(K433='EXPENSE DATABASE'!$V$187,K433='EXPENSE DATABASE'!$V$188,K433='EXPENSE DATABASE'!$V$189,K433='EXPENSE DATABASE'!$V$190,K433='EXPENSE DATABASE'!$V$191,K433='EXPENSE DATABASE'!$V$192,K433='EXPENSE DATABASE'!$V$193,K433='EXPENSE DATABASE'!$V$194,K433='EXPENSE DATABASE'!$X$187,K433='EXPENSE DATABASE'!$X$188,K433='EXPENSE DATABASE'!$X$189,K433='EXPENSE DATABASE'!$X$190,K433='EXPENSE DATABASE'!$X$191,K433='EXPENSE DATABASE'!$X$192,K433='EXPENSE DATABASE'!$X$193,K433='EXPENSE DATABASE'!$X$194,K433='EXPENSE DATABASE'!$Z$187,K433='EXPENSE DATABASE'!$Z$188,K433='EXPENSE DATABASE'!$Z$189,K433='EXPENSE DATABASE'!$Z$190,K433='EXPENSE DATABASE'!$Z$191,K433='EXPENSE DATABASE'!$Z$192,K433='EXPENSE DATABASE'!$Z$193,K433='EXPENSE DATABASE'!$Z$194),O433,\"\")","v":""},{"$f":"IF(OR(K433='EXPENSE DATABASE'!$T$189,K433='EXPENSE DATABASE'!$T$190,K433='EXPENSE DATABASE'!$T$191),O433,\"\")","v":""},{"$f":"VLOOKUP(I433,'EXPENSE DATABASE'!$B$41:$C$65,2,FALSE)","v":{"$error":"#N/A"}},100,{"$f":"VLOOKUP(J433,'EXPENSE DATABASE'!$B$69:$C$168,2,FALSE)","v":{"$error":"#N/A"}},101,{"$f":"VLOOKUP(K433,'EXPENSE DATABASE'!$B$6:$C$35,2,FALSE)","v":{"$error":"#N/A"}},31,{"$f":"VLOOKUP(L433,'EXPENSE DATABASE'!$B$173:$C$176,2,FALSE)","v":{"$error":"#N/A"}},100,0,0,{"$f":"IF(L433=T('EXPENSE DATABASE'!$E$173),O433,0)","v":0},{"$f":"IF(L433=T('EXPENSE DATABASE'!$E$174),O433,0)","v":0},{"$f":"IF(L433=T('EXPENSE DATABASE'!$E$175),O433,0)","v":0},0,420]
[0,0,{"$nulls":12},{"v":0,"d":"$0.00"},{"v":0,"d":"$0.00"},{"v":0,"d":"$0.00"},0,{"$f":"IF(OR(K434='EXPENSE DATABASE'!$V$187,K434='EXPENSE DATABASE'!$V$188,K434='EXPENSE DATABASE'!$V$189,K434='EXPENSE DATABASE'!$V$190,K434='EXPENSE DATABASE'!$V$191,K434='EXPENSE DATABASE'!$V$192,K434='EXPENSE DATABASE'!$V$193,K434='EXPENSE DATABASE'!$V$194,K434='EXPENSE DATABASE'!$X$187,K434='EXPENSE DATABASE'!$X$188,K434='EXPENSE DATABASE'!$X$189,K434='EXPENSE DATABASE'!$X$190,K434='EXPENSE DATABASE'!$X$191,K434='EXPENSE DATABASE'!$X$192,K434='EXPENSE DATABASE'!$X$193,K434='EXPENSE DATABASE'!$X$194,K434='EXPENSE DATABASE'!$Z$187,K434='EXPENSE DATABASE'!$Z$188,K434='EXPENSE DATABASE'!$Z$189,K434='EXPENSE DATABASE'!$Z$190,K434='EXPENSE DATABASE'!$Z$191,K434='EXPENSE DATABASE'!$Z$192,K434='EXPENSE DATABASE'!$Z$193,K434='EXPENSE DATABASE'!$Z$194),O434,\"\")","v":""},{"$f":"IF(OR(K434='EXPENSE DATABASE'!$T$189,K434='EXPENSE DATABASE'!$T$190,K434='EXPENSE DATABASE'!$T$191),O434,\"\")","v":""},{"$f":"VLOOKUP(I434,'EXPENSE DATABASE'!$B$41:$C$65,2,FALSE)","v":{"$error":"#N/A"}},100,{"$f":"VLOOKUP(J434,'EXPENSE DATABASE'!$B$69:$C$168,2,FALSE)","v":{"$error":"#N/A"}},101,{"$f":"VLOOKUP(K434,'EXPENSE DATABASE'!$B$6:$C$35,2,FALSE)","v":{"$error":"#N/A"}},31,{"$f":"VLOOKUP(L434,'EXPENSE DATABASE'!$B$173:$C$176,2,FALSE)","v":{"$error":"#N/A"}},100,0,0,{"$f":"IF(L434=T('EXPENSE DATABASE'!$E$173),O434,0)","v":0},{"$f":"IF(L434=T('EXPENSE DATABASE'!$E$174),O434,0)","v":0},{"$f":"IF(L434=T('EXPENSE DATABASE'!$E$175),O434,0)","v":0},0,421]
[0,0,{"$nulls":12},{"v":0,"d":"$0.00"},{"v":0,"d":"$0.00"},{"v":0,"d":"$0.00"},0,{"$f":"IF(OR(K435='EXPENSE DATABASE'!$V$187,K435='EXPENSE DATABASE'!$V$188,K435='EXPENSE DATABASE'!$V$189,K435='EXPENSE DATABASE'!$V$190,K435='EXPENSE DATABASE'!$V$191,K435='EXPENSE DATABASE'!$V$192,K435='EXPENSE DATABASE'!$V$193,K435='EXPENSE DATABASE'!$V$194,K435='EXPENSE DATABASE'!$X$187,K435='EXPENSE DATABASE'!$X$188,K435='EXPENSE DATABASE'!$X$189,K435='EXPENSE DATABASE'!$X$190,K435='EXPENSE DATABASE'!$X$191,K435='EXPENSE DATABASE'!$X$192,K435='EXPENSE DATABASE'!$X$193,K435='EXPENSE DATABASE'!$X$194,K435='EXPENSE DATABASE'!$Z$187,K435='EXPENSE DATABASE'!$Z$188,K435='EXPENSE DATABASE'!$Z$189,K435='EXPENSE DATABASE'!$Z$190,K435='EXPENSE DATABASE'!$Z$191,K435='EXPENSE DATABASE'!$Z$192,K435='EXPENSE DATABASE'!$Z$193,K435='EXPENSE DATABASE'!$Z$194),O435,\"\")","v":""},{"$f":"IF(OR(K435='EXPENSE DATABASE'!$T$189,K435='EXPENSE DATABASE'!$T$190,K435='EXPENSE DATABASE'!$T$191),O435,\"\")","v":""},{"$f":"VLOOKUP(I435,'EXPENSE DATABASE'!$B$41:$C$65,2,FALSE)","v":{"$error":"#N/A"}},100,{"$f":"VLOOKUP(J435,'EXPENSE DATABASE'!$B$69:$C$168,2,FALSE)","v":{"$error":"#N/A"}},101,{"$f":"VLOOKUP(K435,'EXPENSE DATABASE'!$B$6:$C$35,2,FALSE)","v":{"$error":"#N/A"}},31,{"$f":"VLOOKUP(L435,'EXPENSE DATABASE'!$B$173:$C$176,2,FALSE)","v":{"$error":"#N/A"}},100,0,0,{"$f":"IF(L435=T('EXPENSE DATABASE'!$E$173),O435,0)","v":0},{"$f":"IF(L435=T('EXPENSE DATABASE'!$E$174),O435,0)","v":0},{"$f":"IF(L435=T('EXPENSE DATABASE'!$E$175),O435,0)","v":0},0,422]
[0,0,{"$nulls":12},{"v":0,"d":"$0.00"},{"v":0,"d":"$0.00"},{"v":0,"d":"$0.00"},0,{"$f":"IF(OR(K436='EXPENSE DATABASE'!$V$187,K436='EXPENSE DATABASE'!$V$188,K436='EXPENSE DATABASE'!$V$189,K436='EXPENSE DATABASE'!$V$190,K436='EXPENSE DATABASE'!$V$191,K436='EXPENSE DATABASE'!$V$192,K436='EXPENSE DATABASE'!$V$193,K436='EXPENSE DATABASE'!$V$194,K436='EXPENSE DATABASE'!$X$187,K436='EXPENSE DATABASE'!$X$188,K436='EXPENSE DATABASE'!$X$189,K436='EXPENSE DATABASE'!$X$190,K436='EXPENSE DATABASE'!$X$191,K436='EXPENSE DATABASE'!$X$192,K436='EXPENSE DATABASE'!$X$193,K436='EXPENSE DATABASE'!$X$194,K436='EXPENSE DATABASE'!$Z$187,K436='EXPENSE DATABASE'!$Z$188,K436='EXPENSE DATABASE'!$Z$189,K436='EXPENSE DATABASE'!$Z$190,K436='EXPENSE DATABASE'!$Z$191,K436='EXPENSE DATABASE'!$Z$192,K436='EXPENSE DATABASE'!$Z$193,K436='EXPENSE DATABASE'!$Z$194),O436,\"\")","v":""},{"$f":"IF(OR(K436='EXPENSE DATABASE'!$T$189,K436='EXPENSE DATABASE'!$T$190,K436='EXPENSE DATABASE'!$T$191),O436,\"\")","v":""},{"$f":"VLOOKUP(I436,'EXPENSE DATABASE'!$B$41:$C$65,2,FALSE)","v":{"$error":"#N/A"}},100,{"$f":"VLOOKUP(J436,'EXPENSE DATABASE'!$B$69:$C$168,2,FALSE)","v":{"$error":"#N/A"}},101,{"$f":"VLOOKUP(K436,'EXPENSE DATABASE'!$B$6:$C$35,2,FALSE)","v":{"$error":"#N/A"}},31,{"$f":"VLOOKUP(L436,'EXPENSE DATABASE'!$B$173:$C$176,2,FALSE)","v":{"$error":"#N/A"}},100,0,0,{"$f":"IF(L436=T('EXPENSE DATABASE'!$E$173),O436,0)","v":0},{"$f":"IF(L436=T('EXPENSE DATABASE'!$E$174),O436,0)","v":0},{"$f":"IF(L436=T('EXPENSE DATABASE'!$E$175),O436,0)","v":0},0,423]
[0,0,{"$nulls":12},{"v":0,"d":"$0.00"},{"v":0,"d":"$0.00"},{"v":0,"d":"$0.00"},0,{"$f":"IF(OR(K437='EXPENSE DATABASE'!$V$187,K437='EXPENSE DATABASE'!$V$188,K437='EXPENSE DATABASE'!$V$189,K437='EXPENSE DATABASE'!$V$190,K437='EXPENSE DATABASE'!$V$191,K437='EXPENSE DATABASE'!$V$192,K437='EXPENSE DATABASE'!$V$193,K437='EXPENSE DATABASE'!$V$194,K437='EXPENSE DATABASE'!$X$187,K437='EXPENSE DATABASE'!$X$188,K437='EXPENSE DATABASE'!$X$189,K437='EXPENSE DATABASE'!$X$190,K437='EXPENSE DATABASE'!$X$191,K437='EXPENSE DATABASE'!$X$192,K437='EXPENSE DATABASE'!$X$193,K437='EXPENSE DATABASE'!$X$194,K437='EXPENSE DATABASE'!$Z$187,K437='EXPENSE DATABASE'!$Z$188,K437='EXPENSE DATABASE'!$Z$189,K437='EXPENSE DATABASE'!$Z$190,K437='EXPENSE DATABASE'!$Z$191,K437='EXPENSE DATABASE'!$Z$192,K437='EXPENSE DATABASE'!$Z$193,K437='EXPENSE DATABASE'!$Z$194),O437,\"\")","v":""},{"$f":"IF(OR(K437='EXPENSE DATABASE'!$T$189,K437='EXPENSE DATABASE'!$T$190,K437='EXPENSE DATABASE'!$T$191),O437,\"\")","v":""},{"$f":"VLOOKUP(I437,'EXPENSE DATABASE'!$B$41:$C$65,2,FALSE)","v":{"$error":"#N/A"}},100,{"$f":"VLOOKUP(J437,'EXPENSE DATABASE'!$B$69:$C$168,2,FALSE)","v":{"$error":"#N/A"}},101,{"$f":"VLOOKUP(K437,'EXPENSE DATABASE'!$B$6:$C$35,2,FALSE)","v":{"$error":"#N/A"}},31,{"$f":"VLOOKUP(L437,'EXPENSE DATABASE'!$B$173:$C$176,2,FALSE)","v":{"$error":"#N/A"}},100,0,0,{"$f":"IF(L437=T('EXPENSE DATABASE'!$E$173),O437,0)","v":0},{"$f":"IF(L437=T('EXPENSE DATABASE'!$E$174),O437,0)","v":0},{"$f":"IF(L437=T('EXPENSE DATABASE'!$E$175),O437,0)","v":0},0,424]
[0,0,{"$nulls":12},{"v":0,"d":"$0.00"},{"v":0,"d":"$0.00"},{"v":0,"d":"$0.00"},0,{"$f":"IF(OR(K438='EXPENSE DATABASE'!$V$187,K438='EXPENSE DATABASE'!$V$188,K438='EXPENSE DATABASE'!$V$189,K438='EXPENSE DATABASE'!$V$190,K438='EXPENSE DATABASE'!$V$191,K438='EXPENSE DATABASE'!$V$192,K438='EXPENSE DATABASE'!$V$193,K438='EXPENSE DATABASE'!$V$194,K438='EXPENSE DATABASE'!$X$187,K438='EXPENSE DATABASE'!$X$188,K438='EXPENSE DATABASE'!$X$189,K438='EXPENSE DATABASE'!$X$190,K438='EXPENSE DATABASE'!$X$191,K438='EXPENSE DATABASE'!$X$192,K438='EXPENSE DATABASE'!$X$193,K438='EXPENSE DATABASE'!$X$194,K438='EXPENSE DATABASE'!$Z$187,K438='EXPENSE DATABASE'!$Z$188,K438='EXPENSE DATABASE'!$Z$189,K438='EXPENSE DATABASE'!$Z$190,K438='EXPENSE DATABASE'!$Z$191,K438='EXPENSE DATABASE'!$Z$192,K438='EXPENSE DATABASE'!$Z$193,K438='EXPENSE DATABASE'!$Z$194),O438,\"\")","v":""},{"$f":"IF(OR(K438='EXPENSE DATABASE'!$T$189,K438='EXPENSE DATABASE'!$T$190,K438='EXPENSE DATABASE'!$T$191),O438,\"\")","v":""},{"$f":"VLOOKUP(I438,'EXPENSE DATABASE'!$B$41:$C$65,2,FALSE)","v":{"$error":"#N/A"}},100,{"$f":"VLOOKUP(J438,'EXPENSE DATABASE'!$B$69:$C$168,2,FALSE)","v":{"$error":"#N/A"}},101,{"$f":"VLOOKUP(K438,'EXPENSE DATABASE'!$B$6:$C$35,2,FALSE)","v":{"$error":"#N/A"}},31,{"$f":"VLOOKUP(L438,'EXPENSE DATABASE'!$B$173:$C$176,2,FALSE)","v":{"$error":"#N/A"}},100,0,0,{"$f":"IF(L438=T('EXPENSE DATABASE'!$E$173),O438,0)","v":0},{"$f":"IF(L438=T('EXPENSE DATABASE'!$E$174),O438,0)","v":0},{"$f":"IF(L438=T('EXPENSE DATABASE'!$E$175),O438,0)","v":0},0,425]
[0,0,{"$nulls":12},{"v":0,"d":"$0.00"},{"v":0,"d":"$0.00"},{"v":0,"d":"$0.00"},0,{"$f":"IF(OR(K439='EXPENSE DATABASE'!$V$187,K439='EXPENSE DATABASE'!$V$188,K439='EXPENSE DATABASE'!$V$189,K439='EXPENSE DATABASE'!$V$190,K439='EXPENSE DATABASE'!$V$191,K439='EXPENSE DATABASE'!$V$192,K439='EXPENSE DATABASE'!$V$193,K439='EXPENSE DATABASE'!$V$194,K439='EXPENSE DATABASE'!$X$187,K439='EXPENSE DATABASE'!$X$188,K439='EXPENSE DATABASE'!$X$189,K439='EXPENSE DATABASE'!$X$190,K439='EXPENSE DATABASE'!$X$191,K439='EXPENSE DATABASE'!$X$192,K439='EXPENSE DATABASE'!$X$193,K439='EXPENSE DATABASE'!$X$194,K439='EXPENSE DATABASE'!$Z$187,K439='EXPENSE DATABASE'!$Z$188,K439='EXPENSE DATABASE'!$Z$189,K439='EXPENSE DATABASE'!$Z$190,K439='EXPENSE DATABASE'!$Z$191,K439='EXPENSE DATABASE'!$Z$192,K439='EXPENSE DATABASE'!$Z$193,K439='EXPENSE DATABASE'!$Z$194),O439,\"\")","v":""},{"$f":"IF(OR(K439='EXPENSE DATABASE'!$T$189,K439='EXPENSE DATABASE'!$T$190,K439='EXPENSE DATABASE'!$T$191),O439,\"\")","v":""},{"$f":"VLOOKUP(I439,'EXPENSE DATABASE'!$B$41:$C$65,2,FALSE)","v":{"$error":"#N/A"}},100,{"$f":"VLOOKUP(J439,'EXPENSE DATABASE'!$B$69:$C$168,2,FALSE)","v":{"$error":"#N/A"}},101,{"$f":"VLOOKUP(K439,'EXPENSE DATABASE'!$B$6:$C$35,2,FALSE)","v":{"$error":"#N/A"}},31,{"$f":"VLOOKUP(L439,'EXPENSE DATABASE'!$B$173:$C$176,2,FALSE)","v":{"$error":"#N/A"}},100,0,0,{"$f":"IF(L439=T('EXPENSE DATABASE'!$E$173),O439,0)","v":0},{"$f":"IF(L439=T('EXPENSE DATABASE'!$E$174),O439,0)","v":0},{"$f":"IF(L439=T('EXPENSE DATABASE'!$E$175),O439,0)","v":0},0,426]
[0,0,{"$nulls":12},{"v":0,"d":"$0.00"},{"v":0,"d":"$0.00"},{"v":0,"d":"$0.00"},0,{"$f":"IF(OR(K440='EXPENSE DATABASE'!$V$187,K440='EXPENSE DATABASE'!$V$188,K440='EXPENSE DATABASE'!$V$189,K440='EXPENSE DATABASE'!$V$190,K440='EXPENSE DATABASE'!$V$191,K440='EXPENSE DATABASE'!$V$192,K440='EXPENSE DATABASE'!$V$193,K440='EXPENSE DATABASE'!$V$194,K440='EXPENSE DATABASE'!$X$187,K440='EXPENSE DATABASE'!$X$188,K440='EXPENSE DATABASE'!$X$189,K440='EXPENSE DATABASE'!$X$190,K440='EXPENSE DATABASE'!$X$191,K440='EXPENSE DATABASE'!$X$192,K440='EXPENSE DATABASE'!$X$193,K440='EXPENSE DATABASE'!$X$194,K440='EXPENSE DATABASE'!$Z$187,K440='EXPENSE DATABASE'!$Z$188,K440='EXPENSE DATABASE'!$Z$189,K440='EXPENSE DATABASE'!$Z$190,K440='EXPENSE DATABASE'!$Z$191,K440='EXPENSE DATABASE'!$Z$192,K440='EXPENSE DATABASE'!$Z$193,K440='EXPENSE DATABASE'!$Z$194),O440,\"\")","v":""},{"$f":"IF(OR(K440='EXPENSE DATABASE'!$T$189,K440='EXPENSE DATABASE'!$T$190,K440='EXPENSE DATABASE'!$T$191),O440,\"\")","v":""},{"$f":"VLOOKUP(I440,'EXPENSE DATABASE'!$B$41:$C$65,2,FALSE)","v":{"$error":"#N/A"}},100,{"$f":"VLOOKUP(J440,'EXPENSE DATABASE'!$B$69:$C$168,2,FALSE)","v":{"$error":"#N/A"}},101,{"$f":"VLOOKUP(K440,'EXPENSE DATABASE'!$B$6:$C$35,2,FALSE)","v":{"$error":"#N/A"}},31,{"$f":"VLOOKUP(L440,'EXPENSE DATABASE'!$B$173:$C$176,2,FALSE)","v":{"$error":"#N/A"}},100,0,0,{"$f":"IF(L440=T('EXPENSE DATABASE'!$E$173),O440,0)","v":0},{"$f":"IF(L440=T('EXPENSE DATABASE'!$E$174),O440,0)","v":0},{"$f":"IF(L440=T('EXPENSE DATABASE'!$E$175),O440,0)","v":0},0,427]
[0,0,{"$nulls":12},{"v":0,"d":"$0.00"},{"v":0,"d":"$0.00"},{"v":0,"d":"$0.00"},0,{"$f":"IF(OR(K441='EXPENSE DATABASE'!$V$187,K441='EXPENSE DATABASE'!$V$188,K441='EXPENSE DATABASE'!$V$189,K441='EXPENSE DATABASE'!$V$190,K441='EXPENSE DATABASE'!$V$191,K441='EXPENSE DATABASE'!$V$192,K441='EXPENSE DATABASE'!$V$193,K441='EXPENSE DATABASE'!$V$194,K441='EXPENSE DATABASE'!$X$187,K441='EXPENSE DATABASE'!$X$188,K441='EXPENSE DATABASE'!$X$189,K441='EXPENSE DATABASE'!$X$190,K441='EXPENSE DATABASE'!$X$191,K441='EXPENSE DATABASE'!$X$192,K441='EXPENSE DATABASE'!$X$193,K441='EXPENSE DATABASE'!$X$194,K441='EXPENSE DATABASE'!$Z$187,K441='EXPENSE DATABASE'!$Z$188,K441='EXPENSE DATABASE'!$Z$189,K441='EXPENSE DATABASE'!$Z$190,K441='EXPENSE DATABASE'!$Z$191,K441='EXPENSE DATABASE'!$Z$192,K441='EXPENSE DATABASE'!$Z$193,K441='EXPENSE DATABASE'!$Z$194),O441,\"\")","v":""},{"$f":"IF(OR(K441='EXPENSE DATABASE'!$T$189,K441='EXPENSE DATABASE'!$T$190,K441='EXPENSE DATABASE'!$T$191),O441,\"\")","v":""},{"$f":"VLOOKUP(I441,'EXPENSE DATABASE'!$B$41:$C$65,2,FALSE)","v":{"$error":"#N/A"}},100,{"$f":"VLOOKUP(J441,'EXPENSE DATABASE'!$B$69:$C$168,2,FALSE)","v":{"$error":"#N/A"}},101,{"$f":"VLOOKUP(K441,'EXPENSE DATABASE'!$B$6:$C$35,2,FALSE)","v":{"$error":"#N/A"}},31,{"$f":"VLOOKUP(L441,'EXPENSE DATABASE'!$B$173:$C$176,2,FALSE)","v":{"$error":"#N/A"}},100,0,0,{"$f":"IF(L441=T('EXPENSE DATABASE'!$E$173),O441,0)","v":0},{"$f":"IF(L441=T('EXPENSE DATABASE'!$E$174),O441,0)","v":0},{"$f":"IF(L441=T('EXPENSE DATABASE'!$E$175),O441,0)","v":0},0,428]
[0,0,{"$nulls":12},{"v":0,"d":"$0.00"},{"v":0,"d":"$0.00"},{"v":0,"d":"$0.00"},0,{"$f":"IF(OR(K442='EXPENSE DATABASE'!$V$187,K442='EXPENSE DATABASE'!$V$188,K442='EXPENSE DATABASE'!$V$189,K442='EXPENSE DATABASE'!$V$190,K442='EXPENSE DATABASE'!$V$191,K442='EXPENSE DATABASE'!$V$192,K442='EXPENSE DATABASE'!$V$193,K442='EXPENSE DATABASE'!$V$194,K442='EXPENSE DATABASE'!$X$187,K442='EXPENSE DATABASE'!$X$188,K442='EXPENSE DATABASE'!$X$189,K442='EXPENSE DATABASE'!$X$190,K442='EXPENSE DATABASE'!$X$191,K442='EXPENSE DATABASE'!$X$192,K442='EXPENSE DATABASE'!$X$193,K442='EXPENSE DATABASE'!$X$194,K442='EXPENSE DATABASE'!$Z$187,K442='EXPENSE DATABASE'!$Z$188,K442='EXPENSE DATABASE'!$Z$189,K442='EXPENSE DATABASE'!$Z$190,K442='EXPENSE DATABASE'!$Z$191,K442='EXPENSE DATABASE'!$Z$192,K442='EXPENSE DATABASE'!$Z$193,K442='EXPENSE DATABASE'!$Z$194),O442,\"\")","v":""},{"$f":"IF(OR(K442='EXPENSE DATABASE'!$T$189,K442='EXPENSE DATABASE'!$T$190,K442='EXPENSE DATABASE'!$T$191),O442,\"\")","v":""},{"$f":"VLOOKUP(I442,'EXPENSE DATABASE'!$B$41:$C$65,2,FALSE)","v":{"$error":"#N/A"}},100,{"$f":"VLOOKUP(J442,'EXPENSE DATABASE'!$B$69:$C$168,2,FALSE)","v":{"$error":"#N/A"}},101,{"$f":"VLOOKUP(K442,'EXPENSE DATABASE'!$B$6:$C$35,2,FALSE)","v":{"$error":"#N/A"}},31,{"$f":"VLOOKUP(L442,'EXPENSE DATABASE'!$B$173:$C$176,2,FALSE)","v":{"$error":"#N/A"}},100,0,0,{"$f":"IF(L442=T('EXPENSE DATABASE'!$E$173),O442,0)","v":0},{"$f":"IF(L442=T('EXPENSE DATABASE'!$E$174),O442,0)","v":0},{"$f":"IF(L442=T('EXPENSE DATABASE'!$E$175),O442,0)","v":0},0,429]
[0,0,{"$nulls":12},{"v":0,"d":"$0.00"},{"v":0,"d":"$0.00"},{"v":0,"d":"$0.00"},0,{"$f":"IF(OR(K443='EXPENSE DATABASE'!$V$187,K443='EXPENSE DATABASE'!$V$188,K443='EXPENSE DATABASE'!$V$189,K443='EXPENSE DATABASE'!$V$190,K443='EXPENSE DATABASE'!$V$191,K443='EXPENSE DATABASE'!$V$192,K443='EXPENSE DATABASE'!$V$193,K443='EXPENSE DATABASE'!$V$194,K443='EXPENSE DATABASE'!$X$187,K443='EXPENSE DATABASE'!$X$188,K443='EXPENSE DATABASE'!$X$189,K443='EXPENSE DATABASE'!$X$190,K443='EXPENSE DATABASE'!$X$191,K443='EXPENSE DATABASE'!$X$192,K443='EXPENSE DATABASE'!$X$193,K443='EXPENSE DATABASE'!$X$194,K443='EXPENSE DATABASE'!$Z$187,K443='EXPENSE DATABASE'!$Z$188,K443='EXPENSE DATABASE'!$Z$189,K443='EXPENSE DATABASE'!$Z$190,K443='EXPENSE DATABASE'!$Z$191,K443='EXPENSE DATABASE'!$Z$192,K443='EXPENSE DATABASE'!$Z$193,K443='EXPENSE DATABASE'!$Z$194),O443,\"\")","v":""},{"$f":"IF(OR(K443='EXPENSE DATABASE'!$T$189,K443='EXPENSE DATABASE'!$T$190,K443='EXPENSE DATABASE'!$T$191),O443,\"\")","v":""},{"$f":"VLOOKUP(I443,'EXPENSE DATABASE'!$B$41:$C$65,2,FALSE)","v":{"$error":"#N/A"}},100,{"$f":"VLOOKUP(J443,'EXPENSE DATABASE'!$B$69:$C$168,2,FALSE)","v":{"$error":"#N/A"}},101,{"$f":"VLOOKUP(K443,'EXPENSE DATABASE'!$B$6:$C$35,2,FALSE)","v":{"$error":"#N/A"}},31,{"$f":"VLOOKUP(L443,'EXPENSE DATABASE'!$B$173:$C$176,2,FALSE)","v":{"$error":"#N/A"}},100,0,0,{"$f":"IF(L443=T('EXPENSE DATABASE'!$E$173),O443,0)","v":0},{"$f":"IF(L443=T('EXPENSE DATABASE'!$E$174),O443,0)","v":0},{"$f":"IF(L443=T('EXPENSE DATABASE'!$E$175),O443,0)","v":0},0,430]
[0,0,{"$nulls":12},{"v":0,"d":"$0.00"},{"v":0,"d":"$0.00"},{"v":0,"d":"$0.00"},0,{"$f":"IF(OR(K444='EXPENSE DATABASE'!$V$187,K444='EXPENSE DATABASE'!$V$188,K444='EXPENSE DATABASE'!$V$189,K444='EXPENSE DATABASE'!$V$190,K444='EXPENSE DATABASE'!$V$191,K444='EXPENSE DATABASE'!$V$192,K444='EXPENSE DATABASE'!$V$193,K444='EXPENSE DATABASE'!$V$194,K444='EXPENSE DATABASE'!$X$187,K444='EXPENSE DATABASE'!$X$188,K444='EXPENSE DATABASE'!$X$189,K444='EXPENSE DATABASE'!$X$190,K444='EXPENSE DATABASE'!$X$191,K444='EXPENSE DATABASE'!$X$192,K444='EXPENSE DATABASE'!$X$193,K444='EXPENSE DATABASE'!$X$194,K444='EXPENSE DATABASE'!$Z$187,K444='EXPENSE DATABASE'!$Z$188,K444='EXPENSE DATABASE'!$Z$189,K444='EXPENSE DATABASE'!$Z$190,K444='EXPENSE DATABASE'!$Z$191,K444='EXPENSE DATABASE'!$Z$192,K444='EXPENSE DATABASE'!$Z$193,K444='EXPENSE DATABASE'!$Z$194),O444,\"\")","v":""},{"$f":"IF(OR(K444='EXPENSE DATABASE'!$T$189,K444='EXPENSE DATABASE'!$T$190,K444='EXPENSE DATABASE'!$T$191),O444,\"\")","v":""},{"$f":"VLOOKUP(I444,'EXPENSE DATABASE'!$B$41:$C$65,2,FALSE)","v":{"$error":"#N/A"}},100,{"$f":"VLOOKUP(J444,'EXPENSE DATABASE'!$B$69:$C$168,2,FALSE)","v":{"$error":"#N/A"}},101,{"$f":"VLOOKUP(K444,'EXPENSE DATABASE'!$B$6:$C$35,2,FALSE)","v":{"$error":"#N/A"}},31,{"$f":"VLOOKUP(L444,'EXPENSE DATABASE'!$B$173:$C$176,2,FALSE)","v":{"$error":"#N/A"}},100,0,0,{"$f":"IF(L444=T('EXPENSE DATABASE'!$E$173),O444,0)","v":0},{"$f":"IF(L444=T('EXPENSE DATABASE'!$E$174),O444,0)","v":0},{"$f":"IF(L444=T('EXPENSE DATABASE'!$E$175),O444,0)","v":0},0,431]
[0,0,{"$nulls":12},{"v":0,"d":"$0.00"},{"v":0,"d":"$0.00"},{"v":0,"d":"$0.00"},0,{"$f":"IF(OR(K445='EXPENSE DATABASE'!$V$187,K445='EXPENSE DATABASE'!$V$188,K445='EXPENSE DATABASE'!$V$189,K445='EXPENSE DATABASE'!$V$190,K445='EXPENSE DATABASE'!$V$191,K445='EXPENSE DATABASE'!$V$192,K445='EXPENSE DATABASE'!$V$193,K445='EXPENSE DATABASE'!$V$194,K445='EXPENSE DATABASE'!$X$187,K445='EXPENSE DATABASE'!$X$188,K445='EXPENSE DATABASE'!$X$189,K445='EXPENSE DATABASE'!$X$190,K445='EXPENSE DATABASE'!$X$191,K445='EXPENSE DATABASE'!$X$192,K445='EXPENSE DATABASE'!$X$193,K445='EXPENSE DATABASE'!$X$194,K445='EXPENSE DATABASE'!$Z$187,K445='EXPENSE DATABASE'!$Z$188,K445='EXPENSE DATABASE'!$Z$189,K445='EXPENSE DATABASE'!$Z$190,K445='EXPENSE DATABASE'!$Z$191,K445='EXPENSE DATABASE'!$Z$192,K445='EXPENSE DATABASE'!$Z$193,K445='EXPENSE DATABASE'!$Z$194),O445,\"\")","v":""},{"$f":"IF(OR(K445='EXPENSE DATABASE'!$T$189,K445='EXPENSE DATABASE'!$T$190,K445='EXPENSE DATABASE'!$T$191),O445,\"\")","v":""},{"$f":"VLOOKUP(I445,'EXPENSE DATABASE'!$B$41:$C$65,2,FALSE)","v":{"$error":"#N/A"}},100,{"$f":"VLOOKUP(J445,'EXPENSE DATABASE'!$B$69:$C$168,2,FALSE)","v":{"$error":"#N/A"}},101,{"$f":"VLOOKUP(K445,'EXPENSE DATABASE'!$B$6:$C$35,2,FALSE)","v":{"$error":"#N/A"}},31,{"$f":"VLOOKUP(L445,'EXPENSE DATABASE'!$B$173:$C$176,2,FALSE)","v":{"$error":"#N/A"}},100,0,0,{"$f":"IF(L445=T('EXPENSE DATABASE'!$E$173),O445,0)","v":0},{"$f":"IF(L445=T('EXPENSE DATABASE'!$E$174),O445,0)","v":0},{"$f":"IF(L445=T('EXPENSE DATABASE'!$E$175),O445,0)","v":0},0,432]
[0,0,{"$nulls":12},{"v":0,"d":"$0.00"},{"v":0,"d":"$0.00"},{"v":0,"d":"$0.00"},0,{"$f":"IF(OR(K446='EXPENSE DATABASE'!$V$187,K446='EXPENSE DATABASE'!$V$188,K446='EXPENSE DATABASE'!$V$189,K446='EXPENSE DATABASE'!$V$190,K446='EXPENSE DATABASE'!$V$191,K446='EXPENSE DATABASE'!$V$192,K446='EXPENSE DATABASE'!$V$193,K446='EXPENSE DATABASE'!$V$194,K446='EXPENSE DATABASE'!$X$187,K446='EXPENSE DATABASE'!$X$188,K446='EXPENSE DATABASE'!$X$189,K446='EXPENSE DATABASE'!$X$190,K446='EXPENSE DATABASE'!$X$191,K446='EXPENSE DATABASE'!$X$192,K446='EXPENSE DATABASE'!$X$193,K446='EXPENSE DATABASE'!$X$194,K446='EXPENSE DATABASE'!$Z$187,K446='EXPENSE DATABASE'!$Z$188,K446='EXPENSE DATABASE'!$Z$189,K446='EXPENSE DATABASE'!$Z$190,K446='EXPENSE DATABASE'!$Z$191,K446='EXPENSE DATABASE'!$Z$192,K446='EXPENSE DATABASE'!$Z$193,K446='EXPENSE DATABASE'!$Z$194),O446,\"\")","v":""},{"$f":"IF(OR(K446='EXPENSE DATABASE'!$T$189,K446='EXPENSE DATABASE'!$T$190,K446='EXPENSE DATABASE'!$T$191),O446,\"\")","v":""},{"$f":"VLOOKUP(I446,'EXPENSE DATABASE'!$B$41:$C$65,2,FALSE)","v":{"$error":"#N/A"}},100,{"$f":"VLOOKUP(J446,'EXPENSE DATABASE'!$B$69:$C$168,2,FALSE)","v":{"$error":"#N/A"}},101,{"$f":"VLOOKUP(K446,'EXPENSE DATABASE'!$B$6:$C$35,2,FALSE)","v":{"$error":"#N/A"}},31,{"$f":"VLOOKUP(L446,'EXPENSE DATABASE'!$B$173:$C$176,2,FALSE)","v":{"$error":"#N/A"}},100,0,0,{"$f":"IF(L446=T('EXPENSE DATABASE'!$E$173),O446,0)","v":0},{"$f":"IF(L446=T('EXPENSE DATABASE'!$E$174),O446,0)","v":0},{"$f":"IF(L446=T('EXPENSE DATABASE'!$E$175),O446,0)","v":0},0,433]
[0,0,{"$nulls":12},{"v":0,"d":"$0.00"},{"v":0,"d":"$0.00"},{"v":0,"d":"$0.00"},0,{"$f":"IF(OR(K447='EXPENSE DATABASE'!$V$187,K447='EXPENSE DATABASE'!$V$188,K447='EXPENSE DATABASE'!$V$189,K447='EXPENSE DATABASE'!$V$190,K447='EXPENSE DATABASE'!$V$191,K447='EXPENSE DATABASE'!$V$192,K447='EXPENSE DATABASE'!$V$193,K447='EXPENSE DATABASE'!$V$194,K447='EXPENSE DATABASE'!$X$187,K447='EXPENSE DATABASE'!$X$188,K447='EXPENSE DATABASE'!$X$189,K447='EXPENSE DATABASE'!$X$190,K447='EXPENSE DATABASE'!$X$191,K447='EXPENSE DATABASE'!$X$192,K447='EXPENSE DATABASE'!$X$193,K447='EXPENSE DATABASE'!$X$194,K447='EXPENSE DATABASE'!$Z$187,K447='EXPENSE DATABASE'!$Z$188,K447='EXPENSE DATABASE'!$Z$189,K447='EXPENSE DATABASE'!$Z$190,K447='EXPENSE DATABASE'!$Z$191,K447='EXPENSE DATABASE'!$Z$192,K447='EXPENSE DATABASE'!$Z$193,K447='EXPENSE DATABASE'!$Z$194),O447,\"\")","v":""},{"$f":"IF(OR(K447='EXPENSE DATABASE'!$T$189,K447='EXPENSE DATABASE'!$T$190,K447='EXPENSE DATABASE'!$T$191),O447,\"\")","v":""},{"$f":"VLOOKUP(I447,'EXPENSE DATABASE'!$B$41:$C$65,2,FALSE)","v":{"$error":"#N/A"}},100,{"$f":"VLOOKUP(J447,'EXPENSE DATABASE'!$B$69:$C$168,2,FALSE)","v":{"$error":"#N/A"}},101,{"$f":"VLOOKUP(K447,'EXPENSE DATABASE'!$B$6:$C$35,2,FALSE)","v":{"$error":"#N/A"}},31,{"$f":"VLOOKUP(L447,'EXPENSE DATABASE'!$B$173:$C$176,2,FALSE)","v":{"$error":"#N/A"}},100,0,0,{"$f":"IF(L447=T('EXPENSE DATABASE'!$E$173),O447,0)","v":0},{"$f":"IF(L447=T('EXPENSE DATABASE'!$E$174),O447,0)","v":0},{"$f":"IF(L447=T('EXPENSE DATABASE'!$E$175),O447,0)","v":0},0,434]
[0,0,{"$nulls":12},{"v":0,"d":"$0.00"},{"v":0,"d":"$0.00"},{"v":0,"d":"$0.00"},0,{"$f":"IF(OR(K448='EXPENSE DATABASE'!$V$187,K448='EXPENSE DATABASE'!$V$188,K448='EXPENSE DATABASE'!$V$189,K448='EXPENSE DATABASE'!$V$190,K448='EXPENSE DATABASE'!$V$191,K448='EXPENSE DATABASE'!$V$192,K448='EXPENSE DATABASE'!$V$193,K448='EXPENSE DATABASE'!$V$194,K448='EXPENSE DATABASE'!$X$187,K448='EXPENSE DATABASE'!$X$188,K448='EXPENSE DATABASE'!$X$189,K448='EXPENSE DATABASE'!$X$190,K448='EXPENSE DATABASE'!$X$191,K448='EXPENSE DATABASE'!$X$192,K448='EXPENSE DATABASE'!$X$193,K448='EXPENSE DATABASE'!$X$194,K448='EXPENSE DATABASE'!$Z$187,K448='EXPENSE DATABASE'!$Z$188,K448='EXPENSE DATABASE'!$Z$189,K448='EXPENSE DATABASE'!$Z$190,K448='EXPENSE DATABASE'!$Z$191,K448='EXPENSE DATABASE'!$Z$192,K448='EXPENSE DATABASE'!$Z$193,K448='EXPENSE DATABASE'!$Z$194),O448,\"\")","v":""},{"$f":"IF(OR(K448='EXPENSE DATABASE'!$T$189,K448='EXPENSE DATABASE'!$T$190,K448='EXPENSE DATABASE'!$T$191),O448,\"\")","v":""},{"$f":"VLOOKUP(I448,'EXPENSE DATABASE'!$B$41:$C$65,2,FALSE)","v":{"$error":"#N/A"}},100,{"$f":"VLOOKUP(J448,'EXPENSE DATABASE'!$B$69:$C$168,2,FALSE)","v":{"$error":"#N/A"}},101,{"$f":"VLOOKUP(K448,'EXPENSE DATABASE'!$B$6:$C$35,2,FALSE)","v":{"$error":"#N/A"}},31,{"$f":"VLOOKUP(L448,'EXPENSE DATABASE'!$B$173:$C$176,2,FALSE)","v":{"$error":"#N/A"}},100,0,0,{"$f":"IF(L448=T('EXPENSE DATABASE'!$E$173),O448,0)","v":0},{"$f":"IF(L448=T('EXPENSE DATABASE'!$E$174),O448,0)","v":0},{"$f":"IF(L448=T('EXPENSE DATABASE'!$E$175),O448,0)","v":0},0,435]
[0,0,{"$nulls":12},{"v":0,"d":"$0.00"},{"v":0,"d":"$0.00"},{"v":0,"d":"$0.00"},0,{"$f":"IF(OR(K449='EXPENSE DATABASE'!$V$187,K449='EXPENSE DATABASE'!$V$188,K449='EXPENSE DATABASE'!$V$189,K449='EXPENSE DATABASE'!$V$190,K449='EXPENSE DATABASE'!$V$191,K449='EXPENSE DATABASE'!$V$192,K449='EXPENSE DATABASE'!$V$193,K449='EXPENSE DATABASE'!$V$194,K449='EXPENSE DATABASE'!$X$187,K449='EXPENSE DATABASE'!$X$188,K449='EXPENSE DATABASE'!$X$189,K449='EXPENSE DATABASE'!$X$190,K449='EXPENSE DATABASE'!$X$191,K449='EXPENSE DATABASE'!$X$192,K449='EXPENSE DATABASE'!$X$193,K449='EXPENSE DATABASE'!$X$194,K449='EXPENSE DATABASE'!$Z$187,K449='EXPENSE DATABASE'!$Z$188,K449='EXPENSE DATABASE'!$Z$189,K449='EXPENSE DATABASE'!$Z$190,K449='EXPENSE DATABASE'!$Z$191,K449='EXPENSE DATABASE'!$Z$192,K449='EXPENSE DATABASE'!$Z$193,K449='EXPENSE DATABASE'!$Z$194),O449,\"\")","v":""},{"$f":"IF(OR(K449='EXPENSE DATABASE'!$T$189,K449='EXPENSE DATABASE'!$T$190,K449='EXPENSE DATABASE'!$T$191),O449,\"\")","v":""},{"$f":"VLOOKUP(I449,'EXPENSE DATABASE'!$B$41:$C$65,2,FALSE)","v":{"$error":"#N/A"}},100,{"$f":"VLOOKUP(J449,'EXPENSE DATABASE'!$B$69:$C$168,2,FALSE)","v":{"$error":"#N/A"}},101,{"$f":"VLOOKUP(K449,'EXPENSE DATABASE'!$B$6:$C$35,2,FALSE)","v":{"$error":"#N/A"}},31,{"$f":"VLOOKUP(L449,'EXPENSE DATABASE'!$B$173:$C$176,2,FALSE)","v":{"$error":"#N/A"}},100,0,0,{"$f":"IF(L449=T('EXPENSE DATABASE'!$E$173),O449,0)","v":0},{"$f":"IF(L449=T('EXPENSE DATABASE'!$E$174),O449,0)","v":0},{"$f":"IF(L449=T('EXPENSE DATABASE'!$E$175),O449,0)","v":0},0,436]
[0,0,{"$nulls":12},{"v":0,"d":"$0.00"},{"v":0,"d":"$0.00"},{"v":0,"d":"$0.00"},0,{"$f":"IF(OR(K450='EXPENSE DATABASE'!$V$187,K450='EXPENSE DATABASE'!$V$188,K450='EXPENSE DATABASE'!$V$189,K450='EXPENSE DATABASE'!$V$190,K450='EXPENSE DATABASE'!$V$191,K450='EXPENSE DATABASE'!$V$192,K450='EXPENSE DATABASE'!$V$193,K450='EXPENSE DATABASE'!$V$194,K450='EXPENSE DATABASE'!$X$187,K450='EXPENSE DATABASE'!$X$188,K450='EXPENSE DATABASE'!$X$189,K450='EXPENSE DATABASE'!$X$190,K450='EXPENSE DATABASE'!$X$191,K450='EXPENSE DATABASE'!$X$192,K450='EXPENSE DATABASE'!$X$193,K450='EXPENSE DATABASE'!$X$194,K450='EXPENSE DATABASE'!$Z$187,K450='EXPENSE DATABASE'!$Z$188,K450='EXPENSE DATABASE'!$Z$189,K450='EXPENSE DATABASE'!$Z$190,K450='EXPENSE DATABASE'!$Z$191,K450='EXPENSE DATABASE'!$Z$192,K450='EXPENSE DATABASE'!$Z$193,K450='EXPENSE DATABASE'!$Z$194),O450,\"\")","v":""},{"$f":"IF(OR(K450='EXPENSE DATABASE'!$T$189,K450='EXPENSE DATABASE'!$T$190,K450='EXPENSE DATABASE'!$T$191),O450,\"\")","v":""},{"$f":"VLOOKUP(I450,'EXPENSE DATABASE'!$B$41:$C$65,2,FALSE)","v":{"$error":"#N/A"}},100,{"$f":"VLOOKUP(J450,'EXPENSE DATABASE'!$B$69:$C$168,2,FALSE)","v":{"$error":"#N/A"}},101,{"$f":"VLOOKUP(K450,'EXPENSE DATABASE'!$B$6:$C$35,2,FALSE)","v":{"$error":"#N/A"}},31,{"$f":"VLOOKUP(L450,'EXPENSE DATABASE'!$B$173:$C$176,2,FALSE)","v":{"$error":"#N/A"}},100,0,0,{"$f":"IF(L450=T('EXPENSE DATABASE'!$E$173),O450,0)","v":0},{"$f":"IF(L450=T('EXPENSE DATABASE'!$E$174),O450,0)","v":0},{"$f":"IF(L450=T('EXPENSE DATABASE'!$E$175),O450,0)","v":0},0,437]
[0,0,{"$nulls":12},{"v":0,"d":"$0.00"},{"v":0,"d":"$0.00"},{"v":0,"d":"$0.00"},0,{"$f":"IF(OR(K451='EXPENSE DATABASE'!$V$187,K451='EXPENSE DATABASE'!$V$188,K451='EXPENSE DATABASE'!$V$189,K451='EXPENSE DATABASE'!$V$190,K451='EXPENSE DATABASE'!$V$191,K451='EXPENSE DATABASE'!$V$192,K451='EXPENSE DATABASE'!$V$193,K451='EXPENSE DATABASE'!$V$194,K451='EXPENSE DATABASE'!$X$187,K451='EXPENSE DATABASE'!$X$188,K451='EXPENSE DATABASE'!$X$189,K451='EXPENSE DATABASE'!$X$190,K451='EXPENSE DATABASE'!$X$191,K451='EXPENSE DATABASE'!$X$192,K451='EXPENSE DATABASE'!$X$193,K451='EXPENSE DATABASE'!$X$194,K451='EXPENSE DATABASE'!$Z$187,K451='EXPENSE DATABASE'!$Z$188,K451='EXPENSE DATABASE'!$Z$189,K451='EXPENSE DATABASE'!$Z$190,K451='EXPENSE DATABASE'!$Z$191,K451='EXPENSE DATABASE'!$Z$192,K451='EXPENSE DATABASE'!$Z$193,K451='EXPENSE DATABASE'!$Z$194),O451,\"\")","v":""},{"$f":"IF(OR(K451='EXPENSE DATABASE'!$T$189,K451='EXPENSE DATABASE'!$T$190,K451='EXPENSE DATABASE'!$T$191),O451,\"\")","v":""},{"$f":"VLOOKUP(I451,'EXPENSE DATABASE'!$B$41:$C$65,2,FALSE)","v":{"$error":"#N/A"}},100,{"$f":"VLOOKUP(J451,'EXPENSE DATABASE'!$B$69:$C$168,2,FALSE)","v":{"$error":"#N/A"}},101,{"$f":"VLOOKUP(K451,'EXPENSE DATABASE'!$B$6:$C$35,2,FALSE)","v":{"$error":"#N/A"}},31,{"$f":"VLOOKUP(L451,'EXPENSE DATABASE'!$B$173:$C$176,2,FALSE)","v":{"$error":"#N/A"}},100,0,0,{"$f":"IF(L451=T('EXPENSE DATABASE'!$E$173),O451,0)","v":0},{"$f":"IF(L451=T('EXPENSE DATABASE'!$E$174),O451,0)","v":0},{"$f":"IF(L451=T('EXPENSE DATABASE'!$E$175),O451,0)","v":0},0,438]
[0,0,{"$nulls":12},{"v":0,"d":"$0.00"},{"v":0,"d":"$0.00"},{"v":0,"d":"$0.00"},0,{"$f":"IF(OR(K452='EXPENSE DATABASE'!$V$187,K452='EXPENSE DATABASE'!$V$188,K452='EXPENSE DATABASE'!$V$189,K452='EXPENSE DATABASE'!$V$190,K452='EXPENSE DATABASE'!$V$191,K452='EXPENSE DATABASE'!$V$192,K452='EXPENSE DATABASE'!$V$193,K452='EXPENSE DATABASE'!$V$194,K452='EXPENSE DATABASE'!$X$187,K452='EXPENSE DATABASE'!$X$188,K452='EXPENSE DATABASE'!$X$189,K452='EXPENSE DATABASE'!$X$190,K452='EXPENSE DATABASE'!$X$191,K452='EXPENSE DATABASE'!$X$192,K452='EXPENSE DATABASE'!$X$193,K452='EXPENSE DATABASE'!$X$194,K452='EXPENSE DATABASE'!$Z$187,K452='EXPENSE DATABASE'!$Z$188,K452='EXPENSE DATABASE'!$Z$189,K452='EXPENSE DATABASE'!$Z$190,K452='EXPENSE DATABASE'!$Z$191,K452='EXPENSE DATABASE'!$Z$192,K452='EXPENSE DATABASE'!$Z$193,K452='EXPENSE DATABASE'!$Z$194),O452,\"\")","v":""},{"$f":"IF(OR(K452='EXPENSE DATABASE'!$T$189,K452='EXPENSE DATABASE'!$T$190,K452='EXPENSE DATABASE'!$T$191),O452,\"\")","v":""},{"$f":"VLOOKUP(I452,'EXPENSE DATABASE'!$B$41:$C$65,2,FALSE)","v":{"$error":"#N/A"}},100,{"$f":"VLOOKUP(J452,'EXPENSE DATABASE'!$B$69:$C$168,2,FALSE)","v":{"$error":"#N/A"}},101,{"$f":"VLOOKUP(K452,'EXPENSE DATABASE'!$B$6:$C$35,2,FALSE)","v":{"$error":"#N/A"}},31,{"$f":"VLOOKUP(L452,'EXPENSE DATABASE'!$B$173:$C$176,2,FALSE)","v":{"$error":"#N/A"}},100,0,0,{"$f":"IF(L452=T('EXPENSE DATABASE'!$E$173),O452,0)","v":0},{"$f":"IF(L452=T('EXPENSE DATABASE'!$E$174),O452,0)","v":0},{"$f":"IF(L452=T('EXPENSE DATABASE'!$E$175),O452,0)","v":0},0,439]
[0,0,{"$nulls":12},{"v":0,"d":"$0.00"},{"v":0,"d":"$0.00"},{"v":0,"d":"$0.00"},0,{"$f":"IF(OR(K453='EXPENSE DATABASE'!$V$187,K453='EXPENSE DATABASE'!$V$188,K453='EXPENSE DATABASE'!$V$189,K453='EXPENSE DATABASE'!$V$190,K453='EXPENSE DATABASE'!$V$191,K453='EXPENSE DATABASE'!$V$192,K453='EXPENSE DATABASE'!$V$193,K453='EXPENSE DATABASE'!$V$194,K453='EXPENSE DATABASE'!$X$187,K453='EXPENSE DATABASE'!$X$188,K453='EXPENSE DATABASE'!$X$189,K453='EXPENSE DATABASE'!$X$190,K453='EXPENSE DATABASE'!$X$191,K453='EXPENSE DATABASE'!$X$192,K453='EXPENSE DATABASE'!$X$193,K453='EXPENSE DATABASE'!$X$194,K453='EXPENSE DATABASE'!$Z$187,K453='EXPENSE DATABASE'!$Z$188,K453='EXPENSE DATABASE'!$Z$189,K453='EXPENSE DATABASE'!$Z$190,K453='EXPENSE DATABASE'!$Z$191,K453='EXPENSE DATABASE'!$Z$192,K453='EXPENSE DATABASE'!$Z$193,K453='EXPENSE DATABASE'!$Z$194),O453,\"\")","v":""},{"$f":"IF(OR(K453='EXPENSE DATABASE'!$T$189,K453='EXPENSE DATABASE'!$T$190,K453='EXPENSE DATABASE'!$T$191),O453,\"\")","v":""},{"$f":"VLOOKUP(I453,'EXPENSE DATABASE'!$B$41:$C$65,2,FALSE)","v":{"$error":"#N/A"}},100,{"$f":"VLOOKUP(J453,'EXPENSE DATABASE'!$B$69:$C$168,2,FALSE)","v":{"$error":"#N/A"}},101,{"$f":"VLOOKUP(K453,'EXPENSE DATABASE'!$B$6:$C$35,2,FALSE)","v":{"$error":"#N/A"}},31,{"$f":"VLOOKUP(L453,'EXPENSE DATABASE'!$B$173:$C$176,2,FALSE)","v":{"$error":"#N/A"}},100,0,0,{"$f":"IF(L453=T('EXPENSE DATABASE'!$E$173),O453,0)","v":0},{"$f":"IF(L453=T('EXPENSE DATABASE'!$E$174),O453,0)","v":0},{"$f":"IF(L453=T('EXPENSE DATABASE'!$E$175),O453,0)","v":0},0,440]
[0,0,{"$nulls":12},{"v":0,"d":"$0.00"},{"v":0,"d":"$0.00"},{"v":0,"d":"$0.00"},0,{"$f":"IF(OR(K454='EXPENSE DATABASE'!$V$187,K454='EXPENSE DATABASE'!$V$188,K454='EXPENSE DATABASE'!$V$189,K454='EXPENSE DATABASE'!$V$190,K454='EXPENSE DATABASE'!$V$191,K454='EXPENSE DATABASE'!$V$192,K454='EXPENSE DATABASE'!$V$193,K454='EXPENSE DATABASE'!$V$194,K454='EXPENSE DATABASE'!$X$187,K454='EXPENSE DATABASE'!$X$188,K454='EXPENSE DATABASE'!$X$189,K454='EXPENSE DATABASE'!$X$190,K454='EXPENSE DATABASE'!$X$191,K454='EXPENSE DATABASE'!$X$192,K454='EXPENSE DATABASE'!$X$193,K454='EXPENSE DATABASE'!$X$194,K454='EXPENSE DATABASE'!$Z$187,K454='EXPENSE DATABASE'!$Z$188,K454='EXPENSE DATABASE'!$Z$189,K454='EXPENSE DATABASE'!$Z$190,K454='EXPENSE DATABASE'!$Z$191,K454='EXPENSE DATABASE'!$Z$192,K454='EXPENSE DATABASE'!$Z$193,K454='EXPENSE DATABASE'!$Z$194),O454,\"\")","v":""},{"$f":"IF(OR(K454='EXPENSE DATABASE'!$T$189,K454='EXPENSE DATABASE'!$T$190,K454='EXPENSE DATABASE'!$T$191),O454,\"\")","v":""},{"$f":"VLOOKUP(I454,'EXPENSE DATABASE'!$B$41:$C$65,2,FALSE)","v":{"$error":"#N/A"}},100,{"$f":"VLOOKUP(J454,'EXPENSE DATABASE'!$B$69:$C$168,2,FALSE)","v":{"$error":"#N/A"}},101,{"$f":"VLOOKUP(K454,'EXPENSE DATABASE'!$B$6:$C$35,2,FALSE)","v":{"$error":"#N/A"}},31,{"$f":"VLOOKUP(L454,'EXPENSE DATABASE'!$B$173:$C$176,2,FALSE)","v":{"$error":"#N/A"}},100,0,0,{"$f":"IF(L454=T('EXPENSE DATABASE'!$E$173),O454,0)","v":0},{"$f":"IF(L454=T('EXPENSE DATABASE'!$E$174),O454,0)","v":0},{"$f":"IF(L454=T('EXPENSE DATABASE'!$E$175),O454,0)","v":0},0,441]
[0,0,{"$nulls":12},{"v":0,"d":"$0.00"},{"v":0,"d":"$0.00"},{"v":0,"d":"$0.00"},0,{"$f":"IF(OR(K455='EXPENSE DATABASE'!$V$187,K455='EXPENSE DATABASE'!$V$188,K455='EXPENSE DATABASE'!$V$189,K455='EXPENSE DATABASE'!$V$190,K455='EXPENSE DATABASE'!$V$191,K455='EXPENSE DATABASE'!$V$192,K455='EXPENSE DATABASE'!$V$193,K455='EXPENSE DATABASE'!$V$194,K455='EXPENSE DATABASE'!$X$187,K455='EXPENSE DATABASE'!$X$188,K455='EXPENSE DATABASE'!$X$189,K455='EXPENSE DATABASE'!$X$190,K455='EXPENSE DATABASE'!$X$191,K455='EXPENSE DATABASE'!$X$192,K455='EXPENSE DATABASE'!$X$193,K455='EXPENSE DATABASE'!$X$194,K455='EXPENSE DATABASE'!$Z$187,K455='EXPENSE DATABASE'!$Z$188,K455='EXPENSE DATABASE'!$Z$189,K455='EXPENSE DATABASE'!$Z$190,K455='EXPENSE DATABASE'!$Z$191,K455='EXPENSE DATABASE'!$Z$192,K455='EXPENSE DATABASE'!$Z$193,K455='EXPENSE DATABASE'!$Z$194),O455,\"\")","v":""},{"$f":"IF(OR(K455='EXPENSE DATABASE'!$T$189,K455='EXPENSE DATABASE'!$T$190,K455='EXPENSE DATABASE'!$T$191),O455,\"\")","v":""},{"$f":"VLOOKUP(I455,'EXPENSE DATABASE'!$B$41:$C$65,2,FALSE)","v":{"$error":"#N/A"}},100,{"$f":"VLOOKUP(J455,'EXPENSE DATABASE'!$B$69:$C$168,2,FALSE)","v":{"$error":"#N/A"}},101,{"$f":"VLOOKUP(K455,'EXPENSE DATABASE'!$B$6:$C$35,2,FALSE)","v":{"$error":"#N/A"}},31,{"$f":"VLOOKUP(L455,'EXPENSE DATABASE'!$B$173:$C$176,2,FALSE)","v":{"$error":"#N/A"}},100,0,0,{"$f":"IF(L455=T('EXPENSE DATABASE'!$E$173),O455,0)","v":0},{"$f":"IF(L455=T('EXPENSE DATABASE'!$E$174),O455,0)","v":0},{"$f":"IF(L455=T('EXPENSE DATABASE'!$E$175),O455,0)","v":0},0,442]
[0,0,{"$nulls":12},{"v":0,"d":"$0.00"},{"v":0,"d":"$0.00"},{"v":0,"d":"$0.00"},0,{"$f":"IF(OR(K456='EXPENSE DATABASE'!$V$187,K456='EXPENSE DATABASE'!$V$188,K456='EXPENSE DATABASE'!$V$189,K456='EXPENSE DATABASE'!$V$190,K456='EXPENSE DATABASE'!$V$191,K456='EXPENSE DATABASE'!$V$192,K456='EXPENSE DATABASE'!$V$193,K456='EXPENSE DATABASE'!$V$194,K456='EXPENSE DATABASE'!$X$187,K456='EXPENSE DATABASE'!$X$188,K456='EXPENSE DATABASE'!$X$189,K456='EXPENSE DATABASE'!$X$190,K456='EXPENSE DATABASE'!$X$191,K456='EXPENSE DATABASE'!$X$192,K456='EXPENSE DATABASE'!$X$193,K456='EXPENSE DATABASE'!$X$194,K456='EXPENSE DATABASE'!$Z$187,K456='EXPENSE DATABASE'!$Z$188,K456='EXPENSE DATABASE'!$Z$189,K456='EXPENSE DATABASE'!$Z$190,K456='EXPENSE DATABASE'!$Z$191,K456='EXPENSE DATABASE'!$Z$192,K456='EXPENSE DATABASE'!$Z$193,K456='EXPENSE DATABASE'!$Z$194),O456,\"\")","v":""},{"$f":"IF(OR(K456='EXPENSE DATABASE'!$T$189,K456='EXPENSE DATABASE'!$T$190,K456='EXPENSE DATABASE'!$T$191),O456,\"\")","v":""},{"$f":"VLOOKUP(I456,'EXPENSE DATABASE'!$B$41:$C$65,2,FALSE)","v":{"$error":"#N/A"}},100,{"$f":"VLOOKUP(J456,'EXPENSE DATABASE'!$B$69:$C$168,2,FALSE)","v":{"$error":"#N/A"}},101,{"$f":"VLOOKUP(K456,'EXPENSE DATABASE'!$B$6:$C$35,2,FALSE)","v":{"$error":"#N/A"}},31,{"$f":"VLOOKUP(L456,'EXPENSE DATABASE'!$B$173:$C$176,2,FALSE)","v":{"$error":"#N/A"}},100,0,0,{"$f":"IF(L456=T('EXPENSE DATABASE'!$E$173),O456,0)","v":0},{"$f":"IF(L456=T('EXPENSE DATABASE'!$E$174),O456,0)","v":0},{"$f":"IF(L456=T('EXPENSE DATABASE'!$E$175),O456,0)","v":0},0,443]
[0,0,{"$nulls":12},{"v":0,"d":"$0.00"},{"v":0,"d":"$0.00"},{"v":0,"d":"$0.00"},0,{"$f":"IF(OR(K457='EXPENSE DATABASE'!$V$187,K457='EXPENSE DATABASE'!$V$188,K457='EXPENSE DATABASE'!$V$189,K457='EXPENSE DATABASE'!$V$190,K457='EXPENSE DATABASE'!$V$191,K457='EXPENSE DATABASE'!$V$192,K457='EXPENSE DATABASE'!$V$193,K457='EXPENSE DATABASE'!$V$194,K457='EXPENSE DATABASE'!$X$187,K457='EXPENSE DATABASE'!$X$188,K457='EXPENSE DATABASE'!$X$189,K457='EXPENSE DATABASE'!$X$190,K457='EXPENSE DATABASE'!$X$191,K457='EXPENSE DATABASE'!$X$192,K457='EXPENSE DATABASE'!$X$193,K457='EXPENSE DATABASE'!$X$194,K457='EXPENSE DATABASE'!$Z$187,K457='EXPENSE DATABASE'!$Z$188,K457='EXPENSE DATABASE'!$Z$189,K457='EXPENSE DATABASE'!$Z$190,K457='EXPENSE DATABASE'!$Z$191,K457='EXPENSE DATABASE'!$Z$192,K457='EXPENSE DATABASE'!$Z$193,K457='EXPENSE DATABASE'!$Z$194),O457,\"\")","v":""},{"$f":"IF(OR(K457='EXPENSE DATABASE'!$T$189,K457='EXPENSE DATABASE'!$T$190,K457='EXPENSE DATABASE'!$T$191),O457,\"\")","v":""},{"$f":"VLOOKUP(I457,'EXPENSE DATABASE'!$B$41:$C$65,2,FALSE)","v":{"$error":"#N/A"}},100,{"$f":"VLOOKUP(J457,'EXPENSE DATABASE'!$B$69:$C$168,2,FALSE)","v":{"$error":"#N/A"}},101,{"$f":"VLOOKUP(K457,'EXPENSE DATABASE'!$B$6:$C$35,2,FALSE)","v":{"$error":"#N/A"}},31,{"$f":"VLOOKUP(L457,'EXPENSE DATABASE'!$B$173:$C$176,2,FALSE)","v":{"$error":"#N/A"}},100,0,0,{"$f":"IF(L457=T('EXPENSE DATABASE'!$E$173),O457,0)","v":0},{"$f":"IF(L457=T('EXPENSE DATABASE'!$E$174),O457,0)","v":0},{"$f":"IF(L457=T('EXPENSE DATABASE'!$E$175),O457,0)","v":0},0,444]
[0,0,{"$nulls":12},{"v":0,"d":"$0.00"},{"v":0,"d":"$0.00"},{"v":0,"d":"$0.00"},0,{"$f":"IF(OR(K458='EXPENSE DATABASE'!$V$187,K458='EXPENSE DATABASE'!$V$188,K458='EXPENSE DATABASE'!$V$189,K458='EXPENSE DATABASE'!$V$190,K458='EXPENSE DATABASE'!$V$191,K458='EXPENSE DATABASE'!$V$192,K458='EXPENSE DATABASE'!$V$193,K458='EXPENSE DATABASE'!$V$194,K458='EXPENSE DATABASE'!$X$187,K458='EXPENSE DATABASE'!$X$188,K458='EXPENSE DATABASE'!$X$189,K458='EXPENSE DATABASE'!$X$190,K458='EXPENSE DATABASE'!$X$191,K458='EXPENSE DATABASE'!$X$192,K458='EXPENSE DATABASE'!$X$193,K458='EXPENSE DATABASE'!$X$194,K458='EXPENSE DATABASE'!$Z$187,K458='EXPENSE DATABASE'!$Z$188,K458='EXPENSE DATABASE'!$Z$189,K458='EXPENSE DATABASE'!$Z$190,K458='EXPENSE DATABASE'!$Z$191,K458='EXPENSE DATABASE'!$Z$192,K458='EXPENSE DATABASE'!$Z$193,K458='EXPENSE DATABASE'!$Z$194),O458,\"\")","v":""},{"$f":"IF(OR(K458='EXPENSE DATABASE'!$T$189,K458='EXPENSE DATABASE'!$T$190,K458='EXPENSE DATABASE'!$T$191),O458,\"\")","v":""},{"$f":"VLOOKUP(I458,'EXPENSE DATABASE'!$B$41:$C$65,2,FALSE)","v":{"$error":"#N/A"}},100,{"$f":"VLOOKUP(J458,'EXPENSE DATABASE'!$B$69:$C$168,2,FALSE)","v":{"$error":"#N/A"}},101,{"$f":"VLOOKUP(K458,'EXPENSE DATABASE'!$B$6:$C$35,2,FALSE)","v":{"$error":"#N/A"}},31,{"$f":"VLOOKUP(L458,'EXPENSE DATABASE'!$B$173:$C$176,2,FALSE)","v":{"$error":"#N/A"}},100,0,0,{"$f":"IF(L458=T('EXPENSE DATABASE'!$E$173),O458,0)","v":0},{"$f":"IF(L458=T('EXPENSE DATABASE'!$E$174),O458,0)","v":0},{"$f":"IF(L458=T('EXPENSE DATABASE'!$E$175),O458,0)","v":0},0,445]
[0,0,{"$nulls":12},{"v":0,"d":"$0.00"},{"v":0,"d":"$0.00"},{"v":0,"d":"$0.00"},0,{"$f":"IF(OR(K459='EXPENSE DATABASE'!$V$187,K459='EXPENSE DATABASE'!$V$188,K459='EXPENSE DATABASE'!$V$189,K459='EXPENSE DATABASE'!$V$190,K459='EXPENSE DATABASE'!$V$191,K459='EXPENSE DATABASE'!$V$192,K459='EXPENSE DATABASE'!$V$193,K459='EXPENSE DATABASE'!$V$194,K459='EXPENSE DATABASE'!$X$187,K459='EXPENSE DATABASE'!$X$188,K459='EXPENSE DATABASE'!$X$189,K459='EXPENSE DATABASE'!$X$190,K459='EXPENSE DATABASE'!$X$191,K459='EXPENSE DATABASE'!$X$192,K459='EXPENSE DATABASE'!$X$193,K459='EXPENSE DATABASE'!$X$194,K459='EXPENSE DATABASE'!$Z$187,K459='EXPENSE DATABASE'!$Z$188,K459='EXPENSE DATABASE'!$Z$189,K459='EXPENSE DATABASE'!$Z$190,K459='EXPENSE DATABASE'!$Z$191,K459='EXPENSE DATABASE'!$Z$192,K459='EXPENSE DATABASE'!$Z$193,K459='EXPENSE DATABASE'!$Z$194),O459,\"\")","v":""},{"$f":"IF(OR(K459='EXPENSE DATABASE'!$T$189,K459='EXPENSE DATABASE'!$T$190,K459='EXPENSE DATABASE'!$T$191),O459,\"\")","v":""},{"$f":"VLOOKUP(I459,'EXPENSE DATABASE'!$B$41:$C$65,2,FALSE)","v":{"$error":"#N/A"}},100,{"$f":"VLOOKUP(J459,'EXPENSE DATABASE'!$B$69:$C$168,2,FALSE)","v":{"$error":"#N/A"}},101,{"$f":"VLOOKUP(K459,'EXPENSE DATABASE'!$B$6:$C$35,2,FALSE)","v":{"$error":"#N/A"}},31,{"$f":"VLOOKUP(L459,'EXPENSE DATABASE'!$B$173:$C$176,2,FALSE)","v":{"$error":"#N/A"}},100,0,0,{"$f":"IF(L459=T('EXPENSE DATABASE'!$E$173),O459,0)","v":0},{"$f":"IF(L459=T('EXPENSE DATABASE'!$E$174),O459,0)","v":0},{"$f":"IF(L459=T('EXPENSE DATABASE'!$E$175),O459,0)","v":0},0,446]
[0,0,{"$nulls":12},{"v":0,"d":"$0.00"},{"v":0,"d":"$0.00"},{"v":0,"d":"$0.00"},0,{"$f":"IF(OR(K460='EXPENSE DATABASE'!$V$187,K460='EXPENSE DATABASE'!$V$188,K460='EXPENSE DATABASE'!$V$189,K460='EXPENSE DATABASE'!$V$190,K460='EXPENSE DATABASE'!$V$191,K460='EXPENSE DATABASE'!$V$192,K460='EXPENSE DATABASE'!$V$193,K460='EXPENSE DATABASE'!$V$194,K460='EXPENSE DATABASE'!$X$187,K460='EXPENSE DATABASE'!$X$188,K460='EXPENSE DATABASE'!$X$189,K460='EXPENSE DATABASE'!$X$190,K460='EXPENSE DATABASE'!$X$191,K460='EXPENSE DATABASE'!$X$192,K460='EXPENSE DATABASE'!$X$193,K460='EXPENSE DATABASE'!$X$194,K460='EXPENSE DATABASE'!$Z$187,K460='EXPENSE DATABASE'!$Z$188,K460='EXPENSE DATABASE'!$Z$189,K460='EXPENSE DATABASE'!$Z$190,K460='EXPENSE DATABASE'!$Z$191,K460='EXPENSE DATABASE'!$Z$192,K460='EXPENSE DATABASE'!$Z$193,K460='EXPENSE DATABASE'!$Z$194),O460,\"\")","v":""},{"$f":"IF(OR(K460='EXPENSE DATABASE'!$T$189,K460='EXPENSE DATABASE'!$T$190,K460='EXPENSE DATABASE'!$T$191),O460,\"\")","v":""},{"$f":"VLOOKUP(I460,'EXPENSE DATABASE'!$B$41:$C$65,2,FALSE)","v":{"$error":"#N/A"}},100,{"$f":"VLOOKUP(J460,'EXPENSE DATABASE'!$B$69:$C$168,2,FALSE)","v":{"$error":"#N/A"}},101,{"$f":"VLOOKUP(K460,'EXPENSE DATABASE'!$B$6:$C$35,2,FALSE)","v":{"$error":"#N/A"}},31,{"$f":"VLOOKUP(L460,'EXPENSE DATABASE'!$B$173:$C$176,2,FALSE)","v":{"$error":"#N/A"}},100,0,0,{"$f":"IF(L460=T('EXPENSE DATABASE'!$E$173),O460,0)","v":0},{"$f":"IF(L460=T('EXPENSE DATABASE'!$E$174),O460,0)","v":0},{"$f":"IF(L460=T('EXPENSE DATABASE'!$E$175),O460,0)","v":0},0,447]
[0,0,{"$nulls":12},{"v":0,"d":"$0.00"},{"v":0,"d":"$0.00"},{"v":0,"d":"$0.00"},0,{"$f":"IF(OR(K461='EXPENSE DATABASE'!$V$187,K461='EXPENSE DATABASE'!$V$188,K461='EXPENSE DATABASE'!$V$189,K461='EXPENSE DATABASE'!$V$190,K461='EXPENSE DATABASE'!$V$191,K461='EXPENSE DATABASE'!$V$192,K461='EXPENSE DATABASE'!$V$193,K461='EXPENSE DATABASE'!$V$194,K461='EXPENSE DATABASE'!$X$187,K461='EXPENSE DATABASE'!$X$188,K461='EXPENSE DATABASE'!$X$189,K461='EXPENSE DATABASE'!$X$190,K461='EXPENSE DATABASE'!$X$191,K461='EXPENSE DATABASE'!$X$192,K461='EXPENSE DATABASE'!$X$193,K461='EXPENSE DATABASE'!$X$194,K461='EXPENSE DATABASE'!$Z$187,K461='EXPENSE DATABASE'!$Z$188,K461='EXPENSE DATABASE'!$Z$189,K461='EXPENSE DATABASE'!$Z$190,K461='EXPENSE DATABASE'!$Z$191,K461='EXPENSE DATABASE'!$Z$192,K461='EXPENSE DATABASE'!$Z$193,K461='EXPENSE DATABASE'!$Z$194),O461,\"\")","v":""},{"$f":"IF(OR(K461='EXPENSE DATABASE'!$T$189,K461='EXPENSE DATABASE'!$T$190,K461='EXPENSE DATABASE'!$T$191),O461,\"\")","v":""},{"$f":"VLOOKUP(I461,'EXPENSE DATABASE'!$B$41:$C$65,2,FALSE)","v":{"$error":"#N/A"}},100,{"$f":"VLOOKUP(J461,'EXPENSE DATABASE'!$B$69:$C$168,2,FALSE)","v":{"$error":"#N/A"}},101,{"$f":"VLOOKUP(K461,'EXPENSE DATABASE'!$B$6:$C$35,2,FALSE)","v":{"$error":"#N/A"}},31,{"$f":"VLOOKUP(L461,'EXPENSE DATABASE'!$B$173:$C$176,2,FALSE)","v":{"$error":"#N/A"}},100,0,0,{"$f":"IF(L461=T('EXPENSE DATABASE'!$E$173),O461,0)","v":0},{"$f":"IF(L461=T('EXPENSE DATABASE'!$E$174),O461,0)","v":0},{"$f":"IF(L461=T('EXPENSE DATABASE'!$E$175),O461,0)","v":0},0,448]
[{"$f":"IF(COUNTA(D462,E462,F462,G462,H462,I462,J462,K462,L462,M462,N462)>0,1,0)","v":0},{"$f":"IF((COUNTA(I462:L462)=4),1,-1)*A462","v":0},{"$nulls":12},{"$f":"M462*N462","v":{"v":0,"d":"$0.00"}},{"$f":"IF(OR(D462=\"No\",D462=\"\"),O462,0)","v":{"v":0,"d":"$0.00"}},{"$f":"IF(D462=\"Yes\",O462,0)","v":{"v":0,"d":"$0.00"}},{"$f":"IF(O462>0,1,0)","v":0},{"$f":"IF(OR(K462='EXPENSE DATABASE'!$V$187,K462='EXPENSE DATABASE'!$V$188,K462='EXPENSE DATABASE'!$V$189,K462='EXPENSE DATABASE'!$V$190,K462='EXPENSE DATABASE'!$V$191,K462='EXPENSE DATABASE'!$V$192,K462='EXPENSE DATABASE'!$V$193,K462='EXPENSE DATABASE'!$V$194,K462='EXPENSE DATABASE'!$X$187,K462='EXPENSE DATABASE'!$X$188,K462='EXPENSE DATABASE'!$X$189,K462='EXPENSE DATABASE'!$X$190,K462='EXPENSE DATABASE'!$X$191,K462='EXPENSE DATABASE'!$X$192,K462='EXPENSE DATABASE'!$X$193,K462='EXPENSE DATABASE'!$X$194,K462='EXPENSE DATABASE'!$Z$187,K462='EXPENSE DATABASE'!$Z$188,K462='EXPENSE DATABASE'!$Z$189,K462='EXPENSE DATABASE'!$Z$190,K462='EXPENSE DATABASE'!$Z$191,K462='EXPENSE DATABASE'!$Z$192,K462='EXPENSE DATABASE'!$Z$193,K462='EXPENSE DATABASE'!$Z$194),O462,\"\")","v":""},{"$f":"IF(OR(K462='EXPENSE DATABASE'!$T$189,K462='EXPENSE DATABASE'!$T$190,K462='EXPENSE DATABASE'!$T$191),O462,\"\")","v":""},{"$f":"VLOOKUP(I462,'EXPENSE DATABASE'!$B$41:$C$65,2,FALSE)","v":{"$error":"#N/A"}},{"$f":"IFERROR(U462,100)","v":100},{"$f":"VLOOKUP(J462,'EXPENSE DATABASE'!$B$69:$C$168,2,FALSE)","v":{"$error":"#N/A"}},{"$f":"IFERROR(W462,101)","v":101},{"$f":"VLOOKUP(K462,'EXPENSE DATABASE'!$B$6:$C$35,2,FALSE)","v":{"$error":"#N/A"}},{"$f":"IFERROR(Y462,31)","v":31},{"$f":"VLOOKUP(L462,'EXPENSE DATABASE'!$B$173:$C$176,2,FALSE)","v":{"$error":"#N/A"}},{"$f":"IFERROR(AA462,100)","v":100},{"$f":"IF(K462=0,0,1)","v":0},{"$f":"IF(J462=0,0,1)","v":0},{"$f":"IF(L462=T('EXPENSE DATABASE'!$E$173),O462,0)","v":0},{"$f":"IF(L462=T('EXPENSE DATABASE'!$E$174),O462,0)","v":0},{"$f":"IF(L462=T('EXPENSE DATABASE'!$E$175),O462,0)","v":0},{"$f":"IF(OR(N462=0,E462=0),0,MONTH(E462))","v":0},449]
[0,0,{"$nulls":12},{"v":0,"d":"$0.00"},{"v":0,"d":"$0.00"},{"v":0,"d":"$0.00"},0,{"$f":"IF(OR(K463='EXPENSE DATABASE'!$V$187,K463='EXPENSE DATABASE'!$V$188,K463='EXPENSE DATABASE'!$V$189,K463='EXPENSE DATABASE'!$V$190,K463='EXPENSE DATABASE'!$V$191,K463='EXPENSE DATABASE'!$V$192,K463='EXPENSE DATABASE'!$V$193,K463='EXPENSE DATABASE'!$V$194,K463='EXPENSE DATABASE'!$X$187,K463='EXPENSE DATABASE'!$X$188,K463='EXPENSE DATABASE'!$X$189,K463='EXPENSE DATABASE'!$X$190,K463='EXPENSE DATABASE'!$X$191,K463='EXPENSE DATABASE'!$X$192,K463='EXPENSE DATABASE'!$X$193,K463='EXPENSE DATABASE'!$X$194,K463='EXPENSE DATABASE'!$Z$187,K463='EXPENSE DATABASE'!$Z$188,K463='EXPENSE DATABASE'!$Z$189,K463='EXPENSE DATABASE'!$Z$190,K463='EXPENSE DATABASE'!$Z$191,K463='EXPENSE DATABASE'!$Z$192,K463='EXPENSE DATABASE'!$Z$193,K463='EXPENSE DATABASE'!$Z$194),O463,\"\")","v":""},{"$f":"IF(OR(K463='EXPENSE DATABASE'!$T$189,K463='EXPENSE DATABASE'!$T$190,K463='EXPENSE DATABASE'!$T$191),O463,\"\")","v":""},{"$f":"VLOOKUP(I463,'EXPENSE DATABASE'!$B$41:$C$65,2,FALSE)","v":{"$error":"#N/A"}},100,{"$f":"VLOOKUP(J463,'EXPENSE DATABASE'!$B$69:$C$168,2,FALSE)","v":{"$error":"#N/A"}},101,{"$f":"VLOOKUP(K463,'EXPENSE DATABASE'!$B$6:$C$35,2,FALSE)","v":{"$error":"#N/A"}},31,{"$f":"VLOOKUP(L463,'EXPENSE DATABASE'!$B$173:$C$176,2,FALSE)","v":{"$error":"#N/A"}},100,0,0,{"$f":"IF(L463=T('EXPENSE DATABASE'!$E$173),O463,0)","v":0},{"$f":"IF(L463=T('EXPENSE DATABASE'!$E$174),O463,0)","v":0},{"$f":"IF(L463=T('EXPENSE DATABASE'!$E$175),O463,0)","v":0},0,450]
[0,0,{"$nulls":12},{"v":0,"d":"$0.00"},{"v":0,"d":"$0.00"},{"v":0,"d":"$0.00"},0,{"$f":"IF(OR(K464='EXPENSE DATABASE'!$V$187,K464='EXPENSE DATABASE'!$V$188,K464='EXPENSE DATABASE'!$V$189,K464='EXPENSE DATABASE'!$V$190,K464='EXPENSE DATABASE'!$V$191,K464='EXPENSE DATABASE'!$V$192,K464='EXPENSE DATABASE'!$V$193,K464='EXPENSE DATABASE'!$V$194,K464='EXPENSE DATABASE'!$X$187,K464='EXPENSE DATABASE'!$X$188,K464='EXPENSE DATABASE'!$X$189,K464='EXPENSE DATABASE'!$X$190,K464='EXPENSE DATABASE'!$X$191,K464='EXPENSE DATABASE'!$X$192,K464='EXPENSE DATABASE'!$X$193,K464='EXPENSE DATABASE'!$X$194,K464='EXPENSE DATABASE'!$Z$187,K464='EXPENSE DATABASE'!$Z$188,K464='EXPENSE DATABASE'!$Z$189,K464='EXPENSE DATABASE'!$Z$190,K464='EXPENSE DATABASE'!$Z$191,K464='EXPENSE DATABASE'!$Z$192,K464='EXPENSE DATABASE'!$Z$193,K464='EXPENSE DATABASE'!$Z$194),O464,\"\")","v":""},{"$f":"IF(OR(K464='EXPENSE DATABASE'!$T$189,K464='EXPENSE DATABASE'!$T$190,K464='EXPENSE DATABASE'!$T$191),O464,\"\")","v":""},{"$f":"VLOOKUP(I464,'EXPENSE DATABASE'!$B$41:$C$65,2,FALSE)","v":{"$error":"#N/A"}},100,{"$f":"VLOOKUP(J464,'EXPENSE DATABASE'!$B$69:$C$168,2,FALSE)","v":{"$error":"#N/A"}},101,{"$f":"VLOOKUP(K464,'EXPENSE DATABASE'!$B$6:$C$35,2,FALSE)","v":{"$error":"#N/A"}},31,{"$f":"VLOOKUP(L464,'EXPENSE DATABASE'!$B$173:$C$176,2,FALSE)","v":{"$error":"#N/A"}},100,0,0,{"$f":"IF(L464=T('EXPENSE DATABASE'!$E$173),O464,0)","v":0},{"$f":"IF(L464=T('EXPENSE DATABASE'!$E$174),O464,0)","v":0},{"$f":"IF(L464=T('EXPENSE DATABASE'!$E$175),O464,0)","v":0},0,451]
[0,0,{"$nulls":12},{"v":0,"d":"$0.00"},{"v":0,"d":"$0.00"},{"v":0,"d":"$0.00"},0,{"$f":"IF(OR(K465='EXPENSE DATABASE'!$V$187,K465='EXPENSE DATABASE'!$V$188,K465='EXPENSE DATABASE'!$V$189,K465='EXPENSE DATABASE'!$V$190,K465='EXPENSE DATABASE'!$V$191,K465='EXPENSE DATABASE'!$V$192,K465='EXPENSE DATABASE'!$V$193,K465='EXPENSE DATABASE'!$V$194,K465='EXPENSE DATABASE'!$X$187,K465='EXPENSE DATABASE'!$X$188,K465='EXPENSE DATABASE'!$X$189,K465='EXPENSE DATABASE'!$X$190,K465='EXPENSE DATABASE'!$X$191,K465='EXPENSE DATABASE'!$X$192,K465='EXPENSE DATABASE'!$X$193,K465='EXPENSE DATABASE'!$X$194,K465='EXPENSE DATABASE'!$Z$187,K465='EXPENSE DATABASE'!$Z$188,K465='EXPENSE DATABASE'!$Z$189,K465='EXPENSE DATABASE'!$Z$190,K465='EXPENSE DATABASE'!$Z$191,K465='EXPENSE DATABASE'!$Z$192,K465='EXPENSE DATABASE'!$Z$193,K465='EXPENSE DATABASE'!$Z$194),O465,\"\")","v":""},{"$f":"IF(OR(K465='EXPENSE DATABASE'!$T$189,K465='EXPENSE DATABASE'!$T$190,K465='EXPENSE DATABASE'!$T$191),O465,\"\")","v":""},{"$f":"VLOOKUP(I465,'EXPENSE DATABASE'!$B$41:$C$65,2,FALSE)","v":{"$error":"#N/A"}},100,{"$f":"VLOOKUP(J465,'EXPENSE DATABASE'!$B$69:$C$168,2,FALSE)","v":{"$error":"#N/A"}},101,{"$f":"VLOOKUP(K465,'EXPENSE DATABASE'!$B$6:$C$35,2,FALSE)","v":{"$error":"#N/A"}},31,{"$f":"VLOOKUP(L465,'EXPENSE DATABASE'!$B$173:$C$176,2,FALSE)","v":{"$error":"#N/A"}},100,0,0,{"$f":"IF(L465=T('EXPENSE DATABASE'!$E$173),O465,0)","v":0},{"$f":"IF(L465=T('EXPENSE DATABASE'!$E$174),O465,0)","v":0},{"$f":"IF(L465=T('EXPENSE DATABASE'!$E$175),O465,0)","v":0},0,452]
[0,0,{"$nulls":12},{"v":0,"d":"$0.00"},{"v":0,"d":"$0.00"},{"v":0,"d":"$0.00"},0,{"$f":"IF(OR(K466='EXPENSE DATABASE'!$V$187,K466='EXPENSE DATABASE'!$V$188,K466='EXPENSE DATABASE'!$V$189,K466='EXPENSE DATABASE'!$V$190,K466='EXPENSE DATABASE'!$V$191,K466='EXPENSE DATABASE'!$V$192,K466='EXPENSE DATABASE'!$V$193,K466='EXPENSE DATABASE'!$V$194,K466='EXPENSE DATABASE'!$X$187,K466='EXPENSE DATABASE'!$X$188,K466='EXPENSE DATABASE'!$X$189,K466='EXPENSE DATABASE'!$X$190,K466='EXPENSE DATABASE'!$X$191,K466='EXPENSE DATABASE'!$X$192,K466='EXPENSE DATABASE'!$X$193,K466='EXPENSE DATABASE'!$X$194,K466='EXPENSE DATABASE'!$Z$187,K466='EXPENSE DATABASE'!$Z$188,K466='EXPENSE DATABASE'!$Z$189,K466='EXPENSE DATABASE'!$Z$190,K466='EXPENSE DATABASE'!$Z$191,K466='EXPENSE DATABASE'!$Z$192,K466='EXPENSE DATABASE'!$Z$193,K466='EXPENSE DATABASE'!$Z$194),O466,\"\")","v":""},{"$f":"IF(OR(K466='EXPENSE DATABASE'!$T$189,K466='EXPENSE DATABASE'!$T$190,K466='EXPENSE DATABASE'!$T$191),O466,\"\")","v":""},{"$f":"VLOOKUP(I466,'EXPENSE DATABASE'!$B$41:$C$65,2,FALSE)","v":{"$error":"#N/A"}},100,{"$f":"VLOOKUP(J466,'EXPENSE DATABASE'!$B$69:$C$168,2,FALSE)","v":{"$error":"#N/A"}},101,{"$f":"VLOOKUP(K466,'EXPENSE DATABASE'!$B$6:$C$35,2,FALSE)","v":{"$error":"#N/A"}},31,{"$f":"VLOOKUP(L466,'EXPENSE DATABASE'!$B$173:$C$176,2,FALSE)","v":{"$error":"#N/A"}},100,0,0,{"$f":"IF(L466=T('EXPENSE DATABASE'!$E$173),O466,0)","v":0},{"$f":"IF(L466=T('EXPENSE DATABASE'!$E$174),O466,0)","v":0},{"$f":"IF(L466=T('EXPENSE DATABASE'!$E$175),O466,0)","v":0},0,453]
[0,0,{"$nulls":12},{"v":0,"d":"$0.00"},{"v":0,"d":"$0.00"},{"v":0,"d":"$0.00"},0,{"$f":"IF(OR(K467='EXPENSE DATABASE'!$V$187,K467='EXPENSE DATABASE'!$V$188,K467='EXPENSE DATABASE'!$V$189,K467='EXPENSE DATABASE'!$V$190,K467='EXPENSE DATABASE'!$V$191,K467='EXPENSE DATABASE'!$V$192,K467='EXPENSE DATABASE'!$V$193,K467='EXPENSE DATABASE'!$V$194,K467='EXPENSE DATABASE'!$X$187,K467='EXPENSE DATABASE'!$X$188,K467='EXPENSE DATABASE'!$X$189,K467='EXPENSE DATABASE'!$X$190,K467='EXPENSE DATABASE'!$X$191,K467='EXPENSE DATABASE'!$X$192,K467='EXPENSE DATABASE'!$X$193,K467='EXPENSE DATABASE'!$X$194,K467='EXPENSE DATABASE'!$Z$187,K467='EXPENSE DATABASE'!$Z$188,K467='EXPENSE DATABASE'!$Z$189,K467='EXPENSE DATABASE'!$Z$190,K467='EXPENSE DATABASE'!$Z$191,K467='EXPENSE DATABASE'!$Z$192,K467='EXPENSE DATABASE'!$Z$193,K467='EXPENSE DATABASE'!$Z$194),O467,\"\")","v":""},{"$f":"IF(OR(K467='EXPENSE DATABASE'!$T$189,K467='EXPENSE DATABASE'!$T$190,K467='EXPENSE DATABASE'!$T$191),O467,\"\")","v":""},{"$f":"VLOOKUP(I467,'EXPENSE DATABASE'!$B$41:$C$65,2,FALSE)","v":{"$error":"#N/A"}},100,{"$f":"VLOOKUP(J467,'EXPENSE DATABASE'!$B$69:$C$168,2,FALSE)","v":{"$error":"#N/A"}},101,{"$f":"VLOOKUP(K467,'EXPENSE DATABASE'!$B$6:$C$35,2,FALSE)","v":{"$error":"#N/A"}},31,{"$f":"VLOOKUP(L467,'EXPENSE DATABASE'!$B$173:$C$176,2,FALSE)","v":{"$error":"#N/A"}},100,0,0,{"$f":"IF(L467=T('EXPENSE DATABASE'!$E$173),O467,0)","v":0},{"$f":"IF(L467=T('EXPENSE DATABASE'!$E$174),O467,0)","v":0},{"$f":"IF(L467=T('EXPENSE DATABASE'!$E$175),O467,0)","v":0},0,454]
[0,0,{"$nulls":12},{"v":0,"d":"$0.00"},{"v":0,"d":"$0.00"},{"v":0,"d":"$0.00"},0,{"$f":"IF(OR(K468='EXPENSE DATABASE'!$V$187,K468='EXPENSE DATABASE'!$V$188,K468='EXPENSE DATABASE'!$V$189,K468='EXPENSE DATABASE'!$V$190,K468='EXPENSE DATABASE'!$V$191,K468='EXPENSE DATABASE'!$V$192,K468='EXPENSE DATABASE'!$V$193,K468='EXPENSE DATABASE'!$V$194,K468='EXPENSE DATABASE'!$X$187,K468='EXPENSE DATABASE'!$X$188,K468='EXPENSE DATABASE'!$X$189,K468='EXPENSE DATABASE'!$X$190,K468='EXPENSE DATABASE'!$X$191,K468='EXPENSE DATABASE'!$X$192,K468='EXPENSE DATABASE'!$X$193,K468='EXPENSE DATABASE'!$X$194,K468='EXPENSE DATABASE'!$Z$187,K468='EXPENSE DATABASE'!$Z$188,K468='EXPENSE DATABASE'!$Z$189,K468='EXPENSE DATABASE'!$Z$190,K468='EXPENSE DATABASE'!$Z$191,K468='EXPENSE DATABASE'!$Z$192,K468='EXPENSE DATABASE'!$Z$193,K468='EXPENSE DATABASE'!$Z$194),O468,\"\")","v":""},{"$f":"IF(OR(K468='EXPENSE DATABASE'!$T$189,K468='EXPENSE DATABASE'!$T$190,K468='EXPENSE DATABASE'!$T$191),O468,\"\")","v":""},{"$f":"VLOOKUP(I468,'EXPENSE DATABASE'!$B$41:$C$65,2,FALSE)","v":{"$error":"#N/A"}},100,{"$f":"VLOOKUP(J468,'EXPENSE DATABASE'!$B$69:$C$168,2,FALSE)","v":{"$error":"#N/A"}},101,{"$f":"VLOOKUP(K468,'EXPENSE DATABASE'!$B$6:$C$35,2,FALSE)","v":{"$error":"#N/A"}},31,{"$f":"VLOOKUP(L468,'EXPENSE DATABASE'!$B$173:$C$176,2,FALSE)","v":{"$error":"#N/A"}},100,0,0,{"$f":"IF(L468=T('EXPENSE DATABASE'!$E$173),O468,0)","v":0},{"$f":"IF(L468=T('EXPENSE DATABASE'!$E$174),O468,0)","v":0},{"$f":"IF(L468=T('EXPENSE DATABASE'!$E$175),O468,0)","v":0},0,455]
[0,0,{"$nulls":12},{"v":0,"d":"$0.00"},{"v":0,"d":"$0.00"},{"v":0,"d":"$0.00"},0,{"$f":"IF(OR(K469='EXPENSE DATABASE'!$V$187,K469='EXPENSE DATABASE'!$V$188,K469='EXPENSE DATABASE'!$V$189,K469='EXPENSE DATABASE'!$V$190,K469='EXPENSE DATABASE'!$V$191,K469='EXPENSE DATABASE'!$V$192,K469='EXPENSE DATABASE'!$V$193,K469='EXPENSE DATABASE'!$V$194,K469='EXPENSE DATABASE'!$X$187,K469='EXPENSE DATABASE'!$X$188,K469='EXPENSE DATABASE'!$X$189,K469='EXPENSE DATABASE'!$X$190,K469='EXPENSE DATABASE'!$X$191,K469='EXPENSE DATABASE'!$X$192,K469='EXPENSE DATABASE'!$X$193,K469='EXPENSE DATABASE'!$X$194,K469='EXPENSE DATABASE'!$Z$187,K469='EXPENSE DATABASE'!$Z$188,K469='EXPENSE DATABASE'!$Z$189,K469='EXPENSE DATABASE'!$Z$190,K469='EXPENSE DATABASE'!$Z$191,K469='EXPENSE DATABASE'!$Z$192,K469='EXPENSE DATABASE'!$Z$193,K469='EXPENSE DATABASE'!$Z$194),O469,\"\")","v":""},{"$f":"IF(OR(K469='EXPENSE DATABASE'!$T$189,K469='EXPENSE DATABASE'!$T$190,K469='EXPENSE DATABASE'!$T$191),O469,\"\")","v":""},{"$f":"VLOOKUP(I469,'EXPENSE DATABASE'!$B$41:$C$65,2,FALSE)","v":{"$error":"#N/A"}},100,{"$f":"VLOOKUP(J469,'EXPENSE DATABASE'!$B$69:$C$168,2,FALSE)","v":{"$error":"#N/A"}},101,{"$f":"VLOOKUP(K469,'EXPENSE DATABASE'!$B$6:$C$35,2,FALSE)","v":{"$error":"#N/A"}},31,{"$f":"VLOOKUP(L469,'EXPENSE DATABASE'!$B$173:$C$176,2,FALSE)","v":{"$error":"#N/A"}},100,0,0,{"$f":"IF(L469=T('EXPENSE DATABASE'!$E$173),O469,0)","v":0},{"$f":"IF(L469=T('EXPENSE DATABASE'!$E$174),O469,0)","v":0},{"$f":"IF(L469=T('EXPENSE DATABASE'!$E$175),O469,0)","v":0},0,456]
[0,0,{"$nulls":12},{"v":0,"d":"$0.00"},{"v":0,"d":"$0.00"},{"v":0,"d":"$0.00"},0,{"$f":"IF(OR(K470='EXPENSE DATABASE'!$V$187,K470='EXPENSE DATABASE'!$V$188,K470='EXPENSE DATABASE'!$V$189,K470='EXPENSE DATABASE'!$V$190,K470='EXPENSE DATABASE'!$V$191,K470='EXPENSE DATABASE'!$V$192,K470='EXPENSE DATABASE'!$V$193,K470='EXPENSE DATABASE'!$V$194,K470='EXPENSE DATABASE'!$X$187,K470='EXPENSE DATABASE'!$X$188,K470='EXPENSE DATABASE'!$X$189,K470='EXPENSE DATABASE'!$X$190,K470='EXPENSE DATABASE'!$X$191,K470='EXPENSE DATABASE'!$X$192,K470='EXPENSE DATABASE'!$X$193,K470='EXPENSE DATABASE'!$X$194,K470='EXPENSE DATABASE'!$Z$187,K470='EXPENSE DATABASE'!$Z$188,K470='EXPENSE DATABASE'!$Z$189,K470='EXPENSE DATABASE'!$Z$190,K470='EXPENSE DATABASE'!$Z$191,K470='EXPENSE DATABASE'!$Z$192,K470='EXPENSE DATABASE'!$Z$193,K470='EXPENSE DATABASE'!$Z$194),O470,\"\")","v":""},{"$f":"IF(OR(K470='EXPENSE DATABASE'!$T$189,K470='EXPENSE DATABASE'!$T$190,K470='EXPENSE DATABASE'!$T$191),O470,\"\")","v":""},{"$f":"VLOOKUP(I470,'EXPENSE DATABASE'!$B$41:$C$65,2,FALSE)","v":{"$error":"#N/A"}},100,{"$f":"VLOOKUP(J470,'EXPENSE DATABASE'!$B$69:$C$168,2,FALSE)","v":{"$error":"#N/A"}},101,{"$f":"VLOOKUP(K470,'EXPENSE DATABASE'!$B$6:$C$35,2,FALSE)","v":{"$error":"#N/A"}},31,{"$f":"VLOOKUP(L470,'EXPENSE DATABASE'!$B$173:$C$176,2,FALSE)","v":{"$error":"#N/A"}},100,0,0,{"$f":"IF(L470=T('EXPENSE DATABASE'!$E$173),O470,0)","v":0},{"$f":"IF(L470=T('EXPENSE DATABASE'!$E$174),O470,0)","v":0},{"$f":"IF(L470=T('EXPENSE DATABASE'!$E$175),O470,0)","v":0},0,457]
[0,0,{"$nulls":12},{"v":0,"d":"$0.00"},{"v":0,"d":"$0.00"},{"v":0,"d":"$0.00"},0,{"$f":"IF(OR(K471='EXPENSE DATABASE'!$V$187,K471='EXPENSE DATABASE'!$V$188,K471='EXPENSE DATABASE'!$V$189,K471='EXPENSE DATABASE'!$V$190,K471='EXPENSE DATABASE'!$V$191,K471='EXPENSE DATABASE'!$V$192,K471='EXPENSE DATABASE'!$V$193,K471='EXPENSE DATABASE'!$V$194,K471='EXPENSE DATABASE'!$X$187,K471='EXPENSE DATABASE'!$X$188,K471='EXPENSE DATABASE'!$X$189,K471='EXPENSE DATABASE'!$X$190,K471='EXPENSE DATABASE'!$X$191,K471='EXPENSE DATABASE'!$X$192,K471='EXPENSE DATABASE'!$X$193,K471='EXPENSE DATABASE'!$X$194,K471='EXPENSE DATABASE'!$Z$187,K471='EXPENSE DATABASE'!$Z$188,K471='EXPENSE DATABASE'!$Z$189,K471='EXPENSE DATABASE'!$Z$190,K471='EXPENSE DATABASE'!$Z$191,K471='EXPENSE DATABASE'!$Z$192,K471='EXPENSE DATABASE'!$Z$193,K471='EXPENSE DATABASE'!$Z$194),O471,\"\")","v":""},{"$f":"IF(OR(K471='EXPENSE DATABASE'!$T$189,K471='EXPENSE DATABASE'!$T$190,K471='EXPENSE DATABASE'!$T$191),O471,\"\")","v":""},{"$f":"VLOOKUP(I471,'EXPENSE DATABASE'!$B$41:$C$65,2,FALSE)","v":{"$error":"#N/A"}},100,{"$f":"VLOOKUP(J471,'EXPENSE DATABASE'!$B$69:$C$168,2,FALSE)","v":{"$error":"#N/A"}},101,{"$f":"VLOOKUP(K471,'EXPENSE DATABASE'!$B$6:$C$35,2,FALSE)","v":{"$error":"#N/A"}},31,{"$f":"VLOOKUP(L471,'EXPENSE DATABASE'!$B$173:$C$176,2,FALSE)","v":{"$error":"#N/A"}},100,0,0,{"$f":"IF(L471=T('EXPENSE DATABASE'!$E$173),O471,0)","v":0},{"$f":"IF(L471=T('EXPENSE DATABASE'!$E$174),O471,0)","v":0},{"$f":"IF(L471=T('EXPENSE DATABASE'!$E$175),O471,0)","v":0},0,458]
[0,0,{"$nulls":12},{"v":0,"d":"$0.00"},{"v":0,"d":"$0.00"},{"v":0,"d":"$0.00"},0,{"$f":"IF(OR(K472='EXPENSE DATABASE'!$V$187,K472='EXPENSE DATABASE'!$V$188,K472='EXPENSE DATABASE'!$V$189,K472='EXPENSE DATABASE'!$V$190,K472='EXPENSE DATABASE'!$V$191,K472='EXPENSE DATABASE'!$V$192,K472='EXPENSE DATABASE'!$V$193,K472='EXPENSE DATABASE'!$V$194,K472='EXPENSE DATABASE'!$X$187,K472='EXPENSE DATABASE'!$X$188,K472='EXPENSE DATABASE'!$X$189,K472='EXPENSE DATABASE'!$X$190,K472='EXPENSE DATABASE'!$X$191,K472='EXPENSE DATABASE'!$X$192,K472='EXPENSE DATABASE'!$X$193,K472='EXPENSE DATABASE'!$X$194,K472='EXPENSE DATABASE'!$Z$187,K472='EXPENSE DATABASE'!$Z$188,K472='EXPENSE DATABASE'!$Z$189,K472='EXPENSE DATABASE'!$Z$190,K472='EXPENSE DATABASE'!$Z$191,K472='EXPENSE DATABASE'!$Z$192,K472='EXPENSE DATABASE'!$Z$193,K472='EXPENSE DATABASE'!$Z$194),O472,\"\")","v":""},{"$f":"IF(OR(K472='EXPENSE DATABASE'!$T$189,K472='EXPENSE DATABASE'!$T$190,K472='EXPENSE DATABASE'!$T$191),O472,\"\")","v":""},{"$f":"VLOOKUP(I472,'EXPENSE DATABASE'!$B$41:$C$65,2,FALSE)","v":{"$error":"#N/A"}},100,{"$f":"VLOOKUP(J472,'EXPENSE DATABASE'!$B$69:$C$168,2,FALSE)","v":{"$error":"#N/A"}},101,{"$f":"VLOOKUP(K472,'EXPENSE DATABASE'!$B$6:$C$35,2,FALSE)","v":{"$error":"#N/A"}},31,{"$f":"VLOOKUP(L472,'EXPENSE DATABASE'!$B$173:$C$176,2,FALSE)","v":{"$error":"#N/A"}},100,0,0,{"$f":"IF(L472=T('EXPENSE DATABASE'!$E$173),O472,0)","v":0},{"$f":"IF(L472=T('EXPENSE DATABASE'!$E$174),O472,0)","v":0},{"$f":"IF(L472=T('EXPENSE DATABASE'!$E$175),O472,0)","v":0},0,459]
[0,0,{"$nulls":12},{"v":0,"d":"$0.00"},{"v":0,"d":"$0.00"},{"v":0,"d":"$0.00"},0,{"$f":"IF(OR(K473='EXPENSE DATABASE'!$V$187,K473='EXPENSE DATABASE'!$V$188,K473='EXPENSE DATABASE'!$V$189,K473='EXPENSE DATABASE'!$V$190,K473='EXPENSE DATABASE'!$V$191,K473='EXPENSE DATABASE'!$V$192,K473='EXPENSE DATABASE'!$V$193,K473='EXPENSE DATABASE'!$V$194,K473='EXPENSE DATABASE'!$X$187,K473='EXPENSE DATABASE'!$X$188,K473='EXPENSE DATABASE'!$X$189,K473='EXPENSE DATABASE'!$X$190,K473='EXPENSE DATABASE'!$X$191,K473='EXPENSE DATABASE'!$X$192,K473='EXPENSE DATABASE'!$X$193,K473='EXPENSE DATABASE'!$X$194,K473='EXPENSE DATABASE'!$Z$187,K473='EXPENSE DATABASE'!$Z$188,K473='EXPENSE DATABASE'!$Z$189,K473='EXPENSE DATABASE'!$Z$190,K473='EXPENSE DATABASE'!$Z$191,K473='EXPENSE DATABASE'!$Z$192,K473='EXPENSE DATABASE'!$Z$193,K473='EXPENSE DATABASE'!$Z$194),O473,\"\")","v":""},{"$f":"IF(OR(K473='EXPENSE DATABASE'!$T$189,K473='EXPENSE DATABASE'!$T$190,K473='EXPENSE DATABASE'!$T$191),O473,\"\")","v":""},{"$f":"VLOOKUP(I473,'EXPENSE DATABASE'!$B$41:$C$65,2,FALSE)","v":{"$error":"#N/A"}},100,{"$f":"VLOOKUP(J473,'EXPENSE DATABASE'!$B$69:$C$168,2,FALSE)","v":{"$error":"#N/A"}},101,{"$f":"VLOOKUP(K473,'EXPENSE DATABASE'!$B$6:$C$35,2,FALSE)","v":{"$error":"#N/A"}},31,{"$f":"VLOOKUP(L473,'EXPENSE DATABASE'!$B$173:$C$176,2,FALSE)","v":{"$error":"#N/A"}},100,0,0,{"$f":"IF(L473=T('EXPENSE DATABASE'!$E$173),O473,0)","v":0},{"$f":"IF(L473=T('EXPENSE DATABASE'!$E$174),O473,0)","v":0},{"$f":"IF(L473=T('EXPENSE DATABASE'!$E$175),O473,0)","v":0},0,460]
[0,0,{"$nulls":12},{"v":0,"d":"$0.00"},{"v":0,"d":"$0.00"},{"v":0,"d":"$0.00"},0,{"$f":"IF(OR(K474='EXPENSE DATABASE'!$V$187,K474='EXPENSE DATABASE'!$V$188,K474='EXPENSE DATABASE'!$V$189,K474='EXPENSE DATABASE'!$V$190,K474='EXPENSE DATABASE'!$V$191,K474='EXPENSE DATABASE'!$V$192,K474='EXPENSE DATABASE'!$V$193,K474='EXPENSE DATABASE'!$V$194,K474='EXPENSE DATABASE'!$X$187,K474='EXPENSE DATABASE'!$X$188,K474='EXPENSE DATABASE'!$X$189,K474='EXPENSE DATABASE'!$X$190,K474='EXPENSE DATABASE'!$X$191,K474='EXPENSE DATABASE'!$X$192,K474='EXPENSE DATABASE'!$X$193,K474='EXPENSE DATABASE'!$X$194,K474='EXPENSE DATABASE'!$Z$187,K474='EXPENSE DATABASE'!$Z$188,K474='EXPENSE DATABASE'!$Z$189,K474='EXPENSE DATABASE'!$Z$190,K474='EXPENSE DATABASE'!$Z$191,K474='EXPENSE DATABASE'!$Z$192,K474='EXPENSE DATABASE'!$Z$193,K474='EXPENSE DATABASE'!$Z$194),O474,\"\")","v":""},{"$f":"IF(OR(K474='EXPENSE DATABASE'!$T$189,K474='EXPENSE DATABASE'!$T$190,K474='EXPENSE DATABASE'!$T$191),O474,\"\")","v":""},{"$f":"VLOOKUP(I474,'EXPENSE DATABASE'!$B$41:$C$65,2,FALSE)","v":{"$error":"#N/A"}},100,{"$f":"VLOOKUP(J474,'EXPENSE DATABASE'!$B$69:$C$168,2,FALSE)","v":{"$error":"#N/A"}},101,{"$f":"VLOOKUP(K474,'EXPENSE DATABASE'!$B$6:$C$35,2,FALSE)","v":{"$error":"#N/A"}},31,{"$f":"VLOOKUP(L474,'EXPENSE DATABASE'!$B$173:$C$176,2,FALSE)","v":{"$error":"#N/A"}},100,0,0,{"$f":"IF(L474=T('EXPENSE DATABASE'!$E$173),O474,0)","v":0},{"$f":"IF(L474=T('EXPENSE DATABASE'!$E$174),O474,0)","v":0},{"$f":"IF(L474=T('EXPENSE DATABASE'!$E$175),O474,0)","v":0},0,461]
[0,0,{"$nulls":12},{"v":0,"d":"$0.00"},{"v":0,"d":"$0.00"},{"v":0,"d":"$0.00"},0,{"$f":"IF(OR(K475='EXPENSE DATABASE'!$V$187,K475='EXPENSE DATABASE'!$V$188,K475='EXPENSE DATABASE'!$V$189,K475='EXPENSE DATABASE'!$V$190,K475='EXPENSE DATABASE'!$V$191,K475='EXPENSE DATABASE'!$V$192,K475='EXPENSE DATABASE'!$V$193,K475='EXPENSE DATABASE'!$V$194,K475='EXPENSE DATABASE'!$X$187,K475='EXPENSE DATABASE'!$X$188,K475='EXPENSE DATABASE'!$X$189,K475='EXPENSE DATABASE'!$X$190,K475='EXPENSE DATABASE'!$X$191,K475='EXPENSE DATABASE'!$X$192,K475='EXPENSE DATABASE'!$X$193,K475='EXPENSE DATABASE'!$X$194,K475='EXPENSE DATABASE'!$Z$187,K475='EXPENSE DATABASE'!$Z$188,K475='EXPENSE DATABASE'!$Z$189,K475='EXPENSE DATABASE'!$Z$190,K475='EXPENSE DATABASE'!$Z$191,K475='EXPENSE DATABASE'!$Z$192,K475='EXPENSE DATABASE'!$Z$193,K475='EXPENSE DATABASE'!$Z$194),O475,\"\")","v":""},{"$f":"IF(OR(K475='EXPENSE DATABASE'!$T$189,K475='EXPENSE DATABASE'!$T$190,K475='EXPENSE DATABASE'!$T$191),O475,\"\")","v":""},{"$f":"VLOOKUP(I475,'EXPENSE DATABASE'!$B$41:$C$65,2,FALSE)","v":{"$error":"#N/A"}},100,{"$f":"VLOOKUP(J475,'EXPENSE DATABASE'!$B$69:$C$168,2,FALSE)","v":{"$error":"#N/A"}},101,{"$f":"VLOOKUP(K475,'EXPENSE DATABASE'!$B$6:$C$35,2,FALSE)","v":{"$error":"#N/A"}},31,{"$f":"VLOOKUP(L475,'EXPENSE DATABASE'!$B$173:$C$176,2,FALSE)","v":{"$error":"#N/A"}},100,0,0,{"$f":"IF(L475=T('EXPENSE DATABASE'!$E$173),O475,0)","v":0},{"$f":"IF(L475=T('EXPENSE DATABASE'!$E$174),O475,0)","v":0},{"$f":"IF(L475=T('EXPENSE DATABASE'!$E$175),O475,0)","v":0},0,462]
[0,0,{"$nulls":12},{"v":0,"d":"$0.00"},{"v":0,"d":"$0.00"},{"v":0,"d":"$0.00"},0,{"$f":"IF(OR(K476='EXPENSE DATABASE'!$V$187,K476='EXPENSE DATABASE'!$V$188,K476='EXPENSE DATABASE'!$V$189,K476='EXPENSE DATABASE'!$V$190,K476='EXPENSE DATABASE'!$V$191,K476='EXPENSE DATABASE'!$V$192,K476='EXPENSE DATABASE'!$V$193,K476='EXPENSE DATABASE'!$V$194,K476='EXPENSE DATABASE'!$X$187,K476='EXPENSE DATABASE'!$X$188,K476='EXPENSE DATABASE'!$X$189,K476='EXPENSE DATABASE'!$X$190,K476='EXPENSE DATABASE'!$X$191,K476='EXPENSE DATABASE'!$X$192,K476='EXPENSE DATABASE'!$X$193,K476='EXPENSE DATABASE'!$X$194,K476='EXPENSE DATABASE'!$Z$187,K476='EXPENSE DATABASE'!$Z$188,K476='EXPENSE DATABASE'!$Z$189,K476='EXPENSE DATABASE'!$Z$190,K476='EXPENSE DATABASE'!$Z$191,K476='EXPENSE DATABASE'!$Z$192,K476='EXPENSE DATABASE'!$Z$193,K476='EXPENSE DATABASE'!$Z$194),O476,\"\")","v":""},{"$f":"IF(OR(K476='EXPENSE DATABASE'!$T$189,K476='EXPENSE DATABASE'!$T$190,K476='EXPENSE DATABASE'!$T$191),O476,\"\")","v":""},{"$f":"VLOOKUP(I476,'EXPENSE DATABASE'!$B$41:$C$65,2,FALSE)","v":{"$error":"#N/A"}},100,{"$f":"VLOOKUP(J476,'EXPENSE DATABASE'!$B$69:$C$168,2,FALSE)","v":{"$error":"#N/A"}},101,{"$f":"VLOOKUP(K476,'EXPENSE DATABASE'!$B$6:$C$35,2,FALSE)","v":{"$error":"#N/A"}},31,{"$f":"VLOOKUP(L476,'EXPENSE DATABASE'!$B$173:$C$176,2,FALSE)","v":{"$error":"#N/A"}},100,0,0,{"$f":"IF(L476=T('EXPENSE DATABASE'!$E$173),O476,0)","v":0},{"$f":"IF(L476=T('EXPENSE DATABASE'!$E$174),O476,0)","v":0},{"$f":"IF(L476=T('EXPENSE DATABASE'!$E$175),O476,0)","v":0},0,463]
[0,0,{"$nulls":12},{"v":0,"d":"$0.00"},{"v":0,"d":"$0.00"},{"v":0,"d":"$0.00"},0,{"$f":"IF(OR(K477='EXPENSE DATABASE'!$V$187,K477='EXPENSE DATABASE'!$V$188,K477='EXPENSE DATABASE'!$V$189,K477='EXPENSE DATABASE'!$V$190,K477='EXPENSE DATABASE'!$V$191,K477='EXPENSE DATABASE'!$V$192,K477='EXPENSE DATABASE'!$V$193,K477='EXPENSE DATABASE'!$V$194,K477='EXPENSE DATABASE'!$X$187,K477='EXPENSE DATABASE'!$X$188,K477='EXPENSE DATABASE'!$X$189,K477='EXPENSE DATABASE'!$X$190,K477='EXPENSE DATABASE'!$X$191,K477='EXPENSE DATABASE'!$X$192,K477='EXPENSE DATABASE'!$X$193,K477='EXPENSE DATABASE'!$X$194,K477='EXPENSE DATABASE'!$Z$187,K477='EXPENSE DATABASE'!$Z$188,K477='EXPENSE DATABASE'!$Z$189,K477='EXPENSE DATABASE'!$Z$190,K477='EXPENSE DATABASE'!$Z$191,K477='EXPENSE DATABASE'!$Z$192,K477='EXPENSE DATABASE'!$Z$193,K477='EXPENSE DATABASE'!$Z$194),O477,\"\")","v":""},{"$f":"IF(OR(K477='EXPENSE DATABASE'!$T$189,K477='EXPENSE DATABASE'!$T$190,K477='EXPENSE DATABASE'!$T$191),O477,\"\")","v":""},{"$f":"VLOOKUP(I477,'EXPENSE DATABASE'!$B$41:$C$65,2,FALSE)","v":{"$error":"#N/A"}},100,{"$f":"VLOOKUP(J477,'EXPENSE DATABASE'!$B$69:$C$168,2,FALSE)","v":{"$error":"#N/A"}},101,{"$f":"VLOOKUP(K477,'EXPENSE DATABASE'!$B$6:$C$35,2,FALSE)","v":{"$error":"#N/A"}},31,{"$f":"VLOOKUP(L477,'EXPENSE DATABASE'!$B$173:$C$176,2,FALSE)","v":{"$error":"#N/A"}},100,0,0,{"$f":"IF(L477=T('EXPENSE DATABASE'!$E$173),O477,0)","v":0},{"$f":"IF(L477=T('EXPENSE DATABASE'!$E$174),O477,0)","v":0},{"$f":"IF(L477=T('EXPENSE DATABASE'!$E$175),O477,0)","v":0},0,464]
[0,0,{"$nulls":12},{"v":0,"d":"$0.00"},{"v":0,"d":"$0.00"},{"v":0,"d":"$0.00"},0,{"$f":"IF(OR(K478='EXPENSE DATABASE'!$V$187,K478='EXPENSE DATABASE'!$V$188,K478='EXPENSE DATABASE'!$V$189,K478='EXPENSE DATABASE'!$V$190,K478='EXPENSE DATABASE'!$V$191,K478='EXPENSE DATABASE'!$V$192,K478='EXPENSE DATABASE'!$V$193,K478='EXPENSE DATABASE'!$V$194,K478='EXPENSE DATABASE'!$X$187,K478='EXPENSE DATABASE'!$X$188,K478='EXPENSE DATABASE'!$X$189,K478='EXPENSE DATABASE'!$X$190,K478='EXPENSE DATABASE'!$X$191,K478='EXPENSE DATABASE'!$X$192,K478='EXPENSE DATABASE'!$X$193,K478='EXPENSE DATABASE'!$X$194,K478='EXPENSE DATABASE'!$Z$187,K478='EXPENSE DATABASE'!$Z$188,K478='EXPENSE DATABASE'!$Z$189,K478='EXPENSE DATABASE'!$Z$190,K478='EXPENSE DATABASE'!$Z$191,K478='EXPENSE DATABASE'!$Z$192,K478='EXPENSE DATABASE'!$Z$193,K478='EXPENSE DATABASE'!$Z$194),O478,\"\")","v":""},{"$f":"IF(OR(K478='EXPENSE DATABASE'!$T$189,K478='EXPENSE DATABASE'!$T$190,K478='EXPENSE DATABASE'!$T$191),O478,\"\")","v":""},{"$f":"VLOOKUP(I478,'EXPENSE DATABASE'!$B$41:$C$65,2,FALSE)","v":{"$error":"#N/A"}},100,{"$f":"VLOOKUP(J478,'EXPENSE DATABASE'!$B$69:$C$168,2,FALSE)","v":{"$error":"#N/A"}},101,{"$f":"VLOOKUP(K478,'EXPENSE DATABASE'!$B$6:$C$35,2,FALSE)","v":{"$error":"#N/A"}},31,{"$f":"VLOOKUP(L478,'EXPENSE DATABASE'!$B$173:$C$176,2,FALSE)","v":{"$error":"#N/A"}},100,0,0,{"$f":"IF(L478=T('EXPENSE DATABASE'!$E$173),O478,0)","v":0},{"$f":"IF(L478=T('EXPENSE DATABASE'!$E$174),O478,0)","v":0},{"$f":"IF(L478=T('EXPENSE DATABASE'!$E$175),O478,0)","v":0},0,465]
[0,0,{"$nulls":12},{"v":0,"d":"$0.00"},{"v":0,"d":"$0.00"},{"v":0,"d":"$0.00"},0,{"$f":"IF(OR(K479='EXPENSE DATABASE'!$V$187,K479='EXPENSE DATABASE'!$V$188,K479='EXPENSE DATABASE'!$V$189,K479='EXPENSE DATABASE'!$V$190,K479='EXPENSE DATABASE'!$V$191,K479='EXPENSE DATABASE'!$V$192,K479='EXPENSE DATABASE'!$V$193,K479='EXPENSE DATABASE'!$V$194,K479='EXPENSE DATABASE'!$X$187,K479='EXPENSE DATABASE'!$X$188,K479='EXPENSE DATABASE'!$X$189,K479='EXPENSE DATABASE'!$X$190,K479='EXPENSE DATABASE'!$X$191,K479='EXPENSE DATABASE'!$X$192,K479='EXPENSE DATABASE'!$X$193,K479='EXPENSE DATABASE'!$X$194,K479='EXPENSE DATABASE'!$Z$187,K479='EXPENSE DATABASE'!$Z$188,K479='EXPENSE DATABASE'!$Z$189,K479='EXPENSE DATABASE'!$Z$190,K479='EXPENSE DATABASE'!$Z$191,K479='EXPENSE DATABASE'!$Z$192,K479='EXPENSE DATABASE'!$Z$193,K479='EXPENSE DATABASE'!$Z$194),O479,\"\")","v":""},{"$f":"IF(OR(K479='EXPENSE DATABASE'!$T$189,K479='EXPENSE DATABASE'!$T$190,K479='EXPENSE DATABASE'!$T$191),O479,\"\")","v":""},{"$f":"VLOOKUP(I479,'EXPENSE DATABASE'!$B$41:$C$65,2,FALSE)","v":{"$error":"#N/A"}},100,{"$f":"VLOOKUP(J479,'EXPENSE DATABASE'!$B$69:$C$168,2,FALSE)","v":{"$error":"#N/A"}},101,{"$f":"VLOOKUP(K479,'EXPENSE DATABASE'!$B$6:$C$35,2,FALSE)","v":{"$error":"#N/A"}},31,{"$f":"VLOOKUP(L479,'EXPENSE DATABASE'!$B$173:$C$176,2,FALSE)","v":{"$error":"#N/A"}},100,0,0,{"$f":"IF(L479=T('EXPENSE DATABASE'!$E$173),O479,0)","v":0},{"$f":"IF(L479=T('EXPENSE DATABASE'!$E$174),O479,0)","v":0},{"$f":"IF(L479=T('EXPENSE DATABASE'!$E$175),O479,0)","v":0},0,466]
[0,0,{"$nulls":12},{"v":0,"d":"$0.00"},{"v":0,"d":"$0.00"},{"v":0,"d":"$0.00"},0,{"$f":"IF(OR(K480='EXPENSE DATABASE'!$V$187,K480='EXPENSE DATABASE'!$V$188,K480='EXPENSE DATABASE'!$V$189,K480='EXPENSE DATABASE'!$V$190,K480='EXPENSE DATABASE'!$V$191,K480='EXPENSE DATABASE'!$V$192,K480='EXPENSE DATABASE'!$V$193,K480='EXPENSE DATABASE'!$V$194,K480='EXPENSE DATABASE'!$X$187,K480='EXPENSE DATABASE'!$X$188,K480='EXPENSE DATABASE'!$X$189,K480='EXPENSE DATABASE'!$X$190,K480='EXPENSE DATABASE'!$X$191,K480='EXPENSE DATABASE'!$X$192,K480='EXPENSE DATABASE'!$X$193,K480='EXPENSE DATABASE'!$X$194,K480='EXPENSE DATABASE'!$Z$187,K480='EXPENSE DATABASE'!$Z$188,K480='EXPENSE DATABASE'!$Z$189,K480='EXPENSE DATABASE'!$Z$190,K480='EXPENSE DATABASE'!$Z$191,K480='EXPENSE DATABASE'!$Z$192,K480='EXPENSE DATABASE'!$Z$193,K480='EXPENSE DATABASE'!$Z$194),O480,\"\")","v":""},{"$f":"IF(OR(K480='EXPENSE DATABASE'!$T$189,K480='EXPENSE DATABASE'!$T$190,K480='EXPENSE DATABASE'!$T$191),O480,\"\")","v":""},{"$f":"VLOOKUP(I480,'EXPENSE DATABASE'!$B$41:$C$65,2,FALSE)","v":{"$error":"#N/A"}},100,{"$f":"VLOOKUP(J480,'EXPENSE DATABASE'!$B$69:$C$168,2,FALSE)","v":{"$error":"#N/A"}},101,{"$f":"VLOOKUP(K480,'EXPENSE DATABASE'!$B$6:$C$35,2,FALSE)","v":{"$error":"#N/A"}},31,{"$f":"VLOOKUP(L480,'EXPENSE DATABASE'!$B$173:$C$176,2,FALSE)","v":{"$error":"#N/A"}},100,0,0,{"$f":"IF(L480=T('EXPENSE DATABASE'!$E$173),O480,0)","v":0},{"$f":"IF(L480=T('EXPENSE DATABASE'!$E$174),O480,0)","v":0},{"$f":"IF(L480=T('EXPENSE DATABASE'!$E$175),O480,0)","v":0},0,467]
[0,0,{"$nulls":12},{"v":0,"d":"$0.00"},{"v":0,"d":"$0.00"},{"v":0,"d":"$0.00"},0,{"$f":"IF(OR(K481='EXPENSE DATABASE'!$V$187,K481='EXPENSE DATABASE'!$V$188,K481='EXPENSE DATABASE'!$V$189,K481='EXPENSE DATABASE'!$V$190,K481='EXPENSE DATABASE'!$V$191,K481='EXPENSE DATABASE'!$V$192,K481='EXPENSE DATABASE'!$V$193,K481='EXPENSE DATABASE'!$V$194,K481='EXPENSE DATABASE'!$X$187,K481='EXPENSE DATABASE'!$X$188,K481='EXPENSE DATABASE'!$X$189,K481='EXPENSE DATABASE'!$X$190,K481='EXPENSE DATABASE'!$X$191,K481='EXPENSE DATABASE'!$X$192,K481='EXPENSE DATABASE'!$X$193,K481='EXPENSE DATABASE'!$X$194,K481='EXPENSE DATABASE'!$Z$187,K481='EXPENSE DATABASE'!$Z$188,K481='EXPENSE DATABASE'!$Z$189,K481='EXPENSE DATABASE'!$Z$190,K481='EXPENSE DATABASE'!$Z$191,K481='EXPENSE DATABASE'!$Z$192,K481='EXPENSE DATABASE'!$Z$193,K481='EXPENSE DATABASE'!$Z$194),O481,\"\")","v":""},{"$f":"IF(OR(K481='EXPENSE DATABASE'!$T$189,K481='EXPENSE DATABASE'!$T$190,K481='EXPENSE DATABASE'!$T$191),O481,\"\")","v":""},{"$f":"VLOOKUP(I481,'EXPENSE DATABASE'!$B$41:$C$65,2,FALSE)","v":{"$error":"#N/A"}},100,{"$f":"VLOOKUP(J481,'EXPENSE DATABASE'!$B$69:$C$168,2,FALSE)","v":{"$error":"#N/A"}},101,{"$f":"VLOOKUP(K481,'EXPENSE DATABASE'!$B$6:$C$35,2,FALSE)","v":{"$error":"#N/A"}},31,{"$f":"VLOOKUP(L481,'EXPENSE DATABASE'!$B$173:$C$176,2,FALSE)","v":{"$error":"#N/A"}},100,0,0,{"$f":"IF(L481=T('EXPENSE DATABASE'!$E$173),O481,0)","v":0},{"$f":"IF(L481=T('EXPENSE DATABASE'!$E$174),O481,0)","v":0},{"$f":"IF(L481=T('EXPENSE DATABASE'!$E$175),O481,0)","v":0},0,468]
[0,0,{"$nulls":12},{"v":0,"d":"$0.00"},{"v":0,"d":"$0.00"},{"v":0,"d":"$0.00"},0,{"$f":"IF(OR(K482='EXPENSE DATABASE'!$V$187,K482='EXPENSE DATABASE'!$V$188,K482='EXPENSE DATABASE'!$V$189,K482='EXPENSE DATABASE'!$V$190,K482='EXPENSE DATABASE'!$V$191,K482='EXPENSE DATABASE'!$V$192,K482='EXPENSE DATABASE'!$V$193,K482='EXPENSE DATABASE'!$V$194,K482='EXPENSE DATABASE'!$X$187,K482='EXPENSE DATABASE'!$X$188,K482='EXPENSE DATABASE'!$X$189,K482='EXPENSE DATABASE'!$X$190,K482='EXPENSE DATABASE'!$X$191,K482='EXPENSE DATABASE'!$X$192,K482='EXPENSE DATABASE'!$X$193,K482='EXPENSE DATABASE'!$X$194,K482='EXPENSE DATABASE'!$Z$187,K482='EXPENSE DATABASE'!$Z$188,K482='EXPENSE DATABASE'!$Z$189,K482='EXPENSE DATABASE'!$Z$190,K482='EXPENSE DATABASE'!$Z$191,K482='EXPENSE DATABASE'!$Z$192,K482='EXPENSE DATABASE'!$Z$193,K482='EXPENSE DATABASE'!$Z$194),O482,\"\")","v":""},{"$f":"IF(OR(K482='EXPENSE DATABASE'!$T$189,K482='EXPENSE DATABASE'!$T$190,K482='EXPENSE DATABASE'!$T$191),O482,\"\")","v":""},{"$f":"VLOOKUP(I482,'EXPENSE DATABASE'!$B$41:$C$65,2,FALSE)","v":{"$error":"#N/A"}},100,{"$f":"VLOOKUP(J482,'EXPENSE DATABASE'!$B$69:$C$168,2,FALSE)","v":{"$error":"#N/A"}},101,{"$f":"VLOOKUP(K482,'EXPENSE DATABASE'!$B$6:$C$35,2,FALSE)","v":{"$error":"#N/A"}},31,{"$f":"VLOOKUP(L482,'EXPENSE DATABASE'!$B$173:$C$176,2,FALSE)","v":{"$error":"#N/A"}},100,0,0,{"$f":"IF(L482=T('EXPENSE DATABASE'!$E$173),O482,0)","v":0},{"$f":"IF(L482=T('EXPENSE DATABASE'!$E$174),O482,0)","v":0},{"$f":"IF(L482=T('EXPENSE DATABASE'!$E$175),O482,0)","v":0},0,469]
[0,0,{"$nulls":12},{"v":0,"d":"$0.00"},{"v":0,"d":"$0.00"},{"v":0,"d":"$0.00"},0,{"$f":"IF(OR(K483='EXPENSE DATABASE'!$V$187,K483='EXPENSE DATABASE'!$V$188,K483='EXPENSE DATABASE'!$V$189,K483='EXPENSE DATABASE'!$V$190,K483='EXPENSE DATABASE'!$V$191,K483='EXPENSE DATABASE'!$V$192,K483='EXPENSE DATABASE'!$V$193,K483='EXPENSE DATABASE'!$V$194,K483='EXPENSE DATABASE'!$X$187,K483='EXPENSE DATABASE'!$X$188,K483='EXPENSE DATABASE'!$X$189,K483='EXPENSE DATABASE'!$X$190,K483='EXPENSE DATABASE'!$X$191,K483='EXPENSE DATABASE'!$X$192,K483='EXPENSE DATABASE'!$X$193,K483='EXPENSE DATABASE'!$X$194,K483='EXPENSE DATABASE'!$Z$187,K483='EXPENSE DATABASE'!$Z$188,K483='EXPENSE DATABASE'!$Z$189,K483='EXPENSE DATABASE'!$Z$190,K483='EXPENSE DATABASE'!$Z$191,K483='EXPENSE DATABASE'!$Z$192,K483='EXPENSE DATABASE'!$Z$193,K483='EXPENSE DATABASE'!$Z$194),O483,\"\")","v":""},{"$f":"IF(OR(K483='EXPENSE DATABASE'!$T$189,K483='EXPENSE DATABASE'!$T$190,K483='EXPENSE DATABASE'!$T$191),O483,\"\")","v":""},{"$f":"VLOOKUP(I483,'EXPENSE DATABASE'!$B$41:$C$65,2,FALSE)","v":{"$error":"#N/A"}},100,{"$f":"VLOOKUP(J483,'EXPENSE DATABASE'!$B$69:$C$168,2,FALSE)","v":{"$error":"#N/A"}},101,{"$f":"VLOOKUP(K483,'EXPENSE DATABASE'!$B$6:$C$35,2,FALSE)","v":{"$error":"#N/A"}},31,{"$f":"VLOOKUP(L483,'EXPENSE DATABASE'!$B$173:$C$176,2,FALSE)","v":{"$error":"#N/A"}},100,0,0,{"$f":"IF(L483=T('EXPENSE DATABASE'!$E$173),O483,0)","v":0},{"$f":"IF(L483=T('EXPENSE DATABASE'!$E$174),O483,0)","v":0},{"$f":"IF(L483=T('EXPENSE DATABASE'!$E$175),O483,0)","v":0},0,470]
[0,0,{"$nulls":12},{"v":0,"d":"$0.00"},{"v":0,"d":"$0.00"},{"v":0,"d":"$0.00"},0,{"$f":"IF(OR(K484='EXPENSE DATABASE'!$V$187,K484='EXPENSE DATABASE'!$V$188,K484='EXPENSE DATABASE'!$V$189,K484='EXPENSE DATABASE'!$V$190,K484='EXPENSE DATABASE'!$V$191,K484='EXPENSE DATABASE'!$V$192,K484='EXPENSE DATABASE'!$V$193,K484='EXPENSE DATABASE'!$V$194,K484='EXPENSE DATABASE'!$X$187,K484='EXPENSE DATABASE'!$X$188,K484='EXPENSE DATABASE'!$X$189,K484='EXPENSE DATABASE'!$X$190,K484='EXPENSE DATABASE'!$X$191,K484='EXPENSE DATABASE'!$X$192,K484='EXPENSE DATABASE'!$X$193,K484='EXPENSE DATABASE'!$X$194,K484='EXPENSE DATABASE'!$Z$187,K484='EXPENSE DATABASE'!$Z$188,K484='EXPENSE DATABASE'!$Z$189,K484='EXPENSE DATABASE'!$Z$190,K484='EXPENSE DATABASE'!$Z$191,K484='EXPENSE DATABASE'!$Z$192,K484='EXPENSE DATABASE'!$Z$193,K484='EXPENSE DATABASE'!$Z$194),O484,\"\")","v":""},{"$f":"IF(OR(K484='EXPENSE DATABASE'!$T$189,K484='EXPENSE DATABASE'!$T$190,K484='EXPENSE DATABASE'!$T$191),O484,\"\")","v":""},{"$f":"VLOOKUP(I484,'EXPENSE DATABASE'!$B$41:$C$65,2,FALSE)","v":{"$error":"#N/A"}},100,{"$f":"VLOOKUP(J484,'EXPENSE DATABASE'!$B$69:$C$168,2,FALSE)","v":{"$error":"#N/A"}},101,{"$f":"VLOOKUP(K484,'EXPENSE DATABASE'!$B$6:$C$35,2,FALSE)","v":{"$error":"#N/A"}},31,{"$f":"VLOOKUP(L484,'EXPENSE DATABASE'!$B$173:$C$176,2,FALSE)","v":{"$error":"#N/A"}},100,0,0,{"$f":"IF(L484=T('EXPENSE DATABASE'!$E$173),O484,0)","v":0},{"$f":"IF(L484=T('EXPENSE DATABASE'!$E$174),O484,0)","v":0},{"$f":"IF(L484=T('EXPENSE DATABASE'!$E$175),O484,0)","v":0},0,471]
[0,0,{"$nulls":12},{"v":0,"d":"$0.00"},{"v":0,"d":"$0.00"},{"v":0,"d":"$0.00"},0,{"$f":"IF(OR(K485='EXPENSE DATABASE'!$V$187,K485='EXPENSE DATABASE'!$V$188,K485='EXPENSE DATABASE'!$V$189,K485='EXPENSE DATABASE'!$V$190,K485='EXPENSE DATABASE'!$V$191,K485='EXPENSE DATABASE'!$V$192,K485='EXPENSE DATABASE'!$V$193,K485='EXPENSE DATABASE'!$V$194,K485='EXPENSE DATABASE'!$X$187,K485='EXPENSE DATABASE'!$X$188,K485='EXPENSE DATABASE'!$X$189,K485='EXPENSE DATABASE'!$X$190,K485='EXPENSE DATABASE'!$X$191,K485='EXPENSE DATABASE'!$X$192,K485='EXPENSE DATABASE'!$X$193,K485='EXPENSE DATABASE'!$X$194,K485='EXPENSE DATABASE'!$Z$187,K485='EXPENSE DATABASE'!$Z$188,K485='EXPENSE DATABASE'!$Z$189,K485='EXPENSE DATABASE'!$Z$190,K485='EXPENSE DATABASE'!$Z$191,K485='EXPENSE DATABASE'!$Z$192,K485='EXPENSE DATABASE'!$Z$193,K485='EXPENSE DATABASE'!$Z$194),O485,\"\")","v":""},{"$f":"IF(OR(K485='EXPENSE DATABASE'!$T$189,K485='EXPENSE DATABASE'!$T$190,K485='EXPENSE DATABASE'!$T$191),O485,\"\")","v":""},{"$f":"VLOOKUP(I485,'EXPENSE DATABASE'!$B$41:$C$65,2,FALSE)","v":{"$error":"#N/A"}},100,{"$f":"VLOOKUP(J485,'EXPENSE DATABASE'!$B$69:$C$168,2,FALSE)","v":{"$error":"#N/A"}},101,{"$f":"VLOOKUP(K485,'EXPENSE DATABASE'!$B$6:$C$35,2,FALSE)","v":{"$error":"#N/A"}},31,{"$f":"VLOOKUP(L485,'EXPENSE DATABASE'!$B$173:$C$176,2,FALSE)","v":{"$error":"#N/A"}},100,0,0,{"$f":"IF(L485=T('EXPENSE DATABASE'!$E$173),O485,0)","v":0},{"$f":"IF(L485=T('EXPENSE DATABASE'!$E$174),O485,0)","v":0},{"$f":"IF(L485=T('EXPENSE DATABASE'!$E$175),O485,0)","v":0},0,472]
[0,0,{"$nulls":12},{"v":0,"d":"$0.00"},{"v":0,"d":"$0.00"},{"v":0,"d":"$0.00"},0,{"$f":"IF(OR(K486='EXPENSE DATABASE'!$V$187,K486='EXPENSE DATABASE'!$V$188,K486='EXPENSE DATABASE'!$V$189,K486='EXPENSE DATABASE'!$V$190,K486='EXPENSE DATABASE'!$V$191,K486='EXPENSE DATABASE'!$V$192,K486='EXPENSE DATABASE'!$V$193,K486='EXPENSE DATABASE'!$V$194,K486='EXPENSE DATABASE'!$X$187,K486='EXPENSE DATABASE'!$X$188,K486='EXPENSE DATABASE'!$X$189,K486='EXPENSE DATABASE'!$X$190,K486='EXPENSE DATABASE'!$X$191,K486='EXPENSE DATABASE'!$X$192,K486='EXPENSE DATABASE'!$X$193,K486='EXPENSE DATABASE'!$X$194,K486='EXPENSE DATABASE'!$Z$187,K486='EXPENSE DATABASE'!$Z$188,K486='EXPENSE DATABASE'!$Z$189,K486='EXPENSE DATABASE'!$Z$190,K486='EXPENSE DATABASE'!$Z$191,K486='EXPENSE DATABASE'!$Z$192,K486='EXPENSE DATABASE'!$Z$193,K486='EXPENSE DATABASE'!$Z$194),O486,\"\")","v":""},{"$f":"IF(OR(K486='EXPENSE DATABASE'!$T$189,K486='EXPENSE DATABASE'!$T$190,K486='EXPENSE DATABASE'!$T$191),O486,\"\")","v":""},{"$f":"VLOOKUP(I486,'EXPENSE DATABASE'!$B$41:$C$65,2,FALSE)","v":{"$error":"#N/A"}},100,{"$f":"VLOOKUP(J486,'EXPENSE DATABASE'!$B$69:$C$168,2,FALSE)","v":{"$error":"#N/A"}},101,{"$f":"VLOOKUP(K486,'EXPENSE DATABASE'!$B$6:$C$35,2,FALSE)","v":{"$error":"#N/A"}},31,{"$f":"VLOOKUP(L486,'EXPENSE DATABASE'!$B$173:$C$176,2,FALSE)","v":{"$error":"#N/A"}},100,0,0,{"$f":"IF(L486=T('EXPENSE DATABASE'!$E$173),O486,0)","v":0},{"$f":"IF(L486=T('EXPENSE DATABASE'!$E$174),O486,0)","v":0},{"$f":"IF(L486=T('EXPENSE DATABASE'!$E$175),O486,0)","v":0},0,473]
[0,0,{"$nulls":12},{"v":0,"d":"$0.00"},{"v":0,"d":"$0.00"},{"v":0,"d":"$0.00"},0,{"$f":"IF(OR(K487='EXPENSE DATABASE'!$V$187,K487='EXPENSE DATABASE'!$V$188,K487='EXPENSE DATABASE'!$V$189,K487='EXPENSE DATABASE'!$V$190,K487='EXPENSE DATABASE'!$V$191,K487='EXPENSE DATABASE'!$V$192,K487='EXPENSE DATABASE'!$V$193,K487='EXPENSE DATABASE'!$V$194,K487='EXPENSE DATABASE'!$X$187,K487='EXPENSE DATABASE'!$X$188,K487='EXPENSE DATABASE'!$X$189,K487='EXPENSE DATABASE'!$X$190,K487='EXPENSE DATABASE'!$X$191,K487='EXPENSE DATABASE'!$X$192,K487='EXPENSE DATABASE'!$X$193,K487='EXPENSE DATABASE'!$X$194,K487='EXPENSE DATABASE'!$Z$187,K487='EXPENSE DATABASE'!$Z$188,K487='EXPENSE DATABASE'!$Z$189,K487='EXPENSE DATABASE'!$Z$190,K487='EXPENSE DATABASE'!$Z$191,K487='EXPENSE DATABASE'!$Z$192,K487='EXPENSE DATABASE'!$Z$193,K487='EXPENSE DATABASE'!$Z$194),O487,\"\")","v":""},{"$f":"IF(OR(K487='EXPENSE DATABASE'!$T$189,K487='EXPENSE DATABASE'!$T$190,K487='EXPENSE DATABASE'!$T$191),O487,\"\")","v":""},{"$f":"VLOOKUP(I487,'EXPENSE DATABASE'!$B$41:$C$65,2,FALSE)","v":{"$error":"#N/A"}},100,{"$f":"VLOOKUP(J487,'EXPENSE DATABASE'!$B$69:$C$168,2,FALSE)","v":{"$error":"#N/A"}},101,{"$f":"VLOOKUP(K487,'EXPENSE DATABASE'!$B$6:$C$35,2,FALSE)","v":{"$error":"#N/A"}},31,{"$f":"VLOOKUP(L487,'EXPENSE DATABASE'!$B$173:$C$176,2,FALSE)","v":{"$error":"#N/A"}},100,0,0,{"$f":"IF(L487=T('EXPENSE DATABASE'!$E$173),O487,0)","v":0},{"$f":"IF(L487=T('EXPENSE DATABASE'!$E$174),O487,0)","v":0},{"$f":"IF(L487=T('EXPENSE DATABASE'!$E$175),O487,0)","v":0},0,474]
[0,0,{"$nulls":12},{"v":0,"d":"$0.00"},{"v":0,"d":"$0.00"},{"v":0,"d":"$0.00"},0,{"$f":"IF(OR(K488='EXPENSE DATABASE'!$V$187,K488='EXPENSE DATABASE'!$V$188,K488='EXPENSE DATABASE'!$V$189,K488='EXPENSE DATABASE'!$V$190,K488='EXPENSE DATABASE'!$V$191,K488='EXPENSE DATABASE'!$V$192,K488='EXPENSE DATABASE'!$V$193,K488='EXPENSE DATABASE'!$V$194,K488='EXPENSE DATABASE'!$X$187,K488='EXPENSE DATABASE'!$X$188,K488='EXPENSE DATABASE'!$X$189,K488='EXPENSE DATABASE'!$X$190,K488='EXPENSE DATABASE'!$X$191,K488='EXPENSE DATABASE'!$X$192,K488='EXPENSE DATABASE'!$X$193,K488='EXPENSE DATABASE'!$X$194,K488='EXPENSE DATABASE'!$Z$187,K488='EXPENSE DATABASE'!$Z$188,K488='EXPENSE DATABASE'!$Z$189,K488='EXPENSE DATABASE'!$Z$190,K488='EXPENSE DATABASE'!$Z$191,K488='EXPENSE DATABASE'!$Z$192,K488='EXPENSE DATABASE'!$Z$193,K488='EXPENSE DATABASE'!$Z$194),O488,\"\")","v":""},{"$f":"IF(OR(K488='EXPENSE DATABASE'!$T$189,K488='EXPENSE DATABASE'!$T$190,K488='EXPENSE DATABASE'!$T$191),O488,\"\")","v":""},{"$f":"VLOOKUP(I488,'EXPENSE DATABASE'!$B$41:$C$65,2,FALSE)","v":{"$error":"#N/A"}},100,{"$f":"VLOOKUP(J488,'EXPENSE DATABASE'!$B$69:$C$168,2,FALSE)","v":{"$error":"#N/A"}},101,{"$f":"VLOOKUP(K488,'EXPENSE DATABASE'!$B$6:$C$35,2,FALSE)","v":{"$error":"#N/A"}},31,{"$f":"VLOOKUP(L488,'EXPENSE DATABASE'!$B$173:$C$176,2,FALSE)","v":{"$error":"#N/A"}},100,0,0,{"$f":"IF(L488=T('EXPENSE DATABASE'!$E$173),O488,0)","v":0},{"$f":"IF(L488=T('EXPENSE DATABASE'!$E$174),O488,0)","v":0},{"$f":"IF(L488=T('EXPENSE DATABASE'!$E$175),O488,0)","v":0},0,475]
[0,0,{"$nulls":12},{"v":0,"d":"$0.00"},{"v":0,"d":"$0.00"},{"v":0,"d":"$0.00"},0,{"$f":"IF(OR(K489='EXPENSE DATABASE'!$V$187,K489='EXPENSE DATABASE'!$V$188,K489='EXPENSE DATABASE'!$V$189,K489='EXPENSE DATABASE'!$V$190,K489='EXPENSE DATABASE'!$V$191,K489='EXPENSE DATABASE'!$V$192,K489='EXPENSE DATABASE'!$V$193,K489='EXPENSE DATABASE'!$V$194,K489='EXPENSE DATABASE'!$X$187,K489='EXPENSE DATABASE'!$X$188,K489='EXPENSE DATABASE'!$X$189,K489='EXPENSE DATABASE'!$X$190,K489='EXPENSE DATABASE'!$X$191,K489='EXPENSE DATABASE'!$X$192,K489='EXPENSE DATABASE'!$X$193,K489='EXPENSE DATABASE'!$X$194,K489='EXPENSE DATABASE'!$Z$187,K489='EXPENSE DATABASE'!$Z$188,K489='EXPENSE DATABASE'!$Z$189,K489='EXPENSE DATABASE'!$Z$190,K489='EXPENSE DATABASE'!$Z$191,K489='EXPENSE DATABASE'!$Z$192,K489='EXPENSE DATABASE'!$Z$193,K489='EXPENSE DATABASE'!$Z$194),O489,\"\")","v":""},{"$f":"IF(OR(K489='EXPENSE DATABASE'!$T$189,K489='EXPENSE DATABASE'!$T$190,K489='EXPENSE DATABASE'!$T$191),O489,\"\")","v":""},{"$f":"VLOOKUP(I489,'EXPENSE DATABASE'!$B$41:$C$65,2,FALSE)","v":{"$error":"#N/A"}},100,{"$f":"VLOOKUP(J489,'EXPENSE DATABASE'!$B$69:$C$168,2,FALSE)","v":{"$error":"#N/A"}},101,{"$f":"VLOOKUP(K489,'EXPENSE DATABASE'!$B$6:$C$35,2,FALSE)","v":{"$error":"#N/A"}},31,{"$f":"VLOOKUP(L489,'EXPENSE DATABASE'!$B$173:$C$176,2,FALSE)","v":{"$error":"#N/A"}},100,0,0,{"$f":"IF(L489=T('EXPENSE DATABASE'!$E$173),O489,0)","v":0},{"$f":"IF(L489=T('EXPENSE DATABASE'!$E$174),O489,0)","v":0},{"$f":"IF(L489=T('EXPENSE DATABASE'!$E$175),O489,0)","v":0},0,476]
[0,0,{"$nulls":12},{"v":0,"d":"$0.00"},{"v":0,"d":"$0.00"},{"v":0,"d":"$0.00"},0,{"$f":"IF(OR(K490='EXPENSE DATABASE'!$V$187,K490='EXPENSE DATABASE'!$V$188,K490='EXPENSE DATABASE'!$V$189,K490='EXPENSE DATABASE'!$V$190,K490='EXPENSE DATABASE'!$V$191,K490='EXPENSE DATABASE'!$V$192,K490='EXPENSE DATABASE'!$V$193,K490='EXPENSE DATABASE'!$V$194,K490='EXPENSE DATABASE'!$X$187,K490='EXPENSE DATABASE'!$X$188,K490='EXPENSE DATABASE'!$X$189,K490='EXPENSE DATABASE'!$X$190,K490='EXPENSE DATABASE'!$X$191,K490='EXPENSE DATABASE'!$X$192,K490='EXPENSE DATABASE'!$X$193,K490='EXPENSE DATABASE'!$X$194,K490='EXPENSE DATABASE'!$Z$187,K490='EXPENSE DATABASE'!$Z$188,K490='EXPENSE DATABASE'!$Z$189,K490='EXPENSE DATABASE'!$Z$190,K490='EXPENSE DATABASE'!$Z$191,K490='EXPENSE DATABASE'!$Z$192,K490='EXPENSE DATABASE'!$Z$193,K490='EXPENSE DATABASE'!$Z$194),O490,\"\")","v":""},{"$f":"IF(OR(K490='EXPENSE DATABASE'!$T$189,K490='EXPENSE DATABASE'!$T$190,K490='EXPENSE DATABASE'!$T$191),O490,\"\")","v":""},{"$f":"VLOOKUP(I490,'EXPENSE DATABASE'!$B$41:$C$65,2,FALSE)","v":{"$error":"#N/A"}},100,{"$f":"VLOOKUP(J490,'EXPENSE DATABASE'!$B$69:$C$168,2,FALSE)","v":{"$error":"#N/A"}},101,{"$f":"VLOOKUP(K490,'EXPENSE DATABASE'!$B$6:$C$35,2,FALSE)","v":{"$error":"#N/A"}},31,{"$f":"VLOOKUP(L490,'EXPENSE DATABASE'!$B$173:$C$176,2,FALSE)","v":{"$error":"#N/A"}},100,0,0,{"$f":"IF(L490=T('EXPENSE DATABASE'!$E$173),O490,0)","v":0},{"$f":"IF(L490=T('EXPENSE DATABASE'!$E$174),O490,0)","v":0},{"$f":"IF(L490=T('EXPENSE DATABASE'!$E$175),O490,0)","v":0},0,477]
[0,0,{"$nulls":12},{"v":0,"d":"$0.00"},{"v":0,"d":"$0.00"},{"v":0,"d":"$0.00"},0,{"$f":"IF(OR(K491='EXPENSE DATABASE'!$V$187,K491='EXPENSE DATABASE'!$V$188,K491='EXPENSE DATABASE'!$V$189,K491='EXPENSE DATABASE'!$V$190,K491='EXPENSE DATABASE'!$V$191,K491='EXPENSE DATABASE'!$V$192,K491='EXPENSE DATABASE'!$V$193,K491='EXPENSE DATABASE'!$V$194,K491='EXPENSE DATABASE'!$X$187,K491='EXPENSE DATABASE'!$X$188,K491='EXPENSE DATABASE'!$X$189,K491='EXPENSE DATABASE'!$X$190,K491='EXPENSE DATABASE'!$X$191,K491='EXPENSE DATABASE'!$X$192,K491='EXPENSE DATABASE'!$X$193,K491='EXPENSE DATABASE'!$X$194,K491='EXPENSE DATABASE'!$Z$187,K491='EXPENSE DATABASE'!$Z$188,K491='EXPENSE DATABASE'!$Z$189,K491='EXPENSE DATABASE'!$Z$190,K491='EXPENSE DATABASE'!$Z$191,K491='EXPENSE DATABASE'!$Z$192,K491='EXPENSE DATABASE'!$Z$193,K491='EXPENSE DATABASE'!$Z$194),O491,\"\")","v":""},{"$f":"IF(OR(K491='EXPENSE DATABASE'!$T$189,K491='EXPENSE DATABASE'!$T$190,K491='EXPENSE DATABASE'!$T$191),O491,\"\")","v":""},{"$f":"VLOOKUP(I491,'EXPENSE DATABASE'!$B$41:$C$65,2,FALSE)","v":{"$error":"#N/A"}},100,{"$f":"VLOOKUP(J491,'EXPENSE DATABASE'!$B$69:$C$168,2,FALSE)","v":{"$error":"#N/A"}},101,{"$f":"VLOOKUP(K491,'EXPENSE DATABASE'!$B$6:$C$35,2,FALSE)","v":{"$error":"#N/A"}},31,{"$f":"VLOOKUP(L491,'EXPENSE DATABASE'!$B$173:$C$176,2,FALSE)","v":{"$error":"#N/A"}},100,0,0,{"$f":"IF(L491=T('EXPENSE DATABASE'!$E$173),O491,0)","v":0},{"$f":"IF(L491=T('EXPENSE DATABASE'!$E$174),O491,0)","v":0},{"$f":"IF(L491=T('EXPENSE DATABASE'!$E$175),O491,0)","v":0},0,478]
[0,0,{"$nulls":12},{"v":0,"d":"$0.00"},{"v":0,"d":"$0.00"},{"v":0,"d":"$0.00"},0,{"$f":"IF(OR(K492='EXPENSE DATABASE'!$V$187,K492='EXPENSE DATABASE'!$V$188,K492='EXPENSE DATABASE'!$V$189,K492='EXPENSE DATABASE'!$V$190,K492='EXPENSE DATABASE'!$V$191,K492='EXPENSE DATABASE'!$V$192,K492='EXPENSE DATABASE'!$V$193,K492='EXPENSE DATABASE'!$V$194,K492='EXPENSE DATABASE'!$X$187,K492='EXPENSE DATABASE'!$X$188,K492='EXPENSE DATABASE'!$X$189,K492='EXPENSE DATABASE'!$X$190,K492='EXPENSE DATABASE'!$X$191,K492='EXPENSE DATABASE'!$X$192,K492='EXPENSE DATABASE'!$X$193,K492='EXPENSE DATABASE'!$X$194,K492='EXPENSE DATABASE'!$Z$187,K492='EXPENSE DATABASE'!$Z$188,K492='EXPENSE DATABASE'!$Z$189,K492='EXPENSE DATABASE'!$Z$190,K492='EXPENSE DATABASE'!$Z$191,K492='EXPENSE DATABASE'!$Z$192,K492='EXPENSE DATABASE'!$Z$193,K492='EXPENSE DATABASE'!$Z$194),O492,\"\")","v":""},{"$f":"IF(OR(K492='EXPENSE DATABASE'!$T$189,K492='EXPENSE DATABASE'!$T$190,K492='EXPENSE DATABASE'!$T$191),O492,\"\")","v":""},{"$f":"VLOOKUP(I492,'EXPENSE DATABASE'!$B$41:$C$65,2,FALSE)","v":{"$error":"#N/A"}},100,{"$f":"VLOOKUP(J492,'EXPENSE DATABASE'!$B$69:$C$168,2,FALSE)","v":{"$error":"#N/A"}},101,{"$f":"VLOOKUP(K492,'EXPENSE DATABASE'!$B$6:$C$35,2,FALSE)","v":{"$error":"#N/A"}},31,{"$f":"VLOOKUP(L492,'EXPENSE DATABASE'!$B$173:$C$176,2,FALSE)","v":{"$error":"#N/A"}},100,0,0,{"$f":"IF(L492=T('EXPENSE DATABASE'!$E$173),O492,0)","v":0},{"$f":"IF(L492=T('EXPENSE DATABASE'!$E$174),O492,0)","v":0},{"$f":"IF(L492=T('EXPENSE DATABASE'!$E$175),O492,0)","v":0},0,479]
[0,0,{"$nulls":12},{"v":0,"d":"$0.00"},{"v":0,"d":"$0.00"},{"v":0,"d":"$0.00"},0,{"$f":"IF(OR(K493='EXPENSE DATABASE'!$V$187,K493='EXPENSE DATABASE'!$V$188,K493='EXPENSE DATABASE'!$V$189,K493='EXPENSE DATABASE'!$V$190,K493='EXPENSE DATABASE'!$V$191,K493='EXPENSE DATABASE'!$V$192,K493='EXPENSE DATABASE'!$V$193,K493='EXPENSE DATABASE'!$V$194,K493='EXPENSE DATABASE'!$X$187,K493='EXPENSE DATABASE'!$X$188,K493='EXPENSE DATABASE'!$X$189,K493='EXPENSE DATABASE'!$X$190,K493='EXPENSE DATABASE'!$X$191,K493='EXPENSE DATABASE'!$X$192,K493='EXPENSE DATABASE'!$X$193,K493='EXPENSE DATABASE'!$X$194,K493='EXPENSE DATABASE'!$Z$187,K493='EXPENSE DATABASE'!$Z$188,K493='EXPENSE DATABASE'!$Z$189,K493='EXPENSE DATABASE'!$Z$190,K493='EXPENSE DATABASE'!$Z$191,K493='EXPENSE DATABASE'!$Z$192,K493='EXPENSE DATABASE'!$Z$193,K493='EXPENSE DATABASE'!$Z$194),O493,\"\")","v":""},{"$f":"IF(OR(K493='EXPENSE DATABASE'!$T$189,K493='EXPENSE DATABASE'!$T$190,K493='EXPENSE DATABASE'!$T$191),O493,\"\")","v":""},{"$f":"VLOOKUP(I493,'EXPENSE DATABASE'!$B$41:$C$65,2,FALSE)","v":{"$error":"#N/A"}},100,{"$f":"VLOOKUP(J493,'EXPENSE DATABASE'!$B$69:$C$168,2,FALSE)","v":{"$error":"#N/A"}},101,{"$f":"VLOOKUP(K493,'EXPENSE DATABASE'!$B$6:$C$35,2,FALSE)","v":{"$error":"#N/A"}},31,{"$f":"VLOOKUP(L493,'EXPENSE DATABASE'!$B$173:$C$176,2,FALSE)","v":{"$error":"#N/A"}},100,0,0,{"$f":"IF(L493=T('EXPENSE DATABASE'!$E$173),O493,0)","v":0},{"$f":"IF(L493=T('EXPENSE DATABASE'!$E$174),O493,0)","v":0},{"$f":"IF(L493=T('EXPENSE DATABASE'!$E$175),O493,0)","v":0},0,480]
[0,0,{"$nulls":12},{"v":0,"d":"$0.00"},{"v":0,"d":"$0.00"},{"v":0,"d":"$0.00"},0,{"$f":"IF(OR(K494='EXPENSE DATABASE'!$V$187,K494='EXPENSE DATABASE'!$V$188,K494='EXPENSE DATABASE'!$V$189,K494='EXPENSE DATABASE'!$V$190,K494='EXPENSE DATABASE'!$V$191,K494='EXPENSE DATABASE'!$V$192,K494='EXPENSE DATABASE'!$V$193,K494='EXPENSE DATABASE'!$V$194,K494='EXPENSE DATABASE'!$X$187,K494='EXPENSE DATABASE'!$X$188,K494='EXPENSE DATABASE'!$X$189,K494='EXPENSE DATABASE'!$X$190,K494='EXPENSE DATABASE'!$X$191,K494='EXPENSE DATABASE'!$X$192,K494='EXPENSE DATABASE'!$X$193,K494='EXPENSE DATABASE'!$X$194,K494='EXPENSE DATABASE'!$Z$187,K494='EXPENSE DATABASE'!$Z$188,K494='EXPENSE DATABASE'!$Z$189,K494='EXPENSE DATABASE'!$Z$190,K494='EXPENSE DATABASE'!$Z$191,K494='EXPENSE DATABASE'!$Z$192,K494='EXPENSE DATABASE'!$Z$193,K494='EXPENSE DATABASE'!$Z$194),O494,\"\")","v":""},{"$f":"IF(OR(K494='EXPENSE DATABASE'!$T$189,K494='EXPENSE DATABASE'!$T$190,K494='EXPENSE DATABASE'!$T$191),O494,\"\")","v":""},{"$f":"VLOOKUP(I494,'EXPENSE DATABASE'!$B$41:$C$65,2,FALSE)","v":{"$error":"#N/A"}},100,{"$f":"VLOOKUP(J494,'EXPENSE DATABASE'!$B$69:$C$168,2,FALSE)","v":{"$error":"#N/A"}},101,{"$f":"VLOOKUP(K494,'EXPENSE DATABASE'!$B$6:$C$35,2,FALSE)","v":{"$error":"#N/A"}},31,{"$f":"VLOOKUP(L494,'EXPENSE DATABASE'!$B$173:$C$176,2,FALSE)","v":{"$error":"#N/A"}},100,0,0,{"$f":"IF(L494=T('EXPENSE DATABASE'!$E$173),O494,0)","v":0},{"$f":"IF(L494=T('EXPENSE DATABASE'!$E$174),O494,0)","v":0},{"$f":"IF(L494=T('EXPENSE DATABASE'!$E$175),O494,0)","v":0},0,481]
[0,0,{"$nulls":12},{"v":0,"d":"$0.00"},{"v":0,"d":"$0.00"},{"v":0,"d":"$0.00"},0,{"$f":"IF(OR(K495='EXPENSE DATABASE'!$V$187,K495='EXPENSE DATABASE'!$V$188,K495='EXPENSE DATABASE'!$V$189,K495='EXPENSE DATABASE'!$V$190,K495='EXPENSE DATABASE'!$V$191,K495='EXPENSE DATABASE'!$V$192,K495='EXPENSE DATABASE'!$V$193,K495='EXPENSE DATABASE'!$V$194,K495='EXPENSE DATABASE'!$X$187,K495='EXPENSE DATABASE'!$X$188,K495='EXPENSE DATABASE'!$X$189,K495='EXPENSE DATABASE'!$X$190,K495='EXPENSE DATABASE'!$X$191,K495='EXPENSE DATABASE'!$X$192,K495='EXPENSE DATABASE'!$X$193,K495='EXPENSE DATABASE'!$X$194,K495='EXPENSE DATABASE'!$Z$187,K495='EXPENSE DATABASE'!$Z$188,K495='EXPENSE DATABASE'!$Z$189,K495='EXPENSE DATABASE'!$Z$190,K495='EXPENSE DATABASE'!$Z$191,K495='EXPENSE DATABASE'!$Z$192,K495='EXPENSE DATABASE'!$Z$193,K495='EXPENSE DATABASE'!$Z$194),O495,\"\")","v":""},{"$f":"IF(OR(K495='EXPENSE DATABASE'!$T$189,K495='EXPENSE DATABASE'!$T$190,K495='EXPENSE DATABASE'!$T$191),O495,\"\")","v":""},{"$f":"VLOOKUP(I495,'EXPENSE DATABASE'!$B$41:$C$65,2,FALSE)","v":{"$error":"#N/A"}},100,{"$f":"VLOOKUP(J495,'EXPENSE DATABASE'!$B$69:$C$168,2,FALSE)","v":{"$error":"#N/A"}},101,{"$f":"VLOOKUP(K495,'EXPENSE DATABASE'!$B$6:$C$35,2,FALSE)","v":{"$error":"#N/A"}},31,{"$f":"VLOOKUP(L495,'EXPENSE DATABASE'!$B$173:$C$176,2,FALSE)","v":{"$error":"#N/A"}},100,0,0,{"$f":"IF(L495=T('EXPENSE DATABASE'!$E$173),O495,0)","v":0},{"$f":"IF(L495=T('EXPENSE DATABASE'!$E$174),O495,0)","v":0},{"$f":"IF(L495=T('EXPENSE DATABASE'!$E$175),O495,0)","v":0},0,482]
[0,0,{"$nulls":12},{"v":0,"d":"$0.00"},{"v":0,"d":"$0.00"},{"v":0,"d":"$0.00"},0,{"$f":"IF(OR(K496='EXPENSE DATABASE'!$V$187,K496='EXPENSE DATABASE'!$V$188,K496='EXPENSE DATABASE'!$V$189,K496='EXPENSE DATABASE'!$V$190,K496='EXPENSE DATABASE'!$V$191,K496='EXPENSE DATABASE'!$V$192,K496='EXPENSE DATABASE'!$V$193,K496='EXPENSE DATABASE'!$V$194,K496='EXPENSE DATABASE'!$X$187,K496='EXPENSE DATABASE'!$X$188,K496='EXPENSE DATABASE'!$X$189,K496='EXPENSE DATABASE'!$X$190,K496='EXPENSE DATABASE'!$X$191,K496='EXPENSE DATABASE'!$X$192,K496='EXPENSE DATABASE'!$X$193,K496='EXPENSE DATABASE'!$X$194,K496='EXPENSE DATABASE'!$Z$187,K496='EXPENSE DATABASE'!$Z$188,K496='EXPENSE DATABASE'!$Z$189,K496='EXPENSE DATABASE'!$Z$190,K496='EXPENSE DATABASE'!$Z$191,K496='EXPENSE DATABASE'!$Z$192,K496='EXPENSE DATABASE'!$Z$193,K496='EXPENSE DATABASE'!$Z$194),O496,\"\")","v":""},{"$f":"IF(OR(K496='EXPENSE DATABASE'!$T$189,K496='EXPENSE DATABASE'!$T$190,K496='EXPENSE DATABASE'!$T$191),O496,\"\")","v":""},{"$f":"VLOOKUP(I496,'EXPENSE DATABASE'!$B$41:$C$65,2,FALSE)","v":{"$error":"#N/A"}},100,{"$f":"VLOOKUP(J496,'EXPENSE DATABASE'!$B$69:$C$168,2,FALSE)","v":{"$error":"#N/A"}},101,{"$f":"VLOOKUP(K496,'EXPENSE DATABASE'!$B$6:$C$35,2,FALSE)","v":{"$error":"#N/A"}},31,{"$f":"VLOOKUP(L496,'EXPENSE DATABASE'!$B$173:$C$176,2,FALSE)","v":{"$error":"#N/A"}},100,0,0,{"$f":"IF(L496=T('EXPENSE DATABASE'!$E$173),O496,0)","v":0},{"$f":"IF(L496=T('EXPENSE DATABASE'!$E$174),O496,0)","v":0},{"$f":"IF(L496=T('EXPENSE DATABASE'!$E$175),O496,0)","v":0},0,483]
[0,0,{"$nulls":12},{"v":0,"d":"$0.00"},{"v":0,"d":"$0.00"},{"v":0,"d":"$0.00"},0,{"$f":"IF(OR(K497='EXPENSE DATABASE'!$V$187,K497='EXPENSE DATABASE'!$V$188,K497='EXPENSE DATABASE'!$V$189,K497='EXPENSE DATABASE'!$V$190,K497='EXPENSE DATABASE'!$V$191,K497='EXPENSE DATABASE'!$V$192,K497='EXPENSE DATABASE'!$V$193,K497='EXPENSE DATABASE'!$V$194,K497='EXPENSE DATABASE'!$X$187,K497='EXPENSE DATABASE'!$X$188,K497='EXPENSE DATABASE'!$X$189,K497='EXPENSE DATABASE'!$X$190,K497='EXPENSE DATABASE'!$X$191,K497='EXPENSE DATABASE'!$X$192,K497='EXPENSE DATABASE'!$X$193,K497='EXPENSE DATABASE'!$X$194,K497='EXPENSE DATABASE'!$Z$187,K497='EXPENSE DATABASE'!$Z$188,K497='EXPENSE DATABASE'!$Z$189,K497='EXPENSE DATABASE'!$Z$190,K497='EXPENSE DATABASE'!$Z$191,K497='EXPENSE DATABASE'!$Z$192,K497='EXPENSE DATABASE'!$Z$193,K497='EXPENSE DATABASE'!$Z$194),O497,\"\")","v":""},{"$f":"IF(OR(K497='EXPENSE DATABASE'!$T$189,K497='EXPENSE DATABASE'!$T$190,K497='EXPENSE DATABASE'!$T$191),O497,\"\")","v":""},{"$f":"VLOOKUP(I497,'EXPENSE DATABASE'!$B$41:$C$65,2,FALSE)","v":{"$error":"#N/A"}},100,{"$f":"VLOOKUP(J497,'EXPENSE DATABASE'!$B$69:$C$168,2,FALSE)","v":{"$error":"#N/A"}},101,{"$f":"VLOOKUP(K497,'EXPENSE DATABASE'!$B$6:$C$35,2,FALSE)","v":{"$error":"#N/A"}},31,{"$f":"VLOOKUP(L497,'EXPENSE DATABASE'!$B$173:$C$176,2,FALSE)","v":{"$error":"#N/A"}},100,0,0,{"$f":"IF(L497=T('EXPENSE DATABASE'!$E$173),O497,0)","v":0},{"$f":"IF(L497=T('EXPENSE DATABASE'!$E$174),O497,0)","v":0},{"$f":"IF(L497=T('EXPENSE DATABASE'!$E$175),O497,0)","v":0},0,484]
[0,0,{"$nulls":12},{"v":0,"d":"$0.00"},{"v":0,"d":"$0.00"},{"v":0,"d":"$0.00"},0,{"$f":"IF(OR(K498='EXPENSE DATABASE'!$V$187,K498='EXPENSE DATABASE'!$V$188,K498='EXPENSE DATABASE'!$V$189,K498='EXPENSE DATABASE'!$V$190,K498='EXPENSE DATABASE'!$V$191,K498='EXPENSE DATABASE'!$V$192,K498='EXPENSE DATABASE'!$V$193,K498='EXPENSE DATABASE'!$V$194,K498='EXPENSE DATABASE'!$X$187,K498='EXPENSE DATABASE'!$X$188,K498='EXPENSE DATABASE'!$X$189,K498='EXPENSE DATABASE'!$X$190,K498='EXPENSE DATABASE'!$X$191,K498='EXPENSE DATABASE'!$X$192,K498='EXPENSE DATABASE'!$X$193,K498='EXPENSE DATABASE'!$X$194,K498='EXPENSE DATABASE'!$Z$187,K498='EXPENSE DATABASE'!$Z$188,K498='EXPENSE DATABASE'!$Z$189,K498='EXPENSE DATABASE'!$Z$190,K498='EXPENSE DATABASE'!$Z$191,K498='EXPENSE DATABASE'!$Z$192,K498='EXPENSE DATABASE'!$Z$193,K498='EXPENSE DATABASE'!$Z$194),O498,\"\")","v":""},{"$f":"IF(OR(K498='EXPENSE DATABASE'!$T$189,K498='EXPENSE DATABASE'!$T$190,K498='EXPENSE DATABASE'!$T$191),O498,\"\")","v":""},{"$f":"VLOOKUP(I498,'EXPENSE DATABASE'!$B$41:$C$65,2,FALSE)","v":{"$error":"#N/A"}},100,{"$f":"VLOOKUP(J498,'EXPENSE DATABASE'!$B$69:$C$168,2,FALSE)","v":{"$error":"#N/A"}},101,{"$f":"VLOOKUP(K498,'EXPENSE DATABASE'!$B$6:$C$35,2,FALSE)","v":{"$error":"#N/A"}},31,{"$f":"VLOOKUP(L498,'EXPENSE DATABASE'!$B$173:$C$176,2,FALSE)","v":{"$error":"#N/A"}},100,0,0,{"$f":"IF(L498=T('EXPENSE DATABASE'!$E$173),O498,0)","v":0},{"$f":"IF(L498=T('EXPENSE DATABASE'!$E$174),O498,0)","v":0},{"$f":"IF(L498=T('EXPENSE DATABASE'!$E$175),O498,0)","v":0},0,485]
[0,0,{"$nulls":12},{"v":0,"d":"$0.00"},{"v":0,"d":"$0.00"},{"v":0,"d":"$0.00"},0,{"$f":"IF(OR(K499='EXPENSE DATABASE'!$V$187,K499='EXPENSE DATABASE'!$V$188,K499='EXPENSE DATABASE'!$V$189,K499='EXPENSE DATABASE'!$V$190,K499='EXPENSE DATABASE'!$V$191,K499='EXPENSE DATABASE'!$V$192,K499='EXPENSE DATABASE'!$V$193,K499='EXPENSE DATABASE'!$V$194,K499='EXPENSE DATABASE'!$X$187,K499='EXPENSE DATABASE'!$X$188,K499='EXPENSE DATABASE'!$X$189,K499='EXPENSE DATABASE'!$X$190,K499='EXPENSE DATABASE'!$X$191,K499='EXPENSE DATABASE'!$X$192,K499='EXPENSE DATABASE'!$X$193,K499='EXPENSE DATABASE'!$X$194,K499='EXPENSE DATABASE'!$Z$187,K499='EXPENSE DATABASE'!$Z$188,K499='EXPENSE DATABASE'!$Z$189,K499='EXPENSE DATABASE'!$Z$190,K499='EXPENSE DATABASE'!$Z$191,K499='EXPENSE DATABASE'!$Z$192,K499='EXPENSE DATABASE'!$Z$193,K499='EXPENSE DATABASE'!$Z$194),O499,\"\")","v":""},{"$f":"IF(OR(K499='EXPENSE DATABASE'!$T$189,K499='EXPENSE DATABASE'!$T$190,K499='EXPENSE DATABASE'!$T$191),O499,\"\")","v":""},{"$f":"VLOOKUP(I499,'EXPENSE DATABASE'!$B$41:$C$65,2,FALSE)","v":{"$error":"#N/A"}},100,{"$f":"VLOOKUP(J499,'EXPENSE DATABASE'!$B$69:$C$168,2,FALSE)","v":{"$error":"#N/A"}},101,{"$f":"VLOOKUP(K499,'EXPENSE DATABASE'!$B$6:$C$35,2,FALSE)","v":{"$error":"#N/A"}},31,{"$f":"VLOOKUP(L499,'EXPENSE DATABASE'!$B$173:$C$176,2,FALSE)","v":{"$error":"#N/A"}},100,0,0,{"$f":"IF(L499=T('EXPENSE DATABASE'!$E$173),O499,0)","v":0},{"$f":"IF(L499=T('EXPENSE DATABASE'!$E$174),O499,0)","v":0},{"$f":"IF(L499=T('EXPENSE DATABASE'!$E$175),O499,0)","v":0},0,486]
[0,0,{"$nulls":12},{"v":0,"d":"$0.00"},{"v":0,"d":"$0.00"},{"v":0,"d":"$0.00"},0,{"$f":"IF(OR(K500='EXPENSE DATABASE'!$V$187,K500='EXPENSE DATABASE'!$V$188,K500='EXPENSE DATABASE'!$V$189,K500='EXPENSE DATABASE'!$V$190,K500='EXPENSE DATABASE'!$V$191,K500='EXPENSE DATABASE'!$V$192,K500='EXPENSE DATABASE'!$V$193,K500='EXPENSE DATABASE'!$V$194,K500='EXPENSE DATABASE'!$X$187,K500='EXPENSE DATABASE'!$X$188,K500='EXPENSE DATABASE'!$X$189,K500='EXPENSE DATABASE'!$X$190,K500='EXPENSE DATABASE'!$X$191,K500='EXPENSE DATABASE'!$X$192,K500='EXPENSE DATABASE'!$X$193,K500='EXPENSE DATABASE'!$X$194,K500='EXPENSE DATABASE'!$Z$187,K500='EXPENSE DATABASE'!$Z$188,K500='EXPENSE DATABASE'!$Z$189,K500='EXPENSE DATABASE'!$Z$190,K500='EXPENSE DATABASE'!$Z$191,K500='EXPENSE DATABASE'!$Z$192,K500='EXPENSE DATABASE'!$Z$193,K500='EXPENSE DATABASE'!$Z$194),O500,\"\")","v":""},{"$f":"IF(OR(K500='EXPENSE DATABASE'!$T$189,K500='EXPENSE DATABASE'!$T$190,K500='EXPENSE DATABASE'!$T$191),O500,\"\")","v":""},{"$f":"VLOOKUP(I500,'EXPENSE DATABASE'!$B$41:$C$65,2,FALSE)","v":{"$error":"#N/A"}},100,{"$f":"VLOOKUP(J500,'EXPENSE DATABASE'!$B$69:$C$168,2,FALSE)","v":{"$error":"#N/A"}},101,{"$f":"VLOOKUP(K500,'EXPENSE DATABASE'!$B$6:$C$35,2,FALSE)","v":{"$error":"#N/A"}},31,{"$f":"VLOOKUP(L500,'EXPENSE DATABASE'!$B$173:$C$176,2,FALSE)","v":{"$error":"#N/A"}},100,0,0,{"$f":"IF(L500=T('EXPENSE DATABASE'!$E$173),O500,0)","v":0},{"$f":"IF(L500=T('EXPENSE DATABASE'!$E$174),O500,0)","v":0},{"$f":"IF(L500=T('EXPENSE DATABASE'!$E$175),O500,0)","v":0},0,487]
[0,0,{"$nulls":12},{"v":0,"d":"$0.00"},{"v":0,"d":"$0.00"},{"v":0,"d":"$0.00"},0,{"$f":"IF(OR(K501='EXPENSE DATABASE'!$V$187,K501='EXPENSE DATABASE'!$V$188,K501='EXPENSE DATABASE'!$V$189,K501='EXPENSE DATABASE'!$V$190,K501='EXPENSE DATABASE'!$V$191,K501='EXPENSE DATABASE'!$V$192,K501='EXPENSE DATABASE'!$V$193,K501='EXPENSE DATABASE'!$V$194,K501='EXPENSE DATABASE'!$X$187,K501='EXPENSE DATABASE'!$X$188,K501='EXPENSE DATABASE'!$X$189,K501='EXPENSE DATABASE'!$X$190,K501='EXPENSE DATABASE'!$X$191,K501='EXPENSE DATABASE'!$X$192,K501='EXPENSE DATABASE'!$X$193,K501='EXPENSE DATABASE'!$X$194,K501='EXPENSE DATABASE'!$Z$187,K501='EXPENSE DATABASE'!$Z$188,K501='EXPENSE DATABASE'!$Z$189,K501='EXPENSE DATABASE'!$Z$190,K501='EXPENSE DATABASE'!$Z$191,K501='EXPENSE DATABASE'!$Z$192,K501='EXPENSE DATABASE'!$Z$193,K501='EXPENSE DATABASE'!$Z$194),O501,\"\")","v":""},{"$f":"IF(OR(K501='EXPENSE DATABASE'!$T$189,K501='EXPENSE DATABASE'!$T$190,K501='EXPENSE DATABASE'!$T$191),O501,\"\")","v":""},{"$f":"VLOOKUP(I501,'EXPENSE DATABASE'!$B$41:$C$65,2,FALSE)","v":{"$error":"#N/A"}},100,{"$f":"VLOOKUP(J501,'EXPENSE DATABASE'!$B$69:$C$168,2,FALSE)","v":{"$error":"#N/A"}},101,{"$f":"VLOOKUP(K501,'EXPENSE DATABASE'!$B$6:$C$35,2,FALSE)","v":{"$error":"#N/A"}},31,{"$f":"VLOOKUP(L501,'EXPENSE DATABASE'!$B$173:$C$176,2,FALSE)","v":{"$error":"#N/A"}},100,0,0,{"$f":"IF(L501=T('EXPENSE DATABASE'!$E$173),O501,0)","v":0},{"$f":"IF(L501=T('EXPENSE DATABASE'!$E$174),O501,0)","v":0},{"$f":"IF(L501=T('EXPENSE DATABASE'!$E$175),O501,0)","v":0},0,488]
[0,0,{"$nulls":12},{"v":0,"d":"$0.00"},{"v":0,"d":"$0.00"},{"v":0,"d":"$0.00"},0,{"$f":"IF(OR(K502='EXPENSE DATABASE'!$V$187,K502='EXPENSE DATABASE'!$V$188,K502='EXPENSE DATABASE'!$V$189,K502='EXPENSE DATABASE'!$V$190,K502='EXPENSE DATABASE'!$V$191,K502='EXPENSE DATABASE'!$V$192,K502='EXPENSE DATABASE'!$V$193,K502='EXPENSE DATABASE'!$V$194,K502='EXPENSE DATABASE'!$X$187,K502='EXPENSE DATABASE'!$X$188,K502='EXPENSE DATABASE'!$X$189,K502='EXPENSE DATABASE'!$X$190,K502='EXPENSE DATABASE'!$X$191,K502='EXPENSE DATABASE'!$X$192,K502='EXPENSE DATABASE'!$X$193,K502='EXPENSE DATABASE'!$X$194,K502='EXPENSE DATABASE'!$Z$187,K502='EXPENSE DATABASE'!$Z$188,K502='EXPENSE DATABASE'!$Z$189,K502='EXPENSE DATABASE'!$Z$190,K502='EXPENSE DATABASE'!$Z$191,K502='EXPENSE DATABASE'!$Z$192,K502='EXPENSE DATABASE'!$Z$193,K502='EXPENSE DATABASE'!$Z$194),O502,\"\")","v":""},{"$f":"IF(OR(K502='EXPENSE DATABASE'!$T$189,K502='EXPENSE DATABASE'!$T$190,K502='EXPENSE DATABASE'!$T$191),O502,\"\")","v":""},{"$f":"VLOOKUP(I502,'EXPENSE DATABASE'!$B$41:$C$65,2,FALSE)","v":{"$error":"#N/A"}},100,{"$f":"VLOOKUP(J502,'EXPENSE DATABASE'!$B$69:$C$168,2,FALSE)","v":{"$error":"#N/A"}},101,{"$f":"VLOOKUP(K502,'EXPENSE DATABASE'!$B$6:$C$35,2,FALSE)","v":{"$error":"#N/A"}},31,{"$f":"VLOOKUP(L502,'EXPENSE DATABASE'!$B$173:$C$176,2,FALSE)","v":{"$error":"#N/A"}},100,0,0,{"$f":"IF(L502=T('EXPENSE DATABASE'!$E$173),O502,0)","v":0},{"$f":"IF(L502=T('EXPENSE DATABASE'!$E$174),O502,0)","v":0},{"$f":"IF(L502=T('EXPENSE DATABASE'!$E$175),O502,0)","v":0},0,489]
[0,0,{"$nulls":12},{"v":0,"d":"$0.00"},{"v":0,"d":"$0.00"},{"v":0,"d":"$0.00"},0,{"$f":"IF(OR(K503='EXPENSE DATABASE'!$V$187,K503='EXPENSE DATABASE'!$V$188,K503='EXPENSE DATABASE'!$V$189,K503='EXPENSE DATABASE'!$V$190,K503='EXPENSE DATABASE'!$V$191,K503='EXPENSE DATABASE'!$V$192,K503='EXPENSE DATABASE'!$V$193,K503='EXPENSE DATABASE'!$V$194,K503='EXPENSE DATABASE'!$X$187,K503='EXPENSE DATABASE'!$X$188,K503='EXPENSE DATABASE'!$X$189,K503='EXPENSE DATABASE'!$X$190,K503='EXPENSE DATABASE'!$X$191,K503='EXPENSE DATABASE'!$X$192,K503='EXPENSE DATABASE'!$X$193,K503='EXPENSE DATABASE'!$X$194,K503='EXPENSE DATABASE'!$Z$187,K503='EXPENSE DATABASE'!$Z$188,K503='EXPENSE DATABASE'!$Z$189,K503='EXPENSE DATABASE'!$Z$190,K503='EXPENSE DATABASE'!$Z$191,K503='EXPENSE DATABASE'!$Z$192,K503='EXPENSE DATABASE'!$Z$193,K503='EXPENSE DATABASE'!$Z$194),O503,\"\")","v":""},{"$f":"IF(OR(K503='EXPENSE DATABASE'!$T$189,K503='EXPENSE DATABASE'!$T$190,K503='EXPENSE DATABASE'!$T$191),O503,\"\")","v":""},{"$f":"VLOOKUP(I503,'EXPENSE DATABASE'!$B$41:$C$65,2,FALSE)","v":{"$error":"#N/A"}},100,{"$f":"VLOOKUP(J503,'EXPENSE DATABASE'!$B$69:$C$168,2,FALSE)","v":{"$error":"#N/A"}},101,{"$f":"VLOOKUP(K503,'EXPENSE DATABASE'!$B$6:$C$35,2,FALSE)","v":{"$error":"#N/A"}},31,{"$f":"VLOOKUP(L503,'EXPENSE DATABASE'!$B$173:$C$176,2,FALSE)","v":{"$error":"#N/A"}},100,0,0,{"$f":"IF(L503=T('EXPENSE DATABASE'!$E$173),O503,0)","v":0},{"$f":"IF(L503=T('EXPENSE DATABASE'!$E$174),O503,0)","v":0},{"$f":"IF(L503=T('EXPENSE DATABASE'!$E$175),O503,0)","v":0},0,490]
[0,0,{"$nulls":12},{"v":0,"d":"$0.00"},{"v":0,"d":"$0.00"},{"v":0,"d":"$0.00"},0,{"$f":"IF(OR(K504='EXPENSE DATABASE'!$V$187,K504='EXPENSE DATABASE'!$V$188,K504='EXPENSE DATABASE'!$V$189,K504='EXPENSE DATABASE'!$V$190,K504='EXPENSE DATABASE'!$V$191,K504='EXPENSE DATABASE'!$V$192,K504='EXPENSE DATABASE'!$V$193,K504='EXPENSE DATABASE'!$V$194,K504='EXPENSE DATABASE'!$X$187,K504='EXPENSE DATABASE'!$X$188,K504='EXPENSE DATABASE'!$X$189,K504='EXPENSE DATABASE'!$X$190,K504='EXPENSE DATABASE'!$X$191,K504='EXPENSE DATABASE'!$X$192,K504='EXPENSE DATABASE'!$X$193,K504='EXPENSE DATABASE'!$X$194,K504='EXPENSE DATABASE'!$Z$187,K504='EXPENSE DATABASE'!$Z$188,K504='EXPENSE DATABASE'!$Z$189,K504='EXPENSE DATABASE'!$Z$190,K504='EXPENSE DATABASE'!$Z$191,K504='EXPENSE DATABASE'!$Z$192,K504='EXPENSE DATABASE'!$Z$193,K504='EXPENSE DATABASE'!$Z$194),O504,\"\")","v":""},{"$f":"IF(OR(K504='EXPENSE DATABASE'!$T$189,K504='EXPENSE DATABASE'!$T$190,K504='EXPENSE DATABASE'!$T$191),O504,\"\")","v":""},{"$f":"VLOOKUP(I504,'EXPENSE DATABASE'!$B$41:$C$65,2,FALSE)","v":{"$error":"#N/A"}},100,{"$f":"VLOOKUP(J504,'EXPENSE DATABASE'!$B$69:$C$168,2,FALSE)","v":{"$error":"#N/A"}},101,{"$f":"VLOOKUP(K504,'EXPENSE DATABASE'!$B$6:$C$35,2,FALSE)","v":{"$error":"#N/A"}},31,{"$f":"VLOOKUP(L504,'EXPENSE DATABASE'!$B$173:$C$176,2,FALSE)","v":{"$error":"#N/A"}},100,0,0,{"$f":"IF(L504=T('EXPENSE DATABASE'!$E$173),O504,0)","v":0},{"$f":"IF(L504=T('EXPENSE DATABASE'!$E$174),O504,0)","v":0},{"$f":"IF(L504=T('EXPENSE DATABASE'!$E$175),O504,0)","v":0},0,491]
[0,0,{"$nulls":12},{"v":0,"d":"$0.00"},{"v":0,"d":"$0.00"},{"v":0,"d":"$0.00"},0,{"$f":"IF(OR(K505='EXPENSE DATABASE'!$V$187,K505='EXPENSE DATABASE'!$V$188,K505='EXPENSE DATABASE'!$V$189,K505='EXPENSE DATABASE'!$V$190,K505='EXPENSE DATABASE'!$V$191,K505='EXPENSE DATABASE'!$V$192,K505='EXPENSE DATABASE'!$V$193,K505='EXPENSE DATABASE'!$V$194,K505='EXPENSE DATABASE'!$X$187,K505='EXPENSE DATABASE'!$X$188,K505='EXPENSE DATABASE'!$X$189,K505='EXPENSE DATABASE'!$X$190,K505='EXPENSE DATABASE'!$X$191,K505='EXPENSE DATABASE'!$X$192,K505='EXPENSE DATABASE'!$X$193,K505='EXPENSE DATABASE'!$X$194,K505='EXPENSE DATABASE'!$Z$187,K505='EXPENSE DATABASE'!$Z$188,K505='EXPENSE DATABASE'!$Z$189,K505='EXPENSE DATABASE'!$Z$190,K505='EXPENSE DATABASE'!$Z$191,K505='EXPENSE DATABASE'!$Z$192,K505='EXPENSE DATABASE'!$Z$193,K505='EXPENSE DATABASE'!$Z$194),O505,\"\")","v":""},{"$f":"IF(OR(K505='EXPENSE DATABASE'!$T$189,K505='EXPENSE DATABASE'!$T$190,K505='EXPENSE DATABASE'!$T$191),O505,\"\")","v":""},{"$f":"VLOOKUP(I505,'EXPENSE DATABASE'!$B$41:$C$65,2,FALSE)","v":{"$error":"#N/A"}},100,{"$f":"VLOOKUP(J505,'EXPENSE DATABASE'!$B$69:$C$168,2,FALSE)","v":{"$error":"#N/A"}},101,{"$f":"VLOOKUP(K505,'EXPENSE DATABASE'!$B$6:$C$35,2,FALSE)","v":{"$error":"#N/A"}},31,{"$f":"VLOOKUP(L505,'EXPENSE DATABASE'!$B$173:$C$176,2,FALSE)","v":{"$error":"#N/A"}},100,0,0,{"$f":"IF(L505=T('EXPENSE DATABASE'!$E$173),O505,0)","v":0},{"$f":"IF(L505=T('EXPENSE DATABASE'!$E$174),O505,0)","v":0},{"$f":"IF(L505=T('EXPENSE DATABASE'!$E$175),O505,0)","v":0},0,492]
[0,0,{"$nulls":12},{"v":0,"d":"$0.00"},{"v":0,"d":"$0.00"},{"v":0,"d":"$0.00"},0,{"$f":"IF(OR(K506='EXPENSE DATABASE'!$V$187,K506='EXPENSE DATABASE'!$V$188,K506='EXPENSE DATABASE'!$V$189,K506='EXPENSE DATABASE'!$V$190,K506='EXPENSE DATABASE'!$V$191,K506='EXPENSE DATABASE'!$V$192,K506='EXPENSE DATABASE'!$V$193,K506='EXPENSE DATABASE'!$V$194,K506='EXPENSE DATABASE'!$X$187,K506='EXPENSE DATABASE'!$X$188,K506='EXPENSE DATABASE'!$X$189,K506='EXPENSE DATABASE'!$X$190,K506='EXPENSE DATABASE'!$X$191,K506='EXPENSE DATABASE'!$X$192,K506='EXPENSE DATABASE'!$X$193,K506='EXPENSE DATABASE'!$X$194,K506='EXPENSE DATABASE'!$Z$187,K506='EXPENSE DATABASE'!$Z$188,K506='EXPENSE DATABASE'!$Z$189,K506='EXPENSE DATABASE'!$Z$190,K506='EXPENSE DATABASE'!$Z$191,K506='EXPENSE DATABASE'!$Z$192,K506='EXPENSE DATABASE'!$Z$193,K506='EXPENSE DATABASE'!$Z$194),O506,\"\")","v":""},{"$f":"IF(OR(K506='EXPENSE DATABASE'!$T$189,K506='EXPENSE DATABASE'!$T$190,K506='EXPENSE DATABASE'!$T$191),O506,\"\")","v":""},{"$f":"VLOOKUP(I506,'EXPENSE DATABASE'!$B$41:$C$65,2,FALSE)","v":{"$error":"#N/A"}},100,{"$f":"VLOOKUP(J506,'EXPENSE DATABASE'!$B$69:$C$168,2,FALSE)","v":{"$error":"#N/A"}},101,{"$f":"VLOOKUP(K506,'EXPENSE DATABASE'!$B$6:$C$35,2,FALSE)","v":{"$error":"#N/A"}},31,{"$f":"VLOOKUP(L506,'EXPENSE DATABASE'!$B$173:$C$176,2,FALSE)","v":{"$error":"#N/A"}},100,0,0,{"$f":"IF(L506=T('EXPENSE DATABASE'!$E$173),O506,0)","v":0},{"$f":"IF(L506=T('EXPENSE DATABASE'!$E$174),O506,0)","v":0},{"$f":"IF(L506=T('EXPENSE DATABASE'!$E$175),O506,0)","v":0},0,493]
[0,0,{"$nulls":12},{"v":0,"d":"$0.00"},{"v":0,"d":"$0.00"},{"v":0,"d":"$0.00"},0,{"$f":"IF(OR(K507='EXPENSE DATABASE'!$V$187,K507='EXPENSE DATABASE'!$V$188,K507='EXPENSE DATABASE'!$V$189,K507='EXPENSE DATABASE'!$V$190,K507='EXPENSE DATABASE'!$V$191,K507='EXPENSE DATABASE'!$V$192,K507='EXPENSE DATABASE'!$V$193,K507='EXPENSE DATABASE'!$V$194,K507='EXPENSE DATABASE'!$X$187,K507='EXPENSE DATABASE'!$X$188,K507='EXPENSE DATABASE'!$X$189,K507='EXPENSE DATABASE'!$X$190,K507='EXPENSE DATABASE'!$X$191,K507='EXPENSE DATABASE'!$X$192,K507='EXPENSE DATABASE'!$X$193,K507='EXPENSE DATABASE'!$X$194,K507='EXPENSE DATABASE'!$Z$187,K507='EXPENSE DATABASE'!$Z$188,K507='EXPENSE DATABASE'!$Z$189,K507='EXPENSE DATABASE'!$Z$190,K507='EXPENSE DATABASE'!$Z$191,K507='EXPENSE DATABASE'!$Z$192,K507='EXPENSE DATABASE'!$Z$193,K507='EXPENSE DATABASE'!$Z$194),O507,\"\")","v":""},{"$f":"IF(OR(K507='EXPENSE DATABASE'!$T$189,K507='EXPENSE DATABASE'!$T$190,K507='EXPENSE DATABASE'!$T$191),O507,\"\")","v":""},{"$f":"VLOOKUP(I507,'EXPENSE DATABASE'!$B$41:$C$65,2,FALSE)","v":{"$error":"#N/A"}},100,{"$f":"VLOOKUP(J507,'EXPENSE DATABASE'!$B$69:$C$168,2,FALSE)","v":{"$error":"#N/A"}},101,{"$f":"VLOOKUP(K507,'EXPENSE DATABASE'!$B$6:$C$35,2,FALSE)","v":{"$error":"#N/A"}},31,{"$f":"VLOOKUP(L507,'EXPENSE DATABASE'!$B$173:$C$176,2,FALSE)","v":{"$error":"#N/A"}},100,0,0,{"$f":"IF(L507=T('EXPENSE DATABASE'!$E$173),O507,0)","v":0},{"$f":"IF(L507=T('EXPENSE DATABASE'!$E$174),O507,0)","v":0},{"$f":"IF(L507=T('EXPENSE DATABASE'!$E$175),O507,0)","v":0},0,494]
[0,0,{"$nulls":12},{"v":0,"d":"$0.00"},{"v":0,"d":"$0.00"},{"v":0,"d":"$0.00"},0,{"$f":"IF(OR(K508='EXPENSE DATABASE'!$V$187,K508='EXPENSE DATABASE'!$V$188,K508='EXPENSE DATABASE'!$V$189,K508='EXPENSE DATABASE'!$V$190,K508='EXPENSE DATABASE'!$V$191,K508='EXPENSE DATABASE'!$V$192,K508='EXPENSE DATABASE'!$V$193,K508='EXPENSE DATABASE'!$V$194,K508='EXPENSE DATABASE'!$X$187,K508='EXPENSE DATABASE'!$X$188,K508='EXPENSE DATABASE'!$X$189,K508='EXPENSE DATABASE'!$X$190,K508='EXPENSE DATABASE'!$X$191,K508='EXPENSE DATABASE'!$X$192,K508='EXPENSE DATABASE'!$X$193,K508='EXPENSE DATABASE'!$X$194,K508='EXPENSE DATABASE'!$Z$187,K508='EXPENSE DATABASE'!$Z$188,K508='EXPENSE DATABASE'!$Z$189,K508='EXPENSE DATABASE'!$Z$190,K508='EXPENSE DATABASE'!$Z$191,K508='EXPENSE DATABASE'!$Z$192,K508='EXPENSE DATABASE'!$Z$193,K508='EXPENSE DATABASE'!$Z$194),O508,\"\")","v":""},{"$f":"IF(OR(K508='EXPENSE DATABASE'!$T$189,K508='EXPENSE DATABASE'!$T$190,K508='EXPENSE DATABASE'!$T$191),O508,\"\")","v":""},{"$f":"VLOOKUP(I508,'EXPENSE DATABASE'!$B$41:$C$65,2,FALSE)","v":{"$error":"#N/A"}},100,{"$f":"VLOOKUP(J508,'EXPENSE DATABASE'!$B$69:$C$168,2,FALSE)","v":{"$error":"#N/A"}},101,{"$f":"VLOOKUP(K508,'EXPENSE DATABASE'!$B$6:$C$35,2,FALSE)","v":{"$error":"#N/A"}},31,{"$f":"VLOOKUP(L508,'EXPENSE DATABASE'!$B$173:$C$176,2,FALSE)","v":{"$error":"#N/A"}},100,0,0,{"$f":"IF(L508=T('EXPENSE DATABASE'!$E$173),O508,0)","v":0},{"$f":"IF(L508=T('EXPENSE DATABASE'!$E$174),O508,0)","v":0},{"$f":"IF(L508=T('EXPENSE DATABASE'!$E$175),O508,0)","v":0},0,495]
[0,0,{"$nulls":12},{"v":0,"d":"$0.00"},{"v":0,"d":"$0.00"},{"v":0,"d":"$0.00"},0,{"$f":"IF(OR(K509='EXPENSE DATABASE'!$V$187,K509='EXPENSE DATABASE'!$V$188,K509='EXPENSE DATABASE'!$V$189,K509='EXPENSE DATABASE'!$V$190,K509='EXPENSE DATABASE'!$V$191,K509='EXPENSE DATABASE'!$V$192,K509='EXPENSE DATABASE'!$V$193,K509='EXPENSE DATABASE'!$V$194,K509='EXPENSE DATABASE'!$X$187,K509='EXPENSE DATABASE'!$X$188,K509='EXPENSE DATABASE'!$X$189,K509='EXPENSE DATABASE'!$X$190,K509='EXPENSE DATABASE'!$X$191,K509='EXPENSE DATABASE'!$X$192,K509='EXPENSE DATABASE'!$X$193,K509='EXPENSE DATABASE'!$X$194,K509='EXPENSE DATABASE'!$Z$187,K509='EXPENSE DATABASE'!$Z$188,K509='EXPENSE DATABASE'!$Z$189,K509='EXPENSE DATABASE'!$Z$190,K509='EXPENSE DATABASE'!$Z$191,K509='EXPENSE DATABASE'!$Z$192,K509='EXPENSE DATABASE'!$Z$193,K509='EXPENSE DATABASE'!$Z$194),O509,\"\")","v":""},{"$f":"IF(OR(K509='EXPENSE DATABASE'!$T$189,K509='EXPENSE DATABASE'!$T$190,K509='EXPENSE DATABASE'!$T$191),O509,\"\")","v":""},{"$f":"VLOOKUP(I509,'EXPENSE DATABASE'!$B$41:$C$65,2,FALSE)","v":{"$error":"#N/A"}},100,{"$f":"VLOOKUP(J509,'EXPENSE DATABASE'!$B$69:$C$168,2,FALSE)","v":{"$error":"#N/A"}},101,{"$f":"VLOOKUP(K509,'EXPENSE DATABASE'!$B$6:$C$35,2,FALSE)","v":{"$error":"#N/A"}},31,{"$f":"VLOOKUP(L509,'EXPENSE DATABASE'!$B$173:$C$176,2,FALSE)","v":{"$error":"#N/A"}},100,0,0,{"$f":"IF(L509=T('EXPENSE DATABASE'!$E$173),O509,0)","v":0},{"$f":"IF(L509=T('EXPENSE DATABASE'!$E$174),O509,0)","v":0},{"$f":"IF(L509=T('EXPENSE DATABASE'!$E$175),O509,0)","v":0},0,496]
[0,0,{"$nulls":12},{"v":0,"d":"$0.00"},{"v":0,"d":"$0.00"},{"v":0,"d":"$0.00"},0,{"$f":"IF(OR(K510='EXPENSE DATABASE'!$V$187,K510='EXPENSE DATABASE'!$V$188,K510='EXPENSE DATABASE'!$V$189,K510='EXPENSE DATABASE'!$V$190,K510='EXPENSE DATABASE'!$V$191,K510='EXPENSE DATABASE'!$V$192,K510='EXPENSE DATABASE'!$V$193,K510='EXPENSE DATABASE'!$V$194,K510='EXPENSE DATABASE'!$X$187,K510='EXPENSE DATABASE'!$X$188,K510='EXPENSE DATABASE'!$X$189,K510='EXPENSE DATABASE'!$X$190,K510='EXPENSE DATABASE'!$X$191,K510='EXPENSE DATABASE'!$X$192,K510='EXPENSE DATABASE'!$X$193,K510='EXPENSE DATABASE'!$X$194,K510='EXPENSE DATABASE'!$Z$187,K510='EXPENSE DATABASE'!$Z$188,K510='EXPENSE DATABASE'!$Z$189,K510='EXPENSE DATABASE'!$Z$190,K510='EXPENSE DATABASE'!$Z$191,K510='EXPENSE DATABASE'!$Z$192,K510='EXPENSE DATABASE'!$Z$193,K510='EXPENSE DATABASE'!$Z$194),O510,\"\")","v":""},{"$f":"IF(OR(K510='EXPENSE DATABASE'!$T$189,K510='EXPENSE DATABASE'!$T$190,K510='EXPENSE DATABASE'!$T$191),O510,\"\")","v":""},{"$f":"VLOOKUP(I510,'EXPENSE DATABASE'!$B$41:$C$65,2,FALSE)","v":{"$error":"#N/A"}},100,{"$f":"VLOOKUP(J510,'EXPENSE DATABASE'!$B$69:$C$168,2,FALSE)","v":{"$error":"#N/A"}},101,{"$f":"VLOOKUP(K510,'EXPENSE DATABASE'!$B$6:$C$35,2,FALSE)","v":{"$error":"#N/A"}},31,{"$f":"VLOOKUP(L510,'EXPENSE DATABASE'!$B$173:$C$176,2,FALSE)","v":{"$error":"#N/A"}},100,0,0,{"$f":"IF(L510=T('EXPENSE DATABASE'!$E$173),O510,0)","v":0},{"$f":"IF(L510=T('EXPENSE DATABASE'!$E$174),O510,0)","v":0},{"$f":"IF(L510=T('EXPENSE DATABASE'!$E$175),O510,0)","v":0},0,497]
[0,0,{"$nulls":12},{"v":0,"d":"$0.00"},{"v":0,"d":"$0.00"},{"v":0,"d":"$0.00"},0,{"$f":"IF(OR(K511='EXPENSE DATABASE'!$V$187,K511='EXPENSE DATABASE'!$V$188,K511='EXPENSE DATABASE'!$V$189,K511='EXPENSE DATABASE'!$V$190,K511='EXPENSE DATABASE'!$V$191,K511='EXPENSE DATABASE'!$V$192,K511='EXPENSE DATABASE'!$V$193,K511='EXPENSE DATABASE'!$V$194,K511='EXPENSE DATABASE'!$X$187,K511='EXPENSE DATABASE'!$X$188,K511='EXPENSE DATABASE'!$X$189,K511='EXPENSE DATABASE'!$X$190,K511='EXPENSE DATABASE'!$X$191,K511='EXPENSE DATABASE'!$X$192,K511='EXPENSE DATABASE'!$X$193,K511='EXPENSE DATABASE'!$X$194,K511='EXPENSE DATABASE'!$Z$187,K511='EXPENSE DATABASE'!$Z$188,K511='EXPENSE DATABASE'!$Z$189,K511='EXPENSE DATABASE'!$Z$190,K511='EXPENSE DATABASE'!$Z$191,K511='EXPENSE DATABASE'!$Z$192,K511='EXPENSE DATABASE'!$Z$193,K511='EXPENSE DATABASE'!$Z$194),O511,\"\")","v":""},{"$f":"IF(OR(K511='EXPENSE DATABASE'!$T$189,K511='EXPENSE DATABASE'!$T$190,K511='EXPENSE DATABASE'!$T$191),O511,\"\")","v":""},{"$f":"VLOOKUP(I511,'EXPENSE DATABASE'!$B$41:$C$65,2,FALSE)","v":{"$error":"#N/A"}},100,{"$f":"VLOOKUP(J511,'EXPENSE DATABASE'!$B$69:$C$168,2,FALSE)","v":{"$error":"#N/A"}},101,{"$f":"VLOOKUP(K511,'EXPENSE DATABASE'!$B$6:$C$35,2,FALSE)","v":{"$error":"#N/A"}},31,{"$f":"VLOOKUP(L511,'EXPENSE DATABASE'!$B$173:$C$176,2,FALSE)","v":{"$error":"#N/A"}},100,0,0,{"$f":"IF(L511=T('EXPENSE DATABASE'!$E$173),O511,0)","v":0},{"$f":"IF(L511=T('EXPENSE DATABASE'!$E$174),O511,0)","v":0},{"$f":"IF(L511=T('EXPENSE DATABASE'!$E$175),O511,0)","v":0},0,498]
[0,{"$f":"IF((COUNTA(I512:L512)=4),1,-1)*A512","v":0},{"$nulls":12},{"v":0,"d":"$0.00"},{"v":0,"d":"$0.00"},{"v":0,"d":"$0.00"},0,{"$f":"IF(OR(K512='EXPENSE DATABASE'!$V$187,K512='EXPENSE DATABASE'!$V$188,K512='EXPENSE DATABASE'!$V$189,K512='EXPENSE DATABASE'!$V$190,K512='EXPENSE DATABASE'!$V$191,K512='EXPENSE DATABASE'!$V$192,K512='EXPENSE DATABASE'!$V$193,K512='EXPENSE DATABASE'!$V$194,K512='EXPENSE DATABASE'!$X$187,K512='EXPENSE DATABASE'!$X$188,K512='EXPENSE DATABASE'!$X$189,K512='EXPENSE DATABASE'!$X$190,K512='EXPENSE DATABASE'!$X$191,K512='EXPENSE DATABASE'!$X$192,K512='EXPENSE DATABASE'!$X$193,K512='EXPENSE DATABASE'!$X$194,K512='EXPENSE DATABASE'!$Z$187,K512='EXPENSE DATABASE'!$Z$188,K512='EXPENSE DATABASE'!$Z$189,K512='EXPENSE DATABASE'!$Z$190,K512='EXPENSE DATABASE'!$Z$191,K512='EXPENSE DATABASE'!$Z$192,K512='EXPENSE DATABASE'!$Z$193,K512='EXPENSE DATABASE'!$Z$194),O512,\"\")","v":""},{"$f":"IF(OR(K512='EXPENSE DATABASE'!$T$189,K512='EXPENSE DATABASE'!$T$190,K512='EXPENSE DATABASE'!$T$191),O512,\"\")","v":""},{"$f":"VLOOKUP(I512,'EXPENSE DATABASE'!$B$41:$C$65,2,FALSE)","v":{"$error":"#N/A"}},100,{"$f":"VLOOKUP(J512,'EXPENSE DATABASE'!$B$69:$C$168,2,FALSE)","v":{"$error":"#N/A"}},101,{"$f":"VLOOKUP(K512,'EXPENSE DATABASE'!$B$6:$C$35,2,FALSE)","v":{"$error":"#N/A"}},31,{"$f":"VLOOKUP(L512,'EXPENSE DATABASE'!$B$173:$C$176,2,FALSE)","v":{"$error":"#N/A"}},100,0,0,{"$f":"IF(L512=T('EXPENSE DATABASE'!$E$173),O512,0)","v":0},{"$f":"IF(L512=T('EXPENSE DATABASE'!$E$174),O512,0)","v":0},{"$f":"IF(L512=T('EXPENSE DATABASE'!$E$175),O512,0)","v":0},0,499]
[0,{"$f":"IF((COUNTA(I513:L513)=4),1,-1)*A513","v":0},{"$nulls":12},{"v":0,"d":"$0.00"},{"v":0,"d":"$0.00"},{"v":0,"d":"$0.00"},0,{"$f":"IF(OR(K513='EXPENSE DATABASE'!$V$187,K513='EXPENSE DATABASE'!$V$188,K513='EXPENSE DATABASE'!$V$189,K513='EXPENSE DATABASE'!$V$190,K513='EXPENSE DATABASE'!$V$191,K513='EXPENSE DATABASE'!$V$192,K513='EXPENSE DATABASE'!$V$193,K513='EXPENSE DATABASE'!$V$194,K513='EXPENSE DATABASE'!$X$187,K513='EXPENSE DATABASE'!$X$188,K513='EXPENSE DATABASE'!$X$189,K513='EXPENSE DATABASE'!$X$190,K513='EXPENSE DATABASE'!$X$191,K513='EXPENSE DATABASE'!$X$192,K513='EXPENSE DATABASE'!$X$193,K513='EXPENSE DATABASE'!$X$194,K513='EXPENSE DATABASE'!$Z$187,K513='EXPENSE DATABASE'!$Z$188,K513='EXPENSE DATABASE'!$Z$189,K513='EXPENSE DATABASE'!$Z$190,K513='EXPENSE DATABASE'!$Z$191,K513='EXPENSE DATABASE'!$Z$192,K513='EXPENSE DATABASE'!$Z$193,K513='EXPENSE DATABASE'!$Z$194),O513,\"\")","v":""},{"$f":"IF(OR(K513='EXPENSE DATABASE'!$T$189,K513='EXPENSE DATABASE'!$T$190,K513='EXPENSE DATABASE'!$T$191),O513,\"\")","v":""},{"$f":"VLOOKUP(I513,'EXPENSE DATABASE'!$B$41:$C$65,2,FALSE)","v":{"$error":"#N/A"}},100,{"$f":"VLOOKUP(J513,'EXPENSE DATABASE'!$B$69:$C$168,2,FALSE)","v":{"$error":"#N/A"}},101,{"$f":"VLOOKUP(K513,'EXPENSE DATABASE'!$B$6:$C$35,2,FALSE)","v":{"$error":"#N/A"}},31,{"$f":"VLOOKUP(L513,'EXPENSE DATABASE'!$B$173:$C$176,2,FALSE)","v":{"$error":"#N/A"}},100,0,0,{"$f":"IF(L513=T('EXPENSE DATABASE'!$E$173),O513,0)","v":0},{"$f":"IF(L513=T('EXPENSE DATABASE'!$E$174),O513,0)","v":0},{"$f":"IF(L513=T('EXPENSE DATABASE'!$E$175),O513,0)","v":0},0,500]
[0,{"$f":"IF((COUNTA(I514:L514)=4),1,-1)*A514","v":0},{"$nulls":12},{"v":0,"d":"$0.00"},{"v":0,"d":"$0.00"},{"v":0,"d":"$0.00"},0,{"$f":"IF(OR(K514='EXPENSE DATABASE'!$V$187,K514='EXPENSE DATABASE'!$V$188,K514='EXPENSE DATABASE'!$V$189,K514='EXPENSE DATABASE'!$V$190,K514='EXPENSE DATABASE'!$V$191,K514='EXPENSE DATABASE'!$V$192,K514='EXPENSE DATABASE'!$V$193,K514='EXPENSE DATABASE'!$V$194,K514='EXPENSE DATABASE'!$X$187,K514='EXPENSE DATABASE'!$X$188,K514='EXPENSE DATABASE'!$X$189,K514='EXPENSE DATABASE'!$X$190,K514='EXPENSE DATABASE'!$X$191,K514='EXPENSE DATABASE'!$X$192,K514='EXPENSE DATABASE'!$X$193,K514='EXPENSE DATABASE'!$X$194,K514='EXPENSE DATABASE'!$Z$187,K514='EXPENSE DATABASE'!$Z$188,K514='EXPENSE DATABASE'!$Z$189,K514='EXPENSE DATABASE'!$Z$190,K514='EXPENSE DATABASE'!$Z$191,K514='EXPENSE DATABASE'!$Z$192,K514='EXPENSE DATABASE'!$Z$193,K514='EXPENSE DATABASE'!$Z$194),O514,\"\")","v":""},{"$f":"IF(OR(K514='EXPENSE DATABASE'!$T$189,K514='EXPENSE DATABASE'!$T$190,K514='EXPENSE DATABASE'!$T$191),O514,\"\")","v":""},{"$f":"VLOOKUP(I514,'EXPENSE DATABASE'!$B$41:$C$65,2,FALSE)","v":{"$error":"#N/A"}},100,{"$f":"VLOOKUP(J514,'EXPENSE DATABASE'!$B$69:$C$168,2,FALSE)","v":{"$error":"#N/A"}},101,{"$f":"VLOOKUP(K514,'EXPENSE DATABASE'!$B$6:$C$35,2,FALSE)","v":{"$error":"#N/A"}},31,{"$f":"VLOOKUP(L514,'EXPENSE DATABASE'!$B$173:$C$176,2,FALSE)","v":{"$error":"#N/A"}},100,0,0,{"$f":"IF(L514=T('EXPENSE DATABASE'!$E$173),O514,0)","v":0},{"$f":"IF(L514=T('EXPENSE DATABASE'!$E$174),O514,0)","v":0},{"$f":"IF(L514=T('EXPENSE DATABASE'!$E$175),O514,0)","v":0},0,501]
[{"$f":"IF(COUNTA(#REF!,#REF!,#REF!,#REF!,#REF!,#REF!,#REF!,#REF!,#REF!,#REF!,#REF!)>0,1,0)","v":1},{"$f":"IF((COUNTA(#REF!)=4),1,-1)*A515","v":-1},{"$nulls":12},{"v":0,"d":"$0.00"},{"v":0,"d":"$0.00"},{"v":0,"d":"$0.00"},0,{"$f":"IF(OR(K515='EXPENSE DATABASE'!$V$187,K515='EXPENSE DATABASE'!$V$188,K515='EXPENSE DATABASE'!$V$189,K515='EXPENSE DATABASE'!$V$190,K515='EXPENSE DATABASE'!$V$191,K515='EXPENSE DATABASE'!$V$192,K515='EXPENSE DATABASE'!$V$193,K515='EXPENSE DATABASE'!$V$194,K515='EXPENSE DATABASE'!$X$187,K515='EXPENSE DATABASE'!$X$188,K515='EXPENSE DATABASE'!$X$189,K515='EXPENSE DATABASE'!$X$190,K515='EXPENSE DATABASE'!$X$191,K515='EXPENSE DATABASE'!$X$192,K515='EXPENSE DATABASE'!$X$193,K515='EXPENSE DATABASE'!$X$194,K515='EXPENSE DATABASE'!$Z$187,K515='EXPENSE DATABASE'!$Z$188,K515='EXPENSE DATABASE'!$Z$189,K515='EXPENSE DATABASE'!$Z$190,K515='EXPENSE DATABASE'!$Z$191,K515='EXPENSE DATABASE'!$Z$192,K515='EXPENSE DATABASE'!$Z$193,K515='EXPENSE DATABASE'!$Z$194),O515,\"\")","v":""},{"$f":"IF(OR(K515='EXPENSE DATABASE'!$T$189,K515='EXPENSE DATABASE'!$T$190,K515='EXPENSE DATABASE'!$T$191),O515,\"\")","v":""},{"$f":"VLOOKUP(I515,'EXPENSE DATABASE'!$B$41:$C$65,2,FALSE)","v":{"$error":"#N/A"}},100,{"$f":"VLOOKUP(J515,'EXPENSE DATABASE'!$B$69:$C$168,2,FALSE)","v":{"$error":"#N/A"}},101,{"$f":"VLOOKUP(K515,'EXPENSE DATABASE'!$B$6:$C$35,2,FALSE)","v":{"$error":"#N/A"}},31,{"$f":"VLOOKUP(L515,'EXPENSE DATABASE'!$B$173:$C$176,2,FALSE)","v":{"$error":"#N/A"}},100,0,0,{"$f":"IF(L515=T('EXPENSE DATABASE'!$E$173),O515,0)","v":0},{"$f":"IF(L515=T('EXPENSE DATABASE'!$E$174),O515,0)","v":0},{"$f":"IF(L515=T('EXPENSE DATABASE'!$E$175),O515,0)","v":0},0,502]
[{"$f":"IF(COUNTA(#REF!,#REF!,#REF!,#REF!,#REF!,#REF!,#REF!,#REF!,#REF!,#REF!,#REF!)>0,1,0)","v":1},{"$f":"IF((COUNTA(#REF!)=4),1,-1)*A516","v":-1},{"$nulls":12},{"v":0,"d":"$0.00"},{"v":0,"d":"$0.00"},{"v":0,"d":"$0.00"},0,{"$f":"IF(OR(K516='EXPENSE DATABASE'!$V$187,K516='EXPENSE DATABASE'!$V$188,K516='EXPENSE DATABASE'!$V$189,K516='EXPENSE DATABASE'!$V$190,K516='EXPENSE DATABASE'!$V$191,K516='EXPENSE DATABASE'!$V$192,K516='EXPENSE DATABASE'!$V$193,K516='EXPENSE DATABASE'!$V$194,K516='EXPENSE DATABASE'!$X$187,K516='EXPENSE DATABASE'!$X$188,K516='EXPENSE DATABASE'!$X$189,K516='EXPENSE DATABASE'!$X$190,K516='EXPENSE DATABASE'!$X$191,K516='EXPENSE DATABASE'!$X$192,K516='EXPENSE DATABASE'!$X$193,K516='EXPENSE DATABASE'!$X$194,K516='EXPENSE DATABASE'!$Z$187,K516='EXPENSE DATABASE'!$Z$188,K516='EXPENSE DATABASE'!$Z$189,K516='EXPENSE DATABASE'!$Z$190,K516='EXPENSE DATABASE'!$Z$191,K516='EXPENSE DATABASE'!$Z$192,K516='EXPENSE DATABASE'!$Z$193,K516='EXPENSE DATABASE'!$Z$194),O516,\"\")","v":""},{"$f":"IF(OR(K516='EXPENSE DATABASE'!$T$189,K516='EXPENSE DATABASE'!$T$190,K516='EXPENSE DATABASE'!$T$191),O516,\"\")","v":""},{"$f":"VLOOKUP(I516,'EXPENSE DATABASE'!$B$41:$C$65,2,FALSE)","v":{"$error":"#N/A"}},100,{"$f":"VLOOKUP(J516,'EXPENSE DATABASE'!$B$69:$C$168,2,FALSE)","v":{"$error":"#N/A"}},101,{"$f":"VLOOKUP(K516,'EXPENSE DATABASE'!$B$6:$C$35,2,FALSE)","v":{"$error":"#N/A"}},31,{"$f":"VLOOKUP(L516,'EXPENSE DATABASE'!$B$173:$C$176,2,FALSE)","v":{"$error":"#N/A"}},100,0,0,{"$f":"IF(L516=T('EXPENSE DATABASE'!$E$173),O516,0)","v":0},{"$f":"IF(L516=T('EXPENSE DATABASE'!$E$174),O516,0)","v":0},{"$f":"IF(L516=T('EXPENSE DATABASE'!$E$175),O516,0)","v":0},0,503]
[{"$f":"IF(COUNTA(#REF!,#REF!,#REF!,#REF!,#REF!,#REF!,#REF!,#REF!,#REF!,#REF!,#REF!)>0,1,0)","v":1},{"$f":"IF((COUNTA(#REF!)=4),1,-1)*A517","v":-1},{"$nulls":12},{"v":0,"d":"$0.00"},{"v":0,"d":"$0.00"},{"v":0,"d":"$0.00"},0,{"$f":"IF(OR(K517='EXPENSE DATABASE'!$V$187,K517='EXPENSE DATABASE'!$V$188,K517='EXPENSE DATABASE'!$V$189,K517='EXPENSE DATABASE'!$V$190,K517='EXPENSE DATABASE'!$V$191,K517='EXPENSE DATABASE'!$V$192,K517='EXPENSE DATABASE'!$V$193,K517='EXPENSE DATABASE'!$V$194,K517='EXPENSE DATABASE'!$X$187,K517='EXPENSE DATABASE'!$X$188,K517='EXPENSE DATABASE'!$X$189,K517='EXPENSE DATABASE'!$X$190,K517='EXPENSE DATABASE'!$X$191,K517='EXPENSE DATABASE'!$X$192,K517='EXPENSE DATABASE'!$X$193,K517='EXPENSE DATABASE'!$X$194,K517='EXPENSE DATABASE'!$Z$187,K517='EXPENSE DATABASE'!$Z$188,K517='EXPENSE DATABASE'!$Z$189,K517='EXPENSE DATABASE'!$Z$190,K517='EXPENSE DATABASE'!$Z$191,K517='EXPENSE DATABASE'!$Z$192,K517='EXPENSE DATABASE'!$Z$193,K517='EXPENSE DATABASE'!$Z$194),O517,\"\")","v":""},{"$f":"IF(OR(K517='EXPENSE DATABASE'!$T$189,K517='EXPENSE DATABASE'!$T$190,K517='EXPENSE DATABASE'!$T$191),O517,\"\")","v":""},{"$f":"VLOOKUP(I517,'EXPENSE DATABASE'!$B$41:$C$65,2,FALSE)","v":{"$error":"#N/A"}},100,{"$f":"VLOOKUP(J517,'EXPENSE DATABASE'!$B$69:$C$168,2,FALSE)","v":{"$error":"#N/A"}},101,{"$f":"VLOOKUP(K517,'EXPENSE DATABASE'!$B$6:$C$35,2,FALSE)","v":{"$error":"#N/A"}},31,{"$f":"VLOOKUP(L517,'EXPENSE DATABASE'!$B$173:$C$176,2,FALSE)","v":{"$error":"#N/A"}},100,0,0,{"$f":"IF(L517=T('EXPENSE DATABASE'!$E$173),O517,0)","v":0},{"$f":"IF(L517=T('EXPENSE DATABASE'!$E$174),O517,0)","v":0},{"$f":"IF(L517=T('EXPENSE DATABASE'!$E$175),O517,0)","v":0},0,504]
[{"$f":"IF(COUNTA(#REF!,#REF!,#REF!,#REF!,#REF!,#REF!,#REF!,#REF!,#REF!,#REF!,#REF!)>0,1,0)","v":1},{"$f":"IF((COUNTA(#REF!)=4),1,-1)*A518","v":-1},{"$nulls":12},{"v":0,"d":"$0.00"},{"v":0,"d":"$0.00"},{"v":0,"d":"$0.00"},0,{"$f":"IF(OR(K518='EXPENSE DATABASE'!$V$187,K518='EXPENSE DATABASE'!$V$188,K518='EXPENSE DATABASE'!$V$189,K518='EXPENSE DATABASE'!$V$190,K518='EXPENSE DATABASE'!$V$191,K518='EXPENSE DATABASE'!$V$192,K518='EXPENSE DATABASE'!$V$193,K518='EXPENSE DATABASE'!$V$194,K518='EXPENSE DATABASE'!$X$187,K518='EXPENSE DATABASE'!$X$188,K518='EXPENSE DATABASE'!$X$189,K518='EXPENSE DATABASE'!$X$190,K518='EXPENSE DATABASE'!$X$191,K518='EXPENSE DATABASE'!$X$192,K518='EXPENSE DATABASE'!$X$193,K518='EXPENSE DATABASE'!$X$194,K518='EXPENSE DATABASE'!$Z$187,K518='EXPENSE DATABASE'!$Z$188,K518='EXPENSE DATABASE'!$Z$189,K518='EXPENSE DATABASE'!$Z$190,K518='EXPENSE DATABASE'!$Z$191,K518='EXPENSE DATABASE'!$Z$192,K518='EXPENSE DATABASE'!$Z$193,K518='EXPENSE DATABASE'!$Z$194),O518,\"\")","v":""},{"$f":"IF(OR(K518='EXPENSE DATABASE'!$T$189,K518='EXPENSE DATABASE'!$T$190,K518='EXPENSE DATABASE'!$T$191),O518,\"\")","v":""},{"$f":"VLOOKUP(I518,'EXPENSE DATABASE'!$B$41:$C$65,2,FALSE)","v":{"$error":"#N/A"}},100,{"$f":"VLOOKUP(J518,'EXPENSE DATABASE'!$B$69:$C$168,2,FALSE)","v":{"$error":"#N/A"}},101,{"$f":"VLOOKUP(K518,'EXPENSE DATABASE'!$B$6:$C$35,2,FALSE)","v":{"$error":"#N/A"}},31,{"$f":"VLOOKUP(L518,'EXPENSE DATABASE'!$B$173:$C$176,2,FALSE)","v":{"$error":"#N/A"}},100,0,0,{"$f":"IF(L518=T('EXPENSE DATABASE'!$E$173),O518,0)","v":0},{"$f":"IF(L518=T('EXPENSE DATABASE'!$E$174),O518,0)","v":0},{"$f":"IF(L518=T('EXPENSE DATABASE'!$E$175),O518,0)","v":0},0,505]
[{"$f":"IF(COUNTA(#REF!,#REF!,#REF!,#REF!,#REF!,#REF!,#REF!,#REF!,#REF!,#REF!,#REF!)>0,1,0)","v":1},{"$f":"IF((COUNTA(#REF!)=4),1,-1)*A519","v":-1},{"$nulls":12},{"v":0,"d":"$0.00"},{"v":0,"d":"$0.00"},{"v":0,"d":"$0.00"},0,{"$f":"IF(OR(K519='EXPENSE DATABASE'!$V$187,K519='EXPENSE DATABASE'!$V$188,K519='EXPENSE DATABASE'!$V$189,K519='EXPENSE DATABASE'!$V$190,K519='EXPENSE DATABASE'!$V$191,K519='EXPENSE DATABASE'!$V$192,K519='EXPENSE DATABASE'!$V$193,K519='EXPENSE DATABASE'!$V$194,K519='EXPENSE DATABASE'!$X$187,K519='EXPENSE DATABASE'!$X$188,K519='EXPENSE DATABASE'!$X$189,K519='EXPENSE DATABASE'!$X$190,K519='EXPENSE DATABASE'!$X$191,K519='EXPENSE DATABASE'!$X$192,K519='EXPENSE DATABASE'!$X$193,K519='EXPENSE DATABASE'!$X$194,K519='EXPENSE DATABASE'!$Z$187,K519='EXPENSE DATABASE'!$Z$188,K519='EXPENSE DATABASE'!$Z$189,K519='EXPENSE DATABASE'!$Z$190,K519='EXPENSE DATABASE'!$Z$191,K519='EXPENSE DATABASE'!$Z$192,K519='EXPENSE DATABASE'!$Z$193,K519='EXPENSE DATABASE'!$Z$194),O519,\"\")","v":""},{"$f":"IF(OR(K519='EXPENSE DATABASE'!$T$189,K519='EXPENSE DATABASE'!$T$190,K519='EXPENSE DATABASE'!$T$191),O519,\"\")","v":""},{"$f":"VLOOKUP(I519,'EXPENSE DATABASE'!$B$41:$C$65,2,FALSE)","v":{"$error":"#N/A"}},100,{"$f":"VLOOKUP(J519,'EXPENSE DATABASE'!$B$69:$C$168,2,FALSE)","v":{"$error":"#N/A"}},101,{"$f":"VLOOKUP(K519,'EXPENSE DATABASE'!$B$6:$C$35,2,FALSE)","v":{"$error":"#N/A"}},31,{"$f":"VLOOKUP(L519,'EXPENSE DATABASE'!$B$173:$C$176,2,FALSE)","v":{"$error":"#N/A"}},100,0,0,{"$f":"IF(L519=T('EXPENSE DATABASE'!$E$173),O519,0)","v":0},{"$f":"IF(L519=T('EXPENSE DATABASE'!$E$174),O519,0)","v":0},{"$f":"IF(L519=T('EXPENSE DATABASE'!$E$175),O519,0)","v":0},0,506]
[{"$f":"IF(COUNTA(#REF!,#REF!,#REF!,#REF!,#REF!,#REF!,#REF!,#REF!,#REF!,#REF!,#REF!)>0,1,0)","v":1},{"$f":"IF((COUNTA(#REF!)=4),1,-1)*A520","v":-1},{"$nulls":12},{"v":0,"d":"$0.00"},{"v":0,"d":"$0.00"},{"v":0,"d":"$0.00"},0,{"$f":"IF(OR(K520='EXPENSE DATABASE'!$V$187,K520='EXPENSE DATABASE'!$V$188,K520='EXPENSE DATABASE'!$V$189,K520='EXPENSE DATABASE'!$V$190,K520='EXPENSE DATABASE'!$V$191,K520='EXPENSE DATABASE'!$V$192,K520='EXPENSE DATABASE'!$V$193,K520='EXPENSE DATABASE'!$V$194,K520='EXPENSE DATABASE'!$X$187,K520='EXPENSE DATABASE'!$X$188,K520='EXPENSE DATABASE'!$X$189,K520='EXPENSE DATABASE'!$X$190,K520='EXPENSE DATABASE'!$X$191,K520='EXPENSE DATABASE'!$X$192,K520='EXPENSE DATABASE'!$X$193,K520='EXPENSE DATABASE'!$X$194,K520='EXPENSE DATABASE'!$Z$187,K520='EXPENSE DATABASE'!$Z$188,K520='EXPENSE DATABASE'!$Z$189,K520='EXPENSE DATABASE'!$Z$190,K520='EXPENSE DATABASE'!$Z$191,K520='EXPENSE DATABASE'!$Z$192,K520='EXPENSE DATABASE'!$Z$193,K520='EXPENSE DATABASE'!$Z$194),O520,\"\")","v":""},{"$f":"IF(OR(K520='EXPENSE DATABASE'!$T$189,K520='EXPENSE DATABASE'!$T$190,K520='EXPENSE DATABASE'!$T$191),O520,\"\")","v":""},{"$f":"VLOOKUP(I520,'EXPENSE DATABASE'!$B$41:$C$65,2,FALSE)","v":{"$error":"#N/A"}},100,{"$f":"VLOOKUP(J520,'EXPENSE DATABASE'!$B$69:$C$168,2,FALSE)","v":{"$error":"#N/A"}},101,{"$f":"VLOOKUP(K520,'EXPENSE DATABASE'!$B$6:$C$35,2,FALSE)","v":{"$error":"#N/A"}},31,{"$f":"VLOOKUP(L520,'EXPENSE DATABASE'!$B$173:$C$176,2,FALSE)","v":{"$error":"#N/A"}},100,0,0,{"$f":"IF(L520=T('EXPENSE DATABASE'!$E$173),O520,0)","v":0},{"$f":"IF(L520=T('EXPENSE DATABASE'!$E$174),O520,0)","v":0},{"$f":"IF(L520=T('EXPENSE DATABASE'!$E$175),O520,0)","v":0},0,507]
[{"$f":"IF(COUNTA(#REF!,#REF!,#REF!,#REF!,#REF!,#REF!,#REF!,#REF!,#REF!,#REF!,#REF!)>0,1,0)","v":1},{"$f":"IF((COUNTA(#REF!)=4),1,-1)*A521","v":-1},{"$nulls":12},{"v":0,"d":"$0.00"},{"v":0,"d":"$0.00"},{"v":0,"d":"$0.00"},0,{"$f":"IF(OR(K521='EXPENSE DATABASE'!$V$187,K521='EXPENSE DATABASE'!$V$188,K521='EXPENSE DATABASE'!$V$189,K521='EXPENSE DATABASE'!$V$190,K521='EXPENSE DATABASE'!$V$191,K521='EXPENSE DATABASE'!$V$192,K521='EXPENSE DATABASE'!$V$193,K521='EXPENSE DATABASE'!$V$194,K521='EXPENSE DATABASE'!$X$187,K521='EXPENSE DATABASE'!$X$188,K521='EXPENSE DATABASE'!$X$189,K521='EXPENSE DATABASE'!$X$190,K521='EXPENSE DATABASE'!$X$191,K521='EXPENSE DATABASE'!$X$192,K521='EXPENSE DATABASE'!$X$193,K521='EXPENSE DATABASE'!$X$194,K521='EXPENSE DATABASE'!$Z$187,K521='EXPENSE DATABASE'!$Z$188,K521='EXPENSE DATABASE'!$Z$189,K521='EXPENSE DATABASE'!$Z$190,K521='EXPENSE DATABASE'!$Z$191,K521='EXPENSE DATABASE'!$Z$192,K521='EXPENSE DATABASE'!$Z$193,K521='EXPENSE DATABASE'!$Z$194),O521,\"\")","v":""},{"$f":"IF(OR(K521='EXPENSE DATABASE'!$T$189,K521='EXPENSE DATABASE'!$T$190,K521='EXPENSE DATABASE'!$T$191),O521,\"\")","v":""},{"$f":"VLOOKUP(I521,'EXPENSE DATABASE'!$B$41:$C$65,2,FALSE)","v":{"$error":"#N/A"}},100,{"$f":"VLOOKUP(J521,'EXPENSE DATABASE'!$B$69:$C$168,2,FALSE)","v":{"$error":"#N/A"}},101,{"$f":"VLOOKUP(K521,'EXPENSE DATABASE'!$B$6:$C$35,2,FALSE)","v":{"$error":"#N/A"}},31,{"$f":"VLOOKUP(L521,'EXPENSE DATABASE'!$B$173:$C$176,2,FALSE)","v":{"$error":"#N/A"}},100,0,0,{"$f":"IF(L521=T('EXPENSE DATABASE'!$E$173),O521,0)","v":0},{"$f":"IF(L521=T('EXPENSE DATABASE'!$E$174),O521,0)","v":0},{"$f":"IF(L521=T('EXPENSE DATABASE'!$E$175),O521,0)","v":0},0,508]
[{"$f":"IF(COUNTA(#REF!,#REF!,#REF!,#REF!,#REF!,#REF!,#REF!,#REF!,#REF!,#REF!,#REF!)>0,1,0)","v":1},{"$f":"IF((COUNTA(#REF!)=4),1,-1)*A522","v":-1},{"$nulls":12},{"v":0,"d":"$0.00"},{"v":0,"d":"$0.00"},{"v":0,"d":"$0.00"},0,{"$f":"IF(OR(K522='EXPENSE DATABASE'!$V$187,K522='EXPENSE DATABASE'!$V$188,K522='EXPENSE DATABASE'!$V$189,K522='EXPENSE DATABASE'!$V$190,K522='EXPENSE DATABASE'!$V$191,K522='EXPENSE DATABASE'!$V$192,K522='EXPENSE DATABASE'!$V$193,K522='EXPENSE DATABASE'!$V$194,K522='EXPENSE DATABASE'!$X$187,K522='EXPENSE DATABASE'!$X$188,K522='EXPENSE DATABASE'!$X$189,K522='EXPENSE DATABASE'!$X$190,K522='EXPENSE DATABASE'!$X$191,K522='EXPENSE DATABASE'!$X$192,K522='EXPENSE DATABASE'!$X$193,K522='EXPENSE DATABASE'!$X$194,K522='EXPENSE DATABASE'!$Z$187,K522='EXPENSE DATABASE'!$Z$188,K522='EXPENSE DATABASE'!$Z$189,K522='EXPENSE DATABASE'!$Z$190,K522='EXPENSE DATABASE'!$Z$191,K522='EXPENSE DATABASE'!$Z$192,K522='EXPENSE DATABASE'!$Z$193,K522='EXPENSE DATABASE'!$Z$194),O522,\"\")","v":""},{"$f":"IF(OR(K522='EXPENSE DATABASE'!$T$189,K522='EXPENSE DATABASE'!$T$190,K522='EXPENSE DATABASE'!$T$191),O522,\"\")","v":""},{"$f":"VLOOKUP(I522,'EXPENSE DATABASE'!$B$41:$C$65,2,FALSE)","v":{"$error":"#N/A"}},100,{"$f":"VLOOKUP(J522,'EXPENSE DATABASE'!$B$69:$C$168,2,FALSE)","v":{"$error":"#N/A"}},101,{"$f":"VLOOKUP(K522,'EXPENSE DATABASE'!$B$6:$C$35,2,FALSE)","v":{"$error":"#N/A"}},31,{"$f":"VLOOKUP(L522,'EXPENSE DATABASE'!$B$173:$C$176,2,FALSE)","v":{"$error":"#N/A"}},100,0,0,{"$f":"IF(L522=T('EXPENSE DATABASE'!$E$173),O522,0)","v":0},{"$f":"IF(L522=T('EXPENSE DATABASE'!$E$174),O522,0)","v":0},{"$f":"IF(L522=T('EXPENSE DATABASE'!$E$175),O522,0)","v":0},0,509]
[{"$f":"IF(COUNTA(#REF!,#REF!,#REF!,#REF!,#REF!,#REF!,#REF!,#REF!,#REF!,#REF!,#REF!)>0,1,0)","v":1},{"$f":"IF((COUNTA(#REF!)=4),1,-1)*A523","v":-1},{"$nulls":12},{"v":0,"d":"$0.00"},{"v":0,"d":"$0.00"},{"v":0,"d":"$0.00"},0,{"$f":"IF(OR(K523='EXPENSE DATABASE'!$V$187,K523='EXPENSE DATABASE'!$V$188,K523='EXPENSE DATABASE'!$V$189,K523='EXPENSE DATABASE'!$V$190,K523='EXPENSE DATABASE'!$V$191,K523='EXPENSE DATABASE'!$V$192,K523='EXPENSE DATABASE'!$V$193,K523='EXPENSE DATABASE'!$V$194,K523='EXPENSE DATABASE'!$X$187,K523='EXPENSE DATABASE'!$X$188,K523='EXPENSE DATABASE'!$X$189,K523='EXPENSE DATABASE'!$X$190,K523='EXPENSE DATABASE'!$X$191,K523='EXPENSE DATABASE'!$X$192,K523='EXPENSE DATABASE'!$X$193,K523='EXPENSE DATABASE'!$X$194,K523='EXPENSE DATABASE'!$Z$187,K523='EXPENSE DATABASE'!$Z$188,K523='EXPENSE DATABASE'!$Z$189,K523='EXPENSE DATABASE'!$Z$190,K523='EXPENSE DATABASE'!$Z$191,K523='EXPENSE DATABASE'!$Z$192,K523='EXPENSE DATABASE'!$Z$193,K523='EXPENSE DATABASE'!$Z$194),O523,\"\")","v":""},{"$f":"IF(OR(K523='EXPENSE DATABASE'!$T$189,K523='EXPENSE DATABASE'!$T$190,K523='EXPENSE DATABASE'!$T$191),O523,\"\")","v":""},{"$f":"VLOOKUP(I523,'EXPENSE DATABASE'!$B$41:$C$65,2,FALSE)","v":{"$error":"#N/A"}},100,{"$f":"VLOOKUP(J523,'EXPENSE DATABASE'!$B$69:$C$168,2,FALSE)","v":{"$error":"#N/A"}},101,{"$f":"VLOOKUP(K523,'EXPENSE DATABASE'!$B$6:$C$35,2,FALSE)","v":{"$error":"#N/A"}},31,{"$f":"VLOOKUP(L523,'EXPENSE DATABASE'!$B$173:$C$176,2,FALSE)","v":{"$error":"#N/A"}},100,0,0,{"$f":"IF(L523=T('EXPENSE DATABASE'!$E$173),O523,0)","v":0},{"$f":"IF(L523=T('EXPENSE DATABASE'!$E$174),O523,0)","v":0},{"$f":"IF(L523=T('EXPENSE DATABASE'!$E$175),O523,0)","v":0},0,510]
[{"$f":"IF(COUNTA(#REF!,#REF!,#REF!,#REF!,#REF!,#REF!,#REF!,#REF!,#REF!,#REF!,#REF!)>0,1,0)","v":1},{"$f":"IF((COUNTA(#REF!)=4),1,-1)*A524","v":-1},{"$nulls":12},{"v":0,"d":"$0.00"},{"v":0,"d":"$0.00"},{"v":0,"d":"$0.00"},0,{"$f":"IF(OR(K524='EXPENSE DATABASE'!$V$187,K524='EXPENSE DATABASE'!$V$188,K524='EXPENSE DATABASE'!$V$189,K524='EXPENSE DATABASE'!$V$190,K524='EXPENSE DATABASE'!$V$191,K524='EXPENSE DATABASE'!$V$192,K524='EXPENSE DATABASE'!$V$193,K524='EXPENSE DATABASE'!$V$194,K524='EXPENSE DATABASE'!$X$187,K524='EXPENSE DATABASE'!$X$188,K524='EXPENSE DATABASE'!$X$189,K524='EXPENSE DATABASE'!$X$190,K524='EXPENSE DATABASE'!$X$191,K524='EXPENSE DATABASE'!$X$192,K524='EXPENSE DATABASE'!$X$193,K524='EXPENSE DATABASE'!$X$194,K524='EXPENSE DATABASE'!$Z$187,K524='EXPENSE DATABASE'!$Z$188,K524='EXPENSE DATABASE'!$Z$189,K524='EXPENSE DATABASE'!$Z$190,K524='EXPENSE DATABASE'!$Z$191,K524='EXPENSE DATABASE'!$Z$192,K524='EXPENSE DATABASE'!$Z$193,K524='EXPENSE DATABASE'!$Z$194),O524,\"\")","v":""},{"$f":"IF(OR(K524='EXPENSE DATABASE'!$T$189,K524='EXPENSE DATABASE'!$T$190,K524='EXPENSE DATABASE'!$T$191),O524,\"\")","v":""},{"$f":"VLOOKUP(I524,'EXPENSE DATABASE'!$B$41:$C$65,2,FALSE)","v":{"$error":"#N/A"}},100,{"$f":"VLOOKUP(J524,'EXPENSE DATABASE'!$B$69:$C$168,2,FALSE)","v":{"$error":"#N/A"}},101,{"$f":"VLOOKUP(K524,'EXPENSE DATABASE'!$B$6:$C$35,2,FALSE)","v":{"$error":"#N/A"}},31,{"$f":"VLOOKUP(L524,'EXPENSE DATABASE'!$B$173:$C$176,2,FALSE)","v":{"$error":"#N/A"}},100,0,0,{"$f":"IF(L524=T('EXPENSE DATABASE'!$E$173),O524,0)","v":0},{"$f":"IF(L524=T('EXPENSE DATABASE'!$E$174),O524,0)","v":0},{"$f":"IF(L524=T('EXPENSE DATABASE'!$E$175),O524,0)","v":0},0,511]
[{"$f":"IF(COUNTA(#REF!,#REF!,#REF!,#REF!,#REF!,#REF!,#REF!,#REF!,#REF!,#REF!,#REF!)>0,1,0)","v":1},{"$f":"IF((COUNTA(#REF!)=4),1,-1)*A525","v":-1},{"$nulls":12},{"v":0,"d":"$0.00"},{"v":0,"d":"$0.00"},{"v":0,"d":"$0.00"},0,{"$f":"IF(OR(K525='EXPENSE DATABASE'!$V$187,K525='EXPENSE DATABASE'!$V$188,K525='EXPENSE DATABASE'!$V$189,K525='EXPENSE DATABASE'!$V$190,K525='EXPENSE DATABASE'!$V$191,K525='EXPENSE DATABASE'!$V$192,K525='EXPENSE DATABASE'!$V$193,K525='EXPENSE DATABASE'!$V$194,K525='EXPENSE DATABASE'!$X$187,K525='EXPENSE DATABASE'!$X$188,K525='EXPENSE DATABASE'!$X$189,K525='EXPENSE DATABASE'!$X$190,K525='EXPENSE DATABASE'!$X$191,K525='EXPENSE DATABASE'!$X$192,K525='EXPENSE DATABASE'!$X$193,K525='EXPENSE DATABASE'!$X$194,K525='EXPENSE DATABASE'!$Z$187,K525='EXPENSE DATABASE'!$Z$188,K525='EXPENSE DATABASE'!$Z$189,K525='EXPENSE DATABASE'!$Z$190,K525='EXPENSE DATABASE'!$Z$191,K525='EXPENSE DATABASE'!$Z$192,K525='EXPENSE DATABASE'!$Z$193,K525='EXPENSE DATABASE'!$Z$194),O525,\"\")","v":""},{"$f":"IF(OR(K525='EXPENSE DATABASE'!$T$189,K525='EXPENSE DATABASE'!$T$190,K525='EXPENSE DATABASE'!$T$191),O525,\"\")","v":""},{"$f":"VLOOKUP(I525,'EXPENSE DATABASE'!$B$41:$C$65,2,FALSE)","v":{"$error":"#N/A"}},100,{"$f":"VLOOKUP(J525,'EXPENSE DATABASE'!$B$69:$C$168,2,FALSE)","v":{"$error":"#N/A"}},101,{"$f":"VLOOKUP(K525,'EXPENSE DATABASE'!$B$6:$C$35,2,FALSE)","v":{"$error":"#N/A"}},31,{"$f":"VLOOKUP(L525,'EXPENSE DATABASE'!$B$173:$C$176,2,FALSE)","v":{"$error":"#N/A"}},100,0,0,{"$f":"IF(L525=T('EXPENSE DATABASE'!$E$173),O525,0)","v":0},{"$f":"IF(L525=T('EXPENSE DATABASE'!$E$174),O525,0)","v":0},{"$f":"IF(L525=T('EXPENSE DATABASE'!$E$175),O525,0)","v":0},0,512]
[{"$f":"IF(COUNTA(#REF!,#REF!,#REF!,#REF!,#REF!,#REF!,#REF!,#REF!,#REF!,#REF!,#REF!)>0,1,0)","v":1},{"$f":"IF((COUNTA(#REF!)=4),1,-1)*A526","v":-1},{"$nulls":12},{"$f":"M526*N526","v":{"v":0,"d":"$0.00"}},{"$f":"IF(OR(D526=\"No\",D526=\"\"),O526,0)","v":{"v":0,"d":"$0.00"}},{"$f":"IF(D526=\"Yes\",O526,0)","v":{"v":0,"d":"$0.00"}},{"$f":"IF(O526>0,1,0)","v":0},{"$f":"IF(OR(K526='EXPENSE DATABASE'!$V$187,K526='EXPENSE DATABASE'!$V$188,K526='EXPENSE DATABASE'!$V$189,K526='EXPENSE DATABASE'!$V$190,K526='EXPENSE DATABASE'!$V$191,K526='EXPENSE DATABASE'!$V$192,K526='EXPENSE DATABASE'!$V$193,K526='EXPENSE DATABASE'!$V$194,K526='EXPENSE DATABASE'!$X$187,K526='EXPENSE DATABASE'!$X$188,K526='EXPENSE DATABASE'!$X$189,K526='EXPENSE DATABASE'!$X$190,K526='EXPENSE DATABASE'!$X$191,K526='EXPENSE DATABASE'!$X$192,K526='EXPENSE DATABASE'!$X$193,K526='EXPENSE DATABASE'!$X$194,K526='EXPENSE DATABASE'!$Z$187,K526='EXPENSE DATABASE'!$Z$188,K526='EXPENSE DATABASE'!$Z$189,K526='EXPENSE DATABASE'!$Z$190,K526='EXPENSE DATABASE'!$Z$191,K526='EXPENSE DATABASE'!$Z$192,K526='EXPENSE DATABASE'!$Z$193,K526='EXPENSE DATABASE'!$Z$194),O526,\"\")","v":""},{"$f":"IF(OR(K526='EXPENSE DATABASE'!$T$189,K526='EXPENSE DATABASE'!$T$190,K526='EXPENSE DATABASE'!$T$191),O526,\"\")","v":""},{"$f":"VLOOKUP(I526,'EXPENSE DATABASE'!$B$41:$C$65,2,FALSE)","v":{"$error":"#N/A"}},{"$f":"IFERROR(U526,100)","v":100},{"$f":"VLOOKUP(J526,'EXPENSE DATABASE'!$B$69:$C$168,2,FALSE)","v":{"$error":"#N/A"}},{"$f":"IFERROR(W526,101)","v":101},{"$f":"VLOOKUP(K526,'EXPENSE DATABASE'!$B$6:$C$35,2,FALSE)","v":{"$error":"#N/A"}},{"$f":"IFERROR(Y526,31)","v":31},{"$f":"VLOOKUP(L526,'EXPENSE DATABASE'!$B$173:$C$176,2,FALSE)","v":{"$error":"#N/A"}},{"$f":"IFERROR(AA526,100)","v":100},{"$f":"IF(K526=0,0,1)","v":0},{"$f":"IF(J526=0,0,1)","v":0},{"$f":"IF(L526=T('EXPENSE DATABASE'!$E$173),O526,0)","v":0},{"$f":"IF(L526=T('EXPENSE DATABASE'!$E$174),O526,0)","v":0},{"$f":"IF(L526=T('EXPENSE DATABASE'!$E$175),O526,0)","v":0},{"$f":"IF(OR(N526=0,E526=0),0,MONTH(E526))","v":0},513]
[{"$f":"IF(COUNTA(#REF!,#REF!,#REF!,#REF!,#REF!,#REF!,#REF!,#REF!,#REF!,#REF!,#REF!)>0,1,0)","v":1},{"$f":"IF((COUNTA(#REF!)=4),1,-1)*A527","v":-1},{"$nulls":12},{"v":0,"d":"$0.00"},{"v":0,"d":"$0.00"},{"v":0,"d":"$0.00"},0,{"$f":"IF(OR(K527='EXPENSE DATABASE'!$V$187,K527='EXPENSE DATABASE'!$V$188,K527='EXPENSE DATABASE'!$V$189,K527='EXPENSE DATABASE'!$V$190,K527='EXPENSE DATABASE'!$V$191,K527='EXPENSE DATABASE'!$V$192,K527='EXPENSE DATABASE'!$V$193,K527='EXPENSE DATABASE'!$V$194,K527='EXPENSE DATABASE'!$X$187,K527='EXPENSE DATABASE'!$X$188,K527='EXPENSE DATABASE'!$X$189,K527='EXPENSE DATABASE'!$X$190,K527='EXPENSE DATABASE'!$X$191,K527='EXPENSE DATABASE'!$X$192,K527='EXPENSE DATABASE'!$X$193,K527='EXPENSE DATABASE'!$X$194,K527='EXPENSE DATABASE'!$Z$187,K527='EXPENSE DATABASE'!$Z$188,K527='EXPENSE DATABASE'!$Z$189,K527='EXPENSE DATABASE'!$Z$190,K527='EXPENSE DATABASE'!$Z$191,K527='EXPENSE DATABASE'!$Z$192,K527='EXPENSE DATABASE'!$Z$193,K527='EXPENSE DATABASE'!$Z$194),O527,\"\")","v":""},{"$f":"IF(OR(K527='EXPENSE DATABASE'!$T$189,K527='EXPENSE DATABASE'!$T$190,K527='EXPENSE DATABASE'!$T$191),O527,\"\")","v":""},{"$f":"VLOOKUP(I527,'EXPENSE DATABASE'!$B$41:$C$65,2,FALSE)","v":{"$error":"#N/A"}},100,{"$f":"VLOOKUP(J527,'EXPENSE DATABASE'!$B$69:$C$168,2,FALSE)","v":{"$error":"#N/A"}},101,{"$f":"VLOOKUP(K527,'EXPENSE DATABASE'!$B$6:$C$35,2,FALSE)","v":{"$error":"#N/A"}},31,{"$f":"VLOOKUP(L527,'EXPENSE DATABASE'!$B$173:$C$176,2,FALSE)","v":{"$error":"#N/A"}},100,0,0,{"$f":"IF(L527=T('EXPENSE DATABASE'!$E$173),O527,0)","v":0},{"$f":"IF(L527=T('EXPENSE DATABASE'!$E$174),O527,0)","v":0},{"$f":"IF(L527=T('EXPENSE DATABASE'!$E$175),O527,0)","v":0},0,514]
[{"$f":"IF(COUNTA(#REF!,#REF!,#REF!,#REF!,#REF!,#REF!,#REF!,#REF!,#REF!,#REF!,#REF!)>0,1,0)","v":1},{"$f":"IF((COUNTA(#REF!)=4),1,-1)*A528","v":-1},{"$nulls":12},{"v":0,"d":"$0.00"},{"v":0,"d":"$0.00"},{"v":0,"d":"$0.00"},0,{"$f":"IF(OR(K528='EXPENSE DATABASE'!$V$187,K528='EXPENSE DATABASE'!$V$188,K528='EXPENSE DATABASE'!$V$189,K528='EXPENSE DATABASE'!$V$190,K528='EXPENSE DATABASE'!$V$191,K528='EXPENSE DATABASE'!$V$192,K528='EXPENSE DATABASE'!$V$193,K528='EXPENSE DATABASE'!$V$194,K528='EXPENSE DATABASE'!$X$187,K528='EXPENSE DATABASE'!$X$188,K528='EXPENSE DATABASE'!$X$189,K528='EXPENSE DATABASE'!$X$190,K528='EXPENSE DATABASE'!$X$191,K528='EXPENSE DATABASE'!$X$192,K528='EXPENSE DATABASE'!$X$193,K528='EXPENSE DATABASE'!$X$194,K528='EXPENSE DATABASE'!$Z$187,K528='EXPENSE DATABASE'!$Z$188,K528='EXPENSE DATABASE'!$Z$189,K528='EXPENSE DATABASE'!$Z$190,K528='EXPENSE DATABASE'!$Z$191,K528='EXPENSE DATABASE'!$Z$192,K528='EXPENSE DATABASE'!$Z$193,K528='EXPENSE DATABASE'!$Z$194),O528,\"\")","v":""},{"$f":"IF(OR(K528='EXPENSE DATABASE'!$T$189,K528='EXPENSE DATABASE'!$T$190,K528='EXPENSE DATABASE'!$T$191),O528,\"\")","v":""},{"$f":"VLOOKUP(I528,'EXPENSE DATABASE'!$B$41:$C$65,2,FALSE)","v":{"$error":"#N/A"}},100,{"$f":"VLOOKUP(J528,'EXPENSE DATABASE'!$B$69:$C$168,2,FALSE)","v":{"$error":"#N/A"}},101,{"$f":"VLOOKUP(K528,'EXPENSE DATABASE'!$B$6:$C$35,2,FALSE)","v":{"$error":"#N/A"}},31,{"$f":"VLOOKUP(L528,'EXPENSE DATABASE'!$B$173:$C$176,2,FALSE)","v":{"$error":"#N/A"}},100,0,0,{"$f":"IF(L528=T('EXPENSE DATABASE'!$E$173),O528,0)","v":0},{"$f":"IF(L528=T('EXPENSE DATABASE'!$E$174),O528,0)","v":0},{"$f":"IF(L528=T('EXPENSE DATABASE'!$E$175),O528,0)","v":0},0,515]
[{"$f":"IF(COUNTA(#REF!,#REF!,#REF!,#REF!,#REF!,#REF!,#REF!,#REF!,#REF!,#REF!,#REF!)>0,1,0)","v":1},{"$f":"IF((COUNTA(#REF!)=4),1,-1)*A529","v":-1},{"$nulls":12},{"v":0,"d":"$0.00"},{"v":0,"d":"$0.00"},{"v":0,"d":"$0.00"},0,{"$f":"IF(OR(K529='EXPENSE DATABASE'!$V$187,K529='EXPENSE DATABASE'!$V$188,K529='EXPENSE DATABASE'!$V$189,K529='EXPENSE DATABASE'!$V$190,K529='EXPENSE DATABASE'!$V$191,K529='EXPENSE DATABASE'!$V$192,K529='EXPENSE DATABASE'!$V$193,K529='EXPENSE DATABASE'!$V$194,K529='EXPENSE DATABASE'!$X$187,K529='EXPENSE DATABASE'!$X$188,K529='EXPENSE DATABASE'!$X$189,K529='EXPENSE DATABASE'!$X$190,K529='EXPENSE DATABASE'!$X$191,K529='EXPENSE DATABASE'!$X$192,K529='EXPENSE DATABASE'!$X$193,K529='EXPENSE DATABASE'!$X$194,K529='EXPENSE DATABASE'!$Z$187,K529='EXPENSE DATABASE'!$Z$188,K529='EXPENSE DATABASE'!$Z$189,K529='EXPENSE DATABASE'!$Z$190,K529='EXPENSE DATABASE'!$Z$191,K529='EXPENSE DATABASE'!$Z$192,K529='EXPENSE DATABASE'!$Z$193,K529='EXPENSE DATABASE'!$Z$194),O529,\"\")","v":""},{"$f":"IF(OR(K529='EXPENSE DATABASE'!$T$189,K529='EXPENSE DATABASE'!$T$190,K529='EXPENSE DATABASE'!$T$191),O529,\"\")","v":""},{"$f":"VLOOKUP(I529,'EXPENSE DATABASE'!$B$41:$C$65,2,FALSE)","v":{"$error":"#N/A"}},100,{"$f":"VLOOKUP(J529,'EXPENSE DATABASE'!$B$69:$C$168,2,FALSE)","v":{"$error":"#N/A"}},101,{"$f":"VLOOKUP(K529,'EXPENSE DATABASE'!$B$6:$C$35,2,FALSE)","v":{"$error":"#N/A"}},31,{"$f":"VLOOKUP(L529,'EXPENSE DATABASE'!$B$173:$C$176,2,FALSE)","v":{"$error":"#N/A"}},100,0,0,{"$f":"IF(L529=T('EXPENSE DATABASE'!$E$173),O529,0)","v":0},{"$f":"IF(L529=T('EXPENSE DATABASE'!$E$174),O529,0)","v":0},{"$f":"IF(L529=T('EXPENSE DATABASE'!$E$175),O529,0)","v":0},0,516]
[{"$f":"IF(COUNTA(#REF!,#REF!,#REF!,#REF!,#REF!,#REF!,#REF!,#REF!,#REF!,#REF!,#REF!)>0,1,0)","v":1},{"$f":"IF((COUNTA(#REF!)=4),1,-1)*A530","v":-1},{"$nulls":12},{"v":0,"d":"$0.00"},{"v":0,"d":"$0.00"},{"v":0,"d":"$0.00"},0,{"$f":"IF(OR(K530='EXPENSE DATABASE'!$V$187,K530='EXPENSE DATABASE'!$V$188,K530='EXPENSE DATABASE'!$V$189,K530='EXPENSE DATABASE'!$V$190,K530='EXPENSE DATABASE'!$V$191,K530='EXPENSE DATABASE'!$V$192,K530='EXPENSE DATABASE'!$V$193,K530='EXPENSE DATABASE'!$V$194,K530='EXPENSE DATABASE'!$X$187,K530='EXPENSE DATABASE'!$X$188,K530='EXPENSE DATABASE'!$X$189,K530='EXPENSE DATABASE'!$X$190,K530='EXPENSE DATABASE'!$X$191,K530='EXPENSE DATABASE'!$X$192,K530='EXPENSE DATABASE'!$X$193,K530='EXPENSE DATABASE'!$X$194,K530='EXPENSE DATABASE'!$Z$187,K530='EXPENSE DATABASE'!$Z$188,K530='EXPENSE DATABASE'!$Z$189,K530='EXPENSE DATABASE'!$Z$190,K530='EXPENSE DATABASE'!$Z$191,K530='EXPENSE DATABASE'!$Z$192,K530='EXPENSE DATABASE'!$Z$193,K530='EXPENSE DATABASE'!$Z$194),O530,\"\")","v":""},{"$f":"IF(OR(K530='EXPENSE DATABASE'!$T$189,K530='EXPENSE DATABASE'!$T$190,K530='EXPENSE DATABASE'!$T$191),O530,\"\")","v":""},{"$f":"VLOOKUP(I530,'EXPENSE DATABASE'!$B$41:$C$65,2,FALSE)","v":{"$error":"#N/A"}},100,{"$f":"VLOOKUP(J530,'EXPENSE DATABASE'!$B$69:$C$168,2,FALSE)","v":{"$error":"#N/A"}},101,{"$f":"VLOOKUP(K530,'EXPENSE DATABASE'!$B$6:$C$35,2,FALSE)","v":{"$error":"#N/A"}},31,{"$f":"VLOOKUP(L530,'EXPENSE DATABASE'!$B$173:$C$176,2,FALSE)","v":{"$error":"#N/A"}},100,0,0,{"$f":"IF(L530=T('EXPENSE DATABASE'!$E$173),O530,0)","v":0},{"$f":"IF(L530=T('EXPENSE DATABASE'!$E$174),O530,0)","v":0},{"$f":"IF(L530=T('EXPENSE DATABASE'!$E$175),O530,0)","v":0},0,517]
[{"$f":"IF(COUNTA(#REF!,#REF!,#REF!,#REF!,#REF!,#REF!,#REF!,#REF!,#REF!,#REF!,#REF!)>0,1,0)","v":1},{"$f":"IF((COUNTA(#REF!)=4),1,-1)*A531","v":-1},{"$nulls":12},{"v":0,"d":"$0.00"},{"v":0,"d":"$0.00"},{"v":0,"d":"$0.00"},0,{"$f":"IF(OR(K531='EXPENSE DATABASE'!$V$187,K531='EXPENSE DATABASE'!$V$188,K531='EXPENSE DATABASE'!$V$189,K531='EXPENSE DATABASE'!$V$190,K531='EXPENSE DATABASE'!$V$191,K531='EXPENSE DATABASE'!$V$192,K531='EXPENSE DATABASE'!$V$193,K531='EXPENSE DATABASE'!$V$194,K531='EXPENSE DATABASE'!$X$187,K531='EXPENSE DATABASE'!$X$188,K531='EXPENSE DATABASE'!$X$189,K531='EXPENSE DATABASE'!$X$190,K531='EXPENSE DATABASE'!$X$191,K531='EXPENSE DATABASE'!$X$192,K531='EXPENSE DATABASE'!$X$193,K531='EXPENSE DATABASE'!$X$194,K531='EXPENSE DATABASE'!$Z$187,K531='EXPENSE DATABASE'!$Z$188,K531='EXPENSE DATABASE'!$Z$189,K531='EXPENSE DATABASE'!$Z$190,K531='EXPENSE DATABASE'!$Z$191,K531='EXPENSE DATABASE'!$Z$192,K531='EXPENSE DATABASE'!$Z$193,K531='EXPENSE DATABASE'!$Z$194),O531,\"\")","v":""},{"$f":"IF(OR(K531='EXPENSE DATABASE'!$T$189,K531='EXPENSE DATABASE'!$T$190,K531='EXPENSE DATABASE'!$T$191),O531,\"\")","v":""},{"$f":"VLOOKUP(I531,'EXPENSE DATABASE'!$B$41:$C$65,2,FALSE)","v":{"$error":"#N/A"}},100,{"$f":"VLOOKUP(J531,'EXPENSE DATABASE'!$B$69:$C$168,2,FALSE)","v":{"$error":"#N/A"}},101,{"$f":"VLOOKUP(K531,'EXPENSE DATABASE'!$B$6:$C$35,2,FALSE)","v":{"$error":"#N/A"}},31,{"$f":"VLOOKUP(L531,'EXPENSE DATABASE'!$B$173:$C$176,2,FALSE)","v":{"$error":"#N/A"}},100,0,0,{"$f":"IF(L531=T('EXPENSE DATABASE'!$E$173),O531,0)","v":0},{"$f":"IF(L531=T('EXPENSE DATABASE'!$E$174),O531,0)","v":0},{"$f":"IF(L531=T('EXPENSE DATABASE'!$E$175),O531,0)","v":0},0,518]
[{"$f":"IF(COUNTA(#REF!,#REF!,#REF!,#REF!,#REF!,#REF!,#REF!,#REF!,#REF!,#REF!,#REF!)>0,1,0)","v":1},{"$f":"IF((COUNTA(#REF!)=4),1,-1)*A532","v":-1},{"$nulls":12},{"v":0,"d":"$0.00"},{"v":0,"d":"$0.00"},{"v":0,"d":"$0.00"},0,{"$f":"IF(OR(K532='EXPENSE DATABASE'!$V$187,K532='EXPENSE DATABASE'!$V$188,K532='EXPENSE DATABASE'!$V$189,K532='EXPENSE DATABASE'!$V$190,K532='EXPENSE DATABASE'!$V$191,K532='EXPENSE DATABASE'!$V$192,K532='EXPENSE DATABASE'!$V$193,K532='EXPENSE DATABASE'!$V$194,K532='EXPENSE DATABASE'!$X$187,K532='EXPENSE DATABASE'!$X$188,K532='EXPENSE DATABASE'!$X$189,K532='EXPENSE DATABASE'!$X$190,K532='EXPENSE DATABASE'!$X$191,K532='EXPENSE DATABASE'!$X$192,K532='EXPENSE DATABASE'!$X$193,K532='EXPENSE DATABASE'!$X$194,K532='EXPENSE DATABASE'!$Z$187,K532='EXPENSE DATABASE'!$Z$188,K532='EXPENSE DATABASE'!$Z$189,K532='EXPENSE DATABASE'!$Z$190,K532='EXPENSE DATABASE'!$Z$191,K532='EXPENSE DATABASE'!$Z$192,K532='EXPENSE DATABASE'!$Z$193,K532='EXPENSE DATABASE'!$Z$194),O532,\"\")","v":""},{"$f":"IF(OR(K532='EXPENSE DATABASE'!$T$189,K532='EXPENSE DATABASE'!$T$190,K532='EXPENSE DATABASE'!$T$191),O532,\"\")","v":""},{"$f":"VLOOKUP(I532,'EXPENSE DATABASE'!$B$41:$C$65,2,FALSE)","v":{"$error":"#N/A"}},100,{"$f":"VLOOKUP(J532,'EXPENSE DATABASE'!$B$69:$C$168,2,FALSE)","v":{"$error":"#N/A"}},101,{"$f":"VLOOKUP(K532,'EXPENSE DATABASE'!$B$6:$C$35,2,FALSE)","v":{"$error":"#N/A"}},31,{"$f":"VLOOKUP(L532,'EXPENSE DATABASE'!$B$173:$C$176,2,FALSE)","v":{"$error":"#N/A"}},100,0,0,{"$f":"IF(L532=T('EXPENSE DATABASE'!$E$173),O532,0)","v":0},{"$f":"IF(L532=T('EXPENSE DATABASE'!$E$174),O532,0)","v":0},{"$f":"IF(L532=T('EXPENSE DATABASE'!$E$175),O532,0)","v":0},0,519]
[{"$f":"IF(COUNTA(#REF!,#REF!,#REF!,#REF!,#REF!,#REF!,#REF!,#REF!,#REF!,#REF!,#REF!)>0,1,0)","v":1},{"$f":"IF((COUNTA(#REF!)=4),1,-1)*A533","v":-1},{"$nulls":12},{"v":0,"d":"$0.00"},{"v":0,"d":"$0.00"},{"v":0,"d":"$0.00"},0,{"$f":"IF(OR(K533='EXPENSE DATABASE'!$V$187,K533='EXPENSE DATABASE'!$V$188,K533='EXPENSE DATABASE'!$V$189,K533='EXPENSE DATABASE'!$V$190,K533='EXPENSE DATABASE'!$V$191,K533='EXPENSE DATABASE'!$V$192,K533='EXPENSE DATABASE'!$V$193,K533='EXPENSE DATABASE'!$V$194,K533='EXPENSE DATABASE'!$X$187,K533='EXPENSE DATABASE'!$X$188,K533='EXPENSE DATABASE'!$X$189,K533='EXPENSE DATABASE'!$X$190,K533='EXPENSE DATABASE'!$X$191,K533='EXPENSE DATABASE'!$X$192,K533='EXPENSE DATABASE'!$X$193,K533='EXPENSE DATABASE'!$X$194,K533='EXPENSE DATABASE'!$Z$187,K533='EXPENSE DATABASE'!$Z$188,K533='EXPENSE DATABASE'!$Z$189,K533='EXPENSE DATABASE'!$Z$190,K533='EXPENSE DATABASE'!$Z$191,K533='EXPENSE DATABASE'!$Z$192,K533='EXPENSE DATABASE'!$Z$193,K533='EXPENSE DATABASE'!$Z$194),O533,\"\")","v":""},{"$f":"IF(OR(K533='EXPENSE DATABASE'!$T$189,K533='EXPENSE DATABASE'!$T$190,K533='EXPENSE DATABASE'!$T$191),O533,\"\")","v":""},{"$f":"VLOOKUP(I533,'EXPENSE DATABASE'!$B$41:$C$65,2,FALSE)","v":{"$error":"#N/A"}},100,{"$f":"VLOOKUP(J533,'EXPENSE DATABASE'!$B$69:$C$168,2,FALSE)","v":{"$error":"#N/A"}},101,{"$f":"VLOOKUP(K533,'EXPENSE DATABASE'!$B$6:$C$35,2,FALSE)","v":{"$error":"#N/A"}},31,{"$f":"VLOOKUP(L533,'EXPENSE DATABASE'!$B$173:$C$176,2,FALSE)","v":{"$error":"#N/A"}},100,0,0,{"$f":"IF(L533=T('EXPENSE DATABASE'!$E$173),O533,0)","v":0},{"$f":"IF(L533=T('EXPENSE DATABASE'!$E$174),O533,0)","v":0},{"$f":"IF(L533=T('EXPENSE DATABASE'!$E$175),O533,0)","v":0},0,520]
[{"$f":"IF(COUNTA(#REF!,#REF!,#REF!,#REF!,#REF!,#REF!,#REF!,#REF!,#REF!,#REF!,#REF!)>0,1,0)","v":1},{"$f":"IF((COUNTA(#REF!)=4),1,-1)*A534","v":-1},{"$nulls":12},{"v":0,"d":"$0.00"},{"v":0,"d":"$0.00"},{"v":0,"d":"$0.00"},0,{"$f":"IF(OR(K534='EXPENSE DATABASE'!$V$187,K534='EXPENSE DATABASE'!$V$188,K534='EXPENSE DATABASE'!$V$189,K534='EXPENSE DATABASE'!$V$190,K534='EXPENSE DATABASE'!$V$191,K534='EXPENSE DATABASE'!$V$192,K534='EXPENSE DATABASE'!$V$193,K534='EXPENSE DATABASE'!$V$194,K534='EXPENSE DATABASE'!$X$187,K534='EXPENSE DATABASE'!$X$188,K534='EXPENSE DATABASE'!$X$189,K534='EXPENSE DATABASE'!$X$190,K534='EXPENSE DATABASE'!$X$191,K534='EXPENSE DATABASE'!$X$192,K534='EXPENSE DATABASE'!$X$193,K534='EXPENSE DATABASE'!$X$194,K534='EXPENSE DATABASE'!$Z$187,K534='EXPENSE DATABASE'!$Z$188,K534='EXPENSE DATABASE'!$Z$189,K534='EXPENSE DATABASE'!$Z$190,K534='EXPENSE DATABASE'!$Z$191,K534='EXPENSE DATABASE'!$Z$192,K534='EXPENSE DATABASE'!$Z$193,K534='EXPENSE DATABASE'!$Z$194),O534,\"\")","v":""},{"$f":"IF(OR(K534='EXPENSE DATABASE'!$T$189,K534='EXPENSE DATABASE'!$T$190,K534='EXPENSE DATABASE'!$T$191),O534,\"\")","v":""},{"$f":"VLOOKUP(I534,'EXPENSE DATABASE'!$B$41:$C$65,2,FALSE)","v":{"$error":"#N/A"}},100,{"$f":"VLOOKUP(J534,'EXPENSE DATABASE'!$B$69:$C$168,2,FALSE)","v":{"$error":"#N/A"}},101,{"$f":"VLOOKUP(K534,'EXPENSE DATABASE'!$B$6:$C$35,2,FALSE)","v":{"$error":"#N/A"}},31,{"$f":"VLOOKUP(L534,'EXPENSE DATABASE'!$B$173:$C$176,2,FALSE)","v":{"$error":"#N/A"}},100,0,0,{"$f":"IF(L534=T('EXPENSE DATABASE'!$E$173),O534,0)","v":0},{"$f":"IF(L534=T('EXPENSE DATABASE'!$E$174),O534,0)","v":0},{"$f":"IF(L534=T('EXPENSE DATABASE'!$E$175),O534,0)","v":0},0,521]
[{"$f":"IF(COUNTA(#REF!,#REF!,#REF!,#REF!,#REF!,#REF!,#REF!,#REF!,#REF!,#REF!,#REF!)>0,1,0)","v":1},{"$f":"IF((COUNTA(#REF!)=4),1,-1)*A535","v":-1},{"$nulls":12},{"v":0,"d":"$0.00"},{"v":0,"d":"$0.00"},{"v":0,"d":"$0.00"},0,{"$f":"IF(OR(K535='EXPENSE DATABASE'!$V$187,K535='EXPENSE DATABASE'!$V$188,K535='EXPENSE DATABASE'!$V$189,K535='EXPENSE DATABASE'!$V$190,K535='EXPENSE DATABASE'!$V$191,K535='EXPENSE DATABASE'!$V$192,K535='EXPENSE DATABASE'!$V$193,K535='EXPENSE DATABASE'!$V$194,K535='EXPENSE DATABASE'!$X$187,K535='EXPENSE DATABASE'!$X$188,K535='EXPENSE DATABASE'!$X$189,K535='EXPENSE DATABASE'!$X$190,K535='EXPENSE DATABASE'!$X$191,K535='EXPENSE DATABASE'!$X$192,K535='EXPENSE DATABASE'!$X$193,K535='EXPENSE DATABASE'!$X$194,K535='EXPENSE DATABASE'!$Z$187,K535='EXPENSE DATABASE'!$Z$188,K535='EXPENSE DATABASE'!$Z$189,K535='EXPENSE DATABASE'!$Z$190,K535='EXPENSE DATABASE'!$Z$191,K535='EXPENSE DATABASE'!$Z$192,K535='EXPENSE DATABASE'!$Z$193,K535='EXPENSE DATABASE'!$Z$194),O535,\"\")","v":""},{"$f":"IF(OR(K535='EXPENSE DATABASE'!$T$189,K535='EXPENSE DATABASE'!$T$190,K535='EXPENSE DATABASE'!$T$191),O535,\"\")","v":""},{"$f":"VLOOKUP(I535,'EXPENSE DATABASE'!$B$41:$C$65,2,FALSE)","v":{"$error":"#N/A"}},100,{"$f":"VLOOKUP(J535,'EXPENSE DATABASE'!$B$69:$C$168,2,FALSE)","v":{"$error":"#N/A"}},101,{"$f":"VLOOKUP(K535,'EXPENSE DATABASE'!$B$6:$C$35,2,FALSE)","v":{"$error":"#N/A"}},31,{"$f":"VLOOKUP(L535,'EXPENSE DATABASE'!$B$173:$C$176,2,FALSE)","v":{"$error":"#N/A"}},100,0,0,{"$f":"IF(L535=T('EXPENSE DATABASE'!$E$173),O535,0)","v":0},{"$f":"IF(L535=T('EXPENSE DATABASE'!$E$174),O535,0)","v":0},{"$f":"IF(L535=T('EXPENSE DATABASE'!$E$175),O535,0)","v":0},0,522]
[{"$f":"IF(COUNTA(#REF!,#REF!,#REF!,#REF!,#REF!,#REF!,#REF!,#REF!,#REF!,#REF!,#REF!)>0,1,0)","v":1},{"$f":"IF((COUNTA(#REF!)=4),1,-1)*A536","v":-1},{"$nulls":12},{"v":0,"d":"$0.00"},{"v":0,"d":"$0.00"},{"v":0,"d":"$0.00"},0,{"$f":"IF(OR(K536='EXPENSE DATABASE'!$V$187,K536='EXPENSE DATABASE'!$V$188,K536='EXPENSE DATABASE'!$V$189,K536='EXPENSE DATABASE'!$V$190,K536='EXPENSE DATABASE'!$V$191,K536='EXPENSE DATABASE'!$V$192,K536='EXPENSE DATABASE'!$V$193,K536='EXPENSE DATABASE'!$V$194,K536='EXPENSE DATABASE'!$X$187,K536='EXPENSE DATABASE'!$X$188,K536='EXPENSE DATABASE'!$X$189,K536='EXPENSE DATABASE'!$X$190,K536='EXPENSE DATABASE'!$X$191,K536='EXPENSE DATABASE'!$X$192,K536='EXPENSE DATABASE'!$X$193,K536='EXPENSE DATABASE'!$X$194,K536='EXPENSE DATABASE'!$Z$187,K536='EXPENSE DATABASE'!$Z$188,K536='EXPENSE DATABASE'!$Z$189,K536='EXPENSE DATABASE'!$Z$190,K536='EXPENSE DATABASE'!$Z$191,K536='EXPENSE DATABASE'!$Z$192,K536='EXPENSE DATABASE'!$Z$193,K536='EXPENSE DATABASE'!$Z$194),O536,\"\")","v":""},{"$f":"IF(OR(K536='EXPENSE DATABASE'!$T$189,K536='EXPENSE DATABASE'!$T$190,K536='EXPENSE DATABASE'!$T$191),O536,\"\")","v":""},{"$f":"VLOOKUP(I536,'EXPENSE DATABASE'!$B$41:$C$65,2,FALSE)","v":{"$error":"#N/A"}},100,{"$f":"VLOOKUP(J536,'EXPENSE DATABASE'!$B$69:$C$168,2,FALSE)","v":{"$error":"#N/A"}},101,{"$f":"VLOOKUP(K536,'EXPENSE DATABASE'!$B$6:$C$35,2,FALSE)","v":{"$error":"#N/A"}},31,{"$f":"VLOOKUP(L536,'EXPENSE DATABASE'!$B$173:$C$176,2,FALSE)","v":{"$error":"#N/A"}},100,0,0,{"$f":"IF(L536=T('EXPENSE DATABASE'!$E$173),O536,0)","v":0},{"$f":"IF(L536=T('EXPENSE DATABASE'!$E$174),O536,0)","v":0},{"$f":"IF(L536=T('EXPENSE DATABASE'!$E$175),O536,0)","v":0},0,523]
[{"$f":"IF(COUNTA(#REF!,#REF!,#REF!,#REF!,#REF!,#REF!,#REF!,#REF!,#REF!,#REF!,#REF!)>0,1,0)","v":1},{"$f":"IF((COUNTA(#REF!)=4),1,-1)*A537","v":-1},{"$nulls":12},{"v":0,"d":"$0.00"},{"v":0,"d":"$0.00"},{"v":0,"d":"$0.00"},0,{"$f":"IF(OR(K537='EXPENSE DATABASE'!$V$187,K537='EXPENSE DATABASE'!$V$188,K537='EXPENSE DATABASE'!$V$189,K537='EXPENSE DATABASE'!$V$190,K537='EXPENSE DATABASE'!$V$191,K537='EXPENSE DATABASE'!$V$192,K537='EXPENSE DATABASE'!$V$193,K537='EXPENSE DATABASE'!$V$194,K537='EXPENSE DATABASE'!$X$187,K537='EXPENSE DATABASE'!$X$188,K537='EXPENSE DATABASE'!$X$189,K537='EXPENSE DATABASE'!$X$190,K537='EXPENSE DATABASE'!$X$191,K537='EXPENSE DATABASE'!$X$192,K537='EXPENSE DATABASE'!$X$193,K537='EXPENSE DATABASE'!$X$194,K537='EXPENSE DATABASE'!$Z$187,K537='EXPENSE DATABASE'!$Z$188,K537='EXPENSE DATABASE'!$Z$189,K537='EXPENSE DATABASE'!$Z$190,K537='EXPENSE DATABASE'!$Z$191,K537='EXPENSE DATABASE'!$Z$192,K537='EXPENSE DATABASE'!$Z$193,K537='EXPENSE DATABASE'!$Z$194),O537,\"\")","v":""},{"$f":"IF(OR(K537='EXPENSE DATABASE'!$T$189,K537='EXPENSE DATABASE'!$T$190,K537='EXPENSE DATABASE'!$T$191),O537,\"\")","v":""},{"$f":"VLOOKUP(I537,'EXPENSE DATABASE'!$B$41:$C$65,2,FALSE)","v":{"$error":"#N/A"}},100,{"$f":"VLOOKUP(J537,'EXPENSE DATABASE'!$B$69:$C$168,2,FALSE)","v":{"$error":"#N/A"}},101,{"$f":"VLOOKUP(K537,'EXPENSE DATABASE'!$B$6:$C$35,2,FALSE)","v":{"$error":"#N/A"}},31,{"$f":"VLOOKUP(L537,'EXPENSE DATABASE'!$B$173:$C$176,2,FALSE)","v":{"$error":"#N/A"}},100,0,0,{"$f":"IF(L537=T('EXPENSE DATABASE'!$E$173),O537,0)","v":0},{"$f":"IF(L537=T('EXPENSE DATABASE'!$E$174),O537,0)","v":0},{"$f":"IF(L537=T('EXPENSE DATABASE'!$E$175),O537,0)","v":0},0,524]
[{"$f":"IF(COUNTA(#REF!,#REF!,#REF!,#REF!,#REF!,#REF!,#REF!,#REF!,#REF!,#REF!,#REF!)>0,1,0)","v":1},{"$f":"IF((COUNTA(#REF!)=4),1,-1)*A538","v":-1},{"$nulls":12},{"v":0,"d":"$0.00"},{"v":0,"d":"$0.00"},{"v":0,"d":"$0.00"},0,{"$f":"IF(OR(K538='EXPENSE DATABASE'!$V$187,K538='EXPENSE DATABASE'!$V$188,K538='EXPENSE DATABASE'!$V$189,K538='EXPENSE DATABASE'!$V$190,K538='EXPENSE DATABASE'!$V$191,K538='EXPENSE DATABASE'!$V$192,K538='EXPENSE DATABASE'!$V$193,K538='EXPENSE DATABASE'!$V$194,K538='EXPENSE DATABASE'!$X$187,K538='EXPENSE DATABASE'!$X$188,K538='EXPENSE DATABASE'!$X$189,K538='EXPENSE DATABASE'!$X$190,K538='EXPENSE DATABASE'!$X$191,K538='EXPENSE DATABASE'!$X$192,K538='EXPENSE DATABASE'!$X$193,K538='EXPENSE DATABASE'!$X$194,K538='EXPENSE DATABASE'!$Z$187,K538='EXPENSE DATABASE'!$Z$188,K538='EXPENSE DATABASE'!$Z$189,K538='EXPENSE DATABASE'!$Z$190,K538='EXPENSE DATABASE'!$Z$191,K538='EXPENSE DATABASE'!$Z$192,K538='EXPENSE DATABASE'!$Z$193,K538='EXPENSE DATABASE'!$Z$194),O538,\"\")","v":""},{"$f":"IF(OR(K538='EXPENSE DATABASE'!$T$189,K538='EXPENSE DATABASE'!$T$190,K538='EXPENSE DATABASE'!$T$191),O538,\"\")","v":""},{"$f":"VLOOKUP(I538,'EXPENSE DATABASE'!$B$41:$C$65,2,FALSE)","v":{"$error":"#N/A"}},100,{"$f":"VLOOKUP(J538,'EXPENSE DATABASE'!$B$69:$C$168,2,FALSE)","v":{"$error":"#N/A"}},101,{"$f":"VLOOKUP(K538,'EXPENSE DATABASE'!$B$6:$C$35,2,FALSE)","v":{"$error":"#N/A"}},31,{"$f":"VLOOKUP(L538,'EXPENSE DATABASE'!$B$173:$C$176,2,FALSE)","v":{"$error":"#N/A"}},100,0,0,{"$f":"IF(L538=T('EXPENSE DATABASE'!$E$173),O538,0)","v":0},{"$f":"IF(L538=T('EXPENSE DATABASE'!$E$174),O538,0)","v":0},{"$f":"IF(L538=T('EXPENSE DATABASE'!$E$175),O538,0)","v":0},0,525]
[{"$f":"IF(COUNTA(#REF!,#REF!,#REF!,#REF!,#REF!,#REF!,#REF!,#REF!,#REF!,#REF!,#REF!)>0,1,0)","v":1},{"$f":"IF((COUNTA(#REF!)=4),1,-1)*A539","v":-1},{"$nulls":12},{"v":0,"d":"$0.00"},{"v":0,"d":"$0.00"},{"v":0,"d":"$0.00"},0,{"$f":"IF(OR(K539='EXPENSE DATABASE'!$V$187,K539='EXPENSE DATABASE'!$V$188,K539='EXPENSE DATABASE'!$V$189,K539='EXPENSE DATABASE'!$V$190,K539='EXPENSE DATABASE'!$V$191,K539='EXPENSE DATABASE'!$V$192,K539='EXPENSE DATABASE'!$V$193,K539='EXPENSE DATABASE'!$V$194,K539='EXPENSE DATABASE'!$X$187,K539='EXPENSE DATABASE'!$X$188,K539='EXPENSE DATABASE'!$X$189,K539='EXPENSE DATABASE'!$X$190,K539='EXPENSE DATABASE'!$X$191,K539='EXPENSE DATABASE'!$X$192,K539='EXPENSE DATABASE'!$X$193,K539='EXPENSE DATABASE'!$X$194,K539='EXPENSE DATABASE'!$Z$187,K539='EXPENSE DATABASE'!$Z$188,K539='EXPENSE DATABASE'!$Z$189,K539='EXPENSE DATABASE'!$Z$190,K539='EXPENSE DATABASE'!$Z$191,K539='EXPENSE DATABASE'!$Z$192,K539='EXPENSE DATABASE'!$Z$193,K539='EXPENSE DATABASE'!$Z$194),O539,\"\")","v":""},{"$f":"IF(OR(K539='EXPENSE DATABASE'!$T$189,K539='EXPENSE DATABASE'!$T$190,K539='EXPENSE DATABASE'!$T$191),O539,\"\")","v":""},{"$f":"VLOOKUP(I539,'EXPENSE DATABASE'!$B$41:$C$65,2,FALSE)","v":{"$error":"#N/A"}},100,{"$f":"VLOOKUP(J539,'EXPENSE DATABASE'!$B$69:$C$168,2,FALSE)","v":{"$error":"#N/A"}},101,{"$f":"VLOOKUP(K539,'EXPENSE DATABASE'!$B$6:$C$35,2,FALSE)","v":{"$error":"#N/A"}},31,{"$f":"VLOOKUP(L539,'EXPENSE DATABASE'!$B$173:$C$176,2,FALSE)","v":{"$error":"#N/A"}},100,0,0,{"$f":"IF(L539=T('EXPENSE DATABASE'!$E$173),O539,0)","v":0},{"$f":"IF(L539=T('EXPENSE DATABASE'!$E$174),O539,0)","v":0},{"$f":"IF(L539=T('EXPENSE DATABASE'!$E$175),O539,0)","v":0},0,526]
[{"$f":"IF(COUNTA(#REF!,#REF!,#REF!,#REF!,#REF!,#REF!,#REF!,#REF!,#REF!,#REF!,#REF!)>0,1,0)","v":1},{"$f":"IF((COUNTA(#REF!)=4),1,-1)*A540","v":-1},{"$nulls":12},{"v":0,"d":"$0.00"},{"v":0,"d":"$0.00"},{"v":0,"d":"$0.00"},0,{"$f":"IF(OR(K540='EXPENSE DATABASE'!$V$187,K540='EXPENSE DATABASE'!$V$188,K540='EXPENSE DATABASE'!$V$189,K540='EXPENSE DATABASE'!$V$190,K540='EXPENSE DATABASE'!$V$191,K540='EXPENSE DATABASE'!$V$192,K540='EXPENSE DATABASE'!$V$193,K540='EXPENSE DATABASE'!$V$194,K540='EXPENSE DATABASE'!$X$187,K540='EXPENSE DATABASE'!$X$188,K540='EXPENSE DATABASE'!$X$189,K540='EXPENSE DATABASE'!$X$190,K540='EXPENSE DATABASE'!$X$191,K540='EXPENSE DATABASE'!$X$192,K540='EXPENSE DATABASE'!$X$193,K540='EXPENSE DATABASE'!$X$194,K540='EXPENSE DATABASE'!$Z$187,K540='EXPENSE DATABASE'!$Z$188,K540='EXPENSE DATABASE'!$Z$189,K540='EXPENSE DATABASE'!$Z$190,K540='EXPENSE DATABASE'!$Z$191,K540='EXPENSE DATABASE'!$Z$192,K540='EXPENSE DATABASE'!$Z$193,K540='EXPENSE DATABASE'!$Z$194),O540,\"\")","v":""},{"$f":"IF(OR(K540='EXPENSE DATABASE'!$T$189,K540='EXPENSE DATABASE'!$T$190,K540='EXPENSE DATABASE'!$T$191),O540,\"\")","v":""},{"$f":"VLOOKUP(I540,'EXPENSE DATABASE'!$B$41:$C$65,2,FALSE)","v":{"$error":"#N/A"}},100,{"$f":"VLOOKUP(J540,'EXPENSE DATABASE'!$B$69:$C$168,2,FALSE)","v":{"$error":"#N/A"}},101,{"$f":"VLOOKUP(K540,'EXPENSE DATABASE'!$B$6:$C$35,2,FALSE)","v":{"$error":"#N/A"}},31,{"$f":"VLOOKUP(L540,'EXPENSE DATABASE'!$B$173:$C$176,2,FALSE)","v":{"$error":"#N/A"}},100,0,0,{"$f":"IF(L540=T('EXPENSE DATABASE'!$E$173),O540,0)","v":0},{"$f":"IF(L540=T('EXPENSE DATABASE'!$E$174),O540,0)","v":0},{"$f":"IF(L540=T('EXPENSE DATABASE'!$E$175),O540,0)","v":0},0,527]
[{"$f":"IF(COUNTA(#REF!,#REF!,#REF!,#REF!,#REF!,#REF!,#REF!,#REF!,#REF!,#REF!,#REF!)>0,1,0)","v":1},{"$f":"IF((COUNTA(#REF!)=4),1,-1)*A541","v":-1},{"$nulls":12},{"v":0,"d":"$0.00"},{"v":0,"d":"$0.00"},{"v":0,"d":"$0.00"},0,{"$f":"IF(OR(K541='EXPENSE DATABASE'!$V$187,K541='EXPENSE DATABASE'!$V$188,K541='EXPENSE DATABASE'!$V$189,K541='EXPENSE DATABASE'!$V$190,K541='EXPENSE DATABASE'!$V$191,K541='EXPENSE DATABASE'!$V$192,K541='EXPENSE DATABASE'!$V$193,K541='EXPENSE DATABASE'!$V$194,K541='EXPENSE DATABASE'!$X$187,K541='EXPENSE DATABASE'!$X$188,K541='EXPENSE DATABASE'!$X$189,K541='EXPENSE DATABASE'!$X$190,K541='EXPENSE DATABASE'!$X$191,K541='EXPENSE DATABASE'!$X$192,K541='EXPENSE DATABASE'!$X$193,K541='EXPENSE DATABASE'!$X$194,K541='EXPENSE DATABASE'!$Z$187,K541='EXPENSE DATABASE'!$Z$188,K541='EXPENSE DATABASE'!$Z$189,K541='EXPENSE DATABASE'!$Z$190,K541='EXPENSE DATABASE'!$Z$191,K541='EXPENSE DATABASE'!$Z$192,K541='EXPENSE DATABASE'!$Z$193,K541='EXPENSE DATABASE'!$Z$194),O541,\"\")","v":""},{"$f":"IF(OR(K541='EXPENSE DATABASE'!$T$189,K541='EXPENSE DATABASE'!$T$190,K541='EXPENSE DATABASE'!$T$191),O541,\"\")","v":""},{"$f":"VLOOKUP(I541,'EXPENSE DATABASE'!$B$41:$C$65,2,FALSE)","v":{"$error":"#N/A"}},100,{"$f":"VLOOKUP(J541,'EXPENSE DATABASE'!$B$69:$C$168,2,FALSE)","v":{"$error":"#N/A"}},101,{"$f":"VLOOKUP(K541,'EXPENSE DATABASE'!$B$6:$C$35,2,FALSE)","v":{"$error":"#N/A"}},31,{"$f":"VLOOKUP(L541,'EXPENSE DATABASE'!$B$173:$C$176,2,FALSE)","v":{"$error":"#N/A"}},100,0,0,{"$f":"IF(L541=T('EXPENSE DATABASE'!$E$173),O541,0)","v":0},{"$f":"IF(L541=T('EXPENSE DATABASE'!$E$174),O541,0)","v":0},{"$f":"IF(L541=T('EXPENSE DATABASE'!$E$175),O541,0)","v":0},0,528]
[{"$f":"IF(COUNTA(#REF!,#REF!,#REF!,#REF!,#REF!,#REF!,#REF!,#REF!,#REF!,#REF!,#REF!)>0,1,0)","v":1},{"$f":"IF((COUNTA(#REF!)=4),1,-1)*A542","v":-1},{"$nulls":12},{"v":0,"d":"$0.00"},{"v":0,"d":"$0.00"},{"v":0,"d":"$0.00"},0,{"$f":"IF(OR(K542='EXPENSE DATABASE'!$V$187,K542='EXPENSE DATABASE'!$V$188,K542='EXPENSE DATABASE'!$V$189,K542='EXPENSE DATABASE'!$V$190,K542='EXPENSE DATABASE'!$V$191,K542='EXPENSE DATABASE'!$V$192,K542='EXPENSE DATABASE'!$V$193,K542='EXPENSE DATABASE'!$V$194,K542='EXPENSE DATABASE'!$X$187,K542='EXPENSE DATABASE'!$X$188,K542='EXPENSE DATABASE'!$X$189,K542='EXPENSE DATABASE'!$X$190,K542='EXPENSE DATABASE'!$X$191,K542='EXPENSE DATABASE'!$X$192,K542='EXPENSE DATABASE'!$X$193,K542='EXPENSE DATABASE'!$X$194,K542='EXPENSE DATABASE'!$Z$187,K542='EXPENSE DATABASE'!$Z$188,K542='EXPENSE DATABASE'!$Z$189,K542='EXPENSE DATABASE'!$Z$190,K542='EXPENSE DATABASE'!$Z$191,K542='EXPENSE DATABASE'!$Z$192,K542='EXPENSE DATABASE'!$Z$193,K542='EXPENSE DATABASE'!$Z$194),O542,\"\")","v":""},{"$f":"IF(OR(K542='EXPENSE DATABASE'!$T$189,K542='EXPENSE DATABASE'!$T$190,K542='EXPENSE DATABASE'!$T$191),O542,\"\")","v":""},{"$f":"VLOOKUP(I542,'EXPENSE DATABASE'!$B$41:$C$65,2,FALSE)","v":{"$error":"#N/A"}},100,{"$f":"VLOOKUP(J542,'EXPENSE DATABASE'!$B$69:$C$168,2,FALSE)","v":{"$error":"#N/A"}},101,{"$f":"VLOOKUP(K542,'EXPENSE DATABASE'!$B$6:$C$35,2,FALSE)","v":{"$error":"#N/A"}},31,{"$f":"VLOOKUP(L542,'EXPENSE DATABASE'!$B$173:$C$176,2,FALSE)","v":{"$error":"#N/A"}},100,0,0,{"$f":"IF(L542=T('EXPENSE DATABASE'!$E$173),O542,0)","v":0},{"$f":"IF(L542=T('EXPENSE DATABASE'!$E$174),O542,0)","v":0},{"$f":"IF(L542=T('EXPENSE DATABASE'!$E$175),O542,0)","v":0},0,529]
[{"$f":"IF(COUNTA(#REF!,#REF!,#REF!,#REF!,#REF!,#REF!,#REF!,#REF!,#REF!,#REF!,#REF!)>0,1,0)","v":1},{"$f":"IF((COUNTA(#REF!)=4),1,-1)*A543","v":-1},{"$nulls":12},{"v":0,"d":"$0.00"},{"v":0,"d":"$0.00"},{"v":0,"d":"$0.00"},0,{"$f":"IF(OR(K543='EXPENSE DATABASE'!$V$187,K543='EXPENSE DATABASE'!$V$188,K543='EXPENSE DATABASE'!$V$189,K543='EXPENSE DATABASE'!$V$190,K543='EXPENSE DATABASE'!$V$191,K543='EXPENSE DATABASE'!$V$192,K543='EXPENSE DATABASE'!$V$193,K543='EXPENSE DATABASE'!$V$194,K543='EXPENSE DATABASE'!$X$187,K543='EXPENSE DATABASE'!$X$188,K543='EXPENSE DATABASE'!$X$189,K543='EXPENSE DATABASE'!$X$190,K543='EXPENSE DATABASE'!$X$191,K543='EXPENSE DATABASE'!$X$192,K543='EXPENSE DATABASE'!$X$193,K543='EXPENSE DATABASE'!$X$194,K543='EXPENSE DATABASE'!$Z$187,K543='EXPENSE DATABASE'!$Z$188,K543='EXPENSE DATABASE'!$Z$189,K543='EXPENSE DATABASE'!$Z$190,K543='EXPENSE DATABASE'!$Z$191,K543='EXPENSE DATABASE'!$Z$192,K543='EXPENSE DATABASE'!$Z$193,K543='EXPENSE DATABASE'!$Z$194),O543,\"\")","v":""},{"$f":"IF(OR(K543='EXPENSE DATABASE'!$T$189,K543='EXPENSE DATABASE'!$T$190,K543='EXPENSE DATABASE'!$T$191),O543,\"\")","v":""},{"$f":"VLOOKUP(I543,'EXPENSE DATABASE'!$B$41:$C$65,2,FALSE)","v":{"$error":"#N/A"}},100,{"$f":"VLOOKUP(J543,'EXPENSE DATABASE'!$B$69:$C$168,2,FALSE)","v":{"$error":"#N/A"}},101,{"$f":"VLOOKUP(K543,'EXPENSE DATABASE'!$B$6:$C$35,2,FALSE)","v":{"$error":"#N/A"}},31,{"$f":"VLOOKUP(L543,'EXPENSE DATABASE'!$B$173:$C$176,2,FALSE)","v":{"$error":"#N/A"}},100,0,0,{"$f":"IF(L543=T('EXPENSE DATABASE'!$E$173),O543,0)","v":0},{"$f":"IF(L543=T('EXPENSE DATABASE'!$E$174),O543,0)","v":0},{"$f":"IF(L543=T('EXPENSE DATABASE'!$E$175),O543,0)","v":0},0,530]
[{"$f":"IF(COUNTA(#REF!,#REF!,#REF!,#REF!,#REF!,#REF!,#REF!,#REF!,#REF!,#REF!,#REF!)>0,1,0)","v":1},{"$f":"IF((COUNTA(#REF!)=4),1,-1)*A544","v":-1},{"$nulls":12},{"v":0,"d":"$0.00"},{"v":0,"d":"$0.00"},{"v":0,"d":"$0.00"},0,{"$f":"IF(OR(K544='EXPENSE DATABASE'!$V$187,K544='EXPENSE DATABASE'!$V$188,K544='EXPENSE DATABASE'!$V$189,K544='EXPENSE DATABASE'!$V$190,K544='EXPENSE DATABASE'!$V$191,K544='EXPENSE DATABASE'!$V$192,K544='EXPENSE DATABASE'!$V$193,K544='EXPENSE DATABASE'!$V$194,K544='EXPENSE DATABASE'!$X$187,K544='EXPENSE DATABASE'!$X$188,K544='EXPENSE DATABASE'!$X$189,K544='EXPENSE DATABASE'!$X$190,K544='EXPENSE DATABASE'!$X$191,K544='EXPENSE DATABASE'!$X$192,K544='EXPENSE DATABASE'!$X$193,K544='EXPENSE DATABASE'!$X$194,K544='EXPENSE DATABASE'!$Z$187,K544='EXPENSE DATABASE'!$Z$188,K544='EXPENSE DATABASE'!$Z$189,K544='EXPENSE DATABASE'!$Z$190,K544='EXPENSE DATABASE'!$Z$191,K544='EXPENSE DATABASE'!$Z$192,K544='EXPENSE DATABASE'!$Z$193,K544='EXPENSE DATABASE'!$Z$194),O544,\"\")","v":""},{"$f":"IF(OR(K544='EXPENSE DATABASE'!$T$189,K544='EXPENSE DATABASE'!$T$190,K544='EXPENSE DATABASE'!$T$191),O544,\"\")","v":""},{"$f":"VLOOKUP(I544,'EXPENSE DATABASE'!$B$41:$C$65,2,FALSE)","v":{"$error":"#N/A"}},100,{"$f":"VLOOKUP(J544,'EXPENSE DATABASE'!$B$69:$C$168,2,FALSE)","v":{"$error":"#N/A"}},101,{"$f":"VLOOKUP(K544,'EXPENSE DATABASE'!$B$6:$C$35,2,FALSE)","v":{"$error":"#N/A"}},31,{"$f":"VLOOKUP(L544,'EXPENSE DATABASE'!$B$173:$C$176,2,FALSE)","v":{"$error":"#N/A"}},100,0,0,{"$f":"IF(L544=T('EXPENSE DATABASE'!$E$173),O544,0)","v":0},{"$f":"IF(L544=T('EXPENSE DATABASE'!$E$174),O544,0)","v":0},{"$f":"IF(L544=T('EXPENSE DATABASE'!$E$175),O544,0)","v":0},0,531]
[{"$f":"IF(COUNTA(#REF!,#REF!,#REF!,#REF!,#REF!,#REF!,#REF!,#REF!,#REF!,#REF!,#REF!)>0,1,0)","v":1},{"$f":"IF((COUNTA(#REF!)=4),1,-1)*A545","v":-1},{"$nulls":12},{"v":0,"d":"$0.00"},{"v":0,"d":"$0.00"},{"v":0,"d":"$0.00"},0,{"$f":"IF(OR(K545='EXPENSE DATABASE'!$V$187,K545='EXPENSE DATABASE'!$V$188,K545='EXPENSE DATABASE'!$V$189,K545='EXPENSE DATABASE'!$V$190,K545='EXPENSE DATABASE'!$V$191,K545='EXPENSE DATABASE'!$V$192,K545='EXPENSE DATABASE'!$V$193,K545='EXPENSE DATABASE'!$V$194,K545='EXPENSE DATABASE'!$X$187,K545='EXPENSE DATABASE'!$X$188,K545='EXPENSE DATABASE'!$X$189,K545='EXPENSE DATABASE'!$X$190,K545='EXPENSE DATABASE'!$X$191,K545='EXPENSE DATABASE'!$X$192,K545='EXPENSE DATABASE'!$X$193,K545='EXPENSE DATABASE'!$X$194,K545='EXPENSE DATABASE'!$Z$187,K545='EXPENSE DATABASE'!$Z$188,K545='EXPENSE DATABASE'!$Z$189,K545='EXPENSE DATABASE'!$Z$190,K545='EXPENSE DATABASE'!$Z$191,K545='EXPENSE DATABASE'!$Z$192,K545='EXPENSE DATABASE'!$Z$193,K545='EXPENSE DATABASE'!$Z$194),O545,\"\")","v":""},{"$f":"IF(OR(K545='EXPENSE DATABASE'!$T$189,K545='EXPENSE DATABASE'!$T$190,K545='EXPENSE DATABASE'!$T$191),O545,\"\")","v":""},{"$f":"VLOOKUP(I545,'EXPENSE DATABASE'!$B$41:$C$65,2,FALSE)","v":{"$error":"#N/A"}},100,{"$f":"VLOOKUP(J545,'EXPENSE DATABASE'!$B$69:$C$168,2,FALSE)","v":{"$error":"#N/A"}},101,{"$f":"VLOOKUP(K545,'EXPENSE DATABASE'!$B$6:$C$35,2,FALSE)","v":{"$error":"#N/A"}},31,{"$f":"VLOOKUP(L545,'EXPENSE DATABASE'!$B$173:$C$176,2,FALSE)","v":{"$error":"#N/A"}},100,0,0,{"$f":"IF(L545=T('EXPENSE DATABASE'!$E$173),O545,0)","v":0},{"$f":"IF(L545=T('EXPENSE DATABASE'!$E$174),O545,0)","v":0},{"$f":"IF(L545=T('EXPENSE DATABASE'!$E$175),O545,0)","v":0},0,532]
[{"$f":"IF(COUNTA(#REF!,#REF!,#REF!,#REF!,#REF!,#REF!,#REF!,#REF!,#REF!,#REF!,#REF!)>0,1,0)","v":1},{"$f":"IF((COUNTA(#REF!)=4),1,-1)*A546","v":-1},{"$nulls":12},{"v":0,"d":"$0.00"},{"v":0,"d":"$0.00"},{"v":0,"d":"$0.00"},0,{"$f":"IF(OR(K546='EXPENSE DATABASE'!$V$187,K546='EXPENSE DATABASE'!$V$188,K546='EXPENSE DATABASE'!$V$189,K546='EXPENSE DATABASE'!$V$190,K546='EXPENSE DATABASE'!$V$191,K546='EXPENSE DATABASE'!$V$192,K546='EXPENSE DATABASE'!$V$193,K546='EXPENSE DATABASE'!$V$194,K546='EXPENSE DATABASE'!$X$187,K546='EXPENSE DATABASE'!$X$188,K546='EXPENSE DATABASE'!$X$189,K546='EXPENSE DATABASE'!$X$190,K546='EXPENSE DATABASE'!$X$191,K546='EXPENSE DATABASE'!$X$192,K546='EXPENSE DATABASE'!$X$193,K546='EXPENSE DATABASE'!$X$194,K546='EXPENSE DATABASE'!$Z$187,K546='EXPENSE DATABASE'!$Z$188,K546='EXPENSE DATABASE'!$Z$189,K546='EXPENSE DATABASE'!$Z$190,K546='EXPENSE DATABASE'!$Z$191,K546='EXPENSE DATABASE'!$Z$192,K546='EXPENSE DATABASE'!$Z$193,K546='EXPENSE DATABASE'!$Z$194),O546,\"\")","v":""},{"$f":"IF(OR(K546='EXPENSE DATABASE'!$T$189,K546='EXPENSE DATABASE'!$T$190,K546='EXPENSE DATABASE'!$T$191),O546,\"\")","v":""},{"$f":"VLOOKUP(I546,'EXPENSE DATABASE'!$B$41:$C$65,2,FALSE)","v":{"$error":"#N/A"}},100,{"$f":"VLOOKUP(J546,'EXPENSE DATABASE'!$B$69:$C$168,2,FALSE)","v":{"$error":"#N/A"}},101,{"$f":"VLOOKUP(K546,'EXPENSE DATABASE'!$B$6:$C$35,2,FALSE)","v":{"$error":"#N/A"}},31,{"$f":"VLOOKUP(L546,'EXPENSE DATABASE'!$B$173:$C$176,2,FALSE)","v":{"$error":"#N/A"}},100,0,0,{"$f":"IF(L546=T('EXPENSE DATABASE'!$E$173),O546,0)","v":0},{"$f":"IF(L546=T('EXPENSE DATABASE'!$E$174),O546,0)","v":0},{"$f":"IF(L546=T('EXPENSE DATABASE'!$E$175),O546,0)","v":0},0,533]
[{"$f":"IF(COUNTA(#REF!,#REF!,#REF!,#REF!,#REF!,#REF!,#REF!,#REF!,#REF!,#REF!,#REF!)>0,1,0)","v":1},{"$f":"IF((COUNTA(#REF!)=4),1,-1)*A547","v":-1},{"$nulls":12},{"v":0,"d":"$0.00"},{"v":0,"d":"$0.00"},{"v":0,"d":"$0.00"},0,{"$f":"IF(OR(K547='EXPENSE DATABASE'!$V$187,K547='EXPENSE DATABASE'!$V$188,K547='EXPENSE DATABASE'!$V$189,K547='EXPENSE DATABASE'!$V$190,K547='EXPENSE DATABASE'!$V$191,K547='EXPENSE DATABASE'!$V$192,K547='EXPENSE DATABASE'!$V$193,K547='EXPENSE DATABASE'!$V$194,K547='EXPENSE DATABASE'!$X$187,K547='EXPENSE DATABASE'!$X$188,K547='EXPENSE DATABASE'!$X$189,K547='EXPENSE DATABASE'!$X$190,K547='EXPENSE DATABASE'!$X$191,K547='EXPENSE DATABASE'!$X$192,K547='EXPENSE DATABASE'!$X$193,K547='EXPENSE DATABASE'!$X$194,K547='EXPENSE DATABASE'!$Z$187,K547='EXPENSE DATABASE'!$Z$188,K547='EXPENSE DATABASE'!$Z$189,K547='EXPENSE DATABASE'!$Z$190,K547='EXPENSE DATABASE'!$Z$191,K547='EXPENSE DATABASE'!$Z$192,K547='EXPENSE DATABASE'!$Z$193,K547='EXPENSE DATABASE'!$Z$194),O547,\"\")","v":""},{"$f":"IF(OR(K547='EXPENSE DATABASE'!$T$189,K547='EXPENSE DATABASE'!$T$190,K547='EXPENSE DATABASE'!$T$191),O547,\"\")","v":""},{"$f":"VLOOKUP(I547,'EXPENSE DATABASE'!$B$41:$C$65,2,FALSE)","v":{"$error":"#N/A"}},100,{"$f":"VLOOKUP(J547,'EXPENSE DATABASE'!$B$69:$C$168,2,FALSE)","v":{"$error":"#N/A"}},101,{"$f":"VLOOKUP(K547,'EXPENSE DATABASE'!$B$6:$C$35,2,FALSE)","v":{"$error":"#N/A"}},31,{"$f":"VLOOKUP(L547,'EXPENSE DATABASE'!$B$173:$C$176,2,FALSE)","v":{"$error":"#N/A"}},100,0,0,{"$f":"IF(L547=T('EXPENSE DATABASE'!$E$173),O547,0)","v":0},{"$f":"IF(L547=T('EXPENSE DATABASE'!$E$174),O547,0)","v":0},{"$f":"IF(L547=T('EXPENSE DATABASE'!$E$175),O547,0)","v":0},0,534]
[{"$f":"IF(COUNTA(#REF!,#REF!,#REF!,#REF!,#REF!,#REF!,#REF!,#REF!,#REF!,#REF!,#REF!)>0,1,0)","v":1},{"$f":"IF((COUNTA(#REF!)=4),1,-1)*A548","v":-1},{"$nulls":12},{"v":0,"d":"$0.00"},{"v":0,"d":"$0.00"},{"v":0,"d":"$0.00"},0,{"$f":"IF(OR(K548='EXPENSE DATABASE'!$V$187,K548='EXPENSE DATABASE'!$V$188,K548='EXPENSE DATABASE'!$V$189,K548='EXPENSE DATABASE'!$V$190,K548='EXPENSE DATABASE'!$V$191,K548='EXPENSE DATABASE'!$V$192,K548='EXPENSE DATABASE'!$V$193,K548='EXPENSE DATABASE'!$V$194,K548='EXPENSE DATABASE'!$X$187,K548='EXPENSE DATABASE'!$X$188,K548='EXPENSE DATABASE'!$X$189,K548='EXPENSE DATABASE'!$X$190,K548='EXPENSE DATABASE'!$X$191,K548='EXPENSE DATABASE'!$X$192,K548='EXPENSE DATABASE'!$X$193,K548='EXPENSE DATABASE'!$X$194,K548='EXPENSE DATABASE'!$Z$187,K548='EXPENSE DATABASE'!$Z$188,K548='EXPENSE DATABASE'!$Z$189,K548='EXPENSE DATABASE'!$Z$190,K548='EXPENSE DATABASE'!$Z$191,K548='EXPENSE DATABASE'!$Z$192,K548='EXPENSE DATABASE'!$Z$193,K548='EXPENSE DATABASE'!$Z$194),O548,\"\")","v":""},{"$f":"IF(OR(K548='EXPENSE DATABASE'!$T$189,K548='EXPENSE DATABASE'!$T$190,K548='EXPENSE DATABASE'!$T$191),O548,\"\")","v":""},{"$f":"VLOOKUP(I548,'EXPENSE DATABASE'!$B$41:$C$65,2,FALSE)","v":{"$error":"#N/A"}},100,{"$f":"VLOOKUP(J548,'EXPENSE DATABASE'!$B$69:$C$168,2,FALSE)","v":{"$error":"#N/A"}},101,{"$f":"VLOOKUP(K548,'EXPENSE DATABASE'!$B$6:$C$35,2,FALSE)","v":{"$error":"#N/A"}},31,{"$f":"VLOOKUP(L548,'EXPENSE DATABASE'!$B$173:$C$176,2,FALSE)","v":{"$error":"#N/A"}},100,0,0,{"$f":"IF(L548=T('EXPENSE DATABASE'!$E$173),O548,0)","v":0},{"$f":"IF(L548=T('EXPENSE DATABASE'!$E$174),O548,0)","v":0},{"$f":"IF(L548=T('EXPENSE DATABASE'!$E$175),O548,0)","v":0},0,535]
[{"$f":"IF(COUNTA(#REF!,#REF!,#REF!,#REF!,#REF!,#REF!,#REF!,#REF!,#REF!,#REF!,#REF!)>0,1,0)","v":1},{"$f":"IF((COUNTA(#REF!)=4),1,-1)*A549","v":-1},{"$nulls":12},{"v":0,"d":"$0.00"},{"v":0,"d":"$0.00"},{"v":0,"d":"$0.00"},0,{"$f":"IF(OR(K549='EXPENSE DATABASE'!$V$187,K549='EXPENSE DATABASE'!$V$188,K549='EXPENSE DATABASE'!$V$189,K549='EXPENSE DATABASE'!$V$190,K549='EXPENSE DATABASE'!$V$191,K549='EXPENSE DATABASE'!$V$192,K549='EXPENSE DATABASE'!$V$193,K549='EXPENSE DATABASE'!$V$194,K549='EXPENSE DATABASE'!$X$187,K549='EXPENSE DATABASE'!$X$188,K549='EXPENSE DATABASE'!$X$189,K549='EXPENSE DATABASE'!$X$190,K549='EXPENSE DATABASE'!$X$191,K549='EXPENSE DATABASE'!$X$192,K549='EXPENSE DATABASE'!$X$193,K549='EXPENSE DATABASE'!$X$194,K549='EXPENSE DATABASE'!$Z$187,K549='EXPENSE DATABASE'!$Z$188,K549='EXPENSE DATABASE'!$Z$189,K549='EXPENSE DATABASE'!$Z$190,K549='EXPENSE DATABASE'!$Z$191,K549='EXPENSE DATABASE'!$Z$192,K549='EXPENSE DATABASE'!$Z$193,K549='EXPENSE DATABASE'!$Z$194),O549,\"\")","v":""},{"$f":"IF(OR(K549='EXPENSE DATABASE'!$T$189,K549='EXPENSE DATABASE'!$T$190,K549='EXPENSE DATABASE'!$T$191),O549,\"\")","v":""},{"$f":"VLOOKUP(I549,'EXPENSE DATABASE'!$B$41:$C$65,2,FALSE)","v":{"$error":"#N/A"}},100,{"$f":"VLOOKUP(J549,'EXPENSE DATABASE'!$B$69:$C$168,2,FALSE)","v":{"$error":"#N/A"}},101,{"$f":"VLOOKUP(K549,'EXPENSE DATABASE'!$B$6:$C$35,2,FALSE)","v":{"$error":"#N/A"}},31,{"$f":"VLOOKUP(L549,'EXPENSE DATABASE'!$B$173:$C$176,2,FALSE)","v":{"$error":"#N/A"}},100,0,0,{"$f":"IF(L549=T('EXPENSE DATABASE'!$E$173),O549,0)","v":0},{"$f":"IF(L549=T('EXPENSE DATABASE'!$E$174),O549,0)","v":0},{"$f":"IF(L549=T('EXPENSE DATABASE'!$E$175),O549,0)","v":0},0,536]
[{"$f":"IF(COUNTA(#REF!,#REF!,#REF!,#REF!,#REF!,#REF!,#REF!,#REF!,#REF!,#REF!,#REF!)>0,1,0)","v":1},{"$f":"IF((COUNTA(#REF!)=4),1,-1)*A550","v":-1},{"$nulls":12},{"v":0,"d":"$0.00"},{"v":0,"d":"$0.00"},{"v":0,"d":"$0.00"},0,{"$f":"IF(OR(K550='EXPENSE DATABASE'!$V$187,K550='EXPENSE DATABASE'!$V$188,K550='EXPENSE DATABASE'!$V$189,K550='EXPENSE DATABASE'!$V$190,K550='EXPENSE DATABASE'!$V$191,K550='EXPENSE DATABASE'!$V$192,K550='EXPENSE DATABASE'!$V$193,K550='EXPENSE DATABASE'!$V$194,K550='EXPENSE DATABASE'!$X$187,K550='EXPENSE DATABASE'!$X$188,K550='EXPENSE DATABASE'!$X$189,K550='EXPENSE DATABASE'!$X$190,K550='EXPENSE DATABASE'!$X$191,K550='EXPENSE DATABASE'!$X$192,K550='EXPENSE DATABASE'!$X$193,K550='EXPENSE DATABASE'!$X$194,K550='EXPENSE DATABASE'!$Z$187,K550='EXPENSE DATABASE'!$Z$188,K550='EXPENSE DATABASE'!$Z$189,K550='EXPENSE DATABASE'!$Z$190,K550='EXPENSE DATABASE'!$Z$191,K550='EXPENSE DATABASE'!$Z$192,K550='EXPENSE DATABASE'!$Z$193,K550='EXPENSE DATABASE'!$Z$194),O550,\"\")","v":""},{"$f":"IF(OR(K550='EXPENSE DATABASE'!$T$189,K550='EXPENSE DATABASE'!$T$190,K550='EXPENSE DATABASE'!$T$191),O550,\"\")","v":""},{"$f":"VLOOKUP(I550,'EXPENSE DATABASE'!$B$41:$C$65,2,FALSE)","v":{"$error":"#N/A"}},100,{"$f":"VLOOKUP(J550,'EXPENSE DATABASE'!$B$69:$C$168,2,FALSE)","v":{"$error":"#N/A"}},101,{"$f":"VLOOKUP(K550,'EXPENSE DATABASE'!$B$6:$C$35,2,FALSE)","v":{"$error":"#N/A"}},31,{"$f":"VLOOKUP(L550,'EXPENSE DATABASE'!$B$173:$C$176,2,FALSE)","v":{"$error":"#N/A"}},100,0,0,{"$f":"IF(L550=T('EXPENSE DATABASE'!$E$173),O550,0)","v":0},{"$f":"IF(L550=T('EXPENSE DATABASE'!$E$174),O550,0)","v":0},{"$f":"IF(L550=T('EXPENSE DATABASE'!$E$175),O550,0)","v":0},0,537]
[{"$f":"IF(COUNTA(#REF!,#REF!,#REF!,#REF!,#REF!,#REF!,#REF!,#REF!,#REF!,#REF!,#REF!)>0,1,0)","v":1},{"$f":"IF((COUNTA(#REF!)=4),1,-1)*A551","v":-1},{"$nulls":12},{"v":0,"d":"$0.00"},{"v":0,"d":"$0.00"},{"v":0,"d":"$0.00"},0,{"$f":"IF(OR(K551='EXPENSE DATABASE'!$V$187,K551='EXPENSE DATABASE'!$V$188,K551='EXPENSE DATABASE'!$V$189,K551='EXPENSE DATABASE'!$V$190,K551='EXPENSE DATABASE'!$V$191,K551='EXPENSE DATABASE'!$V$192,K551='EXPENSE DATABASE'!$V$193,K551='EXPENSE DATABASE'!$V$194,K551='EXPENSE DATABASE'!$X$187,K551='EXPENSE DATABASE'!$X$188,K551='EXPENSE DATABASE'!$X$189,K551='EXPENSE DATABASE'!$X$190,K551='EXPENSE DATABASE'!$X$191,K551='EXPENSE DATABASE'!$X$192,K551='EXPENSE DATABASE'!$X$193,K551='EXPENSE DATABASE'!$X$194,K551='EXPENSE DATABASE'!$Z$187,K551='EXPENSE DATABASE'!$Z$188,K551='EXPENSE DATABASE'!$Z$189,K551='EXPENSE DATABASE'!$Z$190,K551='EXPENSE DATABASE'!$Z$191,K551='EXPENSE DATABASE'!$Z$192,K551='EXPENSE DATABASE'!$Z$193,K551='EXPENSE DATABASE'!$Z$194),O551,\"\")","v":""},{"$f":"IF(OR(K551='EXPENSE DATABASE'!$T$189,K551='EXPENSE DATABASE'!$T$190,K551='EXPENSE DATABASE'!$T$191),O551,\"\")","v":""},{"$f":"VLOOKUP(I551,'EXPENSE DATABASE'!$B$41:$C$65,2,FALSE)","v":{"$error":"#N/A"}},100,{"$f":"VLOOKUP(J551,'EXPENSE DATABASE'!$B$69:$C$168,2,FALSE)","v":{"$error":"#N/A"}},101,{"$f":"VLOOKUP(K551,'EXPENSE DATABASE'!$B$6:$C$35,2,FALSE)","v":{"$error":"#N/A"}},31,{"$f":"VLOOKUP(L551,'EXPENSE DATABASE'!$B$173:$C$176,2,FALSE)","v":{"$error":"#N/A"}},100,0,0,{"$f":"IF(L551=T('EXPENSE DATABASE'!$E$173),O551,0)","v":0},{"$f":"IF(L551=T('EXPENSE DATABASE'!$E$174),O551,0)","v":0},{"$f":"IF(L551=T('EXPENSE DATABASE'!$E$175),O551,0)","v":0},0,538]
[{"$f":"IF(COUNTA(#REF!,#REF!,#REF!,#REF!,#REF!,#REF!,#REF!,#REF!,#REF!,#REF!,#REF!)>0,1,0)","v":1},{"$f":"IF((COUNTA(#REF!)=4),1,-1)*A552","v":-1},{"$nulls":12},{"v":0,"d":"$0.00"},{"v":0,"d":"$0.00"},{"v":0,"d":"$0.00"},0,{"$f":"IF(OR(K552='EXPENSE DATABASE'!$V$187,K552='EXPENSE DATABASE'!$V$188,K552='EXPENSE DATABASE'!$V$189,K552='EXPENSE DATABASE'!$V$190,K552='EXPENSE DATABASE'!$V$191,K552='EXPENSE DATABASE'!$V$192,K552='EXPENSE DATABASE'!$V$193,K552='EXPENSE DATABASE'!$V$194,K552='EXPENSE DATABASE'!$X$187,K552='EXPENSE DATABASE'!$X$188,K552='EXPENSE DATABASE'!$X$189,K552='EXPENSE DATABASE'!$X$190,K552='EXPENSE DATABASE'!$X$191,K552='EXPENSE DATABASE'!$X$192,K552='EXPENSE DATABASE'!$X$193,K552='EXPENSE DATABASE'!$X$194,K552='EXPENSE DATABASE'!$Z$187,K552='EXPENSE DATABASE'!$Z$188,K552='EXPENSE DATABASE'!$Z$189,K552='EXPENSE DATABASE'!$Z$190,K552='EXPENSE DATABASE'!$Z$191,K552='EXPENSE DATABASE'!$Z$192,K552='EXPENSE DATABASE'!$Z$193,K552='EXPENSE DATABASE'!$Z$194),O552,\"\")","v":""},{"$f":"IF(OR(K552='EXPENSE DATABASE'!$T$189,K552='EXPENSE DATABASE'!$T$190,K552='EXPENSE DATABASE'!$T$191),O552,\"\")","v":""},{"$f":"VLOOKUP(I552,'EXPENSE DATABASE'!$B$41:$C$65,2,FALSE)","v":{"$error":"#N/A"}},100,{"$f":"VLOOKUP(J552,'EXPENSE DATABASE'!$B$69:$C$168,2,FALSE)","v":{"$error":"#N/A"}},101,{"$f":"VLOOKUP(K552,'EXPENSE DATABASE'!$B$6:$C$35,2,FALSE)","v":{"$error":"#N/A"}},31,{"$f":"VLOOKUP(L552,'EXPENSE DATABASE'!$B$173:$C$176,2,FALSE)","v":{"$error":"#N/A"}},100,0,0,{"$f":"IF(L552=T('EXPENSE DATABASE'!$E$173),O552,0)","v":0},{"$f":"IF(L552=T('EXPENSE DATABASE'!$E$174),O552,0)","v":0},{"$f":"IF(L552=T('EXPENSE DATABASE'!$E$175),O552,0)","v":0},0,539]
[{"$f":"IF(COUNTA(#REF!,#REF!,#REF!,#REF!,#REF!,#REF!,#REF!,#REF!,#REF!,#REF!,#REF!)>0,1,0)","v":1},{"$f":"IF((COUNTA(#REF!)=4),1,-1)*A553","v":-1},{"$nulls":12},{"v":0,"d":"$0.00"},{"v":0,"d":"$0.00"},{"v":0,"d":"$0.00"},0,{"$f":"IF(OR(K553='EXPENSE DATABASE'!$V$187,K553='EXPENSE DATABASE'!$V$188,K553='EXPENSE DATABASE'!$V$189,K553='EXPENSE DATABASE'!$V$190,K553='EXPENSE DATABASE'!$V$191,K553='EXPENSE DATABASE'!$V$192,K553='EXPENSE DATABASE'!$V$193,K553='EXPENSE DATABASE'!$V$194,K553='EXPENSE DATABASE'!$X$187,K553='EXPENSE DATABASE'!$X$188,K553='EXPENSE DATABASE'!$X$189,K553='EXPENSE DATABASE'!$X$190,K553='EXPENSE DATABASE'!$X$191,K553='EXPENSE DATABASE'!$X$192,K553='EXPENSE DATABASE'!$X$193,K553='EXPENSE DATABASE'!$X$194,K553='EXPENSE DATABASE'!$Z$187,K553='EXPENSE DATABASE'!$Z$188,K553='EXPENSE DATABASE'!$Z$189,K553='EXPENSE DATABASE'!$Z$190,K553='EXPENSE DATABASE'!$Z$191,K553='EXPENSE DATABASE'!$Z$192,K553='EXPENSE DATABASE'!$Z$193,K553='EXPENSE DATABASE'!$Z$194),O553,\"\")","v":""},{"$f":"IF(OR(K553='EXPENSE DATABASE'!$T$189,K553='EXPENSE DATABASE'!$T$190,K553='EXPENSE DATABASE'!$T$191),O553,\"\")","v":""},{"$f":"VLOOKUP(I553,'EXPENSE DATABASE'!$B$41:$C$65,2,FALSE)","v":{"$error":"#N/A"}},100,{"$f":"VLOOKUP(J553,'EXPENSE DATABASE'!$B$69:$C$168,2,FALSE)","v":{"$error":"#N/A"}},101,{"$f":"VLOOKUP(K553,'EXPENSE DATABASE'!$B$6:$C$35,2,FALSE)","v":{"$error":"#N/A"}},31,{"$f":"VLOOKUP(L553,'EXPENSE DATABASE'!$B$173:$C$176,2,FALSE)","v":{"$error":"#N/A"}},100,0,0,{"$f":"IF(L553=T('EXPENSE DATABASE'!$E$173),O553,0)","v":0},{"$f":"IF(L553=T('EXPENSE DATABASE'!$E$174),O553,0)","v":0},{"$f":"IF(L553=T('EXPENSE DATABASE'!$E$175),O553,0)","v":0},0,540]
[{"$f":"IF(COUNTA(#REF!,#REF!,#REF!,#REF!,#REF!,#REF!,#REF!,#REF!,#REF!,#REF!,#REF!)>0,1,0)","v":1},{"$f":"IF((COUNTA(#REF!)=4),1,-1)*A554","v":-1},{"$nulls":12},{"v":0,"d":"$0.00"},{"v":0,"d":"$0.00"},{"v":0,"d":"$0.00"},0,{"$f":"IF(OR(K554='EXPENSE DATABASE'!$V$187,K554='EXPENSE DATABASE'!$V$188,K554='EXPENSE DATABASE'!$V$189,K554='EXPENSE DATABASE'!$V$190,K554='EXPENSE DATABASE'!$V$191,K554='EXPENSE DATABASE'!$V$192,K554='EXPENSE DATABASE'!$V$193,K554='EXPENSE DATABASE'!$V$194,K554='EXPENSE DATABASE'!$X$187,K554='EXPENSE DATABASE'!$X$188,K554='EXPENSE DATABASE'!$X$189,K554='EXPENSE DATABASE'!$X$190,K554='EXPENSE DATABASE'!$X$191,K554='EXPENSE DATABASE'!$X$192,K554='EXPENSE DATABASE'!$X$193,K554='EXPENSE DATABASE'!$X$194,K554='EXPENSE DATABASE'!$Z$187,K554='EXPENSE DATABASE'!$Z$188,K554='EXPENSE DATABASE'!$Z$189,K554='EXPENSE DATABASE'!$Z$190,K554='EXPENSE DATABASE'!$Z$191,K554='EXPENSE DATABASE'!$Z$192,K554='EXPENSE DATABASE'!$Z$193,K554='EXPENSE DATABASE'!$Z$194),O554,\"\")","v":""},{"$f":"IF(OR(K554='EXPENSE DATABASE'!$T$189,K554='EXPENSE DATABASE'!$T$190,K554='EXPENSE DATABASE'!$T$191),O554,\"\")","v":""},{"$f":"VLOOKUP(I554,'EXPENSE DATABASE'!$B$41:$C$65,2,FALSE)","v":{"$error":"#N/A"}},100,{"$f":"VLOOKUP(J554,'EXPENSE DATABASE'!$B$69:$C$168,2,FALSE)","v":{"$error":"#N/A"}},101,{"$f":"VLOOKUP(K554,'EXPENSE DATABASE'!$B$6:$C$35,2,FALSE)","v":{"$error":"#N/A"}},31,{"$f":"VLOOKUP(L554,'EXPENSE DATABASE'!$B$173:$C$176,2,FALSE)","v":{"$error":"#N/A"}},100,0,0,{"$f":"IF(L554=T('EXPENSE DATABASE'!$E$173),O554,0)","v":0},{"$f":"IF(L554=T('EXPENSE DATABASE'!$E$174),O554,0)","v":0},{"$f":"IF(L554=T('EXPENSE DATABASE'!$E$175),O554,0)","v":0},0,541]
[{"$f":"IF(COUNTA(#REF!,#REF!,#REF!,#REF!,#REF!,#REF!,#REF!,#REF!,#REF!,#REF!,#REF!)>0,1,0)","v":1},{"$f":"IF((COUNTA(#REF!)=4),1,-1)*A555","v":-1},{"$nulls":12},{"v":0,"d":"$0.00"},{"v":0,"d":"$0.00"},{"v":0,"d":"$0.00"},0,{"$f":"IF(OR(K555='EXPENSE DATABASE'!$V$187,K555='EXPENSE DATABASE'!$V$188,K555='EXPENSE DATABASE'!$V$189,K555='EXPENSE DATABASE'!$V$190,K555='EXPENSE DATABASE'!$V$191,K555='EXPENSE DATABASE'!$V$192,K555='EXPENSE DATABASE'!$V$193,K555='EXPENSE DATABASE'!$V$194,K555='EXPENSE DATABASE'!$X$187,K555='EXPENSE DATABASE'!$X$188,K555='EXPENSE DATABASE'!$X$189,K555='EXPENSE DATABASE'!$X$190,K555='EXPENSE DATABASE'!$X$191,K555='EXPENSE DATABASE'!$X$192,K555='EXPENSE DATABASE'!$X$193,K555='EXPENSE DATABASE'!$X$194,K555='EXPENSE DATABASE'!$Z$187,K555='EXPENSE DATABASE'!$Z$188,K555='EXPENSE DATABASE'!$Z$189,K555='EXPENSE DATABASE'!$Z$190,K555='EXPENSE DATABASE'!$Z$191,K555='EXPENSE DATABASE'!$Z$192,K555='EXPENSE DATABASE'!$Z$193,K555='EXPENSE DATABASE'!$Z$194),O555,\"\")","v":""},{"$f":"IF(OR(K555='EXPENSE DATABASE'!$T$189,K555='EXPENSE DATABASE'!$T$190,K555='EXPENSE DATABASE'!$T$191),O555,\"\")","v":""},{"$f":"VLOOKUP(I555,'EXPENSE DATABASE'!$B$41:$C$65,2,FALSE)","v":{"$error":"#N/A"}},100,{"$f":"VLOOKUP(J555,'EXPENSE DATABASE'!$B$69:$C$168,2,FALSE)","v":{"$error":"#N/A"}},101,{"$f":"VLOOKUP(K555,'EXPENSE DATABASE'!$B$6:$C$35,2,FALSE)","v":{"$error":"#N/A"}},31,{"$f":"VLOOKUP(L555,'EXPENSE DATABASE'!$B$173:$C$176,2,FALSE)","v":{"$error":"#N/A"}},100,0,0,{"$f":"IF(L555=T('EXPENSE DATABASE'!$E$173),O555,0)","v":0},{"$f":"IF(L555=T('EXPENSE DATABASE'!$E$174),O555,0)","v":0},{"$f":"IF(L555=T('EXPENSE DATABASE'!$E$175),O555,0)","v":0},0,542]
[{"$f":"IF(COUNTA(#REF!,#REF!,#REF!,#REF!,#REF!,#REF!,#REF!,#REF!,#REF!,#REF!,#REF!)>0,1,0)","v":1},{"$f":"IF((COUNTA(#REF!)=4),1,-1)*A556","v":-1},{"$nulls":12},{"v":0,"d":"$0.00"},{"v":0,"d":"$0.00"},{"v":0,"d":"$0.00"},0,{"$f":"IF(OR(K556='EXPENSE DATABASE'!$V$187,K556='EXPENSE DATABASE'!$V$188,K556='EXPENSE DATABASE'!$V$189,K556='EXPENSE DATABASE'!$V$190,K556='EXPENSE DATABASE'!$V$191,K556='EXPENSE DATABASE'!$V$192,K556='EXPENSE DATABASE'!$V$193,K556='EXPENSE DATABASE'!$V$194,K556='EXPENSE DATABASE'!$X$187,K556='EXPENSE DATABASE'!$X$188,K556='EXPENSE DATABASE'!$X$189,K556='EXPENSE DATABASE'!$X$190,K556='EXPENSE DATABASE'!$X$191,K556='EXPENSE DATABASE'!$X$192,K556='EXPENSE DATABASE'!$X$193,K556='EXPENSE DATABASE'!$X$194,K556='EXPENSE DATABASE'!$Z$187,K556='EXPENSE DATABASE'!$Z$188,K556='EXPENSE DATABASE'!$Z$189,K556='EXPENSE DATABASE'!$Z$190,K556='EXPENSE DATABASE'!$Z$191,K556='EXPENSE DATABASE'!$Z$192,K556='EXPENSE DATABASE'!$Z$193,K556='EXPENSE DATABASE'!$Z$194),O556,\"\")","v":""},{"$f":"IF(OR(K556='EXPENSE DATABASE'!$T$189,K556='EXPENSE DATABASE'!$T$190,K556='EXPENSE DATABASE'!$T$191),O556,\"\")","v":""},{"$f":"VLOOKUP(I556,'EXPENSE DATABASE'!$B$41:$C$65,2,FALSE)","v":{"$error":"#N/A"}},100,{"$f":"VLOOKUP(J556,'EXPENSE DATABASE'!$B$69:$C$168,2,FALSE)","v":{"$error":"#N/A"}},101,{"$f":"VLOOKUP(K556,'EXPENSE DATABASE'!$B$6:$C$35,2,FALSE)","v":{"$error":"#N/A"}},31,{"$f":"VLOOKUP(L556,'EXPENSE DATABASE'!$B$173:$C$176,2,FALSE)","v":{"$error":"#N/A"}},100,0,0,{"$f":"IF(L556=T('EXPENSE DATABASE'!$E$173),O556,0)","v":0},{"$f":"IF(L556=T('EXPENSE DATABASE'!$E$174),O556,0)","v":0},{"$f":"IF(L556=T('EXPENSE DATABASE'!$E$175),O556,0)","v":0},0,543]
[{"$f":"IF(COUNTA(#REF!,#REF!,#REF!,#REF!,#REF!,#REF!,#REF!,#REF!,#REF!,#REF!,#REF!)>0,1,0)","v":1},{"$f":"IF((COUNTA(#REF!)=4),1,-1)*A557","v":-1},{"$nulls":12},{"v":0,"d":"$0.00"},{"v":0,"d":"$0.00"},{"v":0,"d":"$0.00"},0,{"$f":"IF(OR(K557='EXPENSE DATABASE'!$V$187,K557='EXPENSE DATABASE'!$V$188,K557='EXPENSE DATABASE'!$V$189,K557='EXPENSE DATABASE'!$V$190,K557='EXPENSE DATABASE'!$V$191,K557='EXPENSE DATABASE'!$V$192,K557='EXPENSE DATABASE'!$V$193,K557='EXPENSE DATABASE'!$V$194,K557='EXPENSE DATABASE'!$X$187,K557='EXPENSE DATABASE'!$X$188,K557='EXPENSE DATABASE'!$X$189,K557='EXPENSE DATABASE'!$X$190,K557='EXPENSE DATABASE'!$X$191,K557='EXPENSE DATABASE'!$X$192,K557='EXPENSE DATABASE'!$X$193,K557='EXPENSE DATABASE'!$X$194,K557='EXPENSE DATABASE'!$Z$187,K557='EXPENSE DATABASE'!$Z$188,K557='EXPENSE DATABASE'!$Z$189,K557='EXPENSE DATABASE'!$Z$190,K557='EXPENSE DATABASE'!$Z$191,K557='EXPENSE DATABASE'!$Z$192,K557='EXPENSE DATABASE'!$Z$193,K557='EXPENSE DATABASE'!$Z$194),O557,\"\")","v":""},{"$f":"IF(OR(K557='EXPENSE DATABASE'!$T$189,K557='EXPENSE DATABASE'!$T$190,K557='EXPENSE DATABASE'!$T$191),O557,\"\")","v":""},{"$f":"VLOOKUP(I557,'EXPENSE DATABASE'!$B$41:$C$65,2,FALSE)","v":{"$error":"#N/A"}},100,{"$f":"VLOOKUP(J557,'EXPENSE DATABASE'!$B$69:$C$168,2,FALSE)","v":{"$error":"#N/A"}},101,{"$f":"VLOOKUP(K557,'EXPENSE DATABASE'!$B$6:$C$35,2,FALSE)","v":{"$error":"#N/A"}},31,{"$f":"VLOOKUP(L557,'EXPENSE DATABASE'!$B$173:$C$176,2,FALSE)","v":{"$error":"#N/A"}},100,0,0,{"$f":"IF(L557=T('EXPENSE DATABASE'!$E$173),O557,0)","v":0},{"$f":"IF(L557=T('EXPENSE DATABASE'!$E$174),O557,0)","v":0},{"$f":"IF(L557=T('EXPENSE DATABASE'!$E$175),O557,0)","v":0},0,544]
[{"$f":"IF(COUNTA(#REF!,#REF!,#REF!,#REF!,#REF!,#REF!,#REF!,#REF!,#REF!,#REF!,#REF!)>0,1,0)","v":1},{"$f":"IF((COUNTA(#REF!)=4),1,-1)*A558","v":-1},{"$nulls":12},{"v":0,"d":"$0.00"},{"v":0,"d":"$0.00"},{"v":0,"d":"$0.00"},0,{"$f":"IF(OR(K558='EXPENSE DATABASE'!$V$187,K558='EXPENSE DATABASE'!$V$188,K558='EXPENSE DATABASE'!$V$189,K558='EXPENSE DATABASE'!$V$190,K558='EXPENSE DATABASE'!$V$191,K558='EXPENSE DATABASE'!$V$192,K558='EXPENSE DATABASE'!$V$193,K558='EXPENSE DATABASE'!$V$194,K558='EXPENSE DATABASE'!$X$187,K558='EXPENSE DATABASE'!$X$188,K558='EXPENSE DATABASE'!$X$189,K558='EXPENSE DATABASE'!$X$190,K558='EXPENSE DATABASE'!$X$191,K558='EXPENSE DATABASE'!$X$192,K558='EXPENSE DATABASE'!$X$193,K558='EXPENSE DATABASE'!$X$194,K558='EXPENSE DATABASE'!$Z$187,K558='EXPENSE DATABASE'!$Z$188,K558='EXPENSE DATABASE'!$Z$189,K558='EXPENSE DATABASE'!$Z$190,K558='EXPENSE DATABASE'!$Z$191,K558='EXPENSE DATABASE'!$Z$192,K558='EXPENSE DATABASE'!$Z$193,K558='EXPENSE DATABASE'!$Z$194),O558,\"\")","v":""},{"$f":"IF(OR(K558='EXPENSE DATABASE'!$T$189,K558='EXPENSE DATABASE'!$T$190,K558='EXPENSE DATABASE'!$T$191),O558,\"\")","v":""},{"$f":"VLOOKUP(I558,'EXPENSE DATABASE'!$B$41:$C$65,2,FALSE)","v":{"$error":"#N/A"}},100,{"$f":"VLOOKUP(J558,'EXPENSE DATABASE'!$B$69:$C$168,2,FALSE)","v":{"$error":"#N/A"}},101,{"$f":"VLOOKUP(K558,'EXPENSE DATABASE'!$B$6:$C$35,2,FALSE)","v":{"$error":"#N/A"}},31,{"$f":"VLOOKUP(L558,'EXPENSE DATABASE'!$B$173:$C$176,2,FALSE)","v":{"$error":"#N/A"}},100,0,0,{"$f":"IF(L558=T('EXPENSE DATABASE'!$E$173),O558,0)","v":0},{"$f":"IF(L558=T('EXPENSE DATABASE'!$E$174),O558,0)","v":0},{"$f":"IF(L558=T('EXPENSE DATABASE'!$E$175),O558,0)","v":0},0,545]
[{"$f":"IF(COUNTA(#REF!,#REF!,#REF!,#REF!,#REF!,#REF!,#REF!,#REF!,#REF!,#REF!,#REF!)>0,1,0)","v":1},{"$f":"IF((COUNTA(#REF!)=4),1,-1)*A559","v":-1},{"$nulls":12},{"v":0,"d":"$0.00"},{"v":0,"d":"$0.00"},{"v":0,"d":"$0.00"},0,{"$f":"IF(OR(K559='EXPENSE DATABASE'!$V$187,K559='EXPENSE DATABASE'!$V$188,K559='EXPENSE DATABASE'!$V$189,K559='EXPENSE DATABASE'!$V$190,K559='EXPENSE DATABASE'!$V$191,K559='EXPENSE DATABASE'!$V$192,K559='EXPENSE DATABASE'!$V$193,K559='EXPENSE DATABASE'!$V$194,K559='EXPENSE DATABASE'!$X$187,K559='EXPENSE DATABASE'!$X$188,K559='EXPENSE DATABASE'!$X$189,K559='EXPENSE DATABASE'!$X$190,K559='EXPENSE DATABASE'!$X$191,K559='EXPENSE DATABASE'!$X$192,K559='EXPENSE DATABASE'!$X$193,K559='EXPENSE DATABASE'!$X$194,K559='EXPENSE DATABASE'!$Z$187,K559='EXPENSE DATABASE'!$Z$188,K559='EXPENSE DATABASE'!$Z$189,K559='EXPENSE DATABASE'!$Z$190,K559='EXPENSE DATABASE'!$Z$191,K559='EXPENSE DATABASE'!$Z$192,K559='EXPENSE DATABASE'!$Z$193,K559='EXPENSE DATABASE'!$Z$194),O559,\"\")","v":""},{"$f":"IF(OR(K559='EXPENSE DATABASE'!$T$189,K559='EXPENSE DATABASE'!$T$190,K559='EXPENSE DATABASE'!$T$191),O559,\"\")","v":""},{"$f":"VLOOKUP(I559,'EXPENSE DATABASE'!$B$41:$C$65,2,FALSE)","v":{"$error":"#N/A"}},100,{"$f":"VLOOKUP(J559,'EXPENSE DATABASE'!$B$69:$C$168,2,FALSE)","v":{"$error":"#N/A"}},101,{"$f":"VLOOKUP(K559,'EXPENSE DATABASE'!$B$6:$C$35,2,FALSE)","v":{"$error":"#N/A"}},31,{"$f":"VLOOKUP(L559,'EXPENSE DATABASE'!$B$173:$C$176,2,FALSE)","v":{"$error":"#N/A"}},100,0,0,{"$f":"IF(L559=T('EXPENSE DATABASE'!$E$173),O559,0)","v":0},{"$f":"IF(L559=T('EXPENSE DATABASE'!$E$174),O559,0)","v":0},{"$f":"IF(L559=T('EXPENSE DATABASE'!$E$175),O559,0)","v":0},0,546]
[{"$f":"IF(COUNTA(#REF!,#REF!,#REF!,#REF!,#REF!,#REF!,#REF!,#REF!,#REF!,#REF!,#REF!)>0,1,0)","v":1},{"$f":"IF((COUNTA(#REF!)=4),1,-1)*A560","v":-1},{"$nulls":12},{"v":0,"d":"$0.00"},{"v":0,"d":"$0.00"},{"v":0,"d":"$0.00"},0,{"$f":"IF(OR(K560='EXPENSE DATABASE'!$V$187,K560='EXPENSE DATABASE'!$V$188,K560='EXPENSE DATABASE'!$V$189,K560='EXPENSE DATABASE'!$V$190,K560='EXPENSE DATABASE'!$V$191,K560='EXPENSE DATABASE'!$V$192,K560='EXPENSE DATABASE'!$V$193,K560='EXPENSE DATABASE'!$V$194,K560='EXPENSE DATABASE'!$X$187,K560='EXPENSE DATABASE'!$X$188,K560='EXPENSE DATABASE'!$X$189,K560='EXPENSE DATABASE'!$X$190,K560='EXPENSE DATABASE'!$X$191,K560='EXPENSE DATABASE'!$X$192,K560='EXPENSE DATABASE'!$X$193,K560='EXPENSE DATABASE'!$X$194,K560='EXPENSE DATABASE'!$Z$187,K560='EXPENSE DATABASE'!$Z$188,K560='EXPENSE DATABASE'!$Z$189,K560='EXPENSE DATABASE'!$Z$190,K560='EXPENSE DATABASE'!$Z$191,K560='EXPENSE DATABASE'!$Z$192,K560='EXPENSE DATABASE'!$Z$193,K560='EXPENSE DATABASE'!$Z$194),O560,\"\")","v":""},{"$f":"IF(OR(K560='EXPENSE DATABASE'!$T$189,K560='EXPENSE DATABASE'!$T$190,K560='EXPENSE DATABASE'!$T$191),O560,\"\")","v":""},{"$f":"VLOOKUP(I560,'EXPENSE DATABASE'!$B$41:$C$65,2,FALSE)","v":{"$error":"#N/A"}},100,{"$f":"VLOOKUP(J560,'EXPENSE DATABASE'!$B$69:$C$168,2,FALSE)","v":{"$error":"#N/A"}},101,{"$f":"VLOOKUP(K560,'EXPENSE DATABASE'!$B$6:$C$35,2,FALSE)","v":{"$error":"#N/A"}},31,{"$f":"VLOOKUP(L560,'EXPENSE DATABASE'!$B$173:$C$176,2,FALSE)","v":{"$error":"#N/A"}},100,0,0,{"$f":"IF(L560=T('EXPENSE DATABASE'!$E$173),O560,0)","v":0},{"$f":"IF(L560=T('EXPENSE DATABASE'!$E$174),O560,0)","v":0},{"$f":"IF(L560=T('EXPENSE DATABASE'!$E$175),O560,0)","v":0},0,547]
[{"$f":"IF(COUNTA(#REF!,#REF!,#REF!,#REF!,#REF!,#REF!,#REF!,#REF!,#REF!,#REF!,#REF!)>0,1,0)","v":1},{"$f":"IF((COUNTA(#REF!)=4),1,-1)*A561","v":-1},{"$nulls":12},{"v":0,"d":"$0.00"},{"v":0,"d":"$0.00"},{"v":0,"d":"$0.00"},0,{"$f":"IF(OR(K561='EXPENSE DATABASE'!$V$187,K561='EXPENSE DATABASE'!$V$188,K561='EXPENSE DATABASE'!$V$189,K561='EXPENSE DATABASE'!$V$190,K561='EXPENSE DATABASE'!$V$191,K561='EXPENSE DATABASE'!$V$192,K561='EXPENSE DATABASE'!$V$193,K561='EXPENSE DATABASE'!$V$194,K561='EXPENSE DATABASE'!$X$187,K561='EXPENSE DATABASE'!$X$188,K561='EXPENSE DATABASE'!$X$189,K561='EXPENSE DATABASE'!$X$190,K561='EXPENSE DATABASE'!$X$191,K561='EXPENSE DATABASE'!$X$192,K561='EXPENSE DATABASE'!$X$193,K561='EXPENSE DATABASE'!$X$194,K561='EXPENSE DATABASE'!$Z$187,K561='EXPENSE DATABASE'!$Z$188,K561='EXPENSE DATABASE'!$Z$189,K561='EXPENSE DATABASE'!$Z$190,K561='EXPENSE DATABASE'!$Z$191,K561='EXPENSE DATABASE'!$Z$192,K561='EXPENSE DATABASE'!$Z$193,K561='EXPENSE DATABASE'!$Z$194),O561,\"\")","v":""},{"$f":"IF(OR(K561='EXPENSE DATABASE'!$T$189,K561='EXPENSE DATABASE'!$T$190,K561='EXPENSE DATABASE'!$T$191),O561,\"\")","v":""},{"$f":"VLOOKUP(I561,'EXPENSE DATABASE'!$B$41:$C$65,2,FALSE)","v":{"$error":"#N/A"}},100,{"$f":"VLOOKUP(J561,'EXPENSE DATABASE'!$B$69:$C$168,2,FALSE)","v":{"$error":"#N/A"}},101,{"$f":"VLOOKUP(K561,'EXPENSE DATABASE'!$B$6:$C$35,2,FALSE)","v":{"$error":"#N/A"}},31,{"$f":"VLOOKUP(L561,'EXPENSE DATABASE'!$B$173:$C$176,2,FALSE)","v":{"$error":"#N/A"}},100,0,0,{"$f":"IF(L561=T('EXPENSE DATABASE'!$E$173),O561,0)","v":0},{"$f":"IF(L561=T('EXPENSE DATABASE'!$E$174),O561,0)","v":0},{"$f":"IF(L561=T('EXPENSE DATABASE'!$E$175),O561,0)","v":0},0,548]
[{"$f":"IF(COUNTA(#REF!,#REF!,#REF!,#REF!,#REF!,#REF!,#REF!,#REF!,#REF!,#REF!,#REF!)>0,1,0)","v":1},{"$f":"IF((COUNTA(#REF!)=4),1,-1)*A562","v":-1},{"$nulls":12},{"v":0,"d":"$0.00"},{"v":0,"d":"$0.00"},{"v":0,"d":"$0.00"},0,{"$f":"IF(OR(K562='EXPENSE DATABASE'!$V$187,K562='EXPENSE DATABASE'!$V$188,K562='EXPENSE DATABASE'!$V$189,K562='EXPENSE DATABASE'!$V$190,K562='EXPENSE DATABASE'!$V$191,K562='EXPENSE DATABASE'!$V$192,K562='EXPENSE DATABASE'!$V$193,K562='EXPENSE DATABASE'!$V$194,K562='EXPENSE DATABASE'!$X$187,K562='EXPENSE DATABASE'!$X$188,K562='EXPENSE DATABASE'!$X$189,K562='EXPENSE DATABASE'!$X$190,K562='EXPENSE DATABASE'!$X$191,K562='EXPENSE DATABASE'!$X$192,K562='EXPENSE DATABASE'!$X$193,K562='EXPENSE DATABASE'!$X$194,K562='EXPENSE DATABASE'!$Z$187,K562='EXPENSE DATABASE'!$Z$188,K562='EXPENSE DATABASE'!$Z$189,K562='EXPENSE DATABASE'!$Z$190,K562='EXPENSE DATABASE'!$Z$191,K562='EXPENSE DATABASE'!$Z$192,K562='EXPENSE DATABASE'!$Z$193,K562='EXPENSE DATABASE'!$Z$194),O562,\"\")","v":""},{"$f":"IF(OR(K562='EXPENSE DATABASE'!$T$189,K562='EXPENSE DATABASE'!$T$190,K562='EXPENSE DATABASE'!$T$191),O562,\"\")","v":""},{"$f":"VLOOKUP(I562,'EXPENSE DATABASE'!$B$41:$C$65,2,FALSE)","v":{"$error":"#N/A"}},100,{"$f":"VLOOKUP(J562,'EXPENSE DATABASE'!$B$69:$C$168,2,FALSE)","v":{"$error":"#N/A"}},101,{"$f":"VLOOKUP(K562,'EXPENSE DATABASE'!$B$6:$C$35,2,FALSE)","v":{"$error":"#N/A"}},31,{"$f":"VLOOKUP(L562,'EXPENSE DATABASE'!$B$173:$C$176,2,FALSE)","v":{"$error":"#N/A"}},100,0,0,{"$f":"IF(L562=T('EXPENSE DATABASE'!$E$173),O562,0)","v":0},{"$f":"IF(L562=T('EXPENSE DATABASE'!$E$174),O562,0)","v":0},{"$f":"IF(L562=T('EXPENSE DATABASE'!$E$175),O562,0)","v":0},0,549]
[{"$f":"IF(COUNTA(#REF!,#REF!,#REF!,#REF!,#REF!,#REF!,#REF!,#REF!,#REF!,#REF!,#REF!)>0,1,0)","v":1},{"$f":"IF((COUNTA(#REF!)=4),1,-1)*A563","v":-1},{"$nulls":12},{"v":0,"d":"$0.00"},{"v":0,"d":"$0.00"},{"v":0,"d":"$0.00"},0,{"$f":"IF(OR(K563='EXPENSE DATABASE'!$V$187,K563='EXPENSE DATABASE'!$V$188,K563='EXPENSE DATABASE'!$V$189,K563='EXPENSE DATABASE'!$V$190,K563='EXPENSE DATABASE'!$V$191,K563='EXPENSE DATABASE'!$V$192,K563='EXPENSE DATABASE'!$V$193,K563='EXPENSE DATABASE'!$V$194,K563='EXPENSE DATABASE'!$X$187,K563='EXPENSE DATABASE'!$X$188,K563='EXPENSE DATABASE'!$X$189,K563='EXPENSE DATABASE'!$X$190,K563='EXPENSE DATABASE'!$X$191,K563='EXPENSE DATABASE'!$X$192,K563='EXPENSE DATABASE'!$X$193,K563='EXPENSE DATABASE'!$X$194,K563='EXPENSE DATABASE'!$Z$187,K563='EXPENSE DATABASE'!$Z$188,K563='EXPENSE DATABASE'!$Z$189,K563='EXPENSE DATABASE'!$Z$190,K563='EXPENSE DATABASE'!$Z$191,K563='EXPENSE DATABASE'!$Z$192,K563='EXPENSE DATABASE'!$Z$193,K563='EXPENSE DATABASE'!$Z$194),O563,\"\")","v":""},{"$f":"IF(OR(K563='EXPENSE DATABASE'!$T$189,K563='EXPENSE DATABASE'!$T$190,K563='EXPENSE DATABASE'!$T$191),O563,\"\")","v":""},{"$f":"VLOOKUP(I563,'EXPENSE DATABASE'!$B$41:$C$65,2,FALSE)","v":{"$error":"#N/A"}},100,{"$f":"VLOOKUP(J563,'EXPENSE DATABASE'!$B$69:$C$168,2,FALSE)","v":{"$error":"#N/A"}},101,{"$f":"VLOOKUP(K563,'EXPENSE DATABASE'!$B$6:$C$35,2,FALSE)","v":{"$error":"#N/A"}},31,{"$f":"VLOOKUP(L563,'EXPENSE DATABASE'!$B$173:$C$176,2,FALSE)","v":{"$error":"#N/A"}},100,0,0,{"$f":"IF(L563=T('EXPENSE DATABASE'!$E$173),O563,0)","v":0},{"$f":"IF(L563=T('EXPENSE DATABASE'!$E$174),O563,0)","v":0},{"$f":"IF(L563=T('EXPENSE DATABASE'!$E$175),O563,0)","v":0},0,550]
[{"$f":"IF(COUNTA(#REF!,#REF!,#REF!,#REF!,#REF!,#REF!,#REF!,#REF!,#REF!,#REF!,#REF!)>0,1,0)","v":1},{"$f":"IF((COUNTA(#REF!)=4),1,-1)*A564","v":-1},{"$nulls":12},{"v":0,"d":"$0.00"},{"v":0,"d":"$0.00"},{"v":0,"d":"$0.00"},0,{"$f":"IF(OR(K564='EXPENSE DATABASE'!$V$187,K564='EXPENSE DATABASE'!$V$188,K564='EXPENSE DATABASE'!$V$189,K564='EXPENSE DATABASE'!$V$190,K564='EXPENSE DATABASE'!$V$191,K564='EXPENSE DATABASE'!$V$192,K564='EXPENSE DATABASE'!$V$193,K564='EXPENSE DATABASE'!$V$194,K564='EXPENSE DATABASE'!$X$187,K564='EXPENSE DATABASE'!$X$188,K564='EXPENSE DATABASE'!$X$189,K564='EXPENSE DATABASE'!$X$190,K564='EXPENSE DATABASE'!$X$191,K564='EXPENSE DATABASE'!$X$192,K564='EXPENSE DATABASE'!$X$193,K564='EXPENSE DATABASE'!$X$194,K564='EXPENSE DATABASE'!$Z$187,K564='EXPENSE DATABASE'!$Z$188,K564='EXPENSE DATABASE'!$Z$189,K564='EXPENSE DATABASE'!$Z$190,K564='EXPENSE DATABASE'!$Z$191,K564='EXPENSE DATABASE'!$Z$192,K564='EXPENSE DATABASE'!$Z$193,K564='EXPENSE DATABASE'!$Z$194),O564,\"\")","v":""},{"$f":"IF(OR(K564='EXPENSE DATABASE'!$T$189,K564='EXPENSE DATABASE'!$T$190,K564='EXPENSE DATABASE'!$T$191),O564,\"\")","v":""},{"$f":"VLOOKUP(I564,'EXPENSE DATABASE'!$B$41:$C$65,2,FALSE)","v":{"$error":"#N/A"}},100,{"$f":"VLOOKUP(J564,'EXPENSE DATABASE'!$B$69:$C$168,2,FALSE)","v":{"$error":"#N/A"}},101,{"$f":"VLOOKUP(K564,'EXPENSE DATABASE'!$B$6:$C$35,2,FALSE)","v":{"$error":"#N/A"}},31,{"$f":"VLOOKUP(L564,'EXPENSE DATABASE'!$B$173:$C$176,2,FALSE)","v":{"$error":"#N/A"}},100,0,0,{"$f":"IF(L564=T('EXPENSE DATABASE'!$E$173),O564,0)","v":0},{"$f":"IF(L564=T('EXPENSE DATABASE'!$E$174),O564,0)","v":0},{"$f":"IF(L564=T('EXPENSE DATABASE'!$E$175),O564,0)","v":0},0,551]
[{"$f":"IF(COUNTA(#REF!,#REF!,#REF!,#REF!,#REF!,#REF!,#REF!,#REF!,#REF!,#REF!,#REF!)>0,1,0)","v":1},{"$f":"IF((COUNTA(#REF!)=4),1,-1)*A565","v":-1},{"$nulls":12},{"v":0,"d":"$0.00"},{"v":0,"d":"$0.00"},{"v":0,"d":"$0.00"},0,{"$f":"IF(OR(K565='EXPENSE DATABASE'!$V$187,K565='EXPENSE DATABASE'!$V$188,K565='EXPENSE DATABASE'!$V$189,K565='EXPENSE DATABASE'!$V$190,K565='EXPENSE DATABASE'!$V$191,K565='EXPENSE DATABASE'!$V$192,K565='EXPENSE DATABASE'!$V$193,K565='EXPENSE DATABASE'!$V$194,K565='EXPENSE DATABASE'!$X$187,K565='EXPENSE DATABASE'!$X$188,K565='EXPENSE DATABASE'!$X$189,K565='EXPENSE DATABASE'!$X$190,K565='EXPENSE DATABASE'!$X$191,K565='EXPENSE DATABASE'!$X$192,K565='EXPENSE DATABASE'!$X$193,K565='EXPENSE DATABASE'!$X$194,K565='EXPENSE DATABASE'!$Z$187,K565='EXPENSE DATABASE'!$Z$188,K565='EXPENSE DATABASE'!$Z$189,K565='EXPENSE DATABASE'!$Z$190,K565='EXPENSE DATABASE'!$Z$191,K565='EXPENSE DATABASE'!$Z$192,K565='EXPENSE DATABASE'!$Z$193,K565='EXPENSE DATABASE'!$Z$194),O565,\"\")","v":""},{"$f":"IF(OR(K565='EXPENSE DATABASE'!$T$189,K565='EXPENSE DATABASE'!$T$190,K565='EXPENSE DATABASE'!$T$191),O565,\"\")","v":""},{"$f":"VLOOKUP(I565,'EXPENSE DATABASE'!$B$41:$C$65,2,FALSE)","v":{"$error":"#N/A"}},100,{"$f":"VLOOKUP(J565,'EXPENSE DATABASE'!$B$69:$C$168,2,FALSE)","v":{"$error":"#N/A"}},101,{"$f":"VLOOKUP(K565,'EXPENSE DATABASE'!$B$6:$C$35,2,FALSE)","v":{"$error":"#N/A"}},31,{"$f":"VLOOKUP(L565,'EXPENSE DATABASE'!$B$173:$C$176,2,FALSE)","v":{"$error":"#N/A"}},100,0,0,{"$f":"IF(L565=T('EXPENSE DATABASE'!$E$173),O565,0)","v":0},{"$f":"IF(L565=T('EXPENSE DATABASE'!$E$174),O565,0)","v":0},{"$f":"IF(L565=T('EXPENSE DATABASE'!$E$175),O565,0)","v":0},0,552]
[{"$f":"IF(COUNTA(#REF!,#REF!,#REF!,#REF!,#REF!,#REF!,#REF!,#REF!,#REF!,#REF!,#REF!)>0,1,0)","v":1},{"$f":"IF((COUNTA(#REF!)=4),1,-1)*A566","v":-1},{"$nulls":12},{"v":0,"d":"$0.00"},{"v":0,"d":"$0.00"},{"v":0,"d":"$0.00"},0,{"$f":"IF(OR(K566='EXPENSE DATABASE'!$V$187,K566='EXPENSE DATABASE'!$V$188,K566='EXPENSE DATABASE'!$V$189,K566='EXPENSE DATABASE'!$V$190,K566='EXPENSE DATABASE'!$V$191,K566='EXPENSE DATABASE'!$V$192,K566='EXPENSE DATABASE'!$V$193,K566='EXPENSE DATABASE'!$V$194,K566='EXPENSE DATABASE'!$X$187,K566='EXPENSE DATABASE'!$X$188,K566='EXPENSE DATABASE'!$X$189,K566='EXPENSE DATABASE'!$X$190,K566='EXPENSE DATABASE'!$X$191,K566='EXPENSE DATABASE'!$X$192,K566='EXPENSE DATABASE'!$X$193,K566='EXPENSE DATABASE'!$X$194,K566='EXPENSE DATABASE'!$Z$187,K566='EXPENSE DATABASE'!$Z$188,K566='EXPENSE DATABASE'!$Z$189,K566='EXPENSE DATABASE'!$Z$190,K566='EXPENSE DATABASE'!$Z$191,K566='EXPENSE DATABASE'!$Z$192,K566='EXPENSE DATABASE'!$Z$193,K566='EXPENSE DATABASE'!$Z$194),O566,\"\")","v":""},{"$f":"IF(OR(K566='EXPENSE DATABASE'!$T$189,K566='EXPENSE DATABASE'!$T$190,K566='EXPENSE DATABASE'!$T$191),O566,\"\")","v":""},{"$f":"VLOOKUP(I566,'EXPENSE DATABASE'!$B$41:$C$65,2,FALSE)","v":{"$error":"#N/A"}},100,{"$f":"VLOOKUP(J566,'EXPENSE DATABASE'!$B$69:$C$168,2,FALSE)","v":{"$error":"#N/A"}},101,{"$f":"VLOOKUP(K566,'EXPENSE DATABASE'!$B$6:$C$35,2,FALSE)","v":{"$error":"#N/A"}},31,{"$f":"VLOOKUP(L566,'EXPENSE DATABASE'!$B$173:$C$176,2,FALSE)","v":{"$error":"#N/A"}},100,0,0,{"$f":"IF(L566=T('EXPENSE DATABASE'!$E$173),O566,0)","v":0},{"$f":"IF(L566=T('EXPENSE DATABASE'!$E$174),O566,0)","v":0},{"$f":"IF(L566=T('EXPENSE DATABASE'!$E$175),O566,0)","v":0},0,553]
[{"$f":"IF(COUNTA(#REF!,#REF!,#REF!,#REF!,#REF!,#REF!,#REF!,#REF!,#REF!,#REF!,#REF!)>0,1,0)","v":1},{"$f":"IF((COUNTA(#REF!)=4),1,-1)*A567","v":-1},{"$nulls":12},{"v":0,"d":"$0.00"},{"v":0,"d":"$0.00"},{"v":0,"d":"$0.00"},0,{"$f":"IF(OR(K567='EXPENSE DATABASE'!$V$187,K567='EXPENSE DATABASE'!$V$188,K567='EXPENSE DATABASE'!$V$189,K567='EXPENSE DATABASE'!$V$190,K567='EXPENSE DATABASE'!$V$191,K567='EXPENSE DATABASE'!$V$192,K567='EXPENSE DATABASE'!$V$193,K567='EXPENSE DATABASE'!$V$194,K567='EXPENSE DATABASE'!$X$187,K567='EXPENSE DATABASE'!$X$188,K567='EXPENSE DATABASE'!$X$189,K567='EXPENSE DATABASE'!$X$190,K567='EXPENSE DATABASE'!$X$191,K567='EXPENSE DATABASE'!$X$192,K567='EXPENSE DATABASE'!$X$193,K567='EXPENSE DATABASE'!$X$194,K567='EXPENSE DATABASE'!$Z$187,K567='EXPENSE DATABASE'!$Z$188,K567='EXPENSE DATABASE'!$Z$189,K567='EXPENSE DATABASE'!$Z$190,K567='EXPENSE DATABASE'!$Z$191,K567='EXPENSE DATABASE'!$Z$192,K567='EXPENSE DATABASE'!$Z$193,K567='EXPENSE DATABASE'!$Z$194),O567,\"\")","v":""},{"$f":"IF(OR(K567='EXPENSE DATABASE'!$T$189,K567='EXPENSE DATABASE'!$T$190,K567='EXPENSE DATABASE'!$T$191),O567,\"\")","v":""},{"$f":"VLOOKUP(I567,'EXPENSE DATABASE'!$B$41:$C$65,2,FALSE)","v":{"$error":"#N/A"}},100,{"$f":"VLOOKUP(J567,'EXPENSE DATABASE'!$B$69:$C$168,2,FALSE)","v":{"$error":"#N/A"}},101,{"$f":"VLOOKUP(K567,'EXPENSE DATABASE'!$B$6:$C$35,2,FALSE)","v":{"$error":"#N/A"}},31,{"$f":"VLOOKUP(L567,'EXPENSE DATABASE'!$B$173:$C$176,2,FALSE)","v":{"$error":"#N/A"}},100,0,0,{"$f":"IF(L567=T('EXPENSE DATABASE'!$E$173),O567,0)","v":0},{"$f":"IF(L567=T('EXPENSE DATABASE'!$E$174),O567,0)","v":0},{"$f":"IF(L567=T('EXPENSE DATABASE'!$E$175),O567,0)","v":0},0,554]
[{"$f":"IF(COUNTA(#REF!,#REF!,#REF!,#REF!,#REF!,#REF!,#REF!,#REF!,#REF!,#REF!,#REF!)>0,1,0)","v":1},{"$f":"IF((COUNTA(#REF!)=4),1,-1)*A568","v":-1},{"$nulls":12},{"v":0,"d":"$0.00"},{"v":0,"d":"$0.00"},{"v":0,"d":"$0.00"},0,{"$f":"IF(OR(K568='EXPENSE DATABASE'!$V$187,K568='EXPENSE DATABASE'!$V$188,K568='EXPENSE DATABASE'!$V$189,K568='EXPENSE DATABASE'!$V$190,K568='EXPENSE DATABASE'!$V$191,K568='EXPENSE DATABASE'!$V$192,K568='EXPENSE DATABASE'!$V$193,K568='EXPENSE DATABASE'!$V$194,K568='EXPENSE DATABASE'!$X$187,K568='EXPENSE DATABASE'!$X$188,K568='EXPENSE DATABASE'!$X$189,K568='EXPENSE DATABASE'!$X$190,K568='EXPENSE DATABASE'!$X$191,K568='EXPENSE DATABASE'!$X$192,K568='EXPENSE DATABASE'!$X$193,K568='EXPENSE DATABASE'!$X$194,K568='EXPENSE DATABASE'!$Z$187,K568='EXPENSE DATABASE'!$Z$188,K568='EXPENSE DATABASE'!$Z$189,K568='EXPENSE DATABASE'!$Z$190,K568='EXPENSE DATABASE'!$Z$191,K568='EXPENSE DATABASE'!$Z$192,K568='EXPENSE DATABASE'!$Z$193,K568='EXPENSE DATABASE'!$Z$194),O568,\"\")","v":""},{"$f":"IF(OR(K568='EXPENSE DATABASE'!$T$189,K568='EXPENSE DATABASE'!$T$190,K568='EXPENSE DATABASE'!$T$191),O568,\"\")","v":""},{"$f":"VLOOKUP(I568,'EXPENSE DATABASE'!$B$41:$C$65,2,FALSE)","v":{"$error":"#N/A"}},100,{"$f":"VLOOKUP(J568,'EXPENSE DATABASE'!$B$69:$C$168,2,FALSE)","v":{"$error":"#N/A"}},101,{"$f":"VLOOKUP(K568,'EXPENSE DATABASE'!$B$6:$C$35,2,FALSE)","v":{"$error":"#N/A"}},31,{"$f":"VLOOKUP(L568,'EXPENSE DATABASE'!$B$173:$C$176,2,FALSE)","v":{"$error":"#N/A"}},100,0,0,{"$f":"IF(L568=T('EXPENSE DATABASE'!$E$173),O568,0)","v":0},{"$f":"IF(L568=T('EXPENSE DATABASE'!$E$174),O568,0)","v":0},{"$f":"IF(L568=T('EXPENSE DATABASE'!$E$175),O568,0)","v":0},0,555]
[{"$f":"IF(COUNTA(#REF!,#REF!,#REF!,#REF!,#REF!,#REF!,#REF!,#REF!,#REF!,#REF!,#REF!)>0,1,0)","v":1},{"$f":"IF((COUNTA(#REF!)=4),1,-1)*A569","v":-1},{"$nulls":12},{"v":0,"d":"$0.00"},{"v":0,"d":"$0.00"},{"v":0,"d":"$0.00"},0,{"$f":"IF(OR(K569='EXPENSE DATABASE'!$V$187,K569='EXPENSE DATABASE'!$V$188,K569='EXPENSE DATABASE'!$V$189,K569='EXPENSE DATABASE'!$V$190,K569='EXPENSE DATABASE'!$V$191,K569='EXPENSE DATABASE'!$V$192,K569='EXPENSE DATABASE'!$V$193,K569='EXPENSE DATABASE'!$V$194,K569='EXPENSE DATABASE'!$X$187,K569='EXPENSE DATABASE'!$X$188,K569='EXPENSE DATABASE'!$X$189,K569='EXPENSE DATABASE'!$X$190,K569='EXPENSE DATABASE'!$X$191,K569='EXPENSE DATABASE'!$X$192,K569='EXPENSE DATABASE'!$X$193,K569='EXPENSE DATABASE'!$X$194,K569='EXPENSE DATABASE'!$Z$187,K569='EXPENSE DATABASE'!$Z$188,K569='EXPENSE DATABASE'!$Z$189,K569='EXPENSE DATABASE'!$Z$190,K569='EXPENSE DATABASE'!$Z$191,K569='EXPENSE DATABASE'!$Z$192,K569='EXPENSE DATABASE'!$Z$193,K569='EXPENSE DATABASE'!$Z$194),O569,\"\")","v":""},{"$f":"IF(OR(K569='EXPENSE DATABASE'!$T$189,K569='EXPENSE DATABASE'!$T$190,K569='EXPENSE DATABASE'!$T$191),O569,\"\")","v":""},{"$f":"VLOOKUP(I569,'EXPENSE DATABASE'!$B$41:$C$65,2,FALSE)","v":{"$error":"#N/A"}},100,{"$f":"VLOOKUP(J569,'EXPENSE DATABASE'!$B$69:$C$168,2,FALSE)","v":{"$error":"#N/A"}},101,{"$f":"VLOOKUP(K569,'EXPENSE DATABASE'!$B$6:$C$35,2,FALSE)","v":{"$error":"#N/A"}},31,{"$f":"VLOOKUP(L569,'EXPENSE DATABASE'!$B$173:$C$176,2,FALSE)","v":{"$error":"#N/A"}},100,0,0,{"$f":"IF(L569=T('EXPENSE DATABASE'!$E$173),O569,0)","v":0},{"$f":"IF(L569=T('EXPENSE DATABASE'!$E$174),O569,0)","v":0},{"$f":"IF(L569=T('EXPENSE DATABASE'!$E$175),O569,0)","v":0},0,556]
[{"$f":"IF(COUNTA(#REF!,#REF!,#REF!,#REF!,#REF!,#REF!,#REF!,#REF!,#REF!,#REF!,#REF!)>0,1,0)","v":1},{"$f":"IF((COUNTA(#REF!)=4),1,-1)*A570","v":-1},{"$nulls":12},{"v":0,"d":"$0.00"},{"v":0,"d":"$0.00"},{"v":0,"d":"$0.00"},0,{"$f":"IF(OR(K570='EXPENSE DATABASE'!$V$187,K570='EXPENSE DATABASE'!$V$188,K570='EXPENSE DATABASE'!$V$189,K570='EXPENSE DATABASE'!$V$190,K570='EXPENSE DATABASE'!$V$191,K570='EXPENSE DATABASE'!$V$192,K570='EXPENSE DATABASE'!$V$193,K570='EXPENSE DATABASE'!$V$194,K570='EXPENSE DATABASE'!$X$187,K570='EXPENSE DATABASE'!$X$188,K570='EXPENSE DATABASE'!$X$189,K570='EXPENSE DATABASE'!$X$190,K570='EXPENSE DATABASE'!$X$191,K570='EXPENSE DATABASE'!$X$192,K570='EXPENSE DATABASE'!$X$193,K570='EXPENSE DATABASE'!$X$194,K570='EXPENSE DATABASE'!$Z$187,K570='EXPENSE DATABASE'!$Z$188,K570='EXPENSE DATABASE'!$Z$189,K570='EXPENSE DATABASE'!$Z$190,K570='EXPENSE DATABASE'!$Z$191,K570='EXPENSE DATABASE'!$Z$192,K570='EXPENSE DATABASE'!$Z$193,K570='EXPENSE DATABASE'!$Z$194),O570,\"\")","v":""},{"$f":"IF(OR(K570='EXPENSE DATABASE'!$T$189,K570='EXPENSE DATABASE'!$T$190,K570='EXPENSE DATABASE'!$T$191),O570,\"\")","v":""},{"$f":"VLOOKUP(I570,'EXPENSE DATABASE'!$B$41:$C$65,2,FALSE)","v":{"$error":"#N/A"}},100,{"$f":"VLOOKUP(J570,'EXPENSE DATABASE'!$B$69:$C$168,2,FALSE)","v":{"$error":"#N/A"}},101,{"$f":"VLOOKUP(K570,'EXPENSE DATABASE'!$B$6:$C$35,2,FALSE)","v":{"$error":"#N/A"}},31,{"$f":"VLOOKUP(L570,'EXPENSE DATABASE'!$B$173:$C$176,2,FALSE)","v":{"$error":"#N/A"}},100,0,0,{"$f":"IF(L570=T('EXPENSE DATABASE'!$E$173),O570,0)","v":0},{"$f":"IF(L570=T('EXPENSE DATABASE'!$E$174),O570,0)","v":0},{"$f":"IF(L570=T('EXPENSE DATABASE'!$E$175),O570,0)","v":0},0,557]
[{"$f":"IF(COUNTA(#REF!,#REF!,#REF!,#REF!,#REF!,#REF!,#REF!,#REF!,#REF!,#REF!,#REF!)>0,1,0)","v":1},{"$f":"IF((COUNTA(#REF!)=4),1,-1)*A571","v":-1},{"$nulls":12},{"v":0,"d":"$0.00"},{"v":0,"d":"$0.00"},{"v":0,"d":"$0.00"},0,{"$f":"IF(OR(K571='EXPENSE DATABASE'!$V$187,K571='EXPENSE DATABASE'!$V$188,K571='EXPENSE DATABASE'!$V$189,K571='EXPENSE DATABASE'!$V$190,K571='EXPENSE DATABASE'!$V$191,K571='EXPENSE DATABASE'!$V$192,K571='EXPENSE DATABASE'!$V$193,K571='EXPENSE DATABASE'!$V$194,K571='EXPENSE DATABASE'!$X$187,K571='EXPENSE DATABASE'!$X$188,K571='EXPENSE DATABASE'!$X$189,K571='EXPENSE DATABASE'!$X$190,K571='EXPENSE DATABASE'!$X$191,K571='EXPENSE DATABASE'!$X$192,K571='EXPENSE DATABASE'!$X$193,K571='EXPENSE DATABASE'!$X$194,K571='EXPENSE DATABASE'!$Z$187,K571='EXPENSE DATABASE'!$Z$188,K571='EXPENSE DATABASE'!$Z$189,K571='EXPENSE DATABASE'!$Z$190,K571='EXPENSE DATABASE'!$Z$191,K571='EXPENSE DATABASE'!$Z$192,K571='EXPENSE DATABASE'!$Z$193,K571='EXPENSE DATABASE'!$Z$194),O571,\"\")","v":""},{"$f":"IF(OR(K571='EXPENSE DATABASE'!$T$189,K571='EXPENSE DATABASE'!$T$190,K571='EXPENSE DATABASE'!$T$191),O571,\"\")","v":""},{"$f":"VLOOKUP(I571,'EXPENSE DATABASE'!$B$41:$C$65,2,FALSE)","v":{"$error":"#N/A"}},100,{"$f":"VLOOKUP(J571,'EXPENSE DATABASE'!$B$69:$C$168,2,FALSE)","v":{"$error":"#N/A"}},101,{"$f":"VLOOKUP(K571,'EXPENSE DATABASE'!$B$6:$C$35,2,FALSE)","v":{"$error":"#N/A"}},31,{"$f":"VLOOKUP(L571,'EXPENSE DATABASE'!$B$173:$C$176,2,FALSE)","v":{"$error":"#N/A"}},100,0,0,{"$f":"IF(L571=T('EXPENSE DATABASE'!$E$173),O571,0)","v":0},{"$f":"IF(L571=T('EXPENSE DATABASE'!$E$174),O571,0)","v":0},{"$f":"IF(L571=T('EXPENSE DATABASE'!$E$175),O571,0)","v":0},0,558]
[{"$f":"IF(COUNTA(#REF!,#REF!,#REF!,#REF!,#REF!,#REF!,#REF!,#REF!,#REF!,#REF!,#REF!)>0,1,0)","v":1},{"$f":"IF((COUNTA(#REF!)=4),1,-1)*A572","v":-1},{"$nulls":12},{"v":0,"d":"$0.00"},{"v":0,"d":"$0.00"},{"v":0,"d":"$0.00"},0,{"$f":"IF(OR(K572='EXPENSE DATABASE'!$V$187,K572='EXPENSE DATABASE'!$V$188,K572='EXPENSE DATABASE'!$V$189,K572='EXPENSE DATABASE'!$V$190,K572='EXPENSE DATABASE'!$V$191,K572='EXPENSE DATABASE'!$V$192,K572='EXPENSE DATABASE'!$V$193,K572='EXPENSE DATABASE'!$V$194,K572='EXPENSE DATABASE'!$X$187,K572='EXPENSE DATABASE'!$X$188,K572='EXPENSE DATABASE'!$X$189,K572='EXPENSE DATABASE'!$X$190,K572='EXPENSE DATABASE'!$X$191,K572='EXPENSE DATABASE'!$X$192,K572='EXPENSE DATABASE'!$X$193,K572='EXPENSE DATABASE'!$X$194,K572='EXPENSE DATABASE'!$Z$187,K572='EXPENSE DATABASE'!$Z$188,K572='EXPENSE DATABASE'!$Z$189,K572='EXPENSE DATABASE'!$Z$190,K572='EXPENSE DATABASE'!$Z$191,K572='EXPENSE DATABASE'!$Z$192,K572='EXPENSE DATABASE'!$Z$193,K572='EXPENSE DATABASE'!$Z$194),O572,\"\")","v":""},{"$f":"IF(OR(K572='EXPENSE DATABASE'!$T$189,K572='EXPENSE DATABASE'!$T$190,K572='EXPENSE DATABASE'!$T$191),O572,\"\")","v":""},{"$f":"VLOOKUP(I572,'EXPENSE DATABASE'!$B$41:$C$65,2,FALSE)","v":{"$error":"#N/A"}},100,{"$f":"VLOOKUP(J572,'EXPENSE DATABASE'!$B$69:$C$168,2,FALSE)","v":{"$error":"#N/A"}},101,{"$f":"VLOOKUP(K572,'EXPENSE DATABASE'!$B$6:$C$35,2,FALSE)","v":{"$error":"#N/A"}},31,{"$f":"VLOOKUP(L572,'EXPENSE DATABASE'!$B$173:$C$176,2,FALSE)","v":{"$error":"#N/A"}},100,0,0,{"$f":"IF(L572=T('EXPENSE DATABASE'!$E$173),O572,0)","v":0},{"$f":"IF(L572=T('EXPENSE DATABASE'!$E$174),O572,0)","v":0},{"$f":"IF(L572=T('EXPENSE DATABASE'!$E$175),O572,0)","v":0},0,559]
[{"$f":"IF(COUNTA(#REF!,#REF!,#REF!,#REF!,#REF!,#REF!,#REF!,#REF!,#REF!,#REF!,#REF!)>0,1,0)","v":1},{"$f":"IF((COUNTA(#REF!)=4),1,-1)*A573","v":-1},{"$nulls":12},{"v":0,"d":"$0.00"},{"v":0,"d":"$0.00"},{"v":0,"d":"$0.00"},0,{"$f":"IF(OR(K573='EXPENSE DATABASE'!$V$187,K573='EXPENSE DATABASE'!$V$188,K573='EXPENSE DATABASE'!$V$189,K573='EXPENSE DATABASE'!$V$190,K573='EXPENSE DATABASE'!$V$191,K573='EXPENSE DATABASE'!$V$192,K573='EXPENSE DATABASE'!$V$193,K573='EXPENSE DATABASE'!$V$194,K573='EXPENSE DATABASE'!$X$187,K573='EXPENSE DATABASE'!$X$188,K573='EXPENSE DATABASE'!$X$189,K573='EXPENSE DATABASE'!$X$190,K573='EXPENSE DATABASE'!$X$191,K573='EXPENSE DATABASE'!$X$192,K573='EXPENSE DATABASE'!$X$193,K573='EXPENSE DATABASE'!$X$194,K573='EXPENSE DATABASE'!$Z$187,K573='EXPENSE DATABASE'!$Z$188,K573='EXPENSE DATABASE'!$Z$189,K573='EXPENSE DATABASE'!$Z$190,K573='EXPENSE DATABASE'!$Z$191,K573='EXPENSE DATABASE'!$Z$192,K573='EXPENSE DATABASE'!$Z$193,K573='EXPENSE DATABASE'!$Z$194),O573,\"\")","v":""},{"$f":"IF(OR(K573='EXPENSE DATABASE'!$T$189,K573='EXPENSE DATABASE'!$T$190,K573='EXPENSE DATABASE'!$T$191),O573,\"\")","v":""},{"$f":"VLOOKUP(I573,'EXPENSE DATABASE'!$B$41:$C$65,2,FALSE)","v":{"$error":"#N/A"}},100,{"$f":"VLOOKUP(J573,'EXPENSE DATABASE'!$B$69:$C$168,2,FALSE)","v":{"$error":"#N/A"}},101,{"$f":"VLOOKUP(K573,'EXPENSE DATABASE'!$B$6:$C$35,2,FALSE)","v":{"$error":"#N/A"}},31,{"$f":"VLOOKUP(L573,'EXPENSE DATABASE'!$B$173:$C$176,2,FALSE)","v":{"$error":"#N/A"}},100,0,0,{"$f":"IF(L573=T('EXPENSE DATABASE'!$E$173),O573,0)","v":0},{"$f":"IF(L573=T('EXPENSE DATABASE'!$E$174),O573,0)","v":0},{"$f":"IF(L573=T('EXPENSE DATABASE'!$E$175),O573,0)","v":0},0,560]
[{"$f":"IF(COUNTA(#REF!,#REF!,#REF!,#REF!,#REF!,#REF!,#REF!,#REF!,#REF!,#REF!,#REF!)>0,1,0)","v":1},{"$f":"IF((COUNTA(#REF!)=4),1,-1)*A574","v":-1},{"$nulls":12},{"v":0,"d":"$0.00"},{"v":0,"d":"$0.00"},{"v":0,"d":"$0.00"},0,{"$f":"IF(OR(K574='EXPENSE DATABASE'!$V$187,K574='EXPENSE DATABASE'!$V$188,K574='EXPENSE DATABASE'!$V$189,K574='EXPENSE DATABASE'!$V$190,K574='EXPENSE DATABASE'!$V$191,K574='EXPENSE DATABASE'!$V$192,K574='EXPENSE DATABASE'!$V$193,K574='EXPENSE DATABASE'!$V$194,K574='EXPENSE DATABASE'!$X$187,K574='EXPENSE DATABASE'!$X$188,K574='EXPENSE DATABASE'!$X$189,K574='EXPENSE DATABASE'!$X$190,K574='EXPENSE DATABASE'!$X$191,K574='EXPENSE DATABASE'!$X$192,K574='EXPENSE DATABASE'!$X$193,K574='EXPENSE DATABASE'!$X$194,K574='EXPENSE DATABASE'!$Z$187,K574='EXPENSE DATABASE'!$Z$188,K574='EXPENSE DATABASE'!$Z$189,K574='EXPENSE DATABASE'!$Z$190,K574='EXPENSE DATABASE'!$Z$191,K574='EXPENSE DATABASE'!$Z$192,K574='EXPENSE DATABASE'!$Z$193,K574='EXPENSE DATABASE'!$Z$194),O574,\"\")","v":""},{"$f":"IF(OR(K574='EXPENSE DATABASE'!$T$189,K574='EXPENSE DATABASE'!$T$190,K574='EXPENSE DATABASE'!$T$191),O574,\"\")","v":""},{"$f":"VLOOKUP(I574,'EXPENSE DATABASE'!$B$41:$C$65,2,FALSE)","v":{"$error":"#N/A"}},100,{"$f":"VLOOKUP(J574,'EXPENSE DATABASE'!$B$69:$C$168,2,FALSE)","v":{"$error":"#N/A"}},101,{"$f":"VLOOKUP(K574,'EXPENSE DATABASE'!$B$6:$C$35,2,FALSE)","v":{"$error":"#N/A"}},31,{"$f":"VLOOKUP(L574,'EXPENSE DATABASE'!$B$173:$C$176,2,FALSE)","v":{"$error":"#N/A"}},100,0,0,{"$f":"IF(L574=T('EXPENSE DATABASE'!$E$173),O574,0)","v":0},{"$f":"IF(L574=T('EXPENSE DATABASE'!$E$174),O574,0)","v":0},{"$f":"IF(L574=T('EXPENSE DATABASE'!$E$175),O574,0)","v":0},0,561]
[{"$f":"IF(COUNTA(#REF!,#REF!,#REF!,#REF!,#REF!,#REF!,#REF!,#REF!,#REF!,#REF!,#REF!)>0,1,0)","v":1},{"$f":"IF((COUNTA(#REF!)=4),1,-1)*A575","v":-1},{"$nulls":12},{"v":0,"d":"$0.00"},{"v":0,"d":"$0.00"},{"v":0,"d":"$0.00"},0,{"$f":"IF(OR(K575='EXPENSE DATABASE'!$V$187,K575='EXPENSE DATABASE'!$V$188,K575='EXPENSE DATABASE'!$V$189,K575='EXPENSE DATABASE'!$V$190,K575='EXPENSE DATABASE'!$V$191,K575='EXPENSE DATABASE'!$V$192,K575='EXPENSE DATABASE'!$V$193,K575='EXPENSE DATABASE'!$V$194,K575='EXPENSE DATABASE'!$X$187,K575='EXPENSE DATABASE'!$X$188,K575='EXPENSE DATABASE'!$X$189,K575='EXPENSE DATABASE'!$X$190,K575='EXPENSE DATABASE'!$X$191,K575='EXPENSE DATABASE'!$X$192,K575='EXPENSE DATABASE'!$X$193,K575='EXPENSE DATABASE'!$X$194,K575='EXPENSE DATABASE'!$Z$187,K575='EXPENSE DATABASE'!$Z$188,K575='EXPENSE DATABASE'!$Z$189,K575='EXPENSE DATABASE'!$Z$190,K575='EXPENSE DATABASE'!$Z$191,K575='EXPENSE DATABASE'!$Z$192,K575='EXPENSE DATABASE'!$Z$193,K575='EXPENSE DATABASE'!$Z$194),O575,\"\")","v":""},{"$f":"IF(OR(K575='EXPENSE DATABASE'!$T$189,K575='EXPENSE DATABASE'!$T$190,K575='EXPENSE DATABASE'!$T$191),O575,\"\")","v":""},{"$f":"VLOOKUP(I575,'EXPENSE DATABASE'!$B$41:$C$65,2,FALSE)","v":{"$error":"#N/A"}},100,{"$f":"VLOOKUP(J575,'EXPENSE DATABASE'!$B$69:$C$168,2,FALSE)","v":{"$error":"#N/A"}},101,{"$f":"VLOOKUP(K575,'EXPENSE DATABASE'!$B$6:$C$35,2,FALSE)","v":{"$error":"#N/A"}},31,{"$f":"VLOOKUP(L575,'EXPENSE DATABASE'!$B$173:$C$176,2,FALSE)","v":{"$error":"#N/A"}},100,0,0,{"$f":"IF(L575=T('EXPENSE DATABASE'!$E$173),O575,0)","v":0},{"$f":"IF(L575=T('EXPENSE DATABASE'!$E$174),O575,0)","v":0},{"$f":"IF(L575=T('EXPENSE DATABASE'!$E$175),O575,0)","v":0},0,562]
[{"$f":"IF(COUNTA(#REF!,#REF!,#REF!,#REF!,#REF!,#REF!,#REF!,#REF!,#REF!,#REF!,#REF!)>0,1,0)","v":1},{"$f":"IF((COUNTA(#REF!)=4),1,-1)*A576","v":-1},{"$nulls":12},{"v":0,"d":"$0.00"},{"v":0,"d":"$0.00"},{"v":0,"d":"$0.00"},0,{"$f":"IF(OR(K576='EXPENSE DATABASE'!$V$187,K576='EXPENSE DATABASE'!$V$188,K576='EXPENSE DATABASE'!$V$189,K576='EXPENSE DATABASE'!$V$190,K576='EXPENSE DATABASE'!$V$191,K576='EXPENSE DATABASE'!$V$192,K576='EXPENSE DATABASE'!$V$193,K576='EXPENSE DATABASE'!$V$194,K576='EXPENSE DATABASE'!$X$187,K576='EXPENSE DATABASE'!$X$188,K576='EXPENSE DATABASE'!$X$189,K576='EXPENSE DATABASE'!$X$190,K576='EXPENSE DATABASE'!$X$191,K576='EXPENSE DATABASE'!$X$192,K576='EXPENSE DATABASE'!$X$193,K576='EXPENSE DATABASE'!$X$194,K576='EXPENSE DATABASE'!$Z$187,K576='EXPENSE DATABASE'!$Z$188,K576='EXPENSE DATABASE'!$Z$189,K576='EXPENSE DATABASE'!$Z$190,K576='EXPENSE DATABASE'!$Z$191,K576='EXPENSE DATABASE'!$Z$192,K576='EXPENSE DATABASE'!$Z$193,K576='EXPENSE DATABASE'!$Z$194),O576,\"\")","v":""},{"$f":"IF(OR(K576='EXPENSE DATABASE'!$T$189,K576='EXPENSE DATABASE'!$T$190,K576='EXPENSE DATABASE'!$T$191),O576,\"\")","v":""},{"$f":"VLOOKUP(I576,'EXPENSE DATABASE'!$B$41:$C$65,2,FALSE)","v":{"$error":"#N/A"}},100,{"$f":"VLOOKUP(J576,'EXPENSE DATABASE'!$B$69:$C$168,2,FALSE)","v":{"$error":"#N/A"}},101,{"$f":"VLOOKUP(K576,'EXPENSE DATABASE'!$B$6:$C$35,2,FALSE)","v":{"$error":"#N/A"}},31,{"$f":"VLOOKUP(L576,'EXPENSE DATABASE'!$B$173:$C$176,2,FALSE)","v":{"$error":"#N/A"}},100,0,0,{"$f":"IF(L576=T('EXPENSE DATABASE'!$E$173),O576,0)","v":0},{"$f":"IF(L576=T('EXPENSE DATABASE'!$E$174),O576,0)","v":0},{"$f":"IF(L576=T('EXPENSE DATABASE'!$E$175),O576,0)","v":0},0,563]
[{"$f":"IF(COUNTA(#REF!,#REF!,#REF!,#REF!,#REF!,#REF!,#REF!,#REF!,#REF!,#REF!,#REF!)>0,1,0)","v":1},{"$f":"IF((COUNTA(#REF!)=4),1,-1)*A577","v":-1},{"$nulls":12},{"v":0,"d":"$0.00"},{"v":0,"d":"$0.00"},{"v":0,"d":"$0.00"},0,{"$f":"IF(OR(K577='EXPENSE DATABASE'!$V$187,K577='EXPENSE DATABASE'!$V$188,K577='EXPENSE DATABASE'!$V$189,K577='EXPENSE DATABASE'!$V$190,K577='EXPENSE DATABASE'!$V$191,K577='EXPENSE DATABASE'!$V$192,K577='EXPENSE DATABASE'!$V$193,K577='EXPENSE DATABASE'!$V$194,K577='EXPENSE DATABASE'!$X$187,K577='EXPENSE DATABASE'!$X$188,K577='EXPENSE DATABASE'!$X$189,K577='EXPENSE DATABASE'!$X$190,K577='EXPENSE DATABASE'!$X$191,K577='EXPENSE DATABASE'!$X$192,K577='EXPENSE DATABASE'!$X$193,K577='EXPENSE DATABASE'!$X$194,K577='EXPENSE DATABASE'!$Z$187,K577='EXPENSE DATABASE'!$Z$188,K577='EXPENSE DATABASE'!$Z$189,K577='EXPENSE DATABASE'!$Z$190,K577='EXPENSE DATABASE'!$Z$191,K577='EXPENSE DATABASE'!$Z$192,K577='EXPENSE DATABASE'!$Z$193,K577='EXPENSE DATABASE'!$Z$194),O577,\"\")","v":""},{"$f":"IF(OR(K577='EXPENSE DATABASE'!$T$189,K577='EXPENSE DATABASE'!$T$190,K577='EXPENSE DATABASE'!$T$191),O577,\"\")","v":""},{"$f":"VLOOKUP(I577,'EXPENSE DATABASE'!$B$41:$C$65,2,FALSE)","v":{"$error":"#N/A"}},100,{"$f":"VLOOKUP(J577,'EXPENSE DATABASE'!$B$69:$C$168,2,FALSE)","v":{"$error":"#N/A"}},101,{"$f":"VLOOKUP(K577,'EXPENSE DATABASE'!$B$6:$C$35,2,FALSE)","v":{"$error":"#N/A"}},31,{"$f":"VLOOKUP(L577,'EXPENSE DATABASE'!$B$173:$C$176,2,FALSE)","v":{"$error":"#N/A"}},100,0,0,{"$f":"IF(L577=T('EXPENSE DATABASE'!$E$173),O577,0)","v":0},{"$f":"IF(L577=T('EXPENSE DATABASE'!$E$174),O577,0)","v":0},{"$f":"IF(L577=T('EXPENSE DATABASE'!$E$175),O577,0)","v":0},0,564]
[{"$f":"IF(COUNTA(#REF!,#REF!,#REF!,#REF!,#REF!,#REF!,#REF!,#REF!,#REF!,#REF!,#REF!)>0,1,0)","v":1},{"$f":"IF((COUNTA(#REF!)=4),1,-1)*A578","v":-1},{"$nulls":12},{"v":0,"d":"$0.00"},{"v":0,"d":"$0.00"},{"v":0,"d":"$0.00"},0,{"$f":"IF(OR(K578='EXPENSE DATABASE'!$V$187,K578='EXPENSE DATABASE'!$V$188,K578='EXPENSE DATABASE'!$V$189,K578='EXPENSE DATABASE'!$V$190,K578='EXPENSE DATABASE'!$V$191,K578='EXPENSE DATABASE'!$V$192,K578='EXPENSE DATABASE'!$V$193,K578='EXPENSE DATABASE'!$V$194,K578='EXPENSE DATABASE'!$X$187,K578='EXPENSE DATABASE'!$X$188,K578='EXPENSE DATABASE'!$X$189,K578='EXPENSE DATABASE'!$X$190,K578='EXPENSE DATABASE'!$X$191,K578='EXPENSE DATABASE'!$X$192,K578='EXPENSE DATABASE'!$X$193,K578='EXPENSE DATABASE'!$X$194,K578='EXPENSE DATABASE'!$Z$187,K578='EXPENSE DATABASE'!$Z$188,K578='EXPENSE DATABASE'!$Z$189,K578='EXPENSE DATABASE'!$Z$190,K578='EXPENSE DATABASE'!$Z$191,K578='EXPENSE DATABASE'!$Z$192,K578='EXPENSE DATABASE'!$Z$193,K578='EXPENSE DATABASE'!$Z$194),O578,\"\")","v":""},{"$f":"IF(OR(K578='EXPENSE DATABASE'!$T$189,K578='EXPENSE DATABASE'!$T$190,K578='EXPENSE DATABASE'!$T$191),O578,\"\")","v":""},{"$f":"VLOOKUP(I578,'EXPENSE DATABASE'!$B$41:$C$65,2,FALSE)","v":{"$error":"#N/A"}},100,{"$f":"VLOOKUP(J578,'EXPENSE DATABASE'!$B$69:$C$168,2,FALSE)","v":{"$error":"#N/A"}},101,{"$f":"VLOOKUP(K578,'EXPENSE DATABASE'!$B$6:$C$35,2,FALSE)","v":{"$error":"#N/A"}},31,{"$f":"VLOOKUP(L578,'EXPENSE DATABASE'!$B$173:$C$176,2,FALSE)","v":{"$error":"#N/A"}},100,0,0,{"$f":"IF(L578=T('EXPENSE DATABASE'!$E$173),O578,0)","v":0},{"$f":"IF(L578=T('EXPENSE DATABASE'!$E$174),O578,0)","v":0},{"$f":"IF(L578=T('EXPENSE DATABASE'!$E$175),O578,0)","v":0},0,565]
[{"$f":"IF(COUNTA(#REF!,#REF!,#REF!,#REF!,#REF!,#REF!,#REF!,#REF!,#REF!,#REF!,#REF!)>0,1,0)","v":1},{"$f":"IF((COUNTA(#REF!)=4),1,-1)*A579","v":-1},{"$nulls":12},{"v":0,"d":"$0.00"},{"v":0,"d":"$0.00"},{"v":0,"d":"$0.00"},0,{"$f":"IF(OR(K579='EXPENSE DATABASE'!$V$187,K579='EXPENSE DATABASE'!$V$188,K579='EXPENSE DATABASE'!$V$189,K579='EXPENSE DATABASE'!$V$190,K579='EXPENSE DATABASE'!$V$191,K579='EXPENSE DATABASE'!$V$192,K579='EXPENSE DATABASE'!$V$193,K579='EXPENSE DATABASE'!$V$194,K579='EXPENSE DATABASE'!$X$187,K579='EXPENSE DATABASE'!$X$188,K579='EXPENSE DATABASE'!$X$189,K579='EXPENSE DATABASE'!$X$190,K579='EXPENSE DATABASE'!$X$191,K579='EXPENSE DATABASE'!$X$192,K579='EXPENSE DATABASE'!$X$193,K579='EXPENSE DATABASE'!$X$194,K579='EXPENSE DATABASE'!$Z$187,K579='EXPENSE DATABASE'!$Z$188,K579='EXPENSE DATABASE'!$Z$189,K579='EXPENSE DATABASE'!$Z$190,K579='EXPENSE DATABASE'!$Z$191,K579='EXPENSE DATABASE'!$Z$192,K579='EXPENSE DATABASE'!$Z$193,K579='EXPENSE DATABASE'!$Z$194),O579,\"\")","v":""},{"$f":"IF(OR(K579='EXPENSE DATABASE'!$T$189,K579='EXPENSE DATABASE'!$T$190,K579='EXPENSE DATABASE'!$T$191),O579,\"\")","v":""},{"$f":"VLOOKUP(I579,'EXPENSE DATABASE'!$B$41:$C$65,2,FALSE)","v":{"$error":"#N/A"}},100,{"$f":"VLOOKUP(J579,'EXPENSE DATABASE'!$B$69:$C$168,2,FALSE)","v":{"$error":"#N/A"}},101,{"$f":"VLOOKUP(K579,'EXPENSE DATABASE'!$B$6:$C$35,2,FALSE)","v":{"$error":"#N/A"}},31,{"$f":"VLOOKUP(L579,'EXPENSE DATABASE'!$B$173:$C$176,2,FALSE)","v":{"$error":"#N/A"}},100,0,0,{"$f":"IF(L579=T('EXPENSE DATABASE'!$E$173),O579,0)","v":0},{"$f":"IF(L579=T('EXPENSE DATABASE'!$E$174),O579,0)","v":0},{"$f":"IF(L579=T('EXPENSE DATABASE'!$E$175),O579,0)","v":0},0,566]
[{"$f":"IF(COUNTA(#REF!,#REF!,#REF!,#REF!,#REF!,#REF!,#REF!,#REF!,#REF!,#REF!,#REF!)>0,1,0)","v":1},{"$f":"IF((COUNTA(#REF!)=4),1,-1)*A580","v":-1},{"$nulls":12},{"v":0,"d":"$0.00"},{"v":0,"d":"$0.00"},{"v":0,"d":"$0.00"},0,{"$f":"IF(OR(K580='EXPENSE DATABASE'!$V$187,K580='EXPENSE DATABASE'!$V$188,K580='EXPENSE DATABASE'!$V$189,K580='EXPENSE DATABASE'!$V$190,K580='EXPENSE DATABASE'!$V$191,K580='EXPENSE DATABASE'!$V$192,K580='EXPENSE DATABASE'!$V$193,K580='EXPENSE DATABASE'!$V$194,K580='EXPENSE DATABASE'!$X$187,K580='EXPENSE DATABASE'!$X$188,K580='EXPENSE DATABASE'!$X$189,K580='EXPENSE DATABASE'!$X$190,K580='EXPENSE DATABASE'!$X$191,K580='EXPENSE DATABASE'!$X$192,K580='EXPENSE DATABASE'!$X$193,K580='EXPENSE DATABASE'!$X$194,K580='EXPENSE DATABASE'!$Z$187,K580='EXPENSE DATABASE'!$Z$188,K580='EXPENSE DATABASE'!$Z$189,K580='EXPENSE DATABASE'!$Z$190,K580='EXPENSE DATABASE'!$Z$191,K580='EXPENSE DATABASE'!$Z$192,K580='EXPENSE DATABASE'!$Z$193,K580='EXPENSE DATABASE'!$Z$194),O580,\"\")","v":""},{"$f":"IF(OR(K580='EXPENSE DATABASE'!$T$189,K580='EXPENSE DATABASE'!$T$190,K580='EXPENSE DATABASE'!$T$191),O580,\"\")","v":""},{"$f":"VLOOKUP(I580,'EXPENSE DATABASE'!$B$41:$C$65,2,FALSE)","v":{"$error":"#N/A"}},100,{"$f":"VLOOKUP(J580,'EXPENSE DATABASE'!$B$69:$C$168,2,FALSE)","v":{"$error":"#N/A"}},101,{"$f":"VLOOKUP(K580,'EXPENSE DATABASE'!$B$6:$C$35,2,FALSE)","v":{"$error":"#N/A"}},31,{"$f":"VLOOKUP(L580,'EXPENSE DATABASE'!$B$173:$C$176,2,FALSE)","v":{"$error":"#N/A"}},100,0,0,{"$f":"IF(L580=T('EXPENSE DATABASE'!$E$173),O580,0)","v":0},{"$f":"IF(L580=T('EXPENSE DATABASE'!$E$174),O580,0)","v":0},{"$f":"IF(L580=T('EXPENSE DATABASE'!$E$175),O580,0)","v":0},0,567]
[{"$f":"IF(COUNTA(#REF!,#REF!,#REF!,#REF!,#REF!,#REF!,#REF!,#REF!,#REF!,#REF!,#REF!)>0,1,0)","v":1},{"$f":"IF((COUNTA(#REF!)=4),1,-1)*A581","v":-1},{"$nulls":12},{"v":0,"d":"$0.00"},{"v":0,"d":"$0.00"},{"v":0,"d":"$0.00"},0,{"$f":"IF(OR(K581='EXPENSE DATABASE'!$V$187,K581='EXPENSE DATABASE'!$V$188,K581='EXPENSE DATABASE'!$V$189,K581='EXPENSE DATABASE'!$V$190,K581='EXPENSE DATABASE'!$V$191,K581='EXPENSE DATABASE'!$V$192,K581='EXPENSE DATABASE'!$V$193,K581='EXPENSE DATABASE'!$V$194,K581='EXPENSE DATABASE'!$X$187,K581='EXPENSE DATABASE'!$X$188,K581='EXPENSE DATABASE'!$X$189,K581='EXPENSE DATABASE'!$X$190,K581='EXPENSE DATABASE'!$X$191,K581='EXPENSE DATABASE'!$X$192,K581='EXPENSE DATABASE'!$X$193,K581='EXPENSE DATABASE'!$X$194,K581='EXPENSE DATABASE'!$Z$187,K581='EXPENSE DATABASE'!$Z$188,K581='EXPENSE DATABASE'!$Z$189,K581='EXPENSE DATABASE'!$Z$190,K581='EXPENSE DATABASE'!$Z$191,K581='EXPENSE DATABASE'!$Z$192,K581='EXPENSE DATABASE'!$Z$193,K581='EXPENSE DATABASE'!$Z$194),O581,\"\")","v":""},{"$f":"IF(OR(K581='EXPENSE DATABASE'!$T$189,K581='EXPENSE DATABASE'!$T$190,K581='EXPENSE DATABASE'!$T$191),O581,\"\")","v":""},{"$f":"VLOOKUP(I581,'EXPENSE DATABASE'!$B$41:$C$65,2,FALSE)","v":{"$error":"#N/A"}},100,{"$f":"VLOOKUP(J581,'EXPENSE DATABASE'!$B$69:$C$168,2,FALSE)","v":{"$error":"#N/A"}},101,{"$f":"VLOOKUP(K581,'EXPENSE DATABASE'!$B$6:$C$35,2,FALSE)","v":{"$error":"#N/A"}},31,{"$f":"VLOOKUP(L581,'EXPENSE DATABASE'!$B$173:$C$176,2,FALSE)","v":{"$error":"#N/A"}},100,0,0,{"$f":"IF(L581=T('EXPENSE DATABASE'!$E$173),O581,0)","v":0},{"$f":"IF(L581=T('EXPENSE DATABASE'!$E$174),O581,0)","v":0},{"$f":"IF(L581=T('EXPENSE DATABASE'!$E$175),O581,0)","v":0},0,568]
[{"$f":"IF(COUNTA(#REF!,#REF!,#REF!,#REF!,#REF!,#REF!,#REF!,#REF!,#REF!,#REF!,#REF!)>0,1,0)","v":1},{"$f":"IF((COUNTA(#REF!)=4),1,-1)*A582","v":-1},{"$nulls":12},{"v":0,"d":"$0.00"},{"v":0,"d":"$0.00"},{"v":0,"d":"$0.00"},0,{"$f":"IF(OR(K582='EXPENSE DATABASE'!$V$187,K582='EXPENSE DATABASE'!$V$188,K582='EXPENSE DATABASE'!$V$189,K582='EXPENSE DATABASE'!$V$190,K582='EXPENSE DATABASE'!$V$191,K582='EXPENSE DATABASE'!$V$192,K582='EXPENSE DATABASE'!$V$193,K582='EXPENSE DATABASE'!$V$194,K582='EXPENSE DATABASE'!$X$187,K582='EXPENSE DATABASE'!$X$188,K582='EXPENSE DATABASE'!$X$189,K582='EXPENSE DATABASE'!$X$190,K582='EXPENSE DATABASE'!$X$191,K582='EXPENSE DATABASE'!$X$192,K582='EXPENSE DATABASE'!$X$193,K582='EXPENSE DATABASE'!$X$194,K582='EXPENSE DATABASE'!$Z$187,K582='EXPENSE DATABASE'!$Z$188,K582='EXPENSE DATABASE'!$Z$189,K582='EXPENSE DATABASE'!$Z$190,K582='EXPENSE DATABASE'!$Z$191,K582='EXPENSE DATABASE'!$Z$192,K582='EXPENSE DATABASE'!$Z$193,K582='EXPENSE DATABASE'!$Z$194),O582,\"\")","v":""},{"$f":"IF(OR(K582='EXPENSE DATABASE'!$T$189,K582='EXPENSE DATABASE'!$T$190,K582='EXPENSE DATABASE'!$T$191),O582,\"\")","v":""},{"$f":"VLOOKUP(I582,'EXPENSE DATABASE'!$B$41:$C$65,2,FALSE)","v":{"$error":"#N/A"}},100,{"$f":"VLOOKUP(J582,'EXPENSE DATABASE'!$B$69:$C$168,2,FALSE)","v":{"$error":"#N/A"}},101,{"$f":"VLOOKUP(K582,'EXPENSE DATABASE'!$B$6:$C$35,2,FALSE)","v":{"$error":"#N/A"}},31,{"$f":"VLOOKUP(L582,'EXPENSE DATABASE'!$B$173:$C$176,2,FALSE)","v":{"$error":"#N/A"}},100,0,0,{"$f":"IF(L582=T('EXPENSE DATABASE'!$E$173),O582,0)","v":0},{"$f":"IF(L582=T('EXPENSE DATABASE'!$E$174),O582,0)","v":0},{"$f":"IF(L582=T('EXPENSE DATABASE'!$E$175),O582,0)","v":0},0,569]
[{"$f":"IF(COUNTA(#REF!,#REF!,#REF!,#REF!,#REF!,#REF!,#REF!,#REF!,#REF!,#REF!,#REF!)>0,1,0)","v":1},{"$f":"IF((COUNTA(#REF!)=4),1,-1)*A583","v":-1},{"$nulls":12},{"v":0,"d":"$0.00"},{"v":0,"d":"$0.00"},{"v":0,"d":"$0.00"},0,{"$f":"IF(OR(K583='EXPENSE DATABASE'!$V$187,K583='EXPENSE DATABASE'!$V$188,K583='EXPENSE DATABASE'!$V$189,K583='EXPENSE DATABASE'!$V$190,K583='EXPENSE DATABASE'!$V$191,K583='EXPENSE DATABASE'!$V$192,K583='EXPENSE DATABASE'!$V$193,K583='EXPENSE DATABASE'!$V$194,K583='EXPENSE DATABASE'!$X$187,K583='EXPENSE DATABASE'!$X$188,K583='EXPENSE DATABASE'!$X$189,K583='EXPENSE DATABASE'!$X$190,K583='EXPENSE DATABASE'!$X$191,K583='EXPENSE DATABASE'!$X$192,K583='EXPENSE DATABASE'!$X$193,K583='EXPENSE DATABASE'!$X$194,K583='EXPENSE DATABASE'!$Z$187,K583='EXPENSE DATABASE'!$Z$188,K583='EXPENSE DATABASE'!$Z$189,K583='EXPENSE DATABASE'!$Z$190,K583='EXPENSE DATABASE'!$Z$191,K583='EXPENSE DATABASE'!$Z$192,K583='EXPENSE DATABASE'!$Z$193,K583='EXPENSE DATABASE'!$Z$194),O583,\"\")","v":""},{"$f":"IF(OR(K583='EXPENSE DATABASE'!$T$189,K583='EXPENSE DATABASE'!$T$190,K583='EXPENSE DATABASE'!$T$191),O583,\"\")","v":""},{"$f":"VLOOKUP(I583,'EXPENSE DATABASE'!$B$41:$C$65,2,FALSE)","v":{"$error":"#N/A"}},100,{"$f":"VLOOKUP(J583,'EXPENSE DATABASE'!$B$69:$C$168,2,FALSE)","v":{"$error":"#N/A"}},101,{"$f":"VLOOKUP(K583,'EXPENSE DATABASE'!$B$6:$C$35,2,FALSE)","v":{"$error":"#N/A"}},31,{"$f":"VLOOKUP(L583,'EXPENSE DATABASE'!$B$173:$C$176,2,FALSE)","v":{"$error":"#N/A"}},100,0,0,{"$f":"IF(L583=T('EXPENSE DATABASE'!$E$173),O583,0)","v":0},{"$f":"IF(L583=T('EXPENSE DATABASE'!$E$174),O583,0)","v":0},{"$f":"IF(L583=T('EXPENSE DATABASE'!$E$175),O583,0)","v":0},0,570]
[{"$f":"IF(COUNTA(#REF!,#REF!,#REF!,#REF!,#REF!,#REF!,#REF!,#REF!,#REF!,#REF!,#REF!)>0,1,0)","v":1},{"$f":"IF((COUNTA(#REF!)=4),1,-1)*A584","v":-1},{"$nulls":12},{"v":0,"d":"$0.00"},{"v":0,"d":"$0.00"},{"v":0,"d":"$0.00"},0,{"$f":"IF(OR(K584='EXPENSE DATABASE'!$V$187,K584='EXPENSE DATABASE'!$V$188,K584='EXPENSE DATABASE'!$V$189,K584='EXPENSE DATABASE'!$V$190,K584='EXPENSE DATABASE'!$V$191,K584='EXPENSE DATABASE'!$V$192,K584='EXPENSE DATABASE'!$V$193,K584='EXPENSE DATABASE'!$V$194,K584='EXPENSE DATABASE'!$X$187,K584='EXPENSE DATABASE'!$X$188,K584='EXPENSE DATABASE'!$X$189,K584='EXPENSE DATABASE'!$X$190,K584='EXPENSE DATABASE'!$X$191,K584='EXPENSE DATABASE'!$X$192,K584='EXPENSE DATABASE'!$X$193,K584='EXPENSE DATABASE'!$X$194,K584='EXPENSE DATABASE'!$Z$187,K584='EXPENSE DATABASE'!$Z$188,K584='EXPENSE DATABASE'!$Z$189,K584='EXPENSE DATABASE'!$Z$190,K584='EXPENSE DATABASE'!$Z$191,K584='EXPENSE DATABASE'!$Z$192,K584='EXPENSE DATABASE'!$Z$193,K584='EXPENSE DATABASE'!$Z$194),O584,\"\")","v":""},{"$f":"IF(OR(K584='EXPENSE DATABASE'!$T$189,K584='EXPENSE DATABASE'!$T$190,K584='EXPENSE DATABASE'!$T$191),O584,\"\")","v":""},{"$f":"VLOOKUP(I584,'EXPENSE DATABASE'!$B$41:$C$65,2,FALSE)","v":{"$error":"#N/A"}},100,{"$f":"VLOOKUP(J584,'EXPENSE DATABASE'!$B$69:$C$168,2,FALSE)","v":{"$error":"#N/A"}},101,{"$f":"VLOOKUP(K584,'EXPENSE DATABASE'!$B$6:$C$35,2,FALSE)","v":{"$error":"#N/A"}},31,{"$f":"VLOOKUP(L584,'EXPENSE DATABASE'!$B$173:$C$176,2,FALSE)","v":{"$error":"#N/A"}},100,0,0,{"$f":"IF(L584=T('EXPENSE DATABASE'!$E$173),O584,0)","v":0},{"$f":"IF(L584=T('EXPENSE DATABASE'!$E$174),O584,0)","v":0},{"$f":"IF(L584=T('EXPENSE DATABASE'!$E$175),O584,0)","v":0},0,571]
[{"$f":"IF(COUNTA(#REF!,#REF!,#REF!,#REF!,#REF!,#REF!,#REF!,#REF!,#REF!,#REF!,#REF!)>0,1,0)","v":1},{"$f":"IF((COUNTA(#REF!)=4),1,-1)*A585","v":-1},{"$nulls":12},{"v":0,"d":"$0.00"},{"v":0,"d":"$0.00"},{"v":0,"d":"$0.00"},0,{"$f":"IF(OR(K585='EXPENSE DATABASE'!$V$187,K585='EXPENSE DATABASE'!$V$188,K585='EXPENSE DATABASE'!$V$189,K585='EXPENSE DATABASE'!$V$190,K585='EXPENSE DATABASE'!$V$191,K585='EXPENSE DATABASE'!$V$192,K585='EXPENSE DATABASE'!$V$193,K585='EXPENSE DATABASE'!$V$194,K585='EXPENSE DATABASE'!$X$187,K585='EXPENSE DATABASE'!$X$188,K585='EXPENSE DATABASE'!$X$189,K585='EXPENSE DATABASE'!$X$190,K585='EXPENSE DATABASE'!$X$191,K585='EXPENSE DATABASE'!$X$192,K585='EXPENSE DATABASE'!$X$193,K585='EXPENSE DATABASE'!$X$194,K585='EXPENSE DATABASE'!$Z$187,K585='EXPENSE DATABASE'!$Z$188,K585='EXPENSE DATABASE'!$Z$189,K585='EXPENSE DATABASE'!$Z$190,K585='EXPENSE DATABASE'!$Z$191,K585='EXPENSE DATABASE'!$Z$192,K585='EXPENSE DATABASE'!$Z$193,K585='EXPENSE DATABASE'!$Z$194),O585,\"\")","v":""},{"$f":"IF(OR(K585='EXPENSE DATABASE'!$T$189,K585='EXPENSE DATABASE'!$T$190,K585='EXPENSE DATABASE'!$T$191),O585,\"\")","v":""},{"$f":"VLOOKUP(I585,'EXPENSE DATABASE'!$B$41:$C$65,2,FALSE)","v":{"$error":"#N/A"}},100,{"$f":"VLOOKUP(J585,'EXPENSE DATABASE'!$B$69:$C$168,2,FALSE)","v":{"$error":"#N/A"}},101,{"$f":"VLOOKUP(K585,'EXPENSE DATABASE'!$B$6:$C$35,2,FALSE)","v":{"$error":"#N/A"}},31,{"$f":"VLOOKUP(L585,'EXPENSE DATABASE'!$B$173:$C$176,2,FALSE)","v":{"$error":"#N/A"}},100,0,0,{"$f":"IF(L585=T('EXPENSE DATABASE'!$E$173),O585,0)","v":0},{"$f":"IF(L585=T('EXPENSE DATABASE'!$E$174),O585,0)","v":0},{"$f":"IF(L585=T('EXPENSE DATABASE'!$E$175),O585,0)","v":0},0,572]
[{"$f":"IF(COUNTA(#REF!,#REF!,#REF!,#REF!,#REF!,#REF!,#REF!,#REF!,#REF!,#REF!,#REF!)>0,1,0)","v":1},{"$f":"IF((COUNTA(#REF!)=4),1,-1)*A586","v":-1},{"$nulls":12},{"v":0,"d":"$0.00"},{"v":0,"d":"$0.00"},{"v":0,"d":"$0.00"},0,{"$f":"IF(OR(K586='EXPENSE DATABASE'!$V$187,K586='EXPENSE DATABASE'!$V$188,K586='EXPENSE DATABASE'!$V$189,K586='EXPENSE DATABASE'!$V$190,K586='EXPENSE DATABASE'!$V$191,K586='EXPENSE DATABASE'!$V$192,K586='EXPENSE DATABASE'!$V$193,K586='EXPENSE DATABASE'!$V$194,K586='EXPENSE DATABASE'!$X$187,K586='EXPENSE DATABASE'!$X$188,K586='EXPENSE DATABASE'!$X$189,K586='EXPENSE DATABASE'!$X$190,K586='EXPENSE DATABASE'!$X$191,K586='EXPENSE DATABASE'!$X$192,K586='EXPENSE DATABASE'!$X$193,K586='EXPENSE DATABASE'!$X$194,K586='EXPENSE DATABASE'!$Z$187,K586='EXPENSE DATABASE'!$Z$188,K586='EXPENSE DATABASE'!$Z$189,K586='EXPENSE DATABASE'!$Z$190,K586='EXPENSE DATABASE'!$Z$191,K586='EXPENSE DATABASE'!$Z$192,K586='EXPENSE DATABASE'!$Z$193,K586='EXPENSE DATABASE'!$Z$194),O586,\"\")","v":""},{"$f":"IF(OR(K586='EXPENSE DATABASE'!$T$189,K586='EXPENSE DATABASE'!$T$190,K586='EXPENSE DATABASE'!$T$191),O586,\"\")","v":""},{"$f":"VLOOKUP(I586,'EXPENSE DATABASE'!$B$41:$C$65,2,FALSE)","v":{"$error":"#N/A"}},100,{"$f":"VLOOKUP(J586,'EXPENSE DATABASE'!$B$69:$C$168,2,FALSE)","v":{"$error":"#N/A"}},101,{"$f":"VLOOKUP(K586,'EXPENSE DATABASE'!$B$6:$C$35,2,FALSE)","v":{"$error":"#N/A"}},31,{"$f":"VLOOKUP(L586,'EXPENSE DATABASE'!$B$173:$C$176,2,FALSE)","v":{"$error":"#N/A"}},100,0,0,{"$f":"IF(L586=T('EXPENSE DATABASE'!$E$173),O586,0)","v":0},{"$f":"IF(L586=T('EXPENSE DATABASE'!$E$174),O586,0)","v":0},{"$f":"IF(L586=T('EXPENSE DATABASE'!$E$175),O586,0)","v":0},0,573]
[{"$f":"IF(COUNTA(#REF!,#REF!,#REF!,#REF!,#REF!,#REF!,#REF!,#REF!,#REF!,#REF!,#REF!)>0,1,0)","v":1},{"$f":"IF((COUNTA(#REF!)=4),1,-1)*A587","v":-1},{"$nulls":12},{"v":0,"d":"$0.00"},{"v":0,"d":"$0.00"},{"v":0,"d":"$0.00"},0,{"$f":"IF(OR(K587='EXPENSE DATABASE'!$V$187,K587='EXPENSE DATABASE'!$V$188,K587='EXPENSE DATABASE'!$V$189,K587='EXPENSE DATABASE'!$V$190,K587='EXPENSE DATABASE'!$V$191,K587='EXPENSE DATABASE'!$V$192,K587='EXPENSE DATABASE'!$V$193,K587='EXPENSE DATABASE'!$V$194,K587='EXPENSE DATABASE'!$X$187,K587='EXPENSE DATABASE'!$X$188,K587='EXPENSE DATABASE'!$X$189,K587='EXPENSE DATABASE'!$X$190,K587='EXPENSE DATABASE'!$X$191,K587='EXPENSE DATABASE'!$X$192,K587='EXPENSE DATABASE'!$X$193,K587='EXPENSE DATABASE'!$X$194,K587='EXPENSE DATABASE'!$Z$187,K587='EXPENSE DATABASE'!$Z$188,K587='EXPENSE DATABASE'!$Z$189,K587='EXPENSE DATABASE'!$Z$190,K587='EXPENSE DATABASE'!$Z$191,K587='EXPENSE DATABASE'!$Z$192,K587='EXPENSE DATABASE'!$Z$193,K587='EXPENSE DATABASE'!$Z$194),O587,\"\")","v":""},{"$f":"IF(OR(K587='EXPENSE DATABASE'!$T$189,K587='EXPENSE DATABASE'!$T$190,K587='EXPENSE DATABASE'!$T$191),O587,\"\")","v":""},{"$f":"VLOOKUP(I587,'EXPENSE DATABASE'!$B$41:$C$65,2,FALSE)","v":{"$error":"#N/A"}},100,{"$f":"VLOOKUP(J587,'EXPENSE DATABASE'!$B$69:$C$168,2,FALSE)","v":{"$error":"#N/A"}},101,{"$f":"VLOOKUP(K587,'EXPENSE DATABASE'!$B$6:$C$35,2,FALSE)","v":{"$error":"#N/A"}},31,{"$f":"VLOOKUP(L587,'EXPENSE DATABASE'!$B$173:$C$176,2,FALSE)","v":{"$error":"#N/A"}},100,0,0,{"$f":"IF(L587=T('EXPENSE DATABASE'!$E$173),O587,0)","v":0},{"$f":"IF(L587=T('EXPENSE DATABASE'!$E$174),O587,0)","v":0},{"$f":"IF(L587=T('EXPENSE DATABASE'!$E$175),O587,0)","v":0},0,574]
[{"$f":"IF(COUNTA(#REF!,#REF!,#REF!,#REF!,#REF!,#REF!,#REF!,#REF!,#REF!,#REF!,#REF!)>0,1,0)","v":1},{"$f":"IF((COUNTA(#REF!)=4),1,-1)*A588","v":-1},{"$nulls":12},{"v":0,"d":"$0.00"},{"v":0,"d":"$0.00"},{"v":0,"d":"$0.00"},0,{"$f":"IF(OR(K588='EXPENSE DATABASE'!$V$187,K588='EXPENSE DATABASE'!$V$188,K588='EXPENSE DATABASE'!$V$189,K588='EXPENSE DATABASE'!$V$190,K588='EXPENSE DATABASE'!$V$191,K588='EXPENSE DATABASE'!$V$192,K588='EXPENSE DATABASE'!$V$193,K588='EXPENSE DATABASE'!$V$194,K588='EXPENSE DATABASE'!$X$187,K588='EXPENSE DATABASE'!$X$188,K588='EXPENSE DATABASE'!$X$189,K588='EXPENSE DATABASE'!$X$190,K588='EXPENSE DATABASE'!$X$191,K588='EXPENSE DATABASE'!$X$192,K588='EXPENSE DATABASE'!$X$193,K588='EXPENSE DATABASE'!$X$194,K588='EXPENSE DATABASE'!$Z$187,K588='EXPENSE DATABASE'!$Z$188,K588='EXPENSE DATABASE'!$Z$189,K588='EXPENSE DATABASE'!$Z$190,K588='EXPENSE DATABASE'!$Z$191,K588='EXPENSE DATABASE'!$Z$192,K588='EXPENSE DATABASE'!$Z$193,K588='EXPENSE DATABASE'!$Z$194),O588,\"\")","v":""},{"$f":"IF(OR(K588='EXPENSE DATABASE'!$T$189,K588='EXPENSE DATABASE'!$T$190,K588='EXPENSE DATABASE'!$T$191),O588,\"\")","v":""},{"$f":"VLOOKUP(I588,'EXPENSE DATABASE'!$B$41:$C$65,2,FALSE)","v":{"$error":"#N/A"}},100,{"$f":"VLOOKUP(J588,'EXPENSE DATABASE'!$B$69:$C$168,2,FALSE)","v":{"$error":"#N/A"}},101,{"$f":"VLOOKUP(K588,'EXPENSE DATABASE'!$B$6:$C$35,2,FALSE)","v":{"$error":"#N/A"}},31,{"$f":"VLOOKUP(L588,'EXPENSE DATABASE'!$B$173:$C$176,2,FALSE)","v":{"$error":"#N/A"}},100,0,0,{"$f":"IF(L588=T('EXPENSE DATABASE'!$E$173),O588,0)","v":0},{"$f":"IF(L588=T('EXPENSE DATABASE'!$E$174),O588,0)","v":0},{"$f":"IF(L588=T('EXPENSE DATABASE'!$E$175),O588,0)","v":0},0,575]
[{"$f":"IF(COUNTA(#REF!,#REF!,#REF!,#REF!,#REF!,#REF!,#REF!,#REF!,#REF!,#REF!,#REF!)>0,1,0)","v":1},{"$f":"IF((COUNTA(#REF!)=4),1,-1)*A589","v":-1},{"$nulls":12},{"v":0,"d":"$0.00"},{"v":0,"d":"$0.00"},{"v":0,"d":"$0.00"},0,{"$f":"IF(OR(K589='EXPENSE DATABASE'!$V$187,K589='EXPENSE DATABASE'!$V$188,K589='EXPENSE DATABASE'!$V$189,K589='EXPENSE DATABASE'!$V$190,K589='EXPENSE DATABASE'!$V$191,K589='EXPENSE DATABASE'!$V$192,K589='EXPENSE DATABASE'!$V$193,K589='EXPENSE DATABASE'!$V$194,K589='EXPENSE DATABASE'!$X$187,K589='EXPENSE DATABASE'!$X$188,K589='EXPENSE DATABASE'!$X$189,K589='EXPENSE DATABASE'!$X$190,K589='EXPENSE DATABASE'!$X$191,K589='EXPENSE DATABASE'!$X$192,K589='EXPENSE DATABASE'!$X$193,K589='EXPENSE DATABASE'!$X$194,K589='EXPENSE DATABASE'!$Z$187,K589='EXPENSE DATABASE'!$Z$188,K589='EXPENSE DATABASE'!$Z$189,K589='EXPENSE DATABASE'!$Z$190,K589='EXPENSE DATABASE'!$Z$191,K589='EXPENSE DATABASE'!$Z$192,K589='EXPENSE DATABASE'!$Z$193,K589='EXPENSE DATABASE'!$Z$194),O589,\"\")","v":""},{"$f":"IF(OR(K589='EXPENSE DATABASE'!$T$189,K589='EXPENSE DATABASE'!$T$190,K589='EXPENSE DATABASE'!$T$191),O589,\"\")","v":""},{"$f":"VLOOKUP(I589,'EXPENSE DATABASE'!$B$41:$C$65,2,FALSE)","v":{"$error":"#N/A"}},100,{"$f":"VLOOKUP(J589,'EXPENSE DATABASE'!$B$69:$C$168,2,FALSE)","v":{"$error":"#N/A"}},101,{"$f":"VLOOKUP(K589,'EXPENSE DATABASE'!$B$6:$C$35,2,FALSE)","v":{"$error":"#N/A"}},31,{"$f":"VLOOKUP(L589,'EXPENSE DATABASE'!$B$173:$C$176,2,FALSE)","v":{"$error":"#N/A"}},100,0,0,{"$f":"IF(L589=T('EXPENSE DATABASE'!$E$173),O589,0)","v":0},{"$f":"IF(L589=T('EXPENSE DATABASE'!$E$174),O589,0)","v":0},{"$f":"IF(L589=T('EXPENSE DATABASE'!$E$175),O589,0)","v":0},0,576]
[{"$f":"IF(COUNTA(#REF!,#REF!,#REF!,#REF!,#REF!,#REF!,#REF!,#REF!,#REF!,#REF!,#REF!)>0,1,0)","v":1},{"$f":"IF((COUNTA(#REF!)=4),1,-1)*A590","v":-1},{"$nulls":12},{"$f":"M590*N590","v":{"v":0,"d":"$0.00"}},{"$f":"IF(OR(D590=\"No\",D590=\"\"),O590,0)","v":{"v":0,"d":"$0.00"}},{"$f":"IF(D590=\"Yes\",O590,0)","v":{"v":0,"d":"$0.00"}},{"$f":"IF(O590>0,1,0)","v":0},{"$f":"IF(OR(K590='EXPENSE DATABASE'!$V$187,K590='EXPENSE DATABASE'!$V$188,K590='EXPENSE DATABASE'!$V$189,K590='EXPENSE DATABASE'!$V$190,K590='EXPENSE DATABASE'!$V$191,K590='EXPENSE DATABASE'!$V$192,K590='EXPENSE DATABASE'!$V$193,K590='EXPENSE DATABASE'!$V$194,K590='EXPENSE DATABASE'!$X$187,K590='EXPENSE DATABASE'!$X$188,K590='EXPENSE DATABASE'!$X$189,K590='EXPENSE DATABASE'!$X$190,K590='EXPENSE DATABASE'!$X$191,K590='EXPENSE DATABASE'!$X$192,K590='EXPENSE DATABASE'!$X$193,K590='EXPENSE DATABASE'!$X$194,K590='EXPENSE DATABASE'!$Z$187,K590='EXPENSE DATABASE'!$Z$188,K590='EXPENSE DATABASE'!$Z$189,K590='EXPENSE DATABASE'!$Z$190,K590='EXPENSE DATABASE'!$Z$191,K590='EXPENSE DATABASE'!$Z$192,K590='EXPENSE DATABASE'!$Z$193,K590='EXPENSE DATABASE'!$Z$194),O590,\"\")","v":""},{"$f":"IF(OR(K590='EXPENSE DATABASE'!$T$189,K590='EXPENSE DATABASE'!$T$190,K590='EXPENSE DATABASE'!$T$191),O590,\"\")","v":""},{"$f":"VLOOKUP(I590,'EXPENSE DATABASE'!$B$41:$C$65,2,FALSE)","v":{"$error":"#N/A"}},{"$f":"IFERROR(U590,100)","v":100},{"$f":"VLOOKUP(J590,'EXPENSE DATABASE'!$B$69:$C$168,2,FALSE)","v":{"$error":"#N/A"}},{"$f":"IFERROR(W590,101)","v":101},{"$f":"VLOOKUP(K590,'EXPENSE DATABASE'!$B$6:$C$35,2,FALSE)","v":{"$error":"#N/A"}},{"$f":"IFERROR(Y590,31)","v":31},{"$f":"VLOOKUP(L590,'EXPENSE DATABASE'!$B$173:$C$176,2,FALSE)","v":{"$error":"#N/A"}},{"$f":"IFERROR(AA590,100)","v":100},{"$f":"IF(K590=0,0,1)","v":0},{"$f":"IF(J590=0,0,1)","v":0},{"$f":"IF(L590=T('EXPENSE DATABASE'!$E$173),O590,0)","v":0},{"$f":"IF(L590=T('EXPENSE DATABASE'!$E$174),O590,0)","v":0},{"$f":"IF(L590=T('EXPENSE DATABASE'!$E$175),O590,0)","v":0},{"$f":"IF(OR(N590=0,E590=0),0,MONTH(E590))","v":0},577]
[{"$f":"IF(COUNTA(#REF!,#REF!,#REF!,#REF!,#REF!,#REF!,#REF!,#REF!,#REF!,#REF!,#REF!)>0,1,0)","v":1},{"$f":"IF((COUNTA(#REF!)=4),1,-1)*A591","v":-1},{"$nulls":12},{"v":0,"d":"$0.00"},{"v":0,"d":"$0.00"},{"v":0,"d":"$0.00"},0,{"$f":"IF(OR(K591='EXPENSE DATABASE'!$V$187,K591='EXPENSE DATABASE'!$V$188,K591='EXPENSE DATABASE'!$V$189,K591='EXPENSE DATABASE'!$V$190,K591='EXPENSE DATABASE'!$V$191,K591='EXPENSE DATABASE'!$V$192,K591='EXPENSE DATABASE'!$V$193,K591='EXPENSE DATABASE'!$V$194,K591='EXPENSE DATABASE'!$X$187,K591='EXPENSE DATABASE'!$X$188,K591='EXPENSE DATABASE'!$X$189,K591='EXPENSE DATABASE'!$X$190,K591='EXPENSE DATABASE'!$X$191,K591='EXPENSE DATABASE'!$X$192,K591='EXPENSE DATABASE'!$X$193,K591='EXPENSE DATABASE'!$X$194,K591='EXPENSE DATABASE'!$Z$187,K591='EXPENSE DATABASE'!$Z$188,K591='EXPENSE DATABASE'!$Z$189,K591='EXPENSE DATABASE'!$Z$190,K591='EXPENSE DATABASE'!$Z$191,K591='EXPENSE DATABASE'!$Z$192,K591='EXPENSE DATABASE'!$Z$193,K591='EXPENSE DATABASE'!$Z$194),O591,\"\")","v":""},{"$f":"IF(OR(K591='EXPENSE DATABASE'!$T$189,K591='EXPENSE DATABASE'!$T$190,K591='EXPENSE DATABASE'!$T$191),O591,\"\")","v":""},{"$f":"VLOOKUP(I591,'EXPENSE DATABASE'!$B$41:$C$65,2,FALSE)","v":{"$error":"#N/A"}},100,{"$f":"VLOOKUP(J591,'EXPENSE DATABASE'!$B$69:$C$168,2,FALSE)","v":{"$error":"#N/A"}},101,{"$f":"VLOOKUP(K591,'EXPENSE DATABASE'!$B$6:$C$35,2,FALSE)","v":{"$error":"#N/A"}},31,{"$f":"VLOOKUP(L591,'EXPENSE DATABASE'!$B$173:$C$176,2,FALSE)","v":{"$error":"#N/A"}},100,0,0,{"$f":"IF(L591=T('EXPENSE DATABASE'!$E$173),O591,0)","v":0},{"$f":"IF(L591=T('EXPENSE DATABASE'!$E$174),O591,0)","v":0},{"$f":"IF(L591=T('EXPENSE DATABASE'!$E$175),O591,0)","v":0},0,578]
[{"$f":"IF(COUNTA(#REF!,#REF!,#REF!,#REF!,#REF!,#REF!,#REF!,#REF!,#REF!,#REF!,#REF!)>0,1,0)","v":1},{"$f":"IF((COUNTA(#REF!)=4),1,-1)*A592","v":-1},{"$nulls":12},{"v":0,"d":"$0.00"},{"v":0,"d":"$0.00"},{"v":0,"d":"$0.00"},0,{"$f":"IF(OR(K592='EXPENSE DATABASE'!$V$187,K592='EXPENSE DATABASE'!$V$188,K592='EXPENSE DATABASE'!$V$189,K592='EXPENSE DATABASE'!$V$190,K592='EXPENSE DATABASE'!$V$191,K592='EXPENSE DATABASE'!$V$192,K592='EXPENSE DATABASE'!$V$193,K592='EXPENSE DATABASE'!$V$194,K592='EXPENSE DATABASE'!$X$187,K592='EXPENSE DATABASE'!$X$188,K592='EXPENSE DATABASE'!$X$189,K592='EXPENSE DATABASE'!$X$190,K592='EXPENSE DATABASE'!$X$191,K592='EXPENSE DATABASE'!$X$192,K592='EXPENSE DATABASE'!$X$193,K592='EXPENSE DATABASE'!$X$194,K592='EXPENSE DATABASE'!$Z$187,K592='EXPENSE DATABASE'!$Z$188,K592='EXPENSE DATABASE'!$Z$189,K592='EXPENSE DATABASE'!$Z$190,K592='EXPENSE DATABASE'!$Z$191,K592='EXPENSE DATABASE'!$Z$192,K592='EXPENSE DATABASE'!$Z$193,K592='EXPENSE DATABASE'!$Z$194),O592,\"\")","v":""},{"$f":"IF(OR(K592='EXPENSE DATABASE'!$T$189,K592='EXPENSE DATABASE'!$T$190,K592='EXPENSE DATABASE'!$T$191),O592,\"\")","v":""},{"$f":"VLOOKUP(I592,'EXPENSE DATABASE'!$B$41:$C$65,2,FALSE)","v":{"$error":"#N/A"}},100,{"$f":"VLOOKUP(J592,'EXPENSE DATABASE'!$B$69:$C$168,2,FALSE)","v":{"$error":"#N/A"}},101,{"$f":"VLOOKUP(K592,'EXPENSE DATABASE'!$B$6:$C$35,2,FALSE)","v":{"$error":"#N/A"}},31,{"$f":"VLOOKUP(L592,'EXPENSE DATABASE'!$B$173:$C$176,2,FALSE)","v":{"$error":"#N/A"}},100,0,0,{"$f":"IF(L592=T('EXPENSE DATABASE'!$E$173),O592,0)","v":0},{"$f":"IF(L592=T('EXPENSE DATABASE'!$E$174),O592,0)","v":0},{"$f":"IF(L592=T('EXPENSE DATABASE'!$E$175),O592,0)","v":0},0,579]
[{"$f":"IF(COUNTA(#REF!,#REF!,#REF!,#REF!,#REF!,#REF!,#REF!,#REF!,#REF!,#REF!,#REF!)>0,1,0)","v":1},{"$f":"IF((COUNTA(#REF!)=4),1,-1)*A593","v":-1},{"$nulls":12},{"v":0,"d":"$0.00"},{"v":0,"d":"$0.00"},{"v":0,"d":"$0.00"},0,{"$f":"IF(OR(K593='EXPENSE DATABASE'!$V$187,K593='EXPENSE DATABASE'!$V$188,K593='EXPENSE DATABASE'!$V$189,K593='EXPENSE DATABASE'!$V$190,K593='EXPENSE DATABASE'!$V$191,K593='EXPENSE DATABASE'!$V$192,K593='EXPENSE DATABASE'!$V$193,K593='EXPENSE DATABASE'!$V$194,K593='EXPENSE DATABASE'!$X$187,K593='EXPENSE DATABASE'!$X$188,K593='EXPENSE DATABASE'!$X$189,K593='EXPENSE DATABASE'!$X$190,K593='EXPENSE DATABASE'!$X$191,K593='EXPENSE DATABASE'!$X$192,K593='EXPENSE DATABASE'!$X$193,K593='EXPENSE DATABASE'!$X$194,K593='EXPENSE DATABASE'!$Z$187,K593='EXPENSE DATABASE'!$Z$188,K593='EXPENSE DATABASE'!$Z$189,K593='EXPENSE DATABASE'!$Z$190,K593='EXPENSE DATABASE'!$Z$191,K593='EXPENSE DATABASE'!$Z$192,K593='EXPENSE DATABASE'!$Z$193,K593='EXPENSE DATABASE'!$Z$194),O593,\"\")","v":""},{"$f":"IF(OR(K593='EXPENSE DATABASE'!$T$189,K593='EXPENSE DATABASE'!$T$190,K593='EXPENSE DATABASE'!$T$191),O593,\"\")","v":""},{"$f":"VLOOKUP(I593,'EXPENSE DATABASE'!$B$41:$C$65,2,FALSE)","v":{"$error":"#N/A"}},100,{"$f":"VLOOKUP(J593,'EXPENSE DATABASE'!$B$69:$C$168,2,FALSE)","v":{"$error":"#N/A"}},101,{"$f":"VLOOKUP(K593,'EXPENSE DATABASE'!$B$6:$C$35,2,FALSE)","v":{"$error":"#N/A"}},31,{"$f":"VLOOKUP(L593,'EXPENSE DATABASE'!$B$173:$C$176,2,FALSE)","v":{"$error":"#N/A"}},100,0,0,{"$f":"IF(L593=T('EXPENSE DATABASE'!$E$173),O593,0)","v":0},{"$f":"IF(L593=T('EXPENSE DATABASE'!$E$174),O593,0)","v":0},{"$f":"IF(L593=T('EXPENSE DATABASE'!$E$175),O593,0)","v":0},0,580]
[{"$f":"IF(COUNTA(#REF!,#REF!,#REF!,#REF!,#REF!,#REF!,#REF!,#REF!,#REF!,#REF!,#REF!)>0,1,0)","v":1},{"$f":"IF((COUNTA(#REF!)=4),1,-1)*A594","v":-1},{"$nulls":12},{"v":0,"d":"$0.00"},{"v":0,"d":"$0.00"},{"v":0,"d":"$0.00"},0,{"$f":"IF(OR(K594='EXPENSE DATABASE'!$V$187,K594='EXPENSE DATABASE'!$V$188,K594='EXPENSE DATABASE'!$V$189,K594='EXPENSE DATABASE'!$V$190,K594='EXPENSE DATABASE'!$V$191,K594='EXPENSE DATABASE'!$V$192,K594='EXPENSE DATABASE'!$V$193,K594='EXPENSE DATABASE'!$V$194,K594='EXPENSE DATABASE'!$X$187,K594='EXPENSE DATABASE'!$X$188,K594='EXPENSE DATABASE'!$X$189,K594='EXPENSE DATABASE'!$X$190,K594='EXPENSE DATABASE'!$X$191,K594='EXPENSE DATABASE'!$X$192,K594='EXPENSE DATABASE'!$X$193,K594='EXPENSE DATABASE'!$X$194,K594='EXPENSE DATABASE'!$Z$187,K594='EXPENSE DATABASE'!$Z$188,K594='EXPENSE DATABASE'!$Z$189,K594='EXPENSE DATABASE'!$Z$190,K594='EXPENSE DATABASE'!$Z$191,K594='EXPENSE DATABASE'!$Z$192,K594='EXPENSE DATABASE'!$Z$193,K594='EXPENSE DATABASE'!$Z$194),O594,\"\")","v":""},{"$f":"IF(OR(K594='EXPENSE DATABASE'!$T$189,K594='EXPENSE DATABASE'!$T$190,K594='EXPENSE DATABASE'!$T$191),O594,\"\")","v":""},{"$f":"VLOOKUP(I594,'EXPENSE DATABASE'!$B$41:$C$65,2,FALSE)","v":{"$error":"#N/A"}},100,{"$f":"VLOOKUP(J594,'EXPENSE DATABASE'!$B$69:$C$168,2,FALSE)","v":{"$error":"#N/A"}},101,{"$f":"VLOOKUP(K594,'EXPENSE DATABASE'!$B$6:$C$35,2,FALSE)","v":{"$error":"#N/A"}},31,{"$f":"VLOOKUP(L594,'EXPENSE DATABASE'!$B$173:$C$176,2,FALSE)","v":{"$error":"#N/A"}},100,0,0,{"$f":"IF(L594=T('EXPENSE DATABASE'!$E$173),O594,0)","v":0},{"$f":"IF(L594=T('EXPENSE DATABASE'!$E$174),O594,0)","v":0},{"$f":"IF(L594=T('EXPENSE DATABASE'!$E$175),O594,0)","v":0},0,581]
[{"$f":"IF(COUNTA(#REF!,#REF!,#REF!,#REF!,#REF!,#REF!,#REF!,#REF!,#REF!,#REF!,#REF!)>0,1,0)","v":1},{"$f":"IF((COUNTA(#REF!)=4),1,-1)*A595","v":-1},{"$nulls":12},{"v":0,"d":"$0.00"},{"v":0,"d":"$0.00"},{"v":0,"d":"$0.00"},0,{"$f":"IF(OR(K595='EXPENSE DATABASE'!$V$187,K595='EXPENSE DATABASE'!$V$188,K595='EXPENSE DATABASE'!$V$189,K595='EXPENSE DATABASE'!$V$190,K595='EXPENSE DATABASE'!$V$191,K595='EXPENSE DATABASE'!$V$192,K595='EXPENSE DATABASE'!$V$193,K595='EXPENSE DATABASE'!$V$194,K595='EXPENSE DATABASE'!$X$187,K595='EXPENSE DATABASE'!$X$188,K595='EXPENSE DATABASE'!$X$189,K595='EXPENSE DATABASE'!$X$190,K595='EXPENSE DATABASE'!$X$191,K595='EXPENSE DATABASE'!$X$192,K595='EXPENSE DATABASE'!$X$193,K595='EXPENSE DATABASE'!$X$194,K595='EXPENSE DATABASE'!$Z$187,K595='EXPENSE DATABASE'!$Z$188,K595='EXPENSE DATABASE'!$Z$189,K595='EXPENSE DATABASE'!$Z$190,K595='EXPENSE DATABASE'!$Z$191,K595='EXPENSE DATABASE'!$Z$192,K595='EXPENSE DATABASE'!$Z$193,K595='EXPENSE DATABASE'!$Z$194),O595,\"\")","v":""},{"$f":"IF(OR(K595='EXPENSE DATABASE'!$T$189,K595='EXPENSE DATABASE'!$T$190,K595='EXPENSE DATABASE'!$T$191),O595,\"\")","v":""},{"$f":"VLOOKUP(I595,'EXPENSE DATABASE'!$B$41:$C$65,2,FALSE)","v":{"$error":"#N/A"}},100,{"$f":"VLOOKUP(J595,'EXPENSE DATABASE'!$B$69:$C$168,2,FALSE)","v":{"$error":"#N/A"}},101,{"$f":"VLOOKUP(K595,'EXPENSE DATABASE'!$B$6:$C$35,2,FALSE)","v":{"$error":"#N/A"}},31,{"$f":"VLOOKUP(L595,'EXPENSE DATABASE'!$B$173:$C$176,2,FALSE)","v":{"$error":"#N/A"}},100,0,0,{"$f":"IF(L595=T('EXPENSE DATABASE'!$E$173),O595,0)","v":0},{"$f":"IF(L595=T('EXPENSE DATABASE'!$E$174),O595,0)","v":0},{"$f":"IF(L595=T('EXPENSE DATABASE'!$E$175),O595,0)","v":0},0,582]
[{"$f":"IF(COUNTA(#REF!,#REF!,#REF!,#REF!,#REF!,#REF!,#REF!,#REF!,#REF!,#REF!,#REF!)>0,1,0)","v":1},{"$f":"IF((COUNTA(#REF!)=4),1,-1)*A596","v":-1},{"$nulls":12},{"v":0,"d":"$0.00"},{"v":0,"d":"$0.00"},{"v":0,"d":"$0.00"},0,{"$f":"IF(OR(K596='EXPENSE DATABASE'!$V$187,K596='EXPENSE DATABASE'!$V$188,K596='EXPENSE DATABASE'!$V$189,K596='EXPENSE DATABASE'!$V$190,K596='EXPENSE DATABASE'!$V$191,K596='EXPENSE DATABASE'!$V$192,K596='EXPENSE DATABASE'!$V$193,K596='EXPENSE DATABASE'!$V$194,K596='EXPENSE DATABASE'!$X$187,K596='EXPENSE DATABASE'!$X$188,K596='EXPENSE DATABASE'!$X$189,K596='EXPENSE DATABASE'!$X$190,K596='EXPENSE DATABASE'!$X$191,K596='EXPENSE DATABASE'!$X$192,K596='EXPENSE DATABASE'!$X$193,K596='EXPENSE DATABASE'!$X$194,K596='EXPENSE DATABASE'!$Z$187,K596='EXPENSE DATABASE'!$Z$188,K596='EXPENSE DATABASE'!$Z$189,K596='EXPENSE DATABASE'!$Z$190,K596='EXPENSE DATABASE'!$Z$191,K596='EXPENSE DATABASE'!$Z$192,K596='EXPENSE DATABASE'!$Z$193,K596='EXPENSE DATABASE'!$Z$194),O596,\"\")","v":""},{"$f":"IF(OR(K596='EXPENSE DATABASE'!$T$189,K596='EXPENSE DATABASE'!$T$190,K596='EXPENSE DATABASE'!$T$191),O596,\"\")","v":""},{"$f":"VLOOKUP(I596,'EXPENSE DATABASE'!$B$41:$C$65,2,FALSE)","v":{"$error":"#N/A"}},100,{"$f":"VLOOKUP(J596,'EXPENSE DATABASE'!$B$69:$C$168,2,FALSE)","v":{"$error":"#N/A"}},101,{"$f":"VLOOKUP(K596,'EXPENSE DATABASE'!$B$6:$C$35,2,FALSE)","v":{"$error":"#N/A"}},31,{"$f":"VLOOKUP(L596,'EXPENSE DATABASE'!$B$173:$C$176,2,FALSE)","v":{"$error":"#N/A"}},100,0,0,{"$f":"IF(L596=T('EXPENSE DATABASE'!$E$173),O596,0)","v":0},{"$f":"IF(L596=T('EXPENSE DATABASE'!$E$174),O596,0)","v":0},{"$f":"IF(L596=T('EXPENSE DATABASE'!$E$175),O596,0)","v":0},0,583]
[{"$f":"IF(COUNTA(#REF!,#REF!,#REF!,#REF!,#REF!,#REF!,#REF!,#REF!,#REF!,#REF!,#REF!)>0,1,0)","v":1},{"$f":"IF((COUNTA(#REF!)=4),1,-1)*A597","v":-1},{"$nulls":12},{"v":0,"d":"$0.00"},{"v":0,"d":"$0.00"},{"v":0,"d":"$0.00"},0,{"$f":"IF(OR(K597='EXPENSE DATABASE'!$V$187,K597='EXPENSE DATABASE'!$V$188,K597='EXPENSE DATABASE'!$V$189,K597='EXPENSE DATABASE'!$V$190,K597='EXPENSE DATABASE'!$V$191,K597='EXPENSE DATABASE'!$V$192,K597='EXPENSE DATABASE'!$V$193,K597='EXPENSE DATABASE'!$V$194,K597='EXPENSE DATABASE'!$X$187,K597='EXPENSE DATABASE'!$X$188,K597='EXPENSE DATABASE'!$X$189,K597='EXPENSE DATABASE'!$X$190,K597='EXPENSE DATABASE'!$X$191,K597='EXPENSE DATABASE'!$X$192,K597='EXPENSE DATABASE'!$X$193,K597='EXPENSE DATABASE'!$X$194,K597='EXPENSE DATABASE'!$Z$187,K597='EXPENSE DATABASE'!$Z$188,K597='EXPENSE DATABASE'!$Z$189,K597='EXPENSE DATABASE'!$Z$190,K597='EXPENSE DATABASE'!$Z$191,K597='EXPENSE DATABASE'!$Z$192,K597='EXPENSE DATABASE'!$Z$193,K597='EXPENSE DATABASE'!$Z$194),O597,\"\")","v":""},{"$f":"IF(OR(K597='EXPENSE DATABASE'!$T$189,K597='EXPENSE DATABASE'!$T$190,K597='EXPENSE DATABASE'!$T$191),O597,\"\")","v":""},{"$f":"VLOOKUP(I597,'EXPENSE DATABASE'!$B$41:$C$65,2,FALSE)","v":{"$error":"#N/A"}},100,{"$f":"VLOOKUP(J597,'EXPENSE DATABASE'!$B$69:$C$168,2,FALSE)","v":{"$error":"#N/A"}},101,{"$f":"VLOOKUP(K597,'EXPENSE DATABASE'!$B$6:$C$35,2,FALSE)","v":{"$error":"#N/A"}},31,{"$f":"VLOOKUP(L597,'EXPENSE DATABASE'!$B$173:$C$176,2,FALSE)","v":{"$error":"#N/A"}},100,0,0,{"$f":"IF(L597=T('EXPENSE DATABASE'!$E$173),O597,0)","v":0},{"$f":"IF(L597=T('EXPENSE DATABASE'!$E$174),O597,0)","v":0},{"$f":"IF(L597=T('EXPENSE DATABASE'!$E$175),O597,0)","v":0},0,584]
[{"$f":"IF(COUNTA(#REF!,#REF!,#REF!,#REF!,#REF!,#REF!,#REF!,#REF!,#REF!,#REF!,#REF!)>0,1,0)","v":1},{"$f":"IF((COUNTA(#REF!)=4),1,-1)*A598","v":-1},{"$nulls":12},{"v":0,"d":"$0.00"},{"v":0,"d":"$0.00"},{"v":0,"d":"$0.00"},0,{"$f":"IF(OR(K598='EXPENSE DATABASE'!$V$187,K598='EXPENSE DATABASE'!$V$188,K598='EXPENSE DATABASE'!$V$189,K598='EXPENSE DATABASE'!$V$190,K598='EXPENSE DATABASE'!$V$191,K598='EXPENSE DATABASE'!$V$192,K598='EXPENSE DATABASE'!$V$193,K598='EXPENSE DATABASE'!$V$194,K598='EXPENSE DATABASE'!$X$187,K598='EXPENSE DATABASE'!$X$188,K598='EXPENSE DATABASE'!$X$189,K598='EXPENSE DATABASE'!$X$190,K598='EXPENSE DATABASE'!$X$191,K598='EXPENSE DATABASE'!$X$192,K598='EXPENSE DATABASE'!$X$193,K598='EXPENSE DATABASE'!$X$194,K598='EXPENSE DATABASE'!$Z$187,K598='EXPENSE DATABASE'!$Z$188,K598='EXPENSE DATABASE'!$Z$189,K598='EXPENSE DATABASE'!$Z$190,K598='EXPENSE DATABASE'!$Z$191,K598='EXPENSE DATABASE'!$Z$192,K598='EXPENSE DATABASE'!$Z$193,K598='EXPENSE DATABASE'!$Z$194),O598,\"\")","v":""},{"$f":"IF(OR(K598='EXPENSE DATABASE'!$T$189,K598='EXPENSE DATABASE'!$T$190,K598='EXPENSE DATABASE'!$T$191),O598,\"\")","v":""},{"$f":"VLOOKUP(I598,'EXPENSE DATABASE'!$B$41:$C$65,2,FALSE)","v":{"$error":"#N/A"}},100,{"$f":"VLOOKUP(J598,'EXPENSE DATABASE'!$B$69:$C$168,2,FALSE)","v":{"$error":"#N/A"}},101,{"$f":"VLOOKUP(K598,'EXPENSE DATABASE'!$B$6:$C$35,2,FALSE)","v":{"$error":"#N/A"}},31,{"$f":"VLOOKUP(L598,'EXPENSE DATABASE'!$B$173:$C$176,2,FALSE)","v":{"$error":"#N/A"}},100,0,0,{"$f":"IF(L598=T('EXPENSE DATABASE'!$E$173),O598,0)","v":0},{"$f":"IF(L598=T('EXPENSE DATABASE'!$E$174),O598,0)","v":0},{"$f":"IF(L598=T('EXPENSE DATABASE'!$E$175),O598,0)","v":0},0,585]
[{"$f":"IF(COUNTA(#REF!,#REF!,#REF!,#REF!,#REF!,#REF!,#REF!,#REF!,#REF!,#REF!,#REF!)>0,1,0)","v":1},{"$f":"IF((COUNTA(#REF!)=4),1,-1)*A599","v":-1},{"$nulls":12},{"v":0,"d":"$0.00"},{"v":0,"d":"$0.00"},{"v":0,"d":"$0.00"},0,{"$f":"IF(OR(K599='EXPENSE DATABASE'!$V$187,K599='EXPENSE DATABASE'!$V$188,K599='EXPENSE DATABASE'!$V$189,K599='EXPENSE DATABASE'!$V$190,K599='EXPENSE DATABASE'!$V$191,K599='EXPENSE DATABASE'!$V$192,K599='EXPENSE DATABASE'!$V$193,K599='EXPENSE DATABASE'!$V$194,K599='EXPENSE DATABASE'!$X$187,K599='EXPENSE DATABASE'!$X$188,K599='EXPENSE DATABASE'!$X$189,K599='EXPENSE DATABASE'!$X$190,K599='EXPENSE DATABASE'!$X$191,K599='EXPENSE DATABASE'!$X$192,K599='EXPENSE DATABASE'!$X$193,K599='EXPENSE DATABASE'!$X$194,K599='EXPENSE DATABASE'!$Z$187,K599='EXPENSE DATABASE'!$Z$188,K599='EXPENSE DATABASE'!$Z$189,K599='EXPENSE DATABASE'!$Z$190,K599='EXPENSE DATABASE'!$Z$191,K599='EXPENSE DATABASE'!$Z$192,K599='EXPENSE DATABASE'!$Z$193,K599='EXPENSE DATABASE'!$Z$194),O599,\"\")","v":""},{"$f":"IF(OR(K599='EXPENSE DATABASE'!$T$189,K599='EXPENSE DATABASE'!$T$190,K599='EXPENSE DATABASE'!$T$191),O599,\"\")","v":""},{"$f":"VLOOKUP(I599,'EXPENSE DATABASE'!$B$41:$C$65,2,FALSE)","v":{"$error":"#N/A"}},100,{"$f":"VLOOKUP(J599,'EXPENSE DATABASE'!$B$69:$C$168,2,FALSE)","v":{"$error":"#N/A"}},101,{"$f":"VLOOKUP(K599,'EXPENSE DATABASE'!$B$6:$C$35,2,FALSE)","v":{"$error":"#N/A"}},31,{"$f":"VLOOKUP(L599,'EXPENSE DATABASE'!$B$173:$C$176,2,FALSE)","v":{"$error":"#N/A"}},100,0,0,{"$f":"IF(L599=T('EXPENSE DATABASE'!$E$173),O599,0)","v":0},{"$f":"IF(L599=T('EXPENSE DATABASE'!$E$174),O599,0)","v":0},{"$f":"IF(L599=T('EXPENSE DATABASE'!$E$175),O599,0)","v":0},0,586]
[{"$f":"IF(COUNTA(#REF!,#REF!,#REF!,#REF!,#REF!,#REF!,#REF!,#REF!,#REF!,#REF!,#REF!)>0,1,0)","v":1},{"$f":"IF((COUNTA(#REF!)=4),1,-1)*A600","v":-1},{"$nulls":12},{"v":0,"d":"$0.00"},{"v":0,"d":"$0.00"},{"v":0,"d":"$0.00"},0,{"$f":"IF(OR(K600='EXPENSE DATABASE'!$V$187,K600='EXPENSE DATABASE'!$V$188,K600='EXPENSE DATABASE'!$V$189,K600='EXPENSE DATABASE'!$V$190,K600='EXPENSE DATABASE'!$V$191,K600='EXPENSE DATABASE'!$V$192,K600='EXPENSE DATABASE'!$V$193,K600='EXPENSE DATABASE'!$V$194,K600='EXPENSE DATABASE'!$X$187,K600='EXPENSE DATABASE'!$X$188,K600='EXPENSE DATABASE'!$X$189,K600='EXPENSE DATABASE'!$X$190,K600='EXPENSE DATABASE'!$X$191,K600='EXPENSE DATABASE'!$X$192,K600='EXPENSE DATABASE'!$X$193,K600='EXPENSE DATABASE'!$X$194,K600='EXPENSE DATABASE'!$Z$187,K600='EXPENSE DATABASE'!$Z$188,K600='EXPENSE DATABASE'!$Z$189,K600='EXPENSE DATABASE'!$Z$190,K600='EXPENSE DATABASE'!$Z$191,K600='EXPENSE DATABASE'!$Z$192,K600='EXPENSE DATABASE'!$Z$193,K600='EXPENSE DATABASE'!$Z$194),O600,\"\")","v":""},{"$f":"IF(OR(K600='EXPENSE DATABASE'!$T$189,K600='EXPENSE DATABASE'!$T$190,K600='EXPENSE DATABASE'!$T$191),O600,\"\")","v":""},{"$f":"VLOOKUP(I600,'EXPENSE DATABASE'!$B$41:$C$65,2,FALSE)","v":{"$error":"#N/A"}},100,{"$f":"VLOOKUP(J600,'EXPENSE DATABASE'!$B$69:$C$168,2,FALSE)","v":{"$error":"#N/A"}},101,{"$f":"VLOOKUP(K600,'EXPENSE DATABASE'!$B$6:$C$35,2,FALSE)","v":{"$error":"#N/A"}},31,{"$f":"VLOOKUP(L600,'EXPENSE DATABASE'!$B$173:$C$176,2,FALSE)","v":{"$error":"#N/A"}},100,0,0,{"$f":"IF(L600=T('EXPENSE DATABASE'!$E$173),O600,0)","v":0},{"$f":"IF(L600=T('EXPENSE DATABASE'!$E$174),O600,0)","v":0},{"$f":"IF(L600=T('EXPENSE DATABASE'!$E$175),O600,0)","v":0},0,587]
[{"$f":"IF(COUNTA(#REF!,#REF!,#REF!,#REF!,#REF!,#REF!,#REF!,#REF!,#REF!,#REF!,#REF!)>0,1,0)","v":1},{"$f":"IF((COUNTA(#REF!)=4),1,-1)*A601","v":-1},{"$nulls":12},{"v":0,"d":"$0.00"},{"v":0,"d":"$0.00"},{"v":0,"d":"$0.00"},0,{"$f":"IF(OR(K601='EXPENSE DATABASE'!$V$187,K601='EXPENSE DATABASE'!$V$188,K601='EXPENSE DATABASE'!$V$189,K601='EXPENSE DATABASE'!$V$190,K601='EXPENSE DATABASE'!$V$191,K601='EXPENSE DATABASE'!$V$192,K601='EXPENSE DATABASE'!$V$193,K601='EXPENSE DATABASE'!$V$194,K601='EXPENSE DATABASE'!$X$187,K601='EXPENSE DATABASE'!$X$188,K601='EXPENSE DATABASE'!$X$189,K601='EXPENSE DATABASE'!$X$190,K601='EXPENSE DATABASE'!$X$191,K601='EXPENSE DATABASE'!$X$192,K601='EXPENSE DATABASE'!$X$193,K601='EXPENSE DATABASE'!$X$194,K601='EXPENSE DATABASE'!$Z$187,K601='EXPENSE DATABASE'!$Z$188,K601='EXPENSE DATABASE'!$Z$189,K601='EXPENSE DATABASE'!$Z$190,K601='EXPENSE DATABASE'!$Z$191,K601='EXPENSE DATABASE'!$Z$192,K601='EXPENSE DATABASE'!$Z$193,K601='EXPENSE DATABASE'!$Z$194),O601,\"\")","v":""},{"$f":"IF(OR(K601='EXPENSE DATABASE'!$T$189,K601='EXPENSE DATABASE'!$T$190,K601='EXPENSE DATABASE'!$T$191),O601,\"\")","v":""},{"$f":"VLOOKUP(I601,'EXPENSE DATABASE'!$B$41:$C$65,2,FALSE)","v":{"$error":"#N/A"}},100,{"$f":"VLOOKUP(J601,'EXPENSE DATABASE'!$B$69:$C$168,2,FALSE)","v":{"$error":"#N/A"}},101,{"$f":"VLOOKUP(K601,'EXPENSE DATABASE'!$B$6:$C$35,2,FALSE)","v":{"$error":"#N/A"}},31,{"$f":"VLOOKUP(L601,'EXPENSE DATABASE'!$B$173:$C$176,2,FALSE)","v":{"$error":"#N/A"}},100,0,0,{"$f":"IF(L601=T('EXPENSE DATABASE'!$E$173),O601,0)","v":0},{"$f":"IF(L601=T('EXPENSE DATABASE'!$E$174),O601,0)","v":0},{"$f":"IF(L601=T('EXPENSE DATABASE'!$E$175),O601,0)","v":0},0,588]
[{"$f":"IF(COUNTA(#REF!,#REF!,#REF!,#REF!,#REF!,#REF!,#REF!,#REF!,#REF!,#REF!,#REF!)>0,1,0)","v":1},{"$f":"IF((COUNTA(#REF!)=4),1,-1)*A602","v":-1},{"$nulls":12},{"v":0,"d":"$0.00"},{"v":0,"d":"$0.00"},{"v":0,"d":"$0.00"},0,{"$f":"IF(OR(K602='EXPENSE DATABASE'!$V$187,K602='EXPENSE DATABASE'!$V$188,K602='EXPENSE DATABASE'!$V$189,K602='EXPENSE DATABASE'!$V$190,K602='EXPENSE DATABASE'!$V$191,K602='EXPENSE DATABASE'!$V$192,K602='EXPENSE DATABASE'!$V$193,K602='EXPENSE DATABASE'!$V$194,K602='EXPENSE DATABASE'!$X$187,K602='EXPENSE DATABASE'!$X$188,K602='EXPENSE DATABASE'!$X$189,K602='EXPENSE DATABASE'!$X$190,K602='EXPENSE DATABASE'!$X$191,K602='EXPENSE DATABASE'!$X$192,K602='EXPENSE DATABASE'!$X$193,K602='EXPENSE DATABASE'!$X$194,K602='EXPENSE DATABASE'!$Z$187,K602='EXPENSE DATABASE'!$Z$188,K602='EXPENSE DATABASE'!$Z$189,K602='EXPENSE DATABASE'!$Z$190,K602='EXPENSE DATABASE'!$Z$191,K602='EXPENSE DATABASE'!$Z$192,K602='EXPENSE DATABASE'!$Z$193,K602='EXPENSE DATABASE'!$Z$194),O602,\"\")","v":""},{"$f":"IF(OR(K602='EXPENSE DATABASE'!$T$189,K602='EXPENSE DATABASE'!$T$190,K602='EXPENSE DATABASE'!$T$191),O602,\"\")","v":""},{"$f":"VLOOKUP(I602,'EXPENSE DATABASE'!$B$41:$C$65,2,FALSE)","v":{"$error":"#N/A"}},100,{"$f":"VLOOKUP(J602,'EXPENSE DATABASE'!$B$69:$C$168,2,FALSE)","v":{"$error":"#N/A"}},101,{"$f":"VLOOKUP(K602,'EXPENSE DATABASE'!$B$6:$C$35,2,FALSE)","v":{"$error":"#N/A"}},31,{"$f":"VLOOKUP(L602,'EXPENSE DATABASE'!$B$173:$C$176,2,FALSE)","v":{"$error":"#N/A"}},100,0,0,{"$f":"IF(L602=T('EXPENSE DATABASE'!$E$173),O602,0)","v":0},{"$f":"IF(L602=T('EXPENSE DATABASE'!$E$174),O602,0)","v":0},{"$f":"IF(L602=T('EXPENSE DATABASE'!$E$175),O602,0)","v":0},0,589]
[{"$f":"IF(COUNTA(#REF!,#REF!,#REF!,#REF!,#REF!,#REF!,#REF!,#REF!,#REF!,#REF!,#REF!)>0,1,0)","v":1},{"$f":"IF((COUNTA(#REF!)=4),1,-1)*A603","v":-1},{"$nulls":12},{"v":0,"d":"$0.00"},{"v":0,"d":"$0.00"},{"v":0,"d":"$0.00"},0,{"$f":"IF(OR(K603='EXPENSE DATABASE'!$V$187,K603='EXPENSE DATABASE'!$V$188,K603='EXPENSE DATABASE'!$V$189,K603='EXPENSE DATABASE'!$V$190,K603='EXPENSE DATABASE'!$V$191,K603='EXPENSE DATABASE'!$V$192,K603='EXPENSE DATABASE'!$V$193,K603='EXPENSE DATABASE'!$V$194,K603='EXPENSE DATABASE'!$X$187,K603='EXPENSE DATABASE'!$X$188,K603='EXPENSE DATABASE'!$X$189,K603='EXPENSE DATABASE'!$X$190,K603='EXPENSE DATABASE'!$X$191,K603='EXPENSE DATABASE'!$X$192,K603='EXPENSE DATABASE'!$X$193,K603='EXPENSE DATABASE'!$X$194,K603='EXPENSE DATABASE'!$Z$187,K603='EXPENSE DATABASE'!$Z$188,K603='EXPENSE DATABASE'!$Z$189,K603='EXPENSE DATABASE'!$Z$190,K603='EXPENSE DATABASE'!$Z$191,K603='EXPENSE DATABASE'!$Z$192,K603='EXPENSE DATABASE'!$Z$193,K603='EXPENSE DATABASE'!$Z$194),O603,\"\")","v":""},{"$f":"IF(OR(K603='EXPENSE DATABASE'!$T$189,K603='EXPENSE DATABASE'!$T$190,K603='EXPENSE DATABASE'!$T$191),O603,\"\")","v":""},{"$f":"VLOOKUP(I603,'EXPENSE DATABASE'!$B$41:$C$65,2,FALSE)","v":{"$error":"#N/A"}},100,{"$f":"VLOOKUP(J603,'EXPENSE DATABASE'!$B$69:$C$168,2,FALSE)","v":{"$error":"#N/A"}},101,{"$f":"VLOOKUP(K603,'EXPENSE DATABASE'!$B$6:$C$35,2,FALSE)","v":{"$error":"#N/A"}},31,{"$f":"VLOOKUP(L603,'EXPENSE DATABASE'!$B$173:$C$176,2,FALSE)","v":{"$error":"#N/A"}},100,0,0,{"$f":"IF(L603=T('EXPENSE DATABASE'!$E$173),O603,0)","v":0},{"$f":"IF(L603=T('EXPENSE DATABASE'!$E$174),O603,0)","v":0},{"$f":"IF(L603=T('EXPENSE DATABASE'!$E$175),O603,0)","v":0},0,590]
[{"$f":"IF(COUNTA(#REF!,#REF!,#REF!,#REF!,#REF!,#REF!,#REF!,#REF!,#REF!,#REF!,#REF!)>0,1,0)","v":1},{"$f":"IF((COUNTA(#REF!)=4),1,-1)*A604","v":-1},{"$nulls":12},{"v":0,"d":"$0.00"},{"v":0,"d":"$0.00"},{"v":0,"d":"$0.00"},0,{"$f":"IF(OR(K604='EXPENSE DATABASE'!$V$187,K604='EXPENSE DATABASE'!$V$188,K604='EXPENSE DATABASE'!$V$189,K604='EXPENSE DATABASE'!$V$190,K604='EXPENSE DATABASE'!$V$191,K604='EXPENSE DATABASE'!$V$192,K604='EXPENSE DATABASE'!$V$193,K604='EXPENSE DATABASE'!$V$194,K604='EXPENSE DATABASE'!$X$187,K604='EXPENSE DATABASE'!$X$188,K604='EXPENSE DATABASE'!$X$189,K604='EXPENSE DATABASE'!$X$190,K604='EXPENSE DATABASE'!$X$191,K604='EXPENSE DATABASE'!$X$192,K604='EXPENSE DATABASE'!$X$193,K604='EXPENSE DATABASE'!$X$194,K604='EXPENSE DATABASE'!$Z$187,K604='EXPENSE DATABASE'!$Z$188,K604='EXPENSE DATABASE'!$Z$189,K604='EXPENSE DATABASE'!$Z$190,K604='EXPENSE DATABASE'!$Z$191,K604='EXPENSE DATABASE'!$Z$192,K604='EXPENSE DATABASE'!$Z$193,K604='EXPENSE DATABASE'!$Z$194),O604,\"\")","v":""},{"$f":"IF(OR(K604='EXPENSE DATABASE'!$T$189,K604='EXPENSE DATABASE'!$T$190,K604='EXPENSE DATABASE'!$T$191),O604,\"\")","v":""},{"$f":"VLOOKUP(I604,'EXPENSE DATABASE'!$B$41:$C$65,2,FALSE)","v":{"$error":"#N/A"}},100,{"$f":"VLOOKUP(J604,'EXPENSE DATABASE'!$B$69:$C$168,2,FALSE)","v":{"$error":"#N/A"}},101,{"$f":"VLOOKUP(K604,'EXPENSE DATABASE'!$B$6:$C$35,2,FALSE)","v":{"$error":"#N/A"}},31,{"$f":"VLOOKUP(L604,'EXPENSE DATABASE'!$B$173:$C$176,2,FALSE)","v":{"$error":"#N/A"}},100,0,0,{"$f":"IF(L604=T('EXPENSE DATABASE'!$E$173),O604,0)","v":0},{"$f":"IF(L604=T('EXPENSE DATABASE'!$E$174),O604,0)","v":0},{"$f":"IF(L604=T('EXPENSE DATABASE'!$E$175),O604,0)","v":0},0,591]
[{"$f":"IF(COUNTA(#REF!,#REF!,#REF!,#REF!,#REF!,#REF!,#REF!,#REF!,#REF!,#REF!,#REF!)>0,1,0)","v":1},{"$f":"IF((COUNTA(#REF!)=4),1,-1)*A605","v":-1},{"$nulls":12},{"v":0,"d":"$0.00"},{"v":0,"d":"$0.00"},{"v":0,"d":"$0.00"},0,{"$f":"IF(OR(K605='EXPENSE DATABASE'!$V$187,K605='EXPENSE DATABASE'!$V$188,K605='EXPENSE DATABASE'!$V$189,K605='EXPENSE DATABASE'!$V$190,K605='EXPENSE DATABASE'!$V$191,K605='EXPENSE DATABASE'!$V$192,K605='EXPENSE DATABASE'!$V$193,K605='EXPENSE DATABASE'!$V$194,K605='EXPENSE DATABASE'!$X$187,K605='EXPENSE DATABASE'!$X$188,K605='EXPENSE DATABASE'!$X$189,K605='EXPENSE DATABASE'!$X$190,K605='EXPENSE DATABASE'!$X$191,K605='EXPENSE DATABASE'!$X$192,K605='EXPENSE DATABASE'!$X$193,K605='EXPENSE DATABASE'!$X$194,K605='EXPENSE DATABASE'!$Z$187,K605='EXPENSE DATABASE'!$Z$188,K605='EXPENSE DATABASE'!$Z$189,K605='EXPENSE DATABASE'!$Z$190,K605='EXPENSE DATABASE'!$Z$191,K605='EXPENSE DATABASE'!$Z$192,K605='EXPENSE DATABASE'!$Z$193,K605='EXPENSE DATABASE'!$Z$194),O605,\"\")","v":""},{"$f":"IF(OR(K605='EXPENSE DATABASE'!$T$189,K605='EXPENSE DATABASE'!$T$190,K605='EXPENSE DATABASE'!$T$191),O605,\"\")","v":""},{"$f":"VLOOKUP(I605,'EXPENSE DATABASE'!$B$41:$C$65,2,FALSE)","v":{"$error":"#N/A"}},100,{"$f":"VLOOKUP(J605,'EXPENSE DATABASE'!$B$69:$C$168,2,FALSE)","v":{"$error":"#N/A"}},101,{"$f":"VLOOKUP(K605,'EXPENSE DATABASE'!$B$6:$C$35,2,FALSE)","v":{"$error":"#N/A"}},31,{"$f":"VLOOKUP(L605,'EXPENSE DATABASE'!$B$173:$C$176,2,FALSE)","v":{"$error":"#N/A"}},100,0,0,{"$f":"IF(L605=T('EXPENSE DATABASE'!$E$173),O605,0)","v":0},{"$f":"IF(L605=T('EXPENSE DATABASE'!$E$174),O605,0)","v":0},{"$f":"IF(L605=T('EXPENSE DATABASE'!$E$175),O605,0)","v":0},0,592]
[{"$f":"IF(COUNTA(#REF!,#REF!,#REF!,#REF!,#REF!,#REF!,#REF!,#REF!,#REF!,#REF!,#REF!)>0,1,0)","v":1},{"$f":"IF((COUNTA(#REF!)=4),1,-1)*A606","v":-1},{"$nulls":12},{"v":0,"d":"$0.00"},{"v":0,"d":"$0.00"},{"v":0,"d":"$0.00"},0,{"$f":"IF(OR(K606='EXPENSE DATABASE'!$V$187,K606='EXPENSE DATABASE'!$V$188,K606='EXPENSE DATABASE'!$V$189,K606='EXPENSE DATABASE'!$V$190,K606='EXPENSE DATABASE'!$V$191,K606='EXPENSE DATABASE'!$V$192,K606='EXPENSE DATABASE'!$V$193,K606='EXPENSE DATABASE'!$V$194,K606='EXPENSE DATABASE'!$X$187,K606='EXPENSE DATABASE'!$X$188,K606='EXPENSE DATABASE'!$X$189,K606='EXPENSE DATABASE'!$X$190,K606='EXPENSE DATABASE'!$X$191,K606='EXPENSE DATABASE'!$X$192,K606='EXPENSE DATABASE'!$X$193,K606='EXPENSE DATABASE'!$X$194,K606='EXPENSE DATABASE'!$Z$187,K606='EXPENSE DATABASE'!$Z$188,K606='EXPENSE DATABASE'!$Z$189,K606='EXPENSE DATABASE'!$Z$190,K606='EXPENSE DATABASE'!$Z$191,K606='EXPENSE DATABASE'!$Z$192,K606='EXPENSE DATABASE'!$Z$193,K606='EXPENSE DATABASE'!$Z$194),O606,\"\")","v":""},{"$f":"IF(OR(K606='EXPENSE DATABASE'!$T$189,K606='EXPENSE DATABASE'!$T$190,K606='EXPENSE DATABASE'!$T$191),O606,\"\")","v":""},{"$f":"VLOOKUP(I606,'EXPENSE DATABASE'!$B$41:$C$65,2,FALSE)","v":{"$error":"#N/A"}},100,{"$f":"VLOOKUP(J606,'EXPENSE DATABASE'!$B$69:$C$168,2,FALSE)","v":{"$error":"#N/A"}},101,{"$f":"VLOOKUP(K606,'EXPENSE DATABASE'!$B$6:$C$35,2,FALSE)","v":{"$error":"#N/A"}},31,{"$f":"VLOOKUP(L606,'EXPENSE DATABASE'!$B$173:$C$176,2,FALSE)","v":{"$error":"#N/A"}},100,0,0,{"$f":"IF(L606=T('EXPENSE DATABASE'!$E$173),O606,0)","v":0},{"$f":"IF(L606=T('EXPENSE DATABASE'!$E$174),O606,0)","v":0},{"$f":"IF(L606=T('EXPENSE DATABASE'!$E$175),O606,0)","v":0},0,593]
[{"$f":"IF(COUNTA(#REF!,#REF!,#REF!,#REF!,#REF!,#REF!,#REF!,#REF!,#REF!,#REF!,#REF!)>0,1,0)","v":1},{"$f":"IF((COUNTA(#REF!)=4),1,-1)*A607","v":-1},{"$nulls":12},{"v":0,"d":"$0.00"},{"v":0,"d":"$0.00"},{"v":0,"d":"$0.00"},0,{"$f":"IF(OR(K607='EXPENSE DATABASE'!$V$187,K607='EXPENSE DATABASE'!$V$188,K607='EXPENSE DATABASE'!$V$189,K607='EXPENSE DATABASE'!$V$190,K607='EXPENSE DATABASE'!$V$191,K607='EXPENSE DATABASE'!$V$192,K607='EXPENSE DATABASE'!$V$193,K607='EXPENSE DATABASE'!$V$194,K607='EXPENSE DATABASE'!$X$187,K607='EXPENSE DATABASE'!$X$188,K607='EXPENSE DATABASE'!$X$189,K607='EXPENSE DATABASE'!$X$190,K607='EXPENSE DATABASE'!$X$191,K607='EXPENSE DATABASE'!$X$192,K607='EXPENSE DATABASE'!$X$193,K607='EXPENSE DATABASE'!$X$194,K607='EXPENSE DATABASE'!$Z$187,K607='EXPENSE DATABASE'!$Z$188,K607='EXPENSE DATABASE'!$Z$189,K607='EXPENSE DATABASE'!$Z$190,K607='EXPENSE DATABASE'!$Z$191,K607='EXPENSE DATABASE'!$Z$192,K607='EXPENSE DATABASE'!$Z$193,K607='EXPENSE DATABASE'!$Z$194),O607,\"\")","v":""},{"$f":"IF(OR(K607='EXPENSE DATABASE'!$T$189,K607='EXPENSE DATABASE'!$T$190,K607='EXPENSE DATABASE'!$T$191),O607,\"\")","v":""},{"$f":"VLOOKUP(I607,'EXPENSE DATABASE'!$B$41:$C$65,2,FALSE)","v":{"$error":"#N/A"}},100,{"$f":"VLOOKUP(J607,'EXPENSE DATABASE'!$B$69:$C$168,2,FALSE)","v":{"$error":"#N/A"}},101,{"$f":"VLOOKUP(K607,'EXPENSE DATABASE'!$B$6:$C$35,2,FALSE)","v":{"$error":"#N/A"}},31,{"$f":"VLOOKUP(L607,'EXPENSE DATABASE'!$B$173:$C$176,2,FALSE)","v":{"$error":"#N/A"}},100,0,0,{"$f":"IF(L607=T('EXPENSE DATABASE'!$E$173),O607,0)","v":0},{"$f":"IF(L607=T('EXPENSE DATABASE'!$E$174),O607,0)","v":0},{"$f":"IF(L607=T('EXPENSE DATABASE'!$E$175),O607,0)","v":0},0,594]
[{"$f":"IF(COUNTA(#REF!,#REF!,#REF!,#REF!,#REF!,#REF!,#REF!,#REF!,#REF!,#REF!,#REF!)>0,1,0)","v":1},{"$f":"IF((COUNTA(#REF!)=4),1,-1)*A608","v":-1},{"$nulls":12},{"v":0,"d":"$0.00"},{"v":0,"d":"$0.00"},{"v":0,"d":"$0.00"},0,{"$f":"IF(OR(K608='EXPENSE DATABASE'!$V$187,K608='EXPENSE DATABASE'!$V$188,K608='EXPENSE DATABASE'!$V$189,K608='EXPENSE DATABASE'!$V$190,K608='EXPENSE DATABASE'!$V$191,K608='EXPENSE DATABASE'!$V$192,K608='EXPENSE DATABASE'!$V$193,K608='EXPENSE DATABASE'!$V$194,K608='EXPENSE DATABASE'!$X$187,K608='EXPENSE DATABASE'!$X$188,K608='EXPENSE DATABASE'!$X$189,K608='EXPENSE DATABASE'!$X$190,K608='EXPENSE DATABASE'!$X$191,K608='EXPENSE DATABASE'!$X$192,K608='EXPENSE DATABASE'!$X$193,K608='EXPENSE DATABASE'!$X$194,K608='EXPENSE DATABASE'!$Z$187,K608='EXPENSE DATABASE'!$Z$188,K608='EXPENSE DATABASE'!$Z$189,K608='EXPENSE DATABASE'!$Z$190,K608='EXPENSE DATABASE'!$Z$191,K608='EXPENSE DATABASE'!$Z$192,K608='EXPENSE DATABASE'!$Z$193,K608='EXPENSE DATABASE'!$Z$194),O608,\"\")","v":""},{"$f":"IF(OR(K608='EXPENSE DATABASE'!$T$189,K608='EXPENSE DATABASE'!$T$190,K608='EXPENSE DATABASE'!$T$191),O608,\"\")","v":""},{"$f":"VLOOKUP(I608,'EXPENSE DATABASE'!$B$41:$C$65,2,FALSE)","v":{"$error":"#N/A"}},100,{"$f":"VLOOKUP(J608,'EXPENSE DATABASE'!$B$69:$C$168,2,FALSE)","v":{"$error":"#N/A"}},101,{"$f":"VLOOKUP(K608,'EXPENSE DATABASE'!$B$6:$C$35,2,FALSE)","v":{"$error":"#N/A"}},31,{"$f":"VLOOKUP(L608,'EXPENSE DATABASE'!$B$173:$C$176,2,FALSE)","v":{"$error":"#N/A"}},100,0,0,{"$f":"IF(L608=T('EXPENSE DATABASE'!$E$173),O608,0)","v":0},{"$f":"IF(L608=T('EXPENSE DATABASE'!$E$174),O608,0)","v":0},{"$f":"IF(L608=T('EXPENSE DATABASE'!$E$175),O608,0)","v":0},0,595]
[{"$f":"IF(COUNTA(#REF!,#REF!,#REF!,#REF!,#REF!,#REF!,#REF!,#REF!,#REF!,#REF!,#REF!)>0,1,0)","v":1},{"$f":"IF((COUNTA(#REF!)=4),1,-1)*A609","v":-1},{"$nulls":12},{"v":0,"d":"$0.00"},{"v":0,"d":"$0.00"},{"v":0,"d":"$0.00"},0,{"$f":"IF(OR(K609='EXPENSE DATABASE'!$V$187,K609='EXPENSE DATABASE'!$V$188,K609='EXPENSE DATABASE'!$V$189,K609='EXPENSE DATABASE'!$V$190,K609='EXPENSE DATABASE'!$V$191,K609='EXPENSE DATABASE'!$V$192,K609='EXPENSE DATABASE'!$V$193,K609='EXPENSE DATABASE'!$V$194,K609='EXPENSE DATABASE'!$X$187,K609='EXPENSE DATABASE'!$X$188,K609='EXPENSE DATABASE'!$X$189,K609='EXPENSE DATABASE'!$X$190,K609='EXPENSE DATABASE'!$X$191,K609='EXPENSE DATABASE'!$X$192,K609='EXPENSE DATABASE'!$X$193,K609='EXPENSE DATABASE'!$X$194,K609='EXPENSE DATABASE'!$Z$187,K609='EXPENSE DATABASE'!$Z$188,K609='EXPENSE DATABASE'!$Z$189,K609='EXPENSE DATABASE'!$Z$190,K609='EXPENSE DATABASE'!$Z$191,K609='EXPENSE DATABASE'!$Z$192,K609='EXPENSE DATABASE'!$Z$193,K609='EXPENSE DATABASE'!$Z$194),O609,\"\")","v":""},{"$f":"IF(OR(K609='EXPENSE DATABASE'!$T$189,K609='EXPENSE DATABASE'!$T$190,K609='EXPENSE DATABASE'!$T$191),O609,\"\")","v":""},{"$f":"VLOOKUP(I609,'EXPENSE DATABASE'!$B$41:$C$65,2,FALSE)","v":{"$error":"#N/A"}},100,{"$f":"VLOOKUP(J609,'EXPENSE DATABASE'!$B$69:$C$168,2,FALSE)","v":{"$error":"#N/A"}},101,{"$f":"VLOOKUP(K609,'EXPENSE DATABASE'!$B$6:$C$35,2,FALSE)","v":{"$error":"#N/A"}},31,{"$f":"VLOOKUP(L609,'EXPENSE DATABASE'!$B$173:$C$176,2,FALSE)","v":{"$error":"#N/A"}},100,0,0,{"$f":"IF(L609=T('EXPENSE DATABASE'!$E$173),O609,0)","v":0},{"$f":"IF(L609=T('EXPENSE DATABASE'!$E$174),O609,0)","v":0},{"$f":"IF(L609=T('EXPENSE DATABASE'!$E$175),O609,0)","v":0},0,596]
[{"$f":"IF(COUNTA(#REF!,#REF!,#REF!,#REF!,#REF!,#REF!,#REF!,#REF!,#REF!,#REF!,#REF!)>0,1,0)","v":1},{"$f":"IF((COUNTA(#REF!)=4),1,-1)*A610","v":-1},{"$nulls":12},{"v":0,"d":"$0.00"},{"v":0,"d":"$0.00"},{"v":0,"d":"$0.00"},0,{"$f":"IF(OR(K610='EXPENSE DATABASE'!$V$187,K610='EXPENSE DATABASE'!$V$188,K610='EXPENSE DATABASE'!$V$189,K610='EXPENSE DATABASE'!$V$190,K610='EXPENSE DATABASE'!$V$191,K610='EXPENSE DATABASE'!$V$192,K610='EXPENSE DATABASE'!$V$193,K610='EXPENSE DATABASE'!$V$194,K610='EXPENSE DATABASE'!$X$187,K610='EXPENSE DATABASE'!$X$188,K610='EXPENSE DATABASE'!$X$189,K610='EXPENSE DATABASE'!$X$190,K610='EXPENSE DATABASE'!$X$191,K610='EXPENSE DATABASE'!$X$192,K610='EXPENSE DATABASE'!$X$193,K610='EXPENSE DATABASE'!$X$194,K610='EXPENSE DATABASE'!$Z$187,K610='EXPENSE DATABASE'!$Z$188,K610='EXPENSE DATABASE'!$Z$189,K610='EXPENSE DATABASE'!$Z$190,K610='EXPENSE DATABASE'!$Z$191,K610='EXPENSE DATABASE'!$Z$192,K610='EXPENSE DATABASE'!$Z$193,K610='EXPENSE DATABASE'!$Z$194),O610,\"\")","v":""},{"$f":"IF(OR(K610='EXPENSE DATABASE'!$T$189,K610='EXPENSE DATABASE'!$T$190,K610='EXPENSE DATABASE'!$T$191),O610,\"\")","v":""},{"$f":"VLOOKUP(I610,'EXPENSE DATABASE'!$B$41:$C$65,2,FALSE)","v":{"$error":"#N/A"}},100,{"$f":"VLOOKUP(J610,'EXPENSE DATABASE'!$B$69:$C$168,2,FALSE)","v":{"$error":"#N/A"}},101,{"$f":"VLOOKUP(K610,'EXPENSE DATABASE'!$B$6:$C$35,2,FALSE)","v":{"$error":"#N/A"}},31,{"$f":"VLOOKUP(L610,'EXPENSE DATABASE'!$B$173:$C$176,2,FALSE)","v":{"$error":"#N/A"}},100,0,0,{"$f":"IF(L610=T('EXPENSE DATABASE'!$E$173),O610,0)","v":0},{"$f":"IF(L610=T('EXPENSE DATABASE'!$E$174),O610,0)","v":0},{"$f":"IF(L610=T('EXPENSE DATABASE'!$E$175),O610,0)","v":0},0,597]
[{"$f":"IF(COUNTA(#REF!,#REF!,#REF!,#REF!,#REF!,#REF!,#REF!,#REF!,#REF!,#REF!,#REF!)>0,1,0)","v":1},{"$f":"IF((COUNTA(#REF!)=4),1,-1)*A611","v":-1},{"$nulls":12},{"v":0,"d":"$0.00"},{"v":0,"d":"$0.00"},{"v":0,"d":"$0.00"},0,{"$f":"IF(OR(K611='EXPENSE DATABASE'!$V$187,K611='EXPENSE DATABASE'!$V$188,K611='EXPENSE DATABASE'!$V$189,K611='EXPENSE DATABASE'!$V$190,K611='EXPENSE DATABASE'!$V$191,K611='EXPENSE DATABASE'!$V$192,K611='EXPENSE DATABASE'!$V$193,K611='EXPENSE DATABASE'!$V$194,K611='EXPENSE DATABASE'!$X$187,K611='EXPENSE DATABASE'!$X$188,K611='EXPENSE DATABASE'!$X$189,K611='EXPENSE DATABASE'!$X$190,K611='EXPENSE DATABASE'!$X$191,K611='EXPENSE DATABASE'!$X$192,K611='EXPENSE DATABASE'!$X$193,K611='EXPENSE DATABASE'!$X$194,K611='EXPENSE DATABASE'!$Z$187,K611='EXPENSE DATABASE'!$Z$188,K611='EXPENSE DATABASE'!$Z$189,K611='EXPENSE DATABASE'!$Z$190,K611='EXPENSE DATABASE'!$Z$191,K611='EXPENSE DATABASE'!$Z$192,K611='EXPENSE DATABASE'!$Z$193,K611='EXPENSE DATABASE'!$Z$194),O611,\"\")","v":""},{"$f":"IF(OR(K611='EXPENSE DATABASE'!$T$189,K611='EXPENSE DATABASE'!$T$190,K611='EXPENSE DATABASE'!$T$191),O611,\"\")","v":""},{"$f":"VLOOKUP(I611,'EXPENSE DATABASE'!$B$41:$C$65,2,FALSE)","v":{"$error":"#N/A"}},100,{"$f":"VLOOKUP(J611,'EXPENSE DATABASE'!$B$69:$C$168,2,FALSE)","v":{"$error":"#N/A"}},101,{"$f":"VLOOKUP(K611,'EXPENSE DATABASE'!$B$6:$C$35,2,FALSE)","v":{"$error":"#N/A"}},31,{"$f":"VLOOKUP(L611,'EXPENSE DATABASE'!$B$173:$C$176,2,FALSE)","v":{"$error":"#N/A"}},100,0,0,{"$f":"IF(L611=T('EXPENSE DATABASE'!$E$173),O611,0)","v":0},{"$f":"IF(L611=T('EXPENSE DATABASE'!$E$174),O611,0)","v":0},{"$f":"IF(L611=T('EXPENSE DATABASE'!$E$175),O611,0)","v":0},0,598]
[{"$f":"IF(COUNTA(#REF!,#REF!,#REF!,#REF!,#REF!,#REF!,#REF!,#REF!,#REF!,#REF!,#REF!)>0,1,0)","v":1},{"$f":"IF((COUNTA(#REF!)=4),1,-1)*A612","v":-1},{"$nulls":12},{"v":0,"d":"$0.00"},{"v":0,"d":"$0.00"},{"v":0,"d":"$0.00"},0,{"$f":"IF(OR(K612='EXPENSE DATABASE'!$V$187,K612='EXPENSE DATABASE'!$V$188,K612='EXPENSE DATABASE'!$V$189,K612='EXPENSE DATABASE'!$V$190,K612='EXPENSE DATABASE'!$V$191,K612='EXPENSE DATABASE'!$V$192,K612='EXPENSE DATABASE'!$V$193,K612='EXPENSE DATABASE'!$V$194,K612='EXPENSE DATABASE'!$X$187,K612='EXPENSE DATABASE'!$X$188,K612='EXPENSE DATABASE'!$X$189,K612='EXPENSE DATABASE'!$X$190,K612='EXPENSE DATABASE'!$X$191,K612='EXPENSE DATABASE'!$X$192,K612='EXPENSE DATABASE'!$X$193,K612='EXPENSE DATABASE'!$X$194,K612='EXPENSE DATABASE'!$Z$187,K612='EXPENSE DATABASE'!$Z$188,K612='EXPENSE DATABASE'!$Z$189,K612='EXPENSE DATABASE'!$Z$190,K612='EXPENSE DATABASE'!$Z$191,K612='EXPENSE DATABASE'!$Z$192,K612='EXPENSE DATABASE'!$Z$193,K612='EXPENSE DATABASE'!$Z$194),O612,\"\")","v":""},{"$f":"IF(OR(K612='EXPENSE DATABASE'!$T$189,K612='EXPENSE DATABASE'!$T$190,K612='EXPENSE DATABASE'!$T$191),O612,\"\")","v":""},{"$f":"VLOOKUP(I612,'EXPENSE DATABASE'!$B$41:$C$65,2,FALSE)","v":{"$error":"#N/A"}},100,{"$f":"VLOOKUP(J612,'EXPENSE DATABASE'!$B$69:$C$168,2,FALSE)","v":{"$error":"#N/A"}},101,{"$f":"VLOOKUP(K612,'EXPENSE DATABASE'!$B$6:$C$35,2,FALSE)","v":{"$error":"#N/A"}},31,{"$f":"VLOOKUP(L612,'EXPENSE DATABASE'!$B$173:$C$176,2,FALSE)","v":{"$error":"#N/A"}},100,0,0,{"$f":"IF(L612=T('EXPENSE DATABASE'!$E$173),O612,0)","v":0},{"$f":"IF(L612=T('EXPENSE DATABASE'!$E$174),O612,0)","v":0},{"$f":"IF(L612=T('EXPENSE DATABASE'!$E$175),O612,0)","v":0},0,599]
[{"$f":"IF(COUNTA(#REF!,#REF!,#REF!,#REF!,#REF!,#REF!,#REF!,#REF!,#REF!,#REF!,#REF!)>0,1,0)","v":1},{"$f":"IF((COUNTA(#REF!)=4),1,-1)*A613","v":-1},{"$nulls":12},{"v":0,"d":"$0.00"},{"v":0,"d":"$0.00"},{"v":0,"d":"$0.00"},0,{"$f":"IF(OR(K613='EXPENSE DATABASE'!$V$187,K613='EXPENSE DATABASE'!$V$188,K613='EXPENSE DATABASE'!$V$189,K613='EXPENSE DATABASE'!$V$190,K613='EXPENSE DATABASE'!$V$191,K613='EXPENSE DATABASE'!$V$192,K613='EXPENSE DATABASE'!$V$193,K613='EXPENSE DATABASE'!$V$194,K613='EXPENSE DATABASE'!$X$187,K613='EXPENSE DATABASE'!$X$188,K613='EXPENSE DATABASE'!$X$189,K613='EXPENSE DATABASE'!$X$190,K613='EXPENSE DATABASE'!$X$191,K613='EXPENSE DATABASE'!$X$192,K613='EXPENSE DATABASE'!$X$193,K613='EXPENSE DATABASE'!$X$194,K613='EXPENSE DATABASE'!$Z$187,K613='EXPENSE DATABASE'!$Z$188,K613='EXPENSE DATABASE'!$Z$189,K613='EXPENSE DATABASE'!$Z$190,K613='EXPENSE DATABASE'!$Z$191,K613='EXPENSE DATABASE'!$Z$192,K613='EXPENSE DATABASE'!$Z$193,K613='EXPENSE DATABASE'!$Z$194),O613,\"\")","v":""},{"$f":"IF(OR(K613='EXPENSE DATABASE'!$T$189,K613='EXPENSE DATABASE'!$T$190,K613='EXPENSE DATABASE'!$T$191),O613,\"\")","v":""},{"$f":"VLOOKUP(I613,'EXPENSE DATABASE'!$B$41:$C$65,2,FALSE)","v":{"$error":"#N/A"}},100,{"$f":"VLOOKUP(J613,'EXPENSE DATABASE'!$B$69:$C$168,2,FALSE)","v":{"$error":"#N/A"}},101,{"$f":"VLOOKUP(K613,'EXPENSE DATABASE'!$B$6:$C$35,2,FALSE)","v":{"$error":"#N/A"}},31,{"$f":"VLOOKUP(L613,'EXPENSE DATABASE'!$B$173:$C$176,2,FALSE)","v":{"$error":"#N/A"}},100,0,0,{"$f":"IF(L613=T('EXPENSE DATABASE'!$E$173),O613,0)","v":0},{"$f":"IF(L613=T('EXPENSE DATABASE'!$E$174),O613,0)","v":0},{"$f":"IF(L613=T('EXPENSE DATABASE'!$E$175),O613,0)","v":0},0,600]
[{"$f":"IF(COUNTA(#REF!,#REF!,#REF!,#REF!,#REF!,#REF!,#REF!,#REF!,#REF!,#REF!,#REF!)>0,1,0)","v":1},{"$f":"IF((COUNTA(#REF!)=4),1,-1)*A614","v":-1},{"$nulls":12},{"v":0,"d":"$0.00"},{"v":0,"d":"$0.00"},{"v":0,"d":"$0.00"},0,{"$f":"IF(OR(K614='EXPENSE DATABASE'!$V$187,K614='EXPENSE DATABASE'!$V$188,K614='EXPENSE DATABASE'!$V$189,K614='EXPENSE DATABASE'!$V$190,K614='EXPENSE DATABASE'!$V$191,K614='EXPENSE DATABASE'!$V$192,K614='EXPENSE DATABASE'!$V$193,K614='EXPENSE DATABASE'!$V$194,K614='EXPENSE DATABASE'!$X$187,K614='EXPENSE DATABASE'!$X$188,K614='EXPENSE DATABASE'!$X$189,K614='EXPENSE DATABASE'!$X$190,K614='EXPENSE DATABASE'!$X$191,K614='EXPENSE DATABASE'!$X$192,K614='EXPENSE DATABASE'!$X$193,K614='EXPENSE DATABASE'!$X$194,K614='EXPENSE DATABASE'!$Z$187,K614='EXPENSE DATABASE'!$Z$188,K614='EXPENSE DATABASE'!$Z$189,K614='EXPENSE DATABASE'!$Z$190,K614='EXPENSE DATABASE'!$Z$191,K614='EXPENSE DATABASE'!$Z$192,K614='EXPENSE DATABASE'!$Z$193,K614='EXPENSE DATABASE'!$Z$194),O614,\"\")","v":""},{"$f":"IF(OR(K614='EXPENSE DATABASE'!$T$189,K614='EXPENSE DATABASE'!$T$190,K614='EXPENSE DATABASE'!$T$191),O614,\"\")","v":""},{"$f":"VLOOKUP(I614,'EXPENSE DATABASE'!$B$41:$C$65,2,FALSE)","v":{"$error":"#N/A"}},100,{"$f":"VLOOKUP(J614,'EXPENSE DATABASE'!$B$69:$C$168,2,FALSE)","v":{"$error":"#N/A"}},101,{"$f":"VLOOKUP(K614,'EXPENSE DATABASE'!$B$6:$C$35,2,FALSE)","v":{"$error":"#N/A"}},31,{"$f":"VLOOKUP(L614,'EXPENSE DATABASE'!$B$173:$C$176,2,FALSE)","v":{"$error":"#N/A"}},100,0,0,{"$f":"IF(L614=T('EXPENSE DATABASE'!$E$173),O614,0)","v":0},{"$f":"IF(L614=T('EXPENSE DATABASE'!$E$174),O614,0)","v":0},{"$f":"IF(L614=T('EXPENSE DATABASE'!$E$175),O614,0)","v":0},0,601]
[{"$f":"IF(COUNTA(#REF!,#REF!,#REF!,#REF!,#REF!,#REF!,#REF!,#REF!,#REF!,#REF!,#REF!)>0,1,0)","v":1},{"$f":"IF((COUNTA(#REF!)=4),1,-1)*A615","v":-1},{"$nulls":12},{"v":0,"d":"$0.00"},{"v":0,"d":"$0.00"},{"v":0,"d":"$0.00"},0,{"$f":"IF(OR(K615='EXPENSE DATABASE'!$V$187,K615='EXPENSE DATABASE'!$V$188,K615='EXPENSE DATABASE'!$V$189,K615='EXPENSE DATABASE'!$V$190,K615='EXPENSE DATABASE'!$V$191,K615='EXPENSE DATABASE'!$V$192,K615='EXPENSE DATABASE'!$V$193,K615='EXPENSE DATABASE'!$V$194,K615='EXPENSE DATABASE'!$X$187,K615='EXPENSE DATABASE'!$X$188,K615='EXPENSE DATABASE'!$X$189,K615='EXPENSE DATABASE'!$X$190,K615='EXPENSE DATABASE'!$X$191,K615='EXPENSE DATABASE'!$X$192,K615='EXPENSE DATABASE'!$X$193,K615='EXPENSE DATABASE'!$X$194,K615='EXPENSE DATABASE'!$Z$187,K615='EXPENSE DATABASE'!$Z$188,K615='EXPENSE DATABASE'!$Z$189,K615='EXPENSE DATABASE'!$Z$190,K615='EXPENSE DATABASE'!$Z$191,K615='EXPENSE DATABASE'!$Z$192,K615='EXPENSE DATABASE'!$Z$193,K615='EXPENSE DATABASE'!$Z$194),O615,\"\")","v":""},{"$f":"IF(OR(K615='EXPENSE DATABASE'!$T$189,K615='EXPENSE DATABASE'!$T$190,K615='EXPENSE DATABASE'!$T$191),O615,\"\")","v":""},{"$f":"VLOOKUP(I615,'EXPENSE DATABASE'!$B$41:$C$65,2,FALSE)","v":{"$error":"#N/A"}},100,{"$f":"VLOOKUP(J615,'EXPENSE DATABASE'!$B$69:$C$168,2,FALSE)","v":{"$error":"#N/A"}},101,{"$f":"VLOOKUP(K615,'EXPENSE DATABASE'!$B$6:$C$35,2,FALSE)","v":{"$error":"#N/A"}},31,{"$f":"VLOOKUP(L615,'EXPENSE DATABASE'!$B$173:$C$176,2,FALSE)","v":{"$error":"#N/A"}},100,0,0,{"$f":"IF(L615=T('EXPENSE DATABASE'!$E$173),O615,0)","v":0},{"$f":"IF(L615=T('EXPENSE DATABASE'!$E$174),O615,0)","v":0},{"$f":"IF(L615=T('EXPENSE DATABASE'!$E$175),O615,0)","v":0},0,602]
[{"$f":"IF(COUNTA(#REF!,#REF!,#REF!,#REF!,#REF!,#REF!,#REF!,#REF!,#REF!,#REF!,#REF!)>0,1,0)","v":1},{"$f":"IF((COUNTA(#REF!)=4),1,-1)*A616","v":-1},{"$nulls":12},{"v":0,"d":"$0.00"},{"v":0,"d":"$0.00"},{"v":0,"d":"$0.00"},0,{"$f":"IF(OR(K616='EXPENSE DATABASE'!$V$187,K616='EXPENSE DATABASE'!$V$188,K616='EXPENSE DATABASE'!$V$189,K616='EXPENSE DATABASE'!$V$190,K616='EXPENSE DATABASE'!$V$191,K616='EXPENSE DATABASE'!$V$192,K616='EXPENSE DATABASE'!$V$193,K616='EXPENSE DATABASE'!$V$194,K616='EXPENSE DATABASE'!$X$187,K616='EXPENSE DATABASE'!$X$188,K616='EXPENSE DATABASE'!$X$189,K616='EXPENSE DATABASE'!$X$190,K616='EXPENSE DATABASE'!$X$191,K616='EXPENSE DATABASE'!$X$192,K616='EXPENSE DATABASE'!$X$193,K616='EXPENSE DATABASE'!$X$194,K616='EXPENSE DATABASE'!$Z$187,K616='EXPENSE DATABASE'!$Z$188,K616='EXPENSE DATABASE'!$Z$189,K616='EXPENSE DATABASE'!$Z$190,K616='EXPENSE DATABASE'!$Z$191,K616='EXPENSE DATABASE'!$Z$192,K616='EXPENSE DATABASE'!$Z$193,K616='EXPENSE DATABASE'!$Z$194),O616,\"\")","v":""},{"$f":"IF(OR(K616='EXPENSE DATABASE'!$T$189,K616='EXPENSE DATABASE'!$T$190,K616='EXPENSE DATABASE'!$T$191),O616,\"\")","v":""},{"$f":"VLOOKUP(I616,'EXPENSE DATABASE'!$B$41:$C$65,2,FALSE)","v":{"$error":"#N/A"}},100,{"$f":"VLOOKUP(J616,'EXPENSE DATABASE'!$B$69:$C$168,2,FALSE)","v":{"$error":"#N/A"}},101,{"$f":"VLOOKUP(K616,'EXPENSE DATABASE'!$B$6:$C$35,2,FALSE)","v":{"$error":"#N/A"}},31,{"$f":"VLOOKUP(L616,'EXPENSE DATABASE'!$B$173:$C$176,2,FALSE)","v":{"$error":"#N/A"}},100,0,0,{"$f":"IF(L616=T('EXPENSE DATABASE'!$E$173),O616,0)","v":0},{"$f":"IF(L616=T('EXPENSE DATABASE'!$E$174),O616,0)","v":0},{"$f":"IF(L616=T('EXPENSE DATABASE'!$E$175),O616,0)","v":0},0,603]
[{"$f":"IF(COUNTA(#REF!,#REF!,#REF!,#REF!,#REF!,#REF!,#REF!,#REF!,#REF!,#REF!,#REF!)>0,1,0)","v":1},{"$f":"IF((COUNTA(#REF!)=4),1,-1)*A617","v":-1},{"$nulls":12},{"v":0,"d":"$0.00"},{"v":0,"d":"$0.00"},{"v":0,"d":"$0.00"},0,{"$f":"IF(OR(K617='EXPENSE DATABASE'!$V$187,K617='EXPENSE DATABASE'!$V$188,K617='EXPENSE DATABASE'!$V$189,K617='EXPENSE DATABASE'!$V$190,K617='EXPENSE DATABASE'!$V$191,K617='EXPENSE DATABASE'!$V$192,K617='EXPENSE DATABASE'!$V$193,K617='EXPENSE DATABASE'!$V$194,K617='EXPENSE DATABASE'!$X$187,K617='EXPENSE DATABASE'!$X$188,K617='EXPENSE DATABASE'!$X$189,K617='EXPENSE DATABASE'!$X$190,K617='EXPENSE DATABASE'!$X$191,K617='EXPENSE DATABASE'!$X$192,K617='EXPENSE DATABASE'!$X$193,K617='EXPENSE DATABASE'!$X$194,K617='EXPENSE DATABASE'!$Z$187,K617='EXPENSE DATABASE'!$Z$188,K617='EXPENSE DATABASE'!$Z$189,K617='EXPENSE DATABASE'!$Z$190,K617='EXPENSE DATABASE'!$Z$191,K617='EXPENSE DATABASE'!$Z$192,K617='EXPENSE DATABASE'!$Z$193,K617='EXPENSE DATABASE'!$Z$194),O617,\"\")","v":""},{"$f":"IF(OR(K617='EXPENSE DATABASE'!$T$189,K617='EXPENSE DATABASE'!$T$190,K617='EXPENSE DATABASE'!$T$191),O617,\"\")","v":""},{"$f":"VLOOKUP(I617,'EXPENSE DATABASE'!$B$41:$C$65,2,FALSE)","v":{"$error":"#N/A"}},100,{"$f":"VLOOKUP(J617,'EXPENSE DATABASE'!$B$69:$C$168,2,FALSE)","v":{"$error":"#N/A"}},101,{"$f":"VLOOKUP(K617,'EXPENSE DATABASE'!$B$6:$C$35,2,FALSE)","v":{"$error":"#N/A"}},31,{"$f":"VLOOKUP(L617,'EXPENSE DATABASE'!$B$173:$C$176,2,FALSE)","v":{"$error":"#N/A"}},100,0,0,{"$f":"IF(L617=T('EXPENSE DATABASE'!$E$173),O617,0)","v":0},{"$f":"IF(L617=T('EXPENSE DATABASE'!$E$174),O617,0)","v":0},{"$f":"IF(L617=T('EXPENSE DATABASE'!$E$175),O617,0)","v":0},0,604]
[{"$f":"IF(COUNTA(#REF!,#REF!,#REF!,#REF!,#REF!,#REF!,#REF!,#REF!,#REF!,#REF!,#REF!)>0,1,0)","v":1},{"$f":"IF((COUNTA(#REF!)=4),1,-1)*A618","v":-1},{"$nulls":12},{"v":0,"d":"$0.00"},{"v":0,"d":"$0.00"},{"v":0,"d":"$0.00"},0,{"$f":"IF(OR(K618='EXPENSE DATABASE'!$V$187,K618='EXPENSE DATABASE'!$V$188,K618='EXPENSE DATABASE'!$V$189,K618='EXPENSE DATABASE'!$V$190,K618='EXPENSE DATABASE'!$V$191,K618='EXPENSE DATABASE'!$V$192,K618='EXPENSE DATABASE'!$V$193,K618='EXPENSE DATABASE'!$V$194,K618='EXPENSE DATABASE'!$X$187,K618='EXPENSE DATABASE'!$X$188,K618='EXPENSE DATABASE'!$X$189,K618='EXPENSE DATABASE'!$X$190,K618='EXPENSE DATABASE'!$X$191,K618='EXPENSE DATABASE'!$X$192,K618='EXPENSE DATABASE'!$X$193,K618='EXPENSE DATABASE'!$X$194,K618='EXPENSE DATABASE'!$Z$187,K618='EXPENSE DATABASE'!$Z$188,K618='EXPENSE DATABASE'!$Z$189,K618='EXPENSE DATABASE'!$Z$190,K618='EXPENSE DATABASE'!$Z$191,K618='EXPENSE DATABASE'!$Z$192,K618='EXPENSE DATABASE'!$Z$193,K618='EXPENSE DATABASE'!$Z$194),O618,\"\")","v":""},{"$f":"IF(OR(K618='EXPENSE DATABASE'!$T$189,K618='EXPENSE DATABASE'!$T$190,K618='EXPENSE DATABASE'!$T$191),O618,\"\")","v":""},{"$f":"VLOOKUP(I618,'EXPENSE DATABASE'!$B$41:$C$65,2,FALSE)","v":{"$error":"#N/A"}},100,{"$f":"VLOOKUP(J618,'EXPENSE DATABASE'!$B$69:$C$168,2,FALSE)","v":{"$error":"#N/A"}},101,{"$f":"VLOOKUP(K618,'EXPENSE DATABASE'!$B$6:$C$35,2,FALSE)","v":{"$error":"#N/A"}},31,{"$f":"VLOOKUP(L618,'EXPENSE DATABASE'!$B$173:$C$176,2,FALSE)","v":{"$error":"#N/A"}},100,0,0,{"$f":"IF(L618=T('EXPENSE DATABASE'!$E$173),O618,0)","v":0},{"$f":"IF(L618=T('EXPENSE DATABASE'!$E$174),O618,0)","v":0},{"$f":"IF(L618=T('EXPENSE DATABASE'!$E$175),O618,0)","v":0},0,605]
[{"$f":"IF(COUNTA(#REF!,#REF!,#REF!,#REF!,#REF!,#REF!,#REF!,#REF!,#REF!,#REF!,#REF!)>0,1,0)","v":1},{"$f":"IF((COUNTA(#REF!)=4),1,-1)*A619","v":-1},{"$nulls":12},{"v":0,"d":"$0.00"},{"v":0,"d":"$0.00"},{"v":0,"d":"$0.00"},0,{"$f":"IF(OR(K619='EXPENSE DATABASE'!$V$187,K619='EXPENSE DATABASE'!$V$188,K619='EXPENSE DATABASE'!$V$189,K619='EXPENSE DATABASE'!$V$190,K619='EXPENSE DATABASE'!$V$191,K619='EXPENSE DATABASE'!$V$192,K619='EXPENSE DATABASE'!$V$193,K619='EXPENSE DATABASE'!$V$194,K619='EXPENSE DATABASE'!$X$187,K619='EXPENSE DATABASE'!$X$188,K619='EXPENSE DATABASE'!$X$189,K619='EXPENSE DATABASE'!$X$190,K619='EXPENSE DATABASE'!$X$191,K619='EXPENSE DATABASE'!$X$192,K619='EXPENSE DATABASE'!$X$193,K619='EXPENSE DATABASE'!$X$194,K619='EXPENSE DATABASE'!$Z$187,K619='EXPENSE DATABASE'!$Z$188,K619='EXPENSE DATABASE'!$Z$189,K619='EXPENSE DATABASE'!$Z$190,K619='EXPENSE DATABASE'!$Z$191,K619='EXPENSE DATABASE'!$Z$192,K619='EXPENSE DATABASE'!$Z$193,K619='EXPENSE DATABASE'!$Z$194),O619,\"\")","v":""},{"$f":"IF(OR(K619='EXPENSE DATABASE'!$T$189,K619='EXPENSE DATABASE'!$T$190,K619='EXPENSE DATABASE'!$T$191),O619,\"\")","v":""},{"$f":"VLOOKUP(I619,'EXPENSE DATABASE'!$B$41:$C$65,2,FALSE)","v":{"$error":"#N/A"}},100,{"$f":"VLOOKUP(J619,'EXPENSE DATABASE'!$B$69:$C$168,2,FALSE)","v":{"$error":"#N/A"}},101,{"$f":"VLOOKUP(K619,'EXPENSE DATABASE'!$B$6:$C$35,2,FALSE)","v":{"$error":"#N/A"}},31,{"$f":"VLOOKUP(L619,'EXPENSE DATABASE'!$B$173:$C$176,2,FALSE)","v":{"$error":"#N/A"}},100,0,0,{"$f":"IF(L619=T('EXPENSE DATABASE'!$E$173),O619,0)","v":0},{"$f":"IF(L619=T('EXPENSE DATABASE'!$E$174),O619,0)","v":0},{"$f":"IF(L619=T('EXPENSE DATABASE'!$E$175),O619,0)","v":0},0,606]
[{"$f":"IF(COUNTA(#REF!,#REF!,#REF!,#REF!,#REF!,#REF!,#REF!,#REF!,#REF!,#REF!,#REF!)>0,1,0)","v":1},{"$f":"IF((COUNTA(#REF!)=4),1,-1)*A620","v":-1},{"$nulls":12},{"v":0,"d":"$0.00"},{"v":0,"d":"$0.00"},{"v":0,"d":"$0.00"},0,{"$f":"IF(OR(K620='EXPENSE DATABASE'!$V$187,K620='EXPENSE DATABASE'!$V$188,K620='EXPENSE DATABASE'!$V$189,K620='EXPENSE DATABASE'!$V$190,K620='EXPENSE DATABASE'!$V$191,K620='EXPENSE DATABASE'!$V$192,K620='EXPENSE DATABASE'!$V$193,K620='EXPENSE DATABASE'!$V$194,K620='EXPENSE DATABASE'!$X$187,K620='EXPENSE DATABASE'!$X$188,K620='EXPENSE DATABASE'!$X$189,K620='EXPENSE DATABASE'!$X$190,K620='EXPENSE DATABASE'!$X$191,K620='EXPENSE DATABASE'!$X$192,K620='EXPENSE DATABASE'!$X$193,K620='EXPENSE DATABASE'!$X$194,K620='EXPENSE DATABASE'!$Z$187,K620='EXPENSE DATABASE'!$Z$188,K620='EXPENSE DATABASE'!$Z$189,K620='EXPENSE DATABASE'!$Z$190,K620='EXPENSE DATABASE'!$Z$191,K620='EXPENSE DATABASE'!$Z$192,K620='EXPENSE DATABASE'!$Z$193,K620='EXPENSE DATABASE'!$Z$194),O620,\"\")","v":""},{"$f":"IF(OR(K620='EXPENSE DATABASE'!$T$189,K620='EXPENSE DATABASE'!$T$190,K620='EXPENSE DATABASE'!$T$191),O620,\"\")","v":""},{"$f":"VLOOKUP(I620,'EXPENSE DATABASE'!$B$41:$C$65,2,FALSE)","v":{"$error":"#N/A"}},100,{"$f":"VLOOKUP(J620,'EXPENSE DATABASE'!$B$69:$C$168,2,FALSE)","v":{"$error":"#N/A"}},101,{"$f":"VLOOKUP(K620,'EXPENSE DATABASE'!$B$6:$C$35,2,FALSE)","v":{"$error":"#N/A"}},31,{"$f":"VLOOKUP(L620,'EXPENSE DATABASE'!$B$173:$C$176,2,FALSE)","v":{"$error":"#N/A"}},100,0,0,{"$f":"IF(L620=T('EXPENSE DATABASE'!$E$173),O620,0)","v":0},{"$f":"IF(L620=T('EXPENSE DATABASE'!$E$174),O620,0)","v":0},{"$f":"IF(L620=T('EXPENSE DATABASE'!$E$175),O620,0)","v":0},0,607]
[{"$f":"IF(COUNTA(#REF!,#REF!,#REF!,#REF!,#REF!,#REF!,#REF!,#REF!,#REF!,#REF!,#REF!)>0,1,0)","v":1},{"$f":"IF((COUNTA(#REF!)=4),1,-1)*A621","v":-1},{"$nulls":12},{"v":0,"d":"$0.00"},{"v":0,"d":"$0.00"},{"v":0,"d":"$0.00"},0,{"$f":"IF(OR(K621='EXPENSE DATABASE'!$V$187,K621='EXPENSE DATABASE'!$V$188,K621='EXPENSE DATABASE'!$V$189,K621='EXPENSE DATABASE'!$V$190,K621='EXPENSE DATABASE'!$V$191,K621='EXPENSE DATABASE'!$V$192,K621='EXPENSE DATABASE'!$V$193,K621='EXPENSE DATABASE'!$V$194,K621='EXPENSE DATABASE'!$X$187,K621='EXPENSE DATABASE'!$X$188,K621='EXPENSE DATABASE'!$X$189,K621='EXPENSE DATABASE'!$X$190,K621='EXPENSE DATABASE'!$X$191,K621='EXPENSE DATABASE'!$X$192,K621='EXPENSE DATABASE'!$X$193,K621='EXPENSE DATABASE'!$X$194,K621='EXPENSE DATABASE'!$Z$187,K621='EXPENSE DATABASE'!$Z$188,K621='EXPENSE DATABASE'!$Z$189,K621='EXPENSE DATABASE'!$Z$190,K621='EXPENSE DATABASE'!$Z$191,K621='EXPENSE DATABASE'!$Z$192,K621='EXPENSE DATABASE'!$Z$193,K621='EXPENSE DATABASE'!$Z$194),O621,\"\")","v":""},{"$f":"IF(OR(K621='EXPENSE DATABASE'!$T$189,K621='EXPENSE DATABASE'!$T$190,K621='EXPENSE DATABASE'!$T$191),O621,\"\")","v":""},{"$f":"VLOOKUP(I621,'EXPENSE DATABASE'!$B$41:$C$65,2,FALSE)","v":{"$error":"#N/A"}},100,{"$f":"VLOOKUP(J621,'EXPENSE DATABASE'!$B$69:$C$168,2,FALSE)","v":{"$error":"#N/A"}},101,{"$f":"VLOOKUP(K621,'EXPENSE DATABASE'!$B$6:$C$35,2,FALSE)","v":{"$error":"#N/A"}},31,{"$f":"VLOOKUP(L621,'EXPENSE DATABASE'!$B$173:$C$176,2,FALSE)","v":{"$error":"#N/A"}},100,0,0,{"$f":"IF(L621=T('EXPENSE DATABASE'!$E$173),O621,0)","v":0},{"$f":"IF(L621=T('EXPENSE DATABASE'!$E$174),O621,0)","v":0},{"$f":"IF(L621=T('EXPENSE DATABASE'!$E$175),O621,0)","v":0},0,608]
[{"$f":"IF(COUNTA(#REF!,#REF!,#REF!,#REF!,#REF!,#REF!,#REF!,#REF!,#REF!,#REF!,#REF!)>0,1,0)","v":1},{"$f":"IF((COUNTA(#REF!)=4),1,-1)*A622","v":-1},{"$nulls":12},{"v":0,"d":"$0.00"},{"v":0,"d":"$0.00"},{"v":0,"d":"$0.00"},0,{"$f":"IF(OR(K622='EXPENSE DATABASE'!$V$187,K622='EXPENSE DATABASE'!$V$188,K622='EXPENSE DATABASE'!$V$189,K622='EXPENSE DATABASE'!$V$190,K622='EXPENSE DATABASE'!$V$191,K622='EXPENSE DATABASE'!$V$192,K622='EXPENSE DATABASE'!$V$193,K622='EXPENSE DATABASE'!$V$194,K622='EXPENSE DATABASE'!$X$187,K622='EXPENSE DATABASE'!$X$188,K622='EXPENSE DATABASE'!$X$189,K622='EXPENSE DATABASE'!$X$190,K622='EXPENSE DATABASE'!$X$191,K622='EXPENSE DATABASE'!$X$192,K622='EXPENSE DATABASE'!$X$193,K622='EXPENSE DATABASE'!$X$194,K622='EXPENSE DATABASE'!$Z$187,K622='EXPENSE DATABASE'!$Z$188,K622='EXPENSE DATABASE'!$Z$189,K622='EXPENSE DATABASE'!$Z$190,K622='EXPENSE DATABASE'!$Z$191,K622='EXPENSE DATABASE'!$Z$192,K622='EXPENSE DATABASE'!$Z$193,K622='EXPENSE DATABASE'!$Z$194),O622,\"\")","v":""},{"$f":"IF(OR(K622='EXPENSE DATABASE'!$T$189,K622='EXPENSE DATABASE'!$T$190,K622='EXPENSE DATABASE'!$T$191),O622,\"\")","v":""},{"$f":"VLOOKUP(I622,'EXPENSE DATABASE'!$B$41:$C$65,2,FALSE)","v":{"$error":"#N/A"}},100,{"$f":"VLOOKUP(J622,'EXPENSE DATABASE'!$B$69:$C$168,2,FALSE)","v":{"$error":"#N/A"}},101,{"$f":"VLOOKUP(K622,'EXPENSE DATABASE'!$B$6:$C$35,2,FALSE)","v":{"$error":"#N/A"}},31,{"$f":"VLOOKUP(L622,'EXPENSE DATABASE'!$B$173:$C$176,2,FALSE)","v":{"$error":"#N/A"}},100,0,0,{"$f":"IF(L622=T('EXPENSE DATABASE'!$E$173),O622,0)","v":0},{"$f":"IF(L622=T('EXPENSE DATABASE'!$E$174),O622,0)","v":0},{"$f":"IF(L622=T('EXPENSE DATABASE'!$E$175),O622,0)","v":0},0,609]
[{"$f":"IF(COUNTA(#REF!,#REF!,#REF!,#REF!,#REF!,#REF!,#REF!,#REF!,#REF!,#REF!,#REF!)>0,1,0)","v":1},{"$f":"IF((COUNTA(#REF!)=4),1,-1)*A623","v":-1},{"$nulls":12},{"v":0,"d":"$0.00"},{"v":0,"d":"$0.00"},{"v":0,"d":"$0.00"},0,{"$f":"IF(OR(K623='EXPENSE DATABASE'!$V$187,K623='EXPENSE DATABASE'!$V$188,K623='EXPENSE DATABASE'!$V$189,K623='EXPENSE DATABASE'!$V$190,K623='EXPENSE DATABASE'!$V$191,K623='EXPENSE DATABASE'!$V$192,K623='EXPENSE DATABASE'!$V$193,K623='EXPENSE DATABASE'!$V$194,K623='EXPENSE DATABASE'!$X$187,K623='EXPENSE DATABASE'!$X$188,K623='EXPENSE DATABASE'!$X$189,K623='EXPENSE DATABASE'!$X$190,K623='EXPENSE DATABASE'!$X$191,K623='EXPENSE DATABASE'!$X$192,K623='EXPENSE DATABASE'!$X$193,K623='EXPENSE DATABASE'!$X$194,K623='EXPENSE DATABASE'!$Z$187,K623='EXPENSE DATABASE'!$Z$188,K623='EXPENSE DATABASE'!$Z$189,K623='EXPENSE DATABASE'!$Z$190,K623='EXPENSE DATABASE'!$Z$191,K623='EXPENSE DATABASE'!$Z$192,K623='EXPENSE DATABASE'!$Z$193,K623='EXPENSE DATABASE'!$Z$194),O623,\"\")","v":""},{"$f":"IF(OR(K623='EXPENSE DATABASE'!$T$189,K623='EXPENSE DATABASE'!$T$190,K623='EXPENSE DATABASE'!$T$191),O623,\"\")","v":""},{"$f":"VLOOKUP(I623,'EXPENSE DATABASE'!$B$41:$C$65,2,FALSE)","v":{"$error":"#N/A"}},100,{"$f":"VLOOKUP(J623,'EXPENSE DATABASE'!$B$69:$C$168,2,FALSE)","v":{"$error":"#N/A"}},101,{"$f":"VLOOKUP(K623,'EXPENSE DATABASE'!$B$6:$C$35,2,FALSE)","v":{"$error":"#N/A"}},31,{"$f":"VLOOKUP(L623,'EXPENSE DATABASE'!$B$173:$C$176,2,FALSE)","v":{"$error":"#N/A"}},100,0,0,{"$f":"IF(L623=T('EXPENSE DATABASE'!$E$173),O623,0)","v":0},{"$f":"IF(L623=T('EXPENSE DATABASE'!$E$174),O623,0)","v":0},{"$f":"IF(L623=T('EXPENSE DATABASE'!$E$175),O623,0)","v":0},0,610]
[{"$f":"IF(COUNTA(#REF!,#REF!,#REF!,#REF!,#REF!,#REF!,#REF!,#REF!,#REF!,#REF!,#REF!)>0,1,0)","v":1},{"$f":"IF((COUNTA(#REF!)=4),1,-1)*A624","v":-1},{"$nulls":12},{"v":0,"d":"$0.00"},{"v":0,"d":"$0.00"},{"v":0,"d":"$0.00"},0,{"$f":"IF(OR(K624='EXPENSE DATABASE'!$V$187,K624='EXPENSE DATABASE'!$V$188,K624='EXPENSE DATABASE'!$V$189,K624='EXPENSE DATABASE'!$V$190,K624='EXPENSE DATABASE'!$V$191,K624='EXPENSE DATABASE'!$V$192,K624='EXPENSE DATABASE'!$V$193,K624='EXPENSE DATABASE'!$V$194,K624='EXPENSE DATABASE'!$X$187,K624='EXPENSE DATABASE'!$X$188,K624='EXPENSE DATABASE'!$X$189,K624='EXPENSE DATABASE'!$X$190,K624='EXPENSE DATABASE'!$X$191,K624='EXPENSE DATABASE'!$X$192,K624='EXPENSE DATABASE'!$X$193,K624='EXPENSE DATABASE'!$X$194,K624='EXPENSE DATABASE'!$Z$187,K624='EXPENSE DATABASE'!$Z$188,K624='EXPENSE DATABASE'!$Z$189,K624='EXPENSE DATABASE'!$Z$190,K624='EXPENSE DATABASE'!$Z$191,K624='EXPENSE DATABASE'!$Z$192,K624='EXPENSE DATABASE'!$Z$193,K624='EXPENSE DATABASE'!$Z$194),O624,\"\")","v":""},{"$f":"IF(OR(K624='EXPENSE DATABASE'!$T$189,K624='EXPENSE DATABASE'!$T$190,K624='EXPENSE DATABASE'!$T$191),O624,\"\")","v":""},{"$f":"VLOOKUP(I624,'EXPENSE DATABASE'!$B$41:$C$65,2,FALSE)","v":{"$error":"#N/A"}},100,{"$f":"VLOOKUP(J624,'EXPENSE DATABASE'!$B$69:$C$168,2,FALSE)","v":{"$error":"#N/A"}},101,{"$f":"VLOOKUP(K624,'EXPENSE DATABASE'!$B$6:$C$35,2,FALSE)","v":{"$error":"#N/A"}},31,{"$f":"VLOOKUP(L624,'EXPENSE DATABASE'!$B$173:$C$176,2,FALSE)","v":{"$error":"#N/A"}},100,0,0,{"$f":"IF(L624=T('EXPENSE DATABASE'!$E$173),O624,0)","v":0},{"$f":"IF(L624=T('EXPENSE DATABASE'!$E$174),O624,0)","v":0},{"$f":"IF(L624=T('EXPENSE DATABASE'!$E$175),O624,0)","v":0},0,611]
[{"$f":"IF(COUNTA(#REF!,#REF!,#REF!,#REF!,#REF!,#REF!,#REF!,#REF!,#REF!,#REF!,#REF!)>0,1,0)","v":1},{"$f":"IF((COUNTA(#REF!)=4),1,-1)*A625","v":-1},{"$nulls":12},{"v":0,"d":"$0.00"},{"v":0,"d":"$0.00"},{"v":0,"d":"$0.00"},0,{"$f":"IF(OR(K625='EXPENSE DATABASE'!$V$187,K625='EXPENSE DATABASE'!$V$188,K625='EXPENSE DATABASE'!$V$189,K625='EXPENSE DATABASE'!$V$190,K625='EXPENSE DATABASE'!$V$191,K625='EXPENSE DATABASE'!$V$192,K625='EXPENSE DATABASE'!$V$193,K625='EXPENSE DATABASE'!$V$194,K625='EXPENSE DATABASE'!$X$187,K625='EXPENSE DATABASE'!$X$188,K625='EXPENSE DATABASE'!$X$189,K625='EXPENSE DATABASE'!$X$190,K625='EXPENSE DATABASE'!$X$191,K625='EXPENSE DATABASE'!$X$192,K625='EXPENSE DATABASE'!$X$193,K625='EXPENSE DATABASE'!$X$194,K625='EXPENSE DATABASE'!$Z$187,K625='EXPENSE DATABASE'!$Z$188,K625='EXPENSE DATABASE'!$Z$189,K625='EXPENSE DATABASE'!$Z$190,K625='EXPENSE DATABASE'!$Z$191,K625='EXPENSE DATABASE'!$Z$192,K625='EXPENSE DATABASE'!$Z$193,K625='EXPENSE DATABASE'!$Z$194),O625,\"\")","v":""},{"$f":"IF(OR(K625='EXPENSE DATABASE'!$T$189,K625='EXPENSE DATABASE'!$T$190,K625='EXPENSE DATABASE'!$T$191),O625,\"\")","v":""},{"$f":"VLOOKUP(I625,'EXPENSE DATABASE'!$B$41:$C$65,2,FALSE)","v":{"$error":"#N/A"}},100,{"$f":"VLOOKUP(J625,'EXPENSE DATABASE'!$B$69:$C$168,2,FALSE)","v":{"$error":"#N/A"}},101,{"$f":"VLOOKUP(K625,'EXPENSE DATABASE'!$B$6:$C$35,2,FALSE)","v":{"$error":"#N/A"}},31,{"$f":"VLOOKUP(L625,'EXPENSE DATABASE'!$B$173:$C$176,2,FALSE)","v":{"$error":"#N/A"}},100,0,0,{"$f":"IF(L625=T('EXPENSE DATABASE'!$E$173),O625,0)","v":0},{"$f":"IF(L625=T('EXPENSE DATABASE'!$E$174),O625,0)","v":0},{"$f":"IF(L625=T('EXPENSE DATABASE'!$E$175),O625,0)","v":0},0,612]
[{"$f":"IF(COUNTA(#REF!,#REF!,#REF!,#REF!,#REF!,#REF!,#REF!,#REF!,#REF!,#REF!,#REF!)>0,1,0)","v":1},{"$f":"IF((COUNTA(#REF!)=4),1,-1)*A626","v":-1},{"$nulls":12},{"v":0,"d":"$0.00"},{"v":0,"d":"$0.00"},{"v":0,"d":"$0.00"},0,{"$f":"IF(OR(K626='EXPENSE DATABASE'!$V$187,K626='EXPENSE DATABASE'!$V$188,K626='EXPENSE DATABASE'!$V$189,K626='EXPENSE DATABASE'!$V$190,K626='EXPENSE DATABASE'!$V$191,K626='EXPENSE DATABASE'!$V$192,K626='EXPENSE DATABASE'!$V$193,K626='EXPENSE DATABASE'!$V$194,K626='EXPENSE DATABASE'!$X$187,K626='EXPENSE DATABASE'!$X$188,K626='EXPENSE DATABASE'!$X$189,K626='EXPENSE DATABASE'!$X$190,K626='EXPENSE DATABASE'!$X$191,K626='EXPENSE DATABASE'!$X$192,K626='EXPENSE DATABASE'!$X$193,K626='EXPENSE DATABASE'!$X$194,K626='EXPENSE DATABASE'!$Z$187,K626='EXPENSE DATABASE'!$Z$188,K626='EXPENSE DATABASE'!$Z$189,K626='EXPENSE DATABASE'!$Z$190,K626='EXPENSE DATABASE'!$Z$191,K626='EXPENSE DATABASE'!$Z$192,K626='EXPENSE DATABASE'!$Z$193,K626='EXPENSE DATABASE'!$Z$194),O626,\"\")","v":""},{"$f":"IF(OR(K626='EXPENSE DATABASE'!$T$189,K626='EXPENSE DATABASE'!$T$190,K626='EXPENSE DATABASE'!$T$191),O626,\"\")","v":""},{"$f":"VLOOKUP(I626,'EXPENSE DATABASE'!$B$41:$C$65,2,FALSE)","v":{"$error":"#N/A"}},100,{"$f":"VLOOKUP(J626,'EXPENSE DATABASE'!$B$69:$C$168,2,FALSE)","v":{"$error":"#N/A"}},101,{"$f":"VLOOKUP(K626,'EXPENSE DATABASE'!$B$6:$C$35,2,FALSE)","v":{"$error":"#N/A"}},31,{"$f":"VLOOKUP(L626,'EXPENSE DATABASE'!$B$173:$C$176,2,FALSE)","v":{"$error":"#N/A"}},100,0,0,{"$f":"IF(L626=T('EXPENSE DATABASE'!$E$173),O626,0)","v":0},{"$f":"IF(L626=T('EXPENSE DATABASE'!$E$174),O626,0)","v":0},{"$f":"IF(L626=T('EXPENSE DATABASE'!$E$175),O626,0)","v":0},0,613]
[{"$f":"IF(COUNTA(#REF!,#REF!,#REF!,#REF!,#REF!,#REF!,#REF!,#REF!,#REF!,#REF!,#REF!)>0,1,0)","v":1},{"$f":"IF((COUNTA(#REF!)=4),1,-1)*A627","v":-1},{"$nulls":12},{"v":0,"d":"$0.00"},{"v":0,"d":"$0.00"},{"v":0,"d":"$0.00"},0,{"$f":"IF(OR(K627='EXPENSE DATABASE'!$V$187,K627='EXPENSE DATABASE'!$V$188,K627='EXPENSE DATABASE'!$V$189,K627='EXPENSE DATABASE'!$V$190,K627='EXPENSE DATABASE'!$V$191,K627='EXPENSE DATABASE'!$V$192,K627='EXPENSE DATABASE'!$V$193,K627='EXPENSE DATABASE'!$V$194,K627='EXPENSE DATABASE'!$X$187,K627='EXPENSE DATABASE'!$X$188,K627='EXPENSE DATABASE'!$X$189,K627='EXPENSE DATABASE'!$X$190,K627='EXPENSE DATABASE'!$X$191,K627='EXPENSE DATABASE'!$X$192,K627='EXPENSE DATABASE'!$X$193,K627='EXPENSE DATABASE'!$X$194,K627='EXPENSE DATABASE'!$Z$187,K627='EXPENSE DATABASE'!$Z$188,K627='EXPENSE DATABASE'!$Z$189,K627='EXPENSE DATABASE'!$Z$190,K627='EXPENSE DATABASE'!$Z$191,K627='EXPENSE DATABASE'!$Z$192,K627='EXPENSE DATABASE'!$Z$193,K627='EXPENSE DATABASE'!$Z$194),O627,\"\")","v":""},{"$f":"IF(OR(K627='EXPENSE DATABASE'!$T$189,K627='EXPENSE DATABASE'!$T$190,K627='EXPENSE DATABASE'!$T$191),O627,\"\")","v":""},{"$f":"VLOOKUP(I627,'EXPENSE DATABASE'!$B$41:$C$65,2,FALSE)","v":{"$error":"#N/A"}},100,{"$f":"VLOOKUP(J627,'EXPENSE DATABASE'!$B$69:$C$168,2,FALSE)","v":{"$error":"#N/A"}},101,{"$f":"VLOOKUP(K627,'EXPENSE DATABASE'!$B$6:$C$35,2,FALSE)","v":{"$error":"#N/A"}},31,{"$f":"VLOOKUP(L627,'EXPENSE DATABASE'!$B$173:$C$176,2,FALSE)","v":{"$error":"#N/A"}},100,0,0,{"$f":"IF(L627=T('EXPENSE DATABASE'!$E$173),O627,0)","v":0},{"$f":"IF(L627=T('EXPENSE DATABASE'!$E$174),O627,0)","v":0},{"$f":"IF(L627=T('EXPENSE DATABASE'!$E$175),O627,0)","v":0},0,614]
[{"$f":"IF(COUNTA(#REF!,#REF!,#REF!,#REF!,#REF!,#REF!,#REF!,#REF!,#REF!,#REF!,#REF!)>0,1,0)","v":1},{"$f":"IF((COUNTA(#REF!)=4),1,-1)*A628","v":-1},{"$nulls":12},{"v":0,"d":"$0.00"},{"v":0,"d":"$0.00"},{"v":0,"d":"$0.00"},0,{"$f":"IF(OR(K628='EXPENSE DATABASE'!$V$187,K628='EXPENSE DATABASE'!$V$188,K628='EXPENSE DATABASE'!$V$189,K628='EXPENSE DATABASE'!$V$190,K628='EXPENSE DATABASE'!$V$191,K628='EXPENSE DATABASE'!$V$192,K628='EXPENSE DATABASE'!$V$193,K628='EXPENSE DATABASE'!$V$194,K628='EXPENSE DATABASE'!$X$187,K628='EXPENSE DATABASE'!$X$188,K628='EXPENSE DATABASE'!$X$189,K628='EXPENSE DATABASE'!$X$190,K628='EXPENSE DATABASE'!$X$191,K628='EXPENSE DATABASE'!$X$192,K628='EXPENSE DATABASE'!$X$193,K628='EXPENSE DATABASE'!$X$194,K628='EXPENSE DATABASE'!$Z$187,K628='EXPENSE DATABASE'!$Z$188,K628='EXPENSE DATABASE'!$Z$189,K628='EXPENSE DATABASE'!$Z$190,K628='EXPENSE DATABASE'!$Z$191,K628='EXPENSE DATABASE'!$Z$192,K628='EXPENSE DATABASE'!$Z$193,K628='EXPENSE DATABASE'!$Z$194),O628,\"\")","v":""},{"$f":"IF(OR(K628='EXPENSE DATABASE'!$T$189,K628='EXPENSE DATABASE'!$T$190,K628='EXPENSE DATABASE'!$T$191),O628,\"\")","v":""},{"$f":"VLOOKUP(I628,'EXPENSE DATABASE'!$B$41:$C$65,2,FALSE)","v":{"$error":"#N/A"}},100,{"$f":"VLOOKUP(J628,'EXPENSE DATABASE'!$B$69:$C$168,2,FALSE)","v":{"$error":"#N/A"}},101,{"$f":"VLOOKUP(K628,'EXPENSE DATABASE'!$B$6:$C$35,2,FALSE)","v":{"$error":"#N/A"}},31,{"$f":"VLOOKUP(L628,'EXPENSE DATABASE'!$B$173:$C$176,2,FALSE)","v":{"$error":"#N/A"}},100,0,0,{"$f":"IF(L628=T('EXPENSE DATABASE'!$E$173),O628,0)","v":0},{"$f":"IF(L628=T('EXPENSE DATABASE'!$E$174),O628,0)","v":0},{"$f":"IF(L628=T('EXPENSE DATABASE'!$E$175),O628,0)","v":0},0,615]
[{"$f":"IF(COUNTA(#REF!,#REF!,#REF!,#REF!,#REF!,#REF!,#REF!,#REF!,#REF!,#REF!,#REF!)>0,1,0)","v":1},{"$f":"IF((COUNTA(#REF!)=4),1,-1)*A629","v":-1},{"$nulls":12},{"v":0,"d":"$0.00"},{"v":0,"d":"$0.00"},{"v":0,"d":"$0.00"},0,{"$f":"IF(OR(K629='EXPENSE DATABASE'!$V$187,K629='EXPENSE DATABASE'!$V$188,K629='EXPENSE DATABASE'!$V$189,K629='EXPENSE DATABASE'!$V$190,K629='EXPENSE DATABASE'!$V$191,K629='EXPENSE DATABASE'!$V$192,K629='EXPENSE DATABASE'!$V$193,K629='EXPENSE DATABASE'!$V$194,K629='EXPENSE DATABASE'!$X$187,K629='EXPENSE DATABASE'!$X$188,K629='EXPENSE DATABASE'!$X$189,K629='EXPENSE DATABASE'!$X$190,K629='EXPENSE DATABASE'!$X$191,K629='EXPENSE DATABASE'!$X$192,K629='EXPENSE DATABASE'!$X$193,K629='EXPENSE DATABASE'!$X$194,K629='EXPENSE DATABASE'!$Z$187,K629='EXPENSE DATABASE'!$Z$188,K629='EXPENSE DATABASE'!$Z$189,K629='EXPENSE DATABASE'!$Z$190,K629='EXPENSE DATABASE'!$Z$191,K629='EXPENSE DATABASE'!$Z$192,K629='EXPENSE DATABASE'!$Z$193,K629='EXPENSE DATABASE'!$Z$194),O629,\"\")","v":""},{"$f":"IF(OR(K629='EXPENSE DATABASE'!$T$189,K629='EXPENSE DATABASE'!$T$190,K629='EXPENSE DATABASE'!$T$191),O629,\"\")","v":""},{"$f":"VLOOKUP(I629,'EXPENSE DATABASE'!$B$41:$C$65,2,FALSE)","v":{"$error":"#N/A"}},100,{"$f":"VLOOKUP(J629,'EXPENSE DATABASE'!$B$69:$C$168,2,FALSE)","v":{"$error":"#N/A"}},101,{"$f":"VLOOKUP(K629,'EXPENSE DATABASE'!$B$6:$C$35,2,FALSE)","v":{"$error":"#N/A"}},31,{"$f":"VLOOKUP(L629,'EXPENSE DATABASE'!$B$173:$C$176,2,FALSE)","v":{"$error":"#N/A"}},100,0,0,{"$f":"IF(L629=T('EXPENSE DATABASE'!$E$173),O629,0)","v":0},{"$f":"IF(L629=T('EXPENSE DATABASE'!$E$174),O629,0)","v":0},{"$f":"IF(L629=T('EXPENSE DATABASE'!$E$175),O629,0)","v":0},0,616]
[{"$f":"IF(COUNTA(#REF!,#REF!,#REF!,#REF!,#REF!,#REF!,#REF!,#REF!,#REF!,#REF!,#REF!)>0,1,0)","v":1},{"$f":"IF((COUNTA(#REF!)=4),1,-1)*A630","v":-1},{"$nulls":12},{"v":0,"d":"$0.00"},{"v":0,"d":"$0.00"},{"v":0,"d":"$0.00"},0,{"$f":"IF(OR(K630='EXPENSE DATABASE'!$V$187,K630='EXPENSE DATABASE'!$V$188,K630='EXPENSE DATABASE'!$V$189,K630='EXPENSE DATABASE'!$V$190,K630='EXPENSE DATABASE'!$V$191,K630='EXPENSE DATABASE'!$V$192,K630='EXPENSE DATABASE'!$V$193,K630='EXPENSE DATABASE'!$V$194,K630='EXPENSE DATABASE'!$X$187,K630='EXPENSE DATABASE'!$X$188,K630='EXPENSE DATABASE'!$X$189,K630='EXPENSE DATABASE'!$X$190,K630='EXPENSE DATABASE'!$X$191,K630='EXPENSE DATABASE'!$X$192,K630='EXPENSE DATABASE'!$X$193,K630='EXPENSE DATABASE'!$X$194,K630='EXPENSE DATABASE'!$Z$187,K630='EXPENSE DATABASE'!$Z$188,K630='EXPENSE DATABASE'!$Z$189,K630='EXPENSE DATABASE'!$Z$190,K630='EXPENSE DATABASE'!$Z$191,K630='EXPENSE DATABASE'!$Z$192,K630='EXPENSE DATABASE'!$Z$193,K630='EXPENSE DATABASE'!$Z$194),O630,\"\")","v":""},{"$f":"IF(OR(K630='EXPENSE DATABASE'!$T$189,K630='EXPENSE DATABASE'!$T$190,K630='EXPENSE DATABASE'!$T$191),O630,\"\")","v":""},{"$f":"VLOOKUP(I630,'EXPENSE DATABASE'!$B$41:$C$65,2,FALSE)","v":{"$error":"#N/A"}},100,{"$f":"VLOOKUP(J630,'EXPENSE DATABASE'!$B$69:$C$168,2,FALSE)","v":{"$error":"#N/A"}},101,{"$f":"VLOOKUP(K630,'EXPENSE DATABASE'!$B$6:$C$35,2,FALSE)","v":{"$error":"#N/A"}},31,{"$f":"VLOOKUP(L630,'EXPENSE DATABASE'!$B$173:$C$176,2,FALSE)","v":{"$error":"#N/A"}},100,0,0,{"$f":"IF(L630=T('EXPENSE DATABASE'!$E$173),O630,0)","v":0},{"$f":"IF(L630=T('EXPENSE DATABASE'!$E$174),O630,0)","v":0},{"$f":"IF(L630=T('EXPENSE DATABASE'!$E$175),O630,0)","v":0},0,617]
[{"$f":"IF(COUNTA(#REF!,#REF!,#REF!,#REF!,#REF!,#REF!,#REF!,#REF!,#REF!,#REF!,#REF!)>0,1,0)","v":1},{"$f":"IF((COUNTA(#REF!)=4),1,-1)*A631","v":-1},{"$nulls":12},{"v":0,"d":"$0.00"},{"v":0,"d":"$0.00"},{"v":0,"d":"$0.00"},0,{"$f":"IF(OR(K631='EXPENSE DATABASE'!$V$187,K631='EXPENSE DATABASE'!$V$188,K631='EXPENSE DATABASE'!$V$189,K631='EXPENSE DATABASE'!$V$190,K631='EXPENSE DATABASE'!$V$191,K631='EXPENSE DATABASE'!$V$192,K631='EXPENSE DATABASE'!$V$193,K631='EXPENSE DATABASE'!$V$194,K631='EXPENSE DATABASE'!$X$187,K631='EXPENSE DATABASE'!$X$188,K631='EXPENSE DATABASE'!$X$189,K631='EXPENSE DATABASE'!$X$190,K631='EXPENSE DATABASE'!$X$191,K631='EXPENSE DATABASE'!$X$192,K631='EXPENSE DATABASE'!$X$193,K631='EXPENSE DATABASE'!$X$194,K631='EXPENSE DATABASE'!$Z$187,K631='EXPENSE DATABASE'!$Z$188,K631='EXPENSE DATABASE'!$Z$189,K631='EXPENSE DATABASE'!$Z$190,K631='EXPENSE DATABASE'!$Z$191,K631='EXPENSE DATABASE'!$Z$192,K631='EXPENSE DATABASE'!$Z$193,K631='EXPENSE DATABASE'!$Z$194),O631,\"\")","v":""},{"$f":"IF(OR(K631='EXPENSE DATABASE'!$T$189,K631='EXPENSE DATABASE'!$T$190,K631='EXPENSE DATABASE'!$T$191),O631,\"\")","v":""},{"$f":"VLOOKUP(I631,'EXPENSE DATABASE'!$B$41:$C$65,2,FALSE)","v":{"$error":"#N/A"}},100,{"$f":"VLOOKUP(J631,'EXPENSE DATABASE'!$B$69:$C$168,2,FALSE)","v":{"$error":"#N/A"}},101,{"$f":"VLOOKUP(K631,'EXPENSE DATABASE'!$B$6:$C$35,2,FALSE)","v":{"$error":"#N/A"}},31,{"$f":"VLOOKUP(L631,'EXPENSE DATABASE'!$B$173:$C$176,2,FALSE)","v":{"$error":"#N/A"}},100,0,0,{"$f":"IF(L631=T('EXPENSE DATABASE'!$E$173),O631,0)","v":0},{"$f":"IF(L631=T('EXPENSE DATABASE'!$E$174),O631,0)","v":0},{"$f":"IF(L631=T('EXPENSE DATABASE'!$E$175),O631,0)","v":0},0,618]
[{"$f":"IF(COUNTA(#REF!,#REF!,#REF!,#REF!,#REF!,#REF!,#REF!,#REF!,#REF!,#REF!,#REF!)>0,1,0)","v":1},{"$f":"IF((COUNTA(#REF!)=4),1,-1)*A632","v":-1},{"$nulls":12},{"v":0,"d":"$0.00"},{"v":0,"d":"$0.00"},{"v":0,"d":"$0.00"},0,{"$f":"IF(OR(K632='EXPENSE DATABASE'!$V$187,K632='EXPENSE DATABASE'!$V$188,K632='EXPENSE DATABASE'!$V$189,K632='EXPENSE DATABASE'!$V$190,K632='EXPENSE DATABASE'!$V$191,K632='EXPENSE DATABASE'!$V$192,K632='EXPENSE DATABASE'!$V$193,K632='EXPENSE DATABASE'!$V$194,K632='EXPENSE DATABASE'!$X$187,K632='EXPENSE DATABASE'!$X$188,K632='EXPENSE DATABASE'!$X$189,K632='EXPENSE DATABASE'!$X$190,K632='EXPENSE DATABASE'!$X$191,K632='EXPENSE DATABASE'!$X$192,K632='EXPENSE DATABASE'!$X$193,K632='EXPENSE DATABASE'!$X$194,K632='EXPENSE DATABASE'!$Z$187,K632='EXPENSE DATABASE'!$Z$188,K632='EXPENSE DATABASE'!$Z$189,K632='EXPENSE DATABASE'!$Z$190,K632='EXPENSE DATABASE'!$Z$191,K632='EXPENSE DATABASE'!$Z$192,K632='EXPENSE DATABASE'!$Z$193,K632='EXPENSE DATABASE'!$Z$194),O632,\"\")","v":""},{"$f":"IF(OR(K632='EXPENSE DATABASE'!$T$189,K632='EXPENSE DATABASE'!$T$190,K632='EXPENSE DATABASE'!$T$191),O632,\"\")","v":""},{"$f":"VLOOKUP(I632,'EXPENSE DATABASE'!$B$41:$C$65,2,FALSE)","v":{"$error":"#N/A"}},100,{"$f":"VLOOKUP(J632,'EXPENSE DATABASE'!$B$69:$C$168,2,FALSE)","v":{"$error":"#N/A"}},101,{"$f":"VLOOKUP(K632,'EXPENSE DATABASE'!$B$6:$C$35,2,FALSE)","v":{"$error":"#N/A"}},31,{"$f":"VLOOKUP(L632,'EXPENSE DATABASE'!$B$173:$C$176,2,FALSE)","v":{"$error":"#N/A"}},100,0,0,{"$f":"IF(L632=T('EXPENSE DATABASE'!$E$173),O632,0)","v":0},{"$f":"IF(L632=T('EXPENSE DATABASE'!$E$174),O632,0)","v":0},{"$f":"IF(L632=T('EXPENSE DATABASE'!$E$175),O632,0)","v":0},0,619]
[{"$f":"IF(COUNTA(#REF!,#REF!,#REF!,#REF!,#REF!,#REF!,#REF!,#REF!,#REF!,#REF!,#REF!)>0,1,0)","v":1},{"$f":"IF((COUNTA(#REF!)=4),1,-1)*A633","v":-1},{"$nulls":12},{"v":0,"d":"$0.00"},{"v":0,"d":"$0.00"},{"v":0,"d":"$0.00"},0,{"$f":"IF(OR(K633='EXPENSE DATABASE'!$V$187,K633='EXPENSE DATABASE'!$V$188,K633='EXPENSE DATABASE'!$V$189,K633='EXPENSE DATABASE'!$V$190,K633='EXPENSE DATABASE'!$V$191,K633='EXPENSE DATABASE'!$V$192,K633='EXPENSE DATABASE'!$V$193,K633='EXPENSE DATABASE'!$V$194,K633='EXPENSE DATABASE'!$X$187,K633='EXPENSE DATABASE'!$X$188,K633='EXPENSE DATABASE'!$X$189,K633='EXPENSE DATABASE'!$X$190,K633='EXPENSE DATABASE'!$X$191,K633='EXPENSE DATABASE'!$X$192,K633='EXPENSE DATABASE'!$X$193,K633='EXPENSE DATABASE'!$X$194,K633='EXPENSE DATABASE'!$Z$187,K633='EXPENSE DATABASE'!$Z$188,K633='EXPENSE DATABASE'!$Z$189,K633='EXPENSE DATABASE'!$Z$190,K633='EXPENSE DATABASE'!$Z$191,K633='EXPENSE DATABASE'!$Z$192,K633='EXPENSE DATABASE'!$Z$193,K633='EXPENSE DATABASE'!$Z$194),O633,\"\")","v":""},{"$f":"IF(OR(K633='EXPENSE DATABASE'!$T$189,K633='EXPENSE DATABASE'!$T$190,K633='EXPENSE DATABASE'!$T$191),O633,\"\")","v":""},{"$f":"VLOOKUP(I633,'EXPENSE DATABASE'!$B$41:$C$65,2,FALSE)","v":{"$error":"#N/A"}},100,{"$f":"VLOOKUP(J633,'EXPENSE DATABASE'!$B$69:$C$168,2,FALSE)","v":{"$error":"#N/A"}},101,{"$f":"VLOOKUP(K633,'EXPENSE DATABASE'!$B$6:$C$35,2,FALSE)","v":{"$error":"#N/A"}},31,{"$f":"VLOOKUP(L633,'EXPENSE DATABASE'!$B$173:$C$176,2,FALSE)","v":{"$error":"#N/A"}},100,0,0,{"$f":"IF(L633=T('EXPENSE DATABASE'!$E$173),O633,0)","v":0},{"$f":"IF(L633=T('EXPENSE DATABASE'!$E$174),O633,0)","v":0},{"$f":"IF(L633=T('EXPENSE DATABASE'!$E$175),O633,0)","v":0},0,620]
[{"$f":"IF(COUNTA(#REF!,#REF!,#REF!,#REF!,#REF!,#REF!,#REF!,#REF!,#REF!,#REF!,#REF!)>0,1,0)","v":1},{"$f":"IF((COUNTA(#REF!)=4),1,-1)*A634","v":-1},{"$nulls":12},{"v":0,"d":"$0.00"},{"v":0,"d":"$0.00"},{"v":0,"d":"$0.00"},0,{"$f":"IF(OR(K634='EXPENSE DATABASE'!$V$187,K634='EXPENSE DATABASE'!$V$188,K634='EXPENSE DATABASE'!$V$189,K634='EXPENSE DATABASE'!$V$190,K634='EXPENSE DATABASE'!$V$191,K634='EXPENSE DATABASE'!$V$192,K634='EXPENSE DATABASE'!$V$193,K634='EXPENSE DATABASE'!$V$194,K634='EXPENSE DATABASE'!$X$187,K634='EXPENSE DATABASE'!$X$188,K634='EXPENSE DATABASE'!$X$189,K634='EXPENSE DATABASE'!$X$190,K634='EXPENSE DATABASE'!$X$191,K634='EXPENSE DATABASE'!$X$192,K634='EXPENSE DATABASE'!$X$193,K634='EXPENSE DATABASE'!$X$194,K634='EXPENSE DATABASE'!$Z$187,K634='EXPENSE DATABASE'!$Z$188,K634='EXPENSE DATABASE'!$Z$189,K634='EXPENSE DATABASE'!$Z$190,K634='EXPENSE DATABASE'!$Z$191,K634='EXPENSE DATABASE'!$Z$192,K634='EXPENSE DATABASE'!$Z$193,K634='EXPENSE DATABASE'!$Z$194),O634,\"\")","v":""},{"$f":"IF(OR(K634='EXPENSE DATABASE'!$T$189,K634='EXPENSE DATABASE'!$T$190,K634='EXPENSE DATABASE'!$T$191),O634,\"\")","v":""},{"$f":"VLOOKUP(I634,'EXPENSE DATABASE'!$B$41:$C$65,2,FALSE)","v":{"$error":"#N/A"}},100,{"$f":"VLOOKUP(J634,'EXPENSE DATABASE'!$B$69:$C$168,2,FALSE)","v":{"$error":"#N/A"}},101,{"$f":"VLOOKUP(K634,'EXPENSE DATABASE'!$B$6:$C$35,2,FALSE)","v":{"$error":"#N/A"}},31,{"$f":"VLOOKUP(L634,'EXPENSE DATABASE'!$B$173:$C$176,2,FALSE)","v":{"$error":"#N/A"}},100,0,0,{"$f":"IF(L634=T('EXPENSE DATABASE'!$E$173),O634,0)","v":0},{"$f":"IF(L634=T('EXPENSE DATABASE'!$E$174),O634,0)","v":0},{"$f":"IF(L634=T('EXPENSE DATABASE'!$E$175),O634,0)","v":0},0,621]
[{"$f":"IF(COUNTA(#REF!,#REF!,#REF!,#REF!,#REF!,#REF!,#REF!,#REF!,#REF!,#REF!,#REF!)>0,1,0)","v":1},{"$f":"IF((COUNTA(#REF!)=4),1,-1)*A635","v":-1},{"$nulls":12},{"v":0,"d":"$0.00"},{"v":0,"d":"$0.00"},{"v":0,"d":"$0.00"},0,{"$f":"IF(OR(K635='EXPENSE DATABASE'!$V$187,K635='EXPENSE DATABASE'!$V$188,K635='EXPENSE DATABASE'!$V$189,K635='EXPENSE DATABASE'!$V$190,K635='EXPENSE DATABASE'!$V$191,K635='EXPENSE DATABASE'!$V$192,K635='EXPENSE DATABASE'!$V$193,K635='EXPENSE DATABASE'!$V$194,K635='EXPENSE DATABASE'!$X$187,K635='EXPENSE DATABASE'!$X$188,K635='EXPENSE DATABASE'!$X$189,K635='EXPENSE DATABASE'!$X$190,K635='EXPENSE DATABASE'!$X$191,K635='EXPENSE DATABASE'!$X$192,K635='EXPENSE DATABASE'!$X$193,K635='EXPENSE DATABASE'!$X$194,K635='EXPENSE DATABASE'!$Z$187,K635='EXPENSE DATABASE'!$Z$188,K635='EXPENSE DATABASE'!$Z$189,K635='EXPENSE DATABASE'!$Z$190,K635='EXPENSE DATABASE'!$Z$191,K635='EXPENSE DATABASE'!$Z$192,K635='EXPENSE DATABASE'!$Z$193,K635='EXPENSE DATABASE'!$Z$194),O635,\"\")","v":""},{"$f":"IF(OR(K635='EXPENSE DATABASE'!$T$189,K635='EXPENSE DATABASE'!$T$190,K635='EXPENSE DATABASE'!$T$191),O635,\"\")","v":""},{"$f":"VLOOKUP(I635,'EXPENSE DATABASE'!$B$41:$C$65,2,FALSE)","v":{"$error":"#N/A"}},100,{"$f":"VLOOKUP(J635,'EXPENSE DATABASE'!$B$69:$C$168,2,FALSE)","v":{"$error":"#N/A"}},101,{"$f":"VLOOKUP(K635,'EXPENSE DATABASE'!$B$6:$C$35,2,FALSE)","v":{"$error":"#N/A"}},31,{"$f":"VLOOKUP(L635,'EXPENSE DATABASE'!$B$173:$C$176,2,FALSE)","v":{"$error":"#N/A"}},100,0,0,{"$f":"IF(L635=T('EXPENSE DATABASE'!$E$173),O635,0)","v":0},{"$f":"IF(L635=T('EXPENSE DATABASE'!$E$174),O635,0)","v":0},{"$f":"IF(L635=T('EXPENSE DATABASE'!$E$175),O635,0)","v":0},0,622]
[{"$f":"IF(COUNTA(#REF!,#REF!,#REF!,#REF!,#REF!,#REF!,#REF!,#REF!,#REF!,#REF!,#REF!)>0,1,0)","v":1},{"$f":"IF((COUNTA(#REF!)=4),1,-1)*A636","v":-1},{"$nulls":12},{"v":0,"d":"$0.00"},{"v":0,"d":"$0.00"},{"v":0,"d":"$0.00"},0,{"$f":"IF(OR(K636='EXPENSE DATABASE'!$V$187,K636='EXPENSE DATABASE'!$V$188,K636='EXPENSE DATABASE'!$V$189,K636='EXPENSE DATABASE'!$V$190,K636='EXPENSE DATABASE'!$V$191,K636='EXPENSE DATABASE'!$V$192,K636='EXPENSE DATABASE'!$V$193,K636='EXPENSE DATABASE'!$V$194,K636='EXPENSE DATABASE'!$X$187,K636='EXPENSE DATABASE'!$X$188,K636='EXPENSE DATABASE'!$X$189,K636='EXPENSE DATABASE'!$X$190,K636='EXPENSE DATABASE'!$X$191,K636='EXPENSE DATABASE'!$X$192,K636='EXPENSE DATABASE'!$X$193,K636='EXPENSE DATABASE'!$X$194,K636='EXPENSE DATABASE'!$Z$187,K636='EXPENSE DATABASE'!$Z$188,K636='EXPENSE DATABASE'!$Z$189,K636='EXPENSE DATABASE'!$Z$190,K636='EXPENSE DATABASE'!$Z$191,K636='EXPENSE DATABASE'!$Z$192,K636='EXPENSE DATABASE'!$Z$193,K636='EXPENSE DATABASE'!$Z$194),O636,\"\")","v":""},{"$f":"IF(OR(K636='EXPENSE DATABASE'!$T$189,K636='EXPENSE DATABASE'!$T$190,K636='EXPENSE DATABASE'!$T$191),O636,\"\")","v":""},{"$f":"VLOOKUP(I636,'EXPENSE DATABASE'!$B$41:$C$65,2,FALSE)","v":{"$error":"#N/A"}},100,{"$f":"VLOOKUP(J636,'EXPENSE DATABASE'!$B$69:$C$168,2,FALSE)","v":{"$error":"#N/A"}},101,{"$f":"VLOOKUP(K636,'EXPENSE DATABASE'!$B$6:$C$35,2,FALSE)","v":{"$error":"#N/A"}},31,{"$f":"VLOOKUP(L636,'EXPENSE DATABASE'!$B$173:$C$176,2,FALSE)","v":{"$error":"#N/A"}},100,0,0,{"$f":"IF(L636=T('EXPENSE DATABASE'!$E$173),O636,0)","v":0},{"$f":"IF(L636=T('EXPENSE DATABASE'!$E$174),O636,0)","v":0},{"$f":"IF(L636=T('EXPENSE DATABASE'!$E$175),O636,0)","v":0},0,623]
[{"$f":"IF(COUNTA(#REF!,#REF!,#REF!,#REF!,#REF!,#REF!,#REF!,#REF!,#REF!,#REF!,#REF!)>0,1,0)","v":1},{"$f":"IF((COUNTA(#REF!)=4),1,-1)*A637","v":-1},{"$nulls":12},{"v":0,"d":"$0.00"},{"v":0,"d":"$0.00"},{"v":0,"d":"$0.00"},0,{"$f":"IF(OR(K637='EXPENSE DATABASE'!$V$187,K637='EXPENSE DATABASE'!$V$188,K637='EXPENSE DATABASE'!$V$189,K637='EXPENSE DATABASE'!$V$190,K637='EXPENSE DATABASE'!$V$191,K637='EXPENSE DATABASE'!$V$192,K637='EXPENSE DATABASE'!$V$193,K637='EXPENSE DATABASE'!$V$194,K637='EXPENSE DATABASE'!$X$187,K637='EXPENSE DATABASE'!$X$188,K637='EXPENSE DATABASE'!$X$189,K637='EXPENSE DATABASE'!$X$190,K637='EXPENSE DATABASE'!$X$191,K637='EXPENSE DATABASE'!$X$192,K637='EXPENSE DATABASE'!$X$193,K637='EXPENSE DATABASE'!$X$194,K637='EXPENSE DATABASE'!$Z$187,K637='EXPENSE DATABASE'!$Z$188,K637='EXPENSE DATABASE'!$Z$189,K637='EXPENSE DATABASE'!$Z$190,K637='EXPENSE DATABASE'!$Z$191,K637='EXPENSE DATABASE'!$Z$192,K637='EXPENSE DATABASE'!$Z$193,K637='EXPENSE DATABASE'!$Z$194),O637,\"\")","v":""},{"$f":"IF(OR(K637='EXPENSE DATABASE'!$T$189,K637='EXPENSE DATABASE'!$T$190,K637='EXPENSE DATABASE'!$T$191),O637,\"\")","v":""},{"$f":"VLOOKUP(I637,'EXPENSE DATABASE'!$B$41:$C$65,2,FALSE)","v":{"$error":"#N/A"}},100,{"$f":"VLOOKUP(J637,'EXPENSE DATABASE'!$B$69:$C$168,2,FALSE)","v":{"$error":"#N/A"}},101,{"$f":"VLOOKUP(K637,'EXPENSE DATABASE'!$B$6:$C$35,2,FALSE)","v":{"$error":"#N/A"}},31,{"$f":"VLOOKUP(L637,'EXPENSE DATABASE'!$B$173:$C$176,2,FALSE)","v":{"$error":"#N/A"}},100,0,0,{"$f":"IF(L637=T('EXPENSE DATABASE'!$E$173),O637,0)","v":0},{"$f":"IF(L637=T('EXPENSE DATABASE'!$E$174),O637,0)","v":0},{"$f":"IF(L637=T('EXPENSE DATABASE'!$E$175),O637,0)","v":0},0,624]
[{"$f":"IF(COUNTA(#REF!,#REF!,#REF!,#REF!,#REF!,#REF!,#REF!,#REF!,#REF!,#REF!,#REF!)>0,1,0)","v":1},{"$f":"IF((COUNTA(#REF!)=4),1,-1)*A638","v":-1},{"$nulls":12},{"v":0,"d":"$0.00"},{"v":0,"d":"$0.00"},{"v":0,"d":"$0.00"},0,{"$f":"IF(OR(K638='EXPENSE DATABASE'!$V$187,K638='EXPENSE DATABASE'!$V$188,K638='EXPENSE DATABASE'!$V$189,K638='EXPENSE DATABASE'!$V$190,K638='EXPENSE DATABASE'!$V$191,K638='EXPENSE DATABASE'!$V$192,K638='EXPENSE DATABASE'!$V$193,K638='EXPENSE DATABASE'!$V$194,K638='EXPENSE DATABASE'!$X$187,K638='EXPENSE DATABASE'!$X$188,K638='EXPENSE DATABASE'!$X$189,K638='EXPENSE DATABASE'!$X$190,K638='EXPENSE DATABASE'!$X$191,K638='EXPENSE DATABASE'!$X$192,K638='EXPENSE DATABASE'!$X$193,K638='EXPENSE DATABASE'!$X$194,K638='EXPENSE DATABASE'!$Z$187,K638='EXPENSE DATABASE'!$Z$188,K638='EXPENSE DATABASE'!$Z$189,K638='EXPENSE DATABASE'!$Z$190,K638='EXPENSE DATABASE'!$Z$191,K638='EXPENSE DATABASE'!$Z$192,K638='EXPENSE DATABASE'!$Z$193,K638='EXPENSE DATABASE'!$Z$194),O638,\"\")","v":""},{"$f":"IF(OR(K638='EXPENSE DATABASE'!$T$189,K638='EXPENSE DATABASE'!$T$190,K638='EXPENSE DATABASE'!$T$191),O638,\"\")","v":""},{"$f":"VLOOKUP(I638,'EXPENSE DATABASE'!$B$41:$C$65,2,FALSE)","v":{"$error":"#N/A"}},100,{"$f":"VLOOKUP(J638,'EXPENSE DATABASE'!$B$69:$C$168,2,FALSE)","v":{"$error":"#N/A"}},101,{"$f":"VLOOKUP(K638,'EXPENSE DATABASE'!$B$6:$C$35,2,FALSE)","v":{"$error":"#N/A"}},31,{"$f":"VLOOKUP(L638,'EXPENSE DATABASE'!$B$173:$C$176,2,FALSE)","v":{"$error":"#N/A"}},100,0,0,{"$f":"IF(L638=T('EXPENSE DATABASE'!$E$173),O638,0)","v":0},{"$f":"IF(L638=T('EXPENSE DATABASE'!$E$174),O638,0)","v":0},{"$f":"IF(L638=T('EXPENSE DATABASE'!$E$175),O638,0)","v":0},0,625]
[{"$f":"IF(COUNTA(#REF!,#REF!,#REF!,#REF!,#REF!,#REF!,#REF!,#REF!,#REF!,#REF!,#REF!)>0,1,0)","v":1},{"$f":"IF((COUNTA(#REF!)=4),1,-1)*A639","v":-1},{"$nulls":12},{"v":0,"d":"$0.00"},{"v":0,"d":"$0.00"},{"v":0,"d":"$0.00"},0,{"$f":"IF(OR(K639='EXPENSE DATABASE'!$V$187,K639='EXPENSE DATABASE'!$V$188,K639='EXPENSE DATABASE'!$V$189,K639='EXPENSE DATABASE'!$V$190,K639='EXPENSE DATABASE'!$V$191,K639='EXPENSE DATABASE'!$V$192,K639='EXPENSE DATABASE'!$V$193,K639='EXPENSE DATABASE'!$V$194,K639='EXPENSE DATABASE'!$X$187,K639='EXPENSE DATABASE'!$X$188,K639='EXPENSE DATABASE'!$X$189,K639='EXPENSE DATABASE'!$X$190,K639='EXPENSE DATABASE'!$X$191,K639='EXPENSE DATABASE'!$X$192,K639='EXPENSE DATABASE'!$X$193,K639='EXPENSE DATABASE'!$X$194,K639='EXPENSE DATABASE'!$Z$187,K639='EXPENSE DATABASE'!$Z$188,K639='EXPENSE DATABASE'!$Z$189,K639='EXPENSE DATABASE'!$Z$190,K639='EXPENSE DATABASE'!$Z$191,K639='EXPENSE DATABASE'!$Z$192,K639='EXPENSE DATABASE'!$Z$193,K639='EXPENSE DATABASE'!$Z$194),O639,\"\")","v":""},{"$f":"IF(OR(K639='EXPENSE DATABASE'!$T$189,K639='EXPENSE DATABASE'!$T$190,K639='EXPENSE DATABASE'!$T$191),O639,\"\")","v":""},{"$f":"VLOOKUP(I639,'EXPENSE DATABASE'!$B$41:$C$65,2,FALSE)","v":{"$error":"#N/A"}},100,{"$f":"VLOOKUP(J639,'EXPENSE DATABASE'!$B$69:$C$168,2,FALSE)","v":{"$error":"#N/A"}},101,{"$f":"VLOOKUP(K639,'EXPENSE DATABASE'!$B$6:$C$35,2,FALSE)","v":{"$error":"#N/A"}},31,{"$f":"VLOOKUP(L639,'EXPENSE DATABASE'!$B$173:$C$176,2,FALSE)","v":{"$error":"#N/A"}},100,0,0,{"$f":"IF(L639=T('EXPENSE DATABASE'!$E$173),O639,0)","v":0},{"$f":"IF(L639=T('EXPENSE DATABASE'!$E$174),O639,0)","v":0},{"$f":"IF(L639=T('EXPENSE DATABASE'!$E$175),O639,0)","v":0},0,626]
[{"$f":"IF(COUNTA(#REF!,#REF!,#REF!,#REF!,#REF!,#REF!,#REF!,#REF!,#REF!,#REF!,#REF!)>0,1,0)","v":1},{"$f":"IF((COUNTA(#REF!)=4),1,-1)*A640","v":-1},{"$nulls":12},{"v":0,"d":"$0.00"},{"v":0,"d":"$0.00"},{"v":0,"d":"$0.00"},0,{"$f":"IF(OR(K640='EXPENSE DATABASE'!$V$187,K640='EXPENSE DATABASE'!$V$188,K640='EXPENSE DATABASE'!$V$189,K640='EXPENSE DATABASE'!$V$190,K640='EXPENSE DATABASE'!$V$191,K640='EXPENSE DATABASE'!$V$192,K640='EXPENSE DATABASE'!$V$193,K640='EXPENSE DATABASE'!$V$194,K640='EXPENSE DATABASE'!$X$187,K640='EXPENSE DATABASE'!$X$188,K640='EXPENSE DATABASE'!$X$189,K640='EXPENSE DATABASE'!$X$190,K640='EXPENSE DATABASE'!$X$191,K640='EXPENSE DATABASE'!$X$192,K640='EXPENSE DATABASE'!$X$193,K640='EXPENSE DATABASE'!$X$194,K640='EXPENSE DATABASE'!$Z$187,K640='EXPENSE DATABASE'!$Z$188,K640='EXPENSE DATABASE'!$Z$189,K640='EXPENSE DATABASE'!$Z$190,K640='EXPENSE DATABASE'!$Z$191,K640='EXPENSE DATABASE'!$Z$192,K640='EXPENSE DATABASE'!$Z$193,K640='EXPENSE DATABASE'!$Z$194),O640,\"\")","v":""},{"$f":"IF(OR(K640='EXPENSE DATABASE'!$T$189,K640='EXPENSE DATABASE'!$T$190,K640='EXPENSE DATABASE'!$T$191),O640,\"\")","v":""},{"$f":"VLOOKUP(I640,'EXPENSE DATABASE'!$B$41:$C$65,2,FALSE)","v":{"$error":"#N/A"}},100,{"$f":"VLOOKUP(J640,'EXPENSE DATABASE'!$B$69:$C$168,2,FALSE)","v":{"$error":"#N/A"}},101,{"$f":"VLOOKUP(K640,'EXPENSE DATABASE'!$B$6:$C$35,2,FALSE)","v":{"$error":"#N/A"}},31,{"$f":"VLOOKUP(L640,'EXPENSE DATABASE'!$B$173:$C$176,2,FALSE)","v":{"$error":"#N/A"}},100,0,0,{"$f":"IF(L640=T('EXPENSE DATABASE'!$E$173),O640,0)","v":0},{"$f":"IF(L640=T('EXPENSE DATABASE'!$E$174),O640,0)","v":0},{"$f":"IF(L640=T('EXPENSE DATABASE'!$E$175),O640,0)","v":0},0,627]
[{"$f":"IF(COUNTA(#REF!,#REF!,#REF!,#REF!,#REF!,#REF!,#REF!,#REF!,#REF!,#REF!,#REF!)>0,1,0)","v":1},{"$f":"IF((COUNTA(#REF!)=4),1,-1)*A641","v":-1},{"$nulls":12},{"v":0,"d":"$0.00"},{"v":0,"d":"$0.00"},{"v":0,"d":"$0.00"},0,{"$f":"IF(OR(K641='EXPENSE DATABASE'!$V$187,K641='EXPENSE DATABASE'!$V$188,K641='EXPENSE DATABASE'!$V$189,K641='EXPENSE DATABASE'!$V$190,K641='EXPENSE DATABASE'!$V$191,K641='EXPENSE DATABASE'!$V$192,K641='EXPENSE DATABASE'!$V$193,K641='EXPENSE DATABASE'!$V$194,K641='EXPENSE DATABASE'!$X$187,K641='EXPENSE DATABASE'!$X$188,K641='EXPENSE DATABASE'!$X$189,K641='EXPENSE DATABASE'!$X$190,K641='EXPENSE DATABASE'!$X$191,K641='EXPENSE DATABASE'!$X$192,K641='EXPENSE DATABASE'!$X$193,K641='EXPENSE DATABASE'!$X$194,K641='EXPENSE DATABASE'!$Z$187,K641='EXPENSE DATABASE'!$Z$188,K641='EXPENSE DATABASE'!$Z$189,K641='EXPENSE DATABASE'!$Z$190,K641='EXPENSE DATABASE'!$Z$191,K641='EXPENSE DATABASE'!$Z$192,K641='EXPENSE DATABASE'!$Z$193,K641='EXPENSE DATABASE'!$Z$194),O641,\"\")","v":""},{"$f":"IF(OR(K641='EXPENSE DATABASE'!$T$189,K641='EXPENSE DATABASE'!$T$190,K641='EXPENSE DATABASE'!$T$191),O641,\"\")","v":""},{"$f":"VLOOKUP(I641,'EXPENSE DATABASE'!$B$41:$C$65,2,FALSE)","v":{"$error":"#N/A"}},100,{"$f":"VLOOKUP(J641,'EXPENSE DATABASE'!$B$69:$C$168,2,FALSE)","v":{"$error":"#N/A"}},101,{"$f":"VLOOKUP(K641,'EXPENSE DATABASE'!$B$6:$C$35,2,FALSE)","v":{"$error":"#N/A"}},31,{"$f":"VLOOKUP(L641,'EXPENSE DATABASE'!$B$173:$C$176,2,FALSE)","v":{"$error":"#N/A"}},100,0,0,{"$f":"IF(L641=T('EXPENSE DATABASE'!$E$173),O641,0)","v":0},{"$f":"IF(L641=T('EXPENSE DATABASE'!$E$174),O641,0)","v":0},{"$f":"IF(L641=T('EXPENSE DATABASE'!$E$175),O641,0)","v":0},0,628]
[{"$f":"IF(COUNTA(#REF!,#REF!,#REF!,#REF!,#REF!,#REF!,#REF!,#REF!,#REF!,#REF!,#REF!)>0,1,0)","v":1},{"$f":"IF((COUNTA(#REF!)=4),1,-1)*A642","v":-1},{"$nulls":12},{"v":0,"d":"$0.00"},{"v":0,"d":"$0.00"},{"v":0,"d":"$0.00"},0,{"$f":"IF(OR(K642='EXPENSE DATABASE'!$V$187,K642='EXPENSE DATABASE'!$V$188,K642='EXPENSE DATABASE'!$V$189,K642='EXPENSE DATABASE'!$V$190,K642='EXPENSE DATABASE'!$V$191,K642='EXPENSE DATABASE'!$V$192,K642='EXPENSE DATABASE'!$V$193,K642='EXPENSE DATABASE'!$V$194,K642='EXPENSE DATABASE'!$X$187,K642='EXPENSE DATABASE'!$X$188,K642='EXPENSE DATABASE'!$X$189,K642='EXPENSE DATABASE'!$X$190,K642='EXPENSE DATABASE'!$X$191,K642='EXPENSE DATABASE'!$X$192,K642='EXPENSE DATABASE'!$X$193,K642='EXPENSE DATABASE'!$X$194,K642='EXPENSE DATABASE'!$Z$187,K642='EXPENSE DATABASE'!$Z$188,K642='EXPENSE DATABASE'!$Z$189,K642='EXPENSE DATABASE'!$Z$190,K642='EXPENSE DATABASE'!$Z$191,K642='EXPENSE DATABASE'!$Z$192,K642='EXPENSE DATABASE'!$Z$193,K642='EXPENSE DATABASE'!$Z$194),O642,\"\")","v":""},{"$f":"IF(OR(K642='EXPENSE DATABASE'!$T$189,K642='EXPENSE DATABASE'!$T$190,K642='EXPENSE DATABASE'!$T$191),O642,\"\")","v":""},{"$f":"VLOOKUP(I642,'EXPENSE DATABASE'!$B$41:$C$65,2,FALSE)","v":{"$error":"#N/A"}},100,{"$f":"VLOOKUP(J642,'EXPENSE DATABASE'!$B$69:$C$168,2,FALSE)","v":{"$error":"#N/A"}},101,{"$f":"VLOOKUP(K642,'EXPENSE DATABASE'!$B$6:$C$35,2,FALSE)","v":{"$error":"#N/A"}},31,{"$f":"VLOOKUP(L642,'EXPENSE DATABASE'!$B$173:$C$176,2,FALSE)","v":{"$error":"#N/A"}},100,0,0,{"$f":"IF(L642=T('EXPENSE DATABASE'!$E$173),O642,0)","v":0},{"$f":"IF(L642=T('EXPENSE DATABASE'!$E$174),O642,0)","v":0},{"$f":"IF(L642=T('EXPENSE DATABASE'!$E$175),O642,0)","v":0},0,629]
[{"$f":"IF(COUNTA(#REF!,#REF!,#REF!,#REF!,#REF!,#REF!,#REF!,#REF!,#REF!,#REF!,#REF!)>0,1,0)","v":1},{"$f":"IF((COUNTA(#REF!)=4),1,-1)*A643","v":-1},{"$nulls":12},{"v":0,"d":"$0.00"},{"v":0,"d":"$0.00"},{"v":0,"d":"$0.00"},0,{"$f":"IF(OR(K643='EXPENSE DATABASE'!$V$187,K643='EXPENSE DATABASE'!$V$188,K643='EXPENSE DATABASE'!$V$189,K643='EXPENSE DATABASE'!$V$190,K643='EXPENSE DATABASE'!$V$191,K643='EXPENSE DATABASE'!$V$192,K643='EXPENSE DATABASE'!$V$193,K643='EXPENSE DATABASE'!$V$194,K643='EXPENSE DATABASE'!$X$187,K643='EXPENSE DATABASE'!$X$188,K643='EXPENSE DATABASE'!$X$189,K643='EXPENSE DATABASE'!$X$190,K643='EXPENSE DATABASE'!$X$191,K643='EXPENSE DATABASE'!$X$192,K643='EXPENSE DATABASE'!$X$193,K643='EXPENSE DATABASE'!$X$194,K643='EXPENSE DATABASE'!$Z$187,K643='EXPENSE DATABASE'!$Z$188,K643='EXPENSE DATABASE'!$Z$189,K643='EXPENSE DATABASE'!$Z$190,K643='EXPENSE DATABASE'!$Z$191,K643='EXPENSE DATABASE'!$Z$192,K643='EXPENSE DATABASE'!$Z$193,K643='EXPENSE DATABASE'!$Z$194),O643,\"\")","v":""},{"$f":"IF(OR(K643='EXPENSE DATABASE'!$T$189,K643='EXPENSE DATABASE'!$T$190,K643='EXPENSE DATABASE'!$T$191),O643,\"\")","v":""},{"$f":"VLOOKUP(I643,'EXPENSE DATABASE'!$B$41:$C$65,2,FALSE)","v":{"$error":"#N/A"}},100,{"$f":"VLOOKUP(J643,'EXPENSE DATABASE'!$B$69:$C$168,2,FALSE)","v":{"$error":"#N/A"}},101,{"$f":"VLOOKUP(K643,'EXPENSE DATABASE'!$B$6:$C$35,2,FALSE)","v":{"$error":"#N/A"}},31,{"$f":"VLOOKUP(L643,'EXPENSE DATABASE'!$B$173:$C$176,2,FALSE)","v":{"$error":"#N/A"}},100,0,0,{"$f":"IF(L643=T('EXPENSE DATABASE'!$E$173),O643,0)","v":0},{"$f":"IF(L643=T('EXPENSE DATABASE'!$E$174),O643,0)","v":0},{"$f":"IF(L643=T('EXPENSE DATABASE'!$E$175),O643,0)","v":0},0,630]
[{"$f":"IF(COUNTA(#REF!,#REF!,#REF!,#REF!,#REF!,#REF!,#REF!,#REF!,#REF!,#REF!,#REF!)>0,1,0)","v":1},{"$f":"IF((COUNTA(#REF!)=4),1,-1)*A644","v":-1},{"$nulls":12},{"v":0,"d":"$0.00"},{"v":0,"d":"$0.00"},{"v":0,"d":"$0.00"},0,{"$f":"IF(OR(K644='EXPENSE DATABASE'!$V$187,K644='EXPENSE DATABASE'!$V$188,K644='EXPENSE DATABASE'!$V$189,K644='EXPENSE DATABASE'!$V$190,K644='EXPENSE DATABASE'!$V$191,K644='EXPENSE DATABASE'!$V$192,K644='EXPENSE DATABASE'!$V$193,K644='EXPENSE DATABASE'!$V$194,K644='EXPENSE DATABASE'!$X$187,K644='EXPENSE DATABASE'!$X$188,K644='EXPENSE DATABASE'!$X$189,K644='EXPENSE DATABASE'!$X$190,K644='EXPENSE DATABASE'!$X$191,K644='EXPENSE DATABASE'!$X$192,K644='EXPENSE DATABASE'!$X$193,K644='EXPENSE DATABASE'!$X$194,K644='EXPENSE DATABASE'!$Z$187,K644='EXPENSE DATABASE'!$Z$188,K644='EXPENSE DATABASE'!$Z$189,K644='EXPENSE DATABASE'!$Z$190,K644='EXPENSE DATABASE'!$Z$191,K644='EXPENSE DATABASE'!$Z$192,K644='EXPENSE DATABASE'!$Z$193,K644='EXPENSE DATABASE'!$Z$194),O644,\"\")","v":""},{"$f":"IF(OR(K644='EXPENSE DATABASE'!$T$189,K644='EXPENSE DATABASE'!$T$190,K644='EXPENSE DATABASE'!$T$191),O644,\"\")","v":""},{"$f":"VLOOKUP(I644,'EXPENSE DATABASE'!$B$41:$C$65,2,FALSE)","v":{"$error":"#N/A"}},100,{"$f":"VLOOKUP(J644,'EXPENSE DATABASE'!$B$69:$C$168,2,FALSE)","v":{"$error":"#N/A"}},101,{"$f":"VLOOKUP(K644,'EXPENSE DATABASE'!$B$6:$C$35,2,FALSE)","v":{"$error":"#N/A"}},31,{"$f":"VLOOKUP(L644,'EXPENSE DATABASE'!$B$173:$C$176,2,FALSE)","v":{"$error":"#N/A"}},100,0,0,{"$f":"IF(L644=T('EXPENSE DATABASE'!$E$173),O644,0)","v":0},{"$f":"IF(L644=T('EXPENSE DATABASE'!$E$174),O644,0)","v":0},{"$f":"IF(L644=T('EXPENSE DATABASE'!$E$175),O644,0)","v":0},0,631]
[{"$f":"IF(COUNTA(#REF!,#REF!,#REF!,#REF!,#REF!,#REF!,#REF!,#REF!,#REF!,#REF!,#REF!)>0,1,0)","v":1},{"$f":"IF((COUNTA(#REF!)=4),1,-1)*A645","v":-1},{"$nulls":12},{"v":0,"d":"$0.00"},{"v":0,"d":"$0.00"},{"v":0,"d":"$0.00"},0,{"$f":"IF(OR(K645='EXPENSE DATABASE'!$V$187,K645='EXPENSE DATABASE'!$V$188,K645='EXPENSE DATABASE'!$V$189,K645='EXPENSE DATABASE'!$V$190,K645='EXPENSE DATABASE'!$V$191,K645='EXPENSE DATABASE'!$V$192,K645='EXPENSE DATABASE'!$V$193,K645='EXPENSE DATABASE'!$V$194,K645='EXPENSE DATABASE'!$X$187,K645='EXPENSE DATABASE'!$X$188,K645='EXPENSE DATABASE'!$X$189,K645='EXPENSE DATABASE'!$X$190,K645='EXPENSE DATABASE'!$X$191,K645='EXPENSE DATABASE'!$X$192,K645='EXPENSE DATABASE'!$X$193,K645='EXPENSE DATABASE'!$X$194,K645='EXPENSE DATABASE'!$Z$187,K645='EXPENSE DATABASE'!$Z$188,K645='EXPENSE DATABASE'!$Z$189,K645='EXPENSE DATABASE'!$Z$190,K645='EXPENSE DATABASE'!$Z$191,K645='EXPENSE DATABASE'!$Z$192,K645='EXPENSE DATABASE'!$Z$193,K645='EXPENSE DATABASE'!$Z$194),O645,\"\")","v":""},{"$f":"IF(OR(K645='EXPENSE DATABASE'!$T$189,K645='EXPENSE DATABASE'!$T$190,K645='EXPENSE DATABASE'!$T$191),O645,\"\")","v":""},{"$f":"VLOOKUP(I645,'EXPENSE DATABASE'!$B$41:$C$65,2,FALSE)","v":{"$error":"#N/A"}},100,{"$f":"VLOOKUP(J645,'EXPENSE DATABASE'!$B$69:$C$168,2,FALSE)","v":{"$error":"#N/A"}},101,{"$f":"VLOOKUP(K645,'EXPENSE DATABASE'!$B$6:$C$35,2,FALSE)","v":{"$error":"#N/A"}},31,{"$f":"VLOOKUP(L645,'EXPENSE DATABASE'!$B$173:$C$176,2,FALSE)","v":{"$error":"#N/A"}},100,0,0,{"$f":"IF(L645=T('EXPENSE DATABASE'!$E$173),O645,0)","v":0},{"$f":"IF(L645=T('EXPENSE DATABASE'!$E$174),O645,0)","v":0},{"$f":"IF(L645=T('EXPENSE DATABASE'!$E$175),O645,0)","v":0},0,632]
[{"$f":"IF(COUNTA(#REF!,#REF!,#REF!,#REF!,#REF!,#REF!,#REF!,#REF!,#REF!,#REF!,#REF!)>0,1,0)","v":1},{"$f":"IF((COUNTA(#REF!)=4),1,-1)*A646","v":-1},{"$nulls":12},{"v":0,"d":"$0.00"},{"v":0,"d":"$0.00"},{"v":0,"d":"$0.00"},0,{"$f":"IF(OR(K646='EXPENSE DATABASE'!$V$187,K646='EXPENSE DATABASE'!$V$188,K646='EXPENSE DATABASE'!$V$189,K646='EXPENSE DATABASE'!$V$190,K646='EXPENSE DATABASE'!$V$191,K646='EXPENSE DATABASE'!$V$192,K646='EXPENSE DATABASE'!$V$193,K646='EXPENSE DATABASE'!$V$194,K646='EXPENSE DATABASE'!$X$187,K646='EXPENSE DATABASE'!$X$188,K646='EXPENSE DATABASE'!$X$189,K646='EXPENSE DATABASE'!$X$190,K646='EXPENSE DATABASE'!$X$191,K646='EXPENSE DATABASE'!$X$192,K646='EXPENSE DATABASE'!$X$193,K646='EXPENSE DATABASE'!$X$194,K646='EXPENSE DATABASE'!$Z$187,K646='EXPENSE DATABASE'!$Z$188,K646='EXPENSE DATABASE'!$Z$189,K646='EXPENSE DATABASE'!$Z$190,K646='EXPENSE DATABASE'!$Z$191,K646='EXPENSE DATABASE'!$Z$192,K646='EXPENSE DATABASE'!$Z$193,K646='EXPENSE DATABASE'!$Z$194),O646,\"\")","v":""},{"$f":"IF(OR(K646='EXPENSE DATABASE'!$T$189,K646='EXPENSE DATABASE'!$T$190,K646='EXPENSE DATABASE'!$T$191),O646,\"\")","v":""},{"$f":"VLOOKUP(I646,'EXPENSE DATABASE'!$B$41:$C$65,2,FALSE)","v":{"$error":"#N/A"}},100,{"$f":"VLOOKUP(J646,'EXPENSE DATABASE'!$B$69:$C$168,2,FALSE)","v":{"$error":"#N/A"}},101,{"$f":"VLOOKUP(K646,'EXPENSE DATABASE'!$B$6:$C$35,2,FALSE)","v":{"$error":"#N/A"}},31,{"$f":"VLOOKUP(L646,'EXPENSE DATABASE'!$B$173:$C$176,2,FALSE)","v":{"$error":"#N/A"}},100,0,0,{"$f":"IF(L646=T('EXPENSE DATABASE'!$E$173),O646,0)","v":0},{"$f":"IF(L646=T('EXPENSE DATABASE'!$E$174),O646,0)","v":0},{"$f":"IF(L646=T('EXPENSE DATABASE'!$E$175),O646,0)","v":0},0,633]
[{"$f":"IF(COUNTA(#REF!,#REF!,#REF!,#REF!,#REF!,#REF!,#REF!,#REF!,#REF!,#REF!,#REF!)>0,1,0)","v":1},{"$f":"IF((COUNTA(#REF!)=4),1,-1)*A647","v":-1},{"$nulls":12},{"v":0,"d":"$0.00"},{"v":0,"d":"$0.00"},{"v":0,"d":"$0.00"},0,{"$f":"IF(OR(K647='EXPENSE DATABASE'!$V$187,K647='EXPENSE DATABASE'!$V$188,K647='EXPENSE DATABASE'!$V$189,K647='EXPENSE DATABASE'!$V$190,K647='EXPENSE DATABASE'!$V$191,K647='EXPENSE DATABASE'!$V$192,K647='EXPENSE DATABASE'!$V$193,K647='EXPENSE DATABASE'!$V$194,K647='EXPENSE DATABASE'!$X$187,K647='EXPENSE DATABASE'!$X$188,K647='EXPENSE DATABASE'!$X$189,K647='EXPENSE DATABASE'!$X$190,K647='EXPENSE DATABASE'!$X$191,K647='EXPENSE DATABASE'!$X$192,K647='EXPENSE DATABASE'!$X$193,K647='EXPENSE DATABASE'!$X$194,K647='EXPENSE DATABASE'!$Z$187,K647='EXPENSE DATABASE'!$Z$188,K647='EXPENSE DATABASE'!$Z$189,K647='EXPENSE DATABASE'!$Z$190,K647='EXPENSE DATABASE'!$Z$191,K647='EXPENSE DATABASE'!$Z$192,K647='EXPENSE DATABASE'!$Z$193,K647='EXPENSE DATABASE'!$Z$194),O647,\"\")","v":""},{"$f":"IF(OR(K647='EXPENSE DATABASE'!$T$189,K647='EXPENSE DATABASE'!$T$190,K647='EXPENSE DATABASE'!$T$191),O647,\"\")","v":""},{"$f":"VLOOKUP(I647,'EXPENSE DATABASE'!$B$41:$C$65,2,FALSE)","v":{"$error":"#N/A"}},100,{"$f":"VLOOKUP(J647,'EXPENSE DATABASE'!$B$69:$C$168,2,FALSE)","v":{"$error":"#N/A"}},101,{"$f":"VLOOKUP(K647,'EXPENSE DATABASE'!$B$6:$C$35,2,FALSE)","v":{"$error":"#N/A"}},31,{"$f":"VLOOKUP(L647,'EXPENSE DATABASE'!$B$173:$C$176,2,FALSE)","v":{"$error":"#N/A"}},100,0,0,{"$f":"IF(L647=T('EXPENSE DATABASE'!$E$173),O647,0)","v":0},{"$f":"IF(L647=T('EXPENSE DATABASE'!$E$174),O647,0)","v":0},{"$f":"IF(L647=T('EXPENSE DATABASE'!$E$175),O647,0)","v":0},0,634]
[{"$f":"IF(COUNTA(#REF!,#REF!,#REF!,#REF!,#REF!,#REF!,#REF!,#REF!,#REF!,#REF!,#REF!)>0,1,0)","v":1},{"$f":"IF((COUNTA(#REF!)=4),1,-1)*A648","v":-1},{"$nulls":12},{"v":0,"d":"$0.00"},{"v":0,"d":"$0.00"},{"v":0,"d":"$0.00"},0,{"$f":"IF(OR(K648='EXPENSE DATABASE'!$V$187,K648='EXPENSE DATABASE'!$V$188,K648='EXPENSE DATABASE'!$V$189,K648='EXPENSE DATABASE'!$V$190,K648='EXPENSE DATABASE'!$V$191,K648='EXPENSE DATABASE'!$V$192,K648='EXPENSE DATABASE'!$V$193,K648='EXPENSE DATABASE'!$V$194,K648='EXPENSE DATABASE'!$X$187,K648='EXPENSE DATABASE'!$X$188,K648='EXPENSE DATABASE'!$X$189,K648='EXPENSE DATABASE'!$X$190,K648='EXPENSE DATABASE'!$X$191,K648='EXPENSE DATABASE'!$X$192,K648='EXPENSE DATABASE'!$X$193,K648='EXPENSE DATABASE'!$X$194,K648='EXPENSE DATABASE'!$Z$187,K648='EXPENSE DATABASE'!$Z$188,K648='EXPENSE DATABASE'!$Z$189,K648='EXPENSE DATABASE'!$Z$190,K648='EXPENSE DATABASE'!$Z$191,K648='EXPENSE DATABASE'!$Z$192,K648='EXPENSE DATABASE'!$Z$193,K648='EXPENSE DATABASE'!$Z$194),O648,\"\")","v":""},{"$f":"IF(OR(K648='EXPENSE DATABASE'!$T$189,K648='EXPENSE DATABASE'!$T$190,K648='EXPENSE DATABASE'!$T$191),O648,\"\")","v":""},{"$f":"VLOOKUP(I648,'EXPENSE DATABASE'!$B$41:$C$65,2,FALSE)","v":{"$error":"#N/A"}},100,{"$f":"VLOOKUP(J648,'EXPENSE DATABASE'!$B$69:$C$168,2,FALSE)","v":{"$error":"#N/A"}},101,{"$f":"VLOOKUP(K648,'EXPENSE DATABASE'!$B$6:$C$35,2,FALSE)","v":{"$error":"#N/A"}},31,{"$f":"VLOOKUP(L648,'EXPENSE DATABASE'!$B$173:$C$176,2,FALSE)","v":{"$error":"#N/A"}},100,0,0,{"$f":"IF(L648=T('EXPENSE DATABASE'!$E$173),O648,0)","v":0},{"$f":"IF(L648=T('EXPENSE DATABASE'!$E$174),O648,0)","v":0},{"$f":"IF(L648=T('EXPENSE DATABASE'!$E$175),O648,0)","v":0},0,635]
[{"$f":"IF(COUNTA(#REF!,#REF!,#REF!,#REF!,#REF!,#REF!,#REF!,#REF!,#REF!,#REF!,#REF!)>0,1,0)","v":1},{"$f":"IF((COUNTA(#REF!)=4),1,-1)*A649","v":-1},{"$nulls":12},{"v":0,"d":"$0.00"},{"v":0,"d":"$0.00"},{"v":0,"d":"$0.00"},0,{"$f":"IF(OR(K649='EXPENSE DATABASE'!$V$187,K649='EXPENSE DATABASE'!$V$188,K649='EXPENSE DATABASE'!$V$189,K649='EXPENSE DATABASE'!$V$190,K649='EXPENSE DATABASE'!$V$191,K649='EXPENSE DATABASE'!$V$192,K649='EXPENSE DATABASE'!$V$193,K649='EXPENSE DATABASE'!$V$194,K649='EXPENSE DATABASE'!$X$187,K649='EXPENSE DATABASE'!$X$188,K649='EXPENSE DATABASE'!$X$189,K649='EXPENSE DATABASE'!$X$190,K649='EXPENSE DATABASE'!$X$191,K649='EXPENSE DATABASE'!$X$192,K649='EXPENSE DATABASE'!$X$193,K649='EXPENSE DATABASE'!$X$194,K649='EXPENSE DATABASE'!$Z$187,K649='EXPENSE DATABASE'!$Z$188,K649='EXPENSE DATABASE'!$Z$189,K649='EXPENSE DATABASE'!$Z$190,K649='EXPENSE DATABASE'!$Z$191,K649='EXPENSE DATABASE'!$Z$192,K649='EXPENSE DATABASE'!$Z$193,K649='EXPENSE DATABASE'!$Z$194),O649,\"\")","v":""},{"$f":"IF(OR(K649='EXPENSE DATABASE'!$T$189,K649='EXPENSE DATABASE'!$T$190,K649='EXPENSE DATABASE'!$T$191),O649,\"\")","v":""},{"$f":"VLOOKUP(I649,'EXPENSE DATABASE'!$B$41:$C$65,2,FALSE)","v":{"$error":"#N/A"}},100,{"$f":"VLOOKUP(J649,'EXPENSE DATABASE'!$B$69:$C$168,2,FALSE)","v":{"$error":"#N/A"}},101,{"$f":"VLOOKUP(K649,'EXPENSE DATABASE'!$B$6:$C$35,2,FALSE)","v":{"$error":"#N/A"}},31,{"$f":"VLOOKUP(L649,'EXPENSE DATABASE'!$B$173:$C$176,2,FALSE)","v":{"$error":"#N/A"}},100,0,0,{"$f":"IF(L649=T('EXPENSE DATABASE'!$E$173),O649,0)","v":0},{"$f":"IF(L649=T('EXPENSE DATABASE'!$E$174),O649,0)","v":0},{"$f":"IF(L649=T('EXPENSE DATABASE'!$E$175),O649,0)","v":0},0,636]
[{"$f":"IF(COUNTA(#REF!,#REF!,#REF!,#REF!,#REF!,#REF!,#REF!,#REF!,#REF!,#REF!,#REF!)>0,1,0)","v":1},{"$f":"IF((COUNTA(#REF!)=4),1,-1)*A650","v":-1},{"$nulls":12},{"v":0,"d":"$0.00"},{"v":0,"d":"$0.00"},{"v":0,"d":"$0.00"},0,{"$f":"IF(OR(K650='EXPENSE DATABASE'!$V$187,K650='EXPENSE DATABASE'!$V$188,K650='EXPENSE DATABASE'!$V$189,K650='EXPENSE DATABASE'!$V$190,K650='EXPENSE DATABASE'!$V$191,K650='EXPENSE DATABASE'!$V$192,K650='EXPENSE DATABASE'!$V$193,K650='EXPENSE DATABASE'!$V$194,K650='EXPENSE DATABASE'!$X$187,K650='EXPENSE DATABASE'!$X$188,K650='EXPENSE DATABASE'!$X$189,K650='EXPENSE DATABASE'!$X$190,K650='EXPENSE DATABASE'!$X$191,K650='EXPENSE DATABASE'!$X$192,K650='EXPENSE DATABASE'!$X$193,K650='EXPENSE DATABASE'!$X$194,K650='EXPENSE DATABASE'!$Z$187,K650='EXPENSE DATABASE'!$Z$188,K650='EXPENSE DATABASE'!$Z$189,K650='EXPENSE DATABASE'!$Z$190,K650='EXPENSE DATABASE'!$Z$191,K650='EXPENSE DATABASE'!$Z$192,K650='EXPENSE DATABASE'!$Z$193,K650='EXPENSE DATABASE'!$Z$194),O650,\"\")","v":""},{"$f":"IF(OR(K650='EXPENSE DATABASE'!$T$189,K650='EXPENSE DATABASE'!$T$190,K650='EXPENSE DATABASE'!$T$191),O650,\"\")","v":""},{"$f":"VLOOKUP(I650,'EXPENSE DATABASE'!$B$41:$C$65,2,FALSE)","v":{"$error":"#N/A"}},100,{"$f":"VLOOKUP(J650,'EXPENSE DATABASE'!$B$69:$C$168,2,FALSE)","v":{"$error":"#N/A"}},101,{"$f":"VLOOKUP(K650,'EXPENSE DATABASE'!$B$6:$C$35,2,FALSE)","v":{"$error":"#N/A"}},31,{"$f":"VLOOKUP(L650,'EXPENSE DATABASE'!$B$173:$C$176,2,FALSE)","v":{"$error":"#N/A"}},100,0,0,{"$f":"IF(L650=T('EXPENSE DATABASE'!$E$173),O650,0)","v":0},{"$f":"IF(L650=T('EXPENSE DATABASE'!$E$174),O650,0)","v":0},{"$f":"IF(L650=T('EXPENSE DATABASE'!$E$175),O650,0)","v":0},0,637]
[{"$f":"IF(COUNTA(#REF!,#REF!,#REF!,#REF!,#REF!,#REF!,#REF!,#REF!,#REF!,#REF!,#REF!)>0,1,0)","v":1},{"$f":"IF((COUNTA(#REF!)=4),1,-1)*A651","v":-1},{"$nulls":12},{"v":0,"d":"$0.00"},{"v":0,"d":"$0.00"},{"v":0,"d":"$0.00"},0,{"$f":"IF(OR(K651='EXPENSE DATABASE'!$V$187,K651='EXPENSE DATABASE'!$V$188,K651='EXPENSE DATABASE'!$V$189,K651='EXPENSE DATABASE'!$V$190,K651='EXPENSE DATABASE'!$V$191,K651='EXPENSE DATABASE'!$V$192,K651='EXPENSE DATABASE'!$V$193,K651='EXPENSE DATABASE'!$V$194,K651='EXPENSE DATABASE'!$X$187,K651='EXPENSE DATABASE'!$X$188,K651='EXPENSE DATABASE'!$X$189,K651='EXPENSE DATABASE'!$X$190,K651='EXPENSE DATABASE'!$X$191,K651='EXPENSE DATABASE'!$X$192,K651='EXPENSE DATABASE'!$X$193,K651='EXPENSE DATABASE'!$X$194,K651='EXPENSE DATABASE'!$Z$187,K651='EXPENSE DATABASE'!$Z$188,K651='EXPENSE DATABASE'!$Z$189,K651='EXPENSE DATABASE'!$Z$190,K651='EXPENSE DATABASE'!$Z$191,K651='EXPENSE DATABASE'!$Z$192,K651='EXPENSE DATABASE'!$Z$193,K651='EXPENSE DATABASE'!$Z$194),O651,\"\")","v":""},{"$f":"IF(OR(K651='EXPENSE DATABASE'!$T$189,K651='EXPENSE DATABASE'!$T$190,K651='EXPENSE DATABASE'!$T$191),O651,\"\")","v":""},{"$f":"VLOOKUP(I651,'EXPENSE DATABASE'!$B$41:$C$65,2,FALSE)","v":{"$error":"#N/A"}},100,{"$f":"VLOOKUP(J651,'EXPENSE DATABASE'!$B$69:$C$168,2,FALSE)","v":{"$error":"#N/A"}},101,{"$f":"VLOOKUP(K651,'EXPENSE DATABASE'!$B$6:$C$35,2,FALSE)","v":{"$error":"#N/A"}},31,{"$f":"VLOOKUP(L651,'EXPENSE DATABASE'!$B$173:$C$176,2,FALSE)","v":{"$error":"#N/A"}},100,0,0,{"$f":"IF(L651=T('EXPENSE DATABASE'!$E$173),O651,0)","v":0},{"$f":"IF(L651=T('EXPENSE DATABASE'!$E$174),O651,0)","v":0},{"$f":"IF(L651=T('EXPENSE DATABASE'!$E$175),O651,0)","v":0},0,638]
[{"$f":"IF(COUNTA(#REF!,#REF!,#REF!,#REF!,#REF!,#REF!,#REF!,#REF!,#REF!,#REF!,#REF!)>0,1,0)","v":1},{"$f":"IF((COUNTA(#REF!)=4),1,-1)*A652","v":-1},{"$nulls":12},{"v":0,"d":"$0.00"},{"v":0,"d":"$0.00"},{"v":0,"d":"$0.00"},0,{"$f":"IF(OR(K652='EXPENSE DATABASE'!$V$187,K652='EXPENSE DATABASE'!$V$188,K652='EXPENSE DATABASE'!$V$189,K652='EXPENSE DATABASE'!$V$190,K652='EXPENSE DATABASE'!$V$191,K652='EXPENSE DATABASE'!$V$192,K652='EXPENSE DATABASE'!$V$193,K652='EXPENSE DATABASE'!$V$194,K652='EXPENSE DATABASE'!$X$187,K652='EXPENSE DATABASE'!$X$188,K652='EXPENSE DATABASE'!$X$189,K652='EXPENSE DATABASE'!$X$190,K652='EXPENSE DATABASE'!$X$191,K652='EXPENSE DATABASE'!$X$192,K652='EXPENSE DATABASE'!$X$193,K652='EXPENSE DATABASE'!$X$194,K652='EXPENSE DATABASE'!$Z$187,K652='EXPENSE DATABASE'!$Z$188,K652='EXPENSE DATABASE'!$Z$189,K652='EXPENSE DATABASE'!$Z$190,K652='EXPENSE DATABASE'!$Z$191,K652='EXPENSE DATABASE'!$Z$192,K652='EXPENSE DATABASE'!$Z$193,K652='EXPENSE DATABASE'!$Z$194),O652,\"\")","v":""},{"$f":"IF(OR(K652='EXPENSE DATABASE'!$T$189,K652='EXPENSE DATABASE'!$T$190,K652='EXPENSE DATABASE'!$T$191),O652,\"\")","v":""},{"$f":"VLOOKUP(I652,'EXPENSE DATABASE'!$B$41:$C$65,2,FALSE)","v":{"$error":"#N/A"}},100,{"$f":"VLOOKUP(J652,'EXPENSE DATABASE'!$B$69:$C$168,2,FALSE)","v":{"$error":"#N/A"}},101,{"$f":"VLOOKUP(K652,'EXPENSE DATABASE'!$B$6:$C$35,2,FALSE)","v":{"$error":"#N/A"}},31,{"$f":"VLOOKUP(L652,'EXPENSE DATABASE'!$B$173:$C$176,2,FALSE)","v":{"$error":"#N/A"}},100,0,0,{"$f":"IF(L652=T('EXPENSE DATABASE'!$E$173),O652,0)","v":0},{"$f":"IF(L652=T('EXPENSE DATABASE'!$E$174),O652,0)","v":0},{"$f":"IF(L652=T('EXPENSE DATABASE'!$E$175),O652,0)","v":0},0,639]
[{"$f":"IF(COUNTA(#REF!,#REF!,#REF!,#REF!,#REF!,#REF!,#REF!,#REF!,#REF!,#REF!,#REF!)>0,1,0)","v":1},{"$f":"IF((COUNTA(#REF!)=4),1,-1)*A653","v":-1},{"$nulls":12},{"v":0,"d":"$0.00"},{"v":0,"d":"$0.00"},{"v":0,"d":"$0.00"},0,{"$f":"IF(OR(K653='EXPENSE DATABASE'!$V$187,K653='EXPENSE DATABASE'!$V$188,K653='EXPENSE DATABASE'!$V$189,K653='EXPENSE DATABASE'!$V$190,K653='EXPENSE DATABASE'!$V$191,K653='EXPENSE DATABASE'!$V$192,K653='EXPENSE DATABASE'!$V$193,K653='EXPENSE DATABASE'!$V$194,K653='EXPENSE DATABASE'!$X$187,K653='EXPENSE DATABASE'!$X$188,K653='EXPENSE DATABASE'!$X$189,K653='EXPENSE DATABASE'!$X$190,K653='EXPENSE DATABASE'!$X$191,K653='EXPENSE DATABASE'!$X$192,K653='EXPENSE DATABASE'!$X$193,K653='EXPENSE DATABASE'!$X$194,K653='EXPENSE DATABASE'!$Z$187,K653='EXPENSE DATABASE'!$Z$188,K653='EXPENSE DATABASE'!$Z$189,K653='EXPENSE DATABASE'!$Z$190,K653='EXPENSE DATABASE'!$Z$191,K653='EXPENSE DATABASE'!$Z$192,K653='EXPENSE DATABASE'!$Z$193,K653='EXPENSE DATABASE'!$Z$194),O653,\"\")","v":""},{"$f":"IF(OR(K653='EXPENSE DATABASE'!$T$189,K653='EXPENSE DATABASE'!$T$190,K653='EXPENSE DATABASE'!$T$191),O653,\"\")","v":""},{"$f":"VLOOKUP(I653,'EXPENSE DATABASE'!$B$41:$C$65,2,FALSE)","v":{"$error":"#N/A"}},100,{"$f":"VLOOKUP(J653,'EXPENSE DATABASE'!$B$69:$C$168,2,FALSE)","v":{"$error":"#N/A"}},101,{"$f":"VLOOKUP(K653,'EXPENSE DATABASE'!$B$6:$C$35,2,FALSE)","v":{"$error":"#N/A"}},31,{"$f":"VLOOKUP(L653,'EXPENSE DATABASE'!$B$173:$C$176,2,FALSE)","v":{"$error":"#N/A"}},100,0,0,{"$f":"IF(L653=T('EXPENSE DATABASE'!$E$173),O653,0)","v":0},{"$f":"IF(L653=T('EXPENSE DATABASE'!$E$174),O653,0)","v":0},{"$f":"IF(L653=T('EXPENSE DATABASE'!$E$175),O653,0)","v":0},0,640]
[{"$f":"IF(COUNTA(#REF!,#REF!,#REF!,#REF!,#REF!,#REF!,#REF!,#REF!,#REF!,#REF!,#REF!)>0,1,0)","v":1},{"$f":"IF((COUNTA(#REF!)=4),1,-1)*A654","v":-1},{"$nulls":12},{"$f":"M654*N654","v":{"v":0,"d":"$0.00"}},{"$f":"IF(OR(D654=\"No\",D654=\"\"),O654,0)","v":{"v":0,"d":"$0.00"}},{"$f":"IF(D654=\"Yes\",O654,0)","v":{"v":0,"d":"$0.00"}},{"$f":"IF(O654>0,1,0)","v":0},{"$f":"IF(OR(K654='EXPENSE DATABASE'!$V$187,K654='EXPENSE DATABASE'!$V$188,K654='EXPENSE DATABASE'!$V$189,K654='EXPENSE DATABASE'!$V$190,K654='EXPENSE DATABASE'!$V$191,K654='EXPENSE DATABASE'!$V$192,K654='EXPENSE DATABASE'!$V$193,K654='EXPENSE DATABASE'!$V$194,K654='EXPENSE DATABASE'!$X$187,K654='EXPENSE DATABASE'!$X$188,K654='EXPENSE DATABASE'!$X$189,K654='EXPENSE DATABASE'!$X$190,K654='EXPENSE DATABASE'!$X$191,K654='EXPENSE DATABASE'!$X$192,K654='EXPENSE DATABASE'!$X$193,K654='EXPENSE DATABASE'!$X$194,K654='EXPENSE DATABASE'!$Z$187,K654='EXPENSE DATABASE'!$Z$188,K654='EXPENSE DATABASE'!$Z$189,K654='EXPENSE DATABASE'!$Z$190,K654='EXPENSE DATABASE'!$Z$191,K654='EXPENSE DATABASE'!$Z$192,K654='EXPENSE DATABASE'!$Z$193,K654='EXPENSE DATABASE'!$Z$194),O654,\"\")","v":""},{"$f":"IF(OR(K654='EXPENSE DATABASE'!$T$189,K654='EXPENSE DATABASE'!$T$190,K654='EXPENSE DATABASE'!$T$191),O654,\"\")","v":""},{"$f":"VLOOKUP(I654,'EXPENSE DATABASE'!$B$41:$C$65,2,FALSE)","v":{"$error":"#N/A"}},{"$f":"IFERROR(U654,100)","v":100},{"$f":"VLOOKUP(J654,'EXPENSE DATABASE'!$B$69:$C$168,2,FALSE)","v":{"$error":"#N/A"}},{"$f":"IFERROR(W654,101)","v":101},{"$f":"VLOOKUP(K654,'EXPENSE DATABASE'!$B$6:$C$35,2,FALSE)","v":{"$error":"#N/A"}},{"$f":"IFERROR(Y654,31)","v":31},{"$f":"VLOOKUP(L654,'EXPENSE DATABASE'!$B$173:$C$176,2,FALSE)","v":{"$error":"#N/A"}},{"$f":"IFERROR(AA654,100)","v":100},{"$f":"IF(K654=0,0,1)","v":0},{"$f":"IF(J654=0,0,1)","v":0},{"$f":"IF(L654=T('EXPENSE DATABASE'!$E$173),O654,0)","v":0},{"$f":"IF(L654=T('EXPENSE DATABASE'!$E$174),O654,0)","v":0},{"$f":"IF(L654=T('EXPENSE DATABASE'!$E$175),O654,0)","v":0},{"$f":"IF(OR(N654=0,E654=0),0,MONTH(E654))","v":0},641]
[{"$f":"IF(COUNTA(#REF!,#REF!,#REF!,#REF!,#REF!,#REF!,#REF!,#REF!,#REF!,#REF!,#REF!)>0,1,0)","v":1},{"$f":"IF((COUNTA(#REF!)=4),1,-1)*A655","v":-1},{"$nulls":12},{"v":0,"d":"$0.00"},{"v":0,"d":"$0.00"},{"v":0,"d":"$0.00"},0,{"$f":"IF(OR(K655='EXPENSE DATABASE'!$V$187,K655='EXPENSE DATABASE'!$V$188,K655='EXPENSE DATABASE'!$V$189,K655='EXPENSE DATABASE'!$V$190,K655='EXPENSE DATABASE'!$V$191,K655='EXPENSE DATABASE'!$V$192,K655='EXPENSE DATABASE'!$V$193,K655='EXPENSE DATABASE'!$V$194,K655='EXPENSE DATABASE'!$X$187,K655='EXPENSE DATABASE'!$X$188,K655='EXPENSE DATABASE'!$X$189,K655='EXPENSE DATABASE'!$X$190,K655='EXPENSE DATABASE'!$X$191,K655='EXPENSE DATABASE'!$X$192,K655='EXPENSE DATABASE'!$X$193,K655='EXPENSE DATABASE'!$X$194,K655='EXPENSE DATABASE'!$Z$187,K655='EXPENSE DATABASE'!$Z$188,K655='EXPENSE DATABASE'!$Z$189,K655='EXPENSE DATABASE'!$Z$190,K655='EXPENSE DATABASE'!$Z$191,K655='EXPENSE DATABASE'!$Z$192,K655='EXPENSE DATABASE'!$Z$193,K655='EXPENSE DATABASE'!$Z$194),O655,\"\")","v":""},{"$f":"IF(OR(K655='EXPENSE DATABASE'!$T$189,K655='EXPENSE DATABASE'!$T$190,K655='EXPENSE DATABASE'!$T$191),O655,\"\")","v":""},{"$f":"VLOOKUP(I655,'EXPENSE DATABASE'!$B$41:$C$65,2,FALSE)","v":{"$error":"#N/A"}},100,{"$f":"VLOOKUP(J655,'EXPENSE DATABASE'!$B$69:$C$168,2,FALSE)","v":{"$error":"#N/A"}},101,{"$f":"VLOOKUP(K655,'EXPENSE DATABASE'!$B$6:$C$35,2,FALSE)","v":{"$error":"#N/A"}},31,{"$f":"VLOOKUP(L655,'EXPENSE DATABASE'!$B$173:$C$176,2,FALSE)","v":{"$error":"#N/A"}},100,0,0,{"$f":"IF(L655=T('EXPENSE DATABASE'!$E$173),O655,0)","v":0},{"$f":"IF(L655=T('EXPENSE DATABASE'!$E$174),O655,0)","v":0},{"$f":"IF(L655=T('EXPENSE DATABASE'!$E$175),O655,0)","v":0},0,642]
[{"$f":"IF(COUNTA(#REF!,#REF!,#REF!,#REF!,#REF!,#REF!,#REF!,#REF!,#REF!,#REF!,#REF!)>0,1,0)","v":1},{"$f":"IF((COUNTA(#REF!)=4),1,-1)*A656","v":-1},{"$nulls":12},{"v":0,"d":"$0.00"},{"v":0,"d":"$0.00"},{"v":0,"d":"$0.00"},0,{"$f":"IF(OR(K656='EXPENSE DATABASE'!$V$187,K656='EXPENSE DATABASE'!$V$188,K656='EXPENSE DATABASE'!$V$189,K656='EXPENSE DATABASE'!$V$190,K656='EXPENSE DATABASE'!$V$191,K656='EXPENSE DATABASE'!$V$192,K656='EXPENSE DATABASE'!$V$193,K656='EXPENSE DATABASE'!$V$194,K656='EXPENSE DATABASE'!$X$187,K656='EXPENSE DATABASE'!$X$188,K656='EXPENSE DATABASE'!$X$189,K656='EXPENSE DATABASE'!$X$190,K656='EXPENSE DATABASE'!$X$191,K656='EXPENSE DATABASE'!$X$192,K656='EXPENSE DATABASE'!$X$193,K656='EXPENSE DATABASE'!$X$194,K656='EXPENSE DATABASE'!$Z$187,K656='EXPENSE DATABASE'!$Z$188,K656='EXPENSE DATABASE'!$Z$189,K656='EXPENSE DATABASE'!$Z$190,K656='EXPENSE DATABASE'!$Z$191,K656='EXPENSE DATABASE'!$Z$192,K656='EXPENSE DATABASE'!$Z$193,K656='EXPENSE DATABASE'!$Z$194),O656,\"\")","v":""},{"$f":"IF(OR(K656='EXPENSE DATABASE'!$T$189,K656='EXPENSE DATABASE'!$T$190,K656='EXPENSE DATABASE'!$T$191),O656,\"\")","v":""},{"$f":"VLOOKUP(I656,'EXPENSE DATABASE'!$B$41:$C$65,2,FALSE)","v":{"$error":"#N/A"}},100,{"$f":"VLOOKUP(J656,'EXPENSE DATABASE'!$B$69:$C$168,2,FALSE)","v":{"$error":"#N/A"}},101,{"$f":"VLOOKUP(K656,'EXPENSE DATABASE'!$B$6:$C$35,2,FALSE)","v":{"$error":"#N/A"}},31,{"$f":"VLOOKUP(L656,'EXPENSE DATABASE'!$B$173:$C$176,2,FALSE)","v":{"$error":"#N/A"}},100,0,0,{"$f":"IF(L656=T('EXPENSE DATABASE'!$E$173),O656,0)","v":0},{"$f":"IF(L656=T('EXPENSE DATABASE'!$E$174),O656,0)","v":0},{"$f":"IF(L656=T('EXPENSE DATABASE'!$E$175),O656,0)","v":0},0,643]
[{"$f":"IF(COUNTA(#REF!,#REF!,#REF!,#REF!,#REF!,#REF!,#REF!,#REF!,#REF!,#REF!,#REF!)>0,1,0)","v":1},{"$f":"IF((COUNTA(#REF!)=4),1,-1)*A657","v":-1},{"$nulls":12},{"v":0,"d":"$0.00"},{"v":0,"d":"$0.00"},{"v":0,"d":"$0.00"},0,{"$f":"IF(OR(K657='EXPENSE DATABASE'!$V$187,K657='EXPENSE DATABASE'!$V$188,K657='EXPENSE DATABASE'!$V$189,K657='EXPENSE DATABASE'!$V$190,K657='EXPENSE DATABASE'!$V$191,K657='EXPENSE DATABASE'!$V$192,K657='EXPENSE DATABASE'!$V$193,K657='EXPENSE DATABASE'!$V$194,K657='EXPENSE DATABASE'!$X$187,K657='EXPENSE DATABASE'!$X$188,K657='EXPENSE DATABASE'!$X$189,K657='EXPENSE DATABASE'!$X$190,K657='EXPENSE DATABASE'!$X$191,K657='EXPENSE DATABASE'!$X$192,K657='EXPENSE DATABASE'!$X$193,K657='EXPENSE DATABASE'!$X$194,K657='EXPENSE DATABASE'!$Z$187,K657='EXPENSE DATABASE'!$Z$188,K657='EXPENSE DATABASE'!$Z$189,K657='EXPENSE DATABASE'!$Z$190,K657='EXPENSE DATABASE'!$Z$191,K657='EXPENSE DATABASE'!$Z$192,K657='EXPENSE DATABASE'!$Z$193,K657='EXPENSE DATABASE'!$Z$194),O657,\"\")","v":""},{"$f":"IF(OR(K657='EXPENSE DATABASE'!$T$189,K657='EXPENSE DATABASE'!$T$190,K657='EXPENSE DATABASE'!$T$191),O657,\"\")","v":""},{"$f":"VLOOKUP(I657,'EXPENSE DATABASE'!$B$41:$C$65,2,FALSE)","v":{"$error":"#N/A"}},100,{"$f":"VLOOKUP(J657,'EXPENSE DATABASE'!$B$69:$C$168,2,FALSE)","v":{"$error":"#N/A"}},101,{"$f":"VLOOKUP(K657,'EXPENSE DATABASE'!$B$6:$C$35,2,FALSE)","v":{"$error":"#N/A"}},31,{"$f":"VLOOKUP(L657,'EXPENSE DATABASE'!$B$173:$C$176,2,FALSE)","v":{"$error":"#N/A"}},100,0,0,{"$f":"IF(L657=T('EXPENSE DATABASE'!$E$173),O657,0)","v":0},{"$f":"IF(L657=T('EXPENSE DATABASE'!$E$174),O657,0)","v":0},{"$f":"IF(L657=T('EXPENSE DATABASE'!$E$175),O657,0)","v":0},0,644]
[{"$f":"IF(COUNTA(#REF!,#REF!,#REF!,#REF!,#REF!,#REF!,#REF!,#REF!,#REF!,#REF!,#REF!)>0,1,0)","v":1},{"$f":"IF((COUNTA(#REF!)=4),1,-1)*A658","v":-1},{"$nulls":12},{"v":0,"d":"$0.00"},{"v":0,"d":"$0.00"},{"v":0,"d":"$0.00"},0,{"$f":"IF(OR(K658='EXPENSE DATABASE'!$V$187,K658='EXPENSE DATABASE'!$V$188,K658='EXPENSE DATABASE'!$V$189,K658='EXPENSE DATABASE'!$V$190,K658='EXPENSE DATABASE'!$V$191,K658='EXPENSE DATABASE'!$V$192,K658='EXPENSE DATABASE'!$V$193,K658='EXPENSE DATABASE'!$V$194,K658='EXPENSE DATABASE'!$X$187,K658='EXPENSE DATABASE'!$X$188,K658='EXPENSE DATABASE'!$X$189,K658='EXPENSE DATABASE'!$X$190,K658='EXPENSE DATABASE'!$X$191,K658='EXPENSE DATABASE'!$X$192,K658='EXPENSE DATABASE'!$X$193,K658='EXPENSE DATABASE'!$X$194,K658='EXPENSE DATABASE'!$Z$187,K658='EXPENSE DATABASE'!$Z$188,K658='EXPENSE DATABASE'!$Z$189,K658='EXPENSE DATABASE'!$Z$190,K658='EXPENSE DATABASE'!$Z$191,K658='EXPENSE DATABASE'!$Z$192,K658='EXPENSE DATABASE'!$Z$193,K658='EXPENSE DATABASE'!$Z$194),O658,\"\")","v":""},{"$f":"IF(OR(K658='EXPENSE DATABASE'!$T$189,K658='EXPENSE DATABASE'!$T$190,K658='EXPENSE DATABASE'!$T$191),O658,\"\")","v":""},{"$f":"VLOOKUP(I658,'EXPENSE DATABASE'!$B$41:$C$65,2,FALSE)","v":{"$error":"#N/A"}},100,{"$f":"VLOOKUP(J658,'EXPENSE DATABASE'!$B$69:$C$168,2,FALSE)","v":{"$error":"#N/A"}},101,{"$f":"VLOOKUP(K658,'EXPENSE DATABASE'!$B$6:$C$35,2,FALSE)","v":{"$error":"#N/A"}},31,{"$f":"VLOOKUP(L658,'EXPENSE DATABASE'!$B$173:$C$176,2,FALSE)","v":{"$error":"#N/A"}},100,0,0,{"$f":"IF(L658=T('EXPENSE DATABASE'!$E$173),O658,0)","v":0},{"$f":"IF(L658=T('EXPENSE DATABASE'!$E$174),O658,0)","v":0},{"$f":"IF(L658=T('EXPENSE DATABASE'!$E$175),O658,0)","v":0},0,645]
[{"$f":"IF(COUNTA(#REF!,#REF!,#REF!,#REF!,#REF!,#REF!,#REF!,#REF!,#REF!,#REF!,#REF!)>0,1,0)","v":1},{"$f":"IF((COUNTA(#REF!)=4),1,-1)*A659","v":-1},{"$nulls":12},{"v":0,"d":"$0.00"},{"v":0,"d":"$0.00"},{"v":0,"d":"$0.00"},0,{"$f":"IF(OR(K659='EXPENSE DATABASE'!$V$187,K659='EXPENSE DATABASE'!$V$188,K659='EXPENSE DATABASE'!$V$189,K659='EXPENSE DATABASE'!$V$190,K659='EXPENSE DATABASE'!$V$191,K659='EXPENSE DATABASE'!$V$192,K659='EXPENSE DATABASE'!$V$193,K659='EXPENSE DATABASE'!$V$194,K659='EXPENSE DATABASE'!$X$187,K659='EXPENSE DATABASE'!$X$188,K659='EXPENSE DATABASE'!$X$189,K659='EXPENSE DATABASE'!$X$190,K659='EXPENSE DATABASE'!$X$191,K659='EXPENSE DATABASE'!$X$192,K659='EXPENSE DATABASE'!$X$193,K659='EXPENSE DATABASE'!$X$194,K659='EXPENSE DATABASE'!$Z$187,K659='EXPENSE DATABASE'!$Z$188,K659='EXPENSE DATABASE'!$Z$189,K659='EXPENSE DATABASE'!$Z$190,K659='EXPENSE DATABASE'!$Z$191,K659='EXPENSE DATABASE'!$Z$192,K659='EXPENSE DATABASE'!$Z$193,K659='EXPENSE DATABASE'!$Z$194),O659,\"\")","v":""},{"$f":"IF(OR(K659='EXPENSE DATABASE'!$T$189,K659='EXPENSE DATABASE'!$T$190,K659='EXPENSE DATABASE'!$T$191),O659,\"\")","v":""},{"$f":"VLOOKUP(I659,'EXPENSE DATABASE'!$B$41:$C$65,2,FALSE)","v":{"$error":"#N/A"}},100,{"$f":"VLOOKUP(J659,'EXPENSE DATABASE'!$B$69:$C$168,2,FALSE)","v":{"$error":"#N/A"}},101,{"$f":"VLOOKUP(K659,'EXPENSE DATABASE'!$B$6:$C$35,2,FALSE)","v":{"$error":"#N/A"}},31,{"$f":"VLOOKUP(L659,'EXPENSE DATABASE'!$B$173:$C$176,2,FALSE)","v":{"$error":"#N/A"}},100,0,0,{"$f":"IF(L659=T('EXPENSE DATABASE'!$E$173),O659,0)","v":0},{"$f":"IF(L659=T('EXPENSE DATABASE'!$E$174),O659,0)","v":0},{"$f":"IF(L659=T('EXPENSE DATABASE'!$E$175),O659,0)","v":0},0,646]
[{"$f":"IF(COUNTA(#REF!,#REF!,#REF!,#REF!,#REF!,#REF!,#REF!,#REF!,#REF!,#REF!,#REF!)>0,1,0)","v":1},{"$f":"IF((COUNTA(#REF!)=4),1,-1)*A660","v":-1},{"$nulls":12},{"v":0,"d":"$0.00"},{"v":0,"d":"$0.00"},{"v":0,"d":"$0.00"},0,{"$f":"IF(OR(K660='EXPENSE DATABASE'!$V$187,K660='EXPENSE DATABASE'!$V$188,K660='EXPENSE DATABASE'!$V$189,K660='EXPENSE DATABASE'!$V$190,K660='EXPENSE DATABASE'!$V$191,K660='EXPENSE DATABASE'!$V$192,K660='EXPENSE DATABASE'!$V$193,K660='EXPENSE DATABASE'!$V$194,K660='EXPENSE DATABASE'!$X$187,K660='EXPENSE DATABASE'!$X$188,K660='EXPENSE DATABASE'!$X$189,K660='EXPENSE DATABASE'!$X$190,K660='EXPENSE DATABASE'!$X$191,K660='EXPENSE DATABASE'!$X$192,K660='EXPENSE DATABASE'!$X$193,K660='EXPENSE DATABASE'!$X$194,K660='EXPENSE DATABASE'!$Z$187,K660='EXPENSE DATABASE'!$Z$188,K660='EXPENSE DATABASE'!$Z$189,K660='EXPENSE DATABASE'!$Z$190,K660='EXPENSE DATABASE'!$Z$191,K660='EXPENSE DATABASE'!$Z$192,K660='EXPENSE DATABASE'!$Z$193,K660='EXPENSE DATABASE'!$Z$194),O660,\"\")","v":""},{"$f":"IF(OR(K660='EXPENSE DATABASE'!$T$189,K660='EXPENSE DATABASE'!$T$190,K660='EXPENSE DATABASE'!$T$191),O660,\"\")","v":""},{"$f":"VLOOKUP(I660,'EXPENSE DATABASE'!$B$41:$C$65,2,FALSE)","v":{"$error":"#N/A"}},100,{"$f":"VLOOKUP(J660,'EXPENSE DATABASE'!$B$69:$C$168,2,FALSE)","v":{"$error":"#N/A"}},101,{"$f":"VLOOKUP(K660,'EXPENSE DATABASE'!$B$6:$C$35,2,FALSE)","v":{"$error":"#N/A"}},31,{"$f":"VLOOKUP(L660,'EXPENSE DATABASE'!$B$173:$C$176,2,FALSE)","v":{"$error":"#N/A"}},100,0,0,{"$f":"IF(L660=T('EXPENSE DATABASE'!$E$173),O660,0)","v":0},{"$f":"IF(L660=T('EXPENSE DATABASE'!$E$174),O660,0)","v":0},{"$f":"IF(L660=T('EXPENSE DATABASE'!$E$175),O660,0)","v":0},0,647]
[{"$f":"IF(COUNTA(#REF!,#REF!,#REF!,#REF!,#REF!,#REF!,#REF!,#REF!,#REF!,#REF!,#REF!)>0,1,0)","v":1},{"$f":"IF((COUNTA(#REF!)=4),1,-1)*A661","v":-1},{"$nulls":12},{"v":0,"d":"$0.00"},{"v":0,"d":"$0.00"},{"v":0,"d":"$0.00"},0,{"$f":"IF(OR(K661='EXPENSE DATABASE'!$V$187,K661='EXPENSE DATABASE'!$V$188,K661='EXPENSE DATABASE'!$V$189,K661='EXPENSE DATABASE'!$V$190,K661='EXPENSE DATABASE'!$V$191,K661='EXPENSE DATABASE'!$V$192,K661='EXPENSE DATABASE'!$V$193,K661='EXPENSE DATABASE'!$V$194,K661='EXPENSE DATABASE'!$X$187,K661='EXPENSE DATABASE'!$X$188,K661='EXPENSE DATABASE'!$X$189,K661='EXPENSE DATABASE'!$X$190,K661='EXPENSE DATABASE'!$X$191,K661='EXPENSE DATABASE'!$X$192,K661='EXPENSE DATABASE'!$X$193,K661='EXPENSE DATABASE'!$X$194,K661='EXPENSE DATABASE'!$Z$187,K661='EXPENSE DATABASE'!$Z$188,K661='EXPENSE DATABASE'!$Z$189,K661='EXPENSE DATABASE'!$Z$190,K661='EXPENSE DATABASE'!$Z$191,K661='EXPENSE DATABASE'!$Z$192,K661='EXPENSE DATABASE'!$Z$193,K661='EXPENSE DATABASE'!$Z$194),O661,\"\")","v":""},{"$f":"IF(OR(K661='EXPENSE DATABASE'!$T$189,K661='EXPENSE DATABASE'!$T$190,K661='EXPENSE DATABASE'!$T$191),O661,\"\")","v":""},{"$f":"VLOOKUP(I661,'EXPENSE DATABASE'!$B$41:$C$65,2,FALSE)","v":{"$error":"#N/A"}},100,{"$f":"VLOOKUP(J661,'EXPENSE DATABASE'!$B$69:$C$168,2,FALSE)","v":{"$error":"#N/A"}},101,{"$f":"VLOOKUP(K661,'EXPENSE DATABASE'!$B$6:$C$35,2,FALSE)","v":{"$error":"#N/A"}},31,{"$f":"VLOOKUP(L661,'EXPENSE DATABASE'!$B$173:$C$176,2,FALSE)","v":{"$error":"#N/A"}},100,0,0,{"$f":"IF(L661=T('EXPENSE DATABASE'!$E$173),O661,0)","v":0},{"$f":"IF(L661=T('EXPENSE DATABASE'!$E$174),O661,0)","v":0},{"$f":"IF(L661=T('EXPENSE DATABASE'!$E$175),O661,0)","v":0},0,648]
[{"$f":"IF(COUNTA(#REF!,#REF!,#REF!,#REF!,#REF!,#REF!,#REF!,#REF!,#REF!,#REF!,#REF!)>0,1,0)","v":1},{"$f":"IF((COUNTA(#REF!)=4),1,-1)*A662","v":-1},{"$nulls":12},{"v":0,"d":"$0.00"},{"v":0,"d":"$0.00"},{"v":0,"d":"$0.00"},0,{"$f":"IF(OR(K662='EXPENSE DATABASE'!$V$187,K662='EXPENSE DATABASE'!$V$188,K662='EXPENSE DATABASE'!$V$189,K662='EXPENSE DATABASE'!$V$190,K662='EXPENSE DATABASE'!$V$191,K662='EXPENSE DATABASE'!$V$192,K662='EXPENSE DATABASE'!$V$193,K662='EXPENSE DATABASE'!$V$194,K662='EXPENSE DATABASE'!$X$187,K662='EXPENSE DATABASE'!$X$188,K662='EXPENSE DATABASE'!$X$189,K662='EXPENSE DATABASE'!$X$190,K662='EXPENSE DATABASE'!$X$191,K662='EXPENSE DATABASE'!$X$192,K662='EXPENSE DATABASE'!$X$193,K662='EXPENSE DATABASE'!$X$194,K662='EXPENSE DATABASE'!$Z$187,K662='EXPENSE DATABASE'!$Z$188,K662='EXPENSE DATABASE'!$Z$189,K662='EXPENSE DATABASE'!$Z$190,K662='EXPENSE DATABASE'!$Z$191,K662='EXPENSE DATABASE'!$Z$192,K662='EXPENSE DATABASE'!$Z$193,K662='EXPENSE DATABASE'!$Z$194),O662,\"\")","v":""},{"$f":"IF(OR(K662='EXPENSE DATABASE'!$T$189,K662='EXPENSE DATABASE'!$T$190,K662='EXPENSE DATABASE'!$T$191),O662,\"\")","v":""},{"$f":"VLOOKUP(I662,'EXPENSE DATABASE'!$B$41:$C$65,2,FALSE)","v":{"$error":"#N/A"}},100,{"$f":"VLOOKUP(J662,'EXPENSE DATABASE'!$B$69:$C$168,2,FALSE)","v":{"$error":"#N/A"}},101,{"$f":"VLOOKUP(K662,'EXPENSE DATABASE'!$B$6:$C$35,2,FALSE)","v":{"$error":"#N/A"}},31,{"$f":"VLOOKUP(L662,'EXPENSE DATABASE'!$B$173:$C$176,2,FALSE)","v":{"$error":"#N/A"}},100,0,0,{"$f":"IF(L662=T('EXPENSE DATABASE'!$E$173),O662,0)","v":0},{"$f":"IF(L662=T('EXPENSE DATABASE'!$E$174),O662,0)","v":0},{"$f":"IF(L662=T('EXPENSE DATABASE'!$E$175),O662,0)","v":0},0,649]
[{"$f":"IF(COUNTA(#REF!,#REF!,#REF!,#REF!,#REF!,#REF!,#REF!,#REF!,#REF!,#REF!,#REF!)>0,1,0)","v":1},{"$f":"IF((COUNTA(#REF!)=4),1,-1)*A663","v":-1},{"$nulls":12},{"v":0,"d":"$0.00"},{"v":0,"d":"$0.00"},{"v":0,"d":"$0.00"},0,{"$f":"IF(OR(K663='EXPENSE DATABASE'!$V$187,K663='EXPENSE DATABASE'!$V$188,K663='EXPENSE DATABASE'!$V$189,K663='EXPENSE DATABASE'!$V$190,K663='EXPENSE DATABASE'!$V$191,K663='EXPENSE DATABASE'!$V$192,K663='EXPENSE DATABASE'!$V$193,K663='EXPENSE DATABASE'!$V$194,K663='EXPENSE DATABASE'!$X$187,K663='EXPENSE DATABASE'!$X$188,K663='EXPENSE DATABASE'!$X$189,K663='EXPENSE DATABASE'!$X$190,K663='EXPENSE DATABASE'!$X$191,K663='EXPENSE DATABASE'!$X$192,K663='EXPENSE DATABASE'!$X$193,K663='EXPENSE DATABASE'!$X$194,K663='EXPENSE DATABASE'!$Z$187,K663='EXPENSE DATABASE'!$Z$188,K663='EXPENSE DATABASE'!$Z$189,K663='EXPENSE DATABASE'!$Z$190,K663='EXPENSE DATABASE'!$Z$191,K663='EXPENSE DATABASE'!$Z$192,K663='EXPENSE DATABASE'!$Z$193,K663='EXPENSE DATABASE'!$Z$194),O663,\"\")","v":""},{"$f":"IF(OR(K663='EXPENSE DATABASE'!$T$189,K663='EXPENSE DATABASE'!$T$190,K663='EXPENSE DATABASE'!$T$191),O663,\"\")","v":""},{"$f":"VLOOKUP(I663,'EXPENSE DATABASE'!$B$41:$C$65,2,FALSE)","v":{"$error":"#N/A"}},100,{"$f":"VLOOKUP(J663,'EXPENSE DATABASE'!$B$69:$C$168,2,FALSE)","v":{"$error":"#N/A"}},101,{"$f":"VLOOKUP(K663,'EXPENSE DATABASE'!$B$6:$C$35,2,FALSE)","v":{"$error":"#N/A"}},31,{"$f":"VLOOKUP(L663,'EXPENSE DATABASE'!$B$173:$C$176,2,FALSE)","v":{"$error":"#N/A"}},100,0,0,{"$f":"IF(L663=T('EXPENSE DATABASE'!$E$173),O663,0)","v":0},{"$f":"IF(L663=T('EXPENSE DATABASE'!$E$174),O663,0)","v":0},{"$f":"IF(L663=T('EXPENSE DATABASE'!$E$175),O663,0)","v":0},0,650]
[{"$f":"IF(COUNTA(#REF!,#REF!,#REF!,#REF!,#REF!,#REF!,#REF!,#REF!,#REF!,#REF!,#REF!)>0,1,0)","v":1},{"$f":"IF((COUNTA(#REF!)=4),1,-1)*A664","v":-1},{"$nulls":12},{"v":0,"d":"$0.00"},{"v":0,"d":"$0.00"},{"v":0,"d":"$0.00"},0,{"$f":"IF(OR(K664='EXPENSE DATABASE'!$V$187,K664='EXPENSE DATABASE'!$V$188,K664='EXPENSE DATABASE'!$V$189,K664='EXPENSE DATABASE'!$V$190,K664='EXPENSE DATABASE'!$V$191,K664='EXPENSE DATABASE'!$V$192,K664='EXPENSE DATABASE'!$V$193,K664='EXPENSE DATABASE'!$V$194,K664='EXPENSE DATABASE'!$X$187,K664='EXPENSE DATABASE'!$X$188,K664='EXPENSE DATABASE'!$X$189,K664='EXPENSE DATABASE'!$X$190,K664='EXPENSE DATABASE'!$X$191,K664='EXPENSE DATABASE'!$X$192,K664='EXPENSE DATABASE'!$X$193,K664='EXPENSE DATABASE'!$X$194,K664='EXPENSE DATABASE'!$Z$187,K664='EXPENSE DATABASE'!$Z$188,K664='EXPENSE DATABASE'!$Z$189,K664='EXPENSE DATABASE'!$Z$190,K664='EXPENSE DATABASE'!$Z$191,K664='EXPENSE DATABASE'!$Z$192,K664='EXPENSE DATABASE'!$Z$193,K664='EXPENSE DATABASE'!$Z$194),O664,\"\")","v":""},{"$f":"IF(OR(K664='EXPENSE DATABASE'!$T$189,K664='EXPENSE DATABASE'!$T$190,K664='EXPENSE DATABASE'!$T$191),O664,\"\")","v":""},{"$f":"VLOOKUP(I664,'EXPENSE DATABASE'!$B$41:$C$65,2,FALSE)","v":{"$error":"#N/A"}},100,{"$f":"VLOOKUP(J664,'EXPENSE DATABASE'!$B$69:$C$168,2,FALSE)","v":{"$error":"#N/A"}},101,{"$f":"VLOOKUP(K664,'EXPENSE DATABASE'!$B$6:$C$35,2,FALSE)","v":{"$error":"#N/A"}},31,{"$f":"VLOOKUP(L664,'EXPENSE DATABASE'!$B$173:$C$176,2,FALSE)","v":{"$error":"#N/A"}},100,0,0,{"$f":"IF(L664=T('EXPENSE DATABASE'!$E$173),O664,0)","v":0},{"$f":"IF(L664=T('EXPENSE DATABASE'!$E$174),O664,0)","v":0},{"$f":"IF(L664=T('EXPENSE DATABASE'!$E$175),O664,0)","v":0},0,651]
[{"$f":"IF(COUNTA(#REF!,#REF!,#REF!,#REF!,#REF!,#REF!,#REF!,#REF!,#REF!,#REF!,#REF!)>0,1,0)","v":1},{"$f":"IF((COUNTA(#REF!)=4),1,-1)*A665","v":-1},{"$nulls":12},{"v":0,"d":"$0.00"},{"v":0,"d":"$0.00"},{"v":0,"d":"$0.00"},0,{"$f":"IF(OR(K665='EXPENSE DATABASE'!$V$187,K665='EXPENSE DATABASE'!$V$188,K665='EXPENSE DATABASE'!$V$189,K665='EXPENSE DATABASE'!$V$190,K665='EXPENSE DATABASE'!$V$191,K665='EXPENSE DATABASE'!$V$192,K665='EXPENSE DATABASE'!$V$193,K665='EXPENSE DATABASE'!$V$194,K665='EXPENSE DATABASE'!$X$187,K665='EXPENSE DATABASE'!$X$188,K665='EXPENSE DATABASE'!$X$189,K665='EXPENSE DATABASE'!$X$190,K665='EXPENSE DATABASE'!$X$191,K665='EXPENSE DATABASE'!$X$192,K665='EXPENSE DATABASE'!$X$193,K665='EXPENSE DATABASE'!$X$194,K665='EXPENSE DATABASE'!$Z$187,K665='EXPENSE DATABASE'!$Z$188,K665='EXPENSE DATABASE'!$Z$189,K665='EXPENSE DATABASE'!$Z$190,K665='EXPENSE DATABASE'!$Z$191,K665='EXPENSE DATABASE'!$Z$192,K665='EXPENSE DATABASE'!$Z$193,K665='EXPENSE DATABASE'!$Z$194),O665,\"\")","v":""},{"$f":"IF(OR(K665='EXPENSE DATABASE'!$T$189,K665='EXPENSE DATABASE'!$T$190,K665='EXPENSE DATABASE'!$T$191),O665,\"\")","v":""},{"$f":"VLOOKUP(I665,'EXPENSE DATABASE'!$B$41:$C$65,2,FALSE)","v":{"$error":"#N/A"}},100,{"$f":"VLOOKUP(J665,'EXPENSE DATABASE'!$B$69:$C$168,2,FALSE)","v":{"$error":"#N/A"}},101,{"$f":"VLOOKUP(K665,'EXPENSE DATABASE'!$B$6:$C$35,2,FALSE)","v":{"$error":"#N/A"}},31,{"$f":"VLOOKUP(L665,'EXPENSE DATABASE'!$B$173:$C$176,2,FALSE)","v":{"$error":"#N/A"}},100,0,0,{"$f":"IF(L665=T('EXPENSE DATABASE'!$E$173),O665,0)","v":0},{"$f":"IF(L665=T('EXPENSE DATABASE'!$E$174),O665,0)","v":0},{"$f":"IF(L665=T('EXPENSE DATABASE'!$E$175),O665,0)","v":0},0,652]
[{"$f":"IF(COUNTA(#REF!,#REF!,#REF!,#REF!,#REF!,#REF!,#REF!,#REF!,#REF!,#REF!,#REF!)>0,1,0)","v":1},{"$f":"IF((COUNTA(#REF!)=4),1,-1)*A666","v":-1},{"$nulls":12},{"v":0,"d":"$0.00"},{"v":0,"d":"$0.00"},{"v":0,"d":"$0.00"},0,{"$f":"IF(OR(K666='EXPENSE DATABASE'!$V$187,K666='EXPENSE DATABASE'!$V$188,K666='EXPENSE DATABASE'!$V$189,K666='EXPENSE DATABASE'!$V$190,K666='EXPENSE DATABASE'!$V$191,K666='EXPENSE DATABASE'!$V$192,K666='EXPENSE DATABASE'!$V$193,K666='EXPENSE DATABASE'!$V$194,K666='EXPENSE DATABASE'!$X$187,K666='EXPENSE DATABASE'!$X$188,K666='EXPENSE DATABASE'!$X$189,K666='EXPENSE DATABASE'!$X$190,K666='EXPENSE DATABASE'!$X$191,K666='EXPENSE DATABASE'!$X$192,K666='EXPENSE DATABASE'!$X$193,K666='EXPENSE DATABASE'!$X$194,K666='EXPENSE DATABASE'!$Z$187,K666='EXPENSE DATABASE'!$Z$188,K666='EXPENSE DATABASE'!$Z$189,K666='EXPENSE DATABASE'!$Z$190,K666='EXPENSE DATABASE'!$Z$191,K666='EXPENSE DATABASE'!$Z$192,K666='EXPENSE DATABASE'!$Z$193,K666='EXPENSE DATABASE'!$Z$194),O666,\"\")","v":""},{"$f":"IF(OR(K666='EXPENSE DATABASE'!$T$189,K666='EXPENSE DATABASE'!$T$190,K666='EXPENSE DATABASE'!$T$191),O666,\"\")","v":""},{"$f":"VLOOKUP(I666,'EXPENSE DATABASE'!$B$41:$C$65,2,FALSE)","v":{"$error":"#N/A"}},100,{"$f":"VLOOKUP(J666,'EXPENSE DATABASE'!$B$69:$C$168,2,FALSE)","v":{"$error":"#N/A"}},101,{"$f":"VLOOKUP(K666,'EXPENSE DATABASE'!$B$6:$C$35,2,FALSE)","v":{"$error":"#N/A"}},31,{"$f":"VLOOKUP(L666,'EXPENSE DATABASE'!$B$173:$C$176,2,FALSE)","v":{"$error":"#N/A"}},100,0,0,{"$f":"IF(L666=T('EXPENSE DATABASE'!$E$173),O666,0)","v":0},{"$f":"IF(L666=T('EXPENSE DATABASE'!$E$174),O666,0)","v":0},{"$f":"IF(L666=T('EXPENSE DATABASE'!$E$175),O666,0)","v":0},0,653]
[{"$f":"IF(COUNTA(#REF!,#REF!,#REF!,#REF!,#REF!,#REF!,#REF!,#REF!,#REF!,#REF!,#REF!)>0,1,0)","v":1},{"$f":"IF((COUNTA(#REF!)=4),1,-1)*A667","v":-1},{"$nulls":12},{"v":0,"d":"$0.00"},{"v":0,"d":"$0.00"},{"v":0,"d":"$0.00"},0,{"$f":"IF(OR(K667='EXPENSE DATABASE'!$V$187,K667='EXPENSE DATABASE'!$V$188,K667='EXPENSE DATABASE'!$V$189,K667='EXPENSE DATABASE'!$V$190,K667='EXPENSE DATABASE'!$V$191,K667='EXPENSE DATABASE'!$V$192,K667='EXPENSE DATABASE'!$V$193,K667='EXPENSE DATABASE'!$V$194,K667='EXPENSE DATABASE'!$X$187,K667='EXPENSE DATABASE'!$X$188,K667='EXPENSE DATABASE'!$X$189,K667='EXPENSE DATABASE'!$X$190,K667='EXPENSE DATABASE'!$X$191,K667='EXPENSE DATABASE'!$X$192,K667='EXPENSE DATABASE'!$X$193,K667='EXPENSE DATABASE'!$X$194,K667='EXPENSE DATABASE'!$Z$187,K667='EXPENSE DATABASE'!$Z$188,K667='EXPENSE DATABASE'!$Z$189,K667='EXPENSE DATABASE'!$Z$190,K667='EXPENSE DATABASE'!$Z$191,K667='EXPENSE DATABASE'!$Z$192,K667='EXPENSE DATABASE'!$Z$193,K667='EXPENSE DATABASE'!$Z$194),O667,\"\")","v":""},{"$f":"IF(OR(K667='EXPENSE DATABASE'!$T$189,K667='EXPENSE DATABASE'!$T$190,K667='EXPENSE DATABASE'!$T$191),O667,\"\")","v":""},{"$f":"VLOOKUP(I667,'EXPENSE DATABASE'!$B$41:$C$65,2,FALSE)","v":{"$error":"#N/A"}},100,{"$f":"VLOOKUP(J667,'EXPENSE DATABASE'!$B$69:$C$168,2,FALSE)","v":{"$error":"#N/A"}},101,{"$f":"VLOOKUP(K667,'EXPENSE DATABASE'!$B$6:$C$35,2,FALSE)","v":{"$error":"#N/A"}},31,{"$f":"VLOOKUP(L667,'EXPENSE DATABASE'!$B$173:$C$176,2,FALSE)","v":{"$error":"#N/A"}},100,0,0,{"$f":"IF(L667=T('EXPENSE DATABASE'!$E$173),O667,0)","v":0},{"$f":"IF(L667=T('EXPENSE DATABASE'!$E$174),O667,0)","v":0},{"$f":"IF(L667=T('EXPENSE DATABASE'!$E$175),O667,0)","v":0},0,654]
[{"$f":"IF(COUNTA(#REF!,#REF!,#REF!,#REF!,#REF!,#REF!,#REF!,#REF!,#REF!,#REF!,#REF!)>0,1,0)","v":1},{"$f":"IF((COUNTA(#REF!)=4),1,-1)*A668","v":-1},{"$nulls":12},{"v":0,"d":"$0.00"},{"v":0,"d":"$0.00"},{"v":0,"d":"$0.00"},0,{"$f":"IF(OR(K668='EXPENSE DATABASE'!$V$187,K668='EXPENSE DATABASE'!$V$188,K668='EXPENSE DATABASE'!$V$189,K668='EXPENSE DATABASE'!$V$190,K668='EXPENSE DATABASE'!$V$191,K668='EXPENSE DATABASE'!$V$192,K668='EXPENSE DATABASE'!$V$193,K668='EXPENSE DATABASE'!$V$194,K668='EXPENSE DATABASE'!$X$187,K668='EXPENSE DATABASE'!$X$188,K668='EXPENSE DATABASE'!$X$189,K668='EXPENSE DATABASE'!$X$190,K668='EXPENSE DATABASE'!$X$191,K668='EXPENSE DATABASE'!$X$192,K668='EXPENSE DATABASE'!$X$193,K668='EXPENSE DATABASE'!$X$194,K668='EXPENSE DATABASE'!$Z$187,K668='EXPENSE DATABASE'!$Z$188,K668='EXPENSE DATABASE'!$Z$189,K668='EXPENSE DATABASE'!$Z$190,K668='EXPENSE DATABASE'!$Z$191,K668='EXPENSE DATABASE'!$Z$192,K668='EXPENSE DATABASE'!$Z$193,K668='EXPENSE DATABASE'!$Z$194),O668,\"\")","v":""},{"$f":"IF(OR(K668='EXPENSE DATABASE'!$T$189,K668='EXPENSE DATABASE'!$T$190,K668='EXPENSE DATABASE'!$T$191),O668,\"\")","v":""},{"$f":"VLOOKUP(I668,'EXPENSE DATABASE'!$B$41:$C$65,2,FALSE)","v":{"$error":"#N/A"}},100,{"$f":"VLOOKUP(J668,'EXPENSE DATABASE'!$B$69:$C$168,2,FALSE)","v":{"$error":"#N/A"}},101,{"$f":"VLOOKUP(K668,'EXPENSE DATABASE'!$B$6:$C$35,2,FALSE)","v":{"$error":"#N/A"}},31,{"$f":"VLOOKUP(L668,'EXPENSE DATABASE'!$B$173:$C$176,2,FALSE)","v":{"$error":"#N/A"}},100,0,0,{"$f":"IF(L668=T('EXPENSE DATABASE'!$E$173),O668,0)","v":0},{"$f":"IF(L668=T('EXPENSE DATABASE'!$E$174),O668,0)","v":0},{"$f":"IF(L668=T('EXPENSE DATABASE'!$E$175),O668,0)","v":0},0,655]
[{"$f":"IF(COUNTA(#REF!,#REF!,#REF!,#REF!,#REF!,#REF!,#REF!,#REF!,#REF!,#REF!,#REF!)>0,1,0)","v":1},{"$f":"IF((COUNTA(#REF!)=4),1,-1)*A669","v":-1},{"$nulls":12},{"v":0,"d":"$0.00"},{"v":0,"d":"$0.00"},{"v":0,"d":"$0.00"},0,{"$f":"IF(OR(K669='EXPENSE DATABASE'!$V$187,K669='EXPENSE DATABASE'!$V$188,K669='EXPENSE DATABASE'!$V$189,K669='EXPENSE DATABASE'!$V$190,K669='EXPENSE DATABASE'!$V$191,K669='EXPENSE DATABASE'!$V$192,K669='EXPENSE DATABASE'!$V$193,K669='EXPENSE DATABASE'!$V$194,K669='EXPENSE DATABASE'!$X$187,K669='EXPENSE DATABASE'!$X$188,K669='EXPENSE DATABASE'!$X$189,K669='EXPENSE DATABASE'!$X$190,K669='EXPENSE DATABASE'!$X$191,K669='EXPENSE DATABASE'!$X$192,K669='EXPENSE DATABASE'!$X$193,K669='EXPENSE DATABASE'!$X$194,K669='EXPENSE DATABASE'!$Z$187,K669='EXPENSE DATABASE'!$Z$188,K669='EXPENSE DATABASE'!$Z$189,K669='EXPENSE DATABASE'!$Z$190,K669='EXPENSE DATABASE'!$Z$191,K669='EXPENSE DATABASE'!$Z$192,K669='EXPENSE DATABASE'!$Z$193,K669='EXPENSE DATABASE'!$Z$194),O669,\"\")","v":""},{"$f":"IF(OR(K669='EXPENSE DATABASE'!$T$189,K669='EXPENSE DATABASE'!$T$190,K669='EXPENSE DATABASE'!$T$191),O669,\"\")","v":""},{"$f":"VLOOKUP(I669,'EXPENSE DATABASE'!$B$41:$C$65,2,FALSE)","v":{"$error":"#N/A"}},100,{"$f":"VLOOKUP(J669,'EXPENSE DATABASE'!$B$69:$C$168,2,FALSE)","v":{"$error":"#N/A"}},101,{"$f":"VLOOKUP(K669,'EXPENSE DATABASE'!$B$6:$C$35,2,FALSE)","v":{"$error":"#N/A"}},31,{"$f":"VLOOKUP(L669,'EXPENSE DATABASE'!$B$173:$C$176,2,FALSE)","v":{"$error":"#N/A"}},100,0,0,{"$f":"IF(L669=T('EXPENSE DATABASE'!$E$173),O669,0)","v":0},{"$f":"IF(L669=T('EXPENSE DATABASE'!$E$174),O669,0)","v":0},{"$f":"IF(L669=T('EXPENSE DATABASE'!$E$175),O669,0)","v":0},0,656]
[{"$f":"IF(COUNTA(#REF!,#REF!,#REF!,#REF!,#REF!,#REF!,#REF!,#REF!,#REF!,#REF!,#REF!)>0,1,0)","v":1},{"$f":"IF((COUNTA(#REF!)=4),1,-1)*A670","v":-1},{"$nulls":12},{"v":0,"d":"$0.00"},{"v":0,"d":"$0.00"},{"v":0,"d":"$0.00"},0,{"$f":"IF(OR(K670='EXPENSE DATABASE'!$V$187,K670='EXPENSE DATABASE'!$V$188,K670='EXPENSE DATABASE'!$V$189,K670='EXPENSE DATABASE'!$V$190,K670='EXPENSE DATABASE'!$V$191,K670='EXPENSE DATABASE'!$V$192,K670='EXPENSE DATABASE'!$V$193,K670='EXPENSE DATABASE'!$V$194,K670='EXPENSE DATABASE'!$X$187,K670='EXPENSE DATABASE'!$X$188,K670='EXPENSE DATABASE'!$X$189,K670='EXPENSE DATABASE'!$X$190,K670='EXPENSE DATABASE'!$X$191,K670='EXPENSE DATABASE'!$X$192,K670='EXPENSE DATABASE'!$X$193,K670='EXPENSE DATABASE'!$X$194,K670='EXPENSE DATABASE'!$Z$187,K670='EXPENSE DATABASE'!$Z$188,K670='EXPENSE DATABASE'!$Z$189,K670='EXPENSE DATABASE'!$Z$190,K670='EXPENSE DATABASE'!$Z$191,K670='EXPENSE DATABASE'!$Z$192,K670='EXPENSE DATABASE'!$Z$193,K670='EXPENSE DATABASE'!$Z$194),O670,\"\")","v":""},{"$f":"IF(OR(K670='EXPENSE DATABASE'!$T$189,K670='EXPENSE DATABASE'!$T$190,K670='EXPENSE DATABASE'!$T$191),O670,\"\")","v":""},{"$f":"VLOOKUP(I670,'EXPENSE DATABASE'!$B$41:$C$65,2,FALSE)","v":{"$error":"#N/A"}},100,{"$f":"VLOOKUP(J670,'EXPENSE DATABASE'!$B$69:$C$168,2,FALSE)","v":{"$error":"#N/A"}},101,{"$f":"VLOOKUP(K670,'EXPENSE DATABASE'!$B$6:$C$35,2,FALSE)","v":{"$error":"#N/A"}},31,{"$f":"VLOOKUP(L670,'EXPENSE DATABASE'!$B$173:$C$176,2,FALSE)","v":{"$error":"#N/A"}},100,0,0,{"$f":"IF(L670=T('EXPENSE DATABASE'!$E$173),O670,0)","v":0},{"$f":"IF(L670=T('EXPENSE DATABASE'!$E$174),O670,0)","v":0},{"$f":"IF(L670=T('EXPENSE DATABASE'!$E$175),O670,0)","v":0},0,657]
[{"$f":"IF(COUNTA(#REF!,#REF!,#REF!,#REF!,#REF!,#REF!,#REF!,#REF!,#REF!,#REF!,#REF!)>0,1,0)","v":1},{"$f":"IF((COUNTA(#REF!)=4),1,-1)*A671","v":-1},{"$nulls":12},{"v":0,"d":"$0.00"},{"v":0,"d":"$0.00"},{"v":0,"d":"$0.00"},0,{"$f":"IF(OR(K671='EXPENSE DATABASE'!$V$187,K671='EXPENSE DATABASE'!$V$188,K671='EXPENSE DATABASE'!$V$189,K671='EXPENSE DATABASE'!$V$190,K671='EXPENSE DATABASE'!$V$191,K671='EXPENSE DATABASE'!$V$192,K671='EXPENSE DATABASE'!$V$193,K671='EXPENSE DATABASE'!$V$194,K671='EXPENSE DATABASE'!$X$187,K671='EXPENSE DATABASE'!$X$188,K671='EXPENSE DATABASE'!$X$189,K671='EXPENSE DATABASE'!$X$190,K671='EXPENSE DATABASE'!$X$191,K671='EXPENSE DATABASE'!$X$192,K671='EXPENSE DATABASE'!$X$193,K671='EXPENSE DATABASE'!$X$194,K671='EXPENSE DATABASE'!$Z$187,K671='EXPENSE DATABASE'!$Z$188,K671='EXPENSE DATABASE'!$Z$189,K671='EXPENSE DATABASE'!$Z$190,K671='EXPENSE DATABASE'!$Z$191,K671='EXPENSE DATABASE'!$Z$192,K671='EXPENSE DATABASE'!$Z$193,K671='EXPENSE DATABASE'!$Z$194),O671,\"\")","v":""},{"$f":"IF(OR(K671='EXPENSE DATABASE'!$T$189,K671='EXPENSE DATABASE'!$T$190,K671='EXPENSE DATABASE'!$T$191),O671,\"\")","v":""},{"$f":"VLOOKUP(I671,'EXPENSE DATABASE'!$B$41:$C$65,2,FALSE)","v":{"$error":"#N/A"}},100,{"$f":"VLOOKUP(J671,'EXPENSE DATABASE'!$B$69:$C$168,2,FALSE)","v":{"$error":"#N/A"}},101,{"$f":"VLOOKUP(K671,'EXPENSE DATABASE'!$B$6:$C$35,2,FALSE)","v":{"$error":"#N/A"}},31,{"$f":"VLOOKUP(L671,'EXPENSE DATABASE'!$B$173:$C$176,2,FALSE)","v":{"$error":"#N/A"}},100,0,0,{"$f":"IF(L671=T('EXPENSE DATABASE'!$E$173),O671,0)","v":0},{"$f":"IF(L671=T('EXPENSE DATABASE'!$E$174),O671,0)","v":0},{"$f":"IF(L671=T('EXPENSE DATABASE'!$E$175),O671,0)","v":0},0,658]
[{"$f":"IF(COUNTA(#REF!,#REF!,#REF!,#REF!,#REF!,#REF!,#REF!,#REF!,#REF!,#REF!,#REF!)>0,1,0)","v":1},{"$f":"IF((COUNTA(#REF!)=4),1,-1)*A672","v":-1},{"$nulls":12},{"v":0,"d":"$0.00"},{"v":0,"d":"$0.00"},{"v":0,"d":"$0.00"},0,{"$f":"IF(OR(K672='EXPENSE DATABASE'!$V$187,K672='EXPENSE DATABASE'!$V$188,K672='EXPENSE DATABASE'!$V$189,K672='EXPENSE DATABASE'!$V$190,K672='EXPENSE DATABASE'!$V$191,K672='EXPENSE DATABASE'!$V$192,K672='EXPENSE DATABASE'!$V$193,K672='EXPENSE DATABASE'!$V$194,K672='EXPENSE DATABASE'!$X$187,K672='EXPENSE DATABASE'!$X$188,K672='EXPENSE DATABASE'!$X$189,K672='EXPENSE DATABASE'!$X$190,K672='EXPENSE DATABASE'!$X$191,K672='EXPENSE DATABASE'!$X$192,K672='EXPENSE DATABASE'!$X$193,K672='EXPENSE DATABASE'!$X$194,K672='EXPENSE DATABASE'!$Z$187,K672='EXPENSE DATABASE'!$Z$188,K672='EXPENSE DATABASE'!$Z$189,K672='EXPENSE DATABASE'!$Z$190,K672='EXPENSE DATABASE'!$Z$191,K672='EXPENSE DATABASE'!$Z$192,K672='EXPENSE DATABASE'!$Z$193,K672='EXPENSE DATABASE'!$Z$194),O672,\"\")","v":""},{"$f":"IF(OR(K672='EXPENSE DATABASE'!$T$189,K672='EXPENSE DATABASE'!$T$190,K672='EXPENSE DATABASE'!$T$191),O672,\"\")","v":""},{"$f":"VLOOKUP(I672,'EXPENSE DATABASE'!$B$41:$C$65,2,FALSE)","v":{"$error":"#N/A"}},100,{"$f":"VLOOKUP(J672,'EXPENSE DATABASE'!$B$69:$C$168,2,FALSE)","v":{"$error":"#N/A"}},101,{"$f":"VLOOKUP(K672,'EXPENSE DATABASE'!$B$6:$C$35,2,FALSE)","v":{"$error":"#N/A"}},31,{"$f":"VLOOKUP(L672,'EXPENSE DATABASE'!$B$173:$C$176,2,FALSE)","v":{"$error":"#N/A"}},100,0,0,{"$f":"IF(L672=T('EXPENSE DATABASE'!$E$173),O672,0)","v":0},{"$f":"IF(L672=T('EXPENSE DATABASE'!$E$174),O672,0)","v":0},{"$f":"IF(L672=T('EXPENSE DATABASE'!$E$175),O672,0)","v":0},0,659]
[{"$f":"IF(COUNTA(#REF!,#REF!,#REF!,#REF!,#REF!,#REF!,#REF!,#REF!,#REF!,#REF!,#REF!)>0,1,0)","v":1},{"$f":"IF((COUNTA(#REF!)=4),1,-1)*A673","v":-1},{"$nulls":12},{"v":0,"d":"$0.00"},{"v":0,"d":"$0.00"},{"v":0,"d":"$0.00"},0,{"$f":"IF(OR(K673='EXPENSE DATABASE'!$V$187,K673='EXPENSE DATABASE'!$V$188,K673='EXPENSE DATABASE'!$V$189,K673='EXPENSE DATABASE'!$V$190,K673='EXPENSE DATABASE'!$V$191,K673='EXPENSE DATABASE'!$V$192,K673='EXPENSE DATABASE'!$V$193,K673='EXPENSE DATABASE'!$V$194,K673='EXPENSE DATABASE'!$X$187,K673='EXPENSE DATABASE'!$X$188,K673='EXPENSE DATABASE'!$X$189,K673='EXPENSE DATABASE'!$X$190,K673='EXPENSE DATABASE'!$X$191,K673='EXPENSE DATABASE'!$X$192,K673='EXPENSE DATABASE'!$X$193,K673='EXPENSE DATABASE'!$X$194,K673='EXPENSE DATABASE'!$Z$187,K673='EXPENSE DATABASE'!$Z$188,K673='EXPENSE DATABASE'!$Z$189,K673='EXPENSE DATABASE'!$Z$190,K673='EXPENSE DATABASE'!$Z$191,K673='EXPENSE DATABASE'!$Z$192,K673='EXPENSE DATABASE'!$Z$193,K673='EXPENSE DATABASE'!$Z$194),O673,\"\")","v":""},{"$f":"IF(OR(K673='EXPENSE DATABASE'!$T$189,K673='EXPENSE DATABASE'!$T$190,K673='EXPENSE DATABASE'!$T$191),O673,\"\")","v":""},{"$f":"VLOOKUP(I673,'EXPENSE DATABASE'!$B$41:$C$65,2,FALSE)","v":{"$error":"#N/A"}},100,{"$f":"VLOOKUP(J673,'EXPENSE DATABASE'!$B$69:$C$168,2,FALSE)","v":{"$error":"#N/A"}},101,{"$f":"VLOOKUP(K673,'EXPENSE DATABASE'!$B$6:$C$35,2,FALSE)","v":{"$error":"#N/A"}},31,{"$f":"VLOOKUP(L673,'EXPENSE DATABASE'!$B$173:$C$176,2,FALSE)","v":{"$error":"#N/A"}},100,0,0,{"$f":"IF(L673=T('EXPENSE DATABASE'!$E$173),O673,0)","v":0},{"$f":"IF(L673=T('EXPENSE DATABASE'!$E$174),O673,0)","v":0},{"$f":"IF(L673=T('EXPENSE DATABASE'!$E$175),O673,0)","v":0},0,660]
[{"$f":"IF(COUNTA(#REF!,#REF!,#REF!,#REF!,#REF!,#REF!,#REF!,#REF!,#REF!,#REF!,#REF!)>0,1,0)","v":1},{"$f":"IF((COUNTA(#REF!)=4),1,-1)*A674","v":-1},{"$nulls":12},{"v":0,"d":"$0.00"},{"v":0,"d":"$0.00"},{"v":0,"d":"$0.00"},0,{"$f":"IF(OR(K674='EXPENSE DATABASE'!$V$187,K674='EXPENSE DATABASE'!$V$188,K674='EXPENSE DATABASE'!$V$189,K674='EXPENSE DATABASE'!$V$190,K674='EXPENSE DATABASE'!$V$191,K674='EXPENSE DATABASE'!$V$192,K674='EXPENSE DATABASE'!$V$193,K674='EXPENSE DATABASE'!$V$194,K674='EXPENSE DATABASE'!$X$187,K674='EXPENSE DATABASE'!$X$188,K674='EXPENSE DATABASE'!$X$189,K674='EXPENSE DATABASE'!$X$190,K674='EXPENSE DATABASE'!$X$191,K674='EXPENSE DATABASE'!$X$192,K674='EXPENSE DATABASE'!$X$193,K674='EXPENSE DATABASE'!$X$194,K674='EXPENSE DATABASE'!$Z$187,K674='EXPENSE DATABASE'!$Z$188,K674='EXPENSE DATABASE'!$Z$189,K674='EXPENSE DATABASE'!$Z$190,K674='EXPENSE DATABASE'!$Z$191,K674='EXPENSE DATABASE'!$Z$192,K674='EXPENSE DATABASE'!$Z$193,K674='EXPENSE DATABASE'!$Z$194),O674,\"\")","v":""},{"$f":"IF(OR(K674='EXPENSE DATABASE'!$T$189,K674='EXPENSE DATABASE'!$T$190,K674='EXPENSE DATABASE'!$T$191),O674,\"\")","v":""},{"$f":"VLOOKUP(I674,'EXPENSE DATABASE'!$B$41:$C$65,2,FALSE)","v":{"$error":"#N/A"}},100,{"$f":"VLOOKUP(J674,'EXPENSE DATABASE'!$B$69:$C$168,2,FALSE)","v":{"$error":"#N/A"}},101,{"$f":"VLOOKUP(K674,'EXPENSE DATABASE'!$B$6:$C$35,2,FALSE)","v":{"$error":"#N/A"}},31,{"$f":"VLOOKUP(L674,'EXPENSE DATABASE'!$B$173:$C$176,2,FALSE)","v":{"$error":"#N/A"}},100,0,0,{"$f":"IF(L674=T('EXPENSE DATABASE'!$E$173),O674,0)","v":0},{"$f":"IF(L674=T('EXPENSE DATABASE'!$E$174),O674,0)","v":0},{"$f":"IF(L674=T('EXPENSE DATABASE'!$E$175),O674,0)","v":0},0,661]
[{"$f":"IF(COUNTA(#REF!,#REF!,#REF!,#REF!,#REF!,#REF!,#REF!,#REF!,#REF!,#REF!,#REF!)>0,1,0)","v":1},{"$f":"IF((COUNTA(#REF!)=4),1,-1)*A675","v":-1},{"$nulls":12},{"v":0,"d":"$0.00"},{"v":0,"d":"$0.00"},{"v":0,"d":"$0.00"},0,{"$f":"IF(OR(K675='EXPENSE DATABASE'!$V$187,K675='EXPENSE DATABASE'!$V$188,K675='EXPENSE DATABASE'!$V$189,K675='EXPENSE DATABASE'!$V$190,K675='EXPENSE DATABASE'!$V$191,K675='EXPENSE DATABASE'!$V$192,K675='EXPENSE DATABASE'!$V$193,K675='EXPENSE DATABASE'!$V$194,K675='EXPENSE DATABASE'!$X$187,K675='EXPENSE DATABASE'!$X$188,K675='EXPENSE DATABASE'!$X$189,K675='EXPENSE DATABASE'!$X$190,K675='EXPENSE DATABASE'!$X$191,K675='EXPENSE DATABASE'!$X$192,K675='EXPENSE DATABASE'!$X$193,K675='EXPENSE DATABASE'!$X$194,K675='EXPENSE DATABASE'!$Z$187,K675='EXPENSE DATABASE'!$Z$188,K675='EXPENSE DATABASE'!$Z$189,K675='EXPENSE DATABASE'!$Z$190,K675='EXPENSE DATABASE'!$Z$191,K675='EXPENSE DATABASE'!$Z$192,K675='EXPENSE DATABASE'!$Z$193,K675='EXPENSE DATABASE'!$Z$194),O675,\"\")","v":""},{"$f":"IF(OR(K675='EXPENSE DATABASE'!$T$189,K675='EXPENSE DATABASE'!$T$190,K675='EXPENSE DATABASE'!$T$191),O675,\"\")","v":""},{"$f":"VLOOKUP(I675,'EXPENSE DATABASE'!$B$41:$C$65,2,FALSE)","v":{"$error":"#N/A"}},100,{"$f":"VLOOKUP(J675,'EXPENSE DATABASE'!$B$69:$C$168,2,FALSE)","v":{"$error":"#N/A"}},101,{"$f":"VLOOKUP(K675,'EXPENSE DATABASE'!$B$6:$C$35,2,FALSE)","v":{"$error":"#N/A"}},31,{"$f":"VLOOKUP(L675,'EXPENSE DATABASE'!$B$173:$C$176,2,FALSE)","v":{"$error":"#N/A"}},100,0,0,{"$f":"IF(L675=T('EXPENSE DATABASE'!$E$173),O675,0)","v":0},{"$f":"IF(L675=T('EXPENSE DATABASE'!$E$174),O675,0)","v":0},{"$f":"IF(L675=T('EXPENSE DATABASE'!$E$175),O675,0)","v":0},0,662]
[{"$f":"IF(COUNTA(#REF!,#REF!,#REF!,#REF!,#REF!,#REF!,#REF!,#REF!,#REF!,#REF!,#REF!)>0,1,0)","v":1},{"$f":"IF((COUNTA(#REF!)=4),1,-1)*A676","v":-1},{"$nulls":12},{"v":0,"d":"$0.00"},{"v":0,"d":"$0.00"},{"v":0,"d":"$0.00"},0,{"$f":"IF(OR(K676='EXPENSE DATABASE'!$V$187,K676='EXPENSE DATABASE'!$V$188,K676='EXPENSE DATABASE'!$V$189,K676='EXPENSE DATABASE'!$V$190,K676='EXPENSE DATABASE'!$V$191,K676='EXPENSE DATABASE'!$V$192,K676='EXPENSE DATABASE'!$V$193,K676='EXPENSE DATABASE'!$V$194,K676='EXPENSE DATABASE'!$X$187,K676='EXPENSE DATABASE'!$X$188,K676='EXPENSE DATABASE'!$X$189,K676='EXPENSE DATABASE'!$X$190,K676='EXPENSE DATABASE'!$X$191,K676='EXPENSE DATABASE'!$X$192,K676='EXPENSE DATABASE'!$X$193,K676='EXPENSE DATABASE'!$X$194,K676='EXPENSE DATABASE'!$Z$187,K676='EXPENSE DATABASE'!$Z$188,K676='EXPENSE DATABASE'!$Z$189,K676='EXPENSE DATABASE'!$Z$190,K676='EXPENSE DATABASE'!$Z$191,K676='EXPENSE DATABASE'!$Z$192,K676='EXPENSE DATABASE'!$Z$193,K676='EXPENSE DATABASE'!$Z$194),O676,\"\")","v":""},{"$f":"IF(OR(K676='EXPENSE DATABASE'!$T$189,K676='EXPENSE DATABASE'!$T$190,K676='EXPENSE DATABASE'!$T$191),O676,\"\")","v":""},{"$f":"VLOOKUP(I676,'EXPENSE DATABASE'!$B$41:$C$65,2,FALSE)","v":{"$error":"#N/A"}},100,{"$f":"VLOOKUP(J676,'EXPENSE DATABASE'!$B$69:$C$168,2,FALSE)","v":{"$error":"#N/A"}},101,{"$f":"VLOOKUP(K676,'EXPENSE DATABASE'!$B$6:$C$35,2,FALSE)","v":{"$error":"#N/A"}},31,{"$f":"VLOOKUP(L676,'EXPENSE DATABASE'!$B$173:$C$176,2,FALSE)","v":{"$error":"#N/A"}},100,0,0,{"$f":"IF(L676=T('EXPENSE DATABASE'!$E$173),O676,0)","v":0},{"$f":"IF(L676=T('EXPENSE DATABASE'!$E$174),O676,0)","v":0},{"$f":"IF(L676=T('EXPENSE DATABASE'!$E$175),O676,0)","v":0},0,663]
[{"$f":"IF(COUNTA(#REF!,#REF!,#REF!,#REF!,#REF!,#REF!,#REF!,#REF!,#REF!,#REF!,#REF!)>0,1,0)","v":1},{"$f":"IF((COUNTA(#REF!)=4),1,-1)*A677","v":-1},{"$nulls":12},{"v":0,"d":"$0.00"},{"v":0,"d":"$0.00"},{"v":0,"d":"$0.00"},0,{"$f":"IF(OR(K677='EXPENSE DATABASE'!$V$187,K677='EXPENSE DATABASE'!$V$188,K677='EXPENSE DATABASE'!$V$189,K677='EXPENSE DATABASE'!$V$190,K677='EXPENSE DATABASE'!$V$191,K677='EXPENSE DATABASE'!$V$192,K677='EXPENSE DATABASE'!$V$193,K677='EXPENSE DATABASE'!$V$194,K677='EXPENSE DATABASE'!$X$187,K677='EXPENSE DATABASE'!$X$188,K677='EXPENSE DATABASE'!$X$189,K677='EXPENSE DATABASE'!$X$190,K677='EXPENSE DATABASE'!$X$191,K677='EXPENSE DATABASE'!$X$192,K677='EXPENSE DATABASE'!$X$193,K677='EXPENSE DATABASE'!$X$194,K677='EXPENSE DATABASE'!$Z$187,K677='EXPENSE DATABASE'!$Z$188,K677='EXPENSE DATABASE'!$Z$189,K677='EXPENSE DATABASE'!$Z$190,K677='EXPENSE DATABASE'!$Z$191,K677='EXPENSE DATABASE'!$Z$192,K677='EXPENSE DATABASE'!$Z$193,K677='EXPENSE DATABASE'!$Z$194),O677,\"\")","v":""},{"$f":"IF(OR(K677='EXPENSE DATABASE'!$T$189,K677='EXPENSE DATABASE'!$T$190,K677='EXPENSE DATABASE'!$T$191),O677,\"\")","v":""},{"$f":"VLOOKUP(I677,'EXPENSE DATABASE'!$B$41:$C$65,2,FALSE)","v":{"$error":"#N/A"}},100,{"$f":"VLOOKUP(J677,'EXPENSE DATABASE'!$B$69:$C$168,2,FALSE)","v":{"$error":"#N/A"}},101,{"$f":"VLOOKUP(K677,'EXPENSE DATABASE'!$B$6:$C$35,2,FALSE)","v":{"$error":"#N/A"}},31,{"$f":"VLOOKUP(L677,'EXPENSE DATABASE'!$B$173:$C$176,2,FALSE)","v":{"$error":"#N/A"}},100,0,0,{"$f":"IF(L677=T('EXPENSE DATABASE'!$E$173),O677,0)","v":0},{"$f":"IF(L677=T('EXPENSE DATABASE'!$E$174),O677,0)","v":0},{"$f":"IF(L677=T('EXPENSE DATABASE'!$E$175),O677,0)","v":0},0,664]
[{"$f":"IF(COUNTA(#REF!,#REF!,#REF!,#REF!,#REF!,#REF!,#REF!,#REF!,#REF!,#REF!,#REF!)>0,1,0)","v":1},{"$f":"IF((COUNTA(#REF!)=4),1,-1)*A678","v":-1},{"$nulls":12},{"v":0,"d":"$0.00"},{"v":0,"d":"$0.00"},{"v":0,"d":"$0.00"},0,{"$f":"IF(OR(K678='EXPENSE DATABASE'!$V$187,K678='EXPENSE DATABASE'!$V$188,K678='EXPENSE DATABASE'!$V$189,K678='EXPENSE DATABASE'!$V$190,K678='EXPENSE DATABASE'!$V$191,K678='EXPENSE DATABASE'!$V$192,K678='EXPENSE DATABASE'!$V$193,K678='EXPENSE DATABASE'!$V$194,K678='EXPENSE DATABASE'!$X$187,K678='EXPENSE DATABASE'!$X$188,K678='EXPENSE DATABASE'!$X$189,K678='EXPENSE DATABASE'!$X$190,K678='EXPENSE DATABASE'!$X$191,K678='EXPENSE DATABASE'!$X$192,K678='EXPENSE DATABASE'!$X$193,K678='EXPENSE DATABASE'!$X$194,K678='EXPENSE DATABASE'!$Z$187,K678='EXPENSE DATABASE'!$Z$188,K678='EXPENSE DATABASE'!$Z$189,K678='EXPENSE DATABASE'!$Z$190,K678='EXPENSE DATABASE'!$Z$191,K678='EXPENSE DATABASE'!$Z$192,K678='EXPENSE DATABASE'!$Z$193,K678='EXPENSE DATABASE'!$Z$194),O678,\"\")","v":""},{"$f":"IF(OR(K678='EXPENSE DATABASE'!$T$189,K678='EXPENSE DATABASE'!$T$190,K678='EXPENSE DATABASE'!$T$191),O678,\"\")","v":""},{"$f":"VLOOKUP(I678,'EXPENSE DATABASE'!$B$41:$C$65,2,FALSE)","v":{"$error":"#N/A"}},100,{"$f":"VLOOKUP(J678,'EXPENSE DATABASE'!$B$69:$C$168,2,FALSE)","v":{"$error":"#N/A"}},101,{"$f":"VLOOKUP(K678,'EXPENSE DATABASE'!$B$6:$C$35,2,FALSE)","v":{"$error":"#N/A"}},31,{"$f":"VLOOKUP(L678,'EXPENSE DATABASE'!$B$173:$C$176,2,FALSE)","v":{"$error":"#N/A"}},100,0,0,{"$f":"IF(L678=T('EXPENSE DATABASE'!$E$173),O678,0)","v":0},{"$f":"IF(L678=T('EXPENSE DATABASE'!$E$174),O678,0)","v":0},{"$f":"IF(L678=T('EXPENSE DATABASE'!$E$175),O678,0)","v":0},0,665]
[{"$f":"IF(COUNTA(#REF!,#REF!,#REF!,#REF!,#REF!,#REF!,#REF!,#REF!,#REF!,#REF!,#REF!)>0,1,0)","v":1},{"$f":"IF((COUNTA(#REF!)=4),1,-1)*A679","v":-1},{"$nulls":12},{"v":0,"d":"$0.00"},{"v":0,"d":"$0.00"},{"v":0,"d":"$0.00"},0,{"$f":"IF(OR(K679='EXPENSE DATABASE'!$V$187,K679='EXPENSE DATABASE'!$V$188,K679='EXPENSE DATABASE'!$V$189,K679='EXPENSE DATABASE'!$V$190,K679='EXPENSE DATABASE'!$V$191,K679='EXPENSE DATABASE'!$V$192,K679='EXPENSE DATABASE'!$V$193,K679='EXPENSE DATABASE'!$V$194,K679='EXPENSE DATABASE'!$X$187,K679='EXPENSE DATABASE'!$X$188,K679='EXPENSE DATABASE'!$X$189,K679='EXPENSE DATABASE'!$X$190,K679='EXPENSE DATABASE'!$X$191,K679='EXPENSE DATABASE'!$X$192,K679='EXPENSE DATABASE'!$X$193,K679='EXPENSE DATABASE'!$X$194,K679='EXPENSE DATABASE'!$Z$187,K679='EXPENSE DATABASE'!$Z$188,K679='EXPENSE DATABASE'!$Z$189,K679='EXPENSE DATABASE'!$Z$190,K679='EXPENSE DATABASE'!$Z$191,K679='EXPENSE DATABASE'!$Z$192,K679='EXPENSE DATABASE'!$Z$193,K679='EXPENSE DATABASE'!$Z$194),O679,\"\")","v":""},{"$f":"IF(OR(K679='EXPENSE DATABASE'!$T$189,K679='EXPENSE DATABASE'!$T$190,K679='EXPENSE DATABASE'!$T$191),O679,\"\")","v":""},{"$f":"VLOOKUP(I679,'EXPENSE DATABASE'!$B$41:$C$65,2,FALSE)","v":{"$error":"#N/A"}},100,{"$f":"VLOOKUP(J679,'EXPENSE DATABASE'!$B$69:$C$168,2,FALSE)","v":{"$error":"#N/A"}},101,{"$f":"VLOOKUP(K679,'EXPENSE DATABASE'!$B$6:$C$35,2,FALSE)","v":{"$error":"#N/A"}},31,{"$f":"VLOOKUP(L679,'EXPENSE DATABASE'!$B$173:$C$176,2,FALSE)","v":{"$error":"#N/A"}},100,0,0,{"$f":"IF(L679=T('EXPENSE DATABASE'!$E$173),O679,0)","v":0},{"$f":"IF(L679=T('EXPENSE DATABASE'!$E$174),O679,0)","v":0},{"$f":"IF(L679=T('EXPENSE DATABASE'!$E$175),O679,0)","v":0},0,666]
[{"$f":"IF(COUNTA(#REF!,#REF!,#REF!,#REF!,#REF!,#REF!,#REF!,#REF!,#REF!,#REF!,#REF!)>0,1,0)","v":1},{"$f":"IF((COUNTA(#REF!)=4),1,-1)*A680","v":-1},{"$nulls":12},{"v":0,"d":"$0.00"},{"v":0,"d":"$0.00"},{"v":0,"d":"$0.00"},0,{"$f":"IF(OR(K680='EXPENSE DATABASE'!$V$187,K680='EXPENSE DATABASE'!$V$188,K680='EXPENSE DATABASE'!$V$189,K680='EXPENSE DATABASE'!$V$190,K680='EXPENSE DATABASE'!$V$191,K680='EXPENSE DATABASE'!$V$192,K680='EXPENSE DATABASE'!$V$193,K680='EXPENSE DATABASE'!$V$194,K680='EXPENSE DATABASE'!$X$187,K680='EXPENSE DATABASE'!$X$188,K680='EXPENSE DATABASE'!$X$189,K680='EXPENSE DATABASE'!$X$190,K680='EXPENSE DATABASE'!$X$191,K680='EXPENSE DATABASE'!$X$192,K680='EXPENSE DATABASE'!$X$193,K680='EXPENSE DATABASE'!$X$194,K680='EXPENSE DATABASE'!$Z$187,K680='EXPENSE DATABASE'!$Z$188,K680='EXPENSE DATABASE'!$Z$189,K680='EXPENSE DATABASE'!$Z$190,K680='EXPENSE DATABASE'!$Z$191,K680='EXPENSE DATABASE'!$Z$192,K680='EXPENSE DATABASE'!$Z$193,K680='EXPENSE DATABASE'!$Z$194),O680,\"\")","v":""},{"$f":"IF(OR(K680='EXPENSE DATABASE'!$T$189,K680='EXPENSE DATABASE'!$T$190,K680='EXPENSE DATABASE'!$T$191),O680,\"\")","v":""},{"$f":"VLOOKUP(I680,'EXPENSE DATABASE'!$B$41:$C$65,2,FALSE)","v":{"$error":"#N/A"}},100,{"$f":"VLOOKUP(J680,'EXPENSE DATABASE'!$B$69:$C$168,2,FALSE)","v":{"$error":"#N/A"}},101,{"$f":"VLOOKUP(K680,'EXPENSE DATABASE'!$B$6:$C$35,2,FALSE)","v":{"$error":"#N/A"}},31,{"$f":"VLOOKUP(L680,'EXPENSE DATABASE'!$B$173:$C$176,2,FALSE)","v":{"$error":"#N/A"}},100,0,0,{"$f":"IF(L680=T('EXPENSE DATABASE'!$E$173),O680,0)","v":0},{"$f":"IF(L680=T('EXPENSE DATABASE'!$E$174),O680,0)","v":0},{"$f":"IF(L680=T('EXPENSE DATABASE'!$E$175),O680,0)","v":0},0,667]
[{"$f":"IF(COUNTA(#REF!,#REF!,#REF!,#REF!,#REF!,#REF!,#REF!,#REF!,#REF!,#REF!,#REF!)>0,1,0)","v":1},{"$f":"IF((COUNTA(#REF!)=4),1,-1)*A681","v":-1},{"$nulls":12},{"v":0,"d":"$0.00"},{"v":0,"d":"$0.00"},{"v":0,"d":"$0.00"},0,{"$f":"IF(OR(K681='EXPENSE DATABASE'!$V$187,K681='EXPENSE DATABASE'!$V$188,K681='EXPENSE DATABASE'!$V$189,K681='EXPENSE DATABASE'!$V$190,K681='EXPENSE DATABASE'!$V$191,K681='EXPENSE DATABASE'!$V$192,K681='EXPENSE DATABASE'!$V$193,K681='EXPENSE DATABASE'!$V$194,K681='EXPENSE DATABASE'!$X$187,K681='EXPENSE DATABASE'!$X$188,K681='EXPENSE DATABASE'!$X$189,K681='EXPENSE DATABASE'!$X$190,K681='EXPENSE DATABASE'!$X$191,K681='EXPENSE DATABASE'!$X$192,K681='EXPENSE DATABASE'!$X$193,K681='EXPENSE DATABASE'!$X$194,K681='EXPENSE DATABASE'!$Z$187,K681='EXPENSE DATABASE'!$Z$188,K681='EXPENSE DATABASE'!$Z$189,K681='EXPENSE DATABASE'!$Z$190,K681='EXPENSE DATABASE'!$Z$191,K681='EXPENSE DATABASE'!$Z$192,K681='EXPENSE DATABASE'!$Z$193,K681='EXPENSE DATABASE'!$Z$194),O681,\"\")","v":""},{"$f":"IF(OR(K681='EXPENSE DATABASE'!$T$189,K681='EXPENSE DATABASE'!$T$190,K681='EXPENSE DATABASE'!$T$191),O681,\"\")","v":""},{"$f":"VLOOKUP(I681,'EXPENSE DATABASE'!$B$41:$C$65,2,FALSE)","v":{"$error":"#N/A"}},100,{"$f":"VLOOKUP(J681,'EXPENSE DATABASE'!$B$69:$C$168,2,FALSE)","v":{"$error":"#N/A"}},101,{"$f":"VLOOKUP(K681,'EXPENSE DATABASE'!$B$6:$C$35,2,FALSE)","v":{"$error":"#N/A"}},31,{"$f":"VLOOKUP(L681,'EXPENSE DATABASE'!$B$173:$C$176,2,FALSE)","v":{"$error":"#N/A"}},100,0,0,{"$f":"IF(L681=T('EXPENSE DATABASE'!$E$173),O681,0)","v":0},{"$f":"IF(L681=T('EXPENSE DATABASE'!$E$174),O681,0)","v":0},{"$f":"IF(L681=T('EXPENSE DATABASE'!$E$175),O681,0)","v":0},0,668]
[{"$f":"IF(COUNTA(#REF!,#REF!,#REF!,#REF!,#REF!,#REF!,#REF!,#REF!,#REF!,#REF!,#REF!)>0,1,0)","v":1},{"$f":"IF((COUNTA(#REF!)=4),1,-1)*A682","v":-1},{"$nulls":12},{"v":0,"d":"$0.00"},{"v":0,"d":"$0.00"},{"v":0,"d":"$0.00"},0,{"$f":"IF(OR(K682='EXPENSE DATABASE'!$V$187,K682='EXPENSE DATABASE'!$V$188,K682='EXPENSE DATABASE'!$V$189,K682='EXPENSE DATABASE'!$V$190,K682='EXPENSE DATABASE'!$V$191,K682='EXPENSE DATABASE'!$V$192,K682='EXPENSE DATABASE'!$V$193,K682='EXPENSE DATABASE'!$V$194,K682='EXPENSE DATABASE'!$X$187,K682='EXPENSE DATABASE'!$X$188,K682='EXPENSE DATABASE'!$X$189,K682='EXPENSE DATABASE'!$X$190,K682='EXPENSE DATABASE'!$X$191,K682='EXPENSE DATABASE'!$X$192,K682='EXPENSE DATABASE'!$X$193,K682='EXPENSE DATABASE'!$X$194,K682='EXPENSE DATABASE'!$Z$187,K682='EXPENSE DATABASE'!$Z$188,K682='EXPENSE DATABASE'!$Z$189,K682='EXPENSE DATABASE'!$Z$190,K682='EXPENSE DATABASE'!$Z$191,K682='EXPENSE DATABASE'!$Z$192,K682='EXPENSE DATABASE'!$Z$193,K682='EXPENSE DATABASE'!$Z$194),O682,\"\")","v":""},{"$f":"IF(OR(K682='EXPENSE DATABASE'!$T$189,K682='EXPENSE DATABASE'!$T$190,K682='EXPENSE DATABASE'!$T$191),O682,\"\")","v":""},{"$f":"VLOOKUP(I682,'EXPENSE DATABASE'!$B$41:$C$65,2,FALSE)","v":{"$error":"#N/A"}},100,{"$f":"VLOOKUP(J682,'EXPENSE DATABASE'!$B$69:$C$168,2,FALSE)","v":{"$error":"#N/A"}},101,{"$f":"VLOOKUP(K682,'EXPENSE DATABASE'!$B$6:$C$35,2,FALSE)","v":{"$error":"#N/A"}},31,{"$f":"VLOOKUP(L682,'EXPENSE DATABASE'!$B$173:$C$176,2,FALSE)","v":{"$error":"#N/A"}},100,0,0,{"$f":"IF(L682=T('EXPENSE DATABASE'!$E$173),O682,0)","v":0},{"$f":"IF(L682=T('EXPENSE DATABASE'!$E$174),O682,0)","v":0},{"$f":"IF(L682=T('EXPENSE DATABASE'!$E$175),O682,0)","v":0},0,669]
[{"$f":"IF(COUNTA(#REF!,#REF!,#REF!,#REF!,#REF!,#REF!,#REF!,#REF!,#REF!,#REF!,#REF!)>0,1,0)","v":1},{"$f":"IF((COUNTA(#REF!)=4),1,-1)*A683","v":-1},{"$nulls":12},{"v":0,"d":"$0.00"},{"v":0,"d":"$0.00"},{"v":0,"d":"$0.00"},0,{"$f":"IF(OR(K683='EXPENSE DATABASE'!$V$187,K683='EXPENSE DATABASE'!$V$188,K683='EXPENSE DATABASE'!$V$189,K683='EXPENSE DATABASE'!$V$190,K683='EXPENSE DATABASE'!$V$191,K683='EXPENSE DATABASE'!$V$192,K683='EXPENSE DATABASE'!$V$193,K683='EXPENSE DATABASE'!$V$194,K683='EXPENSE DATABASE'!$X$187,K683='EXPENSE DATABASE'!$X$188,K683='EXPENSE DATABASE'!$X$189,K683='EXPENSE DATABASE'!$X$190,K683='EXPENSE DATABASE'!$X$191,K683='EXPENSE DATABASE'!$X$192,K683='EXPENSE DATABASE'!$X$193,K683='EXPENSE DATABASE'!$X$194,K683='EXPENSE DATABASE'!$Z$187,K683='EXPENSE DATABASE'!$Z$188,K683='EXPENSE DATABASE'!$Z$189,K683='EXPENSE DATABASE'!$Z$190,K683='EXPENSE DATABASE'!$Z$191,K683='EXPENSE DATABASE'!$Z$192,K683='EXPENSE DATABASE'!$Z$193,K683='EXPENSE DATABASE'!$Z$194),O683,\"\")","v":""},{"$f":"IF(OR(K683='EXPENSE DATABASE'!$T$189,K683='EXPENSE DATABASE'!$T$190,K683='EXPENSE DATABASE'!$T$191),O683,\"\")","v":""},{"$f":"VLOOKUP(I683,'EXPENSE DATABASE'!$B$41:$C$65,2,FALSE)","v":{"$error":"#N/A"}},100,{"$f":"VLOOKUP(J683,'EXPENSE DATABASE'!$B$69:$C$168,2,FALSE)","v":{"$error":"#N/A"}},101,{"$f":"VLOOKUP(K683,'EXPENSE DATABASE'!$B$6:$C$35,2,FALSE)","v":{"$error":"#N/A"}},31,{"$f":"VLOOKUP(L683,'EXPENSE DATABASE'!$B$173:$C$176,2,FALSE)","v":{"$error":"#N/A"}},100,0,0,{"$f":"IF(L683=T('EXPENSE DATABASE'!$E$173),O683,0)","v":0},{"$f":"IF(L683=T('EXPENSE DATABASE'!$E$174),O683,0)","v":0},{"$f":"IF(L683=T('EXPENSE DATABASE'!$E$175),O683,0)","v":0},0,670]
[{"$f":"IF(COUNTA(#REF!,#REF!,#REF!,#REF!,#REF!,#REF!,#REF!,#REF!,#REF!,#REF!,#REF!)>0,1,0)","v":1},{"$f":"IF((COUNTA(#REF!)=4),1,-1)*A684","v":-1},{"$nulls":12},{"v":0,"d":"$0.00"},{"v":0,"d":"$0.00"},{"v":0,"d":"$0.00"},0,{"$f":"IF(OR(K684='EXPENSE DATABASE'!$V$187,K684='EXPENSE DATABASE'!$V$188,K684='EXPENSE DATABASE'!$V$189,K684='EXPENSE DATABASE'!$V$190,K684='EXPENSE DATABASE'!$V$191,K684='EXPENSE DATABASE'!$V$192,K684='EXPENSE DATABASE'!$V$193,K684='EXPENSE DATABASE'!$V$194,K684='EXPENSE DATABASE'!$X$187,K684='EXPENSE DATABASE'!$X$188,K684='EXPENSE DATABASE'!$X$189,K684='EXPENSE DATABASE'!$X$190,K684='EXPENSE DATABASE'!$X$191,K684='EXPENSE DATABASE'!$X$192,K684='EXPENSE DATABASE'!$X$193,K684='EXPENSE DATABASE'!$X$194,K684='EXPENSE DATABASE'!$Z$187,K684='EXPENSE DATABASE'!$Z$188,K684='EXPENSE DATABASE'!$Z$189,K684='EXPENSE DATABASE'!$Z$190,K684='EXPENSE DATABASE'!$Z$191,K684='EXPENSE DATABASE'!$Z$192,K684='EXPENSE DATABASE'!$Z$193,K684='EXPENSE DATABASE'!$Z$194),O684,\"\")","v":""},{"$f":"IF(OR(K684='EXPENSE DATABASE'!$T$189,K684='EXPENSE DATABASE'!$T$190,K684='EXPENSE DATABASE'!$T$191),O684,\"\")","v":""},{"$f":"VLOOKUP(I684,'EXPENSE DATABASE'!$B$41:$C$65,2,FALSE)","v":{"$error":"#N/A"}},100,{"$f":"VLOOKUP(J684,'EXPENSE DATABASE'!$B$69:$C$168,2,FALSE)","v":{"$error":"#N/A"}},101,{"$f":"VLOOKUP(K684,'EXPENSE DATABASE'!$B$6:$C$35,2,FALSE)","v":{"$error":"#N/A"}},31,{"$f":"VLOOKUP(L684,'EXPENSE DATABASE'!$B$173:$C$176,2,FALSE)","v":{"$error":"#N/A"}},100,0,0,{"$f":"IF(L684=T('EXPENSE DATABASE'!$E$173),O684,0)","v":0},{"$f":"IF(L684=T('EXPENSE DATABASE'!$E$174),O684,0)","v":0},{"$f":"IF(L684=T('EXPENSE DATABASE'!$E$175),O684,0)","v":0},0,671]
[{"$f":"IF(COUNTA(#REF!,#REF!,#REF!,#REF!,#REF!,#REF!,#REF!,#REF!,#REF!,#REF!,#REF!)>0,1,0)","v":1},{"$f":"IF((COUNTA(#REF!)=4),1,-1)*A685","v":-1},{"$nulls":12},{"v":0,"d":"$0.00"},{"v":0,"d":"$0.00"},{"v":0,"d":"$0.00"},0,{"$f":"IF(OR(K685='EXPENSE DATABASE'!$V$187,K685='EXPENSE DATABASE'!$V$188,K685='EXPENSE DATABASE'!$V$189,K685='EXPENSE DATABASE'!$V$190,K685='EXPENSE DATABASE'!$V$191,K685='EXPENSE DATABASE'!$V$192,K685='EXPENSE DATABASE'!$V$193,K685='EXPENSE DATABASE'!$V$194,K685='EXPENSE DATABASE'!$X$187,K685='EXPENSE DATABASE'!$X$188,K685='EXPENSE DATABASE'!$X$189,K685='EXPENSE DATABASE'!$X$190,K685='EXPENSE DATABASE'!$X$191,K685='EXPENSE DATABASE'!$X$192,K685='EXPENSE DATABASE'!$X$193,K685='EXPENSE DATABASE'!$X$194,K685='EXPENSE DATABASE'!$Z$187,K685='EXPENSE DATABASE'!$Z$188,K685='EXPENSE DATABASE'!$Z$189,K685='EXPENSE DATABASE'!$Z$190,K685='EXPENSE DATABASE'!$Z$191,K685='EXPENSE DATABASE'!$Z$192,K685='EXPENSE DATABASE'!$Z$193,K685='EXPENSE DATABASE'!$Z$194),O685,\"\")","v":""},{"$f":"IF(OR(K685='EXPENSE DATABASE'!$T$189,K685='EXPENSE DATABASE'!$T$190,K685='EXPENSE DATABASE'!$T$191),O685,\"\")","v":""},{"$f":"VLOOKUP(I685,'EXPENSE DATABASE'!$B$41:$C$65,2,FALSE)","v":{"$error":"#N/A"}},100,{"$f":"VLOOKUP(J685,'EXPENSE DATABASE'!$B$69:$C$168,2,FALSE)","v":{"$error":"#N/A"}},101,{"$f":"VLOOKUP(K685,'EXPENSE DATABASE'!$B$6:$C$35,2,FALSE)","v":{"$error":"#N/A"}},31,{"$f":"VLOOKUP(L685,'EXPENSE DATABASE'!$B$173:$C$176,2,FALSE)","v":{"$error":"#N/A"}},100,0,0,{"$f":"IF(L685=T('EXPENSE DATABASE'!$E$173),O685,0)","v":0},{"$f":"IF(L685=T('EXPENSE DATABASE'!$E$174),O685,0)","v":0},{"$f":"IF(L685=T('EXPENSE DATABASE'!$E$175),O685,0)","v":0},0,672]
[{"$f":"IF(COUNTA(#REF!,#REF!,#REF!,#REF!,#REF!,#REF!,#REF!,#REF!,#REF!,#REF!,#REF!)>0,1,0)","v":1},{"$f":"IF((COUNTA(#REF!)=4),1,-1)*A686","v":-1},{"$nulls":12},{"v":0,"d":"$0.00"},{"v":0,"d":"$0.00"},{"v":0,"d":"$0.00"},0,{"$f":"IF(OR(K686='EXPENSE DATABASE'!$V$187,K686='EXPENSE DATABASE'!$V$188,K686='EXPENSE DATABASE'!$V$189,K686='EXPENSE DATABASE'!$V$190,K686='EXPENSE DATABASE'!$V$191,K686='EXPENSE DATABASE'!$V$192,K686='EXPENSE DATABASE'!$V$193,K686='EXPENSE DATABASE'!$V$194,K686='EXPENSE DATABASE'!$X$187,K686='EXPENSE DATABASE'!$X$188,K686='EXPENSE DATABASE'!$X$189,K686='EXPENSE DATABASE'!$X$190,K686='EXPENSE DATABASE'!$X$191,K686='EXPENSE DATABASE'!$X$192,K686='EXPENSE DATABASE'!$X$193,K686='EXPENSE DATABASE'!$X$194,K686='EXPENSE DATABASE'!$Z$187,K686='EXPENSE DATABASE'!$Z$188,K686='EXPENSE DATABASE'!$Z$189,K686='EXPENSE DATABASE'!$Z$190,K686='EXPENSE DATABASE'!$Z$191,K686='EXPENSE DATABASE'!$Z$192,K686='EXPENSE DATABASE'!$Z$193,K686='EXPENSE DATABASE'!$Z$194),O686,\"\")","v":""},{"$f":"IF(OR(K686='EXPENSE DATABASE'!$T$189,K686='EXPENSE DATABASE'!$T$190,K686='EXPENSE DATABASE'!$T$191),O686,\"\")","v":""},{"$f":"VLOOKUP(I686,'EXPENSE DATABASE'!$B$41:$C$65,2,FALSE)","v":{"$error":"#N/A"}},100,{"$f":"VLOOKUP(J686,'EXPENSE DATABASE'!$B$69:$C$168,2,FALSE)","v":{"$error":"#N/A"}},101,{"$f":"VLOOKUP(K686,'EXPENSE DATABASE'!$B$6:$C$35,2,FALSE)","v":{"$error":"#N/A"}},31,{"$f":"VLOOKUP(L686,'EXPENSE DATABASE'!$B$173:$C$176,2,FALSE)","v":{"$error":"#N/A"}},100,0,0,{"$f":"IF(L686=T('EXPENSE DATABASE'!$E$173),O686,0)","v":0},{"$f":"IF(L686=T('EXPENSE DATABASE'!$E$174),O686,0)","v":0},{"$f":"IF(L686=T('EXPENSE DATABASE'!$E$175),O686,0)","v":0},0,673]
[{"$f":"IF(COUNTA(#REF!,#REF!,#REF!,#REF!,#REF!,#REF!,#REF!,#REF!,#REF!,#REF!,#REF!)>0,1,0)","v":1},{"$f":"IF((COUNTA(#REF!)=4),1,-1)*A687","v":-1},{"$nulls":12},{"v":0,"d":"$0.00"},{"v":0,"d":"$0.00"},{"v":0,"d":"$0.00"},0,{"$f":"IF(OR(K687='EXPENSE DATABASE'!$V$187,K687='EXPENSE DATABASE'!$V$188,K687='EXPENSE DATABASE'!$V$189,K687='EXPENSE DATABASE'!$V$190,K687='EXPENSE DATABASE'!$V$191,K687='EXPENSE DATABASE'!$V$192,K687='EXPENSE DATABASE'!$V$193,K687='EXPENSE DATABASE'!$V$194,K687='EXPENSE DATABASE'!$X$187,K687='EXPENSE DATABASE'!$X$188,K687='EXPENSE DATABASE'!$X$189,K687='EXPENSE DATABASE'!$X$190,K687='EXPENSE DATABASE'!$X$191,K687='EXPENSE DATABASE'!$X$192,K687='EXPENSE DATABASE'!$X$193,K687='EXPENSE DATABASE'!$X$194,K687='EXPENSE DATABASE'!$Z$187,K687='EXPENSE DATABASE'!$Z$188,K687='EXPENSE DATABASE'!$Z$189,K687='EXPENSE DATABASE'!$Z$190,K687='EXPENSE DATABASE'!$Z$191,K687='EXPENSE DATABASE'!$Z$192,K687='EXPENSE DATABASE'!$Z$193,K687='EXPENSE DATABASE'!$Z$194),O687,\"\")","v":""},{"$f":"IF(OR(K687='EXPENSE DATABASE'!$T$189,K687='EXPENSE DATABASE'!$T$190,K687='EXPENSE DATABASE'!$T$191),O687,\"\")","v":""},{"$f":"VLOOKUP(I687,'EXPENSE DATABASE'!$B$41:$C$65,2,FALSE)","v":{"$error":"#N/A"}},100,{"$f":"VLOOKUP(J687,'EXPENSE DATABASE'!$B$69:$C$168,2,FALSE)","v":{"$error":"#N/A"}},101,{"$f":"VLOOKUP(K687,'EXPENSE DATABASE'!$B$6:$C$35,2,FALSE)","v":{"$error":"#N/A"}},31,{"$f":"VLOOKUP(L687,'EXPENSE DATABASE'!$B$173:$C$176,2,FALSE)","v":{"$error":"#N/A"}},100,0,0,{"$f":"IF(L687=T('EXPENSE DATABASE'!$E$173),O687,0)","v":0},{"$f":"IF(L687=T('EXPENSE DATABASE'!$E$174),O687,0)","v":0},{"$f":"IF(L687=T('EXPENSE DATABASE'!$E$175),O687,0)","v":0},0,674]
[{"$f":"IF(COUNTA(#REF!,#REF!,#REF!,#REF!,#REF!,#REF!,#REF!,#REF!,#REF!,#REF!,#REF!)>0,1,0)","v":1},{"$f":"IF((COUNTA(#REF!)=4),1,-1)*A688","v":-1},{"$nulls":12},{"v":0,"d":"$0.00"},{"v":0,"d":"$0.00"},{"v":0,"d":"$0.00"},0,{"$f":"IF(OR(K688='EXPENSE DATABASE'!$V$187,K688='EXPENSE DATABASE'!$V$188,K688='EXPENSE DATABASE'!$V$189,K688='EXPENSE DATABASE'!$V$190,K688='EXPENSE DATABASE'!$V$191,K688='EXPENSE DATABASE'!$V$192,K688='EXPENSE DATABASE'!$V$193,K688='EXPENSE DATABASE'!$V$194,K688='EXPENSE DATABASE'!$X$187,K688='EXPENSE DATABASE'!$X$188,K688='EXPENSE DATABASE'!$X$189,K688='EXPENSE DATABASE'!$X$190,K688='EXPENSE DATABASE'!$X$191,K688='EXPENSE DATABASE'!$X$192,K688='EXPENSE DATABASE'!$X$193,K688='EXPENSE DATABASE'!$X$194,K688='EXPENSE DATABASE'!$Z$187,K688='EXPENSE DATABASE'!$Z$188,K688='EXPENSE DATABASE'!$Z$189,K688='EXPENSE DATABASE'!$Z$190,K688='EXPENSE DATABASE'!$Z$191,K688='EXPENSE DATABASE'!$Z$192,K688='EXPENSE DATABASE'!$Z$193,K688='EXPENSE DATABASE'!$Z$194),O688,\"\")","v":""},{"$f":"IF(OR(K688='EXPENSE DATABASE'!$T$189,K688='EXPENSE DATABASE'!$T$190,K688='EXPENSE DATABASE'!$T$191),O688,\"\")","v":""},{"$f":"VLOOKUP(I688,'EXPENSE DATABASE'!$B$41:$C$65,2,FALSE)","v":{"$error":"#N/A"}},100,{"$f":"VLOOKUP(J688,'EXPENSE DATABASE'!$B$69:$C$168,2,FALSE)","v":{"$error":"#N/A"}},101,{"$f":"VLOOKUP(K688,'EXPENSE DATABASE'!$B$6:$C$35,2,FALSE)","v":{"$error":"#N/A"}},31,{"$f":"VLOOKUP(L688,'EXPENSE DATABASE'!$B$173:$C$176,2,FALSE)","v":{"$error":"#N/A"}},100,0,0,{"$f":"IF(L688=T('EXPENSE DATABASE'!$E$173),O688,0)","v":0},{"$f":"IF(L688=T('EXPENSE DATABASE'!$E$174),O688,0)","v":0},{"$f":"IF(L688=T('EXPENSE DATABASE'!$E$175),O688,0)","v":0},0,675]
[{"$f":"IF(COUNTA(#REF!,#REF!,#REF!,#REF!,#REF!,#REF!,#REF!,#REF!,#REF!,#REF!,#REF!)>0,1,0)","v":1},{"$f":"IF((COUNTA(#REF!)=4),1,-1)*A689","v":-1},{"$nulls":12},{"v":0,"d":"$0.00"},{"v":0,"d":"$0.00"},{"v":0,"d":"$0.00"},0,{"$f":"IF(OR(K689='EXPENSE DATABASE'!$V$187,K689='EXPENSE DATABASE'!$V$188,K689='EXPENSE DATABASE'!$V$189,K689='EXPENSE DATABASE'!$V$190,K689='EXPENSE DATABASE'!$V$191,K689='EXPENSE DATABASE'!$V$192,K689='EXPENSE DATABASE'!$V$193,K689='EXPENSE DATABASE'!$V$194,K689='EXPENSE DATABASE'!$X$187,K689='EXPENSE DATABASE'!$X$188,K689='EXPENSE DATABASE'!$X$189,K689='EXPENSE DATABASE'!$X$190,K689='EXPENSE DATABASE'!$X$191,K689='EXPENSE DATABASE'!$X$192,K689='EXPENSE DATABASE'!$X$193,K689='EXPENSE DATABASE'!$X$194,K689='EXPENSE DATABASE'!$Z$187,K689='EXPENSE DATABASE'!$Z$188,K689='EXPENSE DATABASE'!$Z$189,K689='EXPENSE DATABASE'!$Z$190,K689='EXPENSE DATABASE'!$Z$191,K689='EXPENSE DATABASE'!$Z$192,K689='EXPENSE DATABASE'!$Z$193,K689='EXPENSE DATABASE'!$Z$194),O689,\"\")","v":""},{"$f":"IF(OR(K689='EXPENSE DATABASE'!$T$189,K689='EXPENSE DATABASE'!$T$190,K689='EXPENSE DATABASE'!$T$191),O689,\"\")","v":""},{"$f":"VLOOKUP(I689,'EXPENSE DATABASE'!$B$41:$C$65,2,FALSE)","v":{"$error":"#N/A"}},100,{"$f":"VLOOKUP(J689,'EXPENSE DATABASE'!$B$69:$C$168,2,FALSE)","v":{"$error":"#N/A"}},101,{"$f":"VLOOKUP(K689,'EXPENSE DATABASE'!$B$6:$C$35,2,FALSE)","v":{"$error":"#N/A"}},31,{"$f":"VLOOKUP(L689,'EXPENSE DATABASE'!$B$173:$C$176,2,FALSE)","v":{"$error":"#N/A"}},100,0,0,{"$f":"IF(L689=T('EXPENSE DATABASE'!$E$173),O689,0)","v":0},{"$f":"IF(L689=T('EXPENSE DATABASE'!$E$174),O689,0)","v":0},{"$f":"IF(L689=T('EXPENSE DATABASE'!$E$175),O689,0)","v":0},0,676]
[{"$f":"IF(COUNTA(#REF!,#REF!,#REF!,#REF!,#REF!,#REF!,#REF!,#REF!,#REF!,#REF!,#REF!)>0,1,0)","v":1},{"$f":"IF((COUNTA(#REF!)=4),1,-1)*A690","v":-1},{"$nulls":12},{"v":0,"d":"$0.00"},{"v":0,"d":"$0.00"},{"v":0,"d":"$0.00"},0,{"$f":"IF(OR(K690='EXPENSE DATABASE'!$V$187,K690='EXPENSE DATABASE'!$V$188,K690='EXPENSE DATABASE'!$V$189,K690='EXPENSE DATABASE'!$V$190,K690='EXPENSE DATABASE'!$V$191,K690='EXPENSE DATABASE'!$V$192,K690='EXPENSE DATABASE'!$V$193,K690='EXPENSE DATABASE'!$V$194,K690='EXPENSE DATABASE'!$X$187,K690='EXPENSE DATABASE'!$X$188,K690='EXPENSE DATABASE'!$X$189,K690='EXPENSE DATABASE'!$X$190,K690='EXPENSE DATABASE'!$X$191,K690='EXPENSE DATABASE'!$X$192,K690='EXPENSE DATABASE'!$X$193,K690='EXPENSE DATABASE'!$X$194,K690='EXPENSE DATABASE'!$Z$187,K690='EXPENSE DATABASE'!$Z$188,K690='EXPENSE DATABASE'!$Z$189,K690='EXPENSE DATABASE'!$Z$190,K690='EXPENSE DATABASE'!$Z$191,K690='EXPENSE DATABASE'!$Z$192,K690='EXPENSE DATABASE'!$Z$193,K690='EXPENSE DATABASE'!$Z$194),O690,\"\")","v":""},{"$f":"IF(OR(K690='EXPENSE DATABASE'!$T$189,K690='EXPENSE DATABASE'!$T$190,K690='EXPENSE DATABASE'!$T$191),O690,\"\")","v":""},{"$f":"VLOOKUP(I690,'EXPENSE DATABASE'!$B$41:$C$65,2,FALSE)","v":{"$error":"#N/A"}},100,{"$f":"VLOOKUP(J690,'EXPENSE DATABASE'!$B$69:$C$168,2,FALSE)","v":{"$error":"#N/A"}},101,{"$f":"VLOOKUP(K690,'EXPENSE DATABASE'!$B$6:$C$35,2,FALSE)","v":{"$error":"#N/A"}},31,{"$f":"VLOOKUP(L690,'EXPENSE DATABASE'!$B$173:$C$176,2,FALSE)","v":{"$error":"#N/A"}},100,0,0,{"$f":"IF(L690=T('EXPENSE DATABASE'!$E$173),O690,0)","v":0},{"$f":"IF(L690=T('EXPENSE DATABASE'!$E$174),O690,0)","v":0},{"$f":"IF(L690=T('EXPENSE DATABASE'!$E$175),O690,0)","v":0},0,677]
[{"$f":"IF(COUNTA(#REF!,#REF!,#REF!,#REF!,#REF!,#REF!,#REF!,#REF!,#REF!,#REF!,#REF!)>0,1,0)","v":1},{"$f":"IF((COUNTA(#REF!)=4),1,-1)*A691","v":-1},{"$nulls":12},{"v":0,"d":"$0.00"},{"v":0,"d":"$0.00"},{"v":0,"d":"$0.00"},0,{"$f":"IF(OR(K691='EXPENSE DATABASE'!$V$187,K691='EXPENSE DATABASE'!$V$188,K691='EXPENSE DATABASE'!$V$189,K691='EXPENSE DATABASE'!$V$190,K691='EXPENSE DATABASE'!$V$191,K691='EXPENSE DATABASE'!$V$192,K691='EXPENSE DATABASE'!$V$193,K691='EXPENSE DATABASE'!$V$194,K691='EXPENSE DATABASE'!$X$187,K691='EXPENSE DATABASE'!$X$188,K691='EXPENSE DATABASE'!$X$189,K691='EXPENSE DATABASE'!$X$190,K691='EXPENSE DATABASE'!$X$191,K691='EXPENSE DATABASE'!$X$192,K691='EXPENSE DATABASE'!$X$193,K691='EXPENSE DATABASE'!$X$194,K691='EXPENSE DATABASE'!$Z$187,K691='EXPENSE DATABASE'!$Z$188,K691='EXPENSE DATABASE'!$Z$189,K691='EXPENSE DATABASE'!$Z$190,K691='EXPENSE DATABASE'!$Z$191,K691='EXPENSE DATABASE'!$Z$192,K691='EXPENSE DATABASE'!$Z$193,K691='EXPENSE DATABASE'!$Z$194),O691,\"\")","v":""},{"$f":"IF(OR(K691='EXPENSE DATABASE'!$T$189,K691='EXPENSE DATABASE'!$T$190,K691='EXPENSE DATABASE'!$T$191),O691,\"\")","v":""},{"$f":"VLOOKUP(I691,'EXPENSE DATABASE'!$B$41:$C$65,2,FALSE)","v":{"$error":"#N/A"}},100,{"$f":"VLOOKUP(J691,'EXPENSE DATABASE'!$B$69:$C$168,2,FALSE)","v":{"$error":"#N/A"}},101,{"$f":"VLOOKUP(K691,'EXPENSE DATABASE'!$B$6:$C$35,2,FALSE)","v":{"$error":"#N/A"}},31,{"$f":"VLOOKUP(L691,'EXPENSE DATABASE'!$B$173:$C$176,2,FALSE)","v":{"$error":"#N/A"}},100,0,0,{"$f":"IF(L691=T('EXPENSE DATABASE'!$E$173),O691,0)","v":0},{"$f":"IF(L691=T('EXPENSE DATABASE'!$E$174),O691,0)","v":0},{"$f":"IF(L691=T('EXPENSE DATABASE'!$E$175),O691,0)","v":0},0,678]
[{"$f":"IF(COUNTA(#REF!,#REF!,#REF!,#REF!,#REF!,#REF!,#REF!,#REF!,#REF!,#REF!,#REF!)>0,1,0)","v":1},{"$f":"IF((COUNTA(#REF!)=4),1,-1)*A692","v":-1},{"$nulls":12},{"v":0,"d":"$0.00"},{"v":0,"d":"$0.00"},{"v":0,"d":"$0.00"},0,{"$f":"IF(OR(K692='EXPENSE DATABASE'!$V$187,K692='EXPENSE DATABASE'!$V$188,K692='EXPENSE DATABASE'!$V$189,K692='EXPENSE DATABASE'!$V$190,K692='EXPENSE DATABASE'!$V$191,K692='EXPENSE DATABASE'!$V$192,K692='EXPENSE DATABASE'!$V$193,K692='EXPENSE DATABASE'!$V$194,K692='EXPENSE DATABASE'!$X$187,K692='EXPENSE DATABASE'!$X$188,K692='EXPENSE DATABASE'!$X$189,K692='EXPENSE DATABASE'!$X$190,K692='EXPENSE DATABASE'!$X$191,K692='EXPENSE DATABASE'!$X$192,K692='EXPENSE DATABASE'!$X$193,K692='EXPENSE DATABASE'!$X$194,K692='EXPENSE DATABASE'!$Z$187,K692='EXPENSE DATABASE'!$Z$188,K692='EXPENSE DATABASE'!$Z$189,K692='EXPENSE DATABASE'!$Z$190,K692='EXPENSE DATABASE'!$Z$191,K692='EXPENSE DATABASE'!$Z$192,K692='EXPENSE DATABASE'!$Z$193,K692='EXPENSE DATABASE'!$Z$194),O692,\"\")","v":""},{"$f":"IF(OR(K692='EXPENSE DATABASE'!$T$189,K692='EXPENSE DATABASE'!$T$190,K692='EXPENSE DATABASE'!$T$191),O692,\"\")","v":""},{"$f":"VLOOKUP(I692,'EXPENSE DATABASE'!$B$41:$C$65,2,FALSE)","v":{"$error":"#N/A"}},100,{"$f":"VLOOKUP(J692,'EXPENSE DATABASE'!$B$69:$C$168,2,FALSE)","v":{"$error":"#N/A"}},101,{"$f":"VLOOKUP(K692,'EXPENSE DATABASE'!$B$6:$C$35,2,FALSE)","v":{"$error":"#N/A"}},31,{"$f":"VLOOKUP(L692,'EXPENSE DATABASE'!$B$173:$C$176,2,FALSE)","v":{"$error":"#N/A"}},100,0,0,{"$f":"IF(L692=T('EXPENSE DATABASE'!$E$173),O692,0)","v":0},{"$f":"IF(L692=T('EXPENSE DATABASE'!$E$174),O692,0)","v":0},{"$f":"IF(L692=T('EXPENSE DATABASE'!$E$175),O692,0)","v":0},0,679]
[{"$f":"IF(COUNTA(#REF!,#REF!,#REF!,#REF!,#REF!,#REF!,#REF!,#REF!,#REF!,#REF!,#REF!)>0,1,0)","v":1},{"$f":"IF((COUNTA(#REF!)=4),1,-1)*A693","v":-1},{"$nulls":12},{"v":0,"d":"$0.00"},{"v":0,"d":"$0.00"},{"v":0,"d":"$0.00"},0,{"$f":"IF(OR(K693='EXPENSE DATABASE'!$V$187,K693='EXPENSE DATABASE'!$V$188,K693='EXPENSE DATABASE'!$V$189,K693='EXPENSE DATABASE'!$V$190,K693='EXPENSE DATABASE'!$V$191,K693='EXPENSE DATABASE'!$V$192,K693='EXPENSE DATABASE'!$V$193,K693='EXPENSE DATABASE'!$V$194,K693='EXPENSE DATABASE'!$X$187,K693='EXPENSE DATABASE'!$X$188,K693='EXPENSE DATABASE'!$X$189,K693='EXPENSE DATABASE'!$X$190,K693='EXPENSE DATABASE'!$X$191,K693='EXPENSE DATABASE'!$X$192,K693='EXPENSE DATABASE'!$X$193,K693='EXPENSE DATABASE'!$X$194,K693='EXPENSE DATABASE'!$Z$187,K693='EXPENSE DATABASE'!$Z$188,K693='EXPENSE DATABASE'!$Z$189,K693='EXPENSE DATABASE'!$Z$190,K693='EXPENSE DATABASE'!$Z$191,K693='EXPENSE DATABASE'!$Z$192,K693='EXPENSE DATABASE'!$Z$193,K693='EXPENSE DATABASE'!$Z$194),O693,\"\")","v":""},{"$f":"IF(OR(K693='EXPENSE DATABASE'!$T$189,K693='EXPENSE DATABASE'!$T$190,K693='EXPENSE DATABASE'!$T$191),O693,\"\")","v":""},{"$f":"VLOOKUP(I693,'EXPENSE DATABASE'!$B$41:$C$65,2,FALSE)","v":{"$error":"#N/A"}},100,{"$f":"VLOOKUP(J693,'EXPENSE DATABASE'!$B$69:$C$168,2,FALSE)","v":{"$error":"#N/A"}},101,{"$f":"VLOOKUP(K693,'EXPENSE DATABASE'!$B$6:$C$35,2,FALSE)","v":{"$error":"#N/A"}},31,{"$f":"VLOOKUP(L693,'EXPENSE DATABASE'!$B$173:$C$176,2,FALSE)","v":{"$error":"#N/A"}},100,0,0,{"$f":"IF(L693=T('EXPENSE DATABASE'!$E$173),O693,0)","v":0},{"$f":"IF(L693=T('EXPENSE DATABASE'!$E$174),O693,0)","v":0},{"$f":"IF(L693=T('EXPENSE DATABASE'!$E$175),O693,0)","v":0},0,680]
[{"$f":"IF(COUNTA(#REF!,#REF!,#REF!,#REF!,#REF!,#REF!,#REF!,#REF!,#REF!,#REF!,#REF!)>0,1,0)","v":1},{"$f":"IF((COUNTA(#REF!)=4),1,-1)*A694","v":-1},{"$nulls":12},{"v":0,"d":"$0.00"},{"v":0,"d":"$0.00"},{"v":0,"d":"$0.00"},0,{"$f":"IF(OR(K694='EXPENSE DATABASE'!$V$187,K694='EXPENSE DATABASE'!$V$188,K694='EXPENSE DATABASE'!$V$189,K694='EXPENSE DATABASE'!$V$190,K694='EXPENSE DATABASE'!$V$191,K694='EXPENSE DATABASE'!$V$192,K694='EXPENSE DATABASE'!$V$193,K694='EXPENSE DATABASE'!$V$194,K694='EXPENSE DATABASE'!$X$187,K694='EXPENSE DATABASE'!$X$188,K694='EXPENSE DATABASE'!$X$189,K694='EXPENSE DATABASE'!$X$190,K694='EXPENSE DATABASE'!$X$191,K694='EXPENSE DATABASE'!$X$192,K694='EXPENSE DATABASE'!$X$193,K694='EXPENSE DATABASE'!$X$194,K694='EXPENSE DATABASE'!$Z$187,K694='EXPENSE DATABASE'!$Z$188,K694='EXPENSE DATABASE'!$Z$189,K694='EXPENSE DATABASE'!$Z$190,K694='EXPENSE DATABASE'!$Z$191,K694='EXPENSE DATABASE'!$Z$192,K694='EXPENSE DATABASE'!$Z$193,K694='EXPENSE DATABASE'!$Z$194),O694,\"\")","v":""},{"$f":"IF(OR(K694='EXPENSE DATABASE'!$T$189,K694='EXPENSE DATABASE'!$T$190,K694='EXPENSE DATABASE'!$T$191),O694,\"\")","v":""},{"$f":"VLOOKUP(I694,'EXPENSE DATABASE'!$B$41:$C$65,2,FALSE)","v":{"$error":"#N/A"}},100,{"$f":"VLOOKUP(J694,'EXPENSE DATABASE'!$B$69:$C$168,2,FALSE)","v":{"$error":"#N/A"}},101,{"$f":"VLOOKUP(K694,'EXPENSE DATABASE'!$B$6:$C$35,2,FALSE)","v":{"$error":"#N/A"}},31,{"$f":"VLOOKUP(L694,'EXPENSE DATABASE'!$B$173:$C$176,2,FALSE)","v":{"$error":"#N/A"}},100,0,0,{"$f":"IF(L694=T('EXPENSE DATABASE'!$E$173),O694,0)","v":0},{"$f":"IF(L694=T('EXPENSE DATABASE'!$E$174),O694,0)","v":0},{"$f":"IF(L694=T('EXPENSE DATABASE'!$E$175),O694,0)","v":0},0,681]
[{"$f":"IF(COUNTA(#REF!,#REF!,#REF!,#REF!,#REF!,#REF!,#REF!,#REF!,#REF!,#REF!,#REF!)>0,1,0)","v":1},{"$f":"IF((COUNTA(#REF!)=4),1,-1)*A695","v":-1},{"$nulls":12},{"v":0,"d":"$0.00"},{"v":0,"d":"$0.00"},{"v":0,"d":"$0.00"},0,{"$f":"IF(OR(K695='EXPENSE DATABASE'!$V$187,K695='EXPENSE DATABASE'!$V$188,K695='EXPENSE DATABASE'!$V$189,K695='EXPENSE DATABASE'!$V$190,K695='EXPENSE DATABASE'!$V$191,K695='EXPENSE DATABASE'!$V$192,K695='EXPENSE DATABASE'!$V$193,K695='EXPENSE DATABASE'!$V$194,K695='EXPENSE DATABASE'!$X$187,K695='EXPENSE DATABASE'!$X$188,K695='EXPENSE DATABASE'!$X$189,K695='EXPENSE DATABASE'!$X$190,K695='EXPENSE DATABASE'!$X$191,K695='EXPENSE DATABASE'!$X$192,K695='EXPENSE DATABASE'!$X$193,K695='EXPENSE DATABASE'!$X$194,K695='EXPENSE DATABASE'!$Z$187,K695='EXPENSE DATABASE'!$Z$188,K695='EXPENSE DATABASE'!$Z$189,K695='EXPENSE DATABASE'!$Z$190,K695='EXPENSE DATABASE'!$Z$191,K695='EXPENSE DATABASE'!$Z$192,K695='EXPENSE DATABASE'!$Z$193,K695='EXPENSE DATABASE'!$Z$194),O695,\"\")","v":""},{"$f":"IF(OR(K695='EXPENSE DATABASE'!$T$189,K695='EXPENSE DATABASE'!$T$190,K695='EXPENSE DATABASE'!$T$191),O695,\"\")","v":""},{"$f":"VLOOKUP(I695,'EXPENSE DATABASE'!$B$41:$C$65,2,FALSE)","v":{"$error":"#N/A"}},100,{"$f":"VLOOKUP(J695,'EXPENSE DATABASE'!$B$69:$C$168,2,FALSE)","v":{"$error":"#N/A"}},101,{"$f":"VLOOKUP(K695,'EXPENSE DATABASE'!$B$6:$C$35,2,FALSE)","v":{"$error":"#N/A"}},31,{"$f":"VLOOKUP(L695,'EXPENSE DATABASE'!$B$173:$C$176,2,FALSE)","v":{"$error":"#N/A"}},100,0,0,{"$f":"IF(L695=T('EXPENSE DATABASE'!$E$173),O695,0)","v":0},{"$f":"IF(L695=T('EXPENSE DATABASE'!$E$174),O695,0)","v":0},{"$f":"IF(L695=T('EXPENSE DATABASE'!$E$175),O695,0)","v":0},0,682]
[{"$f":"IF(COUNTA(#REF!,#REF!,#REF!,#REF!,#REF!,#REF!,#REF!,#REF!,#REF!,#REF!,#REF!)>0,1,0)","v":1},{"$f":"IF((COUNTA(#REF!)=4),1,-1)*A696","v":-1},{"$nulls":12},{"v":0,"d":"$0.00"},{"v":0,"d":"$0.00"},{"v":0,"d":"$0.00"},0,{"$f":"IF(OR(K696='EXPENSE DATABASE'!$V$187,K696='EXPENSE DATABASE'!$V$188,K696='EXPENSE DATABASE'!$V$189,K696='EXPENSE DATABASE'!$V$190,K696='EXPENSE DATABASE'!$V$191,K696='EXPENSE DATABASE'!$V$192,K696='EXPENSE DATABASE'!$V$193,K696='EXPENSE DATABASE'!$V$194,K696='EXPENSE DATABASE'!$X$187,K696='EXPENSE DATABASE'!$X$188,K696='EXPENSE DATABASE'!$X$189,K696='EXPENSE DATABASE'!$X$190,K696='EXPENSE DATABASE'!$X$191,K696='EXPENSE DATABASE'!$X$192,K696='EXPENSE DATABASE'!$X$193,K696='EXPENSE DATABASE'!$X$194,K696='EXPENSE DATABASE'!$Z$187,K696='EXPENSE DATABASE'!$Z$188,K696='EXPENSE DATABASE'!$Z$189,K696='EXPENSE DATABASE'!$Z$190,K696='EXPENSE DATABASE'!$Z$191,K696='EXPENSE DATABASE'!$Z$192,K696='EXPENSE DATABASE'!$Z$193,K696='EXPENSE DATABASE'!$Z$194),O696,\"\")","v":""},{"$f":"IF(OR(K696='EXPENSE DATABASE'!$T$189,K696='EXPENSE DATABASE'!$T$190,K696='EXPENSE DATABASE'!$T$191),O696,\"\")","v":""},{"$f":"VLOOKUP(I696,'EXPENSE DATABASE'!$B$41:$C$65,2,FALSE)","v":{"$error":"#N/A"}},100,{"$f":"VLOOKUP(J696,'EXPENSE DATABASE'!$B$69:$C$168,2,FALSE)","v":{"$error":"#N/A"}},101,{"$f":"VLOOKUP(K696,'EXPENSE DATABASE'!$B$6:$C$35,2,FALSE)","v":{"$error":"#N/A"}},31,{"$f":"VLOOKUP(L696,'EXPENSE DATABASE'!$B$173:$C$176,2,FALSE)","v":{"$error":"#N/A"}},100,0,0,{"$f":"IF(L696=T('EXPENSE DATABASE'!$E$173),O696,0)","v":0},{"$f":"IF(L696=T('EXPENSE DATABASE'!$E$174),O696,0)","v":0},{"$f":"IF(L696=T('EXPENSE DATABASE'!$E$175),O696,0)","v":0},0,683]
[{"$f":"IF(COUNTA(#REF!,#REF!,#REF!,#REF!,#REF!,#REF!,#REF!,#REF!,#REF!,#REF!,#REF!)>0,1,0)","v":1},{"$f":"IF((COUNTA(#REF!)=4),1,-1)*A697","v":-1},{"$nulls":12},{"v":0,"d":"$0.00"},{"v":0,"d":"$0.00"},{"v":0,"d":"$0.00"},0,{"$f":"IF(OR(K697='EXPENSE DATABASE'!$V$187,K697='EXPENSE DATABASE'!$V$188,K697='EXPENSE DATABASE'!$V$189,K697='EXPENSE DATABASE'!$V$190,K697='EXPENSE DATABASE'!$V$191,K697='EXPENSE DATABASE'!$V$192,K697='EXPENSE DATABASE'!$V$193,K697='EXPENSE DATABASE'!$V$194,K697='EXPENSE DATABASE'!$X$187,K697='EXPENSE DATABASE'!$X$188,K697='EXPENSE DATABASE'!$X$189,K697='EXPENSE DATABASE'!$X$190,K697='EXPENSE DATABASE'!$X$191,K697='EXPENSE DATABASE'!$X$192,K697='EXPENSE DATABASE'!$X$193,K697='EXPENSE DATABASE'!$X$194,K697='EXPENSE DATABASE'!$Z$187,K697='EXPENSE DATABASE'!$Z$188,K697='EXPENSE DATABASE'!$Z$189,K697='EXPENSE DATABASE'!$Z$190,K697='EXPENSE DATABASE'!$Z$191,K697='EXPENSE DATABASE'!$Z$192,K697='EXPENSE DATABASE'!$Z$193,K697='EXPENSE DATABASE'!$Z$194),O697,\"\")","v":""},{"$f":"IF(OR(K697='EXPENSE DATABASE'!$T$189,K697='EXPENSE DATABASE'!$T$190,K697='EXPENSE DATABASE'!$T$191),O697,\"\")","v":""},{"$f":"VLOOKUP(I697,'EXPENSE DATABASE'!$B$41:$C$65,2,FALSE)","v":{"$error":"#N/A"}},100,{"$f":"VLOOKUP(J697,'EXPENSE DATABASE'!$B$69:$C$168,2,FALSE)","v":{"$error":"#N/A"}},101,{"$f":"VLOOKUP(K697,'EXPENSE DATABASE'!$B$6:$C$35,2,FALSE)","v":{"$error":"#N/A"}},31,{"$f":"VLOOKUP(L697,'EXPENSE DATABASE'!$B$173:$C$176,2,FALSE)","v":{"$error":"#N/A"}},100,0,0,{"$f":"IF(L697=T('EXPENSE DATABASE'!$E$173),O697,0)","v":0},{"$f":"IF(L697=T('EXPENSE DATABASE'!$E$174),O697,0)","v":0},{"$f":"IF(L697=T('EXPENSE DATABASE'!$E$175),O697,0)","v":0},0,684]
[{"$f":"IF(COUNTA(#REF!,#REF!,#REF!,#REF!,#REF!,#REF!,#REF!,#REF!,#REF!,#REF!,#REF!)>0,1,0)","v":1},{"$f":"IF((COUNTA(#REF!)=4),1,-1)*A698","v":-1},{"$nulls":12},{"v":0,"d":"$0.00"},{"v":0,"d":"$0.00"},{"v":0,"d":"$0.00"},0,{"$f":"IF(OR(K698='EXPENSE DATABASE'!$V$187,K698='EXPENSE DATABASE'!$V$188,K698='EXPENSE DATABASE'!$V$189,K698='EXPENSE DATABASE'!$V$190,K698='EXPENSE DATABASE'!$V$191,K698='EXPENSE DATABASE'!$V$192,K698='EXPENSE DATABASE'!$V$193,K698='EXPENSE DATABASE'!$V$194,K698='EXPENSE DATABASE'!$X$187,K698='EXPENSE DATABASE'!$X$188,K698='EXPENSE DATABASE'!$X$189,K698='EXPENSE DATABASE'!$X$190,K698='EXPENSE DATABASE'!$X$191,K698='EXPENSE DATABASE'!$X$192,K698='EXPENSE DATABASE'!$X$193,K698='EXPENSE DATABASE'!$X$194,K698='EXPENSE DATABASE'!$Z$187,K698='EXPENSE DATABASE'!$Z$188,K698='EXPENSE DATABASE'!$Z$189,K698='EXPENSE DATABASE'!$Z$190,K698='EXPENSE DATABASE'!$Z$191,K698='EXPENSE DATABASE'!$Z$192,K698='EXPENSE DATABASE'!$Z$193,K698='EXPENSE DATABASE'!$Z$194),O698,\"\")","v":""},{"$f":"IF(OR(K698='EXPENSE DATABASE'!$T$189,K698='EXPENSE DATABASE'!$T$190,K698='EXPENSE DATABASE'!$T$191),O698,\"\")","v":""},{"$f":"VLOOKUP(I698,'EXPENSE DATABASE'!$B$41:$C$65,2,FALSE)","v":{"$error":"#N/A"}},100,{"$f":"VLOOKUP(J698,'EXPENSE DATABASE'!$B$69:$C$168,2,FALSE)","v":{"$error":"#N/A"}},101,{"$f":"VLOOKUP(K698,'EXPENSE DATABASE'!$B$6:$C$35,2,FALSE)","v":{"$error":"#N/A"}},31,{"$f":"VLOOKUP(L698,'EXPENSE DATABASE'!$B$173:$C$176,2,FALSE)","v":{"$error":"#N/A"}},100,0,0,{"$f":"IF(L698=T('EXPENSE DATABASE'!$E$173),O698,0)","v":0},{"$f":"IF(L698=T('EXPENSE DATABASE'!$E$174),O698,0)","v":0},{"$f":"IF(L698=T('EXPENSE DATABASE'!$E$175),O698,0)","v":0},0,685]
[{"$f":"IF(COUNTA(#REF!,#REF!,#REF!,#REF!,#REF!,#REF!,#REF!,#REF!,#REF!,#REF!,#REF!)>0,1,0)","v":1},{"$f":"IF((COUNTA(#REF!)=4),1,-1)*A699","v":-1},{"$nulls":12},{"v":0,"d":"$0.00"},{"v":0,"d":"$0.00"},{"v":0,"d":"$0.00"},0,{"$f":"IF(OR(K699='EXPENSE DATABASE'!$V$187,K699='EXPENSE DATABASE'!$V$188,K699='EXPENSE DATABASE'!$V$189,K699='EXPENSE DATABASE'!$V$190,K699='EXPENSE DATABASE'!$V$191,K699='EXPENSE DATABASE'!$V$192,K699='EXPENSE DATABASE'!$V$193,K699='EXPENSE DATABASE'!$V$194,K699='EXPENSE DATABASE'!$X$187,K699='EXPENSE DATABASE'!$X$188,K699='EXPENSE DATABASE'!$X$189,K699='EXPENSE DATABASE'!$X$190,K699='EXPENSE DATABASE'!$X$191,K699='EXPENSE DATABASE'!$X$192,K699='EXPENSE DATABASE'!$X$193,K699='EXPENSE DATABASE'!$X$194,K699='EXPENSE DATABASE'!$Z$187,K699='EXPENSE DATABASE'!$Z$188,K699='EXPENSE DATABASE'!$Z$189,K699='EXPENSE DATABASE'!$Z$190,K699='EXPENSE DATABASE'!$Z$191,K699='EXPENSE DATABASE'!$Z$192,K699='EXPENSE DATABASE'!$Z$193,K699='EXPENSE DATABASE'!$Z$194),O699,\"\")","v":""},{"$f":"IF(OR(K699='EXPENSE DATABASE'!$T$189,K699='EXPENSE DATABASE'!$T$190,K699='EXPENSE DATABASE'!$T$191),O699,\"\")","v":""},{"$f":"VLOOKUP(I699,'EXPENSE DATABASE'!$B$41:$C$65,2,FALSE)","v":{"$error":"#N/A"}},100,{"$f":"VLOOKUP(J699,'EXPENSE DATABASE'!$B$69:$C$168,2,FALSE)","v":{"$error":"#N/A"}},101,{"$f":"VLOOKUP(K699,'EXPENSE DATABASE'!$B$6:$C$35,2,FALSE)","v":{"$error":"#N/A"}},31,{"$f":"VLOOKUP(L699,'EXPENSE DATABASE'!$B$173:$C$176,2,FALSE)","v":{"$error":"#N/A"}},100,0,0,{"$f":"IF(L699=T('EXPENSE DATABASE'!$E$173),O699,0)","v":0},{"$f":"IF(L699=T('EXPENSE DATABASE'!$E$174),O699,0)","v":0},{"$f":"IF(L699=T('EXPENSE DATABASE'!$E$175),O699,0)","v":0},0,686]
[{"$f":"IF(COUNTA(#REF!,#REF!,#REF!,#REF!,#REF!,#REF!,#REF!,#REF!,#REF!,#REF!,#REF!)>0,1,0)","v":1},{"$f":"IF((COUNTA(#REF!)=4),1,-1)*A700","v":-1},{"$nulls":12},{"v":0,"d":"$0.00"},{"v":0,"d":"$0.00"},{"v":0,"d":"$0.00"},0,{"$f":"IF(OR(K700='EXPENSE DATABASE'!$V$187,K700='EXPENSE DATABASE'!$V$188,K700='EXPENSE DATABASE'!$V$189,K700='EXPENSE DATABASE'!$V$190,K700='EXPENSE DATABASE'!$V$191,K700='EXPENSE DATABASE'!$V$192,K700='EXPENSE DATABASE'!$V$193,K700='EXPENSE DATABASE'!$V$194,K700='EXPENSE DATABASE'!$X$187,K700='EXPENSE DATABASE'!$X$188,K700='EXPENSE DATABASE'!$X$189,K700='EXPENSE DATABASE'!$X$190,K700='EXPENSE DATABASE'!$X$191,K700='EXPENSE DATABASE'!$X$192,K700='EXPENSE DATABASE'!$X$193,K700='EXPENSE DATABASE'!$X$194,K700='EXPENSE DATABASE'!$Z$187,K700='EXPENSE DATABASE'!$Z$188,K700='EXPENSE DATABASE'!$Z$189,K700='EXPENSE DATABASE'!$Z$190,K700='EXPENSE DATABASE'!$Z$191,K700='EXPENSE DATABASE'!$Z$192,K700='EXPENSE DATABASE'!$Z$193,K700='EXPENSE DATABASE'!$Z$194),O700,\"\")","v":""},{"$f":"IF(OR(K700='EXPENSE DATABASE'!$T$189,K700='EXPENSE DATABASE'!$T$190,K700='EXPENSE DATABASE'!$T$191),O700,\"\")","v":""},{"$f":"VLOOKUP(I700,'EXPENSE DATABASE'!$B$41:$C$65,2,FALSE)","v":{"$error":"#N/A"}},100,{"$f":"VLOOKUP(J700,'EXPENSE DATABASE'!$B$69:$C$168,2,FALSE)","v":{"$error":"#N/A"}},101,{"$f":"VLOOKUP(K700,'EXPENSE DATABASE'!$B$6:$C$35,2,FALSE)","v":{"$error":"#N/A"}},31,{"$f":"VLOOKUP(L700,'EXPENSE DATABASE'!$B$173:$C$176,2,FALSE)","v":{"$error":"#N/A"}},100,0,0,{"$f":"IF(L700=T('EXPENSE DATABASE'!$E$173),O700,0)","v":0},{"$f":"IF(L700=T('EXPENSE DATABASE'!$E$174),O700,0)","v":0},{"$f":"IF(L700=T('EXPENSE DATABASE'!$E$175),O700,0)","v":0},0,687]
[{"$f":"IF(COUNTA(#REF!,#REF!,#REF!,#REF!,#REF!,#REF!,#REF!,#REF!,#REF!,#REF!,#REF!)>0,1,0)","v":1},{"$f":"IF((COUNTA(#REF!)=4),1,-1)*A701","v":-1},{"$nulls":12},{"v":0,"d":"$0.00"},{"v":0,"d":"$0.00"},{"v":0,"d":"$0.00"},0,{"$f":"IF(OR(K701='EXPENSE DATABASE'!$V$187,K701='EXPENSE DATABASE'!$V$188,K701='EXPENSE DATABASE'!$V$189,K701='EXPENSE DATABASE'!$V$190,K701='EXPENSE DATABASE'!$V$191,K701='EXPENSE DATABASE'!$V$192,K701='EXPENSE DATABASE'!$V$193,K701='EXPENSE DATABASE'!$V$194,K701='EXPENSE DATABASE'!$X$187,K701='EXPENSE DATABASE'!$X$188,K701='EXPENSE DATABASE'!$X$189,K701='EXPENSE DATABASE'!$X$190,K701='EXPENSE DATABASE'!$X$191,K701='EXPENSE DATABASE'!$X$192,K701='EXPENSE DATABASE'!$X$193,K701='EXPENSE DATABASE'!$X$194,K701='EXPENSE DATABASE'!$Z$187,K701='EXPENSE DATABASE'!$Z$188,K701='EXPENSE DATABASE'!$Z$189,K701='EXPENSE DATABASE'!$Z$190,K701='EXPENSE DATABASE'!$Z$191,K701='EXPENSE DATABASE'!$Z$192,K701='EXPENSE DATABASE'!$Z$193,K701='EXPENSE DATABASE'!$Z$194),O701,\"\")","v":""},{"$f":"IF(OR(K701='EXPENSE DATABASE'!$T$189,K701='EXPENSE DATABASE'!$T$190,K701='EXPENSE DATABASE'!$T$191),O701,\"\")","v":""},{"$f":"VLOOKUP(I701,'EXPENSE DATABASE'!$B$41:$C$65,2,FALSE)","v":{"$error":"#N/A"}},100,{"$f":"VLOOKUP(J701,'EXPENSE DATABASE'!$B$69:$C$168,2,FALSE)","v":{"$error":"#N/A"}},101,{"$f":"VLOOKUP(K701,'EXPENSE DATABASE'!$B$6:$C$35,2,FALSE)","v":{"$error":"#N/A"}},31,{"$f":"VLOOKUP(L701,'EXPENSE DATABASE'!$B$173:$C$176,2,FALSE)","v":{"$error":"#N/A"}},100,0,0,{"$f":"IF(L701=T('EXPENSE DATABASE'!$E$173),O701,0)","v":0},{"$f":"IF(L701=T('EXPENSE DATABASE'!$E$174),O701,0)","v":0},{"$f":"IF(L701=T('EXPENSE DATABASE'!$E$175),O701,0)","v":0},0,688]
[{"$f":"IF(COUNTA(#REF!,#REF!,#REF!,#REF!,#REF!,#REF!,#REF!,#REF!,#REF!,#REF!,#REF!)>0,1,0)","v":1},{"$f":"IF((COUNTA(#REF!)=4),1,-1)*A702","v":-1},{"$nulls":12},{"v":0,"d":"$0.00"},{"v":0,"d":"$0.00"},{"v":0,"d":"$0.00"},0,{"$f":"IF(OR(K702='EXPENSE DATABASE'!$V$187,K702='EXPENSE DATABASE'!$V$188,K702='EXPENSE DATABASE'!$V$189,K702='EXPENSE DATABASE'!$V$190,K702='EXPENSE DATABASE'!$V$191,K702='EXPENSE DATABASE'!$V$192,K702='EXPENSE DATABASE'!$V$193,K702='EXPENSE DATABASE'!$V$194,K702='EXPENSE DATABASE'!$X$187,K702='EXPENSE DATABASE'!$X$188,K702='EXPENSE DATABASE'!$X$189,K702='EXPENSE DATABASE'!$X$190,K702='EXPENSE DATABASE'!$X$191,K702='EXPENSE DATABASE'!$X$192,K702='EXPENSE DATABASE'!$X$193,K702='EXPENSE DATABASE'!$X$194,K702='EXPENSE DATABASE'!$Z$187,K702='EXPENSE DATABASE'!$Z$188,K702='EXPENSE DATABASE'!$Z$189,K702='EXPENSE DATABASE'!$Z$190,K702='EXPENSE DATABASE'!$Z$191,K702='EXPENSE DATABASE'!$Z$192,K702='EXPENSE DATABASE'!$Z$193,K702='EXPENSE DATABASE'!$Z$194),O702,\"\")","v":""},{"$f":"IF(OR(K702='EXPENSE DATABASE'!$T$189,K702='EXPENSE DATABASE'!$T$190,K702='EXPENSE DATABASE'!$T$191),O702,\"\")","v":""},{"$f":"VLOOKUP(I702,'EXPENSE DATABASE'!$B$41:$C$65,2,FALSE)","v":{"$error":"#N/A"}},100,{"$f":"VLOOKUP(J702,'EXPENSE DATABASE'!$B$69:$C$168,2,FALSE)","v":{"$error":"#N/A"}},101,{"$f":"VLOOKUP(K702,'EXPENSE DATABASE'!$B$6:$C$35,2,FALSE)","v":{"$error":"#N/A"}},31,{"$f":"VLOOKUP(L702,'EXPENSE DATABASE'!$B$173:$C$176,2,FALSE)","v":{"$error":"#N/A"}},100,0,0,{"$f":"IF(L702=T('EXPENSE DATABASE'!$E$173),O702,0)","v":0},{"$f":"IF(L702=T('EXPENSE DATABASE'!$E$174),O702,0)","v":0},{"$f":"IF(L702=T('EXPENSE DATABASE'!$E$175),O702,0)","v":0},0,689]
[{"$f":"IF(COUNTA(#REF!,#REF!,#REF!,#REF!,#REF!,#REF!,#REF!,#REF!,#REF!,#REF!,#REF!)>0,1,0)","v":1},{"$f":"IF((COUNTA(#REF!)=4),1,-1)*A703","v":-1},{"$nulls":12},{"v":0,"d":"$0.00"},{"v":0,"d":"$0.00"},{"v":0,"d":"$0.00"},0,{"$f":"IF(OR(K703='EXPENSE DATABASE'!$V$187,K703='EXPENSE DATABASE'!$V$188,K703='EXPENSE DATABASE'!$V$189,K703='EXPENSE DATABASE'!$V$190,K703='EXPENSE DATABASE'!$V$191,K703='EXPENSE DATABASE'!$V$192,K703='EXPENSE DATABASE'!$V$193,K703='EXPENSE DATABASE'!$V$194,K703='EXPENSE DATABASE'!$X$187,K703='EXPENSE DATABASE'!$X$188,K703='EXPENSE DATABASE'!$X$189,K703='EXPENSE DATABASE'!$X$190,K703='EXPENSE DATABASE'!$X$191,K703='EXPENSE DATABASE'!$X$192,K703='EXPENSE DATABASE'!$X$193,K703='EXPENSE DATABASE'!$X$194,K703='EXPENSE DATABASE'!$Z$187,K703='EXPENSE DATABASE'!$Z$188,K703='EXPENSE DATABASE'!$Z$189,K703='EXPENSE DATABASE'!$Z$190,K703='EXPENSE DATABASE'!$Z$191,K703='EXPENSE DATABASE'!$Z$192,K703='EXPENSE DATABASE'!$Z$193,K703='EXPENSE DATABASE'!$Z$194),O703,\"\")","v":""},{"$f":"IF(OR(K703='EXPENSE DATABASE'!$T$189,K703='EXPENSE DATABASE'!$T$190,K703='EXPENSE DATABASE'!$T$191),O703,\"\")","v":""},{"$f":"VLOOKUP(I703,'EXPENSE DATABASE'!$B$41:$C$65,2,FALSE)","v":{"$error":"#N/A"}},100,{"$f":"VLOOKUP(J703,'EXPENSE DATABASE'!$B$69:$C$168,2,FALSE)","v":{"$error":"#N/A"}},101,{"$f":"VLOOKUP(K703,'EXPENSE DATABASE'!$B$6:$C$35,2,FALSE)","v":{"$error":"#N/A"}},31,{"$f":"VLOOKUP(L703,'EXPENSE DATABASE'!$B$173:$C$176,2,FALSE)","v":{"$error":"#N/A"}},100,0,0,{"$f":"IF(L703=T('EXPENSE DATABASE'!$E$173),O703,0)","v":0},{"$f":"IF(L703=T('EXPENSE DATABASE'!$E$174),O703,0)","v":0},{"$f":"IF(L703=T('EXPENSE DATABASE'!$E$175),O703,0)","v":0},0,690]
[{"$f":"IF(COUNTA(#REF!,#REF!,#REF!,#REF!,#REF!,#REF!,#REF!,#REF!,#REF!,#REF!,#REF!)>0,1,0)","v":1},{"$f":"IF((COUNTA(#REF!)=4),1,-1)*A704","v":-1},{"$nulls":12},{"v":0,"d":"$0.00"},{"v":0,"d":"$0.00"},{"v":0,"d":"$0.00"},0,{"$f":"IF(OR(K704='EXPENSE DATABASE'!$V$187,K704='EXPENSE DATABASE'!$V$188,K704='EXPENSE DATABASE'!$V$189,K704='EXPENSE DATABASE'!$V$190,K704='EXPENSE DATABASE'!$V$191,K704='EXPENSE DATABASE'!$V$192,K704='EXPENSE DATABASE'!$V$193,K704='EXPENSE DATABASE'!$V$194,K704='EXPENSE DATABASE'!$X$187,K704='EXPENSE DATABASE'!$X$188,K704='EXPENSE DATABASE'!$X$189,K704='EXPENSE DATABASE'!$X$190,K704='EXPENSE DATABASE'!$X$191,K704='EXPENSE DATABASE'!$X$192,K704='EXPENSE DATABASE'!$X$193,K704='EXPENSE DATABASE'!$X$194,K704='EXPENSE DATABASE'!$Z$187,K704='EXPENSE DATABASE'!$Z$188,K704='EXPENSE DATABASE'!$Z$189,K704='EXPENSE DATABASE'!$Z$190,K704='EXPENSE DATABASE'!$Z$191,K704='EXPENSE DATABASE'!$Z$192,K704='EXPENSE DATABASE'!$Z$193,K704='EXPENSE DATABASE'!$Z$194),O704,\"\")","v":""},{"$f":"IF(OR(K704='EXPENSE DATABASE'!$T$189,K704='EXPENSE DATABASE'!$T$190,K704='EXPENSE DATABASE'!$T$191),O704,\"\")","v":""},{"$f":"VLOOKUP(I704,'EXPENSE DATABASE'!$B$41:$C$65,2,FALSE)","v":{"$error":"#N/A"}},100,{"$f":"VLOOKUP(J704,'EXPENSE DATABASE'!$B$69:$C$168,2,FALSE)","v":{"$error":"#N/A"}},101,{"$f":"VLOOKUP(K704,'EXPENSE DATABASE'!$B$6:$C$35,2,FALSE)","v":{"$error":"#N/A"}},31,{"$f":"VLOOKUP(L704,'EXPENSE DATABASE'!$B$173:$C$176,2,FALSE)","v":{"$error":"#N/A"}},100,0,0,{"$f":"IF(L704=T('EXPENSE DATABASE'!$E$173),O704,0)","v":0},{"$f":"IF(L704=T('EXPENSE DATABASE'!$E$174),O704,0)","v":0},{"$f":"IF(L704=T('EXPENSE DATABASE'!$E$175),O704,0)","v":0},0,691]
[{"$f":"IF(COUNTA(#REF!,#REF!,#REF!,#REF!,#REF!,#REF!,#REF!,#REF!,#REF!,#REF!,#REF!)>0,1,0)","v":1},{"$f":"IF((COUNTA(#REF!)=4),1,-1)*A705","v":-1},{"$nulls":12},{"v":0,"d":"$0.00"},{"v":0,"d":"$0.00"},{"v":0,"d":"$0.00"},0,{"$f":"IF(OR(K705='EXPENSE DATABASE'!$V$187,K705='EXPENSE DATABASE'!$V$188,K705='EXPENSE DATABASE'!$V$189,K705='EXPENSE DATABASE'!$V$190,K705='EXPENSE DATABASE'!$V$191,K705='EXPENSE DATABASE'!$V$192,K705='EXPENSE DATABASE'!$V$193,K705='EXPENSE DATABASE'!$V$194,K705='EXPENSE DATABASE'!$X$187,K705='EXPENSE DATABASE'!$X$188,K705='EXPENSE DATABASE'!$X$189,K705='EXPENSE DATABASE'!$X$190,K705='EXPENSE DATABASE'!$X$191,K705='EXPENSE DATABASE'!$X$192,K705='EXPENSE DATABASE'!$X$193,K705='EXPENSE DATABASE'!$X$194,K705='EXPENSE DATABASE'!$Z$187,K705='EXPENSE DATABASE'!$Z$188,K705='EXPENSE DATABASE'!$Z$189,K705='EXPENSE DATABASE'!$Z$190,K705='EXPENSE DATABASE'!$Z$191,K705='EXPENSE DATABASE'!$Z$192,K705='EXPENSE DATABASE'!$Z$193,K705='EXPENSE DATABASE'!$Z$194),O705,\"\")","v":""},{"$f":"IF(OR(K705='EXPENSE DATABASE'!$T$189,K705='EXPENSE DATABASE'!$T$190,K705='EXPENSE DATABASE'!$T$191),O705,\"\")","v":""},{"$f":"VLOOKUP(I705,'EXPENSE DATABASE'!$B$41:$C$65,2,FALSE)","v":{"$error":"#N/A"}},100,{"$f":"VLOOKUP(J705,'EXPENSE DATABASE'!$B$69:$C$168,2,FALSE)","v":{"$error":"#N/A"}},101,{"$f":"VLOOKUP(K705,'EXPENSE DATABASE'!$B$6:$C$35,2,FALSE)","v":{"$error":"#N/A"}},31,{"$f":"VLOOKUP(L705,'EXPENSE DATABASE'!$B$173:$C$176,2,FALSE)","v":{"$error":"#N/A"}},100,0,0,{"$f":"IF(L705=T('EXPENSE DATABASE'!$E$173),O705,0)","v":0},{"$f":"IF(L705=T('EXPENSE DATABASE'!$E$174),O705,0)","v":0},{"$f":"IF(L705=T('EXPENSE DATABASE'!$E$175),O705,0)","v":0},0,692]
[{"$f":"IF(COUNTA(#REF!,#REF!,#REF!,#REF!,#REF!,#REF!,#REF!,#REF!,#REF!,#REF!,#REF!)>0,1,0)","v":1},{"$f":"IF((COUNTA(#REF!)=4),1,-1)*A706","v":-1},{"$nulls":12},{"v":0,"d":"$0.00"},{"v":0,"d":"$0.00"},{"v":0,"d":"$0.00"},0,{"$f":"IF(OR(K706='EXPENSE DATABASE'!$V$187,K706='EXPENSE DATABASE'!$V$188,K706='EXPENSE DATABASE'!$V$189,K706='EXPENSE DATABASE'!$V$190,K706='EXPENSE DATABASE'!$V$191,K706='EXPENSE DATABASE'!$V$192,K706='EXPENSE DATABASE'!$V$193,K706='EXPENSE DATABASE'!$V$194,K706='EXPENSE DATABASE'!$X$187,K706='EXPENSE DATABASE'!$X$188,K706='EXPENSE DATABASE'!$X$189,K706='EXPENSE DATABASE'!$X$190,K706='EXPENSE DATABASE'!$X$191,K706='EXPENSE DATABASE'!$X$192,K706='EXPENSE DATABASE'!$X$193,K706='EXPENSE DATABASE'!$X$194,K706='EXPENSE DATABASE'!$Z$187,K706='EXPENSE DATABASE'!$Z$188,K706='EXPENSE DATABASE'!$Z$189,K706='EXPENSE DATABASE'!$Z$190,K706='EXPENSE DATABASE'!$Z$191,K706='EXPENSE DATABASE'!$Z$192,K706='EXPENSE DATABASE'!$Z$193,K706='EXPENSE DATABASE'!$Z$194),O706,\"\")","v":""},{"$f":"IF(OR(K706='EXPENSE DATABASE'!$T$189,K706='EXPENSE DATABASE'!$T$190,K706='EXPENSE DATABASE'!$T$191),O706,\"\")","v":""},{"$f":"VLOOKUP(I706,'EXPENSE DATABASE'!$B$41:$C$65,2,FALSE)","v":{"$error":"#N/A"}},100,{"$f":"VLOOKUP(J706,'EXPENSE DATABASE'!$B$69:$C$168,2,FALSE)","v":{"$error":"#N/A"}},101,{"$f":"VLOOKUP(K706,'EXPENSE DATABASE'!$B$6:$C$35,2,FALSE)","v":{"$error":"#N/A"}},31,{"$f":"VLOOKUP(L706,'EXPENSE DATABASE'!$B$173:$C$176,2,FALSE)","v":{"$error":"#N/A"}},100,0,0,{"$f":"IF(L706=T('EXPENSE DATABASE'!$E$173),O706,0)","v":0},{"$f":"IF(L706=T('EXPENSE DATABASE'!$E$174),O706,0)","v":0},{"$f":"IF(L706=T('EXPENSE DATABASE'!$E$175),O706,0)","v":0},0,693]
[{"$f":"IF(COUNTA(#REF!,#REF!,#REF!,#REF!,#REF!,#REF!,#REF!,#REF!,#REF!,#REF!,#REF!)>0,1,0)","v":1},{"$f":"IF((COUNTA(#REF!)=4),1,-1)*A707","v":-1},{"$nulls":12},{"v":0,"d":"$0.00"},{"v":0,"d":"$0.00"},{"v":0,"d":"$0.00"},0,{"$f":"IF(OR(K707='EXPENSE DATABASE'!$V$187,K707='EXPENSE DATABASE'!$V$188,K707='EXPENSE DATABASE'!$V$189,K707='EXPENSE DATABASE'!$V$190,K707='EXPENSE DATABASE'!$V$191,K707='EXPENSE DATABASE'!$V$192,K707='EXPENSE DATABASE'!$V$193,K707='EXPENSE DATABASE'!$V$194,K707='EXPENSE DATABASE'!$X$187,K707='EXPENSE DATABASE'!$X$188,K707='EXPENSE DATABASE'!$X$189,K707='EXPENSE DATABASE'!$X$190,K707='EXPENSE DATABASE'!$X$191,K707='EXPENSE DATABASE'!$X$192,K707='EXPENSE DATABASE'!$X$193,K707='EXPENSE DATABASE'!$X$194,K707='EXPENSE DATABASE'!$Z$187,K707='EXPENSE DATABASE'!$Z$188,K707='EXPENSE DATABASE'!$Z$189,K707='EXPENSE DATABASE'!$Z$190,K707='EXPENSE DATABASE'!$Z$191,K707='EXPENSE DATABASE'!$Z$192,K707='EXPENSE DATABASE'!$Z$193,K707='EXPENSE DATABASE'!$Z$194),O707,\"\")","v":""},{"$f":"IF(OR(K707='EXPENSE DATABASE'!$T$189,K707='EXPENSE DATABASE'!$T$190,K707='EXPENSE DATABASE'!$T$191),O707,\"\")","v":""},{"$f":"VLOOKUP(I707,'EXPENSE DATABASE'!$B$41:$C$65,2,FALSE)","v":{"$error":"#N/A"}},100,{"$f":"VLOOKUP(J707,'EXPENSE DATABASE'!$B$69:$C$168,2,FALSE)","v":{"$error":"#N/A"}},101,{"$f":"VLOOKUP(K707,'EXPENSE DATABASE'!$B$6:$C$35,2,FALSE)","v":{"$error":"#N/A"}},31,{"$f":"VLOOKUP(L707,'EXPENSE DATABASE'!$B$173:$C$176,2,FALSE)","v":{"$error":"#N/A"}},100,0,0,{"$f":"IF(L707=T('EXPENSE DATABASE'!$E$173),O707,0)","v":0},{"$f":"IF(L707=T('EXPENSE DATABASE'!$E$174),O707,0)","v":0},{"$f":"IF(L707=T('EXPENSE DATABASE'!$E$175),O707,0)","v":0},0,694]
[{"$f":"IF(COUNTA(#REF!,#REF!,#REF!,#REF!,#REF!,#REF!,#REF!,#REF!,#REF!,#REF!,#REF!)>0,1,0)","v":1},{"$f":"IF((COUNTA(#REF!)=4),1,-1)*A708","v":-1},{"$nulls":12},{"v":0,"d":"$0.00"},{"v":0,"d":"$0.00"},{"v":0,"d":"$0.00"},0,{"$f":"IF(OR(K708='EXPENSE DATABASE'!$V$187,K708='EXPENSE DATABASE'!$V$188,K708='EXPENSE DATABASE'!$V$189,K708='EXPENSE DATABASE'!$V$190,K708='EXPENSE DATABASE'!$V$191,K708='EXPENSE DATABASE'!$V$192,K708='EXPENSE DATABASE'!$V$193,K708='EXPENSE DATABASE'!$V$194,K708='EXPENSE DATABASE'!$X$187,K708='EXPENSE DATABASE'!$X$188,K708='EXPENSE DATABASE'!$X$189,K708='EXPENSE DATABASE'!$X$190,K708='EXPENSE DATABASE'!$X$191,K708='EXPENSE DATABASE'!$X$192,K708='EXPENSE DATABASE'!$X$193,K708='EXPENSE DATABASE'!$X$194,K708='EXPENSE DATABASE'!$Z$187,K708='EXPENSE DATABASE'!$Z$188,K708='EXPENSE DATABASE'!$Z$189,K708='EXPENSE DATABASE'!$Z$190,K708='EXPENSE DATABASE'!$Z$191,K708='EXPENSE DATABASE'!$Z$192,K708='EXPENSE DATABASE'!$Z$193,K708='EXPENSE DATABASE'!$Z$194),O708,\"\")","v":""},{"$f":"IF(OR(K708='EXPENSE DATABASE'!$T$189,K708='EXPENSE DATABASE'!$T$190,K708='EXPENSE DATABASE'!$T$191),O708,\"\")","v":""},{"$f":"VLOOKUP(I708,'EXPENSE DATABASE'!$B$41:$C$65,2,FALSE)","v":{"$error":"#N/A"}},100,{"$f":"VLOOKUP(J708,'EXPENSE DATABASE'!$B$69:$C$168,2,FALSE)","v":{"$error":"#N/A"}},101,{"$f":"VLOOKUP(K708,'EXPENSE DATABASE'!$B$6:$C$35,2,FALSE)","v":{"$error":"#N/A"}},31,{"$f":"VLOOKUP(L708,'EXPENSE DATABASE'!$B$173:$C$176,2,FALSE)","v":{"$error":"#N/A"}},100,0,0,{"$f":"IF(L708=T('EXPENSE DATABASE'!$E$173),O708,0)","v":0},{"$f":"IF(L708=T('EXPENSE DATABASE'!$E$174),O708,0)","v":0},{"$f":"IF(L708=T('EXPENSE DATABASE'!$E$175),O708,0)","v":0},0,695]
[{"$f":"IF(COUNTA(#REF!,#REF!,#REF!,#REF!,#REF!,#REF!,#REF!,#REF!,#REF!,#REF!,#REF!)>0,1,0)","v":1},{"$f":"IF((COUNTA(#REF!)=4),1,-1)*A709","v":-1},{"$nulls":12},{"v":0,"d":"$0.00"},{"v":0,"d":"$0.00"},{"v":0,"d":"$0.00"},0,{"$f":"IF(OR(K709='EXPENSE DATABASE'!$V$187,K709='EXPENSE DATABASE'!$V$188,K709='EXPENSE DATABASE'!$V$189,K709='EXPENSE DATABASE'!$V$190,K709='EXPENSE DATABASE'!$V$191,K709='EXPENSE DATABASE'!$V$192,K709='EXPENSE DATABASE'!$V$193,K709='EXPENSE DATABASE'!$V$194,K709='EXPENSE DATABASE'!$X$187,K709='EXPENSE DATABASE'!$X$188,K709='EXPENSE DATABASE'!$X$189,K709='EXPENSE DATABASE'!$X$190,K709='EXPENSE DATABASE'!$X$191,K709='EXPENSE DATABASE'!$X$192,K709='EXPENSE DATABASE'!$X$193,K709='EXPENSE DATABASE'!$X$194,K709='EXPENSE DATABASE'!$Z$187,K709='EXPENSE DATABASE'!$Z$188,K709='EXPENSE DATABASE'!$Z$189,K709='EXPENSE DATABASE'!$Z$190,K709='EXPENSE DATABASE'!$Z$191,K709='EXPENSE DATABASE'!$Z$192,K709='EXPENSE DATABASE'!$Z$193,K709='EXPENSE DATABASE'!$Z$194),O709,\"\")","v":""},{"$f":"IF(OR(K709='EXPENSE DATABASE'!$T$189,K709='EXPENSE DATABASE'!$T$190,K709='EXPENSE DATABASE'!$T$191),O709,\"\")","v":""},{"$f":"VLOOKUP(I709,'EXPENSE DATABASE'!$B$41:$C$65,2,FALSE)","v":{"$error":"#N/A"}},100,{"$f":"VLOOKUP(J709,'EXPENSE DATABASE'!$B$69:$C$168,2,FALSE)","v":{"$error":"#N/A"}},101,{"$f":"VLOOKUP(K709,'EXPENSE DATABASE'!$B$6:$C$35,2,FALSE)","v":{"$error":"#N/A"}},31,{"$f":"VLOOKUP(L709,'EXPENSE DATABASE'!$B$173:$C$176,2,FALSE)","v":{"$error":"#N/A"}},100,0,0,{"$f":"IF(L709=T('EXPENSE DATABASE'!$E$173),O709,0)","v":0},{"$f":"IF(L709=T('EXPENSE DATABASE'!$E$174),O709,0)","v":0},{"$f":"IF(L709=T('EXPENSE DATABASE'!$E$175),O709,0)","v":0},0,696]
[{"$f":"IF(COUNTA(#REF!,#REF!,#REF!,#REF!,#REF!,#REF!,#REF!,#REF!,#REF!,#REF!,#REF!)>0,1,0)","v":1},{"$f":"IF((COUNTA(#REF!)=4),1,-1)*A710","v":-1},{"$nulls":12},{"v":0,"d":"$0.00"},{"v":0,"d":"$0.00"},{"v":0,"d":"$0.00"},0,{"$f":"IF(OR(K710='EXPENSE DATABASE'!$V$187,K710='EXPENSE DATABASE'!$V$188,K710='EXPENSE DATABASE'!$V$189,K710='EXPENSE DATABASE'!$V$190,K710='EXPENSE DATABASE'!$V$191,K710='EXPENSE DATABASE'!$V$192,K710='EXPENSE DATABASE'!$V$193,K710='EXPENSE DATABASE'!$V$194,K710='EXPENSE DATABASE'!$X$187,K710='EXPENSE DATABASE'!$X$188,K710='EXPENSE DATABASE'!$X$189,K710='EXPENSE DATABASE'!$X$190,K710='EXPENSE DATABASE'!$X$191,K710='EXPENSE DATABASE'!$X$192,K710='EXPENSE DATABASE'!$X$193,K710='EXPENSE DATABASE'!$X$194,K710='EXPENSE DATABASE'!$Z$187,K710='EXPENSE DATABASE'!$Z$188,K710='EXPENSE DATABASE'!$Z$189,K710='EXPENSE DATABASE'!$Z$190,K710='EXPENSE DATABASE'!$Z$191,K710='EXPENSE DATABASE'!$Z$192,K710='EXPENSE DATABASE'!$Z$193,K710='EXPENSE DATABASE'!$Z$194),O710,\"\")","v":""},{"$f":"IF(OR(K710='EXPENSE DATABASE'!$T$189,K710='EXPENSE DATABASE'!$T$190,K710='EXPENSE DATABASE'!$T$191),O710,\"\")","v":""},{"$f":"VLOOKUP(I710,'EXPENSE DATABASE'!$B$41:$C$65,2,FALSE)","v":{"$error":"#N/A"}},100,{"$f":"VLOOKUP(J710,'EXPENSE DATABASE'!$B$69:$C$168,2,FALSE)","v":{"$error":"#N/A"}},101,{"$f":"VLOOKUP(K710,'EXPENSE DATABASE'!$B$6:$C$35,2,FALSE)","v":{"$error":"#N/A"}},31,{"$f":"VLOOKUP(L710,'EXPENSE DATABASE'!$B$173:$C$176,2,FALSE)","v":{"$error":"#N/A"}},100,0,0,{"$f":"IF(L710=T('EXPENSE DATABASE'!$E$173),O710,0)","v":0},{"$f":"IF(L710=T('EXPENSE DATABASE'!$E$174),O710,0)","v":0},{"$f":"IF(L710=T('EXPENSE DATABASE'!$E$175),O710,0)","v":0},0,697]
[{"$f":"IF(COUNTA(#REF!,#REF!,#REF!,#REF!,#REF!,#REF!,#REF!,#REF!,#REF!,#REF!,#REF!)>0,1,0)","v":1},{"$f":"IF((COUNTA(#REF!)=4),1,-1)*A711","v":-1},{"$nulls":12},{"v":0,"d":"$0.00"},{"v":0,"d":"$0.00"},{"v":0,"d":"$0.00"},0,{"$f":"IF(OR(K711='EXPENSE DATABASE'!$V$187,K711='EXPENSE DATABASE'!$V$188,K711='EXPENSE DATABASE'!$V$189,K711='EXPENSE DATABASE'!$V$190,K711='EXPENSE DATABASE'!$V$191,K711='EXPENSE DATABASE'!$V$192,K711='EXPENSE DATABASE'!$V$193,K711='EXPENSE DATABASE'!$V$194,K711='EXPENSE DATABASE'!$X$187,K711='EXPENSE DATABASE'!$X$188,K711='EXPENSE DATABASE'!$X$189,K711='EXPENSE DATABASE'!$X$190,K711='EXPENSE DATABASE'!$X$191,K711='EXPENSE DATABASE'!$X$192,K711='EXPENSE DATABASE'!$X$193,K711='EXPENSE DATABASE'!$X$194,K711='EXPENSE DATABASE'!$Z$187,K711='EXPENSE DATABASE'!$Z$188,K711='EXPENSE DATABASE'!$Z$189,K711='EXPENSE DATABASE'!$Z$190,K711='EXPENSE DATABASE'!$Z$191,K711='EXPENSE DATABASE'!$Z$192,K711='EXPENSE DATABASE'!$Z$193,K711='EXPENSE DATABASE'!$Z$194),O711,\"\")","v":""},{"$f":"IF(OR(K711='EXPENSE DATABASE'!$T$189,K711='EXPENSE DATABASE'!$T$190,K711='EXPENSE DATABASE'!$T$191),O711,\"\")","v":""},{"$f":"VLOOKUP(I711,'EXPENSE DATABASE'!$B$41:$C$65,2,FALSE)","v":{"$error":"#N/A"}},100,{"$f":"VLOOKUP(J711,'EXPENSE DATABASE'!$B$69:$C$168,2,FALSE)","v":{"$error":"#N/A"}},101,{"$f":"VLOOKUP(K711,'EXPENSE DATABASE'!$B$6:$C$35,2,FALSE)","v":{"$error":"#N/A"}},31,{"$f":"VLOOKUP(L711,'EXPENSE DATABASE'!$B$173:$C$176,2,FALSE)","v":{"$error":"#N/A"}},100,0,0,{"$f":"IF(L711=T('EXPENSE DATABASE'!$E$173),O711,0)","v":0},{"$f":"IF(L711=T('EXPENSE DATABASE'!$E$174),O711,0)","v":0},{"$f":"IF(L711=T('EXPENSE DATABASE'!$E$175),O711,0)","v":0},0,698]
[{"$f":"IF(COUNTA(#REF!,#REF!,#REF!,#REF!,#REF!,#REF!,#REF!,#REF!,#REF!,#REF!,#REF!)>0,1,0)","v":1},{"$f":"IF((COUNTA(#REF!)=4),1,-1)*A712","v":-1},{"$nulls":12},{"v":0,"d":"$0.00"},{"v":0,"d":"$0.00"},{"v":0,"d":"$0.00"},0,{"$f":"IF(OR(K712='EXPENSE DATABASE'!$V$187,K712='EXPENSE DATABASE'!$V$188,K712='EXPENSE DATABASE'!$V$189,K712='EXPENSE DATABASE'!$V$190,K712='EXPENSE DATABASE'!$V$191,K712='EXPENSE DATABASE'!$V$192,K712='EXPENSE DATABASE'!$V$193,K712='EXPENSE DATABASE'!$V$194,K712='EXPENSE DATABASE'!$X$187,K712='EXPENSE DATABASE'!$X$188,K712='EXPENSE DATABASE'!$X$189,K712='EXPENSE DATABASE'!$X$190,K712='EXPENSE DATABASE'!$X$191,K712='EXPENSE DATABASE'!$X$192,K712='EXPENSE DATABASE'!$X$193,K712='EXPENSE DATABASE'!$X$194,K712='EXPENSE DATABASE'!$Z$187,K712='EXPENSE DATABASE'!$Z$188,K712='EXPENSE DATABASE'!$Z$189,K712='EXPENSE DATABASE'!$Z$190,K712='EXPENSE DATABASE'!$Z$191,K712='EXPENSE DATABASE'!$Z$192,K712='EXPENSE DATABASE'!$Z$193,K712='EXPENSE DATABASE'!$Z$194),O712,\"\")","v":""},{"$f":"IF(OR(K712='EXPENSE DATABASE'!$T$189,K712='EXPENSE DATABASE'!$T$190,K712='EXPENSE DATABASE'!$T$191),O712,\"\")","v":""},{"$f":"VLOOKUP(I712,'EXPENSE DATABASE'!$B$41:$C$65,2,FALSE)","v":{"$error":"#N/A"}},100,{"$f":"VLOOKUP(J712,'EXPENSE DATABASE'!$B$69:$C$168,2,FALSE)","v":{"$error":"#N/A"}},101,{"$f":"VLOOKUP(K712,'EXPENSE DATABASE'!$B$6:$C$35,2,FALSE)","v":{"$error":"#N/A"}},31,{"$f":"VLOOKUP(L712,'EXPENSE DATABASE'!$B$173:$C$176,2,FALSE)","v":{"$error":"#N/A"}},100,0,0,{"$f":"IF(L712=T('EXPENSE DATABASE'!$E$173),O712,0)","v":0},{"$f":"IF(L712=T('EXPENSE DATABASE'!$E$174),O712,0)","v":0},{"$f":"IF(L712=T('EXPENSE DATABASE'!$E$175),O712,0)","v":0},0,699]
[{"$f":"IF(COUNTA(#REF!,#REF!,#REF!,#REF!,#REF!,#REF!,#REF!,#REF!,#REF!,#REF!,#REF!)>0,1,0)","v":1},{"$f":"IF((COUNTA(#REF!)=4),1,-1)*A713","v":-1},{"$nulls":12},{"v":0,"d":"$0.00"},{"v":0,"d":"$0.00"},{"v":0,"d":"$0.00"},0,{"$f":"IF(OR(K713='EXPENSE DATABASE'!$V$187,K713='EXPENSE DATABASE'!$V$188,K713='EXPENSE DATABASE'!$V$189,K713='EXPENSE DATABASE'!$V$190,K713='EXPENSE DATABASE'!$V$191,K713='EXPENSE DATABASE'!$V$192,K713='EXPENSE DATABASE'!$V$193,K713='EXPENSE DATABASE'!$V$194,K713='EXPENSE DATABASE'!$X$187,K713='EXPENSE DATABASE'!$X$188,K713='EXPENSE DATABASE'!$X$189,K713='EXPENSE DATABASE'!$X$190,K713='EXPENSE DATABASE'!$X$191,K713='EXPENSE DATABASE'!$X$192,K713='EXPENSE DATABASE'!$X$193,K713='EXPENSE DATABASE'!$X$194,K713='EXPENSE DATABASE'!$Z$187,K713='EXPENSE DATABASE'!$Z$188,K713='EXPENSE DATABASE'!$Z$189,K713='EXPENSE DATABASE'!$Z$190,K713='EXPENSE DATABASE'!$Z$191,K713='EXPENSE DATABASE'!$Z$192,K713='EXPENSE DATABASE'!$Z$193,K713='EXPENSE DATABASE'!$Z$194),O713,\"\")","v":""},{"$f":"IF(OR(K713='EXPENSE DATABASE'!$T$189,K713='EXPENSE DATABASE'!$T$190,K713='EXPENSE DATABASE'!$T$191),O713,\"\")","v":""},{"$f":"VLOOKUP(I713,'EXPENSE DATABASE'!$B$41:$C$65,2,FALSE)","v":{"$error":"#N/A"}},100,{"$f":"VLOOKUP(J713,'EXPENSE DATABASE'!$B$69:$C$168,2,FALSE)","v":{"$error":"#N/A"}},101,{"$f":"VLOOKUP(K713,'EXPENSE DATABASE'!$B$6:$C$35,2,FALSE)","v":{"$error":"#N/A"}},31,{"$f":"VLOOKUP(L713,'EXPENSE DATABASE'!$B$173:$C$176,2,FALSE)","v":{"$error":"#N/A"}},100,0,0,{"$f":"IF(L713=T('EXPENSE DATABASE'!$E$173),O713,0)","v":0},{"$f":"IF(L713=T('EXPENSE DATABASE'!$E$174),O713,0)","v":0},{"$f":"IF(L713=T('EXPENSE DATABASE'!$E$175),O713,0)","v":0},0,700]
[{"$f":"IF(COUNTA(#REF!,#REF!,#REF!,#REF!,#REF!,#REF!,#REF!,#REF!,#REF!,#REF!,#REF!)>0,1,0)","v":1},{"$f":"IF((COUNTA(#REF!)=4),1,-1)*A714","v":-1},{"$nulls":12},{"v":0,"d":"$0.00"},{"v":0,"d":"$0.00"},{"v":0,"d":"$0.00"},0,{"$f":"IF(OR(K714='EXPENSE DATABASE'!$V$187,K714='EXPENSE DATABASE'!$V$188,K714='EXPENSE DATABASE'!$V$189,K714='EXPENSE DATABASE'!$V$190,K714='EXPENSE DATABASE'!$V$191,K714='EXPENSE DATABASE'!$V$192,K714='EXPENSE DATABASE'!$V$193,K714='EXPENSE DATABASE'!$V$194,K714='EXPENSE DATABASE'!$X$187,K714='EXPENSE DATABASE'!$X$188,K714='EXPENSE DATABASE'!$X$189,K714='EXPENSE DATABASE'!$X$190,K714='EXPENSE DATABASE'!$X$191,K714='EXPENSE DATABASE'!$X$192,K714='EXPENSE DATABASE'!$X$193,K714='EXPENSE DATABASE'!$X$194,K714='EXPENSE DATABASE'!$Z$187,K714='EXPENSE DATABASE'!$Z$188,K714='EXPENSE DATABASE'!$Z$189,K714='EXPENSE DATABASE'!$Z$190,K714='EXPENSE DATABASE'!$Z$191,K714='EXPENSE DATABASE'!$Z$192,K714='EXPENSE DATABASE'!$Z$193,K714='EXPENSE DATABASE'!$Z$194),O714,\"\")","v":""},{"$f":"IF(OR(K714='EXPENSE DATABASE'!$T$189,K714='EXPENSE DATABASE'!$T$190,K714='EXPENSE DATABASE'!$T$191),O714,\"\")","v":""},{"$f":"VLOOKUP(I714,'EXPENSE DATABASE'!$B$41:$C$65,2,FALSE)","v":{"$error":"#N/A"}},100,{"$f":"VLOOKUP(J714,'EXPENSE DATABASE'!$B$69:$C$168,2,FALSE)","v":{"$error":"#N/A"}},101,{"$f":"VLOOKUP(K714,'EXPENSE DATABASE'!$B$6:$C$35,2,FALSE)","v":{"$error":"#N/A"}},31,{"$f":"VLOOKUP(L714,'EXPENSE DATABASE'!$B$173:$C$176,2,FALSE)","v":{"$error":"#N/A"}},100,0,0,{"$f":"IF(L714=T('EXPENSE DATABASE'!$E$173),O714,0)","v":0},{"$f":"IF(L714=T('EXPENSE DATABASE'!$E$174),O714,0)","v":0},{"$f":"IF(L714=T('EXPENSE DATABASE'!$E$175),O714,0)","v":0},0,701]
[{"$f":"IF(COUNTA(#REF!,#REF!,#REF!,#REF!,#REF!,#REF!,#REF!,#REF!,#REF!,#REF!,#REF!)>0,1,0)","v":1},{"$f":"IF((COUNTA(#REF!)=4),1,-1)*A715","v":-1},{"$nulls":12},{"v":0,"d":"$0.00"},{"v":0,"d":"$0.00"},{"v":0,"d":"$0.00"},0,{"$f":"IF(OR(K715='EXPENSE DATABASE'!$V$187,K715='EXPENSE DATABASE'!$V$188,K715='EXPENSE DATABASE'!$V$189,K715='EXPENSE DATABASE'!$V$190,K715='EXPENSE DATABASE'!$V$191,K715='EXPENSE DATABASE'!$V$192,K715='EXPENSE DATABASE'!$V$193,K715='EXPENSE DATABASE'!$V$194,K715='EXPENSE DATABASE'!$X$187,K715='EXPENSE DATABASE'!$X$188,K715='EXPENSE DATABASE'!$X$189,K715='EXPENSE DATABASE'!$X$190,K715='EXPENSE DATABASE'!$X$191,K715='EXPENSE DATABASE'!$X$192,K715='EXPENSE DATABASE'!$X$193,K715='EXPENSE DATABASE'!$X$194,K715='EXPENSE DATABASE'!$Z$187,K715='EXPENSE DATABASE'!$Z$188,K715='EXPENSE DATABASE'!$Z$189,K715='EXPENSE DATABASE'!$Z$190,K715='EXPENSE DATABASE'!$Z$191,K715='EXPENSE DATABASE'!$Z$192,K715='EXPENSE DATABASE'!$Z$193,K715='EXPENSE DATABASE'!$Z$194),O715,\"\")","v":""},{"$f":"IF(OR(K715='EXPENSE DATABASE'!$T$189,K715='EXPENSE DATABASE'!$T$190,K715='EXPENSE DATABASE'!$T$191),O715,\"\")","v":""},{"$f":"VLOOKUP(I715,'EXPENSE DATABASE'!$B$41:$C$65,2,FALSE)","v":{"$error":"#N/A"}},100,{"$f":"VLOOKUP(J715,'EXPENSE DATABASE'!$B$69:$C$168,2,FALSE)","v":{"$error":"#N/A"}},101,{"$f":"VLOOKUP(K715,'EXPENSE DATABASE'!$B$6:$C$35,2,FALSE)","v":{"$error":"#N/A"}},31,{"$f":"VLOOKUP(L715,'EXPENSE DATABASE'!$B$173:$C$176,2,FALSE)","v":{"$error":"#N/A"}},100,0,0,{"$f":"IF(L715=T('EXPENSE DATABASE'!$E$173),O715,0)","v":0},{"$f":"IF(L715=T('EXPENSE DATABASE'!$E$174),O715,0)","v":0},{"$f":"IF(L715=T('EXPENSE DATABASE'!$E$175),O715,0)","v":0},0,702]
[{"$f":"IF(COUNTA(#REF!,#REF!,#REF!,#REF!,#REF!,#REF!,#REF!,#REF!,#REF!,#REF!,#REF!)>0,1,0)","v":1},{"$f":"IF((COUNTA(#REF!)=4),1,-1)*A716","v":-1},{"$nulls":12},{"v":0,"d":"$0.00"},{"v":0,"d":"$0.00"},{"v":0,"d":"$0.00"},0,{"$f":"IF(OR(K716='EXPENSE DATABASE'!$V$187,K716='EXPENSE DATABASE'!$V$188,K716='EXPENSE DATABASE'!$V$189,K716='EXPENSE DATABASE'!$V$190,K716='EXPENSE DATABASE'!$V$191,K716='EXPENSE DATABASE'!$V$192,K716='EXPENSE DATABASE'!$V$193,K716='EXPENSE DATABASE'!$V$194,K716='EXPENSE DATABASE'!$X$187,K716='EXPENSE DATABASE'!$X$188,K716='EXPENSE DATABASE'!$X$189,K716='EXPENSE DATABASE'!$X$190,K716='EXPENSE DATABASE'!$X$191,K716='EXPENSE DATABASE'!$X$192,K716='EXPENSE DATABASE'!$X$193,K716='EXPENSE DATABASE'!$X$194,K716='EXPENSE DATABASE'!$Z$187,K716='EXPENSE DATABASE'!$Z$188,K716='EXPENSE DATABASE'!$Z$189,K716='EXPENSE DATABASE'!$Z$190,K716='EXPENSE DATABASE'!$Z$191,K716='EXPENSE DATABASE'!$Z$192,K716='EXPENSE DATABASE'!$Z$193,K716='EXPENSE DATABASE'!$Z$194),O716,\"\")","v":""},{"$f":"IF(OR(K716='EXPENSE DATABASE'!$T$189,K716='EXPENSE DATABASE'!$T$190,K716='EXPENSE DATABASE'!$T$191),O716,\"\")","v":""},{"$f":"VLOOKUP(I716,'EXPENSE DATABASE'!$B$41:$C$65,2,FALSE)","v":{"$error":"#N/A"}},100,{"$f":"VLOOKUP(J716,'EXPENSE DATABASE'!$B$69:$C$168,2,FALSE)","v":{"$error":"#N/A"}},101,{"$f":"VLOOKUP(K716,'EXPENSE DATABASE'!$B$6:$C$35,2,FALSE)","v":{"$error":"#N/A"}},31,{"$f":"VLOOKUP(L716,'EXPENSE DATABASE'!$B$173:$C$176,2,FALSE)","v":{"$error":"#N/A"}},100,0,0,{"$f":"IF(L716=T('EXPENSE DATABASE'!$E$173),O716,0)","v":0},{"$f":"IF(L716=T('EXPENSE DATABASE'!$E$174),O716,0)","v":0},{"$f":"IF(L716=T('EXPENSE DATABASE'!$E$175),O716,0)","v":0},0,703]
[{"$f":"IF(COUNTA(#REF!,#REF!,#REF!,#REF!,#REF!,#REF!,#REF!,#REF!,#REF!,#REF!,#REF!)>0,1,0)","v":1},{"$f":"IF((COUNTA(#REF!)=4),1,-1)*A717","v":-1},{"$nulls":12},{"v":0,"d":"$0.00"},{"v":0,"d":"$0.00"},{"v":0,"d":"$0.00"},0,{"$f":"IF(OR(K717='EXPENSE DATABASE'!$V$187,K717='EXPENSE DATABASE'!$V$188,K717='EXPENSE DATABASE'!$V$189,K717='EXPENSE DATABASE'!$V$190,K717='EXPENSE DATABASE'!$V$191,K717='EXPENSE DATABASE'!$V$192,K717='EXPENSE DATABASE'!$V$193,K717='EXPENSE DATABASE'!$V$194,K717='EXPENSE DATABASE'!$X$187,K717='EXPENSE DATABASE'!$X$188,K717='EXPENSE DATABASE'!$X$189,K717='EXPENSE DATABASE'!$X$190,K717='EXPENSE DATABASE'!$X$191,K717='EXPENSE DATABASE'!$X$192,K717='EXPENSE DATABASE'!$X$193,K717='EXPENSE DATABASE'!$X$194,K717='EXPENSE DATABASE'!$Z$187,K717='EXPENSE DATABASE'!$Z$188,K717='EXPENSE DATABASE'!$Z$189,K717='EXPENSE DATABASE'!$Z$190,K717='EXPENSE DATABASE'!$Z$191,K717='EXPENSE DATABASE'!$Z$192,K717='EXPENSE DATABASE'!$Z$193,K717='EXPENSE DATABASE'!$Z$194),O717,\"\")","v":""},{"$f":"IF(OR(K717='EXPENSE DATABASE'!$T$189,K717='EXPENSE DATABASE'!$T$190,K717='EXPENSE DATABASE'!$T$191),O717,\"\")","v":""},{"$f":"VLOOKUP(I717,'EXPENSE DATABASE'!$B$41:$C$65,2,FALSE)","v":{"$error":"#N/A"}},100,{"$f":"VLOOKUP(J717,'EXPENSE DATABASE'!$B$69:$C$168,2,FALSE)","v":{"$error":"#N/A"}},101,{"$f":"VLOOKUP(K717,'EXPENSE DATABASE'!$B$6:$C$35,2,FALSE)","v":{"$error":"#N/A"}},31,{"$f":"VLOOKUP(L717,'EXPENSE DATABASE'!$B$173:$C$176,2,FALSE)","v":{"$error":"#N/A"}},100,0,0,{"$f":"IF(L717=T('EXPENSE DATABASE'!$E$173),O717,0)","v":0},{"$f":"IF(L717=T('EXPENSE DATABASE'!$E$174),O717,0)","v":0},{"$f":"IF(L717=T('EXPENSE DATABASE'!$E$175),O717,0)","v":0},0,704]
[{"$f":"IF(COUNTA(#REF!,#REF!,#REF!,#REF!,#REF!,#REF!,#REF!,#REF!,#REF!,#REF!,#REF!)>0,1,0)","v":1},{"$f":"IF((COUNTA(#REF!)=4),1,-1)*A718","v":-1},{"$nulls":12},{"$f":"M718*N718","v":{"v":0,"d":"$0.00"}},{"$f":"IF(OR(D718=\"No\",D718=\"\"),O718,0)","v":{"v":0,"d":"$0.00"}},{"$f":"IF(D718=\"Yes\",O718,0)","v":{"v":0,"d":"$0.00"}},{"$f":"IF(O718>0,1,0)","v":0},{"$f":"IF(OR(K718='EXPENSE DATABASE'!$V$187,K718='EXPENSE DATABASE'!$V$188,K718='EXPENSE DATABASE'!$V$189,K718='EXPENSE DATABASE'!$V$190,K718='EXPENSE DATABASE'!$V$191,K718='EXPENSE DATABASE'!$V$192,K718='EXPENSE DATABASE'!$V$193,K718='EXPENSE DATABASE'!$V$194,K718='EXPENSE DATABASE'!$X$187,K718='EXPENSE DATABASE'!$X$188,K718='EXPENSE DATABASE'!$X$189,K718='EXPENSE DATABASE'!$X$190,K718='EXPENSE DATABASE'!$X$191,K718='EXPENSE DATABASE'!$X$192,K718='EXPENSE DATABASE'!$X$193,K718='EXPENSE DATABASE'!$X$194,K718='EXPENSE DATABASE'!$Z$187,K718='EXPENSE DATABASE'!$Z$188,K718='EXPENSE DATABASE'!$Z$189,K718='EXPENSE DATABASE'!$Z$190,K718='EXPENSE DATABASE'!$Z$191,K718='EXPENSE DATABASE'!$Z$192,K718='EXPENSE DATABASE'!$Z$193,K718='EXPENSE DATABASE'!$Z$194),O718,\"\")","v":""},{"$f":"IF(OR(K718='EXPENSE DATABASE'!$T$189,K718='EXPENSE DATABASE'!$T$190,K718='EXPENSE DATABASE'!$T$191),O718,\"\")","v":""},{"$f":"VLOOKUP(I718,'EXPENSE DATABASE'!$B$41:$C$65,2,FALSE)","v":{"$error":"#N/A"}},{"$f":"IFERROR(U718,100)","v":100},{"$f":"VLOOKUP(J718,'EXPENSE DATABASE'!$B$69:$C$168,2,FALSE)","v":{"$error":"#N/A"}},{"$f":"IFERROR(W718,101)","v":101},{"$f":"VLOOKUP(K718,'EXPENSE DATABASE'!$B$6:$C$35,2,FALSE)","v":{"$error":"#N/A"}},{"$f":"IFERROR(Y718,31)","v":31},{"$f":"VLOOKUP(L718,'EXPENSE DATABASE'!$B$173:$C$176,2,FALSE)","v":{"$error":"#N/A"}},{"$f":"IFERROR(AA718,100)","v":100},{"$f":"IF(K718=0,0,1)","v":0},{"$f":"IF(J718=0,0,1)","v":0},{"$f":"IF(L718=T('EXPENSE DATABASE'!$E$173),O718,0)","v":0},{"$f":"IF(L718=T('EXPENSE DATABASE'!$E$174),O718,0)","v":0},{"$f":"IF(L718=T('EXPENSE DATABASE'!$E$175),O718,0)","v":0},{"$f":"IF(OR(N718=0,E718=0),0,MONTH(E718))","v":0},705]
[{"$f":"IF(COUNTA(#REF!,#REF!,#REF!,#REF!,#REF!,#REF!,#REF!,#REF!,#REF!,#REF!,#REF!)>0,1,0)","v":1},{"$f":"IF((COUNTA(#REF!)=4),1,-1)*A719","v":-1},{"$nulls":12},{"v":0,"d":"$0.00"},{"v":0,"d":"$0.00"},{"v":0,"d":"$0.00"},0,{"$f":"IF(OR(K719='EXPENSE DATABASE'!$V$187,K719='EXPENSE DATABASE'!$V$188,K719='EXPENSE DATABASE'!$V$189,K719='EXPENSE DATABASE'!$V$190,K719='EXPENSE DATABASE'!$V$191,K719='EXPENSE DATABASE'!$V$192,K719='EXPENSE DATABASE'!$V$193,K719='EXPENSE DATABASE'!$V$194,K719='EXPENSE DATABASE'!$X$187,K719='EXPENSE DATABASE'!$X$188,K719='EXPENSE DATABASE'!$X$189,K719='EXPENSE DATABASE'!$X$190,K719='EXPENSE DATABASE'!$X$191,K719='EXPENSE DATABASE'!$X$192,K719='EXPENSE DATABASE'!$X$193,K719='EXPENSE DATABASE'!$X$194,K719='EXPENSE DATABASE'!$Z$187,K719='EXPENSE DATABASE'!$Z$188,K719='EXPENSE DATABASE'!$Z$189,K719='EXPENSE DATABASE'!$Z$190,K719='EXPENSE DATABASE'!$Z$191,K719='EXPENSE DATABASE'!$Z$192,K719='EXPENSE DATABASE'!$Z$193,K719='EXPENSE DATABASE'!$Z$194),O719,\"\")","v":""},{"$f":"IF(OR(K719='EXPENSE DATABASE'!$T$189,K719='EXPENSE DATABASE'!$T$190,K719='EXPENSE DATABASE'!$T$191),O719,\"\")","v":""},{"$f":"VLOOKUP(I719,'EXPENSE DATABASE'!$B$41:$C$65,2,FALSE)","v":{"$error":"#N/A"}},100,{"$f":"VLOOKUP(J719,'EXPENSE DATABASE'!$B$69:$C$168,2,FALSE)","v":{"$error":"#N/A"}},101,{"$f":"VLOOKUP(K719,'EXPENSE DATABASE'!$B$6:$C$35,2,FALSE)","v":{"$error":"#N/A"}},31,{"$f":"VLOOKUP(L719,'EXPENSE DATABASE'!$B$173:$C$176,2,FALSE)","v":{"$error":"#N/A"}},100,0,0,{"$f":"IF(L719=T('EXPENSE DATABASE'!$E$173),O719,0)","v":0},{"$f":"IF(L719=T('EXPENSE DATABASE'!$E$174),O719,0)","v":0},{"$f":"IF(L719=T('EXPENSE DATABASE'!$E$175),O719,0)","v":0},0,706]
[{"$f":"IF(COUNTA(#REF!,#REF!,#REF!,#REF!,#REF!,#REF!,#REF!,#REF!,#REF!,#REF!,#REF!)>0,1,0)","v":1},{"$f":"IF((COUNTA(#REF!)=4),1,-1)*A720","v":-1},{"$nulls":12},{"v":0,"d":"$0.00"},{"v":0,"d":"$0.00"},{"v":0,"d":"$0.00"},0,{"$f":"IF(OR(K720='EXPENSE DATABASE'!$V$187,K720='EXPENSE DATABASE'!$V$188,K720='EXPENSE DATABASE'!$V$189,K720='EXPENSE DATABASE'!$V$190,K720='EXPENSE DATABASE'!$V$191,K720='EXPENSE DATABASE'!$V$192,K720='EXPENSE DATABASE'!$V$193,K720='EXPENSE DATABASE'!$V$194,K720='EXPENSE DATABASE'!$X$187,K720='EXPENSE DATABASE'!$X$188,K720='EXPENSE DATABASE'!$X$189,K720='EXPENSE DATABASE'!$X$190,K720='EXPENSE DATABASE'!$X$191,K720='EXPENSE DATABASE'!$X$192,K720='EXPENSE DATABASE'!$X$193,K720='EXPENSE DATABASE'!$X$194,K720='EXPENSE DATABASE'!$Z$187,K720='EXPENSE DATABASE'!$Z$188,K720='EXPENSE DATABASE'!$Z$189,K720='EXPENSE DATABASE'!$Z$190,K720='EXPENSE DATABASE'!$Z$191,K720='EXPENSE DATABASE'!$Z$192,K720='EXPENSE DATABASE'!$Z$193,K720='EXPENSE DATABASE'!$Z$194),O720,\"\")","v":""},{"$f":"IF(OR(K720='EXPENSE DATABASE'!$T$189,K720='EXPENSE DATABASE'!$T$190,K720='EXPENSE DATABASE'!$T$191),O720,\"\")","v":""},{"$f":"VLOOKUP(I720,'EXPENSE DATABASE'!$B$41:$C$65,2,FALSE)","v":{"$error":"#N/A"}},100,{"$f":"VLOOKUP(J720,'EXPENSE DATABASE'!$B$69:$C$168,2,FALSE)","v":{"$error":"#N/A"}},101,{"$f":"VLOOKUP(K720,'EXPENSE DATABASE'!$B$6:$C$35,2,FALSE)","v":{"$error":"#N/A"}},31,{"$f":"VLOOKUP(L720,'EXPENSE DATABASE'!$B$173:$C$176,2,FALSE)","v":{"$error":"#N/A"}},100,0,0,{"$f":"IF(L720=T('EXPENSE DATABASE'!$E$173),O720,0)","v":0},{"$f":"IF(L720=T('EXPENSE DATABASE'!$E$174),O720,0)","v":0},{"$f":"IF(L720=T('EXPENSE DATABASE'!$E$175),O720,0)","v":0},0,707]
[{"$f":"IF(COUNTA(#REF!,#REF!,#REF!,#REF!,#REF!,#REF!,#REF!,#REF!,#REF!,#REF!,#REF!)>0,1,0)","v":1},{"$f":"IF((COUNTA(#REF!)=4),1,-1)*A721","v":-1},{"$nulls":12},{"v":0,"d":"$0.00"},{"v":0,"d":"$0.00"},{"v":0,"d":"$0.00"},0,{"$f":"IF(OR(K721='EXPENSE DATABASE'!$V$187,K721='EXPENSE DATABASE'!$V$188,K721='EXPENSE DATABASE'!$V$189,K721='EXPENSE DATABASE'!$V$190,K721='EXPENSE DATABASE'!$V$191,K721='EXPENSE DATABASE'!$V$192,K721='EXPENSE DATABASE'!$V$193,K721='EXPENSE DATABASE'!$V$194,K721='EXPENSE DATABASE'!$X$187,K721='EXPENSE DATABASE'!$X$188,K721='EXPENSE DATABASE'!$X$189,K721='EXPENSE DATABASE'!$X$190,K721='EXPENSE DATABASE'!$X$191,K721='EXPENSE DATABASE'!$X$192,K721='EXPENSE DATABASE'!$X$193,K721='EXPENSE DATABASE'!$X$194,K721='EXPENSE DATABASE'!$Z$187,K721='EXPENSE DATABASE'!$Z$188,K721='EXPENSE DATABASE'!$Z$189,K721='EXPENSE DATABASE'!$Z$190,K721='EXPENSE DATABASE'!$Z$191,K721='EXPENSE DATABASE'!$Z$192,K721='EXPENSE DATABASE'!$Z$193,K721='EXPENSE DATABASE'!$Z$194),O721,\"\")","v":""},{"$f":"IF(OR(K721='EXPENSE DATABASE'!$T$189,K721='EXPENSE DATABASE'!$T$190,K721='EXPENSE DATABASE'!$T$191),O721,\"\")","v":""},{"$f":"VLOOKUP(I721,'EXPENSE DATABASE'!$B$41:$C$65,2,FALSE)","v":{"$error":"#N/A"}},100,{"$f":"VLOOKUP(J721,'EXPENSE DATABASE'!$B$69:$C$168,2,FALSE)","v":{"$error":"#N/A"}},101,{"$f":"VLOOKUP(K721,'EXPENSE DATABASE'!$B$6:$C$35,2,FALSE)","v":{"$error":"#N/A"}},31,{"$f":"VLOOKUP(L721,'EXPENSE DATABASE'!$B$173:$C$176,2,FALSE)","v":{"$error":"#N/A"}},100,0,0,{"$f":"IF(L721=T('EXPENSE DATABASE'!$E$173),O721,0)","v":0},{"$f":"IF(L721=T('EXPENSE DATABASE'!$E$174),O721,0)","v":0},{"$f":"IF(L721=T('EXPENSE DATABASE'!$E$175),O721,0)","v":0},0,708]
[{"$f":"IF(COUNTA(#REF!,#REF!,#REF!,#REF!,#REF!,#REF!,#REF!,#REF!,#REF!,#REF!,#REF!)>0,1,0)","v":1},{"$f":"IF((COUNTA(#REF!)=4),1,-1)*A722","v":-1},{"$nulls":12},{"v":0,"d":"$0.00"},{"v":0,"d":"$0.00"},{"v":0,"d":"$0.00"},0,{"$f":"IF(OR(K722='EXPENSE DATABASE'!$V$187,K722='EXPENSE DATABASE'!$V$188,K722='EXPENSE DATABASE'!$V$189,K722='EXPENSE DATABASE'!$V$190,K722='EXPENSE DATABASE'!$V$191,K722='EXPENSE DATABASE'!$V$192,K722='EXPENSE DATABASE'!$V$193,K722='EXPENSE DATABASE'!$V$194,K722='EXPENSE DATABASE'!$X$187,K722='EXPENSE DATABASE'!$X$188,K722='EXPENSE DATABASE'!$X$189,K722='EXPENSE DATABASE'!$X$190,K722='EXPENSE DATABASE'!$X$191,K722='EXPENSE DATABASE'!$X$192,K722='EXPENSE DATABASE'!$X$193,K722='EXPENSE DATABASE'!$X$194,K722='EXPENSE DATABASE'!$Z$187,K722='EXPENSE DATABASE'!$Z$188,K722='EXPENSE DATABASE'!$Z$189,K722='EXPENSE DATABASE'!$Z$190,K722='EXPENSE DATABASE'!$Z$191,K722='EXPENSE DATABASE'!$Z$192,K722='EXPENSE DATABASE'!$Z$193,K722='EXPENSE DATABASE'!$Z$194),O722,\"\")","v":""},{"$f":"IF(OR(K722='EXPENSE DATABASE'!$T$189,K722='EXPENSE DATABASE'!$T$190,K722='EXPENSE DATABASE'!$T$191),O722,\"\")","v":""},{"$f":"VLOOKUP(I722,'EXPENSE DATABASE'!$B$41:$C$65,2,FALSE)","v":{"$error":"#N/A"}},100,{"$f":"VLOOKUP(J722,'EXPENSE DATABASE'!$B$69:$C$168,2,FALSE)","v":{"$error":"#N/A"}},101,{"$f":"VLOOKUP(K722,'EXPENSE DATABASE'!$B$6:$C$35,2,FALSE)","v":{"$error":"#N/A"}},31,{"$f":"VLOOKUP(L722,'EXPENSE DATABASE'!$B$173:$C$176,2,FALSE)","v":{"$error":"#N/A"}},100,0,0,{"$f":"IF(L722=T('EXPENSE DATABASE'!$E$173),O722,0)","v":0},{"$f":"IF(L722=T('EXPENSE DATABASE'!$E$174),O722,0)","v":0},{"$f":"IF(L722=T('EXPENSE DATABASE'!$E$175),O722,0)","v":0},0,709]
[{"$f":"IF(COUNTA(#REF!,#REF!,#REF!,#REF!,#REF!,#REF!,#REF!,#REF!,#REF!,#REF!,#REF!)>0,1,0)","v":1},{"$f":"IF((COUNTA(#REF!)=4),1,-1)*A723","v":-1},{"$nulls":12},{"v":0,"d":"$0.00"},{"v":0,"d":"$0.00"},{"v":0,"d":"$0.00"},0,{"$f":"IF(OR(K723='EXPENSE DATABASE'!$V$187,K723='EXPENSE DATABASE'!$V$188,K723='EXPENSE DATABASE'!$V$189,K723='EXPENSE DATABASE'!$V$190,K723='EXPENSE DATABASE'!$V$191,K723='EXPENSE DATABASE'!$V$192,K723='EXPENSE DATABASE'!$V$193,K723='EXPENSE DATABASE'!$V$194,K723='EXPENSE DATABASE'!$X$187,K723='EXPENSE DATABASE'!$X$188,K723='EXPENSE DATABASE'!$X$189,K723='EXPENSE DATABASE'!$X$190,K723='EXPENSE DATABASE'!$X$191,K723='EXPENSE DATABASE'!$X$192,K723='EXPENSE DATABASE'!$X$193,K723='EXPENSE DATABASE'!$X$194,K723='EXPENSE DATABASE'!$Z$187,K723='EXPENSE DATABASE'!$Z$188,K723='EXPENSE DATABASE'!$Z$189,K723='EXPENSE DATABASE'!$Z$190,K723='EXPENSE DATABASE'!$Z$191,K723='EXPENSE DATABASE'!$Z$192,K723='EXPENSE DATABASE'!$Z$193,K723='EXPENSE DATABASE'!$Z$194),O723,\"\")","v":""},{"$f":"IF(OR(K723='EXPENSE DATABASE'!$T$189,K723='EXPENSE DATABASE'!$T$190,K723='EXPENSE DATABASE'!$T$191),O723,\"\")","v":""},{"$f":"VLOOKUP(I723,'EXPENSE DATABASE'!$B$41:$C$65,2,FALSE)","v":{"$error":"#N/A"}},100,{"$f":"VLOOKUP(J723,'EXPENSE DATABASE'!$B$69:$C$168,2,FALSE)","v":{"$error":"#N/A"}},101,{"$f":"VLOOKUP(K723,'EXPENSE DATABASE'!$B$6:$C$35,2,FALSE)","v":{"$error":"#N/A"}},31,{"$f":"VLOOKUP(L723,'EXPENSE DATABASE'!$B$173:$C$176,2,FALSE)","v":{"$error":"#N/A"}},100,0,0,{"$f":"IF(L723=T('EXPENSE DATABASE'!$E$173),O723,0)","v":0},{"$f":"IF(L723=T('EXPENSE DATABASE'!$E$174),O723,0)","v":0},{"$f":"IF(L723=T('EXPENSE DATABASE'!$E$175),O723,0)","v":0},0,710]
[{"$f":"IF(COUNTA(#REF!,#REF!,#REF!,#REF!,#REF!,#REF!,#REF!,#REF!,#REF!,#REF!,#REF!)>0,1,0)","v":1},{"$f":"IF((COUNTA(#REF!)=4),1,-1)*A724","v":-1},{"$nulls":12},{"v":0,"d":"$0.00"},{"v":0,"d":"$0.00"},{"v":0,"d":"$0.00"},0,{"$f":"IF(OR(K724='EXPENSE DATABASE'!$V$187,K724='EXPENSE DATABASE'!$V$188,K724='EXPENSE DATABASE'!$V$189,K724='EXPENSE DATABASE'!$V$190,K724='EXPENSE DATABASE'!$V$191,K724='EXPENSE DATABASE'!$V$192,K724='EXPENSE DATABASE'!$V$193,K724='EXPENSE DATABASE'!$V$194,K724='EXPENSE DATABASE'!$X$187,K724='EXPENSE DATABASE'!$X$188,K724='EXPENSE DATABASE'!$X$189,K724='EXPENSE DATABASE'!$X$190,K724='EXPENSE DATABASE'!$X$191,K724='EXPENSE DATABASE'!$X$192,K724='EXPENSE DATABASE'!$X$193,K724='EXPENSE DATABASE'!$X$194,K724='EXPENSE DATABASE'!$Z$187,K724='EXPENSE DATABASE'!$Z$188,K724='EXPENSE DATABASE'!$Z$189,K724='EXPENSE DATABASE'!$Z$190,K724='EXPENSE DATABASE'!$Z$191,K724='EXPENSE DATABASE'!$Z$192,K724='EXPENSE DATABASE'!$Z$193,K724='EXPENSE DATABASE'!$Z$194),O724,\"\")","v":""},{"$f":"IF(OR(K724='EXPENSE DATABASE'!$T$189,K724='EXPENSE DATABASE'!$T$190,K724='EXPENSE DATABASE'!$T$191),O724,\"\")","v":""},{"$f":"VLOOKUP(I724,'EXPENSE DATABASE'!$B$41:$C$65,2,FALSE)","v":{"$error":"#N/A"}},100,{"$f":"VLOOKUP(J724,'EXPENSE DATABASE'!$B$69:$C$168,2,FALSE)","v":{"$error":"#N/A"}},101,{"$f":"VLOOKUP(K724,'EXPENSE DATABASE'!$B$6:$C$35,2,FALSE)","v":{"$error":"#N/A"}},31,{"$f":"VLOOKUP(L724,'EXPENSE DATABASE'!$B$173:$C$176,2,FALSE)","v":{"$error":"#N/A"}},100,0,0,{"$f":"IF(L724=T('EXPENSE DATABASE'!$E$173),O724,0)","v":0},{"$f":"IF(L724=T('EXPENSE DATABASE'!$E$174),O724,0)","v":0},{"$f":"IF(L724=T('EXPENSE DATABASE'!$E$175),O724,0)","v":0},0,711]
[{"$f":"IF(COUNTA(#REF!,#REF!,#REF!,#REF!,#REF!,#REF!,#REF!,#REF!,#REF!,#REF!,#REF!)>0,1,0)","v":1},{"$f":"IF((COUNTA(#REF!)=4),1,-1)*A725","v":-1},{"$nulls":12},{"v":0,"d":"$0.00"},{"v":0,"d":"$0.00"},{"v":0,"d":"$0.00"},0,{"$f":"IF(OR(K725='EXPENSE DATABASE'!$V$187,K725='EXPENSE DATABASE'!$V$188,K725='EXPENSE DATABASE'!$V$189,K725='EXPENSE DATABASE'!$V$190,K725='EXPENSE DATABASE'!$V$191,K725='EXPENSE DATABASE'!$V$192,K725='EXPENSE DATABASE'!$V$193,K725='EXPENSE DATABASE'!$V$194,K725='EXPENSE DATABASE'!$X$187,K725='EXPENSE DATABASE'!$X$188,K725='EXPENSE DATABASE'!$X$189,K725='EXPENSE DATABASE'!$X$190,K725='EXPENSE DATABASE'!$X$191,K725='EXPENSE DATABASE'!$X$192,K725='EXPENSE DATABASE'!$X$193,K725='EXPENSE DATABASE'!$X$194,K725='EXPENSE DATABASE'!$Z$187,K725='EXPENSE DATABASE'!$Z$188,K725='EXPENSE DATABASE'!$Z$189,K725='EXPENSE DATABASE'!$Z$190,K725='EXPENSE DATABASE'!$Z$191,K725='EXPENSE DATABASE'!$Z$192,K725='EXPENSE DATABASE'!$Z$193,K725='EXPENSE DATABASE'!$Z$194),O725,\"\")","v":""},{"$f":"IF(OR(K725='EXPENSE DATABASE'!$T$189,K725='EXPENSE DATABASE'!$T$190,K725='EXPENSE DATABASE'!$T$191),O725,\"\")","v":""},{"$f":"VLOOKUP(I725,'EXPENSE DATABASE'!$B$41:$C$65,2,FALSE)","v":{"$error":"#N/A"}},100,{"$f":"VLOOKUP(J725,'EXPENSE DATABASE'!$B$69:$C$168,2,FALSE)","v":{"$error":"#N/A"}},101,{"$f":"VLOOKUP(K725,'EXPENSE DATABASE'!$B$6:$C$35,2,FALSE)","v":{"$error":"#N/A"}},31,{"$f":"VLOOKUP(L725,'EXPENSE DATABASE'!$B$173:$C$176,2,FALSE)","v":{"$error":"#N/A"}},100,0,0,{"$f":"IF(L725=T('EXPENSE DATABASE'!$E$173),O725,0)","v":0},{"$f":"IF(L725=T('EXPENSE DATABASE'!$E$174),O725,0)","v":0},{"$f":"IF(L725=T('EXPENSE DATABASE'!$E$175),O725,0)","v":0},0,712]
[{"$f":"IF(COUNTA(#REF!,#REF!,#REF!,#REF!,#REF!,#REF!,#REF!,#REF!,#REF!,#REF!,#REF!)>0,1,0)","v":1},{"$f":"IF((COUNTA(#REF!)=4),1,-1)*A726","v":-1},{"$nulls":12},{"v":0,"d":"$0.00"},{"v":0,"d":"$0.00"},{"v":0,"d":"$0.00"},0,{"$f":"IF(OR(K726='EXPENSE DATABASE'!$V$187,K726='EXPENSE DATABASE'!$V$188,K726='EXPENSE DATABASE'!$V$189,K726='EXPENSE DATABASE'!$V$190,K726='EXPENSE DATABASE'!$V$191,K726='EXPENSE DATABASE'!$V$192,K726='EXPENSE DATABASE'!$V$193,K726='EXPENSE DATABASE'!$V$194,K726='EXPENSE DATABASE'!$X$187,K726='EXPENSE DATABASE'!$X$188,K726='EXPENSE DATABASE'!$X$189,K726='EXPENSE DATABASE'!$X$190,K726='EXPENSE DATABASE'!$X$191,K726='EXPENSE DATABASE'!$X$192,K726='EXPENSE DATABASE'!$X$193,K726='EXPENSE DATABASE'!$X$194,K726='EXPENSE DATABASE'!$Z$187,K726='EXPENSE DATABASE'!$Z$188,K726='EXPENSE DATABASE'!$Z$189,K726='EXPENSE DATABASE'!$Z$190,K726='EXPENSE DATABASE'!$Z$191,K726='EXPENSE DATABASE'!$Z$192,K726='EXPENSE DATABASE'!$Z$193,K726='EXPENSE DATABASE'!$Z$194),O726,\"\")","v":""},{"$f":"IF(OR(K726='EXPENSE DATABASE'!$T$189,K726='EXPENSE DATABASE'!$T$190,K726='EXPENSE DATABASE'!$T$191),O726,\"\")","v":""},{"$f":"VLOOKUP(I726,'EXPENSE DATABASE'!$B$41:$C$65,2,FALSE)","v":{"$error":"#N/A"}},100,{"$f":"VLOOKUP(J726,'EXPENSE DATABASE'!$B$69:$C$168,2,FALSE)","v":{"$error":"#N/A"}},101,{"$f":"VLOOKUP(K726,'EXPENSE DATABASE'!$B$6:$C$35,2,FALSE)","v":{"$error":"#N/A"}},31,{"$f":"VLOOKUP(L726,'EXPENSE DATABASE'!$B$173:$C$176,2,FALSE)","v":{"$error":"#N/A"}},100,0,0,{"$f":"IF(L726=T('EXPENSE DATABASE'!$E$173),O726,0)","v":0},{"$f":"IF(L726=T('EXPENSE DATABASE'!$E$174),O726,0)","v":0},{"$f":"IF(L726=T('EXPENSE DATABASE'!$E$175),O726,0)","v":0},0,713]
[{"$f":"IF(COUNTA(#REF!,#REF!,#REF!,#REF!,#REF!,#REF!,#REF!,#REF!,#REF!,#REF!,#REF!)>0,1,0)","v":1},{"$f":"IF((COUNTA(#REF!)=4),1,-1)*A727","v":-1},{"$nulls":12},{"v":0,"d":"$0.00"},{"v":0,"d":"$0.00"},{"v":0,"d":"$0.00"},0,{"$f":"IF(OR(K727='EXPENSE DATABASE'!$V$187,K727='EXPENSE DATABASE'!$V$188,K727='EXPENSE DATABASE'!$V$189,K727='EXPENSE DATABASE'!$V$190,K727='EXPENSE DATABASE'!$V$191,K727='EXPENSE DATABASE'!$V$192,K727='EXPENSE DATABASE'!$V$193,K727='EXPENSE DATABASE'!$V$194,K727='EXPENSE DATABASE'!$X$187,K727='EXPENSE DATABASE'!$X$188,K727='EXPENSE DATABASE'!$X$189,K727='EXPENSE DATABASE'!$X$190,K727='EXPENSE DATABASE'!$X$191,K727='EXPENSE DATABASE'!$X$192,K727='EXPENSE DATABASE'!$X$193,K727='EXPENSE DATABASE'!$X$194,K727='EXPENSE DATABASE'!$Z$187,K727='EXPENSE DATABASE'!$Z$188,K727='EXPENSE DATABASE'!$Z$189,K727='EXPENSE DATABASE'!$Z$190,K727='EXPENSE DATABASE'!$Z$191,K727='EXPENSE DATABASE'!$Z$192,K727='EXPENSE DATABASE'!$Z$193,K727='EXPENSE DATABASE'!$Z$194),O727,\"\")","v":""},{"$f":"IF(OR(K727='EXPENSE DATABASE'!$T$189,K727='EXPENSE DATABASE'!$T$190,K727='EXPENSE DATABASE'!$T$191),O727,\"\")","v":""},{"$f":"VLOOKUP(I727,'EXPENSE DATABASE'!$B$41:$C$65,2,FALSE)","v":{"$error":"#N/A"}},100,{"$f":"VLOOKUP(J727,'EXPENSE DATABASE'!$B$69:$C$168,2,FALSE)","v":{"$error":"#N/A"}},101,{"$f":"VLOOKUP(K727,'EXPENSE DATABASE'!$B$6:$C$35,2,FALSE)","v":{"$error":"#N/A"}},31,{"$f":"VLOOKUP(L727,'EXPENSE DATABASE'!$B$173:$C$176,2,FALSE)","v":{"$error":"#N/A"}},100,0,0,{"$f":"IF(L727=T('EXPENSE DATABASE'!$E$173),O727,0)","v":0},{"$f":"IF(L727=T('EXPENSE DATABASE'!$E$174),O727,0)","v":0},{"$f":"IF(L727=T('EXPENSE DATABASE'!$E$175),O727,0)","v":0},0,714]
[{"$f":"IF(COUNTA(#REF!,#REF!,#REF!,#REF!,#REF!,#REF!,#REF!,#REF!,#REF!,#REF!,#REF!)>0,1,0)","v":1},{"$f":"IF((COUNTA(#REF!)=4),1,-1)*A728","v":-1},{"$nulls":12},{"v":0,"d":"$0.00"},{"v":0,"d":"$0.00"},{"v":0,"d":"$0.00"},0,{"$f":"IF(OR(K728='EXPENSE DATABASE'!$V$187,K728='EXPENSE DATABASE'!$V$188,K728='EXPENSE DATABASE'!$V$189,K728='EXPENSE DATABASE'!$V$190,K728='EXPENSE DATABASE'!$V$191,K728='EXPENSE DATABASE'!$V$192,K728='EXPENSE DATABASE'!$V$193,K728='EXPENSE DATABASE'!$V$194,K728='EXPENSE DATABASE'!$X$187,K728='EXPENSE DATABASE'!$X$188,K728='EXPENSE DATABASE'!$X$189,K728='EXPENSE DATABASE'!$X$190,K728='EXPENSE DATABASE'!$X$191,K728='EXPENSE DATABASE'!$X$192,K728='EXPENSE DATABASE'!$X$193,K728='EXPENSE DATABASE'!$X$194,K728='EXPENSE DATABASE'!$Z$187,K728='EXPENSE DATABASE'!$Z$188,K728='EXPENSE DATABASE'!$Z$189,K728='EXPENSE DATABASE'!$Z$190,K728='EXPENSE DATABASE'!$Z$191,K728='EXPENSE DATABASE'!$Z$192,K728='EXPENSE DATABASE'!$Z$193,K728='EXPENSE DATABASE'!$Z$194),O728,\"\")","v":""},{"$f":"IF(OR(K728='EXPENSE DATABASE'!$T$189,K728='EXPENSE DATABASE'!$T$190,K728='EXPENSE DATABASE'!$T$191),O728,\"\")","v":""},{"$f":"VLOOKUP(I728,'EXPENSE DATABASE'!$B$41:$C$65,2,FALSE)","v":{"$error":"#N/A"}},100,{"$f":"VLOOKUP(J728,'EXPENSE DATABASE'!$B$69:$C$168,2,FALSE)","v":{"$error":"#N/A"}},101,{"$f":"VLOOKUP(K728,'EXPENSE DATABASE'!$B$6:$C$35,2,FALSE)","v":{"$error":"#N/A"}},31,{"$f":"VLOOKUP(L728,'EXPENSE DATABASE'!$B$173:$C$176,2,FALSE)","v":{"$error":"#N/A"}},100,0,0,{"$f":"IF(L728=T('EXPENSE DATABASE'!$E$173),O728,0)","v":0},{"$f":"IF(L728=T('EXPENSE DATABASE'!$E$174),O728,0)","v":0},{"$f":"IF(L728=T('EXPENSE DATABASE'!$E$175),O728,0)","v":0},0,715]
[{"$f":"IF(COUNTA(#REF!,#REF!,#REF!,#REF!,#REF!,#REF!,#REF!,#REF!,#REF!,#REF!,#REF!)>0,1,0)","v":1},{"$f":"IF((COUNTA(#REF!)=4),1,-1)*A729","v":-1},{"$nulls":12},{"v":0,"d":"$0.00"},{"v":0,"d":"$0.00"},{"v":0,"d":"$0.00"},0,{"$f":"IF(OR(K729='EXPENSE DATABASE'!$V$187,K729='EXPENSE DATABASE'!$V$188,K729='EXPENSE DATABASE'!$V$189,K729='EXPENSE DATABASE'!$V$190,K729='EXPENSE DATABASE'!$V$191,K729='EXPENSE DATABASE'!$V$192,K729='EXPENSE DATABASE'!$V$193,K729='EXPENSE DATABASE'!$V$194,K729='EXPENSE DATABASE'!$X$187,K729='EXPENSE DATABASE'!$X$188,K729='EXPENSE DATABASE'!$X$189,K729='EXPENSE DATABASE'!$X$190,K729='EXPENSE DATABASE'!$X$191,K729='EXPENSE DATABASE'!$X$192,K729='EXPENSE DATABASE'!$X$193,K729='EXPENSE DATABASE'!$X$194,K729='EXPENSE DATABASE'!$Z$187,K729='EXPENSE DATABASE'!$Z$188,K729='EXPENSE DATABASE'!$Z$189,K729='EXPENSE DATABASE'!$Z$190,K729='EXPENSE DATABASE'!$Z$191,K729='EXPENSE DATABASE'!$Z$192,K729='EXPENSE DATABASE'!$Z$193,K729='EXPENSE DATABASE'!$Z$194),O729,\"\")","v":""},{"$f":"IF(OR(K729='EXPENSE DATABASE'!$T$189,K729='EXPENSE DATABASE'!$T$190,K729='EXPENSE DATABASE'!$T$191),O729,\"\")","v":""},{"$f":"VLOOKUP(I729,'EXPENSE DATABASE'!$B$41:$C$65,2,FALSE)","v":{"$error":"#N/A"}},100,{"$f":"VLOOKUP(J729,'EXPENSE DATABASE'!$B$69:$C$168,2,FALSE)","v":{"$error":"#N/A"}},101,{"$f":"VLOOKUP(K729,'EXPENSE DATABASE'!$B$6:$C$35,2,FALSE)","v":{"$error":"#N/A"}},31,{"$f":"VLOOKUP(L729,'EXPENSE DATABASE'!$B$173:$C$176,2,FALSE)","v":{"$error":"#N/A"}},100,0,0,{"$f":"IF(L729=T('EXPENSE DATABASE'!$E$173),O729,0)","v":0},{"$f":"IF(L729=T('EXPENSE DATABASE'!$E$174),O729,0)","v":0},{"$f":"IF(L729=T('EXPENSE DATABASE'!$E$175),O729,0)","v":0},0,716]
[{"$f":"IF(COUNTA(#REF!,#REF!,#REF!,#REF!,#REF!,#REF!,#REF!,#REF!,#REF!,#REF!,#REF!)>0,1,0)","v":1},{"$f":"IF((COUNTA(#REF!)=4),1,-1)*A730","v":-1},{"$nulls":12},{"v":0,"d":"$0.00"},{"v":0,"d":"$0.00"},{"v":0,"d":"$0.00"},0,{"$f":"IF(OR(K730='EXPENSE DATABASE'!$V$187,K730='EXPENSE DATABASE'!$V$188,K730='EXPENSE DATABASE'!$V$189,K730='EXPENSE DATABASE'!$V$190,K730='EXPENSE DATABASE'!$V$191,K730='EXPENSE DATABASE'!$V$192,K730='EXPENSE DATABASE'!$V$193,K730='EXPENSE DATABASE'!$V$194,K730='EXPENSE DATABASE'!$X$187,K730='EXPENSE DATABASE'!$X$188,K730='EXPENSE DATABASE'!$X$189,K730='EXPENSE DATABASE'!$X$190,K730='EXPENSE DATABASE'!$X$191,K730='EXPENSE DATABASE'!$X$192,K730='EXPENSE DATABASE'!$X$193,K730='EXPENSE DATABASE'!$X$194,K730='EXPENSE DATABASE'!$Z$187,K730='EXPENSE DATABASE'!$Z$188,K730='EXPENSE DATABASE'!$Z$189,K730='EXPENSE DATABASE'!$Z$190,K730='EXPENSE DATABASE'!$Z$191,K730='EXPENSE DATABASE'!$Z$192,K730='EXPENSE DATABASE'!$Z$193,K730='EXPENSE DATABASE'!$Z$194),O730,\"\")","v":""},{"$f":"IF(OR(K730='EXPENSE DATABASE'!$T$189,K730='EXPENSE DATABASE'!$T$190,K730='EXPENSE DATABASE'!$T$191),O730,\"\")","v":""},{"$f":"VLOOKUP(I730,'EXPENSE DATABASE'!$B$41:$C$65,2,FALSE)","v":{"$error":"#N/A"}},100,{"$f":"VLOOKUP(J730,'EXPENSE DATABASE'!$B$69:$C$168,2,FALSE)","v":{"$error":"#N/A"}},101,{"$f":"VLOOKUP(K730,'EXPENSE DATABASE'!$B$6:$C$35,2,FALSE)","v":{"$error":"#N/A"}},31,{"$f":"VLOOKUP(L730,'EXPENSE DATABASE'!$B$173:$C$176,2,FALSE)","v":{"$error":"#N/A"}},100,0,0,{"$f":"IF(L730=T('EXPENSE DATABASE'!$E$173),O730,0)","v":0},{"$f":"IF(L730=T('EXPENSE DATABASE'!$E$174),O730,0)","v":0},{"$f":"IF(L730=T('EXPENSE DATABASE'!$E$175),O730,0)","v":0},0,717]
[{"$f":"IF(COUNTA(#REF!,#REF!,#REF!,#REF!,#REF!,#REF!,#REF!,#REF!,#REF!,#REF!,#REF!)>0,1,0)","v":1},{"$f":"IF((COUNTA(#REF!)=4),1,-1)*A731","v":-1},{"$nulls":12},{"v":0,"d":"$0.00"},{"v":0,"d":"$0.00"},{"v":0,"d":"$0.00"},0,{"$f":"IF(OR(K731='EXPENSE DATABASE'!$V$187,K731='EXPENSE DATABASE'!$V$188,K731='EXPENSE DATABASE'!$V$189,K731='EXPENSE DATABASE'!$V$190,K731='EXPENSE DATABASE'!$V$191,K731='EXPENSE DATABASE'!$V$192,K731='EXPENSE DATABASE'!$V$193,K731='EXPENSE DATABASE'!$V$194,K731='EXPENSE DATABASE'!$X$187,K731='EXPENSE DATABASE'!$X$188,K731='EXPENSE DATABASE'!$X$189,K731='EXPENSE DATABASE'!$X$190,K731='EXPENSE DATABASE'!$X$191,K731='EXPENSE DATABASE'!$X$192,K731='EXPENSE DATABASE'!$X$193,K731='EXPENSE DATABASE'!$X$194,K731='EXPENSE DATABASE'!$Z$187,K731='EXPENSE DATABASE'!$Z$188,K731='EXPENSE DATABASE'!$Z$189,K731='EXPENSE DATABASE'!$Z$190,K731='EXPENSE DATABASE'!$Z$191,K731='EXPENSE DATABASE'!$Z$192,K731='EXPENSE DATABASE'!$Z$193,K731='EXPENSE DATABASE'!$Z$194),O731,\"\")","v":""},{"$f":"IF(OR(K731='EXPENSE DATABASE'!$T$189,K731='EXPENSE DATABASE'!$T$190,K731='EXPENSE DATABASE'!$T$191),O731,\"\")","v":""},{"$f":"VLOOKUP(I731,'EXPENSE DATABASE'!$B$41:$C$65,2,FALSE)","v":{"$error":"#N/A"}},100,{"$f":"VLOOKUP(J731,'EXPENSE DATABASE'!$B$69:$C$168,2,FALSE)","v":{"$error":"#N/A"}},101,{"$f":"VLOOKUP(K731,'EXPENSE DATABASE'!$B$6:$C$35,2,FALSE)","v":{"$error":"#N/A"}},31,{"$f":"VLOOKUP(L731,'EXPENSE DATABASE'!$B$173:$C$176,2,FALSE)","v":{"$error":"#N/A"}},100,0,0,{"$f":"IF(L731=T('EXPENSE DATABASE'!$E$173),O731,0)","v":0},{"$f":"IF(L731=T('EXPENSE DATABASE'!$E$174),O731,0)","v":0},{"$f":"IF(L731=T('EXPENSE DATABASE'!$E$175),O731,0)","v":0},0,718]
[{"$f":"IF(COUNTA(#REF!,#REF!,#REF!,#REF!,#REF!,#REF!,#REF!,#REF!,#REF!,#REF!,#REF!)>0,1,0)","v":1},{"$f":"IF((COUNTA(#REF!)=4),1,-1)*A732","v":-1},{"$nulls":12},{"v":0,"d":"$0.00"},{"v":0,"d":"$0.00"},{"v":0,"d":"$0.00"},0,{"$f":"IF(OR(K732='EXPENSE DATABASE'!$V$187,K732='EXPENSE DATABASE'!$V$188,K732='EXPENSE DATABASE'!$V$189,K732='EXPENSE DATABASE'!$V$190,K732='EXPENSE DATABASE'!$V$191,K732='EXPENSE DATABASE'!$V$192,K732='EXPENSE DATABASE'!$V$193,K732='EXPENSE DATABASE'!$V$194,K732='EXPENSE DATABASE'!$X$187,K732='EXPENSE DATABASE'!$X$188,K732='EXPENSE DATABASE'!$X$189,K732='EXPENSE DATABASE'!$X$190,K732='EXPENSE DATABASE'!$X$191,K732='EXPENSE DATABASE'!$X$192,K732='EXPENSE DATABASE'!$X$193,K732='EXPENSE DATABASE'!$X$194,K732='EXPENSE DATABASE'!$Z$187,K732='EXPENSE DATABASE'!$Z$188,K732='EXPENSE DATABASE'!$Z$189,K732='EXPENSE DATABASE'!$Z$190,K732='EXPENSE DATABASE'!$Z$191,K732='EXPENSE DATABASE'!$Z$192,K732='EXPENSE DATABASE'!$Z$193,K732='EXPENSE DATABASE'!$Z$194),O732,\"\")","v":""},{"$f":"IF(OR(K732='EXPENSE DATABASE'!$T$189,K732='EXPENSE DATABASE'!$T$190,K732='EXPENSE DATABASE'!$T$191),O732,\"\")","v":""},{"$f":"VLOOKUP(I732,'EXPENSE DATABASE'!$B$41:$C$65,2,FALSE)","v":{"$error":"#N/A"}},100,{"$f":"VLOOKUP(J732,'EXPENSE DATABASE'!$B$69:$C$168,2,FALSE)","v":{"$error":"#N/A"}},101,{"$f":"VLOOKUP(K732,'EXPENSE DATABASE'!$B$6:$C$35,2,FALSE)","v":{"$error":"#N/A"}},31,{"$f":"VLOOKUP(L732,'EXPENSE DATABASE'!$B$173:$C$176,2,FALSE)","v":{"$error":"#N/A"}},100,0,0,{"$f":"IF(L732=T('EXPENSE DATABASE'!$E$173),O732,0)","v":0},{"$f":"IF(L732=T('EXPENSE DATABASE'!$E$174),O732,0)","v":0},{"$f":"IF(L732=T('EXPENSE DATABASE'!$E$175),O732,0)","v":0},0,719]
[{"$f":"IF(COUNTA(#REF!,#REF!,#REF!,#REF!,#REF!,#REF!,#REF!,#REF!,#REF!,#REF!,#REF!)>0,1,0)","v":1},{"$f":"IF((COUNTA(#REF!)=4),1,-1)*A733","v":-1},{"$nulls":12},{"v":0,"d":"$0.00"},{"v":0,"d":"$0.00"},{"v":0,"d":"$0.00"},0,{"$f":"IF(OR(K733='EXPENSE DATABASE'!$V$187,K733='EXPENSE DATABASE'!$V$188,K733='EXPENSE DATABASE'!$V$189,K733='EXPENSE DATABASE'!$V$190,K733='EXPENSE DATABASE'!$V$191,K733='EXPENSE DATABASE'!$V$192,K733='EXPENSE DATABASE'!$V$193,K733='EXPENSE DATABASE'!$V$194,K733='EXPENSE DATABASE'!$X$187,K733='EXPENSE DATABASE'!$X$188,K733='EXPENSE DATABASE'!$X$189,K733='EXPENSE DATABASE'!$X$190,K733='EXPENSE DATABASE'!$X$191,K733='EXPENSE DATABASE'!$X$192,K733='EXPENSE DATABASE'!$X$193,K733='EXPENSE DATABASE'!$X$194,K733='EXPENSE DATABASE'!$Z$187,K733='EXPENSE DATABASE'!$Z$188,K733='EXPENSE DATABASE'!$Z$189,K733='EXPENSE DATABASE'!$Z$190,K733='EXPENSE DATABASE'!$Z$191,K733='EXPENSE DATABASE'!$Z$192,K733='EXPENSE DATABASE'!$Z$193,K733='EXPENSE DATABASE'!$Z$194),O733,\"\")","v":""},{"$f":"IF(OR(K733='EXPENSE DATABASE'!$T$189,K733='EXPENSE DATABASE'!$T$190,K733='EXPENSE DATABASE'!$T$191),O733,\"\")","v":""},{"$f":"VLOOKUP(I733,'EXPENSE DATABASE'!$B$41:$C$65,2,FALSE)","v":{"$error":"#N/A"}},100,{"$f":"VLOOKUP(J733,'EXPENSE DATABASE'!$B$69:$C$168,2,FALSE)","v":{"$error":"#N/A"}},101,{"$f":"VLOOKUP(K733,'EXPENSE DATABASE'!$B$6:$C$35,2,FALSE)","v":{"$error":"#N/A"}},31,{"$f":"VLOOKUP(L733,'EXPENSE DATABASE'!$B$173:$C$176,2,FALSE)","v":{"$error":"#N/A"}},100,0,0,{"$f":"IF(L733=T('EXPENSE DATABASE'!$E$173),O733,0)","v":0},{"$f":"IF(L733=T('EXPENSE DATABASE'!$E$174),O733,0)","v":0},{"$f":"IF(L733=T('EXPENSE DATABASE'!$E$175),O733,0)","v":0},0,720]
[{"$f":"IF(COUNTA(#REF!,#REF!,#REF!,#REF!,#REF!,#REF!,#REF!,#REF!,#REF!,#REF!,#REF!)>0,1,0)","v":1},{"$f":"IF((COUNTA(#REF!)=4),1,-1)*A734","v":-1},{"$nulls":12},{"v":0,"d":"$0.00"},{"v":0,"d":"$0.00"},{"v":0,"d":"$0.00"},0,{"$f":"IF(OR(K734='EXPENSE DATABASE'!$V$187,K734='EXPENSE DATABASE'!$V$188,K734='EXPENSE DATABASE'!$V$189,K734='EXPENSE DATABASE'!$V$190,K734='EXPENSE DATABASE'!$V$191,K734='EXPENSE DATABASE'!$V$192,K734='EXPENSE DATABASE'!$V$193,K734='EXPENSE DATABASE'!$V$194,K734='EXPENSE DATABASE'!$X$187,K734='EXPENSE DATABASE'!$X$188,K734='EXPENSE DATABASE'!$X$189,K734='EXPENSE DATABASE'!$X$190,K734='EXPENSE DATABASE'!$X$191,K734='EXPENSE DATABASE'!$X$192,K734='EXPENSE DATABASE'!$X$193,K734='EXPENSE DATABASE'!$X$194,K734='EXPENSE DATABASE'!$Z$187,K734='EXPENSE DATABASE'!$Z$188,K734='EXPENSE DATABASE'!$Z$189,K734='EXPENSE DATABASE'!$Z$190,K734='EXPENSE DATABASE'!$Z$191,K734='EXPENSE DATABASE'!$Z$192,K734='EXPENSE DATABASE'!$Z$193,K734='EXPENSE DATABASE'!$Z$194),O734,\"\")","v":""},{"$f":"IF(OR(K734='EXPENSE DATABASE'!$T$189,K734='EXPENSE DATABASE'!$T$190,K734='EXPENSE DATABASE'!$T$191),O734,\"\")","v":""},{"$f":"VLOOKUP(I734,'EXPENSE DATABASE'!$B$41:$C$65,2,FALSE)","v":{"$error":"#N/A"}},100,{"$f":"VLOOKUP(J734,'EXPENSE DATABASE'!$B$69:$C$168,2,FALSE)","v":{"$error":"#N/A"}},101,{"$f":"VLOOKUP(K734,'EXPENSE DATABASE'!$B$6:$C$35,2,FALSE)","v":{"$error":"#N/A"}},31,{"$f":"VLOOKUP(L734,'EXPENSE DATABASE'!$B$173:$C$176,2,FALSE)","v":{"$error":"#N/A"}},100,0,0,{"$f":"IF(L734=T('EXPENSE DATABASE'!$E$173),O734,0)","v":0},{"$f":"IF(L734=T('EXPENSE DATABASE'!$E$174),O734,0)","v":0},{"$f":"IF(L734=T('EXPENSE DATABASE'!$E$175),O734,0)","v":0},0,721]
[{"$f":"IF(COUNTA(#REF!,#REF!,#REF!,#REF!,#REF!,#REF!,#REF!,#REF!,#REF!,#REF!,#REF!)>0,1,0)","v":1},{"$f":"IF((COUNTA(#REF!)=4),1,-1)*A735","v":-1},{"$nulls":12},{"v":0,"d":"$0.00"},{"v":0,"d":"$0.00"},{"v":0,"d":"$0.00"},0,{"$f":"IF(OR(K735='EXPENSE DATABASE'!$V$187,K735='EXPENSE DATABASE'!$V$188,K735='EXPENSE DATABASE'!$V$189,K735='EXPENSE DATABASE'!$V$190,K735='EXPENSE DATABASE'!$V$191,K735='EXPENSE DATABASE'!$V$192,K735='EXPENSE DATABASE'!$V$193,K735='EXPENSE DATABASE'!$V$194,K735='EXPENSE DATABASE'!$X$187,K735='EXPENSE DATABASE'!$X$188,K735='EXPENSE DATABASE'!$X$189,K735='EXPENSE DATABASE'!$X$190,K735='EXPENSE DATABASE'!$X$191,K735='EXPENSE DATABASE'!$X$192,K735='EXPENSE DATABASE'!$X$193,K735='EXPENSE DATABASE'!$X$194,K735='EXPENSE DATABASE'!$Z$187,K735='EXPENSE DATABASE'!$Z$188,K735='EXPENSE DATABASE'!$Z$189,K735='EXPENSE DATABASE'!$Z$190,K735='EXPENSE DATABASE'!$Z$191,K735='EXPENSE DATABASE'!$Z$192,K735='EXPENSE DATABASE'!$Z$193,K735='EXPENSE DATABASE'!$Z$194),O735,\"\")","v":""},{"$f":"IF(OR(K735='EXPENSE DATABASE'!$T$189,K735='EXPENSE DATABASE'!$T$190,K735='EXPENSE DATABASE'!$T$191),O735,\"\")","v":""},{"$f":"VLOOKUP(I735,'EXPENSE DATABASE'!$B$41:$C$65,2,FALSE)","v":{"$error":"#N/A"}},100,{"$f":"VLOOKUP(J735,'EXPENSE DATABASE'!$B$69:$C$168,2,FALSE)","v":{"$error":"#N/A"}},101,{"$f":"VLOOKUP(K735,'EXPENSE DATABASE'!$B$6:$C$35,2,FALSE)","v":{"$error":"#N/A"}},31,{"$f":"VLOOKUP(L735,'EXPENSE DATABASE'!$B$173:$C$176,2,FALSE)","v":{"$error":"#N/A"}},100,0,0,{"$f":"IF(L735=T('EXPENSE DATABASE'!$E$173),O735,0)","v":0},{"$f":"IF(L735=T('EXPENSE DATABASE'!$E$174),O735,0)","v":0},{"$f":"IF(L735=T('EXPENSE DATABASE'!$E$175),O735,0)","v":0},0,722]
[{"$f":"IF(COUNTA(#REF!,#REF!,#REF!,#REF!,#REF!,#REF!,#REF!,#REF!,#REF!,#REF!,#REF!)>0,1,0)","v":1},{"$f":"IF((COUNTA(#REF!)=4),1,-1)*A736","v":-1},{"$nulls":12},{"v":0,"d":"$0.00"},{"v":0,"d":"$0.00"},{"v":0,"d":"$0.00"},0,{"$f":"IF(OR(K736='EXPENSE DATABASE'!$V$187,K736='EXPENSE DATABASE'!$V$188,K736='EXPENSE DATABASE'!$V$189,K736='EXPENSE DATABASE'!$V$190,K736='EXPENSE DATABASE'!$V$191,K736='EXPENSE DATABASE'!$V$192,K736='EXPENSE DATABASE'!$V$193,K736='EXPENSE DATABASE'!$V$194,K736='EXPENSE DATABASE'!$X$187,K736='EXPENSE DATABASE'!$X$188,K736='EXPENSE DATABASE'!$X$189,K736='EXPENSE DATABASE'!$X$190,K736='EXPENSE DATABASE'!$X$191,K736='EXPENSE DATABASE'!$X$192,K736='EXPENSE DATABASE'!$X$193,K736='EXPENSE DATABASE'!$X$194,K736='EXPENSE DATABASE'!$Z$187,K736='EXPENSE DATABASE'!$Z$188,K736='EXPENSE DATABASE'!$Z$189,K736='EXPENSE DATABASE'!$Z$190,K736='EXPENSE DATABASE'!$Z$191,K736='EXPENSE DATABASE'!$Z$192,K736='EXPENSE DATABASE'!$Z$193,K736='EXPENSE DATABASE'!$Z$194),O736,\"\")","v":""},{"$f":"IF(OR(K736='EXPENSE DATABASE'!$T$189,K736='EXPENSE DATABASE'!$T$190,K736='EXPENSE DATABASE'!$T$191),O736,\"\")","v":""},{"$f":"VLOOKUP(I736,'EXPENSE DATABASE'!$B$41:$C$65,2,FALSE)","v":{"$error":"#N/A"}},100,{"$f":"VLOOKUP(J736,'EXPENSE DATABASE'!$B$69:$C$168,2,FALSE)","v":{"$error":"#N/A"}},101,{"$f":"VLOOKUP(K736,'EXPENSE DATABASE'!$B$6:$C$35,2,FALSE)","v":{"$error":"#N/A"}},31,{"$f":"VLOOKUP(L736,'EXPENSE DATABASE'!$B$173:$C$176,2,FALSE)","v":{"$error":"#N/A"}},100,0,0,{"$f":"IF(L736=T('EXPENSE DATABASE'!$E$173),O736,0)","v":0},{"$f":"IF(L736=T('EXPENSE DATABASE'!$E$174),O736,0)","v":0},{"$f":"IF(L736=T('EXPENSE DATABASE'!$E$175),O736,0)","v":0},0,723]
[{"$f":"IF(COUNTA(#REF!,#REF!,#REF!,#REF!,#REF!,#REF!,#REF!,#REF!,#REF!,#REF!,#REF!)>0,1,0)","v":1},{"$f":"IF((COUNTA(#REF!)=4),1,-1)*A737","v":-1},{"$nulls":12},{"v":0,"d":"$0.00"},{"v":0,"d":"$0.00"},{"v":0,"d":"$0.00"},0,{"$f":"IF(OR(K737='EXPENSE DATABASE'!$V$187,K737='EXPENSE DATABASE'!$V$188,K737='EXPENSE DATABASE'!$V$189,K737='EXPENSE DATABASE'!$V$190,K737='EXPENSE DATABASE'!$V$191,K737='EXPENSE DATABASE'!$V$192,K737='EXPENSE DATABASE'!$V$193,K737='EXPENSE DATABASE'!$V$194,K737='EXPENSE DATABASE'!$X$187,K737='EXPENSE DATABASE'!$X$188,K737='EXPENSE DATABASE'!$X$189,K737='EXPENSE DATABASE'!$X$190,K737='EXPENSE DATABASE'!$X$191,K737='EXPENSE DATABASE'!$X$192,K737='EXPENSE DATABASE'!$X$193,K737='EXPENSE DATABASE'!$X$194,K737='EXPENSE DATABASE'!$Z$187,K737='EXPENSE DATABASE'!$Z$188,K737='EXPENSE DATABASE'!$Z$189,K737='EXPENSE DATABASE'!$Z$190,K737='EXPENSE DATABASE'!$Z$191,K737='EXPENSE DATABASE'!$Z$192,K737='EXPENSE DATABASE'!$Z$193,K737='EXPENSE DATABASE'!$Z$194),O737,\"\")","v":""},{"$f":"IF(OR(K737='EXPENSE DATABASE'!$T$189,K737='EXPENSE DATABASE'!$T$190,K737='EXPENSE DATABASE'!$T$191),O737,\"\")","v":""},{"$f":"VLOOKUP(I737,'EXPENSE DATABASE'!$B$41:$C$65,2,FALSE)","v":{"$error":"#N/A"}},100,{"$f":"VLOOKUP(J737,'EXPENSE DATABASE'!$B$69:$C$168,2,FALSE)","v":{"$error":"#N/A"}},101,{"$f":"VLOOKUP(K737,'EXPENSE DATABASE'!$B$6:$C$35,2,FALSE)","v":{"$error":"#N/A"}},31,{"$f":"VLOOKUP(L737,'EXPENSE DATABASE'!$B$173:$C$176,2,FALSE)","v":{"$error":"#N/A"}},100,0,0,{"$f":"IF(L737=T('EXPENSE DATABASE'!$E$173),O737,0)","v":0},{"$f":"IF(L737=T('EXPENSE DATABASE'!$E$174),O737,0)","v":0},{"$f":"IF(L737=T('EXPENSE DATABASE'!$E$175),O737,0)","v":0},0,724]
[{"$f":"IF(COUNTA(#REF!,#REF!,#REF!,#REF!,#REF!,#REF!,#REF!,#REF!,#REF!,#REF!,#REF!)>0,1,0)","v":1},{"$f":"IF((COUNTA(#REF!)=4),1,-1)*A738","v":-1},{"$nulls":12},{"v":0,"d":"$0.00"},{"v":0,"d":"$0.00"},{"v":0,"d":"$0.00"},0,{"$f":"IF(OR(K738='EXPENSE DATABASE'!$V$187,K738='EXPENSE DATABASE'!$V$188,K738='EXPENSE DATABASE'!$V$189,K738='EXPENSE DATABASE'!$V$190,K738='EXPENSE DATABASE'!$V$191,K738='EXPENSE DATABASE'!$V$192,K738='EXPENSE DATABASE'!$V$193,K738='EXPENSE DATABASE'!$V$194,K738='EXPENSE DATABASE'!$X$187,K738='EXPENSE DATABASE'!$X$188,K738='EXPENSE DATABASE'!$X$189,K738='EXPENSE DATABASE'!$X$190,K738='EXPENSE DATABASE'!$X$191,K738='EXPENSE DATABASE'!$X$192,K738='EXPENSE DATABASE'!$X$193,K738='EXPENSE DATABASE'!$X$194,K738='EXPENSE DATABASE'!$Z$187,K738='EXPENSE DATABASE'!$Z$188,K738='EXPENSE DATABASE'!$Z$189,K738='EXPENSE DATABASE'!$Z$190,K738='EXPENSE DATABASE'!$Z$191,K738='EXPENSE DATABASE'!$Z$192,K738='EXPENSE DATABASE'!$Z$193,K738='EXPENSE DATABASE'!$Z$194),O738,\"\")","v":""},{"$f":"IF(OR(K738='EXPENSE DATABASE'!$T$189,K738='EXPENSE DATABASE'!$T$190,K738='EXPENSE DATABASE'!$T$191),O738,\"\")","v":""},{"$f":"VLOOKUP(I738,'EXPENSE DATABASE'!$B$41:$C$65,2,FALSE)","v":{"$error":"#N/A"}},100,{"$f":"VLOOKUP(J738,'EXPENSE DATABASE'!$B$69:$C$168,2,FALSE)","v":{"$error":"#N/A"}},101,{"$f":"VLOOKUP(K738,'EXPENSE DATABASE'!$B$6:$C$35,2,FALSE)","v":{"$error":"#N/A"}},31,{"$f":"VLOOKUP(L738,'EXPENSE DATABASE'!$B$173:$C$176,2,FALSE)","v":{"$error":"#N/A"}},100,0,0,{"$f":"IF(L738=T('EXPENSE DATABASE'!$E$173),O738,0)","v":0},{"$f":"IF(L738=T('EXPENSE DATABASE'!$E$174),O738,0)","v":0},{"$f":"IF(L738=T('EXPENSE DATABASE'!$E$175),O738,0)","v":0},0,725]
[{"$f":"IF(COUNTA(#REF!,#REF!,#REF!,#REF!,#REF!,#REF!,#REF!,#REF!,#REF!,#REF!,#REF!)>0,1,0)","v":1},{"$f":"IF((COUNTA(#REF!)=4),1,-1)*A739","v":-1},{"$nulls":12},{"v":0,"d":"$0.00"},{"v":0,"d":"$0.00"},{"v":0,"d":"$0.00"},0,{"$f":"IF(OR(K739='EXPENSE DATABASE'!$V$187,K739='EXPENSE DATABASE'!$V$188,K739='EXPENSE DATABASE'!$V$189,K739='EXPENSE DATABASE'!$V$190,K739='EXPENSE DATABASE'!$V$191,K739='EXPENSE DATABASE'!$V$192,K739='EXPENSE DATABASE'!$V$193,K739='EXPENSE DATABASE'!$V$194,K739='EXPENSE DATABASE'!$X$187,K739='EXPENSE DATABASE'!$X$188,K739='EXPENSE DATABASE'!$X$189,K739='EXPENSE DATABASE'!$X$190,K739='EXPENSE DATABASE'!$X$191,K739='EXPENSE DATABASE'!$X$192,K739='EXPENSE DATABASE'!$X$193,K739='EXPENSE DATABASE'!$X$194,K739='EXPENSE DATABASE'!$Z$187,K739='EXPENSE DATABASE'!$Z$188,K739='EXPENSE DATABASE'!$Z$189,K739='EXPENSE DATABASE'!$Z$190,K739='EXPENSE DATABASE'!$Z$191,K739='EXPENSE DATABASE'!$Z$192,K739='EXPENSE DATABASE'!$Z$193,K739='EXPENSE DATABASE'!$Z$194),O739,\"\")","v":""},{"$f":"IF(OR(K739='EXPENSE DATABASE'!$T$189,K739='EXPENSE DATABASE'!$T$190,K739='EXPENSE DATABASE'!$T$191),O739,\"\")","v":""},{"$f":"VLOOKUP(I739,'EXPENSE DATABASE'!$B$41:$C$65,2,FALSE)","v":{"$error":"#N/A"}},100,{"$f":"VLOOKUP(J739,'EXPENSE DATABASE'!$B$69:$C$168,2,FALSE)","v":{"$error":"#N/A"}},101,{"$f":"VLOOKUP(K739,'EXPENSE DATABASE'!$B$6:$C$35,2,FALSE)","v":{"$error":"#N/A"}},31,{"$f":"VLOOKUP(L739,'EXPENSE DATABASE'!$B$173:$C$176,2,FALSE)","v":{"$error":"#N/A"}},100,0,0,{"$f":"IF(L739=T('EXPENSE DATABASE'!$E$173),O739,0)","v":0},{"$f":"IF(L739=T('EXPENSE DATABASE'!$E$174),O739,0)","v":0},{"$f":"IF(L739=T('EXPENSE DATABASE'!$E$175),O739,0)","v":0},0,726]
[{"$f":"IF(COUNTA(#REF!,#REF!,#REF!,#REF!,#REF!,#REF!,#REF!,#REF!,#REF!,#REF!,#REF!)>0,1,0)","v":1},{"$f":"IF((COUNTA(#REF!)=4),1,-1)*A740","v":-1},{"$nulls":12},{"v":0,"d":"$0.00"},{"v":0,"d":"$0.00"},{"v":0,"d":"$0.00"},0,{"$f":"IF(OR(K740='EXPENSE DATABASE'!$V$187,K740='EXPENSE DATABASE'!$V$188,K740='EXPENSE DATABASE'!$V$189,K740='EXPENSE DATABASE'!$V$190,K740='EXPENSE DATABASE'!$V$191,K740='EXPENSE DATABASE'!$V$192,K740='EXPENSE DATABASE'!$V$193,K740='EXPENSE DATABASE'!$V$194,K740='EXPENSE DATABASE'!$X$187,K740='EXPENSE DATABASE'!$X$188,K740='EXPENSE DATABASE'!$X$189,K740='EXPENSE DATABASE'!$X$190,K740='EXPENSE DATABASE'!$X$191,K740='EXPENSE DATABASE'!$X$192,K740='EXPENSE DATABASE'!$X$193,K740='EXPENSE DATABASE'!$X$194,K740='EXPENSE DATABASE'!$Z$187,K740='EXPENSE DATABASE'!$Z$188,K740='EXPENSE DATABASE'!$Z$189,K740='EXPENSE DATABASE'!$Z$190,K740='EXPENSE DATABASE'!$Z$191,K740='EXPENSE DATABASE'!$Z$192,K740='EXPENSE DATABASE'!$Z$193,K740='EXPENSE DATABASE'!$Z$194),O740,\"\")","v":""},{"$f":"IF(OR(K740='EXPENSE DATABASE'!$T$189,K740='EXPENSE DATABASE'!$T$190,K740='EXPENSE DATABASE'!$T$191),O740,\"\")","v":""},{"$f":"VLOOKUP(I740,'EXPENSE DATABASE'!$B$41:$C$65,2,FALSE)","v":{"$error":"#N/A"}},100,{"$f":"VLOOKUP(J740,'EXPENSE DATABASE'!$B$69:$C$168,2,FALSE)","v":{"$error":"#N/A"}},101,{"$f":"VLOOKUP(K740,'EXPENSE DATABASE'!$B$6:$C$35,2,FALSE)","v":{"$error":"#N/A"}},31,{"$f":"VLOOKUP(L740,'EXPENSE DATABASE'!$B$173:$C$176,2,FALSE)","v":{"$error":"#N/A"}},100,0,0,{"$f":"IF(L740=T('EXPENSE DATABASE'!$E$173),O740,0)","v":0},{"$f":"IF(L740=T('EXPENSE DATABASE'!$E$174),O740,0)","v":0},{"$f":"IF(L740=T('EXPENSE DATABASE'!$E$175),O740,0)","v":0},0,727]
[{"$f":"IF(COUNTA(#REF!,#REF!,#REF!,#REF!,#REF!,#REF!,#REF!,#REF!,#REF!,#REF!,#REF!)>0,1,0)","v":1},{"$f":"IF((COUNTA(#REF!)=4),1,-1)*A741","v":-1},{"$nulls":12},{"v":0,"d":"$0.00"},{"v":0,"d":"$0.00"},{"v":0,"d":"$0.00"},0,{"$f":"IF(OR(K741='EXPENSE DATABASE'!$V$187,K741='EXPENSE DATABASE'!$V$188,K741='EXPENSE DATABASE'!$V$189,K741='EXPENSE DATABASE'!$V$190,K741='EXPENSE DATABASE'!$V$191,K741='EXPENSE DATABASE'!$V$192,K741='EXPENSE DATABASE'!$V$193,K741='EXPENSE DATABASE'!$V$194,K741='EXPENSE DATABASE'!$X$187,K741='EXPENSE DATABASE'!$X$188,K741='EXPENSE DATABASE'!$X$189,K741='EXPENSE DATABASE'!$X$190,K741='EXPENSE DATABASE'!$X$191,K741='EXPENSE DATABASE'!$X$192,K741='EXPENSE DATABASE'!$X$193,K741='EXPENSE DATABASE'!$X$194,K741='EXPENSE DATABASE'!$Z$187,K741='EXPENSE DATABASE'!$Z$188,K741='EXPENSE DATABASE'!$Z$189,K741='EXPENSE DATABASE'!$Z$190,K741='EXPENSE DATABASE'!$Z$191,K741='EXPENSE DATABASE'!$Z$192,K741='EXPENSE DATABASE'!$Z$193,K741='EXPENSE DATABASE'!$Z$194),O741,\"\")","v":""},{"$f":"IF(OR(K741='EXPENSE DATABASE'!$T$189,K741='EXPENSE DATABASE'!$T$190,K741='EXPENSE DATABASE'!$T$191),O741,\"\")","v":""},{"$f":"VLOOKUP(I741,'EXPENSE DATABASE'!$B$41:$C$65,2,FALSE)","v":{"$error":"#N/A"}},100,{"$f":"VLOOKUP(J741,'EXPENSE DATABASE'!$B$69:$C$168,2,FALSE)","v":{"$error":"#N/A"}},101,{"$f":"VLOOKUP(K741,'EXPENSE DATABASE'!$B$6:$C$35,2,FALSE)","v":{"$error":"#N/A"}},31,{"$f":"VLOOKUP(L741,'EXPENSE DATABASE'!$B$173:$C$176,2,FALSE)","v":{"$error":"#N/A"}},100,0,0,{"$f":"IF(L741=T('EXPENSE DATABASE'!$E$173),O741,0)","v":0},{"$f":"IF(L741=T('EXPENSE DATABASE'!$E$174),O741,0)","v":0},{"$f":"IF(L741=T('EXPENSE DATABASE'!$E$175),O741,0)","v":0},0,728]
[{"$f":"IF(COUNTA(#REF!,#REF!,#REF!,#REF!,#REF!,#REF!,#REF!,#REF!,#REF!,#REF!,#REF!)>0,1,0)","v":1},{"$f":"IF((COUNTA(#REF!)=4),1,-1)*A742","v":-1},{"$nulls":12},{"v":0,"d":"$0.00"},{"v":0,"d":"$0.00"},{"v":0,"d":"$0.00"},0,{"$f":"IF(OR(K742='EXPENSE DATABASE'!$V$187,K742='EXPENSE DATABASE'!$V$188,K742='EXPENSE DATABASE'!$V$189,K742='EXPENSE DATABASE'!$V$190,K742='EXPENSE DATABASE'!$V$191,K742='EXPENSE DATABASE'!$V$192,K742='EXPENSE DATABASE'!$V$193,K742='EXPENSE DATABASE'!$V$194,K742='EXPENSE DATABASE'!$X$187,K742='EXPENSE DATABASE'!$X$188,K742='EXPENSE DATABASE'!$X$189,K742='EXPENSE DATABASE'!$X$190,K742='EXPENSE DATABASE'!$X$191,K742='EXPENSE DATABASE'!$X$192,K742='EXPENSE DATABASE'!$X$193,K742='EXPENSE DATABASE'!$X$194,K742='EXPENSE DATABASE'!$Z$187,K742='EXPENSE DATABASE'!$Z$188,K742='EXPENSE DATABASE'!$Z$189,K742='EXPENSE DATABASE'!$Z$190,K742='EXPENSE DATABASE'!$Z$191,K742='EXPENSE DATABASE'!$Z$192,K742='EXPENSE DATABASE'!$Z$193,K742='EXPENSE DATABASE'!$Z$194),O742,\"\")","v":""},{"$f":"IF(OR(K742='EXPENSE DATABASE'!$T$189,K742='EXPENSE DATABASE'!$T$190,K742='EXPENSE DATABASE'!$T$191),O742,\"\")","v":""},{"$f":"VLOOKUP(I742,'EXPENSE DATABASE'!$B$41:$C$65,2,FALSE)","v":{"$error":"#N/A"}},100,{"$f":"VLOOKUP(J742,'EXPENSE DATABASE'!$B$69:$C$168,2,FALSE)","v":{"$error":"#N/A"}},101,{"$f":"VLOOKUP(K742,'EXPENSE DATABASE'!$B$6:$C$35,2,FALSE)","v":{"$error":"#N/A"}},31,{"$f":"VLOOKUP(L742,'EXPENSE DATABASE'!$B$173:$C$176,2,FALSE)","v":{"$error":"#N/A"}},100,0,0,{"$f":"IF(L742=T('EXPENSE DATABASE'!$E$173),O742,0)","v":0},{"$f":"IF(L742=T('EXPENSE DATABASE'!$E$174),O742,0)","v":0},{"$f":"IF(L742=T('EXPENSE DATABASE'!$E$175),O742,0)","v":0},0,729]
[{"$f":"IF(COUNTA(#REF!,#REF!,#REF!,#REF!,#REF!,#REF!,#REF!,#REF!,#REF!,#REF!,#REF!)>0,1,0)","v":1},{"$f":"IF((COUNTA(#REF!)=4),1,-1)*A743","v":-1},{"$nulls":12},{"v":0,"d":"$0.00"},{"v":0,"d":"$0.00"},{"v":0,"d":"$0.00"},0,{"$f":"IF(OR(K743='EXPENSE DATABASE'!$V$187,K743='EXPENSE DATABASE'!$V$188,K743='EXPENSE DATABASE'!$V$189,K743='EXPENSE DATABASE'!$V$190,K743='EXPENSE DATABASE'!$V$191,K743='EXPENSE DATABASE'!$V$192,K743='EXPENSE DATABASE'!$V$193,K743='EXPENSE DATABASE'!$V$194,K743='EXPENSE DATABASE'!$X$187,K743='EXPENSE DATABASE'!$X$188,K743='EXPENSE DATABASE'!$X$189,K743='EXPENSE DATABASE'!$X$190,K743='EXPENSE DATABASE'!$X$191,K743='EXPENSE DATABASE'!$X$192,K743='EXPENSE DATABASE'!$X$193,K743='EXPENSE DATABASE'!$X$194,K743='EXPENSE DATABASE'!$Z$187,K743='EXPENSE DATABASE'!$Z$188,K743='EXPENSE DATABASE'!$Z$189,K743='EXPENSE DATABASE'!$Z$190,K743='EXPENSE DATABASE'!$Z$191,K743='EXPENSE DATABASE'!$Z$192,K743='EXPENSE DATABASE'!$Z$193,K743='EXPENSE DATABASE'!$Z$194),O743,\"\")","v":""},{"$f":"IF(OR(K743='EXPENSE DATABASE'!$T$189,K743='EXPENSE DATABASE'!$T$190,K743='EXPENSE DATABASE'!$T$191),O743,\"\")","v":""},{"$f":"VLOOKUP(I743,'EXPENSE DATABASE'!$B$41:$C$65,2,FALSE)","v":{"$error":"#N/A"}},100,{"$f":"VLOOKUP(J743,'EXPENSE DATABASE'!$B$69:$C$168,2,FALSE)","v":{"$error":"#N/A"}},101,{"$f":"VLOOKUP(K743,'EXPENSE DATABASE'!$B$6:$C$35,2,FALSE)","v":{"$error":"#N/A"}},31,{"$f":"VLOOKUP(L743,'EXPENSE DATABASE'!$B$173:$C$176,2,FALSE)","v":{"$error":"#N/A"}},100,0,0,{"$f":"IF(L743=T('EXPENSE DATABASE'!$E$173),O743,0)","v":0},{"$f":"IF(L743=T('EXPENSE DATABASE'!$E$174),O743,0)","v":0},{"$f":"IF(L743=T('EXPENSE DATABASE'!$E$175),O743,0)","v":0},0,730]
[{"$f":"IF(COUNTA(#REF!,#REF!,#REF!,#REF!,#REF!,#REF!,#REF!,#REF!,#REF!,#REF!,#REF!)>0,1,0)","v":1},{"$f":"IF((COUNTA(#REF!)=4),1,-1)*A744","v":-1},{"$nulls":12},{"v":0,"d":"$0.00"},{"v":0,"d":"$0.00"},{"v":0,"d":"$0.00"},0,{"$f":"IF(OR(K744='EXPENSE DATABASE'!$V$187,K744='EXPENSE DATABASE'!$V$188,K744='EXPENSE DATABASE'!$V$189,K744='EXPENSE DATABASE'!$V$190,K744='EXPENSE DATABASE'!$V$191,K744='EXPENSE DATABASE'!$V$192,K744='EXPENSE DATABASE'!$V$193,K744='EXPENSE DATABASE'!$V$194,K744='EXPENSE DATABASE'!$X$187,K744='EXPENSE DATABASE'!$X$188,K744='EXPENSE DATABASE'!$X$189,K744='EXPENSE DATABASE'!$X$190,K744='EXPENSE DATABASE'!$X$191,K744='EXPENSE DATABASE'!$X$192,K744='EXPENSE DATABASE'!$X$193,K744='EXPENSE DATABASE'!$X$194,K744='EXPENSE DATABASE'!$Z$187,K744='EXPENSE DATABASE'!$Z$188,K744='EXPENSE DATABASE'!$Z$189,K744='EXPENSE DATABASE'!$Z$190,K744='EXPENSE DATABASE'!$Z$191,K744='EXPENSE DATABASE'!$Z$192,K744='EXPENSE DATABASE'!$Z$193,K744='EXPENSE DATABASE'!$Z$194),O744,\"\")","v":""},{"$f":"IF(OR(K744='EXPENSE DATABASE'!$T$189,K744='EXPENSE DATABASE'!$T$190,K744='EXPENSE DATABASE'!$T$191),O744,\"\")","v":""},{"$f":"VLOOKUP(I744,'EXPENSE DATABASE'!$B$41:$C$65,2,FALSE)","v":{"$error":"#N/A"}},100,{"$f":"VLOOKUP(J744,'EXPENSE DATABASE'!$B$69:$C$168,2,FALSE)","v":{"$error":"#N/A"}},101,{"$f":"VLOOKUP(K744,'EXPENSE DATABASE'!$B$6:$C$35,2,FALSE)","v":{"$error":"#N/A"}},31,{"$f":"VLOOKUP(L744,'EXPENSE DATABASE'!$B$173:$C$176,2,FALSE)","v":{"$error":"#N/A"}},100,0,0,{"$f":"IF(L744=T('EXPENSE DATABASE'!$E$173),O744,0)","v":0},{"$f":"IF(L744=T('EXPENSE DATABASE'!$E$174),O744,0)","v":0},{"$f":"IF(L744=T('EXPENSE DATABASE'!$E$175),O744,0)","v":0},0,731]
[{"$f":"IF(COUNTA(#REF!,#REF!,#REF!,#REF!,#REF!,#REF!,#REF!,#REF!,#REF!,#REF!,#REF!)>0,1,0)","v":1},{"$f":"IF((COUNTA(#REF!)=4),1,-1)*A745","v":-1},{"$nulls":12},{"v":0,"d":"$0.00"},{"v":0,"d":"$0.00"},{"v":0,"d":"$0.00"},0,{"$f":"IF(OR(K745='EXPENSE DATABASE'!$V$187,K745='EXPENSE DATABASE'!$V$188,K745='EXPENSE DATABASE'!$V$189,K745='EXPENSE DATABASE'!$V$190,K745='EXPENSE DATABASE'!$V$191,K745='EXPENSE DATABASE'!$V$192,K745='EXPENSE DATABASE'!$V$193,K745='EXPENSE DATABASE'!$V$194,K745='EXPENSE DATABASE'!$X$187,K745='EXPENSE DATABASE'!$X$188,K745='EXPENSE DATABASE'!$X$189,K745='EXPENSE DATABASE'!$X$190,K745='EXPENSE DATABASE'!$X$191,K745='EXPENSE DATABASE'!$X$192,K745='EXPENSE DATABASE'!$X$193,K745='EXPENSE DATABASE'!$X$194,K745='EXPENSE DATABASE'!$Z$187,K745='EXPENSE DATABASE'!$Z$188,K745='EXPENSE DATABASE'!$Z$189,K745='EXPENSE DATABASE'!$Z$190,K745='EXPENSE DATABASE'!$Z$191,K745='EXPENSE DATABASE'!$Z$192,K745='EXPENSE DATABASE'!$Z$193,K745='EXPENSE DATABASE'!$Z$194),O745,\"\")","v":""},{"$f":"IF(OR(K745='EXPENSE DATABASE'!$T$189,K745='EXPENSE DATABASE'!$T$190,K745='EXPENSE DATABASE'!$T$191),O745,\"\")","v":""},{"$f":"VLOOKUP(I745,'EXPENSE DATABASE'!$B$41:$C$65,2,FALSE)","v":{"$error":"#N/A"}},100,{"$f":"VLOOKUP(J745,'EXPENSE DATABASE'!$B$69:$C$168,2,FALSE)","v":{"$error":"#N/A"}},101,{"$f":"VLOOKUP(K745,'EXPENSE DATABASE'!$B$6:$C$35,2,FALSE)","v":{"$error":"#N/A"}},31,{"$f":"VLOOKUP(L745,'EXPENSE DATABASE'!$B$173:$C$176,2,FALSE)","v":{"$error":"#N/A"}},100,0,0,{"$f":"IF(L745=T('EXPENSE DATABASE'!$E$173),O745,0)","v":0},{"$f":"IF(L745=T('EXPENSE DATABASE'!$E$174),O745,0)","v":0},{"$f":"IF(L745=T('EXPENSE DATABASE'!$E$175),O745,0)","v":0},0,732]
[{"$f":"IF(COUNTA(#REF!,#REF!,#REF!,#REF!,#REF!,#REF!,#REF!,#REF!,#REF!,#REF!,#REF!)>0,1,0)","v":1},{"$f":"IF((COUNTA(#REF!)=4),1,-1)*A746","v":-1},{"$nulls":12},{"v":0,"d":"$0.00"},{"v":0,"d":"$0.00"},{"v":0,"d":"$0.00"},0,{"$f":"IF(OR(K746='EXPENSE DATABASE'!$V$187,K746='EXPENSE DATABASE'!$V$188,K746='EXPENSE DATABASE'!$V$189,K746='EXPENSE DATABASE'!$V$190,K746='EXPENSE DATABASE'!$V$191,K746='EXPENSE DATABASE'!$V$192,K746='EXPENSE DATABASE'!$V$193,K746='EXPENSE DATABASE'!$V$194,K746='EXPENSE DATABASE'!$X$187,K746='EXPENSE DATABASE'!$X$188,K746='EXPENSE DATABASE'!$X$189,K746='EXPENSE DATABASE'!$X$190,K746='EXPENSE DATABASE'!$X$191,K746='EXPENSE DATABASE'!$X$192,K746='EXPENSE DATABASE'!$X$193,K746='EXPENSE DATABASE'!$X$194,K746='EXPENSE DATABASE'!$Z$187,K746='EXPENSE DATABASE'!$Z$188,K746='EXPENSE DATABASE'!$Z$189,K746='EXPENSE DATABASE'!$Z$190,K746='EXPENSE DATABASE'!$Z$191,K746='EXPENSE DATABASE'!$Z$192,K746='EXPENSE DATABASE'!$Z$193,K746='EXPENSE DATABASE'!$Z$194),O746,\"\")","v":""},{"$f":"IF(OR(K746='EXPENSE DATABASE'!$T$189,K746='EXPENSE DATABASE'!$T$190,K746='EXPENSE DATABASE'!$T$191),O746,\"\")","v":""},{"$f":"VLOOKUP(I746,'EXPENSE DATABASE'!$B$41:$C$65,2,FALSE)","v":{"$error":"#N/A"}},100,{"$f":"VLOOKUP(J746,'EXPENSE DATABASE'!$B$69:$C$168,2,FALSE)","v":{"$error":"#N/A"}},101,{"$f":"VLOOKUP(K746,'EXPENSE DATABASE'!$B$6:$C$35,2,FALSE)","v":{"$error":"#N/A"}},31,{"$f":"VLOOKUP(L746,'EXPENSE DATABASE'!$B$173:$C$176,2,FALSE)","v":{"$error":"#N/A"}},100,0,0,{"$f":"IF(L746=T('EXPENSE DATABASE'!$E$173),O746,0)","v":0},{"$f":"IF(L746=T('EXPENSE DATABASE'!$E$174),O746,0)","v":0},{"$f":"IF(L746=T('EXPENSE DATABASE'!$E$175),O746,0)","v":0},0,733]
[{"$f":"IF(COUNTA(#REF!,#REF!,#REF!,#REF!,#REF!,#REF!,#REF!,#REF!,#REF!,#REF!,#REF!)>0,1,0)","v":1},{"$f":"IF((COUNTA(#REF!)=4),1,-1)*A747","v":-1},{"$nulls":12},{"v":0,"d":"$0.00"},{"v":0,"d":"$0.00"},{"v":0,"d":"$0.00"},0,{"$f":"IF(OR(K747='EXPENSE DATABASE'!$V$187,K747='EXPENSE DATABASE'!$V$188,K747='EXPENSE DATABASE'!$V$189,K747='EXPENSE DATABASE'!$V$190,K747='EXPENSE DATABASE'!$V$191,K747='EXPENSE DATABASE'!$V$192,K747='EXPENSE DATABASE'!$V$193,K747='EXPENSE DATABASE'!$V$194,K747='EXPENSE DATABASE'!$X$187,K747='EXPENSE DATABASE'!$X$188,K747='EXPENSE DATABASE'!$X$189,K747='EXPENSE DATABASE'!$X$190,K747='EXPENSE DATABASE'!$X$191,K747='EXPENSE DATABASE'!$X$192,K747='EXPENSE DATABASE'!$X$193,K747='EXPENSE DATABASE'!$X$194,K747='EXPENSE DATABASE'!$Z$187,K747='EXPENSE DATABASE'!$Z$188,K747='EXPENSE DATABASE'!$Z$189,K747='EXPENSE DATABASE'!$Z$190,K747='EXPENSE DATABASE'!$Z$191,K747='EXPENSE DATABASE'!$Z$192,K747='EXPENSE DATABASE'!$Z$193,K747='EXPENSE DATABASE'!$Z$194),O747,\"\")","v":""},{"$f":"IF(OR(K747='EXPENSE DATABASE'!$T$189,K747='EXPENSE DATABASE'!$T$190,K747='EXPENSE DATABASE'!$T$191),O747,\"\")","v":""},{"$f":"VLOOKUP(I747,'EXPENSE DATABASE'!$B$41:$C$65,2,FALSE)","v":{"$error":"#N/A"}},100,{"$f":"VLOOKUP(J747,'EXPENSE DATABASE'!$B$69:$C$168,2,FALSE)","v":{"$error":"#N/A"}},101,{"$f":"VLOOKUP(K747,'EXPENSE DATABASE'!$B$6:$C$35,2,FALSE)","v":{"$error":"#N/A"}},31,{"$f":"VLOOKUP(L747,'EXPENSE DATABASE'!$B$173:$C$176,2,FALSE)","v":{"$error":"#N/A"}},100,0,0,{"$f":"IF(L747=T('EXPENSE DATABASE'!$E$173),O747,0)","v":0},{"$f":"IF(L747=T('EXPENSE DATABASE'!$E$174),O747,0)","v":0},{"$f":"IF(L747=T('EXPENSE DATABASE'!$E$175),O747,0)","v":0},0,734]
[{"$f":"IF(COUNTA(#REF!,#REF!,#REF!,#REF!,#REF!,#REF!,#REF!,#REF!,#REF!,#REF!,#REF!)>0,1,0)","v":1},{"$f":"IF((COUNTA(#REF!)=4),1,-1)*A748","v":-1},{"$nulls":12},{"v":0,"d":"$0.00"},{"v":0,"d":"$0.00"},{"v":0,"d":"$0.00"},0,{"$f":"IF(OR(K748='EXPENSE DATABASE'!$V$187,K748='EXPENSE DATABASE'!$V$188,K748='EXPENSE DATABASE'!$V$189,K748='EXPENSE DATABASE'!$V$190,K748='EXPENSE DATABASE'!$V$191,K748='EXPENSE DATABASE'!$V$192,K748='EXPENSE DATABASE'!$V$193,K748='EXPENSE DATABASE'!$V$194,K748='EXPENSE DATABASE'!$X$187,K748='EXPENSE DATABASE'!$X$188,K748='EXPENSE DATABASE'!$X$189,K748='EXPENSE DATABASE'!$X$190,K748='EXPENSE DATABASE'!$X$191,K748='EXPENSE DATABASE'!$X$192,K748='EXPENSE DATABASE'!$X$193,K748='EXPENSE DATABASE'!$X$194,K748='EXPENSE DATABASE'!$Z$187,K748='EXPENSE DATABASE'!$Z$188,K748='EXPENSE DATABASE'!$Z$189,K748='EXPENSE DATABASE'!$Z$190,K748='EXPENSE DATABASE'!$Z$191,K748='EXPENSE DATABASE'!$Z$192,K748='EXPENSE DATABASE'!$Z$193,K748='EXPENSE DATABASE'!$Z$194),O748,\"\")","v":""},{"$f":"IF(OR(K748='EXPENSE DATABASE'!$T$189,K748='EXPENSE DATABASE'!$T$190,K748='EXPENSE DATABASE'!$T$191),O748,\"\")","v":""},{"$f":"VLOOKUP(I748,'EXPENSE DATABASE'!$B$41:$C$65,2,FALSE)","v":{"$error":"#N/A"}},100,{"$f":"VLOOKUP(J748,'EXPENSE DATABASE'!$B$69:$C$168,2,FALSE)","v":{"$error":"#N/A"}},101,{"$f":"VLOOKUP(K748,'EXPENSE DATABASE'!$B$6:$C$35,2,FALSE)","v":{"$error":"#N/A"}},31,{"$f":"VLOOKUP(L748,'EXPENSE DATABASE'!$B$173:$C$176,2,FALSE)","v":{"$error":"#N/A"}},100,0,0,{"$f":"IF(L748=T('EXPENSE DATABASE'!$E$173),O748,0)","v":0},{"$f":"IF(L748=T('EXPENSE DATABASE'!$E$174),O748,0)","v":0},{"$f":"IF(L748=T('EXPENSE DATABASE'!$E$175),O748,0)","v":0},0,735]
[{"$f":"IF(COUNTA(#REF!,#REF!,#REF!,#REF!,#REF!,#REF!,#REF!,#REF!,#REF!,#REF!,#REF!)>0,1,0)","v":1},{"$f":"IF((COUNTA(#REF!)=4),1,-1)*A749","v":-1},{"$nulls":12},{"v":0,"d":"$0.00"},{"v":0,"d":"$0.00"},{"v":0,"d":"$0.00"},0,{"$f":"IF(OR(K749='EXPENSE DATABASE'!$V$187,K749='EXPENSE DATABASE'!$V$188,K749='EXPENSE DATABASE'!$V$189,K749='EXPENSE DATABASE'!$V$190,K749='EXPENSE DATABASE'!$V$191,K749='EXPENSE DATABASE'!$V$192,K749='EXPENSE DATABASE'!$V$193,K749='EXPENSE DATABASE'!$V$194,K749='EXPENSE DATABASE'!$X$187,K749='EXPENSE DATABASE'!$X$188,K749='EXPENSE DATABASE'!$X$189,K749='EXPENSE DATABASE'!$X$190,K749='EXPENSE DATABASE'!$X$191,K749='EXPENSE DATABASE'!$X$192,K749='EXPENSE DATABASE'!$X$193,K749='EXPENSE DATABASE'!$X$194,K749='EXPENSE DATABASE'!$Z$187,K749='EXPENSE DATABASE'!$Z$188,K749='EXPENSE DATABASE'!$Z$189,K749='EXPENSE DATABASE'!$Z$190,K749='EXPENSE DATABASE'!$Z$191,K749='EXPENSE DATABASE'!$Z$192,K749='EXPENSE DATABASE'!$Z$193,K749='EXPENSE DATABASE'!$Z$194),O749,\"\")","v":""},{"$f":"IF(OR(K749='EXPENSE DATABASE'!$T$189,K749='EXPENSE DATABASE'!$T$190,K749='EXPENSE DATABASE'!$T$191),O749,\"\")","v":""},{"$f":"VLOOKUP(I749,'EXPENSE DATABASE'!$B$41:$C$65,2,FALSE)","v":{"$error":"#N/A"}},100,{"$f":"VLOOKUP(J749,'EXPENSE DATABASE'!$B$69:$C$168,2,FALSE)","v":{"$error":"#N/A"}},101,{"$f":"VLOOKUP(K749,'EXPENSE DATABASE'!$B$6:$C$35,2,FALSE)","v":{"$error":"#N/A"}},31,{"$f":"VLOOKUP(L749,'EXPENSE DATABASE'!$B$173:$C$176,2,FALSE)","v":{"$error":"#N/A"}},100,0,0,{"$f":"IF(L749=T('EXPENSE DATABASE'!$E$173),O749,0)","v":0},{"$f":"IF(L749=T('EXPENSE DATABASE'!$E$174),O749,0)","v":0},{"$f":"IF(L749=T('EXPENSE DATABASE'!$E$175),O749,0)","v":0},0,736]
[{"$f":"IF(COUNTA(#REF!,#REF!,#REF!,#REF!,#REF!,#REF!,#REF!,#REF!,#REF!,#REF!,#REF!)>0,1,0)","v":1},{"$f":"IF((COUNTA(#REF!)=4),1,-1)*A750","v":-1},{"$nulls":12},{"v":0,"d":"$0.00"},{"v":0,"d":"$0.00"},{"v":0,"d":"$0.00"},0,{"$f":"IF(OR(K750='EXPENSE DATABASE'!$V$187,K750='EXPENSE DATABASE'!$V$188,K750='EXPENSE DATABASE'!$V$189,K750='EXPENSE DATABASE'!$V$190,K750='EXPENSE DATABASE'!$V$191,K750='EXPENSE DATABASE'!$V$192,K750='EXPENSE DATABASE'!$V$193,K750='EXPENSE DATABASE'!$V$194,K750='EXPENSE DATABASE'!$X$187,K750='EXPENSE DATABASE'!$X$188,K750='EXPENSE DATABASE'!$X$189,K750='EXPENSE DATABASE'!$X$190,K750='EXPENSE DATABASE'!$X$191,K750='EXPENSE DATABASE'!$X$192,K750='EXPENSE DATABASE'!$X$193,K750='EXPENSE DATABASE'!$X$194,K750='EXPENSE DATABASE'!$Z$187,K750='EXPENSE DATABASE'!$Z$188,K750='EXPENSE DATABASE'!$Z$189,K750='EXPENSE DATABASE'!$Z$190,K750='EXPENSE DATABASE'!$Z$191,K750='EXPENSE DATABASE'!$Z$192,K750='EXPENSE DATABASE'!$Z$193,K750='EXPENSE DATABASE'!$Z$194),O750,\"\")","v":""},{"$f":"IF(OR(K750='EXPENSE DATABASE'!$T$189,K750='EXPENSE DATABASE'!$T$190,K750='EXPENSE DATABASE'!$T$191),O750,\"\")","v":""},{"$f":"VLOOKUP(I750,'EXPENSE DATABASE'!$B$41:$C$65,2,FALSE)","v":{"$error":"#N/A"}},100,{"$f":"VLOOKUP(J750,'EXPENSE DATABASE'!$B$69:$C$168,2,FALSE)","v":{"$error":"#N/A"}},101,{"$f":"VLOOKUP(K750,'EXPENSE DATABASE'!$B$6:$C$35,2,FALSE)","v":{"$error":"#N/A"}},31,{"$f":"VLOOKUP(L750,'EXPENSE DATABASE'!$B$173:$C$176,2,FALSE)","v":{"$error":"#N/A"}},100,0,0,{"$f":"IF(L750=T('EXPENSE DATABASE'!$E$173),O750,0)","v":0},{"$f":"IF(L750=T('EXPENSE DATABASE'!$E$174),O750,0)","v":0},{"$f":"IF(L750=T('EXPENSE DATABASE'!$E$175),O750,0)","v":0},0,737]
[{"$f":"IF(COUNTA(#REF!,#REF!,#REF!,#REF!,#REF!,#REF!,#REF!,#REF!,#REF!,#REF!,#REF!)>0,1,0)","v":1},{"$f":"IF((COUNTA(#REF!)=4),1,-1)*A751","v":-1},{"$nulls":12},{"v":0,"d":"$0.00"},{"v":0,"d":"$0.00"},{"v":0,"d":"$0.00"},0,{"$f":"IF(OR(K751='EXPENSE DATABASE'!$V$187,K751='EXPENSE DATABASE'!$V$188,K751='EXPENSE DATABASE'!$V$189,K751='EXPENSE DATABASE'!$V$190,K751='EXPENSE DATABASE'!$V$191,K751='EXPENSE DATABASE'!$V$192,K751='EXPENSE DATABASE'!$V$193,K751='EXPENSE DATABASE'!$V$194,K751='EXPENSE DATABASE'!$X$187,K751='EXPENSE DATABASE'!$X$188,K751='EXPENSE DATABASE'!$X$189,K751='EXPENSE DATABASE'!$X$190,K751='EXPENSE DATABASE'!$X$191,K751='EXPENSE DATABASE'!$X$192,K751='EXPENSE DATABASE'!$X$193,K751='EXPENSE DATABASE'!$X$194,K751='EXPENSE DATABASE'!$Z$187,K751='EXPENSE DATABASE'!$Z$188,K751='EXPENSE DATABASE'!$Z$189,K751='EXPENSE DATABASE'!$Z$190,K751='EXPENSE DATABASE'!$Z$191,K751='EXPENSE DATABASE'!$Z$192,K751='EXPENSE DATABASE'!$Z$193,K751='EXPENSE DATABASE'!$Z$194),O751,\"\")","v":""},{"$f":"IF(OR(K751='EXPENSE DATABASE'!$T$189,K751='EXPENSE DATABASE'!$T$190,K751='EXPENSE DATABASE'!$T$191),O751,\"\")","v":""},{"$f":"VLOOKUP(I751,'EXPENSE DATABASE'!$B$41:$C$65,2,FALSE)","v":{"$error":"#N/A"}},100,{"$f":"VLOOKUP(J751,'EXPENSE DATABASE'!$B$69:$C$168,2,FALSE)","v":{"$error":"#N/A"}},101,{"$f":"VLOOKUP(K751,'EXPENSE DATABASE'!$B$6:$C$35,2,FALSE)","v":{"$error":"#N/A"}},31,{"$f":"VLOOKUP(L751,'EXPENSE DATABASE'!$B$173:$C$176,2,FALSE)","v":{"$error":"#N/A"}},100,0,0,{"$f":"IF(L751=T('EXPENSE DATABASE'!$E$173),O751,0)","v":0},{"$f":"IF(L751=T('EXPENSE DATABASE'!$E$174),O751,0)","v":0},{"$f":"IF(L751=T('EXPENSE DATABASE'!$E$175),O751,0)","v":0},0,738]
[{"$f":"IF(COUNTA(#REF!,#REF!,#REF!,#REF!,#REF!,#REF!,#REF!,#REF!,#REF!,#REF!,#REF!)>0,1,0)","v":1},{"$f":"IF((COUNTA(#REF!)=4),1,-1)*A752","v":-1},{"$nulls":12},{"v":0,"d":"$0.00"},{"v":0,"d":"$0.00"},{"v":0,"d":"$0.00"},0,{"$f":"IF(OR(K752='EXPENSE DATABASE'!$V$187,K752='EXPENSE DATABASE'!$V$188,K752='EXPENSE DATABASE'!$V$189,K752='EXPENSE DATABASE'!$V$190,K752='EXPENSE DATABASE'!$V$191,K752='EXPENSE DATABASE'!$V$192,K752='EXPENSE DATABASE'!$V$193,K752='EXPENSE DATABASE'!$V$194,K752='EXPENSE DATABASE'!$X$187,K752='EXPENSE DATABASE'!$X$188,K752='EXPENSE DATABASE'!$X$189,K752='EXPENSE DATABASE'!$X$190,K752='EXPENSE DATABASE'!$X$191,K752='EXPENSE DATABASE'!$X$192,K752='EXPENSE DATABASE'!$X$193,K752='EXPENSE DATABASE'!$X$194,K752='EXPENSE DATABASE'!$Z$187,K752='EXPENSE DATABASE'!$Z$188,K752='EXPENSE DATABASE'!$Z$189,K752='EXPENSE DATABASE'!$Z$190,K752='EXPENSE DATABASE'!$Z$191,K752='EXPENSE DATABASE'!$Z$192,K752='EXPENSE DATABASE'!$Z$193,K752='EXPENSE DATABASE'!$Z$194),O752,\"\")","v":""},{"$f":"IF(OR(K752='EXPENSE DATABASE'!$T$189,K752='EXPENSE DATABASE'!$T$190,K752='EXPENSE DATABASE'!$T$191),O752,\"\")","v":""},{"$f":"VLOOKUP(I752,'EXPENSE DATABASE'!$B$41:$C$65,2,FALSE)","v":{"$error":"#N/A"}},100,{"$f":"VLOOKUP(J752,'EXPENSE DATABASE'!$B$69:$C$168,2,FALSE)","v":{"$error":"#N/A"}},101,{"$f":"VLOOKUP(K752,'EXPENSE DATABASE'!$B$6:$C$35,2,FALSE)","v":{"$error":"#N/A"}},31,{"$f":"VLOOKUP(L752,'EXPENSE DATABASE'!$B$173:$C$176,2,FALSE)","v":{"$error":"#N/A"}},100,0,0,{"$f":"IF(L752=T('EXPENSE DATABASE'!$E$173),O752,0)","v":0},{"$f":"IF(L752=T('EXPENSE DATABASE'!$E$174),O752,0)","v":0},{"$f":"IF(L752=T('EXPENSE DATABASE'!$E$175),O752,0)","v":0},0,739]
[{"$f":"IF(COUNTA(#REF!,#REF!,#REF!,#REF!,#REF!,#REF!,#REF!,#REF!,#REF!,#REF!,#REF!)>0,1,0)","v":1},{"$f":"IF((COUNTA(#REF!)=4),1,-1)*A753","v":-1},{"$nulls":12},{"v":0,"d":"$0.00"},{"v":0,"d":"$0.00"},{"v":0,"d":"$0.00"},0,{"$f":"IF(OR(K753='EXPENSE DATABASE'!$V$187,K753='EXPENSE DATABASE'!$V$188,K753='EXPENSE DATABASE'!$V$189,K753='EXPENSE DATABASE'!$V$190,K753='EXPENSE DATABASE'!$V$191,K753='EXPENSE DATABASE'!$V$192,K753='EXPENSE DATABASE'!$V$193,K753='EXPENSE DATABASE'!$V$194,K753='EXPENSE DATABASE'!$X$187,K753='EXPENSE DATABASE'!$X$188,K753='EXPENSE DATABASE'!$X$189,K753='EXPENSE DATABASE'!$X$190,K753='EXPENSE DATABASE'!$X$191,K753='EXPENSE DATABASE'!$X$192,K753='EXPENSE DATABASE'!$X$193,K753='EXPENSE DATABASE'!$X$194,K753='EXPENSE DATABASE'!$Z$187,K753='EXPENSE DATABASE'!$Z$188,K753='EXPENSE DATABASE'!$Z$189,K753='EXPENSE DATABASE'!$Z$190,K753='EXPENSE DATABASE'!$Z$191,K753='EXPENSE DATABASE'!$Z$192,K753='EXPENSE DATABASE'!$Z$193,K753='EXPENSE DATABASE'!$Z$194),O753,\"\")","v":""},{"$f":"IF(OR(K753='EXPENSE DATABASE'!$T$189,K753='EXPENSE DATABASE'!$T$190,K753='EXPENSE DATABASE'!$T$191),O753,\"\")","v":""},{"$f":"VLOOKUP(I753,'EXPENSE DATABASE'!$B$41:$C$65,2,FALSE)","v":{"$error":"#N/A"}},100,{"$f":"VLOOKUP(J753,'EXPENSE DATABASE'!$B$69:$C$168,2,FALSE)","v":{"$error":"#N/A"}},101,{"$f":"VLOOKUP(K753,'EXPENSE DATABASE'!$B$6:$C$35,2,FALSE)","v":{"$error":"#N/A"}},31,{"$f":"VLOOKUP(L753,'EXPENSE DATABASE'!$B$173:$C$176,2,FALSE)","v":{"$error":"#N/A"}},100,0,0,{"$f":"IF(L753=T('EXPENSE DATABASE'!$E$173),O753,0)","v":0},{"$f":"IF(L753=T('EXPENSE DATABASE'!$E$174),O753,0)","v":0},{"$f":"IF(L753=T('EXPENSE DATABASE'!$E$175),O753,0)","v":0},0,740]
[{"$f":"IF(COUNTA(#REF!,#REF!,#REF!,#REF!,#REF!,#REF!,#REF!,#REF!,#REF!,#REF!,#REF!)>0,1,0)","v":1},{"$f":"IF((COUNTA(#REF!)=4),1,-1)*A754","v":-1},{"$nulls":12},{"v":0,"d":"$0.00"},{"v":0,"d":"$0.00"},{"v":0,"d":"$0.00"},0,{"$f":"IF(OR(K754='EXPENSE DATABASE'!$V$187,K754='EXPENSE DATABASE'!$V$188,K754='EXPENSE DATABASE'!$V$189,K754='EXPENSE DATABASE'!$V$190,K754='EXPENSE DATABASE'!$V$191,K754='EXPENSE DATABASE'!$V$192,K754='EXPENSE DATABASE'!$V$193,K754='EXPENSE DATABASE'!$V$194,K754='EXPENSE DATABASE'!$X$187,K754='EXPENSE DATABASE'!$X$188,K754='EXPENSE DATABASE'!$X$189,K754='EXPENSE DATABASE'!$X$190,K754='EXPENSE DATABASE'!$X$191,K754='EXPENSE DATABASE'!$X$192,K754='EXPENSE DATABASE'!$X$193,K754='EXPENSE DATABASE'!$X$194,K754='EXPENSE DATABASE'!$Z$187,K754='EXPENSE DATABASE'!$Z$188,K754='EXPENSE DATABASE'!$Z$189,K754='EXPENSE DATABASE'!$Z$190,K754='EXPENSE DATABASE'!$Z$191,K754='EXPENSE DATABASE'!$Z$192,K754='EXPENSE DATABASE'!$Z$193,K754='EXPENSE DATABASE'!$Z$194),O754,\"\")","v":""},{"$f":"IF(OR(K754='EXPENSE DATABASE'!$T$189,K754='EXPENSE DATABASE'!$T$190,K754='EXPENSE DATABASE'!$T$191),O754,\"\")","v":""},{"$f":"VLOOKUP(I754,'EXPENSE DATABASE'!$B$41:$C$65,2,FALSE)","v":{"$error":"#N/A"}},100,{"$f":"VLOOKUP(J754,'EXPENSE DATABASE'!$B$69:$C$168,2,FALSE)","v":{"$error":"#N/A"}},101,{"$f":"VLOOKUP(K754,'EXPENSE DATABASE'!$B$6:$C$35,2,FALSE)","v":{"$error":"#N/A"}},31,{"$f":"VLOOKUP(L754,'EXPENSE DATABASE'!$B$173:$C$176,2,FALSE)","v":{"$error":"#N/A"}},100,0,0,{"$f":"IF(L754=T('EXPENSE DATABASE'!$E$173),O754,0)","v":0},{"$f":"IF(L754=T('EXPENSE DATABASE'!$E$174),O754,0)","v":0},{"$f":"IF(L754=T('EXPENSE DATABASE'!$E$175),O754,0)","v":0},0,741]
[{"$f":"IF(COUNTA(#REF!,#REF!,#REF!,#REF!,#REF!,#REF!,#REF!,#REF!,#REF!,#REF!,#REF!)>0,1,0)","v":1},{"$f":"IF((COUNTA(#REF!)=4),1,-1)*A755","v":-1},{"$nulls":12},{"v":0,"d":"$0.00"},{"v":0,"d":"$0.00"},{"v":0,"d":"$0.00"},0,{"$f":"IF(OR(K755='EXPENSE DATABASE'!$V$187,K755='EXPENSE DATABASE'!$V$188,K755='EXPENSE DATABASE'!$V$189,K755='EXPENSE DATABASE'!$V$190,K755='EXPENSE DATABASE'!$V$191,K755='EXPENSE DATABASE'!$V$192,K755='EXPENSE DATABASE'!$V$193,K755='EXPENSE DATABASE'!$V$194,K755='EXPENSE DATABASE'!$X$187,K755='EXPENSE DATABASE'!$X$188,K755='EXPENSE DATABASE'!$X$189,K755='EXPENSE DATABASE'!$X$190,K755='EXPENSE DATABASE'!$X$191,K755='EXPENSE DATABASE'!$X$192,K755='EXPENSE DATABASE'!$X$193,K755='EXPENSE DATABASE'!$X$194,K755='EXPENSE DATABASE'!$Z$187,K755='EXPENSE DATABASE'!$Z$188,K755='EXPENSE DATABASE'!$Z$189,K755='EXPENSE DATABASE'!$Z$190,K755='EXPENSE DATABASE'!$Z$191,K755='EXPENSE DATABASE'!$Z$192,K755='EXPENSE DATABASE'!$Z$193,K755='EXPENSE DATABASE'!$Z$194),O755,\"\")","v":""},{"$f":"IF(OR(K755='EXPENSE DATABASE'!$T$189,K755='EXPENSE DATABASE'!$T$190,K755='EXPENSE DATABASE'!$T$191),O755,\"\")","v":""},{"$f":"VLOOKUP(I755,'EXPENSE DATABASE'!$B$41:$C$65,2,FALSE)","v":{"$error":"#N/A"}},100,{"$f":"VLOOKUP(J755,'EXPENSE DATABASE'!$B$69:$C$168,2,FALSE)","v":{"$error":"#N/A"}},101,{"$f":"VLOOKUP(K755,'EXPENSE DATABASE'!$B$6:$C$35,2,FALSE)","v":{"$error":"#N/A"}},31,{"$f":"VLOOKUP(L755,'EXPENSE DATABASE'!$B$173:$C$176,2,FALSE)","v":{"$error":"#N/A"}},100,0,0,{"$f":"IF(L755=T('EXPENSE DATABASE'!$E$173),O755,0)","v":0},{"$f":"IF(L755=T('EXPENSE DATABASE'!$E$174),O755,0)","v":0},{"$f":"IF(L755=T('EXPENSE DATABASE'!$E$175),O755,0)","v":0},0,742]
[{"$f":"IF(COUNTA(#REF!,#REF!,#REF!,#REF!,#REF!,#REF!,#REF!,#REF!,#REF!,#REF!,#REF!)>0,1,0)","v":1},{"$f":"IF((COUNTA(#REF!)=4),1,-1)*A756","v":-1},{"$nulls":12},{"v":0,"d":"$0.00"},{"v":0,"d":"$0.00"},{"v":0,"d":"$0.00"},0,{"$f":"IF(OR(K756='EXPENSE DATABASE'!$V$187,K756='EXPENSE DATABASE'!$V$188,K756='EXPENSE DATABASE'!$V$189,K756='EXPENSE DATABASE'!$V$190,K756='EXPENSE DATABASE'!$V$191,K756='EXPENSE DATABASE'!$V$192,K756='EXPENSE DATABASE'!$V$193,K756='EXPENSE DATABASE'!$V$194,K756='EXPENSE DATABASE'!$X$187,K756='EXPENSE DATABASE'!$X$188,K756='EXPENSE DATABASE'!$X$189,K756='EXPENSE DATABASE'!$X$190,K756='EXPENSE DATABASE'!$X$191,K756='EXPENSE DATABASE'!$X$192,K756='EXPENSE DATABASE'!$X$193,K756='EXPENSE DATABASE'!$X$194,K756='EXPENSE DATABASE'!$Z$187,K756='EXPENSE DATABASE'!$Z$188,K756='EXPENSE DATABASE'!$Z$189,K756='EXPENSE DATABASE'!$Z$190,K756='EXPENSE DATABASE'!$Z$191,K756='EXPENSE DATABASE'!$Z$192,K756='EXPENSE DATABASE'!$Z$193,K756='EXPENSE DATABASE'!$Z$194),O756,\"\")","v":""},{"$f":"IF(OR(K756='EXPENSE DATABASE'!$T$189,K756='EXPENSE DATABASE'!$T$190,K756='EXPENSE DATABASE'!$T$191),O756,\"\")","v":""},{"$f":"VLOOKUP(I756,'EXPENSE DATABASE'!$B$41:$C$65,2,FALSE)","v":{"$error":"#N/A"}},100,{"$f":"VLOOKUP(J756,'EXPENSE DATABASE'!$B$69:$C$168,2,FALSE)","v":{"$error":"#N/A"}},101,{"$f":"VLOOKUP(K756,'EXPENSE DATABASE'!$B$6:$C$35,2,FALSE)","v":{"$error":"#N/A"}},31,{"$f":"VLOOKUP(L756,'EXPENSE DATABASE'!$B$173:$C$176,2,FALSE)","v":{"$error":"#N/A"}},100,0,0,{"$f":"IF(L756=T('EXPENSE DATABASE'!$E$173),O756,0)","v":0},{"$f":"IF(L756=T('EXPENSE DATABASE'!$E$174),O756,0)","v":0},{"$f":"IF(L756=T('EXPENSE DATABASE'!$E$175),O756,0)","v":0},0,743]
[{"$f":"IF(COUNTA(#REF!,#REF!,#REF!,#REF!,#REF!,#REF!,#REF!,#REF!,#REF!,#REF!,#REF!)>0,1,0)","v":1},{"$f":"IF((COUNTA(#REF!)=4),1,-1)*A757","v":-1},{"$nulls":12},{"v":0,"d":"$0.00"},{"v":0,"d":"$0.00"},{"v":0,"d":"$0.00"},0,{"$f":"IF(OR(K757='EXPENSE DATABASE'!$V$187,K757='EXPENSE DATABASE'!$V$188,K757='EXPENSE DATABASE'!$V$189,K757='EXPENSE DATABASE'!$V$190,K757='EXPENSE DATABASE'!$V$191,K757='EXPENSE DATABASE'!$V$192,K757='EXPENSE DATABASE'!$V$193,K757='EXPENSE DATABASE'!$V$194,K757='EXPENSE DATABASE'!$X$187,K757='EXPENSE DATABASE'!$X$188,K757='EXPENSE DATABASE'!$X$189,K757='EXPENSE DATABASE'!$X$190,K757='EXPENSE DATABASE'!$X$191,K757='EXPENSE DATABASE'!$X$192,K757='EXPENSE DATABASE'!$X$193,K757='EXPENSE DATABASE'!$X$194,K757='EXPENSE DATABASE'!$Z$187,K757='EXPENSE DATABASE'!$Z$188,K757='EXPENSE DATABASE'!$Z$189,K757='EXPENSE DATABASE'!$Z$190,K757='EXPENSE DATABASE'!$Z$191,K757='EXPENSE DATABASE'!$Z$192,K757='EXPENSE DATABASE'!$Z$193,K757='EXPENSE DATABASE'!$Z$194),O757,\"\")","v":""},{"$f":"IF(OR(K757='EXPENSE DATABASE'!$T$189,K757='EXPENSE DATABASE'!$T$190,K757='EXPENSE DATABASE'!$T$191),O757,\"\")","v":""},{"$f":"VLOOKUP(I757,'EXPENSE DATABASE'!$B$41:$C$65,2,FALSE)","v":{"$error":"#N/A"}},100,{"$f":"VLOOKUP(J757,'EXPENSE DATABASE'!$B$69:$C$168,2,FALSE)","v":{"$error":"#N/A"}},101,{"$f":"VLOOKUP(K757,'EXPENSE DATABASE'!$B$6:$C$35,2,FALSE)","v":{"$error":"#N/A"}},31,{"$f":"VLOOKUP(L757,'EXPENSE DATABASE'!$B$173:$C$176,2,FALSE)","v":{"$error":"#N/A"}},100,0,0,{"$f":"IF(L757=T('EXPENSE DATABASE'!$E$173),O757,0)","v":0},{"$f":"IF(L757=T('EXPENSE DATABASE'!$E$174),O757,0)","v":0},{"$f":"IF(L757=T('EXPENSE DATABASE'!$E$175),O757,0)","v":0},0,744]
[{"$f":"IF(COUNTA(#REF!,#REF!,#REF!,#REF!,#REF!,#REF!,#REF!,#REF!,#REF!,#REF!,#REF!)>0,1,0)","v":1},{"$f":"IF((COUNTA(#REF!)=4),1,-1)*A758","v":-1},{"$nulls":12},{"v":0,"d":"$0.00"},{"v":0,"d":"$0.00"},{"v":0,"d":"$0.00"},0,{"$f":"IF(OR(K758='EXPENSE DATABASE'!$V$187,K758='EXPENSE DATABASE'!$V$188,K758='EXPENSE DATABASE'!$V$189,K758='EXPENSE DATABASE'!$V$190,K758='EXPENSE DATABASE'!$V$191,K758='EXPENSE DATABASE'!$V$192,K758='EXPENSE DATABASE'!$V$193,K758='EXPENSE DATABASE'!$V$194,K758='EXPENSE DATABASE'!$X$187,K758='EXPENSE DATABASE'!$X$188,K758='EXPENSE DATABASE'!$X$189,K758='EXPENSE DATABASE'!$X$190,K758='EXPENSE DATABASE'!$X$191,K758='EXPENSE DATABASE'!$X$192,K758='EXPENSE DATABASE'!$X$193,K758='EXPENSE DATABASE'!$X$194,K758='EXPENSE DATABASE'!$Z$187,K758='EXPENSE DATABASE'!$Z$188,K758='EXPENSE DATABASE'!$Z$189,K758='EXPENSE DATABASE'!$Z$190,K758='EXPENSE DATABASE'!$Z$191,K758='EXPENSE DATABASE'!$Z$192,K758='EXPENSE DATABASE'!$Z$193,K758='EXPENSE DATABASE'!$Z$194),O758,\"\")","v":""},{"$f":"IF(OR(K758='EXPENSE DATABASE'!$T$189,K758='EXPENSE DATABASE'!$T$190,K758='EXPENSE DATABASE'!$T$191),O758,\"\")","v":""},{"$f":"VLOOKUP(I758,'EXPENSE DATABASE'!$B$41:$C$65,2,FALSE)","v":{"$error":"#N/A"}},100,{"$f":"VLOOKUP(J758,'EXPENSE DATABASE'!$B$69:$C$168,2,FALSE)","v":{"$error":"#N/A"}},101,{"$f":"VLOOKUP(K758,'EXPENSE DATABASE'!$B$6:$C$35,2,FALSE)","v":{"$error":"#N/A"}},31,{"$f":"VLOOKUP(L758,'EXPENSE DATABASE'!$B$173:$C$176,2,FALSE)","v":{"$error":"#N/A"}},100,0,0,{"$f":"IF(L758=T('EXPENSE DATABASE'!$E$173),O758,0)","v":0},{"$f":"IF(L758=T('EXPENSE DATABASE'!$E$174),O758,0)","v":0},{"$f":"IF(L758=T('EXPENSE DATABASE'!$E$175),O758,0)","v":0},0,745]
[{"$f":"IF(COUNTA(#REF!,#REF!,#REF!,#REF!,#REF!,#REF!,#REF!,#REF!,#REF!,#REF!,#REF!)>0,1,0)","v":1},{"$f":"IF((COUNTA(#REF!)=4),1,-1)*A759","v":-1},{"$nulls":12},{"v":0,"d":"$0.00"},{"v":0,"d":"$0.00"},{"v":0,"d":"$0.00"},0,{"$f":"IF(OR(K759='EXPENSE DATABASE'!$V$187,K759='EXPENSE DATABASE'!$V$188,K759='EXPENSE DATABASE'!$V$189,K759='EXPENSE DATABASE'!$V$190,K759='EXPENSE DATABASE'!$V$191,K759='EXPENSE DATABASE'!$V$192,K759='EXPENSE DATABASE'!$V$193,K759='EXPENSE DATABASE'!$V$194,K759='EXPENSE DATABASE'!$X$187,K759='EXPENSE DATABASE'!$X$188,K759='EXPENSE DATABASE'!$X$189,K759='EXPENSE DATABASE'!$X$190,K759='EXPENSE DATABASE'!$X$191,K759='EXPENSE DATABASE'!$X$192,K759='EXPENSE DATABASE'!$X$193,K759='EXPENSE DATABASE'!$X$194,K759='EXPENSE DATABASE'!$Z$187,K759='EXPENSE DATABASE'!$Z$188,K759='EXPENSE DATABASE'!$Z$189,K759='EXPENSE DATABASE'!$Z$190,K759='EXPENSE DATABASE'!$Z$191,K759='EXPENSE DATABASE'!$Z$192,K759='EXPENSE DATABASE'!$Z$193,K759='EXPENSE DATABASE'!$Z$194),O759,\"\")","v":""},{"$f":"IF(OR(K759='EXPENSE DATABASE'!$T$189,K759='EXPENSE DATABASE'!$T$190,K759='EXPENSE DATABASE'!$T$191),O759,\"\")","v":""},{"$f":"VLOOKUP(I759,'EXPENSE DATABASE'!$B$41:$C$65,2,FALSE)","v":{"$error":"#N/A"}},100,{"$f":"VLOOKUP(J759,'EXPENSE DATABASE'!$B$69:$C$168,2,FALSE)","v":{"$error":"#N/A"}},101,{"$f":"VLOOKUP(K759,'EXPENSE DATABASE'!$B$6:$C$35,2,FALSE)","v":{"$error":"#N/A"}},31,{"$f":"VLOOKUP(L759,'EXPENSE DATABASE'!$B$173:$C$176,2,FALSE)","v":{"$error":"#N/A"}},100,0,0,{"$f":"IF(L759=T('EXPENSE DATABASE'!$E$173),O759,0)","v":0},{"$f":"IF(L759=T('EXPENSE DATABASE'!$E$174),O759,0)","v":0},{"$f":"IF(L759=T('EXPENSE DATABASE'!$E$175),O759,0)","v":0},0,746]
[{"$f":"IF(COUNTA(#REF!,#REF!,#REF!,#REF!,#REF!,#REF!,#REF!,#REF!,#REF!,#REF!,#REF!)>0,1,0)","v":1},{"$f":"IF((COUNTA(#REF!)=4),1,-1)*A760","v":-1},{"$nulls":12},{"v":0,"d":"$0.00"},{"v":0,"d":"$0.00"},{"v":0,"d":"$0.00"},0,{"$f":"IF(OR(K760='EXPENSE DATABASE'!$V$187,K760='EXPENSE DATABASE'!$V$188,K760='EXPENSE DATABASE'!$V$189,K760='EXPENSE DATABASE'!$V$190,K760='EXPENSE DATABASE'!$V$191,K760='EXPENSE DATABASE'!$V$192,K760='EXPENSE DATABASE'!$V$193,K760='EXPENSE DATABASE'!$V$194,K760='EXPENSE DATABASE'!$X$187,K760='EXPENSE DATABASE'!$X$188,K760='EXPENSE DATABASE'!$X$189,K760='EXPENSE DATABASE'!$X$190,K760='EXPENSE DATABASE'!$X$191,K760='EXPENSE DATABASE'!$X$192,K760='EXPENSE DATABASE'!$X$193,K760='EXPENSE DATABASE'!$X$194,K760='EXPENSE DATABASE'!$Z$187,K760='EXPENSE DATABASE'!$Z$188,K760='EXPENSE DATABASE'!$Z$189,K760='EXPENSE DATABASE'!$Z$190,K760='EXPENSE DATABASE'!$Z$191,K760='EXPENSE DATABASE'!$Z$192,K760='EXPENSE DATABASE'!$Z$193,K760='EXPENSE DATABASE'!$Z$194),O760,\"\")","v":""},{"$f":"IF(OR(K760='EXPENSE DATABASE'!$T$189,K760='EXPENSE DATABASE'!$T$190,K760='EXPENSE DATABASE'!$T$191),O760,\"\")","v":""},{"$f":"VLOOKUP(I760,'EXPENSE DATABASE'!$B$41:$C$65,2,FALSE)","v":{"$error":"#N/A"}},100,{"$f":"VLOOKUP(J760,'EXPENSE DATABASE'!$B$69:$C$168,2,FALSE)","v":{"$error":"#N/A"}},101,{"$f":"VLOOKUP(K760,'EXPENSE DATABASE'!$B$6:$C$35,2,FALSE)","v":{"$error":"#N/A"}},31,{"$f":"VLOOKUP(L760,'EXPENSE DATABASE'!$B$173:$C$176,2,FALSE)","v":{"$error":"#N/A"}},100,0,0,{"$f":"IF(L760=T('EXPENSE DATABASE'!$E$173),O760,0)","v":0},{"$f":"IF(L760=T('EXPENSE DATABASE'!$E$174),O760,0)","v":0},{"$f":"IF(L760=T('EXPENSE DATABASE'!$E$175),O760,0)","v":0},0,747]
[{"$f":"IF(COUNTA(#REF!,#REF!,#REF!,#REF!,#REF!,#REF!,#REF!,#REF!,#REF!,#REF!,#REF!)>0,1,0)","v":1},{"$f":"IF((COUNTA(#REF!)=4),1,-1)*A761","v":-1},{"$nulls":12},{"v":0,"d":"$0.00"},{"v":0,"d":"$0.00"},{"v":0,"d":"$0.00"},0,{"$f":"IF(OR(K761='EXPENSE DATABASE'!$V$187,K761='EXPENSE DATABASE'!$V$188,K761='EXPENSE DATABASE'!$V$189,K761='EXPENSE DATABASE'!$V$190,K761='EXPENSE DATABASE'!$V$191,K761='EXPENSE DATABASE'!$V$192,K761='EXPENSE DATABASE'!$V$193,K761='EXPENSE DATABASE'!$V$194,K761='EXPENSE DATABASE'!$X$187,K761='EXPENSE DATABASE'!$X$188,K761='EXPENSE DATABASE'!$X$189,K761='EXPENSE DATABASE'!$X$190,K761='EXPENSE DATABASE'!$X$191,K761='EXPENSE DATABASE'!$X$192,K761='EXPENSE DATABASE'!$X$193,K761='EXPENSE DATABASE'!$X$194,K761='EXPENSE DATABASE'!$Z$187,K761='EXPENSE DATABASE'!$Z$188,K761='EXPENSE DATABASE'!$Z$189,K761='EXPENSE DATABASE'!$Z$190,K761='EXPENSE DATABASE'!$Z$191,K761='EXPENSE DATABASE'!$Z$192,K761='EXPENSE DATABASE'!$Z$193,K761='EXPENSE DATABASE'!$Z$194),O761,\"\")","v":""},{"$f":"IF(OR(K761='EXPENSE DATABASE'!$T$189,K761='EXPENSE DATABASE'!$T$190,K761='EXPENSE DATABASE'!$T$191),O761,\"\")","v":""},{"$f":"VLOOKUP(I761,'EXPENSE DATABASE'!$B$41:$C$65,2,FALSE)","v":{"$error":"#N/A"}},100,{"$f":"VLOOKUP(J761,'EXPENSE DATABASE'!$B$69:$C$168,2,FALSE)","v":{"$error":"#N/A"}},101,{"$f":"VLOOKUP(K761,'EXPENSE DATABASE'!$B$6:$C$35,2,FALSE)","v":{"$error":"#N/A"}},31,{"$f":"VLOOKUP(L761,'EXPENSE DATABASE'!$B$173:$C$176,2,FALSE)","v":{"$error":"#N/A"}},100,0,0,{"$f":"IF(L761=T('EXPENSE DATABASE'!$E$173),O761,0)","v":0},{"$f":"IF(L761=T('EXPENSE DATABASE'!$E$174),O761,0)","v":0},{"$f":"IF(L761=T('EXPENSE DATABASE'!$E$175),O761,0)","v":0},0,748]
[{"$f":"IF(COUNTA(#REF!,#REF!,#REF!,#REF!,#REF!,#REF!,#REF!,#REF!,#REF!,#REF!,#REF!)>0,1,0)","v":1},{"$f":"IF((COUNTA(#REF!)=4),1,-1)*A762","v":-1},{"$nulls":12},{"v":0,"d":"$0.00"},{"v":0,"d":"$0.00"},{"v":0,"d":"$0.00"},0,{"$f":"IF(OR(K762='EXPENSE DATABASE'!$V$187,K762='EXPENSE DATABASE'!$V$188,K762='EXPENSE DATABASE'!$V$189,K762='EXPENSE DATABASE'!$V$190,K762='EXPENSE DATABASE'!$V$191,K762='EXPENSE DATABASE'!$V$192,K762='EXPENSE DATABASE'!$V$193,K762='EXPENSE DATABASE'!$V$194,K762='EXPENSE DATABASE'!$X$187,K762='EXPENSE DATABASE'!$X$188,K762='EXPENSE DATABASE'!$X$189,K762='EXPENSE DATABASE'!$X$190,K762='EXPENSE DATABASE'!$X$191,K762='EXPENSE DATABASE'!$X$192,K762='EXPENSE DATABASE'!$X$193,K762='EXPENSE DATABASE'!$X$194,K762='EXPENSE DATABASE'!$Z$187,K762='EXPENSE DATABASE'!$Z$188,K762='EXPENSE DATABASE'!$Z$189,K762='EXPENSE DATABASE'!$Z$190,K762='EXPENSE DATABASE'!$Z$191,K762='EXPENSE DATABASE'!$Z$192,K762='EXPENSE DATABASE'!$Z$193,K762='EXPENSE DATABASE'!$Z$194),O762,\"\")","v":""},{"$f":"IF(OR(K762='EXPENSE DATABASE'!$T$189,K762='EXPENSE DATABASE'!$T$190,K762='EXPENSE DATABASE'!$T$191),O762,\"\")","v":""},{"$f":"VLOOKUP(I762,'EXPENSE DATABASE'!$B$41:$C$65,2,FALSE)","v":{"$error":"#N/A"}},100,{"$f":"VLOOKUP(J762,'EXPENSE DATABASE'!$B$69:$C$168,2,FALSE)","v":{"$error":"#N/A"}},101,{"$f":"VLOOKUP(K762,'EXPENSE DATABASE'!$B$6:$C$35,2,FALSE)","v":{"$error":"#N/A"}},31,{"$f":"VLOOKUP(L762,'EXPENSE DATABASE'!$B$173:$C$176,2,FALSE)","v":{"$error":"#N/A"}},100,0,0,{"$f":"IF(L762=T('EXPENSE DATABASE'!$E$173),O762,0)","v":0},{"$f":"IF(L762=T('EXPENSE DATABASE'!$E$174),O762,0)","v":0},{"$f":"IF(L762=T('EXPENSE DATABASE'!$E$175),O762,0)","v":0},0,749]
[{"$f":"IF(COUNTA(#REF!,#REF!,#REF!,#REF!,#REF!,#REF!,#REF!,#REF!,#REF!,#REF!,#REF!)>0,1,0)","v":1},{"$f":"IF((COUNTA(#REF!)=4),1,-1)*A763","v":-1},{"$nulls":12},{"v":0,"d":"$0.00"},{"v":0,"d":"$0.00"},{"v":0,"d":"$0.00"},0,{"$f":"IF(OR(K763='EXPENSE DATABASE'!$V$187,K763='EXPENSE DATABASE'!$V$188,K763='EXPENSE DATABASE'!$V$189,K763='EXPENSE DATABASE'!$V$190,K763='EXPENSE DATABASE'!$V$191,K763='EXPENSE DATABASE'!$V$192,K763='EXPENSE DATABASE'!$V$193,K763='EXPENSE DATABASE'!$V$194,K763='EXPENSE DATABASE'!$X$187,K763='EXPENSE DATABASE'!$X$188,K763='EXPENSE DATABASE'!$X$189,K763='EXPENSE DATABASE'!$X$190,K763='EXPENSE DATABASE'!$X$191,K763='EXPENSE DATABASE'!$X$192,K763='EXPENSE DATABASE'!$X$193,K763='EXPENSE DATABASE'!$X$194,K763='EXPENSE DATABASE'!$Z$187,K763='EXPENSE DATABASE'!$Z$188,K763='EXPENSE DATABASE'!$Z$189,K763='EXPENSE DATABASE'!$Z$190,K763='EXPENSE DATABASE'!$Z$191,K763='EXPENSE DATABASE'!$Z$192,K763='EXPENSE DATABASE'!$Z$193,K763='EXPENSE DATABASE'!$Z$194),O763,\"\")","v":""},{"$f":"IF(OR(K763='EXPENSE DATABASE'!$T$189,K763='EXPENSE DATABASE'!$T$190,K763='EXPENSE DATABASE'!$T$191),O763,\"\")","v":""},{"$f":"VLOOKUP(I763,'EXPENSE DATABASE'!$B$41:$C$65,2,FALSE)","v":{"$error":"#N/A"}},100,{"$f":"VLOOKUP(J763,'EXPENSE DATABASE'!$B$69:$C$168,2,FALSE)","v":{"$error":"#N/A"}},101,{"$f":"VLOOKUP(K763,'EXPENSE DATABASE'!$B$6:$C$35,2,FALSE)","v":{"$error":"#N/A"}},31,{"$f":"VLOOKUP(L763,'EXPENSE DATABASE'!$B$173:$C$176,2,FALSE)","v":{"$error":"#N/A"}},100,0,0,{"$f":"IF(L763=T('EXPENSE DATABASE'!$E$173),O763,0)","v":0},{"$f":"IF(L763=T('EXPENSE DATABASE'!$E$174),O763,0)","v":0},{"$f":"IF(L763=T('EXPENSE DATABASE'!$E$175),O763,0)","v":0},0,750]
[]
[{"$nulls":4},"TOTAL EXPENSES",{"$nulls":9},{"$f":"SUBTOTAL(9,O14:O764)","v":{"v":76902.87999999999,"d":"$76,902.88"}},{"$f":"SUM(P14:P764)","v":{"v":76902.87999999999,"d":"$76,902.88"}},{"$f":"SUM(Q14:Q764)","v":{"v":0,"d":"$0.00"}},{"$f":"SUM(R14:R764)","v":{"v":25,"d":"25.00"}},{"$f":"SUM(S14:S764)","v":19457.28},{"$f":"SUM(T14:T764)","v":{"v":1060,"d":"1060.00"}},null,{"$f":"750-(COUNTIF(V14:V764,100))","v":{"v":25,"d":"25.00"}},null,{"$f":"750-(COUNTIF(X14:X764,101))","v":{"v":24,"d":"24.00"}},null,{"$f":"750-(COUNTIF(Z14:Z764,100))","v":{"v":750,"d":"750.00"}},null,{"$f":"750-(COUNTIF(AB14:AB764,100))","v":{"v":22,"d":"22.00"}},null,null,{"$f":"SUM(AE14:AE764)","v":{"v":7550,"d":"7550.00"}},{"$f":"SUM(AF14:AF764)","v":{"v":13542.880000000001,"d":"13542.88"}},{"$f":"SUM(AG14:AG764)","v":{"v":2750,"d":"2750.00"}}]

{"sheet":"LOAN TRACKER","index":27,"n_rows":63,"n_cols":31,"rows_kept":63,"hidden":true,"merged":[[1,1,1,2],[1,10,1,11],[7,1,9,1],[12,1,13,1],[48,3,48,5]]}
[]
[null,"LOAN TRACKER",{"$nulls":8},"DRAW BUILDER",{"$nulls":19},"Loan Tracker"]
[]
[{"$nulls":12},"DRAW DATE"]
[{"$nulls":3},"DATE","DESCRIPTION","DRAW #","DRAW AMOUNT","LOAN BALANCE",null,null,"PROJECT COST ITEM","BUDGET","SPENT TO DATE","ACQUISITION DRAW 1","DRAW 2","DRAW 3","DRAW 4","DRAW 5","DRAW 6","DRAW 7","DRAW 8","DRAW 9","DRAW 10","SUBSTANTIAL COMPLETION","FINAL DRAW","TOTAL","VARIANCE TO BUDGET","VARIANCE TO SPENT"]
[{"$nulls":6},{"$f":"SUMIF($N$52:$N$63,F6,$O$52:$O$63)","v":{"v":0,"d":"$0"}},{"$f":"B8-G6","v":{"v":0,"d":"$0"}},null,null,"PURCHASE PRICE",{"$f":"'BUDGET DATABASE'!C9","v":{"v":61836.912500000006,"d":"$61,837"}},{"$f":"'EXPENSE DATABASE'!J6","v":{"v":52000,"d":"$52,000"}},{"$nulls":12},{"$f":"SUM(N6:Y6)","v":{"v":0,"d":"$0"}},{"$f":"Z6-L6","v":{"v":-61836.912500000006,"d":"-$61,837"}},{"$f":"Z6-M6","v":{"v":-52000,"d":"-$52,000"}}]
[null,"Starting Loan Balance",{"$nulls":4},{"v":0,"d":"$0"},{"$f":"H6-G7","v":{"v":0,"d":"$0"}},null,null,"BUYING COSTS",{"$f":"'2 PROJECT BUDGETER'!C11","v":{"v":1000,"d":"$1,000"}},{"$f":"'EXPENSE DATABASE'!J7","v":{"v":1060,"d":"$1,060"}},{"$nulls":12},{"$f":"SUM(N7:Y7)","v":{"v":0,"d":"$0"}},{"v":-1000,"d":"-$1,000"},{"$f":"Z7-M7","v":{"v":-1060,"d":"-$1,060"}}]
[{"$nulls":6},{"v":0,"d":"$0"},{"$f":"H7-G8","v":{"v":0,"d":"$0"}},null,null,"HOLDING COSTS",{"$f":"'2 PROJECT BUDGETER'!C12","v":{"v":3000,"d":"$3,000"}},{"$f":"'EXPENSE DATABASE'!J8","v":{"v":0,"d":"$0"}},{"$nulls":12},{"v":0,"d":"$0"},{"v":-3000,"d":"-$3,000"},{"v":0,"d":"$0"}]
[{"$nulls":6},{"v":0,"d":"$0"},{"$f":"H8-G9","v":{"v":0,"d":"$0"}},null,null,"SELLING COSTS",{"$f":"'2 PROJECT BUDGETER'!C13","v":{"v":10850,"d":"$10,850"}},{"$f":"'EXPENSE DATABASE'!J9","v":{"v":0,"d":"$0"}},{"$nulls":12},{"$f":"SUM(N9:Y9)","v":{"v":0,"d":"$0"}},{"$f":"Z9-L9","v":{"v":-10850,"d":"-$10,850"}},{"$f":"Z9-M9","v":{"v":0,"d":"$0"}}]
[{"$nulls":6},{"v":0,"d":"$0"},{"$f":"H8-G10","v":{"v":0,"d":"$0"}},null,null,"FINANCING COSTS",{"$f":"'2 PROJECT BUDGETER'!C14","v":{"v":0,"d":"$0"}},{"$f":"'EXPENSE DATABASE'!J11","v":{"v":0,"d":"$0"}},{"$nulls":12},{"v":0,"d":"$0"},{"v":0,"d":"$0"},{"v":0,"d":"$0"}]
[{"$nulls":6},{"v":0,"d":"$0"},{"v":0,"d":"$0"},null,null,{"$f":"UPPER('2 PROJECT BUDGETER'!B18)","v":"GENERAL CONDITIONS"},{"$f":"'2 PROJECT BUDGETER'!C18","v":{"v":750,"d":"$750"}},{"$f":"'EXPENSE DATABASE'!J12","v":{"v":1740,"d":"$1,740"}},{"$nulls":12},{"v":0,"d":"$0"},{"v":-750,"d":"-$750"},{"v":-1740,"d":"-$1,740"}]
[null,"Current Balance",{"$nulls":4},{"v":0,"d":"$0"},{"v":0,"d":"$0"},null,null,{"$f":"UPPER('2 PROJECT BUDGETER'!B19)","v":"DEMOLITION"},{"$f":"'2 PROJECT BUDGETER'!C19","v":{"v":1000,"d":"$1,000"}},{"$f":"'EXPENSE DATABASE'!J13","v":{"v":0,"d":"$0"}},{"$nulls":12},{"v":0,"d":"$0"},{"v":-1000,"d":"-$1,000"},{"v":0,"d":"$0"}]
[null,{"$f":"H49","v":{"v":0,"d":"$0"}},{"$nulls":4},{"v":0,"d":"$0"},{"v":0,"d":"$0"},null,null,{"$f":"UPPER('2 PROJECT BUDGETER'!B20)","v":"STRUCTURAL CONCRETE"},{"$f":"'2 PROJECT BUDGETER'!C20","v":{"v":0,"d":"$0"}},{"$f":"'EXPENSE DATABASE'!J14","v":{"v":0,"d":"$0"}},{"$nulls":12},{"v":0,"d":"$0"},{"v":0,"d":"$0"},{"v":0,"d":"$0"}]
[{"$nulls":6},{"v":0,"d":"$0"},{"v":0,"d":"$0"},null,null,{"$f":"UPPER('2 PROJECT BUDGETER'!B21)","v":"CONCRETE & FLATWORK"},{"$f":"'2 PROJECT BUDGETER'!C21","v":{"v":0,"d":"$0"}},{"$f":"'EXPENSE DATABASE'!J15","v":{"v":0,"d":"$0"}},{"$nulls":12},{"v":0,"d":"$0"},{"v":0,"d":"$0"},{"v":0,"d":"$0"}]
[{"$nulls":6},{"v":0,"d":"$0"},{"v":0,"d":"$0"},null,null,{"$f":"UPPER('2 PROJECT BUDGETER'!B22)","v":"MASONRY"},{"$f":"'2 PROJECT BUDGETER'!C22","v":{"v":0,"d":"$0"}},{"$f":"'EXPENSE DATABASE'!J16","v":{"v":0,"d":"$0"}},{"$nulls":12},{"v":0,"d":"$0"},{"v":0,"d":"$0"},{"v":0,"d":"$0"}]
[{"$nulls":6},{"v":0,"d":"$0"},{"v":0,"d":"$0"},null,null,{"$f":"UPPER('2 PROJECT BUDGETER'!B23)","v":"SIDING"},{"$f":"'2 PROJECT BUDGETER'!C23","v":{"v":0,"d":"$0"}},{"$f":"'EXPENSE DATABASE'!J17","v":{"v":0,"d":"$0"}},{"$nulls":12},{"v":0,"d":"$0"},{"v":0,"d":"$0"},{"v":0,"d":"$0"}]
[{"$nulls":6},{"v":0,"d":"$0"},{"v":0,"d":"$0"},null,null,{"$f":"UPPER('2 PROJECT BUDGETER'!B24)","v":"DECKING AND PATIOS"},{"$f":"'2 PROJECT BUDGETER'!C24","v":{"v":5000,"d":"$5,000"}},{"$f":"'EXPENSE DATABASE'!J18","v":{"v":0,"d":"$0"}},{"$nulls":12},{"v":0,"d":"$0"},{"v":-5000,"d":"-$5,000"},{"v":0,"d":"$0"}]
[{"$nulls":6},{"v":0,"d":"$0"},{"v":0,"d":"$0"},null,null,{"$f":"UPPER('2 PROJECT BUDGETER'!B25)","v":"ROOFING"},{"$f":"'2 PROJECT BUDGETER'!C25","v":{"v":5500,"d":"$5,500"}},{"$f":"'EXPENSE DATABASE'!J19","v":{"v":0,"d":"$0"}},{"$nulls":12},{"v":0,"d":"$0"},{"v":-5500,"d":"-$5,500"},{"v":0,"d":"$0"}]
[{"$nulls":6},{"v":0,"d":"$0"},{"v":0,"d":"$0"},null,null,{"$f":"UPPER('2 PROJECT BUDGETER'!B26)","v":"EXTERIOR DOORS & WINDOWS"},{"$f":"'2 PROJECT BUDGETER'!C26","v":{"v":2000,"d":"$2,000"}},{"$f":"'EXPENSE DATABASE'!J20","v":{"v":0,"d":"$0"}},{"$nulls":12},{"v":0,"d":"$0"},{"v":-2000,"d":"-$2,000"},{"v":0,"d":"$0"}]
[{"$nulls":6},{"v":0,"d":"$0"},{"v":0,"d":"$0"},null,null,{"$f":"UPPER('2 PROJECT BUDGETER'!B27)","v":"GARAGE DOORS"},{"$f":"'2 PROJECT BUDGETER'!C27","v":{"v":1250,"d":"$1,250"}},{"$f":"'EXPENSE DATABASE'!J21","v":{"v":0,"d":"$0"}},{"$nulls":12},{"v":0,"d":"$0"},{"v":-1250,"d":"-$1,250"},{"v":0,"d":"$0"}]
[{"$nulls":6},{"v":0,"d":"$0"},{"v":0,"d":"$0"},null,null,{"$f":"UPPER('2 PROJECT BUDGETER'!B28)","v":"LANDSCAPING"},{"$f":"'2 PROJECT BUDGETER'!C28","v":{"v":500,"d":"$500"}},{"$f":"'EXPENSE DATABASE'!J22","v":{"v":0,"d":"$0"}},{"$nulls":12},{"v":0,"d":"$0"},{"v":-500,"d":"-$500"},{"v":0,"d":"$0"}]
[{"$nulls":6},{"v":0,"d":"$0"},{"v":0,"d":"$0"},null,null,{"$f":"UPPER('2 PROJECT BUDGETER'!B29)","v":"MISC. EXTERIOR ITEMS"},{"$f":"'2 PROJECT BUDGETER'!C29","v":{"v":0,"d":"$0"}},{"$f":"'EXPENSE DATABASE'!J23","v":{"v":500,"d":"$500"}},{"$nulls":12},{"v":0,"d":"$0"},{"v":0,"d":"$0"},{"v":-500,"d":"-$500"}]
[{"$nulls":6},{"v":0,"d":"$0"},{"v":0,"d":"$0"},null,null,{"$f":"UPPER('2 PROJECT BUDGETER'!B30)","v":"FRAMING & DRYWALL"},{"$f":"'2 PROJECT BUDGETER'!C30","v":{"v":500,"d":"$500"}},{"$f":"'EXPENSE DATABASE'!J24","v":{"v":0,"d":"$0"}},{"$nulls":12},{"v":0,"d":"$0"},{"v":-500,"d":"-$500"},{"v":0,"d":"$0"}]
[{"$nulls":6},{"v":0,"d":"$0"},{"v":0,"d":"$0"},null,null,{"$f":"UPPER('2 PROJECT BUDGETER'!B31)","v":"CABINETS & COUNTERTOPS"},{"$f":"'2 PROJECT BUDGETER'!C31","v":{"v":7500,"d":"$7,500"}},{"$f":"'EXPENSE DATABASE'!J25","v":{"v":3339.3199999999997,"d":"$3,339"}},{"$nulls":12},{"v":0,"d":"$0"},{"v":-7500,"d":"-$7,500"},{"v":-3339.3199999999997,"d":"-$3,339"}]
[{"$nulls":6},{"v":0,"d":"$0"},{"v":0,"d":"$0"},null,null,{"$f":"UPPER('2 PROJECT BUDGETER'!B32)","v":"DOORS & TRIM"},{"$f":"'2 PROJECT BUDGETER'!C32","v":{"v":3000,"d":"$3,000"}},{"$f":"'EXPENSE DATABASE'!J26","v":{"v":0,"d":"$0"}},{"$nulls":12},{"v":0,"d":"$0"},{"v":-3000,"d":"-$3,000"},{"v":0,"d":"$0"}]
[{"$nulls":6},{"v":0,"d":"$0"},{"v":0,"d":"$0"},null,null,{"$f":"UPPER('2 PROJECT BUDGETER'!B33)","v":"CARPET & RESILIENT"},{"$f":"'2 PROJECT BUDGETER'!C33","v":{"v":3000,"d":"$3,000"}},{"$f":"'EXPENSE DATABASE'!J27","v":{"v":567.2,"d":"$567"}},{"$nulls":12},{"v":0,"d":"$0"},{"v":-3000,"d":"-$3,000"},{"v":-567.2,"d":"-$567"}]
[{"$nulls":6},{"v":0,"d":"$0"},{"v":0,"d":"$0"},null,null,{"$f":"UPPER('2 PROJECT BUDGETER'!B34)","v":"HARDWOOD FLOORING"},{"$f":"'2 PROJECT BUDGETER'!C34","v":{"v":2500,"d":"$2,500"}},{"$f":"'EXPENSE DATABASE'!J28","v":{"v":2325.23,"d":"$2,325"}},{"$nulls":12},{"v":0,"d":"$0"},{"v":-2500,"d":"-$2,500"},{"v":-2325.23,"d":"-$2,325"}]
[{"$nulls":6},{"v":0,"d":"$0"},{"v":0,"d":"$0"},null,null,{"$f":"UPPER('2 PROJECT BUDGETER'!B35)","v":"TILING"},{"$f":"'2 PROJECT BUDGETER'!C35","v":{"v":3000,"d":"$3,000"}},{"$f":"'EXPENSE DATABASE'!J29","v":{"v":4902.45,"d":"$4,902"}},{"$nulls":12},{"v":0,"d":"$0"},{"v":-3000,"d":"-$3,000"},{"v":-4902.45,"d":"-$4,902"}]
[{"$nulls":6},{"v":0,"d":"$0"},{"v":0,"d":"$0"},null,null,{"$f":"UPPER('2 PROJECT BUDGETER'!B36)","v":"PAINTING"},{"$f":"'2 PROJECT BUDGETER'!C36","v":{"v":5000,"d":"$5,000"}},{"$f":"'EXPENSE DATABASE'!J30","v":{"v":0,"d":"$0"}},{"$nulls":12},{"v":0,"d":"$0"},{"v":-5000,"d":"-$5,000"},{"v":0,"d":"$0"}]
[{"$nulls":6},{"v":0,"d":"$0"},{"v":0,"d":"$0"},null,null,{"$f":"UPPER('2 PROJECT BUDGETER'!B37)","v":"APPLIANCES"},{"$f":"'2 PROJECT BUDGETER'!C37","v":{"v":2500,"d":"$2,500"}},{"$f":"'EXPENSE DATABASE'!J31","v":{"v":3473.08,"d":"$3,473"}},{"$nulls":12},{"v":0,"d":"$0"},{"v":-2500,"d":"-$2,500"},{"v":-3473.08,"d":"-$3,473"}]
[{"$nulls":6},{"v":0,"d":"$0"},{"v":0,"d":"$0"},null,null,{"$f":"UPPER('2 PROJECT BUDGETER'!B38)","v":"PLUMBING"},{"$f":"'2 PROJECT BUDGETER'!C38","v":{"v":3000,"d":"$3,000"}},{"$f":"'EXPENSE DATABASE'!J32","v":{"v":0,"d":"$0"}},{"$nulls":12},{"v":0,"d":"$0"},{"v":-3000,"d":"-$3,000"},{"v":0,"d":"$0"}]
[{"$nulls":6},{"v":0,"d":"$0"},{"v":0,"d":"$0"},null,null,{"$f":"UPPER('2 PROJECT BUDGETER'!B39)","v":"HVAC"},{"$f":"'2 PROJECT BUDGETER'!C39","v":{"v":250,"d":"$250"}},{"$f":"'EXPENSE DATABASE'!J33","v":{"v":2610,"d":"$2,610"}},{"$nulls":12},{"v":0,"d":"$0"},{"v":-250,"d":"-$250"},{"v":-2610,"d":"-$2,610"}]
[{"$nulls":6},{"v":0,"d":"$0"},{"v":0,"d":"$0"},null,null,{"$f":"UPPER('2 PROJECT BUDGETER'!B40)","v":"ELECTRICAL"},{"$f":"'2 PROJECT BUDGETER'!C40","v":{"v":3500,"d":"$3,500"}},{"$f":"'EXPENSE DATABASE'!J34","v":{"v":0,"d":"$0"}},{"$nulls":12},{"v":0,"d":"$0"},{"v":-3500,"d":"-$3,500"},{"v":0,"d":"$0"}]
[{"$nulls":6},{"v":0,"d":"$0"},{"$f":"H33-G34","v":{"v":0,"d":"$0"}},null,null,{"$f":"UPPER('2 PROJECT BUDGETER'!B41)","v":"MISCELLANEOUS"},{"$f":"'2 PROJECT BUDGETER'!C41","v":{"v":0,"d":"$0"}},{"$f":"'EXPENSE DATABASE'!#REF!","v":{"$error":"#REF!"}},{"$nulls":12},{"$f":"SUM(N34:Y34)","v":{"v":0,"d":"$0"}},{"$f":"Z34-L34","v":{"v":0,"d":"$0"}},{"$f":"Z34-M34","v":{"$error":"#REF!"}}]
[{"$nulls":6},{"v":0,"d":"$0"},{"v":0,"d":"$0"},null,null,{"$f":"UPPER('2 PROJECT BUDGETER'!#REF!)","v":{"$error":"#REF!"}},{"$f":"'2 PROJECT BUDGETER'!#REF!","v":{"$error":"#REF!"}},{"$f":"'EXPENSE DATABASE'!#REF!","v":{"$error":"#REF!"}},{"$nulls":12},{"v":0,"d":"$0"},{"$error":"#REF!"},{"$error":"#REF!"}]
[{"$nulls":6},{"v":0,"d":"$0"},{"v":0,"d":"$0"},null,null,{"$f":"UPPER('2 PROJECT BUDGETER'!#REF!)","v":{"$error":"#REF!"}},{"$f":"'2 PROJECT BUDGETER'!#REF!","v":{"$error":"#REF!"}},{"$f":"'EXPENSE DATABASE'!#REF!","v":{"$error":"#REF!"}},{"$nulls":12},{"v":0,"d":"$0"},{"$error":"#REF!"},{"$error":"#REF!"}]
[{"$nulls":6},{"v":0,"d":"$0"},{"v":0,"d":"$0"},null,null,{"$f":"UPPER('2 PROJECT BUDGETER'!#REF!)","v":{"$error":"#REF!"}},{"$f":"'2 PROJECT BUDGETER'!#REF!","v":{"$error":"#REF!"}},{"$f":"'EXPENSE DATABASE'!#REF!","v":{"$error":"#REF!"}},{"$nulls":12},{"v":0,"d":"$0"},{"$error":"#REF!"},{"$error":"#REF!"}]
[{"$nulls":6},{"v":0,"d":"$0"},{"v":0,"d":"$0"},null,null,{"$f":"UPPER('2 PROJECT BUDGETER'!#REF!)","v":{"$error":"#REF!"}},{"$f":"'2 PROJECT BUDGETER'!#REF!","v":{"$error":"#REF!"}},{"$f":"'EXPENSE DATABASE'!#REF!","v":{"$error":"#REF!"}},{"$nulls":12},{"v":0,"d":"$0"},{"$error":"#REF!"},{"$error":"#REF!"}]
[{"$nulls":6},{"v":0,"d":"$0"},{"v":0,"d":"$0"},null,null,{"$f":"UPPER('2 PROJECT BUDGETER'!#REF!)","v":{"$error":"#REF!"}},{"$f":"'2 PROJECT BUDGETER'!#REF!","v":{"$error":"#REF!"}},{"$f":"'EXPENSE DATABASE'!#REF!","v":{"$error":"#REF!"}},{"$nulls":12},{"v":0,"d":"$0"},{"$error":"#REF!"},{"$error":"#REF!"}]
[{"$nulls":6},{"v":0,"d":"$0"},{"v":0,"d":"$0"},null,null,{"$f":"UPPER('2 PROJECT BUDGETER'!#REF!)","v":{"$error":"#REF!"}},{"$f":"'2 PROJECT BUDGETER'!#REF!","v":{"$error":"#REF!"}},{"$f":"'EXPENSE DATABASE'!#REF!","v":{"$error":"#REF!"}},{"$nulls":12},{"v":0,"d":"$0"},{"$error":"#REF!"},{"$error":"#REF!"}]
[{"$nulls":6},{"v":0,"d":"$0"},{"v":0,"d":"$0"},null,null,{"$f":"UPPER('2 PROJECT BUDGETER'!#REF!)","v":{"$error":"#REF!"}},{"$f":"'2 PROJECT BUDGETER'!#REF!","v":{"$error":"#REF!"}},{"$f":"'EXPENSE DATABASE'!#REF!","v":{"$error":"#REF!"}},{"$nulls":12},{"v":0,"d":"$0"},{"$error":"#REF!"},{"$error":"#REF!"}]
[{"$nulls":6},{"v":0,"d":"$0"},{"v":0,"d":"$0"},null,null,{"$f":"UPPER('2 PROJECT BUDGETER'!#REF!)","v":{"$error":"#REF!"}},{"$f":"'2 PROJECT BUDGETER'!#REF!","v":{"$error":"#REF!"}},{"$f":"'EXPENSE DATABASE'!#REF!","v":{"$error":"#REF!"}},{"$nulls":12},{"v":0,"d":"$0"},{"$error":"#REF!"},{"$error":"#REF!"}]
[{"$nulls":6},{"v":0,"d":"$0"},{"$f":"H42-G43","v":{"v":0,"d":"$0"}},null,null,{"$f":"UPPER('2 PROJECT BUDGETER'!#REF!)","v":{"$error":"#REF!"}},{"$f":"'2 PROJECT BUDGETER'!#REF!","v":{"$error":"#REF!"}},{"$f":"'EXPENSE DATABASE'!#REF!","v":{"$error":"#REF!"}},{"$nulls":12},{"$f":"SUM(N43:Y43)","v":{"v":0,"d":"$0"}},{"$f":"Z43-L43","v":{"$error":"#REF!"}},{"$f":"Z43-M43","v":{"$error":"#REF!"}}]
[{"$nulls":6},{"v":0,"d":"$0"},{"v":0,"d":"$0"},null,null,{"$f":"UPPER('2 PROJECT BUDGETER'!#REF!)","v":{"$error":"#REF!"}},{"$f":"'2 PROJECT BUDGETER'!#REF!","v":{"$error":"#REF!"}},{"$f":"'EXPENSE DATABASE'!#REF!","v":{"$error":"#REF!"}},{"$nulls":12},{"$f":"SUM(N44:Y44)","v":{"v":0,"d":"$0"}},{"$f":"Z44-L44","v":{"$error":"#REF!"}},{"$f":"Z44-M44","v":{"$error":"#REF!"}}]
[{"$nulls":6},{"v":0,"d":"$0"},{"v":0,"d":"$0"},null,null,{"$f":"UPPER('2 PROJECT BUDGETER'!#REF!)","v":{"$error":"#REF!"}},{"$f":"'2 PROJECT BUDGETER'!#REF!","v":{"$error":"#REF!"}},{"$f":"'EXPENSE DATABASE'!#REF!","v":{"$error":"#REF!"}},{"$nulls":12},{"$f":"SUM(N45:Y45)","v":{"v":0,"d":"$0"}},{"$f":"Z45-L45","v":{"$error":"#REF!"}},{"$f":"Z45-M45","v":{"$error":"#REF!"}}]
[{"$nulls":6},{"v":0,"d":"$0"},{"v":0,"d":"$0"},null,null,{"$f":"UPPER('2 PROJECT BUDGETER'!#REF!)","v":{"$error":"#REF!"}},{"$f":"'2 PROJECT BUDGETER'!#REF!","v":{"$error":"#REF!"}},{"$f":"'EXPENSE DATABASE'!J36","v":{"v":4385.599999999991,"d":"$4,386"}},{"$nulls":12},{"$f":"SUM(N46:Y46)","v":{"v":0,"d":"$0"}},{"$f":"Z46-L46","v":{"$error":"#REF!"}},{"$f":"Z46-M46","v":{"v":-4385.599999999991,"d":"-$4,386"}}]
[{"$nulls":6},{"v":0,"d":"$0"},{"v":0,"d":"$0"},null,null,"CONTINGENCY",{"$f":"'2 PROJECT BUDGETER'!C43","v":{"v":13813.0875,"d":"$13,813"}},{"$f":"'2 PROJECT BUDGETER'!D43","v":{"v":0,"d":"$0"}},{"$nulls":12},{"v":0,"d":"$0"},{"v":-13813.0875,"d":"-$13,813"},{"v":0,"d":"$0"}]
[{"$nulls":6},{"v":0,"d":"$0"},{"v":0,"d":"$0"},null,null,"UNASSIGNED",{"v":0,"d":"$0"},{"$f":"'EXPENSE DATABASE'!J36","v":{"v":4385.599999999991,"d":"$4,386"}},{"$nulls":12},{"v":0,"d":"$0"},{"v":0,"d":"$0"},{"v":-4385.599999999991,"d":"-$4,386"}]
[{"$nulls":3},"TOTAL",null,null,{"$f":"SUM(G6:G47)","v":{"v":0,"d":"$0"}},{"$f":"B8-G49","v":{"v":0,"d":"$0"}},null,null,"TOTAL",{"$f":"SUM(L6:L48)","v":{"$error":"#REF!"}},{"$f":"SUM(M6:M48)","v":{"$error":"#REF!"}},{"v":0,"d":"$0"},{"v":0,"d":"$0"},{"v":0,"d":"$0"},{"v":0,"d":"$0"},{"v":0,"d":"$0"},{"v":0,"d":"$0"},{"v":0,"d":"$0"},{"v":0,"d":"$0"},{"v":0,"d":"$0"},{"v":0,"d":"$0"},{"v":0,"d":"$0"},{"v":0,"d":"$0"},{"v":0,"d":"$0"},{"$error":"#REF!"},{"$error":"#REF!"}]
[]
[]
[{"$nulls":13},{"$f":"T(N5)","v":"ACQUISITION DRAW 1"},{"$f":"N49","v":{"v":0,"d":"$0"}}]
[{"$nulls":13},{"$f":"T(O5)","v":"DRAW 2"},{"$f":"O49","v":{"v":0,"d":"$0"}}]
[{"$nulls":13},{"$f":"T(P5)","v":"DRAW 3"},{"$f":"P49","v":{"v":0,"d":"$0"}}]
[{"$nulls":13},{"$f":"Q5","v":"DRAW 4"},{"$f":"Q49","v":{"v":0,"d":"$0"}}]
[{"$nulls":13},{"$f":"R5","v":"DRAW 5"},{"$f":"R49","v":{"v":0,"d":"$0"}}]
[{"$nulls":13},{"$f":"S5","v":"DRAW 6"},{"$f":"S49","v":{"v":0,"d":"$0"}}]
[{"$nulls":13},{"$f":"T5","v":"DRAW 7"},{"$f":"T49","v":{"v":0,"d":"$0"}}]
[{"$nulls":13},{"$f":"U5","v":"DRAW 8"},{"$f":"U49","v":{"v":0,"d":"$0"}}]
[{"$nulls":13},{"$f":"V5","v":"DRAW 9"},{"$f":"V49","v":{"v":0,"d":"$0"}}]
[{"$nulls":13},{"$f":"W5","v":"DRAW 10"},{"$f":"W49","v":{"v":0,"d":"$0"}}]
[{"$nulls":13},{"$f":"X5","v":"SUBSTANTIAL COMPLETION"},{"$f":"X49","v":{"v":0,"d":"$0"}}]
[{"$nulls":13},{"$f":"Y5","v":"FINAL DRAW"},{"$f":"Y49","v":{"v":0,"d":"$0"}}]

{"sheet":"EXPENSE EXPORT","index":28,"n_rows":754,"n_cols":23,"rows_kept":754,"hidden":true,"merged":[[1,2,1,4],[1,8,1,11],[1,17,1,19]]}
[]
[null,null,"EXPENSE EXPORTER",{"$nulls":5},"Click to copy Expense data to your clipboard…",{"$nulls":4},"INCOME EXPORTER",{"$nulls":3},"Click to copy Income data to your clipboard…",{"$nulls":4},"Switch to Income"]
[]
[null,"PAID","Date","INVOICE #","DESCRIPTION / MEMO","PMT Type","EXPENSE ACCOUNT","VENDOR NAME","EXPENSE TYPE","EXPENSE CLASS","QTY","UNIT COST","TOTAL AMOUNT",null,"Date","DESCRIPTION / MEMO","EXPENSE TYPE","QTY","UNIT COST","TOTAL AMOUNT"]
[null,{"$f":"T('3 INCOME & EXPENSE'!D14)","v":""},{"$f":"'3 INCOME & EXPENSE'!E14","v":"2014-07-20"},{"$f":"'3 INCOME & EXPENSE'!F14","v":0},{"$f":"'3 INCOME & EXPENSE'!G14","v":"Purchase Price for Property - Reference HUD -1"},{"$f":"T('3 INCOME & EXPENSE'!H14)","v":"Bank Transfer"},{"$f":"T('3 INCOME & EXPENSE'!I14)","v":"HFS REI Checking Account"},{"$f":"T('3 INCOME & EXPENSE'!J14)","v":"First 1 Bank"},{"$f":"T('3 INCOME & EXPENSE'!K14)","v":"PURCHASE PRICE"},{"$f":"T('3 INCOME & EXPENSE'!L14)","v":""},{"$f":"'3 INCOME & EXPENSE'!M14","v":1},{"$f":"'3 INCOME & EXPENSE'!N14","v":52000},{"$f":"'3 INCOME & EXPENSE'!O14","v":52000},null,{"$f":"'3 INCOME & EXPENSE'!AK14","v":"00:00:00"},{"$f":"T(Income_Tracker_First_Cell)","v":"Sold the property"},{"$f":"T('3 INCOME & EXPENSE'!AM14)","v":""},{"$f":"'3 INCOME & EXPENSE'!AN14","v":1},{"$f":"'3 INCOME & EXPENSE'!AO14","v":{"v":175000,"d":"175000.00"}},{"$f":"'3 INCOME & EXPENSE'!AP14","v":175000}]
[null,{"$f":"T('3 INCOME & EXPENSE'!D15)","v":""},{"$f":"'3 INCOME & EXPENSE'!E15","v":"2014-07-20"},{"$f":"'3 INCOME & EXPENSE'!F15","v":0},{"$f":"'3 INCOME & EXPENSE'!G15","v":"Buying Expenses for Property - Reference HUD-1"},{"$f":"T('3 INCOME & EXPENSE'!H15)","v":"Bank Transfer"},{"$f":"T('3 INCOME & EXPENSE'!I15)","v":"HFS REI Checking Account"},{"$f":"T('3 INCOME & EXPENSE'!J15)","v":"First 1 Bank"},{"$f":"T('3 INCOME & EXPENSE'!K15)","v":"BUYING COSTS"},{"$f":"T('3 INCOME & EXPENSE'!L15)","v":""},{"$f":"'3 INCOME & EXPENSE'!M15","v":1},{"$f":"'3 INCOME & EXPENSE'!N15","v":565},{"$f":"'3 INCOME & EXPENSE'!O15","v":565},null,{"$f":"'3 INCOME & EXPENSE'!AK15","v":"00:00:00"},{"$f":"T('3 INCOME & EXPENSE'!AL15)","v":""},{"$f":"T('3 INCOME & EXPENSE'!AM15)","v":""},{"$f":"'3 INCOME & EXPENSE'!AN15","v":0},{"$f":"'3 INCOME & EXPENSE'!AO15","v":{"v":0,"d":"0.00"}},{"$f":"'3 INCOME & EXPENSE'!AP15","v":0}]
[null,{"$f":"T('3 INCOME & EXPENSE'!D16)","v":""},{"$f":"'3 INCOME & EXPENSE'!E16","v":"2014-07-21"},{"$f":"'3 INCOME & EXPENSE'!F16","v":0},{"$f":"'3 INCOME & EXPENSE'!G16","v":"Property Inspection"},{"$f":"T('3 INCOME & EXPENSE'!H16)","v":"Credit Card"},{"$f":"T('3 INCOME & EXPENSE'!I16)","v":"Chase SW Credit Card"},{"$f":"T('3 INCOME & EXPENSE'!J16)","v":""},{"$f":"T('3 INCOME & EXPENSE'!K16)","v":"BUYING COSTS"},{"$f":"T('3 INCOME & EXPENSE'!L16)","v":""},{"$f":"'3 INCOME & EXPENSE'!M16","v":1},{"$f":"'3 INCOME & EXPENSE'!N16","v":495},{"$f":"'3 INCOME & EXPENSE'!O16","v":495},null,{"$f":"'3 INCOME & EXPENSE'!AK16","v":"00:00:00"},{"$f":"T('3 INCOME & EXPENSE'!AL16)","v":""},{"$f":"T('3 INCOME & EXPENSE'!AM16)","v":""},{"$f":"'3 INCOME & EXPENSE'!AN16","v":0},{"$f":"'3 INCOME & EXPENSE'!AO16","v":{"v":0,"d":"0.00"}},{"$f":"'3 INCOME & EXPENSE'!AP16","v":0}]
[null,{"$f":"T('3 INCOME & EXPENSE'!D17)","v":""},{"$f":"'3 INCOME & EXPENSE'!E17","v":"2014-07-25"},{"$f":"'3 INCOME & EXPENSE'!F17","v":0},{"$f":"'3 INCOME & EXPENSE'!G17","v":"Dumpster Rental"},{"$f":"T('3 INCOME & EXPENSE'!H17)","v":"Credit Card"},{"$f":"T('3 INCOME & EXPENSE'!I17)","v":"Chase SW Credit Card"},{"$f":"T('3 INCOME & EXPENSE'!J17)","v":"Defenbaugh Industries"},{"$f":"T('3 INCOME & EXPENSE'!K17)","v":"DEMOLITION"},{"$f":"T('3 INCOME & EXPENSE'!L17)","v":"MATERIAL"},{"$f":"'3 INCOME & EXPENSE'!M17","v":1},{"$f":"'3 INCOME & EXPENSE'!N17","v":370},{"$f":"'3 INCOME & EXPENSE'!O17","v":370},null,{"$f":"'3 INCOME & EXPENSE'!AK17","v":"00:00:00"},{"$f":"T('3 INCOME & EXPENSE'!AL17)","v":""},{"$f":"T('3 INCOME & EXPENSE'!AM17)","v":""},{"$f":"'3 INCOME & EXPENSE'!AN17","v":0},{"$f":"'3 INCOME & EXPENSE'!AO17","v":{"v":0,"d":"0.00"}},{"$f":"'3 INCOME & EXPENSE'!AP17","v":0}]
[null,{"$f":"T('3 INCOME & EXPENSE'!D18)","v":""},{"$f":"'3 INCOME & EXPENSE'!E18","v":"2014-07-28"},{"$f":"'3 INCOME & EXPENSE'!F18","v":0},{"$f":"'3 INCOME & EXPENSE'!G18","v":"Demolition - 1st Payment"},{"$f":"T('3 INCOME & EXPENSE'!H18)","v":"Check"},{"$f":"T('3 INCOME & EXPENSE'!I18)","v":"HFS REI Checking Account"},{"$f":"T('3 INCOME & EXPENSE'!J18)","v":"Demolition Services Inc."},{"$f":"T('3 INCOME & EXPENSE'!K18)","v":"DEMOLITION"},{"$f":"T('3 INCOME & EXPENSE'!L18)","v":"SUBCONTRACTOR"},{"$f":"'3 INCOME & EXPENSE'!M18","v":1},{"$f":"'3 INCOME & EXPENSE'!N18","v":500},{"$f":"'3 INCOME & EXPENSE'!O18","v":500},null,{"$f":"'3 INCOME & EXPENSE'!AK18","v":"00:00:00"},{"$f":"T('3 INCOME & EXPENSE'!AL18)","v":""},{"$f":"T('3 INCOME & EXPENSE'!AM18)","v":""},{"$f":"'3 INCOME & EXPENSE'!AN18","v":0},{"$f":"'3 INCOME & EXPENSE'!AO18","v":{"v":0,"d":"0.00"}},{"$f":"'3 INCOME & EXPENSE'!AP18","v":0}]
[null,{"$f":"T('3 INCOME & EXPENSE'!D19)","v":""},{"$f":"'3 INCOME & EXPENSE'!E19","v":"2014-08-01"},{"$f":"'3 INCOME & EXPENSE'!F19","v":0},{"$f":"'3 INCOME & EXPENSE'!G19","v":"Demolition - 2nd Payment"},{"$f":"T('3 INCOME & EXPENSE'!H19)","v":"Check"},{"$f":"T('3 INCOME & EXPENSE'!I19)","v":"HFS REI Checking Account"},{"$f":"T('3 INCOME & EXPENSE'!J19)","v":"Demolition Services Inc."},{"$f":"T('3 INCOME & EXPENSE'!K19)","v":"DEMOLITION"},{"$f":"T('3 INCOME & EXPENSE'!L19)","v":"SUBCONTRACTOR"},{"$f":"'3 INCOME & EXPENSE'!M19","v":1},{"$f":"'3 INCOME & EXPENSE'!N19","v":500},{"$f":"'3 INCOME & EXPENSE'!O19","v":500},null,{"$f":"'3 INCOME & EXPENSE'!AK19","v":"00:00:00"},{"$f":"T('3 INCOME & EXPENSE'!AL19)","v":""},{"$f":"T('3 INCOME & EXPENSE'!AM19)","v":""},{"$f":"'3 INCOME & EXPENSE'!AN19","v":0},{"$f":"'3 INCOME & EXPENSE'!AO19","v":{"v":0,"d":"0.00"}},{"$f":"'3 INCOME & EXPENSE'!AP19","v":0}]
[null,{"$f":"T('3 INCOME & EXPENSE'!D20)","v":""},{"$f":"'3 INCOME & EXPENSE'!E20","v":"2014-07-28"},{"$f":"'3 INCOME & EXPENSE'!F20","v":0},{"$f":"'3 INCOME & EXPENSE'!G20","v":"Exterior doors and window material"},{"$f":"T('3 INCOME & EXPENSE'!H20)","v":"Credit Card"},{"$f":"T('3 INCOME & EXPENSE'!I20)","v":"Home Depot Credit Card"},{"$f":"T('3 INCOME & EXPENSE'!J20)","v":"Lowes"},{"$f":"T('3 INCOME & EXPENSE'!K20)","v":"EXT. DOORS & WINDOWS"},{"$f":"T('3 INCOME & EXPENSE'!L20)","v":"MATERIAL"},{"$f":"'3 INCOME & EXPENSE'!M20","v":1},{"$f":"'3 INCOME & EXPENSE'!N20","v":2635.6},{"$f":"'3 INCOME & EXPENSE'!O20","v":2635.6},null,{"$f":"'3 INCOME & EXPENSE'!AK20","v":"00:00:00"},{"$f":"T('3 INCOME & EXPENSE'!AL20)","v":""},{"$f":"T('3 INCOME & EXPENSE'!AM20)","v":""},{"$f":"'3 INCOME & EXPENSE'!AN20","v":0},{"$f":"'3 INCOME & EXPENSE'!AO20","v":{"v":0,"d":"0.00"}},{"$f":"'3 INCOME & EXPENSE'!AP20","v":0}]
[null,{"$f":"T('3 INCOME & EXPENSE'!D21)","v":""},{"$f":"'3 INCOME & EXPENSE'!E21","v":"2014-08-01"},{"$f":"'3 INCOME & EXPENSE'!F21","v":0},{"$f":"'3 INCOME & EXPENSE'!G21","v":"Exterior Doors & Windows - 1st Payment"},{"$f":"T('3 INCOME & EXPENSE'!H21)","v":"Check"},{"$f":"T('3 INCOME & EXPENSE'!I21)","v":"HFS REI Checking Account"},{"$f":"T('3 INCOME & EXPENSE'!J21)","v":"Affordable Rehab & Remodeling"},{"$f":"T('3 INCOME & EXPENSE'!K21)","v":"EXT. DOORS & WINDOWS"},{"$f":"T('3 INCOME & EXPENSE'!L21)","v":"LABOR/EQUIP"},{"$f":"'3 INCOME & EXPENSE'!M21","v":1},{"$f":"'3 INCOME & EXPENSE'!N21","v":750},{"$f":"'3 INCOME & EXPENSE'!O21","v":750},null,{"$f":"'3 INCOME & EXPENSE'!AK21","v":"00:00:00"},{"$f":"T('3 INCOME & EXPENSE'!AL21)","v":""},{"$f":"T('3 INCOME & EXPENSE'!AM21)","v":""},{"$f":"'3 INCOME & EXPENSE'!AN21","v":0},{"$f":"'3 INCOME & EXPENSE'!AO21","v":{"v":0,"d":"0.00"}},{"$f":"'3 INCOME & EXPENSE'!AP21","v":0}]
[null,{"$f":"T('3 INCOME & EXPENSE'!D22)","v":""},{"$f":"'3 INCOME & EXPENSE'!E22","v":"2014-08-05"},{"$f":"'3 INCOME & EXPENSE'!F22","v":0},{"$f":"'3 INCOME & EXPENSE'!G22","v":"Exterior Doors & Windows - 2nd Payment"},{"$f":"T('3 INCOME & EXPENSE'!H22)","v":"Check"},{"$f":"T('3 INCOME & EXPENSE'!I22)","v":"HFS REI Checking Account"},{"$f":"T('3 INCOME & EXPENSE'!J22)","v":"Affordable Rehab & Remodeling"},{"$f":"T('3 INCOME & EXPENSE'!K22)","v":"EXT. DOORS & WINDOWS"},{"$f":"T('3 INCOME & EXPENSE'!L22)","v":"LABOR/EQUIP"},{"$f":"'3 INCOME & EXPENSE'!M22","v":1},{"$f":"'3 INCOME & EXPENSE'!N22","v":500},{"$f":"'3 INCOME & EXPENSE'!O22","v":500},null,{"$f":"'3 INCOME & EXPENSE'!AK22","v":"00:00:00"},{"$f":"T('3 INCOME & EXPENSE'!AL22)","v":""},{"$f":"T('3 INCOME & EXPENSE'!AM22)","v":""},{"$f":"'3 INCOME & EXPENSE'!AN22","v":0},{"$f":"'3 INCOME & EXPENSE'!AO22","v":{"v":0,"d":"0.00"}},{"$f":"'3 INCOME & EXPENSE'!AP22","v":0}]
[null,{"$f":"T('3 INCOME & EXPENSE'!D23)","v":""},{"$f":"'3 INCOME & EXPENSE'!E23","v":"2014-08-08"},{"$f":"'3 INCOME & EXPENSE'!F23","v":0},{"$f":"'3 INCOME & EXPENSE'!G23","v":"Plumbing Rough in - 1st Payment"},{"$f":"T('3 INCOME & EXPENSE'!H23)","v":"Check"},{"$f":"T('3 INCOME & EXPENSE'!I23)","v":"HFS REI Checking Account"},{"$f":"T('3 INCOME & EXPENSE'!J23)","v":"Affordable Rehab & Remodeling"},{"$f":"T('3 INCOME & EXPENSE'!K23)","v":"PLUMBING"},{"$f":"T('3 INCOME & EXPENSE'!L23)","v":"LABOR/EQUIP"},{"$f":"'3 INCOME & EXPENSE'!M23","v":1},{"$f":"'3 INCOME & EXPENSE'!N23","v":1250},{"$f":"'3 INCOME & EXPENSE'!O23","v":1250},null,{"$f":"'3 INCOME & EXPENSE'!AK23","v":"00:00:00"},{"$f":"T('3 INCOME & EXPENSE'!AL23)","v":""},{"$f":"T('3 INCOME & EXPENSE'!AM23)","v":""},{"$f":"'3 INCOME & EXPENSE'!AN23","v":0},{"$f":"'3 INCOME & EXPENSE'!AO23","v":{"v":0,"d":"0.00"}},{"$f":"'3 INCOME & EXPENSE'!AP23","v":0}]
[null,{"$f":"T('3 INCOME & EXPENSE'!D24)","v":""},{"$f":"'3 INCOME & EXPENSE'!E24","v":"2014-08-08"},{"$f":"'3 INCOME & EXPENSE'!F24","v":0},{"$f":"'3 INCOME & EXPENSE'!G24","v":"Electrical Rough in - 1st Payment"},{"$f":"T('3 INCOME & EXPENSE'!H24)","v":"Check"},{"$f":"T('3 INCOME & EXPENSE'!I24)","v":"HFS REI Checking Account"},{"$f":"T('3 INCOME & EXPENSE'!J24)","v":"Ace Electric"},{"$f":"T('3 INCOME & EXPENSE'!K24)","v":"ELECTRICAL"},{"$f":"T('3 INCOME & EXPENSE'!L24)","v":"SUBCONTRACTOR"},{"$f":"'3 INCOME & EXPENSE'!M24","v":1},{"$f":"'3 INCOME & EXPENSE'!N24","v":1250},{"$f":"'3 INCOME & EXPENSE'!O24","v":1250},null,{"$f":"'3 INCOME & EXPENSE'!AK24","v":"00:00:00"},{"$f":"T('3 INCOME & EXPENSE'!AL24)","v":""},{"$f":"T('3 INCOME & EXPENSE'!AM24)","v":""},{"$f":"'3 INCOME & EXPENSE'!AN24","v":0},{"$f":"'3 INCOME & EXPENSE'!AO24","v":{"v":0,"d":"0.00"}},{"$f":"'3 INCOME & EXPENSE'!AP24","v":0}]
[null,{"$f":"T('3 INCOME & EXPENSE'!D25)","v":""},{"$f":"'3 INCOME & EXPENSE'!E25","v":"2014-08-11"},{"$f":"'3 INCOME & EXPENSE'!F25","v":0},{"$f":"'3 INCOME & EXPENSE'!G25","v":"Drywall Patching & Prep"},{"$f":"T('3 INCOME & EXPENSE'!H25)","v":"Check"},{"$f":"T('3 INCOME & EXPENSE'!I25)","v":"HFS REI Checking Account"},{"$f":"T('3 INCOME & EXPENSE'!J25)","v":"Affordable Rehab & Remodeling"},{"$f":"T('3 INCOME & EXPENSE'!K25)","v":"FRAMING & DRYWALL"},{"$f":"T('3 INCOME & EXPENSE'!L25)","v":"LABOR/EQUIP"},{"$f":"'3 INCOME & EXPENSE'!M25","v":1},{"$f":"'3 INCOME & EXPENSE'!N25","v":500},{"$f":"'3 INCOME & EXPENSE'!O25","v":500},null,{"$f":"'3 INCOME & EXPENSE'!AK25","v":"00:00:00"},{"$f":"T('3 INCOME & EXPENSE'!AL25)","v":""},{"$f":"T('3 INCOME & EXPENSE'!AM25)","v":""},{"$f":"'3 INCOME & EXPENSE'!AN25","v":0},{"$f":"'3 INCOME & EXPENSE'!AO25","v":{"v":0,"d":"0.00"}},{"$f":"'3 INCOME & EXPENSE'!AP25","v":0}]
[null,{"$f":"T('3 INCOME & EXPENSE'!D26)","v":""},{"$f":"'3 INCOME & EXPENSE'!E26","v":"2014-08-05"},{"$f":"'3 INCOME & EXPENSE'!F26","v":0},{"$f":"'3 INCOME & EXPENSE'!G26","v":"Doors, Trim, Handrail - Home Depot"},{"$f":"T('3 INCOME & EXPENSE'!H26)","v":"Credit Card"},{"$f":"T('3 INCOME & EXPENSE'!I26)","v":"Home Depot Credit Card"},{"$f":"T('3 INCOME & EXPENSE'!J26)","v":"Home Depot"},{"$f":"T('3 INCOME & EXPENSE'!K26)","v":"DOORS & TRIM"},{"$f":"T('3 INCOME & EXPENSE'!L26)","v":"MATERIAL"},{"$f":"'3 INCOME & EXPENSE'!M26","v":1},{"$f":"'3 INCOME & EXPENSE'!N26","v":1689.32},{"$f":"'3 INCOME & EXPENSE'!O26","v":1689.32},null,{"$f":"'3 INCOME & EXPENSE'!AK26","v":"00:00:00"},{"$f":"T('3 INCOME & EXPENSE'!AL26)","v":""},{"$f":"T('3 INCOME & EXPENSE'!AM26)","v":""},{"$f":"'3 INCOME & EXPENSE'!AN26","v":0},{"$f":"'3 INCOME & EXPENSE'!AO26","v":{"v":0,"d":"0.00"}},{"$f":"'3 INCOME & EXPENSE'!AP26","v":0}]
[null,{"$f":"T('3 INCOME & EXPENSE'!D27)","v":""},{"$f":"'3 INCOME & EXPENSE'!E27","v":"2014-08-11"},{"$f":"'3 INCOME & EXPENSE'!F27","v":0},{"$f":"'3 INCOME & EXPENSE'!G27","v":"Doors & Trim Installation - 1st Payment"},{"$f":"T('3 INCOME & EXPENSE'!H27)","v":"Check"},{"$f":"T('3 INCOME & EXPENSE'!I27)","v":"HFS REI Checking Account"},{"$f":"T('3 INCOME & EXPENSE'!J27)","v":"Affordable Rehab & Remodeling"},{"$f":"T('3 INCOME & EXPENSE'!K27)","v":"DOORS & TRIM"},{"$f":"T('3 INCOME & EXPENSE'!L27)","v":"LABOR/EQUIP"},{"$f":"'3 INCOME & EXPENSE'!M27","v":1},{"$f":"'3 INCOME & EXPENSE'!N27","v":825},{"$f":"'3 INCOME & EXPENSE'!O27","v":825},null,{"$f":"'3 INCOME & EXPENSE'!AK27","v":"00:00:00"},{"$f":"T('3 INCOME & EXPENSE'!AL27)","v":""},{"$f":"T('3 INCOME & EXPENSE'!AM27)","v":""},{"$f":"'3 INCOME & EXPENSE'!AN27","v":0},{"$f":"'3 INCOME & EXPENSE'!AO27","v":{"v":0,"d":"0.00"}},{"$f":"'3 INCOME & EXPENSE'!AP27","v":0}]
[null,{"$f":"T('3 INCOME & EXPENSE'!D28)","v":""},{"$f":"'3 INCOME & EXPENSE'!E28","v":"2014-08-14"},{"$f":"'3 INCOME & EXPENSE'!F28","v":0},{"$f":"'3 INCOME & EXPENSE'!G28","v":"Electrical Fixtures"},{"$f":"T('3 INCOME & EXPENSE'!H28)","v":"Credit Card"},{"$f":"T('3 INCOME & EXPENSE'!I28)","v":"Chase SW Credit Card"},{"$f":"T('3 INCOME & EXPENSE'!J28)","v":"Lowes"},{"$f":"T('3 INCOME & EXPENSE'!K28)","v":"ELECTRICAL"},{"$f":"T('3 INCOME & EXPENSE'!L28)","v":"MATERIAL"},{"$f":"'3 INCOME & EXPENSE'!M28","v":1},{"$f":"'3 INCOME & EXPENSE'!N28","v":1360},{"$f":"'3 INCOME & EXPENSE'!O28","v":1360},null,{"$f":"'3 INCOME & EXPENSE'!AK28","v":"00:00:00"},{"$f":"T('3 INCOME & EXPENSE'!AL28)","v":""},{"$f":"T('3 INCOME & EXPENSE'!AM28)","v":""},{"$f":"'3 INCOME & EXPENSE'!AN28","v":0},{"$f":"'3 INCOME & EXPENSE'!AO28","v":{"v":0,"d":"0.00"}},{"$f":"'3 INCOME & EXPENSE'!AP28","v":0}]
[null,{"$f":"T('3 INCOME & EXPENSE'!D29)","v":""},{"$f":"'3 INCOME & EXPENSE'!E29","v":"2014-08-14"},{"$f":"'3 INCOME & EXPENSE'!F29","v":0},{"$f":"'3 INCOME & EXPENSE'!G29","v":"Plumbing Fixtures"},{"$f":"T('3 INCOME & EXPENSE'!H29)","v":"Credit Card"},{"$f":"T('3 INCOME & EXPENSE'!I29)","v":"Lowes Credit Card"},{"$f":"T('3 INCOME & EXPENSE'!J29)","v":"Lowes"},{"$f":"T('3 INCOME & EXPENSE'!K29)","v":"PLUMBING"},{"$f":"T('3 INCOME & EXPENSE'!L29)","v":"MATERIAL"},{"$f":"'3 INCOME & EXPENSE'!M29","v":1},{"$f":"'3 INCOME & EXPENSE'!N29","v":2223.08},{"$f":"'3 INCOME & EXPENSE'!O29","v":2223.08},null,{"$f":"'3 INCOME & EXPENSE'!AK29","v":"00:00:00"},{"$f":"T('3 INCOME & EXPENSE'!AL29)","v":""},{"$f":"T('3 INCOME & EXPENSE'!AM29)","v":""},{"$f":"'3 INCOME & EXPENSE'!AN29","v":0},{"$f":"'3 INCOME & EXPENSE'!AO29","v":{"v":0,"d":"0.00"}},{"$f":"'3 INCOME & EXPENSE'!AP29","v":0}]
[null,{"$f":"T('3 INCOME & EXPENSE'!D30)","v":""},{"$f":"'3 INCOME & EXPENSE'!E30","v":"2014-08-14"},{"$f":"'3 INCOME & EXPENSE'!F30","v":0},{"$f":"'3 INCOME & EXPENSE'!G30","v":"Tiling Materials"},{"$f":"T('3 INCOME & EXPENSE'!H30)","v":"Credit Card"},{"$f":"T('3 INCOME & EXPENSE'!I30)","v":"Lowes Credit Card"},{"$f":"T('3 INCOME & EXPENSE'!J30)","v":"Lowes"},{"$f":"T('3 INCOME & EXPENSE'!K30)","v":"TILING"},{"$f":"T('3 INCOME & EXPENSE'!L30)","v":"MATERIAL"},{"$f":"'3 INCOME & EXPENSE'!M30","v":1},{"$f":"'3 INCOME & EXPENSE'!N30","v":1675.23},{"$f":"'3 INCOME & EXPENSE'!O30","v":1675.23},null,{"$f":"'3 INCOME & EXPENSE'!AK30","v":"00:00:00"},{"$f":"T('3 INCOME & EXPENSE'!AL30)","v":""},{"$f":"T('3 INCOME & EXPENSE'!AM30)","v":""},{"$f":"'3 INCOME & EXPENSE'!AN30","v":0},{"$f":"'3 INCOME & EXPENSE'!AO30","v":{"v":0,"d":"0.00"}},{"$f":"'3 INCOME & EXPENSE'!AP30","v":0}]
[null,{"$f":"T('3 INCOME & EXPENSE'!D31)","v":""},{"$f":"'3 INCOME & EXPENSE'!E31","v":"2014-08-15"},{"$f":"'3 INCOME & EXPENSE'!F31","v":0},{"$f":"'3 INCOME & EXPENSE'!G31","v":"Doors & Trim Installation - 2ndPayment"},{"$f":"T('3 INCOME & EXPENSE'!H31)","v":"Check"},{"$f":"T('3 INCOME & EXPENSE'!I31)","v":"HFS REI Checking Account"},{"$f":"T('3 INCOME & EXPENSE'!J31)","v":"Affordable Rehab & Remodeling"},{"$f":"T('3 INCOME & EXPENSE'!K31)","v":"DOORS & TRIM"},{"$f":"T('3 INCOME & EXPENSE'!L31)","v":"LABOR/EQUIP"},{"$f":"'3 INCOME & EXPENSE'!M31","v":1},{"$f":"'3 INCOME & EXPENSE'!N31","v":825},{"$f":"'3 INCOME & EXPENSE'!O31","v":825},null,{"$f":"'3 INCOME & EXPENSE'!AK31","v":"00:00:00"},{"$f":"T('3 INCOME & EXPENSE'!AL31)","v":""},{"$f":"T('3 INCOME & EXPENSE'!AM31)","v":""},{"$f":"'3 INCOME & EXPENSE'!AN31","v":0},{"$f":"'3 INCOME & EXPENSE'!AO31","v":{"v":0,"d":"0.00"}},{"$f":"'3 INCOME & EXPENSE'!AP31","v":0}]
[null,{"$f":"T('3 INCOME & EXPENSE'!D32)","v":""},{"$f":"'3 INCOME & EXPENSE'!E32","v":"2014-08-18"},{"$f":"'3 INCOME & EXPENSE'!F32","v":0},{"$f":"'3 INCOME & EXPENSE'!G32","v":"Paint Materials"},{"$f":"T('3 INCOME & EXPENSE'!H32)","v":"Credit Card"},{"$f":"T('3 INCOME & EXPENSE'!I32)","v":"Chase SW Credit Card"},{"$f":"T('3 INCOME & EXPENSE'!J32)","v":"Sherwin Williams"},{"$f":"T('3 INCOME & EXPENSE'!K32)","v":"PAINTING"},{"$f":"T('3 INCOME & EXPENSE'!L32)","v":"MATERIAL"},{"$f":"'3 INCOME & EXPENSE'!M32","v":1},{"$f":"'3 INCOME & EXPENSE'!N32","v":2652.45},{"$f":"'3 INCOME & EXPENSE'!O32","v":2652.45},null,{"$f":"'3 INCOME & EXPENSE'!AK32","v":"00:00:00"},{"$f":"T('3 INCOME & EXPENSE'!AL32)","v":""},{"$f":"T('3 INCOME & EXPENSE'!AM32)","v":""},{"$f":"'3 INCOME & EXPENSE'!AN32","v":0},{"$f":"'3 INCOME & EXPENSE'!AO32","v":{"v":0,"d":"0.00"}},{"$f":"'3 INCOME & EXPENSE'!AP32","v":0}]
[null,{"$f":"T('3 INCOME & EXPENSE'!D33)","v":""},{"$f":"'3 INCOME & EXPENSE'!E33","v":"2014-08-18"},{"$f":"'3 INCOME & EXPENSE'!F33","v":0},{"$f":"'3 INCOME & EXPENSE'!G33","v":"Exterior Painting - 1st Payment"},{"$f":"T('3 INCOME & EXPENSE'!H33)","v":"Check"},{"$f":"T('3 INCOME & EXPENSE'!I33)","v":"HFS REI Checking Account"},{"$f":"T('3 INCOME & EXPENSE'!J33)","v":"Affordable Rehab & Remodeling"},{"$f":"T('3 INCOME & EXPENSE'!K33)","v":"PAINTING"},{"$f":"T('3 INCOME & EXPENSE'!L33)","v":"LABOR/EQUIP"},{"$f":"'3 INCOME & EXPENSE'!M33","v":1},{"$f":"'3 INCOME & EXPENSE'!N33","v":1250},{"$f":"'3 INCOME & EXPENSE'!O33","v":1250},null,{"$f":"'3 INCOME & EXPENSE'!AK33","v":"00:00:00"},{"$f":"T('3 INCOME & EXPENSE'!AL33)","v":""},{"$f":"T('3 INCOME & EXPENSE'!AM33)","v":""},{"$f":"'3 INCOME & EXPENSE'!AN33","v":0},{"$f":"'3 INCOME & EXPENSE'!AO33","v":{"v":0,"d":"0.00"}},{"$f":"'3 INCOME & EXPENSE'!AP33","v":0}]
[null,{"$f":"T('3 INCOME & EXPENSE'!D34)","v":""},{"$f":"'3 INCOME & EXPENSE'!E34","v":"2014-08-18"},{"$f":"'3 INCOME & EXPENSE'!F34","v":0},{"$f":"'3 INCOME & EXPENSE'!G34","v":"Interior Painting - 1st Payment"},{"$f":"T('3 INCOME & EXPENSE'!H34)","v":"Check"},{"$f":"T('3 INCOME & EXPENSE'!I34)","v":"HFS REI Checking Account"},{"$f":"T('3 INCOME & EXPENSE'!J34)","v":"Affordable Rehab & Remodeling"},{"$f":"T('3 INCOME & EXPENSE'!K34)","v":"PAINTING"},{"$f":"T('3 INCOME & EXPENSE'!L34)","v":"LABOR/EQUIP"},{"$f":"'3 INCOME & EXPENSE'!M34","v":1},{"$f":"'3 INCOME & EXPENSE'!N34","v":1000},{"$f":"'3 INCOME & EXPENSE'!O34","v":1000},null,{"$f":"'3 INCOME & EXPENSE'!AK34","v":"00:00:00"},{"$f":"T('3 INCOME & EXPENSE'!AL34)","v":""},{"$f":"T('3 INCOME & EXPENSE'!AM34)","v":""},{"$f":"'3 INCOME & EXPENSE'!AN34","v":0},{"$f":"'3 INCOME & EXPENSE'!AO34","v":{"v":0,"d":"0.00"}},{"$f":"'3 INCOME & EXPENSE'!AP34","v":0}]
[null,{"$f":"T('3 INCOME & EXPENSE'!D35)","v":""},{"$f":"'3 INCOME & EXPENSE'!E35","v":"2014-08-25"},{"$f":"'3 INCOME & EXPENSE'!F35","v":0},{"$f":"'3 INCOME & EXPENSE'!G35","v":"Tiling - 1st Payment"},{"$f":"T('3 INCOME & EXPENSE'!H35)","v":"Check"},{"$f":"T('3 INCOME & EXPENSE'!I35)","v":"HFS REI Checking Account"},{"$f":"T('3 INCOME & EXPENSE'!J35)","v":"Lowes"},{"$f":"T('3 INCOME & EXPENSE'!K35)","v":"TILING"},{"$f":"T('3 INCOME & EXPENSE'!L35)","v":"LABOR/EQUIP"},{"$f":"'3 INCOME & EXPENSE'!M35","v":1},{"$f":"'3 INCOME & EXPENSE'!N35","v":650},{"$f":"'3 INCOME & EXPENSE'!O35","v":650},null,{"$f":"'3 INCOME & EXPENSE'!AK35","v":"00:00:00"},{"$f":"T('3 INCOME & EXPENSE'!AL35)","v":""},{"$f":"T('3 INCOME & EXPENSE'!AM35)","v":""},{"$f":"'3 INCOME & EXPENSE'!AN35","v":0},{"$f":"'3 INCOME & EXPENSE'!AO35","v":{"v":0,"d":"0.00"}},{"$f":"'3 INCOME & EXPENSE'!AP35","v":0}]
[null,{"$f":"T('3 INCOME & EXPENSE'!D36)","v":""},{"$f":"'3 INCOME & EXPENSE'!E36","v":"2014-08-25"},{"$f":"'3 INCOME & EXPENSE'!F36","v":0},{"$f":"'3 INCOME & EXPENSE'!G36","v":"Hardwood flooring materials"},{"$f":"T('3 INCOME & EXPENSE'!H36)","v":"Credit Card"},{"$f":"T('3 INCOME & EXPENSE'!I36)","v":"Lowes Credit Card"},{"$f":"T('3 INCOME & EXPENSE'!J36)","v":"Home Depot"},{"$f":"T('3 INCOME & EXPENSE'!K36)","v":"HARDWOOD FLOORING"},{"$f":"T('3 INCOME & EXPENSE'!L36)","v":"MATERIAL"},{"$f":"'3 INCOME & EXPENSE'!M36","v":1},{"$f":"'3 INCOME & EXPENSE'!N36","v":567.2},{"$f":"'3 INCOME & EXPENSE'!O36","v":567.2},null,{"$f":"'3 INCOME & EXPENSE'!AK36","v":"00:00:00"},{"$f":"T('3 INCOME & EXPENSE'!AL36)","v":""},{"$f":"T('3 INCOME & EXPENSE'!AM36)","v":""},{"$f":"'3 INCOME & EXPENSE'!AN36","v":0},{"$f":"'3 INCOME & EXPENSE'!AO36","v":{"v":0,"d":"0.00"}},{"$f":"'3 INCOME & EXPENSE'!AP36","v":0}]
[null,{"$f":"T('3 INCOME & EXPENSE'!D37)","v":""},{"$f":"'3 INCOME & EXPENSE'!E37","v":"2014-08-25"},{"$f":"'3 INCOME & EXPENSE'!F37","v":0},{"$f":"'3 INCOME & EXPENSE'!G37","v":"Dumpster Rental"},{"$f":"T('3 INCOME & EXPENSE'!H37)","v":"Credit Card"},{"$f":"T('3 INCOME & EXPENSE'!I37)","v":"Chase SW Credit Card"},{"$f":"T('3 INCOME & EXPENSE'!J37)","v":"Defenbaugh Industries"},{"$f":"T('3 INCOME & EXPENSE'!K37)","v":"DEMOLITION"},{"$f":"T('3 INCOME & EXPENSE'!L37)","v":"MATERIAL"},{"$f":"'3 INCOME & EXPENSE'!M37","v":1},{"$f":"'3 INCOME & EXPENSE'!N37","v":370},{"$f":"'3 INCOME & EXPENSE'!O37","v":370},null,{"$f":"'3 INCOME & EXPENSE'!AK37","v":"00:00:00"},{"$f":"T('3 INCOME & EXPENSE'!AL37)","v":""},{"$f":"T('3 INCOME & EXPENSE'!AM37)","v":""},{"$f":"'3 INCOME & EXPENSE'!AN37","v":0},{"$f":"'3 INCOME & EXPENSE'!AO37","v":{"v":0,"d":"0.00"}},{"$f":"'3 INCOME & EXPENSE'!AP37","v":0}]
[null,{"$f":"T('3 INCOME & EXPENSE'!D38)","v":""},{"$f":"'3 INCOME & EXPENSE'!E38","v":"2014-08-25"},{"$f":"'3 INCOME & EXPENSE'!F38","v":0},{"$f":"'3 INCOME & EXPENSE'!G38","v":"Electrical Change order"},{"$f":"T('3 INCOME & EXPENSE'!H38)","v":"Check"},{"$f":"T('3 INCOME & EXPENSE'!I38)","v":"HFS REI Checking Account"},{"$f":"T('3 INCOME & EXPENSE'!J38)","v":"Ace Electric"},{"$f":"T('3 INCOME & EXPENSE'!K38)","v":""},{"$f":"T('3 INCOME & EXPENSE'!L38)","v":"SUBCONTRACTOR"},{"$f":"'3 INCOME & EXPENSE'!M38","v":1},{"$f":"'3 INCOME & EXPENSE'!N38","v":500},{"$f":"'3 INCOME & EXPENSE'!O38","v":500},null,{"$f":"'3 INCOME & EXPENSE'!AK38","v":"00:00:00"},{"$f":"T('3 INCOME & EXPENSE'!AL38)","v":""},{"$f":"T('3 INCOME & EXPENSE'!AM38)","v":""},{"$f":"'3 INCOME & EXPENSE'!AN38","v":0},{"$f":"'3 INCOME & EXPENSE'!AO38","v":{"v":0,"d":"0.00"}},{"$f":"'3 INCOME & EXPENSE'!AP38","v":0}]
[null,{"$f":"T('3 INCOME & EXPENSE'!D39)","v":""},{"$f":"'3 INCOME & EXPENSE'!E39","v":"00:00:00"},{"$f":"'3 INCOME & EXPENSE'!F39","v":0},{"$f":"'3 INCOME & EXPENSE'!G39","v":0},{"$f":"T('3 INCOME & EXPENSE'!H39)","v":""},{"$f":"T('3 INCOME & EXPENSE'!I39)","v":""},{"$f":"T('3 INCOME & EXPENSE'!J39)","v":""},{"$f":"T('3 INCOME & EXPENSE'!K39)","v":""},{"$f":"T('3 INCOME & EXPENSE'!L39)","v":""},{"$f":"'3 INCOME & EXPENSE'!M39","v":0},{"$f":"'3 INCOME & EXPENSE'!N39","v":0},{"$f":"'3 INCOME & EXPENSE'!O39","v":0},null,{"$f":"'3 INCOME & EXPENSE'!AK39","v":"00:00:00"},{"$f":"T('3 INCOME & EXPENSE'!AL39)","v":""},{"$f":"T('3 INCOME & EXPENSE'!AM39)","v":""},{"$f":"'3 INCOME & EXPENSE'!AN39","v":0},{"$f":"'3 INCOME & EXPENSE'!AO39","v":{"v":0,"d":"0.00"}},{"$f":"'3 INCOME & EXPENSE'!AP39","v":0}]
[null,{"$f":"T('3 INCOME & EXPENSE'!D40)","v":""},{"$f":"'3 INCOME & EXPENSE'!E40","v":"00:00:00"},{"$f":"'3 INCOME & EXPENSE'!F40","v":0},{"$f":"'3 INCOME & EXPENSE'!G40","v":0},{"$f":"T('3 INCOME & EXPENSE'!H40)","v":""},{"$f":"T('3 INCOME & EXPENSE'!I40)","v":""},{"$f":"T('3 INCOME & EXPENSE'!J40)","v":""},{"$f":"T('3 INCOME & EXPENSE'!K40)","v":""},{"$f":"T('3 INCOME & EXPENSE'!L40)","v":""},{"$f":"'3 INCOME & EXPENSE'!M40","v":0},{"$f":"'3 INCOME & EXPENSE'!N40","v":0},{"$f":"'3 INCOME & EXPENSE'!O40","v":0},null,{"$f":"'3 INCOME & EXPENSE'!AK40","v":"00:00:00"},{"$f":"T('3 INCOME & EXPENSE'!AL40)","v":""},{"$f":"T('3 INCOME & EXPENSE'!AM40)","v":""},{"$f":"'3 INCOME & EXPENSE'!AN40","v":0},{"$f":"'3 INCOME & EXPENSE'!AO40","v":{"v":0,"d":"0.00"}},{"$f":"'3 INCOME & EXPENSE'!AP40","v":0}]
[null,{"$f":"T('3 INCOME & EXPENSE'!D41)","v":""},{"$f":"'3 INCOME & EXPENSE'!E41","v":"00:00:00"},{"$f":"'3 INCOME & EXPENSE'!F41","v":0},{"$f":"'3 INCOME & EXPENSE'!G41","v":0},{"$f":"T('3 INCOME & EXPENSE'!H41)","v":""},{"$f":"T('3 INCOME & EXPENSE'!I41)","v":""},{"$f":"T('3 INCOME & EXPENSE'!J41)","v":""},{"$f":"T('3 INCOME & EXPENSE'!K41)","v":""},{"$f":"T('3 INCOME & EXPENSE'!L41)","v":""},{"$f":"'3 INCOME & EXPENSE'!M41","v":0},{"$f":"'3 INCOME & EXPENSE'!N41","v":0},{"$f":"'3 INCOME & EXPENSE'!O41","v":0},null,{"$f":"'3 INCOME & EXPENSE'!AK41","v":"00:00:00"},{"$f":"T('3 INCOME & EXPENSE'!AL41)","v":""},{"$f":"T('3 INCOME & EXPENSE'!AM41)","v":""},{"$f":"'3 INCOME & EXPENSE'!AN41","v":0},{"$f":"'3 INCOME & EXPENSE'!AO41","v":{"v":0,"d":"0.00"}},{"$f":"'3 INCOME & EXPENSE'!AP41","v":0}]
[null,{"$f":"T('3 INCOME & EXPENSE'!D42)","v":""},{"$f":"'3 INCOME & EXPENSE'!E42","v":"00:00:00"},{"$f":"'3 INCOME & EXPENSE'!F42","v":0},{"$f":"'3 INCOME & EXPENSE'!G42","v":0},{"$f":"T('3 INCOME & EXPENSE'!H42)","v":""},{"$f":"T('3 INCOME & EXPENSE'!I42)","v":""},{"$f":"T('3 INCOME & EXPENSE'!J42)","v":""},{"$f":"T('3 INCOME & EXPENSE'!K42)","v":""},{"$f":"T('3 INCOME & EXPENSE'!L42)","v":""},{"$f":"'3 INCOME & EXPENSE'!M42","v":0},{"$f":"'3 INCOME & EXPENSE'!N42","v":0},{"$f":"'3 INCOME & EXPENSE'!O42","v":0},null,{"$f":"'3 INCOME & EXPENSE'!AK42","v":"00:00:00"},{"$f":"T('3 INCOME & EXPENSE'!AL42)","v":""},{"$f":"T('3 INCOME & EXPENSE'!AM42)","v":""},{"$f":"'3 INCOME & EXPENSE'!AN42","v":0},{"$f":"'3 INCOME & EXPENSE'!AO42","v":{"v":0,"d":"0.00"}},{"$f":"'3 INCOME & EXPENSE'!AP42","v":0}]
[null,{"$f":"T('3 INCOME & EXPENSE'!D43)","v":""},{"$f":"'3 INCOME & EXPENSE'!E43","v":"00:00:00"},{"$f":"'3 INCOME & EXPENSE'!F43","v":0},{"$f":"'3 INCOME & EXPENSE'!G43","v":0},{"$f":"T('3 INCOME & EXPENSE'!H43)","v":""},{"$f":"T('3 INCOME & EXPENSE'!I43)","v":""},{"$f":"T('3 INCOME & EXPENSE'!J43)","v":""},{"$f":"T('3 INCOME & EXPENSE'!K43)","v":""},{"$f":"T('3 INCOME & EXPENSE'!L43)","v":""},{"$f":"'3 INCOME & EXPENSE'!M43","v":0},{"$f":"'3 INCOME & EXPENSE'!N43","v":0},{"$f":"'3 INCOME & EXPENSE'!O43","v":0},null,{"$f":"'3 INCOME & EXPENSE'!AK43","v":"00:00:00"},{"$f":"T('3 INCOME & EXPENSE'!AL43)","v":""},{"$f":"T('3 INCOME & EXPENSE'!AM43)","v":""},{"$f":"'3 INCOME & EXPENSE'!AN43","v":0},{"$f":"'3 INCOME & EXPENSE'!AO43","v":{"v":0,"d":"0.00"}},{"$f":"'3 INCOME & EXPENSE'!AP43","v":0}]
[null,{"$f":"T('3 INCOME & EXPENSE'!D44)","v":""},{"$f":"'3 INCOME & EXPENSE'!E44","v":"00:00:00"},{"$f":"'3 INCOME & EXPENSE'!F44","v":0},{"$f":"'3 INCOME & EXPENSE'!G44","v":0},{"$f":"T('3 INCOME & EXPENSE'!H44)","v":""},{"$f":"T('3 INCOME & EXPENSE'!I44)","v":""},{"$f":"T('3 INCOME & EXPENSE'!J44)","v":""},{"$f":"T('3 INCOME & EXPENSE'!K44)","v":""},{"$f":"T('3 INCOME & EXPENSE'!L44)","v":""},{"$f":"'3 INCOME & EXPENSE'!M44","v":0},{"$f":"'3 INCOME & EXPENSE'!N44","v":0},{"$f":"'3 INCOME & EXPENSE'!O44","v":0},null,{"$f":"'3 INCOME & EXPENSE'!AK44","v":"00:00:00"},{"$f":"T('3 INCOME & EXPENSE'!AL44)","v":""},{"$f":"T('3 INCOME & EXPENSE'!AM44)","v":""},{"$f":"'3 INCOME & EXPENSE'!AN44","v":0},{"$f":"'3 INCOME & EXPENSE'!AO44","v":{"v":0,"d":"0.00"}},{"$f":"'3 INCOME & EXPENSE'!AP44","v":0}]
[null,{"$f":"T('3 INCOME & EXPENSE'!D45)","v":""},{"$f":"'3 INCOME & EXPENSE'!E45","v":"00:00:00"},{"$f":"'3 INCOME & EXPENSE'!F45","v":0},{"$f":"'3 INCOME & EXPENSE'!G45","v":0},{"$f":"T('3 INCOME & EXPENSE'!H45)","v":""},{"$f":"T('3 INCOME & EXPENSE'!I45)","v":""},{"$f":"T('3 INCOME & EXPENSE'!J45)","v":""},{"$f":"T('3 INCOME & EXPENSE'!K45)","v":""},{"$f":"T('3 INCOME & EXPENSE'!L45)","v":""},{"$f":"'3 INCOME & EXPENSE'!M45","v":0},{"$f":"'3 INCOME & EXPENSE'!N45","v":0},{"$f":"'3 INCOME & EXPENSE'!O45","v":0},null,{"$f":"'3 INCOME & EXPENSE'!AK45","v":"00:00:00"},{"$f":"T('3 INCOME & EXPENSE'!AL45)","v":""},{"$f":"T('3 INCOME & EXPENSE'!AM45)","v":""},{"$f":"'3 INCOME & EXPENSE'!AN45","v":0},{"$f":"'3 INCOME & EXPENSE'!AO45","v":{"v":0,"d":"0.00"}},{"$f":"'3 INCOME & EXPENSE'!AP45","v":0}]
[null,{"$f":"T('3 INCOME & EXPENSE'!D46)","v":""},{"$f":"'3 INCOME & EXPENSE'!E46","v":"00:00:00"},{"$f":"'3 INCOME & EXPENSE'!F46","v":0},{"$f":"'3 INCOME & EXPENSE'!G46","v":0},{"$f":"T('3 INCOME & EXPENSE'!H46)","v":""},{"$f":"T('3 INCOME & EXPENSE'!I46)","v":""},{"$f":"T('3 INCOME & EXPENSE'!J46)","v":""},{"$f":"T('3 INCOME & EXPENSE'!K46)","v":""},{"$f":"T('3 INCOME & EXPENSE'!L46)","v":""},{"$f":"'3 INCOME & EXPENSE'!M46","v":0},{"$f":"'3 INCOME & EXPENSE'!N46","v":0},{"$f":"'3 INCOME & EXPENSE'!O46","v":0},null,{"$f":"'3 INCOME & EXPENSE'!AK46","v":"00:00:00"},{"$f":"T('3 INCOME & EXPENSE'!AL46)","v":""},{"$f":"T('3 INCOME & EXPENSE'!AM46)","v":""},{"$f":"'3 INCOME & EXPENSE'!AN46","v":0},{"$f":"'3 INCOME & EXPENSE'!AO46","v":{"v":0,"d":"0.00"}},{"$f":"'3 INCOME & EXPENSE'!AP46","v":0}]
[null,{"$f":"T('3 INCOME & EXPENSE'!D47)","v":""},{"$f":"'3 INCOME & EXPENSE'!E47","v":"00:00:00"},{"$f":"'3 INCOME & EXPENSE'!F47","v":0},{"$f":"'3 INCOME & EXPENSE'!G47","v":0},{"$f":"T('3 INCOME & EXPENSE'!H47)","v":""},{"$f":"T('3 INCOME & EXPENSE'!I47)","v":""},{"$f":"T('3 INCOME & EXPENSE'!J47)","v":""},{"$f":"T('3 INCOME & EXPENSE'!K47)","v":""},{"$f":"T('3 INCOME & EXPENSE'!L47)","v":""},{"$f":"'3 INCOME & EXPENSE'!M47","v":0},{"$f":"'3 INCOME & EXPENSE'!N47","v":0},{"$f":"'3 INCOME & EXPENSE'!O47","v":0},null,{"$f":"'3 INCOME & EXPENSE'!AK47","v":"00:00:00"},{"$f":"T('3 INCOME & EXPENSE'!AL47)","v":""},{"$f":"T('3 INCOME & EXPENSE'!AM47)","v":""},{"$f":"'3 INCOME & EXPENSE'!AN47","v":0},{"$f":"'3 INCOME & EXPENSE'!AO47","v":{"v":0,"d":"0.00"}},{"$f":"'3 INCOME & EXPENSE'!AP47","v":0}]
[null,{"$f":"T('3 INCOME & EXPENSE'!D48)","v":""},{"$f":"'3 INCOME & EXPENSE'!E48","v":"00:00:00"},{"$f":"'3 INCOME & EXPENSE'!F48","v":0},{"$f":"'3 INCOME & EXPENSE'!G48","v":0},{"$f":"T('3 INCOME & EXPENSE'!H48)","v":""},{"$f":"T('3 INCOME & EXPENSE'!I48)","v":""},{"$f":"T('3 INCOME & EXPENSE'!J48)","v":""},{"$f":"T('3 INCOME & EXPENSE'!K48)","v":""},{"$f":"T('3 INCOME & EXPENSE'!L48)","v":""},{"$f":"'3 INCOME & EXPENSE'!M48","v":0},{"$f":"'3 INCOME & EXPENSE'!N48","v":0},{"$f":"'3 INCOME & EXPENSE'!O48","v":0},null,{"$f":"'3 INCOME & EXPENSE'!AK48","v":"00:00:00"},{"$f":"T('3 INCOME & EXPENSE'!AL48)","v":""},{"$f":"T('3 INCOME & EXPENSE'!AM48)","v":""},{"$f":"'3 INCOME & EXPENSE'!AN48","v":0},{"$f":"'3 INCOME & EXPENSE'!AO48","v":{"v":0,"d":"0.00"}},{"$f":"'3 INCOME & EXPENSE'!AP48","v":0}]
[null,{"$f":"T('3 INCOME & EXPENSE'!D49)","v":""},{"$f":"'3 INCOME & EXPENSE'!E49","v":"00:00:00"},{"$f":"'3 INCOME & EXPENSE'!F49","v":0},{"$f":"'3 INCOME & EXPENSE'!G49","v":0},{"$f":"T('3 INCOME & EXPENSE'!H49)","v":""},{"$f":"T('3 INCOME & EXPENSE'!I49)","v":""},{"$f":"T('3 INCOME & EXPENSE'!J49)","v":""},{"$f":"T('3 INCOME & EXPENSE'!K49)","v":""},{"$f":"T('3 INCOME & EXPENSE'!L49)","v":""},{"$f":"'3 INCOME & EXPENSE'!M49","v":0},{"$f":"'3 INCOME & EXPENSE'!N49","v":0},{"$f":"'3 INCOME & EXPENSE'!O49","v":0},null,{"$f":"'3 INCOME & EXPENSE'!AK49","v":"00:00:00"},{"$f":"T('3 INCOME & EXPENSE'!AL49)","v":""},{"$f":"T('3 INCOME & EXPENSE'!AM49)","v":""},{"$f":"'3 INCOME & EXPENSE'!AN49","v":0},{"$f":"'3 INCOME & EXPENSE'!AO49","v":{"v":0,"d":"0.00"}},{"$f":"'3 INCOME & EXPENSE'!AP49","v":0}]
[null,{"$f":"T('3 INCOME & EXPENSE'!D50)","v":""},{"$f":"'3 INCOME & EXPENSE'!E50","v":"00:00:00"},{"$f":"'3 INCOME & EXPENSE'!F50","v":0},{"$f":"'3 INCOME & EXPENSE'!G50","v":0},{"$f":"T('3 INCOME & EXPENSE'!H50)","v":""},{"$f":"T('3 INCOME & EXPENSE'!I50)","v":""},{"$f":"T('3 INCOME & EXPENSE'!J50)","v":""},{"$f":"T('3 INCOME & EXPENSE'!K50)","v":""},{"$f":"T('3 INCOME & EXPENSE'!L50)","v":""},{"$f":"'3 INCOME & EXPENSE'!M50","v":0},{"$f":"'3 INCOME & EXPENSE'!N50","v":0},{"$f":"'3 INCOME & EXPENSE'!O50","v":0},null,{"$f":"'3 INCOME & EXPENSE'!AK50","v":"00:00:00"},{"$f":"T('3 INCOME & EXPENSE'!AL50)","v":""},{"$f":"T('3 INCOME & EXPENSE'!AM50)","v":""},{"$f":"'3 INCOME & EXPENSE'!AN50","v":0},{"$f":"'3 INCOME & EXPENSE'!AO50","v":{"v":0,"d":"0.00"}},{"$f":"'3 INCOME & EXPENSE'!AP50","v":0}]
[null,{"$f":"T('3 INCOME & EXPENSE'!D51)","v":""},{"$f":"'3 INCOME & EXPENSE'!E51","v":"00:00:00"},{"$f":"'3 INCOME & EXPENSE'!F51","v":0},{"$f":"'3 INCOME & EXPENSE'!G51","v":0},{"$f":"T('3 INCOME & EXPENSE'!H51)","v":""},{"$f":"T('3 INCOME & EXPENSE'!I51)","v":""},{"$f":"T('3 INCOME & EXPENSE'!J51)","v":""},{"$f":"T('3 INCOME & EXPENSE'!K51)","v":""},{"$f":"T('3 INCOME & EXPENSE'!L51)","v":""},{"$f":"'3 INCOME & EXPENSE'!M51","v":0},{"$f":"'3 INCOME & EXPENSE'!N51","v":0},{"$f":"'3 INCOME & EXPENSE'!O51","v":0},null,{"$f":"'3 INCOME & EXPENSE'!AK51","v":"00:00:00"},{"$f":"T('3 INCOME & EXPENSE'!AL51)","v":""},{"$f":"T('3 INCOME & EXPENSE'!AM51)","v":""},{"$f":"'3 INCOME & EXPENSE'!AN51","v":0},{"$f":"'3 INCOME & EXPENSE'!AO51","v":{"v":0,"d":"0.00"}},{"$f":"'3 INCOME & EXPENSE'!AP51","v":0}]
[null,{"$f":"T('3 INCOME & EXPENSE'!D52)","v":""},{"$f":"'3 INCOME & EXPENSE'!E52","v":"00:00:00"},{"$f":"'3 INCOME & EXPENSE'!F52","v":0},{"$f":"'3 INCOME & EXPENSE'!G52","v":0},{"$f":"T('3 INCOME & EXPENSE'!H52)","v":""},{"$f":"T('3 INCOME & EXPENSE'!I52)","v":""},{"$f":"T('3 INCOME & EXPENSE'!J52)","v":""},{"$f":"T('3 INCOME & EXPENSE'!K52)","v":""},{"$f":"T('3 INCOME & EXPENSE'!L52)","v":""},{"$f":"'3 INCOME & EXPENSE'!M52","v":0},{"$f":"'3 INCOME & EXPENSE'!N52","v":0},{"$f":"'3 INCOME & EXPENSE'!O52","v":0},null,{"$f":"'3 INCOME & EXPENSE'!AK52","v":"00:00:00"},{"$f":"T('3 INCOME & EXPENSE'!AL52)","v":""},{"$f":"T('3 INCOME & EXPENSE'!AM52)","v":""},{"$f":"'3 INCOME & EXPENSE'!AN52","v":0},{"$f":"'3 INCOME & EXPENSE'!AO52","v":{"v":0,"d":"0.00"}},{"$f":"'3 INCOME & EXPENSE'!AP52","v":0}]
[null,{"$f":"T('3 INCOME & EXPENSE'!D53)","v":""},{"$f":"'3 INCOME & EXPENSE'!E53","v":"00:00:00"},{"$f":"'3 INCOME & EXPENSE'!F53","v":0},{"$f":"'3 INCOME & EXPENSE'!G53","v":0},{"$f":"T('3 INCOME & EXPENSE'!H53)","v":""},{"$f":"T('3 INCOME & EXPENSE'!I53)","v":""},{"$f":"T('3 INCOME & EXPENSE'!J53)","v":""},{"$f":"T('3 INCOME & EXPENSE'!K53)","v":""},{"$f":"T('3 INCOME & EXPENSE'!L53)","v":""},{"$f":"'3 INCOME & EXPENSE'!M53","v":0},{"$f":"'3 INCOME & EXPENSE'!N53","v":0},{"$f":"'3 INCOME & EXPENSE'!O53","v":0},null,{"$f":"'3 INCOME & EXPENSE'!AK53","v":"00:00:00"},{"$f":"T('3 INCOME & EXPENSE'!AL53)","v":""},{"$f":"T('3 INCOME & EXPENSE'!AM53)","v":""},{"$f":"'3 INCOME & EXPENSE'!AN53","v":0},{"$f":"'3 INCOME & EXPENSE'!AO53","v":{"v":0,"d":"0.00"}},{"$f":"'3 INCOME & EXPENSE'!AP53","v":0}]
[null,{"$f":"T('3 INCOME & EXPENSE'!D54)","v":""},{"$f":"'3 INCOME & EXPENSE'!E54","v":"00:00:00"},{"$f":"'3 INCOME & EXPENSE'!F54","v":0},{"$f":"'3 INCOME & EXPENSE'!G54","v":0},{"$f":"T('3 INCOME & EXPENSE'!H54)","v":""},{"$f":"T('3 INCOME & EXPENSE'!I54)","v":""},{"$f":"T('3 INCOME & EXPENSE'!J54)","v":""},{"$f":"T('3 INCOME & EXPENSE'!K54)","v":""},{"$f":"T('3 INCOME & EXPENSE'!L54)","v":""},{"$f":"'3 INCOME & EXPENSE'!M54","v":0},{"$f":"'3 INCOME & EXPENSE'!N54","v":0},{"$f":"'3 INCOME & EXPENSE'!O54","v":0},null,{"$f":"'3 INCOME & EXPENSE'!AK54","v":"00:00:00"},{"$f":"T('3 INCOME & EXPENSE'!AL54)","v":""},{"$f":"T('3 INCOME & EXPENSE'!AM54)","v":""},{"$f":"'3 INCOME & EXPENSE'!AN54","v":0},{"$f":"'3 INCOME & EXPENSE'!AO54","v":{"v":0,"d":"0.00"}},{"$f":"'3 INCOME & EXPENSE'!AP54","v":0}]
[null,{"$f":"T('3 INCOME & EXPENSE'!D55)","v":""},{"$f":"'3 INCOME & EXPENSE'!E55","v":"00:00:00"},{"$f":"'3 INCOME & EXPENSE'!F55","v":0},{"$f":"'3 INCOME & EXPENSE'!G55","v":0},{"$f":"T('3 INCOME & EXPENSE'!H55)","v":""},{"$f":"T('3 INCOME & EXPENSE'!I55)","v":""},{"$f":"T('3 INCOME & EXPENSE'!J55)","v":""},{"$f":"T('3 INCOME & EXPENSE'!K55)","v":""},{"$f":"T('3 INCOME & EXPENSE'!L55)","v":""},{"$f":"'3 INCOME & EXPENSE'!M55","v":0},{"$f":"'3 INCOME & EXPENSE'!N55","v":0},{"$f":"'3 INCOME & EXPENSE'!O55","v":0},null,{"$f":"'3 INCOME & EXPENSE'!AK55","v":"00:00:00"},{"$f":"T('3 INCOME & EXPENSE'!AL55)","v":""},{"$f":"T('3 INCOME & EXPENSE'!AM55)","v":""},{"$f":"'3 INCOME & EXPENSE'!AN55","v":0},{"$f":"'3 INCOME & EXPENSE'!AO55","v":{"v":0,"d":"0.00"}},{"$f":"'3 INCOME & EXPENSE'!AP55","v":0}]
[null,{"$f":"T('3 INCOME & EXPENSE'!D56)","v":""},{"$f":"'3 INCOME & EXPENSE'!E56","v":"00:00:00"},{"$f":"'3 INCOME & EXPENSE'!F56","v":0},{"$f":"'3 INCOME & EXPENSE'!G56","v":0},{"$f":"T('3 INCOME & EXPENSE'!H56)","v":""},{"$f":"T('3 INCOME & EXPENSE'!I56)","v":""},{"$f":"T('3 INCOME & EXPENSE'!J56)","v":""},{"$f":"T('3 INCOME & EXPENSE'!K56)","v":""},{"$f":"T('3 INCOME & EXPENSE'!L56)","v":""},{"$f":"'3 INCOME & EXPENSE'!M56","v":0},{"$f":"'3 INCOME & EXPENSE'!N56","v":0},{"$f":"'3 INCOME & EXPENSE'!O56","v":0},null,{"$f":"'3 INCOME & EXPENSE'!AK56","v":"00:00:00"},{"$f":"T('3 INCOME & EXPENSE'!AL56)","v":""},{"$f":"T('3 INCOME & EXPENSE'!AM56)","v":""},{"$f":"'3 INCOME & EXPENSE'!AN56","v":0},{"$f":"'3 INCOME & EXPENSE'!AO56","v":{"v":0,"d":"0.00"}},{"$f":"'3 INCOME & EXPENSE'!AP56","v":0}]
[null,{"$f":"T('3 INCOME & EXPENSE'!D57)","v":""},{"$f":"'3 INCOME & EXPENSE'!E57","v":"00:00:00"},{"$f":"'3 INCOME & EXPENSE'!F57","v":0},{"$f":"'3 INCOME & EXPENSE'!G57","v":0},{"$f":"T('3 INCOME & EXPENSE'!H57)","v":""},{"$f":"T('3 INCOME & EXPENSE'!I57)","v":""},{"$f":"T('3 INCOME & EXPENSE'!J57)","v":""},{"$f":"T('3 INCOME & EXPENSE'!K57)","v":""},{"$f":"T('3 INCOME & EXPENSE'!L57)","v":""},{"$f":"'3 INCOME & EXPENSE'!M57","v":0},{"$f":"'3 INCOME & EXPENSE'!N57","v":0},{"$f":"'3 INCOME & EXPENSE'!O57","v":0},null,{"$f":"'3 INCOME & EXPENSE'!AK57","v":"00:00:00"},{"$f":"T('3 INCOME & EXPENSE'!AL57)","v":""},{"$f":"T('3 INCOME & EXPENSE'!AM57)","v":""},{"$f":"'3 INCOME & EXPENSE'!AN57","v":0},{"$f":"'3 INCOME & EXPENSE'!AO57","v":{"v":0,"d":"0.00"}},{"$f":"'3 INCOME & EXPENSE'!AP57","v":0}]
[null,{"$f":"T('3 INCOME & EXPENSE'!D58)","v":""},{"$f":"'3 INCOME & EXPENSE'!E58","v":"00:00:00"},{"$f":"'3 INCOME & EXPENSE'!F58","v":0},{"$f":"'3 INCOME & EXPENSE'!G58","v":0},{"$f":"T('3 INCOME & EXPENSE'!H58)","v":""},{"$f":"T('3 INCOME & EXPENSE'!I58)","v":""},{"$f":"T('3 INCOME & EXPENSE'!J58)","v":""},{"$f":"T('3 INCOME & EXPENSE'!K58)","v":""},{"$f":"T('3 INCOME & EXPENSE'!L58)","v":""},{"$f":"'3 INCOME & EXPENSE'!M58","v":0},{"$f":"'3 INCOME & EXPENSE'!N58","v":0},{"$f":"'3 INCOME & EXPENSE'!O58","v":0},null,{"$f":"'3 INCOME & EXPENSE'!AK58","v":"00:00:00"},{"$f":"T('3 INCOME & EXPENSE'!AL58)","v":""},{"$f":"T('3 INCOME & EXPENSE'!AM58)","v":""},{"$f":"'3 INCOME & EXPENSE'!AN58","v":0},{"$f":"'3 INCOME & EXPENSE'!AO58","v":{"v":0,"d":"0.00"}},{"$f":"'3 INCOME & EXPENSE'!AP58","v":0}]
[null,{"$f":"T('3 INCOME & EXPENSE'!D59)","v":""},{"$f":"'3 INCOME & EXPENSE'!E59","v":"00:00:00"},{"$f":"'3 INCOME & EXPENSE'!F59","v":0},{"$f":"'3 INCOME & EXPENSE'!G59","v":0},{"$f":"T('3 INCOME & EXPENSE'!H59)","v":""},{"$f":"T('3 INCOME & EXPENSE'!I59)","v":""},{"$f":"T('3 INCOME & EXPENSE'!J59)","v":""},{"$f":"T('3 INCOME & EXPENSE'!K59)","v":""},{"$f":"T('3 INCOME & EXPENSE'!L59)","v":""},{"$f":"'3 INCOME & EXPENSE'!M59","v":0},{"$f":"'3 INCOME & EXPENSE'!N59","v":0},{"$f":"'3 INCOME & EXPENSE'!O59","v":0},null,{"$f":"'3 INCOME & EXPENSE'!AK59","v":"00:00:00"},{"$f":"T('3 INCOME & EXPENSE'!AL59)","v":""},{"$f":"T('3 INCOME & EXPENSE'!AM59)","v":""},{"$f":"'3 INCOME & EXPENSE'!AN59","v":0},{"$f":"'3 INCOME & EXPENSE'!AO59","v":{"v":0,"d":"0.00"}},{"$f":"'3 INCOME & EXPENSE'!AP59","v":0}]
[null,{"$f":"T('3 INCOME & EXPENSE'!D60)","v":""},{"$f":"'3 INCOME & EXPENSE'!E60","v":"00:00:00"},{"$f":"'3 INCOME & EXPENSE'!F60","v":0},{"$f":"'3 INCOME & EXPENSE'!G60","v":0},{"$f":"T('3 INCOME & EXPENSE'!H60)","v":""},{"$f":"T('3 INCOME & EXPENSE'!I60)","v":""},{"$f":"T('3 INCOME & EXPENSE'!J60)","v":""},{"$f":"T('3 INCOME & EXPENSE'!K60)","v":""},{"$f":"T('3 INCOME & EXPENSE'!L60)","v":""},{"$f":"'3 INCOME & EXPENSE'!M60","v":0},{"$f":"'3 INCOME & EXPENSE'!N60","v":0},{"$f":"'3 INCOME & EXPENSE'!O60","v":0},null,{"$f":"'3 INCOME & EXPENSE'!AK60","v":"00:00:00"},{"$f":"T('3 INCOME & EXPENSE'!AL60)","v":""},{"$f":"T('3 INCOME & EXPENSE'!AM60)","v":""},{"$f":"'3 INCOME & EXPENSE'!AN60","v":0},{"$f":"'3 INCOME & EXPENSE'!AO60","v":{"v":0,"d":"0.00"}},{"$f":"'3 INCOME & EXPENSE'!AP60","v":0}]
[null,{"$f":"T('3 INCOME & EXPENSE'!D61)","v":""},{"$f":"'3 INCOME & EXPENSE'!E61","v":"00:00:00"},{"$f":"'3 INCOME & EXPENSE'!F61","v":0},{"$f":"'3 INCOME & EXPENSE'!G61","v":0},{"$f":"T('3 INCOME & EXPENSE'!H61)","v":""},{"$f":"T('3 INCOME & EXPENSE'!I61)","v":""},{"$f":"T('3 INCOME & EXPENSE'!J61)","v":""},{"$f":"T('3 INCOME & EXPENSE'!K61)","v":""},{"$f":"T('3 INCOME & EXPENSE'!L61)","v":""},{"$f":"'3 INCOME & EXPENSE'!M61","v":0},{"$f":"'3 INCOME & EXPENSE'!N61","v":0},{"$f":"'3 INCOME & EXPENSE'!O61","v":0},null,{"$f":"'3 INCOME & EXPENSE'!AK61","v":"00:00:00"},{"$f":"T('3 INCOME & EXPENSE'!AL61)","v":""},{"$f":"T('3 INCOME & EXPENSE'!AM61)","v":""},{"$f":"'3 INCOME & EXPENSE'!AN61","v":0},{"$f":"'3 INCOME & EXPENSE'!AO61","v":{"v":0,"d":"0.00"}},{"$f":"'3 INCOME & EXPENSE'!AP61","v":0}]
[null,{"$f":"T('3 INCOME & EXPENSE'!D62)","v":""},{"$f":"'3 INCOME & EXPENSE'!E62","v":"00:00:00"},{"$f":"'3 INCOME & EXPENSE'!F62","v":0},{"$f":"'3 INCOME & EXPENSE'!G62","v":0},{"$f":"T('3 INCOME & EXPENSE'!H62)","v":""},{"$f":"T('3 INCOME & EXPENSE'!I62)","v":""},{"$f":"T('3 INCOME & EXPENSE'!J62)","v":""},{"$f":"T('3 INCOME & EXPENSE'!K62)","v":""},{"$f":"T('3 INCOME & EXPENSE'!L62)","v":""},{"$f":"'3 INCOME & EXPENSE'!M62","v":0},{"$f":"'3 INCOME & EXPENSE'!N62","v":0},{"$f":"'3 INCOME & EXPENSE'!O62","v":0},null,{"$f":"'3 INCOME & EXPENSE'!AK62","v":"00:00:00"},{"$f":"T('3 INCOME & EXPENSE'!AL62)","v":""},{"$f":"T('3 INCOME & EXPENSE'!AM62)","v":""},{"$f":"'3 INCOME & EXPENSE'!AN62","v":0},{"$f":"'3 INCOME & EXPENSE'!AO62","v":{"v":0,"d":"0.00"}},{"$f":"'3 INCOME & EXPENSE'!AP62","v":0}]
[null,{"$f":"T('3 INCOME & EXPENSE'!D63)","v":""},{"$f":"'3 INCOME & EXPENSE'!E63","v":"00:00:00"},{"$f":"'3 INCOME & EXPENSE'!F63","v":0},{"$f":"'3 INCOME & EXPENSE'!G63","v":0},{"$f":"T('3 INCOME & EXPENSE'!H63)","v":""},{"$f":"T('3 INCOME & EXPENSE'!I63)","v":""},{"$f":"T('3 INCOME & EXPENSE'!J63)","v":""},{"$f":"T('3 INCOME & EXPENSE'!K63)","v":""},{"$f":"T('3 INCOME & EXPENSE'!L63)","v":""},{"$f":"'3 INCOME & EXPENSE'!M63","v":0},{"$f":"'3 INCOME & EXPENSE'!N63","v":0},{"$f":"'3 INCOME & EXPENSE'!O63","v":0},null,{"$f":"'3 INCOME & EXPENSE'!AK63","v":"00:00:00"},{"$f":"T('3 INCOME & EXPENSE'!AL63)","v":""},{"$f":"T('3 INCOME & EXPENSE'!AM63)","v":""},{"$f":"'3 INCOME & EXPENSE'!AN63","v":0},{"$f":"'3 INCOME & EXPENSE'!AO63","v":{"v":0,"d":"0.00"}},{"$f":"'3 INCOME & EXPENSE'!AP63","v":0}]
[null,{"$f":"T('3 INCOME & EXPENSE'!D64)","v":""},{"$f":"'3 INCOME & EXPENSE'!E64","v":"00:00:00"},{"$f":"'3 INCOME & EXPENSE'!F64","v":0},{"$f":"'3 INCOME & EXPENSE'!G64","v":0},{"$f":"T('3 INCOME & EXPENSE'!H64)","v":""},{"$f":"T('3 INCOME & EXPENSE'!I64)","v":""},{"$f":"T('3 INCOME & EXPENSE'!J64)","v":""},{"$f":"T('3 INCOME & EXPENSE'!K64)","v":""},{"$f":"T('3 INCOME & EXPENSE'!L64)","v":""},{"$f":"'3 INCOME & EXPENSE'!M64","v":0},{"$f":"'3 INCOME & EXPENSE'!N64","v":0},{"$f":"'3 INCOME & EXPENSE'!O64","v":0},null,{"$f":"'3 INCOME & EXPENSE'!AK64","v":"00:00:00"},{"$f":"T('3 INCOME & EXPENSE'!AL64)","v":""},{"$f":"T('3 INCOME & EXPENSE'!AM64)","v":""},{"$f":"'3 INCOME & EXPENSE'!AN64","v":0},{"$f":"'3 INCOME & EXPENSE'!AO64","v":{"v":0,"d":"0.00"}},{"$f":"'3 INCOME & EXPENSE'!AP64","v":0}]
[null,{"$f":"T('3 INCOME & EXPENSE'!D65)","v":""},{"$f":"'3 INCOME & EXPENSE'!E65","v":"00:00:00"},{"$f":"'3 INCOME & EXPENSE'!F65","v":0},{"$f":"'3 INCOME & EXPENSE'!G65","v":0},{"$f":"T('3 INCOME & EXPENSE'!H65)","v":""},{"$f":"T('3 INCOME & EXPENSE'!I65)","v":""},{"$f":"T('3 INCOME & EXPENSE'!J65)","v":""},{"$f":"T('3 INCOME & EXPENSE'!K65)","v":""},{"$f":"T('3 INCOME & EXPENSE'!L65)","v":""},{"$f":"'3 INCOME & EXPENSE'!M65","v":0},{"$f":"'3 INCOME & EXPENSE'!N65","v":0},{"$f":"'3 INCOME & EXPENSE'!O65","v":0},null,{"$f":"'3 INCOME & EXPENSE'!AK65","v":"00:00:00"},{"$f":"T('3 INCOME & EXPENSE'!AL65)","v":""},{"$f":"T('3 INCOME & EXPENSE'!AM65)","v":""},{"$f":"'3 INCOME & EXPENSE'!AN65","v":0},{"$f":"'3 INCOME & EXPENSE'!AO65","v":{"v":0,"d":"0.00"}},{"$f":"'3 INCOME & EXPENSE'!AP65","v":0}]
[null,{"$f":"T('3 INCOME & EXPENSE'!D66)","v":""},{"$f":"'3 INCOME & EXPENSE'!E66","v":"00:00:00"},{"$f":"'3 INCOME & EXPENSE'!F66","v":0},{"$f":"'3 INCOME & EXPENSE'!G66","v":0},{"$f":"T('3 INCOME & EXPENSE'!H66)","v":""},{"$f":"T('3 INCOME & EXPENSE'!I66)","v":""},{"$f":"T('3 INCOME & EXPENSE'!J66)","v":""},{"$f":"T('3 INCOME & EXPENSE'!K66)","v":""},{"$f":"T('3 INCOME & EXPENSE'!L66)","v":""},{"$f":"'3 INCOME & EXPENSE'!M66","v":0},{"$f":"'3 INCOME & EXPENSE'!N66","v":0},{"$f":"'3 INCOME & EXPENSE'!O66","v":0},null,{"$f":"'3 INCOME & EXPENSE'!AK66","v":"00:00:00"},{"$f":"T('3 INCOME & EXPENSE'!AL66)","v":""},{"$f":"T('3 INCOME & EXPENSE'!AM66)","v":""},{"$f":"'3 INCOME & EXPENSE'!AN66","v":0},{"$f":"'3 INCOME & EXPENSE'!AO66","v":{"v":0,"d":"0.00"}},{"$f":"'3 INCOME & EXPENSE'!AP66","v":0}]
[null,{"$f":"T('3 INCOME & EXPENSE'!D67)","v":""},{"$f":"'3 INCOME & EXPENSE'!E67","v":"00:00:00"},{"$f":"'3 INCOME & EXPENSE'!F67","v":0},{"$f":"'3 INCOME & EXPENSE'!G67","v":0},{"$f":"T('3 INCOME & EXPENSE'!H67)","v":""},{"$f":"T('3 INCOME & EXPENSE'!I67)","v":""},{"$f":"T('3 INCOME & EXPENSE'!J67)","v":""},{"$f":"T('3 INCOME & EXPENSE'!K67)","v":""},{"$f":"T('3 INCOME & EXPENSE'!L67)","v":""},{"$f":"'3 INCOME & EXPENSE'!M67","v":0},{"$f":"'3 INCOME & EXPENSE'!N67","v":0},{"$f":"'3 INCOME & EXPENSE'!O67","v":0},null,{"$f":"'3 INCOME & EXPENSE'!AK67","v":"00:00:00"},{"$f":"T('3 INCOME & EXPENSE'!AL67)","v":""},{"$f":"T('3 INCOME & EXPENSE'!AM67)","v":""},{"$f":"'3 INCOME & EXPENSE'!AN67","v":0},{"$f":"'3 INCOME & EXPENSE'!AO67","v":{"v":0,"d":"0.00"}},{"$f":"'3 INCOME & EXPENSE'!AP67","v":0}]
[null,{"$f":"T('3 INCOME & EXPENSE'!D68)","v":""},{"$f":"'3 INCOME & EXPENSE'!E68","v":"00:00:00"},{"$f":"'3 INCOME & EXPENSE'!F68","v":0},{"$f":"'3 INCOME & EXPENSE'!G68","v":0},{"$f":"T('3 INCOME & EXPENSE'!H68)","v":""},{"$f":"T('3 INCOME & EXPENSE'!I68)","v":""},{"$f":"T('3 INCOME & EXPENSE'!J68)","v":""},{"$f":"T('3 INCOME & EXPENSE'!K68)","v":""},{"$f":"T('3 INCOME & EXPENSE'!L68)","v":""},{"$f":"'3 INCOME & EXPENSE'!M68","v":0},{"$f":"'3 INCOME & EXPENSE'!N68","v":0},{"$f":"'3 INCOME & EXPENSE'!O68","v":0},null,{"$f":"'3 INCOME & EXPENSE'!AK68","v":"00:00:00"},{"$f":"T('3 INCOME & EXPENSE'!AL68)","v":""},{"$f":"T('3 INCOME & EXPENSE'!AM68)","v":""},{"$f":"'3 INCOME & EXPENSE'!AN68","v":0},{"$f":"'3 INCOME & EXPENSE'!AO68","v":{"v":0,"d":"0.00"}},{"$f":"'3 INCOME & EXPENSE'!AP68","v":0}]
[null,{"$f":"T('3 INCOME & EXPENSE'!D69)","v":""},{"$f":"'3 INCOME & EXPENSE'!E69","v":"00:00:00"},{"$f":"'3 INCOME & EXPENSE'!F69","v":0},{"$f":"'3 INCOME & EXPENSE'!G69","v":0},{"$f":"T('3 INCOME & EXPENSE'!H69)","v":""},{"$f":"T('3 INCOME & EXPENSE'!I69)","v":""},{"$f":"T('3 INCOME & EXPENSE'!J69)","v":""},{"$f":"T('3 INCOME & EXPENSE'!K69)","v":""},{"$f":"T('3 INCOME & EXPENSE'!L69)","v":""},{"$f":"'3 INCOME & EXPENSE'!M69","v":0},{"$f":"'3 INCOME & EXPENSE'!N69","v":0},{"$f":"'3 INCOME & EXPENSE'!O69","v":0},null,{"$f":"'3 INCOME & EXPENSE'!AK69","v":"00:00:00"},{"$f":"T('3 INCOME & EXPENSE'!AL69)","v":""},{"$f":"T('3 INCOME & EXPENSE'!AM69)","v":""},{"$f":"'3 INCOME & EXPENSE'!AN69","v":0},{"$f":"'3 INCOME & EXPENSE'!AO69","v":{"v":0,"d":"0.00"}},{"$f":"'3 INCOME & EXPENSE'!AP69","v":0}]
[null,{"$f":"T('3 INCOME & EXPENSE'!D70)","v":""},{"$f":"'3 INCOME & EXPENSE'!E70","v":"00:00:00"},{"$f":"'3 INCOME & EXPENSE'!F70","v":0},{"$f":"'3 INCOME & EXPENSE'!G70","v":0},{"$f":"T('3 INCOME & EXPENSE'!H70)","v":""},{"$f":"T('3 INCOME & EXPENSE'!I70)","v":""},{"$f":"T('3 INCOME & EXPENSE'!J70)","v":""},{"$f":"T('3 INCOME & EXPENSE'!K70)","v":""},{"$f":"T('3 INCOME & EXPENSE'!L70)","v":""},{"$f":"'3 INCOME & EXPENSE'!M70","v":0},{"$f":"'3 INCOME & EXPENSE'!N70","v":0},{"$f":"'3 INCOME & EXPENSE'!O70","v":0},null,{"$f":"'3 INCOME & EXPENSE'!AK70","v":"00:00:00"},{"$f":"T('3 INCOME & EXPENSE'!AL70)","v":""},{"$f":"T('3 INCOME & EXPENSE'!AM70)","v":""},{"$f":"'3 INCOME & EXPENSE'!AN70","v":0},{"$f":"'3 INCOME & EXPENSE'!AO70","v":{"v":0,"d":"0.00"}},{"$f":"'3 INCOME & EXPENSE'!AP70","v":0}]
[null,{"$f":"T('3 INCOME & EXPENSE'!D71)","v":""},{"$f":"'3 INCOME & EXPENSE'!E71","v":"00:00:00"},{"$f":"'3 INCOME & EXPENSE'!F71","v":0},{"$f":"'3 INCOME & EXPENSE'!G71","v":0},{"$f":"T('3 INCOME & EXPENSE'!H71)","v":""},{"$f":"T('3 INCOME & EXPENSE'!I71)","v":""},{"$f":"T('3 INCOME & EXPENSE'!J71)","v":""},{"$f":"T('3 INCOME & EXPENSE'!K71)","v":""},{"$f":"T('3 INCOME & EXPENSE'!L71)","v":""},{"$f":"'3 INCOME & EXPENSE'!M71","v":0},{"$f":"'3 INCOME & EXPENSE'!N71","v":0},{"$f":"'3 INCOME & EXPENSE'!O71","v":0},null,{"$f":"'3 INCOME & EXPENSE'!AK71","v":"00:00:00"},{"$f":"T('3 INCOME & EXPENSE'!AL71)","v":""},{"$f":"T('3 INCOME & EXPENSE'!AM71)","v":""},{"$f":"'3 INCOME & EXPENSE'!AN71","v":0},{"$f":"'3 INCOME & EXPENSE'!AO71","v":{"v":0,"d":"0.00"}},{"$f":"'3 INCOME & EXPENSE'!AP71","v":0}]
[null,{"$f":"T('3 INCOME & EXPENSE'!D72)","v":""},{"$f":"'3 INCOME & EXPENSE'!E72","v":"00:00:00"},{"$f":"'3 INCOME & EXPENSE'!F72","v":0},{"$f":"'3 INCOME & EXPENSE'!G72","v":0},{"$f":"T('3 INCOME & EXPENSE'!H72)","v":""},{"$f":"T('3 INCOME & EXPENSE'!I72)","v":""},{"$f":"T('3 INCOME & EXPENSE'!J72)","v":""},{"$f":"T('3 INCOME & EXPENSE'!K72)","v":""},{"$f":"T('3 INCOME & EXPENSE'!L72)","v":""},{"$f":"'3 INCOME & EXPENSE'!M72","v":0},{"$f":"'3 INCOME & EXPENSE'!N72","v":0},{"$f":"'3 INCOME & EXPENSE'!O72","v":0},null,{"$f":"'3 INCOME & EXPENSE'!AK72","v":"00:00:00"},{"$f":"T('3 INCOME & EXPENSE'!AL72)","v":""},{"$f":"T('3 INCOME & EXPENSE'!AM72)","v":""},{"$f":"'3 INCOME & EXPENSE'!AN72","v":0},{"$f":"'3 INCOME & EXPENSE'!AO72","v":{"v":0,"d":"0.00"}},{"$f":"'3 INCOME & EXPENSE'!AP72","v":0}]
[null,{"$f":"T('3 INCOME & EXPENSE'!D73)","v":""},{"$f":"'3 INCOME & EXPENSE'!E73","v":"00:00:00"},{"$f":"'3 INCOME & EXPENSE'!F73","v":0},{"$f":"'3 INCOME & EXPENSE'!G73","v":0},{"$f":"T('3 INCOME & EXPENSE'!H73)","v":""},{"$f":"T('3 INCOME & EXPENSE'!I73)","v":""},{"$f":"T('3 INCOME & EXPENSE'!J73)","v":""},{"$f":"T('3 INCOME & EXPENSE'!K73)","v":""},{"$f":"T('3 INCOME & EXPENSE'!L73)","v":""},{"$f":"'3 INCOME & EXPENSE'!M73","v":0},{"$f":"'3 INCOME & EXPENSE'!N73","v":0},{"$f":"'3 INCOME & EXPENSE'!O73","v":0},null,{"$f":"'3 INCOME & EXPENSE'!AK73","v":"00:00:00"},{"$f":"T('3 INCOME & EXPENSE'!AL73)","v":""},{"$f":"T('3 INCOME & EXPENSE'!AM73)","v":""},{"$f":"'3 INCOME & EXPENSE'!AN73","v":0},{"$f":"'3 INCOME & EXPENSE'!AO73","v":{"v":0,"d":"0.00"}},{"$f":"'3 INCOME & EXPENSE'!AP73","v":0}]
[null,{"$f":"T('3 INCOME & EXPENSE'!D74)","v":""},{"$f":"'3 INCOME & EXPENSE'!E74","v":"00:00:00"},{"$f":"'3 INCOME & EXPENSE'!F74","v":0},{"$f":"'3 INCOME & EXPENSE'!G74","v":0},{"$f":"T('3 INCOME & EXPENSE'!H74)","v":""},{"$f":"T('3 INCOME & EXPENSE'!I74)","v":""},{"$f":"T('3 INCOME & EXPENSE'!J74)","v":""},{"$f":"T('3 INCOME & EXPENSE'!K74)","v":""},{"$f":"T('3 INCOME & EXPENSE'!L74)","v":""},{"$f":"'3 INCOME & EXPENSE'!M74","v":0},{"$f":"'3 INCOME & EXPENSE'!N74","v":0},{"$f":"'3 INCOME & EXPENSE'!O74","v":0},null,{"$f":"'3 INCOME & EXPENSE'!AK74","v":"00:00:00"},{"$f":"T('3 INCOME & EXPENSE'!AL74)","v":""},{"$f":"T('3 INCOME & EXPENSE'!AM74)","v":""},{"$f":"'3 INCOME & EXPENSE'!AN74","v":0},{"$f":"'3 INCOME & EXPENSE'!AO74","v":{"v":0,"d":"0.00"}},{"$f":"'3 INCOME & EXPENSE'!AP74","v":0}]
[null,{"$f":"T('3 INCOME & EXPENSE'!D75)","v":""},{"$f":"'3 INCOME & EXPENSE'!E75","v":"00:00:00"},{"$f":"'3 INCOME & EXPENSE'!F75","v":0},{"$f":"'3 INCOME & EXPENSE'!G75","v":0},{"$f":"T('3 INCOME & EXPENSE'!H75)","v":""},{"$f":"T('3 INCOME & EXPENSE'!I75)","v":""},{"$f":"T('3 INCOME & EXPENSE'!J75)","v":""},{"$f":"T('3 INCOME & EXPENSE'!K75)","v":""},{"$f":"T('3 INCOME & EXPENSE'!L75)","v":""},{"$f":"'3 INCOME & EXPENSE'!M75","v":0},{"$f":"'3 INCOME & EXPENSE'!N75","v":0},{"$f":"'3 INCOME & EXPENSE'!O75","v":0},null,{"$f":"'3 INCOME & EXPENSE'!AK75","v":"00:00:00"},{"$f":"T('3 INCOME & EXPENSE'!AL75)","v":""},{"$f":"T('3 INCOME & EXPENSE'!AM75)","v":""},{"$f":"'3 INCOME & EXPENSE'!AN75","v":0},{"$f":"'3 INCOME & EXPENSE'!AO75","v":{"v":0,"d":"0.00"}},{"$f":"'3 INCOME & EXPENSE'!AP75","v":0}]
[null,{"$f":"T('3 INCOME & EXPENSE'!D76)","v":""},{"$f":"'3 INCOME & EXPENSE'!E76","v":"00:00:00"},{"$f":"'3 INCOME & EXPENSE'!F76","v":0},{"$f":"'3 INCOME & EXPENSE'!G76","v":0},{"$f":"T('3 INCOME & EXPENSE'!H76)","v":""},{"$f":"T('3 INCOME & EXPENSE'!I76)","v":""},{"$f":"T('3 INCOME & EXPENSE'!J76)","v":""},{"$f":"T('3 INCOME & EXPENSE'!K76)","v":""},{"$f":"T('3 INCOME & EXPENSE'!L76)","v":""},{"$f":"'3 INCOME & EXPENSE'!M76","v":0},{"$f":"'3 INCOME & EXPENSE'!N76","v":0},{"$f":"'3 INCOME & EXPENSE'!O76","v":0},null,{"$f":"'3 INCOME & EXPENSE'!AK76","v":"00:00:00"},{"$f":"T('3 INCOME & EXPENSE'!AL76)","v":""},{"$f":"T('3 INCOME & EXPENSE'!AM76)","v":""},{"$f":"'3 INCOME & EXPENSE'!AN76","v":0},{"$f":"'3 INCOME & EXPENSE'!AO76","v":{"v":0,"d":"0.00"}},{"$f":"'3 INCOME & EXPENSE'!AP76","v":0}]
[null,{"$f":"T('3 INCOME & EXPENSE'!D77)","v":""},{"$f":"'3 INCOME & EXPENSE'!E77","v":"00:00:00"},{"$f":"'3 INCOME & EXPENSE'!F77","v":0},{"$f":"'3 INCOME & EXPENSE'!G77","v":0},{"$f":"T('3 INCOME & EXPENSE'!H77)","v":""},{"$f":"T('3 INCOME & EXPENSE'!I77)","v":""},{"$f":"T('3 INCOME & EXPENSE'!J77)","v":""},{"$f":"T('3 INCOME & EXPENSE'!K77)","v":""},{"$f":"T('3 INCOME & EXPENSE'!L77)","v":""},{"$f":"'3 INCOME & EXPENSE'!M77","v":0},{"$f":"'3 INCOME & EXPENSE'!N77","v":0},{"$f":"'3 INCOME & EXPENSE'!O77","v":0},null,{"$f":"'3 INCOME & EXPENSE'!AK77","v":"00:00:00"},{"$f":"T('3 INCOME & EXPENSE'!AL77)","v":""},{"$f":"T('3 INCOME & EXPENSE'!AM77)","v":""},{"$f":"'3 INCOME & EXPENSE'!AN77","v":0},{"$f":"'3 INCOME & EXPENSE'!AO77","v":{"v":0,"d":"0.00"}},{"$f":"'3 INCOME & EXPENSE'!AP77","v":0}]
[null,{"$f":"T('3 INCOME & EXPENSE'!D78)","v":""},{"$f":"'3 INCOME & EXPENSE'!E78","v":"00:00:00"},{"$f":"'3 INCOME & EXPENSE'!F78","v":0},{"$f":"'3 INCOME & EXPENSE'!G78","v":0},{"$f":"T('3 INCOME & EXPENSE'!H78)","v":""},{"$f":"T('3 INCOME & EXPENSE'!I78)","v":""},{"$f":"T('3 INCOME & EXPENSE'!J78)","v":""},{"$f":"T('3 INCOME & EXPENSE'!K78)","v":""},{"$f":"T('3 INCOME & EXPENSE'!L78)","v":""},{"$f":"'3 INCOME & EXPENSE'!M78","v":0},{"$f":"'3 INCOME & EXPENSE'!N78","v":0},{"$f":"'3 INCOME & EXPENSE'!O78","v":0},null,{"$f":"'3 INCOME & EXPENSE'!AK78","v":"00:00:00"},{"$f":"T('3 INCOME & EXPENSE'!AL78)","v":""},{"$f":"T('3 INCOME & EXPENSE'!AM78)","v":""},{"$f":"'3 INCOME & EXPENSE'!AN78","v":0},{"$f":"'3 INCOME & EXPENSE'!AO78","v":{"v":0,"d":"0.00"}},{"$f":"'3 INCOME & EXPENSE'!AP78","v":0}]
[null,{"$f":"T('3 INCOME & EXPENSE'!D79)","v":""},{"$f":"'3 INCOME & EXPENSE'!E79","v":"00:00:00"},{"$f":"'3 INCOME & EXPENSE'!F79","v":0},{"$f":"'3 INCOME & EXPENSE'!G79","v":0},{"$f":"T('3 INCOME & EXPENSE'!H79)","v":""},{"$f":"T('3 INCOME & EXPENSE'!I79)","v":""},{"$f":"T('3 INCOME & EXPENSE'!J79)","v":""},{"$f":"T('3 INCOME & EXPENSE'!K79)","v":""},{"$f":"T('3 INCOME & EXPENSE'!L79)","v":""},{"$f":"'3 INCOME & EXPENSE'!M79","v":0},{"$f":"'3 INCOME & EXPENSE'!N79","v":0},{"$f":"'3 INCOME & EXPENSE'!O79","v":0},null,{"$f":"'3 INCOME & EXPENSE'!AK79","v":"00:00:00"},{"$f":"T('3 INCOME & EXPENSE'!AL79)","v":""},{"$f":"T('3 INCOME & EXPENSE'!AM79)","v":""},{"$f":"'3 INCOME & EXPENSE'!AN79","v":0},{"$f":"'3 INCOME & EXPENSE'!AO79","v":{"v":0,"d":"0.00"}},{"$f":"'3 INCOME & EXPENSE'!AP79","v":0}]
[null,{"$f":"T('3 INCOME & EXPENSE'!D80)","v":""},{"$f":"'3 INCOME & EXPENSE'!E80","v":"00:00:00"},{"$f":"'3 INCOME & EXPENSE'!F80","v":0},{"$f":"'3 INCOME & EXPENSE'!G80","v":0},{"$f":"T('3 INCOME & EXPENSE'!H80)","v":""},{"$f":"T('3 INCOME & EXPENSE'!I80)","v":""},{"$f":"T('3 INCOME & EXPENSE'!J80)","v":""},{"$f":"T('3 INCOME & EXPENSE'!K80)","v":""},{"$f":"T('3 INCOME & EXPENSE'!L80)","v":""},{"$f":"'3 INCOME & EXPENSE'!M80","v":0},{"$f":"'3 INCOME & EXPENSE'!N80","v":0},{"$f":"'3 INCOME & EXPENSE'!O80","v":0},null,{"$f":"'3 INCOME & EXPENSE'!AK80","v":"00:00:00"},{"$f":"T('3 INCOME & EXPENSE'!AL80)","v":""},{"$f":"T('3 INCOME & EXPENSE'!AM80)","v":""},{"$f":"'3 INCOME & EXPENSE'!AN80","v":0},{"$f":"'3 INCOME & EXPENSE'!AO80","v":{"v":0,"d":"0.00"}},{"$f":"'3 INCOME & EXPENSE'!AP80","v":0}]
[null,{"$f":"T('3 INCOME & EXPENSE'!D81)","v":""},{"$f":"'3 INCOME & EXPENSE'!E81","v":"00:00:00"},{"$f":"'3 INCOME & EXPENSE'!F81","v":0},{"$f":"'3 INCOME & EXPENSE'!G81","v":0},{"$f":"T('3 INCOME & EXPENSE'!H81)","v":""},{"$f":"T('3 INCOME & EXPENSE'!I81)","v":""},{"$f":"T('3 INCOME & EXPENSE'!J81)","v":""},{"$f":"T('3 INCOME & EXPENSE'!K81)","v":""},{"$f":"T('3 INCOME & EXPENSE'!L81)","v":""},{"$f":"'3 INCOME & EXPENSE'!M81","v":0},{"$f":"'3 INCOME & EXPENSE'!N81","v":0},{"$f":"'3 INCOME & EXPENSE'!O81","v":0},null,{"$f":"'3 INCOME & EXPENSE'!AK81","v":"00:00:00"},{"$f":"T('3 INCOME & EXPENSE'!AL81)","v":""},{"$f":"T('3 INCOME & EXPENSE'!AM81)","v":""},{"$f":"'3 INCOME & EXPENSE'!AN81","v":0},{"$f":"'3 INCOME & EXPENSE'!AO81","v":{"v":0,"d":"0.00"}},{"$f":"'3 INCOME & EXPENSE'!AP81","v":0}]
[null,{"$f":"T('3 INCOME & EXPENSE'!D82)","v":""},{"$f":"'3 INCOME & EXPENSE'!E82","v":"00:00:00"},{"$f":"'3 INCOME & EXPENSE'!F82","v":0},{"$f":"'3 INCOME & EXPENSE'!G82","v":0},{"$f":"T('3 INCOME & EXPENSE'!H82)","v":""},{"$f":"T('3 INCOME & EXPENSE'!I82)","v":""},{"$f":"T('3 INCOME & EXPENSE'!J82)","v":""},{"$f":"T('3 INCOME & EXPENSE'!K82)","v":""},{"$f":"T('3 INCOME & EXPENSE'!L82)","v":""},{"$f":"'3 INCOME & EXPENSE'!M82","v":0},{"$f":"'3 INCOME & EXPENSE'!N82","v":0},{"$f":"'3 INCOME & EXPENSE'!O82","v":0},null,{"$f":"'3 INCOME & EXPENSE'!AK82","v":"00:00:00"},{"$f":"T('3 INCOME & EXPENSE'!AL82)","v":""},{"$f":"T('3 INCOME & EXPENSE'!AM82)","v":""},{"$f":"'3 INCOME & EXPENSE'!AN82","v":0},{"$f":"'3 INCOME & EXPENSE'!AO82","v":{"v":0,"d":"0.00"}},{"$f":"'3 INCOME & EXPENSE'!AP82","v":0}]
[null,{"$f":"T('3 INCOME & EXPENSE'!D83)","v":""},{"$f":"'3 INCOME & EXPENSE'!E83","v":"00:00:00"},{"$f":"'3 INCOME & EXPENSE'!F83","v":0},{"$f":"'3 INCOME & EXPENSE'!G83","v":0},{"$f":"T('3 INCOME & EXPENSE'!H83)","v":""},{"$f":"T('3 INCOME & EXPENSE'!I83)","v":""},{"$f":"T('3 INCOME & EXPENSE'!J83)","v":""},{"$f":"T('3 INCOME & EXPENSE'!K83)","v":""},{"$f":"T('3 INCOME & EXPENSE'!L83)","v":""},{"$f":"'3 INCOME & EXPENSE'!M83","v":0},{"$f":"'3 INCOME & EXPENSE'!N83","v":0},{"$f":"'3 INCOME & EXPENSE'!O83","v":0},null,{"$f":"'3 INCOME & EXPENSE'!AK83","v":"00:00:00"},{"$f":"T('3 INCOME & EXPENSE'!AL83)","v":""},{"$f":"T('3 INCOME & EXPENSE'!AM83)","v":""},{"$f":"'3 INCOME & EXPENSE'!AN83","v":0},{"$f":"'3 INCOME & EXPENSE'!AO83","v":{"v":0,"d":"0.00"}},{"$f":"'3 INCOME & EXPENSE'!AP83","v":0}]
[null,{"$f":"T('3 INCOME & EXPENSE'!D84)","v":""},{"$f":"'3 INCOME & EXPENSE'!E84","v":"00:00:00"},{"$f":"'3 INCOME & EXPENSE'!F84","v":0},{"$f":"'3 INCOME & EXPENSE'!G84","v":0},{"$f":"T('3 INCOME & EXPENSE'!H84)","v":""},{"$f":"T('3 INCOME & EXPENSE'!I84)","v":""},{"$f":"T('3 INCOME & EXPENSE'!J84)","v":""},{"$f":"T('3 INCOME & EXPENSE'!K84)","v":""},{"$f":"T('3 INCOME & EXPENSE'!L84)","v":""},{"$f":"'3 INCOME & EXPENSE'!M84","v":0},{"$f":"'3 INCOME & EXPENSE'!N84","v":0},{"$f":"'3 INCOME & EXPENSE'!O84","v":0},null,{"$f":"'3 INCOME & EXPENSE'!AK84","v":"00:00:00"},{"$f":"T('3 INCOME & EXPENSE'!AL84)","v":""},{"$f":"T('3 INCOME & EXPENSE'!AM84)","v":""},{"$f":"'3 INCOME & EXPENSE'!AN84","v":0},{"$f":"'3 INCOME & EXPENSE'!AO84","v":{"v":0,"d":"0.00"}},{"$f":"'3 INCOME & EXPENSE'!AP84","v":0}]
[null,{"$f":"T('3 INCOME & EXPENSE'!D85)","v":""},{"$f":"'3 INCOME & EXPENSE'!E85","v":"00:00:00"},{"$f":"'3 INCOME & EXPENSE'!F85","v":0},{"$f":"'3 INCOME & EXPENSE'!G85","v":0},{"$f":"T('3 INCOME & EXPENSE'!H85)","v":""},{"$f":"T('3 INCOME & EXPENSE'!I85)","v":""},{"$f":"T('3 INCOME & EXPENSE'!J85)","v":""},{"$f":"T('3 INCOME & EXPENSE'!K85)","v":""},{"$f":"T('3 INCOME & EXPENSE'!L85)","v":""},{"$f":"'3 INCOME & EXPENSE'!M85","v":0},{"$f":"'3 INCOME & EXPENSE'!N85","v":0},{"$f":"'3 INCOME & EXPENSE'!O85","v":0},null,{"$f":"'3 INCOME & EXPENSE'!AK85","v":"00:00:00"},{"$f":"T('3 INCOME & EXPENSE'!AL85)","v":""},{"$f":"T('3 INCOME & EXPENSE'!AM85)","v":""},{"$f":"'3 INCOME & EXPENSE'!AN85","v":0},{"$f":"'3 INCOME & EXPENSE'!AO85","v":{"v":0,"d":"0.00"}},{"$f":"'3 INCOME & EXPENSE'!AP85","v":0}]
[null,{"$f":"T('3 INCOME & EXPENSE'!D86)","v":""},{"$f":"'3 INCOME & EXPENSE'!E86","v":"00:00:00"},{"$f":"'3 INCOME & EXPENSE'!F86","v":0},{"$f":"'3 INCOME & EXPENSE'!G86","v":0},{"$f":"T('3 INCOME & EXPENSE'!H86)","v":""},{"$f":"T('3 INCOME & EXPENSE'!I86)","v":""},{"$f":"T('3 INCOME & EXPENSE'!J86)","v":""},{"$f":"T('3 INCOME & EXPENSE'!K86)","v":""},{"$f":"T('3 INCOME & EXPENSE'!L86)","v":""},{"$f":"'3 INCOME & EXPENSE'!M86","v":0},{"$f":"'3 INCOME & EXPENSE'!N86","v":0},{"$f":"'3 INCOME & EXPENSE'!O86","v":0},null,{"$f":"'3 INCOME & EXPENSE'!AK86","v":"00:00:00"},{"$f":"T('3 INCOME & EXPENSE'!AL86)","v":""},{"$f":"T('3 INCOME & EXPENSE'!AM86)","v":""},{"$f":"'3 INCOME & EXPENSE'!AN86","v":0},{"$f":"'3 INCOME & EXPENSE'!AO86","v":{"v":0,"d":"0.00"}},{"$f":"'3 INCOME & EXPENSE'!AP86","v":0}]
[null,{"$f":"T('3 INCOME & EXPENSE'!D87)","v":""},{"$f":"'3 INCOME & EXPENSE'!E87","v":"00:00:00"},{"$f":"'3 INCOME & EXPENSE'!F87","v":0},{"$f":"'3 INCOME & EXPENSE'!G87","v":0},{"$f":"T('3 INCOME & EXPENSE'!H87)","v":""},{"$f":"T('3 INCOME & EXPENSE'!I87)","v":""},{"$f":"T('3 INCOME & EXPENSE'!J87)","v":""},{"$f":"T('3 INCOME & EXPENSE'!K87)","v":""},{"$f":"T('3 INCOME & EXPENSE'!L87)","v":""},{"$f":"'3 INCOME & EXPENSE'!M87","v":0},{"$f":"'3 INCOME & EXPENSE'!N87","v":0},{"$f":"'3 INCOME & EXPENSE'!O87","v":0},null,{"$f":"'3 INCOME & EXPENSE'!AK87","v":"00:00:00"},{"$f":"T('3 INCOME & EXPENSE'!AL87)","v":""},{"$f":"T('3 INCOME & EXPENSE'!AM87)","v":""},{"$f":"'3 INCOME & EXPENSE'!AN87","v":0},{"$f":"'3 INCOME & EXPENSE'!AO87","v":{"v":0,"d":"0.00"}},{"$f":"'3 INCOME & EXPENSE'!AP87","v":0}]
[null,{"$f":"T('3 INCOME & EXPENSE'!D88)","v":""},{"$f":"'3 INCOME & EXPENSE'!E88","v":"00:00:00"},{"$f":"'3 INCOME & EXPENSE'!F88","v":0},{"$f":"'3 INCOME & EXPENSE'!G88","v":0},{"$f":"T('3 INCOME & EXPENSE'!H88)","v":""},{"$f":"T('3 INCOME & EXPENSE'!I88)","v":""},{"$f":"T('3 INCOME & EXPENSE'!J88)","v":""},{"$f":"T('3 INCOME & EXPENSE'!K88)","v":""},{"$f":"T('3 INCOME & EXPENSE'!L88)","v":""},{"$f":"'3 INCOME & EXPENSE'!M88","v":0},{"$f":"'3 INCOME & EXPENSE'!N88","v":0},{"$f":"'3 INCOME & EXPENSE'!O88","v":0},null,{"$f":"'3 INCOME & EXPENSE'!AK88","v":"00:00:00"},{"$f":"T('3 INCOME & EXPENSE'!AL88)","v":""},{"$f":"T('3 INCOME & EXPENSE'!AM88)","v":""},{"$f":"'3 INCOME & EXPENSE'!AN88","v":0},{"$f":"'3 INCOME & EXPENSE'!AO88","v":{"v":0,"d":"0.00"}},{"$f":"'3 INCOME & EXPENSE'!AP88","v":0}]
[null,{"$f":"T('3 INCOME & EXPENSE'!D89)","v":""},{"$f":"'3 INCOME & EXPENSE'!E89","v":"00:00:00"},{"$f":"'3 INCOME & EXPENSE'!F89","v":0},{"$f":"'3 INCOME & EXPENSE'!G89","v":0},{"$f":"T('3 INCOME & EXPENSE'!H89)","v":""},{"$f":"T('3 INCOME & EXPENSE'!I89)","v":""},{"$f":"T('3 INCOME & EXPENSE'!J89)","v":""},{"$f":"T('3 INCOME & EXPENSE'!K89)","v":""},{"$f":"T('3 INCOME & EXPENSE'!L89)","v":""},{"$f":"'3 INCOME & EXPENSE'!M89","v":0},{"$f":"'3 INCOME & EXPENSE'!N89","v":0},{"$f":"'3 INCOME & EXPENSE'!O89","v":0},null,{"$f":"'3 INCOME & EXPENSE'!AK89","v":"00:00:00"},{"$f":"T('3 INCOME & EXPENSE'!AL89)","v":""},{"$f":"T('3 INCOME & EXPENSE'!AM89)","v":""},{"$f":"'3 INCOME & EXPENSE'!AN89","v":0},{"$f":"'3 INCOME & EXPENSE'!AO89","v":{"v":0,"d":"0.00"}},{"$f":"'3 INCOME & EXPENSE'!AP89","v":0}]
[null,{"$f":"T('3 INCOME & EXPENSE'!D90)","v":""},{"$f":"'3 INCOME & EXPENSE'!E90","v":"00:00:00"},{"$f":"'3 INCOME & EXPENSE'!F90","v":0},{"$f":"'3 INCOME & EXPENSE'!G90","v":0},{"$f":"T('3 INCOME & EXPENSE'!H90)","v":""},{"$f":"T('3 INCOME & EXPENSE'!I90)","v":""},{"$f":"T('3 INCOME & EXPENSE'!J90)","v":""},{"$f":"T('3 INCOME & EXPENSE'!K90)","v":""},{"$f":"T('3 INCOME & EXPENSE'!L90)","v":""},{"$f":"'3 INCOME & EXPENSE'!M90","v":0},{"$f":"'3 INCOME & EXPENSE'!N90","v":0},{"$f":"'3 INCOME & EXPENSE'!O90","v":0},null,{"$f":"'3 INCOME & EXPENSE'!AK90","v":"00:00:00"},{"$f":"T('3 INCOME & EXPENSE'!AL90)","v":""},{"$f":"T('3 INCOME & EXPENSE'!AM90)","v":""},{"$f":"'3 INCOME & EXPENSE'!AN90","v":0},{"$f":"'3 INCOME & EXPENSE'!AO90","v":{"v":0,"d":"0.00"}},{"$f":"'3 INCOME & EXPENSE'!AP90","v":0}]
[null,{"$f":"T('3 INCOME & EXPENSE'!D91)","v":""},{"$f":"'3 INCOME & EXPENSE'!E91","v":"00:00:00"},{"$f":"'3 INCOME & EXPENSE'!F91","v":0},{"$f":"'3 INCOME & EXPENSE'!G91","v":0},{"$f":"T('3 INCOME & EXPENSE'!H91)","v":""},{"$f":"T('3 INCOME & EXPENSE'!I91)","v":""},{"$f":"T('3 INCOME & EXPENSE'!J91)","v":""},{"$f":"T('3 INCOME & EXPENSE'!K91)","v":""},{"$f":"T('3 INCOME & EXPENSE'!L91)","v":""},{"$f":"'3 INCOME & EXPENSE'!M91","v":0},{"$f":"'3 INCOME & EXPENSE'!N91","v":0},{"$f":"'3 INCOME & EXPENSE'!O91","v":0},null,{"$f":"'3 INCOME & EXPENSE'!AK91","v":"00:00:00"},{"$f":"T('3 INCOME & EXPENSE'!AL91)","v":""},{"$f":"T('3 INCOME & EXPENSE'!AM91)","v":""},{"$f":"'3 INCOME & EXPENSE'!AN91","v":0},{"$f":"'3 INCOME & EXPENSE'!AO91","v":{"v":0,"d":"0.00"}},{"$f":"'3 INCOME & EXPENSE'!AP91","v":0}]
[null,{"$f":"T('3 INCOME & EXPENSE'!D92)","v":""},{"$f":"'3 INCOME & EXPENSE'!E92","v":"00:00:00"},{"$f":"'3 INCOME & EXPENSE'!F92","v":0},{"$f":"'3 INCOME & EXPENSE'!G92","v":0},{"$f":"T('3 INCOME & EXPENSE'!H92)","v":""},{"$f":"T('3 INCOME & EXPENSE'!I92)","v":""},{"$f":"T('3 INCOME & EXPENSE'!J92)","v":""},{"$f":"T('3 INCOME & EXPENSE'!K92)","v":""},{"$f":"T('3 INCOME & EXPENSE'!L92)","v":""},{"$f":"'3 INCOME & EXPENSE'!M92","v":0},{"$f":"'3 INCOME & EXPENSE'!N92","v":0},{"$f":"'3 INCOME & EXPENSE'!O92","v":0},null,{"$f":"'3 INCOME & EXPENSE'!AK92","v":"00:00:00"},{"$f":"T('3 INCOME & EXPENSE'!AL92)","v":""},{"$f":"T('3 INCOME & EXPENSE'!AM92)","v":""},{"$f":"'3 INCOME & EXPENSE'!AN92","v":0},{"$f":"'3 INCOME & EXPENSE'!AO92","v":{"v":0,"d":"0.00"}},{"$f":"'3 INCOME & EXPENSE'!AP92","v":0}]
[null,{"$f":"T('3 INCOME & EXPENSE'!D93)","v":""},{"$f":"'3 INCOME & EXPENSE'!E93","v":"00:00:00"},{"$f":"'3 INCOME & EXPENSE'!F93","v":0},{"$f":"'3 INCOME & EXPENSE'!G93","v":0},{"$f":"T('3 INCOME & EXPENSE'!H93)","v":""},{"$f":"T('3 INCOME & EXPENSE'!I93)","v":""},{"$f":"T('3 INCOME & EXPENSE'!J93)","v":""},{"$f":"T('3 INCOME & EXPENSE'!K93)","v":""},{"$f":"T('3 INCOME & EXPENSE'!L93)","v":""},{"$f":"'3 INCOME & EXPENSE'!M93","v":0},{"$f":"'3 INCOME & EXPENSE'!N93","v":0},{"$f":"'3 INCOME & EXPENSE'!O93","v":0},null,{"$f":"'3 INCOME & EXPENSE'!AK93","v":"00:00:00"},{"$f":"T('3 INCOME & EXPENSE'!AL93)","v":""},{"$f":"T('3 INCOME & EXPENSE'!AM93)","v":""},{"$f":"'3 INCOME & EXPENSE'!AN93","v":0},{"$f":"'3 INCOME & EXPENSE'!AO93","v":{"v":0,"d":"0.00"}},{"$f":"'3 INCOME & EXPENSE'!AP93","v":0}]
[null,{"$f":"T('3 INCOME & EXPENSE'!D94)","v":""},{"$f":"'3 INCOME & EXPENSE'!E94","v":"00:00:00"},{"$f":"'3 INCOME & EXPENSE'!F94","v":0},{"$f":"'3 INCOME & EXPENSE'!G94","v":0},{"$f":"T('3 INCOME & EXPENSE'!H94)","v":""},{"$f":"T('3 INCOME & EXPENSE'!I94)","v":""},{"$f":"T('3 INCOME & EXPENSE'!J94)","v":""},{"$f":"T('3 INCOME & EXPENSE'!K94)","v":""},{"$f":"T('3 INCOME & EXPENSE'!L94)","v":""},{"$f":"'3 INCOME & EXPENSE'!M94","v":0},{"$f":"'3 INCOME & EXPENSE'!N94","v":0},{"$f":"'3 INCOME & EXPENSE'!O94","v":0},null,{"$f":"'3 INCOME & EXPENSE'!AK94","v":"00:00:00"},{"$f":"T('3 INCOME & EXPENSE'!AL94)","v":""},{"$f":"T('3 INCOME & EXPENSE'!AM94)","v":""},{"$f":"'3 INCOME & EXPENSE'!AN94","v":0},{"$f":"'3 INCOME & EXPENSE'!AO94","v":{"v":0,"d":"0.00"}},{"$f":"'3 INCOME & EXPENSE'!AP94","v":0}]
[null,{"$f":"T('3 INCOME & EXPENSE'!D95)","v":""},{"$f":"'3 INCOME & EXPENSE'!E95","v":"00:00:00"},{"$f":"'3 INCOME & EXPENSE'!F95","v":0},{"$f":"'3 INCOME & EXPENSE'!G95","v":0},{"$f":"T('3 INCOME & EXPENSE'!H95)","v":""},{"$f":"T('3 INCOME & EXPENSE'!I95)","v":""},{"$f":"T('3 INCOME & EXPENSE'!J95)","v":""},{"$f":"T('3 INCOME & EXPENSE'!K95)","v":""},{"$f":"T('3 INCOME & EXPENSE'!L95)","v":""},{"$f":"'3 INCOME & EXPENSE'!M95","v":0},{"$f":"'3 INCOME & EXPENSE'!N95","v":0},{"$f":"'3 INCOME & EXPENSE'!O95","v":0},null,{"$f":"'3 INCOME & EXPENSE'!AK95","v":"00:00:00"},{"$f":"T('3 INCOME & EXPENSE'!AL95)","v":""},{"$f":"T('3 INCOME & EXPENSE'!AM95)","v":""},{"$f":"'3 INCOME & EXPENSE'!AN95","v":0},{"$f":"'3 INCOME & EXPENSE'!AO95","v":{"v":0,"d":"0.00"}},{"$f":"'3 INCOME & EXPENSE'!AP95","v":0}]
[null,{"$f":"T('3 INCOME & EXPENSE'!D96)","v":""},{"$f":"'3 INCOME & EXPENSE'!E96","v":"00:00:00"},{"$f":"'3 INCOME & EXPENSE'!F96","v":0},{"$f":"'3 INCOME & EXPENSE'!G96","v":0},{"$f":"T('3 INCOME & EXPENSE'!H96)","v":""},{"$f":"T('3 INCOME & EXPENSE'!I96)","v":""},{"$f":"T('3 INCOME & EXPENSE'!J96)","v":""},{"$f":"T('3 INCOME & EXPENSE'!K96)","v":""},{"$f":"T('3 INCOME & EXPENSE'!L96)","v":""},{"$f":"'3 INCOME & EXPENSE'!M96","v":0},{"$f":"'3 INCOME & EXPENSE'!N96","v":0},{"$f":"'3 INCOME & EXPENSE'!O96","v":0},null,{"$f":"'3 INCOME & EXPENSE'!AK96","v":"00:00:00"},{"$f":"T('3 INCOME & EXPENSE'!AL96)","v":""},{"$f":"T('3 INCOME & EXPENSE'!AM96)","v":""},{"$f":"'3 INCOME & EXPENSE'!AN96","v":0},{"$f":"'3 INCOME & EXPENSE'!AO96","v":{"v":0,"d":"0.00"}},{"$f":"'3 INCOME & EXPENSE'!AP96","v":0}]
[null,{"$f":"T('3 INCOME & EXPENSE'!D97)","v":""},{"$f":"'3 INCOME & EXPENSE'!E97","v":"00:00:00"},{"$f":"'3 INCOME & EXPENSE'!F97","v":0},{"$f":"'3 INCOME & EXPENSE'!G97","v":0},{"$f":"T('3 INCOME & EXPENSE'!H97)","v":""},{"$f":"T('3 INCOME & EXPENSE'!I97)","v":""},{"$f":"T('3 INCOME & EXPENSE'!J97)","v":""},{"$f":"T('3 INCOME & EXPENSE'!K97)","v":""},{"$f":"T('3 INCOME & EXPENSE'!L97)","v":""},{"$f":"'3 INCOME & EXPENSE'!M97","v":0},{"$f":"'3 INCOME & EXPENSE'!N97","v":0},{"$f":"'3 INCOME & EXPENSE'!O97","v":0},null,{"$f":"'3 INCOME & EXPENSE'!AK97","v":"00:00:00"},{"$f":"T('3 INCOME & EXPENSE'!AL97)","v":""},{"$f":"T('3 INCOME & EXPENSE'!AM97)","v":""},{"$f":"'3 INCOME & EXPENSE'!AN97","v":0},{"$f":"'3 INCOME & EXPENSE'!AO97","v":{"v":0,"d":"0.00"}},{"$f":"'3 INCOME & EXPENSE'!AP97","v":0}]
[null,{"$f":"T('3 INCOME & EXPENSE'!D98)","v":""},{"$f":"'3 INCOME & EXPENSE'!E98","v":"00:00:00"},{"$f":"'3 INCOME & EXPENSE'!F98","v":0},{"$f":"'3 INCOME & EXPENSE'!G98","v":0},{"$f":"T('3 INCOME & EXPENSE'!H98)","v":""},{"$f":"T('3 INCOME & EXPENSE'!I98)","v":""},{"$f":"T('3 INCOME & EXPENSE'!J98)","v":""},{"$f":"T('3 INCOME & EXPENSE'!K98)","v":""},{"$f":"T('3 INCOME & EXPENSE'!L98)","v":""},{"$f":"'3 INCOME & EXPENSE'!M98","v":0},{"$f":"'3 INCOME & EXPENSE'!N98","v":0},{"$f":"'3 INCOME & EXPENSE'!O98","v":0},null,{"$f":"'3 INCOME & EXPENSE'!AK98","v":"00:00:00"},{"$f":"T('3 INCOME & EXPENSE'!AL98)","v":""},{"$f":"T('3 INCOME & EXPENSE'!AM98)","v":""},{"$f":"'3 INCOME & EXPENSE'!AN98","v":0},{"$f":"'3 INCOME & EXPENSE'!AO98","v":{"v":0,"d":"0.00"}},{"$f":"'3 INCOME & EXPENSE'!AP98","v":0}]
[null,{"$f":"T('3 INCOME & EXPENSE'!D99)","v":""},{"$f":"'3 INCOME & EXPENSE'!E99","v":"00:00:00"},{"$f":"'3 INCOME & EXPENSE'!F99","v":0},{"$f":"'3 INCOME & EXPENSE'!G99","v":0},{"$f":"T('3 INCOME & EXPENSE'!H99)","v":""},{"$f":"T('3 INCOME & EXPENSE'!I99)","v":""},{"$f":"T('3 INCOME & EXPENSE'!J99)","v":""},{"$f":"T('3 INCOME & EXPENSE'!K99)","v":""},{"$f":"T('3 INCOME & EXPENSE'!L99)","v":""},{"$f":"'3 INCOME & EXPENSE'!M99","v":0},{"$f":"'3 INCOME & EXPENSE'!N99","v":0},{"$f":"'3 INCOME & EXPENSE'!O99","v":0},null,{"$f":"'3 INCOME & EXPENSE'!AK99","v":"00:00:00"},{"$f":"T('3 INCOME & EXPENSE'!AL99)","v":""},{"$f":"T('3 INCOME & EXPENSE'!AM99)","v":""},{"$f":"'3 INCOME & EXPENSE'!AN99","v":0},{"$f":"'3 INCOME & EXPENSE'!AO99","v":{"v":0,"d":"0.00"}},{"$f":"'3 INCOME & EXPENSE'!AP99","v":0}]
[null,{"$f":"T('3 INCOME & EXPENSE'!D100)","v":""},{"$f":"'3 INCOME & EXPENSE'!E100","v":"00:00:00"},{"$f":"'3 INCOME & EXPENSE'!F100","v":0},{"$f":"'3 INCOME & EXPENSE'!G100","v":0},{"$f":"T('3 INCOME & EXPENSE'!H100)","v":""},{"$f":"T('3 INCOME & EXPENSE'!I100)","v":""},{"$f":"T('3 INCOME & EXPENSE'!J100)","v":""},{"$f":"T('3 INCOME & EXPENSE'!K100)","v":""},{"$f":"T('3 INCOME & EXPENSE'!L100)","v":""},{"$f":"'3 INCOME & EXPENSE'!M100","v":0},{"$f":"'3 INCOME & EXPENSE'!N100","v":0},{"$f":"'3 INCOME & EXPENSE'!O100","v":0},null,{"$f":"'3 INCOME & EXPENSE'!AK100","v":"00:00:00"},{"$f":"T('3 INCOME & EXPENSE'!AL100)","v":""},{"$f":"T('3 INCOME & EXPENSE'!AM100)","v":""},{"$f":"'3 INCOME & EXPENSE'!AN100","v":0},{"$f":"'3 INCOME & EXPENSE'!AO100","v":{"v":0,"d":"0.00"}},{"$f":"'3 INCOME & EXPENSE'!AP100","v":0}]
[null,{"$f":"T('3 INCOME & EXPENSE'!D101)","v":""},{"$f":"'3 INCOME & EXPENSE'!E101","v":"00:00:00"},{"$f":"'3 INCOME & EXPENSE'!F101","v":0},{"$f":"'3 INCOME & EXPENSE'!G101","v":0},{"$f":"T('3 INCOME & EXPENSE'!H101)","v":""},{"$f":"T('3 INCOME & EXPENSE'!I101)","v":""},{"$f":"T('3 INCOME & EXPENSE'!J101)","v":""},{"$f":"T('3 INCOME & EXPENSE'!K101)","v":""},{"$f":"T('3 INCOME & EXPENSE'!L101)","v":""},{"$f":"'3 INCOME & EXPENSE'!M101","v":0},{"$f":"'3 INCOME & EXPENSE'!N101","v":0},{"$f":"'3 INCOME & EXPENSE'!O101","v":0},null,{"$f":"'3 INCOME & EXPENSE'!AK101","v":"00:00:00"},{"$f":"T('3 INCOME & EXPENSE'!AL101)","v":""},{"$f":"T('3 INCOME & EXPENSE'!AM101)","v":""},{"$f":"'3 INCOME & EXPENSE'!AN101","v":0},{"$f":"'3 INCOME & EXPENSE'!AO101","v":{"v":0,"d":"0.00"}},{"$f":"'3 INCOME & EXPENSE'!AP101","v":0}]
[null,{"$f":"T('3 INCOME & EXPENSE'!D102)","v":""},{"$f":"'3 INCOME & EXPENSE'!E102","v":"00:00:00"},{"$f":"'3 INCOME & EXPENSE'!F102","v":0},{"$f":"'3 INCOME & EXPENSE'!G102","v":0},{"$f":"T('3 INCOME & EXPENSE'!H102)","v":""},{"$f":"T('3 INCOME & EXPENSE'!I102)","v":""},{"$f":"T('3 INCOME & EXPENSE'!J102)","v":""},{"$f":"T('3 INCOME & EXPENSE'!K102)","v":""},{"$f":"T('3 INCOME & EXPENSE'!L102)","v":""},{"$f":"'3 INCOME & EXPENSE'!M102","v":0},{"$f":"'3 INCOME & EXPENSE'!N102","v":0},{"$f":"'3 INCOME & EXPENSE'!O102","v":0},null,{"$f":"'3 INCOME & EXPENSE'!AK102","v":"00:00:00"},{"$f":"T('3 INCOME & EXPENSE'!AL102)","v":""},{"$f":"T('3 INCOME & EXPENSE'!AM102)","v":""},{"$f":"'3 INCOME & EXPENSE'!AN102","v":0},{"$f":"'3 INCOME & EXPENSE'!AO102","v":{"v":0,"d":"0.00"}},{"$f":"'3 INCOME & EXPENSE'!AP102","v":0}]
[null,{"$f":"T('3 INCOME & EXPENSE'!D103)","v":""},{"$f":"'3 INCOME & EXPENSE'!E103","v":"00:00:00"},{"$f":"'3 INCOME & EXPENSE'!F103","v":0},{"$f":"'3 INCOME & EXPENSE'!G103","v":0},{"$f":"T('3 INCOME & EXPENSE'!H103)","v":""},{"$f":"T('3 INCOME & EXPENSE'!I103)","v":""},{"$f":"T('3 INCOME & EXPENSE'!J103)","v":""},{"$f":"T('3 INCOME & EXPENSE'!K103)","v":""},{"$f":"T('3 INCOME & EXPENSE'!L103)","v":""},{"$f":"'3 INCOME & EXPENSE'!M103","v":0},{"$f":"'3 INCOME & EXPENSE'!N103","v":0},{"$f":"'3 INCOME & EXPENSE'!O103","v":0},null,{"$f":"'3 INCOME & EXPENSE'!AK103","v":"00:00:00"},{"$f":"T('3 INCOME & EXPENSE'!AL103)","v":""},{"$f":"T('3 INCOME & EXPENSE'!AM103)","v":""},{"$f":"'3 INCOME & EXPENSE'!AN103","v":0},{"$f":"'3 INCOME & EXPENSE'!AO103","v":{"v":0,"d":"0.00"}},{"$f":"'3 INCOME & EXPENSE'!AP103","v":0}]
[null,{"$f":"T('3 INCOME & EXPENSE'!D104)","v":""},{"$f":"'3 INCOME & EXPENSE'!E104","v":"00:00:00"},{"$f":"'3 INCOME & EXPENSE'!F104","v":0},{"$f":"'3 INCOME & EXPENSE'!G104","v":0},{"$f":"T('3 INCOME & EXPENSE'!H104)","v":""},{"$f":"T('3 INCOME & EXPENSE'!I104)","v":""},{"$f":"T('3 INCOME & EXPENSE'!J104)","v":""},{"$f":"T('3 INCOME & EXPENSE'!K104)","v":""},{"$f":"T('3 INCOME & EXPENSE'!L104)","v":""},{"$f":"'3 INCOME & EXPENSE'!M104","v":0},{"$f":"'3 INCOME & EXPENSE'!N104","v":0},{"$f":"'3 INCOME & EXPENSE'!O104","v":0},null,{"$f":"'3 INCOME & EXPENSE'!AK104","v":"00:00:00"},{"$f":"T('3 INCOME & EXPENSE'!AL104)","v":""},{"$f":"T('3 INCOME & EXPENSE'!AM104)","v":""},{"$f":"'3 INCOME & EXPENSE'!AN104","v":0},{"$f":"'3 INCOME & EXPENSE'!AO104","v":{"v":0,"d":"0.00"}},{"$f":"'3 INCOME & EXPENSE'!AP104","v":0}]
[null,{"$f":"T('3 INCOME & EXPENSE'!D105)","v":""},{"$f":"'3 INCOME & EXPENSE'!E105","v":"00:00:00"},{"$f":"'3 INCOME & EXPENSE'!F105","v":0},{"$f":"'3 INCOME & EXPENSE'!G105","v":0},{"$f":"T('3 INCOME & EXPENSE'!H105)","v":""},{"$f":"T('3 INCOME & EXPENSE'!I105)","v":""},{"$f":"T('3 INCOME & EXPENSE'!J105)","v":""},{"$f":"T('3 INCOME & EXPENSE'!K105)","v":""},{"$f":"T('3 INCOME & EXPENSE'!L105)","v":""},{"$f":"'3 INCOME & EXPENSE'!M105","v":0},{"$f":"'3 INCOME & EXPENSE'!N105","v":0},{"$f":"'3 INCOME & EXPENSE'!O105","v":0},null,{"$f":"'3 INCOME & EXPENSE'!AK105","v":"00:00:00"},{"$f":"T('3 INCOME & EXPENSE'!AL105)","v":""},{"$f":"T('3 INCOME & EXPENSE'!AM105)","v":""},{"$f":"'3 INCOME & EXPENSE'!AN105","v":0},{"$f":"'3 INCOME & EXPENSE'!AO105","v":{"v":0,"d":"0.00"}},{"$f":"'3 INCOME & EXPENSE'!AP105","v":0}]
[null,{"$f":"T('3 INCOME & EXPENSE'!D106)","v":""},{"$f":"'3 INCOME & EXPENSE'!E106","v":"00:00:00"},{"$f":"'3 INCOME & EXPENSE'!F106","v":0},{"$f":"'3 INCOME & EXPENSE'!G106","v":0},{"$f":"T('3 INCOME & EXPENSE'!H106)","v":""},{"$f":"T('3 INCOME & EXPENSE'!I106)","v":""},{"$f":"T('3 INCOME & EXPENSE'!J106)","v":""},{"$f":"T('3 INCOME & EXPENSE'!K106)","v":""},{"$f":"T('3 INCOME & EXPENSE'!L106)","v":""},{"$f":"'3 INCOME & EXPENSE'!M106","v":0},{"$f":"'3 INCOME & EXPENSE'!N106","v":0},{"$f":"'3 INCOME & EXPENSE'!O106","v":0},null,{"$f":"'3 INCOME & EXPENSE'!AK106","v":"00:00:00"},{"$f":"T('3 INCOME & EXPENSE'!AL106)","v":""},{"$f":"T('3 INCOME & EXPENSE'!AM106)","v":""},{"$f":"'3 INCOME & EXPENSE'!AN106","v":0},{"$f":"'3 INCOME & EXPENSE'!AO106","v":{"v":0,"d":"0.00"}},{"$f":"'3 INCOME & EXPENSE'!AP106","v":0}]
[null,{"$f":"T('3 INCOME & EXPENSE'!D107)","v":""},{"$f":"'3 INCOME & EXPENSE'!E107","v":"00:00:00"},{"$f":"'3 INCOME & EXPENSE'!F107","v":0},{"$f":"'3 INCOME & EXPENSE'!G107","v":0},{"$f":"T('3 INCOME & EXPENSE'!H107)","v":""},{"$f":"T('3 INCOME & EXPENSE'!I107)","v":""},{"$f":"T('3 INCOME & EXPENSE'!J107)","v":""},{"$f":"T('3 INCOME & EXPENSE'!K107)","v":""},{"$f":"T('3 INCOME & EXPENSE'!L107)","v":""},{"$f":"'3 INCOME & EXPENSE'!M107","v":0},{"$f":"'3 INCOME & EXPENSE'!N107","v":0},{"$f":"'3 INCOME & EXPENSE'!O107","v":0},null,{"$f":"'3 INCOME & EXPENSE'!AK107","v":"00:00:00"},{"$f":"T('3 INCOME & EXPENSE'!AL107)","v":""},{"$f":"T('3 INCOME & EXPENSE'!AM107)","v":""},{"$f":"'3 INCOME & EXPENSE'!AN107","v":0},{"$f":"'3 INCOME & EXPENSE'!AO107","v":{"v":0,"d":"0.00"}},{"$f":"'3 INCOME & EXPENSE'!AP107","v":0}]
[null,{"$f":"T('3 INCOME & EXPENSE'!D108)","v":""},{"$f":"'3 INCOME & EXPENSE'!E108","v":"00:00:00"},{"$f":"'3 INCOME & EXPENSE'!F108","v":0},{"$f":"'3 INCOME & EXPENSE'!G108","v":0},{"$f":"T('3 INCOME & EXPENSE'!H108)","v":""},{"$f":"T('3 INCOME & EXPENSE'!I108)","v":""},{"$f":"T('3 INCOME & EXPENSE'!J108)","v":""},{"$f":"T('3 INCOME & EXPENSE'!K108)","v":""},{"$f":"T('3 INCOME & EXPENSE'!L108)","v":""},{"$f":"'3 INCOME & EXPENSE'!M108","v":0},{"$f":"'3 INCOME & EXPENSE'!N108","v":0},{"$f":"'3 INCOME & EXPENSE'!O108","v":0},null,{"$f":"'3 INCOME & EXPENSE'!AK108","v":"00:00:00"},{"$f":"T('3 INCOME & EXPENSE'!AL108)","v":""},{"$f":"T('3 INCOME & EXPENSE'!AM108)","v":""},{"$f":"'3 INCOME & EXPENSE'!AN108","v":0},{"$f":"'3 INCOME & EXPENSE'!AO108","v":{"v":0,"d":"0.00"}},{"$f":"'3 INCOME & EXPENSE'!AP108","v":0}]
[null,{"$f":"T('3 INCOME & EXPENSE'!D109)","v":""},{"$f":"'3 INCOME & EXPENSE'!E109","v":"00:00:00"},{"$f":"'3 INCOME & EXPENSE'!F109","v":0},{"$f":"'3 INCOME & EXPENSE'!G109","v":0},{"$f":"T('3 INCOME & EXPENSE'!H109)","v":""},{"$f":"T('3 INCOME & EXPENSE'!I109)","v":""},{"$f":"T('3 INCOME & EXPENSE'!J109)","v":""},{"$f":"T('3 INCOME & EXPENSE'!K109)","v":""},{"$f":"T('3 INCOME & EXPENSE'!L109)","v":""},{"$f":"'3 INCOME & EXPENSE'!M109","v":0},{"$f":"'3 INCOME & EXPENSE'!N109","v":0},{"$f":"'3 INCOME & EXPENSE'!O109","v":0},null,{"$f":"'3 INCOME & EXPENSE'!AK109","v":"00:00:00"},{"$f":"T('3 INCOME & EXPENSE'!AL109)","v":""},{"$f":"T('3 INCOME & EXPENSE'!AM109)","v":""},{"$f":"'3 INCOME & EXPENSE'!AN109","v":0},{"$f":"'3 INCOME & EXPENSE'!AO109","v":{"v":0,"d":"0.00"}},{"$f":"'3 INCOME & EXPENSE'!AP109","v":0}]
[null,{"$f":"T('3 INCOME & EXPENSE'!D110)","v":""},{"$f":"'3 INCOME & EXPENSE'!E110","v":"00:00:00"},{"$f":"'3 INCOME & EXPENSE'!F110","v":0},{"$f":"'3 INCOME & EXPENSE'!G110","v":0},{"$f":"T('3 INCOME & EXPENSE'!H110)","v":""},{"$f":"T('3 INCOME & EXPENSE'!I110)","v":""},{"$f":"T('3 INCOME & EXPENSE'!J110)","v":""},{"$f":"T('3 INCOME & EXPENSE'!K110)","v":""},{"$f":"T('3 INCOME & EXPENSE'!L110)","v":""},{"$f":"'3 INCOME & EXPENSE'!M110","v":0},{"$f":"'3 INCOME & EXPENSE'!N110","v":0},{"$f":"'3 INCOME & EXPENSE'!O110","v":0},null,{"$f":"'3 INCOME & EXPENSE'!AK110","v":"00:00:00"},{"$f":"T('3 INCOME & EXPENSE'!AL110)","v":""},{"$f":"T('3 INCOME & EXPENSE'!AM110)","v":""},{"$f":"'3 INCOME & EXPENSE'!AN110","v":0},{"$f":"'3 INCOME & EXPENSE'!AO110","v":{"v":0,"d":"0.00"}},{"$f":"'3 INCOME & EXPENSE'!AP110","v":0}]
[null,{"$f":"T('3 INCOME & EXPENSE'!D111)","v":""},{"$f":"'3 INCOME & EXPENSE'!E111","v":"00:00:00"},{"$f":"'3 INCOME & EXPENSE'!F111","v":0},{"$f":"'3 INCOME & EXPENSE'!G111","v":0},{"$f":"T('3 INCOME & EXPENSE'!H111)","v":""},{"$f":"T('3 INCOME & EXPENSE'!I111)","v":""},{"$f":"T('3 INCOME & EXPENSE'!J111)","v":""},{"$f":"T('3 INCOME & EXPENSE'!K111)","v":""},{"$f":"T('3 INCOME & EXPENSE'!L111)","v":""},{"$f":"'3 INCOME & EXPENSE'!M111","v":0},{"$f":"'3 INCOME & EXPENSE'!N111","v":0},{"$f":"'3 INCOME & EXPENSE'!O111","v":0},null,{"$f":"'3 INCOME & EXPENSE'!AK111","v":"00:00:00"},{"$f":"T('3 INCOME & EXPENSE'!AL111)","v":""},{"$f":"T('3 INCOME & EXPENSE'!AM111)","v":""},{"$f":"'3 INCOME & EXPENSE'!AN111","v":0},{"$f":"'3 INCOME & EXPENSE'!AO111","v":{"v":0,"d":"0.00"}},{"$f":"'3 INCOME & EXPENSE'!AP111","v":0}]
[null,{"$f":"T('3 INCOME & EXPENSE'!D112)","v":""},{"$f":"'3 INCOME & EXPENSE'!E112","v":"00:00:00"},{"$f":"'3 INCOME & EXPENSE'!F112","v":0},{"$f":"'3 INCOME & EXPENSE'!G112","v":0},{"$f":"T('3 INCOME & EXPENSE'!H112)","v":""},{"$f":"T('3 INCOME & EXPENSE'!I112)","v":""},{"$f":"T('3 INCOME & EXPENSE'!J112)","v":""},{"$f":"T('3 INCOME & EXPENSE'!K112)","v":""},{"$f":"T('3 INCOME & EXPENSE'!L112)","v":""},{"$f":"'3 INCOME & EXPENSE'!M112","v":0},{"$f":"'3 INCOME & EXPENSE'!N112","v":0},{"$f":"'3 INCOME & EXPENSE'!O112","v":0},null,{"$f":"'3 INCOME & EXPENSE'!AK112","v":"00:00:00"},{"$f":"T('3 INCOME & EXPENSE'!AL112)","v":""},{"$f":"T('3 INCOME & EXPENSE'!AM112)","v":""},{"$f":"'3 INCOME & EXPENSE'!AN112","v":0},{"$f":"'3 INCOME & EXPENSE'!AO112","v":{"v":0,"d":"0.00"}},{"$f":"'3 INCOME & EXPENSE'!AP112","v":0}]
[null,{"$f":"T('3 INCOME & EXPENSE'!D113)","v":""},{"$f":"'3 INCOME & EXPENSE'!E113","v":"00:00:00"},{"$f":"'3 INCOME & EXPENSE'!F113","v":0},{"$f":"'3 INCOME & EXPENSE'!G113","v":0},{"$f":"T('3 INCOME & EXPENSE'!H113)","v":""},{"$f":"T('3 INCOME & EXPENSE'!I113)","v":""},{"$f":"T('3 INCOME & EXPENSE'!J113)","v":""},{"$f":"T('3 INCOME & EXPENSE'!K113)","v":""},{"$f":"T('3 INCOME & EXPENSE'!L113)","v":""},{"$f":"'3 INCOME & EXPENSE'!M113","v":0},{"$f":"'3 INCOME & EXPENSE'!N113","v":0},{"$f":"'3 INCOME & EXPENSE'!O113","v":0},null,{"$f":"'3 INCOME & EXPENSE'!AK113","v":"00:00:00"},{"$f":"T('3 INCOME & EXPENSE'!AL113)","v":""},{"$f":"T('3 INCOME & EXPENSE'!AM113)","v":""},{"$f":"'3 INCOME & EXPENSE'!AN113","v":0},{"$f":"'3 INCOME & EXPENSE'!AO113","v":{"v":0,"d":"0.00"}},{"$f":"'3 INCOME & EXPENSE'!AP113","v":0}]
[null,{"$f":"T('3 INCOME & EXPENSE'!D114)","v":""},{"$f":"'3 INCOME & EXPENSE'!E114","v":"00:00:00"},{"$f":"'3 INCOME & EXPENSE'!F114","v":0},{"$f":"'3 INCOME & EXPENSE'!G114","v":0},{"$f":"T('3 INCOME & EXPENSE'!H114)","v":""},{"$f":"T('3 INCOME & EXPENSE'!I114)","v":""},{"$f":"T('3 INCOME & EXPENSE'!J114)","v":""},{"$f":"T('3 INCOME & EXPENSE'!K114)","v":""},{"$f":"T('3 INCOME & EXPENSE'!L114)","v":""},{"$f":"'3 INCOME & EXPENSE'!M114","v":0},{"$f":"'3 INCOME & EXPENSE'!N114","v":0},{"$f":"'3 INCOME & EXPENSE'!O114","v":0}]
[null,{"$f":"T('3 INCOME & EXPENSE'!D115)","v":""},{"$f":"'3 INCOME & EXPENSE'!E115","v":"00:00:00"},{"$f":"'3 INCOME & EXPENSE'!F115","v":0},{"$f":"'3 INCOME & EXPENSE'!G115","v":0},{"$f":"T('3 INCOME & EXPENSE'!H115)","v":""},{"$f":"T('3 INCOME & EXPENSE'!I115)","v":""},{"$f":"T('3 INCOME & EXPENSE'!J115)","v":""},{"$f":"T('3 INCOME & EXPENSE'!K115)","v":""},{"$f":"T('3 INCOME & EXPENSE'!L115)","v":""},{"$f":"'3 INCOME & EXPENSE'!M115","v":0},{"$f":"'3 INCOME & EXPENSE'!N115","v":0},{"$f":"'3 INCOME & EXPENSE'!O115","v":0}]
[null,{"$f":"T('3 INCOME & EXPENSE'!D116)","v":""},{"$f":"'3 INCOME & EXPENSE'!E116","v":"00:00:00"},{"$f":"'3 INCOME & EXPENSE'!F116","v":0},{"$f":"'3 INCOME & EXPENSE'!G116","v":0},{"$f":"T('3 INCOME & EXPENSE'!H116)","v":""},{"$f":"T('3 INCOME & EXPENSE'!I116)","v":""},{"$f":"T('3 INCOME & EXPENSE'!J116)","v":""},{"$f":"T('3 INCOME & EXPENSE'!K116)","v":""},{"$f":"T('3 INCOME & EXPENSE'!L116)","v":""},{"$f":"'3 INCOME & EXPENSE'!M116","v":0},{"$f":"'3 INCOME & EXPENSE'!N116","v":0},{"$f":"'3 INCOME & EXPENSE'!O116","v":0}]
[null,{"$f":"T('3 INCOME & EXPENSE'!D117)","v":""},{"$f":"'3 INCOME & EXPENSE'!E117","v":"00:00:00"},{"$f":"'3 INCOME & EXPENSE'!F117","v":0},{"$f":"'3 INCOME & EXPENSE'!G117","v":0},{"$f":"T('3 INCOME & EXPENSE'!H117)","v":""},{"$f":"T('3 INCOME & EXPENSE'!I117)","v":""},{"$f":"T('3 INCOME & EXPENSE'!J117)","v":""},{"$f":"T('3 INCOME & EXPENSE'!K117)","v":""},{"$f":"T('3 INCOME & EXPENSE'!L117)","v":""},{"$f":"'3 INCOME & EXPENSE'!M117","v":0},{"$f":"'3 INCOME & EXPENSE'!N117","v":0},{"$f":"'3 INCOME & EXPENSE'!O117","v":0}]
[null,{"$f":"T('3 INCOME & EXPENSE'!D118)","v":""},{"$f":"'3 INCOME & EXPENSE'!E118","v":"00:00:00"},{"$f":"'3 INCOME & EXPENSE'!F118","v":0},{"$f":"'3 INCOME & EXPENSE'!G118","v":0},{"$f":"T('3 INCOME & EXPENSE'!H118)","v":""},{"$f":"T('3 INCOME & EXPENSE'!I118)","v":""},{"$f":"T('3 INCOME & EXPENSE'!J118)","v":""},{"$f":"T('3 INCOME & EXPENSE'!K118)","v":""},{"$f":"T('3 INCOME & EXPENSE'!L118)","v":""},{"$f":"'3 INCOME & EXPENSE'!M118","v":0},{"$f":"'3 INCOME & EXPENSE'!N118","v":0},{"$f":"'3 INCOME & EXPENSE'!O118","v":0}]
[null,{"$f":"T('3 INCOME & EXPENSE'!D119)","v":""},{"$f":"'3 INCOME & EXPENSE'!E119","v":"00:00:00"},{"$f":"'3 INCOME & EXPENSE'!F119","v":0},{"$f":"'3 INCOME & EXPENSE'!G119","v":0},{"$f":"T('3 INCOME & EXPENSE'!H119)","v":""},{"$f":"T('3 INCOME & EXPENSE'!I119)","v":""},{"$f":"T('3 INCOME & EXPENSE'!J119)","v":""},{"$f":"T('3 INCOME & EXPENSE'!K119)","v":""},{"$f":"T('3 INCOME & EXPENSE'!L119)","v":""},{"$f":"'3 INCOME & EXPENSE'!M119","v":0},{"$f":"'3 INCOME & EXPENSE'!N119","v":0},{"$f":"'3 INCOME & EXPENSE'!O119","v":0}]
[null,{"$f":"T('3 INCOME & EXPENSE'!D120)","v":""},{"$f":"'3 INCOME & EXPENSE'!E120","v":"00:00:00"},{"$f":"'3 INCOME & EXPENSE'!F120","v":0},{"$f":"'3 INCOME & EXPENSE'!G120","v":0},{"$f":"T('3 INCOME & EXPENSE'!H120)","v":""},{"$f":"T('3 INCOME & EXPENSE'!I120)","v":""},{"$f":"T('3 INCOME & EXPENSE'!J120)","v":""},{"$f":"T('3 INCOME & EXPENSE'!K120)","v":""},{"$f":"T('3 INCOME & EXPENSE'!L120)","v":""},{"$f":"'3 INCOME & EXPENSE'!M120","v":0},{"$f":"'3 INCOME & EXPENSE'!N120","v":0},{"$f":"'3 INCOME & EXPENSE'!O120","v":0}]
[null,{"$f":"T('3 INCOME & EXPENSE'!D121)","v":""},{"$f":"'3 INCOME & EXPENSE'!E121","v":"00:00:00"},{"$f":"'3 INCOME & EXPENSE'!F121","v":0},{"$f":"'3 INCOME & EXPENSE'!G121","v":0},{"$f":"T('3 INCOME & EXPENSE'!H121)","v":""},{"$f":"T('3 INCOME & EXPENSE'!I121)","v":""},{"$f":"T('3 INCOME & EXPENSE'!J121)","v":""},{"$f":"T('3 INCOME & EXPENSE'!K121)","v":""},{"$f":"T('3 INCOME & EXPENSE'!L121)","v":""},{"$f":"'3 INCOME & EXPENSE'!M121","v":0},{"$f":"'3 INCOME & EXPENSE'!N121","v":0},{"$f":"'3 INCOME & EXPENSE'!O121","v":0}]
[null,{"$f":"T('3 INCOME & EXPENSE'!D122)","v":""},{"$f":"'3 INCOME & EXPENSE'!E122","v":"00:00:00"},{"$f":"'3 INCOME & EXPENSE'!F122","v":0},{"$f":"'3 INCOME & EXPENSE'!G122","v":0},{"$f":"T('3 INCOME & EXPENSE'!H122)","v":""},{"$f":"T('3 INCOME & EXPENSE'!I122)","v":""},{"$f":"T('3 INCOME & EXPENSE'!J122)","v":""},{"$f":"T('3 INCOME & EXPENSE'!K122)","v":""},{"$f":"T('3 INCOME & EXPENSE'!L122)","v":""},{"$f":"'3 INCOME & EXPENSE'!M122","v":0},{"$f":"'3 INCOME & EXPENSE'!N122","v":0},{"$f":"'3 INCOME & EXPENSE'!O122","v":0}]
[null,{"$f":"T('3 INCOME & EXPENSE'!D123)","v":""},{"$f":"'3 INCOME & EXPENSE'!E123","v":"00:00:00"},{"$f":"'3 INCOME & EXPENSE'!F123","v":0},{"$f":"'3 INCOME & EXPENSE'!G123","v":0},{"$f":"T('3 INCOME & EXPENSE'!H123)","v":""},{"$f":"T('3 INCOME & EXPENSE'!I123)","v":""},{"$f":"T('3 INCOME & EXPENSE'!J123)","v":""},{"$f":"T('3 INCOME & EXPENSE'!K123)","v":""},{"$f":"T('3 INCOME & EXPENSE'!L123)","v":""},{"$f":"'3 INCOME & EXPENSE'!M123","v":0},{"$f":"'3 INCOME & EXPENSE'!N123","v":0},{"$f":"'3 INCOME & EXPENSE'!O123","v":0}]
[null,{"$f":"T('3 INCOME & EXPENSE'!D124)","v":""},{"$f":"'3 INCOME & EXPENSE'!E124","v":"00:00:00"},{"$f":"'3 INCOME & EXPENSE'!F124","v":0},{"$f":"'3 INCOME & EXPENSE'!G124","v":0},{"$f":"T('3 INCOME & EXPENSE'!H124)","v":""},{"$f":"T('3 INCOME & EXPENSE'!I124)","v":""},{"$f":"T('3 INCOME & EXPENSE'!J124)","v":""},{"$f":"T('3 INCOME & EXPENSE'!K124)","v":""},{"$f":"T('3 INCOME & EXPENSE'!L124)","v":""},{"$f":"'3 INCOME & EXPENSE'!M124","v":0},{"$f":"'3 INCOME & EXPENSE'!N124","v":0},{"$f":"'3 INCOME & EXPENSE'!O124","v":0}]
[null,{"$f":"T('3 INCOME & EXPENSE'!D125)","v":""},{"$f":"'3 INCOME & EXPENSE'!E125","v":"00:00:00"},{"$f":"'3 INCOME & EXPENSE'!F125","v":0},{"$f":"'3 INCOME & EXPENSE'!G125","v":0},{"$f":"T('3 INCOME & EXPENSE'!H125)","v":""},{"$f":"T('3 INCOME & EXPENSE'!I125)","v":""},{"$f":"T('3 INCOME & EXPENSE'!J125)","v":""},{"$f":"T('3 INCOME & EXPENSE'!K125)","v":""},{"$f":"T('3 INCOME & EXPENSE'!L125)","v":""},{"$f":"'3 INCOME & EXPENSE'!M125","v":0},{"$f":"'3 INCOME & EXPENSE'!N125","v":0},{"$f":"'3 INCOME & EXPENSE'!O125","v":0}]
[null,{"$f":"T('3 INCOME & EXPENSE'!D126)","v":""},{"$f":"'3 INCOME & EXPENSE'!E126","v":"00:00:00"},{"$f":"'3 INCOME & EXPENSE'!F126","v":0},{"$f":"'3 INCOME & EXPENSE'!G126","v":0},{"$f":"T('3 INCOME & EXPENSE'!H126)","v":""},{"$f":"T('3 INCOME & EXPENSE'!I126)","v":""},{"$f":"T('3 INCOME & EXPENSE'!J126)","v":""},{"$f":"T('3 INCOME & EXPENSE'!K126)","v":""},{"$f":"T('3 INCOME & EXPENSE'!L126)","v":""},{"$f":"'3 INCOME & EXPENSE'!M126","v":0},{"$f":"'3 INCOME & EXPENSE'!N126","v":0},{"$f":"'3 INCOME & EXPENSE'!O126","v":0}]
[null,{"$f":"T('3 INCOME & EXPENSE'!D127)","v":""},{"$f":"'3 INCOME & EXPENSE'!E127","v":"00:00:00"},{"$f":"'3 INCOME & EXPENSE'!F127","v":0},{"$f":"'3 INCOME & EXPENSE'!G127","v":0},{"$f":"T('3 INCOME & EXPENSE'!H127)","v":""},{"$f":"T('3 INCOME & EXPENSE'!I127)","v":""},{"$f":"T('3 INCOME & EXPENSE'!J127)","v":""},{"$f":"T('3 INCOME & EXPENSE'!K127)","v":""},{"$f":"T('3 INCOME & EXPENSE'!L127)","v":""},{"$f":"'3 INCOME & EXPENSE'!M127","v":0},{"$f":"'3 INCOME & EXPENSE'!N127","v":0},{"$f":"'3 INCOME & EXPENSE'!O127","v":0}]
[null,{"$f":"T('3 INCOME & EXPENSE'!D128)","v":""},{"$f":"'3 INCOME & EXPENSE'!E128","v":"00:00:00"},{"$f":"'3 INCOME & EXPENSE'!F128","v":0},{"$f":"'3 INCOME & EXPENSE'!G128","v":0},{"$f":"T('3 INCOME & EXPENSE'!H128)","v":""},{"$f":"T('3 INCOME & EXPENSE'!I128)","v":""},{"$f":"T('3 INCOME & EXPENSE'!J128)","v":""},{"$f":"T('3 INCOME & EXPENSE'!K128)","v":""},{"$f":"T('3 INCOME & EXPENSE'!L128)","v":""},{"$f":"'3 INCOME & EXPENSE'!M128","v":0},{"$f":"'3 INCOME & EXPENSE'!N128","v":0},{"$f":"'3 INCOME & EXPENSE'!O128","v":0}]
[null,{"$f":"T('3 INCOME & EXPENSE'!D129)","v":""},{"$f":"'3 INCOME & EXPENSE'!E129","v":"00:00:00"},{"$f":"'3 INCOME & EXPENSE'!F129","v":0},{"$f":"'3 INCOME & EXPENSE'!G129","v":0},{"$f":"T('3 INCOME & EXPENSE'!H129)","v":""},{"$f":"T('3 INCOME & EXPENSE'!I129)","v":""},{"$f":"T('3 INCOME & EXPENSE'!J129)","v":""},{"$f":"T('3 INCOME & EXPENSE'!K129)","v":""},{"$f":"T('3 INCOME & EXPENSE'!L129)","v":""},{"$f":"'3 INCOME & EXPENSE'!M129","v":0},{"$f":"'3 INCOME & EXPENSE'!N129","v":0},{"$f":"'3 INCOME & EXPENSE'!O129","v":0}]
[null,{"$f":"T('3 INCOME & EXPENSE'!D130)","v":""},{"$f":"'3 INCOME & EXPENSE'!E130","v":"00:00:00"},{"$f":"'3 INCOME & EXPENSE'!F130","v":0},{"$f":"'3 INCOME & EXPENSE'!G130","v":0},{"$f":"T('3 INCOME & EXPENSE'!H130)","v":""},{"$f":"T('3 INCOME & EXPENSE'!I130)","v":""},{"$f":"T('3 INCOME & EXPENSE'!J130)","v":""},{"$f":"T('3 INCOME & EXPENSE'!K130)","v":""},{"$f":"T('3 INCOME & EXPENSE'!L130)","v":""},{"$f":"'3 INCOME & EXPENSE'!M130","v":0},{"$f":"'3 INCOME & EXPENSE'!N130","v":0},{"$f":"'3 INCOME & EXPENSE'!O130","v":0}]
[null,{"$f":"T('3 INCOME & EXPENSE'!D131)","v":""},{"$f":"'3 INCOME & EXPENSE'!E131","v":"00:00:00"},{"$f":"'3 INCOME & EXPENSE'!F131","v":0},{"$f":"'3 INCOME & EXPENSE'!G131","v":0},{"$f":"T('3 INCOME & EXPENSE'!H131)","v":""},{"$f":"T('3 INCOME & EXPENSE'!I131)","v":""},{"$f":"T('3 INCOME & EXPENSE'!J131)","v":""},{"$f":"T('3 INCOME & EXPENSE'!K131)","v":""},{"$f":"T('3 INCOME & EXPENSE'!L131)","v":""},{"$f":"'3 INCOME & EXPENSE'!M131","v":0},{"$f":"'3 INCOME & EXPENSE'!N131","v":0},{"$f":"'3 INCOME & EXPENSE'!O131","v":0}]
[null,{"$f":"T('3 INCOME & EXPENSE'!D132)","v":""},{"$f":"'3 INCOME & EXPENSE'!E132","v":"00:00:00"},{"$f":"'3 INCOME & EXPENSE'!F132","v":0},{"$f":"'3 INCOME & EXPENSE'!G132","v":0},{"$f":"T('3 INCOME & EXPENSE'!H132)","v":""},{"$f":"T('3 INCOME & EXPENSE'!I132)","v":""},{"$f":"T('3 INCOME & EXPENSE'!J132)","v":""},{"$f":"T('3 INCOME & EXPENSE'!K132)","v":""},{"$f":"T('3 INCOME & EXPENSE'!L132)","v":""},{"$f":"'3 INCOME & EXPENSE'!M132","v":0},{"$f":"'3 INCOME & EXPENSE'!N132","v":0},{"$f":"'3 INCOME & EXPENSE'!O132","v":0}]
[null,{"$f":"T('3 INCOME & EXPENSE'!D133)","v":""},{"$f":"'3 INCOME & EXPENSE'!E133","v":"00:00:00"},{"$f":"'3 INCOME & EXPENSE'!F133","v":0},{"$f":"'3 INCOME & EXPENSE'!G133","v":0},{"$f":"T('3 INCOME & EXPENSE'!H133)","v":""},{"$f":"T('3 INCOME & EXPENSE'!I133)","v":""},{"$f":"T('3 INCOME & EXPENSE'!J133)","v":""},{"$f":"T('3 INCOME & EXPENSE'!K133)","v":""},{"$f":"T('3 INCOME & EXPENSE'!L133)","v":""},{"$f":"'3 INCOME & EXPENSE'!M133","v":0},{"$f":"'3 INCOME & EXPENSE'!N133","v":0},{"$f":"'3 INCOME & EXPENSE'!O133","v":0}]
[null,{"$f":"T('3 INCOME & EXPENSE'!D134)","v":""},{"$f":"'3 INCOME & EXPENSE'!E134","v":"00:00:00"},{"$f":"'3 INCOME & EXPENSE'!F134","v":0},{"$f":"'3 INCOME & EXPENSE'!G134","v":0},{"$f":"T('3 INCOME & EXPENSE'!H134)","v":""},{"$f":"T('3 INCOME & EXPENSE'!I134)","v":""},{"$f":"T('3 INCOME & EXPENSE'!J134)","v":""},{"$f":"T('3 INCOME & EXPENSE'!K134)","v":""},{"$f":"T('3 INCOME & EXPENSE'!L134)","v":""},{"$f":"'3 INCOME & EXPENSE'!M134","v":0},{"$f":"'3 INCOME & EXPENSE'!N134","v":0},{"$f":"'3 INCOME & EXPENSE'!O134","v":0}]
[null,{"$f":"T('3 INCOME & EXPENSE'!D135)","v":""},{"$f":"'3 INCOME & EXPENSE'!E135","v":"00:00:00"},{"$f":"'3 INCOME & EXPENSE'!F135","v":0},{"$f":"'3 INCOME & EXPENSE'!G135","v":0},{"$f":"T('3 INCOME & EXPENSE'!H135)","v":""},{"$f":"T('3 INCOME & EXPENSE'!I135)","v":""},{"$f":"T('3 INCOME & EXPENSE'!J135)","v":""},{"$f":"T('3 INCOME & EXPENSE'!K135)","v":""},{"$f":"T('3 INCOME & EXPENSE'!L135)","v":""},{"$f":"'3 INCOME & EXPENSE'!M135","v":0},{"$f":"'3 INCOME & EXPENSE'!N135","v":0},{"$f":"'3 INCOME & EXPENSE'!O135","v":0}]
[null,{"$f":"T('3 INCOME & EXPENSE'!D136)","v":""},{"$f":"'3 INCOME & EXPENSE'!E136","v":"00:00:00"},{"$f":"'3 INCOME & EXPENSE'!F136","v":0},{"$f":"'3 INCOME & EXPENSE'!G136","v":0},{"$f":"T('3 INCOME & EXPENSE'!H136)","v":""},{"$f":"T('3 INCOME & EXPENSE'!I136)","v":""},{"$f":"T('3 INCOME & EXPENSE'!J136)","v":""},{"$f":"T('3 INCOME & EXPENSE'!K136)","v":""},{"$f":"T('3 INCOME & EXPENSE'!L136)","v":""},{"$f":"'3 INCOME & EXPENSE'!M136","v":0},{"$f":"'3 INCOME & EXPENSE'!N136","v":0},{"$f":"'3 INCOME & EXPENSE'!O136","v":0}]
[null,{"$f":"T('3 INCOME & EXPENSE'!D137)","v":""},{"$f":"'3 INCOME & EXPENSE'!E137","v":"00:00:00"},{"$f":"'3 INCOME & EXPENSE'!F137","v":0},{"$f":"'3 INCOME & EXPENSE'!G137","v":0},{"$f":"T('3 INCOME & EXPENSE'!H137)","v":""},{"$f":"T('3 INCOME & EXPENSE'!I137)","v":""},{"$f":"T('3 INCOME & EXPENSE'!J137)","v":""},{"$f":"T('3 INCOME & EXPENSE'!K137)","v":""},{"$f":"T('3 INCOME & EXPENSE'!L137)","v":""},{"$f":"'3 INCOME & EXPENSE'!M137","v":0},{"$f":"'3 INCOME & EXPENSE'!N137","v":0},{"$f":"'3 INCOME & EXPENSE'!O137","v":0}]
[null,{"$f":"T('3 INCOME & EXPENSE'!D138)","v":""},{"$f":"'3 INCOME & EXPENSE'!E138","v":"00:00:00"},{"$f":"'3 INCOME & EXPENSE'!F138","v":0},{"$f":"'3 INCOME & EXPENSE'!G138","v":0},{"$f":"T('3 INCOME & EXPENSE'!H138)","v":""},{"$f":"T('3 INCOME & EXPENSE'!I138)","v":""},{"$f":"T('3 INCOME & EXPENSE'!J138)","v":""},{"$f":"T('3 INCOME & EXPENSE'!K138)","v":""},{"$f":"T('3 INCOME & EXPENSE'!L138)","v":""},{"$f":"'3 INCOME & EXPENSE'!M138","v":0},{"$f":"'3 INCOME & EXPENSE'!N138","v":0},{"$f":"'3 INCOME & EXPENSE'!O138","v":0}]
[null,{"$f":"T('3 INCOME & EXPENSE'!D139)","v":""},{"$f":"'3 INCOME & EXPENSE'!E139","v":"00:00:00"},{"$f":"'3 INCOME & EXPENSE'!F139","v":0},{"$f":"'3 INCOME & EXPENSE'!G139","v":0},{"$f":"T('3 INCOME & EXPENSE'!H139)","v":""},{"$f":"T('3 INCOME & EXPENSE'!I139)","v":""},{"$f":"T('3 INCOME & EXPENSE'!J139)","v":""},{"$f":"T('3 INCOME & EXPENSE'!K139)","v":""},{"$f":"T('3 INCOME & EXPENSE'!L139)","v":""},{"$f":"'3 INCOME & EXPENSE'!M139","v":0},{"$f":"'3 INCOME & EXPENSE'!N139","v":0},{"$f":"'3 INCOME & EXPENSE'!O139","v":0}]
[null,{"$f":"T('3 INCOME & EXPENSE'!D140)","v":""},{"$f":"'3 INCOME & EXPENSE'!E140","v":"00:00:00"},{"$f":"'3 INCOME & EXPENSE'!F140","v":0},{"$f":"'3 INCOME & EXPENSE'!G140","v":0},{"$f":"T('3 INCOME & EXPENSE'!H140)","v":""},{"$f":"T('3 INCOME & EXPENSE'!I140)","v":""},{"$f":"T('3 INCOME & EXPENSE'!J140)","v":""},{"$f":"T('3 INCOME & EXPENSE'!K140)","v":""},{"$f":"T('3 INCOME & EXPENSE'!L140)","v":""},{"$f":"'3 INCOME & EXPENSE'!M140","v":0},{"$f":"'3 INCOME & EXPENSE'!N140","v":0},{"$f":"'3 INCOME & EXPENSE'!O140","v":0}]
[null,{"$f":"T('3 INCOME & EXPENSE'!D141)","v":""},{"$f":"'3 INCOME & EXPENSE'!E141","v":"00:00:00"},{"$f":"'3 INCOME & EXPENSE'!F141","v":0},{"$f":"'3 INCOME & EXPENSE'!G141","v":0},{"$f":"T('3 INCOME & EXPENSE'!H141)","v":""},{"$f":"T('3 INCOME & EXPENSE'!I141)","v":""},{"$f":"T('3 INCOME & EXPENSE'!J141)","v":""},{"$f":"T('3 INCOME & EXPENSE'!K141)","v":""},{"$f":"T('3 INCOME & EXPENSE'!L141)","v":""},{"$f":"'3 INCOME & EXPENSE'!M141","v":0},{"$f":"'3 INCOME & EXPENSE'!N141","v":0},{"$f":"'3 INCOME & EXPENSE'!O141","v":0}]
[null,{"$f":"T('3 INCOME & EXPENSE'!D142)","v":""},{"$f":"'3 INCOME & EXPENSE'!E142","v":"00:00:00"},{"$f":"'3 INCOME & EXPENSE'!F142","v":0},{"$f":"'3 INCOME & EXPENSE'!G142","v":0},{"$f":"T('3 INCOME & EXPENSE'!H142)","v":""},{"$f":"T('3 INCOME & EXPENSE'!I142)","v":""},{"$f":"T('3 INCOME & EXPENSE'!J142)","v":""},{"$f":"T('3 INCOME & EXPENSE'!K142)","v":""},{"$f":"T('3 INCOME & EXPENSE'!L142)","v":""},{"$f":"'3 INCOME & EXPENSE'!M142","v":0},{"$f":"'3 INCOME & EXPENSE'!N142","v":0},{"$f":"'3 INCOME & EXPENSE'!O142","v":0}]
[null,{"$f":"T('3 INCOME & EXPENSE'!D143)","v":""},{"$f":"'3 INCOME & EXPENSE'!E143","v":"00:00:00"},{"$f":"'3 INCOME & EXPENSE'!F143","v":0},{"$f":"'3 INCOME & EXPENSE'!G143","v":0},{"$f":"T('3 INCOME & EXPENSE'!H143)","v":""},{"$f":"T('3 INCOME & EXPENSE'!I143)","v":""},{"$f":"T('3 INCOME & EXPENSE'!J143)","v":""},{"$f":"T('3 INCOME & EXPENSE'!K143)","v":""},{"$f":"T('3 INCOME & EXPENSE'!L143)","v":""},{"$f":"'3 INCOME & EXPENSE'!M143","v":0},{"$f":"'3 INCOME & EXPENSE'!N143","v":0},{"$f":"'3 INCOME & EXPENSE'!O143","v":0}]
[null,{"$f":"T('3 INCOME & EXPENSE'!D144)","v":""},{"$f":"'3 INCOME & EXPENSE'!E144","v":"00:00:00"},{"$f":"'3 INCOME & EXPENSE'!F144","v":0},{"$f":"'3 INCOME & EXPENSE'!G144","v":0},{"$f":"T('3 INCOME & EXPENSE'!H144)","v":""},{"$f":"T('3 INCOME & EXPENSE'!I144)","v":""},{"$f":"T('3 INCOME & EXPENSE'!J144)","v":""},{"$f":"T('3 INCOME & EXPENSE'!K144)","v":""},{"$f":"T('3 INCOME & EXPENSE'!L144)","v":""},{"$f":"'3 INCOME & EXPENSE'!M144","v":0},{"$f":"'3 INCOME & EXPENSE'!N144","v":0},{"$f":"'3 INCOME & EXPENSE'!O144","v":0}]
[null,{"$f":"T('3 INCOME & EXPENSE'!D145)","v":""},{"$f":"'3 INCOME & EXPENSE'!E145","v":"00:00:00"},{"$f":"'3 INCOME & EXPENSE'!F145","v":0},{"$f":"'3 INCOME & EXPENSE'!G145","v":0},{"$f":"T('3 INCOME & EXPENSE'!H145)","v":""},{"$f":"T('3 INCOME & EXPENSE'!I145)","v":""},{"$f":"T('3 INCOME & EXPENSE'!J145)","v":""},{"$f":"T('3 INCOME & EXPENSE'!K145)","v":""},{"$f":"T('3 INCOME & EXPENSE'!L145)","v":""},{"$f":"'3 INCOME & EXPENSE'!M145","v":0},{"$f":"'3 INCOME & EXPENSE'!N145","v":0},{"$f":"'3 INCOME & EXPENSE'!O145","v":0}]
[null,{"$f":"T('3 INCOME & EXPENSE'!D146)","v":""},{"$f":"'3 INCOME & EXPENSE'!E146","v":"00:00:00"},{"$f":"'3 INCOME & EXPENSE'!F146","v":0},{"$f":"'3 INCOME & EXPENSE'!G146","v":0},{"$f":"T('3 INCOME & EXPENSE'!H146)","v":""},{"$f":"T('3 INCOME & EXPENSE'!I146)","v":""},{"$f":"T('3 INCOME & EXPENSE'!J146)","v":""},{"$f":"T('3 INCOME & EXPENSE'!K146)","v":""},{"$f":"T('3 INCOME & EXPENSE'!L146)","v":""},{"$f":"'3 INCOME & EXPENSE'!M146","v":0},{"$f":"'3 INCOME & EXPENSE'!N146","v":0},{"$f":"'3 INCOME & EXPENSE'!O146","v":0}]
[null,{"$f":"T('3 INCOME & EXPENSE'!D147)","v":""},{"$f":"'3 INCOME & EXPENSE'!E147","v":"00:00:00"},{"$f":"'3 INCOME & EXPENSE'!F147","v":0},{"$f":"'3 INCOME & EXPENSE'!G147","v":0},{"$f":"T('3 INCOME & EXPENSE'!H147)","v":""},{"$f":"T('3 INCOME & EXPENSE'!I147)","v":""},{"$f":"T('3 INCOME & EXPENSE'!J147)","v":""},{"$f":"T('3 INCOME & EXPENSE'!K147)","v":""},{"$f":"T('3 INCOME & EXPENSE'!L147)","v":""},{"$f":"'3 INCOME & EXPENSE'!M147","v":0},{"$f":"'3 INCOME & EXPENSE'!N147","v":0},{"$f":"'3 INCOME & EXPENSE'!O147","v":0}]
[null,{"$f":"T('3 INCOME & EXPENSE'!D148)","v":""},{"$f":"'3 INCOME & EXPENSE'!E148","v":"00:00:00"},{"$f":"'3 INCOME & EXPENSE'!F148","v":0},{"$f":"'3 INCOME & EXPENSE'!G148","v":0},{"$f":"T('3 INCOME & EXPENSE'!H148)","v":""},{"$f":"T('3 INCOME & EXPENSE'!I148)","v":""},{"$f":"T('3 INCOME & EXPENSE'!J148)","v":""},{"$f":"T('3 INCOME & EXPENSE'!K148)","v":""},{"$f":"T('3 INCOME & EXPENSE'!L148)","v":""},{"$f":"'3 INCOME & EXPENSE'!M148","v":0},{"$f":"'3 INCOME & EXPENSE'!N148","v":0},{"$f":"'3 INCOME & EXPENSE'!O148","v":0}]
[null,{"$f":"T('3 INCOME & EXPENSE'!D149)","v":""},{"$f":"'3 INCOME & EXPENSE'!E149","v":"00:00:00"},{"$f":"'3 INCOME & EXPENSE'!F149","v":0},{"$f":"'3 INCOME & EXPENSE'!G149","v":0},{"$f":"T('3 INCOME & EXPENSE'!H149)","v":""},{"$f":"T('3 INCOME & EXPENSE'!I149)","v":""},{"$f":"T('3 INCOME & EXPENSE'!J149)","v":""},{"$f":"T('3 INCOME & EXPENSE'!K149)","v":""},{"$f":"T('3 INCOME & EXPENSE'!L149)","v":""},{"$f":"'3 INCOME & EXPENSE'!M149","v":0},{"$f":"'3 INCOME & EXPENSE'!N149","v":0},{"$f":"'3 INCOME & EXPENSE'!O149","v":0}]
[null,{"$f":"T('3 INCOME & EXPENSE'!D150)","v":""},{"$f":"'3 INCOME & EXPENSE'!E150","v":"00:00:00"},{"$f":"'3 INCOME & EXPENSE'!F150","v":0},{"$f":"'3 INCOME & EXPENSE'!G150","v":0},{"$f":"T('3 INCOME & EXPENSE'!H150)","v":""},{"$f":"T('3 INCOME & EXPENSE'!I150)","v":""},{"$f":"T('3 INCOME & EXPENSE'!J150)","v":""},{"$f":"T('3 INCOME & EXPENSE'!K150)","v":""},{"$f":"T('3 INCOME & EXPENSE'!L150)","v":""},{"$f":"'3 INCOME & EXPENSE'!M150","v":0},{"$f":"'3 INCOME & EXPENSE'!N150","v":0},{"$f":"'3 INCOME & EXPENSE'!O150","v":0}]
[null,{"$f":"T('3 INCOME & EXPENSE'!D151)","v":""},{"$f":"'3 INCOME & EXPENSE'!E151","v":"00:00:00"},{"$f":"'3 INCOME & EXPENSE'!F151","v":0},{"$f":"'3 INCOME & EXPENSE'!G151","v":0},{"$f":"T('3 INCOME & EXPENSE'!H151)","v":""},{"$f":"T('3 INCOME & EXPENSE'!I151)","v":""},{"$f":"T('3 INCOME & EXPENSE'!J151)","v":""},{"$f":"T('3 INCOME & EXPENSE'!K151)","v":""},{"$f":"T('3 INCOME & EXPENSE'!L151)","v":""},{"$f":"'3 INCOME & EXPENSE'!M151","v":0},{"$f":"'3 INCOME & EXPENSE'!N151","v":0},{"$f":"'3 INCOME & EXPENSE'!O151","v":0}]
[null,{"$f":"T('3 INCOME & EXPENSE'!D152)","v":""},{"$f":"'3 INCOME & EXPENSE'!E152","v":"00:00:00"},{"$f":"'3 INCOME & EXPENSE'!F152","v":0},{"$f":"'3 INCOME & EXPENSE'!G152","v":0},{"$f":"T('3 INCOME & EXPENSE'!H152)","v":""},{"$f":"T('3 INCOME & EXPENSE'!I152)","v":""},{"$f":"T('3 INCOME & EXPENSE'!J152)","v":""},{"$f":"T('3 INCOME & EXPENSE'!K152)","v":""},{"$f":"T('3 INCOME & EXPENSE'!L152)","v":""},{"$f":"'3 INCOME & EXPENSE'!M152","v":0},{"$f":"'3 INCOME & EXPENSE'!N152","v":0},{"$f":"'3 INCOME & EXPENSE'!O152","v":0}]
[null,{"$f":"T('3 INCOME & EXPENSE'!D153)","v":""},{"$f":"'3 INCOME & EXPENSE'!E153","v":"00:00:00"},{"$f":"'3 INCOME & EXPENSE'!F153","v":0},{"$f":"'3 INCOME & EXPENSE'!G153","v":0},{"$f":"T('3 INCOME & EXPENSE'!H153)","v":""},{"$f":"T('3 INCOME & EXPENSE'!I153)","v":""},{"$f":"T('3 INCOME & EXPENSE'!J153)","v":""},{"$f":"T('3 INCOME & EXPENSE'!K153)","v":""},{"$f":"T('3 INCOME & EXPENSE'!L153)","v":""},{"$f":"'3 INCOME & EXPENSE'!M153","v":0},{"$f":"'3 INCOME & EXPENSE'!N153","v":0},{"$f":"'3 INCOME & EXPENSE'!O153","v":0}]
[null,{"$f":"T('3 INCOME & EXPENSE'!D154)","v":""},{"$f":"'3 INCOME & EXPENSE'!E154","v":"00:00:00"},{"$f":"'3 INCOME & EXPENSE'!F154","v":0},{"$f":"'3 INCOME & EXPENSE'!G154","v":0},{"$f":"T('3 INCOME & EXPENSE'!H154)","v":""},{"$f":"T('3 INCOME & EXPENSE'!I154)","v":""},{"$f":"T('3 INCOME & EXPENSE'!J154)","v":""},{"$f":"T('3 INCOME & EXPENSE'!K154)","v":""},{"$f":"T('3 INCOME & EXPENSE'!L154)","v":""},{"$f":"'3 INCOME & EXPENSE'!M154","v":0},{"$f":"'3 INCOME & EXPENSE'!N154","v":0},{"$f":"'3 INCOME & EXPENSE'!O154","v":0}]
[null,{"$f":"T('3 INCOME & EXPENSE'!D155)","v":""},{"$f":"'3 INCOME & EXPENSE'!E155","v":"00:00:00"},{"$f":"'3 INCOME & EXPENSE'!F155","v":0},{"$f":"'3 INCOME & EXPENSE'!G155","v":0},{"$f":"T('3 INCOME & EXPENSE'!H155)","v":""},{"$f":"T('3 INCOME & EXPENSE'!I155)","v":""},{"$f":"T('3 INCOME & EXPENSE'!J155)","v":""},{"$f":"T('3 INCOME & EXPENSE'!K155)","v":""},{"$f":"T('3 INCOME & EXPENSE'!L155)","v":""},{"$f":"'3 INCOME & EXPENSE'!M155","v":0},{"$f":"'3 INCOME & EXPENSE'!N155","v":0},{"$f":"'3 INCOME & EXPENSE'!O155","v":0}]
[null,{"$f":"T('3 INCOME & EXPENSE'!D156)","v":""},{"$f":"'3 INCOME & EXPENSE'!E156","v":"00:00:00"},{"$f":"'3 INCOME & EXPENSE'!F156","v":0},{"$f":"'3 INCOME & EXPENSE'!G156","v":0},{"$f":"T('3 INCOME & EXPENSE'!H156)","v":""},{"$f":"T('3 INCOME & EXPENSE'!I156)","v":""},{"$f":"T('3 INCOME & EXPENSE'!J156)","v":""},{"$f":"T('3 INCOME & EXPENSE'!K156)","v":""},{"$f":"T('3 INCOME & EXPENSE'!L156)","v":""},{"$f":"'3 INCOME & EXPENSE'!M156","v":0},{"$f":"'3 INCOME & EXPENSE'!N156","v":0},{"$f":"'3 INCOME & EXPENSE'!O156","v":0}]
[null,{"$f":"T('3 INCOME & EXPENSE'!D157)","v":""},{"$f":"'3 INCOME & EXPENSE'!E157","v":"00:00:00"},{"$f":"'3 INCOME & EXPENSE'!F157","v":0},{"$f":"'3 INCOME & EXPENSE'!G157","v":0},{"$f":"T('3 INCOME & EXPENSE'!H157)","v":""},{"$f":"T('3 INCOME & EXPENSE'!I157)","v":""},{"$f":"T('3 INCOME & EXPENSE'!J157)","v":""},{"$f":"T('3 INCOME & EXPENSE'!K157)","v":""},{"$f":"T('3 INCOME & EXPENSE'!L157)","v":""},{"$f":"'3 INCOME & EXPENSE'!M157","v":0},{"$f":"'3 INCOME & EXPENSE'!N157","v":0},{"$f":"'3 INCOME & EXPENSE'!O157","v":0}]
[null,{"$f":"T('3 INCOME & EXPENSE'!D158)","v":""},{"$f":"'3 INCOME & EXPENSE'!E158","v":"00:00:00"},{"$f":"'3 INCOME & EXPENSE'!F158","v":0},{"$f":"'3 INCOME & EXPENSE'!G158","v":0},{"$f":"T('3 INCOME & EXPENSE'!H158)","v":""},{"$f":"T('3 INCOME & EXPENSE'!I158)","v":""},{"$f":"T('3 INCOME & EXPENSE'!J158)","v":""},{"$f":"T('3 INCOME & EXPENSE'!K158)","v":""},{"$f":"T('3 INCOME & EXPENSE'!L158)","v":""},{"$f":"'3 INCOME & EXPENSE'!M158","v":0},{"$f":"'3 INCOME & EXPENSE'!N158","v":0},{"$f":"'3 INCOME & EXPENSE'!O158","v":0}]
[null,{"$f":"T('3 INCOME & EXPENSE'!D159)","v":""},{"$f":"'3 INCOME & EXPENSE'!E159","v":"00:00:00"},{"$f":"'3 INCOME & EXPENSE'!F159","v":0},{"$f":"'3 INCOME & EXPENSE'!G159","v":0},{"$f":"T('3 INCOME & EXPENSE'!H159)","v":""},{"$f":"T('3 INCOME & EXPENSE'!I159)","v":""},{"$f":"T('3 INCOME & EXPENSE'!J159)","v":""},{"$f":"T('3 INCOME & EXPENSE'!K159)","v":""},{"$f":"T('3 INCOME & EXPENSE'!L159)","v":""},{"$f":"'3 INCOME & EXPENSE'!M159","v":0},{"$f":"'3 INCOME & EXPENSE'!N159","v":0},{"$f":"'3 INCOME & EXPENSE'!O159","v":0}]
[null,{"$f":"T('3 INCOME & EXPENSE'!D160)","v":""},{"$f":"'3 INCOME & EXPENSE'!E160","v":"00:00:00"},{"$f":"'3 INCOME & EXPENSE'!F160","v":0},{"$f":"'3 INCOME & EXPENSE'!G160","v":0},{"$f":"T('3 INCOME & EXPENSE'!H160)","v":""},{"$f":"T('3 INCOME & EXPENSE'!I160)","v":""},{"$f":"T('3 INCOME & EXPENSE'!J160)","v":""},{"$f":"T('3 INCOME & EXPENSE'!K160)","v":""},{"$f":"T('3 INCOME & EXPENSE'!L160)","v":""},{"$f":"'3 INCOME & EXPENSE'!M160","v":0},{"$f":"'3 INCOME & EXPENSE'!N160","v":0},{"$f":"'3 INCOME & EXPENSE'!O160","v":0}]
[null,{"$f":"T('3 INCOME & EXPENSE'!D161)","v":""},{"$f":"'3 INCOME & EXPENSE'!E161","v":"00:00:00"},{"$f":"'3 INCOME & EXPENSE'!F161","v":0},{"$f":"'3 INCOME & EXPENSE'!G161","v":0},{"$f":"T('3 INCOME & EXPENSE'!H161)","v":""},{"$f":"T('3 INCOME & EXPENSE'!I161)","v":""},{"$f":"T('3 INCOME & EXPENSE'!J161)","v":""},{"$f":"T('3 INCOME & EXPENSE'!K161)","v":""},{"$f":"T('3 INCOME & EXPENSE'!L161)","v":""},{"$f":"'3 INCOME & EXPENSE'!M161","v":0},{"$f":"'3 INCOME & EXPENSE'!N161","v":0},{"$f":"'3 INCOME & EXPENSE'!O161","v":0}]
[null,{"$f":"T('3 INCOME & EXPENSE'!D162)","v":""},{"$f":"'3 INCOME & EXPENSE'!E162","v":"00:00:00"},{"$f":"'3 INCOME & EXPENSE'!F162","v":0},{"$f":"'3 INCOME & EXPENSE'!G162","v":0},{"$f":"T('3 INCOME & EXPENSE'!H162)","v":""},{"$f":"T('3 INCOME & EXPENSE'!I162)","v":""},{"$f":"T('3 INCOME & EXPENSE'!J162)","v":""},{"$f":"T('3 INCOME & EXPENSE'!K162)","v":""},{"$f":"T('3 INCOME & EXPENSE'!L162)","v":""},{"$f":"'3 INCOME & EXPENSE'!M162","v":0},{"$f":"'3 INCOME & EXPENSE'!N162","v":0},{"$f":"'3 INCOME & EXPENSE'!O162","v":0}]
[null,{"$f":"T('3 INCOME & EXPENSE'!D163)","v":""},{"$f":"'3 INCOME & EXPENSE'!E163","v":"00:00:00"},{"$f":"'3 INCOME & EXPENSE'!F163","v":0},{"$f":"'3 INCOME & EXPENSE'!G163","v":0},{"$f":"T('3 INCOME & EXPENSE'!H163)","v":""},{"$f":"T('3 INCOME & EXPENSE'!I163)","v":""},{"$f":"T('3 INCOME & EXPENSE'!J163)","v":""},{"$f":"T('3 INCOME & EXPENSE'!K163)","v":""},{"$f":"T('3 INCOME & EXPENSE'!L163)","v":""},{"$f":"'3 INCOME & EXPENSE'!M163","v":0},{"$f":"'3 INCOME & EXPENSE'!N163","v":0},{"$f":"'3 INCOME & EXPENSE'!O163","v":0}]
[null,{"$f":"T('3 INCOME & EXPENSE'!D164)","v":""},{"$f":"'3 INCOME & EXPENSE'!E164","v":"00:00:00"},{"$f":"'3 INCOME & EXPENSE'!F164","v":0},{"$f":"'3 INCOME & EXPENSE'!G164","v":0},{"$f":"T('3 INCOME & EXPENSE'!H164)","v":""},{"$f":"T('3 INCOME & EXPENSE'!I164)","v":""},{"$f":"T('3 INCOME & EXPENSE'!J164)","v":""},{"$f":"T('3 INCOME & EXPENSE'!K164)","v":""},{"$f":"T('3 INCOME & EXPENSE'!L164)","v":""},{"$f":"'3 INCOME & EXPENSE'!M164","v":0},{"$f":"'3 INCOME & EXPENSE'!N164","v":0},{"$f":"'3 INCOME & EXPENSE'!O164","v":0}]
[null,{"$f":"T('3 INCOME & EXPENSE'!D165)","v":""},{"$f":"'3 INCOME & EXPENSE'!E165","v":"00:00:00"},{"$f":"'3 INCOME & EXPENSE'!F165","v":0},{"$f":"'3 INCOME & EXPENSE'!G165","v":0},{"$f":"T('3 INCOME & EXPENSE'!H165)","v":""},{"$f":"T('3 INCOME & EXPENSE'!I165)","v":""},{"$f":"T('3 INCOME & EXPENSE'!J165)","v":""},{"$f":"T('3 INCOME & EXPENSE'!K165)","v":""},{"$f":"T('3 INCOME & EXPENSE'!L165)","v":""},{"$f":"'3 INCOME & EXPENSE'!M165","v":0},{"$f":"'3 INCOME & EXPENSE'!N165","v":0},{"$f":"'3 INCOME & EXPENSE'!O165","v":0}]
[null,{"$f":"T('3 INCOME & EXPENSE'!D166)","v":""},{"$f":"'3 INCOME & EXPENSE'!E166","v":"00:00:00"},{"$f":"'3 INCOME & EXPENSE'!F166","v":0},{"$f":"'3 INCOME & EXPENSE'!G166","v":0},{"$f":"T('3 INCOME & EXPENSE'!H166)","v":""},{"$f":"T('3 INCOME & EXPENSE'!I166)","v":""},{"$f":"T('3 INCOME & EXPENSE'!J166)","v":""},{"$f":"T('3 INCOME & EXPENSE'!K166)","v":""},{"$f":"T('3 INCOME & EXPENSE'!L166)","v":""},{"$f":"'3 INCOME & EXPENSE'!M166","v":0},{"$f":"'3 INCOME & EXPENSE'!N166","v":0},{"$f":"'3 INCOME & EXPENSE'!O166","v":0}]
[null,{"$f":"T('3 INCOME & EXPENSE'!D167)","v":""},{"$f":"'3 INCOME & EXPENSE'!E167","v":"00:00:00"},{"$f":"'3 INCOME & EXPENSE'!F167","v":0},{"$f":"'3 INCOME & EXPENSE'!G167","v":0},{"$f":"T('3 INCOME & EXPENSE'!H167)","v":""},{"$f":"T('3 INCOME & EXPENSE'!I167)","v":""},{"$f":"T('3 INCOME & EXPENSE'!J167)","v":""},{"$f":"T('3 INCOME & EXPENSE'!K167)","v":""},{"$f":"T('3 INCOME & EXPENSE'!L167)","v":""},{"$f":"'3 INCOME & EXPENSE'!M167","v":0},{"$f":"'3 INCOME & EXPENSE'!N167","v":0},{"$f":"'3 INCOME & EXPENSE'!O167","v":0}]
[null,{"$f":"T('3 INCOME & EXPENSE'!D168)","v":""},{"$f":"'3 INCOME & EXPENSE'!E168","v":"00:00:00"},{"$f":"'3 INCOME & EXPENSE'!F168","v":0},{"$f":"'3 INCOME & EXPENSE'!G168","v":0},{"$f":"T('3 INCOME & EXPENSE'!H168)","v":""},{"$f":"T('3 INCOME & EXPENSE'!I168)","v":""},{"$f":"T('3 INCOME & EXPENSE'!J168)","v":""},{"$f":"T('3 INCOME & EXPENSE'!K168)","v":""},{"$f":"T('3 INCOME & EXPENSE'!L168)","v":""},{"$f":"'3 INCOME & EXPENSE'!M168","v":0},{"$f":"'3 INCOME & EXPENSE'!N168","v":0},{"$f":"'3 INCOME & EXPENSE'!O168","v":0}]
[null,{"$f":"T('3 INCOME & EXPENSE'!D169)","v":""},{"$f":"'3 INCOME & EXPENSE'!E169","v":"00:00:00"},{"$f":"'3 INCOME & EXPENSE'!F169","v":0},{"$f":"'3 INCOME & EXPENSE'!G169","v":0},{"$f":"T('3 INCOME & EXPENSE'!H169)","v":""},{"$f":"T('3 INCOME & EXPENSE'!I169)","v":""},{"$f":"T('3 INCOME & EXPENSE'!J169)","v":""},{"$f":"T('3 INCOME & EXPENSE'!K169)","v":""},{"$f":"T('3 INCOME & EXPENSE'!L169)","v":""},{"$f":"'3 INCOME & EXPENSE'!M169","v":0},{"$f":"'3 INCOME & EXPENSE'!N169","v":0},{"$f":"'3 INCOME & EXPENSE'!O169","v":0}]
[null,{"$f":"T('3 INCOME & EXPENSE'!D170)","v":""},{"$f":"'3 INCOME & EXPENSE'!E170","v":"00:00:00"},{"$f":"'3 INCOME & EXPENSE'!F170","v":0},{"$f":"'3 INCOME & EXPENSE'!G170","v":0},{"$f":"T('3 INCOME & EXPENSE'!H170)","v":""},{"$f":"T('3 INCOME & EXPENSE'!I170)","v":""},{"$f":"T('3 INCOME & EXPENSE'!J170)","v":""},{"$f":"T('3 INCOME & EXPENSE'!K170)","v":""},{"$f":"T('3 INCOME & EXPENSE'!L170)","v":""},{"$f":"'3 INCOME & EXPENSE'!M170","v":0},{"$f":"'3 INCOME & EXPENSE'!N170","v":0},{"$f":"'3 INCOME & EXPENSE'!O170","v":0}]
[null,{"$f":"T('3 INCOME & EXPENSE'!D171)","v":""},{"$f":"'3 INCOME & EXPENSE'!E171","v":"00:00:00"},{"$f":"'3 INCOME & EXPENSE'!F171","v":0},{"$f":"'3 INCOME & EXPENSE'!G171","v":0},{"$f":"T('3 INCOME & EXPENSE'!H171)","v":""},{"$f":"T('3 INCOME & EXPENSE'!I171)","v":""},{"$f":"T('3 INCOME & EXPENSE'!J171)","v":""},{"$f":"T('3 INCOME & EXPENSE'!K171)","v":""},{"$f":"T('3 INCOME & EXPENSE'!L171)","v":""},{"$f":"'3 INCOME & EXPENSE'!M171","v":0},{"$f":"'3 INCOME & EXPENSE'!N171","v":0},{"$f":"'3 INCOME & EXPENSE'!O171","v":0}]
[null,{"$f":"T('3 INCOME & EXPENSE'!D172)","v":""},{"$f":"'3 INCOME & EXPENSE'!E172","v":"00:00:00"},{"$f":"'3 INCOME & EXPENSE'!F172","v":0},{"$f":"'3 INCOME & EXPENSE'!G172","v":0},{"$f":"T('3 INCOME & EXPENSE'!H172)","v":""},{"$f":"T('3 INCOME & EXPENSE'!I172)","v":""},{"$f":"T('3 INCOME & EXPENSE'!J172)","v":""},{"$f":"T('3 INCOME & EXPENSE'!K172)","v":""},{"$f":"T('3 INCOME & EXPENSE'!L172)","v":""},{"$f":"'3 INCOME & EXPENSE'!M172","v":0},{"$f":"'3 INCOME & EXPENSE'!N172","v":0},{"$f":"'3 INCOME & EXPENSE'!O172","v":0}]
[null,{"$f":"T('3 INCOME & EXPENSE'!D173)","v":""},{"$f":"'3 INCOME & EXPENSE'!E173","v":"00:00:00"},{"$f":"'3 INCOME & EXPENSE'!F173","v":0},{"$f":"'3 INCOME & EXPENSE'!G173","v":0},{"$f":"T('3 INCOME & EXPENSE'!H173)","v":""},{"$f":"T('3 INCOME & EXPENSE'!I173)","v":""},{"$f":"T('3 INCOME & EXPENSE'!J173)","v":""},{"$f":"T('3 INCOME & EXPENSE'!K173)","v":""},{"$f":"T('3 INCOME & EXPENSE'!L173)","v":""},{"$f":"'3 INCOME & EXPENSE'!M173","v":0},{"$f":"'3 INCOME & EXPENSE'!N173","v":0},{"$f":"'3 INCOME & EXPENSE'!O173","v":0}]
[null,{"$f":"T('3 INCOME & EXPENSE'!D174)","v":""},{"$f":"'3 INCOME & EXPENSE'!E174","v":"00:00:00"},{"$f":"'3 INCOME & EXPENSE'!F174","v":0},{"$f":"'3 INCOME & EXPENSE'!G174","v":0},{"$f":"T('3 INCOME & EXPENSE'!H174)","v":""},{"$f":"T('3 INCOME & EXPENSE'!I174)","v":""},{"$f":"T('3 INCOME & EXPENSE'!J174)","v":""},{"$f":"T('3 INCOME & EXPENSE'!K174)","v":""},{"$f":"T('3 INCOME & EXPENSE'!L174)","v":""},{"$f":"'3 INCOME & EXPENSE'!M174","v":0},{"$f":"'3 INCOME & EXPENSE'!N174","v":0},{"$f":"'3 INCOME & EXPENSE'!O174","v":0}]
[null,{"$f":"T('3 INCOME & EXPENSE'!D175)","v":""},{"$f":"'3 INCOME & EXPENSE'!E175","v":"00:00:00"},{"$f":"'3 INCOME & EXPENSE'!F175","v":0},{"$f":"'3 INCOME & EXPENSE'!G175","v":0},{"$f":"T('3 INCOME & EXPENSE'!H175)","v":""},{"$f":"T('3 INCOME & EXPENSE'!I175)","v":""},{"$f":"T('3 INCOME & EXPENSE'!J175)","v":""},{"$f":"T('3 INCOME & EXPENSE'!K175)","v":""},{"$f":"T('3 INCOME & EXPENSE'!L175)","v":""},{"$f":"'3 INCOME & EXPENSE'!M175","v":0},{"$f":"'3 INCOME & EXPENSE'!N175","v":0},{"$f":"'3 INCOME & EXPENSE'!O175","v":0}]
[null,{"$f":"T('3 INCOME & EXPENSE'!D176)","v":""},{"$f":"'3 INCOME & EXPENSE'!E176","v":"00:00:00"},{"$f":"'3 INCOME & EXPENSE'!F176","v":0},{"$f":"'3 INCOME & EXPENSE'!G176","v":0},{"$f":"T('3 INCOME & EXPENSE'!H176)","v":""},{"$f":"T('3 INCOME & EXPENSE'!I176)","v":""},{"$f":"T('3 INCOME & EXPENSE'!J176)","v":""},{"$f":"T('3 INCOME & EXPENSE'!K176)","v":""},{"$f":"T('3 INCOME & EXPENSE'!L176)","v":""},{"$f":"'3 INCOME & EXPENSE'!M176","v":0},{"$f":"'3 INCOME & EXPENSE'!N176","v":0},{"$f":"'3 INCOME & EXPENSE'!O176","v":0}]
[null,{"$f":"T('3 INCOME & EXPENSE'!D177)","v":""},{"$f":"'3 INCOME & EXPENSE'!E177","v":"00:00:00"},{"$f":"'3 INCOME & EXPENSE'!F177","v":0},{"$f":"'3 INCOME & EXPENSE'!G177","v":0},{"$f":"T('3 INCOME & EXPENSE'!H177)","v":""},{"$f":"T('3 INCOME & EXPENSE'!I177)","v":""},{"$f":"T('3 INCOME & EXPENSE'!J177)","v":""},{"$f":"T('3 INCOME & EXPENSE'!K177)","v":""},{"$f":"T('3 INCOME & EXPENSE'!L177)","v":""},{"$f":"'3 INCOME & EXPENSE'!M177","v":0},{"$f":"'3 INCOME & EXPENSE'!N177","v":0},{"$f":"'3 INCOME & EXPENSE'!O177","v":0}]
[null,{"$f":"T('3 INCOME & EXPENSE'!D178)","v":""},{"$f":"'3 INCOME & EXPENSE'!E178","v":"00:00:00"},{"$f":"'3 INCOME & EXPENSE'!F178","v":0},{"$f":"'3 INCOME & EXPENSE'!G178","v":0},{"$f":"T('3 INCOME & EXPENSE'!H178)","v":""},{"$f":"T('3 INCOME & EXPENSE'!I178)","v":""},{"$f":"T('3 INCOME & EXPENSE'!J178)","v":""},{"$f":"T('3 INCOME & EXPENSE'!K178)","v":""},{"$f":"T('3 INCOME & EXPENSE'!L178)","v":""},{"$f":"'3 INCOME & EXPENSE'!M178","v":0},{"$f":"'3 INCOME & EXPENSE'!N178","v":0},{"$f":"'3 INCOME & EXPENSE'!O178","v":0}]
[null,{"$f":"T('3 INCOME & EXPENSE'!D179)","v":""},{"$f":"'3 INCOME & EXPENSE'!E179","v":"00:00:00"},{"$f":"'3 INCOME & EXPENSE'!F179","v":0},{"$f":"'3 INCOME & EXPENSE'!G179","v":0},{"$f":"T('3 INCOME & EXPENSE'!H179)","v":""},{"$f":"T('3 INCOME & EXPENSE'!I179)","v":""},{"$f":"T('3 INCOME & EXPENSE'!J179)","v":""},{"$f":"T('3 INCOME & EXPENSE'!K179)","v":""},{"$f":"T('3 INCOME & EXPENSE'!L179)","v":""},{"$f":"'3 INCOME & EXPENSE'!M179","v":0},{"$f":"'3 INCOME & EXPENSE'!N179","v":0},{"$f":"'3 INCOME & EXPENSE'!O179","v":0}]
[null,{"$f":"T('3 INCOME & EXPENSE'!D180)","v":""},{"$f":"'3 INCOME & EXPENSE'!E180","v":"00:00:00"},{"$f":"'3 INCOME & EXPENSE'!F180","v":0},{"$f":"'3 INCOME & EXPENSE'!G180","v":0},{"$f":"T('3 INCOME & EXPENSE'!H180)","v":""},{"$f":"T('3 INCOME & EXPENSE'!I180)","v":""},{"$f":"T('3 INCOME & EXPENSE'!J180)","v":""},{"$f":"T('3 INCOME & EXPENSE'!K180)","v":""},{"$f":"T('3 INCOME & EXPENSE'!L180)","v":""},{"$f":"'3 INCOME & EXPENSE'!M180","v":0},{"$f":"'3 INCOME & EXPENSE'!N180","v":0},{"$f":"'3 INCOME & EXPENSE'!O180","v":0}]
[null,{"$f":"T('3 INCOME & EXPENSE'!D181)","v":""},{"$f":"'3 INCOME & EXPENSE'!E181","v":"00:00:00"},{"$f":"'3 INCOME & EXPENSE'!F181","v":0},{"$f":"'3 INCOME & EXPENSE'!G181","v":0},{"$f":"T('3 INCOME & EXPENSE'!H181)","v":""},{"$f":"T('3 INCOME & EXPENSE'!I181)","v":""},{"$f":"T('3 INCOME & EXPENSE'!J181)","v":""},{"$f":"T('3 INCOME & EXPENSE'!K181)","v":""},{"$f":"T('3 INCOME & EXPENSE'!L181)","v":""},{"$f":"'3 INCOME & EXPENSE'!M181","v":0},{"$f":"'3 INCOME & EXPENSE'!N181","v":0},{"$f":"'3 INCOME & EXPENSE'!O181","v":0}]
[null,{"$f":"T('3 INCOME & EXPENSE'!D182)","v":""},{"$f":"'3 INCOME & EXPENSE'!E182","v":"00:00:00"},{"$f":"'3 INCOME & EXPENSE'!F182","v":0},{"$f":"'3 INCOME & EXPENSE'!G182","v":0},{"$f":"T('3 INCOME & EXPENSE'!H182)","v":""},{"$f":"T('3 INCOME & EXPENSE'!I182)","v":""},{"$f":"T('3 INCOME & EXPENSE'!J182)","v":""},{"$f":"T('3 INCOME & EXPENSE'!K182)","v":""},{"$f":"T('3 INCOME & EXPENSE'!L182)","v":""},{"$f":"'3 INCOME & EXPENSE'!M182","v":0},{"$f":"'3 INCOME & EXPENSE'!N182","v":0},{"$f":"'3 INCOME & EXPENSE'!O182","v":0}]
[null,{"$f":"T('3 INCOME & EXPENSE'!D183)","v":""},{"$f":"'3 INCOME & EXPENSE'!E183","v":"00:00:00"},{"$f":"'3 INCOME & EXPENSE'!F183","v":0},{"$f":"'3 INCOME & EXPENSE'!G183","v":0},{"$f":"T('3 INCOME & EXPENSE'!H183)","v":""},{"$f":"T('3 INCOME & EXPENSE'!I183)","v":""},{"$f":"T('3 INCOME & EXPENSE'!J183)","v":""},{"$f":"T('3 INCOME & EXPENSE'!K183)","v":""},{"$f":"T('3 INCOME & EXPENSE'!L183)","v":""},{"$f":"'3 INCOME & EXPENSE'!M183","v":0},{"$f":"'3 INCOME & EXPENSE'!N183","v":0},{"$f":"'3 INCOME & EXPENSE'!O183","v":0}]
[null,{"$f":"T('3 INCOME & EXPENSE'!D184)","v":""},{"$f":"'3 INCOME & EXPENSE'!E184","v":"00:00:00"},{"$f":"'3 INCOME & EXPENSE'!F184","v":0},{"$f":"'3 INCOME & EXPENSE'!G184","v":0},{"$f":"T('3 INCOME & EXPENSE'!H184)","v":""},{"$f":"T('3 INCOME & EXPENSE'!I184)","v":""},{"$f":"T('3 INCOME & EXPENSE'!J184)","v":""},{"$f":"T('3 INCOME & EXPENSE'!K184)","v":""},{"$f":"T('3 INCOME & EXPENSE'!L184)","v":""},{"$f":"'3 INCOME & EXPENSE'!M184","v":0},{"$f":"'3 INCOME & EXPENSE'!N184","v":0},{"$f":"'3 INCOME & EXPENSE'!O184","v":0}]
[null,{"$f":"T('3 INCOME & EXPENSE'!D185)","v":""},{"$f":"'3 INCOME & EXPENSE'!E185","v":"00:00:00"},{"$f":"'3 INCOME & EXPENSE'!F185","v":0},{"$f":"'3 INCOME & EXPENSE'!G185","v":0},{"$f":"T('3 INCOME & EXPENSE'!H185)","v":""},{"$f":"T('3 INCOME & EXPENSE'!I185)","v":""},{"$f":"T('3 INCOME & EXPENSE'!J185)","v":""},{"$f":"T('3 INCOME & EXPENSE'!K185)","v":""},{"$f":"T('3 INCOME & EXPENSE'!L185)","v":""},{"$f":"'3 INCOME & EXPENSE'!M185","v":0},{"$f":"'3 INCOME & EXPENSE'!N185","v":0},{"$f":"'3 INCOME & EXPENSE'!O185","v":0}]
[null,{"$f":"T('3 INCOME & EXPENSE'!D186)","v":""},{"$f":"'3 INCOME & EXPENSE'!E186","v":"00:00:00"},{"$f":"'3 INCOME & EXPENSE'!F186","v":0},{"$f":"'3 INCOME & EXPENSE'!G186","v":0},{"$f":"T('3 INCOME & EXPENSE'!H186)","v":""},{"$f":"T('3 INCOME & EXPENSE'!I186)","v":""},{"$f":"T('3 INCOME & EXPENSE'!J186)","v":""},{"$f":"T('3 INCOME & EXPENSE'!K186)","v":""},{"$f":"T('3 INCOME & EXPENSE'!L186)","v":""},{"$f":"'3 INCOME & EXPENSE'!M186","v":0},{"$f":"'3 INCOME & EXPENSE'!N186","v":0},{"$f":"'3 INCOME & EXPENSE'!O186","v":0}]
[null,{"$f":"T('3 INCOME & EXPENSE'!D187)","v":""},{"$f":"'3 INCOME & EXPENSE'!E187","v":"00:00:00"},{"$f":"'3 INCOME & EXPENSE'!F187","v":0},{"$f":"'3 INCOME & EXPENSE'!G187","v":0},{"$f":"T('3 INCOME & EXPENSE'!H187)","v":""},{"$f":"T('3 INCOME & EXPENSE'!I187)","v":""},{"$f":"T('3 INCOME & EXPENSE'!J187)","v":""},{"$f":"T('3 INCOME & EXPENSE'!K187)","v":""},{"$f":"T('3 INCOME & EXPENSE'!L187)","v":""},{"$f":"'3 INCOME & EXPENSE'!M187","v":0},{"$f":"'3 INCOME & EXPENSE'!N187","v":0},{"$f":"'3 INCOME & EXPENSE'!O187","v":0}]
[null,{"$f":"T('3 INCOME & EXPENSE'!D188)","v":""},{"$f":"'3 INCOME & EXPENSE'!E188","v":"00:00:00"},{"$f":"'3 INCOME & EXPENSE'!F188","v":0},{"$f":"'3 INCOME & EXPENSE'!G188","v":0},{"$f":"T('3 INCOME & EXPENSE'!H188)","v":""},{"$f":"T('3 INCOME & EXPENSE'!I188)","v":""},{"$f":"T('3 INCOME & EXPENSE'!J188)","v":""},{"$f":"T('3 INCOME & EXPENSE'!K188)","v":""},{"$f":"T('3 INCOME & EXPENSE'!L188)","v":""},{"$f":"'3 INCOME & EXPENSE'!M188","v":0},{"$f":"'3 INCOME & EXPENSE'!N188","v":0},{"$f":"'3 INCOME & EXPENSE'!O188","v":0}]
[null,{"$f":"T('3 INCOME & EXPENSE'!D189)","v":""},{"$f":"'3 INCOME & EXPENSE'!E189","v":"00:00:00"},{"$f":"'3 INCOME & EXPENSE'!F189","v":0},{"$f":"'3 INCOME & EXPENSE'!G189","v":0},{"$f":"T('3 INCOME & EXPENSE'!H189)","v":""},{"$f":"T('3 INCOME & EXPENSE'!I189)","v":""},{"$f":"T('3 INCOME & EXPENSE'!J189)","v":""},{"$f":"T('3 INCOME & EXPENSE'!K189)","v":""},{"$f":"T('3 INCOME & EXPENSE'!L189)","v":""},{"$f":"'3 INCOME & EXPENSE'!M189","v":0},{"$f":"'3 INCOME & EXPENSE'!N189","v":0},{"$f":"'3 INCOME & EXPENSE'!O189","v":0}]
[null,{"$f":"T('3 INCOME & EXPENSE'!D190)","v":""},{"$f":"'3 INCOME & EXPENSE'!E190","v":"00:00:00"},{"$f":"'3 INCOME & EXPENSE'!F190","v":0},{"$f":"'3 INCOME & EXPENSE'!G190","v":0},{"$f":"T('3 INCOME & EXPENSE'!H190)","v":""},{"$f":"T('3 INCOME & EXPENSE'!I190)","v":""},{"$f":"T('3 INCOME & EXPENSE'!J190)","v":""},{"$f":"T('3 INCOME & EXPENSE'!K190)","v":""},{"$f":"T('3 INCOME & EXPENSE'!L190)","v":""},{"$f":"'3 INCOME & EXPENSE'!M190","v":0},{"$f":"'3 INCOME & EXPENSE'!N190","v":0},{"$f":"'3 INCOME & EXPENSE'!O190","v":0}]
[null,{"$f":"T('3 INCOME & EXPENSE'!D191)","v":""},{"$f":"'3 INCOME & EXPENSE'!E191","v":"00:00:00"},{"$f":"'3 INCOME & EXPENSE'!F191","v":0},{"$f":"'3 INCOME & EXPENSE'!G191","v":0},{"$f":"T('3 INCOME & EXPENSE'!H191)","v":""},{"$f":"T('3 INCOME & EXPENSE'!I191)","v":""},{"$f":"T('3 INCOME & EXPENSE'!J191)","v":""},{"$f":"T('3 INCOME & EXPENSE'!K191)","v":""},{"$f":"T('3 INCOME & EXPENSE'!L191)","v":""},{"$f":"'3 INCOME & EXPENSE'!M191","v":0},{"$f":"'3 INCOME & EXPENSE'!N191","v":0},{"$f":"'3 INCOME & EXPENSE'!O191","v":0}]
[null,{"$f":"T('3 INCOME & EXPENSE'!D192)","v":""},{"$f":"'3 INCOME & EXPENSE'!E192","v":"00:00:00"},{"$f":"'3 INCOME & EXPENSE'!F192","v":0},{"$f":"'3 INCOME & EXPENSE'!G192","v":0},{"$f":"T('3 INCOME & EXPENSE'!H192)","v":""},{"$f":"T('3 INCOME & EXPENSE'!I192)","v":""},{"$f":"T('3 INCOME & EXPENSE'!J192)","v":""},{"$f":"T('3 INCOME & EXPENSE'!K192)","v":""},{"$f":"T('3 INCOME & EXPENSE'!L192)","v":""},{"$f":"'3 INCOME & EXPENSE'!M192","v":0},{"$f":"'3 INCOME & EXPENSE'!N192","v":0},{"$f":"'3 INCOME & EXPENSE'!O192","v":0}]
[null,{"$f":"T('3 INCOME & EXPENSE'!D193)","v":""},{"$f":"'3 INCOME & EXPENSE'!E193","v":"00:00:00"},{"$f":"'3 INCOME & EXPENSE'!F193","v":0},{"$f":"'3 INCOME & EXPENSE'!G193","v":0},{"$f":"T('3 INCOME & EXPENSE'!H193)","v":""},{"$f":"T('3 INCOME & EXPENSE'!I193)","v":""},{"$f":"T('3 INCOME & EXPENSE'!J193)","v":""},{"$f":"T('3 INCOME & EXPENSE'!K193)","v":""},{"$f":"T('3 INCOME & EXPENSE'!L193)","v":""},{"$f":"'3 INCOME & EXPENSE'!M193","v":0},{"$f":"'3 INCOME & EXPENSE'!N193","v":0},{"$f":"'3 INCOME & EXPENSE'!O193","v":0}]
[null,{"$f":"T('3 INCOME & EXPENSE'!D194)","v":""},{"$f":"'3 INCOME & EXPENSE'!E194","v":"00:00:00"},{"$f":"'3 INCOME & EXPENSE'!F194","v":0},{"$f":"'3 INCOME & EXPENSE'!G194","v":0},{"$f":"T('3 INCOME & EXPENSE'!H194)","v":""},{"$f":"T('3 INCOME & EXPENSE'!I194)","v":""},{"$f":"T('3 INCOME & EXPENSE'!J194)","v":""},{"$f":"T('3 INCOME & EXPENSE'!K194)","v":""},{"$f":"T('3 INCOME & EXPENSE'!L194)","v":""},{"$f":"'3 INCOME & EXPENSE'!M194","v":0},{"$f":"'3 INCOME & EXPENSE'!N194","v":0},{"$f":"'3 INCOME & EXPENSE'!O194","v":0}]
[null,{"$f":"T('3 INCOME & EXPENSE'!D195)","v":""},{"$f":"'3 INCOME & EXPENSE'!E195","v":"00:00:00"},{"$f":"'3 INCOME & EXPENSE'!F195","v":0},{"$f":"'3 INCOME & EXPENSE'!G195","v":0},{"$f":"T('3 INCOME & EXPENSE'!H195)","v":""},{"$f":"T('3 INCOME & EXPENSE'!I195)","v":""},{"$f":"T('3 INCOME & EXPENSE'!J195)","v":""},{"$f":"T('3 INCOME & EXPENSE'!K195)","v":""},{"$f":"T('3 INCOME & EXPENSE'!L195)","v":""},{"$f":"'3 INCOME & EXPENSE'!M195","v":0},{"$f":"'3 INCOME & EXPENSE'!N195","v":0},{"$f":"'3 INCOME & EXPENSE'!O195","v":0}]
[null,{"$f":"T('3 INCOME & EXPENSE'!D196)","v":""},{"$f":"'3 INCOME & EXPENSE'!E196","v":"00:00:00"},{"$f":"'3 INCOME & EXPENSE'!F196","v":0},{"$f":"'3 INCOME & EXPENSE'!G196","v":0},{"$f":"T('3 INCOME & EXPENSE'!H196)","v":""},{"$f":"T('3 INCOME & EXPENSE'!I196)","v":""},{"$f":"T('3 INCOME & EXPENSE'!J196)","v":""},{"$f":"T('3 INCOME & EXPENSE'!K196)","v":""},{"$f":"T('3 INCOME & EXPENSE'!L196)","v":""},{"$f":"'3 INCOME & EXPENSE'!M196","v":0},{"$f":"'3 INCOME & EXPENSE'!N196","v":0},{"$f":"'3 INCOME & EXPENSE'!O196","v":0}]
[null,{"$f":"T('3 INCOME & EXPENSE'!D197)","v":""},{"$f":"'3 INCOME & EXPENSE'!E197","v":"00:00:00"},{"$f":"'3 INCOME & EXPENSE'!F197","v":0},{"$f":"'3 INCOME & EXPENSE'!G197","v":0},{"$f":"T('3 INCOME & EXPENSE'!H197)","v":""},{"$f":"T('3 INCOME & EXPENSE'!I197)","v":""},{"$f":"T('3 INCOME & EXPENSE'!J197)","v":""},{"$f":"T('3 INCOME & EXPENSE'!K197)","v":""},{"$f":"T('3 INCOME & EXPENSE'!L197)","v":""},{"$f":"'3 INCOME & EXPENSE'!M197","v":0},{"$f":"'3 INCOME & EXPENSE'!N197","v":0},{"$f":"'3 INCOME & EXPENSE'!O197","v":0}]
[null,{"$f":"T('3 INCOME & EXPENSE'!D198)","v":""},{"$f":"'3 INCOME & EXPENSE'!E198","v":"00:00:00"},{"$f":"'3 INCOME & EXPENSE'!F198","v":0},{"$f":"'3 INCOME & EXPENSE'!G198","v":0},{"$f":"T('3 INCOME & EXPENSE'!H198)","v":""},{"$f":"T('3 INCOME & EXPENSE'!I198)","v":""},{"$f":"T('3 INCOME & EXPENSE'!J198)","v":""},{"$f":"T('3 INCOME & EXPENSE'!K198)","v":""},{"$f":"T('3 INCOME & EXPENSE'!L198)","v":""},{"$f":"'3 INCOME & EXPENSE'!M198","v":0},{"$f":"'3 INCOME & EXPENSE'!N198","v":0},{"$f":"'3 INCOME & EXPENSE'!O198","v":0}]
[null,{"$f":"T('3 INCOME & EXPENSE'!D199)","v":""},{"$f":"'3 INCOME & EXPENSE'!E199","v":"00:00:00"},{"$f":"'3 INCOME & EXPENSE'!F199","v":0},{"$f":"'3 INCOME & EXPENSE'!G199","v":0},{"$f":"T('3 INCOME & EXPENSE'!H199)","v":""},{"$f":"T('3 INCOME & EXPENSE'!I199)","v":""},{"$f":"T('3 INCOME & EXPENSE'!J199)","v":""},{"$f":"T('3 INCOME & EXPENSE'!K199)","v":""},{"$f":"T('3 INCOME & EXPENSE'!L199)","v":""},{"$f":"'3 INCOME & EXPENSE'!M199","v":0},{"$f":"'3 INCOME & EXPENSE'!N199","v":0},{"$f":"'3 INCOME & EXPENSE'!O199","v":0}]
[null,{"$f":"T('3 INCOME & EXPENSE'!D200)","v":""},{"$f":"'3 INCOME & EXPENSE'!E200","v":"00:00:00"},{"$f":"'3 INCOME & EXPENSE'!F200","v":0},{"$f":"'3 INCOME & EXPENSE'!G200","v":0},{"$f":"T('3 INCOME & EXPENSE'!H200)","v":""},{"$f":"T('3 INCOME & EXPENSE'!I200)","v":""},{"$f":"T('3 INCOME & EXPENSE'!J200)","v":""},{"$f":"T('3 INCOME & EXPENSE'!K200)","v":""},{"$f":"T('3 INCOME & EXPENSE'!L200)","v":""},{"$f":"'3 INCOME & EXPENSE'!M200","v":0},{"$f":"'3 INCOME & EXPENSE'!N200","v":0},{"$f":"'3 INCOME & EXPENSE'!O200","v":0}]
[null,{"$f":"T('3 INCOME & EXPENSE'!D201)","v":""},{"$f":"'3 INCOME & EXPENSE'!E201","v":"00:00:00"},{"$f":"'3 INCOME & EXPENSE'!F201","v":0},{"$f":"'3 INCOME & EXPENSE'!G201","v":0},{"$f":"T('3 INCOME & EXPENSE'!H201)","v":""},{"$f":"T('3 INCOME & EXPENSE'!I201)","v":""},{"$f":"T('3 INCOME & EXPENSE'!J201)","v":""},{"$f":"T('3 INCOME & EXPENSE'!K201)","v":""},{"$f":"T('3 INCOME & EXPENSE'!L201)","v":""},{"$f":"'3 INCOME & EXPENSE'!M201","v":0},{"$f":"'3 INCOME & EXPENSE'!N201","v":0},{"$f":"'3 INCOME & EXPENSE'!O201","v":0}]
[null,{"$f":"T('3 INCOME & EXPENSE'!D202)","v":""},{"$f":"'3 INCOME & EXPENSE'!E202","v":"00:00:00"},{"$f":"'3 INCOME & EXPENSE'!F202","v":0},{"$f":"'3 INCOME & EXPENSE'!G202","v":0},{"$f":"T('3 INCOME & EXPENSE'!H202)","v":""},{"$f":"T('3 INCOME & EXPENSE'!I202)","v":""},{"$f":"T('3 INCOME & EXPENSE'!J202)","v":""},{"$f":"T('3 INCOME & EXPENSE'!K202)","v":""},{"$f":"T('3 INCOME & EXPENSE'!L202)","v":""},{"$f":"'3 INCOME & EXPENSE'!M202","v":0},{"$f":"'3 INCOME & EXPENSE'!N202","v":0},{"$f":"'3 INCOME & EXPENSE'!O202","v":0}]
[null,{"$f":"T('3 INCOME & EXPENSE'!D203)","v":""},{"$f":"'3 INCOME & EXPENSE'!E203","v":"00:00:00"},{"$f":"'3 INCOME & EXPENSE'!F203","v":0},{"$f":"'3 INCOME & EXPENSE'!G203","v":0},{"$f":"T('3 INCOME & EXPENSE'!H203)","v":""},{"$f":"T('3 INCOME & EXPENSE'!I203)","v":""},{"$f":"T('3 INCOME & EXPENSE'!J203)","v":""},{"$f":"T('3 INCOME & EXPENSE'!K203)","v":""},{"$f":"T('3 INCOME & EXPENSE'!L203)","v":""},{"$f":"'3 INCOME & EXPENSE'!M203","v":0},{"$f":"'3 INCOME & EXPENSE'!N203","v":0},{"$f":"'3 INCOME & EXPENSE'!O203","v":0}]
[null,{"$f":"T('3 INCOME & EXPENSE'!D204)","v":""},{"$f":"'3 INCOME & EXPENSE'!E204","v":"00:00:00"},{"$f":"'3 INCOME & EXPENSE'!F204","v":0},{"$f":"'3 INCOME & EXPENSE'!G204","v":0},{"$f":"T('3 INCOME & EXPENSE'!H204)","v":""},{"$f":"T('3 INCOME & EXPENSE'!I204)","v":""},{"$f":"T('3 INCOME & EXPENSE'!J204)","v":""},{"$f":"T('3 INCOME & EXPENSE'!K204)","v":""},{"$f":"T('3 INCOME & EXPENSE'!L204)","v":""},{"$f":"'3 INCOME & EXPENSE'!M204","v":0},{"$f":"'3 INCOME & EXPENSE'!N204","v":0},{"$f":"'3 INCOME & EXPENSE'!O204","v":0}]
[null,{"$f":"T('3 INCOME & EXPENSE'!D205)","v":""},{"$f":"'3 INCOME & EXPENSE'!E205","v":"00:00:00"},{"$f":"'3 INCOME & EXPENSE'!F205","v":0},{"$f":"'3 INCOME & EXPENSE'!G205","v":0},{"$f":"T('3 INCOME & EXPENSE'!H205)","v":""},{"$f":"T('3 INCOME & EXPENSE'!I205)","v":""},{"$f":"T('3 INCOME & EXPENSE'!J205)","v":""},{"$f":"T('3 INCOME & EXPENSE'!K205)","v":""},{"$f":"T('3 INCOME & EXPENSE'!L205)","v":""},{"$f":"'3 INCOME & EXPENSE'!M205","v":0},{"$f":"'3 INCOME & EXPENSE'!N205","v":0},{"$f":"'3 INCOME & EXPENSE'!O205","v":0}]
[null,{"$f":"T('3 INCOME & EXPENSE'!D206)","v":""},{"$f":"'3 INCOME & EXPENSE'!E206","v":"00:00:00"},{"$f":"'3 INCOME & EXPENSE'!F206","v":0},{"$f":"'3 INCOME & EXPENSE'!G206","v":0},{"$f":"T('3 INCOME & EXPENSE'!H206)","v":""},{"$f":"T('3 INCOME & EXPENSE'!I206)","v":""},{"$f":"T('3 INCOME & EXPENSE'!J206)","v":""},{"$f":"T('3 INCOME & EXPENSE'!K206)","v":""},{"$f":"T('3 INCOME & EXPENSE'!L206)","v":""},{"$f":"'3 INCOME & EXPENSE'!M206","v":0},{"$f":"'3 INCOME & EXPENSE'!N206","v":0},{"$f":"'3 INCOME & EXPENSE'!O206","v":0}]
[null,{"$f":"T('3 INCOME & EXPENSE'!D207)","v":""},{"$f":"'3 INCOME & EXPENSE'!E207","v":"00:00:00"},{"$f":"'3 INCOME & EXPENSE'!F207","v":0},{"$f":"'3 INCOME & EXPENSE'!G207","v":0},{"$f":"T('3 INCOME & EXPENSE'!H207)","v":""},{"$f":"T('3 INCOME & EXPENSE'!I207)","v":""},{"$f":"T('3 INCOME & EXPENSE'!J207)","v":""},{"$f":"T('3 INCOME & EXPENSE'!K207)","v":""},{"$f":"T('3 INCOME & EXPENSE'!L207)","v":""},{"$f":"'3 INCOME & EXPENSE'!M207","v":0},{"$f":"'3 INCOME & EXPENSE'!N207","v":0},{"$f":"'3 INCOME & EXPENSE'!O207","v":0}]
[null,{"$f":"T('3 INCOME & EXPENSE'!D208)","v":""},{"$f":"'3 INCOME & EXPENSE'!E208","v":"00:00:00"},{"$f":"'3 INCOME & EXPENSE'!F208","v":0},{"$f":"'3 INCOME & EXPENSE'!G208","v":0},{"$f":"T('3 INCOME & EXPENSE'!H208)","v":""},{"$f":"T('3 INCOME & EXPENSE'!I208)","v":""},{"$f":"T('3 INCOME & EXPENSE'!J208)","v":""},{"$f":"T('3 INCOME & EXPENSE'!K208)","v":""},{"$f":"T('3 INCOME & EXPENSE'!L208)","v":""},{"$f":"'3 INCOME & EXPENSE'!M208","v":0},{"$f":"'3 INCOME & EXPENSE'!N208","v":0},{"$f":"'3 INCOME & EXPENSE'!O208","v":0}]
[null,{"$f":"T('3 INCOME & EXPENSE'!D209)","v":""},{"$f":"'3 INCOME & EXPENSE'!E209","v":"00:00:00"},{"$f":"'3 INCOME & EXPENSE'!F209","v":0},{"$f":"'3 INCOME & EXPENSE'!G209","v":0},{"$f":"T('3 INCOME & EXPENSE'!H209)","v":""},{"$f":"T('3 INCOME & EXPENSE'!I209)","v":""},{"$f":"T('3 INCOME & EXPENSE'!J209)","v":""},{"$f":"T('3 INCOME & EXPENSE'!K209)","v":""},{"$f":"T('3 INCOME & EXPENSE'!L209)","v":""},{"$f":"'3 INCOME & EXPENSE'!M209","v":0},{"$f":"'3 INCOME & EXPENSE'!N209","v":0},{"$f":"'3 INCOME & EXPENSE'!O209","v":0}]
[null,{"$f":"T('3 INCOME & EXPENSE'!D210)","v":""},{"$f":"'3 INCOME & EXPENSE'!E210","v":"00:00:00"},{"$f":"'3 INCOME & EXPENSE'!F210","v":0},{"$f":"'3 INCOME & EXPENSE'!G210","v":0},{"$f":"T('3 INCOME & EXPENSE'!H210)","v":""},{"$f":"T('3 INCOME & EXPENSE'!I210)","v":""},{"$f":"T('3 INCOME & EXPENSE'!J210)","v":""},{"$f":"T('3 INCOME & EXPENSE'!K210)","v":""},{"$f":"T('3 INCOME & EXPENSE'!L210)","v":""},{"$f":"'3 INCOME & EXPENSE'!M210","v":0},{"$f":"'3 INCOME & EXPENSE'!N210","v":0},{"$f":"'3 INCOME & EXPENSE'!O210","v":0}]
[null,{"$f":"T('3 INCOME & EXPENSE'!D211)","v":""},{"$f":"'3 INCOME & EXPENSE'!E211","v":"00:00:00"},{"$f":"'3 INCOME & EXPENSE'!F211","v":0},{"$f":"'3 INCOME & EXPENSE'!G211","v":0},{"$f":"T('3 INCOME & EXPENSE'!H211)","v":""},{"$f":"T('3 INCOME & EXPENSE'!I211)","v":""},{"$f":"T('3 INCOME & EXPENSE'!J211)","v":""},{"$f":"T('3 INCOME & EXPENSE'!K211)","v":""},{"$f":"T('3 INCOME & EXPENSE'!L211)","v":""},{"$f":"'3 INCOME & EXPENSE'!M211","v":0},{"$f":"'3 INCOME & EXPENSE'!N211","v":0},{"$f":"'3 INCOME & EXPENSE'!O211","v":0}]
[null,{"$f":"T('3 INCOME & EXPENSE'!D212)","v":""},{"$f":"'3 INCOME & EXPENSE'!E212","v":"00:00:00"},{"$f":"'3 INCOME & EXPENSE'!F212","v":0},{"$f":"'3 INCOME & EXPENSE'!G212","v":0},{"$f":"T('3 INCOME & EXPENSE'!H212)","v":""},{"$f":"T('3 INCOME & EXPENSE'!I212)","v":""},{"$f":"T('3 INCOME & EXPENSE'!J212)","v":""},{"$f":"T('3 INCOME & EXPENSE'!K212)","v":""},{"$f":"T('3 INCOME & EXPENSE'!L212)","v":""},{"$f":"'3 INCOME & EXPENSE'!M212","v":0},{"$f":"'3 INCOME & EXPENSE'!N212","v":0},{"$f":"'3 INCOME & EXPENSE'!O212","v":0}]
[null,{"$f":"T('3 INCOME & EXPENSE'!D213)","v":""},{"$f":"'3 INCOME & EXPENSE'!E213","v":"00:00:00"},{"$f":"'3 INCOME & EXPENSE'!F213","v":0},{"$f":"'3 INCOME & EXPENSE'!G213","v":0},{"$f":"T('3 INCOME & EXPENSE'!H213)","v":""},{"$f":"T('3 INCOME & EXPENSE'!I213)","v":""},{"$f":"T('3 INCOME & EXPENSE'!J213)","v":""},{"$f":"T('3 INCOME & EXPENSE'!K213)","v":""},{"$f":"T('3 INCOME & EXPENSE'!L213)","v":""},{"$f":"'3 INCOME & EXPENSE'!M213","v":0},{"$f":"'3 INCOME & EXPENSE'!N213","v":0},{"$f":"'3 INCOME & EXPENSE'!O213","v":0}]
[null,{"$f":"T('3 INCOME & EXPENSE'!D214)","v":""},{"$f":"'3 INCOME & EXPENSE'!E214","v":"00:00:00"},{"$f":"'3 INCOME & EXPENSE'!F214","v":0},{"$f":"'3 INCOME & EXPENSE'!G214","v":0},{"$f":"T('3 INCOME & EXPENSE'!H214)","v":""},{"$f":"T('3 INCOME & EXPENSE'!I214)","v":""},{"$f":"T('3 INCOME & EXPENSE'!J214)","v":""},{"$f":"T('3 INCOME & EXPENSE'!K214)","v":""},{"$f":"T('3 INCOME & EXPENSE'!L214)","v":""},{"$f":"'3 INCOME & EXPENSE'!M214","v":0},{"$f":"'3 INCOME & EXPENSE'!N214","v":0},{"$f":"'3 INCOME & EXPENSE'!O214","v":0}]
[null,{"$f":"T('3 INCOME & EXPENSE'!D215)","v":""},{"$f":"'3 INCOME & EXPENSE'!E215","v":"00:00:00"},{"$f":"'3 INCOME & EXPENSE'!F215","v":0},{"$f":"'3 INCOME & EXPENSE'!G215","v":0},{"$f":"T('3 INCOME & EXPENSE'!H215)","v":""},{"$f":"T('3 INCOME & EXPENSE'!I215)","v":""},{"$f":"T('3 INCOME & EXPENSE'!J215)","v":""},{"$f":"T('3 INCOME & EXPENSE'!K215)","v":""},{"$f":"T('3 INCOME & EXPENSE'!L215)","v":""},{"$f":"'3 INCOME & EXPENSE'!M215","v":0},{"$f":"'3 INCOME & EXPENSE'!N215","v":0},{"$f":"'3 INCOME & EXPENSE'!O215","v":0}]
[null,{"$f":"T('3 INCOME & EXPENSE'!D216)","v":""},{"$f":"'3 INCOME & EXPENSE'!E216","v":"00:00:00"},{"$f":"'3 INCOME & EXPENSE'!F216","v":0},{"$f":"'3 INCOME & EXPENSE'!G216","v":0},{"$f":"T('3 INCOME & EXPENSE'!H216)","v":""},{"$f":"T('3 INCOME & EXPENSE'!I216)","v":""},{"$f":"T('3 INCOME & EXPENSE'!J216)","v":""},{"$f":"T('3 INCOME & EXPENSE'!K216)","v":""},{"$f":"T('3 INCOME & EXPENSE'!L216)","v":""},{"$f":"'3 INCOME & EXPENSE'!M216","v":0},{"$f":"'3 INCOME & EXPENSE'!N216","v":0},{"$f":"'3 INCOME & EXPENSE'!O216","v":0}]
[null,{"$f":"T('3 INCOME & EXPENSE'!D217)","v":""},{"$f":"'3 INCOME & EXPENSE'!E217","v":"00:00:00"},{"$f":"'3 INCOME & EXPENSE'!F217","v":0},{"$f":"'3 INCOME & EXPENSE'!G217","v":0},{"$f":"T('3 INCOME & EXPENSE'!H217)","v":""},{"$f":"T('3 INCOME & EXPENSE'!I217)","v":""},{"$f":"T('3 INCOME & EXPENSE'!J217)","v":""},{"$f":"T('3 INCOME & EXPENSE'!K217)","v":""},{"$f":"T('3 INCOME & EXPENSE'!L217)","v":""},{"$f":"'3 INCOME & EXPENSE'!M217","v":0},{"$f":"'3 INCOME & EXPENSE'!N217","v":0},{"$f":"'3 INCOME & EXPENSE'!O217","v":0}]
[null,{"$f":"T('3 INCOME & EXPENSE'!D218)","v":""},{"$f":"'3 INCOME & EXPENSE'!E218","v":"00:00:00"},{"$f":"'3 INCOME & EXPENSE'!F218","v":0},{"$f":"'3 INCOME & EXPENSE'!G218","v":0},{"$f":"T('3 INCOME & EXPENSE'!H218)","v":""},{"$f":"T('3 INCOME & EXPENSE'!I218)","v":""},{"$f":"T('3 INCOME & EXPENSE'!J218)","v":""},{"$f":"T('3 INCOME & EXPENSE'!K218)","v":""},{"$f":"T('3 INCOME & EXPENSE'!L218)","v":""},{"$f":"'3 INCOME & EXPENSE'!M218","v":0},{"$f":"'3 INCOME & EXPENSE'!N218","v":0},{"$f":"'3 INCOME & EXPENSE'!O218","v":0}]
[null,{"$f":"T('3 INCOME & EXPENSE'!D219)","v":""},{"$f":"'3 INCOME & EXPENSE'!E219","v":"00:00:00"},{"$f":"'3 INCOME & EXPENSE'!F219","v":0},{"$f":"'3 INCOME & EXPENSE'!G219","v":0},{"$f":"T('3 INCOME & EXPENSE'!H219)","v":""},{"$f":"T('3 INCOME & EXPENSE'!I219)","v":""},{"$f":"T('3 INCOME & EXPENSE'!J219)","v":""},{"$f":"T('3 INCOME & EXPENSE'!K219)","v":""},{"$f":"T('3 INCOME & EXPENSE'!L219)","v":""},{"$f":"'3 INCOME & EXPENSE'!M219","v":0},{"$f":"'3 INCOME & EXPENSE'!N219","v":0},{"$f":"'3 INCOME & EXPENSE'!O219","v":0}]
[null,{"$f":"T('3 INCOME & EXPENSE'!D220)","v":""},{"$f":"'3 INCOME & EXPENSE'!E220","v":"00:00:00"},{"$f":"'3 INCOME & EXPENSE'!F220","v":0},{"$f":"'3 INCOME & EXPENSE'!G220","v":0},{"$f":"T('3 INCOME & EXPENSE'!H220)","v":""},{"$f":"T('3 INCOME & EXPENSE'!I220)","v":""},{"$f":"T('3 INCOME & EXPENSE'!J220)","v":""},{"$f":"T('3 INCOME & EXPENSE'!K220)","v":""},{"$f":"T('3 INCOME & EXPENSE'!L220)","v":""},{"$f":"'3 INCOME & EXPENSE'!M220","v":0},{"$f":"'3 INCOME & EXPENSE'!N220","v":0},{"$f":"'3 INCOME & EXPENSE'!O220","v":0}]
[null,{"$f":"T('3 INCOME & EXPENSE'!D221)","v":""},{"$f":"'3 INCOME & EXPENSE'!E221","v":"00:00:00"},{"$f":"'3 INCOME & EXPENSE'!F221","v":0},{"$f":"'3 INCOME & EXPENSE'!G221","v":0},{"$f":"T('3 INCOME & EXPENSE'!H221)","v":""},{"$f":"T('3 INCOME & EXPENSE'!I221)","v":""},{"$f":"T('3 INCOME & EXPENSE'!J221)","v":""},{"$f":"T('3 INCOME & EXPENSE'!K221)","v":""},{"$f":"T('3 INCOME & EXPENSE'!L221)","v":""},{"$f":"'3 INCOME & EXPENSE'!M221","v":0},{"$f":"'3 INCOME & EXPENSE'!N221","v":0},{"$f":"'3 INCOME & EXPENSE'!O221","v":0}]
[null,{"$f":"T('3 INCOME & EXPENSE'!D222)","v":""},{"$f":"'3 INCOME & EXPENSE'!E222","v":"00:00:00"},{"$f":"'3 INCOME & EXPENSE'!F222","v":0},{"$f":"'3 INCOME & EXPENSE'!G222","v":0},{"$f":"T('3 INCOME & EXPENSE'!H222)","v":""},{"$f":"T('3 INCOME & EXPENSE'!I222)","v":""},{"$f":"T('3 INCOME & EXPENSE'!J222)","v":""},{"$f":"T('3 INCOME & EXPENSE'!K222)","v":""},{"$f":"T('3 INCOME & EXPENSE'!L222)","v":""},{"$f":"'3 INCOME & EXPENSE'!M222","v":0},{"$f":"'3 INCOME & EXPENSE'!N222","v":0},{"$f":"'3 INCOME & EXPENSE'!O222","v":0}]
[null,{"$f":"T('3 INCOME & EXPENSE'!D223)","v":""},{"$f":"'3 INCOME & EXPENSE'!E223","v":"00:00:00"},{"$f":"'3 INCOME & EXPENSE'!F223","v":0},{"$f":"'3 INCOME & EXPENSE'!G223","v":0},{"$f":"T('3 INCOME & EXPENSE'!H223)","v":""},{"$f":"T('3 INCOME & EXPENSE'!I223)","v":""},{"$f":"T('3 INCOME & EXPENSE'!J223)","v":""},{"$f":"T('3 INCOME & EXPENSE'!K223)","v":""},{"$f":"T('3 INCOME & EXPENSE'!L223)","v":""},{"$f":"'3 INCOME & EXPENSE'!M223","v":0},{"$f":"'3 INCOME & EXPENSE'!N223","v":0},{"$f":"'3 INCOME & EXPENSE'!O223","v":0}]
[null,{"$f":"T('3 INCOME & EXPENSE'!D224)","v":""},{"$f":"'3 INCOME & EXPENSE'!E224","v":"00:00:00"},{"$f":"'3 INCOME & EXPENSE'!F224","v":0},{"$f":"'3 INCOME & EXPENSE'!G224","v":0},{"$f":"T('3 INCOME & EXPENSE'!H224)","v":""},{"$f":"T('3 INCOME & EXPENSE'!I224)","v":""},{"$f":"T('3 INCOME & EXPENSE'!J224)","v":""},{"$f":"T('3 INCOME & EXPENSE'!K224)","v":""},{"$f":"T('3 INCOME & EXPENSE'!L224)","v":""},{"$f":"'3 INCOME & EXPENSE'!M224","v":0},{"$f":"'3 INCOME & EXPENSE'!N224","v":0},{"$f":"'3 INCOME & EXPENSE'!O224","v":0}]
[null,{"$f":"T('3 INCOME & EXPENSE'!D225)","v":""},{"$f":"'3 INCOME & EXPENSE'!E225","v":"00:00:00"},{"$f":"'3 INCOME & EXPENSE'!F225","v":0},{"$f":"'3 INCOME & EXPENSE'!G225","v":0},{"$f":"T('3 INCOME & EXPENSE'!H225)","v":""},{"$f":"T('3 INCOME & EXPENSE'!I225)","v":""},{"$f":"T('3 INCOME & EXPENSE'!J225)","v":""},{"$f":"T('3 INCOME & EXPENSE'!K225)","v":""},{"$f":"T('3 INCOME & EXPENSE'!L225)","v":""},{"$f":"'3 INCOME & EXPENSE'!M225","v":0},{"$f":"'3 INCOME & EXPENSE'!N225","v":0},{"$f":"'3 INCOME & EXPENSE'!O225","v":0}]
[null,{"$f":"T('3 INCOME & EXPENSE'!D226)","v":""},{"$f":"'3 INCOME & EXPENSE'!E226","v":"00:00:00"},{"$f":"'3 INCOME & EXPENSE'!F226","v":0},{"$f":"'3 INCOME & EXPENSE'!G226","v":0},{"$f":"T('3 INCOME & EXPENSE'!H226)","v":""},{"$f":"T('3 INCOME & EXPENSE'!I226)","v":""},{"$f":"T('3 INCOME & EXPENSE'!J226)","v":""},{"$f":"T('3 INCOME & EXPENSE'!K226)","v":""},{"$f":"T('3 INCOME & EXPENSE'!L226)","v":""},{"$f":"'3 INCOME & EXPENSE'!M226","v":0},{"$f":"'3 INCOME & EXPENSE'!N226","v":0},{"$f":"'3 INCOME & EXPENSE'!O226","v":0}]
[null,{"$f":"T('3 INCOME & EXPENSE'!D227)","v":""},{"$f":"'3 INCOME & EXPENSE'!E227","v":"00:00:00"},{"$f":"'3 INCOME & EXPENSE'!F227","v":0},{"$f":"'3 INCOME & EXPENSE'!G227","v":0},{"$f":"T('3 INCOME & EXPENSE'!H227)","v":""},{"$f":"T('3 INCOME & EXPENSE'!I227)","v":""},{"$f":"T('3 INCOME & EXPENSE'!J227)","v":""},{"$f":"T('3 INCOME & EXPENSE'!K227)","v":""},{"$f":"T('3 INCOME & EXPENSE'!L227)","v":""},{"$f":"'3 INCOME & EXPENSE'!M227","v":0},{"$f":"'3 INCOME & EXPENSE'!N227","v":0},{"$f":"'3 INCOME & EXPENSE'!O227","v":0}]
[null,{"$f":"T('3 INCOME & EXPENSE'!D228)","v":""},{"$f":"'3 INCOME & EXPENSE'!E228","v":"00:00:00"},{"$f":"'3 INCOME & EXPENSE'!F228","v":0},{"$f":"'3 INCOME & EXPENSE'!G228","v":0},{"$f":"T('3 INCOME & EXPENSE'!H228)","v":""},{"$f":"T('3 INCOME & EXPENSE'!I228)","v":""},{"$f":"T('3 INCOME & EXPENSE'!J228)","v":""},{"$f":"T('3 INCOME & EXPENSE'!K228)","v":""},{"$f":"T('3 INCOME & EXPENSE'!L228)","v":""},{"$f":"'3 INCOME & EXPENSE'!M228","v":0},{"$f":"'3 INCOME & EXPENSE'!N228","v":0},{"$f":"'3 INCOME & EXPENSE'!O228","v":0}]
[null,{"$f":"T('3 INCOME & EXPENSE'!D229)","v":""},{"$f":"'3 INCOME & EXPENSE'!E229","v":"00:00:00"},{"$f":"'3 INCOME & EXPENSE'!F229","v":0},{"$f":"'3 INCOME & EXPENSE'!G229","v":0},{"$f":"T('3 INCOME & EXPENSE'!H229)","v":""},{"$f":"T('3 INCOME & EXPENSE'!I229)","v":""},{"$f":"T('3 INCOME & EXPENSE'!J229)","v":""},{"$f":"T('3 INCOME & EXPENSE'!K229)","v":""},{"$f":"T('3 INCOME & EXPENSE'!L229)","v":""},{"$f":"'3 INCOME & EXPENSE'!M229","v":0},{"$f":"'3 INCOME & EXPENSE'!N229","v":0},{"$f":"'3 INCOME & EXPENSE'!O229","v":0}]
[null,{"$f":"T('3 INCOME & EXPENSE'!D230)","v":""},{"$f":"'3 INCOME & EXPENSE'!E230","v":"00:00:00"},{"$f":"'3 INCOME & EXPENSE'!F230","v":0},{"$f":"'3 INCOME & EXPENSE'!G230","v":0},{"$f":"T('3 INCOME & EXPENSE'!H230)","v":""},{"$f":"T('3 INCOME & EXPENSE'!I230)","v":""},{"$f":"T('3 INCOME & EXPENSE'!J230)","v":""},{"$f":"T('3 INCOME & EXPENSE'!K230)","v":""},{"$f":"T('3 INCOME & EXPENSE'!L230)","v":""},{"$f":"'3 INCOME & EXPENSE'!M230","v":0},{"$f":"'3 INCOME & EXPENSE'!N230","v":0},{"$f":"'3 INCOME & EXPENSE'!O230","v":0}]
[null,{"$f":"T('3 INCOME & EXPENSE'!D231)","v":""},{"$f":"'3 INCOME & EXPENSE'!E231","v":"00:00:00"},{"$f":"'3 INCOME & EXPENSE'!F231","v":0},{"$f":"'3 INCOME & EXPENSE'!G231","v":0},{"$f":"T('3 INCOME & EXPENSE'!H231)","v":""},{"$f":"T('3 INCOME & EXPENSE'!I231)","v":""},{"$f":"T('3 INCOME & EXPENSE'!J231)","v":""},{"$f":"T('3 INCOME & EXPENSE'!K231)","v":""},{"$f":"T('3 INCOME & EXPENSE'!L231)","v":""},{"$f":"'3 INCOME & EXPENSE'!M231","v":0},{"$f":"'3 INCOME & EXPENSE'!N231","v":0},{"$f":"'3 INCOME & EXPENSE'!O231","v":0}]
[null,{"$f":"T('3 INCOME & EXPENSE'!D232)","v":""},{"$f":"'3 INCOME & EXPENSE'!E232","v":"00:00:00"},{"$f":"'3 INCOME & EXPENSE'!F232","v":0},{"$f":"'3 INCOME & EXPENSE'!G232","v":0},{"$f":"T('3 INCOME & EXPENSE'!H232)","v":""},{"$f":"T('3 INCOME & EXPENSE'!I232)","v":""},{"$f":"T('3 INCOME & EXPENSE'!J232)","v":""},{"$f":"T('3 INCOME & EXPENSE'!K232)","v":""},{"$f":"T('3 INCOME & EXPENSE'!L232)","v":""},{"$f":"'3 INCOME & EXPENSE'!M232","v":0},{"$f":"'3 INCOME & EXPENSE'!N232","v":0},{"$f":"'3 INCOME & EXPENSE'!O232","v":0}]
[null,{"$f":"T('3 INCOME & EXPENSE'!D233)","v":""},{"$f":"'3 INCOME & EXPENSE'!E233","v":"00:00:00"},{"$f":"'3 INCOME & EXPENSE'!F233","v":0},{"$f":"'3 INCOME & EXPENSE'!G233","v":0},{"$f":"T('3 INCOME & EXPENSE'!H233)","v":""},{"$f":"T('3 INCOME & EXPENSE'!I233)","v":""},{"$f":"T('3 INCOME & EXPENSE'!J233)","v":""},{"$f":"T('3 INCOME & EXPENSE'!K233)","v":""},{"$f":"T('3 INCOME & EXPENSE'!L233)","v":""},{"$f":"'3 INCOME & EXPENSE'!M233","v":0},{"$f":"'3 INCOME & EXPENSE'!N233","v":0},{"$f":"'3 INCOME & EXPENSE'!O233","v":0}]
[null,{"$f":"T('3 INCOME & EXPENSE'!D234)","v":""},{"$f":"'3 INCOME & EXPENSE'!E234","v":"00:00:00"},{"$f":"'3 INCOME & EXPENSE'!F234","v":0},{"$f":"'3 INCOME & EXPENSE'!G234","v":0},{"$f":"T('3 INCOME & EXPENSE'!H234)","v":""},{"$f":"T('3 INCOME & EXPENSE'!I234)","v":""},{"$f":"T('3 INCOME & EXPENSE'!J234)","v":""},{"$f":"T('3 INCOME & EXPENSE'!K234)","v":""},{"$f":"T('3 INCOME & EXPENSE'!L234)","v":""},{"$f":"'3 INCOME & EXPENSE'!M234","v":0},{"$f":"'3 INCOME & EXPENSE'!N234","v":0},{"$f":"'3 INCOME & EXPENSE'!O234","v":0}]
[null,{"$f":"T('3 INCOME & EXPENSE'!D235)","v":""},{"$f":"'3 INCOME & EXPENSE'!E235","v":"00:00:00"},{"$f":"'3 INCOME & EXPENSE'!F235","v":0},{"$f":"'3 INCOME & EXPENSE'!G235","v":0},{"$f":"T('3 INCOME & EXPENSE'!H235)","v":""},{"$f":"T('3 INCOME & EXPENSE'!I235)","v":""},{"$f":"T('3 INCOME & EXPENSE'!J235)","v":""},{"$f":"T('3 INCOME & EXPENSE'!K235)","v":""},{"$f":"T('3 INCOME & EXPENSE'!L235)","v":""},{"$f":"'3 INCOME & EXPENSE'!M235","v":0},{"$f":"'3 INCOME & EXPENSE'!N235","v":0},{"$f":"'3 INCOME & EXPENSE'!O235","v":0}]
[null,{"$f":"T('3 INCOME & EXPENSE'!D236)","v":""},{"$f":"'3 INCOME & EXPENSE'!E236","v":"00:00:00"},{"$f":"'3 INCOME & EXPENSE'!F236","v":0},{"$f":"'3 INCOME & EXPENSE'!G236","v":0},{"$f":"T('3 INCOME & EXPENSE'!H236)","v":""},{"$f":"T('3 INCOME & EXPENSE'!I236)","v":""},{"$f":"T('3 INCOME & EXPENSE'!J236)","v":""},{"$f":"T('3 INCOME & EXPENSE'!K236)","v":""},{"$f":"T('3 INCOME & EXPENSE'!L236)","v":""},{"$f":"'3 INCOME & EXPENSE'!M236","v":0},{"$f":"'3 INCOME & EXPENSE'!N236","v":0},{"$f":"'3 INCOME & EXPENSE'!O236","v":0}]
[null,{"$f":"T('3 INCOME & EXPENSE'!D237)","v":""},{"$f":"'3 INCOME & EXPENSE'!E237","v":"00:00:00"},{"$f":"'3 INCOME & EXPENSE'!F237","v":0},{"$f":"'3 INCOME & EXPENSE'!G237","v":0},{"$f":"T('3 INCOME & EXPENSE'!H237)","v":""},{"$f":"T('3 INCOME & EXPENSE'!I237)","v":""},{"$f":"T('3 INCOME & EXPENSE'!J237)","v":""},{"$f":"T('3 INCOME & EXPENSE'!K237)","v":""},{"$f":"T('3 INCOME & EXPENSE'!L237)","v":""},{"$f":"'3 INCOME & EXPENSE'!M237","v":0},{"$f":"'3 INCOME & EXPENSE'!N237","v":0},{"$f":"'3 INCOME & EXPENSE'!O237","v":0}]
[null,{"$f":"T('3 INCOME & EXPENSE'!D238)","v":""},{"$f":"'3 INCOME & EXPENSE'!E238","v":"00:00:00"},{"$f":"'3 INCOME & EXPENSE'!F238","v":0},{"$f":"'3 INCOME & EXPENSE'!G238","v":0},{"$f":"T('3 INCOME & EXPENSE'!H238)","v":""},{"$f":"T('3 INCOME & EXPENSE'!I238)","v":""},{"$f":"T('3 INCOME & EXPENSE'!J238)","v":""},{"$f":"T('3 INCOME & EXPENSE'!K238)","v":""},{"$f":"T('3 INCOME & EXPENSE'!L238)","v":""},{"$f":"'3 INCOME & EXPENSE'!M238","v":0},{"$f":"'3 INCOME & EXPENSE'!N238","v":0},{"$f":"'3 INCOME & EXPENSE'!O238","v":0}]
[null,{"$f":"T('3 INCOME & EXPENSE'!D239)","v":""},{"$f":"'3 INCOME & EXPENSE'!E239","v":"00:00:00"},{"$f":"'3 INCOME & EXPENSE'!F239","v":0},{"$f":"'3 INCOME & EXPENSE'!G239","v":0},{"$f":"T('3 INCOME & EXPENSE'!H239)","v":""},{"$f":"T('3 INCOME & EXPENSE'!I239)","v":""},{"$f":"T('3 INCOME & EXPENSE'!J239)","v":""},{"$f":"T('3 INCOME & EXPENSE'!K239)","v":""},{"$f":"T('3 INCOME & EXPENSE'!L239)","v":""},{"$f":"'3 INCOME & EXPENSE'!M239","v":0},{"$f":"'3 INCOME & EXPENSE'!N239","v":0},{"$f":"'3 INCOME & EXPENSE'!O239","v":0}]
[null,{"$f":"T('3 INCOME & EXPENSE'!D240)","v":""},{"$f":"'3 INCOME & EXPENSE'!E240","v":"00:00:00"},{"$f":"'3 INCOME & EXPENSE'!F240","v":0},{"$f":"'3 INCOME & EXPENSE'!G240","v":0},{"$f":"T('3 INCOME & EXPENSE'!H240)","v":""},{"$f":"T('3 INCOME & EXPENSE'!I240)","v":""},{"$f":"T('3 INCOME & EXPENSE'!J240)","v":""},{"$f":"T('3 INCOME & EXPENSE'!K240)","v":""},{"$f":"T('3 INCOME & EXPENSE'!L240)","v":""},{"$f":"'3 INCOME & EXPENSE'!M240","v":0},{"$f":"'3 INCOME & EXPENSE'!N240","v":0},{"$f":"'3 INCOME & EXPENSE'!O240","v":0}]
[null,{"$f":"T('3 INCOME & EXPENSE'!D241)","v":""},{"$f":"'3 INCOME & EXPENSE'!E241","v":"00:00:00"},{"$f":"'3 INCOME & EXPENSE'!F241","v":0},{"$f":"'3 INCOME & EXPENSE'!G241","v":0},{"$f":"T('3 INCOME & EXPENSE'!H241)","v":""},{"$f":"T('3 INCOME & EXPENSE'!I241)","v":""},{"$f":"T('3 INCOME & EXPENSE'!J241)","v":""},{"$f":"T('3 INCOME & EXPENSE'!K241)","v":""},{"$f":"T('3 INCOME & EXPENSE'!L241)","v":""},{"$f":"'3 INCOME & EXPENSE'!M241","v":0},{"$f":"'3 INCOME & EXPENSE'!N241","v":0},{"$f":"'3 INCOME & EXPENSE'!O241","v":0}]
[null,{"$f":"T('3 INCOME & EXPENSE'!D242)","v":""},{"$f":"'3 INCOME & EXPENSE'!E242","v":"00:00:00"},{"$f":"'3 INCOME & EXPENSE'!F242","v":0},{"$f":"'3 INCOME & EXPENSE'!G242","v":0},{"$f":"T('3 INCOME & EXPENSE'!H242)","v":""},{"$f":"T('3 INCOME & EXPENSE'!I242)","v":""},{"$f":"T('3 INCOME & EXPENSE'!J242)","v":""},{"$f":"T('3 INCOME & EXPENSE'!K242)","v":""},{"$f":"T('3 INCOME & EXPENSE'!L242)","v":""},{"$f":"'3 INCOME & EXPENSE'!M242","v":0},{"$f":"'3 INCOME & EXPENSE'!N242","v":0},{"$f":"'3 INCOME & EXPENSE'!O242","v":0}]
[null,{"$f":"T('3 INCOME & EXPENSE'!D243)","v":""},{"$f":"'3 INCOME & EXPENSE'!E243","v":"00:00:00"},{"$f":"'3 INCOME & EXPENSE'!F243","v":0},{"$f":"'3 INCOME & EXPENSE'!G243","v":0},{"$f":"T('3 INCOME & EXPENSE'!H243)","v":""},{"$f":"T('3 INCOME & EXPENSE'!I243)","v":""},{"$f":"T('3 INCOME & EXPENSE'!J243)","v":""},{"$f":"T('3 INCOME & EXPENSE'!K243)","v":""},{"$f":"T('3 INCOME & EXPENSE'!L243)","v":""},{"$f":"'3 INCOME & EXPENSE'!M243","v":0},{"$f":"'3 INCOME & EXPENSE'!N243","v":0},{"$f":"'3 INCOME & EXPENSE'!O243","v":0}]
[null,{"$f":"T('3 INCOME & EXPENSE'!D244)","v":""},{"$f":"'3 INCOME & EXPENSE'!E244","v":"00:00:00"},{"$f":"'3 INCOME & EXPENSE'!F244","v":0},{"$f":"'3 INCOME & EXPENSE'!G244","v":0},{"$f":"T('3 INCOME & EXPENSE'!H244)","v":""},{"$f":"T('3 INCOME & EXPENSE'!I244)","v":""},{"$f":"T('3 INCOME & EXPENSE'!J244)","v":""},{"$f":"T('3 INCOME & EXPENSE'!K244)","v":""},{"$f":"T('3 INCOME & EXPENSE'!L244)","v":""},{"$f":"'3 INCOME & EXPENSE'!M244","v":0},{"$f":"'3 INCOME & EXPENSE'!N244","v":0},{"$f":"'3 INCOME & EXPENSE'!O244","v":0}]
[null,{"$f":"T('3 INCOME & EXPENSE'!D245)","v":""},{"$f":"'3 INCOME & EXPENSE'!E245","v":"00:00:00"},{"$f":"'3 INCOME & EXPENSE'!F245","v":0},{"$f":"'3 INCOME & EXPENSE'!G245","v":0},{"$f":"T('3 INCOME & EXPENSE'!H245)","v":""},{"$f":"T('3 INCOME & EXPENSE'!I245)","v":""},{"$f":"T('3 INCOME & EXPENSE'!J245)","v":""},{"$f":"T('3 INCOME & EXPENSE'!K245)","v":""},{"$f":"T('3 INCOME & EXPENSE'!L245)","v":""},{"$f":"'3 INCOME & EXPENSE'!M245","v":0},{"$f":"'3 INCOME & EXPENSE'!N245","v":0},{"$f":"'3 INCOME & EXPENSE'!O245","v":0}]
[null,{"$f":"T('3 INCOME & EXPENSE'!D246)","v":""},{"$f":"'3 INCOME & EXPENSE'!E246","v":"00:00:00"},{"$f":"'3 INCOME & EXPENSE'!F246","v":0},{"$f":"'3 INCOME & EXPENSE'!G246","v":0},{"$f":"T('3 INCOME & EXPENSE'!H246)","v":""},{"$f":"T('3 INCOME & EXPENSE'!I246)","v":""},{"$f":"T('3 INCOME & EXPENSE'!J246)","v":""},{"$f":"T('3 INCOME & EXPENSE'!K246)","v":""},{"$f":"T('3 INCOME & EXPENSE'!L246)","v":""},{"$f":"'3 INCOME & EXPENSE'!M246","v":0},{"$f":"'3 INCOME & EXPENSE'!N246","v":0},{"$f":"'3 INCOME & EXPENSE'!O246","v":0}]
[null,{"$f":"T('3 INCOME & EXPENSE'!D247)","v":""},{"$f":"'3 INCOME & EXPENSE'!E247","v":"00:00:00"},{"$f":"'3 INCOME & EXPENSE'!F247","v":0},{"$f":"'3 INCOME & EXPENSE'!G247","v":0},{"$f":"T('3 INCOME & EXPENSE'!H247)","v":""},{"$f":"T('3 INCOME & EXPENSE'!I247)","v":""},{"$f":"T('3 INCOME & EXPENSE'!J247)","v":""},{"$f":"T('3 INCOME & EXPENSE'!K247)","v":""},{"$f":"T('3 INCOME & EXPENSE'!L247)","v":""},{"$f":"'3 INCOME & EXPENSE'!M247","v":0},{"$f":"'3 INCOME & EXPENSE'!N247","v":0},{"$f":"'3 INCOME & EXPENSE'!O247","v":0}]
[null,{"$f":"T('3 INCOME & EXPENSE'!D248)","v":""},{"$f":"'3 INCOME & EXPENSE'!E248","v":"00:00:00"},{"$f":"'3 INCOME & EXPENSE'!F248","v":0},{"$f":"'3 INCOME & EXPENSE'!G248","v":0},{"$f":"T('3 INCOME & EXPENSE'!H248)","v":""},{"$f":"T('3 INCOME & EXPENSE'!I248)","v":""},{"$f":"T('3 INCOME & EXPENSE'!J248)","v":""},{"$f":"T('3 INCOME & EXPENSE'!K248)","v":""},{"$f":"T('3 INCOME & EXPENSE'!L248)","v":""},{"$f":"'3 INCOME & EXPENSE'!M248","v":0},{"$f":"'3 INCOME & EXPENSE'!N248","v":0},{"$f":"'3 INCOME & EXPENSE'!O248","v":0}]
[null,{"$f":"T('3 INCOME & EXPENSE'!D249)","v":""},{"$f":"'3 INCOME & EXPENSE'!E249","v":"00:00:00"},{"$f":"'3 INCOME & EXPENSE'!F249","v":0},{"$f":"'3 INCOME & EXPENSE'!G249","v":0},{"$f":"T('3 INCOME & EXPENSE'!H249)","v":""},{"$f":"T('3 INCOME & EXPENSE'!I249)","v":""},{"$f":"T('3 INCOME & EXPENSE'!J249)","v":""},{"$f":"T('3 INCOME & EXPENSE'!K249)","v":""},{"$f":"T('3 INCOME & EXPENSE'!L249)","v":""},{"$f":"'3 INCOME & EXPENSE'!M249","v":0},{"$f":"'3 INCOME & EXPENSE'!N249","v":0},{"$f":"'3 INCOME & EXPENSE'!O249","v":0}]
[null,{"$f":"T('3 INCOME & EXPENSE'!D250)","v":""},{"$f":"'3 INCOME & EXPENSE'!E250","v":"00:00:00"},{"$f":"'3 INCOME & EXPENSE'!F250","v":0},{"$f":"'3 INCOME & EXPENSE'!G250","v":0},{"$f":"T('3 INCOME & EXPENSE'!H250)","v":""},{"$f":"T('3 INCOME & EXPENSE'!I250)","v":""},{"$f":"T('3 INCOME & EXPENSE'!J250)","v":""},{"$f":"T('3 INCOME & EXPENSE'!K250)","v":""},{"$f":"T('3 INCOME & EXPENSE'!L250)","v":""},{"$f":"'3 INCOME & EXPENSE'!M250","v":0},{"$f":"'3 INCOME & EXPENSE'!N250","v":0},{"$f":"'3 INCOME & EXPENSE'!O250","v":0}]
[null,{"$f":"T('3 INCOME & EXPENSE'!D251)","v":""},{"$f":"'3 INCOME & EXPENSE'!E251","v":"00:00:00"},{"$f":"'3 INCOME & EXPENSE'!F251","v":0},{"$f":"'3 INCOME & EXPENSE'!G251","v":0},{"$f":"T('3 INCOME & EXPENSE'!H251)","v":""},{"$f":"T('3 INCOME & EXPENSE'!I251)","v":""},{"$f":"T('3 INCOME & EXPENSE'!J251)","v":""},{"$f":"T('3 INCOME & EXPENSE'!K251)","v":""},{"$f":"T('3 INCOME & EXPENSE'!L251)","v":""},{"$f":"'3 INCOME & EXPENSE'!M251","v":0},{"$f":"'3 INCOME & EXPENSE'!N251","v":0},{"$f":"'3 INCOME & EXPENSE'!O251","v":0}]
[null,{"$f":"T('3 INCOME & EXPENSE'!D252)","v":""},{"$f":"'3 INCOME & EXPENSE'!E252","v":"00:00:00"},{"$f":"'3 INCOME & EXPENSE'!F252","v":0},{"$f":"'3 INCOME & EXPENSE'!G252","v":0},{"$f":"T('3 INCOME & EXPENSE'!H252)","v":""},{"$f":"T('3 INCOME & EXPENSE'!I252)","v":""},{"$f":"T('3 INCOME & EXPENSE'!J252)","v":""},{"$f":"T('3 INCOME & EXPENSE'!K252)","v":""},{"$f":"T('3 INCOME & EXPENSE'!L252)","v":""},{"$f":"'3 INCOME & EXPENSE'!M252","v":0},{"$f":"'3 INCOME & EXPENSE'!N252","v":0},{"$f":"'3 INCOME & EXPENSE'!O252","v":0}]
[null,{"$f":"T('3 INCOME & EXPENSE'!D253)","v":""},{"$f":"'3 INCOME & EXPENSE'!E253","v":"00:00:00"},{"$f":"'3 INCOME & EXPENSE'!F253","v":0},{"$f":"'3 INCOME & EXPENSE'!G253","v":0},{"$f":"T('3 INCOME & EXPENSE'!H253)","v":""},{"$f":"T('3 INCOME & EXPENSE'!I253)","v":""},{"$f":"T('3 INCOME & EXPENSE'!J253)","v":""},{"$f":"T('3 INCOME & EXPENSE'!K253)","v":""},{"$f":"T('3 INCOME & EXPENSE'!L253)","v":""},{"$f":"'3 INCOME & EXPENSE'!M253","v":0},{"$f":"'3 INCOME & EXPENSE'!N253","v":0},{"$f":"'3 INCOME & EXPENSE'!O253","v":0}]
[null,{"$f":"T('3 INCOME & EXPENSE'!D254)","v":""},{"$f":"'3 INCOME & EXPENSE'!E254","v":"00:00:00"},{"$f":"'3 INCOME & EXPENSE'!F254","v":0},{"$f":"'3 INCOME & EXPENSE'!G254","v":0},{"$f":"T('3 INCOME & EXPENSE'!H254)","v":""},{"$f":"T('3 INCOME & EXPENSE'!I254)","v":""},{"$f":"T('3 INCOME & EXPENSE'!J254)","v":""},{"$f":"T('3 INCOME & EXPENSE'!K254)","v":""},{"$f":"T('3 INCOME & EXPENSE'!L254)","v":""},{"$f":"'3 INCOME & EXPENSE'!M254","v":0},{"$f":"'3 INCOME & EXPENSE'!N254","v":0},{"$f":"'3 INCOME & EXPENSE'!O254","v":0}]
[null,{"$f":"T('3 INCOME & EXPENSE'!D255)","v":""},{"$f":"'3 INCOME & EXPENSE'!E255","v":"00:00:00"},{"$f":"'3 INCOME & EXPENSE'!F255","v":0},{"$f":"'3 INCOME & EXPENSE'!G255","v":0},{"$f":"T('3 INCOME & EXPENSE'!H255)","v":""},{"$f":"T('3 INCOME & EXPENSE'!I255)","v":""},{"$f":"T('3 INCOME & EXPENSE'!J255)","v":""},{"$f":"T('3 INCOME & EXPENSE'!K255)","v":""},{"$f":"T('3 INCOME & EXPENSE'!L255)","v":""},{"$f":"'3 INCOME & EXPENSE'!M255","v":0},{"$f":"'3 INCOME & EXPENSE'!N255","v":0},{"$f":"'3 INCOME & EXPENSE'!O255","v":0}]
[null,{"$f":"T('3 INCOME & EXPENSE'!D256)","v":""},{"$f":"'3 INCOME & EXPENSE'!E256","v":"00:00:00"},{"$f":"'3 INCOME & EXPENSE'!F256","v":0},{"$f":"'3 INCOME & EXPENSE'!G256","v":0},{"$f":"T('3 INCOME & EXPENSE'!H256)","v":""},{"$f":"T('3 INCOME & EXPENSE'!I256)","v":""},{"$f":"T('3 INCOME & EXPENSE'!J256)","v":""},{"$f":"T('3 INCOME & EXPENSE'!K256)","v":""},{"$f":"T('3 INCOME & EXPENSE'!L256)","v":""},{"$f":"'3 INCOME & EXPENSE'!M256","v":0},{"$f":"'3 INCOME & EXPENSE'!N256","v":0},{"$f":"'3 INCOME & EXPENSE'!O256","v":0}]
[null,{"$f":"T('3 INCOME & EXPENSE'!D257)","v":""},{"$f":"'3 INCOME & EXPENSE'!E257","v":"00:00:00"},{"$f":"'3 INCOME & EXPENSE'!F257","v":0},{"$f":"'3 INCOME & EXPENSE'!G257","v":0},{"$f":"T('3 INCOME & EXPENSE'!H257)","v":""},{"$f":"T('3 INCOME & EXPENSE'!I257)","v":""},{"$f":"T('3 INCOME & EXPENSE'!J257)","v":""},{"$f":"T('3 INCOME & EXPENSE'!K257)","v":""},{"$f":"T('3 INCOME & EXPENSE'!L257)","v":""},{"$f":"'3 INCOME & EXPENSE'!M257","v":0},{"$f":"'3 INCOME & EXPENSE'!N257","v":0},{"$f":"'3 INCOME & EXPENSE'!O257","v":0}]
[null,{"$f":"T('3 INCOME & EXPENSE'!D258)","v":""},{"$f":"'3 INCOME & EXPENSE'!E258","v":"00:00:00"},{"$f":"'3 INCOME & EXPENSE'!F258","v":0},{"$f":"'3 INCOME & EXPENSE'!G258","v":0},{"$f":"T('3 INCOME & EXPENSE'!H258)","v":""},{"$f":"T('3 INCOME & EXPENSE'!I258)","v":""},{"$f":"T('3 INCOME & EXPENSE'!J258)","v":""},{"$f":"T('3 INCOME & EXPENSE'!K258)","v":""},{"$f":"T('3 INCOME & EXPENSE'!L258)","v":""},{"$f":"'3 INCOME & EXPENSE'!M258","v":0},{"$f":"'3 INCOME & EXPENSE'!N258","v":0},{"$f":"'3 INCOME & EXPENSE'!O258","v":0}]
[null,{"$f":"T('3 INCOME & EXPENSE'!D259)","v":""},{"$f":"'3 INCOME & EXPENSE'!E259","v":"00:00:00"},{"$f":"'3 INCOME & EXPENSE'!F259","v":0},{"$f":"'3 INCOME & EXPENSE'!G259","v":0},{"$f":"T('3 INCOME & EXPENSE'!H259)","v":""},{"$f":"T('3 INCOME & EXPENSE'!I259)","v":""},{"$f":"T('3 INCOME & EXPENSE'!J259)","v":""},{"$f":"T('3 INCOME & EXPENSE'!K259)","v":""},{"$f":"T('3 INCOME & EXPENSE'!L259)","v":""},{"$f":"'3 INCOME & EXPENSE'!M259","v":0},{"$f":"'3 INCOME & EXPENSE'!N259","v":0},{"$f":"'3 INCOME & EXPENSE'!O259","v":0}]
[null,{"$f":"T('3 INCOME & EXPENSE'!D260)","v":""},{"$f":"'3 INCOME & EXPENSE'!E260","v":"00:00:00"},{"$f":"'3 INCOME & EXPENSE'!F260","v":0},{"$f":"'3 INCOME & EXPENSE'!G260","v":0},{"$f":"T('3 INCOME & EXPENSE'!H260)","v":""},{"$f":"T('3 INCOME & EXPENSE'!I260)","v":""},{"$f":"T('3 INCOME & EXPENSE'!J260)","v":""},{"$f":"T('3 INCOME & EXPENSE'!K260)","v":""},{"$f":"T('3 INCOME & EXPENSE'!L260)","v":""},{"$f":"'3 INCOME & EXPENSE'!M260","v":0},{"$f":"'3 INCOME & EXPENSE'!N260","v":0},{"$f":"'3 INCOME & EXPENSE'!O260","v":0}]
[null,{"$f":"T('3 INCOME & EXPENSE'!D261)","v":""},{"$f":"'3 INCOME & EXPENSE'!E261","v":"00:00:00"},{"$f":"'3 INCOME & EXPENSE'!F261","v":0},{"$f":"'3 INCOME & EXPENSE'!G261","v":0},{"$f":"T('3 INCOME & EXPENSE'!H261)","v":""},{"$f":"T('3 INCOME & EXPENSE'!I261)","v":""},{"$f":"T('3 INCOME & EXPENSE'!J261)","v":""},{"$f":"T('3 INCOME & EXPENSE'!K261)","v":""},{"$f":"T('3 INCOME & EXPENSE'!L261)","v":""},{"$f":"'3 INCOME & EXPENSE'!M261","v":0},{"$f":"'3 INCOME & EXPENSE'!N261","v":0},{"$f":"'3 INCOME & EXPENSE'!O261","v":0}]
[null,{"$f":"T('3 INCOME & EXPENSE'!D262)","v":""},{"$f":"'3 INCOME & EXPENSE'!E262","v":"00:00:00"},{"$f":"'3 INCOME & EXPENSE'!F262","v":0},{"$f":"'3 INCOME & EXPENSE'!G262","v":0},{"$f":"T('3 INCOME & EXPENSE'!H262)","v":""},{"$f":"T('3 INCOME & EXPENSE'!I262)","v":""},{"$f":"T('3 INCOME & EXPENSE'!J262)","v":""},{"$f":"T('3 INCOME & EXPENSE'!K262)","v":""},{"$f":"T('3 INCOME & EXPENSE'!L262)","v":""},{"$f":"'3 INCOME & EXPENSE'!M262","v":0},{"$f":"'3 INCOME & EXPENSE'!N262","v":0},{"$f":"'3 INCOME & EXPENSE'!O262","v":0}]
[null,{"$f":"T('3 INCOME & EXPENSE'!D263)","v":""},{"$f":"'3 INCOME & EXPENSE'!E263","v":"00:00:00"},{"$f":"'3 INCOME & EXPENSE'!F263","v":0},{"$f":"'3 INCOME & EXPENSE'!G263","v":0},{"$f":"T('3 INCOME & EXPENSE'!H263)","v":""},{"$f":"T('3 INCOME & EXPENSE'!I263)","v":""},{"$f":"T('3 INCOME & EXPENSE'!J263)","v":""},{"$f":"T('3 INCOME & EXPENSE'!K263)","v":""},{"$f":"T('3 INCOME & EXPENSE'!L263)","v":""},{"$f":"'3 INCOME & EXPENSE'!M263","v":0},{"$f":"'3 INCOME & EXPENSE'!N263","v":0},{"$f":"'3 INCOME & EXPENSE'!O263","v":0}]
[null,{"$f":"T('3 INCOME & EXPENSE'!D264)","v":""},{"$f":"'3 INCOME & EXPENSE'!E264","v":"00:00:00"},{"$f":"'3 INCOME & EXPENSE'!F264","v":0},{"$f":"'3 INCOME & EXPENSE'!G264","v":0},{"$f":"T('3 INCOME & EXPENSE'!H264)","v":""},{"$f":"T('3 INCOME & EXPENSE'!I264)","v":""},{"$f":"T('3 INCOME & EXPENSE'!J264)","v":""},{"$f":"T('3 INCOME & EXPENSE'!K264)","v":""},{"$f":"T('3 INCOME & EXPENSE'!L264)","v":""},{"$f":"'3 INCOME & EXPENSE'!M264","v":0},{"$f":"'3 INCOME & EXPENSE'!N264","v":0},{"$f":"'3 INCOME & EXPENSE'!O264","v":0}]
[null,{"$f":"T('3 INCOME & EXPENSE'!D265)","v":""},{"$f":"'3 INCOME & EXPENSE'!E265","v":"00:00:00"},{"$f":"'3 INCOME & EXPENSE'!F265","v":0},{"$f":"'3 INCOME & EXPENSE'!G265","v":0},{"$f":"T('3 INCOME & EXPENSE'!H265)","v":""},{"$f":"T('3 INCOME & EXPENSE'!I265)","v":""},{"$f":"T('3 INCOME & EXPENSE'!J265)","v":""},{"$f":"T('3 INCOME & EXPENSE'!K265)","v":""},{"$f":"T('3 INCOME & EXPENSE'!L265)","v":""},{"$f":"'3 INCOME & EXPENSE'!M265","v":0},{"$f":"'3 INCOME & EXPENSE'!N265","v":0},{"$f":"'3 INCOME & EXPENSE'!O265","v":0}]
[null,{"$f":"T('3 INCOME & EXPENSE'!D266)","v":""},{"$f":"'3 INCOME & EXPENSE'!E266","v":"00:00:00"},{"$f":"'3 INCOME & EXPENSE'!F266","v":0},{"$f":"'3 INCOME & EXPENSE'!G266","v":0},{"$f":"T('3 INCOME & EXPENSE'!H266)","v":""},{"$f":"T('3 INCOME & EXPENSE'!I266)","v":""},{"$f":"T('3 INCOME & EXPENSE'!J266)","v":""},{"$f":"T('3 INCOME & EXPENSE'!K266)","v":""},{"$f":"T('3 INCOME & EXPENSE'!L266)","v":""},{"$f":"'3 INCOME & EXPENSE'!M266","v":0},{"$f":"'3 INCOME & EXPENSE'!N266","v":0},{"$f":"'3 INCOME & EXPENSE'!O266","v":0}]
[null,{"$f":"T('3 INCOME & EXPENSE'!D267)","v":""},{"$f":"'3 INCOME & EXPENSE'!E267","v":"00:00:00"},{"$f":"'3 INCOME & EXPENSE'!F267","v":0},{"$f":"'3 INCOME & EXPENSE'!G267","v":0},{"$f":"T('3 INCOME & EXPENSE'!H267)","v":""},{"$f":"T('3 INCOME & EXPENSE'!I267)","v":""},{"$f":"T('3 INCOME & EXPENSE'!J267)","v":""},{"$f":"T('3 INCOME & EXPENSE'!K267)","v":""},{"$f":"T('3 INCOME & EXPENSE'!L267)","v":""},{"$f":"'3 INCOME & EXPENSE'!M267","v":0},{"$f":"'3 INCOME & EXPENSE'!N267","v":0},{"$f":"'3 INCOME & EXPENSE'!O267","v":0}]
[null,{"$f":"T('3 INCOME & EXPENSE'!D268)","v":""},{"$f":"'3 INCOME & EXPENSE'!E268","v":"00:00:00"},{"$f":"'3 INCOME & EXPENSE'!F268","v":0},{"$f":"'3 INCOME & EXPENSE'!G268","v":0},{"$f":"T('3 INCOME & EXPENSE'!H268)","v":""},{"$f":"T('3 INCOME & EXPENSE'!I268)","v":""},{"$f":"T('3 INCOME & EXPENSE'!J268)","v":""},{"$f":"T('3 INCOME & EXPENSE'!K268)","v":""},{"$f":"T('3 INCOME & EXPENSE'!L268)","v":""},{"$f":"'3 INCOME & EXPENSE'!M268","v":0},{"$f":"'3 INCOME & EXPENSE'!N268","v":0},{"$f":"'3 INCOME & EXPENSE'!O268","v":0}]
[null,{"$f":"T('3 INCOME & EXPENSE'!D269)","v":""},{"$f":"'3 INCOME & EXPENSE'!E269","v":"00:00:00"},{"$f":"'3 INCOME & EXPENSE'!F269","v":0},{"$f":"'3 INCOME & EXPENSE'!G269","v":0},{"$f":"T('3 INCOME & EXPENSE'!H269)","v":""},{"$f":"T('3 INCOME & EXPENSE'!I269)","v":""},{"$f":"T('3 INCOME & EXPENSE'!J269)","v":""},{"$f":"T('3 INCOME & EXPENSE'!K269)","v":""},{"$f":"T('3 INCOME & EXPENSE'!L269)","v":""},{"$f":"'3 INCOME & EXPENSE'!M269","v":0},{"$f":"'3 INCOME & EXPENSE'!N269","v":0},{"$f":"'3 INCOME & EXPENSE'!O269","v":0}]
[null,{"$f":"T('3 INCOME & EXPENSE'!D270)","v":""},{"$f":"'3 INCOME & EXPENSE'!E270","v":"00:00:00"},{"$f":"'3 INCOME & EXPENSE'!F270","v":0},{"$f":"'3 INCOME & EXPENSE'!G270","v":0},{"$f":"T('3 INCOME & EXPENSE'!H270)","v":""},{"$f":"T('3 INCOME & EXPENSE'!I270)","v":""},{"$f":"T('3 INCOME & EXPENSE'!J270)","v":""},{"$f":"T('3 INCOME & EXPENSE'!K270)","v":""},{"$f":"T('3 INCOME & EXPENSE'!L270)","v":""},{"$f":"'3 INCOME & EXPENSE'!M270","v":0},{"$f":"'3 INCOME & EXPENSE'!N270","v":0},{"$f":"'3 INCOME & EXPENSE'!O270","v":0}]
[null,{"$f":"T('3 INCOME & EXPENSE'!D271)","v":""},{"$f":"'3 INCOME & EXPENSE'!E271","v":"00:00:00"},{"$f":"'3 INCOME & EXPENSE'!F271","v":0},{"$f":"'3 INCOME & EXPENSE'!G271","v":0},{"$f":"T('3 INCOME & EXPENSE'!H271)","v":""},{"$f":"T('3 INCOME & EXPENSE'!I271)","v":""},{"$f":"T('3 INCOME & EXPENSE'!J271)","v":""},{"$f":"T('3 INCOME & EXPENSE'!K271)","v":""},{"$f":"T('3 INCOME & EXPENSE'!L271)","v":""},{"$f":"'3 INCOME & EXPENSE'!M271","v":0},{"$f":"'3 INCOME & EXPENSE'!N271","v":0},{"$f":"'3 INCOME & EXPENSE'!O271","v":0}]
[null,{"$f":"T('3 INCOME & EXPENSE'!D272)","v":""},{"$f":"'3 INCOME & EXPENSE'!E272","v":"00:00:00"},{"$f":"'3 INCOME & EXPENSE'!F272","v":0},{"$f":"'3 INCOME & EXPENSE'!G272","v":0},{"$f":"T('3 INCOME & EXPENSE'!H272)","v":""},{"$f":"T('3 INCOME & EXPENSE'!I272)","v":""},{"$f":"T('3 INCOME & EXPENSE'!J272)","v":""},{"$f":"T('3 INCOME & EXPENSE'!K272)","v":""},{"$f":"T('3 INCOME & EXPENSE'!L272)","v":""},{"$f":"'3 INCOME & EXPENSE'!M272","v":0},{"$f":"'3 INCOME & EXPENSE'!N272","v":0},{"$f":"'3 INCOME & EXPENSE'!O272","v":0}]
[null,{"$f":"T('3 INCOME & EXPENSE'!D273)","v":""},{"$f":"'3 INCOME & EXPENSE'!E273","v":"00:00:00"},{"$f":"'3 INCOME & EXPENSE'!F273","v":0},{"$f":"'3 INCOME & EXPENSE'!G273","v":0},{"$f":"T('3 INCOME & EXPENSE'!H273)","v":""},{"$f":"T('3 INCOME & EXPENSE'!I273)","v":""},{"$f":"T('3 INCOME & EXPENSE'!J273)","v":""},{"$f":"T('3 INCOME & EXPENSE'!K273)","v":""},{"$f":"T('3 INCOME & EXPENSE'!L273)","v":""},{"$f":"'3 INCOME & EXPENSE'!M273","v":0},{"$f":"'3 INCOME & EXPENSE'!N273","v":0},{"$f":"'3 INCOME & EXPENSE'!O273","v":0}]
[null,{"$f":"T('3 INCOME & EXPENSE'!D274)","v":""},{"$f":"'3 INCOME & EXPENSE'!E274","v":"00:00:00"},{"$f":"'3 INCOME & EXPENSE'!F274","v":0},{"$f":"'3 INCOME & EXPENSE'!G274","v":0},{"$f":"T('3 INCOME & EXPENSE'!H274)","v":""},{"$f":"T('3 INCOME & EXPENSE'!I274)","v":""},{"$f":"T('3 INCOME & EXPENSE'!J274)","v":""},{"$f":"T('3 INCOME & EXPENSE'!K274)","v":""},{"$f":"T('3 INCOME & EXPENSE'!L274)","v":""},{"$f":"'3 INCOME & EXPENSE'!M274","v":0},{"$f":"'3 INCOME & EXPENSE'!N274","v":0},{"$f":"'3 INCOME & EXPENSE'!O274","v":0}]
[null,{"$f":"T('3 INCOME & EXPENSE'!D275)","v":""},{"$f":"'3 INCOME & EXPENSE'!E275","v":"00:00:00"},{"$f":"'3 INCOME & EXPENSE'!F275","v":0},{"$f":"'3 INCOME & EXPENSE'!G275","v":0},{"$f":"T('3 INCOME & EXPENSE'!H275)","v":""},{"$f":"T('3 INCOME & EXPENSE'!I275)","v":""},{"$f":"T('3 INCOME & EXPENSE'!J275)","v":""},{"$f":"T('3 INCOME & EXPENSE'!K275)","v":""},{"$f":"T('3 INCOME & EXPENSE'!L275)","v":""},{"$f":"'3 INCOME & EXPENSE'!M275","v":0},{"$f":"'3 INCOME & EXPENSE'!N275","v":0},{"$f":"'3 INCOME & EXPENSE'!O275","v":0}]
[null,{"$f":"T('3 INCOME & EXPENSE'!D276)","v":""},{"$f":"'3 INCOME & EXPENSE'!E276","v":"00:00:00"},{"$f":"'3 INCOME & EXPENSE'!F276","v":0},{"$f":"'3 INCOME & EXPENSE'!G276","v":0},{"$f":"T('3 INCOME & EXPENSE'!H276)","v":""},{"$f":"T('3 INCOME & EXPENSE'!I276)","v":""},{"$f":"T('3 INCOME & EXPENSE'!J276)","v":""},{"$f":"T('3 INCOME & EXPENSE'!K276)","v":""},{"$f":"T('3 INCOME & EXPENSE'!L276)","v":""},{"$f":"'3 INCOME & EXPENSE'!M276","v":0},{"$f":"'3 INCOME & EXPENSE'!N276","v":0},{"$f":"'3 INCOME & EXPENSE'!O276","v":0}]
[null,{"$f":"T('3 INCOME & EXPENSE'!D277)","v":""},{"$f":"'3 INCOME & EXPENSE'!E277","v":"00:00:00"},{"$f":"'3 INCOME & EXPENSE'!F277","v":0},{"$f":"'3 INCOME & EXPENSE'!G277","v":0},{"$f":"T('3 INCOME & EXPENSE'!H277)","v":""},{"$f":"T('3 INCOME & EXPENSE'!I277)","v":""},{"$f":"T('3 INCOME & EXPENSE'!J277)","v":""},{"$f":"T('3 INCOME & EXPENSE'!K277)","v":""},{"$f":"T('3 INCOME & EXPENSE'!L277)","v":""},{"$f":"'3 INCOME & EXPENSE'!M277","v":0},{"$f":"'3 INCOME & EXPENSE'!N277","v":0},{"$f":"'3 INCOME & EXPENSE'!O277","v":0}]
[null,{"$f":"T('3 INCOME & EXPENSE'!D278)","v":""},{"$f":"'3 INCOME & EXPENSE'!E278","v":"00:00:00"},{"$f":"'3 INCOME & EXPENSE'!F278","v":0},{"$f":"'3 INCOME & EXPENSE'!G278","v":0},{"$f":"T('3 INCOME & EXPENSE'!H278)","v":""},{"$f":"T('3 INCOME & EXPENSE'!I278)","v":""},{"$f":"T('3 INCOME & EXPENSE'!J278)","v":""},{"$f":"T('3 INCOME & EXPENSE'!K278)","v":""},{"$f":"T('3 INCOME & EXPENSE'!L278)","v":""},{"$f":"'3 INCOME & EXPENSE'!M278","v":0},{"$f":"'3 INCOME & EXPENSE'!N278","v":0},{"$f":"'3 INCOME & EXPENSE'!O278","v":0}]
[null,{"$f":"T('3 INCOME & EXPENSE'!D279)","v":""},{"$f":"'3 INCOME & EXPENSE'!E279","v":"00:00:00"},{"$f":"'3 INCOME & EXPENSE'!F279","v":0},{"$f":"'3 INCOME & EXPENSE'!G279","v":0},{"$f":"T('3 INCOME & EXPENSE'!H279)","v":""},{"$f":"T('3 INCOME & EXPENSE'!I279)","v":""},{"$f":"T('3 INCOME & EXPENSE'!J279)","v":""},{"$f":"T('3 INCOME & EXPENSE'!K279)","v":""},{"$f":"T('3 INCOME & EXPENSE'!L279)","v":""},{"$f":"'3 INCOME & EXPENSE'!M279","v":0},{"$f":"'3 INCOME & EXPENSE'!N279","v":0},{"$f":"'3 INCOME & EXPENSE'!O279","v":0}]
[null,{"$f":"T('3 INCOME & EXPENSE'!D280)","v":""},{"$f":"'3 INCOME & EXPENSE'!E280","v":"00:00:00"},{"$f":"'3 INCOME & EXPENSE'!F280","v":0},{"$f":"'3 INCOME & EXPENSE'!G280","v":0},{"$f":"T('3 INCOME & EXPENSE'!H280)","v":""},{"$f":"T('3 INCOME & EXPENSE'!I280)","v":""},{"$f":"T('3 INCOME & EXPENSE'!J280)","v":""},{"$f":"T('3 INCOME & EXPENSE'!K280)","v":""},{"$f":"T('3 INCOME & EXPENSE'!L280)","v":""},{"$f":"'3 INCOME & EXPENSE'!M280","v":0},{"$f":"'3 INCOME & EXPENSE'!N280","v":0},{"$f":"'3 INCOME & EXPENSE'!O280","v":0}]
[null,{"$f":"T('3 INCOME & EXPENSE'!D281)","v":""},{"$f":"'3 INCOME & EXPENSE'!E281","v":"00:00:00"},{"$f":"'3 INCOME & EXPENSE'!F281","v":0},{"$f":"'3 INCOME & EXPENSE'!G281","v":0},{"$f":"T('3 INCOME & EXPENSE'!H281)","v":""},{"$f":"T('3 INCOME & EXPENSE'!I281)","v":""},{"$f":"T('3 INCOME & EXPENSE'!J281)","v":""},{"$f":"T('3 INCOME & EXPENSE'!K281)","v":""},{"$f":"T('3 INCOME & EXPENSE'!L281)","v":""},{"$f":"'3 INCOME & EXPENSE'!M281","v":0},{"$f":"'3 INCOME & EXPENSE'!N281","v":0},{"$f":"'3 INCOME & EXPENSE'!O281","v":0}]
[null,{"$f":"T('3 INCOME & EXPENSE'!D282)","v":""},{"$f":"'3 INCOME & EXPENSE'!E282","v":"00:00:00"},{"$f":"'3 INCOME & EXPENSE'!F282","v":0},{"$f":"'3 INCOME & EXPENSE'!G282","v":0},{"$f":"T('3 INCOME & EXPENSE'!H282)","v":""},{"$f":"T('3 INCOME & EXPENSE'!I282)","v":""},{"$f":"T('3 INCOME & EXPENSE'!J282)","v":""},{"$f":"T('3 INCOME & EXPENSE'!K282)","v":""},{"$f":"T('3 INCOME & EXPENSE'!L282)","v":""},{"$f":"'3 INCOME & EXPENSE'!M282","v":0},{"$f":"'3 INCOME & EXPENSE'!N282","v":0},{"$f":"'3 INCOME & EXPENSE'!O282","v":0}]
[null,{"$f":"T('3 INCOME & EXPENSE'!D283)","v":""},{"$f":"'3 INCOME & EXPENSE'!E283","v":"00:00:00"},{"$f":"'3 INCOME & EXPENSE'!F283","v":0},{"$f":"'3 INCOME & EXPENSE'!G283","v":0},{"$f":"T('3 INCOME & EXPENSE'!H283)","v":""},{"$f":"T('3 INCOME & EXPENSE'!I283)","v":""},{"$f":"T('3 INCOME & EXPENSE'!J283)","v":""},{"$f":"T('3 INCOME & EXPENSE'!K283)","v":""},{"$f":"T('3 INCOME & EXPENSE'!L283)","v":""},{"$f":"'3 INCOME & EXPENSE'!M283","v":0},{"$f":"'3 INCOME & EXPENSE'!N283","v":0},{"$f":"'3 INCOME & EXPENSE'!O283","v":0}]
[null,{"$f":"T('3 INCOME & EXPENSE'!D284)","v":""},{"$f":"'3 INCOME & EXPENSE'!E284","v":"00:00:00"},{"$f":"'3 INCOME & EXPENSE'!F284","v":0},{"$f":"'3 INCOME & EXPENSE'!G284","v":0},{"$f":"T('3 INCOME & EXPENSE'!H284)","v":""},{"$f":"T('3 INCOME & EXPENSE'!I284)","v":""},{"$f":"T('3 INCOME & EXPENSE'!J284)","v":""},{"$f":"T('3 INCOME & EXPENSE'!K284)","v":""},{"$f":"T('3 INCOME & EXPENSE'!L284)","v":""},{"$f":"'3 INCOME & EXPENSE'!M284","v":0},{"$f":"'3 INCOME & EXPENSE'!N284","v":0},{"$f":"'3 INCOME & EXPENSE'!O284","v":0}]
[null,{"$f":"T('3 INCOME & EXPENSE'!D285)","v":""},{"$f":"'3 INCOME & EXPENSE'!E285","v":"00:00:00"},{"$f":"'3 INCOME & EXPENSE'!F285","v":0},{"$f":"'3 INCOME & EXPENSE'!G285","v":0},{"$f":"T('3 INCOME & EXPENSE'!H285)","v":""},{"$f":"T('3 INCOME & EXPENSE'!I285)","v":""},{"$f":"T('3 INCOME & EXPENSE'!J285)","v":""},{"$f":"T('3 INCOME & EXPENSE'!K285)","v":""},{"$f":"T('3 INCOME & EXPENSE'!L285)","v":""},{"$f":"'3 INCOME & EXPENSE'!M285","v":0},{"$f":"'3 INCOME & EXPENSE'!N285","v":0},{"$f":"'3 INCOME & EXPENSE'!O285","v":0}]
[null,{"$f":"T('3 INCOME & EXPENSE'!D286)","v":""},{"$f":"'3 INCOME & EXPENSE'!E286","v":"00:00:00"},{"$f":"'3 INCOME & EXPENSE'!F286","v":0},{"$f":"'3 INCOME & EXPENSE'!G286","v":0},{"$f":"T('3 INCOME & EXPENSE'!H286)","v":""},{"$f":"T('3 INCOME & EXPENSE'!I286)","v":""},{"$f":"T('3 INCOME & EXPENSE'!J286)","v":""},{"$f":"T('3 INCOME & EXPENSE'!K286)","v":""},{"$f":"T('3 INCOME & EXPENSE'!L286)","v":""},{"$f":"'3 INCOME & EXPENSE'!M286","v":0},{"$f":"'3 INCOME & EXPENSE'!N286","v":0},{"$f":"'3 INCOME & EXPENSE'!O286","v":0}]
[null,{"$f":"T('3 INCOME & EXPENSE'!D287)","v":""},{"$f":"'3 INCOME & EXPENSE'!E287","v":"00:00:00"},{"$f":"'3 INCOME & EXPENSE'!F287","v":0},{"$f":"'3 INCOME & EXPENSE'!G287","v":0},{"$f":"T('3 INCOME & EXPENSE'!H287)","v":""},{"$f":"T('3 INCOME & EXPENSE'!I287)","v":""},{"$f":"T('3 INCOME & EXPENSE'!J287)","v":""},{"$f":"T('3 INCOME & EXPENSE'!K287)","v":""},{"$f":"T('3 INCOME & EXPENSE'!L287)","v":""},{"$f":"'3 INCOME & EXPENSE'!M287","v":0},{"$f":"'3 INCOME & EXPENSE'!N287","v":0},{"$f":"'3 INCOME & EXPENSE'!O287","v":0}]
[null,{"$f":"T('3 INCOME & EXPENSE'!D288)","v":""},{"$f":"'3 INCOME & EXPENSE'!E288","v":"00:00:00"},{"$f":"'3 INCOME & EXPENSE'!F288","v":0},{"$f":"'3 INCOME & EXPENSE'!G288","v":0},{"$f":"T('3 INCOME & EXPENSE'!H288)","v":""},{"$f":"T('3 INCOME & EXPENSE'!I288)","v":""},{"$f":"T('3 INCOME & EXPENSE'!J288)","v":""},{"$f":"T('3 INCOME & EXPENSE'!K288)","v":""},{"$f":"T('3 INCOME & EXPENSE'!L288)","v":""},{"$f":"'3 INCOME & EXPENSE'!M288","v":0},{"$f":"'3 INCOME & EXPENSE'!N288","v":0},{"$f":"'3 INCOME & EXPENSE'!O288","v":0}]
[null,{"$f":"T('3 INCOME & EXPENSE'!D289)","v":""},{"$f":"'3 INCOME & EXPENSE'!E289","v":"00:00:00"},{"$f":"'3 INCOME & EXPENSE'!F289","v":0},{"$f":"'3 INCOME & EXPENSE'!G289","v":0},{"$f":"T('3 INCOME & EXPENSE'!H289)","v":""},{"$f":"T('3 INCOME & EXPENSE'!I289)","v":""},{"$f":"T('3 INCOME & EXPENSE'!J289)","v":""},{"$f":"T('3 INCOME & EXPENSE'!K289)","v":""},{"$f":"T('3 INCOME & EXPENSE'!L289)","v":""},{"$f":"'3 INCOME & EXPENSE'!M289","v":0},{"$f":"'3 INCOME & EXPENSE'!N289","v":0},{"$f":"'3 INCOME & EXPENSE'!O289","v":0}]
[null,{"$f":"T('3 INCOME & EXPENSE'!D290)","v":""},{"$f":"'3 INCOME & EXPENSE'!E290","v":"00:00:00"},{"$f":"'3 INCOME & EXPENSE'!F290","v":0},{"$f":"'3 INCOME & EXPENSE'!G290","v":0},{"$f":"T('3 INCOME & EXPENSE'!H290)","v":""},{"$f":"T('3 INCOME & EXPENSE'!I290)","v":""},{"$f":"T('3 INCOME & EXPENSE'!J290)","v":""},{"$f":"T('3 INCOME & EXPENSE'!K290)","v":""},{"$f":"T('3 INCOME & EXPENSE'!L290)","v":""},{"$f":"'3 INCOME & EXPENSE'!M290","v":0},{"$f":"'3 INCOME & EXPENSE'!N290","v":0},{"$f":"'3 INCOME & EXPENSE'!O290","v":0}]
[null,{"$f":"T('3 INCOME & EXPENSE'!D291)","v":""},{"$f":"'3 INCOME & EXPENSE'!E291","v":"00:00:00"},{"$f":"'3 INCOME & EXPENSE'!F291","v":0},{"$f":"'3 INCOME & EXPENSE'!G291","v":0},{"$f":"T('3 INCOME & EXPENSE'!H291)","v":""},{"$f":"T('3 INCOME & EXPENSE'!I291)","v":""},{"$f":"T('3 INCOME & EXPENSE'!J291)","v":""},{"$f":"T('3 INCOME & EXPENSE'!K291)","v":""},{"$f":"T('3 INCOME & EXPENSE'!L291)","v":""},{"$f":"'3 INCOME & EXPENSE'!M291","v":0},{"$f":"'3 INCOME & EXPENSE'!N291","v":0},{"$f":"'3 INCOME & EXPENSE'!O291","v":0}]
[null,{"$f":"T('3 INCOME & EXPENSE'!D292)","v":""},{"$f":"'3 INCOME & EXPENSE'!E292","v":"00:00:00"},{"$f":"'3 INCOME & EXPENSE'!F292","v":0},{"$f":"'3 INCOME & EXPENSE'!G292","v":0},{"$f":"T('3 INCOME & EXPENSE'!H292)","v":""},{"$f":"T('3 INCOME & EXPENSE'!I292)","v":""},{"$f":"T('3 INCOME & EXPENSE'!J292)","v":""},{"$f":"T('3 INCOME & EXPENSE'!K292)","v":""},{"$f":"T('3 INCOME & EXPENSE'!L292)","v":""},{"$f":"'3 INCOME & EXPENSE'!M292","v":0},{"$f":"'3 INCOME & EXPENSE'!N292","v":0},{"$f":"'3 INCOME & EXPENSE'!O292","v":0}]
[null,{"$f":"T('3 INCOME & EXPENSE'!D293)","v":""},{"$f":"'3 INCOME & EXPENSE'!E293","v":"00:00:00"},{"$f":"'3 INCOME & EXPENSE'!F293","v":0},{"$f":"'3 INCOME & EXPENSE'!G293","v":0},{"$f":"T('3 INCOME & EXPENSE'!H293)","v":""},{"$f":"T('3 INCOME & EXPENSE'!I293)","v":""},{"$f":"T('3 INCOME & EXPENSE'!J293)","v":""},{"$f":"T('3 INCOME & EXPENSE'!K293)","v":""},{"$f":"T('3 INCOME & EXPENSE'!L293)","v":""},{"$f":"'3 INCOME & EXPENSE'!M293","v":0},{"$f":"'3 INCOME & EXPENSE'!N293","v":0},{"$f":"'3 INCOME & EXPENSE'!O293","v":0}]
[null,{"$f":"T('3 INCOME & EXPENSE'!D294)","v":""},{"$f":"'3 INCOME & EXPENSE'!E294","v":"00:00:00"},{"$f":"'3 INCOME & EXPENSE'!F294","v":0},{"$f":"'3 INCOME & EXPENSE'!G294","v":0},{"$f":"T('3 INCOME & EXPENSE'!H294)","v":""},{"$f":"T('3 INCOME & EXPENSE'!I294)","v":""},{"$f":"T('3 INCOME & EXPENSE'!J294)","v":""},{"$f":"T('3 INCOME & EXPENSE'!K294)","v":""},{"$f":"T('3 INCOME & EXPENSE'!L294)","v":""},{"$f":"'3 INCOME & EXPENSE'!M294","v":0},{"$f":"'3 INCOME & EXPENSE'!N294","v":0},{"$f":"'3 INCOME & EXPENSE'!O294","v":0}]
[null,{"$f":"T('3 INCOME & EXPENSE'!D295)","v":""},{"$f":"'3 INCOME & EXPENSE'!E295","v":"00:00:00"},{"$f":"'3 INCOME & EXPENSE'!F295","v":0},{"$f":"'3 INCOME & EXPENSE'!G295","v":0},{"$f":"T('3 INCOME & EXPENSE'!H295)","v":""},{"$f":"T('3 INCOME & EXPENSE'!I295)","v":""},{"$f":"T('3 INCOME & EXPENSE'!J295)","v":""},{"$f":"T('3 INCOME & EXPENSE'!K295)","v":""},{"$f":"T('3 INCOME & EXPENSE'!L295)","v":""},{"$f":"'3 INCOME & EXPENSE'!M295","v":0},{"$f":"'3 INCOME & EXPENSE'!N295","v":0},{"$f":"'3 INCOME & EXPENSE'!O295","v":0}]
[null,{"$f":"T('3 INCOME & EXPENSE'!D296)","v":""},{"$f":"'3 INCOME & EXPENSE'!E296","v":"00:00:00"},{"$f":"'3 INCOME & EXPENSE'!F296","v":0},{"$f":"'3 INCOME & EXPENSE'!G296","v":0},{"$f":"T('3 INCOME & EXPENSE'!H296)","v":""},{"$f":"T('3 INCOME & EXPENSE'!I296)","v":""},{"$f":"T('3 INCOME & EXPENSE'!J296)","v":""},{"$f":"T('3 INCOME & EXPENSE'!K296)","v":""},{"$f":"T('3 INCOME & EXPENSE'!L296)","v":""},{"$f":"'3 INCOME & EXPENSE'!M296","v":0},{"$f":"'3 INCOME & EXPENSE'!N296","v":0},{"$f":"'3 INCOME & EXPENSE'!O296","v":0}]
[null,{"$f":"T('3 INCOME & EXPENSE'!D297)","v":""},{"$f":"'3 INCOME & EXPENSE'!E297","v":"00:00:00"},{"$f":"'3 INCOME & EXPENSE'!F297","v":0},{"$f":"'3 INCOME & EXPENSE'!G297","v":0},{"$f":"T('3 INCOME & EXPENSE'!H297)","v":""},{"$f":"T('3 INCOME & EXPENSE'!I297)","v":""},{"$f":"T('3 INCOME & EXPENSE'!J297)","v":""},{"$f":"T('3 INCOME & EXPENSE'!K297)","v":""},{"$f":"T('3 INCOME & EXPENSE'!L297)","v":""},{"$f":"'3 INCOME & EXPENSE'!M297","v":0},{"$f":"'3 INCOME & EXPENSE'!N297","v":0},{"$f":"'3 INCOME & EXPENSE'!O297","v":0}]
[null,{"$f":"T('3 INCOME & EXPENSE'!D298)","v":""},{"$f":"'3 INCOME & EXPENSE'!E298","v":"00:00:00"},{"$f":"'3 INCOME & EXPENSE'!F298","v":0},{"$f":"'3 INCOME & EXPENSE'!G298","v":0},{"$f":"T('3 INCOME & EXPENSE'!H298)","v":""},{"$f":"T('3 INCOME & EXPENSE'!I298)","v":""},{"$f":"T('3 INCOME & EXPENSE'!J298)","v":""},{"$f":"T('3 INCOME & EXPENSE'!K298)","v":""},{"$f":"T('3 INCOME & EXPENSE'!L298)","v":""},{"$f":"'3 INCOME & EXPENSE'!M298","v":0},{"$f":"'3 INCOME & EXPENSE'!N298","v":0},{"$f":"'3 INCOME & EXPENSE'!O298","v":0}]
[null,{"$f":"T('3 INCOME & EXPENSE'!D299)","v":""},{"$f":"'3 INCOME & EXPENSE'!E299","v":"00:00:00"},{"$f":"'3 INCOME & EXPENSE'!F299","v":0},{"$f":"'3 INCOME & EXPENSE'!G299","v":0},{"$f":"T('3 INCOME & EXPENSE'!H299)","v":""},{"$f":"T('3 INCOME & EXPENSE'!I299)","v":""},{"$f":"T('3 INCOME & EXPENSE'!J299)","v":""},{"$f":"T('3 INCOME & EXPENSE'!K299)","v":""},{"$f":"T('3 INCOME & EXPENSE'!L299)","v":""},{"$f":"'3 INCOME & EXPENSE'!M299","v":0},{"$f":"'3 INCOME & EXPENSE'!N299","v":0},{"$f":"'3 INCOME & EXPENSE'!O299","v":0}]
[null,{"$f":"T('3 INCOME & EXPENSE'!D300)","v":""},{"$f":"'3 INCOME & EXPENSE'!E300","v":"00:00:00"},{"$f":"'3 INCOME & EXPENSE'!F300","v":0},{"$f":"'3 INCOME & EXPENSE'!G300","v":0},{"$f":"T('3 INCOME & EXPENSE'!H300)","v":""},{"$f":"T('3 INCOME & EXPENSE'!I300)","v":""},{"$f":"T('3 INCOME & EXPENSE'!J300)","v":""},{"$f":"T('3 INCOME & EXPENSE'!K300)","v":""},{"$f":"T('3 INCOME & EXPENSE'!L300)","v":""},{"$f":"'3 INCOME & EXPENSE'!M300","v":0},{"$f":"'3 INCOME & EXPENSE'!N300","v":0},{"$f":"'3 INCOME & EXPENSE'!O300","v":0}]
[null,{"$f":"T('3 INCOME & EXPENSE'!D301)","v":""},{"$f":"'3 INCOME & EXPENSE'!E301","v":"00:00:00"},{"$f":"'3 INCOME & EXPENSE'!F301","v":0},{"$f":"'3 INCOME & EXPENSE'!G301","v":0},{"$f":"T('3 INCOME & EXPENSE'!H301)","v":""},{"$f":"T('3 INCOME & EXPENSE'!I301)","v":""},{"$f":"T('3 INCOME & EXPENSE'!J301)","v":""},{"$f":"T('3 INCOME & EXPENSE'!K301)","v":""},{"$f":"T('3 INCOME & EXPENSE'!L301)","v":""},{"$f":"'3 INCOME & EXPENSE'!M301","v":0},{"$f":"'3 INCOME & EXPENSE'!N301","v":0},{"$f":"'3 INCOME & EXPENSE'!O301","v":0}]
[null,{"$f":"T('3 INCOME & EXPENSE'!D302)","v":""},{"$f":"'3 INCOME & EXPENSE'!E302","v":"00:00:00"},{"$f":"'3 INCOME & EXPENSE'!F302","v":0},{"$f":"'3 INCOME & EXPENSE'!G302","v":0},{"$f":"T('3 INCOME & EXPENSE'!H302)","v":""},{"$f":"T('3 INCOME & EXPENSE'!I302)","v":""},{"$f":"T('3 INCOME & EXPENSE'!J302)","v":""},{"$f":"T('3 INCOME & EXPENSE'!K302)","v":""},{"$f":"T('3 INCOME & EXPENSE'!L302)","v":""},{"$f":"'3 INCOME & EXPENSE'!M302","v":0},{"$f":"'3 INCOME & EXPENSE'!N302","v":0},{"$f":"'3 INCOME & EXPENSE'!O302","v":0}]
[null,{"$f":"T('3 INCOME & EXPENSE'!D303)","v":""},{"$f":"'3 INCOME & EXPENSE'!E303","v":"00:00:00"},{"$f":"'3 INCOME & EXPENSE'!F303","v":0},{"$f":"'3 INCOME & EXPENSE'!G303","v":0},{"$f":"T('3 INCOME & EXPENSE'!H303)","v":""},{"$f":"T('3 INCOME & EXPENSE'!I303)","v":""},{"$f":"T('3 INCOME & EXPENSE'!J303)","v":""},{"$f":"T('3 INCOME & EXPENSE'!K303)","v":""},{"$f":"T('3 INCOME & EXPENSE'!L303)","v":""},{"$f":"'3 INCOME & EXPENSE'!M303","v":0},{"$f":"'3 INCOME & EXPENSE'!N303","v":0},{"$f":"'3 INCOME & EXPENSE'!O303","v":0}]
[null,{"$f":"T('3 INCOME & EXPENSE'!D304)","v":""},{"$f":"'3 INCOME & EXPENSE'!E304","v":"00:00:00"},{"$f":"'3 INCOME & EXPENSE'!F304","v":0},{"$f":"'3 INCOME & EXPENSE'!G304","v":0},{"$f":"T('3 INCOME & EXPENSE'!H304)","v":""},{"$f":"T('3 INCOME & EXPENSE'!I304)","v":""},{"$f":"T('3 INCOME & EXPENSE'!J304)","v":""},{"$f":"T('3 INCOME & EXPENSE'!K304)","v":""},{"$f":"T('3 INCOME & EXPENSE'!L304)","v":""},{"$f":"'3 INCOME & EXPENSE'!M304","v":0},{"$f":"'3 INCOME & EXPENSE'!N304","v":0},{"$f":"'3 INCOME & EXPENSE'!O304","v":0}]
[null,{"$f":"T('3 INCOME & EXPENSE'!D305)","v":""},{"$f":"'3 INCOME & EXPENSE'!E305","v":"00:00:00"},{"$f":"'3 INCOME & EXPENSE'!F305","v":0},{"$f":"'3 INCOME & EXPENSE'!G305","v":0},{"$f":"T('3 INCOME & EXPENSE'!H305)","v":""},{"$f":"T('3 INCOME & EXPENSE'!I305)","v":""},{"$f":"T('3 INCOME & EXPENSE'!J305)","v":""},{"$f":"T('3 INCOME & EXPENSE'!K305)","v":""},{"$f":"T('3 INCOME & EXPENSE'!L305)","v":""},{"$f":"'3 INCOME & EXPENSE'!M305","v":0},{"$f":"'3 INCOME & EXPENSE'!N305","v":0},{"$f":"'3 INCOME & EXPENSE'!O305","v":0}]
[null,{"$f":"T('3 INCOME & EXPENSE'!D306)","v":""},{"$f":"'3 INCOME & EXPENSE'!E306","v":"00:00:00"},{"$f":"'3 INCOME & EXPENSE'!F306","v":0},{"$f":"'3 INCOME & EXPENSE'!G306","v":0},{"$f":"T('3 INCOME & EXPENSE'!H306)","v":""},{"$f":"T('3 INCOME & EXPENSE'!I306)","v":""},{"$f":"T('3 INCOME & EXPENSE'!J306)","v":""},{"$f":"T('3 INCOME & EXPENSE'!K306)","v":""},{"$f":"T('3 INCOME & EXPENSE'!L306)","v":""},{"$f":"'3 INCOME & EXPENSE'!M306","v":0},{"$f":"'3 INCOME & EXPENSE'!N306","v":0},{"$f":"'3 INCOME & EXPENSE'!O306","v":0}]
[null,{"$f":"T('3 INCOME & EXPENSE'!D307)","v":""},{"$f":"'3 INCOME & EXPENSE'!E307","v":"00:00:00"},{"$f":"'3 INCOME & EXPENSE'!F307","v":0},{"$f":"'3 INCOME & EXPENSE'!G307","v":0},{"$f":"T('3 INCOME & EXPENSE'!H307)","v":""},{"$f":"T('3 INCOME & EXPENSE'!I307)","v":""},{"$f":"T('3 INCOME & EXPENSE'!J307)","v":""},{"$f":"T('3 INCOME & EXPENSE'!K307)","v":""},{"$f":"T('3 INCOME & EXPENSE'!L307)","v":""},{"$f":"'3 INCOME & EXPENSE'!M307","v":0},{"$f":"'3 INCOME & EXPENSE'!N307","v":0},{"$f":"'3 INCOME & EXPENSE'!O307","v":0}]
[null,{"$f":"T('3 INCOME & EXPENSE'!D308)","v":""},{"$f":"'3 INCOME & EXPENSE'!E308","v":"00:00:00"},{"$f":"'3 INCOME & EXPENSE'!F308","v":0},{"$f":"'3 INCOME & EXPENSE'!G308","v":0},{"$f":"T('3 INCOME & EXPENSE'!H308)","v":""},{"$f":"T('3 INCOME & EXPENSE'!I308)","v":""},{"$f":"T('3 INCOME & EXPENSE'!J308)","v":""},{"$f":"T('3 INCOME & EXPENSE'!K308)","v":""},{"$f":"T('3 INCOME & EXPENSE'!L308)","v":""},{"$f":"'3 INCOME & EXPENSE'!M308","v":0},{"$f":"'3 INCOME & EXPENSE'!N308","v":0},{"$f":"'3 INCOME & EXPENSE'!O308","v":0}]
[null,{"$f":"T('3 INCOME & EXPENSE'!D309)","v":""},{"$f":"'3 INCOME & EXPENSE'!E309","v":"00:00:00"},{"$f":"'3 INCOME & EXPENSE'!F309","v":0},{"$f":"'3 INCOME & EXPENSE'!G309","v":0},{"$f":"T('3 INCOME & EXPENSE'!H309)","v":""},{"$f":"T('3 INCOME & EXPENSE'!I309)","v":""},{"$f":"T('3 INCOME & EXPENSE'!J309)","v":""},{"$f":"T('3 INCOME & EXPENSE'!K309)","v":""},{"$f":"T('3 INCOME & EXPENSE'!L309)","v":""},{"$f":"'3 INCOME & EXPENSE'!M309","v":0},{"$f":"'3 INCOME & EXPENSE'!N309","v":0},{"$f":"'3 INCOME & EXPENSE'!O309","v":0}]
[null,{"$f":"T('3 INCOME & EXPENSE'!D310)","v":""},{"$f":"'3 INCOME & EXPENSE'!E310","v":"00:00:00"},{"$f":"'3 INCOME & EXPENSE'!F310","v":0},{"$f":"'3 INCOME & EXPENSE'!G310","v":0},{"$f":"T('3 INCOME & EXPENSE'!H310)","v":""},{"$f":"T('3 INCOME & EXPENSE'!I310)","v":""},{"$f":"T('3 INCOME & EXPENSE'!J310)","v":""},{"$f":"T('3 INCOME & EXPENSE'!K310)","v":""},{"$f":"T('3 INCOME & EXPENSE'!L310)","v":""},{"$f":"'3 INCOME & EXPENSE'!M310","v":0},{"$f":"'3 INCOME & EXPENSE'!N310","v":0},{"$f":"'3 INCOME & EXPENSE'!O310","v":0}]
[null,{"$f":"T('3 INCOME & EXPENSE'!D311)","v":""},{"$f":"'3 INCOME & EXPENSE'!E311","v":"00:00:00"},{"$f":"'3 INCOME & EXPENSE'!F311","v":0},{"$f":"'3 INCOME & EXPENSE'!G311","v":0},{"$f":"T('3 INCOME & EXPENSE'!H311)","v":""},{"$f":"T('3 INCOME & EXPENSE'!I311)","v":""},{"$f":"T('3 INCOME & EXPENSE'!J311)","v":""},{"$f":"T('3 INCOME & EXPENSE'!K311)","v":""},{"$f":"T('3 INCOME & EXPENSE'!L311)","v":""},{"$f":"'3 INCOME & EXPENSE'!M311","v":0},{"$f":"'3 INCOME & EXPENSE'!N311","v":0},{"$f":"'3 INCOME & EXPENSE'!O311","v":0}]
[null,{"$f":"T('3 INCOME & EXPENSE'!D312)","v":""},{"$f":"'3 INCOME & EXPENSE'!E312","v":"00:00:00"},{"$f":"'3 INCOME & EXPENSE'!F312","v":0},{"$f":"'3 INCOME & EXPENSE'!G312","v":0},{"$f":"T('3 INCOME & EXPENSE'!H312)","v":""},{"$f":"T('3 INCOME & EXPENSE'!I312)","v":""},{"$f":"T('3 INCOME & EXPENSE'!J312)","v":""},{"$f":"T('3 INCOME & EXPENSE'!K312)","v":""},{"$f":"T('3 INCOME & EXPENSE'!L312)","v":""},{"$f":"'3 INCOME & EXPENSE'!M312","v":0},{"$f":"'3 INCOME & EXPENSE'!N312","v":0},{"$f":"'3 INCOME & EXPENSE'!O312","v":0}]
[null,{"$f":"T('3 INCOME & EXPENSE'!D313)","v":""},{"$f":"'3 INCOME & EXPENSE'!E313","v":"00:00:00"},{"$f":"'3 INCOME & EXPENSE'!F313","v":0},{"$f":"'3 INCOME & EXPENSE'!G313","v":0},{"$f":"T('3 INCOME & EXPENSE'!H313)","v":""},{"$f":"T('3 INCOME & EXPENSE'!I313)","v":""},{"$f":"T('3 INCOME & EXPENSE'!J313)","v":""},{"$f":"T('3 INCOME & EXPENSE'!K313)","v":""},{"$f":"T('3 INCOME & EXPENSE'!L313)","v":""},{"$f":"'3 INCOME & EXPENSE'!M313","v":0},{"$f":"'3 INCOME & EXPENSE'!N313","v":0},{"$f":"'3 INCOME & EXPENSE'!O313","v":0}]
[null,{"$f":"T('3 INCOME & EXPENSE'!D314)","v":""},{"$f":"'3 INCOME & EXPENSE'!E314","v":"00:00:00"},{"$f":"'3 INCOME & EXPENSE'!F314","v":0},{"$f":"'3 INCOME & EXPENSE'!G314","v":0},{"$f":"T('3 INCOME & EXPENSE'!H314)","v":""},{"$f":"T('3 INCOME & EXPENSE'!I314)","v":""},{"$f":"T('3 INCOME & EXPENSE'!J314)","v":""},{"$f":"T('3 INCOME & EXPENSE'!K314)","v":""},{"$f":"T('3 INCOME & EXPENSE'!L314)","v":""},{"$f":"'3 INCOME & EXPENSE'!M314","v":0},{"$f":"'3 INCOME & EXPENSE'!N314","v":0},{"$f":"'3 INCOME & EXPENSE'!O314","v":0}]
[null,{"$f":"T('3 INCOME & EXPENSE'!D315)","v":""},{"$f":"'3 INCOME & EXPENSE'!E315","v":"00:00:00"},{"$f":"'3 INCOME & EXPENSE'!F315","v":0},{"$f":"'3 INCOME & EXPENSE'!G315","v":0},{"$f":"T('3 INCOME & EXPENSE'!H315)","v":""},{"$f":"T('3 INCOME & EXPENSE'!I315)","v":""},{"$f":"T('3 INCOME & EXPENSE'!J315)","v":""},{"$f":"T('3 INCOME & EXPENSE'!K315)","v":""},{"$f":"T('3 INCOME & EXPENSE'!L315)","v":""},{"$f":"'3 INCOME & EXPENSE'!M315","v":0},{"$f":"'3 INCOME & EXPENSE'!N315","v":0},{"$f":"'3 INCOME & EXPENSE'!O315","v":0}]
[null,{"$f":"T('3 INCOME & EXPENSE'!D316)","v":""},{"$f":"'3 INCOME & EXPENSE'!E316","v":"00:00:00"},{"$f":"'3 INCOME & EXPENSE'!F316","v":0},{"$f":"'3 INCOME & EXPENSE'!G316","v":0},{"$f":"T('3 INCOME & EXPENSE'!H316)","v":""},{"$f":"T('3 INCOME & EXPENSE'!I316)","v":""},{"$f":"T('3 INCOME & EXPENSE'!J316)","v":""},{"$f":"T('3 INCOME & EXPENSE'!K316)","v":""},{"$f":"T('3 INCOME & EXPENSE'!L316)","v":""},{"$f":"'3 INCOME & EXPENSE'!M316","v":0},{"$f":"'3 INCOME & EXPENSE'!N316","v":0},{"$f":"'3 INCOME & EXPENSE'!O316","v":0}]
[null,{"$f":"T('3 INCOME & EXPENSE'!D317)","v":""},{"$f":"'3 INCOME & EXPENSE'!E317","v":"00:00:00"},{"$f":"'3 INCOME & EXPENSE'!F317","v":0},{"$f":"'3 INCOME & EXPENSE'!G317","v":0},{"$f":"T('3 INCOME & EXPENSE'!H317)","v":""},{"$f":"T('3 INCOME & EXPENSE'!I317)","v":""},{"$f":"T('3 INCOME & EXPENSE'!J317)","v":""},{"$f":"T('3 INCOME & EXPENSE'!K317)","v":""},{"$f":"T('3 INCOME & EXPENSE'!L317)","v":""},{"$f":"'3 INCOME & EXPENSE'!M317","v":0},{"$f":"'3 INCOME & EXPENSE'!N317","v":0},{"$f":"'3 INCOME & EXPENSE'!O317","v":0}]
[null,{"$f":"T('3 INCOME & EXPENSE'!D318)","v":""},{"$f":"'3 INCOME & EXPENSE'!E318","v":"00:00:00"},{"$f":"'3 INCOME & EXPENSE'!F318","v":0},{"$f":"'3 INCOME & EXPENSE'!G318","v":0},{"$f":"T('3 INCOME & EXPENSE'!H318)","v":""},{"$f":"T('3 INCOME & EXPENSE'!I318)","v":""},{"$f":"T('3 INCOME & EXPENSE'!J318)","v":""},{"$f":"T('3 INCOME & EXPENSE'!K318)","v":""},{"$f":"T('3 INCOME & EXPENSE'!L318)","v":""},{"$f":"'3 INCOME & EXPENSE'!M318","v":0},{"$f":"'3 INCOME & EXPENSE'!N318","v":0},{"$f":"'3 INCOME & EXPENSE'!O318","v":0}]
[null,{"$f":"T('3 INCOME & EXPENSE'!D319)","v":""},{"$f":"'3 INCOME & EXPENSE'!E319","v":"00:00:00"},{"$f":"'3 INCOME & EXPENSE'!F319","v":0},{"$f":"'3 INCOME & EXPENSE'!G319","v":0},{"$f":"T('3 INCOME & EXPENSE'!H319)","v":""},{"$f":"T('3 INCOME & EXPENSE'!I319)","v":""},{"$f":"T('3 INCOME & EXPENSE'!J319)","v":""},{"$f":"T('3 INCOME & EXPENSE'!K319)","v":""},{"$f":"T('3 INCOME & EXPENSE'!L319)","v":""},{"$f":"'3 INCOME & EXPENSE'!M319","v":0},{"$f":"'3 INCOME & EXPENSE'!N319","v":0},{"$f":"'3 INCOME & EXPENSE'!O319","v":0}]
[null,{"$f":"T('3 INCOME & EXPENSE'!D320)","v":""},{"$f":"'3 INCOME & EXPENSE'!E320","v":"00:00:00"},{"$f":"'3 INCOME & EXPENSE'!F320","v":0},{"$f":"'3 INCOME & EXPENSE'!G320","v":0},{"$f":"T('3 INCOME & EXPENSE'!H320)","v":""},{"$f":"T('3 INCOME & EXPENSE'!I320)","v":""},{"$f":"T('3 INCOME & EXPENSE'!J320)","v":""},{"$f":"T('3 INCOME & EXPENSE'!K320)","v":""},{"$f":"T('3 INCOME & EXPENSE'!L320)","v":""},{"$f":"'3 INCOME & EXPENSE'!M320","v":0},{"$f":"'3 INCOME & EXPENSE'!N320","v":0},{"$f":"'3 INCOME & EXPENSE'!O320","v":0}]
[null,{"$f":"T('3 INCOME & EXPENSE'!D321)","v":""},{"$f":"'3 INCOME & EXPENSE'!E321","v":"00:00:00"},{"$f":"'3 INCOME & EXPENSE'!F321","v":0},{"$f":"'3 INCOME & EXPENSE'!G321","v":0},{"$f":"T('3 INCOME & EXPENSE'!H321)","v":""},{"$f":"T('3 INCOME & EXPENSE'!I321)","v":""},{"$f":"T('3 INCOME & EXPENSE'!J321)","v":""},{"$f":"T('3 INCOME & EXPENSE'!K321)","v":""},{"$f":"T('3 INCOME & EXPENSE'!L321)","v":""},{"$f":"'3 INCOME & EXPENSE'!M321","v":0},{"$f":"'3 INCOME & EXPENSE'!N321","v":0},{"$f":"'3 INCOME & EXPENSE'!O321","v":0}]
[null,{"$f":"T('3 INCOME & EXPENSE'!D322)","v":""},{"$f":"'3 INCOME & EXPENSE'!E322","v":"00:00:00"},{"$f":"'3 INCOME & EXPENSE'!F322","v":0},{"$f":"'3 INCOME & EXPENSE'!G322","v":0},{"$f":"T('3 INCOME & EXPENSE'!H322)","v":""},{"$f":"T('3 INCOME & EXPENSE'!I322)","v":""},{"$f":"T('3 INCOME & EXPENSE'!J322)","v":""},{"$f":"T('3 INCOME & EXPENSE'!K322)","v":""},{"$f":"T('3 INCOME & EXPENSE'!L322)","v":""},{"$f":"'3 INCOME & EXPENSE'!M322","v":0},{"$f":"'3 INCOME & EXPENSE'!N322","v":0},{"$f":"'3 INCOME & EXPENSE'!O322","v":0}]
[null,{"$f":"T('3 INCOME & EXPENSE'!D323)","v":""},{"$f":"'3 INCOME & EXPENSE'!E323","v":"00:00:00"},{"$f":"'3 INCOME & EXPENSE'!F323","v":0},{"$f":"'3 INCOME & EXPENSE'!G323","v":0},{"$f":"T('3 INCOME & EXPENSE'!H323)","v":""},{"$f":"T('3 INCOME & EXPENSE'!I323)","v":""},{"$f":"T('3 INCOME & EXPENSE'!J323)","v":""},{"$f":"T('3 INCOME & EXPENSE'!K323)","v":""},{"$f":"T('3 INCOME & EXPENSE'!L323)","v":""},{"$f":"'3 INCOME & EXPENSE'!M323","v":0},{"$f":"'3 INCOME & EXPENSE'!N323","v":0},{"$f":"'3 INCOME & EXPENSE'!O323","v":0}]
[null,{"$f":"T('3 INCOME & EXPENSE'!D324)","v":""},{"$f":"'3 INCOME & EXPENSE'!E324","v":"00:00:00"},{"$f":"'3 INCOME & EXPENSE'!F324","v":0},{"$f":"'3 INCOME & EXPENSE'!G324","v":0},{"$f":"T('3 INCOME & EXPENSE'!H324)","v":""},{"$f":"T('3 INCOME & EXPENSE'!I324)","v":""},{"$f":"T('3 INCOME & EXPENSE'!J324)","v":""},{"$f":"T('3 INCOME & EXPENSE'!K324)","v":""},{"$f":"T('3 INCOME & EXPENSE'!L324)","v":""},{"$f":"'3 INCOME & EXPENSE'!M324","v":0},{"$f":"'3 INCOME & EXPENSE'!N324","v":0},{"$f":"'3 INCOME & EXPENSE'!O324","v":0}]
[null,{"$f":"T('3 INCOME & EXPENSE'!D325)","v":""},{"$f":"'3 INCOME & EXPENSE'!E325","v":"00:00:00"},{"$f":"'3 INCOME & EXPENSE'!F325","v":0},{"$f":"'3 INCOME & EXPENSE'!G325","v":0},{"$f":"T('3 INCOME & EXPENSE'!H325)","v":""},{"$f":"T('3 INCOME & EXPENSE'!I325)","v":""},{"$f":"T('3 INCOME & EXPENSE'!J325)","v":""},{"$f":"T('3 INCOME & EXPENSE'!K325)","v":""},{"$f":"T('3 INCOME & EXPENSE'!L325)","v":""},{"$f":"'3 INCOME & EXPENSE'!M325","v":0},{"$f":"'3 INCOME & EXPENSE'!N325","v":0},{"$f":"'3 INCOME & EXPENSE'!O325","v":0}]
[null,{"$f":"T('3 INCOME & EXPENSE'!D326)","v":""},{"$f":"'3 INCOME & EXPENSE'!E326","v":"00:00:00"},{"$f":"'3 INCOME & EXPENSE'!F326","v":0},{"$f":"'3 INCOME & EXPENSE'!G326","v":0},{"$f":"T('3 INCOME & EXPENSE'!H326)","v":""},{"$f":"T('3 INCOME & EXPENSE'!I326)","v":""},{"$f":"T('3 INCOME & EXPENSE'!J326)","v":""},{"$f":"T('3 INCOME & EXPENSE'!K326)","v":""},{"$f":"T('3 INCOME & EXPENSE'!L326)","v":""},{"$f":"'3 INCOME & EXPENSE'!M326","v":0},{"$f":"'3 INCOME & EXPENSE'!N326","v":0},{"$f":"'3 INCOME & EXPENSE'!O326","v":0}]
[null,{"$f":"T('3 INCOME & EXPENSE'!D327)","v":""},{"$f":"'3 INCOME & EXPENSE'!E327","v":"00:00:00"},{"$f":"'3 INCOME & EXPENSE'!F327","v":0},{"$f":"'3 INCOME & EXPENSE'!G327","v":0},{"$f":"T('3 INCOME & EXPENSE'!H327)","v":""},{"$f":"T('3 INCOME & EXPENSE'!I327)","v":""},{"$f":"T('3 INCOME & EXPENSE'!J327)","v":""},{"$f":"T('3 INCOME & EXPENSE'!K327)","v":""},{"$f":"T('3 INCOME & EXPENSE'!L327)","v":""},{"$f":"'3 INCOME & EXPENSE'!M327","v":0},{"$f":"'3 INCOME & EXPENSE'!N327","v":0},{"$f":"'3 INCOME & EXPENSE'!O327","v":0}]
[null,{"$f":"T('3 INCOME & EXPENSE'!D328)","v":""},{"$f":"'3 INCOME & EXPENSE'!E328","v":"00:00:00"},{"$f":"'3 INCOME & EXPENSE'!F328","v":0},{"$f":"'3 INCOME & EXPENSE'!G328","v":0},{"$f":"T('3 INCOME & EXPENSE'!H328)","v":""},{"$f":"T('3 INCOME & EXPENSE'!I328)","v":""},{"$f":"T('3 INCOME & EXPENSE'!J328)","v":""},{"$f":"T('3 INCOME & EXPENSE'!K328)","v":""},{"$f":"T('3 INCOME & EXPENSE'!L328)","v":""},{"$f":"'3 INCOME & EXPENSE'!M328","v":0},{"$f":"'3 INCOME & EXPENSE'!N328","v":0},{"$f":"'3 INCOME & EXPENSE'!O328","v":0}]
[null,{"$f":"T('3 INCOME & EXPENSE'!D329)","v":""},{"$f":"'3 INCOME & EXPENSE'!E329","v":"00:00:00"},{"$f":"'3 INCOME & EXPENSE'!F329","v":0},{"$f":"'3 INCOME & EXPENSE'!G329","v":0},{"$f":"T('3 INCOME & EXPENSE'!H329)","v":""},{"$f":"T('3 INCOME & EXPENSE'!I329)","v":""},{"$f":"T('3 INCOME & EXPENSE'!J329)","v":""},{"$f":"T('3 INCOME & EXPENSE'!K329)","v":""},{"$f":"T('3 INCOME & EXPENSE'!L329)","v":""},{"$f":"'3 INCOME & EXPENSE'!M329","v":0},{"$f":"'3 INCOME & EXPENSE'!N329","v":0},{"$f":"'3 INCOME & EXPENSE'!O329","v":0}]
[null,{"$f":"T('3 INCOME & EXPENSE'!D330)","v":""},{"$f":"'3 INCOME & EXPENSE'!E330","v":"00:00:00"},{"$f":"'3 INCOME & EXPENSE'!F330","v":0},{"$f":"'3 INCOME & EXPENSE'!G330","v":0},{"$f":"T('3 INCOME & EXPENSE'!H330)","v":""},{"$f":"T('3 INCOME & EXPENSE'!I330)","v":""},{"$f":"T('3 INCOME & EXPENSE'!J330)","v":""},{"$f":"T('3 INCOME & EXPENSE'!K330)","v":""},{"$f":"T('3 INCOME & EXPENSE'!L330)","v":""},{"$f":"'3 INCOME & EXPENSE'!M330","v":0},{"$f":"'3 INCOME & EXPENSE'!N330","v":0},{"$f":"'3 INCOME & EXPENSE'!O330","v":0}]
[null,{"$f":"T('3 INCOME & EXPENSE'!D331)","v":""},{"$f":"'3 INCOME & EXPENSE'!E331","v":"00:00:00"},{"$f":"'3 INCOME & EXPENSE'!F331","v":0},{"$f":"'3 INCOME & EXPENSE'!G331","v":0},{"$f":"T('3 INCOME & EXPENSE'!H331)","v":""},{"$f":"T('3 INCOME & EXPENSE'!I331)","v":""},{"$f":"T('3 INCOME & EXPENSE'!J331)","v":""},{"$f":"T('3 INCOME & EXPENSE'!K331)","v":""},{"$f":"T('3 INCOME & EXPENSE'!L331)","v":""},{"$f":"'3 INCOME & EXPENSE'!M331","v":0},{"$f":"'3 INCOME & EXPENSE'!N331","v":0},{"$f":"'3 INCOME & EXPENSE'!O331","v":0}]
[null,{"$f":"T('3 INCOME & EXPENSE'!D332)","v":""},{"$f":"'3 INCOME & EXPENSE'!E332","v":"00:00:00"},{"$f":"'3 INCOME & EXPENSE'!F332","v":0},{"$f":"'3 INCOME & EXPENSE'!G332","v":0},{"$f":"T('3 INCOME & EXPENSE'!H332)","v":""},{"$f":"T('3 INCOME & EXPENSE'!I332)","v":""},{"$f":"T('3 INCOME & EXPENSE'!J332)","v":""},{"$f":"T('3 INCOME & EXPENSE'!K332)","v":""},{"$f":"T('3 INCOME & EXPENSE'!L332)","v":""},{"$f":"'3 INCOME & EXPENSE'!M332","v":0},{"$f":"'3 INCOME & EXPENSE'!N332","v":0},{"$f":"'3 INCOME & EXPENSE'!O332","v":0}]
[null,{"$f":"T('3 INCOME & EXPENSE'!D333)","v":""},{"$f":"'3 INCOME & EXPENSE'!E333","v":"00:00:00"},{"$f":"'3 INCOME & EXPENSE'!F333","v":0},{"$f":"'3 INCOME & EXPENSE'!G333","v":0},{"$f":"T('3 INCOME & EXPENSE'!H333)","v":""},{"$f":"T('3 INCOME & EXPENSE'!I333)","v":""},{"$f":"T('3 INCOME & EXPENSE'!J333)","v":""},{"$f":"T('3 INCOME & EXPENSE'!K333)","v":""},{"$f":"T('3 INCOME & EXPENSE'!L333)","v":""},{"$f":"'3 INCOME & EXPENSE'!M333","v":0},{"$f":"'3 INCOME & EXPENSE'!N333","v":0},{"$f":"'3 INCOME & EXPENSE'!O333","v":0}]
[null,{"$f":"T('3 INCOME & EXPENSE'!D334)","v":""},{"$f":"'3 INCOME & EXPENSE'!E334","v":"00:00:00"},{"$f":"'3 INCOME & EXPENSE'!F334","v":0},{"$f":"'3 INCOME & EXPENSE'!G334","v":0},{"$f":"T('3 INCOME & EXPENSE'!H334)","v":""},{"$f":"T('3 INCOME & EXPENSE'!I334)","v":""},{"$f":"T('3 INCOME & EXPENSE'!J334)","v":""},{"$f":"T('3 INCOME & EXPENSE'!K334)","v":""},{"$f":"T('3 INCOME & EXPENSE'!L334)","v":""},{"$f":"'3 INCOME & EXPENSE'!M334","v":0},{"$f":"'3 INCOME & EXPENSE'!N334","v":0},{"$f":"'3 INCOME & EXPENSE'!O334","v":0}]
[null,{"$f":"T('3 INCOME & EXPENSE'!D335)","v":""},{"$f":"'3 INCOME & EXPENSE'!E335","v":"00:00:00"},{"$f":"'3 INCOME & EXPENSE'!F335","v":0},{"$f":"'3 INCOME & EXPENSE'!G335","v":0},{"$f":"T('3 INCOME & EXPENSE'!H335)","v":""},{"$f":"T('3 INCOME & EXPENSE'!I335)","v":""},{"$f":"T('3 INCOME & EXPENSE'!J335)","v":""},{"$f":"T('3 INCOME & EXPENSE'!K335)","v":""},{"$f":"T('3 INCOME & EXPENSE'!L335)","v":""},{"$f":"'3 INCOME & EXPENSE'!M335","v":0},{"$f":"'3 INCOME & EXPENSE'!N335","v":0},{"$f":"'3 INCOME & EXPENSE'!O335","v":0}]
[null,{"$f":"T('3 INCOME & EXPENSE'!D336)","v":""},{"$f":"'3 INCOME & EXPENSE'!E336","v":"00:00:00"},{"$f":"'3 INCOME & EXPENSE'!F336","v":0},{"$f":"'3 INCOME & EXPENSE'!G336","v":0},{"$f":"T('3 INCOME & EXPENSE'!H336)","v":""},{"$f":"T('3 INCOME & EXPENSE'!I336)","v":""},{"$f":"T('3 INCOME & EXPENSE'!J336)","v":""},{"$f":"T('3 INCOME & EXPENSE'!K336)","v":""},{"$f":"T('3 INCOME & EXPENSE'!L336)","v":""},{"$f":"'3 INCOME & EXPENSE'!M336","v":0},{"$f":"'3 INCOME & EXPENSE'!N336","v":0},{"$f":"'3 INCOME & EXPENSE'!O336","v":0}]
[null,{"$f":"T('3 INCOME & EXPENSE'!D337)","v":""},{"$f":"'3 INCOME & EXPENSE'!E337","v":"00:00:00"},{"$f":"'3 INCOME & EXPENSE'!F337","v":0},{"$f":"'3 INCOME & EXPENSE'!G337","v":0},{"$f":"T('3 INCOME & EXPENSE'!H337)","v":""},{"$f":"T('3 INCOME & EXPENSE'!I337)","v":""},{"$f":"T('3 INCOME & EXPENSE'!J337)","v":""},{"$f":"T('3 INCOME & EXPENSE'!K337)","v":""},{"$f":"T('3 INCOME & EXPENSE'!L337)","v":""},{"$f":"'3 INCOME & EXPENSE'!M337","v":0},{"$f":"'3 INCOME & EXPENSE'!N337","v":0},{"$f":"'3 INCOME & EXPENSE'!O337","v":0}]
[null,{"$f":"T('3 INCOME & EXPENSE'!D338)","v":""},{"$f":"'3 INCOME & EXPENSE'!E338","v":"00:00:00"},{"$f":"'3 INCOME & EXPENSE'!F338","v":0},{"$f":"'3 INCOME & EXPENSE'!G338","v":0},{"$f":"T('3 INCOME & EXPENSE'!H338)","v":""},{"$f":"T('3 INCOME & EXPENSE'!I338)","v":""},{"$f":"T('3 INCOME & EXPENSE'!J338)","v":""},{"$f":"T('3 INCOME & EXPENSE'!K338)","v":""},{"$f":"T('3 INCOME & EXPENSE'!L338)","v":""},{"$f":"'3 INCOME & EXPENSE'!M338","v":0},{"$f":"'3 INCOME & EXPENSE'!N338","v":0},{"$f":"'3 INCOME & EXPENSE'!O338","v":0}]
[null,{"$f":"T('3 INCOME & EXPENSE'!D339)","v":""},{"$f":"'3 INCOME & EXPENSE'!E339","v":"00:00:00"},{"$f":"'3 INCOME & EXPENSE'!F339","v":0},{"$f":"'3 INCOME & EXPENSE'!G339","v":0},{"$f":"T('3 INCOME & EXPENSE'!H339)","v":""},{"$f":"T('3 INCOME & EXPENSE'!I339)","v":""},{"$f":"T('3 INCOME & EXPENSE'!J339)","v":""},{"$f":"T('3 INCOME & EXPENSE'!K339)","v":""},{"$f":"T('3 INCOME & EXPENSE'!L339)","v":""},{"$f":"'3 INCOME & EXPENSE'!M339","v":0},{"$f":"'3 INCOME & EXPENSE'!N339","v":0},{"$f":"'3 INCOME & EXPENSE'!O339","v":0}]
[null,{"$f":"T('3 INCOME & EXPENSE'!D340)","v":""},{"$f":"'3 INCOME & EXPENSE'!E340","v":"00:00:00"},{"$f":"'3 INCOME & EXPENSE'!F340","v":0},{"$f":"'3 INCOME & EXPENSE'!G340","v":0},{"$f":"T('3 INCOME & EXPENSE'!H340)","v":""},{"$f":"T('3 INCOME & EXPENSE'!I340)","v":""},{"$f":"T('3 INCOME & EXPENSE'!J340)","v":""},{"$f":"T('3 INCOME & EXPENSE'!K340)","v":""},{"$f":"T('3 INCOME & EXPENSE'!L340)","v":""},{"$f":"'3 INCOME & EXPENSE'!M340","v":0},{"$f":"'3 INCOME & EXPENSE'!N340","v":0},{"$f":"'3 INCOME & EXPENSE'!O340","v":0}]
[null,{"$f":"T('3 INCOME & EXPENSE'!D341)","v":""},{"$f":"'3 INCOME & EXPENSE'!E341","v":"00:00:00"},{"$f":"'3 INCOME & EXPENSE'!F341","v":0},{"$f":"'3 INCOME & EXPENSE'!G341","v":0},{"$f":"T('3 INCOME & EXPENSE'!H341)","v":""},{"$f":"T('3 INCOME & EXPENSE'!I341)","v":""},{"$f":"T('3 INCOME & EXPENSE'!J341)","v":""},{"$f":"T('3 INCOME & EXPENSE'!K341)","v":""},{"$f":"T('3 INCOME & EXPENSE'!L341)","v":""},{"$f":"'3 INCOME & EXPENSE'!M341","v":0},{"$f":"'3 INCOME & EXPENSE'!N341","v":0},{"$f":"'3 INCOME & EXPENSE'!O341","v":0}]
[null,{"$f":"T('3 INCOME & EXPENSE'!D342)","v":""},{"$f":"'3 INCOME & EXPENSE'!E342","v":"00:00:00"},{"$f":"'3 INCOME & EXPENSE'!F342","v":0},{"$f":"'3 INCOME & EXPENSE'!G342","v":0},{"$f":"T('3 INCOME & EXPENSE'!H342)","v":""},{"$f":"T('3 INCOME & EXPENSE'!I342)","v":""},{"$f":"T('3 INCOME & EXPENSE'!J342)","v":""},{"$f":"T('3 INCOME & EXPENSE'!K342)","v":""},{"$f":"T('3 INCOME & EXPENSE'!L342)","v":""},{"$f":"'3 INCOME & EXPENSE'!M342","v":0},{"$f":"'3 INCOME & EXPENSE'!N342","v":0},{"$f":"'3 INCOME & EXPENSE'!O342","v":0}]
[null,{"$f":"T('3 INCOME & EXPENSE'!D343)","v":""},{"$f":"'3 INCOME & EXPENSE'!E343","v":"00:00:00"},{"$f":"'3 INCOME & EXPENSE'!F343","v":0},{"$f":"'3 INCOME & EXPENSE'!G343","v":0},{"$f":"T('3 INCOME & EXPENSE'!H343)","v":""},{"$f":"T('3 INCOME & EXPENSE'!I343)","v":""},{"$f":"T('3 INCOME & EXPENSE'!J343)","v":""},{"$f":"T('3 INCOME & EXPENSE'!K343)","v":""},{"$f":"T('3 INCOME & EXPENSE'!L343)","v":""},{"$f":"'3 INCOME & EXPENSE'!M343","v":0},{"$f":"'3 INCOME & EXPENSE'!N343","v":0},{"$f":"'3 INCOME & EXPENSE'!O343","v":0}]
[null,{"$f":"T('3 INCOME & EXPENSE'!D344)","v":""},{"$f":"'3 INCOME & EXPENSE'!E344","v":"00:00:00"},{"$f":"'3 INCOME & EXPENSE'!F344","v":0},{"$f":"'3 INCOME & EXPENSE'!G344","v":0},{"$f":"T('3 INCOME & EXPENSE'!H344)","v":""},{"$f":"T('3 INCOME & EXPENSE'!I344)","v":""},{"$f":"T('3 INCOME & EXPENSE'!J344)","v":""},{"$f":"T('3 INCOME & EXPENSE'!K344)","v":""},{"$f":"T('3 INCOME & EXPENSE'!L344)","v":""},{"$f":"'3 INCOME & EXPENSE'!M344","v":0},{"$f":"'3 INCOME & EXPENSE'!N344","v":0},{"$f":"'3 INCOME & EXPENSE'!O344","v":0}]
[null,{"$f":"T('3 INCOME & EXPENSE'!D345)","v":""},{"$f":"'3 INCOME & EXPENSE'!E345","v":"00:00:00"},{"$f":"'3 INCOME & EXPENSE'!F345","v":0},{"$f":"'3 INCOME & EXPENSE'!G345","v":0},{"$f":"T('3 INCOME & EXPENSE'!H345)","v":""},{"$f":"T('3 INCOME & EXPENSE'!I345)","v":""},{"$f":"T('3 INCOME & EXPENSE'!J345)","v":""},{"$f":"T('3 INCOME & EXPENSE'!K345)","v":""},{"$f":"T('3 INCOME & EXPENSE'!L345)","v":""},{"$f":"'3 INCOME & EXPENSE'!M345","v":0},{"$f":"'3 INCOME & EXPENSE'!N345","v":0},{"$f":"'3 INCOME & EXPENSE'!O345","v":0}]
[null,{"$f":"T('3 INCOME & EXPENSE'!D346)","v":""},{"$f":"'3 INCOME & EXPENSE'!E346","v":"00:00:00"},{"$f":"'3 INCOME & EXPENSE'!F346","v":0},{"$f":"'3 INCOME & EXPENSE'!G346","v":0},{"$f":"T('3 INCOME & EXPENSE'!H346)","v":""},{"$f":"T('3 INCOME & EXPENSE'!I346)","v":""},{"$f":"T('3 INCOME & EXPENSE'!J346)","v":""},{"$f":"T('3 INCOME & EXPENSE'!K346)","v":""},{"$f":"T('3 INCOME & EXPENSE'!L346)","v":""},{"$f":"'3 INCOME & EXPENSE'!M346","v":0},{"$f":"'3 INCOME & EXPENSE'!N346","v":0},{"$f":"'3 INCOME & EXPENSE'!O346","v":0}]
[null,{"$f":"T('3 INCOME & EXPENSE'!D347)","v":""},{"$f":"'3 INCOME & EXPENSE'!E347","v":"00:00:00"},{"$f":"'3 INCOME & EXPENSE'!F347","v":0},{"$f":"'3 INCOME & EXPENSE'!G347","v":0},{"$f":"T('3 INCOME & EXPENSE'!H347)","v":""},{"$f":"T('3 INCOME & EXPENSE'!I347)","v":""},{"$f":"T('3 INCOME & EXPENSE'!J347)","v":""},{"$f":"T('3 INCOME & EXPENSE'!K347)","v":""},{"$f":"T('3 INCOME & EXPENSE'!L347)","v":""},{"$f":"'3 INCOME & EXPENSE'!M347","v":0},{"$f":"'3 INCOME & EXPENSE'!N347","v":0},{"$f":"'3 INCOME & EXPENSE'!O347","v":0}]
[null,{"$f":"T('3 INCOME & EXPENSE'!D348)","v":""},{"$f":"'3 INCOME & EXPENSE'!E348","v":"00:00:00"},{"$f":"'3 INCOME & EXPENSE'!F348","v":0},{"$f":"'3 INCOME & EXPENSE'!G348","v":0},{"$f":"T('3 INCOME & EXPENSE'!H348)","v":""},{"$f":"T('3 INCOME & EXPENSE'!I348)","v":""},{"$f":"T('3 INCOME & EXPENSE'!J348)","v":""},{"$f":"T('3 INCOME & EXPENSE'!K348)","v":""},{"$f":"T('3 INCOME & EXPENSE'!L348)","v":""},{"$f":"'3 INCOME & EXPENSE'!M348","v":0},{"$f":"'3 INCOME & EXPENSE'!N348","v":0},{"$f":"'3 INCOME & EXPENSE'!O348","v":0}]
[null,{"$f":"T('3 INCOME & EXPENSE'!D349)","v":""},{"$f":"'3 INCOME & EXPENSE'!E349","v":"00:00:00"},{"$f":"'3 INCOME & EXPENSE'!F349","v":0},{"$f":"'3 INCOME & EXPENSE'!G349","v":0},{"$f":"T('3 INCOME & EXPENSE'!H349)","v":""},{"$f":"T('3 INCOME & EXPENSE'!I349)","v":""},{"$f":"T('3 INCOME & EXPENSE'!J349)","v":""},{"$f":"T('3 INCOME & EXPENSE'!K349)","v":""},{"$f":"T('3 INCOME & EXPENSE'!L349)","v":""},{"$f":"'3 INCOME & EXPENSE'!M349","v":0},{"$f":"'3 INCOME & EXPENSE'!N349","v":0},{"$f":"'3 INCOME & EXPENSE'!O349","v":0}]
[null,{"$f":"T('3 INCOME & EXPENSE'!D350)","v":""},{"$f":"'3 INCOME & EXPENSE'!E350","v":"00:00:00"},{"$f":"'3 INCOME & EXPENSE'!F350","v":0},{"$f":"'3 INCOME & EXPENSE'!G350","v":0},{"$f":"T('3 INCOME & EXPENSE'!H350)","v":""},{"$f":"T('3 INCOME & EXPENSE'!I350)","v":""},{"$f":"T('3 INCOME & EXPENSE'!J350)","v":""},{"$f":"T('3 INCOME & EXPENSE'!K350)","v":""},{"$f":"T('3 INCOME & EXPENSE'!L350)","v":""},{"$f":"'3 INCOME & EXPENSE'!M350","v":0},{"$f":"'3 INCOME & EXPENSE'!N350","v":0},{"$f":"'3 INCOME & EXPENSE'!O350","v":0}]
[null,{"$f":"T('3 INCOME & EXPENSE'!D351)","v":""},{"$f":"'3 INCOME & EXPENSE'!E351","v":"00:00:00"},{"$f":"'3 INCOME & EXPENSE'!F351","v":0},{"$f":"'3 INCOME & EXPENSE'!G351","v":0},{"$f":"T('3 INCOME & EXPENSE'!H351)","v":""},{"$f":"T('3 INCOME & EXPENSE'!I351)","v":""},{"$f":"T('3 INCOME & EXPENSE'!J351)","v":""},{"$f":"T('3 INCOME & EXPENSE'!K351)","v":""},{"$f":"T('3 INCOME & EXPENSE'!L351)","v":""},{"$f":"'3 INCOME & EXPENSE'!M351","v":0},{"$f":"'3 INCOME & EXPENSE'!N351","v":0},{"$f":"'3 INCOME & EXPENSE'!O351","v":0}]
[null,{"$f":"T('3 INCOME & EXPENSE'!D352)","v":""},{"$f":"'3 INCOME & EXPENSE'!E352","v":"00:00:00"},{"$f":"'3 INCOME & EXPENSE'!F352","v":0},{"$f":"'3 INCOME & EXPENSE'!G352","v":0},{"$f":"T('3 INCOME & EXPENSE'!H352)","v":""},{"$f":"T('3 INCOME & EXPENSE'!I352)","v":""},{"$f":"T('3 INCOME & EXPENSE'!J352)","v":""},{"$f":"T('3 INCOME & EXPENSE'!K352)","v":""},{"$f":"T('3 INCOME & EXPENSE'!L352)","v":""},{"$f":"'3 INCOME & EXPENSE'!M352","v":0},{"$f":"'3 INCOME & EXPENSE'!N352","v":0},{"$f":"'3 INCOME & EXPENSE'!O352","v":0}]
[null,{"$f":"T('3 INCOME & EXPENSE'!D353)","v":""},{"$f":"'3 INCOME & EXPENSE'!E353","v":"00:00:00"},{"$f":"'3 INCOME & EXPENSE'!F353","v":0},{"$f":"'3 INCOME & EXPENSE'!G353","v":0},{"$f":"T('3 INCOME & EXPENSE'!H353)","v":""},{"$f":"T('3 INCOME & EXPENSE'!I353)","v":""},{"$f":"T('3 INCOME & EXPENSE'!J353)","v":""},{"$f":"T('3 INCOME & EXPENSE'!K353)","v":""},{"$f":"T('3 INCOME & EXPENSE'!L353)","v":""},{"$f":"'3 INCOME & EXPENSE'!M353","v":0},{"$f":"'3 INCOME & EXPENSE'!N353","v":0},{"$f":"'3 INCOME & EXPENSE'!O353","v":0}]
[null,{"$f":"T('3 INCOME & EXPENSE'!D354)","v":""},{"$f":"'3 INCOME & EXPENSE'!E354","v":"00:00:00"},{"$f":"'3 INCOME & EXPENSE'!F354","v":0},{"$f":"'3 INCOME & EXPENSE'!G354","v":0},{"$f":"T('3 INCOME & EXPENSE'!H354)","v":""},{"$f":"T('3 INCOME & EXPENSE'!I354)","v":""},{"$f":"T('3 INCOME & EXPENSE'!J354)","v":""},{"$f":"T('3 INCOME & EXPENSE'!K354)","v":""},{"$f":"T('3 INCOME & EXPENSE'!L354)","v":""},{"$f":"'3 INCOME & EXPENSE'!M354","v":0},{"$f":"'3 INCOME & EXPENSE'!N354","v":0},{"$f":"'3 INCOME & EXPENSE'!O354","v":0}]
[null,{"$f":"T('3 INCOME & EXPENSE'!D355)","v":""},{"$f":"'3 INCOME & EXPENSE'!E355","v":"00:00:00"},{"$f":"'3 INCOME & EXPENSE'!F355","v":0},{"$f":"'3 INCOME & EXPENSE'!G355","v":0},{"$f":"T('3 INCOME & EXPENSE'!H355)","v":""},{"$f":"T('3 INCOME & EXPENSE'!I355)","v":""},{"$f":"T('3 INCOME & EXPENSE'!J355)","v":""},{"$f":"T('3 INCOME & EXPENSE'!K355)","v":""},{"$f":"T('3 INCOME & EXPENSE'!L355)","v":""},{"$f":"'3 INCOME & EXPENSE'!M355","v":0},{"$f":"'3 INCOME & EXPENSE'!N355","v":0},{"$f":"'3 INCOME & EXPENSE'!O355","v":0}]
[null,{"$f":"T('3 INCOME & EXPENSE'!D356)","v":""},{"$f":"'3 INCOME & EXPENSE'!E356","v":"00:00:00"},{"$f":"'3 INCOME & EXPENSE'!F356","v":0},{"$f":"'3 INCOME & EXPENSE'!G356","v":0},{"$f":"T('3 INCOME & EXPENSE'!H356)","v":""},{"$f":"T('3 INCOME & EXPENSE'!I356)","v":""},{"$f":"T('3 INCOME & EXPENSE'!J356)","v":""},{"$f":"T('3 INCOME & EXPENSE'!K356)","v":""},{"$f":"T('3 INCOME & EXPENSE'!L356)","v":""},{"$f":"'3 INCOME & EXPENSE'!M356","v":0},{"$f":"'3 INCOME & EXPENSE'!N356","v":0},{"$f":"'3 INCOME & EXPENSE'!O356","v":0}]
[null,{"$f":"T('3 INCOME & EXPENSE'!D357)","v":""},{"$f":"'3 INCOME & EXPENSE'!E357","v":"00:00:00"},{"$f":"'3 INCOME & EXPENSE'!F357","v":0},{"$f":"'3 INCOME & EXPENSE'!G357","v":0},{"$f":"T('3 INCOME & EXPENSE'!H357)","v":""},{"$f":"T('3 INCOME & EXPENSE'!I357)","v":""},{"$f":"T('3 INCOME & EXPENSE'!J357)","v":""},{"$f":"T('3 INCOME & EXPENSE'!K357)","v":""},{"$f":"T('3 INCOME & EXPENSE'!L357)","v":""},{"$f":"'3 INCOME & EXPENSE'!M357","v":0},{"$f":"'3 INCOME & EXPENSE'!N357","v":0},{"$f":"'3 INCOME & EXPENSE'!O357","v":0}]
[null,{"$f":"T('3 INCOME & EXPENSE'!D358)","v":""},{"$f":"'3 INCOME & EXPENSE'!E358","v":"00:00:00"},{"$f":"'3 INCOME & EXPENSE'!F358","v":0},{"$f":"'3 INCOME & EXPENSE'!G358","v":0},{"$f":"T('3 INCOME & EXPENSE'!H358)","v":""},{"$f":"T('3 INCOME & EXPENSE'!I358)","v":""},{"$f":"T('3 INCOME & EXPENSE'!J358)","v":""},{"$f":"T('3 INCOME & EXPENSE'!K358)","v":""},{"$f":"T('3 INCOME & EXPENSE'!L358)","v":""},{"$f":"'3 INCOME & EXPENSE'!M358","v":0},{"$f":"'3 INCOME & EXPENSE'!N358","v":0},{"$f":"'3 INCOME & EXPENSE'!O358","v":0}]
[null,{"$f":"T('3 INCOME & EXPENSE'!D359)","v":""},{"$f":"'3 INCOME & EXPENSE'!E359","v":"00:00:00"},{"$f":"'3 INCOME & EXPENSE'!F359","v":0},{"$f":"'3 INCOME & EXPENSE'!G359","v":0},{"$f":"T('3 INCOME & EXPENSE'!H359)","v":""},{"$f":"T('3 INCOME & EXPENSE'!I359)","v":""},{"$f":"T('3 INCOME & EXPENSE'!J359)","v":""},{"$f":"T('3 INCOME & EXPENSE'!K359)","v":""},{"$f":"T('3 INCOME & EXPENSE'!L359)","v":""},{"$f":"'3 INCOME & EXPENSE'!M359","v":0},{"$f":"'3 INCOME & EXPENSE'!N359","v":0},{"$f":"'3 INCOME & EXPENSE'!O359","v":0}]
[null,{"$f":"T('3 INCOME & EXPENSE'!D360)","v":""},{"$f":"'3 INCOME & EXPENSE'!E360","v":"00:00:00"},{"$f":"'3 INCOME & EXPENSE'!F360","v":0},{"$f":"'3 INCOME & EXPENSE'!G360","v":0},{"$f":"T('3 INCOME & EXPENSE'!H360)","v":""},{"$f":"T('3 INCOME & EXPENSE'!I360)","v":""},{"$f":"T('3 INCOME & EXPENSE'!J360)","v":""},{"$f":"T('3 INCOME & EXPENSE'!K360)","v":""},{"$f":"T('3 INCOME & EXPENSE'!L360)","v":""},{"$f":"'3 INCOME & EXPENSE'!M360","v":0},{"$f":"'3 INCOME & EXPENSE'!N360","v":0},{"$f":"'3 INCOME & EXPENSE'!O360","v":0}]
[null,{"$f":"T('3 INCOME & EXPENSE'!D361)","v":""},{"$f":"'3 INCOME & EXPENSE'!E361","v":"00:00:00"},{"$f":"'3 INCOME & EXPENSE'!F361","v":0},{"$f":"'3 INCOME & EXPENSE'!G361","v":0},{"$f":"T('3 INCOME & EXPENSE'!H361)","v":""},{"$f":"T('3 INCOME & EXPENSE'!I361)","v":""},{"$f":"T('3 INCOME & EXPENSE'!J361)","v":""},{"$f":"T('3 INCOME & EXPENSE'!K361)","v":""},{"$f":"T('3 INCOME & EXPENSE'!L361)","v":""},{"$f":"'3 INCOME & EXPENSE'!M361","v":0},{"$f":"'3 INCOME & EXPENSE'!N361","v":0},{"$f":"'3 INCOME & EXPENSE'!O361","v":0}]
[null,{"$f":"T('3 INCOME & EXPENSE'!D362)","v":""},{"$f":"'3 INCOME & EXPENSE'!E362","v":"00:00:00"},{"$f":"'3 INCOME & EXPENSE'!F362","v":0},{"$f":"'3 INCOME & EXPENSE'!G362","v":0},{"$f":"T('3 INCOME & EXPENSE'!H362)","v":""},{"$f":"T('3 INCOME & EXPENSE'!I362)","v":""},{"$f":"T('3 INCOME & EXPENSE'!J362)","v":""},{"$f":"T('3 INCOME & EXPENSE'!K362)","v":""},{"$f":"T('3 INCOME & EXPENSE'!L362)","v":""},{"$f":"'3 INCOME & EXPENSE'!M362","v":0},{"$f":"'3 INCOME & EXPENSE'!N362","v":0},{"$f":"'3 INCOME & EXPENSE'!O362","v":0}]
[null,{"$f":"T('3 INCOME & EXPENSE'!D363)","v":""},{"$f":"'3 INCOME & EXPENSE'!E363","v":"00:00:00"},{"$f":"'3 INCOME & EXPENSE'!F363","v":0},{"$f":"'3 INCOME & EXPENSE'!G363","v":0},{"$f":"T('3 INCOME & EXPENSE'!H363)","v":""},{"$f":"T('3 INCOME & EXPENSE'!I363)","v":""},{"$f":"T('3 INCOME & EXPENSE'!J363)","v":""},{"$f":"T('3 INCOME & EXPENSE'!K363)","v":""},{"$f":"T('3 INCOME & EXPENSE'!L363)","v":""},{"$f":"'3 INCOME & EXPENSE'!M363","v":0},{"$f":"'3 INCOME & EXPENSE'!N363","v":0},{"$f":"'3 INCOME & EXPENSE'!O363","v":0}]
[null,{"$f":"T('3 INCOME & EXPENSE'!D364)","v":""},{"$f":"'3 INCOME & EXPENSE'!E364","v":"00:00:00"},{"$f":"'3 INCOME & EXPENSE'!F364","v":0},{"$f":"'3 INCOME & EXPENSE'!G364","v":0},{"$f":"T('3 INCOME & EXPENSE'!H364)","v":""},{"$f":"T('3 INCOME & EXPENSE'!I364)","v":""},{"$f":"T('3 INCOME & EXPENSE'!J364)","v":""},{"$f":"T('3 INCOME & EXPENSE'!K364)","v":""},{"$f":"T('3 INCOME & EXPENSE'!L364)","v":""},{"$f":"'3 INCOME & EXPENSE'!M364","v":0},{"$f":"'3 INCOME & EXPENSE'!N364","v":0},{"$f":"'3 INCOME & EXPENSE'!O364","v":0}]
[null,{"$f":"T('3 INCOME & EXPENSE'!D365)","v":""},{"$f":"'3 INCOME & EXPENSE'!E365","v":"00:00:00"},{"$f":"'3 INCOME & EXPENSE'!F365","v":0},{"$f":"'3 INCOME & EXPENSE'!G365","v":0},{"$f":"T('3 INCOME & EXPENSE'!H365)","v":""},{"$f":"T('3 INCOME & EXPENSE'!I365)","v":""},{"$f":"T('3 INCOME & EXPENSE'!J365)","v":""},{"$f":"T('3 INCOME & EXPENSE'!K365)","v":""},{"$f":"T('3 INCOME & EXPENSE'!L365)","v":""},{"$f":"'3 INCOME & EXPENSE'!M365","v":0},{"$f":"'3 INCOME & EXPENSE'!N365","v":0},{"$f":"'3 INCOME & EXPENSE'!O365","v":0}]
[null,{"$f":"T('3 INCOME & EXPENSE'!D366)","v":""},{"$f":"'3 INCOME & EXPENSE'!E366","v":"00:00:00"},{"$f":"'3 INCOME & EXPENSE'!F366","v":0},{"$f":"'3 INCOME & EXPENSE'!G366","v":0},{"$f":"T('3 INCOME & EXPENSE'!H366)","v":""},{"$f":"T('3 INCOME & EXPENSE'!I366)","v":""},{"$f":"T('3 INCOME & EXPENSE'!J366)","v":""},{"$f":"T('3 INCOME & EXPENSE'!K366)","v":""},{"$f":"T('3 INCOME & EXPENSE'!L366)","v":""},{"$f":"'3 INCOME & EXPENSE'!M366","v":0},{"$f":"'3 INCOME & EXPENSE'!N366","v":0},{"$f":"'3 INCOME & EXPENSE'!O366","v":0}]
[null,{"$f":"T('3 INCOME & EXPENSE'!D367)","v":""},{"$f":"'3 INCOME & EXPENSE'!E367","v":"00:00:00"},{"$f":"'3 INCOME & EXPENSE'!F367","v":0},{"$f":"'3 INCOME & EXPENSE'!G367","v":0},{"$f":"T('3 INCOME & EXPENSE'!H367)","v":""},{"$f":"T('3 INCOME & EXPENSE'!I367)","v":""},{"$f":"T('3 INCOME & EXPENSE'!J367)","v":""},{"$f":"T('3 INCOME & EXPENSE'!K367)","v":""},{"$f":"T('3 INCOME & EXPENSE'!L367)","v":""},{"$f":"'3 INCOME & EXPENSE'!M367","v":0},{"$f":"'3 INCOME & EXPENSE'!N367","v":0},{"$f":"'3 INCOME & EXPENSE'!O367","v":0}]
[null,{"$f":"T('3 INCOME & EXPENSE'!D368)","v":""},{"$f":"'3 INCOME & EXPENSE'!E368","v":"00:00:00"},{"$f":"'3 INCOME & EXPENSE'!F368","v":0},{"$f":"'3 INCOME & EXPENSE'!G368","v":0},{"$f":"T('3 INCOME & EXPENSE'!H368)","v":""},{"$f":"T('3 INCOME & EXPENSE'!I368)","v":""},{"$f":"T('3 INCOME & EXPENSE'!J368)","v":""},{"$f":"T('3 INCOME & EXPENSE'!K368)","v":""},{"$f":"T('3 INCOME & EXPENSE'!L368)","v":""},{"$f":"'3 INCOME & EXPENSE'!M368","v":0},{"$f":"'3 INCOME & EXPENSE'!N368","v":0},{"$f":"'3 INCOME & EXPENSE'!O368","v":0}]
[null,{"$f":"T('3 INCOME & EXPENSE'!D369)","v":""},{"$f":"'3 INCOME & EXPENSE'!E369","v":"00:00:00"},{"$f":"'3 INCOME & EXPENSE'!F369","v":0},{"$f":"'3 INCOME & EXPENSE'!G369","v":0},{"$f":"T('3 INCOME & EXPENSE'!H369)","v":""},{"$f":"T('3 INCOME & EXPENSE'!I369)","v":""},{"$f":"T('3 INCOME & EXPENSE'!J369)","v":""},{"$f":"T('3 INCOME & EXPENSE'!K369)","v":""},{"$f":"T('3 INCOME & EXPENSE'!L369)","v":""},{"$f":"'3 INCOME & EXPENSE'!M369","v":0},{"$f":"'3 INCOME & EXPENSE'!N369","v":0},{"$f":"'3 INCOME & EXPENSE'!O369","v":0}]
[null,{"$f":"T('3 INCOME & EXPENSE'!D370)","v":""},{"$f":"'3 INCOME & EXPENSE'!E370","v":"00:00:00"},{"$f":"'3 INCOME & EXPENSE'!F370","v":0},{"$f":"'3 INCOME & EXPENSE'!G370","v":0},{"$f":"T('3 INCOME & EXPENSE'!H370)","v":""},{"$f":"T('3 INCOME & EXPENSE'!I370)","v":""},{"$f":"T('3 INCOME & EXPENSE'!J370)","v":""},{"$f":"T('3 INCOME & EXPENSE'!K370)","v":""},{"$f":"T('3 INCOME & EXPENSE'!L370)","v":""},{"$f":"'3 INCOME & EXPENSE'!M370","v":0},{"$f":"'3 INCOME & EXPENSE'!N370","v":0},{"$f":"'3 INCOME & EXPENSE'!O370","v":0}]
[null,{"$f":"T('3 INCOME & EXPENSE'!D371)","v":""},{"$f":"'3 INCOME & EXPENSE'!E371","v":"00:00:00"},{"$f":"'3 INCOME & EXPENSE'!F371","v":0},{"$f":"'3 INCOME & EXPENSE'!G371","v":0},{"$f":"T('3 INCOME & EXPENSE'!H371)","v":""},{"$f":"T('3 INCOME & EXPENSE'!I371)","v":""},{"$f":"T('3 INCOME & EXPENSE'!J371)","v":""},{"$f":"T('3 INCOME & EXPENSE'!K371)","v":""},{"$f":"T('3 INCOME & EXPENSE'!L371)","v":""},{"$f":"'3 INCOME & EXPENSE'!M371","v":0},{"$f":"'3 INCOME & EXPENSE'!N371","v":0},{"$f":"'3 INCOME & EXPENSE'!O371","v":0}]
[null,{"$f":"T('3 INCOME & EXPENSE'!D372)","v":""},{"$f":"'3 INCOME & EXPENSE'!E372","v":"00:00:00"},{"$f":"'3 INCOME & EXPENSE'!F372","v":0},{"$f":"'3 INCOME & EXPENSE'!G372","v":0},{"$f":"T('3 INCOME & EXPENSE'!H372)","v":""},{"$f":"T('3 INCOME & EXPENSE'!I372)","v":""},{"$f":"T('3 INCOME & EXPENSE'!J372)","v":""},{"$f":"T('3 INCOME & EXPENSE'!K372)","v":""},{"$f":"T('3 INCOME & EXPENSE'!L372)","v":""},{"$f":"'3 INCOME & EXPENSE'!M372","v":0},{"$f":"'3 INCOME & EXPENSE'!N372","v":0},{"$f":"'3 INCOME & EXPENSE'!O372","v":0}]
[null,{"$f":"T('3 INCOME & EXPENSE'!D373)","v":""},{"$f":"'3 INCOME & EXPENSE'!E373","v":"00:00:00"},{"$f":"'3 INCOME & EXPENSE'!F373","v":0},{"$f":"'3 INCOME & EXPENSE'!G373","v":0},{"$f":"T('3 INCOME & EXPENSE'!H373)","v":""},{"$f":"T('3 INCOME & EXPENSE'!I373)","v":""},{"$f":"T('3 INCOME & EXPENSE'!J373)","v":""},{"$f":"T('3 INCOME & EXPENSE'!K373)","v":""},{"$f":"T('3 INCOME & EXPENSE'!L373)","v":""},{"$f":"'3 INCOME & EXPENSE'!M373","v":0},{"$f":"'3 INCOME & EXPENSE'!N373","v":0},{"$f":"'3 INCOME & EXPENSE'!O373","v":0}]
[null,{"$f":"T('3 INCOME & EXPENSE'!D374)","v":""},{"$f":"'3 INCOME & EXPENSE'!E374","v":"00:00:00"},{"$f":"'3 INCOME & EXPENSE'!F374","v":0},{"$f":"'3 INCOME & EXPENSE'!G374","v":0},{"$f":"T('3 INCOME & EXPENSE'!H374)","v":""},{"$f":"T('3 INCOME & EXPENSE'!I374)","v":""},{"$f":"T('3 INCOME & EXPENSE'!J374)","v":""},{"$f":"T('3 INCOME & EXPENSE'!K374)","v":""},{"$f":"T('3 INCOME & EXPENSE'!L374)","v":""},{"$f":"'3 INCOME & EXPENSE'!M374","v":0},{"$f":"'3 INCOME & EXPENSE'!N374","v":0},{"$f":"'3 INCOME & EXPENSE'!O374","v":0}]
[null,{"$f":"T('3 INCOME & EXPENSE'!D375)","v":""},{"$f":"'3 INCOME & EXPENSE'!E375","v":"00:00:00"},{"$f":"'3 INCOME & EXPENSE'!F375","v":0},{"$f":"'3 INCOME & EXPENSE'!G375","v":0},{"$f":"T('3 INCOME & EXPENSE'!H375)","v":""},{"$f":"T('3 INCOME & EXPENSE'!I375)","v":""},{"$f":"T('3 INCOME & EXPENSE'!J375)","v":""},{"$f":"T('3 INCOME & EXPENSE'!K375)","v":""},{"$f":"T('3 INCOME & EXPENSE'!L375)","v":""},{"$f":"'3 INCOME & EXPENSE'!M375","v":0},{"$f":"'3 INCOME & EXPENSE'!N375","v":0},{"$f":"'3 INCOME & EXPENSE'!O375","v":0}]
[null,{"$f":"T('3 INCOME & EXPENSE'!D376)","v":""},{"$f":"'3 INCOME & EXPENSE'!E376","v":"00:00:00"},{"$f":"'3 INCOME & EXPENSE'!F376","v":0},{"$f":"'3 INCOME & EXPENSE'!G376","v":0},{"$f":"T('3 INCOME & EXPENSE'!H376)","v":""},{"$f":"T('3 INCOME & EXPENSE'!I376)","v":""},{"$f":"T('3 INCOME & EXPENSE'!J376)","v":""},{"$f":"T('3 INCOME & EXPENSE'!K376)","v":""},{"$f":"T('3 INCOME & EXPENSE'!L376)","v":""},{"$f":"'3 INCOME & EXPENSE'!M376","v":0},{"$f":"'3 INCOME & EXPENSE'!N376","v":0},{"$f":"'3 INCOME & EXPENSE'!O376","v":0}]
[null,{"$f":"T('3 INCOME & EXPENSE'!D377)","v":""},{"$f":"'3 INCOME & EXPENSE'!E377","v":"00:00:00"},{"$f":"'3 INCOME & EXPENSE'!F377","v":0},{"$f":"'3 INCOME & EXPENSE'!G377","v":0},{"$f":"T('3 INCOME & EXPENSE'!H377)","v":""},{"$f":"T('3 INCOME & EXPENSE'!I377)","v":""},{"$f":"T('3 INCOME & EXPENSE'!J377)","v":""},{"$f":"T('3 INCOME & EXPENSE'!K377)","v":""},{"$f":"T('3 INCOME & EXPENSE'!L377)","v":""},{"$f":"'3 INCOME & EXPENSE'!M377","v":0},{"$f":"'3 INCOME & EXPENSE'!N377","v":0},{"$f":"'3 INCOME & EXPENSE'!O377","v":0}]
[null,{"$f":"T('3 INCOME & EXPENSE'!D378)","v":""},{"$f":"'3 INCOME & EXPENSE'!E378","v":"00:00:00"},{"$f":"'3 INCOME & EXPENSE'!F378","v":0},{"$f":"'3 INCOME & EXPENSE'!G378","v":0},{"$f":"T('3 INCOME & EXPENSE'!H378)","v":""},{"$f":"T('3 INCOME & EXPENSE'!I378)","v":""},{"$f":"T('3 INCOME & EXPENSE'!J378)","v":""},{"$f":"T('3 INCOME & EXPENSE'!K378)","v":""},{"$f":"T('3 INCOME & EXPENSE'!L378)","v":""},{"$f":"'3 INCOME & EXPENSE'!M378","v":0},{"$f":"'3 INCOME & EXPENSE'!N378","v":0},{"$f":"'3 INCOME & EXPENSE'!O378","v":0}]
[null,{"$f":"T('3 INCOME & EXPENSE'!D379)","v":""},{"$f":"'3 INCOME & EXPENSE'!E379","v":"00:00:00"},{"$f":"'3 INCOME & EXPENSE'!F379","v":0},{"$f":"'3 INCOME & EXPENSE'!G379","v":0},{"$f":"T('3 INCOME & EXPENSE'!H379)","v":""},{"$f":"T('3 INCOME & EXPENSE'!I379)","v":""},{"$f":"T('3 INCOME & EXPENSE'!J379)","v":""},{"$f":"T('3 INCOME & EXPENSE'!K379)","v":""},{"$f":"T('3 INCOME & EXPENSE'!L379)","v":""},{"$f":"'3 INCOME & EXPENSE'!M379","v":0},{"$f":"'3 INCOME & EXPENSE'!N379","v":0},{"$f":"'3 INCOME & EXPENSE'!O379","v":0}]
[null,{"$f":"T('3 INCOME & EXPENSE'!D380)","v":""},{"$f":"'3 INCOME & EXPENSE'!E380","v":"00:00:00"},{"$f":"'3 INCOME & EXPENSE'!F380","v":0},{"$f":"'3 INCOME & EXPENSE'!G380","v":0},{"$f":"T('3 INCOME & EXPENSE'!H380)","v":""},{"$f":"T('3 INCOME & EXPENSE'!I380)","v":""},{"$f":"T('3 INCOME & EXPENSE'!J380)","v":""},{"$f":"T('3 INCOME & EXPENSE'!K380)","v":""},{"$f":"T('3 INCOME & EXPENSE'!L380)","v":""},{"$f":"'3 INCOME & EXPENSE'!M380","v":0},{"$f":"'3 INCOME & EXPENSE'!N380","v":0},{"$f":"'3 INCOME & EXPENSE'!O380","v":0}]
[null,{"$f":"T('3 INCOME & EXPENSE'!D381)","v":""},{"$f":"'3 INCOME & EXPENSE'!E381","v":"00:00:00"},{"$f":"'3 INCOME & EXPENSE'!F381","v":0},{"$f":"'3 INCOME & EXPENSE'!G381","v":0},{"$f":"T('3 INCOME & EXPENSE'!H381)","v":""},{"$f":"T('3 INCOME & EXPENSE'!I381)","v":""},{"$f":"T('3 INCOME & EXPENSE'!J381)","v":""},{"$f":"T('3 INCOME & EXPENSE'!K381)","v":""},{"$f":"T('3 INCOME & EXPENSE'!L381)","v":""},{"$f":"'3 INCOME & EXPENSE'!M381","v":0},{"$f":"'3 INCOME & EXPENSE'!N381","v":0},{"$f":"'3 INCOME & EXPENSE'!O381","v":0}]
[null,{"$f":"T('3 INCOME & EXPENSE'!D382)","v":""},{"$f":"'3 INCOME & EXPENSE'!E382","v":"00:00:00"},{"$f":"'3 INCOME & EXPENSE'!F382","v":0},{"$f":"'3 INCOME & EXPENSE'!G382","v":0},{"$f":"T('3 INCOME & EXPENSE'!H382)","v":""},{"$f":"T('3 INCOME & EXPENSE'!I382)","v":""},{"$f":"T('3 INCOME & EXPENSE'!J382)","v":""},{"$f":"T('3 INCOME & EXPENSE'!K382)","v":""},{"$f":"T('3 INCOME & EXPENSE'!L382)","v":""},{"$f":"'3 INCOME & EXPENSE'!M382","v":0},{"$f":"'3 INCOME & EXPENSE'!N382","v":0},{"$f":"'3 INCOME & EXPENSE'!O382","v":0}]
[null,{"$f":"T('3 INCOME & EXPENSE'!D383)","v":""},{"$f":"'3 INCOME & EXPENSE'!E383","v":"00:00:00"},{"$f":"'3 INCOME & EXPENSE'!F383","v":0},{"$f":"'3 INCOME & EXPENSE'!G383","v":0},{"$f":"T('3 INCOME & EXPENSE'!H383)","v":""},{"$f":"T('3 INCOME & EXPENSE'!I383)","v":""},{"$f":"T('3 INCOME & EXPENSE'!J383)","v":""},{"$f":"T('3 INCOME & EXPENSE'!K383)","v":""},{"$f":"T('3 INCOME & EXPENSE'!L383)","v":""},{"$f":"'3 INCOME & EXPENSE'!M383","v":0},{"$f":"'3 INCOME & EXPENSE'!N383","v":0},{"$f":"'3 INCOME & EXPENSE'!O383","v":0}]
[null,{"$f":"T('3 INCOME & EXPENSE'!D384)","v":""},{"$f":"'3 INCOME & EXPENSE'!E384","v":"00:00:00"},{"$f":"'3 INCOME & EXPENSE'!F384","v":0},{"$f":"'3 INCOME & EXPENSE'!G384","v":0},{"$f":"T('3 INCOME & EXPENSE'!H384)","v":""},{"$f":"T('3 INCOME & EXPENSE'!I384)","v":""},{"$f":"T('3 INCOME & EXPENSE'!J384)","v":""},{"$f":"T('3 INCOME & EXPENSE'!K384)","v":""},{"$f":"T('3 INCOME & EXPENSE'!L384)","v":""},{"$f":"'3 INCOME & EXPENSE'!M384","v":0},{"$f":"'3 INCOME & EXPENSE'!N384","v":0},{"$f":"'3 INCOME & EXPENSE'!O384","v":0}]
[null,{"$f":"T('3 INCOME & EXPENSE'!D385)","v":""},{"$f":"'3 INCOME & EXPENSE'!E385","v":"00:00:00"},{"$f":"'3 INCOME & EXPENSE'!F385","v":0},{"$f":"'3 INCOME & EXPENSE'!G385","v":0},{"$f":"T('3 INCOME & EXPENSE'!H385)","v":""},{"$f":"T('3 INCOME & EXPENSE'!I385)","v":""},{"$f":"T('3 INCOME & EXPENSE'!J385)","v":""},{"$f":"T('3 INCOME & EXPENSE'!K385)","v":""},{"$f":"T('3 INCOME & EXPENSE'!L385)","v":""},{"$f":"'3 INCOME & EXPENSE'!M385","v":0},{"$f":"'3 INCOME & EXPENSE'!N385","v":0},{"$f":"'3 INCOME & EXPENSE'!O385","v":0}]
[null,{"$f":"T('3 INCOME & EXPENSE'!D386)","v":""},{"$f":"'3 INCOME & EXPENSE'!E386","v":"00:00:00"},{"$f":"'3 INCOME & EXPENSE'!F386","v":0},{"$f":"'3 INCOME & EXPENSE'!G386","v":0},{"$f":"T('3 INCOME & EXPENSE'!H386)","v":""},{"$f":"T('3 INCOME & EXPENSE'!I386)","v":""},{"$f":"T('3 INCOME & EXPENSE'!J386)","v":""},{"$f":"T('3 INCOME & EXPENSE'!K386)","v":""},{"$f":"T('3 INCOME & EXPENSE'!L386)","v":""},{"$f":"'3 INCOME & EXPENSE'!M386","v":0},{"$f":"'3 INCOME & EXPENSE'!N386","v":0},{"$f":"'3 INCOME & EXPENSE'!O386","v":0}]
[null,{"$f":"T('3 INCOME & EXPENSE'!D387)","v":""},{"$f":"'3 INCOME & EXPENSE'!E387","v":"00:00:00"},{"$f":"'3 INCOME & EXPENSE'!F387","v":0},{"$f":"'3 INCOME & EXPENSE'!G387","v":0},{"$f":"T('3 INCOME & EXPENSE'!H387)","v":""},{"$f":"T('3 INCOME & EXPENSE'!I387)","v":""},{"$f":"T('3 INCOME & EXPENSE'!J387)","v":""},{"$f":"T('3 INCOME & EXPENSE'!K387)","v":""},{"$f":"T('3 INCOME & EXPENSE'!L387)","v":""},{"$f":"'3 INCOME & EXPENSE'!M387","v":0},{"$f":"'3 INCOME & EXPENSE'!N387","v":0},{"$f":"'3 INCOME & EXPENSE'!O387","v":0}]
[null,{"$f":"T('3 INCOME & EXPENSE'!D388)","v":""},{"$f":"'3 INCOME & EXPENSE'!E388","v":"00:00:00"},{"$f":"'3 INCOME & EXPENSE'!F388","v":0},{"$f":"'3 INCOME & EXPENSE'!G388","v":0},{"$f":"T('3 INCOME & EXPENSE'!H388)","v":""},{"$f":"T('3 INCOME & EXPENSE'!I388)","v":""},{"$f":"T('3 INCOME & EXPENSE'!J388)","v":""},{"$f":"T('3 INCOME & EXPENSE'!K388)","v":""},{"$f":"T('3 INCOME & EXPENSE'!L388)","v":""},{"$f":"'3 INCOME & EXPENSE'!M388","v":0},{"$f":"'3 INCOME & EXPENSE'!N388","v":0},{"$f":"'3 INCOME & EXPENSE'!O388","v":0}]
[null,{"$f":"T('3 INCOME & EXPENSE'!D389)","v":""},{"$f":"'3 INCOME & EXPENSE'!E389","v":"00:00:00"},{"$f":"'3 INCOME & EXPENSE'!F389","v":0},{"$f":"'3 INCOME & EXPENSE'!G389","v":0},{"$f":"T('3 INCOME & EXPENSE'!H389)","v":""},{"$f":"T('3 INCOME & EXPENSE'!I389)","v":""},{"$f":"T('3 INCOME & EXPENSE'!J389)","v":""},{"$f":"T('3 INCOME & EXPENSE'!K389)","v":""},{"$f":"T('3 INCOME & EXPENSE'!L389)","v":""},{"$f":"'3 INCOME & EXPENSE'!M389","v":0},{"$f":"'3 INCOME & EXPENSE'!N389","v":0},{"$f":"'3 INCOME & EXPENSE'!O389","v":0}]
[null,{"$f":"T('3 INCOME & EXPENSE'!D390)","v":""},{"$f":"'3 INCOME & EXPENSE'!E390","v":"00:00:00"},{"$f":"'3 INCOME & EXPENSE'!F390","v":0},{"$f":"'3 INCOME & EXPENSE'!G390","v":0},{"$f":"T('3 INCOME & EXPENSE'!H390)","v":""},{"$f":"T('3 INCOME & EXPENSE'!I390)","v":""},{"$f":"T('3 INCOME & EXPENSE'!J390)","v":""},{"$f":"T('3 INCOME & EXPENSE'!K390)","v":""},{"$f":"T('3 INCOME & EXPENSE'!L390)","v":""},{"$f":"'3 INCOME & EXPENSE'!M390","v":0},{"$f":"'3 INCOME & EXPENSE'!N390","v":0},{"$f":"'3 INCOME & EXPENSE'!O390","v":0}]
[null,{"$f":"T('3 INCOME & EXPENSE'!D391)","v":""},{"$f":"'3 INCOME & EXPENSE'!E391","v":"00:00:00"},{"$f":"'3 INCOME & EXPENSE'!F391","v":0},{"$f":"'3 INCOME & EXPENSE'!G391","v":0},{"$f":"T('3 INCOME & EXPENSE'!H391)","v":""},{"$f":"T('3 INCOME & EXPENSE'!I391)","v":""},{"$f":"T('3 INCOME & EXPENSE'!J391)","v":""},{"$f":"T('3 INCOME & EXPENSE'!K391)","v":""},{"$f":"T('3 INCOME & EXPENSE'!L391)","v":""},{"$f":"'3 INCOME & EXPENSE'!M391","v":0},{"$f":"'3 INCOME & EXPENSE'!N391","v":0},{"$f":"'3 INCOME & EXPENSE'!O391","v":0}]
[null,{"$f":"T('3 INCOME & EXPENSE'!D392)","v":""},{"$f":"'3 INCOME & EXPENSE'!E392","v":"00:00:00"},{"$f":"'3 INCOME & EXPENSE'!F392","v":0},{"$f":"'3 INCOME & EXPENSE'!G392","v":0},{"$f":"T('3 INCOME & EXPENSE'!H392)","v":""},{"$f":"T('3 INCOME & EXPENSE'!I392)","v":""},{"$f":"T('3 INCOME & EXPENSE'!J392)","v":""},{"$f":"T('3 INCOME & EXPENSE'!K392)","v":""},{"$f":"T('3 INCOME & EXPENSE'!L392)","v":""},{"$f":"'3 INCOME & EXPENSE'!M392","v":0},{"$f":"'3 INCOME & EXPENSE'!N392","v":0},{"$f":"'3 INCOME & EXPENSE'!O392","v":0}]
[null,{"$f":"T('3 INCOME & EXPENSE'!D393)","v":""},{"$f":"'3 INCOME & EXPENSE'!E393","v":"00:00:00"},{"$f":"'3 INCOME & EXPENSE'!F393","v":0},{"$f":"'3 INCOME & EXPENSE'!G393","v":0},{"$f":"T('3 INCOME & EXPENSE'!H393)","v":""},{"$f":"T('3 INCOME & EXPENSE'!I393)","v":""},{"$f":"T('3 INCOME & EXPENSE'!J393)","v":""},{"$f":"T('3 INCOME & EXPENSE'!K393)","v":""},{"$f":"T('3 INCOME & EXPENSE'!L393)","v":""},{"$f":"'3 INCOME & EXPENSE'!M393","v":0},{"$f":"'3 INCOME & EXPENSE'!N393","v":0},{"$f":"'3 INCOME & EXPENSE'!O393","v":0}]
[null,{"$f":"T('3 INCOME & EXPENSE'!D394)","v":""},{"$f":"'3 INCOME & EXPENSE'!E394","v":"00:00:00"},{"$f":"'3 INCOME & EXPENSE'!F394","v":0},{"$f":"'3 INCOME & EXPENSE'!G394","v":0},{"$f":"T('3 INCOME & EXPENSE'!H394)","v":""},{"$f":"T('3 INCOME & EXPENSE'!I394)","v":""},{"$f":"T('3 INCOME & EXPENSE'!J394)","v":""},{"$f":"T('3 INCOME & EXPENSE'!K394)","v":""},{"$f":"T('3 INCOME & EXPENSE'!L394)","v":""},{"$f":"'3 INCOME & EXPENSE'!M394","v":0},{"$f":"'3 INCOME & EXPENSE'!N394","v":0},{"$f":"'3 INCOME & EXPENSE'!O394","v":0}]
[null,{"$f":"T('3 INCOME & EXPENSE'!D395)","v":""},{"$f":"'3 INCOME & EXPENSE'!E395","v":"00:00:00"},{"$f":"'3 INCOME & EXPENSE'!F395","v":0},{"$f":"'3 INCOME & EXPENSE'!G395","v":0},{"$f":"T('3 INCOME & EXPENSE'!H395)","v":""},{"$f":"T('3 INCOME & EXPENSE'!I395)","v":""},{"$f":"T('3 INCOME & EXPENSE'!J395)","v":""},{"$f":"T('3 INCOME & EXPENSE'!K395)","v":""},{"$f":"T('3 INCOME & EXPENSE'!L395)","v":""},{"$f":"'3 INCOME & EXPENSE'!M395","v":0},{"$f":"'3 INCOME & EXPENSE'!N395","v":0},{"$f":"'3 INCOME & EXPENSE'!O395","v":0}]
[null,{"$f":"T('3 INCOME & EXPENSE'!D396)","v":""},{"$f":"'3 INCOME & EXPENSE'!E396","v":"00:00:00"},{"$f":"'3 INCOME & EXPENSE'!F396","v":0},{"$f":"'3 INCOME & EXPENSE'!G396","v":0},{"$f":"T('3 INCOME & EXPENSE'!H396)","v":""},{"$f":"T('3 INCOME & EXPENSE'!I396)","v":""},{"$f":"T('3 INCOME & EXPENSE'!J396)","v":""},{"$f":"T('3 INCOME & EXPENSE'!K396)","v":""},{"$f":"T('3 INCOME & EXPENSE'!L396)","v":""},{"$f":"'3 INCOME & EXPENSE'!M396","v":0},{"$f":"'3 INCOME & EXPENSE'!N396","v":0},{"$f":"'3 INCOME & EXPENSE'!O396","v":0}]
[null,{"$f":"T('3 INCOME & EXPENSE'!D397)","v":""},{"$f":"'3 INCOME & EXPENSE'!E397","v":"00:00:00"},{"$f":"'3 INCOME & EXPENSE'!F397","v":0},{"$f":"'3 INCOME & EXPENSE'!G397","v":0},{"$f":"T('3 INCOME & EXPENSE'!H397)","v":""},{"$f":"T('3 INCOME & EXPENSE'!I397)","v":""},{"$f":"T('3 INCOME & EXPENSE'!J397)","v":""},{"$f":"T('3 INCOME & EXPENSE'!K397)","v":""},{"$f":"T('3 INCOME & EXPENSE'!L397)","v":""},{"$f":"'3 INCOME & EXPENSE'!M397","v":0},{"$f":"'3 INCOME & EXPENSE'!N397","v":0},{"$f":"'3 INCOME & EXPENSE'!O397","v":0}]
[null,{"$f":"T('3 INCOME & EXPENSE'!D398)","v":""},{"$f":"'3 INCOME & EXPENSE'!E398","v":"00:00:00"},{"$f":"'3 INCOME & EXPENSE'!F398","v":0},{"$f":"'3 INCOME & EXPENSE'!G398","v":0},{"$f":"T('3 INCOME & EXPENSE'!H398)","v":""},{"$f":"T('3 INCOME & EXPENSE'!I398)","v":""},{"$f":"T('3 INCOME & EXPENSE'!J398)","v":""},{"$f":"T('3 INCOME & EXPENSE'!K398)","v":""},{"$f":"T('3 INCOME & EXPENSE'!L398)","v":""},{"$f":"'3 INCOME & EXPENSE'!M398","v":0},{"$f":"'3 INCOME & EXPENSE'!N398","v":0},{"$f":"'3 INCOME & EXPENSE'!O398","v":0}]
[null,{"$f":"T('3 INCOME & EXPENSE'!D399)","v":""},{"$f":"'3 INCOME & EXPENSE'!E399","v":"00:00:00"},{"$f":"'3 INCOME & EXPENSE'!F399","v":0},{"$f":"'3 INCOME & EXPENSE'!G399","v":0},{"$f":"T('3 INCOME & EXPENSE'!H399)","v":""},{"$f":"T('3 INCOME & EXPENSE'!I399)","v":""},{"$f":"T('3 INCOME & EXPENSE'!J399)","v":""},{"$f":"T('3 INCOME & EXPENSE'!K399)","v":""},{"$f":"T('3 INCOME & EXPENSE'!L399)","v":""},{"$f":"'3 INCOME & EXPENSE'!M399","v":0},{"$f":"'3 INCOME & EXPENSE'!N399","v":0},{"$f":"'3 INCOME & EXPENSE'!O399","v":0}]
[null,{"$f":"T('3 INCOME & EXPENSE'!D400)","v":""},{"$f":"'3 INCOME & EXPENSE'!E400","v":"00:00:00"},{"$f":"'3 INCOME & EXPENSE'!F400","v":0},{"$f":"'3 INCOME & EXPENSE'!G400","v":0},{"$f":"T('3 INCOME & EXPENSE'!H400)","v":""},{"$f":"T('3 INCOME & EXPENSE'!I400)","v":""},{"$f":"T('3 INCOME & EXPENSE'!J400)","v":""},{"$f":"T('3 INCOME & EXPENSE'!K400)","v":""},{"$f":"T('3 INCOME & EXPENSE'!L400)","v":""},{"$f":"'3 INCOME & EXPENSE'!M400","v":0},{"$f":"'3 INCOME & EXPENSE'!N400","v":0},{"$f":"'3 INCOME & EXPENSE'!O400","v":0}]
[null,{"$f":"T('3 INCOME & EXPENSE'!D401)","v":""},{"$f":"'3 INCOME & EXPENSE'!E401","v":"00:00:00"},{"$f":"'3 INCOME & EXPENSE'!F401","v":0},{"$f":"'3 INCOME & EXPENSE'!G401","v":0},{"$f":"T('3 INCOME & EXPENSE'!H401)","v":""},{"$f":"T('3 INCOME & EXPENSE'!I401)","v":""},{"$f":"T('3 INCOME & EXPENSE'!J401)","v":""},{"$f":"T('3 INCOME & EXPENSE'!K401)","v":""},{"$f":"T('3 INCOME & EXPENSE'!L401)","v":""},{"$f":"'3 INCOME & EXPENSE'!M401","v":0},{"$f":"'3 INCOME & EXPENSE'!N401","v":0},{"$f":"'3 INCOME & EXPENSE'!O401","v":0}]
[null,{"$f":"T('3 INCOME & EXPENSE'!D402)","v":""},{"$f":"'3 INCOME & EXPENSE'!E402","v":"00:00:00"},{"$f":"'3 INCOME & EXPENSE'!F402","v":0},{"$f":"'3 INCOME & EXPENSE'!G402","v":0},{"$f":"T('3 INCOME & EXPENSE'!H402)","v":""},{"$f":"T('3 INCOME & EXPENSE'!I402)","v":""},{"$f":"T('3 INCOME & EXPENSE'!J402)","v":""},{"$f":"T('3 INCOME & EXPENSE'!K402)","v":""},{"$f":"T('3 INCOME & EXPENSE'!L402)","v":""},{"$f":"'3 INCOME & EXPENSE'!M402","v":0},{"$f":"'3 INCOME & EXPENSE'!N402","v":0},{"$f":"'3 INCOME & EXPENSE'!O402","v":0}]
[null,{"$f":"T('3 INCOME & EXPENSE'!D403)","v":""},{"$f":"'3 INCOME & EXPENSE'!E403","v":"00:00:00"},{"$f":"'3 INCOME & EXPENSE'!F403","v":0},{"$f":"'3 INCOME & EXPENSE'!G403","v":0},{"$f":"T('3 INCOME & EXPENSE'!H403)","v":""},{"$f":"T('3 INCOME & EXPENSE'!I403)","v":""},{"$f":"T('3 INCOME & EXPENSE'!J403)","v":""},{"$f":"T('3 INCOME & EXPENSE'!K403)","v":""},{"$f":"T('3 INCOME & EXPENSE'!L403)","v":""},{"$f":"'3 INCOME & EXPENSE'!M403","v":0},{"$f":"'3 INCOME & EXPENSE'!N403","v":0},{"$f":"'3 INCOME & EXPENSE'!O403","v":0}]
[null,{"$f":"T('3 INCOME & EXPENSE'!D404)","v":""},{"$f":"'3 INCOME & EXPENSE'!E404","v":"00:00:00"},{"$f":"'3 INCOME & EXPENSE'!F404","v":0},{"$f":"'3 INCOME & EXPENSE'!G404","v":0},{"$f":"T('3 INCOME & EXPENSE'!H404)","v":""},{"$f":"T('3 INCOME & EXPENSE'!I404)","v":""},{"$f":"T('3 INCOME & EXPENSE'!J404)","v":""},{"$f":"T('3 INCOME & EXPENSE'!K404)","v":""},{"$f":"T('3 INCOME & EXPENSE'!L404)","v":""},{"$f":"'3 INCOME & EXPENSE'!M404","v":0},{"$f":"'3 INCOME & EXPENSE'!N404","v":0},{"$f":"'3 INCOME & EXPENSE'!O404","v":0}]
[null,{"$f":"T('3 INCOME & EXPENSE'!D405)","v":""},{"$f":"'3 INCOME & EXPENSE'!E405","v":"00:00:00"},{"$f":"'3 INCOME & EXPENSE'!F405","v":0},{"$f":"'3 INCOME & EXPENSE'!G405","v":0},{"$f":"T('3 INCOME & EXPENSE'!H405)","v":""},{"$f":"T('3 INCOME & EXPENSE'!I405)","v":""},{"$f":"T('3 INCOME & EXPENSE'!J405)","v":""},{"$f":"T('3 INCOME & EXPENSE'!K405)","v":""},{"$f":"T('3 INCOME & EXPENSE'!L405)","v":""},{"$f":"'3 INCOME & EXPENSE'!M405","v":0},{"$f":"'3 INCOME & EXPENSE'!N405","v":0},{"$f":"'3 INCOME & EXPENSE'!O405","v":0}]
[null,{"$f":"T('3 INCOME & EXPENSE'!D406)","v":""},{"$f":"'3 INCOME & EXPENSE'!E406","v":"00:00:00"},{"$f":"'3 INCOME & EXPENSE'!F406","v":0},{"$f":"'3 INCOME & EXPENSE'!G406","v":0},{"$f":"T('3 INCOME & EXPENSE'!H406)","v":""},{"$f":"T('3 INCOME & EXPENSE'!I406)","v":""},{"$f":"T('3 INCOME & EXPENSE'!J406)","v":""},{"$f":"T('3 INCOME & EXPENSE'!K406)","v":""},{"$f":"T('3 INCOME & EXPENSE'!L406)","v":""},{"$f":"'3 INCOME & EXPENSE'!M406","v":0},{"$f":"'3 INCOME & EXPENSE'!N406","v":0},{"$f":"'3 INCOME & EXPENSE'!O406","v":0}]
[null,{"$f":"T('3 INCOME & EXPENSE'!D407)","v":""},{"$f":"'3 INCOME & EXPENSE'!E407","v":"00:00:00"},{"$f":"'3 INCOME & EXPENSE'!F407","v":0},{"$f":"'3 INCOME & EXPENSE'!G407","v":0},{"$f":"T('3 INCOME & EXPENSE'!H407)","v":""},{"$f":"T('3 INCOME & EXPENSE'!I407)","v":""},{"$f":"T('3 INCOME & EXPENSE'!J407)","v":""},{"$f":"T('3 INCOME & EXPENSE'!K407)","v":""},{"$f":"T('3 INCOME & EXPENSE'!L407)","v":""},{"$f":"'3 INCOME & EXPENSE'!M407","v":0},{"$f":"'3 INCOME & EXPENSE'!N407","v":0},{"$f":"'3 INCOME & EXPENSE'!O407","v":0}]
[null,{"$f":"T('3 INCOME & EXPENSE'!D408)","v":""},{"$f":"'3 INCOME & EXPENSE'!E408","v":"00:00:00"},{"$f":"'3 INCOME & EXPENSE'!F408","v":0},{"$f":"'3 INCOME & EXPENSE'!G408","v":0},{"$f":"T('3 INCOME & EXPENSE'!H408)","v":""},{"$f":"T('3 INCOME & EXPENSE'!I408)","v":""},{"$f":"T('3 INCOME & EXPENSE'!J408)","v":""},{"$f":"T('3 INCOME & EXPENSE'!K408)","v":""},{"$f":"T('3 INCOME & EXPENSE'!L408)","v":""},{"$f":"'3 INCOME & EXPENSE'!M408","v":0},{"$f":"'3 INCOME & EXPENSE'!N408","v":0},{"$f":"'3 INCOME & EXPENSE'!O408","v":0}]
[null,{"$f":"T('3 INCOME & EXPENSE'!D409)","v":""},{"$f":"'3 INCOME & EXPENSE'!E409","v":"00:00:00"},{"$f":"'3 INCOME & EXPENSE'!F409","v":0},{"$f":"'3 INCOME & EXPENSE'!G409","v":0},{"$f":"T('3 INCOME & EXPENSE'!H409)","v":""},{"$f":"T('3 INCOME & EXPENSE'!I409)","v":""},{"$f":"T('3 INCOME & EXPENSE'!J409)","v":""},{"$f":"T('3 INCOME & EXPENSE'!K409)","v":""},{"$f":"T('3 INCOME & EXPENSE'!L409)","v":""},{"$f":"'3 INCOME & EXPENSE'!M409","v":0},{"$f":"'3 INCOME & EXPENSE'!N409","v":0},{"$f":"'3 INCOME & EXPENSE'!O409","v":0}]
[null,{"$f":"T('3 INCOME & EXPENSE'!D410)","v":""},{"$f":"'3 INCOME & EXPENSE'!E410","v":"00:00:00"},{"$f":"'3 INCOME & EXPENSE'!F410","v":0},{"$f":"'3 INCOME & EXPENSE'!G410","v":0},{"$f":"T('3 INCOME & EXPENSE'!H410)","v":""},{"$f":"T('3 INCOME & EXPENSE'!I410)","v":""},{"$f":"T('3 INCOME & EXPENSE'!J410)","v":""},{"$f":"T('3 INCOME & EXPENSE'!K410)","v":""},{"$f":"T('3 INCOME & EXPENSE'!L410)","v":""},{"$f":"'3 INCOME & EXPENSE'!M410","v":0},{"$f":"'3 INCOME & EXPENSE'!N410","v":0},{"$f":"'3 INCOME & EXPENSE'!O410","v":0}]
[null,{"$f":"T('3 INCOME & EXPENSE'!D411)","v":""},{"$f":"'3 INCOME & EXPENSE'!E411","v":"00:00:00"},{"$f":"'3 INCOME & EXPENSE'!F411","v":0},{"$f":"'3 INCOME & EXPENSE'!G411","v":0},{"$f":"T('3 INCOME & EXPENSE'!H411)","v":""},{"$f":"T('3 INCOME & EXPENSE'!I411)","v":""},{"$f":"T('3 INCOME & EXPENSE'!J411)","v":""},{"$f":"T('3 INCOME & EXPENSE'!K411)","v":""},{"$f":"T('3 INCOME & EXPENSE'!L411)","v":""},{"$f":"'3 INCOME & EXPENSE'!M411","v":0},{"$f":"'3 INCOME & EXPENSE'!N411","v":0},{"$f":"'3 INCOME & EXPENSE'!O411","v":0}]
[null,{"$f":"T('3 INCOME & EXPENSE'!D412)","v":""},{"$f":"'3 INCOME & EXPENSE'!E412","v":"00:00:00"},{"$f":"'3 INCOME & EXPENSE'!F412","v":0},{"$f":"'3 INCOME & EXPENSE'!G412","v":0},{"$f":"T('3 INCOME & EXPENSE'!H412)","v":""},{"$f":"T('3 INCOME & EXPENSE'!I412)","v":""},{"$f":"T('3 INCOME & EXPENSE'!J412)","v":""},{"$f":"T('3 INCOME & EXPENSE'!K412)","v":""},{"$f":"T('3 INCOME & EXPENSE'!L412)","v":""},{"$f":"'3 INCOME & EXPENSE'!M412","v":0},{"$f":"'3 INCOME & EXPENSE'!N412","v":0},{"$f":"'3 INCOME & EXPENSE'!O412","v":0}]
[null,{"$f":"T('3 INCOME & EXPENSE'!D413)","v":""},{"$f":"'3 INCOME & EXPENSE'!E413","v":"00:00:00"},{"$f":"'3 INCOME & EXPENSE'!F413","v":0},{"$f":"'3 INCOME & EXPENSE'!G413","v":0},{"$f":"T('3 INCOME & EXPENSE'!H413)","v":""},{"$f":"T('3 INCOME & EXPENSE'!I413)","v":""},{"$f":"T('3 INCOME & EXPENSE'!J413)","v":""},{"$f":"T('3 INCOME & EXPENSE'!K413)","v":""},{"$f":"T('3 INCOME & EXPENSE'!L413)","v":""},{"$f":"'3 INCOME & EXPENSE'!M413","v":0},{"$f":"'3 INCOME & EXPENSE'!N413","v":0},{"$f":"'3 INCOME & EXPENSE'!O413","v":0}]
[null,{"$f":"T('3 INCOME & EXPENSE'!D414)","v":""},{"$f":"'3 INCOME & EXPENSE'!E414","v":"00:00:00"},{"$f":"'3 INCOME & EXPENSE'!F414","v":0},{"$f":"'3 INCOME & EXPENSE'!G414","v":0},{"$f":"T('3 INCOME & EXPENSE'!H414)","v":""},{"$f":"T('3 INCOME & EXPENSE'!I414)","v":""},{"$f":"T('3 INCOME & EXPENSE'!J414)","v":""},{"$f":"T('3 INCOME & EXPENSE'!K414)","v":""},{"$f":"T('3 INCOME & EXPENSE'!L414)","v":""},{"$f":"'3 INCOME & EXPENSE'!M414","v":0},{"$f":"'3 INCOME & EXPENSE'!N414","v":0},{"$f":"'3 INCOME & EXPENSE'!O414","v":0}]
[null,{"$f":"T('3 INCOME & EXPENSE'!D415)","v":""},{"$f":"'3 INCOME & EXPENSE'!E415","v":"00:00:00"},{"$f":"'3 INCOME & EXPENSE'!F415","v":0},{"$f":"'3 INCOME & EXPENSE'!G415","v":0},{"$f":"T('3 INCOME & EXPENSE'!H415)","v":""},{"$f":"T('3 INCOME & EXPENSE'!I415)","v":""},{"$f":"T('3 INCOME & EXPENSE'!J415)","v":""},{"$f":"T('3 INCOME & EXPENSE'!K415)","v":""},{"$f":"T('3 INCOME & EXPENSE'!L415)","v":""},{"$f":"'3 INCOME & EXPENSE'!M415","v":0},{"$f":"'3 INCOME & EXPENSE'!N415","v":0},{"$f":"'3 INCOME & EXPENSE'!O415","v":0}]
[null,{"$f":"T('3 INCOME & EXPENSE'!D416)","v":""},{"$f":"'3 INCOME & EXPENSE'!E416","v":"00:00:00"},{"$f":"'3 INCOME & EXPENSE'!F416","v":0},{"$f":"'3 INCOME & EXPENSE'!G416","v":0},{"$f":"T('3 INCOME & EXPENSE'!H416)","v":""},{"$f":"T('3 INCOME & EXPENSE'!I416)","v":""},{"$f":"T('3 INCOME & EXPENSE'!J416)","v":""},{"$f":"T('3 INCOME & EXPENSE'!K416)","v":""},{"$f":"T('3 INCOME & EXPENSE'!L416)","v":""},{"$f":"'3 INCOME & EXPENSE'!M416","v":0},{"$f":"'3 INCOME & EXPENSE'!N416","v":0},{"$f":"'3 INCOME & EXPENSE'!O416","v":0}]
[null,{"$f":"T('3 INCOME & EXPENSE'!D417)","v":""},{"$f":"'3 INCOME & EXPENSE'!E417","v":"00:00:00"},{"$f":"'3 INCOME & EXPENSE'!F417","v":0},{"$f":"'3 INCOME & EXPENSE'!G417","v":0},{"$f":"T('3 INCOME & EXPENSE'!H417)","v":""},{"$f":"T('3 INCOME & EXPENSE'!I417)","v":""},{"$f":"T('3 INCOME & EXPENSE'!J417)","v":""},{"$f":"T('3 INCOME & EXPENSE'!K417)","v":""},{"$f":"T('3 INCOME & EXPENSE'!L417)","v":""},{"$f":"'3 INCOME & EXPENSE'!M417","v":0},{"$f":"'3 INCOME & EXPENSE'!N417","v":0},{"$f":"'3 INCOME & EXPENSE'!O417","v":0}]
[null,{"$f":"T('3 INCOME & EXPENSE'!D418)","v":""},{"$f":"'3 INCOME & EXPENSE'!E418","v":"00:00:00"},{"$f":"'3 INCOME & EXPENSE'!F418","v":0},{"$f":"'3 INCOME & EXPENSE'!G418","v":0},{"$f":"T('3 INCOME & EXPENSE'!H418)","v":""},{"$f":"T('3 INCOME & EXPENSE'!I418)","v":""},{"$f":"T('3 INCOME & EXPENSE'!J418)","v":""},{"$f":"T('3 INCOME & EXPENSE'!K418)","v":""},{"$f":"T('3 INCOME & EXPENSE'!L418)","v":""},{"$f":"'3 INCOME & EXPENSE'!M418","v":0},{"$f":"'3 INCOME & EXPENSE'!N418","v":0},{"$f":"'3 INCOME & EXPENSE'!O418","v":0}]
[null,{"$f":"T('3 INCOME & EXPENSE'!D419)","v":""},{"$f":"'3 INCOME & EXPENSE'!E419","v":"00:00:00"},{"$f":"'3 INCOME & EXPENSE'!F419","v":0},{"$f":"'3 INCOME & EXPENSE'!G419","v":0},{"$f":"T('3 INCOME & EXPENSE'!H419)","v":""},{"$f":"T('3 INCOME & EXPENSE'!I419)","v":""},{"$f":"T('3 INCOME & EXPENSE'!J419)","v":""},{"$f":"T('3 INCOME & EXPENSE'!K419)","v":""},{"$f":"T('3 INCOME & EXPENSE'!L419)","v":""},{"$f":"'3 INCOME & EXPENSE'!M419","v":0},{"$f":"'3 INCOME & EXPENSE'!N419","v":0},{"$f":"'3 INCOME & EXPENSE'!O419","v":0}]
[null,{"$f":"T('3 INCOME & EXPENSE'!D420)","v":""},{"$f":"'3 INCOME & EXPENSE'!E420","v":"00:00:00"},{"$f":"'3 INCOME & EXPENSE'!F420","v":0},{"$f":"'3 INCOME & EXPENSE'!G420","v":0},{"$f":"T('3 INCOME & EXPENSE'!H420)","v":""},{"$f":"T('3 INCOME & EXPENSE'!I420)","v":""},{"$f":"T('3 INCOME & EXPENSE'!J420)","v":""},{"$f":"T('3 INCOME & EXPENSE'!K420)","v":""},{"$f":"T('3 INCOME & EXPENSE'!L420)","v":""},{"$f":"'3 INCOME & EXPENSE'!M420","v":0},{"$f":"'3 INCOME & EXPENSE'!N420","v":0},{"$f":"'3 INCOME & EXPENSE'!O420","v":0}]
[null,{"$f":"T('3 INCOME & EXPENSE'!D421)","v":""},{"$f":"'3 INCOME & EXPENSE'!E421","v":"00:00:00"},{"$f":"'3 INCOME & EXPENSE'!F421","v":0},{"$f":"'3 INCOME & EXPENSE'!G421","v":0},{"$f":"T('3 INCOME & EXPENSE'!H421)","v":""},{"$f":"T('3 INCOME & EXPENSE'!I421)","v":""},{"$f":"T('3 INCOME & EXPENSE'!J421)","v":""},{"$f":"T('3 INCOME & EXPENSE'!K421)","v":""},{"$f":"T('3 INCOME & EXPENSE'!L421)","v":""},{"$f":"'3 INCOME & EXPENSE'!M421","v":0},{"$f":"'3 INCOME & EXPENSE'!N421","v":0},{"$f":"'3 INCOME & EXPENSE'!O421","v":0}]
[null,{"$f":"T('3 INCOME & EXPENSE'!D422)","v":""},{"$f":"'3 INCOME & EXPENSE'!E422","v":"00:00:00"},{"$f":"'3 INCOME & EXPENSE'!F422","v":0},{"$f":"'3 INCOME & EXPENSE'!G422","v":0},{"$f":"T('3 INCOME & EXPENSE'!H422)","v":""},{"$f":"T('3 INCOME & EXPENSE'!I422)","v":""},{"$f":"T('3 INCOME & EXPENSE'!J422)","v":""},{"$f":"T('3 INCOME & EXPENSE'!K422)","v":""},{"$f":"T('3 INCOME & EXPENSE'!L422)","v":""},{"$f":"'3 INCOME & EXPENSE'!M422","v":0},{"$f":"'3 INCOME & EXPENSE'!N422","v":0},{"$f":"'3 INCOME & EXPENSE'!O422","v":0}]
[null,{"$f":"T('3 INCOME & EXPENSE'!D423)","v":""},{"$f":"'3 INCOME & EXPENSE'!E423","v":"00:00:00"},{"$f":"'3 INCOME & EXPENSE'!F423","v":0},{"$f":"'3 INCOME & EXPENSE'!G423","v":0},{"$f":"T('3 INCOME & EXPENSE'!H423)","v":""},{"$f":"T('3 INCOME & EXPENSE'!I423)","v":""},{"$f":"T('3 INCOME & EXPENSE'!J423)","v":""},{"$f":"T('3 INCOME & EXPENSE'!K423)","v":""},{"$f":"T('3 INCOME & EXPENSE'!L423)","v":""},{"$f":"'3 INCOME & EXPENSE'!M423","v":0},{"$f":"'3 INCOME & EXPENSE'!N423","v":0},{"$f":"'3 INCOME & EXPENSE'!O423","v":0}]
[null,{"$f":"T('3 INCOME & EXPENSE'!D424)","v":""},{"$f":"'3 INCOME & EXPENSE'!E424","v":"00:00:00"},{"$f":"'3 INCOME & EXPENSE'!F424","v":0},{"$f":"'3 INCOME & EXPENSE'!G424","v":0},{"$f":"T('3 INCOME & EXPENSE'!H424)","v":""},{"$f":"T('3 INCOME & EXPENSE'!I424)","v":""},{"$f":"T('3 INCOME & EXPENSE'!J424)","v":""},{"$f":"T('3 INCOME & EXPENSE'!K424)","v":""},{"$f":"T('3 INCOME & EXPENSE'!L424)","v":""},{"$f":"'3 INCOME & EXPENSE'!M424","v":0},{"$f":"'3 INCOME & EXPENSE'!N424","v":0},{"$f":"'3 INCOME & EXPENSE'!O424","v":0}]
[null,{"$f":"T('3 INCOME & EXPENSE'!D425)","v":""},{"$f":"'3 INCOME & EXPENSE'!E425","v":"00:00:00"},{"$f":"'3 INCOME & EXPENSE'!F425","v":0},{"$f":"'3 INCOME & EXPENSE'!G425","v":0},{"$f":"T('3 INCOME & EXPENSE'!H425)","v":""},{"$f":"T('3 INCOME & EXPENSE'!I425)","v":""},{"$f":"T('3 INCOME & EXPENSE'!J425)","v":""},{"$f":"T('3 INCOME & EXPENSE'!K425)","v":""},{"$f":"T('3 INCOME & EXPENSE'!L425)","v":""},{"$f":"'3 INCOME & EXPENSE'!M425","v":0},{"$f":"'3 INCOME & EXPENSE'!N425","v":0},{"$f":"'3 INCOME & EXPENSE'!O425","v":0}]
[null,{"$f":"T('3 INCOME & EXPENSE'!D426)","v":""},{"$f":"'3 INCOME & EXPENSE'!E426","v":"00:00:00"},{"$f":"'3 INCOME & EXPENSE'!F426","v":0},{"$f":"'3 INCOME & EXPENSE'!G426","v":0},{"$f":"T('3 INCOME & EXPENSE'!H426)","v":""},{"$f":"T('3 INCOME & EXPENSE'!I426)","v":""},{"$f":"T('3 INCOME & EXPENSE'!J426)","v":""},{"$f":"T('3 INCOME & EXPENSE'!K426)","v":""},{"$f":"T('3 INCOME & EXPENSE'!L426)","v":""},{"$f":"'3 INCOME & EXPENSE'!M426","v":0},{"$f":"'3 INCOME & EXPENSE'!N426","v":0},{"$f":"'3 INCOME & EXPENSE'!O426","v":0}]
[null,{"$f":"T('3 INCOME & EXPENSE'!D427)","v":""},{"$f":"'3 INCOME & EXPENSE'!E427","v":"00:00:00"},{"$f":"'3 INCOME & EXPENSE'!F427","v":0},{"$f":"'3 INCOME & EXPENSE'!G427","v":0},{"$f":"T('3 INCOME & EXPENSE'!H427)","v":""},{"$f":"T('3 INCOME & EXPENSE'!I427)","v":""},{"$f":"T('3 INCOME & EXPENSE'!J427)","v":""},{"$f":"T('3 INCOME & EXPENSE'!K427)","v":""},{"$f":"T('3 INCOME & EXPENSE'!L427)","v":""},{"$f":"'3 INCOME & EXPENSE'!M427","v":0},{"$f":"'3 INCOME & EXPENSE'!N427","v":0},{"$f":"'3 INCOME & EXPENSE'!O427","v":0}]
[null,{"$f":"T('3 INCOME & EXPENSE'!D428)","v":""},{"$f":"'3 INCOME & EXPENSE'!E428","v":"00:00:00"},{"$f":"'3 INCOME & EXPENSE'!F428","v":0},{"$f":"'3 INCOME & EXPENSE'!G428","v":0},{"$f":"T('3 INCOME & EXPENSE'!H428)","v":""},{"$f":"T('3 INCOME & EXPENSE'!I428)","v":""},{"$f":"T('3 INCOME & EXPENSE'!J428)","v":""},{"$f":"T('3 INCOME & EXPENSE'!K428)","v":""},{"$f":"T('3 INCOME & EXPENSE'!L428)","v":""},{"$f":"'3 INCOME & EXPENSE'!M428","v":0},{"$f":"'3 INCOME & EXPENSE'!N428","v":0},{"$f":"'3 INCOME & EXPENSE'!O428","v":0}]
[null,{"$f":"T('3 INCOME & EXPENSE'!D429)","v":""},{"$f":"'3 INCOME & EXPENSE'!E429","v":"00:00:00"},{"$f":"'3 INCOME & EXPENSE'!F429","v":0},{"$f":"'3 INCOME & EXPENSE'!G429","v":0},{"$f":"T('3 INCOME & EXPENSE'!H429)","v":""},{"$f":"T('3 INCOME & EXPENSE'!I429)","v":""},{"$f":"T('3 INCOME & EXPENSE'!J429)","v":""},{"$f":"T('3 INCOME & EXPENSE'!K429)","v":""},{"$f":"T('3 INCOME & EXPENSE'!L429)","v":""},{"$f":"'3 INCOME & EXPENSE'!M429","v":0},{"$f":"'3 INCOME & EXPENSE'!N429","v":0},{"$f":"'3 INCOME & EXPENSE'!O429","v":0}]
[null,{"$f":"T('3 INCOME & EXPENSE'!D430)","v":""},{"$f":"'3 INCOME & EXPENSE'!E430","v":"00:00:00"},{"$f":"'3 INCOME & EXPENSE'!F430","v":0},{"$f":"'3 INCOME & EXPENSE'!G430","v":0},{"$f":"T('3 INCOME & EXPENSE'!H430)","v":""},{"$f":"T('3 INCOME & EXPENSE'!I430)","v":""},{"$f":"T('3 INCOME & EXPENSE'!J430)","v":""},{"$f":"T('3 INCOME & EXPENSE'!K430)","v":""},{"$f":"T('3 INCOME & EXPENSE'!L430)","v":""},{"$f":"'3 INCOME & EXPENSE'!M430","v":0},{"$f":"'3 INCOME & EXPENSE'!N430","v":0},{"$f":"'3 INCOME & EXPENSE'!O430","v":0}]
[null,{"$f":"T('3 INCOME & EXPENSE'!D431)","v":""},{"$f":"'3 INCOME & EXPENSE'!E431","v":"00:00:00"},{"$f":"'3 INCOME & EXPENSE'!F431","v":0},{"$f":"'3 INCOME & EXPENSE'!G431","v":0},{"$f":"T('3 INCOME & EXPENSE'!H431)","v":""},{"$f":"T('3 INCOME & EXPENSE'!I431)","v":""},{"$f":"T('3 INCOME & EXPENSE'!J431)","v":""},{"$f":"T('3 INCOME & EXPENSE'!K431)","v":""},{"$f":"T('3 INCOME & EXPENSE'!L431)","v":""},{"$f":"'3 INCOME & EXPENSE'!M431","v":0},{"$f":"'3 INCOME & EXPENSE'!N431","v":0},{"$f":"'3 INCOME & EXPENSE'!O431","v":0}]
[null,{"$f":"T('3 INCOME & EXPENSE'!D432)","v":""},{"$f":"'3 INCOME & EXPENSE'!E432","v":"00:00:00"},{"$f":"'3 INCOME & EXPENSE'!F432","v":0},{"$f":"'3 INCOME & EXPENSE'!G432","v":0},{"$f":"T('3 INCOME & EXPENSE'!H432)","v":""},{"$f":"T('3 INCOME & EXPENSE'!I432)","v":""},{"$f":"T('3 INCOME & EXPENSE'!J432)","v":""},{"$f":"T('3 INCOME & EXPENSE'!K432)","v":""},{"$f":"T('3 INCOME & EXPENSE'!L432)","v":""},{"$f":"'3 INCOME & EXPENSE'!M432","v":0},{"$f":"'3 INCOME & EXPENSE'!N432","v":0},{"$f":"'3 INCOME & EXPENSE'!O432","v":0}]
[null,{"$f":"T('3 INCOME & EXPENSE'!D433)","v":""},{"$f":"'3 INCOME & EXPENSE'!E433","v":"00:00:00"},{"$f":"'3 INCOME & EXPENSE'!F433","v":0},{"$f":"'3 INCOME & EXPENSE'!G433","v":0},{"$f":"T('3 INCOME & EXPENSE'!H433)","v":""},{"$f":"T('3 INCOME & EXPENSE'!I433)","v":""},{"$f":"T('3 INCOME & EXPENSE'!J433)","v":""},{"$f":"T('3 INCOME & EXPENSE'!K433)","v":""},{"$f":"T('3 INCOME & EXPENSE'!L433)","v":""},{"$f":"'3 INCOME & EXPENSE'!M433","v":0},{"$f":"'3 INCOME & EXPENSE'!N433","v":0},{"$f":"'3 INCOME & EXPENSE'!O433","v":0}]
[null,{"$f":"T('3 INCOME & EXPENSE'!D434)","v":""},{"$f":"'3 INCOME & EXPENSE'!E434","v":"00:00:00"},{"$f":"'3 INCOME & EXPENSE'!F434","v":0},{"$f":"'3 INCOME & EXPENSE'!G434","v":0},{"$f":"T('3 INCOME & EXPENSE'!H434)","v":""},{"$f":"T('3 INCOME & EXPENSE'!I434)","v":""},{"$f":"T('3 INCOME & EXPENSE'!J434)","v":""},{"$f":"T('3 INCOME & EXPENSE'!K434)","v":""},{"$f":"T('3 INCOME & EXPENSE'!L434)","v":""},{"$f":"'3 INCOME & EXPENSE'!M434","v":0},{"$f":"'3 INCOME & EXPENSE'!N434","v":0},{"$f":"'3 INCOME & EXPENSE'!O434","v":0}]
[null,{"$f":"T('3 INCOME & EXPENSE'!D435)","v":""},{"$f":"'3 INCOME & EXPENSE'!E435","v":"00:00:00"},{"$f":"'3 INCOME & EXPENSE'!F435","v":0},{"$f":"'3 INCOME & EXPENSE'!G435","v":0},{"$f":"T('3 INCOME & EXPENSE'!H435)","v":""},{"$f":"T('3 INCOME & EXPENSE'!I435)","v":""},{"$f":"T('3 INCOME & EXPENSE'!J435)","v":""},{"$f":"T('3 INCOME & EXPENSE'!K435)","v":""},{"$f":"T('3 INCOME & EXPENSE'!L435)","v":""},{"$f":"'3 INCOME & EXPENSE'!M435","v":0},{"$f":"'3 INCOME & EXPENSE'!N435","v":0},{"$f":"'3 INCOME & EXPENSE'!O435","v":0}]
[null,{"$f":"T('3 INCOME & EXPENSE'!D436)","v":""},{"$f":"'3 INCOME & EXPENSE'!E436","v":"00:00:00"},{"$f":"'3 INCOME & EXPENSE'!F436","v":0},{"$f":"'3 INCOME & EXPENSE'!G436","v":0},{"$f":"T('3 INCOME & EXPENSE'!H436)","v":""},{"$f":"T('3 INCOME & EXPENSE'!I436)","v":""},{"$f":"T('3 INCOME & EXPENSE'!J436)","v":""},{"$f":"T('3 INCOME & EXPENSE'!K436)","v":""},{"$f":"T('3 INCOME & EXPENSE'!L436)","v":""},{"$f":"'3 INCOME & EXPENSE'!M436","v":0},{"$f":"'3 INCOME & EXPENSE'!N436","v":0},{"$f":"'3 INCOME & EXPENSE'!O436","v":0}]
[null,{"$f":"T('3 INCOME & EXPENSE'!D437)","v":""},{"$f":"'3 INCOME & EXPENSE'!E437","v":"00:00:00"},{"$f":"'3 INCOME & EXPENSE'!F437","v":0},{"$f":"'3 INCOME & EXPENSE'!G437","v":0},{"$f":"T('3 INCOME & EXPENSE'!H437)","v":""},{"$f":"T('3 INCOME & EXPENSE'!I437)","v":""},{"$f":"T('3 INCOME & EXPENSE'!J437)","v":""},{"$f":"T('3 INCOME & EXPENSE'!K437)","v":""},{"$f":"T('3 INCOME & EXPENSE'!L437)","v":""},{"$f":"'3 INCOME & EXPENSE'!M437","v":0},{"$f":"'3 INCOME & EXPENSE'!N437","v":0},{"$f":"'3 INCOME & EXPENSE'!O437","v":0}]
[null,{"$f":"T('3 INCOME & EXPENSE'!D438)","v":""},{"$f":"'3 INCOME & EXPENSE'!E438","v":"00:00:00"},{"$f":"'3 INCOME & EXPENSE'!F438","v":0},{"$f":"'3 INCOME & EXPENSE'!G438","v":0},{"$f":"T('3 INCOME & EXPENSE'!H438)","v":""},{"$f":"T('3 INCOME & EXPENSE'!I438)","v":""},{"$f":"T('3 INCOME & EXPENSE'!J438)","v":""},{"$f":"T('3 INCOME & EXPENSE'!K438)","v":""},{"$f":"T('3 INCOME & EXPENSE'!L438)","v":""},{"$f":"'3 INCOME & EXPENSE'!M438","v":0},{"$f":"'3 INCOME & EXPENSE'!N438","v":0},{"$f":"'3 INCOME & EXPENSE'!O438","v":0}]
[null,{"$f":"T('3 INCOME & EXPENSE'!D439)","v":""},{"$f":"'3 INCOME & EXPENSE'!E439","v":"00:00:00"},{"$f":"'3 INCOME & EXPENSE'!F439","v":0},{"$f":"'3 INCOME & EXPENSE'!G439","v":0},{"$f":"T('3 INCOME & EXPENSE'!H439)","v":""},{"$f":"T('3 INCOME & EXPENSE'!I439)","v":""},{"$f":"T('3 INCOME & EXPENSE'!J439)","v":""},{"$f":"T('3 INCOME & EXPENSE'!K439)","v":""},{"$f":"T('3 INCOME & EXPENSE'!L439)","v":""},{"$f":"'3 INCOME & EXPENSE'!M439","v":0},{"$f":"'3 INCOME & EXPENSE'!N439","v":0},{"$f":"'3 INCOME & EXPENSE'!O439","v":0}]
[null,{"$f":"T('3 INCOME & EXPENSE'!D440)","v":""},{"$f":"'3 INCOME & EXPENSE'!E440","v":"00:00:00"},{"$f":"'3 INCOME & EXPENSE'!F440","v":0},{"$f":"'3 INCOME & EXPENSE'!G440","v":0},{"$f":"T('3 INCOME & EXPENSE'!H440)","v":""},{"$f":"T('3 INCOME & EXPENSE'!I440)","v":""},{"$f":"T('3 INCOME & EXPENSE'!J440)","v":""},{"$f":"T('3 INCOME & EXPENSE'!K440)","v":""},{"$f":"T('3 INCOME & EXPENSE'!L440)","v":""},{"$f":"'3 INCOME & EXPENSE'!M440","v":0},{"$f":"'3 INCOME & EXPENSE'!N440","v":0},{"$f":"'3 INCOME & EXPENSE'!O440","v":0}]
[null,{"$f":"T('3 INCOME & EXPENSE'!D441)","v":""},{"$f":"'3 INCOME & EXPENSE'!E441","v":"00:00:00"},{"$f":"'3 INCOME & EXPENSE'!F441","v":0},{"$f":"'3 INCOME & EXPENSE'!G441","v":0},{"$f":"T('3 INCOME & EXPENSE'!H441)","v":""},{"$f":"T('3 INCOME & EXPENSE'!I441)","v":""},{"$f":"T('3 INCOME & EXPENSE'!J441)","v":""},{"$f":"T('3 INCOME & EXPENSE'!K441)","v":""},{"$f":"T('3 INCOME & EXPENSE'!L441)","v":""},{"$f":"'3 INCOME & EXPENSE'!M441","v":0},{"$f":"'3 INCOME & EXPENSE'!N441","v":0},{"$f":"'3 INCOME & EXPENSE'!O441","v":0}]
[null,{"$f":"T('3 INCOME & EXPENSE'!D442)","v":""},{"$f":"'3 INCOME & EXPENSE'!E442","v":"00:00:00"},{"$f":"'3 INCOME & EXPENSE'!F442","v":0},{"$f":"'3 INCOME & EXPENSE'!G442","v":0},{"$f":"T('3 INCOME & EXPENSE'!H442)","v":""},{"$f":"T('3 INCOME & EXPENSE'!I442)","v":""},{"$f":"T('3 INCOME & EXPENSE'!J442)","v":""},{"$f":"T('3 INCOME & EXPENSE'!K442)","v":""},{"$f":"T('3 INCOME & EXPENSE'!L442)","v":""},{"$f":"'3 INCOME & EXPENSE'!M442","v":0},{"$f":"'3 INCOME & EXPENSE'!N442","v":0},{"$f":"'3 INCOME & EXPENSE'!O442","v":0}]
[null,{"$f":"T('3 INCOME & EXPENSE'!D443)","v":""},{"$f":"'3 INCOME & EXPENSE'!E443","v":"00:00:00"},{"$f":"'3 INCOME & EXPENSE'!F443","v":0},{"$f":"'3 INCOME & EXPENSE'!G443","v":0},{"$f":"T('3 INCOME & EXPENSE'!H443)","v":""},{"$f":"T('3 INCOME & EXPENSE'!I443)","v":""},{"$f":"T('3 INCOME & EXPENSE'!J443)","v":""},{"$f":"T('3 INCOME & EXPENSE'!K443)","v":""},{"$f":"T('3 INCOME & EXPENSE'!L443)","v":""},{"$f":"'3 INCOME & EXPENSE'!M443","v":0},{"$f":"'3 INCOME & EXPENSE'!N443","v":0},{"$f":"'3 INCOME & EXPENSE'!O443","v":0}]
[null,{"$f":"T('3 INCOME & EXPENSE'!D444)","v":""},{"$f":"'3 INCOME & EXPENSE'!E444","v":"00:00:00"},{"$f":"'3 INCOME & EXPENSE'!F444","v":0},{"$f":"'3 INCOME & EXPENSE'!G444","v":0},{"$f":"T('3 INCOME & EXPENSE'!H444)","v":""},{"$f":"T('3 INCOME & EXPENSE'!I444)","v":""},{"$f":"T('3 INCOME & EXPENSE'!J444)","v":""},{"$f":"T('3 INCOME & EXPENSE'!K444)","v":""},{"$f":"T('3 INCOME & EXPENSE'!L444)","v":""},{"$f":"'3 INCOME & EXPENSE'!M444","v":0},{"$f":"'3 INCOME & EXPENSE'!N444","v":0},{"$f":"'3 INCOME & EXPENSE'!O444","v":0}]
[null,{"$f":"T('3 INCOME & EXPENSE'!D445)","v":""},{"$f":"'3 INCOME & EXPENSE'!E445","v":"00:00:00"},{"$f":"'3 INCOME & EXPENSE'!F445","v":0},{"$f":"'3 INCOME & EXPENSE'!G445","v":0},{"$f":"T('3 INCOME & EXPENSE'!H445)","v":""},{"$f":"T('3 INCOME & EXPENSE'!I445)","v":""},{"$f":"T('3 INCOME & EXPENSE'!J445)","v":""},{"$f":"T('3 INCOME & EXPENSE'!K445)","v":""},{"$f":"T('3 INCOME & EXPENSE'!L445)","v":""},{"$f":"'3 INCOME & EXPENSE'!M445","v":0},{"$f":"'3 INCOME & EXPENSE'!N445","v":0},{"$f":"'3 INCOME & EXPENSE'!O445","v":0}]
[null,{"$f":"T('3 INCOME & EXPENSE'!D446)","v":""},{"$f":"'3 INCOME & EXPENSE'!E446","v":"00:00:00"},{"$f":"'3 INCOME & EXPENSE'!F446","v":0},{"$f":"'3 INCOME & EXPENSE'!G446","v":0},{"$f":"T('3 INCOME & EXPENSE'!H446)","v":""},{"$f":"T('3 INCOME & EXPENSE'!I446)","v":""},{"$f":"T('3 INCOME & EXPENSE'!J446)","v":""},{"$f":"T('3 INCOME & EXPENSE'!K446)","v":""},{"$f":"T('3 INCOME & EXPENSE'!L446)","v":""},{"$f":"'3 INCOME & EXPENSE'!M446","v":0},{"$f":"'3 INCOME & EXPENSE'!N446","v":0},{"$f":"'3 INCOME & EXPENSE'!O446","v":0}]
[null,{"$f":"T('3 INCOME & EXPENSE'!D447)","v":""},{"$f":"'3 INCOME & EXPENSE'!E447","v":"00:00:00"},{"$f":"'3 INCOME & EXPENSE'!F447","v":0},{"$f":"'3 INCOME & EXPENSE'!G447","v":0},{"$f":"T('3 INCOME & EXPENSE'!H447)","v":""},{"$f":"T('3 INCOME & EXPENSE'!I447)","v":""},{"$f":"T('3 INCOME & EXPENSE'!J447)","v":""},{"$f":"T('3 INCOME & EXPENSE'!K447)","v":""},{"$f":"T('3 INCOME & EXPENSE'!L447)","v":""},{"$f":"'3 INCOME & EXPENSE'!M447","v":0},{"$f":"'3 INCOME & EXPENSE'!N447","v":0},{"$f":"'3 INCOME & EXPENSE'!O447","v":0}]
[null,{"$f":"T('3 INCOME & EXPENSE'!D448)","v":""},{"$f":"'3 INCOME & EXPENSE'!E448","v":"00:00:00"},{"$f":"'3 INCOME & EXPENSE'!F448","v":0},{"$f":"'3 INCOME & EXPENSE'!G448","v":0},{"$f":"T('3 INCOME & EXPENSE'!H448)","v":""},{"$f":"T('3 INCOME & EXPENSE'!I448)","v":""},{"$f":"T('3 INCOME & EXPENSE'!J448)","v":""},{"$f":"T('3 INCOME & EXPENSE'!K448)","v":""},{"$f":"T('3 INCOME & EXPENSE'!L448)","v":""},{"$f":"'3 INCOME & EXPENSE'!M448","v":0},{"$f":"'3 INCOME & EXPENSE'!N448","v":0},{"$f":"'3 INCOME & EXPENSE'!O448","v":0}]
[null,{"$f":"T('3 INCOME & EXPENSE'!D449)","v":""},{"$f":"'3 INCOME & EXPENSE'!E449","v":"00:00:00"},{"$f":"'3 INCOME & EXPENSE'!F449","v":0},{"$f":"'3 INCOME & EXPENSE'!G449","v":0},{"$f":"T('3 INCOME & EXPENSE'!H449)","v":""},{"$f":"T('3 INCOME & EXPENSE'!I449)","v":""},{"$f":"T('3 INCOME & EXPENSE'!J449)","v":""},{"$f":"T('3 INCOME & EXPENSE'!K449)","v":""},{"$f":"T('3 INCOME & EXPENSE'!L449)","v":""},{"$f":"'3 INCOME & EXPENSE'!M449","v":0},{"$f":"'3 INCOME & EXPENSE'!N449","v":0},{"$f":"'3 INCOME & EXPENSE'!O449","v":0}]
[null,{"$f":"T('3 INCOME & EXPENSE'!D450)","v":""},{"$f":"'3 INCOME & EXPENSE'!E450","v":"00:00:00"},{"$f":"'3 INCOME & EXPENSE'!F450","v":0},{"$f":"'3 INCOME & EXPENSE'!G450","v":0},{"$f":"T('3 INCOME & EXPENSE'!H450)","v":""},{"$f":"T('3 INCOME & EXPENSE'!I450)","v":""},{"$f":"T('3 INCOME & EXPENSE'!J450)","v":""},{"$f":"T('3 INCOME & EXPENSE'!K450)","v":""},{"$f":"T('3 INCOME & EXPENSE'!L450)","v":""},{"$f":"'3 INCOME & EXPENSE'!M450","v":0},{"$f":"'3 INCOME & EXPENSE'!N450","v":0},{"$f":"'3 INCOME & EXPENSE'!O450","v":0}]
[null,{"$f":"T('3 INCOME & EXPENSE'!D451)","v":""},{"$f":"'3 INCOME & EXPENSE'!E451","v":"00:00:00"},{"$f":"'3 INCOME & EXPENSE'!F451","v":0},{"$f":"'3 INCOME & EXPENSE'!G451","v":0},{"$f":"T('3 INCOME & EXPENSE'!H451)","v":""},{"$f":"T('3 INCOME & EXPENSE'!I451)","v":""},{"$f":"T('3 INCOME & EXPENSE'!J451)","v":""},{"$f":"T('3 INCOME & EXPENSE'!K451)","v":""},{"$f":"T('3 INCOME & EXPENSE'!L451)","v":""},{"$f":"'3 INCOME & EXPENSE'!M451","v":0},{"$f":"'3 INCOME & EXPENSE'!N451","v":0},{"$f":"'3 INCOME & EXPENSE'!O451","v":0}]
[null,{"$f":"T('3 INCOME & EXPENSE'!D452)","v":""},{"$f":"'3 INCOME & EXPENSE'!E452","v":"00:00:00"},{"$f":"'3 INCOME & EXPENSE'!F452","v":0},{"$f":"'3 INCOME & EXPENSE'!G452","v":0},{"$f":"T('3 INCOME & EXPENSE'!H452)","v":""},{"$f":"T('3 INCOME & EXPENSE'!I452)","v":""},{"$f":"T('3 INCOME & EXPENSE'!J452)","v":""},{"$f":"T('3 INCOME & EXPENSE'!K452)","v":""},{"$f":"T('3 INCOME & EXPENSE'!L452)","v":""},{"$f":"'3 INCOME & EXPENSE'!M452","v":0},{"$f":"'3 INCOME & EXPENSE'!N452","v":0},{"$f":"'3 INCOME & EXPENSE'!O452","v":0}]
[null,{"$f":"T('3 INCOME & EXPENSE'!D453)","v":""},{"$f":"'3 INCOME & EXPENSE'!E453","v":"00:00:00"},{"$f":"'3 INCOME & EXPENSE'!F453","v":0},{"$f":"'3 INCOME & EXPENSE'!G453","v":0},{"$f":"T('3 INCOME & EXPENSE'!H453)","v":""},{"$f":"T('3 INCOME & EXPENSE'!I453)","v":""},{"$f":"T('3 INCOME & EXPENSE'!J453)","v":""},{"$f":"T('3 INCOME & EXPENSE'!K453)","v":""},{"$f":"T('3 INCOME & EXPENSE'!L453)","v":""},{"$f":"'3 INCOME & EXPENSE'!M453","v":0},{"$f":"'3 INCOME & EXPENSE'!N453","v":0},{"$f":"'3 INCOME & EXPENSE'!O453","v":0}]
[null,{"$f":"T('3 INCOME & EXPENSE'!D454)","v":""},{"$f":"'3 INCOME & EXPENSE'!E454","v":"00:00:00"},{"$f":"'3 INCOME & EXPENSE'!F454","v":0},{"$f":"'3 INCOME & EXPENSE'!G454","v":0},{"$f":"T('3 INCOME & EXPENSE'!H454)","v":""},{"$f":"T('3 INCOME & EXPENSE'!I454)","v":""},{"$f":"T('3 INCOME & EXPENSE'!J454)","v":""},{"$f":"T('3 INCOME & EXPENSE'!K454)","v":""},{"$f":"T('3 INCOME & EXPENSE'!L454)","v":""},{"$f":"'3 INCOME & EXPENSE'!M454","v":0},{"$f":"'3 INCOME & EXPENSE'!N454","v":0},{"$f":"'3 INCOME & EXPENSE'!O454","v":0}]
[null,{"$f":"T('3 INCOME & EXPENSE'!D455)","v":""},{"$f":"'3 INCOME & EXPENSE'!E455","v":"00:00:00"},{"$f":"'3 INCOME & EXPENSE'!F455","v":0},{"$f":"'3 INCOME & EXPENSE'!G455","v":0},{"$f":"T('3 INCOME & EXPENSE'!H455)","v":""},{"$f":"T('3 INCOME & EXPENSE'!I455)","v":""},{"$f":"T('3 INCOME & EXPENSE'!J455)","v":""},{"$f":"T('3 INCOME & EXPENSE'!K455)","v":""},{"$f":"T('3 INCOME & EXPENSE'!L455)","v":""},{"$f":"'3 INCOME & EXPENSE'!M455","v":0},{"$f":"'3 INCOME & EXPENSE'!N455","v":0},{"$f":"'3 INCOME & EXPENSE'!O455","v":0}]
[null,{"$f":"T('3 INCOME & EXPENSE'!D456)","v":""},{"$f":"'3 INCOME & EXPENSE'!E456","v":"00:00:00"},{"$f":"'3 INCOME & EXPENSE'!F456","v":0},{"$f":"'3 INCOME & EXPENSE'!G456","v":0},{"$f":"T('3 INCOME & EXPENSE'!H456)","v":""},{"$f":"T('3 INCOME & EXPENSE'!I456)","v":""},{"$f":"T('3 INCOME & EXPENSE'!J456)","v":""},{"$f":"T('3 INCOME & EXPENSE'!K456)","v":""},{"$f":"T('3 INCOME & EXPENSE'!L456)","v":""},{"$f":"'3 INCOME & EXPENSE'!M456","v":0},{"$f":"'3 INCOME & EXPENSE'!N456","v":0},{"$f":"'3 INCOME & EXPENSE'!O456","v":0}]
[null,{"$f":"T('3 INCOME & EXPENSE'!D457)","v":""},{"$f":"'3 INCOME & EXPENSE'!E457","v":"00:00:00"},{"$f":"'3 INCOME & EXPENSE'!F457","v":0},{"$f":"'3 INCOME & EXPENSE'!G457","v":0},{"$f":"T('3 INCOME & EXPENSE'!H457)","v":""},{"$f":"T('3 INCOME & EXPENSE'!I457)","v":""},{"$f":"T('3 INCOME & EXPENSE'!J457)","v":""},{"$f":"T('3 INCOME & EXPENSE'!K457)","v":""},{"$f":"T('3 INCOME & EXPENSE'!L457)","v":""},{"$f":"'3 INCOME & EXPENSE'!M457","v":0},{"$f":"'3 INCOME & EXPENSE'!N457","v":0},{"$f":"'3 INCOME & EXPENSE'!O457","v":0}]
[null,{"$f":"T('3 INCOME & EXPENSE'!D458)","v":""},{"$f":"'3 INCOME & EXPENSE'!E458","v":"00:00:00"},{"$f":"'3 INCOME & EXPENSE'!F458","v":0},{"$f":"'3 INCOME & EXPENSE'!G458","v":0},{"$f":"T('3 INCOME & EXPENSE'!H458)","v":""},{"$f":"T('3 INCOME & EXPENSE'!I458)","v":""},{"$f":"T('3 INCOME & EXPENSE'!J458)","v":""},{"$f":"T('3 INCOME & EXPENSE'!K458)","v":""},{"$f":"T('3 INCOME & EXPENSE'!L458)","v":""},{"$f":"'3 INCOME & EXPENSE'!M458","v":0},{"$f":"'3 INCOME & EXPENSE'!N458","v":0},{"$f":"'3 INCOME & EXPENSE'!O458","v":0}]
[null,{"$f":"T('3 INCOME & EXPENSE'!D459)","v":""},{"$f":"'3 INCOME & EXPENSE'!E459","v":"00:00:00"},{"$f":"'3 INCOME & EXPENSE'!F459","v":0},{"$f":"'3 INCOME & EXPENSE'!G459","v":0},{"$f":"T('3 INCOME & EXPENSE'!H459)","v":""},{"$f":"T('3 INCOME & EXPENSE'!I459)","v":""},{"$f":"T('3 INCOME & EXPENSE'!J459)","v":""},{"$f":"T('3 INCOME & EXPENSE'!K459)","v":""},{"$f":"T('3 INCOME & EXPENSE'!L459)","v":""},{"$f":"'3 INCOME & EXPENSE'!M459","v":0},{"$f":"'3 INCOME & EXPENSE'!N459","v":0},{"$f":"'3 INCOME & EXPENSE'!O459","v":0}]
[null,{"$f":"T('3 INCOME & EXPENSE'!D460)","v":""},{"$f":"'3 INCOME & EXPENSE'!E460","v":"00:00:00"},{"$f":"'3 INCOME & EXPENSE'!F460","v":0},{"$f":"'3 INCOME & EXPENSE'!G460","v":0},{"$f":"T('3 INCOME & EXPENSE'!H460)","v":""},{"$f":"T('3 INCOME & EXPENSE'!I460)","v":""},{"$f":"T('3 INCOME & EXPENSE'!J460)","v":""},{"$f":"T('3 INCOME & EXPENSE'!K460)","v":""},{"$f":"T('3 INCOME & EXPENSE'!L460)","v":""},{"$f":"'3 INCOME & EXPENSE'!M460","v":0},{"$f":"'3 INCOME & EXPENSE'!N460","v":0},{"$f":"'3 INCOME & EXPENSE'!O460","v":0}]
[null,{"$f":"T('3 INCOME & EXPENSE'!D461)","v":""},{"$f":"'3 INCOME & EXPENSE'!E461","v":"00:00:00"},{"$f":"'3 INCOME & EXPENSE'!F461","v":0},{"$f":"'3 INCOME & EXPENSE'!G461","v":0},{"$f":"T('3 INCOME & EXPENSE'!H461)","v":""},{"$f":"T('3 INCOME & EXPENSE'!I461)","v":""},{"$f":"T('3 INCOME & EXPENSE'!J461)","v":""},{"$f":"T('3 INCOME & EXPENSE'!K461)","v":""},{"$f":"T('3 INCOME & EXPENSE'!L461)","v":""},{"$f":"'3 INCOME & EXPENSE'!M461","v":0},{"$f":"'3 INCOME & EXPENSE'!N461","v":0},{"$f":"'3 INCOME & EXPENSE'!O461","v":0}]
[null,{"$f":"T('3 INCOME & EXPENSE'!D462)","v":""},{"$f":"'3 INCOME & EXPENSE'!E462","v":"00:00:00"},{"$f":"'3 INCOME & EXPENSE'!F462","v":0},{"$f":"'3 INCOME & EXPENSE'!G462","v":0},{"$f":"T('3 INCOME & EXPENSE'!H462)","v":""},{"$f":"T('3 INCOME & EXPENSE'!I462)","v":""},{"$f":"T('3 INCOME & EXPENSE'!J462)","v":""},{"$f":"T('3 INCOME & EXPENSE'!K462)","v":""},{"$f":"T('3 INCOME & EXPENSE'!L462)","v":""},{"$f":"'3 INCOME & EXPENSE'!M462","v":0},{"$f":"'3 INCOME & EXPENSE'!N462","v":0},{"$f":"'3 INCOME & EXPENSE'!O462","v":0}]
[null,{"$f":"T('3 INCOME & EXPENSE'!D463)","v":""},{"$f":"'3 INCOME & EXPENSE'!E463","v":"00:00:00"},{"$f":"'3 INCOME & EXPENSE'!F463","v":0},{"$f":"'3 INCOME & EXPENSE'!G463","v":0},{"$f":"T('3 INCOME & EXPENSE'!H463)","v":""},{"$f":"T('3 INCOME & EXPENSE'!I463)","v":""},{"$f":"T('3 INCOME & EXPENSE'!J463)","v":""},{"$f":"T('3 INCOME & EXPENSE'!K463)","v":""},{"$f":"T('3 INCOME & EXPENSE'!L463)","v":""},{"$f":"'3 INCOME & EXPENSE'!M463","v":0},{"$f":"'3 INCOME & EXPENSE'!N463","v":0},{"$f":"'3 INCOME & EXPENSE'!O463","v":0}]
[null,{"$f":"T('3 INCOME & EXPENSE'!D464)","v":""},{"$f":"'3 INCOME & EXPENSE'!E464","v":"00:00:00"},{"$f":"'3 INCOME & EXPENSE'!F464","v":0},{"$f":"'3 INCOME & EXPENSE'!G464","v":0},{"$f":"T('3 INCOME & EXPENSE'!H464)","v":""},{"$f":"T('3 INCOME & EXPENSE'!I464)","v":""},{"$f":"T('3 INCOME & EXPENSE'!J464)","v":""},{"$f":"T('3 INCOME & EXPENSE'!K464)","v":""},{"$f":"T('3 INCOME & EXPENSE'!L464)","v":""},{"$f":"'3 INCOME & EXPENSE'!M464","v":0},{"$f":"'3 INCOME & EXPENSE'!N464","v":0},{"$f":"'3 INCOME & EXPENSE'!O464","v":0}]
[null,{"$f":"T('3 INCOME & EXPENSE'!D465)","v":""},{"$f":"'3 INCOME & EXPENSE'!E465","v":"00:00:00"},{"$f":"'3 INCOME & EXPENSE'!F465","v":0},{"$f":"'3 INCOME & EXPENSE'!G465","v":0},{"$f":"T('3 INCOME & EXPENSE'!H465)","v":""},{"$f":"T('3 INCOME & EXPENSE'!I465)","v":""},{"$f":"T('3 INCOME & EXPENSE'!J465)","v":""},{"$f":"T('3 INCOME & EXPENSE'!K465)","v":""},{"$f":"T('3 INCOME & EXPENSE'!L465)","v":""},{"$f":"'3 INCOME & EXPENSE'!M465","v":0},{"$f":"'3 INCOME & EXPENSE'!N465","v":0},{"$f":"'3 INCOME & EXPENSE'!O465","v":0}]
[null,{"$f":"T('3 INCOME & EXPENSE'!D466)","v":""},{"$f":"'3 INCOME & EXPENSE'!E466","v":"00:00:00"},{"$f":"'3 INCOME & EXPENSE'!F466","v":0},{"$f":"'3 INCOME & EXPENSE'!G466","v":0},{"$f":"T('3 INCOME & EXPENSE'!H466)","v":""},{"$f":"T('3 INCOME & EXPENSE'!I466)","v":""},{"$f":"T('3 INCOME & EXPENSE'!J466)","v":""},{"$f":"T('3 INCOME & EXPENSE'!K466)","v":""},{"$f":"T('3 INCOME & EXPENSE'!L466)","v":""},{"$f":"'3 INCOME & EXPENSE'!M466","v":0},{"$f":"'3 INCOME & EXPENSE'!N466","v":0},{"$f":"'3 INCOME & EXPENSE'!O466","v":0}]
[null,{"$f":"T('3 INCOME & EXPENSE'!D467)","v":""},{"$f":"'3 INCOME & EXPENSE'!E467","v":"00:00:00"},{"$f":"'3 INCOME & EXPENSE'!F467","v":0},{"$f":"'3 INCOME & EXPENSE'!G467","v":0},{"$f":"T('3 INCOME & EXPENSE'!H467)","v":""},{"$f":"T('3 INCOME & EXPENSE'!I467)","v":""},{"$f":"T('3 INCOME & EXPENSE'!J467)","v":""},{"$f":"T('3 INCOME & EXPENSE'!K467)","v":""},{"$f":"T('3 INCOME & EXPENSE'!L467)","v":""},{"$f":"'3 INCOME & EXPENSE'!M467","v":0},{"$f":"'3 INCOME & EXPENSE'!N467","v":0},{"$f":"'3 INCOME & EXPENSE'!O467","v":0}]
[null,{"$f":"T('3 INCOME & EXPENSE'!D468)","v":""},{"$f":"'3 INCOME & EXPENSE'!E468","v":"00:00:00"},{"$f":"'3 INCOME & EXPENSE'!F468","v":0},{"$f":"'3 INCOME & EXPENSE'!G468","v":0},{"$f":"T('3 INCOME & EXPENSE'!H468)","v":""},{"$f":"T('3 INCOME & EXPENSE'!I468)","v":""},{"$f":"T('3 INCOME & EXPENSE'!J468)","v":""},{"$f":"T('3 INCOME & EXPENSE'!K468)","v":""},{"$f":"T('3 INCOME & EXPENSE'!L468)","v":""},{"$f":"'3 INCOME & EXPENSE'!M468","v":0},{"$f":"'3 INCOME & EXPENSE'!N468","v":0},{"$f":"'3 INCOME & EXPENSE'!O468","v":0}]
[null,{"$f":"T('3 INCOME & EXPENSE'!D469)","v":""},{"$f":"'3 INCOME & EXPENSE'!E469","v":"00:00:00"},{"$f":"'3 INCOME & EXPENSE'!F469","v":0},{"$f":"'3 INCOME & EXPENSE'!G469","v":0},{"$f":"T('3 INCOME & EXPENSE'!H469)","v":""},{"$f":"T('3 INCOME & EXPENSE'!I469)","v":""},{"$f":"T('3 INCOME & EXPENSE'!J469)","v":""},{"$f":"T('3 INCOME & EXPENSE'!K469)","v":""},{"$f":"T('3 INCOME & EXPENSE'!L469)","v":""},{"$f":"'3 INCOME & EXPENSE'!M469","v":0},{"$f":"'3 INCOME & EXPENSE'!N469","v":0},{"$f":"'3 INCOME & EXPENSE'!O469","v":0}]
[null,{"$f":"T('3 INCOME & EXPENSE'!D470)","v":""},{"$f":"'3 INCOME & EXPENSE'!E470","v":"00:00:00"},{"$f":"'3 INCOME & EXPENSE'!F470","v":0},{"$f":"'3 INCOME & EXPENSE'!G470","v":0},{"$f":"T('3 INCOME & EXPENSE'!H470)","v":""},{"$f":"T('3 INCOME & EXPENSE'!I470)","v":""},{"$f":"T('3 INCOME & EXPENSE'!J470)","v":""},{"$f":"T('3 INCOME & EXPENSE'!K470)","v":""},{"$f":"T('3 INCOME & EXPENSE'!L470)","v":""},{"$f":"'3 INCOME & EXPENSE'!M470","v":0},{"$f":"'3 INCOME & EXPENSE'!N470","v":0},{"$f":"'3 INCOME & EXPENSE'!O470","v":0}]
[null,{"$f":"T('3 INCOME & EXPENSE'!D471)","v":""},{"$f":"'3 INCOME & EXPENSE'!E471","v":"00:00:00"},{"$f":"'3 INCOME & EXPENSE'!F471","v":0},{"$f":"'3 INCOME & EXPENSE'!G471","v":0},{"$f":"T('3 INCOME & EXPENSE'!H471)","v":""},{"$f":"T('3 INCOME & EXPENSE'!I471)","v":""},{"$f":"T('3 INCOME & EXPENSE'!J471)","v":""},{"$f":"T('3 INCOME & EXPENSE'!K471)","v":""},{"$f":"T('3 INCOME & EXPENSE'!L471)","v":""},{"$f":"'3 INCOME & EXPENSE'!M471","v":0},{"$f":"'3 INCOME & EXPENSE'!N471","v":0},{"$f":"'3 INCOME & EXPENSE'!O471","v":0}]
[null,{"$f":"T('3 INCOME & EXPENSE'!D472)","v":""},{"$f":"'3 INCOME & EXPENSE'!E472","v":"00:00:00"},{"$f":"'3 INCOME & EXPENSE'!F472","v":0},{"$f":"'3 INCOME & EXPENSE'!G472","v":0},{"$f":"T('3 INCOME & EXPENSE'!H472)","v":""},{"$f":"T('3 INCOME & EXPENSE'!I472)","v":""},{"$f":"T('3 INCOME & EXPENSE'!J472)","v":""},{"$f":"T('3 INCOME & EXPENSE'!K472)","v":""},{"$f":"T('3 INCOME & EXPENSE'!L472)","v":""},{"$f":"'3 INCOME & EXPENSE'!M472","v":0},{"$f":"'3 INCOME & EXPENSE'!N472","v":0},{"$f":"'3 INCOME & EXPENSE'!O472","v":0}]
[null,{"$f":"T('3 INCOME & EXPENSE'!D473)","v":""},{"$f":"'3 INCOME & EXPENSE'!E473","v":"00:00:00"},{"$f":"'3 INCOME & EXPENSE'!F473","v":0},{"$f":"'3 INCOME & EXPENSE'!G473","v":0},{"$f":"T('3 INCOME & EXPENSE'!H473)","v":""},{"$f":"T('3 INCOME & EXPENSE'!I473)","v":""},{"$f":"T('3 INCOME & EXPENSE'!J473)","v":""},{"$f":"T('3 INCOME & EXPENSE'!K473)","v":""},{"$f":"T('3 INCOME & EXPENSE'!L473)","v":""},{"$f":"'3 INCOME & EXPENSE'!M473","v":0},{"$f":"'3 INCOME & EXPENSE'!N473","v":0},{"$f":"'3 INCOME & EXPENSE'!O473","v":0}]
[null,{"$f":"T('3 INCOME & EXPENSE'!D474)","v":""},{"$f":"'3 INCOME & EXPENSE'!E474","v":"00:00:00"},{"$f":"'3 INCOME & EXPENSE'!F474","v":0},{"$f":"'3 INCOME & EXPENSE'!G474","v":0},{"$f":"T('3 INCOME & EXPENSE'!H474)","v":""},{"$f":"T('3 INCOME & EXPENSE'!I474)","v":""},{"$f":"T('3 INCOME & EXPENSE'!J474)","v":""},{"$f":"T('3 INCOME & EXPENSE'!K474)","v":""},{"$f":"T('3 INCOME & EXPENSE'!L474)","v":""},{"$f":"'3 INCOME & EXPENSE'!M474","v":0},{"$f":"'3 INCOME & EXPENSE'!N474","v":0},{"$f":"'3 INCOME & EXPENSE'!O474","v":0}]
[null,{"$f":"T('3 INCOME & EXPENSE'!D475)","v":""},{"$f":"'3 INCOME & EXPENSE'!E475","v":"00:00:00"},{"$f":"'3 INCOME & EXPENSE'!F475","v":0},{"$f":"'3 INCOME & EXPENSE'!G475","v":0},{"$f":"T('3 INCOME & EXPENSE'!H475)","v":""},{"$f":"T('3 INCOME & EXPENSE'!I475)","v":""},{"$f":"T('3 INCOME & EXPENSE'!J475)","v":""},{"$f":"T('3 INCOME & EXPENSE'!K475)","v":""},{"$f":"T('3 INCOME & EXPENSE'!L475)","v":""},{"$f":"'3 INCOME & EXPENSE'!M475","v":0},{"$f":"'3 INCOME & EXPENSE'!N475","v":0},{"$f":"'3 INCOME & EXPENSE'!O475","v":0}]
[null,{"$f":"T('3 INCOME & EXPENSE'!D476)","v":""},{"$f":"'3 INCOME & EXPENSE'!E476","v":"00:00:00"},{"$f":"'3 INCOME & EXPENSE'!F476","v":0},{"$f":"'3 INCOME & EXPENSE'!G476","v":0},{"$f":"T('3 INCOME & EXPENSE'!H476)","v":""},{"$f":"T('3 INCOME & EXPENSE'!I476)","v":""},{"$f":"T('3 INCOME & EXPENSE'!J476)","v":""},{"$f":"T('3 INCOME & EXPENSE'!K476)","v":""},{"$f":"T('3 INCOME & EXPENSE'!L476)","v":""},{"$f":"'3 INCOME & EXPENSE'!M476","v":0},{"$f":"'3 INCOME & EXPENSE'!N476","v":0},{"$f":"'3 INCOME & EXPENSE'!O476","v":0}]
[null,{"$f":"T('3 INCOME & EXPENSE'!D477)","v":""},{"$f":"'3 INCOME & EXPENSE'!E477","v":"00:00:00"},{"$f":"'3 INCOME & EXPENSE'!F477","v":0},{"$f":"'3 INCOME & EXPENSE'!G477","v":0},{"$f":"T('3 INCOME & EXPENSE'!H477)","v":""},{"$f":"T('3 INCOME & EXPENSE'!I477)","v":""},{"$f":"T('3 INCOME & EXPENSE'!J477)","v":""},{"$f":"T('3 INCOME & EXPENSE'!K477)","v":""},{"$f":"T('3 INCOME & EXPENSE'!L477)","v":""},{"$f":"'3 INCOME & EXPENSE'!M477","v":0},{"$f":"'3 INCOME & EXPENSE'!N477","v":0},{"$f":"'3 INCOME & EXPENSE'!O477","v":0}]
[null,{"$f":"T('3 INCOME & EXPENSE'!D478)","v":""},{"$f":"'3 INCOME & EXPENSE'!E478","v":"00:00:00"},{"$f":"'3 INCOME & EXPENSE'!F478","v":0},{"$f":"'3 INCOME & EXPENSE'!G478","v":0},{"$f":"T('3 INCOME & EXPENSE'!H478)","v":""},{"$f":"T('3 INCOME & EXPENSE'!I478)","v":""},{"$f":"T('3 INCOME & EXPENSE'!J478)","v":""},{"$f":"T('3 INCOME & EXPENSE'!K478)","v":""},{"$f":"T('3 INCOME & EXPENSE'!L478)","v":""},{"$f":"'3 INCOME & EXPENSE'!M478","v":0},{"$f":"'3 INCOME & EXPENSE'!N478","v":0},{"$f":"'3 INCOME & EXPENSE'!O478","v":0}]
[null,{"$f":"T('3 INCOME & EXPENSE'!D479)","v":""},{"$f":"'3 INCOME & EXPENSE'!E479","v":"00:00:00"},{"$f":"'3 INCOME & EXPENSE'!F479","v":0},{"$f":"'3 INCOME & EXPENSE'!G479","v":0},{"$f":"T('3 INCOME & EXPENSE'!H479)","v":""},{"$f":"T('3 INCOME & EXPENSE'!I479)","v":""},{"$f":"T('3 INCOME & EXPENSE'!J479)","v":""},{"$f":"T('3 INCOME & EXPENSE'!K479)","v":""},{"$f":"T('3 INCOME & EXPENSE'!L479)","v":""},{"$f":"'3 INCOME & EXPENSE'!M479","v":0},{"$f":"'3 INCOME & EXPENSE'!N479","v":0},{"$f":"'3 INCOME & EXPENSE'!O479","v":0}]
[null,{"$f":"T('3 INCOME & EXPENSE'!D480)","v":""},{"$f":"'3 INCOME & EXPENSE'!E480","v":"00:00:00"},{"$f":"'3 INCOME & EXPENSE'!F480","v":0},{"$f":"'3 INCOME & EXPENSE'!G480","v":0},{"$f":"T('3 INCOME & EXPENSE'!H480)","v":""},{"$f":"T('3 INCOME & EXPENSE'!I480)","v":""},{"$f":"T('3 INCOME & EXPENSE'!J480)","v":""},{"$f":"T('3 INCOME & EXPENSE'!K480)","v":""},{"$f":"T('3 INCOME & EXPENSE'!L480)","v":""},{"$f":"'3 INCOME & EXPENSE'!M480","v":0},{"$f":"'3 INCOME & EXPENSE'!N480","v":0},{"$f":"'3 INCOME & EXPENSE'!O480","v":0}]
[null,{"$f":"T('3 INCOME & EXPENSE'!D481)","v":""},{"$f":"'3 INCOME & EXPENSE'!E481","v":"00:00:00"},{"$f":"'3 INCOME & EXPENSE'!F481","v":0},{"$f":"'3 INCOME & EXPENSE'!G481","v":0},{"$f":"T('3 INCOME & EXPENSE'!H481)","v":""},{"$f":"T('3 INCOME & EXPENSE'!I481)","v":""},{"$f":"T('3 INCOME & EXPENSE'!J481)","v":""},{"$f":"T('3 INCOME & EXPENSE'!K481)","v":""},{"$f":"T('3 INCOME & EXPENSE'!L481)","v":""},{"$f":"'3 INCOME & EXPENSE'!M481","v":0},{"$f":"'3 INCOME & EXPENSE'!N481","v":0},{"$f":"'3 INCOME & EXPENSE'!O481","v":0}]
[null,{"$f":"T('3 INCOME & EXPENSE'!D482)","v":""},{"$f":"'3 INCOME & EXPENSE'!E482","v":"00:00:00"},{"$f":"'3 INCOME & EXPENSE'!F482","v":0},{"$f":"'3 INCOME & EXPENSE'!G482","v":0},{"$f":"T('3 INCOME & EXPENSE'!H482)","v":""},{"$f":"T('3 INCOME & EXPENSE'!I482)","v":""},{"$f":"T('3 INCOME & EXPENSE'!J482)","v":""},{"$f":"T('3 INCOME & EXPENSE'!K482)","v":""},{"$f":"T('3 INCOME & EXPENSE'!L482)","v":""},{"$f":"'3 INCOME & EXPENSE'!M482","v":0},{"$f":"'3 INCOME & EXPENSE'!N482","v":0},{"$f":"'3 INCOME & EXPENSE'!O482","v":0}]
[null,{"$f":"T('3 INCOME & EXPENSE'!D483)","v":""},{"$f":"'3 INCOME & EXPENSE'!E483","v":"00:00:00"},{"$f":"'3 INCOME & EXPENSE'!F483","v":0},{"$f":"'3 INCOME & EXPENSE'!G483","v":0},{"$f":"T('3 INCOME & EXPENSE'!H483)","v":""},{"$f":"T('3 INCOME & EXPENSE'!I483)","v":""},{"$f":"T('3 INCOME & EXPENSE'!J483)","v":""},{"$f":"T('3 INCOME & EXPENSE'!K483)","v":""},{"$f":"T('3 INCOME & EXPENSE'!L483)","v":""},{"$f":"'3 INCOME & EXPENSE'!M483","v":0},{"$f":"'3 INCOME & EXPENSE'!N483","v":0},{"$f":"'3 INCOME & EXPENSE'!O483","v":0}]
[null,{"$f":"T('3 INCOME & EXPENSE'!D484)","v":""},{"$f":"'3 INCOME & EXPENSE'!E484","v":"00:00:00"},{"$f":"'3 INCOME & EXPENSE'!F484","v":0},{"$f":"'3 INCOME & EXPENSE'!G484","v":0},{"$f":"T('3 INCOME & EXPENSE'!H484)","v":""},{"$f":"T('3 INCOME & EXPENSE'!I484)","v":""},{"$f":"T('3 INCOME & EXPENSE'!J484)","v":""},{"$f":"T('3 INCOME & EXPENSE'!K484)","v":""},{"$f":"T('3 INCOME & EXPENSE'!L484)","v":""},{"$f":"'3 INCOME & EXPENSE'!M484","v":0},{"$f":"'3 INCOME & EXPENSE'!N484","v":0},{"$f":"'3 INCOME & EXPENSE'!O484","v":0}]
[null,{"$f":"T('3 INCOME & EXPENSE'!D485)","v":""},{"$f":"'3 INCOME & EXPENSE'!E485","v":"00:00:00"},{"$f":"'3 INCOME & EXPENSE'!F485","v":0},{"$f":"'3 INCOME & EXPENSE'!G485","v":0},{"$f":"T('3 INCOME & EXPENSE'!H485)","v":""},{"$f":"T('3 INCOME & EXPENSE'!I485)","v":""},{"$f":"T('3 INCOME & EXPENSE'!J485)","v":""},{"$f":"T('3 INCOME & EXPENSE'!K485)","v":""},{"$f":"T('3 INCOME & EXPENSE'!L485)","v":""},{"$f":"'3 INCOME & EXPENSE'!M485","v":0},{"$f":"'3 INCOME & EXPENSE'!N485","v":0},{"$f":"'3 INCOME & EXPENSE'!O485","v":0}]
[null,{"$f":"T('3 INCOME & EXPENSE'!D486)","v":""},{"$f":"'3 INCOME & EXPENSE'!E486","v":"00:00:00"},{"$f":"'3 INCOME & EXPENSE'!F486","v":0},{"$f":"'3 INCOME & EXPENSE'!G486","v":0},{"$f":"T('3 INCOME & EXPENSE'!H486)","v":""},{"$f":"T('3 INCOME & EXPENSE'!I486)","v":""},{"$f":"T('3 INCOME & EXPENSE'!J486)","v":""},{"$f":"T('3 INCOME & EXPENSE'!K486)","v":""},{"$f":"T('3 INCOME & EXPENSE'!L486)","v":""},{"$f":"'3 INCOME & EXPENSE'!M486","v":0},{"$f":"'3 INCOME & EXPENSE'!N486","v":0},{"$f":"'3 INCOME & EXPENSE'!O486","v":0}]
[null,{"$f":"T('3 INCOME & EXPENSE'!D487)","v":""},{"$f":"'3 INCOME & EXPENSE'!E487","v":"00:00:00"},{"$f":"'3 INCOME & EXPENSE'!F487","v":0},{"$f":"'3 INCOME & EXPENSE'!G487","v":0},{"$f":"T('3 INCOME & EXPENSE'!H487)","v":""},{"$f":"T('3 INCOME & EXPENSE'!I487)","v":""},{"$f":"T('3 INCOME & EXPENSE'!J487)","v":""},{"$f":"T('3 INCOME & EXPENSE'!K487)","v":""},{"$f":"T('3 INCOME & EXPENSE'!L487)","v":""},{"$f":"'3 INCOME & EXPENSE'!M487","v":0},{"$f":"'3 INCOME & EXPENSE'!N487","v":0},{"$f":"'3 INCOME & EXPENSE'!O487","v":0}]
[null,{"$f":"T('3 INCOME & EXPENSE'!D488)","v":""},{"$f":"'3 INCOME & EXPENSE'!E488","v":"00:00:00"},{"$f":"'3 INCOME & EXPENSE'!F488","v":0},{"$f":"'3 INCOME & EXPENSE'!G488","v":0},{"$f":"T('3 INCOME & EXPENSE'!H488)","v":""},{"$f":"T('3 INCOME & EXPENSE'!I488)","v":""},{"$f":"T('3 INCOME & EXPENSE'!J488)","v":""},{"$f":"T('3 INCOME & EXPENSE'!K488)","v":""},{"$f":"T('3 INCOME & EXPENSE'!L488)","v":""},{"$f":"'3 INCOME & EXPENSE'!M488","v":0},{"$f":"'3 INCOME & EXPENSE'!N488","v":0},{"$f":"'3 INCOME & EXPENSE'!O488","v":0}]
[null,{"$f":"T('3 INCOME & EXPENSE'!D489)","v":""},{"$f":"'3 INCOME & EXPENSE'!E489","v":"00:00:00"},{"$f":"'3 INCOME & EXPENSE'!F489","v":0},{"$f":"'3 INCOME & EXPENSE'!G489","v":0},{"$f":"T('3 INCOME & EXPENSE'!H489)","v":""},{"$f":"T('3 INCOME & EXPENSE'!I489)","v":""},{"$f":"T('3 INCOME & EXPENSE'!J489)","v":""},{"$f":"T('3 INCOME & EXPENSE'!K489)","v":""},{"$f":"T('3 INCOME & EXPENSE'!L489)","v":""},{"$f":"'3 INCOME & EXPENSE'!M489","v":0},{"$f":"'3 INCOME & EXPENSE'!N489","v":0},{"$f":"'3 INCOME & EXPENSE'!O489","v":0}]
[null,{"$f":"T('3 INCOME & EXPENSE'!D490)","v":""},{"$f":"'3 INCOME & EXPENSE'!E490","v":"00:00:00"},{"$f":"'3 INCOME & EXPENSE'!F490","v":0},{"$f":"'3 INCOME & EXPENSE'!G490","v":0},{"$f":"T('3 INCOME & EXPENSE'!H490)","v":""},{"$f":"T('3 INCOME & EXPENSE'!I490)","v":""},{"$f":"T('3 INCOME & EXPENSE'!J490)","v":""},{"$f":"T('3 INCOME & EXPENSE'!K490)","v":""},{"$f":"T('3 INCOME & EXPENSE'!L490)","v":""},{"$f":"'3 INCOME & EXPENSE'!M490","v":0},{"$f":"'3 INCOME & EXPENSE'!N490","v":0},{"$f":"'3 INCOME & EXPENSE'!O490","v":0}]
[null,{"$f":"T('3 INCOME & EXPENSE'!D491)","v":""},{"$f":"'3 INCOME & EXPENSE'!E491","v":"00:00:00"},{"$f":"'3 INCOME & EXPENSE'!F491","v":0},{"$f":"'3 INCOME & EXPENSE'!G491","v":0},{"$f":"T('3 INCOME & EXPENSE'!H491)","v":""},{"$f":"T('3 INCOME & EXPENSE'!I491)","v":""},{"$f":"T('3 INCOME & EXPENSE'!J491)","v":""},{"$f":"T('3 INCOME & EXPENSE'!K491)","v":""},{"$f":"T('3 INCOME & EXPENSE'!L491)","v":""},{"$f":"'3 INCOME & EXPENSE'!M491","v":0},{"$f":"'3 INCOME & EXPENSE'!N491","v":0},{"$f":"'3 INCOME & EXPENSE'!O491","v":0}]
[null,{"$f":"T('3 INCOME & EXPENSE'!D492)","v":""},{"$f":"'3 INCOME & EXPENSE'!E492","v":"00:00:00"},{"$f":"'3 INCOME & EXPENSE'!F492","v":0},{"$f":"'3 INCOME & EXPENSE'!G492","v":0},{"$f":"T('3 INCOME & EXPENSE'!H492)","v":""},{"$f":"T('3 INCOME & EXPENSE'!I492)","v":""},{"$f":"T('3 INCOME & EXPENSE'!J492)","v":""},{"$f":"T('3 INCOME & EXPENSE'!K492)","v":""},{"$f":"T('3 INCOME & EXPENSE'!L492)","v":""},{"$f":"'3 INCOME & EXPENSE'!M492","v":0},{"$f":"'3 INCOME & EXPENSE'!N492","v":0},{"$f":"'3 INCOME & EXPENSE'!O492","v":0}]
[null,{"$f":"T('3 INCOME & EXPENSE'!D493)","v":""},{"$f":"'3 INCOME & EXPENSE'!E493","v":"00:00:00"},{"$f":"'3 INCOME & EXPENSE'!F493","v":0},{"$f":"'3 INCOME & EXPENSE'!G493","v":0},{"$f":"T('3 INCOME & EXPENSE'!H493)","v":""},{"$f":"T('3 INCOME & EXPENSE'!I493)","v":""},{"$f":"T('3 INCOME & EXPENSE'!J493)","v":""},{"$f":"T('3 INCOME & EXPENSE'!K493)","v":""},{"$f":"T('3 INCOME & EXPENSE'!L493)","v":""},{"$f":"'3 INCOME & EXPENSE'!M493","v":0},{"$f":"'3 INCOME & EXPENSE'!N493","v":0},{"$f":"'3 INCOME & EXPENSE'!O493","v":0}]
[null,{"$f":"T('3 INCOME & EXPENSE'!D494)","v":""},{"$f":"'3 INCOME & EXPENSE'!E494","v":"00:00:00"},{"$f":"'3 INCOME & EXPENSE'!F494","v":0},{"$f":"'3 INCOME & EXPENSE'!G494","v":0},{"$f":"T('3 INCOME & EXPENSE'!H494)","v":""},{"$f":"T('3 INCOME & EXPENSE'!I494)","v":""},{"$f":"T('3 INCOME & EXPENSE'!J494)","v":""},{"$f":"T('3 INCOME & EXPENSE'!K494)","v":""},{"$f":"T('3 INCOME & EXPENSE'!L494)","v":""},{"$f":"'3 INCOME & EXPENSE'!M494","v":0},{"$f":"'3 INCOME & EXPENSE'!N494","v":0},{"$f":"'3 INCOME & EXPENSE'!O494","v":0}]
[null,{"$f":"T('3 INCOME & EXPENSE'!D495)","v":""},{"$f":"'3 INCOME & EXPENSE'!E495","v":"00:00:00"},{"$f":"'3 INCOME & EXPENSE'!F495","v":0},{"$f":"'3 INCOME & EXPENSE'!G495","v":0},{"$f":"T('3 INCOME & EXPENSE'!H495)","v":""},{"$f":"T('3 INCOME & EXPENSE'!I495)","v":""},{"$f":"T('3 INCOME & EXPENSE'!J495)","v":""},{"$f":"T('3 INCOME & EXPENSE'!K495)","v":""},{"$f":"T('3 INCOME & EXPENSE'!L495)","v":""},{"$f":"'3 INCOME & EXPENSE'!M495","v":0},{"$f":"'3 INCOME & EXPENSE'!N495","v":0},{"$f":"'3 INCOME & EXPENSE'!O495","v":0}]
[null,{"$f":"T('3 INCOME & EXPENSE'!D496)","v":""},{"$f":"'3 INCOME & EXPENSE'!E496","v":"00:00:00"},{"$f":"'3 INCOME & EXPENSE'!F496","v":0},{"$f":"'3 INCOME & EXPENSE'!G496","v":0},{"$f":"T('3 INCOME & EXPENSE'!H496)","v":""},{"$f":"T('3 INCOME & EXPENSE'!I496)","v":""},{"$f":"T('3 INCOME & EXPENSE'!J496)","v":""},{"$f":"T('3 INCOME & EXPENSE'!K496)","v":""},{"$f":"T('3 INCOME & EXPENSE'!L496)","v":""},{"$f":"'3 INCOME & EXPENSE'!M496","v":0},{"$f":"'3 INCOME & EXPENSE'!N496","v":0},{"$f":"'3 INCOME & EXPENSE'!O496","v":0}]
[null,{"$f":"T('3 INCOME & EXPENSE'!D497)","v":""},{"$f":"'3 INCOME & EXPENSE'!E497","v":"00:00:00"},{"$f":"'3 INCOME & EXPENSE'!F497","v":0},{"$f":"'3 INCOME & EXPENSE'!G497","v":0},{"$f":"T('3 INCOME & EXPENSE'!H497)","v":""},{"$f":"T('3 INCOME & EXPENSE'!I497)","v":""},{"$f":"T('3 INCOME & EXPENSE'!J497)","v":""},{"$f":"T('3 INCOME & EXPENSE'!K497)","v":""},{"$f":"T('3 INCOME & EXPENSE'!L497)","v":""},{"$f":"'3 INCOME & EXPENSE'!M497","v":0},{"$f":"'3 INCOME & EXPENSE'!N497","v":0},{"$f":"'3 INCOME & EXPENSE'!O497","v":0}]
[null,{"$f":"T('3 INCOME & EXPENSE'!D498)","v":""},{"$f":"'3 INCOME & EXPENSE'!E498","v":"00:00:00"},{"$f":"'3 INCOME & EXPENSE'!F498","v":0},{"$f":"'3 INCOME & EXPENSE'!G498","v":0},{"$f":"T('3 INCOME & EXPENSE'!H498)","v":""},{"$f":"T('3 INCOME & EXPENSE'!I498)","v":""},{"$f":"T('3 INCOME & EXPENSE'!J498)","v":""},{"$f":"T('3 INCOME & EXPENSE'!K498)","v":""},{"$f":"T('3 INCOME & EXPENSE'!L498)","v":""},{"$f":"'3 INCOME & EXPENSE'!M498","v":0},{"$f":"'3 INCOME & EXPENSE'!N498","v":0},{"$f":"'3 INCOME & EXPENSE'!O498","v":0}]
[null,{"$f":"T('3 INCOME & EXPENSE'!D499)","v":""},{"$f":"'3 INCOME & EXPENSE'!E499","v":"00:00:00"},{"$f":"'3 INCOME & EXPENSE'!F499","v":0},{"$f":"'3 INCOME & EXPENSE'!G499","v":0},{"$f":"T('3 INCOME & EXPENSE'!H499)","v":""},{"$f":"T('3 INCOME & EXPENSE'!I499)","v":""},{"$f":"T('3 INCOME & EXPENSE'!J499)","v":""},{"$f":"T('3 INCOME & EXPENSE'!K499)","v":""},{"$f":"T('3 INCOME & EXPENSE'!L499)","v":""},{"$f":"'3 INCOME & EXPENSE'!M499","v":0},{"$f":"'3 INCOME & EXPENSE'!N499","v":0},{"$f":"'3 INCOME & EXPENSE'!O499","v":0}]
[null,{"$f":"T('3 INCOME & EXPENSE'!D500)","v":""},{"$f":"'3 INCOME & EXPENSE'!E500","v":"00:00:00"},{"$f":"'3 INCOME & EXPENSE'!F500","v":0},{"$f":"'3 INCOME & EXPENSE'!G500","v":0},{"$f":"T('3 INCOME & EXPENSE'!H500)","v":""},{"$f":"T('3 INCOME & EXPENSE'!I500)","v":""},{"$f":"T('3 INCOME & EXPENSE'!J500)","v":""},{"$f":"T('3 INCOME & EXPENSE'!K500)","v":""},{"$f":"T('3 INCOME & EXPENSE'!L500)","v":""},{"$f":"'3 INCOME & EXPENSE'!M500","v":0},{"$f":"'3 INCOME & EXPENSE'!N500","v":0},{"$f":"'3 INCOME & EXPENSE'!O500","v":0}]
[null,{"$f":"T('3 INCOME & EXPENSE'!D501)","v":""},{"$f":"'3 INCOME & EXPENSE'!E501","v":"00:00:00"},{"$f":"'3 INCOME & EXPENSE'!F501","v":0},{"$f":"'3 INCOME & EXPENSE'!G501","v":0},{"$f":"T('3 INCOME & EXPENSE'!H501)","v":""},{"$f":"T('3 INCOME & EXPENSE'!I501)","v":""},{"$f":"T('3 INCOME & EXPENSE'!J501)","v":""},{"$f":"T('3 INCOME & EXPENSE'!K501)","v":""},{"$f":"T('3 INCOME & EXPENSE'!L501)","v":""},{"$f":"'3 INCOME & EXPENSE'!M501","v":0},{"$f":"'3 INCOME & EXPENSE'!N501","v":0},{"$f":"'3 INCOME & EXPENSE'!O501","v":0}]
[null,{"$f":"T('3 INCOME & EXPENSE'!D502)","v":""},{"$f":"'3 INCOME & EXPENSE'!E502","v":"00:00:00"},{"$f":"'3 INCOME & EXPENSE'!F502","v":0},{"$f":"'3 INCOME & EXPENSE'!G502","v":0},{"$f":"T('3 INCOME & EXPENSE'!H502)","v":""},{"$f":"T('3 INCOME & EXPENSE'!I502)","v":""},{"$f":"T('3 INCOME & EXPENSE'!J502)","v":""},{"$f":"T('3 INCOME & EXPENSE'!K502)","v":""},{"$f":"T('3 INCOME & EXPENSE'!L502)","v":""},{"$f":"'3 INCOME & EXPENSE'!M502","v":0},{"$f":"'3 INCOME & EXPENSE'!N502","v":0},{"$f":"'3 INCOME & EXPENSE'!O502","v":0}]
[null,{"$f":"T('3 INCOME & EXPENSE'!D503)","v":""},{"$f":"'3 INCOME & EXPENSE'!E503","v":"00:00:00"},{"$f":"'3 INCOME & EXPENSE'!F503","v":0},{"$f":"'3 INCOME & EXPENSE'!G503","v":0},{"$f":"T('3 INCOME & EXPENSE'!H503)","v":""},{"$f":"T('3 INCOME & EXPENSE'!I503)","v":""},{"$f":"T('3 INCOME & EXPENSE'!J503)","v":""},{"$f":"T('3 INCOME & EXPENSE'!K503)","v":""},{"$f":"T('3 INCOME & EXPENSE'!L503)","v":""},{"$f":"'3 INCOME & EXPENSE'!M503","v":0},{"$f":"'3 INCOME & EXPENSE'!N503","v":0},{"$f":"'3 INCOME & EXPENSE'!O503","v":0}]
[null,{"$f":"T('3 INCOME & EXPENSE'!D504)","v":""},{"$f":"'3 INCOME & EXPENSE'!E504","v":"00:00:00"},{"$f":"'3 INCOME & EXPENSE'!F504","v":0},{"$f":"'3 INCOME & EXPENSE'!G504","v":0},{"$f":"T('3 INCOME & EXPENSE'!H504)","v":""},{"$f":"T('3 INCOME & EXPENSE'!I504)","v":""},{"$f":"T('3 INCOME & EXPENSE'!J504)","v":""},{"$f":"T('3 INCOME & EXPENSE'!K504)","v":""},{"$f":"T('3 INCOME & EXPENSE'!L504)","v":""},{"$f":"'3 INCOME & EXPENSE'!M504","v":0},{"$f":"'3 INCOME & EXPENSE'!N504","v":0},{"$f":"'3 INCOME & EXPENSE'!O504","v":0}]
[null,{"$f":"T('3 INCOME & EXPENSE'!D505)","v":""},{"$f":"'3 INCOME & EXPENSE'!E505","v":"00:00:00"},{"$f":"'3 INCOME & EXPENSE'!F505","v":0},{"$f":"'3 INCOME & EXPENSE'!G505","v":0},{"$f":"T('3 INCOME & EXPENSE'!H505)","v":""},{"$f":"T('3 INCOME & EXPENSE'!I505)","v":""},{"$f":"T('3 INCOME & EXPENSE'!J505)","v":""},{"$f":"T('3 INCOME & EXPENSE'!K505)","v":""},{"$f":"T('3 INCOME & EXPENSE'!L505)","v":""},{"$f":"'3 INCOME & EXPENSE'!M505","v":0},{"$f":"'3 INCOME & EXPENSE'!N505","v":0},{"$f":"'3 INCOME & EXPENSE'!O505","v":0}]
[null,{"$f":"T('3 INCOME & EXPENSE'!D506)","v":""},{"$f":"'3 INCOME & EXPENSE'!E506","v":"00:00:00"},{"$f":"'3 INCOME & EXPENSE'!F506","v":0},{"$f":"'3 INCOME & EXPENSE'!G506","v":0},{"$f":"T('3 INCOME & EXPENSE'!H506)","v":""},{"$f":"T('3 INCOME & EXPENSE'!I506)","v":""},{"$f":"T('3 INCOME & EXPENSE'!J506)","v":""},{"$f":"T('3 INCOME & EXPENSE'!K506)","v":""},{"$f":"T('3 INCOME & EXPENSE'!L506)","v":""},{"$f":"'3 INCOME & EXPENSE'!M506","v":0},{"$f":"'3 INCOME & EXPENSE'!N506","v":0},{"$f":"'3 INCOME & EXPENSE'!O506","v":0}]
[null,{"$f":"T('3 INCOME & EXPENSE'!D507)","v":""},{"$f":"'3 INCOME & EXPENSE'!E507","v":"00:00:00"},{"$f":"'3 INCOME & EXPENSE'!F507","v":0},{"$f":"'3 INCOME & EXPENSE'!G507","v":0},{"$f":"T('3 INCOME & EXPENSE'!H507)","v":""},{"$f":"T('3 INCOME & EXPENSE'!I507)","v":""},{"$f":"T('3 INCOME & EXPENSE'!J507)","v":""},{"$f":"T('3 INCOME & EXPENSE'!K507)","v":""},{"$f":"T('3 INCOME & EXPENSE'!L507)","v":""},{"$f":"'3 INCOME & EXPENSE'!M507","v":0},{"$f":"'3 INCOME & EXPENSE'!N507","v":0},{"$f":"'3 INCOME & EXPENSE'!O507","v":0}]
[null,{"$f":"T('3 INCOME & EXPENSE'!D508)","v":""},{"$f":"'3 INCOME & EXPENSE'!E508","v":"00:00:00"},{"$f":"'3 INCOME & EXPENSE'!F508","v":0},{"$f":"'3 INCOME & EXPENSE'!G508","v":0},{"$f":"T('3 INCOME & EXPENSE'!H508)","v":""},{"$f":"T('3 INCOME & EXPENSE'!I508)","v":""},{"$f":"T('3 INCOME & EXPENSE'!J508)","v":""},{"$f":"T('3 INCOME & EXPENSE'!K508)","v":""},{"$f":"T('3 INCOME & EXPENSE'!L508)","v":""},{"$f":"'3 INCOME & EXPENSE'!M508","v":0},{"$f":"'3 INCOME & EXPENSE'!N508","v":0},{"$f":"'3 INCOME & EXPENSE'!O508","v":0}]
[null,{"$f":"T('3 INCOME & EXPENSE'!D509)","v":""},{"$f":"'3 INCOME & EXPENSE'!E509","v":"00:00:00"},{"$f":"'3 INCOME & EXPENSE'!F509","v":0},{"$f":"'3 INCOME & EXPENSE'!G509","v":0},{"$f":"T('3 INCOME & EXPENSE'!H509)","v":""},{"$f":"T('3 INCOME & EXPENSE'!I509)","v":""},{"$f":"T('3 INCOME & EXPENSE'!J509)","v":""},{"$f":"T('3 INCOME & EXPENSE'!K509)","v":""},{"$f":"T('3 INCOME & EXPENSE'!L509)","v":""},{"$f":"'3 INCOME & EXPENSE'!M509","v":0},{"$f":"'3 INCOME & EXPENSE'!N509","v":0},{"$f":"'3 INCOME & EXPENSE'!O509","v":0}]
[null,{"$f":"T('3 INCOME & EXPENSE'!D510)","v":""},{"$f":"'3 INCOME & EXPENSE'!E510","v":"00:00:00"},{"$f":"'3 INCOME & EXPENSE'!F510","v":0},{"$f":"'3 INCOME & EXPENSE'!G510","v":0},{"$f":"T('3 INCOME & EXPENSE'!H510)","v":""},{"$f":"T('3 INCOME & EXPENSE'!I510)","v":""},{"$f":"T('3 INCOME & EXPENSE'!J510)","v":""},{"$f":"T('3 INCOME & EXPENSE'!K510)","v":""},{"$f":"T('3 INCOME & EXPENSE'!L510)","v":""},{"$f":"'3 INCOME & EXPENSE'!M510","v":0},{"$f":"'3 INCOME & EXPENSE'!N510","v":0},{"$f":"'3 INCOME & EXPENSE'!O510","v":0}]
[null,{"$f":"T('3 INCOME & EXPENSE'!D511)","v":""},{"$f":"'3 INCOME & EXPENSE'!E511","v":"00:00:00"},{"$f":"'3 INCOME & EXPENSE'!F511","v":0},{"$f":"'3 INCOME & EXPENSE'!G511","v":0},{"$f":"T('3 INCOME & EXPENSE'!H511)","v":""},{"$f":"T('3 INCOME & EXPENSE'!I511)","v":""},{"$f":"T('3 INCOME & EXPENSE'!J511)","v":""},{"$f":"T('3 INCOME & EXPENSE'!K511)","v":""},{"$f":"T('3 INCOME & EXPENSE'!L511)","v":""},{"$f":"'3 INCOME & EXPENSE'!M511","v":0},{"$f":"'3 INCOME & EXPENSE'!N511","v":0},{"$f":"'3 INCOME & EXPENSE'!O511","v":0}]
[null,{"$f":"T('3 INCOME & EXPENSE'!D512)","v":""},{"$f":"'3 INCOME & EXPENSE'!E512","v":"00:00:00"},{"$f":"'3 INCOME & EXPENSE'!F512","v":0},{"$f":"'3 INCOME & EXPENSE'!G512","v":0},{"$f":"T('3 INCOME & EXPENSE'!H512)","v":""},{"$f":"T('3 INCOME & EXPENSE'!I512)","v":""},{"$f":"T('3 INCOME & EXPENSE'!J512)","v":""},{"$f":"T('3 INCOME & EXPENSE'!K512)","v":""},{"$f":"T('3 INCOME & EXPENSE'!L512)","v":""},{"$f":"'3 INCOME & EXPENSE'!M512","v":0},{"$f":"'3 INCOME & EXPENSE'!N512","v":0},{"$f":"'3 INCOME & EXPENSE'!O512","v":0}]
[null,{"$f":"T('3 INCOME & EXPENSE'!D513)","v":""},{"$f":"'3 INCOME & EXPENSE'!E513","v":"00:00:00"},{"$f":"'3 INCOME & EXPENSE'!F513","v":0},{"$f":"'3 INCOME & EXPENSE'!G513","v":0},{"$f":"T('3 INCOME & EXPENSE'!H513)","v":""},{"$f":"T('3 INCOME & EXPENSE'!I513)","v":""},{"$f":"T('3 INCOME & EXPENSE'!J513)","v":""},{"$f":"T('3 INCOME & EXPENSE'!K513)","v":""},{"$f":"T('3 INCOME & EXPENSE'!L513)","v":""},{"$f":"'3 INCOME & EXPENSE'!M513","v":0},{"$f":"'3 INCOME & EXPENSE'!N513","v":0},{"$f":"'3 INCOME & EXPENSE'!O513","v":0}]
[null,{"$f":"T('3 INCOME & EXPENSE'!D514)","v":""},{"$f":"'3 INCOME & EXPENSE'!E514","v":"00:00:00"},{"$f":"'3 INCOME & EXPENSE'!F514","v":0},{"$f":"'3 INCOME & EXPENSE'!G514","v":0},{"$f":"T('3 INCOME & EXPENSE'!H514)","v":""},{"$f":"T('3 INCOME & EXPENSE'!I514)","v":""},{"$f":"T('3 INCOME & EXPENSE'!J514)","v":""},{"$f":"T('3 INCOME & EXPENSE'!K514)","v":""},{"$f":"T('3 INCOME & EXPENSE'!L514)","v":""},{"$f":"'3 INCOME & EXPENSE'!M514","v":0},{"$f":"'3 INCOME & EXPENSE'!N514","v":0},{"$f":"'3 INCOME & EXPENSE'!O514","v":0}]
[null,{"$f":"T('3 INCOME & EXPENSE'!D515)","v":""},{"$f":"'3 INCOME & EXPENSE'!E515","v":"00:00:00"},{"$f":"'3 INCOME & EXPENSE'!F515","v":0},{"$f":"'3 INCOME & EXPENSE'!G515","v":0},{"$f":"T('3 INCOME & EXPENSE'!H515)","v":""},{"$f":"T('3 INCOME & EXPENSE'!I515)","v":""},{"$f":"T('3 INCOME & EXPENSE'!J515)","v":""},{"$f":"T('3 INCOME & EXPENSE'!K515)","v":""},{"$f":"T('3 INCOME & EXPENSE'!L515)","v":""},{"$f":"'3 INCOME & EXPENSE'!M515","v":0},{"$f":"'3 INCOME & EXPENSE'!N515","v":0},{"$f":"'3 INCOME & EXPENSE'!O515","v":0}]
[null,{"$f":"T('3 INCOME & EXPENSE'!D516)","v":""},{"$f":"'3 INCOME & EXPENSE'!E516","v":"00:00:00"},{"$f":"'3 INCOME & EXPENSE'!F516","v":0},{"$f":"'3 INCOME & EXPENSE'!G516","v":0},{"$f":"T('3 INCOME & EXPENSE'!H516)","v":""},{"$f":"T('3 INCOME & EXPENSE'!I516)","v":""},{"$f":"T('3 INCOME & EXPENSE'!J516)","v":""},{"$f":"T('3 INCOME & EXPENSE'!K516)","v":""},{"$f":"T('3 INCOME & EXPENSE'!L516)","v":""},{"$f":"'3 INCOME & EXPENSE'!M516","v":0},{"$f":"'3 INCOME & EXPENSE'!N516","v":0},{"$f":"'3 INCOME & EXPENSE'!O516","v":0}]
[null,{"$f":"T('3 INCOME & EXPENSE'!D517)","v":""},{"$f":"'3 INCOME & EXPENSE'!E517","v":"00:00:00"},{"$f":"'3 INCOME & EXPENSE'!F517","v":0},{"$f":"'3 INCOME & EXPENSE'!G517","v":0},{"$f":"T('3 INCOME & EXPENSE'!H517)","v":""},{"$f":"T('3 INCOME & EXPENSE'!I517)","v":""},{"$f":"T('3 INCOME & EXPENSE'!J517)","v":""},{"$f":"T('3 INCOME & EXPENSE'!K517)","v":""},{"$f":"T('3 INCOME & EXPENSE'!L517)","v":""},{"$f":"'3 INCOME & EXPENSE'!M517","v":0},{"$f":"'3 INCOME & EXPENSE'!N517","v":0},{"$f":"'3 INCOME & EXPENSE'!O517","v":0}]
[null,{"$f":"T('3 INCOME & EXPENSE'!D518)","v":""},{"$f":"'3 INCOME & EXPENSE'!E518","v":"00:00:00"},{"$f":"'3 INCOME & EXPENSE'!F518","v":0},{"$f":"'3 INCOME & EXPENSE'!G518","v":0},{"$f":"T('3 INCOME & EXPENSE'!H518)","v":""},{"$f":"T('3 INCOME & EXPENSE'!I518)","v":""},{"$f":"T('3 INCOME & EXPENSE'!J518)","v":""},{"$f":"T('3 INCOME & EXPENSE'!K518)","v":""},{"$f":"T('3 INCOME & EXPENSE'!L518)","v":""},{"$f":"'3 INCOME & EXPENSE'!M518","v":0},{"$f":"'3 INCOME & EXPENSE'!N518","v":0},{"$f":"'3 INCOME & EXPENSE'!O518","v":0}]
[null,{"$f":"T('3 INCOME & EXPENSE'!D519)","v":""},{"$f":"'3 INCOME & EXPENSE'!E519","v":"00:00:00"},{"$f":"'3 INCOME & EXPENSE'!F519","v":0},{"$f":"'3 INCOME & EXPENSE'!G519","v":0},{"$f":"T('3 INCOME & EXPENSE'!H519)","v":""},{"$f":"T('3 INCOME & EXPENSE'!I519)","v":""},{"$f":"T('3 INCOME & EXPENSE'!J519)","v":""},{"$f":"T('3 INCOME & EXPENSE'!K519)","v":""},{"$f":"T('3 INCOME & EXPENSE'!L519)","v":""},{"$f":"'3 INCOME & EXPENSE'!M519","v":0},{"$f":"'3 INCOME & EXPENSE'!N519","v":0},{"$f":"'3 INCOME & EXPENSE'!O519","v":0}]
[null,{"$f":"T('3 INCOME & EXPENSE'!D520)","v":""},{"$f":"'3 INCOME & EXPENSE'!E520","v":"00:00:00"},{"$f":"'3 INCOME & EXPENSE'!F520","v":0},{"$f":"'3 INCOME & EXPENSE'!G520","v":0},{"$f":"T('3 INCOME & EXPENSE'!H520)","v":""},{"$f":"T('3 INCOME & EXPENSE'!I520)","v":""},{"$f":"T('3 INCOME & EXPENSE'!J520)","v":""},{"$f":"T('3 INCOME & EXPENSE'!K520)","v":""},{"$f":"T('3 INCOME & EXPENSE'!L520)","v":""},{"$f":"'3 INCOME & EXPENSE'!M520","v":0},{"$f":"'3 INCOME & EXPENSE'!N520","v":0},{"$f":"'3 INCOME & EXPENSE'!O520","v":0}]
[null,{"$f":"T('3 INCOME & EXPENSE'!D521)","v":""},{"$f":"'3 INCOME & EXPENSE'!E521","v":"00:00:00"},{"$f":"'3 INCOME & EXPENSE'!F521","v":0},{"$f":"'3 INCOME & EXPENSE'!G521","v":0},{"$f":"T('3 INCOME & EXPENSE'!H521)","v":""},{"$f":"T('3 INCOME & EXPENSE'!I521)","v":""},{"$f":"T('3 INCOME & EXPENSE'!J521)","v":""},{"$f":"T('3 INCOME & EXPENSE'!K521)","v":""},{"$f":"T('3 INCOME & EXPENSE'!L521)","v":""},{"$f":"'3 INCOME & EXPENSE'!M521","v":0},{"$f":"'3 INCOME & EXPENSE'!N521","v":0},{"$f":"'3 INCOME & EXPENSE'!O521","v":0}]
[null,{"$f":"T('3 INCOME & EXPENSE'!D522)","v":""},{"$f":"'3 INCOME & EXPENSE'!E522","v":"00:00:00"},{"$f":"'3 INCOME & EXPENSE'!F522","v":0},{"$f":"'3 INCOME & EXPENSE'!G522","v":0},{"$f":"T('3 INCOME & EXPENSE'!H522)","v":""},{"$f":"T('3 INCOME & EXPENSE'!I522)","v":""},{"$f":"T('3 INCOME & EXPENSE'!J522)","v":""},{"$f":"T('3 INCOME & EXPENSE'!K522)","v":""},{"$f":"T('3 INCOME & EXPENSE'!L522)","v":""},{"$f":"'3 INCOME & EXPENSE'!M522","v":0},{"$f":"'3 INCOME & EXPENSE'!N522","v":0},{"$f":"'3 INCOME & EXPENSE'!O522","v":0}]
[null,{"$f":"T('3 INCOME & EXPENSE'!D523)","v":""},{"$f":"'3 INCOME & EXPENSE'!E523","v":"00:00:00"},{"$f":"'3 INCOME & EXPENSE'!F523","v":0},{"$f":"'3 INCOME & EXPENSE'!G523","v":0},{"$f":"T('3 INCOME & EXPENSE'!H523)","v":""},{"$f":"T('3 INCOME & EXPENSE'!I523)","v":""},{"$f":"T('3 INCOME & EXPENSE'!J523)","v":""},{"$f":"T('3 INCOME & EXPENSE'!K523)","v":""},{"$f":"T('3 INCOME & EXPENSE'!L523)","v":""},{"$f":"'3 INCOME & EXPENSE'!M523","v":0},{"$f":"'3 INCOME & EXPENSE'!N523","v":0},{"$f":"'3 INCOME & EXPENSE'!O523","v":0}]
[null,{"$f":"T('3 INCOME & EXPENSE'!D524)","v":""},{"$f":"'3 INCOME & EXPENSE'!E524","v":"00:00:00"},{"$f":"'3 INCOME & EXPENSE'!F524","v":0},{"$f":"'3 INCOME & EXPENSE'!G524","v":0},{"$f":"T('3 INCOME & EXPENSE'!H524)","v":""},{"$f":"T('3 INCOME & EXPENSE'!I524)","v":""},{"$f":"T('3 INCOME & EXPENSE'!J524)","v":""},{"$f":"T('3 INCOME & EXPENSE'!K524)","v":""},{"$f":"T('3 INCOME & EXPENSE'!L524)","v":""},{"$f":"'3 INCOME & EXPENSE'!M524","v":0},{"$f":"'3 INCOME & EXPENSE'!N524","v":0},{"$f":"'3 INCOME & EXPENSE'!O524","v":0}]
[null,{"$f":"T('3 INCOME & EXPENSE'!D525)","v":""},{"$f":"'3 INCOME & EXPENSE'!E525","v":"00:00:00"},{"$f":"'3 INCOME & EXPENSE'!F525","v":0},{"$f":"'3 INCOME & EXPENSE'!G525","v":0},{"$f":"T('3 INCOME & EXPENSE'!H525)","v":""},{"$f":"T('3 INCOME & EXPENSE'!I525)","v":""},{"$f":"T('3 INCOME & EXPENSE'!J525)","v":""},{"$f":"T('3 INCOME & EXPENSE'!K525)","v":""},{"$f":"T('3 INCOME & EXPENSE'!L525)","v":""},{"$f":"'3 INCOME & EXPENSE'!M525","v":0},{"$f":"'3 INCOME & EXPENSE'!N525","v":0},{"$f":"'3 INCOME & EXPENSE'!O525","v":0}]
[null,{"$f":"T('3 INCOME & EXPENSE'!D526)","v":""},{"$f":"'3 INCOME & EXPENSE'!E526","v":"00:00:00"},{"$f":"'3 INCOME & EXPENSE'!F526","v":0},{"$f":"'3 INCOME & EXPENSE'!G526","v":0},{"$f":"T('3 INCOME & EXPENSE'!H526)","v":""},{"$f":"T('3 INCOME & EXPENSE'!I526)","v":""},{"$f":"T('3 INCOME & EXPENSE'!J526)","v":""},{"$f":"T('3 INCOME & EXPENSE'!K526)","v":""},{"$f":"T('3 INCOME & EXPENSE'!L526)","v":""},{"$f":"'3 INCOME & EXPENSE'!M526","v":0},{"$f":"'3 INCOME & EXPENSE'!N526","v":0},{"$f":"'3 INCOME & EXPENSE'!O526","v":0}]
[null,{"$f":"T('3 INCOME & EXPENSE'!D527)","v":""},{"$f":"'3 INCOME & EXPENSE'!E527","v":"00:00:00"},{"$f":"'3 INCOME & EXPENSE'!F527","v":0},{"$f":"'3 INCOME & EXPENSE'!G527","v":0},{"$f":"T('3 INCOME & EXPENSE'!H527)","v":""},{"$f":"T('3 INCOME & EXPENSE'!I527)","v":""},{"$f":"T('3 INCOME & EXPENSE'!J527)","v":""},{"$f":"T('3 INCOME & EXPENSE'!K527)","v":""},{"$f":"T('3 INCOME & EXPENSE'!L527)","v":""},{"$f":"'3 INCOME & EXPENSE'!M527","v":0},{"$f":"'3 INCOME & EXPENSE'!N527","v":0},{"$f":"'3 INCOME & EXPENSE'!O527","v":0}]
[null,{"$f":"T('3 INCOME & EXPENSE'!D528)","v":""},{"$f":"'3 INCOME & EXPENSE'!E528","v":"00:00:00"},{"$f":"'3 INCOME & EXPENSE'!F528","v":0},{"$f":"'3 INCOME & EXPENSE'!G528","v":0},{"$f":"T('3 INCOME & EXPENSE'!H528)","v":""},{"$f":"T('3 INCOME & EXPENSE'!I528)","v":""},{"$f":"T('3 INCOME & EXPENSE'!J528)","v":""},{"$f":"T('3 INCOME & EXPENSE'!K528)","v":""},{"$f":"T('3 INCOME & EXPENSE'!L528)","v":""},{"$f":"'3 INCOME & EXPENSE'!M528","v":0},{"$f":"'3 INCOME & EXPENSE'!N528","v":0},{"$f":"'3 INCOME & EXPENSE'!O528","v":0}]
[null,{"$f":"T('3 INCOME & EXPENSE'!D529)","v":""},{"$f":"'3 INCOME & EXPENSE'!E529","v":"00:00:00"},{"$f":"'3 INCOME & EXPENSE'!F529","v":0},{"$f":"'3 INCOME & EXPENSE'!G529","v":0},{"$f":"T('3 INCOME & EXPENSE'!H529)","v":""},{"$f":"T('3 INCOME & EXPENSE'!I529)","v":""},{"$f":"T('3 INCOME & EXPENSE'!J529)","v":""},{"$f":"T('3 INCOME & EXPENSE'!K529)","v":""},{"$f":"T('3 INCOME & EXPENSE'!L529)","v":""},{"$f":"'3 INCOME & EXPENSE'!M529","v":0},{"$f":"'3 INCOME & EXPENSE'!N529","v":0},{"$f":"'3 INCOME & EXPENSE'!O529","v":0}]
[null,{"$f":"T('3 INCOME & EXPENSE'!D530)","v":""},{"$f":"'3 INCOME & EXPENSE'!E530","v":"00:00:00"},{"$f":"'3 INCOME & EXPENSE'!F530","v":0},{"$f":"'3 INCOME & EXPENSE'!G530","v":0},{"$f":"T('3 INCOME & EXPENSE'!H530)","v":""},{"$f":"T('3 INCOME & EXPENSE'!I530)","v":""},{"$f":"T('3 INCOME & EXPENSE'!J530)","v":""},{"$f":"T('3 INCOME & EXPENSE'!K530)","v":""},{"$f":"T('3 INCOME & EXPENSE'!L530)","v":""},{"$f":"'3 INCOME & EXPENSE'!M530","v":0},{"$f":"'3 INCOME & EXPENSE'!N530","v":0},{"$f":"'3 INCOME & EXPENSE'!O530","v":0}]
[null,{"$f":"T('3 INCOME & EXPENSE'!D531)","v":""},{"$f":"'3 INCOME & EXPENSE'!E531","v":"00:00:00"},{"$f":"'3 INCOME & EXPENSE'!F531","v":0},{"$f":"'3 INCOME & EXPENSE'!G531","v":0},{"$f":"T('3 INCOME & EXPENSE'!H531)","v":""},{"$f":"T('3 INCOME & EXPENSE'!I531)","v":""},{"$f":"T('3 INCOME & EXPENSE'!J531)","v":""},{"$f":"T('3 INCOME & EXPENSE'!K531)","v":""},{"$f":"T('3 INCOME & EXPENSE'!L531)","v":""},{"$f":"'3 INCOME & EXPENSE'!M531","v":0},{"$f":"'3 INCOME & EXPENSE'!N531","v":0},{"$f":"'3 INCOME & EXPENSE'!O531","v":0}]
[null,{"$f":"T('3 INCOME & EXPENSE'!D532)","v":""},{"$f":"'3 INCOME & EXPENSE'!E532","v":"00:00:00"},{"$f":"'3 INCOME & EXPENSE'!F532","v":0},{"$f":"'3 INCOME & EXPENSE'!G532","v":0},{"$f":"T('3 INCOME & EXPENSE'!H532)","v":""},{"$f":"T('3 INCOME & EXPENSE'!I532)","v":""},{"$f":"T('3 INCOME & EXPENSE'!J532)","v":""},{"$f":"T('3 INCOME & EXPENSE'!K532)","v":""},{"$f":"T('3 INCOME & EXPENSE'!L532)","v":""},{"$f":"'3 INCOME & EXPENSE'!M532","v":0},{"$f":"'3 INCOME & EXPENSE'!N532","v":0},{"$f":"'3 INCOME & EXPENSE'!O532","v":0}]
[null,{"$f":"T('3 INCOME & EXPENSE'!D533)","v":""},{"$f":"'3 INCOME & EXPENSE'!E533","v":"00:00:00"},{"$f":"'3 INCOME & EXPENSE'!F533","v":0},{"$f":"'3 INCOME & EXPENSE'!G533","v":0},{"$f":"T('3 INCOME & EXPENSE'!H533)","v":""},{"$f":"T('3 INCOME & EXPENSE'!I533)","v":""},{"$f":"T('3 INCOME & EXPENSE'!J533)","v":""},{"$f":"T('3 INCOME & EXPENSE'!K533)","v":""},{"$f":"T('3 INCOME & EXPENSE'!L533)","v":""},{"$f":"'3 INCOME & EXPENSE'!M533","v":0},{"$f":"'3 INCOME & EXPENSE'!N533","v":0},{"$f":"'3 INCOME & EXPENSE'!O533","v":0}]
[null,{"$f":"T('3 INCOME & EXPENSE'!D534)","v":""},{"$f":"'3 INCOME & EXPENSE'!E534","v":"00:00:00"},{"$f":"'3 INCOME & EXPENSE'!F534","v":0},{"$f":"'3 INCOME & EXPENSE'!G534","v":0},{"$f":"T('3 INCOME & EXPENSE'!H534)","v":""},{"$f":"T('3 INCOME & EXPENSE'!I534)","v":""},{"$f":"T('3 INCOME & EXPENSE'!J534)","v":""},{"$f":"T('3 INCOME & EXPENSE'!K534)","v":""},{"$f":"T('3 INCOME & EXPENSE'!L534)","v":""},{"$f":"'3 INCOME & EXPENSE'!M534","v":0},{"$f":"'3 INCOME & EXPENSE'!N534","v":0},{"$f":"'3 INCOME & EXPENSE'!O534","v":0}]
[null,{"$f":"T('3 INCOME & EXPENSE'!D535)","v":""},{"$f":"'3 INCOME & EXPENSE'!E535","v":"00:00:00"},{"$f":"'3 INCOME & EXPENSE'!F535","v":0},{"$f":"'3 INCOME & EXPENSE'!G535","v":0},{"$f":"T('3 INCOME & EXPENSE'!H535)","v":""},{"$f":"T('3 INCOME & EXPENSE'!I535)","v":""},{"$f":"T('3 INCOME & EXPENSE'!J535)","v":""},{"$f":"T('3 INCOME & EXPENSE'!K535)","v":""},{"$f":"T('3 INCOME & EXPENSE'!L535)","v":""},{"$f":"'3 INCOME & EXPENSE'!M535","v":0},{"$f":"'3 INCOME & EXPENSE'!N535","v":0},{"$f":"'3 INCOME & EXPENSE'!O535","v":0}]
[null,{"$f":"T('3 INCOME & EXPENSE'!D536)","v":""},{"$f":"'3 INCOME & EXPENSE'!E536","v":"00:00:00"},{"$f":"'3 INCOME & EXPENSE'!F536","v":0},{"$f":"'3 INCOME & EXPENSE'!G536","v":0},{"$f":"T('3 INCOME & EXPENSE'!H536)","v":""},{"$f":"T('3 INCOME & EXPENSE'!I536)","v":""},{"$f":"T('3 INCOME & EXPENSE'!J536)","v":""},{"$f":"T('3 INCOME & EXPENSE'!K536)","v":""},{"$f":"T('3 INCOME & EXPENSE'!L536)","v":""},{"$f":"'3 INCOME & EXPENSE'!M536","v":0},{"$f":"'3 INCOME & EXPENSE'!N536","v":0},{"$f":"'3 INCOME & EXPENSE'!O536","v":0}]
[null,{"$f":"T('3 INCOME & EXPENSE'!D537)","v":""},{"$f":"'3 INCOME & EXPENSE'!E537","v":"00:00:00"},{"$f":"'3 INCOME & EXPENSE'!F537","v":0},{"$f":"'3 INCOME & EXPENSE'!G537","v":0},{"$f":"T('3 INCOME & EXPENSE'!H537)","v":""},{"$f":"T('3 INCOME & EXPENSE'!I537)","v":""},{"$f":"T('3 INCOME & EXPENSE'!J537)","v":""},{"$f":"T('3 INCOME & EXPENSE'!K537)","v":""},{"$f":"T('3 INCOME & EXPENSE'!L537)","v":""},{"$f":"'3 INCOME & EXPENSE'!M537","v":0},{"$f":"'3 INCOME & EXPENSE'!N537","v":0},{"$f":"'3 INCOME & EXPENSE'!O537","v":0}]
[null,{"$f":"T('3 INCOME & EXPENSE'!D538)","v":""},{"$f":"'3 INCOME & EXPENSE'!E538","v":"00:00:00"},{"$f":"'3 INCOME & EXPENSE'!F538","v":0},{"$f":"'3 INCOME & EXPENSE'!G538","v":0},{"$f":"T('3 INCOME & EXPENSE'!H538)","v":""},{"$f":"T('3 INCOME & EXPENSE'!I538)","v":""},{"$f":"T('3 INCOME & EXPENSE'!J538)","v":""},{"$f":"T('3 INCOME & EXPENSE'!K538)","v":""},{"$f":"T('3 INCOME & EXPENSE'!L538)","v":""},{"$f":"'3 INCOME & EXPENSE'!M538","v":0},{"$f":"'3 INCOME & EXPENSE'!N538","v":0},{"$f":"'3 INCOME & EXPENSE'!O538","v":0}]
[null,{"$f":"T('3 INCOME & EXPENSE'!D539)","v":""},{"$f":"'3 INCOME & EXPENSE'!E539","v":"00:00:00"},{"$f":"'3 INCOME & EXPENSE'!F539","v":0},{"$f":"'3 INCOME & EXPENSE'!G539","v":0},{"$f":"T('3 INCOME & EXPENSE'!H539)","v":""},{"$f":"T('3 INCOME & EXPENSE'!I539)","v":""},{"$f":"T('3 INCOME & EXPENSE'!J539)","v":""},{"$f":"T('3 INCOME & EXPENSE'!K539)","v":""},{"$f":"T('3 INCOME & EXPENSE'!L539)","v":""},{"$f":"'3 INCOME & EXPENSE'!M539","v":0},{"$f":"'3 INCOME & EXPENSE'!N539","v":0},{"$f":"'3 INCOME & EXPENSE'!O539","v":0}]
[null,{"$f":"T('3 INCOME & EXPENSE'!D540)","v":""},{"$f":"'3 INCOME & EXPENSE'!E540","v":"00:00:00"},{"$f":"'3 INCOME & EXPENSE'!F540","v":0},{"$f":"'3 INCOME & EXPENSE'!G540","v":0},{"$f":"T('3 INCOME & EXPENSE'!H540)","v":""},{"$f":"T('3 INCOME & EXPENSE'!I540)","v":""},{"$f":"T('3 INCOME & EXPENSE'!J540)","v":""},{"$f":"T('3 INCOME & EXPENSE'!K540)","v":""},{"$f":"T('3 INCOME & EXPENSE'!L540)","v":""},{"$f":"'3 INCOME & EXPENSE'!M540","v":0},{"$f":"'3 INCOME & EXPENSE'!N540","v":0},{"$f":"'3 INCOME & EXPENSE'!O540","v":0}]
[null,{"$f":"T('3 INCOME & EXPENSE'!D541)","v":""},{"$f":"'3 INCOME & EXPENSE'!E541","v":"00:00:00"},{"$f":"'3 INCOME & EXPENSE'!F541","v":0},{"$f":"'3 INCOME & EXPENSE'!G541","v":0},{"$f":"T('3 INCOME & EXPENSE'!H541)","v":""},{"$f":"T('3 INCOME & EXPENSE'!I541)","v":""},{"$f":"T('3 INCOME & EXPENSE'!J541)","v":""},{"$f":"T('3 INCOME & EXPENSE'!K541)","v":""},{"$f":"T('3 INCOME & EXPENSE'!L541)","v":""},{"$f":"'3 INCOME & EXPENSE'!M541","v":0},{"$f":"'3 INCOME & EXPENSE'!N541","v":0},{"$f":"'3 INCOME & EXPENSE'!O541","v":0}]
[null,{"$f":"T('3 INCOME & EXPENSE'!D542)","v":""},{"$f":"'3 INCOME & EXPENSE'!E542","v":"00:00:00"},{"$f":"'3 INCOME & EXPENSE'!F542","v":0},{"$f":"'3 INCOME & EXPENSE'!G542","v":0},{"$f":"T('3 INCOME & EXPENSE'!H542)","v":""},{"$f":"T('3 INCOME & EXPENSE'!I542)","v":""},{"$f":"T('3 INCOME & EXPENSE'!J542)","v":""},{"$f":"T('3 INCOME & EXPENSE'!K542)","v":""},{"$f":"T('3 INCOME & EXPENSE'!L542)","v":""},{"$f":"'3 INCOME & EXPENSE'!M542","v":0},{"$f":"'3 INCOME & EXPENSE'!N542","v":0},{"$f":"'3 INCOME & EXPENSE'!O542","v":0}]
[null,{"$f":"T('3 INCOME & EXPENSE'!D543)","v":""},{"$f":"'3 INCOME & EXPENSE'!E543","v":"00:00:00"},{"$f":"'3 INCOME & EXPENSE'!F543","v":0},{"$f":"'3 INCOME & EXPENSE'!G543","v":0},{"$f":"T('3 INCOME & EXPENSE'!H543)","v":""},{"$f":"T('3 INCOME & EXPENSE'!I543)","v":""},{"$f":"T('3 INCOME & EXPENSE'!J543)","v":""},{"$f":"T('3 INCOME & EXPENSE'!K543)","v":""},{"$f":"T('3 INCOME & EXPENSE'!L543)","v":""},{"$f":"'3 INCOME & EXPENSE'!M543","v":0},{"$f":"'3 INCOME & EXPENSE'!N543","v":0},{"$f":"'3 INCOME & EXPENSE'!O543","v":0}]
[null,{"$f":"T('3 INCOME & EXPENSE'!D544)","v":""},{"$f":"'3 INCOME & EXPENSE'!E544","v":"00:00:00"},{"$f":"'3 INCOME & EXPENSE'!F544","v":0},{"$f":"'3 INCOME & EXPENSE'!G544","v":0},{"$f":"T('3 INCOME & EXPENSE'!H544)","v":""},{"$f":"T('3 INCOME & EXPENSE'!I544)","v":""},{"$f":"T('3 INCOME & EXPENSE'!J544)","v":""},{"$f":"T('3 INCOME & EXPENSE'!K544)","v":""},{"$f":"T('3 INCOME & EXPENSE'!L544)","v":""},{"$f":"'3 INCOME & EXPENSE'!M544","v":0},{"$f":"'3 INCOME & EXPENSE'!N544","v":0},{"$f":"'3 INCOME & EXPENSE'!O544","v":0}]
[null,{"$f":"T('3 INCOME & EXPENSE'!D545)","v":""},{"$f":"'3 INCOME & EXPENSE'!E545","v":"00:00:00"},{"$f":"'3 INCOME & EXPENSE'!F545","v":0},{"$f":"'3 INCOME & EXPENSE'!G545","v":0},{"$f":"T('3 INCOME & EXPENSE'!H545)","v":""},{"$f":"T('3 INCOME & EXPENSE'!I545)","v":""},{"$f":"T('3 INCOME & EXPENSE'!J545)","v":""},{"$f":"T('3 INCOME & EXPENSE'!K545)","v":""},{"$f":"T('3 INCOME & EXPENSE'!L545)","v":""},{"$f":"'3 INCOME & EXPENSE'!M545","v":0},{"$f":"'3 INCOME & EXPENSE'!N545","v":0},{"$f":"'3 INCOME & EXPENSE'!O545","v":0}]
[null,{"$f":"T('3 INCOME & EXPENSE'!D546)","v":""},{"$f":"'3 INCOME & EXPENSE'!E546","v":"00:00:00"},{"$f":"'3 INCOME & EXPENSE'!F546","v":0},{"$f":"'3 INCOME & EXPENSE'!G546","v":0},{"$f":"T('3 INCOME & EXPENSE'!H546)","v":""},{"$f":"T('3 INCOME & EXPENSE'!I546)","v":""},{"$f":"T('3 INCOME & EXPENSE'!J546)","v":""},{"$f":"T('3 INCOME & EXPENSE'!K546)","v":""},{"$f":"T('3 INCOME & EXPENSE'!L546)","v":""},{"$f":"'3 INCOME & EXPENSE'!M546","v":0},{"$f":"'3 INCOME & EXPENSE'!N546","v":0},{"$f":"'3 INCOME & EXPENSE'!O546","v":0}]
[null,{"$f":"T('3 INCOME & EXPENSE'!D547)","v":""},{"$f":"'3 INCOME & EXPENSE'!E547","v":"00:00:00"},{"$f":"'3 INCOME & EXPENSE'!F547","v":0},{"$f":"'3 INCOME & EXPENSE'!G547","v":0},{"$f":"T('3 INCOME & EXPENSE'!H547)","v":""},{"$f":"T('3 INCOME & EXPENSE'!I547)","v":""},{"$f":"T('3 INCOME & EXPENSE'!J547)","v":""},{"$f":"T('3 INCOME & EXPENSE'!K547)","v":""},{"$f":"T('3 INCOME & EXPENSE'!L547)","v":""},{"$f":"'3 INCOME & EXPENSE'!M547","v":0},{"$f":"'3 INCOME & EXPENSE'!N547","v":0},{"$f":"'3 INCOME & EXPENSE'!O547","v":0}]
[null,{"$f":"T('3 INCOME & EXPENSE'!D548)","v":""},{"$f":"'3 INCOME & EXPENSE'!E548","v":"00:00:00"},{"$f":"'3 INCOME & EXPENSE'!F548","v":0},{"$f":"'3 INCOME & EXPENSE'!G548","v":0},{"$f":"T('3 INCOME & EXPENSE'!H548)","v":""},{"$f":"T('3 INCOME & EXPENSE'!I548)","v":""},{"$f":"T('3 INCOME & EXPENSE'!J548)","v":""},{"$f":"T('3 INCOME & EXPENSE'!K548)","v":""},{"$f":"T('3 INCOME & EXPENSE'!L548)","v":""},{"$f":"'3 INCOME & EXPENSE'!M548","v":0},{"$f":"'3 INCOME & EXPENSE'!N548","v":0},{"$f":"'3 INCOME & EXPENSE'!O548","v":0}]
[null,{"$f":"T('3 INCOME & EXPENSE'!D549)","v":""},{"$f":"'3 INCOME & EXPENSE'!E549","v":"00:00:00"},{"$f":"'3 INCOME & EXPENSE'!F549","v":0},{"$f":"'3 INCOME & EXPENSE'!G549","v":0},{"$f":"T('3 INCOME & EXPENSE'!H549)","v":""},{"$f":"T('3 INCOME & EXPENSE'!I549)","v":""},{"$f":"T('3 INCOME & EXPENSE'!J549)","v":""},{"$f":"T('3 INCOME & EXPENSE'!K549)","v":""},{"$f":"T('3 INCOME & EXPENSE'!L549)","v":""},{"$f":"'3 INCOME & EXPENSE'!M549","v":0},{"$f":"'3 INCOME & EXPENSE'!N549","v":0},{"$f":"'3 INCOME & EXPENSE'!O549","v":0}]
[null,{"$f":"T('3 INCOME & EXPENSE'!D550)","v":""},{"$f":"'3 INCOME & EXPENSE'!E550","v":"00:00:00"},{"$f":"'3 INCOME & EXPENSE'!F550","v":0},{"$f":"'3 INCOME & EXPENSE'!G550","v":0},{"$f":"T('3 INCOME & EXPENSE'!H550)","v":""},{"$f":"T('3 INCOME & EXPENSE'!I550)","v":""},{"$f":"T('3 INCOME & EXPENSE'!J550)","v":""},{"$f":"T('3 INCOME & EXPENSE'!K550)","v":""},{"$f":"T('3 INCOME & EXPENSE'!L550)","v":""},{"$f":"'3 INCOME & EXPENSE'!M550","v":0},{"$f":"'3 INCOME & EXPENSE'!N550","v":0},{"$f":"'3 INCOME & EXPENSE'!O550","v":0}]
[null,{"$f":"T('3 INCOME & EXPENSE'!D551)","v":""},{"$f":"'3 INCOME & EXPENSE'!E551","v":"00:00:00"},{"$f":"'3 INCOME & EXPENSE'!F551","v":0},{"$f":"'3 INCOME & EXPENSE'!G551","v":0},{"$f":"T('3 INCOME & EXPENSE'!H551)","v":""},{"$f":"T('3 INCOME & EXPENSE'!I551)","v":""},{"$f":"T('3 INCOME & EXPENSE'!J551)","v":""},{"$f":"T('3 INCOME & EXPENSE'!K551)","v":""},{"$f":"T('3 INCOME & EXPENSE'!L551)","v":""},{"$f":"'3 INCOME & EXPENSE'!M551","v":0},{"$f":"'3 INCOME & EXPENSE'!N551","v":0},{"$f":"'3 INCOME & EXPENSE'!O551","v":0}]
[null,{"$f":"T('3 INCOME & EXPENSE'!D552)","v":""},{"$f":"'3 INCOME & EXPENSE'!E552","v":"00:00:00"},{"$f":"'3 INCOME & EXPENSE'!F552","v":0},{"$f":"'3 INCOME & EXPENSE'!G552","v":0},{"$f":"T('3 INCOME & EXPENSE'!H552)","v":""},{"$f":"T('3 INCOME & EXPENSE'!I552)","v":""},{"$f":"T('3 INCOME & EXPENSE'!J552)","v":""},{"$f":"T('3 INCOME & EXPENSE'!K552)","v":""},{"$f":"T('3 INCOME & EXPENSE'!L552)","v":""},{"$f":"'3 INCOME & EXPENSE'!M552","v":0},{"$f":"'3 INCOME & EXPENSE'!N552","v":0},{"$f":"'3 INCOME & EXPENSE'!O552","v":0}]
[null,{"$f":"T('3 INCOME & EXPENSE'!D553)","v":""},{"$f":"'3 INCOME & EXPENSE'!E553","v":"00:00:00"},{"$f":"'3 INCOME & EXPENSE'!F553","v":0},{"$f":"'3 INCOME & EXPENSE'!G553","v":0},{"$f":"T('3 INCOME & EXPENSE'!H553)","v":""},{"$f":"T('3 INCOME & EXPENSE'!I553)","v":""},{"$f":"T('3 INCOME & EXPENSE'!J553)","v":""},{"$f":"T('3 INCOME & EXPENSE'!K553)","v":""},{"$f":"T('3 INCOME & EXPENSE'!L553)","v":""},{"$f":"'3 INCOME & EXPENSE'!M553","v":0},{"$f":"'3 INCOME & EXPENSE'!N553","v":0},{"$f":"'3 INCOME & EXPENSE'!O553","v":0}]
[null,{"$f":"T('3 INCOME & EXPENSE'!D554)","v":""},{"$f":"'3 INCOME & EXPENSE'!E554","v":"00:00:00"},{"$f":"'3 INCOME & EXPENSE'!F554","v":0},{"$f":"'3 INCOME & EXPENSE'!G554","v":0},{"$f":"T('3 INCOME & EXPENSE'!H554)","v":""},{"$f":"T('3 INCOME & EXPENSE'!I554)","v":""},{"$f":"T('3 INCOME & EXPENSE'!J554)","v":""},{"$f":"T('3 INCOME & EXPENSE'!K554)","v":""},{"$f":"T('3 INCOME & EXPENSE'!L554)","v":""},{"$f":"'3 INCOME & EXPENSE'!M554","v":0},{"$f":"'3 INCOME & EXPENSE'!N554","v":0},{"$f":"'3 INCOME & EXPENSE'!O554","v":0}]
[null,{"$f":"T('3 INCOME & EXPENSE'!D555)","v":""},{"$f":"'3 INCOME & EXPENSE'!E555","v":"00:00:00"},{"$f":"'3 INCOME & EXPENSE'!F555","v":0},{"$f":"'3 INCOME & EXPENSE'!G555","v":0},{"$f":"T('3 INCOME & EXPENSE'!H555)","v":""},{"$f":"T('3 INCOME & EXPENSE'!I555)","v":""},{"$f":"T('3 INCOME & EXPENSE'!J555)","v":""},{"$f":"T('3 INCOME & EXPENSE'!K555)","v":""},{"$f":"T('3 INCOME & EXPENSE'!L555)","v":""},{"$f":"'3 INCOME & EXPENSE'!M555","v":0},{"$f":"'3 INCOME & EXPENSE'!N555","v":0},{"$f":"'3 INCOME & EXPENSE'!O555","v":0}]
[null,{"$f":"T('3 INCOME & EXPENSE'!D556)","v":""},{"$f":"'3 INCOME & EXPENSE'!E556","v":"00:00:00"},{"$f":"'3 INCOME & EXPENSE'!F556","v":0},{"$f":"'3 INCOME & EXPENSE'!G556","v":0},{"$f":"T('3 INCOME & EXPENSE'!H556)","v":""},{"$f":"T('3 INCOME & EXPENSE'!I556)","v":""},{"$f":"T('3 INCOME & EXPENSE'!J556)","v":""},{"$f":"T('3 INCOME & EXPENSE'!K556)","v":""},{"$f":"T('3 INCOME & EXPENSE'!L556)","v":""},{"$f":"'3 INCOME & EXPENSE'!M556","v":0},{"$f":"'3 INCOME & EXPENSE'!N556","v":0},{"$f":"'3 INCOME & EXPENSE'!O556","v":0}]
[null,{"$f":"T('3 INCOME & EXPENSE'!D557)","v":""},{"$f":"'3 INCOME & EXPENSE'!E557","v":"00:00:00"},{"$f":"'3 INCOME & EXPENSE'!F557","v":0},{"$f":"'3 INCOME & EXPENSE'!G557","v":0},{"$f":"T('3 INCOME & EXPENSE'!H557)","v":""},{"$f":"T('3 INCOME & EXPENSE'!I557)","v":""},{"$f":"T('3 INCOME & EXPENSE'!J557)","v":""},{"$f":"T('3 INCOME & EXPENSE'!K557)","v":""},{"$f":"T('3 INCOME & EXPENSE'!L557)","v":""},{"$f":"'3 INCOME & EXPENSE'!M557","v":0},{"$f":"'3 INCOME & EXPENSE'!N557","v":0},{"$f":"'3 INCOME & EXPENSE'!O557","v":0}]
[null,{"$f":"T('3 INCOME & EXPENSE'!D558)","v":""},{"$f":"'3 INCOME & EXPENSE'!E558","v":"00:00:00"},{"$f":"'3 INCOME & EXPENSE'!F558","v":0},{"$f":"'3 INCOME & EXPENSE'!G558","v":0},{"$f":"T('3 INCOME & EXPENSE'!H558)","v":""},{"$f":"T('3 INCOME & EXPENSE'!I558)","v":""},{"$f":"T('3 INCOME & EXPENSE'!J558)","v":""},{"$f":"T('3 INCOME & EXPENSE'!K558)","v":""},{"$f":"T('3 INCOME & EXPENSE'!L558)","v":""},{"$f":"'3 INCOME & EXPENSE'!M558","v":0},{"$f":"'3 INCOME & EXPENSE'!N558","v":0},{"$f":"'3 INCOME & EXPENSE'!O558","v":0}]
[null,{"$f":"T('3 INCOME & EXPENSE'!D559)","v":""},{"$f":"'3 INCOME & EXPENSE'!E559","v":"00:00:00"},{"$f":"'3 INCOME & EXPENSE'!F559","v":0},{"$f":"'3 INCOME & EXPENSE'!G559","v":0},{"$f":"T('3 INCOME & EXPENSE'!H559)","v":""},{"$f":"T('3 INCOME & EXPENSE'!I559)","v":""},{"$f":"T('3 INCOME & EXPENSE'!J559)","v":""},{"$f":"T('3 INCOME & EXPENSE'!K559)","v":""},{"$f":"T('3 INCOME & EXPENSE'!L559)","v":""},{"$f":"'3 INCOME & EXPENSE'!M559","v":0},{"$f":"'3 INCOME & EXPENSE'!N559","v":0},{"$f":"'3 INCOME & EXPENSE'!O559","v":0}]
[null,{"$f":"T('3 INCOME & EXPENSE'!D560)","v":""},{"$f":"'3 INCOME & EXPENSE'!E560","v":"00:00:00"},{"$f":"'3 INCOME & EXPENSE'!F560","v":0},{"$f":"'3 INCOME & EXPENSE'!G560","v":0},{"$f":"T('3 INCOME & EXPENSE'!H560)","v":""},{"$f":"T('3 INCOME & EXPENSE'!I560)","v":""},{"$f":"T('3 INCOME & EXPENSE'!J560)","v":""},{"$f":"T('3 INCOME & EXPENSE'!K560)","v":""},{"$f":"T('3 INCOME & EXPENSE'!L560)","v":""},{"$f":"'3 INCOME & EXPENSE'!M560","v":0},{"$f":"'3 INCOME & EXPENSE'!N560","v":0},{"$f":"'3 INCOME & EXPENSE'!O560","v":0}]
[null,{"$f":"T('3 INCOME & EXPENSE'!D561)","v":""},{"$f":"'3 INCOME & EXPENSE'!E561","v":"00:00:00"},{"$f":"'3 INCOME & EXPENSE'!F561","v":0},{"$f":"'3 INCOME & EXPENSE'!G561","v":0},{"$f":"T('3 INCOME & EXPENSE'!H561)","v":""},{"$f":"T('3 INCOME & EXPENSE'!I561)","v":""},{"$f":"T('3 INCOME & EXPENSE'!J561)","v":""},{"$f":"T('3 INCOME & EXPENSE'!K561)","v":""},{"$f":"T('3 INCOME & EXPENSE'!L561)","v":""},{"$f":"'3 INCOME & EXPENSE'!M561","v":0},{"$f":"'3 INCOME & EXPENSE'!N561","v":0},{"$f":"'3 INCOME & EXPENSE'!O561","v":0}]
[null,{"$f":"T('3 INCOME & EXPENSE'!D562)","v":""},{"$f":"'3 INCOME & EXPENSE'!E562","v":"00:00:00"},{"$f":"'3 INCOME & EXPENSE'!F562","v":0},{"$f":"'3 INCOME & EXPENSE'!G562","v":0},{"$f":"T('3 INCOME & EXPENSE'!H562)","v":""},{"$f":"T('3 INCOME & EXPENSE'!I562)","v":""},{"$f":"T('3 INCOME & EXPENSE'!J562)","v":""},{"$f":"T('3 INCOME & EXPENSE'!K562)","v":""},{"$f":"T('3 INCOME & EXPENSE'!L562)","v":""},{"$f":"'3 INCOME & EXPENSE'!M562","v":0},{"$f":"'3 INCOME & EXPENSE'!N562","v":0},{"$f":"'3 INCOME & EXPENSE'!O562","v":0}]
[null,{"$f":"T('3 INCOME & EXPENSE'!D563)","v":""},{"$f":"'3 INCOME & EXPENSE'!E563","v":"00:00:00"},{"$f":"'3 INCOME & EXPENSE'!F563","v":0},{"$f":"'3 INCOME & EXPENSE'!G563","v":0},{"$f":"T('3 INCOME & EXPENSE'!H563)","v":""},{"$f":"T('3 INCOME & EXPENSE'!I563)","v":""},{"$f":"T('3 INCOME & EXPENSE'!J563)","v":""},{"$f":"T('3 INCOME & EXPENSE'!K563)","v":""},{"$f":"T('3 INCOME & EXPENSE'!L563)","v":""},{"$f":"'3 INCOME & EXPENSE'!M563","v":0},{"$f":"'3 INCOME & EXPENSE'!N563","v":0},{"$f":"'3 INCOME & EXPENSE'!O563","v":0}]
[null,{"$f":"T('3 INCOME & EXPENSE'!D564)","v":""},{"$f":"'3 INCOME & EXPENSE'!E564","v":"00:00:00"},{"$f":"'3 INCOME & EXPENSE'!F564","v":0},{"$f":"'3 INCOME & EXPENSE'!G564","v":0},{"$f":"T('3 INCOME & EXPENSE'!H564)","v":""},{"$f":"T('3 INCOME & EXPENSE'!I564)","v":""},{"$f":"T('3 INCOME & EXPENSE'!J564)","v":""},{"$f":"T('3 INCOME & EXPENSE'!K564)","v":""},{"$f":"T('3 INCOME & EXPENSE'!L564)","v":""},{"$f":"'3 INCOME & EXPENSE'!M564","v":0},{"$f":"'3 INCOME & EXPENSE'!N564","v":0},{"$f":"'3 INCOME & EXPENSE'!O564","v":0}]
[null,{"$f":"T('3 INCOME & EXPENSE'!D565)","v":""},{"$f":"'3 INCOME & EXPENSE'!E565","v":"00:00:00"},{"$f":"'3 INCOME & EXPENSE'!F565","v":0},{"$f":"'3 INCOME & EXPENSE'!G565","v":0},{"$f":"T('3 INCOME & EXPENSE'!H565)","v":""},{"$f":"T('3 INCOME & EXPENSE'!I565)","v":""},{"$f":"T('3 INCOME & EXPENSE'!J565)","v":""},{"$f":"T('3 INCOME & EXPENSE'!K565)","v":""},{"$f":"T('3 INCOME & EXPENSE'!L565)","v":""},{"$f":"'3 INCOME & EXPENSE'!M565","v":0},{"$f":"'3 INCOME & EXPENSE'!N565","v":0},{"$f":"'3 INCOME & EXPENSE'!O565","v":0}]
[null,{"$f":"T('3 INCOME & EXPENSE'!D566)","v":""},{"$f":"'3 INCOME & EXPENSE'!E566","v":"00:00:00"},{"$f":"'3 INCOME & EXPENSE'!F566","v":0},{"$f":"'3 INCOME & EXPENSE'!G566","v":0},{"$f":"T('3 INCOME & EXPENSE'!H566)","v":""},{"$f":"T('3 INCOME & EXPENSE'!I566)","v":""},{"$f":"T('3 INCOME & EXPENSE'!J566)","v":""},{"$f":"T('3 INCOME & EXPENSE'!K566)","v":""},{"$f":"T('3 INCOME & EXPENSE'!L566)","v":""},{"$f":"'3 INCOME & EXPENSE'!M566","v":0},{"$f":"'3 INCOME & EXPENSE'!N566","v":0},{"$f":"'3 INCOME & EXPENSE'!O566","v":0}]
[null,{"$f":"T('3 INCOME & EXPENSE'!D567)","v":""},{"$f":"'3 INCOME & EXPENSE'!E567","v":"00:00:00"},{"$f":"'3 INCOME & EXPENSE'!F567","v":0},{"$f":"'3 INCOME & EXPENSE'!G567","v":0},{"$f":"T('3 INCOME & EXPENSE'!H567)","v":""},{"$f":"T('3 INCOME & EXPENSE'!I567)","v":""},{"$f":"T('3 INCOME & EXPENSE'!J567)","v":""},{"$f":"T('3 INCOME & EXPENSE'!K567)","v":""},{"$f":"T('3 INCOME & EXPENSE'!L567)","v":""},{"$f":"'3 INCOME & EXPENSE'!M567","v":0},{"$f":"'3 INCOME & EXPENSE'!N567","v":0},{"$f":"'3 INCOME & EXPENSE'!O567","v":0}]
[null,{"$f":"T('3 INCOME & EXPENSE'!D568)","v":""},{"$f":"'3 INCOME & EXPENSE'!E568","v":"00:00:00"},{"$f":"'3 INCOME & EXPENSE'!F568","v":0},{"$f":"'3 INCOME & EXPENSE'!G568","v":0},{"$f":"T('3 INCOME & EXPENSE'!H568)","v":""},{"$f":"T('3 INCOME & EXPENSE'!I568)","v":""},{"$f":"T('3 INCOME & EXPENSE'!J568)","v":""},{"$f":"T('3 INCOME & EXPENSE'!K568)","v":""},{"$f":"T('3 INCOME & EXPENSE'!L568)","v":""},{"$f":"'3 INCOME & EXPENSE'!M568","v":0},{"$f":"'3 INCOME & EXPENSE'!N568","v":0},{"$f":"'3 INCOME & EXPENSE'!O568","v":0}]
[null,{"$f":"T('3 INCOME & EXPENSE'!D569)","v":""},{"$f":"'3 INCOME & EXPENSE'!E569","v":"00:00:00"},{"$f":"'3 INCOME & EXPENSE'!F569","v":0},{"$f":"'3 INCOME & EXPENSE'!G569","v":0},{"$f":"T('3 INCOME & EXPENSE'!H569)","v":""},{"$f":"T('3 INCOME & EXPENSE'!I569)","v":""},{"$f":"T('3 INCOME & EXPENSE'!J569)","v":""},{"$f":"T('3 INCOME & EXPENSE'!K569)","v":""},{"$f":"T('3 INCOME & EXPENSE'!L569)","v":""},{"$f":"'3 INCOME & EXPENSE'!M569","v":0},{"$f":"'3 INCOME & EXPENSE'!N569","v":0},{"$f":"'3 INCOME & EXPENSE'!O569","v":0}]
[null,{"$f":"T('3 INCOME & EXPENSE'!D570)","v":""},{"$f":"'3 INCOME & EXPENSE'!E570","v":"00:00:00"},{"$f":"'3 INCOME & EXPENSE'!F570","v":0},{"$f":"'3 INCOME & EXPENSE'!G570","v":0},{"$f":"T('3 INCOME & EXPENSE'!H570)","v":""},{"$f":"T('3 INCOME & EXPENSE'!I570)","v":""},{"$f":"T('3 INCOME & EXPENSE'!J570)","v":""},{"$f":"T('3 INCOME & EXPENSE'!K570)","v":""},{"$f":"T('3 INCOME & EXPENSE'!L570)","v":""},{"$f":"'3 INCOME & EXPENSE'!M570","v":0},{"$f":"'3 INCOME & EXPENSE'!N570","v":0},{"$f":"'3 INCOME & EXPENSE'!O570","v":0}]
[null,{"$f":"T('3 INCOME & EXPENSE'!D571)","v":""},{"$f":"'3 INCOME & EXPENSE'!E571","v":"00:00:00"},{"$f":"'3 INCOME & EXPENSE'!F571","v":0},{"$f":"'3 INCOME & EXPENSE'!G571","v":0},{"$f":"T('3 INCOME & EXPENSE'!H571)","v":""},{"$f":"T('3 INCOME & EXPENSE'!I571)","v":""},{"$f":"T('3 INCOME & EXPENSE'!J571)","v":""},{"$f":"T('3 INCOME & EXPENSE'!K571)","v":""},{"$f":"T('3 INCOME & EXPENSE'!L571)","v":""},{"$f":"'3 INCOME & EXPENSE'!M571","v":0},{"$f":"'3 INCOME & EXPENSE'!N571","v":0},{"$f":"'3 INCOME & EXPENSE'!O571","v":0}]
[null,{"$f":"T('3 INCOME & EXPENSE'!D572)","v":""},{"$f":"'3 INCOME & EXPENSE'!E572","v":"00:00:00"},{"$f":"'3 INCOME & EXPENSE'!F572","v":0},{"$f":"'3 INCOME & EXPENSE'!G572","v":0},{"$f":"T('3 INCOME & EXPENSE'!H572)","v":""},{"$f":"T('3 INCOME & EXPENSE'!I572)","v":""},{"$f":"T('3 INCOME & EXPENSE'!J572)","v":""},{"$f":"T('3 INCOME & EXPENSE'!K572)","v":""},{"$f":"T('3 INCOME & EXPENSE'!L572)","v":""},{"$f":"'3 INCOME & EXPENSE'!M572","v":0},{"$f":"'3 INCOME & EXPENSE'!N572","v":0},{"$f":"'3 INCOME & EXPENSE'!O572","v":0}]
[null,{"$f":"T('3 INCOME & EXPENSE'!D573)","v":""},{"$f":"'3 INCOME & EXPENSE'!E573","v":"00:00:00"},{"$f":"'3 INCOME & EXPENSE'!F573","v":0},{"$f":"'3 INCOME & EXPENSE'!G573","v":0},{"$f":"T('3 INCOME & EXPENSE'!H573)","v":""},{"$f":"T('3 INCOME & EXPENSE'!I573)","v":""},{"$f":"T('3 INCOME & EXPENSE'!J573)","v":""},{"$f":"T('3 INCOME & EXPENSE'!K573)","v":""},{"$f":"T('3 INCOME & EXPENSE'!L573)","v":""},{"$f":"'3 INCOME & EXPENSE'!M573","v":0},{"$f":"'3 INCOME & EXPENSE'!N573","v":0},{"$f":"'3 INCOME & EXPENSE'!O573","v":0}]
[null,{"$f":"T('3 INCOME & EXPENSE'!D574)","v":""},{"$f":"'3 INCOME & EXPENSE'!E574","v":"00:00:00"},{"$f":"'3 INCOME & EXPENSE'!F574","v":0},{"$f":"'3 INCOME & EXPENSE'!G574","v":0},{"$f":"T('3 INCOME & EXPENSE'!H574)","v":""},{"$f":"T('3 INCOME & EXPENSE'!I574)","v":""},{"$f":"T('3 INCOME & EXPENSE'!J574)","v":""},{"$f":"T('3 INCOME & EXPENSE'!K574)","v":""},{"$f":"T('3 INCOME & EXPENSE'!L574)","v":""},{"$f":"'3 INCOME & EXPENSE'!M574","v":0},{"$f":"'3 INCOME & EXPENSE'!N574","v":0},{"$f":"'3 INCOME & EXPENSE'!O574","v":0}]
[null,{"$f":"T('3 INCOME & EXPENSE'!D575)","v":""},{"$f":"'3 INCOME & EXPENSE'!E575","v":"00:00:00"},{"$f":"'3 INCOME & EXPENSE'!F575","v":0},{"$f":"'3 INCOME & EXPENSE'!G575","v":0},{"$f":"T('3 INCOME & EXPENSE'!H575)","v":""},{"$f":"T('3 INCOME & EXPENSE'!I575)","v":""},{"$f":"T('3 INCOME & EXPENSE'!J575)","v":""},{"$f":"T('3 INCOME & EXPENSE'!K575)","v":""},{"$f":"T('3 INCOME & EXPENSE'!L575)","v":""},{"$f":"'3 INCOME & EXPENSE'!M575","v":0},{"$f":"'3 INCOME & EXPENSE'!N575","v":0},{"$f":"'3 INCOME & EXPENSE'!O575","v":0}]
[null,{"$f":"T('3 INCOME & EXPENSE'!D576)","v":""},{"$f":"'3 INCOME & EXPENSE'!E576","v":"00:00:00"},{"$f":"'3 INCOME & EXPENSE'!F576","v":0},{"$f":"'3 INCOME & EXPENSE'!G576","v":0},{"$f":"T('3 INCOME & EXPENSE'!H576)","v":""},{"$f":"T('3 INCOME & EXPENSE'!I576)","v":""},{"$f":"T('3 INCOME & EXPENSE'!J576)","v":""},{"$f":"T('3 INCOME & EXPENSE'!K576)","v":""},{"$f":"T('3 INCOME & EXPENSE'!L576)","v":""},{"$f":"'3 INCOME & EXPENSE'!M576","v":0},{"$f":"'3 INCOME & EXPENSE'!N576","v":0},{"$f":"'3 INCOME & EXPENSE'!O576","v":0}]
[null,{"$f":"T('3 INCOME & EXPENSE'!D577)","v":""},{"$f":"'3 INCOME & EXPENSE'!E577","v":"00:00:00"},{"$f":"'3 INCOME & EXPENSE'!F577","v":0},{"$f":"'3 INCOME & EXPENSE'!G577","v":0},{"$f":"T('3 INCOME & EXPENSE'!H577)","v":""},{"$f":"T('3 INCOME & EXPENSE'!I577)","v":""},{"$f":"T('3 INCOME & EXPENSE'!J577)","v":""},{"$f":"T('3 INCOME & EXPENSE'!K577)","v":""},{"$f":"T('3 INCOME & EXPENSE'!L577)","v":""},{"$f":"'3 INCOME & EXPENSE'!M577","v":0},{"$f":"'3 INCOME & EXPENSE'!N577","v":0},{"$f":"'3 INCOME & EXPENSE'!O577","v":0}]
[null,{"$f":"T('3 INCOME & EXPENSE'!D578)","v":""},{"$f":"'3 INCOME & EXPENSE'!E578","v":"00:00:00"},{"$f":"'3 INCOME & EXPENSE'!F578","v":0},{"$f":"'3 INCOME & EXPENSE'!G578","v":0},{"$f":"T('3 INCOME & EXPENSE'!H578)","v":""},{"$f":"T('3 INCOME & EXPENSE'!I578)","v":""},{"$f":"T('3 INCOME & EXPENSE'!J578)","v":""},{"$f":"T('3 INCOME & EXPENSE'!K578)","v":""},{"$f":"T('3 INCOME & EXPENSE'!L578)","v":""},{"$f":"'3 INCOME & EXPENSE'!M578","v":0},{"$f":"'3 INCOME & EXPENSE'!N578","v":0},{"$f":"'3 INCOME & EXPENSE'!O578","v":0}]
[null,{"$f":"T('3 INCOME & EXPENSE'!D579)","v":""},{"$f":"'3 INCOME & EXPENSE'!E579","v":"00:00:00"},{"$f":"'3 INCOME & EXPENSE'!F579","v":0},{"$f":"'3 INCOME & EXPENSE'!G579","v":0},{"$f":"T('3 INCOME & EXPENSE'!H579)","v":""},{"$f":"T('3 INCOME & EXPENSE'!I579)","v":""},{"$f":"T('3 INCOME & EXPENSE'!J579)","v":""},{"$f":"T('3 INCOME & EXPENSE'!K579)","v":""},{"$f":"T('3 INCOME & EXPENSE'!L579)","v":""},{"$f":"'3 INCOME & EXPENSE'!M579","v":0},{"$f":"'3 INCOME & EXPENSE'!N579","v":0},{"$f":"'3 INCOME & EXPENSE'!O579","v":0}]
[null,{"$f":"T('3 INCOME & EXPENSE'!D580)","v":""},{"$f":"'3 INCOME & EXPENSE'!E580","v":"00:00:00"},{"$f":"'3 INCOME & EXPENSE'!F580","v":0},{"$f":"'3 INCOME & EXPENSE'!G580","v":0},{"$f":"T('3 INCOME & EXPENSE'!H580)","v":""},{"$f":"T('3 INCOME & EXPENSE'!I580)","v":""},{"$f":"T('3 INCOME & EXPENSE'!J580)","v":""},{"$f":"T('3 INCOME & EXPENSE'!K580)","v":""},{"$f":"T('3 INCOME & EXPENSE'!L580)","v":""},{"$f":"'3 INCOME & EXPENSE'!M580","v":0},{"$f":"'3 INCOME & EXPENSE'!N580","v":0},{"$f":"'3 INCOME & EXPENSE'!O580","v":0}]
[null,{"$f":"T('3 INCOME & EXPENSE'!D581)","v":""},{"$f":"'3 INCOME & EXPENSE'!E581","v":"00:00:00"},{"$f":"'3 INCOME & EXPENSE'!F581","v":0},{"$f":"'3 INCOME & EXPENSE'!G581","v":0},{"$f":"T('3 INCOME & EXPENSE'!H581)","v":""},{"$f":"T('3 INCOME & EXPENSE'!I581)","v":""},{"$f":"T('3 INCOME & EXPENSE'!J581)","v":""},{"$f":"T('3 INCOME & EXPENSE'!K581)","v":""},{"$f":"T('3 INCOME & EXPENSE'!L581)","v":""},{"$f":"'3 INCOME & EXPENSE'!M581","v":0},{"$f":"'3 INCOME & EXPENSE'!N581","v":0},{"$f":"'3 INCOME & EXPENSE'!O581","v":0}]
[null,{"$f":"T('3 INCOME & EXPENSE'!D582)","v":""},{"$f":"'3 INCOME & EXPENSE'!E582","v":"00:00:00"},{"$f":"'3 INCOME & EXPENSE'!F582","v":0},{"$f":"'3 INCOME & EXPENSE'!G582","v":0},{"$f":"T('3 INCOME & EXPENSE'!H582)","v":""},{"$f":"T('3 INCOME & EXPENSE'!I582)","v":""},{"$f":"T('3 INCOME & EXPENSE'!J582)","v":""},{"$f":"T('3 INCOME & EXPENSE'!K582)","v":""},{"$f":"T('3 INCOME & EXPENSE'!L582)","v":""},{"$f":"'3 INCOME & EXPENSE'!M582","v":0},{"$f":"'3 INCOME & EXPENSE'!N582","v":0},{"$f":"'3 INCOME & EXPENSE'!O582","v":0}]
[null,{"$f":"T('3 INCOME & EXPENSE'!D583)","v":""},{"$f":"'3 INCOME & EXPENSE'!E583","v":"00:00:00"},{"$f":"'3 INCOME & EXPENSE'!F583","v":0},{"$f":"'3 INCOME & EXPENSE'!G583","v":0},{"$f":"T('3 INCOME & EXPENSE'!H583)","v":""},{"$f":"T('3 INCOME & EXPENSE'!I583)","v":""},{"$f":"T('3 INCOME & EXPENSE'!J583)","v":""},{"$f":"T('3 INCOME & EXPENSE'!K583)","v":""},{"$f":"T('3 INCOME & EXPENSE'!L583)","v":""},{"$f":"'3 INCOME & EXPENSE'!M583","v":0},{"$f":"'3 INCOME & EXPENSE'!N583","v":0},{"$f":"'3 INCOME & EXPENSE'!O583","v":0}]
[null,{"$f":"T('3 INCOME & EXPENSE'!D584)","v":""},{"$f":"'3 INCOME & EXPENSE'!E584","v":"00:00:00"},{"$f":"'3 INCOME & EXPENSE'!F584","v":0},{"$f":"'3 INCOME & EXPENSE'!G584","v":0},{"$f":"T('3 INCOME & EXPENSE'!H584)","v":""},{"$f":"T('3 INCOME & EXPENSE'!I584)","v":""},{"$f":"T('3 INCOME & EXPENSE'!J584)","v":""},{"$f":"T('3 INCOME & EXPENSE'!K584)","v":""},{"$f":"T('3 INCOME & EXPENSE'!L584)","v":""},{"$f":"'3 INCOME & EXPENSE'!M584","v":0},{"$f":"'3 INCOME & EXPENSE'!N584","v":0},{"$f":"'3 INCOME & EXPENSE'!O584","v":0}]
[null,{"$f":"T('3 INCOME & EXPENSE'!D585)","v":""},{"$f":"'3 INCOME & EXPENSE'!E585","v":"00:00:00"},{"$f":"'3 INCOME & EXPENSE'!F585","v":0},{"$f":"'3 INCOME & EXPENSE'!G585","v":0},{"$f":"T('3 INCOME & EXPENSE'!H585)","v":""},{"$f":"T('3 INCOME & EXPENSE'!I585)","v":""},{"$f":"T('3 INCOME & EXPENSE'!J585)","v":""},{"$f":"T('3 INCOME & EXPENSE'!K585)","v":""},{"$f":"T('3 INCOME & EXPENSE'!L585)","v":""},{"$f":"'3 INCOME & EXPENSE'!M585","v":0},{"$f":"'3 INCOME & EXPENSE'!N585","v":0},{"$f":"'3 INCOME & EXPENSE'!O585","v":0}]
[null,{"$f":"T('3 INCOME & EXPENSE'!D586)","v":""},{"$f":"'3 INCOME & EXPENSE'!E586","v":"00:00:00"},{"$f":"'3 INCOME & EXPENSE'!F586","v":0},{"$f":"'3 INCOME & EXPENSE'!G586","v":0},{"$f":"T('3 INCOME & EXPENSE'!H586)","v":""},{"$f":"T('3 INCOME & EXPENSE'!I586)","v":""},{"$f":"T('3 INCOME & EXPENSE'!J586)","v":""},{"$f":"T('3 INCOME & EXPENSE'!K586)","v":""},{"$f":"T('3 INCOME & EXPENSE'!L586)","v":""},{"$f":"'3 INCOME & EXPENSE'!M586","v":0},{"$f":"'3 INCOME & EXPENSE'!N586","v":0},{"$f":"'3 INCOME & EXPENSE'!O586","v":0}]
[null,{"$f":"T('3 INCOME & EXPENSE'!D587)","v":""},{"$f":"'3 INCOME & EXPENSE'!E587","v":"00:00:00"},{"$f":"'3 INCOME & EXPENSE'!F587","v":0},{"$f":"'3 INCOME & EXPENSE'!G587","v":0},{"$f":"T('3 INCOME & EXPENSE'!H587)","v":""},{"$f":"T('3 INCOME & EXPENSE'!I587)","v":""},{"$f":"T('3 INCOME & EXPENSE'!J587)","v":""},{"$f":"T('3 INCOME & EXPENSE'!K587)","v":""},{"$f":"T('3 INCOME & EXPENSE'!L587)","v":""},{"$f":"'3 INCOME & EXPENSE'!M587","v":0},{"$f":"'3 INCOME & EXPENSE'!N587","v":0},{"$f":"'3 INCOME & EXPENSE'!O587","v":0}]
[null,{"$f":"T('3 INCOME & EXPENSE'!D588)","v":""},{"$f":"'3 INCOME & EXPENSE'!E588","v":"00:00:00"},{"$f":"'3 INCOME & EXPENSE'!F588","v":0},{"$f":"'3 INCOME & EXPENSE'!G588","v":0},{"$f":"T('3 INCOME & EXPENSE'!H588)","v":""},{"$f":"T('3 INCOME & EXPENSE'!I588)","v":""},{"$f":"T('3 INCOME & EXPENSE'!J588)","v":""},{"$f":"T('3 INCOME & EXPENSE'!K588)","v":""},{"$f":"T('3 INCOME & EXPENSE'!L588)","v":""},{"$f":"'3 INCOME & EXPENSE'!M588","v":0},{"$f":"'3 INCOME & EXPENSE'!N588","v":0},{"$f":"'3 INCOME & EXPENSE'!O588","v":0}]
[null,{"$f":"T('3 INCOME & EXPENSE'!D589)","v":""},{"$f":"'3 INCOME & EXPENSE'!E589","v":"00:00:00"},{"$f":"'3 INCOME & EXPENSE'!F589","v":0},{"$f":"'3 INCOME & EXPENSE'!G589","v":0},{"$f":"T('3 INCOME & EXPENSE'!H589)","v":""},{"$f":"T('3 INCOME & EXPENSE'!I589)","v":""},{"$f":"T('3 INCOME & EXPENSE'!J589)","v":""},{"$f":"T('3 INCOME & EXPENSE'!K589)","v":""},{"$f":"T('3 INCOME & EXPENSE'!L589)","v":""},{"$f":"'3 INCOME & EXPENSE'!M589","v":0},{"$f":"'3 INCOME & EXPENSE'!N589","v":0},{"$f":"'3 INCOME & EXPENSE'!O589","v":0}]
[null,{"$f":"T('3 INCOME & EXPENSE'!D590)","v":""},{"$f":"'3 INCOME & EXPENSE'!E590","v":"00:00:00"},{"$f":"'3 INCOME & EXPENSE'!F590","v":0},{"$f":"'3 INCOME & EXPENSE'!G590","v":0},{"$f":"T('3 INCOME & EXPENSE'!H590)","v":""},{"$f":"T('3 INCOME & EXPENSE'!I590)","v":""},{"$f":"T('3 INCOME & EXPENSE'!J590)","v":""},{"$f":"T('3 INCOME & EXPENSE'!K590)","v":""},{"$f":"T('3 INCOME & EXPENSE'!L590)","v":""},{"$f":"'3 INCOME & EXPENSE'!M590","v":0},{"$f":"'3 INCOME & EXPENSE'!N590","v":0},{"$f":"'3 INCOME & EXPENSE'!O590","v":0}]
[null,{"$f":"T('3 INCOME & EXPENSE'!D591)","v":""},{"$f":"'3 INCOME & EXPENSE'!E591","v":"00:00:00"},{"$f":"'3 INCOME & EXPENSE'!F591","v":0},{"$f":"'3 INCOME & EXPENSE'!G591","v":0},{"$f":"T('3 INCOME & EXPENSE'!H591)","v":""},{"$f":"T('3 INCOME & EXPENSE'!I591)","v":""},{"$f":"T('3 INCOME & EXPENSE'!J591)","v":""},{"$f":"T('3 INCOME & EXPENSE'!K591)","v":""},{"$f":"T('3 INCOME & EXPENSE'!L591)","v":""},{"$f":"'3 INCOME & EXPENSE'!M591","v":0},{"$f":"'3 INCOME & EXPENSE'!N591","v":0},{"$f":"'3 INCOME & EXPENSE'!O591","v":0}]
[null,{"$f":"T('3 INCOME & EXPENSE'!D592)","v":""},{"$f":"'3 INCOME & EXPENSE'!E592","v":"00:00:00"},{"$f":"'3 INCOME & EXPENSE'!F592","v":0},{"$f":"'3 INCOME & EXPENSE'!G592","v":0},{"$f":"T('3 INCOME & EXPENSE'!H592)","v":""},{"$f":"T('3 INCOME & EXPENSE'!I592)","v":""},{"$f":"T('3 INCOME & EXPENSE'!J592)","v":""},{"$f":"T('3 INCOME & EXPENSE'!K592)","v":""},{"$f":"T('3 INCOME & EXPENSE'!L592)","v":""},{"$f":"'3 INCOME & EXPENSE'!M592","v":0},{"$f":"'3 INCOME & EXPENSE'!N592","v":0},{"$f":"'3 INCOME & EXPENSE'!O592","v":0}]
[null,{"$f":"T('3 INCOME & EXPENSE'!D593)","v":""},{"$f":"'3 INCOME & EXPENSE'!E593","v":"00:00:00"},{"$f":"'3 INCOME & EXPENSE'!F593","v":0},{"$f":"'3 INCOME & EXPENSE'!G593","v":0},{"$f":"T('3 INCOME & EXPENSE'!H593)","v":""},{"$f":"T('3 INCOME & EXPENSE'!I593)","v":""},{"$f":"T('3 INCOME & EXPENSE'!J593)","v":""},{"$f":"T('3 INCOME & EXPENSE'!K593)","v":""},{"$f":"T('3 INCOME & EXPENSE'!L593)","v":""},{"$f":"'3 INCOME & EXPENSE'!M593","v":0},{"$f":"'3 INCOME & EXPENSE'!N593","v":0},{"$f":"'3 INCOME & EXPENSE'!O593","v":0}]
[null,{"$f":"T('3 INCOME & EXPENSE'!D594)","v":""},{"$f":"'3 INCOME & EXPENSE'!E594","v":"00:00:00"},{"$f":"'3 INCOME & EXPENSE'!F594","v":0},{"$f":"'3 INCOME & EXPENSE'!G594","v":0},{"$f":"T('3 INCOME & EXPENSE'!H594)","v":""},{"$f":"T('3 INCOME & EXPENSE'!I594)","v":""},{"$f":"T('3 INCOME & EXPENSE'!J594)","v":""},{"$f":"T('3 INCOME & EXPENSE'!K594)","v":""},{"$f":"T('3 INCOME & EXPENSE'!L594)","v":""},{"$f":"'3 INCOME & EXPENSE'!M594","v":0},{"$f":"'3 INCOME & EXPENSE'!N594","v":0},{"$f":"'3 INCOME & EXPENSE'!O594","v":0}]
[null,{"$f":"T('3 INCOME & EXPENSE'!D595)","v":""},{"$f":"'3 INCOME & EXPENSE'!E595","v":"00:00:00"},{"$f":"'3 INCOME & EXPENSE'!F595","v":0},{"$f":"'3 INCOME & EXPENSE'!G595","v":0},{"$f":"T('3 INCOME & EXPENSE'!H595)","v":""},{"$f":"T('3 INCOME & EXPENSE'!I595)","v":""},{"$f":"T('3 INCOME & EXPENSE'!J595)","v":""},{"$f":"T('3 INCOME & EXPENSE'!K595)","v":""},{"$f":"T('3 INCOME & EXPENSE'!L595)","v":""},{"$f":"'3 INCOME & EXPENSE'!M595","v":0},{"$f":"'3 INCOME & EXPENSE'!N595","v":0},{"$f":"'3 INCOME & EXPENSE'!O595","v":0}]
[null,{"$f":"T('3 INCOME & EXPENSE'!D596)","v":""},{"$f":"'3 INCOME & EXPENSE'!E596","v":"00:00:00"},{"$f":"'3 INCOME & EXPENSE'!F596","v":0},{"$f":"'3 INCOME & EXPENSE'!G596","v":0},{"$f":"T('3 INCOME & EXPENSE'!H596)","v":""},{"$f":"T('3 INCOME & EXPENSE'!I596)","v":""},{"$f":"T('3 INCOME & EXPENSE'!J596)","v":""},{"$f":"T('3 INCOME & EXPENSE'!K596)","v":""},{"$f":"T('3 INCOME & EXPENSE'!L596)","v":""},{"$f":"'3 INCOME & EXPENSE'!M596","v":0},{"$f":"'3 INCOME & EXPENSE'!N596","v":0},{"$f":"'3 INCOME & EXPENSE'!O596","v":0}]
[null,{"$f":"T('3 INCOME & EXPENSE'!D597)","v":""},{"$f":"'3 INCOME & EXPENSE'!E597","v":"00:00:00"},{"$f":"'3 INCOME & EXPENSE'!F597","v":0},{"$f":"'3 INCOME & EXPENSE'!G597","v":0},{"$f":"T('3 INCOME & EXPENSE'!H597)","v":""},{"$f":"T('3 INCOME & EXPENSE'!I597)","v":""},{"$f":"T('3 INCOME & EXPENSE'!J597)","v":""},{"$f":"T('3 INCOME & EXPENSE'!K597)","v":""},{"$f":"T('3 INCOME & EXPENSE'!L597)","v":""},{"$f":"'3 INCOME & EXPENSE'!M597","v":0},{"$f":"'3 INCOME & EXPENSE'!N597","v":0},{"$f":"'3 INCOME & EXPENSE'!O597","v":0}]
[null,{"$f":"T('3 INCOME & EXPENSE'!D598)","v":""},{"$f":"'3 INCOME & EXPENSE'!E598","v":"00:00:00"},{"$f":"'3 INCOME & EXPENSE'!F598","v":0},{"$f":"'3 INCOME & EXPENSE'!G598","v":0},{"$f":"T('3 INCOME & EXPENSE'!H598)","v":""},{"$f":"T('3 INCOME & EXPENSE'!I598)","v":""},{"$f":"T('3 INCOME & EXPENSE'!J598)","v":""},{"$f":"T('3 INCOME & EXPENSE'!K598)","v":""},{"$f":"T('3 INCOME & EXPENSE'!L598)","v":""},{"$f":"'3 INCOME & EXPENSE'!M598","v":0},{"$f":"'3 INCOME & EXPENSE'!N598","v":0},{"$f":"'3 INCOME & EXPENSE'!O598","v":0}]
[null,{"$f":"T('3 INCOME & EXPENSE'!D599)","v":""},{"$f":"'3 INCOME & EXPENSE'!E599","v":"00:00:00"},{"$f":"'3 INCOME & EXPENSE'!F599","v":0},{"$f":"'3 INCOME & EXPENSE'!G599","v":0},{"$f":"T('3 INCOME & EXPENSE'!H599)","v":""},{"$f":"T('3 INCOME & EXPENSE'!I599)","v":""},{"$f":"T('3 INCOME & EXPENSE'!J599)","v":""},{"$f":"T('3 INCOME & EXPENSE'!K599)","v":""},{"$f":"T('3 INCOME & EXPENSE'!L599)","v":""},{"$f":"'3 INCOME & EXPENSE'!M599","v":0},{"$f":"'3 INCOME & EXPENSE'!N599","v":0},{"$f":"'3 INCOME & EXPENSE'!O599","v":0}]
[null,{"$f":"T('3 INCOME & EXPENSE'!D600)","v":""},{"$f":"'3 INCOME & EXPENSE'!E600","v":"00:00:00"},{"$f":"'3 INCOME & EXPENSE'!F600","v":0},{"$f":"'3 INCOME & EXPENSE'!G600","v":0},{"$f":"T('3 INCOME & EXPENSE'!H600)","v":""},{"$f":"T('3 INCOME & EXPENSE'!I600)","v":""},{"$f":"T('3 INCOME & EXPENSE'!J600)","v":""},{"$f":"T('3 INCOME & EXPENSE'!K600)","v":""},{"$f":"T('3 INCOME & EXPENSE'!L600)","v":""},{"$f":"'3 INCOME & EXPENSE'!M600","v":0},{"$f":"'3 INCOME & EXPENSE'!N600","v":0},{"$f":"'3 INCOME & EXPENSE'!O600","v":0}]
[null,{"$f":"T('3 INCOME & EXPENSE'!D601)","v":""},{"$f":"'3 INCOME & EXPENSE'!E601","v":"00:00:00"},{"$f":"'3 INCOME & EXPENSE'!F601","v":0},{"$f":"'3 INCOME & EXPENSE'!G601","v":0},{"$f":"T('3 INCOME & EXPENSE'!H601)","v":""},{"$f":"T('3 INCOME & EXPENSE'!I601)","v":""},{"$f":"T('3 INCOME & EXPENSE'!J601)","v":""},{"$f":"T('3 INCOME & EXPENSE'!K601)","v":""},{"$f":"T('3 INCOME & EXPENSE'!L601)","v":""},{"$f":"'3 INCOME & EXPENSE'!M601","v":0},{"$f":"'3 INCOME & EXPENSE'!N601","v":0},{"$f":"'3 INCOME & EXPENSE'!O601","v":0}]
[null,{"$f":"T('3 INCOME & EXPENSE'!D602)","v":""},{"$f":"'3 INCOME & EXPENSE'!E602","v":"00:00:00"},{"$f":"'3 INCOME & EXPENSE'!F602","v":0},{"$f":"'3 INCOME & EXPENSE'!G602","v":0},{"$f":"T('3 INCOME & EXPENSE'!H602)","v":""},{"$f":"T('3 INCOME & EXPENSE'!I602)","v":""},{"$f":"T('3 INCOME & EXPENSE'!J602)","v":""},{"$f":"T('3 INCOME & EXPENSE'!K602)","v":""},{"$f":"T('3 INCOME & EXPENSE'!L602)","v":""},{"$f":"'3 INCOME & EXPENSE'!M602","v":0},{"$f":"'3 INCOME & EXPENSE'!N602","v":0},{"$f":"'3 INCOME & EXPENSE'!O602","v":0}]
[null,{"$f":"T('3 INCOME & EXPENSE'!D603)","v":""},{"$f":"'3 INCOME & EXPENSE'!E603","v":"00:00:00"},{"$f":"'3 INCOME & EXPENSE'!F603","v":0},{"$f":"'3 INCOME & EXPENSE'!G603","v":0},{"$f":"T('3 INCOME & EXPENSE'!H603)","v":""},{"$f":"T('3 INCOME & EXPENSE'!I603)","v":""},{"$f":"T('3 INCOME & EXPENSE'!J603)","v":""},{"$f":"T('3 INCOME & EXPENSE'!K603)","v":""},{"$f":"T('3 INCOME & EXPENSE'!L603)","v":""},{"$f":"'3 INCOME & EXPENSE'!M603","v":0},{"$f":"'3 INCOME & EXPENSE'!N603","v":0},{"$f":"'3 INCOME & EXPENSE'!O603","v":0}]
[null,{"$f":"T('3 INCOME & EXPENSE'!D604)","v":""},{"$f":"'3 INCOME & EXPENSE'!E604","v":"00:00:00"},{"$f":"'3 INCOME & EXPENSE'!F604","v":0},{"$f":"'3 INCOME & EXPENSE'!G604","v":0},{"$f":"T('3 INCOME & EXPENSE'!H604)","v":""},{"$f":"T('3 INCOME & EXPENSE'!I604)","v":""},{"$f":"T('3 INCOME & EXPENSE'!J604)","v":""},{"$f":"T('3 INCOME & EXPENSE'!K604)","v":""},{"$f":"T('3 INCOME & EXPENSE'!L604)","v":""},{"$f":"'3 INCOME & EXPENSE'!M604","v":0},{"$f":"'3 INCOME & EXPENSE'!N604","v":0},{"$f":"'3 INCOME & EXPENSE'!O604","v":0}]
[null,{"$f":"T('3 INCOME & EXPENSE'!D605)","v":""},{"$f":"'3 INCOME & EXPENSE'!E605","v":"00:00:00"},{"$f":"'3 INCOME & EXPENSE'!F605","v":0},{"$f":"'3 INCOME & EXPENSE'!G605","v":0},{"$f":"T('3 INCOME & EXPENSE'!H605)","v":""},{"$f":"T('3 INCOME & EXPENSE'!I605)","v":""},{"$f":"T('3 INCOME & EXPENSE'!J605)","v":""},{"$f":"T('3 INCOME & EXPENSE'!K605)","v":""},{"$f":"T('3 INCOME & EXPENSE'!L605)","v":""},{"$f":"'3 INCOME & EXPENSE'!M605","v":0},{"$f":"'3 INCOME & EXPENSE'!N605","v":0},{"$f":"'3 INCOME & EXPENSE'!O605","v":0}]
[null,{"$f":"T('3 INCOME & EXPENSE'!D606)","v":""},{"$f":"'3 INCOME & EXPENSE'!E606","v":"00:00:00"},{"$f":"'3 INCOME & EXPENSE'!F606","v":0},{"$f":"'3 INCOME & EXPENSE'!G606","v":0},{"$f":"T('3 INCOME & EXPENSE'!H606)","v":""},{"$f":"T('3 INCOME & EXPENSE'!I606)","v":""},{"$f":"T('3 INCOME & EXPENSE'!J606)","v":""},{"$f":"T('3 INCOME & EXPENSE'!K606)","v":""},{"$f":"T('3 INCOME & EXPENSE'!L606)","v":""},{"$f":"'3 INCOME & EXPENSE'!M606","v":0},{"$f":"'3 INCOME & EXPENSE'!N606","v":0},{"$f":"'3 INCOME & EXPENSE'!O606","v":0}]
[null,{"$f":"T('3 INCOME & EXPENSE'!D607)","v":""},{"$f":"'3 INCOME & EXPENSE'!E607","v":"00:00:00"},{"$f":"'3 INCOME & EXPENSE'!F607","v":0},{"$f":"'3 INCOME & EXPENSE'!G607","v":0},{"$f":"T('3 INCOME & EXPENSE'!H607)","v":""},{"$f":"T('3 INCOME & EXPENSE'!I607)","v":""},{"$f":"T('3 INCOME & EXPENSE'!J607)","v":""},{"$f":"T('3 INCOME & EXPENSE'!K607)","v":""},{"$f":"T('3 INCOME & EXPENSE'!L607)","v":""},{"$f":"'3 INCOME & EXPENSE'!M607","v":0},{"$f":"'3 INCOME & EXPENSE'!N607","v":0},{"$f":"'3 INCOME & EXPENSE'!O607","v":0}]
[null,{"$f":"T('3 INCOME & EXPENSE'!D608)","v":""},{"$f":"'3 INCOME & EXPENSE'!E608","v":"00:00:00"},{"$f":"'3 INCOME & EXPENSE'!F608","v":0},{"$f":"'3 INCOME & EXPENSE'!G608","v":0},{"$f":"T('3 INCOME & EXPENSE'!H608)","v":""},{"$f":"T('3 INCOME & EXPENSE'!I608)","v":""},{"$f":"T('3 INCOME & EXPENSE'!J608)","v":""},{"$f":"T('3 INCOME & EXPENSE'!K608)","v":""},{"$f":"T('3 INCOME & EXPENSE'!L608)","v":""},{"$f":"'3 INCOME & EXPENSE'!M608","v":0},{"$f":"'3 INCOME & EXPENSE'!N608","v":0},{"$f":"'3 INCOME & EXPENSE'!O608","v":0}]
[null,{"$f":"T('3 INCOME & EXPENSE'!D609)","v":""},{"$f":"'3 INCOME & EXPENSE'!E609","v":"00:00:00"},{"$f":"'3 INCOME & EXPENSE'!F609","v":0},{"$f":"'3 INCOME & EXPENSE'!G609","v":0},{"$f":"T('3 INCOME & EXPENSE'!H609)","v":""},{"$f":"T('3 INCOME & EXPENSE'!I609)","v":""},{"$f":"T('3 INCOME & EXPENSE'!J609)","v":""},{"$f":"T('3 INCOME & EXPENSE'!K609)","v":""},{"$f":"T('3 INCOME & EXPENSE'!L609)","v":""},{"$f":"'3 INCOME & EXPENSE'!M609","v":0},{"$f":"'3 INCOME & EXPENSE'!N609","v":0},{"$f":"'3 INCOME & EXPENSE'!O609","v":0}]
[null,{"$f":"T('3 INCOME & EXPENSE'!D610)","v":""},{"$f":"'3 INCOME & EXPENSE'!E610","v":"00:00:00"},{"$f":"'3 INCOME & EXPENSE'!F610","v":0},{"$f":"'3 INCOME & EXPENSE'!G610","v":0},{"$f":"T('3 INCOME & EXPENSE'!H610)","v":""},{"$f":"T('3 INCOME & EXPENSE'!I610)","v":""},{"$f":"T('3 INCOME & EXPENSE'!J610)","v":""},{"$f":"T('3 INCOME & EXPENSE'!K610)","v":""},{"$f":"T('3 INCOME & EXPENSE'!L610)","v":""},{"$f":"'3 INCOME & EXPENSE'!M610","v":0},{"$f":"'3 INCOME & EXPENSE'!N610","v":0},{"$f":"'3 INCOME & EXPENSE'!O610","v":0}]
[null,{"$f":"T('3 INCOME & EXPENSE'!D611)","v":""},{"$f":"'3 INCOME & EXPENSE'!E611","v":"00:00:00"},{"$f":"'3 INCOME & EXPENSE'!F611","v":0},{"$f":"'3 INCOME & EXPENSE'!G611","v":0},{"$f":"T('3 INCOME & EXPENSE'!H611)","v":""},{"$f":"T('3 INCOME & EXPENSE'!I611)","v":""},{"$f":"T('3 INCOME & EXPENSE'!J611)","v":""},{"$f":"T('3 INCOME & EXPENSE'!K611)","v":""},{"$f":"T('3 INCOME & EXPENSE'!L611)","v":""},{"$f":"'3 INCOME & EXPENSE'!M611","v":0},{"$f":"'3 INCOME & EXPENSE'!N611","v":0},{"$f":"'3 INCOME & EXPENSE'!O611","v":0}]
[null,{"$f":"T('3 INCOME & EXPENSE'!D612)","v":""},{"$f":"'3 INCOME & EXPENSE'!E612","v":"00:00:00"},{"$f":"'3 INCOME & EXPENSE'!F612","v":0},{"$f":"'3 INCOME & EXPENSE'!G612","v":0},{"$f":"T('3 INCOME & EXPENSE'!H612)","v":""},{"$f":"T('3 INCOME & EXPENSE'!I612)","v":""},{"$f":"T('3 INCOME & EXPENSE'!J612)","v":""},{"$f":"T('3 INCOME & EXPENSE'!K612)","v":""},{"$f":"T('3 INCOME & EXPENSE'!L612)","v":""},{"$f":"'3 INCOME & EXPENSE'!M612","v":0},{"$f":"'3 INCOME & EXPENSE'!N612","v":0},{"$f":"'3 INCOME & EXPENSE'!O612","v":0}]
[null,{"$f":"T('3 INCOME & EXPENSE'!D613)","v":""},{"$f":"'3 INCOME & EXPENSE'!E613","v":"00:00:00"},{"$f":"'3 INCOME & EXPENSE'!F613","v":0},{"$f":"'3 INCOME & EXPENSE'!G613","v":0},{"$f":"T('3 INCOME & EXPENSE'!H613)","v":""},{"$f":"T('3 INCOME & EXPENSE'!I613)","v":""},{"$f":"T('3 INCOME & EXPENSE'!J613)","v":""},{"$f":"T('3 INCOME & EXPENSE'!K613)","v":""},{"$f":"T('3 INCOME & EXPENSE'!L613)","v":""},{"$f":"'3 INCOME & EXPENSE'!M613","v":0},{"$f":"'3 INCOME & EXPENSE'!N613","v":0},{"$f":"'3 INCOME & EXPENSE'!O613","v":0}]
[null,{"$f":"T('3 INCOME & EXPENSE'!D614)","v":""},{"$f":"'3 INCOME & EXPENSE'!E614","v":"00:00:00"},{"$f":"'3 INCOME & EXPENSE'!F614","v":0},{"$f":"'3 INCOME & EXPENSE'!G614","v":0},{"$f":"T('3 INCOME & EXPENSE'!H614)","v":""},{"$f":"T('3 INCOME & EXPENSE'!I614)","v":""},{"$f":"T('3 INCOME & EXPENSE'!J614)","v":""},{"$f":"T('3 INCOME & EXPENSE'!K614)","v":""},{"$f":"T('3 INCOME & EXPENSE'!L614)","v":""},{"$f":"'3 INCOME & EXPENSE'!M614","v":0},{"$f":"'3 INCOME & EXPENSE'!N614","v":0},{"$f":"'3 INCOME & EXPENSE'!O614","v":0}]
[null,{"$f":"T('3 INCOME & EXPENSE'!D615)","v":""},{"$f":"'3 INCOME & EXPENSE'!E615","v":"00:00:00"},{"$f":"'3 INCOME & EXPENSE'!F615","v":0},{"$f":"'3 INCOME & EXPENSE'!G615","v":0},{"$f":"T('3 INCOME & EXPENSE'!H615)","v":""},{"$f":"T('3 INCOME & EXPENSE'!I615)","v":""},{"$f":"T('3 INCOME & EXPENSE'!J615)","v":""},{"$f":"T('3 INCOME & EXPENSE'!K615)","v":""},{"$f":"T('3 INCOME & EXPENSE'!L615)","v":""},{"$f":"'3 INCOME & EXPENSE'!M615","v":0},{"$f":"'3 INCOME & EXPENSE'!N615","v":0},{"$f":"'3 INCOME & EXPENSE'!O615","v":0}]
[null,{"$f":"T('3 INCOME & EXPENSE'!D616)","v":""},{"$f":"'3 INCOME & EXPENSE'!E616","v":"00:00:00"},{"$f":"'3 INCOME & EXPENSE'!F616","v":0},{"$f":"'3 INCOME & EXPENSE'!G616","v":0},{"$f":"T('3 INCOME & EXPENSE'!H616)","v":""},{"$f":"T('3 INCOME & EXPENSE'!I616)","v":""},{"$f":"T('3 INCOME & EXPENSE'!J616)","v":""},{"$f":"T('3 INCOME & EXPENSE'!K616)","v":""},{"$f":"T('3 INCOME & EXPENSE'!L616)","v":""},{"$f":"'3 INCOME & EXPENSE'!M616","v":0},{"$f":"'3 INCOME & EXPENSE'!N616","v":0},{"$f":"'3 INCOME & EXPENSE'!O616","v":0}]
[null,{"$f":"T('3 INCOME & EXPENSE'!D617)","v":""},{"$f":"'3 INCOME & EXPENSE'!E617","v":"00:00:00"},{"$f":"'3 INCOME & EXPENSE'!F617","v":0},{"$f":"'3 INCOME & EXPENSE'!G617","v":0},{"$f":"T('3 INCOME & EXPENSE'!H617)","v":""},{"$f":"T('3 INCOME & EXPENSE'!I617)","v":""},{"$f":"T('3 INCOME & EXPENSE'!J617)","v":""},{"$f":"T('3 INCOME & EXPENSE'!K617)","v":""},{"$f":"T('3 INCOME & EXPENSE'!L617)","v":""},{"$f":"'3 INCOME & EXPENSE'!M617","v":0},{"$f":"'3 INCOME & EXPENSE'!N617","v":0},{"$f":"'3 INCOME & EXPENSE'!O617","v":0}]
[null,{"$f":"T('3 INCOME & EXPENSE'!D618)","v":""},{"$f":"'3 INCOME & EXPENSE'!E618","v":"00:00:00"},{"$f":"'3 INCOME & EXPENSE'!F618","v":0},{"$f":"'3 INCOME & EXPENSE'!G618","v":0},{"$f":"T('3 INCOME & EXPENSE'!H618)","v":""},{"$f":"T('3 INCOME & EXPENSE'!I618)","v":""},{"$f":"T('3 INCOME & EXPENSE'!J618)","v":""},{"$f":"T('3 INCOME & EXPENSE'!K618)","v":""},{"$f":"T('3 INCOME & EXPENSE'!L618)","v":""},{"$f":"'3 INCOME & EXPENSE'!M618","v":0},{"$f":"'3 INCOME & EXPENSE'!N618","v":0},{"$f":"'3 INCOME & EXPENSE'!O618","v":0}]
[null,{"$f":"T('3 INCOME & EXPENSE'!D619)","v":""},{"$f":"'3 INCOME & EXPENSE'!E619","v":"00:00:00"},{"$f":"'3 INCOME & EXPENSE'!F619","v":0},{"$f":"'3 INCOME & EXPENSE'!G619","v":0},{"$f":"T('3 INCOME & EXPENSE'!H619)","v":""},{"$f":"T('3 INCOME & EXPENSE'!I619)","v":""},{"$f":"T('3 INCOME & EXPENSE'!J619)","v":""},{"$f":"T('3 INCOME & EXPENSE'!K619)","v":""},{"$f":"T('3 INCOME & EXPENSE'!L619)","v":""},{"$f":"'3 INCOME & EXPENSE'!M619","v":0},{"$f":"'3 INCOME & EXPENSE'!N619","v":0},{"$f":"'3 INCOME & EXPENSE'!O619","v":0}]
[null,{"$f":"T('3 INCOME & EXPENSE'!D620)","v":""},{"$f":"'3 INCOME & EXPENSE'!E620","v":"00:00:00"},{"$f":"'3 INCOME & EXPENSE'!F620","v":0},{"$f":"'3 INCOME & EXPENSE'!G620","v":0},{"$f":"T('3 INCOME & EXPENSE'!H620)","v":""},{"$f":"T('3 INCOME & EXPENSE'!I620)","v":""},{"$f":"T('3 INCOME & EXPENSE'!J620)","v":""},{"$f":"T('3 INCOME & EXPENSE'!K620)","v":""},{"$f":"T('3 INCOME & EXPENSE'!L620)","v":""},{"$f":"'3 INCOME & EXPENSE'!M620","v":0},{"$f":"'3 INCOME & EXPENSE'!N620","v":0},{"$f":"'3 INCOME & EXPENSE'!O620","v":0}]
[null,{"$f":"T('3 INCOME & EXPENSE'!D621)","v":""},{"$f":"'3 INCOME & EXPENSE'!E621","v":"00:00:00"},{"$f":"'3 INCOME & EXPENSE'!F621","v":0},{"$f":"'3 INCOME & EXPENSE'!G621","v":0},{"$f":"T('3 INCOME & EXPENSE'!H621)","v":""},{"$f":"T('3 INCOME & EXPENSE'!I621)","v":""},{"$f":"T('3 INCOME & EXPENSE'!J621)","v":""},{"$f":"T('3 INCOME & EXPENSE'!K621)","v":""},{"$f":"T('3 INCOME & EXPENSE'!L621)","v":""},{"$f":"'3 INCOME & EXPENSE'!M621","v":0},{"$f":"'3 INCOME & EXPENSE'!N621","v":0},{"$f":"'3 INCOME & EXPENSE'!O621","v":0}]
[null,{"$f":"T('3 INCOME & EXPENSE'!D622)","v":""},{"$f":"'3 INCOME & EXPENSE'!E622","v":"00:00:00"},{"$f":"'3 INCOME & EXPENSE'!F622","v":0},{"$f":"'3 INCOME & EXPENSE'!G622","v":0},{"$f":"T('3 INCOME & EXPENSE'!H622)","v":""},{"$f":"T('3 INCOME & EXPENSE'!I622)","v":""},{"$f":"T('3 INCOME & EXPENSE'!J622)","v":""},{"$f":"T('3 INCOME & EXPENSE'!K622)","v":""},{"$f":"T('3 INCOME & EXPENSE'!L622)","v":""},{"$f":"'3 INCOME & EXPENSE'!M622","v":0},{"$f":"'3 INCOME & EXPENSE'!N622","v":0},{"$f":"'3 INCOME & EXPENSE'!O622","v":0}]
[null,{"$f":"T('3 INCOME & EXPENSE'!D623)","v":""},{"$f":"'3 INCOME & EXPENSE'!E623","v":"00:00:00"},{"$f":"'3 INCOME & EXPENSE'!F623","v":0},{"$f":"'3 INCOME & EXPENSE'!G623","v":0},{"$f":"T('3 INCOME & EXPENSE'!H623)","v":""},{"$f":"T('3 INCOME & EXPENSE'!I623)","v":""},{"$f":"T('3 INCOME & EXPENSE'!J623)","v":""},{"$f":"T('3 INCOME & EXPENSE'!K623)","v":""},{"$f":"T('3 INCOME & EXPENSE'!L623)","v":""},{"$f":"'3 INCOME & EXPENSE'!M623","v":0},{"$f":"'3 INCOME & EXPENSE'!N623","v":0},{"$f":"'3 INCOME & EXPENSE'!O623","v":0}]
[null,{"$f":"T('3 INCOME & EXPENSE'!D624)","v":""},{"$f":"'3 INCOME & EXPENSE'!E624","v":"00:00:00"},{"$f":"'3 INCOME & EXPENSE'!F624","v":0},{"$f":"'3 INCOME & EXPENSE'!G624","v":0},{"$f":"T('3 INCOME & EXPENSE'!H624)","v":""},{"$f":"T('3 INCOME & EXPENSE'!I624)","v":""},{"$f":"T('3 INCOME & EXPENSE'!J624)","v":""},{"$f":"T('3 INCOME & EXPENSE'!K624)","v":""},{"$f":"T('3 INCOME & EXPENSE'!L624)","v":""},{"$f":"'3 INCOME & EXPENSE'!M624","v":0},{"$f":"'3 INCOME & EXPENSE'!N624","v":0},{"$f":"'3 INCOME & EXPENSE'!O624","v":0}]
[null,{"$f":"T('3 INCOME & EXPENSE'!D625)","v":""},{"$f":"'3 INCOME & EXPENSE'!E625","v":"00:00:00"},{"$f":"'3 INCOME & EXPENSE'!F625","v":0},{"$f":"'3 INCOME & EXPENSE'!G625","v":0},{"$f":"T('3 INCOME & EXPENSE'!H625)","v":""},{"$f":"T('3 INCOME & EXPENSE'!I625)","v":""},{"$f":"T('3 INCOME & EXPENSE'!J625)","v":""},{"$f":"T('3 INCOME & EXPENSE'!K625)","v":""},{"$f":"T('3 INCOME & EXPENSE'!L625)","v":""},{"$f":"'3 INCOME & EXPENSE'!M625","v":0},{"$f":"'3 INCOME & EXPENSE'!N625","v":0},{"$f":"'3 INCOME & EXPENSE'!O625","v":0}]
[null,{"$f":"T('3 INCOME & EXPENSE'!D626)","v":""},{"$f":"'3 INCOME & EXPENSE'!E626","v":"00:00:00"},{"$f":"'3 INCOME & EXPENSE'!F626","v":0},{"$f":"'3 INCOME & EXPENSE'!G626","v":0},{"$f":"T('3 INCOME & EXPENSE'!H626)","v":""},{"$f":"T('3 INCOME & EXPENSE'!I626)","v":""},{"$f":"T('3 INCOME & EXPENSE'!J626)","v":""},{"$f":"T('3 INCOME & EXPENSE'!K626)","v":""},{"$f":"T('3 INCOME & EXPENSE'!L626)","v":""},{"$f":"'3 INCOME & EXPENSE'!M626","v":0},{"$f":"'3 INCOME & EXPENSE'!N626","v":0},{"$f":"'3 INCOME & EXPENSE'!O626","v":0}]
[null,{"$f":"T('3 INCOME & EXPENSE'!D627)","v":""},{"$f":"'3 INCOME & EXPENSE'!E627","v":"00:00:00"},{"$f":"'3 INCOME & EXPENSE'!F627","v":0},{"$f":"'3 INCOME & EXPENSE'!G627","v":0},{"$f":"T('3 INCOME & EXPENSE'!H627)","v":""},{"$f":"T('3 INCOME & EXPENSE'!I627)","v":""},{"$f":"T('3 INCOME & EXPENSE'!J627)","v":""},{"$f":"T('3 INCOME & EXPENSE'!K627)","v":""},{"$f":"T('3 INCOME & EXPENSE'!L627)","v":""},{"$f":"'3 INCOME & EXPENSE'!M627","v":0},{"$f":"'3 INCOME & EXPENSE'!N627","v":0},{"$f":"'3 INCOME & EXPENSE'!O627","v":0}]
[null,{"$f":"T('3 INCOME & EXPENSE'!D628)","v":""},{"$f":"'3 INCOME & EXPENSE'!E628","v":"00:00:00"},{"$f":"'3 INCOME & EXPENSE'!F628","v":0},{"$f":"'3 INCOME & EXPENSE'!G628","v":0},{"$f":"T('3 INCOME & EXPENSE'!H628)","v":""},{"$f":"T('3 INCOME & EXPENSE'!I628)","v":""},{"$f":"T('3 INCOME & EXPENSE'!J628)","v":""},{"$f":"T('3 INCOME & EXPENSE'!K628)","v":""},{"$f":"T('3 INCOME & EXPENSE'!L628)","v":""},{"$f":"'3 INCOME & EXPENSE'!M628","v":0},{"$f":"'3 INCOME & EXPENSE'!N628","v":0},{"$f":"'3 INCOME & EXPENSE'!O628","v":0}]
[null,{"$f":"T('3 INCOME & EXPENSE'!D629)","v":""},{"$f":"'3 INCOME & EXPENSE'!E629","v":"00:00:00"},{"$f":"'3 INCOME & EXPENSE'!F629","v":0},{"$f":"'3 INCOME & EXPENSE'!G629","v":0},{"$f":"T('3 INCOME & EXPENSE'!H629)","v":""},{"$f":"T('3 INCOME & EXPENSE'!I629)","v":""},{"$f":"T('3 INCOME & EXPENSE'!J629)","v":""},{"$f":"T('3 INCOME & EXPENSE'!K629)","v":""},{"$f":"T('3 INCOME & EXPENSE'!L629)","v":""},{"$f":"'3 INCOME & EXPENSE'!M629","v":0},{"$f":"'3 INCOME & EXPENSE'!N629","v":0},{"$f":"'3 INCOME & EXPENSE'!O629","v":0}]
[null,{"$f":"T('3 INCOME & EXPENSE'!D630)","v":""},{"$f":"'3 INCOME & EXPENSE'!E630","v":"00:00:00"},{"$f":"'3 INCOME & EXPENSE'!F630","v":0},{"$f":"'3 INCOME & EXPENSE'!G630","v":0},{"$f":"T('3 INCOME & EXPENSE'!H630)","v":""},{"$f":"T('3 INCOME & EXPENSE'!I630)","v":""},{"$f":"T('3 INCOME & EXPENSE'!J630)","v":""},{"$f":"T('3 INCOME & EXPENSE'!K630)","v":""},{"$f":"T('3 INCOME & EXPENSE'!L630)","v":""},{"$f":"'3 INCOME & EXPENSE'!M630","v":0},{"$f":"'3 INCOME & EXPENSE'!N630","v":0},{"$f":"'3 INCOME & EXPENSE'!O630","v":0}]
[null,{"$f":"T('3 INCOME & EXPENSE'!D631)","v":""},{"$f":"'3 INCOME & EXPENSE'!E631","v":"00:00:00"},{"$f":"'3 INCOME & EXPENSE'!F631","v":0},{"$f":"'3 INCOME & EXPENSE'!G631","v":0},{"$f":"T('3 INCOME & EXPENSE'!H631)","v":""},{"$f":"T('3 INCOME & EXPENSE'!I631)","v":""},{"$f":"T('3 INCOME & EXPENSE'!J631)","v":""},{"$f":"T('3 INCOME & EXPENSE'!K631)","v":""},{"$f":"T('3 INCOME & EXPENSE'!L631)","v":""},{"$f":"'3 INCOME & EXPENSE'!M631","v":0},{"$f":"'3 INCOME & EXPENSE'!N631","v":0},{"$f":"'3 INCOME & EXPENSE'!O631","v":0}]
[null,{"$f":"T('3 INCOME & EXPENSE'!D632)","v":""},{"$f":"'3 INCOME & EXPENSE'!E632","v":"00:00:00"},{"$f":"'3 INCOME & EXPENSE'!F632","v":0},{"$f":"'3 INCOME & EXPENSE'!G632","v":0},{"$f":"T('3 INCOME & EXPENSE'!H632)","v":""},{"$f":"T('3 INCOME & EXPENSE'!I632)","v":""},{"$f":"T('3 INCOME & EXPENSE'!J632)","v":""},{"$f":"T('3 INCOME & EXPENSE'!K632)","v":""},{"$f":"T('3 INCOME & EXPENSE'!L632)","v":""},{"$f":"'3 INCOME & EXPENSE'!M632","v":0},{"$f":"'3 INCOME & EXPENSE'!N632","v":0},{"$f":"'3 INCOME & EXPENSE'!O632","v":0}]
[null,{"$f":"T('3 INCOME & EXPENSE'!D633)","v":""},{"$f":"'3 INCOME & EXPENSE'!E633","v":"00:00:00"},{"$f":"'3 INCOME & EXPENSE'!F633","v":0},{"$f":"'3 INCOME & EXPENSE'!G633","v":0},{"$f":"T('3 INCOME & EXPENSE'!H633)","v":""},{"$f":"T('3 INCOME & EXPENSE'!I633)","v":""},{"$f":"T('3 INCOME & EXPENSE'!J633)","v":""},{"$f":"T('3 INCOME & EXPENSE'!K633)","v":""},{"$f":"T('3 INCOME & EXPENSE'!L633)","v":""},{"$f":"'3 INCOME & EXPENSE'!M633","v":0},{"$f":"'3 INCOME & EXPENSE'!N633","v":0},{"$f":"'3 INCOME & EXPENSE'!O633","v":0}]
[null,{"$f":"T('3 INCOME & EXPENSE'!D634)","v":""},{"$f":"'3 INCOME & EXPENSE'!E634","v":"00:00:00"},{"$f":"'3 INCOME & EXPENSE'!F634","v":0},{"$f":"'3 INCOME & EXPENSE'!G634","v":0},{"$f":"T('3 INCOME & EXPENSE'!H634)","v":""},{"$f":"T('3 INCOME & EXPENSE'!I634)","v":""},{"$f":"T('3 INCOME & EXPENSE'!J634)","v":""},{"$f":"T('3 INCOME & EXPENSE'!K634)","v":""},{"$f":"T('3 INCOME & EXPENSE'!L634)","v":""},{"$f":"'3 INCOME & EXPENSE'!M634","v":0},{"$f":"'3 INCOME & EXPENSE'!N634","v":0},{"$f":"'3 INCOME & EXPENSE'!O634","v":0}]
[null,{"$f":"T('3 INCOME & EXPENSE'!D635)","v":""},{"$f":"'3 INCOME & EXPENSE'!E635","v":"00:00:00"},{"$f":"'3 INCOME & EXPENSE'!F635","v":0},{"$f":"'3 INCOME & EXPENSE'!G635","v":0},{"$f":"T('3 INCOME & EXPENSE'!H635)","v":""},{"$f":"T('3 INCOME & EXPENSE'!I635)","v":""},{"$f":"T('3 INCOME & EXPENSE'!J635)","v":""},{"$f":"T('3 INCOME & EXPENSE'!K635)","v":""},{"$f":"T('3 INCOME & EXPENSE'!L635)","v":""},{"$f":"'3 INCOME & EXPENSE'!M635","v":0},{"$f":"'3 INCOME & EXPENSE'!N635","v":0},{"$f":"'3 INCOME & EXPENSE'!O635","v":0}]
[null,{"$f":"T('3 INCOME & EXPENSE'!D636)","v":""},{"$f":"'3 INCOME & EXPENSE'!E636","v":"00:00:00"},{"$f":"'3 INCOME & EXPENSE'!F636","v":0},{"$f":"'3 INCOME & EXPENSE'!G636","v":0},{"$f":"T('3 INCOME & EXPENSE'!H636)","v":""},{"$f":"T('3 INCOME & EXPENSE'!I636)","v":""},{"$f":"T('3 INCOME & EXPENSE'!J636)","v":""},{"$f":"T('3 INCOME & EXPENSE'!K636)","v":""},{"$f":"T('3 INCOME & EXPENSE'!L636)","v":""},{"$f":"'3 INCOME & EXPENSE'!M636","v":0},{"$f":"'3 INCOME & EXPENSE'!N636","v":0},{"$f":"'3 INCOME & EXPENSE'!O636","v":0}]
[null,{"$f":"T('3 INCOME & EXPENSE'!D637)","v":""},{"$f":"'3 INCOME & EXPENSE'!E637","v":"00:00:00"},{"$f":"'3 INCOME & EXPENSE'!F637","v":0},{"$f":"'3 INCOME & EXPENSE'!G637","v":0},{"$f":"T('3 INCOME & EXPENSE'!H637)","v":""},{"$f":"T('3 INCOME & EXPENSE'!I637)","v":""},{"$f":"T('3 INCOME & EXPENSE'!J637)","v":""},{"$f":"T('3 INCOME & EXPENSE'!K637)","v":""},{"$f":"T('3 INCOME & EXPENSE'!L637)","v":""},{"$f":"'3 INCOME & EXPENSE'!M637","v":0},{"$f":"'3 INCOME & EXPENSE'!N637","v":0},{"$f":"'3 INCOME & EXPENSE'!O637","v":0}]
[null,{"$f":"T('3 INCOME & EXPENSE'!D638)","v":""},{"$f":"'3 INCOME & EXPENSE'!E638","v":"00:00:00"},{"$f":"'3 INCOME & EXPENSE'!F638","v":0},{"$f":"'3 INCOME & EXPENSE'!G638","v":0},{"$f":"T('3 INCOME & EXPENSE'!H638)","v":""},{"$f":"T('3 INCOME & EXPENSE'!I638)","v":""},{"$f":"T('3 INCOME & EXPENSE'!J638)","v":""},{"$f":"T('3 INCOME & EXPENSE'!K638)","v":""},{"$f":"T('3 INCOME & EXPENSE'!L638)","v":""},{"$f":"'3 INCOME & EXPENSE'!M638","v":0},{"$f":"'3 INCOME & EXPENSE'!N638","v":0},{"$f":"'3 INCOME & EXPENSE'!O638","v":0}]
[null,{"$f":"T('3 INCOME & EXPENSE'!D639)","v":""},{"$f":"'3 INCOME & EXPENSE'!E639","v":"00:00:00"},{"$f":"'3 INCOME & EXPENSE'!F639","v":0},{"$f":"'3 INCOME & EXPENSE'!G639","v":0},{"$f":"T('3 INCOME & EXPENSE'!H639)","v":""},{"$f":"T('3 INCOME & EXPENSE'!I639)","v":""},{"$f":"T('3 INCOME & EXPENSE'!J639)","v":""},{"$f":"T('3 INCOME & EXPENSE'!K639)","v":""},{"$f":"T('3 INCOME & EXPENSE'!L639)","v":""},{"$f":"'3 INCOME & EXPENSE'!M639","v":0},{"$f":"'3 INCOME & EXPENSE'!N639","v":0},{"$f":"'3 INCOME & EXPENSE'!O639","v":0}]
[null,{"$f":"T('3 INCOME & EXPENSE'!D640)","v":""},{"$f":"'3 INCOME & EXPENSE'!E640","v":"00:00:00"},{"$f":"'3 INCOME & EXPENSE'!F640","v":0},{"$f":"'3 INCOME & EXPENSE'!G640","v":0},{"$f":"T('3 INCOME & EXPENSE'!H640)","v":""},{"$f":"T('3 INCOME & EXPENSE'!I640)","v":""},{"$f":"T('3 INCOME & EXPENSE'!J640)","v":""},{"$f":"T('3 INCOME & EXPENSE'!K640)","v":""},{"$f":"T('3 INCOME & EXPENSE'!L640)","v":""},{"$f":"'3 INCOME & EXPENSE'!M640","v":0},{"$f":"'3 INCOME & EXPENSE'!N640","v":0},{"$f":"'3 INCOME & EXPENSE'!O640","v":0}]
[null,{"$f":"T('3 INCOME & EXPENSE'!D641)","v":""},{"$f":"'3 INCOME & EXPENSE'!E641","v":"00:00:00"},{"$f":"'3 INCOME & EXPENSE'!F641","v":0},{"$f":"'3 INCOME & EXPENSE'!G641","v":0},{"$f":"T('3 INCOME & EXPENSE'!H641)","v":""},{"$f":"T('3 INCOME & EXPENSE'!I641)","v":""},{"$f":"T('3 INCOME & EXPENSE'!J641)","v":""},{"$f":"T('3 INCOME & EXPENSE'!K641)","v":""},{"$f":"T('3 INCOME & EXPENSE'!L641)","v":""},{"$f":"'3 INCOME & EXPENSE'!M641","v":0},{"$f":"'3 INCOME & EXPENSE'!N641","v":0},{"$f":"'3 INCOME & EXPENSE'!O641","v":0}]
[null,{"$f":"T('3 INCOME & EXPENSE'!D642)","v":""},{"$f":"'3 INCOME & EXPENSE'!E642","v":"00:00:00"},{"$f":"'3 INCOME & EXPENSE'!F642","v":0},{"$f":"'3 INCOME & EXPENSE'!G642","v":0},{"$f":"T('3 INCOME & EXPENSE'!H642)","v":""},{"$f":"T('3 INCOME & EXPENSE'!I642)","v":""},{"$f":"T('3 INCOME & EXPENSE'!J642)","v":""},{"$f":"T('3 INCOME & EXPENSE'!K642)","v":""},{"$f":"T('3 INCOME & EXPENSE'!L642)","v":""},{"$f":"'3 INCOME & EXPENSE'!M642","v":0},{"$f":"'3 INCOME & EXPENSE'!N642","v":0},{"$f":"'3 INCOME & EXPENSE'!O642","v":0}]
[null,{"$f":"T('3 INCOME & EXPENSE'!D643)","v":""},{"$f":"'3 INCOME & EXPENSE'!E643","v":"00:00:00"},{"$f":"'3 INCOME & EXPENSE'!F643","v":0},{"$f":"'3 INCOME & EXPENSE'!G643","v":0},{"$f":"T('3 INCOME & EXPENSE'!H643)","v":""},{"$f":"T('3 INCOME & EXPENSE'!I643)","v":""},{"$f":"T('3 INCOME & EXPENSE'!J643)","v":""},{"$f":"T('3 INCOME & EXPENSE'!K643)","v":""},{"$f":"T('3 INCOME & EXPENSE'!L643)","v":""},{"$f":"'3 INCOME & EXPENSE'!M643","v":0},{"$f":"'3 INCOME & EXPENSE'!N643","v":0},{"$f":"'3 INCOME & EXPENSE'!O643","v":0}]
[null,{"$f":"T('3 INCOME & EXPENSE'!D644)","v":""},{"$f":"'3 INCOME & EXPENSE'!E644","v":"00:00:00"},{"$f":"'3 INCOME & EXPENSE'!F644","v":0},{"$f":"'3 INCOME & EXPENSE'!G644","v":0},{"$f":"T('3 INCOME & EXPENSE'!H644)","v":""},{"$f":"T('3 INCOME & EXPENSE'!I644)","v":""},{"$f":"T('3 INCOME & EXPENSE'!J644)","v":""},{"$f":"T('3 INCOME & EXPENSE'!K644)","v":""},{"$f":"T('3 INCOME & EXPENSE'!L644)","v":""},{"$f":"'3 INCOME & EXPENSE'!M644","v":0},{"$f":"'3 INCOME & EXPENSE'!N644","v":0},{"$f":"'3 INCOME & EXPENSE'!O644","v":0}]
[null,{"$f":"T('3 INCOME & EXPENSE'!D645)","v":""},{"$f":"'3 INCOME & EXPENSE'!E645","v":"00:00:00"},{"$f":"'3 INCOME & EXPENSE'!F645","v":0},{"$f":"'3 INCOME & EXPENSE'!G645","v":0},{"$f":"T('3 INCOME & EXPENSE'!H645)","v":""},{"$f":"T('3 INCOME & EXPENSE'!I645)","v":""},{"$f":"T('3 INCOME & EXPENSE'!J645)","v":""},{"$f":"T('3 INCOME & EXPENSE'!K645)","v":""},{"$f":"T('3 INCOME & EXPENSE'!L645)","v":""},{"$f":"'3 INCOME & EXPENSE'!M645","v":0},{"$f":"'3 INCOME & EXPENSE'!N645","v":0},{"$f":"'3 INCOME & EXPENSE'!O645","v":0}]
[null,{"$f":"T('3 INCOME & EXPENSE'!D646)","v":""},{"$f":"'3 INCOME & EXPENSE'!E646","v":"00:00:00"},{"$f":"'3 INCOME & EXPENSE'!F646","v":0},{"$f":"'3 INCOME & EXPENSE'!G646","v":0},{"$f":"T('3 INCOME & EXPENSE'!H646)","v":""},{"$f":"T('3 INCOME & EXPENSE'!I646)","v":""},{"$f":"T('3 INCOME & EXPENSE'!J646)","v":""},{"$f":"T('3 INCOME & EXPENSE'!K646)","v":""},{"$f":"T('3 INCOME & EXPENSE'!L646)","v":""},{"$f":"'3 INCOME & EXPENSE'!M646","v":0},{"$f":"'3 INCOME & EXPENSE'!N646","v":0},{"$f":"'3 INCOME & EXPENSE'!O646","v":0}]
[null,{"$f":"T('3 INCOME & EXPENSE'!D647)","v":""},{"$f":"'3 INCOME & EXPENSE'!E647","v":"00:00:00"},{"$f":"'3 INCOME & EXPENSE'!F647","v":0},{"$f":"'3 INCOME & EXPENSE'!G647","v":0},{"$f":"T('3 INCOME & EXPENSE'!H647)","v":""},{"$f":"T('3 INCOME & EXPENSE'!I647)","v":""},{"$f":"T('3 INCOME & EXPENSE'!J647)","v":""},{"$f":"T('3 INCOME & EXPENSE'!K647)","v":""},{"$f":"T('3 INCOME & EXPENSE'!L647)","v":""},{"$f":"'3 INCOME & EXPENSE'!M647","v":0},{"$f":"'3 INCOME & EXPENSE'!N647","v":0},{"$f":"'3 INCOME & EXPENSE'!O647","v":0}]
[null,{"$f":"T('3 INCOME & EXPENSE'!D648)","v":""},{"$f":"'3 INCOME & EXPENSE'!E648","v":"00:00:00"},{"$f":"'3 INCOME & EXPENSE'!F648","v":0},{"$f":"'3 INCOME & EXPENSE'!G648","v":0},{"$f":"T('3 INCOME & EXPENSE'!H648)","v":""},{"$f":"T('3 INCOME & EXPENSE'!I648)","v":""},{"$f":"T('3 INCOME & EXPENSE'!J648)","v":""},{"$f":"T('3 INCOME & EXPENSE'!K648)","v":""},{"$f":"T('3 INCOME & EXPENSE'!L648)","v":""},{"$f":"'3 INCOME & EXPENSE'!M648","v":0},{"$f":"'3 INCOME & EXPENSE'!N648","v":0},{"$f":"'3 INCOME & EXPENSE'!O648","v":0}]
[null,{"$f":"T('3 INCOME & EXPENSE'!D649)","v":""},{"$f":"'3 INCOME & EXPENSE'!E649","v":"00:00:00"},{"$f":"'3 INCOME & EXPENSE'!F649","v":0},{"$f":"'3 INCOME & EXPENSE'!G649","v":0},{"$f":"T('3 INCOME & EXPENSE'!H649)","v":""},{"$f":"T('3 INCOME & EXPENSE'!I649)","v":""},{"$f":"T('3 INCOME & EXPENSE'!J649)","v":""},{"$f":"T('3 INCOME & EXPENSE'!K649)","v":""},{"$f":"T('3 INCOME & EXPENSE'!L649)","v":""},{"$f":"'3 INCOME & EXPENSE'!M649","v":0},{"$f":"'3 INCOME & EXPENSE'!N649","v":0},{"$f":"'3 INCOME & EXPENSE'!O649","v":0}]
[null,{"$f":"T('3 INCOME & EXPENSE'!D650)","v":""},{"$f":"'3 INCOME & EXPENSE'!E650","v":"00:00:00"},{"$f":"'3 INCOME & EXPENSE'!F650","v":0},{"$f":"'3 INCOME & EXPENSE'!G650","v":0},{"$f":"T('3 INCOME & EXPENSE'!H650)","v":""},{"$f":"T('3 INCOME & EXPENSE'!I650)","v":""},{"$f":"T('3 INCOME & EXPENSE'!J650)","v":""},{"$f":"T('3 INCOME & EXPENSE'!K650)","v":""},{"$f":"T('3 INCOME & EXPENSE'!L650)","v":""},{"$f":"'3 INCOME & EXPENSE'!M650","v":0},{"$f":"'3 INCOME & EXPENSE'!N650","v":0},{"$f":"'3 INCOME & EXPENSE'!O650","v":0}]
[null,{"$f":"T('3 INCOME & EXPENSE'!D651)","v":""},{"$f":"'3 INCOME & EXPENSE'!E651","v":"00:00:00"},{"$f":"'3 INCOME & EXPENSE'!F651","v":0},{"$f":"'3 INCOME & EXPENSE'!G651","v":0},{"$f":"T('3 INCOME & EXPENSE'!H651)","v":""},{"$f":"T('3 INCOME & EXPENSE'!I651)","v":""},{"$f":"T('3 INCOME & EXPENSE'!J651)","v":""},{"$f":"T('3 INCOME & EXPENSE'!K651)","v":""},{"$f":"T('3 INCOME & EXPENSE'!L651)","v":""},{"$f":"'3 INCOME & EXPENSE'!M651","v":0},{"$f":"'3 INCOME & EXPENSE'!N651","v":0},{"$f":"'3 INCOME & EXPENSE'!O651","v":0}]
[null,{"$f":"T('3 INCOME & EXPENSE'!D652)","v":""},{"$f":"'3 INCOME & EXPENSE'!E652","v":"00:00:00"},{"$f":"'3 INCOME & EXPENSE'!F652","v":0},{"$f":"'3 INCOME & EXPENSE'!G652","v":0},{"$f":"T('3 INCOME & EXPENSE'!H652)","v":""},{"$f":"T('3 INCOME & EXPENSE'!I652)","v":""},{"$f":"T('3 INCOME & EXPENSE'!J652)","v":""},{"$f":"T('3 INCOME & EXPENSE'!K652)","v":""},{"$f":"T('3 INCOME & EXPENSE'!L652)","v":""},{"$f":"'3 INCOME & EXPENSE'!M652","v":0},{"$f":"'3 INCOME & EXPENSE'!N652","v":0},{"$f":"'3 INCOME & EXPENSE'!O652","v":0}]
[null,{"$f":"T('3 INCOME & EXPENSE'!D653)","v":""},{"$f":"'3 INCOME & EXPENSE'!E653","v":"00:00:00"},{"$f":"'3 INCOME & EXPENSE'!F653","v":0},{"$f":"'3 INCOME & EXPENSE'!G653","v":0},{"$f":"T('3 INCOME & EXPENSE'!H653)","v":""},{"$f":"T('3 INCOME & EXPENSE'!I653)","v":""},{"$f":"T('3 INCOME & EXPENSE'!J653)","v":""},{"$f":"T('3 INCOME & EXPENSE'!K653)","v":""},{"$f":"T('3 INCOME & EXPENSE'!L653)","v":""},{"$f":"'3 INCOME & EXPENSE'!M653","v":0},{"$f":"'3 INCOME & EXPENSE'!N653","v":0},{"$f":"'3 INCOME & EXPENSE'!O653","v":0}]
[null,{"$f":"T('3 INCOME & EXPENSE'!D654)","v":""},{"$f":"'3 INCOME & EXPENSE'!E654","v":"00:00:00"},{"$f":"'3 INCOME & EXPENSE'!F654","v":0},{"$f":"'3 INCOME & EXPENSE'!G654","v":0},{"$f":"T('3 INCOME & EXPENSE'!H654)","v":""},{"$f":"T('3 INCOME & EXPENSE'!I654)","v":""},{"$f":"T('3 INCOME & EXPENSE'!J654)","v":""},{"$f":"T('3 INCOME & EXPENSE'!K654)","v":""},{"$f":"T('3 INCOME & EXPENSE'!L654)","v":""},{"$f":"'3 INCOME & EXPENSE'!M654","v":0},{"$f":"'3 INCOME & EXPENSE'!N654","v":0},{"$f":"'3 INCOME & EXPENSE'!O654","v":0}]
[null,{"$f":"T('3 INCOME & EXPENSE'!D655)","v":""},{"$f":"'3 INCOME & EXPENSE'!E655","v":"00:00:00"},{"$f":"'3 INCOME & EXPENSE'!F655","v":0},{"$f":"'3 INCOME & EXPENSE'!G655","v":0},{"$f":"T('3 INCOME & EXPENSE'!H655)","v":""},{"$f":"T('3 INCOME & EXPENSE'!I655)","v":""},{"$f":"T('3 INCOME & EXPENSE'!J655)","v":""},{"$f":"T('3 INCOME & EXPENSE'!K655)","v":""},{"$f":"T('3 INCOME & EXPENSE'!L655)","v":""},{"$f":"'3 INCOME & EXPENSE'!M655","v":0},{"$f":"'3 INCOME & EXPENSE'!N655","v":0},{"$f":"'3 INCOME & EXPENSE'!O655","v":0}]
[null,{"$f":"T('3 INCOME & EXPENSE'!D656)","v":""},{"$f":"'3 INCOME & EXPENSE'!E656","v":"00:00:00"},{"$f":"'3 INCOME & EXPENSE'!F656","v":0},{"$f":"'3 INCOME & EXPENSE'!G656","v":0},{"$f":"T('3 INCOME & EXPENSE'!H656)","v":""},{"$f":"T('3 INCOME & EXPENSE'!I656)","v":""},{"$f":"T('3 INCOME & EXPENSE'!J656)","v":""},{"$f":"T('3 INCOME & EXPENSE'!K656)","v":""},{"$f":"T('3 INCOME & EXPENSE'!L656)","v":""},{"$f":"'3 INCOME & EXPENSE'!M656","v":0},{"$f":"'3 INCOME & EXPENSE'!N656","v":0},{"$f":"'3 INCOME & EXPENSE'!O656","v":0}]
[null,{"$f":"T('3 INCOME & EXPENSE'!D657)","v":""},{"$f":"'3 INCOME & EXPENSE'!E657","v":"00:00:00"},{"$f":"'3 INCOME & EXPENSE'!F657","v":0},{"$f":"'3 INCOME & EXPENSE'!G657","v":0},{"$f":"T('3 INCOME & EXPENSE'!H657)","v":""},{"$f":"T('3 INCOME & EXPENSE'!I657)","v":""},{"$f":"T('3 INCOME & EXPENSE'!J657)","v":""},{"$f":"T('3 INCOME & EXPENSE'!K657)","v":""},{"$f":"T('3 INCOME & EXPENSE'!L657)","v":""},{"$f":"'3 INCOME & EXPENSE'!M657","v":0},{"$f":"'3 INCOME & EXPENSE'!N657","v":0},{"$f":"'3 INCOME & EXPENSE'!O657","v":0}]
[null,{"$f":"T('3 INCOME & EXPENSE'!D658)","v":""},{"$f":"'3 INCOME & EXPENSE'!E658","v":"00:00:00"},{"$f":"'3 INCOME & EXPENSE'!F658","v":0},{"$f":"'3 INCOME & EXPENSE'!G658","v":0},{"$f":"T('3 INCOME & EXPENSE'!H658)","v":""},{"$f":"T('3 INCOME & EXPENSE'!I658)","v":""},{"$f":"T('3 INCOME & EXPENSE'!J658)","v":""},{"$f":"T('3 INCOME & EXPENSE'!K658)","v":""},{"$f":"T('3 INCOME & EXPENSE'!L658)","v":""},{"$f":"'3 INCOME & EXPENSE'!M658","v":0},{"$f":"'3 INCOME & EXPENSE'!N658","v":0},{"$f":"'3 INCOME & EXPENSE'!O658","v":0}]
[null,{"$f":"T('3 INCOME & EXPENSE'!D659)","v":""},{"$f":"'3 INCOME & EXPENSE'!E659","v":"00:00:00"},{"$f":"'3 INCOME & EXPENSE'!F659","v":0},{"$f":"'3 INCOME & EXPENSE'!G659","v":0},{"$f":"T('3 INCOME & EXPENSE'!H659)","v":""},{"$f":"T('3 INCOME & EXPENSE'!I659)","v":""},{"$f":"T('3 INCOME & EXPENSE'!J659)","v":""},{"$f":"T('3 INCOME & EXPENSE'!K659)","v":""},{"$f":"T('3 INCOME & EXPENSE'!L659)","v":""},{"$f":"'3 INCOME & EXPENSE'!M659","v":0},{"$f":"'3 INCOME & EXPENSE'!N659","v":0},{"$f":"'3 INCOME & EXPENSE'!O659","v":0}]
[null,{"$f":"T('3 INCOME & EXPENSE'!D660)","v":""},{"$f":"'3 INCOME & EXPENSE'!E660","v":"00:00:00"},{"$f":"'3 INCOME & EXPENSE'!F660","v":0},{"$f":"'3 INCOME & EXPENSE'!G660","v":0},{"$f":"T('3 INCOME & EXPENSE'!H660)","v":""},{"$f":"T('3 INCOME & EXPENSE'!I660)","v":""},{"$f":"T('3 INCOME & EXPENSE'!J660)","v":""},{"$f":"T('3 INCOME & EXPENSE'!K660)","v":""},{"$f":"T('3 INCOME & EXPENSE'!L660)","v":""},{"$f":"'3 INCOME & EXPENSE'!M660","v":0},{"$f":"'3 INCOME & EXPENSE'!N660","v":0},{"$f":"'3 INCOME & EXPENSE'!O660","v":0}]
[null,{"$f":"T('3 INCOME & EXPENSE'!D661)","v":""},{"$f":"'3 INCOME & EXPENSE'!E661","v":"00:00:00"},{"$f":"'3 INCOME & EXPENSE'!F661","v":0},{"$f":"'3 INCOME & EXPENSE'!G661","v":0},{"$f":"T('3 INCOME & EXPENSE'!H661)","v":""},{"$f":"T('3 INCOME & EXPENSE'!I661)","v":""},{"$f":"T('3 INCOME & EXPENSE'!J661)","v":""},{"$f":"T('3 INCOME & EXPENSE'!K661)","v":""},{"$f":"T('3 INCOME & EXPENSE'!L661)","v":""},{"$f":"'3 INCOME & EXPENSE'!M661","v":0},{"$f":"'3 INCOME & EXPENSE'!N661","v":0},{"$f":"'3 INCOME & EXPENSE'!O661","v":0}]
[null,{"$f":"T('3 INCOME & EXPENSE'!D662)","v":""},{"$f":"'3 INCOME & EXPENSE'!E662","v":"00:00:00"},{"$f":"'3 INCOME & EXPENSE'!F662","v":0},{"$f":"'3 INCOME & EXPENSE'!G662","v":0},{"$f":"T('3 INCOME & EXPENSE'!H662)","v":""},{"$f":"T('3 INCOME & EXPENSE'!I662)","v":""},{"$f":"T('3 INCOME & EXPENSE'!J662)","v":""},{"$f":"T('3 INCOME & EXPENSE'!K662)","v":""},{"$f":"T('3 INCOME & EXPENSE'!L662)","v":""},{"$f":"'3 INCOME & EXPENSE'!M662","v":0},{"$f":"'3 INCOME & EXPENSE'!N662","v":0},{"$f":"'3 INCOME & EXPENSE'!O662","v":0}]
[null,{"$f":"T('3 INCOME & EXPENSE'!D663)","v":""},{"$f":"'3 INCOME & EXPENSE'!E663","v":"00:00:00"},{"$f":"'3 INCOME & EXPENSE'!F663","v":0},{"$f":"'3 INCOME & EXPENSE'!G663","v":0},{"$f":"T('3 INCOME & EXPENSE'!H663)","v":""},{"$f":"T('3 INCOME & EXPENSE'!I663)","v":""},{"$f":"T('3 INCOME & EXPENSE'!J663)","v":""},{"$f":"T('3 INCOME & EXPENSE'!K663)","v":""},{"$f":"T('3 INCOME & EXPENSE'!L663)","v":""},{"$f":"'3 INCOME & EXPENSE'!M663","v":0},{"$f":"'3 INCOME & EXPENSE'!N663","v":0},{"$f":"'3 INCOME & EXPENSE'!O663","v":0}]
[null,{"$f":"T('3 INCOME & EXPENSE'!D664)","v":""},{"$f":"'3 INCOME & EXPENSE'!E664","v":"00:00:00"},{"$f":"'3 INCOME & EXPENSE'!F664","v":0},{"$f":"'3 INCOME & EXPENSE'!G664","v":0},{"$f":"T('3 INCOME & EXPENSE'!H664)","v":""},{"$f":"T('3 INCOME & EXPENSE'!I664)","v":""},{"$f":"T('3 INCOME & EXPENSE'!J664)","v":""},{"$f":"T('3 INCOME & EXPENSE'!K664)","v":""},{"$f":"T('3 INCOME & EXPENSE'!L664)","v":""},{"$f":"'3 INCOME & EXPENSE'!M664","v":0},{"$f":"'3 INCOME & EXPENSE'!N664","v":0},{"$f":"'3 INCOME & EXPENSE'!O664","v":0}]
[null,{"$f":"T('3 INCOME & EXPENSE'!D665)","v":""},{"$f":"'3 INCOME & EXPENSE'!E665","v":"00:00:00"},{"$f":"'3 INCOME & EXPENSE'!F665","v":0},{"$f":"'3 INCOME & EXPENSE'!G665","v":0},{"$f":"T('3 INCOME & EXPENSE'!H665)","v":""},{"$f":"T('3 INCOME & EXPENSE'!I665)","v":""},{"$f":"T('3 INCOME & EXPENSE'!J665)","v":""},{"$f":"T('3 INCOME & EXPENSE'!K665)","v":""},{"$f":"T('3 INCOME & EXPENSE'!L665)","v":""},{"$f":"'3 INCOME & EXPENSE'!M665","v":0},{"$f":"'3 INCOME & EXPENSE'!N665","v":0},{"$f":"'3 INCOME & EXPENSE'!O665","v":0}]
[null,{"$f":"T('3 INCOME & EXPENSE'!D666)","v":""},{"$f":"'3 INCOME & EXPENSE'!E666","v":"00:00:00"},{"$f":"'3 INCOME & EXPENSE'!F666","v":0},{"$f":"'3 INCOME & EXPENSE'!G666","v":0},{"$f":"T('3 INCOME & EXPENSE'!H666)","v":""},{"$f":"T('3 INCOME & EXPENSE'!I666)","v":""},{"$f":"T('3 INCOME & EXPENSE'!J666)","v":""},{"$f":"T('3 INCOME & EXPENSE'!K666)","v":""},{"$f":"T('3 INCOME & EXPENSE'!L666)","v":""},{"$f":"'3 INCOME & EXPENSE'!M666","v":0},{"$f":"'3 INCOME & EXPENSE'!N666","v":0},{"$f":"'3 INCOME & EXPENSE'!O666","v":0}]
[null,{"$f":"T('3 INCOME & EXPENSE'!D667)","v":""},{"$f":"'3 INCOME & EXPENSE'!E667","v":"00:00:00"},{"$f":"'3 INCOME & EXPENSE'!F667","v":0},{"$f":"'3 INCOME & EXPENSE'!G667","v":0},{"$f":"T('3 INCOME & EXPENSE'!H667)","v":""},{"$f":"T('3 INCOME & EXPENSE'!I667)","v":""},{"$f":"T('3 INCOME & EXPENSE'!J667)","v":""},{"$f":"T('3 INCOME & EXPENSE'!K667)","v":""},{"$f":"T('3 INCOME & EXPENSE'!L667)","v":""},{"$f":"'3 INCOME & EXPENSE'!M667","v":0},{"$f":"'3 INCOME & EXPENSE'!N667","v":0},{"$f":"'3 INCOME & EXPENSE'!O667","v":0}]
[null,{"$f":"T('3 INCOME & EXPENSE'!D668)","v":""},{"$f":"'3 INCOME & EXPENSE'!E668","v":"00:00:00"},{"$f":"'3 INCOME & EXPENSE'!F668","v":0},{"$f":"'3 INCOME & EXPENSE'!G668","v":0},{"$f":"T('3 INCOME & EXPENSE'!H668)","v":""},{"$f":"T('3 INCOME & EXPENSE'!I668)","v":""},{"$f":"T('3 INCOME & EXPENSE'!J668)","v":""},{"$f":"T('3 INCOME & EXPENSE'!K668)","v":""},{"$f":"T('3 INCOME & EXPENSE'!L668)","v":""},{"$f":"'3 INCOME & EXPENSE'!M668","v":0},{"$f":"'3 INCOME & EXPENSE'!N668","v":0},{"$f":"'3 INCOME & EXPENSE'!O668","v":0}]
[null,{"$f":"T('3 INCOME & EXPENSE'!D669)","v":""},{"$f":"'3 INCOME & EXPENSE'!E669","v":"00:00:00"},{"$f":"'3 INCOME & EXPENSE'!F669","v":0},{"$f":"'3 INCOME & EXPENSE'!G669","v":0},{"$f":"T('3 INCOME & EXPENSE'!H669)","v":""},{"$f":"T('3 INCOME & EXPENSE'!I669)","v":""},{"$f":"T('3 INCOME & EXPENSE'!J669)","v":""},{"$f":"T('3 INCOME & EXPENSE'!K669)","v":""},{"$f":"T('3 INCOME & EXPENSE'!L669)","v":""},{"$f":"'3 INCOME & EXPENSE'!M669","v":0},{"$f":"'3 INCOME & EXPENSE'!N669","v":0},{"$f":"'3 INCOME & EXPENSE'!O669","v":0}]
[null,{"$f":"T('3 INCOME & EXPENSE'!D670)","v":""},{"$f":"'3 INCOME & EXPENSE'!E670","v":"00:00:00"},{"$f":"'3 INCOME & EXPENSE'!F670","v":0},{"$f":"'3 INCOME & EXPENSE'!G670","v":0},{"$f":"T('3 INCOME & EXPENSE'!H670)","v":""},{"$f":"T('3 INCOME & EXPENSE'!I670)","v":""},{"$f":"T('3 INCOME & EXPENSE'!J670)","v":""},{"$f":"T('3 INCOME & EXPENSE'!K670)","v":""},{"$f":"T('3 INCOME & EXPENSE'!L670)","v":""},{"$f":"'3 INCOME & EXPENSE'!M670","v":0},{"$f":"'3 INCOME & EXPENSE'!N670","v":0},{"$f":"'3 INCOME & EXPENSE'!O670","v":0}]
[null,{"$f":"T('3 INCOME & EXPENSE'!D671)","v":""},{"$f":"'3 INCOME & EXPENSE'!E671","v":"00:00:00"},{"$f":"'3 INCOME & EXPENSE'!F671","v":0},{"$f":"'3 INCOME & EXPENSE'!G671","v":0},{"$f":"T('3 INCOME & EXPENSE'!H671)","v":""},{"$f":"T('3 INCOME & EXPENSE'!I671)","v":""},{"$f":"T('3 INCOME & EXPENSE'!J671)","v":""},{"$f":"T('3 INCOME & EXPENSE'!K671)","v":""},{"$f":"T('3 INCOME & EXPENSE'!L671)","v":""},{"$f":"'3 INCOME & EXPENSE'!M671","v":0},{"$f":"'3 INCOME & EXPENSE'!N671","v":0},{"$f":"'3 INCOME & EXPENSE'!O671","v":0}]
[null,{"$f":"T('3 INCOME & EXPENSE'!D672)","v":""},{"$f":"'3 INCOME & EXPENSE'!E672","v":"00:00:00"},{"$f":"'3 INCOME & EXPENSE'!F672","v":0},{"$f":"'3 INCOME & EXPENSE'!G672","v":0},{"$f":"T('3 INCOME & EXPENSE'!H672)","v":""},{"$f":"T('3 INCOME & EXPENSE'!I672)","v":""},{"$f":"T('3 INCOME & EXPENSE'!J672)","v":""},{"$f":"T('3 INCOME & EXPENSE'!K672)","v":""},{"$f":"T('3 INCOME & EXPENSE'!L672)","v":""},{"$f":"'3 INCOME & EXPENSE'!M672","v":0},{"$f":"'3 INCOME & EXPENSE'!N672","v":0},{"$f":"'3 INCOME & EXPENSE'!O672","v":0}]
[null,{"$f":"T('3 INCOME & EXPENSE'!D673)","v":""},{"$f":"'3 INCOME & EXPENSE'!E673","v":"00:00:00"},{"$f":"'3 INCOME & EXPENSE'!F673","v":0},{"$f":"'3 INCOME & EXPENSE'!G673","v":0},{"$f":"T('3 INCOME & EXPENSE'!H673)","v":""},{"$f":"T('3 INCOME & EXPENSE'!I673)","v":""},{"$f":"T('3 INCOME & EXPENSE'!J673)","v":""},{"$f":"T('3 INCOME & EXPENSE'!K673)","v":""},{"$f":"T('3 INCOME & EXPENSE'!L673)","v":""},{"$f":"'3 INCOME & EXPENSE'!M673","v":0},{"$f":"'3 INCOME & EXPENSE'!N673","v":0},{"$f":"'3 INCOME & EXPENSE'!O673","v":0}]
[null,{"$f":"T('3 INCOME & EXPENSE'!D674)","v":""},{"$f":"'3 INCOME & EXPENSE'!E674","v":"00:00:00"},{"$f":"'3 INCOME & EXPENSE'!F674","v":0},{"$f":"'3 INCOME & EXPENSE'!G674","v":0},{"$f":"T('3 INCOME & EXPENSE'!H674)","v":""},{"$f":"T('3 INCOME & EXPENSE'!I674)","v":""},{"$f":"T('3 INCOME & EXPENSE'!J674)","v":""},{"$f":"T('3 INCOME & EXPENSE'!K674)","v":""},{"$f":"T('3 INCOME & EXPENSE'!L674)","v":""},{"$f":"'3 INCOME & EXPENSE'!M674","v":0},{"$f":"'3 INCOME & EXPENSE'!N674","v":0},{"$f":"'3 INCOME & EXPENSE'!O674","v":0}]
[null,{"$f":"T('3 INCOME & EXPENSE'!D675)","v":""},{"$f":"'3 INCOME & EXPENSE'!E675","v":"00:00:00"},{"$f":"'3 INCOME & EXPENSE'!F675","v":0},{"$f":"'3 INCOME & EXPENSE'!G675","v":0},{"$f":"T('3 INCOME & EXPENSE'!H675)","v":""},{"$f":"T('3 INCOME & EXPENSE'!I675)","v":""},{"$f":"T('3 INCOME & EXPENSE'!J675)","v":""},{"$f":"T('3 INCOME & EXPENSE'!K675)","v":""},{"$f":"T('3 INCOME & EXPENSE'!L675)","v":""},{"$f":"'3 INCOME & EXPENSE'!M675","v":0},{"$f":"'3 INCOME & EXPENSE'!N675","v":0},{"$f":"'3 INCOME & EXPENSE'!O675","v":0}]
[null,{"$f":"T('3 INCOME & EXPENSE'!D676)","v":""},{"$f":"'3 INCOME & EXPENSE'!E676","v":"00:00:00"},{"$f":"'3 INCOME & EXPENSE'!F676","v":0},{"$f":"'3 INCOME & EXPENSE'!G676","v":0},{"$f":"T('3 INCOME & EXPENSE'!H676)","v":""},{"$f":"T('3 INCOME & EXPENSE'!I676)","v":""},{"$f":"T('3 INCOME & EXPENSE'!J676)","v":""},{"$f":"T('3 INCOME & EXPENSE'!K676)","v":""},{"$f":"T('3 INCOME & EXPENSE'!L676)","v":""},{"$f":"'3 INCOME & EXPENSE'!M676","v":0},{"$f":"'3 INCOME & EXPENSE'!N676","v":0},{"$f":"'3 INCOME & EXPENSE'!O676","v":0}]
[null,{"$f":"T('3 INCOME & EXPENSE'!D677)","v":""},{"$f":"'3 INCOME & EXPENSE'!E677","v":"00:00:00"},{"$f":"'3 INCOME & EXPENSE'!F677","v":0},{"$f":"'3 INCOME & EXPENSE'!G677","v":0},{"$f":"T('3 INCOME & EXPENSE'!H677)","v":""},{"$f":"T('3 INCOME & EXPENSE'!I677)","v":""},{"$f":"T('3 INCOME & EXPENSE'!J677)","v":""},{"$f":"T('3 INCOME & EXPENSE'!K677)","v":""},{"$f":"T('3 INCOME & EXPENSE'!L677)","v":""},{"$f":"'3 INCOME & EXPENSE'!M677","v":0},{"$f":"'3 INCOME & EXPENSE'!N677","v":0},{"$f":"'3 INCOME & EXPENSE'!O677","v":0}]
[null,{"$f":"T('3 INCOME & EXPENSE'!D678)","v":""},{"$f":"'3 INCOME & EXPENSE'!E678","v":"00:00:00"},{"$f":"'3 INCOME & EXPENSE'!F678","v":0},{"$f":"'3 INCOME & EXPENSE'!G678","v":0},{"$f":"T('3 INCOME & EXPENSE'!H678)","v":""},{"$f":"T('3 INCOME & EXPENSE'!I678)","v":""},{"$f":"T('3 INCOME & EXPENSE'!J678)","v":""},{"$f":"T('3 INCOME & EXPENSE'!K678)","v":""},{"$f":"T('3 INCOME & EXPENSE'!L678)","v":""},{"$f":"'3 INCOME & EXPENSE'!M678","v":0},{"$f":"'3 INCOME & EXPENSE'!N678","v":0},{"$f":"'3 INCOME & EXPENSE'!O678","v":0}]
[null,{"$f":"T('3 INCOME & EXPENSE'!D679)","v":""},{"$f":"'3 INCOME & EXPENSE'!E679","v":"00:00:00"},{"$f":"'3 INCOME & EXPENSE'!F679","v":0},{"$f":"'3 INCOME & EXPENSE'!G679","v":0},{"$f":"T('3 INCOME & EXPENSE'!H679)","v":""},{"$f":"T('3 INCOME & EXPENSE'!I679)","v":""},{"$f":"T('3 INCOME & EXPENSE'!J679)","v":""},{"$f":"T('3 INCOME & EXPENSE'!K679)","v":""},{"$f":"T('3 INCOME & EXPENSE'!L679)","v":""},{"$f":"'3 INCOME & EXPENSE'!M679","v":0},{"$f":"'3 INCOME & EXPENSE'!N679","v":0},{"$f":"'3 INCOME & EXPENSE'!O679","v":0}]
[null,{"$f":"T('3 INCOME & EXPENSE'!D680)","v":""},{"$f":"'3 INCOME & EXPENSE'!E680","v":"00:00:00"},{"$f":"'3 INCOME & EXPENSE'!F680","v":0},{"$f":"'3 INCOME & EXPENSE'!G680","v":0},{"$f":"T('3 INCOME & EXPENSE'!H680)","v":""},{"$f":"T('3 INCOME & EXPENSE'!I680)","v":""},{"$f":"T('3 INCOME & EXPENSE'!J680)","v":""},{"$f":"T('3 INCOME & EXPENSE'!K680)","v":""},{"$f":"T('3 INCOME & EXPENSE'!L680)","v":""},{"$f":"'3 INCOME & EXPENSE'!M680","v":0},{"$f":"'3 INCOME & EXPENSE'!N680","v":0},{"$f":"'3 INCOME & EXPENSE'!O680","v":0}]
[null,{"$f":"T('3 INCOME & EXPENSE'!D681)","v":""},{"$f":"'3 INCOME & EXPENSE'!E681","v":"00:00:00"},{"$f":"'3 INCOME & EXPENSE'!F681","v":0},{"$f":"'3 INCOME & EXPENSE'!G681","v":0},{"$f":"T('3 INCOME & EXPENSE'!H681)","v":""},{"$f":"T('3 INCOME & EXPENSE'!I681)","v":""},{"$f":"T('3 INCOME & EXPENSE'!J681)","v":""},{"$f":"T('3 INCOME & EXPENSE'!K681)","v":""},{"$f":"T('3 INCOME & EXPENSE'!L681)","v":""},{"$f":"'3 INCOME & EXPENSE'!M681","v":0},{"$f":"'3 INCOME & EXPENSE'!N681","v":0},{"$f":"'3 INCOME & EXPENSE'!O681","v":0}]
[null,{"$f":"T('3 INCOME & EXPENSE'!D682)","v":""},{"$f":"'3 INCOME & EXPENSE'!E682","v":"00:00:00"},{"$f":"'3 INCOME & EXPENSE'!F682","v":0},{"$f":"'3 INCOME & EXPENSE'!G682","v":0},{"$f":"T('3 INCOME & EXPENSE'!H682)","v":""},{"$f":"T('3 INCOME & EXPENSE'!I682)","v":""},{"$f":"T('3 INCOME & EXPENSE'!J682)","v":""},{"$f":"T('3 INCOME & EXPENSE'!K682)","v":""},{"$f":"T('3 INCOME & EXPENSE'!L682)","v":""},{"$f":"'3 INCOME & EXPENSE'!M682","v":0},{"$f":"'3 INCOME & EXPENSE'!N682","v":0},{"$f":"'3 INCOME & EXPENSE'!O682","v":0}]
[null,{"$f":"T('3 INCOME & EXPENSE'!D683)","v":""},{"$f":"'3 INCOME & EXPENSE'!E683","v":"00:00:00"},{"$f":"'3 INCOME & EXPENSE'!F683","v":0},{"$f":"'3 INCOME & EXPENSE'!G683","v":0},{"$f":"T('3 INCOME & EXPENSE'!H683)","v":""},{"$f":"T('3 INCOME & EXPENSE'!I683)","v":""},{"$f":"T('3 INCOME & EXPENSE'!J683)","v":""},{"$f":"T('3 INCOME & EXPENSE'!K683)","v":""},{"$f":"T('3 INCOME & EXPENSE'!L683)","v":""},{"$f":"'3 INCOME & EXPENSE'!M683","v":0},{"$f":"'3 INCOME & EXPENSE'!N683","v":0},{"$f":"'3 INCOME & EXPENSE'!O683","v":0}]
[null,{"$f":"T('3 INCOME & EXPENSE'!D684)","v":""},{"$f":"'3 INCOME & EXPENSE'!E684","v":"00:00:00"},{"$f":"'3 INCOME & EXPENSE'!F684","v":0},{"$f":"'3 INCOME & EXPENSE'!G684","v":0},{"$f":"T('3 INCOME & EXPENSE'!H684)","v":""},{"$f":"T('3 INCOME & EXPENSE'!I684)","v":""},{"$f":"T('3 INCOME & EXPENSE'!J684)","v":""},{"$f":"T('3 INCOME & EXPENSE'!K684)","v":""},{"$f":"T('3 INCOME & EXPENSE'!L684)","v":""},{"$f":"'3 INCOME & EXPENSE'!M684","v":0},{"$f":"'3 INCOME & EXPENSE'!N684","v":0},{"$f":"'3 INCOME & EXPENSE'!O684","v":0}]
[null,{"$f":"T('3 INCOME & EXPENSE'!D685)","v":""},{"$f":"'3 INCOME & EXPENSE'!E685","v":"00:00:00"},{"$f":"'3 INCOME & EXPENSE'!F685","v":0},{"$f":"'3 INCOME & EXPENSE'!G685","v":0},{"$f":"T('3 INCOME & EXPENSE'!H685)","v":""},{"$f":"T('3 INCOME & EXPENSE'!I685)","v":""},{"$f":"T('3 INCOME & EXPENSE'!J685)","v":""},{"$f":"T('3 INCOME & EXPENSE'!K685)","v":""},{"$f":"T('3 INCOME & EXPENSE'!L685)","v":""},{"$f":"'3 INCOME & EXPENSE'!M685","v":0},{"$f":"'3 INCOME & EXPENSE'!N685","v":0},{"$f":"'3 INCOME & EXPENSE'!O685","v":0}]
[null,{"$f":"T('3 INCOME & EXPENSE'!D686)","v":""},{"$f":"'3 INCOME & EXPENSE'!E686","v":"00:00:00"},{"$f":"'3 INCOME & EXPENSE'!F686","v":0},{"$f":"'3 INCOME & EXPENSE'!G686","v":0},{"$f":"T('3 INCOME & EXPENSE'!H686)","v":""},{"$f":"T('3 INCOME & EXPENSE'!I686)","v":""},{"$f":"T('3 INCOME & EXPENSE'!J686)","v":""},{"$f":"T('3 INCOME & EXPENSE'!K686)","v":""},{"$f":"T('3 INCOME & EXPENSE'!L686)","v":""},{"$f":"'3 INCOME & EXPENSE'!M686","v":0},{"$f":"'3 INCOME & EXPENSE'!N686","v":0},{"$f":"'3 INCOME & EXPENSE'!O686","v":0}]
[null,{"$f":"T('3 INCOME & EXPENSE'!D687)","v":""},{"$f":"'3 INCOME & EXPENSE'!E687","v":"00:00:00"},{"$f":"'3 INCOME & EXPENSE'!F687","v":0},{"$f":"'3 INCOME & EXPENSE'!G687","v":0},{"$f":"T('3 INCOME & EXPENSE'!H687)","v":""},{"$f":"T('3 INCOME & EXPENSE'!I687)","v":""},{"$f":"T('3 INCOME & EXPENSE'!J687)","v":""},{"$f":"T('3 INCOME & EXPENSE'!K687)","v":""},{"$f":"T('3 INCOME & EXPENSE'!L687)","v":""},{"$f":"'3 INCOME & EXPENSE'!M687","v":0},{"$f":"'3 INCOME & EXPENSE'!N687","v":0},{"$f":"'3 INCOME & EXPENSE'!O687","v":0}]
[null,{"$f":"T('3 INCOME & EXPENSE'!D688)","v":""},{"$f":"'3 INCOME & EXPENSE'!E688","v":"00:00:00"},{"$f":"'3 INCOME & EXPENSE'!F688","v":0},{"$f":"'3 INCOME & EXPENSE'!G688","v":0},{"$f":"T('3 INCOME & EXPENSE'!H688)","v":""},{"$f":"T('3 INCOME & EXPENSE'!I688)","v":""},{"$f":"T('3 INCOME & EXPENSE'!J688)","v":""},{"$f":"T('3 INCOME & EXPENSE'!K688)","v":""},{"$f":"T('3 INCOME & EXPENSE'!L688)","v":""},{"$f":"'3 INCOME & EXPENSE'!M688","v":0},{"$f":"'3 INCOME & EXPENSE'!N688","v":0},{"$f":"'3 INCOME & EXPENSE'!O688","v":0}]
[null,{"$f":"T('3 INCOME & EXPENSE'!D689)","v":""},{"$f":"'3 INCOME & EXPENSE'!E689","v":"00:00:00"},{"$f":"'3 INCOME & EXPENSE'!F689","v":0},{"$f":"'3 INCOME & EXPENSE'!G689","v":0},{"$f":"T('3 INCOME & EXPENSE'!H689)","v":""},{"$f":"T('3 INCOME & EXPENSE'!I689)","v":""},{"$f":"T('3 INCOME & EXPENSE'!J689)","v":""},{"$f":"T('3 INCOME & EXPENSE'!K689)","v":""},{"$f":"T('3 INCOME & EXPENSE'!L689)","v":""},{"$f":"'3 INCOME & EXPENSE'!M689","v":0},{"$f":"'3 INCOME & EXPENSE'!N689","v":0},{"$f":"'3 INCOME & EXPENSE'!O689","v":0}]
[null,{"$f":"T('3 INCOME & EXPENSE'!D690)","v":""},{"$f":"'3 INCOME & EXPENSE'!E690","v":"00:00:00"},{"$f":"'3 INCOME & EXPENSE'!F690","v":0},{"$f":"'3 INCOME & EXPENSE'!G690","v":0},{"$f":"T('3 INCOME & EXPENSE'!H690)","v":""},{"$f":"T('3 INCOME & EXPENSE'!I690)","v":""},{"$f":"T('3 INCOME & EXPENSE'!J690)","v":""},{"$f":"T('3 INCOME & EXPENSE'!K690)","v":""},{"$f":"T('3 INCOME & EXPENSE'!L690)","v":""},{"$f":"'3 INCOME & EXPENSE'!M690","v":0},{"$f":"'3 INCOME & EXPENSE'!N690","v":0},{"$f":"'3 INCOME & EXPENSE'!O690","v":0}]
[null,{"$f":"T('3 INCOME & EXPENSE'!D691)","v":""},{"$f":"'3 INCOME & EXPENSE'!E691","v":"00:00:00"},{"$f":"'3 INCOME & EXPENSE'!F691","v":0},{"$f":"'3 INCOME & EXPENSE'!G691","v":0},{"$f":"T('3 INCOME & EXPENSE'!H691)","v":""},{"$f":"T('3 INCOME & EXPENSE'!I691)","v":""},{"$f":"T('3 INCOME & EXPENSE'!J691)","v":""},{"$f":"T('3 INCOME & EXPENSE'!K691)","v":""},{"$f":"T('3 INCOME & EXPENSE'!L691)","v":""},{"$f":"'3 INCOME & EXPENSE'!M691","v":0},{"$f":"'3 INCOME & EXPENSE'!N691","v":0},{"$f":"'3 INCOME & EXPENSE'!O691","v":0}]
[null,{"$f":"T('3 INCOME & EXPENSE'!D692)","v":""},{"$f":"'3 INCOME & EXPENSE'!E692","v":"00:00:00"},{"$f":"'3 INCOME & EXPENSE'!F692","v":0},{"$f":"'3 INCOME & EXPENSE'!G692","v":0},{"$f":"T('3 INCOME & EXPENSE'!H692)","v":""},{"$f":"T('3 INCOME & EXPENSE'!I692)","v":""},{"$f":"T('3 INCOME & EXPENSE'!J692)","v":""},{"$f":"T('3 INCOME & EXPENSE'!K692)","v":""},{"$f":"T('3 INCOME & EXPENSE'!L692)","v":""},{"$f":"'3 INCOME & EXPENSE'!M692","v":0},{"$f":"'3 INCOME & EXPENSE'!N692","v":0},{"$f":"'3 INCOME & EXPENSE'!O692","v":0}]
[null,{"$f":"T('3 INCOME & EXPENSE'!D693)","v":""},{"$f":"'3 INCOME & EXPENSE'!E693","v":"00:00:00"},{"$f":"'3 INCOME & EXPENSE'!F693","v":0},{"$f":"'3 INCOME & EXPENSE'!G693","v":0},{"$f":"T('3 INCOME & EXPENSE'!H693)","v":""},{"$f":"T('3 INCOME & EXPENSE'!I693)","v":""},{"$f":"T('3 INCOME & EXPENSE'!J693)","v":""},{"$f":"T('3 INCOME & EXPENSE'!K693)","v":""},{"$f":"T('3 INCOME & EXPENSE'!L693)","v":""},{"$f":"'3 INCOME & EXPENSE'!M693","v":0},{"$f":"'3 INCOME & EXPENSE'!N693","v":0},{"$f":"'3 INCOME & EXPENSE'!O693","v":0}]
[null,{"$f":"T('3 INCOME & EXPENSE'!D694)","v":""},{"$f":"'3 INCOME & EXPENSE'!E694","v":"00:00:00"},{"$f":"'3 INCOME & EXPENSE'!F694","v":0},{"$f":"'3 INCOME & EXPENSE'!G694","v":0},{"$f":"T('3 INCOME & EXPENSE'!H694)","v":""},{"$f":"T('3 INCOME & EXPENSE'!I694)","v":""},{"$f":"T('3 INCOME & EXPENSE'!J694)","v":""},{"$f":"T('3 INCOME & EXPENSE'!K694)","v":""},{"$f":"T('3 INCOME & EXPENSE'!L694)","v":""},{"$f":"'3 INCOME & EXPENSE'!M694","v":0},{"$f":"'3 INCOME & EXPENSE'!N694","v":0},{"$f":"'3 INCOME & EXPENSE'!O694","v":0}]
[null,{"$f":"T('3 INCOME & EXPENSE'!D695)","v":""},{"$f":"'3 INCOME & EXPENSE'!E695","v":"00:00:00"},{"$f":"'3 INCOME & EXPENSE'!F695","v":0},{"$f":"'3 INCOME & EXPENSE'!G695","v":0},{"$f":"T('3 INCOME & EXPENSE'!H695)","v":""},{"$f":"T('3 INCOME & EXPENSE'!I695)","v":""},{"$f":"T('3 INCOME & EXPENSE'!J695)","v":""},{"$f":"T('3 INCOME & EXPENSE'!K695)","v":""},{"$f":"T('3 INCOME & EXPENSE'!L695)","v":""},{"$f":"'3 INCOME & EXPENSE'!M695","v":0},{"$f":"'3 INCOME & EXPENSE'!N695","v":0},{"$f":"'3 INCOME & EXPENSE'!O695","v":0}]
[null,{"$f":"T('3 INCOME & EXPENSE'!D696)","v":""},{"$f":"'3 INCOME & EXPENSE'!E696","v":"00:00:00"},{"$f":"'3 INCOME & EXPENSE'!F696","v":0},{"$f":"'3 INCOME & EXPENSE'!G696","v":0},{"$f":"T('3 INCOME & EXPENSE'!H696)","v":""},{"$f":"T('3 INCOME & EXPENSE'!I696)","v":""},{"$f":"T('3 INCOME & EXPENSE'!J696)","v":""},{"$f":"T('3 INCOME & EXPENSE'!K696)","v":""},{"$f":"T('3 INCOME & EXPENSE'!L696)","v":""},{"$f":"'3 INCOME & EXPENSE'!M696","v":0},{"$f":"'3 INCOME & EXPENSE'!N696","v":0},{"$f":"'3 INCOME & EXPENSE'!O696","v":0}]
[null,{"$f":"T('3 INCOME & EXPENSE'!D697)","v":""},{"$f":"'3 INCOME & EXPENSE'!E697","v":"00:00:00"},{"$f":"'3 INCOME & EXPENSE'!F697","v":0},{"$f":"'3 INCOME & EXPENSE'!G697","v":0},{"$f":"T('3 INCOME & EXPENSE'!H697)","v":""},{"$f":"T('3 INCOME & EXPENSE'!I697)","v":""},{"$f":"T('3 INCOME & EXPENSE'!J697)","v":""},{"$f":"T('3 INCOME & EXPENSE'!K697)","v":""},{"$f":"T('3 INCOME & EXPENSE'!L697)","v":""},{"$f":"'3 INCOME & EXPENSE'!M697","v":0},{"$f":"'3 INCOME & EXPENSE'!N697","v":0},{"$f":"'3 INCOME & EXPENSE'!O697","v":0}]
[null,{"$f":"T('3 INCOME & EXPENSE'!D698)","v":""},{"$f":"'3 INCOME & EXPENSE'!E698","v":"00:00:00"},{"$f":"'3 INCOME & EXPENSE'!F698","v":0},{"$f":"'3 INCOME & EXPENSE'!G698","v":0},{"$f":"T('3 INCOME & EXPENSE'!H698)","v":""},{"$f":"T('3 INCOME & EXPENSE'!I698)","v":""},{"$f":"T('3 INCOME & EXPENSE'!J698)","v":""},{"$f":"T('3 INCOME & EXPENSE'!K698)","v":""},{"$f":"T('3 INCOME & EXPENSE'!L698)","v":""},{"$f":"'3 INCOME & EXPENSE'!M698","v":0},{"$f":"'3 INCOME & EXPENSE'!N698","v":0},{"$f":"'3 INCOME & EXPENSE'!O698","v":0}]
[null,{"$f":"T('3 INCOME & EXPENSE'!D699)","v":""},{"$f":"'3 INCOME & EXPENSE'!E699","v":"00:00:00"},{"$f":"'3 INCOME & EXPENSE'!F699","v":0},{"$f":"'3 INCOME & EXPENSE'!G699","v":0},{"$f":"T('3 INCOME & EXPENSE'!H699)","v":""},{"$f":"T('3 INCOME & EXPENSE'!I699)","v":""},{"$f":"T('3 INCOME & EXPENSE'!J699)","v":""},{"$f":"T('3 INCOME & EXPENSE'!K699)","v":""},{"$f":"T('3 INCOME & EXPENSE'!L699)","v":""},{"$f":"'3 INCOME & EXPENSE'!M699","v":0},{"$f":"'3 INCOME & EXPENSE'!N699","v":0},{"$f":"'3 INCOME & EXPENSE'!O699","v":0}]
[null,{"$f":"T('3 INCOME & EXPENSE'!D700)","v":""},{"$f":"'3 INCOME & EXPENSE'!E700","v":"00:00:00"},{"$f":"'3 INCOME & EXPENSE'!F700","v":0},{"$f":"'3 INCOME & EXPENSE'!G700","v":0},{"$f":"T('3 INCOME & EXPENSE'!H700)","v":""},{"$f":"T('3 INCOME & EXPENSE'!I700)","v":""},{"$f":"T('3 INCOME & EXPENSE'!J700)","v":""},{"$f":"T('3 INCOME & EXPENSE'!K700)","v":""},{"$f":"T('3 INCOME & EXPENSE'!L700)","v":""},{"$f":"'3 INCOME & EXPENSE'!M700","v":0},{"$f":"'3 INCOME & EXPENSE'!N700","v":0},{"$f":"'3 INCOME & EXPENSE'!O700","v":0}]
[null,{"$f":"T('3 INCOME & EXPENSE'!D701)","v":""},{"$f":"'3 INCOME & EXPENSE'!E701","v":"00:00:00"},{"$f":"'3 INCOME & EXPENSE'!F701","v":0},{"$f":"'3 INCOME & EXPENSE'!G701","v":0},{"$f":"T('3 INCOME & EXPENSE'!H701)","v":""},{"$f":"T('3 INCOME & EXPENSE'!I701)","v":""},{"$f":"T('3 INCOME & EXPENSE'!J701)","v":""},{"$f":"T('3 INCOME & EXPENSE'!K701)","v":""},{"$f":"T('3 INCOME & EXPENSE'!L701)","v":""},{"$f":"'3 INCOME & EXPENSE'!M701","v":0},{"$f":"'3 INCOME & EXPENSE'!N701","v":0},{"$f":"'3 INCOME & EXPENSE'!O701","v":0}]
[null,{"$f":"T('3 INCOME & EXPENSE'!D702)","v":""},{"$f":"'3 INCOME & EXPENSE'!E702","v":"00:00:00"},{"$f":"'3 INCOME & EXPENSE'!F702","v":0},{"$f":"'3 INCOME & EXPENSE'!G702","v":0},{"$f":"T('3 INCOME & EXPENSE'!H702)","v":""},{"$f":"T('3 INCOME & EXPENSE'!I702)","v":""},{"$f":"T('3 INCOME & EXPENSE'!J702)","v":""},{"$f":"T('3 INCOME & EXPENSE'!K702)","v":""},{"$f":"T('3 INCOME & EXPENSE'!L702)","v":""},{"$f":"'3 INCOME & EXPENSE'!M702","v":0},{"$f":"'3 INCOME & EXPENSE'!N702","v":0},{"$f":"'3 INCOME & EXPENSE'!O702","v":0}]
[null,{"$f":"T('3 INCOME & EXPENSE'!D703)","v":""},{"$f":"'3 INCOME & EXPENSE'!E703","v":"00:00:00"},{"$f":"'3 INCOME & EXPENSE'!F703","v":0},{"$f":"'3 INCOME & EXPENSE'!G703","v":0},{"$f":"T('3 INCOME & EXPENSE'!H703)","v":""},{"$f":"T('3 INCOME & EXPENSE'!I703)","v":""},{"$f":"T('3 INCOME & EXPENSE'!J703)","v":""},{"$f":"T('3 INCOME & EXPENSE'!K703)","v":""},{"$f":"T('3 INCOME & EXPENSE'!L703)","v":""},{"$f":"'3 INCOME & EXPENSE'!M703","v":0},{"$f":"'3 INCOME & EXPENSE'!N703","v":0},{"$f":"'3 INCOME & EXPENSE'!O703","v":0}]
[null,{"$f":"T('3 INCOME & EXPENSE'!D704)","v":""},{"$f":"'3 INCOME & EXPENSE'!E704","v":"00:00:00"},{"$f":"'3 INCOME & EXPENSE'!F704","v":0},{"$f":"'3 INCOME & EXPENSE'!G704","v":0},{"$f":"T('3 INCOME & EXPENSE'!H704)","v":""},{"$f":"T('3 INCOME & EXPENSE'!I704)","v":""},{"$f":"T('3 INCOME & EXPENSE'!J704)","v":""},{"$f":"T('3 INCOME & EXPENSE'!K704)","v":""},{"$f":"T('3 INCOME & EXPENSE'!L704)","v":""},{"$f":"'3 INCOME & EXPENSE'!M704","v":0},{"$f":"'3 INCOME & EXPENSE'!N704","v":0},{"$f":"'3 INCOME & EXPENSE'!O704","v":0}]
[null,{"$f":"T('3 INCOME & EXPENSE'!D705)","v":""},{"$f":"'3 INCOME & EXPENSE'!E705","v":"00:00:00"},{"$f":"'3 INCOME & EXPENSE'!F705","v":0},{"$f":"'3 INCOME & EXPENSE'!G705","v":0},{"$f":"T('3 INCOME & EXPENSE'!H705)","v":""},{"$f":"T('3 INCOME & EXPENSE'!I705)","v":""},{"$f":"T('3 INCOME & EXPENSE'!J705)","v":""},{"$f":"T('3 INCOME & EXPENSE'!K705)","v":""},{"$f":"T('3 INCOME & EXPENSE'!L705)","v":""},{"$f":"'3 INCOME & EXPENSE'!M705","v":0},{"$f":"'3 INCOME & EXPENSE'!N705","v":0},{"$f":"'3 INCOME & EXPENSE'!O705","v":0}]
[null,{"$f":"T('3 INCOME & EXPENSE'!D706)","v":""},{"$f":"'3 INCOME & EXPENSE'!E706","v":"00:00:00"},{"$f":"'3 INCOME & EXPENSE'!F706","v":0},{"$f":"'3 INCOME & EXPENSE'!G706","v":0},{"$f":"T('3 INCOME & EXPENSE'!H706)","v":""},{"$f":"T('3 INCOME & EXPENSE'!I706)","v":""},{"$f":"T('3 INCOME & EXPENSE'!J706)","v":""},{"$f":"T('3 INCOME & EXPENSE'!K706)","v":""},{"$f":"T('3 INCOME & EXPENSE'!L706)","v":""},{"$f":"'3 INCOME & EXPENSE'!M706","v":0},{"$f":"'3 INCOME & EXPENSE'!N706","v":0},{"$f":"'3 INCOME & EXPENSE'!O706","v":0}]
[null,{"$f":"T('3 INCOME & EXPENSE'!D707)","v":""},{"$f":"'3 INCOME & EXPENSE'!E707","v":"00:00:00"},{"$f":"'3 INCOME & EXPENSE'!F707","v":0},{"$f":"'3 INCOME & EXPENSE'!G707","v":0},{"$f":"T('3 INCOME & EXPENSE'!H707)","v":""},{"$f":"T('3 INCOME & EXPENSE'!I707)","v":""},{"$f":"T('3 INCOME & EXPENSE'!J707)","v":""},{"$f":"T('3 INCOME & EXPENSE'!K707)","v":""},{"$f":"T('3 INCOME & EXPENSE'!L707)","v":""},{"$f":"'3 INCOME & EXPENSE'!M707","v":0},{"$f":"'3 INCOME & EXPENSE'!N707","v":0},{"$f":"'3 INCOME & EXPENSE'!O707","v":0}]
[null,{"$f":"T('3 INCOME & EXPENSE'!D708)","v":""},{"$f":"'3 INCOME & EXPENSE'!E708","v":"00:00:00"},{"$f":"'3 INCOME & EXPENSE'!F708","v":0},{"$f":"'3 INCOME & EXPENSE'!G708","v":0},{"$f":"T('3 INCOME & EXPENSE'!H708)","v":""},{"$f":"T('3 INCOME & EXPENSE'!I708)","v":""},{"$f":"T('3 INCOME & EXPENSE'!J708)","v":""},{"$f":"T('3 INCOME & EXPENSE'!K708)","v":""},{"$f":"T('3 INCOME & EXPENSE'!L708)","v":""},{"$f":"'3 INCOME & EXPENSE'!M708","v":0},{"$f":"'3 INCOME & EXPENSE'!N708","v":0},{"$f":"'3 INCOME & EXPENSE'!O708","v":0}]
[null,{"$f":"T('3 INCOME & EXPENSE'!D709)","v":""},{"$f":"'3 INCOME & EXPENSE'!E709","v":"00:00:00"},{"$f":"'3 INCOME & EXPENSE'!F709","v":0},{"$f":"'3 INCOME & EXPENSE'!G709","v":0},{"$f":"T('3 INCOME & EXPENSE'!H709)","v":""},{"$f":"T('3 INCOME & EXPENSE'!I709)","v":""},{"$f":"T('3 INCOME & EXPENSE'!J709)","v":""},{"$f":"T('3 INCOME & EXPENSE'!K709)","v":""},{"$f":"T('3 INCOME & EXPENSE'!L709)","v":""},{"$f":"'3 INCOME & EXPENSE'!M709","v":0},{"$f":"'3 INCOME & EXPENSE'!N709","v":0},{"$f":"'3 INCOME & EXPENSE'!O709","v":0}]
[null,{"$f":"T('3 INCOME & EXPENSE'!D710)","v":""},{"$f":"'3 INCOME & EXPENSE'!E710","v":"00:00:00"},{"$f":"'3 INCOME & EXPENSE'!F710","v":0},{"$f":"'3 INCOME & EXPENSE'!G710","v":0},{"$f":"T('3 INCOME & EXPENSE'!H710)","v":""},{"$f":"T('3 INCOME & EXPENSE'!I710)","v":""},{"$f":"T('3 INCOME & EXPENSE'!J710)","v":""},{"$f":"T('3 INCOME & EXPENSE'!K710)","v":""},{"$f":"T('3 INCOME & EXPENSE'!L710)","v":""},{"$f":"'3 INCOME & EXPENSE'!M710","v":0},{"$f":"'3 INCOME & EXPENSE'!N710","v":0},{"$f":"'3 INCOME & EXPENSE'!O710","v":0}]
[null,{"$f":"T('3 INCOME & EXPENSE'!D711)","v":""},{"$f":"'3 INCOME & EXPENSE'!E711","v":"00:00:00"},{"$f":"'3 INCOME & EXPENSE'!F711","v":0},{"$f":"'3 INCOME & EXPENSE'!G711","v":0},{"$f":"T('3 INCOME & EXPENSE'!H711)","v":""},{"$f":"T('3 INCOME & EXPENSE'!I711)","v":""},{"$f":"T('3 INCOME & EXPENSE'!J711)","v":""},{"$f":"T('3 INCOME & EXPENSE'!K711)","v":""},{"$f":"T('3 INCOME & EXPENSE'!L711)","v":""},{"$f":"'3 INCOME & EXPENSE'!M711","v":0},{"$f":"'3 INCOME & EXPENSE'!N711","v":0},{"$f":"'3 INCOME & EXPENSE'!O711","v":0}]
[null,{"$f":"T('3 INCOME & EXPENSE'!D712)","v":""},{"$f":"'3 INCOME & EXPENSE'!E712","v":"00:00:00"},{"$f":"'3 INCOME & EXPENSE'!F712","v":0},{"$f":"'3 INCOME & EXPENSE'!G712","v":0},{"$f":"T('3 INCOME & EXPENSE'!H712)","v":""},{"$f":"T('3 INCOME & EXPENSE'!I712)","v":""},{"$f":"T('3 INCOME & EXPENSE'!J712)","v":""},{"$f":"T('3 INCOME & EXPENSE'!K712)","v":""},{"$f":"T('3 INCOME & EXPENSE'!L712)","v":""},{"$f":"'3 INCOME & EXPENSE'!M712","v":0},{"$f":"'3 INCOME & EXPENSE'!N712","v":0},{"$f":"'3 INCOME & EXPENSE'!O712","v":0}]
[null,{"$f":"T('3 INCOME & EXPENSE'!D713)","v":""},{"$f":"'3 INCOME & EXPENSE'!E713","v":"00:00:00"},{"$f":"'3 INCOME & EXPENSE'!F713","v":0},{"$f":"'3 INCOME & EXPENSE'!G713","v":0},{"$f":"T('3 INCOME & EXPENSE'!H713)","v":""},{"$f":"T('3 INCOME & EXPENSE'!I713)","v":""},{"$f":"T('3 INCOME & EXPENSE'!J713)","v":""},{"$f":"T('3 INCOME & EXPENSE'!K713)","v":""},{"$f":"T('3 INCOME & EXPENSE'!L713)","v":""},{"$f":"'3 INCOME & EXPENSE'!M713","v":0},{"$f":"'3 INCOME & EXPENSE'!N713","v":0},{"$f":"'3 INCOME & EXPENSE'!O713","v":0}]
[null,{"$f":"T('3 INCOME & EXPENSE'!D714)","v":""},{"$f":"'3 INCOME & EXPENSE'!E714","v":"00:00:00"},{"$f":"'3 INCOME & EXPENSE'!F714","v":0},{"$f":"'3 INCOME & EXPENSE'!G714","v":0},{"$f":"T('3 INCOME & EXPENSE'!H714)","v":""},{"$f":"T('3 INCOME & EXPENSE'!I714)","v":""},{"$f":"T('3 INCOME & EXPENSE'!J714)","v":""},{"$f":"T('3 INCOME & EXPENSE'!K714)","v":""},{"$f":"T('3 INCOME & EXPENSE'!L714)","v":""},{"$f":"'3 INCOME & EXPENSE'!M714","v":0},{"$f":"'3 INCOME & EXPENSE'!N714","v":0},{"$f":"'3 INCOME & EXPENSE'!O714","v":0}]
[null,{"$f":"T('3 INCOME & EXPENSE'!D715)","v":""},{"$f":"'3 INCOME & EXPENSE'!E715","v":"00:00:00"},{"$f":"'3 INCOME & EXPENSE'!F715","v":0},{"$f":"'3 INCOME & EXPENSE'!G715","v":0},{"$f":"T('3 INCOME & EXPENSE'!H715)","v":""},{"$f":"T('3 INCOME & EXPENSE'!I715)","v":""},{"$f":"T('3 INCOME & EXPENSE'!J715)","v":""},{"$f":"T('3 INCOME & EXPENSE'!K715)","v":""},{"$f":"T('3 INCOME & EXPENSE'!L715)","v":""},{"$f":"'3 INCOME & EXPENSE'!M715","v":0},{"$f":"'3 INCOME & EXPENSE'!N715","v":0},{"$f":"'3 INCOME & EXPENSE'!O715","v":0}]
[null,{"$f":"T('3 INCOME & EXPENSE'!D716)","v":""},{"$f":"'3 INCOME & EXPENSE'!E716","v":"00:00:00"},{"$f":"'3 INCOME & EXPENSE'!F716","v":0},{"$f":"'3 INCOME & EXPENSE'!G716","v":0},{"$f":"T('3 INCOME & EXPENSE'!H716)","v":""},{"$f":"T('3 INCOME & EXPENSE'!I716)","v":""},{"$f":"T('3 INCOME & EXPENSE'!J716)","v":""},{"$f":"T('3 INCOME & EXPENSE'!K716)","v":""},{"$f":"T('3 INCOME & EXPENSE'!L716)","v":""},{"$f":"'3 INCOME & EXPENSE'!M716","v":0},{"$f":"'3 INCOME & EXPENSE'!N716","v":0},{"$f":"'3 INCOME & EXPENSE'!O716","v":0}]
[null,{"$f":"T('3 INCOME & EXPENSE'!D717)","v":""},{"$f":"'3 INCOME & EXPENSE'!E717","v":"00:00:00"},{"$f":"'3 INCOME & EXPENSE'!F717","v":0},{"$f":"'3 INCOME & EXPENSE'!G717","v":0},{"$f":"T('3 INCOME & EXPENSE'!H717)","v":""},{"$f":"T('3 INCOME & EXPENSE'!I717)","v":""},{"$f":"T('3 INCOME & EXPENSE'!J717)","v":""},{"$f":"T('3 INCOME & EXPENSE'!K717)","v":""},{"$f":"T('3 INCOME & EXPENSE'!L717)","v":""},{"$f":"'3 INCOME & EXPENSE'!M717","v":0},{"$f":"'3 INCOME & EXPENSE'!N717","v":0},{"$f":"'3 INCOME & EXPENSE'!O717","v":0}]
[null,{"$f":"T('3 INCOME & EXPENSE'!D718)","v":""},{"$f":"'3 INCOME & EXPENSE'!E718","v":"00:00:00"},{"$f":"'3 INCOME & EXPENSE'!F718","v":0},{"$f":"'3 INCOME & EXPENSE'!G718","v":0},{"$f":"T('3 INCOME & EXPENSE'!H718)","v":""},{"$f":"T('3 INCOME & EXPENSE'!I718)","v":""},{"$f":"T('3 INCOME & EXPENSE'!J718)","v":""},{"$f":"T('3 INCOME & EXPENSE'!K718)","v":""},{"$f":"T('3 INCOME & EXPENSE'!L718)","v":""},{"$f":"'3 INCOME & EXPENSE'!M718","v":0},{"$f":"'3 INCOME & EXPENSE'!N718","v":0},{"$f":"'3 INCOME & EXPENSE'!O718","v":0}]
[null,{"$f":"T('3 INCOME & EXPENSE'!D719)","v":""},{"$f":"'3 INCOME & EXPENSE'!E719","v":"00:00:00"},{"$f":"'3 INCOME & EXPENSE'!F719","v":0},{"$f":"'3 INCOME & EXPENSE'!G719","v":0},{"$f":"T('3 INCOME & EXPENSE'!H719)","v":""},{"$f":"T('3 INCOME & EXPENSE'!I719)","v":""},{"$f":"T('3 INCOME & EXPENSE'!J719)","v":""},{"$f":"T('3 INCOME & EXPENSE'!K719)","v":""},{"$f":"T('3 INCOME & EXPENSE'!L719)","v":""},{"$f":"'3 INCOME & EXPENSE'!M719","v":0},{"$f":"'3 INCOME & EXPENSE'!N719","v":0},{"$f":"'3 INCOME & EXPENSE'!O719","v":0}]
[null,{"$f":"T('3 INCOME & EXPENSE'!D720)","v":""},{"$f":"'3 INCOME & EXPENSE'!E720","v":"00:00:00"},{"$f":"'3 INCOME & EXPENSE'!F720","v":0},{"$f":"'3 INCOME & EXPENSE'!G720","v":0},{"$f":"T('3 INCOME & EXPENSE'!H720)","v":""},{"$f":"T('3 INCOME & EXPENSE'!I720)","v":""},{"$f":"T('3 INCOME & EXPENSE'!J720)","v":""},{"$f":"T('3 INCOME & EXPENSE'!K720)","v":""},{"$f":"T('3 INCOME & EXPENSE'!L720)","v":""},{"$f":"'3 INCOME & EXPENSE'!M720","v":0},{"$f":"'3 INCOME & EXPENSE'!N720","v":0},{"$f":"'3 INCOME & EXPENSE'!O720","v":0}]
[null,{"$f":"T('3 INCOME & EXPENSE'!D721)","v":""},{"$f":"'3 INCOME & EXPENSE'!E721","v":"00:00:00"},{"$f":"'3 INCOME & EXPENSE'!F721","v":0},{"$f":"'3 INCOME & EXPENSE'!G721","v":0},{"$f":"T('3 INCOME & EXPENSE'!H721)","v":""},{"$f":"T('3 INCOME & EXPENSE'!I721)","v":""},{"$f":"T('3 INCOME & EXPENSE'!J721)","v":""},{"$f":"T('3 INCOME & EXPENSE'!K721)","v":""},{"$f":"T('3 INCOME & EXPENSE'!L721)","v":""},{"$f":"'3 INCOME & EXPENSE'!M721","v":0},{"$f":"'3 INCOME & EXPENSE'!N721","v":0},{"$f":"'3 INCOME & EXPENSE'!O721","v":0}]
[null,{"$f":"T('3 INCOME & EXPENSE'!D722)","v":""},{"$f":"'3 INCOME & EXPENSE'!E722","v":"00:00:00"},{"$f":"'3 INCOME & EXPENSE'!F722","v":0},{"$f":"'3 INCOME & EXPENSE'!G722","v":0},{"$f":"T('3 INCOME & EXPENSE'!H722)","v":""},{"$f":"T('3 INCOME & EXPENSE'!I722)","v":""},{"$f":"T('3 INCOME & EXPENSE'!J722)","v":""},{"$f":"T('3 INCOME & EXPENSE'!K722)","v":""},{"$f":"T('3 INCOME & EXPENSE'!L722)","v":""},{"$f":"'3 INCOME & EXPENSE'!M722","v":0},{"$f":"'3 INCOME & EXPENSE'!N722","v":0},{"$f":"'3 INCOME & EXPENSE'!O722","v":0}]
[null,{"$f":"T('3 INCOME & EXPENSE'!D723)","v":""},{"$f":"'3 INCOME & EXPENSE'!E723","v":"00:00:00"},{"$f":"'3 INCOME & EXPENSE'!F723","v":0},{"$f":"'3 INCOME & EXPENSE'!G723","v":0},{"$f":"T('3 INCOME & EXPENSE'!H723)","v":""},{"$f":"T('3 INCOME & EXPENSE'!I723)","v":""},{"$f":"T('3 INCOME & EXPENSE'!J723)","v":""},{"$f":"T('3 INCOME & EXPENSE'!K723)","v":""},{"$f":"T('3 INCOME & EXPENSE'!L723)","v":""},{"$f":"'3 INCOME & EXPENSE'!M723","v":0},{"$f":"'3 INCOME & EXPENSE'!N723","v":0},{"$f":"'3 INCOME & EXPENSE'!O723","v":0}]
[null,{"$f":"T('3 INCOME & EXPENSE'!D724)","v":""},{"$f":"'3 INCOME & EXPENSE'!E724","v":"00:00:00"},{"$f":"'3 INCOME & EXPENSE'!F724","v":0},{"$f":"'3 INCOME & EXPENSE'!G724","v":0},{"$f":"T('3 INCOME & EXPENSE'!H724)","v":""},{"$f":"T('3 INCOME & EXPENSE'!I724)","v":""},{"$f":"T('3 INCOME & EXPENSE'!J724)","v":""},{"$f":"T('3 INCOME & EXPENSE'!K724)","v":""},{"$f":"T('3 INCOME & EXPENSE'!L724)","v":""},{"$f":"'3 INCOME & EXPENSE'!M724","v":0},{"$f":"'3 INCOME & EXPENSE'!N724","v":0},{"$f":"'3 INCOME & EXPENSE'!O724","v":0}]
[null,{"$f":"T('3 INCOME & EXPENSE'!D725)","v":""},{"$f":"'3 INCOME & EXPENSE'!E725","v":"00:00:00"},{"$f":"'3 INCOME & EXPENSE'!F725","v":0},{"$f":"'3 INCOME & EXPENSE'!G725","v":0},{"$f":"T('3 INCOME & EXPENSE'!H725)","v":""},{"$f":"T('3 INCOME & EXPENSE'!I725)","v":""},{"$f":"T('3 INCOME & EXPENSE'!J725)","v":""},{"$f":"T('3 INCOME & EXPENSE'!K725)","v":""},{"$f":"T('3 INCOME & EXPENSE'!L725)","v":""},{"$f":"'3 INCOME & EXPENSE'!M725","v":0},{"$f":"'3 INCOME & EXPENSE'!N725","v":0},{"$f":"'3 INCOME & EXPENSE'!O725","v":0}]
[null,{"$f":"T('3 INCOME & EXPENSE'!D726)","v":""},{"$f":"'3 INCOME & EXPENSE'!E726","v":"00:00:00"},{"$f":"'3 INCOME & EXPENSE'!F726","v":0},{"$f":"'3 INCOME & EXPENSE'!G726","v":0},{"$f":"T('3 INCOME & EXPENSE'!H726)","v":""},{"$f":"T('3 INCOME & EXPENSE'!I726)","v":""},{"$f":"T('3 INCOME & EXPENSE'!J726)","v":""},{"$f":"T('3 INCOME & EXPENSE'!K726)","v":""},{"$f":"T('3 INCOME & EXPENSE'!L726)","v":""},{"$f":"'3 INCOME & EXPENSE'!M726","v":0},{"$f":"'3 INCOME & EXPENSE'!N726","v":0},{"$f":"'3 INCOME & EXPENSE'!O726","v":0}]
[null,{"$f":"T('3 INCOME & EXPENSE'!D727)","v":""},{"$f":"'3 INCOME & EXPENSE'!E727","v":"00:00:00"},{"$f":"'3 INCOME & EXPENSE'!F727","v":0},{"$f":"'3 INCOME & EXPENSE'!G727","v":0},{"$f":"T('3 INCOME & EXPENSE'!H727)","v":""},{"$f":"T('3 INCOME & EXPENSE'!I727)","v":""},{"$f":"T('3 INCOME & EXPENSE'!J727)","v":""},{"$f":"T('3 INCOME & EXPENSE'!K727)","v":""},{"$f":"T('3 INCOME & EXPENSE'!L727)","v":""},{"$f":"'3 INCOME & EXPENSE'!M727","v":0},{"$f":"'3 INCOME & EXPENSE'!N727","v":0},{"$f":"'3 INCOME & EXPENSE'!O727","v":0}]
[null,{"$f":"T('3 INCOME & EXPENSE'!D728)","v":""},{"$f":"'3 INCOME & EXPENSE'!E728","v":"00:00:00"},{"$f":"'3 INCOME & EXPENSE'!F728","v":0},{"$f":"'3 INCOME & EXPENSE'!G728","v":0},{"$f":"T('3 INCOME & EXPENSE'!H728)","v":""},{"$f":"T('3 INCOME & EXPENSE'!I728)","v":""},{"$f":"T('3 INCOME & EXPENSE'!J728)","v":""},{"$f":"T('3 INCOME & EXPENSE'!K728)","v":""},{"$f":"T('3 INCOME & EXPENSE'!L728)","v":""},{"$f":"'3 INCOME & EXPENSE'!M728","v":0},{"$f":"'3 INCOME & EXPENSE'!N728","v":0},{"$f":"'3 INCOME & EXPENSE'!O728","v":0}]
[null,{"$f":"T('3 INCOME & EXPENSE'!D729)","v":""},{"$f":"'3 INCOME & EXPENSE'!E729","v":"00:00:00"},{"$f":"'3 INCOME & EXPENSE'!F729","v":0},{"$f":"'3 INCOME & EXPENSE'!G729","v":0},{"$f":"T('3 INCOME & EXPENSE'!H729)","v":""},{"$f":"T('3 INCOME & EXPENSE'!I729)","v":""},{"$f":"T('3 INCOME & EXPENSE'!J729)","v":""},{"$f":"T('3 INCOME & EXPENSE'!K729)","v":""},{"$f":"T('3 INCOME & EXPENSE'!L729)","v":""},{"$f":"'3 INCOME & EXPENSE'!M729","v":0},{"$f":"'3 INCOME & EXPENSE'!N729","v":0},{"$f":"'3 INCOME & EXPENSE'!O729","v":0}]
[null,{"$f":"T('3 INCOME & EXPENSE'!D730)","v":""},{"$f":"'3 INCOME & EXPENSE'!E730","v":"00:00:00"},{"$f":"'3 INCOME & EXPENSE'!F730","v":0},{"$f":"'3 INCOME & EXPENSE'!G730","v":0},{"$f":"T('3 INCOME & EXPENSE'!H730)","v":""},{"$f":"T('3 INCOME & EXPENSE'!I730)","v":""},{"$f":"T('3 INCOME & EXPENSE'!J730)","v":""},{"$f":"T('3 INCOME & EXPENSE'!K730)","v":""},{"$f":"T('3 INCOME & EXPENSE'!L730)","v":""},{"$f":"'3 INCOME & EXPENSE'!M730","v":0},{"$f":"'3 INCOME & EXPENSE'!N730","v":0},{"$f":"'3 INCOME & EXPENSE'!O730","v":0}]
[null,{"$f":"T('3 INCOME & EXPENSE'!D731)","v":""},{"$f":"'3 INCOME & EXPENSE'!E731","v":"00:00:00"},{"$f":"'3 INCOME & EXPENSE'!F731","v":0},{"$f":"'3 INCOME & EXPENSE'!G731","v":0},{"$f":"T('3 INCOME & EXPENSE'!H731)","v":""},{"$f":"T('3 INCOME & EXPENSE'!I731)","v":""},{"$f":"T('3 INCOME & EXPENSE'!J731)","v":""},{"$f":"T('3 INCOME & EXPENSE'!K731)","v":""},{"$f":"T('3 INCOME & EXPENSE'!L731)","v":""},{"$f":"'3 INCOME & EXPENSE'!M731","v":0},{"$f":"'3 INCOME & EXPENSE'!N731","v":0},{"$f":"'3 INCOME & EXPENSE'!O731","v":0}]
[null,{"$f":"T('3 INCOME & EXPENSE'!D732)","v":""},{"$f":"'3 INCOME & EXPENSE'!E732","v":"00:00:00"},{"$f":"'3 INCOME & EXPENSE'!F732","v":0},{"$f":"'3 INCOME & EXPENSE'!G732","v":0},{"$f":"T('3 INCOME & EXPENSE'!H732)","v":""},{"$f":"T('3 INCOME & EXPENSE'!I732)","v":""},{"$f":"T('3 INCOME & EXPENSE'!J732)","v":""},{"$f":"T('3 INCOME & EXPENSE'!K732)","v":""},{"$f":"T('3 INCOME & EXPENSE'!L732)","v":""},{"$f":"'3 INCOME & EXPENSE'!M732","v":0},{"$f":"'3 INCOME & EXPENSE'!N732","v":0},{"$f":"'3 INCOME & EXPENSE'!O732","v":0}]
[null,{"$f":"T('3 INCOME & EXPENSE'!D733)","v":""},{"$f":"'3 INCOME & EXPENSE'!E733","v":"00:00:00"},{"$f":"'3 INCOME & EXPENSE'!F733","v":0},{"$f":"'3 INCOME & EXPENSE'!G733","v":0},{"$f":"T('3 INCOME & EXPENSE'!H733)","v":""},{"$f":"T('3 INCOME & EXPENSE'!I733)","v":""},{"$f":"T('3 INCOME & EXPENSE'!J733)","v":""},{"$f":"T('3 INCOME & EXPENSE'!K733)","v":""},{"$f":"T('3 INCOME & EXPENSE'!L733)","v":""},{"$f":"'3 INCOME & EXPENSE'!M733","v":0},{"$f":"'3 INCOME & EXPENSE'!N733","v":0},{"$f":"'3 INCOME & EXPENSE'!O733","v":0}]
[null,{"$f":"T('3 INCOME & EXPENSE'!D734)","v":""},{"$f":"'3 INCOME & EXPENSE'!E734","v":"00:00:00"},{"$f":"'3 INCOME & EXPENSE'!F734","v":0},{"$f":"'3 INCOME & EXPENSE'!G734","v":0},{"$f":"T('3 INCOME & EXPENSE'!H734)","v":""},{"$f":"T('3 INCOME & EXPENSE'!I734)","v":""},{"$f":"T('3 INCOME & EXPENSE'!J734)","v":""},{"$f":"T('3 INCOME & EXPENSE'!K734)","v":""},{"$f":"T('3 INCOME & EXPENSE'!L734)","v":""},{"$f":"'3 INCOME & EXPENSE'!M734","v":0},{"$f":"'3 INCOME & EXPENSE'!N734","v":0},{"$f":"'3 INCOME & EXPENSE'!O734","v":0}]
[null,{"$f":"T('3 INCOME & EXPENSE'!D735)","v":""},{"$f":"'3 INCOME & EXPENSE'!E735","v":"00:00:00"},{"$f":"'3 INCOME & EXPENSE'!F735","v":0},{"$f":"'3 INCOME & EXPENSE'!G735","v":0},{"$f":"T('3 INCOME & EXPENSE'!H735)","v":""},{"$f":"T('3 INCOME & EXPENSE'!I735)","v":""},{"$f":"T('3 INCOME & EXPENSE'!J735)","v":""},{"$f":"T('3 INCOME & EXPENSE'!K735)","v":""},{"$f":"T('3 INCOME & EXPENSE'!L735)","v":""},{"$f":"'3 INCOME & EXPENSE'!M735","v":0},{"$f":"'3 INCOME & EXPENSE'!N735","v":0},{"$f":"'3 INCOME & EXPENSE'!O735","v":0}]
[null,{"$f":"T('3 INCOME & EXPENSE'!D736)","v":""},{"$f":"'3 INCOME & EXPENSE'!E736","v":"00:00:00"},{"$f":"'3 INCOME & EXPENSE'!F736","v":0},{"$f":"'3 INCOME & EXPENSE'!G736","v":0},{"$f":"T('3 INCOME & EXPENSE'!H736)","v":""},{"$f":"T('3 INCOME & EXPENSE'!I736)","v":""},{"$f":"T('3 INCOME & EXPENSE'!J736)","v":""},{"$f":"T('3 INCOME & EXPENSE'!K736)","v":""},{"$f":"T('3 INCOME & EXPENSE'!L736)","v":""},{"$f":"'3 INCOME & EXPENSE'!M736","v":0},{"$f":"'3 INCOME & EXPENSE'!N736","v":0},{"$f":"'3 INCOME & EXPENSE'!O736","v":0}]
[null,{"$f":"T('3 INCOME & EXPENSE'!D737)","v":""},{"$f":"'3 INCOME & EXPENSE'!E737","v":"00:00:00"},{"$f":"'3 INCOME & EXPENSE'!F737","v":0},{"$f":"'3 INCOME & EXPENSE'!G737","v":0},{"$f":"T('3 INCOME & EXPENSE'!H737)","v":""},{"$f":"T('3 INCOME & EXPENSE'!I737)","v":""},{"$f":"T('3 INCOME & EXPENSE'!J737)","v":""},{"$f":"T('3 INCOME & EXPENSE'!K737)","v":""},{"$f":"T('3 INCOME & EXPENSE'!L737)","v":""},{"$f":"'3 INCOME & EXPENSE'!M737","v":0},{"$f":"'3 INCOME & EXPENSE'!N737","v":0},{"$f":"'3 INCOME & EXPENSE'!O737","v":0}]
[null,{"$f":"T('3 INCOME & EXPENSE'!D738)","v":""},{"$f":"'3 INCOME & EXPENSE'!E738","v":"00:00:00"},{"$f":"'3 INCOME & EXPENSE'!F738","v":0},{"$f":"'3 INCOME & EXPENSE'!G738","v":0},{"$f":"T('3 INCOME & EXPENSE'!H738)","v":""},{"$f":"T('3 INCOME & EXPENSE'!I738)","v":""},{"$f":"T('3 INCOME & EXPENSE'!J738)","v":""},{"$f":"T('3 INCOME & EXPENSE'!K738)","v":""},{"$f":"T('3 INCOME & EXPENSE'!L738)","v":""},{"$f":"'3 INCOME & EXPENSE'!M738","v":0},{"$f":"'3 INCOME & EXPENSE'!N738","v":0},{"$f":"'3 INCOME & EXPENSE'!O738","v":0}]
[null,{"$f":"T('3 INCOME & EXPENSE'!D739)","v":""},{"$f":"'3 INCOME & EXPENSE'!E739","v":"00:00:00"},{"$f":"'3 INCOME & EXPENSE'!F739","v":0},{"$f":"'3 INCOME & EXPENSE'!G739","v":0},{"$f":"T('3 INCOME & EXPENSE'!H739)","v":""},{"$f":"T('3 INCOME & EXPENSE'!I739)","v":""},{"$f":"T('3 INCOME & EXPENSE'!J739)","v":""},{"$f":"T('3 INCOME & EXPENSE'!K739)","v":""},{"$f":"T('3 INCOME & EXPENSE'!L739)","v":""},{"$f":"'3 INCOME & EXPENSE'!M739","v":0},{"$f":"'3 INCOME & EXPENSE'!N739","v":0},{"$f":"'3 INCOME & EXPENSE'!O739","v":0}]
[null,{"$f":"T('3 INCOME & EXPENSE'!D740)","v":""},{"$f":"'3 INCOME & EXPENSE'!E740","v":"00:00:00"},{"$f":"'3 INCOME & EXPENSE'!F740","v":0},{"$f":"'3 INCOME & EXPENSE'!G740","v":0},{"$f":"T('3 INCOME & EXPENSE'!H740)","v":""},{"$f":"T('3 INCOME & EXPENSE'!I740)","v":""},{"$f":"T('3 INCOME & EXPENSE'!J740)","v":""},{"$f":"T('3 INCOME & EXPENSE'!K740)","v":""},{"$f":"T('3 INCOME & EXPENSE'!L740)","v":""},{"$f":"'3 INCOME & EXPENSE'!M740","v":0},{"$f":"'3 INCOME & EXPENSE'!N740","v":0},{"$f":"'3 INCOME & EXPENSE'!O740","v":0}]
[null,{"$f":"T('3 INCOME & EXPENSE'!D741)","v":""},{"$f":"'3 INCOME & EXPENSE'!E741","v":"00:00:00"},{"$f":"'3 INCOME & EXPENSE'!F741","v":0},{"$f":"'3 INCOME & EXPENSE'!G741","v":0},{"$f":"T('3 INCOME & EXPENSE'!H741)","v":""},{"$f":"T('3 INCOME & EXPENSE'!I741)","v":""},{"$f":"T('3 INCOME & EXPENSE'!J741)","v":""},{"$f":"T('3 INCOME & EXPENSE'!K741)","v":""},{"$f":"T('3 INCOME & EXPENSE'!L741)","v":""},{"$f":"'3 INCOME & EXPENSE'!M741","v":0},{"$f":"'3 INCOME & EXPENSE'!N741","v":0},{"$f":"'3 INCOME & EXPENSE'!O741","v":0}]
[null,{"$f":"T('3 INCOME & EXPENSE'!D742)","v":""},{"$f":"'3 INCOME & EXPENSE'!E742","v":"00:00:00"},{"$f":"'3 INCOME & EXPENSE'!F742","v":0},{"$f":"'3 INCOME & EXPENSE'!G742","v":0},{"$f":"T('3 INCOME & EXPENSE'!H742)","v":""},{"$f":"T('3 INCOME & EXPENSE'!I742)","v":""},{"$f":"T('3 INCOME & EXPENSE'!J742)","v":""},{"$f":"T('3 INCOME & EXPENSE'!K742)","v":""},{"$f":"T('3 INCOME & EXPENSE'!L742)","v":""},{"$f":"'3 INCOME & EXPENSE'!M742","v":0},{"$f":"'3 INCOME & EXPENSE'!N742","v":0},{"$f":"'3 INCOME & EXPENSE'!O742","v":0}]
[null,{"$f":"T('3 INCOME & EXPENSE'!D743)","v":""},{"$f":"'3 INCOME & EXPENSE'!E743","v":"00:00:00"},{"$f":"'3 INCOME & EXPENSE'!F743","v":0},{"$f":"'3 INCOME & EXPENSE'!G743","v":0},{"$f":"T('3 INCOME & EXPENSE'!H743)","v":""},{"$f":"T('3 INCOME & EXPENSE'!I743)","v":""},{"$f":"T('3 INCOME & EXPENSE'!J743)","v":""},{"$f":"T('3 INCOME & EXPENSE'!K743)","v":""},{"$f":"T('3 INCOME & EXPENSE'!L743)","v":""},{"$f":"'3 INCOME & EXPENSE'!M743","v":0},{"$f":"'3 INCOME & EXPENSE'!N743","v":0},{"$f":"'3 INCOME & EXPENSE'!O743","v":0}]
[null,{"$f":"T('3 INCOME & EXPENSE'!D744)","v":""},{"$f":"'3 INCOME & EXPENSE'!E744","v":"00:00:00"},{"$f":"'3 INCOME & EXPENSE'!F744","v":0},{"$f":"'3 INCOME & EXPENSE'!G744","v":0},{"$f":"T('3 INCOME & EXPENSE'!H744)","v":""},{"$f":"T('3 INCOME & EXPENSE'!I744)","v":""},{"$f":"T('3 INCOME & EXPENSE'!J744)","v":""},{"$f":"T('3 INCOME & EXPENSE'!K744)","v":""},{"$f":"T('3 INCOME & EXPENSE'!L744)","v":""},{"$f":"'3 INCOME & EXPENSE'!M744","v":0},{"$f":"'3 INCOME & EXPENSE'!N744","v":0},{"$f":"'3 INCOME & EXPENSE'!O744","v":0}]
[null,{"$f":"T('3 INCOME & EXPENSE'!D745)","v":""},{"$f":"'3 INCOME & EXPENSE'!E745","v":"00:00:00"},{"$f":"'3 INCOME & EXPENSE'!F745","v":0},{"$f":"'3 INCOME & EXPENSE'!G745","v":0},{"$f":"T('3 INCOME & EXPENSE'!H745)","v":""},{"$f":"T('3 INCOME & EXPENSE'!I745)","v":""},{"$f":"T('3 INCOME & EXPENSE'!J745)","v":""},{"$f":"T('3 INCOME & EXPENSE'!K745)","v":""},{"$f":"T('3 INCOME & EXPENSE'!L745)","v":""},{"$f":"'3 INCOME & EXPENSE'!M745","v":0},{"$f":"'3 INCOME & EXPENSE'!N745","v":0},{"$f":"'3 INCOME & EXPENSE'!O745","v":0}]
[null,{"$f":"T('3 INCOME & EXPENSE'!D746)","v":""},{"$f":"'3 INCOME & EXPENSE'!E746","v":"00:00:00"},{"$f":"'3 INCOME & EXPENSE'!F746","v":0},{"$f":"'3 INCOME & EXPENSE'!G746","v":0},{"$f":"T('3 INCOME & EXPENSE'!H746)","v":""},{"$f":"T('3 INCOME & EXPENSE'!I746)","v":""},{"$f":"T('3 INCOME & EXPENSE'!J746)","v":""},{"$f":"T('3 INCOME & EXPENSE'!K746)","v":""},{"$f":"T('3 INCOME & EXPENSE'!L746)","v":""},{"$f":"'3 INCOME & EXPENSE'!M746","v":0},{"$f":"'3 INCOME & EXPENSE'!N746","v":0},{"$f":"'3 INCOME & EXPENSE'!O746","v":0}]
[null,{"$f":"T('3 INCOME & EXPENSE'!D747)","v":""},{"$f":"'3 INCOME & EXPENSE'!E747","v":"00:00:00"},{"$f":"'3 INCOME & EXPENSE'!F747","v":0},{"$f":"'3 INCOME & EXPENSE'!G747","v":0},{"$f":"T('3 INCOME & EXPENSE'!H747)","v":""},{"$f":"T('3 INCOME & EXPENSE'!I747)","v":""},{"$f":"T('3 INCOME & EXPENSE'!J747)","v":""},{"$f":"T('3 INCOME & EXPENSE'!K747)","v":""},{"$f":"T('3 INCOME & EXPENSE'!L747)","v":""},{"$f":"'3 INCOME & EXPENSE'!M747","v":0},{"$f":"'3 INCOME & EXPENSE'!N747","v":0},{"$f":"'3 INCOME & EXPENSE'!O747","v":0}]
[null,{"$f":"T('3 INCOME & EXPENSE'!D748)","v":""},{"$f":"'3 INCOME & EXPENSE'!E748","v":"00:00:00"},{"$f":"'3 INCOME & EXPENSE'!F748","v":0},{"$f":"'3 INCOME & EXPENSE'!G748","v":0},{"$f":"T('3 INCOME & EXPENSE'!H748)","v":""},{"$f":"T('3 INCOME & EXPENSE'!I748)","v":""},{"$f":"T('3 INCOME & EXPENSE'!J748)","v":""},{"$f":"T('3 INCOME & EXPENSE'!K748)","v":""},{"$f":"T('3 INCOME & EXPENSE'!L748)","v":""},{"$f":"'3 INCOME & EXPENSE'!M748","v":0},{"$f":"'3 INCOME & EXPENSE'!N748","v":0},{"$f":"'3 INCOME & EXPENSE'!O748","v":0}]
[null,{"$f":"T('3 INCOME & EXPENSE'!D749)","v":""},{"$f":"'3 INCOME & EXPENSE'!E749","v":"00:00:00"},{"$f":"'3 INCOME & EXPENSE'!F749","v":0},{"$f":"'3 INCOME & EXPENSE'!G749","v":0},{"$f":"T('3 INCOME & EXPENSE'!H749)","v":""},{"$f":"T('3 INCOME & EXPENSE'!I749)","v":""},{"$f":"T('3 INCOME & EXPENSE'!J749)","v":""},{"$f":"T('3 INCOME & EXPENSE'!K749)","v":""},{"$f":"T('3 INCOME & EXPENSE'!L749)","v":""},{"$f":"'3 INCOME & EXPENSE'!M749","v":0},{"$f":"'3 INCOME & EXPENSE'!N749","v":0},{"$f":"'3 INCOME & EXPENSE'!O749","v":0}]
[null,{"$f":"T('3 INCOME & EXPENSE'!D750)","v":""},{"$f":"'3 INCOME & EXPENSE'!E750","v":"00:00:00"},{"$f":"'3 INCOME & EXPENSE'!F750","v":0},{"$f":"'3 INCOME & EXPENSE'!G750","v":0},{"$f":"T('3 INCOME & EXPENSE'!H750)","v":""},{"$f":"T('3 INCOME & EXPENSE'!I750)","v":""},{"$f":"T('3 INCOME & EXPENSE'!J750)","v":""},{"$f":"T('3 INCOME & EXPENSE'!K750)","v":""},{"$f":"T('3 INCOME & EXPENSE'!L750)","v":""},{"$f":"'3 INCOME & EXPENSE'!M750","v":0},{"$f":"'3 INCOME & EXPENSE'!N750","v":0},{"$f":"'3 INCOME & EXPENSE'!O750","v":0}]
[null,{"$f":"T('3 INCOME & EXPENSE'!D751)","v":""},{"$f":"'3 INCOME & EXPENSE'!E751","v":"00:00:00"},{"$f":"'3 INCOME & EXPENSE'!F751","v":0},{"$f":"'3 INCOME & EXPENSE'!G751","v":0},{"$f":"T('3 INCOME & EXPENSE'!H751)","v":""},{"$f":"T('3 INCOME & EXPENSE'!I751)","v":""},{"$f":"T('3 INCOME & EXPENSE'!J751)","v":""},{"$f":"T('3 INCOME & EXPENSE'!K751)","v":""},{"$f":"T('3 INCOME & EXPENSE'!L751)","v":""},{"$f":"'3 INCOME & EXPENSE'!M751","v":0},{"$f":"'3 INCOME & EXPENSE'!N751","v":0},{"$f":"'3 INCOME & EXPENSE'!O751","v":0}]
[null,{"$f":"T('3 INCOME & EXPENSE'!D752)","v":""},{"$f":"'3 INCOME & EXPENSE'!E752","v":"00:00:00"},{"$f":"'3 INCOME & EXPENSE'!F752","v":0},{"$f":"'3 INCOME & EXPENSE'!G752","v":0},{"$f":"T('3 INCOME & EXPENSE'!H752)","v":""},{"$f":"T('3 INCOME & EXPENSE'!I752)","v":""},{"$f":"T('3 INCOME & EXPENSE'!J752)","v":""},{"$f":"T('3 INCOME & EXPENSE'!K752)","v":""},{"$f":"T('3 INCOME & EXPENSE'!L752)","v":""},{"$f":"'3 INCOME & EXPENSE'!M752","v":0},{"$f":"'3 INCOME & EXPENSE'!N752","v":0},{"$f":"'3 INCOME & EXPENSE'!O752","v":0}]
[null,{"$f":"T('3 INCOME & EXPENSE'!D753)","v":""},{"$f":"'3 INCOME & EXPENSE'!E753","v":"00:00:00"},{"$f":"'3 INCOME & EXPENSE'!F753","v":0},{"$f":"'3 INCOME & EXPENSE'!G753","v":0},{"$f":"T('3 INCOME & EXPENSE'!H753)","v":""},{"$f":"T('3 INCOME & EXPENSE'!I753)","v":""},{"$f":"T('3 INCOME & EXPENSE'!J753)","v":""},{"$f":"T('3 INCOME & EXPENSE'!K753)","v":""},{"$f":"T('3 INCOME & EXPENSE'!L753)","v":""},{"$f":"'3 INCOME & EXPENSE'!M753","v":0},{"$f":"'3 INCOME & EXPENSE'!N753","v":0},{"$f":"'3 INCOME & EXPENSE'!O753","v":0}]
[null,{"$f":"T('3 INCOME & EXPENSE'!D754)","v":""},{"$f":"'3 INCOME & EXPENSE'!E754","v":"00:00:00"},{"$f":"'3 INCOME & EXPENSE'!F754","v":0},{"$f":"'3 INCOME & EXPENSE'!G754","v":0},{"$f":"T('3 INCOME & EXPENSE'!H754)","v":""},{"$f":"T('3 INCOME & EXPENSE'!I754)","v":""},{"$f":"T('3 INCOME & EXPENSE'!J754)","v":""},{"$f":"T('3 INCOME & EXPENSE'!K754)","v":""},{"$f":"T('3 INCOME & EXPENSE'!L754)","v":""},{"$f":"'3 INCOME & EXPENSE'!M754","v":0},{"$f":"'3 INCOME & EXPENSE'!N754","v":0},{"$f":"'3 INCOME & EXPENSE'!O754","v":0}]
[null,{"$f":"T('3 INCOME & EXPENSE'!D755)","v":""},{"$f":"'3 INCOME & EXPENSE'!E755","v":"00:00:00"},{"$f":"'3 INCOME & EXPENSE'!F755","v":0},{"$f":"'3 INCOME & EXPENSE'!G755","v":0},{"$f":"T('3 INCOME & EXPENSE'!H755)","v":""},{"$f":"T('3 INCOME & EXPENSE'!I755)","v":""},{"$f":"T('3 INCOME & EXPENSE'!J755)","v":""},{"$f":"T('3 INCOME & EXPENSE'!K755)","v":""},{"$f":"T('3 INCOME & EXPENSE'!L755)","v":""},{"$f":"'3 INCOME & EXPENSE'!M755","v":0},{"$f":"'3 INCOME & EXPENSE'!N755","v":0},{"$f":"'3 INCOME & EXPENSE'!O755","v":0}]
[null,{"$f":"T('3 INCOME & EXPENSE'!D756)","v":""},{"$f":"'3 INCOME & EXPENSE'!E756","v":"00:00:00"},{"$f":"'3 INCOME & EXPENSE'!F756","v":0},{"$f":"'3 INCOME & EXPENSE'!G756","v":0},{"$f":"T('3 INCOME & EXPENSE'!H756)","v":""},{"$f":"T('3 INCOME & EXPENSE'!I756)","v":""},{"$f":"T('3 INCOME & EXPENSE'!J756)","v":""},{"$f":"T('3 INCOME & EXPENSE'!K756)","v":""},{"$f":"T('3 INCOME & EXPENSE'!L756)","v":""},{"$f":"'3 INCOME & EXPENSE'!M756","v":0},{"$f":"'3 INCOME & EXPENSE'!N756","v":0},{"$f":"'3 INCOME & EXPENSE'!O756","v":0}]
[null,{"$f":"T('3 INCOME & EXPENSE'!D757)","v":""},{"$f":"'3 INCOME & EXPENSE'!E757","v":"00:00:00"},{"$f":"'3 INCOME & EXPENSE'!F757","v":0},{"$f":"'3 INCOME & EXPENSE'!G757","v":0},{"$f":"T('3 INCOME & EXPENSE'!H757)","v":""},{"$f":"T('3 INCOME & EXPENSE'!I757)","v":""},{"$f":"T('3 INCOME & EXPENSE'!J757)","v":""},{"$f":"T('3 INCOME & EXPENSE'!K757)","v":""},{"$f":"T('3 INCOME & EXPENSE'!L757)","v":""},{"$f":"'3 INCOME & EXPENSE'!M757","v":0},{"$f":"'3 INCOME & EXPENSE'!N757","v":0},{"$f":"'3 INCOME & EXPENSE'!O757","v":0}]
[null,{"$f":"T('3 INCOME & EXPENSE'!D758)","v":""},{"$f":"'3 INCOME & EXPENSE'!E758","v":"00:00:00"},{"$f":"'3 INCOME & EXPENSE'!F758","v":0},{"$f":"'3 INCOME & EXPENSE'!G758","v":0},{"$f":"T('3 INCOME & EXPENSE'!H758)","v":""},{"$f":"T('3 INCOME & EXPENSE'!I758)","v":""},{"$f":"T('3 INCOME & EXPENSE'!J758)","v":""},{"$f":"T('3 INCOME & EXPENSE'!K758)","v":""},{"$f":"T('3 INCOME & EXPENSE'!L758)","v":""},{"$f":"'3 INCOME & EXPENSE'!M758","v":0},{"$f":"'3 INCOME & EXPENSE'!N758","v":0},{"$f":"'3 INCOME & EXPENSE'!O758","v":0}]
[null,{"$f":"T('3 INCOME & EXPENSE'!D759)","v":""},{"$f":"'3 INCOME & EXPENSE'!E759","v":"00:00:00"},{"$f":"'3 INCOME & EXPENSE'!F759","v":0},{"$f":"'3 INCOME & EXPENSE'!G759","v":0},{"$f":"T('3 INCOME & EXPENSE'!H759)","v":""},{"$f":"T('3 INCOME & EXPENSE'!I759)","v":""},{"$f":"T('3 INCOME & EXPENSE'!J759)","v":""},{"$f":"T('3 INCOME & EXPENSE'!K759)","v":""},{"$f":"T('3 INCOME & EXPENSE'!L759)","v":""},{"$f":"'3 INCOME & EXPENSE'!M759","v":0},{"$f":"'3 INCOME & EXPENSE'!N759","v":0},{"$f":"'3 INCOME & EXPENSE'!O759","v":0}]
[null,{"$f":"T('3 INCOME & EXPENSE'!D760)","v":""},{"$f":"'3 INCOME & EXPENSE'!E760","v":"00:00:00"},{"$f":"'3 INCOME & EXPENSE'!F760","v":0},{"$f":"'3 INCOME & EXPENSE'!G760","v":0},{"$f":"T('3 INCOME & EXPENSE'!H760)","v":""},{"$f":"T('3 INCOME & EXPENSE'!I760)","v":""},{"$f":"T('3 INCOME & EXPENSE'!J760)","v":""},{"$f":"T('3 INCOME & EXPENSE'!K760)","v":""},{"$f":"T('3 INCOME & EXPENSE'!L760)","v":""},{"$f":"'3 INCOME & EXPENSE'!M760","v":0},{"$f":"'3 INCOME & EXPENSE'!N760","v":0},{"$f":"'3 INCOME & EXPENSE'!O760","v":0}]
[null,{"$f":"T('3 INCOME & EXPENSE'!D761)","v":""},{"$f":"'3 INCOME & EXPENSE'!E761","v":"00:00:00"},{"$f":"'3 INCOME & EXPENSE'!F761","v":0},{"$f":"'3 INCOME & EXPENSE'!G761","v":0},{"$f":"T('3 INCOME & EXPENSE'!H761)","v":""},{"$f":"T('3 INCOME & EXPENSE'!I761)","v":""},{"$f":"T('3 INCOME & EXPENSE'!J761)","v":""},{"$f":"T('3 INCOME & EXPENSE'!K761)","v":""},{"$f":"T('3 INCOME & EXPENSE'!L761)","v":""},{"$f":"'3 INCOME & EXPENSE'!M761","v":0},{"$f":"'3 INCOME & EXPENSE'!N761","v":0},{"$f":"'3 INCOME & EXPENSE'!O761","v":0}]
[null,{"$f":"T('3 INCOME & EXPENSE'!D762)","v":""},{"$f":"'3 INCOME & EXPENSE'!E762","v":"00:00:00"},{"$f":"'3 INCOME & EXPENSE'!F762","v":0},{"$f":"'3 INCOME & EXPENSE'!G762","v":0},{"$f":"T('3 INCOME & EXPENSE'!H762)","v":""},{"$f":"T('3 INCOME & EXPENSE'!I762)","v":""},{"$f":"T('3 INCOME & EXPENSE'!J762)","v":""},{"$f":"T('3 INCOME & EXPENSE'!K762)","v":""},{"$f":"T('3 INCOME & EXPENSE'!L762)","v":""},{"$f":"'3 INCOME & EXPENSE'!M762","v":0},{"$f":"'3 INCOME & EXPENSE'!N762","v":0},{"$f":"'3 INCOME & EXPENSE'!O762","v":0}]
[null,{"$f":"T('3 INCOME & EXPENSE'!D763)","v":""},{"$f":"'3 INCOME & EXPENSE'!E763","v":"00:00:00"},{"$f":"'3 INCOME & EXPENSE'!F763","v":0},{"$f":"'3 INCOME & EXPENSE'!G763","v":0},{"$f":"T('3 INCOME & EXPENSE'!H763)","v":""},{"$f":"T('3 INCOME & EXPENSE'!I763)","v":""},{"$f":"T('3 INCOME & EXPENSE'!J763)","v":""},{"$f":"T('3 INCOME & EXPENSE'!K763)","v":""},{"$f":"T('3 INCOME & EXPENSE'!L763)","v":""},{"$f":"'3 INCOME & EXPENSE'!M763","v":0},{"$f":"'3 INCOME & EXPENSE'!N763","v":0},{"$f":"'3 INCOME & EXPENSE'!O763","v":0}]

{"sheet":"REPORTING","index":29,"n_rows":56,"n_cols":14,"rows_kept":56,"merged":[[2,2,3,39],[5,3,5,37],[6,3,6,12],[6,13,6,37],[7,3,7,12],[7,13,7,37],[8,3,8,12],[8,13,8,37],[9,3,9,12],[9,13,9,37],[10,3,10,12],[10,13,10,37],[11,3,11,12],[11,13,11,37],[12,3,12,12],[12,13,12,37],[13,3,13,37],[14,3,14,12],[14,13,14,37],[15,3,15,37],[16,3,16,12],[16,13,16,37],[19,2,20,39],[22,3,22,37],[23,3,23,12],[23,13,23,37],[24,3,24,12],[24,13,24,37],[25,3,25,12],[25,13,25,37],[26,3,26,12],[26,13,26,37],[27,3,27,12],[27,13,27,37],[28,3,28,12],[28,13,28,37],[29,3,29,12],[29,13,29,37],[30,3,30,12],[30,13,30,37],[31,3,31,12],[31,13,31,37],[32,3,32,12],[32,13,32,37],[33,3,33,37],[34,3,34,12],[34,13,34,37],[35,3,35,12],[35,13,35,37],[38,2,39,39],[41,3,41,37],[42,3,42,12],[42,13,42,37],[43,3,43,12],[43,13,43,37],[44,3,44,12],[44,13,44,37],[45,3,45,12],[45,13,45,37],[46,3,46,37],[47,3,47,12],[47,13,47,37],[48,3,48,12],[48,13,48,37],[49,3,49,12],[49,13,49,37],[50,3,50,12],[50,13,50,37],[51,3,51,37],[52,3,52,12],[52,13,52,37],[53,3,53,12],[53,13,53,37],[55,2,56,39]]}
[]
[]
[null,null,"Deal Analysis Reports"]
[]
[]
[{"$nulls":3},"Rehabbing Reports"]
[{"$nulls":3},"Inspection Checklist ",{"$nulls":9},"An Inspection Checklist to inspect properties and create a scope of work for your rehab project."]
[{"$nulls":3},"Repair Estimate Reports ",{"$nulls":9},"An estimate reports that summarizes and details your Repair Cost Estimate information."]
[{"$nulls":3},"Investment Reports",{"$nulls":9},"A professional investment report that summarizes your Rehab Financial analysis."]
[{"$nulls":3},"All Project Cost Report",{"$nulls":9},"A detailed report itemizing every project cost to purchase, rehab, hold & sell the property."]
[{"$nulls":3},"Lender Funding Reports",{"$nulls":9},"A professional lending report that can be presented to lenders and investors."]
[{"$nulls":3},"Homeowner Offer Report",{"$nulls":9},"A pre-built offer report that can be given to a Homeowner or Seller of a property."]
[{"$nulls":3},"Comparables Sales Report",{"$nulls":9},"A report that summarizes you compare sales data and information for Comparable properties."]
[{"$nulls":3},"Rental Reports"]
[{"$nulls":3},"Rental Reports",{"$nulls":9},"A rental pro-forma report that summarizes the Rental Income, Operating Expense & Cash Flow."]
[{"$nulls":3},"Wholesaling Reports"]
[{"$nulls":3},"Wholesaling Reports",{"$nulls":9},"A wholesale report that can be marketed to your rehab wholesale buyers list."]
[]
[]
[null,null,"Project Management Reports"]
[]
[]
[{"$nulls":3},"Project Management Reports"]
[{"$nulls":3},"Contractor Prequalification Form",{"$nulls":9},"A report to pre-qualify contractors, subcontractors or vendors work history and experience."]
[{"$nulls":3},"Scope of Work Report",{"$nulls":9},"A detailed Scope of Work report to solicit proposals from your contractors."]
[{"$nulls":3},"Bid Form",{"$nulls":9},"A Bid Form for your contractors to fill out and provide their Bid Proposals."]
[{"$nulls":3},"Contract Agreement",{"$nulls":9},"A Contract Agreement and Payment Schedule to layout the Contract terms with your Contractor."]
[{"$nulls":3},"Rehab Checklist",{"$nulls":9},"A 13-step checklist to help manage your Rehab Project from Start to Finish."]
[{"$nulls":3},"Shopping List Report",{"$nulls":9},"A shopping list for purchasing and managing your project materials."]
[{"$nulls":3},"Project Task List",{"$nulls":9},"A project task list to manage and check-off completed project tasks."]
[{"$nulls":3},"Punchlist Report",{"$nulls":9},"A punchlist that can be used to help close-out your project & prepare for listing."]
[{"$nulls":3},"Lien Waiver Report",{"$nulls":9},"A lien waiver report for your contractors to waive all liability for liens on the project."]
[{"$nulls":3},"For Sale Flyer",{"$nulls":9},"A flyer that can be used to market your property to home buyers."]
[{"$nulls":3},"Vendor Reports"]
[{"$nulls":3},"Vendor Contact List",{"$nulls":9},"A contact list that provides your Vendor Contact information (contact person, email & phone #)"]
[{"$nulls":3},"Vendor Tax and Insurance Report",{"$nulls":9},"A vendor report that summarizes your project Vendor Tax & Insurance information."]
[]
[]
[null,null,"Accounting Reports"]
[]
[]
[{"$nulls":3},"Budgeting Reports"]
[{"$nulls":3},"Project Budget Report",{"$nulls":9},"A budget report that summarizes your overall Project Budget from the Project Budgeter."]
[{"$nulls":3},"Financial Projections Report",{"$nulls":9},"A financial report that summarizes your budget, spent to date & forecasted project costs."]
[{"$nulls":3},"Final Profit Statement",{"$nulls":9},"A financial report that summarizes your total investment, resale value & final profit."]
[{"$nulls":3},"Project Portfolio Report",{"$nulls":9},"A project portfolio report that showcases your project photos and financial results."]
[{"$nulls":3},"Expense Reports"]
[{"$nulls":3},"Summary Report",{"$nulls":9},"An expense report that summarizes all of your Project Expenses."]
[{"$nulls":3},"Expense by Scope",{"$nulls":9},"An expense report that details every expense by each Scope of Work on the project."]
[{"$nulls":3},"Expense by Vendor",{"$nulls":9},"An expense report that details every expense by each Vendor on the project."]
[{"$nulls":3},"Expense by Account",{"$nulls":9},"An expense report that details every expense by each Financial Account on the project."]
[{"$nulls":3},"Vendor Reports"]
[{"$nulls":3},"Vendor Contact List",{"$nulls":9},"A contact list that provides your Vendor Contact information (contact person, email & phone #)"]
[{"$nulls":3},"Vendor 1099 Report",{"$nulls":9},"A vendor report that provides Vendor Compensation & Tax information for Vendor 1099s."]
[]
[null,null,"© 2018 by Houseflippingspreadsheet.com. All rights reserved"]

{"sheet":"INSPECTION CHECKLIST","index":30,"n_rows":194,"n_cols":63,"rows_kept":194,"hidden":true,"merged":[[1,1,1,5],[3,9,6,51],[7,30,8,51],[10,6,10,29],[10,30,10,54],[11,6,11,11],[11,12,11,29],[11,30,11,40],[11,41,11,54],[12,6,12,11],[12,12,12,29],[12,30,12,39],[12,41,12,54],[13,6,13,10],[13,11,13,14],[13,15,13,18],[13,19,13,20],[13,21,13,24],[13,25,13,26],[13,30,13,54],[14,6,14,29],[14,30,14,54],[15,6,16,14],[15,15,16,17],[15,18,16,19],[15,20,16,29],[15,30,16,38],[15,39,16,41],[15,42,16,43],[15,44,16,54],[17,6,17,14],[17,15,17,17],[17,18,17,19],[17,20,35,29],[17,30,17,38],[17,39,17,41],[17,42,17,43],[17,44,35,54],[18,6,18,14],[18,15,18,17],[18,18,18,19],[18,30,18,38],[18,39,18,41],[18,42,18,43],[19,6,19,14],[19,15,19,17],[19,18,19,19],[19,30,19,38],[19,39,19,41],[19,42,19,43],[20,6,20,14],[20,15,20,17],[20,18,20,19],[20,30,20,38],[20,39,20,41],[20,42,20,43],[21,6,21,14],[21,15,21,17],[21,18,21,19],[21,30,21,38],[21,39,21,41],[21,42,21,43],[22,6,22,14],[22,15,22,17],[22,18,22,19],[22,30,22,38],[22,39,22,41],[22,42,22,43],[23,6,23,14],[23,15,23,17],[23,18,23,19],[23,30,23,38],[23,39,23,41],[23,42,23,43],[24,6,24,14],[24,15,24,17],[24,18,24,19],[24,30,24,38],[24,39,24,41],[24,42,24,43],[25,6,25,14],[25,15,25,17],[25,18,25,19],[25,30,25,38],[25,39,25,41],[25,42,25,43],[26,6,26,14],[26,15,26,17],[26,18,26,19],[26,30,26,38],[26,39,26,41],[26,42,26,43],[27,6,27,14],[27,15,27,17],[27,18,27,19],[27,30,27,38],[27,39,27,41],[27,42,27,43],[28,6,28,14],[28,15,28,17],[28,18,28,19],[28,30,28,38],[28,39,28,41],[28,42,28,43],[29,6,29,14],[29,15,29,17],[29,18,29,19],[29,30,29,38],[29,39,29,41],[29,42,29,43],[30,6,30,14],[30,15,30,17],[30,18,30,19],[30,30,30,38],[30,39,30,41],[30,42,30,43],[31,6,31,14],[31,15,31,17],[31,18,31,19],[31,30,31,38],[31,39,31,41],[31,42,31,43],[32,6,32,14],[32,15,32,17],[32,18,32,19],[32,30,32,38],[32,39,32,41],[32,42,32,43],[33,6,33,14],[33,15,33,17],[33,18,33,19],[33,30,33,38],[33,39,33,41],[33,42,33,43],[34,6,34,14],[34,15,34,17],[34,18,34,19],[34,30,34,38],[34,39,34,41],[34,42,34,43],[35,6,35,14],[35,15,35,17],[35,18,35,19],[35,30,35,38],[35,39,35,41],[35,42,35,43],[36,6,36,54],[37,6,38,14],[37,15,38,16],[37,17,37,43],[37,44,38,54],[38,17,38,19],[38,20,38,22],[38,26,38,28],[38,29,38,31],[38,32,38,34],[38,35,38,37],[38,38,38,40],[38,41,38,43],[39,6,39,14],[39,15,39,16],[39,17,39,19],[39,20,39,22],[39,23,39,25],[39,26,39,28],[39,29,39,31],[39,32,39,34],[39,35,39,37],[39,38,39,40],[39,41,39,43],[39,44,54,54],[40,6,40,14],[40,15,40,16],[40,17,40,19],[40,20,40,22],[40,23,40,25],[40,26,40,28],[40,29,40,31],[40,32,40,34],[40,35,40,37],[40,38,40,40],[40,41,40,43],[41,6,41,14],[41,15,41,16],[41,17,41,19],[41,20,41,22],[41,23,41,25],[41,26,41,28],[41,29,41,31],[41,32,41,34],[41,35,41,37],[41,38,41,40],[41,41,41,43],[42,6,42,14],[42,15,42,16],[42,17,42,19],[42,20,42,22],[42,23,42,25],[42,26,42,28],[42,29,42,31],[42,32,42,34],[42,35,42,37],[42,38,42,40],[42,41,42,43],[43,6,43,14],[43,15,43,16],[43,17,43,19],[43,20,43,22],[43,23,43,25],[43,26,43,28],[43,29,43,31],[43,32,43,34],[43,35,43,37],[43,38,43,40],[43,41,43,43],[44,6,44,14],[44,15,44,16],[44,17,44,19],[44,20,44,22],[44,23,44,25],[44,26,44,28],[44,29,44,31],[44,32,44,34],[44,35,44,37],[44,38,44,40],[44,41,44,43],[45,6,45,14],[45,15,45,16],[45,17,45,19],[45,20,45,22],[45,23,45,25],[45,26,45,28],[45,29,45,31],[45,32,45,34],[45,35,45,37],[45,38,45,40],[45,41,45,43],[46,6,46,14],[46,15,46,16],[46,17,46,19],[46,20,46,22],[46,23,46,25],[46,26,46,28],[46,29,46,31],[46,32,46,34],[46,35,46,37],[46,38,46,40],[46,41,46,43],[47,6,47,14],[47,15,47,16],[47,17,47,19],[47,20,47,22],[47,23,47,25],[47,26,47,28],[47,29,47,31],[47,32,47,34],[47,35,47,37],[47,38,47,40],[47,41,47,43],[48,6,48,14],[48,15,48,16],[48,17,48,19],[48,20,48,22],[48,23,48,25],[48,26,48,28],[48,29,48,31],[48,32,48,34],[48,35,48,37],[48,38,48,40],[48,41,48,43],[49,6,49,14],[49,15,49,16],[49,17,49,19],[49,20,49,22],[49,23,49,25],[49,26,49,28],[49,29,49,31],[49,32,49,34],[49,35,49,37],[49,38,49,40],[49,41,49,43],[50,6,50,14],[50,15,50,16],[50,17,50,19],[50,20,50,22],[50,23,50,25],[50,26,50,28],[50,29,50,31],[50,32,50,34],[50,35,50,37],[50,38,50,40],[50,41,50,43],[51,6,51,14],[51,15,51,16],[51,17,51,19],[51,20,51,22],[51,23,51,25],[51,26,51,28],[51,29,51,31],[51,32,51,34],[51,35,51,37],[51,38,51,40],[51,41,51,43],[52,6,52,14],[52,15,52,16],[52,17,52,19],[52,20,52,22],[52,23,52,25],[52,26,52,28],[52,29,52,31],[52,32,52,34],[52,35,52,37],[52,38,52,40],[52,41,52,43],[53,6,53,14],[53,15,53,16],[53,17,53,19],[53,20,53,22],[53,23,53,25],[53,26,53,28],[53,29,53,31],[53,32,53,34],[53,35,53,37],[53,38,53,40],[53,41,53,43],[54,6,54,14],[54,15,54,16],[54,17,54,19],[54,20,54,22],[54,23,54,25],[54,26,54,28],[54,29,54,31],[54,32,54,34],[54,35,54,37],[54,38,54,40],[54,41,54,43],[55,6,55,41],[55,42,55,54],[56,6,57,14],[56,15,57,16],[56,17,56,31],[56,32,57,41],[56,42,57,51],[56,52,57,54],[57,17,57,19],[57,20,57,22],[57,23,57,25],[57,26,57,28],[57,29,57,31],[58,6,58,14],[58,15,58,16],[58,17,58,19],[58,20,58,22],[58,23,58,25],[58,26,58,28],[58,29,58,31],[58,32,76,41],[58,42,58,54],[59,6,59,14],[59,15,59,16],[59,17,59,19],[59,20,59,22],[59,23,59,25],[59,26,59,28],[59,29,59,31],[59,42,59,51],[59,52,59,54],[60,6,60,14],[60,15,60,16],[60,17,60,19],[60,20,60,22],[60,23,60,25],[60,26,60,28],[60,29,60,31],[60,42,60,51],[60,52,60,54],[61,6,61,14],[61,15,61,16],[61,17,61,19],[61,20,61,22],[61,23,61,25],[61,26,61,28],[61,29,61,31],[61,42,61,51],[61,52,61,54],[62,6,62,14],[62,15,62,16],[62,17,62,19],[62,20,62,22],[62,23,62,25],[62,26,62,28],[62,29,62,31],[62,42,62,51],[62,52,62,54],[63,6,63,14],[63,15,63,16],[63,17,63,19],[63,20,63,22],[63,23,63,25],[63,26,63,28],[63,29,63,31],[63,42,63,54],[64,6,64,14],[64,15,64,16],[64,17,64,19],[64,20,64,22],[64,23,64,25],[64,26,64,28],[64,29,64,31],[64,42,64,51],[64,52,64,54],[65,6,65,14],[65,15,65,16],[65,17,65,19],[65,20,65,22],[65,23,65,25],[65,26,65,28],[65,29,65,31],[65,42,65,51],[65,52,65,54],[66,6,66,14],[66,15,66,16],[66,17,66,19],[66,20,66,22],[66,23,66,25],[66,26,66,28],[66,29,66,31],[66,42,66,51],[66,52,66,54],[67,6,67,14],[67,15,67,16],[67,17,67,19],[67,20,67,22],[67,23,67,25],[67,26,67,28],[67,29,67,31],[67,42,67,51],[67,52,67,54],[68,6,68,14],[68,15,68,16],[68,17,68,19],[68,20,68,22],[68,23,68,25],[68,26,68,28],[68,29,68,31],[68,42,68,51],[68,52,68,54],[69,6,69,14],[69,15,69,16],[69,17,69,19],[69,20,69,22],[69,23,69,25],[69,26,69,28],[69,29,69,31],[69,42,69,54],[70,6,70,14],[70,15,70,16],[70,17,70,19],[70,20,70,22],[70,23,70,25],[70,26,70,28],[70,29,70,31],[70,42,70,51],[70,52,70,54],[71,6,71,14],[71,15,71,16],[71,17,71,19],[71,20,71,22],[71,23,71,25],[71,26,71,28],[71,29,71,31],[71,42,71,51],[71,52,71,54],[72,6,72,14],[72,15,72,16],[72,17,72,19],[72,20,72,22],[72,23,72,25],[72,26,72,28],[72,29,72,31],[72,42,72,51],[72,52,72,54],[73,6,73,14],[73,15,73,16],[73,17,73,19],[73,20,73,22],[73,23,73,25],[73,26,73,28],[73,29,73,31],[73,42,73,51],[73,52,73,54],[74,6,74,14],[74,15,74,16],[74,17,74,19],[74,20,74,22],[74,23,74,25],[74,26,74,28],[74,29,74,31],[74,42,76,54],[75,6,75,14],[75,15,75,16],[75,17,75,19],[75,20,75,22],[75,23,75,25],[75,26,75,28],[75,29,75,31],[76,6,76,14],[76,15,76,16],[76,17,76,19],[76,20,76,22],[76,23,76,25],[76,26,76,28],[76,29,76,31],[77,6,77,54],[78,6,78,19],[78,20,78,26],[78,27,78,33],[78,34,78,41],[78,42,78,54],[79,6,79,19],[79,20,79,26],[79,27,79,33],[79,34,79,41],[79,42,79,54],[80,6,80,19],[80,20,80,26],[80,27,80,33],[80,34,80,41],[80,42,80,54],[81,6,81,19],[81,20,81,26],[81,27,81,33],[81,34,81,41],[81,42,81,54],[82,6,82,19],[82,20,82,26],[82,27,82,33],[82,34,82,41],[82,42,82,54],[83,6,83,19],[83,20,83,26],[83,27,83,33],[83,34,83,41],[83,42,83,54],[84,6,84,19],[84,20,84,26],[84,27,84,33],[84,34,84,41],[84,42,84,54],[85,6,85,19],[85,20,85,26],[85,27,85,33],[85,34,85,41],[85,42,85,54],[86,6,86,19],[86,20,86,26],[86,27,86,33],[86,34,86,41],[86,42,86,54],[87,6,87,19],[87,20,87,26],[87,27,87,33],[87,34,87,41],[87,42,87,54],[88,6,88,19],[88,20,88,26],[88,27,88,33],[88,34,88,41],[88,42,88,54],[89,6,89,19],[89,20,89,26],[89,27,89,33],[89,34,89,41],[89,42,89,54],[90,6,90,19],[90,20,90,26],[90,27,90,33],[90,34,90,41],[90,42,90,54],[91,6,91,19],[91,20,91,26],[91,27,91,33],[91,34,91,41],[91,42,91,54],[92,6,92,19],[92,20,92,26],[92,27,92,33],[92,34,92,41],[92,42,92,54],[93,6,93,19],[93,20,93,26],[93,27,93,33],[93,34,93,41],[93,42,93,54],[94,6,94,19],[94,20,94,26],[94,27,94,33],[94,34,94,41],[94,42,94,54],[95,6,95,19],[95,20,95,26],[95,27,95,33],[95,34,95,41],[95,42,95,54],[96,6,96,19],[96,20,96,26],[96,27,96,33],[96,34,96,41],[96,42,96,54],[97,6,97,19],[97,20,97,26],[97,27,97,33],[97,34,97,41],[97,42,97,54],[98,6,98,19],[98,20,98,26],[98,27,98,33],[98,34,98,41],[98,42,98,54],[99,6,99,19],[99,20,99,26],[99,27,99,33],[99,34,99,41],[99,42,99,54],[100,6,100,19],[100,20,100,26],[100,27,100,33],[100,34,100,41],[100,42,100,54],[101,6,101,19],[101,20,101,26],[101,27,101,33],[101,34,101,41],[101,42,101,54],[102,6,102,19],[102,20,102,26],[102,27,102,33],[102,34,102,41],[102,42,102,54],[103,6,104,30],[103,31,104,54],[105,6,106,19],[105,23,106,28],[105,31,106,44],[105,45,106,54],[107,6,108,19],[107,23,108,28],[107,31,108,44],[107,45,108,54],[109,6,109,19],[109,23,109,28],[109,31,109,44],[109,45,109,54],[110,6,110,19],[110,23,110,28],[110,31,110,44],[110,45,110,54],[111,23,112,28],[112,6,112,18],[112,31,112,43],[112,45,112,54],[113,6,113,18],[113,19,113,21],[113,23,113,28],[113,31,113,43],[113,45,113,54],[114,23,115,28],[115,6,115,18],[115,31,115,43],[115,45,115,54],[116,6,117,18],[116,23,117,28],[116,31,117,43],[116,45,117,54],[117,19,117,20],[118,6,118,22],[118,23,118,28],[118,31,118,43],[118,45,118,54],[119,6,120,54],[121,7,122,10],[121,11,122,20],[121,24,122,29],[121,31,122,34],[121,35,122,44],[121,48,122,53],[123,7,124,10],[123,11,124,20],[123,24,124,29],[123,31,124,34],[123,35,124,44],[123,48,124,53],[125,7,126,10],[125,11,126,20],[125,24,126,29],[125,31,126,34],[125,35,126,44],[125,48,126,53],[128,6,129,16],[192,15,192,16],[192,25,192,26],[192,35,192,36],[192,45,192,46],[193,6,194,54]]}
[{"$nulls":60},"Page 1","Page 2","Page 3"]
[null,"INSPECTION CHECKLIST",{"$nulls":58},"Shown","Shown","Shown"]
[]
[{"$nulls":9},"The Inspection Checklist is a printer-friendly checklist of common repair items that will help establish the Scope of Work for the project  and create a detailed Repair Cost Estimate."]
[]
[]
[]
[{"$nulls":30},"Inspection Checklist Tutorial"]
[]
[]
[{"$nulls":6},"PROPERTY FEATURES",{"$nulls":23},"STRUCTURAL REPAIRS"]
[{"$nulls":6},"Street Address:",{"$nulls":5},{"$f":"T(Street_Address)","v":"1234 Main St"},{"$nulls":17},"Cracks?:   YES  /  NO",{"$nulls":10},"Moisture?:  YES  /  NO"]
[{"$nulls":6},"City/State/Zip:",{"$nulls":5},{"$f":"T(City_State_Zip)","v":"Kansas City, MO 64116"},{"$nulls":17},"Settling?:    YES  /   NO",{"$nulls":10},"Bowing Walls:   YES   /   NO"]
[{"$nulls":6},"Square Feet:",{"$nulls":4},{"$f":"Square_Feet","v":1500},{"$nulls":3},"# of Beds:",{"$nulls":3},{"$f":"Beds","v":3},null,"Baths:",{"$nulls":3},{"$f":"Baths","v":2},{"$nulls":4},"Piers:  SOG 8ft oc  |  1-Story 7ft oc  |  2-Story 6ft oc | Masonry  5ft oc + 2 piers @ corners"]
[{"$nulls":6},"EXTERIOR PROPERTY FEATURES/REPAIRS"]
[{"$nulls":6},"Repair/Replace",{"$nulls":8},"QTY",null,null,"Unit",null,"Exterior Notes:",{"$nulls":9},"Repair/Replace",{"$nulls":8},"QTY",null,null,"Unit",null,"Kitchen Notes:"]
[]
[{"$nulls":6},"Painting",{"$nulls":11},"Sq ft",{"$nulls":11},"Base Cabinets",{"$nulls":11},"lf"]
[{"$nulls":6},"Wood siding",{"$nulls":11},"Sq ft",{"$nulls":11},"Upper Cabinets",{"$nulls":11},"lf"]
[{"$nulls":6},"Wood trim",{"$nulls":11},"lf",{"$nulls":11},"Countertop",{"$nulls":11},"Sq ft"]
[{"$nulls":6},"Vinyl siding",{"$nulls":11},"Sq ft",{"$nulls":11},"Backsplash",{"$nulls":11},"Sq ft"]
[{"$nulls":6},"Brick/stone ",{"$nulls":11},"Sq ft",{"$nulls":11},"Tile flooring",{"$nulls":11},"Sq ft"]
[{"$nulls":6},"Roofing",{"$nulls":11},"SQ",{"$nulls":11},"Hardwood flooring",{"$nulls":11},"Sq ft"]
[{"$nulls":6},"Gutters/downspouts",{"$nulls":11},"lf",{"$nulls":11},"Paint",{"$nulls":11},"Sq ft"]
[{"$nulls":6},"Garage Doors",{"$nulls":11},"ea",{"$nulls":11},"Wood trim",{"$nulls":11},"lf"]
[{"$nulls":6},"Entry door",{"$nulls":11},"ea",{"$nulls":11},"Sink",{"$nulls":11},"ea"]
[{"$nulls":6},"Patio door",{"$nulls":11},"ea",{"$nulls":11},"Faucet Fixture",{"$nulls":11},"ea"]
[{"$nulls":6},"Windows",{"$nulls":11},"ea",{"$nulls":11},"Garbage Disposal",{"$nulls":11},"ea"]
[{"$nulls":6},"Shutters",{"$nulls":11},"ea",{"$nulls":11},"Range",{"$nulls":11},"ea"]
[{"$nulls":6},"Deck",{"$nulls":11},"Sq ft",{"$nulls":11},"Refrigerator",{"$nulls":11},"ea"]
[{"$nulls":6},"Fence",{"$nulls":11},"lf",{"$nulls":11},"Dishwasher",{"$nulls":11},"ea"]
[{"$nulls":6},"Concrete driveway",{"$nulls":11},"Sq ft",{"$nulls":11},"Microwave/Range Hood",{"$nulls":11},"ea"]
[{"$nulls":6},"Concrete sidewalk",{"$nulls":11},"Sq ft",{"$nulls":11},"Duct vent",{"$nulls":11},"ea"]
[{"$nulls":6},"Shed",{"$nulls":11},"ea",{"$nulls":11},"GFI Plugs/Outlets",{"$nulls":11},"ea"]
[{"$nulls":6},"Mulch",{"$nulls":11},"Sq ft",{"$nulls":11},"Light fixtures",{"$nulls":11},"ea"]
[{"$nulls":6},"Tree removal/trim",{"$nulls":11},"ea",{"$nulls":11},"Can lighting",{"$nulls":11},"ea"]
[{"$nulls":6},"COMMON ROOM FEATURES/REPAIRS"]
[{"$nulls":6},"Repair/Replace",{"$nulls":8},"Unit",null,"Fill in Quantity Below:",{"$nulls":26},"Notes:"]
[{"$nulls":17},"Master",null,null,"Bed 1",{"$nulls":3},"Bed 2",null,"Bed 3",null,null,"Living ",null,null,"Dining ",null,null,"Other 1",null,null,"Other 2",null,null,"Total"]
[{"$nulls":6},"Carpet",{"$nulls":8},"Sq ft"]
[{"$nulls":6},"Tile flooring",{"$nulls":8},"Sq ft"]
[{"$nulls":6},"Hardwood",{"$nulls":8},"Sq ft"]
[{"$nulls":6},"Vinyl flooring",{"$nulls":8},"Sq ft"]
[{"$nulls":6},"Wallpaper",{"$nulls":8},"Sq ft"]
[{"$nulls":6},"Paint",{"$nulls":8},"Sq ft"]
[{"$nulls":6},"Doors",{"$nulls":8},"ea"]
[{"$nulls":6},"Door hardware",{"$nulls":8},"ea"]
[{"$nulls":6},"Closet Doors",{"$nulls":8},"ea"]
[{"$nulls":6},"Closet Shelving",{"$nulls":8},"lf"]
[{"$nulls":6},"Crown Molding",{"$nulls":8},"lf"]
[{"$nulls":6},"Wood Trim",{"$nulls":8},"lf"]
[{"$nulls":6},"Duct Vents",{"$nulls":8},"ea"]
[{"$nulls":6},"Can light",{"$nulls":8},"ea"]
[{"$nulls":6},"Dome light",{"$nulls":8},"ea"]
[{"$nulls":6},"Fan Lights",{"$nulls":8},"ea"]
[{"$nulls":6},"BATHROOM FEATURES/REPAIRS",{"$nulls":35},"MEP SYSTEMS"]
[{"$nulls":6},"Repair/Replace",{"$nulls":8},"Unit",null,"Fill in Quantity Below:",{"$nulls":14},"Bathroom Notes",{"$nulls":9},"System",{"$nulls":9},"Replace:"]
[{"$nulls":17},"Master",null,null,"Bath 1",null,null,"Bath 2",null,null,"Bath 3",null,null,"Total"]
[{"$nulls":6},"Subfloor",{"$nulls":8},"Sq ft",{"$nulls":26},"HVAC SYSTEM"]
[{"$nulls":6},"Wall tile",{"$nulls":8},"Sq ft",{"$nulls":26},"Air conditioner unit",{"$nulls":9},"YES  /  NO"]
[{"$nulls":6},"Floor tile",{"$nulls":8},"Sq ft",{"$nulls":26},"Furnace:     GAS     /    ELECTRIC",{"$nulls":9},"YES  /  NO"]
[{"$nulls":6},"Paint",{"$nulls":8},"Sq ft",{"$nulls":26},"Duct work modification req'd:",{"$nulls":9},"YES  /  NO"]
[{"$nulls":6},"Vanity cabinet",{"$nulls":8},"lf",{"$nulls":26},"Asbestos wrapping on duct?",{"$nulls":9},"YES  /  NO"]
[{"$nulls":6},"Vanity countertop",{"$nulls":8},"Sq ft",{"$nulls":26},"PLUMBING SYSTEM"]
[{"$nulls":6},"Mirror",{"$nulls":8},"ea",{"$nulls":26},"Water Heater:     GAS /  ELEC",{"$nulls":9},"YES  /  NO"]
[{"$nulls":6},"Faucet",{"$nulls":8},"ea",{"$nulls":26},"Piping:    COPP /  GALV   /  LEAD",{"$nulls":9},"YES  /  NO"]
[{"$nulls":6},"Doors",{"$nulls":8},"ea",{"$nulls":26},"Water supply line work:",{"$nulls":9},"YES  /  NO"]
[{"$nulls":6},"Door hardware",{"$nulls":8},"ea",{"$nulls":26},"Sanitary line work:",{"$nulls":9},"YES  /  NO"]
[{"$nulls":6},"Wood trim",{"$nulls":8},"ea",{"$nulls":26},"Asbestos insulation on piping",{"$nulls":9},"YES  /  NO"]
[{"$nulls":6},"Duct Vents",{"$nulls":8},"Lf",{"$nulls":26},"ELECTRICAL SYSTEM"]
[{"$nulls":6},"Shower pan",{"$nulls":8},"ea",{"$nulls":26},"Electrical Service:    ",{"$nulls":9},"YES  /  NO"]
[{"$nulls":6},"Bathtub",{"$nulls":8},"ea",{"$nulls":26},"Electrical Panel:       ",{"$nulls":9},"YES  /  NO"]
[{"$nulls":6},"Shower/tub faucet",{"$nulls":8},"ea",{"$nulls":26},"Wiring:    COPP  / ALUM / KNOB",{"$nulls":9},"YES  /  NO"]
[{"$nulls":6},"Toilet",{"$nulls":8},"ea",{"$nulls":26},"Cable Service Work:",{"$nulls":9},"YES  /  NO"]
[{"$nulls":6},"GFI",{"$nulls":8},"ea",{"$nulls":26},"Notes:"]
[{"$nulls":6},"Vanity light",{"$nulls":8},"ea"]
[{"$nulls":6},"Exhaust fan",{"$nulls":8},"ea"]
[{"$nulls":6},"PRELIMINARY DEAL ANALYSIS"]
[{"$nulls":6},"General Conditions",{"$nulls":13},{"$f":"'ANALYSIS DATABASE'!C75","v":{"v":750,"d":"$750"}},{"$nulls":13},{"$f":"IF(AB79=0,U79,U79+AB79)","v":{"v":750,"d":"$750"}}]
[{"$nulls":6},"Demolition",{"$nulls":13},{"$f":"'ANALYSIS DATABASE'!C76","v":{"v":1000,"d":"$1,000"}},{"$nulls":13},{"$f":"IF(AB80=0,U80,U80+AB80)","v":{"v":1000,"d":"$1,000"}}]
[{"$nulls":6},"Structural Improvements",{"$nulls":13},{"$f":"'ANALYSIS DATABASE'!C77","v":{"v":0,"d":"$0"}},{"$nulls":13},{"$f":"IF(AB81=0,U81,U81+AB81)","v":{"v":0,"d":"$0"}}]
[{"$nulls":6},"Concrete/Flatwork",{"$nulls":13},{"$f":"'ANALYSIS DATABASE'!C78","v":{"v":0,"d":"$0"}},{"$nulls":13},{"$f":"IF(AB82=0,U82,U82+AB82)","v":{"v":0,"d":"$0"}}]
[{"$nulls":6},"Masonry",{"$nulls":13},{"$f":"'ANALYSIS DATABASE'!C79","v":{"v":0,"d":"$0"}},{"$nulls":13},{"v":0,"d":"$0"}]
[{"$nulls":6},"Siding",{"$nulls":13},{"$f":"'ANALYSIS DATABASE'!C80","v":{"v":0,"d":"$0"}},{"$nulls":13},{"v":0,"d":"$0"}]
[{"$nulls":6},"Decking",{"$nulls":13},{"$f":"'ANALYSIS DATABASE'!C81","v":{"v":5000,"d":"$5,000"}},{"$nulls":13},{"v":5000,"d":"$5,000"}]
[{"$nulls":6},"Roofing",{"$nulls":13},{"$f":"'ANALYSIS DATABASE'!C82","v":{"v":5500,"d":"$5,500"}},{"$nulls":13},{"v":5500,"d":"$5,500"}]
[{"$nulls":6},"Doors & Windows",{"$nulls":13},{"$f":"'ANALYSIS DATABASE'!C83","v":{"v":2000,"d":"$2,000"}},{"$nulls":13},{"v":2000,"d":"$2,000"}]
[{"$nulls":6},"Garage Doors",{"$nulls":13},{"$f":"'ANALYSIS DATABASE'!C84","v":{"v":1250,"d":"$1,250"}},{"$nulls":13},{"v":1250,"d":"$1,250"}]
[{"$nulls":6},"Landscaping",{"$nulls":13},{"$f":"'ANALYSIS DATABASE'!C85","v":{"v":500,"d":"$500"}},{"$nulls":13},{"v":500,"d":"$500"}]
[{"$nulls":6},"Miscellaneous Exterior Improvements",{"$nulls":13},{"$f":"'ANALYSIS DATABASE'!C86","v":{"v":0,"d":"$0"}},{"$nulls":13},{"v":0,"d":"$0"}]
[{"$nulls":6},"Framing and Drywall",{"$nulls":13},{"$f":"'ANALYSIS DATABASE'!C87","v":{"v":500,"d":"$500"}},{"$nulls":13},{"v":500,"d":"$500"}]
[{"$nulls":6},"Cabinets & Countertops",{"$nulls":13},{"$f":"'ANALYSIS DATABASE'!C88","v":{"v":7500,"d":"$7,500"}},{"$nulls":13},{"v":7500,"d":"$7,500"}]
[{"$nulls":6},"Doors & Trim",{"$nulls":13},{"$f":"'ANALYSIS DATABASE'!C89","v":{"v":3000,"d":"$3,000"}},{"$nulls":13},{"v":3000,"d":"$3,000"}]
[{"$nulls":6},"Carpet and Resilient Flooring",{"$nulls":13},{"$f":"'ANALYSIS DATABASE'!C90","v":{"v":3000,"d":"$3,000"}},{"$nulls":13},{"v":3000,"d":"$3,000"}]
[{"$nulls":6},"Hardwood Flooring",{"$nulls":13},{"$f":"'ANALYSIS DATABASE'!C91","v":{"v":2500,"d":"$2,500"}},{"$nulls":13},{"v":2500,"d":"$2,500"}]
[{"$nulls":6},"Tiling",{"$nulls":13},{"$f":"'ANALYSIS DATABASE'!C92","v":{"v":3000,"d":"$3,000"}},{"$nulls":13},{"v":3000,"d":"$3,000"}]
[{"$nulls":6},"Painting",{"$nulls":13},{"$f":"'ANALYSIS DATABASE'!C93","v":{"v":5000,"d":"$5,000"}},{"$nulls":13},{"v":5000,"d":"$5,000"}]
[{"$nulls":6},"Appliances",{"$nulls":13},{"$f":"'ANALYSIS DATABASE'!C94","v":{"v":2500,"d":"$2,500"}},{"$nulls":13},{"v":2500,"d":"$2,500"}]
[{"$nulls":6},"Plumbing",{"$nulls":13},{"$f":"'ANALYSIS DATABASE'!C95","v":{"v":3000,"d":"$3,000"}},{"$nulls":13},{"v":3000,"d":"$3,000"}]
[{"$nulls":6},"HVAC",{"$nulls":13},{"$f":"'ANALYSIS DATABASE'!C96","v":{"v":250,"d":"$250"}},{"$nulls":13},{"v":250,"d":"$250"}]
[{"$nulls":6},"Electrical",{"$nulls":13},{"$f":"'ANALYSIS DATABASE'!C97","v":{"v":3500,"d":"$3,500"}},{"$nulls":13},{"v":3500,"d":"$3,500"}]
[{"$nulls":6},"Staging and Furnishings",{"$nulls":13},{"$f":"'ANALYSIS DATABASE'!C98","v":{"v":0,"d":"$0"}},{"$nulls":13},{"v":0,"d":"$0"}]
[{"$nulls":6},"TOTAL REPAIR COSTS",{"$nulls":13},{"$f":"SUM(U79:AA102)","v":{"v":49750,"d":"$49,750"}},{"$nulls":6},{"$f":"IF(SUM(AB79:AH102)=0,\"\",(SUM(AB79:AH102)))","v":""},{"$nulls":6},{"$f":"IF(SUM(AI79:AP102)=0,\"\",SUM(AI79:AP102))","v":{"v":49750,"d":"$49,750"}}]
[{"$nulls":6},"Preliminary Maximum Purchase Price Analysis",{"$nulls":24},"Post Walkthrough MPP Analysis"]
[]
[{"$nulls":6},"Potential Sales Price",{"$nulls":16},{"$f":"After_Repair_Value_Result","v":{"v":165000,"d":"$165,000"}},{"$nulls":7},"Potential Sales Price"]
[]
[{"$nulls":6},"Buying Costs",{"$nulls":16},{"$f":"Buying_Costs_Result","v":{"v":1000,"d":"$1,000"}},{"$nulls":7},"Buying Costs"]
[]
[{"$nulls":6},"Holding Costs",{"$nulls":16},{"$f":"Holding_Costs_Result","v":{"v":3000,"d":"$3,000"}},{"$nulls":7},"Holding Costs"]
[{"$nulls":6},"Selling Costs",{"$nulls":16},{"$f":"Selling_Costs_Result","v":{"v":10850,"d":"$10,850"}},{"$nulls":7},"Selling Costs"]
[{"$nulls":23},{"$f":"Raw_Repair_Costs_Result","v":{"v":49750,"d":"$49,750"}}]
[{"$nulls":6},"Repair Costs",{"$nulls":24},"Repair Costs"]
[{"$nulls":6},"Adders Result",{"$nulls":12},{"$f":"Adders_Percentage","v":{"v":0.27765,"d":"28%"}},{"$nulls":3},{"$f":"Adders_Result","v":{"v":13813.0875,"d":"$13,813"}},{"$nulls":7},"Repair Cost Contingency"]
[{"$nulls":23},{"$f":"Total_Profit_Result","v":{"v":24750,"d":"$24,750"}}]
[{"$nulls":6},"Desired Profit",{"$nulls":24},"Desired Profit"]
[{"$nulls":6},"Maximum Purchase Price",{"$nulls":16},{"$f":"Purchase_Price_Result","v":{"v":61836.912500000006,"d":"$61,837"}},{"$nulls":7},"Maximum Purchase Price"]
[]
[{"$nulls":6},"Net to Owner (-6% Sales Comm)",{"$nulls":16},{"$f":"X117-(X117*0.06)","v":{"v":58126.69775000001,"d":"$58,127"}},{"$nulls":7},"Net to Owner"]
[{"$nulls":6},"OFFER TRACKING"]
[]
[{"$nulls":7},"Offer 1:",{"$nulls":23},"Counter 1:"]
[{"$nulls":23},"Date:",{"$nulls":23},"Date:"]
[{"$nulls":7},"Offer 2:",{"$nulls":23},"Counter 2:"]
[{"$nulls":23},"Date:",{"$nulls":23},"Date:"]
[{"$nulls":7},"Offer 3:",{"$nulls":23},"Counter 3:"]
[{"$nulls":23},"Date:",{"$nulls":23},"Date:"]
[]
[{"$nulls":6},"NOTES:"]
{"$rows_empty":8}
[{"$nulls":6},55]
[]
[]
[]
[]
[{"$nulls":6},50]
[]
[]
[]
[]
[{"$nulls":6},45]
[]
[]
[]
[]
[{"$nulls":6},40]
[]
[]
[]
[]
[{"$nulls":6},35]
[]
[]
[]
[]
[{"$nulls":6},30]
[]
[]
[]
[]
[{"$nulls":6},25]
[]
[]
[]
[]
[{"$nulls":6},20]
[]
[]
[]
[]
[{"$nulls":6},15]
[]
[]
[]
[]
[{"$nulls":6},10]
[]
[]
[]
[]
[{"$nulls":6},5]
[]
[]
[]
[]
[{"$nulls":6},0,{"$nulls":4},5,{"$nulls":3},10,{"$nulls":5},15,{"$nulls":3},20,{"$nulls":5},25,{"$nulls":3},30,{"$nulls":5},35,{"$nulls":3},40,{"$nulls":5},45]
[{"$nulls":6},"© 2016 by Houseflippingspreadsheet.com. All rights reserved"]

{"sheet":"ESTIMATE REPORTS","index":31,"n_rows":1117,"n_cols":30,"rows_kept":1117,"hidden":true,"merged":[[1,13,1,14],[2,13,2,14],[5,3,8,13],[9,9,10,13],[13,2,14,8],[13,11,14,14],[15,2,16,6],[18,2,23,14],[25,2,25,6],[25,7,25,8],[26,11,26,14],[27,11,27,14],[28,11,28,14],[29,11,29,14],[30,11,30,14],[31,11,31,14],[32,11,32,14],[33,2,33,6],[33,11,33,14],[34,11,34,14],[35,11,35,14],[36,11,36,14],[37,11,37,14],[38,11,38,14],[39,11,39,14],[40,11,40,14],[41,11,41,14],[42,11,42,14],[43,11,43,14],[44,11,44,14],[45,11,45,14],[46,11,46,14],[47,2,47,6],[47,11,47,14],[48,2,48,6],[48,11,48,14],[49,2,49,6],[49,11,49,14],[52,2,52,6],[52,7,52,8],[53,2,53,6],[53,7,53,8],[53,11,56,14],[54,2,54,6],[54,7,54,8],[55,2,55,6],[55,7,55,8],[56,2,56,6],[56,7,56,8],[57,7,57,8],[59,2,59,6],[59,7,59,8],[63,12,63,14],[65,2,66,7],[65,11,66,14],[68,2,69,7],[68,8,69,8],[68,9,69,9],[68,10,68,12],[68,13,69,14],[70,2,70,7],[70,13,70,14],[73,2,73,7],[73,13,73,14],[74,2,74,7],[74,13,74,14],[75,2,75,7],[75,13,75,14],[76,2,76,7],[76,13,76,14],[77,2,77,7],[77,13,77,14],[78,2,78,7],[78,13,78,14],[102,2,102,7],[102,13,102,14],[103,2,103,7],[103,13,103,14],[104,2,104,7],[104,13,104,14],[105,2,105,7],[105,13,105,14],[106,2,106,7],[106,13,106,14],[107,2,107,7],[107,13,107,14],[108,2,108,7],[108,13,108,14],[109,2,109,7],[109,13,109,14],[110,2,110,7],[110,13,110,14],[111,2,111,7],[111,13,111,14],[115,2,115,7],[115,13,115,14],[116,2,116,7],[116,13,116,14],[117,2,117,7],[117,13,117,14],[118,2,118,7],[118,13,118,14],[121,2,121,7],[121,13,121,14],[122,2,122,7],[122,13,122,14],[123,2,123,7],[123,13,123,14],[124,2,124,7],[124,13,124,14],[125,2,125,7],[125,13,125,14],[126,2,126,7],[126,13,126,14],[135,2,135,7],[135,13,135,14],[136,2,136,7],[136,13,136,14],[137,2,137,7],[137,13,137,14],[138,2,138,7],[138,13,138,14],[139,2,139,7],[139,13,139,14],[152,2,152,7],[152,13,152,14],[153,2,153,7],[153,13,153,14],[154,2,154,7],[154,13,154,14],[166,2,166,7],[166,13,166,14],[167,2,167,7],[167,13,167,14],[168,2,168,7],[168,13,168,14],[169,2,169,7],[169,13,169,14],[170,2,170,7],[170,13,170,14],[171,2,171,7],[171,13,171,14],[172,2,172,7],[172,13,172,14],[173,2,173,7],[173,13,173,14],[174,2,174,7],[174,13,174,14],[175,2,175,7],[175,13,175,14],[176,2,176,7],[176,13,176,14],[177,2,177,7],[177,13,177,14],[178,2,178,7],[178,13,178,14],[198,2,198,9],[198,13,198,14],[200,2,200,7],[200,13,200,14],[201,2,201,7],[201,13,201,14],[202,2,202,7],[202,13,202,14],[203,2,203,7],[203,13,203,14],[204,2,204,7],[204,13,204,14],[213,2,213,7],[213,13,213,14],[214,2,214,7],[214,13,214,14],[215,2,215,7],[215,13,215,14],[216,2,216,7],[216,13,216,14],[217,2,217,7],[217,13,217,14],[218,2,218,7],[218,13,218,14],[219,2,219,7],[219,13,219,14],[220,2,220,7],[220,13,220,14],[222,2,222,7],[222,13,222,14],[223,2,223,7],[223,13,223,14],[224,2,224,7],[224,13,224,14],[225,2,225,7],[225,13,225,14],[226,2,226,7],[226,13,226,14],[239,2,239,7],[239,13,239,14],[240,2,240,7],[240,13,240,14],[241,2,241,9],[241,13,241,14],[243,2,243,7],[243,13,243,14],[252,2,252,7],[252,13,252,14],[253,2,253,7],[253,13,253,14],[254,2,254,7],[254,13,254,14],[255,2,255,7],[255,13,255,14],[256,2,256,7],[256,13,256,14],[257,2,257,7],[257,13,257,14],[258,2,258,7],[258,13,258,14],[259,2,259,7],[259,13,259,14],[260,2,260,7],[260,13,260,14],[261,2,261,7],[261,13,261,14],[264,2,264,7],[264,13,264,14],[265,2,265,7],[265,13,265,14],[275,2,275,7],[275,13,275,14],[276,2,276,7],[276,13,276,14],[277,2,277,7],[277,13,277,14],[278,2,278,7],[278,13,278,14],[279,2,279,7],[279,13,279,14],[280,2,280,7],[280,13,280,14],[281,2,281,7],[281,13,281,14],[282,2,282,7],[282,13,282,14],[283,2,283,7],[283,13,283,14],[289,2,289,7],[289,13,289,14],[301,2,301,7],[301,13,301,14],[302,2,302,7],[302,13,302,14],[303,2,303,7],[303,13,303,14],[304,2,304,7],[304,13,304,14],[305,2,305,7],[305,13,305,14],[306,2,306,7],[306,13,306,14],[307,2,307,7],[307,13,307,14],[308,2,308,7],[308,13,308,14],[309,2,309,7],[309,13,309,14],[310,2,310,7],[310,13,310,14],[311,2,311,7],[311,13,311,14],[312,2,312,7],[312,13,312,14],[313,2,313,7],[313,13,313,14],[314,2,314,7],[314,13,314,14],[315,2,315,7],[315,13,315,14],[316,2,316,7],[316,13,316,14],[317,2,317,7],[317,13,317,14],[325,2,325,7],[325,13,325,14],[326,2,326,7],[326,13,326,14],[327,2,327,9],[327,13,327,14],[329,2,329,7],[329,13,329,14],[330,2,330,7],[330,13,330,14],[339,2,339,7],[339,13,339,14],[340,2,340,7],[340,13,340,14],[341,2,341,7],[341,13,341,14],[342,2,342,7],[342,13,342,14],[343,2,343,7],[343,13,343,14],[344,2,344,7],[344,13,344,14],[345,2,345,7],[345,13,345,14],[346,2,346,7],[346,13,346,14],[347,2,347,7],[347,13,347,14],[348,2,348,7],[348,13,348,14],[361,2,361,7],[361,13,361,14],[362,2,362,7],[362,13,362,14],[363,2,363,7],[363,13,363,14],[364,2,364,7],[364,13,364,14],[365,2,365,7],[365,13,365,14],[366,2,366,7],[366,13,366,14],[367,2,367,7],[367,13,367,14],[368,2,368,7],[368,13,368,14],[369,2,369,7],[369,13,369,14],[373,2,373,7],[373,13,373,14],[376,2,376,7],[376,13,376,14],[377,2,377,7],[377,13,377,14],[378,2,378,7],[378,13,378,14],[388,2,388,7],[388,13,388,14],[389,2,389,7],[389,13,389,14],[390,2,390,7],[390,13,390,14],[391,2,391,7],[391,13,391,14],[392,2,392,7],[392,13,392,14],[393,2,393,7],[393,13,393,14],[394,2,394,7],[394,13,394,14],[395,2,395,7],[395,13,395,14],[396,2,396,7],[396,13,396,14],[397,2,397,7],[397,13,397,14],[398,2,398,7],[398,13,398,14],[399,2,399,7],[399,13,399,14],[400,2,400,7],[400,13,400,14],[408,2,408,7],[408,13,408,14],[409,2,409,7],[409,13,409,14],[410,2,410,7],[410,13,410,14],[411,2,411,7],[411,13,411,14],[412,2,412,7],[412,13,412,14],[413,2,413,9],[413,13,413,14],[416,2,416,7],[416,13,416,14],[417,2,417,7],[417,13,417,14],[426,2,426,7],[426,13,426,14],[427,2,427,7],[427,13,427,14],[428,2,428,7],[428,13,428,14],[429,2,429,7],[429,13,429,14],[430,2,430,7],[430,13,430,14],[431,2,431,7],[431,13,431,14],[432,2,432,7],[432,13,432,14],[433,2,433,7],[433,13,433,14],[434,2,434,7],[434,13,434,14],[435,2,435,7],[435,13,435,14],[436,2,436,7],[436,13,436,14],[437,2,437,7],[437,13,437,14],[438,2,438,7],[438,13,438,14],[439,2,439,7],[439,13,439,14],[440,2,440,7],[440,13,440,14],[441,2,441,7],[441,13,441,14],[442,2,442,7],[442,13,442,14],[452,2,452,7],[452,13,452,14],[453,2,453,7],[453,13,453,14],[454,2,454,7],[454,13,454,14],[455,2,455,7],[455,13,455,14],[456,2,456,9],[456,13,456,14],[458,2,458,7],[458,13,458,14],[459,2,459,7],[459,13,459,14],[460,2,460,7],[460,13,460,14],[461,2,461,7],[461,13,461,14],[462,2,462,7],[462,13,462,14],[463,2,463,7],[463,13,463,14],[464,2,464,7],[464,13,464,14],[465,2,465,7],[465,13,465,14],[466,2,466,7],[466,13,466,14],[467,2,467,7],[467,13,467,14],[468,2,468,7],[468,13,468,14],[469,2,469,7],[469,13,469,14],[470,2,470,7],[470,13,470,14],[471,2,471,7],[471,13,471,14],[472,2,472,7],[472,13,472,14],[473,2,473,7],[473,13,473,14],[474,2,474,7],[474,13,474,14],[475,2,475,7],[475,13,475,14],[476,2,476,7],[476,13,476,14],[477,2,477,7],[477,13,477,14],[478,2,478,7],[478,13,478,14],[479,2,479,7],[479,13,479,14],[480,2,480,7],[480,13,480,14],[492,2,492,7],[492,13,492,14],[493,2,493,7],[493,13,493,14],[494,2,494,7],[494,13,494,14],[495,2,495,7],[495,13,495,14],[496,2,496,7],[496,13,496,14],[499,2,499,9],[499,13,499,14],[501,2,501,7],[501,13,501,14],[502,2,502,7],[502,13,502,14],[503,2,503,7],[503,13,503,14],[504,2,504,7],[504,13,504,14],[513,2,513,7],[513,13,513,14],[517,2,517,7],[517,13,517,14],[518,2,518,7],[518,13,518,14],[519,2,519,7],[519,13,519,14],[520,2,520,7],[520,13,520,14],[521,2,521,7],[521,13,521,14],[524,2,524,7],[524,13,524,14],[525,2,525,7],[525,13,525,14],[526,2,526,7],[526,13,526,14],[527,2,527,7],[527,13,527,14],[528,2,528,7],[528,13,528,14],[535,2,535,7],[535,13,535,14],[538,2,538,7],[538,13,538,14],[542,2,542,9],[542,13,542,14],[547,2,547,7],[547,13,547,14],[548,2,548,7],[548,13,548,14],[549,2,549,7],[549,13,549,14],[550,2,550,7],[550,13,550,14],[551,2,551,7],[551,13,551,14],[552,2,552,7],[552,13,552,14],[556,2,556,7],[556,13,556,14],[557,2,557,7],[557,13,557,14],[558,2,558,7],[558,13,558,14],[559,2,559,7],[559,13,559,14],[560,2,560,7],[560,13,560,14],[561,2,561,7],[561,13,561,14],[565,2,565,7],[565,13,565,14],[566,2,566,7],[566,13,566,14],[567,2,567,7],[567,13,567,14],[580,2,580,7],[580,13,580,14],[581,2,581,7],[581,13,581,14],[582,2,582,7],[582,13,582,14],[583,2,583,7],[583,13,583,14],[584,2,584,7],[584,13,584,14],[601,2,601,7],[601,13,601,14],[602,2,602,7],[602,13,602,14],[603,2,603,7],[603,13,603,14],[604,2,604,7],[604,13,604,14],[605,2,605,7],[605,13,605,14],[606,2,606,7],[606,13,606,14],[607,2,607,7],[607,13,607,14],[608,2,608,7],[608,13,608,14],[609,2,609,7],[609,13,609,14],[610,2,610,7],[610,13,610,14],[611,2,611,7],[611,13,611,14],[612,2,612,7],[612,13,612,14],[613,2,613,7],[613,13,613,14],[614,2,614,7],[614,13,614,14],[615,2,615,7],[615,13,615,14],[624,2,624,7],[624,13,624,14],[625,2,625,7],[625,13,625,14],[626,2,626,7],[626,13,626,14],[627,2,627,7],[627,13,627,14],[628,2,628,9],[628,13,628,14],[630,2,630,7],[630,13,630,14],[639,2,639,7],[639,13,639,14],[643,2,643,7],[643,13,643,14],[644,2,644,7],[644,13,644,14],[646,2,646,7],[646,13,646,14],[647,2,647,7],[647,13,647,14],[648,2,648,7],[648,13,648,14],[651,2,651,7],[651,13,651,14],[652,2,652,7],[652,13,652,14],[653,2,653,7],[653,13,653,14],[654,2,654,7],[654,13,654,14],[665,2,665,7],[665,13,665,14],[666,2,666,7],[666,13,666,14],[667,2,667,7],[667,13,667,14],[668,2,668,7],[668,13,668,14],[669,2,669,7],[669,13,669,14],[670,2,670,7],[670,13,670,14],[688,2,688,7],[688,13,688,14],[689,2,689,7],[689,13,689,14],[690,2,690,7],[690,13,690,14],[691,2,691,7],[691,13,691,14],[692,2,692,7],[692,13,692,14],[693,2,693,7],[693,13,693,14],[694,2,694,7],[694,13,694,14],[695,2,695,7],[695,13,695,14],[701,2,701,7],[701,13,701,14],[702,2,702,7],[702,13,702,14],[713,2,713,7],[713,13,713,14],[714,2,714,9],[714,13,714,14],[716,2,716,7],[716,13,716,14],[717,2,717,7],[717,13,717,14],[730,2,730,7],[730,13,730,14],[733,2,733,7],[733,13,733,14],[734,2,734,7],[734,13,734,14],[735,2,735,7],[735,13,735,14],[736,2,736,7],[736,13,736,14],[737,2,737,7],[737,13,737,14],[738,2,738,7],[738,13,738,14],[739,2,739,7],[739,13,739,14],[740,2,740,7],[740,13,740,14],[741,2,741,7],[741,13,741,14],[765,2,765,7],[765,13,765,14],[775,2,775,7],[775,13,775,14],[776,2,776,7],[776,13,776,14],[777,2,777,7],[777,13,777,14],[778,2,778,7],[778,13,778,14],[779,2,779,7],[779,13,779,14],[780,2,780,7],[780,13,780,14],[781,2,781,7],[781,13,781,14],[782,2,782,7],[782,13,782,14],[783,2,783,7],[783,13,783,14],[784,2,784,7],[784,13,784,14],[785,2,785,7],[785,13,785,14],[786,2,786,7],[786,13,786,14],[787,2,787,7],[787,13,787,14],[788,2,788,7],[788,13,788,14],[789,2,789,7],[789,13,789,14],[790,2,790,7],[790,13,790,14],[791,2,791,7],[791,13,791,14],[792,2,792,7],[792,13,792,14],[793,2,793,7],[793,13,793,14],[794,2,794,7],[794,13,794,14],[795,2,795,7],[795,13,795,14],[796,2,796,7],[796,13,796,14],[797,2,797,7],[797,13,797,14],[798,2,798,7],[798,13,798,14],[799,2,799,7],[799,13,799,14],[802,2,802,7],[802,13,802,14],[803,2,803,7],[803,13,803,14],[804,2,804,7],[804,13,804,14],[805,2,805,7],[805,13,805,14],[806,2,806,7],[806,13,806,14],[808,2,808,7],[808,13,808,14],[809,2,809,7],[809,13,809,14],[810,2,810,7],[810,13,810,14],[811,2,811,7],[811,13,811,14],[812,2,812,7],[812,13,812,14],[813,2,813,7],[813,13,813,14],[820,2,820,7],[820,13,820,14],[821,2,821,7],[821,13,821,14],[822,2,822,7],[822,13,822,14],[823,2,823,7],[823,13,823,14],[824,2,824,7],[824,13,824,14],[825,2,825,7],[825,13,825,14],[826,2,826,7],[826,13,826,14],[827,2,827,7],[827,13,827,14],[828,2,828,7],[828,13,828,14],[829,2,829,7],[829,13,829,14],[830,2,830,7],[830,13,830,14],[831,2,831,7],[831,13,831,14],[832,2,832,7],[832,13,832,14],[833,2,833,7],[833,13,833,14],[834,2,834,7],[834,13,834,14],[835,2,835,7],[835,13,835,14],[836,2,836,7],[836,13,836,14],[837,2,837,7],[837,13,837,14],[838,2,838,7],[838,13,838,14],[839,2,839,7],[839,13,839,14],[840,2,840,7],[840,13,840,14],[841,2,841,7],[841,13,841,14],[842,2,842,7],[842,13,842,14],[843,2,843,9],[843,13,843,14],[845,2,845,7],[845,13,845,14],[846,2,846,7],[846,13,846,14],[848,2,848,7],[848,13,848,14],[849,2,849,7],[849,13,849,14],[852,2,852,7],[852,13,852,14],[853,2,853,7],[853,13,853,14],[854,2,854,7],[854,13,854,14],[855,2,855,7],[855,13,855,14],[856,2,856,7],[856,13,856,14],[857,2,857,7],[857,13,857,14],[858,2,858,7],[858,13,858,14],[859,2,859,7],[859,13,859,14],[860,2,860,7],[860,13,860,14],[861,2,861,7],[861,13,861,14],[866,2,866,7],[866,13,866,14],[867,2,867,7],[867,13,867,14],[868,2,868,7],[868,13,868,14],[869,2,869,7],[869,13,869,14],[883,2,883,7],[883,13,883,14],[884,2,884,7],[884,13,884,14],[885,2,885,7],[885,13,885,14],[901,2,901,7],[901,13,901,14],[902,2,902,7],[902,13,902,14],[903,2,903,7],[903,13,903,14],[904,2,904,7],[904,13,904,14],[905,2,905,7],[905,13,905,14],[906,2,906,7],[906,13,906,14],[907,2,907,7],[907,13,907,14],[908,2,908,7],[908,13,908,14],[909,2,909,7],[909,13,909,14],[916,2,916,7],[916,13,916,14],[917,2,917,7],[917,13,917,14],[918,2,918,7],[918,13,918,14],[919,2,919,7],[919,13,919,14],[929,2,929,9],[929,13,929,14],[931,2,931,7],[931,13,931,14],[932,2,932,7],[932,13,932,14],[933,2,933,7],[933,13,933,14],[934,2,934,7],[934,13,934,14],[935,2,935,7],[935,13,935,14],[936,2,936,7],[936,13,936,14],[942,2,942,7],[942,13,942,14],[945,2,945,7],[946,2,946,7],[946,13,946,14],[949,2,949,7],[949,13,949,14],[950,2,950,7],[950,13,950,14],[951,2,951,7],[951,13,951,14],[964,2,964,7],[964,13,964,14],[965,2,965,7],[975,2,975,7],[975,13,975,14],[985,2,985,7],[985,13,985,14],[986,2,986,7],[986,13,986,14],[988,2,988,7],[988,13,988,14],[989,2,989,7],[989,13,989,14],[990,2,990,7],[990,13,990,14],[991,2,991,7],[991,13,991,14],[992,2,992,7],[992,13,992,14],[993,2,993,7],[993,13,993,14],[994,2,994,7],[994,13,994,14],[996,2,996,7],[996,13,996,14],[1003,2,1003,7],[1003,13,1003,14],[1004,2,1004,7],[1004,13,1004,14],[1005,2,1005,7],[1005,13,1005,14],[1006,2,1006,7],[1006,13,1006,14],[1007,2,1007,7],[1007,13,1007,14],[1008,2,1008,7],[1008,13,1008,14],[1009,2,1009,7],[1009,13,1009,14],[1013,2,1013,7],[1013,13,1013,14],[1017,13,1017,14],[1018,2,1018,7],[1026,2,1026,7],[1030,2,1030,7],[1030,13,1030,14],[1031,2,1031,7],[1031,13,1031,14],[1033,2,1033,7],[1033,13,1033,14],[1034,2,1034,7],[1034,13,1034,14],[1035,2,1035,7],[1035,13,1035,14],[1054,2,1054,7],[1054,13,1054,14],[1055,2,1055,7],[1055,13,1055,14],[1056,2,1056,7],[1056,13,1056,14],[1057,2,1057,7],[1057,13,1057,14],[1081,2,1081,7],[1081,13,1081,14],[1082,2,1082,7],[1082,13,1082,14],[1085,13,1085,14],[1086,2,1086,7],[1086,13,1086,14],[1087,2,1087,7],[1087,13,1087,14],[1088,2,1088,7],[1088,13,1088,14],[1089,2,1089,7],[1089,13,1089,14],[1090,2,1090,7],[1093,13,1093,14],[1094,2,1094,7],[1094,13,1094,14],[1095,2,1095,7],[1095,13,1095,14],[1096,2,1096,7],[1096,13,1096,14],[1097,2,1097,7],[1097,13,1097,14],[1098,2,1098,7],[1098,13,1098,14],[1103,2,1103,9],[1103,13,1103,14],[1105,2,1105,6],[1105,7,1105,8],[1107,2,1107,6],[1107,7,1107,8],[1108,2,1108,6],[1108,7,1108,8],[1108,11,1111,14],[1109,2,1109,6],[1109,7,1109,8],[1110,2,1110,6],[1110,7,1110,8],[1111,2,1111,6],[1111,7,1111,8],[1112,2,1112,6],[1112,7,1112,8],[1114,2,1114,6],[1114,7,1114,8],[1116,2,1117,15]],"merged_total":2155,"flags":["merged_cut"]}
[]
[null,"ESTIMATE REPORT",{"$nulls":11},"DIYED OR SUBBED",{"$nulls":14},"Summary","Detail"]
[{"$nulls":13},"DIYED",{"$nulls":14},"Shown","Shown"]
[]
[]
[{"$nulls":3},"The Repair Estimate report can be used to summarize and detail your Scope of Work and estimated Repair Costs for your rehab project.  "]
[]
[]
[]
[{"$nulls":9},"Repair Estimate Report Tutorial"]
[]
[]
[null,null,{"$f":"CONCATENATE(Street_Address,\", \",City_State_Zip)","v":"1234 Main St, Kansas City, MO 64116"}]
[null,null,"ESTIMATE SUMMARY",{"$nulls":12},1]
[{"$nulls":15},1]
[{"$nulls":15},1]
[{"$nulls":15},1]
[{"$nulls":15},1,null,null,"DIYED"]
[null,null,"Input a brief description of repairs required to the property.",{"$nulls":12},1,null,null,"SUBBED"]
[{"$nulls":15},1]
[]
[{"$nulls":15},1]
[{"$nulls":15},1]
[{"$nulls":15},1]
[{"$nulls":15},1]
[null,null,"SCOPE OF WORK",{"$nulls":4},"TOTAL",null,"$ / SF","%","NOTES",{"$nulls":3},"SORTER"]
[null,null,{"$f":"'2 REPAIR ESTIMATOR'!N75","v":"GENERAL CONDITIONS"},{"$nulls":4},{"$f":"N113","v":{"v":534.75,"d":"$535"}},{"$f":"#REF!","v":{"$error":"#REF!"}},{"$f":"IFERROR(H27/Square_Feet,0)","v":{"v":0.3565,"d":"$0.36"}},{"$f":"IFERROR(IF(Estimate_Report_Adders_Selection=\"Allocate Adders\",H27/TOTAL_REPAIRS_ESTIMATE,H27/$H$60),0)","v":{"v":0.010004012829830761,"d":"1%"}},{"$nulls":4},{"$f":"IF(H27>0,1,0)","v":1}]
[null,null,{"$f":"'2 REPAIR ESTIMATOR'!N76","v":"DEMOLITION"},{"$nulls":4},{"$f":"N156","v":{"v":1600,"d":"$1,600"}},{"$f":"N108","v":{"v":0,"d":"$0"}},{"v":1.0666666666666667,"d":"$1.07"},{"v":0.029932530206132242,"d":"3%"},{"$nulls":4},{"$f":"IF(H28>0,1,0)","v":1}]
[null,null,{"$f":"'2 REPAIR ESTIMATOR'!N77","v":"STRUCTURAL CONCRETE"},{"$nulls":4},{"$f":"N199","v":{"v":0,"d":"$0"}},{"$f":"N151","v":{"v":0,"d":"$0"}},{"v":0,"d":"$0.00"},{"v":0,"d":"0%"},{"$nulls":4},0]
[null,null,{"$f":"'2 REPAIR ESTIMATOR'!N78","v":"CONCRETE & FLATWORK"},{"$nulls":4},{"$f":"N242","v":{"v":0,"d":"$0"}},{"$f":"N194","v":{"v":0,"d":"$0"}},{"v":0,"d":"$0.00"},{"v":0,"d":"0%"},{"$nulls":4},0]
[null,null,{"$f":"'2 REPAIR ESTIMATOR'!N79","v":"MASONRY"},{"$nulls":4},{"$f":"N285","v":{"v":0,"d":"$0"}},{"$f":"N237","v":{"v":0,"d":"$0"}},{"v":0,"d":"$0.00"},{"v":0,"d":"0%"},{"$nulls":4},0]
[null,null,{"$f":"'2 REPAIR ESTIMATOR'!N80","v":"SIDING"},{"$nulls":4},{"$f":"N328","v":{"v":0,"d":"$0"}},{"$f":"N280","v":{"v":0,"d":"$0"}},{"v":0,"d":"$0.00"},{"v":0,"d":"0%"},{"$nulls":4},0]
[null,null,{"$f":"'2 REPAIR ESTIMATOR'!N81","v":"DECKING AND PATIOS"},{"$nulls":4},{"$f":"N371","v":{"v":1071,"d":"$1,071"}},{"$f":"N323","v":{"v":0,"d":"$0"}},{"v":0.714,"d":"$0.71"},{"v":0.02003608740672977,"d":"2%"},{"$nulls":4},1]
[null,null,{"$f":"'2 REPAIR ESTIMATOR'!N82","v":"ROOFING"},{"$nulls":4},{"$f":"N414","v":{"v":5461,"d":"$5,461"}},{"$f":"N366","v":{"v":0,"d":"$0"}},{"v":3.6406666666666667,"d":"$3.64"},{"v":0.10216346715980511,"d":"10%"},{"$nulls":4},1]
[null,null,{"$f":"'2 REPAIR ESTIMATOR'!Y75","v":"EXTERIOR DOORS & WINDOWS"},{"$nulls":4},{"$f":"N457","v":{"v":4835,"d":"$4,835"}},null,{"v":3.223333333333333,"d":"$3.22"},{"v":0.09045236471665587,"d":"9%"},{"$nulls":4},1]
[null,null,{"$f":"'2 REPAIR ESTIMATOR'!Y76","v":"GARAGE DOORS"},{"$nulls":4},{"$f":"N500","v":{"v":1363,"d":"$1,363"}},null,{"v":0.9086666666666666,"d":"$0.91"},{"v":0.025498774169348905,"d":"3%"},{"$nulls":4},1]
[null,null,{"$f":"'2 REPAIR ESTIMATOR'!Y77","v":"LANDSCAPING"},{"$nulls":4},{"$f":"N543","v":{"v":571,"d":"$571"}},null,{"v":0.38066666666666665,"d":"$0.38"},{"v":0.010682171717313444,"d":"1%"},{"$nulls":4},1]
[null,null,{"$f":"'2 REPAIR ESTIMATOR'!Y78","v":"MISC. EXTERIOR ITEMS"},{"$nulls":4},{"$f":"N586","v":{"v":631.6,"d":"$632"}},null,{"v":0.4210666666666667,"d":"$0.42"},{"v":0.011815866298870704,"d":"1%"},{"$nulls":4},1]
[null,null,{"$f":"'2 REPAIR ESTIMATOR'!Y79","v":"FRAMING & DRYWALL"},{"$nulls":4},{"$f":"N629","v":{"v":750,"d":"$750"}},null,{"v":0.5,"d":"$0.50"},{"v":0.014030873534124489,"d":"1%"},{"$nulls":4},1]
[null,null,{"$f":"'2 REPAIR ESTIMATOR'!Y80","v":"CABINETS & COUNTERTOPS"},{"$nulls":4},{"$f":"N672","v":{"v":11446.25,"d":"$11,446"}},null,{"v":7.630833333333333,"d":"$7.63"},{"v":0.21413451491996324,"d":"21%"},{"$nulls":4},1]
[null,null,{"$f":"'2 REPAIR ESTIMATOR'!Y81","v":"DOORS & TRIM"},{"$nulls":4},{"$f":"N715","v":{"v":2409,"d":"$2,409"}},null,{"v":1.606,"d":"$1.61"},{"v":0.045067165791607855,"d":"5%"},{"$nulls":4},1]
[null,null,{"$f":"'2 REPAIR ESTIMATOR'!Y82","v":"CARPET & RESILIENT"},{"$nulls":4},{"$f":"N758","v":{"v":2505,"d":"$2,505"}},null,{"v":1.67,"d":"$1.67"},{"v":0.04686311760397579,"d":"5%"},{"$nulls":4},1]
[null,null,{"$f":"'2 REPAIR ESTIMATOR'!AJ75","v":"HARDWOOD FLOORING"},{"$nulls":4},{"$f":"N801","v":{"v":3458,"d":"$3,458"}},null,{"v":2.3053333333333335,"d":"$2.31"},{"v":0.06469168090800331,"d":"6%"},{"$nulls":4},1]
[null,null,{"$f":"'2 REPAIR ESTIMATOR'!AJ76","v":"TILING"},{"$nulls":4},{"$f":"N844","v":{"v":3904.1000000000004,"d":"$3,904"}},null,{"v":2.6027333333333336,"d":"$2.60"},{"v":0.07303724448610056,"d":"7%"},{"$nulls":4},1]
[null,null,{"$f":"'2 REPAIR ESTIMATOR'!AJ77","v":"PAINTING"},{"$nulls":4},{"$f":"N887","v":{"v":4000,"d":"$4,000"}},null,{"v":2.6666666666666665,"d":"$2.67"},{"v":0.0748313255153306,"d":"7%"},{"$nulls":4},1]
[null,null,{"$f":"'2 REPAIR ESTIMATOR'!AJ78","v":"APPLIANCES"},{"$nulls":4},{"$f":"N930","v":{"v":3210,"d":"$3,210"}},null,{"v":2.14,"d":"$2.14"},{"v":0.06005213872605281,"d":"6%"},{"$nulls":4},1]
[null,null,{"$f":"'2 REPAIR ESTIMATOR'!AJ79","v":"PLUMBING"},{"$nulls":4},{"$f":"N973","v":{"v":2924,"d":"$2,924"}},null,{"v":1.9493333333333334,"d":"$1.95"},{"v":0.05470169895170667,"d":"5%"},{"$nulls":4},1]
[null,null,{"$f":"'2 REPAIR ESTIMATOR'!AJ80","v":"HVAC"},{"$nulls":4},{"$f":"N1016","v":{"v":483.5,"d":"$484"}},null,{"v":0.32233333333333336,"d":"$0.32"},{"v":0.009045236471665587,"d":"1%"},{"$nulls":4},1]
[null,null,{"$f":"'2 REPAIR ESTIMATOR'!AJ81","v":"ELECTRICAL"},{"$nulls":4},{"$f":"N1059","v":{"v":2296.35,"d":"$2,296"}},null,{"v":1.5309,"d":"$1.53"},{"v":0.042959728586782354,"d":"4%"},{"$nulls":4},1]
[null,null,{"$f":"'2 REPAIR ESTIMATOR'!AJ82","v":"MISCELLANEOUS"},{"$nulls":4},{"$f":"N1102","v":{"v":0,"d":"$0"}},null,{"v":0,"d":"$0.00"},{"v":0,"d":"0%"},{"$nulls":4},0]
[null,null,{"$f":"IF(Estimate_Report_Adders_Selection=\"Allocate Adders\",\"TOTAL ESTIMATE\",\"SUBTOTAL ESTIMATE\")","v":"SUBTOTAL ESTIMATE"},{"$nulls":4},{"$f":"SUM(H27:H50)","v":{"v":53453.549999999996,"d":"$53,454"}},null,{"$f":"SUM(J27:J50)","v":{"v":35.63570000000001,"d":"$35.64"}},{"$f":"SUM(K27:K50)","v":{"v":1,"d":"100%"}},{"$nulls":4},1]
[{"$nulls":15},{"$f":"IF($H$58>0,1)","v":false}]
[null,null,"ADDERS",{"$nulls":4},"Amount",null,"$/sf","%",{"$nulls":4},false]
[null,null,{"$f":"CONCATENATE(\"Location Multiplier of \",TEXT(Location_Mutiplier,\"0.00\"))","v":"Location Multiplier of 0.00"},{"$nulls":4},{"$f":"Location_Mutiplier_Amount","v":{"v":0,"d":"$0"}},null,{"$f":"IFERROR(H54/Square_Feet,0)","v":{"v":0,"d":"$0.00"}},{"$f":"IFERROR(H54/$H$60,0)","v":{"v":0,"d":"0%"}},"Note: Estimating Adders have been included to cover our project location, building permits, contractors OH & P, and Contingency.",{"$nulls":3},false]
[null,null,{"$f":"CONCATENATE(\"Building Permit Costs (\",TEXT(Permit_Percentage,\"0.0%\"),\")\")","v":"Building Permit Costs (0.0%)"},{"$nulls":4},{"$f":"Permit_Amount","v":{"v":0,"d":"$0"}},null,{"$f":"IFERROR(H55/Square_Feet,0)","v":{"v":0,"d":"$0.00"}},{"$f":"IFERROR(H55/$H$60,0)","v":{"v":0,"d":"0%"}},{"$nulls":4},false]
[null,null,{"$f":"CONCATENATE(\"Contractors Overhead and Profit (\",TEXT(Contractos_Overhead_Percentage,\"0.0%\"),\")\")","v":"Contractors Overhead and Profit (0.0%)"},{"$nulls":4},{"$f":"Contractors_Overhead_Profit_Amount","v":{"v":0,"d":"$0"}},null,{"$f":"IFERROR(H56/Square_Feet,0)","v":{"v":0,"d":"$0.00"}},{"$f":"IFERROR(H56/$H$60,0)","v":{"v":0,"d":"0%"}},{"$nulls":4},false]
[null,null,{"$f":"CONCATENATE(\"Estimate Contingency  (\",TEXT(Contingency_Percentage,\"0.0%\"),\")\")","v":"Estimate Contingency  (0.0%)"},{"$nulls":4},{"$f":"Contingency_Amount","v":{"v":0,"d":"$0"}},null,{"$f":"IFERROR(H57/Square_Feet,0)","v":{"v":0,"d":"$0.00"}},{"$f":"IFERROR(H57/$H$60,0)","v":{"v":0,"d":"0%"}},{"$nulls":4},false]
[null,null,"TOTAL ADDERS",{"$nulls":4},{"$f":"TOTAL_ADDERS","v":{"v":0,"d":"$0"}},null,{"$f":"IFERROR(H58/Square_Feet,0)","v":{"v":0,"d":"$0.00"}},{"$f":"IFERROR(H58/$H$60,0)","v":{"v":0,"d":"0%"}},{"$nulls":4},false]
[{"$nulls":15},{"$f":"IF($H$60>0,1)","v":1}]
[null,null,"TOTAL ESTIMATE",{"$nulls":4},{"$f":"H51+H58","v":{"v":53453.549999999996,"d":"$53,454"}},null,{"$f":"J51+J58","v":{"v":35.63570000000001,"d":"$35.64"}},{"$f":"IFERROR(H60/$H$60,0)","v":{"v":1,"d":"100%"}},{"$nulls":4},{"$f":"IF($H$60>0,1)","v":1}]
[]
[{"$nulls":15},1]
[{"$nulls":15},1]
[null,null,{"$f":"T(Company_Name)","v":"Dave Inc"},{"$nulls":4},{"$f":"(Company_Phone)","v":8161234567},null,{"$f":"T(Company_Email)","v":"dave@venturesheets.com"},null,null,{"$f":"T(Company_Website)","v":"www.venturesheets.com"},null,null,{"$f":"IF($H$60>0,1)","v":1}]
[null,null,{"$f":"CONCATENATE(Street_Address,\", \",City_State_Zip)","v":"1234 Main St, Kansas City, MO 64116"}]
[null,null,"DETAILED ESTIMATE",{"$nulls":12},1]
[{"$nulls":15},1]
[{"$nulls":15},1,null,null,"DIYED"]
[null,null,"Description of Work",{"$nulls":5},"QTY","Unit","Totals",null,null,"Total Cost",{"$nulls":4},"Show Adders"]
[{"$nulls":10},"Lab","Mat'l","Sub",null,null,"SORTER",null,null,{"$f":"IF(S69=\"Allocate Adders\",1+Adders_Percentage,1)","v":1}]
[]
[null,null,{"$f":"T('2 REPAIR ESTIMATOR'!D87:O87)","v":"GENERAL CONDITIONS"},{"$nulls":5},{"$f":"SUM(I73:I112)","v":5},{"$nulls":6},{"$f":"I72","v":5},null,null,"DIYED LABOR","DIY SAVINGS","SUBBED LABOR","MAT'L","SUB"]
[null,null,{"$f":"T('2 REPAIR ESTIMATOR'!D88:O88)","v":"Dumpster rental-40 yard"},{"$nulls":5},{"$f":"'2 REPAIR ESTIMATOR'!P88","v":1},{"$f":"'2 REPAIR ESTIMATOR'!S88","v":"ea"},{"$f":"IF($N$3=\"subbed\",U73,S73)*$S$70","v":{"v":0,"d":"$0"}},{"$f":"V73*$S$70","v":{"v":454.75,"d":"$455"}},{"$f":"W73*$S$70","v":{"v":0,"d":"$0"}},{"$f":"SUM(K73:M73)","v":{"v":454.75,"d":"$455"}},null,1,null,null,{"$f":"'2 REPAIR ESTIMATOR'!AD88","v":{"v":0,"d":"$0.00"}},{"$f":"'2 REPAIR ESTIMATOR'!AM88","v":{"v":0,"d":"$0.00"}},{"$f":"T73+S73","v":{"v":0,"d":"$0.00"}},{"$f":"'2 REPAIR ESTIMATOR'!AG88","v":{"v":454.75,"d":"$454.75"}},{"$f":"'2 REPAIR ESTIMATOR'!AJ88","v":{"v":0,"d":"$0.00"}}]
[null,null,{"$f":"T('2 REPAIR ESTIMATOR'!D89:O89)","v":"Storage Container"},{"$nulls":5},{"$f":"'2 REPAIR ESTIMATOR'!P89","v":0},{"$f":"'2 REPAIR ESTIMATOR'!S89","v":"job"},{"v":0,"d":"$0"},{"$f":"V74*$S$70","v":{"v":0,"d":"$0"}},{"$f":"W74*$S$70","v":{"v":0,"d":"$0"}},{"$f":"SUM(K74:M74)","v":{"v":0,"d":"$0"}},null,0,null,null,{"$f":"'2 REPAIR ESTIMATOR'!AD89","v":{"v":0,"d":"$0.00"}},{"$f":"'2 REPAIR ESTIMATOR'!AM89","v":{"v":0,"d":"$0.00"}},{"$f":"T74+S74","v":{"v":0,"d":"$0.00"}},{"$f":"'2 REPAIR ESTIMATOR'!AG89","v":{"v":0,"d":"$0.00"}},{"$f":"'2 REPAIR ESTIMATOR'!AJ89","v":{"v":0,"d":"$0.00"}}]
[null,null,{"$f":"T('2 REPAIR ESTIMATOR'!D90:O90)","v":"Chemical Toilet"},{"$nulls":5},{"$f":"'2 REPAIR ESTIMATOR'!P90","v":0},{"$f":"'2 REPAIR ESTIMATOR'!S90","v":"mo"},{"v":0,"d":"$0"},{"v":0,"d":"$0"},{"v":0,"d":"$0"},{"v":0,"d":"$0"},null,0,null,null,{"$f":"'2 REPAIR ESTIMATOR'!AD90","v":{"v":0,"d":"$0.00"}},{"$f":"'2 REPAIR ESTIMATOR'!AM90","v":{"v":0,"d":"$0.00"}},{"v":0,"d":"$0.00"},{"$f":"'2 REPAIR ESTIMATOR'!AG90","v":{"v":0,"d":"$0.00"}},{"$f":"'2 REPAIR ESTIMATOR'!AJ90","v":{"v":0,"d":"$0.00"}}]
[null,null,{"$f":"T('2 REPAIR ESTIMATOR'!D91:O91)","v":"Misc. Tools & Materials"},{"$nulls":5},{"$f":"'2 REPAIR ESTIMATOR'!P91","v":0},{"$f":"'2 REPAIR ESTIMATOR'!S91","v":"ls"},{"v":0,"d":"$0"},{"v":0,"d":"$0"},{"v":0,"d":"$0"},{"v":0,"d":"$0"},null,0,null,null,{"$f":"'2 REPAIR ESTIMATOR'!AD91","v":{"v":0,"d":"$0.00"}},{"$f":"'2 REPAIR ESTIMATOR'!AM91","v":{"v":0,"d":"$0.00"}},{"v":0,"d":"$0.00"},{"$f":"'2 REPAIR ESTIMATOR'!AG91","v":{"v":0,"d":"$0.00"}},{"$f":"'2 REPAIR ESTIMATOR'!AJ91","v":{"v":0,"d":"$0.00"}}]
[null,null,{"$f":"T('2 REPAIR ESTIMATOR'!D92:O92)","v":"Rekey/lock box"},{"$nulls":5},{"$f":"'2 REPAIR ESTIMATOR'!P92","v":0},{"$f":"'2 REPAIR ESTIMATOR'!S92","v":"ea"},{"v":0,"d":"$0"},{"v":0,"d":"$0"},{"v":0,"d":"$0"},{"v":0,"d":"$0"},null,0,null,null,{"$f":"'2 REPAIR ESTIMATOR'!AD92","v":{"v":0,"d":"$0.00"}},{"$f":"'2 REPAIR ESTIMATOR'!AM92","v":{"v":0,"d":"$0.00"}},{"v":0,"d":"$0.00"},{"$f":"'2 REPAIR ESTIMATOR'!AG92","v":{"v":0,"d":"$0.00"}},{"$f":"'2 REPAIR ESTIMATOR'!AJ92","v":{"v":0,"d":"$0.00"}}]
[null,null,{"$f":"T('2 REPAIR ESTIMATOR'!D93:O93)","v":"Turn on utilities"},{"$nulls":5},{"$f":"'2 REPAIR ESTIMATOR'!P93","v":0},{"$f":"'2 REPAIR ESTIMATOR'!S93","v":"ls"},{"v":0,"d":"$0"},{"v":0,"d":"$0"},{"v":0,"d":"$0"},{"v":0,"d":"$0"},null,0,null,null,{"$f":"'2 REPAIR ESTIMATOR'!AD93","v":{"v":0,"d":"$0.00"}},{"$f":"'2 REPAIR ESTIMATOR'!AM93","v":{"v":0,"d":"$0.00"}},{"v":0,"d":"$0.00"},{"$f":"'2 REPAIR ESTIMATOR'!AG93","v":{"v":0,"d":"$0.00"}},{"$f":"'2 REPAIR ESTIMATOR'!AJ93","v":{"v":0,"d":"$0.00"}}]
[null,null,{"$f":"T('2 REPAIR ESTIMATOR'!D94:O94)","v":"Truck expense/car payment"},{"$nulls":5},{"$f":"'2 REPAIR ESTIMATOR'!P94","v":0},{"$f":"'2 REPAIR ESTIMATOR'!S94","v":"month"},{"v":0,"d":"$0"},{"v":0,"d":"$0"},{"v":0,"d":"$0"},{"v":0,"d":"$0"},null,0,null,null,{"$f":"'2 REPAIR ESTIMATOR'!AD94","v":{"v":0,"d":"$0.00"}},{"$f":"'2 REPAIR ESTIMATOR'!AM94","v":{"v":0,"d":"$0.00"}},{"v":0,"d":"$0.00"},{"$f":"'2 REPAIR ESTIMATOR'!AG94","v":{"v":0,"d":"$0.00"}},{"$f":"'2 REPAIR ESTIMATOR'!AJ94","v":{"v":0,"d":"$0.00"}}]
[null,null,{"$f":"T('2 REPAIR ESTIMATOR'!D95:O95)","v":"Fuel/gas expense"},{"$nulls":5},{"$f":"'2 REPAIR ESTIMATOR'!P95","v":0},{"$f":"'2 REPAIR ESTIMATOR'!S95","v":"wk"},{"v":0,"d":"$0"},{"v":0,"d":"$0"},{"v":0,"d":"$0"},{"v":0,"d":"$0"},null,0,null,null,{"$f":"'2 REPAIR ESTIMATOR'!AD95","v":{"v":0,"d":"$0.00"}},{"$f":"'2 REPAIR ESTIMATOR'!AM95","v":{"v":0,"d":"$0.00"}},{"v":0,"d":"$0.00"},{"$f":"'2 REPAIR ESTIMATOR'!AG95","v":{"v":0,"d":"$0.00"}},{"$f":"'2 REPAIR ESTIMATOR'!AJ95","v":{"v":0,"d":"$0.00"}}]
[null,null,{"$f":"T('2 REPAIR ESTIMATOR'!D96:O96)","v":"Project management"},{"$nulls":5},{"$f":"'2 REPAIR ESTIMATOR'!P96","v":0},{"$f":"'2 REPAIR ESTIMATOR'!S96","v":"wk"},{"v":0,"d":"$0"},{"v":0,"d":"$0"},{"v":0,"d":"$0"},{"v":0,"d":"$0"},null,0,null,null,{"$f":"'2 REPAIR ESTIMATOR'!AD96","v":{"v":0,"d":"$0.00"}},{"$f":"'2 REPAIR ESTIMATOR'!AM96","v":{"v":0,"d":"$0.00"}},{"v":0,"d":"$0.00"},{"$f":"'2 REPAIR ESTIMATOR'!AG96","v":{"v":0,"d":"$0.00"}},{"$f":"'2 REPAIR ESTIMATOR'!AJ96","v":{"v":0,"d":"$0.00"}}]
[null,null,{"$f":"T('2 REPAIR ESTIMATOR'!D97:O97)","v":"Architectural Fees"},{"$nulls":5},{"$f":"'2 REPAIR ESTIMATOR'!P97","v":0},{"$f":"'2 REPAIR ESTIMATOR'!S97","v":"hrs"},{"v":0,"d":"$0"},{"v":0,"d":"$0"},{"v":0,"d":"$0"},{"v":0,"d":"$0"},null,0,null,null,{"$f":"'2 REPAIR ESTIMATOR'!AD97","v":{"v":0,"d":"$0.00"}},{"$f":"'2 REPAIR ESTIMATOR'!AM97","v":{"v":0,"d":"$0.00"}},{"v":0,"d":"$0.00"},{"$f":"'2 REPAIR ESTIMATOR'!AG97","v":{"v":0,"d":"$0.00"}},{"$f":"'2 REPAIR ESTIMATOR'!AJ97","v":{"v":0,"d":"$0.00"}}]
[null,null,{"$f":"T('2 REPAIR ESTIMATOR'!D98:O98)","v":"Engineering Fees"},{"$nulls":5},{"$f":"'2 REPAIR ESTIMATOR'!P98","v":0},{"$f":"'2 REPAIR ESTIMATOR'!S98","v":"hrs"},{"v":0,"d":"$0"},{"v":0,"d":"$0"},{"v":0,"d":"$0"},{"v":0,"d":"$0"},null,0,null,null,{"$f":"'2 REPAIR ESTIMATOR'!AD98","v":{"v":0,"d":"$0.00"}},{"$f":"'2 REPAIR ESTIMATOR'!AM98","v":{"v":0,"d":"$0.00"}},{"v":0,"d":"$0.00"},{"$f":"'2 REPAIR ESTIMATOR'!AG98","v":{"v":0,"d":"$0.00"}},{"$f":"'2 REPAIR ESTIMATOR'!AJ98","v":{"v":0,"d":"$0.00"}}]
[null,null,{"$f":"T('2 REPAIR ESTIMATOR'!D99:O99)","v":"Professional Photography"},{"$nulls":5},{"$f":"'2 REPAIR ESTIMATOR'!P99","v":0},{"$f":"'2 REPAIR ESTIMATOR'!S99","v":"ls"},{"v":0,"d":"$0"},{"v":0,"d":"$0"},{"v":0,"d":"$0"},{"v":0,"d":"$0"},null,0,null,null,{"$f":"'2 REPAIR ESTIMATOR'!AD99","v":{"v":0,"d":"$0.00"}},{"$f":"'2 REPAIR ESTIMATOR'!AM99","v":{"v":0,"d":"$0.00"}},{"v":0,"d":"$0.00"},{"$f":"'2 REPAIR ESTIMATOR'!AG99","v":{"v":0,"d":"$0.00"}},{"$f":"'2 REPAIR ESTIMATOR'!AJ99","v":{"v":0,"d":"$0.00"}}]
[null,null,{"$f":"T('2 REPAIR ESTIMATOR'!D100:O100)","v":"Material Deliveries"},{"$nulls":5},{"$f":"'2 REPAIR ESTIMATOR'!P100","v":0},{"$f":"'2 REPAIR ESTIMATOR'!S100","v":"ea"},{"v":0,"d":"$0"},{"v":0,"d":"$0"},{"v":0,"d":"$0"},{"v":0,"d":"$0"},null,0,null,null,{"$f":"'2 REPAIR ESTIMATOR'!AD100","v":{"v":0,"d":"$0.00"}},{"$f":"'2 REPAIR ESTIMATOR'!AM100","v":{"v":0,"d":"$0.00"}},{"v":0,"d":"$0.00"},{"$f":"'2 REPAIR ESTIMATOR'!AG100","v":{"v":0,"d":"$0.00"}},{"$f":"'2 REPAIR ESTIMATOR'!AJ100","v":{"v":0,"d":"$0.00"}}]
[null,null,{"$f":"T('2 REPAIR ESTIMATOR'!D101:O101)","v":"Final cleaning"},{"$nulls":5},{"$f":"'2 REPAIR ESTIMATOR'!P101","v":4},{"$f":"'2 REPAIR ESTIMATOR'!S101","v":"hrs"},{"v":80,"d":"$80"},{"v":0,"d":"$0"},{"v":0,"d":"$0"},{"v":80,"d":"$80"},null,4,null,null,{"$f":"'2 REPAIR ESTIMATOR'!AD101","v":{"v":80,"d":"$80.00"}},{"$f":"'2 REPAIR ESTIMATOR'!AM101","v":{"v":0,"d":"$0.00"}},{"v":80,"d":"$80.00"},{"$f":"'2 REPAIR ESTIMATOR'!AG101","v":{"v":0,"d":"$0.00"}},{"$f":"'2 REPAIR ESTIMATOR'!AJ101","v":{"v":0,"d":"$0.00"}}]
[null,null,{"$f":"T('2 REPAIR ESTIMATOR'!D102:O102)","v":""},{"$nulls":5},{"$f":"'2 REPAIR ESTIMATOR'!P102","v":0},{"$f":"'2 REPAIR ESTIMATOR'!S102","v":0},{"v":0,"d":"$0"},{"v":0,"d":"$0"},{"v":0,"d":"$0"},{"v":0,"d":"$0"},null,0,null,null,{"$f":"'2 REPAIR ESTIMATOR'!AD102","v":{"v":0,"d":"$0.00"}},{"$f":"'2 REPAIR ESTIMATOR'!AM102","v":{"v":0,"d":"$0.00"}},{"v":0,"d":"$0.00"},{"$f":"'2 REPAIR ESTIMATOR'!AG102","v":{"v":0,"d":"$0.00"}},{"$f":"'2 REPAIR ESTIMATOR'!AJ102","v":{"v":0,"d":"$0.00"}}]
[null,null,{"$f":"T('2 REPAIR ESTIMATOR'!D103:O103)","v":""},{"$nulls":5},{"$f":"'2 REPAIR ESTIMATOR'!P103","v":0},{"$f":"'2 REPAIR ESTIMATOR'!S103","v":0},{"v":0,"d":"$0"},{"v":0,"d":"$0"},{"v":0,"d":"$0"},{"v":0,"d":"$0"},null,0,null,null,{"$f":"'2 REPAIR ESTIMATOR'!AD103","v":{"v":0,"d":"$0.00"}},{"$f":"'2 REPAIR ESTIMATOR'!AM103","v":{"v":0,"d":"$0.00"}},{"v":0,"d":"$0.00"},{"$f":"'2 REPAIR ESTIMATOR'!AG103","v":{"v":0,"d":"$0.00"}},{"$f":"'2 REPAIR ESTIMATOR'!AJ103","v":{"v":0,"d":"$0.00"}}]
[null,null,{"$f":"T('2 REPAIR ESTIMATOR'!D104:O104)","v":""},{"$nulls":5},{"$f":"'2 REPAIR ESTIMATOR'!P104","v":0},{"$f":"'2 REPAIR ESTIMATOR'!S104","v":0},{"v":0,"d":"$0"},{"v":0,"d":"$0"},{"v":0,"d":"$0"},{"v":0,"d":"$0"},null,0,null,null,{"$f":"'2 REPAIR ESTIMATOR'!AD104","v":{"v":0,"d":"$0.00"}},{"$f":"'2 REPAIR ESTIMATOR'!AM104","v":{"v":0,"d":"$0.00"}},{"v":0,"d":"$0.00"},{"$f":"'2 REPAIR ESTIMATOR'!AG104","v":{"v":0,"d":"$0.00"}},{"$f":"'2 REPAIR ESTIMATOR'!AJ104","v":{"v":0,"d":"$0.00"}}]
[null,null,{"$f":"T('2 REPAIR ESTIMATOR'!D105:O105)","v":""},{"$nulls":5},{"$f":"'2 REPAIR ESTIMATOR'!P105","v":0},{"$f":"'2 REPAIR ESTIMATOR'!S105","v":0},{"v":0,"d":"$0"},{"v":0,"d":"$0"},{"v":0,"d":"$0"},{"v":0,"d":"$0"},null,0,null,null,{"$f":"'2 REPAIR ESTIMATOR'!AD105","v":{"v":0,"d":"$0.00"}},{"$f":"'2 REPAIR ESTIMATOR'!AM105","v":{"v":0,"d":"$0.00"}},{"v":0,"d":"$0.00"},{"$f":"'2 REPAIR ESTIMATOR'!AG105","v":{"v":0,"d":"$0.00"}},{"$f":"'2 REPAIR ESTIMATOR'!AJ105","v":{"v":0,"d":"$0.00"}}]
[null,null,{"$f":"T('2 REPAIR ESTIMATOR'!D106:O106)","v":""},{"$nulls":5},{"$f":"'2 REPAIR ESTIMATOR'!P106","v":0},{"$f":"'2 REPAIR ESTIMATOR'!S106","v":0},{"v":0,"d":"$0"},{"v":0,"d":"$0"},{"v":0,"d":"$0"},{"v":0,"d":"$0"},null,0,null,null,{"$f":"'2 REPAIR ESTIMATOR'!AD106","v":{"v":0,"d":"$0.00"}},{"$f":"'2 REPAIR ESTIMATOR'!AM106","v":{"v":0,"d":"$0.00"}},{"v":0,"d":"$0.00"},{"$f":"'2 REPAIR ESTIMATOR'!AG106","v":{"v":0,"d":"$0.00"}},{"$f":"'2 REPAIR ESTIMATOR'!AJ106","v":{"v":0,"d":"$0.00"}}]
[null,null,{"$f":"T('2 REPAIR ESTIMATOR'!D107:O107)","v":""},{"$nulls":5},{"$f":"'2 REPAIR ESTIMATOR'!P107","v":0},{"$f":"'2 REPAIR ESTIMATOR'!S107","v":0},{"v":0,"d":"$0"},{"v":0,"d":"$0"},{"v":0,"d":"$0"},{"v":0,"d":"$0"},null,0,null,null,{"$f":"'2 REPAIR ESTIMATOR'!AD107","v":{"v":0,"d":"$0.00"}},{"$f":"'2 REPAIR ESTIMATOR'!AM107","v":{"v":0,"d":"$0.00"}},{"v":0,"d":"$0.00"},{"$f":"'2 REPAIR ESTIMATOR'!AG107","v":{"v":0,"d":"$0.00"}},{"$f":"'2 REPAIR ESTIMATOR'!AJ107","v":{"v":0,"d":"$0.00"}}]
[null,null,{"$f":"T('2 REPAIR ESTIMATOR'!D108:O108)","v":""},{"$nulls":5},{"$f":"'2 REPAIR ESTIMATOR'!P108","v":0},{"$f":"'2 REPAIR ESTIMATOR'!S108","v":0},{"v":0,"d":"$0"},{"v":0,"d":"$0"},{"v":0,"d":"$0"},{"v":0,"d":"$0"},null,{"$f":"I93","v":0},null,null,{"$f":"'2 REPAIR ESTIMATOR'!AD108","v":{"v":0,"d":"$0.00"}},{"$f":"'2 REPAIR ESTIMATOR'!AM108","v":{"v":0,"d":"$0.00"}},{"v":0,"d":"$0.00"},{"$f":"'2 REPAIR ESTIMATOR'!AG108","v":{"v":0,"d":"$0.00"}},{"$f":"'2 REPAIR ESTIMATOR'!AJ108","v":{"v":0,"d":"$0.00"}}]
[null,null,{"$f":"T('2 REPAIR ESTIMATOR'!D109:O109)","v":""},{"$nulls":5},{"$f":"'2 REPAIR ESTIMATOR'!P109","v":0},{"$f":"'2 REPAIR ESTIMATOR'!S109","v":0},{"v":0,"d":"$0"},{"v":0,"d":"$0"},{"v":0,"d":"$0"},{"v":0,"d":"$0"},null,0,null,null,{"$f":"'2 REPAIR ESTIMATOR'!AD109","v":{"v":0,"d":"$0.00"}},{"$f":"'2 REPAIR ESTIMATOR'!AM109","v":{"v":0,"d":"$0.00"}},{"v":0,"d":"$0.00"},{"$f":"'2 REPAIR ESTIMATOR'!AG109","v":{"v":0,"d":"$0.00"}},{"$f":"'2 REPAIR ESTIMATOR'!AJ109","v":{"v":0,"d":"$0.00"}}]
[null,null,{"$f":"T('2 REPAIR ESTIMATOR'!D110:O110)","v":""},{"$nulls":5},{"$f":"'2 REPAIR ESTIMATOR'!P110","v":0},{"$f":"'2 REPAIR ESTIMATOR'!S110","v":0},{"v":0,"d":"$0"},{"v":0,"d":"$0"},{"v":0,"d":"$0"},{"v":0,"d":"$0"},null,0,null,null,{"$f":"'2 REPAIR ESTIMATOR'!AD110","v":{"v":0,"d":"$0.00"}},{"$f":"'2 REPAIR ESTIMATOR'!AM110","v":{"v":0,"d":"$0.00"}},{"v":0,"d":"$0.00"},{"$f":"'2 REPAIR ESTIMATOR'!AG110","v":{"v":0,"d":"$0.00"}},{"$f":"'2 REPAIR ESTIMATOR'!AJ110","v":{"v":0,"d":"$0.00"}}]
[null,null,{"$f":"T('2 REPAIR ESTIMATOR'!D111:O111)","v":""},{"$nulls":5},{"$f":"'2 REPAIR ESTIMATOR'!P111","v":0},{"$f":"'2 REPAIR ESTIMATOR'!S111","v":0},{"v":0,"d":"$0"},{"v":0,"d":"$0"},{"v":0,"d":"$0"},{"v":0,"d":"$0"},null,0,null,null,{"$f":"'2 REPAIR ESTIMATOR'!AD111","v":{"v":0,"d":"$0.00"}},{"$f":"'2 REPAIR ESTIMATOR'!AM111","v":{"v":0,"d":"$0.00"}},{"v":0,"d":"$0.00"},{"$f":"'2 REPAIR ESTIMATOR'!AG111","v":{"v":0,"d":"$0.00"}},{"$f":"'2 REPAIR ESTIMATOR'!AJ111","v":{"v":0,"d":"$0.00"}}]
[null,null,{"$f":"T('2 REPAIR ESTIMATOR'!D112:O112)","v":""},{"$nulls":5},{"$f":"'2 REPAIR ESTIMATOR'!P112","v":0},{"$f":"'2 REPAIR ESTIMATOR'!S112","v":0},{"v":0,"d":"$0"},{"v":0,"d":"$0"},{"v":0,"d":"$0"},{"v":0,"d":"$0"},null,0,null,null,{"$f":"'2 REPAIR ESTIMATOR'!AD112","v":{"v":0,"d":"$0.00"}},{"$f":"'2 REPAIR ESTIMATOR'!AM112","v":{"v":0,"d":"$0.00"}},{"v":0,"d":"$0.00"},{"$f":"'2 REPAIR ESTIMATOR'!AG112","v":{"v":0,"d":"$0.00"}},{"$f":"'2 REPAIR ESTIMATOR'!AJ112","v":{"v":0,"d":"$0.00"}}]
[null,null,{"$f":"T('2 REPAIR ESTIMATOR'!D113:O113)","v":""},{"$nulls":5},{"$f":"'2 REPAIR ESTIMATOR'!P113","v":0},{"$f":"'2 REPAIR ESTIMATOR'!S113","v":0},{"v":0,"d":"$0"},{"v":0,"d":"$0"},{"v":0,"d":"$0"},{"v":0,"d":"$0"},null,0,null,null,{"$f":"'2 REPAIR ESTIMATOR'!AD113","v":{"v":0,"d":"$0.00"}},{"$f":"'2 REPAIR ESTIMATOR'!AM113","v":{"v":0,"d":"$0.00"}},{"v":0,"d":"$0.00"},{"$f":"'2 REPAIR ESTIMATOR'!AG113","v":{"v":0,"d":"$0.00"}},{"$f":"'2 REPAIR ESTIMATOR'!AJ113","v":{"v":0,"d":"$0.00"}}]
[null,null,{"$f":"T('2 REPAIR ESTIMATOR'!D114:O114)","v":""},{"$nulls":5},{"$f":"'2 REPAIR ESTIMATOR'!P114","v":0},{"$f":"'2 REPAIR ESTIMATOR'!S114","v":0},{"v":0,"d":"$0"},{"v":0,"d":"$0"},{"v":0,"d":"$0"},{"v":0,"d":"$0"},null,0,null,null,{"$f":"'2 REPAIR ESTIMATOR'!AD114","v":{"v":0,"d":"$0.00"}},{"$f":"'2 REPAIR ESTIMATOR'!AM114","v":{"v":0,"d":"$0.00"}},{"v":0,"d":"$0.00"},{"$f":"'2 REPAIR ESTIMATOR'!AG114","v":{"v":0,"d":"$0.00"}},{"$f":"'2 REPAIR ESTIMATOR'!AJ114","v":{"v":0,"d":"$0.00"}}]
[null,null,{"$f":"T('2 REPAIR ESTIMATOR'!D115:O115)","v":""},{"$nulls":5},{"$f":"'2 REPAIR ESTIMATOR'!P115","v":0},{"$f":"'2 REPAIR ESTIMATOR'!S115","v":0},{"v":0,"d":"$0"},{"v":0,"d":"$0"},{"v":0,"d":"$0"},{"v":0,"d":"$0"},null,0,null,null,{"$f":"'2 REPAIR ESTIMATOR'!AD115","v":{"v":0,"d":"$0.00"}},{"$f":"'2 REPAIR ESTIMATOR'!AM115","v":{"v":0,"d":"$0.00"}},{"v":0,"d":"$0.00"},{"$f":"'2 REPAIR ESTIMATOR'!AG115","v":{"v":0,"d":"$0.00"}},{"$f":"'2 REPAIR ESTIMATOR'!AJ115","v":{"v":0,"d":"$0.00"}}]
[null,null,{"$f":"T('2 REPAIR ESTIMATOR'!D116:O116)","v":""},{"$nulls":5},{"$f":"'2 REPAIR ESTIMATOR'!P116","v":0},{"$f":"'2 REPAIR ESTIMATOR'!S116","v":0},{"v":0,"d":"$0"},{"v":0,"d":"$0"},{"v":0,"d":"$0"},{"v":0,"d":"$0"},null,0,null,null,{"$f":"'2 REPAIR ESTIMATOR'!AD116","v":{"v":0,"d":"$0.00"}},{"$f":"'2 REPAIR ESTIMATOR'!AM116","v":{"v":0,"d":"$0.00"}},{"v":0,"d":"$0.00"},{"$f":"'2 REPAIR ESTIMATOR'!AG116","v":{"v":0,"d":"$0.00"}},{"$f":"'2 REPAIR ESTIMATOR'!AJ116","v":{"v":0,"d":"$0.00"}}]
[null,null,{"$f":"T('2 REPAIR ESTIMATOR'!D117:O117)","v":""},{"$nulls":5},{"$f":"'2 REPAIR ESTIMATOR'!P117","v":0},{"$f":"'2 REPAIR ESTIMATOR'!S117","v":0},{"v":0,"d":"$0"},{"v":0,"d":"$0"},{"v":0,"d":"$0"},{"v":0,"d":"$0"},null,0,null,null,{"$f":"'2 REPAIR ESTIMATOR'!AD117","v":{"v":0,"d":"$0.00"}},{"$f":"'2 REPAIR ESTIMATOR'!AM117","v":{"v":0,"d":"$0.00"}},{"v":0,"d":"$0.00"},{"$f":"'2 REPAIR ESTIMATOR'!AG117","v":{"v":0,"d":"$0.00"}},{"$f":"'2 REPAIR ESTIMATOR'!AJ117","v":{"v":0,"d":"$0.00"}}]
[null,null,{"$f":"T('2 REPAIR ESTIMATOR'!D118:O118)","v":""},{"$nulls":5},{"$f":"'2 REPAIR ESTIMATOR'!P118","v":0},{"$f":"'2 REPAIR ESTIMATOR'!S118","v":0},{"v":0,"d":"$0"},{"v":0,"d":"$0"},{"v":0,"d":"$0"},{"v":0,"d":"$0"},null,0,null,null,{"$f":"'2 REPAIR ESTIMATOR'!AD118","v":{"v":0,"d":"$0.00"}},{"$f":"'2 REPAIR ESTIMATOR'!AM118","v":{"v":0,"d":"$0.00"}},{"v":0,"d":"$0.00"},{"$f":"'2 REPAIR ESTIMATOR'!AG118","v":{"v":0,"d":"$0.00"}},{"$f":"'2 REPAIR ESTIMATOR'!AJ118","v":{"v":0,"d":"$0.00"}}]
[null,null,{"$f":"T('2 REPAIR ESTIMATOR'!D119:O119)","v":""},{"$nulls":5},{"$f":"'2 REPAIR ESTIMATOR'!P119","v":0},{"$f":"'2 REPAIR ESTIMATOR'!S119","v":0},{"v":0,"d":"$0"},{"v":0,"d":"$0"},{"v":0,"d":"$0"},{"v":0,"d":"$0"},null,0,null,null,{"$f":"'2 REPAIR ESTIMATOR'!AD119","v":{"v":0,"d":"$0.00"}},{"$f":"'2 REPAIR ESTIMATOR'!AM119","v":{"v":0,"d":"$0.00"}},{"v":0,"d":"$0.00"},{"$f":"'2 REPAIR ESTIMATOR'!AG119","v":{"v":0,"d":"$0.00"}},{"$f":"'2 REPAIR ESTIMATOR'!AJ119","v":{"v":0,"d":"$0.00"}}]
[null,null,{"$f":"T('2 REPAIR ESTIMATOR'!D120:O120)","v":""},{"$nulls":5},{"$f":"'2 REPAIR ESTIMATOR'!P120","v":0},{"$f":"'2 REPAIR ESTIMATOR'!S120","v":0},{"v":0,"d":"$0"},{"v":0,"d":"$0"},{"v":0,"d":"$0"},{"v":0,"d":"$0"},null,0,null,null,{"$f":"'2 REPAIR ESTIMATOR'!AD120","v":{"v":0,"d":"$0.00"}},{"$f":"'2 REPAIR ESTIMATOR'!AM120","v":{"v":0,"d":"$0.00"}},{"v":0,"d":"$0.00"},{"$f":"'2 REPAIR ESTIMATOR'!AG120","v":{"v":0,"d":"$0.00"}},{"$f":"'2 REPAIR ESTIMATOR'!AJ120","v":{"v":0,"d":"$0.00"}}]
[null,null,{"$f":"T('2 REPAIR ESTIMATOR'!D121:O121)","v":""},{"$nulls":5},{"$f":"'2 REPAIR ESTIMATOR'!P121","v":0},{"$f":"'2 REPAIR ESTIMATOR'!S121","v":0},{"v":0,"d":"$0"},{"v":0,"d":"$0"},{"v":0,"d":"$0"},{"v":0,"d":"$0"},null,0,null,null,{"$f":"'2 REPAIR ESTIMATOR'!AD121","v":{"v":0,"d":"$0.00"}},{"$f":"'2 REPAIR ESTIMATOR'!AM121","v":{"v":0,"d":"$0.00"}},{"v":0,"d":"$0.00"},{"$f":"'2 REPAIR ESTIMATOR'!AG121","v":{"v":0,"d":"$0.00"}},{"$f":"'2 REPAIR ESTIMATOR'!AJ121","v":{"v":0,"d":"$0.00"}}]
[null,null,{"$f":"T('2 REPAIR ESTIMATOR'!D122:O122)","v":""},{"$nulls":5},{"$f":"'2 REPAIR ESTIMATOR'!P122","v":0},{"$f":"'2 REPAIR ESTIMATOR'!S122","v":0},{"v":0,"d":"$0"},{"v":0,"d":"$0"},{"v":0,"d":"$0"},{"v":0,"d":"$0"},null,0,null,null,{"$f":"'2 REPAIR ESTIMATOR'!AD122","v":{"v":0,"d":"$0.00"}},{"$f":"'2 REPAIR ESTIMATOR'!AM122","v":{"v":0,"d":"$0.00"}},{"v":0,"d":"$0.00"},{"$f":"'2 REPAIR ESTIMATOR'!AG122","v":{"v":0,"d":"$0.00"}},{"$f":"'2 REPAIR ESTIMATOR'!AJ122","v":{"v":0,"d":"$0.00"}}]
[null,null,{"$f":"T('2 REPAIR ESTIMATOR'!D123:O123)","v":""},{"$nulls":5},{"$f":"'2 REPAIR ESTIMATOR'!P123","v":0},{"$f":"'2 REPAIR ESTIMATOR'!S123","v":0},{"v":0,"d":"$0"},{"v":0,"d":"$0"},{"v":0,"d":"$0"},{"v":0,"d":"$0"},null,0,null,null,{"$f":"'2 REPAIR ESTIMATOR'!AD123","v":{"v":0,"d":"$0.00"}},{"$f":"'2 REPAIR ESTIMATOR'!AM123","v":{"v":0,"d":"$0.00"}},{"v":0,"d":"$0.00"},{"$f":"'2 REPAIR ESTIMATOR'!AG123","v":{"v":0,"d":"$0.00"}},{"$f":"'2 REPAIR ESTIMATOR'!AJ123","v":{"v":0,"d":"$0.00"}}]
[null,null,{"$f":"T('2 REPAIR ESTIMATOR'!D124:O124)","v":""},{"$nulls":5},{"$f":"'2 REPAIR ESTIMATOR'!P124","v":0},{"$f":"'2 REPAIR ESTIMATOR'!S124","v":0},{"v":0,"d":"$0"},{"v":0,"d":"$0"},{"v":0,"d":"$0"},{"v":0,"d":"$0"},null,0,null,null,{"$f":"'2 REPAIR ESTIMATOR'!AD124","v":{"v":0,"d":"$0.00"}},{"$f":"'2 REPAIR ESTIMATOR'!AM124","v":{"v":0,"d":"$0.00"}},{"v":0,"d":"$0.00"},{"$f":"'2 REPAIR ESTIMATOR'!AG124","v":{"v":0,"d":"$0.00"}},{"$f":"'2 REPAIR ESTIMATOR'!AJ124","v":{"v":0,"d":"$0.00"}}]
[null,null,{"$f":"T('2 REPAIR ESTIMATOR'!D125:O125)","v":""},{"$nulls":5},{"$f":"'2 REPAIR ESTIMATOR'!P125","v":0},{"$f":"'2 REPAIR ESTIMATOR'!S125","v":0},{"v":0,"d":"$0"},{"v":0,"d":"$0"},{"v":0,"d":"$0"},{"v":0,"d":"$0"},null,0,null,null,{"$f":"'2 REPAIR ESTIMATOR'!AD125","v":{"v":0,"d":"$0.00"}},{"$f":"'2 REPAIR ESTIMATOR'!AM125","v":{"v":0,"d":"$0.00"}},{"v":0,"d":"$0.00"},{"$f":"'2 REPAIR ESTIMATOR'!AG125","v":{"v":0,"d":"$0.00"}},{"$f":"'2 REPAIR ESTIMATOR'!AJ125","v":{"v":0,"d":"$0.00"}}]
[null,null,{"$f":"T('2 REPAIR ESTIMATOR'!D126:O126)","v":""},{"$nulls":5},{"$f":"'2 REPAIR ESTIMATOR'!P126","v":0},{"$f":"'2 REPAIR ESTIMATOR'!S126","v":0},{"v":0,"d":"$0"},{"v":0,"d":"$0"},{"v":0,"d":"$0"},{"v":0,"d":"$0"},null,0,null,null,{"$f":"'2 REPAIR ESTIMATOR'!AD126","v":{"v":0,"d":"$0.00"}},{"$f":"'2 REPAIR ESTIMATOR'!AM126","v":{"v":0,"d":"$0.00"}},{"v":0,"d":"$0.00"},{"$f":"'2 REPAIR ESTIMATOR'!AG126","v":{"v":0,"d":"$0.00"}},{"$f":"'2 REPAIR ESTIMATOR'!AJ126","v":{"v":0,"d":"$0.00"}}]
[null,null,{"$f":"T('2 REPAIR ESTIMATOR'!D127:O127)","v":""},{"$nulls":5},{"$f":"'2 REPAIR ESTIMATOR'!P127","v":0},{"$f":"'2 REPAIR ESTIMATOR'!S127","v":0},{"v":0,"d":"$0"},{"v":0,"d":"$0"},{"v":0,"d":"$0"},{"v":0,"d":"$0"},null,0,null,null,{"$f":"'2 REPAIR ESTIMATOR'!AD127","v":{"v":0,"d":"$0.00"}},{"$f":"'2 REPAIR ESTIMATOR'!AM127","v":{"v":0,"d":"$0.00"}},{"v":0,"d":"$0.00"},{"$f":"'2 REPAIR ESTIMATOR'!AG127","v":{"v":0,"d":"$0.00"}},{"$f":"'2 REPAIR ESTIMATOR'!AJ127","v":{"v":0,"d":"$0.00"}}]
[null,null,{"$f":"T('2 REPAIR ESTIMATOR'!AC129)","v":"GENERAL CONDITIONS TOTAL"},{"$nulls":7},{"$f":"SUM(K73:K112)","v":{"v":80,"d":"$80"}},{"$f":"SUM(L73:L112)","v":{"v":454.75,"d":"$455"}},{"$f":"SUM(M73:M112)","v":{"v":0,"d":"$0"}},{"$f":"SUM(N73:O112)","v":{"v":534.75,"d":"$535"}},null,{"$f":"SUM(P72:P90)","v":10},null,null,{"$f":"SUM(S73:S112)","v":{"v":80,"d":"$80.00"}},{"$f":"SUM(T73:T112)","v":{"v":0,"d":"$0.00"}},{"$f":"SUM(U73:U112)","v":{"v":80,"d":"$80.00"}},{"$f":"SUM(V73:V112)","v":{"v":454.75,"d":"$454.75"}},{"$f":"SUM(W73:W112)","v":{"v":0,"d":"$0.00"}}]
[{"$nulls":15},{"$f":"P113","v":10}]
[null,null,{"$f":"T('2 REPAIR ESTIMATOR'!D132:O132)","v":"DEMOLITION"},{"$nulls":5},{"$f":"SUM(I116:I155)","v":80},{"$nulls":6},{"$f":"I115","v":80}]
[null,null,{"$f":"T('2 REPAIR ESTIMATOR'!D133:O133)","v":"Demolition"},{"$nulls":5},{"$f":"'2 REPAIR ESTIMATOR'!P133","v":0},{"$f":"'2 REPAIR ESTIMATOR'!S133","v":"ls"},{"$f":"IF($N$3=\"subbed\",U116,S116)*$S$70","v":{"v":0,"d":"$0"}},{"$f":"V116*$S$70","v":{"v":0,"d":"$0"}},{"$f":"W116*$S$70","v":{"v":0,"d":"$0"}},{"$f":"SUM(K116:M116)","v":{"v":0,"d":"$0"}},null,0,null,null,{"$f":"'2 REPAIR ESTIMATOR'!AD133","v":{"v":0,"d":"$0.00"}},{"$f":"'2 REPAIR ESTIMATOR'!AM133","v":{"v":0,"d":"$0.00"}},{"$f":"T116+S116","v":{"v":0,"d":"$0.00"}},{"$f":"'2 REPAIR ESTIMATOR'!AG133","v":{"v":0,"d":"$0.00"}},{"$f":"'2 REPAIR ESTIMATOR'!AJ133","v":{"v":0,"d":"$0.00"}}]
[null,null,{"$f":"T('2 REPAIR ESTIMATOR'!D134:O134)","v":"Demo bid/allowance"},{"$nulls":5},{"$f":"'2 REPAIR ESTIMATOR'!P134","v":0},{"$f":"'2 REPAIR ESTIMATOR'!S134","v":"ls"},{"v":0,"d":"$0"},{"$f":"V117*$S$70","v":{"v":0,"d":"$0"}},{"$f":"W117*$S$70","v":{"v":0,"d":"$0"}},{"$f":"SUM(K117:M117)","v":{"v":0,"d":"$0"}},null,0,null,null,{"$f":"'2 REPAIR ESTIMATOR'!AD134","v":{"v":0,"d":"$0.00"}},{"$f":"'2 REPAIR ESTIMATOR'!AM134","v":{"v":0,"d":"$0.00"}},{"$f":"T117+S117","v":{"v":0,"d":"$0.00"}},{"$f":"'2 REPAIR ESTIMATOR'!AG134","v":{"v":0,"d":"$0.00"}},{"$f":"'2 REPAIR ESTIMATOR'!AJ134","v":{"v":0,"d":"$0.00"}}]
[null,null,{"$f":"T('2 REPAIR ESTIMATOR'!D135:O135)","v":"Demolition work per hour"},{"$nulls":5},{"$f":"'2 REPAIR ESTIMATOR'!P135","v":80},{"$f":"'2 REPAIR ESTIMATOR'!S135","v":"hrs"},{"v":1600,"d":"$1,600"},{"v":0,"d":"$0"},{"v":0,"d":"$0"},{"v":1600,"d":"$1,600"},null,80,null,null,{"$f":"'2 REPAIR ESTIMATOR'!AD135","v":{"v":1600,"d":"$1,600.00"}},{"$f":"'2 REPAIR ESTIMATOR'!AM135","v":{"v":0,"d":"$0.00"}},{"v":1600,"d":"$1,600.00"},{"$f":"'2 REPAIR ESTIMATOR'!AG135","v":{"v":0,"d":"$0.00"}},{"$f":"'2 REPAIR ESTIMATOR'!AJ135","v":{"v":0,"d":"$0.00"}}]
[null,null,{"$f":"T('2 REPAIR ESTIMATOR'!D136:O136)","v":"Room demolition, typical room"},{"$nulls":5},{"$f":"'2 REPAIR ESTIMATOR'!P136","v":0},{"$f":"'2 REPAIR ESTIMATOR'!S136","v":"sf"},{"v":0,"d":"$0"},{"v":0,"d":"$0"},{"v":0,"d":"$0"},{"v":0,"d":"$0"},null,0,null,null,{"$f":"'2 REPAIR ESTIMATOR'!AD136","v":{"v":0,"d":"$0.00"}},{"$f":"'2 REPAIR ESTIMATOR'!AM136","v":{"v":0,"d":"$0.00"}},{"v":0,"d":"$0.00"},{"$f":"'2 REPAIR ESTIMATOR'!AG136","v":{"v":0,"d":"$0.00"}},{"$f":"'2 REPAIR ESTIMATOR'!AJ136","v":{"v":0,"d":"$0.00"}}]
[null,null,{"$f":"T('2 REPAIR ESTIMATOR'!D137:O137)","v":"Room demolition, bathroom"},{"$nulls":5},{"$f":"'2 REPAIR ESTIMATOR'!P137","v":0},{"$f":"'2 REPAIR ESTIMATOR'!S137","v":"sf"},{"v":0,"d":"$0"},{"v":0,"d":"$0"},{"v":0,"d":"$0"},{"v":0,"d":"$0"},null,0,null,null,{"$f":"'2 REPAIR ESTIMATOR'!AD137","v":{"v":0,"d":"$0.00"}},{"$f":"'2 REPAIR ESTIMATOR'!AM137","v":{"v":0,"d":"$0.00"}},{"v":0,"d":"$0.00"},{"$f":"'2 REPAIR ESTIMATOR'!AG137","v":{"v":0,"d":"$0.00"}},{"$f":"'2 REPAIR ESTIMATOR'!AJ137","v":{"v":0,"d":"$0.00"}}]
[null,null,{"$f":"T('2 REPAIR ESTIMATOR'!D138:O138)","v":"Room demolition, kitchen"},{"$nulls":5},{"$f":"'2 REPAIR ESTIMATOR'!P138","v":0},{"$f":"'2 REPAIR ESTIMATOR'!S138","v":"sf"},{"v":0,"d":"$0"},{"v":0,"d":"$0"},{"v":0,"d":"$0"},{"v":0,"d":"$0"},null,0,null,null,{"$f":"'2 REPAIR ESTIMATOR'!AD138","v":{"v":0,"d":"$0.00"}},{"$f":"'2 REPAIR ESTIMATOR'!AM138","v":{"v":0,"d":"$0.00"}},{"v":0,"d":"$0.00"},{"$f":"'2 REPAIR ESTIMATOR'!AG138","v":{"v":0,"d":"$0.00"}},{"$f":"'2 REPAIR ESTIMATOR'!AJ138","v":{"v":0,"d":"$0.00"}}]
[null,null,{"$f":"T('2 REPAIR ESTIMATOR'!D139:O139)","v":"Building demolition, 1-story wood-framed"},{"$nulls":5},{"$f":"'2 REPAIR ESTIMATOR'!P139","v":0},{"$f":"'2 REPAIR ESTIMATOR'!S139","v":"sf"},{"v":0,"d":"$0"},{"v":0,"d":"$0"},{"v":0,"d":"$0"},{"v":0,"d":"$0"},null,0,null,null,{"$f":"'2 REPAIR ESTIMATOR'!AD139","v":{"v":0,"d":"$0.00"}},{"$f":"'2 REPAIR ESTIMATOR'!AM139","v":{"v":0,"d":"$0.00"}},{"v":0,"d":"$0.00"},{"$f":"'2 REPAIR ESTIMATOR'!AG139","v":{"v":0,"d":"$0.00"}},{"$f":"'2 REPAIR ESTIMATOR'!AJ139","v":{"v":0,"d":"$0.00"}}]
[null,null,{"$f":"T('2 REPAIR ESTIMATOR'!D140:O140)","v":"Building demolition, 2-story wood framed"},{"$nulls":5},{"$f":"'2 REPAIR ESTIMATOR'!P140","v":0},{"$f":"'2 REPAIR ESTIMATOR'!S140","v":"sf"},{"v":0,"d":"$0"},{"v":0,"d":"$0"},{"v":0,"d":"$0"},{"v":0,"d":"$0"},null,0,null,null,{"$f":"'2 REPAIR ESTIMATOR'!AD140","v":{"v":0,"d":"$0.00"}},{"$f":"'2 REPAIR ESTIMATOR'!AM140","v":{"v":0,"d":"$0.00"}},{"v":0,"d":"$0.00"},{"$f":"'2 REPAIR ESTIMATOR'!AG140","v":{"v":0,"d":"$0.00"}},{"$f":"'2 REPAIR ESTIMATOR'!AJ140","v":{"v":0,"d":"$0.00"}}]
[null,null,{"$f":"T('2 REPAIR ESTIMATOR'!D141:O141)","v":"Building demolition, masonry"},{"$nulls":5},{"$f":"'2 REPAIR ESTIMATOR'!P141","v":0},{"$f":"'2 REPAIR ESTIMATOR'!S141","v":"sf"},{"v":0,"d":"$0"},{"v":0,"d":"$0"},{"v":0,"d":"$0"},{"v":0,"d":"$0"},null,0,null,null,{"$f":"'2 REPAIR ESTIMATOR'!AD141","v":{"v":0,"d":"$0.00"}},{"$f":"'2 REPAIR ESTIMATOR'!AM141","v":{"v":0,"d":"$0.00"}},{"v":0,"d":"$0.00"},{"$f":"'2 REPAIR ESTIMATOR'!AG141","v":{"v":0,"d":"$0.00"}},{"$f":"'2 REPAIR ESTIMATOR'!AJ141","v":{"v":0,"d":"$0.00"}}]
[null,null,{"$f":"T('2 REPAIR ESTIMATOR'!D142:O142)","v":"Building demolition, steel/concrete"},{"$nulls":5},{"$f":"'2 REPAIR ESTIMATOR'!P142","v":0},{"$f":"'2 REPAIR ESTIMATOR'!S142","v":"sf"},{"v":0,"d":"$0"},{"v":0,"d":"$0"},{"v":0,"d":"$0"},{"v":0,"d":"$0"},null,0,null,null,{"$f":"'2 REPAIR ESTIMATOR'!AD142","v":{"v":0,"d":"$0.00"}},{"$f":"'2 REPAIR ESTIMATOR'!AM142","v":{"v":0,"d":"$0.00"}},{"v":0,"d":"$0.00"},{"$f":"'2 REPAIR ESTIMATOR'!AG142","v":{"v":0,"d":"$0.00"}},{"$f":"'2 REPAIR ESTIMATOR'!AJ142","v":{"v":0,"d":"$0.00"}}]
[null,null,{"$f":"T('2 REPAIR ESTIMATOR'!D143:O143)","v":"Concrete slab demolition, 4\"-6\""},{"$nulls":5},{"$f":"'2 REPAIR ESTIMATOR'!P143","v":0},{"$f":"'2 REPAIR ESTIMATOR'!S143","v":0},{"v":0,"d":"$0"},{"v":0,"d":"$0"},{"v":0,"d":"$0"},{"v":0,"d":"$0"},null,0,null,null,{"$f":"'2 REPAIR ESTIMATOR'!AD143","v":{"v":0,"d":"$0.00"}},{"$f":"'2 REPAIR ESTIMATOR'!AM143","v":{"v":0,"d":"$0.00"}},{"v":0,"d":"$0.00"},{"$f":"'2 REPAIR ESTIMATOR'!AG143","v":{"v":0,"d":"$0.00"}},{"$f":"'2 REPAIR ESTIMATOR'!AJ143","v":{"v":0,"d":"$0.00"}}]
[null,null,{"$f":"T('2 REPAIR ESTIMATOR'!D144:O144)","v":""},{"$nulls":5},{"$f":"'2 REPAIR ESTIMATOR'!P144","v":0},{"$f":"'2 REPAIR ESTIMATOR'!S144","v":0},{"v":0,"d":"$0"},{"v":0,"d":"$0"},{"v":0,"d":"$0"},{"v":0,"d":"$0"},null,0,null,null,{"$f":"'2 REPAIR ESTIMATOR'!AD144","v":{"v":0,"d":"$0.00"}},{"$f":"'2 REPAIR ESTIMATOR'!AM144","v":{"v":0,"d":"$0.00"}},{"v":0,"d":"$0.00"},{"$f":"'2 REPAIR ESTIMATOR'!AG144","v":{"v":0,"d":"$0.00"}},{"$f":"'2 REPAIR ESTIMATOR'!AJ144","v":{"v":0,"d":"$0.00"}}]
[null,null,{"$f":"T('2 REPAIR ESTIMATOR'!D145:O145)","v":""},{"$nulls":5},{"$f":"'2 REPAIR ESTIMATOR'!P145","v":0},{"$f":"'2 REPAIR ESTIMATOR'!S145","v":0},{"v":0,"d":"$0"},{"v":0,"d":"$0"},{"v":0,"d":"$0"},{"v":0,"d":"$0"},null,0,null,null,{"$f":"'2 REPAIR ESTIMATOR'!AD145","v":{"v":0,"d":"$0.00"}},{"$f":"'2 REPAIR ESTIMATOR'!AM145","v":{"v":0,"d":"$0.00"}},{"v":0,"d":"$0.00"},{"$f":"'2 REPAIR ESTIMATOR'!AG145","v":{"v":0,"d":"$0.00"}},{"$f":"'2 REPAIR ESTIMATOR'!AJ145","v":{"v":0,"d":"$0.00"}}]
[null,null,{"$f":"T('2 REPAIR ESTIMATOR'!D146:O146)","v":"Abatement"},{"$nulls":5},{"$f":"'2 REPAIR ESTIMATOR'!P146","v":0},{"$f":"'2 REPAIR ESTIMATOR'!S146","v":"ls"},{"v":0,"d":"$0"},{"v":0,"d":"$0"},{"v":0,"d":"$0"},{"v":0,"d":"$0"},null,0,null,null,{"$f":"'2 REPAIR ESTIMATOR'!AD146","v":{"v":0,"d":"$0.00"}},{"$f":"'2 REPAIR ESTIMATOR'!AM146","v":{"v":0,"d":"$0.00"}},{"v":0,"d":"$0.00"},{"$f":"'2 REPAIR ESTIMATOR'!AG146","v":{"v":0,"d":"$0.00"}},{"$f":"'2 REPAIR ESTIMATOR'!AJ146","v":{"v":0,"d":"$0.00"}}]
[null,null,{"$f":"T('2 REPAIR ESTIMATOR'!D147:O147)","v":"Asbestos bid/allowance"},{"$nulls":5},{"$f":"'2 REPAIR ESTIMATOR'!P147","v":0},{"$f":"'2 REPAIR ESTIMATOR'!S147","v":"ls"},{"v":0,"d":"$0"},{"v":0,"d":"$0"},{"v":0,"d":"$0"},{"v":0,"d":"$0"},null,0,null,null,{"$f":"'2 REPAIR ESTIMATOR'!AD147","v":{"v":0,"d":"$0.00"}},{"$f":"'2 REPAIR ESTIMATOR'!AM147","v":{"v":0,"d":"$0.00"}},{"v":0,"d":"$0.00"},{"$f":"'2 REPAIR ESTIMATOR'!AG147","v":{"v":0,"d":"$0.00"}},{"$f":"'2 REPAIR ESTIMATOR'!AJ147","v":{"v":0,"d":"$0.00"}}]
[null,null,{"$f":"T('2 REPAIR ESTIMATOR'!D148:O148)","v":"Asbestos testing"},{"$nulls":5},{"$f":"'2 REPAIR ESTIMATOR'!P148","v":0},{"$f":"'2 REPAIR ESTIMATOR'!S148","v":"ea"},{"v":0,"d":"$0"},{"v":0,"d":"$0"},{"v":0,"d":"$0"},{"v":0,"d":"$0"},null,0,null,null,{"$f":"'2 REPAIR ESTIMATOR'!AD148","v":{"v":0,"d":"$0.00"}},{"$f":"'2 REPAIR ESTIMATOR'!AM148","v":{"v":0,"d":"$0.00"}},{"v":0,"d":"$0.00"},{"$f":"'2 REPAIR ESTIMATOR'!AG148","v":{"v":0,"d":"$0.00"}},{"$f":"'2 REPAIR ESTIMATOR'!AJ148","v":{"v":0,"d":"$0.00"}}]
[null,null,{"$f":"T('2 REPAIR ESTIMATOR'!D149:O149)","v":"Asbestos abatement, minimum charge"},{"$nulls":5},{"$f":"'2 REPAIR ESTIMATOR'!P149","v":0},{"$f":"'2 REPAIR ESTIMATOR'!S149","v":"ea"},{"v":0,"d":"$0"},{"v":0,"d":"$0"},{"v":0,"d":"$0"},{"v":0,"d":"$0"},null,0,null,null,{"$f":"'2 REPAIR ESTIMATOR'!AD149","v":{"v":0,"d":"$0.00"}},{"$f":"'2 REPAIR ESTIMATOR'!AM149","v":{"v":0,"d":"$0.00"}},{"v":0,"d":"$0.00"},{"$f":"'2 REPAIR ESTIMATOR'!AG149","v":{"v":0,"d":"$0.00"}},{"$f":"'2 REPAIR ESTIMATOR'!AJ149","v":{"v":0,"d":"$0.00"}}]
[null,null,{"$f":"T('2 REPAIR ESTIMATOR'!D150:O150)","v":"Mold, minimum charge"},{"$nulls":5},{"$f":"'2 REPAIR ESTIMATOR'!P150","v":0},{"$f":"'2 REPAIR ESTIMATOR'!S150","v":0},{"v":0,"d":"$0"},{"v":0,"d":"$0"},{"v":0,"d":"$0"},{"v":0,"d":"$0"},null,0,null,null,{"$f":"'2 REPAIR ESTIMATOR'!AD150","v":{"v":0,"d":"$0.00"}},{"$f":"'2 REPAIR ESTIMATOR'!AM150","v":{"v":0,"d":"$0.00"}},{"v":0,"d":"$0.00"},{"$f":"'2 REPAIR ESTIMATOR'!AG150","v":{"v":0,"d":"$0.00"}},{"$f":"'2 REPAIR ESTIMATOR'!AJ150","v":{"v":0,"d":"$0.00"}}]
[null,null,{"$f":"T('2 REPAIR ESTIMATOR'!D151:O151)","v":""},{"$nulls":5},{"$f":"'2 REPAIR ESTIMATOR'!P151","v":0},{"$f":"'2 REPAIR ESTIMATOR'!S151","v":0},{"v":0,"d":"$0"},{"v":0,"d":"$0"},{"v":0,"d":"$0"},{"v":0,"d":"$0"},null,0,null,null,{"$f":"'2 REPAIR ESTIMATOR'!AD151","v":{"v":0,"d":"$0.00"}},{"$f":"'2 REPAIR ESTIMATOR'!AM151","v":{"v":0,"d":"$0.00"}},{"v":0,"d":"$0.00"},{"$f":"'2 REPAIR ESTIMATOR'!AG151","v":{"v":0,"d":"$0.00"}},{"$f":"'2 REPAIR ESTIMATOR'!AJ151","v":{"v":0,"d":"$0.00"}}]
[null,null,{"$f":"T('2 REPAIR ESTIMATOR'!D152:O152)","v":""},{"$nulls":5},{"$f":"'2 REPAIR ESTIMATOR'!P152","v":0},{"$f":"'2 REPAIR ESTIMATOR'!S152","v":0},{"v":0,"d":"$0"},{"v":0,"d":"$0"},{"v":0,"d":"$0"},{"v":0,"d":"$0"},null,0,null,null,{"$f":"'2 REPAIR ESTIMATOR'!AD152","v":{"v":0,"d":"$0.00"}},{"$f":"'2 REPAIR ESTIMATOR'!AM152","v":{"v":0,"d":"$0.00"}},{"v":0,"d":"$0.00"},{"$f":"'2 REPAIR ESTIMATOR'!AG152","v":{"v":0,"d":"$0.00"}},{"$f":"'2 REPAIR ESTIMATOR'!AJ152","v":{"v":0,"d":"$0.00"}}]
[null,null,{"$f":"T('2 REPAIR ESTIMATOR'!D153:O153)","v":""},{"$nulls":5},{"$f":"'2 REPAIR ESTIMATOR'!P153","v":0},{"$f":"'2 REPAIR ESTIMATOR'!S153","v":0},{"v":0,"d":"$0"},{"v":0,"d":"$0"},{"v":0,"d":"$0"},{"v":0,"d":"$0"},null,{"$f":"I136","v":0},null,null,{"$f":"'2 REPAIR ESTIMATOR'!AD153","v":{"v":0,"d":"$0.00"}},{"$f":"'2 REPAIR ESTIMATOR'!AM153","v":{"v":0,"d":"$0.00"}},{"v":0,"d":"$0.00"},{"$f":"'2 REPAIR ESTIMATOR'!AG153","v":{"v":0,"d":"$0.00"}},{"$f":"'2 REPAIR ESTIMATOR'!AJ153","v":{"v":0,"d":"$0.00"}}]
[null,null,{"$f":"T('2 REPAIR ESTIMATOR'!D154:O154)","v":""},{"$nulls":5},{"$f":"'2 REPAIR ESTIMATOR'!P154","v":0},{"$f":"'2 REPAIR ESTIMATOR'!S154","v":0},{"v":0,"d":"$0"},{"v":0,"d":"$0"},{"v":0,"d":"$0"},{"v":0,"d":"$0"},null,0,null,null,{"$f":"'2 REPAIR ESTIMATOR'!AD154","v":{"v":0,"d":"$0.00"}},{"$f":"'2 REPAIR ESTIMATOR'!AM154","v":{"v":0,"d":"$0.00"}},{"v":0,"d":"$0.00"},{"$f":"'2 REPAIR ESTIMATOR'!AG154","v":{"v":0,"d":"$0.00"}},{"$f":"'2 REPAIR ESTIMATOR'!AJ154","v":{"v":0,"d":"$0.00"}}]
[null,null,{"$f":"T('2 REPAIR ESTIMATOR'!D155:O155)","v":""},{"$nulls":5},{"$f":"'2 REPAIR ESTIMATOR'!P155","v":0},{"$f":"'2 REPAIR ESTIMATOR'!S155","v":0},{"v":0,"d":"$0"},{"v":0,"d":"$0"},{"v":0,"d":"$0"},{"v":0,"d":"$0"},null,0,null,null,{"$f":"'2 REPAIR ESTIMATOR'!AD155","v":{"v":0,"d":"$0.00"}},{"$f":"'2 REPAIR ESTIMATOR'!AM155","v":{"v":0,"d":"$0.00"}},{"v":0,"d":"$0.00"},{"$f":"'2 REPAIR ESTIMATOR'!AG155","v":{"v":0,"d":"$0.00"}},{"$f":"'2 REPAIR ESTIMATOR'!AJ155","v":{"v":0,"d":"$0.00"}}]
[null,null,{"$f":"T('2 REPAIR ESTIMATOR'!D156:O156)","v":""},{"$nulls":5},{"$f":"'2 REPAIR ESTIMATOR'!P156","v":0},{"$f":"'2 REPAIR ESTIMATOR'!S156","v":0},{"v":0,"d":"$0"},{"v":0,"d":"$0"},{"v":0,"d":"$0"},{"v":0,"d":"$0"},null,0,null,null,{"$f":"'2 REPAIR ESTIMATOR'!AD156","v":{"v":0,"d":"$0.00"}},{"$f":"'2 REPAIR ESTIMATOR'!AM156","v":{"v":0,"d":"$0.00"}},{"v":0,"d":"$0.00"},{"$f":"'2 REPAIR ESTIMATOR'!AG156","v":{"v":0,"d":"$0.00"}},{"$f":"'2 REPAIR ESTIMATOR'!AJ156","v":{"v":0,"d":"$0.00"}}]
[null,null,{"$f":"T('2 REPAIR ESTIMATOR'!D157:O157)","v":""},{"$nulls":5},{"$f":"'2 REPAIR ESTIMATOR'!P157","v":0},{"$f":"'2 REPAIR ESTIMATOR'!S157","v":0},{"v":0,"d":"$0"},{"v":0,"d":"$0"},{"v":0,"d":"$0"},{"v":0,"d":"$0"},null,0,null,null,{"$f":"'2 REPAIR ESTIMATOR'!AD157","v":{"v":0,"d":"$0.00"}},{"$f":"'2 REPAIR ESTIMATOR'!AM157","v":{"v":0,"d":"$0.00"}},{"v":0,"d":"$0.00"},{"$f":"'2 REPAIR ESTIMATOR'!AG157","v":{"v":0,"d":"$0.00"}},{"$f":"'2 REPAIR ESTIMATOR'!AJ157","v":{"v":0,"d":"$0.00"}}]
[null,null,{"$f":"T('2 REPAIR ESTIMATOR'!D158:O158)","v":""},{"$nulls":5},{"$f":"'2 REPAIR ESTIMATOR'!P158","v":0},{"$f":"'2 REPAIR ESTIMATOR'!S158","v":0},{"v":0,"d":"$0"},{"v":0,"d":"$0"},{"v":0,"d":"$0"},{"v":0,"d":"$0"},null,0,null,null,{"$f":"'2 REPAIR ESTIMATOR'!AD158","v":{"v":0,"d":"$0.00"}},{"$f":"'2 REPAIR ESTIMATOR'!AM158","v":{"v":0,"d":"$0.00"}},{"v":0,"d":"$0.00"},{"$f":"'2 REPAIR ESTIMATOR'!AG158","v":{"v":0,"d":"$0.00"}},{"$f":"'2 REPAIR ESTIMATOR'!AJ158","v":{"v":0,"d":"$0.00"}}]
[null,null,{"$f":"T('2 REPAIR ESTIMATOR'!D159:O159)","v":""},{"$nulls":5},{"$f":"'2 REPAIR ESTIMATOR'!P159","v":0},{"$f":"'2 REPAIR ESTIMATOR'!S159","v":0},{"v":0,"d":"$0"},{"v":0,"d":"$0"},{"v":0,"d":"$0"},{"v":0,"d":"$0"},null,0,null,null,{"$f":"'2 REPAIR ESTIMATOR'!AD159","v":{"v":0,"d":"$0.00"}},{"$f":"'2 REPAIR ESTIMATOR'!AM159","v":{"v":0,"d":"$0.00"}},{"v":0,"d":"$0.00"},{"$f":"'2 REPAIR ESTIMATOR'!AG159","v":{"v":0,"d":"$0.00"}},{"$f":"'2 REPAIR ESTIMATOR'!AJ159","v":{"v":0,"d":"$0.00"}}]
[null,null,{"$f":"T('2 REPAIR ESTIMATOR'!D160:O160)","v":""},{"$nulls":5},{"$f":"'2 REPAIR ESTIMATOR'!P160","v":0},{"$f":"'2 REPAIR ESTIMATOR'!S160","v":0},{"v":0,"d":"$0"},{"v":0,"d":"$0"},{"v":0,"d":"$0"},{"v":0,"d":"$0"},null,0,null,null,{"$f":"'2 REPAIR ESTIMATOR'!AD160","v":{"v":0,"d":"$0.00"}},{"$f":"'2 REPAIR ESTIMATOR'!AM160","v":{"v":0,"d":"$0.00"}},{"v":0,"d":"$0.00"},{"$f":"'2 REPAIR ESTIMATOR'!AG160","v":{"v":0,"d":"$0.00"}},{"$f":"'2 REPAIR ESTIMATOR'!AJ160","v":{"v":0,"d":"$0.00"}}]
[null,null,{"$f":"T('2 REPAIR ESTIMATOR'!D161:O161)","v":""},{"$nulls":5},{"$f":"'2 REPAIR ESTIMATOR'!P161","v":0},{"$f":"'2 REPAIR ESTIMATOR'!S161","v":0},{"v":0,"d":"$0"},{"v":0,"d":"$0"},{"v":0,"d":"$0"},{"v":0,"d":"$0"},null,0,null,null,{"$f":"'2 REPAIR ESTIMATOR'!AD161","v":{"v":0,"d":"$0.00"}},{"$f":"'2 REPAIR ESTIMATOR'!AM161","v":{"v":0,"d":"$0.00"}},{"v":0,"d":"$0.00"},{"$f":"'2 REPAIR ESTIMATOR'!AG161","v":{"v":0,"d":"$0.00"}},{"$f":"'2 REPAIR ESTIMATOR'!AJ161","v":{"v":0,"d":"$0.00"}}]
[null,null,{"$f":"T('2 REPAIR ESTIMATOR'!D162:O162)","v":""},{"$nulls":5},{"$f":"'2 REPAIR ESTIMATOR'!P162","v":0},{"$f":"'2 REPAIR ESTIMATOR'!S162","v":0},{"v":0,"d":"$0"},{"v":0,"d":"$0"},{"v":0,"d":"$0"},{"v":0,"d":"$0"},null,0,null,null,{"$f":"'2 REPAIR ESTIMATOR'!AD162","v":{"v":0,"d":"$0.00"}},{"$f":"'2 REPAIR ESTIMATOR'!AM162","v":{"v":0,"d":"$0.00"}},{"v":0,"d":"$0.00"},{"$f":"'2 REPAIR ESTIMATOR'!AG162","v":{"v":0,"d":"$0.00"}},{"$f":"'2 REPAIR ESTIMATOR'!AJ162","v":{"v":0,"d":"$0.00"}}]
[null,null,{"$f":"T('2 REPAIR ESTIMATOR'!D163:O163)","v":""},{"$nulls":5},{"$f":"'2 REPAIR ESTIMATOR'!P163","v":0},{"$f":"'2 REPAIR ESTIMATOR'!S163","v":0},{"v":0,"d":"$0"},{"v":0,"d":"$0"},{"v":0,"d":"$0"},{"v":0,"d":"$0"},null,0,null,null,{"$f":"'2 REPAIR ESTIMATOR'!AD163","v":{"v":0,"d":"$0.00"}},{"$f":"'2 REPAIR ESTIMATOR'!AM163","v":{"v":0,"d":"$0.00"}},{"v":0,"d":"$0.00"},{"$f":"'2 REPAIR ESTIMATOR'!AG163","v":{"v":0,"d":"$0.00"}},{"$f":"'2 REPAIR ESTIMATOR'!AJ163","v":{"v":0,"d":"$0.00"}}]
[null,null,{"$f":"T('2 REPAIR ESTIMATOR'!D164:O164)","v":""},{"$nulls":5},{"$f":"'2 REPAIR ESTIMATOR'!P164","v":0},{"$f":"'2 REPAIR ESTIMATOR'!S164","v":0},{"v":0,"d":"$0"},{"v":0,"d":"$0"},{"v":0,"d":"$0"},{"v":0,"d":"$0"},null,0,null,null,{"$f":"'2 REPAIR ESTIMATOR'!AD164","v":{"v":0,"d":"$0.00"}},{"$f":"'2 REPAIR ESTIMATOR'!AM164","v":{"v":0,"d":"$0.00"}},{"v":0,"d":"$0.00"},{"$f":"'2 REPAIR ESTIMATOR'!AG164","v":{"v":0,"d":"$0.00"}},{"$f":"'2 REPAIR ESTIMATOR'!AJ164","v":{"v":0,"d":"$0.00"}}]
[null,null,{"$f":"T('2 REPAIR ESTIMATOR'!D165:O165)","v":""},{"$nulls":5},{"$f":"'2 REPAIR ESTIMATOR'!P165","v":0},{"$f":"'2 REPAIR ESTIMATOR'!S165","v":0},{"v":0,"d":"$0"},{"v":0,"d":"$0"},{"v":0,"d":"$0"},{"v":0,"d":"$0"},null,0,null,null,{"$f":"'2 REPAIR ESTIMATOR'!AD165","v":{"v":0,"d":"$0.00"}},{"$f":"'2 REPAIR ESTIMATOR'!AM165","v":{"v":0,"d":"$0.00"}},{"v":0,"d":"$0.00"},{"$f":"'2 REPAIR ESTIMATOR'!AG165","v":{"v":0,"d":"$0.00"}},{"$f":"'2 REPAIR ESTIMATOR'!AJ165","v":{"v":0,"d":"$0.00"}}]
[null,null,{"$f":"T('2 REPAIR ESTIMATOR'!D166:O166)","v":""},{"$nulls":5},{"$f":"'2 REPAIR ESTIMATOR'!P166","v":0},{"$f":"'2 REPAIR ESTIMATOR'!S166","v":0},{"v":0,"d":"$0"},{"v":0,"d":"$0"},{"v":0,"d":"$0"},{"v":0,"d":"$0"},null,0,null,null,{"$f":"'2 REPAIR ESTIMATOR'!AD166","v":{"v":0,"d":"$0.00"}},{"$f":"'2 REPAIR ESTIMATOR'!AM166","v":{"v":0,"d":"$0.00"}},{"v":0,"d":"$0.00"},{"$f":"'2 REPAIR ESTIMATOR'!AG166","v":{"v":0,"d":"$0.00"}},{"$f":"'2 REPAIR ESTIMATOR'!AJ166","v":{"v":0,"d":"$0.00"}}]
[null,null,{"$f":"T('2 REPAIR ESTIMATOR'!D167:O167)","v":""},{"$nulls":5},{"$f":"'2 REPAIR ESTIMATOR'!P167","v":0},{"$f":"'2 REPAIR ESTIMATOR'!S167","v":0},{"v":0,"d":"$0"},{"v":0,"d":"$0"},{"v":0,"d":"$0"},{"v":0,"d":"$0"},null,0,null,null,{"$f":"'2 REPAIR ESTIMATOR'!AD167","v":{"v":0,"d":"$0.00"}},{"$f":"'2 REPAIR ESTIMATOR'!AM167","v":{"v":0,"d":"$0.00"}},{"v":0,"d":"$0.00"},{"$f":"'2 REPAIR ESTIMATOR'!AG167","v":{"v":0,"d":"$0.00"}},{"$f":"'2 REPAIR ESTIMATOR'!AJ167","v":{"v":0,"d":"$0.00"}}]
[null,null,{"$f":"T('2 REPAIR ESTIMATOR'!D168:O168)","v":""},{"$nulls":5},{"$f":"'2 REPAIR ESTIMATOR'!P168","v":0},{"$f":"'2 REPAIR ESTIMATOR'!S168","v":0},{"v":0,"d":"$0"},{"v":0,"d":"$0"},{"v":0,"d":"$0"},{"v":0,"d":"$0"},null,0,null,null,{"$f":"'2 REPAIR ESTIMATOR'!AD168","v":{"v":0,"d":"$0.00"}},{"$f":"'2 REPAIR ESTIMATOR'!AM168","v":{"v":0,"d":"$0.00"}},{"v":0,"d":"$0.00"},{"$f":"'2 REPAIR ESTIMATOR'!AG168","v":{"v":0,"d":"$0.00"}},{"$f":"'2 REPAIR ESTIMATOR'!AJ168","v":{"v":0,"d":"$0.00"}}]
[null,null,{"$f":"T('2 REPAIR ESTIMATOR'!D169:O169)","v":""},{"$nulls":5},{"$f":"'2 REPAIR ESTIMATOR'!P169","v":0},{"$f":"'2 REPAIR ESTIMATOR'!S169","v":0},{"v":0,"d":"$0"},{"v":0,"d":"$0"},{"v":0,"d":"$0"},{"v":0,"d":"$0"},null,0,null,null,{"$f":"'2 REPAIR ESTIMATOR'!AD169","v":{"v":0,"d":"$0.00"}},{"$f":"'2 REPAIR ESTIMATOR'!AM169","v":{"v":0,"d":"$0.00"}},{"v":0,"d":"$0.00"},{"$f":"'2 REPAIR ESTIMATOR'!AG169","v":{"v":0,"d":"$0.00"}},{"$f":"'2 REPAIR ESTIMATOR'!AJ169","v":{"v":0,"d":"$0.00"}}]
[null,null,{"$f":"T('2 REPAIR ESTIMATOR'!D170:O170)","v":""},{"$nulls":5},{"$f":"'2 REPAIR ESTIMATOR'!P170","v":0},{"$f":"'2 REPAIR ESTIMATOR'!S170","v":0},{"v":0,"d":"$0"},{"v":0,"d":"$0"},{"v":0,"d":"$0"},{"v":0,"d":"$0"},null,0,null,null,{"$f":"'2 REPAIR ESTIMATOR'!AD170","v":{"v":0,"d":"$0.00"}},{"$f":"'2 REPAIR ESTIMATOR'!AM170","v":{"v":0,"d":"$0.00"}},{"v":0,"d":"$0.00"},{"$f":"'2 REPAIR ESTIMATOR'!AG170","v":{"v":0,"d":"$0.00"}},{"$f":"'2 REPAIR ESTIMATOR'!AJ170","v":{"v":0,"d":"$0.00"}}]
[null,null,{"$f":"T('2 REPAIR ESTIMATOR'!D171:O171)","v":""},{"$nulls":5},{"$f":"'2 REPAIR ESTIMATOR'!P171","v":0},{"$f":"'2 REPAIR ESTIMATOR'!S171","v":0},{"v":0,"d":"$0"},{"v":0,"d":"$0"},{"v":0,"d":"$0"},{"v":0,"d":"$0"},null,0,null,null,{"$f":"'2 REPAIR ESTIMATOR'!AD171","v":{"v":0,"d":"$0.00"}},{"$f":"'2 REPAIR ESTIMATOR'!AM171","v":{"v":0,"d":"$0.00"}},{"v":0,"d":"$0.00"},{"$f":"'2 REPAIR ESTIMATOR'!AG171","v":{"v":0,"d":"$0.00"}},{"$f":"'2 REPAIR ESTIMATOR'!AJ171","v":{"v":0,"d":"$0.00"}}]
[null,null,{"$f":"T('2 REPAIR ESTIMATOR'!D172:O172)","v":""},{"$nulls":5},{"$f":"'2 REPAIR ESTIMATOR'!P172","v":0},{"$f":"'2 REPAIR ESTIMATOR'!S172","v":0},{"v":0,"d":"$0"},{"v":0,"d":"$0"},{"v":0,"d":"$0"},{"v":0,"d":"$0"},null,0,null,null,{"$f":"'2 REPAIR ESTIMATOR'!AD172","v":{"v":0,"d":"$0.00"}},{"$f":"'2 REPAIR ESTIMATOR'!AM172","v":{"v":0,"d":"$0.00"}},{"v":0,"d":"$0.00"},{"$f":"'2 REPAIR ESTIMATOR'!AG172","v":{"v":0,"d":"$0.00"}},{"$f":"'2 REPAIR ESTIMATOR'!AJ172","v":{"v":0,"d":"$0.00"}}]
[null,null,{"$f":"T('2 REPAIR ESTIMATOR'!AC174)","v":"DEMOLITION TOTAL"},{"$nulls":7},{"$f":"SUM(K116:K155)","v":{"v":1600,"d":"$1,600"}},{"$f":"SUM(L116:L155)","v":{"v":0,"d":"$0"}},{"$f":"SUM(M116:M155)","v":{"v":0,"d":"$0"}},{"$f":"SUM(N116:O155)","v":{"v":1600,"d":"$1,600"}},null,{"$f":"SUM(P115:P125)","v":160},null,null,{"$f":"SUM(S116:S155)","v":{"v":1600,"d":"$1,600.00"}},{"$f":"SUM(T116:T155)","v":{"v":0,"d":"$0.00"}},{"$f":"SUM(U116:U155)","v":{"v":1600,"d":"$1,600.00"}},{"$f":"SUM(V116:V155)","v":{"v":0,"d":"$0.00"}},{"$f":"SUM(W116:W155)","v":{"v":0,"d":"$0.00"}}]
[{"$nulls":15},{"$f":"P156","v":160}]
[null,null,{"$f":"T('2 REPAIR ESTIMATOR'!D177:O177)","v":"STRUCTURAL CONCRETE"},{"$nulls":5},{"$f":"SUM(I159:I198)","v":0},{"$nulls":6},{"$f":"I158","v":0}]
[null,null,{"$f":"T('2 REPAIR ESTIMATOR'!D178:O178)","v":"Excavation"},{"$nulls":5},{"$f":"'2 REPAIR ESTIMATOR'!P178","v":0},{"$f":"'2 REPAIR ESTIMATOR'!S178","v":0},{"$f":"IF($N$3=\"subbed\",U159,S159)*$S$70","v":{"v":0,"d":"$0"}},{"$f":"V159*$S$70","v":{"v":0,"d":"$0"}},{"$f":"W159*$S$70","v":{"v":0,"d":"$0"}},{"$f":"SUM(K159:M159)","v":{"v":0,"d":"$0"}},null,0,null,null,{"$f":"'2 REPAIR ESTIMATOR'!AD178","v":{"v":0,"d":"$0.00"}},{"$f":"'2 REPAIR ESTIMATOR'!AM178","v":{"v":0,"d":"$0.00"}},{"$f":"T159+S159","v":{"v":0,"d":"$0.00"}},{"$f":"'2 REPAIR ESTIMATOR'!AG178","v":{"v":0,"d":"$0.00"}},{"$f":"'2 REPAIR ESTIMATOR'!AJ178","v":{"v":0,"d":"$0.00"}}]
[null,null,{"$f":"T('2 REPAIR ESTIMATOR'!D179:O179)","v":"Excavation bid/allowance"},{"$nulls":5},{"$f":"'2 REPAIR ESTIMATOR'!P179","v":0},{"$f":"'2 REPAIR ESTIMATOR'!S179","v":"ls"},{"v":0,"d":"$0"},{"$f":"V160*$S$70","v":{"v":0,"d":"$0"}},{"$f":"W160*$S$70","v":{"v":0,"d":"$0"}},{"$f":"SUM(K160:M160)","v":{"v":0,"d":"$0"}},null,0,null,null,{"$f":"'2 REPAIR ESTIMATOR'!AD179","v":{"v":0,"d":"$0.00"}},{"$f":"'2 REPAIR ESTIMATOR'!AM179","v":{"v":0,"d":"$0.00"}},{"$f":"T160+S160","v":{"v":0,"d":"$0.00"}},{"$f":"'2 REPAIR ESTIMATOR'!AG179","v":{"v":0,"d":"$0.00"}},{"$f":"'2 REPAIR ESTIMATOR'!AJ179","v":{"v":0,"d":"$0.00"}}]
[null,null,{"$f":"T('2 REPAIR ESTIMATOR'!D180:O180)","v":"Footing trenching"},{"$nulls":5},{"$f":"'2 REPAIR ESTIMATOR'!P180","v":0},{"$f":"'2 REPAIR ESTIMATOR'!S180","v":"cy"},{"v":0,"d":"$0"},{"v":0,"d":"$0"},{"v":0,"d":"$0"},{"v":0,"d":"$0"},null,0,null,null,{"$f":"'2 REPAIR ESTIMATOR'!AD180","v":{"v":0,"d":"$0.00"}},{"$f":"'2 REPAIR ESTIMATOR'!AM180","v":{"v":0,"d":"$0.00"}},{"v":0,"d":"$0.00"},{"$f":"'2 REPAIR ESTIMATOR'!AG180","v":{"v":0,"d":"$0.00"}},{"$f":"'2 REPAIR ESTIMATOR'!AJ180","v":{"v":0,"d":"$0.00"}}]
[null,null,{"$f":"T('2 REPAIR ESTIMATOR'!D181:O181)","v":"Backfill of trenches "},{"$nulls":5},{"$f":"'2 REPAIR ESTIMATOR'!P181","v":0},{"$f":"'2 REPAIR ESTIMATOR'!S181","v":"cy"},{"v":0,"d":"$0"},{"v":0,"d":"$0"},{"v":0,"d":"$0"},{"v":0,"d":"$0"},null,0,null,null,{"$f":"'2 REPAIR ESTIMATOR'!AD181","v":{"v":0,"d":"$0.00"}},{"$f":"'2 REPAIR ESTIMATOR'!AM181","v":{"v":0,"d":"$0.00"}},{"v":0,"d":"$0.00"},{"$f":"'2 REPAIR ESTIMATOR'!AG181","v":{"v":0,"d":"$0.00"}},{"$f":"'2 REPAIR ESTIMATOR'!AJ181","v":{"v":0,"d":"$0.00"}}]
[null,null,{"$f":"T('2 REPAIR ESTIMATOR'!D182:O182)","v":""},{"$nulls":5},{"$f":"'2 REPAIR ESTIMATOR'!P182","v":0},{"$f":"'2 REPAIR ESTIMATOR'!S182","v":0},{"v":0,"d":"$0"},{"v":0,"d":"$0"},{"v":0,"d":"$0"},{"v":0,"d":"$0"},null,0,null,null,{"$f":"'2 REPAIR ESTIMATOR'!AD182","v":{"v":0,"d":"$0.00"}},{"$f":"'2 REPAIR ESTIMATOR'!AM182","v":{"v":0,"d":"$0.00"}},{"v":0,"d":"$0.00"},{"$f":"'2 REPAIR ESTIMATOR'!AG182","v":{"v":0,"d":"$0.00"}},{"$f":"'2 REPAIR ESTIMATOR'!AJ182","v":{"v":0,"d":"$0.00"}}]
[null,null,{"$f":"T('2 REPAIR ESTIMATOR'!D183:O183)","v":""},{"$nulls":5},{"$f":"'2 REPAIR ESTIMATOR'!P183","v":0},{"$f":"'2 REPAIR ESTIMATOR'!S183","v":0},{"v":0,"d":"$0"},{"v":0,"d":"$0"},{"v":0,"d":"$0"},{"v":0,"d":"$0"},null,0,null,null,{"$f":"'2 REPAIR ESTIMATOR'!AD183","v":{"v":0,"d":"$0.00"}},{"$f":"'2 REPAIR ESTIMATOR'!AM183","v":{"v":0,"d":"$0.00"}},{"v":0,"d":"$0.00"},{"$f":"'2 REPAIR ESTIMATOR'!AG183","v":{"v":0,"d":"$0.00"}},{"$f":"'2 REPAIR ESTIMATOR'!AJ183","v":{"v":0,"d":"$0.00"}}]
[null,null,{"$f":"T('2 REPAIR ESTIMATOR'!D184:O184)","v":"Foundation"},{"$nulls":5},{"$f":"'2 REPAIR ESTIMATOR'!P184","v":0},{"$f":"'2 REPAIR ESTIMATOR'!S184","v":0},{"v":0,"d":"$0"},{"v":0,"d":"$0"},{"v":0,"d":"$0"},{"v":0,"d":"$0"},null,0,null,null,{"$f":"'2 REPAIR ESTIMATOR'!AD184","v":{"v":0,"d":"$0.00"}},{"$f":"'2 REPAIR ESTIMATOR'!AM184","v":{"v":0,"d":"$0.00"}},{"v":0,"d":"$0.00"},{"$f":"'2 REPAIR ESTIMATOR'!AG184","v":{"v":0,"d":"$0.00"}},{"$f":"'2 REPAIR ESTIMATOR'!AJ184","v":{"v":0,"d":"$0.00"}}]
[null,null,{"$f":"T('2 REPAIR ESTIMATOR'!D185:O185)","v":"Foundation bid/allowance"},{"$nulls":5},{"$f":"'2 REPAIR ESTIMATOR'!P185","v":0},{"$f":"'2 REPAIR ESTIMATOR'!S185","v":"ls"},{"v":0,"d":"$0"},{"v":0,"d":"$0"},{"v":0,"d":"$0"},{"v":0,"d":"$0"},null,0,null,null,{"$f":"'2 REPAIR ESTIMATOR'!AD185","v":{"v":0,"d":"$0.00"}},{"$f":"'2 REPAIR ESTIMATOR'!AM185","v":{"v":0,"d":"$0.00"}},{"v":0,"d":"$0.00"},{"$f":"'2 REPAIR ESTIMATOR'!AG185","v":{"v":0,"d":"$0.00"}},{"$f":"'2 REPAIR ESTIMATOR'!AJ185","v":{"v":0,"d":"$0.00"}}]
[null,null,{"$f":"T('2 REPAIR ESTIMATOR'!D186:O186)","v":"Concrete slab on grade, 4\" thick"},{"$nulls":5},{"$f":"'2 REPAIR ESTIMATOR'!P186","v":0},{"$f":"'2 REPAIR ESTIMATOR'!S186","v":"sf"},{"v":0,"d":"$0"},{"v":0,"d":"$0"},{"v":0,"d":"$0"},{"v":0,"d":"$0"},null,0,null,null,{"$f":"'2 REPAIR ESTIMATOR'!AD186","v":{"v":0,"d":"$0.00"}},{"$f":"'2 REPAIR ESTIMATOR'!AM186","v":{"v":0,"d":"$0.00"}},{"v":0,"d":"$0.00"},{"$f":"'2 REPAIR ESTIMATOR'!AG186","v":{"v":0,"d":"$0.00"}},{"$f":"'2 REPAIR ESTIMATOR'!AJ186","v":{"v":0,"d":"$0.00"}}]
[null,null,{"$f":"T('2 REPAIR ESTIMATOR'!D187:O187)","v":"Concrete footing, 12\" wide "},{"$nulls":5},{"$f":"'2 REPAIR ESTIMATOR'!P187","v":0},{"$f":"'2 REPAIR ESTIMATOR'!S187","v":"lf"},{"v":0,"d":"$0"},{"v":0,"d":"$0"},{"v":0,"d":"$0"},{"v":0,"d":"$0"},null,0,null,null,{"$f":"'2 REPAIR ESTIMATOR'!AD187","v":{"v":0,"d":"$0.00"}},{"$f":"'2 REPAIR ESTIMATOR'!AM187","v":{"v":0,"d":"$0.00"}},{"v":0,"d":"$0.00"},{"$f":"'2 REPAIR ESTIMATOR'!AG187","v":{"v":0,"d":"$0.00"}},{"$f":"'2 REPAIR ESTIMATOR'!AJ187","v":{"v":0,"d":"$0.00"}}]
[null,null,{"$f":"T('2 REPAIR ESTIMATOR'!D188:O188)","v":"Stem wall, single story"},{"$nulls":5},{"$f":"'2 REPAIR ESTIMATOR'!P188","v":0},{"$f":"'2 REPAIR ESTIMATOR'!S188","v":"lf"},{"v":0,"d":"$0"},{"v":0,"d":"$0"},{"v":0,"d":"$0"},{"v":0,"d":"$0"},null,0,null,null,{"$f":"'2 REPAIR ESTIMATOR'!AD188","v":{"v":0,"d":"$0.00"}},{"$f":"'2 REPAIR ESTIMATOR'!AM188","v":{"v":0,"d":"$0.00"}},{"v":0,"d":"$0.00"},{"$f":"'2 REPAIR ESTIMATOR'!AG188","v":{"v":0,"d":"$0.00"}},{"$f":"'2 REPAIR ESTIMATOR'!AJ188","v":{"v":0,"d":"$0.00"}}]
[null,null,{"$f":"T('2 REPAIR ESTIMATOR'!D189:O189)","v":""},{"$nulls":5},{"$f":"'2 REPAIR ESTIMATOR'!P189","v":0},{"$f":"'2 REPAIR ESTIMATOR'!S189","v":0},{"v":0,"d":"$0"},{"v":0,"d":"$0"},{"v":0,"d":"$0"},{"v":0,"d":"$0"},null,0,null,null,{"$f":"'2 REPAIR ESTIMATOR'!AD189","v":{"v":0,"d":"$0.00"}},{"$f":"'2 REPAIR ESTIMATOR'!AM189","v":{"v":0,"d":"$0.00"}},{"v":0,"d":"$0.00"},{"$f":"'2 REPAIR ESTIMATOR'!AG189","v":{"v":0,"d":"$0.00"}},{"$f":"'2 REPAIR ESTIMATOR'!AJ189","v":{"v":0,"d":"$0.00"}}]
[null,null,{"$f":"T('2 REPAIR ESTIMATOR'!D190:O190)","v":""},{"$nulls":5},{"$f":"'2 REPAIR ESTIMATOR'!P190","v":0},{"$f":"'2 REPAIR ESTIMATOR'!S190","v":0},{"v":0,"d":"$0"},{"v":0,"d":"$0"},{"v":0,"d":"$0"},{"v":0,"d":"$0"},null,0,null,null,{"$f":"'2 REPAIR ESTIMATOR'!AD190","v":{"v":0,"d":"$0.00"}},{"$f":"'2 REPAIR ESTIMATOR'!AM190","v":{"v":0,"d":"$0.00"}},{"v":0,"d":"$0.00"},{"$f":"'2 REPAIR ESTIMATOR'!AG190","v":{"v":0,"d":"$0.00"}},{"$f":"'2 REPAIR ESTIMATOR'!AJ190","v":{"v":0,"d":"$0.00"}}]
[null,null,{"$f":"T('2 REPAIR ESTIMATOR'!D191:O191)","v":"Structural Repairs"},{"$nulls":5},{"$f":"'2 REPAIR ESTIMATOR'!P191","v":0},{"$f":"'2 REPAIR ESTIMATOR'!S191","v":0},{"v":0,"d":"$0"},{"v":0,"d":"$0"},{"v":0,"d":"$0"},{"v":0,"d":"$0"},null,0,null,null,{"$f":"'2 REPAIR ESTIMATOR'!AD191","v":{"v":0,"d":"$0.00"}},{"$f":"'2 REPAIR ESTIMATOR'!AM191","v":{"v":0,"d":"$0.00"}},{"v":0,"d":"$0.00"},{"$f":"'2 REPAIR ESTIMATOR'!AG191","v":{"v":0,"d":"$0.00"}},{"$f":"'2 REPAIR ESTIMATOR'!AJ191","v":{"v":0,"d":"$0.00"}}]
[null,null,{"$f":"T('2 REPAIR ESTIMATOR'!D192:O192)","v":"Structural Repairs bid/allowance"},{"$nulls":5},{"$f":"'2 REPAIR ESTIMATOR'!P192","v":0},{"$f":"'2 REPAIR ESTIMATOR'!S192","v":"ls"},{"v":0,"d":"$0"},{"v":0,"d":"$0"},{"v":0,"d":"$0"},{"v":0,"d":"$0"},null,0,null,null,{"$f":"'2 REPAIR ESTIMATOR'!AD192","v":{"v":0,"d":"$0.00"}},{"$f":"'2 REPAIR ESTIMATOR'!AM192","v":{"v":0,"d":"$0.00"}},{"v":0,"d":"$0.00"},{"$f":"'2 REPAIR ESTIMATOR'!AG192","v":{"v":0,"d":"$0.00"}},{"$f":"'2 REPAIR ESTIMATOR'!AJ192","v":{"v":0,"d":"$0.00"}}]
[null,null,{"$f":"T('2 REPAIR ESTIMATOR'!D193:O193)","v":"Stair mud jacking, case by case"},{"$nulls":5},{"$f":"'2 REPAIR ESTIMATOR'!P193","v":0},{"$f":"'2 REPAIR ESTIMATOR'!S193","v":"ea"},{"v":0,"d":"$0"},{"v":0,"d":"$0"},{"v":0,"d":"$0"},{"v":0,"d":"$0"},null,0,null,null,{"$f":"'2 REPAIR ESTIMATOR'!AD193","v":{"v":0,"d":"$0.00"}},{"$f":"'2 REPAIR ESTIMATOR'!AM193","v":{"v":0,"d":"$0.00"}},{"v":0,"d":"$0.00"},{"$f":"'2 REPAIR ESTIMATOR'!AG193","v":{"v":0,"d":"$0.00"}},{"$f":"'2 REPAIR ESTIMATOR'!AJ193","v":{"v":0,"d":"$0.00"}}]
[null,null,{"$f":"T('2 REPAIR ESTIMATOR'!D194:O194)","v":"Bowing foundation walls, vertical I-Beams"},{"$nulls":5},{"$f":"'2 REPAIR ESTIMATOR'!P194","v":0},{"$f":"'2 REPAIR ESTIMATOR'!S194","v":"ea"},{"v":0,"d":"$0"},{"v":0,"d":"$0"},{"v":0,"d":"$0"},{"v":0,"d":"$0"},null,0,null,null,{"$f":"'2 REPAIR ESTIMATOR'!AD194","v":{"v":0,"d":"$0.00"}},{"$f":"'2 REPAIR ESTIMATOR'!AM194","v":{"v":0,"d":"$0.00"}},{"v":0,"d":"$0.00"},{"$f":"'2 REPAIR ESTIMATOR'!AG194","v":{"v":0,"d":"$0.00"}},{"$f":"'2 REPAIR ESTIMATOR'!AJ194","v":{"v":0,"d":"$0.00"}}]
[null,null,{"$f":"T('2 REPAIR ESTIMATOR'!D195:O195)","v":"Settled foundation walls, concrete piers/underpinning"},{"$nulls":5},{"$f":"'2 REPAIR ESTIMATOR'!P195","v":0},{"$f":"'2 REPAIR ESTIMATOR'!S195","v":"ea"},{"v":0,"d":"$0"},{"v":0,"d":"$0"},{"v":0,"d":"$0"},{"v":0,"d":"$0"},null,0,null,null,{"$f":"'2 REPAIR ESTIMATOR'!AD195","v":{"v":0,"d":"$0.00"}},{"$f":"'2 REPAIR ESTIMATOR'!AM195","v":{"v":0,"d":"$0.00"}},{"v":0,"d":"$0.00"},{"$f":"'2 REPAIR ESTIMATOR'!AG195","v":{"v":0,"d":"$0.00"}},{"$f":"'2 REPAIR ESTIMATOR'!AJ195","v":{"v":0,"d":"$0.00"}}]
[null,null,{"$f":"T('2 REPAIR ESTIMATOR'!D196:O196)","v":"Foundation waterproofing & drain tile, single story"},{"$nulls":5},{"$f":"'2 REPAIR ESTIMATOR'!P196","v":0},{"$f":"'2 REPAIR ESTIMATOR'!S196","v":"lf"},{"v":0,"d":"$0"},{"v":0,"d":"$0"},{"v":0,"d":"$0"},{"v":0,"d":"$0"},null,0,null,null,{"$f":"'2 REPAIR ESTIMATOR'!AD196","v":{"v":0,"d":"$0.00"}},{"$f":"'2 REPAIR ESTIMATOR'!AM196","v":{"v":0,"d":"$0.00"}},{"v":0,"d":"$0.00"},{"$f":"'2 REPAIR ESTIMATOR'!AG196","v":{"v":0,"d":"$0.00"}},{"$f":"'2 REPAIR ESTIMATOR'!AJ196","v":{"v":0,"d":"$0.00"}}]
[null,null,{"$f":"T('2 REPAIR ESTIMATOR'!D197:O197)","v":"Epoxy crack injection"},{"$nulls":5},{"$f":"'2 REPAIR ESTIMATOR'!P197","v":0},{"$f":"'2 REPAIR ESTIMATOR'!S197","v":"lf"},{"v":0,"d":"$0"},{"v":0,"d":"$0"},{"v":0,"d":"$0"},{"v":0,"d":"$0"},null,0,null,null,{"$f":"'2 REPAIR ESTIMATOR'!AD197","v":{"v":0,"d":"$0.00"}},{"$f":"'2 REPAIR ESTIMATOR'!AM197","v":{"v":0,"d":"$0.00"}},{"v":0,"d":"$0.00"},{"$f":"'2 REPAIR ESTIMATOR'!AG197","v":{"v":0,"d":"$0.00"}},{"$f":"'2 REPAIR ESTIMATOR'!AJ197","v":{"v":0,"d":"$0.00"}}]
[null,null,{"$f":"T('2 REPAIR ESTIMATOR'!D198:O198)","v":""},{"$nulls":5},{"$f":"'2 REPAIR ESTIMATOR'!P198","v":0},{"$f":"'2 REPAIR ESTIMATOR'!S198","v":0},{"v":0,"d":"$0"},{"v":0,"d":"$0"},{"v":0,"d":"$0"},{"v":0,"d":"$0"},null,0,null,null,{"$f":"'2 REPAIR ESTIMATOR'!AD198","v":{"v":0,"d":"$0.00"}},{"$f":"'2 REPAIR ESTIMATOR'!AM198","v":{"v":0,"d":"$0.00"}},{"v":0,"d":"$0.00"},{"$f":"'2 REPAIR ESTIMATOR'!AG198","v":{"v":0,"d":"$0.00"}},{"$f":"'2 REPAIR ESTIMATOR'!AJ198","v":{"v":0,"d":"$0.00"}}]
[null,null,{"$f":"T('2 REPAIR ESTIMATOR'!D199:O199)","v":""},{"$nulls":5},{"$f":"'2 REPAIR ESTIMATOR'!P199","v":0},{"$f":"'2 REPAIR ESTIMATOR'!S199","v":0},{"v":0,"d":"$0"},{"v":0,"d":"$0"},{"v":0,"d":"$0"},{"v":0,"d":"$0"},null,0,null,null,{"$f":"'2 REPAIR ESTIMATOR'!AD199","v":{"v":0,"d":"$0.00"}},{"$f":"'2 REPAIR ESTIMATOR'!AM199","v":{"v":0,"d":"$0.00"}},{"v":0,"d":"$0.00"},{"$f":"'2 REPAIR ESTIMATOR'!AG199","v":{"v":0,"d":"$0.00"}},{"$f":"'2 REPAIR ESTIMATOR'!AJ199","v":{"v":0,"d":"$0.00"}}]
[null,null,{"$f":"T('2 REPAIR ESTIMATOR'!D200:O200)","v":""},{"$nulls":5},{"$f":"'2 REPAIR ESTIMATOR'!P200","v":0},{"$f":"'2 REPAIR ESTIMATOR'!S200","v":0},{"v":0,"d":"$0"},{"v":0,"d":"$0"},{"v":0,"d":"$0"},{"v":0,"d":"$0"},null,0,null,null,{"$f":"'2 REPAIR ESTIMATOR'!AD200","v":{"v":0,"d":"$0.00"}},{"$f":"'2 REPAIR ESTIMATOR'!AM200","v":{"v":0,"d":"$0.00"}},{"v":0,"d":"$0.00"},{"$f":"'2 REPAIR ESTIMATOR'!AG200","v":{"v":0,"d":"$0.00"}},{"$f":"'2 REPAIR ESTIMATOR'!AJ200","v":{"v":0,"d":"$0.00"}}]
[null,null,{"$f":"T('2 REPAIR ESTIMATOR'!D201:O201)","v":""},{"$nulls":5},{"$f":"'2 REPAIR ESTIMATOR'!P201","v":0},{"$f":"'2 REPAIR ESTIMATOR'!S201","v":0},{"v":0,"d":"$0"},{"v":0,"d":"$0"},{"v":0,"d":"$0"},{"v":0,"d":"$0"},null,0,null,null,{"$f":"'2 REPAIR ESTIMATOR'!AD201","v":{"v":0,"d":"$0.00"}},{"$f":"'2 REPAIR ESTIMATOR'!AM201","v":{"v":0,"d":"$0.00"}},{"v":0,"d":"$0.00"},{"$f":"'2 REPAIR ESTIMATOR'!AG201","v":{"v":0,"d":"$0.00"}},{"$f":"'2 REPAIR ESTIMATOR'!AJ201","v":{"v":0,"d":"$0.00"}}]
[null,null,{"$f":"T('2 REPAIR ESTIMATOR'!D202:O202)","v":""},{"$nulls":5},{"$f":"'2 REPAIR ESTIMATOR'!P202","v":0},{"$f":"'2 REPAIR ESTIMATOR'!S202","v":0},{"v":0,"d":"$0"},{"v":0,"d":"$0"},{"v":0,"d":"$0"},{"v":0,"d":"$0"},null,0,null,null,{"$f":"'2 REPAIR ESTIMATOR'!AD202","v":{"v":0,"d":"$0.00"}},{"$f":"'2 REPAIR ESTIMATOR'!AM202","v":{"v":0,"d":"$0.00"}},{"v":0,"d":"$0.00"},{"$f":"'2 REPAIR ESTIMATOR'!AG202","v":{"v":0,"d":"$0.00"}},{"$f":"'2 REPAIR ESTIMATOR'!AJ202","v":{"v":0,"d":"$0.00"}}]
[null,null,{"$f":"T('2 REPAIR ESTIMATOR'!D203:O203)","v":""},{"$nulls":5},{"$f":"'2 REPAIR ESTIMATOR'!P203","v":0},{"$f":"'2 REPAIR ESTIMATOR'!S203","v":0},{"v":0,"d":"$0"},{"v":0,"d":"$0"},{"v":0,"d":"$0"},{"v":0,"d":"$0"},null,0,null,null,{"$f":"'2 REPAIR ESTIMATOR'!AD203","v":{"v":0,"d":"$0.00"}},{"$f":"'2 REPAIR ESTIMATOR'!AM203","v":{"v":0,"d":"$0.00"}},{"v":0,"d":"$0.00"},{"$f":"'2 REPAIR ESTIMATOR'!AG203","v":{"v":0,"d":"$0.00"}},{"$f":"'2 REPAIR ESTIMATOR'!AJ203","v":{"v":0,"d":"$0.00"}}]
[null,null,{"$f":"T('2 REPAIR ESTIMATOR'!D204:O204)","v":""},{"$nulls":5},{"$f":"'2 REPAIR ESTIMATOR'!P204","v":0},{"$f":"'2 REPAIR ESTIMATOR'!S204","v":0},{"v":0,"d":"$0"},{"v":0,"d":"$0"},{"v":0,"d":"$0"},{"v":0,"d":"$0"},null,0,null,null,{"$f":"'2 REPAIR ESTIMATOR'!AD204","v":{"v":0,"d":"$0.00"}},{"$f":"'2 REPAIR ESTIMATOR'!AM204","v":{"v":0,"d":"$0.00"}},{"v":0,"d":"$0.00"},{"$f":"'2 REPAIR ESTIMATOR'!AG204","v":{"v":0,"d":"$0.00"}},{"$f":"'2 REPAIR ESTIMATOR'!AJ204","v":{"v":0,"d":"$0.00"}}]
[null,null,{"$f":"T('2 REPAIR ESTIMATOR'!D205:O205)","v":""},{"$nulls":5},{"$f":"'2 REPAIR ESTIMATOR'!P205","v":0},{"$f":"'2 REPAIR ESTIMATOR'!S205","v":0},{"v":0,"d":"$0"},{"v":0,"d":"$0"},{"v":0,"d":"$0"},{"v":0,"d":"$0"},null,{"$f":"I186","v":0},null,null,{"$f":"'2 REPAIR ESTIMATOR'!AD205","v":{"v":0,"d":"$0.00"}},{"$f":"'2 REPAIR ESTIMATOR'!AM205","v":{"v":0,"d":"$0.00"}},{"v":0,"d":"$0.00"},{"$f":"'2 REPAIR ESTIMATOR'!AG205","v":{"v":0,"d":"$0.00"}},{"$f":"'2 REPAIR ESTIMATOR'!AJ205","v":{"v":0,"d":"$0.00"}}]
[null,null,{"$f":"T('2 REPAIR ESTIMATOR'!D206:O206)","v":""},{"$nulls":5},{"$f":"'2 REPAIR ESTIMATOR'!P206","v":0},{"$f":"'2 REPAIR ESTIMATOR'!S206","v":0},{"v":0,"d":"$0"},{"v":0,"d":"$0"},{"v":0,"d":"$0"},{"v":0,"d":"$0"},null,0,null,null,{"$f":"'2 REPAIR ESTIMATOR'!AD206","v":{"v":0,"d":"$0.00"}},{"$f":"'2 REPAIR ESTIMATOR'!AM206","v":{"v":0,"d":"$0.00"}},{"v":0,"d":"$0.00"},{"$f":"'2 REPAIR ESTIMATOR'!AG206","v":{"v":0,"d":"$0.00"}},{"$f":"'2 REPAIR ESTIMATOR'!AJ206","v":{"v":0,"d":"$0.00"}}]
[null,null,{"$f":"T('2 REPAIR ESTIMATOR'!D207:O207)","v":""},{"$nulls":5},{"$f":"'2 REPAIR ESTIMATOR'!P207","v":0},{"$f":"'2 REPAIR ESTIMATOR'!S207","v":0},{"v":0,"d":"$0"},{"v":0,"d":"$0"},{"v":0,"d":"$0"},{"v":0,"d":"$0"},null,0,null,null,{"$f":"'2 REPAIR ESTIMATOR'!AD207","v":{"v":0,"d":"$0.00"}},{"$f":"'2 REPAIR ESTIMATOR'!AM207","v":{"v":0,"d":"$0.00"}},{"v":0,"d":"$0.00"},{"$f":"'2 REPAIR ESTIMATOR'!AG207","v":{"v":0,"d":"$0.00"}},{"$f":"'2 REPAIR ESTIMATOR'!AJ207","v":{"v":0,"d":"$0.00"}}]
[null,null,{"$f":"T('2 REPAIR ESTIMATOR'!D208:O208)","v":""},{"$nulls":5},{"$f":"'2 REPAIR ESTIMATOR'!P208","v":0},{"$f":"'2 REPAIR ESTIMATOR'!S208","v":0},{"v":0,"d":"$0"},{"v":0,"d":"$0"},{"v":0,"d":"$0"},{"v":0,"d":"$0"},null,0,null,null,{"$f":"'2 REPAIR ESTIMATOR'!AD208","v":{"v":0,"d":"$0.00"}},{"$f":"'2 REPAIR ESTIMATOR'!AM208","v":{"v":0,"d":"$0.00"}},{"v":0,"d":"$0.00"},{"$f":"'2 REPAIR ESTIMATOR'!AG208","v":{"v":0,"d":"$0.00"}},{"$f":"'2 REPAIR ESTIMATOR'!AJ208","v":{"v":0,"d":"$0.00"}}]
[null,null,{"$f":"T('2 REPAIR ESTIMATOR'!D209:O209)","v":""},{"$nulls":5},{"$f":"'2 REPAIR ESTIMATOR'!P209","v":0},{"$f":"'2 REPAIR ESTIMATOR'!S209","v":0},{"v":0,"d":"$0"},{"v":0,"d":"$0"},{"v":0,"d":"$0"},{"v":0,"d":"$0"},null,0,null,null,{"$f":"'2 REPAIR ESTIMATOR'!AD209","v":{"v":0,"d":"$0.00"}},{"$f":"'2 REPAIR ESTIMATOR'!AM209","v":{"v":0,"d":"$0.00"}},{"v":0,"d":"$0.00"},{"$f":"'2 REPAIR ESTIMATOR'!AG209","v":{"v":0,"d":"$0.00"}},{"$f":"'2 REPAIR ESTIMATOR'!AJ209","v":{"v":0,"d":"$0.00"}}]
[null,null,{"$f":"T('2 REPAIR ESTIMATOR'!D210:O210)","v":""},{"$nulls":5},{"$f":"'2 REPAIR ESTIMATOR'!P210","v":0},{"$f":"'2 REPAIR ESTIMATOR'!S210","v":0},{"v":0,"d":"$0"},{"v":0,"d":"$0"},{"v":0,"d":"$0"},{"v":0,"d":"$0"},null,0,null,null,{"$f":"'2 REPAIR ESTIMATOR'!AD210","v":{"v":0,"d":"$0.00"}},{"$f":"'2 REPAIR ESTIMATOR'!AM210","v":{"v":0,"d":"$0.00"}},{"v":0,"d":"$0.00"},{"$f":"'2 REPAIR ESTIMATOR'!AG210","v":{"v":0,"d":"$0.00"}},{"$f":"'2 REPAIR ESTIMATOR'!AJ210","v":{"v":0,"d":"$0.00"}}]
[null,null,{"$f":"T('2 REPAIR ESTIMATOR'!D211:O211)","v":""},{"$nulls":5},{"$f":"'2 REPAIR ESTIMATOR'!P211","v":0},{"$f":"'2 REPAIR ESTIMATOR'!S211","v":0},{"v":0,"d":"$0"},{"v":0,"d":"$0"},{"v":0,"d":"$0"},{"v":0,"d":"$0"},null,{"$f":"I192","v":0},null,null,{"$f":"'2 REPAIR ESTIMATOR'!AD211","v":{"v":0,"d":"$0.00"}},{"$f":"'2 REPAIR ESTIMATOR'!AM211","v":{"v":0,"d":"$0.00"}},{"v":0,"d":"$0.00"},{"$f":"'2 REPAIR ESTIMATOR'!AG211","v":{"v":0,"d":"$0.00"}},{"$f":"'2 REPAIR ESTIMATOR'!AJ211","v":{"v":0,"d":"$0.00"}}]
[null,null,{"$f":"T('2 REPAIR ESTIMATOR'!D212:O212)","v":""},{"$nulls":5},{"$f":"'2 REPAIR ESTIMATOR'!P212","v":0},{"$f":"'2 REPAIR ESTIMATOR'!S212","v":0},{"v":0,"d":"$0"},{"v":0,"d":"$0"},{"v":0,"d":"$0"},{"v":0,"d":"$0"},null,{"$f":"I193","v":0},null,null,{"$f":"'2 REPAIR ESTIMATOR'!AD212","v":{"v":0,"d":"$0.00"}},{"$f":"'2 REPAIR ESTIMATOR'!AM212","v":{"v":0,"d":"$0.00"}},{"v":0,"d":"$0.00"},{"$f":"'2 REPAIR ESTIMATOR'!AG212","v":{"v":0,"d":"$0.00"}},{"$f":"'2 REPAIR ESTIMATOR'!AJ212","v":{"v":0,"d":"$0.00"}}]
[null,null,{"$f":"T('2 REPAIR ESTIMATOR'!D213:O213)","v":""},{"$nulls":5},{"$f":"'2 REPAIR ESTIMATOR'!P213","v":0},{"$f":"'2 REPAIR ESTIMATOR'!S213","v":0},{"v":0,"d":"$0"},{"v":0,"d":"$0"},{"v":0,"d":"$0"},{"v":0,"d":"$0"},null,0,null,null,{"$f":"'2 REPAIR ESTIMATOR'!AD213","v":{"v":0,"d":"$0.00"}},{"$f":"'2 REPAIR ESTIMATOR'!AM213","v":{"v":0,"d":"$0.00"}},{"v":0,"d":"$0.00"},{"$f":"'2 REPAIR ESTIMATOR'!AG213","v":{"v":0,"d":"$0.00"}},{"$f":"'2 REPAIR ESTIMATOR'!AJ213","v":{"v":0,"d":"$0.00"}}]
[null,null,{"$f":"T('2 REPAIR ESTIMATOR'!D214:O214)","v":""},{"$nulls":5},{"$f":"'2 REPAIR ESTIMATOR'!P214","v":0},{"$f":"'2 REPAIR ESTIMATOR'!S214","v":0},{"v":0,"d":"$0"},{"v":0,"d":"$0"},{"v":0,"d":"$0"},{"v":0,"d":"$0"},null,0,null,null,{"$f":"'2 REPAIR ESTIMATOR'!AD214","v":{"v":0,"d":"$0.00"}},{"$f":"'2 REPAIR ESTIMATOR'!AM214","v":{"v":0,"d":"$0.00"}},{"v":0,"d":"$0.00"},{"$f":"'2 REPAIR ESTIMATOR'!AG214","v":{"v":0,"d":"$0.00"}},{"$f":"'2 REPAIR ESTIMATOR'!AJ214","v":{"v":0,"d":"$0.00"}}]
[null,null,{"$f":"T('2 REPAIR ESTIMATOR'!D215:O215)","v":""},{"$nulls":5},{"$f":"'2 REPAIR ESTIMATOR'!P215","v":0},{"$f":"'2 REPAIR ESTIMATOR'!S215","v":0},{"v":0,"d":"$0"},{"v":0,"d":"$0"},{"v":0,"d":"$0"},{"v":0,"d":"$0"},null,0,null,null,{"$f":"'2 REPAIR ESTIMATOR'!AD215","v":{"v":0,"d":"$0.00"}},{"$f":"'2 REPAIR ESTIMATOR'!AM215","v":{"v":0,"d":"$0.00"}},{"v":0,"d":"$0.00"},{"$f":"'2 REPAIR ESTIMATOR'!AG215","v":{"v":0,"d":"$0.00"}},{"$f":"'2 REPAIR ESTIMATOR'!AJ215","v":{"v":0,"d":"$0.00"}}]
[null,null,{"$f":"T('2 REPAIR ESTIMATOR'!D216:O216)","v":""},{"$nulls":5},{"$f":"'2 REPAIR ESTIMATOR'!P216","v":0},{"$f":"'2 REPAIR ESTIMATOR'!S216","v":0},{"v":0,"d":"$0"},{"v":0,"d":"$0"},{"v":0,"d":"$0"},{"v":0,"d":"$0"},null,0,null,null,{"$f":"'2 REPAIR ESTIMATOR'!AD216","v":{"v":0,"d":"$0.00"}},{"$f":"'2 REPAIR ESTIMATOR'!AM216","v":{"v":0,"d":"$0.00"}},{"v":0,"d":"$0.00"},{"$f":"'2 REPAIR ESTIMATOR'!AG216","v":{"v":0,"d":"$0.00"}},{"$f":"'2 REPAIR ESTIMATOR'!AJ216","v":{"v":0,"d":"$0.00"}}]
[null,null,{"$f":"T('2 REPAIR ESTIMATOR'!D217:O217)","v":""},{"$nulls":5},{"$f":"'2 REPAIR ESTIMATOR'!P217","v":0},{"$f":"'2 REPAIR ESTIMATOR'!S217","v":0},{"v":0,"d":"$0"},{"v":0,"d":"$0"},{"v":0,"d":"$0"},{"v":0,"d":"$0"},null,0,null,null,{"$f":"'2 REPAIR ESTIMATOR'!AD217","v":{"v":0,"d":"$0.00"}},{"$f":"'2 REPAIR ESTIMATOR'!AM217","v":{"v":0,"d":"$0.00"}},{"v":0,"d":"$0.00"},{"$f":"'2 REPAIR ESTIMATOR'!AG217","v":{"v":0,"d":"$0.00"}},{"$f":"'2 REPAIR ESTIMATOR'!AJ217","v":{"v":0,"d":"$0.00"}}]
[null,null,{"$f":"T('2 REPAIR ESTIMATOR'!AC219)","v":"STRUCTURAL CONCRETE TOTAL"},{"$nulls":7},{"$f":"SUM(K159:K198)","v":{"v":0,"d":"$0"}},{"$f":"SUM(L159:L198)","v":{"v":0,"d":"$0"}},{"$f":"SUM(M159:M198)","v":{"v":0,"d":"$0"}},{"$f":"SUM(N159:O198)","v":{"v":0,"d":"$0"}},null,{"$f":"SUM(P158:P178)","v":0},null,null,{"$f":"SUM(S159:S198)","v":{"v":0,"d":"$0.00"}},{"$f":"SUM(T159:T198)","v":{"v":0,"d":"$0.00"}},{"$f":"SUM(U159:U198)","v":{"v":0,"d":"$0.00"}},{"$f":"SUM(V159:V198)","v":{"v":0,"d":"$0.00"}},{"$f":"SUM(W159:W198)","v":{"v":0,"d":"$0.00"}}]
[{"$nulls":15},{"$f":"P199","v":0}]
[null,null,{"$f":"T('2 REPAIR ESTIMATOR'!D222:O222)","v":"CONCRETE & FLATWORK"},{"$nulls":5},{"$f":"SUM(I202:I241)","v":0},{"$nulls":6},{"$f":"I201","v":0}]
[null,null,{"$f":"T('2 REPAIR ESTIMATOR'!D223:O223)","v":"Concrete"},{"$nulls":5},{"$f":"'2 REPAIR ESTIMATOR'!P223","v":0},{"$f":"'2 REPAIR ESTIMATOR'!S223","v":0},{"$f":"IF($N$3=\"subbed\",U202,S202)*$S$70","v":{"v":0,"d":"$0"}},{"$f":"V202*$S$70","v":{"v":0,"d":"$0"}},{"$f":"W202*$S$70","v":{"v":0,"d":"$0"}},{"$f":"SUM(K202:M202)","v":{"v":0,"d":"$0"}},null,0,null,null,{"$f":"'2 REPAIR ESTIMATOR'!AD223","v":{"v":0,"d":"$0.00"}},{"$f":"'2 REPAIR ESTIMATOR'!AM223","v":{"v":0,"d":"$0.00"}},{"$f":"T202+S202","v":{"v":0,"d":"$0.00"}},{"$f":"'2 REPAIR ESTIMATOR'!AG223","v":{"v":0,"d":"$0.00"}},{"$f":"'2 REPAIR ESTIMATOR'!AJ223","v":{"v":0,"d":"$0.00"}}]
[null,null,{"$f":"T('2 REPAIR ESTIMATOR'!D224:O224)","v":"Concrete bid/allowance"},{"$nulls":5},{"$f":"'2 REPAIR ESTIMATOR'!P224","v":0},{"$f":"'2 REPAIR ESTIMATOR'!S224","v":"ls"},{"v":0,"d":"$0"},{"$f":"V203*$S$70","v":{"v":0,"d":"$0"}},{"$f":"W203*$S$70","v":{"v":0,"d":"$0"}},{"$f":"SUM(K203:M203)","v":{"v":0,"d":"$0"}},null,0,null,null,{"$f":"'2 REPAIR ESTIMATOR'!AD224","v":{"v":0,"d":"$0.00"}},{"$f":"'2 REPAIR ESTIMATOR'!AM224","v":{"v":0,"d":"$0.00"}},{"$f":"T203+S203","v":{"v":0,"d":"$0.00"}},{"$f":"'2 REPAIR ESTIMATOR'!AG224","v":{"v":0,"d":"$0.00"}},{"$f":"'2 REPAIR ESTIMATOR'!AJ224","v":{"v":0,"d":"$0.00"}}]
[null,null,{"$f":"T('2 REPAIR ESTIMATOR'!D225:O225)","v":"Concrete flatwork demo"},{"$nulls":5},{"$f":"'2 REPAIR ESTIMATOR'!P225","v":0},{"$f":"'2 REPAIR ESTIMATOR'!S225","v":"sf"},{"v":0,"d":"$0"},{"v":0,"d":"$0"},{"v":0,"d":"$0"},{"v":0,"d":"$0"},null,0,null,null,{"$f":"'2 REPAIR ESTIMATOR'!AD225","v":{"v":0,"d":"$0.00"}},{"$f":"'2 REPAIR ESTIMATOR'!AM225","v":{"v":0,"d":"$0.00"}},{"v":0,"d":"$0.00"},{"$f":"'2 REPAIR ESTIMATOR'!AG225","v":{"v":0,"d":"$0.00"}},{"$f":"'2 REPAIR ESTIMATOR'!AJ225","v":{"v":0,"d":"$0.00"}}]
[null,null,{"$f":"T('2 REPAIR ESTIMATOR'!D226:O226)","v":"Concrete driveway/patio, 6\" thick"},{"$nulls":5},{"$f":"'2 REPAIR ESTIMATOR'!P226","v":0},{"$f":"'2 REPAIR ESTIMATOR'!S226","v":"sf"},{"v":0,"d":"$0"},{"v":0,"d":"$0"},{"v":0,"d":"$0"},{"v":0,"d":"$0"},null,0,null,null,{"$f":"'2 REPAIR ESTIMATOR'!AD226","v":{"v":0,"d":"$0.00"}},{"$f":"'2 REPAIR ESTIMATOR'!AM226","v":{"v":0,"d":"$0.00"}},{"v":0,"d":"$0.00"},{"$f":"'2 REPAIR ESTIMATOR'!AG226","v":{"v":0,"d":"$0.00"}},{"$f":"'2 REPAIR ESTIMATOR'!AJ226","v":{"v":0,"d":"$0.00"}}]
[null,null,{"$f":"T('2 REPAIR ESTIMATOR'!D227:O227)","v":"Concrete sidewalk, 4\" thick"},{"$nulls":5},{"$f":"'2 REPAIR ESTIMATOR'!P227","v":0},{"$f":"'2 REPAIR ESTIMATOR'!S227","v":"sf"},{"v":0,"d":"$0"},{"v":0,"d":"$0"},{"v":0,"d":"$0"},{"v":0,"d":"$0"},null,0,null,null,{"$f":"'2 REPAIR ESTIMATOR'!AD227","v":{"v":0,"d":"$0.00"}},{"$f":"'2 REPAIR ESTIMATOR'!AM227","v":{"v":0,"d":"$0.00"}},{"v":0,"d":"$0.00"},{"$f":"'2 REPAIR ESTIMATOR'!AG227","v":{"v":0,"d":"$0.00"}},{"$f":"'2 REPAIR ESTIMATOR'!AJ227","v":{"v":0,"d":"$0.00"}}]
[null,null,{"$f":"T('2 REPAIR ESTIMATOR'!D228:O228)","v":"Add for 4\" base rock below concrete pavement"},{"$nulls":5},{"$f":"'2 REPAIR ESTIMATOR'!P228","v":0},{"$f":"'2 REPAIR ESTIMATOR'!S228","v":"sf"},{"v":0,"d":"$0"},{"v":0,"d":"$0"},{"v":0,"d":"$0"},{"v":0,"d":"$0"},null,0,null,null,{"$f":"'2 REPAIR ESTIMATOR'!AD228","v":{"v":0,"d":"$0.00"}},{"$f":"'2 REPAIR ESTIMATOR'!AM228","v":{"v":0,"d":"$0.00"}},{"v":0,"d":"$0.00"},{"$f":"'2 REPAIR ESTIMATOR'!AG228","v":{"v":0,"d":"$0.00"}},{"$f":"'2 REPAIR ESTIMATOR'!AJ228","v":{"v":0,"d":"$0.00"}}]
[null,null,{"$f":"T('2 REPAIR ESTIMATOR'!D229:O229)","v":""},{"$nulls":5},{"$f":"'2 REPAIR ESTIMATOR'!P229","v":0},{"$f":"'2 REPAIR ESTIMATOR'!S229","v":0},{"v":0,"d":"$0"},{"v":0,"d":"$0"},{"v":0,"d":"$0"},{"v":0,"d":"$0"},null,0,null,null,{"$f":"'2 REPAIR ESTIMATOR'!AD229","v":{"v":0,"d":"$0.00"}},{"$f":"'2 REPAIR ESTIMATOR'!AM229","v":{"v":0,"d":"$0.00"}},{"v":0,"d":"$0.00"},{"$f":"'2 REPAIR ESTIMATOR'!AG229","v":{"v":0,"d":"$0.00"}},{"$f":"'2 REPAIR ESTIMATOR'!AJ229","v":{"v":0,"d":"$0.00"}}]
[null,null,{"$f":"T('2 REPAIR ESTIMATOR'!D230:O230)","v":"Asphalt"},{"$nulls":5},{"$f":"'2 REPAIR ESTIMATOR'!P230","v":0},{"$f":"'2 REPAIR ESTIMATOR'!S230","v":0},{"v":0,"d":"$0"},{"v":0,"d":"$0"},{"v":0,"d":"$0"},{"v":0,"d":"$0"},null,0,null,null,{"$f":"'2 REPAIR ESTIMATOR'!AD230","v":{"v":0,"d":"$0.00"}},{"$f":"'2 REPAIR ESTIMATOR'!AM230","v":{"v":0,"d":"$0.00"}},{"v":0,"d":"$0.00"},{"$f":"'2 REPAIR ESTIMATOR'!AG230","v":{"v":0,"d":"$0.00"}},{"$f":"'2 REPAIR ESTIMATOR'!AJ230","v":{"v":0,"d":"$0.00"}}]
[null,null,{"$f":"T('2 REPAIR ESTIMATOR'!D231:O231)","v":"Asphalt bid/allowance"},{"$nulls":5},{"$f":"'2 REPAIR ESTIMATOR'!P231","v":0},{"$f":"'2 REPAIR ESTIMATOR'!S231","v":"ls"},{"v":0,"d":"$0"},{"v":0,"d":"$0"},{"v":0,"d":"$0"},{"v":0,"d":"$0"},null,0,null,null,{"$f":"'2 REPAIR ESTIMATOR'!AD231","v":{"v":0,"d":"$0.00"}},{"$f":"'2 REPAIR ESTIMATOR'!AM231","v":{"v":0,"d":"$0.00"}},{"v":0,"d":"$0.00"},{"$f":"'2 REPAIR ESTIMATOR'!AG231","v":{"v":0,"d":"$0.00"}},{"$f":"'2 REPAIR ESTIMATOR'!AJ231","v":{"v":0,"d":"$0.00"}}]
[null,null,{"$f":"T('2 REPAIR ESTIMATOR'!D232:O232)","v":"Asphalt pavement, 5\" thick"},{"$nulls":5},{"$f":"'2 REPAIR ESTIMATOR'!P232","v":0},{"$f":"'2 REPAIR ESTIMATOR'!S232","v":"sy"},{"v":0,"d":"$0"},{"v":0,"d":"$0"},{"v":0,"d":"$0"},{"v":0,"d":"$0"},null,0,null,null,{"$f":"'2 REPAIR ESTIMATOR'!AD232","v":{"v":0,"d":"$0.00"}},{"$f":"'2 REPAIR ESTIMATOR'!AM232","v":{"v":0,"d":"$0.00"}},{"v":0,"d":"$0.00"},{"$f":"'2 REPAIR ESTIMATOR'!AG232","v":{"v":0,"d":"$0.00"}},{"$f":"'2 REPAIR ESTIMATOR'!AJ232","v":{"v":0,"d":"$0.00"}}]
[null,null,{"$f":"T('2 REPAIR ESTIMATOR'!D233:O233)","v":"Asphalt pavement, 7\" thick"},{"$nulls":5},{"$f":"'2 REPAIR ESTIMATOR'!P233","v":0},{"$f":"'2 REPAIR ESTIMATOR'!S233","v":"sy"},{"v":0,"d":"$0"},{"v":0,"d":"$0"},{"v":0,"d":"$0"},{"v":0,"d":"$0"},null,0,null,null,{"$f":"'2 REPAIR ESTIMATOR'!AD233","v":{"v":0,"d":"$0.00"}},{"$f":"'2 REPAIR ESTIMATOR'!AM233","v":{"v":0,"d":"$0.00"}},{"v":0,"d":"$0.00"},{"$f":"'2 REPAIR ESTIMATOR'!AG233","v":{"v":0,"d":"$0.00"}},{"$f":"'2 REPAIR ESTIMATOR'!AJ233","v":{"v":0,"d":"$0.00"}}]
[null,null,{"$f":"T('2 REPAIR ESTIMATOR'!D234:O234)","v":"Asphalt pavement, wearing course, 1\" thick only"},{"$nulls":5},{"$f":"'2 REPAIR ESTIMATOR'!P234","v":0},{"$f":"'2 REPAIR ESTIMATOR'!S234","v":"sy"},{"v":0,"d":"$0"},{"v":0,"d":"$0"},{"v":0,"d":"$0"},{"v":0,"d":"$0"},null,0,null,null,{"$f":"'2 REPAIR ESTIMATOR'!AD234","v":{"v":0,"d":"$0.00"}},{"$f":"'2 REPAIR ESTIMATOR'!AM234","v":{"v":0,"d":"$0.00"}},{"v":0,"d":"$0.00"},{"$f":"'2 REPAIR ESTIMATOR'!AG234","v":{"v":0,"d":"$0.00"}},{"$f":"'2 REPAIR ESTIMATOR'!AJ234","v":{"v":0,"d":"$0.00"}}]
[null,null,{"$f":"T('2 REPAIR ESTIMATOR'!D235:O235)","v":"Asphalt seal coat"},{"$nulls":5},{"$f":"'2 REPAIR ESTIMATOR'!P235","v":0},{"$f":"'2 REPAIR ESTIMATOR'!S235","v":"sy"},{"v":0,"d":"$0"},{"v":0,"d":"$0"},{"v":0,"d":"$0"},{"v":0,"d":"$0"},null,0,null,null,{"$f":"'2 REPAIR ESTIMATOR'!AD235","v":{"v":0,"d":"$0.00"}},{"$f":"'2 REPAIR ESTIMATOR'!AM235","v":{"v":0,"d":"$0.00"}},{"v":0,"d":"$0.00"},{"$f":"'2 REPAIR ESTIMATOR'!AG235","v":{"v":0,"d":"$0.00"}},{"$f":"'2 REPAIR ESTIMATOR'!AJ235","v":{"v":0,"d":"$0.00"}}]
[null,null,{"$f":"T('2 REPAIR ESTIMATOR'!D236:O236)","v":"Add for 4\" base rock below asphalt pavement"},{"$nulls":5},{"$f":"'2 REPAIR ESTIMATOR'!P236","v":0},{"$f":"'2 REPAIR ESTIMATOR'!S236","v":"sy"},{"v":0,"d":"$0"},{"v":0,"d":"$0"},{"v":0,"d":"$0"},{"v":0,"d":"$0"},null,0,null,null,{"$f":"'2 REPAIR ESTIMATOR'!AD236","v":{"v":0,"d":"$0.00"}},{"$f":"'2 REPAIR ESTIMATOR'!AM236","v":{"v":0,"d":"$0.00"}},{"v":0,"d":"$0.00"},{"$f":"'2 REPAIR ESTIMATOR'!AG236","v":{"v":0,"d":"$0.00"}},{"$f":"'2 REPAIR ESTIMATOR'!AJ236","v":{"v":0,"d":"$0.00"}}]
[null,null,{"$f":"T('2 REPAIR ESTIMATOR'!D237:O237)","v":""},{"$nulls":5},{"$f":"'2 REPAIR ESTIMATOR'!P237","v":0},{"$f":"'2 REPAIR ESTIMATOR'!S237","v":0},{"v":0,"d":"$0"},{"v":0,"d":"$0"},{"v":0,"d":"$0"},{"v":0,"d":"$0"},null,0,null,null,{"$f":"'2 REPAIR ESTIMATOR'!AD237","v":{"v":0,"d":"$0.00"}},{"$f":"'2 REPAIR ESTIMATOR'!AM237","v":{"v":0,"d":"$0.00"}},{"v":0,"d":"$0.00"},{"$f":"'2 REPAIR ESTIMATOR'!AG237","v":{"v":0,"d":"$0.00"}},{"$f":"'2 REPAIR ESTIMATOR'!AJ237","v":{"v":0,"d":"$0.00"}}]
[null,null,{"$f":"T('2 REPAIR ESTIMATOR'!D238:O238)","v":"Pavers"},{"$nulls":5},{"$f":"'2 REPAIR ESTIMATOR'!P238","v":0},{"$f":"'2 REPAIR ESTIMATOR'!S238","v":0},{"v":0,"d":"$0"},{"v":0,"d":"$0"},{"v":0,"d":"$0"},{"v":0,"d":"$0"},null,0,null,null,{"$f":"'2 REPAIR ESTIMATOR'!AD238","v":{"v":0,"d":"$0.00"}},{"$f":"'2 REPAIR ESTIMATOR'!AM238","v":{"v":0,"d":"$0.00"}},{"v":0,"d":"$0.00"},{"$f":"'2 REPAIR ESTIMATOR'!AG238","v":{"v":0,"d":"$0.00"}},{"$f":"'2 REPAIR ESTIMATOR'!AJ238","v":{"v":0,"d":"$0.00"}}]
[null,null,{"$f":"T('2 REPAIR ESTIMATOR'!D239:O239)","v":"Pavers bid/allowance"},{"$nulls":5},{"$f":"'2 REPAIR ESTIMATOR'!P239","v":0},{"$f":"'2 REPAIR ESTIMATOR'!S239","v":"ls"},{"v":0,"d":"$0"},{"v":0,"d":"$0"},{"v":0,"d":"$0"},{"v":0,"d":"$0"},null,0,null,null,{"$f":"'2 REPAIR ESTIMATOR'!AD239","v":{"v":0,"d":"$0.00"}},{"$f":"'2 REPAIR ESTIMATOR'!AM239","v":{"v":0,"d":"$0.00"}},{"v":0,"d":"$0.00"},{"$f":"'2 REPAIR ESTIMATOR'!AG239","v":{"v":0,"d":"$0.00"}},{"$f":"'2 REPAIR ESTIMATOR'!AJ239","v":{"v":0,"d":"$0.00"}}]
[null,null,{"$f":"T('2 REPAIR ESTIMATOR'!D240:O240)","v":"Brick pavers, sand base"},{"$nulls":5},{"$f":"'2 REPAIR ESTIMATOR'!P240","v":0},{"$f":"'2 REPAIR ESTIMATOR'!S240","v":"sf"},{"v":0,"d":"$0"},{"v":0,"d":"$0"},{"v":0,"d":"$0"},{"v":0,"d":"$0"},null,0,null,null,{"$f":"'2 REPAIR ESTIMATOR'!AD240","v":{"v":0,"d":"$0.00"}},{"$f":"'2 REPAIR ESTIMATOR'!AM240","v":{"v":0,"d":"$0.00"}},{"v":0,"d":"$0.00"},{"$f":"'2 REPAIR ESTIMATOR'!AG240","v":{"v":0,"d":"$0.00"}},{"$f":"'2 REPAIR ESTIMATOR'!AJ240","v":{"v":0,"d":"$0.00"}}]
[null,null,{"$f":"T('2 REPAIR ESTIMATOR'!D241:O241)","v":"Brick pavers, mortar base"},{"$nulls":5},{"$f":"'2 REPAIR ESTIMATOR'!P241","v":0},{"$f":"'2 REPAIR ESTIMATOR'!S241","v":"sf"},{"v":0,"d":"$0"},{"v":0,"d":"$0"},{"v":0,"d":"$0"},{"v":0,"d":"$0"},null,0,null,null,{"$f":"'2 REPAIR ESTIMATOR'!AD241","v":{"v":0,"d":"$0.00"}},{"$f":"'2 REPAIR ESTIMATOR'!AM241","v":{"v":0,"d":"$0.00"}},{"v":0,"d":"$0.00"},{"$f":"'2 REPAIR ESTIMATOR'!AG241","v":{"v":0,"d":"$0.00"}},{"$f":"'2 REPAIR ESTIMATOR'!AJ241","v":{"v":0,"d":"$0.00"}}]
[null,null,{"$f":"T('2 REPAIR ESTIMATOR'!D242:O242)","v":""},{"$nulls":5},{"$f":"'2 REPAIR ESTIMATOR'!P242","v":0},{"$f":"'2 REPAIR ESTIMATOR'!S242","v":0},{"v":0,"d":"$0"},{"v":0,"d":"$0"},{"v":0,"d":"$0"},{"v":0,"d":"$0"},null,0,null,null,{"$f":"'2 REPAIR ESTIMATOR'!AD242","v":{"v":0,"d":"$0.00"}},{"$f":"'2 REPAIR ESTIMATOR'!AM242","v":{"v":0,"d":"$0.00"}},{"v":0,"d":"$0.00"},{"$f":"'2 REPAIR ESTIMATOR'!AG242","v":{"v":0,"d":"$0.00"}},{"$f":"'2 REPAIR ESTIMATOR'!AJ242","v":{"v":0,"d":"$0.00"}}]
[null,null,{"$f":"T('2 REPAIR ESTIMATOR'!D243:O243)","v":""},{"$nulls":5},{"$f":"'2 REPAIR ESTIMATOR'!P243","v":0},{"$f":"'2 REPAIR ESTIMATOR'!S243","v":0},{"v":0,"d":"$0"},{"v":0,"d":"$0"},{"v":0,"d":"$0"},{"v":0,"d":"$0"},null,{"$f":"I222","v":0},null,null,{"$f":"'2 REPAIR ESTIMATOR'!AD243","v":{"v":0,"d":"$0.00"}},{"$f":"'2 REPAIR ESTIMATOR'!AM243","v":{"v":0,"d":"$0.00"}},{"v":0,"d":"$0.00"},{"$f":"'2 REPAIR ESTIMATOR'!AG243","v":{"v":0,"d":"$0.00"}},{"$f":"'2 REPAIR ESTIMATOR'!AJ243","v":{"v":0,"d":"$0.00"}}]
[null,null,{"$f":"T('2 REPAIR ESTIMATOR'!D244:O244)","v":""},{"$nulls":5},{"$f":"'2 REPAIR ESTIMATOR'!P244","v":0},{"$f":"'2 REPAIR ESTIMATOR'!S244","v":0},{"v":0,"d":"$0"},{"v":0,"d":"$0"},{"v":0,"d":"$0"},{"v":0,"d":"$0"},null,0,null,null,{"$f":"'2 REPAIR ESTIMATOR'!AD244","v":{"v":0,"d":"$0.00"}},{"$f":"'2 REPAIR ESTIMATOR'!AM244","v":{"v":0,"d":"$0.00"}},{"v":0,"d":"$0.00"},{"$f":"'2 REPAIR ESTIMATOR'!AG244","v":{"v":0,"d":"$0.00"}},{"$f":"'2 REPAIR ESTIMATOR'!AJ244","v":{"v":0,"d":"$0.00"}}]
[null,null,{"$f":"T('2 REPAIR ESTIMATOR'!D245:O245)","v":""},{"$nulls":5},{"$f":"'2 REPAIR ESTIMATOR'!P245","v":0},{"$f":"'2 REPAIR ESTIMATOR'!S245","v":0},{"v":0,"d":"$0"},{"v":0,"d":"$0"},{"v":0,"d":"$0"},{"v":0,"d":"$0"},null,0,null,null,{"$f":"'2 REPAIR ESTIMATOR'!AD245","v":{"v":0,"d":"$0.00"}},{"$f":"'2 REPAIR ESTIMATOR'!AM245","v":{"v":0,"d":"$0.00"}},{"v":0,"d":"$0.00"},{"$f":"'2 REPAIR ESTIMATOR'!AG245","v":{"v":0,"d":"$0.00"}},{"$f":"'2 REPAIR ESTIMATOR'!AJ245","v":{"v":0,"d":"$0.00"}}]
[null,null,{"$f":"T('2 REPAIR ESTIMATOR'!D246:O246)","v":""},{"$nulls":5},{"$f":"'2 REPAIR ESTIMATOR'!P246","v":0},{"$f":"'2 REPAIR ESTIMATOR'!S246","v":0},{"v":0,"d":"$0"},{"v":0,"d":"$0"},{"v":0,"d":"$0"},{"v":0,"d":"$0"},null,0,null,null,{"$f":"'2 REPAIR ESTIMATOR'!AD246","v":{"v":0,"d":"$0.00"}},{"$f":"'2 REPAIR ESTIMATOR'!AM246","v":{"v":0,"d":"$0.00"}},{"v":0,"d":"$0.00"},{"$f":"'2 REPAIR ESTIMATOR'!AG246","v":{"v":0,"d":"$0.00"}},{"$f":"'2 REPAIR ESTIMATOR'!AJ246","v":{"v":0,"d":"$0.00"}}]
[null,null,{"$f":"T('2 REPAIR ESTIMATOR'!D247:O247)","v":""},{"$nulls":5},{"$f":"'2 REPAIR ESTIMATOR'!P247","v":0},{"$f":"'2 REPAIR ESTIMATOR'!S247","v":0},{"v":0,"d":"$0"},{"v":0,"d":"$0"},{"v":0,"d":"$0"},{"v":0,"d":"$0"},null,0,null,null,{"$f":"'2 REPAIR ESTIMATOR'!AD247","v":{"v":0,"d":"$0.00"}},{"$f":"'2 REPAIR ESTIMATOR'!AM247","v":{"v":0,"d":"$0.00"}},{"v":0,"d":"$0.00"},{"$f":"'2 REPAIR ESTIMATOR'!AG247","v":{"v":0,"d":"$0.00"}},{"$f":"'2 REPAIR ESTIMATOR'!AJ247","v":{"v":0,"d":"$0.00"}}]
[null,null,{"$f":"T('2 REPAIR ESTIMATOR'!D248:O248)","v":""},{"$nulls":5},{"$f":"'2 REPAIR ESTIMATOR'!P248","v":0},{"$f":"'2 REPAIR ESTIMATOR'!S248","v":0},{"v":0,"d":"$0"},{"v":0,"d":"$0"},{"v":0,"d":"$0"},{"v":0,"d":"$0"},null,0,null,null,{"$f":"'2 REPAIR ESTIMATOR'!AD248","v":{"v":0,"d":"$0.00"}},{"$f":"'2 REPAIR ESTIMATOR'!AM248","v":{"v":0,"d":"$0.00"}},{"v":0,"d":"$0.00"},{"$f":"'2 REPAIR ESTIMATOR'!AG248","v":{"v":0,"d":"$0.00"}},{"$f":"'2 REPAIR ESTIMATOR'!AJ248","v":{"v":0,"d":"$0.00"}}]
[null,null,{"$f":"T('2 REPAIR ESTIMATOR'!D249:O249)","v":""},{"$nulls":5},{"$f":"'2 REPAIR ESTIMATOR'!P249","v":0},{"$f":"'2 REPAIR ESTIMATOR'!S249","v":0},{"v":0,"d":"$0"},{"v":0,"d":"$0"},{"v":0,"d":"$0"},{"v":0,"d":"$0"},null,0,null,null,{"$f":"'2 REPAIR ESTIMATOR'!AD249","v":{"v":0,"d":"$0.00"}},{"$f":"'2 REPAIR ESTIMATOR'!AM249","v":{"v":0,"d":"$0.00"}},{"v":0,"d":"$0.00"},{"$f":"'2 REPAIR ESTIMATOR'!AG249","v":{"v":0,"d":"$0.00"}},{"$f":"'2 REPAIR ESTIMATOR'!AJ249","v":{"v":0,"d":"$0.00"}}]
[null,null,{"$f":"T('2 REPAIR ESTIMATOR'!D250:O250)","v":""},{"$nulls":5},{"$f":"'2 REPAIR ESTIMATOR'!P250","v":0},{"$f":"'2 REPAIR ESTIMATOR'!S250","v":0},{"v":0,"d":"$0"},{"v":0,"d":"$0"},{"v":0,"d":"$0"},{"v":0,"d":"$0"},null,0,null,null,{"$f":"'2 REPAIR ESTIMATOR'!AD250","v":{"v":0,"d":"$0.00"}},{"$f":"'2 REPAIR ESTIMATOR'!AM250","v":{"v":0,"d":"$0.00"}},{"v":0,"d":"$0.00"},{"$f":"'2 REPAIR ESTIMATOR'!AG250","v":{"v":0,"d":"$0.00"}},{"$f":"'2 REPAIR ESTIMATOR'!AJ250","v":{"v":0,"d":"$0.00"}}]
[null,null,{"$f":"T('2 REPAIR ESTIMATOR'!D251:O251)","v":""},{"$nulls":5},{"$f":"'2 REPAIR ESTIMATOR'!P251","v":0},{"$f":"'2 REPAIR ESTIMATOR'!S251","v":0},{"v":0,"d":"$0"},{"v":0,"d":"$0"},{"v":0,"d":"$0"},{"v":0,"d":"$0"},null,0,null,null,{"$f":"'2 REPAIR ESTIMATOR'!AD251","v":{"v":0,"d":"$0.00"}},{"$f":"'2 REPAIR ESTIMATOR'!AM251","v":{"v":0,"d":"$0.00"}},{"v":0,"d":"$0.00"},{"$f":"'2 REPAIR ESTIMATOR'!AG251","v":{"v":0,"d":"$0.00"}},{"$f":"'2 REPAIR ESTIMATOR'!AJ251","v":{"v":0,"d":"$0.00"}}]
[null,null,{"$f":"T('2 REPAIR ESTIMATOR'!D252:O252)","v":""},{"$nulls":5},{"$f":"'2 REPAIR ESTIMATOR'!P252","v":0},{"$f":"'2 REPAIR ESTIMATOR'!S252","v":0},{"v":0,"d":"$0"},{"v":0,"d":"$0"},{"v":0,"d":"$0"},{"v":0,"d":"$0"},null,0,null,null,{"$f":"'2 REPAIR ESTIMATOR'!AD252","v":{"v":0,"d":"$0.00"}},{"$f":"'2 REPAIR ESTIMATOR'!AM252","v":{"v":0,"d":"$0.00"}},{"v":0,"d":"$0.00"},{"$f":"'2 REPAIR ESTIMATOR'!AG252","v":{"v":0,"d":"$0.00"}},{"$f":"'2 REPAIR ESTIMATOR'!AJ252","v":{"v":0,"d":"$0.00"}}]
[null,null,{"$f":"T('2 REPAIR ESTIMATOR'!D253:O253)","v":""},{"$nulls":5},{"$f":"'2 REPAIR ESTIMATOR'!P253","v":0},{"$f":"'2 REPAIR ESTIMATOR'!S253","v":0},{"v":0,"d":"$0"},{"v":0,"d":"$0"},{"v":0,"d":"$0"},{"v":0,"d":"$0"},null,0,null,null,{"$f":"'2 REPAIR ESTIMATOR'!AD253","v":{"v":0,"d":"$0.00"}},{"$f":"'2 REPAIR ESTIMATOR'!AM253","v":{"v":0,"d":"$0.00"}},{"v":0,"d":"$0.00"},{"$f":"'2 REPAIR ESTIMATOR'!AG253","v":{"v":0,"d":"$0.00"}},{"$f":"'2 REPAIR ESTIMATOR'!AJ253","v":{"v":0,"d":"$0.00"}}]
[null,null,{"$f":"T('2 REPAIR ESTIMATOR'!D254:O254)","v":""},{"$nulls":5},{"$f":"'2 REPAIR ESTIMATOR'!P254","v":0},{"$f":"'2 REPAIR ESTIMATOR'!S254","v":0},{"v":0,"d":"$0"},{"v":0,"d":"$0"},{"v":0,"d":"$0"},{"v":0,"d":"$0"},null,0,null,null,{"$f":"'2 REPAIR ESTIMATOR'!AD254","v":{"v":0,"d":"$0.00"}},{"$f":"'2 REPAIR ESTIMATOR'!AM254","v":{"v":0,"d":"$0.00"}},{"v":0,"d":"$0.00"},{"$f":"'2 REPAIR ESTIMATOR'!AG254","v":{"v":0,"d":"$0.00"}},{"$f":"'2 REPAIR ESTIMATOR'!AJ254","v":{"v":0,"d":"$0.00"}}]
[null,null,{"$f":"T('2 REPAIR ESTIMATOR'!D255:O255)","v":""},{"$nulls":5},{"$f":"'2 REPAIR ESTIMATOR'!P255","v":0},{"$f":"'2 REPAIR ESTIMATOR'!S255","v":0},{"v":0,"d":"$0"},{"v":0,"d":"$0"},{"v":0,"d":"$0"},{"v":0,"d":"$0"},null,0,null,null,{"$f":"'2 REPAIR ESTIMATOR'!AD255","v":{"v":0,"d":"$0.00"}},{"$f":"'2 REPAIR ESTIMATOR'!AM255","v":{"v":0,"d":"$0.00"}},{"v":0,"d":"$0.00"},{"$f":"'2 REPAIR ESTIMATOR'!AG255","v":{"v":0,"d":"$0.00"}},{"$f":"'2 REPAIR ESTIMATOR'!AJ255","v":{"v":0,"d":"$0.00"}}]
[null,null,{"$f":"T('2 REPAIR ESTIMATOR'!D256:O256)","v":""},{"$nulls":5},{"$f":"'2 REPAIR ESTIMATOR'!P256","v":0},{"$f":"'2 REPAIR ESTIMATOR'!S256","v":0},{"v":0,"d":"$0"},{"v":0,"d":"$0"},{"v":0,"d":"$0"},{"v":0,"d":"$0"},null,0,null,null,{"$f":"'2 REPAIR ESTIMATOR'!AD256","v":{"v":0,"d":"$0.00"}},{"$f":"'2 REPAIR ESTIMATOR'!AM256","v":{"v":0,"d":"$0.00"}},{"v":0,"d":"$0.00"},{"$f":"'2 REPAIR ESTIMATOR'!AG256","v":{"v":0,"d":"$0.00"}},{"$f":"'2 REPAIR ESTIMATOR'!AJ256","v":{"v":0,"d":"$0.00"}}]
[null,null,{"$f":"T('2 REPAIR ESTIMATOR'!D257:O257)","v":""},{"$nulls":5},{"$f":"'2 REPAIR ESTIMATOR'!P257","v":0},{"$f":"'2 REPAIR ESTIMATOR'!S257","v":0},{"v":0,"d":"$0"},{"v":0,"d":"$0"},{"v":0,"d":"$0"},{"v":0,"d":"$0"},null,0,null,null,{"$f":"'2 REPAIR ESTIMATOR'!AD257","v":{"v":0,"d":"$0.00"}},{"$f":"'2 REPAIR ESTIMATOR'!AM257","v":{"v":0,"d":"$0.00"}},{"v":0,"d":"$0.00"},{"$f":"'2 REPAIR ESTIMATOR'!AG257","v":{"v":0,"d":"$0.00"}},{"$f":"'2 REPAIR ESTIMATOR'!AJ257","v":{"v":0,"d":"$0.00"}}]
[null,null,{"$f":"T('2 REPAIR ESTIMATOR'!D258:O258)","v":""},{"$nulls":5},{"$f":"'2 REPAIR ESTIMATOR'!P258","v":0},{"$f":"'2 REPAIR ESTIMATOR'!S258","v":0},{"v":0,"d":"$0"},{"v":0,"d":"$0"},{"v":0,"d":"$0"},{"v":0,"d":"$0"},null,0,null,null,{"$f":"'2 REPAIR ESTIMATOR'!AD258","v":{"v":0,"d":"$0.00"}},{"$f":"'2 REPAIR ESTIMATOR'!AM258","v":{"v":0,"d":"$0.00"}},{"v":0,"d":"$0.00"},{"$f":"'2 REPAIR ESTIMATOR'!AG258","v":{"v":0,"d":"$0.00"}},{"$f":"'2 REPAIR ESTIMATOR'!AJ258","v":{"v":0,"d":"$0.00"}}]
[null,null,{"$f":"T('2 REPAIR ESTIMATOR'!D259:O259)","v":""},{"$nulls":5},{"$f":"'2 REPAIR ESTIMATOR'!P259","v":0},{"$f":"'2 REPAIR ESTIMATOR'!S259","v":0},{"v":0,"d":"$0"},{"v":0,"d":"$0"},{"v":0,"d":"$0"},{"v":0,"d":"$0"},null,0,null,null,{"$f":"'2 REPAIR ESTIMATOR'!AD259","v":{"v":0,"d":"$0.00"}},{"$f":"'2 REPAIR ESTIMATOR'!AM259","v":{"v":0,"d":"$0.00"}},{"v":0,"d":"$0.00"},{"$f":"'2 REPAIR ESTIMATOR'!AG259","v":{"v":0,"d":"$0.00"}},{"$f":"'2 REPAIR ESTIMATOR'!AJ259","v":{"v":0,"d":"$0.00"}}]
[null,null,{"$f":"T('2 REPAIR ESTIMATOR'!D260:O260)","v":""},{"$nulls":5},{"$f":"'2 REPAIR ESTIMATOR'!P260","v":0},{"$f":"'2 REPAIR ESTIMATOR'!S260","v":0},{"v":0,"d":"$0"},{"v":0,"d":"$0"},{"v":0,"d":"$0"},{"v":0,"d":"$0"},null,0,null,null,{"$f":"'2 REPAIR ESTIMATOR'!AD260","v":{"v":0,"d":"$0.00"}},{"$f":"'2 REPAIR ESTIMATOR'!AM260","v":{"v":0,"d":"$0.00"}},{"v":0,"d":"$0.00"},{"$f":"'2 REPAIR ESTIMATOR'!AG260","v":{"v":0,"d":"$0.00"}},{"$f":"'2 REPAIR ESTIMATOR'!AJ260","v":{"v":0,"d":"$0.00"}}]
[null,null,{"$f":"T('2 REPAIR ESTIMATOR'!D261:O261)","v":""},{"$nulls":5},{"$f":"'2 REPAIR ESTIMATOR'!P261","v":0},{"$f":"'2 REPAIR ESTIMATOR'!S261","v":0},{"v":0,"d":"$0"},{"v":0,"d":"$0"},{"v":0,"d":"$0"},{"v":0,"d":"$0"},null,0,null,null,{"$f":"'2 REPAIR ESTIMATOR'!AD261","v":{"v":0,"d":"$0.00"}},{"$f":"'2 REPAIR ESTIMATOR'!AM261","v":{"v":0,"d":"$0.00"}},{"v":0,"d":"$0.00"},{"$f":"'2 REPAIR ESTIMATOR'!AG261","v":{"v":0,"d":"$0.00"}},{"$f":"'2 REPAIR ESTIMATOR'!AJ261","v":{"v":0,"d":"$0.00"}}]
[null,null,{"$f":"T('2 REPAIR ESTIMATOR'!D262:O262)","v":""},{"$nulls":5},{"$f":"'2 REPAIR ESTIMATOR'!P262","v":0},{"$f":"'2 REPAIR ESTIMATOR'!S262","v":0},{"v":0,"d":"$0"},{"v":0,"d":"$0"},{"v":0,"d":"$0"},{"v":0,"d":"$0"},null,0,null,null,{"$f":"'2 REPAIR ESTIMATOR'!AD262","v":{"v":0,"d":"$0.00"}},{"$f":"'2 REPAIR ESTIMATOR'!AM262","v":{"v":0,"d":"$0.00"}},{"v":0,"d":"$0.00"},{"$f":"'2 REPAIR ESTIMATOR'!AG262","v":{"v":0,"d":"$0.00"}},{"$f":"'2 REPAIR ESTIMATOR'!AJ262","v":{"v":0,"d":"$0.00"}}]
[null,null,{"$f":"T('2 REPAIR ESTIMATOR'!AC264)","v":"CONCRETE & FLATWORK TOTAL"},{"$nulls":7},{"$f":"SUM(K202:K241)","v":{"v":0,"d":"$0"}},{"$f":"SUM(L202:L241)","v":{"v":0,"d":"$0"}},{"$f":"SUM(M202:M241)","v":{"v":0,"d":"$0"}},{"$f":"SUM(N202:O241)","v":{"v":0,"d":"$0"}},null,{"$f":"SUM(P201:P211)","v":0},null,null,{"$f":"SUM(S202:S241)","v":{"v":0,"d":"$0.00"}},{"$f":"SUM(T202:T241)","v":{"v":0,"d":"$0.00"}},{"$f":"SUM(U202:U241)","v":{"v":0,"d":"$0.00"}},{"$f":"SUM(V202:V241)","v":{"v":0,"d":"$0.00"}},{"$f":"SUM(W202:W241)","v":{"v":0,"d":"$0.00"}}]
[{"$nulls":15},{"$f":"P242","v":0}]
[null,null,{"$f":"T('2 REPAIR ESTIMATOR'!D267:O267)","v":"MASONRY"},{"$nulls":5},{"$f":"SUM(I245:I284)","v":0},{"$nulls":6},{"$f":"I244","v":0}]
[null,null,{"$f":"T('2 REPAIR ESTIMATOR'!D268:O268)","v":"Masonry bid/allowance"},{"$nulls":5},{"$f":"'2 REPAIR ESTIMATOR'!P268","v":0},{"$f":"'2 REPAIR ESTIMATOR'!S268","v":"ls"},{"$f":"IF($N$3=\"subbed\",U245,S245)*$S$70","v":{"v":0,"d":"$0"}},{"$f":"V245*$S$70","v":{"v":0,"d":"$0"}},{"$f":"W245*$S$70","v":{"v":0,"d":"$0"}},{"$f":"SUM(K245:M245)","v":{"v":0,"d":"$0"}},null,0,null,null,{"$f":"'2 REPAIR ESTIMATOR'!AD268","v":{"v":0,"d":"$0.00"}},{"$f":"'2 REPAIR ESTIMATOR'!AM268","v":{"v":0,"d":"$0.00"}},{"$f":"T245+S245","v":{"v":0,"d":"$0.00"}},{"$f":"'2 REPAIR ESTIMATOR'!AG268","v":{"v":0,"d":"$0.00"}},{"$f":"'2 REPAIR ESTIMATOR'!AJ268","v":{"v":0,"d":"$0.00"}}]
[null,null,{"$f":"T('2 REPAIR ESTIMATOR'!D269:O269)","v":"CMU, 4x8"},{"$nulls":5},{"$f":"'2 REPAIR ESTIMATOR'!P269","v":0},{"$f":"'2 REPAIR ESTIMATOR'!S269","v":"sf"},{"v":0,"d":"$0"},{"$f":"V246*$S$70","v":{"v":0,"d":"$0"}},{"$f":"W246*$S$70","v":{"v":0,"d":"$0"}},{"$f":"SUM(K246:M246)","v":{"v":0,"d":"$0"}},null,0,null,null,{"$f":"'2 REPAIR ESTIMATOR'!AD269","v":{"v":0,"d":"$0.00"}},{"$f":"'2 REPAIR ESTIMATOR'!AM269","v":{"v":0,"d":"$0.00"}},{"$f":"T246+S246","v":{"v":0,"d":"$0.00"}},{"$f":"'2 REPAIR ESTIMATOR'!AG269","v":{"v":0,"d":"$0.00"}},{"$f":"'2 REPAIR ESTIMATOR'!AJ269","v":{"v":0,"d":"$0.00"}}]
[null,null,{"$f":"T('2 REPAIR ESTIMATOR'!D270:O270)","v":"CMU, 8x8"},{"$nulls":5},{"$f":"'2 REPAIR ESTIMATOR'!P270","v":0},{"$f":"'2 REPAIR ESTIMATOR'!S270","v":"sf"},{"v":0,"d":"$0"},{"v":0,"d":"$0"},{"v":0,"d":"$0"},{"v":0,"d":"$0"},null,0,null,null,{"$f":"'2 REPAIR ESTIMATOR'!AD270","v":{"v":0,"d":"$0.00"}},{"$f":"'2 REPAIR ESTIMATOR'!AM270","v":{"v":0,"d":"$0.00"}},{"v":0,"d":"$0.00"},{"$f":"'2 REPAIR ESTIMATOR'!AG270","v":{"v":0,"d":"$0.00"}},{"$f":"'2 REPAIR ESTIMATOR'!AJ270","v":{"v":0,"d":"$0.00"}}]
[null,null,{"$f":"T('2 REPAIR ESTIMATOR'!D271:O271)","v":"Brick veneer"},{"$nulls":5},{"$f":"'2 REPAIR ESTIMATOR'!P271","v":0},{"$f":"'2 REPAIR ESTIMATOR'!S271","v":"sf"},{"v":0,"d":"$0"},{"v":0,"d":"$0"},{"v":0,"d":"$0"},{"v":0,"d":"$0"},null,0,null,null,{"$f":"'2 REPAIR ESTIMATOR'!AD271","v":{"v":0,"d":"$0.00"}},{"$f":"'2 REPAIR ESTIMATOR'!AM271","v":{"v":0,"d":"$0.00"}},{"v":0,"d":"$0.00"},{"$f":"'2 REPAIR ESTIMATOR'!AG271","v":{"v":0,"d":"$0.00"}},{"$f":"'2 REPAIR ESTIMATOR'!AJ271","v":{"v":0,"d":"$0.00"}}]
[null,null,{"$f":"T('2 REPAIR ESTIMATOR'!D272:O272)","v":"Natural stone"},{"$nulls":5},{"$f":"'2 REPAIR ESTIMATOR'!P272","v":0},{"$f":"'2 REPAIR ESTIMATOR'!S272","v":"sf"},{"v":0,"d":"$0"},{"v":0,"d":"$0"},{"v":0,"d":"$0"},{"v":0,"d":"$0"},null,0,null,null,{"$f":"'2 REPAIR ESTIMATOR'!AD272","v":{"v":0,"d":"$0.00"}},{"$f":"'2 REPAIR ESTIMATOR'!AM272","v":{"v":0,"d":"$0.00"}},{"v":0,"d":"$0.00"},{"$f":"'2 REPAIR ESTIMATOR'!AG272","v":{"v":0,"d":"$0.00"}},{"$f":"'2 REPAIR ESTIMATOR'!AJ272","v":{"v":0,"d":"$0.00"}}]
[null,null,{"$f":"T('2 REPAIR ESTIMATOR'!D273:O273)","v":"Masonry waterproofing"},{"$nulls":5},{"$f":"'2 REPAIR ESTIMATOR'!P273","v":0},{"$f":"'2 REPAIR ESTIMATOR'!S273","v":"sf"},{"v":0,"d":"$0"},{"v":0,"d":"$0"},{"v":0,"d":"$0"},{"v":0,"d":"$0"},null,0,null,null,{"$f":"'2 REPAIR ESTIMATOR'!AD273","v":{"v":0,"d":"$0.00"}},{"$f":"'2 REPAIR ESTIMATOR'!AM273","v":{"v":0,"d":"$0.00"}},{"v":0,"d":"$0.00"},{"$f":"'2 REPAIR ESTIMATOR'!AG273","v":{"v":0,"d":"$0.00"}},{"$f":"'2 REPAIR ESTIMATOR'!AJ273","v":{"v":0,"d":"$0.00"}}]
[null,null,{"$f":"T('2 REPAIR ESTIMATOR'!D274:O274)","v":"Tuck-point masonry"},{"$nulls":5},{"$f":"'2 REPAIR ESTIMATOR'!P274","v":0},{"$f":"'2 REPAIR ESTIMATOR'!S274","v":"sf"},{"v":0,"d":"$0"},{"v":0,"d":"$0"},{"v":0,"d":"$0"},{"v":0,"d":"$0"},null,0,null,null,{"$f":"'2 REPAIR ESTIMATOR'!AD274","v":{"v":0,"d":"$0.00"}},{"$f":"'2 REPAIR ESTIMATOR'!AM274","v":{"v":0,"d":"$0.00"}},{"v":0,"d":"$0.00"},{"$f":"'2 REPAIR ESTIMATOR'!AG274","v":{"v":0,"d":"$0.00"}},{"$f":"'2 REPAIR ESTIMATOR'!AJ274","v":{"v":0,"d":"$0.00"}}]
[null,null,{"$f":"T('2 REPAIR ESTIMATOR'!D275:O275)","v":"Power wash masonry"},{"$nulls":5},{"$f":"'2 REPAIR ESTIMATOR'!P275","v":0},{"$f":"'2 REPAIR ESTIMATOR'!S275","v":"sf"},{"v":0,"d":"$0"},{"v":0,"d":"$0"},{"v":0,"d":"$0"},{"v":0,"d":"$0"},null,0,null,null,{"$f":"'2 REPAIR ESTIMATOR'!AD275","v":{"v":0,"d":"$0.00"}},{"$f":"'2 REPAIR ESTIMATOR'!AM275","v":{"v":0,"d":"$0.00"}},{"v":0,"d":"$0.00"},{"$f":"'2 REPAIR ESTIMATOR'!AG275","v":{"v":0,"d":"$0.00"}},{"$f":"'2 REPAIR ESTIMATOR'!AJ275","v":{"v":0,"d":"$0.00"}}]
[null,null,{"$f":"T('2 REPAIR ESTIMATOR'!D276:O276)","v":"Chimney, brick "},{"$nulls":5},{"$f":"'2 REPAIR ESTIMATOR'!P276","v":0},{"$f":"'2 REPAIR ESTIMATOR'!S276","v":"vlf"},{"v":0,"d":"$0"},{"v":0,"d":"$0"},{"v":0,"d":"$0"},{"v":0,"d":"$0"},null,0,null,null,{"$f":"'2 REPAIR ESTIMATOR'!AD276","v":{"v":0,"d":"$0.00"}},{"$f":"'2 REPAIR ESTIMATOR'!AM276","v":{"v":0,"d":"$0.00"}},{"v":0,"d":"$0.00"},{"$f":"'2 REPAIR ESTIMATOR'!AG276","v":{"v":0,"d":"$0.00"}},{"$f":"'2 REPAIR ESTIMATOR'!AJ276","v":{"v":0,"d":"$0.00"}}]
[null,null,{"$f":"T('2 REPAIR ESTIMATOR'!D277:O277)","v":"Chimney, stone"},{"$nulls":5},{"$f":"'2 REPAIR ESTIMATOR'!P277","v":0},{"$f":"'2 REPAIR ESTIMATOR'!S277","v":"vlf"},{"v":0,"d":"$0"},{"v":0,"d":"$0"},{"v":0,"d":"$0"},{"v":0,"d":"$0"},null,0,null,null,{"$f":"'2 REPAIR ESTIMATOR'!AD277","v":{"v":0,"d":"$0.00"}},{"$f":"'2 REPAIR ESTIMATOR'!AM277","v":{"v":0,"d":"$0.00"}},{"v":0,"d":"$0.00"},{"$f":"'2 REPAIR ESTIMATOR'!AG277","v":{"v":0,"d":"$0.00"}},{"$f":"'2 REPAIR ESTIMATOR'!AJ277","v":{"v":0,"d":"$0.00"}}]
[null,null,{"$f":"T('2 REPAIR ESTIMATOR'!D278:O278)","v":"Add to above for chimney cap"},{"$nulls":5},{"$f":"'2 REPAIR ESTIMATOR'!P278","v":0},{"$f":"'2 REPAIR ESTIMATOR'!S278","v":"ea"},{"v":0,"d":"$0"},{"v":0,"d":"$0"},{"v":0,"d":"$0"},{"v":0,"d":"$0"},null,0,null,null,{"$f":"'2 REPAIR ESTIMATOR'!AD278","v":{"v":0,"d":"$0.00"}},{"$f":"'2 REPAIR ESTIMATOR'!AM278","v":{"v":0,"d":"$0.00"}},{"v":0,"d":"$0.00"},{"$f":"'2 REPAIR ESTIMATOR'!AG278","v":{"v":0,"d":"$0.00"}},{"$f":"'2 REPAIR ESTIMATOR'!AJ278","v":{"v":0,"d":"$0.00"}}]
[null,null,{"$f":"T('2 REPAIR ESTIMATOR'!D279:O279)","v":"Fireplace complete, brick, 3ft-4ft wide w/ chimney"},{"$nulls":5},{"$f":"'2 REPAIR ESTIMATOR'!P279","v":0},{"$f":"'2 REPAIR ESTIMATOR'!S279","v":"ea"},{"v":0,"d":"$0"},{"v":0,"d":"$0"},{"v":0,"d":"$0"},{"v":0,"d":"$0"},null,0,null,null,{"$f":"'2 REPAIR ESTIMATOR'!AD279","v":{"v":0,"d":"$0.00"}},{"$f":"'2 REPAIR ESTIMATOR'!AM279","v":{"v":0,"d":"$0.00"}},{"v":0,"d":"$0.00"},{"$f":"'2 REPAIR ESTIMATOR'!AG279","v":{"v":0,"d":"$0.00"}},{"$f":"'2 REPAIR ESTIMATOR'!AJ279","v":{"v":0,"d":"$0.00"}}]
[null,null,{"$f":"T('2 REPAIR ESTIMATOR'!D280:O280)","v":""},{"$nulls":5},{"$f":"'2 REPAIR ESTIMATOR'!P280","v":0},{"$f":"'2 REPAIR ESTIMATOR'!S280","v":0},{"v":0,"d":"$0"},{"v":0,"d":"$0"},{"v":0,"d":"$0"},{"v":0,"d":"$0"},null,0,null,null,{"$f":"'2 REPAIR ESTIMATOR'!AD280","v":{"v":0,"d":"$0.00"}},{"$f":"'2 REPAIR ESTIMATOR'!AM280","v":{"v":0,"d":"$0.00"}},{"v":0,"d":"$0.00"},{"$f":"'2 REPAIR ESTIMATOR'!AG280","v":{"v":0,"d":"$0.00"}},{"$f":"'2 REPAIR ESTIMATOR'!AJ280","v":{"v":0,"d":"$0.00"}}]
[null,null,{"$f":"T('2 REPAIR ESTIMATOR'!D281:O281)","v":""},{"$nulls":5},{"$f":"'2 REPAIR ESTIMATOR'!P281","v":0},{"$f":"'2 REPAIR ESTIMATOR'!S281","v":0},{"v":0,"d":"$0"},{"v":0,"d":"$0"},{"v":0,"d":"$0"},{"v":0,"d":"$0"},null,0,null,null,{"$f":"'2 REPAIR ESTIMATOR'!AD281","v":{"v":0,"d":"$0.00"}},{"$f":"'2 REPAIR ESTIMATOR'!AM281","v":{"v":0,"d":"$0.00"}},{"v":0,"d":"$0.00"},{"$f":"'2 REPAIR ESTIMATOR'!AG281","v":{"v":0,"d":"$0.00"}},{"$f":"'2 REPAIR ESTIMATOR'!AJ281","v":{"v":0,"d":"$0.00"}}]
[null,null,{"$f":"T('2 REPAIR ESTIMATOR'!D282:O282)","v":""},{"$nulls":5},{"$f":"'2 REPAIR ESTIMATOR'!P282","v":0},{"$f":"'2 REPAIR ESTIMATOR'!S282","v":0},{"v":0,"d":"$0"},{"v":0,"d":"$0"},{"v":0,"d":"$0"},{"v":0,"d":"$0"},null,0,null,null,{"$f":"'2 REPAIR ESTIMATOR'!AD282","v":{"v":0,"d":"$0.00"}},{"$f":"'2 REPAIR ESTIMATOR'!AM282","v":{"v":0,"d":"$0.00"}},{"v":0,"d":"$0.00"},{"$f":"'2 REPAIR ESTIMATOR'!AG282","v":{"v":0,"d":"$0.00"}},{"$f":"'2 REPAIR ESTIMATOR'!AJ282","v":{"v":0,"d":"$0.00"}}]
[null,null,{"$f":"T('2 REPAIR ESTIMATOR'!D283:O283)","v":""},{"$nulls":5},{"$f":"'2 REPAIR ESTIMATOR'!P283","v":0},{"$f":"'2 REPAIR ESTIMATOR'!S283","v":0},{"v":0,"d":"$0"},{"v":0,"d":"$0"},{"v":0,"d":"$0"},{"v":0,"d":"$0"},null,0,null,null,{"$f":"'2 REPAIR ESTIMATOR'!AD283","v":{"v":0,"d":"$0.00"}},{"$f":"'2 REPAIR ESTIMATOR'!AM283","v":{"v":0,"d":"$0.00"}},{"v":0,"d":"$0.00"},{"$f":"'2 REPAIR ESTIMATOR'!AG283","v":{"v":0,"d":"$0.00"}},{"$f":"'2 REPAIR ESTIMATOR'!AJ283","v":{"v":0,"d":"$0.00"}}]
[null,null,{"$f":"T('2 REPAIR ESTIMATOR'!D284:O284)","v":""},{"$nulls":5},{"$f":"'2 REPAIR ESTIMATOR'!P284","v":0},{"$f":"'2 REPAIR ESTIMATOR'!S284","v":0},{"v":0,"d":"$0"},{"v":0,"d":"$0"},{"v":0,"d":"$0"},{"v":0,"d":"$0"},null,0,null,null,{"$f":"'2 REPAIR ESTIMATOR'!AD284","v":{"v":0,"d":"$0.00"}},{"$f":"'2 REPAIR ESTIMATOR'!AM284","v":{"v":0,"d":"$0.00"}},{"v":0,"d":"$0.00"},{"$f":"'2 REPAIR ESTIMATOR'!AG284","v":{"v":0,"d":"$0.00"}},{"$f":"'2 REPAIR ESTIMATOR'!AJ284","v":{"v":0,"d":"$0.00"}}]
[null,null,{"$f":"T('2 REPAIR ESTIMATOR'!D285:O285)","v":""},{"$nulls":5},{"$f":"'2 REPAIR ESTIMATOR'!P285","v":0},{"$f":"'2 REPAIR ESTIMATOR'!S285","v":0},{"v":0,"d":"$0"},{"v":0,"d":"$0"},{"v":0,"d":"$0"},{"v":0,"d":"$0"},null,0,null,null,{"$f":"'2 REPAIR ESTIMATOR'!AD285","v":{"v":0,"d":"$0.00"}},{"$f":"'2 REPAIR ESTIMATOR'!AM285","v":{"v":0,"d":"$0.00"}},{"v":0,"d":"$0.00"},{"$f":"'2 REPAIR ESTIMATOR'!AG285","v":{"v":0,"d":"$0.00"}},{"$f":"'2 REPAIR ESTIMATOR'!AJ285","v":{"v":0,"d":"$0.00"}}]
[null,null,{"$f":"T('2 REPAIR ESTIMATOR'!D286:O286)","v":""},{"$nulls":5},{"$f":"'2 REPAIR ESTIMATOR'!P286","v":0},{"$f":"'2 REPAIR ESTIMATOR'!S286","v":0},{"v":0,"d":"$0"},{"v":0,"d":"$0"},{"v":0,"d":"$0"},{"v":0,"d":"$0"},null,0,null,null,{"$f":"'2 REPAIR ESTIMATOR'!AD286","v":{"v":0,"d":"$0.00"}},{"$f":"'2 REPAIR ESTIMATOR'!AM286","v":{"v":0,"d":"$0.00"}},{"v":0,"d":"$0.00"},{"$f":"'2 REPAIR ESTIMATOR'!AG286","v":{"v":0,"d":"$0.00"}},{"$f":"'2 REPAIR ESTIMATOR'!AJ286","v":{"v":0,"d":"$0.00"}}]
[null,null,{"$f":"T('2 REPAIR ESTIMATOR'!D287:O287)","v":""},{"$nulls":5},{"$f":"'2 REPAIR ESTIMATOR'!P287","v":0},{"$f":"'2 REPAIR ESTIMATOR'!S287","v":0},{"v":0,"d":"$0"},{"v":0,"d":"$0"},{"v":0,"d":"$0"},{"v":0,"d":"$0"},null,0,null,null,{"$f":"'2 REPAIR ESTIMATOR'!AD287","v":{"v":0,"d":"$0.00"}},{"$f":"'2 REPAIR ESTIMATOR'!AM287","v":{"v":0,"d":"$0.00"}},{"v":0,"d":"$0.00"},{"$f":"'2 REPAIR ESTIMATOR'!AG287","v":{"v":0,"d":"$0.00"}},{"$f":"'2 REPAIR ESTIMATOR'!AJ287","v":{"v":0,"d":"$0.00"}}]
[null,null,{"$f":"T('2 REPAIR ESTIMATOR'!D288:O288)","v":""},{"$nulls":5},{"$f":"'2 REPAIR ESTIMATOR'!P288","v":0},{"$f":"'2 REPAIR ESTIMATOR'!S288","v":0},{"v":0,"d":"$0"},{"v":0,"d":"$0"},{"v":0,"d":"$0"},{"v":0,"d":"$0"},null,0,null,null,{"$f":"'2 REPAIR ESTIMATOR'!AD288","v":{"v":0,"d":"$0.00"}},{"$f":"'2 REPAIR ESTIMATOR'!AM288","v":{"v":0,"d":"$0.00"}},{"v":0,"d":"$0.00"},{"$f":"'2 REPAIR ESTIMATOR'!AG288","v":{"v":0,"d":"$0.00"}},{"$f":"'2 REPAIR ESTIMATOR'!AJ288","v":{"v":0,"d":"$0.00"}}]
[null,null,{"$f":"T('2 REPAIR ESTIMATOR'!D289:O289)","v":""},{"$nulls":5},{"$f":"'2 REPAIR ESTIMATOR'!P289","v":0},{"$f":"'2 REPAIR ESTIMATOR'!S289","v":0},{"v":0,"d":"$0"},{"v":0,"d":"$0"},{"v":0,"d":"$0"},{"v":0,"d":"$0"},null,0,null,null,{"$f":"'2 REPAIR ESTIMATOR'!AD289","v":{"v":0,"d":"$0.00"}},{"$f":"'2 REPAIR ESTIMATOR'!AM289","v":{"v":0,"d":"$0.00"}},{"v":0,"d":"$0.00"},{"$f":"'2 REPAIR ESTIMATOR'!AG289","v":{"v":0,"d":"$0.00"}},{"$f":"'2 REPAIR ESTIMATOR'!AJ289","v":{"v":0,"d":"$0.00"}}]
[null,null,{"$f":"T('2 REPAIR ESTIMATOR'!D290:O290)","v":""},{"$nulls":5},{"$f":"'2 REPAIR ESTIMATOR'!P290","v":0},{"$f":"'2 REPAIR ESTIMATOR'!S290","v":0},{"v":0,"d":"$0"},{"v":0,"d":"$0"},{"v":0,"d":"$0"},{"v":0,"d":"$0"},null,0,null,null,{"$f":"'2 REPAIR ESTIMATOR'!AD290","v":{"v":0,"d":"$0.00"}},{"$f":"'2 REPAIR ESTIMATOR'!AM290","v":{"v":0,"d":"$0.00"}},{"v":0,"d":"$0.00"},{"$f":"'2 REPAIR ESTIMATOR'!AG290","v":{"v":0,"d":"$0.00"}},{"$f":"'2 REPAIR ESTIMATOR'!AJ290","v":{"v":0,"d":"$0.00"}}]
[null,null,{"$f":"T('2 REPAIR ESTIMATOR'!D291:O291)","v":""},{"$nulls":5},{"$f":"'2 REPAIR ESTIMATOR'!P291","v":0},{"$f":"'2 REPAIR ESTIMATOR'!S291","v":0},{"v":0,"d":"$0"},{"v":0,"d":"$0"},{"v":0,"d":"$0"},{"v":0,"d":"$0"},null,0,null,null,{"$f":"'2 REPAIR ESTIMATOR'!AD291","v":{"v":0,"d":"$0.00"}},{"$f":"'2 REPAIR ESTIMATOR'!AM291","v":{"v":0,"d":"$0.00"}},{"v":0,"d":"$0.00"},{"$f":"'2 REPAIR ESTIMATOR'!AG291","v":{"v":0,"d":"$0.00"}},{"$f":"'2 REPAIR ESTIMATOR'!AJ291","v":{"v":0,"d":"$0.00"}}]
[null,null,{"$f":"T('2 REPAIR ESTIMATOR'!D292:O292)","v":""},{"$nulls":5},{"$f":"'2 REPAIR ESTIMATOR'!P292","v":0},{"$f":"'2 REPAIR ESTIMATOR'!S292","v":0},{"v":0,"d":"$0"},{"v":0,"d":"$0"},{"v":0,"d":"$0"},{"v":0,"d":"$0"},null,0,null,null,{"$f":"'2 REPAIR ESTIMATOR'!AD292","v":{"v":0,"d":"$0.00"}},{"$f":"'2 REPAIR ESTIMATOR'!AM292","v":{"v":0,"d":"$0.00"}},{"v":0,"d":"$0.00"},{"$f":"'2 REPAIR ESTIMATOR'!AG292","v":{"v":0,"d":"$0.00"}},{"$f":"'2 REPAIR ESTIMATOR'!AJ292","v":{"v":0,"d":"$0.00"}}]
[null,null,{"$f":"T('2 REPAIR ESTIMATOR'!D293:O293)","v":""},{"$nulls":5},{"$f":"'2 REPAIR ESTIMATOR'!P293","v":0},{"$f":"'2 REPAIR ESTIMATOR'!S293","v":0},{"v":0,"d":"$0"},{"v":0,"d":"$0"},{"v":0,"d":"$0"},{"v":0,"d":"$0"},null,0,null,null,{"$f":"'2 REPAIR ESTIMATOR'!AD293","v":{"v":0,"d":"$0.00"}},{"$f":"'2 REPAIR ESTIMATOR'!AM293","v":{"v":0,"d":"$0.00"}},{"v":0,"d":"$0.00"},{"$f":"'2 REPAIR ESTIMATOR'!AG293","v":{"v":0,"d":"$0.00"}},{"$f":"'2 REPAIR ESTIMATOR'!AJ293","v":{"v":0,"d":"$0.00"}}]
[null,null,{"$f":"T('2 REPAIR ESTIMATOR'!D294:O294)","v":""},{"$nulls":5},{"$f":"'2 REPAIR ESTIMATOR'!P294","v":0},{"$f":"'2 REPAIR ESTIMATOR'!S294","v":0},{"v":0,"d":"$0"},{"v":0,"d":"$0"},{"v":0,"d":"$0"},{"v":0,"d":"$0"},null,0,null,null,{"$f":"'2 REPAIR ESTIMATOR'!AD294","v":{"v":0,"d":"$0.00"}},{"$f":"'2 REPAIR ESTIMATOR'!AM294","v":{"v":0,"d":"$0.00"}},{"v":0,"d":"$0.00"},{"$f":"'2 REPAIR ESTIMATOR'!AG294","v":{"v":0,"d":"$0.00"}},{"$f":"'2 REPAIR ESTIMATOR'!AJ294","v":{"v":0,"d":"$0.00"}}]
[null,null,{"$f":"T('2 REPAIR ESTIMATOR'!D295:O295)","v":""},{"$nulls":5},{"$f":"'2 REPAIR ESTIMATOR'!P295","v":0},{"$f":"'2 REPAIR ESTIMATOR'!S295","v":0},{"v":0,"d":"$0"},{"v":0,"d":"$0"},{"v":0,"d":"$0"},{"v":0,"d":"$0"},null,0,null,null,{"$f":"'2 REPAIR ESTIMATOR'!AD295","v":{"v":0,"d":"$0.00"}},{"$f":"'2 REPAIR ESTIMATOR'!AM295","v":{"v":0,"d":"$0.00"}},{"v":0,"d":"$0.00"},{"$f":"'2 REPAIR ESTIMATOR'!AG295","v":{"v":0,"d":"$0.00"}},{"$f":"'2 REPAIR ESTIMATOR'!AJ295","v":{"v":0,"d":"$0.00"}}]
[null,null,{"$f":"T('2 REPAIR ESTIMATOR'!D296:O296)","v":""},{"$nulls":5},{"$f":"'2 REPAIR ESTIMATOR'!P296","v":0},{"$f":"'2 REPAIR ESTIMATOR'!S296","v":0},{"v":0,"d":"$0"},{"v":0,"d":"$0"},{"v":0,"d":"$0"},{"v":0,"d":"$0"},null,0,null,null,{"$f":"'2 REPAIR ESTIMATOR'!AD296","v":{"v":0,"d":"$0.00"}},{"$f":"'2 REPAIR ESTIMATOR'!AM296","v":{"v":0,"d":"$0.00"}},{"v":0,"d":"$0.00"},{"$f":"'2 REPAIR ESTIMATOR'!AG296","v":{"v":0,"d":"$0.00"}},{"$f":"'2 REPAIR ESTIMATOR'!AJ296","v":{"v":0,"d":"$0.00"}}]
[null,null,{"$f":"T('2 REPAIR ESTIMATOR'!D297:O297)","v":""},{"$nulls":5},{"$f":"'2 REPAIR ESTIMATOR'!P297","v":0},{"$f":"'2 REPAIR ESTIMATOR'!S297","v":0},{"v":0,"d":"$0"},{"v":0,"d":"$0"},{"v":0,"d":"$0"},{"v":0,"d":"$0"},null,0,null,null,{"$f":"'2 REPAIR ESTIMATOR'!AD297","v":{"v":0,"d":"$0.00"}},{"$f":"'2 REPAIR ESTIMATOR'!AM297","v":{"v":0,"d":"$0.00"}},{"v":0,"d":"$0.00"},{"$f":"'2 REPAIR ESTIMATOR'!AG297","v":{"v":0,"d":"$0.00"}},{"$f":"'2 REPAIR ESTIMATOR'!AJ297","v":{"v":0,"d":"$0.00"}}]
[null,null,{"$f":"T('2 REPAIR ESTIMATOR'!D298:O298)","v":""},{"$nulls":5},{"$f":"'2 REPAIR ESTIMATOR'!P298","v":0},{"$f":"'2 REPAIR ESTIMATOR'!S298","v":0},{"v":0,"d":"$0"},{"v":0,"d":"$0"},{"v":0,"d":"$0"},{"v":0,"d":"$0"},null,0,null,null,{"$f":"'2 REPAIR ESTIMATOR'!AD298","v":{"v":0,"d":"$0.00"}},{"$f":"'2 REPAIR ESTIMATOR'!AM298","v":{"v":0,"d":"$0.00"}},{"v":0,"d":"$0.00"},{"$f":"'2 REPAIR ESTIMATOR'!AG298","v":{"v":0,"d":"$0.00"}},{"$f":"'2 REPAIR ESTIMATOR'!AJ298","v":{"v":0,"d":"$0.00"}}]
[null,null,{"$f":"T('2 REPAIR ESTIMATOR'!D299:O299)","v":""},{"$nulls":5},{"$f":"'2 REPAIR ESTIMATOR'!P299","v":0},{"$f":"'2 REPAIR ESTIMATOR'!S299","v":0},{"v":0,"d":"$0"},{"v":0,"d":"$0"},{"v":0,"d":"$0"},{"v":0,"d":"$0"},null,0,null,null,{"$f":"'2 REPAIR ESTIMATOR'!AD299","v":{"v":0,"d":"$0.00"}},{"$f":"'2 REPAIR ESTIMATOR'!AM299","v":{"v":0,"d":"$0.00"}},{"v":0,"d":"$0.00"},{"$f":"'2 REPAIR ESTIMATOR'!AG299","v":{"v":0,"d":"$0.00"}},{"$f":"'2 REPAIR ESTIMATOR'!AJ299","v":{"v":0,"d":"$0.00"}}]
[null,null,{"$f":"T('2 REPAIR ESTIMATOR'!D300:O300)","v":""},{"$nulls":5},{"$f":"'2 REPAIR ESTIMATOR'!P300","v":0},{"$f":"'2 REPAIR ESTIMATOR'!S300","v":0},{"v":0,"d":"$0"},{"v":0,"d":"$0"},{"v":0,"d":"$0"},{"v":0,"d":"$0"},null,{"$f":"I277","v":0},null,null,{"$f":"'2 REPAIR ESTIMATOR'!AD300","v":{"v":0,"d":"$0.00"}},{"$f":"'2 REPAIR ESTIMATOR'!AM300","v":{"v":0,"d":"$0.00"}},{"v":0,"d":"$0.00"},{"$f":"'2 REPAIR ESTIMATOR'!AG300","v":{"v":0,"d":"$0.00"}},{"$f":"'2 REPAIR ESTIMATOR'!AJ300","v":{"v":0,"d":"$0.00"}}]
[null,null,{"$f":"T('2 REPAIR ESTIMATOR'!D301:O301)","v":""},{"$nulls":5},{"$f":"'2 REPAIR ESTIMATOR'!P301","v":0},{"$f":"'2 REPAIR ESTIMATOR'!S301","v":0},{"v":0,"d":"$0"},{"v":0,"d":"$0"},{"v":0,"d":"$0"},{"v":0,"d":"$0"},null,0,null,null,{"$f":"'2 REPAIR ESTIMATOR'!AD301","v":{"v":0,"d":"$0.00"}},{"$f":"'2 REPAIR ESTIMATOR'!AM301","v":{"v":0,"d":"$0.00"}},{"v":0,"d":"$0.00"},{"$f":"'2 REPAIR ESTIMATOR'!AG301","v":{"v":0,"d":"$0.00"}},{"$f":"'2 REPAIR ESTIMATOR'!AJ301","v":{"v":0,"d":"$0.00"}}]
[null,null,{"$f":"T('2 REPAIR ESTIMATOR'!D302:O302)","v":""},{"$nulls":5},{"$f":"'2 REPAIR ESTIMATOR'!P302","v":0},{"$f":"'2 REPAIR ESTIMATOR'!S302","v":0},{"v":0,"d":"$0"},{"v":0,"d":"$0"},{"v":0,"d":"$0"},{"v":0,"d":"$0"},null,0,null,null,{"$f":"'2 REPAIR ESTIMATOR'!AD302","v":{"v":0,"d":"$0.00"}},{"$f":"'2 REPAIR ESTIMATOR'!AM302","v":{"v":0,"d":"$0.00"}},{"v":0,"d":"$0.00"},{"$f":"'2 REPAIR ESTIMATOR'!AG302","v":{"v":0,"d":"$0.00"}},{"$f":"'2 REPAIR ESTIMATOR'!AJ302","v":{"v":0,"d":"$0.00"}}]
[null,null,{"$f":"T('2 REPAIR ESTIMATOR'!D303:O303)","v":""},{"$nulls":5},{"$f":"'2 REPAIR ESTIMATOR'!P303","v":0},{"$f":"'2 REPAIR ESTIMATOR'!S303","v":0},{"v":0,"d":"$0"},{"v":0,"d":"$0"},{"v":0,"d":"$0"},{"v":0,"d":"$0"},null,0,null,null,{"$f":"'2 REPAIR ESTIMATOR'!AD303","v":{"v":0,"d":"$0.00"}},{"$f":"'2 REPAIR ESTIMATOR'!AM303","v":{"v":0,"d":"$0.00"}},{"v":0,"d":"$0.00"},{"$f":"'2 REPAIR ESTIMATOR'!AG303","v":{"v":0,"d":"$0.00"}},{"$f":"'2 REPAIR ESTIMATOR'!AJ303","v":{"v":0,"d":"$0.00"}}]
[null,null,{"$f":"T('2 REPAIR ESTIMATOR'!D304:O304)","v":""},{"$nulls":5},{"$f":"'2 REPAIR ESTIMATOR'!P304","v":0},{"$f":"'2 REPAIR ESTIMATOR'!S304","v":0},{"v":0,"d":"$0"},{"v":0,"d":"$0"},{"v":0,"d":"$0"},{"v":0,"d":"$0"},null,0,null,null,{"$f":"'2 REPAIR ESTIMATOR'!AD304","v":{"v":0,"d":"$0.00"}},{"$f":"'2 REPAIR ESTIMATOR'!AM304","v":{"v":0,"d":"$0.00"}},{"v":0,"d":"$0.00"},{"$f":"'2 REPAIR ESTIMATOR'!AG304","v":{"v":0,"d":"$0.00"}},{"$f":"'2 REPAIR ESTIMATOR'!AJ304","v":{"v":0,"d":"$0.00"}}]
[null,null,{"$f":"T('2 REPAIR ESTIMATOR'!D305:O305)","v":""},{"$nulls":5},{"$f":"'2 REPAIR ESTIMATOR'!P305","v":0},{"$f":"'2 REPAIR ESTIMATOR'!S305","v":0},{"v":0,"d":"$0"},{"v":0,"d":"$0"},{"v":0,"d":"$0"},{"v":0,"d":"$0"},null,0,null,null,{"$f":"'2 REPAIR ESTIMATOR'!AD305","v":{"v":0,"d":"$0.00"}},{"$f":"'2 REPAIR ESTIMATOR'!AM305","v":{"v":0,"d":"$0.00"}},{"v":0,"d":"$0.00"},{"$f":"'2 REPAIR ESTIMATOR'!AG305","v":{"v":0,"d":"$0.00"}},{"$f":"'2 REPAIR ESTIMATOR'!AJ305","v":{"v":0,"d":"$0.00"}}]
[null,null,{"$f":"T('2 REPAIR ESTIMATOR'!D306:O306)","v":""},{"$nulls":5},{"$f":"'2 REPAIR ESTIMATOR'!P306","v":0},{"$f":"'2 REPAIR ESTIMATOR'!S306","v":0},{"v":0,"d":"$0"},{"v":0,"d":"$0"},{"v":0,"d":"$0"},{"v":0,"d":"$0"},null,0,null,null,{"$f":"'2 REPAIR ESTIMATOR'!AD306","v":{"v":0,"d":"$0.00"}},{"$f":"'2 REPAIR ESTIMATOR'!AM306","v":{"v":0,"d":"$0.00"}},{"v":0,"d":"$0.00"},{"$f":"'2 REPAIR ESTIMATOR'!AG306","v":{"v":0,"d":"$0.00"}},{"$f":"'2 REPAIR ESTIMATOR'!AJ306","v":{"v":0,"d":"$0.00"}}]
[null,null,{"$f":"T('2 REPAIR ESTIMATOR'!D307:O307)","v":""},{"$nulls":5},{"$f":"'2 REPAIR ESTIMATOR'!P307","v":0},{"$f":"'2 REPAIR ESTIMATOR'!S307","v":0},{"v":0,"d":"$0"},{"v":0,"d":"$0"},{"v":0,"d":"$0"},{"v":0,"d":"$0"},null,0,null,null,{"$f":"'2 REPAIR ESTIMATOR'!AD307","v":{"v":0,"d":"$0.00"}},{"$f":"'2 REPAIR ESTIMATOR'!AM307","v":{"v":0,"d":"$0.00"}},{"v":0,"d":"$0.00"},{"$f":"'2 REPAIR ESTIMATOR'!AG307","v":{"v":0,"d":"$0.00"}},{"$f":"'2 REPAIR ESTIMATOR'!AJ307","v":{"v":0,"d":"$0.00"}}]
[null,null,{"$f":"T('2 REPAIR ESTIMATOR'!AC309)","v":"MASONRY TOTAL"},{"$nulls":7},{"$f":"SUM(K245:K284)","v":{"v":0,"d":"$0"}},{"$f":"SUM(L245:L284)","v":{"v":0,"d":"$0"}},{"$f":"SUM(M245:M284)","v":{"v":0,"d":"$0"}},{"$f":"SUM(N245:O284)","v":{"v":0,"d":"$0"}},null,{"$f":"SUM(P244:P259)","v":0},null,null,{"$f":"SUM(S245:S284)","v":{"v":0,"d":"$0.00"}},{"$f":"SUM(T245:T284)","v":{"v":0,"d":"$0.00"}},{"$f":"SUM(U245:U284)","v":{"v":0,"d":"$0.00"}},{"$f":"SUM(V245:V284)","v":{"v":0,"d":"$0.00"}},{"$f":"SUM(W245:W284)","v":{"v":0,"d":"$0.00"}}]
[{"$nulls":15},{"$f":"P285","v":0}]
[null,null,{"$f":"T('2 REPAIR ESTIMATOR'!D312:O312)","v":"SIDING"},{"$nulls":5},{"$f":"SUM(I288:I327)","v":1},{"$nulls":6},{"$f":"I287","v":1}]
[null,null,{"$f":"T('2 REPAIR ESTIMATOR'!D313:O313)","v":"Siding bid/allowance"},{"$nulls":5},{"$f":"'2 REPAIR ESTIMATOR'!P313","v":1},{"$f":"'2 REPAIR ESTIMATOR'!S313","v":"ls"},{"$f":"IF($N$3=\"subbed\",U288,S288)*$S$70","v":{"v":0,"d":"$0"}},{"$f":"V288*$S$70","v":{"v":0,"d":"$0"}},{"$f":"W288*$S$70","v":{"v":0,"d":"$0"}},{"$f":"SUM(K288:M288)","v":{"v":0,"d":"$0"}},null,1,null,null,{"$f":"'2 REPAIR ESTIMATOR'!AD313","v":{"v":0,"d":"$0.00"}},{"$f":"'2 REPAIR ESTIMATOR'!AM313","v":{"v":0,"d":"$0.00"}},{"$f":"T288+S288","v":{"v":0,"d":"$0.00"}},{"$f":"'2 REPAIR ESTIMATOR'!AG313","v":{"v":0,"d":"$0.00"}},{"$f":"'2 REPAIR ESTIMATOR'!AJ313","v":{"v":0,"d":"$0.00"}}]
[null,null,{"$f":"T('2 REPAIR ESTIMATOR'!D314:O314)","v":"Demo existing siding"},{"$nulls":5},{"$f":"'2 REPAIR ESTIMATOR'!P314","v":0},{"$f":"'2 REPAIR ESTIMATOR'!S314","v":"sf"},{"v":0,"d":"$0"},{"$f":"V289*$S$70","v":{"v":0,"d":"$0"}},{"$f":"W289*$S$70","v":{"v":0,"d":"$0"}},{"$f":"SUM(K289:M289)","v":{"v":0,"d":"$0"}},null,0,null,null,{"$f":"'2 REPAIR ESTIMATOR'!AD314","v":{"v":0,"d":"$0.00"}},{"$f":"'2 REPAIR ESTIMATOR'!AM314","v":{"v":0,"d":"$0.00"}},{"$f":"T289+S289","v":{"v":0,"d":"$0.00"}},{"$f":"'2 REPAIR ESTIMATOR'!AG314","v":{"v":0,"d":"$0.00"}},{"$f":"'2 REPAIR ESTIMATOR'!AJ314","v":{"v":0,"d":"$0.00"}}]
[null,null,{"$f":"T('2 REPAIR ESTIMATOR'!D315:O315)","v":"Plywood panel, douglas fir"},{"$nulls":5},{"$f":"'2 REPAIR ESTIMATOR'!P315","v":0},{"$f":"'2 REPAIR ESTIMATOR'!S315","v":"sf"},{"v":0,"d":"$0"},{"v":0,"d":"$0"},{"v":0,"d":"$0"},{"v":0,"d":"$0"},null,0,null,null,{"$f":"'2 REPAIR ESTIMATOR'!AD315","v":{"v":0,"d":"$0.00"}},{"$f":"'2 REPAIR ESTIMATOR'!AM315","v":{"v":0,"d":"$0.00"}},{"v":0,"d":"$0.00"},{"$f":"'2 REPAIR ESTIMATOR'!AG315","v":{"v":0,"d":"$0.00"}},{"$f":"'2 REPAIR ESTIMATOR'!AJ315","v":{"v":0,"d":"$0.00"}}]
[null,null,{"$f":"T('2 REPAIR ESTIMATOR'!D316:O316)","v":"Plywood panel, cedar"},{"$nulls":5},{"$f":"'2 REPAIR ESTIMATOR'!P316","v":0},{"$f":"'2 REPAIR ESTIMATOR'!S316","v":"sf"},{"v":0,"d":"$0"},{"v":0,"d":"$0"},{"v":0,"d":"$0"},{"v":0,"d":"$0"},null,0,null,null,{"$f":"'2 REPAIR ESTIMATOR'!AD316","v":{"v":0,"d":"$0.00"}},{"$f":"'2 REPAIR ESTIMATOR'!AM316","v":{"v":0,"d":"$0.00"}},{"v":0,"d":"$0.00"},{"$f":"'2 REPAIR ESTIMATOR'!AG316","v":{"v":0,"d":"$0.00"}},{"$f":"'2 REPAIR ESTIMATOR'!AJ316","v":{"v":0,"d":"$0.00"}}]
[null,null,{"$f":"T('2 REPAIR ESTIMATOR'!D317:O317)","v":"Tongue and groove, douglas fir"},{"$nulls":5},{"$f":"'2 REPAIR ESTIMATOR'!P317","v":0},{"$f":"'2 REPAIR ESTIMATOR'!S317","v":"sf"},{"v":0,"d":"$0"},{"v":0,"d":"$0"},{"v":0,"d":"$0"},{"v":0,"d":"$0"},null,0,null,null,{"$f":"'2 REPAIR ESTIMATOR'!AD317","v":{"v":0,"d":"$0.00"}},{"$f":"'2 REPAIR ESTIMATOR'!AM317","v":{"v":0,"d":"$0.00"}},{"v":0,"d":"$0.00"},{"$f":"'2 REPAIR ESTIMATOR'!AG317","v":{"v":0,"d":"$0.00"}},{"$f":"'2 REPAIR ESTIMATOR'!AJ317","v":{"v":0,"d":"$0.00"}}]
[null,null,{"$f":"T('2 REPAIR ESTIMATOR'!D318:O318)","v":"Tongue and groove, cedar"},{"$nulls":5},{"$f":"'2 REPAIR ESTIMATOR'!P318","v":0},{"$f":"'2 REPAIR ESTIMATOR'!S318","v":"sf"},{"v":0,"d":"$0"},{"v":0,"d":"$0"},{"v":0,"d":"$0"},{"v":0,"d":"$0"},null,0,null,null,{"$f":"'2 REPAIR ESTIMATOR'!AD318","v":{"v":0,"d":"$0.00"}},{"$f":"'2 REPAIR ESTIMATOR'!AM318","v":{"v":0,"d":"$0.00"}},{"v":0,"d":"$0.00"},{"$f":"'2 REPAIR ESTIMATOR'!AG318","v":{"v":0,"d":"$0.00"}},{"$f":"'2 REPAIR ESTIMATOR'!AJ318","v":{"v":0,"d":"$0.00"}}]
[null,null,{"$f":"T('2 REPAIR ESTIMATOR'!D319:O319)","v":"Board and batten, douglas fir"},{"$nulls":5},{"$f":"'2 REPAIR ESTIMATOR'!P319","v":0},{"$f":"'2 REPAIR ESTIMATOR'!S319","v":"sf"},{"v":0,"d":"$0"},{"v":0,"d":"$0"},{"v":0,"d":"$0"},{"v":0,"d":"$0"},null,0,null,null,{"$f":"'2 REPAIR ESTIMATOR'!AD319","v":{"v":0,"d":"$0.00"}},{"$f":"'2 REPAIR ESTIMATOR'!AM319","v":{"v":0,"d":"$0.00"}},{"v":0,"d":"$0.00"},{"$f":"'2 REPAIR ESTIMATOR'!AG319","v":{"v":0,"d":"$0.00"}},{"$f":"'2 REPAIR ESTIMATOR'!AJ319","v":{"v":0,"d":"$0.00"}}]
[null,null,{"$f":"T('2 REPAIR ESTIMATOR'!D320:O320)","v":"Board and batten, cedar"},{"$nulls":5},{"$f":"'2 REPAIR ESTIMATOR'!P320","v":0},{"$f":"'2 REPAIR ESTIMATOR'!S320","v":"sf"},{"v":0,"d":"$0"},{"v":0,"d":"$0"},{"v":0,"d":"$0"},{"v":0,"d":"$0"},null,0,null,null,{"$f":"'2 REPAIR ESTIMATOR'!AD320","v":{"v":0,"d":"$0.00"}},{"$f":"'2 REPAIR ESTIMATOR'!AM320","v":{"v":0,"d":"$0.00"}},{"v":0,"d":"$0.00"},{"$f":"'2 REPAIR ESTIMATOR'!AG320","v":{"v":0,"d":"$0.00"}},{"$f":"'2 REPAIR ESTIMATOR'!AJ320","v":{"v":0,"d":"$0.00"}}]
[null,null,{"$f":"T('2 REPAIR ESTIMATOR'!D321:O321)","v":"Wood shingle/shake"},{"$nulls":5},{"$f":"'2 REPAIR ESTIMATOR'!P321","v":0},{"$f":"'2 REPAIR ESTIMATOR'!S321","v":"sf"},{"v":0,"d":"$0"},{"v":0,"d":"$0"},{"v":0,"d":"$0"},{"v":0,"d":"$0"},null,0,null,null,{"$f":"'2 REPAIR ESTIMATOR'!AD321","v":{"v":0,"d":"$0.00"}},{"$f":"'2 REPAIR ESTIMATOR'!AM321","v":{"v":0,"d":"$0.00"}},{"v":0,"d":"$0.00"},{"$f":"'2 REPAIR ESTIMATOR'!AG321","v":{"v":0,"d":"$0.00"}},{"$f":"'2 REPAIR ESTIMATOR'!AJ321","v":{"v":0,"d":"$0.00"}}]
[null,null,{"$f":"T('2 REPAIR ESTIMATOR'!D322:O322)","v":"Fiber cement siding, 4x8 panels"},{"$nulls":5},{"$f":"'2 REPAIR ESTIMATOR'!P322","v":0},{"$f":"'2 REPAIR ESTIMATOR'!S322","v":"sf"},{"v":0,"d":"$0"},{"v":0,"d":"$0"},{"v":0,"d":"$0"},{"v":0,"d":"$0"},null,0,null,null,{"$f":"'2 REPAIR ESTIMATOR'!AD322","v":{"v":0,"d":"$0.00"}},{"$f":"'2 REPAIR ESTIMATOR'!AM322","v":{"v":0,"d":"$0.00"}},{"v":0,"d":"$0.00"},{"$f":"'2 REPAIR ESTIMATOR'!AG322","v":{"v":0,"d":"$0.00"}},{"$f":"'2 REPAIR ESTIMATOR'!AJ322","v":{"v":0,"d":"$0.00"}}]
[null,null,{"$f":"T('2 REPAIR ESTIMATOR'!D323:O323)","v":"Fiber cement siding, lap"},{"$nulls":5},{"$f":"'2 REPAIR ESTIMATOR'!P323","v":0},{"$f":"'2 REPAIR ESTIMATOR'!S323","v":"sf"},{"v":0,"d":"$0"},{"v":0,"d":"$0"},{"v":0,"d":"$0"},{"v":0,"d":"$0"},null,0,null,null,{"$f":"'2 REPAIR ESTIMATOR'!AD323","v":{"v":0,"d":"$0.00"}},{"$f":"'2 REPAIR ESTIMATOR'!AM323","v":{"v":0,"d":"$0.00"}},{"v":0,"d":"$0.00"},{"$f":"'2 REPAIR ESTIMATOR'!AG323","v":{"v":0,"d":"$0.00"}},{"$f":"'2 REPAIR ESTIMATOR'!AJ323","v":{"v":0,"d":"$0.00"}}]
[null,null,{"$f":"T('2 REPAIR ESTIMATOR'!D324:O324)","v":"Vinyl siding, non-insulated"},{"$nulls":5},{"$f":"'2 REPAIR ESTIMATOR'!P324","v":0},{"$f":"'2 REPAIR ESTIMATOR'!S324","v":"sf"},{"v":0,"d":"$0"},{"v":0,"d":"$0"},{"v":0,"d":"$0"},{"v":0,"d":"$0"},null,0,null,null,{"$f":"'2 REPAIR ESTIMATOR'!AD324","v":{"v":0,"d":"$0.00"}},{"$f":"'2 REPAIR ESTIMATOR'!AM324","v":{"v":0,"d":"$0.00"}},{"v":0,"d":"$0.00"},{"$f":"'2 REPAIR ESTIMATOR'!AG324","v":{"v":0,"d":"$0.00"}},{"$f":"'2 REPAIR ESTIMATOR'!AJ324","v":{"v":0,"d":"$0.00"}}]
[null,null,{"$f":"T('2 REPAIR ESTIMATOR'!D325:O325)","v":"Vinyl siding, insulated"},{"$nulls":5},{"$f":"'2 REPAIR ESTIMATOR'!P325","v":0},{"$f":"'2 REPAIR ESTIMATOR'!S325","v":"sf"},{"v":0,"d":"$0"},{"v":0,"d":"$0"},{"v":0,"d":"$0"},{"v":0,"d":"$0"},null,0,null,null,{"$f":"'2 REPAIR ESTIMATOR'!AD325","v":{"v":0,"d":"$0.00"}},{"$f":"'2 REPAIR ESTIMATOR'!AM325","v":{"v":0,"d":"$0.00"}},{"v":0,"d":"$0.00"},{"$f":"'2 REPAIR ESTIMATOR'!AG325","v":{"v":0,"d":"$0.00"}},{"$f":"'2 REPAIR ESTIMATOR'!AJ325","v":{"v":0,"d":"$0.00"}}]
[null,null,{"$f":"T('2 REPAIR ESTIMATOR'!D326:O326)","v":"Trim, 1\"x3\", pine"},{"$nulls":5},{"$f":"'2 REPAIR ESTIMATOR'!P326","v":0},{"$f":"'2 REPAIR ESTIMATOR'!S326","v":"lf"},{"v":0,"d":"$0"},{"v":0,"d":"$0"},{"v":0,"d":"$0"},{"v":0,"d":"$0"},null,0,null,null,{"$f":"'2 REPAIR ESTIMATOR'!AD326","v":{"v":0,"d":"$0.00"}},{"$f":"'2 REPAIR ESTIMATOR'!AM326","v":{"v":0,"d":"$0.00"}},{"v":0,"d":"$0.00"},{"$f":"'2 REPAIR ESTIMATOR'!AG326","v":{"v":0,"d":"$0.00"}},{"$f":"'2 REPAIR ESTIMATOR'!AJ326","v":{"v":0,"d":"$0.00"}}]
[null,null,{"$f":"T('2 REPAIR ESTIMATOR'!D327:O327)","v":"Trim, 1\"x4\", pine"},{"$nulls":5},{"$f":"'2 REPAIR ESTIMATOR'!P327","v":0},{"$f":"'2 REPAIR ESTIMATOR'!S327","v":"lf"},{"v":0,"d":"$0"},{"v":0,"d":"$0"},{"v":0,"d":"$0"},{"v":0,"d":"$0"},null,0,null,null,{"$f":"'2 REPAIR ESTIMATOR'!AD327","v":{"v":0,"d":"$0.00"}},{"$f":"'2 REPAIR ESTIMATOR'!AM327","v":{"v":0,"d":"$0.00"}},{"v":0,"d":"$0.00"},{"$f":"'2 REPAIR ESTIMATOR'!AG327","v":{"v":0,"d":"$0.00"}},{"$f":"'2 REPAIR ESTIMATOR'!AJ327","v":{"v":0,"d":"$0.00"}}]
[null,null,{"$f":"T('2 REPAIR ESTIMATOR'!D328:O328)","v":"Trim, 1\"x6\", pine"},{"$nulls":5},{"$f":"'2 REPAIR ESTIMATOR'!P328","v":0},{"$f":"'2 REPAIR ESTIMATOR'!S328","v":"lf"},{"v":0,"d":"$0"},{"v":0,"d":"$0"},{"v":0,"d":"$0"},{"v":0,"d":"$0"},null,0,null,null,{"$f":"'2 REPAIR ESTIMATOR'!AD328","v":{"v":0,"d":"$0.00"}},{"$f":"'2 REPAIR ESTIMATOR'!AM328","v":{"v":0,"d":"$0.00"}},{"v":0,"d":"$0.00"},{"$f":"'2 REPAIR ESTIMATOR'!AG328","v":{"v":0,"d":"$0.00"}},{"$f":"'2 REPAIR ESTIMATOR'!AJ328","v":{"v":0,"d":"$0.00"}}]
[null,null,{"$f":"T('2 REPAIR ESTIMATOR'!D329:O329)","v":"Siding patch, window/door, siding, insulation"},{"$nulls":5},{"$f":"'2 REPAIR ESTIMATOR'!P329","v":0},{"$f":"'2 REPAIR ESTIMATOR'!S329","v":"ea"},{"v":0,"d":"$0"},{"v":0,"d":"$0"},{"v":0,"d":"$0"},{"v":0,"d":"$0"},null,0,null,null,{"$f":"'2 REPAIR ESTIMATOR'!AD329","v":{"v":0,"d":"$0.00"}},{"$f":"'2 REPAIR ESTIMATOR'!AM329","v":{"v":0,"d":"$0.00"}},{"v":0,"d":"$0.00"},{"$f":"'2 REPAIR ESTIMATOR'!AG329","v":{"v":0,"d":"$0.00"}},{"$f":"'2 REPAIR ESTIMATOR'!AJ329","v":{"v":0,"d":"$0.00"}}]
[null,null,{"$f":"T('2 REPAIR ESTIMATOR'!D330:O330)","v":"Stucco"},{"$nulls":5},{"$f":"'2 REPAIR ESTIMATOR'!P330","v":0},{"$f":"'2 REPAIR ESTIMATOR'!S330","v":"sf"},{"v":0,"d":"$0"},{"v":0,"d":"$0"},{"v":0,"d":"$0"},{"v":0,"d":"$0"},null,0,null,null,{"$f":"'2 REPAIR ESTIMATOR'!AD330","v":{"v":0,"d":"$0.00"}},{"$f":"'2 REPAIR ESTIMATOR'!AM330","v":{"v":0,"d":"$0.00"}},{"v":0,"d":"$0.00"},{"$f":"'2 REPAIR ESTIMATOR'!AG330","v":{"v":0,"d":"$0.00"}},{"$f":"'2 REPAIR ESTIMATOR'!AJ330","v":{"v":0,"d":"$0.00"}}]
[null,null,{"$f":"T('2 REPAIR ESTIMATOR'!D331:O331)","v":""},{"$nulls":5},{"$f":"'2 REPAIR ESTIMATOR'!P331","v":0},{"$f":"'2 REPAIR ESTIMATOR'!S331","v":0},{"v":0,"d":"$0"},{"v":0,"d":"$0"},{"v":0,"d":"$0"},{"v":0,"d":"$0"},null,0,null,null,{"$f":"'2 REPAIR ESTIMATOR'!AD331","v":{"v":0,"d":"$0.00"}},{"$f":"'2 REPAIR ESTIMATOR'!AM331","v":{"v":0,"d":"$0.00"}},{"v":0,"d":"$0.00"},{"$f":"'2 REPAIR ESTIMATOR'!AG331","v":{"v":0,"d":"$0.00"}},{"$f":"'2 REPAIR ESTIMATOR'!AJ331","v":{"v":0,"d":"$0.00"}}]
[null,null,{"$f":"T('2 REPAIR ESTIMATOR'!D332:O332)","v":""},{"$nulls":5},{"$f":"'2 REPAIR ESTIMATOR'!P332","v":0},{"$f":"'2 REPAIR ESTIMATOR'!S332","v":0},{"v":0,"d":"$0"},{"v":0,"d":"$0"},{"v":0,"d":"$0"},{"v":0,"d":"$0"},null,0,null,null,{"$f":"'2 REPAIR ESTIMATOR'!AD332","v":{"v":0,"d":"$0.00"}},{"$f":"'2 REPAIR ESTIMATOR'!AM332","v":{"v":0,"d":"$0.00"}},{"v":0,"d":"$0.00"},{"$f":"'2 REPAIR ESTIMATOR'!AG332","v":{"v":0,"d":"$0.00"}},{"$f":"'2 REPAIR ESTIMATOR'!AJ332","v":{"v":0,"d":"$0.00"}}]
[null,null,{"$f":"T('2 REPAIR ESTIMATOR'!D333:O333)","v":""},{"$nulls":5},{"$f":"'2 REPAIR ESTIMATOR'!P333","v":0},{"$f":"'2 REPAIR ESTIMATOR'!S333","v":0},{"v":0,"d":"$0"},{"v":0,"d":"$0"},{"v":0,"d":"$0"},{"v":0,"d":"$0"},null,{"$f":"I308","v":0},null,null,{"$f":"'2 REPAIR ESTIMATOR'!AD333","v":{"v":0,"d":"$0.00"}},{"$f":"'2 REPAIR ESTIMATOR'!AM333","v":{"v":0,"d":"$0.00"}},{"v":0,"d":"$0.00"},{"$f":"'2 REPAIR ESTIMATOR'!AG333","v":{"v":0,"d":"$0.00"}},{"$f":"'2 REPAIR ESTIMATOR'!AJ333","v":{"v":0,"d":"$0.00"}}]
[null,null,{"$f":"T('2 REPAIR ESTIMATOR'!D334:O334)","v":""},{"$nulls":5},{"$f":"'2 REPAIR ESTIMATOR'!P334","v":0},{"$f":"'2 REPAIR ESTIMATOR'!S334","v":0},{"v":0,"d":"$0"},{"v":0,"d":"$0"},{"v":0,"d":"$0"},{"v":0,"d":"$0"},null,0,null,null,{"$f":"'2 REPAIR ESTIMATOR'!AD334","v":{"v":0,"d":"$0.00"}},{"$f":"'2 REPAIR ESTIMATOR'!AM334","v":{"v":0,"d":"$0.00"}},{"v":0,"d":"$0.00"},{"$f":"'2 REPAIR ESTIMATOR'!AG334","v":{"v":0,"d":"$0.00"}},{"$f":"'2 REPAIR ESTIMATOR'!AJ334","v":{"v":0,"d":"$0.00"}}]
[null,null,{"$f":"T('2 REPAIR ESTIMATOR'!D335:O335)","v":""},{"$nulls":5},{"$f":"'2 REPAIR ESTIMATOR'!P335","v":0},{"$f":"'2 REPAIR ESTIMATOR'!S335","v":0},{"v":0,"d":"$0"},{"v":0,"d":"$0"},{"v":0,"d":"$0"},{"v":0,"d":"$0"},null,0,null,null,{"$f":"'2 REPAIR ESTIMATOR'!AD335","v":{"v":0,"d":"$0.00"}},{"$f":"'2 REPAIR ESTIMATOR'!AM335","v":{"v":0,"d":"$0.00"}},{"v":0,"d":"$0.00"},{"$f":"'2 REPAIR ESTIMATOR'!AG335","v":{"v":0,"d":"$0.00"}},{"$f":"'2 REPAIR ESTIMATOR'!AJ335","v":{"v":0,"d":"$0.00"}}]
[null,null,{"$f":"T('2 REPAIR ESTIMATOR'!D336:O336)","v":""},{"$nulls":5},{"$f":"'2 REPAIR ESTIMATOR'!P336","v":0},{"$f":"'2 REPAIR ESTIMATOR'!S336","v":0},{"v":0,"d":"$0"},{"v":0,"d":"$0"},{"v":0,"d":"$0"},{"v":0,"d":"$0"},null,0,null,null,{"$f":"'2 REPAIR ESTIMATOR'!AD336","v":{"v":0,"d":"$0.00"}},{"$f":"'2 REPAIR ESTIMATOR'!AM336","v":{"v":0,"d":"$0.00"}},{"v":0,"d":"$0.00"},{"$f":"'2 REPAIR ESTIMATOR'!AG336","v":{"v":0,"d":"$0.00"}},{"$f":"'2 REPAIR ESTIMATOR'!AJ336","v":{"v":0,"d":"$0.00"}}]
[null,null,{"$f":"T('2 REPAIR ESTIMATOR'!D337:O337)","v":""},{"$nulls":5},{"$f":"'2 REPAIR ESTIMATOR'!P337","v":0},{"$f":"'2 REPAIR ESTIMATOR'!S337","v":0},{"v":0,"d":"$0"},{"v":0,"d":"$0"},{"v":0,"d":"$0"},{"v":0,"d":"$0"},null,0,null,null,{"$f":"'2 REPAIR ESTIMATOR'!AD337","v":{"v":0,"d":"$0.00"}},{"$f":"'2 REPAIR ESTIMATOR'!AM337","v":{"v":0,"d":"$0.00"}},{"v":0,"d":"$0.00"},{"$f":"'2 REPAIR ESTIMATOR'!AG337","v":{"v":0,"d":"$0.00"}},{"$f":"'2 REPAIR ESTIMATOR'!AJ337","v":{"v":0,"d":"$0.00"}}]
[null,null,{"$f":"T('2 REPAIR ESTIMATOR'!D338:O338)","v":""},{"$nulls":5},{"$f":"'2 REPAIR ESTIMATOR'!P338","v":0},{"$f":"'2 REPAIR ESTIMATOR'!S338","v":0},{"v":0,"d":"$0"},{"v":0,"d":"$0"},{"v":0,"d":"$0"},{"v":0,"d":"$0"},null,0,null,null,{"$f":"'2 REPAIR ESTIMATOR'!AD338","v":{"v":0,"d":"$0.00"}},{"$f":"'2 REPAIR ESTIMATOR'!AM338","v":{"v":0,"d":"$0.00"}},{"v":0,"d":"$0.00"},{"$f":"'2 REPAIR ESTIMATOR'!AG338","v":{"v":0,"d":"$0.00"}},{"$f":"'2 REPAIR ESTIMATOR'!AJ338","v":{"v":0,"d":"$0.00"}}]
[null,null,{"$f":"T('2 REPAIR ESTIMATOR'!D339:O339)","v":""},{"$nulls":5},{"$f":"'2 REPAIR ESTIMATOR'!P339","v":0},{"$f":"'2 REPAIR ESTIMATOR'!S339","v":0},{"v":0,"d":"$0"},{"v":0,"d":"$0"},{"v":0,"d":"$0"},{"v":0,"d":"$0"},null,0,null,null,{"$f":"'2 REPAIR ESTIMATOR'!AD339","v":{"v":0,"d":"$0.00"}},{"$f":"'2 REPAIR ESTIMATOR'!AM339","v":{"v":0,"d":"$0.00"}},{"v":0,"d":"$0.00"},{"$f":"'2 REPAIR ESTIMATOR'!AG339","v":{"v":0,"d":"$0.00"}},{"$f":"'2 REPAIR ESTIMATOR'!AJ339","v":{"v":0,"d":"$0.00"}}]
[null,null,{"$f":"T('2 REPAIR ESTIMATOR'!D340:O340)","v":""},{"$nulls":5},{"$f":"'2 REPAIR ESTIMATOR'!P340","v":0},{"$f":"'2 REPAIR ESTIMATOR'!S340","v":0},{"v":0,"d":"$0"},{"v":0,"d":"$0"},{"v":0,"d":"$0"},{"v":0,"d":"$0"},null,0,null,null,{"$f":"'2 REPAIR ESTIMATOR'!AD340","v":{"v":0,"d":"$0.00"}},{"$f":"'2 REPAIR ESTIMATOR'!AM340","v":{"v":0,"d":"$0.00"}},{"v":0,"d":"$0.00"},{"$f":"'2 REPAIR ESTIMATOR'!AG340","v":{"v":0,"d":"$0.00"}},{"$f":"'2 REPAIR ESTIMATOR'!AJ340","v":{"v":0,"d":"$0.00"}}]
[null,null,{"$f":"T('2 REPAIR ESTIMATOR'!D341:O341)","v":""},{"$nulls":5},{"$f":"'2 REPAIR ESTIMATOR'!P341","v":0},{"$f":"'2 REPAIR ESTIMATOR'!S341","v":0},{"v":0,"d":"$0"},{"v":0,"d":"$0"},{"v":0,"d":"$0"},{"v":0,"d":"$0"},null,0,null,null,{"$f":"'2 REPAIR ESTIMATOR'!AD341","v":{"v":0,"d":"$0.00"}},{"$f":"'2 REPAIR ESTIMATOR'!AM341","v":{"v":0,"d":"$0.00"}},{"v":0,"d":"$0.00"},{"$f":"'2 REPAIR ESTIMATOR'!AG341","v":{"v":0,"d":"$0.00"}},{"$f":"'2 REPAIR ESTIMATOR'!AJ341","v":{"v":0,"d":"$0.00"}}]
[null,null,{"$f":"T('2 REPAIR ESTIMATOR'!D342:O342)","v":""},{"$nulls":5},{"$f":"'2 REPAIR ESTIMATOR'!P342","v":0},{"$f":"'2 REPAIR ESTIMATOR'!S342","v":0},{"v":0,"d":"$0"},{"v":0,"d":"$0"},{"v":0,"d":"$0"},{"v":0,"d":"$0"},null,0,null,null,{"$f":"'2 REPAIR ESTIMATOR'!AD342","v":{"v":0,"d":"$0.00"}},{"$f":"'2 REPAIR ESTIMATOR'!AM342","v":{"v":0,"d":"$0.00"}},{"v":0,"d":"$0.00"},{"$f":"'2 REPAIR ESTIMATOR'!AG342","v":{"v":0,"d":"$0.00"}},{"$f":"'2 REPAIR ESTIMATOR'!AJ342","v":{"v":0,"d":"$0.00"}}]
[null,null,{"$f":"T('2 REPAIR ESTIMATOR'!D343:O343)","v":""},{"$nulls":5},{"$f":"'2 REPAIR ESTIMATOR'!P343","v":0},{"$f":"'2 REPAIR ESTIMATOR'!S343","v":0},{"v":0,"d":"$0"},{"v":0,"d":"$0"},{"v":0,"d":"$0"},{"v":0,"d":"$0"},null,0,null,null,{"$f":"'2 REPAIR ESTIMATOR'!AD343","v":{"v":0,"d":"$0.00"}},{"$f":"'2 REPAIR ESTIMATOR'!AM343","v":{"v":0,"d":"$0.00"}},{"v":0,"d":"$0.00"},{"$f":"'2 REPAIR ESTIMATOR'!AG343","v":{"v":0,"d":"$0.00"}},{"$f":"'2 REPAIR ESTIMATOR'!AJ343","v":{"v":0,"d":"$0.00"}}]
[null,null,{"$f":"T('2 REPAIR ESTIMATOR'!D344:O344)","v":""},{"$nulls":5},{"$f":"'2 REPAIR ESTIMATOR'!P344","v":0},{"$f":"'2 REPAIR ESTIMATOR'!S344","v":0},{"v":0,"d":"$0"},{"v":0,"d":"$0"},{"v":0,"d":"$0"},{"v":0,"d":"$0"},null,0,null,null,{"$f":"'2 REPAIR ESTIMATOR'!AD344","v":{"v":0,"d":"$0.00"}},{"$f":"'2 REPAIR ESTIMATOR'!AM344","v":{"v":0,"d":"$0.00"}},{"v":0,"d":"$0.00"},{"$f":"'2 REPAIR ESTIMATOR'!AG344","v":{"v":0,"d":"$0.00"}},{"$f":"'2 REPAIR ESTIMATOR'!AJ344","v":{"v":0,"d":"$0.00"}}]
[null,null,{"$f":"T('2 REPAIR ESTIMATOR'!D345:O345)","v":""},{"$nulls":5},{"$f":"'2 REPAIR ESTIMATOR'!P345","v":0},{"$f":"'2 REPAIR ESTIMATOR'!S345","v":0},{"v":0,"d":"$0"},{"v":0,"d":"$0"},{"v":0,"d":"$0"},{"v":0,"d":"$0"},null,0,null,null,{"$f":"'2 REPAIR ESTIMATOR'!AD345","v":{"v":0,"d":"$0.00"}},{"$f":"'2 REPAIR ESTIMATOR'!AM345","v":{"v":0,"d":"$0.00"}},{"v":0,"d":"$0.00"},{"$f":"'2 REPAIR ESTIMATOR'!AG345","v":{"v":0,"d":"$0.00"}},{"$f":"'2 REPAIR ESTIMATOR'!AJ345","v":{"v":0,"d":"$0.00"}}]
[null,null,{"$f":"T('2 REPAIR ESTIMATOR'!D346:O346)","v":""},{"$nulls":5},{"$f":"'2 REPAIR ESTIMATOR'!P346","v":0},{"$f":"'2 REPAIR ESTIMATOR'!S346","v":0},{"v":0,"d":"$0"},{"v":0,"d":"$0"},{"v":0,"d":"$0"},{"v":0,"d":"$0"},null,0,null,null,{"$f":"'2 REPAIR ESTIMATOR'!AD346","v":{"v":0,"d":"$0.00"}},{"$f":"'2 REPAIR ESTIMATOR'!AM346","v":{"v":0,"d":"$0.00"}},{"v":0,"d":"$0.00"},{"$f":"'2 REPAIR ESTIMATOR'!AG346","v":{"v":0,"d":"$0.00"}},{"$f":"'2 REPAIR ESTIMATOR'!AJ346","v":{"v":0,"d":"$0.00"}}]
[null,null,{"$f":"T('2 REPAIR ESTIMATOR'!D347:O347)","v":""},{"$nulls":5},{"$f":"'2 REPAIR ESTIMATOR'!P347","v":0},{"$f":"'2 REPAIR ESTIMATOR'!S347","v":0},{"v":0,"d":"$0"},{"v":0,"d":"$0"},{"v":0,"d":"$0"},{"v":0,"d":"$0"},null,0,null,null,{"$f":"'2 REPAIR ESTIMATOR'!AD347","v":{"v":0,"d":"$0.00"}},{"$f":"'2 REPAIR ESTIMATOR'!AM347","v":{"v":0,"d":"$0.00"}},{"v":0,"d":"$0.00"},{"$f":"'2 REPAIR ESTIMATOR'!AG347","v":{"v":0,"d":"$0.00"}},{"$f":"'2 REPAIR ESTIMATOR'!AJ347","v":{"v":0,"d":"$0.00"}}]
[null,null,{"$f":"T('2 REPAIR ESTIMATOR'!D348:O348)","v":""},{"$nulls":5},{"$f":"'2 REPAIR ESTIMATOR'!P348","v":0},{"$f":"'2 REPAIR ESTIMATOR'!S348","v":0},{"v":0,"d":"$0"},{"v":0,"d":"$0"},{"v":0,"d":"$0"},{"v":0,"d":"$0"},null,0,null,null,{"$f":"'2 REPAIR ESTIMATOR'!AD348","v":{"v":0,"d":"$0.00"}},{"$f":"'2 REPAIR ESTIMATOR'!AM348","v":{"v":0,"d":"$0.00"}},{"v":0,"d":"$0.00"},{"$f":"'2 REPAIR ESTIMATOR'!AG348","v":{"v":0,"d":"$0.00"}},{"$f":"'2 REPAIR ESTIMATOR'!AJ348","v":{"v":0,"d":"$0.00"}}]
[null,null,{"$f":"T('2 REPAIR ESTIMATOR'!D349:O349)","v":""},{"$nulls":5},{"$f":"'2 REPAIR ESTIMATOR'!P349","v":0},{"$f":"'2 REPAIR ESTIMATOR'!S349","v":0},{"v":0,"d":"$0"},{"v":0,"d":"$0"},{"v":0,"d":"$0"},{"v":0,"d":"$0"},null,0,null,null,{"$f":"'2 REPAIR ESTIMATOR'!AD349","v":{"v":0,"d":"$0.00"}},{"$f":"'2 REPAIR ESTIMATOR'!AM349","v":{"v":0,"d":"$0.00"}},{"v":0,"d":"$0.00"},{"$f":"'2 REPAIR ESTIMATOR'!AG349","v":{"v":0,"d":"$0.00"}},{"$f":"'2 REPAIR ESTIMATOR'!AJ349","v":{"v":0,"d":"$0.00"}}]
[null,null,{"$f":"T('2 REPAIR ESTIMATOR'!D350:O350)","v":""},{"$nulls":5},{"$f":"'2 REPAIR ESTIMATOR'!P350","v":0},{"$f":"'2 REPAIR ESTIMATOR'!S350","v":0},{"v":0,"d":"$0"},{"v":0,"d":"$0"},{"v":0,"d":"$0"},{"v":0,"d":"$0"},null,0,null,null,{"$f":"'2 REPAIR ESTIMATOR'!AD350","v":{"v":0,"d":"$0.00"}},{"$f":"'2 REPAIR ESTIMATOR'!AM350","v":{"v":0,"d":"$0.00"}},{"v":0,"d":"$0.00"},{"$f":"'2 REPAIR ESTIMATOR'!AG350","v":{"v":0,"d":"$0.00"}},{"$f":"'2 REPAIR ESTIMATOR'!AJ350","v":{"v":0,"d":"$0.00"}}]
[null,null,{"$f":"T('2 REPAIR ESTIMATOR'!D351:O351)","v":""},{"$nulls":5},{"$f":"'2 REPAIR ESTIMATOR'!P351","v":0},{"$f":"'2 REPAIR ESTIMATOR'!S351","v":0},{"v":0,"d":"$0"},{"v":0,"d":"$0"},{"v":0,"d":"$0"},{"v":0,"d":"$0"},null,0,null,null,{"$f":"'2 REPAIR ESTIMATOR'!AD351","v":{"v":0,"d":"$0.00"}},{"$f":"'2 REPAIR ESTIMATOR'!AM351","v":{"v":0,"d":"$0.00"}},{"v":0,"d":"$0.00"},{"$f":"'2 REPAIR ESTIMATOR'!AG351","v":{"v":0,"d":"$0.00"}},{"$f":"'2 REPAIR ESTIMATOR'!AJ351","v":{"v":0,"d":"$0.00"}}]
[null,null,{"$f":"T('2 REPAIR ESTIMATOR'!D352:O352)","v":""},{"$nulls":5},{"$f":"'2 REPAIR ESTIMATOR'!P352","v":0},{"$f":"'2 REPAIR ESTIMATOR'!S352","v":0},{"v":0,"d":"$0"},{"v":0,"d":"$0"},{"v":0,"d":"$0"},{"v":0,"d":"$0"},null,0,null,null,{"$f":"'2 REPAIR ESTIMATOR'!AD352","v":{"v":0,"d":"$0.00"}},{"$f":"'2 REPAIR ESTIMATOR'!AM352","v":{"v":0,"d":"$0.00"}},{"v":0,"d":"$0.00"},{"$f":"'2 REPAIR ESTIMATOR'!AG352","v":{"v":0,"d":"$0.00"}},{"$f":"'2 REPAIR ESTIMATOR'!AJ352","v":{"v":0,"d":"$0.00"}}]
[null,null,{"$f":"T('2 REPAIR ESTIMATOR'!AC354)","v":"SIDING TOTAL"},{"$nulls":7},{"$f":"SUM(K288:K327)","v":{"v":0,"d":"$0"}},{"$f":"SUM(L288:L327)","v":{"v":0,"d":"$0"}},{"$f":"SUM(M288:M327)","v":{"v":0,"d":"$0"}},{"$f":"SUM(N288:O327)","v":{"v":0,"d":"$0"}},null,{"$f":"SUM(P287:P298)","v":2},null,null,{"$f":"SUM(S288:S327)","v":{"v":0,"d":"$0.00"}},{"$f":"SUM(T288:T327)","v":{"v":0,"d":"$0.00"}},{"$f":"SUM(U288:U327)","v":{"v":0,"d":"$0.00"}},{"$f":"SUM(V288:V327)","v":{"v":0,"d":"$0.00"}},{"$f":"SUM(W288:W327)","v":{"v":0,"d":"$0.00"}}]
[{"$nulls":15},{"$f":"P328","v":2}]
[null,null,{"$f":"T('2 REPAIR ESTIMATOR'!D357:O357)","v":"DECKING AND PATIOS"},{"$nulls":5},{"$f":"SUM(I331:I370)","v":150},{"$nulls":6},{"$f":"I330","v":150}]
[null,null,{"$f":"T('2 REPAIR ESTIMATOR'!D358:O358)","v":"Decking"},{"$nulls":5},{"$f":"'2 REPAIR ESTIMATOR'!P358","v":0},{"$f":"'2 REPAIR ESTIMATOR'!S358","v":0},{"$f":"IF($N$3=\"subbed\",U331,S331)*$S$70","v":{"v":0,"d":"$0"}},{"$f":"V331*$S$70","v":{"v":0,"d":"$0"}},{"$f":"W331*$S$70","v":{"v":0,"d":"$0"}},{"$f":"SUM(K331:M331)","v":{"v":0,"d":"$0"}},null,0,null,null,{"$f":"'2 REPAIR ESTIMATOR'!AD358","v":{"v":0,"d":"$0.00"}},{"$f":"'2 REPAIR ESTIMATOR'!AM358","v":{"v":0,"d":"$0.00"}},{"$f":"T331+S331","v":{"v":0,"d":"$0.00"}},{"$f":"'2 REPAIR ESTIMATOR'!AG358","v":{"v":0,"d":"$0.00"}},{"$f":"'2 REPAIR ESTIMATOR'!AJ358","v":{"v":0,"d":"$0.00"}}]
[null,null,{"$f":"T('2 REPAIR ESTIMATOR'!D359:O359)","v":"Deck bid/allowance"},{"$nulls":5},{"$f":"'2 REPAIR ESTIMATOR'!P359","v":0},{"$f":"'2 REPAIR ESTIMATOR'!S359","v":"ls"},{"v":0,"d":"$0"},{"$f":"V332*$S$70","v":{"v":0,"d":"$0"}},{"$f":"W332*$S$70","v":{"v":0,"d":"$0"}},{"$f":"SUM(K332:M332)","v":{"v":0,"d":"$0"}},null,0,null,null,{"$f":"'2 REPAIR ESTIMATOR'!AD359","v":{"v":0,"d":"$0.00"}},{"$f":"'2 REPAIR ESTIMATOR'!AM359","v":{"v":0,"d":"$0.00"}},{"$f":"T332+S332","v":{"v":0,"d":"$0.00"}},{"$f":"'2 REPAIR ESTIMATOR'!AG359","v":{"v":0,"d":"$0.00"}},{"$f":"'2 REPAIR ESTIMATOR'!AJ359","v":{"v":0,"d":"$0.00"}}]
[null,null,{"$f":"T('2 REPAIR ESTIMATOR'!D360:O360)","v":"New deck, columns, joists, railing-treated lumber"},{"$nulls":5},{"$f":"'2 REPAIR ESTIMATOR'!P360","v":0},{"$f":"'2 REPAIR ESTIMATOR'!S360","v":"sf"},{"v":0,"d":"$0"},{"v":0,"d":"$0"},{"v":0,"d":"$0"},{"v":0,"d":"$0"},null,0,null,null,{"$f":"'2 REPAIR ESTIMATOR'!AD360","v":{"v":0,"d":"$0.00"}},{"$f":"'2 REPAIR ESTIMATOR'!AM360","v":{"v":0,"d":"$0.00"}},{"v":0,"d":"$0.00"},{"$f":"'2 REPAIR ESTIMATOR'!AG360","v":{"v":0,"d":"$0.00"}},{"$f":"'2 REPAIR ESTIMATOR'!AJ360","v":{"v":0,"d":"$0.00"}}]
[null,null,{"$f":"T('2 REPAIR ESTIMATOR'!D361:O361)","v":"New deck, columns, joists, railing-cedar"},{"$nulls":5},{"$f":"'2 REPAIR ESTIMATOR'!P361","v":0},{"$f":"'2 REPAIR ESTIMATOR'!S361","v":"sf"},{"v":0,"d":"$0"},{"v":0,"d":"$0"},{"v":0,"d":"$0"},{"v":0,"d":"$0"},null,0,null,null,{"$f":"'2 REPAIR ESTIMATOR'!AD361","v":{"v":0,"d":"$0.00"}},{"$f":"'2 REPAIR ESTIMATOR'!AM361","v":{"v":0,"d":"$0.00"}},{"v":0,"d":"$0.00"},{"$f":"'2 REPAIR ESTIMATOR'!AG361","v":{"v":0,"d":"$0.00"}},{"$f":"'2 REPAIR ESTIMATOR'!AJ361","v":{"v":0,"d":"$0.00"}}]
[null,null,{"$f":"T('2 REPAIR ESTIMATOR'!D362:O362)","v":"Existing deck, replace decking"},{"$nulls":5},{"$f":"'2 REPAIR ESTIMATOR'!P362","v":150},{"$f":"'2 REPAIR ESTIMATOR'!S362","v":"sf"},{"v":750,"d":"$750"},{"v":321,"d":"$321"},{"v":0,"d":"$0"},{"v":1071,"d":"$1,071"},null,150,null,null,{"$f":"'2 REPAIR ESTIMATOR'!AD362","v":{"v":750,"d":"$750.00"}},{"$f":"'2 REPAIR ESTIMATOR'!AM362","v":{"v":0,"d":"$0.00"}},{"v":750,"d":"$750.00"},{"$f":"'2 REPAIR ESTIMATOR'!AG362","v":{"v":321,"d":"$321.00"}},{"$f":"'2 REPAIR ESTIMATOR'!AJ362","v":{"v":0,"d":"$0.00"}}]
[null,null,{"$f":"T('2 REPAIR ESTIMATOR'!D363:O363)","v":"Install railing w/ wood balusters only"},{"$nulls":5},{"$f":"'2 REPAIR ESTIMATOR'!P363","v":0},{"$f":"'2 REPAIR ESTIMATOR'!S363","v":"lf"},{"v":0,"d":"$0"},{"v":0,"d":"$0"},{"v":0,"d":"$0"},{"v":0,"d":"$0"},null,0,null,null,{"$f":"'2 REPAIR ESTIMATOR'!AD363","v":{"v":0,"d":"$0.00"}},{"$f":"'2 REPAIR ESTIMATOR'!AM363","v":{"v":0,"d":"$0.00"}},{"v":0,"d":"$0.00"},{"$f":"'2 REPAIR ESTIMATOR'!AG363","v":{"v":0,"d":"$0.00"}},{"$f":"'2 REPAIR ESTIMATOR'!AJ363","v":{"v":0,"d":"$0.00"}}]
[null,null,{"$f":"T('2 REPAIR ESTIMATOR'!D364:O364)","v":"Install railing w/ metal balusters only"},{"$nulls":5},{"$f":"'2 REPAIR ESTIMATOR'!P364","v":0},{"$f":"'2 REPAIR ESTIMATOR'!S364","v":"lf"},{"v":0,"d":"$0"},{"v":0,"d":"$0"},{"v":0,"d":"$0"},{"v":0,"d":"$0"},null,0,null,null,{"$f":"'2 REPAIR ESTIMATOR'!AD364","v":{"v":0,"d":"$0.00"}},{"$f":"'2 REPAIR ESTIMATOR'!AM364","v":{"v":0,"d":"$0.00"}},{"v":0,"d":"$0.00"},{"$f":"'2 REPAIR ESTIMATOR'!AG364","v":{"v":0,"d":"$0.00"}},{"$f":"'2 REPAIR ESTIMATOR'!AJ364","v":{"v":0,"d":"$0.00"}}]
[null,null,{"$f":"T('2 REPAIR ESTIMATOR'!D365:O365)","v":"Stairs, 5 to 7 risers"},{"$nulls":5},{"$f":"'2 REPAIR ESTIMATOR'!P365","v":0},{"$f":"'2 REPAIR ESTIMATOR'!S365","v":"ea"},{"v":0,"d":"$0"},{"v":0,"d":"$0"},{"v":0,"d":"$0"},{"v":0,"d":"$0"},null,0,null,null,{"$f":"'2 REPAIR ESTIMATOR'!AD365","v":{"v":0,"d":"$0.00"}},{"$f":"'2 REPAIR ESTIMATOR'!AM365","v":{"v":0,"d":"$0.00"}},{"v":0,"d":"$0.00"},{"$f":"'2 REPAIR ESTIMATOR'!AG365","v":{"v":0,"d":"$0.00"}},{"$f":"'2 REPAIR ESTIMATOR'!AJ365","v":{"v":0,"d":"$0.00"}}]
[null,null,{"$f":"T('2 REPAIR ESTIMATOR'!D366:O366)","v":""},{"$nulls":5},{"$f":"'2 REPAIR ESTIMATOR'!P366","v":0},{"$f":"'2 REPAIR ESTIMATOR'!S366","v":0},{"v":0,"d":"$0"},{"v":0,"d":"$0"},{"v":0,"d":"$0"},{"v":0,"d":"$0"},null,0,null,null,{"$f":"'2 REPAIR ESTIMATOR'!AD366","v":{"v":0,"d":"$0.00"}},{"$f":"'2 REPAIR ESTIMATOR'!AM366","v":{"v":0,"d":"$0.00"}},{"v":0,"d":"$0.00"},{"$f":"'2 REPAIR ESTIMATOR'!AG366","v":{"v":0,"d":"$0.00"}},{"$f":"'2 REPAIR ESTIMATOR'!AJ366","v":{"v":0,"d":"$0.00"}}]
[null,null,{"$f":"T('2 REPAIR ESTIMATOR'!D367:O367)","v":""},{"$nulls":5},{"$f":"'2 REPAIR ESTIMATOR'!P367","v":0},{"$f":"'2 REPAIR ESTIMATOR'!S367","v":0},{"v":0,"d":"$0"},{"v":0,"d":"$0"},{"v":0,"d":"$0"},{"v":0,"d":"$0"},null,0,null,null,{"$f":"'2 REPAIR ESTIMATOR'!AD367","v":{"v":0,"d":"$0.00"}},{"$f":"'2 REPAIR ESTIMATOR'!AM367","v":{"v":0,"d":"$0.00"}},{"v":0,"d":"$0.00"},{"$f":"'2 REPAIR ESTIMATOR'!AG367","v":{"v":0,"d":"$0.00"}},{"$f":"'2 REPAIR ESTIMATOR'!AJ367","v":{"v":0,"d":"$0.00"}}]
[null,null,{"$f":"T('2 REPAIR ESTIMATOR'!D368:O368)","v":"Covered Patio"},{"$nulls":5},{"$f":"'2 REPAIR ESTIMATOR'!P368","v":0},{"$f":"'2 REPAIR ESTIMATOR'!S368","v":0},{"v":0,"d":"$0"},{"v":0,"d":"$0"},{"v":0,"d":"$0"},{"v":0,"d":"$0"},null,0,null,null,{"$f":"'2 REPAIR ESTIMATOR'!AD368","v":{"v":0,"d":"$0.00"}},{"$f":"'2 REPAIR ESTIMATOR'!AM368","v":{"v":0,"d":"$0.00"}},{"v":0,"d":"$0.00"},{"$f":"'2 REPAIR ESTIMATOR'!AG368","v":{"v":0,"d":"$0.00"}},{"$f":"'2 REPAIR ESTIMATOR'!AJ368","v":{"v":0,"d":"$0.00"}}]
[null,null,{"$f":"T('2 REPAIR ESTIMATOR'!D369:O369)","v":"Covered Patio bid/allowance"},{"$nulls":5},{"$f":"'2 REPAIR ESTIMATOR'!P369","v":0},{"$f":"'2 REPAIR ESTIMATOR'!S369","v":"ls"},{"v":0,"d":"$0"},{"v":0,"d":"$0"},{"v":0,"d":"$0"},{"v":0,"d":"$0"},null,0,null,null,{"$f":"'2 REPAIR ESTIMATOR'!AD369","v":{"v":0,"d":"$0.00"}},{"$f":"'2 REPAIR ESTIMATOR'!AM369","v":{"v":0,"d":"$0.00"}},{"v":0,"d":"$0.00"},{"$f":"'2 REPAIR ESTIMATOR'!AG369","v":{"v":0,"d":"$0.00"}},{"$f":"'2 REPAIR ESTIMATOR'!AJ369","v":{"v":0,"d":"$0.00"}}]
[null,null,{"$f":"T('2 REPAIR ESTIMATOR'!D370:O370)","v":"Covered patio, floor, roof frame, decking, treated"},{"$nulls":5},{"$f":"'2 REPAIR ESTIMATOR'!P370","v":0},{"$f":"'2 REPAIR ESTIMATOR'!S370","v":"sf"},{"v":0,"d":"$0"},{"v":0,"d":"$0"},{"v":0,"d":"$0"},{"v":0,"d":"$0"},null,0,null,null,{"$f":"'2 REPAIR ESTIMATOR'!AD370","v":{"v":0,"d":"$0.00"}},{"$f":"'2 REPAIR ESTIMATOR'!AM370","v":{"v":0,"d":"$0.00"}},{"v":0,"d":"$0.00"},{"$f":"'2 REPAIR ESTIMATOR'!AG370","v":{"v":0,"d":"$0.00"}},{"$f":"'2 REPAIR ESTIMATOR'!AJ370","v":{"v":0,"d":"$0.00"}}]
[null,null,{"$f":"T('2 REPAIR ESTIMATOR'!D371:O371)","v":"Install railing w/ wood balusters only"},{"$nulls":5},{"$f":"'2 REPAIR ESTIMATOR'!P371","v":0},{"$f":"'2 REPAIR ESTIMATOR'!S371","v":"lf"},{"v":0,"d":"$0"},{"v":0,"d":"$0"},{"v":0,"d":"$0"},{"v":0,"d":"$0"},null,0,null,null,{"$f":"'2 REPAIR ESTIMATOR'!AD371","v":{"v":0,"d":"$0.00"}},{"$f":"'2 REPAIR ESTIMATOR'!AM371","v":{"v":0,"d":"$0.00"}},{"v":0,"d":"$0.00"},{"$f":"'2 REPAIR ESTIMATOR'!AG371","v":{"v":0,"d":"$0.00"}},{"$f":"'2 REPAIR ESTIMATOR'!AJ371","v":{"v":0,"d":"$0.00"}}]
[null,null,{"$f":"T('2 REPAIR ESTIMATOR'!D372:O372)","v":"Install railing w/ metal balusters only"},{"$nulls":5},{"$f":"'2 REPAIR ESTIMATOR'!P372","v":0},{"$f":"'2 REPAIR ESTIMATOR'!S372","v":"lf"},{"v":0,"d":"$0"},{"v":0,"d":"$0"},{"v":0,"d":"$0"},{"v":0,"d":"$0"},null,0,null,null,{"$f":"'2 REPAIR ESTIMATOR'!AD372","v":{"v":0,"d":"$0.00"}},{"$f":"'2 REPAIR ESTIMATOR'!AM372","v":{"v":0,"d":"$0.00"}},{"v":0,"d":"$0.00"},{"$f":"'2 REPAIR ESTIMATOR'!AG372","v":{"v":0,"d":"$0.00"}},{"$f":"'2 REPAIR ESTIMATOR'!AJ372","v":{"v":0,"d":"$0.00"}}]
[null,null,{"$f":"T('2 REPAIR ESTIMATOR'!D373:O373)","v":"Stairs, 5 to 7 risers"},{"$nulls":5},{"$f":"'2 REPAIR ESTIMATOR'!P373","v":0},{"$f":"'2 REPAIR ESTIMATOR'!S373","v":"ea"},{"v":0,"d":"$0"},{"v":0,"d":"$0"},{"v":0,"d":"$0"},{"v":0,"d":"$0"},null,0,null,null,{"$f":"'2 REPAIR ESTIMATOR'!AD373","v":{"v":0,"d":"$0.00"}},{"$f":"'2 REPAIR ESTIMATOR'!AM373","v":{"v":0,"d":"$0.00"}},{"v":0,"d":"$0.00"},{"$f":"'2 REPAIR ESTIMATOR'!AG373","v":{"v":0,"d":"$0.00"}},{"$f":"'2 REPAIR ESTIMATOR'!AJ373","v":{"v":0,"d":"$0.00"}}]
[null,null,{"$f":"T('2 REPAIR ESTIMATOR'!D374:O374)","v":"Wood board ceiling, tongue and groove"},{"$nulls":5},{"$f":"'2 REPAIR ESTIMATOR'!P374","v":0},{"$f":"'2 REPAIR ESTIMATOR'!S374","v":"sf"},{"v":0,"d":"$0"},{"v":0,"d":"$0"},{"v":0,"d":"$0"},{"v":0,"d":"$0"},null,0,null,null,{"$f":"'2 REPAIR ESTIMATOR'!AD374","v":{"v":0,"d":"$0.00"}},{"$f":"'2 REPAIR ESTIMATOR'!AM374","v":{"v":0,"d":"$0.00"}},{"v":0,"d":"$0.00"},{"$f":"'2 REPAIR ESTIMATOR'!AG374","v":{"v":0,"d":"$0.00"}},{"$f":"'2 REPAIR ESTIMATOR'!AJ374","v":{"v":0,"d":"$0.00"}}]
[null,null,{"$f":"T('2 REPAIR ESTIMATOR'!D375:O375)","v":"Insect screening"},{"$nulls":5},{"$f":"'2 REPAIR ESTIMATOR'!P375","v":0},{"$f":"'2 REPAIR ESTIMATOR'!S375","v":"sf"},{"v":0,"d":"$0"},{"v":0,"d":"$0"},{"v":0,"d":"$0"},{"v":0,"d":"$0"},null,0,null,null,{"$f":"'2 REPAIR ESTIMATOR'!AD375","v":{"v":0,"d":"$0.00"}},{"$f":"'2 REPAIR ESTIMATOR'!AM375","v":{"v":0,"d":"$0.00"}},{"v":0,"d":"$0.00"},{"$f":"'2 REPAIR ESTIMATOR'!AG375","v":{"v":0,"d":"$0.00"}},{"$f":"'2 REPAIR ESTIMATOR'!AJ375","v":{"v":0,"d":"$0.00"}}]
[null,null,{"$f":"T('2 REPAIR ESTIMATOR'!D376:O376)","v":""},{"$nulls":5},{"$f":"'2 REPAIR ESTIMATOR'!P376","v":0},{"$f":"'2 REPAIR ESTIMATOR'!S376","v":0},{"v":0,"d":"$0"},{"v":0,"d":"$0"},{"v":0,"d":"$0"},{"v":0,"d":"$0"},null,0,null,null,{"$f":"'2 REPAIR ESTIMATOR'!AD376","v":{"v":0,"d":"$0.00"}},{"$f":"'2 REPAIR ESTIMATOR'!AM376","v":{"v":0,"d":"$0.00"}},{"v":0,"d":"$0.00"},{"$f":"'2 REPAIR ESTIMATOR'!AG376","v":{"v":0,"d":"$0.00"}},{"$f":"'2 REPAIR ESTIMATOR'!AJ376","v":{"v":0,"d":"$0.00"}}]
[null,null,{"$f":"T('2 REPAIR ESTIMATOR'!D377:O377)","v":""},{"$nulls":5},{"$f":"'2 REPAIR ESTIMATOR'!P377","v":0},{"$f":"'2 REPAIR ESTIMATOR'!S377","v":0},{"v":0,"d":"$0"},{"v":0,"d":"$0"},{"v":0,"d":"$0"},{"v":0,"d":"$0"},null,0,null,null,{"$f":"'2 REPAIR ESTIMATOR'!AD377","v":{"v":0,"d":"$0.00"}},{"$f":"'2 REPAIR ESTIMATOR'!AM377","v":{"v":0,"d":"$0.00"}},{"v":0,"d":"$0.00"},{"$f":"'2 REPAIR ESTIMATOR'!AG377","v":{"v":0,"d":"$0.00"}},{"$f":"'2 REPAIR ESTIMATOR'!AJ377","v":{"v":0,"d":"$0.00"}}]
[null,null,{"$f":"T('2 REPAIR ESTIMATOR'!D378:O378)","v":""},{"$nulls":5},{"$f":"'2 REPAIR ESTIMATOR'!P378","v":0},{"$f":"'2 REPAIR ESTIMATOR'!S378","v":0},{"v":0,"d":"$0"},{"v":0,"d":"$0"},{"v":0,"d":"$0"},{"v":0,"d":"$0"},null,{"$f":"I351","v":0},null,null,{"$f":"'2 REPAIR ESTIMATOR'!AD378","v":{"v":0,"d":"$0.00"}},{"$f":"'2 REPAIR ESTIMATOR'!AM378","v":{"v":0,"d":"$0.00"}},{"v":0,"d":"$0.00"},{"$f":"'2 REPAIR ESTIMATOR'!AG378","v":{"v":0,"d":"$0.00"}},{"$f":"'2 REPAIR ESTIMATOR'!AJ378","v":{"v":0,"d":"$0.00"}}]
[null,null,{"$f":"T('2 REPAIR ESTIMATOR'!D379:O379)","v":""},{"$nulls":5},{"$f":"'2 REPAIR ESTIMATOR'!P379","v":0},{"$f":"'2 REPAIR ESTIMATOR'!S379","v":0},{"v":0,"d":"$0"},{"v":0,"d":"$0"},{"v":0,"d":"$0"},{"v":0,"d":"$0"},null,0,null,null,{"$f":"'2 REPAIR ESTIMATOR'!AD379","v":{"v":0,"d":"$0.00"}},{"$f":"'2 REPAIR ESTIMATOR'!AM379","v":{"v":0,"d":"$0.00"}},{"v":0,"d":"$0.00"},{"$f":"'2 REPAIR ESTIMATOR'!AG379","v":{"v":0,"d":"$0.00"}},{"$f":"'2 REPAIR ESTIMATOR'!AJ379","v":{"v":0,"d":"$0.00"}}]
[null,null,{"$f":"T('2 REPAIR ESTIMATOR'!D380:O380)","v":""},{"$nulls":5},{"$f":"'2 REPAIR ESTIMATOR'!P380","v":0},{"$f":"'2 REPAIR ESTIMATOR'!S380","v":0},{"v":0,"d":"$0"},{"v":0,"d":"$0"},{"v":0,"d":"$0"},{"v":0,"d":"$0"},null,0,null,null,{"$f":"'2 REPAIR ESTIMATOR'!AD380","v":{"v":0,"d":"$0.00"}},{"$f":"'2 REPAIR ESTIMATOR'!AM380","v":{"v":0,"d":"$0.00"}},{"v":0,"d":"$0.00"},{"$f":"'2 REPAIR ESTIMATOR'!AG380","v":{"v":0,"d":"$0.00"}},{"$f":"'2 REPAIR ESTIMATOR'!AJ380","v":{"v":0,"d":"$0.00"}}]
[null,null,{"$f":"T('2 REPAIR ESTIMATOR'!D381:O381)","v":""},{"$nulls":5},{"$f":"'2 REPAIR ESTIMATOR'!P381","v":0},{"$f":"'2 REPAIR ESTIMATOR'!S381","v":0},{"v":0,"d":"$0"},{"v":0,"d":"$0"},{"v":0,"d":"$0"},{"v":0,"d":"$0"},null,0,null,null,{"$f":"'2 REPAIR ESTIMATOR'!AD381","v":{"v":0,"d":"$0.00"}},{"$f":"'2 REPAIR ESTIMATOR'!AM381","v":{"v":0,"d":"$0.00"}},{"v":0,"d":"$0.00"},{"$f":"'2 REPAIR ESTIMATOR'!AG381","v":{"v":0,"d":"$0.00"}},{"$f":"'2 REPAIR ESTIMATOR'!AJ381","v":{"v":0,"d":"$0.00"}}]
[null,null,{"$f":"T('2 REPAIR ESTIMATOR'!D382:O382)","v":""},{"$nulls":5},{"$f":"'2 REPAIR ESTIMATOR'!P382","v":0},{"$f":"'2 REPAIR ESTIMATOR'!S382","v":0},{"v":0,"d":"$0"},{"v":0,"d":"$0"},{"v":0,"d":"$0"},{"v":0,"d":"$0"},null,0,null,null,{"$f":"'2 REPAIR ESTIMATOR'!AD382","v":{"v":0,"d":"$0.00"}},{"$f":"'2 REPAIR ESTIMATOR'!AM382","v":{"v":0,"d":"$0.00"}},{"v":0,"d":"$0.00"},{"$f":"'2 REPAIR ESTIMATOR'!AG382","v":{"v":0,"d":"$0.00"}},{"$f":"'2 REPAIR ESTIMATOR'!AJ382","v":{"v":0,"d":"$0.00"}}]
[null,null,{"$f":"T('2 REPAIR ESTIMATOR'!D383:O383)","v":""},{"$nulls":5},{"$f":"'2 REPAIR ESTIMATOR'!P383","v":0},{"$f":"'2 REPAIR ESTIMATOR'!S383","v":0},{"v":0,"d":"$0"},{"v":0,"d":"$0"},{"v":0,"d":"$0"},{"v":0,"d":"$0"},null,0,null,null,{"$f":"'2 REPAIR ESTIMATOR'!AD383","v":{"v":0,"d":"$0.00"}},{"$f":"'2 REPAIR ESTIMATOR'!AM383","v":{"v":0,"d":"$0.00"}},{"v":0,"d":"$0.00"},{"$f":"'2 REPAIR ESTIMATOR'!AG383","v":{"v":0,"d":"$0.00"}},{"$f":"'2 REPAIR ESTIMATOR'!AJ383","v":{"v":0,"d":"$0.00"}}]
[null,null,{"$f":"T('2 REPAIR ESTIMATOR'!D384:O384)","v":""},{"$nulls":5},{"$f":"'2 REPAIR ESTIMATOR'!P384","v":0},{"$f":"'2 REPAIR ESTIMATOR'!S384","v":0},{"v":0,"d":"$0"},{"v":0,"d":"$0"},{"v":0,"d":"$0"},{"v":0,"d":"$0"},null,0,null,null,{"$f":"'2 REPAIR ESTIMATOR'!AD384","v":{"v":0,"d":"$0.00"}},{"$f":"'2 REPAIR ESTIMATOR'!AM384","v":{"v":0,"d":"$0.00"}},{"v":0,"d":"$0.00"},{"$f":"'2 REPAIR ESTIMATOR'!AG384","v":{"v":0,"d":"$0.00"}},{"$f":"'2 REPAIR ESTIMATOR'!AJ384","v":{"v":0,"d":"$0.00"}}]
[null,null,{"$f":"T('2 REPAIR ESTIMATOR'!D385:O385)","v":""},{"$nulls":5},{"$f":"'2 REPAIR ESTIMATOR'!P385","v":0},{"$f":"'2 REPAIR ESTIMATOR'!S385","v":0},{"v":0,"d":"$0"},{"v":0,"d":"$0"},{"v":0,"d":"$0"},{"v":0,"d":"$0"},null,0,null,null,{"$f":"'2 REPAIR ESTIMATOR'!AD385","v":{"v":0,"d":"$0.00"}},{"$f":"'2 REPAIR ESTIMATOR'!AM385","v":{"v":0,"d":"$0.00"}},{"v":0,"d":"$0.00"},{"$f":"'2 REPAIR ESTIMATOR'!AG385","v":{"v":0,"d":"$0.00"}},{"$f":"'2 REPAIR ESTIMATOR'!AJ385","v":{"v":0,"d":"$0.00"}}]
[null,null,{"$f":"T('2 REPAIR ESTIMATOR'!D386:O386)","v":""},{"$nulls":5},{"$f":"'2 REPAIR ESTIMATOR'!P386","v":0},{"$f":"'2 REPAIR ESTIMATOR'!S386","v":0},{"v":0,"d":"$0"},{"v":0,"d":"$0"},{"v":0,"d":"$0"},{"v":0,"d":"$0"},null,0,null,null,{"$f":"'2 REPAIR ESTIMATOR'!AD386","v":{"v":0,"d":"$0.00"}},{"$f":"'2 REPAIR ESTIMATOR'!AM386","v":{"v":0,"d":"$0.00"}},{"v":0,"d":"$0.00"},{"$f":"'2 REPAIR ESTIMATOR'!AG386","v":{"v":0,"d":"$0.00"}},{"$f":"'2 REPAIR ESTIMATOR'!AJ386","v":{"v":0,"d":"$0.00"}}]
[null,null,{"$f":"T('2 REPAIR ESTIMATOR'!D387:O387)","v":""},{"$nulls":5},{"$f":"'2 REPAIR ESTIMATOR'!P387","v":0},{"$f":"'2 REPAIR ESTIMATOR'!S387","v":0},{"v":0,"d":"$0"},{"v":0,"d":"$0"},{"v":0,"d":"$0"},{"v":0,"d":"$0"},null,0,null,null,{"$f":"'2 REPAIR ESTIMATOR'!AD387","v":{"v":0,"d":"$0.00"}},{"$f":"'2 REPAIR ESTIMATOR'!AM387","v":{"v":0,"d":"$0.00"}},{"v":0,"d":"$0.00"},{"$f":"'2 REPAIR ESTIMATOR'!AG387","v":{"v":0,"d":"$0.00"}},{"$f":"'2 REPAIR ESTIMATOR'!AJ387","v":{"v":0,"d":"$0.00"}}]
[null,null,{"$f":"T('2 REPAIR ESTIMATOR'!D388:O388)","v":""},{"$nulls":5},{"$f":"'2 REPAIR ESTIMATOR'!P388","v":0},{"$f":"'2 REPAIR ESTIMATOR'!S388","v":0},{"v":0,"d":"$0"},{"v":0,"d":"$0"},{"v":0,"d":"$0"},{"v":0,"d":"$0"},null,0,null,null,{"$f":"'2 REPAIR ESTIMATOR'!AD388","v":{"v":0,"d":"$0.00"}},{"$f":"'2 REPAIR ESTIMATOR'!AM388","v":{"v":0,"d":"$0.00"}},{"v":0,"d":"$0.00"},{"$f":"'2 REPAIR ESTIMATOR'!AG388","v":{"v":0,"d":"$0.00"}},{"$f":"'2 REPAIR ESTIMATOR'!AJ388","v":{"v":0,"d":"$0.00"}}]
[null,null,{"$f":"T('2 REPAIR ESTIMATOR'!D389:O389)","v":""},{"$nulls":5},{"$f":"'2 REPAIR ESTIMATOR'!P389","v":0},{"$f":"'2 REPAIR ESTIMATOR'!S389","v":0},{"v":0,"d":"$0"},{"v":0,"d":"$0"},{"v":0,"d":"$0"},{"v":0,"d":"$0"},null,0,null,null,{"$f":"'2 REPAIR ESTIMATOR'!AD389","v":{"v":0,"d":"$0.00"}},{"$f":"'2 REPAIR ESTIMATOR'!AM389","v":{"v":0,"d":"$0.00"}},{"v":0,"d":"$0.00"},{"$f":"'2 REPAIR ESTIMATOR'!AG389","v":{"v":0,"d":"$0.00"}},{"$f":"'2 REPAIR ESTIMATOR'!AJ389","v":{"v":0,"d":"$0.00"}}]
[null,null,{"$f":"T('2 REPAIR ESTIMATOR'!D390:O390)","v":""},{"$nulls":5},{"$f":"'2 REPAIR ESTIMATOR'!P390","v":0},{"$f":"'2 REPAIR ESTIMATOR'!S390","v":0},{"v":0,"d":"$0"},{"v":0,"d":"$0"},{"v":0,"d":"$0"},{"v":0,"d":"$0"},null,0,null,null,{"$f":"'2 REPAIR ESTIMATOR'!AD390","v":{"v":0,"d":"$0.00"}},{"$f":"'2 REPAIR ESTIMATOR'!AM390","v":{"v":0,"d":"$0.00"}},{"v":0,"d":"$0.00"},{"$f":"'2 REPAIR ESTIMATOR'!AG390","v":{"v":0,"d":"$0.00"}},{"$f":"'2 REPAIR ESTIMATOR'!AJ390","v":{"v":0,"d":"$0.00"}}]
[null,null,{"$f":"T('2 REPAIR ESTIMATOR'!D391:O391)","v":""},{"$nulls":5},{"$f":"'2 REPAIR ESTIMATOR'!P391","v":0},{"$f":"'2 REPAIR ESTIMATOR'!S391","v":0},{"v":0,"d":"$0"},{"v":0,"d":"$0"},{"v":0,"d":"$0"},{"v":0,"d":"$0"},null,0,null,null,{"$f":"'2 REPAIR ESTIMATOR'!AD391","v":{"v":0,"d":"$0.00"}},{"$f":"'2 REPAIR ESTIMATOR'!AM391","v":{"v":0,"d":"$0.00"}},{"v":0,"d":"$0.00"},{"$f":"'2 REPAIR ESTIMATOR'!AG391","v":{"v":0,"d":"$0.00"}},{"$f":"'2 REPAIR ESTIMATOR'!AJ391","v":{"v":0,"d":"$0.00"}}]
[null,null,{"$f":"T('2 REPAIR ESTIMATOR'!D392:O392)","v":""},{"$nulls":5},{"$f":"'2 REPAIR ESTIMATOR'!P392","v":0},{"$f":"'2 REPAIR ESTIMATOR'!S392","v":0},{"v":0,"d":"$0"},{"v":0,"d":"$0"},{"v":0,"d":"$0"},{"v":0,"d":"$0"},null,0,null,null,{"$f":"'2 REPAIR ESTIMATOR'!AD392","v":{"v":0,"d":"$0.00"}},{"$f":"'2 REPAIR ESTIMATOR'!AM392","v":{"v":0,"d":"$0.00"}},{"v":0,"d":"$0.00"},{"$f":"'2 REPAIR ESTIMATOR'!AG392","v":{"v":0,"d":"$0.00"}},{"$f":"'2 REPAIR ESTIMATOR'!AJ392","v":{"v":0,"d":"$0.00"}}]
[null,null,{"$f":"T('2 REPAIR ESTIMATOR'!D393:O393)","v":""},{"$nulls":5},{"$f":"'2 REPAIR ESTIMATOR'!P393","v":0},{"$f":"'2 REPAIR ESTIMATOR'!S393","v":0},{"v":0,"d":"$0"},{"v":0,"d":"$0"},{"v":0,"d":"$0"},{"v":0,"d":"$0"},null,0,null,null,{"$f":"'2 REPAIR ESTIMATOR'!AD393","v":{"v":0,"d":"$0.00"}},{"$f":"'2 REPAIR ESTIMATOR'!AM393","v":{"v":0,"d":"$0.00"}},{"v":0,"d":"$0.00"},{"$f":"'2 REPAIR ESTIMATOR'!AG393","v":{"v":0,"d":"$0.00"}},{"$f":"'2 REPAIR ESTIMATOR'!AJ393","v":{"v":0,"d":"$0.00"}}]
[null,null,{"$f":"T('2 REPAIR ESTIMATOR'!D394:O394)","v":""},{"$nulls":5},{"$f":"'2 REPAIR ESTIMATOR'!P394","v":0},{"$f":"'2 REPAIR ESTIMATOR'!S394","v":0},{"v":0,"d":"$0"},{"v":0,"d":"$0"},{"v":0,"d":"$0"},{"v":0,"d":"$0"},null,0,null,null,{"$f":"'2 REPAIR ESTIMATOR'!AD394","v":{"v":0,"d":"$0.00"}},{"$f":"'2 REPAIR ESTIMATOR'!AM394","v":{"v":0,"d":"$0.00"}},{"v":0,"d":"$0.00"},{"$f":"'2 REPAIR ESTIMATOR'!AG394","v":{"v":0,"d":"$0.00"}},{"$f":"'2 REPAIR ESTIMATOR'!AJ394","v":{"v":0,"d":"$0.00"}}]
[null,null,{"$f":"T('2 REPAIR ESTIMATOR'!D395:O395)","v":""},{"$nulls":5},{"$f":"'2 REPAIR ESTIMATOR'!P395","v":0},{"$f":"'2 REPAIR ESTIMATOR'!S395","v":0},{"v":0,"d":"$0"},{"v":0,"d":"$0"},{"v":0,"d":"$0"},{"v":0,"d":"$0"},null,0,null,null,{"$f":"'2 REPAIR ESTIMATOR'!AD395","v":{"v":0,"d":"$0.00"}},{"$f":"'2 REPAIR ESTIMATOR'!AM395","v":{"v":0,"d":"$0.00"}},{"v":0,"d":"$0.00"},{"$f":"'2 REPAIR ESTIMATOR'!AG395","v":{"v":0,"d":"$0.00"}},{"$f":"'2 REPAIR ESTIMATOR'!AJ395","v":{"v":0,"d":"$0.00"}}]
[null,null,{"$f":"T('2 REPAIR ESTIMATOR'!D396:O396)","v":""},{"$nulls":5},{"$f":"'2 REPAIR ESTIMATOR'!P396","v":0},{"$f":"'2 REPAIR ESTIMATOR'!S396","v":0},{"v":0,"d":"$0"},{"v":0,"d":"$0"},{"v":0,"d":"$0"},{"v":0,"d":"$0"},null,0,null,null,{"$f":"'2 REPAIR ESTIMATOR'!AD396","v":{"v":0,"d":"$0.00"}},{"$f":"'2 REPAIR ESTIMATOR'!AM396","v":{"v":0,"d":"$0.00"}},{"v":0,"d":"$0.00"},{"$f":"'2 REPAIR ESTIMATOR'!AG396","v":{"v":0,"d":"$0.00"}},{"$f":"'2 REPAIR ESTIMATOR'!AJ396","v":{"v":0,"d":"$0.00"}}]
[null,null,{"$f":"T('2 REPAIR ESTIMATOR'!D397:O397)","v":""},{"$nulls":5},{"$f":"'2 REPAIR ESTIMATOR'!P397","v":0},{"$f":"'2 REPAIR ESTIMATOR'!S397","v":0},{"v":0,"d":"$0"},{"v":0,"d":"$0"},{"v":0,"d":"$0"},{"v":0,"d":"$0"},null,0,null,null,{"$f":"'2 REPAIR ESTIMATOR'!AD397","v":{"v":0,"d":"$0.00"}},{"$f":"'2 REPAIR ESTIMATOR'!AM397","v":{"v":0,"d":"$0.00"}},{"v":0,"d":"$0.00"},{"$f":"'2 REPAIR ESTIMATOR'!AG397","v":{"v":0,"d":"$0.00"}},{"$f":"'2 REPAIR ESTIMATOR'!AJ397","v":{"v":0,"d":"$0.00"}}]
[null,null,{"$f":"T('2 REPAIR ESTIMATOR'!AC399)","v":"DECKING AND PATIOS TOTAL"},{"$nulls":7},{"$f":"SUM(K331:K370)","v":{"v":750,"d":"$750"}},{"$f":"SUM(L331:L370)","v":{"v":321,"d":"$321"}},{"$f":"SUM(M331:M370)","v":{"v":0,"d":"$0"}},{"$f":"SUM(N331:O370)","v":{"v":1071,"d":"$1,071"}},null,{"$f":"SUM(P330:P340)","v":300},null,null,{"$f":"SUM(S331:S370)","v":{"v":750,"d":"$750.00"}},{"$f":"SUM(T331:T370)","v":{"v":0,"d":"$0.00"}},{"$f":"SUM(U331:U370)","v":{"v":750,"d":"$750.00"}},{"$f":"SUM(V331:V370)","v":{"v":321,"d":"$321.00"}},{"$f":"SUM(W331:W370)","v":{"v":0,"d":"$0.00"}}]
[{"$nulls":15},{"$f":"P371","v":300}]
[null,null,{"$f":"T('2 REPAIR ESTIMATOR'!D402:O402)","v":"ROOFING"},{"$nulls":5},{"$f":"SUM(I374:I413)","v":20},{"$nulls":6},{"$f":"I373","v":20}]
[null,null,{"$f":"T('2 REPAIR ESTIMATOR'!D403:O403)","v":"Roofing bid/allowance"},{"$nulls":5},{"$f":"'2 REPAIR ESTIMATOR'!P403","v":0},{"$f":"'2 REPAIR ESTIMATOR'!S403","v":"ls"},{"$f":"IF($N$3=\"subbed\",U374,S374)*$S$70","v":{"v":0,"d":"$0"}},{"$f":"V374*$S$70","v":{"v":0,"d":"$0"}},{"$f":"W374*$S$70","v":{"v":0,"d":"$0"}},{"$f":"SUM(K374:M374)","v":{"v":0,"d":"$0"}},null,0,null,null,{"$f":"'2 REPAIR ESTIMATOR'!AD403","v":{"v":0,"d":"$0.00"}},{"$f":"'2 REPAIR ESTIMATOR'!AM403","v":{"v":0,"d":"$0.00"}},{"$f":"T374+S374","v":{"v":0,"d":"$0.00"}},{"$f":"'2 REPAIR ESTIMATOR'!AG403","v":{"v":0,"d":"$0.00"}},{"$f":"'2 REPAIR ESTIMATOR'!AJ403","v":{"v":0,"d":"$0.00"}}]
[null,null,{"$f":"T('2 REPAIR ESTIMATOR'!D404:O404)","v":"Asphalt shingle roof"},{"$nulls":5},{"$f":"'2 REPAIR ESTIMATOR'!P404","v":0},{"$f":"'2 REPAIR ESTIMATOR'!S404","v":0},{"v":0,"d":"$0"},{"$f":"V375*$S$70","v":{"v":0,"d":"$0"}},{"$f":"W375*$S$70","v":{"v":0,"d":"$0"}},{"$f":"SUM(K375:M375)","v":{"v":0,"d":"$0"}},null,0,null,null,{"$f":"'2 REPAIR ESTIMATOR'!AD404","v":{"v":0,"d":"$0.00"}},{"$f":"'2 REPAIR ESTIMATOR'!AM404","v":{"v":0,"d":"$0.00"}},{"$f":"T375+S375","v":{"v":0,"d":"$0.00"}},{"$f":"'2 REPAIR ESTIMATOR'!AG404","v":{"v":0,"d":"$0.00"}},{"$f":"'2 REPAIR ESTIMATOR'!AJ404","v":{"v":0,"d":"$0.00"}}]
[null,null,{"$f":"T('2 REPAIR ESTIMATOR'!D405:O405)","v":"Roof repair/patch, asphalt"},{"$nulls":5},{"$f":"'2 REPAIR ESTIMATOR'!P405","v":0},{"$f":"'2 REPAIR ESTIMATOR'!S405","v":"ea"},{"v":0,"d":"$0"},{"v":0,"d":"$0"},{"v":0,"d":"$0"},{"v":0,"d":"$0"},null,0,null,null,{"$f":"'2 REPAIR ESTIMATOR'!AD405","v":{"v":0,"d":"$0.00"}},{"$f":"'2 REPAIR ESTIMATOR'!AM405","v":{"v":0,"d":"$0.00"}},{"v":0,"d":"$0.00"},{"$f":"'2 REPAIR ESTIMATOR'!AG405","v":{"v":0,"d":"$0.00"}},{"$f":"'2 REPAIR ESTIMATOR'!AJ405","v":{"v":0,"d":"$0.00"}}]
[null,null,{"$f":"T('2 REPAIR ESTIMATOR'!D406:O406)","v":"Roof replacement-demo & replace, 3-tab"},{"$nulls":5},{"$f":"'2 REPAIR ESTIMATOR'!P406","v":0},{"$f":"'2 REPAIR ESTIMATOR'!S406","v":"sq"},{"v":0,"d":"$0"},{"v":0,"d":"$0"},{"v":0,"d":"$0"},{"v":0,"d":"$0"},null,0,null,null,{"$f":"'2 REPAIR ESTIMATOR'!AD406","v":{"v":0,"d":"$0.00"}},{"$f":"'2 REPAIR ESTIMATOR'!AM406","v":{"v":0,"d":"$0.00"}},{"v":0,"d":"$0.00"},{"$f":"'2 REPAIR ESTIMATOR'!AG406","v":{"v":0,"d":"$0.00"}},{"$f":"'2 REPAIR ESTIMATOR'!AJ406","v":{"v":0,"d":"$0.00"}}]
[null,null,{"$f":"T('2 REPAIR ESTIMATOR'!D407:O407)","v":"Roof replacement-demo & replace, architectural"},{"$nulls":5},{"$f":"'2 REPAIR ESTIMATOR'!P407","v":20},{"$f":"'2 REPAIR ESTIMATOR'!S407","v":"sq"},{"v":3000,"d":"$3,000"},{"v":2461,"d":"$2,461"},{"v":0,"d":"$0"},{"v":5461,"d":"$5,461"},null,20,null,null,{"$f":"'2 REPAIR ESTIMATOR'!AD407","v":{"v":3000,"d":"$3,000.00"}},{"$f":"'2 REPAIR ESTIMATOR'!AM407","v":{"v":0,"d":"$0.00"}},{"v":3000,"d":"$3,000.00"},{"$f":"'2 REPAIR ESTIMATOR'!AG407","v":{"v":2461,"d":"$2,461.00"}},{"$f":"'2 REPAIR ESTIMATOR'!AJ407","v":{"v":0,"d":"$0.00"}}]
[null,null,{"$f":"T('2 REPAIR ESTIMATOR'!D408:O408)","v":"Premium for 3 layer tear off"},{"$nulls":5},{"$f":"'2 REPAIR ESTIMATOR'!P408","v":0},{"$f":"'2 REPAIR ESTIMATOR'!S408","v":"sq"},{"v":0,"d":"$0"},{"v":0,"d":"$0"},{"v":0,"d":"$0"},{"v":0,"d":"$0"},null,0,null,null,{"$f":"'2 REPAIR ESTIMATOR'!AD408","v":{"v":0,"d":"$0.00"}},{"$f":"'2 REPAIR ESTIMATOR'!AM408","v":{"v":0,"d":"$0.00"}},{"v":0,"d":"$0.00"},{"$f":"'2 REPAIR ESTIMATOR'!AG408","v":{"v":0,"d":"$0.00"}},{"$f":"'2 REPAIR ESTIMATOR'!AJ408","v":{"v":0,"d":"$0.00"}}]
[null,null,{"$f":"T('2 REPAIR ESTIMATOR'!D409:O409)","v":"Premium for steep pitch roof"},{"$nulls":5},{"$f":"'2 REPAIR ESTIMATOR'!P409","v":0},{"$f":"'2 REPAIR ESTIMATOR'!S409","v":"sq"},{"v":0,"d":"$0"},{"v":0,"d":"$0"},{"v":0,"d":"$0"},{"v":0,"d":"$0"},null,0,null,null,{"$f":"'2 REPAIR ESTIMATOR'!AD409","v":{"v":0,"d":"$0.00"}},{"$f":"'2 REPAIR ESTIMATOR'!AM409","v":{"v":0,"d":"$0.00"}},{"v":0,"d":"$0.00"},{"$f":"'2 REPAIR ESTIMATOR'!AG409","v":{"v":0,"d":"$0.00"}},{"$f":"'2 REPAIR ESTIMATOR'!AJ409","v":{"v":0,"d":"$0.00"}}]
[null,null,{"$f":"T('2 REPAIR ESTIMATOR'!D410:O410)","v":""},{"$nulls":5},{"$f":"'2 REPAIR ESTIMATOR'!P410","v":0},{"$f":"'2 REPAIR ESTIMATOR'!S410","v":0},{"v":0,"d":"$0"},{"v":0,"d":"$0"},{"v":0,"d":"$0"},{"v":0,"d":"$0"},null,0,null,null,{"$f":"'2 REPAIR ESTIMATOR'!AD410","v":{"v":0,"d":"$0.00"}},{"$f":"'2 REPAIR ESTIMATOR'!AM410","v":{"v":0,"d":"$0.00"}},{"v":0,"d":"$0.00"},{"$f":"'2 REPAIR ESTIMATOR'!AG410","v":{"v":0,"d":"$0.00"}},{"$f":"'2 REPAIR ESTIMATOR'!AJ410","v":{"v":0,"d":"$0.00"}}]
[null,null,{"$f":"T('2 REPAIR ESTIMATOR'!D411:O411)","v":"Wood Shingle Roof"},{"$nulls":5},{"$f":"'2 REPAIR ESTIMATOR'!P411","v":0},{"$f":"'2 REPAIR ESTIMATOR'!S411","v":0},{"v":0,"d":"$0"},{"v":0,"d":"$0"},{"v":0,"d":"$0"},{"v":0,"d":"$0"},null,0,null,null,{"$f":"'2 REPAIR ESTIMATOR'!AD411","v":{"v":0,"d":"$0.00"}},{"$f":"'2 REPAIR ESTIMATOR'!AM411","v":{"v":0,"d":"$0.00"}},{"v":0,"d":"$0.00"},{"$f":"'2 REPAIR ESTIMATOR'!AG411","v":{"v":0,"d":"$0.00"}},{"$f":"'2 REPAIR ESTIMATOR'!AJ411","v":{"v":0,"d":"$0.00"}}]
[null,null,{"$f":"T('2 REPAIR ESTIMATOR'!D412:O412)","v":"Roof repair/patch, wood"},{"$nulls":5},{"$f":"'2 REPAIR ESTIMATOR'!P412","v":0},{"$f":"'2 REPAIR ESTIMATOR'!S412","v":"ea"},{"v":0,"d":"$0"},{"v":0,"d":"$0"},{"v":0,"d":"$0"},{"v":0,"d":"$0"},null,0,null,null,{"$f":"'2 REPAIR ESTIMATOR'!AD412","v":{"v":0,"d":"$0.00"}},{"$f":"'2 REPAIR ESTIMATOR'!AM412","v":{"v":0,"d":"$0.00"}},{"v":0,"d":"$0.00"},{"$f":"'2 REPAIR ESTIMATOR'!AG412","v":{"v":0,"d":"$0.00"}},{"$f":"'2 REPAIR ESTIMATOR'!AJ412","v":{"v":0,"d":"$0.00"}}]
[null,null,{"$f":"T('2 REPAIR ESTIMATOR'!D413:O413)","v":"Roof replacement-demo & replace, 3-tab"},{"$nulls":5},{"$f":"'2 REPAIR ESTIMATOR'!P413","v":0},{"$f":"'2 REPAIR ESTIMATOR'!S413","v":"sq"},{"v":0,"d":"$0"},{"v":0,"d":"$0"},{"v":0,"d":"$0"},{"v":0,"d":"$0"},null,0,null,null,{"$f":"'2 REPAIR ESTIMATOR'!AD413","v":{"v":0,"d":"$0.00"}},{"$f":"'2 REPAIR ESTIMATOR'!AM413","v":{"v":0,"d":"$0.00"}},{"v":0,"d":"$0.00"},{"$f":"'2 REPAIR ESTIMATOR'!AG413","v":{"v":0,"d":"$0.00"}},{"$f":"'2 REPAIR ESTIMATOR'!AJ413","v":{"v":0,"d":"$0.00"}}]
[null,null,{"$f":"T('2 REPAIR ESTIMATOR'!D414:O414)","v":"Wood shingle, low end"},{"$nulls":5},{"$f":"'2 REPAIR ESTIMATOR'!P414","v":0},{"$f":"'2 REPAIR ESTIMATOR'!S414","v":"sq"},{"v":0,"d":"$0"},{"v":0,"d":"$0"},{"v":0,"d":"$0"},{"v":0,"d":"$0"},null,0,null,null,{"$f":"'2 REPAIR ESTIMATOR'!AD414","v":{"v":0,"d":"$0.00"}},{"$f":"'2 REPAIR ESTIMATOR'!AM414","v":{"v":0,"d":"$0.00"}},{"v":0,"d":"$0.00"},{"$f":"'2 REPAIR ESTIMATOR'!AG414","v":{"v":0,"d":"$0.00"}},{"$f":"'2 REPAIR ESTIMATOR'!AJ414","v":{"v":0,"d":"$0.00"}}]
[null,null,{"$f":"T('2 REPAIR ESTIMATOR'!D415:O415)","v":"Wood shingle, high end"},{"$nulls":5},{"$f":"'2 REPAIR ESTIMATOR'!P415","v":0},{"$f":"'2 REPAIR ESTIMATOR'!S415","v":"sq"},{"v":0,"d":"$0"},{"v":0,"d":"$0"},{"v":0,"d":"$0"},{"v":0,"d":"$0"},null,0,null,null,{"$f":"'2 REPAIR ESTIMATOR'!AD415","v":{"v":0,"d":"$0.00"}},{"$f":"'2 REPAIR ESTIMATOR'!AM415","v":{"v":0,"d":"$0.00"}},{"v":0,"d":"$0.00"},{"$f":"'2 REPAIR ESTIMATOR'!AG415","v":{"v":0,"d":"$0.00"}},{"$f":"'2 REPAIR ESTIMATOR'!AJ415","v":{"v":0,"d":"$0.00"}}]
[null,null,{"$f":"T('2 REPAIR ESTIMATOR'!D416:O416)","v":"Roof sheathing, plywood 1/2\", remove & install"},{"$nulls":5},{"$f":"'2 REPAIR ESTIMATOR'!P416","v":0},{"$f":"'2 REPAIR ESTIMATOR'!S416","v":"sheet"},{"v":0,"d":"$0"},{"v":0,"d":"$0"},{"v":0,"d":"$0"},{"v":0,"d":"$0"},null,0,null,null,{"$f":"'2 REPAIR ESTIMATOR'!AD416","v":{"v":0,"d":"$0.00"}},{"$f":"'2 REPAIR ESTIMATOR'!AM416","v":{"v":0,"d":"$0.00"}},{"v":0,"d":"$0.00"},{"$f":"'2 REPAIR ESTIMATOR'!AG416","v":{"v":0,"d":"$0.00"}},{"$f":"'2 REPAIR ESTIMATOR'!AJ416","v":{"v":0,"d":"$0.00"}}]
[null,null,{"$f":"T('2 REPAIR ESTIMATOR'!D417:O417)","v":""},{"$nulls":5},{"$f":"'2 REPAIR ESTIMATOR'!P417","v":0},{"$f":"'2 REPAIR ESTIMATOR'!S417","v":0},{"v":0,"d":"$0"},{"v":0,"d":"$0"},{"v":0,"d":"$0"},{"v":0,"d":"$0"},null,0,null,null,{"$f":"'2 REPAIR ESTIMATOR'!AD417","v":{"v":0,"d":"$0.00"}},{"$f":"'2 REPAIR ESTIMATOR'!AM417","v":{"v":0,"d":"$0.00"}},{"v":0,"d":"$0.00"},{"$f":"'2 REPAIR ESTIMATOR'!AG417","v":{"v":0,"d":"$0.00"}},{"$f":"'2 REPAIR ESTIMATOR'!AJ417","v":{"v":0,"d":"$0.00"}}]
[null,null,{"$f":"T('2 REPAIR ESTIMATOR'!D418:O418)","v":"Slate/Clay Tile"},{"$nulls":5},{"$f":"'2 REPAIR ESTIMATOR'!P418","v":0},{"$f":"'2 REPAIR ESTIMATOR'!S418","v":0},{"v":0,"d":"$0"},{"v":0,"d":"$0"},{"v":0,"d":"$0"},{"v":0,"d":"$0"},null,0,null,null,{"$f":"'2 REPAIR ESTIMATOR'!AD418","v":{"v":0,"d":"$0.00"}},{"$f":"'2 REPAIR ESTIMATOR'!AM418","v":{"v":0,"d":"$0.00"}},{"v":0,"d":"$0.00"},{"$f":"'2 REPAIR ESTIMATOR'!AG418","v":{"v":0,"d":"$0.00"}},{"$f":"'2 REPAIR ESTIMATOR'!AJ418","v":{"v":0,"d":"$0.00"}}]
[null,null,{"$f":"T('2 REPAIR ESTIMATOR'!D419:O419)","v":"Roof replacement-demo & replace, slate"},{"$nulls":5},{"$f":"'2 REPAIR ESTIMATOR'!P419","v":0},{"$f":"'2 REPAIR ESTIMATOR'!S419","v":"sq"},{"v":0,"d":"$0"},{"v":0,"d":"$0"},{"v":0,"d":"$0"},{"v":0,"d":"$0"},null,0,null,null,{"$f":"'2 REPAIR ESTIMATOR'!AD419","v":{"v":0,"d":"$0.00"}},{"$f":"'2 REPAIR ESTIMATOR'!AM419","v":{"v":0,"d":"$0.00"}},{"v":0,"d":"$0.00"},{"$f":"'2 REPAIR ESTIMATOR'!AG419","v":{"v":0,"d":"$0.00"}},{"$f":"'2 REPAIR ESTIMATOR'!AJ419","v":{"v":0,"d":"$0.00"}}]
[null,null,{"$f":"T('2 REPAIR ESTIMATOR'!D420:O420)","v":""},{"$nulls":5},{"$f":"'2 REPAIR ESTIMATOR'!P420","v":0},{"$f":"'2 REPAIR ESTIMATOR'!S420","v":0},{"v":0,"d":"$0"},{"v":0,"d":"$0"},{"v":0,"d":"$0"},{"v":0,"d":"$0"},null,0,null,null,{"$f":"'2 REPAIR ESTIMATOR'!AD420","v":{"v":0,"d":"$0.00"}},{"$f":"'2 REPAIR ESTIMATOR'!AM420","v":{"v":0,"d":"$0.00"}},{"v":0,"d":"$0.00"},{"$f":"'2 REPAIR ESTIMATOR'!AG420","v":{"v":0,"d":"$0.00"}},{"$f":"'2 REPAIR ESTIMATOR'!AJ420","v":{"v":0,"d":"$0.00"}}]
[null,null,{"$f":"T('2 REPAIR ESTIMATOR'!D421:O421)","v":"Gutters & downspouts, aluminum"},{"$nulls":5},{"$f":"'2 REPAIR ESTIMATOR'!P421","v":0},{"$f":"'2 REPAIR ESTIMATOR'!S421","v":"lf"},{"v":0,"d":"$0"},{"v":0,"d":"$0"},{"v":0,"d":"$0"},{"v":0,"d":"$0"},null,0,null,null,{"$f":"'2 REPAIR ESTIMATOR'!AD421","v":{"v":0,"d":"$0.00"}},{"$f":"'2 REPAIR ESTIMATOR'!AM421","v":{"v":0,"d":"$0.00"}},{"v":0,"d":"$0.00"},{"$f":"'2 REPAIR ESTIMATOR'!AG421","v":{"v":0,"d":"$0.00"}},{"$f":"'2 REPAIR ESTIMATOR'!AJ421","v":{"v":0,"d":"$0.00"}}]
[null,null,{"$f":"T('2 REPAIR ESTIMATOR'!D422:O422)","v":"Clean gutters & downspouts"},{"$nulls":5},{"$f":"'2 REPAIR ESTIMATOR'!P422","v":0},{"$f":"'2 REPAIR ESTIMATOR'!S422","v":"hrs"},{"v":0,"d":"$0"},{"v":0,"d":"$0"},{"v":0,"d":"$0"},{"v":0,"d":"$0"},null,0,null,null,{"$f":"'2 REPAIR ESTIMATOR'!AD422","v":{"v":0,"d":"$0.00"}},{"$f":"'2 REPAIR ESTIMATOR'!AM422","v":{"v":0,"d":"$0.00"}},{"v":0,"d":"$0.00"},{"$f":"'2 REPAIR ESTIMATOR'!AG422","v":{"v":0,"d":"$0.00"}},{"$f":"'2 REPAIR ESTIMATOR'!AJ422","v":{"v":0,"d":"$0.00"}}]
[null,null,{"$f":"T('2 REPAIR ESTIMATOR'!D423:O423)","v":""},{"$nulls":5},{"$f":"'2 REPAIR ESTIMATOR'!P423","v":0},{"$f":"'2 REPAIR ESTIMATOR'!S423","v":0},{"v":0,"d":"$0"},{"v":0,"d":"$0"},{"v":0,"d":"$0"},{"v":0,"d":"$0"},null,{"$f":"I394","v":0},null,null,{"$f":"'2 REPAIR ESTIMATOR'!AD423","v":{"v":0,"d":"$0.00"}},{"$f":"'2 REPAIR ESTIMATOR'!AM423","v":{"v":0,"d":"$0.00"}},{"v":0,"d":"$0.00"},{"$f":"'2 REPAIR ESTIMATOR'!AG423","v":{"v":0,"d":"$0.00"}},{"$f":"'2 REPAIR ESTIMATOR'!AJ423","v":{"v":0,"d":"$0.00"}}]
[null,null,{"$f":"T('2 REPAIR ESTIMATOR'!D424:O424)","v":""},{"$nulls":5},{"$f":"'2 REPAIR ESTIMATOR'!P424","v":0},{"$f":"'2 REPAIR ESTIMATOR'!S424","v":0},{"v":0,"d":"$0"},{"v":0,"d":"$0"},{"v":0,"d":"$0"},{"v":0,"d":"$0"},null,0,null,null,{"$f":"'2 REPAIR ESTIMATOR'!AD424","v":{"v":0,"d":"$0.00"}},{"$f":"'2 REPAIR ESTIMATOR'!AM424","v":{"v":0,"d":"$0.00"}},{"v":0,"d":"$0.00"},{"$f":"'2 REPAIR ESTIMATOR'!AG424","v":{"v":0,"d":"$0.00"}},{"$f":"'2 REPAIR ESTIMATOR'!AJ424","v":{"v":0,"d":"$0.00"}}]
[null,null,{"$f":"T('2 REPAIR ESTIMATOR'!D425:O425)","v":""},{"$nulls":5},{"$f":"'2 REPAIR ESTIMATOR'!P425","v":0},{"$f":"'2 REPAIR ESTIMATOR'!S425","v":0},{"v":0,"d":"$0"},{"v":0,"d":"$0"},{"v":0,"d":"$0"},{"v":0,"d":"$0"},null,0,null,null,{"$f":"'2 REPAIR ESTIMATOR'!AD425","v":{"v":0,"d":"$0.00"}},{"$f":"'2 REPAIR ESTIMATOR'!AM425","v":{"v":0,"d":"$0.00"}},{"v":0,"d":"$0.00"},{"$f":"'2 REPAIR ESTIMATOR'!AG425","v":{"v":0,"d":"$0.00"}},{"$f":"'2 REPAIR ESTIMATOR'!AJ425","v":{"v":0,"d":"$0.00"}}]
[null,null,{"$f":"T('2 REPAIR ESTIMATOR'!D426:O426)","v":""},{"$nulls":5},{"$f":"'2 REPAIR ESTIMATOR'!P426","v":0},{"$f":"'2 REPAIR ESTIMATOR'!S426","v":0},{"v":0,"d":"$0"},{"v":0,"d":"$0"},{"v":0,"d":"$0"},{"v":0,"d":"$0"},null,0,null,null,{"$f":"'2 REPAIR ESTIMATOR'!AD426","v":{"v":0,"d":"$0.00"}},{"$f":"'2 REPAIR ESTIMATOR'!AM426","v":{"v":0,"d":"$0.00"}},{"v":0,"d":"$0.00"},{"$f":"'2 REPAIR ESTIMATOR'!AG426","v":{"v":0,"d":"$0.00"}},{"$f":"'2 REPAIR ESTIMATOR'!AJ426","v":{"v":0,"d":"$0.00"}}]
[null,null,{"$f":"T('2 REPAIR ESTIMATOR'!D427:O427)","v":""},{"$nulls":5},{"$f":"'2 REPAIR ESTIMATOR'!P427","v":0},{"$f":"'2 REPAIR ESTIMATOR'!S427","v":0},{"v":0,"d":"$0"},{"v":0,"d":"$0"},{"v":0,"d":"$0"},{"v":0,"d":"$0"},null,0,null,null,{"$f":"'2 REPAIR ESTIMATOR'!AD427","v":{"v":0,"d":"$0.00"}},{"$f":"'2 REPAIR ESTIMATOR'!AM427","v":{"v":0,"d":"$0.00"}},{"v":0,"d":"$0.00"},{"$f":"'2 REPAIR ESTIMATOR'!AG427","v":{"v":0,"d":"$0.00"}},{"$f":"'2 REPAIR ESTIMATOR'!AJ427","v":{"v":0,"d":"$0.00"}}]
[null,null,{"$f":"T('2 REPAIR ESTIMATOR'!D428:O428)","v":""},{"$nulls":5},{"$f":"'2 REPAIR ESTIMATOR'!P428","v":0},{"$f":"'2 REPAIR ESTIMATOR'!S428","v":0},{"v":0,"d":"$0"},{"v":0,"d":"$0"},{"v":0,"d":"$0"},{"v":0,"d":"$0"},null,0,null,null,{"$f":"'2 REPAIR ESTIMATOR'!AD428","v":{"v":0,"d":"$0.00"}},{"$f":"'2 REPAIR ESTIMATOR'!AM428","v":{"v":0,"d":"$0.00"}},{"v":0,"d":"$0.00"},{"$f":"'2 REPAIR ESTIMATOR'!AG428","v":{"v":0,"d":"$0.00"}},{"$f":"'2 REPAIR ESTIMATOR'!AJ428","v":{"v":0,"d":"$0.00"}}]
[null,null,{"$f":"T('2 REPAIR ESTIMATOR'!D429:O429)","v":""},{"$nulls":5},{"$f":"'2 REPAIR ESTIMATOR'!P429","v":0},{"$f":"'2 REPAIR ESTIMATOR'!S429","v":0},{"v":0,"d":"$0"},{"v":0,"d":"$0"},{"v":0,"d":"$0"},{"v":0,"d":"$0"},null,0,null,null,{"$f":"'2 REPAIR ESTIMATOR'!AD429","v":{"v":0,"d":"$0.00"}},{"$f":"'2 REPAIR ESTIMATOR'!AM429","v":{"v":0,"d":"$0.00"}},{"v":0,"d":"$0.00"},{"$f":"'2 REPAIR ESTIMATOR'!AG429","v":{"v":0,"d":"$0.00"}},{"$f":"'2 REPAIR ESTIMATOR'!AJ429","v":{"v":0,"d":"$0.00"}}]
[null,null,{"$f":"T('2 REPAIR ESTIMATOR'!D430:O430)","v":""},{"$nulls":5},{"$f":"'2 REPAIR ESTIMATOR'!P430","v":0},{"$f":"'2 REPAIR ESTIMATOR'!S430","v":0},{"v":0,"d":"$0"},{"v":0,"d":"$0"},{"v":0,"d":"$0"},{"v":0,"d":"$0"},null,0,null,null,{"$f":"'2 REPAIR ESTIMATOR'!AD430","v":{"v":0,"d":"$0.00"}},{"$f":"'2 REPAIR ESTIMATOR'!AM430","v":{"v":0,"d":"$0.00"}},{"v":0,"d":"$0.00"},{"$f":"'2 REPAIR ESTIMATOR'!AG430","v":{"v":0,"d":"$0.00"}},{"$f":"'2 REPAIR ESTIMATOR'!AJ430","v":{"v":0,"d":"$0.00"}}]
[null,null,{"$f":"T('2 REPAIR ESTIMATOR'!D431:O431)","v":""},{"$nulls":5},{"$f":"'2 REPAIR ESTIMATOR'!P431","v":0},{"$f":"'2 REPAIR ESTIMATOR'!S431","v":0},{"v":0,"d":"$0"},{"v":0,"d":"$0"},{"v":0,"d":"$0"},{"v":0,"d":"$0"},null,0,null,null,{"$f":"'2 REPAIR ESTIMATOR'!AD431","v":{"v":0,"d":"$0.00"}},{"$f":"'2 REPAIR ESTIMATOR'!AM431","v":{"v":0,"d":"$0.00"}},{"v":0,"d":"$0.00"},{"$f":"'2 REPAIR ESTIMATOR'!AG431","v":{"v":0,"d":"$0.00"}},{"$f":"'2 REPAIR ESTIMATOR'!AJ431","v":{"v":0,"d":"$0.00"}}]
[null,null,{"$f":"T('2 REPAIR ESTIMATOR'!D432:O432)","v":""},{"$nulls":5},{"$f":"'2 REPAIR ESTIMATOR'!P432","v":0},{"$f":"'2 REPAIR ESTIMATOR'!S432","v":0},{"v":0,"d":"$0"},{"v":0,"d":"$0"},{"v":0,"d":"$0"},{"v":0,"d":"$0"},null,0,null,null,{"$f":"'2 REPAIR ESTIMATOR'!AD432","v":{"v":0,"d":"$0.00"}},{"$f":"'2 REPAIR ESTIMATOR'!AM432","v":{"v":0,"d":"$0.00"}},{"v":0,"d":"$0.00"},{"$f":"'2 REPAIR ESTIMATOR'!AG432","v":{"v":0,"d":"$0.00"}},{"$f":"'2 REPAIR ESTIMATOR'!AJ432","v":{"v":0,"d":"$0.00"}}]
[null,null,{"$f":"T('2 REPAIR ESTIMATOR'!D433:O433)","v":""},{"$nulls":5},{"$f":"'2 REPAIR ESTIMATOR'!P433","v":0},{"$f":"'2 REPAIR ESTIMATOR'!S433","v":0},{"v":0,"d":"$0"},{"v":0,"d":"$0"},{"v":0,"d":"$0"},{"v":0,"d":"$0"},null,0,null,null,{"$f":"'2 REPAIR ESTIMATOR'!AD433","v":{"v":0,"d":"$0.00"}},{"$f":"'2 REPAIR ESTIMATOR'!AM433","v":{"v":0,"d":"$0.00"}},{"v":0,"d":"$0.00"},{"$f":"'2 REPAIR ESTIMATOR'!AG433","v":{"v":0,"d":"$0.00"}},{"$f":"'2 REPAIR ESTIMATOR'!AJ433","v":{"v":0,"d":"$0.00"}}]
[null,null,{"$f":"T('2 REPAIR ESTIMATOR'!D434:O434)","v":""},{"$nulls":5},{"$f":"'2 REPAIR ESTIMATOR'!P434","v":0},{"$f":"'2 REPAIR ESTIMATOR'!S434","v":0},{"v":0,"d":"$0"},{"v":0,"d":"$0"},{"v":0,"d":"$0"},{"v":0,"d":"$0"},null,0,null,null,{"$f":"'2 REPAIR ESTIMATOR'!AD434","v":{"v":0,"d":"$0.00"}},{"$f":"'2 REPAIR ESTIMATOR'!AM434","v":{"v":0,"d":"$0.00"}},{"v":0,"d":"$0.00"},{"$f":"'2 REPAIR ESTIMATOR'!AG434","v":{"v":0,"d":"$0.00"}},{"$f":"'2 REPAIR ESTIMATOR'!AJ434","v":{"v":0,"d":"$0.00"}}]
[null,null,{"$f":"T('2 REPAIR ESTIMATOR'!D435:O435)","v":""},{"$nulls":5},{"$f":"'2 REPAIR ESTIMATOR'!P435","v":0},{"$f":"'2 REPAIR ESTIMATOR'!S435","v":0},{"v":0,"d":"$0"},{"v":0,"d":"$0"},{"v":0,"d":"$0"},{"v":0,"d":"$0"},null,0,null,null,{"$f":"'2 REPAIR ESTIMATOR'!AD435","v":{"v":0,"d":"$0.00"}},{"$f":"'2 REPAIR ESTIMATOR'!AM435","v":{"v":0,"d":"$0.00"}},{"v":0,"d":"$0.00"},{"$f":"'2 REPAIR ESTIMATOR'!AG435","v":{"v":0,"d":"$0.00"}},{"$f":"'2 REPAIR ESTIMATOR'!AJ435","v":{"v":0,"d":"$0.00"}}]
[null,null,{"$f":"T('2 REPAIR ESTIMATOR'!D436:O436)","v":""},{"$nulls":5},{"$f":"'2 REPAIR ESTIMATOR'!P436","v":0},{"$f":"'2 REPAIR ESTIMATOR'!S436","v":0},{"v":0,"d":"$0"},{"v":0,"d":"$0"},{"v":0,"d":"$0"},{"v":0,"d":"$0"},null,0,null,null,{"$f":"'2 REPAIR ESTIMATOR'!AD436","v":{"v":0,"d":"$0.00"}},{"$f":"'2 REPAIR ESTIMATOR'!AM436","v":{"v":0,"d":"$0.00"}},{"v":0,"d":"$0.00"},{"$f":"'2 REPAIR ESTIMATOR'!AG436","v":{"v":0,"d":"$0.00"}},{"$f":"'2 REPAIR ESTIMATOR'!AJ436","v":{"v":0,"d":"$0.00"}}]
[null,null,{"$f":"T('2 REPAIR ESTIMATOR'!D437:O437)","v":""},{"$nulls":5},{"$f":"'2 REPAIR ESTIMATOR'!P437","v":0},{"$f":"'2 REPAIR ESTIMATOR'!S437","v":0},{"v":0,"d":"$0"},{"v":0,"d":"$0"},{"v":0,"d":"$0"},{"v":0,"d":"$0"},null,0,null,null,{"$f":"'2 REPAIR ESTIMATOR'!AD437","v":{"v":0,"d":"$0.00"}},{"$f":"'2 REPAIR ESTIMATOR'!AM437","v":{"v":0,"d":"$0.00"}},{"v":0,"d":"$0.00"},{"$f":"'2 REPAIR ESTIMATOR'!AG437","v":{"v":0,"d":"$0.00"}},{"$f":"'2 REPAIR ESTIMATOR'!AJ437","v":{"v":0,"d":"$0.00"}}]
[null,null,{"$f":"T('2 REPAIR ESTIMATOR'!D438:O438)","v":""},{"$nulls":5},{"$f":"'2 REPAIR ESTIMATOR'!P438","v":0},{"$f":"'2 REPAIR ESTIMATOR'!S438","v":0},{"v":0,"d":"$0"},{"v":0,"d":"$0"},{"v":0,"d":"$0"},{"v":0,"d":"$0"},null,0,null,null,{"$f":"'2 REPAIR ESTIMATOR'!AD438","v":{"v":0,"d":"$0.00"}},{"$f":"'2 REPAIR ESTIMATOR'!AM438","v":{"v":0,"d":"$0.00"}},{"v":0,"d":"$0.00"},{"$f":"'2 REPAIR ESTIMATOR'!AG438","v":{"v":0,"d":"$0.00"}},{"$f":"'2 REPAIR ESTIMATOR'!AJ438","v":{"v":0,"d":"$0.00"}}]
[null,null,{"$f":"T('2 REPAIR ESTIMATOR'!D439:O439)","v":""},{"$nulls":5},{"$f":"'2 REPAIR ESTIMATOR'!P439","v":0},{"$f":"'2 REPAIR ESTIMATOR'!S439","v":0},{"v":0,"d":"$0"},{"v":0,"d":"$0"},{"v":0,"d":"$0"},{"v":0,"d":"$0"},null,0,null,null,{"$f":"'2 REPAIR ESTIMATOR'!AD439","v":{"v":0,"d":"$0.00"}},{"$f":"'2 REPAIR ESTIMATOR'!AM439","v":{"v":0,"d":"$0.00"}},{"v":0,"d":"$0.00"},{"$f":"'2 REPAIR ESTIMATOR'!AG439","v":{"v":0,"d":"$0.00"}},{"$f":"'2 REPAIR ESTIMATOR'!AJ439","v":{"v":0,"d":"$0.00"}}]
[null,null,{"$f":"T('2 REPAIR ESTIMATOR'!D440:O440)","v":""},{"$nulls":5},{"$f":"'2 REPAIR ESTIMATOR'!P440","v":0},{"$f":"'2 REPAIR ESTIMATOR'!S440","v":0},{"v":0,"d":"$0"},{"v":0,"d":"$0"},{"v":0,"d":"$0"},{"v":0,"d":"$0"},null,0,null,null,{"$f":"'2 REPAIR ESTIMATOR'!AD440","v":{"v":0,"d":"$0.00"}},{"$f":"'2 REPAIR ESTIMATOR'!AM440","v":{"v":0,"d":"$0.00"}},{"v":0,"d":"$0.00"},{"$f":"'2 REPAIR ESTIMATOR'!AG440","v":{"v":0,"d":"$0.00"}},{"$f":"'2 REPAIR ESTIMATOR'!AJ440","v":{"v":0,"d":"$0.00"}}]
[null,null,{"$f":"T('2 REPAIR ESTIMATOR'!D441:O441)","v":""},{"$nulls":5},{"$f":"'2 REPAIR ESTIMATOR'!P441","v":0},{"$f":"'2 REPAIR ESTIMATOR'!S441","v":0},{"v":0,"d":"$0"},{"v":0,"d":"$0"},{"v":0,"d":"$0"},{"v":0,"d":"$0"},null,0,null,null,{"$f":"'2 REPAIR ESTIMATOR'!AD441","v":{"v":0,"d":"$0.00"}},{"$f":"'2 REPAIR ESTIMATOR'!AM441","v":{"v":0,"d":"$0.00"}},{"v":0,"d":"$0.00"},{"$f":"'2 REPAIR ESTIMATOR'!AG441","v":{"v":0,"d":"$0.00"}},{"$f":"'2 REPAIR ESTIMATOR'!AJ441","v":{"v":0,"d":"$0.00"}}]
[null,null,{"$f":"T('2 REPAIR ESTIMATOR'!D442:O442)","v":""},{"$nulls":5},{"$f":"'2 REPAIR ESTIMATOR'!P442","v":0},{"$f":"'2 REPAIR ESTIMATOR'!S442","v":0},{"v":0,"d":"$0"},{"v":0,"d":"$0"},{"v":0,"d":"$0"},{"v":0,"d":"$0"},null,0,null,null,{"$f":"'2 REPAIR ESTIMATOR'!AD442","v":{"v":0,"d":"$0.00"}},{"$f":"'2 REPAIR ESTIMATOR'!AM442","v":{"v":0,"d":"$0.00"}},{"v":0,"d":"$0.00"},{"$f":"'2 REPAIR ESTIMATOR'!AG442","v":{"v":0,"d":"$0.00"}},{"$f":"'2 REPAIR ESTIMATOR'!AJ442","v":{"v":0,"d":"$0.00"}}]
[null,null,{"$f":"T('2 REPAIR ESTIMATOR'!AC444)","v":"ROOFING TOTAL"},{"$nulls":7},{"$f":"SUM(K374:K413)","v":{"v":3000,"d":"$3,000"}},{"$f":"SUM(L374:L413)","v":{"v":2461,"d":"$2,461"}},{"$f":"SUM(M374:M413)","v":{"v":0,"d":"$0"}},{"$f":"SUM(N374:O413)","v":{"v":5461,"d":"$5,461"}},null,{"$f":"SUM(P373:P386)","v":40},null,null,{"$f":"SUM(S374:S413)","v":{"v":3000,"d":"$3,000.00"}},{"$f":"SUM(T374:T413)","v":{"v":0,"d":"$0.00"}},{"$f":"SUM(U374:U413)","v":{"v":3000,"d":"$3,000.00"}},{"$f":"SUM(V374:V413)","v":{"v":2461,"d":"$2,461.00"}},{"$f":"SUM(W374:W413)","v":{"v":0,"d":"$0.00"}}]
[{"$nulls":15},{"$f":"P414","v":40}]
[null,null,{"$f":"T('2 REPAIR ESTIMATOR'!D447:O447)","v":"EXTERIOR DOORS & WINDOWS"},{"$nulls":5},{"$f":"SUM(I417:I456)","v":18},{"$nulls":6},{"$f":"I416","v":18}]
[null,null,{"$f":"T('2 REPAIR ESTIMATOR'!D448:O448)","v":"Exterior Doors"},{"$nulls":5},{"$f":"'2 REPAIR ESTIMATOR'!P448","v":0},{"$f":"'2 REPAIR ESTIMATOR'!S448","v":0},{"$f":"IF($N$3=\"subbed\",U417,S417)*$S$70","v":{"v":0,"d":"$0"}},{"$f":"V417*$S$70","v":{"v":0,"d":"$0"}},{"$f":"W417*$S$70","v":{"v":0,"d":"$0"}},{"$f":"SUM(K417:M417)","v":{"v":0,"d":"$0"}},null,0,null,null,{"$f":"'2 REPAIR ESTIMATOR'!AD448","v":{"v":0,"d":"$0.00"}},{"$f":"'2 REPAIR ESTIMATOR'!AM448","v":{"v":0,"d":"$0.00"}},{"$f":"T417+S417","v":{"v":0,"d":"$0.00"}},{"$f":"'2 REPAIR ESTIMATOR'!AG448","v":{"v":0,"d":"$0.00"}},{"$f":"'2 REPAIR ESTIMATOR'!AJ448","v":{"v":0,"d":"$0.00"}}]
[null,null,{"$f":"T('2 REPAIR ESTIMATOR'!D449:O449)","v":"Exterior doors bid/allowance"},{"$nulls":5},{"$f":"'2 REPAIR ESTIMATOR'!P449","v":0},{"$f":"'2 REPAIR ESTIMATOR'!S449","v":"ls"},{"v":0,"d":"$0"},{"$f":"V418*$S$70","v":{"v":0,"d":"$0"}},{"$f":"W418*$S$70","v":{"v":0,"d":"$0"}},{"$f":"SUM(K418:M418)","v":{"v":0,"d":"$0"}},null,0,null,null,{"$f":"'2 REPAIR ESTIMATOR'!AD449","v":{"v":0,"d":"$0.00"}},{"$f":"'2 REPAIR ESTIMATOR'!AM449","v":{"v":0,"d":"$0.00"}},{"$f":"T418+S418","v":{"v":0,"d":"$0.00"}},{"$f":"'2 REPAIR ESTIMATOR'!AG449","v":{"v":0,"d":"$0.00"}},{"$f":"'2 REPAIR ESTIMATOR'!AJ449","v":{"v":0,"d":"$0.00"}}]
[null,null,{"$f":"T('2 REPAIR ESTIMATOR'!D450:O450)","v":"Steel entry door,  single"},{"$nulls":5},{"$f":"'2 REPAIR ESTIMATOR'!P450","v":3},{"$f":"'2 REPAIR ESTIMATOR'!S450","v":"ea"},{"v":600,"d":"$600"},{"v":802.5,"d":"$803"},{"v":0,"d":"$0"},{"v":1402.5,"d":"$1,403"},null,3,null,null,{"$f":"'2 REPAIR ESTIMATOR'!AD450","v":{"v":600,"d":"$600.00"}},{"$f":"'2 REPAIR ESTIMATOR'!AM450","v":{"v":0,"d":"$0.00"}},{"v":600,"d":"$600.00"},{"$f":"'2 REPAIR ESTIMATOR'!AG450","v":{"v":802.5,"d":"$802.50"}},{"$f":"'2 REPAIR ESTIMATOR'!AJ450","v":{"v":0,"d":"$0.00"}}]
[null,null,{"$f":"T('2 REPAIR ESTIMATOR'!D451:O451)","v":"French patio door, pair"},{"$nulls":5},{"$f":"'2 REPAIR ESTIMATOR'!P451","v":0},{"$f":"'2 REPAIR ESTIMATOR'!S451","v":"ea"},{"v":0,"d":"$0"},{"v":0,"d":"$0"},{"v":0,"d":"$0"},{"v":0,"d":"$0"},null,0,null,null,{"$f":"'2 REPAIR ESTIMATOR'!AD451","v":{"v":0,"d":"$0.00"}},{"$f":"'2 REPAIR ESTIMATOR'!AM451","v":{"v":0,"d":"$0.00"}},{"v":0,"d":"$0.00"},{"$f":"'2 REPAIR ESTIMATOR'!AG451","v":{"v":0,"d":"$0.00"}},{"$f":"'2 REPAIR ESTIMATOR'!AJ451","v":{"v":0,"d":"$0.00"}}]
[null,null,{"$f":"T('2 REPAIR ESTIMATOR'!D452:O452)","v":"Exterior door hardware w/ dead bolt "},{"$nulls":5},{"$f":"'2 REPAIR ESTIMATOR'!P452","v":3},{"$f":"'2 REPAIR ESTIMATOR'!S452","v":"ea"},{"v":75,"d":"$75"},{"v":80.25,"d":"$80"},{"v":0,"d":"$0"},{"v":155.25,"d":"$155"},null,3,null,null,{"$f":"'2 REPAIR ESTIMATOR'!AD452","v":{"v":75,"d":"$75.00"}},{"$f":"'2 REPAIR ESTIMATOR'!AM452","v":{"v":0,"d":"$0.00"}},{"v":75,"d":"$75.00"},{"$f":"'2 REPAIR ESTIMATOR'!AG452","v":{"v":80.25,"d":"$80.25"}},{"$f":"'2 REPAIR ESTIMATOR'!AJ452","v":{"v":0,"d":"$0.00"}}]
[null,null,{"$f":"T('2 REPAIR ESTIMATOR'!D453:O453)","v":"Glass storm door, single"},{"$nulls":5},{"$f":"'2 REPAIR ESTIMATOR'!P453","v":1},{"$f":"'2 REPAIR ESTIMATOR'!S453","v":"ea"},{"v":125,"d":"$125"},{"v":267.5,"d":"$268"},{"v":0,"d":"$0"},{"v":392.5,"d":"$393"},null,1,null,null,{"$f":"'2 REPAIR ESTIMATOR'!AD453","v":{"v":125,"d":"$125.00"}},{"$f":"'2 REPAIR ESTIMATOR'!AM453","v":{"v":0,"d":"$0.00"}},{"v":125,"d":"$125.00"},{"$f":"'2 REPAIR ESTIMATOR'!AG453","v":{"v":267.5,"d":"$267.50"}},{"$f":"'2 REPAIR ESTIMATOR'!AJ453","v":{"v":0,"d":"$0.00"}}]
[null,null,{"$f":"T('2 REPAIR ESTIMATOR'!D454:O454)","v":"Sliding glass door, vinyl, double"},{"$nulls":5},{"$f":"'2 REPAIR ESTIMATOR'!P454","v":0},{"$f":"'2 REPAIR ESTIMATOR'!S454","v":"ea"},{"v":0,"d":"$0"},{"v":0,"d":"$0"},{"v":0,"d":"$0"},{"v":0,"d":"$0"},null,0,null,null,{"$f":"'2 REPAIR ESTIMATOR'!AD454","v":{"v":0,"d":"$0.00"}},{"$f":"'2 REPAIR ESTIMATOR'!AM454","v":{"v":0,"d":"$0.00"}},{"v":0,"d":"$0.00"},{"$f":"'2 REPAIR ESTIMATOR'!AG454","v":{"v":0,"d":"$0.00"}},{"$f":"'2 REPAIR ESTIMATOR'!AJ454","v":{"v":0,"d":"$0.00"}}]
[null,null,{"$f":"T('2 REPAIR ESTIMATOR'!D455:O455)","v":""},{"$nulls":5},{"$f":"'2 REPAIR ESTIMATOR'!P455","v":0},{"$f":"'2 REPAIR ESTIMATOR'!S455","v":0},{"v":0,"d":"$0"},{"v":0,"d":"$0"},{"v":0,"d":"$0"},{"v":0,"d":"$0"},null,0,null,null,{"$f":"'2 REPAIR ESTIMATOR'!AD455","v":{"v":0,"d":"$0.00"}},{"$f":"'2 REPAIR ESTIMATOR'!AM455","v":{"v":0,"d":"$0.00"}},{"v":0,"d":"$0.00"},{"$f":"'2 REPAIR ESTIMATOR'!AG455","v":{"v":0,"d":"$0.00"}},{"$f":"'2 REPAIR ESTIMATOR'!AJ455","v":{"v":0,"d":"$0.00"}}]
[null,null,{"$f":"T('2 REPAIR ESTIMATOR'!D456:O456)","v":""},{"$nulls":5},{"$f":"'2 REPAIR ESTIMATOR'!P456","v":0},{"$f":"'2 REPAIR ESTIMATOR'!S456","v":0},{"v":0,"d":"$0"},{"v":0,"d":"$0"},{"v":0,"d":"$0"},{"v":0,"d":"$0"},null,0,null,null,{"$f":"'2 REPAIR ESTIMATOR'!AD456","v":{"v":0,"d":"$0.00"}},{"$f":"'2 REPAIR ESTIMATOR'!AM456","v":{"v":0,"d":"$0.00"}},{"v":0,"d":"$0.00"},{"$f":"'2 REPAIR ESTIMATOR'!AG456","v":{"v":0,"d":"$0.00"}},{"$f":"'2 REPAIR ESTIMATOR'!AJ456","v":{"v":0,"d":"$0.00"}}]
[null,null,{"$f":"T('2 REPAIR ESTIMATOR'!D457:O457)","v":"Windows"},{"$nulls":5},{"$f":"'2 REPAIR ESTIMATOR'!P457","v":0},{"$f":"'2 REPAIR ESTIMATOR'!S457","v":0},{"v":0,"d":"$0"},{"v":0,"d":"$0"},{"v":0,"d":"$0"},{"v":0,"d":"$0"},null,0,null,null,{"$f":"'2 REPAIR ESTIMATOR'!AD457","v":{"v":0,"d":"$0.00"}},{"$f":"'2 REPAIR ESTIMATOR'!AM457","v":{"v":0,"d":"$0.00"}},{"v":0,"d":"$0.00"},{"$f":"'2 REPAIR ESTIMATOR'!AG457","v":{"v":0,"d":"$0.00"}},{"$f":"'2 REPAIR ESTIMATOR'!AJ457","v":{"v":0,"d":"$0.00"}}]
[null,null,{"$f":"T('2 REPAIR ESTIMATOR'!D458:O458)","v":"New windows, vinyl, average size"},{"$nulls":5},{"$f":"'2 REPAIR ESTIMATOR'!P458","v":11},{"$f":"'2 REPAIR ESTIMATOR'!S458","v":"ea"},{"v":825,"d":"$825"},{"v":2059.75,"d":"$2,060"},{"v":0,"d":"$0"},{"v":2884.75,"d":"$2,885"},null,11,null,null,{"$f":"'2 REPAIR ESTIMATOR'!AD458","v":{"v":825,"d":"$825.00"}},{"$f":"'2 REPAIR ESTIMATOR'!AM458","v":{"v":0,"d":"$0.00"}},{"v":825,"d":"$825.00"},{"$f":"'2 REPAIR ESTIMATOR'!AG458","v":{"v":2059.75,"d":"$2,059.75"}},{"$f":"'2 REPAIR ESTIMATOR'!AJ458","v":{"v":0,"d":"$0.00"}}]
[null,null,{"$f":"T('2 REPAIR ESTIMATOR'!D459:O459)","v":"Replacement windows, vinyl, average size"},{"$nulls":5},{"$f":"'2 REPAIR ESTIMATOR'!P459","v":0},{"$f":"'2 REPAIR ESTIMATOR'!S459","v":"ea"},{"v":0,"d":"$0"},{"v":0,"d":"$0"},{"v":0,"d":"$0"},{"v":0,"d":"$0"},null,0,null,null,{"$f":"'2 REPAIR ESTIMATOR'!AD459","v":{"v":0,"d":"$0.00"}},{"$f":"'2 REPAIR ESTIMATOR'!AM459","v":{"v":0,"d":"$0.00"}},{"v":0,"d":"$0.00"},{"$f":"'2 REPAIR ESTIMATOR'!AG459","v":{"v":0,"d":"$0.00"}},{"$f":"'2 REPAIR ESTIMATOR'!AJ459","v":{"v":0,"d":"$0.00"}}]
[null,null,{"$f":"T('2 REPAIR ESTIMATOR'!D460:O460)","v":"Wood windows, average size"},{"$nulls":5},{"$f":"'2 REPAIR ESTIMATOR'!P460","v":0},{"$f":"'2 REPAIR ESTIMATOR'!S460","v":"ea"},{"v":0,"d":"$0"},{"v":0,"d":"$0"},{"v":0,"d":"$0"},{"v":0,"d":"$0"},null,0,null,null,{"$f":"'2 REPAIR ESTIMATOR'!AD460","v":{"v":0,"d":"$0.00"}},{"$f":"'2 REPAIR ESTIMATOR'!AM460","v":{"v":0,"d":"$0.00"}},{"v":0,"d":"$0.00"},{"$f":"'2 REPAIR ESTIMATOR'!AG460","v":{"v":0,"d":"$0.00"}},{"$f":"'2 REPAIR ESTIMATOR'!AJ460","v":{"v":0,"d":"$0.00"}}]
[null,null,{"$f":"T('2 REPAIR ESTIMATOR'!D461:O461)","v":"Replace broken window pane"},{"$nulls":5},{"$f":"'2 REPAIR ESTIMATOR'!P461","v":0},{"$f":"'2 REPAIR ESTIMATOR'!S461","v":"ea"},{"v":0,"d":"$0"},{"v":0,"d":"$0"},{"v":0,"d":"$0"},{"v":0,"d":"$0"},null,0,null,null,{"$f":"'2 REPAIR ESTIMATOR'!AD461","v":{"v":0,"d":"$0.00"}},{"$f":"'2 REPAIR ESTIMATOR'!AM461","v":{"v":0,"d":"$0.00"}},{"v":0,"d":"$0.00"},{"$f":"'2 REPAIR ESTIMATOR'!AG461","v":{"v":0,"d":"$0.00"}},{"$f":"'2 REPAIR ESTIMATOR'!AJ461","v":{"v":0,"d":"$0.00"}}]
[null,null,{"$f":"T('2 REPAIR ESTIMATOR'!D462:O462)","v":"Replace broken screens"},{"$nulls":5},{"$f":"'2 REPAIR ESTIMATOR'!P462","v":0},{"$f":"'2 REPAIR ESTIMATOR'!S462","v":"ea"},{"v":0,"d":"$0"},{"v":0,"d":"$0"},{"v":0,"d":"$0"},{"v":0,"d":"$0"},null,0,null,null,{"$f":"'2 REPAIR ESTIMATOR'!AD462","v":{"v":0,"d":"$0.00"}},{"$f":"'2 REPAIR ESTIMATOR'!AM462","v":{"v":0,"d":"$0.00"}},{"v":0,"d":"$0.00"},{"$f":"'2 REPAIR ESTIMATOR'!AG462","v":{"v":0,"d":"$0.00"}},{"$f":"'2 REPAIR ESTIMATOR'!AJ462","v":{"v":0,"d":"$0.00"}}]
[null,null,{"$f":"T('2 REPAIR ESTIMATOR'!D463:O463)","v":"Repair broken screens"},{"$nulls":5},{"$f":"'2 REPAIR ESTIMATOR'!P463","v":0},{"$f":"'2 REPAIR ESTIMATOR'!S463","v":"ea"},{"v":0,"d":"$0"},{"v":0,"d":"$0"},{"v":0,"d":"$0"},{"v":0,"d":"$0"},null,0,null,null,{"$f":"'2 REPAIR ESTIMATOR'!AD463","v":{"v":0,"d":"$0.00"}},{"$f":"'2 REPAIR ESTIMATOR'!AM463","v":{"v":0,"d":"$0.00"}},{"v":0,"d":"$0.00"},{"$f":"'2 REPAIR ESTIMATOR'!AG463","v":{"v":0,"d":"$0.00"}},{"$f":"'2 REPAIR ESTIMATOR'!AJ463","v":{"v":0,"d":"$0.00"}}]
[null,null,{"$f":"T('2 REPAIR ESTIMATOR'!D464:O464)","v":"Skylight, 3x3, fixed"},{"$nulls":5},{"$f":"'2 REPAIR ESTIMATOR'!P464","v":0},{"$f":"'2 REPAIR ESTIMATOR'!S464","v":"ea"},{"v":0,"d":"$0"},{"v":0,"d":"$0"},{"v":0,"d":"$0"},{"v":0,"d":"$0"},null,0,null,null,{"$f":"'2 REPAIR ESTIMATOR'!AD464","v":{"v":0,"d":"$0.00"}},{"$f":"'2 REPAIR ESTIMATOR'!AM464","v":{"v":0,"d":"$0.00"}},{"v":0,"d":"$0.00"},{"$f":"'2 REPAIR ESTIMATOR'!AG464","v":{"v":0,"d":"$0.00"}},{"$f":"'2 REPAIR ESTIMATOR'!AJ464","v":{"v":0,"d":"$0.00"}}]
[null,null,{"$f":"T('2 REPAIR ESTIMATOR'!D465:O465)","v":"Skylight, operable"},{"$nulls":5},{"$f":"'2 REPAIR ESTIMATOR'!P465","v":0},{"$f":"'2 REPAIR ESTIMATOR'!S465","v":"ea"},{"v":0,"d":"$0"},{"v":0,"d":"$0"},{"v":0,"d":"$0"},{"v":0,"d":"$0"},null,0,null,null,{"$f":"'2 REPAIR ESTIMATOR'!AD465","v":{"v":0,"d":"$0.00"}},{"$f":"'2 REPAIR ESTIMATOR'!AM465","v":{"v":0,"d":"$0.00"}},{"v":0,"d":"$0.00"},{"$f":"'2 REPAIR ESTIMATOR'!AG465","v":{"v":0,"d":"$0.00"}},{"$f":"'2 REPAIR ESTIMATOR'!AJ465","v":{"v":0,"d":"$0.00"}}]
[null,null,{"$f":"T('2 REPAIR ESTIMATOR'!D466:O466)","v":""},{"$nulls":5},{"$f":"'2 REPAIR ESTIMATOR'!P466","v":0},{"$f":"'2 REPAIR ESTIMATOR'!S466","v":0},{"v":0,"d":"$0"},{"v":0,"d":"$0"},{"v":0,"d":"$0"},{"v":0,"d":"$0"},null,0,null,null,{"$f":"'2 REPAIR ESTIMATOR'!AD466","v":{"v":0,"d":"$0.00"}},{"$f":"'2 REPAIR ESTIMATOR'!AM466","v":{"v":0,"d":"$0.00"}},{"v":0,"d":"$0.00"},{"$f":"'2 REPAIR ESTIMATOR'!AG466","v":{"v":0,"d":"$0.00"}},{"$f":"'2 REPAIR ESTIMATOR'!AJ466","v":{"v":0,"d":"$0.00"}}]
[null,null,{"$f":"T('2 REPAIR ESTIMATOR'!D467:O467)","v":""},{"$nulls":5},{"$f":"'2 REPAIR ESTIMATOR'!P467","v":0},{"$f":"'2 REPAIR ESTIMATOR'!S467","v":0},{"v":0,"d":"$0"},{"v":0,"d":"$0"},{"v":0,"d":"$0"},{"v":0,"d":"$0"},null,0,null,null,{"$f":"'2 REPAIR ESTIMATOR'!AD467","v":{"v":0,"d":"$0.00"}},{"$f":"'2 REPAIR ESTIMATOR'!AM467","v":{"v":0,"d":"$0.00"}},{"v":0,"d":"$0.00"},{"$f":"'2 REPAIR ESTIMATOR'!AG467","v":{"v":0,"d":"$0.00"}},{"$f":"'2 REPAIR ESTIMATOR'!AJ467","v":{"v":0,"d":"$0.00"}}]
[null,null,{"$f":"T('2 REPAIR ESTIMATOR'!D468:O468)","v":""},{"$nulls":5},{"$f":"'2 REPAIR ESTIMATOR'!P468","v":0},{"$f":"'2 REPAIR ESTIMATOR'!S468","v":0},{"v":0,"d":"$0"},{"v":0,"d":"$0"},{"v":0,"d":"$0"},{"v":0,"d":"$0"},null,{"$f":"I437","v":0},null,null,{"$f":"'2 REPAIR ESTIMATOR'!AD468","v":{"v":0,"d":"$0.00"}},{"$f":"'2 REPAIR ESTIMATOR'!AM468","v":{"v":0,"d":"$0.00"}},{"v":0,"d":"$0.00"},{"$f":"'2 REPAIR ESTIMATOR'!AG468","v":{"v":0,"d":"$0.00"}},{"$f":"'2 REPAIR ESTIMATOR'!AJ468","v":{"v":0,"d":"$0.00"}}]
[null,null,{"$f":"T('2 REPAIR ESTIMATOR'!D469:O469)","v":""},{"$nulls":5},{"$f":"'2 REPAIR ESTIMATOR'!P469","v":0},{"$f":"'2 REPAIR ESTIMATOR'!S469","v":0},{"v":0,"d":"$0"},{"v":0,"d":"$0"},{"v":0,"d":"$0"},{"v":0,"d":"$0"},null,0,null,null,{"$f":"'2 REPAIR ESTIMATOR'!AD469","v":{"v":0,"d":"$0.00"}},{"$f":"'2 REPAIR ESTIMATOR'!AM469","v":{"v":0,"d":"$0.00"}},{"v":0,"d":"$0.00"},{"$f":"'2 REPAIR ESTIMATOR'!AG469","v":{"v":0,"d":"$0.00"}},{"$f":"'2 REPAIR ESTIMATOR'!AJ469","v":{"v":0,"d":"$0.00"}}]
[null,null,{"$f":"T('2 REPAIR ESTIMATOR'!D470:O470)","v":""},{"$nulls":5},{"$f":"'2 REPAIR ESTIMATOR'!P470","v":0},{"$f":"'2 REPAIR ESTIMATOR'!S470","v":0},{"v":0,"d":"$0"},{"v":0,"d":"$0"},{"v":0,"d":"$0"},{"v":0,"d":"$0"},null,0,null,null,{"$f":"'2 REPAIR ESTIMATOR'!AD470","v":{"v":0,"d":"$0.00"}},{"$f":"'2 REPAIR ESTIMATOR'!AM470","v":{"v":0,"d":"$0.00"}},{"v":0,"d":"$0.00"},{"$f":"'2 REPAIR ESTIMATOR'!AG470","v":{"v":0,"d":"$0.00"}},{"$f":"'2 REPAIR ESTIMATOR'!AJ470","v":{"v":0,"d":"$0.00"}}]
[null,null,{"$f":"T('2 REPAIR ESTIMATOR'!D471:O471)","v":""},{"$nulls":5},{"$f":"'2 REPAIR ESTIMATOR'!P471","v":0},{"$f":"'2 REPAIR ESTIMATOR'!S471","v":0},{"v":0,"d":"$0"},{"v":0,"d":"$0"},{"v":0,"d":"$0"},{"v":0,"d":"$0"},null,0,null,null,{"$f":"'2 REPAIR ESTIMATOR'!AD471","v":{"v":0,"d":"$0.00"}},{"$f":"'2 REPAIR ESTIMATOR'!AM471","v":{"v":0,"d":"$0.00"}},{"v":0,"d":"$0.00"},{"$f":"'2 REPAIR ESTIMATOR'!AG471","v":{"v":0,"d":"$0.00"}},{"$f":"'2 REPAIR ESTIMATOR'!AJ471","v":{"v":0,"d":"$0.00"}}]
[null,null,{"$f":"T('2 REPAIR ESTIMATOR'!D472:O472)","v":""},{"$nulls":5},{"$f":"'2 REPAIR ESTIMATOR'!P472","v":0},{"$f":"'2 REPAIR ESTIMATOR'!S472","v":0},{"v":0,"d":"$0"},{"v":0,"d":"$0"},{"v":0,"d":"$0"},{"v":0,"d":"$0"},null,0,null,null,{"$f":"'2 REPAIR ESTIMATOR'!AD472","v":{"v":0,"d":"$0.00"}},{"$f":"'2 REPAIR ESTIMATOR'!AM472","v":{"v":0,"d":"$0.00"}},{"v":0,"d":"$0.00"},{"$f":"'2 REPAIR ESTIMATOR'!AG472","v":{"v":0,"d":"$0.00"}},{"$f":"'2 REPAIR ESTIMATOR'!AJ472","v":{"v":0,"d":"$0.00"}}]
[null,null,{"$f":"T('2 REPAIR ESTIMATOR'!D473:O473)","v":""},{"$nulls":5},{"$f":"'2 REPAIR ESTIMATOR'!P473","v":0},{"$f":"'2 REPAIR ESTIMATOR'!S473","v":0},{"v":0,"d":"$0"},{"v":0,"d":"$0"},{"v":0,"d":"$0"},{"v":0,"d":"$0"},null,0,null,null,{"$f":"'2 REPAIR ESTIMATOR'!AD473","v":{"v":0,"d":"$0.00"}},{"$f":"'2 REPAIR ESTIMATOR'!AM473","v":{"v":0,"d":"$0.00"}},{"v":0,"d":"$0.00"},{"$f":"'2 REPAIR ESTIMATOR'!AG473","v":{"v":0,"d":"$0.00"}},{"$f":"'2 REPAIR ESTIMATOR'!AJ473","v":{"v":0,"d":"$0.00"}}]
[null,null,{"$f":"T('2 REPAIR ESTIMATOR'!D474:O474)","v":""},{"$nulls":5},{"$f":"'2 REPAIR ESTIMATOR'!P474","v":0},{"$f":"'2 REPAIR ESTIMATOR'!S474","v":0},{"v":0,"d":"$0"},{"v":0,"d":"$0"},{"v":0,"d":"$0"},{"v":0,"d":"$0"},null,0,null,null,{"$f":"'2 REPAIR ESTIMATOR'!AD474","v":{"v":0,"d":"$0.00"}},{"$f":"'2 REPAIR ESTIMATOR'!AM474","v":{"v":0,"d":"$0.00"}},{"v":0,"d":"$0.00"},{"$f":"'2 REPAIR ESTIMATOR'!AG474","v":{"v":0,"d":"$0.00"}},{"$f":"'2 REPAIR ESTIMATOR'!AJ474","v":{"v":0,"d":"$0.00"}}]
[null,null,{"$f":"T('2 REPAIR ESTIMATOR'!D475:O475)","v":""},{"$nulls":5},{"$f":"'2 REPAIR ESTIMATOR'!P475","v":0},{"$f":"'2 REPAIR ESTIMATOR'!S475","v":0},{"v":0,"d":"$0"},{"v":0,"d":"$0"},{"v":0,"d":"$0"},{"v":0,"d":"$0"},null,0,null,null,{"$f":"'2 REPAIR ESTIMATOR'!AD475","v":{"v":0,"d":"$0.00"}},{"$f":"'2 REPAIR ESTIMATOR'!AM475","v":{"v":0,"d":"$0.00"}},{"v":0,"d":"$0.00"},{"$f":"'2 REPAIR ESTIMATOR'!AG475","v":{"v":0,"d":"$0.00"}},{"$f":"'2 REPAIR ESTIMATOR'!AJ475","v":{"v":0,"d":"$0.00"}}]
[null,null,{"$f":"T('2 REPAIR ESTIMATOR'!D476:O476)","v":""},{"$nulls":5},{"$f":"'2 REPAIR ESTIMATOR'!P476","v":0},{"$f":"'2 REPAIR ESTIMATOR'!S476","v":0},{"v":0,"d":"$0"},{"v":0,"d":"$0"},{"v":0,"d":"$0"},{"v":0,"d":"$0"},null,0,null,null,{"$f":"'2 REPAIR ESTIMATOR'!AD476","v":{"v":0,"d":"$0.00"}},{"$f":"'2 REPAIR ESTIMATOR'!AM476","v":{"v":0,"d":"$0.00"}},{"v":0,"d":"$0.00"},{"$f":"'2 REPAIR ESTIMATOR'!AG476","v":{"v":0,"d":"$0.00"}},{"$f":"'2 REPAIR ESTIMATOR'!AJ476","v":{"v":0,"d":"$0.00"}}]
[null,null,{"$f":"T('2 REPAIR ESTIMATOR'!D477:O477)","v":""},{"$nulls":5},{"$f":"'2 REPAIR ESTIMATOR'!P477","v":0},{"$f":"'2 REPAIR ESTIMATOR'!S477","v":0},{"v":0,"d":"$0"},{"v":0,"d":"$0"},{"v":0,"d":"$0"},{"v":0,"d":"$0"},null,0,null,null,{"$f":"'2 REPAIR ESTIMATOR'!AD477","v":{"v":0,"d":"$0.00"}},{"$f":"'2 REPAIR ESTIMATOR'!AM477","v":{"v":0,"d":"$0.00"}},{"v":0,"d":"$0.00"},{"$f":"'2 REPAIR ESTIMATOR'!AG477","v":{"v":0,"d":"$0.00"}},{"$f":"'2 REPAIR ESTIMATOR'!AJ477","v":{"v":0,"d":"$0.00"}}]
[null,null,{"$f":"T('2 REPAIR ESTIMATOR'!D478:O478)","v":""},{"$nulls":5},{"$f":"'2 REPAIR ESTIMATOR'!P478","v":0},{"$f":"'2 REPAIR ESTIMATOR'!S478","v":0},{"v":0,"d":"$0"},{"v":0,"d":"$0"},{"v":0,"d":"$0"},{"v":0,"d":"$0"},null,0,null,null,{"$f":"'2 REPAIR ESTIMATOR'!AD478","v":{"v":0,"d":"$0.00"}},{"$f":"'2 REPAIR ESTIMATOR'!AM478","v":{"v":0,"d":"$0.00"}},{"v":0,"d":"$0.00"},{"$f":"'2 REPAIR ESTIMATOR'!AG478","v":{"v":0,"d":"$0.00"}},{"$f":"'2 REPAIR ESTIMATOR'!AJ478","v":{"v":0,"d":"$0.00"}}]
[null,null,{"$f":"T('2 REPAIR ESTIMATOR'!D479:O479)","v":""},{"$nulls":5},{"$f":"'2 REPAIR ESTIMATOR'!P479","v":0},{"$f":"'2 REPAIR ESTIMATOR'!S479","v":0},{"v":0,"d":"$0"},{"v":0,"d":"$0"},{"v":0,"d":"$0"},{"v":0,"d":"$0"},null,0,null,null,{"$f":"'2 REPAIR ESTIMATOR'!AD479","v":{"v":0,"d":"$0.00"}},{"$f":"'2 REPAIR ESTIMATOR'!AM479","v":{"v":0,"d":"$0.00"}},{"v":0,"d":"$0.00"},{"$f":"'2 REPAIR ESTIMATOR'!AG479","v":{"v":0,"d":"$0.00"}},{"$f":"'2 REPAIR ESTIMATOR'!AJ479","v":{"v":0,"d":"$0.00"}}]
[null,null,{"$f":"T('2 REPAIR ESTIMATOR'!D480:O480)","v":""},{"$nulls":5},{"$f":"'2 REPAIR ESTIMATOR'!P480","v":0},{"$f":"'2 REPAIR ESTIMATOR'!S480","v":0},{"v":0,"d":"$0"},{"v":0,"d":"$0"},{"v":0,"d":"$0"},{"v":0,"d":"$0"},null,0,null,null,{"$f":"'2 REPAIR ESTIMATOR'!AD480","v":{"v":0,"d":"$0.00"}},{"$f":"'2 REPAIR ESTIMATOR'!AM480","v":{"v":0,"d":"$0.00"}},{"v":0,"d":"$0.00"},{"$f":"'2 REPAIR ESTIMATOR'!AG480","v":{"v":0,"d":"$0.00"}},{"$f":"'2 REPAIR ESTIMATOR'!AJ480","v":{"v":0,"d":"$0.00"}}]
[null,null,{"$f":"T('2 REPAIR ESTIMATOR'!D481:O481)","v":""},{"$nulls":5},{"$f":"'2 REPAIR ESTIMATOR'!P481","v":0},{"$f":"'2 REPAIR ESTIMATOR'!S481","v":0},{"v":0,"d":"$0"},{"v":0,"d":"$0"},{"v":0,"d":"$0"},{"v":0,"d":"$0"},null,0,null,null,{"$f":"'2 REPAIR ESTIMATOR'!AD481","v":{"v":0,"d":"$0.00"}},{"$f":"'2 REPAIR ESTIMATOR'!AM481","v":{"v":0,"d":"$0.00"}},{"v":0,"d":"$0.00"},{"$f":"'2 REPAIR ESTIMATOR'!AG481","v":{"v":0,"d":"$0.00"}},{"$f":"'2 REPAIR ESTIMATOR'!AJ481","v":{"v":0,"d":"$0.00"}}]
[null,null,{"$f":"T('2 REPAIR ESTIMATOR'!D482:O482)","v":""},{"$nulls":5},{"$f":"'2 REPAIR ESTIMATOR'!P482","v":0},{"$f":"'2 REPAIR ESTIMATOR'!S482","v":0},{"v":0,"d":"$0"},{"v":0,"d":"$0"},{"v":0,"d":"$0"},{"v":0,"d":"$0"},null,0,null,null,{"$f":"'2 REPAIR ESTIMATOR'!AD482","v":{"v":0,"d":"$0.00"}},{"$f":"'2 REPAIR ESTIMATOR'!AM482","v":{"v":0,"d":"$0.00"}},{"v":0,"d":"$0.00"},{"$f":"'2 REPAIR ESTIMATOR'!AG482","v":{"v":0,"d":"$0.00"}},{"$f":"'2 REPAIR ESTIMATOR'!AJ482","v":{"v":0,"d":"$0.00"}}]
[null,null,{"$f":"T('2 REPAIR ESTIMATOR'!D483:O483)","v":""},{"$nulls":5},{"$f":"'2 REPAIR ESTIMATOR'!P483","v":0},{"$f":"'2 REPAIR ESTIMATOR'!S483","v":0},{"v":0,"d":"$0"},{"v":0,"d":"$0"},{"v":0,"d":"$0"},{"v":0,"d":"$0"},null,0,null,null,{"$f":"'2 REPAIR ESTIMATOR'!AD483","v":{"v":0,"d":"$0.00"}},{"$f":"'2 REPAIR ESTIMATOR'!AM483","v":{"v":0,"d":"$0.00"}},{"v":0,"d":"$0.00"},{"$f":"'2 REPAIR ESTIMATOR'!AG483","v":{"v":0,"d":"$0.00"}},{"$f":"'2 REPAIR ESTIMATOR'!AJ483","v":{"v":0,"d":"$0.00"}}]
[null,null,{"$f":"T('2 REPAIR ESTIMATOR'!D484:O484)","v":""},{"$nulls":5},{"$f":"'2 REPAIR ESTIMATOR'!P484","v":0},{"$f":"'2 REPAIR ESTIMATOR'!S484","v":0},{"v":0,"d":"$0"},{"v":0,"d":"$0"},{"v":0,"d":"$0"},{"v":0,"d":"$0"},null,0,null,null,{"$f":"'2 REPAIR ESTIMATOR'!AD484","v":{"v":0,"d":"$0.00"}},{"$f":"'2 REPAIR ESTIMATOR'!AM484","v":{"v":0,"d":"$0.00"}},{"v":0,"d":"$0.00"},{"$f":"'2 REPAIR ESTIMATOR'!AG484","v":{"v":0,"d":"$0.00"}},{"$f":"'2 REPAIR ESTIMATOR'!AJ484","v":{"v":0,"d":"$0.00"}}]
[null,null,{"$f":"T('2 REPAIR ESTIMATOR'!D485:O485)","v":""},{"$nulls":5},{"$f":"'2 REPAIR ESTIMATOR'!P485","v":0},{"$f":"'2 REPAIR ESTIMATOR'!S485","v":0},{"v":0,"d":"$0"},{"v":0,"d":"$0"},{"v":0,"d":"$0"},{"v":0,"d":"$0"},null,0,null,null,{"$f":"'2 REPAIR ESTIMATOR'!AD485","v":{"v":0,"d":"$0.00"}},{"$f":"'2 REPAIR ESTIMATOR'!AM485","v":{"v":0,"d":"$0.00"}},{"v":0,"d":"$0.00"},{"$f":"'2 REPAIR ESTIMATOR'!AG485","v":{"v":0,"d":"$0.00"}},{"$f":"'2 REPAIR ESTIMATOR'!AJ485","v":{"v":0,"d":"$0.00"}}]
[null,null,{"$f":"T('2 REPAIR ESTIMATOR'!D486:O486)","v":""},{"$nulls":5},{"$f":"'2 REPAIR ESTIMATOR'!P486","v":0},{"$f":"'2 REPAIR ESTIMATOR'!S486","v":0},{"v":0,"d":"$0"},{"v":0,"d":"$0"},{"v":0,"d":"$0"},{"v":0,"d":"$0"},null,0,null,null,{"$f":"'2 REPAIR ESTIMATOR'!AD486","v":{"v":0,"d":"$0.00"}},{"$f":"'2 REPAIR ESTIMATOR'!AM486","v":{"v":0,"d":"$0.00"}},{"v":0,"d":"$0.00"},{"$f":"'2 REPAIR ESTIMATOR'!AG486","v":{"v":0,"d":"$0.00"}},{"$f":"'2 REPAIR ESTIMATOR'!AJ486","v":{"v":0,"d":"$0.00"}}]
[null,null,{"$f":"T('2 REPAIR ESTIMATOR'!D487:O487)","v":""},{"$nulls":5},{"$f":"'2 REPAIR ESTIMATOR'!P487","v":0},{"$f":"'2 REPAIR ESTIMATOR'!S487","v":0},{"v":0,"d":"$0"},{"v":0,"d":"$0"},{"v":0,"d":"$0"},{"v":0,"d":"$0"},null,0,null,null,{"$f":"'2 REPAIR ESTIMATOR'!AD487","v":{"v":0,"d":"$0.00"}},{"$f":"'2 REPAIR ESTIMATOR'!AM487","v":{"v":0,"d":"$0.00"}},{"v":0,"d":"$0.00"},{"$f":"'2 REPAIR ESTIMATOR'!AG487","v":{"v":0,"d":"$0.00"}},{"$f":"'2 REPAIR ESTIMATOR'!AJ487","v":{"v":0,"d":"$0.00"}}]
[null,null,{"$f":"T('2 REPAIR ESTIMATOR'!AC489)","v":"EXTERIOR DOORS & WINDOWS TOTAL"},{"$nulls":7},{"$f":"SUM(K417:K456)","v":{"v":1625,"d":"$1,625"}},{"$f":"SUM(L417:L456)","v":{"v":3210,"d":"$3,210"}},{"$f":"SUM(M417:M456)","v":{"v":0,"d":"$0"}},{"$f":"SUM(N417:O456)","v":{"v":4835,"d":"$4,835"}},null,{"$f":"SUM(P416:P428)","v":36},null,null,{"$f":"SUM(S417:S456)","v":{"v":1625,"d":"$1,625.00"}},{"$f":"SUM(T417:T456)","v":{"v":0,"d":"$0.00"}},{"$f":"SUM(U417:U456)","v":{"v":1625,"d":"$1,625.00"}},{"$f":"SUM(V417:V456)","v":{"v":3210,"d":"$3,210.00"}},{"$f":"SUM(W417:W456)","v":{"v":0,"d":"$0.00"}}]
[{"$nulls":15},{"$f":"P457","v":36}]
[null,null,{"$f":"T('2 REPAIR ESTIMATOR'!D492:O492)","v":"GARAGE DOORS"},{"$nulls":5},{"$f":"SUM(I460:I499)","v":2},{"$nulls":6},{"$f":"I459","v":2}]
[null,null,{"$f":"T('2 REPAIR ESTIMATOR'!D493:O493)","v":"Garage Doors Bid/Allowance"},{"$nulls":5},{"$f":"'2 REPAIR ESTIMATOR'!P493","v":0},{"$f":"'2 REPAIR ESTIMATOR'!S493","v":"ls"},{"$f":"IF($N$3=\"subbed\",U460,S460)*$S$70","v":{"v":0,"d":"$0"}},{"$f":"V460*$S$70","v":{"v":0,"d":"$0"}},{"$f":"W460*$S$70","v":{"v":0,"d":"$0"}},{"$f":"SUM(K460:M460)","v":{"v":0,"d":"$0"}},null,0,null,null,{"$f":"'2 REPAIR ESTIMATOR'!AD493","v":{"v":0,"d":"$0.00"}},{"$f":"'2 REPAIR ESTIMATOR'!AM493","v":{"v":0,"d":"$0.00"}},{"$f":"T460+S460","v":{"v":0,"d":"$0.00"}},{"$f":"'2 REPAIR ESTIMATOR'!AG493","v":{"v":0,"d":"$0.00"}},{"$f":"'2 REPAIR ESTIMATOR'!AJ493","v":{"v":0,"d":"$0.00"}}]
[null,null,{"$f":"T('2 REPAIR ESTIMATOR'!D494:O494)","v":"Garage Doors Only- 9'x7'  door, manual"},{"$nulls":5},{"$f":"'2 REPAIR ESTIMATOR'!P494","v":0},{"$f":"'2 REPAIR ESTIMATOR'!S494","v":"ea"},{"v":0,"d":"$0"},{"$f":"V461*$S$70","v":{"v":0,"d":"$0"}},{"$f":"W461*$S$70","v":{"v":0,"d":"$0"}},{"$f":"SUM(K461:M461)","v":{"v":0,"d":"$0"}},null,0,null,null,{"$f":"'2 REPAIR ESTIMATOR'!AD494","v":{"v":0,"d":"$0.00"}},{"$f":"'2 REPAIR ESTIMATOR'!AM494","v":{"v":0,"d":"$0.00"}},{"$f":"T461+S461","v":{"v":0,"d":"$0.00"}},{"$f":"'2 REPAIR ESTIMATOR'!AG494","v":{"v":0,"d":"$0.00"}},{"$f":"'2 REPAIR ESTIMATOR'!AJ494","v":{"v":0,"d":"$0.00"}}]
[null,null,{"$f":"T('2 REPAIR ESTIMATOR'!D495:O495)","v":"Garage Doors Only- 16' door, manual"},{"$nulls":5},{"$f":"'2 REPAIR ESTIMATOR'!P495","v":1},{"$f":"'2 REPAIR ESTIMATOR'!S495","v":"ea"},{"v":300,"d":"$300"},{"v":802.5,"d":"$803"},{"v":0,"d":"$0"},{"v":1102.5,"d":"$1,103"},null,1,null,null,{"$f":"'2 REPAIR ESTIMATOR'!AD495","v":{"v":300,"d":"$300.00"}},{"$f":"'2 REPAIR ESTIMATOR'!AM495","v":{"v":0,"d":"$0.00"}},{"v":300,"d":"$300.00"},{"$f":"'2 REPAIR ESTIMATOR'!AG495","v":{"v":802.5,"d":"$802.50"}},{"$f":"'2 REPAIR ESTIMATOR'!AJ495","v":{"v":0,"d":"$0.00"}}]
[null,null,{"$f":"T('2 REPAIR ESTIMATOR'!D496:O496)","v":"Garage Door Operator only"},{"$nulls":5},{"$f":"'2 REPAIR ESTIMATOR'!P496","v":1},{"$f":"'2 REPAIR ESTIMATOR'!S496","v":"ea"},{"v":100,"d":"$100"},{"v":160.5,"d":"$161"},{"v":0,"d":"$0"},{"v":260.5,"d":"$261"},null,1,null,null,{"$f":"'2 REPAIR ESTIMATOR'!AD496","v":{"v":100,"d":"$100.00"}},{"$f":"'2 REPAIR ESTIMATOR'!AM496","v":{"v":0,"d":"$0.00"}},{"v":100,"d":"$100.00"},{"$f":"'2 REPAIR ESTIMATOR'!AG496","v":{"v":160.5,"d":"$160.50"}},{"$f":"'2 REPAIR ESTIMATOR'!AJ496","v":{"v":0,"d":"$0.00"}}]
[null,null,{"$f":"T('2 REPAIR ESTIMATOR'!D497:O497)","v":"Replace springs for garage door"},{"$nulls":5},{"$f":"'2 REPAIR ESTIMATOR'!P497","v":0},{"$f":"'2 REPAIR ESTIMATOR'!S497","v":"ea"},{"v":0,"d":"$0"},{"v":0,"d":"$0"},{"v":0,"d":"$0"},{"v":0,"d":"$0"},null,0,null,null,{"$f":"'2 REPAIR ESTIMATOR'!AD497","v":{"v":0,"d":"$0.00"}},{"$f":"'2 REPAIR ESTIMATOR'!AM497","v":{"v":0,"d":"$0.00"}},{"v":0,"d":"$0.00"},{"$f":"'2 REPAIR ESTIMATOR'!AG497","v":{"v":0,"d":"$0.00"}},{"$f":"'2 REPAIR ESTIMATOR'!AJ497","v":{"v":0,"d":"$0.00"}}]
[null,null,{"$f":"T('2 REPAIR ESTIMATOR'!D498:O498)","v":""},{"$nulls":5},{"$f":"'2 REPAIR ESTIMATOR'!P498","v":0},{"$f":"'2 REPAIR ESTIMATOR'!S498","v":0},{"v":0,"d":"$0"},{"v":0,"d":"$0"},{"v":0,"d":"$0"},{"v":0,"d":"$0"},null,0,null,null,{"$f":"'2 REPAIR ESTIMATOR'!AD498","v":{"v":0,"d":"$0.00"}},{"$f":"'2 REPAIR ESTIMATOR'!AM498","v":{"v":0,"d":"$0.00"}},{"v":0,"d":"$0.00"},{"$f":"'2 REPAIR ESTIMATOR'!AG498","v":{"v":0,"d":"$0.00"}},{"$f":"'2 REPAIR ESTIMATOR'!AJ498","v":{"v":0,"d":"$0.00"}}]
[null,null,{"$f":"T('2 REPAIR ESTIMATOR'!D499:O499)","v":""},{"$nulls":5},{"$f":"'2 REPAIR ESTIMATOR'!P499","v":0},{"$f":"'2 REPAIR ESTIMATOR'!S499","v":0},{"v":0,"d":"$0"},{"v":0,"d":"$0"},{"v":0,"d":"$0"},{"v":0,"d":"$0"},null,0,null,null,{"$f":"'2 REPAIR ESTIMATOR'!AD499","v":{"v":0,"d":"$0.00"}},{"$f":"'2 REPAIR ESTIMATOR'!AM499","v":{"v":0,"d":"$0.00"}},{"v":0,"d":"$0.00"},{"$f":"'2 REPAIR ESTIMATOR'!AG499","v":{"v":0,"d":"$0.00"}},{"$f":"'2 REPAIR ESTIMATOR'!AJ499","v":{"v":0,"d":"$0.00"}}]
[null,null,{"$f":"T('2 REPAIR ESTIMATOR'!D500:O500)","v":""},{"$nulls":5},{"$f":"'2 REPAIR ESTIMATOR'!P500","v":0},{"$f":"'2 REPAIR ESTIMATOR'!S500","v":0},{"v":0,"d":"$0"},{"v":0,"d":"$0"},{"v":0,"d":"$0"},{"v":0,"d":"$0"},null,0,null,null,{"$f":"'2 REPAIR ESTIMATOR'!AD500","v":{"v":0,"d":"$0.00"}},{"$f":"'2 REPAIR ESTIMATOR'!AM500","v":{"v":0,"d":"$0.00"}},{"v":0,"d":"$0.00"},{"$f":"'2 REPAIR ESTIMATOR'!AG500","v":{"v":0,"d":"$0.00"}},{"$f":"'2 REPAIR ESTIMATOR'!AJ500","v":{"v":0,"d":"$0.00"}}]
[null,null,{"$f":"T('2 REPAIR ESTIMATOR'!D501:O501)","v":""},{"$nulls":5},{"$f":"'2 REPAIR ESTIMATOR'!P501","v":0},{"$f":"'2 REPAIR ESTIMATOR'!S501","v":0},{"v":0,"d":"$0"},{"v":0,"d":"$0"},{"v":0,"d":"$0"},{"v":0,"d":"$0"},null,0,null,null,{"$f":"'2 REPAIR ESTIMATOR'!AD501","v":{"v":0,"d":"$0.00"}},{"$f":"'2 REPAIR ESTIMATOR'!AM501","v":{"v":0,"d":"$0.00"}},{"v":0,"d":"$0.00"},{"$f":"'2 REPAIR ESTIMATOR'!AG501","v":{"v":0,"d":"$0.00"}},{"$f":"'2 REPAIR ESTIMATOR'!AJ501","v":{"v":0,"d":"$0.00"}}]
[null,null,{"$f":"T('2 REPAIR ESTIMATOR'!D502:O502)","v":""},{"$nulls":5},{"$f":"'2 REPAIR ESTIMATOR'!P502","v":0},{"$f":"'2 REPAIR ESTIMATOR'!S502","v":0},{"v":0,"d":"$0"},{"v":0,"d":"$0"},{"v":0,"d":"$0"},{"v":0,"d":"$0"},null,0,null,null,{"$f":"'2 REPAIR ESTIMATOR'!AD502","v":{"v":0,"d":"$0.00"}},{"$f":"'2 REPAIR ESTIMATOR'!AM502","v":{"v":0,"d":"$0.00"}},{"v":0,"d":"$0.00"},{"$f":"'2 REPAIR ESTIMATOR'!AG502","v":{"v":0,"d":"$0.00"}},{"$f":"'2 REPAIR ESTIMATOR'!AJ502","v":{"v":0,"d":"$0.00"}}]
[null,null,{"$f":"T('2 REPAIR ESTIMATOR'!D503:O503)","v":""},{"$nulls":5},{"$f":"'2 REPAIR ESTIMATOR'!P503","v":0},{"$f":"'2 REPAIR ESTIMATOR'!S503","v":0},{"v":0,"d":"$0"},{"v":0,"d":"$0"},{"v":0,"d":"$0"},{"v":0,"d":"$0"},null,0,null,null,{"$f":"'2 REPAIR ESTIMATOR'!AD503","v":{"v":0,"d":"$0.00"}},{"$f":"'2 REPAIR ESTIMATOR'!AM503","v":{"v":0,"d":"$0.00"}},{"v":0,"d":"$0.00"},{"$f":"'2 REPAIR ESTIMATOR'!AG503","v":{"v":0,"d":"$0.00"}},{"$f":"'2 REPAIR ESTIMATOR'!AJ503","v":{"v":0,"d":"$0.00"}}]
[null,null,{"$f":"T('2 REPAIR ESTIMATOR'!D504:O504)","v":""},{"$nulls":5},{"$f":"'2 REPAIR ESTIMATOR'!P504","v":0},{"$f":"'2 REPAIR ESTIMATOR'!S504","v":0},{"v":0,"d":"$0"},{"v":0,"d":"$0"},{"v":0,"d":"$0"},{"v":0,"d":"$0"},null,0,null,null,{"$f":"'2 REPAIR ESTIMATOR'!AD504","v":{"v":0,"d":"$0.00"}},{"$f":"'2 REPAIR ESTIMATOR'!AM504","v":{"v":0,"d":"$0.00"}},{"v":0,"d":"$0.00"},{"$f":"'2 REPAIR ESTIMATOR'!AG504","v":{"v":0,"d":"$0.00"}},{"$f":"'2 REPAIR ESTIMATOR'!AJ504","v":{"v":0,"d":"$0.00"}}]
[null,null,{"$f":"T('2 REPAIR ESTIMATOR'!D505:O505)","v":""},{"$nulls":5},{"$f":"'2 REPAIR ESTIMATOR'!P505","v":0},{"$f":"'2 REPAIR ESTIMATOR'!S505","v":0},{"v":0,"d":"$0"},{"v":0,"d":"$0"},{"v":0,"d":"$0"},{"v":0,"d":"$0"},null,0,null,null,{"$f":"'2 REPAIR ESTIMATOR'!AD505","v":{"v":0,"d":"$0.00"}},{"$f":"'2 REPAIR ESTIMATOR'!AM505","v":{"v":0,"d":"$0.00"}},{"v":0,"d":"$0.00"},{"$f":"'2 REPAIR ESTIMATOR'!AG505","v":{"v":0,"d":"$0.00"}},{"$f":"'2 REPAIR ESTIMATOR'!AJ505","v":{"v":0,"d":"$0.00"}}]
[null,null,{"$f":"T('2 REPAIR ESTIMATOR'!D506:O506)","v":""},{"$nulls":5},{"$f":"'2 REPAIR ESTIMATOR'!P506","v":0},{"$f":"'2 REPAIR ESTIMATOR'!S506","v":0},{"v":0,"d":"$0"},{"v":0,"d":"$0"},{"v":0,"d":"$0"},{"v":0,"d":"$0"},null,0,null,null,{"$f":"'2 REPAIR ESTIMATOR'!AD506","v":{"v":0,"d":"$0.00"}},{"$f":"'2 REPAIR ESTIMATOR'!AM506","v":{"v":0,"d":"$0.00"}},{"v":0,"d":"$0.00"},{"$f":"'2 REPAIR ESTIMATOR'!AG506","v":{"v":0,"d":"$0.00"}},{"$f":"'2 REPAIR ESTIMATOR'!AJ506","v":{"v":0,"d":"$0.00"}}]
[null,null,{"$f":"T('2 REPAIR ESTIMATOR'!D507:O507)","v":""},{"$nulls":5},{"$f":"'2 REPAIR ESTIMATOR'!P507","v":0},{"$f":"'2 REPAIR ESTIMATOR'!S507","v":0},{"v":0,"d":"$0"},{"v":0,"d":"$0"},{"v":0,"d":"$0"},{"v":0,"d":"$0"},null,0,null,null,{"$f":"'2 REPAIR ESTIMATOR'!AD507","v":{"v":0,"d":"$0.00"}},{"$f":"'2 REPAIR ESTIMATOR'!AM507","v":{"v":0,"d":"$0.00"}},{"v":0,"d":"$0.00"},{"$f":"'2 REPAIR ESTIMATOR'!AG507","v":{"v":0,"d":"$0.00"}},{"$f":"'2 REPAIR ESTIMATOR'!AJ507","v":{"v":0,"d":"$0.00"}}]
[null,null,{"$f":"T('2 REPAIR ESTIMATOR'!D508:O508)","v":""},{"$nulls":5},{"$f":"'2 REPAIR ESTIMATOR'!P508","v":0},{"$f":"'2 REPAIR ESTIMATOR'!S508","v":0},{"v":0,"d":"$0"},{"v":0,"d":"$0"},{"v":0,"d":"$0"},{"v":0,"d":"$0"},null,0,null,null,{"$f":"'2 REPAIR ESTIMATOR'!AD508","v":{"v":0,"d":"$0.00"}},{"$f":"'2 REPAIR ESTIMATOR'!AM508","v":{"v":0,"d":"$0.00"}},{"v":0,"d":"$0.00"},{"$f":"'2 REPAIR ESTIMATOR'!AG508","v":{"v":0,"d":"$0.00"}},{"$f":"'2 REPAIR ESTIMATOR'!AJ508","v":{"v":0,"d":"$0.00"}}]
[null,null,{"$f":"T('2 REPAIR ESTIMATOR'!D509:O509)","v":""},{"$nulls":5},{"$f":"'2 REPAIR ESTIMATOR'!P509","v":0},{"$f":"'2 REPAIR ESTIMATOR'!S509","v":0},{"v":0,"d":"$0"},{"v":0,"d":"$0"},{"v":0,"d":"$0"},{"v":0,"d":"$0"},null,0,null,null,{"$f":"'2 REPAIR ESTIMATOR'!AD509","v":{"v":0,"d":"$0.00"}},{"$f":"'2 REPAIR ESTIMATOR'!AM509","v":{"v":0,"d":"$0.00"}},{"v":0,"d":"$0.00"},{"$f":"'2 REPAIR ESTIMATOR'!AG509","v":{"v":0,"d":"$0.00"}},{"$f":"'2 REPAIR ESTIMATOR'!AJ509","v":{"v":0,"d":"$0.00"}}]
[null,null,{"$f":"T('2 REPAIR ESTIMATOR'!D510:O510)","v":""},{"$nulls":5},{"$f":"'2 REPAIR ESTIMATOR'!P510","v":0},{"$f":"'2 REPAIR ESTIMATOR'!S510","v":0},{"v":0,"d":"$0"},{"v":0,"d":"$0"},{"v":0,"d":"$0"},{"v":0,"d":"$0"},null,0,null,null,{"$f":"'2 REPAIR ESTIMATOR'!AD510","v":{"v":0,"d":"$0.00"}},{"$f":"'2 REPAIR ESTIMATOR'!AM510","v":{"v":0,"d":"$0.00"}},{"v":0,"d":"$0.00"},{"$f":"'2 REPAIR ESTIMATOR'!AG510","v":{"v":0,"d":"$0.00"}},{"$f":"'2 REPAIR ESTIMATOR'!AJ510","v":{"v":0,"d":"$0.00"}}]
[null,null,{"$f":"T('2 REPAIR ESTIMATOR'!D511:O511)","v":""},{"$nulls":5},{"$f":"'2 REPAIR ESTIMATOR'!P511","v":0},{"$f":"'2 REPAIR ESTIMATOR'!S511","v":0},{"v":0,"d":"$0"},{"v":0,"d":"$0"},{"v":0,"d":"$0"},{"v":0,"d":"$0"},null,0,null,null,{"$f":"'2 REPAIR ESTIMATOR'!AD511","v":{"v":0,"d":"$0.00"}},{"$f":"'2 REPAIR ESTIMATOR'!AM511","v":{"v":0,"d":"$0.00"}},{"v":0,"d":"$0.00"},{"$f":"'2 REPAIR ESTIMATOR'!AG511","v":{"v":0,"d":"$0.00"}},{"$f":"'2 REPAIR ESTIMATOR'!AJ511","v":{"v":0,"d":"$0.00"}}]
[null,null,{"$f":"T('2 REPAIR ESTIMATOR'!D512:O512)","v":""},{"$nulls":5},{"$f":"'2 REPAIR ESTIMATOR'!P512","v":0},{"$f":"'2 REPAIR ESTIMATOR'!S512","v":0},{"v":0,"d":"$0"},{"v":0,"d":"$0"},{"v":0,"d":"$0"},{"v":0,"d":"$0"},null,0,null,null,{"$f":"'2 REPAIR ESTIMATOR'!AD512","v":{"v":0,"d":"$0.00"}},{"$f":"'2 REPAIR ESTIMATOR'!AM512","v":{"v":0,"d":"$0.00"}},{"v":0,"d":"$0.00"},{"$f":"'2 REPAIR ESTIMATOR'!AG512","v":{"v":0,"d":"$0.00"}},{"$f":"'2 REPAIR ESTIMATOR'!AJ512","v":{"v":0,"d":"$0.00"}}]
[null,null,{"$f":"T('2 REPAIR ESTIMATOR'!D513:O513)","v":""},{"$nulls":5},{"$f":"'2 REPAIR ESTIMATOR'!P513","v":0},{"$f":"'2 REPAIR ESTIMATOR'!S513","v":0},{"v":0,"d":"$0"},{"v":0,"d":"$0"},{"v":0,"d":"$0"},{"v":0,"d":"$0"},null,{"$f":"I480","v":0},null,null,{"$f":"'2 REPAIR ESTIMATOR'!AD513","v":{"v":0,"d":"$0.00"}},{"$f":"'2 REPAIR ESTIMATOR'!AM513","v":{"v":0,"d":"$0.00"}},{"v":0,"d":"$0.00"},{"$f":"'2 REPAIR ESTIMATOR'!AG513","v":{"v":0,"d":"$0.00"}},{"$f":"'2 REPAIR ESTIMATOR'!AJ513","v":{"v":0,"d":"$0.00"}}]
[null,null,{"$f":"T('2 REPAIR ESTIMATOR'!D514:O514)","v":""},{"$nulls":5},{"$f":"'2 REPAIR ESTIMATOR'!P514","v":0},{"$f":"'2 REPAIR ESTIMATOR'!S514","v":0},{"v":0,"d":"$0"},{"v":0,"d":"$0"},{"v":0,"d":"$0"},{"v":0,"d":"$0"},null,0,null,null,{"$f":"'2 REPAIR ESTIMATOR'!AD514","v":{"v":0,"d":"$0.00"}},{"$f":"'2 REPAIR ESTIMATOR'!AM514","v":{"v":0,"d":"$0.00"}},{"v":0,"d":"$0.00"},{"$f":"'2 REPAIR ESTIMATOR'!AG514","v":{"v":0,"d":"$0.00"}},{"$f":"'2 REPAIR ESTIMATOR'!AJ514","v":{"v":0,"d":"$0.00"}}]
[null,null,{"$f":"T('2 REPAIR ESTIMATOR'!D515:O515)","v":""},{"$nulls":5},{"$f":"'2 REPAIR ESTIMATOR'!P515","v":0},{"$f":"'2 REPAIR ESTIMATOR'!S515","v":0},{"v":0,"d":"$0"},{"v":0,"d":"$0"},{"v":0,"d":"$0"},{"v":0,"d":"$0"},null,0,null,null,{"$f":"'2 REPAIR ESTIMATOR'!AD515","v":{"v":0,"d":"$0.00"}},{"$f":"'2 REPAIR ESTIMATOR'!AM515","v":{"v":0,"d":"$0.00"}},{"v":0,"d":"$0.00"},{"$f":"'2 REPAIR ESTIMATOR'!AG515","v":{"v":0,"d":"$0.00"}},{"$f":"'2 REPAIR ESTIMATOR'!AJ515","v":{"v":0,"d":"$0.00"}}]
[null,null,{"$f":"T('2 REPAIR ESTIMATOR'!D516:O516)","v":""},{"$nulls":5},{"$f":"'2 REPAIR ESTIMATOR'!P516","v":0},{"$f":"'2 REPAIR ESTIMATOR'!S516","v":0},{"v":0,"d":"$0"},{"v":0,"d":"$0"},{"v":0,"d":"$0"},{"v":0,"d":"$0"},null,0,null,null,{"$f":"'2 REPAIR ESTIMATOR'!AD516","v":{"v":0,"d":"$0.00"}},{"$f":"'2 REPAIR ESTIMATOR'!AM516","v":{"v":0,"d":"$0.00"}},{"v":0,"d":"$0.00"},{"$f":"'2 REPAIR ESTIMATOR'!AG516","v":{"v":0,"d":"$0.00"}},{"$f":"'2 REPAIR ESTIMATOR'!AJ516","v":{"v":0,"d":"$0.00"}}]
[null,null,{"$f":"T('2 REPAIR ESTIMATOR'!D517:O517)","v":""},{"$nulls":5},{"$f":"'2 REPAIR ESTIMATOR'!P517","v":0},{"$f":"'2 REPAIR ESTIMATOR'!S517","v":0},{"v":0,"d":"$0"},{"v":0,"d":"$0"},{"v":0,"d":"$0"},{"v":0,"d":"$0"},null,0,null,null,{"$f":"'2 REPAIR ESTIMATOR'!AD517","v":{"v":0,"d":"$0.00"}},{"$f":"'2 REPAIR ESTIMATOR'!AM517","v":{"v":0,"d":"$0.00"}},{"v":0,"d":"$0.00"},{"$f":"'2 REPAIR ESTIMATOR'!AG517","v":{"v":0,"d":"$0.00"}},{"$f":"'2 REPAIR ESTIMATOR'!AJ517","v":{"v":0,"d":"$0.00"}}]
[null,null,{"$f":"T('2 REPAIR ESTIMATOR'!D518:O518)","v":""},{"$nulls":5},{"$f":"'2 REPAIR ESTIMATOR'!P518","v":0},{"$f":"'2 REPAIR ESTIMATOR'!S518","v":0},{"v":0,"d":"$0"},{"v":0,"d":"$0"},{"v":0,"d":"$0"},{"v":0,"d":"$0"},null,0,null,null,{"$f":"'2 REPAIR ESTIMATOR'!AD518","v":{"v":0,"d":"$0.00"}},{"$f":"'2 REPAIR ESTIMATOR'!AM518","v":{"v":0,"d":"$0.00"}},{"v":0,"d":"$0.00"},{"$f":"'2 REPAIR ESTIMATOR'!AG518","v":{"v":0,"d":"$0.00"}},{"$f":"'2 REPAIR ESTIMATOR'!AJ518","v":{"v":0,"d":"$0.00"}}]
[null,null,{"$f":"T('2 REPAIR ESTIMATOR'!D519:O519)","v":""},{"$nulls":5},{"$f":"'2 REPAIR ESTIMATOR'!P519","v":0},{"$f":"'2 REPAIR ESTIMATOR'!S519","v":0},{"v":0,"d":"$0"},{"v":0,"d":"$0"},{"v":0,"d":"$0"},{"v":0,"d":"$0"},null,0,null,null,{"$f":"'2 REPAIR ESTIMATOR'!AD519","v":{"v":0,"d":"$0.00"}},{"$f":"'2 REPAIR ESTIMATOR'!AM519","v":{"v":0,"d":"$0.00"}},{"v":0,"d":"$0.00"},{"$f":"'2 REPAIR ESTIMATOR'!AG519","v":{"v":0,"d":"$0.00"}},{"$f":"'2 REPAIR ESTIMATOR'!AJ519","v":{"v":0,"d":"$0.00"}}]
[null,null,{"$f":"T('2 REPAIR ESTIMATOR'!D520:O520)","v":""},{"$nulls":5},{"$f":"'2 REPAIR ESTIMATOR'!P520","v":0},{"$f":"'2 REPAIR ESTIMATOR'!S520","v":0},{"v":0,"d":"$0"},{"v":0,"d":"$0"},{"v":0,"d":"$0"},{"v":0,"d":"$0"},null,0,null,null,{"$f":"'2 REPAIR ESTIMATOR'!AD520","v":{"v":0,"d":"$0.00"}},{"$f":"'2 REPAIR ESTIMATOR'!AM520","v":{"v":0,"d":"$0.00"}},{"v":0,"d":"$0.00"},{"$f":"'2 REPAIR ESTIMATOR'!AG520","v":{"v":0,"d":"$0.00"}},{"$f":"'2 REPAIR ESTIMATOR'!AJ520","v":{"v":0,"d":"$0.00"}}]
[null,null,{"$f":"T('2 REPAIR ESTIMATOR'!D521:O521)","v":""},{"$nulls":5},{"$f":"'2 REPAIR ESTIMATOR'!P521","v":0},{"$f":"'2 REPAIR ESTIMATOR'!S521","v":0},{"v":0,"d":"$0"},{"v":0,"d":"$0"},{"v":0,"d":"$0"},{"v":0,"d":"$0"},null,0,null,null,{"$f":"'2 REPAIR ESTIMATOR'!AD521","v":{"v":0,"d":"$0.00"}},{"$f":"'2 REPAIR ESTIMATOR'!AM521","v":{"v":0,"d":"$0.00"}},{"v":0,"d":"$0.00"},{"$f":"'2 REPAIR ESTIMATOR'!AG521","v":{"v":0,"d":"$0.00"}},{"$f":"'2 REPAIR ESTIMATOR'!AJ521","v":{"v":0,"d":"$0.00"}}]
[null,null,{"$f":"T('2 REPAIR ESTIMATOR'!D522:O522)","v":""},{"$nulls":5},{"$f":"'2 REPAIR ESTIMATOR'!P522","v":0},{"$f":"'2 REPAIR ESTIMATOR'!S522","v":0},{"v":0,"d":"$0"},{"v":0,"d":"$0"},{"v":0,"d":"$0"},{"v":0,"d":"$0"},null,0,null,null,{"$f":"'2 REPAIR ESTIMATOR'!AD522","v":{"v":0,"d":"$0.00"}},{"$f":"'2 REPAIR ESTIMATOR'!AM522","v":{"v":0,"d":"$0.00"}},{"v":0,"d":"$0.00"},{"$f":"'2 REPAIR ESTIMATOR'!AG522","v":{"v":0,"d":"$0.00"}},{"$f":"'2 REPAIR ESTIMATOR'!AJ522","v":{"v":0,"d":"$0.00"}}]
[null,null,{"$f":"T('2 REPAIR ESTIMATOR'!D523:O523)","v":""},{"$nulls":5},{"$f":"'2 REPAIR ESTIMATOR'!P523","v":0},{"$f":"'2 REPAIR ESTIMATOR'!S523","v":0},{"v":0,"d":"$0"},{"v":0,"d":"$0"},{"v":0,"d":"$0"},{"v":0,"d":"$0"},null,0,null,null,{"$f":"'2 REPAIR ESTIMATOR'!AD523","v":{"v":0,"d":"$0.00"}},{"$f":"'2 REPAIR ESTIMATOR'!AM523","v":{"v":0,"d":"$0.00"}},{"v":0,"d":"$0.00"},{"$f":"'2 REPAIR ESTIMATOR'!AG523","v":{"v":0,"d":"$0.00"}},{"$f":"'2 REPAIR ESTIMATOR'!AJ523","v":{"v":0,"d":"$0.00"}}]
[null,null,{"$f":"T('2 REPAIR ESTIMATOR'!D524:O524)","v":""},{"$nulls":5},{"$f":"'2 REPAIR ESTIMATOR'!P524","v":0},{"$f":"'2 REPAIR ESTIMATOR'!S524","v":0},{"v":0,"d":"$0"},{"v":0,"d":"$0"},{"v":0,"d":"$0"},{"v":0,"d":"$0"},null,0,null,null,{"$f":"'2 REPAIR ESTIMATOR'!AD524","v":{"v":0,"d":"$0.00"}},{"$f":"'2 REPAIR ESTIMATOR'!AM524","v":{"v":0,"d":"$0.00"}},{"v":0,"d":"$0.00"},{"$f":"'2 REPAIR ESTIMATOR'!AG524","v":{"v":0,"d":"$0.00"}},{"$f":"'2 REPAIR ESTIMATOR'!AJ524","v":{"v":0,"d":"$0.00"}}]
[null,null,{"$f":"T('2 REPAIR ESTIMATOR'!D525:O525)","v":""},{"$nulls":5},{"$f":"'2 REPAIR ESTIMATOR'!P525","v":0},{"$f":"'2 REPAIR ESTIMATOR'!S525","v":0},{"v":0,"d":"$0"},{"v":0,"d":"$0"},{"v":0,"d":"$0"},{"v":0,"d":"$0"},null,0,null,null,{"$f":"'2 REPAIR ESTIMATOR'!AD525","v":{"v":0,"d":"$0.00"}},{"$f":"'2 REPAIR ESTIMATOR'!AM525","v":{"v":0,"d":"$0.00"}},{"v":0,"d":"$0.00"},{"$f":"'2 REPAIR ESTIMATOR'!AG525","v":{"v":0,"d":"$0.00"}},{"$f":"'2 REPAIR ESTIMATOR'!AJ525","v":{"v":0,"d":"$0.00"}}]
[null,null,{"$f":"T('2 REPAIR ESTIMATOR'!D526:O526)","v":""},{"$nulls":5},{"$f":"'2 REPAIR ESTIMATOR'!P526","v":0},{"$f":"'2 REPAIR ESTIMATOR'!S526","v":0},{"v":0,"d":"$0"},{"v":0,"d":"$0"},{"v":0,"d":"$0"},{"v":0,"d":"$0"},null,0,null,null,{"$f":"'2 REPAIR ESTIMATOR'!AD526","v":{"v":0,"d":"$0.00"}},{"$f":"'2 REPAIR ESTIMATOR'!AM526","v":{"v":0,"d":"$0.00"}},{"v":0,"d":"$0.00"},{"$f":"'2 REPAIR ESTIMATOR'!AG526","v":{"v":0,"d":"$0.00"}},{"$f":"'2 REPAIR ESTIMATOR'!AJ526","v":{"v":0,"d":"$0.00"}}]
[null,null,{"$f":"T('2 REPAIR ESTIMATOR'!D527:O527)","v":""},{"$nulls":5},{"$f":"'2 REPAIR ESTIMATOR'!P527","v":0},{"$f":"'2 REPAIR ESTIMATOR'!S527","v":0},{"v":0,"d":"$0"},{"v":0,"d":"$0"},{"v":0,"d":"$0"},{"v":0,"d":"$0"},null,0,null,null,{"$f":"'2 REPAIR ESTIMATOR'!AD527","v":{"v":0,"d":"$0.00"}},{"$f":"'2 REPAIR ESTIMATOR'!AM527","v":{"v":0,"d":"$0.00"}},{"v":0,"d":"$0.00"},{"$f":"'2 REPAIR ESTIMATOR'!AG527","v":{"v":0,"d":"$0.00"}},{"$f":"'2 REPAIR ESTIMATOR'!AJ527","v":{"v":0,"d":"$0.00"}}]
[null,null,{"$f":"T('2 REPAIR ESTIMATOR'!D528:O528)","v":""},{"$nulls":5},{"$f":"'2 REPAIR ESTIMATOR'!P528","v":0},{"$f":"'2 REPAIR ESTIMATOR'!S528","v":0},{"v":0,"d":"$0"},{"v":0,"d":"$0"},{"v":0,"d":"$0"},{"v":0,"d":"$0"},null,0,null,null,{"$f":"'2 REPAIR ESTIMATOR'!AD528","v":{"v":0,"d":"$0.00"}},{"$f":"'2 REPAIR ESTIMATOR'!AM528","v":{"v":0,"d":"$0.00"}},{"v":0,"d":"$0.00"},{"$f":"'2 REPAIR ESTIMATOR'!AG528","v":{"v":0,"d":"$0.00"}},{"$f":"'2 REPAIR ESTIMATOR'!AJ528","v":{"v":0,"d":"$0.00"}}]
[null,null,{"$f":"T('2 REPAIR ESTIMATOR'!D529:O529)","v":""},{"$nulls":5},{"$f":"'2 REPAIR ESTIMATOR'!P529","v":0},{"$f":"'2 REPAIR ESTIMATOR'!S529","v":0},{"v":0,"d":"$0"},{"v":0,"d":"$0"},{"v":0,"d":"$0"},{"v":0,"d":"$0"},null,0,null,null,{"$f":"'2 REPAIR ESTIMATOR'!AD529","v":{"v":0,"d":"$0.00"}},{"$f":"'2 REPAIR ESTIMATOR'!AM529","v":{"v":0,"d":"$0.00"}},{"v":0,"d":"$0.00"},{"$f":"'2 REPAIR ESTIMATOR'!AG529","v":{"v":0,"d":"$0.00"}},{"$f":"'2 REPAIR ESTIMATOR'!AJ529","v":{"v":0,"d":"$0.00"}}]
[null,null,{"$f":"T('2 REPAIR ESTIMATOR'!D530:O530)","v":""},{"$nulls":5},{"$f":"'2 REPAIR ESTIMATOR'!P530","v":0},{"$f":"'2 REPAIR ESTIMATOR'!S530","v":0},{"v":0,"d":"$0"},{"v":0,"d":"$0"},{"v":0,"d":"$0"},{"v":0,"d":"$0"},null,0,null,null,{"$f":"'2 REPAIR ESTIMATOR'!AD530","v":{"v":0,"d":"$0.00"}},{"$f":"'2 REPAIR ESTIMATOR'!AM530","v":{"v":0,"d":"$0.00"}},{"v":0,"d":"$0.00"},{"$f":"'2 REPAIR ESTIMATOR'!AG530","v":{"v":0,"d":"$0.00"}},{"$f":"'2 REPAIR ESTIMATOR'!AJ530","v":{"v":0,"d":"$0.00"}}]
[null,null,{"$f":"T('2 REPAIR ESTIMATOR'!D531:O531)","v":""},{"$nulls":5},{"$f":"'2 REPAIR ESTIMATOR'!P531","v":0},{"$f":"'2 REPAIR ESTIMATOR'!S531","v":0},{"v":0,"d":"$0"},{"v":0,"d":"$0"},{"v":0,"d":"$0"},{"v":0,"d":"$0"},null,0,null,null,{"$f":"'2 REPAIR ESTIMATOR'!AD531","v":{"v":0,"d":"$0.00"}},{"$f":"'2 REPAIR ESTIMATOR'!AM531","v":{"v":0,"d":"$0.00"}},{"v":0,"d":"$0.00"},{"$f":"'2 REPAIR ESTIMATOR'!AG531","v":{"v":0,"d":"$0.00"}},{"$f":"'2 REPAIR ESTIMATOR'!AJ531","v":{"v":0,"d":"$0.00"}}]
[null,null,{"$f":"T('2 REPAIR ESTIMATOR'!D532:O532)","v":""},{"$nulls":5},{"$f":"'2 REPAIR ESTIMATOR'!P532","v":0},{"$f":"'2 REPAIR ESTIMATOR'!S532","v":0},{"v":0,"d":"$0"},{"v":0,"d":"$0"},{"v":0,"d":"$0"},{"v":0,"d":"$0"},null,0,null,null,{"$f":"'2 REPAIR ESTIMATOR'!AD532","v":{"v":0,"d":"$0.00"}},{"$f":"'2 REPAIR ESTIMATOR'!AM532","v":{"v":0,"d":"$0.00"}},{"v":0,"d":"$0.00"},{"$f":"'2 REPAIR ESTIMATOR'!AG532","v":{"v":0,"d":"$0.00"}},{"$f":"'2 REPAIR ESTIMATOR'!AJ532","v":{"v":0,"d":"$0.00"}}]
[null,null,{"$f":"T('2 REPAIR ESTIMATOR'!AC534)","v":"GARAGE DOORS TOTAL"},{"$nulls":7},{"$f":"SUM(K460:K499)","v":{"v":400,"d":"$400"}},{"$f":"SUM(L460:L499)","v":{"v":963,"d":"$963"}},{"$f":"SUM(M460:M499)","v":{"v":0,"d":"$0"}},{"$f":"SUM(N460:O499)","v":{"v":1363,"d":"$1,363"}},null,{"$f":"SUM(P459:P466)","v":4},null,null,{"$f":"SUM(S460:S499)","v":{"v":400,"d":"$400.00"}},{"$f":"SUM(T460:T499)","v":{"v":0,"d":"$0.00"}},{"$f":"SUM(U460:U499)","v":{"v":400,"d":"$400.00"}},{"$f":"SUM(V460:V499)","v":{"v":963,"d":"$963.00"}},{"$f":"SUM(W460:W499)","v":{"v":0,"d":"$0.00"}}]
[{"$nulls":15},{"$f":"P500","v":4}]
[null,null,{"$f":"T('2 REPAIR ESTIMATOR'!D537:O537)","v":"LANDSCAPING"},{"$nulls":5},{"$f":"SUM(I503:I542)","v":1},{"$nulls":6},{"$f":"I502","v":1}]
[null,null,{"$f":"T('2 REPAIR ESTIMATOR'!D538:O538)","v":"Landscaping bid/allowance, trees, bushes, flowers"},{"$nulls":5},{"$f":"'2 REPAIR ESTIMATOR'!P538","v":1},{"$f":"'2 REPAIR ESTIMATOR'!S538","v":"ls"},{"$f":"IF($N$3=\"subbed\",U503,S503)*$S$70","v":{"v":250,"d":"$250"}},{"$f":"V503*$S$70","v":{"v":321,"d":"$321"}},{"$f":"W503*$S$70","v":{"v":0,"d":"$0"}},{"$f":"SUM(K503:M503)","v":{"v":571,"d":"$571"}},null,{"$f":"I503","v":1},null,null,{"$f":"'2 REPAIR ESTIMATOR'!AD538","v":{"v":250,"d":"$250.00"}},{"$f":"'2 REPAIR ESTIMATOR'!AM538","v":{"v":0,"d":"$0.00"}},{"$f":"T503+S503","v":{"v":250,"d":"$250.00"}},{"$f":"'2 REPAIR ESTIMATOR'!AG538","v":{"v":321,"d":"$321.00"}},{"$f":"'2 REPAIR ESTIMATOR'!AJ538","v":{"v":0,"d":"$0.00"}}]
[null,null,{"$f":"T('2 REPAIR ESTIMATOR'!D539:O539)","v":"Sod"},{"$nulls":5},{"$f":"'2 REPAIR ESTIMATOR'!P539","v":0},{"$f":"'2 REPAIR ESTIMATOR'!S539","v":"sf"},{"v":0,"d":"$0"},{"$f":"V504*$S$70","v":{"v":0,"d":"$0"}},{"$f":"W504*$S$70","v":{"v":0,"d":"$0"}},{"$f":"SUM(K504:M504)","v":{"v":0,"d":"$0"}},null,{"$f":"I504","v":0},null,null,{"$f":"'2 REPAIR ESTIMATOR'!AD539","v":{"v":0,"d":"$0.00"}},{"$f":"'2 REPAIR ESTIMATOR'!AM539","v":{"v":0,"d":"$0.00"}},{"$f":"T504+S504","v":{"v":0,"d":"$0.00"}},{"$f":"'2 REPAIR ESTIMATOR'!AG539","v":{"v":0,"d":"$0.00"}},{"$f":"'2 REPAIR ESTIMATOR'!AJ539","v":{"v":0,"d":"$0.00"}}]
[null,null,{"$f":"T('2 REPAIR ESTIMATOR'!D540:O540)","v":"Seeding"},{"$nulls":5},{"$f":"'2 REPAIR ESTIMATOR'!P540","v":0},{"$f":"'2 REPAIR ESTIMATOR'!S540","v":"sf"},{"v":0,"d":"$0"},{"v":0,"d":"$0"},{"v":0,"d":"$0"},{"v":0,"d":"$0"},null,{"$f":"I505","v":0},null,null,{"$f":"'2 REPAIR ESTIMATOR'!AD540","v":{"v":0,"d":"$0.00"}},{"$f":"'2 REPAIR ESTIMATOR'!AM540","v":{"v":0,"d":"$0.00"}},{"v":0,"d":"$0.00"},{"$f":"'2 REPAIR ESTIMATOR'!AG540","v":{"v":0,"d":"$0.00"}},{"$f":"'2 REPAIR ESTIMATOR'!AJ540","v":{"v":0,"d":"$0.00"}}]
[null,null,{"$f":"T('2 REPAIR ESTIMATOR'!D541:O541)","v":"Shrubs/plantings, 1 gallon"},{"$nulls":5},{"$f":"'2 REPAIR ESTIMATOR'!P541","v":0},{"$f":"'2 REPAIR ESTIMATOR'!S541","v":"ea"},{"v":0,"d":"$0"},{"v":0,"d":"$0"},{"v":0,"d":"$0"},{"v":0,"d":"$0"},null,0,null,null,{"$f":"'2 REPAIR ESTIMATOR'!AD541","v":{"v":0,"d":"$0.00"}},{"$f":"'2 REPAIR ESTIMATOR'!AM541","v":{"v":0,"d":"$0.00"}},{"v":0,"d":"$0.00"},{"$f":"'2 REPAIR ESTIMATOR'!AG541","v":{"v":0,"d":"$0.00"}},{"$f":"'2 REPAIR ESTIMATOR'!AJ541","v":{"v":0,"d":"$0.00"}}]
[null,null,{"$f":"T('2 REPAIR ESTIMATOR'!D542:O542)","v":"Shrubs/plantings, 2 gallon"},{"$nulls":5},{"$f":"'2 REPAIR ESTIMATOR'!P542","v":0},{"$f":"'2 REPAIR ESTIMATOR'!S542","v":"ea"},{"v":0,"d":"$0"},{"v":0,"d":"$0"},{"v":0,"d":"$0"},{"v":0,"d":"$0"},null,0,null,null,{"$f":"'2 REPAIR ESTIMATOR'!AD542","v":{"v":0,"d":"$0.00"}},{"$f":"'2 REPAIR ESTIMATOR'!AM542","v":{"v":0,"d":"$0.00"}},{"v":0,"d":"$0.00"},{"$f":"'2 REPAIR ESTIMATOR'!AG542","v":{"v":0,"d":"$0.00"}},{"$f":"'2 REPAIR ESTIMATOR'!AJ542","v":{"v":0,"d":"$0.00"}}]
[null,null,{"$f":"T('2 REPAIR ESTIMATOR'!D543:O543)","v":"Shrubs/plantings, 5 gallon"},{"$nulls":5},{"$f":"'2 REPAIR ESTIMATOR'!P543","v":0},{"$f":"'2 REPAIR ESTIMATOR'!S543","v":"ea"},{"v":0,"d":"$0"},{"v":0,"d":"$0"},{"v":0,"d":"$0"},{"v":0,"d":"$0"},null,0,null,null,{"$f":"'2 REPAIR ESTIMATOR'!AD543","v":{"v":0,"d":"$0.00"}},{"$f":"'2 REPAIR ESTIMATOR'!AM543","v":{"v":0,"d":"$0.00"}},{"v":0,"d":"$0.00"},{"$f":"'2 REPAIR ESTIMATOR'!AG543","v":{"v":0,"d":"$0.00"}},{"$f":"'2 REPAIR ESTIMATOR'!AJ543","v":{"v":0,"d":"$0.00"}}]
[null,null,{"$f":"T('2 REPAIR ESTIMATOR'!D544:O544)","v":"Small trees, 1-2\" caliper, 10 gallon"},{"$nulls":5},{"$f":"'2 REPAIR ESTIMATOR'!P544","v":0},{"$f":"'2 REPAIR ESTIMATOR'!S544","v":"ea"},{"v":0,"d":"$0"},{"v":0,"d":"$0"},{"v":0,"d":"$0"},{"v":0,"d":"$0"},null,0,null,null,{"$f":"'2 REPAIR ESTIMATOR'!AD544","v":{"v":0,"d":"$0.00"}},{"$f":"'2 REPAIR ESTIMATOR'!AM544","v":{"v":0,"d":"$0.00"}},{"v":0,"d":"$0.00"},{"$f":"'2 REPAIR ESTIMATOR'!AG544","v":{"v":0,"d":"$0.00"}},{"$f":"'2 REPAIR ESTIMATOR'!AJ544","v":{"v":0,"d":"$0.00"}}]
[null,null,{"$f":"T('2 REPAIR ESTIMATOR'!D545:O545)","v":"Small trees, 1-2\" 15 gallon"},{"$nulls":5},{"$f":"'2 REPAIR ESTIMATOR'!P545","v":0},{"$f":"'2 REPAIR ESTIMATOR'!S545","v":"ea"},{"v":0,"d":"$0"},{"v":0,"d":"$0"},{"v":0,"d":"$0"},{"v":0,"d":"$0"},null,0,null,null,{"$f":"'2 REPAIR ESTIMATOR'!AD545","v":{"v":0,"d":"$0.00"}},{"$f":"'2 REPAIR ESTIMATOR'!AM545","v":{"v":0,"d":"$0.00"}},{"v":0,"d":"$0.00"},{"$f":"'2 REPAIR ESTIMATOR'!AG545","v":{"v":0,"d":"$0.00"}},{"$f":"'2 REPAIR ESTIMATOR'!AJ545","v":{"v":0,"d":"$0.00"}}]
[null,null,{"$f":"T('2 REPAIR ESTIMATOR'!D546:O546)","v":"36\" box tree"},{"$nulls":5},{"$f":"'2 REPAIR ESTIMATOR'!P546","v":0},{"$f":"'2 REPAIR ESTIMATOR'!S546","v":"ea"},{"v":0,"d":"$0"},{"v":0,"d":"$0"},{"v":0,"d":"$0"},{"v":0,"d":"$0"},null,0,null,null,{"$f":"'2 REPAIR ESTIMATOR'!AD546","v":{"v":0,"d":"$0.00"}},{"$f":"'2 REPAIR ESTIMATOR'!AM546","v":{"v":0,"d":"$0.00"}},{"v":0,"d":"$0.00"},{"$f":"'2 REPAIR ESTIMATOR'!AG546","v":{"v":0,"d":"$0.00"}},{"$f":"'2 REPAIR ESTIMATOR'!AJ546","v":{"v":0,"d":"$0.00"}}]
[null,null,{"$f":"T('2 REPAIR ESTIMATOR'!D547:O547)","v":"Mulch, standard 3\" thick"},{"$nulls":5},{"$f":"'2 REPAIR ESTIMATOR'!P547","v":0},{"$f":"'2 REPAIR ESTIMATOR'!S547","v":"sf"},{"v":0,"d":"$0"},{"v":0,"d":"$0"},{"v":0,"d":"$0"},{"v":0,"d":"$0"},null,0,null,null,{"$f":"'2 REPAIR ESTIMATOR'!AD547","v":{"v":0,"d":"$0.00"}},{"$f":"'2 REPAIR ESTIMATOR'!AM547","v":{"v":0,"d":"$0.00"}},{"v":0,"d":"$0.00"},{"$f":"'2 REPAIR ESTIMATOR'!AG547","v":{"v":0,"d":"$0.00"}},{"$f":"'2 REPAIR ESTIMATOR'!AJ547","v":{"v":0,"d":"$0.00"}}]
[null,null,{"$f":"T('2 REPAIR ESTIMATOR'!D548:O548)","v":"Landscape rock, 3/4\""},{"$nulls":5},{"$f":"'2 REPAIR ESTIMATOR'!P548","v":0},{"$f":"'2 REPAIR ESTIMATOR'!S548","v":"sf"},{"v":0,"d":"$0"},{"v":0,"d":"$0"},{"v":0,"d":"$0"},{"v":0,"d":"$0"},null,0,null,null,{"$f":"'2 REPAIR ESTIMATOR'!AD548","v":{"v":0,"d":"$0.00"}},{"$f":"'2 REPAIR ESTIMATOR'!AM548","v":{"v":0,"d":"$0.00"}},{"v":0,"d":"$0.00"},{"$f":"'2 REPAIR ESTIMATOR'!AG548","v":{"v":0,"d":"$0.00"}},{"$f":"'2 REPAIR ESTIMATOR'!AJ548","v":{"v":0,"d":"$0.00"}}]
[null,null,{"$f":"T('2 REPAIR ESTIMATOR'!D549:O549)","v":"Cobble stone rock"},{"$nulls":5},{"$f":"'2 REPAIR ESTIMATOR'!P549","v":0},{"$f":"'2 REPAIR ESTIMATOR'!S549","v":"sf"},{"v":0,"d":"$0"},{"v":0,"d":"$0"},{"v":0,"d":"$0"},{"v":0,"d":"$0"},null,0,null,null,{"$f":"'2 REPAIR ESTIMATOR'!AD549","v":{"v":0,"d":"$0.00"}},{"$f":"'2 REPAIR ESTIMATOR'!AM549","v":{"v":0,"d":"$0.00"}},{"v":0,"d":"$0.00"},{"$f":"'2 REPAIR ESTIMATOR'!AG549","v":{"v":0,"d":"$0.00"}},{"$f":"'2 REPAIR ESTIMATOR'!AJ549","v":{"v":0,"d":"$0.00"}}]
[null,null,{"$f":"T('2 REPAIR ESTIMATOR'!D550:O550)","v":"Tree removal, per tree"},{"$nulls":5},{"$f":"'2 REPAIR ESTIMATOR'!P550","v":0},{"$f":"'2 REPAIR ESTIMATOR'!S550","v":"ea"},{"v":0,"d":"$0"},{"v":0,"d":"$0"},{"v":0,"d":"$0"},{"v":0,"d":"$0"},null,0,null,null,{"$f":"'2 REPAIR ESTIMATOR'!AD550","v":{"v":0,"d":"$0.00"}},{"$f":"'2 REPAIR ESTIMATOR'!AM550","v":{"v":0,"d":"$0.00"}},{"v":0,"d":"$0.00"},{"$f":"'2 REPAIR ESTIMATOR'!AG550","v":{"v":0,"d":"$0.00"}},{"$f":"'2 REPAIR ESTIMATOR'!AJ550","v":{"v":0,"d":"$0.00"}}]
[null,null,{"$f":"T('2 REPAIR ESTIMATOR'!D551:O551)","v":"Stacked, retaining wall"},{"$nulls":5},{"$f":"'2 REPAIR ESTIMATOR'!P551","v":0},{"$f":"'2 REPAIR ESTIMATOR'!S551","v":"sf"},{"v":0,"d":"$0"},{"v":0,"d":"$0"},{"v":0,"d":"$0"},{"v":0,"d":"$0"},null,0,null,null,{"$f":"'2 REPAIR ESTIMATOR'!AD551","v":{"v":0,"d":"$0.00"}},{"$f":"'2 REPAIR ESTIMATOR'!AM551","v":{"v":0,"d":"$0.00"}},{"v":0,"d":"$0.00"},{"$f":"'2 REPAIR ESTIMATOR'!AG551","v":{"v":0,"d":"$0.00"}},{"$f":"'2 REPAIR ESTIMATOR'!AJ551","v":{"v":0,"d":"$0.00"}}]
[null,null,{"$f":"T('2 REPAIR ESTIMATOR'!D552:O552)","v":""},{"$nulls":5},{"$f":"'2 REPAIR ESTIMATOR'!P552","v":0},{"$f":"'2 REPAIR ESTIMATOR'!S552","v":0},{"v":0,"d":"$0"},{"v":0,"d":"$0"},{"v":0,"d":"$0"},{"v":0,"d":"$0"},null,0,null,null,{"$f":"'2 REPAIR ESTIMATOR'!AD552","v":{"v":0,"d":"$0.00"}},{"$f":"'2 REPAIR ESTIMATOR'!AM552","v":{"v":0,"d":"$0.00"}},{"v":0,"d":"$0.00"},{"$f":"'2 REPAIR ESTIMATOR'!AG552","v":{"v":0,"d":"$0.00"}},{"$f":"'2 REPAIR ESTIMATOR'!AJ552","v":{"v":0,"d":"$0.00"}}]
[null,null,{"$f":"T('2 REPAIR ESTIMATOR'!D553:O553)","v":""},{"$nulls":5},{"$f":"'2 REPAIR ESTIMATOR'!P553","v":0},{"$f":"'2 REPAIR ESTIMATOR'!S553","v":0},{"v":0,"d":"$0"},{"v":0,"d":"$0"},{"v":0,"d":"$0"},{"v":0,"d":"$0"},null,0,null,null,{"$f":"'2 REPAIR ESTIMATOR'!AD553","v":{"v":0,"d":"$0.00"}},{"$f":"'2 REPAIR ESTIMATOR'!AM553","v":{"v":0,"d":"$0.00"}},{"v":0,"d":"$0.00"},{"$f":"'2 REPAIR ESTIMATOR'!AG553","v":{"v":0,"d":"$0.00"}},{"$f":"'2 REPAIR ESTIMATOR'!AJ553","v":{"v":0,"d":"$0.00"}}]
[null,null,{"$f":"T('2 REPAIR ESTIMATOR'!D554:O554)","v":""},{"$nulls":5},{"$f":"'2 REPAIR ESTIMATOR'!P554","v":0},{"$f":"'2 REPAIR ESTIMATOR'!S554","v":0},{"v":0,"d":"$0"},{"v":0,"d":"$0"},{"v":0,"d":"$0"},{"v":0,"d":"$0"},null,0,null,null,{"$f":"'2 REPAIR ESTIMATOR'!AD554","v":{"v":0,"d":"$0.00"}},{"$f":"'2 REPAIR ESTIMATOR'!AM554","v":{"v":0,"d":"$0.00"}},{"v":0,"d":"$0.00"},{"$f":"'2 REPAIR ESTIMATOR'!AG554","v":{"v":0,"d":"$0.00"}},{"$f":"'2 REPAIR ESTIMATOR'!AJ554","v":{"v":0,"d":"$0.00"}}]
[null,null,{"$f":"T('2 REPAIR ESTIMATOR'!D555:O555)","v":""},{"$nulls":5},{"$f":"'2 REPAIR ESTIMATOR'!P555","v":0},{"$f":"'2 REPAIR ESTIMATOR'!S555","v":0},{"v":0,"d":"$0"},{"v":0,"d":"$0"},{"v":0,"d":"$0"},{"v":0,"d":"$0"},null,0,null,null,{"$f":"'2 REPAIR ESTIMATOR'!AD555","v":{"v":0,"d":"$0.00"}},{"$f":"'2 REPAIR ESTIMATOR'!AM555","v":{"v":0,"d":"$0.00"}},{"v":0,"d":"$0.00"},{"$f":"'2 REPAIR ESTIMATOR'!AG555","v":{"v":0,"d":"$0.00"}},{"$f":"'2 REPAIR ESTIMATOR'!AJ555","v":{"v":0,"d":"$0.00"}}]
[null,null,{"$f":"T('2 REPAIR ESTIMATOR'!D556:O556)","v":""},{"$nulls":5},{"$f":"'2 REPAIR ESTIMATOR'!P556","v":0},{"$f":"'2 REPAIR ESTIMATOR'!S556","v":0},{"v":0,"d":"$0"},{"v":0,"d":"$0"},{"v":0,"d":"$0"},{"v":0,"d":"$0"},null,0,null,null,{"$f":"'2 REPAIR ESTIMATOR'!AD556","v":{"v":0,"d":"$0.00"}},{"$f":"'2 REPAIR ESTIMATOR'!AM556","v":{"v":0,"d":"$0.00"}},{"v":0,"d":"$0.00"},{"$f":"'2 REPAIR ESTIMATOR'!AG556","v":{"v":0,"d":"$0.00"}},{"$f":"'2 REPAIR ESTIMATOR'!AJ556","v":{"v":0,"d":"$0.00"}}]
[null,null,{"$f":"T('2 REPAIR ESTIMATOR'!D557:O557)","v":""},{"$nulls":5},{"$f":"'2 REPAIR ESTIMATOR'!P557","v":0},{"$f":"'2 REPAIR ESTIMATOR'!S557","v":0},{"v":0,"d":"$0"},{"v":0,"d":"$0"},{"v":0,"d":"$0"},{"v":0,"d":"$0"},null,0,null,null,{"$f":"'2 REPAIR ESTIMATOR'!AD557","v":{"v":0,"d":"$0.00"}},{"$f":"'2 REPAIR ESTIMATOR'!AM557","v":{"v":0,"d":"$0.00"}},{"v":0,"d":"$0.00"},{"$f":"'2 REPAIR ESTIMATOR'!AG557","v":{"v":0,"d":"$0.00"}},{"$f":"'2 REPAIR ESTIMATOR'!AJ557","v":{"v":0,"d":"$0.00"}}]
[null,null,{"$f":"T('2 REPAIR ESTIMATOR'!D558:O558)","v":""},{"$nulls":5},{"$f":"'2 REPAIR ESTIMATOR'!P558","v":0},{"$f":"'2 REPAIR ESTIMATOR'!S558","v":0},{"v":0,"d":"$0"},{"v":0,"d":"$0"},{"v":0,"d":"$0"},{"v":0,"d":"$0"},null,0,null,null,{"$f":"'2 REPAIR ESTIMATOR'!AD558","v":{"v":0,"d":"$0.00"}},{"$f":"'2 REPAIR ESTIMATOR'!AM558","v":{"v":0,"d":"$0.00"}},{"v":0,"d":"$0.00"},{"$f":"'2 REPAIR ESTIMATOR'!AG558","v":{"v":0,"d":"$0.00"}},{"$f":"'2 REPAIR ESTIMATOR'!AJ558","v":{"v":0,"d":"$0.00"}}]
[null,null,{"$f":"T('2 REPAIR ESTIMATOR'!D559:O559)","v":""},{"$nulls":5},{"$f":"'2 REPAIR ESTIMATOR'!P559","v":0},{"$f":"'2 REPAIR ESTIMATOR'!S559","v":0},{"v":0,"d":"$0"},{"v":0,"d":"$0"},{"v":0,"d":"$0"},{"v":0,"d":"$0"},null,0,null,null,{"$f":"'2 REPAIR ESTIMATOR'!AD559","v":{"v":0,"d":"$0.00"}},{"$f":"'2 REPAIR ESTIMATOR'!AM559","v":{"v":0,"d":"$0.00"}},{"v":0,"d":"$0.00"},{"$f":"'2 REPAIR ESTIMATOR'!AG559","v":{"v":0,"d":"$0.00"}},{"$f":"'2 REPAIR ESTIMATOR'!AJ559","v":{"v":0,"d":"$0.00"}}]
[null,null,{"$f":"T('2 REPAIR ESTIMATOR'!D560:O560)","v":""},{"$nulls":5},{"$f":"'2 REPAIR ESTIMATOR'!P560","v":0},{"$f":"'2 REPAIR ESTIMATOR'!S560","v":0},{"v":0,"d":"$0"},{"v":0,"d":"$0"},{"v":0,"d":"$0"},{"v":0,"d":"$0"},null,{"$f":"I525","v":0},null,null,{"$f":"'2 REPAIR ESTIMATOR'!AD560","v":{"v":0,"d":"$0.00"}},{"$f":"'2 REPAIR ESTIMATOR'!AM560","v":{"v":0,"d":"$0.00"}},{"v":0,"d":"$0.00"},{"$f":"'2 REPAIR ESTIMATOR'!AG560","v":{"v":0,"d":"$0.00"}},{"$f":"'2 REPAIR ESTIMATOR'!AJ560","v":{"v":0,"d":"$0.00"}}]
[null,null,{"$f":"T('2 REPAIR ESTIMATOR'!D561:O561)","v":""},{"$nulls":5},{"$f":"'2 REPAIR ESTIMATOR'!P561","v":0},{"$f":"'2 REPAIR ESTIMATOR'!S561","v":0},{"v":0,"d":"$0"},{"v":0,"d":"$0"},{"v":0,"d":"$0"},{"v":0,"d":"$0"},null,0,null,null,{"$f":"'2 REPAIR ESTIMATOR'!AD561","v":{"v":0,"d":"$0.00"}},{"$f":"'2 REPAIR ESTIMATOR'!AM561","v":{"v":0,"d":"$0.00"}},{"v":0,"d":"$0.00"},{"$f":"'2 REPAIR ESTIMATOR'!AG561","v":{"v":0,"d":"$0.00"}},{"$f":"'2 REPAIR ESTIMATOR'!AJ561","v":{"v":0,"d":"$0.00"}}]
[null,null,{"$f":"T('2 REPAIR ESTIMATOR'!D562:O562)","v":""},{"$nulls":5},{"$f":"'2 REPAIR ESTIMATOR'!P562","v":0},{"$f":"'2 REPAIR ESTIMATOR'!S562","v":0},{"v":0,"d":"$0"},{"v":0,"d":"$0"},{"v":0,"d":"$0"},{"v":0,"d":"$0"},null,0,null,null,{"$f":"'2 REPAIR ESTIMATOR'!AD562","v":{"v":0,"d":"$0.00"}},{"$f":"'2 REPAIR ESTIMATOR'!AM562","v":{"v":0,"d":"$0.00"}},{"v":0,"d":"$0.00"},{"$f":"'2 REPAIR ESTIMATOR'!AG562","v":{"v":0,"d":"$0.00"}},{"$f":"'2 REPAIR ESTIMATOR'!AJ562","v":{"v":0,"d":"$0.00"}}]
[null,null,{"$f":"T('2 REPAIR ESTIMATOR'!D563:O563)","v":""},{"$nulls":5},{"$f":"'2 REPAIR ESTIMATOR'!P563","v":0},{"$f":"'2 REPAIR ESTIMATOR'!S563","v":0},{"v":0,"d":"$0"},{"v":0,"d":"$0"},{"v":0,"d":"$0"},{"v":0,"d":"$0"},null,0,null,null,{"$f":"'2 REPAIR ESTIMATOR'!AD563","v":{"v":0,"d":"$0.00"}},{"$f":"'2 REPAIR ESTIMATOR'!AM563","v":{"v":0,"d":"$0.00"}},{"v":0,"d":"$0.00"},{"$f":"'2 REPAIR ESTIMATOR'!AG563","v":{"v":0,"d":"$0.00"}},{"$f":"'2 REPAIR ESTIMATOR'!AJ563","v":{"v":0,"d":"$0.00"}}]
[null,null,{"$f":"T('2 REPAIR ESTIMATOR'!D564:O564)","v":""},{"$nulls":5},{"$f":"'2 REPAIR ESTIMATOR'!P564","v":0},{"$f":"'2 REPAIR ESTIMATOR'!S564","v":0},{"v":0,"d":"$0"},{"v":0,"d":"$0"},{"v":0,"d":"$0"},{"v":0,"d":"$0"},null,0,null,null,{"$f":"'2 REPAIR ESTIMATOR'!AD564","v":{"v":0,"d":"$0.00"}},{"$f":"'2 REPAIR ESTIMATOR'!AM564","v":{"v":0,"d":"$0.00"}},{"v":0,"d":"$0.00"},{"$f":"'2 REPAIR ESTIMATOR'!AG564","v":{"v":0,"d":"$0.00"}},{"$f":"'2 REPAIR ESTIMATOR'!AJ564","v":{"v":0,"d":"$0.00"}}]
[null,null,{"$f":"T('2 REPAIR ESTIMATOR'!D565:O565)","v":""},{"$nulls":5},{"$f":"'2 REPAIR ESTIMATOR'!P565","v":0},{"$f":"'2 REPAIR ESTIMATOR'!S565","v":0},{"v":0,"d":"$0"},{"v":0,"d":"$0"},{"v":0,"d":"$0"},{"v":0,"d":"$0"},null,0,null,null,{"$f":"'2 REPAIR ESTIMATOR'!AD565","v":{"v":0,"d":"$0.00"}},{"$f":"'2 REPAIR ESTIMATOR'!AM565","v":{"v":0,"d":"$0.00"}},{"v":0,"d":"$0.00"},{"$f":"'2 REPAIR ESTIMATOR'!AG565","v":{"v":0,"d":"$0.00"}},{"$f":"'2 REPAIR ESTIMATOR'!AJ565","v":{"v":0,"d":"$0.00"}}]
[null,null,{"$f":"T('2 REPAIR ESTIMATOR'!D566:O566)","v":""},{"$nulls":5},{"$f":"'2 REPAIR ESTIMATOR'!P566","v":0},{"$f":"'2 REPAIR ESTIMATOR'!S566","v":0},{"v":0,"d":"$0"},{"v":0,"d":"$0"},{"v":0,"d":"$0"},{"v":0,"d":"$0"},null,0,null,null,{"$f":"'2 REPAIR ESTIMATOR'!AD566","v":{"v":0,"d":"$0.00"}},{"$f":"'2 REPAIR ESTIMATOR'!AM566","v":{"v":0,"d":"$0.00"}},{"v":0,"d":"$0.00"},{"$f":"'2 REPAIR ESTIMATOR'!AG566","v":{"v":0,"d":"$0.00"}},{"$f":"'2 REPAIR ESTIMATOR'!AJ566","v":{"v":0,"d":"$0.00"}}]
[null,null,{"$f":"T('2 REPAIR ESTIMATOR'!D567:O567)","v":""},{"$nulls":5},{"$f":"'2 REPAIR ESTIMATOR'!P567","v":0},{"$f":"'2 REPAIR ESTIMATOR'!S567","v":0},{"v":0,"d":"$0"},{"v":0,"d":"$0"},{"v":0,"d":"$0"},{"v":0,"d":"$0"},null,0,null,null,{"$f":"'2 REPAIR ESTIMATOR'!AD567","v":{"v":0,"d":"$0.00"}},{"$f":"'2 REPAIR ESTIMATOR'!AM567","v":{"v":0,"d":"$0.00"}},{"v":0,"d":"$0.00"},{"$f":"'2 REPAIR ESTIMATOR'!AG567","v":{"v":0,"d":"$0.00"}},{"$f":"'2 REPAIR ESTIMATOR'!AJ567","v":{"v":0,"d":"$0.00"}}]
[null,null,{"$f":"T('2 REPAIR ESTIMATOR'!D568:O568)","v":""},{"$nulls":5},{"$f":"'2 REPAIR ESTIMATOR'!P568","v":0},{"$f":"'2 REPAIR ESTIMATOR'!S568","v":0},{"v":0,"d":"$0"},{"v":0,"d":"$0"},{"v":0,"d":"$0"},{"v":0,"d":"$0"},null,0,null,null,{"$f":"'2 REPAIR ESTIMATOR'!AD568","v":{"v":0,"d":"$0.00"}},{"$f":"'2 REPAIR ESTIMATOR'!AM568","v":{"v":0,"d":"$0.00"}},{"v":0,"d":"$0.00"},{"$f":"'2 REPAIR ESTIMATOR'!AG568","v":{"v":0,"d":"$0.00"}},{"$f":"'2 REPAIR ESTIMATOR'!AJ568","v":{"v":0,"d":"$0.00"}}]
[null,null,{"$f":"T('2 REPAIR ESTIMATOR'!D569:O569)","v":""},{"$nulls":5},{"$f":"'2 REPAIR ESTIMATOR'!P569","v":0},{"$f":"'2 REPAIR ESTIMATOR'!S569","v":0},{"v":0,"d":"$0"},{"v":0,"d":"$0"},{"v":0,"d":"$0"},{"v":0,"d":"$0"},null,0,null,null,{"$f":"'2 REPAIR ESTIMATOR'!AD569","v":{"v":0,"d":"$0.00"}},{"$f":"'2 REPAIR ESTIMATOR'!AM569","v":{"v":0,"d":"$0.00"}},{"v":0,"d":"$0.00"},{"$f":"'2 REPAIR ESTIMATOR'!AG569","v":{"v":0,"d":"$0.00"}},{"$f":"'2 REPAIR ESTIMATOR'!AJ569","v":{"v":0,"d":"$0.00"}}]
[null,null,{"$f":"T('2 REPAIR ESTIMATOR'!D570:O570)","v":""},{"$nulls":5},{"$f":"'2 REPAIR ESTIMATOR'!P570","v":0},{"$f":"'2 REPAIR ESTIMATOR'!S570","v":0},{"v":0,"d":"$0"},{"v":0,"d":"$0"},{"v":0,"d":"$0"},{"v":0,"d":"$0"},null,0,null,null,{"$f":"'2 REPAIR ESTIMATOR'!AD570","v":{"v":0,"d":"$0.00"}},{"$f":"'2 REPAIR ESTIMATOR'!AM570","v":{"v":0,"d":"$0.00"}},{"v":0,"d":"$0.00"},{"$f":"'2 REPAIR ESTIMATOR'!AG570","v":{"v":0,"d":"$0.00"}},{"$f":"'2 REPAIR ESTIMATOR'!AJ570","v":{"v":0,"d":"$0.00"}}]
[null,null,{"$f":"T('2 REPAIR ESTIMATOR'!D571:O571)","v":""},{"$nulls":5},{"$f":"'2 REPAIR ESTIMATOR'!P571","v":0},{"$f":"'2 REPAIR ESTIMATOR'!S571","v":0},{"v":0,"d":"$0"},{"v":0,"d":"$0"},{"v":0,"d":"$0"},{"v":0,"d":"$0"},null,0,null,null,{"$f":"'2 REPAIR ESTIMATOR'!AD571","v":{"v":0,"d":"$0.00"}},{"$f":"'2 REPAIR ESTIMATOR'!AM571","v":{"v":0,"d":"$0.00"}},{"v":0,"d":"$0.00"},{"$f":"'2 REPAIR ESTIMATOR'!AG571","v":{"v":0,"d":"$0.00"}},{"$f":"'2 REPAIR ESTIMATOR'!AJ571","v":{"v":0,"d":"$0.00"}}]
[null,null,{"$f":"T('2 REPAIR ESTIMATOR'!D572:O572)","v":""},{"$nulls":5},{"$f":"'2 REPAIR ESTIMATOR'!P572","v":0},{"$f":"'2 REPAIR ESTIMATOR'!S572","v":0},{"v":0,"d":"$0"},{"v":0,"d":"$0"},{"v":0,"d":"$0"},{"v":0,"d":"$0"},null,0,null,null,{"$f":"'2 REPAIR ESTIMATOR'!AD572","v":{"v":0,"d":"$0.00"}},{"$f":"'2 REPAIR ESTIMATOR'!AM572","v":{"v":0,"d":"$0.00"}},{"v":0,"d":"$0.00"},{"$f":"'2 REPAIR ESTIMATOR'!AG572","v":{"v":0,"d":"$0.00"}},{"$f":"'2 REPAIR ESTIMATOR'!AJ572","v":{"v":0,"d":"$0.00"}}]
[null,null,{"$f":"T('2 REPAIR ESTIMATOR'!D573:O573)","v":""},{"$nulls":5},{"$f":"'2 REPAIR ESTIMATOR'!P573","v":0},{"$f":"'2 REPAIR ESTIMATOR'!S573","v":0},{"v":0,"d":"$0"},{"v":0,"d":"$0"},{"v":0,"d":"$0"},{"v":0,"d":"$0"},null,0,null,null,{"$f":"'2 REPAIR ESTIMATOR'!AD573","v":{"v":0,"d":"$0.00"}},{"$f":"'2 REPAIR ESTIMATOR'!AM573","v":{"v":0,"d":"$0.00"}},{"v":0,"d":"$0.00"},{"$f":"'2 REPAIR ESTIMATOR'!AG573","v":{"v":0,"d":"$0.00"}},{"$f":"'2 REPAIR ESTIMATOR'!AJ573","v":{"v":0,"d":"$0.00"}}]
[null,null,{"$f":"T('2 REPAIR ESTIMATOR'!D574:O574)","v":""},{"$nulls":5},{"$f":"'2 REPAIR ESTIMATOR'!P574","v":0},{"$f":"'2 REPAIR ESTIMATOR'!S574","v":0},{"v":0,"d":"$0"},{"v":0,"d":"$0"},{"v":0,"d":"$0"},{"v":0,"d":"$0"},null,0,null,null,{"$f":"'2 REPAIR ESTIMATOR'!AD574","v":{"v":0,"d":"$0.00"}},{"$f":"'2 REPAIR ESTIMATOR'!AM574","v":{"v":0,"d":"$0.00"}},{"v":0,"d":"$0.00"},{"$f":"'2 REPAIR ESTIMATOR'!AG574","v":{"v":0,"d":"$0.00"}},{"$f":"'2 REPAIR ESTIMATOR'!AJ574","v":{"v":0,"d":"$0.00"}}]
[null,null,{"$f":"T('2 REPAIR ESTIMATOR'!D575:O575)","v":""},{"$nulls":5},{"$f":"'2 REPAIR ESTIMATOR'!P575","v":0},{"$f":"'2 REPAIR ESTIMATOR'!S575","v":0},{"v":0,"d":"$0"},{"v":0,"d":"$0"},{"v":0,"d":"$0"},{"v":0,"d":"$0"},null,0,null,null,{"$f":"'2 REPAIR ESTIMATOR'!AD575","v":{"v":0,"d":"$0.00"}},{"$f":"'2 REPAIR ESTIMATOR'!AM575","v":{"v":0,"d":"$0.00"}},{"v":0,"d":"$0.00"},{"$f":"'2 REPAIR ESTIMATOR'!AG575","v":{"v":0,"d":"$0.00"}},{"$f":"'2 REPAIR ESTIMATOR'!AJ575","v":{"v":0,"d":"$0.00"}}]
[null,null,{"$f":"T('2 REPAIR ESTIMATOR'!D576:O576)","v":""},{"$nulls":5},{"$f":"'2 REPAIR ESTIMATOR'!P576","v":0},{"$f":"'2 REPAIR ESTIMATOR'!S576","v":0},{"v":0,"d":"$0"},{"v":0,"d":"$0"},{"v":0,"d":"$0"},{"v":0,"d":"$0"},null,0,null,null,{"$f":"'2 REPAIR ESTIMATOR'!AD576","v":{"v":0,"d":"$0.00"}},{"$f":"'2 REPAIR ESTIMATOR'!AM576","v":{"v":0,"d":"$0.00"}},{"v":0,"d":"$0.00"},{"$f":"'2 REPAIR ESTIMATOR'!AG576","v":{"v":0,"d":"$0.00"}},{"$f":"'2 REPAIR ESTIMATOR'!AJ576","v":{"v":0,"d":"$0.00"}}]
[null,null,{"$f":"T('2 REPAIR ESTIMATOR'!D577:O577)","v":""},{"$nulls":5},{"$f":"'2 REPAIR ESTIMATOR'!P577","v":0},{"$f":"'2 REPAIR ESTIMATOR'!S577","v":0},{"v":0,"d":"$0"},{"v":0,"d":"$0"},{"v":0,"d":"$0"},{"v":0,"d":"$0"},null,0,null,null,{"$f":"'2 REPAIR ESTIMATOR'!AD577","v":{"v":0,"d":"$0.00"}},{"$f":"'2 REPAIR ESTIMATOR'!AM577","v":{"v":0,"d":"$0.00"}},{"v":0,"d":"$0.00"},{"$f":"'2 REPAIR ESTIMATOR'!AG577","v":{"v":0,"d":"$0.00"}},{"$f":"'2 REPAIR ESTIMATOR'!AJ577","v":{"v":0,"d":"$0.00"}}]
[null,null,{"$f":"T('2 REPAIR ESTIMATOR'!AC579)","v":"LANDSCAPING TOTAL"},{"$nulls":7},{"$f":"SUM(K503:K542)","v":{"v":250,"d":"$250"}},{"$f":"SUM(L503:L542)","v":{"v":321,"d":"$321"}},{"$f":"SUM(M503:M542)","v":{"v":0,"d":"$0"}},{"$f":"SUM(N503:O542)","v":{"v":571,"d":"$571"}},null,{"$f":"SUM(P502:P515)","v":2},null,null,{"$f":"SUM(S503:S542)","v":{"v":250,"d":"$250.00"}},{"$f":"SUM(T503:T542)","v":{"v":0,"d":"$0.00"}},{"$f":"SUM(U503:U542)","v":{"v":250,"d":"$250.00"}},{"$f":"SUM(V503:V542)","v":{"v":321,"d":"$321.00"}},{"$f":"SUM(W503:W542)","v":{"v":0,"d":"$0.00"}}]
[{"$nulls":15},{"$f":"P543","v":2}]
[null,null,{"$f":"T('2 REPAIR ESTIMATOR'!D582:O582)","v":"MISC. EXTERIOR ITEMS"},{"$nulls":5},{"$f":"SUM(I546:I585)","v":8},{"$nulls":6},8]
[null,null,{"$f":"T('2 REPAIR ESTIMATOR'!D583:O583)","v":"Misc. Ext Improvements bid/allowance"},{"$nulls":5},{"$f":"'2 REPAIR ESTIMATOR'!P583","v":0},{"$f":"'2 REPAIR ESTIMATOR'!S583","v":"ls"},{"$f":"IF($N$3=\"subbed\",U546,S546)*$S$70","v":{"v":0,"d":"$0"}},{"$f":"V546*$S$70","v":{"v":0,"d":"$0"}},{"$f":"W546*$S$70","v":{"v":0,"d":"$0"}},{"$f":"SUM(K546:M546)","v":{"v":0,"d":"$0"}},null,0,null,null,{"$f":"'2 REPAIR ESTIMATOR'!AD583","v":{"v":0,"d":"$0.00"}},{"$f":"'2 REPAIR ESTIMATOR'!AM583","v":{"v":0,"d":"$0.00"}},{"$f":"T546+S546","v":{"v":0,"d":"$0.00"}},{"$f":"'2 REPAIR ESTIMATOR'!AG583","v":{"v":0,"d":"$0.00"}},{"$f":"'2 REPAIR ESTIMATOR'!AJ583","v":{"v":0,"d":"$0.00"}}]
[null,null,{"$f":"T('2 REPAIR ESTIMATOR'!D584:O584)","v":"Miscellaneous Improvements"},{"$nulls":5},{"$f":"'2 REPAIR ESTIMATOR'!P584","v":0},{"$f":"'2 REPAIR ESTIMATOR'!S584","v":0},{"v":0,"d":"$0"},{"$f":"V547*$S$70","v":{"v":0,"d":"$0"}},{"$f":"W547*$S$70","v":{"v":0,"d":"$0"}},{"$f":"SUM(K547:M547)","v":{"v":0,"d":"$0"}},null,0,null,null,{"$f":"'2 REPAIR ESTIMATOR'!AD584","v":{"v":0,"d":"$0.00"}},{"$f":"'2 REPAIR ESTIMATOR'!AM584","v":{"v":0,"d":"$0.00"}},{"$f":"T547+S547","v":{"v":0,"d":"$0.00"}},{"$f":"'2 REPAIR ESTIMATOR'!AG584","v":{"v":0,"d":"$0.00"}},{"$f":"'2 REPAIR ESTIMATOR'!AJ584","v":{"v":0,"d":"$0.00"}}]
[null,null,{"$f":"T('2 REPAIR ESTIMATOR'!D585:O585)","v":"New mailbox"},{"$nulls":5},{"$f":"'2 REPAIR ESTIMATOR'!P585","v":1},{"$f":"'2 REPAIR ESTIMATOR'!S585","v":"ea"},{"v":50,"d":"$50"},{"v":107,"d":"$107"},{"v":0,"d":"$0"},{"v":157,"d":"$157"},null,1,null,null,{"$f":"'2 REPAIR ESTIMATOR'!AD585","v":{"v":50,"d":"$50.00"}},{"$f":"'2 REPAIR ESTIMATOR'!AM585","v":{"v":0,"d":"$0.00"}},{"v":50,"d":"$50.00"},{"$f":"'2 REPAIR ESTIMATOR'!AG585","v":{"v":107,"d":"$107.00"}},{"$f":"'2 REPAIR ESTIMATOR'!AJ585","v":{"v":0,"d":"$0.00"}}]
[null,null,{"$f":"T('2 REPAIR ESTIMATOR'!D586:O586)","v":"New address #"},{"$nulls":5},{"$f":"'2 REPAIR ESTIMATOR'!P586","v":1},{"$f":"'2 REPAIR ESTIMATOR'!S586","v":"ea"},{"v":25,"d":"$25"},{"v":42.800000000000004,"d":"$43"},{"v":0,"d":"$0"},{"v":67.80000000000001,"d":"$68"},null,1,null,null,{"$f":"'2 REPAIR ESTIMATOR'!AD586","v":{"v":25,"d":"$25.00"}},{"$f":"'2 REPAIR ESTIMATOR'!AM586","v":{"v":0,"d":"$0.00"}},{"v":25,"d":"$25.00"},{"$f":"'2 REPAIR ESTIMATOR'!AG586","v":{"v":42.800000000000004,"d":"$42.80"}},{"$f":"'2 REPAIR ESTIMATOR'!AJ586","v":{"v":0,"d":"$0.00"}}]
[null,null,{"$f":"T('2 REPAIR ESTIMATOR'!D587:O587)","v":"Shutters"},{"$nulls":5},{"$f":"'2 REPAIR ESTIMATOR'!P587","v":6},{"$f":"'2 REPAIR ESTIMATOR'!S587","v":"ea"},{"v":150,"d":"$150"},{"v":256.8,"d":"$257"},{"v":0,"d":"$0"},{"v":406.8,"d":"$407"},null,6,null,null,{"$f":"'2 REPAIR ESTIMATOR'!AD587","v":{"v":150,"d":"$150.00"}},{"$f":"'2 REPAIR ESTIMATOR'!AM587","v":{"v":0,"d":"$0.00"}},{"v":150,"d":"$150.00"},{"$f":"'2 REPAIR ESTIMATOR'!AG587","v":{"v":256.8,"d":"$256.80"}},{"$f":"'2 REPAIR ESTIMATOR'!AJ587","v":{"v":0,"d":"$0.00"}}]
[null,null,{"$f":"T('2 REPAIR ESTIMATOR'!D588:O588)","v":""},{"$nulls":5},{"$f":"'2 REPAIR ESTIMATOR'!P588","v":0},{"$f":"'2 REPAIR ESTIMATOR'!S588","v":0},{"v":0,"d":"$0"},{"v":0,"d":"$0"},{"v":0,"d":"$0"},{"v":0,"d":"$0"},null,0,null,null,{"$f":"'2 REPAIR ESTIMATOR'!AD588","v":{"v":0,"d":"$0.00"}},{"$f":"'2 REPAIR ESTIMATOR'!AM588","v":{"v":0,"d":"$0.00"}},{"v":0,"d":"$0.00"},{"$f":"'2 REPAIR ESTIMATOR'!AG588","v":{"v":0,"d":"$0.00"}},{"$f":"'2 REPAIR ESTIMATOR'!AJ588","v":{"v":0,"d":"$0.00"}}]
[null,null,{"$f":"T('2 REPAIR ESTIMATOR'!D589:O589)","v":"Fencing"},{"$nulls":5},{"$f":"'2 REPAIR ESTIMATOR'!P589","v":0},{"$f":"'2 REPAIR ESTIMATOR'!S589","v":0},{"v":0,"d":"$0"},{"v":0,"d":"$0"},{"v":0,"d":"$0"},{"v":0,"d":"$0"},null,0,null,null,{"$f":"'2 REPAIR ESTIMATOR'!AD589","v":{"v":0,"d":"$0.00"}},{"$f":"'2 REPAIR ESTIMATOR'!AM589","v":{"v":0,"d":"$0.00"}},{"v":0,"d":"$0.00"},{"$f":"'2 REPAIR ESTIMATOR'!AG589","v":{"v":0,"d":"$0.00"}},{"$f":"'2 REPAIR ESTIMATOR'!AJ589","v":{"v":0,"d":"$0.00"}}]
[null,null,{"$f":"T('2 REPAIR ESTIMATOR'!D590:O590)","v":"Chain link fencing"},{"$nulls":5},{"$f":"'2 REPAIR ESTIMATOR'!P590","v":0},{"$f":"'2 REPAIR ESTIMATOR'!S590","v":"lf"},{"v":0,"d":"$0"},{"v":0,"d":"$0"},{"v":0,"d":"$0"},{"v":0,"d":"$0"},null,0,null,null,{"$f":"'2 REPAIR ESTIMATOR'!AD590","v":{"v":0,"d":"$0.00"}},{"$f":"'2 REPAIR ESTIMATOR'!AM590","v":{"v":0,"d":"$0.00"}},{"v":0,"d":"$0.00"},{"$f":"'2 REPAIR ESTIMATOR'!AG590","v":{"v":0,"d":"$0.00"}},{"$f":"'2 REPAIR ESTIMATOR'!AJ590","v":{"v":0,"d":"$0.00"}}]
[null,null,{"$f":"T('2 REPAIR ESTIMATOR'!D591:O591)","v":"Wood fencing"},{"$nulls":5},{"$f":"'2 REPAIR ESTIMATOR'!P591","v":0},{"$f":"'2 REPAIR ESTIMATOR'!S591","v":"lf"},{"v":0,"d":"$0"},{"v":0,"d":"$0"},{"v":0,"d":"$0"},{"v":0,"d":"$0"},null,0,null,null,{"$f":"'2 REPAIR ESTIMATOR'!AD591","v":{"v":0,"d":"$0.00"}},{"$f":"'2 REPAIR ESTIMATOR'!AM591","v":{"v":0,"d":"$0.00"}},{"v":0,"d":"$0.00"},{"$f":"'2 REPAIR ESTIMATOR'!AG591","v":{"v":0,"d":"$0.00"}},{"$f":"'2 REPAIR ESTIMATOR'!AJ591","v":{"v":0,"d":"$0.00"}}]
[null,null,{"$f":"T('2 REPAIR ESTIMATOR'!D592:O592)","v":""},{"$nulls":5},{"$f":"'2 REPAIR ESTIMATOR'!P592","v":0},{"$f":"'2 REPAIR ESTIMATOR'!S592","v":0},{"v":0,"d":"$0"},{"v":0,"d":"$0"},{"v":0,"d":"$0"},{"v":0,"d":"$0"},null,0,null,null,{"$f":"'2 REPAIR ESTIMATOR'!AD592","v":{"v":0,"d":"$0.00"}},{"$f":"'2 REPAIR ESTIMATOR'!AM592","v":{"v":0,"d":"$0.00"}},{"v":0,"d":"$0.00"},{"$f":"'2 REPAIR ESTIMATOR'!AG592","v":{"v":0,"d":"$0.00"}},{"$f":"'2 REPAIR ESTIMATOR'!AJ592","v":{"v":0,"d":"$0.00"}}]
[null,null,{"$f":"T('2 REPAIR ESTIMATOR'!D593:O593)","v":"Misc. Exterior Structures"},{"$nulls":5},{"$f":"'2 REPAIR ESTIMATOR'!P593","v":0},{"$f":"'2 REPAIR ESTIMATOR'!S593","v":0},{"v":0,"d":"$0"},{"v":0,"d":"$0"},{"v":0,"d":"$0"},{"v":0,"d":"$0"},null,0,null,null,{"$f":"'2 REPAIR ESTIMATOR'!AD593","v":{"v":0,"d":"$0.00"}},{"$f":"'2 REPAIR ESTIMATOR'!AM593","v":{"v":0,"d":"$0.00"}},{"v":0,"d":"$0.00"},{"$f":"'2 REPAIR ESTIMATOR'!AG593","v":{"v":0,"d":"$0.00"}},{"$f":"'2 REPAIR ESTIMATOR'!AJ593","v":{"v":0,"d":"$0.00"}}]
[null,null,{"$f":"T('2 REPAIR ESTIMATOR'!D594:O594)","v":"Premanufactured carport"},{"$nulls":5},{"$f":"'2 REPAIR ESTIMATOR'!P594","v":0},{"$f":"'2 REPAIR ESTIMATOR'!S594","v":"ea"},{"v":0,"d":"$0"},{"v":0,"d":"$0"},{"v":0,"d":"$0"},{"v":0,"d":"$0"},null,0,null,null,{"$f":"'2 REPAIR ESTIMATOR'!AD594","v":{"v":0,"d":"$0.00"}},{"$f":"'2 REPAIR ESTIMATOR'!AM594","v":{"v":0,"d":"$0.00"}},{"v":0,"d":"$0.00"},{"$f":"'2 REPAIR ESTIMATOR'!AG594","v":{"v":0,"d":"$0.00"}},{"$f":"'2 REPAIR ESTIMATOR'!AJ594","v":{"v":0,"d":"$0.00"}}]
[null,null,{"$f":"T('2 REPAIR ESTIMATOR'!D595:O595)","v":"Storage shed, wood"},{"$nulls":5},{"$f":"'2 REPAIR ESTIMATOR'!P595","v":0},{"$f":"'2 REPAIR ESTIMATOR'!S595","v":"ea"},{"v":0,"d":"$0"},{"v":0,"d":"$0"},{"v":0,"d":"$0"},{"v":0,"d":"$0"},null,0,null,null,{"$f":"'2 REPAIR ESTIMATOR'!AD595","v":{"v":0,"d":"$0.00"}},{"$f":"'2 REPAIR ESTIMATOR'!AM595","v":{"v":0,"d":"$0.00"}},{"v":0,"d":"$0.00"},{"$f":"'2 REPAIR ESTIMATOR'!AG595","v":{"v":0,"d":"$0.00"}},{"$f":"'2 REPAIR ESTIMATOR'!AJ595","v":{"v":0,"d":"$0.00"}}]
[null,null,{"$f":"T('2 REPAIR ESTIMATOR'!D596:O596)","v":"Gazebo"},{"$nulls":5},{"$f":"'2 REPAIR ESTIMATOR'!P596","v":0},{"$f":"'2 REPAIR ESTIMATOR'!S596","v":"sf"},{"v":0,"d":"$0"},{"v":0,"d":"$0"},{"v":0,"d":"$0"},{"v":0,"d":"$0"},null,0,null,null,{"$f":"'2 REPAIR ESTIMATOR'!AD596","v":{"v":0,"d":"$0.00"}},{"$f":"'2 REPAIR ESTIMATOR'!AM596","v":{"v":0,"d":"$0.00"}},{"v":0,"d":"$0.00"},{"$f":"'2 REPAIR ESTIMATOR'!AG596","v":{"v":0,"d":"$0.00"}},{"$f":"'2 REPAIR ESTIMATOR'!AJ596","v":{"v":0,"d":"$0.00"}}]
[null,null,{"$f":"T('2 REPAIR ESTIMATOR'!D597:O597)","v":""},{"$nulls":5},{"$f":"'2 REPAIR ESTIMATOR'!P597","v":0},{"$f":"'2 REPAIR ESTIMATOR'!S597","v":0},{"v":0,"d":"$0"},{"v":0,"d":"$0"},{"v":0,"d":"$0"},{"v":0,"d":"$0"},null,0,null,null,{"$f":"'2 REPAIR ESTIMATOR'!AD597","v":{"v":0,"d":"$0.00"}},{"$f":"'2 REPAIR ESTIMATOR'!AM597","v":{"v":0,"d":"$0.00"}},{"v":0,"d":"$0.00"},{"$f":"'2 REPAIR ESTIMATOR'!AG597","v":{"v":0,"d":"$0.00"}},{"$f":"'2 REPAIR ESTIMATOR'!AJ597","v":{"v":0,"d":"$0.00"}}]
[null,null,{"$f":"T('2 REPAIR ESTIMATOR'!D598:O598)","v":"Pools"},{"$nulls":5},{"$f":"'2 REPAIR ESTIMATOR'!P598","v":0},{"$f":"'2 REPAIR ESTIMATOR'!S598","v":0},{"v":0,"d":"$0"},{"v":0,"d":"$0"},{"v":0,"d":"$0"},{"v":0,"d":"$0"},null,0,null,null,{"$f":"'2 REPAIR ESTIMATOR'!AD598","v":{"v":0,"d":"$0.00"}},{"$f":"'2 REPAIR ESTIMATOR'!AM598","v":{"v":0,"d":"$0.00"}},{"v":0,"d":"$0.00"},{"$f":"'2 REPAIR ESTIMATOR'!AG598","v":{"v":0,"d":"$0.00"}},{"$f":"'2 REPAIR ESTIMATOR'!AJ598","v":{"v":0,"d":"$0.00"}}]
[null,null,{"$f":"T('2 REPAIR ESTIMATOR'!D599:O599)","v":"New Pool structure"},{"$nulls":5},{"$f":"'2 REPAIR ESTIMATOR'!P599","v":0},{"$f":"'2 REPAIR ESTIMATOR'!S599","v":"sf"},{"v":0,"d":"$0"},{"v":0,"d":"$0"},{"v":0,"d":"$0"},{"v":0,"d":"$0"},null,0,null,null,{"$f":"'2 REPAIR ESTIMATOR'!AD599","v":{"v":0,"d":"$0.00"}},{"$f":"'2 REPAIR ESTIMATOR'!AM599","v":{"v":0,"d":"$0.00"}},{"v":0,"d":"$0.00"},{"$f":"'2 REPAIR ESTIMATOR'!AG599","v":{"v":0,"d":"$0.00"}},{"$f":"'2 REPAIR ESTIMATOR'!AJ599","v":{"v":0,"d":"$0.00"}}]
[null,null,{"$f":"T('2 REPAIR ESTIMATOR'!D600:O600)","v":"Pool heater/motor"},{"$nulls":5},{"$f":"'2 REPAIR ESTIMATOR'!P600","v":0},{"$f":"'2 REPAIR ESTIMATOR'!S600","v":"ea"},{"v":0,"d":"$0"},{"v":0,"d":"$0"},{"v":0,"d":"$0"},{"v":0,"d":"$0"},null,0,null,null,{"$f":"'2 REPAIR ESTIMATOR'!AD600","v":{"v":0,"d":"$0.00"}},{"$f":"'2 REPAIR ESTIMATOR'!AM600","v":{"v":0,"d":"$0.00"}},{"v":0,"d":"$0.00"},{"$f":"'2 REPAIR ESTIMATOR'!AG600","v":{"v":0,"d":"$0.00"}},{"$f":"'2 REPAIR ESTIMATOR'!AJ600","v":{"v":0,"d":"$0.00"}}]
[null,null,{"$f":"T('2 REPAIR ESTIMATOR'!D601:O601)","v":"Pool filter system"},{"$nulls":5},{"$f":"'2 REPAIR ESTIMATOR'!P601","v":0},{"$f":"'2 REPAIR ESTIMATOR'!S601","v":"ea"},{"v":0,"d":"$0"},{"v":0,"d":"$0"},{"v":0,"d":"$0"},{"v":0,"d":"$0"},null,0,null,null,{"$f":"'2 REPAIR ESTIMATOR'!AD601","v":{"v":0,"d":"$0.00"}},{"$f":"'2 REPAIR ESTIMATOR'!AM601","v":{"v":0,"d":"$0.00"}},{"v":0,"d":"$0.00"},{"$f":"'2 REPAIR ESTIMATOR'!AG601","v":{"v":0,"d":"$0.00"}},{"$f":"'2 REPAIR ESTIMATOR'!AJ601","v":{"v":0,"d":"$0.00"}}]
[null,null,{"$f":"T('2 REPAIR ESTIMATOR'!D602:O602)","v":"Replaster existing pool wall"},{"$nulls":5},{"$f":"'2 REPAIR ESTIMATOR'!P602","v":0},{"$f":"'2 REPAIR ESTIMATOR'!S602","v":"sf"},{"v":0,"d":"$0"},{"v":0,"d":"$0"},{"v":0,"d":"$0"},{"v":0,"d":"$0"},null,0,null,null,{"$f":"'2 REPAIR ESTIMATOR'!AD602","v":{"v":0,"d":"$0.00"}},{"$f":"'2 REPAIR ESTIMATOR'!AM602","v":{"v":0,"d":"$0.00"}},{"v":0,"d":"$0.00"},{"$f":"'2 REPAIR ESTIMATOR'!AG602","v":{"v":0,"d":"$0.00"}},{"$f":"'2 REPAIR ESTIMATOR'!AJ602","v":{"v":0,"d":"$0.00"}}]
[null,null,{"$f":"T('2 REPAIR ESTIMATOR'!D603:O603)","v":""},{"$nulls":5},{"$f":"'2 REPAIR ESTIMATOR'!P603","v":0},{"$f":"'2 REPAIR ESTIMATOR'!S603","v":0},{"v":0,"d":"$0"},{"v":0,"d":"$0"},{"v":0,"d":"$0"},{"v":0,"d":"$0"},null,{"$f":"I566","v":0},null,null,{"$f":"'2 REPAIR ESTIMATOR'!AD603","v":{"v":0,"d":"$0.00"}},{"$f":"'2 REPAIR ESTIMATOR'!AM603","v":{"v":0,"d":"$0.00"}},{"v":0,"d":"$0.00"},{"$f":"'2 REPAIR ESTIMATOR'!AG603","v":{"v":0,"d":"$0.00"}},{"$f":"'2 REPAIR ESTIMATOR'!AJ603","v":{"v":0,"d":"$0.00"}}]
[null,null,{"$f":"T('2 REPAIR ESTIMATOR'!D604:O604)","v":""},{"$nulls":5},{"$f":"'2 REPAIR ESTIMATOR'!P604","v":0},{"$f":"'2 REPAIR ESTIMATOR'!S604","v":0},{"v":0,"d":"$0"},{"v":0,"d":"$0"},{"v":0,"d":"$0"},{"v":0,"d":"$0"},null,0,null,null,{"$f":"'2 REPAIR ESTIMATOR'!AD604","v":{"v":0,"d":"$0.00"}},{"$f":"'2 REPAIR ESTIMATOR'!AM604","v":{"v":0,"d":"$0.00"}},{"v":0,"d":"$0.00"},{"$f":"'2 REPAIR ESTIMATOR'!AG604","v":{"v":0,"d":"$0.00"}},{"$f":"'2 REPAIR ESTIMATOR'!AJ604","v":{"v":0,"d":"$0.00"}}]
[null,null,{"$f":"T('2 REPAIR ESTIMATOR'!D605:O605)","v":""},{"$nulls":5},{"$f":"'2 REPAIR ESTIMATOR'!P605","v":0},{"$f":"'2 REPAIR ESTIMATOR'!S605","v":0},{"v":0,"d":"$0"},{"v":0,"d":"$0"},{"v":0,"d":"$0"},{"v":0,"d":"$0"},null,0,null,null,{"$f":"'2 REPAIR ESTIMATOR'!AD605","v":{"v":0,"d":"$0.00"}},{"$f":"'2 REPAIR ESTIMATOR'!AM605","v":{"v":0,"d":"$0.00"}},{"v":0,"d":"$0.00"},{"$f":"'2 REPAIR ESTIMATOR'!AG605","v":{"v":0,"d":"$0.00"}},{"$f":"'2 REPAIR ESTIMATOR'!AJ605","v":{"v":0,"d":"$0.00"}}]
[null,null,{"$f":"T('2 REPAIR ESTIMATOR'!D606:O606)","v":""},{"$nulls":5},{"$f":"'2 REPAIR ESTIMATOR'!P606","v":0},{"$f":"'2 REPAIR ESTIMATOR'!S606","v":0},{"v":0,"d":"$0"},{"v":0,"d":"$0"},{"v":0,"d":"$0"},{"v":0,"d":"$0"},null,0,null,null,{"$f":"'2 REPAIR ESTIMATOR'!AD606","v":{"v":0,"d":"$0.00"}},{"$f":"'2 REPAIR ESTIMATOR'!AM606","v":{"v":0,"d":"$0.00"}},{"v":0,"d":"$0.00"},{"$f":"'2 REPAIR ESTIMATOR'!AG606","v":{"v":0,"d":"$0.00"}},{"$f":"'2 REPAIR ESTIMATOR'!AJ606","v":{"v":0,"d":"$0.00"}}]
[null,null,{"$f":"T('2 REPAIR ESTIMATOR'!D607:O607)","v":""},{"$nulls":5},{"$f":"'2 REPAIR ESTIMATOR'!P607","v":0},{"$f":"'2 REPAIR ESTIMATOR'!S607","v":0},{"v":0,"d":"$0"},{"v":0,"d":"$0"},{"v":0,"d":"$0"},{"v":0,"d":"$0"},null,0,null,null,{"$f":"'2 REPAIR ESTIMATOR'!AD607","v":{"v":0,"d":"$0.00"}},{"$f":"'2 REPAIR ESTIMATOR'!AM607","v":{"v":0,"d":"$0.00"}},{"v":0,"d":"$0.00"},{"$f":"'2 REPAIR ESTIMATOR'!AG607","v":{"v":0,"d":"$0.00"}},{"$f":"'2 REPAIR ESTIMATOR'!AJ607","v":{"v":0,"d":"$0.00"}}]
[null,null,{"$f":"T('2 REPAIR ESTIMATOR'!D608:O608)","v":""},{"$nulls":5},{"$f":"'2 REPAIR ESTIMATOR'!P608","v":0},{"$f":"'2 REPAIR ESTIMATOR'!S608","v":0},{"v":0,"d":"$0"},{"v":0,"d":"$0"},{"v":0,"d":"$0"},{"v":0,"d":"$0"},null,0,null,null,{"$f":"'2 REPAIR ESTIMATOR'!AD608","v":{"v":0,"d":"$0.00"}},{"$f":"'2 REPAIR ESTIMATOR'!AM608","v":{"v":0,"d":"$0.00"}},{"v":0,"d":"$0.00"},{"$f":"'2 REPAIR ESTIMATOR'!AG608","v":{"v":0,"d":"$0.00"}},{"$f":"'2 REPAIR ESTIMATOR'!AJ608","v":{"v":0,"d":"$0.00"}}]
[null,null,{"$f":"T('2 REPAIR ESTIMATOR'!D609:O609)","v":""},{"$nulls":5},{"$f":"'2 REPAIR ESTIMATOR'!P609","v":0},{"$f":"'2 REPAIR ESTIMATOR'!S609","v":0},{"v":0,"d":"$0"},{"v":0,"d":"$0"},{"v":0,"d":"$0"},{"v":0,"d":"$0"},null,0,null,null,{"$f":"'2 REPAIR ESTIMATOR'!AD609","v":{"v":0,"d":"$0.00"}},{"$f":"'2 REPAIR ESTIMATOR'!AM609","v":{"v":0,"d":"$0.00"}},{"v":0,"d":"$0.00"},{"$f":"'2 REPAIR ESTIMATOR'!AG609","v":{"v":0,"d":"$0.00"}},{"$f":"'2 REPAIR ESTIMATOR'!AJ609","v":{"v":0,"d":"$0.00"}}]
[null,null,{"$f":"T('2 REPAIR ESTIMATOR'!D610:O610)","v":""},{"$nulls":5},{"$f":"'2 REPAIR ESTIMATOR'!P610","v":0},{"$f":"'2 REPAIR ESTIMATOR'!S610","v":0},{"v":0,"d":"$0"},{"v":0,"d":"$0"},{"v":0,"d":"$0"},{"v":0,"d":"$0"},null,0,null,null,{"$f":"'2 REPAIR ESTIMATOR'!AD610","v":{"v":0,"d":"$0.00"}},{"$f":"'2 REPAIR ESTIMATOR'!AM610","v":{"v":0,"d":"$0.00"}},{"v":0,"d":"$0.00"},{"$f":"'2 REPAIR ESTIMATOR'!AG610","v":{"v":0,"d":"$0.00"}},{"$f":"'2 REPAIR ESTIMATOR'!AJ610","v":{"v":0,"d":"$0.00"}}]
[null,null,{"$f":"T('2 REPAIR ESTIMATOR'!D611:O611)","v":""},{"$nulls":5},{"$f":"'2 REPAIR ESTIMATOR'!P611","v":0},{"$f":"'2 REPAIR ESTIMATOR'!S611","v":0},{"v":0,"d":"$0"},{"v":0,"d":"$0"},{"v":0,"d":"$0"},{"v":0,"d":"$0"},null,0,null,null,{"$f":"'2 REPAIR ESTIMATOR'!AD611","v":{"v":0,"d":"$0.00"}},{"$f":"'2 REPAIR ESTIMATOR'!AM611","v":{"v":0,"d":"$0.00"}},{"v":0,"d":"$0.00"},{"$f":"'2 REPAIR ESTIMATOR'!AG611","v":{"v":0,"d":"$0.00"}},{"$f":"'2 REPAIR ESTIMATOR'!AJ611","v":{"v":0,"d":"$0.00"}}]
[null,null,{"$f":"T('2 REPAIR ESTIMATOR'!D612:O612)","v":""},{"$nulls":5},{"$f":"'2 REPAIR ESTIMATOR'!P612","v":0},{"$f":"'2 REPAIR ESTIMATOR'!S612","v":0},{"v":0,"d":"$0"},{"v":0,"d":"$0"},{"v":0,"d":"$0"},{"v":0,"d":"$0"},null,0,null,null,{"$f":"'2 REPAIR ESTIMATOR'!AD612","v":{"v":0,"d":"$0.00"}},{"$f":"'2 REPAIR ESTIMATOR'!AM612","v":{"v":0,"d":"$0.00"}},{"v":0,"d":"$0.00"},{"$f":"'2 REPAIR ESTIMATOR'!AG612","v":{"v":0,"d":"$0.00"}},{"$f":"'2 REPAIR ESTIMATOR'!AJ612","v":{"v":0,"d":"$0.00"}}]
[null,null,{"$f":"T('2 REPAIR ESTIMATOR'!D613:O613)","v":""},{"$nulls":5},{"$f":"'2 REPAIR ESTIMATOR'!P613","v":0},{"$f":"'2 REPAIR ESTIMATOR'!S613","v":0},{"v":0,"d":"$0"},{"v":0,"d":"$0"},{"v":0,"d":"$0"},{"v":0,"d":"$0"},null,0,null,null,{"$f":"'2 REPAIR ESTIMATOR'!AD613","v":{"v":0,"d":"$0.00"}},{"$f":"'2 REPAIR ESTIMATOR'!AM613","v":{"v":0,"d":"$0.00"}},{"v":0,"d":"$0.00"},{"$f":"'2 REPAIR ESTIMATOR'!AG613","v":{"v":0,"d":"$0.00"}},{"$f":"'2 REPAIR ESTIMATOR'!AJ613","v":{"v":0,"d":"$0.00"}}]
[null,null,{"$f":"T('2 REPAIR ESTIMATOR'!D614:O614)","v":""},{"$nulls":5},{"$f":"'2 REPAIR ESTIMATOR'!P614","v":0},{"$f":"'2 REPAIR ESTIMATOR'!S614","v":0},{"v":0,"d":"$0"},{"v":0,"d":"$0"},{"v":0,"d":"$0"},{"v":0,"d":"$0"},null,0,null,null,{"$f":"'2 REPAIR ESTIMATOR'!AD614","v":{"v":0,"d":"$0.00"}},{"$f":"'2 REPAIR ESTIMATOR'!AM614","v":{"v":0,"d":"$0.00"}},{"v":0,"d":"$0.00"},{"$f":"'2 REPAIR ESTIMATOR'!AG614","v":{"v":0,"d":"$0.00"}},{"$f":"'2 REPAIR ESTIMATOR'!AJ614","v":{"v":0,"d":"$0.00"}}]
[null,null,{"$f":"T('2 REPAIR ESTIMATOR'!D615:O615)","v":""},{"$nulls":5},{"$f":"'2 REPAIR ESTIMATOR'!P615","v":0},{"$f":"'2 REPAIR ESTIMATOR'!S615","v":0},{"v":0,"d":"$0"},{"v":0,"d":"$0"},{"v":0,"d":"$0"},{"v":0,"d":"$0"},null,0,null,null,{"$f":"'2 REPAIR ESTIMATOR'!AD615","v":{"v":0,"d":"$0.00"}},{"$f":"'2 REPAIR ESTIMATOR'!AM615","v":{"v":0,"d":"$0.00"}},{"v":0,"d":"$0.00"},{"$f":"'2 REPAIR ESTIMATOR'!AG615","v":{"v":0,"d":"$0.00"}},{"$f":"'2 REPAIR ESTIMATOR'!AJ615","v":{"v":0,"d":"$0.00"}}]
[null,null,{"$f":"T('2 REPAIR ESTIMATOR'!D616:O616)","v":""},{"$nulls":5},{"$f":"'2 REPAIR ESTIMATOR'!P616","v":0},{"$f":"'2 REPAIR ESTIMATOR'!S616","v":0},{"v":0,"d":"$0"},{"v":0,"d":"$0"},{"v":0,"d":"$0"},{"v":0,"d":"$0"},null,0,null,null,{"$f":"'2 REPAIR ESTIMATOR'!AD616","v":{"v":0,"d":"$0.00"}},{"$f":"'2 REPAIR ESTIMATOR'!AM616","v":{"v":0,"d":"$0.00"}},{"v":0,"d":"$0.00"},{"$f":"'2 REPAIR ESTIMATOR'!AG616","v":{"v":0,"d":"$0.00"}},{"$f":"'2 REPAIR ESTIMATOR'!AJ616","v":{"v":0,"d":"$0.00"}}]
[null,null,{"$f":"T('2 REPAIR ESTIMATOR'!D617:O617)","v":""},{"$nulls":5},{"$f":"'2 REPAIR ESTIMATOR'!P617","v":0},{"$f":"'2 REPAIR ESTIMATOR'!S617","v":0},{"v":0,"d":"$0"},{"v":0,"d":"$0"},{"v":0,"d":"$0"},{"v":0,"d":"$0"},null,0,null,null,{"$f":"'2 REPAIR ESTIMATOR'!AD617","v":{"v":0,"d":"$0.00"}},{"$f":"'2 REPAIR ESTIMATOR'!AM617","v":{"v":0,"d":"$0.00"}},{"v":0,"d":"$0.00"},{"$f":"'2 REPAIR ESTIMATOR'!AG617","v":{"v":0,"d":"$0.00"}},{"$f":"'2 REPAIR ESTIMATOR'!AJ617","v":{"v":0,"d":"$0.00"}}]
[null,null,{"$f":"T('2 REPAIR ESTIMATOR'!D618:O618)","v":""},{"$nulls":5},{"$f":"'2 REPAIR ESTIMATOR'!P618","v":0},{"$f":"'2 REPAIR ESTIMATOR'!S618","v":0},{"v":0,"d":"$0"},{"v":0,"d":"$0"},{"v":0,"d":"$0"},{"v":0,"d":"$0"},null,0,null,null,{"$f":"'2 REPAIR ESTIMATOR'!AD618","v":{"v":0,"d":"$0.00"}},{"$f":"'2 REPAIR ESTIMATOR'!AM618","v":{"v":0,"d":"$0.00"}},{"v":0,"d":"$0.00"},{"$f":"'2 REPAIR ESTIMATOR'!AG618","v":{"v":0,"d":"$0.00"}},{"$f":"'2 REPAIR ESTIMATOR'!AJ618","v":{"v":0,"d":"$0.00"}}]
[null,null,{"$f":"T('2 REPAIR ESTIMATOR'!D619:O619)","v":""},{"$nulls":5},{"$f":"'2 REPAIR ESTIMATOR'!P619","v":0},{"$f":"'2 REPAIR ESTIMATOR'!S619","v":0},{"v":0,"d":"$0"},{"v":0,"d":"$0"},{"v":0,"d":"$0"},{"v":0,"d":"$0"},null,0,null,null,{"$f":"'2 REPAIR ESTIMATOR'!AD619","v":{"v":0,"d":"$0.00"}},{"$f":"'2 REPAIR ESTIMATOR'!AM619","v":{"v":0,"d":"$0.00"}},{"v":0,"d":"$0.00"},{"$f":"'2 REPAIR ESTIMATOR'!AG619","v":{"v":0,"d":"$0.00"}},{"$f":"'2 REPAIR ESTIMATOR'!AJ619","v":{"v":0,"d":"$0.00"}}]
[null,null,{"$f":"T('2 REPAIR ESTIMATOR'!D620:O620)","v":""},{"$nulls":5},{"$f":"'2 REPAIR ESTIMATOR'!P620","v":0},{"$f":"'2 REPAIR ESTIMATOR'!S620","v":0},{"v":0,"d":"$0"},{"v":0,"d":"$0"},{"v":0,"d":"$0"},{"v":0,"d":"$0"},null,0,null,null,{"$f":"'2 REPAIR ESTIMATOR'!AD620","v":{"v":0,"d":"$0.00"}},{"$f":"'2 REPAIR ESTIMATOR'!AM620","v":{"v":0,"d":"$0.00"}},{"v":0,"d":"$0.00"},{"$f":"'2 REPAIR ESTIMATOR'!AG620","v":{"v":0,"d":"$0.00"}},{"$f":"'2 REPAIR ESTIMATOR'!AJ620","v":{"v":0,"d":"$0.00"}}]
[null,null,{"$f":"T('2 REPAIR ESTIMATOR'!D621:O621)","v":""},{"$nulls":5},{"$f":"'2 REPAIR ESTIMATOR'!P621","v":0},{"$f":"'2 REPAIR ESTIMATOR'!S621","v":0},{"v":0,"d":"$0"},{"v":0,"d":"$0"},{"v":0,"d":"$0"},{"v":0,"d":"$0"},null,0,null,null,{"$f":"'2 REPAIR ESTIMATOR'!AD621","v":{"v":0,"d":"$0.00"}},{"$f":"'2 REPAIR ESTIMATOR'!AM621","v":{"v":0,"d":"$0.00"}},{"v":0,"d":"$0.00"},{"$f":"'2 REPAIR ESTIMATOR'!AG621","v":{"v":0,"d":"$0.00"}},{"$f":"'2 REPAIR ESTIMATOR'!AJ621","v":{"v":0,"d":"$0.00"}}]
[null,null,{"$f":"T('2 REPAIR ESTIMATOR'!D622:O622)","v":""},{"$nulls":5},{"$f":"'2 REPAIR ESTIMATOR'!P622","v":0},{"$f":"'2 REPAIR ESTIMATOR'!S622","v":0},{"v":0,"d":"$0"},{"v":0,"d":"$0"},{"v":0,"d":"$0"},{"v":0,"d":"$0"},null,0,null,null,{"$f":"'2 REPAIR ESTIMATOR'!AD622","v":{"v":0,"d":"$0.00"}},{"$f":"'2 REPAIR ESTIMATOR'!AM622","v":{"v":0,"d":"$0.00"}},{"v":0,"d":"$0.00"},{"$f":"'2 REPAIR ESTIMATOR'!AG622","v":{"v":0,"d":"$0.00"}},{"$f":"'2 REPAIR ESTIMATOR'!AJ622","v":{"v":0,"d":"$0.00"}}]
[null,null,{"$f":"T('2 REPAIR ESTIMATOR'!AC624)","v":"MISC. EXTERIOR ITEMS TOTAL"},{"$nulls":7},{"$f":"SUM(K546:K585)","v":{"v":225,"d":"$225"}},{"$f":"SUM(L546:L585)","v":{"v":406.6,"d":"$407"}},{"$f":"SUM(M546:M585)","v":{"v":0,"d":"$0"}},{"$f":"SUM(N546:O585)","v":{"v":631.6,"d":"$632"}},null,{"$f":"SUM(P545:P558)","v":16},null,null,{"$f":"SUM(S546:S585)","v":{"v":225,"d":"$225.00"}},{"$f":"SUM(T546:T585)","v":{"v":0,"d":"$0.00"}},{"$f":"SUM(U546:U585)","v":{"v":225,"d":"$225.00"}},{"$f":"SUM(V546:V585)","v":{"v":406.6,"d":"$406.60"}},{"$f":"SUM(W546:W585)","v":{"v":0,"d":"$0.00"}}]
[{"$nulls":15},{"$f":"P586","v":16}]
[null,null,{"$f":"T('2 REPAIR ESTIMATOR'!D627:O627)","v":"FRAMING & DRYWALL"},{"$nulls":5},{"$f":"SUM(I589:I628)","v":1},{"$nulls":6},1]
[null,null,{"$f":"T('2 REPAIR ESTIMATOR'!D628:O628)","v":"Framing"},{"$nulls":5},{"$f":"'2 REPAIR ESTIMATOR'!P628","v":0},{"$f":"'2 REPAIR ESTIMATOR'!S628","v":0},{"$f":"IF($N$3=\"subbed\",U589,S589)*$S$70","v":{"v":0,"d":"$0"}},{"$f":"V589*$S$70","v":{"v":0,"d":"$0"}},{"$f":"W589*$S$70","v":{"v":0,"d":"$0"}},{"$f":"SUM(K589:M589)","v":{"v":0,"d":"$0"}},null,0,null,null,{"$f":"'2 REPAIR ESTIMATOR'!AD628","v":{"v":0,"d":"$0.00"}},{"$f":"'2 REPAIR ESTIMATOR'!AM628","v":{"v":0,"d":"$0.00"}},{"$f":"T589+S589","v":{"v":0,"d":"$0.00"}},{"$f":"'2 REPAIR ESTIMATOR'!AG628","v":{"v":0,"d":"$0.00"}},{"$f":"'2 REPAIR ESTIMATOR'!AJ628","v":{"v":0,"d":"$0.00"}}]
[null,null,{"$f":"T('2 REPAIR ESTIMATOR'!D629:O629)","v":"Structural framing bid/allowance, case by case"},{"$nulls":5},{"$f":"'2 REPAIR ESTIMATOR'!P629","v":0},{"$f":"'2 REPAIR ESTIMATOR'!S629","v":"ls"},{"v":0,"d":"$0"},{"$f":"V590*$S$70","v":{"v":0,"d":"$0"}},{"$f":"W590*$S$70","v":{"v":0,"d":"$0"}},{"$f":"SUM(K590:M590)","v":{"v":0,"d":"$0"}},null,0,null,null,{"$f":"'2 REPAIR ESTIMATOR'!AD629","v":{"v":0,"d":"$0.00"}},{"$f":"'2 REPAIR ESTIMATOR'!AM629","v":{"v":0,"d":"$0.00"}},{"$f":"T590+S590","v":{"v":0,"d":"$0.00"}},{"$f":"'2 REPAIR ESTIMATOR'!AG629","v":{"v":0,"d":"$0.00"}},{"$f":"'2 REPAIR ESTIMATOR'!AJ629","v":{"v":0,"d":"$0.00"}}]
[null,null,{"$f":"T('2 REPAIR ESTIMATOR'!D630:O630)","v":"Subflooring, 3/4\" plywood"},{"$nulls":5},{"$f":"'2 REPAIR ESTIMATOR'!P630","v":0},{"$f":"'2 REPAIR ESTIMATOR'!S630","v":"sf"},{"v":0,"d":"$0"},{"v":0,"d":"$0"},{"v":0,"d":"$0"},{"v":0,"d":"$0"},null,0,null,null,{"$f":"'2 REPAIR ESTIMATOR'!AD630","v":{"v":0,"d":"$0.00"}},{"$f":"'2 REPAIR ESTIMATOR'!AM630","v":{"v":0,"d":"$0.00"}},{"v":0,"d":"$0.00"},{"$f":"'2 REPAIR ESTIMATOR'!AG630","v":{"v":0,"d":"$0.00"}},{"$f":"'2 REPAIR ESTIMATOR'!AJ630","v":{"v":0,"d":"$0.00"}}]
[null,null,{"$f":"T('2 REPAIR ESTIMATOR'!D631:O631)","v":"Interior wall framing"},{"$nulls":5},{"$f":"'2 REPAIR ESTIMATOR'!P631","v":0},{"$f":"'2 REPAIR ESTIMATOR'!S631","v":"sf"},{"v":0,"d":"$0"},{"v":0,"d":"$0"},{"v":0,"d":"$0"},{"v":0,"d":"$0"},null,0,null,null,{"$f":"'2 REPAIR ESTIMATOR'!AD631","v":{"v":0,"d":"$0.00"}},{"$f":"'2 REPAIR ESTIMATOR'!AM631","v":{"v":0,"d":"$0.00"}},{"v":0,"d":"$0.00"},{"$f":"'2 REPAIR ESTIMATOR'!AG631","v":{"v":0,"d":"$0.00"}},{"$f":"'2 REPAIR ESTIMATOR'!AJ631","v":{"v":0,"d":"$0.00"}}]
[null,null,{"$f":"T('2 REPAIR ESTIMATOR'!D632:O632)","v":"Structural/Exterior wall framing"},{"$nulls":5},{"$f":"'2 REPAIR ESTIMATOR'!P632","v":0},{"$f":"'2 REPAIR ESTIMATOR'!S632","v":"sf"},{"v":0,"d":"$0"},{"v":0,"d":"$0"},{"v":0,"d":"$0"},{"v":0,"d":"$0"},null,{"$f":"I593","v":0},null,null,{"$f":"'2 REPAIR ESTIMATOR'!AD632","v":{"v":0,"d":"$0.00"}},{"$f":"'2 REPAIR ESTIMATOR'!AM632","v":{"v":0,"d":"$0.00"}},{"v":0,"d":"$0.00"},{"$f":"'2 REPAIR ESTIMATOR'!AG632","v":{"v":0,"d":"$0.00"}},{"$f":"'2 REPAIR ESTIMATOR'!AJ632","v":{"v":0,"d":"$0.00"}}]
[null,null,{"$f":"T('2 REPAIR ESTIMATOR'!D633:O633)","v":"Rough-in openings"},{"$nulls":5},{"$f":"'2 REPAIR ESTIMATOR'!P633","v":0},{"$f":"'2 REPAIR ESTIMATOR'!S633","v":"ea"},{"v":0,"d":"$0"},{"v":0,"d":"$0"},{"v":0,"d":"$0"},{"v":0,"d":"$0"},null,0,null,null,{"$f":"'2 REPAIR ESTIMATOR'!AD633","v":{"v":0,"d":"$0.00"}},{"$f":"'2 REPAIR ESTIMATOR'!AM633","v":{"v":0,"d":"$0.00"}},{"v":0,"d":"$0.00"},{"$f":"'2 REPAIR ESTIMATOR'!AG633","v":{"v":0,"d":"$0.00"}},{"$f":"'2 REPAIR ESTIMATOR'!AJ633","v":{"v":0,"d":"$0.00"}}]
[null,null,{"$f":"T('2 REPAIR ESTIMATOR'!D634:O634)","v":"Floor joists/ceiling joists"},{"$nulls":5},{"$f":"'2 REPAIR ESTIMATOR'!P634","v":0},{"$f":"'2 REPAIR ESTIMATOR'!S634","v":"sf"},{"v":0,"d":"$0"},{"v":0,"d":"$0"},{"v":0,"d":"$0"},{"v":0,"d":"$0"},null,0,null,null,{"$f":"'2 REPAIR ESTIMATOR'!AD634","v":{"v":0,"d":"$0.00"}},{"$f":"'2 REPAIR ESTIMATOR'!AM634","v":{"v":0,"d":"$0.00"}},{"v":0,"d":"$0.00"},{"$f":"'2 REPAIR ESTIMATOR'!AG634","v":{"v":0,"d":"$0.00"}},{"$f":"'2 REPAIR ESTIMATOR'!AJ634","v":{"v":0,"d":"$0.00"}}]
[null,null,{"$f":"T('2 REPAIR ESTIMATOR'!D635:O635)","v":"Roof framing/rafters"},{"$nulls":5},{"$f":"'2 REPAIR ESTIMATOR'!P635","v":0},{"$f":"'2 REPAIR ESTIMATOR'!S635","v":"sf"},{"v":0,"d":"$0"},{"v":0,"d":"$0"},{"v":0,"d":"$0"},{"v":0,"d":"$0"},null,0,null,null,{"$f":"'2 REPAIR ESTIMATOR'!AD635","v":{"v":0,"d":"$0.00"}},{"$f":"'2 REPAIR ESTIMATOR'!AM635","v":{"v":0,"d":"$0.00"}},{"v":0,"d":"$0.00"},{"$f":"'2 REPAIR ESTIMATOR'!AG635","v":{"v":0,"d":"$0.00"}},{"$f":"'2 REPAIR ESTIMATOR'!AJ635","v":{"v":0,"d":"$0.00"}}]
[null,null,{"$f":"T('2 REPAIR ESTIMATOR'!D636:O636)","v":"Open load bearing/structural wall"},{"$nulls":5},{"$f":"'2 REPAIR ESTIMATOR'!P636","v":0},{"$f":"'2 REPAIR ESTIMATOR'!S636","v":"ea"},{"v":0,"d":"$0"},{"v":0,"d":"$0"},{"v":0,"d":"$0"},{"v":0,"d":"$0"},null,0,null,null,{"$f":"'2 REPAIR ESTIMATOR'!AD636","v":{"v":0,"d":"$0.00"}},{"$f":"'2 REPAIR ESTIMATOR'!AM636","v":{"v":0,"d":"$0.00"}},{"v":0,"d":"$0.00"},{"$f":"'2 REPAIR ESTIMATOR'!AG636","v":{"v":0,"d":"$0.00"}},{"$f":"'2 REPAIR ESTIMATOR'!AJ636","v":{"v":0,"d":"$0.00"}}]
[null,null,{"$f":"T('2 REPAIR ESTIMATOR'!D637:O637)","v":"Insulation"},{"$nulls":5},{"$f":"'2 REPAIR ESTIMATOR'!P637","v":0},{"$f":"'2 REPAIR ESTIMATOR'!S637","v":0},{"v":0,"d":"$0"},{"v":0,"d":"$0"},{"v":0,"d":"$0"},{"v":0,"d":"$0"},null,0,null,null,{"$f":"'2 REPAIR ESTIMATOR'!AD637","v":{"v":0,"d":"$0.00"}},{"$f":"'2 REPAIR ESTIMATOR'!AM637","v":{"v":0,"d":"$0.00"}},{"v":0,"d":"$0.00"},{"$f":"'2 REPAIR ESTIMATOR'!AG637","v":{"v":0,"d":"$0.00"}},{"$f":"'2 REPAIR ESTIMATOR'!AJ637","v":{"v":0,"d":"$0.00"}}]
[null,null,{"$f":"T('2 REPAIR ESTIMATOR'!D638:O638)","v":"Insulation bid/allowance"},{"$nulls":5},{"$f":"'2 REPAIR ESTIMATOR'!P638","v":0},{"$f":"'2 REPAIR ESTIMATOR'!S638","v":"ls"},{"v":0,"d":"$0"},{"v":0,"d":"$0"},{"v":0,"d":"$0"},{"v":0,"d":"$0"},null,0,null,null,{"$f":"'2 REPAIR ESTIMATOR'!AD638","v":{"v":0,"d":"$0.00"}},{"$f":"'2 REPAIR ESTIMATOR'!AM638","v":{"v":0,"d":"$0.00"}},{"v":0,"d":"$0.00"},{"$f":"'2 REPAIR ESTIMATOR'!AG638","v":{"v":0,"d":"$0.00"}},{"$f":"'2 REPAIR ESTIMATOR'!AJ638","v":{"v":0,"d":"$0.00"}}]
[null,null,{"$f":"T('2 REPAIR ESTIMATOR'!D639:O639)","v":"Wall insulation"},{"$nulls":5},{"$f":"'2 REPAIR ESTIMATOR'!P639","v":0},{"$f":"'2 REPAIR ESTIMATOR'!S639","v":"sf"},{"v":0,"d":"$0"},{"v":0,"d":"$0"},{"v":0,"d":"$0"},{"v":0,"d":"$0"},null,0,null,null,{"$f":"'2 REPAIR ESTIMATOR'!AD639","v":{"v":0,"d":"$0.00"}},{"$f":"'2 REPAIR ESTIMATOR'!AM639","v":{"v":0,"d":"$0.00"}},{"v":0,"d":"$0.00"},{"$f":"'2 REPAIR ESTIMATOR'!AG639","v":{"v":0,"d":"$0.00"}},{"$f":"'2 REPAIR ESTIMATOR'!AJ639","v":{"v":0,"d":"$0.00"}}]
[null,null,{"$f":"T('2 REPAIR ESTIMATOR'!D640:O640)","v":"Floor insulation"},{"$nulls":5},{"$f":"'2 REPAIR ESTIMATOR'!P640","v":0},{"$f":"'2 REPAIR ESTIMATOR'!S640","v":"sf"},{"v":0,"d":"$0"},{"v":0,"d":"$0"},{"v":0,"d":"$0"},{"v":0,"d":"$0"},null,0,null,null,{"$f":"'2 REPAIR ESTIMATOR'!AD640","v":{"v":0,"d":"$0.00"}},{"$f":"'2 REPAIR ESTIMATOR'!AM640","v":{"v":0,"d":"$0.00"}},{"v":0,"d":"$0.00"},{"$f":"'2 REPAIR ESTIMATOR'!AG640","v":{"v":0,"d":"$0.00"}},{"$f":"'2 REPAIR ESTIMATOR'!AJ640","v":{"v":0,"d":"$0.00"}}]
[null,null,{"$f":"T('2 REPAIR ESTIMATOR'!D641:O641)","v":"Attic insulation, blown-in"},{"$nulls":5},{"$f":"'2 REPAIR ESTIMATOR'!P641","v":0},{"$f":"'2 REPAIR ESTIMATOR'!S641","v":"sf"},{"v":0,"d":"$0"},{"v":0,"d":"$0"},{"v":0,"d":"$0"},{"v":0,"d":"$0"},null,0,null,null,{"$f":"'2 REPAIR ESTIMATOR'!AD641","v":{"v":0,"d":"$0.00"}},{"$f":"'2 REPAIR ESTIMATOR'!AM641","v":{"v":0,"d":"$0.00"}},{"v":0,"d":"$0.00"},{"$f":"'2 REPAIR ESTIMATOR'!AG641","v":{"v":0,"d":"$0.00"}},{"$f":"'2 REPAIR ESTIMATOR'!AJ641","v":{"v":0,"d":"$0.00"}}]
[null,null,{"$f":"T('2 REPAIR ESTIMATOR'!D642:O642)","v":"Walls/Ceilings"},{"$nulls":5},{"$f":"'2 REPAIR ESTIMATOR'!P642","v":0},{"$f":"'2 REPAIR ESTIMATOR'!S642","v":0},{"v":0,"d":"$0"},{"v":0,"d":"$0"},{"v":0,"d":"$0"},{"v":0,"d":"$0"},null,0,null,null,{"$f":"'2 REPAIR ESTIMATOR'!AD642","v":{"v":0,"d":"$0.00"}},{"$f":"'2 REPAIR ESTIMATOR'!AM642","v":{"v":0,"d":"$0.00"}},{"v":0,"d":"$0.00"},{"$f":"'2 REPAIR ESTIMATOR'!AG642","v":{"v":0,"d":"$0.00"}},{"$f":"'2 REPAIR ESTIMATOR'!AJ642","v":{"v":0,"d":"$0.00"}}]
[null,null,{"$f":"T('2 REPAIR ESTIMATOR'!D643:O643)","v":"Drywall bid/allowance, case by case"},{"$nulls":5},{"$f":"'2 REPAIR ESTIMATOR'!P643","v":1},{"$f":"'2 REPAIR ESTIMATOR'!S643","v":"ls"},{"v":750,"d":"$750"},{"v":0,"d":"$0"},{"v":0,"d":"$0"},{"v":750,"d":"$750"},null,1,null,null,{"$f":"'2 REPAIR ESTIMATOR'!AD643","v":{"v":750,"d":"$750.00"}},{"$f":"'2 REPAIR ESTIMATOR'!AM643","v":{"v":0,"d":"$0.00"}},{"v":750,"d":"$750.00"},{"$f":"'2 REPAIR ESTIMATOR'!AG643","v":{"v":0,"d":"$0.00"}},{"$f":"'2 REPAIR ESTIMATOR'!AJ643","v":{"v":0,"d":"$0.00"}}]
[null,null,{"$f":"T('2 REPAIR ESTIMATOR'!D644:O644)","v":"Drywall wallboard, 1/2\" thick, finish one side"},{"$nulls":5},{"$f":"'2 REPAIR ESTIMATOR'!P644","v":0},{"$f":"'2 REPAIR ESTIMATOR'!S644","v":"sf"},{"v":0,"d":"$0"},{"v":0,"d":"$0"},{"v":0,"d":"$0"},{"v":0,"d":"$0"},null,0,null,null,{"$f":"'2 REPAIR ESTIMATOR'!AD644","v":{"v":0,"d":"$0.00"}},{"$f":"'2 REPAIR ESTIMATOR'!AM644","v":{"v":0,"d":"$0.00"}},{"v":0,"d":"$0.00"},{"$f":"'2 REPAIR ESTIMATOR'!AG644","v":{"v":0,"d":"$0.00"}},{"$f":"'2 REPAIR ESTIMATOR'!AJ644","v":{"v":0,"d":"$0.00"}}]
[null,null,{"$f":"T('2 REPAIR ESTIMATOR'!D645:O645)","v":"Drywall ceilings, 1/2\" thick"},{"$nulls":5},{"$f":"'2 REPAIR ESTIMATOR'!P645","v":0},{"$f":"'2 REPAIR ESTIMATOR'!S645","v":"sf"},{"v":0,"d":"$0"},{"v":0,"d":"$0"},{"v":0,"d":"$0"},{"v":0,"d":"$0"},null,{"$f":"I606","v":0},null,null,{"$f":"'2 REPAIR ESTIMATOR'!AD645","v":{"v":0,"d":"$0.00"}},{"$f":"'2 REPAIR ESTIMATOR'!AM645","v":{"v":0,"d":"$0.00"}},{"v":0,"d":"$0.00"},{"$f":"'2 REPAIR ESTIMATOR'!AG645","v":{"v":0,"d":"$0.00"}},{"$f":"'2 REPAIR ESTIMATOR'!AJ645","v":{"v":0,"d":"$0.00"}}]
[null,null,{"$f":"T('2 REPAIR ESTIMATOR'!D646:O646)","v":"Skim coating/texturing walls"},{"$nulls":5},{"$f":"'2 REPAIR ESTIMATOR'!P646","v":0},{"$f":"'2 REPAIR ESTIMATOR'!S646","v":"sf"},{"v":0,"d":"$0"},{"v":0,"d":"$0"},{"v":0,"d":"$0"},{"v":0,"d":"$0"},null,0,null,null,{"$f":"'2 REPAIR ESTIMATOR'!AD646","v":{"v":0,"d":"$0.00"}},{"$f":"'2 REPAIR ESTIMATOR'!AM646","v":{"v":0,"d":"$0.00"}},{"v":0,"d":"$0.00"},{"$f":"'2 REPAIR ESTIMATOR'!AG646","v":{"v":0,"d":"$0.00"}},{"$f":"'2 REPAIR ESTIMATOR'!AJ646","v":{"v":0,"d":"$0.00"}}]
[null,null,{"$f":"T('2 REPAIR ESTIMATOR'!D647:O647)","v":"Skim coating/texturing ceilings"},{"$nulls":5},{"$f":"'2 REPAIR ESTIMATOR'!P647","v":0},{"$f":"'2 REPAIR ESTIMATOR'!S647","v":"sf"},{"v":0,"d":"$0"},{"v":0,"d":"$0"},{"v":0,"d":"$0"},{"v":0,"d":"$0"},null,0,null,null,{"$f":"'2 REPAIR ESTIMATOR'!AD647","v":{"v":0,"d":"$0.00"}},{"$f":"'2 REPAIR ESTIMATOR'!AM647","v":{"v":0,"d":"$0.00"}},{"v":0,"d":"$0.00"},{"$f":"'2 REPAIR ESTIMATOR'!AG647","v":{"v":0,"d":"$0.00"}},{"$f":"'2 REPAIR ESTIMATOR'!AJ647","v":{"v":0,"d":"$0.00"}}]
[null,null,{"$f":"T('2 REPAIR ESTIMATOR'!D648:O648)","v":""},{"$nulls":5},{"$f":"'2 REPAIR ESTIMATOR'!P648","v":0},{"$f":"'2 REPAIR ESTIMATOR'!S648","v":0},{"v":0,"d":"$0"},{"v":0,"d":"$0"},{"v":0,"d":"$0"},{"v":0,"d":"$0"},null,{"$f":"I609","v":0},null,null,{"$f":"'2 REPAIR ESTIMATOR'!AD648","v":{"v":0,"d":"$0.00"}},{"$f":"'2 REPAIR ESTIMATOR'!AM648","v":{"v":0,"d":"$0.00"}},{"v":0,"d":"$0.00"},{"$f":"'2 REPAIR ESTIMATOR'!AG648","v":{"v":0,"d":"$0.00"}},{"$f":"'2 REPAIR ESTIMATOR'!AJ648","v":{"v":0,"d":"$0.00"}}]
[null,null,{"$f":"T('2 REPAIR ESTIMATOR'!D649:O649)","v":""},{"$nulls":5},{"$f":"'2 REPAIR ESTIMATOR'!P649","v":0},{"$f":"'2 REPAIR ESTIMATOR'!S649","v":0},{"v":0,"d":"$0"},{"v":0,"d":"$0"},{"v":0,"d":"$0"},{"v":0,"d":"$0"},null,{"$f":"I610","v":0},null,null,{"$f":"'2 REPAIR ESTIMATOR'!AD649","v":{"v":0,"d":"$0.00"}},{"$f":"'2 REPAIR ESTIMATOR'!AM649","v":{"v":0,"d":"$0.00"}},{"v":0,"d":"$0.00"},{"$f":"'2 REPAIR ESTIMATOR'!AG649","v":{"v":0,"d":"$0.00"}},{"$f":"'2 REPAIR ESTIMATOR'!AJ649","v":{"v":0,"d":"$0.00"}}]
[null,null,{"$f":"T('2 REPAIR ESTIMATOR'!D650:O650)","v":""},{"$nulls":5},{"$f":"'2 REPAIR ESTIMATOR'!P650","v":0},{"$f":"'2 REPAIR ESTIMATOR'!S650","v":0},{"v":0,"d":"$0"},{"v":0,"d":"$0"},{"v":0,"d":"$0"},{"v":0,"d":"$0"},null,{"$f":"I611","v":0},null,null,{"$f":"'2 REPAIR ESTIMATOR'!AD650","v":{"v":0,"d":"$0.00"}},{"$f":"'2 REPAIR ESTIMATOR'!AM650","v":{"v":0,"d":"$0.00"}},{"v":0,"d":"$0.00"},{"$f":"'2 REPAIR ESTIMATOR'!AG650","v":{"v":0,"d":"$0.00"}},{"$f":"'2 REPAIR ESTIMATOR'!AJ650","v":{"v":0,"d":"$0.00"}}]
[null,null,{"$f":"T('2 REPAIR ESTIMATOR'!D651:O651)","v":""},{"$nulls":5},{"$f":"'2 REPAIR ESTIMATOR'!P651","v":0},{"$f":"'2 REPAIR ESTIMATOR'!S651","v":0},{"v":0,"d":"$0"},{"v":0,"d":"$0"},{"v":0,"d":"$0"},{"v":0,"d":"$0"},null,{"$f":"I612","v":0},null,null,{"$f":"'2 REPAIR ESTIMATOR'!AD651","v":{"v":0,"d":"$0.00"}},{"$f":"'2 REPAIR ESTIMATOR'!AM651","v":{"v":0,"d":"$0.00"}},{"v":0,"d":"$0.00"},{"$f":"'2 REPAIR ESTIMATOR'!AG651","v":{"v":0,"d":"$0.00"}},{"$f":"'2 REPAIR ESTIMATOR'!AJ651","v":{"v":0,"d":"$0.00"}}]
[null,null,{"$f":"T('2 REPAIR ESTIMATOR'!D652:O652)","v":""},{"$nulls":5},{"$f":"'2 REPAIR ESTIMATOR'!P652","v":0},{"$f":"'2 REPAIR ESTIMATOR'!S652","v":0},{"v":0,"d":"$0"},{"v":0,"d":"$0"},{"v":0,"d":"$0"},{"v":0,"d":"$0"},null,{"$f":"I613","v":0},null,null,{"$f":"'2 REPAIR ESTIMATOR'!AD652","v":{"v":0,"d":"$0.00"}},{"$f":"'2 REPAIR ESTIMATOR'!AM652","v":{"v":0,"d":"$0.00"}},{"v":0,"d":"$0.00"},{"$f":"'2 REPAIR ESTIMATOR'!AG652","v":{"v":0,"d":"$0.00"}},{"$f":"'2 REPAIR ESTIMATOR'!AJ652","v":{"v":0,"d":"$0.00"}}]
[null,null,{"$f":"T('2 REPAIR ESTIMATOR'!D653:O653)","v":""},{"$nulls":5},{"$f":"'2 REPAIR ESTIMATOR'!P653","v":0},{"$f":"'2 REPAIR ESTIMATOR'!S653","v":0},{"v":0,"d":"$0"},{"v":0,"d":"$0"},{"v":0,"d":"$0"},{"v":0,"d":"$0"},null,{"$f":"I614","v":0},null,null,{"$f":"'2 REPAIR ESTIMATOR'!AD653","v":{"v":0,"d":"$0.00"}},{"$f":"'2 REPAIR ESTIMATOR'!AM653","v":{"v":0,"d":"$0.00"}},{"v":0,"d":"$0.00"},{"$f":"'2 REPAIR ESTIMATOR'!AG653","v":{"v":0,"d":"$0.00"}},{"$f":"'2 REPAIR ESTIMATOR'!AJ653","v":{"v":0,"d":"$0.00"}}]
[null,null,{"$f":"T('2 REPAIR ESTIMATOR'!D654:O654)","v":""},{"$nulls":5},{"$f":"'2 REPAIR ESTIMATOR'!P654","v":0},{"$f":"'2 REPAIR ESTIMATOR'!S654","v":0},{"v":0,"d":"$0"},{"v":0,"d":"$0"},{"v":0,"d":"$0"},{"v":0,"d":"$0"},null,0,null,null,{"$f":"'2 REPAIR ESTIMATOR'!AD654","v":{"v":0,"d":"$0.00"}},{"$f":"'2 REPAIR ESTIMATOR'!AM654","v":{"v":0,"d":"$0.00"}},{"v":0,"d":"$0.00"},{"$f":"'2 REPAIR ESTIMATOR'!AG654","v":{"v":0,"d":"$0.00"}},{"$f":"'2 REPAIR ESTIMATOR'!AJ654","v":{"v":0,"d":"$0.00"}}]
[null,null,{"$f":"T('2 REPAIR ESTIMATOR'!D655:O655)","v":""},{"$nulls":5},{"$f":"'2 REPAIR ESTIMATOR'!P655","v":0},{"$f":"'2 REPAIR ESTIMATOR'!S655","v":0},{"v":0,"d":"$0"},{"v":0,"d":"$0"},{"v":0,"d":"$0"},{"v":0,"d":"$0"},null,0,null,null,{"$f":"'2 REPAIR ESTIMATOR'!AD655","v":{"v":0,"d":"$0.00"}},{"$f":"'2 REPAIR ESTIMATOR'!AM655","v":{"v":0,"d":"$0.00"}},{"v":0,"d":"$0.00"},{"$f":"'2 REPAIR ESTIMATOR'!AG655","v":{"v":0,"d":"$0.00"}},{"$f":"'2 REPAIR ESTIMATOR'!AJ655","v":{"v":0,"d":"$0.00"}}]
[null,null,{"$f":"T('2 REPAIR ESTIMATOR'!D656:O656)","v":""},{"$nulls":5},{"$f":"'2 REPAIR ESTIMATOR'!P656","v":0},{"$f":"'2 REPAIR ESTIMATOR'!S656","v":0},{"v":0,"d":"$0"},{"v":0,"d":"$0"},{"v":0,"d":"$0"},{"v":0,"d":"$0"},null,0,null,null,{"$f":"'2 REPAIR ESTIMATOR'!AD656","v":{"v":0,"d":"$0.00"}},{"$f":"'2 REPAIR ESTIMATOR'!AM656","v":{"v":0,"d":"$0.00"}},{"v":0,"d":"$0.00"},{"$f":"'2 REPAIR ESTIMATOR'!AG656","v":{"v":0,"d":"$0.00"}},{"$f":"'2 REPAIR ESTIMATOR'!AJ656","v":{"v":0,"d":"$0.00"}}]
[null,null,{"$f":"T('2 REPAIR ESTIMATOR'!D657:O657)","v":""},{"$nulls":5},{"$f":"'2 REPAIR ESTIMATOR'!P657","v":0},{"$f":"'2 REPAIR ESTIMATOR'!S657","v":0},{"v":0,"d":"$0"},{"v":0,"d":"$0"},{"v":0,"d":"$0"},{"v":0,"d":"$0"},null,0,null,null,{"$f":"'2 REPAIR ESTIMATOR'!AD657","v":{"v":0,"d":"$0.00"}},{"$f":"'2 REPAIR ESTIMATOR'!AM657","v":{"v":0,"d":"$0.00"}},{"v":0,"d":"$0.00"},{"$f":"'2 REPAIR ESTIMATOR'!AG657","v":{"v":0,"d":"$0.00"}},{"$f":"'2 REPAIR ESTIMATOR'!AJ657","v":{"v":0,"d":"$0.00"}}]
[null,null,{"$f":"T('2 REPAIR ESTIMATOR'!D658:O658)","v":""},{"$nulls":5},{"$f":"'2 REPAIR ESTIMATOR'!P658","v":0},{"$f":"'2 REPAIR ESTIMATOR'!S658","v":0},{"v":0,"d":"$0"},{"v":0,"d":"$0"},{"v":0,"d":"$0"},{"v":0,"d":"$0"},null,0,null,null,{"$f":"'2 REPAIR ESTIMATOR'!AD658","v":{"v":0,"d":"$0.00"}},{"$f":"'2 REPAIR ESTIMATOR'!AM658","v":{"v":0,"d":"$0.00"}},{"v":0,"d":"$0.00"},{"$f":"'2 REPAIR ESTIMATOR'!AG658","v":{"v":0,"d":"$0.00"}},{"$f":"'2 REPAIR ESTIMATOR'!AJ658","v":{"v":0,"d":"$0.00"}}]
[null,null,{"$f":"T('2 REPAIR ESTIMATOR'!D659:O659)","v":""},{"$nulls":5},{"$f":"'2 REPAIR ESTIMATOR'!P659","v":0},{"$f":"'2 REPAIR ESTIMATOR'!S659","v":0},{"v":0,"d":"$0"},{"v":0,"d":"$0"},{"v":0,"d":"$0"},{"v":0,"d":"$0"},null,0,null,null,{"$f":"'2 REPAIR ESTIMATOR'!AD659","v":{"v":0,"d":"$0.00"}},{"$f":"'2 REPAIR ESTIMATOR'!AM659","v":{"v":0,"d":"$0.00"}},{"v":0,"d":"$0.00"},{"$f":"'2 REPAIR ESTIMATOR'!AG659","v":{"v":0,"d":"$0.00"}},{"$f":"'2 REPAIR ESTIMATOR'!AJ659","v":{"v":0,"d":"$0.00"}}]
[null,null,{"$f":"T('2 REPAIR ESTIMATOR'!D660:O660)","v":""},{"$nulls":5},{"$f":"'2 REPAIR ESTIMATOR'!P660","v":0},{"$f":"'2 REPAIR ESTIMATOR'!S660","v":0},{"v":0,"d":"$0"},{"v":0,"d":"$0"},{"v":0,"d":"$0"},{"v":0,"d":"$0"},null,0,null,null,{"$f":"'2 REPAIR ESTIMATOR'!AD660","v":{"v":0,"d":"$0.00"}},{"$f":"'2 REPAIR ESTIMATOR'!AM660","v":{"v":0,"d":"$0.00"}},{"v":0,"d":"$0.00"},{"$f":"'2 REPAIR ESTIMATOR'!AG660","v":{"v":0,"d":"$0.00"}},{"$f":"'2 REPAIR ESTIMATOR'!AJ660","v":{"v":0,"d":"$0.00"}}]
[null,null,{"$f":"T('2 REPAIR ESTIMATOR'!D661:O661)","v":""},{"$nulls":5},{"$f":"'2 REPAIR ESTIMATOR'!P661","v":0},{"$f":"'2 REPAIR ESTIMATOR'!S661","v":0},{"v":0,"d":"$0"},{"v":0,"d":"$0"},{"v":0,"d":"$0"},{"v":0,"d":"$0"},null,0,null,null,{"$f":"'2 REPAIR ESTIMATOR'!AD661","v":{"v":0,"d":"$0.00"}},{"$f":"'2 REPAIR ESTIMATOR'!AM661","v":{"v":0,"d":"$0.00"}},{"v":0,"d":"$0.00"},{"$f":"'2 REPAIR ESTIMATOR'!AG661","v":{"v":0,"d":"$0.00"}},{"$f":"'2 REPAIR ESTIMATOR'!AJ661","v":{"v":0,"d":"$0.00"}}]
[null,null,{"$f":"T('2 REPAIR ESTIMATOR'!D662:O662)","v":""},{"$nulls":5},{"$f":"'2 REPAIR ESTIMATOR'!P662","v":0},{"$f":"'2 REPAIR ESTIMATOR'!S662","v":0},{"v":0,"d":"$0"},{"v":0,"d":"$0"},{"v":0,"d":"$0"},{"v":0,"d":"$0"},null,0,null,null,{"$f":"'2 REPAIR ESTIMATOR'!AD662","v":{"v":0,"d":"$0.00"}},{"$f":"'2 REPAIR ESTIMATOR'!AM662","v":{"v":0,"d":"$0.00"}},{"v":0,"d":"$0.00"},{"$f":"'2 REPAIR ESTIMATOR'!AG662","v":{"v":0,"d":"$0.00"}},{"$f":"'2 REPAIR ESTIMATOR'!AJ662","v":{"v":0,"d":"$0.00"}}]
[null,null,{"$f":"T('2 REPAIR ESTIMATOR'!D663:O663)","v":""},{"$nulls":5},{"$f":"'2 REPAIR ESTIMATOR'!P663","v":0},{"$f":"'2 REPAIR ESTIMATOR'!S663","v":0},{"v":0,"d":"$0"},{"v":0,"d":"$0"},{"v":0,"d":"$0"},{"v":0,"d":"$0"},null,0,null,null,{"$f":"'2 REPAIR ESTIMATOR'!AD663","v":{"v":0,"d":"$0.00"}},{"$f":"'2 REPAIR ESTIMATOR'!AM663","v":{"v":0,"d":"$0.00"}},{"v":0,"d":"$0.00"},{"$f":"'2 REPAIR ESTIMATOR'!AG663","v":{"v":0,"d":"$0.00"}},{"$f":"'2 REPAIR ESTIMATOR'!AJ663","v":{"v":0,"d":"$0.00"}}]
[null,null,{"$f":"T('2 REPAIR ESTIMATOR'!D664:O664)","v":""},{"$nulls":5},{"$f":"'2 REPAIR ESTIMATOR'!P664","v":0},{"$f":"'2 REPAIR ESTIMATOR'!S664","v":0},{"v":0,"d":"$0"},{"v":0,"d":"$0"},{"v":0,"d":"$0"},{"v":0,"d":"$0"},null,0,null,null,{"$f":"'2 REPAIR ESTIMATOR'!AD664","v":{"v":0,"d":"$0.00"}},{"$f":"'2 REPAIR ESTIMATOR'!AM664","v":{"v":0,"d":"$0.00"}},{"v":0,"d":"$0.00"},{"$f":"'2 REPAIR ESTIMATOR'!AG664","v":{"v":0,"d":"$0.00"}},{"$f":"'2 REPAIR ESTIMATOR'!AJ664","v":{"v":0,"d":"$0.00"}}]
[null,null,{"$f":"T('2 REPAIR ESTIMATOR'!D665:O665)","v":""},{"$nulls":5},{"$f":"'2 REPAIR ESTIMATOR'!P665","v":0},{"$f":"'2 REPAIR ESTIMATOR'!S665","v":0},{"v":0,"d":"$0"},{"v":0,"d":"$0"},{"v":0,"d":"$0"},{"v":0,"d":"$0"},null,{"$f":"I626","v":0},null,null,{"$f":"'2 REPAIR ESTIMATOR'!AD665","v":{"v":0,"d":"$0.00"}},{"$f":"'2 REPAIR ESTIMATOR'!AM665","v":{"v":0,"d":"$0.00"}},{"v":0,"d":"$0.00"},{"$f":"'2 REPAIR ESTIMATOR'!AG665","v":{"v":0,"d":"$0.00"}},{"$f":"'2 REPAIR ESTIMATOR'!AJ665","v":{"v":0,"d":"$0.00"}}]
[null,null,{"$f":"T('2 REPAIR ESTIMATOR'!D666:O666)","v":""},{"$nulls":5},{"$f":"'2 REPAIR ESTIMATOR'!P666","v":0},{"$f":"'2 REPAIR ESTIMATOR'!S666","v":0},{"v":0,"d":"$0"},{"v":0,"d":"$0"},{"v":0,"d":"$0"},{"v":0,"d":"$0"},null,{"$f":"I627","v":0},null,null,{"$f":"'2 REPAIR ESTIMATOR'!AD666","v":{"v":0,"d":"$0.00"}},{"$f":"'2 REPAIR ESTIMATOR'!AM666","v":{"v":0,"d":"$0.00"}},{"v":0,"d":"$0.00"},{"$f":"'2 REPAIR ESTIMATOR'!AG666","v":{"v":0,"d":"$0.00"}},{"$f":"'2 REPAIR ESTIMATOR'!AJ666","v":{"v":0,"d":"$0.00"}}]
[null,null,{"$f":"T('2 REPAIR ESTIMATOR'!D667:O667)","v":""},{"$nulls":5},{"$f":"'2 REPAIR ESTIMATOR'!P667","v":0},{"$f":"'2 REPAIR ESTIMATOR'!S667","v":0},{"v":0,"d":"$0"},{"v":0,"d":"$0"},{"v":0,"d":"$0"},{"v":0,"d":"$0"},null,{"$f":"I628","v":0},null,null,{"$f":"'2 REPAIR ESTIMATOR'!AD667","v":{"v":0,"d":"$0.00"}},{"$f":"'2 REPAIR ESTIMATOR'!AM667","v":{"v":0,"d":"$0.00"}},{"v":0,"d":"$0.00"},{"$f":"'2 REPAIR ESTIMATOR'!AG667","v":{"v":0,"d":"$0.00"}},{"$f":"'2 REPAIR ESTIMATOR'!AJ667","v":{"v":0,"d":"$0.00"}}]
[null,null,{"$f":"T('2 REPAIR ESTIMATOR'!AC669)","v":"FRAMING & DRYWALL TOTAL"},{"$nulls":7},{"$f":"SUM(K589:K628)","v":{"v":750,"d":"$750"}},{"$f":"SUM(L589:L628)","v":{"v":0,"d":"$0"}},{"$f":"SUM(M589:M628)","v":{"v":0,"d":"$0"}},{"$f":"SUM(N589:O628)","v":{"v":750,"d":"$750"}},null,{"$f":"SUM(P588:P608)","v":2},null,null,{"$f":"SUM(S589:S628)","v":{"v":750,"d":"$750.00"}},{"$f":"SUM(T589:T628)","v":{"v":0,"d":"$0.00"}},{"$f":"SUM(U589:U628)","v":{"v":750,"d":"$750.00"}},{"$f":"SUM(V589:V628)","v":{"v":0,"d":"$0.00"}},{"$f":"SUM(W589:W628)","v":{"v":0,"d":"$0.00"}}]
[{"$nulls":15},{"$f":"P629","v":2}]
[null,null,{"$f":"T('2 REPAIR ESTIMATOR'!D672:O672)","v":"CABINETS & COUNTERTOPS"},{"$nulls":5},{"$f":"SUM(I632:I671)","v":64},{"$nulls":6},64]
[null,null,{"$f":"T('2 REPAIR ESTIMATOR'!D673:O673)","v":"Cabinet Installation bid/allowance"},{"$nulls":5},{"$f":"'2 REPAIR ESTIMATOR'!P673","v":0},{"$f":"'2 REPAIR ESTIMATOR'!S673","v":"ls"},{"$f":"IF($N$3=\"subbed\",U632,S632)*$S$70","v":{"v":0,"d":"$0"}},{"$f":"V632*$S$70","v":{"v":0,"d":"$0"}},{"$f":"W632*$S$70","v":{"v":0,"d":"$0"}},{"$f":"SUM(K632:M632)","v":{"v":0,"d":"$0"}},null,0,null,null,{"$f":"'2 REPAIR ESTIMATOR'!AD673","v":{"v":0,"d":"$0.00"}},{"$f":"'2 REPAIR ESTIMATOR'!AM673","v":{"v":0,"d":"$0.00"}},{"$f":"T632+S632","v":{"v":0,"d":"$0.00"}},{"$f":"'2 REPAIR ESTIMATOR'!AG673","v":{"v":0,"d":"$0.00"}},{"$f":"'2 REPAIR ESTIMATOR'!AJ673","v":{"v":0,"d":"$0.00"}}]
[null,null,{"$f":"T('2 REPAIR ESTIMATOR'!D674:O674)","v":"Cabinet Material bid/allowance"},{"$nulls":5},{"$f":"'2 REPAIR ESTIMATOR'!P674","v":0},{"$f":"'2 REPAIR ESTIMATOR'!S674","v":"ls"},{"v":0,"d":"$0"},{"$f":"V633*$S$70","v":{"v":0,"d":"$0"}},{"$f":"W633*$S$70","v":{"v":0,"d":"$0"}},{"$f":"SUM(K633:M633)","v":{"v":0,"d":"$0"}},null,0,null,null,{"$f":"'2 REPAIR ESTIMATOR'!AD674","v":{"v":0,"d":"$0.00"}},{"$f":"'2 REPAIR ESTIMATOR'!AM674","v":{"v":0,"d":"$0.00"}},{"$f":"T633+S633","v":{"v":0,"d":"$0.00"}},{"$f":"'2 REPAIR ESTIMATOR'!AG674","v":{"v":0,"d":"$0.00"}},{"$f":"'2 REPAIR ESTIMATOR'!AJ674","v":{"v":0,"d":"$0.00"}}]
[null,null,{"$f":"T('2 REPAIR ESTIMATOR'!D675:O675)","v":"Countertop bid/allowance"},{"$nulls":5},{"$f":"'2 REPAIR ESTIMATOR'!P675","v":0},{"$f":"'2 REPAIR ESTIMATOR'!S675","v":"ls"},{"v":0,"d":"$0"},{"v":0,"d":"$0"},{"v":0,"d":"$0"},{"v":0,"d":"$0"},null,0,null,null,{"$f":"'2 REPAIR ESTIMATOR'!AD675","v":{"v":0,"d":"$0.00"}},{"$f":"'2 REPAIR ESTIMATOR'!AM675","v":{"v":0,"d":"$0.00"}},{"v":0,"d":"$0.00"},{"$f":"'2 REPAIR ESTIMATOR'!AG675","v":{"v":0,"d":"$0.00"}},{"$f":"'2 REPAIR ESTIMATOR'!AJ675","v":{"v":0,"d":"$0.00"}}]
[null,null,{"$f":"T('2 REPAIR ESTIMATOR'!D676:O676)","v":"Kitchen"},{"$nulls":5},{"$f":"'2 REPAIR ESTIMATOR'!P676","v":0},{"$f":"'2 REPAIR ESTIMATOR'!S676","v":0},{"v":0,"d":"$0"},{"v":0,"d":"$0"},{"v":0,"d":"$0"},{"v":0,"d":"$0"},null,0,null,null,{"$f":"'2 REPAIR ESTIMATOR'!AD676","v":{"v":0,"d":"$0.00"}},{"$f":"'2 REPAIR ESTIMATOR'!AM676","v":{"v":0,"d":"$0.00"}},{"v":0,"d":"$0.00"},{"$f":"'2 REPAIR ESTIMATOR'!AG676","v":{"v":0,"d":"$0.00"}},{"$f":"'2 REPAIR ESTIMATOR'!AJ676","v":{"v":0,"d":"$0.00"}}]
[null,null,{"$f":"T('2 REPAIR ESTIMATOR'!D677:O677)","v":"Kitchen Base Cabinetry"},{"$nulls":5},{"$f":"'2 REPAIR ESTIMATOR'!P677","v":15},{"$f":"'2 REPAIR ESTIMATOR'!S677","v":"lf"},{"v":750,"d":"$750"},{"v":2808.75,"d":"$2,809"},{"v":0,"d":"$0"},{"v":3558.75,"d":"$3,559"},null,15,null,null,{"$f":"'2 REPAIR ESTIMATOR'!AD677","v":{"v":750,"d":"$750.00"}},{"$f":"'2 REPAIR ESTIMATOR'!AM677","v":{"v":0,"d":"$0.00"}},{"v":750,"d":"$750.00"},{"$f":"'2 REPAIR ESTIMATOR'!AG677","v":{"v":2808.75,"d":"$2,808.75"}},{"$f":"'2 REPAIR ESTIMATOR'!AJ677","v":{"v":0,"d":"$0.00"}}]
[null,null,{"$f":"T('2 REPAIR ESTIMATOR'!D678:O678)","v":"Kitchen Upper Cabinetry"},{"$nulls":5},{"$f":"'2 REPAIR ESTIMATOR'!P678","v":15},{"$f":"'2 REPAIR ESTIMATOR'!S678","v":"lf"},{"v":525,"d":"$525"},{"v":2407.5,"d":"$2,408"},{"v":0,"d":"$0"},{"v":2932.5,"d":"$2,933"},null,15,null,null,{"$f":"'2 REPAIR ESTIMATOR'!AD678","v":{"v":525,"d":"$525.00"}},{"$f":"'2 REPAIR ESTIMATOR'!AM678","v":{"v":0,"d":"$0.00"}},{"v":525,"d":"$525.00"},{"$f":"'2 REPAIR ESTIMATOR'!AG678","v":{"v":2407.5,"d":"$2,407.50"}},{"$f":"'2 REPAIR ESTIMATOR'!AJ678","v":{"v":0,"d":"$0.00"}}]
[null,null,{"$f":"T('2 REPAIR ESTIMATOR'!D679:O679)","v":"Kitchen Pantry Cabinet"},{"$nulls":5},{"$f":"'2 REPAIR ESTIMATOR'!P679","v":1},{"$f":"'2 REPAIR ESTIMATOR'!S679","v":"ea"},{"v":175,"d":"$175"},{"v":963,"d":"$963"},{"v":0,"d":"$0"},{"v":1138,"d":"$1,138"},null,1,null,null,{"$f":"'2 REPAIR ESTIMATOR'!AD679","v":{"v":175,"d":"$175.00"}},{"$f":"'2 REPAIR ESTIMATOR'!AM679","v":{"v":0,"d":"$0.00"}},{"v":175,"d":"$175.00"},{"$f":"'2 REPAIR ESTIMATOR'!AG679","v":{"v":963,"d":"$963.00"}},{"$f":"'2 REPAIR ESTIMATOR'!AJ679","v":{"v":0,"d":"$0.00"}}]
[null,null,{"$f":"T('2 REPAIR ESTIMATOR'!D680:O680)","v":"Plastic laminate countertop"},{"$nulls":5},{"$f":"'2 REPAIR ESTIMATOR'!P680","v":0},{"$f":"'2 REPAIR ESTIMATOR'!S680","v":"sf"},{"v":0,"d":"$0"},{"v":0,"d":"$0"},{"v":0,"d":"$0"},{"v":0,"d":"$0"},null,0,null,null,{"$f":"'2 REPAIR ESTIMATOR'!AD680","v":{"v":0,"d":"$0.00"}},{"$f":"'2 REPAIR ESTIMATOR'!AM680","v":{"v":0,"d":"$0.00"}},{"v":0,"d":"$0.00"},{"$f":"'2 REPAIR ESTIMATOR'!AG680","v":{"v":0,"d":"$0.00"}},{"$f":"'2 REPAIR ESTIMATOR'!AJ680","v":{"v":0,"d":"$0.00"}}]
[null,null,{"$f":"T('2 REPAIR ESTIMATOR'!D681:O681)","v":"Replace cabinet doors, only"},{"$nulls":5},{"$f":"'2 REPAIR ESTIMATOR'!P681","v":0},{"$f":"'2 REPAIR ESTIMATOR'!S681","v":"ea"},{"v":0,"d":"$0"},{"v":0,"d":"$0"},{"v":0,"d":"$0"},{"v":0,"d":"$0"},null,0,null,null,{"$f":"'2 REPAIR ESTIMATOR'!AD681","v":{"v":0,"d":"$0.00"}},{"$f":"'2 REPAIR ESTIMATOR'!AM681","v":{"v":0,"d":"$0.00"}},{"v":0,"d":"$0.00"},{"$f":"'2 REPAIR ESTIMATOR'!AG681","v":{"v":0,"d":"$0.00"}},{"$f":"'2 REPAIR ESTIMATOR'!AJ681","v":{"v":0,"d":"$0.00"}}]
[null,null,{"$f":"T('2 REPAIR ESTIMATOR'!D682:O682)","v":"Replace cabinet drawer fronts, only"},{"$nulls":5},{"$f":"'2 REPAIR ESTIMATOR'!P682","v":0},{"$f":"'2 REPAIR ESTIMATOR'!S682","v":"ea"},{"v":0,"d":"$0"},{"v":0,"d":"$0"},{"v":0,"d":"$0"},{"v":0,"d":"$0"},null,0,null,null,{"$f":"'2 REPAIR ESTIMATOR'!AD682","v":{"v":0,"d":"$0.00"}},{"$f":"'2 REPAIR ESTIMATOR'!AM682","v":{"v":0,"d":"$0.00"}},{"v":0,"d":"$0.00"},{"$f":"'2 REPAIR ESTIMATOR'!AG682","v":{"v":0,"d":"$0.00"}},{"$f":"'2 REPAIR ESTIMATOR'!AJ682","v":{"v":0,"d":"$0.00"}}]
[null,null,{"$f":"T('2 REPAIR ESTIMATOR'!D683:O683)","v":"New cabinet door pulls"},{"$nulls":5},{"$f":"'2 REPAIR ESTIMATOR'!P683","v":0},{"$f":"'2 REPAIR ESTIMATOR'!S683","v":"ea"},{"v":0,"d":"$0"},{"v":0,"d":"$0"},{"v":0,"d":"$0"},{"v":0,"d":"$0"},null,0,null,null,{"$f":"'2 REPAIR ESTIMATOR'!AD683","v":{"v":0,"d":"$0.00"}},{"$f":"'2 REPAIR ESTIMATOR'!AM683","v":{"v":0,"d":"$0.00"}},{"v":0,"d":"$0.00"},{"$f":"'2 REPAIR ESTIMATOR'!AG683","v":{"v":0,"d":"$0.00"}},{"$f":"'2 REPAIR ESTIMATOR'!AJ683","v":{"v":0,"d":"$0.00"}}]
[null,null,{"$f":"T('2 REPAIR ESTIMATOR'!D684:O684)","v":"Stone/solid surface countertop, kitchen"},{"$nulls":5},{"$f":"'2 REPAIR ESTIMATOR'!P684","v":30},{"$f":"'2 REPAIR ESTIMATOR'!S684","v":"sf"},{"v":0,"d":"$0"},{"v":1765.5,"d":"$1,766"},{"v":0,"d":"$0"},{"v":1765.5,"d":"$1,766"},null,30,null,null,{"$f":"'2 REPAIR ESTIMATOR'!AD684","v":{"v":0,"d":"$0.00"}},{"$f":"'2 REPAIR ESTIMATOR'!AM684","v":{"v":0,"d":"$0.00"}},{"v":0,"d":"$0.00"},{"$f":"'2 REPAIR ESTIMATOR'!AG684","v":{"v":1765.5,"d":"$1,765.50"}},{"$f":"'2 REPAIR ESTIMATOR'!AJ684","v":{"v":0,"d":"$0.00"}}]
[null,null,{"$f":"T('2 REPAIR ESTIMATOR'!D685:O685)","v":"Kitchen sink bowl, stainless steel, undermount"},{"$nulls":5},{"$f":"'2 REPAIR ESTIMATOR'!P685","v":1},{"$f":"'2 REPAIR ESTIMATOR'!S685","v":"ea"},{"v":100,"d":"$100"},{"v":267.5,"d":"$268"},{"v":0,"d":"$0"},{"v":367.5,"d":"$368"},null,1,null,null,{"$f":"'2 REPAIR ESTIMATOR'!AD685","v":{"v":100,"d":"$100.00"}},{"$f":"'2 REPAIR ESTIMATOR'!AM685","v":{"v":0,"d":"$0.00"}},{"v":100,"d":"$100.00"},{"$f":"'2 REPAIR ESTIMATOR'!AG685","v":{"v":267.5,"d":"$267.50"}},{"$f":"'2 REPAIR ESTIMATOR'!AJ685","v":{"v":0,"d":"$0.00"}}]
[null,null,{"$f":"T('2 REPAIR ESTIMATOR'!D686:O686)","v":"Kitchen sink bowl, composite, undermount"},{"$nulls":5},{"$f":"'2 REPAIR ESTIMATOR'!P686","v":0},{"$f":"'2 REPAIR ESTIMATOR'!S686","v":"ea"},{"v":0,"d":"$0"},{"v":0,"d":"$0"},{"v":0,"d":"$0"},{"v":0,"d":"$0"},null,{"$f":"I645","v":0},null,null,{"$f":"'2 REPAIR ESTIMATOR'!AD686","v":{"v":0,"d":"$0.00"}},{"$f":"'2 REPAIR ESTIMATOR'!AM686","v":{"v":0,"d":"$0.00"}},{"v":0,"d":"$0.00"},{"$f":"'2 REPAIR ESTIMATOR'!AG686","v":{"v":0,"d":"$0.00"}},{"$f":"'2 REPAIR ESTIMATOR'!AJ686","v":{"v":0,"d":"$0.00"}}]
[null,null,{"$f":"T('2 REPAIR ESTIMATOR'!D687:O687)","v":"Bathrooms"},{"$nulls":5},{"$f":"'2 REPAIR ESTIMATOR'!P687","v":0},{"$f":"'2 REPAIR ESTIMATOR'!S687","v":0},{"v":0,"d":"$0"},{"v":0,"d":"$0"},{"v":0,"d":"$0"},{"v":0,"d":"$0"},null,0,null,null,{"$f":"'2 REPAIR ESTIMATOR'!AD687","v":{"v":0,"d":"$0.00"}},{"$f":"'2 REPAIR ESTIMATOR'!AM687","v":{"v":0,"d":"$0.00"}},{"v":0,"d":"$0.00"},{"$f":"'2 REPAIR ESTIMATOR'!AG687","v":{"v":0,"d":"$0.00"}},{"$f":"'2 REPAIR ESTIMATOR'!AJ687","v":{"v":0,"d":"$0.00"}}]
[null,null,{"$f":"T('2 REPAIR ESTIMATOR'!D688:O688)","v":"Vanity cabinet"},{"$nulls":5},{"$f":"'2 REPAIR ESTIMATOR'!P688","v":2},{"$f":"'2 REPAIR ESTIMATOR'!S688","v":"ea"},{"v":400,"d":"$400"},{"v":1284,"d":"$1,284"},{"v":0,"d":"$0"},{"v":1684,"d":"$1,684"},null,2,null,null,{"$f":"'2 REPAIR ESTIMATOR'!AD688","v":{"v":400,"d":"$400.00"}},{"$f":"'2 REPAIR ESTIMATOR'!AM688","v":{"v":0,"d":"$0.00"}},{"v":400,"d":"$400.00"},{"$f":"'2 REPAIR ESTIMATOR'!AG688","v":{"v":1284,"d":"$1,284.00"}},{"$f":"'2 REPAIR ESTIMATOR'!AJ688","v":{"v":0,"d":"$0.00"}}]
[null,null,{"$f":"T('2 REPAIR ESTIMATOR'!D689:O689)","v":"New cabinet door pulls"},{"$nulls":5},{"$f":"'2 REPAIR ESTIMATOR'!P689","v":0},{"$f":"'2 REPAIR ESTIMATOR'!S689","v":"ea"},{"v":0,"d":"$0"},{"v":0,"d":"$0"},{"v":0,"d":"$0"},{"v":0,"d":"$0"},null,0,null,null,{"$f":"'2 REPAIR ESTIMATOR'!AD689","v":{"v":0,"d":"$0.00"}},{"$f":"'2 REPAIR ESTIMATOR'!AM689","v":{"v":0,"d":"$0.00"}},{"v":0,"d":"$0.00"},{"$f":"'2 REPAIR ESTIMATOR'!AG689","v":{"v":0,"d":"$0.00"}},{"$f":"'2 REPAIR ESTIMATOR'!AJ689","v":{"v":0,"d":"$0.00"}}]
[null,null,{"$f":"T('2 REPAIR ESTIMATOR'!D690:O690)","v":"Vanity countertop, stone/solid surface"},{"$nulls":5},{"$f":"'2 REPAIR ESTIMATOR'!P690","v":0},{"$f":"'2 REPAIR ESTIMATOR'!S690","v":"sf"},{"v":0,"d":"$0"},{"v":0,"d":"$0"},{"v":0,"d":"$0"},{"v":0,"d":"$0"},null,0,null,null,{"$f":"'2 REPAIR ESTIMATOR'!AD690","v":{"v":0,"d":"$0.00"}},{"$f":"'2 REPAIR ESTIMATOR'!AM690","v":{"v":0,"d":"$0.00"}},{"v":0,"d":"$0.00"},{"$f":"'2 REPAIR ESTIMATOR'!AG690","v":{"v":0,"d":"$0.00"}},{"$f":"'2 REPAIR ESTIMATOR'!AJ690","v":{"v":0,"d":"$0.00"}}]
[null,null,{"$f":"T('2 REPAIR ESTIMATOR'!D691:O691)","v":""},{"$nulls":5},{"$f":"'2 REPAIR ESTIMATOR'!P691","v":0},{"$f":"'2 REPAIR ESTIMATOR'!S691","v":0},{"v":0,"d":"$0"},{"v":0,"d":"$0"},{"v":0,"d":"$0"},{"v":0,"d":"$0"},null,0,null,null,{"$f":"'2 REPAIR ESTIMATOR'!AD691","v":{"v":0,"d":"$0.00"}},{"$f":"'2 REPAIR ESTIMATOR'!AM691","v":{"v":0,"d":"$0.00"}},{"v":0,"d":"$0.00"},{"$f":"'2 REPAIR ESTIMATOR'!AG691","v":{"v":0,"d":"$0.00"}},{"$f":"'2 REPAIR ESTIMATOR'!AJ691","v":{"v":0,"d":"$0.00"}}]
[null,null,{"$f":"T('2 REPAIR ESTIMATOR'!D692:O692)","v":""},{"$nulls":5},{"$f":"'2 REPAIR ESTIMATOR'!P692","v":0},{"$f":"'2 REPAIR ESTIMATOR'!S692","v":0},{"v":0,"d":"$0"},{"v":0,"d":"$0"},{"v":0,"d":"$0"},{"v":0,"d":"$0"},null,0,null,null,{"$f":"'2 REPAIR ESTIMATOR'!AD692","v":{"v":0,"d":"$0.00"}},{"$f":"'2 REPAIR ESTIMATOR'!AM692","v":{"v":0,"d":"$0.00"}},{"v":0,"d":"$0.00"},{"$f":"'2 REPAIR ESTIMATOR'!AG692","v":{"v":0,"d":"$0.00"}},{"$f":"'2 REPAIR ESTIMATOR'!AJ692","v":{"v":0,"d":"$0.00"}}]
[null,null,{"$f":"T('2 REPAIR ESTIMATOR'!D693:O693)","v":""},{"$nulls":5},{"$f":"'2 REPAIR ESTIMATOR'!P693","v":0},{"$f":"'2 REPAIR ESTIMATOR'!S693","v":0},{"v":0,"d":"$0"},{"v":0,"d":"$0"},{"v":0,"d":"$0"},{"v":0,"d":"$0"},null,0,null,null,{"$f":"'2 REPAIR ESTIMATOR'!AD693","v":{"v":0,"d":"$0.00"}},{"$f":"'2 REPAIR ESTIMATOR'!AM693","v":{"v":0,"d":"$0.00"}},{"v":0,"d":"$0.00"},{"$f":"'2 REPAIR ESTIMATOR'!AG693","v":{"v":0,"d":"$0.00"}},{"$f":"'2 REPAIR ESTIMATOR'!AJ693","v":{"v":0,"d":"$0.00"}}]
[null,null,{"$f":"T('2 REPAIR ESTIMATOR'!D694:O694)","v":""},{"$nulls":5},{"$f":"'2 REPAIR ESTIMATOR'!P694","v":0},{"$f":"'2 REPAIR ESTIMATOR'!S694","v":0},{"v":0,"d":"$0"},{"v":0,"d":"$0"},{"v":0,"d":"$0"},{"v":0,"d":"$0"},null,0,null,null,{"$f":"'2 REPAIR ESTIMATOR'!AD694","v":{"v":0,"d":"$0.00"}},{"$f":"'2 REPAIR ESTIMATOR'!AM694","v":{"v":0,"d":"$0.00"}},{"v":0,"d":"$0.00"},{"$f":"'2 REPAIR ESTIMATOR'!AG694","v":{"v":0,"d":"$0.00"}},{"$f":"'2 REPAIR ESTIMATOR'!AJ694","v":{"v":0,"d":"$0.00"}}]
[null,null,{"$f":"T('2 REPAIR ESTIMATOR'!D695:O695)","v":""},{"$nulls":5},{"$f":"'2 REPAIR ESTIMATOR'!P695","v":0},{"$f":"'2 REPAIR ESTIMATOR'!S695","v":0},{"v":0,"d":"$0"},{"v":0,"d":"$0"},{"v":0,"d":"$0"},{"v":0,"d":"$0"},null,0,null,null,{"$f":"'2 REPAIR ESTIMATOR'!AD695","v":{"v":0,"d":"$0.00"}},{"$f":"'2 REPAIR ESTIMATOR'!AM695","v":{"v":0,"d":"$0.00"}},{"v":0,"d":"$0.00"},{"$f":"'2 REPAIR ESTIMATOR'!AG695","v":{"v":0,"d":"$0.00"}},{"$f":"'2 REPAIR ESTIMATOR'!AJ695","v":{"v":0,"d":"$0.00"}}]
[null,null,{"$f":"T('2 REPAIR ESTIMATOR'!D696:O696)","v":""},{"$nulls":5},{"$f":"'2 REPAIR ESTIMATOR'!P696","v":0},{"$f":"'2 REPAIR ESTIMATOR'!S696","v":0},{"v":0,"d":"$0"},{"v":0,"d":"$0"},{"v":0,"d":"$0"},{"v":0,"d":"$0"},null,0,null,null,{"$f":"'2 REPAIR ESTIMATOR'!AD696","v":{"v":0,"d":"$0.00"}},{"$f":"'2 REPAIR ESTIMATOR'!AM696","v":{"v":0,"d":"$0.00"}},{"v":0,"d":"$0.00"},{"$f":"'2 REPAIR ESTIMATOR'!AG696","v":{"v":0,"d":"$0.00"}},{"$f":"'2 REPAIR ESTIMATOR'!AJ696","v":{"v":0,"d":"$0.00"}}]
[null,null,{"$f":"T('2 REPAIR ESTIMATOR'!D697:O697)","v":""},{"$nulls":5},{"$f":"'2 REPAIR ESTIMATOR'!P697","v":0},{"$f":"'2 REPAIR ESTIMATOR'!S697","v":0},{"v":0,"d":"$0"},{"v":0,"d":"$0"},{"v":0,"d":"$0"},{"v":0,"d":"$0"},null,0,null,null,{"$f":"'2 REPAIR ESTIMATOR'!AD697","v":{"v":0,"d":"$0.00"}},{"$f":"'2 REPAIR ESTIMATOR'!AM697","v":{"v":0,"d":"$0.00"}},{"v":0,"d":"$0.00"},{"$f":"'2 REPAIR ESTIMATOR'!AG697","v":{"v":0,"d":"$0.00"}},{"$f":"'2 REPAIR ESTIMATOR'!AJ697","v":{"v":0,"d":"$0.00"}}]
[null,null,{"$f":"T('2 REPAIR ESTIMATOR'!D698:O698)","v":""},{"$nulls":5},{"$f":"'2 REPAIR ESTIMATOR'!P698","v":0},{"$f":"'2 REPAIR ESTIMATOR'!S698","v":0},{"v":0,"d":"$0"},{"v":0,"d":"$0"},{"v":0,"d":"$0"},{"v":0,"d":"$0"},null,0,null,null,{"$f":"'2 REPAIR ESTIMATOR'!AD698","v":{"v":0,"d":"$0.00"}},{"$f":"'2 REPAIR ESTIMATOR'!AM698","v":{"v":0,"d":"$0.00"}},{"v":0,"d":"$0.00"},{"$f":"'2 REPAIR ESTIMATOR'!AG698","v":{"v":0,"d":"$0.00"}},{"$f":"'2 REPAIR ESTIMATOR'!AJ698","v":{"v":0,"d":"$0.00"}}]
[null,null,{"$f":"T('2 REPAIR ESTIMATOR'!D699:O699)","v":""},{"$nulls":5},{"$f":"'2 REPAIR ESTIMATOR'!P699","v":0},{"$f":"'2 REPAIR ESTIMATOR'!S699","v":0},{"v":0,"d":"$0"},{"v":0,"d":"$0"},{"v":0,"d":"$0"},{"v":0,"d":"$0"},null,0,null,null,{"$f":"'2 REPAIR ESTIMATOR'!AD699","v":{"v":0,"d":"$0.00"}},{"$f":"'2 REPAIR ESTIMATOR'!AM699","v":{"v":0,"d":"$0.00"}},{"v":0,"d":"$0.00"},{"$f":"'2 REPAIR ESTIMATOR'!AG699","v":{"v":0,"d":"$0.00"}},{"$f":"'2 REPAIR ESTIMATOR'!AJ699","v":{"v":0,"d":"$0.00"}}]
[null,null,{"$f":"T('2 REPAIR ESTIMATOR'!D700:O700)","v":""},{"$nulls":5},{"$f":"'2 REPAIR ESTIMATOR'!P700","v":0},{"$f":"'2 REPAIR ESTIMATOR'!S700","v":0},{"v":0,"d":"$0"},{"v":0,"d":"$0"},{"v":0,"d":"$0"},{"v":0,"d":"$0"},null,0,null,null,{"$f":"'2 REPAIR ESTIMATOR'!AD700","v":{"v":0,"d":"$0.00"}},{"$f":"'2 REPAIR ESTIMATOR'!AM700","v":{"v":0,"d":"$0.00"}},{"v":0,"d":"$0.00"},{"$f":"'2 REPAIR ESTIMATOR'!AG700","v":{"v":0,"d":"$0.00"}},{"$f":"'2 REPAIR ESTIMATOR'!AJ700","v":{"v":0,"d":"$0.00"}}]
[null,null,{"$f":"T('2 REPAIR ESTIMATOR'!D701:O701)","v":""},{"$nulls":5},{"$f":"'2 REPAIR ESTIMATOR'!P701","v":0},{"$f":"'2 REPAIR ESTIMATOR'!S701","v":0},{"v":0,"d":"$0"},{"v":0,"d":"$0"},{"v":0,"d":"$0"},{"v":0,"d":"$0"},null,0,null,null,{"$f":"'2 REPAIR ESTIMATOR'!AD701","v":{"v":0,"d":"$0.00"}},{"$f":"'2 REPAIR ESTIMATOR'!AM701","v":{"v":0,"d":"$0.00"}},{"v":0,"d":"$0.00"},{"$f":"'2 REPAIR ESTIMATOR'!AG701","v":{"v":0,"d":"$0.00"}},{"$f":"'2 REPAIR ESTIMATOR'!AJ701","v":{"v":0,"d":"$0.00"}}]
[null,null,{"$f":"T('2 REPAIR ESTIMATOR'!D702:O702)","v":""},{"$nulls":5},{"$f":"'2 REPAIR ESTIMATOR'!P702","v":0},{"$f":"'2 REPAIR ESTIMATOR'!S702","v":0},{"v":0,"d":"$0"},{"v":0,"d":"$0"},{"v":0,"d":"$0"},{"v":0,"d":"$0"},null,0,null,null,{"$f":"'2 REPAIR ESTIMATOR'!AD702","v":{"v":0,"d":"$0.00"}},{"$f":"'2 REPAIR ESTIMATOR'!AM702","v":{"v":0,"d":"$0.00"}},{"v":0,"d":"$0.00"},{"$f":"'2 REPAIR ESTIMATOR'!AG702","v":{"v":0,"d":"$0.00"}},{"$f":"'2 REPAIR ESTIMATOR'!AJ702","v":{"v":0,"d":"$0.00"}}]
[null,null,{"$f":"T('2 REPAIR ESTIMATOR'!D703:O703)","v":""},{"$nulls":5},{"$f":"'2 REPAIR ESTIMATOR'!P703","v":0},{"$f":"'2 REPAIR ESTIMATOR'!S703","v":0},{"v":0,"d":"$0"},{"v":0,"d":"$0"},{"v":0,"d":"$0"},{"v":0,"d":"$0"},null,0,null,null,{"$f":"'2 REPAIR ESTIMATOR'!AD703","v":{"v":0,"d":"$0.00"}},{"$f":"'2 REPAIR ESTIMATOR'!AM703","v":{"v":0,"d":"$0.00"}},{"v":0,"d":"$0.00"},{"$f":"'2 REPAIR ESTIMATOR'!AG703","v":{"v":0,"d":"$0.00"}},{"$f":"'2 REPAIR ESTIMATOR'!AJ703","v":{"v":0,"d":"$0.00"}}]
[null,null,{"$f":"T('2 REPAIR ESTIMATOR'!D704:O704)","v":""},{"$nulls":5},{"$f":"'2 REPAIR ESTIMATOR'!P704","v":0},{"$f":"'2 REPAIR ESTIMATOR'!S704","v":0},{"v":0,"d":"$0"},{"v":0,"d":"$0"},{"v":0,"d":"$0"},{"v":0,"d":"$0"},null,0,null,null,{"$f":"'2 REPAIR ESTIMATOR'!AD704","v":{"v":0,"d":"$0.00"}},{"$f":"'2 REPAIR ESTIMATOR'!AM704","v":{"v":0,"d":"$0.00"}},{"v":0,"d":"$0.00"},{"$f":"'2 REPAIR ESTIMATOR'!AG704","v":{"v":0,"d":"$0.00"}},{"$f":"'2 REPAIR ESTIMATOR'!AJ704","v":{"v":0,"d":"$0.00"}}]
[null,null,{"$f":"T('2 REPAIR ESTIMATOR'!D705:O705)","v":""},{"$nulls":5},{"$f":"'2 REPAIR ESTIMATOR'!P705","v":0},{"$f":"'2 REPAIR ESTIMATOR'!S705","v":0},{"v":0,"d":"$0"},{"v":0,"d":"$0"},{"v":0,"d":"$0"},{"v":0,"d":"$0"},null,0,null,null,{"$f":"'2 REPAIR ESTIMATOR'!AD705","v":{"v":0,"d":"$0.00"}},{"$f":"'2 REPAIR ESTIMATOR'!AM705","v":{"v":0,"d":"$0.00"}},{"v":0,"d":"$0.00"},{"$f":"'2 REPAIR ESTIMATOR'!AG705","v":{"v":0,"d":"$0.00"}},{"$f":"'2 REPAIR ESTIMATOR'!AJ705","v":{"v":0,"d":"$0.00"}}]
[null,null,{"$f":"T('2 REPAIR ESTIMATOR'!D706:O706)","v":""},{"$nulls":5},{"$f":"'2 REPAIR ESTIMATOR'!P706","v":0},{"$f":"'2 REPAIR ESTIMATOR'!S706","v":0},{"v":0,"d":"$0"},{"v":0,"d":"$0"},{"v":0,"d":"$0"},{"v":0,"d":"$0"},null,{"$f":"I665","v":0},null,null,{"$f":"'2 REPAIR ESTIMATOR'!AD706","v":{"v":0,"d":"$0.00"}},{"$f":"'2 REPAIR ESTIMATOR'!AM706","v":{"v":0,"d":"$0.00"}},{"v":0,"d":"$0.00"},{"$f":"'2 REPAIR ESTIMATOR'!AG706","v":{"v":0,"d":"$0.00"}},{"$f":"'2 REPAIR ESTIMATOR'!AJ706","v":{"v":0,"d":"$0.00"}}]
[null,null,{"$f":"T('2 REPAIR ESTIMATOR'!D707:O707)","v":""},{"$nulls":5},{"$f":"'2 REPAIR ESTIMATOR'!P707","v":0},{"$f":"'2 REPAIR ESTIMATOR'!S707","v":0},{"v":0,"d":"$0"},{"v":0,"d":"$0"},{"v":0,"d":"$0"},{"v":0,"d":"$0"},null,0,null,null,{"$f":"'2 REPAIR ESTIMATOR'!AD707","v":{"v":0,"d":"$0.00"}},{"$f":"'2 REPAIR ESTIMATOR'!AM707","v":{"v":0,"d":"$0.00"}},{"v":0,"d":"$0.00"},{"$f":"'2 REPAIR ESTIMATOR'!AG707","v":{"v":0,"d":"$0.00"}},{"$f":"'2 REPAIR ESTIMATOR'!AJ707","v":{"v":0,"d":"$0.00"}}]
[null,null,{"$f":"T('2 REPAIR ESTIMATOR'!D708:O708)","v":""},{"$nulls":5},{"$f":"'2 REPAIR ESTIMATOR'!P708","v":0},{"$f":"'2 REPAIR ESTIMATOR'!S708","v":0},{"v":0,"d":"$0"},{"v":0,"d":"$0"},{"v":0,"d":"$0"},{"v":0,"d":"$0"},null,0,null,null,{"$f":"'2 REPAIR ESTIMATOR'!AD708","v":{"v":0,"d":"$0.00"}},{"$f":"'2 REPAIR ESTIMATOR'!AM708","v":{"v":0,"d":"$0.00"}},{"v":0,"d":"$0.00"},{"$f":"'2 REPAIR ESTIMATOR'!AG708","v":{"v":0,"d":"$0.00"}},{"$f":"'2 REPAIR ESTIMATOR'!AJ708","v":{"v":0,"d":"$0.00"}}]
[null,null,{"$f":"T('2 REPAIR ESTIMATOR'!D709:O709)","v":""},{"$nulls":5},{"$f":"'2 REPAIR ESTIMATOR'!P709","v":0},{"$f":"'2 REPAIR ESTIMATOR'!S709","v":0},{"v":0,"d":"$0"},{"v":0,"d":"$0"},{"v":0,"d":"$0"},{"v":0,"d":"$0"},null,0,null,null,{"$f":"'2 REPAIR ESTIMATOR'!AD709","v":{"v":0,"d":"$0.00"}},{"$f":"'2 REPAIR ESTIMATOR'!AM709","v":{"v":0,"d":"$0.00"}},{"v":0,"d":"$0.00"},{"$f":"'2 REPAIR ESTIMATOR'!AG709","v":{"v":0,"d":"$0.00"}},{"$f":"'2 REPAIR ESTIMATOR'!AJ709","v":{"v":0,"d":"$0.00"}}]
[null,null,{"$f":"T('2 REPAIR ESTIMATOR'!D710:O710)","v":""},{"$nulls":5},{"$f":"'2 REPAIR ESTIMATOR'!P710","v":0},{"$f":"'2 REPAIR ESTIMATOR'!S710","v":0},{"v":0,"d":"$0"},{"v":0,"d":"$0"},{"v":0,"d":"$0"},{"v":0,"d":"$0"},null,0,null,null,{"$f":"'2 REPAIR ESTIMATOR'!AD710","v":{"v":0,"d":"$0.00"}},{"$f":"'2 REPAIR ESTIMATOR'!AM710","v":{"v":0,"d":"$0.00"}},{"v":0,"d":"$0.00"},{"$f":"'2 REPAIR ESTIMATOR'!AG710","v":{"v":0,"d":"$0.00"}},{"$f":"'2 REPAIR ESTIMATOR'!AJ710","v":{"v":0,"d":"$0.00"}}]
[null,null,{"$f":"T('2 REPAIR ESTIMATOR'!D711:O711)","v":""},{"$nulls":5},{"$f":"'2 REPAIR ESTIMATOR'!P711","v":0},{"$f":"'2 REPAIR ESTIMATOR'!S711","v":0},{"v":0,"d":"$0"},{"v":0,"d":"$0"},{"v":0,"d":"$0"},{"v":0,"d":"$0"},null,0,null,null,{"$f":"'2 REPAIR ESTIMATOR'!AD711","v":{"v":0,"d":"$0.00"}},{"$f":"'2 REPAIR ESTIMATOR'!AM711","v":{"v":0,"d":"$0.00"}},{"v":0,"d":"$0.00"},{"$f":"'2 REPAIR ESTIMATOR'!AG711","v":{"v":0,"d":"$0.00"}},{"$f":"'2 REPAIR ESTIMATOR'!AJ711","v":{"v":0,"d":"$0.00"}}]
[null,null,{"$f":"T('2 REPAIR ESTIMATOR'!D712:O712)","v":""},{"$nulls":5},{"$f":"'2 REPAIR ESTIMATOR'!P712","v":0},{"$f":"'2 REPAIR ESTIMATOR'!S712","v":0},{"v":0,"d":"$0"},{"v":0,"d":"$0"},{"v":0,"d":"$0"},{"v":0,"d":"$0"},null,0,null,null,{"$f":"'2 REPAIR ESTIMATOR'!AD712","v":{"v":0,"d":"$0.00"}},{"$f":"'2 REPAIR ESTIMATOR'!AM712","v":{"v":0,"d":"$0.00"}},{"v":0,"d":"$0.00"},{"$f":"'2 REPAIR ESTIMATOR'!AG712","v":{"v":0,"d":"$0.00"}},{"$f":"'2 REPAIR ESTIMATOR'!AJ712","v":{"v":0,"d":"$0.00"}}]
[null,null,{"$f":"T('2 REPAIR ESTIMATOR'!AC714)","v":"CABINETS & COUNTERTOPS TOTAL"},{"$nulls":7},{"$f":"SUM(K632:K671)","v":{"v":1950,"d":"$1,950"}},{"$f":"SUM(L632:L671)","v":{"v":9496.25,"d":"$9,496"}},{"$f":"SUM(M632:M671)","v":{"v":0,"d":"$0"}},{"$f":"SUM(N632:O671)","v":{"v":11446.25,"d":"$11,446"}},null,{"$f":"SUM(P631:P651)","v":128},null,null,{"$f":"SUM(S632:S671)","v":{"v":1950,"d":"$1,950.00"}},{"$f":"SUM(T632:T671)","v":{"v":0,"d":"$0.00"}},{"$f":"SUM(U632:U671)","v":{"v":1950,"d":"$1,950.00"}},{"$f":"SUM(V632:V671)","v":{"v":9496.25,"d":"$9,496.25"}},{"$f":"SUM(W632:W671)","v":{"v":0,"d":"$0.00"}}]
[{"$nulls":15},{"$f":"P672","v":128}]
[null,null,{"$f":"T('2 REPAIR ESTIMATOR'!D717:O717)","v":"DOORS & TRIM"},{"$nulls":5},{"$f":"SUM(I675:I714)","v":15},{"$nulls":6},15]
[null,null,{"$f":"T('2 REPAIR ESTIMATOR'!D718:O718)","v":"Finish carpentry bid/allowance"},{"$nulls":5},{"$f":"'2 REPAIR ESTIMATOR'!P718","v":0},{"$f":"'2 REPAIR ESTIMATOR'!S718","v":"ls"},{"$f":"IF($N$3=\"subbed\",U675,S675)*$S$70","v":{"v":0,"d":"$0"}},{"$f":"V675*$S$70","v":{"v":0,"d":"$0"}},{"$f":"W675*$S$70","v":{"v":0,"d":"$0"}},{"$f":"SUM(K675:M675)","v":{"v":0,"d":"$0"}},null,0,null,null,{"$f":"'2 REPAIR ESTIMATOR'!AD718","v":{"v":0,"d":"$0.00"}},{"$f":"'2 REPAIR ESTIMATOR'!AM718","v":{"v":0,"d":"$0.00"}},{"$f":"T675+S675","v":{"v":0,"d":"$0.00"}},{"$f":"'2 REPAIR ESTIMATOR'!AG718","v":{"v":0,"d":"$0.00"}},{"$f":"'2 REPAIR ESTIMATOR'!AJ718","v":{"v":0,"d":"$0.00"}}]
[null,null,{"$f":"T('2 REPAIR ESTIMATOR'!D719:O719)","v":"Interior door, prehung, hollow-core door"},{"$nulls":5},{"$f":"'2 REPAIR ESTIMATOR'!P719","v":15},{"$f":"'2 REPAIR ESTIMATOR'!S719","v":"ea"},{"v":1125,"d":"$1,125"},{"$f":"V676*$S$70","v":{"v":1284,"d":"$1,284"}},{"$f":"W676*$S$70","v":{"v":0,"d":"$0"}},{"$f":"SUM(K676:M676)","v":{"v":2409,"d":"$2,409"}},null,15,null,null,{"$f":"'2 REPAIR ESTIMATOR'!AD719","v":{"v":1125,"d":"$1,125.00"}},{"$f":"'2 REPAIR ESTIMATOR'!AM719","v":{"v":0,"d":"$0.00"}},{"$f":"T676+S676","v":{"v":1125,"d":"$1,125.00"}},{"$f":"'2 REPAIR ESTIMATOR'!AG719","v":{"v":1284,"d":"$1,284.00"}},{"$f":"'2 REPAIR ESTIMATOR'!AJ719","v":{"v":0,"d":"$0.00"}}]
[null,null,{"$f":"T('2 REPAIR ESTIMATOR'!D720:O720)","v":"Interior mirrored, sliding, closet doors"},{"$nulls":5},{"$f":"'2 REPAIR ESTIMATOR'!P720","v":0},{"$f":"'2 REPAIR ESTIMATOR'!S720","v":"ea"},{"v":0,"d":"$0"},{"v":0,"d":"$0"},{"v":0,"d":"$0"},{"v":0,"d":"$0"},null,0,null,null,{"$f":"'2 REPAIR ESTIMATOR'!AD720","v":{"v":0,"d":"$0.00"}},{"$f":"'2 REPAIR ESTIMATOR'!AM720","v":{"v":0,"d":"$0.00"}},{"v":0,"d":"$0.00"},{"$f":"'2 REPAIR ESTIMATOR'!AG720","v":{"v":0,"d":"$0.00"}},{"$f":"'2 REPAIR ESTIMATOR'!AJ720","v":{"v":0,"d":"$0.00"}}]
[null,null,{"$f":"T('2 REPAIR ESTIMATOR'!D721:O721)","v":"Interior bi-fold, closet doors"},{"$nulls":5},{"$f":"'2 REPAIR ESTIMATOR'!P721","v":0},{"$f":"'2 REPAIR ESTIMATOR'!S721","v":"ea"},{"v":0,"d":"$0"},{"v":0,"d":"$0"},{"v":0,"d":"$0"},{"v":0,"d":"$0"},null,0,null,null,{"$f":"'2 REPAIR ESTIMATOR'!AD721","v":{"v":0,"d":"$0.00"}},{"$f":"'2 REPAIR ESTIMATOR'!AM721","v":{"v":0,"d":"$0.00"}},{"v":0,"d":"$0.00"},{"$f":"'2 REPAIR ESTIMATOR'!AG721","v":{"v":0,"d":"$0.00"}},{"$f":"'2 REPAIR ESTIMATOR'!AJ721","v":{"v":0,"d":"$0.00"}}]
[null,null,{"$f":"T('2 REPAIR ESTIMATOR'!D722:O722)","v":"Door hardware, knobs only"},{"$nulls":5},{"$f":"'2 REPAIR ESTIMATOR'!P722","v":0},{"$f":"'2 REPAIR ESTIMATOR'!S722","v":"ea"},{"v":0,"d":"$0"},{"v":0,"d":"$0"},{"v":0,"d":"$0"},{"v":0,"d":"$0"},null,0,null,null,{"$f":"'2 REPAIR ESTIMATOR'!AD722","v":{"v":0,"d":"$0.00"}},{"$f":"'2 REPAIR ESTIMATOR'!AM722","v":{"v":0,"d":"$0.00"}},{"v":0,"d":"$0.00"},{"$f":"'2 REPAIR ESTIMATOR'!AG722","v":{"v":0,"d":"$0.00"}},{"$f":"'2 REPAIR ESTIMATOR'!AJ722","v":{"v":0,"d":"$0.00"}}]
[null,null,{"$f":"T('2 REPAIR ESTIMATOR'!D723:O723)","v":"Door casings"},{"$nulls":5},{"$f":"'2 REPAIR ESTIMATOR'!P723","v":0},{"$f":"'2 REPAIR ESTIMATOR'!S723","v":"ea"},{"v":0,"d":"$0"},{"v":0,"d":"$0"},{"v":0,"d":"$0"},{"v":0,"d":"$0"},null,0,null,null,{"$f":"'2 REPAIR ESTIMATOR'!AD723","v":{"v":0,"d":"$0.00"}},{"$f":"'2 REPAIR ESTIMATOR'!AM723","v":{"v":0,"d":"$0.00"}},{"v":0,"d":"$0.00"},{"$f":"'2 REPAIR ESTIMATOR'!AG723","v":{"v":0,"d":"$0.00"}},{"$f":"'2 REPAIR ESTIMATOR'!AJ723","v":{"v":0,"d":"$0.00"}}]
[null,null,{"$f":"T('2 REPAIR ESTIMATOR'!D724:O724)","v":"Window casings"},{"$nulls":5},{"$f":"'2 REPAIR ESTIMATOR'!P724","v":0},{"$f":"'2 REPAIR ESTIMATOR'!S724","v":"ea"},{"v":0,"d":"$0"},{"v":0,"d":"$0"},{"v":0,"d":"$0"},{"v":0,"d":"$0"},null,0,null,null,{"$f":"'2 REPAIR ESTIMATOR'!AD724","v":{"v":0,"d":"$0.00"}},{"$f":"'2 REPAIR ESTIMATOR'!AM724","v":{"v":0,"d":"$0.00"}},{"v":0,"d":"$0.00"},{"$f":"'2 REPAIR ESTIMATOR'!AG724","v":{"v":0,"d":"$0.00"}},{"$f":"'2 REPAIR ESTIMATOR'!AJ724","v":{"v":0,"d":"$0.00"}}]
[null,null,{"$f":"T('2 REPAIR ESTIMATOR'!D725:O725)","v":"Window sills"},{"$nulls":5},{"$f":"'2 REPAIR ESTIMATOR'!P725","v":0},{"$f":"'2 REPAIR ESTIMATOR'!S725","v":"lf"},{"v":0,"d":"$0"},{"v":0,"d":"$0"},{"v":0,"d":"$0"},{"v":0,"d":"$0"},null,0,null,null,{"$f":"'2 REPAIR ESTIMATOR'!AD725","v":{"v":0,"d":"$0.00"}},{"$f":"'2 REPAIR ESTIMATOR'!AM725","v":{"v":0,"d":"$0.00"}},{"v":0,"d":"$0.00"},{"$f":"'2 REPAIR ESTIMATOR'!AG725","v":{"v":0,"d":"$0.00"}},{"$f":"'2 REPAIR ESTIMATOR'!AJ725","v":{"v":0,"d":"$0.00"}}]
[null,null,{"$f":"T('2 REPAIR ESTIMATOR'!D726:O726)","v":"Wood  base"},{"$nulls":5},{"$f":"'2 REPAIR ESTIMATOR'!P726","v":0},{"$f":"'2 REPAIR ESTIMATOR'!S726","v":"lf"},{"v":0,"d":"$0"},{"v":0,"d":"$0"},{"v":0,"d":"$0"},{"v":0,"d":"$0"},null,0,null,null,{"$f":"'2 REPAIR ESTIMATOR'!AD726","v":{"v":0,"d":"$0.00"}},{"$f":"'2 REPAIR ESTIMATOR'!AM726","v":{"v":0,"d":"$0.00"}},{"v":0,"d":"$0.00"},{"$f":"'2 REPAIR ESTIMATOR'!AG726","v":{"v":0,"d":"$0.00"}},{"$f":"'2 REPAIR ESTIMATOR'!AJ726","v":{"v":0,"d":"$0.00"}}]
[null,null,{"$f":"T('2 REPAIR ESTIMATOR'!D727:O727)","v":"Crown molding"},{"$nulls":5},{"$f":"'2 REPAIR ESTIMATOR'!P727","v":0},{"$f":"'2 REPAIR ESTIMATOR'!S727","v":"lf"},{"v":0,"d":"$0"},{"v":0,"d":"$0"},{"v":0,"d":"$0"},{"v":0,"d":"$0"},null,0,null,null,{"$f":"'2 REPAIR ESTIMATOR'!AD727","v":{"v":0,"d":"$0.00"}},{"$f":"'2 REPAIR ESTIMATOR'!AM727","v":{"v":0,"d":"$0.00"}},{"v":0,"d":"$0.00"},{"$f":"'2 REPAIR ESTIMATOR'!AG727","v":{"v":0,"d":"$0.00"}},{"$f":"'2 REPAIR ESTIMATOR'!AJ727","v":{"v":0,"d":"$0.00"}}]
[null,null,{"$f":"T('2 REPAIR ESTIMATOR'!D728:O728)","v":"Raised panel wood wainscoting"},{"$nulls":5},{"$f":"'2 REPAIR ESTIMATOR'!P728","v":0},{"$f":"'2 REPAIR ESTIMATOR'!S728","v":"lf"},{"v":0,"d":"$0"},{"v":0,"d":"$0"},{"v":0,"d":"$0"},{"v":0,"d":"$0"},null,0,null,null,{"$f":"'2 REPAIR ESTIMATOR'!AD728","v":{"v":0,"d":"$0.00"}},{"$f":"'2 REPAIR ESTIMATOR'!AM728","v":{"v":0,"d":"$0.00"}},{"v":0,"d":"$0.00"},{"$f":"'2 REPAIR ESTIMATOR'!AG728","v":{"v":0,"d":"$0.00"}},{"$f":"'2 REPAIR ESTIMATOR'!AJ728","v":{"v":0,"d":"$0.00"}}]
[null,null,{"$f":"T('2 REPAIR ESTIMATOR'!D729:O729)","v":"Bead board wainscoting"},{"$nulls":5},{"$f":"'2 REPAIR ESTIMATOR'!P729","v":0},{"$f":"'2 REPAIR ESTIMATOR'!S729","v":"lf"},{"v":0,"d":"$0"},{"v":0,"d":"$0"},{"v":0,"d":"$0"},{"v":0,"d":"$0"},null,0,null,null,{"$f":"'2 REPAIR ESTIMATOR'!AD729","v":{"v":0,"d":"$0.00"}},{"$f":"'2 REPAIR ESTIMATOR'!AM729","v":{"v":0,"d":"$0.00"}},{"v":0,"d":"$0.00"},{"$f":"'2 REPAIR ESTIMATOR'!AG729","v":{"v":0,"d":"$0.00"}},{"$f":"'2 REPAIR ESTIMATOR'!AJ729","v":{"v":0,"d":"$0.00"}}]
[null,null,{"$f":"T('2 REPAIR ESTIMATOR'!D730:O730)","v":"Fireplace mantel"},{"$nulls":5},{"$f":"'2 REPAIR ESTIMATOR'!P730","v":0},{"$f":"'2 REPAIR ESTIMATOR'!S730","v":"ea"},{"v":0,"d":"$0"},{"v":0,"d":"$0"},{"v":0,"d":"$0"},{"v":0,"d":"$0"},null,0,null,null,{"$f":"'2 REPAIR ESTIMATOR'!AD730","v":{"v":0,"d":"$0.00"}},{"$f":"'2 REPAIR ESTIMATOR'!AM730","v":{"v":0,"d":"$0.00"}},{"v":0,"d":"$0.00"},{"$f":"'2 REPAIR ESTIMATOR'!AG730","v":{"v":0,"d":"$0.00"}},{"$f":"'2 REPAIR ESTIMATOR'!AJ730","v":{"v":0,"d":"$0.00"}}]
[null,null,{"$f":"T('2 REPAIR ESTIMATOR'!D731:O731)","v":"Wood columns"},{"$nulls":5},{"$f":"'2 REPAIR ESTIMATOR'!P731","v":0},{"$f":"'2 REPAIR ESTIMATOR'!S731","v":"ea"},{"v":0,"d":"$0"},{"v":0,"d":"$0"},{"v":0,"d":"$0"},{"v":0,"d":"$0"},null,0,null,null,{"$f":"'2 REPAIR ESTIMATOR'!AD731","v":{"v":0,"d":"$0.00"}},{"$f":"'2 REPAIR ESTIMATOR'!AM731","v":{"v":0,"d":"$0.00"}},{"v":0,"d":"$0.00"},{"$f":"'2 REPAIR ESTIMATOR'!AG731","v":{"v":0,"d":"$0.00"}},{"$f":"'2 REPAIR ESTIMATOR'!AJ731","v":{"v":0,"d":"$0.00"}}]
[null,null,{"$f":"T('2 REPAIR ESTIMATOR'!D732:O732)","v":"Closet shelf and rod"},{"$nulls":5},{"$f":"'2 REPAIR ESTIMATOR'!P732","v":0},{"$f":"'2 REPAIR ESTIMATOR'!S732","v":"lf"},{"v":0,"d":"$0"},{"v":0,"d":"$0"},{"v":0,"d":"$0"},{"v":0,"d":"$0"},null,0,null,null,{"$f":"'2 REPAIR ESTIMATOR'!AD732","v":{"v":0,"d":"$0.00"}},{"$f":"'2 REPAIR ESTIMATOR'!AM732","v":{"v":0,"d":"$0.00"}},{"v":0,"d":"$0.00"},{"$f":"'2 REPAIR ESTIMATOR'!AG732","v":{"v":0,"d":"$0.00"}},{"$f":"'2 REPAIR ESTIMATOR'!AJ732","v":{"v":0,"d":"$0.00"}}]
[null,null,{"$f":"T('2 REPAIR ESTIMATOR'!D733:O733)","v":"Closet kit, 8ft long"},{"$nulls":5},{"$f":"'2 REPAIR ESTIMATOR'!P733","v":0},{"$f":"'2 REPAIR ESTIMATOR'!S733","v":"lf"},{"v":0,"d":"$0"},{"v":0,"d":"$0"},{"v":0,"d":"$0"},{"v":0,"d":"$0"},null,0,null,null,{"$f":"'2 REPAIR ESTIMATOR'!AD733","v":{"v":0,"d":"$0.00"}},{"$f":"'2 REPAIR ESTIMATOR'!AM733","v":{"v":0,"d":"$0.00"}},{"v":0,"d":"$0.00"},{"$f":"'2 REPAIR ESTIMATOR'!AG733","v":{"v":0,"d":"$0.00"}},{"$f":"'2 REPAIR ESTIMATOR'!AJ733","v":{"v":0,"d":"$0.00"}}]
[null,null,{"$f":"T('2 REPAIR ESTIMATOR'!D734:O734)","v":"Wood handrail - rail only"},{"$nulls":5},{"$f":"'2 REPAIR ESTIMATOR'!P734","v":0},{"$f":"'2 REPAIR ESTIMATOR'!S734","v":"lf"},{"v":0,"d":"$0"},{"v":0,"d":"$0"},{"v":0,"d":"$0"},{"v":0,"d":"$0"},null,0,null,null,{"$f":"'2 REPAIR ESTIMATOR'!AD734","v":{"v":0,"d":"$0.00"}},{"$f":"'2 REPAIR ESTIMATOR'!AM734","v":{"v":0,"d":"$0.00"}},{"v":0,"d":"$0.00"},{"$f":"'2 REPAIR ESTIMATOR'!AG734","v":{"v":0,"d":"$0.00"}},{"$f":"'2 REPAIR ESTIMATOR'!AJ734","v":{"v":0,"d":"$0.00"}}]
[null,null,{"$f":"T('2 REPAIR ESTIMATOR'!D735:O735)","v":"Wood balusters"},{"$nulls":5},{"$f":"'2 REPAIR ESTIMATOR'!P735","v":0},{"$f":"'2 REPAIR ESTIMATOR'!S735","v":"lf"},{"v":0,"d":"$0"},{"v":0,"d":"$0"},{"v":0,"d":"$0"},{"v":0,"d":"$0"},null,0,null,null,{"$f":"'2 REPAIR ESTIMATOR'!AD735","v":{"v":0,"d":"$0.00"}},{"$f":"'2 REPAIR ESTIMATOR'!AM735","v":{"v":0,"d":"$0.00"}},{"v":0,"d":"$0.00"},{"$f":"'2 REPAIR ESTIMATOR'!AG735","v":{"v":0,"d":"$0.00"}},{"$f":"'2 REPAIR ESTIMATOR'!AJ735","v":{"v":0,"d":"$0.00"}}]
[null,null,{"$f":"T('2 REPAIR ESTIMATOR'!D736:O736)","v":"Iron balusters"},{"$nulls":5},{"$f":"'2 REPAIR ESTIMATOR'!P736","v":0},{"$f":"'2 REPAIR ESTIMATOR'!S736","v":"lf"},{"v":0,"d":"$0"},{"v":0,"d":"$0"},{"v":0,"d":"$0"},{"v":0,"d":"$0"},null,0,null,null,{"$f":"'2 REPAIR ESTIMATOR'!AD736","v":{"v":0,"d":"$0.00"}},{"$f":"'2 REPAIR ESTIMATOR'!AM736","v":{"v":0,"d":"$0.00"}},{"v":0,"d":"$0.00"},{"$f":"'2 REPAIR ESTIMATOR'!AG736","v":{"v":0,"d":"$0.00"}},{"$f":"'2 REPAIR ESTIMATOR'!AJ736","v":{"v":0,"d":"$0.00"}}]
[null,null,{"$f":"T('2 REPAIR ESTIMATOR'!D737:O737)","v":""},{"$nulls":5},{"$f":"'2 REPAIR ESTIMATOR'!P737","v":0},{"$f":"'2 REPAIR ESTIMATOR'!S737","v":0},{"v":0,"d":"$0"},{"v":0,"d":"$0"},{"v":0,"d":"$0"},{"v":0,"d":"$0"},null,0,null,null,{"$f":"'2 REPAIR ESTIMATOR'!AD737","v":{"v":0,"d":"$0.00"}},{"$f":"'2 REPAIR ESTIMATOR'!AM737","v":{"v":0,"d":"$0.00"}},{"v":0,"d":"$0.00"},{"$f":"'2 REPAIR ESTIMATOR'!AG737","v":{"v":0,"d":"$0.00"}},{"$f":"'2 REPAIR ESTIMATOR'!AJ737","v":{"v":0,"d":"$0.00"}}]
[null,null,{"$f":"T('2 REPAIR ESTIMATOR'!D738:O738)","v":""},{"$nulls":5},{"$f":"'2 REPAIR ESTIMATOR'!P738","v":0},{"$f":"'2 REPAIR ESTIMATOR'!S738","v":0},{"v":0,"d":"$0"},{"v":0,"d":"$0"},{"v":0,"d":"$0"},{"v":0,"d":"$0"},null,{"$f":"I695","v":0},null,null,{"$f":"'2 REPAIR ESTIMATOR'!AD738","v":{"v":0,"d":"$0.00"}},{"$f":"'2 REPAIR ESTIMATOR'!AM738","v":{"v":0,"d":"$0.00"}},{"v":0,"d":"$0.00"},{"$f":"'2 REPAIR ESTIMATOR'!AG738","v":{"v":0,"d":"$0.00"}},{"$f":"'2 REPAIR ESTIMATOR'!AJ738","v":{"v":0,"d":"$0.00"}}]
[null,null,{"$f":"T('2 REPAIR ESTIMATOR'!D739:O739)","v":""},{"$nulls":5},{"$f":"'2 REPAIR ESTIMATOR'!P739","v":0},{"$f":"'2 REPAIR ESTIMATOR'!S739","v":0},{"v":0,"d":"$0"},{"v":0,"d":"$0"},{"v":0,"d":"$0"},{"v":0,"d":"$0"},null,0,null,null,{"$f":"'2 REPAIR ESTIMATOR'!AD739","v":{"v":0,"d":"$0.00"}},{"$f":"'2 REPAIR ESTIMATOR'!AM739","v":{"v":0,"d":"$0.00"}},{"v":0,"d":"$0.00"},{"$f":"'2 REPAIR ESTIMATOR'!AG739","v":{"v":0,"d":"$0.00"}},{"$f":"'2 REPAIR ESTIMATOR'!AJ739","v":{"v":0,"d":"$0.00"}}]
[null,null,{"$f":"T('2 REPAIR ESTIMATOR'!D740:O740)","v":""},{"$nulls":5},{"$f":"'2 REPAIR ESTIMATOR'!P740","v":0},{"$f":"'2 REPAIR ESTIMATOR'!S740","v":0},{"v":0,"d":"$0"},{"v":0,"d":"$0"},{"v":0,"d":"$0"},{"v":0,"d":"$0"},null,0,null,null,{"$f":"'2 REPAIR ESTIMATOR'!AD740","v":{"v":0,"d":"$0.00"}},{"$f":"'2 REPAIR ESTIMATOR'!AM740","v":{"v":0,"d":"$0.00"}},{"v":0,"d":"$0.00"},{"$f":"'2 REPAIR ESTIMATOR'!AG740","v":{"v":0,"d":"$0.00"}},{"$f":"'2 REPAIR ESTIMATOR'!AJ740","v":{"v":0,"d":"$0.00"}}]
[null,null,{"$f":"T('2 REPAIR ESTIMATOR'!D741:O741)","v":""},{"$nulls":5},{"$f":"'2 REPAIR ESTIMATOR'!P741","v":0},{"$f":"'2 REPAIR ESTIMATOR'!S741","v":0},{"v":0,"d":"$0"},{"v":0,"d":"$0"},{"v":0,"d":"$0"},{"v":0,"d":"$0"},null,0,null,null,{"$f":"'2 REPAIR ESTIMATOR'!AD741","v":{"v":0,"d":"$0.00"}},{"$f":"'2 REPAIR ESTIMATOR'!AM741","v":{"v":0,"d":"$0.00"}},{"v":0,"d":"$0.00"},{"$f":"'2 REPAIR ESTIMATOR'!AG741","v":{"v":0,"d":"$0.00"}},{"$f":"'2 REPAIR ESTIMATOR'!AJ741","v":{"v":0,"d":"$0.00"}}]
[null,null,{"$f":"T('2 REPAIR ESTIMATOR'!D742:O742)","v":""},{"$nulls":5},{"$f":"'2 REPAIR ESTIMATOR'!P742","v":0},{"$f":"'2 REPAIR ESTIMATOR'!S742","v":0},{"v":0,"d":"$0"},{"v":0,"d":"$0"},{"v":0,"d":"$0"},{"v":0,"d":"$0"},null,0,null,null,{"$f":"'2 REPAIR ESTIMATOR'!AD742","v":{"v":0,"d":"$0.00"}},{"$f":"'2 REPAIR ESTIMATOR'!AM742","v":{"v":0,"d":"$0.00"}},{"v":0,"d":"$0.00"},{"$f":"'2 REPAIR ESTIMATOR'!AG742","v":{"v":0,"d":"$0.00"}},{"$f":"'2 REPAIR ESTIMATOR'!AJ742","v":{"v":0,"d":"$0.00"}}]
[null,null,{"$f":"T('2 REPAIR ESTIMATOR'!D743:O743)","v":""},{"$nulls":5},{"$f":"'2 REPAIR ESTIMATOR'!P743","v":0},{"$f":"'2 REPAIR ESTIMATOR'!S743","v":0},{"v":0,"d":"$0"},{"v":0,"d":"$0"},{"v":0,"d":"$0"},{"v":0,"d":"$0"},null,0,null,null,{"$f":"'2 REPAIR ESTIMATOR'!AD743","v":{"v":0,"d":"$0.00"}},{"$f":"'2 REPAIR ESTIMATOR'!AM743","v":{"v":0,"d":"$0.00"}},{"v":0,"d":"$0.00"},{"$f":"'2 REPAIR ESTIMATOR'!AG743","v":{"v":0,"d":"$0.00"}},{"$f":"'2 REPAIR ESTIMATOR'!AJ743","v":{"v":0,"d":"$0.00"}}]
[null,null,{"$f":"T('2 REPAIR ESTIMATOR'!D744:O744)","v":""},{"$nulls":5},{"$f":"'2 REPAIR ESTIMATOR'!P744","v":0},{"$f":"'2 REPAIR ESTIMATOR'!S744","v":0},{"v":0,"d":"$0"},{"v":0,"d":"$0"},{"v":0,"d":"$0"},{"v":0,"d":"$0"},null,0,null,null,{"$f":"'2 REPAIR ESTIMATOR'!AD744","v":{"v":0,"d":"$0.00"}},{"$f":"'2 REPAIR ESTIMATOR'!AM744","v":{"v":0,"d":"$0.00"}},{"v":0,"d":"$0.00"},{"$f":"'2 REPAIR ESTIMATOR'!AG744","v":{"v":0,"d":"$0.00"}},{"$f":"'2 REPAIR ESTIMATOR'!AJ744","v":{"v":0,"d":"$0.00"}}]
[null,null,{"$f":"T('2 REPAIR ESTIMATOR'!D745:O745)","v":""},{"$nulls":5},{"$f":"'2 REPAIR ESTIMATOR'!P745","v":0},{"$f":"'2 REPAIR ESTIMATOR'!S745","v":0},{"v":0,"d":"$0"},{"v":0,"d":"$0"},{"v":0,"d":"$0"},{"v":0,"d":"$0"},null,0,null,null,{"$f":"'2 REPAIR ESTIMATOR'!AD745","v":{"v":0,"d":"$0.00"}},{"$f":"'2 REPAIR ESTIMATOR'!AM745","v":{"v":0,"d":"$0.00"}},{"v":0,"d":"$0.00"},{"$f":"'2 REPAIR ESTIMATOR'!AG745","v":{"v":0,"d":"$0.00"}},{"$f":"'2 REPAIR ESTIMATOR'!AJ745","v":{"v":0,"d":"$0.00"}}]
[null,null,{"$f":"T('2 REPAIR ESTIMATOR'!D746:O746)","v":""},{"$nulls":5},{"$f":"'2 REPAIR ESTIMATOR'!P746","v":0},{"$f":"'2 REPAIR ESTIMATOR'!S746","v":0},{"v":0,"d":"$0"},{"v":0,"d":"$0"},{"v":0,"d":"$0"},{"v":0,"d":"$0"},null,0,null,null,{"$f":"'2 REPAIR ESTIMATOR'!AD746","v":{"v":0,"d":"$0.00"}},{"$f":"'2 REPAIR ESTIMATOR'!AM746","v":{"v":0,"d":"$0.00"}},{"v":0,"d":"$0.00"},{"$f":"'2 REPAIR ESTIMATOR'!AG746","v":{"v":0,"d":"$0.00"}},{"$f":"'2 REPAIR ESTIMATOR'!AJ746","v":{"v":0,"d":"$0.00"}}]
[null,null,{"$f":"T('2 REPAIR ESTIMATOR'!D747:O747)","v":""},{"$nulls":5},{"$f":"'2 REPAIR ESTIMATOR'!P747","v":0},{"$f":"'2 REPAIR ESTIMATOR'!S747","v":0},{"v":0,"d":"$0"},{"v":0,"d":"$0"},{"v":0,"d":"$0"},{"v":0,"d":"$0"},null,0,null,null,{"$f":"'2 REPAIR ESTIMATOR'!AD747","v":{"v":0,"d":"$0.00"}},{"$f":"'2 REPAIR ESTIMATOR'!AM747","v":{"v":0,"d":"$0.00"}},{"v":0,"d":"$0.00"},{"$f":"'2 REPAIR ESTIMATOR'!AG747","v":{"v":0,"d":"$0.00"}},{"$f":"'2 REPAIR ESTIMATOR'!AJ747","v":{"v":0,"d":"$0.00"}}]
[null,null,{"$f":"T('2 REPAIR ESTIMATOR'!D748:O748)","v":""},{"$nulls":5},{"$f":"'2 REPAIR ESTIMATOR'!P748","v":0},{"$f":"'2 REPAIR ESTIMATOR'!S748","v":0},{"v":0,"d":"$0"},{"v":0,"d":"$0"},{"v":0,"d":"$0"},{"v":0,"d":"$0"},null,0,null,null,{"$f":"'2 REPAIR ESTIMATOR'!AD748","v":{"v":0,"d":"$0.00"}},{"$f":"'2 REPAIR ESTIMATOR'!AM748","v":{"v":0,"d":"$0.00"}},{"v":0,"d":"$0.00"},{"$f":"'2 REPAIR ESTIMATOR'!AG748","v":{"v":0,"d":"$0.00"}},{"$f":"'2 REPAIR ESTIMATOR'!AJ748","v":{"v":0,"d":"$0.00"}}]
[null,null,{"$f":"T('2 REPAIR ESTIMATOR'!D749:O749)","v":""},{"$nulls":5},{"$f":"'2 REPAIR ESTIMATOR'!P749","v":0},{"$f":"'2 REPAIR ESTIMATOR'!S749","v":0},{"v":0,"d":"$0"},{"v":0,"d":"$0"},{"v":0,"d":"$0"},{"v":0,"d":"$0"},null,0,null,null,{"$f":"'2 REPAIR ESTIMATOR'!AD749","v":{"v":0,"d":"$0.00"}},{"$f":"'2 REPAIR ESTIMATOR'!AM749","v":{"v":0,"d":"$0.00"}},{"v":0,"d":"$0.00"},{"$f":"'2 REPAIR ESTIMATOR'!AG749","v":{"v":0,"d":"$0.00"}},{"$f":"'2 REPAIR ESTIMATOR'!AJ749","v":{"v":0,"d":"$0.00"}}]
[null,null,{"$f":"T('2 REPAIR ESTIMATOR'!D750:O750)","v":""},{"$nulls":5},{"$f":"'2 REPAIR ESTIMATOR'!P750","v":0},{"$f":"'2 REPAIR ESTIMATOR'!S750","v":0},{"v":0,"d":"$0"},{"v":0,"d":"$0"},{"v":0,"d":"$0"},{"v":0,"d":"$0"},null,0,null,null,{"$f":"'2 REPAIR ESTIMATOR'!AD750","v":{"v":0,"d":"$0.00"}},{"$f":"'2 REPAIR ESTIMATOR'!AM750","v":{"v":0,"d":"$0.00"}},{"v":0,"d":"$0.00"},{"$f":"'2 REPAIR ESTIMATOR'!AG750","v":{"v":0,"d":"$0.00"}},{"$f":"'2 REPAIR ESTIMATOR'!AJ750","v":{"v":0,"d":"$0.00"}}]
[null,null,{"$f":"T('2 REPAIR ESTIMATOR'!D751:O751)","v":""},{"$nulls":5},{"$f":"'2 REPAIR ESTIMATOR'!P751","v":0},{"$f":"'2 REPAIR ESTIMATOR'!S751","v":0},{"v":0,"d":"$0"},{"v":0,"d":"$0"},{"v":0,"d":"$0"},{"v":0,"d":"$0"},null,0,null,null,{"$f":"'2 REPAIR ESTIMATOR'!AD751","v":{"v":0,"d":"$0.00"}},{"$f":"'2 REPAIR ESTIMATOR'!AM751","v":{"v":0,"d":"$0.00"}},{"v":0,"d":"$0.00"},{"$f":"'2 REPAIR ESTIMATOR'!AG751","v":{"v":0,"d":"$0.00"}},{"$f":"'2 REPAIR ESTIMATOR'!AJ751","v":{"v":0,"d":"$0.00"}}]
[null,null,{"$f":"T('2 REPAIR ESTIMATOR'!D752:O752)","v":""},{"$nulls":5},{"$f":"'2 REPAIR ESTIMATOR'!P752","v":0},{"$f":"'2 REPAIR ESTIMATOR'!S752","v":0},{"v":0,"d":"$0"},{"v":0,"d":"$0"},{"v":0,"d":"$0"},{"v":0,"d":"$0"},null,0,null,null,{"$f":"'2 REPAIR ESTIMATOR'!AD752","v":{"v":0,"d":"$0.00"}},{"$f":"'2 REPAIR ESTIMATOR'!AM752","v":{"v":0,"d":"$0.00"}},{"v":0,"d":"$0.00"},{"$f":"'2 REPAIR ESTIMATOR'!AG752","v":{"v":0,"d":"$0.00"}},{"$f":"'2 REPAIR ESTIMATOR'!AJ752","v":{"v":0,"d":"$0.00"}}]
[null,null,{"$f":"T('2 REPAIR ESTIMATOR'!D753:O753)","v":""},{"$nulls":5},{"$f":"'2 REPAIR ESTIMATOR'!P753","v":0},{"$f":"'2 REPAIR ESTIMATOR'!S753","v":0},{"v":0,"d":"$0"},{"v":0,"d":"$0"},{"v":0,"d":"$0"},{"v":0,"d":"$0"},null,0,null,null,{"$f":"'2 REPAIR ESTIMATOR'!AD753","v":{"v":0,"d":"$0.00"}},{"$f":"'2 REPAIR ESTIMATOR'!AM753","v":{"v":0,"d":"$0.00"}},{"v":0,"d":"$0.00"},{"$f":"'2 REPAIR ESTIMATOR'!AG753","v":{"v":0,"d":"$0.00"}},{"$f":"'2 REPAIR ESTIMATOR'!AJ753","v":{"v":0,"d":"$0.00"}}]
[null,null,{"$f":"T('2 REPAIR ESTIMATOR'!D754:O754)","v":""},{"$nulls":5},{"$f":"'2 REPAIR ESTIMATOR'!P754","v":0},{"$f":"'2 REPAIR ESTIMATOR'!S754","v":0},{"v":0,"d":"$0"},{"v":0,"d":"$0"},{"v":0,"d":"$0"},{"v":0,"d":"$0"},null,0,null,null,{"$f":"'2 REPAIR ESTIMATOR'!AD754","v":{"v":0,"d":"$0.00"}},{"$f":"'2 REPAIR ESTIMATOR'!AM754","v":{"v":0,"d":"$0.00"}},{"v":0,"d":"$0.00"},{"$f":"'2 REPAIR ESTIMATOR'!AG754","v":{"v":0,"d":"$0.00"}},{"$f":"'2 REPAIR ESTIMATOR'!AJ754","v":{"v":0,"d":"$0.00"}}]
[null,null,{"$f":"T('2 REPAIR ESTIMATOR'!D755:O755)","v":""},{"$nulls":5},{"$f":"'2 REPAIR ESTIMATOR'!P755","v":0},{"$f":"'2 REPAIR ESTIMATOR'!S755","v":0},{"v":0,"d":"$0"},{"v":0,"d":"$0"},{"v":0,"d":"$0"},{"v":0,"d":"$0"},null,0,null,null,{"$f":"'2 REPAIR ESTIMATOR'!AD755","v":{"v":0,"d":"$0.00"}},{"$f":"'2 REPAIR ESTIMATOR'!AM755","v":{"v":0,"d":"$0.00"}},{"v":0,"d":"$0.00"},{"$f":"'2 REPAIR ESTIMATOR'!AG755","v":{"v":0,"d":"$0.00"}},{"$f":"'2 REPAIR ESTIMATOR'!AJ755","v":{"v":0,"d":"$0.00"}}]
[null,null,{"$f":"T('2 REPAIR ESTIMATOR'!D756:O756)","v":""},{"$nulls":5},{"$f":"'2 REPAIR ESTIMATOR'!P756","v":0},{"$f":"'2 REPAIR ESTIMATOR'!S756","v":0},{"v":0,"d":"$0"},{"v":0,"d":"$0"},{"v":0,"d":"$0"},{"v":0,"d":"$0"},null,0,null,null,{"$f":"'2 REPAIR ESTIMATOR'!AD756","v":{"v":0,"d":"$0.00"}},{"$f":"'2 REPAIR ESTIMATOR'!AM756","v":{"v":0,"d":"$0.00"}},{"v":0,"d":"$0.00"},{"$f":"'2 REPAIR ESTIMATOR'!AG756","v":{"v":0,"d":"$0.00"}},{"$f":"'2 REPAIR ESTIMATOR'!AJ756","v":{"v":0,"d":"$0.00"}}]
[null,null,{"$f":"T('2 REPAIR ESTIMATOR'!D757:O757)","v":""},{"$nulls":5},{"$f":"'2 REPAIR ESTIMATOR'!P757","v":0},{"$f":"'2 REPAIR ESTIMATOR'!S757","v":0},{"v":0,"d":"$0"},{"v":0,"d":"$0"},{"v":0,"d":"$0"},{"v":0,"d":"$0"},null,0,null,null,{"$f":"'2 REPAIR ESTIMATOR'!AD757","v":{"v":0,"d":"$0.00"}},{"$f":"'2 REPAIR ESTIMATOR'!AM757","v":{"v":0,"d":"$0.00"}},{"v":0,"d":"$0.00"},{"$f":"'2 REPAIR ESTIMATOR'!AG757","v":{"v":0,"d":"$0.00"}},{"$f":"'2 REPAIR ESTIMATOR'!AJ757","v":{"v":0,"d":"$0.00"}}]
[null,null,{"$f":"T('2 REPAIR ESTIMATOR'!AC759)","v":"DOORS & TRIM TOTAL"},{"$nulls":7},{"$f":"SUM(K675:K714)","v":{"v":1125,"d":"$1,125"}},{"$f":"SUM(L675:L714)","v":{"v":1284,"d":"$1,284"}},{"$f":"SUM(M675:M714)","v":{"v":0,"d":"$0"}},{"$f":"SUM(N675:O714)","v":{"v":2409,"d":"$2,409"}},null,{"$f":"SUM(P674:P693)","v":30},null,null,{"$f":"SUM(S675:S714)","v":{"v":1125,"d":"$1,125.00"}},{"$f":"SUM(T675:T714)","v":{"v":0,"d":"$0.00"}},{"$f":"SUM(U675:U714)","v":{"v":1125,"d":"$1,125.00"}},{"$f":"SUM(V675:V714)","v":{"v":1284,"d":"$1,284.00"}},{"$f":"SUM(W675:W714)","v":{"v":0,"d":"$0.00"}}]
[{"$nulls":15},{"$f":"P715","v":30}]
[null,null,{"$f":"T('2 REPAIR ESTIMATOR'!D762:O762)","v":"CARPET & RESILIENT"},{"$nulls":5},{"$f":"SUM(I718:I757)","v":{"v":1200,"d":"1,200"}},{"$nulls":6},1200]
[null,null,{"$f":"T('2 REPAIR ESTIMATOR'!D763:O763)","v":"Carpeting & Resilient bid/allowance"},{"$nulls":5},{"$f":"'2 REPAIR ESTIMATOR'!P763","v":0},{"$f":"'2 REPAIR ESTIMATOR'!S763","v":"ls"},{"$f":"IF($N$3=\"subbed\",U718,S718)*$S$70","v":{"v":0,"d":"$0"}},{"$f":"V718*$S$70","v":{"v":0,"d":"$0"}},{"$f":"W718*$S$70","v":{"v":0,"d":"$0"}},{"$f":"SUM(K718:M718)","v":{"v":0,"d":"$0"}},null,0,null,null,{"$f":"'2 REPAIR ESTIMATOR'!AD763","v":{"v":0,"d":"$0.00"}},{"$f":"'2 REPAIR ESTIMATOR'!AM763","v":{"v":0,"d":"$0.00"}},{"$f":"T718+S718","v":{"v":0,"d":"$0.00"}},{"$f":"'2 REPAIR ESTIMATOR'!AG763","v":{"v":0,"d":"$0.00"}},{"$f":"'2 REPAIR ESTIMATOR'!AJ763","v":{"v":0,"d":"$0.00"}}]
[null,null,{"$f":"T('2 REPAIR ESTIMATOR'!D764:O764)","v":"Carpeting"},{"$nulls":5},{"$f":"'2 REPAIR ESTIMATOR'!P764","v":0},{"$f":"'2 REPAIR ESTIMATOR'!S764","v":0},{"v":0,"d":"$0"},{"$f":"V719*$S$70","v":{"v":0,"d":"$0"}},{"$f":"W719*$S$70","v":{"v":0,"d":"$0"}},{"$f":"SUM(K719:M719)","v":{"v":0,"d":"$0"}},null,0,null,null,{"$f":"'2 REPAIR ESTIMATOR'!AD764","v":{"v":0,"d":"$0.00"}},{"$f":"'2 REPAIR ESTIMATOR'!AM764","v":{"v":0,"d":"$0.00"}},{"$f":"T719+S719","v":{"v":0,"d":"$0.00"}},{"$f":"'2 REPAIR ESTIMATOR'!AG764","v":{"v":0,"d":"$0.00"}},{"$f":"'2 REPAIR ESTIMATOR'!AJ764","v":{"v":0,"d":"$0.00"}}]
[null,null,{"$f":"T('2 REPAIR ESTIMATOR'!D765:O765)","v":"Carpet, economy grade"},{"$nulls":5},{"$f":"'2 REPAIR ESTIMATOR'!P765","v":{"v":1200,"d":"1,200"}},{"$f":"'2 REPAIR ESTIMATOR'!S765","v":"sf"},{"v":900,"d":"$900"},{"v":1605,"d":"$1,605"},{"v":0,"d":"$0"},{"v":2505,"d":"$2,505"},null,1200,null,null,{"$f":"'2 REPAIR ESTIMATOR'!AD765","v":{"v":900,"d":"$900.00"}},{"$f":"'2 REPAIR ESTIMATOR'!AM765","v":{"v":0,"d":"$0.00"}},{"v":900,"d":"$900.00"},{"$f":"'2 REPAIR ESTIMATOR'!AG765","v":{"v":1605,"d":"$1,605.00"}},{"$f":"'2 REPAIR ESTIMATOR'!AJ765","v":{"v":0,"d":"$0.00"}}]
[null,null,{"$f":"T('2 REPAIR ESTIMATOR'!D766:O766)","v":"Carpet average grade"},{"$nulls":5},{"$f":"'2 REPAIR ESTIMATOR'!P766","v":0},{"$f":"'2 REPAIR ESTIMATOR'!S766","v":"sf"},{"v":0,"d":"$0"},{"v":0,"d":"$0"},{"v":0,"d":"$0"},{"v":0,"d":"$0"},null,0,null,null,{"$f":"'2 REPAIR ESTIMATOR'!AD766","v":{"v":0,"d":"$0.00"}},{"$f":"'2 REPAIR ESTIMATOR'!AM766","v":{"v":0,"d":"$0.00"}},{"v":0,"d":"$0.00"},{"$f":"'2 REPAIR ESTIMATOR'!AG766","v":{"v":0,"d":"$0.00"}},{"$f":"'2 REPAIR ESTIMATOR'!AJ766","v":{"v":0,"d":"$0.00"}}]
[null,null,{"$f":"T('2 REPAIR ESTIMATOR'!D767:O767)","v":"Carpet, premium grade"},{"$nulls":5},{"$f":"'2 REPAIR ESTIMATOR'!P767","v":0},{"$f":"'2 REPAIR ESTIMATOR'!S767","v":"sf"},{"v":0,"d":"$0"},{"v":0,"d":"$0"},{"v":0,"d":"$0"},{"v":0,"d":"$0"},null,0,null,null,{"$f":"'2 REPAIR ESTIMATOR'!AD767","v":{"v":0,"d":"$0.00"}},{"$f":"'2 REPAIR ESTIMATOR'!AM767","v":{"v":0,"d":"$0.00"}},{"v":0,"d":"$0.00"},{"$f":"'2 REPAIR ESTIMATOR'!AG767","v":{"v":0,"d":"$0.00"}},{"$f":"'2 REPAIR ESTIMATOR'!AJ767","v":{"v":0,"d":"$0.00"}}]
[null,null,{"$f":"T('2 REPAIR ESTIMATOR'!D768:O768)","v":""},{"$nulls":5},{"$f":"'2 REPAIR ESTIMATOR'!P768","v":0},{"$f":"'2 REPAIR ESTIMATOR'!S768","v":0},{"v":0,"d":"$0"},{"v":0,"d":"$0"},{"v":0,"d":"$0"},{"v":0,"d":"$0"},null,0,null,null,{"$f":"'2 REPAIR ESTIMATOR'!AD768","v":{"v":0,"d":"$0.00"}},{"$f":"'2 REPAIR ESTIMATOR'!AM768","v":{"v":0,"d":"$0.00"}},{"v":0,"d":"$0.00"},{"$f":"'2 REPAIR ESTIMATOR'!AG768","v":{"v":0,"d":"$0.00"}},{"$f":"'2 REPAIR ESTIMATOR'!AJ768","v":{"v":0,"d":"$0.00"}}]
[null,null,{"$f":"T('2 REPAIR ESTIMATOR'!D769:O769)","v":""},{"$nulls":5},{"$f":"'2 REPAIR ESTIMATOR'!P769","v":0},{"$f":"'2 REPAIR ESTIMATOR'!S769","v":0},{"v":0,"d":"$0"},{"v":0,"d":"$0"},{"v":0,"d":"$0"},{"v":0,"d":"$0"},null,0,null,null,{"$f":"'2 REPAIR ESTIMATOR'!AD769","v":{"v":0,"d":"$0.00"}},{"$f":"'2 REPAIR ESTIMATOR'!AM769","v":{"v":0,"d":"$0.00"}},{"v":0,"d":"$0.00"},{"$f":"'2 REPAIR ESTIMATOR'!AG769","v":{"v":0,"d":"$0.00"}},{"$f":"'2 REPAIR ESTIMATOR'!AJ769","v":{"v":0,"d":"$0.00"}}]
[null,null,{"$f":"T('2 REPAIR ESTIMATOR'!D770:O770)","v":"Sheet Vinyl"},{"$nulls":5},{"$f":"'2 REPAIR ESTIMATOR'!P770","v":0},{"$f":"'2 REPAIR ESTIMATOR'!S770","v":0},{"v":0,"d":"$0"},{"v":0,"d":"$0"},{"v":0,"d":"$0"},{"v":0,"d":"$0"},null,0,null,null,{"$f":"'2 REPAIR ESTIMATOR'!AD770","v":{"v":0,"d":"$0.00"}},{"$f":"'2 REPAIR ESTIMATOR'!AM770","v":{"v":0,"d":"$0.00"}},{"v":0,"d":"$0.00"},{"$f":"'2 REPAIR ESTIMATOR'!AG770","v":{"v":0,"d":"$0.00"}},{"$f":"'2 REPAIR ESTIMATOR'!AJ770","v":{"v":0,"d":"$0.00"}}]
[null,null,{"$f":"T('2 REPAIR ESTIMATOR'!D771:O771)","v":"Sheet vinyl, economy grade"},{"$nulls":5},{"$f":"'2 REPAIR ESTIMATOR'!P771","v":0},{"$f":"'2 REPAIR ESTIMATOR'!S771","v":"sf"},{"v":0,"d":"$0"},{"v":0,"d":"$0"},{"v":0,"d":"$0"},{"v":0,"d":"$0"},null,0,null,null,{"$f":"'2 REPAIR ESTIMATOR'!AD771","v":{"v":0,"d":"$0.00"}},{"$f":"'2 REPAIR ESTIMATOR'!AM771","v":{"v":0,"d":"$0.00"}},{"v":0,"d":"$0.00"},{"$f":"'2 REPAIR ESTIMATOR'!AG771","v":{"v":0,"d":"$0.00"}},{"$f":"'2 REPAIR ESTIMATOR'!AJ771","v":{"v":0,"d":"$0.00"}}]
[null,null,{"$f":"T('2 REPAIR ESTIMATOR'!D772:O772)","v":"Sheet vinyl, average grade"},{"$nulls":5},{"$f":"'2 REPAIR ESTIMATOR'!P772","v":0},{"$f":"'2 REPAIR ESTIMATOR'!S772","v":"sf"},{"v":0,"d":"$0"},{"v":0,"d":"$0"},{"v":0,"d":"$0"},{"v":0,"d":"$0"},null,0,null,null,{"$f":"'2 REPAIR ESTIMATOR'!AD772","v":{"v":0,"d":"$0.00"}},{"$f":"'2 REPAIR ESTIMATOR'!AM772","v":{"v":0,"d":"$0.00"}},{"v":0,"d":"$0.00"},{"$f":"'2 REPAIR ESTIMATOR'!AG772","v":{"v":0,"d":"$0.00"}},{"$f":"'2 REPAIR ESTIMATOR'!AJ772","v":{"v":0,"d":"$0.00"}}]
[null,null,{"$f":"T('2 REPAIR ESTIMATOR'!D773:O773)","v":"Sheet vinyl, premium grade"},{"$nulls":5},{"$f":"'2 REPAIR ESTIMATOR'!P773","v":0},{"$f":"'2 REPAIR ESTIMATOR'!S773","v":"sf"},{"v":0,"d":"$0"},{"v":0,"d":"$0"},{"v":0,"d":"$0"},{"v":0,"d":"$0"},null,0,null,null,{"$f":"'2 REPAIR ESTIMATOR'!AD773","v":{"v":0,"d":"$0.00"}},{"$f":"'2 REPAIR ESTIMATOR'!AM773","v":{"v":0,"d":"$0.00"}},{"v":0,"d":"$0.00"},{"$f":"'2 REPAIR ESTIMATOR'!AG773","v":{"v":0,"d":"$0.00"}},{"$f":"'2 REPAIR ESTIMATOR'!AJ773","v":{"v":0,"d":"$0.00"}}]
[null,null,{"$f":"T('2 REPAIR ESTIMATOR'!D774:O774)","v":"Clean and wax vinyl"},{"$nulls":5},{"$f":"'2 REPAIR ESTIMATOR'!P774","v":0},{"$f":"'2 REPAIR ESTIMATOR'!S774","v":"sf"},{"v":0,"d":"$0"},{"v":0,"d":"$0"},{"v":0,"d":"$0"},{"v":0,"d":"$0"},null,0,null,null,{"$f":"'2 REPAIR ESTIMATOR'!AD774","v":{"v":0,"d":"$0.00"}},{"$f":"'2 REPAIR ESTIMATOR'!AM774","v":{"v":0,"d":"$0.00"}},{"v":0,"d":"$0.00"},{"$f":"'2 REPAIR ESTIMATOR'!AG774","v":{"v":0,"d":"$0.00"}},{"$f":"'2 REPAIR ESTIMATOR'!AJ774","v":{"v":0,"d":"$0.00"}}]
[null,null,{"$f":"T('2 REPAIR ESTIMATOR'!D775:O775)","v":""},{"$nulls":5},{"$f":"'2 REPAIR ESTIMATOR'!P775","v":0},{"$f":"'2 REPAIR ESTIMATOR'!S775","v":0},{"v":0,"d":"$0"},{"v":0,"d":"$0"},{"v":0,"d":"$0"},{"v":0,"d":"$0"},null,0,null,null,{"$f":"'2 REPAIR ESTIMATOR'!AD775","v":{"v":0,"d":"$0.00"}},{"$f":"'2 REPAIR ESTIMATOR'!AM775","v":{"v":0,"d":"$0.00"}},{"v":0,"d":"$0.00"},{"$f":"'2 REPAIR ESTIMATOR'!AG775","v":{"v":0,"d":"$0.00"}},{"$f":"'2 REPAIR ESTIMATOR'!AJ775","v":{"v":0,"d":"$0.00"}}]
[null,null,{"$f":"T('2 REPAIR ESTIMATOR'!D776:O776)","v":"Vinyl Tile"},{"$nulls":5},{"$f":"'2 REPAIR ESTIMATOR'!P776","v":0},{"$f":"'2 REPAIR ESTIMATOR'!S776","v":0},{"v":0,"d":"$0"},{"v":0,"d":"$0"},{"v":0,"d":"$0"},{"v":0,"d":"$0"},null,0,null,null,{"$f":"'2 REPAIR ESTIMATOR'!AD776","v":{"v":0,"d":"$0.00"}},{"$f":"'2 REPAIR ESTIMATOR'!AM776","v":{"v":0,"d":"$0.00"}},{"v":0,"d":"$0.00"},{"$f":"'2 REPAIR ESTIMATOR'!AG776","v":{"v":0,"d":"$0.00"}},{"$f":"'2 REPAIR ESTIMATOR'!AJ776","v":{"v":0,"d":"$0.00"}}]
[null,null,{"$f":"T('2 REPAIR ESTIMATOR'!D777:O777)","v":"Vinyl tile, economy grade"},{"$nulls":5},{"$f":"'2 REPAIR ESTIMATOR'!P777","v":0},{"$f":"'2 REPAIR ESTIMATOR'!S777","v":"sf"},{"v":0,"d":"$0"},{"v":0,"d":"$0"},{"v":0,"d":"$0"},{"v":0,"d":"$0"},null,0,null,null,{"$f":"'2 REPAIR ESTIMATOR'!AD777","v":{"v":0,"d":"$0.00"}},{"$f":"'2 REPAIR ESTIMATOR'!AM777","v":{"v":0,"d":"$0.00"}},{"v":0,"d":"$0.00"},{"$f":"'2 REPAIR ESTIMATOR'!AG777","v":{"v":0,"d":"$0.00"}},{"$f":"'2 REPAIR ESTIMATOR'!AJ777","v":{"v":0,"d":"$0.00"}}]
[null,null,{"$f":"T('2 REPAIR ESTIMATOR'!D778:O778)","v":"Vinyl tile, average grade"},{"$nulls":5},{"$f":"'2 REPAIR ESTIMATOR'!P778","v":0},{"$f":"'2 REPAIR ESTIMATOR'!S778","v":"sf"},{"v":0,"d":"$0"},{"v":0,"d":"$0"},{"v":0,"d":"$0"},{"v":0,"d":"$0"},null,0,null,null,{"$f":"'2 REPAIR ESTIMATOR'!AD778","v":{"v":0,"d":"$0.00"}},{"$f":"'2 REPAIR ESTIMATOR'!AM778","v":{"v":0,"d":"$0.00"}},{"v":0,"d":"$0.00"},{"$f":"'2 REPAIR ESTIMATOR'!AG778","v":{"v":0,"d":"$0.00"}},{"$f":"'2 REPAIR ESTIMATOR'!AJ778","v":{"v":0,"d":"$0.00"}}]
[null,null,{"$f":"T('2 REPAIR ESTIMATOR'!D779:O779)","v":"Vinyl tile, premium grade"},{"$nulls":5},{"$f":"'2 REPAIR ESTIMATOR'!P779","v":0},{"$f":"'2 REPAIR ESTIMATOR'!S779","v":"sf"},{"v":0,"d":"$0"},{"v":0,"d":"$0"},{"v":0,"d":"$0"},{"v":0,"d":"$0"},null,0,null,null,{"$f":"'2 REPAIR ESTIMATOR'!AD779","v":{"v":0,"d":"$0.00"}},{"$f":"'2 REPAIR ESTIMATOR'!AM779","v":{"v":0,"d":"$0.00"}},{"v":0,"d":"$0.00"},{"$f":"'2 REPAIR ESTIMATOR'!AG779","v":{"v":0,"d":"$0.00"}},{"$f":"'2 REPAIR ESTIMATOR'!AJ779","v":{"v":0,"d":"$0.00"}}]
[null,null,{"$f":"T('2 REPAIR ESTIMATOR'!D780:O780)","v":"Clean and wax vinyl"},{"$nulls":5},{"$f":"'2 REPAIR ESTIMATOR'!P780","v":0},{"$f":"'2 REPAIR ESTIMATOR'!S780","v":"sf"},{"v":0,"d":"$0"},{"v":0,"d":"$0"},{"v":0,"d":"$0"},{"v":0,"d":"$0"},null,0,null,null,{"$f":"'2 REPAIR ESTIMATOR'!AD780","v":{"v":0,"d":"$0.00"}},{"$f":"'2 REPAIR ESTIMATOR'!AM780","v":{"v":0,"d":"$0.00"}},{"v":0,"d":"$0.00"},{"$f":"'2 REPAIR ESTIMATOR'!AG780","v":{"v":0,"d":"$0.00"}},{"$f":"'2 REPAIR ESTIMATOR'!AJ780","v":{"v":0,"d":"$0.00"}}]
[null,null,{"$f":"T('2 REPAIR ESTIMATOR'!D781:O781)","v":""},{"$nulls":5},{"$f":"'2 REPAIR ESTIMATOR'!P781","v":0},{"$f":"'2 REPAIR ESTIMATOR'!S781","v":0},{"v":0,"d":"$0"},{"v":0,"d":"$0"},{"v":0,"d":"$0"},{"v":0,"d":"$0"},null,0,null,null,{"$f":"'2 REPAIR ESTIMATOR'!AD781","v":{"v":0,"d":"$0.00"}},{"$f":"'2 REPAIR ESTIMATOR'!AM781","v":{"v":0,"d":"$0.00"}},{"v":0,"d":"$0.00"},{"$f":"'2 REPAIR ESTIMATOR'!AG781","v":{"v":0,"d":"$0.00"}},{"$f":"'2 REPAIR ESTIMATOR'!AJ781","v":{"v":0,"d":"$0.00"}}]
[null,null,{"$f":"T('2 REPAIR ESTIMATOR'!D782:O782)","v":""},{"$nulls":5},{"$f":"'2 REPAIR ESTIMATOR'!P782","v":0},{"$f":"'2 REPAIR ESTIMATOR'!S782","v":0},{"v":0,"d":"$0"},{"v":0,"d":"$0"},{"v":0,"d":"$0"},{"v":0,"d":"$0"},null,0,null,null,{"$f":"'2 REPAIR ESTIMATOR'!AD782","v":{"v":0,"d":"$0.00"}},{"$f":"'2 REPAIR ESTIMATOR'!AM782","v":{"v":0,"d":"$0.00"}},{"v":0,"d":"$0.00"},{"$f":"'2 REPAIR ESTIMATOR'!AG782","v":{"v":0,"d":"$0.00"}},{"$f":"'2 REPAIR ESTIMATOR'!AJ782","v":{"v":0,"d":"$0.00"}}]
[null,null,{"$f":"T('2 REPAIR ESTIMATOR'!D783:O783)","v":""},{"$nulls":5},{"$f":"'2 REPAIR ESTIMATOR'!P783","v":0},{"$f":"'2 REPAIR ESTIMATOR'!S783","v":0},{"v":0,"d":"$0"},{"v":0,"d":"$0"},{"v":0,"d":"$0"},{"v":0,"d":"$0"},null,{"$f":"I738","v":0},null,null,{"$f":"'2 REPAIR ESTIMATOR'!AD783","v":{"v":0,"d":"$0.00"}},{"$f":"'2 REPAIR ESTIMATOR'!AM783","v":{"v":0,"d":"$0.00"}},{"v":0,"d":"$0.00"},{"$f":"'2 REPAIR ESTIMATOR'!AG783","v":{"v":0,"d":"$0.00"}},{"$f":"'2 REPAIR ESTIMATOR'!AJ783","v":{"v":0,"d":"$0.00"}}]
[null,null,{"$f":"T('2 REPAIR ESTIMATOR'!D784:O784)","v":""},{"$nulls":5},{"$f":"'2 REPAIR ESTIMATOR'!P784","v":0},{"$f":"'2 REPAIR ESTIMATOR'!S784","v":0},{"v":0,"d":"$0"},{"v":0,"d":"$0"},{"v":0,"d":"$0"},{"v":0,"d":"$0"},null,0,null,null,{"$f":"'2 REPAIR ESTIMATOR'!AD784","v":{"v":0,"d":"$0.00"}},{"$f":"'2 REPAIR ESTIMATOR'!AM784","v":{"v":0,"d":"$0.00"}},{"v":0,"d":"$0.00"},{"$f":"'2 REPAIR ESTIMATOR'!AG784","v":{"v":0,"d":"$0.00"}},{"$f":"'2 REPAIR ESTIMATOR'!AJ784","v":{"v":0,"d":"$0.00"}}]
[null,null,{"$f":"T('2 REPAIR ESTIMATOR'!D785:O785)","v":""},{"$nulls":5},{"$f":"'2 REPAIR ESTIMATOR'!P785","v":0},{"$f":"'2 REPAIR ESTIMATOR'!S785","v":0},{"v":0,"d":"$0"},{"v":0,"d":"$0"},{"v":0,"d":"$0"},{"v":0,"d":"$0"},null,0,null,null,{"$f":"'2 REPAIR ESTIMATOR'!AD785","v":{"v":0,"d":"$0.00"}},{"$f":"'2 REPAIR ESTIMATOR'!AM785","v":{"v":0,"d":"$0.00"}},{"v":0,"d":"$0.00"},{"$f":"'2 REPAIR ESTIMATOR'!AG785","v":{"v":0,"d":"$0.00"}},{"$f":"'2 REPAIR ESTIMATOR'!AJ785","v":{"v":0,"d":"$0.00"}}]
[null,null,{"$f":"T('2 REPAIR ESTIMATOR'!D786:O786)","v":""},{"$nulls":5},{"$f":"'2 REPAIR ESTIMATOR'!P786","v":0},{"$f":"'2 REPAIR ESTIMATOR'!S786","v":0},{"v":0,"d":"$0"},{"v":0,"d":"$0"},{"v":0,"d":"$0"},{"v":0,"d":"$0"},null,0,null,null,{"$f":"'2 REPAIR ESTIMATOR'!AD786","v":{"v":0,"d":"$0.00"}},{"$f":"'2 REPAIR ESTIMATOR'!AM786","v":{"v":0,"d":"$0.00"}},{"v":0,"d":"$0.00"},{"$f":"'2 REPAIR ESTIMATOR'!AG786","v":{"v":0,"d":"$0.00"}},{"$f":"'2 REPAIR ESTIMATOR'!AJ786","v":{"v":0,"d":"$0.00"}}]
[null,null,{"$f":"T('2 REPAIR ESTIMATOR'!D787:O787)","v":""},{"$nulls":5},{"$f":"'2 REPAIR ESTIMATOR'!P787","v":0},{"$f":"'2 REPAIR ESTIMATOR'!S787","v":0},{"v":0,"d":"$0"},{"v":0,"d":"$0"},{"v":0,"d":"$0"},{"v":0,"d":"$0"},null,0,null,null,{"$f":"'2 REPAIR ESTIMATOR'!AD787","v":{"v":0,"d":"$0.00"}},{"$f":"'2 REPAIR ESTIMATOR'!AM787","v":{"v":0,"d":"$0.00"}},{"v":0,"d":"$0.00"},{"$f":"'2 REPAIR ESTIMATOR'!AG787","v":{"v":0,"d":"$0.00"}},{"$f":"'2 REPAIR ESTIMATOR'!AJ787","v":{"v":0,"d":"$0.00"}}]
[null,null,{"$f":"T('2 REPAIR ESTIMATOR'!D788:O788)","v":""},{"$nulls":5},{"$f":"'2 REPAIR ESTIMATOR'!P788","v":0},{"$f":"'2 REPAIR ESTIMATOR'!S788","v":0},{"v":0,"d":"$0"},{"v":0,"d":"$0"},{"v":0,"d":"$0"},{"v":0,"d":"$0"},null,0,null,null,{"$f":"'2 REPAIR ESTIMATOR'!AD788","v":{"v":0,"d":"$0.00"}},{"$f":"'2 REPAIR ESTIMATOR'!AM788","v":{"v":0,"d":"$0.00"}},{"v":0,"d":"$0.00"},{"$f":"'2 REPAIR ESTIMATOR'!AG788","v":{"v":0,"d":"$0.00"}},{"$f":"'2 REPAIR ESTIMATOR'!AJ788","v":{"v":0,"d":"$0.00"}}]
[null,null,{"$f":"T('2 REPAIR ESTIMATOR'!D789:O789)","v":""},{"$nulls":5},{"$f":"'2 REPAIR ESTIMATOR'!P789","v":0},{"$f":"'2 REPAIR ESTIMATOR'!S789","v":0},{"v":0,"d":"$0"},{"v":0,"d":"$0"},{"v":0,"d":"$0"},{"v":0,"d":"$0"},null,0,null,null,{"$f":"'2 REPAIR ESTIMATOR'!AD789","v":{"v":0,"d":"$0.00"}},{"$f":"'2 REPAIR ESTIMATOR'!AM789","v":{"v":0,"d":"$0.00"}},{"v":0,"d":"$0.00"},{"$f":"'2 REPAIR ESTIMATOR'!AG789","v":{"v":0,"d":"$0.00"}},{"$f":"'2 REPAIR ESTIMATOR'!AJ789","v":{"v":0,"d":"$0.00"}}]
[null,null,{"$f":"T('2 REPAIR ESTIMATOR'!D790:O790)","v":""},{"$nulls":5},{"$f":"'2 REPAIR ESTIMATOR'!P790","v":0},{"$f":"'2 REPAIR ESTIMATOR'!S790","v":0},{"v":0,"d":"$0"},{"v":0,"d":"$0"},{"v":0,"d":"$0"},{"v":0,"d":"$0"},null,0,null,null,{"$f":"'2 REPAIR ESTIMATOR'!AD790","v":{"v":0,"d":"$0.00"}},{"$f":"'2 REPAIR ESTIMATOR'!AM790","v":{"v":0,"d":"$0.00"}},{"v":0,"d":"$0.00"},{"$f":"'2 REPAIR ESTIMATOR'!AG790","v":{"v":0,"d":"$0.00"}},{"$f":"'2 REPAIR ESTIMATOR'!AJ790","v":{"v":0,"d":"$0.00"}}]
[null,null,{"$f":"T('2 REPAIR ESTIMATOR'!D791:O791)","v":""},{"$nulls":5},{"$f":"'2 REPAIR ESTIMATOR'!P791","v":0},{"$f":"'2 REPAIR ESTIMATOR'!S791","v":0},{"v":0,"d":"$0"},{"v":0,"d":"$0"},{"v":0,"d":"$0"},{"v":0,"d":"$0"},null,0,null,null,{"$f":"'2 REPAIR ESTIMATOR'!AD791","v":{"v":0,"d":"$0.00"}},{"$f":"'2 REPAIR ESTIMATOR'!AM791","v":{"v":0,"d":"$0.00"}},{"v":0,"d":"$0.00"},{"$f":"'2 REPAIR ESTIMATOR'!AG791","v":{"v":0,"d":"$0.00"}},{"$f":"'2 REPAIR ESTIMATOR'!AJ791","v":{"v":0,"d":"$0.00"}}]
[null,null,{"$f":"T('2 REPAIR ESTIMATOR'!D792:O792)","v":""},{"$nulls":5},{"$f":"'2 REPAIR ESTIMATOR'!P792","v":0},{"$f":"'2 REPAIR ESTIMATOR'!S792","v":0},{"v":0,"d":"$0"},{"v":0,"d":"$0"},{"v":0,"d":"$0"},{"v":0,"d":"$0"},null,0,null,null,{"$f":"'2 REPAIR ESTIMATOR'!AD792","v":{"v":0,"d":"$0.00"}},{"$f":"'2 REPAIR ESTIMATOR'!AM792","v":{"v":0,"d":"$0.00"}},{"v":0,"d":"$0.00"},{"$f":"'2 REPAIR ESTIMATOR'!AG792","v":{"v":0,"d":"$0.00"}},{"$f":"'2 REPAIR ESTIMATOR'!AJ792","v":{"v":0,"d":"$0.00"}}]
[null,null,{"$f":"T('2 REPAIR ESTIMATOR'!D793:O793)","v":""},{"$nulls":5},{"$f":"'2 REPAIR ESTIMATOR'!P793","v":0},{"$f":"'2 REPAIR ESTIMATOR'!S793","v":0},{"v":0,"d":"$0"},{"v":0,"d":"$0"},{"v":0,"d":"$0"},{"v":0,"d":"$0"},null,0,null,null,{"$f":"'2 REPAIR ESTIMATOR'!AD793","v":{"v":0,"d":"$0.00"}},{"$f":"'2 REPAIR ESTIMATOR'!AM793","v":{"v":0,"d":"$0.00"}},{"v":0,"d":"$0.00"},{"$f":"'2 REPAIR ESTIMATOR'!AG793","v":{"v":0,"d":"$0.00"}},{"$f":"'2 REPAIR ESTIMATOR'!AJ793","v":{"v":0,"d":"$0.00"}}]
[null,null,{"$f":"T('2 REPAIR ESTIMATOR'!D794:O794)","v":""},{"$nulls":5},{"$f":"'2 REPAIR ESTIMATOR'!P794","v":0},{"$f":"'2 REPAIR ESTIMATOR'!S794","v":0},{"v":0,"d":"$0"},{"v":0,"d":"$0"},{"v":0,"d":"$0"},{"v":0,"d":"$0"},null,0,null,null,{"$f":"'2 REPAIR ESTIMATOR'!AD794","v":{"v":0,"d":"$0.00"}},{"$f":"'2 REPAIR ESTIMATOR'!AM794","v":{"v":0,"d":"$0.00"}},{"v":0,"d":"$0.00"},{"$f":"'2 REPAIR ESTIMATOR'!AG794","v":{"v":0,"d":"$0.00"}},{"$f":"'2 REPAIR ESTIMATOR'!AJ794","v":{"v":0,"d":"$0.00"}}]
[null,null,{"$f":"T('2 REPAIR ESTIMATOR'!D795:O795)","v":""},{"$nulls":5},{"$f":"'2 REPAIR ESTIMATOR'!P795","v":0},{"$f":"'2 REPAIR ESTIMATOR'!S795","v":0},{"v":0,"d":"$0"},{"v":0,"d":"$0"},{"v":0,"d":"$0"},{"v":0,"d":"$0"},null,0,null,null,{"$f":"'2 REPAIR ESTIMATOR'!AD795","v":{"v":0,"d":"$0.00"}},{"$f":"'2 REPAIR ESTIMATOR'!AM795","v":{"v":0,"d":"$0.00"}},{"v":0,"d":"$0.00"},{"$f":"'2 REPAIR ESTIMATOR'!AG795","v":{"v":0,"d":"$0.00"}},{"$f":"'2 REPAIR ESTIMATOR'!AJ795","v":{"v":0,"d":"$0.00"}}]
[null,null,{"$f":"T('2 REPAIR ESTIMATOR'!D796:O796)","v":""},{"$nulls":5},{"$f":"'2 REPAIR ESTIMATOR'!P796","v":0},{"$f":"'2 REPAIR ESTIMATOR'!S796","v":0},{"v":0,"d":"$0"},{"v":0,"d":"$0"},{"v":0,"d":"$0"},{"v":0,"d":"$0"},null,0,null,null,{"$f":"'2 REPAIR ESTIMATOR'!AD796","v":{"v":0,"d":"$0.00"}},{"$f":"'2 REPAIR ESTIMATOR'!AM796","v":{"v":0,"d":"$0.00"}},{"v":0,"d":"$0.00"},{"$f":"'2 REPAIR ESTIMATOR'!AG796","v":{"v":0,"d":"$0.00"}},{"$f":"'2 REPAIR ESTIMATOR'!AJ796","v":{"v":0,"d":"$0.00"}}]
[null,null,{"$f":"T('2 REPAIR ESTIMATOR'!D797:O797)","v":""},{"$nulls":5},{"$f":"'2 REPAIR ESTIMATOR'!P797","v":0},{"$f":"'2 REPAIR ESTIMATOR'!S797","v":0},{"v":0,"d":"$0"},{"v":0,"d":"$0"},{"v":0,"d":"$0"},{"v":0,"d":"$0"},null,0,null,null,{"$f":"'2 REPAIR ESTIMATOR'!AD797","v":{"v":0,"d":"$0.00"}},{"$f":"'2 REPAIR ESTIMATOR'!AM797","v":{"v":0,"d":"$0.00"}},{"v":0,"d":"$0.00"},{"$f":"'2 REPAIR ESTIMATOR'!AG797","v":{"v":0,"d":"$0.00"}},{"$f":"'2 REPAIR ESTIMATOR'!AJ797","v":{"v":0,"d":"$0.00"}}]
[null,null,{"$f":"T('2 REPAIR ESTIMATOR'!D798:O798)","v":""},{"$nulls":5},{"$f":"'2 REPAIR ESTIMATOR'!P798","v":0},{"$f":"'2 REPAIR ESTIMATOR'!S798","v":0},{"v":0,"d":"$0"},{"v":0,"d":"$0"},{"v":0,"d":"$0"},{"v":0,"d":"$0"},null,0,null,null,{"$f":"'2 REPAIR ESTIMATOR'!AD798","v":{"v":0,"d":"$0.00"}},{"$f":"'2 REPAIR ESTIMATOR'!AM798","v":{"v":0,"d":"$0.00"}},{"v":0,"d":"$0.00"},{"$f":"'2 REPAIR ESTIMATOR'!AG798","v":{"v":0,"d":"$0.00"}},{"$f":"'2 REPAIR ESTIMATOR'!AJ798","v":{"v":0,"d":"$0.00"}}]
[null,null,{"$f":"T('2 REPAIR ESTIMATOR'!D799:O799)","v":""},{"$nulls":5},{"$f":"'2 REPAIR ESTIMATOR'!P799","v":0},{"$f":"'2 REPAIR ESTIMATOR'!S799","v":0},{"v":0,"d":"$0"},{"v":0,"d":"$0"},{"v":0,"d":"$0"},{"v":0,"d":"$0"},null,0,null,null,{"$f":"'2 REPAIR ESTIMATOR'!AD799","v":{"v":0,"d":"$0.00"}},{"$f":"'2 REPAIR ESTIMATOR'!AM799","v":{"v":0,"d":"$0.00"}},{"v":0,"d":"$0.00"},{"$f":"'2 REPAIR ESTIMATOR'!AG799","v":{"v":0,"d":"$0.00"}},{"$f":"'2 REPAIR ESTIMATOR'!AJ799","v":{"v":0,"d":"$0.00"}}]
[null,null,{"$f":"T('2 REPAIR ESTIMATOR'!D800:O800)","v":""},{"$nulls":5},{"$f":"'2 REPAIR ESTIMATOR'!P800","v":0},{"$f":"'2 REPAIR ESTIMATOR'!S800","v":0},{"v":0,"d":"$0"},{"v":0,"d":"$0"},{"v":0,"d":"$0"},{"v":0,"d":"$0"},null,0,null,null,{"$f":"'2 REPAIR ESTIMATOR'!AD800","v":{"v":0,"d":"$0.00"}},{"$f":"'2 REPAIR ESTIMATOR'!AM800","v":{"v":0,"d":"$0.00"}},{"v":0,"d":"$0.00"},{"$f":"'2 REPAIR ESTIMATOR'!AG800","v":{"v":0,"d":"$0.00"}},{"$f":"'2 REPAIR ESTIMATOR'!AJ800","v":{"v":0,"d":"$0.00"}}]
[null,null,{"$f":"T('2 REPAIR ESTIMATOR'!D801:O801)","v":""},{"$nulls":5},{"$f":"'2 REPAIR ESTIMATOR'!P801","v":0},{"$f":"'2 REPAIR ESTIMATOR'!S801","v":0},{"v":0,"d":"$0"},{"v":0,"d":"$0"},{"v":0,"d":"$0"},{"v":0,"d":"$0"},null,0,null,null,{"$f":"'2 REPAIR ESTIMATOR'!AD801","v":{"v":0,"d":"$0.00"}},{"$f":"'2 REPAIR ESTIMATOR'!AM801","v":{"v":0,"d":"$0.00"}},{"v":0,"d":"$0.00"},{"$f":"'2 REPAIR ESTIMATOR'!AG801","v":{"v":0,"d":"$0.00"}},{"$f":"'2 REPAIR ESTIMATOR'!AJ801","v":{"v":0,"d":"$0.00"}}]
[null,null,{"$f":"T('2 REPAIR ESTIMATOR'!D802:O802)","v":""},{"$nulls":5},{"$f":"'2 REPAIR ESTIMATOR'!P802","v":0},{"$f":"'2 REPAIR ESTIMATOR'!S802","v":0},{"v":0,"d":"$0"},{"v":0,"d":"$0"},{"v":0,"d":"$0"},{"v":0,"d":"$0"},null,0,null,null,{"$f":"'2 REPAIR ESTIMATOR'!AD802","v":{"v":0,"d":"$0.00"}},{"$f":"'2 REPAIR ESTIMATOR'!AM802","v":{"v":0,"d":"$0.00"}},{"v":0,"d":"$0.00"},{"$f":"'2 REPAIR ESTIMATOR'!AG802","v":{"v":0,"d":"$0.00"}},{"$f":"'2 REPAIR ESTIMATOR'!AJ802","v":{"v":0,"d":"$0.00"}}]
[null,null,{"$f":"T('2 REPAIR ESTIMATOR'!AC804)","v":"CARPET & RESILIENT TOTAL"},{"$nulls":7},{"$f":"SUM(K718:K757)","v":{"v":900,"d":"$900"}},{"$f":"SUM(L718:L757)","v":{"v":1605,"d":"$1,605"}},{"$f":"SUM(M718:M757)","v":{"v":0,"d":"$0"}},{"$f":"SUM(N718:O757)","v":{"v":2505,"d":"$2,505"}},null,{"$f":"SUM(P717:P725)","v":2400},null,null,{"$f":"SUM(S718:S757)","v":{"v":900,"d":"$900.00"}},{"$f":"SUM(T718:T757)","v":{"v":0,"d":"$0.00"}},{"$f":"SUM(U718:U757)","v":{"v":900,"d":"$900.00"}},{"$f":"SUM(V718:V757)","v":{"v":1605,"d":"$1,605.00"}},{"$f":"SUM(W718:W757)","v":{"v":0,"d":"$0.00"}}]
[{"$nulls":15},{"$f":"P758","v":2400}]
[null,null,{"$f":"T('2 REPAIR ESTIMATOR'!D807:O807)","v":"HARDWOOD FLOORING"},{"$nulls":5},{"$f":"SUM(I761:I800)","v":475},{"$nulls":6},475]
[null,null,{"$f":"T('2 REPAIR ESTIMATOR'!D808:O808)","v":"Hardwood floors, bid/allowance"},{"$nulls":5},{"$f":"'2 REPAIR ESTIMATOR'!P808","v":0},{"$f":"'2 REPAIR ESTIMATOR'!S808","v":"ls"},{"$f":"IF($N$3=\"subbed\",U761,S761)*$S$70","v":{"v":0,"d":"$0"}},{"$f":"V761*$S$70","v":{"v":0,"d":"$0"}},{"$f":"W761*$S$70","v":{"v":0,"d":"$0"}},{"$f":"SUM(K761:M761)","v":{"v":0,"d":"$0"}},null,0,null,null,{"$f":"'2 REPAIR ESTIMATOR'!AD808","v":{"v":0,"d":"$0.00"}},{"$f":"'2 REPAIR ESTIMATOR'!AM808","v":{"v":0,"d":"$0.00"}},{"$f":"T761+S761","v":{"v":0,"d":"$0.00"}},{"$f":"'2 REPAIR ESTIMATOR'!AG808","v":{"v":0,"d":"$0.00"}},{"$f":"'2 REPAIR ESTIMATOR'!AJ808","v":{"v":0,"d":"$0.00"}}]
[null,null,{"$f":"T('2 REPAIR ESTIMATOR'!D809:O809)","v":"Laminate Flooring"},{"$nulls":5},{"$f":"'2 REPAIR ESTIMATOR'!P809","v":0},{"$f":"'2 REPAIR ESTIMATOR'!S809","v":0},{"v":0,"d":"$0"},{"$f":"V762*$S$70","v":{"v":0,"d":"$0"}},{"$f":"W762*$S$70","v":{"v":0,"d":"$0"}},{"$f":"SUM(K762:M762)","v":{"v":0,"d":"$0"}},null,0,null,null,{"$f":"'2 REPAIR ESTIMATOR'!AD809","v":{"v":0,"d":"$0.00"}},{"$f":"'2 REPAIR ESTIMATOR'!AM809","v":{"v":0,"d":"$0.00"}},{"$f":"T762+S762","v":{"v":0,"d":"$0.00"}},{"$f":"'2 REPAIR ESTIMATOR'!AG809","v":{"v":0,"d":"$0.00"}},{"$f":"'2 REPAIR ESTIMATOR'!AJ809","v":{"v":0,"d":"$0.00"}}]
[null,null,{"$f":"T('2 REPAIR ESTIMATOR'!D810:O810)","v":"Laminate wood flooring, economy grade"},{"$nulls":5},{"$f":"'2 REPAIR ESTIMATOR'!P810","v":0},{"$f":"'2 REPAIR ESTIMATOR'!S810","v":"sf"},{"v":0,"d":"$0"},{"v":0,"d":"$0"},{"v":0,"d":"$0"},{"v":0,"d":"$0"},null,0,null,null,{"$f":"'2 REPAIR ESTIMATOR'!AD810","v":{"v":0,"d":"$0.00"}},{"$f":"'2 REPAIR ESTIMATOR'!AM810","v":{"v":0,"d":"$0.00"}},{"v":0,"d":"$0.00"},{"$f":"'2 REPAIR ESTIMATOR'!AG810","v":{"v":0,"d":"$0.00"}},{"$f":"'2 REPAIR ESTIMATOR'!AJ810","v":{"v":0,"d":"$0.00"}}]
[null,null,{"$f":"T('2 REPAIR ESTIMATOR'!D811:O811)","v":"Laminate wood flooring, average grade"},{"$nulls":5},{"$f":"'2 REPAIR ESTIMATOR'!P811","v":0},{"$f":"'2 REPAIR ESTIMATOR'!S811","v":"sf"},{"v":0,"d":"$0"},{"v":0,"d":"$0"},{"v":0,"d":"$0"},{"v":0,"d":"$0"},null,0,null,null,{"$f":"'2 REPAIR ESTIMATOR'!AD811","v":{"v":0,"d":"$0.00"}},{"$f":"'2 REPAIR ESTIMATOR'!AM811","v":{"v":0,"d":"$0.00"}},{"v":0,"d":"$0.00"},{"$f":"'2 REPAIR ESTIMATOR'!AG811","v":{"v":0,"d":"$0.00"}},{"$f":"'2 REPAIR ESTIMATOR'!AJ811","v":{"v":0,"d":"$0.00"}}]
[null,null,{"$f":"T('2 REPAIR ESTIMATOR'!D812:O812)","v":"Laminate wood flooring, premium grade"},{"$nulls":5},{"$f":"'2 REPAIR ESTIMATOR'!P812","v":0},{"$f":"'2 REPAIR ESTIMATOR'!S812","v":"sf"},{"v":0,"d":"$0"},{"v":0,"d":"$0"},{"v":0,"d":"$0"},{"v":0,"d":"$0"},null,0,null,null,{"$f":"'2 REPAIR ESTIMATOR'!AD812","v":{"v":0,"d":"$0.00"}},{"$f":"'2 REPAIR ESTIMATOR'!AM812","v":{"v":0,"d":"$0.00"}},{"v":0,"d":"$0.00"},{"$f":"'2 REPAIR ESTIMATOR'!AG812","v":{"v":0,"d":"$0.00"}},{"$f":"'2 REPAIR ESTIMATOR'!AJ812","v":{"v":0,"d":"$0.00"}}]
[null,null,{"$f":"T('2 REPAIR ESTIMATOR'!D813:O813)","v":""},{"$nulls":5},{"$f":"'2 REPAIR ESTIMATOR'!P813","v":0},{"$f":"'2 REPAIR ESTIMATOR'!S813","v":0},{"v":0,"d":"$0"},{"v":0,"d":"$0"},{"v":0,"d":"$0"},{"v":0,"d":"$0"},null,0,null,null,{"$f":"'2 REPAIR ESTIMATOR'!AD813","v":{"v":0,"d":"$0.00"}},{"$f":"'2 REPAIR ESTIMATOR'!AM813","v":{"v":0,"d":"$0.00"}},{"v":0,"d":"$0.00"},{"$f":"'2 REPAIR ESTIMATOR'!AG813","v":{"v":0,"d":"$0.00"}},{"$f":"'2 REPAIR ESTIMATOR'!AJ813","v":{"v":0,"d":"$0.00"}}]
[null,null,{"$f":"T('2 REPAIR ESTIMATOR'!D814:O814)","v":"Hardwood Flooring"},{"$nulls":5},{"$f":"'2 REPAIR ESTIMATOR'!P814","v":0},{"$f":"'2 REPAIR ESTIMATOR'!S814","v":0},{"v":0,"d":"$0"},{"v":0,"d":"$0"},{"v":0,"d":"$0"},{"v":0,"d":"$0"},null,0,null,null,{"$f":"'2 REPAIR ESTIMATOR'!AD814","v":{"v":0,"d":"$0.00"}},{"$f":"'2 REPAIR ESTIMATOR'!AM814","v":{"v":0,"d":"$0.00"}},{"v":0,"d":"$0.00"},{"$f":"'2 REPAIR ESTIMATOR'!AG814","v":{"v":0,"d":"$0.00"}},{"$f":"'2 REPAIR ESTIMATOR'!AJ814","v":{"v":0,"d":"$0.00"}}]
[null,null,{"$f":"T('2 REPAIR ESTIMATOR'!D815:O815)","v":"Hardwood flooring, economy grade"},{"$nulls":5},{"$f":"'2 REPAIR ESTIMATOR'!P815","v":0},{"$f":"'2 REPAIR ESTIMATOR'!S815","v":"sf"},{"v":0,"d":"$0"},{"v":0,"d":"$0"},{"v":0,"d":"$0"},{"v":0,"d":"$0"},null,0,null,null,{"$f":"'2 REPAIR ESTIMATOR'!AD815","v":{"v":0,"d":"$0.00"}},{"$f":"'2 REPAIR ESTIMATOR'!AM815","v":{"v":0,"d":"$0.00"}},{"v":0,"d":"$0.00"},{"$f":"'2 REPAIR ESTIMATOR'!AG815","v":{"v":0,"d":"$0.00"}},{"$f":"'2 REPAIR ESTIMATOR'!AJ815","v":{"v":0,"d":"$0.00"}}]
[null,null,{"$f":"T('2 REPAIR ESTIMATOR'!D816:O816)","v":"Hardwood flooring, average grade"},{"$nulls":5},{"$f":"'2 REPAIR ESTIMATOR'!P816","v":475},{"$f":"'2 REPAIR ESTIMATOR'!S816","v":"sf"},{"v":1425,"d":"$1,425"},{"v":2033.0000000000002,"d":"$2,033"},{"v":0,"d":"$0"},{"v":3458,"d":"$3,458"},null,475,null,null,{"$f":"'2 REPAIR ESTIMATOR'!AD816","v":{"v":1425,"d":"$1,425.00"}},{"$f":"'2 REPAIR ESTIMATOR'!AM816","v":{"v":0,"d":"$0.00"}},{"v":1425,"d":"$1,425.00"},{"$f":"'2 REPAIR ESTIMATOR'!AG816","v":{"v":2033.0000000000002,"d":"$2,033.00"}},{"$f":"'2 REPAIR ESTIMATOR'!AJ816","v":{"v":0,"d":"$0.00"}}]
[null,null,{"$f":"T('2 REPAIR ESTIMATOR'!D817:O817)","v":"Hardwood flooring, premium grade"},{"$nulls":5},{"$f":"'2 REPAIR ESTIMATOR'!P817","v":0},{"$f":"'2 REPAIR ESTIMATOR'!S817","v":"sf"},{"v":0,"d":"$0"},{"v":0,"d":"$0"},{"v":0,"d":"$0"},{"v":0,"d":"$0"},null,0,null,null,{"$f":"'2 REPAIR ESTIMATOR'!AD817","v":{"v":0,"d":"$0.00"}},{"$f":"'2 REPAIR ESTIMATOR'!AM817","v":{"v":0,"d":"$0.00"}},{"v":0,"d":"$0.00"},{"$f":"'2 REPAIR ESTIMATOR'!AG817","v":{"v":0,"d":"$0.00"}},{"$f":"'2 REPAIR ESTIMATOR'!AJ817","v":{"v":0,"d":"$0.00"}}]
[null,null,{"$f":"T('2 REPAIR ESTIMATOR'!D818:O818)","v":""},{"$nulls":5},{"$f":"'2 REPAIR ESTIMATOR'!P818","v":0},{"$f":"'2 REPAIR ESTIMATOR'!S818","v":0},{"v":0,"d":"$0"},{"v":0,"d":"$0"},{"v":0,"d":"$0"},{"v":0,"d":"$0"},null,0,null,null,{"$f":"'2 REPAIR ESTIMATOR'!AD818","v":{"v":0,"d":"$0.00"}},{"$f":"'2 REPAIR ESTIMATOR'!AM818","v":{"v":0,"d":"$0.00"}},{"v":0,"d":"$0.00"},{"$f":"'2 REPAIR ESTIMATOR'!AG818","v":{"v":0,"d":"$0.00"}},{"$f":"'2 REPAIR ESTIMATOR'!AJ818","v":{"v":0,"d":"$0.00"}}]
[null,null,{"$f":"T('2 REPAIR ESTIMATOR'!D819:O819)","v":"Hardwood Floor Refinishing"},{"$nulls":5},{"$f":"'2 REPAIR ESTIMATOR'!P819","v":0},{"$f":"'2 REPAIR ESTIMATOR'!S819","v":0},{"v":0,"d":"$0"},{"v":0,"d":"$0"},{"v":0,"d":"$0"},{"v":0,"d":"$0"},null,0,null,null,{"$f":"'2 REPAIR ESTIMATOR'!AD819","v":{"v":0,"d":"$0.00"}},{"$f":"'2 REPAIR ESTIMATOR'!AM819","v":{"v":0,"d":"$0.00"}},{"v":0,"d":"$0.00"},{"$f":"'2 REPAIR ESTIMATOR'!AG819","v":{"v":0,"d":"$0.00"}},{"$f":"'2 REPAIR ESTIMATOR'!AJ819","v":{"v":0,"d":"$0.00"}}]
[null,null,{"$f":"T('2 REPAIR ESTIMATOR'!D820:O820)","v":"Floor refinishing"},{"$nulls":5},{"$f":"'2 REPAIR ESTIMATOR'!P820","v":0},{"$f":"'2 REPAIR ESTIMATOR'!S820","v":"sf"},{"v":0,"d":"$0"},{"v":0,"d":"$0"},{"v":0,"d":"$0"},{"v":0,"d":"$0"},null,0,null,null,{"$f":"'2 REPAIR ESTIMATOR'!AD820","v":{"v":0,"d":"$0.00"}},{"$f":"'2 REPAIR ESTIMATOR'!AM820","v":{"v":0,"d":"$0.00"}},{"v":0,"d":"$0.00"},{"$f":"'2 REPAIR ESTIMATOR'!AG820","v":{"v":0,"d":"$0.00"}},{"$f":"'2 REPAIR ESTIMATOR'!AJ820","v":{"v":0,"d":"$0.00"}}]
[null,null,{"$f":"T('2 REPAIR ESTIMATOR'!D821:O821)","v":"Lacing new hardwood to match existing, case-by-case"},{"$nulls":5},{"$f":"'2 REPAIR ESTIMATOR'!P821","v":0},{"$f":"'2 REPAIR ESTIMATOR'!S821","v":"sf"},{"v":0,"d":"$0"},{"v":0,"d":"$0"},{"v":0,"d":"$0"},{"v":0,"d":"$0"},null,0,null,null,{"$f":"'2 REPAIR ESTIMATOR'!AD821","v":{"v":0,"d":"$0.00"}},{"$f":"'2 REPAIR ESTIMATOR'!AM821","v":{"v":0,"d":"$0.00"}},{"v":0,"d":"$0.00"},{"$f":"'2 REPAIR ESTIMATOR'!AG821","v":{"v":0,"d":"$0.00"}},{"$f":"'2 REPAIR ESTIMATOR'!AJ821","v":{"v":0,"d":"$0.00"}}]
[null,null,{"$f":"T('2 REPAIR ESTIMATOR'!D822:O822)","v":""},{"$nulls":5},{"$f":"'2 REPAIR ESTIMATOR'!P822","v":0},{"$f":"'2 REPAIR ESTIMATOR'!S822","v":0},{"v":0,"d":"$0"},{"v":0,"d":"$0"},{"v":0,"d":"$0"},{"v":0,"d":"$0"},null,0,null,null,{"$f":"'2 REPAIR ESTIMATOR'!AD822","v":{"v":0,"d":"$0.00"}},{"$f":"'2 REPAIR ESTIMATOR'!AM822","v":{"v":0,"d":"$0.00"}},{"v":0,"d":"$0.00"},{"$f":"'2 REPAIR ESTIMATOR'!AG822","v":{"v":0,"d":"$0.00"}},{"$f":"'2 REPAIR ESTIMATOR'!AJ822","v":{"v":0,"d":"$0.00"}}]
[null,null,{"$f":"T('2 REPAIR ESTIMATOR'!D823:O823)","v":"Miscellaneous"},{"$nulls":5},{"$f":"'2 REPAIR ESTIMATOR'!P823","v":0},{"$f":"'2 REPAIR ESTIMATOR'!S823","v":0},{"v":0,"d":"$0"},{"v":0,"d":"$0"},{"v":0,"d":"$0"},{"v":0,"d":"$0"},null,0,null,null,{"$f":"'2 REPAIR ESTIMATOR'!AD823","v":{"v":0,"d":"$0.00"}},{"$f":"'2 REPAIR ESTIMATOR'!AM823","v":{"v":0,"d":"$0.00"}},{"v":0,"d":"$0.00"},{"$f":"'2 REPAIR ESTIMATOR'!AG823","v":{"v":0,"d":"$0.00"}},{"$f":"'2 REPAIR ESTIMATOR'!AJ823","v":{"v":0,"d":"$0.00"}}]
[null,null,{"$f":"T('2 REPAIR ESTIMATOR'!D824:O824)","v":"Stair treads, 4ft avg"},{"$nulls":5},{"$f":"'2 REPAIR ESTIMATOR'!P824","v":0},{"$f":"'2 REPAIR ESTIMATOR'!S824","v":"ea"},{"v":0,"d":"$0"},{"v":0,"d":"$0"},{"v":0,"d":"$0"},{"v":0,"d":"$0"},null,0,null,null,{"$f":"'2 REPAIR ESTIMATOR'!AD824","v":{"v":0,"d":"$0.00"}},{"$f":"'2 REPAIR ESTIMATOR'!AM824","v":{"v":0,"d":"$0.00"}},{"v":0,"d":"$0.00"},{"$f":"'2 REPAIR ESTIMATOR'!AG824","v":{"v":0,"d":"$0.00"}},{"$f":"'2 REPAIR ESTIMATOR'!AJ824","v":{"v":0,"d":"$0.00"}}]
[null,null,{"$f":"T('2 REPAIR ESTIMATOR'!D825:O825)","v":"Shoe moldings"},{"$nulls":5},{"$f":"'2 REPAIR ESTIMATOR'!P825","v":0},{"$f":"'2 REPAIR ESTIMATOR'!S825","v":"lf"},{"v":0,"d":"$0"},{"v":0,"d":"$0"},{"v":0,"d":"$0"},{"v":0,"d":"$0"},null,0,null,null,{"$f":"'2 REPAIR ESTIMATOR'!AD825","v":{"v":0,"d":"$0.00"}},{"$f":"'2 REPAIR ESTIMATOR'!AM825","v":{"v":0,"d":"$0.00"}},{"v":0,"d":"$0.00"},{"$f":"'2 REPAIR ESTIMATOR'!AG825","v":{"v":0,"d":"$0.00"}},{"$f":"'2 REPAIR ESTIMATOR'!AJ825","v":{"v":0,"d":"$0.00"}}]
[null,null,{"$f":"T('2 REPAIR ESTIMATOR'!D826:O826)","v":"Underlayment"},{"$nulls":5},{"$f":"'2 REPAIR ESTIMATOR'!P826","v":0},{"$f":"'2 REPAIR ESTIMATOR'!S826","v":"sf"},{"v":0,"d":"$0"},{"v":0,"d":"$0"},{"v":0,"d":"$0"},{"v":0,"d":"$0"},null,0,null,null,{"$f":"'2 REPAIR ESTIMATOR'!AD826","v":{"v":0,"d":"$0.00"}},{"$f":"'2 REPAIR ESTIMATOR'!AM826","v":{"v":0,"d":"$0.00"}},{"v":0,"d":"$0.00"},{"$f":"'2 REPAIR ESTIMATOR'!AG826","v":{"v":0,"d":"$0.00"}},{"$f":"'2 REPAIR ESTIMATOR'!AJ826","v":{"v":0,"d":"$0.00"}}]
[null,null,{"$f":"T('2 REPAIR ESTIMATOR'!D827:O827)","v":""},{"$nulls":5},{"$f":"'2 REPAIR ESTIMATOR'!P827","v":0},{"$f":"'2 REPAIR ESTIMATOR'!S827","v":0},{"v":0,"d":"$0"},{"v":0,"d":"$0"},{"v":0,"d":"$0"},{"v":0,"d":"$0"},null,0,null,null,{"$f":"'2 REPAIR ESTIMATOR'!AD827","v":{"v":0,"d":"$0.00"}},{"$f":"'2 REPAIR ESTIMATOR'!AM827","v":{"v":0,"d":"$0.00"}},{"v":0,"d":"$0.00"},{"$f":"'2 REPAIR ESTIMATOR'!AG827","v":{"v":0,"d":"$0.00"}},{"$f":"'2 REPAIR ESTIMATOR'!AJ827","v":{"v":0,"d":"$0.00"}}]
[null,null,{"$f":"T('2 REPAIR ESTIMATOR'!D828:O828)","v":""},{"$nulls":5},{"$f":"'2 REPAIR ESTIMATOR'!P828","v":0},{"$f":"'2 REPAIR ESTIMATOR'!S828","v":0},{"v":0,"d":"$0"},{"v":0,"d":"$0"},{"v":0,"d":"$0"},{"v":0,"d":"$0"},null,{"$f":"I781","v":0},null,null,{"$f":"'2 REPAIR ESTIMATOR'!AD828","v":{"v":0,"d":"$0.00"}},{"$f":"'2 REPAIR ESTIMATOR'!AM828","v":{"v":0,"d":"$0.00"}},{"v":0,"d":"$0.00"},{"$f":"'2 REPAIR ESTIMATOR'!AG828","v":{"v":0,"d":"$0.00"}},{"$f":"'2 REPAIR ESTIMATOR'!AJ828","v":{"v":0,"d":"$0.00"}}]
[null,null,{"$f":"T('2 REPAIR ESTIMATOR'!D829:O829)","v":""},{"$nulls":5},{"$f":"'2 REPAIR ESTIMATOR'!P829","v":0},{"$f":"'2 REPAIR ESTIMATOR'!S829","v":0},{"v":0,"d":"$0"},{"v":0,"d":"$0"},{"v":0,"d":"$0"},{"v":0,"d":"$0"},null,0,null,null,{"$f":"'2 REPAIR ESTIMATOR'!AD829","v":{"v":0,"d":"$0.00"}},{"$f":"'2 REPAIR ESTIMATOR'!AM829","v":{"v":0,"d":"$0.00"}},{"v":0,"d":"$0.00"},{"$f":"'2 REPAIR ESTIMATOR'!AG829","v":{"v":0,"d":"$0.00"}},{"$f":"'2 REPAIR ESTIMATOR'!AJ829","v":{"v":0,"d":"$0.00"}}]
[null,null,{"$f":"T('2 REPAIR ESTIMATOR'!D830:O830)","v":""},{"$nulls":5},{"$f":"'2 REPAIR ESTIMATOR'!P830","v":0},{"$f":"'2 REPAIR ESTIMATOR'!S830","v":0},{"v":0,"d":"$0"},{"v":0,"d":"$0"},{"v":0,"d":"$0"},{"v":0,"d":"$0"},null,0,null,null,{"$f":"'2 REPAIR ESTIMATOR'!AD830","v":{"v":0,"d":"$0.00"}},{"$f":"'2 REPAIR ESTIMATOR'!AM830","v":{"v":0,"d":"$0.00"}},{"v":0,"d":"$0.00"},{"$f":"'2 REPAIR ESTIMATOR'!AG830","v":{"v":0,"d":"$0.00"}},{"$f":"'2 REPAIR ESTIMATOR'!AJ830","v":{"v":0,"d":"$0.00"}}]
[null,null,{"$f":"T('2 REPAIR ESTIMATOR'!D831:O831)","v":""},{"$nulls":5},{"$f":"'2 REPAIR ESTIMATOR'!P831","v":0},{"$f":"'2 REPAIR ESTIMATOR'!S831","v":0},{"v":0,"d":"$0"},{"v":0,"d":"$0"},{"v":0,"d":"$0"},{"v":0,"d":"$0"},null,0,null,null,{"$f":"'2 REPAIR ESTIMATOR'!AD831","v":{"v":0,"d":"$0.00"}},{"$f":"'2 REPAIR ESTIMATOR'!AM831","v":{"v":0,"d":"$0.00"}},{"v":0,"d":"$0.00"},{"$f":"'2 REPAIR ESTIMATOR'!AG831","v":{"v":0,"d":"$0.00"}},{"$f":"'2 REPAIR ESTIMATOR'!AJ831","v":{"v":0,"d":"$0.00"}}]
[null,null,{"$f":"T('2 REPAIR ESTIMATOR'!D832:O832)","v":""},{"$nulls":5},{"$f":"'2 REPAIR ESTIMATOR'!P832","v":0},{"$f":"'2 REPAIR ESTIMATOR'!S832","v":0},{"v":0,"d":"$0"},{"v":0,"d":"$0"},{"v":0,"d":"$0"},{"v":0,"d":"$0"},null,0,null,null,{"$f":"'2 REPAIR ESTIMATOR'!AD832","v":{"v":0,"d":"$0.00"}},{"$f":"'2 REPAIR ESTIMATOR'!AM832","v":{"v":0,"d":"$0.00"}},{"v":0,"d":"$0.00"},{"$f":"'2 REPAIR ESTIMATOR'!AG832","v":{"v":0,"d":"$0.00"}},{"$f":"'2 REPAIR ESTIMATOR'!AJ832","v":{"v":0,"d":"$0.00"}}]
[null,null,{"$f":"T('2 REPAIR ESTIMATOR'!D833:O833)","v":""},{"$nulls":5},{"$f":"'2 REPAIR ESTIMATOR'!P833","v":0},{"$f":"'2 REPAIR ESTIMATOR'!S833","v":0},{"v":0,"d":"$0"},{"v":0,"d":"$0"},{"v":0,"d":"$0"},{"v":0,"d":"$0"},null,0,null,null,{"$f":"'2 REPAIR ESTIMATOR'!AD833","v":{"v":0,"d":"$0.00"}},{"$f":"'2 REPAIR ESTIMATOR'!AM833","v":{"v":0,"d":"$0.00"}},{"v":0,"d":"$0.00"},{"$f":"'2 REPAIR ESTIMATOR'!AG833","v":{"v":0,"d":"$0.00"}},{"$f":"'2 REPAIR ESTIMATOR'!AJ833","v":{"v":0,"d":"$0.00"}}]
[null,null,{"$f":"T('2 REPAIR ESTIMATOR'!D834:O834)","v":""},{"$nulls":5},{"$f":"'2 REPAIR ESTIMATOR'!P834","v":0},{"$f":"'2 REPAIR ESTIMATOR'!S834","v":0},{"v":0,"d":"$0"},{"v":0,"d":"$0"},{"v":0,"d":"$0"},{"v":0,"d":"$0"},null,0,null,null,{"$f":"'2 REPAIR ESTIMATOR'!AD834","v":{"v":0,"d":"$0.00"}},{"$f":"'2 REPAIR ESTIMATOR'!AM834","v":{"v":0,"d":"$0.00"}},{"v":0,"d":"$0.00"},{"$f":"'2 REPAIR ESTIMATOR'!AG834","v":{"v":0,"d":"$0.00"}},{"$f":"'2 REPAIR ESTIMATOR'!AJ834","v":{"v":0,"d":"$0.00"}}]
[null,null,{"$f":"T('2 REPAIR ESTIMATOR'!D835:O835)","v":""},{"$nulls":5},{"$f":"'2 REPAIR ESTIMATOR'!P835","v":0},{"$f":"'2 REPAIR ESTIMATOR'!S835","v":0},{"v":0,"d":"$0"},{"v":0,"d":"$0"},{"v":0,"d":"$0"},{"v":0,"d":"$0"},null,0,null,null,{"$f":"'2 REPAIR ESTIMATOR'!AD835","v":{"v":0,"d":"$0.00"}},{"$f":"'2 REPAIR ESTIMATOR'!AM835","v":{"v":0,"d":"$0.00"}},{"v":0,"d":"$0.00"},{"$f":"'2 REPAIR ESTIMATOR'!AG835","v":{"v":0,"d":"$0.00"}},{"$f":"'2 REPAIR ESTIMATOR'!AJ835","v":{"v":0,"d":"$0.00"}}]
[null,null,{"$f":"T('2 REPAIR ESTIMATOR'!D836:O836)","v":""},{"$nulls":5},{"$f":"'2 REPAIR ESTIMATOR'!P836","v":0},{"$f":"'2 REPAIR ESTIMATOR'!S836","v":0},{"v":0,"d":"$0"},{"v":0,"d":"$0"},{"v":0,"d":"$0"},{"v":0,"d":"$0"},null,0,null,null,{"$f":"'2 REPAIR ESTIMATOR'!AD836","v":{"v":0,"d":"$0.00"}},{"$f":"'2 REPAIR ESTIMATOR'!AM836","v":{"v":0,"d":"$0.00"}},{"v":0,"d":"$0.00"},{"$f":"'2 REPAIR ESTIMATOR'!AG836","v":{"v":0,"d":"$0.00"}},{"$f":"'2 REPAIR ESTIMATOR'!AJ836","v":{"v":0,"d":"$0.00"}}]
[null,null,{"$f":"T('2 REPAIR ESTIMATOR'!D837:O837)","v":""},{"$nulls":5},{"$f":"'2 REPAIR ESTIMATOR'!P837","v":0},{"$f":"'2 REPAIR ESTIMATOR'!S837","v":0},{"v":0,"d":"$0"},{"v":0,"d":"$0"},{"v":0,"d":"$0"},{"v":0,"d":"$0"},null,0,null,null,{"$f":"'2 REPAIR ESTIMATOR'!AD837","v":{"v":0,"d":"$0.00"}},{"$f":"'2 REPAIR ESTIMATOR'!AM837","v":{"v":0,"d":"$0.00"}},{"v":0,"d":"$0.00"},{"$f":"'2 REPAIR ESTIMATOR'!AG837","v":{"v":0,"d":"$0.00"}},{"$f":"'2 REPAIR ESTIMATOR'!AJ837","v":{"v":0,"d":"$0.00"}}]
[null,null,{"$f":"T('2 REPAIR ESTIMATOR'!D838:O838)","v":""},{"$nulls":5},{"$f":"'2 REPAIR ESTIMATOR'!P838","v":0},{"$f":"'2 REPAIR ESTIMATOR'!S838","v":0},{"v":0,"d":"$0"},{"v":0,"d":"$0"},{"v":0,"d":"$0"},{"v":0,"d":"$0"},null,0,null,null,{"$f":"'2 REPAIR ESTIMATOR'!AD838","v":{"v":0,"d":"$0.00"}},{"$f":"'2 REPAIR ESTIMATOR'!AM838","v":{"v":0,"d":"$0.00"}},{"v":0,"d":"$0.00"},{"$f":"'2 REPAIR ESTIMATOR'!AG838","v":{"v":0,"d":"$0.00"}},{"$f":"'2 REPAIR ESTIMATOR'!AJ838","v":{"v":0,"d":"$0.00"}}]
[null,null,{"$f":"T('2 REPAIR ESTIMATOR'!D839:O839)","v":""},{"$nulls":5},{"$f":"'2 REPAIR ESTIMATOR'!P839","v":0},{"$f":"'2 REPAIR ESTIMATOR'!S839","v":0},{"v":0,"d":"$0"},{"v":0,"d":"$0"},{"v":0,"d":"$0"},{"v":0,"d":"$0"},null,0,null,null,{"$f":"'2 REPAIR ESTIMATOR'!AD839","v":{"v":0,"d":"$0.00"}},{"$f":"'2 REPAIR ESTIMATOR'!AM839","v":{"v":0,"d":"$0.00"}},{"v":0,"d":"$0.00"},{"$f":"'2 REPAIR ESTIMATOR'!AG839","v":{"v":0,"d":"$0.00"}},{"$f":"'2 REPAIR ESTIMATOR'!AJ839","v":{"v":0,"d":"$0.00"}}]
[null,null,{"$f":"T('2 REPAIR ESTIMATOR'!D840:O840)","v":""},{"$nulls":5},{"$f":"'2 REPAIR ESTIMATOR'!P840","v":0},{"$f":"'2 REPAIR ESTIMATOR'!S840","v":0},{"v":0,"d":"$0"},{"v":0,"d":"$0"},{"v":0,"d":"$0"},{"v":0,"d":"$0"},null,0,null,null,{"$f":"'2 REPAIR ESTIMATOR'!AD840","v":{"v":0,"d":"$0.00"}},{"$f":"'2 REPAIR ESTIMATOR'!AM840","v":{"v":0,"d":"$0.00"}},{"v":0,"d":"$0.00"},{"$f":"'2 REPAIR ESTIMATOR'!AG840","v":{"v":0,"d":"$0.00"}},{"$f":"'2 REPAIR ESTIMATOR'!AJ840","v":{"v":0,"d":"$0.00"}}]
[null,null,{"$f":"T('2 REPAIR ESTIMATOR'!D841:O841)","v":""},{"$nulls":5},{"$f":"'2 REPAIR ESTIMATOR'!P841","v":0},{"$f":"'2 REPAIR ESTIMATOR'!S841","v":0},{"v":0,"d":"$0"},{"v":0,"d":"$0"},{"v":0,"d":"$0"},{"v":0,"d":"$0"},null,0,null,null,{"$f":"'2 REPAIR ESTIMATOR'!AD841","v":{"v":0,"d":"$0.00"}},{"$f":"'2 REPAIR ESTIMATOR'!AM841","v":{"v":0,"d":"$0.00"}},{"v":0,"d":"$0.00"},{"$f":"'2 REPAIR ESTIMATOR'!AG841","v":{"v":0,"d":"$0.00"}},{"$f":"'2 REPAIR ESTIMATOR'!AJ841","v":{"v":0,"d":"$0.00"}}]
[null,null,{"$f":"T('2 REPAIR ESTIMATOR'!D842:O842)","v":""},{"$nulls":5},{"$f":"'2 REPAIR ESTIMATOR'!P842","v":0},{"$f":"'2 REPAIR ESTIMATOR'!S842","v":0},{"v":0,"d":"$0"},{"v":0,"d":"$0"},{"v":0,"d":"$0"},{"v":0,"d":"$0"},null,0,null,null,{"$f":"'2 REPAIR ESTIMATOR'!AD842","v":{"v":0,"d":"$0.00"}},{"$f":"'2 REPAIR ESTIMATOR'!AM842","v":{"v":0,"d":"$0.00"}},{"v":0,"d":"$0.00"},{"$f":"'2 REPAIR ESTIMATOR'!AG842","v":{"v":0,"d":"$0.00"}},{"$f":"'2 REPAIR ESTIMATOR'!AJ842","v":{"v":0,"d":"$0.00"}}]
[null,null,{"$f":"T('2 REPAIR ESTIMATOR'!D843:O843)","v":""},{"$nulls":5},{"$f":"'2 REPAIR ESTIMATOR'!P843","v":0},{"$f":"'2 REPAIR ESTIMATOR'!S843","v":0},{"v":0,"d":"$0"},{"v":0,"d":"$0"},{"v":0,"d":"$0"},{"v":0,"d":"$0"},null,0,null,null,{"$f":"'2 REPAIR ESTIMATOR'!AD843","v":{"v":0,"d":"$0.00"}},{"$f":"'2 REPAIR ESTIMATOR'!AM843","v":{"v":0,"d":"$0.00"}},{"v":0,"d":"$0.00"},{"$f":"'2 REPAIR ESTIMATOR'!AG843","v":{"v":0,"d":"$0.00"}},{"$f":"'2 REPAIR ESTIMATOR'!AJ843","v":{"v":0,"d":"$0.00"}}]
[null,null,{"$f":"T('2 REPAIR ESTIMATOR'!D844:O844)","v":""},{"$nulls":5},{"$f":"'2 REPAIR ESTIMATOR'!P844","v":0},{"$f":"'2 REPAIR ESTIMATOR'!S844","v":0},{"v":0,"d":"$0"},{"v":0,"d":"$0"},{"v":0,"d":"$0"},{"v":0,"d":"$0"},null,0,null,null,{"$f":"'2 REPAIR ESTIMATOR'!AD844","v":{"v":0,"d":"$0.00"}},{"$f":"'2 REPAIR ESTIMATOR'!AM844","v":{"v":0,"d":"$0.00"}},{"v":0,"d":"$0.00"},{"$f":"'2 REPAIR ESTIMATOR'!AG844","v":{"v":0,"d":"$0.00"}},{"$f":"'2 REPAIR ESTIMATOR'!AJ844","v":{"v":0,"d":"$0.00"}}]
[null,null,{"$f":"T('2 REPAIR ESTIMATOR'!D845:O845)","v":""},{"$nulls":5},{"$f":"'2 REPAIR ESTIMATOR'!P845","v":0},{"$f":"'2 REPAIR ESTIMATOR'!S845","v":0},{"v":0,"d":"$0"},{"v":0,"d":"$0"},{"v":0,"d":"$0"},{"v":0,"d":"$0"},null,0,null,null,{"$f":"'2 REPAIR ESTIMATOR'!AD845","v":{"v":0,"d":"$0.00"}},{"$f":"'2 REPAIR ESTIMATOR'!AM845","v":{"v":0,"d":"$0.00"}},{"v":0,"d":"$0.00"},{"$f":"'2 REPAIR ESTIMATOR'!AG845","v":{"v":0,"d":"$0.00"}},{"$f":"'2 REPAIR ESTIMATOR'!AJ845","v":{"v":0,"d":"$0.00"}}]
[null,null,{"$f":"T('2 REPAIR ESTIMATOR'!D846:O846)","v":""},{"$nulls":5},{"$f":"'2 REPAIR ESTIMATOR'!P846","v":0},{"$f":"'2 REPAIR ESTIMATOR'!S846","v":0},{"v":0,"d":"$0"},{"v":0,"d":"$0"},{"v":0,"d":"$0"},{"v":0,"d":"$0"},null,0,null,null,{"$f":"'2 REPAIR ESTIMATOR'!AD846","v":{"v":0,"d":"$0.00"}},{"$f":"'2 REPAIR ESTIMATOR'!AM846","v":{"v":0,"d":"$0.00"}},{"v":0,"d":"$0.00"},{"$f":"'2 REPAIR ESTIMATOR'!AG846","v":{"v":0,"d":"$0.00"}},{"$f":"'2 REPAIR ESTIMATOR'!AJ846","v":{"v":0,"d":"$0.00"}}]
[null,null,{"$f":"T('2 REPAIR ESTIMATOR'!D847:O847)","v":""},{"$nulls":5},{"$f":"'2 REPAIR ESTIMATOR'!P847","v":0},{"$f":"'2 REPAIR ESTIMATOR'!S847","v":0},{"v":0,"d":"$0"},{"v":0,"d":"$0"},{"v":0,"d":"$0"},{"v":0,"d":"$0"},null,0,null,null,{"$f":"'2 REPAIR ESTIMATOR'!AD847","v":{"v":0,"d":"$0.00"}},{"$f":"'2 REPAIR ESTIMATOR'!AM847","v":{"v":0,"d":"$0.00"}},{"v":0,"d":"$0.00"},{"$f":"'2 REPAIR ESTIMATOR'!AG847","v":{"v":0,"d":"$0.00"}},{"$f":"'2 REPAIR ESTIMATOR'!AJ847","v":{"v":0,"d":"$0.00"}}]
[null,null,{"$f":"T('2 REPAIR ESTIMATOR'!AC849)","v":"HARDWOOD FLOORING TOTAL"},{"$nulls":7},{"$f":"SUM(K761:K800)","v":{"v":1425,"d":"$1,425"}},{"$f":"SUM(L761:L800)","v":{"v":2033.0000000000002,"d":"$2,033"}},{"$f":"SUM(M761:M800)","v":{"v":0,"d":"$0"}},{"$f":"SUM(N761:O800)","v":{"v":3458,"d":"$3,458"}},null,{"$f":"SUM(P760:P768)","v":475},null,null,{"$f":"SUM(S761:S800)","v":{"v":1425,"d":"$1,425.00"}},{"$f":"SUM(T761:T800)","v":{"v":0,"d":"$0.00"}},{"$f":"SUM(U761:U800)","v":{"v":1425,"d":"$1,425.00"}},{"$f":"SUM(V761:V800)","v":{"v":2033.0000000000002,"d":"$2,033.00"}},{"$f":"SUM(W761:W800)","v":{"v":0,"d":"$0.00"}}]
[{"$nulls":15},{"$f":"P801","v":475}]
[null,null,{"$f":"T('2 REPAIR ESTIMATOR'!D852:O852)","v":"TILING"},{"$nulls":5},{"$f":"SUM(I804:I843)","v":300},{"$nulls":6},300]
[null,null,{"$f":"T('2 REPAIR ESTIMATOR'!D853:O853)","v":"Tiling bid/allowance"},{"$nulls":5},{"$f":"'2 REPAIR ESTIMATOR'!P853","v":0},{"$f":"'2 REPAIR ESTIMATOR'!S853","v":"ls"},{"$f":"IF($N$3=\"subbed\",U804,S804)*$S$70","v":{"v":0,"d":"$0"}},{"$f":"V804*$S$70","v":{"v":0,"d":"$0"}},{"$f":"W804*$S$70","v":{"v":0,"d":"$0"}},{"$f":"SUM(K804:M804)","v":{"v":0,"d":"$0"}},null,0,null,null,{"$f":"'2 REPAIR ESTIMATOR'!AD853","v":{"v":0,"d":"$0.00"}},{"$f":"'2 REPAIR ESTIMATOR'!AM853","v":{"v":0,"d":"$0.00"}},{"$f":"T804+S804","v":{"v":0,"d":"$0.00"}},{"$f":"'2 REPAIR ESTIMATOR'!AG853","v":{"v":0,"d":"$0.00"}},{"$f":"'2 REPAIR ESTIMATOR'!AJ853","v":{"v":0,"d":"$0.00"}}]
[null,null,{"$f":"T('2 REPAIR ESTIMATOR'!D854:O854)","v":"Kitchen "},{"$nulls":5},{"$f":"'2 REPAIR ESTIMATOR'!P854","v":0},{"$f":"'2 REPAIR ESTIMATOR'!S854","v":0},{"v":0,"d":"$0"},{"$f":"V805*$S$70","v":{"v":0,"d":"$0"}},{"$f":"W805*$S$70","v":{"v":0,"d":"$0"}},{"$f":"SUM(K805:M805)","v":{"v":0,"d":"$0"}},null,0,null,null,{"$f":"'2 REPAIR ESTIMATOR'!AD854","v":{"v":0,"d":"$0.00"}},{"$f":"'2 REPAIR ESTIMATOR'!AM854","v":{"v":0,"d":"$0.00"}},{"$f":"T805+S805","v":{"v":0,"d":"$0.00"}},{"$f":"'2 REPAIR ESTIMATOR'!AG854","v":{"v":0,"d":"$0.00"}},{"$f":"'2 REPAIR ESTIMATOR'!AJ854","v":{"v":0,"d":"$0.00"}}]
[null,null,{"$f":"T('2 REPAIR ESTIMATOR'!D855:O855)","v":"Kitchen backsplash, mosaic tile"},{"$nulls":5},{"$f":"'2 REPAIR ESTIMATOR'!P855","v":25},{"$f":"'2 REPAIR ESTIMATOR'!S855","v":"sf"},{"v":250,"d":"$250"},{"v":401.25,"d":"$401"},{"v":0,"d":"$0"},{"v":651.25,"d":"$651"},null,25,null,null,{"$f":"'2 REPAIR ESTIMATOR'!AD855","v":{"v":250,"d":"$250.00"}},{"$f":"'2 REPAIR ESTIMATOR'!AM855","v":{"v":0,"d":"$0.00"}},{"v":250,"d":"$250.00"},{"$f":"'2 REPAIR ESTIMATOR'!AG855","v":{"v":401.25,"d":"$401.25"}},{"$f":"'2 REPAIR ESTIMATOR'!AJ855","v":{"v":0,"d":"$0.00"}}]
[null,null,{"$f":"T('2 REPAIR ESTIMATOR'!D856:O856)","v":"Floor tile, Kitchen"},{"$nulls":5},{"$f":"'2 REPAIR ESTIMATOR'!P856","v":0},{"$f":"'2 REPAIR ESTIMATOR'!S856","v":"sf"},{"v":0,"d":"$0"},{"v":0,"d":"$0"},{"v":0,"d":"$0"},{"v":0,"d":"$0"},null,0,null,null,{"$f":"'2 REPAIR ESTIMATOR'!AD856","v":{"v":0,"d":"$0.00"}},{"$f":"'2 REPAIR ESTIMATOR'!AM856","v":{"v":0,"d":"$0.00"}},{"v":0,"d":"$0.00"},{"$f":"'2 REPAIR ESTIMATOR'!AG856","v":{"v":0,"d":"$0.00"}},{"$f":"'2 REPAIR ESTIMATOR'!AJ856","v":{"v":0,"d":"$0.00"}}]
[null,null,{"$f":"T('2 REPAIR ESTIMATOR'!D857:O857)","v":""},{"$nulls":5},{"$f":"'2 REPAIR ESTIMATOR'!P857","v":0},{"$f":"'2 REPAIR ESTIMATOR'!S857","v":0},{"v":0,"d":"$0"},{"v":0,"d":"$0"},{"v":0,"d":"$0"},{"v":0,"d":"$0"},null,0,null,null,{"$f":"'2 REPAIR ESTIMATOR'!AD857","v":{"v":0,"d":"$0.00"}},{"$f":"'2 REPAIR ESTIMATOR'!AM857","v":{"v":0,"d":"$0.00"}},{"v":0,"d":"$0.00"},{"$f":"'2 REPAIR ESTIMATOR'!AG857","v":{"v":0,"d":"$0.00"}},{"$f":"'2 REPAIR ESTIMATOR'!AJ857","v":{"v":0,"d":"$0.00"}}]
[null,null,{"$f":"T('2 REPAIR ESTIMATOR'!D858:O858)","v":""},{"$nulls":5},{"$f":"'2 REPAIR ESTIMATOR'!P858","v":0},{"$f":"'2 REPAIR ESTIMATOR'!S858","v":0},{"v":0,"d":"$0"},{"v":0,"d":"$0"},{"v":0,"d":"$0"},{"v":0,"d":"$0"},null,0,null,null,{"$f":"'2 REPAIR ESTIMATOR'!AD858","v":{"v":0,"d":"$0.00"}},{"$f":"'2 REPAIR ESTIMATOR'!AM858","v":{"v":0,"d":"$0.00"}},{"v":0,"d":"$0.00"},{"$f":"'2 REPAIR ESTIMATOR'!AG858","v":{"v":0,"d":"$0.00"}},{"$f":"'2 REPAIR ESTIMATOR'!AJ858","v":{"v":0,"d":"$0.00"}}]
[null,null,{"$f":"T('2 REPAIR ESTIMATOR'!D859:O859)","v":"Bathrooms"},{"$nulls":5},{"$f":"'2 REPAIR ESTIMATOR'!P859","v":0},{"$f":"'2 REPAIR ESTIMATOR'!S859","v":0},{"v":0,"d":"$0"},{"v":0,"d":"$0"},{"v":0,"d":"$0"},{"v":0,"d":"$0"},null,0,null,null,{"$f":"'2 REPAIR ESTIMATOR'!AD859","v":{"v":0,"d":"$0.00"}},{"$f":"'2 REPAIR ESTIMATOR'!AM859","v":{"v":0,"d":"$0.00"}},{"v":0,"d":"$0.00"},{"$f":"'2 REPAIR ESTIMATOR'!AG859","v":{"v":0,"d":"$0.00"}},{"$f":"'2 REPAIR ESTIMATOR'!AJ859","v":{"v":0,"d":"$0.00"}}]
[null,null,{"$f":"T('2 REPAIR ESTIMATOR'!D860:O860)","v":"Shower tile, standard"},{"$nulls":5},{"$f":"'2 REPAIR ESTIMATOR'!P860","v":180},{"$f":"'2 REPAIR ESTIMATOR'!S860","v":"sf"},{"v":900,"d":"$900"},{"v":1155.6000000000001,"d":"$1,156"},{"v":0,"d":"$0"},{"v":2055.6000000000004,"d":"$2,056"},null,180,null,null,{"$f":"'2 REPAIR ESTIMATOR'!AD860","v":{"v":900,"d":"$900.00"}},{"$f":"'2 REPAIR ESTIMATOR'!AM860","v":{"v":0,"d":"$0.00"}},{"v":900,"d":"$900.00"},{"$f":"'2 REPAIR ESTIMATOR'!AG860","v":{"v":1155.6000000000001,"d":"$1,155.60"}},{"$f":"'2 REPAIR ESTIMATOR'!AJ860","v":{"v":0,"d":"$0.00"}}]
[null,null,{"$f":"T('2 REPAIR ESTIMATOR'!D861:O861)","v":"Shower tile, accent mosaic tile"},{"$nulls":5},{"$f":"'2 REPAIR ESTIMATOR'!P861","v":20},{"$f":"'2 REPAIR ESTIMATOR'!S861","v":"sf"},{"v":100,"d":"$100"},{"v":321,"d":"$321"},{"v":0,"d":"$0"},{"v":421,"d":"$421"},null,20,null,null,{"$f":"'2 REPAIR ESTIMATOR'!AD861","v":{"v":100,"d":"$100.00"}},{"$f":"'2 REPAIR ESTIMATOR'!AM861","v":{"v":0,"d":"$0.00"}},{"v":100,"d":"$100.00"},{"$f":"'2 REPAIR ESTIMATOR'!AG861","v":{"v":321,"d":"$321.00"}},{"$f":"'2 REPAIR ESTIMATOR'!AJ861","v":{"v":0,"d":"$0.00"}}]
[null,null,{"$f":"T('2 REPAIR ESTIMATOR'!D862:O862)","v":"Floor tile, bathrooms"},{"$nulls":5},{"$f":"'2 REPAIR ESTIMATOR'!P862","v":75},{"$f":"'2 REPAIR ESTIMATOR'!S862","v":"sf"},{"v":375,"d":"$375"},{"v":401.25,"d":"$401"},{"v":0,"d":"$0"},{"v":776.25,"d":"$776"},null,75,null,null,{"$f":"'2 REPAIR ESTIMATOR'!AD862","v":{"v":375,"d":"$375.00"}},{"$f":"'2 REPAIR ESTIMATOR'!AM862","v":{"v":0,"d":"$0.00"}},{"v":375,"d":"$375.00"},{"$f":"'2 REPAIR ESTIMATOR'!AG862","v":{"v":401.25,"d":"$401.25"}},{"$f":"'2 REPAIR ESTIMATOR'!AJ862","v":{"v":0,"d":"$0.00"}}]
[null,null,{"$f":"T('2 REPAIR ESTIMATOR'!D863:O863)","v":""},{"$nulls":5},{"$f":"'2 REPAIR ESTIMATOR'!P863","v":0},{"$f":"'2 REPAIR ESTIMATOR'!S863","v":0},{"v":0,"d":"$0"},{"v":0,"d":"$0"},{"v":0,"d":"$0"},{"v":0,"d":"$0"},null,0,null,null,{"$f":"'2 REPAIR ESTIMATOR'!AD863","v":{"v":0,"d":"$0.00"}},{"$f":"'2 REPAIR ESTIMATOR'!AM863","v":{"v":0,"d":"$0.00"}},{"v":0,"d":"$0.00"},{"$f":"'2 REPAIR ESTIMATOR'!AG863","v":{"v":0,"d":"$0.00"}},{"$f":"'2 REPAIR ESTIMATOR'!AJ863","v":{"v":0,"d":"$0.00"}}]
[null,null,{"$f":"T('2 REPAIR ESTIMATOR'!D864:O864)","v":""},{"$nulls":5},{"$f":"'2 REPAIR ESTIMATOR'!P864","v":0},{"$f":"'2 REPAIR ESTIMATOR'!S864","v":0},{"v":0,"d":"$0"},{"v":0,"d":"$0"},{"v":0,"d":"$0"},{"v":0,"d":"$0"},null,0,null,null,{"$f":"'2 REPAIR ESTIMATOR'!AD864","v":{"v":0,"d":"$0.00"}},{"$f":"'2 REPAIR ESTIMATOR'!AM864","v":{"v":0,"d":"$0.00"}},{"v":0,"d":"$0.00"},{"$f":"'2 REPAIR ESTIMATOR'!AG864","v":{"v":0,"d":"$0.00"}},{"$f":"'2 REPAIR ESTIMATOR'!AJ864","v":{"v":0,"d":"$0.00"}}]
[null,null,{"$f":"T('2 REPAIR ESTIMATOR'!D865:O865)","v":"Miscellaneous Tiling"},{"$nulls":5},{"$f":"'2 REPAIR ESTIMATOR'!P865","v":0},{"$f":"'2 REPAIR ESTIMATOR'!S865","v":0},{"v":0,"d":"$0"},{"v":0,"d":"$0"},{"v":0,"d":"$0"},{"v":0,"d":"$0"},null,0,null,null,{"$f":"'2 REPAIR ESTIMATOR'!AD865","v":{"v":0,"d":"$0.00"}},{"$f":"'2 REPAIR ESTIMATOR'!AM865","v":{"v":0,"d":"$0.00"}},{"v":0,"d":"$0.00"},{"$f":"'2 REPAIR ESTIMATOR'!AG865","v":{"v":0,"d":"$0.00"}},{"$f":"'2 REPAIR ESTIMATOR'!AJ865","v":{"v":0,"d":"$0.00"}}]
[null,null,{"$f":"T('2 REPAIR ESTIMATOR'!D866:O866)","v":"Floor tile, entry "},{"$nulls":5},{"$f":"'2 REPAIR ESTIMATOR'!P866","v":0},{"$f":"'2 REPAIR ESTIMATOR'!S866","v":"sf"},{"v":0,"d":"$0"},{"v":0,"d":"$0"},{"v":0,"d":"$0"},{"v":0,"d":"$0"},null,0,null,null,{"$f":"'2 REPAIR ESTIMATOR'!AD866","v":{"v":0,"d":"$0.00"}},{"$f":"'2 REPAIR ESTIMATOR'!AM866","v":{"v":0,"d":"$0.00"}},{"v":0,"d":"$0.00"},{"$f":"'2 REPAIR ESTIMATOR'!AG866","v":{"v":0,"d":"$0.00"}},{"$f":"'2 REPAIR ESTIMATOR'!AJ866","v":{"v":0,"d":"$0.00"}}]
[null,null,{"$f":"T('2 REPAIR ESTIMATOR'!D867:O867)","v":"Fireplace tiling"},{"$nulls":5},{"$f":"'2 REPAIR ESTIMATOR'!P867","v":0},{"$f":"'2 REPAIR ESTIMATOR'!S867","v":"sf"},{"v":0,"d":"$0"},{"v":0,"d":"$0"},{"v":0,"d":"$0"},{"v":0,"d":"$0"},null,0,null,null,{"$f":"'2 REPAIR ESTIMATOR'!AD867","v":{"v":0,"d":"$0.00"}},{"$f":"'2 REPAIR ESTIMATOR'!AM867","v":{"v":0,"d":"$0.00"}},{"v":0,"d":"$0.00"},{"$f":"'2 REPAIR ESTIMATOR'!AG867","v":{"v":0,"d":"$0.00"}},{"$f":"'2 REPAIR ESTIMATOR'!AJ867","v":{"v":0,"d":"$0.00"}}]
[null,null,{"$f":"T('2 REPAIR ESTIMATOR'!D868:O868)","v":""},{"$nulls":5},{"$f":"'2 REPAIR ESTIMATOR'!P868","v":0},{"$f":"'2 REPAIR ESTIMATOR'!S868","v":0},{"v":0,"d":"$0"},{"v":0,"d":"$0"},{"v":0,"d":"$0"},{"v":0,"d":"$0"},null,0,null,null,{"$f":"'2 REPAIR ESTIMATOR'!AD868","v":{"v":0,"d":"$0.00"}},{"$f":"'2 REPAIR ESTIMATOR'!AM868","v":{"v":0,"d":"$0.00"}},{"v":0,"d":"$0.00"},{"$f":"'2 REPAIR ESTIMATOR'!AG868","v":{"v":0,"d":"$0.00"}},{"$f":"'2 REPAIR ESTIMATOR'!AJ868","v":{"v":0,"d":"$0.00"}}]
[null,null,{"$f":"T('2 REPAIR ESTIMATOR'!D869:O869)","v":""},{"$nulls":5},{"$f":"'2 REPAIR ESTIMATOR'!P869","v":0},{"$f":"'2 REPAIR ESTIMATOR'!S869","v":0},{"v":0,"d":"$0"},{"v":0,"d":"$0"},{"v":0,"d":"$0"},{"v":0,"d":"$0"},null,{"$f":"I820","v":0},null,null,{"$f":"'2 REPAIR ESTIMATOR'!AD869","v":{"v":0,"d":"$0.00"}},{"$f":"'2 REPAIR ESTIMATOR'!AM869","v":{"v":0,"d":"$0.00"}},{"v":0,"d":"$0.00"},{"$f":"'2 REPAIR ESTIMATOR'!AG869","v":{"v":0,"d":"$0.00"}},{"$f":"'2 REPAIR ESTIMATOR'!AJ869","v":{"v":0,"d":"$0.00"}}]
[null,null,{"$f":"T('2 REPAIR ESTIMATOR'!D870:O870)","v":"Other"},{"$nulls":5},{"$f":"'2 REPAIR ESTIMATOR'!P870","v":0},{"$f":"'2 REPAIR ESTIMATOR'!S870","v":0},{"v":0,"d":"$0"},{"v":0,"d":"$0"},{"v":0,"d":"$0"},{"v":0,"d":"$0"},null,0,null,null,{"$f":"'2 REPAIR ESTIMATOR'!AD870","v":{"v":0,"d":"$0.00"}},{"$f":"'2 REPAIR ESTIMATOR'!AM870","v":{"v":0,"d":"$0.00"}},{"v":0,"d":"$0.00"},{"$f":"'2 REPAIR ESTIMATOR'!AG870","v":{"v":0,"d":"$0.00"}},{"$f":"'2 REPAIR ESTIMATOR'!AJ870","v":{"v":0,"d":"$0.00"}}]
[null,null,{"$f":"T('2 REPAIR ESTIMATOR'!D871:O871)","v":"Backer board 1/4\" at floor tile"},{"$nulls":5},{"$f":"'2 REPAIR ESTIMATOR'!P871","v":0},{"$f":"'2 REPAIR ESTIMATOR'!S871","v":"sf"},{"v":0,"d":"$0"},{"v":0,"d":"$0"},{"v":0,"d":"$0"},{"v":0,"d":"$0"},null,0,null,null,{"$f":"'2 REPAIR ESTIMATOR'!AD871","v":{"v":0,"d":"$0.00"}},{"$f":"'2 REPAIR ESTIMATOR'!AM871","v":{"v":0,"d":"$0.00"}},{"v":0,"d":"$0.00"},{"$f":"'2 REPAIR ESTIMATOR'!AG871","v":{"v":0,"d":"$0.00"}},{"$f":"'2 REPAIR ESTIMATOR'!AJ871","v":{"v":0,"d":"$0.00"}}]
[null,null,{"$f":"T('2 REPAIR ESTIMATOR'!D872:O872)","v":"Backer board 1/2\" at wall tile"},{"$nulls":5},{"$f":"'2 REPAIR ESTIMATOR'!P872","v":0},{"$f":"'2 REPAIR ESTIMATOR'!S872","v":"sf"},{"v":0,"d":"$0"},{"v":0,"d":"$0"},{"v":0,"d":"$0"},{"v":0,"d":"$0"},null,0,null,null,{"$f":"'2 REPAIR ESTIMATOR'!AD872","v":{"v":0,"d":"$0.00"}},{"$f":"'2 REPAIR ESTIMATOR'!AM872","v":{"v":0,"d":"$0.00"}},{"v":0,"d":"$0.00"},{"$f":"'2 REPAIR ESTIMATOR'!AG872","v":{"v":0,"d":"$0.00"}},{"$f":"'2 REPAIR ESTIMATOR'!AJ872","v":{"v":0,"d":"$0.00"}}]
[null,null,{"$f":"T('2 REPAIR ESTIMATOR'!D873:O873)","v":""},{"$nulls":5},{"$f":"'2 REPAIR ESTIMATOR'!P873","v":0},{"$f":"'2 REPAIR ESTIMATOR'!S873","v":0},{"v":0,"d":"$0"},{"v":0,"d":"$0"},{"v":0,"d":"$0"},{"v":0,"d":"$0"},null,0,null,null,{"$f":"'2 REPAIR ESTIMATOR'!AD873","v":{"v":0,"d":"$0.00"}},{"$f":"'2 REPAIR ESTIMATOR'!AM873","v":{"v":0,"d":"$0.00"}},{"v":0,"d":"$0.00"},{"$f":"'2 REPAIR ESTIMATOR'!AG873","v":{"v":0,"d":"$0.00"}},{"$f":"'2 REPAIR ESTIMATOR'!AJ873","v":{"v":0,"d":"$0.00"}}]
[null,null,{"$f":"T('2 REPAIR ESTIMATOR'!D874:O874)","v":""},{"$nulls":5},{"$f":"'2 REPAIR ESTIMATOR'!P874","v":0},{"$f":"'2 REPAIR ESTIMATOR'!S874","v":0},{"v":0,"d":"$0"},{"v":0,"d":"$0"},{"v":0,"d":"$0"},{"v":0,"d":"$0"},null,0,null,null,{"$f":"'2 REPAIR ESTIMATOR'!AD874","v":{"v":0,"d":"$0.00"}},{"$f":"'2 REPAIR ESTIMATOR'!AM874","v":{"v":0,"d":"$0.00"}},{"v":0,"d":"$0.00"},{"$f":"'2 REPAIR ESTIMATOR'!AG874","v":{"v":0,"d":"$0.00"}},{"$f":"'2 REPAIR ESTIMATOR'!AJ874","v":{"v":0,"d":"$0.00"}}]
[null,null,{"$f":"T('2 REPAIR ESTIMATOR'!D875:O875)","v":""},{"$nulls":5},{"$f":"'2 REPAIR ESTIMATOR'!P875","v":0},{"$f":"'2 REPAIR ESTIMATOR'!S875","v":0},{"v":0,"d":"$0"},{"v":0,"d":"$0"},{"v":0,"d":"$0"},{"v":0,"d":"$0"},null,0,null,null,{"$f":"'2 REPAIR ESTIMATOR'!AD875","v":{"v":0,"d":"$0.00"}},{"$f":"'2 REPAIR ESTIMATOR'!AM875","v":{"v":0,"d":"$0.00"}},{"v":0,"d":"$0.00"},{"$f":"'2 REPAIR ESTIMATOR'!AG875","v":{"v":0,"d":"$0.00"}},{"$f":"'2 REPAIR ESTIMATOR'!AJ875","v":{"v":0,"d":"$0.00"}}]
[null,null,{"$f":"T('2 REPAIR ESTIMATOR'!D876:O876)","v":""},{"$nulls":5},{"$f":"'2 REPAIR ESTIMATOR'!P876","v":0},{"$f":"'2 REPAIR ESTIMATOR'!S876","v":0},{"v":0,"d":"$0"},{"v":0,"d":"$0"},{"v":0,"d":"$0"},{"v":0,"d":"$0"},null,0,null,null,{"$f":"'2 REPAIR ESTIMATOR'!AD876","v":{"v":0,"d":"$0.00"}},{"$f":"'2 REPAIR ESTIMATOR'!AM876","v":{"v":0,"d":"$0.00"}},{"v":0,"d":"$0.00"},{"$f":"'2 REPAIR ESTIMATOR'!AG876","v":{"v":0,"d":"$0.00"}},{"$f":"'2 REPAIR ESTIMATOR'!AJ876","v":{"v":0,"d":"$0.00"}}]
[null,null,{"$f":"T('2 REPAIR ESTIMATOR'!D877:O877)","v":""},{"$nulls":5},{"$f":"'2 REPAIR ESTIMATOR'!P877","v":0},{"$f":"'2 REPAIR ESTIMATOR'!S877","v":0},{"v":0,"d":"$0"},{"v":0,"d":"$0"},{"v":0,"d":"$0"},{"v":0,"d":"$0"},null,0,null,null,{"$f":"'2 REPAIR ESTIMATOR'!AD877","v":{"v":0,"d":"$0.00"}},{"$f":"'2 REPAIR ESTIMATOR'!AM877","v":{"v":0,"d":"$0.00"}},{"v":0,"d":"$0.00"},{"$f":"'2 REPAIR ESTIMATOR'!AG877","v":{"v":0,"d":"$0.00"}},{"$f":"'2 REPAIR ESTIMATOR'!AJ877","v":{"v":0,"d":"$0.00"}}]
[null,null,{"$f":"T('2 REPAIR ESTIMATOR'!D878:O878)","v":""},{"$nulls":5},{"$f":"'2 REPAIR ESTIMATOR'!P878","v":0},{"$f":"'2 REPAIR ESTIMATOR'!S878","v":0},{"v":0,"d":"$0"},{"v":0,"d":"$0"},{"v":0,"d":"$0"},{"v":0,"d":"$0"},null,0,null,null,{"$f":"'2 REPAIR ESTIMATOR'!AD878","v":{"v":0,"d":"$0.00"}},{"$f":"'2 REPAIR ESTIMATOR'!AM878","v":{"v":0,"d":"$0.00"}},{"v":0,"d":"$0.00"},{"$f":"'2 REPAIR ESTIMATOR'!AG878","v":{"v":0,"d":"$0.00"}},{"$f":"'2 REPAIR ESTIMATOR'!AJ878","v":{"v":0,"d":"$0.00"}}]
[null,null,{"$f":"T('2 REPAIR ESTIMATOR'!D879:O879)","v":""},{"$nulls":5},{"$f":"'2 REPAIR ESTIMATOR'!P879","v":0},{"$f":"'2 REPAIR ESTIMATOR'!S879","v":0},{"v":0,"d":"$0"},{"v":0,"d":"$0"},{"v":0,"d":"$0"},{"v":0,"d":"$0"},null,0,null,null,{"$f":"'2 REPAIR ESTIMATOR'!AD879","v":{"v":0,"d":"$0.00"}},{"$f":"'2 REPAIR ESTIMATOR'!AM879","v":{"v":0,"d":"$0.00"}},{"v":0,"d":"$0.00"},{"$f":"'2 REPAIR ESTIMATOR'!AG879","v":{"v":0,"d":"$0.00"}},{"$f":"'2 REPAIR ESTIMATOR'!AJ879","v":{"v":0,"d":"$0.00"}}]
[null,null,{"$f":"T('2 REPAIR ESTIMATOR'!D880:O880)","v":""},{"$nulls":5},{"$f":"'2 REPAIR ESTIMATOR'!P880","v":0},{"$f":"'2 REPAIR ESTIMATOR'!S880","v":0},{"v":0,"d":"$0"},{"v":0,"d":"$0"},{"v":0,"d":"$0"},{"v":0,"d":"$0"},null,0,null,null,{"$f":"'2 REPAIR ESTIMATOR'!AD880","v":{"v":0,"d":"$0.00"}},{"$f":"'2 REPAIR ESTIMATOR'!AM880","v":{"v":0,"d":"$0.00"}},{"v":0,"d":"$0.00"},{"$f":"'2 REPAIR ESTIMATOR'!AG880","v":{"v":0,"d":"$0.00"}},{"$f":"'2 REPAIR ESTIMATOR'!AJ880","v":{"v":0,"d":"$0.00"}}]
[null,null,{"$f":"T('2 REPAIR ESTIMATOR'!D881:O881)","v":""},{"$nulls":5},{"$f":"'2 REPAIR ESTIMATOR'!P881","v":0},{"$f":"'2 REPAIR ESTIMATOR'!S881","v":0},{"v":0,"d":"$0"},{"v":0,"d":"$0"},{"v":0,"d":"$0"},{"v":0,"d":"$0"},null,0,null,null,{"$f":"'2 REPAIR ESTIMATOR'!AD881","v":{"v":0,"d":"$0.00"}},{"$f":"'2 REPAIR ESTIMATOR'!AM881","v":{"v":0,"d":"$0.00"}},{"v":0,"d":"$0.00"},{"$f":"'2 REPAIR ESTIMATOR'!AG881","v":{"v":0,"d":"$0.00"}},{"$f":"'2 REPAIR ESTIMATOR'!AJ881","v":{"v":0,"d":"$0.00"}}]
[null,null,{"$f":"T('2 REPAIR ESTIMATOR'!D882:O882)","v":""},{"$nulls":5},{"$f":"'2 REPAIR ESTIMATOR'!P882","v":0},{"$f":"'2 REPAIR ESTIMATOR'!S882","v":0},{"v":0,"d":"$0"},{"v":0,"d":"$0"},{"v":0,"d":"$0"},{"v":0,"d":"$0"},null,0,null,null,{"$f":"'2 REPAIR ESTIMATOR'!AD882","v":{"v":0,"d":"$0.00"}},{"$f":"'2 REPAIR ESTIMATOR'!AM882","v":{"v":0,"d":"$0.00"}},{"v":0,"d":"$0.00"},{"$f":"'2 REPAIR ESTIMATOR'!AG882","v":{"v":0,"d":"$0.00"}},{"$f":"'2 REPAIR ESTIMATOR'!AJ882","v":{"v":0,"d":"$0.00"}}]
[null,null,{"$f":"T('2 REPAIR ESTIMATOR'!D883:O883)","v":""},{"$nulls":5},{"$f":"'2 REPAIR ESTIMATOR'!P883","v":0},{"$f":"'2 REPAIR ESTIMATOR'!S883","v":0},{"v":0,"d":"$0"},{"v":0,"d":"$0"},{"v":0,"d":"$0"},{"v":0,"d":"$0"},null,0,null,null,{"$f":"'2 REPAIR ESTIMATOR'!AD883","v":{"v":0,"d":"$0.00"}},{"$f":"'2 REPAIR ESTIMATOR'!AM883","v":{"v":0,"d":"$0.00"}},{"v":0,"d":"$0.00"},{"$f":"'2 REPAIR ESTIMATOR'!AG883","v":{"v":0,"d":"$0.00"}},{"$f":"'2 REPAIR ESTIMATOR'!AJ883","v":{"v":0,"d":"$0.00"}}]
[null,null,{"$f":"T('2 REPAIR ESTIMATOR'!D884:O884)","v":""},{"$nulls":5},{"$f":"'2 REPAIR ESTIMATOR'!P884","v":0},{"$f":"'2 REPAIR ESTIMATOR'!S884","v":0},{"v":0,"d":"$0"},{"v":0,"d":"$0"},{"v":0,"d":"$0"},{"v":0,"d":"$0"},null,0,null,null,{"$f":"'2 REPAIR ESTIMATOR'!AD884","v":{"v":0,"d":"$0.00"}},{"$f":"'2 REPAIR ESTIMATOR'!AM884","v":{"v":0,"d":"$0.00"}},{"v":0,"d":"$0.00"},{"$f":"'2 REPAIR ESTIMATOR'!AG884","v":{"v":0,"d":"$0.00"}},{"$f":"'2 REPAIR ESTIMATOR'!AJ884","v":{"v":0,"d":"$0.00"}}]
[null,null,{"$f":"T('2 REPAIR ESTIMATOR'!D885:O885)","v":""},{"$nulls":5},{"$f":"'2 REPAIR ESTIMATOR'!P885","v":0},{"$f":"'2 REPAIR ESTIMATOR'!S885","v":0},{"v":0,"d":"$0"},{"v":0,"d":"$0"},{"v":0,"d":"$0"},{"v":0,"d":"$0"},null,0,null,null,{"$f":"'2 REPAIR ESTIMATOR'!AD885","v":{"v":0,"d":"$0.00"}},{"$f":"'2 REPAIR ESTIMATOR'!AM885","v":{"v":0,"d":"$0.00"}},{"v":0,"d":"$0.00"},{"$f":"'2 REPAIR ESTIMATOR'!AG885","v":{"v":0,"d":"$0.00"}},{"$f":"'2 REPAIR ESTIMATOR'!AJ885","v":{"v":0,"d":"$0.00"}}]
[null,null,{"$f":"T('2 REPAIR ESTIMATOR'!D886:O886)","v":""},{"$nulls":5},{"$f":"'2 REPAIR ESTIMATOR'!P886","v":0},{"$f":"'2 REPAIR ESTIMATOR'!S886","v":0},{"v":0,"d":"$0"},{"v":0,"d":"$0"},{"v":0,"d":"$0"},{"v":0,"d":"$0"},null,0,null,null,{"$f":"'2 REPAIR ESTIMATOR'!AD886","v":{"v":0,"d":"$0.00"}},{"$f":"'2 REPAIR ESTIMATOR'!AM886","v":{"v":0,"d":"$0.00"}},{"v":0,"d":"$0.00"},{"$f":"'2 REPAIR ESTIMATOR'!AG886","v":{"v":0,"d":"$0.00"}},{"$f":"'2 REPAIR ESTIMATOR'!AJ886","v":{"v":0,"d":"$0.00"}}]
[null,null,{"$f":"T('2 REPAIR ESTIMATOR'!D887:O887)","v":""},{"$nulls":5},{"$f":"'2 REPAIR ESTIMATOR'!P887","v":0},{"$f":"'2 REPAIR ESTIMATOR'!S887","v":0},{"v":0,"d":"$0"},{"v":0,"d":"$0"},{"v":0,"d":"$0"},{"v":0,"d":"$0"},null,0,null,null,{"$f":"'2 REPAIR ESTIMATOR'!AD887","v":{"v":0,"d":"$0.00"}},{"$f":"'2 REPAIR ESTIMATOR'!AM887","v":{"v":0,"d":"$0.00"}},{"v":0,"d":"$0.00"},{"$f":"'2 REPAIR ESTIMATOR'!AG887","v":{"v":0,"d":"$0.00"}},{"$f":"'2 REPAIR ESTIMATOR'!AJ887","v":{"v":0,"d":"$0.00"}}]
[null,null,{"$f":"T('2 REPAIR ESTIMATOR'!D888:O888)","v":""},{"$nulls":5},{"$f":"'2 REPAIR ESTIMATOR'!P888","v":0},{"$f":"'2 REPAIR ESTIMATOR'!S888","v":0},{"v":0,"d":"$0"},{"v":0,"d":"$0"},{"v":0,"d":"$0"},{"v":0,"d":"$0"},null,0,null,null,{"$f":"'2 REPAIR ESTIMATOR'!AD888","v":{"v":0,"d":"$0.00"}},{"$f":"'2 REPAIR ESTIMATOR'!AM888","v":{"v":0,"d":"$0.00"}},{"v":0,"d":"$0.00"},{"$f":"'2 REPAIR ESTIMATOR'!AG888","v":{"v":0,"d":"$0.00"}},{"$f":"'2 REPAIR ESTIMATOR'!AJ888","v":{"v":0,"d":"$0.00"}}]
[null,null,{"$f":"T('2 REPAIR ESTIMATOR'!D889:O889)","v":""},{"$nulls":5},{"$f":"'2 REPAIR ESTIMATOR'!P889","v":0},{"$f":"'2 REPAIR ESTIMATOR'!S889","v":0},{"v":0,"d":"$0"},{"v":0,"d":"$0"},{"v":0,"d":"$0"},{"v":0,"d":"$0"},null,{"$f":"I840","v":0},null,null,{"$f":"'2 REPAIR ESTIMATOR'!AD889","v":{"v":0,"d":"$0.00"}},{"$f":"'2 REPAIR ESTIMATOR'!AM889","v":{"v":0,"d":"$0.00"}},{"v":0,"d":"$0.00"},{"$f":"'2 REPAIR ESTIMATOR'!AG889","v":{"v":0,"d":"$0.00"}},{"$f":"'2 REPAIR ESTIMATOR'!AJ889","v":{"v":0,"d":"$0.00"}}]
[null,null,{"$f":"T('2 REPAIR ESTIMATOR'!D890:O890)","v":""},{"$nulls":5},{"$f":"'2 REPAIR ESTIMATOR'!P890","v":0},{"$f":"'2 REPAIR ESTIMATOR'!S890","v":0},{"v":0,"d":"$0"},{"v":0,"d":"$0"},{"v":0,"d":"$0"},{"v":0,"d":"$0"},null,{"$f":"I841","v":0},null,null,{"$f":"'2 REPAIR ESTIMATOR'!AD890","v":{"v":0,"d":"$0.00"}},{"$f":"'2 REPAIR ESTIMATOR'!AM890","v":{"v":0,"d":"$0.00"}},{"v":0,"d":"$0.00"},{"$f":"'2 REPAIR ESTIMATOR'!AG890","v":{"v":0,"d":"$0.00"}},{"$f":"'2 REPAIR ESTIMATOR'!AJ890","v":{"v":0,"d":"$0.00"}}]
[null,null,{"$f":"T('2 REPAIR ESTIMATOR'!D891:O891)","v":""},{"$nulls":5},{"$f":"'2 REPAIR ESTIMATOR'!P891","v":0},{"$f":"'2 REPAIR ESTIMATOR'!S891","v":0},{"v":0,"d":"$0"},{"v":0,"d":"$0"},{"v":0,"d":"$0"},{"v":0,"d":"$0"},null,{"$f":"I842","v":0},null,null,{"$f":"'2 REPAIR ESTIMATOR'!AD891","v":{"v":0,"d":"$0.00"}},{"$f":"'2 REPAIR ESTIMATOR'!AM891","v":{"v":0,"d":"$0.00"}},{"v":0,"d":"$0.00"},{"$f":"'2 REPAIR ESTIMATOR'!AG891","v":{"v":0,"d":"$0.00"}},{"$f":"'2 REPAIR ESTIMATOR'!AJ891","v":{"v":0,"d":"$0.00"}}]
[null,null,{"$f":"T('2 REPAIR ESTIMATOR'!D892:O892)","v":""},{"$nulls":5},{"$f":"'2 REPAIR ESTIMATOR'!P892","v":0},{"$f":"'2 REPAIR ESTIMATOR'!S892","v":0},{"v":0,"d":"$0"},{"v":0,"d":"$0"},{"v":0,"d":"$0"},{"v":0,"d":"$0"},null,{"$f":"I843","v":0},null,null,{"$f":"'2 REPAIR ESTIMATOR'!AD892","v":{"v":0,"d":"$0.00"}},{"$f":"'2 REPAIR ESTIMATOR'!AM892","v":{"v":0,"d":"$0.00"}},{"v":0,"d":"$0.00"},{"$f":"'2 REPAIR ESTIMATOR'!AG892","v":{"v":0,"d":"$0.00"}},{"$f":"'2 REPAIR ESTIMATOR'!AJ892","v":{"v":0,"d":"$0.00"}}]
[null,null,{"$f":"T('2 REPAIR ESTIMATOR'!AC894)","v":"TILING TOTAL"},{"$nulls":7},{"$f":"SUM(K804:K843)","v":{"v":1625,"d":"$1,625"}},{"$f":"SUM(L804:L843)","v":{"v":2279.1000000000004,"d":"$2,279"}},{"$f":"SUM(M804:M843)","v":{"v":0,"d":"$0"}},{"$f":"SUM(N804:O843)","v":{"v":3904.1000000000004,"d":"$3,904"}},null,{"$f":"SUM(P803:P823)","v":600},null,null,{"$f":"SUM(S804:S843)","v":{"v":1625,"d":"$1,625.00"}},{"$f":"SUM(T804:T843)","v":{"v":0,"d":"$0.00"}},{"$f":"SUM(U804:U843)","v":{"v":1625,"d":"$1,625.00"}},{"$f":"SUM(V804:V843)","v":{"v":2279.1000000000004,"d":"$2,279.10"}},{"$f":"SUM(W804:W843)","v":{"v":0,"d":"$0.00"}}]
[{"$nulls":15},{"$f":"P844","v":600}]
[null,null,{"$f":"T('2 REPAIR ESTIMATOR'!D897:O897)","v":"PAINTING"},{"$nulls":5},{"$f":"SUM(I847:I886)","v":2},{"$nulls":6},2]
[null,null,{"$f":"T('2 REPAIR ESTIMATOR'!D898:O898)","v":"Exterior Painting"},{"$nulls":5},{"$f":"'2 REPAIR ESTIMATOR'!P898","v":0},{"$f":"'2 REPAIR ESTIMATOR'!S898","v":0},{"$f":"IF($N$3=\"subbed\",U847,S847)*$S$70","v":{"v":0,"d":"$0"}},{"$f":"V847*$S$70","v":{"v":0,"d":"$0"}},{"$f":"W847*$S$70","v":{"v":0,"d":"$0"}},{"$f":"SUM(K847:M847)","v":{"v":0,"d":"$0"}},null,0,null,null,{"$f":"'2 REPAIR ESTIMATOR'!AD898","v":{"v":0,"d":"$0.00"}},{"$f":"'2 REPAIR ESTIMATOR'!AM898","v":{"v":0,"d":"$0.00"}},{"$f":"T847+S847","v":{"v":0,"d":"$0.00"}},{"$f":"'2 REPAIR ESTIMATOR'!AG898","v":{"v":0,"d":"$0.00"}},{"$f":"'2 REPAIR ESTIMATOR'!AJ898","v":{"v":0,"d":"$0.00"}}]
[null,null,{"$f":"T('2 REPAIR ESTIMATOR'!D899:O899)","v":"Exterior painting, bid/allowance"},{"$nulls":5},{"$f":"'2 REPAIR ESTIMATOR'!P899","v":1},{"$f":"'2 REPAIR ESTIMATOR'!S899","v":"ls"},{"v":2000,"d":"$2,000"},{"$f":"V848*$S$70","v":{"v":0,"d":"$0"}},{"$f":"W848*$S$70","v":{"v":0,"d":"$0"}},{"$f":"SUM(K848:M848)","v":{"v":2000,"d":"$2,000"}},null,1,null,null,{"$f":"'2 REPAIR ESTIMATOR'!AD899","v":{"v":2000,"d":"$2,000.00"}},{"$f":"'2 REPAIR ESTIMATOR'!AM899","v":{"v":0,"d":"$0.00"}},{"$f":"T848+S848","v":{"v":2000,"d":"$2,000.00"}},{"$f":"'2 REPAIR ESTIMATOR'!AG899","v":{"v":0,"d":"$0.00"}},{"$f":"'2 REPAIR ESTIMATOR'!AJ899","v":{"v":0,"d":"$0.00"}}]
[null,null,{"$f":"T('2 REPAIR ESTIMATOR'!D900:O900)","v":"Exterior painting materials allowance"},{"$nulls":5},{"$f":"'2 REPAIR ESTIMATOR'!P900","v":0},{"$f":"'2 REPAIR ESTIMATOR'!S900","v":"gal"},{"v":0,"d":"$0"},{"v":0,"d":"$0"},{"v":0,"d":"$0"},{"v":0,"d":"$0"},null,0,null,null,{"$f":"'2 REPAIR ESTIMATOR'!AD900","v":{"v":0,"d":"$0.00"}},{"$f":"'2 REPAIR ESTIMATOR'!AM900","v":{"v":0,"d":"$0.00"}},{"v":0,"d":"$0.00"},{"$f":"'2 REPAIR ESTIMATOR'!AG900","v":{"v":0,"d":"$0.00"}},{"$f":"'2 REPAIR ESTIMATOR'!AJ900","v":{"v":0,"d":"$0.00"}}]
[null,null,{"$f":"T('2 REPAIR ESTIMATOR'!D901:O901)","v":"Prep/clean siding"},{"$nulls":5},{"$f":"'2 REPAIR ESTIMATOR'!P901","v":0},{"$f":"'2 REPAIR ESTIMATOR'!S901","v":"sf"},{"v":0,"d":"$0"},{"v":0,"d":"$0"},{"v":0,"d":"$0"},{"v":0,"d":"$0"},null,0,null,null,{"$f":"'2 REPAIR ESTIMATOR'!AD901","v":{"v":0,"d":"$0.00"}},{"$f":"'2 REPAIR ESTIMATOR'!AM901","v":{"v":0,"d":"$0.00"}},{"v":0,"d":"$0.00"},{"$f":"'2 REPAIR ESTIMATOR'!AG901","v":{"v":0,"d":"$0.00"}},{"$f":"'2 REPAIR ESTIMATOR'!AJ901","v":{"v":0,"d":"$0.00"}}]
[null,null,{"$f":"T('2 REPAIR ESTIMATOR'!D902:O902)","v":"Paint siding"},{"$nulls":5},{"$f":"'2 REPAIR ESTIMATOR'!P902","v":0},{"$f":"'2 REPAIR ESTIMATOR'!S902","v":"sf"},{"v":0,"d":"$0"},{"v":0,"d":"$0"},{"v":0,"d":"$0"},{"v":0,"d":"$0"},null,0,null,null,{"$f":"'2 REPAIR ESTIMATOR'!AD902","v":{"v":0,"d":"$0.00"}},{"$f":"'2 REPAIR ESTIMATOR'!AM902","v":{"v":0,"d":"$0.00"}},{"v":0,"d":"$0.00"},{"$f":"'2 REPAIR ESTIMATOR'!AG902","v":{"v":0,"d":"$0.00"}},{"$f":"'2 REPAIR ESTIMATOR'!AJ902","v":{"v":0,"d":"$0.00"}}]
[null,null,{"$f":"T('2 REPAIR ESTIMATOR'!D903:O903)","v":"Paint exterior door"},{"$nulls":5},{"$f":"'2 REPAIR ESTIMATOR'!P903","v":0},{"$f":"'2 REPAIR ESTIMATOR'!S903","v":"ea"},{"v":0,"d":"$0"},{"v":0,"d":"$0"},{"v":0,"d":"$0"},{"v":0,"d":"$0"},null,0,null,null,{"$f":"'2 REPAIR ESTIMATOR'!AD903","v":{"v":0,"d":"$0.00"}},{"$f":"'2 REPAIR ESTIMATOR'!AM903","v":{"v":0,"d":"$0.00"}},{"v":0,"d":"$0.00"},{"$f":"'2 REPAIR ESTIMATOR'!AG903","v":{"v":0,"d":"$0.00"}},{"$f":"'2 REPAIR ESTIMATOR'!AJ903","v":{"v":0,"d":"$0.00"}}]
[null,null,{"$f":"T('2 REPAIR ESTIMATOR'!D904:O904)","v":"Paint trim only"},{"$nulls":5},{"$f":"'2 REPAIR ESTIMATOR'!P904","v":0},{"$f":"'2 REPAIR ESTIMATOR'!S904","v":"lf"},{"v":0,"d":"$0"},{"v":0,"d":"$0"},{"v":0,"d":"$0"},{"v":0,"d":"$0"},null,0,null,null,{"$f":"'2 REPAIR ESTIMATOR'!AD904","v":{"v":0,"d":"$0.00"}},{"$f":"'2 REPAIR ESTIMATOR'!AM904","v":{"v":0,"d":"$0.00"}},{"v":0,"d":"$0.00"},{"$f":"'2 REPAIR ESTIMATOR'!AG904","v":{"v":0,"d":"$0.00"}},{"$f":"'2 REPAIR ESTIMATOR'!AJ904","v":{"v":0,"d":"$0.00"}}]
[null,null,{"$f":"T('2 REPAIR ESTIMATOR'!D905:O905)","v":"Sand & refinish decking"},{"$nulls":5},{"$f":"'2 REPAIR ESTIMATOR'!P905","v":0},{"$f":"'2 REPAIR ESTIMATOR'!S905","v":"sf"},{"v":0,"d":"$0"},{"v":0,"d":"$0"},{"v":0,"d":"$0"},{"v":0,"d":"$0"},null,0,null,null,{"$f":"'2 REPAIR ESTIMATOR'!AD905","v":{"v":0,"d":"$0.00"}},{"$f":"'2 REPAIR ESTIMATOR'!AM905","v":{"v":0,"d":"$0.00"}},{"v":0,"d":"$0.00"},{"$f":"'2 REPAIR ESTIMATOR'!AG905","v":{"v":0,"d":"$0.00"}},{"$f":"'2 REPAIR ESTIMATOR'!AJ905","v":{"v":0,"d":"$0.00"}}]
[null,null,{"$f":"T('2 REPAIR ESTIMATOR'!D906:O906)","v":""},{"$nulls":5},{"$f":"'2 REPAIR ESTIMATOR'!P906","v":0},{"$f":"'2 REPAIR ESTIMATOR'!S906","v":0},{"v":0,"d":"$0"},{"v":0,"d":"$0"},{"v":0,"d":"$0"},{"v":0,"d":"$0"},null,0,null,null,{"$f":"'2 REPAIR ESTIMATOR'!AD906","v":{"v":0,"d":"$0.00"}},{"$f":"'2 REPAIR ESTIMATOR'!AM906","v":{"v":0,"d":"$0.00"}},{"v":0,"d":"$0.00"},{"$f":"'2 REPAIR ESTIMATOR'!AG906","v":{"v":0,"d":"$0.00"}},{"$f":"'2 REPAIR ESTIMATOR'!AJ906","v":{"v":0,"d":"$0.00"}}]
[null,null,{"$f":"T('2 REPAIR ESTIMATOR'!D907:O907)","v":""},{"$nulls":5},{"$f":"'2 REPAIR ESTIMATOR'!P907","v":0},{"$f":"'2 REPAIR ESTIMATOR'!S907","v":0},{"v":0,"d":"$0"},{"v":0,"d":"$0"},{"v":0,"d":"$0"},{"v":0,"d":"$0"},null,0,null,null,{"$f":"'2 REPAIR ESTIMATOR'!AD907","v":{"v":0,"d":"$0.00"}},{"$f":"'2 REPAIR ESTIMATOR'!AM907","v":{"v":0,"d":"$0.00"}},{"v":0,"d":"$0.00"},{"$f":"'2 REPAIR ESTIMATOR'!AG907","v":{"v":0,"d":"$0.00"}},{"$f":"'2 REPAIR ESTIMATOR'!AJ907","v":{"v":0,"d":"$0.00"}}]
[null,null,{"$f":"T('2 REPAIR ESTIMATOR'!D908:O908)","v":"Interior Painting"},{"$nulls":5},{"$f":"'2 REPAIR ESTIMATOR'!P908","v":0},{"$f":"'2 REPAIR ESTIMATOR'!S908","v":0},{"v":0,"d":"$0"},{"v":0,"d":"$0"},{"v":0,"d":"$0"},{"v":0,"d":"$0"},null,0,null,null,{"$f":"'2 REPAIR ESTIMATOR'!AD908","v":{"v":0,"d":"$0.00"}},{"$f":"'2 REPAIR ESTIMATOR'!AM908","v":{"v":0,"d":"$0.00"}},{"v":0,"d":"$0.00"},{"$f":"'2 REPAIR ESTIMATOR'!AG908","v":{"v":0,"d":"$0.00"}},{"$f":"'2 REPAIR ESTIMATOR'!AJ908","v":{"v":0,"d":"$0.00"}}]
[null,null,{"$f":"T('2 REPAIR ESTIMATOR'!D909:O909)","v":"Interior painting, bid/allowance"},{"$nulls":5},{"$f":"'2 REPAIR ESTIMATOR'!P909","v":1},{"$f":"'2 REPAIR ESTIMATOR'!S909","v":"ls"},{"v":2000,"d":"$2,000"},{"v":0,"d":"$0"},{"v":0,"d":"$0"},{"v":2000,"d":"$2,000"},null,1,null,null,{"$f":"'2 REPAIR ESTIMATOR'!AD909","v":{"v":2000,"d":"$2,000.00"}},{"$f":"'2 REPAIR ESTIMATOR'!AM909","v":{"v":0,"d":"$0.00"}},{"v":2000,"d":"$2,000.00"},{"$f":"'2 REPAIR ESTIMATOR'!AG909","v":{"v":0,"d":"$0.00"}},{"$f":"'2 REPAIR ESTIMATOR'!AJ909","v":{"v":0,"d":"$0.00"}}]
[null,null,{"$f":"T('2 REPAIR ESTIMATOR'!D910:O910)","v":"Interior painting materials allowance"},{"$nulls":5},{"$f":"'2 REPAIR ESTIMATOR'!P910","v":0},{"$f":"'2 REPAIR ESTIMATOR'!S910","v":"gal"},{"v":0,"d":"$0"},{"v":0,"d":"$0"},{"v":0,"d":"$0"},{"v":0,"d":"$0"},null,0,null,null,{"$f":"'2 REPAIR ESTIMATOR'!AD910","v":{"v":0,"d":"$0.00"}},{"$f":"'2 REPAIR ESTIMATOR'!AM910","v":{"v":0,"d":"$0.00"}},{"v":0,"d":"$0.00"},{"$f":"'2 REPAIR ESTIMATOR'!AG910","v":{"v":0,"d":"$0.00"}},{"$f":"'2 REPAIR ESTIMATOR'!AJ910","v":{"v":0,"d":"$0.00"}}]
[null,null,{"$f":"T('2 REPAIR ESTIMATOR'!D911:O911)","v":"Paint doors & frames"},{"$nulls":5},{"$f":"'2 REPAIR ESTIMATOR'!P911","v":0},{"$f":"'2 REPAIR ESTIMATOR'!S911","v":"ea"},{"v":0,"d":"$0"},{"v":0,"d":"$0"},{"v":0,"d":"$0"},{"v":0,"d":"$0"},null,0,null,null,{"$f":"'2 REPAIR ESTIMATOR'!AD911","v":{"v":0,"d":"$0.00"}},{"$f":"'2 REPAIR ESTIMATOR'!AM911","v":{"v":0,"d":"$0.00"}},{"v":0,"d":"$0.00"},{"$f":"'2 REPAIR ESTIMATOR'!AG911","v":{"v":0,"d":"$0.00"}},{"$f":"'2 REPAIR ESTIMATOR'!AJ911","v":{"v":0,"d":"$0.00"}}]
[null,null,{"$f":"T('2 REPAIR ESTIMATOR'!D912:O912)","v":"Paint walls"},{"$nulls":5},{"$f":"'2 REPAIR ESTIMATOR'!P912","v":0},{"$f":"'2 REPAIR ESTIMATOR'!S912","v":"sf"},{"v":0,"d":"$0"},{"v":0,"d":"$0"},{"v":0,"d":"$0"},{"v":0,"d":"$0"},null,0,null,null,{"$f":"'2 REPAIR ESTIMATOR'!AD912","v":{"v":0,"d":"$0.00"}},{"$f":"'2 REPAIR ESTIMATOR'!AM912","v":{"v":0,"d":"$0.00"}},{"v":0,"d":"$0.00"},{"$f":"'2 REPAIR ESTIMATOR'!AG912","v":{"v":0,"d":"$0.00"}},{"$f":"'2 REPAIR ESTIMATOR'!AJ912","v":{"v":0,"d":"$0.00"}}]
[null,null,{"$f":"T('2 REPAIR ESTIMATOR'!D913:O913)","v":"Paint ceilings"},{"$nulls":5},{"$f":"'2 REPAIR ESTIMATOR'!P913","v":0},{"$f":"'2 REPAIR ESTIMATOR'!S913","v":"sf"},{"v":0,"d":"$0"},{"v":0,"d":"$0"},{"v":0,"d":"$0"},{"v":0,"d":"$0"},null,0,null,null,{"$f":"'2 REPAIR ESTIMATOR'!AD913","v":{"v":0,"d":"$0.00"}},{"$f":"'2 REPAIR ESTIMATOR'!AM913","v":{"v":0,"d":"$0.00"}},{"v":0,"d":"$0.00"},{"$f":"'2 REPAIR ESTIMATOR'!AG913","v":{"v":0,"d":"$0.00"}},{"$f":"'2 REPAIR ESTIMATOR'!AJ913","v":{"v":0,"d":"$0.00"}}]
[null,null,{"$f":"T('2 REPAIR ESTIMATOR'!D914:O914)","v":"Paint wood base"},{"$nulls":5},{"$f":"'2 REPAIR ESTIMATOR'!P914","v":0},{"$f":"'2 REPAIR ESTIMATOR'!S914","v":"lf"},{"v":0,"d":"$0"},{"v":0,"d":"$0"},{"v":0,"d":"$0"},{"v":0,"d":"$0"},null,0,null,null,{"$f":"'2 REPAIR ESTIMATOR'!AD914","v":{"v":0,"d":"$0.00"}},{"$f":"'2 REPAIR ESTIMATOR'!AM914","v":{"v":0,"d":"$0.00"}},{"v":0,"d":"$0.00"},{"$f":"'2 REPAIR ESTIMATOR'!AG914","v":{"v":0,"d":"$0.00"}},{"$f":"'2 REPAIR ESTIMATOR'!AJ914","v":{"v":0,"d":"$0.00"}}]
[null,null,{"$f":"T('2 REPAIR ESTIMATOR'!D915:O915)","v":"Strip, paint cabinets/vanities"},{"$nulls":5},{"$f":"'2 REPAIR ESTIMATOR'!P915","v":0},{"$f":"'2 REPAIR ESTIMATOR'!S915","v":"sf"},{"v":0,"d":"$0"},{"v":0,"d":"$0"},{"v":0,"d":"$0"},{"v":0,"d":"$0"},null,0,null,null,{"$f":"'2 REPAIR ESTIMATOR'!AD915","v":{"v":0,"d":"$0.00"}},{"$f":"'2 REPAIR ESTIMATOR'!AM915","v":{"v":0,"d":"$0.00"}},{"v":0,"d":"$0.00"},{"$f":"'2 REPAIR ESTIMATOR'!AG915","v":{"v":0,"d":"$0.00"}},{"$f":"'2 REPAIR ESTIMATOR'!AJ915","v":{"v":0,"d":"$0.00"}}]
[null,null,{"$f":"T('2 REPAIR ESTIMATOR'!D916:O916)","v":""},{"$nulls":5},{"$f":"'2 REPAIR ESTIMATOR'!P916","v":0},{"$f":"'2 REPAIR ESTIMATOR'!S916","v":0},{"v":0,"d":"$0"},{"v":0,"d":"$0"},{"v":0,"d":"$0"},{"v":0,"d":"$0"},null,0,null,null,{"$f":"'2 REPAIR ESTIMATOR'!AD916","v":{"v":0,"d":"$0.00"}},{"$f":"'2 REPAIR ESTIMATOR'!AM916","v":{"v":0,"d":"$0.00"}},{"v":0,"d":"$0.00"},{"$f":"'2 REPAIR ESTIMATOR'!AG916","v":{"v":0,"d":"$0.00"}},{"$f":"'2 REPAIR ESTIMATOR'!AJ916","v":{"v":0,"d":"$0.00"}}]
[null,null,{"$f":"T('2 REPAIR ESTIMATOR'!D917:O917)","v":""},{"$nulls":5},{"$f":"'2 REPAIR ESTIMATOR'!P917","v":0},{"$f":"'2 REPAIR ESTIMATOR'!S917","v":0},{"v":0,"d":"$0"},{"v":0,"d":"$0"},{"v":0,"d":"$0"},{"v":0,"d":"$0"},null,0,null,null,{"$f":"'2 REPAIR ESTIMATOR'!AD917","v":{"v":0,"d":"$0.00"}},{"$f":"'2 REPAIR ESTIMATOR'!AM917","v":{"v":0,"d":"$0.00"}},{"v":0,"d":"$0.00"},{"$f":"'2 REPAIR ESTIMATOR'!AG917","v":{"v":0,"d":"$0.00"}},{"$f":"'2 REPAIR ESTIMATOR'!AJ917","v":{"v":0,"d":"$0.00"}}]
[null,null,{"$f":"T('2 REPAIR ESTIMATOR'!D918:O918)","v":""},{"$nulls":5},{"$f":"'2 REPAIR ESTIMATOR'!P918","v":0},{"$f":"'2 REPAIR ESTIMATOR'!S918","v":0},{"v":0,"d":"$0"},{"v":0,"d":"$0"},{"v":0,"d":"$0"},{"v":0,"d":"$0"},null,{"$f":"I867","v":0},null,null,{"$f":"'2 REPAIR ESTIMATOR'!AD918","v":{"v":0,"d":"$0.00"}},{"$f":"'2 REPAIR ESTIMATOR'!AM918","v":{"v":0,"d":"$0.00"}},{"v":0,"d":"$0.00"},{"$f":"'2 REPAIR ESTIMATOR'!AG918","v":{"v":0,"d":"$0.00"}},{"$f":"'2 REPAIR ESTIMATOR'!AJ918","v":{"v":0,"d":"$0.00"}}]
[null,null,{"$f":"T('2 REPAIR ESTIMATOR'!D919:O919)","v":""},{"$nulls":5},{"$f":"'2 REPAIR ESTIMATOR'!P919","v":0},{"$f":"'2 REPAIR ESTIMATOR'!S919","v":0},{"v":0,"d":"$0"},{"v":0,"d":"$0"},{"v":0,"d":"$0"},{"v":0,"d":"$0"},null,0,null,null,{"$f":"'2 REPAIR ESTIMATOR'!AD919","v":{"v":0,"d":"$0.00"}},{"$f":"'2 REPAIR ESTIMATOR'!AM919","v":{"v":0,"d":"$0.00"}},{"v":0,"d":"$0.00"},{"$f":"'2 REPAIR ESTIMATOR'!AG919","v":{"v":0,"d":"$0.00"}},{"$f":"'2 REPAIR ESTIMATOR'!AJ919","v":{"v":0,"d":"$0.00"}}]
[null,null,{"$f":"T('2 REPAIR ESTIMATOR'!D920:O920)","v":""},{"$nulls":5},{"$f":"'2 REPAIR ESTIMATOR'!P920","v":0},{"$f":"'2 REPAIR ESTIMATOR'!S920","v":0},{"v":0,"d":"$0"},{"v":0,"d":"$0"},{"v":0,"d":"$0"},{"v":0,"d":"$0"},null,0,null,null,{"$f":"'2 REPAIR ESTIMATOR'!AD920","v":{"v":0,"d":"$0.00"}},{"$f":"'2 REPAIR ESTIMATOR'!AM920","v":{"v":0,"d":"$0.00"}},{"v":0,"d":"$0.00"},{"$f":"'2 REPAIR ESTIMATOR'!AG920","v":{"v":0,"d":"$0.00"}},{"$f":"'2 REPAIR ESTIMATOR'!AJ920","v":{"v":0,"d":"$0.00"}}]
[null,null,{"$f":"T('2 REPAIR ESTIMATOR'!D921:O921)","v":""},{"$nulls":5},{"$f":"'2 REPAIR ESTIMATOR'!P921","v":0},{"$f":"'2 REPAIR ESTIMATOR'!S921","v":0},{"v":0,"d":"$0"},{"v":0,"d":"$0"},{"v":0,"d":"$0"},{"v":0,"d":"$0"},null,0,null,null,{"$f":"'2 REPAIR ESTIMATOR'!AD921","v":{"v":0,"d":"$0.00"}},{"$f":"'2 REPAIR ESTIMATOR'!AM921","v":{"v":0,"d":"$0.00"}},{"v":0,"d":"$0.00"},{"$f":"'2 REPAIR ESTIMATOR'!AG921","v":{"v":0,"d":"$0.00"}},{"$f":"'2 REPAIR ESTIMATOR'!AJ921","v":{"v":0,"d":"$0.00"}}]
[null,null,{"$f":"T('2 REPAIR ESTIMATOR'!D922:O922)","v":""},{"$nulls":5},{"$f":"'2 REPAIR ESTIMATOR'!P922","v":0},{"$f":"'2 REPAIR ESTIMATOR'!S922","v":0},{"v":0,"d":"$0"},{"v":0,"d":"$0"},{"v":0,"d":"$0"},{"v":0,"d":"$0"},null,0,null,null,{"$f":"'2 REPAIR ESTIMATOR'!AD922","v":{"v":0,"d":"$0.00"}},{"$f":"'2 REPAIR ESTIMATOR'!AM922","v":{"v":0,"d":"$0.00"}},{"v":0,"d":"$0.00"},{"$f":"'2 REPAIR ESTIMATOR'!AG922","v":{"v":0,"d":"$0.00"}},{"$f":"'2 REPAIR ESTIMATOR'!AJ922","v":{"v":0,"d":"$0.00"}}]
[null,null,{"$f":"T('2 REPAIR ESTIMATOR'!D923:O923)","v":""},{"$nulls":5},{"$f":"'2 REPAIR ESTIMATOR'!P923","v":0},{"$f":"'2 REPAIR ESTIMATOR'!S923","v":0},{"v":0,"d":"$0"},{"v":0,"d":"$0"},{"v":0,"d":"$0"},{"v":0,"d":"$0"},null,0,null,null,{"$f":"'2 REPAIR ESTIMATOR'!AD923","v":{"v":0,"d":"$0.00"}},{"$f":"'2 REPAIR ESTIMATOR'!AM923","v":{"v":0,"d":"$0.00"}},{"v":0,"d":"$0.00"},{"$f":"'2 REPAIR ESTIMATOR'!AG923","v":{"v":0,"d":"$0.00"}},{"$f":"'2 REPAIR ESTIMATOR'!AJ923","v":{"v":0,"d":"$0.00"}}]
[null,null,{"$f":"T('2 REPAIR ESTIMATOR'!D924:O924)","v":""},{"$nulls":5},{"$f":"'2 REPAIR ESTIMATOR'!P924","v":0},{"$f":"'2 REPAIR ESTIMATOR'!S924","v":0},{"v":0,"d":"$0"},{"v":0,"d":"$0"},{"v":0,"d":"$0"},{"v":0,"d":"$0"},null,0,null,null,{"$f":"'2 REPAIR ESTIMATOR'!AD924","v":{"v":0,"d":"$0.00"}},{"$f":"'2 REPAIR ESTIMATOR'!AM924","v":{"v":0,"d":"$0.00"}},{"v":0,"d":"$0.00"},{"$f":"'2 REPAIR ESTIMATOR'!AG924","v":{"v":0,"d":"$0.00"}},{"$f":"'2 REPAIR ESTIMATOR'!AJ924","v":{"v":0,"d":"$0.00"}}]
[null,null,{"$f":"T('2 REPAIR ESTIMATOR'!D925:O925)","v":""},{"$nulls":5},{"$f":"'2 REPAIR ESTIMATOR'!P925","v":0},{"$f":"'2 REPAIR ESTIMATOR'!S925","v":0},{"v":0,"d":"$0"},{"v":0,"d":"$0"},{"v":0,"d":"$0"},{"v":0,"d":"$0"},null,0,null,null,{"$f":"'2 REPAIR ESTIMATOR'!AD925","v":{"v":0,"d":"$0.00"}},{"$f":"'2 REPAIR ESTIMATOR'!AM925","v":{"v":0,"d":"$0.00"}},{"v":0,"d":"$0.00"},{"$f":"'2 REPAIR ESTIMATOR'!AG925","v":{"v":0,"d":"$0.00"}},{"$f":"'2 REPAIR ESTIMATOR'!AJ925","v":{"v":0,"d":"$0.00"}}]
[null,null,{"$f":"T('2 REPAIR ESTIMATOR'!D926:O926)","v":""},{"$nulls":5},{"$f":"'2 REPAIR ESTIMATOR'!P926","v":0},{"$f":"'2 REPAIR ESTIMATOR'!S926","v":0},{"v":0,"d":"$0"},{"v":0,"d":"$0"},{"v":0,"d":"$0"},{"v":0,"d":"$0"},null,0,null,null,{"$f":"'2 REPAIR ESTIMATOR'!AD926","v":{"v":0,"d":"$0.00"}},{"$f":"'2 REPAIR ESTIMATOR'!AM926","v":{"v":0,"d":"$0.00"}},{"v":0,"d":"$0.00"},{"$f":"'2 REPAIR ESTIMATOR'!AG926","v":{"v":0,"d":"$0.00"}},{"$f":"'2 REPAIR ESTIMATOR'!AJ926","v":{"v":0,"d":"$0.00"}}]
[null,null,{"$f":"T('2 REPAIR ESTIMATOR'!D927:O927)","v":""},{"$nulls":5},{"$f":"'2 REPAIR ESTIMATOR'!P927","v":0},{"$f":"'2 REPAIR ESTIMATOR'!S927","v":0},{"v":0,"d":"$0"},{"v":0,"d":"$0"},{"v":0,"d":"$0"},{"v":0,"d":"$0"},null,0,null,null,{"$f":"'2 REPAIR ESTIMATOR'!AD927","v":{"v":0,"d":"$0.00"}},{"$f":"'2 REPAIR ESTIMATOR'!AM927","v":{"v":0,"d":"$0.00"}},{"v":0,"d":"$0.00"},{"$f":"'2 REPAIR ESTIMATOR'!AG927","v":{"v":0,"d":"$0.00"}},{"$f":"'2 REPAIR ESTIMATOR'!AJ927","v":{"v":0,"d":"$0.00"}}]
[null,null,{"$f":"T('2 REPAIR ESTIMATOR'!D928:O928)","v":""},{"$nulls":5},{"$f":"'2 REPAIR ESTIMATOR'!P928","v":0},{"$f":"'2 REPAIR ESTIMATOR'!S928","v":0},{"v":0,"d":"$0"},{"v":0,"d":"$0"},{"v":0,"d":"$0"},{"v":0,"d":"$0"},null,0,null,null,{"$f":"'2 REPAIR ESTIMATOR'!AD928","v":{"v":0,"d":"$0.00"}},{"$f":"'2 REPAIR ESTIMATOR'!AM928","v":{"v":0,"d":"$0.00"}},{"v":0,"d":"$0.00"},{"$f":"'2 REPAIR ESTIMATOR'!AG928","v":{"v":0,"d":"$0.00"}},{"$f":"'2 REPAIR ESTIMATOR'!AJ928","v":{"v":0,"d":"$0.00"}}]
[null,null,{"$f":"T('2 REPAIR ESTIMATOR'!D929:O929)","v":""},{"$nulls":5},{"$f":"'2 REPAIR ESTIMATOR'!P929","v":0},{"$f":"'2 REPAIR ESTIMATOR'!S929","v":0},{"v":0,"d":"$0"},{"v":0,"d":"$0"},{"v":0,"d":"$0"},{"v":0,"d":"$0"},null,0,null,null,{"$f":"'2 REPAIR ESTIMATOR'!AD929","v":{"v":0,"d":"$0.00"}},{"$f":"'2 REPAIR ESTIMATOR'!AM929","v":{"v":0,"d":"$0.00"}},{"v":0,"d":"$0.00"},{"$f":"'2 REPAIR ESTIMATOR'!AG929","v":{"v":0,"d":"$0.00"}},{"$f":"'2 REPAIR ESTIMATOR'!AJ929","v":{"v":0,"d":"$0.00"}}]
[null,null,{"$f":"T('2 REPAIR ESTIMATOR'!D930:O930)","v":""},{"$nulls":5},{"$f":"'2 REPAIR ESTIMATOR'!P930","v":0},{"$f":"'2 REPAIR ESTIMATOR'!S930","v":0},{"v":0,"d":"$0"},{"v":0,"d":"$0"},{"v":0,"d":"$0"},{"v":0,"d":"$0"},null,0,null,null,{"$f":"'2 REPAIR ESTIMATOR'!AD930","v":{"v":0,"d":"$0.00"}},{"$f":"'2 REPAIR ESTIMATOR'!AM930","v":{"v":0,"d":"$0.00"}},{"v":0,"d":"$0.00"},{"$f":"'2 REPAIR ESTIMATOR'!AG930","v":{"v":0,"d":"$0.00"}},{"$f":"'2 REPAIR ESTIMATOR'!AJ930","v":{"v":0,"d":"$0.00"}}]
[null,null,{"$f":"T('2 REPAIR ESTIMATOR'!D931:O931)","v":""},{"$nulls":5},{"$f":"'2 REPAIR ESTIMATOR'!P931","v":0},{"$f":"'2 REPAIR ESTIMATOR'!S931","v":0},{"v":0,"d":"$0"},{"v":0,"d":"$0"},{"v":0,"d":"$0"},{"v":0,"d":"$0"},null,0,null,null,{"$f":"'2 REPAIR ESTIMATOR'!AD931","v":{"v":0,"d":"$0.00"}},{"$f":"'2 REPAIR ESTIMATOR'!AM931","v":{"v":0,"d":"$0.00"}},{"v":0,"d":"$0.00"},{"$f":"'2 REPAIR ESTIMATOR'!AG931","v":{"v":0,"d":"$0.00"}},{"$f":"'2 REPAIR ESTIMATOR'!AJ931","v":{"v":0,"d":"$0.00"}}]
[null,null,{"$f":"T('2 REPAIR ESTIMATOR'!D932:O932)","v":""},{"$nulls":5},{"$f":"'2 REPAIR ESTIMATOR'!P932","v":0},{"$f":"'2 REPAIR ESTIMATOR'!S932","v":0},{"v":0,"d":"$0"},{"v":0,"d":"$0"},{"v":0,"d":"$0"},{"v":0,"d":"$0"},null,0,null,null,{"$f":"'2 REPAIR ESTIMATOR'!AD932","v":{"v":0,"d":"$0.00"}},{"$f":"'2 REPAIR ESTIMATOR'!AM932","v":{"v":0,"d":"$0.00"}},{"v":0,"d":"$0.00"},{"$f":"'2 REPAIR ESTIMATOR'!AG932","v":{"v":0,"d":"$0.00"}},{"$f":"'2 REPAIR ESTIMATOR'!AJ932","v":{"v":0,"d":"$0.00"}}]
[null,null,{"$f":"T('2 REPAIR ESTIMATOR'!D933:O933)","v":""},{"$nulls":5},{"$f":"'2 REPAIR ESTIMATOR'!P933","v":0},{"$f":"'2 REPAIR ESTIMATOR'!S933","v":0},{"v":0,"d":"$0"},{"v":0,"d":"$0"},{"v":0,"d":"$0"},{"v":0,"d":"$0"},null,0,null,null,{"$f":"'2 REPAIR ESTIMATOR'!AD933","v":{"v":0,"d":"$0.00"}},{"$f":"'2 REPAIR ESTIMATOR'!AM933","v":{"v":0,"d":"$0.00"}},{"v":0,"d":"$0.00"},{"$f":"'2 REPAIR ESTIMATOR'!AG933","v":{"v":0,"d":"$0.00"}},{"$f":"'2 REPAIR ESTIMATOR'!AJ933","v":{"v":0,"d":"$0.00"}}]
[null,null,{"$f":"T('2 REPAIR ESTIMATOR'!D934:O934)","v":""},{"$nulls":5},{"$f":"'2 REPAIR ESTIMATOR'!P934","v":0},{"$f":"'2 REPAIR ESTIMATOR'!S934","v":0},{"v":0,"d":"$0"},{"v":0,"d":"$0"},{"v":0,"d":"$0"},{"v":0,"d":"$0"},null,0,null,null,{"$f":"'2 REPAIR ESTIMATOR'!AD934","v":{"v":0,"d":"$0.00"}},{"$f":"'2 REPAIR ESTIMATOR'!AM934","v":{"v":0,"d":"$0.00"}},{"v":0,"d":"$0.00"},{"$f":"'2 REPAIR ESTIMATOR'!AG934","v":{"v":0,"d":"$0.00"}},{"$f":"'2 REPAIR ESTIMATOR'!AJ934","v":{"v":0,"d":"$0.00"}}]
[null,null,{"$f":"T('2 REPAIR ESTIMATOR'!D935:O935)","v":""},{"$nulls":5},{"$f":"'2 REPAIR ESTIMATOR'!P935","v":0},{"$f":"'2 REPAIR ESTIMATOR'!S935","v":0},{"v":0,"d":"$0"},{"v":0,"d":"$0"},{"v":0,"d":"$0"},{"v":0,"d":"$0"},null,0,null,null,{"$f":"'2 REPAIR ESTIMATOR'!AD935","v":{"v":0,"d":"$0.00"}},{"$f":"'2 REPAIR ESTIMATOR'!AM935","v":{"v":0,"d":"$0.00"}},{"v":0,"d":"$0.00"},{"$f":"'2 REPAIR ESTIMATOR'!AG935","v":{"v":0,"d":"$0.00"}},{"$f":"'2 REPAIR ESTIMATOR'!AJ935","v":{"v":0,"d":"$0.00"}}]
[null,null,{"$f":"T('2 REPAIR ESTIMATOR'!D936:O936)","v":""},{"$nulls":5},{"$f":"'2 REPAIR ESTIMATOR'!P936","v":0},{"$f":"'2 REPAIR ESTIMATOR'!S936","v":0},{"v":0,"d":"$0"},{"v":0,"d":"$0"},{"v":0,"d":"$0"},{"v":0,"d":"$0"},null,0,null,null,{"$f":"'2 REPAIR ESTIMATOR'!AD936","v":{"v":0,"d":"$0.00"}},{"$f":"'2 REPAIR ESTIMATOR'!AM936","v":{"v":0,"d":"$0.00"}},{"v":0,"d":"$0.00"},{"$f":"'2 REPAIR ESTIMATOR'!AG936","v":{"v":0,"d":"$0.00"}},{"$f":"'2 REPAIR ESTIMATOR'!AJ936","v":{"v":0,"d":"$0.00"}}]
[null,null,{"$f":"T('2 REPAIR ESTIMATOR'!D937:O937)","v":""},{"$nulls":5},{"$f":"'2 REPAIR ESTIMATOR'!P937","v":0},{"$f":"'2 REPAIR ESTIMATOR'!S937","v":0},{"v":0,"d":"$0"},{"v":0,"d":"$0"},{"v":0,"d":"$0"},{"v":0,"d":"$0"},null,0,null,null,{"$f":"'2 REPAIR ESTIMATOR'!AD937","v":{"v":0,"d":"$0.00"}},{"$f":"'2 REPAIR ESTIMATOR'!AM937","v":{"v":0,"d":"$0.00"}},{"v":0,"d":"$0.00"},{"$f":"'2 REPAIR ESTIMATOR'!AG937","v":{"v":0,"d":"$0.00"}},{"$f":"'2 REPAIR ESTIMATOR'!AJ937","v":{"v":0,"d":"$0.00"}}]
[null,null,{"$f":"T('2 REPAIR ESTIMATOR'!AC939)","v":"PAINTING TOTAL"},{"$nulls":7},{"$f":"SUM(K847:K886)","v":{"v":4000,"d":"$4,000"}},{"$f":"SUM(L847:L886)","v":{"v":0,"d":"$0"}},{"$f":"SUM(M847:M886)","v":{"v":0,"d":"$0"}},{"$f":"SUM(N847:O886)","v":{"v":4000,"d":"$4,000"}},null,{"$f":"SUM(P846:P866)","v":4},null,null,{"$f":"SUM(S847:S886)","v":{"v":4000,"d":"$4,000.00"}},{"$f":"SUM(T847:T886)","v":{"v":0,"d":"$0.00"}},{"$f":"SUM(U847:U886)","v":{"v":4000,"d":"$4,000.00"}},{"$f":"SUM(V847:V886)","v":{"v":0,"d":"$0.00"}},{"$f":"SUM(W847:W886)","v":{"v":0,"d":"$0.00"}}]
[{"$nulls":15},{"$f":"P887","v":4}]
[null,null,{"$f":"T('2 REPAIR ESTIMATOR'!D942:O942)","v":"APPLIANCES"},{"$nulls":5},{"$f":"SUM(I890:I929)","v":1},{"$nulls":6},1]
[null,null,{"$f":"T('2 REPAIR ESTIMATOR'!D943:O943)","v":"Appliances, Bid/Allowance"},{"$nulls":5},{"$f":"'2 REPAIR ESTIMATOR'!P943","v":0},{"$f":"'2 REPAIR ESTIMATOR'!S943","v":"ls"},{"$f":"IF($N$3=\"subbed\",U890,S890)*$S$70","v":{"v":0,"d":"$0"}},{"$f":"V890*$S$70","v":{"v":0,"d":"$0"}},{"$f":"W890*$S$70","v":{"v":0,"d":"$0"}},{"$f":"SUM(K890:M890)","v":{"v":0,"d":"$0"}},null,0,null,null,{"$f":"'2 REPAIR ESTIMATOR'!AD943","v":{"v":0,"d":"$0.00"}},{"$f":"'2 REPAIR ESTIMATOR'!AM943","v":{"v":0,"d":"$0.00"}},{"$f":"T890+S890","v":{"v":0,"d":"$0.00"}},{"$f":"'2 REPAIR ESTIMATOR'!AG943","v":{"v":0,"d":"$0.00"}},{"$f":"'2 REPAIR ESTIMATOR'!AJ943","v":{"v":0,"d":"$0.00"}}]
[null,null,{"$f":"T('2 REPAIR ESTIMATOR'!D944:O944)","v":""},{"$nulls":5},{"$f":"'2 REPAIR ESTIMATOR'!P944","v":0},{"$f":"'2 REPAIR ESTIMATOR'!S944","v":0},{"v":0,"d":"$0"},{"$f":"V891*$S$70","v":{"v":0,"d":"$0"}},{"$f":"W891*$S$70","v":{"v":0,"d":"$0"}},{"$f":"SUM(K891:M891)","v":{"v":0,"d":"$0"}},null,0,null,null,{"$f":"'2 REPAIR ESTIMATOR'!AD944","v":{"v":0,"d":"$0.00"}},{"$f":"'2 REPAIR ESTIMATOR'!AM944","v":{"v":0,"d":"$0.00"}},{"$f":"T891+S891","v":{"v":0,"d":"$0.00"}},{"$f":"'2 REPAIR ESTIMATOR'!AG944","v":{"v":0,"d":"$0.00"}},{"$f":"'2 REPAIR ESTIMATOR'!AJ944","v":{"v":0,"d":"$0.00"}}]
[null,null,{"$f":"T('2 REPAIR ESTIMATOR'!D945:O945)","v":"Appliance Package"},{"$nulls":5},{"$f":"'2 REPAIR ESTIMATOR'!P945","v":0},{"$f":"'2 REPAIR ESTIMATOR'!S945","v":0},{"v":0,"d":"$0"},{"v":0,"d":"$0"},{"v":0,"d":"$0"},{"v":0,"d":"$0"},null,0,null,null,{"$f":"'2 REPAIR ESTIMATOR'!AD945","v":{"v":0,"d":"$0.00"}},{"$f":"'2 REPAIR ESTIMATOR'!AM945","v":{"v":0,"d":"$0.00"}},{"v":0,"d":"$0.00"},{"$f":"'2 REPAIR ESTIMATOR'!AG945","v":{"v":0,"d":"$0.00"}},{"$f":"'2 REPAIR ESTIMATOR'!AJ945","v":{"v":0,"d":"$0.00"}}]
[null,null,{"$f":"T('2 REPAIR ESTIMATOR'!D946:O946)","v":"Economy, (fridge, range, hood, dw, microwave)"},{"$nulls":5},{"$f":"'2 REPAIR ESTIMATOR'!P946","v":0},{"$f":"'2 REPAIR ESTIMATOR'!S946","v":"ea"},{"v":0,"d":"$0"},{"v":0,"d":"$0"},{"v":0,"d":"$0"},{"v":0,"d":"$0"},null,0,null,null,{"$f":"'2 REPAIR ESTIMATOR'!AD946","v":{"v":0,"d":"$0.00"}},{"$f":"'2 REPAIR ESTIMATOR'!AM946","v":{"v":0,"d":"$0.00"}},{"v":0,"d":"$0.00"},{"$f":"'2 REPAIR ESTIMATOR'!AG946","v":{"v":0,"d":"$0.00"}},{"$f":"'2 REPAIR ESTIMATOR'!AJ946","v":{"v":0,"d":"$0.00"}}]
[null,null,{"$f":"T('2 REPAIR ESTIMATOR'!D947:O947)","v":"Average, (fridge, range, hood, dw, microwave)"},{"$nulls":5},{"$f":"'2 REPAIR ESTIMATOR'!P947","v":1},{"$f":"'2 REPAIR ESTIMATOR'!S947","v":"ea"},{"v":0,"d":"$0"},{"v":3210,"d":"$3,210"},{"v":0,"d":"$0"},{"v":3210,"d":"$3,210"},null,1,null,null,{"$f":"'2 REPAIR ESTIMATOR'!AD947","v":{"v":0,"d":"$0.00"}},{"$f":"'2 REPAIR ESTIMATOR'!AM947","v":{"v":0,"d":"$0.00"}},{"v":0,"d":"$0.00"},{"$f":"'2 REPAIR ESTIMATOR'!AG947","v":{"v":3210,"d":"$3,210.00"}},{"$f":"'2 REPAIR ESTIMATOR'!AJ947","v":{"v":0,"d":"$0.00"}}]
[null,null,{"$f":"T('2 REPAIR ESTIMATOR'!D948:O948)","v":"High End, (fridge, range, hood, dw, microwave)"},{"$nulls":5},{"$f":"'2 REPAIR ESTIMATOR'!P948","v":0},{"$f":"'2 REPAIR ESTIMATOR'!S948","v":"ea"},{"v":0,"d":"$0"},{"v":0,"d":"$0"},{"v":0,"d":"$0"},{"v":0,"d":"$0"},null,0,null,null,{"$f":"'2 REPAIR ESTIMATOR'!AD948","v":{"v":0,"d":"$0.00"}},{"$f":"'2 REPAIR ESTIMATOR'!AM948","v":{"v":0,"d":"$0.00"}},{"v":0,"d":"$0.00"},{"$f":"'2 REPAIR ESTIMATOR'!AG948","v":{"v":0,"d":"$0.00"}},{"$f":"'2 REPAIR ESTIMATOR'!AJ948","v":{"v":0,"d":"$0.00"}}]
[null,null,{"$f":"T('2 REPAIR ESTIMATOR'!D949:O949)","v":""},{"$nulls":5},{"$f":"'2 REPAIR ESTIMATOR'!P949","v":0},{"$f":"'2 REPAIR ESTIMATOR'!S949","v":0},{"v":0,"d":"$0"},{"v":0,"d":"$0"},{"v":0,"d":"$0"},{"v":0,"d":"$0"},null,0,null,null,{"$f":"'2 REPAIR ESTIMATOR'!AD949","v":{"v":0,"d":"$0.00"}},{"$f":"'2 REPAIR ESTIMATOR'!AM949","v":{"v":0,"d":"$0.00"}},{"v":0,"d":"$0.00"},{"$f":"'2 REPAIR ESTIMATOR'!AG949","v":{"v":0,"d":"$0.00"}},{"$f":"'2 REPAIR ESTIMATOR'!AJ949","v":{"v":0,"d":"$0.00"}}]
[null,null,{"$f":"T('2 REPAIR ESTIMATOR'!D950:O950)","v":""},{"$nulls":5},{"$f":"'2 REPAIR ESTIMATOR'!P950","v":0},{"$f":"'2 REPAIR ESTIMATOR'!S950","v":0},{"v":0,"d":"$0"},{"v":0,"d":"$0"},{"v":0,"d":"$0"},{"v":0,"d":"$0"},null,0,null,null,{"$f":"'2 REPAIR ESTIMATOR'!AD950","v":{"v":0,"d":"$0.00"}},{"$f":"'2 REPAIR ESTIMATOR'!AM950","v":{"v":0,"d":"$0.00"}},{"v":0,"d":"$0.00"},{"$f":"'2 REPAIR ESTIMATOR'!AG950","v":{"v":0,"d":"$0.00"}},{"$f":"'2 REPAIR ESTIMATOR'!AJ950","v":{"v":0,"d":"$0.00"}}]
[null,null,{"$f":"T('2 REPAIR ESTIMATOR'!D951:O951)","v":"Appliances, Detailed, Ecomony"},{"$nulls":5},{"$f":"'2 REPAIR ESTIMATOR'!P951","v":0},{"$f":"'2 REPAIR ESTIMATOR'!S951","v":0},{"v":0,"d":"$0"},{"v":0,"d":"$0"},{"v":0,"d":"$0"},{"v":0,"d":"$0"},null,0,null,null,{"$f":"'2 REPAIR ESTIMATOR'!AD951","v":{"v":0,"d":"$0.00"}},{"$f":"'2 REPAIR ESTIMATOR'!AM951","v":{"v":0,"d":"$0.00"}},{"v":0,"d":"$0.00"},{"$f":"'2 REPAIR ESTIMATOR'!AG951","v":{"v":0,"d":"$0.00"}},{"$f":"'2 REPAIR ESTIMATOR'!AJ951","v":{"v":0,"d":"$0.00"}}]
[null,null,{"$f":"T('2 REPAIR ESTIMATOR'!D952:O952)","v":"Refrigerator, economy"},{"$nulls":5},{"$f":"'2 REPAIR ESTIMATOR'!P952","v":0},{"$f":"'2 REPAIR ESTIMATOR'!S952","v":"ea"},{"v":0,"d":"$0"},{"v":0,"d":"$0"},{"v":0,"d":"$0"},{"v":0,"d":"$0"},null,0,null,null,{"$f":"'2 REPAIR ESTIMATOR'!AD952","v":{"v":0,"d":"$0.00"}},{"$f":"'2 REPAIR ESTIMATOR'!AM952","v":{"v":0,"d":"$0.00"}},{"v":0,"d":"$0.00"},{"$f":"'2 REPAIR ESTIMATOR'!AG952","v":{"v":0,"d":"$0.00"}},{"$f":"'2 REPAIR ESTIMATOR'!AJ952","v":{"v":0,"d":"$0.00"}}]
[null,null,{"$f":"T('2 REPAIR ESTIMATOR'!D953:O953)","v":"Range, economy"},{"$nulls":5},{"$f":"'2 REPAIR ESTIMATOR'!P953","v":0},{"$f":"'2 REPAIR ESTIMATOR'!S953","v":"ea"},{"v":0,"d":"$0"},{"v":0,"d":"$0"},{"v":0,"d":"$0"},{"v":0,"d":"$0"},null,0,null,null,{"$f":"'2 REPAIR ESTIMATOR'!AD953","v":{"v":0,"d":"$0.00"}},{"$f":"'2 REPAIR ESTIMATOR'!AM953","v":{"v":0,"d":"$0.00"}},{"v":0,"d":"$0.00"},{"$f":"'2 REPAIR ESTIMATOR'!AG953","v":{"v":0,"d":"$0.00"}},{"$f":"'2 REPAIR ESTIMATOR'!AJ953","v":{"v":0,"d":"$0.00"}}]
[null,null,{"$f":"T('2 REPAIR ESTIMATOR'!D954:O954)","v":"Range Hood, economy"},{"$nulls":5},{"$f":"'2 REPAIR ESTIMATOR'!P954","v":0},{"$f":"'2 REPAIR ESTIMATOR'!S954","v":"ea"},{"v":0,"d":"$0"},{"v":0,"d":"$0"},{"v":0,"d":"$0"},{"v":0,"d":"$0"},null,0,null,null,{"$f":"'2 REPAIR ESTIMATOR'!AD954","v":{"v":0,"d":"$0.00"}},{"$f":"'2 REPAIR ESTIMATOR'!AM954","v":{"v":0,"d":"$0.00"}},{"v":0,"d":"$0.00"},{"$f":"'2 REPAIR ESTIMATOR'!AG954","v":{"v":0,"d":"$0.00"}},{"$f":"'2 REPAIR ESTIMATOR'!AJ954","v":{"v":0,"d":"$0.00"}}]
[null,null,{"$f":"T('2 REPAIR ESTIMATOR'!D955:O955)","v":"Dishwasher, economy"},{"$nulls":5},{"$f":"'2 REPAIR ESTIMATOR'!P955","v":0},{"$f":"'2 REPAIR ESTIMATOR'!S955","v":"ea"},{"v":0,"d":"$0"},{"v":0,"d":"$0"},{"v":0,"d":"$0"},{"v":0,"d":"$0"},null,0,null,null,{"$f":"'2 REPAIR ESTIMATOR'!AD955","v":{"v":0,"d":"$0.00"}},{"$f":"'2 REPAIR ESTIMATOR'!AM955","v":{"v":0,"d":"$0.00"}},{"v":0,"d":"$0.00"},{"$f":"'2 REPAIR ESTIMATOR'!AG955","v":{"v":0,"d":"$0.00"}},{"$f":"'2 REPAIR ESTIMATOR'!AJ955","v":{"v":0,"d":"$0.00"}}]
[null,null,{"$f":"T('2 REPAIR ESTIMATOR'!D956:O956)","v":"Microwave, economy"},{"$nulls":5},{"$f":"'2 REPAIR ESTIMATOR'!P956","v":0},{"$f":"'2 REPAIR ESTIMATOR'!S956","v":"ea"},{"v":0,"d":"$0"},{"v":0,"d":"$0"},{"v":0,"d":"$0"},{"v":0,"d":"$0"},null,0,null,null,{"$f":"'2 REPAIR ESTIMATOR'!AD956","v":{"v":0,"d":"$0.00"}},{"$f":"'2 REPAIR ESTIMATOR'!AM956","v":{"v":0,"d":"$0.00"}},{"v":0,"d":"$0.00"},{"$f":"'2 REPAIR ESTIMATOR'!AG956","v":{"v":0,"d":"$0.00"}},{"$f":"'2 REPAIR ESTIMATOR'!AJ956","v":{"v":0,"d":"$0.00"}}]
[null,null,{"$f":"T('2 REPAIR ESTIMATOR'!D957:O957)","v":"Appliance delivery"},{"$nulls":5},{"$f":"'2 REPAIR ESTIMATOR'!P957","v":0},{"$f":"'2 REPAIR ESTIMATOR'!S957","v":"ea"},{"v":0,"d":"$0"},{"v":0,"d":"$0"},{"v":0,"d":"$0"},{"v":0,"d":"$0"},null,0,null,null,{"$f":"'2 REPAIR ESTIMATOR'!AD957","v":{"v":0,"d":"$0.00"}},{"$f":"'2 REPAIR ESTIMATOR'!AM957","v":{"v":0,"d":"$0.00"}},{"v":0,"d":"$0.00"},{"$f":"'2 REPAIR ESTIMATOR'!AG957","v":{"v":0,"d":"$0.00"}},{"$f":"'2 REPAIR ESTIMATOR'!AJ957","v":{"v":0,"d":"$0.00"}}]
[null,null,{"$f":"T('2 REPAIR ESTIMATOR'!D958:O958)","v":""},{"$nulls":5},{"$f":"'2 REPAIR ESTIMATOR'!P958","v":0},{"$f":"'2 REPAIR ESTIMATOR'!S958","v":0},{"v":0,"d":"$0"},{"v":0,"d":"$0"},{"v":0,"d":"$0"},{"v":0,"d":"$0"},null,0,null,null,{"$f":"'2 REPAIR ESTIMATOR'!AD958","v":{"v":0,"d":"$0.00"}},{"$f":"'2 REPAIR ESTIMATOR'!AM958","v":{"v":0,"d":"$0.00"}},{"v":0,"d":"$0.00"},{"$f":"'2 REPAIR ESTIMATOR'!AG958","v":{"v":0,"d":"$0.00"}},{"$f":"'2 REPAIR ESTIMATOR'!AJ958","v":{"v":0,"d":"$0.00"}}]
[null,null,{"$f":"T('2 REPAIR ESTIMATOR'!D959:O959)","v":""},{"$nulls":5},{"$f":"'2 REPAIR ESTIMATOR'!P959","v":0},{"$f":"'2 REPAIR ESTIMATOR'!S959","v":0},{"v":0,"d":"$0"},{"v":0,"d":"$0"},{"v":0,"d":"$0"},{"v":0,"d":"$0"},null,0,null,null,{"$f":"'2 REPAIR ESTIMATOR'!AD959","v":{"v":0,"d":"$0.00"}},{"$f":"'2 REPAIR ESTIMATOR'!AM959","v":{"v":0,"d":"$0.00"}},{"v":0,"d":"$0.00"},{"$f":"'2 REPAIR ESTIMATOR'!AG959","v":{"v":0,"d":"$0.00"}},{"$f":"'2 REPAIR ESTIMATOR'!AJ959","v":{"v":0,"d":"$0.00"}}]
[null,null,{"$f":"T('2 REPAIR ESTIMATOR'!D960:O960)","v":"Appliances, Detailed, Average"},{"$nulls":5},{"$f":"'2 REPAIR ESTIMATOR'!P960","v":0},{"$f":"'2 REPAIR ESTIMATOR'!S960","v":0},{"v":0,"d":"$0"},{"v":0,"d":"$0"},{"v":0,"d":"$0"},{"v":0,"d":"$0"},null,0,null,null,{"$f":"'2 REPAIR ESTIMATOR'!AD960","v":{"v":0,"d":"$0.00"}},{"$f":"'2 REPAIR ESTIMATOR'!AM960","v":{"v":0,"d":"$0.00"}},{"v":0,"d":"$0.00"},{"$f":"'2 REPAIR ESTIMATOR'!AG960","v":{"v":0,"d":"$0.00"}},{"$f":"'2 REPAIR ESTIMATOR'!AJ960","v":{"v":0,"d":"$0.00"}}]
[null,null,{"$f":"T('2 REPAIR ESTIMATOR'!D961:O961)","v":"Refrigerator, average"},{"$nulls":5},{"$f":"'2 REPAIR ESTIMATOR'!P961","v":0},{"$f":"'2 REPAIR ESTIMATOR'!S961","v":"ea"},{"v":0,"d":"$0"},{"v":0,"d":"$0"},{"v":0,"d":"$0"},{"v":0,"d":"$0"},null,0,null,null,{"$f":"'2 REPAIR ESTIMATOR'!AD961","v":{"v":0,"d":"$0.00"}},{"$f":"'2 REPAIR ESTIMATOR'!AM961","v":{"v":0,"d":"$0.00"}},{"v":0,"d":"$0.00"},{"$f":"'2 REPAIR ESTIMATOR'!AG961","v":{"v":0,"d":"$0.00"}},{"$f":"'2 REPAIR ESTIMATOR'!AJ961","v":{"v":0,"d":"$0.00"}}]
[null,null,{"$f":"T('2 REPAIR ESTIMATOR'!D962:O962)","v":"Range, average"},{"$nulls":5},{"$f":"'2 REPAIR ESTIMATOR'!P962","v":0},{"$f":"'2 REPAIR ESTIMATOR'!S962","v":"ea"},{"v":0,"d":"$0"},{"v":0,"d":"$0"},{"v":0,"d":"$0"},{"v":0,"d":"$0"},null,0,null,null,{"$f":"'2 REPAIR ESTIMATOR'!AD962","v":{"v":0,"d":"$0.00"}},{"$f":"'2 REPAIR ESTIMATOR'!AM962","v":{"v":0,"d":"$0.00"}},{"v":0,"d":"$0.00"},{"$f":"'2 REPAIR ESTIMATOR'!AG962","v":{"v":0,"d":"$0.00"}},{"$f":"'2 REPAIR ESTIMATOR'!AJ962","v":{"v":0,"d":"$0.00"}}]
[null,null,{"$f":"T('2 REPAIR ESTIMATOR'!D963:O963)","v":"Range Hood, average"},{"$nulls":5},{"$f":"'2 REPAIR ESTIMATOR'!P963","v":0},{"$f":"'2 REPAIR ESTIMATOR'!S963","v":"ea"},{"v":0,"d":"$0"},{"v":0,"d":"$0"},{"v":0,"d":"$0"},{"v":0,"d":"$0"},null,{"$f":"I910","v":0},null,null,{"$f":"'2 REPAIR ESTIMATOR'!AD963","v":{"v":0,"d":"$0.00"}},{"$f":"'2 REPAIR ESTIMATOR'!AM963","v":{"v":0,"d":"$0.00"}},{"v":0,"d":"$0.00"},{"$f":"'2 REPAIR ESTIMATOR'!AG963","v":{"v":0,"d":"$0.00"}},{"$f":"'2 REPAIR ESTIMATOR'!AJ963","v":{"v":0,"d":"$0.00"}}]
[null,null,{"$f":"T('2 REPAIR ESTIMATOR'!D964:O964)","v":"Dishwasher, average"},{"$nulls":5},{"$f":"'2 REPAIR ESTIMATOR'!P964","v":0},{"$f":"'2 REPAIR ESTIMATOR'!S964","v":"ea"},{"v":0,"d":"$0"},{"v":0,"d":"$0"},{"v":0,"d":"$0"},{"v":0,"d":"$0"},null,0,null,null,{"$f":"'2 REPAIR ESTIMATOR'!AD964","v":{"v":0,"d":"$0.00"}},{"$f":"'2 REPAIR ESTIMATOR'!AM964","v":{"v":0,"d":"$0.00"}},{"v":0,"d":"$0.00"},{"$f":"'2 REPAIR ESTIMATOR'!AG964","v":{"v":0,"d":"$0.00"}},{"$f":"'2 REPAIR ESTIMATOR'!AJ964","v":{"v":0,"d":"$0.00"}}]
[null,null,{"$f":"T('2 REPAIR ESTIMATOR'!D965:O965)","v":"Microwave, average"},{"$nulls":5},{"$f":"'2 REPAIR ESTIMATOR'!P965","v":0},{"$f":"'2 REPAIR ESTIMATOR'!S965","v":"ea"},{"v":0,"d":"$0"},{"v":0,"d":"$0"},{"v":0,"d":"$0"},{"v":0,"d":"$0"},null,0,null,null,{"$f":"'2 REPAIR ESTIMATOR'!AD965","v":{"v":0,"d":"$0.00"}},{"$f":"'2 REPAIR ESTIMATOR'!AM965","v":{"v":0,"d":"$0.00"}},{"v":0,"d":"$0.00"},{"$f":"'2 REPAIR ESTIMATOR'!AG965","v":{"v":0,"d":"$0.00"}},{"$f":"'2 REPAIR ESTIMATOR'!AJ965","v":{"v":0,"d":"$0.00"}}]
[null,null,{"$f":"T('2 REPAIR ESTIMATOR'!D966:O966)","v":"Appliance delivery"},{"$nulls":5},{"$f":"'2 REPAIR ESTIMATOR'!P966","v":0},{"$f":"'2 REPAIR ESTIMATOR'!S966","v":"ea"},{"v":0,"d":"$0"},{"v":0,"d":"$0"},{"v":0,"d":"$0"},{"v":0,"d":"$0"},null,0,null,null,{"$f":"'2 REPAIR ESTIMATOR'!AD966","v":{"v":0,"d":"$0.00"}},{"$f":"'2 REPAIR ESTIMATOR'!AM966","v":{"v":0,"d":"$0.00"}},{"v":0,"d":"$0.00"},{"$f":"'2 REPAIR ESTIMATOR'!AG966","v":{"v":0,"d":"$0.00"}},{"$f":"'2 REPAIR ESTIMATOR'!AJ966","v":{"v":0,"d":"$0.00"}}]
[null,null,{"$f":"T('2 REPAIR ESTIMATOR'!D967:O967)","v":""},{"$nulls":5},{"$f":"'2 REPAIR ESTIMATOR'!P967","v":0},{"$f":"'2 REPAIR ESTIMATOR'!S967","v":0},{"v":0,"d":"$0"},{"v":0,"d":"$0"},{"v":0,"d":"$0"},{"v":0,"d":"$0"},null,0,null,null,{"$f":"'2 REPAIR ESTIMATOR'!AD967","v":{"v":0,"d":"$0.00"}},{"$f":"'2 REPAIR ESTIMATOR'!AM967","v":{"v":0,"d":"$0.00"}},{"v":0,"d":"$0.00"},{"$f":"'2 REPAIR ESTIMATOR'!AG967","v":{"v":0,"d":"$0.00"}},{"$f":"'2 REPAIR ESTIMATOR'!AJ967","v":{"v":0,"d":"$0.00"}}]
[null,null,{"$f":"T('2 REPAIR ESTIMATOR'!D968:O968)","v":""},{"$nulls":5},{"$f":"'2 REPAIR ESTIMATOR'!P968","v":0},{"$f":"'2 REPAIR ESTIMATOR'!S968","v":0},{"v":0,"d":"$0"},{"v":0,"d":"$0"},{"v":0,"d":"$0"},{"v":0,"d":"$0"},null,0,null,null,{"$f":"'2 REPAIR ESTIMATOR'!AD968","v":{"v":0,"d":"$0.00"}},{"$f":"'2 REPAIR ESTIMATOR'!AM968","v":{"v":0,"d":"$0.00"}},{"v":0,"d":"$0.00"},{"$f":"'2 REPAIR ESTIMATOR'!AG968","v":{"v":0,"d":"$0.00"}},{"$f":"'2 REPAIR ESTIMATOR'!AJ968","v":{"v":0,"d":"$0.00"}}]
[null,null,{"$f":"T('2 REPAIR ESTIMATOR'!D969:O969)","v":"Appliances, Detailed, High End"},{"$nulls":5},{"$f":"'2 REPAIR ESTIMATOR'!P969","v":0},{"$f":"'2 REPAIR ESTIMATOR'!S969","v":0},{"v":0,"d":"$0"},{"v":0,"d":"$0"},{"v":0,"d":"$0"},{"v":0,"d":"$0"},null,0,null,null,{"$f":"'2 REPAIR ESTIMATOR'!AD969","v":{"v":0,"d":"$0.00"}},{"$f":"'2 REPAIR ESTIMATOR'!AM969","v":{"v":0,"d":"$0.00"}},{"v":0,"d":"$0.00"},{"$f":"'2 REPAIR ESTIMATOR'!AG969","v":{"v":0,"d":"$0.00"}},{"$f":"'2 REPAIR ESTIMATOR'!AJ969","v":{"v":0,"d":"$0.00"}}]
[null,null,{"$f":"T('2 REPAIR ESTIMATOR'!D970:O970)","v":"Refrigerator, high end"},{"$nulls":5},{"$f":"'2 REPAIR ESTIMATOR'!P970","v":0},{"$f":"'2 REPAIR ESTIMATOR'!S970","v":"ea"},{"v":0,"d":"$0"},{"v":0,"d":"$0"},{"v":0,"d":"$0"},{"v":0,"d":"$0"},null,0,null,null,{"$f":"'2 REPAIR ESTIMATOR'!AD970","v":{"v":0,"d":"$0.00"}},{"$f":"'2 REPAIR ESTIMATOR'!AM970","v":{"v":0,"d":"$0.00"}},{"v":0,"d":"$0.00"},{"$f":"'2 REPAIR ESTIMATOR'!AG970","v":{"v":0,"d":"$0.00"}},{"$f":"'2 REPAIR ESTIMATOR'!AJ970","v":{"v":0,"d":"$0.00"}}]
[null,null,{"$f":"T('2 REPAIR ESTIMATOR'!D971:O971)","v":"Range, high end"},{"$nulls":5},{"$f":"'2 REPAIR ESTIMATOR'!P971","v":0},{"$f":"'2 REPAIR ESTIMATOR'!S971","v":"ea"},{"v":0,"d":"$0"},{"v":0,"d":"$0"},{"v":0,"d":"$0"},{"v":0,"d":"$0"},null,0,null,null,{"$f":"'2 REPAIR ESTIMATOR'!AD971","v":{"v":0,"d":"$0.00"}},{"$f":"'2 REPAIR ESTIMATOR'!AM971","v":{"v":0,"d":"$0.00"}},{"v":0,"d":"$0.00"},{"$f":"'2 REPAIR ESTIMATOR'!AG971","v":{"v":0,"d":"$0.00"}},{"$f":"'2 REPAIR ESTIMATOR'!AJ971","v":{"v":0,"d":"$0.00"}}]
[null,null,{"$f":"T('2 REPAIR ESTIMATOR'!D972:O972)","v":"Range Hood, high end"},{"$nulls":5},{"$f":"'2 REPAIR ESTIMATOR'!P972","v":0},{"$f":"'2 REPAIR ESTIMATOR'!S972","v":"ea"},{"v":0,"d":"$0"},{"v":0,"d":"$0"},{"v":0,"d":"$0"},{"v":0,"d":"$0"},null,0,null,null,{"$f":"'2 REPAIR ESTIMATOR'!AD972","v":{"v":0,"d":"$0.00"}},{"$f":"'2 REPAIR ESTIMATOR'!AM972","v":{"v":0,"d":"$0.00"}},{"v":0,"d":"$0.00"},{"$f":"'2 REPAIR ESTIMATOR'!AG972","v":{"v":0,"d":"$0.00"}},{"$f":"'2 REPAIR ESTIMATOR'!AJ972","v":{"v":0,"d":"$0.00"}}]
[null,null,{"$f":"T('2 REPAIR ESTIMATOR'!D973:O973)","v":"Dishwasher, high end"},{"$nulls":5},{"$f":"'2 REPAIR ESTIMATOR'!P973","v":0},{"$f":"'2 REPAIR ESTIMATOR'!S973","v":"ea"},{"v":0,"d":"$0"},{"v":0,"d":"$0"},{"v":0,"d":"$0"},{"v":0,"d":"$0"},null,0,null,null,{"$f":"'2 REPAIR ESTIMATOR'!AD973","v":{"v":0,"d":"$0.00"}},{"$f":"'2 REPAIR ESTIMATOR'!AM973","v":{"v":0,"d":"$0.00"}},{"v":0,"d":"$0.00"},{"$f":"'2 REPAIR ESTIMATOR'!AG973","v":{"v":0,"d":"$0.00"}},{"$f":"'2 REPAIR ESTIMATOR'!AJ973","v":{"v":0,"d":"$0.00"}}]
[null,null,{"$f":"T('2 REPAIR ESTIMATOR'!D974:O974)","v":"Microwave, high end"},{"$nulls":5},{"$f":"'2 REPAIR ESTIMATOR'!P974","v":0},{"$f":"'2 REPAIR ESTIMATOR'!S974","v":"ea"},{"v":0,"d":"$0"},{"v":0,"d":"$0"},{"v":0,"d":"$0"},{"v":0,"d":"$0"},null,0,null,null,{"$f":"'2 REPAIR ESTIMATOR'!AD974","v":{"v":0,"d":"$0.00"}},{"$f":"'2 REPAIR ESTIMATOR'!AM974","v":{"v":0,"d":"$0.00"}},{"v":0,"d":"$0.00"},{"$f":"'2 REPAIR ESTIMATOR'!AG974","v":{"v":0,"d":"$0.00"}},{"$f":"'2 REPAIR ESTIMATOR'!AJ974","v":{"v":0,"d":"$0.00"}}]
[null,null,{"$f":"T('2 REPAIR ESTIMATOR'!D975:O975)","v":"Appliance delivery"},{"$nulls":5},{"$f":"'2 REPAIR ESTIMATOR'!P975","v":0},{"$f":"'2 REPAIR ESTIMATOR'!S975","v":"ea"},{"v":0,"d":"$0"},{"v":0,"d":"$0"},{"v":0,"d":"$0"},{"v":0,"d":"$0"},null,0,null,null,{"$f":"'2 REPAIR ESTIMATOR'!AD975","v":{"v":0,"d":"$0.00"}},{"$f":"'2 REPAIR ESTIMATOR'!AM975","v":{"v":0,"d":"$0.00"}},{"v":0,"d":"$0.00"},{"$f":"'2 REPAIR ESTIMATOR'!AG975","v":{"v":0,"d":"$0.00"}},{"$f":"'2 REPAIR ESTIMATOR'!AJ975","v":{"v":0,"d":"$0.00"}}]
[null,null,{"$f":"T('2 REPAIR ESTIMATOR'!D976:O976)","v":""},{"$nulls":5},{"$f":"'2 REPAIR ESTIMATOR'!P976","v":0},{"$f":"'2 REPAIR ESTIMATOR'!S976","v":0},{"v":0,"d":"$0"},{"v":0,"d":"$0"},{"v":0,"d":"$0"},{"v":0,"d":"$0"},null,0,null,null,{"$f":"'2 REPAIR ESTIMATOR'!AD976","v":{"v":0,"d":"$0.00"}},{"$f":"'2 REPAIR ESTIMATOR'!AM976","v":{"v":0,"d":"$0.00"}},{"v":0,"d":"$0.00"},{"$f":"'2 REPAIR ESTIMATOR'!AG976","v":{"v":0,"d":"$0.00"}},{"$f":"'2 REPAIR ESTIMATOR'!AJ976","v":{"v":0,"d":"$0.00"}}]
[null,null,{"$f":"T('2 REPAIR ESTIMATOR'!D977:O977)","v":""},{"$nulls":5},{"$f":"'2 REPAIR ESTIMATOR'!P977","v":0},{"$f":"'2 REPAIR ESTIMATOR'!S977","v":0},{"v":0,"d":"$0"},{"v":0,"d":"$0"},{"v":0,"d":"$0"},{"v":0,"d":"$0"},null,0,null,null,{"$f":"'2 REPAIR ESTIMATOR'!AD977","v":{"v":0,"d":"$0.00"}},{"$f":"'2 REPAIR ESTIMATOR'!AM977","v":{"v":0,"d":"$0.00"}},{"v":0,"d":"$0.00"},{"$f":"'2 REPAIR ESTIMATOR'!AG977","v":{"v":0,"d":"$0.00"}},{"$f":"'2 REPAIR ESTIMATOR'!AJ977","v":{"v":0,"d":"$0.00"}}]
[null,null,{"$f":"T('2 REPAIR ESTIMATOR'!D978:O978)","v":""},{"$nulls":5},{"$f":"'2 REPAIR ESTIMATOR'!P978","v":0},{"$f":"'2 REPAIR ESTIMATOR'!S978","v":0},{"v":0,"d":"$0"},{"v":0,"d":"$0"},{"v":0,"d":"$0"},{"v":0,"d":"$0"},null,0,null,null,{"$f":"'2 REPAIR ESTIMATOR'!AD978","v":{"v":0,"d":"$0.00"}},{"$f":"'2 REPAIR ESTIMATOR'!AM978","v":{"v":0,"d":"$0.00"}},{"v":0,"d":"$0.00"},{"$f":"'2 REPAIR ESTIMATOR'!AG978","v":{"v":0,"d":"$0.00"}},{"$f":"'2 REPAIR ESTIMATOR'!AJ978","v":{"v":0,"d":"$0.00"}}]
[null,null,{"$f":"T('2 REPAIR ESTIMATOR'!D979:O979)","v":""},{"$nulls":5},{"$f":"'2 REPAIR ESTIMATOR'!P979","v":0},{"$f":"'2 REPAIR ESTIMATOR'!S979","v":0},{"v":0,"d":"$0"},{"v":0,"d":"$0"},{"v":0,"d":"$0"},{"v":0,"d":"$0"},null,0,null,null,{"$f":"'2 REPAIR ESTIMATOR'!AD979","v":{"v":0,"d":"$0.00"}},{"$f":"'2 REPAIR ESTIMATOR'!AM979","v":{"v":0,"d":"$0.00"}},{"v":0,"d":"$0.00"},{"$f":"'2 REPAIR ESTIMATOR'!AG979","v":{"v":0,"d":"$0.00"}},{"$f":"'2 REPAIR ESTIMATOR'!AJ979","v":{"v":0,"d":"$0.00"}}]
[null,null,{"$f":"T('2 REPAIR ESTIMATOR'!D980:O980)","v":""},{"$nulls":5},{"$f":"'2 REPAIR ESTIMATOR'!P980","v":0},{"$f":"'2 REPAIR ESTIMATOR'!S980","v":0},{"v":0,"d":"$0"},{"v":0,"d":"$0"},{"v":0,"d":"$0"},{"v":0,"d":"$0"},null,0,null,null,{"$f":"'2 REPAIR ESTIMATOR'!AD980","v":{"v":0,"d":"$0.00"}},{"$f":"'2 REPAIR ESTIMATOR'!AM980","v":{"v":0,"d":"$0.00"}},{"v":0,"d":"$0.00"},{"$f":"'2 REPAIR ESTIMATOR'!AG980","v":{"v":0,"d":"$0.00"}},{"$f":"'2 REPAIR ESTIMATOR'!AJ980","v":{"v":0,"d":"$0.00"}}]
[null,null,{"$f":"T('2 REPAIR ESTIMATOR'!D981:O981)","v":""},{"$nulls":5},{"$f":"'2 REPAIR ESTIMATOR'!P981","v":0},{"$f":"'2 REPAIR ESTIMATOR'!S981","v":0},{"v":0,"d":"$0"},{"v":0,"d":"$0"},{"v":0,"d":"$0"},{"v":0,"d":"$0"},null,0,null,null,{"$f":"'2 REPAIR ESTIMATOR'!AD981","v":{"v":0,"d":"$0.00"}},{"$f":"'2 REPAIR ESTIMATOR'!AM981","v":{"v":0,"d":"$0.00"}},{"v":0,"d":"$0.00"},{"$f":"'2 REPAIR ESTIMATOR'!AG981","v":{"v":0,"d":"$0.00"}},{"$f":"'2 REPAIR ESTIMATOR'!AJ981","v":{"v":0,"d":"$0.00"}}]
[null,null,{"$f":"T('2 REPAIR ESTIMATOR'!D982:O982)","v":""},{"$nulls":5},{"$f":"'2 REPAIR ESTIMATOR'!P982","v":0},{"$f":"'2 REPAIR ESTIMATOR'!S982","v":0},{"v":0,"d":"$0"},{"v":0,"d":"$0"},{"v":0,"d":"$0"},{"v":0,"d":"$0"},null,0,null,null,{"$f":"'2 REPAIR ESTIMATOR'!AD982","v":{"v":0,"d":"$0.00"}},{"$f":"'2 REPAIR ESTIMATOR'!AM982","v":{"v":0,"d":"$0.00"}},{"v":0,"d":"$0.00"},{"$f":"'2 REPAIR ESTIMATOR'!AG982","v":{"v":0,"d":"$0.00"}},{"$f":"'2 REPAIR ESTIMATOR'!AJ982","v":{"v":0,"d":"$0.00"}}]
[null,null,{"$f":"T('2 REPAIR ESTIMATOR'!AC984)","v":"APPLIANCES TOTAL"},{"$nulls":7},{"$f":"SUM(K890:K929)","v":{"v":0,"d":"$0"}},{"$f":"SUM(L890:L929)","v":{"v":3210,"d":"$3,210"}},{"$f":"SUM(M890:M929)","v":{"v":0,"d":"$0"}},{"$f":"SUM(N890:O929)","v":{"v":3210,"d":"$3,210"}},null,{"$f":"SUM(P889:P899)","v":2},null,null,{"$f":"SUM(S890:S929)","v":{"v":0,"d":"$0.00"}},{"$f":"SUM(T890:T929)","v":{"v":0,"d":"$0.00"}},{"$f":"SUM(U890:U929)","v":{"v":0,"d":"$0.00"}},{"$f":"SUM(V890:V929)","v":{"v":3210,"d":"$3,210.00"}},{"$f":"SUM(W890:W929)","v":{"v":0,"d":"$0.00"}}]
[{"$nulls":15},{"$f":"P930","v":2}]
[null,null,{"$f":"T('2 REPAIR ESTIMATOR'!D987:O987)","v":"PLUMBING"},{"$nulls":5},{"$f":"SUM(I933:I972)","v":14},{"$nulls":6},14]
[null,null,{"$f":"T('2 REPAIR ESTIMATOR'!D988:O988)","v":"Plumbing, bid/allowance"},{"$nulls":5},{"$f":"'2 REPAIR ESTIMATOR'!P988","v":0},{"$f":"'2 REPAIR ESTIMATOR'!S988","v":"ls"},{"$f":"IF($N$3=\"subbed\",U933,S933)*$S$70","v":{"v":0,"d":"$0"}},{"$f":"V933*$S$70","v":{"v":0,"d":"$0"}},{"$f":"W933*$S$70","v":{"v":0,"d":"$0"}},{"$f":"SUM(K933:M933)","v":{"v":0,"d":"$0"}},null,0,null,null,{"$f":"'2 REPAIR ESTIMATOR'!AD988","v":{"v":0,"d":"$0.00"}},{"$f":"'2 REPAIR ESTIMATOR'!AM988","v":{"v":0,"d":"$0.00"}},{"$f":"T933+S933","v":{"v":0,"d":"$0.00"}},{"$f":"'2 REPAIR ESTIMATOR'!AG988","v":{"v":0,"d":"$0.00"}},{"$f":"'2 REPAIR ESTIMATOR'!AJ988","v":{"v":0,"d":"$0.00"}}]
[null,null,{"$f":"T('2 REPAIR ESTIMATOR'!D989:O989)","v":"Miscellaneous Plumbing"},{"$nulls":5},{"$f":"'2 REPAIR ESTIMATOR'!P989","v":0},{"$f":"'2 REPAIR ESTIMATOR'!S989","v":"ls"},{"v":0,"d":"$0"},{"$f":"V934*$S$70","v":{"v":0,"d":"$0"}},{"$f":"W934*$S$70","v":{"v":0,"d":"$0"}},{"$f":"SUM(K934:M934)","v":{"v":0,"d":"$0"}},null,0,null,null,{"$f":"'2 REPAIR ESTIMATOR'!AD989","v":{"v":0,"d":"$0.00"}},{"$f":"'2 REPAIR ESTIMATOR'!AM989","v":{"v":0,"d":"$0.00"}},{"$f":"T934+S934","v":{"v":0,"d":"$0.00"}},{"$f":"'2 REPAIR ESTIMATOR'!AG989","v":{"v":0,"d":"$0.00"}},{"$f":"'2 REPAIR ESTIMATOR'!AJ989","v":{"v":0,"d":"$0.00"}}]
[null,null,{"$f":"T('2 REPAIR ESTIMATOR'!D990:O990)","v":"Plumbing rough-in, per hour"},{"$nulls":5},{"$f":"'2 REPAIR ESTIMATOR'!P990","v":2},{"$f":"'2 REPAIR ESTIMATOR'!S990","v":"hrs"},{"v":130,"d":"$130"},{"v":0,"d":"$0"},{"v":0,"d":"$0"},{"v":130,"d":"$130"},null,2,null,null,{"$f":"'2 REPAIR ESTIMATOR'!AD990","v":{"v":130,"d":"$130.00"}},{"$f":"'2 REPAIR ESTIMATOR'!AM990","v":{"v":0,"d":"$0.00"}},{"v":130,"d":"$130.00"},{"$f":"'2 REPAIR ESTIMATOR'!AG990","v":{"v":0,"d":"$0.00"}},{"$f":"'2 REPAIR ESTIMATOR'!AJ990","v":{"v":0,"d":"$0.00"}}]
[null,null,{"$f":"T('2 REPAIR ESTIMATOR'!D991:O991)","v":"Concrete demo for below slab rough-in"},{"$nulls":5},{"$f":"'2 REPAIR ESTIMATOR'!P991","v":0},{"$f":"'2 REPAIR ESTIMATOR'!S991","v":"sf"},{"v":0,"d":"$0"},{"v":0,"d":"$0"},{"v":0,"d":"$0"},{"v":0,"d":"$0"},null,0,null,null,{"$f":"'2 REPAIR ESTIMATOR'!AD991","v":{"v":0,"d":"$0.00"}},{"$f":"'2 REPAIR ESTIMATOR'!AM991","v":{"v":0,"d":"$0.00"}},{"v":0,"d":"$0.00"},{"$f":"'2 REPAIR ESTIMATOR'!AG991","v":{"v":0,"d":"$0.00"}},{"$f":"'2 REPAIR ESTIMATOR'!AJ991","v":{"v":0,"d":"$0.00"}}]
[null,null,{"$f":"T('2 REPAIR ESTIMATOR'!D992:O992)","v":"Plumbing finish work, per hour"},{"$nulls":5},{"$f":"'2 REPAIR ESTIMATOR'!P992","v":0},{"$f":"'2 REPAIR ESTIMATOR'!S992","v":"hrs"},{"v":0,"d":"$0"},{"v":0,"d":"$0"},{"v":0,"d":"$0"},{"v":0,"d":"$0"},null,0,null,null,{"$f":"'2 REPAIR ESTIMATOR'!AD992","v":{"v":0,"d":"$0.00"}},{"$f":"'2 REPAIR ESTIMATOR'!AM992","v":{"v":0,"d":"$0.00"}},{"v":0,"d":"$0.00"},{"$f":"'2 REPAIR ESTIMATOR'!AG992","v":{"v":0,"d":"$0.00"}},{"$f":"'2 REPAIR ESTIMATOR'!AJ992","v":{"v":0,"d":"$0.00"}}]
[null,null,{"$f":"T('2 REPAIR ESTIMATOR'!D993:O993)","v":"Replace gas hot water heater, 40 gallon"},{"$nulls":5},{"$f":"'2 REPAIR ESTIMATOR'!P993","v":0},{"$f":"'2 REPAIR ESTIMATOR'!S993","v":"ea"},{"v":0,"d":"$0"},{"v":0,"d":"$0"},{"v":0,"d":"$0"},{"v":0,"d":"$0"},null,0,null,null,{"$f":"'2 REPAIR ESTIMATOR'!AD993","v":{"v":0,"d":"$0.00"}},{"$f":"'2 REPAIR ESTIMATOR'!AM993","v":{"v":0,"d":"$0.00"}},{"v":0,"d":"$0.00"},{"$f":"'2 REPAIR ESTIMATOR'!AG993","v":{"v":0,"d":"$0.00"}},{"$f":"'2 REPAIR ESTIMATOR'!AJ993","v":{"v":0,"d":"$0.00"}}]
[null,null,{"$f":"T('2 REPAIR ESTIMATOR'!D994:O994)","v":"Kitchen"},{"$nulls":5},{"$f":"'2 REPAIR ESTIMATOR'!P994","v":0},{"$f":"'2 REPAIR ESTIMATOR'!S994","v":0},{"v":0,"d":"$0"},{"v":0,"d":"$0"},{"v":0,"d":"$0"},{"v":0,"d":"$0"},null,0,null,null,{"$f":"'2 REPAIR ESTIMATOR'!AD994","v":{"v":0,"d":"$0.00"}},{"$f":"'2 REPAIR ESTIMATOR'!AM994","v":{"v":0,"d":"$0.00"}},{"v":0,"d":"$0.00"},{"$f":"'2 REPAIR ESTIMATOR'!AG994","v":{"v":0,"d":"$0.00"}},{"$f":"'2 REPAIR ESTIMATOR'!AJ994","v":{"v":0,"d":"$0.00"}}]
[null,null,{"$f":"T('2 REPAIR ESTIMATOR'!D995:O995)","v":"Kitchen faucet fixture"},{"$nulls":5},{"$f":"'2 REPAIR ESTIMATOR'!P995","v":1},{"$f":"'2 REPAIR ESTIMATOR'!S995","v":"ea"},{"v":75,"d":"$75"},{"v":160.5,"d":"$161"},{"v":0,"d":"$0"},{"v":235.5,"d":"$236"},null,1,null,null,{"$f":"'2 REPAIR ESTIMATOR'!AD995","v":{"v":75,"d":"$75.00"}},{"$f":"'2 REPAIR ESTIMATOR'!AM995","v":{"v":0,"d":"$0.00"}},{"v":75,"d":"$75.00"},{"$f":"'2 REPAIR ESTIMATOR'!AG995","v":{"v":160.5,"d":"$160.50"}},{"$f":"'2 REPAIR ESTIMATOR'!AJ995","v":{"v":0,"d":"$0.00"}}]
[null,null,{"$f":"T('2 REPAIR ESTIMATOR'!D996:O996)","v":"Garbage disposal"},{"$nulls":5},{"$f":"'2 REPAIR ESTIMATOR'!P996","v":1},{"$f":"'2 REPAIR ESTIMATOR'!S996","v":"ea"},{"v":50,"d":"$50"},{"v":107,"d":"$107"},{"v":0,"d":"$0"},{"v":157,"d":"$157"},null,1,null,null,{"$f":"'2 REPAIR ESTIMATOR'!AD996","v":{"v":50,"d":"$50.00"}},{"$f":"'2 REPAIR ESTIMATOR'!AM996","v":{"v":0,"d":"$0.00"}},{"v":50,"d":"$50.00"},{"$f":"'2 REPAIR ESTIMATOR'!AG996","v":{"v":107,"d":"$107.00"}},{"$f":"'2 REPAIR ESTIMATOR'!AJ996","v":{"v":0,"d":"$0.00"}}]
[null,null,{"$f":"T('2 REPAIR ESTIMATOR'!D997:O997)","v":"Hookup dishwasher"},{"$nulls":5},{"$f":"'2 REPAIR ESTIMATOR'!P997","v":1},{"$f":"'2 REPAIR ESTIMATOR'!S997","v":"ea"},{"v":50,"d":"$50"},{"v":26.75,"d":"$27"},{"v":0,"d":"$0"},{"v":76.75,"d":"$77"},null,1,null,null,{"$f":"'2 REPAIR ESTIMATOR'!AD997","v":{"v":50,"d":"$50.00"}},{"$f":"'2 REPAIR ESTIMATOR'!AM997","v":{"v":0,"d":"$0.00"}},{"v":50,"d":"$50.00"},{"$f":"'2 REPAIR ESTIMATOR'!AG997","v":{"v":26.75,"d":"$26.75"}},{"$f":"'2 REPAIR ESTIMATOR'!AJ997","v":{"v":0,"d":"$0.00"}}]
[null,null,{"$f":"T('2 REPAIR ESTIMATOR'!D998:O998)","v":"Water supply line for refrigerator"},{"$nulls":5},{"$f":"'2 REPAIR ESTIMATOR'!P998","v":1},{"$f":"'2 REPAIR ESTIMATOR'!S998","v":"ea"},{"v":50,"d":"$50"},{"v":26.75,"d":"$27"},{"v":0,"d":"$0"},{"v":76.75,"d":"$77"},null,1,null,null,{"$f":"'2 REPAIR ESTIMATOR'!AD998","v":{"v":50,"d":"$50.00"}},{"$f":"'2 REPAIR ESTIMATOR'!AM998","v":{"v":0,"d":"$0.00"}},{"v":50,"d":"$50.00"},{"$f":"'2 REPAIR ESTIMATOR'!AG998","v":{"v":26.75,"d":"$26.75"}},{"$f":"'2 REPAIR ESTIMATOR'!AJ998","v":{"v":0,"d":"$0.00"}}]
[null,null,{"$f":"T('2 REPAIR ESTIMATOR'!D999:O999)","v":"Bathrooms"},{"$nulls":5},{"$f":"'2 REPAIR ESTIMATOR'!P999","v":0},{"$f":"'2 REPAIR ESTIMATOR'!S999","v":0},{"v":0,"d":"$0"},{"v":0,"d":"$0"},{"v":0,"d":"$0"},{"v":0,"d":"$0"},null,0,null,null,{"$f":"'2 REPAIR ESTIMATOR'!AD999","v":{"v":0,"d":"$0.00"}},{"$f":"'2 REPAIR ESTIMATOR'!AM999","v":{"v":0,"d":"$0.00"}},{"v":0,"d":"$0.00"},{"$f":"'2 REPAIR ESTIMATOR'!AG999","v":{"v":0,"d":"$0.00"}},{"$f":"'2 REPAIR ESTIMATOR'!AJ999","v":{"v":0,"d":"$0.00"}}]
[null,null,{"$f":"T('2 REPAIR ESTIMATOR'!D1000:O1000)","v":"Bathroom faucet fixture"},{"$nulls":5},{"$f":"'2 REPAIR ESTIMATOR'!P1000","v":2},{"$f":"'2 REPAIR ESTIMATOR'!S1000","v":"ea"},{"v":150,"d":"$150"},{"v":267.5,"d":"$268"},{"v":0,"d":"$0"},{"v":417.5,"d":"$418"},null,2,null,null,{"$f":"'2 REPAIR ESTIMATOR'!AD1000","v":{"v":150,"d":"$150.00"}},{"$f":"'2 REPAIR ESTIMATOR'!AM1000","v":{"v":0,"d":"$0.00"}},{"v":150,"d":"$150.00"},{"$f":"'2 REPAIR ESTIMATOR'!AG1000","v":{"v":267.5,"d":"$267.50"}},{"$f":"'2 REPAIR ESTIMATOR'!AJ1000","v":{"v":0,"d":"$0.00"}}]
[null,null,{"$f":"T('2 REPAIR ESTIMATOR'!D1001:O1001)","v":"Fiberglass shower stall"},{"$nulls":5},{"$f":"'2 REPAIR ESTIMATOR'!P1001","v":0},{"$f":"'2 REPAIR ESTIMATOR'!S1001","v":"ea"},{"v":0,"d":"$0"},{"v":0,"d":"$0"},{"v":0,"d":"$0"},{"v":0,"d":"$0"},null,0,null,null,{"$f":"'2 REPAIR ESTIMATOR'!AD1001","v":{"v":0,"d":"$0.00"}},{"$f":"'2 REPAIR ESTIMATOR'!AM1001","v":{"v":0,"d":"$0.00"}},{"v":0,"d":"$0.00"},{"$f":"'2 REPAIR ESTIMATOR'!AG1001","v":{"v":0,"d":"$0.00"}},{"$f":"'2 REPAIR ESTIMATOR'!AJ1001","v":{"v":0,"d":"$0.00"}}]
[null,null,{"$f":"T('2 REPAIR ESTIMATOR'!D1002:O1002)","v":"Fiberglass tub"},{"$nulls":5},{"$f":"'2 REPAIR ESTIMATOR'!P1002","v":2},{"$f":"'2 REPAIR ESTIMATOR'!S1002","v":"ea"},{"v":300,"d":"$300"},{"v":642,"d":"$642"},{"v":0,"d":"$0"},{"v":942,"d":"$942"},null,2,null,null,{"$f":"'2 REPAIR ESTIMATOR'!AD1002","v":{"v":300,"d":"$300.00"}},{"$f":"'2 REPAIR ESTIMATOR'!AM1002","v":{"v":0,"d":"$0.00"}},{"v":300,"d":"$300.00"},{"$f":"'2 REPAIR ESTIMATOR'!AG1002","v":{"v":642,"d":"$642.00"}},{"$f":"'2 REPAIR ESTIMATOR'!AJ1002","v":{"v":0,"d":"$0.00"}}]
[null,null,{"$f":"T('2 REPAIR ESTIMATOR'!D1003:O1003)","v":"Fiberglass tub/shower surround"},{"$nulls":5},{"$f":"'2 REPAIR ESTIMATOR'!P1003","v":0},{"$f":"'2 REPAIR ESTIMATOR'!S1003","v":"ea"},{"v":0,"d":"$0"},{"v":0,"d":"$0"},{"v":0,"d":"$0"},{"v":0,"d":"$0"},null,0,null,null,{"$f":"'2 REPAIR ESTIMATOR'!AD1003","v":{"v":0,"d":"$0.00"}},{"$f":"'2 REPAIR ESTIMATOR'!AM1003","v":{"v":0,"d":"$0.00"}},{"v":0,"d":"$0.00"},{"$f":"'2 REPAIR ESTIMATOR'!AG1003","v":{"v":0,"d":"$0.00"}},{"$f":"'2 REPAIR ESTIMATOR'!AJ1003","v":{"v":0,"d":"$0.00"}}]
[null,null,{"$f":"T('2 REPAIR ESTIMATOR'!D1004:O1004)","v":"Showerhead/tub kit"},{"$nulls":5},{"$f":"'2 REPAIR ESTIMATOR'!P1004","v":2},{"$f":"'2 REPAIR ESTIMATOR'!S1004","v":"ea"},{"v":150,"d":"$150"},{"v":321,"d":"$321"},{"v":0,"d":"$0"},{"v":471,"d":"$471"},null,2,null,null,{"$f":"'2 REPAIR ESTIMATOR'!AD1004","v":{"v":150,"d":"$150.00"}},{"$f":"'2 REPAIR ESTIMATOR'!AM1004","v":{"v":0,"d":"$0.00"}},{"v":150,"d":"$150.00"},{"$f":"'2 REPAIR ESTIMATOR'!AG1004","v":{"v":321,"d":"$321.00"}},{"$f":"'2 REPAIR ESTIMATOR'!AJ1004","v":{"v":0,"d":"$0.00"}}]
[null,null,{"$f":"T('2 REPAIR ESTIMATOR'!D1005:O1005)","v":"Toilets"},{"$nulls":5},{"$f":"'2 REPAIR ESTIMATOR'!P1005","v":2},{"$f":"'2 REPAIR ESTIMATOR'!S1005","v":"ea"},{"v":150,"d":"$150"},{"v":267.5,"d":"$268"},{"v":0,"d":"$0"},{"v":417.5,"d":"$418"},null,2,null,null,{"$f":"'2 REPAIR ESTIMATOR'!AD1005","v":{"v":150,"d":"$150.00"}},{"$f":"'2 REPAIR ESTIMATOR'!AM1005","v":{"v":0,"d":"$0.00"}},{"v":150,"d":"$150.00"},{"$f":"'2 REPAIR ESTIMATOR'!AG1005","v":{"v":267.5,"d":"$267.50"}},{"$f":"'2 REPAIR ESTIMATOR'!AJ1005","v":{"v":0,"d":"$0.00"}}]
[null,null,{"$f":"T('2 REPAIR ESTIMATOR'!D1006:O1006)","v":"Toilet seats"},{"$nulls":5},{"$f":"'2 REPAIR ESTIMATOR'!P1006","v":0},{"$f":"'2 REPAIR ESTIMATOR'!S1006","v":"ea"},{"v":0,"d":"$0"},{"v":0,"d":"$0"},{"v":0,"d":"$0"},{"v":0,"d":"$0"},null,0,null,null,{"$f":"'2 REPAIR ESTIMATOR'!AD1006","v":{"v":0,"d":"$0.00"}},{"$f":"'2 REPAIR ESTIMATOR'!AM1006","v":{"v":0,"d":"$0.00"}},{"v":0,"d":"$0.00"},{"$f":"'2 REPAIR ESTIMATOR'!AG1006","v":{"v":0,"d":"$0.00"}},{"$f":"'2 REPAIR ESTIMATOR'!AJ1006","v":{"v":0,"d":"$0.00"}}]
[null,null,{"$f":"T('2 REPAIR ESTIMATOR'!D1007:O1007)","v":"Pedestal sink"},{"$nulls":5},{"$f":"'2 REPAIR ESTIMATOR'!P1007","v":0},{"$f":"'2 REPAIR ESTIMATOR'!S1007","v":"ea"},{"v":0,"d":"$0"},{"v":0,"d":"$0"},{"v":0,"d":"$0"},{"v":0,"d":"$0"},null,0,null,null,{"$f":"'2 REPAIR ESTIMATOR'!AD1007","v":{"v":0,"d":"$0.00"}},{"$f":"'2 REPAIR ESTIMATOR'!AM1007","v":{"v":0,"d":"$0.00"}},{"v":0,"d":"$0.00"},{"$f":"'2 REPAIR ESTIMATOR'!AG1007","v":{"v":0,"d":"$0.00"}},{"$f":"'2 REPAIR ESTIMATOR'!AJ1007","v":{"v":0,"d":"$0.00"}}]
[null,null,{"$f":"T('2 REPAIR ESTIMATOR'!D1008:O1008)","v":""},{"$nulls":5},{"$f":"'2 REPAIR ESTIMATOR'!P1008","v":0},{"$f":"'2 REPAIR ESTIMATOR'!S1008","v":0},{"v":0,"d":"$0"},{"v":0,"d":"$0"},{"v":0,"d":"$0"},{"v":0,"d":"$0"},null,{"$f":"I953","v":0},null,null,{"$f":"'2 REPAIR ESTIMATOR'!AD1008","v":{"v":0,"d":"$0.00"}},{"$f":"'2 REPAIR ESTIMATOR'!AM1008","v":{"v":0,"d":"$0.00"}},{"v":0,"d":"$0.00"},{"$f":"'2 REPAIR ESTIMATOR'!AG1008","v":{"v":0,"d":"$0.00"}},{"$f":"'2 REPAIR ESTIMATOR'!AJ1008","v":{"v":0,"d":"$0.00"}}]
[null,null,{"$f":"T('2 REPAIR ESTIMATOR'!D1009:O1009)","v":""},{"$nulls":5},{"$f":"'2 REPAIR ESTIMATOR'!P1009","v":0},{"$f":"'2 REPAIR ESTIMATOR'!S1009","v":0},{"v":0,"d":"$0"},{"v":0,"d":"$0"},{"v":0,"d":"$0"},{"v":0,"d":"$0"},null,0,null,null,{"$f":"'2 REPAIR ESTIMATOR'!AD1009","v":{"v":0,"d":"$0.00"}},{"$f":"'2 REPAIR ESTIMATOR'!AM1009","v":{"v":0,"d":"$0.00"}},{"v":0,"d":"$0.00"},{"$f":"'2 REPAIR ESTIMATOR'!AG1009","v":{"v":0,"d":"$0.00"}},{"$f":"'2 REPAIR ESTIMATOR'!AJ1009","v":{"v":0,"d":"$0.00"}}]
[null,null,{"$f":"T('2 REPAIR ESTIMATOR'!D1010:O1010)","v":""},{"$nulls":5},{"$f":"'2 REPAIR ESTIMATOR'!P1010","v":0},{"$f":"'2 REPAIR ESTIMATOR'!S1010","v":0},{"v":0,"d":"$0"},{"v":0,"d":"$0"},{"v":0,"d":"$0"},{"v":0,"d":"$0"},null,0,null,null,{"$f":"'2 REPAIR ESTIMATOR'!AD1010","v":{"v":0,"d":"$0.00"}},{"$f":"'2 REPAIR ESTIMATOR'!AM1010","v":{"v":0,"d":"$0.00"}},{"v":0,"d":"$0.00"},{"$f":"'2 REPAIR ESTIMATOR'!AG1010","v":{"v":0,"d":"$0.00"}},{"$f":"'2 REPAIR ESTIMATOR'!AJ1010","v":{"v":0,"d":"$0.00"}}]
[null,null,{"$f":"T('2 REPAIR ESTIMATOR'!D1011:O1011)","v":""},{"$nulls":5},{"$f":"'2 REPAIR ESTIMATOR'!P1011","v":0},{"$f":"'2 REPAIR ESTIMATOR'!S1011","v":0},{"v":0,"d":"$0"},{"v":0,"d":"$0"},{"v":0,"d":"$0"},{"v":0,"d":"$0"},null,0,null,null,{"$f":"'2 REPAIR ESTIMATOR'!AD1011","v":{"v":0,"d":"$0.00"}},{"$f":"'2 REPAIR ESTIMATOR'!AM1011","v":{"v":0,"d":"$0.00"}},{"v":0,"d":"$0.00"},{"$f":"'2 REPAIR ESTIMATOR'!AG1011","v":{"v":0,"d":"$0.00"}},{"$f":"'2 REPAIR ESTIMATOR'!AJ1011","v":{"v":0,"d":"$0.00"}}]
[null,null,{"$f":"T('2 REPAIR ESTIMATOR'!D1012:O1012)","v":""},{"$nulls":5},{"$f":"'2 REPAIR ESTIMATOR'!P1012","v":0},{"$f":"'2 REPAIR ESTIMATOR'!S1012","v":0},{"v":0,"d":"$0"},{"v":0,"d":"$0"},{"v":0,"d":"$0"},{"v":0,"d":"$0"},null,0,null,null,{"$f":"'2 REPAIR ESTIMATOR'!AD1012","v":{"v":0,"d":"$0.00"}},{"$f":"'2 REPAIR ESTIMATOR'!AM1012","v":{"v":0,"d":"$0.00"}},{"v":0,"d":"$0.00"},{"$f":"'2 REPAIR ESTIMATOR'!AG1012","v":{"v":0,"d":"$0.00"}},{"$f":"'2 REPAIR ESTIMATOR'!AJ1012","v":{"v":0,"d":"$0.00"}}]
[null,null,{"$f":"T('2 REPAIR ESTIMATOR'!D1013:O1013)","v":""},{"$nulls":5},{"$f":"'2 REPAIR ESTIMATOR'!P1013","v":0},{"$f":"'2 REPAIR ESTIMATOR'!S1013","v":0},{"v":0,"d":"$0"},{"v":0,"d":"$0"},{"v":0,"d":"$0"},{"v":0,"d":"$0"},null,0,null,null,{"$f":"'2 REPAIR ESTIMATOR'!AD1013","v":{"v":0,"d":"$0.00"}},{"$f":"'2 REPAIR ESTIMATOR'!AM1013","v":{"v":0,"d":"$0.00"}},{"v":0,"d":"$0.00"},{"$f":"'2 REPAIR ESTIMATOR'!AG1013","v":{"v":0,"d":"$0.00"}},{"$f":"'2 REPAIR ESTIMATOR'!AJ1013","v":{"v":0,"d":"$0.00"}}]
[null,null,{"$f":"T('2 REPAIR ESTIMATOR'!D1014:O1014)","v":""},{"$nulls":5},{"$f":"'2 REPAIR ESTIMATOR'!P1014","v":0},{"$f":"'2 REPAIR ESTIMATOR'!S1014","v":0},{"v":0,"d":"$0"},{"v":0,"d":"$0"},{"v":0,"d":"$0"},{"v":0,"d":"$0"},null,0,null,null,{"$f":"'2 REPAIR ESTIMATOR'!AD1014","v":{"v":0,"d":"$0.00"}},{"$f":"'2 REPAIR ESTIMATOR'!AM1014","v":{"v":0,"d":"$0.00"}},{"v":0,"d":"$0.00"},{"$f":"'2 REPAIR ESTIMATOR'!AG1014","v":{"v":0,"d":"$0.00"}},{"$f":"'2 REPAIR ESTIMATOR'!AJ1014","v":{"v":0,"d":"$0.00"}}]
[null,null,{"$f":"T('2 REPAIR ESTIMATOR'!D1015:O1015)","v":""},{"$nulls":5},{"$f":"'2 REPAIR ESTIMATOR'!P1015","v":0},{"$f":"'2 REPAIR ESTIMATOR'!S1015","v":0},{"v":0,"d":"$0"},{"v":0,"d":"$0"},{"v":0,"d":"$0"},{"v":0,"d":"$0"},null,0,null,null,{"$f":"'2 REPAIR ESTIMATOR'!AD1015","v":{"v":0,"d":"$0.00"}},{"$f":"'2 REPAIR ESTIMATOR'!AM1015","v":{"v":0,"d":"$0.00"}},{"v":0,"d":"$0.00"},{"$f":"'2 REPAIR ESTIMATOR'!AG1015","v":{"v":0,"d":"$0.00"}},{"$f":"'2 REPAIR ESTIMATOR'!AJ1015","v":{"v":0,"d":"$0.00"}}]
[null,null,{"$f":"T('2 REPAIR ESTIMATOR'!D1016:O1016)","v":""},{"$nulls":5},{"$f":"'2 REPAIR ESTIMATOR'!P1016","v":0},{"$f":"'2 REPAIR ESTIMATOR'!S1016","v":0},{"v":0,"d":"$0"},{"v":0,"d":"$0"},{"v":0,"d":"$0"},{"v":0,"d":"$0"},null,0,null,null,{"$f":"'2 REPAIR ESTIMATOR'!AD1016","v":{"v":0,"d":"$0.00"}},{"$f":"'2 REPAIR ESTIMATOR'!AM1016","v":{"v":0,"d":"$0.00"}},{"v":0,"d":"$0.00"},{"$f":"'2 REPAIR ESTIMATOR'!AG1016","v":{"v":0,"d":"$0.00"}},{"$f":"'2 REPAIR ESTIMATOR'!AJ1016","v":{"v":0,"d":"$0.00"}}]
[null,null,{"$f":"T('2 REPAIR ESTIMATOR'!D1017:O1017)","v":""},{"$nulls":5},{"$f":"'2 REPAIR ESTIMATOR'!P1017","v":0},{"$f":"'2 REPAIR ESTIMATOR'!S1017","v":0},{"v":0,"d":"$0"},{"v":0,"d":"$0"},{"v":0,"d":"$0"},{"v":0,"d":"$0"},null,0,null,null,{"$f":"'2 REPAIR ESTIMATOR'!AD1017","v":{"v":0,"d":"$0.00"}},{"$f":"'2 REPAIR ESTIMATOR'!AM1017","v":{"v":0,"d":"$0.00"}},{"v":0,"d":"$0.00"},{"$f":"'2 REPAIR ESTIMATOR'!AG1017","v":{"v":0,"d":"$0.00"}},{"$f":"'2 REPAIR ESTIMATOR'!AJ1017","v":{"v":0,"d":"$0.00"}}]
[null,null,{"$f":"T('2 REPAIR ESTIMATOR'!D1018:O1018)","v":""},{"$nulls":5},{"$f":"'2 REPAIR ESTIMATOR'!P1018","v":0},{"$f":"'2 REPAIR ESTIMATOR'!S1018","v":0},{"v":0,"d":"$0"},{"v":0,"d":"$0"},{"v":0,"d":"$0"},{"v":0,"d":"$0"},null,0,null,null,{"$f":"'2 REPAIR ESTIMATOR'!AD1018","v":{"v":0,"d":"$0.00"}},{"$f":"'2 REPAIR ESTIMATOR'!AM1018","v":{"v":0,"d":"$0.00"}},{"v":0,"d":"$0.00"},{"$f":"'2 REPAIR ESTIMATOR'!AG1018","v":{"v":0,"d":"$0.00"}},{"$f":"'2 REPAIR ESTIMATOR'!AJ1018","v":{"v":0,"d":"$0.00"}}]
[null,null,{"$f":"T('2 REPAIR ESTIMATOR'!D1019:O1019)","v":""},{"$nulls":5},{"$f":"'2 REPAIR ESTIMATOR'!P1019","v":0},{"$f":"'2 REPAIR ESTIMATOR'!S1019","v":0},{"v":0,"d":"$0"},{"v":0,"d":"$0"},{"v":0,"d":"$0"},{"v":0,"d":"$0"},null,0,null,null,{"$f":"'2 REPAIR ESTIMATOR'!AD1019","v":{"v":0,"d":"$0.00"}},{"$f":"'2 REPAIR ESTIMATOR'!AM1019","v":{"v":0,"d":"$0.00"}},{"v":0,"d":"$0.00"},{"$f":"'2 REPAIR ESTIMATOR'!AG1019","v":{"v":0,"d":"$0.00"}},{"$f":"'2 REPAIR ESTIMATOR'!AJ1019","v":{"v":0,"d":"$0.00"}}]
[null,null,{"$f":"T('2 REPAIR ESTIMATOR'!D1020:O1020)","v":""},{"$nulls":5},{"$f":"'2 REPAIR ESTIMATOR'!P1020","v":0},{"$f":"'2 REPAIR ESTIMATOR'!S1020","v":0},{"v":0,"d":"$0"},{"v":0,"d":"$0"},{"v":0,"d":"$0"},{"v":0,"d":"$0"},null,0,null,null,{"$f":"'2 REPAIR ESTIMATOR'!AD1020","v":{"v":0,"d":"$0.00"}},{"$f":"'2 REPAIR ESTIMATOR'!AM1020","v":{"v":0,"d":"$0.00"}},{"v":0,"d":"$0.00"},{"$f":"'2 REPAIR ESTIMATOR'!AG1020","v":{"v":0,"d":"$0.00"}},{"$f":"'2 REPAIR ESTIMATOR'!AJ1020","v":{"v":0,"d":"$0.00"}}]
[null,null,{"$f":"T('2 REPAIR ESTIMATOR'!D1021:O1021)","v":""},{"$nulls":5},{"$f":"'2 REPAIR ESTIMATOR'!P1021","v":0},{"$f":"'2 REPAIR ESTIMATOR'!S1021","v":0},{"v":0,"d":"$0"},{"v":0,"d":"$0"},{"v":0,"d":"$0"},{"v":0,"d":"$0"},null,0,null,null,{"$f":"'2 REPAIR ESTIMATOR'!AD1021","v":{"v":0,"d":"$0.00"}},{"$f":"'2 REPAIR ESTIMATOR'!AM1021","v":{"v":0,"d":"$0.00"}},{"v":0,"d":"$0.00"},{"$f":"'2 REPAIR ESTIMATOR'!AG1021","v":{"v":0,"d":"$0.00"}},{"$f":"'2 REPAIR ESTIMATOR'!AJ1021","v":{"v":0,"d":"$0.00"}}]
[null,null,{"$f":"T('2 REPAIR ESTIMATOR'!D1022:O1022)","v":""},{"$nulls":5},{"$f":"'2 REPAIR ESTIMATOR'!P1022","v":0},{"$f":"'2 REPAIR ESTIMATOR'!S1022","v":0},{"v":0,"d":"$0"},{"v":0,"d":"$0"},{"v":0,"d":"$0"},{"v":0,"d":"$0"},null,0,null,null,{"$f":"'2 REPAIR ESTIMATOR'!AD1022","v":{"v":0,"d":"$0.00"}},{"$f":"'2 REPAIR ESTIMATOR'!AM1022","v":{"v":0,"d":"$0.00"}},{"v":0,"d":"$0.00"},{"$f":"'2 REPAIR ESTIMATOR'!AG1022","v":{"v":0,"d":"$0.00"}},{"$f":"'2 REPAIR ESTIMATOR'!AJ1022","v":{"v":0,"d":"$0.00"}}]
[null,null,{"$f":"T('2 REPAIR ESTIMATOR'!D1023:O1023)","v":""},{"$nulls":5},{"$f":"'2 REPAIR ESTIMATOR'!P1023","v":0},{"$f":"'2 REPAIR ESTIMATOR'!S1023","v":0},{"v":0,"d":"$0"},{"v":0,"d":"$0"},{"v":0,"d":"$0"},{"v":0,"d":"$0"},null,0,null,null,{"$f":"'2 REPAIR ESTIMATOR'!AD1023","v":{"v":0,"d":"$0.00"}},{"$f":"'2 REPAIR ESTIMATOR'!AM1023","v":{"v":0,"d":"$0.00"}},{"v":0,"d":"$0.00"},{"$f":"'2 REPAIR ESTIMATOR'!AG1023","v":{"v":0,"d":"$0.00"}},{"$f":"'2 REPAIR ESTIMATOR'!AJ1023","v":{"v":0,"d":"$0.00"}}]
[null,null,{"$f":"T('2 REPAIR ESTIMATOR'!D1024:O1024)","v":""},{"$nulls":5},{"$f":"'2 REPAIR ESTIMATOR'!P1024","v":0},{"$f":"'2 REPAIR ESTIMATOR'!S1024","v":0},{"v":0,"d":"$0"},{"v":0,"d":"$0"},{"v":0,"d":"$0"},{"v":0,"d":"$0"},null,0,null,null,{"$f":"'2 REPAIR ESTIMATOR'!AD1024","v":{"v":0,"d":"$0.00"}},{"$f":"'2 REPAIR ESTIMATOR'!AM1024","v":{"v":0,"d":"$0.00"}},{"v":0,"d":"$0.00"},{"$f":"'2 REPAIR ESTIMATOR'!AG1024","v":{"v":0,"d":"$0.00"}},{"$f":"'2 REPAIR ESTIMATOR'!AJ1024","v":{"v":0,"d":"$0.00"}}]
[null,null,{"$f":"T('2 REPAIR ESTIMATOR'!D1025:O1025)","v":""},{"$nulls":5},{"$f":"'2 REPAIR ESTIMATOR'!P1025","v":0},{"$f":"'2 REPAIR ESTIMATOR'!S1025","v":0},{"v":0,"d":"$0"},{"v":0,"d":"$0"},{"v":0,"d":"$0"},{"v":0,"d":"$0"},null,0,null,null,{"$f":"'2 REPAIR ESTIMATOR'!AD1025","v":{"v":0,"d":"$0.00"}},{"$f":"'2 REPAIR ESTIMATOR'!AM1025","v":{"v":0,"d":"$0.00"}},{"v":0,"d":"$0.00"},{"$f":"'2 REPAIR ESTIMATOR'!AG1025","v":{"v":0,"d":"$0.00"}},{"$f":"'2 REPAIR ESTIMATOR'!AJ1025","v":{"v":0,"d":"$0.00"}}]
[null,null,{"$f":"T('2 REPAIR ESTIMATOR'!D1026:O1026)","v":""},{"$nulls":5},{"$f":"'2 REPAIR ESTIMATOR'!P1026","v":0},{"$f":"'2 REPAIR ESTIMATOR'!S1026","v":0},{"v":0,"d":"$0"},{"v":0,"d":"$0"},{"v":0,"d":"$0"},{"v":0,"d":"$0"},null,0,null,null,{"$f":"'2 REPAIR ESTIMATOR'!AD1026","v":{"v":0,"d":"$0.00"}},{"$f":"'2 REPAIR ESTIMATOR'!AM1026","v":{"v":0,"d":"$0.00"}},{"v":0,"d":"$0.00"},{"$f":"'2 REPAIR ESTIMATOR'!AG1026","v":{"v":0,"d":"$0.00"}},{"$f":"'2 REPAIR ESTIMATOR'!AJ1026","v":{"v":0,"d":"$0.00"}}]
[null,null,{"$f":"T('2 REPAIR ESTIMATOR'!D1027:O1027)","v":""},{"$nulls":5},{"$f":"'2 REPAIR ESTIMATOR'!P1027","v":0},{"$f":"'2 REPAIR ESTIMATOR'!S1027","v":0},{"v":0,"d":"$0"},{"v":0,"d":"$0"},{"v":0,"d":"$0"},{"v":0,"d":"$0"},null,0,null,null,{"$f":"'2 REPAIR ESTIMATOR'!AD1027","v":{"v":0,"d":"$0.00"}},{"$f":"'2 REPAIR ESTIMATOR'!AM1027","v":{"v":0,"d":"$0.00"}},{"v":0,"d":"$0.00"},{"$f":"'2 REPAIR ESTIMATOR'!AG1027","v":{"v":0,"d":"$0.00"}},{"$f":"'2 REPAIR ESTIMATOR'!AJ1027","v":{"v":0,"d":"$0.00"}}]
[null,null,{"$f":"T('2 REPAIR ESTIMATOR'!AC1029)","v":"PLUMBING TOTAL"},{"$nulls":7},{"$f":"SUM(K933:K972)","v":{"v":1105,"d":"$1,105"}},{"$f":"SUM(L933:L972)","v":{"v":1819,"d":"$1,819"}},{"$f":"SUM(M933:M972)","v":{"v":0,"d":"$0"}},{"$f":"SUM(N933:O972)","v":{"v":2924,"d":"$2,924"}},null,{"$f":"SUM(P932:P952)","v":28},null,null,{"$f":"SUM(S933:S972)","v":{"v":1105,"d":"$1,105.00"}},{"$f":"SUM(T933:T972)","v":{"v":0,"d":"$0.00"}},{"$f":"SUM(U933:U972)","v":{"v":1105,"d":"$1,105.00"}},{"$f":"SUM(V933:V972)","v":{"v":1819,"d":"$1,819.00"}},{"$f":"SUM(W933:W972)","v":{"v":0,"d":"$0.00"}}]
[{"$nulls":15},{"$f":"P973","v":28}]
[null,null,{"$f":"T('2 REPAIR ESTIMATOR'!D1032:O1032)","v":"HVAC"},{"$nulls":5},{"$f":"SUM(I976:I1015)","v":16},{"$nulls":6},{"$f":"I975","v":16}]
[null,null,{"$f":"T('2 REPAIR ESTIMATOR'!D1033:O1033)","v":"HVAC, bid/allowance"},{"$nulls":5},{"$f":"'2 REPAIR ESTIMATOR'!P1033","v":0},{"$f":"'2 REPAIR ESTIMATOR'!S1033","v":"ls"},{"$f":"IF($N$3=\"subbed\",U976,S976)*$S$70","v":{"v":0,"d":"$0"}},{"$f":"V976*$S$70","v":{"v":0,"d":"$0"}},{"$f":"W976*$S$70","v":{"v":0,"d":"$0"}},{"$f":"SUM(K976:M976)","v":{"v":0,"d":"$0"}},null,0,null,null,{"$f":"'2 REPAIR ESTIMATOR'!AD1033","v":{"v":0,"d":"$0.00"}},{"$f":"'2 REPAIR ESTIMATOR'!AM1033","v":{"v":0,"d":"$0.00"}},{"$f":"T976+S976","v":{"v":0,"d":"$0.00"}},{"$f":"'2 REPAIR ESTIMATOR'!AG1033","v":{"v":0,"d":"$0.00"}},{"$f":"'2 REPAIR ESTIMATOR'!AJ1033","v":{"v":0,"d":"$0.00"}}]
[null,null,{"$f":"T('2 REPAIR ESTIMATOR'!D1034:O1034)","v":"HVAC Rough-In, per hour"},{"$nulls":5},{"$f":"'2 REPAIR ESTIMATOR'!P1034","v":0},{"$f":"'2 REPAIR ESTIMATOR'!S1034","v":"hrs"},{"v":0,"d":"$0"},{"$f":"V977*$S$70","v":{"v":0,"d":"$0"}},{"$f":"W977*$S$70","v":{"v":0,"d":"$0"}},{"$f":"SUM(K977:M977)","v":{"v":0,"d":"$0"}},null,0,null,null,{"$f":"'2 REPAIR ESTIMATOR'!AD1034","v":{"v":0,"d":"$0.00"}},{"$f":"'2 REPAIR ESTIMATOR'!AM1034","v":{"v":0,"d":"$0.00"}},{"$f":"T977+S977","v":{"v":0,"d":"$0.00"}},{"$f":"'2 REPAIR ESTIMATOR'!AG1034","v":{"v":0,"d":"$0.00"}},{"$f":"'2 REPAIR ESTIMATOR'!AJ1034","v":{"v":0,"d":"$0.00"}}]
[null,null,{"$f":"T('2 REPAIR ESTIMATOR'!D1035:O1035)","v":"HVAC Finish Work, per hour"},{"$nulls":5},{"$f":"'2 REPAIR ESTIMATOR'!P1035","v":0},{"$f":"'2 REPAIR ESTIMATOR'!S1035","v":"hrs"},{"v":0,"d":"$0"},{"v":0,"d":"$0"},{"v":0,"d":"$0"},{"v":0,"d":"$0"},null,0,null,null,{"$f":"'2 REPAIR ESTIMATOR'!AD1035","v":{"v":0,"d":"$0.00"}},{"$f":"'2 REPAIR ESTIMATOR'!AM1035","v":{"v":0,"d":"$0.00"}},{"v":0,"d":"$0.00"},{"$f":"'2 REPAIR ESTIMATOR'!AG1035","v":{"v":0,"d":"$0.00"}},{"$f":"'2 REPAIR ESTIMATOR'!AJ1035","v":{"v":0,"d":"$0.00"}}]
[null,null,{"$f":"T('2 REPAIR ESTIMATOR'!D1036:O1036)","v":"Replace gas fired forced air unit, 1000 sf, 60k btus"},{"$nulls":5},{"$f":"'2 REPAIR ESTIMATOR'!P1036","v":0},{"$f":"'2 REPAIR ESTIMATOR'!S1036","v":"ea"},{"v":0,"d":"$0"},{"v":0,"d":"$0"},{"v":0,"d":"$0"},{"v":0,"d":"$0"},null,0,null,null,{"$f":"'2 REPAIR ESTIMATOR'!AD1036","v":{"v":0,"d":"$0.00"}},{"$f":"'2 REPAIR ESTIMATOR'!AM1036","v":{"v":0,"d":"$0.00"}},{"v":0,"d":"$0.00"},{"$f":"'2 REPAIR ESTIMATOR'!AG1036","v":{"v":0,"d":"$0.00"}},{"$f":"'2 REPAIR ESTIMATOR'!AJ1036","v":{"v":0,"d":"$0.00"}}]
[null,null,{"$f":"T('2 REPAIR ESTIMATOR'!D1037:O1037)","v":"Replace gas fired forced air unit, 2,000, 80k btus"},{"$nulls":5},{"$f":"'2 REPAIR ESTIMATOR'!P1037","v":0},{"$f":"'2 REPAIR ESTIMATOR'!S1037","v":"ea"},{"v":0,"d":"$0"},{"v":0,"d":"$0"},{"v":0,"d":"$0"},{"v":0,"d":"$0"},null,0,null,null,{"$f":"'2 REPAIR ESTIMATOR'!AD1037","v":{"v":0,"d":"$0.00"}},{"$f":"'2 REPAIR ESTIMATOR'!AM1037","v":{"v":0,"d":"$0.00"}},{"v":0,"d":"$0.00"},{"$f":"'2 REPAIR ESTIMATOR'!AG1037","v":{"v":0,"d":"$0.00"}},{"$f":"'2 REPAIR ESTIMATOR'!AJ1037","v":{"v":0,"d":"$0.00"}}]
[null,null,{"$f":"T('2 REPAIR ESTIMATOR'!D1038:O1038)","v":"Replace gas fired forced air unit, 3,000, 100k btus"},{"$nulls":5},{"$f":"'2 REPAIR ESTIMATOR'!P1038","v":0},{"$f":"'2 REPAIR ESTIMATOR'!S1038","v":"ea"},{"v":0,"d":"$0"},{"v":0,"d":"$0"},{"v":0,"d":"$0"},{"v":0,"d":"$0"},null,0,null,null,{"$f":"'2 REPAIR ESTIMATOR'!AD1038","v":{"v":0,"d":"$0.00"}},{"$f":"'2 REPAIR ESTIMATOR'!AM1038","v":{"v":0,"d":"$0.00"}},{"v":0,"d":"$0.00"},{"$f":"'2 REPAIR ESTIMATOR'!AG1038","v":{"v":0,"d":"$0.00"}},{"$f":"'2 REPAIR ESTIMATOR'!AJ1038","v":{"v":0,"d":"$0.00"}}]
[null,null,{"$f":"T('2 REPAIR ESTIMATOR'!D1039:O1039)","v":"Replace air conditioning unit, ~1,000 sf, 2 ton"},{"$nulls":5},{"$f":"'2 REPAIR ESTIMATOR'!P1039","v":0},{"$f":"'2 REPAIR ESTIMATOR'!S1039","v":"ea"},{"v":0,"d":"$0"},{"v":0,"d":"$0"},{"v":0,"d":"$0"},{"v":0,"d":"$0"},null,0,null,null,{"$f":"'2 REPAIR ESTIMATOR'!AD1039","v":{"v":0,"d":"$0.00"}},{"$f":"'2 REPAIR ESTIMATOR'!AM1039","v":{"v":0,"d":"$0.00"}},{"v":0,"d":"$0.00"},{"$f":"'2 REPAIR ESTIMATOR'!AG1039","v":{"v":0,"d":"$0.00"}},{"$f":"'2 REPAIR ESTIMATOR'!AJ1039","v":{"v":0,"d":"$0.00"}}]
[null,null,{"$f":"T('2 REPAIR ESTIMATOR'!D1040:O1040)","v":"Replace air conditioning unit, ~2,000 sf, 3.5 ton"},{"$nulls":5},{"$f":"'2 REPAIR ESTIMATOR'!P1040","v":0},{"$f":"'2 REPAIR ESTIMATOR'!S1040","v":"ea"},{"v":0,"d":"$0"},{"v":0,"d":"$0"},{"v":0,"d":"$0"},{"v":0,"d":"$0"},null,0,null,null,{"$f":"'2 REPAIR ESTIMATOR'!AD1040","v":{"v":0,"d":"$0.00"}},{"$f":"'2 REPAIR ESTIMATOR'!AM1040","v":{"v":0,"d":"$0.00"}},{"v":0,"d":"$0.00"},{"$f":"'2 REPAIR ESTIMATOR'!AG1040","v":{"v":0,"d":"$0.00"}},{"$f":"'2 REPAIR ESTIMATOR'!AJ1040","v":{"v":0,"d":"$0.00"}}]
[null,null,{"$f":"T('2 REPAIR ESTIMATOR'!D1041:O1041)","v":"Replace air conditioning unit, ~3,000sf, 5 ton"},{"$nulls":5},{"$f":"'2 REPAIR ESTIMATOR'!P1041","v":0},{"$f":"'2 REPAIR ESTIMATOR'!S1041","v":"ea"},{"v":0,"d":"$0"},{"v":0,"d":"$0"},{"v":0,"d":"$0"},{"v":0,"d":"$0"},null,0,null,null,{"$f":"'2 REPAIR ESTIMATOR'!AD1041","v":{"v":0,"d":"$0.00"}},{"$f":"'2 REPAIR ESTIMATOR'!AM1041","v":{"v":0,"d":"$0.00"}},{"v":0,"d":"$0.00"},{"$f":"'2 REPAIR ESTIMATOR'!AG1041","v":{"v":0,"d":"$0.00"}},{"$f":"'2 REPAIR ESTIMATOR'!AJ1041","v":{"v":0,"d":"$0.00"}}]
[null,null,{"$f":"T('2 REPAIR ESTIMATOR'!D1042:O1042)","v":"Hotel type, hot/cold packaged unit"},{"$nulls":5},{"$f":"'2 REPAIR ESTIMATOR'!P1042","v":0},{"$f":"'2 REPAIR ESTIMATOR'!S1042","v":"ea"},{"v":0,"d":"$0"},{"v":0,"d":"$0"},{"v":0,"d":"$0"},{"v":0,"d":"$0"},null,0,null,null,{"$f":"'2 REPAIR ESTIMATOR'!AD1042","v":{"v":0,"d":"$0.00"}},{"$f":"'2 REPAIR ESTIMATOR'!AM1042","v":{"v":0,"d":"$0.00"}},{"v":0,"d":"$0.00"},{"$f":"'2 REPAIR ESTIMATOR'!AG1042","v":{"v":0,"d":"$0.00"}},{"$f":"'2 REPAIR ESTIMATOR'!AJ1042","v":{"v":0,"d":"$0.00"}}]
[null,null,{"$f":"T('2 REPAIR ESTIMATOR'!D1043:O1043)","v":"Window mounted unit"},{"$nulls":5},{"$f":"'2 REPAIR ESTIMATOR'!P1043","v":0},{"$f":"'2 REPAIR ESTIMATOR'!S1043","v":"ea"},{"v":0,"d":"$0"},{"v":0,"d":"$0"},{"v":0,"d":"$0"},{"v":0,"d":"$0"},null,0,null,null,{"$f":"'2 REPAIR ESTIMATOR'!AD1043","v":{"v":0,"d":"$0.00"}},{"$f":"'2 REPAIR ESTIMATOR'!AM1043","v":{"v":0,"d":"$0.00"}},{"v":0,"d":"$0.00"},{"$f":"'2 REPAIR ESTIMATOR'!AG1043","v":{"v":0,"d":"$0.00"}},{"$f":"'2 REPAIR ESTIMATOR'!AJ1043","v":{"v":0,"d":"$0.00"}}]
[null,null,{"$f":"T('2 REPAIR ESTIMATOR'!D1044:O1044)","v":"HVAC equipment tune-up/service call"},{"$nulls":5},{"$f":"'2 REPAIR ESTIMATOR'!P1044","v":0},{"$f":"'2 REPAIR ESTIMATOR'!S1044","v":"ea"},{"v":0,"d":"$0"},{"v":0,"d":"$0"},{"v":0,"d":"$0"},{"v":0,"d":"$0"},null,0,null,null,{"$f":"'2 REPAIR ESTIMATOR'!AD1044","v":{"v":0,"d":"$0.00"}},{"$f":"'2 REPAIR ESTIMATOR'!AM1044","v":{"v":0,"d":"$0.00"}},{"v":0,"d":"$0.00"},{"$f":"'2 REPAIR ESTIMATOR'!AG1044","v":{"v":0,"d":"$0.00"}},{"$f":"'2 REPAIR ESTIMATOR'!AJ1044","v":{"v":0,"d":"$0.00"}}]
[null,null,{"$f":"T('2 REPAIR ESTIMATOR'!D1045:O1045)","v":"Programmable thermostat"},{"$nulls":5},{"$f":"'2 REPAIR ESTIMATOR'!P1045","v":1},{"$f":"'2 REPAIR ESTIMATOR'!S1045","v":"ea"},{"v":50,"d":"$50"},{"v":80.25,"d":"$80"},{"v":0,"d":"$0"},{"v":130.25,"d":"$130"},null,1,null,null,{"$f":"'2 REPAIR ESTIMATOR'!AD1045","v":{"v":50,"d":"$50.00"}},{"$f":"'2 REPAIR ESTIMATOR'!AM1045","v":{"v":0,"d":"$0.00"}},{"v":50,"d":"$50.00"},{"$f":"'2 REPAIR ESTIMATOR'!AG1045","v":{"v":80.25,"d":"$80.25"}},{"$f":"'2 REPAIR ESTIMATOR'!AJ1045","v":{"v":0,"d":"$0.00"}}]
[null,null,{"$f":"T('2 REPAIR ESTIMATOR'!D1046:O1046)","v":"Replace supply air grilles/returns"},{"$nulls":5},{"$f":"'2 REPAIR ESTIMATOR'!P1046","v":15},{"$f":"'2 REPAIR ESTIMATOR'!S1046","v":"ea"},{"v":112.5,"d":"$113"},{"v":240.75,"d":"$241"},{"v":0,"d":"$0"},{"v":353.25,"d":"$353"},null,15,null,null,{"$f":"'2 REPAIR ESTIMATOR'!AD1046","v":{"v":112.5,"d":"$112.50"}},{"$f":"'2 REPAIR ESTIMATOR'!AM1046","v":{"v":0,"d":"$0.00"}},{"v":112.5,"d":"$112.50"},{"$f":"'2 REPAIR ESTIMATOR'!AG1046","v":{"v":240.75,"d":"$240.75"}},{"$f":"'2 REPAIR ESTIMATOR'!AJ1046","v":{"v":0,"d":"$0.00"}}]
[null,null,{"$f":"T('2 REPAIR ESTIMATOR'!D1047:O1047)","v":"Clean ductwork"},{"$nulls":5},{"$f":"'2 REPAIR ESTIMATOR'!P1047","v":0},{"$f":"'2 REPAIR ESTIMATOR'!S1047","v":"ls"},{"v":0,"d":"$0"},{"v":0,"d":"$0"},{"v":0,"d":"$0"},{"v":0,"d":"$0"},null,0,null,null,{"$f":"'2 REPAIR ESTIMATOR'!AD1047","v":{"v":0,"d":"$0.00"}},{"$f":"'2 REPAIR ESTIMATOR'!AM1047","v":{"v":0,"d":"$0.00"}},{"v":0,"d":"$0.00"},{"$f":"'2 REPAIR ESTIMATOR'!AG1047","v":{"v":0,"d":"$0.00"}},{"$f":"'2 REPAIR ESTIMATOR'!AJ1047","v":{"v":0,"d":"$0.00"}}]
[null,null,{"$f":"T('2 REPAIR ESTIMATOR'!D1048:O1048)","v":""},{"$nulls":5},{"$f":"'2 REPAIR ESTIMATOR'!P1048","v":0},{"$f":"'2 REPAIR ESTIMATOR'!S1048","v":0},{"v":0,"d":"$0"},{"v":0,"d":"$0"},{"v":0,"d":"$0"},{"v":0,"d":"$0"},null,0,null,null,{"$f":"'2 REPAIR ESTIMATOR'!AD1048","v":{"v":0,"d":"$0.00"}},{"$f":"'2 REPAIR ESTIMATOR'!AM1048","v":{"v":0,"d":"$0.00"}},{"v":0,"d":"$0.00"},{"$f":"'2 REPAIR ESTIMATOR'!AG1048","v":{"v":0,"d":"$0.00"}},{"$f":"'2 REPAIR ESTIMATOR'!AJ1048","v":{"v":0,"d":"$0.00"}}]
[null,null,{"$f":"T('2 REPAIR ESTIMATOR'!D1049:O1049)","v":""},{"$nulls":5},{"$f":"'2 REPAIR ESTIMATOR'!P1049","v":0},{"$f":"'2 REPAIR ESTIMATOR'!S1049","v":0},{"v":0,"d":"$0"},{"v":0,"d":"$0"},{"v":0,"d":"$0"},{"v":0,"d":"$0"},null,0,null,null,{"$f":"'2 REPAIR ESTIMATOR'!AD1049","v":{"v":0,"d":"$0.00"}},{"$f":"'2 REPAIR ESTIMATOR'!AM1049","v":{"v":0,"d":"$0.00"}},{"v":0,"d":"$0.00"},{"$f":"'2 REPAIR ESTIMATOR'!AG1049","v":{"v":0,"d":"$0.00"}},{"$f":"'2 REPAIR ESTIMATOR'!AJ1049","v":{"v":0,"d":"$0.00"}}]
[null,null,{"$f":"T('2 REPAIR ESTIMATOR'!D1050:O1050)","v":""},{"$nulls":5},{"$f":"'2 REPAIR ESTIMATOR'!P1050","v":0},{"$f":"'2 REPAIR ESTIMATOR'!S1050","v":0},{"v":0,"d":"$0"},{"v":0,"d":"$0"},{"v":0,"d":"$0"},{"v":0,"d":"$0"},null,0,null,null,{"$f":"'2 REPAIR ESTIMATOR'!AD1050","v":{"v":0,"d":"$0.00"}},{"$f":"'2 REPAIR ESTIMATOR'!AM1050","v":{"v":0,"d":"$0.00"}},{"v":0,"d":"$0.00"},{"$f":"'2 REPAIR ESTIMATOR'!AG1050","v":{"v":0,"d":"$0.00"}},{"$f":"'2 REPAIR ESTIMATOR'!AJ1050","v":{"v":0,"d":"$0.00"}}]
[null,null,{"$f":"T('2 REPAIR ESTIMATOR'!D1051:O1051)","v":""},{"$nulls":5},{"$f":"'2 REPAIR ESTIMATOR'!P1051","v":0},{"$f":"'2 REPAIR ESTIMATOR'!S1051","v":0},{"v":0,"d":"$0"},{"v":0,"d":"$0"},{"v":0,"d":"$0"},{"v":0,"d":"$0"},null,0,null,null,{"$f":"'2 REPAIR ESTIMATOR'!AD1051","v":{"v":0,"d":"$0.00"}},{"$f":"'2 REPAIR ESTIMATOR'!AM1051","v":{"v":0,"d":"$0.00"}},{"v":0,"d":"$0.00"},{"$f":"'2 REPAIR ESTIMATOR'!AG1051","v":{"v":0,"d":"$0.00"}},{"$f":"'2 REPAIR ESTIMATOR'!AJ1051","v":{"v":0,"d":"$0.00"}}]
[null,null,{"$f":"T('2 REPAIR ESTIMATOR'!D1052:O1052)","v":""},{"$nulls":5},{"$f":"'2 REPAIR ESTIMATOR'!P1052","v":0},{"$f":"'2 REPAIR ESTIMATOR'!S1052","v":0},{"v":0,"d":"$0"},{"v":0,"d":"$0"},{"v":0,"d":"$0"},{"v":0,"d":"$0"},null,0,null,null,{"$f":"'2 REPAIR ESTIMATOR'!AD1052","v":{"v":0,"d":"$0.00"}},{"$f":"'2 REPAIR ESTIMATOR'!AM1052","v":{"v":0,"d":"$0.00"}},{"v":0,"d":"$0.00"},{"$f":"'2 REPAIR ESTIMATOR'!AG1052","v":{"v":0,"d":"$0.00"}},{"$f":"'2 REPAIR ESTIMATOR'!AJ1052","v":{"v":0,"d":"$0.00"}}]
[null,null,{"$f":"T('2 REPAIR ESTIMATOR'!D1053:O1053)","v":""},{"$nulls":5},{"$f":"'2 REPAIR ESTIMATOR'!P1053","v":0},{"$f":"'2 REPAIR ESTIMATOR'!S1053","v":0},{"v":0,"d":"$0"},{"v":0,"d":"$0"},{"v":0,"d":"$0"},{"v":0,"d":"$0"},null,{"$f":"I996","v":0},null,null,{"$f":"'2 REPAIR ESTIMATOR'!AD1053","v":{"v":0,"d":"$0.00"}},{"$f":"'2 REPAIR ESTIMATOR'!AM1053","v":{"v":0,"d":"$0.00"}},{"v":0,"d":"$0.00"},{"$f":"'2 REPAIR ESTIMATOR'!AG1053","v":{"v":0,"d":"$0.00"}},{"$f":"'2 REPAIR ESTIMATOR'!AJ1053","v":{"v":0,"d":"$0.00"}}]
[null,null,{"$f":"T('2 REPAIR ESTIMATOR'!D1054:O1054)","v":""},{"$nulls":5},{"$f":"'2 REPAIR ESTIMATOR'!P1054","v":0},{"$f":"'2 REPAIR ESTIMATOR'!S1054","v":0},{"v":0,"d":"$0"},{"v":0,"d":"$0"},{"v":0,"d":"$0"},{"v":0,"d":"$0"},null,0,null,null,{"$f":"'2 REPAIR ESTIMATOR'!AD1054","v":{"v":0,"d":"$0.00"}},{"$f":"'2 REPAIR ESTIMATOR'!AM1054","v":{"v":0,"d":"$0.00"}},{"v":0,"d":"$0.00"},{"$f":"'2 REPAIR ESTIMATOR'!AG1054","v":{"v":0,"d":"$0.00"}},{"$f":"'2 REPAIR ESTIMATOR'!AJ1054","v":{"v":0,"d":"$0.00"}}]
[null,null,{"$f":"T('2 REPAIR ESTIMATOR'!D1055:O1055)","v":""},{"$nulls":5},{"$f":"'2 REPAIR ESTIMATOR'!P1055","v":0},{"$f":"'2 REPAIR ESTIMATOR'!S1055","v":0},{"v":0,"d":"$0"},{"v":0,"d":"$0"},{"v":0,"d":"$0"},{"v":0,"d":"$0"},null,0,null,null,{"$f":"'2 REPAIR ESTIMATOR'!AD1055","v":{"v":0,"d":"$0.00"}},{"$f":"'2 REPAIR ESTIMATOR'!AM1055","v":{"v":0,"d":"$0.00"}},{"v":0,"d":"$0.00"},{"$f":"'2 REPAIR ESTIMATOR'!AG1055","v":{"v":0,"d":"$0.00"}},{"$f":"'2 REPAIR ESTIMATOR'!AJ1055","v":{"v":0,"d":"$0.00"}}]
[null,null,{"$f":"T('2 REPAIR ESTIMATOR'!D1056:O1056)","v":""},{"$nulls":5},{"$f":"'2 REPAIR ESTIMATOR'!P1056","v":0},{"$f":"'2 REPAIR ESTIMATOR'!S1056","v":0},{"v":0,"d":"$0"},{"v":0,"d":"$0"},{"v":0,"d":"$0"},{"v":0,"d":"$0"},null,0,null,null,{"$f":"'2 REPAIR ESTIMATOR'!AD1056","v":{"v":0,"d":"$0.00"}},{"$f":"'2 REPAIR ESTIMATOR'!AM1056","v":{"v":0,"d":"$0.00"}},{"v":0,"d":"$0.00"},{"$f":"'2 REPAIR ESTIMATOR'!AG1056","v":{"v":0,"d":"$0.00"}},{"$f":"'2 REPAIR ESTIMATOR'!AJ1056","v":{"v":0,"d":"$0.00"}}]
[null,null,{"$f":"T('2 REPAIR ESTIMATOR'!D1057:O1057)","v":""},{"$nulls":5},{"$f":"'2 REPAIR ESTIMATOR'!P1057","v":0},{"$f":"'2 REPAIR ESTIMATOR'!S1057","v":0},{"v":0,"d":"$0"},{"v":0,"d":"$0"},{"v":0,"d":"$0"},{"v":0,"d":"$0"},null,0,null,null,{"$f":"'2 REPAIR ESTIMATOR'!AD1057","v":{"v":0,"d":"$0.00"}},{"$f":"'2 REPAIR ESTIMATOR'!AM1057","v":{"v":0,"d":"$0.00"}},{"v":0,"d":"$0.00"},{"$f":"'2 REPAIR ESTIMATOR'!AG1057","v":{"v":0,"d":"$0.00"}},{"$f":"'2 REPAIR ESTIMATOR'!AJ1057","v":{"v":0,"d":"$0.00"}}]
[null,null,{"$f":"T('2 REPAIR ESTIMATOR'!D1058:O1058)","v":""},{"$nulls":5},{"$f":"'2 REPAIR ESTIMATOR'!P1058","v":0},{"$f":"'2 REPAIR ESTIMATOR'!S1058","v":0},{"v":0,"d":"$0"},{"v":0,"d":"$0"},{"v":0,"d":"$0"},{"v":0,"d":"$0"},null,0,null,null,{"$f":"'2 REPAIR ESTIMATOR'!AD1058","v":{"v":0,"d":"$0.00"}},{"$f":"'2 REPAIR ESTIMATOR'!AM1058","v":{"v":0,"d":"$0.00"}},{"v":0,"d":"$0.00"},{"$f":"'2 REPAIR ESTIMATOR'!AG1058","v":{"v":0,"d":"$0.00"}},{"$f":"'2 REPAIR ESTIMATOR'!AJ1058","v":{"v":0,"d":"$0.00"}}]
[null,null,{"$f":"T('2 REPAIR ESTIMATOR'!D1059:O1059)","v":""},{"$nulls":5},{"$f":"'2 REPAIR ESTIMATOR'!P1059","v":0},{"$f":"'2 REPAIR ESTIMATOR'!S1059","v":0},{"v":0,"d":"$0"},{"v":0,"d":"$0"},{"v":0,"d":"$0"},{"v":0,"d":"$0"},null,0,null,null,{"$f":"'2 REPAIR ESTIMATOR'!AD1059","v":{"v":0,"d":"$0.00"}},{"$f":"'2 REPAIR ESTIMATOR'!AM1059","v":{"v":0,"d":"$0.00"}},{"v":0,"d":"$0.00"},{"$f":"'2 REPAIR ESTIMATOR'!AG1059","v":{"v":0,"d":"$0.00"}},{"$f":"'2 REPAIR ESTIMATOR'!AJ1059","v":{"v":0,"d":"$0.00"}}]
[null,null,{"$f":"T('2 REPAIR ESTIMATOR'!D1060:O1060)","v":""},{"$nulls":5},{"$f":"'2 REPAIR ESTIMATOR'!P1060","v":0},{"$f":"'2 REPAIR ESTIMATOR'!S1060","v":0},{"v":0,"d":"$0"},{"v":0,"d":"$0"},{"v":0,"d":"$0"},{"v":0,"d":"$0"},null,0,null,null,{"$f":"'2 REPAIR ESTIMATOR'!AD1060","v":{"v":0,"d":"$0.00"}},{"$f":"'2 REPAIR ESTIMATOR'!AM1060","v":{"v":0,"d":"$0.00"}},{"v":0,"d":"$0.00"},{"$f":"'2 REPAIR ESTIMATOR'!AG1060","v":{"v":0,"d":"$0.00"}},{"$f":"'2 REPAIR ESTIMATOR'!AJ1060","v":{"v":0,"d":"$0.00"}}]
[null,null,{"$f":"T('2 REPAIR ESTIMATOR'!D1061:O1061)","v":""},{"$nulls":5},{"$f":"'2 REPAIR ESTIMATOR'!P1061","v":0},{"$f":"'2 REPAIR ESTIMATOR'!S1061","v":0},{"v":0,"d":"$0"},{"v":0,"d":"$0"},{"v":0,"d":"$0"},{"v":0,"d":"$0"},null,0,null,null,{"$f":"'2 REPAIR ESTIMATOR'!AD1061","v":{"v":0,"d":"$0.00"}},{"$f":"'2 REPAIR ESTIMATOR'!AM1061","v":{"v":0,"d":"$0.00"}},{"v":0,"d":"$0.00"},{"$f":"'2 REPAIR ESTIMATOR'!AG1061","v":{"v":0,"d":"$0.00"}},{"$f":"'2 REPAIR ESTIMATOR'!AJ1061","v":{"v":0,"d":"$0.00"}}]
[null,null,{"$f":"T('2 REPAIR ESTIMATOR'!D1062:O1062)","v":""},{"$nulls":5},{"$f":"'2 REPAIR ESTIMATOR'!P1062","v":0},{"$f":"'2 REPAIR ESTIMATOR'!S1062","v":0},{"v":0,"d":"$0"},{"v":0,"d":"$0"},{"v":0,"d":"$0"},{"v":0,"d":"$0"},null,0,null,null,{"$f":"'2 REPAIR ESTIMATOR'!AD1062","v":{"v":0,"d":"$0.00"}},{"$f":"'2 REPAIR ESTIMATOR'!AM1062","v":{"v":0,"d":"$0.00"}},{"v":0,"d":"$0.00"},{"$f":"'2 REPAIR ESTIMATOR'!AG1062","v":{"v":0,"d":"$0.00"}},{"$f":"'2 REPAIR ESTIMATOR'!AJ1062","v":{"v":0,"d":"$0.00"}}]
[null,null,{"$f":"T('2 REPAIR ESTIMATOR'!D1063:O1063)","v":""},{"$nulls":5},{"$f":"'2 REPAIR ESTIMATOR'!P1063","v":0},{"$f":"'2 REPAIR ESTIMATOR'!S1063","v":0},{"v":0,"d":"$0"},{"v":0,"d":"$0"},{"v":0,"d":"$0"},{"v":0,"d":"$0"},null,0,null,null,{"$f":"'2 REPAIR ESTIMATOR'!AD1063","v":{"v":0,"d":"$0.00"}},{"$f":"'2 REPAIR ESTIMATOR'!AM1063","v":{"v":0,"d":"$0.00"}},{"v":0,"d":"$0.00"},{"$f":"'2 REPAIR ESTIMATOR'!AG1063","v":{"v":0,"d":"$0.00"}},{"$f":"'2 REPAIR ESTIMATOR'!AJ1063","v":{"v":0,"d":"$0.00"}}]
[null,null,{"$f":"T('2 REPAIR ESTIMATOR'!D1064:O1064)","v":""},{"$nulls":5},{"$f":"'2 REPAIR ESTIMATOR'!P1064","v":0},{"$f":"'2 REPAIR ESTIMATOR'!S1064","v":0},{"v":0,"d":"$0"},{"v":0,"d":"$0"},{"v":0,"d":"$0"},{"v":0,"d":"$0"},null,0,null,null,{"$f":"'2 REPAIR ESTIMATOR'!AD1064","v":{"v":0,"d":"$0.00"}},{"$f":"'2 REPAIR ESTIMATOR'!AM1064","v":{"v":0,"d":"$0.00"}},{"v":0,"d":"$0.00"},{"$f":"'2 REPAIR ESTIMATOR'!AG1064","v":{"v":0,"d":"$0.00"}},{"$f":"'2 REPAIR ESTIMATOR'!AJ1064","v":{"v":0,"d":"$0.00"}}]
[null,null,{"$f":"T('2 REPAIR ESTIMATOR'!D1065:O1065)","v":""},{"$nulls":5},{"$f":"'2 REPAIR ESTIMATOR'!P1065","v":0},{"$f":"'2 REPAIR ESTIMATOR'!S1065","v":0},{"v":0,"d":"$0"},{"v":0,"d":"$0"},{"v":0,"d":"$0"},{"v":0,"d":"$0"},null,0,null,null,{"$f":"'2 REPAIR ESTIMATOR'!AD1065","v":{"v":0,"d":"$0.00"}},{"$f":"'2 REPAIR ESTIMATOR'!AM1065","v":{"v":0,"d":"$0.00"}},{"v":0,"d":"$0.00"},{"$f":"'2 REPAIR ESTIMATOR'!AG1065","v":{"v":0,"d":"$0.00"}},{"$f":"'2 REPAIR ESTIMATOR'!AJ1065","v":{"v":0,"d":"$0.00"}}]
[null,null,{"$f":"T('2 REPAIR ESTIMATOR'!D1066:O1066)","v":""},{"$nulls":5},{"$f":"'2 REPAIR ESTIMATOR'!P1066","v":0},{"$f":"'2 REPAIR ESTIMATOR'!S1066","v":0},{"v":0,"d":"$0"},{"v":0,"d":"$0"},{"v":0,"d":"$0"},{"v":0,"d":"$0"},null,0,null,null,{"$f":"'2 REPAIR ESTIMATOR'!AD1066","v":{"v":0,"d":"$0.00"}},{"$f":"'2 REPAIR ESTIMATOR'!AM1066","v":{"v":0,"d":"$0.00"}},{"v":0,"d":"$0.00"},{"$f":"'2 REPAIR ESTIMATOR'!AG1066","v":{"v":0,"d":"$0.00"}},{"$f":"'2 REPAIR ESTIMATOR'!AJ1066","v":{"v":0,"d":"$0.00"}}]
[null,null,{"$f":"T('2 REPAIR ESTIMATOR'!D1067:O1067)","v":""},{"$nulls":5},{"$f":"'2 REPAIR ESTIMATOR'!P1067","v":0},{"$f":"'2 REPAIR ESTIMATOR'!S1067","v":0},{"v":0,"d":"$0"},{"v":0,"d":"$0"},{"v":0,"d":"$0"},{"v":0,"d":"$0"},null,0,null,null,{"$f":"'2 REPAIR ESTIMATOR'!AD1067","v":{"v":0,"d":"$0.00"}},{"$f":"'2 REPAIR ESTIMATOR'!AM1067","v":{"v":0,"d":"$0.00"}},{"v":0,"d":"$0.00"},{"$f":"'2 REPAIR ESTIMATOR'!AG1067","v":{"v":0,"d":"$0.00"}},{"$f":"'2 REPAIR ESTIMATOR'!AJ1067","v":{"v":0,"d":"$0.00"}}]
[null,null,{"$f":"T('2 REPAIR ESTIMATOR'!D1068:O1068)","v":""},{"$nulls":5},{"$f":"'2 REPAIR ESTIMATOR'!P1068","v":0},{"$f":"'2 REPAIR ESTIMATOR'!S1068","v":0},{"v":0,"d":"$0"},{"v":0,"d":"$0"},{"v":0,"d":"$0"},{"v":0,"d":"$0"},null,0,null,null,{"$f":"'2 REPAIR ESTIMATOR'!AD1068","v":{"v":0,"d":"$0.00"}},{"$f":"'2 REPAIR ESTIMATOR'!AM1068","v":{"v":0,"d":"$0.00"}},{"v":0,"d":"$0.00"},{"$f":"'2 REPAIR ESTIMATOR'!AG1068","v":{"v":0,"d":"$0.00"}},{"$f":"'2 REPAIR ESTIMATOR'!AJ1068","v":{"v":0,"d":"$0.00"}}]
[null,null,{"$f":"T('2 REPAIR ESTIMATOR'!D1069:O1069)","v":""},{"$nulls":5},{"$f":"'2 REPAIR ESTIMATOR'!P1069","v":0},{"$f":"'2 REPAIR ESTIMATOR'!S1069","v":0},{"v":0,"d":"$0"},{"v":0,"d":"$0"},{"v":0,"d":"$0"},{"v":0,"d":"$0"},null,0,null,null,{"$f":"'2 REPAIR ESTIMATOR'!AD1069","v":{"v":0,"d":"$0.00"}},{"$f":"'2 REPAIR ESTIMATOR'!AM1069","v":{"v":0,"d":"$0.00"}},{"v":0,"d":"$0.00"},{"$f":"'2 REPAIR ESTIMATOR'!AG1069","v":{"v":0,"d":"$0.00"}},{"$f":"'2 REPAIR ESTIMATOR'!AJ1069","v":{"v":0,"d":"$0.00"}}]
[null,null,{"$f":"T('2 REPAIR ESTIMATOR'!D1070:O1070)","v":""},{"$nulls":5},{"$f":"'2 REPAIR ESTIMATOR'!P1070","v":0},{"$f":"'2 REPAIR ESTIMATOR'!S1070","v":0},{"v":0,"d":"$0"},{"v":0,"d":"$0"},{"v":0,"d":"$0"},{"v":0,"d":"$0"},null,0,null,null,{"$f":"'2 REPAIR ESTIMATOR'!AD1070","v":{"v":0,"d":"$0.00"}},{"$f":"'2 REPAIR ESTIMATOR'!AM1070","v":{"v":0,"d":"$0.00"}},{"v":0,"d":"$0.00"},{"$f":"'2 REPAIR ESTIMATOR'!AG1070","v":{"v":0,"d":"$0.00"}},{"$f":"'2 REPAIR ESTIMATOR'!AJ1070","v":{"v":0,"d":"$0.00"}}]
[null,null,{"$f":"T('2 REPAIR ESTIMATOR'!D1071:O1071)","v":""},{"$nulls":5},{"$f":"'2 REPAIR ESTIMATOR'!P1071","v":0},{"$f":"'2 REPAIR ESTIMATOR'!S1071","v":0},{"v":0,"d":"$0"},{"v":0,"d":"$0"},{"v":0,"d":"$0"},{"v":0,"d":"$0"},null,0,null,null,{"$f":"'2 REPAIR ESTIMATOR'!AD1071","v":{"v":0,"d":"$0.00"}},{"$f":"'2 REPAIR ESTIMATOR'!AM1071","v":{"v":0,"d":"$0.00"}},{"v":0,"d":"$0.00"},{"$f":"'2 REPAIR ESTIMATOR'!AG1071","v":{"v":0,"d":"$0.00"}},{"$f":"'2 REPAIR ESTIMATOR'!AJ1071","v":{"v":0,"d":"$0.00"}}]
[null,null,{"$f":"T('2 REPAIR ESTIMATOR'!D1072:O1072)","v":""},{"$nulls":5},{"$f":"'2 REPAIR ESTIMATOR'!P1072","v":0},{"$f":"'2 REPAIR ESTIMATOR'!S1072","v":0},{"v":0,"d":"$0"},{"v":0,"d":"$0"},{"v":0,"d":"$0"},{"v":0,"d":"$0"},null,0,null,null,{"$f":"'2 REPAIR ESTIMATOR'!AD1072","v":{"v":0,"d":"$0.00"}},{"$f":"'2 REPAIR ESTIMATOR'!AM1072","v":{"v":0,"d":"$0.00"}},{"v":0,"d":"$0.00"},{"$f":"'2 REPAIR ESTIMATOR'!AG1072","v":{"v":0,"d":"$0.00"}},{"$f":"'2 REPAIR ESTIMATOR'!AJ1072","v":{"v":0,"d":"$0.00"}}]
[null,null,{"$f":"T('2 REPAIR ESTIMATOR'!AC1074)","v":"HVAC TOTAL"},{"$nulls":7},{"$f":"SUM(K976:K1015)","v":{"v":162.5,"d":"$163"}},{"$f":"SUM(L976:L1015)","v":{"v":321,"d":"$321"}},{"$f":"SUM(M976:M1015)","v":{"v":0,"d":"$0"}},{"$f":"SUM(N976:O1015)","v":{"v":483.5,"d":"$484"}},null,{"$f":"SUM(P975:P987)","v":16},null,null,{"$f":"SUM(S976:S1015)","v":{"v":162.5,"d":"$162.50"}},{"$f":"SUM(T976:T1015)","v":{"v":0,"d":"$0.00"}},{"$f":"SUM(U976:U1015)","v":{"v":162.5,"d":"$162.50"}},{"$f":"SUM(V976:V1015)","v":{"v":321,"d":"$321.00"}},{"$f":"SUM(W976:W1015)","v":{"v":0,"d":"$0.00"}}]
[{"$nulls":15},{"$f":"P1016","v":16}]
[null,null,{"$f":"T('2 REPAIR ESTIMATOR'!D1077:O1077)","v":"ELECTRICAL"},{"$nulls":5},{"$f":"SUM(I1019:I1058)","v":20},{"$nulls":6},20]
[null,null,{"$f":"T('2 REPAIR ESTIMATOR'!D1078:O1078)","v":"Electrical, bid/allowance"},{"$nulls":5},{"$f":"'2 REPAIR ESTIMATOR'!P1078","v":0},{"$f":"'2 REPAIR ESTIMATOR'!S1078","v":"ls"},{"$f":"IF($N$3=\"subbed\",U1019,S1019)*$S$70","v":{"v":0,"d":"$0"}},{"$f":"V1019*$S$70","v":{"v":0,"d":"$0"}},{"$f":"W1019*$S$70","v":{"v":0,"d":"$0"}},{"$f":"SUM(K1019:M1019)","v":{"v":0,"d":"$0"}},null,0,null,null,{"$f":"'2 REPAIR ESTIMATOR'!AD1078","v":{"v":0,"d":"$0.00"}},{"$f":"'2 REPAIR ESTIMATOR'!AM1078","v":{"v":0,"d":"$0.00"}},{"$f":"T1019+S1019","v":{"v":0,"d":"$0.00"}},{"$f":"'2 REPAIR ESTIMATOR'!AG1078","v":{"v":0,"d":"$0.00"}},{"$f":"'2 REPAIR ESTIMATOR'!AJ1078","v":{"v":0,"d":"$0.00"}}]
[null,null,{"$f":"T('2 REPAIR ESTIMATOR'!D1079:O1079)","v":"Miscellaneous Electrical "},{"$nulls":5},{"$f":"'2 REPAIR ESTIMATOR'!P1079","v":0},{"$f":"'2 REPAIR ESTIMATOR'!S1079","v":0},{"v":0,"d":"$0"},{"$f":"V1020*$S$70","v":{"v":0,"d":"$0"}},{"$f":"W1020*$S$70","v":{"v":0,"d":"$0"}},{"$f":"SUM(K1020:M1020)","v":{"v":0,"d":"$0"}},null,0,null,null,{"$f":"'2 REPAIR ESTIMATOR'!AD1079","v":{"v":0,"d":"$0.00"}},{"$f":"'2 REPAIR ESTIMATOR'!AM1079","v":{"v":0,"d":"$0.00"}},{"$f":"T1020+S1020","v":{"v":0,"d":"$0.00"}},{"$f":"'2 REPAIR ESTIMATOR'!AG1079","v":{"v":0,"d":"$0.00"}},{"$f":"'2 REPAIR ESTIMATOR'!AJ1079","v":{"v":0,"d":"$0.00"}}]
[null,null,{"$f":"T('2 REPAIR ESTIMATOR'!D1080:O1080)","v":"Electrical Rough-in, per hour"},{"$nulls":5},{"$f":"'2 REPAIR ESTIMATOR'!P1080","v":0},{"$f":"'2 REPAIR ESTIMATOR'!S1080","v":"hrs"},{"v":0,"d":"$0"},{"v":0,"d":"$0"},{"v":0,"d":"$0"},{"v":0,"d":"$0"},null,0,null,null,{"$f":"'2 REPAIR ESTIMATOR'!AD1080","v":{"v":0,"d":"$0.00"}},{"$f":"'2 REPAIR ESTIMATOR'!AM1080","v":{"v":0,"d":"$0.00"}},{"v":0,"d":"$0.00"},{"$f":"'2 REPAIR ESTIMATOR'!AG1080","v":{"v":0,"d":"$0.00"}},{"$f":"'2 REPAIR ESTIMATOR'!AJ1080","v":{"v":0,"d":"$0.00"}}]
[null,null,{"$f":"T('2 REPAIR ESTIMATOR'!D1081:O1081)","v":"CATV Rough-in, per hour"},{"$nulls":5},{"$f":"'2 REPAIR ESTIMATOR'!P1081","v":0},{"$f":"'2 REPAIR ESTIMATOR'!S1081","v":"hrs"},{"v":0,"d":"$0"},{"v":0,"d":"$0"},{"v":0,"d":"$0"},{"v":0,"d":"$0"},null,{"$f":"I1022","v":0},null,null,{"$f":"'2 REPAIR ESTIMATOR'!AD1081","v":{"v":0,"d":"$0.00"}},{"$f":"'2 REPAIR ESTIMATOR'!AM1081","v":{"v":0,"d":"$0.00"}},{"v":0,"d":"$0.00"},{"$f":"'2 REPAIR ESTIMATOR'!AG1081","v":{"v":0,"d":"$0.00"}},{"$f":"'2 REPAIR ESTIMATOR'!AJ1081","v":{"v":0,"d":"$0.00"}}]
[null,null,{"$f":"T('2 REPAIR ESTIMATOR'!D1082:O1082)","v":"Electrical Finish Work, per hour"},{"$nulls":5},{"$f":"'2 REPAIR ESTIMATOR'!P1082","v":0},{"$f":"'2 REPAIR ESTIMATOR'!S1082","v":"hrs"},{"v":0,"d":"$0"},{"v":0,"d":"$0"},{"v":0,"d":"$0"},{"v":0,"d":"$0"},null,0,null,null,{"$f":"'2 REPAIR ESTIMATOR'!AD1082","v":{"v":0,"d":"$0.00"}},{"$f":"'2 REPAIR ESTIMATOR'!AM1082","v":{"v":0,"d":"$0.00"}},{"v":0,"d":"$0.00"},{"$f":"'2 REPAIR ESTIMATOR'!AG1082","v":{"v":0,"d":"$0.00"}},{"$f":"'2 REPAIR ESTIMATOR'!AJ1082","v":{"v":0,"d":"$0.00"}}]
[null,null,{"$f":"T('2 REPAIR ESTIMATOR'!D1083:O1083)","v":"Replace electrical panel, 100 AMP"},{"$nulls":5},{"$f":"'2 REPAIR ESTIMATOR'!P1083","v":0},{"$f":"'2 REPAIR ESTIMATOR'!S1083","v":"ea"},{"v":0,"d":"$0"},{"v":0,"d":"$0"},{"v":0,"d":"$0"},{"v":0,"d":"$0"},null,0,null,null,{"$f":"'2 REPAIR ESTIMATOR'!AD1083","v":{"v":0,"d":"$0.00"}},{"$f":"'2 REPAIR ESTIMATOR'!AM1083","v":{"v":0,"d":"$0.00"}},{"v":0,"d":"$0.00"},{"$f":"'2 REPAIR ESTIMATOR'!AG1083","v":{"v":0,"d":"$0.00"}},{"$f":"'2 REPAIR ESTIMATOR'!AJ1083","v":{"v":0,"d":"$0.00"}}]
[null,null,{"$f":"T('2 REPAIR ESTIMATOR'!D1084:O1084)","v":"Replace electrical panel, 200 AMP"},{"$nulls":5},{"$f":"'2 REPAIR ESTIMATOR'!P1084","v":0},{"$f":"'2 REPAIR ESTIMATOR'!S1084","v":"ea"},{"v":0,"d":"$0"},{"v":0,"d":"$0"},{"v":0,"d":"$0"},{"v":0,"d":"$0"},null,0,null,null,{"$f":"'2 REPAIR ESTIMATOR'!AD1084","v":{"v":0,"d":"$0.00"}},{"$f":"'2 REPAIR ESTIMATOR'!AM1084","v":{"v":0,"d":"$0.00"}},{"v":0,"d":"$0.00"},{"$f":"'2 REPAIR ESTIMATOR'!AG1084","v":{"v":0,"d":"$0.00"}},{"$f":"'2 REPAIR ESTIMATOR'!AJ1084","v":{"v":0,"d":"$0.00"}}]
[null,null,{"$f":"T('2 REPAIR ESTIMATOR'!D1085:O1085)","v":"Replace outlets, light switches"},{"$nulls":5},{"$f":"'2 REPAIR ESTIMATOR'!P1085","v":0},{"$f":"'2 REPAIR ESTIMATOR'!S1085","v":"ea"},{"v":0,"d":"$0"},{"v":0,"d":"$0"},{"v":0,"d":"$0"},{"v":0,"d":"$0"},null,0,null,null,{"$f":"'2 REPAIR ESTIMATOR'!AD1085","v":{"v":0,"d":"$0.00"}},{"$f":"'2 REPAIR ESTIMATOR'!AM1085","v":{"v":0,"d":"$0.00"}},{"v":0,"d":"$0.00"},{"$f":"'2 REPAIR ESTIMATOR'!AG1085","v":{"v":0,"d":"$0.00"}},{"$f":"'2 REPAIR ESTIMATOR'!AJ1085","v":{"v":0,"d":"$0.00"}}]
[null,null,{"$f":"T('2 REPAIR ESTIMATOR'!D1086:O1086)","v":"Replace GFI outlets/ground back to panel"},{"$nulls":5},{"$f":"'2 REPAIR ESTIMATOR'!P1086","v":0},{"$f":"'2 REPAIR ESTIMATOR'!S1086","v":"ea"},{"v":0,"d":"$0"},{"v":0,"d":"$0"},{"v":0,"d":"$0"},{"v":0,"d":"$0"},null,0,null,null,{"$f":"'2 REPAIR ESTIMATOR'!AD1086","v":{"v":0,"d":"$0.00"}},{"$f":"'2 REPAIR ESTIMATOR'!AM1086","v":{"v":0,"d":"$0.00"}},{"v":0,"d":"$0.00"},{"$f":"'2 REPAIR ESTIMATOR'!AG1086","v":{"v":0,"d":"$0.00"}},{"$f":"'2 REPAIR ESTIMATOR'!AJ1086","v":{"v":0,"d":"$0.00"}}]
[null,null,{"$f":"T('2 REPAIR ESTIMATOR'!D1087:O1087)","v":"Exhaust Fan"},{"$nulls":5},{"$f":"'2 REPAIR ESTIMATOR'!P1087","v":0},{"$f":"'2 REPAIR ESTIMATOR'!S1087","v":"ea"},{"v":0,"d":"$0"},{"v":0,"d":"$0"},{"v":0,"d":"$0"},{"v":0,"d":"$0"},null,0,null,null,{"$f":"'2 REPAIR ESTIMATOR'!AD1087","v":{"v":0,"d":"$0.00"}},{"$f":"'2 REPAIR ESTIMATOR'!AM1087","v":{"v":0,"d":"$0.00"}},{"v":0,"d":"$0.00"},{"$f":"'2 REPAIR ESTIMATOR'!AG1087","v":{"v":0,"d":"$0.00"}},{"$f":"'2 REPAIR ESTIMATOR'!AJ1087","v":{"v":0,"d":"$0.00"}}]
[null,null,{"$f":"T('2 REPAIR ESTIMATOR'!D1088:O1088)","v":"Smoke detectors"},{"$nulls":5},{"$f":"'2 REPAIR ESTIMATOR'!P1088","v":5},{"$f":"'2 REPAIR ESTIMATOR'!S1088","v":"ea"},{"v":0,"d":"$0"},{"v":80.25,"d":"$80"},{"v":125,"d":"$125"},{"v":205.25,"d":"$205"},null,5,null,null,{"$f":"'2 REPAIR ESTIMATOR'!AD1088","v":{"v":0,"d":"$0.00"}},{"$f":"'2 REPAIR ESTIMATOR'!AM1088","v":{"v":0,"d":"$0.00"}},{"v":0,"d":"$0.00"},{"$f":"'2 REPAIR ESTIMATOR'!AG1088","v":{"v":80.25,"d":"$80.25"}},{"$f":"'2 REPAIR ESTIMATOR'!AJ1088","v":{"v":125,"d":"$125.00"}}]
[null,null,{"$f":"T('2 REPAIR ESTIMATOR'!D1089:O1089)","v":"Carbon monoxide detector"},{"$nulls":5},{"$f":"'2 REPAIR ESTIMATOR'!P1089","v":0},{"$f":"'2 REPAIR ESTIMATOR'!S1089","v":"ea"},{"v":0,"d":"$0"},{"v":0,"d":"$0"},{"v":0,"d":"$0"},{"v":0,"d":"$0"},null,0,null,null,{"$f":"'2 REPAIR ESTIMATOR'!AD1089","v":{"v":0,"d":"$0.00"}},{"$f":"'2 REPAIR ESTIMATOR'!AM1089","v":{"v":0,"d":"$0.00"}},{"v":0,"d":"$0.00"},{"$f":"'2 REPAIR ESTIMATOR'!AG1089","v":{"v":0,"d":"$0.00"}},{"$f":"'2 REPAIR ESTIMATOR'!AJ1089","v":{"v":0,"d":"$0.00"}}]
[null,null,{"$f":"T('2 REPAIR ESTIMATOR'!D1090:O1090)","v":"Lighting"},{"$nulls":5},{"$f":"'2 REPAIR ESTIMATOR'!P1090","v":0},{"$f":"'2 REPAIR ESTIMATOR'!S1090","v":0},{"v":0,"d":"$0"},{"v":0,"d":"$0"},{"v":0,"d":"$0"},{"v":0,"d":"$0"},null,0,null,null,{"$f":"'2 REPAIR ESTIMATOR'!AD1090","v":{"v":0,"d":"$0.00"}},{"$f":"'2 REPAIR ESTIMATOR'!AM1090","v":{"v":0,"d":"$0.00"}},{"v":0,"d":"$0.00"},{"$f":"'2 REPAIR ESTIMATOR'!AG1090","v":{"v":0,"d":"$0.00"}},{"$f":"'2 REPAIR ESTIMATOR'!AJ1090","v":{"v":0,"d":"$0.00"}}]
[null,null,{"$f":"T('2 REPAIR ESTIMATOR'!D1091:O1091)","v":"Track/Pendent light"},{"$nulls":5},{"$f":"'2 REPAIR ESTIMATOR'!P1091","v":1},{"$f":"'2 REPAIR ESTIMATOR'!S1091","v":"ea"},{"v":0,"d":"$0"},{"v":107,"d":"$107"},{"v":50,"d":"$50"},{"v":157,"d":"$157"},null,1,null,null,{"$f":"'2 REPAIR ESTIMATOR'!AD1091","v":{"v":0,"d":"$0.00"}},{"$f":"'2 REPAIR ESTIMATOR'!AM1091","v":{"v":0,"d":"$0.00"}},{"v":0,"d":"$0.00"},{"$f":"'2 REPAIR ESTIMATOR'!AG1091","v":{"v":107,"d":"$107.00"}},{"$f":"'2 REPAIR ESTIMATOR'!AJ1091","v":{"v":50,"d":"$50.00"}}]
[null,null,{"$f":"T('2 REPAIR ESTIMATOR'!D1092:O1092)","v":"Chandelier light fixture"},{"$nulls":5},{"$f":"'2 REPAIR ESTIMATOR'!P1092","v":1},{"$f":"'2 REPAIR ESTIMATOR'!S1092","v":"ea"},{"v":0,"d":"$0"},{"v":187.25,"d":"$187"},{"v":100,"d":"$100"},{"v":287.25,"d":"$287"},null,1,null,null,{"$f":"'2 REPAIR ESTIMATOR'!AD1092","v":{"v":0,"d":"$0.00"}},{"$f":"'2 REPAIR ESTIMATOR'!AM1092","v":{"v":0,"d":"$0.00"}},{"v":0,"d":"$0.00"},{"$f":"'2 REPAIR ESTIMATOR'!AG1092","v":{"v":187.25,"d":"$187.25"}},{"$f":"'2 REPAIR ESTIMATOR'!AJ1092","v":{"v":100,"d":"$100.00"}}]
[null,null,{"$f":"T('2 REPAIR ESTIMATOR'!D1093:O1093)","v":"Ceiling dome light"},{"$nulls":5},{"$f":"'2 REPAIR ESTIMATOR'!P1093","v":5},{"$f":"'2 REPAIR ESTIMATOR'!S1093","v":"ea"},{"v":0,"d":"$0"},{"v":187.25,"d":"$187"},{"v":125,"d":"$125"},{"v":312.25,"d":"$312"},null,5,null,null,{"$f":"'2 REPAIR ESTIMATOR'!AD1093","v":{"v":0,"d":"$0.00"}},{"$f":"'2 REPAIR ESTIMATOR'!AM1093","v":{"v":0,"d":"$0.00"}},{"v":0,"d":"$0.00"},{"$f":"'2 REPAIR ESTIMATOR'!AG1093","v":{"v":187.25,"d":"$187.25"}},{"$f":"'2 REPAIR ESTIMATOR'!AJ1093","v":{"v":125,"d":"$125.00"}}]
[null,null,{"$f":"T('2 REPAIR ESTIMATOR'!D1094:O1094)","v":"Ceiling fan fixture"},{"$nulls":5},{"$f":"'2 REPAIR ESTIMATOR'!P1094","v":4},{"$f":"'2 REPAIR ESTIMATOR'!S1094","v":"ea"},{"v":0,"d":"$0"},{"v":492.20000000000005,"d":"$492"},{"v":300,"d":"$300"},{"v":792.2,"d":"$792"},null,4,null,null,{"$f":"'2 REPAIR ESTIMATOR'!AD1094","v":{"v":0,"d":"$0.00"}},{"$f":"'2 REPAIR ESTIMATOR'!AM1094","v":{"v":0,"d":"$0.00"}},{"v":0,"d":"$0.00"},{"$f":"'2 REPAIR ESTIMATOR'!AG1094","v":{"v":492.20000000000005,"d":"$492.20"}},{"$f":"'2 REPAIR ESTIMATOR'!AJ1094","v":{"v":300,"d":"$300.00"}}]
[null,null,{"$f":"T('2 REPAIR ESTIMATOR'!D1095:O1095)","v":"Bathroom vanity light"},{"$nulls":5},{"$f":"'2 REPAIR ESTIMATOR'!P1095","v":2},{"$f":"'2 REPAIR ESTIMATOR'!S1095","v":"ea"},{"v":0,"d":"$0"},{"v":181.9,"d":"$182"},{"v":100,"d":"$100"},{"v":281.9,"d":"$282"},null,2,null,null,{"$f":"'2 REPAIR ESTIMATOR'!AD1095","v":{"v":0,"d":"$0.00"}},{"$f":"'2 REPAIR ESTIMATOR'!AM1095","v":{"v":0,"d":"$0.00"}},{"v":0,"d":"$0.00"},{"$f":"'2 REPAIR ESTIMATOR'!AG1095","v":{"v":181.9,"d":"$181.90"}},{"$f":"'2 REPAIR ESTIMATOR'!AJ1095","v":{"v":100,"d":"$100.00"}}]
[null,null,{"$f":"T('2 REPAIR ESTIMATOR'!D1096:O1096)","v":"Can lighting"},{"$nulls":5},{"$f":"'2 REPAIR ESTIMATOR'!P1096","v":0},{"$f":"'2 REPAIR ESTIMATOR'!S1096","v":"ea"},{"v":0,"d":"$0"},{"v":0,"d":"$0"},{"v":0,"d":"$0"},{"v":0,"d":"$0"},null,0,null,null,{"$f":"'2 REPAIR ESTIMATOR'!AD1096","v":{"v":0,"d":"$0.00"}},{"$f":"'2 REPAIR ESTIMATOR'!AM1096","v":{"v":0,"d":"$0.00"}},{"v":0,"d":"$0.00"},{"$f":"'2 REPAIR ESTIMATOR'!AG1096","v":{"v":0,"d":"$0.00"}},{"$f":"'2 REPAIR ESTIMATOR'!AJ1096","v":{"v":0,"d":"$0.00"}}]
[null,null,{"$f":"T('2 REPAIR ESTIMATOR'!D1097:O1097)","v":"Exterior light fixture"},{"$nulls":5},{"$f":"'2 REPAIR ESTIMATOR'!P1097","v":2},{"$f":"'2 REPAIR ESTIMATOR'!S1097","v":"ea"},{"v":0,"d":"$0"},{"v":160.5,"d":"$161"},{"v":100,"d":"$100"},{"v":260.5,"d":"$261"},null,2,null,null,{"$f":"'2 REPAIR ESTIMATOR'!AD1097","v":{"v":0,"d":"$0.00"}},{"$f":"'2 REPAIR ESTIMATOR'!AM1097","v":{"v":0,"d":"$0.00"}},{"v":0,"d":"$0.00"},{"$f":"'2 REPAIR ESTIMATOR'!AG1097","v":{"v":160.5,"d":"$160.50"}},{"$f":"'2 REPAIR ESTIMATOR'!AJ1097","v":{"v":100,"d":"$100.00"}}]
[null,null,{"$f":"T('2 REPAIR ESTIMATOR'!D1098:O1098)","v":""},{"$nulls":5},{"$f":"'2 REPAIR ESTIMATOR'!P1098","v":0},{"$f":"'2 REPAIR ESTIMATOR'!S1098","v":0},{"v":0,"d":"$0"},{"v":0,"d":"$0"},{"v":0,"d":"$0"},{"v":0,"d":"$0"},null,{"$f":"I1039","v":0},null,null,{"$f":"'2 REPAIR ESTIMATOR'!AD1098","v":{"v":0,"d":"$0.00"}},{"$f":"'2 REPAIR ESTIMATOR'!AM1098","v":{"v":0,"d":"$0.00"}},{"v":0,"d":"$0.00"},{"$f":"'2 REPAIR ESTIMATOR'!AG1098","v":{"v":0,"d":"$0.00"}},{"$f":"'2 REPAIR ESTIMATOR'!AJ1098","v":{"v":0,"d":"$0.00"}}]
[null,null,{"$f":"T('2 REPAIR ESTIMATOR'!D1099:O1099)","v":""},{"$nulls":5},{"$f":"'2 REPAIR ESTIMATOR'!P1099","v":0},{"$f":"'2 REPAIR ESTIMATOR'!S1099","v":0},{"v":0,"d":"$0"},{"v":0,"d":"$0"},{"v":0,"d":"$0"},{"v":0,"d":"$0"},null,{"$f":"I1040","v":0},null,null,{"$f":"'2 REPAIR ESTIMATOR'!AD1099","v":{"v":0,"d":"$0.00"}},{"$f":"'2 REPAIR ESTIMATOR'!AM1099","v":{"v":0,"d":"$0.00"}},{"v":0,"d":"$0.00"},{"$f":"'2 REPAIR ESTIMATOR'!AG1099","v":{"v":0,"d":"$0.00"}},{"$f":"'2 REPAIR ESTIMATOR'!AJ1099","v":{"v":0,"d":"$0.00"}}]
[null,null,{"$f":"T('2 REPAIR ESTIMATOR'!D1100:O1100)","v":""},{"$nulls":5},{"$f":"'2 REPAIR ESTIMATOR'!P1100","v":0},{"$f":"'2 REPAIR ESTIMATOR'!S1100","v":0},{"v":0,"d":"$0"},{"v":0,"d":"$0"},{"v":0,"d":"$0"},{"v":0,"d":"$0"},null,{"$f":"I1041","v":0},null,null,{"$f":"'2 REPAIR ESTIMATOR'!AD1100","v":{"v":0,"d":"$0.00"}},{"$f":"'2 REPAIR ESTIMATOR'!AM1100","v":{"v":0,"d":"$0.00"}},{"v":0,"d":"$0.00"},{"$f":"'2 REPAIR ESTIMATOR'!AG1100","v":{"v":0,"d":"$0.00"}},{"$f":"'2 REPAIR ESTIMATOR'!AJ1100","v":{"v":0,"d":"$0.00"}}]
[null,null,{"$f":"T('2 REPAIR ESTIMATOR'!D1101:O1101)","v":""},{"$nulls":5},{"$f":"'2 REPAIR ESTIMATOR'!P1101","v":0},{"$f":"'2 REPAIR ESTIMATOR'!S1101","v":0},{"v":0,"d":"$0"},{"v":0,"d":"$0"},{"v":0,"d":"$0"},{"v":0,"d":"$0"},null,{"$f":"I1042","v":0},null,null,{"$f":"'2 REPAIR ESTIMATOR'!AD1101","v":{"v":0,"d":"$0.00"}},{"$f":"'2 REPAIR ESTIMATOR'!AM1101","v":{"v":0,"d":"$0.00"}},{"v":0,"d":"$0.00"},{"$f":"'2 REPAIR ESTIMATOR'!AG1101","v":{"v":0,"d":"$0.00"}},{"$f":"'2 REPAIR ESTIMATOR'!AJ1101","v":{"v":0,"d":"$0.00"}}]
[null,null,{"$f":"T('2 REPAIR ESTIMATOR'!D1102:O1102)","v":""},{"$nulls":5},{"$f":"'2 REPAIR ESTIMATOR'!P1102","v":0},{"$f":"'2 REPAIR ESTIMATOR'!S1102","v":0},{"v":0,"d":"$0"},{"v":0,"d":"$0"},{"v":0,"d":"$0"},{"v":0,"d":"$0"},null,{"$f":"I1043","v":0},null,null,{"$f":"'2 REPAIR ESTIMATOR'!AD1102","v":{"v":0,"d":"$0.00"}},{"$f":"'2 REPAIR ESTIMATOR'!AM1102","v":{"v":0,"d":"$0.00"}},{"v":0,"d":"$0.00"},{"$f":"'2 REPAIR ESTIMATOR'!AG1102","v":{"v":0,"d":"$0.00"}},{"$f":"'2 REPAIR ESTIMATOR'!AJ1102","v":{"v":0,"d":"$0.00"}}]
[null,null,{"$f":"T('2 REPAIR ESTIMATOR'!D1103:O1103)","v":""},{"$nulls":5},{"$f":"'2 REPAIR ESTIMATOR'!P1103","v":0},{"$f":"'2 REPAIR ESTIMATOR'!S1103","v":0},{"v":0,"d":"$0"},{"v":0,"d":"$0"},{"v":0,"d":"$0"},{"v":0,"d":"$0"},null,0,null,null,{"$f":"'2 REPAIR ESTIMATOR'!AD1103","v":{"v":0,"d":"$0.00"}},{"$f":"'2 REPAIR ESTIMATOR'!AM1103","v":{"v":0,"d":"$0.00"}},{"v":0,"d":"$0.00"},{"$f":"'2 REPAIR ESTIMATOR'!AG1103","v":{"v":0,"d":"$0.00"}},{"$f":"'2 REPAIR ESTIMATOR'!AJ1103","v":{"v":0,"d":"$0.00"}}]
[null,null,{"$f":"T('2 REPAIR ESTIMATOR'!D1104:O1104)","v":""},{"$nulls":5},{"$f":"'2 REPAIR ESTIMATOR'!P1104","v":0},{"$f":"'2 REPAIR ESTIMATOR'!S1104","v":0},{"v":0,"d":"$0"},{"v":0,"d":"$0"},{"v":0,"d":"$0"},{"v":0,"d":"$0"},null,0,null,null,{"$f":"'2 REPAIR ESTIMATOR'!AD1104","v":{"v":0,"d":"$0.00"}},{"$f":"'2 REPAIR ESTIMATOR'!AM1104","v":{"v":0,"d":"$0.00"}},{"v":0,"d":"$0.00"},{"$f":"'2 REPAIR ESTIMATOR'!AG1104","v":{"v":0,"d":"$0.00"}},{"$f":"'2 REPAIR ESTIMATOR'!AJ1104","v":{"v":0,"d":"$0.00"}}]
[null,null,{"$f":"T('2 REPAIR ESTIMATOR'!D1105:O1105)","v":""},{"$nulls":5},{"$f":"'2 REPAIR ESTIMATOR'!P1105","v":0},{"$f":"'2 REPAIR ESTIMATOR'!S1105","v":0},{"v":0,"d":"$0"},{"v":0,"d":"$0"},{"v":0,"d":"$0"},{"v":0,"d":"$0"},null,0,null,null,{"$f":"'2 REPAIR ESTIMATOR'!AD1105","v":{"v":0,"d":"$0.00"}},{"$f":"'2 REPAIR ESTIMATOR'!AM1105","v":{"v":0,"d":"$0.00"}},{"v":0,"d":"$0.00"},{"$f":"'2 REPAIR ESTIMATOR'!AG1105","v":{"v":0,"d":"$0.00"}},{"$f":"'2 REPAIR ESTIMATOR'!AJ1105","v":{"v":0,"d":"$0.00"}}]
[null,null,{"$f":"T('2 REPAIR ESTIMATOR'!D1106:O1106)","v":""},{"$nulls":5},{"$f":"'2 REPAIR ESTIMATOR'!P1106","v":0},{"$f":"'2 REPAIR ESTIMATOR'!S1106","v":0},{"v":0,"d":"$0"},{"v":0,"d":"$0"},{"v":0,"d":"$0"},{"v":0,"d":"$0"},null,0,null,null,{"$f":"'2 REPAIR ESTIMATOR'!AD1106","v":{"v":0,"d":"$0.00"}},{"$f":"'2 REPAIR ESTIMATOR'!AM1106","v":{"v":0,"d":"$0.00"}},{"v":0,"d":"$0.00"},{"$f":"'2 REPAIR ESTIMATOR'!AG1106","v":{"v":0,"d":"$0.00"}},{"$f":"'2 REPAIR ESTIMATOR'!AJ1106","v":{"v":0,"d":"$0.00"}}]
[null,null,{"$f":"T('2 REPAIR ESTIMATOR'!D1107:O1107)","v":""},{"$nulls":5},{"$f":"'2 REPAIR ESTIMATOR'!P1107","v":0},{"$f":"'2 REPAIR ESTIMATOR'!S1107","v":0},{"v":0,"d":"$0"},{"v":0,"d":"$0"},{"v":0,"d":"$0"},{"v":0,"d":"$0"},null,0,null,null,{"$f":"'2 REPAIR ESTIMATOR'!AD1107","v":{"v":0,"d":"$0.00"}},{"$f":"'2 REPAIR ESTIMATOR'!AM1107","v":{"v":0,"d":"$0.00"}},{"v":0,"d":"$0.00"},{"$f":"'2 REPAIR ESTIMATOR'!AG1107","v":{"v":0,"d":"$0.00"}},{"$f":"'2 REPAIR ESTIMATOR'!AJ1107","v":{"v":0,"d":"$0.00"}}]
[null,null,{"$f":"T('2 REPAIR ESTIMATOR'!D1108:O1108)","v":""},{"$nulls":5},{"$f":"'2 REPAIR ESTIMATOR'!P1108","v":0},{"$f":"'2 REPAIR ESTIMATOR'!S1108","v":0},{"v":0,"d":"$0"},{"v":0,"d":"$0"},{"v":0,"d":"$0"},{"v":0,"d":"$0"},null,0,null,null,{"$f":"'2 REPAIR ESTIMATOR'!AD1108","v":{"v":0,"d":"$0.00"}},{"$f":"'2 REPAIR ESTIMATOR'!AM1108","v":{"v":0,"d":"$0.00"}},{"v":0,"d":"$0.00"},{"$f":"'2 REPAIR ESTIMATOR'!AG1108","v":{"v":0,"d":"$0.00"}},{"$f":"'2 REPAIR ESTIMATOR'!AJ1108","v":{"v":0,"d":"$0.00"}}]
[null,null,{"$f":"T('2 REPAIR ESTIMATOR'!D1109:O1109)","v":""},{"$nulls":5},{"$f":"'2 REPAIR ESTIMATOR'!P1109","v":0},{"$f":"'2 REPAIR ESTIMATOR'!S1109","v":0},{"v":0,"d":"$0"},{"v":0,"d":"$0"},{"v":0,"d":"$0"},{"v":0,"d":"$0"},null,0,null,null,{"$f":"'2 REPAIR ESTIMATOR'!AD1109","v":{"v":0,"d":"$0.00"}},{"$f":"'2 REPAIR ESTIMATOR'!AM1109","v":{"v":0,"d":"$0.00"}},{"v":0,"d":"$0.00"},{"$f":"'2 REPAIR ESTIMATOR'!AG1109","v":{"v":0,"d":"$0.00"}},{"$f":"'2 REPAIR ESTIMATOR'!AJ1109","v":{"v":0,"d":"$0.00"}}]
[null,null,{"$f":"T('2 REPAIR ESTIMATOR'!D1110:O1110)","v":""},{"$nulls":5},{"$f":"'2 REPAIR ESTIMATOR'!P1110","v":0},{"$f":"'2 REPAIR ESTIMATOR'!S1110","v":0},{"v":0,"d":"$0"},{"v":0,"d":"$0"},{"v":0,"d":"$0"},{"v":0,"d":"$0"},null,0,null,null,{"$f":"'2 REPAIR ESTIMATOR'!AD1110","v":{"v":0,"d":"$0.00"}},{"$f":"'2 REPAIR ESTIMATOR'!AM1110","v":{"v":0,"d":"$0.00"}},{"v":0,"d":"$0.00"},{"$f":"'2 REPAIR ESTIMATOR'!AG1110","v":{"v":0,"d":"$0.00"}},{"$f":"'2 REPAIR ESTIMATOR'!AJ1110","v":{"v":0,"d":"$0.00"}}]
[null,null,{"$f":"T('2 REPAIR ESTIMATOR'!D1111:O1111)","v":""},{"$nulls":5},{"$f":"'2 REPAIR ESTIMATOR'!P1111","v":0},{"$f":"'2 REPAIR ESTIMATOR'!S1111","v":0},{"v":0,"d":"$0"},{"v":0,"d":"$0"},{"v":0,"d":"$0"},{"v":0,"d":"$0"},null,0,null,null,{"$f":"'2 REPAIR ESTIMATOR'!AD1111","v":{"v":0,"d":"$0.00"}},{"$f":"'2 REPAIR ESTIMATOR'!AM1111","v":{"v":0,"d":"$0.00"}},{"v":0,"d":"$0.00"},{"$f":"'2 REPAIR ESTIMATOR'!AG1111","v":{"v":0,"d":"$0.00"}},{"$f":"'2 REPAIR ESTIMATOR'!AJ1111","v":{"v":0,"d":"$0.00"}}]
[null,null,{"$f":"T('2 REPAIR ESTIMATOR'!D1112:O1112)","v":""},{"$nulls":5},{"$f":"'2 REPAIR ESTIMATOR'!P1112","v":0},{"$f":"'2 REPAIR ESTIMATOR'!S1112","v":0},{"v":0,"d":"$0"},{"v":0,"d":"$0"},{"v":0,"d":"$0"},{"v":0,"d":"$0"},null,0,null,null,{"$f":"'2 REPAIR ESTIMATOR'!AD1112","v":{"v":0,"d":"$0.00"}},{"$f":"'2 REPAIR ESTIMATOR'!AM1112","v":{"v":0,"d":"$0.00"}},{"v":0,"d":"$0.00"},{"$f":"'2 REPAIR ESTIMATOR'!AG1112","v":{"v":0,"d":"$0.00"}},{"$f":"'2 REPAIR ESTIMATOR'!AJ1112","v":{"v":0,"d":"$0.00"}}]
[null,null,{"$f":"T('2 REPAIR ESTIMATOR'!D1113:O1113)","v":""},{"$nulls":5},{"$f":"'2 REPAIR ESTIMATOR'!P1113","v":0},{"$f":"'2 REPAIR ESTIMATOR'!S1113","v":0},{"v":0,"d":"$0"},{"v":0,"d":"$0"},{"v":0,"d":"$0"},{"v":0,"d":"$0"},null,0,null,null,{"$f":"'2 REPAIR ESTIMATOR'!AD1113","v":{"v":0,"d":"$0.00"}},{"$f":"'2 REPAIR ESTIMATOR'!AM1113","v":{"v":0,"d":"$0.00"}},{"v":0,"d":"$0.00"},{"$f":"'2 REPAIR ESTIMATOR'!AG1113","v":{"v":0,"d":"$0.00"}},{"$f":"'2 REPAIR ESTIMATOR'!AJ1113","v":{"v":0,"d":"$0.00"}}]
[null,null,{"$f":"T('2 REPAIR ESTIMATOR'!D1114:O1114)","v":""},{"$nulls":5},{"$f":"'2 REPAIR ESTIMATOR'!P1114","v":0},{"$f":"'2 REPAIR ESTIMATOR'!S1114","v":0},{"v":0,"d":"$0"},{"v":0,"d":"$0"},{"v":0,"d":"$0"},{"v":0,"d":"$0"},null,0,null,null,{"$f":"'2 REPAIR ESTIMATOR'!AD1114","v":{"v":0,"d":"$0.00"}},{"$f":"'2 REPAIR ESTIMATOR'!AM1114","v":{"v":0,"d":"$0.00"}},{"v":0,"d":"$0.00"},{"$f":"'2 REPAIR ESTIMATOR'!AG1114","v":{"v":0,"d":"$0.00"}},{"$f":"'2 REPAIR ESTIMATOR'!AJ1114","v":{"v":0,"d":"$0.00"}}]
[null,null,{"$f":"T('2 REPAIR ESTIMATOR'!D1115:O1115)","v":""},{"$nulls":5},{"$f":"'2 REPAIR ESTIMATOR'!P1115","v":0},{"$f":"'2 REPAIR ESTIMATOR'!S1115","v":0},{"v":0,"d":"$0"},{"v":0,"d":"$0"},{"v":0,"d":"$0"},{"v":0,"d":"$0"},null,0,null,null,{"$f":"'2 REPAIR ESTIMATOR'!AD1115","v":{"v":0,"d":"$0.00"}},{"$f":"'2 REPAIR ESTIMATOR'!AM1115","v":{"v":0,"d":"$0.00"}},{"v":0,"d":"$0.00"},{"$f":"'2 REPAIR ESTIMATOR'!AG1115","v":{"v":0,"d":"$0.00"}},{"$f":"'2 REPAIR ESTIMATOR'!AJ1115","v":{"v":0,"d":"$0.00"}}]
[null,null,{"$f":"T('2 REPAIR ESTIMATOR'!D1116:O1116)","v":""},{"$nulls":5},{"$f":"'2 REPAIR ESTIMATOR'!P1116","v":0},{"$f":"'2 REPAIR ESTIMATOR'!S1116","v":0},{"v":0,"d":"$0"},{"v":0,"d":"$0"},{"v":0,"d":"$0"},{"v":0,"d":"$0"},null,0,null,null,{"$f":"'2 REPAIR ESTIMATOR'!AD1116","v":{"v":0,"d":"$0.00"}},{"$f":"'2 REPAIR ESTIMATOR'!AM1116","v":{"v":0,"d":"$0.00"}},{"v":0,"d":"$0.00"},{"$f":"'2 REPAIR ESTIMATOR'!AG1116","v":{"v":0,"d":"$0.00"}},{"$f":"'2 REPAIR ESTIMATOR'!AJ1116","v":{"v":0,"d":"$0.00"}}]
[null,null,{"$f":"T('2 REPAIR ESTIMATOR'!D1117:O1117)","v":""},{"$nulls":5},{"$f":"'2 REPAIR ESTIMATOR'!P1117","v":0},{"$f":"'2 REPAIR ESTIMATOR'!S1117","v":0},{"v":0,"d":"$0"},{"v":0,"d":"$0"},{"v":0,"d":"$0"},{"v":0,"d":"$0"},null,0,null,null,{"$f":"'2 REPAIR ESTIMATOR'!AD1117","v":{"v":0,"d":"$0.00"}},{"$f":"'2 REPAIR ESTIMATOR'!AM1117","v":{"v":0,"d":"$0.00"}},{"v":0,"d":"$0.00"},{"$f":"'2 REPAIR ESTIMATOR'!AG1117","v":{"v":0,"d":"$0.00"}},{"$f":"'2 REPAIR ESTIMATOR'!AJ1117","v":{"v":0,"d":"$0.00"}}]
[null,null,{"$f":"T('2 REPAIR ESTIMATOR'!AC1119)","v":"ELECTRICAL TOTAL"},{"$nulls":7},{"$f":"SUM(K1019:K1058)","v":{"v":0,"d":"$0"}},{"$f":"SUM(L1019:L1058)","v":{"v":1396.3500000000001,"d":"$1,396"}},{"$f":"SUM(M1019:M1058)","v":{"v":900,"d":"$900"}},{"$f":"SUM(N1019:O1058)","v":{"v":2296.35,"d":"$2,296"}},null,{"$f":"SUM(P1018:P1038)","v":40},null,null,{"$f":"SUM(S1019:S1058)","v":{"v":0,"d":"$0.00"}},{"$f":"SUM(T1019:T1058)","v":{"v":0,"d":"$0.00"}},{"$f":"SUM(U1019:U1058)","v":{"v":0,"d":"$0.00"}},{"$f":"SUM(V1019:V1058)","v":{"v":1396.3500000000001,"d":"$1,396.35"}},{"$f":"SUM(W1019:W1058)","v":{"v":900,"d":"$900.00"}}]
[{"$nulls":15},{"$f":"P1059","v":40}]
[null,null,{"$f":"T('2 REPAIR ESTIMATOR'!D1122:O1122)","v":"MISCELLANEOUS"},{"$nulls":5},{"$f":"SUM(I1062:I1101)","v":0},{"$nulls":6},0]
[null,null,{"$f":"T('2 REPAIR ESTIMATOR'!D1123:O1123)","v":"Bath accessories, towel bar, toilet disp, ea bathroom"},{"$nulls":5},{"$f":"'2 REPAIR ESTIMATOR'!P1123","v":0},{"$f":"'2 REPAIR ESTIMATOR'!S1123","v":"ea"},{"$f":"IF($N$3=\"subbed\",U1062,S1062)*$S$70","v":{"v":0,"d":"$0"}},{"$f":"V1062*$S$70","v":{"v":0,"d":"$0"}},{"$f":"W1062*$S$70","v":{"v":0,"d":"$0"}},{"$f":"SUM(K1062:M1062)","v":{"v":0,"d":"$0"}},null,0,null,null,{"$f":"'2 REPAIR ESTIMATOR'!AD1123","v":{"v":0,"d":"$0.00"}},{"$f":"'2 REPAIR ESTIMATOR'!AM1123","v":{"v":0,"d":"$0.00"}},{"$f":"T1062+S1062","v":{"v":0,"d":"$0.00"}},{"$f":"'2 REPAIR ESTIMATOR'!AG1123","v":{"v":0,"d":"$0.00"}},{"$f":"'2 REPAIR ESTIMATOR'!AJ1123","v":{"v":0,"d":"$0.00"}}]
[null,null,{"$f":"T('2 REPAIR ESTIMATOR'!D1124:O1124)","v":"Bathroom mirrors"},{"$nulls":5},{"$f":"'2 REPAIR ESTIMATOR'!P1124","v":0},{"$f":"'2 REPAIR ESTIMATOR'!S1124","v":"ea"},{"v":0,"d":"$0"},{"$f":"V1063*$S$70","v":{"v":0,"d":"$0"}},{"$f":"W1063*$S$70","v":{"v":0,"d":"$0"}},{"$f":"SUM(K1063:M1063)","v":{"v":0,"d":"$0"}},null,0,null,null,{"$f":"'2 REPAIR ESTIMATOR'!AD1124","v":{"v":0,"d":"$0.00"}},{"$f":"'2 REPAIR ESTIMATOR'!AM1124","v":{"v":0,"d":"$0.00"}},{"$f":"T1063+S1063","v":{"v":0,"d":"$0.00"}},{"$f":"'2 REPAIR ESTIMATOR'!AG1124","v":{"v":0,"d":"$0.00"}},{"$f":"'2 REPAIR ESTIMATOR'!AJ1124","v":{"v":0,"d":"$0.00"}}]
[null,null,{"$f":"T('2 REPAIR ESTIMATOR'!D1125:O1125)","v":"Window coverings, each window"},{"$nulls":5},{"$f":"'2 REPAIR ESTIMATOR'!P1125","v":0},{"$f":"'2 REPAIR ESTIMATOR'!S1125","v":"ea"},{"v":0,"d":"$0"},{"v":0,"d":"$0"},{"v":0,"d":"$0"},{"v":0,"d":"$0"},null,0,null,null,{"$f":"'2 REPAIR ESTIMATOR'!AD1125","v":{"v":0,"d":"$0.00"}},{"$f":"'2 REPAIR ESTIMATOR'!AM1125","v":{"v":0,"d":"$0.00"}},{"v":0,"d":"$0.00"},{"$f":"'2 REPAIR ESTIMATOR'!AG1125","v":{"v":0,"d":"$0.00"}},{"$f":"'2 REPAIR ESTIMATOR'!AJ1125","v":{"v":0,"d":"$0.00"}}]
[null,null,{"$f":"T('2 REPAIR ESTIMATOR'!D1126:O1126)","v":""},{"$nulls":5},{"$f":"'2 REPAIR ESTIMATOR'!P1126","v":0},{"$f":"'2 REPAIR ESTIMATOR'!S1126","v":0},{"v":0,"d":"$0"},{"v":0,"d":"$0"},{"v":0,"d":"$0"},{"v":0,"d":"$0"},null,0,null,null,{"$f":"'2 REPAIR ESTIMATOR'!AD1126","v":{"v":0,"d":"$0.00"}},{"$f":"'2 REPAIR ESTIMATOR'!AM1126","v":{"v":0,"d":"$0.00"}},{"v":0,"d":"$0.00"},{"$f":"'2 REPAIR ESTIMATOR'!AG1126","v":{"v":0,"d":"$0.00"}},{"$f":"'2 REPAIR ESTIMATOR'!AJ1126","v":{"v":0,"d":"$0.00"}}]
[null,null,{"$f":"T('2 REPAIR ESTIMATOR'!D1127:O1127)","v":""},{"$nulls":5},{"$f":"'2 REPAIR ESTIMATOR'!P1127","v":0},{"$f":"'2 REPAIR ESTIMATOR'!S1127","v":0},{"v":0,"d":"$0"},{"v":0,"d":"$0"},{"v":0,"d":"$0"},{"v":0,"d":"$0"},null,0,null,null,{"$f":"'2 REPAIR ESTIMATOR'!AD1127","v":{"v":0,"d":"$0.00"}},{"$f":"'2 REPAIR ESTIMATOR'!AM1127","v":{"v":0,"d":"$0.00"}},{"v":0,"d":"$0.00"},{"$f":"'2 REPAIR ESTIMATOR'!AG1127","v":{"v":0,"d":"$0.00"}},{"$f":"'2 REPAIR ESTIMATOR'!AJ1127","v":{"v":0,"d":"$0.00"}}]
[null,null,{"$f":"T('2 REPAIR ESTIMATOR'!D1128:O1128)","v":""},{"$nulls":5},{"$f":"'2 REPAIR ESTIMATOR'!P1128","v":0},{"$f":"'2 REPAIR ESTIMATOR'!S1128","v":0},{"v":0,"d":"$0"},{"v":0,"d":"$0"},{"v":0,"d":"$0"},{"v":0,"d":"$0"},null,0,null,null,{"$f":"'2 REPAIR ESTIMATOR'!AD1128","v":{"v":0,"d":"$0.00"}},{"$f":"'2 REPAIR ESTIMATOR'!AM1128","v":{"v":0,"d":"$0.00"}},{"v":0,"d":"$0.00"},{"$f":"'2 REPAIR ESTIMATOR'!AG1128","v":{"v":0,"d":"$0.00"}},{"$f":"'2 REPAIR ESTIMATOR'!AJ1128","v":{"v":0,"d":"$0.00"}}]
[null,null,{"$f":"T('2 REPAIR ESTIMATOR'!D1129:O1129)","v":""},{"$nulls":5},{"$f":"'2 REPAIR ESTIMATOR'!P1129","v":0},{"$f":"'2 REPAIR ESTIMATOR'!S1129","v":0},{"v":0,"d":"$0"},{"v":0,"d":"$0"},{"v":0,"d":"$0"},{"v":0,"d":"$0"},null,0,null,null,{"$f":"'2 REPAIR ESTIMATOR'!AD1129","v":{"v":0,"d":"$0.00"}},{"$f":"'2 REPAIR ESTIMATOR'!AM1129","v":{"v":0,"d":"$0.00"}},{"v":0,"d":"$0.00"},{"$f":"'2 REPAIR ESTIMATOR'!AG1129","v":{"v":0,"d":"$0.00"}},{"$f":"'2 REPAIR ESTIMATOR'!AJ1129","v":{"v":0,"d":"$0.00"}}]
[null,null,{"$f":"T('2 REPAIR ESTIMATOR'!D1130:O1130)","v":""},{"$nulls":5},{"$f":"'2 REPAIR ESTIMATOR'!P1130","v":0},{"$f":"'2 REPAIR ESTIMATOR'!S1130","v":0},{"v":0,"d":"$0"},{"v":0,"d":"$0"},{"v":0,"d":"$0"},{"v":0,"d":"$0"},null,0,null,null,{"$f":"'2 REPAIR ESTIMATOR'!AD1130","v":{"v":0,"d":"$0.00"}},{"$f":"'2 REPAIR ESTIMATOR'!AM1130","v":{"v":0,"d":"$0.00"}},{"v":0,"d":"$0.00"},{"$f":"'2 REPAIR ESTIMATOR'!AG1130","v":{"v":0,"d":"$0.00"}},{"$f":"'2 REPAIR ESTIMATOR'!AJ1130","v":{"v":0,"d":"$0.00"}}]
[null,null,{"$f":"T('2 REPAIR ESTIMATOR'!D1131:O1131)","v":""},{"$nulls":5},{"$f":"'2 REPAIR ESTIMATOR'!P1131","v":0},{"$f":"'2 REPAIR ESTIMATOR'!S1131","v":0},{"v":0,"d":"$0"},{"v":0,"d":"$0"},{"v":0,"d":"$0"},{"v":0,"d":"$0"},null,0,null,null,{"$f":"'2 REPAIR ESTIMATOR'!AD1131","v":{"v":0,"d":"$0.00"}},{"$f":"'2 REPAIR ESTIMATOR'!AM1131","v":{"v":0,"d":"$0.00"}},{"v":0,"d":"$0.00"},{"$f":"'2 REPAIR ESTIMATOR'!AG1131","v":{"v":0,"d":"$0.00"}},{"$f":"'2 REPAIR ESTIMATOR'!AJ1131","v":{"v":0,"d":"$0.00"}}]
[null,null,{"$f":"T('2 REPAIR ESTIMATOR'!D1132:O1132)","v":""},{"$nulls":5},{"$f":"'2 REPAIR ESTIMATOR'!P1132","v":0},{"$f":"'2 REPAIR ESTIMATOR'!S1132","v":0},{"v":0,"d":"$0"},{"v":0,"d":"$0"},{"v":0,"d":"$0"},{"v":0,"d":"$0"},null,0,null,null,{"$f":"'2 REPAIR ESTIMATOR'!AD1132","v":{"v":0,"d":"$0.00"}},{"$f":"'2 REPAIR ESTIMATOR'!AM1132","v":{"v":0,"d":"$0.00"}},{"v":0,"d":"$0.00"},{"$f":"'2 REPAIR ESTIMATOR'!AG1132","v":{"v":0,"d":"$0.00"}},{"$f":"'2 REPAIR ESTIMATOR'!AJ1132","v":{"v":0,"d":"$0.00"}}]
[null,null,{"$f":"T('2 REPAIR ESTIMATOR'!D1133:O1133)","v":""},{"$nulls":5},{"$f":"'2 REPAIR ESTIMATOR'!P1133","v":0},{"$f":"'2 REPAIR ESTIMATOR'!S1133","v":0},{"v":0,"d":"$0"},{"v":0,"d":"$0"},{"v":0,"d":"$0"},{"v":0,"d":"$0"},null,0,null,null,{"$f":"'2 REPAIR ESTIMATOR'!AD1133","v":{"v":0,"d":"$0.00"}},{"$f":"'2 REPAIR ESTIMATOR'!AM1133","v":{"v":0,"d":"$0.00"}},{"v":0,"d":"$0.00"},{"$f":"'2 REPAIR ESTIMATOR'!AG1133","v":{"v":0,"d":"$0.00"}},{"$f":"'2 REPAIR ESTIMATOR'!AJ1133","v":{"v":0,"d":"$0.00"}}]
[null,null,{"$f":"T('2 REPAIR ESTIMATOR'!D1134:O1134)","v":""},{"$nulls":5},{"$f":"'2 REPAIR ESTIMATOR'!P1134","v":0},{"$f":"'2 REPAIR ESTIMATOR'!S1134","v":0},{"v":0,"d":"$0"},{"v":0,"d":"$0"},{"v":0,"d":"$0"},{"v":0,"d":"$0"},null,0,null,null,{"$f":"'2 REPAIR ESTIMATOR'!AD1134","v":{"v":0,"d":"$0.00"}},{"$f":"'2 REPAIR ESTIMATOR'!AM1134","v":{"v":0,"d":"$0.00"}},{"v":0,"d":"$0.00"},{"$f":"'2 REPAIR ESTIMATOR'!AG1134","v":{"v":0,"d":"$0.00"}},{"$f":"'2 REPAIR ESTIMATOR'!AJ1134","v":{"v":0,"d":"$0.00"}}]
[null,null,{"$f":"T('2 REPAIR ESTIMATOR'!D1135:O1135)","v":""},{"$nulls":5},{"$f":"'2 REPAIR ESTIMATOR'!P1135","v":0},{"$f":"'2 REPAIR ESTIMATOR'!S1135","v":0},{"v":0,"d":"$0"},{"v":0,"d":"$0"},{"v":0,"d":"$0"},{"v":0,"d":"$0"},null,0,null,null,{"$f":"'2 REPAIR ESTIMATOR'!AD1135","v":{"v":0,"d":"$0.00"}},{"$f":"'2 REPAIR ESTIMATOR'!AM1135","v":{"v":0,"d":"$0.00"}},{"v":0,"d":"$0.00"},{"$f":"'2 REPAIR ESTIMATOR'!AG1135","v":{"v":0,"d":"$0.00"}},{"$f":"'2 REPAIR ESTIMATOR'!AJ1135","v":{"v":0,"d":"$0.00"}}]
[null,null,{"$f":"T('2 REPAIR ESTIMATOR'!D1136:O1136)","v":""},{"$nulls":5},{"$f":"'2 REPAIR ESTIMATOR'!P1136","v":0},{"$f":"'2 REPAIR ESTIMATOR'!S1136","v":0},{"v":0,"d":"$0"},{"v":0,"d":"$0"},{"v":0,"d":"$0"},{"v":0,"d":"$0"},null,{"$f":"I1075","v":0},null,null,{"$f":"'2 REPAIR ESTIMATOR'!AD1136","v":{"v":0,"d":"$0.00"}},{"$f":"'2 REPAIR ESTIMATOR'!AM1136","v":{"v":0,"d":"$0.00"}},{"v":0,"d":"$0.00"},{"$f":"'2 REPAIR ESTIMATOR'!AG1136","v":{"v":0,"d":"$0.00"}},{"$f":"'2 REPAIR ESTIMATOR'!AJ1136","v":{"v":0,"d":"$0.00"}}]
[null,null,{"$f":"T('2 REPAIR ESTIMATOR'!D1137:O1137)","v":""},{"$nulls":5},{"$f":"'2 REPAIR ESTIMATOR'!P1137","v":0},{"$f":"'2 REPAIR ESTIMATOR'!S1137","v":0},{"v":0,"d":"$0"},{"v":0,"d":"$0"},{"v":0,"d":"$0"},{"v":0,"d":"$0"},null,0,null,null,{"$f":"'2 REPAIR ESTIMATOR'!AD1137","v":{"v":0,"d":"$0.00"}},{"$f":"'2 REPAIR ESTIMATOR'!AM1137","v":{"v":0,"d":"$0.00"}},{"v":0,"d":"$0.00"},{"$f":"'2 REPAIR ESTIMATOR'!AG1137","v":{"v":0,"d":"$0.00"}},{"$f":"'2 REPAIR ESTIMATOR'!AJ1137","v":{"v":0,"d":"$0.00"}}]
[null,null,{"$f":"T('2 REPAIR ESTIMATOR'!D1138:O1138)","v":""},{"$nulls":5},{"$f":"'2 REPAIR ESTIMATOR'!P1138","v":0},{"$f":"'2 REPAIR ESTIMATOR'!S1138","v":0},{"v":0,"d":"$0"},{"v":0,"d":"$0"},{"v":0,"d":"$0"},{"v":0,"d":"$0"},null,0,null,null,{"$f":"'2 REPAIR ESTIMATOR'!AD1138","v":{"v":0,"d":"$0.00"}},{"$f":"'2 REPAIR ESTIMATOR'!AM1138","v":{"v":0,"d":"$0.00"}},{"v":0,"d":"$0.00"},{"$f":"'2 REPAIR ESTIMATOR'!AG1138","v":{"v":0,"d":"$0.00"}},{"$f":"'2 REPAIR ESTIMATOR'!AJ1138","v":{"v":0,"d":"$0.00"}}]
[null,null,{"$f":"T('2 REPAIR ESTIMATOR'!D1139:O1139)","v":""},{"$nulls":5},{"$f":"'2 REPAIR ESTIMATOR'!P1139","v":0},{"$f":"'2 REPAIR ESTIMATOR'!S1139","v":0},{"v":0,"d":"$0"},{"v":0,"d":"$0"},{"v":0,"d":"$0"},{"v":0,"d":"$0"},null,0,null,null,{"$f":"'2 REPAIR ESTIMATOR'!AD1139","v":{"v":0,"d":"$0.00"}},{"$f":"'2 REPAIR ESTIMATOR'!AM1139","v":{"v":0,"d":"$0.00"}},{"v":0,"d":"$0.00"},{"$f":"'2 REPAIR ESTIMATOR'!AG1139","v":{"v":0,"d":"$0.00"}},{"$f":"'2 REPAIR ESTIMATOR'!AJ1139","v":{"v":0,"d":"$0.00"}}]
[null,null,{"$f":"T('2 REPAIR ESTIMATOR'!D1140:O1140)","v":""},{"$nulls":5},{"$f":"'2 REPAIR ESTIMATOR'!P1140","v":0},{"$f":"'2 REPAIR ESTIMATOR'!S1140","v":0},{"v":0,"d":"$0"},{"v":0,"d":"$0"},{"v":0,"d":"$0"},{"v":0,"d":"$0"},null,0,null,null,{"$f":"'2 REPAIR ESTIMATOR'!AD1140","v":{"v":0,"d":"$0.00"}},{"$f":"'2 REPAIR ESTIMATOR'!AM1140","v":{"v":0,"d":"$0.00"}},{"v":0,"d":"$0.00"},{"$f":"'2 REPAIR ESTIMATOR'!AG1140","v":{"v":0,"d":"$0.00"}},{"$f":"'2 REPAIR ESTIMATOR'!AJ1140","v":{"v":0,"d":"$0.00"}}]
[null,null,{"$f":"T('2 REPAIR ESTIMATOR'!D1141:O1141)","v":""},{"$nulls":5},{"$f":"'2 REPAIR ESTIMATOR'!P1141","v":0},{"$f":"'2 REPAIR ESTIMATOR'!S1141","v":0},{"v":0,"d":"$0"},{"v":0,"d":"$0"},{"v":0,"d":"$0"},{"v":0,"d":"$0"},null,0,null,null,{"$f":"'2 REPAIR ESTIMATOR'!AD1141","v":{"v":0,"d":"$0.00"}},{"$f":"'2 REPAIR ESTIMATOR'!AM1141","v":{"v":0,"d":"$0.00"}},{"v":0,"d":"$0.00"},{"$f":"'2 REPAIR ESTIMATOR'!AG1141","v":{"v":0,"d":"$0.00"}},{"$f":"'2 REPAIR ESTIMATOR'!AJ1141","v":{"v":0,"d":"$0.00"}}]
[null,null,{"$f":"T('2 REPAIR ESTIMATOR'!D1142:O1142)","v":""},{"$nulls":5},{"$f":"'2 REPAIR ESTIMATOR'!P1142","v":0},{"$f":"'2 REPAIR ESTIMATOR'!S1142","v":0},{"v":0,"d":"$0"},{"v":0,"d":"$0"},{"v":0,"d":"$0"},{"v":0,"d":"$0"},null,0,null,null,{"$f":"'2 REPAIR ESTIMATOR'!AD1142","v":{"v":0,"d":"$0.00"}},{"$f":"'2 REPAIR ESTIMATOR'!AM1142","v":{"v":0,"d":"$0.00"}},{"v":0,"d":"$0.00"},{"$f":"'2 REPAIR ESTIMATOR'!AG1142","v":{"v":0,"d":"$0.00"}},{"$f":"'2 REPAIR ESTIMATOR'!AJ1142","v":{"v":0,"d":"$0.00"}}]
[null,null,{"$f":"T('2 REPAIR ESTIMATOR'!D1143:O1143)","v":""},{"$nulls":5},{"$f":"'2 REPAIR ESTIMATOR'!P1143","v":0},{"$f":"'2 REPAIR ESTIMATOR'!S1143","v":0},{"v":0,"d":"$0"},{"v":0,"d":"$0"},{"v":0,"d":"$0"},{"v":0,"d":"$0"},null,0,null,null,{"$f":"'2 REPAIR ESTIMATOR'!AD1143","v":{"v":0,"d":"$0.00"}},{"$f":"'2 REPAIR ESTIMATOR'!AM1143","v":{"v":0,"d":"$0.00"}},{"v":0,"d":"$0.00"},{"$f":"'2 REPAIR ESTIMATOR'!AG1143","v":{"v":0,"d":"$0.00"}},{"$f":"'2 REPAIR ESTIMATOR'!AJ1143","v":{"v":0,"d":"$0.00"}}]
[null,null,{"$f":"T('2 REPAIR ESTIMATOR'!D1144:O1144)","v":""},{"$nulls":5},{"$f":"'2 REPAIR ESTIMATOR'!P1144","v":0},{"$f":"'2 REPAIR ESTIMATOR'!S1144","v":0},{"v":0,"d":"$0"},{"v":0,"d":"$0"},{"v":0,"d":"$0"},{"v":0,"d":"$0"},null,0,null,null,{"$f":"'2 REPAIR ESTIMATOR'!AD1144","v":{"v":0,"d":"$0.00"}},{"$f":"'2 REPAIR ESTIMATOR'!AM1144","v":{"v":0,"d":"$0.00"}},{"v":0,"d":"$0.00"},{"$f":"'2 REPAIR ESTIMATOR'!AG1144","v":{"v":0,"d":"$0.00"}},{"$f":"'2 REPAIR ESTIMATOR'!AJ1144","v":{"v":0,"d":"$0.00"}}]
[null,null,{"$f":"T('2 REPAIR ESTIMATOR'!D1145:O1145)","v":""},{"$nulls":5},{"$f":"'2 REPAIR ESTIMATOR'!P1145","v":0},{"$f":"'2 REPAIR ESTIMATOR'!S1145","v":0},{"v":0,"d":"$0"},{"v":0,"d":"$0"},{"v":0,"d":"$0"},{"v":0,"d":"$0"},null,0,null,null,{"$f":"'2 REPAIR ESTIMATOR'!AD1145","v":{"v":0,"d":"$0.00"}},{"$f":"'2 REPAIR ESTIMATOR'!AM1145","v":{"v":0,"d":"$0.00"}},{"v":0,"d":"$0.00"},{"$f":"'2 REPAIR ESTIMATOR'!AG1145","v":{"v":0,"d":"$0.00"}},{"$f":"'2 REPAIR ESTIMATOR'!AJ1145","v":{"v":0,"d":"$0.00"}}]
[null,null,{"$f":"T('2 REPAIR ESTIMATOR'!D1146:O1146)","v":""},{"$nulls":5},{"$f":"'2 REPAIR ESTIMATOR'!P1146","v":0},{"$f":"'2 REPAIR ESTIMATOR'!S1146","v":0},{"v":0,"d":"$0"},{"v":0,"d":"$0"},{"v":0,"d":"$0"},{"v":0,"d":"$0"},null,0,null,null,{"$f":"'2 REPAIR ESTIMATOR'!AD1146","v":{"v":0,"d":"$0.00"}},{"$f":"'2 REPAIR ESTIMATOR'!AM1146","v":{"v":0,"d":"$0.00"}},{"v":0,"d":"$0.00"},{"$f":"'2 REPAIR ESTIMATOR'!AG1146","v":{"v":0,"d":"$0.00"}},{"$f":"'2 REPAIR ESTIMATOR'!AJ1146","v":{"v":0,"d":"$0.00"}}]
[null,null,{"$f":"T('2 REPAIR ESTIMATOR'!D1147:O1147)","v":""},{"$nulls":5},{"$f":"'2 REPAIR ESTIMATOR'!P1147","v":0},{"$f":"'2 REPAIR ESTIMATOR'!S1147","v":0},{"v":0,"d":"$0"},{"v":0,"d":"$0"},{"v":0,"d":"$0"},{"v":0,"d":"$0"},null,0,null,null,{"$f":"'2 REPAIR ESTIMATOR'!AD1147","v":{"v":0,"d":"$0.00"}},{"$f":"'2 REPAIR ESTIMATOR'!AM1147","v":{"v":0,"d":"$0.00"}},{"v":0,"d":"$0.00"},{"$f":"'2 REPAIR ESTIMATOR'!AG1147","v":{"v":0,"d":"$0.00"}},{"$f":"'2 REPAIR ESTIMATOR'!AJ1147","v":{"v":0,"d":"$0.00"}}]
[null,null,{"$f":"T('2 REPAIR ESTIMATOR'!D1148:O1148)","v":""},{"$nulls":5},{"$f":"'2 REPAIR ESTIMATOR'!P1148","v":0},{"$f":"'2 REPAIR ESTIMATOR'!S1148","v":0},{"v":0,"d":"$0"},{"v":0,"d":"$0"},{"v":0,"d":"$0"},{"v":0,"d":"$0"},null,0,null,null,{"$f":"'2 REPAIR ESTIMATOR'!AD1148","v":{"v":0,"d":"$0.00"}},{"$f":"'2 REPAIR ESTIMATOR'!AM1148","v":{"v":0,"d":"$0.00"}},{"v":0,"d":"$0.00"},{"$f":"'2 REPAIR ESTIMATOR'!AG1148","v":{"v":0,"d":"$0.00"}},{"$f":"'2 REPAIR ESTIMATOR'!AJ1148","v":{"v":0,"d":"$0.00"}}]
[null,null,{"$f":"T('2 REPAIR ESTIMATOR'!D1149:O1149)","v":""},{"$nulls":5},{"$f":"'2 REPAIR ESTIMATOR'!P1149","v":0},{"$f":"'2 REPAIR ESTIMATOR'!S1149","v":0},{"v":0,"d":"$0"},{"v":0,"d":"$0"},{"v":0,"d":"$0"},{"v":0,"d":"$0"},null,0,null,null,{"$f":"'2 REPAIR ESTIMATOR'!AD1149","v":{"v":0,"d":"$0.00"}},{"$f":"'2 REPAIR ESTIMATOR'!AM1149","v":{"v":0,"d":"$0.00"}},{"v":0,"d":"$0.00"},{"$f":"'2 REPAIR ESTIMATOR'!AG1149","v":{"v":0,"d":"$0.00"}},{"$f":"'2 REPAIR ESTIMATOR'!AJ1149","v":{"v":0,"d":"$0.00"}}]
[null,null,{"$f":"T('2 REPAIR ESTIMATOR'!D1150:O1150)","v":""},{"$nulls":5},{"$f":"'2 REPAIR ESTIMATOR'!P1150","v":0},{"$f":"'2 REPAIR ESTIMATOR'!S1150","v":0},{"v":0,"d":"$0"},{"v":0,"d":"$0"},{"v":0,"d":"$0"},{"v":0,"d":"$0"},null,0,null,null,{"$f":"'2 REPAIR ESTIMATOR'!AD1150","v":{"v":0,"d":"$0.00"}},{"$f":"'2 REPAIR ESTIMATOR'!AM1150","v":{"v":0,"d":"$0.00"}},{"v":0,"d":"$0.00"},{"$f":"'2 REPAIR ESTIMATOR'!AG1150","v":{"v":0,"d":"$0.00"}},{"$f":"'2 REPAIR ESTIMATOR'!AJ1150","v":{"v":0,"d":"$0.00"}}]
[null,null,{"$f":"T('2 REPAIR ESTIMATOR'!D1151:O1151)","v":""},{"$nulls":5},{"$f":"'2 REPAIR ESTIMATOR'!P1151","v":0},{"$f":"'2 REPAIR ESTIMATOR'!S1151","v":0},{"v":0,"d":"$0"},{"v":0,"d":"$0"},{"v":0,"d":"$0"},{"v":0,"d":"$0"},null,0,null,null,{"$f":"'2 REPAIR ESTIMATOR'!AD1151","v":{"v":0,"d":"$0.00"}},{"$f":"'2 REPAIR ESTIMATOR'!AM1151","v":{"v":0,"d":"$0.00"}},{"v":0,"d":"$0.00"},{"$f":"'2 REPAIR ESTIMATOR'!AG1151","v":{"v":0,"d":"$0.00"}},{"$f":"'2 REPAIR ESTIMATOR'!AJ1151","v":{"v":0,"d":"$0.00"}}]
[null,null,{"$f":"T('2 REPAIR ESTIMATOR'!D1152:O1152)","v":""},{"$nulls":5},{"$f":"'2 REPAIR ESTIMATOR'!P1152","v":0},{"$f":"'2 REPAIR ESTIMATOR'!S1152","v":0},{"v":0,"d":"$0"},{"v":0,"d":"$0"},{"v":0,"d":"$0"},{"v":0,"d":"$0"},null,0,null,null,{"$f":"'2 REPAIR ESTIMATOR'!AD1152","v":{"v":0,"d":"$0.00"}},{"$f":"'2 REPAIR ESTIMATOR'!AM1152","v":{"v":0,"d":"$0.00"}},{"v":0,"d":"$0.00"},{"$f":"'2 REPAIR ESTIMATOR'!AG1152","v":{"v":0,"d":"$0.00"}},{"$f":"'2 REPAIR ESTIMATOR'!AJ1152","v":{"v":0,"d":"$0.00"}}]
[null,null,{"$f":"T('2 REPAIR ESTIMATOR'!D1153:O1153)","v":""},{"$nulls":5},{"$f":"'2 REPAIR ESTIMATOR'!P1153","v":0},{"$f":"'2 REPAIR ESTIMATOR'!S1153","v":0},{"v":0,"d":"$0"},{"v":0,"d":"$0"},{"v":0,"d":"$0"},{"v":0,"d":"$0"},null,0,null,null,{"$f":"'2 REPAIR ESTIMATOR'!AD1153","v":{"v":0,"d":"$0.00"}},{"$f":"'2 REPAIR ESTIMATOR'!AM1153","v":{"v":0,"d":"$0.00"}},{"v":0,"d":"$0.00"},{"$f":"'2 REPAIR ESTIMATOR'!AG1153","v":{"v":0,"d":"$0.00"}},{"$f":"'2 REPAIR ESTIMATOR'!AJ1153","v":{"v":0,"d":"$0.00"}}]
[null,null,{"$f":"T('2 REPAIR ESTIMATOR'!D1154:O1154)","v":""},{"$nulls":5},{"$f":"'2 REPAIR ESTIMATOR'!P1154","v":0},{"$f":"'2 REPAIR ESTIMATOR'!S1154","v":0},{"v":0,"d":"$0"},{"v":0,"d":"$0"},{"v":0,"d":"$0"},{"v":0,"d":"$0"},null,0,null,null,{"$f":"'2 REPAIR ESTIMATOR'!AD1154","v":{"v":0,"d":"$0.00"}},{"$f":"'2 REPAIR ESTIMATOR'!AM1154","v":{"v":0,"d":"$0.00"}},{"v":0,"d":"$0.00"},{"$f":"'2 REPAIR ESTIMATOR'!AG1154","v":{"v":0,"d":"$0.00"}},{"$f":"'2 REPAIR ESTIMATOR'!AJ1154","v":{"v":0,"d":"$0.00"}}]
[null,null,{"$f":"T('2 REPAIR ESTIMATOR'!D1155:O1155)","v":""},{"$nulls":5},{"$f":"'2 REPAIR ESTIMATOR'!P1155","v":0},{"$f":"'2 REPAIR ESTIMATOR'!S1155","v":0},{"v":0,"d":"$0"},{"v":0,"d":"$0"},{"v":0,"d":"$0"},{"v":0,"d":"$0"},null,0,null,null,{"$f":"'2 REPAIR ESTIMATOR'!AD1155","v":{"v":0,"d":"$0.00"}},{"$f":"'2 REPAIR ESTIMATOR'!AM1155","v":{"v":0,"d":"$0.00"}},{"v":0,"d":"$0.00"},{"$f":"'2 REPAIR ESTIMATOR'!AG1155","v":{"v":0,"d":"$0.00"}},{"$f":"'2 REPAIR ESTIMATOR'!AJ1155","v":{"v":0,"d":"$0.00"}}]
[null,null,{"$f":"T('2 REPAIR ESTIMATOR'!D1156:O1156)","v":""},{"$nulls":5},{"$f":"'2 REPAIR ESTIMATOR'!P1156","v":0},{"$f":"'2 REPAIR ESTIMATOR'!S1156","v":0},{"v":0,"d":"$0"},{"v":0,"d":"$0"},{"v":0,"d":"$0"},{"v":0,"d":"$0"},null,{"$f":"I1095","v":0},null,null,{"$f":"'2 REPAIR ESTIMATOR'!AD1156","v":{"v":0,"d":"$0.00"}},{"$f":"'2 REPAIR ESTIMATOR'!AM1156","v":{"v":0,"d":"$0.00"}},{"v":0,"d":"$0.00"},{"$f":"'2 REPAIR ESTIMATOR'!AG1156","v":{"v":0,"d":"$0.00"}},{"$f":"'2 REPAIR ESTIMATOR'!AJ1156","v":{"v":0,"d":"$0.00"}}]
[null,null,{"$f":"T('2 REPAIR ESTIMATOR'!D1157:O1157)","v":""},{"$nulls":5},{"$f":"'2 REPAIR ESTIMATOR'!P1157","v":0},{"$f":"'2 REPAIR ESTIMATOR'!S1157","v":0},{"v":0,"d":"$0"},{"v":0,"d":"$0"},{"v":0,"d":"$0"},{"v":0,"d":"$0"},null,0,null,null,{"$f":"'2 REPAIR ESTIMATOR'!AD1157","v":{"v":0,"d":"$0.00"}},{"$f":"'2 REPAIR ESTIMATOR'!AM1157","v":{"v":0,"d":"$0.00"}},{"v":0,"d":"$0.00"},{"$f":"'2 REPAIR ESTIMATOR'!AG1157","v":{"v":0,"d":"$0.00"}},{"$f":"'2 REPAIR ESTIMATOR'!AJ1157","v":{"v":0,"d":"$0.00"}}]
[null,null,{"$f":"T('2 REPAIR ESTIMATOR'!D1158:O1158)","v":""},{"$nulls":5},{"$f":"'2 REPAIR ESTIMATOR'!P1158","v":0},{"$f":"'2 REPAIR ESTIMATOR'!S1158","v":0},{"v":0,"d":"$0"},{"v":0,"d":"$0"},{"v":0,"d":"$0"},{"v":0,"d":"$0"},null,0,null,null,{"$f":"'2 REPAIR ESTIMATOR'!AD1158","v":{"v":0,"d":"$0.00"}},{"$f":"'2 REPAIR ESTIMATOR'!AM1158","v":{"v":0,"d":"$0.00"}},{"v":0,"d":"$0.00"},{"$f":"'2 REPAIR ESTIMATOR'!AG1158","v":{"v":0,"d":"$0.00"}},{"$f":"'2 REPAIR ESTIMATOR'!AJ1158","v":{"v":0,"d":"$0.00"}}]
[null,null,{"$f":"T('2 REPAIR ESTIMATOR'!D1159:O1159)","v":""},{"$nulls":5},{"$f":"'2 REPAIR ESTIMATOR'!P1159","v":0},{"$f":"'2 REPAIR ESTIMATOR'!S1159","v":0},{"v":0,"d":"$0"},{"v":0,"d":"$0"},{"v":0,"d":"$0"},{"v":0,"d":"$0"},null,0,null,null,{"$f":"'2 REPAIR ESTIMATOR'!AD1159","v":{"v":0,"d":"$0.00"}},{"$f":"'2 REPAIR ESTIMATOR'!AM1159","v":{"v":0,"d":"$0.00"}},{"v":0,"d":"$0.00"},{"$f":"'2 REPAIR ESTIMATOR'!AG1159","v":{"v":0,"d":"$0.00"}},{"$f":"'2 REPAIR ESTIMATOR'!AJ1159","v":{"v":0,"d":"$0.00"}}]
[null,null,{"$f":"T('2 REPAIR ESTIMATOR'!D1160:O1160)","v":""},{"$nulls":5},{"$f":"'2 REPAIR ESTIMATOR'!P1160","v":0},{"$f":"'2 REPAIR ESTIMATOR'!S1160","v":0},{"v":0,"d":"$0"},{"v":0,"d":"$0"},{"v":0,"d":"$0"},{"v":0,"d":"$0"},null,0,null,null,{"$f":"'2 REPAIR ESTIMATOR'!AD1160","v":{"v":0,"d":"$0.00"}},{"$f":"'2 REPAIR ESTIMATOR'!AM1160","v":{"v":0,"d":"$0.00"}},{"v":0,"d":"$0.00"},{"$f":"'2 REPAIR ESTIMATOR'!AG1160","v":{"v":0,"d":"$0.00"}},{"$f":"'2 REPAIR ESTIMATOR'!AJ1160","v":{"v":0,"d":"$0.00"}}]
[null,null,{"$f":"T('2 REPAIR ESTIMATOR'!D1161:O1161)","v":""},{"$nulls":5},{"$f":"'2 REPAIR ESTIMATOR'!P1161","v":0},{"$f":"'2 REPAIR ESTIMATOR'!S1161","v":0},{"v":0,"d":"$0"},{"v":0,"d":"$0"},{"v":0,"d":"$0"},{"v":0,"d":"$0"},null,0,null,null,{"$f":"'2 REPAIR ESTIMATOR'!AD1161","v":{"v":0,"d":"$0.00"}},{"$f":"'2 REPAIR ESTIMATOR'!AM1161","v":{"v":0,"d":"$0.00"}},{"v":0,"d":"$0.00"},{"$f":"'2 REPAIR ESTIMATOR'!AG1161","v":{"v":0,"d":"$0.00"}},{"$f":"'2 REPAIR ESTIMATOR'!AJ1161","v":{"v":0,"d":"$0.00"}}]
[null,null,{"$f":"T('2 REPAIR ESTIMATOR'!D1162:O1162)","v":""},{"$nulls":5},{"$f":"'2 REPAIR ESTIMATOR'!P1162","v":0},{"$f":"'2 REPAIR ESTIMATOR'!S1162","v":0},{"v":0,"d":"$0"},{"v":0,"d":"$0"},{"v":0,"d":"$0"},{"v":0,"d":"$0"},null,0,null,null,{"$f":"'2 REPAIR ESTIMATOR'!AD1162","v":{"v":0,"d":"$0.00"}},{"$f":"'2 REPAIR ESTIMATOR'!AM1162","v":{"v":0,"d":"$0.00"}},{"v":0,"d":"$0.00"},{"$f":"'2 REPAIR ESTIMATOR'!AG1162","v":{"v":0,"d":"$0.00"}},{"$f":"'2 REPAIR ESTIMATOR'!AJ1162","v":{"v":0,"d":"$0.00"}}]
[null,null,{"$f":"T('2 REPAIR ESTIMATOR'!AC1164)","v":"MISCELLANEOUS TOTAL"},{"$nulls":7},{"$f":"SUM(K1062:K1101)","v":{"v":0,"d":"$0"}},{"$f":"SUM(L1062:L1101)","v":{"v":0,"d":"$0"}},{"$f":"SUM(M1062:M1101)","v":{"v":0,"d":"$0"}},{"$f":"SUM(N1062:O1101)","v":{"v":0,"d":"$0"}},null,{"$f":"SUM(P1061:P1068)","v":0},null,null,{"$f":"SUM(S1062:S1101)","v":{"v":0,"d":"$0.00"}},{"$f":"SUM(T1062:T1101)","v":{"v":0,"d":"$0.00"}},{"$f":"SUM(U1062:U1101)","v":{"v":0,"d":"$0.00"}},{"$f":"SUM(V1062:V1101)","v":{"v":0,"d":"$0.00"}},{"$f":"SUM(W1062:W1101)","v":{"v":0,"d":"$0.00"}}]
[{"$nulls":15},{"$f":"P1102","v":0}]
[null,null,"SUBTOTAL ESTIMATE ",{"$nulls":7},{"$f":"SUM(K113+K156+K199+K242+K285+K328+K371+K414+K457+K500+K543+K586+K629+K672+K715+K801+K758+K844+K887+K930+K973+K1016+K1059+K1102)","v":{"v":20972.5,"d":"$20,973"}},{"$f":"SUM(L113+L156+L199+L242+L285+L328+L371+L414+L457+L500+L543+L586+L629+L672+L715+L801+L758+L844+L887+L930+L973+L1016+L1059+L1102)","v":{"v":31581.049999999996,"d":"$31,581"}},{"$f":"SUM(M113+M156+M199+M242+M285+M328+M371+M414+M457+M500+M543+M586+M629+M672+M715+M801+M758+M844+M887+M930+M973+M1016+M1059+M1102)","v":{"v":900,"d":"$900"}},{"$f":"SUM(N113+N156+N199+N242+N285+N328+N371+N414+N457+N500+N543+N586+N629+N672+N715+N801+N758+N844+N887+N930+N973+N1016+N1059+N1102)","v":{"v":53453.549999999996,"d":"$53,454"}},{"$f":"SUM(O113+O156+O199+O242+O285+O328+O371+O414+O457+O500+O543+O586+O629+O672+O715+O801+O758+O844+O887+O930+O973+O1016+O1059+O1102)","v":{"v":0,"d":"$0"}},{"$f":"N1104","v":{"v":53453.549999999996,"d":"53454"}},null,null,{"$f":"SUM(S113+S156+S199+S242+S285+S328+S371+S414+S457+S500+S543+S586+S629+S672+S715+S801+S758+S844+S887+S930+S973+S1016+S1059+S1102)","v":{"v":20972.5,"d":"$20,972.50"}},{"$f":"SUM(T113+T156+T199+T242+T285+T328+T371+T414+T457+T500+T543+T586+T629+T672+T715+T801+T758+T844+T887+T930+T973+T1016+T1059+T1102)","v":{"v":0,"d":"$0.00"}},{"$f":"SUM(U113+U156+U199+U242+U285+U328+U371+U414+U457+U500+U543+U586+U629+U672+U715+U801+U758+U844+U887+U930+U973+U1016+U1059+U1102)","v":{"v":20972.5,"d":"$20,972.50"}},{"$f":"SUM(V113+V156+V199+V242+V285+V328+V371+V414+V457+V500+V543+V586+V629+V672+V715+V801+V758+V844+V887+V930+V973+V1016+V1059+V1102)","v":{"v":31581.049999999996,"d":"$31,581.05"}},{"$f":"SUM(W113+W156+W199+W242+W285+W328+W371+W414+W457+W500+W543+W586+W629+W672+W715+W801+W758+W844+W887+W930+W973+W1016+W1059+W1102)","v":{"v":900,"d":"$900.00"}}]
[{"$nulls":15},1]
[null,null,"SUBTOTAL ESTIMATE",{"$nulls":4},{"$f":"N1104","v":{"v":53453.549999999996,"d":"$53,454"}},null,{"$f":"IFERROR(H1106/Square_Feet,0)","v":{"v":35.6357,"d":"$35.64"}},{"$f":"IFERROR(H1106/$H$1115,0)","v":{"v":1,"d":"100%"}},{"$nulls":4},{"$f":"IF(H1106>0,1,0)","v":1}]
[{"$nulls":15},{"$f":"IF($H$58>0,1)","v":false}]
[null,null,"ADDERS",{"$nulls":4},"Amount",null,"$/sf","%",{"$nulls":4},false]
[null,null,{"$f":"CONCATENATE(\"Location Multiplier of \",TEXT(Location_Mutiplier,\"0.00\"))","v":"Location Multiplier of 0.00"},{"$nulls":4},{"$f":"Location_Mutiplier_Amount","v":{"v":0,"d":"$0"}},null,{"$f":"IFERROR(H1109/Square_Feet,0)","v":{"v":0,"d":"$0.00"}},{"$f":"IFERROR(H1109/$H$1115,0)","v":{"v":0,"d":"0%"}},"Note: Estimating Adders have been included to cover our project location, building permits, contractors OH & P, and Contingency.",{"$nulls":3},false]
[null,null,{"$f":"CONCATENATE(\"Building Permit Costs (\",TEXT(Permit_Percentage,\"0.0%\"),\")\")","v":"Building Permit Costs (0.0%)"},{"$nulls":4},{"$f":"Permit_Amount","v":{"v":0,"d":"$0"}},null,{"$f":"IFERROR(H1110/Square_Feet,0)","v":{"v":0,"d":"$0.00"}},{"$f":"IFERROR(H1110/$H$1115,0)","v":{"v":0,"d":"0%"}},{"$nulls":4},false]
[null,null,{"$f":"CONCATENATE(\"Contractors Overhead and Profit (\",TEXT(Contractos_Overhead_Percentage,\"0.0%\"),\")\")","v":"Contractors Overhead and Profit (0.0%)"},{"$nulls":4},{"$f":"Contractors_Overhead_Profit_Amount","v":{"v":0,"d":"$0"}},null,{"$f":"IFERROR(H1111/Square_Feet,0)","v":{"v":0,"d":"$0.00"}},{"$f":"IFERROR(H1111/$H$1115,0)","v":{"v":0,"d":"0%"}},{"$nulls":4},false]
[null,null,{"$f":"CONCATENATE(\"Estimate Contingency  (\",TEXT(Contingency_Percentage,\"0.0%\"),\")\")","v":"Estimate Contingency  (0.0%)"},{"$nulls":4},{"$f":"Contingency_Amount","v":{"v":0,"d":"$0"}},null,{"$f":"IFERROR(H1112/Square_Feet,0)","v":{"v":0,"d":"$0.00"}},{"$f":"IFERROR(H1112/$H$1115,0)","v":{"v":0,"d":"0%"}},{"$nulls":4},false]
[null,null,"TOTAL ADDERS",{"$nulls":4},{"$f":"TOTAL_ADDERS","v":{"v":0,"d":"$0"}},null,{"$f":"IFERROR(H1113/Square_Feet,0)","v":{"v":0,"d":"$0.00"}},{"$f":"IFERROR(H1113/$H$1115,0)","v":{"v":0,"d":"0%"}},{"$nulls":4},false]
[{"$nulls":15},{"$f":"IF($H$60>0,1)","v":1}]
[null,null,"TOTAL ESTIMATE",{"$nulls":4},{"$f":"IF(S69=\"Allocate Adders\",H1106,H1106+H1113)","v":{"v":53453.549999999996,"d":"$53,454"}},null,{"$f":"J1106+J1113","v":{"v":35.6357,"d":"$35.64"}},{"$f":"IFERROR(H1115/$H$1115,0)","v":{"v":1,"d":"100%"}},{"$nulls":4},{"$f":"IF($H$60>0,1)","v":1}]
[{"$nulls":15},1]
[null,null,"© 2018 by Houseflippingspreadsheet.com. All rights reserved"]

{"sheet":"PROJECT COST REPORT","index":32,"n_rows":1096,"n_cols":15,"rows_kept":1096,"hidden":true,"merged":[[5,3,9,12],[18,2,18,5],[18,6,18,7],[18,10,18,13],[20,2,20,5],[20,6,20,7],[20,10,20,13],[21,2,21,5],[21,6,21,7],[21,10,21,13],[22,2,22,5],[22,6,22,7],[22,10,22,13],[23,2,23,5],[23,6,23,7],[23,10,23,13],[25,2,25,5],[25,6,25,7],[25,10,25,13],[26,2,26,5],[26,6,26,7],[26,10,26,13],[27,2,27,5],[27,6,27,7],[27,10,27,13],[30,2,30,5],[30,6,30,7],[30,10,30,13],[31,2,31,5],[31,6,31,7],[31,10,31,13],[32,2,32,5],[32,6,32,7],[32,10,32,13],[33,2,33,5],[33,6,33,7],[33,10,33,13],[34,2,34,5],[34,6,34,7],[34,10,34,13],[35,2,35,5],[35,6,35,7],[35,10,35,13],[36,2,36,5],[36,6,36,7],[36,10,36,13],[37,2,37,5],[37,6,37,7],[37,10,37,13],[38,2,38,5],[38,6,38,7],[38,10,38,13],[40,2,40,5],[40,6,40,7],[40,10,40,13],[41,2,41,5],[41,6,41,7],[41,10,41,13],[42,2,42,5],[42,6,42,7],[42,10,42,13],[43,2,43,5],[43,6,43,7],[43,10,43,13],[44,2,44,5],[44,6,44,7],[44,10,44,13],[45,2,45,5],[45,6,45,7],[45,10,45,13],[46,2,46,5],[46,6,46,7],[46,10,46,13],[47,2,47,5],[47,6,47,7],[47,10,47,13],[48,2,48,5],[48,6,48,7],[48,10,48,13],[93,10,93,13],[136,10,136,13],[140,10,140,13],[141,10,141,13],[142,10,142,13],[143,10,143,13],[144,10,144,13],[145,10,145,13],[146,10,146,13],[147,10,147,13],[148,10,148,13],[149,10,149,13],[150,10,150,13],[151,10,151,13],[152,10,152,13],[157,10,157,13],[158,10,158,13],[159,10,159,13],[160,10,160,13],[161,10,161,13],[162,10,162,13],[163,10,163,13],[164,10,164,13],[165,10,165,13],[166,10,166,13],[167,10,167,13],[168,10,168,13],[169,10,169,13],[170,10,170,13],[171,10,171,13],[172,10,172,13],[173,10,173,13],[174,10,174,13],[175,10,175,13],[176,10,176,13],[177,10,177,13],[179,10,179,13],[180,10,180,13],[181,10,181,13],[182,10,182,13],[183,10,183,13],[184,10,184,13],[185,10,185,13],[186,10,186,13],[187,10,187,13],[188,10,188,13],[189,10,189,13],[190,10,190,13],[191,10,191,13],[192,10,192,13],[193,10,193,13],[194,10,194,13],[195,10,195,13],[196,10,196,13],[197,10,197,13],[198,10,198,13],[199,10,199,13],[200,10,200,13],[201,10,201,13],[202,10,202,13],[203,10,203,13],[204,10,204,13],[205,10,205,13],[206,10,206,13],[207,10,207,13],[208,10,208,13],[209,10,209,13],[210,10,210,13],[211,10,211,13],[212,10,212,13],[213,10,213,13],[214,10,214,13],[215,10,215,13],[216,10,216,13],[217,10,217,13],[218,10,218,13],[219,10,219,13],[220,10,220,13],[222,10,222,13],[223,10,223,13],[224,10,224,13],[225,10,225,13],[226,10,226,13],[227,10,227,13],[228,10,228,13],[229,10,229,13],[230,10,230,13],[231,10,231,13],[232,10,232,13],[233,10,233,13],[234,10,234,13],[235,10,235,13],[236,10,236,13],[237,10,237,13],[238,10,238,13],[239,10,239,13],[240,10,240,13],[241,10,241,13],[242,10,242,13],[243,10,243,13],[244,10,244,13],[245,10,245,13],[246,10,246,13],[247,10,247,13],[248,10,248,13],[249,10,249,13],[250,10,250,13],[251,10,251,13],[252,10,252,13],[253,10,253,13],[254,10,254,13],[255,10,255,13],[256,10,256,13],[257,10,257,13],[258,10,258,13],[259,10,259,13],[260,10,260,13],[261,10,261,13],[262,10,262,13],[263,10,263,13],[265,10,265,13],[266,10,266,13],[267,10,267,13],[268,10,268,13],[269,10,269,13],[270,10,270,13],[271,10,271,13],[272,10,272,13],[273,10,273,13],[274,10,274,13],[275,10,275,13],[276,10,276,13],[277,10,277,13],[278,10,278,13],[279,10,279,13],[280,10,280,13],[281,10,281,13],[282,10,282,13],[283,10,283,13],[284,10,284,13],[285,10,285,13],[286,10,286,13],[287,10,287,13],[288,10,288,13],[289,10,289,13],[290,10,290,13],[291,10,291,13],[292,10,292,13],[293,10,293,13],[294,10,294,13],[295,10,295,13],[296,10,296,13],[297,10,297,13],[298,10,298,13],[299,10,299,13],[300,10,300,13],[301,10,301,13],[302,10,302,13],[303,10,303,13],[304,10,304,13],[305,10,305,13],[306,10,306,13],[308,10,308,13],[309,10,309,13],[310,10,310,13],[311,10,311,13],[312,10,312,13],[313,10,313,13],[314,10,314,13],[315,10,315,13],[316,10,316,13],[317,10,317,13],[318,10,318,13],[319,10,319,13],[320,10,320,13],[321,10,321,13],[322,10,322,13],[323,10,323,13],[324,10,324,13],[325,10,325,13],[326,10,326,13],[327,10,327,13],[328,10,328,13],[329,10,329,13],[330,10,330,13],[331,10,331,13],[332,10,332,13],[333,10,333,13],[334,10,334,13],[335,10,335,13],[336,10,336,13],[337,10,337,13],[338,10,338,13],[339,10,339,13],[340,10,340,13],[341,10,341,13],[342,10,342,13],[343,10,343,13],[344,10,344,13],[345,10,345,13],[346,10,346,13],[347,10,347,13],[348,10,348,13],[349,10,349,13],[351,10,351,13],[352,10,352,13],[353,10,353,13],[354,10,354,13],[355,10,355,13],[356,10,356,13],[357,10,357,13],[358,10,358,13],[359,10,359,13],[360,10,360,13],[361,10,361,13],[362,10,362,13],[363,10,363,13],[364,10,364,13],[365,10,365,13],[366,10,366,13],[367,10,367,13],[368,10,368,13],[369,10,369,13],[370,10,370,13],[371,10,371,13],[372,10,372,13],[373,10,373,13],[374,10,374,13],[375,10,375,13],[376,10,376,13],[377,10,377,13],[378,10,378,13],[379,10,379,13],[380,10,380,13],[381,10,381,13],[382,10,382,13],[383,10,383,13],[384,10,384,13],[385,10,385,13],[386,10,386,13],[387,10,387,13],[388,10,388,13],[389,10,389,13],[390,10,390,13],[391,10,391,13],[392,10,392,13],[394,10,394,13],[395,10,395,13],[396,10,396,13],[397,10,397,13],[398,10,398,13],[399,10,399,13],[400,10,400,13],[401,10,401,13],[402,10,402,13],[403,10,403,13],[404,10,404,13],[405,10,405,13],[406,10,406,13],[407,10,407,13],[408,10,408,13],[409,10,409,13],[410,10,410,13],[411,10,411,13],[412,10,412,13],[413,10,413,13],[414,10,414,13],[415,10,415,13],[416,10,416,13],[417,10,417,13],[418,10,418,13],[419,10,419,13],[420,10,420,13],[421,10,421,13],[422,10,422,13],[423,10,423,13],[424,10,424,13],[425,10,425,13],[426,10,426,13],[427,10,427,13],[428,10,428,13],[429,10,429,13],[430,10,430,13],[431,10,431,13],[432,10,432,13],[433,10,433,13],[434,10,434,13],[435,10,435,13],[437,10,437,13],[438,10,438,13],[439,10,439,13],[440,10,440,13],[441,10,441,13],[442,10,442,13],[443,10,443,13],[444,10,444,13],[445,10,445,13],[446,10,446,13],[447,10,447,13],[448,10,448,13],[449,10,449,13],[450,10,450,13],[451,10,451,13],[452,10,452,13],[453,10,453,13],[454,10,454,13],[455,10,455,13],[456,10,456,13],[457,10,457,13],[458,10,458,13],[459,10,459,13],[460,10,460,13],[461,10,461,13],[462,10,462,13],[463,10,463,13],[464,10,464,13],[465,10,465,13],[466,10,466,13],[467,10,467,13],[468,10,468,13],[469,10,469,13],[470,10,470,13],[471,10,471,13],[472,10,472,13],[473,10,473,13],[474,10,474,13],[475,10,475,13],[476,10,476,13],[477,10,477,13],[478,10,478,13],[480,10,480,13],[481,10,481,13],[482,10,482,13],[483,10,483,13],[484,10,484,13],[485,10,485,13],[486,10,486,13],[487,10,487,13],[488,10,488,13],[489,10,489,13],[490,10,490,13],[491,10,491,13],[492,10,492,13],[493,10,493,13],[494,10,494,13],[495,10,495,13],[496,10,496,13],[497,10,497,13],[498,10,498,13],[499,10,499,13],[500,10,500,13],[501,10,501,13],[502,10,502,13],[503,10,503,13],[504,10,504,13],[505,10,505,13],[506,10,506,13],[507,10,507,13],[508,10,508,13],[509,10,509,13],[510,10,510,13],[511,10,511,13],[512,10,512,13],[513,10,513,13],[514,10,514,13],[515,10,515,13],[516,10,516,13],[517,10,517,13],[518,10,518,13],[519,10,519,13],[520,10,520,13],[521,10,521,13],[523,10,523,13],[524,10,524,13],[525,10,525,13],[526,10,526,13],[527,10,527,13],[528,10,528,13],[529,10,529,13],[530,10,530,13],[531,10,531,13],[532,10,532,13],[533,10,533,13],[534,10,534,13],[535,10,535,13],[536,10,536,13],[537,10,537,13],[538,10,538,13],[539,10,539,13],[540,10,540,13],[541,10,541,13],[542,10,542,13],[543,10,543,13],[544,10,544,13],[545,10,545,13],[546,10,546,13],[547,10,547,13],[548,10,548,13],[549,10,549,13],[550,10,550,13],[551,10,551,13],[552,10,552,13],[553,10,553,13],[554,10,554,13],[555,10,555,13],[556,10,556,13],[557,10,557,13],[558,10,558,13],[559,10,559,13],[560,10,560,13],[561,10,561,13],[562,10,562,13],[563,10,563,13],[564,10,564,13],[566,10,566,13],[567,10,567,13],[568,10,568,13],[569,10,569,13],[570,10,570,13],[571,10,571,13],[572,10,572,13],[573,10,573,13],[574,10,574,13],[575,10,575,13],[576,10,576,13],[577,10,577,13],[578,10,578,13],[579,10,579,13],[580,10,580,13],[581,10,581,13],[582,10,582,13],[583,10,583,13],[584,10,584,13],[585,10,585,13],[586,10,586,13],[587,10,587,13],[588,10,588,13],[589,10,589,13],[590,10,590,13],[591,10,591,13],[592,10,592,13],[593,10,593,13],[594,10,594,13],[595,10,595,13],[596,10,596,13],[597,10,597,13],[598,10,598,13],[599,10,599,13],[600,10,600,13],[601,10,601,13],[602,10,602,13],[603,10,603,13],[604,10,604,13],[605,10,605,13],[606,10,606,13],[607,10,607,13],[609,10,609,13],[610,10,610,13],[611,10,611,13],[612,10,612,13],[613,10,613,13],[614,10,614,13],[615,10,615,13],[616,10,616,13],[617,10,617,13],[618,10,618,13],[619,10,619,13],[620,10,620,13],[621,10,621,13],[622,10,622,13],[623,10,623,13],[624,10,624,13],[625,10,625,13],[626,10,626,13],[627,10,627,13],[628,10,628,13],[629,10,629,13],[630,10,630,13],[631,10,631,13],[632,10,632,13],[633,10,633,13],[634,10,634,13],[635,10,635,13],[636,10,636,13],[637,10,637,13],[638,10,638,13],[639,10,639,13],[640,10,640,13],[641,10,641,13],[642,10,642,13],[643,10,643,13],[644,10,644,13],[645,10,645,13],[646,10,646,13],[647,10,647,13],[648,10,648,13],[649,10,649,13],[650,10,650,13],[652,10,652,13],[653,10,653,13],[654,10,654,13],[655,10,655,13],[656,10,656,13],[657,10,657,13],[658,10,658,13],[659,10,659,13],[660,10,660,13],[661,10,661,13],[662,10,662,13],[663,10,663,13],[664,10,664,13],[665,10,665,13],[666,10,666,13],[667,10,667,13],[668,10,668,13],[669,10,669,13],[670,10,670,13],[671,10,671,13],[672,10,672,13],[673,10,673,13],[674,10,674,13],[675,10,675,13],[676,10,676,13],[677,10,677,13],[678,10,678,13],[679,10,679,13],[680,10,680,13],[681,10,681,13],[682,10,682,13],[683,10,683,13],[684,10,684,13],[685,10,685,13],[686,10,686,13],[687,10,687,13],[688,10,688,13],[689,10,689,13],[690,10,690,13],[691,10,691,13],[692,10,692,13],[693,10,693,13],[695,10,695,13],[696,10,696,13],[697,10,697,13],[698,10,698,13],[699,10,699,13],[700,10,700,13],[701,10,701,13],[702,10,702,13],[703,10,703,13],[704,10,704,13],[705,10,705,13],[706,10,706,13],[707,10,707,13],[708,10,708,13],[709,10,709,13],[710,10,710,13],[711,10,711,13],[712,10,712,13],[713,10,713,13],[714,10,714,13],[715,10,715,13],[716,10,716,13],[717,10,717,13],[718,10,718,13],[719,10,719,13],[720,10,720,13],[721,10,721,13],[722,10,722,13],[723,10,723,13],[724,10,724,13],[725,10,725,13],[726,10,726,13],[727,10,727,13],[728,10,728,13],[729,10,729,13],[730,10,730,13],[731,10,731,13],[732,10,732,13],[733,10,733,13],[734,10,734,13],[735,10,735,13],[736,10,736,13],[738,10,738,13],[739,10,739,13],[740,10,740,13],[741,10,741,13],[742,10,742,13],[743,10,743,13],[744,10,744,13],[745,10,745,13],[746,10,746,13],[747,10,747,13],[748,10,748,13],[749,10,749,13],[750,10,750,13],[751,10,751,13],[752,10,752,13],[753,10,753,13],[754,10,754,13],[755,10,755,13],[756,10,756,13],[757,10,757,13],[758,10,758,13],[759,10,759,13],[760,10,760,13],[761,10,761,13],[762,10,762,13],[763,10,763,13],[764,10,764,13],[765,10,765,13],[766,10,766,13],[767,10,767,13],[768,10,768,13],[769,10,769,13],[770,10,770,13],[771,10,771,13],[772,10,772,13],[773,10,773,13],[774,10,774,13],[775,10,775,13],[776,10,776,13],[777,10,777,13],[778,10,778,13],[779,10,779,13],[781,10,781,13],[782,10,782,13],[783,10,783,13],[784,10,784,13],[785,10,785,13],[786,10,786,13],[787,10,787,13],[788,10,788,13],[789,10,789,13],[790,10,790,13],[791,10,791,13],[792,10,792,13],[793,10,793,13],[794,10,794,13],[795,10,795,13],[796,10,796,13],[797,10,797,13],[798,10,798,13],[799,10,799,13],[800,10,800,13],[801,10,801,13],[802,10,802,13],[803,10,803,13],[804,10,804,13],[805,10,805,13],[806,10,806,13],[807,10,807,13],[808,10,808,13],[809,10,809,13],[810,10,810,13],[811,10,811,13],[812,10,812,13],[813,10,813,13],[814,10,814,13],[815,10,815,13],[816,10,816,13],[817,10,817,13],[818,10,818,13],[819,10,819,13],[820,10,820,13],[821,10,821,13],[822,10,822,13],[824,10,824,13],[825,10,825,13],[826,10,826,13],[827,10,827,13],[828,10,828,13],[829,10,829,13],[830,10,830,13],[831,10,831,13],[832,10,832,13],[833,10,833,13],[834,10,834,13],[835,10,835,13],[836,10,836,13],[837,10,837,13],[838,10,838,13],[839,10,839,13],[840,10,840,13],[841,10,841,13],[842,10,842,13],[843,10,843,13],[844,10,844,13],[845,10,845,13],[846,10,846,13],[847,10,847,13],[848,10,848,13],[849,10,849,13],[850,10,850,13],[851,10,851,13],[852,10,852,13],[853,10,853,13],[854,10,854,13],[855,10,855,13],[856,10,856,13],[857,10,857,13],[858,10,858,13],[859,10,859,13],[860,10,860,13],[861,10,861,13],[862,10,862,13],[863,10,863,13],[864,10,864,13],[865,10,865,13],[867,10,867,13],[868,10,868,13],[869,10,869,13],[870,10,870,13],[871,10,871,13],[872,10,872,13],[873,10,873,13],[874,10,874,13],[875,10,875,13],[876,10,876,13],[877,10,877,13],[878,10,878,13],[879,10,879,13],[880,10,880,13],[881,10,881,13],[882,10,882,13],[883,10,883,13],[884,10,884,13],[885,10,885,13],[886,10,886,13],[887,10,887,13],[888,10,888,13],[889,10,889,13],[890,10,890,13],[891,10,891,13],[892,10,892,13],[893,10,893,13],[894,10,894,13],[895,10,895,13],[896,10,896,13],[897,10,897,13],[898,10,898,13],[899,10,899,13],[900,10,900,13],[901,10,901,13],[902,10,902,13],[903,10,903,13],[904,10,904,13],[905,10,905,13],[906,10,906,13],[907,10,907,13],[908,10,908,13],[910,10,910,13],[911,10,911,13],[912,10,912,13],[913,10,913,13],[914,10,914,13],[915,10,915,13],[916,10,916,13],[917,10,917,13],[918,10,918,13],[919,10,919,13],[920,10,920,13],[921,10,921,13],[922,10,922,13],[923,10,923,13],[924,10,924,13],[925,10,925,13],[926,10,926,13],[927,10,927,13],[928,10,928,13],[929,10,929,13],[930,10,930,13],[931,10,931,13],[932,10,932,13],[933,10,933,13],[934,10,934,13],[935,10,935,13],[936,10,936,13],[937,10,937,13],[938,10,938,13],[939,10,939,13],[940,10,940,13],[941,10,941,13],[942,10,942,13],[943,10,943,13],[944,10,944,13],[945,10,945,13],[946,10,946,13],[947,10,947,13],[948,10,948,13],[949,10,949,13],[950,10,950,13],[951,10,951,13],[953,10,953,13],[954,10,954,13],[955,10,955,13],[956,10,956,13],[957,10,957,13],[958,10,958,13],[959,10,959,13],[960,10,960,13],[961,10,961,13],[962,10,962,13],[963,10,963,13],[964,10,964,13],[965,10,965,13],[966,10,966,13],[967,10,967,13],[968,10,968,13],[969,10,969,13],[970,10,970,13],[971,10,971,13],[972,10,972,13],[973,10,973,13],[974,10,974,13],[975,10,975,13],[976,10,976,13],[977,10,977,13],[978,10,978,13],[979,10,979,13],[980,10,980,13],[981,10,981,13],[982,10,982,13],[983,10,983,13],[984,10,984,13],[985,10,985,13],[986,10,986,13],[987,10,987,13],[988,10,988,13],[989,10,989,13],[990,10,990,13],[991,10,991,13],[992,10,992,13],[993,10,993,13],[994,10,994,13],[996,10,996,13],[997,10,997,13],[998,10,998,13],[999,10,999,13],[1000,10,1000,13],[1001,10,1001,13],[1002,10,1002,13],[1003,10,1003,13],[1004,10,1004,13],[1005,10,1005,13],[1006,10,1006,13],[1007,10,1007,13],[1008,10,1008,13],[1009,10,1009,13],[1010,10,1010,13],[1011,10,1011,13],[1012,10,1012,13],[1013,10,1013,13],[1014,10,1014,13],[1015,10,1015,13],[1016,10,1016,13],[1017,10,1017,13],[1018,10,1018,13],[1019,10,1019,13],[1020,10,1020,13],[1021,10,1021,13],[1022,10,1022,13],[1023,10,1023,13],[1024,10,1024,13],[1025,10,1025,13],[1026,10,1026,13],[1027,10,1027,13],[1028,10,1028,13],[1029,10,1029,13],[1030,10,1030,13],[1031,10,1031,13],[1032,10,1032,13],[1033,10,1033,13],[1034,10,1034,13],[1035,10,1035,13],[1036,10,1036,13],[1037,10,1037,13],[1039,10,1039,13],[1040,10,1040,13],[1041,10,1041,13],[1042,10,1042,13],[1043,10,1043,13],[1044,10,1044,13],[1045,10,1045,13],[1046,10,1046,13],[1047,10,1047,13],[1048,10,1048,13],[1049,10,1049,13],[1050,10,1050,13],[1051,10,1051,13],[1052,10,1052,13],[1053,10,1053,13],[1054,10,1054,13],[1055,10,1055,13],[1056,10,1056,13],[1057,10,1057,13],[1058,10,1058,13],[1059,10,1059,13],[1060,10,1060,13],[1061,10,1061,13],[1062,10,1062,13],[1063,10,1063,13],[1064,10,1064,13],[1065,10,1065,13],[1066,10,1066,13],[1067,10,1067,13],[1068,10,1068,13],[1069,10,1069,13],[1070,10,1070,13],[1071,10,1071,13],[1072,10,1072,13],[1073,10,1073,13],[1074,10,1074,13],[1075,10,1075,13],[1076,10,1076,13],[1077,10,1077,13],[1078,10,1078,13],[1079,10,1079,13],[1080,10,1080,13],[1082,6,1082,7],[1082,10,1082,13],[1084,10,1084,13]],"merged_total":3145,"flags":["merged_cut"]}
[]
[null,"PROJECT COST REPORT"]
[]
[]
[]
[{"$nulls":3},"The Project Cost Report includes all project costs associated with Purchasing, Holding, Rehabbing and Reselling the Property.   The report provides a detailed report of every project expense that makes up your Total Project Investment."]
[]
[]
[]
[]
[]
[null,null,"PROJECT COST REPORT"]
[null,null,{"$f":"T(Street_Address)","v":"1234 Main St"}]
[]
[null,null,{"$f":"T(City_State_Zip)","v":"Kansas City, MO 64116"}]
[]
[null,null,"Cost Item",{"$nulls":3},"Total Cost",null,"$/SF","%","Notes"]
[]
[null,null,"PURCHASE PRICE",{"$nulls":3},{"$f":"Purchase_Price_Result","v":{"v":61836.912500000006,"d":"$61,837"}},null,{"$f":"SUM(I12:I18)","v":{"v":0,"d":"$0"}},{"$f":"SUM(J12:J18)","v":{"v":0,"d":"0%"}},{"$nulls":4},{"$f":"IF(G19>0,1,0)","v":1}]
[{"$nulls":14},{"$f":"O19","v":1}]
[null,null,"BUYING COSTS",{"$nulls":11},{"$f":"SUM(O22:O28)","v":1}]
[null,null,{"$f":"PROPER('1 REHAB ANALYZER'!C21)","v":"Brokerage Fee ($300 Avg.)"},{"$nulls":3},{"$f":"'1 REHAB ANALYZER'!AA21","v":{"v":1000,"d":"$1,000"}},null,{"$f":"IFERROR(G22/Property_Size,0)","v":{"v":0.6666666666666666,"d":"$0.7"}},{"$f":"IFERROR(G22/Total_Project_Costs_Result,0)","v":{"v":0.0071301247771836,"d":"0.7%"}},{"$nulls":4},{"$f":"IF(G22>0,1,0)","v":1}]
[null,null,{"$f":"PROPER('1 REHAB ANALYZER'!C23)","v":"Inspection Costs ($400 Avg.)"},{"$nulls":3},{"$f":"'1 REHAB ANALYZER'!AA23","v":{"v":0,"d":"$0"}},null,{"v":0,"d":"$0.0"},{"v":0,"d":"0.0%"},{"$nulls":4},{"$f":"IF(G23>0,1,0)","v":0}]
[null,null,{"$f":"PROPER('1 REHAB ANALYZER'!C25)","v":"Appraisal Fee ($500 Avg.)"},{"$nulls":3},{"$f":"'1 REHAB ANALYZER'!AA25","v":{"v":0,"d":"$0"}},null,{"v":0,"d":"$0.0"},{"v":0,"d":"0.0%"},{"$nulls":4},0]
[null,null,{"$f":"PROPER('1 REHAB ANALYZER'!C27)","v":"Title Search ($300 Avg.)"},{"$nulls":3},{"$f":"'1 REHAB ANALYZER'!AA27","v":{"v":0,"d":"$0"}},null,{"v":0,"d":"$0.0"},{"v":0,"d":"0.0%"},{"$nulls":4},0]
[null,null,{"$f":"PROPER('1 REHAB ANALYZER'!C29)","v":"Title Insurance ($150 Avg.)"},{"$nulls":3},{"$f":"'1 REHAB ANALYZER'!AA29","v":{"v":0,"d":"$0"}},null,{"v":0,"d":"$0.0"},{"v":0,"d":"0.0%"},{"$nulls":4},0]
[null,null,{"$f":"PROPER('1 REHAB ANALYZER'!C75)","v":"Closing Costs & Points"},{"$nulls":3},{"$f":"'1 REHAB ANALYZER'!AA75","v":{"v":0,"d":"$0"}},null,{"v":0,"d":"$0.0"},{"v":0,"d":"0.0%"},{"$nulls":4},0]
[null,null,{"$f":"PROPER('1 REHAB ANALYZER'!C31)","v":"Other"},{"$nulls":3},{"$f":"'1 REHAB ANALYZER'!AA31","v":{"v":0,"d":"$0"}},null,{"v":0,"d":"$0.0"},{"v":0,"d":"0.0%"},{"$nulls":4},0]
[null,null,{"$f":"CONCATENATE(C21,\" TOTAL\")","v":"BUYING COSTS TOTAL"},{"$nulls":3},{"$f":"SUM(G22:H28)","v":{"v":1000,"d":"$1,000"}},null,{"$f":"SUM(I22:I28)","v":{"v":0.6666666666666666,"d":"$1"}},{"$f":"SUM(J22:J28)","v":{"v":0.0071301247771836,"d":"0.7%"}},{"$nulls":4},{"$f":"SUM(O22:O28)","v":1}]
[{"$nulls":14},{"$f":"O29","v":1}]
[null,null,"HOLDING COSTS",{"$nulls":11},{"$f":"SUM(O32:O38)","v":3}]
[null,null,{"$f":"PROPER('1 REHAB ANALYZER'!C77)","v":"Loan Payment"},{"$nulls":3},{"$f":"'1 REHAB ANALYZER'!AA77","v":{"v":0,"d":"$0"}},null,{"$f":"IFERROR(G32/Property_Size,0)","v":{"v":0,"d":"$0.0"}},{"$f":"IFERROR(G32/Total_Project_Costs_Result,0)","v":{"v":0,"d":"0.0%"}},{"$nulls":4},{"$f":"IF(G32>0,1,0)","v":0}]
[null,null,{"$f":"PROPER('1 REHAB ANALYZER'!C39)","v":"Property Taxes"},{"$nulls":3},{"$f":"'1 REHAB ANALYZER'!AA39","v":{"v":1000,"d":"$1,000"}},null,{"v":0.6666666666666666,"d":"$0.7"},{"v":0.0071301247771836,"d":"0.7%"},{"$nulls":4},{"$f":"IF(G33>0,1,0)","v":1}]
[null,null,{"$f":"PROPER('1 REHAB ANALYZER'!C41)","v":"Utilities"},{"$nulls":3},{"$f":"'1 REHAB ANALYZER'!AA41","v":{"v":1500,"d":"$1,500"}},null,{"v":1,"d":"$1.0"},{"v":0.0106951871657754,"d":"1.1%"},{"$nulls":4},1]
[null,null,{"$f":"PROPER('1 REHAB ANALYZER'!C43)","v":"Insurance"},{"$nulls":3},{"$f":"'1 REHAB ANALYZER'!AA43","v":{"v":500,"d":"$500"}},null,{"v":0.3333333333333333,"d":"$0.3"},{"v":0.0035650623885918,"d":"0.4%"},{"$nulls":4},1]
[null,null,{"$f":"PROPER('1 REHAB ANALYZER'!C45)","v":"Hoa Dues"},{"$nulls":3},{"$f":"'1 REHAB ANALYZER'!AA45","v":{"v":0,"d":"$0"}},null,{"v":0,"d":"$0.0"},{"v":0,"d":"0.0%"},{"$nulls":4},0]
[null,null,{"$f":"PROPER('1 REHAB ANALYZER'!C47)","v":"Maintenance"},{"$nulls":3},{"$f":"'1 REHAB ANALYZER'!AA47","v":{"v":0,"d":"$0"}},null,{"v":0,"d":"$0.0"},{"v":0,"d":"0.0%"},{"$nulls":4},0]
[null,null,{"$f":"PROPER('1 REHAB ANALYZER'!C49)","v":"Other"},{"$nulls":3},{"$f":"'1 REHAB ANALYZER'!AA49","v":{"v":0,"d":"$0"}},null,{"v":0,"d":"$0.0"},{"v":0,"d":"0.0%"},{"$nulls":4},0]
[null,null,{"$f":"CONCATENATE(C31,\" TOTAL\")","v":"HOLDING COSTS TOTAL"},{"$nulls":3},{"$f":"SUM(G32:H38)","v":{"v":3000,"d":"$3,000"}},null,{"$f":"SUM(I32:I38)","v":{"v":1.9999999999999998,"d":"$2"}},{"$f":"SUM(J32:J38)","v":{"v":0.021390374331550797,"d":"2.1%"}},{"$nulls":4},{"$f":"SUM(O32:O38)","v":3}]
[{"$nulls":14},{"$f":"O39","v":3}]
[null,null,"SELLING COSTS",{"$nulls":11},{"$f":"SUM(O42:O48)","v":3}]
[null,null,{"$f":"PROPER('1 REHAB ANALYZER'!C57)","v":"Commissions"},{"$nulls":3},{"$f":"'1 REHAB ANALYZER'!AA57","v":{"v":9900,"d":"$9,900"}},null,{"$f":"IFERROR(G42/Property_Size,0)","v":{"v":6.6,"d":"$6.6"}},{"$f":"IFERROR(G42/Total_Project_Costs_Result,0)","v":{"v":0.07058823529411765,"d":"7.1%"}},{"$nulls":4},{"$f":"IF(G42>0,1,0)","v":1}]
[null,null,{"$f":"PROPER('1 REHAB ANALYZER'!C59)","v":"Seller Assisted Closing Costs"},{"$nulls":3},{"$f":"'1 REHAB ANALYZER'!AA59","v":{"v":0,"d":"$0"}},null,{"v":0,"d":"$0.0"},{"v":0,"d":"0.0%"},{"$nulls":4},{"$f":"IF(G43>0,1,0)","v":0}]
[null,null,{"$f":"PROPER('1 REHAB ANALYZER'!C61)","v":"Brokerage Fee ($300 Avg.)"},{"$nulls":3},{"$f":"'1 REHAB ANALYZER'!AA61","v":{"v":0,"d":"$0"}},null,{"v":0,"d":"$0.0"},{"v":0,"d":"0.0%"},{"$nulls":4},0]
[null,null,{"$f":"PROPER('1 REHAB ANALYZER'!C63)","v":"Home Warranty ($450 Avg.)"},{"$nulls":3},{"$f":"'1 REHAB ANALYZER'!AA63","v":{"v":450,"d":"$450"}},null,{"v":0.3,"d":"$0.3"},{"v":3.2085561497326204E-3,"d":"0.3%"},{"$nulls":4},1]
[null,null,{"$f":"PROPER('1 REHAB ANALYZER'!C65)","v":"Title Insurance ($150 Avg.)"},{"$nulls":3},{"$f":"'1 REHAB ANALYZER'!AA65","v":{"v":500,"d":"$500"}},null,{"v":0.3333333333333333,"d":"$0.3"},{"v":0.0035650623885918,"d":"0.4%"},{"$nulls":4},1]
[null,null,{"$f":"PROPER('1 REHAB ANALYZER'!C67)","v":"2Nd Appraisal ($500 Avg.)"},{"$nulls":3},{"$f":"'1 REHAB ANALYZER'!AA67","v":{"v":0,"d":"$0"}},null,{"v":0,"d":"$0.0"},{"v":0,"d":"0.0%"},{"$nulls":4},0]
[null,null,{"$f":"PROPER('1 REHAB ANALYZER'!C69)","v":"Other"},{"$nulls":3},{"$f":"'1 REHAB ANALYZER'!AA69","v":{"v":0,"d":"$0"}},null,{"v":0,"d":"$0.0"},{"v":0,"d":"0.0%"},{"$nulls":4},0]
[null,null,{"$f":"CONCATENATE(C41,\" TOTAL\")","v":"SELLING COSTS TOTAL"},{"$nulls":3},{"$f":"SUM(G42:H48)","v":{"v":10850,"d":"$10,850"}},null,{"$f":"SUM(I42:I48)","v":{"v":7.2333333333333325,"d":"$7"}},{"$f":"SUM(J42:J48)","v":{"v":0.07736185383244207,"d":"7.7%"}},{"$nulls":4},{"$f":"SUM(O42:O48)","v":3}]
[{"$nulls":14},{"$f":"O49","v":3}]
[null,null,{"$f":"T('2 REPAIR ESTIMATOR'!D87:O87)","v":"GENERAL CONDITIONS"},{"$nulls":11},{"$f":"SUM(O52:O91)","v":2}]
[null,null,{"$f":"T('2 REPAIR ESTIMATOR'!D88:O88)","v":"Dumpster rental-40 yard"},{"$nulls":3},{"$f":"'2 REPAIR ESTIMATOR'!AQ88","v":{"v":454.75,"d":"$455"}},null,{"$f":"IFERROR(G52/Property_Size,0)","v":{"v":0.30316666666666664,"d":"$0.3"}},{"$f":"IFERROR(G52/Total_Project_Costs_Result,0)","v":{"v":3.2424242424242424E-3,"d":"0.3%"}},{"$nulls":4},{"$f":"IF(G52=\"\",0,1)","v":1}]
[null,null,{"$f":"T('2 REPAIR ESTIMATOR'!D89:O89)","v":"Storage Container"},{"$nulls":3},{"$f":"'2 REPAIR ESTIMATOR'!AQ89","v":{"v":0,"d":"$0"}},null,{"v":0,"d":"$0.0"},{"v":0,"d":"0.0%"},{"$nulls":4},{"$f":"IF(G53>0,1,0)","v":0}]
[null,null,{"$f":"T('2 REPAIR ESTIMATOR'!D90:O90)","v":"Chemical Toilet"},{"$nulls":3},{"$f":"'2 REPAIR ESTIMATOR'!AQ90","v":{"v":0,"d":"$0"}},null,{"v":0,"d":"$0.0"},{"v":0,"d":"0.0%"},{"$nulls":4},0]
[null,null,{"$f":"T('2 REPAIR ESTIMATOR'!D91:O91)","v":"Misc. Tools & Materials"},{"$nulls":3},{"$f":"'2 REPAIR ESTIMATOR'!AQ91","v":{"v":0,"d":"$0"}},null,{"v":0,"d":"$0.0"},{"v":0,"d":"0.0%"},{"$nulls":4},0]
[null,null,{"$f":"T('2 REPAIR ESTIMATOR'!D92:O92)","v":"Rekey/lock box"},{"$nulls":3},{"$f":"'2 REPAIR ESTIMATOR'!AQ92","v":{"v":0,"d":"$0"}},null,{"v":0,"d":"$0.0"},{"v":0,"d":"0.0%"},{"$nulls":4},0]
[null,null,{"$f":"T('2 REPAIR ESTIMATOR'!D93:O93)","v":"Turn on utilities"},{"$nulls":3},{"$f":"'2 REPAIR ESTIMATOR'!AQ93","v":{"v":0,"d":"$0"}},null,{"v":0,"d":"$0.0"},{"v":0,"d":"0.0%"},{"$nulls":4},0]
[null,null,{"$f":"T('2 REPAIR ESTIMATOR'!D94:O94)","v":"Truck expense/car payment"},{"$nulls":3},{"$f":"'2 REPAIR ESTIMATOR'!AQ94","v":{"v":0,"d":"$0"}},null,{"v":0,"d":"$0.0"},{"v":0,"d":"0.0%"},{"$nulls":4},0]
[null,null,{"$f":"T('2 REPAIR ESTIMATOR'!D95:O95)","v":"Fuel/gas expense"},{"$nulls":3},{"$f":"'2 REPAIR ESTIMATOR'!AQ95","v":{"v":0,"d":"$0"}},null,{"v":0,"d":"$0.0"},{"v":0,"d":"0.0%"},{"$nulls":4},0]
[null,null,{"$f":"T('2 REPAIR ESTIMATOR'!D96:O96)","v":"Project management"},{"$nulls":3},{"$f":"'2 REPAIR ESTIMATOR'!AQ96","v":{"v":0,"d":"$0"}},null,{"v":0,"d":"$0.0"},{"v":0,"d":"0.0%"},{"$nulls":4},0]
[null,null,{"$f":"T('2 REPAIR ESTIMATOR'!D97:O97)","v":"Architectural Fees"},{"$nulls":3},{"$f":"'2 REPAIR ESTIMATOR'!AQ97","v":{"v":0,"d":"$0"}},null,{"v":0,"d":"$0.0"},{"v":0,"d":"0.0%"},{"$nulls":4},0]
[null,null,{"$f":"T('2 REPAIR ESTIMATOR'!D98:O98)","v":"Engineering Fees"},{"$nulls":3},{"$f":"'2 REPAIR ESTIMATOR'!AQ98","v":{"v":0,"d":"$0"}},null,{"v":0,"d":"$0.0"},{"v":0,"d":"0.0%"},{"$nulls":4},0]
[null,null,{"$f":"T('2 REPAIR ESTIMATOR'!D99:O99)","v":"Professional Photography"},{"$nulls":3},{"$f":"'2 REPAIR ESTIMATOR'!AQ99","v":{"v":0,"d":"$0"}},null,{"v":0,"d":"$0.0"},{"v":0,"d":"0.0%"},{"$nulls":4},0]
[null,null,{"$f":"T('2 REPAIR ESTIMATOR'!D100:O100)","v":"Material Deliveries"},{"$nulls":3},{"$f":"'2 REPAIR ESTIMATOR'!AQ100","v":{"v":0,"d":"$0"}},null,{"v":0,"d":"$0.0"},{"v":0,"d":"0.0%"},{"$nulls":4},0]
[null,null,{"$f":"T('2 REPAIR ESTIMATOR'!D101:O101)","v":"Final cleaning"},{"$nulls":3},{"$f":"'2 REPAIR ESTIMATOR'!AQ101","v":{"v":80,"d":"$80"}},null,{"v":0.05333333333333334,"d":"$0.1"},{"v":5.7040998217468806E-4,"d":"0.1%"},{"$nulls":4},1]
[null,null,{"$f":"T('2 REPAIR ESTIMATOR'!D102:O102)","v":""},{"$nulls":3},{"$f":"'2 REPAIR ESTIMATOR'!AQ102","v":{"v":0,"d":"$0"}},null,{"v":0,"d":"$0.0"},{"v":0,"d":"0.0%"},{"$nulls":4},0]
[null,null,{"$f":"T('2 REPAIR ESTIMATOR'!D103:O103)","v":""},{"$nulls":3},{"$f":"'2 REPAIR ESTIMATOR'!AQ103","v":{"v":0,"d":"$0"}},null,{"v":0,"d":"$0.0"},{"v":0,"d":"0.0%"},{"$nulls":4},0]
[null,null,{"$f":"T('2 REPAIR ESTIMATOR'!D104:O104)","v":""},{"$nulls":3},{"$f":"'2 REPAIR ESTIMATOR'!AQ104","v":{"v":0,"d":"$0"}},null,{"v":0,"d":"$0.0"},{"v":0,"d":"0.0%"},{"$nulls":4},0]
[null,null,{"$f":"T('2 REPAIR ESTIMATOR'!D105:O105)","v":""},{"$nulls":3},{"$f":"'2 REPAIR ESTIMATOR'!AQ105","v":{"v":0,"d":"$0"}},null,{"v":0,"d":"$0.0"},{"v":0,"d":"0.0%"},{"$nulls":4},0]
[null,null,{"$f":"T('2 REPAIR ESTIMATOR'!D106:O106)","v":""},{"$nulls":3},{"$f":"'2 REPAIR ESTIMATOR'!AQ106","v":{"v":0,"d":"$0"}},null,{"v":0,"d":"$0.0"},{"v":0,"d":"0.0%"},{"$nulls":4},0]
[null,null,{"$f":"T('2 REPAIR ESTIMATOR'!D107:O107)","v":""},{"$nulls":3},{"$f":"'2 REPAIR ESTIMATOR'!AQ107","v":{"v":0,"d":"$0"}},null,{"v":0,"d":"$0.0"},{"v":0,"d":"0.0%"},{"$nulls":4},0]
[null,null,{"$f":"T('2 REPAIR ESTIMATOR'!D108:O108)","v":""},{"$nulls":3},{"$f":"'2 REPAIR ESTIMATOR'!AQ108","v":{"v":0,"d":"$0"}},null,{"v":0,"d":"$0.0"},{"v":0,"d":"0.0%"},{"$nulls":4},0]
[null,null,{"$f":"T('2 REPAIR ESTIMATOR'!D109:O109)","v":""},{"$nulls":3},{"$f":"'2 REPAIR ESTIMATOR'!AQ109","v":{"v":0,"d":"$0"}},null,{"v":0,"d":"$0.0"},{"v":0,"d":"0.0%"},{"$nulls":4},0]
[null,null,{"$f":"T('2 REPAIR ESTIMATOR'!D110:O110)","v":""},{"$nulls":3},{"$f":"'2 REPAIR ESTIMATOR'!AQ110","v":{"v":0,"d":"$0"}},null,{"v":0,"d":"$0.0"},{"v":0,"d":"0.0%"},{"$nulls":4},0]
[null,null,{"$f":"T('2 REPAIR ESTIMATOR'!D111:O111)","v":""},{"$nulls":3},{"$f":"'2 REPAIR ESTIMATOR'!AQ111","v":{"v":0,"d":"$0"}},null,{"v":0,"d":"$0.0"},{"v":0,"d":"0.0%"},{"$nulls":4},0]
[null,null,{"$f":"T('2 REPAIR ESTIMATOR'!D112:O112)","v":""},{"$nulls":3},{"$f":"'2 REPAIR ESTIMATOR'!AQ112","v":{"v":0,"d":"$0"}},null,{"v":0,"d":"$0.0"},{"v":0,"d":"0.0%"},{"$nulls":4},0]
[null,null,{"$f":"T('2 REPAIR ESTIMATOR'!D113:O113)","v":""},{"$nulls":3},{"$f":"'2 REPAIR ESTIMATOR'!AQ113","v":{"v":0,"d":"$0"}},null,{"v":0,"d":"$0.0"},{"v":0,"d":"0.0%"},{"$nulls":4},0]
[null,null,{"$f":"T('2 REPAIR ESTIMATOR'!D114:O114)","v":""},{"$nulls":3},{"$f":"'2 REPAIR ESTIMATOR'!AQ114","v":{"v":0,"d":"$0"}},null,{"v":0,"d":"$0.0"},{"v":0,"d":"0.0%"},{"$nulls":4},0]
[null,null,{"$f":"T('2 REPAIR ESTIMATOR'!D115:O115)","v":""},{"$nulls":3},{"$f":"'2 REPAIR ESTIMATOR'!AQ115","v":{"v":0,"d":"$0"}},null,{"v":0,"d":"$0.0"},{"v":0,"d":"0.0%"},{"$nulls":4},0]
[null,null,{"$f":"T('2 REPAIR ESTIMATOR'!D116:O116)","v":""},{"$nulls":3},{"$f":"'2 REPAIR ESTIMATOR'!AQ116","v":{"v":0,"d":"$0"}},null,{"v":0,"d":"$0.0"},{"v":0,"d":"0.0%"},{"$nulls":4},0]
[null,null,{"$f":"T('2 REPAIR ESTIMATOR'!D117:O117)","v":""},{"$nulls":3},{"$f":"'2 REPAIR ESTIMATOR'!AQ117","v":{"v":0,"d":"$0"}},null,{"v":0,"d":"$0.0"},{"v":0,"d":"0.0%"},{"$nulls":4},0]
[null,null,{"$f":"T('2 REPAIR ESTIMATOR'!D118:O118)","v":""},{"$nulls":3},{"$f":"'2 REPAIR ESTIMATOR'!AQ118","v":{"v":0,"d":"$0"}},null,{"v":0,"d":"$0.0"},{"v":0,"d":"0.0%"},{"$nulls":4},0]
[null,null,{"$f":"T('2 REPAIR ESTIMATOR'!D119:O119)","v":""},{"$nulls":3},{"$f":"'2 REPAIR ESTIMATOR'!AQ119","v":{"v":0,"d":"$0"}},null,{"v":0,"d":"$0.0"},{"v":0,"d":"0.0%"},{"$nulls":4},0]
[null,null,{"$f":"T('2 REPAIR ESTIMATOR'!D120:O120)","v":""},{"$nulls":3},{"$f":"'2 REPAIR ESTIMATOR'!AQ120","v":{"v":0,"d":"$0"}},null,{"v":0,"d":"$0.0"},{"v":0,"d":"0.0%"},{"$nulls":4},0]
[null,null,{"$f":"T('2 REPAIR ESTIMATOR'!D121:O121)","v":""},{"$nulls":3},{"$f":"'2 REPAIR ESTIMATOR'!AQ121","v":{"v":0,"d":"$0"}},null,{"v":0,"d":"$0.0"},{"v":0,"d":"0.0%"},{"$nulls":4},0]
[null,null,{"$f":"T('2 REPAIR ESTIMATOR'!D122:O122)","v":""},{"$nulls":3},{"$f":"'2 REPAIR ESTIMATOR'!AQ122","v":{"v":0,"d":"$0"}},null,{"v":0,"d":"$0.0"},{"v":0,"d":"0.0%"},{"$nulls":4},0]
[null,null,{"$f":"T('2 REPAIR ESTIMATOR'!D123:O123)","v":""},{"$nulls":3},{"$f":"'2 REPAIR ESTIMATOR'!AQ123","v":{"v":0,"d":"$0"}},null,{"v":0,"d":"$0.0"},{"v":0,"d":"0.0%"},{"$nulls":4},0]
[null,null,{"$f":"T('2 REPAIR ESTIMATOR'!D124:O124)","v":""},{"$nulls":3},{"$f":"'2 REPAIR ESTIMATOR'!AQ124","v":{"v":0,"d":"$0"}},null,{"v":0,"d":"$0.0"},{"v":0,"d":"0.0%"},{"$nulls":4},0]
[null,null,{"$f":"T('2 REPAIR ESTIMATOR'!D125:O125)","v":""},{"$nulls":3},{"$f":"'2 REPAIR ESTIMATOR'!AQ125","v":{"v":0,"d":"$0"}},null,{"v":0,"d":"$0.0"},{"v":0,"d":"0.0%"},{"$nulls":4},0]
[null,null,{"$f":"T('2 REPAIR ESTIMATOR'!D126:O126)","v":""},{"$nulls":3},{"$f":"'2 REPAIR ESTIMATOR'!AQ126","v":{"v":0,"d":"$0"}},null,{"v":0,"d":"$0.0"},{"v":0,"d":"0.0%"},{"$nulls":4},0]
[null,null,{"$f":"T('2 REPAIR ESTIMATOR'!D127:O127)","v":""},{"$nulls":3},{"$f":"'2 REPAIR ESTIMATOR'!AQ127","v":{"v":0,"d":"$0"}},null,{"v":0,"d":"$0.0"},{"v":0,"d":"0.0%"},{"$nulls":4},0]
[null,null,{"$f":"T('2 REPAIR ESTIMATOR'!AC129)","v":"GENERAL CONDITIONS TOTAL"},{"$nulls":3},{"$f":"SUM(G52:H91)","v":{"v":534.75,"d":"$535"}},null,{"$f":"SUM(I52:I91)","v":{"v":0.3565,"d":"$0"}},{"$f":"SUM(J52:J91)","v":{"v":3.8128342245989304E-3,"d":"0.4%"}},{"$nulls":4},{"$f":"SUM(O52:O91)","v":2}]
[{"$nulls":14},{"$f":"O92","v":2}]
[null,null,{"$f":"T('2 REPAIR ESTIMATOR'!D132:O132)","v":"DEMOLITION"},{"$nulls":11},{"$f":"SUM(O95:O134)","v":1}]
[null,null,{"$f":"T('2 REPAIR ESTIMATOR'!D133:O133)","v":"Demolition"},{"$nulls":3},{"$f":"'2 REPAIR ESTIMATOR'!AQ133","v":{"v":0,"d":"$0"}},null,{"$f":"IFERROR(G95/Property_Size,0)","v":{"v":0,"d":"$0.0"}},{"$f":"IFERROR(G95/Total_Project_Costs_Result,0)","v":{"v":0,"d":"0.0%"}},{"$nulls":4},{"$f":"IF(G95>0,1,0)","v":0}]
[null,null,{"$f":"T('2 REPAIR ESTIMATOR'!D134:O134)","v":"Demo bid/allowance"},{"$nulls":3},{"$f":"'2 REPAIR ESTIMATOR'!AQ134","v":{"v":0,"d":"$0"}},null,{"v":0,"d":"$0.0"},{"v":0,"d":"0.0%"},{"$nulls":4},{"$f":"IF(G96>0,1,0)","v":0}]
[null,null,{"$f":"T('2 REPAIR ESTIMATOR'!D135:O135)","v":"Demolition work per hour"},{"$nulls":3},{"$f":"'2 REPAIR ESTIMATOR'!AQ135","v":{"v":1600,"d":"$1,600"}},null,{"v":1.0666666666666667,"d":"$1.1"},{"v":0.01140819964349376,"d":"1.1%"},{"$nulls":4},1]
[null,null,{"$f":"T('2 REPAIR ESTIMATOR'!D136:O136)","v":"Room demolition, typical room"},{"$nulls":3},{"$f":"'2 REPAIR ESTIMATOR'!AQ136","v":{"v":0,"d":"$0"}},null,{"v":0,"d":"$0.0"},{"v":0,"d":"0.0%"},{"$nulls":4},0]
[null,null,{"$f":"T('2 REPAIR ESTIMATOR'!D137:O137)","v":"Room demolition, bathroom"},{"$nulls":3},{"$f":"'2 REPAIR ESTIMATOR'!AQ137","v":{"v":0,"d":"$0"}},null,{"v":0,"d":"$0.0"},{"v":0,"d":"0.0%"},{"$nulls":4},0]
[null,null,{"$f":"T('2 REPAIR ESTIMATOR'!D138:O138)","v":"Room demolition, kitchen"},{"$nulls":3},{"$f":"'2 REPAIR ESTIMATOR'!AQ138","v":{"v":0,"d":"$0"}},null,{"v":0,"d":"$0.0"},{"v":0,"d":"0.0%"},{"$nulls":4},0]
[null,null,{"$f":"T('2 REPAIR ESTIMATOR'!D139:O139)","v":"Building demolition, 1-story wood-framed"},{"$nulls":3},{"$f":"'2 REPAIR ESTIMATOR'!AQ139","v":{"v":0,"d":"$0"}},null,{"v":0,"d":"$0.0"},{"v":0,"d":"0.0%"},{"$nulls":4},0]
[null,null,{"$f":"T('2 REPAIR ESTIMATOR'!D140:O140)","v":"Building demolition, 2-story wood framed"},{"$nulls":3},{"$f":"'2 REPAIR ESTIMATOR'!AQ140","v":{"v":0,"d":"$0"}},null,{"v":0,"d":"$0.0"},{"v":0,"d":"0.0%"},{"$nulls":4},0]
[null,null,{"$f":"T('2 REPAIR ESTIMATOR'!D141:O141)","v":"Building demolition, masonry"},{"$nulls":3},{"$f":"'2 REPAIR ESTIMATOR'!AQ141","v":{"v":0,"d":"$0"}},null,{"v":0,"d":"$0.0"},{"v":0,"d":"0.0%"},{"$nulls":4},0]
[null,null,{"$f":"T('2 REPAIR ESTIMATOR'!D142:O142)","v":"Building demolition, steel/concrete"},{"$nulls":3},{"$f":"'2 REPAIR ESTIMATOR'!AQ142","v":{"v":0,"d":"$0"}},null,{"v":0,"d":"$0.0"},{"v":0,"d":"0.0%"},{"$nulls":4},0]
[null,null,{"$f":"T('2 REPAIR ESTIMATOR'!D143:O143)","v":"Concrete slab demolition, 4\"-6\""},{"$nulls":3},{"$f":"'2 REPAIR ESTIMATOR'!AQ143","v":{"v":0,"d":"$0"}},null,{"v":0,"d":"$0.0"},{"v":0,"d":"0.0%"},{"$nulls":4},0]
[null,null,{"$f":"T('2 REPAIR ESTIMATOR'!D144:O144)","v":""},{"$nulls":3},{"$f":"'2 REPAIR ESTIMATOR'!AQ144","v":{"v":0,"d":"$0"}},null,{"v":0,"d":"$0.0"},{"v":0,"d":"0.0%"},{"$nulls":4},0]
[null,null,{"$f":"T('2 REPAIR ESTIMATOR'!D145:O145)","v":""},{"$nulls":3},{"$f":"'2 REPAIR ESTIMATOR'!AQ145","v":{"v":0,"d":"$0"}},null,{"v":0,"d":"$0.0"},{"v":0,"d":"0.0%"},{"$nulls":4},0]
[null,null,{"$f":"T('2 REPAIR ESTIMATOR'!D146:O146)","v":"Abatement"},{"$nulls":3},{"$f":"'2 REPAIR ESTIMATOR'!AQ146","v":{"v":0,"d":"$0"}},null,{"v":0,"d":"$0.0"},{"v":0,"d":"0.0%"},{"$nulls":4},0]
[null,null,{"$f":"T('2 REPAIR ESTIMATOR'!D147:O147)","v":"Asbestos bid/allowance"},{"$nulls":3},{"$f":"'2 REPAIR ESTIMATOR'!AQ147","v":{"v":0,"d":"$0"}},null,{"v":0,"d":"$0.0"},{"v":0,"d":"0.0%"},{"$nulls":4},0]
[null,null,{"$f":"T('2 REPAIR ESTIMATOR'!D148:O148)","v":"Asbestos testing"},{"$nulls":3},{"$f":"'2 REPAIR ESTIMATOR'!AQ148","v":{"v":0,"d":"$0"}},null,{"v":0,"d":"$0.0"},{"v":0,"d":"0.0%"},{"$nulls":4},0]
[null,null,{"$f":"T('2 REPAIR ESTIMATOR'!D149:O149)","v":"Asbestos abatement, minimum charge"},{"$nulls":3},{"$f":"'2 REPAIR ESTIMATOR'!AQ149","v":{"v":0,"d":"$0"}},null,{"v":0,"d":"$0.0"},{"v":0,"d":"0.0%"},{"$nulls":4},0]
[null,null,{"$f":"T('2 REPAIR ESTIMATOR'!D150:O150)","v":"Mold, minimum charge"},{"$nulls":3},{"$f":"'2 REPAIR ESTIMATOR'!AQ150","v":{"v":0,"d":"$0"}},null,{"v":0,"d":"$0.0"},{"v":0,"d":"0.0%"},{"$nulls":4},0]
[null,null,{"$f":"T('2 REPAIR ESTIMATOR'!D151:O151)","v":""},{"$nulls":3},{"$f":"'2 REPAIR ESTIMATOR'!AQ151","v":{"v":0,"d":"$0"}},null,{"v":0,"d":"$0.0"},{"v":0,"d":"0.0%"},{"$nulls":4},0]
[null,null,{"$f":"T('2 REPAIR ESTIMATOR'!D152:O152)","v":""},{"$nulls":3},{"$f":"'2 REPAIR ESTIMATOR'!AQ152","v":{"v":0,"d":"$0"}},null,{"v":0,"d":"$0.0"},{"v":0,"d":"0.0%"},{"$nulls":4},0]
[null,null,{"$f":"T('2 REPAIR ESTIMATOR'!D153:O153)","v":""},{"$nulls":3},{"$f":"'2 REPAIR ESTIMATOR'!AQ153","v":{"v":0,"d":"$0"}},null,{"v":0,"d":"$0.0"},{"v":0,"d":"0.0%"},{"$nulls":4},0]
[null,null,{"$f":"T('2 REPAIR ESTIMATOR'!D154:O154)","v":""},{"$nulls":3},{"$f":"'2 REPAIR ESTIMATOR'!AQ154","v":{"v":0,"d":"$0"}},null,{"v":0,"d":"$0.0"},{"v":0,"d":"0.0%"},{"$nulls":4},0]
[null,null,{"$f":"T('2 REPAIR ESTIMATOR'!D155:O155)","v":""},{"$nulls":3},{"$f":"'2 REPAIR ESTIMATOR'!AQ155","v":{"v":0,"d":"$0"}},null,{"v":0,"d":"$0.0"},{"v":0,"d":"0.0%"},{"$nulls":4},0]
[null,null,{"$f":"T('2 REPAIR ESTIMATOR'!D156:O156)","v":""},{"$nulls":3},{"$f":"'2 REPAIR ESTIMATOR'!AQ156","v":{"v":0,"d":"$0"}},null,{"v":0,"d":"$0.0"},{"v":0,"d":"0.0%"},{"$nulls":4},0]
[null,null,{"$f":"T('2 REPAIR ESTIMATOR'!D157:O157)","v":""},{"$nulls":3},{"$f":"'2 REPAIR ESTIMATOR'!AQ157","v":{"v":0,"d":"$0"}},null,{"v":0,"d":"$0.0"},{"v":0,"d":"0.0%"},{"$nulls":4},0]
[null,null,{"$f":"T('2 REPAIR ESTIMATOR'!D158:O158)","v":""},{"$nulls":3},{"$f":"'2 REPAIR ESTIMATOR'!AQ158","v":{"v":0,"d":"$0"}},null,{"v":0,"d":"$0.0"},{"v":0,"d":"0.0%"},{"$nulls":4},0]
[null,null,{"$f":"T('2 REPAIR ESTIMATOR'!D159:O159)","v":""},{"$nulls":3},{"$f":"'2 REPAIR ESTIMATOR'!AQ159","v":{"v":0,"d":"$0"}},null,{"v":0,"d":"$0.0"},{"v":0,"d":"0.0%"},{"$nulls":4},0]
[null,null,{"$f":"T('2 REPAIR ESTIMATOR'!D160:O160)","v":""},{"$nulls":3},{"$f":"'2 REPAIR ESTIMATOR'!AQ160","v":{"v":0,"d":"$0"}},null,{"v":0,"d":"$0.0"},{"v":0,"d":"0.0%"},{"$nulls":4},0]
[null,null,{"$f":"T('2 REPAIR ESTIMATOR'!D161:O161)","v":""},{"$nulls":3},{"$f":"'2 REPAIR ESTIMATOR'!AQ161","v":{"v":0,"d":"$0"}},null,{"v":0,"d":"$0.0"},{"v":0,"d":"0.0%"},{"$nulls":4},0]
[null,null,{"$f":"T('2 REPAIR ESTIMATOR'!D162:O162)","v":""},{"$nulls":3},{"$f":"'2 REPAIR ESTIMATOR'!AQ162","v":{"v":0,"d":"$0"}},null,{"v":0,"d":"$0.0"},{"v":0,"d":"0.0%"},{"$nulls":4},0]
[null,null,{"$f":"T('2 REPAIR ESTIMATOR'!D163:O163)","v":""},{"$nulls":3},{"$f":"'2 REPAIR ESTIMATOR'!AQ163","v":{"v":0,"d":"$0"}},null,{"v":0,"d":"$0.0"},{"v":0,"d":"0.0%"},{"$nulls":4},0]
[null,null,{"$f":"T('2 REPAIR ESTIMATOR'!D164:O164)","v":""},{"$nulls":3},{"$f":"'2 REPAIR ESTIMATOR'!AQ164","v":{"v":0,"d":"$0"}},null,{"v":0,"d":"$0.0"},{"v":0,"d":"0.0%"},{"$nulls":4},0]
[null,null,{"$f":"T('2 REPAIR ESTIMATOR'!D165:O165)","v":""},{"$nulls":3},{"$f":"'2 REPAIR ESTIMATOR'!AQ165","v":{"v":0,"d":"$0"}},null,{"v":0,"d":"$0.0"},{"v":0,"d":"0.0%"},{"$nulls":4},0]
[null,null,{"$f":"T('2 REPAIR ESTIMATOR'!D166:O166)","v":""},{"$nulls":3},{"$f":"'2 REPAIR ESTIMATOR'!AQ166","v":{"v":0,"d":"$0"}},null,{"v":0,"d":"$0.0"},{"v":0,"d":"0.0%"},{"$nulls":4},0]
[null,null,{"$f":"T('2 REPAIR ESTIMATOR'!D167:O167)","v":""},{"$nulls":3},{"$f":"'2 REPAIR ESTIMATOR'!AQ167","v":{"v":0,"d":"$0"}},null,{"v":0,"d":"$0.0"},{"v":0,"d":"0.0%"},{"$nulls":4},0]
[null,null,{"$f":"T('2 REPAIR ESTIMATOR'!D168:O168)","v":""},{"$nulls":3},{"$f":"'2 REPAIR ESTIMATOR'!AQ168","v":{"v":0,"d":"$0"}},null,{"v":0,"d":"$0.0"},{"v":0,"d":"0.0%"},{"$nulls":4},0]
[null,null,{"$f":"T('2 REPAIR ESTIMATOR'!D169:O169)","v":""},{"$nulls":3},{"$f":"'2 REPAIR ESTIMATOR'!AQ169","v":{"v":0,"d":"$0"}},null,{"v":0,"d":"$0.0"},{"v":0,"d":"0.0%"},{"$nulls":4},0]
[null,null,{"$f":"T('2 REPAIR ESTIMATOR'!D170:O170)","v":""},{"$nulls":3},{"$f":"'2 REPAIR ESTIMATOR'!AQ170","v":{"v":0,"d":"$0"}},null,{"v":0,"d":"$0.0"},{"v":0,"d":"0.0%"},{"$nulls":4},0]
[null,null,{"$f":"T('2 REPAIR ESTIMATOR'!D171:O171)","v":""},{"$nulls":3},{"$f":"'2 REPAIR ESTIMATOR'!AQ171","v":{"v":0,"d":"$0"}},null,{"v":0,"d":"$0.0"},{"v":0,"d":"0.0%"},{"$nulls":4},0]
[null,null,{"$f":"T('2 REPAIR ESTIMATOR'!D172:O172)","v":""},{"$nulls":3},{"$f":"'2 REPAIR ESTIMATOR'!AQ172","v":{"v":0,"d":"$0"}},null,{"v":0,"d":"$0.0"},{"v":0,"d":"0.0%"},{"$nulls":4},0]
[null,null,{"$f":"T('2 REPAIR ESTIMATOR'!AC174)","v":"DEMOLITION TOTAL"},{"$nulls":3},{"$f":"SUM(G95:H134)","v":{"v":1600,"d":"$1,600"}},null,{"$f":"SUM(I95:I134)","v":{"v":1.0666666666666667,"d":"$1"}},{"$f":"SUM(J95:J134)","v":{"v":0.01140819964349376,"d":"1.1%"}},{"$nulls":4},{"$f":"SUM(O95:O134)","v":1}]
[{"$nulls":14},{"$f":"O135","v":1}]
[null,null,{"$f":"T('2 REPAIR ESTIMATOR'!D177:O177)","v":"STRUCTURAL CONCRETE"},{"$nulls":11},{"$f":"SUM(O138:O177)","v":0}]
[null,null,{"$f":"T('2 REPAIR ESTIMATOR'!D178:O178)","v":"Excavation"},{"$nulls":3},{"$f":"'2 REPAIR ESTIMATOR'!AQ178","v":{"v":0,"d":"$0"}},null,{"$f":"IFERROR(G138/Property_Size,0)","v":{"v":0,"d":"$0.0"}},{"$f":"IFERROR(G138/Total_Project_Costs_Result,0)","v":{"v":0,"d":"0.0%"}},{"$nulls":4},{"$f":"IF(G138>0,1,0)","v":0}]
[null,null,{"$f":"T('2 REPAIR ESTIMATOR'!D179:O179)","v":"Excavation bid/allowance"},{"$nulls":3},{"$f":"'2 REPAIR ESTIMATOR'!AQ179","v":{"v":0,"d":"$0"}},null,{"v":0,"d":"$0.0"},{"v":0,"d":"0.0%"},{"$nulls":4},{"$f":"IF(G139>0,1,0)","v":0}]
[null,null,{"$f":"T('2 REPAIR ESTIMATOR'!D180:O180)","v":"Footing trenching"},{"$nulls":3},{"$f":"'2 REPAIR ESTIMATOR'!AQ180","v":{"v":0,"d":"$0"}},null,{"v":0,"d":"$0.0"},{"v":0,"d":"0.0%"},{"$nulls":4},0]
[null,null,{"$f":"T('2 REPAIR ESTIMATOR'!D181:O181)","v":"Backfill of trenches "},{"$nulls":3},{"$f":"'2 REPAIR ESTIMATOR'!AQ181","v":{"v":0,"d":"$0"}},null,{"v":0,"d":"$0.0"},{"v":0,"d":"0.0%"},{"$nulls":4},0]
[null,null,{"$f":"T('2 REPAIR ESTIMATOR'!D182:O182)","v":""},{"$nulls":3},{"$f":"'2 REPAIR ESTIMATOR'!AQ182","v":{"v":0,"d":"$0"}},null,{"v":0,"d":"$0.0"},{"v":0,"d":"0.0%"},{"$nulls":4},0]
[null,null,{"$f":"T('2 REPAIR ESTIMATOR'!D183:O183)","v":""},{"$nulls":3},{"$f":"'2 REPAIR ESTIMATOR'!AQ183","v":{"v":0,"d":"$0"}},null,{"v":0,"d":"$0.0"},{"v":0,"d":"0.0%"},{"$nulls":4},0]
[null,null,{"$f":"T('2 REPAIR ESTIMATOR'!D184:O184)","v":"Foundation"},{"$nulls":3},{"$f":"'2 REPAIR ESTIMATOR'!AQ184","v":{"v":0,"d":"$0"}},null,{"v":0,"d":"$0.0"},{"v":0,"d":"0.0%"},{"$nulls":4},0]
[null,null,{"$f":"T('2 REPAIR ESTIMATOR'!D185:O185)","v":"Foundation bid/allowance"},{"$nulls":3},{"$f":"'2 REPAIR ESTIMATOR'!AQ185","v":{"v":0,"d":"$0"}},null,{"v":0,"d":"$0.0"},{"v":0,"d":"0.0%"},{"$nulls":4},0]
[null,null,{"$f":"T('2 REPAIR ESTIMATOR'!D186:O186)","v":"Concrete slab on grade, 4\" thick"},{"$nulls":3},{"$f":"'2 REPAIR ESTIMATOR'!AQ186","v":{"v":0,"d":"$0"}},null,{"v":0,"d":"$0.0"},{"v":0,"d":"0.0%"},{"$nulls":4},0]
[null,null,{"$f":"T('2 REPAIR ESTIMATOR'!D187:O187)","v":"Concrete footing, 12\" wide "},{"$nulls":3},{"$f":"'2 REPAIR ESTIMATOR'!AQ187","v":{"v":0,"d":"$0"}},null,{"v":0,"d":"$0.0"},{"v":0,"d":"0.0%"},{"$nulls":4},0]
[null,null,{"$f":"T('2 REPAIR ESTIMATOR'!D188:O188)","v":"Stem wall, single story"},{"$nulls":3},{"$f":"'2 REPAIR ESTIMATOR'!AQ188","v":{"v":0,"d":"$0"}},null,{"v":0,"d":"$0.0"},{"v":0,"d":"0.0%"},{"$nulls":4},0]
[null,null,{"$f":"T('2 REPAIR ESTIMATOR'!D189:O189)","v":""},{"$nulls":3},{"$f":"'2 REPAIR ESTIMATOR'!AQ189","v":{"v":0,"d":"$0"}},null,{"v":0,"d":"$0.0"},{"v":0,"d":"0.0%"},{"$nulls":4},0]
[null,null,{"$f":"T('2 REPAIR ESTIMATOR'!D190:O190)","v":""},{"$nulls":3},{"$f":"'2 REPAIR ESTIMATOR'!AQ190","v":{"v":0,"d":"$0"}},null,{"v":0,"d":"$0.0"},{"v":0,"d":"0.0%"},{"$nulls":4},0]
[null,null,{"$f":"T('2 REPAIR ESTIMATOR'!D191:O191)","v":"Structural Repairs"},{"$nulls":3},{"$f":"'2 REPAIR ESTIMATOR'!AQ191","v":{"v":0,"d":"$0"}},null,{"v":0,"d":"$0.0"},{"v":0,"d":"0.0%"},{"$nulls":4},0]
[null,null,{"$f":"T('2 REPAIR ESTIMATOR'!D192:O192)","v":"Structural Repairs bid/allowance"},{"$nulls":3},{"$f":"'2 REPAIR ESTIMATOR'!AQ192","v":{"v":0,"d":"$0"}},null,{"v":0,"d":"$0.0"},{"v":0,"d":"0.0%"},{"$nulls":4},0]
[null,null,{"$f":"T('2 REPAIR ESTIMATOR'!D193:O193)","v":"Stair mud jacking, case by case"},{"$nulls":3},{"$f":"'2 REPAIR ESTIMATOR'!AQ193","v":{"v":0,"d":"$0"}},null,{"v":0,"d":"$0.0"},{"v":0,"d":"0.0%"},{"$nulls":4},0]
[null,null,{"$f":"T('2 REPAIR ESTIMATOR'!D194:O194)","v":"Bowing foundation walls, vertical I-Beams"},{"$nulls":3},{"$f":"'2 REPAIR ESTIMATOR'!AQ194","v":{"v":0,"d":"$0"}},null,{"v":0,"d":"$0.0"},{"v":0,"d":"0.0%"},{"$nulls":4},0]
[null,null,{"$f":"T('2 REPAIR ESTIMATOR'!D195:O195)","v":"Settled foundation walls, concrete piers/underpinning"},{"$nulls":3},{"$f":"'2 REPAIR ESTIMATOR'!AQ195","v":{"v":0,"d":"$0"}},null,{"v":0,"d":"$0.0"},{"v":0,"d":"0.0%"},{"$nulls":4},0]
[null,null,{"$f":"T('2 REPAIR ESTIMATOR'!D196:O196)","v":"Foundation waterproofing & drain tile, single story"},{"$nulls":3},{"$f":"'2 REPAIR ESTIMATOR'!AQ196","v":{"v":0,"d":"$0"}},null,{"v":0,"d":"$0.0"},{"v":0,"d":"0.0%"},{"$nulls":4},0]
[null,null,{"$f":"T('2 REPAIR ESTIMATOR'!D197:O197)","v":"Epoxy crack injection"},{"$nulls":3},{"$f":"'2 REPAIR ESTIMATOR'!AQ197","v":{"v":0,"d":"$0"}},null,{"v":0,"d":"$0.0"},{"v":0,"d":"0.0%"},{"$nulls":4},0]
[null,null,{"$f":"T('2 REPAIR ESTIMATOR'!D198:O198)","v":""},{"$nulls":3},{"$f":"'2 REPAIR ESTIMATOR'!AQ198","v":{"v":0,"d":"$0"}},null,{"v":0,"d":"$0.0"},{"v":0,"d":"0.0%"},{"$nulls":4},0]
[null,null,{"$f":"T('2 REPAIR ESTIMATOR'!D199:O199)","v":""},{"$nulls":3},{"$f":"'2 REPAIR ESTIMATOR'!AQ199","v":{"v":0,"d":"$0"}},null,{"v":0,"d":"$0.0"},{"v":0,"d":"0.0%"},{"$nulls":4},0]
[null,null,{"$f":"T('2 REPAIR ESTIMATOR'!D200:O200)","v":""},{"$nulls":3},{"$f":"'2 REPAIR ESTIMATOR'!AQ200","v":{"v":0,"d":"$0"}},null,{"v":0,"d":"$0.0"},{"v":0,"d":"0.0%"},{"$nulls":4},0]
[null,null,{"$f":"T('2 REPAIR ESTIMATOR'!D201:O201)","v":""},{"$nulls":3},{"$f":"'2 REPAIR ESTIMATOR'!AQ201","v":{"v":0,"d":"$0"}},null,{"v":0,"d":"$0.0"},{"v":0,"d":"0.0%"},{"$nulls":4},0]
[null,null,{"$f":"T('2 REPAIR ESTIMATOR'!D202:O202)","v":""},{"$nulls":3},{"$f":"'2 REPAIR ESTIMATOR'!AQ202","v":{"v":0,"d":"$0"}},null,{"v":0,"d":"$0.0"},{"v":0,"d":"0.0%"},{"$nulls":4},0]
[null,null,{"$f":"T('2 REPAIR ESTIMATOR'!D203:O203)","v":""},{"$nulls":3},{"$f":"'2 REPAIR ESTIMATOR'!AQ203","v":{"v":0,"d":"$0"}},null,{"v":0,"d":"$0.0"},{"v":0,"d":"0.0%"},{"$nulls":4},0]
[null,null,{"$f":"T('2 REPAIR ESTIMATOR'!D204:O204)","v":""},{"$nulls":3},{"$f":"'2 REPAIR ESTIMATOR'!AQ204","v":{"v":0,"d":"$0"}},null,{"v":0,"d":"$0.0"},{"v":0,"d":"0.0%"},{"$nulls":4},0]
[null,null,{"$f":"T('2 REPAIR ESTIMATOR'!D205:O205)","v":""},{"$nulls":3},{"$f":"'2 REPAIR ESTIMATOR'!AQ205","v":{"v":0,"d":"$0"}},null,{"v":0,"d":"$0.0"},{"v":0,"d":"0.0%"},{"$nulls":4},0]
[null,null,{"$f":"T('2 REPAIR ESTIMATOR'!D206:O206)","v":""},{"$nulls":3},{"$f":"'2 REPAIR ESTIMATOR'!AQ206","v":{"v":0,"d":"$0"}},null,{"v":0,"d":"$0.0"},{"v":0,"d":"0.0%"},{"$nulls":4},0]
[null,null,{"$f":"T('2 REPAIR ESTIMATOR'!D207:O207)","v":""},{"$nulls":3},{"$f":"'2 REPAIR ESTIMATOR'!AQ207","v":{"v":0,"d":"$0"}},null,{"v":0,"d":"$0.0"},{"v":0,"d":"0.0%"},{"$nulls":4},0]
[null,null,{"$f":"T('2 REPAIR ESTIMATOR'!D208:O208)","v":""},{"$nulls":3},{"$f":"'2 REPAIR ESTIMATOR'!AQ208","v":{"v":0,"d":"$0"}},null,{"v":0,"d":"$0.0"},{"v":0,"d":"0.0%"},{"$nulls":4},0]
[null,null,{"$f":"T('2 REPAIR ESTIMATOR'!D209:O209)","v":""},{"$nulls":3},{"$f":"'2 REPAIR ESTIMATOR'!AQ209","v":{"v":0,"d":"$0"}},null,{"v":0,"d":"$0.0"},{"v":0,"d":"0.0%"},{"$nulls":4},0]
[null,null,{"$f":"T('2 REPAIR ESTIMATOR'!D210:O210)","v":""},{"$nulls":3},{"$f":"'2 REPAIR ESTIMATOR'!AQ210","v":{"v":0,"d":"$0"}},null,{"v":0,"d":"$0.0"},{"v":0,"d":"0.0%"},{"$nulls":4},0]
[null,null,{"$f":"T('2 REPAIR ESTIMATOR'!D211:O211)","v":""},{"$nulls":3},{"$f":"'2 REPAIR ESTIMATOR'!AQ211","v":{"v":0,"d":"$0"}},null,{"v":0,"d":"$0.0"},{"v":0,"d":"0.0%"},{"$nulls":4},0]
[null,null,{"$f":"T('2 REPAIR ESTIMATOR'!D212:O212)","v":""},{"$nulls":3},{"$f":"'2 REPAIR ESTIMATOR'!AQ212","v":{"v":0,"d":"$0"}},null,{"v":0,"d":"$0.0"},{"v":0,"d":"0.0%"},{"$nulls":4},0]
[null,null,{"$f":"T('2 REPAIR ESTIMATOR'!D213:O213)","v":""},{"$nulls":3},{"$f":"'2 REPAIR ESTIMATOR'!AQ213","v":{"v":0,"d":"$0"}},null,{"v":0,"d":"$0.0"},{"v":0,"d":"0.0%"},{"$nulls":4},0]
[null,null,{"$f":"T('2 REPAIR ESTIMATOR'!D214:O214)","v":""},{"$nulls":3},{"$f":"'2 REPAIR ESTIMATOR'!AQ214","v":{"v":0,"d":"$0"}},null,{"v":0,"d":"$0.0"},{"v":0,"d":"0.0%"},{"$nulls":4},0]
[null,null,{"$f":"T('2 REPAIR ESTIMATOR'!D215:O215)","v":""},{"$nulls":3},{"$f":"'2 REPAIR ESTIMATOR'!AQ215","v":{"v":0,"d":"$0"}},null,{"v":0,"d":"$0.0"},{"v":0,"d":"0.0%"},{"$nulls":4},0]
[null,null,{"$f":"T('2 REPAIR ESTIMATOR'!D216:O216)","v":""},{"$nulls":3},{"$f":"'2 REPAIR ESTIMATOR'!AQ216","v":{"v":0,"d":"$0"}},null,{"v":0,"d":"$0.0"},{"v":0,"d":"0.0%"},{"$nulls":4},0]
[null,null,{"$f":"T('2 REPAIR ESTIMATOR'!D217:O217)","v":""},{"$nulls":3},{"$f":"'2 REPAIR ESTIMATOR'!AQ217","v":{"v":0,"d":"$0"}},null,{"v":0,"d":"$0.0"},{"v":0,"d":"0.0%"},{"$nulls":4},0]
[null,null,{"$f":"T('2 REPAIR ESTIMATOR'!AC219)","v":"STRUCTURAL CONCRETE TOTAL"},{"$nulls":3},{"$f":"SUM(G138:H177)","v":{"v":0,"d":"$0"}},null,{"$f":"SUM(I138:I177)","v":{"v":0,"d":"$0"}},{"$f":"SUM(J138:J177)","v":{"v":0,"d":"0.0%"}},{"$nulls":4},{"$f":"SUM(O138:O177)","v":0}]
[{"$nulls":14},{"$f":"O178","v":0}]
[null,null,{"$f":"T('2 REPAIR ESTIMATOR'!D222:O222)","v":"CONCRETE & FLATWORK"},{"$nulls":11},{"$f":"SUM(O181:O220)","v":0}]
[null,null,{"$f":"T('2 REPAIR ESTIMATOR'!D223:O223)","v":"Concrete"},{"$nulls":3},{"$f":"'2 REPAIR ESTIMATOR'!AQ223","v":{"v":0,"d":"$0"}},null,{"$f":"IFERROR(G181/Property_Size,0)","v":{"v":0,"d":"$0.0"}},{"$f":"IFERROR(G181/Total_Project_Costs_Result,0)","v":{"v":0,"d":"0.0%"}},{"$nulls":4},{"$f":"IF(G181>0,1,0)","v":0}]
[null,null,{"$f":"T('2 REPAIR ESTIMATOR'!D224:O224)","v":"Concrete bid/allowance"},{"$nulls":3},{"$f":"'2 REPAIR ESTIMATOR'!AQ224","v":{"v":0,"d":"$0"}},null,{"v":0,"d":"$0.0"},{"v":0,"d":"0.0%"},{"$nulls":4},{"$f":"IF(G182>0,1,0)","v":0}]
[null,null,{"$f":"T('2 REPAIR ESTIMATOR'!D225:O225)","v":"Concrete flatwork demo"},{"$nulls":3},{"$f":"'2 REPAIR ESTIMATOR'!AQ225","v":{"v":0,"d":"$0"}},null,{"v":0,"d":"$0.0"},{"v":0,"d":"0.0%"},{"$nulls":4},0]
[null,null,{"$f":"T('2 REPAIR ESTIMATOR'!D226:O226)","v":"Concrete driveway/patio, 6\" thick"},{"$nulls":3},{"$f":"'2 REPAIR ESTIMATOR'!AQ226","v":{"v":0,"d":"$0"}},null,{"v":0,"d":"$0.0"},{"v":0,"d":"0.0%"},{"$nulls":4},0]
[null,null,{"$f":"T('2 REPAIR ESTIMATOR'!D227:O227)","v":"Concrete sidewalk, 4\" thick"},{"$nulls":3},{"$f":"'2 REPAIR ESTIMATOR'!AQ227","v":{"v":0,"d":"$0"}},null,{"v":0,"d":"$0.0"},{"v":0,"d":"0.0%"},{"$nulls":4},0]
[null,null,{"$f":"T('2 REPAIR ESTIMATOR'!D228:O228)","v":"Add for 4\" base rock below concrete pavement"},{"$nulls":3},{"$f":"'2 REPAIR ESTIMATOR'!AQ228","v":{"v":0,"d":"$0"}},null,{"v":0,"d":"$0.0"},{"v":0,"d":"0.0%"},{"$nulls":4},0]
[null,null,{"$f":"T('2 REPAIR ESTIMATOR'!D229:O229)","v":""},{"$nulls":3},{"$f":"'2 REPAIR ESTIMATOR'!AQ229","v":{"v":0,"d":"$0"}},null,{"v":0,"d":"$0.0"},{"v":0,"d":"0.0%"},{"$nulls":4},0]
[null,null,{"$f":"T('2 REPAIR ESTIMATOR'!D230:O230)","v":"Asphalt"},{"$nulls":3},{"$f":"'2 REPAIR ESTIMATOR'!AQ230","v":{"v":0,"d":"$0"}},null,{"v":0,"d":"$0.0"},{"v":0,"d":"0.0%"},{"$nulls":4},0]
[null,null,{"$f":"T('2 REPAIR ESTIMATOR'!D231:O231)","v":"Asphalt bid/allowance"},{"$nulls":3},{"$f":"'2 REPAIR ESTIMATOR'!AQ231","v":{"v":0,"d":"$0"}},null,{"v":0,"d":"$0.0"},{"v":0,"d":"0.0%"},{"$nulls":4},0]
[null,null,{"$f":"T('2 REPAIR ESTIMATOR'!D232:O232)","v":"Asphalt pavement, 5\" thick"},{"$nulls":3},{"$f":"'2 REPAIR ESTIMATOR'!AQ232","v":{"v":0,"d":"$0"}},null,{"v":0,"d":"$0.0"},{"v":0,"d":"0.0%"},{"$nulls":4},0]
[null,null,{"$f":"T('2 REPAIR ESTIMATOR'!D233:O233)","v":"Asphalt pavement, 7\" thick"},{"$nulls":3},{"$f":"'2 REPAIR ESTIMATOR'!AQ233","v":{"v":0,"d":"$0"}},null,{"v":0,"d":"$0.0"},{"v":0,"d":"0.0%"},{"$nulls":4},0]
[null,null,{"$f":"T('2 REPAIR ESTIMATOR'!D234:O234)","v":"Asphalt pavement, wearing course, 1\" thick only"},{"$nulls":3},{"$f":"'2 REPAIR ESTIMATOR'!AQ234","v":{"v":0,"d":"$0"}},null,{"v":0,"d":"$0.0"},{"v":0,"d":"0.0%"},{"$nulls":4},0]
[null,null,{"$f":"T('2 REPAIR ESTIMATOR'!D235:O235)","v":"Asphalt seal coat"},{"$nulls":3},{"$f":"'2 REPAIR ESTIMATOR'!AQ235","v":{"v":0,"d":"$0"}},null,{"v":0,"d":"$0.0"},{"v":0,"d":"0.0%"},{"$nulls":4},0]
[null,null,{"$f":"T('2 REPAIR ESTIMATOR'!D236:O236)","v":"Add for 4\" base rock below asphalt pavement"},{"$nulls":3},{"$f":"'2 REPAIR ESTIMATOR'!AQ236","v":{"v":0,"d":"$0"}},null,{"v":0,"d":"$0.0"},{"v":0,"d":"0.0%"},{"$nulls":4},0]
[null,null,{"$f":"T('2 REPAIR ESTIMATOR'!D237:O237)","v":""},{"$nulls":3},{"$f":"'2 REPAIR ESTIMATOR'!AQ237","v":{"v":0,"d":"$0"}},null,{"v":0,"d":"$0.0"},{"v":0,"d":"0.0%"},{"$nulls":4},0]
[null,null,{"$f":"T('2 REPAIR ESTIMATOR'!D238:O238)","v":"Pavers"},{"$nulls":3},{"$f":"'2 REPAIR ESTIMATOR'!AQ238","v":{"v":0,"d":"$0"}},null,{"v":0,"d":"$0.0"},{"v":0,"d":"0.0%"},{"$nulls":4},0]
[null,null,{"$f":"T('2 REPAIR ESTIMATOR'!D239:O239)","v":"Pavers bid/allowance"},{"$nulls":3},{"$f":"'2 REPAIR ESTIMATOR'!AQ239","v":{"v":0,"d":"$0"}},null,{"v":0,"d":"$0.0"},{"v":0,"d":"0.0%"},{"$nulls":4},0]
[null,null,{"$f":"T('2 REPAIR ESTIMATOR'!D240:O240)","v":"Brick pavers, sand base"},{"$nulls":3},{"$f":"'2 REPAIR ESTIMATOR'!AQ240","v":{"v":0,"d":"$0"}},null,{"v":0,"d":"$0.0"},{"v":0,"d":"0.0%"},{"$nulls":4},0]
[null,null,{"$f":"T('2 REPAIR ESTIMATOR'!D241:O241)","v":"Brick pavers, mortar base"},{"$nulls":3},{"$f":"'2 REPAIR ESTIMATOR'!AQ241","v":{"v":0,"d":"$0"}},null,{"v":0,"d":"$0.0"},{"v":0,"d":"0.0%"},{"$nulls":4},0]
[null,null,{"$f":"T('2 REPAIR ESTIMATOR'!D242:O242)","v":""},{"$nulls":3},{"$f":"'2 REPAIR ESTIMATOR'!AQ242","v":{"v":0,"d":"$0"}},null,{"v":0,"d":"$0.0"},{"v":0,"d":"0.0%"},{"$nulls":4},0]
[null,null,{"$f":"T('2 REPAIR ESTIMATOR'!D243:O243)","v":""},{"$nulls":3},{"$f":"'2 REPAIR ESTIMATOR'!AQ243","v":{"v":0,"d":"$0"}},null,{"v":0,"d":"$0.0"},{"v":0,"d":"0.0%"},{"$nulls":4},0]
[null,null,{"$f":"T('2 REPAIR ESTIMATOR'!D244:O244)","v":""},{"$nulls":3},{"$f":"'2 REPAIR ESTIMATOR'!AQ244","v":{"v":0,"d":"$0"}},null,{"v":0,"d":"$0.0"},{"v":0,"d":"0.0%"},{"$nulls":4},0]
[null,null,{"$f":"T('2 REPAIR ESTIMATOR'!D245:O245)","v":""},{"$nulls":3},{"$f":"'2 REPAIR ESTIMATOR'!AQ245","v":{"v":0,"d":"$0"}},null,{"v":0,"d":"$0.0"},{"v":0,"d":"0.0%"},{"$nulls":4},0]
[null,null,{"$f":"T('2 REPAIR ESTIMATOR'!D246:O246)","v":""},{"$nulls":3},{"$f":"'2 REPAIR ESTIMATOR'!AQ246","v":{"v":0,"d":"$0"}},null,{"v":0,"d":"$0.0"},{"v":0,"d":"0.0%"},{"$nulls":4},0]
[null,null,{"$f":"T('2 REPAIR ESTIMATOR'!D247:O247)","v":""},{"$nulls":3},{"$f":"'2 REPAIR ESTIMATOR'!AQ247","v":{"v":0,"d":"$0"}},null,{"v":0,"d":"$0.0"},{"v":0,"d":"0.0%"},{"$nulls":4},0]
[null,null,{"$f":"T('2 REPAIR ESTIMATOR'!D248:O248)","v":""},{"$nulls":3},{"$f":"'2 REPAIR ESTIMATOR'!AQ248","v":{"v":0,"d":"$0"}},null,{"v":0,"d":"$0.0"},{"v":0,"d":"0.0%"},{"$nulls":4},0]
[null,null,{"$f":"T('2 REPAIR ESTIMATOR'!D249:O249)","v":""},{"$nulls":3},{"$f":"'2 REPAIR ESTIMATOR'!AQ249","v":{"v":0,"d":"$0"}},null,{"v":0,"d":"$0.0"},{"v":0,"d":"0.0%"},{"$nulls":4},0]
[null,null,{"$f":"T('2 REPAIR ESTIMATOR'!D250:O250)","v":""},{"$nulls":3},{"$f":"'2 REPAIR ESTIMATOR'!AQ250","v":{"v":0,"d":"$0"}},null,{"v":0,"d":"$0.0"},{"v":0,"d":"0.0%"},{"$nulls":4},0]
[null,null,{"$f":"T('2 REPAIR ESTIMATOR'!D251:O251)","v":""},{"$nulls":3},{"$f":"'2 REPAIR ESTIMATOR'!AQ251","v":{"v":0,"d":"$0"}},null,{"v":0,"d":"$0.0"},{"v":0,"d":"0.0%"},{"$nulls":4},0]
[null,null,{"$f":"T('2 REPAIR ESTIMATOR'!D252:O252)","v":""},{"$nulls":3},{"$f":"'2 REPAIR ESTIMATOR'!AQ252","v":{"v":0,"d":"$0"}},null,{"v":0,"d":"$0.0"},{"v":0,"d":"0.0%"},{"$nulls":4},0]
[null,null,{"$f":"T('2 REPAIR ESTIMATOR'!D253:O253)","v":""},{"$nulls":3},{"$f":"'2 REPAIR ESTIMATOR'!AQ253","v":{"v":0,"d":"$0"}},null,{"v":0,"d":"$0.0"},{"v":0,"d":"0.0%"},{"$nulls":4},0]
[null,null,{"$f":"T('2 REPAIR ESTIMATOR'!D254:O254)","v":""},{"$nulls":3},{"$f":"'2 REPAIR ESTIMATOR'!AQ254","v":{"v":0,"d":"$0"}},null,{"v":0,"d":"$0.0"},{"v":0,"d":"0.0%"},{"$nulls":4},0]
[null,null,{"$f":"T('2 REPAIR ESTIMATOR'!D255:O255)","v":""},{"$nulls":3},{"$f":"'2 REPAIR ESTIMATOR'!AQ255","v":{"v":0,"d":"$0"}},null,{"v":0,"d":"$0.0"},{"v":0,"d":"0.0%"},{"$nulls":4},0]
[null,null,{"$f":"T('2 REPAIR ESTIMATOR'!D256:O256)","v":""},{"$nulls":3},{"$f":"'2 REPAIR ESTIMATOR'!AQ256","v":{"v":0,"d":"$0"}},null,{"v":0,"d":"$0.0"},{"v":0,"d":"0.0%"},{"$nulls":4},0]
[null,null,{"$f":"T('2 REPAIR ESTIMATOR'!D257:O257)","v":""},{"$nulls":3},{"$f":"'2 REPAIR ESTIMATOR'!AQ257","v":{"v":0,"d":"$0"}},null,{"v":0,"d":"$0.0"},{"v":0,"d":"0.0%"},{"$nulls":4},0]
[null,null,{"$f":"T('2 REPAIR ESTIMATOR'!D258:O258)","v":""},{"$nulls":3},{"$f":"'2 REPAIR ESTIMATOR'!AQ258","v":{"v":0,"d":"$0"}},null,{"v":0,"d":"$0.0"},{"v":0,"d":"0.0%"},{"$nulls":4},0]
[null,null,{"$f":"T('2 REPAIR ESTIMATOR'!D259:O259)","v":""},{"$nulls":3},{"$f":"'2 REPAIR ESTIMATOR'!AQ259","v":{"v":0,"d":"$0"}},null,{"v":0,"d":"$0.0"},{"v":0,"d":"0.0%"},{"$nulls":4},0]
[null,null,{"$f":"T('2 REPAIR ESTIMATOR'!D260:O260)","v":""},{"$nulls":3},{"$f":"'2 REPAIR ESTIMATOR'!AQ260","v":{"v":0,"d":"$0"}},null,{"v":0,"d":"$0.0"},{"v":0,"d":"0.0%"},{"$nulls":4},0]
[null,null,{"$f":"T('2 REPAIR ESTIMATOR'!D261:O261)","v":""},{"$nulls":3},{"$f":"'2 REPAIR ESTIMATOR'!AQ261","v":{"v":0,"d":"$0"}},null,{"v":0,"d":"$0.0"},{"v":0,"d":"0.0%"},{"$nulls":4},0]
[null,null,{"$f":"T('2 REPAIR ESTIMATOR'!D262:O262)","v":""},{"$nulls":3},{"$f":"'2 REPAIR ESTIMATOR'!AQ262","v":{"v":0,"d":"$0"}},null,{"v":0,"d":"$0.0"},{"v":0,"d":"0.0%"},{"$nulls":4},0]
[null,null,{"$f":"T('2 REPAIR ESTIMATOR'!AC264)","v":"CONCRETE & FLATWORK TOTAL"},{"$nulls":3},{"$f":"SUM(G181:H220)","v":{"v":0,"d":"$0"}},null,{"$f":"SUM(I181:I220)","v":{"v":0,"d":"$0"}},{"$f":"SUM(J181:J220)","v":{"v":0,"d":"0.0%"}},{"$nulls":4},{"$f":"SUM(O181:O220)","v":0}]
[{"$nulls":14},{"$f":"O221","v":0}]
[null,null,{"$f":"T('2 REPAIR ESTIMATOR'!D267:O267)","v":"MASONRY"},{"$nulls":11},{"$f":"SUM(O224:O263)","v":0}]
[null,null,{"$f":"T('2 REPAIR ESTIMATOR'!D268:O268)","v":"Masonry bid/allowance"},{"$nulls":3},{"$f":"'2 REPAIR ESTIMATOR'!AQ268","v":{"v":0,"d":"$0"}},null,{"$f":"IFERROR(G224/Property_Size,0)","v":{"v":0,"d":"$0.0"}},{"$f":"IFERROR(G224/Total_Project_Costs_Result,0)","v":{"v":0,"d":"0.0%"}},{"$nulls":4},{"$f":"IF(G224>0,1,0)","v":0}]
[null,null,{"$f":"T('2 REPAIR ESTIMATOR'!D269:O269)","v":"CMU, 4x8"},{"$nulls":3},{"$f":"'2 REPAIR ESTIMATOR'!AQ269","v":{"v":0,"d":"$0"}},null,{"v":0,"d":"$0.0"},{"v":0,"d":"0.0%"},{"$nulls":4},{"$f":"IF(G225>0,1,0)","v":0}]
[null,null,{"$f":"T('2 REPAIR ESTIMATOR'!D270:O270)","v":"CMU, 8x8"},{"$nulls":3},{"$f":"'2 REPAIR ESTIMATOR'!AQ270","v":{"v":0,"d":"$0"}},null,{"v":0,"d":"$0.0"},{"v":0,"d":"0.0%"},{"$nulls":4},0]
[null,null,{"$f":"T('2 REPAIR ESTIMATOR'!D271:O271)","v":"Brick veneer"},{"$nulls":3},{"$f":"'2 REPAIR ESTIMATOR'!AQ271","v":{"v":0,"d":"$0"}},null,{"v":0,"d":"$0.0"},{"v":0,"d":"0.0%"},{"$nulls":4},0]
[null,null,{"$f":"T('2 REPAIR ESTIMATOR'!D272:O272)","v":"Natural stone"},{"$nulls":3},{"$f":"'2 REPAIR ESTIMATOR'!AQ272","v":{"v":0,"d":"$0"}},null,{"v":0,"d":"$0.0"},{"v":0,"d":"0.0%"},{"$nulls":4},0]
[null,null,{"$f":"T('2 REPAIR ESTIMATOR'!D273:O273)","v":"Masonry waterproofing"},{"$nulls":3},{"$f":"'2 REPAIR ESTIMATOR'!AQ273","v":{"v":0,"d":"$0"}},null,{"v":0,"d":"$0.0"},{"v":0,"d":"0.0%"},{"$nulls":4},0]
[null,null,{"$f":"T('2 REPAIR ESTIMATOR'!D274:O274)","v":"Tuck-point masonry"},{"$nulls":3},{"$f":"'2 REPAIR ESTIMATOR'!AQ274","v":{"v":0,"d":"$0"}},null,{"v":0,"d":"$0.0"},{"v":0,"d":"0.0%"},{"$nulls":4},0]
[null,null,{"$f":"T('2 REPAIR ESTIMATOR'!D275:O275)","v":"Power wash masonry"},{"$nulls":3},{"$f":"'2 REPAIR ESTIMATOR'!AQ275","v":{"v":0,"d":"$0"}},null,{"v":0,"d":"$0.0"},{"v":0,"d":"0.0%"},{"$nulls":4},0]
[null,null,{"$f":"T('2 REPAIR ESTIMATOR'!D276:O276)","v":"Chimney, brick "},{"$nulls":3},{"$f":"'2 REPAIR ESTIMATOR'!AQ276","v":{"v":0,"d":"$0"}},null,{"v":0,"d":"$0.0"},{"v":0,"d":"0.0%"},{"$nulls":4},0]
[null,null,{"$f":"T('2 REPAIR ESTIMATOR'!D277:O277)","v":"Chimney, stone"},{"$nulls":3},{"$f":"'2 REPAIR ESTIMATOR'!AQ277","v":{"v":0,"d":"$0"}},null,{"v":0,"d":"$0.0"},{"v":0,"d":"0.0%"},{"$nulls":4},0]
[null,null,{"$f":"T('2 REPAIR ESTIMATOR'!D278:O278)","v":"Add to above for chimney cap"},{"$nulls":3},{"$f":"'2 REPAIR ESTIMATOR'!AQ278","v":{"v":0,"d":"$0"}},null,{"v":0,"d":"$0.0"},{"v":0,"d":"0.0%"},{"$nulls":4},0]
[null,null,{"$f":"T('2 REPAIR ESTIMATOR'!D279:O279)","v":"Fireplace complete, brick, 3ft-4ft wide w/ chimney"},{"$nulls":3},{"$f":"'2 REPAIR ESTIMATOR'!AQ279","v":{"v":0,"d":"$0"}},null,{"v":0,"d":"$0.0"},{"v":0,"d":"0.0%"},{"$nulls":4},0]
[null,null,{"$f":"T('2 REPAIR ESTIMATOR'!D280:O280)","v":""},{"$nulls":3},{"$f":"'2 REPAIR ESTIMATOR'!AQ280","v":{"v":0,"d":"$0"}},null,{"v":0,"d":"$0.0"},{"v":0,"d":"0.0%"},{"$nulls":4},0]
[null,null,{"$f":"T('2 REPAIR ESTIMATOR'!D281:O281)","v":""},{"$nulls":3},{"$f":"'2 REPAIR ESTIMATOR'!AQ281","v":{"v":0,"d":"$0"}},null,{"v":0,"d":"$0.0"},{"v":0,"d":"0.0%"},{"$nulls":4},0]
[null,null,{"$f":"T('2 REPAIR ESTIMATOR'!D282:O282)","v":""},{"$nulls":3},{"$f":"'2 REPAIR ESTIMATOR'!AQ282","v":{"v":0,"d":"$0"}},null,{"v":0,"d":"$0.0"},{"v":0,"d":"0.0%"},{"$nulls":4},0]
[null,null,{"$f":"T('2 REPAIR ESTIMATOR'!D283:O283)","v":""},{"$nulls":3},{"$f":"'2 REPAIR ESTIMATOR'!AQ283","v":{"v":0,"d":"$0"}},null,{"v":0,"d":"$0.0"},{"v":0,"d":"0.0%"},{"$nulls":4},0]
[null,null,{"$f":"T('2 REPAIR ESTIMATOR'!D284:O284)","v":""},{"$nulls":3},{"$f":"'2 REPAIR ESTIMATOR'!AQ284","v":{"v":0,"d":"$0"}},null,{"v":0,"d":"$0.0"},{"v":0,"d":"0.0%"},{"$nulls":4},0]
[null,null,{"$f":"T('2 REPAIR ESTIMATOR'!D285:O285)","v":""},{"$nulls":3},{"$f":"'2 REPAIR ESTIMATOR'!AQ285","v":{"v":0,"d":"$0"}},null,{"v":0,"d":"$0.0"},{"v":0,"d":"0.0%"},{"$nulls":4},0]
[null,null,{"$f":"T('2 REPAIR ESTIMATOR'!D286:O286)","v":""},{"$nulls":3},{"$f":"'2 REPAIR ESTIMATOR'!AQ286","v":{"v":0,"d":"$0"}},null,{"v":0,"d":"$0.0"},{"v":0,"d":"0.0%"},{"$nulls":4},0]
[null,null,{"$f":"T('2 REPAIR ESTIMATOR'!D287:O287)","v":""},{"$nulls":3},{"$f":"'2 REPAIR ESTIMATOR'!AQ287","v":{"v":0,"d":"$0"}},null,{"v":0,"d":"$0.0"},{"v":0,"d":"0.0%"},{"$nulls":4},0]
[null,null,{"$f":"T('2 REPAIR ESTIMATOR'!D288:O288)","v":""},{"$nulls":3},{"$f":"'2 REPAIR ESTIMATOR'!AQ288","v":{"v":0,"d":"$0"}},null,{"v":0,"d":"$0.0"},{"v":0,"d":"0.0%"},{"$nulls":4},0]
[null,null,{"$f":"T('2 REPAIR ESTIMATOR'!D289:O289)","v":""},{"$nulls":3},{"$f":"'2 REPAIR ESTIMATOR'!AQ289","v":{"v":0,"d":"$0"}},null,{"v":0,"d":"$0.0"},{"v":0,"d":"0.0%"},{"$nulls":4},0]
[null,null,{"$f":"T('2 REPAIR ESTIMATOR'!D290:O290)","v":""},{"$nulls":3},{"$f":"'2 REPAIR ESTIMATOR'!AQ290","v":{"v":0,"d":"$0"}},null,{"v":0,"d":"$0.0"},{"v":0,"d":"0.0%"},{"$nulls":4},0]
[null,null,{"$f":"T('2 REPAIR ESTIMATOR'!D291:O291)","v":""},{"$nulls":3},{"$f":"'2 REPAIR ESTIMATOR'!AQ291","v":{"v":0,"d":"$0"}},null,{"v":0,"d":"$0.0"},{"v":0,"d":"0.0%"},{"$nulls":4},0]
[null,null,{"$f":"T('2 REPAIR ESTIMATOR'!D292:O292)","v":""},{"$nulls":3},{"$f":"'2 REPAIR ESTIMATOR'!AQ292","v":{"v":0,"d":"$0"}},null,{"v":0,"d":"$0.0"},{"v":0,"d":"0.0%"},{"$nulls":4},0]
[null,null,{"$f":"T('2 REPAIR ESTIMATOR'!D293:O293)","v":""},{"$nulls":3},{"$f":"'2 REPAIR ESTIMATOR'!AQ293","v":{"v":0,"d":"$0"}},null,{"v":0,"d":"$0.0"},{"v":0,"d":"0.0%"},{"$nulls":4},0]
[null,null,{"$f":"T('2 REPAIR ESTIMATOR'!D294:O294)","v":""},{"$nulls":3},{"$f":"'2 REPAIR ESTIMATOR'!AQ294","v":{"v":0,"d":"$0"}},null,{"v":0,"d":"$0.0"},{"v":0,"d":"0.0%"},{"$nulls":4},0]
[null,null,{"$f":"T('2 REPAIR ESTIMATOR'!D295:O295)","v":""},{"$nulls":3},{"$f":"'2 REPAIR ESTIMATOR'!AQ295","v":{"v":0,"d":"$0"}},null,{"v":0,"d":"$0.0"},{"v":0,"d":"0.0%"},{"$nulls":4},0]
[null,null,{"$f":"T('2 REPAIR ESTIMATOR'!D296:O296)","v":""},{"$nulls":3},{"$f":"'2 REPAIR ESTIMATOR'!AQ296","v":{"v":0,"d":"$0"}},null,{"v":0,"d":"$0.0"},{"v":0,"d":"0.0%"},{"$nulls":4},0]
[null,null,{"$f":"T('2 REPAIR ESTIMATOR'!D297:O297)","v":""},{"$nulls":3},{"$f":"'2 REPAIR ESTIMATOR'!AQ297","v":{"v":0,"d":"$0"}},null,{"v":0,"d":"$0.0"},{"v":0,"d":"0.0%"},{"$nulls":4},0]
[null,null,{"$f":"T('2 REPAIR ESTIMATOR'!D298:O298)","v":""},{"$nulls":3},{"$f":"'2 REPAIR ESTIMATOR'!AQ298","v":{"v":0,"d":"$0"}},null,{"v":0,"d":"$0.0"},{"v":0,"d":"0.0%"},{"$nulls":4},0]
[null,null,{"$f":"T('2 REPAIR ESTIMATOR'!D299:O299)","v":""},{"$nulls":3},{"$f":"'2 REPAIR ESTIMATOR'!AQ299","v":{"v":0,"d":"$0"}},null,{"v":0,"d":"$0.0"},{"v":0,"d":"0.0%"},{"$nulls":4},0]
[null,null,{"$f":"T('2 REPAIR ESTIMATOR'!D300:O300)","v":""},{"$nulls":3},{"$f":"'2 REPAIR ESTIMATOR'!AQ300","v":{"v":0,"d":"$0"}},null,{"v":0,"d":"$0.0"},{"v":0,"d":"0.0%"},{"$nulls":4},0]
[null,null,{"$f":"T('2 REPAIR ESTIMATOR'!D301:O301)","v":""},{"$nulls":3},{"$f":"'2 REPAIR ESTIMATOR'!AQ301","v":{"v":0,"d":"$0"}},null,{"v":0,"d":"$0.0"},{"v":0,"d":"0.0%"},{"$nulls":4},0]
[null,null,{"$f":"T('2 REPAIR ESTIMATOR'!D302:O302)","v":""},{"$nulls":3},{"$f":"'2 REPAIR ESTIMATOR'!AQ302","v":{"v":0,"d":"$0"}},null,{"v":0,"d":"$0.0"},{"v":0,"d":"0.0%"},{"$nulls":4},0]
[null,null,{"$f":"T('2 REPAIR ESTIMATOR'!D303:O303)","v":""},{"$nulls":3},{"$f":"'2 REPAIR ESTIMATOR'!AQ303","v":{"v":0,"d":"$0"}},null,{"v":0,"d":"$0.0"},{"v":0,"d":"0.0%"},{"$nulls":4},0]
[null,null,{"$f":"T('2 REPAIR ESTIMATOR'!D304:O304)","v":""},{"$nulls":3},{"$f":"'2 REPAIR ESTIMATOR'!AQ304","v":{"v":0,"d":"$0"}},null,{"v":0,"d":"$0.0"},{"v":0,"d":"0.0%"},{"$nulls":4},0]
[null,null,{"$f":"T('2 REPAIR ESTIMATOR'!D305:O305)","v":""},{"$nulls":3},{"$f":"'2 REPAIR ESTIMATOR'!AQ305","v":{"v":0,"d":"$0"}},null,{"v":0,"d":"$0.0"},{"v":0,"d":"0.0%"},{"$nulls":4},0]
[null,null,{"$f":"T('2 REPAIR ESTIMATOR'!D306:O306)","v":""},{"$nulls":3},{"$f":"'2 REPAIR ESTIMATOR'!AQ306","v":{"v":0,"d":"$0"}},null,{"v":0,"d":"$0.0"},{"v":0,"d":"0.0%"},{"$nulls":4},0]
[null,null,{"$f":"T('2 REPAIR ESTIMATOR'!D307:O307)","v":""},{"$nulls":3},{"$f":"'2 REPAIR ESTIMATOR'!AQ307","v":{"v":0,"d":"$0"}},null,{"v":0,"d":"$0.0"},{"v":0,"d":"0.0%"},{"$nulls":4},0]
[null,null,{"$f":"T('2 REPAIR ESTIMATOR'!AC309)","v":"MASONRY TOTAL"},{"$nulls":3},{"$f":"SUM(G224:H263)","v":{"v":0,"d":"$0"}},null,{"$f":"SUM(I224:I263)","v":{"v":0,"d":"$0"}},{"$f":"SUM(J224:J263)","v":{"v":0,"d":"0.0%"}},{"$nulls":4},{"$f":"SUM(O224:O263)","v":0}]
[{"$nulls":14},{"$f":"O264","v":0}]
[null,null,{"$f":"T('2 REPAIR ESTIMATOR'!D312:O312)","v":"SIDING"},{"$nulls":11},{"$f":"SUM(O267:O306)","v":0}]
[null,null,{"$f":"T('2 REPAIR ESTIMATOR'!D313:O313)","v":"Siding bid/allowance"},{"$nulls":3},{"$f":"'2 REPAIR ESTIMATOR'!AQ313","v":{"v":0,"d":"$0"}},null,{"$f":"IFERROR(G267/Property_Size,0)","v":{"v":0,"d":"$0.0"}},{"$f":"IFERROR(G267/Total_Project_Costs_Result,0)","v":{"v":0,"d":"0.0%"}},{"$nulls":4},{"$f":"IF(G267>0,1,0)","v":0}]
[null,null,{"$f":"T('2 REPAIR ESTIMATOR'!D314:O314)","v":"Demo existing siding"},{"$nulls":3},{"$f":"'2 REPAIR ESTIMATOR'!AQ314","v":{"v":0,"d":"$0"}},null,{"v":0,"d":"$0.0"},{"v":0,"d":"0.0%"},{"$nulls":4},{"$f":"IF(G268>0,1,0)","v":0}]
[null,null,{"$f":"T('2 REPAIR ESTIMATOR'!D315:O315)","v":"Plywood panel, douglas fir"},{"$nulls":3},{"$f":"'2 REPAIR ESTIMATOR'!AQ315","v":{"v":0,"d":"$0"}},null,{"v":0,"d":"$0.0"},{"v":0,"d":"0.0%"},{"$nulls":4},0]
[null,null,{"$f":"T('2 REPAIR ESTIMATOR'!D316:O316)","v":"Plywood panel, cedar"},{"$nulls":3},{"$f":"'2 REPAIR ESTIMATOR'!AQ316","v":{"v":0,"d":"$0"}},null,{"v":0,"d":"$0.0"},{"v":0,"d":"0.0%"},{"$nulls":4},0]
[null,null,{"$f":"T('2 REPAIR ESTIMATOR'!D317:O317)","v":"Tongue and groove, douglas fir"},{"$nulls":3},{"$f":"'2 REPAIR ESTIMATOR'!AQ317","v":{"v":0,"d":"$0"}},null,{"v":0,"d":"$0.0"},{"v":0,"d":"0.0%"},{"$nulls":4},0]
[null,null,{"$f":"T('2 REPAIR ESTIMATOR'!D318:O318)","v":"Tongue and groove, cedar"},{"$nulls":3},{"$f":"'2 REPAIR ESTIMATOR'!AQ318","v":{"v":0,"d":"$0"}},null,{"v":0,"d":"$0.0"},{"v":0,"d":"0.0%"},{"$nulls":4},0]
[null,null,{"$f":"T('2 REPAIR ESTIMATOR'!D319:O319)","v":"Board and batten, douglas fir"},{"$nulls":3},{"$f":"'2 REPAIR ESTIMATOR'!AQ319","v":{"v":0,"d":"$0"}},null,{"v":0,"d":"$0.0"},{"v":0,"d":"0.0%"},{"$nulls":4},0]
[null,null,{"$f":"T('2 REPAIR ESTIMATOR'!D320:O320)","v":"Board and batten, cedar"},{"$nulls":3},{"$f":"'2 REPAIR ESTIMATOR'!AQ320","v":{"v":0,"d":"$0"}},null,{"v":0,"d":"$0.0"},{"v":0,"d":"0.0%"},{"$nulls":4},0]
[null,null,{"$f":"T('2 REPAIR ESTIMATOR'!D321:O321)","v":"Wood shingle/shake"},{"$nulls":3},{"$f":"'2 REPAIR ESTIMATOR'!AQ321","v":{"v":0,"d":"$0"}},null,{"v":0,"d":"$0.0"},{"v":0,"d":"0.0%"},{"$nulls":4},0]
[null,null,{"$f":"T('2 REPAIR ESTIMATOR'!D322:O322)","v":"Fiber cement siding, 4x8 panels"},{"$nulls":3},{"$f":"'2 REPAIR ESTIMATOR'!AQ322","v":{"v":0,"d":"$0"}},null,{"v":0,"d":"$0.0"},{"v":0,"d":"0.0%"},{"$nulls":4},0]
[null,null,{"$f":"T('2 REPAIR ESTIMATOR'!D323:O323)","v":"Fiber cement siding, lap"},{"$nulls":3},{"$f":"'2 REPAIR ESTIMATOR'!AQ323","v":{"v":0,"d":"$0"}},null,{"v":0,"d":"$0.0"},{"v":0,"d":"0.0%"},{"$nulls":4},0]
[null,null,{"$f":"T('2 REPAIR ESTIMATOR'!D324:O324)","v":"Vinyl siding, non-insulated"},{"$nulls":3},{"$f":"'2 REPAIR ESTIMATOR'!AQ324","v":{"v":0,"d":"$0"}},null,{"v":0,"d":"$0.0"},{"v":0,"d":"0.0%"},{"$nulls":4},0]
[null,null,{"$f":"T('2 REPAIR ESTIMATOR'!D325:O325)","v":"Vinyl siding, insulated"},{"$nulls":3},{"$f":"'2 REPAIR ESTIMATOR'!AQ325","v":{"v":0,"d":"$0"}},null,{"v":0,"d":"$0.0"},{"v":0,"d":"0.0%"},{"$nulls":4},0]
[null,null,{"$f":"T('2 REPAIR ESTIMATOR'!D326:O326)","v":"Trim, 1\"x3\", pine"},{"$nulls":3},{"$f":"'2 REPAIR ESTIMATOR'!AQ326","v":{"v":0,"d":"$0"}},null,{"v":0,"d":"$0.0"},{"v":0,"d":"0.0%"},{"$nulls":4},0]
[null,null,{"$f":"T('2 REPAIR ESTIMATOR'!D327:O327)","v":"Trim, 1\"x4\", pine"},{"$nulls":3},{"$f":"'2 REPAIR ESTIMATOR'!AQ327","v":{"v":0,"d":"$0"}},null,{"v":0,"d":"$0.0"},{"v":0,"d":"0.0%"},{"$nulls":4},0]
[null,null,{"$f":"T('2 REPAIR ESTIMATOR'!D328:O328)","v":"Trim, 1\"x6\", pine"},{"$nulls":3},{"$f":"'2 REPAIR ESTIMATOR'!AQ328","v":{"v":0,"d":"$0"}},null,{"v":0,"d":"$0.0"},{"v":0,"d":"0.0%"},{"$nulls":4},0]
[null,null,{"$f":"T('2 REPAIR ESTIMATOR'!D329:O329)","v":"Siding patch, window/door, siding, insulation"},{"$nulls":3},{"$f":"'2 REPAIR ESTIMATOR'!AQ329","v":{"v":0,"d":"$0"}},null,{"v":0,"d":"$0.0"},{"v":0,"d":"0.0%"},{"$nulls":4},0]
[null,null,{"$f":"T('2 REPAIR ESTIMATOR'!D330:O330)","v":"Stucco"},{"$nulls":3},{"$f":"'2 REPAIR ESTIMATOR'!AQ330","v":{"v":0,"d":"$0"}},null,{"v":0,"d":"$0.0"},{"v":0,"d":"0.0%"},{"$nulls":4},0]
[null,null,{"$f":"T('2 REPAIR ESTIMATOR'!D331:O331)","v":""},{"$nulls":3},{"$f":"'2 REPAIR ESTIMATOR'!AQ331","v":{"v":0,"d":"$0"}},null,{"v":0,"d":"$0.0"},{"v":0,"d":"0.0%"},{"$nulls":4},0]
[null,null,{"$f":"T('2 REPAIR ESTIMATOR'!D332:O332)","v":""},{"$nulls":3},{"$f":"'2 REPAIR ESTIMATOR'!AQ332","v":{"v":0,"d":"$0"}},null,{"v":0,"d":"$0.0"},{"v":0,"d":"0.0%"},{"$nulls":4},0]
[null,null,{"$f":"T('2 REPAIR ESTIMATOR'!D333:O333)","v":""},{"$nulls":3},{"$f":"'2 REPAIR ESTIMATOR'!AQ333","v":{"v":0,"d":"$0"}},null,{"v":0,"d":"$0.0"},{"v":0,"d":"0.0%"},{"$nulls":4},0]
[null,null,{"$f":"T('2 REPAIR ESTIMATOR'!D334:O334)","v":""},{"$nulls":3},{"$f":"'2 REPAIR ESTIMATOR'!AQ334","v":{"v":0,"d":"$0"}},null,{"v":0,"d":"$0.0"},{"v":0,"d":"0.0%"},{"$nulls":4},0]
[null,null,{"$f":"T('2 REPAIR ESTIMATOR'!D335:O335)","v":""},{"$nulls":3},{"$f":"'2 REPAIR ESTIMATOR'!AQ335","v":{"v":0,"d":"$0"}},null,{"v":0,"d":"$0.0"},{"v":0,"d":"0.0%"},{"$nulls":4},0]
[null,null,{"$f":"T('2 REPAIR ESTIMATOR'!D336:O336)","v":""},{"$nulls":3},{"$f":"'2 REPAIR ESTIMATOR'!AQ336","v":{"v":0,"d":"$0"}},null,{"v":0,"d":"$0.0"},{"v":0,"d":"0.0%"},{"$nulls":4},0]
[null,null,{"$f":"T('2 REPAIR ESTIMATOR'!D337:O337)","v":""},{"$nulls":3},{"$f":"'2 REPAIR ESTIMATOR'!AQ337","v":{"v":0,"d":"$0"}},null,{"v":0,"d":"$0.0"},{"v":0,"d":"0.0%"},{"$nulls":4},0]
[null,null,{"$f":"T('2 REPAIR ESTIMATOR'!D338:O338)","v":""},{"$nulls":3},{"$f":"'2 REPAIR ESTIMATOR'!AQ338","v":{"v":0,"d":"$0"}},null,{"v":0,"d":"$0.0"},{"v":0,"d":"0.0%"},{"$nulls":4},0]
[null,null,{"$f":"T('2 REPAIR ESTIMATOR'!D339:O339)","v":""},{"$nulls":3},{"$f":"'2 REPAIR ESTIMATOR'!AQ339","v":{"v":0,"d":"$0"}},null,{"v":0,"d":"$0.0"},{"v":0,"d":"0.0%"},{"$nulls":4},0]
[null,null,{"$f":"T('2 REPAIR ESTIMATOR'!D340:O340)","v":""},{"$nulls":3},{"$f":"'2 REPAIR ESTIMATOR'!AQ340","v":{"v":0,"d":"$0"}},null,{"v":0,"d":"$0.0"},{"v":0,"d":"0.0%"},{"$nulls":4},0]
[null,null,{"$f":"T('2 REPAIR ESTIMATOR'!D341:O341)","v":""},{"$nulls":3},{"$f":"'2 REPAIR ESTIMATOR'!AQ341","v":{"v":0,"d":"$0"}},null,{"v":0,"d":"$0.0"},{"v":0,"d":"0.0%"},{"$nulls":4},0]
[null,null,{"$f":"T('2 REPAIR ESTIMATOR'!D342:O342)","v":""},{"$nulls":3},{"$f":"'2 REPAIR ESTIMATOR'!AQ342","v":{"v":0,"d":"$0"}},null,{"v":0,"d":"$0.0"},{"v":0,"d":"0.0%"},{"$nulls":4},0]
[null,null,{"$f":"T('2 REPAIR ESTIMATOR'!D343:O343)","v":""},{"$nulls":3},{"$f":"'2 REPAIR ESTIMATOR'!AQ343","v":{"v":0,"d":"$0"}},null,{"v":0,"d":"$0.0"},{"v":0,"d":"0.0%"},{"$nulls":4},0]
[null,null,{"$f":"T('2 REPAIR ESTIMATOR'!D344:O344)","v":""},{"$nulls":3},{"$f":"'2 REPAIR ESTIMATOR'!AQ344","v":{"v":0,"d":"$0"}},null,{"v":0,"d":"$0.0"},{"v":0,"d":"0.0%"},{"$nulls":4},0]
[null,null,{"$f":"T('2 REPAIR ESTIMATOR'!D345:O345)","v":""},{"$nulls":3},{"$f":"'2 REPAIR ESTIMATOR'!AQ345","v":{"v":0,"d":"$0"}},null,{"v":0,"d":"$0.0"},{"v":0,"d":"0.0%"},{"$nulls":4},0]
[null,null,{"$f":"T('2 REPAIR ESTIMATOR'!D346:O346)","v":""},{"$nulls":3},{"$f":"'2 REPAIR ESTIMATOR'!AQ346","v":{"v":0,"d":"$0"}},null,{"v":0,"d":"$0.0"},{"v":0,"d":"0.0%"},{"$nulls":4},0]
[null,null,{"$f":"T('2 REPAIR ESTIMATOR'!D347:O347)","v":""},{"$nulls":3},{"$f":"'2 REPAIR ESTIMATOR'!AQ347","v":{"v":0,"d":"$0"}},null,{"v":0,"d":"$0.0"},{"v":0,"d":"0.0%"},{"$nulls":4},0]
[null,null,{"$f":"T('2 REPAIR ESTIMATOR'!D348:O348)","v":""},{"$nulls":3},{"$f":"'2 REPAIR ESTIMATOR'!AQ348","v":{"v":0,"d":"$0"}},null,{"v":0,"d":"$0.0"},{"v":0,"d":"0.0%"},{"$nulls":4},0]
[null,null,{"$f":"T('2 REPAIR ESTIMATOR'!D349:O349)","v":""},{"$nulls":3},{"$f":"'2 REPAIR ESTIMATOR'!AQ349","v":{"v":0,"d":"$0"}},null,{"v":0,"d":"$0.0"},{"v":0,"d":"0.0%"},{"$nulls":4},0]
[null,null,{"$f":"T('2 REPAIR ESTIMATOR'!D350:O350)","v":""},{"$nulls":3},{"$f":"'2 REPAIR ESTIMATOR'!AQ350","v":{"v":0,"d":"$0"}},null,{"v":0,"d":"$0.0"},{"v":0,"d":"0.0%"},{"$nulls":4},0]
[null,null,{"$f":"T('2 REPAIR ESTIMATOR'!D351:O351)","v":""},{"$nulls":3},{"$f":"'2 REPAIR ESTIMATOR'!AQ351","v":{"v":0,"d":"$0"}},null,{"v":0,"d":"$0.0"},{"v":0,"d":"0.0%"},{"$nulls":4},0]
[null,null,{"$f":"T('2 REPAIR ESTIMATOR'!D352:O352)","v":""},{"$nulls":3},{"$f":"'2 REPAIR ESTIMATOR'!AQ352","v":{"v":0,"d":"$0"}},null,{"v":0,"d":"$0.0"},{"v":0,"d":"0.0%"},{"$nulls":4},0]
[null,null,{"$f":"T('2 REPAIR ESTIMATOR'!AC354)","v":"SIDING TOTAL"},{"$nulls":3},{"$f":"SUM(G267:H306)","v":{"v":0,"d":"$0"}},null,{"$f":"SUM(I267:I306)","v":{"v":0,"d":"$0"}},{"$f":"SUM(J267:J306)","v":{"v":0,"d":"0.0%"}},{"$nulls":4},{"$f":"SUM(O267:O306)","v":0}]
[{"$nulls":14},{"$f":"O307","v":0}]
[null,null,{"$f":"T('2 REPAIR ESTIMATOR'!D357:O357)","v":"DECKING AND PATIOS"},{"$nulls":11},{"$f":"SUM(O310:O349)","v":1}]
[null,null,{"$f":"T('2 REPAIR ESTIMATOR'!D358:O358)","v":"Decking"},{"$nulls":3},{"$f":"'2 REPAIR ESTIMATOR'!AQ358","v":{"v":0,"d":"$0"}},null,{"$f":"IFERROR(G310/Property_Size,0)","v":{"v":0,"d":"$0.0"}},{"$f":"IFERROR(G310/Total_Project_Costs_Result,0)","v":{"v":0,"d":"0.0%"}},{"$nulls":4},{"$f":"IF(G310>0,1,0)","v":0}]
[null,null,{"$f":"T('2 REPAIR ESTIMATOR'!D359:O359)","v":"Deck bid/allowance"},{"$nulls":3},{"$f":"'2 REPAIR ESTIMATOR'!AQ359","v":{"v":0,"d":"$0"}},null,{"v":0,"d":"$0.0"},{"v":0,"d":"0.0%"},{"$nulls":4},{"$f":"IF(G311>0,1,0)","v":0}]
[null,null,{"$f":"T('2 REPAIR ESTIMATOR'!D360:O360)","v":"New deck, columns, joists, railing-treated lumber"},{"$nulls":3},{"$f":"'2 REPAIR ESTIMATOR'!AQ360","v":{"v":0,"d":"$0"}},null,{"v":0,"d":"$0.0"},{"v":0,"d":"0.0%"},{"$nulls":4},0]
[null,null,{"$f":"T('2 REPAIR ESTIMATOR'!D361:O361)","v":"New deck, columns, joists, railing-cedar"},{"$nulls":3},{"$f":"'2 REPAIR ESTIMATOR'!AQ361","v":{"v":0,"d":"$0"}},null,{"v":0,"d":"$0.0"},{"v":0,"d":"0.0%"},{"$nulls":4},0]
[null,null,{"$f":"T('2 REPAIR ESTIMATOR'!D362:O362)","v":"Existing deck, replace decking"},{"$nulls":3},{"$f":"'2 REPAIR ESTIMATOR'!AQ362","v":{"v":1071,"d":"$1,071"}},null,{"v":0.714,"d":"$0.7"},{"v":7.6363636363636364E-3,"d":"0.8%"},{"$nulls":4},1]
[null,null,{"$f":"T('2 REPAIR ESTIMATOR'!D363:O363)","v":"Install railing w/ wood balusters only"},{"$nulls":3},{"$f":"'2 REPAIR ESTIMATOR'!AQ363","v":{"v":0,"d":"$0"}},null,{"v":0,"d":"$0.0"},{"v":0,"d":"0.0%"},{"$nulls":4},0]
[null,null,{"$f":"T('2 REPAIR ESTIMATOR'!D364:O364)","v":"Install railing w/ metal balusters only"},{"$nulls":3},{"$f":"'2 REPAIR ESTIMATOR'!AQ364","v":{"v":0,"d":"$0"}},null,{"v":0,"d":"$0.0"},{"v":0,"d":"0.0%"},{"$nulls":4},0]
[null,null,{"$f":"T('2 REPAIR ESTIMATOR'!D365:O365)","v":"Stairs, 5 to 7 risers"},{"$nulls":3},{"$f":"'2 REPAIR ESTIMATOR'!AQ365","v":{"v":0,"d":"$0"}},null,{"v":0,"d":"$0.0"},{"v":0,"d":"0.0%"},{"$nulls":4},0]
[null,null,{"$f":"T('2 REPAIR ESTIMATOR'!D366:O366)","v":""},{"$nulls":3},{"$f":"'2 REPAIR ESTIMATOR'!AQ366","v":{"v":0,"d":"$0"}},null,{"v":0,"d":"$0.0"},{"v":0,"d":"0.0%"},{"$nulls":4},0]
[null,null,{"$f":"T('2 REPAIR ESTIMATOR'!D367:O367)","v":""},{"$nulls":3},{"$f":"'2 REPAIR ESTIMATOR'!AQ367","v":{"v":0,"d":"$0"}},null,{"v":0,"d":"$0.0"},{"v":0,"d":"0.0%"},{"$nulls":4},0]
[null,null,{"$f":"T('2 REPAIR ESTIMATOR'!D368:O368)","v":"Covered Patio"},{"$nulls":3},{"$f":"'2 REPAIR ESTIMATOR'!AQ368","v":{"v":0,"d":"$0"}},null,{"v":0,"d":"$0.0"},{"v":0,"d":"0.0%"},{"$nulls":4},0]
[null,null,{"$f":"T('2 REPAIR ESTIMATOR'!D369:O369)","v":"Covered Patio bid/allowance"},{"$nulls":3},{"$f":"'2 REPAIR ESTIMATOR'!AQ369","v":{"v":0,"d":"$0"}},null,{"v":0,"d":"$0.0"},{"v":0,"d":"0.0%"},{"$nulls":4},0]
[null,null,{"$f":"T('2 REPAIR ESTIMATOR'!D370:O370)","v":"Covered patio, floor, roof frame, decking, treated"},{"$nulls":3},{"$f":"'2 REPAIR ESTIMATOR'!AQ370","v":{"v":0,"d":"$0"}},null,{"v":0,"d":"$0.0"},{"v":0,"d":"0.0%"},{"$nulls":4},0]
[null,null,{"$f":"T('2 REPAIR ESTIMATOR'!D371:O371)","v":"Install railing w/ wood balusters only"},{"$nulls":3},{"$f":"'2 REPAIR ESTIMATOR'!AQ371","v":{"v":0,"d":"$0"}},null,{"v":0,"d":"$0.0"},{"v":0,"d":"0.0%"},{"$nulls":4},0]
[null,null,{"$f":"T('2 REPAIR ESTIMATOR'!D372:O372)","v":"Install railing w/ metal balusters only"},{"$nulls":3},{"$f":"'2 REPAIR ESTIMATOR'!AQ372","v":{"v":0,"d":"$0"}},null,{"v":0,"d":"$0.0"},{"v":0,"d":"0.0%"},{"$nulls":4},0]
[null,null,{"$f":"T('2 REPAIR ESTIMATOR'!D373:O373)","v":"Stairs, 5 to 7 risers"},{"$nulls":3},{"$f":"'2 REPAIR ESTIMATOR'!AQ373","v":{"v":0,"d":"$0"}},null,{"v":0,"d":"$0.0"},{"v":0,"d":"0.0%"},{"$nulls":4},0]
[null,null,{"$f":"T('2 REPAIR ESTIMATOR'!D374:O374)","v":"Wood board ceiling, tongue and groove"},{"$nulls":3},{"$f":"'2 REPAIR ESTIMATOR'!AQ374","v":{"v":0,"d":"$0"}},null,{"v":0,"d":"$0.0"},{"v":0,"d":"0.0%"},{"$nulls":4},0]
[null,null,{"$f":"T('2 REPAIR ESTIMATOR'!D375:O375)","v":"Insect screening"},{"$nulls":3},{"$f":"'2 REPAIR ESTIMATOR'!AQ375","v":{"v":0,"d":"$0"}},null,{"v":0,"d":"$0.0"},{"v":0,"d":"0.0%"},{"$nulls":4},0]
[null,null,{"$f":"T('2 REPAIR ESTIMATOR'!D376:O376)","v":""},{"$nulls":3},{"$f":"'2 REPAIR ESTIMATOR'!AQ376","v":{"v":0,"d":"$0"}},null,{"v":0,"d":"$0.0"},{"v":0,"d":"0.0%"},{"$nulls":4},0]
[null,null,{"$f":"T('2 REPAIR ESTIMATOR'!D377:O377)","v":""},{"$nulls":3},{"$f":"'2 REPAIR ESTIMATOR'!AQ377","v":{"v":0,"d":"$0"}},null,{"v":0,"d":"$0.0"},{"v":0,"d":"0.0%"},{"$nulls":4},0]
[null,null,{"$f":"T('2 REPAIR ESTIMATOR'!D378:O378)","v":""},{"$nulls":3},{"$f":"'2 REPAIR ESTIMATOR'!AQ378","v":{"v":0,"d":"$0"}},null,{"v":0,"d":"$0.0"},{"v":0,"d":"0.0%"},{"$nulls":4},0]
[null,null,{"$f":"T('2 REPAIR ESTIMATOR'!D379:O379)","v":""},{"$nulls":3},{"$f":"'2 REPAIR ESTIMATOR'!AQ379","v":{"v":0,"d":"$0"}},null,{"v":0,"d":"$0.0"},{"v":0,"d":"0.0%"},{"$nulls":4},0]
[null,null,{"$f":"T('2 REPAIR ESTIMATOR'!D380:O380)","v":""},{"$nulls":3},{"$f":"'2 REPAIR ESTIMATOR'!AQ380","v":{"v":0,"d":"$0"}},null,{"v":0,"d":"$0.0"},{"v":0,"d":"0.0%"},{"$nulls":4},0]
[null,null,{"$f":"T('2 REPAIR ESTIMATOR'!D381:O381)","v":""},{"$nulls":3},{"$f":"'2 REPAIR ESTIMATOR'!AQ381","v":{"v":0,"d":"$0"}},null,{"v":0,"d":"$0.0"},{"v":0,"d":"0.0%"},{"$nulls":4},0]
[null,null,{"$f":"T('2 REPAIR ESTIMATOR'!D382:O382)","v":""},{"$nulls":3},{"$f":"'2 REPAIR ESTIMATOR'!AQ382","v":{"v":0,"d":"$0"}},null,{"v":0,"d":"$0.0"},{"v":0,"d":"0.0%"},{"$nulls":4},0]
[null,null,{"$f":"T('2 REPAIR ESTIMATOR'!D383:O383)","v":""},{"$nulls":3},{"$f":"'2 REPAIR ESTIMATOR'!AQ383","v":{"v":0,"d":"$0"}},null,{"v":0,"d":"$0.0"},{"v":0,"d":"0.0%"},{"$nulls":4},0]
[null,null,{"$f":"T('2 REPAIR ESTIMATOR'!D384:O384)","v":""},{"$nulls":3},{"$f":"'2 REPAIR ESTIMATOR'!AQ384","v":{"v":0,"d":"$0"}},null,{"v":0,"d":"$0.0"},{"v":0,"d":"0.0%"},{"$nulls":4},0]
[null,null,{"$f":"T('2 REPAIR ESTIMATOR'!D385:O385)","v":""},{"$nulls":3},{"$f":"'2 REPAIR ESTIMATOR'!AQ385","v":{"v":0,"d":"$0"}},null,{"v":0,"d":"$0.0"},{"v":0,"d":"0.0%"},{"$nulls":4},0]
[null,null,{"$f":"T('2 REPAIR ESTIMATOR'!D386:O386)","v":""},{"$nulls":3},{"$f":"'2 REPAIR ESTIMATOR'!AQ386","v":{"v":0,"d":"$0"}},null,{"v":0,"d":"$0.0"},{"v":0,"d":"0.0%"},{"$nulls":4},0]
[null,null,{"$f":"T('2 REPAIR ESTIMATOR'!D387:O387)","v":""},{"$nulls":3},{"$f":"'2 REPAIR ESTIMATOR'!AQ387","v":{"v":0,"d":"$0"}},null,{"v":0,"d":"$0.0"},{"v":0,"d":"0.0%"},{"$nulls":4},0]
[null,null,{"$f":"T('2 REPAIR ESTIMATOR'!D388:O388)","v":""},{"$nulls":3},{"$f":"'2 REPAIR ESTIMATOR'!AQ388","v":{"v":0,"d":"$0"}},null,{"v":0,"d":"$0.0"},{"v":0,"d":"0.0%"},{"$nulls":4},0]
[null,null,{"$f":"T('2 REPAIR ESTIMATOR'!D389:O389)","v":""},{"$nulls":3},{"$f":"'2 REPAIR ESTIMATOR'!AQ389","v":{"v":0,"d":"$0"}},null,{"v":0,"d":"$0.0"},{"v":0,"d":"0.0%"},{"$nulls":4},0]
[null,null,{"$f":"T('2 REPAIR ESTIMATOR'!D390:O390)","v":""},{"$nulls":3},{"$f":"'2 REPAIR ESTIMATOR'!AQ390","v":{"v":0,"d":"$0"}},null,{"v":0,"d":"$0.0"},{"v":0,"d":"0.0%"},{"$nulls":4},0]
[null,null,{"$f":"T('2 REPAIR ESTIMATOR'!D391:O391)","v":""},{"$nulls":3},{"$f":"'2 REPAIR ESTIMATOR'!AQ391","v":{"v":0,"d":"$0"}},null,{"v":0,"d":"$0.0"},{"v":0,"d":"0.0%"},{"$nulls":4},0]
[null,null,{"$f":"T('2 REPAIR ESTIMATOR'!D392:O392)","v":""},{"$nulls":3},{"$f":"'2 REPAIR ESTIMATOR'!AQ392","v":{"v":0,"d":"$0"}},null,{"v":0,"d":"$0.0"},{"v":0,"d":"0.0%"},{"$nulls":4},0]
[null,null,{"$f":"T('2 REPAIR ESTIMATOR'!D393:O393)","v":""},{"$nulls":3},{"$f":"'2 REPAIR ESTIMATOR'!AQ393","v":{"v":0,"d":"$0"}},null,{"v":0,"d":"$0.0"},{"v":0,"d":"0.0%"},{"$nulls":4},0]
[null,null,{"$f":"T('2 REPAIR ESTIMATOR'!D394:O394)","v":""},{"$nulls":3},{"$f":"'2 REPAIR ESTIMATOR'!AQ394","v":{"v":0,"d":"$0"}},null,{"v":0,"d":"$0.0"},{"v":0,"d":"0.0%"},{"$nulls":4},0]
[null,null,{"$f":"T('2 REPAIR ESTIMATOR'!D395:O395)","v":""},{"$nulls":3},{"$f":"'2 REPAIR ESTIMATOR'!AQ395","v":{"v":0,"d":"$0"}},null,{"v":0,"d":"$0.0"},{"v":0,"d":"0.0%"},{"$nulls":4},0]
[null,null,{"$f":"T('2 REPAIR ESTIMATOR'!D396:O396)","v":""},{"$nulls":3},{"$f":"'2 REPAIR ESTIMATOR'!AQ396","v":{"v":0,"d":"$0"}},null,{"v":0,"d":"$0.0"},{"v":0,"d":"0.0%"},{"$nulls":4},0]
[null,null,{"$f":"T('2 REPAIR ESTIMATOR'!D397:O397)","v":""},{"$nulls":3},{"$f":"'2 REPAIR ESTIMATOR'!AQ397","v":{"v":0,"d":"$0"}},null,{"v":0,"d":"$0.0"},{"v":0,"d":"0.0%"},{"$nulls":4},0]
[null,null,{"$f":"T('2 REPAIR ESTIMATOR'!AC399)","v":"DECKING AND PATIOS TOTAL"},{"$nulls":3},{"$f":"SUM(G310:H349)","v":{"v":1071,"d":"$1,071"}},null,{"$f":"SUM(I310:I349)","v":{"v":0.714,"d":"$1"}},{"$f":"SUM(J310:J349)","v":{"v":7.6363636363636364E-3,"d":"0.8%"}},{"$nulls":4},{"$f":"SUM(O310:O349)","v":1}]
[{"$nulls":14},{"$f":"O350","v":1}]
[null,null,{"$f":"T('2 REPAIR ESTIMATOR'!D402:O402)","v":"ROOFING"},{"$nulls":11},{"$f":"SUM(O353:O392)","v":1}]
[null,null,{"$f":"T('2 REPAIR ESTIMATOR'!D403:O403)","v":"Roofing bid/allowance"},{"$nulls":3},{"$f":"'2 REPAIR ESTIMATOR'!AQ403","v":{"v":0,"d":"$0"}},null,{"$f":"IFERROR(G353/Property_Size,0)","v":{"v":0,"d":"$0.0"}},{"$f":"IFERROR(G353/Total_Project_Costs_Result,0)","v":{"v":0,"d":"0.0%"}},{"$nulls":4},{"$f":"IF(G353>0,1,0)","v":0}]
[null,null,{"$f":"T('2 REPAIR ESTIMATOR'!D404:O404)","v":"Asphalt shingle roof"},{"$nulls":3},{"$f":"'2 REPAIR ESTIMATOR'!AQ404","v":{"v":0,"d":"$0"}},null,{"v":0,"d":"$0.0"},{"v":0,"d":"0.0%"},{"$nulls":4},{"$f":"IF(G354>0,1,0)","v":0}]
[null,null,{"$f":"T('2 REPAIR ESTIMATOR'!D405:O405)","v":"Roof repair/patch, asphalt"},{"$nulls":3},{"$f":"'2 REPAIR ESTIMATOR'!AQ405","v":{"v":0,"d":"$0"}},null,{"v":0,"d":"$0.0"},{"v":0,"d":"0.0%"},{"$nulls":4},0]
[null,null,{"$f":"T('2 REPAIR ESTIMATOR'!D406:O406)","v":"Roof replacement-demo & replace, 3-tab"},{"$nulls":3},{"$f":"'2 REPAIR ESTIMATOR'!AQ406","v":{"v":0,"d":"$0"}},null,{"v":0,"d":"$0.0"},{"v":0,"d":"0.0%"},{"$nulls":4},0]
[null,null,{"$f":"T('2 REPAIR ESTIMATOR'!D407:O407)","v":"Roof replacement-demo & replace, architectural"},{"$nulls":3},{"$f":"'2 REPAIR ESTIMATOR'!AQ407","v":{"v":5461,"d":"$5,461"}},null,{"v":3.6406666666666667,"d":"$3.6"},{"v":0.038937611408199645,"d":"3.9%"},{"$nulls":4},1]
[null,null,{"$f":"T('2 REPAIR ESTIMATOR'!D408:O408)","v":"Premium for 3 layer tear off"},{"$nulls":3},{"$f":"'2 REPAIR ESTIMATOR'!AQ408","v":{"v":0,"d":"$0"}},null,{"v":0,"d":"$0.0"},{"v":0,"d":"0.0%"},{"$nulls":4},0]
[null,null,{"$f":"T('2 REPAIR ESTIMATOR'!D409:O409)","v":"Premium for steep pitch roof"},{"$nulls":3},{"$f":"'2 REPAIR ESTIMATOR'!AQ409","v":{"v":0,"d":"$0"}},null,{"v":0,"d":"$0.0"},{"v":0,"d":"0.0%"},{"$nulls":4},0]
[null,null,{"$f":"T('2 REPAIR ESTIMATOR'!D410:O410)","v":""},{"$nulls":3},{"$f":"'2 REPAIR ESTIMATOR'!AQ410","v":{"v":0,"d":"$0"}},null,{"v":0,"d":"$0.0"},{"v":0,"d":"0.0%"},{"$nulls":4},0]
[null,null,{"$f":"T('2 REPAIR ESTIMATOR'!D411:O411)","v":"Wood Shingle Roof"},{"$nulls":3},{"$f":"'2 REPAIR ESTIMATOR'!AQ411","v":{"v":0,"d":"$0"}},null,{"v":0,"d":"$0.0"},{"v":0,"d":"0.0%"},{"$nulls":4},0]
[null,null,{"$f":"T('2 REPAIR ESTIMATOR'!D412:O412)","v":"Roof repair/patch, wood"},{"$nulls":3},{"$f":"'2 REPAIR ESTIMATOR'!AQ412","v":{"v":0,"d":"$0"}},null,{"v":0,"d":"$0.0"},{"v":0,"d":"0.0%"},{"$nulls":4},0]
[null,null,{"$f":"T('2 REPAIR ESTIMATOR'!D413:O413)","v":"Roof replacement-demo & replace, 3-tab"},{"$nulls":3},{"$f":"'2 REPAIR ESTIMATOR'!AQ413","v":{"v":0,"d":"$0"}},null,{"v":0,"d":"$0.0"},{"v":0,"d":"0.0%"},{"$nulls":4},0]
[null,null,{"$f":"T('2 REPAIR ESTIMATOR'!D414:O414)","v":"Wood shingle, low end"},{"$nulls":3},{"$f":"'2 REPAIR ESTIMATOR'!AQ414","v":{"v":0,"d":"$0"}},null,{"v":0,"d":"$0.0"},{"v":0,"d":"0.0%"},{"$nulls":4},0]
[null,null,{"$f":"T('2 REPAIR ESTIMATOR'!D415:O415)","v":"Wood shingle, high end"},{"$nulls":3},{"$f":"'2 REPAIR ESTIMATOR'!AQ415","v":{"v":0,"d":"$0"}},null,{"v":0,"d":"$0.0"},{"v":0,"d":"0.0%"},{"$nulls":4},0]
[null,null,{"$f":"T('2 REPAIR ESTIMATOR'!D416:O416)","v":"Roof sheathing, plywood 1/2\", remove & install"},{"$nulls":3},{"$f":"'2 REPAIR ESTIMATOR'!AQ416","v":{"v":0,"d":"$0"}},null,{"v":0,"d":"$0.0"},{"v":0,"d":"0.0%"},{"$nulls":4},0]
[null,null,{"$f":"T('2 REPAIR ESTIMATOR'!D417:O417)","v":""},{"$nulls":3},{"$f":"'2 REPAIR ESTIMATOR'!AQ417","v":{"v":0,"d":"$0"}},null,{"v":0,"d":"$0.0"},{"v":0,"d":"0.0%"},{"$nulls":4},0]
[null,null,{"$f":"T('2 REPAIR ESTIMATOR'!D418:O418)","v":"Slate/Clay Tile"},{"$nulls":3},{"$f":"'2 REPAIR ESTIMATOR'!AQ418","v":{"v":0,"d":"$0"}},null,{"v":0,"d":"$0.0"},{"v":0,"d":"0.0%"},{"$nulls":4},0]
[null,null,{"$f":"T('2 REPAIR ESTIMATOR'!D419:O419)","v":"Roof replacement-demo & replace, slate"},{"$nulls":3},{"$f":"'2 REPAIR ESTIMATOR'!AQ419","v":{"v":0,"d":"$0"}},null,{"v":0,"d":"$0.0"},{"v":0,"d":"0.0%"},{"$nulls":4},0]
[null,null,{"$f":"T('2 REPAIR ESTIMATOR'!D420:O420)","v":""},{"$nulls":3},{"$f":"'2 REPAIR ESTIMATOR'!AQ420","v":{"v":0,"d":"$0"}},null,{"v":0,"d":"$0.0"},{"v":0,"d":"0.0%"},{"$nulls":4},0]
[null,null,{"$f":"T('2 REPAIR ESTIMATOR'!D421:O421)","v":"Gutters & downspouts, aluminum"},{"$nulls":3},{"$f":"'2 REPAIR ESTIMATOR'!AQ421","v":{"v":0,"d":"$0"}},null,{"v":0,"d":"$0.0"},{"v":0,"d":"0.0%"},{"$nulls":4},0]
[null,null,{"$f":"T('2 REPAIR ESTIMATOR'!D422:O422)","v":"Clean gutters & downspouts"},{"$nulls":3},{"$f":"'2 REPAIR ESTIMATOR'!AQ422","v":{"v":0,"d":"$0"}},null,{"v":0,"d":"$0.0"},{"v":0,"d":"0.0%"},{"$nulls":4},0]
[null,null,{"$f":"T('2 REPAIR ESTIMATOR'!D423:O423)","v":""},{"$nulls":3},{"$f":"'2 REPAIR ESTIMATOR'!AQ423","v":{"v":0,"d":"$0"}},null,{"v":0,"d":"$0.0"},{"v":0,"d":"0.0%"},{"$nulls":4},0]
[null,null,{"$f":"T('2 REPAIR ESTIMATOR'!D424:O424)","v":""},{"$nulls":3},{"$f":"'2 REPAIR ESTIMATOR'!AQ424","v":{"v":0,"d":"$0"}},null,{"v":0,"d":"$0.0"},{"v":0,"d":"0.0%"},{"$nulls":4},0]
[null,null,{"$f":"T('2 REPAIR ESTIMATOR'!D425:O425)","v":""},{"$nulls":3},{"$f":"'2 REPAIR ESTIMATOR'!AQ425","v":{"v":0,"d":"$0"}},null,{"v":0,"d":"$0.0"},{"v":0,"d":"0.0%"},{"$nulls":4},0]
[null,null,{"$f":"T('2 REPAIR ESTIMATOR'!D426:O426)","v":""},{"$nulls":3},{"$f":"'2 REPAIR ESTIMATOR'!AQ426","v":{"v":0,"d":"$0"}},null,{"v":0,"d":"$0.0"},{"v":0,"d":"0.0%"},{"$nulls":4},0]
[null,null,{"$f":"T('2 REPAIR ESTIMATOR'!D427:O427)","v":""},{"$nulls":3},{"$f":"'2 REPAIR ESTIMATOR'!AQ427","v":{"v":0,"d":"$0"}},null,{"v":0,"d":"$0.0"},{"v":0,"d":"0.0%"},{"$nulls":4},0]
[null,null,{"$f":"T('2 REPAIR ESTIMATOR'!D428:O428)","v":""},{"$nulls":3},{"$f":"'2 REPAIR ESTIMATOR'!AQ428","v":{"v":0,"d":"$0"}},null,{"v":0,"d":"$0.0"},{"v":0,"d":"0.0%"},{"$nulls":4},0]
[null,null,{"$f":"T('2 REPAIR ESTIMATOR'!D429:O429)","v":""},{"$nulls":3},{"$f":"'2 REPAIR ESTIMATOR'!AQ429","v":{"v":0,"d":"$0"}},null,{"v":0,"d":"$0.0"},{"v":0,"d":"0.0%"},{"$nulls":4},0]
[null,null,{"$f":"T('2 REPAIR ESTIMATOR'!D430:O430)","v":""},{"$nulls":3},{"$f":"'2 REPAIR ESTIMATOR'!AQ430","v":{"v":0,"d":"$0"}},null,{"v":0,"d":"$0.0"},{"v":0,"d":"0.0%"},{"$nulls":4},0]
[null,null,{"$f":"T('2 REPAIR ESTIMATOR'!D431:O431)","v":""},{"$nulls":3},{"$f":"'2 REPAIR ESTIMATOR'!AQ431","v":{"v":0,"d":"$0"}},null,{"v":0,"d":"$0.0"},{"v":0,"d":"0.0%"},{"$nulls":4},0]
[null,null,{"$f":"T('2 REPAIR ESTIMATOR'!D432:O432)","v":""},{"$nulls":3},{"$f":"'2 REPAIR ESTIMATOR'!AQ432","v":{"v":0,"d":"$0"}},null,{"v":0,"d":"$0.0"},{"v":0,"d":"0.0%"},{"$nulls":4},0]
[null,null,{"$f":"T('2 REPAIR ESTIMATOR'!D433:O433)","v":""},{"$nulls":3},{"$f":"'2 REPAIR ESTIMATOR'!AQ433","v":{"v":0,"d":"$0"}},null,{"v":0,"d":"$0.0"},{"v":0,"d":"0.0%"},{"$nulls":4},0]
[null,null,{"$f":"T('2 REPAIR ESTIMATOR'!D434:O434)","v":""},{"$nulls":3},{"$f":"'2 REPAIR ESTIMATOR'!AQ434","v":{"v":0,"d":"$0"}},null,{"v":0,"d":"$0.0"},{"v":0,"d":"0.0%"},{"$nulls":4},0]
[null,null,{"$f":"T('2 REPAIR ESTIMATOR'!D435:O435)","v":""},{"$nulls":3},{"$f":"'2 REPAIR ESTIMATOR'!AQ435","v":{"v":0,"d":"$0"}},null,{"v":0,"d":"$0.0"},{"v":0,"d":"0.0%"},{"$nulls":4},0]
[null,null,{"$f":"T('2 REPAIR ESTIMATOR'!D436:O436)","v":""},{"$nulls":3},{"$f":"'2 REPAIR ESTIMATOR'!AQ436","v":{"v":0,"d":"$0"}},null,{"v":0,"d":"$0.0"},{"v":0,"d":"0.0%"},{"$nulls":4},0]
[null,null,{"$f":"T('2 REPAIR ESTIMATOR'!D437:O437)","v":""},{"$nulls":3},{"$f":"'2 REPAIR ESTIMATOR'!AQ437","v":{"v":0,"d":"$0"}},null,{"v":0,"d":"$0.0"},{"v":0,"d":"0.0%"},{"$nulls":4},0]
[null,null,{"$f":"T('2 REPAIR ESTIMATOR'!D438:O438)","v":""},{"$nulls":3},{"$f":"'2 REPAIR ESTIMATOR'!AQ438","v":{"v":0,"d":"$0"}},null,{"v":0,"d":"$0.0"},{"v":0,"d":"0.0%"},{"$nulls":4},0]
[null,null,{"$f":"T('2 REPAIR ESTIMATOR'!D439:O439)","v":""},{"$nulls":3},{"$f":"'2 REPAIR ESTIMATOR'!AQ439","v":{"v":0,"d":"$0"}},null,{"v":0,"d":"$0.0"},{"v":0,"d":"0.0%"},{"$nulls":4},0]
[null,null,{"$f":"T('2 REPAIR ESTIMATOR'!D440:O440)","v":""},{"$nulls":3},{"$f":"'2 REPAIR ESTIMATOR'!AQ440","v":{"v":0,"d":"$0"}},null,{"v":0,"d":"$0.0"},{"v":0,"d":"0.0%"},{"$nulls":4},0]
[null,null,{"$f":"T('2 REPAIR ESTIMATOR'!D441:O441)","v":""},{"$nulls":3},{"$f":"'2 REPAIR ESTIMATOR'!AQ441","v":{"v":0,"d":"$0"}},null,{"v":0,"d":"$0.0"},{"v":0,"d":"0.0%"},{"$nulls":4},0]
[null,null,{"$f":"T('2 REPAIR ESTIMATOR'!D442:O442)","v":""},{"$nulls":3},{"$f":"'2 REPAIR ESTIMATOR'!AQ442","v":{"v":0,"d":"$0"}},null,{"v":0,"d":"$0.0"},{"v":0,"d":"0.0%"},{"$nulls":4},0]
[null,null,{"$f":"T('2 REPAIR ESTIMATOR'!AC444)","v":"ROOFING TOTAL"},{"$nulls":3},{"$f":"SUM(G353:H392)","v":{"v":5461,"d":"$5,461"}},null,{"$f":"SUM(I353:I392)","v":{"v":3.6406666666666667,"d":"$4"}},{"$f":"SUM(J353:J392)","v":{"v":0.038937611408199645,"d":"3.9%"}},{"$nulls":4},{"$f":"SUM(O353:O392)","v":1}]
[{"$nulls":14},{"$f":"O393","v":1}]
[null,null,{"$f":"T('2 REPAIR ESTIMATOR'!D447:O447)","v":"EXTERIOR DOORS & WINDOWS"},{"$nulls":11},{"$f":"SUM(O396:O435)","v":4}]
[null,null,{"$f":"T('2 REPAIR ESTIMATOR'!D448:O448)","v":"Exterior Doors"},{"$nulls":3},{"$f":"'2 REPAIR ESTIMATOR'!AQ448","v":{"v":0,"d":"$0"}},null,{"$f":"IFERROR(G396/Property_Size,0)","v":{"v":0,"d":"$0.0"}},{"$f":"IFERROR(G396/Total_Project_Costs_Result,0)","v":{"v":0,"d":"0.0%"}},{"$nulls":4},{"$f":"IF(G396>0,1,0)","v":0}]
[null,null,{"$f":"T('2 REPAIR ESTIMATOR'!D449:O449)","v":"Exterior doors bid/allowance"},{"$nulls":3},{"$f":"'2 REPAIR ESTIMATOR'!AQ449","v":{"v":0,"d":"$0"}},null,{"v":0,"d":"$0.0"},{"v":0,"d":"0.0%"},{"$nulls":4},{"$f":"IF(G397>0,1,0)","v":0}]
[null,null,{"$f":"T('2 REPAIR ESTIMATOR'!D450:O450)","v":"Steel entry door,  single"},{"$nulls":3},{"$f":"'2 REPAIR ESTIMATOR'!AQ450","v":{"v":1402.5,"d":"$1,403"}},null,{"v":0.935,"d":"$0.9"},{"v":0.01,"d":"1.0%"},{"$nulls":4},1]
[null,null,{"$f":"T('2 REPAIR ESTIMATOR'!D451:O451)","v":"French patio door, pair"},{"$nulls":3},{"$f":"'2 REPAIR ESTIMATOR'!AQ451","v":{"v":0,"d":"$0"}},null,{"v":0,"d":"$0.0"},{"v":0,"d":"0.0%"},{"$nulls":4},0]
[null,null,{"$f":"T('2 REPAIR ESTIMATOR'!D452:O452)","v":"Exterior door hardware w/ dead bolt "},{"$nulls":3},{"$f":"'2 REPAIR ESTIMATOR'!AQ452","v":{"v":155.25,"d":"$155"}},null,{"v":0.1035,"d":"$0.1"},{"v":0.001106951871657754,"d":"0.1%"},{"$nulls":4},1]
[null,null,{"$f":"T('2 REPAIR ESTIMATOR'!D453:O453)","v":"Glass storm door, single"},{"$nulls":3},{"$f":"'2 REPAIR ESTIMATOR'!AQ453","v":{"v":392.5,"d":"$393"}},null,{"v":0.26166666666666666,"d":"$0.3"},{"v":2.7985739750445633E-3,"d":"0.3%"},{"$nulls":4},1]
[null,null,{"$f":"T('2 REPAIR ESTIMATOR'!D454:O454)","v":"Sliding glass door, vinyl, double"},{"$nulls":3},{"$f":"'2 REPAIR ESTIMATOR'!AQ454","v":{"v":0,"d":"$0"}},null,{"v":0,"d":"$0.0"},{"v":0,"d":"0.0%"},{"$nulls":4},0]
[null,null,{"$f":"T('2 REPAIR ESTIMATOR'!D455:O455)","v":""},{"$nulls":3},{"$f":"'2 REPAIR ESTIMATOR'!AQ455","v":{"v":0,"d":"$0"}},null,{"v":0,"d":"$0.0"},{"v":0,"d":"0.0%"},{"$nulls":4},0]
[null,null,{"$f":"T('2 REPAIR ESTIMATOR'!D456:O456)","v":""},{"$nulls":3},{"$f":"'2 REPAIR ESTIMATOR'!AQ456","v":{"v":0,"d":"$0"}},null,{"v":0,"d":"$0.0"},{"v":0,"d":"0.0%"},{"$nulls":4},0]
[null,null,{"$f":"T('2 REPAIR ESTIMATOR'!D457:O457)","v":"Windows"},{"$nulls":3},{"$f":"'2 REPAIR ESTIMATOR'!AQ457","v":{"v":0,"d":"$0"}},null,{"v":0,"d":"$0.0"},{"v":0,"d":"0.0%"},{"$nulls":4},0]
[null,null,{"$f":"T('2 REPAIR ESTIMATOR'!D458:O458)","v":"New windows, vinyl, average size"},{"$nulls":3},{"$f":"'2 REPAIR ESTIMATOR'!AQ458","v":{"v":2884.75,"d":"$2,885"}},null,{"v":1.9231666666666667,"d":"$1.9"},{"v":0.02056862745098039,"d":"2.1%"},{"$nulls":4},1]
[null,null,{"$f":"T('2 REPAIR ESTIMATOR'!D459:O459)","v":"Replacement windows, vinyl, average size"},{"$nulls":3},{"$f":"'2 REPAIR ESTIMATOR'!AQ459","v":{"v":0,"d":"$0"}},null,{"v":0,"d":"$0.0"},{"v":0,"d":"0.0%"},{"$nulls":4},0]
[null,null,{"$f":"T('2 REPAIR ESTIMATOR'!D460:O460)","v":"Wood windows, average size"},{"$nulls":3},{"$f":"'2 REPAIR ESTIMATOR'!AQ460","v":{"v":0,"d":"$0"}},null,{"v":0,"d":"$0.0"},{"v":0,"d":"0.0%"},{"$nulls":4},0]
[null,null,{"$f":"T('2 REPAIR ESTIMATOR'!D461:O461)","v":"Replace broken window pane"},{"$nulls":3},{"$f":"'2 REPAIR ESTIMATOR'!AQ461","v":{"v":0,"d":"$0"}},null,{"v":0,"d":"$0.0"},{"v":0,"d":"0.0%"},{"$nulls":4},0]
[null,null,{"$f":"T('2 REPAIR ESTIMATOR'!D462:O462)","v":"Replace broken screens"},{"$nulls":3},{"$f":"'2 REPAIR ESTIMATOR'!AQ462","v":{"v":0,"d":"$0"}},null,{"v":0,"d":"$0.0"},{"v":0,"d":"0.0%"},{"$nulls":4},0]
[null,null,{"$f":"T('2 REPAIR ESTIMATOR'!D463:O463)","v":"Repair broken screens"},{"$nulls":3},{"$f":"'2 REPAIR ESTIMATOR'!AQ463","v":{"v":0,"d":"$0"}},null,{"v":0,"d":"$0.0"},{"v":0,"d":"0.0%"},{"$nulls":4},0]
[null,null,{"$f":"T('2 REPAIR ESTIMATOR'!D464:O464)","v":"Skylight, 3x3, fixed"},{"$nulls":3},{"$f":"'2 REPAIR ESTIMATOR'!AQ464","v":{"v":0,"d":"$0"}},null,{"v":0,"d":"$0.0"},{"v":0,"d":"0.0%"},{"$nulls":4},0]
[null,null,{"$f":"T('2 REPAIR ESTIMATOR'!D465:O465)","v":"Skylight, operable"},{"$nulls":3},{"$f":"'2 REPAIR ESTIMATOR'!AQ465","v":{"v":0,"d":"$0"}},null,{"v":0,"d":"$0.0"},{"v":0,"d":"0.0%"},{"$nulls":4},0]
[null,null,{"$f":"T('2 REPAIR ESTIMATOR'!D466:O466)","v":""},{"$nulls":3},{"$f":"'2 REPAIR ESTIMATOR'!AQ466","v":{"v":0,"d":"$0"}},null,{"v":0,"d":"$0.0"},{"v":0,"d":"0.0%"},{"$nulls":4},0]
[null,null,{"$f":"T('2 REPAIR ESTIMATOR'!D467:O467)","v":""},{"$nulls":3},{"$f":"'2 REPAIR ESTIMATOR'!AQ467","v":{"v":0,"d":"$0"}},null,{"v":0,"d":"$0.0"},{"v":0,"d":"0.0%"},{"$nulls":4},0]
[null,null,{"$f":"T('2 REPAIR ESTIMATOR'!D468:O468)","v":""},{"$nulls":3},{"$f":"'2 REPAIR ESTIMATOR'!AQ468","v":{"v":0,"d":"$0"}},null,{"v":0,"d":"$0.0"},{"v":0,"d":"0.0%"},{"$nulls":4},0]
[null,null,{"$f":"T('2 REPAIR ESTIMATOR'!D469:O469)","v":""},{"$nulls":3},{"$f":"'2 REPAIR ESTIMATOR'!AQ469","v":{"v":0,"d":"$0"}},null,{"v":0,"d":"$0.0"},{"v":0,"d":"0.0%"},{"$nulls":4},0]
[null,null,{"$f":"T('2 REPAIR ESTIMATOR'!D470:O470)","v":""},{"$nulls":3},{"$f":"'2 REPAIR ESTIMATOR'!AQ470","v":{"v":0,"d":"$0"}},null,{"v":0,"d":"$0.0"},{"v":0,"d":"0.0%"},{"$nulls":4},0]
[null,null,{"$f":"T('2 REPAIR ESTIMATOR'!D471:O471)","v":""},{"$nulls":3},{"$f":"'2 REPAIR ESTIMATOR'!AQ471","v":{"v":0,"d":"$0"}},null,{"v":0,"d":"$0.0"},{"v":0,"d":"0.0%"},{"$nulls":4},0]
[null,null,{"$f":"T('2 REPAIR ESTIMATOR'!D472:O472)","v":""},{"$nulls":3},{"$f":"'2 REPAIR ESTIMATOR'!AQ472","v":{"v":0,"d":"$0"}},null,{"v":0,"d":"$0.0"},{"v":0,"d":"0.0%"},{"$nulls":4},0]
[null,null,{"$f":"T('2 REPAIR ESTIMATOR'!D473:O473)","v":""},{"$nulls":3},{"$f":"'2 REPAIR ESTIMATOR'!AQ473","v":{"v":0,"d":"$0"}},null,{"v":0,"d":"$0.0"},{"v":0,"d":"0.0%"},{"$nulls":4},0]
[null,null,{"$f":"T('2 REPAIR ESTIMATOR'!D474:O474)","v":""},{"$nulls":3},{"$f":"'2 REPAIR ESTIMATOR'!AQ474","v":{"v":0,"d":"$0"}},null,{"v":0,"d":"$0.0"},{"v":0,"d":"0.0%"},{"$nulls":4},0]
[null,null,{"$f":"T('2 REPAIR ESTIMATOR'!D475:O475)","v":""},{"$nulls":3},{"$f":"'2 REPAIR ESTIMATOR'!AQ475","v":{"v":0,"d":"$0"}},null,{"v":0,"d":"$0.0"},{"v":0,"d":"0.0%"},{"$nulls":4},0]
[null,null,{"$f":"T('2 REPAIR ESTIMATOR'!D476:O476)","v":""},{"$nulls":3},{"$f":"'2 REPAIR ESTIMATOR'!AQ476","v":{"v":0,"d":"$0"}},null,{"v":0,"d":"$0.0"},{"v":0,"d":"0.0%"},{"$nulls":4},0]
[null,null,{"$f":"T('2 REPAIR ESTIMATOR'!D477:O477)","v":""},{"$nulls":3},{"$f":"'2 REPAIR ESTIMATOR'!AQ477","v":{"v":0,"d":"$0"}},null,{"v":0,"d":"$0.0"},{"v":0,"d":"0.0%"},{"$nulls":4},0]
[null,null,{"$f":"T('2 REPAIR ESTIMATOR'!D478:O478)","v":""},{"$nulls":3},{"$f":"'2 REPAIR ESTIMATOR'!AQ478","v":{"v":0,"d":"$0"}},null,{"v":0,"d":"$0.0"},{"v":0,"d":"0.0%"},{"$nulls":4},0]
[null,null,{"$f":"T('2 REPAIR ESTIMATOR'!D479:O479)","v":""},{"$nulls":3},{"$f":"'2 REPAIR ESTIMATOR'!AQ479","v":{"v":0,"d":"$0"}},null,{"v":0,"d":"$0.0"},{"v":0,"d":"0.0%"},{"$nulls":4},0]
[null,null,{"$f":"T('2 REPAIR ESTIMATOR'!D480:O480)","v":""},{"$nulls":3},{"$f":"'2 REPAIR ESTIMATOR'!AQ480","v":{"v":0,"d":"$0"}},null,{"v":0,"d":"$0.0"},{"v":0,"d":"0.0%"},{"$nulls":4},0]
[null,null,{"$f":"T('2 REPAIR ESTIMATOR'!D481:O481)","v":""},{"$nulls":3},{"$f":"'2 REPAIR ESTIMATOR'!AQ481","v":{"v":0,"d":"$0"}},null,{"v":0,"d":"$0.0"},{"v":0,"d":"0.0%"},{"$nulls":4},0]
[null,null,{"$f":"T('2 REPAIR ESTIMATOR'!D482:O482)","v":""},{"$nulls":3},{"$f":"'2 REPAIR ESTIMATOR'!AQ482","v":{"v":0,"d":"$0"}},null,{"v":0,"d":"$0.0"},{"v":0,"d":"0.0%"},{"$nulls":4},0]
[null,null,{"$f":"T('2 REPAIR ESTIMATOR'!D483:O483)","v":""},{"$nulls":3},{"$f":"'2 REPAIR ESTIMATOR'!AQ483","v":{"v":0,"d":"$0"}},null,{"v":0,"d":"$0.0"},{"v":0,"d":"0.0%"},{"$nulls":4},0]
[null,null,{"$f":"T('2 REPAIR ESTIMATOR'!D484:O484)","v":""},{"$nulls":3},{"$f":"'2 REPAIR ESTIMATOR'!AQ484","v":{"v":0,"d":"$0"}},null,{"v":0,"d":"$0.0"},{"v":0,"d":"0.0%"},{"$nulls":4},0]
[null,null,{"$f":"T('2 REPAIR ESTIMATOR'!D485:O485)","v":""},{"$nulls":3},{"$f":"'2 REPAIR ESTIMATOR'!AQ485","v":{"v":0,"d":"$0"}},null,{"v":0,"d":"$0.0"},{"v":0,"d":"0.0%"},{"$nulls":4},0]
[null,null,{"$f":"T('2 REPAIR ESTIMATOR'!D486:O486)","v":""},{"$nulls":3},{"$f":"'2 REPAIR ESTIMATOR'!AQ486","v":{"v":0,"d":"$0"}},null,{"v":0,"d":"$0.0"},{"v":0,"d":"0.0%"},{"$nulls":4},0]
[null,null,{"$f":"T('2 REPAIR ESTIMATOR'!D487:O487)","v":""},{"$nulls":3},{"$f":"'2 REPAIR ESTIMATOR'!AQ487","v":{"v":0,"d":"$0"}},null,{"v":0,"d":"$0.0"},{"v":0,"d":"0.0%"},{"$nulls":4},0]
[null,null,{"$f":"T('2 REPAIR ESTIMATOR'!AC489)","v":"EXTERIOR DOORS & WINDOWS TOTAL"},{"$nulls":3},{"$f":"SUM(G396:H435)","v":{"v":4835,"d":"$4,835"}},null,{"$f":"SUM(I396:I435)","v":{"v":3.2233333333333336,"d":"$3"}},{"$f":"SUM(J396:J435)","v":{"v":0.034474153297682705,"d":"3.4%"}},{"$nulls":4},{"$f":"SUM(O396:O435)","v":4}]
[{"$nulls":14},{"$f":"O436","v":4}]
[null,null,{"$f":"T('2 REPAIR ESTIMATOR'!D492:O492)","v":"GARAGE DOORS"},{"$nulls":11},{"$f":"SUM(O439:O478)","v":2}]
[null,null,{"$f":"T('2 REPAIR ESTIMATOR'!D493:O493)","v":"Garage Doors Bid/Allowance"},{"$nulls":3},{"$f":"'2 REPAIR ESTIMATOR'!AQ493","v":{"v":0,"d":"$0"}},null,{"$f":"IFERROR(G439/Property_Size,0)","v":{"v":0,"d":"$0.0"}},{"$f":"IFERROR(G439/Total_Project_Costs_Result,0)","v":{"v":0,"d":"0.0%"}},{"$nulls":4},{"$f":"IF(G439>0,1,0)","v":0}]
[null,null,{"$f":"T('2 REPAIR ESTIMATOR'!D494:O494)","v":"Garage Doors Only- 9'x7'  door, manual"},{"$nulls":3},{"$f":"'2 REPAIR ESTIMATOR'!AQ494","v":{"v":0,"d":"$0"}},null,{"v":0,"d":"$0.0"},{"v":0,"d":"0.0%"},{"$nulls":4},{"$f":"IF(G440>0,1,0)","v":0}]
[null,null,{"$f":"T('2 REPAIR ESTIMATOR'!D495:O495)","v":"Garage Doors Only- 16' door, manual"},{"$nulls":3},{"$f":"'2 REPAIR ESTIMATOR'!AQ495","v":{"v":1102.5,"d":"$1,103"}},null,{"v":0.735,"d":"$0.7"},{"v":0.007860962566844919,"d":"0.8%"},{"$nulls":4},1]
[null,null,{"$f":"T('2 REPAIR ESTIMATOR'!D496:O496)","v":"Garage Door Operator only"},{"$nulls":3},{"$f":"'2 REPAIR ESTIMATOR'!AQ496","v":{"v":260.5,"d":"$261"}},null,{"v":0.17366666666666666,"d":"$0.2"},{"v":0.001857397504456328,"d":"0.2%"},{"$nulls":4},1]
[null,null,{"$f":"T('2 REPAIR ESTIMATOR'!D497:O497)","v":"Replace springs for garage door"},{"$nulls":3},{"$f":"'2 REPAIR ESTIMATOR'!AQ497","v":{"v":0,"d":"$0"}},null,{"v":0,"d":"$0.0"},{"v":0,"d":"0.0%"},{"$nulls":4},0]
[null,null,{"$f":"T('2 REPAIR ESTIMATOR'!D498:O498)","v":""},{"$nulls":3},{"$f":"'2 REPAIR ESTIMATOR'!AQ498","v":{"v":0,"d":"$0"}},null,{"v":0,"d":"$0.0"},{"v":0,"d":"0.0%"},{"$nulls":4},0]
[null,null,{"$f":"T('2 REPAIR ESTIMATOR'!D499:O499)","v":""},{"$nulls":3},{"$f":"'2 REPAIR ESTIMATOR'!AQ499","v":{"v":0,"d":"$0"}},null,{"v":0,"d":"$0.0"},{"v":0,"d":"0.0%"},{"$nulls":4},0]
[null,null,{"$f":"T('2 REPAIR ESTIMATOR'!D500:O500)","v":""},{"$nulls":3},{"$f":"'2 REPAIR ESTIMATOR'!AQ500","v":{"v":0,"d":"$0"}},null,{"v":0,"d":"$0.0"},{"v":0,"d":"0.0%"},{"$nulls":4},0]
[null,null,{"$f":"T('2 REPAIR ESTIMATOR'!D501:O501)","v":""},{"$nulls":3},{"$f":"'2 REPAIR ESTIMATOR'!AQ501","v":{"v":0,"d":"$0"}},null,{"v":0,"d":"$0.0"},{"v":0,"d":"0.0%"},{"$nulls":4},0]
[null,null,{"$f":"T('2 REPAIR ESTIMATOR'!D502:O502)","v":""},{"$nulls":3},{"$f":"'2 REPAIR ESTIMATOR'!AQ502","v":{"v":0,"d":"$0"}},null,{"v":0,"d":"$0.0"},{"v":0,"d":"0.0%"},{"$nulls":4},0]
[null,null,{"$f":"T('2 REPAIR ESTIMATOR'!D503:O503)","v":""},{"$nulls":3},{"$f":"'2 REPAIR ESTIMATOR'!AQ503","v":{"v":0,"d":"$0"}},null,{"v":0,"d":"$0.0"},{"v":0,"d":"0.0%"},{"$nulls":4},0]
[null,null,{"$f":"T('2 REPAIR ESTIMATOR'!D504:O504)","v":""},{"$nulls":3},{"$f":"'2 REPAIR ESTIMATOR'!AQ504","v":{"v":0,"d":"$0"}},null,{"v":0,"d":"$0.0"},{"v":0,"d":"0.0%"},{"$nulls":4},0]
[null,null,{"$f":"T('2 REPAIR ESTIMATOR'!D505:O505)","v":""},{"$nulls":3},{"$f":"'2 REPAIR ESTIMATOR'!AQ505","v":{"v":0,"d":"$0"}},null,{"v":0,"d":"$0.0"},{"v":0,"d":"0.0%"},{"$nulls":4},0]
[null,null,{"$f":"T('2 REPAIR ESTIMATOR'!D506:O506)","v":""},{"$nulls":3},{"$f":"'2 REPAIR ESTIMATOR'!AQ506","v":{"v":0,"d":"$0"}},null,{"v":0,"d":"$0.0"},{"v":0,"d":"0.0%"},{"$nulls":4},0]
[null,null,{"$f":"T('2 REPAIR ESTIMATOR'!D507:O507)","v":""},{"$nulls":3},{"$f":"'2 REPAIR ESTIMATOR'!AQ507","v":{"v":0,"d":"$0"}},null,{"v":0,"d":"$0.0"},{"v":0,"d":"0.0%"},{"$nulls":4},0]
[null,null,{"$f":"T('2 REPAIR ESTIMATOR'!D508:O508)","v":""},{"$nulls":3},{"$f":"'2 REPAIR ESTIMATOR'!AQ508","v":{"v":0,"d":"$0"}},null,{"v":0,"d":"$0.0"},{"v":0,"d":"0.0%"},{"$nulls":4},0]
[null,null,{"$f":"T('2 REPAIR ESTIMATOR'!D509:O509)","v":""},{"$nulls":3},{"$f":"'2 REPAIR ESTIMATOR'!AQ509","v":{"v":0,"d":"$0"}},null,{"v":0,"d":"$0.0"},{"v":0,"d":"0.0%"},{"$nulls":4},0]
[null,null,{"$f":"T('2 REPAIR ESTIMATOR'!D510:O510)","v":""},{"$nulls":3},{"$f":"'2 REPAIR ESTIMATOR'!AQ510","v":{"v":0,"d":"$0"}},null,{"v":0,"d":"$0.0"},{"v":0,"d":"0.0%"},{"$nulls":4},0]
[null,null,{"$f":"T('2 REPAIR ESTIMATOR'!D511:O511)","v":""},{"$nulls":3},{"$f":"'2 REPAIR ESTIMATOR'!AQ511","v":{"v":0,"d":"$0"}},null,{"v":0,"d":"$0.0"},{"v":0,"d":"0.0%"},{"$nulls":4},0]
[null,null,{"$f":"T('2 REPAIR ESTIMATOR'!D512:O512)","v":""},{"$nulls":3},{"$f":"'2 REPAIR ESTIMATOR'!AQ512","v":{"v":0,"d":"$0"}},null,{"v":0,"d":"$0.0"},{"v":0,"d":"0.0%"},{"$nulls":4},0]
[null,null,{"$f":"T('2 REPAIR ESTIMATOR'!D513:O513)","v":""},{"$nulls":3},{"$f":"'2 REPAIR ESTIMATOR'!AQ513","v":{"v":0,"d":"$0"}},null,{"v":0,"d":"$0.0"},{"v":0,"d":"0.0%"},{"$nulls":4},0]
[null,null,{"$f":"T('2 REPAIR ESTIMATOR'!D514:O514)","v":""},{"$nulls":3},{"$f":"'2 REPAIR ESTIMATOR'!AQ514","v":{"v":0,"d":"$0"}},null,{"v":0,"d":"$0.0"},{"v":0,"d":"0.0%"},{"$nulls":4},0]
[null,null,{"$f":"T('2 REPAIR ESTIMATOR'!D515:O515)","v":""},{"$nulls":3},{"$f":"'2 REPAIR ESTIMATOR'!AQ515","v":{"v":0,"d":"$0"}},null,{"v":0,"d":"$0.0"},{"v":0,"d":"0.0%"},{"$nulls":4},0]
[null,null,{"$f":"T('2 REPAIR ESTIMATOR'!D516:O516)","v":""},{"$nulls":3},{"$f":"'2 REPAIR ESTIMATOR'!AQ516","v":{"v":0,"d":"$0"}},null,{"v":0,"d":"$0.0"},{"v":0,"d":"0.0%"},{"$nulls":4},0]
[null,null,{"$f":"T('2 REPAIR ESTIMATOR'!D517:O517)","v":""},{"$nulls":3},{"$f":"'2 REPAIR ESTIMATOR'!AQ517","v":{"v":0,"d":"$0"}},null,{"v":0,"d":"$0.0"},{"v":0,"d":"0.0%"},{"$nulls":4},0]
[null,null,{"$f":"T('2 REPAIR ESTIMATOR'!D518:O518)","v":""},{"$nulls":3},{"$f":"'2 REPAIR ESTIMATOR'!AQ518","v":{"v":0,"d":"$0"}},null,{"v":0,"d":"$0.0"},{"v":0,"d":"0.0%"},{"$nulls":4},0]
[null,null,{"$f":"T('2 REPAIR ESTIMATOR'!D519:O519)","v":""},{"$nulls":3},{"$f":"'2 REPAIR ESTIMATOR'!AQ519","v":{"v":0,"d":"$0"}},null,{"v":0,"d":"$0.0"},{"v":0,"d":"0.0%"},{"$nulls":4},0]
[null,null,{"$f":"T('2 REPAIR ESTIMATOR'!D520:O520)","v":""},{"$nulls":3},{"$f":"'2 REPAIR ESTIMATOR'!AQ520","v":{"v":0,"d":"$0"}},null,{"v":0,"d":"$0.0"},{"v":0,"d":"0.0%"},{"$nulls":4},0]
[null,null,{"$f":"T('2 REPAIR ESTIMATOR'!D521:O521)","v":""},{"$nulls":3},{"$f":"'2 REPAIR ESTIMATOR'!AQ521","v":{"v":0,"d":"$0"}},null,{"v":0,"d":"$0.0"},{"v":0,"d":"0.0%"},{"$nulls":4},0]
[null,null,{"$f":"T('2 REPAIR ESTIMATOR'!D522:O522)","v":""},{"$nulls":3},{"$f":"'2 REPAIR ESTIMATOR'!AQ522","v":{"v":0,"d":"$0"}},null,{"v":0,"d":"$0.0"},{"v":0,"d":"0.0%"},{"$nulls":4},0]
[null,null,{"$f":"T('2 REPAIR ESTIMATOR'!D523:O523)","v":""},{"$nulls":3},{"$f":"'2 REPAIR ESTIMATOR'!AQ523","v":{"v":0,"d":"$0"}},null,{"v":0,"d":"$0.0"},{"v":0,"d":"0.0%"},{"$nulls":4},0]
[null,null,{"$f":"T('2 REPAIR ESTIMATOR'!D524:O524)","v":""},{"$nulls":3},{"$f":"'2 REPAIR ESTIMATOR'!AQ524","v":{"v":0,"d":"$0"}},null,{"v":0,"d":"$0.0"},{"v":0,"d":"0.0%"},{"$nulls":4},0]
[null,null,{"$f":"T('2 REPAIR ESTIMATOR'!D525:O525)","v":""},{"$nulls":3},{"$f":"'2 REPAIR ESTIMATOR'!AQ525","v":{"v":0,"d":"$0"}},null,{"v":0,"d":"$0.0"},{"v":0,"d":"0.0%"},{"$nulls":4},0]
[null,null,{"$f":"T('2 REPAIR ESTIMATOR'!D526:O526)","v":""},{"$nulls":3},{"$f":"'2 REPAIR ESTIMATOR'!AQ526","v":{"v":0,"d":"$0"}},null,{"v":0,"d":"$0.0"},{"v":0,"d":"0.0%"},{"$nulls":4},0]
[null,null,{"$f":"T('2 REPAIR ESTIMATOR'!D527:O527)","v":""},{"$nulls":3},{"$f":"'2 REPAIR ESTIMATOR'!AQ527","v":{"v":0,"d":"$0"}},null,{"v":0,"d":"$0.0"},{"v":0,"d":"0.0%"},{"$nulls":4},0]
[null,null,{"$f":"T('2 REPAIR ESTIMATOR'!D528:O528)","v":""},{"$nulls":3},{"$f":"'2 REPAIR ESTIMATOR'!AQ528","v":{"v":0,"d":"$0"}},null,{"v":0,"d":"$0.0"},{"v":0,"d":"0.0%"},{"$nulls":4},0]
[null,null,{"$f":"T('2 REPAIR ESTIMATOR'!D529:O529)","v":""},{"$nulls":3},{"$f":"'2 REPAIR ESTIMATOR'!AQ529","v":{"v":0,"d":"$0"}},null,{"v":0,"d":"$0.0"},{"v":0,"d":"0.0%"},{"$nulls":4},0]
[null,null,{"$f":"T('2 REPAIR ESTIMATOR'!D530:O530)","v":""},{"$nulls":3},{"$f":"'2 REPAIR ESTIMATOR'!AQ530","v":{"v":0,"d":"$0"}},null,{"v":0,"d":"$0.0"},{"v":0,"d":"0.0%"},{"$nulls":4},0]
[null,null,{"$f":"T('2 REPAIR ESTIMATOR'!D531:O531)","v":""},{"$nulls":3},{"$f":"'2 REPAIR ESTIMATOR'!AQ531","v":{"v":0,"d":"$0"}},null,{"v":0,"d":"$0.0"},{"v":0,"d":"0.0%"},{"$nulls":4},0]
[null,null,{"$f":"T('2 REPAIR ESTIMATOR'!D532:O532)","v":""},{"$nulls":3},{"$f":"'2 REPAIR ESTIMATOR'!AQ532","v":{"v":0,"d":"$0"}},null,{"v":0,"d":"$0.0"},{"v":0,"d":"0.0%"},{"$nulls":4},0]
[null,null,{"$f":"T('2 REPAIR ESTIMATOR'!AC534)","v":"GARAGE DOORS TOTAL"},{"$nulls":3},{"$f":"SUM(G439:H478)","v":{"v":1363,"d":"$1,363"}},null,{"$f":"SUM(I439:I478)","v":{"v":0.9086666666666666,"d":"$1"}},{"$f":"SUM(J439:J478)","v":{"v":0.009718360071301247,"d":"1.0%"}},{"$nulls":4},{"$f":"SUM(O439:O478)","v":2}]
[{"$nulls":14},{"$f":"O479","v":2}]
[null,null,{"$f":"T('2 REPAIR ESTIMATOR'!D537:O537)","v":"LANDSCAPING"},{"$nulls":11},{"$f":"SUM(O482:O521)","v":1}]
[null,null,{"$f":"T('2 REPAIR ESTIMATOR'!D538:O538)","v":"Landscaping bid/allowance, trees, bushes, flowers"},{"$nulls":3},{"$f":"'2 REPAIR ESTIMATOR'!AQ538","v":{"v":571,"d":"$571"}},null,{"$f":"IFERROR(G482/Property_Size,0)","v":{"v":0.38066666666666665,"d":"$0.4"}},{"$f":"IFERROR(G482/Total_Project_Costs_Result,0)","v":{"v":0.004071301247771836,"d":"0.4%"}},{"$nulls":4},{"$f":"IF(G482>0,1,0)","v":1}]
[null,null,{"$f":"T('2 REPAIR ESTIMATOR'!D539:O539)","v":"Sod"},{"$nulls":3},{"$f":"'2 REPAIR ESTIMATOR'!AQ539","v":{"v":0,"d":"$0"}},null,{"v":0,"d":"$0.0"},{"v":0,"d":"0.0%"},{"$nulls":4},{"$f":"IF(G483>0,1,0)","v":0}]
[null,null,{"$f":"T('2 REPAIR ESTIMATOR'!D540:O540)","v":"Seeding"},{"$nulls":3},{"$f":"'2 REPAIR ESTIMATOR'!AQ540","v":{"v":0,"d":"$0"}},null,{"v":0,"d":"$0.0"},{"v":0,"d":"0.0%"},{"$nulls":4},0]
[null,null,{"$f":"T('2 REPAIR ESTIMATOR'!D541:O541)","v":"Shrubs/plantings, 1 gallon"},{"$nulls":3},{"$f":"'2 REPAIR ESTIMATOR'!AQ541","v":{"v":0,"d":"$0"}},null,{"v":0,"d":"$0.0"},{"v":0,"d":"0.0%"},{"$nulls":4},0]
[null,null,{"$f":"T('2 REPAIR ESTIMATOR'!D542:O542)","v":"Shrubs/plantings, 2 gallon"},{"$nulls":3},{"$f":"'2 REPAIR ESTIMATOR'!AQ542","v":{"v":0,"d":"$0"}},null,{"v":0,"d":"$0.0"},{"v":0,"d":"0.0%"},{"$nulls":4},0]
[null,null,{"$f":"T('2 REPAIR ESTIMATOR'!D543:O543)","v":"Shrubs/plantings, 5 gallon"},{"$nulls":3},{"$f":"'2 REPAIR ESTIMATOR'!AQ543","v":{"v":0,"d":"$0"}},null,{"v":0,"d":"$0.0"},{"v":0,"d":"0.0%"},{"$nulls":4},0]
[null,null,{"$f":"T('2 REPAIR ESTIMATOR'!D544:O544)","v":"Small trees, 1-2\" caliper, 10 gallon"},{"$nulls":3},{"$f":"'2 REPAIR ESTIMATOR'!AQ544","v":{"v":0,"d":"$0"}},null,{"v":0,"d":"$0.0"},{"v":0,"d":"0.0%"},{"$nulls":4},0]
[null,null,{"$f":"T('2 REPAIR ESTIMATOR'!D545:O545)","v":"Small trees, 1-2\" 15 gallon"},{"$nulls":3},{"$f":"'2 REPAIR ESTIMATOR'!AQ545","v":{"v":0,"d":"$0"}},null,{"v":0,"d":"$0.0"},{"v":0,"d":"0.0%"},{"$nulls":4},0]
[null,null,{"$f":"T('2 REPAIR ESTIMATOR'!D546:O546)","v":"36\" box tree"},{"$nulls":3},{"$f":"'2 REPAIR ESTIMATOR'!AQ546","v":{"v":0,"d":"$0"}},null,{"v":0,"d":"$0.0"},{"v":0,"d":"0.0%"},{"$nulls":4},0]
[null,null,{"$f":"T('2 REPAIR ESTIMATOR'!D547:O547)","v":"Mulch, standard 3\" thick"},{"$nulls":3},{"$f":"'2 REPAIR ESTIMATOR'!AQ547","v":{"v":0,"d":"$0"}},null,{"v":0,"d":"$0.0"},{"v":0,"d":"0.0%"},{"$nulls":4},0]
[null,null,{"$f":"T('2 REPAIR ESTIMATOR'!D548:O548)","v":"Landscape rock, 3/4\""},{"$nulls":3},{"$f":"'2 REPAIR ESTIMATOR'!AQ548","v":{"v":0,"d":"$0"}},null,{"v":0,"d":"$0.0"},{"v":0,"d":"0.0%"},{"$nulls":4},0]
[null,null,{"$f":"T('2 REPAIR ESTIMATOR'!D549:O549)","v":"Cobble stone rock"},{"$nulls":3},{"$f":"'2 REPAIR ESTIMATOR'!AQ549","v":{"v":0,"d":"$0"}},null,{"v":0,"d":"$0.0"},{"v":0,"d":"0.0%"},{"$nulls":4},0]
[null,null,{"$f":"T('2 REPAIR ESTIMATOR'!D550:O550)","v":"Tree removal, per tree"},{"$nulls":3},{"$f":"'2 REPAIR ESTIMATOR'!AQ550","v":{"v":0,"d":"$0"}},null,{"v":0,"d":"$0.0"},{"v":0,"d":"0.0%"},{"$nulls":4},0]
[null,null,{"$f":"T('2 REPAIR ESTIMATOR'!D551:O551)","v":"Stacked, retaining wall"},{"$nulls":3},{"$f":"'2 REPAIR ESTIMATOR'!AQ551","v":{"v":0,"d":"$0"}},null,{"v":0,"d":"$0.0"},{"v":0,"d":"0.0%"},{"$nulls":4},0]
[null,null,{"$f":"T('2 REPAIR ESTIMATOR'!D552:O552)","v":""},{"$nulls":3},{"$f":"'2 REPAIR ESTIMATOR'!AQ552","v":{"v":0,"d":"$0"}},null,{"v":0,"d":"$0.0"},{"v":0,"d":"0.0%"},{"$nulls":4},0]
[null,null,{"$f":"T('2 REPAIR ESTIMATOR'!D553:O553)","v":""},{"$nulls":3},{"$f":"'2 REPAIR ESTIMATOR'!AQ553","v":{"v":0,"d":"$0"}},null,{"v":0,"d":"$0.0"},{"v":0,"d":"0.0%"},{"$nulls":4},0]
[null,null,{"$f":"T('2 REPAIR ESTIMATOR'!D554:O554)","v":""},{"$nulls":3},{"$f":"'2 REPAIR ESTIMATOR'!AQ554","v":{"v":0,"d":"$0"}},null,{"v":0,"d":"$0.0"},{"v":0,"d":"0.0%"},{"$nulls":4},0]
[null,null,{"$f":"T('2 REPAIR ESTIMATOR'!D555:O555)","v":""},{"$nulls":3},{"$f":"'2 REPAIR ESTIMATOR'!AQ555","v":{"v":0,"d":"$0"}},null,{"v":0,"d":"$0.0"},{"v":0,"d":"0.0%"},{"$nulls":4},0]
[null,null,{"$f":"T('2 REPAIR ESTIMATOR'!D556:O556)","v":""},{"$nulls":3},{"$f":"'2 REPAIR ESTIMATOR'!AQ556","v":{"v":0,"d":"$0"}},null,{"v":0,"d":"$0.0"},{"v":0,"d":"0.0%"},{"$nulls":4},0]
[null,null,{"$f":"T('2 REPAIR ESTIMATOR'!D557:O557)","v":""},{"$nulls":3},{"$f":"'2 REPAIR ESTIMATOR'!AQ557","v":{"v":0,"d":"$0"}},null,{"v":0,"d":"$0.0"},{"v":0,"d":"0.0%"},{"$nulls":4},0]
[null,null,{"$f":"T('2 REPAIR ESTIMATOR'!D558:O558)","v":""},{"$nulls":3},{"$f":"'2 REPAIR ESTIMATOR'!AQ558","v":{"v":0,"d":"$0"}},null,{"v":0,"d":"$0.0"},{"v":0,"d":"0.0%"},{"$nulls":4},0]
[null,null,{"$f":"T('2 REPAIR ESTIMATOR'!D559:O559)","v":""},{"$nulls":3},{"$f":"'2 REPAIR ESTIMATOR'!AQ559","v":{"v":0,"d":"$0"}},null,{"v":0,"d":"$0.0"},{"v":0,"d":"0.0%"},{"$nulls":4},0]
[null,null,{"$f":"T('2 REPAIR ESTIMATOR'!D560:O560)","v":""},{"$nulls":3},{"$f":"'2 REPAIR ESTIMATOR'!AQ560","v":{"v":0,"d":"$0"}},null,{"v":0,"d":"$0.0"},{"v":0,"d":"0.0%"},{"$nulls":4},0]
[null,null,{"$f":"T('2 REPAIR ESTIMATOR'!D561:O561)","v":""},{"$nulls":3},{"$f":"'2 REPAIR ESTIMATOR'!AQ561","v":{"v":0,"d":"$0"}},null,{"v":0,"d":"$0.0"},{"v":0,"d":"0.0%"},{"$nulls":4},0]
[null,null,{"$f":"T('2 REPAIR ESTIMATOR'!D562:O562)","v":""},{"$nulls":3},{"$f":"'2 REPAIR ESTIMATOR'!AQ562","v":{"v":0,"d":"$0"}},null,{"v":0,"d":"$0.0"},{"v":0,"d":"0.0%"},{"$nulls":4},0]
[null,null,{"$f":"T('2 REPAIR ESTIMATOR'!D563:O563)","v":""},{"$nulls":3},{"$f":"'2 REPAIR ESTIMATOR'!AQ563","v":{"v":0,"d":"$0"}},null,{"v":0,"d":"$0.0"},{"v":0,"d":"0.0%"},{"$nulls":4},0]
[null,null,{"$f":"T('2 REPAIR ESTIMATOR'!D564:O564)","v":""},{"$nulls":3},{"$f":"'2 REPAIR ESTIMATOR'!AQ564","v":{"v":0,"d":"$0"}},null,{"v":0,"d":"$0.0"},{"v":0,"d":"0.0%"},{"$nulls":4},0]
[null,null,{"$f":"T('2 REPAIR ESTIMATOR'!D565:O565)","v":""},{"$nulls":3},{"$f":"'2 REPAIR ESTIMATOR'!AQ565","v":{"v":0,"d":"$0"}},null,{"v":0,"d":"$0.0"},{"v":0,"d":"0.0%"},{"$nulls":4},0]
[null,null,{"$f":"T('2 REPAIR ESTIMATOR'!D566:O566)","v":""},{"$nulls":3},{"$f":"'2 REPAIR ESTIMATOR'!AQ566","v":{"v":0,"d":"$0"}},null,{"v":0,"d":"$0.0"},{"v":0,"d":"0.0%"},{"$nulls":4},0]
[null,null,{"$f":"T('2 REPAIR ESTIMATOR'!D567:O567)","v":""},{"$nulls":3},{"$f":"'2 REPAIR ESTIMATOR'!AQ567","v":{"v":0,"d":"$0"}},null,{"v":0,"d":"$0.0"},{"v":0,"d":"0.0%"},{"$nulls":4},0]
[null,null,{"$f":"T('2 REPAIR ESTIMATOR'!D568:O568)","v":""},{"$nulls":3},{"$f":"'2 REPAIR ESTIMATOR'!AQ568","v":{"v":0,"d":"$0"}},null,{"v":0,"d":"$0.0"},{"v":0,"d":"0.0%"},{"$nulls":4},0]
[null,null,{"$f":"T('2 REPAIR ESTIMATOR'!D569:O569)","v":""},{"$nulls":3},{"$f":"'2 REPAIR ESTIMATOR'!AQ569","v":{"v":0,"d":"$0"}},null,{"v":0,"d":"$0.0"},{"v":0,"d":"0.0%"},{"$nulls":4},0]
[null,null,{"$f":"T('2 REPAIR ESTIMATOR'!D570:O570)","v":""},{"$nulls":3},{"$f":"'2 REPAIR ESTIMATOR'!AQ570","v":{"v":0,"d":"$0"}},null,{"v":0,"d":"$0.0"},{"v":0,"d":"0.0%"},{"$nulls":4},0]
[null,null,{"$f":"T('2 REPAIR ESTIMATOR'!D571:O571)","v":""},{"$nulls":3},{"$f":"'2 REPAIR ESTIMATOR'!AQ571","v":{"v":0,"d":"$0"}},null,{"v":0,"d":"$0.0"},{"v":0,"d":"0.0%"},{"$nulls":4},0]
[null,null,{"$f":"T('2 REPAIR ESTIMATOR'!D572:O572)","v":""},{"$nulls":3},{"$f":"'2 REPAIR ESTIMATOR'!AQ572","v":{"v":0,"d":"$0"}},null,{"v":0,"d":"$0.0"},{"v":0,"d":"0.0%"},{"$nulls":4},0]
[null,null,{"$f":"T('2 REPAIR ESTIMATOR'!D573:O573)","v":""},{"$nulls":3},{"$f":"'2 REPAIR ESTIMATOR'!AQ573","v":{"v":0,"d":"$0"}},null,{"v":0,"d":"$0.0"},{"v":0,"d":"0.0%"},{"$nulls":4},0]
[null,null,{"$f":"T('2 REPAIR ESTIMATOR'!D574:O574)","v":""},{"$nulls":3},{"$f":"'2 REPAIR ESTIMATOR'!AQ574","v":{"v":0,"d":"$0"}},null,{"v":0,"d":"$0.0"},{"v":0,"d":"0.0%"},{"$nulls":4},0]
[null,null,{"$f":"T('2 REPAIR ESTIMATOR'!D575:O575)","v":""},{"$nulls":3},{"$f":"'2 REPAIR ESTIMATOR'!AQ575","v":{"v":0,"d":"$0"}},null,{"v":0,"d":"$0.0"},{"v":0,"d":"0.0%"},{"$nulls":4},0]
[null,null,{"$f":"T('2 REPAIR ESTIMATOR'!D576:O576)","v":""},{"$nulls":3},{"$f":"'2 REPAIR ESTIMATOR'!AQ576","v":{"v":0,"d":"$0"}},null,{"v":0,"d":"$0.0"},{"v":0,"d":"0.0%"},{"$nulls":4},0]
[null,null,{"$f":"T('2 REPAIR ESTIMATOR'!D577:O577)","v":""},{"$nulls":3},{"$f":"'2 REPAIR ESTIMATOR'!AQ577","v":{"v":0,"d":"$0"}},null,{"v":0,"d":"$0.0"},{"v":0,"d":"0.0%"},{"$nulls":4},0]
[null,null,{"$f":"T('2 REPAIR ESTIMATOR'!AC579)","v":"LANDSCAPING TOTAL"},{"$nulls":3},{"$f":"SUM(G482:H521)","v":{"v":571,"d":"$571"}},null,{"$f":"SUM(I482:I521)","v":{"v":0.38066666666666665,"d":"$0"}},{"$f":"SUM(J482:J521)","v":{"v":0.004071301247771836,"d":"0.4%"}},{"$nulls":4},{"$f":"SUM(O482:O521)","v":1}]
[{"$nulls":14},{"$f":"O522","v":1}]
[null,null,{"$f":"T('2 REPAIR ESTIMATOR'!D582:O582)","v":"MISC. EXTERIOR ITEMS"},{"$nulls":11},{"$f":"SUM(O525:O564)","v":3}]
[null,null,{"$f":"T('2 REPAIR ESTIMATOR'!D583:O583)","v":"Misc. Ext Improvements bid/allowance"},{"$nulls":3},{"$f":"'2 REPAIR ESTIMATOR'!AQ583","v":{"v":0,"d":"$0"}},null,{"$f":"IFERROR(G525/Property_Size,0)","v":{"v":0,"d":"$0.0"}},{"$f":"IFERROR(G525/Total_Project_Costs_Result,0)","v":{"v":0,"d":"0.0%"}},{"$nulls":4},{"$f":"IF(G525>0,1,0)","v":0}]
[null,null,{"$f":"T('2 REPAIR ESTIMATOR'!D584:O584)","v":"Miscellaneous Improvements"},{"$nulls":3},{"$f":"'2 REPAIR ESTIMATOR'!AQ584","v":{"v":0,"d":"$0"}},null,{"v":0,"d":"$0.0"},{"v":0,"d":"0.0%"},{"$nulls":4},{"$f":"IF(G526>0,1,0)","v":0}]
[null,null,{"$f":"T('2 REPAIR ESTIMATOR'!D585:O585)","v":"New mailbox"},{"$nulls":3},{"$f":"'2 REPAIR ESTIMATOR'!AQ585","v":{"v":157,"d":"$157"}},null,{"v":0.10466666666666667,"d":"$0.1"},{"v":1.1194295900178253E-3,"d":"0.1%"},{"$nulls":4},1]
[null,null,{"$f":"T('2 REPAIR ESTIMATOR'!D586:O586)","v":"New address #"},{"$nulls":3},{"$f":"'2 REPAIR ESTIMATOR'!AQ586","v":{"v":67.80000000000001,"d":"$68"}},null,{"v":0.04520000000000001,"d":"$0.0"},{"v":4.8342245989304818E-4,"d":"0.0%"},{"$nulls":4},1]
[null,null,{"$f":"T('2 REPAIR ESTIMATOR'!D587:O587)","v":"Shutters"},{"$nulls":3},{"$f":"'2 REPAIR ESTIMATOR'!AQ587","v":{"v":406.8,"d":"$407"}},null,{"v":0.2712,"d":"$0.3"},{"v":2.9005347593582887E-3,"d":"0.3%"},{"$nulls":4},1]
[null,null,{"$f":"T('2 REPAIR ESTIMATOR'!D588:O588)","v":""},{"$nulls":3},{"$f":"'2 REPAIR ESTIMATOR'!AQ588","v":{"v":0,"d":"$0"}},null,{"v":0,"d":"$0.0"},{"v":0,"d":"0.0%"},{"$nulls":4},0]
[null,null,{"$f":"T('2 REPAIR ESTIMATOR'!D589:O589)","v":"Fencing"},{"$nulls":3},{"$f":"'2 REPAIR ESTIMATOR'!AQ589","v":{"v":0,"d":"$0"}},null,{"v":0,"d":"$0.0"},{"v":0,"d":"0.0%"},{"$nulls":4},0]
[null,null,{"$f":"T('2 REPAIR ESTIMATOR'!D590:O590)","v":"Chain link fencing"},{"$nulls":3},{"$f":"'2 REPAIR ESTIMATOR'!AQ590","v":{"v":0,"d":"$0"}},null,{"v":0,"d":"$0.0"},{"v":0,"d":"0.0%"},{"$nulls":4},0]
[null,null,{"$f":"T('2 REPAIR ESTIMATOR'!D591:O591)","v":"Wood fencing"},{"$nulls":3},{"$f":"'2 REPAIR ESTIMATOR'!AQ591","v":{"v":0,"d":"$0"}},null,{"v":0,"d":"$0.0"},{"v":0,"d":"0.0%"},{"$nulls":4},0]
[null,null,{"$f":"T('2 REPAIR ESTIMATOR'!D592:O592)","v":""},{"$nulls":3},{"$f":"'2 REPAIR ESTIMATOR'!AQ592","v":{"v":0,"d":"$0"}},null,{"v":0,"d":"$0.0"},{"v":0,"d":"0.0%"},{"$nulls":4},0]
[null,null,{"$f":"T('2 REPAIR ESTIMATOR'!D593:O593)","v":"Misc. Exterior Structures"},{"$nulls":3},{"$f":"'2 REPAIR ESTIMATOR'!AQ593","v":{"v":0,"d":"$0"}},null,{"v":0,"d":"$0.0"},{"v":0,"d":"0.0%"},{"$nulls":4},0]
[null,null,{"$f":"T('2 REPAIR ESTIMATOR'!D594:O594)","v":"Premanufactured carport"},{"$nulls":3},{"$f":"'2 REPAIR ESTIMATOR'!AQ594","v":{"v":0,"d":"$0"}},null,{"v":0,"d":"$0.0"},{"v":0,"d":"0.0%"},{"$nulls":4},0]
[null,null,{"$f":"T('2 REPAIR ESTIMATOR'!D595:O595)","v":"Storage shed, wood"},{"$nulls":3},{"$f":"'2 REPAIR ESTIMATOR'!AQ595","v":{"v":0,"d":"$0"}},null,{"v":0,"d":"$0.0"},{"v":0,"d":"0.0%"},{"$nulls":4},0]
[null,null,{"$f":"T('2 REPAIR ESTIMATOR'!D596:O596)","v":"Gazebo"},{"$nulls":3},{"$f":"'2 REPAIR ESTIMATOR'!AQ596","v":{"v":0,"d":"$0"}},null,{"v":0,"d":"$0.0"},{"v":0,"d":"0.0%"},{"$nulls":4},0]
[null,null,{"$f":"T('2 REPAIR ESTIMATOR'!D597:O597)","v":""},{"$nulls":3},{"$f":"'2 REPAIR ESTIMATOR'!AQ597","v":{"v":0,"d":"$0"}},null,{"v":0,"d":"$0.0"},{"v":0,"d":"0.0%"},{"$nulls":4},0]
[null,null,{"$f":"T('2 REPAIR ESTIMATOR'!D598:O598)","v":"Pools"},{"$nulls":3},{"$f":"'2 REPAIR ESTIMATOR'!AQ598","v":{"v":0,"d":"$0"}},null,{"v":0,"d":"$0.0"},{"v":0,"d":"0.0%"},{"$nulls":4},0]
[null,null,{"$f":"T('2 REPAIR ESTIMATOR'!D599:O599)","v":"New Pool structure"},{"$nulls":3},{"$f":"'2 REPAIR ESTIMATOR'!AQ599","v":{"v":0,"d":"$0"}},null,{"v":0,"d":"$0.0"},{"v":0,"d":"0.0%"},{"$nulls":4},0]
[null,null,{"$f":"T('2 REPAIR ESTIMATOR'!D600:O600)","v":"Pool heater/motor"},{"$nulls":3},{"$f":"'2 REPAIR ESTIMATOR'!AQ600","v":{"v":0,"d":"$0"}},null,{"v":0,"d":"$0.0"},{"v":0,"d":"0.0%"},{"$nulls":4},0]
[null,null,{"$f":"T('2 REPAIR ESTIMATOR'!D601:O601)","v":"Pool filter system"},{"$nulls":3},{"$f":"'2 REPAIR ESTIMATOR'!AQ601","v":{"v":0,"d":"$0"}},null,{"v":0,"d":"$0.0"},{"v":0,"d":"0.0%"},{"$nulls":4},0]
[null,null,{"$f":"T('2 REPAIR ESTIMATOR'!D602:O602)","v":"Replaster existing pool wall"},{"$nulls":3},{"$f":"'2 REPAIR ESTIMATOR'!AQ602","v":{"v":0,"d":"$0"}},null,{"v":0,"d":"$0.0"},{"v":0,"d":"0.0%"},{"$nulls":4},0]
[null,null,{"$f":"T('2 REPAIR ESTIMATOR'!D603:O603)","v":""},{"$nulls":3},{"$f":"'2 REPAIR ESTIMATOR'!AQ603","v":{"v":0,"d":"$0"}},null,{"v":0,"d":"$0.0"},{"v":0,"d":"0.0%"},{"$nulls":4},0]
[null,null,{"$f":"T('2 REPAIR ESTIMATOR'!D604:O604)","v":""},{"$nulls":3},{"$f":"'2 REPAIR ESTIMATOR'!AQ604","v":{"v":0,"d":"$0"}},null,{"v":0,"d":"$0.0"},{"v":0,"d":"0.0%"},{"$nulls":4},0]
[null,null,{"$f":"T('2 REPAIR ESTIMATOR'!D605:O605)","v":""},{"$nulls":3},{"$f":"'2 REPAIR ESTIMATOR'!AQ605","v":{"v":0,"d":"$0"}},null,{"v":0,"d":"$0.0"},{"v":0,"d":"0.0%"},{"$nulls":4},0]
[null,null,{"$f":"T('2 REPAIR ESTIMATOR'!D606:O606)","v":""},{"$nulls":3},{"$f":"'2 REPAIR ESTIMATOR'!AQ606","v":{"v":0,"d":"$0"}},null,{"v":0,"d":"$0.0"},{"v":0,"d":"0.0%"},{"$nulls":4},0]
[null,null,{"$f":"T('2 REPAIR ESTIMATOR'!D607:O607)","v":""},{"$nulls":3},{"$f":"'2 REPAIR ESTIMATOR'!AQ607","v":{"v":0,"d":"$0"}},null,{"v":0,"d":"$0.0"},{"v":0,"d":"0.0%"},{"$nulls":4},0]
[null,null,{"$f":"T('2 REPAIR ESTIMATOR'!D608:O608)","v":""},{"$nulls":3},{"$f":"'2 REPAIR ESTIMATOR'!AQ608","v":{"v":0,"d":"$0"}},null,{"v":0,"d":"$0.0"},{"v":0,"d":"0.0%"},{"$nulls":4},0]
[null,null,{"$f":"T('2 REPAIR ESTIMATOR'!D609:O609)","v":""},{"$nulls":3},{"$f":"'2 REPAIR ESTIMATOR'!AQ609","v":{"v":0,"d":"$0"}},null,{"v":0,"d":"$0.0"},{"v":0,"d":"0.0%"},{"$nulls":4},0]
[null,null,{"$f":"T('2 REPAIR ESTIMATOR'!D610:O610)","v":""},{"$nulls":3},{"$f":"'2 REPAIR ESTIMATOR'!AQ610","v":{"v":0,"d":"$0"}},null,{"v":0,"d":"$0.0"},{"v":0,"d":"0.0%"},{"$nulls":4},0]
[null,null,{"$f":"T('2 REPAIR ESTIMATOR'!D611:O611)","v":""},{"$nulls":3},{"$f":"'2 REPAIR ESTIMATOR'!AQ611","v":{"v":0,"d":"$0"}},null,{"v":0,"d":"$0.0"},{"v":0,"d":"0.0%"},{"$nulls":4},0]
[null,null,{"$f":"T('2 REPAIR ESTIMATOR'!D612:O612)","v":""},{"$nulls":3},{"$f":"'2 REPAIR ESTIMATOR'!AQ612","v":{"v":0,"d":"$0"}},null,{"v":0,"d":"$0.0"},{"v":0,"d":"0.0%"},{"$nulls":4},0]
[null,null,{"$f":"T('2 REPAIR ESTIMATOR'!D613:O613)","v":""},{"$nulls":3},{"$f":"'2 REPAIR ESTIMATOR'!AQ613","v":{"v":0,"d":"$0"}},null,{"v":0,"d":"$0.0"},{"v":0,"d":"0.0%"},{"$nulls":4},0]
[null,null,{"$f":"T('2 REPAIR ESTIMATOR'!D614:O614)","v":""},{"$nulls":3},{"$f":"'2 REPAIR ESTIMATOR'!AQ614","v":{"v":0,"d":"$0"}},null,{"v":0,"d":"$0.0"},{"v":0,"d":"0.0%"},{"$nulls":4},0]
[null,null,{"$f":"T('2 REPAIR ESTIMATOR'!D615:O615)","v":""},{"$nulls":3},{"$f":"'2 REPAIR ESTIMATOR'!AQ615","v":{"v":0,"d":"$0"}},null,{"v":0,"d":"$0.0"},{"v":0,"d":"0.0%"},{"$nulls":4},0]
[null,null,{"$f":"T('2 REPAIR ESTIMATOR'!D616:O616)","v":""},{"$nulls":3},{"$f":"'2 REPAIR ESTIMATOR'!AQ616","v":{"v":0,"d":"$0"}},null,{"v":0,"d":"$0.0"},{"v":0,"d":"0.0%"},{"$nulls":4},0]
[null,null,{"$f":"T('2 REPAIR ESTIMATOR'!D617:O617)","v":""},{"$nulls":3},{"$f":"'2 REPAIR ESTIMATOR'!AQ617","v":{"v":0,"d":"$0"}},null,{"v":0,"d":"$0.0"},{"v":0,"d":"0.0%"},{"$nulls":4},0]
[null,null,{"$f":"T('2 REPAIR ESTIMATOR'!D618:O618)","v":""},{"$nulls":3},{"$f":"'2 REPAIR ESTIMATOR'!AQ618","v":{"v":0,"d":"$0"}},null,{"v":0,"d":"$0.0"},{"v":0,"d":"0.0%"},{"$nulls":4},0]
[null,null,{"$f":"T('2 REPAIR ESTIMATOR'!D619:O619)","v":""},{"$nulls":3},{"$f":"'2 REPAIR ESTIMATOR'!AQ619","v":{"v":0,"d":"$0"}},null,{"v":0,"d":"$0.0"},{"v":0,"d":"0.0%"},{"$nulls":4},0]
[null,null,{"$f":"T('2 REPAIR ESTIMATOR'!D620:O620)","v":""},{"$nulls":3},{"$f":"'2 REPAIR ESTIMATOR'!AQ620","v":{"v":0,"d":"$0"}},null,{"v":0,"d":"$0.0"},{"v":0,"d":"0.0%"},{"$nulls":4},0]
[null,null,{"$f":"T('2 REPAIR ESTIMATOR'!D621:O621)","v":""},{"$nulls":3},{"$f":"'2 REPAIR ESTIMATOR'!AQ621","v":{"v":0,"d":"$0"}},null,{"v":0,"d":"$0.0"},{"v":0,"d":"0.0%"},{"$nulls":4},0]
[null,null,{"$f":"T('2 REPAIR ESTIMATOR'!D622:O622)","v":""},{"$nulls":3},{"$f":"'2 REPAIR ESTIMATOR'!AQ622","v":{"v":0,"d":"$0"}},null,{"v":0,"d":"$0.0"},{"v":0,"d":"0.0%"},{"$nulls":4},0]
[null,null,{"$f":"T('2 REPAIR ESTIMATOR'!AC624)","v":"MISC. EXTERIOR ITEMS TOTAL"},{"$nulls":3},{"$f":"SUM(G525:H564)","v":{"v":631.6,"d":"$632"}},null,{"$f":"SUM(I525:I564)","v":{"v":0.4210666666666667,"d":"$0"}},{"$f":"SUM(J525:J564)","v":{"v":0.004503386809269162,"d":"0.5%"}},{"$nulls":4},{"$f":"SUM(O525:O564)","v":3}]
[{"$nulls":14},{"$f":"O565","v":3}]
[null,null,{"$f":"T('2 REPAIR ESTIMATOR'!D627:O627)","v":"FRAMING & DRYWALL"},{"$nulls":11},{"$f":"SUM(O568:O607)","v":1}]
[null,null,{"$f":"T('2 REPAIR ESTIMATOR'!D628:O628)","v":"Framing"},{"$nulls":3},{"$f":"'2 REPAIR ESTIMATOR'!AQ628","v":{"v":0,"d":"$0"}},null,{"$f":"IFERROR(G568/Property_Size,0)","v":{"v":0,"d":"$0.0"}},{"$f":"IFERROR(G568/Total_Project_Costs_Result,0)","v":{"v":0,"d":"0.0%"}},{"$nulls":4},{"$f":"IF(G568>0,1,0)","v":0}]
[null,null,{"$f":"T('2 REPAIR ESTIMATOR'!D629:O629)","v":"Structural framing bid/allowance, case by case"},{"$nulls":3},{"$f":"'2 REPAIR ESTIMATOR'!AQ629","v":{"v":0,"d":"$0"}},null,{"v":0,"d":"$0.0"},{"v":0,"d":"0.0%"},{"$nulls":4},{"$f":"IF(G569>0,1,0)","v":0}]
[null,null,{"$f":"T('2 REPAIR ESTIMATOR'!D630:O630)","v":"Subflooring, 3/4\" plywood"},{"$nulls":3},{"$f":"'2 REPAIR ESTIMATOR'!AQ630","v":{"v":0,"d":"$0"}},null,{"v":0,"d":"$0.0"},{"v":0,"d":"0.0%"},{"$nulls":4},0]
[null,null,{"$f":"T('2 REPAIR ESTIMATOR'!D631:O631)","v":"Interior wall framing"},{"$nulls":3},{"$f":"'2 REPAIR ESTIMATOR'!AQ631","v":{"v":0,"d":"$0"}},null,{"v":0,"d":"$0.0"},{"v":0,"d":"0.0%"},{"$nulls":4},0]
[null,null,{"$f":"T('2 REPAIR ESTIMATOR'!D632:O632)","v":"Structural/Exterior wall framing"},{"$nulls":3},{"$f":"'2 REPAIR ESTIMATOR'!AQ632","v":{"v":0,"d":"$0"}},null,{"v":0,"d":"$0.0"},{"v":0,"d":"0.0%"},{"$nulls":4},0]
[null,null,{"$f":"T('2 REPAIR ESTIMATOR'!D633:O633)","v":"Rough-in openings"},{"$nulls":3},{"$f":"'2 REPAIR ESTIMATOR'!AQ633","v":{"v":0,"d":"$0"}},null,{"v":0,"d":"$0.0"},{"v":0,"d":"0.0%"},{"$nulls":4},0]
[null,null,{"$f":"T('2 REPAIR ESTIMATOR'!D634:O634)","v":"Floor joists/ceiling joists"},{"$nulls":3},{"$f":"'2 REPAIR ESTIMATOR'!AQ634","v":{"v":0,"d":"$0"}},null,{"v":0,"d":"$0.0"},{"v":0,"d":"0.0%"},{"$nulls":4},0]
[null,null,{"$f":"T('2 REPAIR ESTIMATOR'!D635:O635)","v":"Roof framing/rafters"},{"$nulls":3},{"$f":"'2 REPAIR ESTIMATOR'!AQ635","v":{"v":0,"d":"$0"}},null,{"v":0,"d":"$0.0"},{"v":0,"d":"0.0%"},{"$nulls":4},0]
[null,null,{"$f":"T('2 REPAIR ESTIMATOR'!D636:O636)","v":"Open load bearing/structural wall"},{"$nulls":3},{"$f":"'2 REPAIR ESTIMATOR'!AQ636","v":{"v":0,"d":"$0"}},null,{"v":0,"d":"$0.0"},{"v":0,"d":"0.0%"},{"$nulls":4},0]
[null,null,{"$f":"T('2 REPAIR ESTIMATOR'!D637:O637)","v":"Insulation"},{"$nulls":3},{"$f":"'2 REPAIR ESTIMATOR'!AQ637","v":{"v":0,"d":"$0"}},null,{"v":0,"d":"$0.0"},{"v":0,"d":"0.0%"},{"$nulls":4},0]
[null,null,{"$f":"T('2 REPAIR ESTIMATOR'!D638:O638)","v":"Insulation bid/allowance"},{"$nulls":3},{"$f":"'2 REPAIR ESTIMATOR'!AQ638","v":{"v":0,"d":"$0"}},null,{"v":0,"d":"$0.0"},{"v":0,"d":"0.0%"},{"$nulls":4},0]
[null,null,{"$f":"T('2 REPAIR ESTIMATOR'!D639:O639)","v":"Wall insulation"},{"$nulls":3},{"$f":"'2 REPAIR ESTIMATOR'!AQ639","v":{"v":0,"d":"$0"}},null,{"v":0,"d":"$0.0"},{"v":0,"d":"0.0%"},{"$nulls":4},0]
[null,null,{"$f":"T('2 REPAIR ESTIMATOR'!D640:O640)","v":"Floor insulation"},{"$nulls":3},{"$f":"'2 REPAIR ESTIMATOR'!AQ640","v":{"v":0,"d":"$0"}},null,{"v":0,"d":"$0.0"},{"v":0,"d":"0.0%"},{"$nulls":4},0]
[null,null,{"$f":"T('2 REPAIR ESTIMATOR'!D641:O641)","v":"Attic insulation, blown-in"},{"$nulls":3},{"$f":"'2 REPAIR ESTIMATOR'!AQ641","v":{"v":0,"d":"$0"}},null,{"v":0,"d":"$0.0"},{"v":0,"d":"0.0%"},{"$nulls":4},0]
[null,null,{"$f":"T('2 REPAIR ESTIMATOR'!D642:O642)","v":"Walls/Ceilings"},{"$nulls":3},{"$f":"'2 REPAIR ESTIMATOR'!AQ642","v":{"v":0,"d":"$0"}},null,{"v":0,"d":"$0.0"},{"v":0,"d":"0.0%"},{"$nulls":4},0]
[null,null,{"$f":"T('2 REPAIR ESTIMATOR'!D643:O643)","v":"Drywall bid/allowance, case by case"},{"$nulls":3},{"$f":"'2 REPAIR ESTIMATOR'!AQ643","v":{"v":750,"d":"$750"}},null,{"v":0.5,"d":"$0.5"},{"v":0.0053475935828877,"d":"0.5%"},{"$nulls":4},1]
[null,null,{"$f":"T('2 REPAIR ESTIMATOR'!D644:O644)","v":"Drywall wallboard, 1/2\" thick, finish one side"},{"$nulls":3},{"$f":"'2 REPAIR ESTIMATOR'!AQ644","v":{"v":0,"d":"$0"}},null,{"v":0,"d":"$0.0"},{"v":0,"d":"0.0%"},{"$nulls":4},0]
[null,null,{"$f":"T('2 REPAIR ESTIMATOR'!D645:O645)","v":"Drywall ceilings, 1/2\" thick"},{"$nulls":3},{"$f":"'2 REPAIR ESTIMATOR'!AQ645","v":{"v":0,"d":"$0"}},null,{"v":0,"d":"$0.0"},{"v":0,"d":"0.0%"},{"$nulls":4},0]
[null,null,{"$f":"T('2 REPAIR ESTIMATOR'!D646:O646)","v":"Skim coating/texturing walls"},{"$nulls":3},{"$f":"'2 REPAIR ESTIMATOR'!AQ646","v":{"v":0,"d":"$0"}},null,{"v":0,"d":"$0.0"},{"v":0,"d":"0.0%"},{"$nulls":4},0]
[null,null,{"$f":"T('2 REPAIR ESTIMATOR'!D647:O647)","v":"Skim coating/texturing ceilings"},{"$nulls":3},{"$f":"'2 REPAIR ESTIMATOR'!AQ647","v":{"v":0,"d":"$0"}},null,{"v":0,"d":"$0.0"},{"v":0,"d":"0.0%"},{"$nulls":4},0]
[null,null,{"$f":"T('2 REPAIR ESTIMATOR'!D648:O648)","v":""},{"$nulls":3},{"$f":"'2 REPAIR ESTIMATOR'!AQ648","v":{"v":0,"d":"$0"}},null,{"v":0,"d":"$0.0"},{"v":0,"d":"0.0%"},{"$nulls":4},0]
[null,null,{"$f":"T('2 REPAIR ESTIMATOR'!D649:O649)","v":""},{"$nulls":3},{"$f":"'2 REPAIR ESTIMATOR'!AQ649","v":{"v":0,"d":"$0"}},null,{"v":0,"d":"$0.0"},{"v":0,"d":"0.0%"},{"$nulls":4},0]
[null,null,{"$f":"T('2 REPAIR ESTIMATOR'!D650:O650)","v":""},{"$nulls":3},{"$f":"'2 REPAIR ESTIMATOR'!AQ650","v":{"v":0,"d":"$0"}},null,{"v":0,"d":"$0.0"},{"v":0,"d":"0.0%"},{"$nulls":4},0]
[null,null,{"$f":"T('2 REPAIR ESTIMATOR'!D651:O651)","v":""},{"$nulls":3},{"$f":"'2 REPAIR ESTIMATOR'!AQ651","v":{"v":0,"d":"$0"}},null,{"v":0,"d":"$0.0"},{"v":0,"d":"0.0%"},{"$nulls":4},0]
[null,null,{"$f":"T('2 REPAIR ESTIMATOR'!D652:O652)","v":""},{"$nulls":3},{"$f":"'2 REPAIR ESTIMATOR'!AQ652","v":{"v":0,"d":"$0"}},null,{"v":0,"d":"$0.0"},{"v":0,"d":"0.0%"},{"$nulls":4},0]
[null,null,{"$f":"T('2 REPAIR ESTIMATOR'!D653:O653)","v":""},{"$nulls":3},{"$f":"'2 REPAIR ESTIMATOR'!AQ653","v":{"v":0,"d":"$0"}},null,{"v":0,"d":"$0.0"},{"v":0,"d":"0.0%"},{"$nulls":4},0]
[null,null,{"$f":"T('2 REPAIR ESTIMATOR'!D654:O654)","v":""},{"$nulls":3},{"$f":"'2 REPAIR ESTIMATOR'!AQ654","v":{"v":0,"d":"$0"}},null,{"v":0,"d":"$0.0"},{"v":0,"d":"0.0%"},{"$nulls":4},0]
[null,null,{"$f":"T('2 REPAIR ESTIMATOR'!D655:O655)","v":""},{"$nulls":3},{"$f":"'2 REPAIR ESTIMATOR'!AQ655","v":{"v":0,"d":"$0"}},null,{"v":0,"d":"$0.0"},{"v":0,"d":"0.0%"},{"$nulls":4},0]
[null,null,{"$f":"T('2 REPAIR ESTIMATOR'!D656:O656)","v":""},{"$nulls":3},{"$f":"'2 REPAIR ESTIMATOR'!AQ656","v":{"v":0,"d":"$0"}},null,{"v":0,"d":"$0.0"},{"v":0,"d":"0.0%"},{"$nulls":4},0]
[null,null,{"$f":"T('2 REPAIR ESTIMATOR'!D657:O657)","v":""},{"$nulls":3},{"$f":"'2 REPAIR ESTIMATOR'!AQ657","v":{"v":0,"d":"$0"}},null,{"v":0,"d":"$0.0"},{"v":0,"d":"0.0%"},{"$nulls":4},0]
[null,null,{"$f":"T('2 REPAIR ESTIMATOR'!D658:O658)","v":""},{"$nulls":3},{"$f":"'2 REPAIR ESTIMATOR'!AQ658","v":{"v":0,"d":"$0"}},null,{"v":0,"d":"$0.0"},{"v":0,"d":"0.0%"},{"$nulls":4},0]
[null,null,{"$f":"T('2 REPAIR ESTIMATOR'!D659:O659)","v":""},{"$nulls":3},{"$f":"'2 REPAIR ESTIMATOR'!AQ659","v":{"v":0,"d":"$0"}},null,{"v":0,"d":"$0.0"},{"v":0,"d":"0.0%"},{"$nulls":4},0]
[null,null,{"$f":"T('2 REPAIR ESTIMATOR'!D660:O660)","v":""},{"$nulls":3},{"$f":"'2 REPAIR ESTIMATOR'!AQ660","v":{"v":0,"d":"$0"}},null,{"v":0,"d":"$0.0"},{"v":0,"d":"0.0%"},{"$nulls":4},0]
[null,null,{"$f":"T('2 REPAIR ESTIMATOR'!D661:O661)","v":""},{"$nulls":3},{"$f":"'2 REPAIR ESTIMATOR'!AQ661","v":{"v":0,"d":"$0"}},null,{"v":0,"d":"$0.0"},{"v":0,"d":"0.0%"},{"$nulls":4},0]
[null,null,{"$f":"T('2 REPAIR ESTIMATOR'!D662:O662)","v":""},{"$nulls":3},{"$f":"'2 REPAIR ESTIMATOR'!AQ662","v":{"v":0,"d":"$0"}},null,{"v":0,"d":"$0.0"},{"v":0,"d":"0.0%"},{"$nulls":4},0]
[null,null,{"$f":"T('2 REPAIR ESTIMATOR'!D663:O663)","v":""},{"$nulls":3},{"$f":"'2 REPAIR ESTIMATOR'!AQ663","v":{"v":0,"d":"$0"}},null,{"v":0,"d":"$0.0"},{"v":0,"d":"0.0%"},{"$nulls":4},0]
[null,null,{"$f":"T('2 REPAIR ESTIMATOR'!D664:O664)","v":""},{"$nulls":3},{"$f":"'2 REPAIR ESTIMATOR'!AQ664","v":{"v":0,"d":"$0"}},null,{"v":0,"d":"$0.0"},{"v":0,"d":"0.0%"},{"$nulls":4},0]
[null,null,{"$f":"T('2 REPAIR ESTIMATOR'!D665:O665)","v":""},{"$nulls":3},{"$f":"'2 REPAIR ESTIMATOR'!AQ665","v":{"v":0,"d":"$0"}},null,{"v":0,"d":"$0.0"},{"v":0,"d":"0.0%"},{"$nulls":4},0]
[null,null,{"$f":"T('2 REPAIR ESTIMATOR'!D666:O666)","v":""},{"$nulls":3},{"$f":"'2 REPAIR ESTIMATOR'!AQ666","v":{"v":0,"d":"$0"}},null,{"v":0,"d":"$0.0"},{"v":0,"d":"0.0%"},{"$nulls":4},0]
[null,null,{"$f":"T('2 REPAIR ESTIMATOR'!D667:O667)","v":""},{"$nulls":3},{"$f":"'2 REPAIR ESTIMATOR'!AQ667","v":{"v":0,"d":"$0"}},null,{"v":0,"d":"$0.0"},{"v":0,"d":"0.0%"},{"$nulls":4},0]
[null,null,{"$f":"T('2 REPAIR ESTIMATOR'!AC669)","v":"FRAMING & DRYWALL TOTAL"},{"$nulls":3},{"$f":"SUM(G568:H607)","v":{"v":750,"d":"$750"}},null,{"$f":"SUM(I568:I607)","v":{"v":0.5,"d":"$1"}},{"$f":"SUM(J568:J607)","v":{"v":0.0053475935828877,"d":"0.5%"}},{"$nulls":4},{"$f":"SUM(O568:O607)","v":1}]
[{"$nulls":14},{"$f":"O608","v":1}]
[null,null,{"$f":"T('2 REPAIR ESTIMATOR'!D672:O672)","v":"CABINETS & COUNTERTOPS"},{"$nulls":11},{"$f":"SUM(O611:O650)","v":6}]
[null,null,{"$f":"T('2 REPAIR ESTIMATOR'!D673:O673)","v":"Cabinet Installation bid/allowance"},{"$nulls":3},{"$f":"'2 REPAIR ESTIMATOR'!AQ673","v":{"v":0,"d":"$0"}},null,{"$f":"IFERROR(G611/Property_Size,0)","v":{"v":0,"d":"$0.0"}},{"$f":"IFERROR(G611/Total_Project_Costs_Result,0)","v":{"v":0,"d":"0.0%"}},{"$nulls":4},{"$f":"IF(G611>0,1,0)","v":0}]
[null,null,{"$f":"T('2 REPAIR ESTIMATOR'!D674:O674)","v":"Cabinet Material bid/allowance"},{"$nulls":3},{"$f":"'2 REPAIR ESTIMATOR'!AQ674","v":{"v":0,"d":"$0"}},null,{"v":0,"d":"$0.0"},{"v":0,"d":"0.0%"},{"$nulls":4},{"$f":"IF(G612>0,1,0)","v":0}]
[null,null,{"$f":"T('2 REPAIR ESTIMATOR'!D675:O675)","v":"Countertop bid/allowance"},{"$nulls":3},{"$f":"'2 REPAIR ESTIMATOR'!AQ675","v":{"v":0,"d":"$0"}},null,{"v":0,"d":"$0.0"},{"v":0,"d":"0.0%"},{"$nulls":4},0]
[null,null,{"$f":"T('2 REPAIR ESTIMATOR'!D676:O676)","v":"Kitchen"},{"$nulls":3},{"$f":"'2 REPAIR ESTIMATOR'!AQ676","v":{"v":0,"d":"$0"}},null,{"v":0,"d":"$0.0"},{"v":0,"d":"0.0%"},{"$nulls":4},0]
[null,null,{"$f":"T('2 REPAIR ESTIMATOR'!D677:O677)","v":"Kitchen Base Cabinetry"},{"$nulls":3},{"$f":"'2 REPAIR ESTIMATOR'!AQ677","v":{"v":3558.75,"d":"$3,559"}},null,{"v":2.3725,"d":"$2.4"},{"v":0.02537433155080214,"d":"2.5%"},{"$nulls":4},1]
[null,null,{"$f":"T('2 REPAIR ESTIMATOR'!D678:O678)","v":"Kitchen Upper Cabinetry"},{"$nulls":3},{"$f":"'2 REPAIR ESTIMATOR'!AQ678","v":{"v":2932.5,"d":"$2,933"}},null,{"v":1.955,"d":"$2.0"},{"v":0.02090909090909091,"d":"2.1%"},{"$nulls":4},1]
[null,null,{"$f":"T('2 REPAIR ESTIMATOR'!D679:O679)","v":"Kitchen Pantry Cabinet"},{"$nulls":3},{"$f":"'2 REPAIR ESTIMATOR'!AQ679","v":{"v":1138,"d":"$1,138"}},null,{"v":0.7586666666666667,"d":"$0.8"},{"v":0.008114081996434938,"d":"0.8%"},{"$nulls":4},1]
[null,null,{"$f":"T('2 REPAIR ESTIMATOR'!D680:O680)","v":"Plastic laminate countertop"},{"$nulls":3},{"$f":"'2 REPAIR ESTIMATOR'!AQ680","v":{"v":0,"d":"$0"}},null,{"v":0,"d":"$0.0"},{"v":0,"d":"0.0%"},{"$nulls":4},0]
[null,null,{"$f":"T('2 REPAIR ESTIMATOR'!D681:O681)","v":"Replace cabinet doors, only"},{"$nulls":3},{"$f":"'2 REPAIR ESTIMATOR'!AQ681","v":{"v":0,"d":"$0"}},null,{"v":0,"d":"$0.0"},{"v":0,"d":"0.0%"},{"$nulls":4},0]
[null,null,{"$f":"T('2 REPAIR ESTIMATOR'!D682:O682)","v":"Replace cabinet drawer fronts, only"},{"$nulls":3},{"$f":"'2 REPAIR ESTIMATOR'!AQ682","v":{"v":0,"d":"$0"}},null,{"v":0,"d":"$0.0"},{"v":0,"d":"0.0%"},{"$nulls":4},0]
[null,null,{"$f":"T('2 REPAIR ESTIMATOR'!D683:O683)","v":"New cabinet door pulls"},{"$nulls":3},{"$f":"'2 REPAIR ESTIMATOR'!AQ683","v":{"v":0,"d":"$0"}},null,{"v":0,"d":"$0.0"},{"v":0,"d":"0.0%"},{"$nulls":4},0]
[null,null,{"$f":"T('2 REPAIR ESTIMATOR'!D684:O684)","v":"Stone/solid surface countertop, kitchen"},{"$nulls":3},{"$f":"'2 REPAIR ESTIMATOR'!AQ684","v":{"v":1765.5,"d":"$1,766"}},null,{"v":1.177,"d":"$1.2"},{"v":0.012588235294117647,"d":"1.3%"},{"$nulls":4},1]
[null,null,{"$f":"T('2 REPAIR ESTIMATOR'!D685:O685)","v":"Kitchen sink bowl, stainless steel, undermount"},{"$nulls":3},{"$f":"'2 REPAIR ESTIMATOR'!AQ685","v":{"v":367.5,"d":"$368"}},null,{"v":0.245,"d":"$0.2"},{"v":0.002620320855614973,"d":"0.3%"},{"$nulls":4},1]
[null,null,{"$f":"T('2 REPAIR ESTIMATOR'!D686:O686)","v":"Kitchen sink bowl, composite, undermount"},{"$nulls":3},{"$f":"'2 REPAIR ESTIMATOR'!AQ686","v":{"v":0,"d":"$0"}},null,{"v":0,"d":"$0.0"},{"v":0,"d":"0.0%"},{"$nulls":4},0]
[null,null,{"$f":"T('2 REPAIR ESTIMATOR'!D687:O687)","v":"Bathrooms"},{"$nulls":3},{"$f":"'2 REPAIR ESTIMATOR'!AQ687","v":{"v":0,"d":"$0"}},null,{"v":0,"d":"$0.0"},{"v":0,"d":"0.0%"},{"$nulls":4},0]
[null,null,{"$f":"T('2 REPAIR ESTIMATOR'!D688:O688)","v":"Vanity cabinet"},{"$nulls":3},{"$f":"'2 REPAIR ESTIMATOR'!AQ688","v":{"v":1684,"d":"$1,684"}},null,{"v":1.1226666666666667,"d":"$1.1"},{"v":0.012007130124777183,"d":"1.2%"},{"$nulls":4},1]
[null,null,{"$f":"T('2 REPAIR ESTIMATOR'!D689:O689)","v":"New cabinet door pulls"},{"$nulls":3},{"$f":"'2 REPAIR ESTIMATOR'!AQ689","v":{"v":0,"d":"$0"}},null,{"v":0,"d":"$0.0"},{"v":0,"d":"0.0%"},{"$nulls":4},0]
[null,null,{"$f":"T('2 REPAIR ESTIMATOR'!D690:O690)","v":"Vanity countertop, stone/solid surface"},{"$nulls":3},{"$f":"'2 REPAIR ESTIMATOR'!AQ690","v":{"v":0,"d":"$0"}},null,{"v":0,"d":"$0.0"},{"v":0,"d":"0.0%"},{"$nulls":4},0]
[null,null,{"$f":"T('2 REPAIR ESTIMATOR'!D691:O691)","v":""},{"$nulls":3},{"$f":"'2 REPAIR ESTIMATOR'!AQ691","v":{"v":0,"d":"$0"}},null,{"v":0,"d":"$0.0"},{"v":0,"d":"0.0%"},{"$nulls":4},0]
[null,null,{"$f":"T('2 REPAIR ESTIMATOR'!D692:O692)","v":""},{"$nulls":3},{"$f":"'2 REPAIR ESTIMATOR'!AQ692","v":{"v":0,"d":"$0"}},null,{"v":0,"d":"$0.0"},{"v":0,"d":"0.0%"},{"$nulls":4},0]
[null,null,{"$f":"T('2 REPAIR ESTIMATOR'!D693:O693)","v":""},{"$nulls":3},{"$f":"'2 REPAIR ESTIMATOR'!AQ693","v":{"v":0,"d":"$0"}},null,{"v":0,"d":"$0.0"},{"v":0,"d":"0.0%"},{"$nulls":4},0]
[null,null,{"$f":"T('2 REPAIR ESTIMATOR'!D694:O694)","v":""},{"$nulls":3},{"$f":"'2 REPAIR ESTIMATOR'!AQ694","v":{"v":0,"d":"$0"}},null,{"v":0,"d":"$0.0"},{"v":0,"d":"0.0%"},{"$nulls":4},0]
[null,null,{"$f":"T('2 REPAIR ESTIMATOR'!D695:O695)","v":""},{"$nulls":3},{"$f":"'2 REPAIR ESTIMATOR'!AQ695","v":{"v":0,"d":"$0"}},null,{"v":0,"d":"$0.0"},{"v":0,"d":"0.0%"},{"$nulls":4},0]
[null,null,{"$f":"T('2 REPAIR ESTIMATOR'!D696:O696)","v":""},{"$nulls":3},{"$f":"'2 REPAIR ESTIMATOR'!AQ696","v":{"v":0,"d":"$0"}},null,{"v":0,"d":"$0.0"},{"v":0,"d":"0.0%"},{"$nulls":4},0]
[null,null,{"$f":"T('2 REPAIR ESTIMATOR'!D697:O697)","v":""},{"$nulls":3},{"$f":"'2 REPAIR ESTIMATOR'!AQ697","v":{"v":0,"d":"$0"}},null,{"v":0,"d":"$0.0"},{"v":0,"d":"0.0%"},{"$nulls":4},0]
[null,null,{"$f":"T('2 REPAIR ESTIMATOR'!D698:O698)","v":""},{"$nulls":3},{"$f":"'2 REPAIR ESTIMATOR'!AQ698","v":{"v":0,"d":"$0"}},null,{"v":0,"d":"$0.0"},{"v":0,"d":"0.0%"},{"$nulls":4},0]
[null,null,{"$f":"T('2 REPAIR ESTIMATOR'!D699:O699)","v":""},{"$nulls":3},{"$f":"'2 REPAIR ESTIMATOR'!AQ699","v":{"v":0,"d":"$0"}},null,{"v":0,"d":"$0.0"},{"v":0,"d":"0.0%"},{"$nulls":4},0]
[null,null,{"$f":"T('2 REPAIR ESTIMATOR'!D700:O700)","v":""},{"$nulls":3},{"$f":"'2 REPAIR ESTIMATOR'!AQ700","v":{"v":0,"d":"$0"}},null,{"v":0,"d":"$0.0"},{"v":0,"d":"0.0%"},{"$nulls":4},0]
[null,null,{"$f":"T('2 REPAIR ESTIMATOR'!D701:O701)","v":""},{"$nulls":3},{"$f":"'2 REPAIR ESTIMATOR'!AQ701","v":{"v":0,"d":"$0"}},null,{"v":0,"d":"$0.0"},{"v":0,"d":"0.0%"},{"$nulls":4},0]
[null,null,{"$f":"T('2 REPAIR ESTIMATOR'!D702:O702)","v":""},{"$nulls":3},{"$f":"'2 REPAIR ESTIMATOR'!AQ702","v":{"v":0,"d":"$0"}},null,{"v":0,"d":"$0.0"},{"v":0,"d":"0.0%"},{"$nulls":4},0]
[null,null,{"$f":"T('2 REPAIR ESTIMATOR'!D703:O703)","v":""},{"$nulls":3},{"$f":"'2 REPAIR ESTIMATOR'!AQ703","v":{"v":0,"d":"$0"}},null,{"v":0,"d":"$0.0"},{"v":0,"d":"0.0%"},{"$nulls":4},0]
[null,null,{"$f":"T('2 REPAIR ESTIMATOR'!D704:O704)","v":""},{"$nulls":3},{"$f":"'2 REPAIR ESTIMATOR'!AQ704","v":{"v":0,"d":"$0"}},null,{"v":0,"d":"$0.0"},{"v":0,"d":"0.0%"},{"$nulls":4},0]
[null,null,{"$f":"T('2 REPAIR ESTIMATOR'!D705:O705)","v":""},{"$nulls":3},{"$f":"'2 REPAIR ESTIMATOR'!AQ705","v":{"v":0,"d":"$0"}},null,{"v":0,"d":"$0.0"},{"v":0,"d":"0.0%"},{"$nulls":4},0]
[null,null,{"$f":"T('2 REPAIR ESTIMATOR'!D706:O706)","v":""},{"$nulls":3},{"$f":"'2 REPAIR ESTIMATOR'!AQ706","v":{"v":0,"d":"$0"}},null,{"v":0,"d":"$0.0"},{"v":0,"d":"0.0%"},{"$nulls":4},0]
[null,null,{"$f":"T('2 REPAIR ESTIMATOR'!D707:O707)","v":""},{"$nulls":3},{"$f":"'2 REPAIR ESTIMATOR'!AQ707","v":{"v":0,"d":"$0"}},null,{"v":0,"d":"$0.0"},{"v":0,"d":"0.0%"},{"$nulls":4},0]
[null,null,{"$f":"T('2 REPAIR ESTIMATOR'!D708:O708)","v":""},{"$nulls":3},{"$f":"'2 REPAIR ESTIMATOR'!AQ708","v":{"v":0,"d":"$0"}},null,{"v":0,"d":"$0.0"},{"v":0,"d":"0.0%"},{"$nulls":4},0]
[null,null,{"$f":"T('2 REPAIR ESTIMATOR'!D709:O709)","v":""},{"$nulls":3},{"$f":"'2 REPAIR ESTIMATOR'!AQ709","v":{"v":0,"d":"$0"}},null,{"v":0,"d":"$0.0"},{"v":0,"d":"0.0%"},{"$nulls":4},0]
[null,null,{"$f":"T('2 REPAIR ESTIMATOR'!D710:O710)","v":""},{"$nulls":3},{"$f":"'2 REPAIR ESTIMATOR'!AQ710","v":{"v":0,"d":"$0"}},null,{"v":0,"d":"$0.0"},{"v":0,"d":"0.0%"},{"$nulls":4},0]
[null,null,{"$f":"T('2 REPAIR ESTIMATOR'!D711:O711)","v":""},{"$nulls":3},{"$f":"'2 REPAIR ESTIMATOR'!AQ711","v":{"v":0,"d":"$0"}},null,{"v":0,"d":"$0.0"},{"v":0,"d":"0.0%"},{"$nulls":4},0]
[null,null,{"$f":"T('2 REPAIR ESTIMATOR'!D712:O712)","v":""},{"$nulls":3},{"$f":"'2 REPAIR ESTIMATOR'!AQ712","v":{"v":0,"d":"$0"}},null,{"v":0,"d":"$0.0"},{"v":0,"d":"0.0%"},{"$nulls":4},0]
[null,null,{"$f":"T('2 REPAIR ESTIMATOR'!AC714)","v":"CABINETS & COUNTERTOPS TOTAL"},{"$nulls":3},{"$f":"SUM(G611:H650)","v":{"v":11446.25,"d":"$11,446"}},null,{"$f":"SUM(I611:I650)","v":{"v":7.630833333333333,"d":"$8"}},{"$f":"SUM(J611:J650)","v":{"v":0.08161319073083778,"d":"8.2%"}},{"$nulls":4},{"$f":"SUM(O611:O650)","v":6}]
[{"$nulls":14},{"$f":"O651","v":6}]
[null,null,{"$f":"T('2 REPAIR ESTIMATOR'!D717:O717)","v":"DOORS & TRIM"},{"$nulls":11},{"$f":"SUM(O654:O693)","v":1}]
[null,null,{"$f":"T('2 REPAIR ESTIMATOR'!D718:O718)","v":"Finish carpentry bid/allowance"},{"$nulls":3},{"$f":"'2 REPAIR ESTIMATOR'!AQ718","v":{"v":0,"d":"$0"}},null,{"$f":"IFERROR(G654/Property_Size,0)","v":{"v":0,"d":"$0.0"}},{"$f":"IFERROR(G654/Total_Project_Costs_Result,0)","v":{"v":0,"d":"0.0%"}},{"$nulls":4},{"$f":"IF(G654>0,1,0)","v":0}]
[null,null,{"$f":"T('2 REPAIR ESTIMATOR'!D719:O719)","v":"Interior door, prehung, hollow-core door"},{"$nulls":3},{"$f":"'2 REPAIR ESTIMATOR'!AQ719","v":{"v":2409,"d":"$2,409"}},null,{"v":1.606,"d":"$1.6"},{"v":0.017176470588235293,"d":"1.7%"},{"$nulls":4},{"$f":"IF(G655>0,1,0)","v":1}]
[null,null,{"$f":"T('2 REPAIR ESTIMATOR'!D720:O720)","v":"Interior mirrored, sliding, closet doors"},{"$nulls":3},{"$f":"'2 REPAIR ESTIMATOR'!AQ720","v":{"v":0,"d":"$0"}},null,{"v":0,"d":"$0.0"},{"v":0,"d":"0.0%"},{"$nulls":4},0]
[null,null,{"$f":"T('2 REPAIR ESTIMATOR'!D721:O721)","v":"Interior bi-fold, closet doors"},{"$nulls":3},{"$f":"'2 REPAIR ESTIMATOR'!AQ721","v":{"v":0,"d":"$0"}},null,{"v":0,"d":"$0.0"},{"v":0,"d":"0.0%"},{"$nulls":4},0]
[null,null,{"$f":"T('2 REPAIR ESTIMATOR'!D722:O722)","v":"Door hardware, knobs only"},{"$nulls":3},{"$f":"'2 REPAIR ESTIMATOR'!AQ722","v":{"v":0,"d":"$0"}},null,{"v":0,"d":"$0.0"},{"v":0,"d":"0.0%"},{"$nulls":4},0]
[null,null,{"$f":"T('2 REPAIR ESTIMATOR'!D723:O723)","v":"Door casings"},{"$nulls":3},{"$f":"'2 REPAIR ESTIMATOR'!AQ723","v":{"v":0,"d":"$0"}},null,{"v":0,"d":"$0.0"},{"v":0,"d":"0.0%"},{"$nulls":4},0]
[null,null,{"$f":"T('2 REPAIR ESTIMATOR'!D724:O724)","v":"Window casings"},{"$nulls":3},{"$f":"'2 REPAIR ESTIMATOR'!AQ724","v":{"v":0,"d":"$0"}},null,{"v":0,"d":"$0.0"},{"v":0,"d":"0.0%"},{"$nulls":4},0]
[null,null,{"$f":"T('2 REPAIR ESTIMATOR'!D725:O725)","v":"Window sills"},{"$nulls":3},{"$f":"'2 REPAIR ESTIMATOR'!AQ725","v":{"v":0,"d":"$0"}},null,{"v":0,"d":"$0.0"},{"v":0,"d":"0.0%"},{"$nulls":4},0]
[null,null,{"$f":"T('2 REPAIR ESTIMATOR'!D726:O726)","v":"Wood  base"},{"$nulls":3},{"$f":"'2 REPAIR ESTIMATOR'!AQ726","v":{"v":0,"d":"$0"}},null,{"v":0,"d":"$0.0"},{"v":0,"d":"0.0%"},{"$nulls":4},0]
[null,null,{"$f":"T('2 REPAIR ESTIMATOR'!D727:O727)","v":"Crown molding"},{"$nulls":3},{"$f":"'2 REPAIR ESTIMATOR'!AQ727","v":{"v":0,"d":"$0"}},null,{"v":0,"d":"$0.0"},{"v":0,"d":"0.0%"},{"$nulls":4},0]
[null,null,{"$f":"T('2 REPAIR ESTIMATOR'!D728:O728)","v":"Raised panel wood wainscoting"},{"$nulls":3},{"$f":"'2 REPAIR ESTIMATOR'!AQ728","v":{"v":0,"d":"$0"}},null,{"v":0,"d":"$0.0"},{"v":0,"d":"0.0%"},{"$nulls":4},0]
[null,null,{"$f":"T('2 REPAIR ESTIMATOR'!D729:O729)","v":"Bead board wainscoting"},{"$nulls":3},{"$f":"'2 REPAIR ESTIMATOR'!AQ729","v":{"v":0,"d":"$0"}},null,{"v":0,"d":"$0.0"},{"v":0,"d":"0.0%"},{"$nulls":4},0]
[null,null,{"$f":"T('2 REPAIR ESTIMATOR'!D730:O730)","v":"Fireplace mantel"},{"$nulls":3},{"$f":"'2 REPAIR ESTIMATOR'!AQ730","v":{"v":0,"d":"$0"}},null,{"v":0,"d":"$0.0"},{"v":0,"d":"0.0%"},{"$nulls":4},0]
[null,null,{"$f":"T('2 REPAIR ESTIMATOR'!D731:O731)","v":"Wood columns"},{"$nulls":3},{"$f":"'2 REPAIR ESTIMATOR'!AQ731","v":{"v":0,"d":"$0"}},null,{"v":0,"d":"$0.0"},{"v":0,"d":"0.0%"},{"$nulls":4},0]
[null,null,{"$f":"T('2 REPAIR ESTIMATOR'!D732:O732)","v":"Closet shelf and rod"},{"$nulls":3},{"$f":"'2 REPAIR ESTIMATOR'!AQ732","v":{"v":0,"d":"$0"}},null,{"v":0,"d":"$0.0"},{"v":0,"d":"0.0%"},{"$nulls":4},0]
[null,null,{"$f":"T('2 REPAIR ESTIMATOR'!D733:O733)","v":"Closet kit, 8ft long"},{"$nulls":3},{"$f":"'2 REPAIR ESTIMATOR'!AQ733","v":{"v":0,"d":"$0"}},null,{"v":0,"d":"$0.0"},{"v":0,"d":"0.0%"},{"$nulls":4},0]
[null,null,{"$f":"T('2 REPAIR ESTIMATOR'!D734:O734)","v":"Wood handrail - rail only"},{"$nulls":3},{"$f":"'2 REPAIR ESTIMATOR'!AQ734","v":{"v":0,"d":"$0"}},null,{"v":0,"d":"$0.0"},{"v":0,"d":"0.0%"},{"$nulls":4},0]
[null,null,{"$f":"T('2 REPAIR ESTIMATOR'!D735:O735)","v":"Wood balusters"},{"$nulls":3},{"$f":"'2 REPAIR ESTIMATOR'!AQ735","v":{"v":0,"d":"$0"}},null,{"v":0,"d":"$0.0"},{"v":0,"d":"0.0%"},{"$nulls":4},0]
[null,null,{"$f":"T('2 REPAIR ESTIMATOR'!D736:O736)","v":"Iron balusters"},{"$nulls":3},{"$f":"'2 REPAIR ESTIMATOR'!AQ736","v":{"v":0,"d":"$0"}},null,{"v":0,"d":"$0.0"},{"v":0,"d":"0.0%"},{"$nulls":4},0]
[null,null,{"$f":"T('2 REPAIR ESTIMATOR'!D737:O737)","v":""},{"$nulls":3},{"$f":"'2 REPAIR ESTIMATOR'!AQ737","v":{"v":0,"d":"$0"}},null,{"v":0,"d":"$0.0"},{"v":0,"d":"0.0%"},{"$nulls":4},0]
[null,null,{"$f":"T('2 REPAIR ESTIMATOR'!D738:O738)","v":""},{"$nulls":3},{"$f":"'2 REPAIR ESTIMATOR'!AQ738","v":{"v":0,"d":"$0"}},null,{"v":0,"d":"$0.0"},{"v":0,"d":"0.0%"},{"$nulls":4},0]
[null,null,{"$f":"T('2 REPAIR ESTIMATOR'!D739:O739)","v":""},{"$nulls":3},{"$f":"'2 REPAIR ESTIMATOR'!AQ739","v":{"v":0,"d":"$0"}},null,{"v":0,"d":"$0.0"},{"v":0,"d":"0.0%"},{"$nulls":4},0]
[null,null,{"$f":"T('2 REPAIR ESTIMATOR'!D740:O740)","v":""},{"$nulls":3},{"$f":"'2 REPAIR ESTIMATOR'!AQ740","v":{"v":0,"d":"$0"}},null,{"v":0,"d":"$0.0"},{"v":0,"d":"0.0%"},{"$nulls":4},0]
[null,null,{"$f":"T('2 REPAIR ESTIMATOR'!D741:O741)","v":""},{"$nulls":3},{"$f":"'2 REPAIR ESTIMATOR'!AQ741","v":{"v":0,"d":"$0"}},null,{"v":0,"d":"$0.0"},{"v":0,"d":"0.0%"},{"$nulls":4},0]
[null,null,{"$f":"T('2 REPAIR ESTIMATOR'!D742:O742)","v":""},{"$nulls":3},{"$f":"'2 REPAIR ESTIMATOR'!AQ742","v":{"v":0,"d":"$0"}},null,{"v":0,"d":"$0.0"},{"v":0,"d":"0.0%"},{"$nulls":4},0]
[null,null,{"$f":"T('2 REPAIR ESTIMATOR'!D743:O743)","v":""},{"$nulls":3},{"$f":"'2 REPAIR ESTIMATOR'!AQ743","v":{"v":0,"d":"$0"}},null,{"v":0,"d":"$0.0"},{"v":0,"d":"0.0%"},{"$nulls":4},0]
[null,null,{"$f":"T('2 REPAIR ESTIMATOR'!D744:O744)","v":""},{"$nulls":3},{"$f":"'2 REPAIR ESTIMATOR'!AQ744","v":{"v":0,"d":"$0"}},null,{"v":0,"d":"$0.0"},{"v":0,"d":"0.0%"},{"$nulls":4},0]
[null,null,{"$f":"T('2 REPAIR ESTIMATOR'!D745:O745)","v":""},{"$nulls":3},{"$f":"'2 REPAIR ESTIMATOR'!AQ745","v":{"v":0,"d":"$0"}},null,{"v":0,"d":"$0.0"},{"v":0,"d":"0.0%"},{"$nulls":4},0]
[null,null,{"$f":"T('2 REPAIR ESTIMATOR'!D746:O746)","v":""},{"$nulls":3},{"$f":"'2 REPAIR ESTIMATOR'!AQ746","v":{"v":0,"d":"$0"}},null,{"v":0,"d":"$0.0"},{"v":0,"d":"0.0%"},{"$nulls":4},0]
[null,null,{"$f":"T('2 REPAIR ESTIMATOR'!D747:O747)","v":""},{"$nulls":3},{"$f":"'2 REPAIR ESTIMATOR'!AQ747","v":{"v":0,"d":"$0"}},null,{"v":0,"d":"$0.0"},{"v":0,"d":"0.0%"},{"$nulls":4},0]
[null,null,{"$f":"T('2 REPAIR ESTIMATOR'!D748:O748)","v":""},{"$nulls":3},{"$f":"'2 REPAIR ESTIMATOR'!AQ748","v":{"v":0,"d":"$0"}},null,{"v":0,"d":"$0.0"},{"v":0,"d":"0.0%"},{"$nulls":4},0]
[null,null,{"$f":"T('2 REPAIR ESTIMATOR'!D749:O749)","v":""},{"$nulls":3},{"$f":"'2 REPAIR ESTIMATOR'!AQ749","v":{"v":0,"d":"$0"}},null,{"v":0,"d":"$0.0"},{"v":0,"d":"0.0%"},{"$nulls":4},0]
[null,null,{"$f":"T('2 REPAIR ESTIMATOR'!D750:O750)","v":""},{"$nulls":3},{"$f":"'2 REPAIR ESTIMATOR'!AQ750","v":{"v":0,"d":"$0"}},null,{"v":0,"d":"$0.0"},{"v":0,"d":"0.0%"},{"$nulls":4},0]
[null,null,{"$f":"T('2 REPAIR ESTIMATOR'!D751:O751)","v":""},{"$nulls":3},{"$f":"'2 REPAIR ESTIMATOR'!AQ751","v":{"v":0,"d":"$0"}},null,{"v":0,"d":"$0.0"},{"v":0,"d":"0.0%"},{"$nulls":4},0]
[null,null,{"$f":"T('2 REPAIR ESTIMATOR'!D752:O752)","v":""},{"$nulls":3},{"$f":"'2 REPAIR ESTIMATOR'!AQ752","v":{"v":0,"d":"$0"}},null,{"v":0,"d":"$0.0"},{"v":0,"d":"0.0%"},{"$nulls":4},0]
[null,null,{"$f":"T('2 REPAIR ESTIMATOR'!D753:O753)","v":""},{"$nulls":3},{"$f":"'2 REPAIR ESTIMATOR'!AQ753","v":{"v":0,"d":"$0"}},null,{"v":0,"d":"$0.0"},{"v":0,"d":"0.0%"},{"$nulls":4},0]
[null,null,{"$f":"T('2 REPAIR ESTIMATOR'!D754:O754)","v":""},{"$nulls":3},{"$f":"'2 REPAIR ESTIMATOR'!AQ754","v":{"v":0,"d":"$0"}},null,{"v":0,"d":"$0.0"},{"v":0,"d":"0.0%"},{"$nulls":4},0]
[null,null,{"$f":"T('2 REPAIR ESTIMATOR'!D755:O755)","v":""},{"$nulls":3},{"$f":"'2 REPAIR ESTIMATOR'!AQ755","v":{"v":0,"d":"$0"}},null,{"v":0,"d":"$0.0"},{"v":0,"d":"0.0%"},{"$nulls":4},0]
[null,null,{"$f":"T('2 REPAIR ESTIMATOR'!D756:O756)","v":""},{"$nulls":3},{"$f":"'2 REPAIR ESTIMATOR'!AQ756","v":{"v":0,"d":"$0"}},null,{"v":0,"d":"$0.0"},{"v":0,"d":"0.0%"},{"$nulls":4},0]
[null,null,{"$f":"T('2 REPAIR ESTIMATOR'!D757:O757)","v":""},{"$nulls":3},{"$f":"'2 REPAIR ESTIMATOR'!AQ757","v":{"v":0,"d":"$0"}},null,{"v":0,"d":"$0.0"},{"v":0,"d":"0.0%"},{"$nulls":4},0]
[null,null,{"$f":"T('2 REPAIR ESTIMATOR'!AC759)","v":"DOORS & TRIM TOTAL"},{"$nulls":3},{"$f":"SUM(G654:H693)","v":{"v":2409,"d":"$2,409"}},null,{"$f":"SUM(I654:I693)","v":{"v":1.606,"d":"$2"}},{"$f":"SUM(J654:J693)","v":{"v":0.017176470588235293,"d":"1.7%"}},{"$nulls":4},{"$f":"SUM(O654:O693)","v":1}]
[{"$nulls":14},{"$f":"O694","v":1}]
[null,null,{"$f":"T('2 REPAIR ESTIMATOR'!D762:O762)","v":"CARPET & RESILIENT"},{"$nulls":11},{"$f":"SUM(O697:O736)","v":1}]
[null,null,{"$f":"T('2 REPAIR ESTIMATOR'!D763:O763)","v":"Carpeting & Resilient bid/allowance"},{"$nulls":3},{"$f":"'2 REPAIR ESTIMATOR'!AQ763","v":{"v":0,"d":"$0"}},null,{"$f":"IFERROR(G697/Property_Size,0)","v":{"v":0,"d":"$0.0"}},{"$f":"IFERROR(G697/Total_Project_Costs_Result,0)","v":{"v":0,"d":"0.0%"}},{"$nulls":4},{"$f":"IF(G697>0,1,0)","v":0}]
[null,null,{"$f":"T('2 REPAIR ESTIMATOR'!D764:O764)","v":"Carpeting"},{"$nulls":3},{"$f":"'2 REPAIR ESTIMATOR'!AQ764","v":{"v":0,"d":"$0"}},null,{"v":0,"d":"$0.0"},{"v":0,"d":"0.0%"},{"$nulls":4},{"$f":"IF(G698>0,1,0)","v":0}]
[null,null,{"$f":"T('2 REPAIR ESTIMATOR'!D765:O765)","v":"Carpet, economy grade"},{"$nulls":3},{"$f":"'2 REPAIR ESTIMATOR'!AQ765","v":{"v":2505,"d":"$2,505"}},null,{"v":1.67,"d":"$1.7"},{"v":0.01786096256684492,"d":"1.8%"},{"$nulls":4},1]
[null,null,{"$f":"T('2 REPAIR ESTIMATOR'!D766:O766)","v":"Carpet average grade"},{"$nulls":3},{"$f":"'2 REPAIR ESTIMATOR'!AQ766","v":{"v":0,"d":"$0"}},null,{"v":0,"d":"$0.0"},{"v":0,"d":"0.0%"},{"$nulls":4},0]
[null,null,{"$f":"T('2 REPAIR ESTIMATOR'!D767:O767)","v":"Carpet, premium grade"},{"$nulls":3},{"$f":"'2 REPAIR ESTIMATOR'!AQ767","v":{"v":0,"d":"$0"}},null,{"v":0,"d":"$0.0"},{"v":0,"d":"0.0%"},{"$nulls":4},0]
[null,null,{"$f":"T('2 REPAIR ESTIMATOR'!D768:O768)","v":""},{"$nulls":3},{"$f":"'2 REPAIR ESTIMATOR'!AQ768","v":{"v":0,"d":"$0"}},null,{"v":0,"d":"$0.0"},{"v":0,"d":"0.0%"},{"$nulls":4},0]
[null,null,{"$f":"T('2 REPAIR ESTIMATOR'!D769:O769)","v":""},{"$nulls":3},{"$f":"'2 REPAIR ESTIMATOR'!AQ769","v":{"v":0,"d":"$0"}},null,{"v":0,"d":"$0.0"},{"v":0,"d":"0.0%"},{"$nulls":4},0]
[null,null,{"$f":"T('2 REPAIR ESTIMATOR'!D770:O770)","v":"Sheet Vinyl"},{"$nulls":3},{"$f":"'2 REPAIR ESTIMATOR'!AQ770","v":{"v":0,"d":"$0"}},null,{"v":0,"d":"$0.0"},{"v":0,"d":"0.0%"},{"$nulls":4},0]
[null,null,{"$f":"T('2 REPAIR ESTIMATOR'!D771:O771)","v":"Sheet vinyl, economy grade"},{"$nulls":3},{"$f":"'2 REPAIR ESTIMATOR'!AQ771","v":{"v":0,"d":"$0"}},null,{"v":0,"d":"$0.0"},{"v":0,"d":"0.0%"},{"$nulls":4},0]
[null,null,{"$f":"T('2 REPAIR ESTIMATOR'!D772:O772)","v":"Sheet vinyl, average grade"},{"$nulls":3},{"$f":"'2 REPAIR ESTIMATOR'!AQ772","v":{"v":0,"d":"$0"}},null,{"v":0,"d":"$0.0"},{"v":0,"d":"0.0%"},{"$nulls":4},0]
[null,null,{"$f":"T('2 REPAIR ESTIMATOR'!D773:O773)","v":"Sheet vinyl, premium grade"},{"$nulls":3},{"$f":"'2 REPAIR ESTIMATOR'!AQ773","v":{"v":0,"d":"$0"}},null,{"v":0,"d":"$0.0"},{"v":0,"d":"0.0%"},{"$nulls":4},0]
[null,null,{"$f":"T('2 REPAIR ESTIMATOR'!D774:O774)","v":"Clean and wax vinyl"},{"$nulls":3},{"$f":"'2 REPAIR ESTIMATOR'!AQ774","v":{"v":0,"d":"$0"}},null,{"v":0,"d":"$0.0"},{"v":0,"d":"0.0%"},{"$nulls":4},0]
[null,null,{"$f":"T('2 REPAIR ESTIMATOR'!D775:O775)","v":""},{"$nulls":3},{"$f":"'2 REPAIR ESTIMATOR'!AQ775","v":{"v":0,"d":"$0"}},null,{"v":0,"d":"$0.0"},{"v":0,"d":"0.0%"},{"$nulls":4},0]
[null,null,{"$f":"T('2 REPAIR ESTIMATOR'!D776:O776)","v":"Vinyl Tile"},{"$nulls":3},{"$f":"'2 REPAIR ESTIMATOR'!AQ776","v":{"v":0,"d":"$0"}},null,{"v":0,"d":"$0.0"},{"v":0,"d":"0.0%"},{"$nulls":4},0]
[null,null,{"$f":"T('2 REPAIR ESTIMATOR'!D777:O777)","v":"Vinyl tile, economy grade"},{"$nulls":3},{"$f":"'2 REPAIR ESTIMATOR'!AQ777","v":{"v":0,"d":"$0"}},null,{"v":0,"d":"$0.0"},{"v":0,"d":"0.0%"},{"$nulls":4},0]
[null,null,{"$f":"T('2 REPAIR ESTIMATOR'!D778:O778)","v":"Vinyl tile, average grade"},{"$nulls":3},{"$f":"'2 REPAIR ESTIMATOR'!AQ778","v":{"v":0,"d":"$0"}},null,{"v":0,"d":"$0.0"},{"v":0,"d":"0.0%"},{"$nulls":4},0]
[null,null,{"$f":"T('2 REPAIR ESTIMATOR'!D779:O779)","v":"Vinyl tile, premium grade"},{"$nulls":3},{"$f":"'2 REPAIR ESTIMATOR'!AQ779","v":{"v":0,"d":"$0"}},null,{"v":0,"d":"$0.0"},{"v":0,"d":"0.0%"},{"$nulls":4},0]
[null,null,{"$f":"T('2 REPAIR ESTIMATOR'!D780:O780)","v":"Clean and wax vinyl"},{"$nulls":3},{"$f":"'2 REPAIR ESTIMATOR'!AQ780","v":{"v":0,"d":"$0"}},null,{"v":0,"d":"$0.0"},{"v":0,"d":"0.0%"},{"$nulls":4},0]
[null,null,{"$f":"T('2 REPAIR ESTIMATOR'!D781:O781)","v":""},{"$nulls":3},{"$f":"'2 REPAIR ESTIMATOR'!AQ781","v":{"v":0,"d":"$0"}},null,{"v":0,"d":"$0.0"},{"v":0,"d":"0.0%"},{"$nulls":4},0]
[null,null,{"$f":"T('2 REPAIR ESTIMATOR'!D782:O782)","v":""},{"$nulls":3},{"$f":"'2 REPAIR ESTIMATOR'!AQ782","v":{"v":0,"d":"$0"}},null,{"v":0,"d":"$0.0"},{"v":0,"d":"0.0%"},{"$nulls":4},0]
[null,null,{"$f":"T('2 REPAIR ESTIMATOR'!D783:O783)","v":""},{"$nulls":3},{"$f":"'2 REPAIR ESTIMATOR'!AQ783","v":{"v":0,"d":"$0"}},null,{"v":0,"d":"$0.0"},{"v":0,"d":"0.0%"},{"$nulls":4},0]
[null,null,{"$f":"T('2 REPAIR ESTIMATOR'!D784:O784)","v":""},{"$nulls":3},{"$f":"'2 REPAIR ESTIMATOR'!AQ784","v":{"v":0,"d":"$0"}},null,{"v":0,"d":"$0.0"},{"v":0,"d":"0.0%"},{"$nulls":4},0]
[null,null,{"$f":"T('2 REPAIR ESTIMATOR'!D785:O785)","v":""},{"$nulls":3},{"$f":"'2 REPAIR ESTIMATOR'!AQ785","v":{"v":0,"d":"$0"}},null,{"v":0,"d":"$0.0"},{"v":0,"d":"0.0%"},{"$nulls":4},0]
[null,null,{"$f":"T('2 REPAIR ESTIMATOR'!D786:O786)","v":""},{"$nulls":3},{"$f":"'2 REPAIR ESTIMATOR'!AQ786","v":{"v":0,"d":"$0"}},null,{"v":0,"d":"$0.0"},{"v":0,"d":"0.0%"},{"$nulls":4},0]
[null,null,{"$f":"T('2 REPAIR ESTIMATOR'!D787:O787)","v":""},{"$nulls":3},{"$f":"'2 REPAIR ESTIMATOR'!AQ787","v":{"v":0,"d":"$0"}},null,{"v":0,"d":"$0.0"},{"v":0,"d":"0.0%"},{"$nulls":4},0]
[null,null,{"$f":"T('2 REPAIR ESTIMATOR'!D788:O788)","v":""},{"$nulls":3},{"$f":"'2 REPAIR ESTIMATOR'!AQ788","v":{"v":0,"d":"$0"}},null,{"v":0,"d":"$0.0"},{"v":0,"d":"0.0%"},{"$nulls":4},0]
[null,null,{"$f":"T('2 REPAIR ESTIMATOR'!D789:O789)","v":""},{"$nulls":3},{"$f":"'2 REPAIR ESTIMATOR'!AQ789","v":{"v":0,"d":"$0"}},null,{"v":0,"d":"$0.0"},{"v":0,"d":"0.0%"},{"$nulls":4},0]
[null,null,{"$f":"T('2 REPAIR ESTIMATOR'!D790:O790)","v":""},{"$nulls":3},{"$f":"'2 REPAIR ESTIMATOR'!AQ790","v":{"v":0,"d":"$0"}},null,{"v":0,"d":"$0.0"},{"v":0,"d":"0.0%"},{"$nulls":4},0]
[null,null,{"$f":"T('2 REPAIR ESTIMATOR'!D791:O791)","v":""},{"$nulls":3},{"$f":"'2 REPAIR ESTIMATOR'!AQ791","v":{"v":0,"d":"$0"}},null,{"v":0,"d":"$0.0"},{"v":0,"d":"0.0%"},{"$nulls":4},0]
[null,null,{"$f":"T('2 REPAIR ESTIMATOR'!D792:O792)","v":""},{"$nulls":3},{"$f":"'2 REPAIR ESTIMATOR'!AQ792","v":{"v":0,"d":"$0"}},null,{"v":0,"d":"$0.0"},{"v":0,"d":"0.0%"},{"$nulls":4},0]
[null,null,{"$f":"T('2 REPAIR ESTIMATOR'!D793:O793)","v":""},{"$nulls":3},{"$f":"'2 REPAIR ESTIMATOR'!AQ793","v":{"v":0,"d":"$0"}},null,{"v":0,"d":"$0.0"},{"v":0,"d":"0.0%"},{"$nulls":4},0]
[null,null,{"$f":"T('2 REPAIR ESTIMATOR'!D794:O794)","v":""},{"$nulls":3},{"$f":"'2 REPAIR ESTIMATOR'!AQ794","v":{"v":0,"d":"$0"}},null,{"v":0,"d":"$0.0"},{"v":0,"d":"0.0%"},{"$nulls":4},0]
[null,null,{"$f":"T('2 REPAIR ESTIMATOR'!D795:O795)","v":""},{"$nulls":3},{"$f":"'2 REPAIR ESTIMATOR'!AQ795","v":{"v":0,"d":"$0"}},null,{"v":0,"d":"$0.0"},{"v":0,"d":"0.0%"},{"$nulls":4},0]
[null,null,{"$f":"T('2 REPAIR ESTIMATOR'!D796:O796)","v":""},{"$nulls":3},{"$f":"'2 REPAIR ESTIMATOR'!AQ796","v":{"v":0,"d":"$0"}},null,{"v":0,"d":"$0.0"},{"v":0,"d":"0.0%"},{"$nulls":4},0]
[null,null,{"$f":"T('2 REPAIR ESTIMATOR'!D797:O797)","v":""},{"$nulls":3},{"$f":"'2 REPAIR ESTIMATOR'!AQ797","v":{"v":0,"d":"$0"}},null,{"v":0,"d":"$0.0"},{"v":0,"d":"0.0%"},{"$nulls":4},0]
[null,null,{"$f":"T('2 REPAIR ESTIMATOR'!D798:O798)","v":""},{"$nulls":3},{"$f":"'2 REPAIR ESTIMATOR'!AQ798","v":{"v":0,"d":"$0"}},null,{"v":0,"d":"$0.0"},{"v":0,"d":"0.0%"},{"$nulls":4},0]
[null,null,{"$f":"T('2 REPAIR ESTIMATOR'!D799:O799)","v":""},{"$nulls":3},{"$f":"'2 REPAIR ESTIMATOR'!AQ799","v":{"v":0,"d":"$0"}},null,{"v":0,"d":"$0.0"},{"v":0,"d":"0.0%"},{"$nulls":4},0]
[null,null,{"$f":"T('2 REPAIR ESTIMATOR'!D800:O800)","v":""},{"$nulls":3},{"$f":"'2 REPAIR ESTIMATOR'!AQ800","v":{"v":0,"d":"$0"}},null,{"v":0,"d":"$0.0"},{"v":0,"d":"0.0%"},{"$nulls":4},0]
[null,null,{"$f":"T('2 REPAIR ESTIMATOR'!D801:O801)","v":""},{"$nulls":3},{"$f":"'2 REPAIR ESTIMATOR'!AQ801","v":{"v":0,"d":"$0"}},null,{"v":0,"d":"$0.0"},{"v":0,"d":"0.0%"},{"$nulls":4},0]
[null,null,{"$f":"T('2 REPAIR ESTIMATOR'!D802:O802)","v":""},{"$nulls":3},{"$f":"'2 REPAIR ESTIMATOR'!AQ802","v":{"v":0,"d":"$0"}},null,{"v":0,"d":"$0.0"},{"v":0,"d":"0.0%"},{"$nulls":4},0]
[null,null,{"$f":"T('2 REPAIR ESTIMATOR'!AC804)","v":"CARPET & RESILIENT TOTAL"},{"$nulls":3},{"$f":"SUM(G697:H736)","v":{"v":2505,"d":"$2,505"}},null,{"$f":"SUM(I697:I736)","v":{"v":1.67,"d":"$2"}},{"$f":"SUM(J697:J736)","v":{"v":0.01786096256684492,"d":"1.8%"}},{"$nulls":4},{"$f":"SUM(O697:O736)","v":1}]
[{"$nulls":14},{"$f":"O737","v":1}]
[null,null,{"$f":"T('2 REPAIR ESTIMATOR'!D807:O807)","v":"HARDWOOD FLOORING"},{"$nulls":11},{"$f":"SUM(O740:O779)","v":1}]
[null,null,{"$f":"T('2 REPAIR ESTIMATOR'!D808:O808)","v":"Hardwood floors, bid/allowance"},{"$nulls":3},{"$f":"'2 REPAIR ESTIMATOR'!AQ808","v":{"v":0,"d":"$0"}},null,{"$f":"IFERROR(G740/Property_Size,0)","v":{"v":0,"d":"$0.0"}},{"$f":"IFERROR(G740/Total_Project_Costs_Result,0)","v":{"v":0,"d":"0.0%"}},{"$nulls":4},{"$f":"IF(G740>0,1,0)","v":0}]
[null,null,{"$f":"T('2 REPAIR ESTIMATOR'!D809:O809)","v":"Laminate Flooring"},{"$nulls":3},{"$f":"'2 REPAIR ESTIMATOR'!AQ809","v":{"v":0,"d":"$0"}},null,{"v":0,"d":"$0.0"},{"v":0,"d":"0.0%"},{"$nulls":4},{"$f":"IF(G741>0,1,0)","v":0}]
[null,null,{"$f":"T('2 REPAIR ESTIMATOR'!D810:O810)","v":"Laminate wood flooring, economy grade"},{"$nulls":3},{"$f":"'2 REPAIR ESTIMATOR'!AQ810","v":{"v":0,"d":"$0"}},null,{"v":0,"d":"$0.0"},{"v":0,"d":"0.0%"},{"$nulls":4},0]
[null,null,{"$f":"T('2 REPAIR ESTIMATOR'!D811:O811)","v":"Laminate wood flooring, average grade"},{"$nulls":3},{"$f":"'2 REPAIR ESTIMATOR'!AQ811","v":{"v":0,"d":"$0"}},null,{"v":0,"d":"$0.0"},{"v":0,"d":"0.0%"},{"$nulls":4},0]
[null,null,{"$f":"T('2 REPAIR ESTIMATOR'!D812:O812)","v":"Laminate wood flooring, premium grade"},{"$nulls":3},{"$f":"'2 REPAIR ESTIMATOR'!AQ812","v":{"v":0,"d":"$0"}},null,{"v":0,"d":"$0.0"},{"v":0,"d":"0.0%"},{"$nulls":4},0]
[null,null,{"$f":"T('2 REPAIR ESTIMATOR'!D813:O813)","v":""},{"$nulls":3},{"$f":"'2 REPAIR ESTIMATOR'!AQ813","v":{"v":0,"d":"$0"}},null,{"v":0,"d":"$0.0"},{"v":0,"d":"0.0%"},{"$nulls":4},0]
[null,null,{"$f":"T('2 REPAIR ESTIMATOR'!D814:O814)","v":"Hardwood Flooring"},{"$nulls":3},{"$f":"'2 REPAIR ESTIMATOR'!AQ814","v":{"v":0,"d":"$0"}},null,{"v":0,"d":"$0.0"},{"v":0,"d":"0.0%"},{"$nulls":4},0]
[null,null,{"$f":"T('2 REPAIR ESTIMATOR'!D815:O815)","v":"Hardwood flooring, economy grade"},{"$nulls":3},{"$f":"'2 REPAIR ESTIMATOR'!AQ815","v":{"v":0,"d":"$0"}},null,{"v":0,"d":"$0.0"},{"v":0,"d":"0.0%"},{"$nulls":4},0]
[null,null,{"$f":"T('2 REPAIR ESTIMATOR'!D816:O816)","v":"Hardwood flooring, average grade"},{"$nulls":3},{"$f":"'2 REPAIR ESTIMATOR'!AQ816","v":{"v":3458,"d":"$3,458"}},null,{"v":2.3053333333333335,"d":"$2.3"},{"v":0.024655971479500893,"d":"2.5%"},{"$nulls":4},1]
[null,null,{"$f":"T('2 REPAIR ESTIMATOR'!D817:O817)","v":"Hardwood flooring, premium grade"},{"$nulls":3},{"$f":"'2 REPAIR ESTIMATOR'!AQ817","v":{"v":0,"d":"$0"}},null,{"v":0,"d":"$0.0"},{"v":0,"d":"0.0%"},{"$nulls":4},0]
[null,null,{"$f":"T('2 REPAIR ESTIMATOR'!D818:O818)","v":""},{"$nulls":3},{"$f":"'2 REPAIR ESTIMATOR'!AQ818","v":{"v":0,"d":"$0"}},null,{"v":0,"d":"$0.0"},{"v":0,"d":"0.0%"},{"$nulls":4},0]
[null,null,{"$f":"T('2 REPAIR ESTIMATOR'!D819:O819)","v":"Hardwood Floor Refinishing"},{"$nulls":3},{"$f":"'2 REPAIR ESTIMATOR'!AQ819","v":{"v":0,"d":"$0"}},null,{"v":0,"d":"$0.0"},{"v":0,"d":"0.0%"},{"$nulls":4},0]
[null,null,{"$f":"T('2 REPAIR ESTIMATOR'!D820:O820)","v":"Floor refinishing"},{"$nulls":3},{"$f":"'2 REPAIR ESTIMATOR'!AQ820","v":{"v":0,"d":"$0"}},null,{"v":0,"d":"$0.0"},{"v":0,"d":"0.0%"},{"$nulls":4},0]
[null,null,{"$f":"T('2 REPAIR ESTIMATOR'!D821:O821)","v":"Lacing new hardwood to match existing, case-by-case"},{"$nulls":3},{"$f":"'2 REPAIR ESTIMATOR'!AQ821","v":{"v":0,"d":"$0"}},null,{"v":0,"d":"$0.0"},{"v":0,"d":"0.0%"},{"$nulls":4},0]
[null,null,{"$f":"T('2 REPAIR ESTIMATOR'!D822:O822)","v":""},{"$nulls":3},{"$f":"'2 REPAIR ESTIMATOR'!AQ822","v":{"v":0,"d":"$0"}},null,{"v":0,"d":"$0.0"},{"v":0,"d":"0.0%"},{"$nulls":4},0]
[null,null,{"$f":"T('2 REPAIR ESTIMATOR'!D823:O823)","v":"Miscellaneous"},{"$nulls":3},{"$f":"'2 REPAIR ESTIMATOR'!AQ823","v":{"v":0,"d":"$0"}},null,{"v":0,"d":"$0.0"},{"v":0,"d":"0.0%"},{"$nulls":4},0]
[null,null,{"$f":"T('2 REPAIR ESTIMATOR'!D824:O824)","v":"Stair treads, 4ft avg"},{"$nulls":3},{"$f":"'2 REPAIR ESTIMATOR'!AQ824","v":{"v":0,"d":"$0"}},null,{"v":0,"d":"$0.0"},{"v":0,"d":"0.0%"},{"$nulls":4},0]
[null,null,{"$f":"T('2 REPAIR ESTIMATOR'!D825:O825)","v":"Shoe moldings"},{"$nulls":3},{"$f":"'2 REPAIR ESTIMATOR'!AQ825","v":{"v":0,"d":"$0"}},null,{"v":0,"d":"$0.0"},{"v":0,"d":"0.0%"},{"$nulls":4},0]
[null,null,{"$f":"T('2 REPAIR ESTIMATOR'!D826:O826)","v":"Underlayment"},{"$nulls":3},{"$f":"'2 REPAIR ESTIMATOR'!AQ826","v":{"v":0,"d":"$0"}},null,{"v":0,"d":"$0.0"},{"v":0,"d":"0.0%"},{"$nulls":4},0]
[null,null,{"$f":"T('2 REPAIR ESTIMATOR'!D827:O827)","v":""},{"$nulls":3},{"$f":"'2 REPAIR ESTIMATOR'!AQ827","v":{"v":0,"d":"$0"}},null,{"v":0,"d":"$0.0"},{"v":0,"d":"0.0%"},{"$nulls":4},0]
[null,null,{"$f":"T('2 REPAIR ESTIMATOR'!D828:O828)","v":""},{"$nulls":3},{"$f":"'2 REPAIR ESTIMATOR'!AQ828","v":{"v":0,"d":"$0"}},null,{"v":0,"d":"$0.0"},{"v":0,"d":"0.0%"},{"$nulls":4},0]
[null,null,{"$f":"T('2 REPAIR ESTIMATOR'!D829:O829)","v":""},{"$nulls":3},{"$f":"'2 REPAIR ESTIMATOR'!AQ829","v":{"v":0,"d":"$0"}},null,{"v":0,"d":"$0.0"},{"v":0,"d":"0.0%"},{"$nulls":4},0]
[null,null,{"$f":"T('2 REPAIR ESTIMATOR'!D830:O830)","v":""},{"$nulls":3},{"$f":"'2 REPAIR ESTIMATOR'!AQ830","v":{"v":0,"d":"$0"}},null,{"v":0,"d":"$0.0"},{"v":0,"d":"0.0%"},{"$nulls":4},0]
[null,null,{"$f":"T('2 REPAIR ESTIMATOR'!D831:O831)","v":""},{"$nulls":3},{"$f":"'2 REPAIR ESTIMATOR'!AQ831","v":{"v":0,"d":"$0"}},null,{"v":0,"d":"$0.0"},{"v":0,"d":"0.0%"},{"$nulls":4},0]
[null,null,{"$f":"T('2 REPAIR ESTIMATOR'!D832:O832)","v":""},{"$nulls":3},{"$f":"'2 REPAIR ESTIMATOR'!AQ832","v":{"v":0,"d":"$0"}},null,{"v":0,"d":"$0.0"},{"v":0,"d":"0.0%"},{"$nulls":4},0]
[null,null,{"$f":"T('2 REPAIR ESTIMATOR'!D833:O833)","v":""},{"$nulls":3},{"$f":"'2 REPAIR ESTIMATOR'!AQ833","v":{"v":0,"d":"$0"}},null,{"v":0,"d":"$0.0"},{"v":0,"d":"0.0%"},{"$nulls":4},0]
[null,null,{"$f":"T('2 REPAIR ESTIMATOR'!D834:O834)","v":""},{"$nulls":3},{"$f":"'2 REPAIR ESTIMATOR'!AQ834","v":{"v":0,"d":"$0"}},null,{"v":0,"d":"$0.0"},{"v":0,"d":"0.0%"},{"$nulls":4},0]
[null,null,{"$f":"T('2 REPAIR ESTIMATOR'!D835:O835)","v":""},{"$nulls":3},{"$f":"'2 REPAIR ESTIMATOR'!AQ835","v":{"v":0,"d":"$0"}},null,{"v":0,"d":"$0.0"},{"v":0,"d":"0.0%"},{"$nulls":4},0]
[null,null,{"$f":"T('2 REPAIR ESTIMATOR'!D836:O836)","v":""},{"$nulls":3},{"$f":"'2 REPAIR ESTIMATOR'!AQ836","v":{"v":0,"d":"$0"}},null,{"v":0,"d":"$0.0"},{"v":0,"d":"0.0%"},{"$nulls":4},0]
[null,null,{"$f":"T('2 REPAIR ESTIMATOR'!D837:O837)","v":""},{"$nulls":3},{"$f":"'2 REPAIR ESTIMATOR'!AQ837","v":{"v":0,"d":"$0"}},null,{"v":0,"d":"$0.0"},{"v":0,"d":"0.0%"},{"$nulls":4},0]
[null,null,{"$f":"T('2 REPAIR ESTIMATOR'!D838:O838)","v":""},{"$nulls":3},{"$f":"'2 REPAIR ESTIMATOR'!AQ838","v":{"v":0,"d":"$0"}},null,{"v":0,"d":"$0.0"},{"v":0,"d":"0.0%"},{"$nulls":4},0]
[null,null,{"$f":"T('2 REPAIR ESTIMATOR'!D839:O839)","v":""},{"$nulls":3},{"$f":"'2 REPAIR ESTIMATOR'!AQ839","v":{"v":0,"d":"$0"}},null,{"v":0,"d":"$0.0"},{"v":0,"d":"0.0%"},{"$nulls":4},0]
[null,null,{"$f":"T('2 REPAIR ESTIMATOR'!D840:O840)","v":""},{"$nulls":3},{"$f":"'2 REPAIR ESTIMATOR'!AQ840","v":{"v":0,"d":"$0"}},null,{"v":0,"d":"$0.0"},{"v":0,"d":"0.0%"},{"$nulls":4},0]
[null,null,{"$f":"T('2 REPAIR ESTIMATOR'!D841:O841)","v":""},{"$nulls":3},{"$f":"'2 REPAIR ESTIMATOR'!AQ841","v":{"v":0,"d":"$0"}},null,{"v":0,"d":"$0.0"},{"v":0,"d":"0.0%"},{"$nulls":4},0]
[null,null,{"$f":"T('2 REPAIR ESTIMATOR'!D842:O842)","v":""},{"$nulls":3},{"$f":"'2 REPAIR ESTIMATOR'!AQ842","v":{"v":0,"d":"$0"}},null,{"v":0,"d":"$0.0"},{"v":0,"d":"0.0%"},{"$nulls":4},0]
[null,null,{"$f":"T('2 REPAIR ESTIMATOR'!D843:O843)","v":""},{"$nulls":3},{"$f":"'2 REPAIR ESTIMATOR'!AQ843","v":{"v":0,"d":"$0"}},null,{"v":0,"d":"$0.0"},{"v":0,"d":"0.0%"},{"$nulls":4},0]
[null,null,{"$f":"T('2 REPAIR ESTIMATOR'!D844:O844)","v":""},{"$nulls":3},{"$f":"'2 REPAIR ESTIMATOR'!AQ844","v":{"v":0,"d":"$0"}},null,{"v":0,"d":"$0.0"},{"v":0,"d":"0.0%"},{"$nulls":4},0]
[null,null,{"$f":"T('2 REPAIR ESTIMATOR'!D845:O845)","v":""},{"$nulls":3},{"$f":"'2 REPAIR ESTIMATOR'!AQ845","v":{"v":0,"d":"$0"}},null,{"v":0,"d":"$0.0"},{"v":0,"d":"0.0%"},{"$nulls":4},0]
[null,null,{"$f":"T('2 REPAIR ESTIMATOR'!D846:O846)","v":""},{"$nulls":3},{"$f":"'2 REPAIR ESTIMATOR'!AQ846","v":{"v":0,"d":"$0"}},null,{"v":0,"d":"$0.0"},{"v":0,"d":"0.0%"},{"$nulls":4},0]
[null,null,{"$f":"T('2 REPAIR ESTIMATOR'!D847:O847)","v":""},{"$nulls":3},{"$f":"'2 REPAIR ESTIMATOR'!AQ847","v":{"v":0,"d":"$0"}},null,{"v":0,"d":"$0.0"},{"v":0,"d":"0.0%"},{"$nulls":4},0]
[null,null,{"$f":"T('2 REPAIR ESTIMATOR'!AC849)","v":"HARDWOOD FLOORING TOTAL"},{"$nulls":3},{"$f":"SUM(G740:H779)","v":{"v":3458,"d":"$3,458"}},null,{"$f":"SUM(I740:I779)","v":{"v":2.3053333333333335,"d":"$2"}},{"$f":"SUM(J740:J779)","v":{"v":0.024655971479500893,"d":"2.5%"}},{"$nulls":4},{"$f":"SUM(O740:O779)","v":1}]
[{"$nulls":14},{"$f":"O780","v":1}]
[null,null,{"$f":"T('2 REPAIR ESTIMATOR'!D852:O852)","v":"TILING"},{"$nulls":11},{"$f":"SUM(O783:O822)","v":4}]
[null,null,{"$f":"T('2 REPAIR ESTIMATOR'!D853:O853)","v":"Tiling bid/allowance"},{"$nulls":3},{"$f":"'2 REPAIR ESTIMATOR'!AQ853","v":{"v":0,"d":"$0"}},null,{"$f":"IFERROR(G783/Property_Size,0)","v":{"v":0,"d":"$0.0"}},{"$f":"IFERROR(G783/Total_Project_Costs_Result,0)","v":{"v":0,"d":"0.0%"}},{"$nulls":4},{"$f":"IF(G783>0,1,0)","v":0}]
[null,null,{"$f":"T('2 REPAIR ESTIMATOR'!D854:O854)","v":"Kitchen "},{"$nulls":3},{"$f":"'2 REPAIR ESTIMATOR'!AQ854","v":{"v":0,"d":"$0"}},null,{"v":0,"d":"$0.0"},{"v":0,"d":"0.0%"},{"$nulls":4},{"$f":"IF(G784>0,1,0)","v":0}]
[null,null,{"$f":"T('2 REPAIR ESTIMATOR'!D855:O855)","v":"Kitchen backsplash, mosaic tile"},{"$nulls":3},{"$f":"'2 REPAIR ESTIMATOR'!AQ855","v":{"v":651.25,"d":"$651"}},null,{"v":0.43416666666666665,"d":"$0.4"},{"v":0.00464349376114082,"d":"0.5%"},{"$nulls":4},1]
[null,null,{"$f":"T('2 REPAIR ESTIMATOR'!D856:O856)","v":"Floor tile, Kitchen"},{"$nulls":3},{"$f":"'2 REPAIR ESTIMATOR'!AQ856","v":{"v":0,"d":"$0"}},null,{"v":0,"d":"$0.0"},{"v":0,"d":"0.0%"},{"$nulls":4},0]
[null,null,{"$f":"T('2 REPAIR ESTIMATOR'!D857:O857)","v":""},{"$nulls":3},{"$f":"'2 REPAIR ESTIMATOR'!AQ857","v":{"v":0,"d":"$0"}},null,{"v":0,"d":"$0.0"},{"v":0,"d":"0.0%"},{"$nulls":4},0]
[null,null,{"$f":"T('2 REPAIR ESTIMATOR'!D858:O858)","v":""},{"$nulls":3},{"$f":"'2 REPAIR ESTIMATOR'!AQ858","v":{"v":0,"d":"$0"}},null,{"v":0,"d":"$0.0"},{"v":0,"d":"0.0%"},{"$nulls":4},0]
[null,null,{"$f":"T('2 REPAIR ESTIMATOR'!D859:O859)","v":"Bathrooms"},{"$nulls":3},{"$f":"'2 REPAIR ESTIMATOR'!AQ859","v":{"v":0,"d":"$0"}},null,{"v":0,"d":"$0.0"},{"v":0,"d":"0.0%"},{"$nulls":4},0]
[null,null,{"$f":"T('2 REPAIR ESTIMATOR'!D860:O860)","v":"Shower tile, standard"},{"$nulls":3},{"$f":"'2 REPAIR ESTIMATOR'!AQ860","v":{"v":2055.6000000000004,"d":"$2,056"}},null,{"v":1.3704000000000003,"d":"$1.4"},{"v":0.014656684491978612,"d":"1.5%"},{"$nulls":4},1]
[null,null,{"$f":"T('2 REPAIR ESTIMATOR'!D861:O861)","v":"Shower tile, accent mosaic tile"},{"$nulls":3},{"$f":"'2 REPAIR ESTIMATOR'!AQ861","v":{"v":421,"d":"$421"}},null,{"v":0.2806666666666667,"d":"$0.3"},{"v":3.0017825311942957E-3,"d":"0.3%"},{"$nulls":4},1]
[null,null,{"$f":"T('2 REPAIR ESTIMATOR'!D862:O862)","v":"Floor tile, bathrooms"},{"$nulls":3},{"$f":"'2 REPAIR ESTIMATOR'!AQ862","v":{"v":776.25,"d":"$776"}},null,{"v":0.5175,"d":"$0.5"},{"v":0.00553475935828877,"d":"0.6%"},{"$nulls":4},1]
[null,null,{"$f":"T('2 REPAIR ESTIMATOR'!D863:O863)","v":""},{"$nulls":3},{"$f":"'2 REPAIR ESTIMATOR'!AQ863","v":{"v":0,"d":"$0"}},null,{"v":0,"d":"$0.0"},{"v":0,"d":"0.0%"},{"$nulls":4},0]
[null,null,{"$f":"T('2 REPAIR ESTIMATOR'!D864:O864)","v":""},{"$nulls":3},{"$f":"'2 REPAIR ESTIMATOR'!AQ864","v":{"v":0,"d":"$0"}},null,{"v":0,"d":"$0.0"},{"v":0,"d":"0.0%"},{"$nulls":4},0]
[null,null,{"$f":"T('2 REPAIR ESTIMATOR'!D865:O865)","v":"Miscellaneous Tiling"},{"$nulls":3},{"$f":"'2 REPAIR ESTIMATOR'!AQ865","v":{"v":0,"d":"$0"}},null,{"v":0,"d":"$0.0"},{"v":0,"d":"0.0%"},{"$nulls":4},0]
[null,null,{"$f":"T('2 REPAIR ESTIMATOR'!D866:O866)","v":"Floor tile, entry "},{"$nulls":3},{"$f":"'2 REPAIR ESTIMATOR'!AQ866","v":{"v":0,"d":"$0"}},null,{"v":0,"d":"$0.0"},{"v":0,"d":"0.0%"},{"$nulls":4},0]
[null,null,{"$f":"T('2 REPAIR ESTIMATOR'!D867:O867)","v":"Fireplace tiling"},{"$nulls":3},{"$f":"'2 REPAIR ESTIMATOR'!AQ867","v":{"v":0,"d":"$0"}},null,{"v":0,"d":"$0.0"},{"v":0,"d":"0.0%"},{"$nulls":4},0]
[null,null,{"$f":"T('2 REPAIR ESTIMATOR'!D868:O868)","v":""},{"$nulls":3},{"$f":"'2 REPAIR ESTIMATOR'!AQ868","v":{"v":0,"d":"$0"}},null,{"v":0,"d":"$0.0"},{"v":0,"d":"0.0%"},{"$nulls":4},0]
[null,null,{"$f":"T('2 REPAIR ESTIMATOR'!D869:O869)","v":""},{"$nulls":3},{"$f":"'2 REPAIR ESTIMATOR'!AQ869","v":{"v":0,"d":"$0"}},null,{"v":0,"d":"$0.0"},{"v":0,"d":"0.0%"},{"$nulls":4},0]
[null,null,{"$f":"T('2 REPAIR ESTIMATOR'!D870:O870)","v":"Other"},{"$nulls":3},{"$f":"'2 REPAIR ESTIMATOR'!AQ870","v":{"v":0,"d":"$0"}},null,{"v":0,"d":"$0.0"},{"v":0,"d":"0.0%"},{"$nulls":4},0]
[null,null,{"$f":"T('2 REPAIR ESTIMATOR'!D871:O871)","v":"Backer board 1/4\" at floor tile"},{"$nulls":3},{"$f":"'2 REPAIR ESTIMATOR'!AQ871","v":{"v":0,"d":"$0"}},null,{"v":0,"d":"$0.0"},{"v":0,"d":"0.0%"},{"$nulls":4},0]
[null,null,{"$f":"T('2 REPAIR ESTIMATOR'!D872:O872)","v":"Backer board 1/2\" at wall tile"},{"$nulls":3},{"$f":"'2 REPAIR ESTIMATOR'!AQ872","v":{"v":0,"d":"$0"}},null,{"v":0,"d":"$0.0"},{"v":0,"d":"0.0%"},{"$nulls":4},0]
[null,null,{"$f":"T('2 REPAIR ESTIMATOR'!D873:O873)","v":""},{"$nulls":3},{"$f":"'2 REPAIR ESTIMATOR'!AQ873","v":{"v":0,"d":"$0"}},null,{"v":0,"d":"$0.0"},{"v":0,"d":"0.0%"},{"$nulls":4},0]
[null,null,{"$f":"T('2 REPAIR ESTIMATOR'!D874:O874)","v":""},{"$nulls":3},{"$f":"'2 REPAIR ESTIMATOR'!AQ874","v":{"v":0,"d":"$0"}},null,{"v":0,"d":"$0.0"},{"v":0,"d":"0.0%"},{"$nulls":4},0]
[null,null,{"$f":"T('2 REPAIR ESTIMATOR'!D875:O875)","v":""},{"$nulls":3},{"$f":"'2 REPAIR ESTIMATOR'!AQ875","v":{"v":0,"d":"$0"}},null,{"v":0,"d":"$0.0"},{"v":0,"d":"0.0%"},{"$nulls":4},0]
[null,null,{"$f":"T('2 REPAIR ESTIMATOR'!D876:O876)","v":""},{"$nulls":3},{"$f":"'2 REPAIR ESTIMATOR'!AQ876","v":{"v":0,"d":"$0"}},null,{"v":0,"d":"$0.0"},{"v":0,"d":"0.0%"},{"$nulls":4},0]
[null,null,{"$f":"T('2 REPAIR ESTIMATOR'!D877:O877)","v":""},{"$nulls":3},{"$f":"'2 REPAIR ESTIMATOR'!AQ877","v":{"v":0,"d":"$0"}},null,{"v":0,"d":"$0.0"},{"v":0,"d":"0.0%"},{"$nulls":4},0]
[null,null,{"$f":"T('2 REPAIR ESTIMATOR'!D878:O878)","v":""},{"$nulls":3},{"$f":"'2 REPAIR ESTIMATOR'!AQ878","v":{"v":0,"d":"$0"}},null,{"v":0,"d":"$0.0"},{"v":0,"d":"0.0%"},{"$nulls":4},0]
[null,null,{"$f":"T('2 REPAIR ESTIMATOR'!D879:O879)","v":""},{"$nulls":3},{"$f":"'2 REPAIR ESTIMATOR'!AQ879","v":{"v":0,"d":"$0"}},null,{"v":0,"d":"$0.0"},{"v":0,"d":"0.0%"},{"$nulls":4},0]
[null,null,{"$f":"T('2 REPAIR ESTIMATOR'!D880:O880)","v":""},{"$nulls":3},{"$f":"'2 REPAIR ESTIMATOR'!AQ880","v":{"v":0,"d":"$0"}},null,{"v":0,"d":"$0.0"},{"v":0,"d":"0.0%"},{"$nulls":4},0]
[null,null,{"$f":"T('2 REPAIR ESTIMATOR'!D881:O881)","v":""},{"$nulls":3},{"$f":"'2 REPAIR ESTIMATOR'!AQ881","v":{"v":0,"d":"$0"}},null,{"v":0,"d":"$0.0"},{"v":0,"d":"0.0%"},{"$nulls":4},0]
[null,null,{"$f":"T('2 REPAIR ESTIMATOR'!D882:O882)","v":""},{"$nulls":3},{"$f":"'2 REPAIR ESTIMATOR'!AQ882","v":{"v":0,"d":"$0"}},null,{"v":0,"d":"$0.0"},{"v":0,"d":"0.0%"},{"$nulls":4},0]
[null,null,{"$f":"T('2 REPAIR ESTIMATOR'!D883:O883)","v":""},{"$nulls":3},{"$f":"'2 REPAIR ESTIMATOR'!AQ883","v":{"v":0,"d":"$0"}},null,{"v":0,"d":"$0.0"},{"v":0,"d":"0.0%"},{"$nulls":4},0]
[null,null,{"$f":"T('2 REPAIR ESTIMATOR'!D884:O884)","v":""},{"$nulls":3},{"$f":"'2 REPAIR ESTIMATOR'!AQ884","v":{"v":0,"d":"$0"}},null,{"v":0,"d":"$0.0"},{"v":0,"d":"0.0%"},{"$nulls":4},0]
[null,null,{"$f":"T('2 REPAIR ESTIMATOR'!D885:O885)","v":""},{"$nulls":3},{"$f":"'2 REPAIR ESTIMATOR'!AQ885","v":{"v":0,"d":"$0"}},null,{"v":0,"d":"$0.0"},{"v":0,"d":"0.0%"},{"$nulls":4},0]
[null,null,{"$f":"T('2 REPAIR ESTIMATOR'!D886:O886)","v":""},{"$nulls":3},{"$f":"'2 REPAIR ESTIMATOR'!AQ886","v":{"v":0,"d":"$0"}},null,{"v":0,"d":"$0.0"},{"v":0,"d":"0.0%"},{"$nulls":4},0]
[null,null,{"$f":"T('2 REPAIR ESTIMATOR'!D887:O887)","v":""},{"$nulls":3},{"$f":"'2 REPAIR ESTIMATOR'!AQ887","v":{"v":0,"d":"$0"}},null,{"v":0,"d":"$0.0"},{"v":0,"d":"0.0%"},{"$nulls":4},0]
[null,null,{"$f":"T('2 REPAIR ESTIMATOR'!D888:O888)","v":""},{"$nulls":3},{"$f":"'2 REPAIR ESTIMATOR'!AQ888","v":{"v":0,"d":"$0"}},null,{"v":0,"d":"$0.0"},{"v":0,"d":"0.0%"},{"$nulls":4},0]
[null,null,{"$f":"T('2 REPAIR ESTIMATOR'!D889:O889)","v":""},{"$nulls":3},{"$f":"'2 REPAIR ESTIMATOR'!AQ889","v":{"v":0,"d":"$0"}},null,{"v":0,"d":"$0.0"},{"v":0,"d":"0.0%"},{"$nulls":4},0]
[null,null,{"$f":"T('2 REPAIR ESTIMATOR'!D890:O890)","v":""},{"$nulls":3},{"$f":"'2 REPAIR ESTIMATOR'!AQ890","v":{"v":0,"d":"$0"}},null,{"v":0,"d":"$0.0"},{"v":0,"d":"0.0%"},{"$nulls":4},0]
[null,null,{"$f":"T('2 REPAIR ESTIMATOR'!D891:O891)","v":""},{"$nulls":3},{"$f":"'2 REPAIR ESTIMATOR'!AQ891","v":{"v":0,"d":"$0"}},null,{"v":0,"d":"$0.0"},{"v":0,"d":"0.0%"},{"$nulls":4},0]
[null,null,{"$f":"T('2 REPAIR ESTIMATOR'!D892:O892)","v":""},{"$nulls":3},{"$f":"'2 REPAIR ESTIMATOR'!AQ892","v":{"v":0,"d":"$0"}},null,{"v":0,"d":"$0.0"},{"v":0,"d":"0.0%"},{"$nulls":4},0]
[null,null,{"$f":"T('2 REPAIR ESTIMATOR'!AC894)","v":"TILING TOTAL"},{"$nulls":3},{"$f":"SUM(G783:H822)","v":{"v":3904.1000000000004,"d":"$3,904"}},null,{"$f":"SUM(I783:I822)","v":{"v":2.6027333333333336,"d":"$3"}},{"$f":"SUM(J783:J822)","v":{"v":0.027836720142602498,"d":"2.8%"}},{"$nulls":4},{"$f":"SUM(O783:O822)","v":4}]
[{"$nulls":14},{"$f":"O823","v":4}]
[null,null,{"$f":"T('2 REPAIR ESTIMATOR'!D897:O897)","v":"PAINTING"},{"$nulls":11},{"$f":"SUM(O826:O865)","v":2}]
[null,null,{"$f":"T('2 REPAIR ESTIMATOR'!D898:O898)","v":"Exterior Painting"},{"$nulls":3},{"$f":"'2 REPAIR ESTIMATOR'!AQ898","v":{"v":0,"d":"$0"}},null,{"$f":"IFERROR(G826/Property_Size,0)","v":{"v":0,"d":"$0.0"}},{"$f":"IFERROR(G826/Total_Project_Costs_Result,0)","v":{"v":0,"d":"0.0%"}},{"$nulls":4},{"$f":"IF(G826>0,1,0)","v":0}]
[null,null,{"$f":"T('2 REPAIR ESTIMATOR'!D899:O899)","v":"Exterior painting, bid/allowance"},{"$nulls":3},{"$f":"'2 REPAIR ESTIMATOR'!AQ899","v":{"v":2000,"d":"$2,000"}},null,{"v":1.3333333333333333,"d":"$1.3"},{"v":0.0142602495543672,"d":"1.4%"},{"$nulls":4},{"$f":"IF(G827>0,1,0)","v":1}]
[null,null,{"$f":"T('2 REPAIR ESTIMATOR'!D900:O900)","v":"Exterior painting materials allowance"},{"$nulls":3},{"$f":"'2 REPAIR ESTIMATOR'!AQ900","v":{"v":0,"d":"$0"}},null,{"v":0,"d":"$0.0"},{"v":0,"d":"0.0%"},{"$nulls":4},0]
[null,null,{"$f":"T('2 REPAIR ESTIMATOR'!D901:O901)","v":"Prep/clean siding"},{"$nulls":3},{"$f":"'2 REPAIR ESTIMATOR'!AQ901","v":{"v":0,"d":"$0"}},null,{"v":0,"d":"$0.0"},{"v":0,"d":"0.0%"},{"$nulls":4},0]
[null,null,{"$f":"T('2 REPAIR ESTIMATOR'!D902:O902)","v":"Paint siding"},{"$nulls":3},{"$f":"'2 REPAIR ESTIMATOR'!AQ902","v":{"v":0,"d":"$0"}},null,{"v":0,"d":"$0.0"},{"v":0,"d":"0.0%"},{"$nulls":4},0]
[null,null,{"$f":"T('2 REPAIR ESTIMATOR'!D903:O903)","v":"Paint exterior door"},{"$nulls":3},{"$f":"'2 REPAIR ESTIMATOR'!AQ903","v":{"v":0,"d":"$0"}},null,{"v":0,"d":"$0.0"},{"v":0,"d":"0.0%"},{"$nulls":4},0]
[null,null,{"$f":"T('2 REPAIR ESTIMATOR'!D904:O904)","v":"Paint trim only"},{"$nulls":3},{"$f":"'2 REPAIR ESTIMATOR'!AQ904","v":{"v":0,"d":"$0"}},null,{"v":0,"d":"$0.0"},{"v":0,"d":"0.0%"},{"$nulls":4},0]
[null,null,{"$f":"T('2 REPAIR ESTIMATOR'!D905:O905)","v":"Sand & refinish decking"},{"$nulls":3},{"$f":"'2 REPAIR ESTIMATOR'!AQ905","v":{"v":0,"d":"$0"}},null,{"v":0,"d":"$0.0"},{"v":0,"d":"0.0%"},{"$nulls":4},0]
[null,null,{"$f":"T('2 REPAIR ESTIMATOR'!D906:O906)","v":""},{"$nulls":3},{"$f":"'2 REPAIR ESTIMATOR'!AQ906","v":{"v":0,"d":"$0"}},null,{"v":0,"d":"$0.0"},{"v":0,"d":"0.0%"},{"$nulls":4},0]
[null,null,{"$f":"T('2 REPAIR ESTIMATOR'!D907:O907)","v":""},{"$nulls":3},{"$f":"'2 REPAIR ESTIMATOR'!AQ907","v":{"v":0,"d":"$0"}},null,{"v":0,"d":"$0.0"},{"v":0,"d":"0.0%"},{"$nulls":4},0]
[null,null,{"$f":"T('2 REPAIR ESTIMATOR'!D908:O908)","v":"Interior Painting"},{"$nulls":3},{"$f":"'2 REPAIR ESTIMATOR'!AQ908","v":{"v":0,"d":"$0"}},null,{"v":0,"d":"$0.0"},{"v":0,"d":"0.0%"},{"$nulls":4},0]
[null,null,{"$f":"T('2 REPAIR ESTIMATOR'!D909:O909)","v":"Interior painting, bid/allowance"},{"$nulls":3},{"$f":"'2 REPAIR ESTIMATOR'!AQ909","v":{"v":2000,"d":"$2,000"}},null,{"v":1.3333333333333333,"d":"$1.3"},{"v":0.0142602495543672,"d":"1.4%"},{"$nulls":4},1]
[null,null,{"$f":"T('2 REPAIR ESTIMATOR'!D910:O910)","v":"Interior painting materials allowance"},{"$nulls":3},{"$f":"'2 REPAIR ESTIMATOR'!AQ910","v":{"v":0,"d":"$0"}},null,{"v":0,"d":"$0.0"},{"v":0,"d":"0.0%"},{"$nulls":4},0]
[null,null,{"$f":"T('2 REPAIR ESTIMATOR'!D911:O911)","v":"Paint doors & frames"},{"$nulls":3},{"$f":"'2 REPAIR ESTIMATOR'!AQ911","v":{"v":0,"d":"$0"}},null,{"v":0,"d":"$0.0"},{"v":0,"d":"0.0%"},{"$nulls":4},0]
[null,null,{"$f":"T('2 REPAIR ESTIMATOR'!D912:O912)","v":"Paint walls"},{"$nulls":3},{"$f":"'2 REPAIR ESTIMATOR'!AQ912","v":{"v":0,"d":"$0"}},null,{"v":0,"d":"$0.0"},{"v":0,"d":"0.0%"},{"$nulls":4},0]
[null,null,{"$f":"T('2 REPAIR ESTIMATOR'!D913:O913)","v":"Paint ceilings"},{"$nulls":3},{"$f":"'2 REPAIR ESTIMATOR'!AQ913","v":{"v":0,"d":"$0"}},null,{"v":0,"d":"$0.0"},{"v":0,"d":"0.0%"},{"$nulls":4},0]
[null,null,{"$f":"T('2 REPAIR ESTIMATOR'!D914:O914)","v":"Paint wood base"},{"$nulls":3},{"$f":"'2 REPAIR ESTIMATOR'!AQ914","v":{"v":0,"d":"$0"}},null,{"v":0,"d":"$0.0"},{"v":0,"d":"0.0%"},{"$nulls":4},0]
[null,null,{"$f":"T('2 REPAIR ESTIMATOR'!D915:O915)","v":"Strip, paint cabinets/vanities"},{"$nulls":3},{"$f":"'2 REPAIR ESTIMATOR'!AQ915","v":{"v":0,"d":"$0"}},null,{"v":0,"d":"$0.0"},{"v":0,"d":"0.0%"},{"$nulls":4},0]
[null,null,{"$f":"T('2 REPAIR ESTIMATOR'!D916:O916)","v":""},{"$nulls":3},{"$f":"'2 REPAIR ESTIMATOR'!AQ916","v":{"v":0,"d":"$0"}},null,{"v":0,"d":"$0.0"},{"v":0,"d":"0.0%"},{"$nulls":4},0]
[null,null,{"$f":"T('2 REPAIR ESTIMATOR'!D917:O917)","v":""},{"$nulls":3},{"$f":"'2 REPAIR ESTIMATOR'!AQ917","v":{"v":0,"d":"$0"}},null,{"v":0,"d":"$0.0"},{"v":0,"d":"0.0%"},{"$nulls":4},0]
[null,null,{"$f":"T('2 REPAIR ESTIMATOR'!D918:O918)","v":""},{"$nulls":3},{"$f":"'2 REPAIR ESTIMATOR'!AQ918","v":{"v":0,"d":"$0"}},null,{"v":0,"d":"$0.0"},{"v":0,"d":"0.0%"},{"$nulls":4},0]
[null,null,{"$f":"T('2 REPAIR ESTIMATOR'!D919:O919)","v":""},{"$nulls":3},{"$f":"'2 REPAIR ESTIMATOR'!AQ919","v":{"v":0,"d":"$0"}},null,{"v":0,"d":"$0.0"},{"v":0,"d":"0.0%"},{"$nulls":4},0]
[null,null,{"$f":"T('2 REPAIR ESTIMATOR'!D920:O920)","v":""},{"$nulls":3},{"$f":"'2 REPAIR ESTIMATOR'!AQ920","v":{"v":0,"d":"$0"}},null,{"v":0,"d":"$0.0"},{"v":0,"d":"0.0%"},{"$nulls":4},0]
[null,null,{"$f":"T('2 REPAIR ESTIMATOR'!D921:O921)","v":""},{"$nulls":3},{"$f":"'2 REPAIR ESTIMATOR'!AQ921","v":{"v":0,"d":"$0"}},null,{"v":0,"d":"$0.0"},{"v":0,"d":"0.0%"},{"$nulls":4},0]
[null,null,{"$f":"T('2 REPAIR ESTIMATOR'!D922:O922)","v":""},{"$nulls":3},{"$f":"'2 REPAIR ESTIMATOR'!AQ922","v":{"v":0,"d":"$0"}},null,{"v":0,"d":"$0.0"},{"v":0,"d":"0.0%"},{"$nulls":4},0]
[null,null,{"$f":"T('2 REPAIR ESTIMATOR'!D923:O923)","v":""},{"$nulls":3},{"$f":"'2 REPAIR ESTIMATOR'!AQ923","v":{"v":0,"d":"$0"}},null,{"v":0,"d":"$0.0"},{"v":0,"d":"0.0%"},{"$nulls":4},0]
[null,null,{"$f":"T('2 REPAIR ESTIMATOR'!D924:O924)","v":""},{"$nulls":3},{"$f":"'2 REPAIR ESTIMATOR'!AQ924","v":{"v":0,"d":"$0"}},null,{"v":0,"d":"$0.0"},{"v":0,"d":"0.0%"},{"$nulls":4},0]
[null,null,{"$f":"T('2 REPAIR ESTIMATOR'!D925:O925)","v":""},{"$nulls":3},{"$f":"'2 REPAIR ESTIMATOR'!AQ925","v":{"v":0,"d":"$0"}},null,{"v":0,"d":"$0.0"},{"v":0,"d":"0.0%"},{"$nulls":4},0]
[null,null,{"$f":"T('2 REPAIR ESTIMATOR'!D926:O926)","v":""},{"$nulls":3},{"$f":"'2 REPAIR ESTIMATOR'!AQ926","v":{"v":0,"d":"$0"}},null,{"v":0,"d":"$0.0"},{"v":0,"d":"0.0%"},{"$nulls":4},0]
[null,null,{"$f":"T('2 REPAIR ESTIMATOR'!D927:O927)","v":""},{"$nulls":3},{"$f":"'2 REPAIR ESTIMATOR'!AQ927","v":{"v":0,"d":"$0"}},null,{"v":0,"d":"$0.0"},{"v":0,"d":"0.0%"},{"$nulls":4},0]
[null,null,{"$f":"T('2 REPAIR ESTIMATOR'!D928:O928)","v":""},{"$nulls":3},{"$f":"'2 REPAIR ESTIMATOR'!AQ928","v":{"v":0,"d":"$0"}},null,{"v":0,"d":"$0.0"},{"v":0,"d":"0.0%"},{"$nulls":4},0]
[null,null,{"$f":"T('2 REPAIR ESTIMATOR'!D929:O929)","v":""},{"$nulls":3},{"$f":"'2 REPAIR ESTIMATOR'!AQ929","v":{"v":0,"d":"$0"}},null,{"v":0,"d":"$0.0"},{"v":0,"d":"0.0%"},{"$nulls":4},0]
[null,null,{"$f":"T('2 REPAIR ESTIMATOR'!D930:O930)","v":""},{"$nulls":3},{"$f":"'2 REPAIR ESTIMATOR'!AQ930","v":{"v":0,"d":"$0"}},null,{"v":0,"d":"$0.0"},{"v":0,"d":"0.0%"},{"$nulls":4},0]
[null,null,{"$f":"T('2 REPAIR ESTIMATOR'!D931:O931)","v":""},{"$nulls":3},{"$f":"'2 REPAIR ESTIMATOR'!AQ931","v":{"v":0,"d":"$0"}},null,{"v":0,"d":"$0.0"},{"v":0,"d":"0.0%"},{"$nulls":4},0]
[null,null,{"$f":"T('2 REPAIR ESTIMATOR'!D932:O932)","v":""},{"$nulls":3},{"$f":"'2 REPAIR ESTIMATOR'!AQ932","v":{"v":0,"d":"$0"}},null,{"v":0,"d":"$0.0"},{"v":0,"d":"0.0%"},{"$nulls":4},0]
[null,null,{"$f":"T('2 REPAIR ESTIMATOR'!D933:O933)","v":""},{"$nulls":3},{"$f":"'2 REPAIR ESTIMATOR'!AQ933","v":{"v":0,"d":"$0"}},null,{"v":0,"d":"$0.0"},{"v":0,"d":"0.0%"},{"$nulls":4},0]
[null,null,{"$f":"T('2 REPAIR ESTIMATOR'!D934:O934)","v":""},{"$nulls":3},{"$f":"'2 REPAIR ESTIMATOR'!AQ934","v":{"v":0,"d":"$0"}},null,{"v":0,"d":"$0.0"},{"v":0,"d":"0.0%"},{"$nulls":4},0]
[null,null,{"$f":"T('2 REPAIR ESTIMATOR'!D935:O935)","v":""},{"$nulls":3},{"$f":"'2 REPAIR ESTIMATOR'!AQ935","v":{"v":0,"d":"$0"}},null,{"v":0,"d":"$0.0"},{"v":0,"d":"0.0%"},{"$nulls":4},0]
[null,null,{"$f":"T('2 REPAIR ESTIMATOR'!D936:O936)","v":""},{"$nulls":3},{"$f":"'2 REPAIR ESTIMATOR'!AQ936","v":{"v":0,"d":"$0"}},null,{"v":0,"d":"$0.0"},{"v":0,"d":"0.0%"},{"$nulls":4},0]
[null,null,{"$f":"T('2 REPAIR ESTIMATOR'!D937:O937)","v":""},{"$nulls":3},{"$f":"'2 REPAIR ESTIMATOR'!AQ937","v":{"v":0,"d":"$0"}},null,{"v":0,"d":"$0.0"},{"v":0,"d":"0.0%"},{"$nulls":4},0]
[null,null,{"$f":"T('2 REPAIR ESTIMATOR'!AC939)","v":"PAINTING TOTAL"},{"$nulls":3},{"$f":"SUM(G826:H865)","v":{"v":4000,"d":"$4,000"}},null,{"$f":"SUM(I826:I865)","v":{"v":2.6666666666666665,"d":"$3"}},{"$f":"SUM(J826:J865)","v":{"v":0.0285204991087344,"d":"2.9%"}},{"$nulls":4},{"$f":"SUM(O826:O865)","v":2}]
[{"$nulls":14},{"$f":"O866","v":2}]
[null,null,{"$f":"T('2 REPAIR ESTIMATOR'!D942:O942)","v":"APPLIANCES"},{"$nulls":11},{"$f":"SUM(O869:O908)","v":1}]
[null,null,{"$f":"T('2 REPAIR ESTIMATOR'!D943:O943)","v":"Appliances, Bid/Allowance"},{"$nulls":3},{"$f":"'2 REPAIR ESTIMATOR'!AQ943","v":{"v":0,"d":"$0"}},null,{"$f":"IFERROR(G869/Property_Size,0)","v":{"v":0,"d":"$0.0"}},{"$f":"IFERROR(G869/Total_Project_Costs_Result,0)","v":{"v":0,"d":"0.0%"}},{"$nulls":4},{"$f":"IF(G869>0,1,0)","v":0}]
[null,null,{"$f":"T('2 REPAIR ESTIMATOR'!D944:O944)","v":""},{"$nulls":3},{"$f":"'2 REPAIR ESTIMATOR'!AQ944","v":{"v":0,"d":"$0"}},null,{"v":0,"d":"$0.0"},{"v":0,"d":"0.0%"},{"$nulls":4},{"$f":"IF(G870>0,1,0)","v":0}]
[null,null,{"$f":"T('2 REPAIR ESTIMATOR'!D945:O945)","v":"Appliance Package"},{"$nulls":3},{"$f":"'2 REPAIR ESTIMATOR'!AQ945","v":{"v":0,"d":"$0"}},null,{"v":0,"d":"$0.0"},{"v":0,"d":"0.0%"},{"$nulls":4},0]
[null,null,{"$f":"T('2 REPAIR ESTIMATOR'!D946:O946)","v":"Economy, (fridge, range, hood, dw, microwave)"},{"$nulls":3},{"$f":"'2 REPAIR ESTIMATOR'!AQ946","v":{"v":0,"d":"$0"}},null,{"v":0,"d":"$0.0"},{"v":0,"d":"0.0%"},{"$nulls":4},0]
[null,null,{"$f":"T('2 REPAIR ESTIMATOR'!D947:O947)","v":"Average, (fridge, range, hood, dw, microwave)"},{"$nulls":3},{"$f":"'2 REPAIR ESTIMATOR'!AQ947","v":{"v":3210,"d":"$3,210"}},null,{"v":2.14,"d":"$2.1"},{"v":0.02288770053475936,"d":"2.3%"},{"$nulls":4},1]
[null,null,{"$f":"T('2 REPAIR ESTIMATOR'!D948:O948)","v":"High End, (fridge, range, hood, dw, microwave)"},{"$nulls":3},{"$f":"'2 REPAIR ESTIMATOR'!AQ948","v":{"v":0,"d":"$0"}},null,{"v":0,"d":"$0.0"},{"v":0,"d":"0.0%"},{"$nulls":4},0]
[null,null,{"$f":"T('2 REPAIR ESTIMATOR'!D949:O949)","v":""},{"$nulls":3},{"$f":"'2 REPAIR ESTIMATOR'!AQ949","v":{"v":0,"d":"$0"}},null,{"v":0,"d":"$0.0"},{"v":0,"d":"0.0%"},{"$nulls":4},0]
[null,null,{"$f":"T('2 REPAIR ESTIMATOR'!D950:O950)","v":""},{"$nulls":3},{"$f":"'2 REPAIR ESTIMATOR'!AQ950","v":{"v":0,"d":"$0"}},null,{"v":0,"d":"$0.0"},{"v":0,"d":"0.0%"},{"$nulls":4},0]
[null,null,{"$f":"T('2 REPAIR ESTIMATOR'!D951:O951)","v":"Appliances, Detailed, Ecomony"},{"$nulls":3},{"$f":"'2 REPAIR ESTIMATOR'!AQ951","v":{"v":0,"d":"$0"}},null,{"v":0,"d":"$0.0"},{"v":0,"d":"0.0%"},{"$nulls":4},0]
[null,null,{"$f":"T('2 REPAIR ESTIMATOR'!D952:O952)","v":"Refrigerator, economy"},{"$nulls":3},{"$f":"'2 REPAIR ESTIMATOR'!AQ952","v":{"v":0,"d":"$0"}},null,{"v":0,"d":"$0.0"},{"v":0,"d":"0.0%"},{"$nulls":4},0]
[null,null,{"$f":"T('2 REPAIR ESTIMATOR'!D953:O953)","v":"Range, economy"},{"$nulls":3},{"$f":"'2 REPAIR ESTIMATOR'!AQ953","v":{"v":0,"d":"$0"}},null,{"v":0,"d":"$0.0"},{"v":0,"d":"0.0%"},{"$nulls":4},0]
[null,null,{"$f":"T('2 REPAIR ESTIMATOR'!D954:O954)","v":"Range Hood, economy"},{"$nulls":3},{"$f":"'2 REPAIR ESTIMATOR'!AQ954","v":{"v":0,"d":"$0"}},null,{"v":0,"d":"$0.0"},{"v":0,"d":"0.0%"},{"$nulls":4},0]
[null,null,{"$f":"T('2 REPAIR ESTIMATOR'!D955:O955)","v":"Dishwasher, economy"},{"$nulls":3},{"$f":"'2 REPAIR ESTIMATOR'!AQ955","v":{"v":0,"d":"$0"}},null,{"v":0,"d":"$0.0"},{"v":0,"d":"0.0%"},{"$nulls":4},0]
[null,null,{"$f":"T('2 REPAIR ESTIMATOR'!D956:O956)","v":"Microwave, economy"},{"$nulls":3},{"$f":"'2 REPAIR ESTIMATOR'!AQ956","v":{"v":0,"d":"$0"}},null,{"v":0,"d":"$0.0"},{"v":0,"d":"0.0%"},{"$nulls":4},0]
[null,null,{"$f":"T('2 REPAIR ESTIMATOR'!D957:O957)","v":"Appliance delivery"},{"$nulls":3},{"$f":"'2 REPAIR ESTIMATOR'!AQ957","v":{"v":0,"d":"$0"}},null,{"v":0,"d":"$0.0"},{"v":0,"d":"0.0%"},{"$nulls":4},0]
[null,null,{"$f":"T('2 REPAIR ESTIMATOR'!D958:O958)","v":""},{"$nulls":3},{"$f":"'2 REPAIR ESTIMATOR'!AQ958","v":{"v":0,"d":"$0"}},null,{"v":0,"d":"$0.0"},{"v":0,"d":"0.0%"},{"$nulls":4},0]
[null,null,{"$f":"T('2 REPAIR ESTIMATOR'!D959:O959)","v":""},{"$nulls":3},{"$f":"'2 REPAIR ESTIMATOR'!AQ959","v":{"v":0,"d":"$0"}},null,{"v":0,"d":"$0.0"},{"v":0,"d":"0.0%"},{"$nulls":4},0]
[null,null,{"$f":"T('2 REPAIR ESTIMATOR'!D960:O960)","v":"Appliances, Detailed, Average"},{"$nulls":3},{"$f":"'2 REPAIR ESTIMATOR'!AQ960","v":{"v":0,"d":"$0"}},null,{"v":0,"d":"$0.0"},{"v":0,"d":"0.0%"},{"$nulls":4},0]
[null,null,{"$f":"T('2 REPAIR ESTIMATOR'!D961:O961)","v":"Refrigerator, average"},{"$nulls":3},{"$f":"'2 REPAIR ESTIMATOR'!AQ961","v":{"v":0,"d":"$0"}},null,{"v":0,"d":"$0.0"},{"v":0,"d":"0.0%"},{"$nulls":4},0]
[null,null,{"$f":"T('2 REPAIR ESTIMATOR'!D962:O962)","v":"Range, average"},{"$nulls":3},{"$f":"'2 REPAIR ESTIMATOR'!AQ962","v":{"v":0,"d":"$0"}},null,{"v":0,"d":"$0.0"},{"v":0,"d":"0.0%"},{"$nulls":4},0]
[null,null,{"$f":"T('2 REPAIR ESTIMATOR'!D963:O963)","v":"Range Hood, average"},{"$nulls":3},{"$f":"'2 REPAIR ESTIMATOR'!AQ963","v":{"v":0,"d":"$0"}},null,{"v":0,"d":"$0.0"},{"v":0,"d":"0.0%"},{"$nulls":4},0]
[null,null,{"$f":"T('2 REPAIR ESTIMATOR'!D964:O964)","v":"Dishwasher, average"},{"$nulls":3},{"$f":"'2 REPAIR ESTIMATOR'!AQ964","v":{"v":0,"d":"$0"}},null,{"v":0,"d":"$0.0"},{"v":0,"d":"0.0%"},{"$nulls":4},0]
[null,null,{"$f":"T('2 REPAIR ESTIMATOR'!D965:O965)","v":"Microwave, average"},{"$nulls":3},{"$f":"'2 REPAIR ESTIMATOR'!AQ965","v":{"v":0,"d":"$0"}},null,{"v":0,"d":"$0.0"},{"v":0,"d":"0.0%"},{"$nulls":4},0]
[null,null,{"$f":"T('2 REPAIR ESTIMATOR'!D966:O966)","v":"Appliance delivery"},{"$nulls":3},{"$f":"'2 REPAIR ESTIMATOR'!AQ966","v":{"v":0,"d":"$0"}},null,{"v":0,"d":"$0.0"},{"v":0,"d":"0.0%"},{"$nulls":4},0]
[null,null,{"$f":"T('2 REPAIR ESTIMATOR'!D967:O967)","v":""},{"$nulls":3},{"$f":"'2 REPAIR ESTIMATOR'!AQ967","v":{"v":0,"d":"$0"}},null,{"v":0,"d":"$0.0"},{"v":0,"d":"0.0%"},{"$nulls":4},0]
[null,null,{"$f":"T('2 REPAIR ESTIMATOR'!D968:O968)","v":""},{"$nulls":3},{"$f":"'2 REPAIR ESTIMATOR'!AQ968","v":{"v":0,"d":"$0"}},null,{"v":0,"d":"$0.0"},{"v":0,"d":"0.0%"},{"$nulls":4},0]
[null,null,{"$f":"T('2 REPAIR ESTIMATOR'!D969:O969)","v":"Appliances, Detailed, High End"},{"$nulls":3},{"$f":"'2 REPAIR ESTIMATOR'!AQ969","v":{"v":0,"d":"$0"}},null,{"v":0,"d":"$0.0"},{"v":0,"d":"0.0%"},{"$nulls":4},0]
[null,null,{"$f":"T('2 REPAIR ESTIMATOR'!D970:O970)","v":"Refrigerator, high end"},{"$nulls":3},{"$f":"'2 REPAIR ESTIMATOR'!AQ970","v":{"v":0,"d":"$0"}},null,{"v":0,"d":"$0.0"},{"v":0,"d":"0.0%"},{"$nulls":4},0]
[null,null,{"$f":"T('2 REPAIR ESTIMATOR'!D971:O971)","v":"Range, high end"},{"$nulls":3},{"$f":"'2 REPAIR ESTIMATOR'!AQ971","v":{"v":0,"d":"$0"}},null,{"v":0,"d":"$0.0"},{"v":0,"d":"0.0%"},{"$nulls":4},0]
[null,null,{"$f":"T('2 REPAIR ESTIMATOR'!D972:O972)","v":"Range Hood, high end"},{"$nulls":3},{"$f":"'2 REPAIR ESTIMATOR'!AQ972","v":{"v":0,"d":"$0"}},null,{"v":0,"d":"$0.0"},{"v":0,"d":"0.0%"},{"$nulls":4},0]
[null,null,{"$f":"T('2 REPAIR ESTIMATOR'!D973:O973)","v":"Dishwasher, high end"},{"$nulls":3},{"$f":"'2 REPAIR ESTIMATOR'!AQ973","v":{"v":0,"d":"$0"}},null,{"v":0,"d":"$0.0"},{"v":0,"d":"0.0%"},{"$nulls":4},0]
[null,null,{"$f":"T('2 REPAIR ESTIMATOR'!D974:O974)","v":"Microwave, high end"},{"$nulls":3},{"$f":"'2 REPAIR ESTIMATOR'!AQ974","v":{"v":0,"d":"$0"}},null,{"v":0,"d":"$0.0"},{"v":0,"d":"0.0%"},{"$nulls":4},0]
[null,null,{"$f":"T('2 REPAIR ESTIMATOR'!D975:O975)","v":"Appliance delivery"},{"$nulls":3},{"$f":"'2 REPAIR ESTIMATOR'!AQ975","v":{"v":0,"d":"$0"}},null,{"v":0,"d":"$0.0"},{"v":0,"d":"0.0%"},{"$nulls":4},0]
[null,null,{"$f":"T('2 REPAIR ESTIMATOR'!D976:O976)","v":""},{"$nulls":3},{"$f":"'2 REPAIR ESTIMATOR'!AQ976","v":{"v":0,"d":"$0"}},null,{"v":0,"d":"$0.0"},{"v":0,"d":"0.0%"},{"$nulls":4},0]
[null,null,{"$f":"T('2 REPAIR ESTIMATOR'!D977:O977)","v":""},{"$nulls":3},{"$f":"'2 REPAIR ESTIMATOR'!AQ977","v":{"v":0,"d":"$0"}},null,{"v":0,"d":"$0.0"},{"v":0,"d":"0.0%"},{"$nulls":4},0]
[null,null,{"$f":"T('2 REPAIR ESTIMATOR'!D978:O978)","v":""},{"$nulls":3},{"$f":"'2 REPAIR ESTIMATOR'!AQ978","v":{"v":0,"d":"$0"}},null,{"v":0,"d":"$0.0"},{"v":0,"d":"0.0%"},{"$nulls":4},0]
[null,null,{"$f":"T('2 REPAIR ESTIMATOR'!D979:O979)","v":""},{"$nulls":3},{"$f":"'2 REPAIR ESTIMATOR'!AQ979","v":{"v":0,"d":"$0"}},null,{"v":0,"d":"$0.0"},{"v":0,"d":"0.0%"},{"$nulls":4},0]
[null,null,{"$f":"T('2 REPAIR ESTIMATOR'!D980:O980)","v":""},{"$nulls":3},{"$f":"'2 REPAIR ESTIMATOR'!AQ980","v":{"v":0,"d":"$0"}},null,{"v":0,"d":"$0.0"},{"v":0,"d":"0.0%"},{"$nulls":4},0]
[null,null,{"$f":"T('2 REPAIR ESTIMATOR'!D981:O981)","v":""},{"$nulls":3},{"$f":"'2 REPAIR ESTIMATOR'!AQ981","v":{"v":0,"d":"$0"}},null,{"v":0,"d":"$0.0"},{"v":0,"d":"0.0%"},{"$nulls":4},0]
[null,null,{"$f":"T('2 REPAIR ESTIMATOR'!D982:O982)","v":""},{"$nulls":3},{"$f":"'2 REPAIR ESTIMATOR'!AQ982","v":{"v":0,"d":"$0"}},null,{"v":0,"d":"$0.0"},{"v":0,"d":"0.0%"},{"$nulls":4},0]
[null,null,{"$f":"T('2 REPAIR ESTIMATOR'!AC984)","v":"APPLIANCES TOTAL"},{"$nulls":3},{"$f":"SUM(G869:H908)","v":{"v":3210,"d":"$3,210"}},null,{"$f":"SUM(I869:I908)","v":{"v":2.14,"d":"$2"}},{"$f":"SUM(J869:J908)","v":{"v":0.02288770053475936,"d":"2.3%"}},{"$nulls":4},{"$f":"SUM(O869:O908)","v":1}]
[{"$nulls":14},{"$f":"O909","v":1}]
[null,null,{"$f":"T('2 REPAIR ESTIMATOR'!D987:O987)","v":"PLUMBING"},{"$nulls":11},{"$f":"SUM(O912:O951)","v":9}]
[null,null,{"$f":"T('2 REPAIR ESTIMATOR'!D988:O988)","v":"Plumbing, bid/allowance"},{"$nulls":3},{"$f":"'2 REPAIR ESTIMATOR'!AQ988","v":{"v":0,"d":"$0"}},null,{"$f":"IFERROR(G912/Property_Size,0)","v":{"v":0,"d":"$0.0"}},{"$f":"IFERROR(G912/Total_Project_Costs_Result,0)","v":{"v":0,"d":"0.0%"}},{"$nulls":4},{"$f":"IF(G912>0,1,0)","v":0}]
[null,null,{"$f":"T('2 REPAIR ESTIMATOR'!D989:O989)","v":"Miscellaneous Plumbing"},{"$nulls":3},{"$f":"'2 REPAIR ESTIMATOR'!AQ989","v":{"v":0,"d":"$0"}},null,{"v":0,"d":"$0.0"},{"v":0,"d":"0.0%"},{"$nulls":4},{"$f":"IF(G913>0,1,0)","v":0}]
[null,null,{"$f":"T('2 REPAIR ESTIMATOR'!D990:O990)","v":"Plumbing rough-in, per hour"},{"$nulls":3},{"$f":"'2 REPAIR ESTIMATOR'!AQ990","v":{"v":130,"d":"$130"}},null,{"v":0.08666666666666667,"d":"$0.1"},{"v":9.2691622103386814E-4,"d":"0.1%"},{"$nulls":4},1]
[null,null,{"$f":"T('2 REPAIR ESTIMATOR'!D991:O991)","v":"Concrete demo for below slab rough-in"},{"$nulls":3},{"$f":"'2 REPAIR ESTIMATOR'!AQ991","v":{"v":0,"d":"$0"}},null,{"v":0,"d":"$0.0"},{"v":0,"d":"0.0%"},{"$nulls":4},0]
[null,null,{"$f":"T('2 REPAIR ESTIMATOR'!D992:O992)","v":"Plumbing finish work, per hour"},{"$nulls":3},{"$f":"'2 REPAIR ESTIMATOR'!AQ992","v":{"v":0,"d":"$0"}},null,{"v":0,"d":"$0.0"},{"v":0,"d":"0.0%"},{"$nulls":4},0]
[null,null,{"$f":"T('2 REPAIR ESTIMATOR'!D993:O993)","v":"Replace gas hot water heater, 40 gallon"},{"$nulls":3},{"$f":"'2 REPAIR ESTIMATOR'!AQ993","v":{"v":0,"d":"$0"}},null,{"v":0,"d":"$0.0"},{"v":0,"d":"0.0%"},{"$nulls":4},0]
[null,null,{"$f":"T('2 REPAIR ESTIMATOR'!D994:O994)","v":"Kitchen"},{"$nulls":3},{"$f":"'2 REPAIR ESTIMATOR'!AQ994","v":{"v":0,"d":"$0"}},null,{"v":0,"d":"$0.0"},{"v":0,"d":"0.0%"},{"$nulls":4},0]
[null,null,{"$f":"T('2 REPAIR ESTIMATOR'!D995:O995)","v":"Kitchen faucet fixture"},{"$nulls":3},{"$f":"'2 REPAIR ESTIMATOR'!AQ995","v":{"v":235.5,"d":"$236"}},null,{"v":0.157,"d":"$0.2"},{"v":1.679144385026738E-3,"d":"0.2%"},{"$nulls":4},1]
[null,null,{"$f":"T('2 REPAIR ESTIMATOR'!D996:O996)","v":"Garbage disposal"},{"$nulls":3},{"$f":"'2 REPAIR ESTIMATOR'!AQ996","v":{"v":157,"d":"$157"}},null,{"v":0.10466666666666667,"d":"$0.1"},{"v":1.1194295900178253E-3,"d":"0.1%"},{"$nulls":4},1]
[null,null,{"$f":"T('2 REPAIR ESTIMATOR'!D997:O997)","v":"Hookup dishwasher"},{"$nulls":3},{"$f":"'2 REPAIR ESTIMATOR'!AQ997","v":{"v":76.75,"d":"$77"}},null,{"v":0.051166666666666666,"d":"$0.1"},{"v":5.4723707664884136E-4,"d":"0.1%"},{"$nulls":4},1]
[null,null,{"$f":"T('2 REPAIR ESTIMATOR'!D998:O998)","v":"Water supply line for refrigerator"},{"$nulls":3},{"$f":"'2 REPAIR ESTIMATOR'!AQ998","v":{"v":76.75,"d":"$77"}},null,{"v":0.051166666666666666,"d":"$0.1"},{"v":5.4723707664884136E-4,"d":"0.1%"},{"$nulls":4},1]
[null,null,{"$f":"T('2 REPAIR ESTIMATOR'!D999:O999)","v":"Bathrooms"},{"$nulls":3},{"$f":"'2 REPAIR ESTIMATOR'!AQ999","v":{"v":0,"d":"$0"}},null,{"v":0,"d":"$0.0"},{"v":0,"d":"0.0%"},{"$nulls":4},0]
[null,null,{"$f":"T('2 REPAIR ESTIMATOR'!D1000:O1000)","v":"Bathroom faucet fixture"},{"$nulls":3},{"$f":"'2 REPAIR ESTIMATOR'!AQ1000","v":{"v":417.5,"d":"$418"}},null,{"v":0.2783333333333333,"d":"$0.3"},{"v":2.9768270944741534E-3,"d":"0.3%"},{"$nulls":4},1]
[null,null,{"$f":"T('2 REPAIR ESTIMATOR'!D1001:O1001)","v":"Fiberglass shower stall"},{"$nulls":3},{"$f":"'2 REPAIR ESTIMATOR'!AQ1001","v":{"v":0,"d":"$0"}},null,{"v":0,"d":"$0.0"},{"v":0,"d":"0.0%"},{"$nulls":4},0]
[null,null,{"$f":"T('2 REPAIR ESTIMATOR'!D1002:O1002)","v":"Fiberglass tub"},{"$nulls":3},{"$f":"'2 REPAIR ESTIMATOR'!AQ1002","v":{"v":942,"d":"$942"}},null,{"v":0.628,"d":"$0.6"},{"v":0.006716577540106952,"d":"0.7%"},{"$nulls":4},1]
[null,null,{"$f":"T('2 REPAIR ESTIMATOR'!D1003:O1003)","v":"Fiberglass tub/shower surround"},{"$nulls":3},{"$f":"'2 REPAIR ESTIMATOR'!AQ1003","v":{"v":0,"d":"$0"}},null,{"v":0,"d":"$0.0"},{"v":0,"d":"0.0%"},{"$nulls":4},0]
[null,null,{"$f":"T('2 REPAIR ESTIMATOR'!D1004:O1004)","v":"Showerhead/tub kit"},{"$nulls":3},{"$f":"'2 REPAIR ESTIMATOR'!AQ1004","v":{"v":471,"d":"$471"}},null,{"v":0.314,"d":"$0.3"},{"v":0.003358288770053476,"d":"0.3%"},{"$nulls":4},1]
[null,null,{"$f":"T('2 REPAIR ESTIMATOR'!D1005:O1005)","v":"Toilets"},{"$nulls":3},{"$f":"'2 REPAIR ESTIMATOR'!AQ1005","v":{"v":417.5,"d":"$418"}},null,{"v":0.2783333333333333,"d":"$0.3"},{"v":2.9768270944741534E-3,"d":"0.3%"},{"$nulls":4},1]
[null,null,{"$f":"T('2 REPAIR ESTIMATOR'!D1006:O1006)","v":"Toilet seats"},{"$nulls":3},{"$f":"'2 REPAIR ESTIMATOR'!AQ1006","v":{"v":0,"d":"$0"}},null,{"v":0,"d":"$0.0"},{"v":0,"d":"0.0%"},{"$nulls":4},0]
[null,null,{"$f":"T('2 REPAIR ESTIMATOR'!D1007:O1007)","v":"Pedestal sink"},{"$nulls":3},{"$f":"'2 REPAIR ESTIMATOR'!AQ1007","v":{"v":0,"d":"$0"}},null,{"v":0,"d":"$0.0"},{"v":0,"d":"0.0%"},{"$nulls":4},0]
[null,null,{"$f":"T('2 REPAIR ESTIMATOR'!D1008:O1008)","v":""},{"$nulls":3},{"$f":"'2 REPAIR ESTIMATOR'!AQ1008","v":{"v":0,"d":"$0"}},null,{"v":0,"d":"$0.0"},{"v":0,"d":"0.0%"},{"$nulls":4},0]
[null,null,{"$f":"T('2 REPAIR ESTIMATOR'!D1009:O1009)","v":""},{"$nulls":3},{"$f":"'2 REPAIR ESTIMATOR'!AQ1009","v":{"v":0,"d":"$0"}},null,{"v":0,"d":"$0.0"},{"v":0,"d":"0.0%"},{"$nulls":4},0]
[null,null,{"$f":"T('2 REPAIR ESTIMATOR'!D1010:O1010)","v":""},{"$nulls":3},{"$f":"'2 REPAIR ESTIMATOR'!AQ1010","v":{"v":0,"d":"$0"}},null,{"v":0,"d":"$0.0"},{"v":0,"d":"0.0%"},{"$nulls":4},0]
[null,null,{"$f":"T('2 REPAIR ESTIMATOR'!D1011:O1011)","v":""},{"$nulls":3},{"$f":"'2 REPAIR ESTIMATOR'!AQ1011","v":{"v":0,"d":"$0"}},null,{"v":0,"d":"$0.0"},{"v":0,"d":"0.0%"},{"$nulls":4},0]
[null,null,{"$f":"T('2 REPAIR ESTIMATOR'!D1012:O1012)","v":""},{"$nulls":3},{"$f":"'2 REPAIR ESTIMATOR'!AQ1012","v":{"v":0,"d":"$0"}},null,{"v":0,"d":"$0.0"},{"v":0,"d":"0.0%"},{"$nulls":4},0]
[null,null,{"$f":"T('2 REPAIR ESTIMATOR'!D1013:O1013)","v":""},{"$nulls":3},{"$f":"'2 REPAIR ESTIMATOR'!AQ1013","v":{"v":0,"d":"$0"}},null,{"v":0,"d":"$0.0"},{"v":0,"d":"0.0%"},{"$nulls":4},0]
[null,null,{"$f":"T('2 REPAIR ESTIMATOR'!D1014:O1014)","v":""},{"$nulls":3},{"$f":"'2 REPAIR ESTIMATOR'!AQ1014","v":{"v":0,"d":"$0"}},null,{"v":0,"d":"$0.0"},{"v":0,"d":"0.0%"},{"$nulls":4},0]
[null,null,{"$f":"T('2 REPAIR ESTIMATOR'!D1015:O1015)","v":""},{"$nulls":3},{"$f":"'2 REPAIR ESTIMATOR'!AQ1015","v":{"v":0,"d":"$0"}},null,{"v":0,"d":"$0.0"},{"v":0,"d":"0.0%"},{"$nulls":4},0]
[null,null,{"$f":"T('2 REPAIR ESTIMATOR'!D1016:O1016)","v":""},{"$nulls":3},{"$f":"'2 REPAIR ESTIMATOR'!AQ1016","v":{"v":0,"d":"$0"}},null,{"v":0,"d":"$0.0"},{"v":0,"d":"0.0%"},{"$nulls":4},0]
[null,null,{"$f":"T('2 REPAIR ESTIMATOR'!D1017:O1017)","v":""},{"$nulls":3},{"$f":"'2 REPAIR ESTIMATOR'!AQ1017","v":{"v":0,"d":"$0"}},null,{"v":0,"d":"$0.0"},{"v":0,"d":"0.0%"},{"$nulls":4},0]
[null,null,{"$f":"T('2 REPAIR ESTIMATOR'!D1018:O1018)","v":""},{"$nulls":3},{"$f":"'2 REPAIR ESTIMATOR'!AQ1018","v":{"v":0,"d":"$0"}},null,{"v":0,"d":"$0.0"},{"v":0,"d":"0.0%"},{"$nulls":4},0]
[null,null,{"$f":"T('2 REPAIR ESTIMATOR'!D1019:O1019)","v":""},{"$nulls":3},{"$f":"'2 REPAIR ESTIMATOR'!AQ1019","v":{"v":0,"d":"$0"}},null,{"v":0,"d":"$0.0"},{"v":0,"d":"0.0%"},{"$nulls":4},0]
[null,null,{"$f":"T('2 REPAIR ESTIMATOR'!D1020:O1020)","v":""},{"$nulls":3},{"$f":"'2 REPAIR ESTIMATOR'!AQ1020","v":{"v":0,"d":"$0"}},null,{"v":0,"d":"$0.0"},{"v":0,"d":"0.0%"},{"$nulls":4},0]
[null,null,{"$f":"T('2 REPAIR ESTIMATOR'!D1021:O1021)","v":""},{"$nulls":3},{"$f":"'2 REPAIR ESTIMATOR'!AQ1021","v":{"v":0,"d":"$0"}},null,{"v":0,"d":"$0.0"},{"v":0,"d":"0.0%"},{"$nulls":4},0]
[null,null,{"$f":"T('2 REPAIR ESTIMATOR'!D1022:O1022)","v":""},{"$nulls":3},{"$f":"'2 REPAIR ESTIMATOR'!AQ1022","v":{"v":0,"d":"$0"}},null,{"v":0,"d":"$0.0"},{"v":0,"d":"0.0%"},{"$nulls":4},0]
[null,null,{"$f":"T('2 REPAIR ESTIMATOR'!D1023:O1023)","v":""},{"$nulls":3},{"$f":"'2 REPAIR ESTIMATOR'!AQ1023","v":{"v":0,"d":"$0"}},null,{"v":0,"d":"$0.0"},{"v":0,"d":"0.0%"},{"$nulls":4},0]
[null,null,{"$f":"T('2 REPAIR ESTIMATOR'!D1024:O1024)","v":""},{"$nulls":3},{"$f":"'2 REPAIR ESTIMATOR'!AQ1024","v":{"v":0,"d":"$0"}},null,{"v":0,"d":"$0.0"},{"v":0,"d":"0.0%"},{"$nulls":4},0]
[null,null,{"$f":"T('2 REPAIR ESTIMATOR'!D1025:O1025)","v":""},{"$nulls":3},{"$f":"'2 REPAIR ESTIMATOR'!AQ1025","v":{"v":0,"d":"$0"}},null,{"v":0,"d":"$0.0"},{"v":0,"d":"0.0%"},{"$nulls":4},0]
[null,null,{"$f":"T('2 REPAIR ESTIMATOR'!D1026:O1026)","v":""},{"$nulls":3},{"$f":"'2 REPAIR ESTIMATOR'!AQ1026","v":{"v":0,"d":"$0"}},null,{"v":0,"d":"$0.0"},{"v":0,"d":"0.0%"},{"$nulls":4},0]
[null,null,{"$f":"T('2 REPAIR ESTIMATOR'!D1027:O1027)","v":""},{"$nulls":3},{"$f":"'2 REPAIR ESTIMATOR'!AQ1027","v":{"v":0,"d":"$0"}},null,{"v":0,"d":"$0.0"},{"v":0,"d":"0.0%"},{"$nulls":4},0]
[null,null,{"$f":"T('2 REPAIR ESTIMATOR'!AC1029)","v":"PLUMBING TOTAL"},{"$nulls":3},{"$f":"SUM(G912:H951)","v":{"v":2924,"d":"$2,924"}},null,{"$f":"SUM(I912:I951)","v":{"v":1.9493333333333334,"d":"$2"}},{"$f":"SUM(J912:J951)","v":{"v":0.02084848484848485,"d":"2.1%"}},{"$nulls":4},{"$f":"SUM(O912:O951)","v":9}]
[{"$nulls":14},{"$f":"O952","v":9}]
[null,null,{"$f":"T('2 REPAIR ESTIMATOR'!D1032:O1032)","v":"HVAC"},{"$nulls":11},{"$f":"SUM(O955:O994)","v":2}]
[null,null,{"$f":"T('2 REPAIR ESTIMATOR'!D1033:O1033)","v":"HVAC, bid/allowance"},{"$nulls":3},{"$f":"'2 REPAIR ESTIMATOR'!AQ1033","v":{"v":0,"d":"$0"}},null,{"$f":"IFERROR(G955/Property_Size,0)","v":{"v":0,"d":"$0.0"}},{"$f":"IFERROR(G955/Total_Project_Costs_Result,0)","v":{"v":0,"d":"0.0%"}},{"$nulls":4},{"$f":"IF(G955>0,1,0)","v":0}]
[null,null,{"$f":"T('2 REPAIR ESTIMATOR'!D1034:O1034)","v":"HVAC Rough-In, per hour"},{"$nulls":3},{"$f":"'2 REPAIR ESTIMATOR'!AQ1034","v":{"v":0,"d":"$0"}},null,{"v":0,"d":"$0.0"},{"v":0,"d":"0.0%"},{"$nulls":4},{"$f":"IF(G956>0,1,0)","v":0}]
[null,null,{"$f":"T('2 REPAIR ESTIMATOR'!D1035:O1035)","v":"HVAC Finish Work, per hour"},{"$nulls":3},{"$f":"'2 REPAIR ESTIMATOR'!AQ1035","v":{"v":0,"d":"$0"}},null,{"v":0,"d":"$0.0"},{"v":0,"d":"0.0%"},{"$nulls":4},0]
[null,null,{"$f":"T('2 REPAIR ESTIMATOR'!D1036:O1036)","v":"Replace gas fired forced air unit, 1000 sf, 60k btus"},{"$nulls":3},{"$f":"'2 REPAIR ESTIMATOR'!AQ1036","v":{"v":0,"d":"$0"}},null,{"v":0,"d":"$0.0"},{"v":0,"d":"0.0%"},{"$nulls":4},0]
[null,null,{"$f":"T('2 REPAIR ESTIMATOR'!D1037:O1037)","v":"Replace gas fired forced air unit, 2,000, 80k btus"},{"$nulls":3},{"$f":"'2 REPAIR ESTIMATOR'!AQ1037","v":{"v":0,"d":"$0"}},null,{"v":0,"d":"$0.0"},{"v":0,"d":"0.0%"},{"$nulls":4},0]
[null,null,{"$f":"T('2 REPAIR ESTIMATOR'!D1038:O1038)","v":"Replace gas fired forced air unit, 3,000, 100k btus"},{"$nulls":3},{"$f":"'2 REPAIR ESTIMATOR'!AQ1038","v":{"v":0,"d":"$0"}},null,{"v":0,"d":"$0.0"},{"v":0,"d":"0.0%"},{"$nulls":4},0]
[null,null,{"$f":"T('2 REPAIR ESTIMATOR'!D1039:O1039)","v":"Replace air conditioning unit, ~1,000 sf, 2 ton"},{"$nulls":3},{"$f":"'2 REPAIR ESTIMATOR'!AQ1039","v":{"v":0,"d":"$0"}},null,{"v":0,"d":"$0.0"},{"v":0,"d":"0.0%"},{"$nulls":4},0]
[null,null,{"$f":"T('2 REPAIR ESTIMATOR'!D1040:O1040)","v":"Replace air conditioning unit, ~2,000 sf, 3.5 ton"},{"$nulls":3},{"$f":"'2 REPAIR ESTIMATOR'!AQ1040","v":{"v":0,"d":"$0"}},null,{"v":0,"d":"$0.0"},{"v":0,"d":"0.0%"},{"$nulls":4},0]
[null,null,{"$f":"T('2 REPAIR ESTIMATOR'!D1041:O1041)","v":"Replace air conditioning unit, ~3,000sf, 5 ton"},{"$nulls":3},{"$f":"'2 REPAIR ESTIMATOR'!AQ1041","v":{"v":0,"d":"$0"}},null,{"v":0,"d":"$0.0"},{"v":0,"d":"0.0%"},{"$nulls":4},0]
[null,null,{"$f":"T('2 REPAIR ESTIMATOR'!D1042:O1042)","v":"Hotel type, hot/cold packaged unit"},{"$nulls":3},{"$f":"'2 REPAIR ESTIMATOR'!AQ1042","v":{"v":0,"d":"$0"}},null,{"v":0,"d":"$0.0"},{"v":0,"d":"0.0%"},{"$nulls":4},0]
[null,null,{"$f":"T('2 REPAIR ESTIMATOR'!D1043:O1043)","v":"Window mounted unit"},{"$nulls":3},{"$f":"'2 REPAIR ESTIMATOR'!AQ1043","v":{"v":0,"d":"$0"}},null,{"v":0,"d":"$0.0"},{"v":0,"d":"0.0%"},{"$nulls":4},0]
[null,null,{"$f":"T('2 REPAIR ESTIMATOR'!D1044:O1044)","v":"HVAC equipment tune-up/service call"},{"$nulls":3},{"$f":"'2 REPAIR ESTIMATOR'!AQ1044","v":{"v":0,"d":"$0"}},null,{"v":0,"d":"$0.0"},{"v":0,"d":"0.0%"},{"$nulls":4},0]
[null,null,{"$f":"T('2 REPAIR ESTIMATOR'!D1045:O1045)","v":"Programmable thermostat"},{"$nulls":3},{"$f":"'2 REPAIR ESTIMATOR'!AQ1045","v":{"v":130.25,"d":"$130"}},null,{"v":0.08683333333333333,"d":"$0.1"},{"v":0.000928698752228164,"d":"0.1%"},{"$nulls":4},1]
[null,null,{"$f":"T('2 REPAIR ESTIMATOR'!D1046:O1046)","v":"Replace supply air grilles/returns"},{"$nulls":3},{"$f":"'2 REPAIR ESTIMATOR'!AQ1046","v":{"v":353.25,"d":"$353"}},null,{"v":0.2355,"d":"$0.2"},{"v":0.002518716577540107,"d":"0.3%"},{"$nulls":4},1]
[null,null,{"$f":"T('2 REPAIR ESTIMATOR'!D1047:O1047)","v":"Clean ductwork"},{"$nulls":3},{"$f":"'2 REPAIR ESTIMATOR'!AQ1047","v":{"v":0,"d":"$0"}},null,{"v":0,"d":"$0.0"},{"v":0,"d":"0.0%"},{"$nulls":4},0]
[null,null,{"$f":"T('2 REPAIR ESTIMATOR'!D1048:O1048)","v":""},{"$nulls":3},{"$f":"'2 REPAIR ESTIMATOR'!AQ1048","v":{"v":0,"d":"$0"}},null,{"v":0,"d":"$0.0"},{"v":0,"d":"0.0%"},{"$nulls":4},0]
[null,null,{"$f":"T('2 REPAIR ESTIMATOR'!D1049:O1049)","v":""},{"$nulls":3},{"$f":"'2 REPAIR ESTIMATOR'!AQ1049","v":{"v":0,"d":"$0"}},null,{"v":0,"d":"$0.0"},{"v":0,"d":"0.0%"},{"$nulls":4},0]
[null,null,{"$f":"T('2 REPAIR ESTIMATOR'!D1050:O1050)","v":""},{"$nulls":3},{"$f":"'2 REPAIR ESTIMATOR'!AQ1050","v":{"v":0,"d":"$0"}},null,{"v":0,"d":"$0.0"},{"v":0,"d":"0.0%"},{"$nulls":4},0]
[null,null,{"$f":"T('2 REPAIR ESTIMATOR'!D1051:O1051)","v":""},{"$nulls":3},{"$f":"'2 REPAIR ESTIMATOR'!AQ1051","v":{"v":0,"d":"$0"}},null,{"v":0,"d":"$0.0"},{"v":0,"d":"0.0%"},{"$nulls":4},0]
[null,null,{"$f":"T('2 REPAIR ESTIMATOR'!D1052:O1052)","v":""},{"$nulls":3},{"$f":"'2 REPAIR ESTIMATOR'!AQ1052","v":{"v":0,"d":"$0"}},null,{"v":0,"d":"$0.0"},{"v":0,"d":"0.0%"},{"$nulls":4},0]
[null,null,{"$f":"T('2 REPAIR ESTIMATOR'!D1053:O1053)","v":""},{"$nulls":3},{"$f":"'2 REPAIR ESTIMATOR'!AQ1053","v":{"v":0,"d":"$0"}},null,{"v":0,"d":"$0.0"},{"v":0,"d":"0.0%"},{"$nulls":4},0]
[null,null,{"$f":"T('2 REPAIR ESTIMATOR'!D1054:O1054)","v":""},{"$nulls":3},{"$f":"'2 REPAIR ESTIMATOR'!AQ1054","v":{"v":0,"d":"$0"}},null,{"v":0,"d":"$0.0"},{"v":0,"d":"0.0%"},{"$nulls":4},0]
[null,null,{"$f":"T('2 REPAIR ESTIMATOR'!D1055:O1055)","v":""},{"$nulls":3},{"$f":"'2 REPAIR ESTIMATOR'!AQ1055","v":{"v":0,"d":"$0"}},null,{"v":0,"d":"$0.0"},{"v":0,"d":"0.0%"},{"$nulls":4},0]
[null,null,{"$f":"T('2 REPAIR ESTIMATOR'!D1056:O1056)","v":""},{"$nulls":3},{"$f":"'2 REPAIR ESTIMATOR'!AQ1056","v":{"v":0,"d":"$0"}},null,{"v":0,"d":"$0.0"},{"v":0,"d":"0.0%"},{"$nulls":4},0]
[null,null,{"$f":"T('2 REPAIR ESTIMATOR'!D1057:O1057)","v":""},{"$nulls":3},{"$f":"'2 REPAIR ESTIMATOR'!AQ1057","v":{"v":0,"d":"$0"}},null,{"v":0,"d":"$0.0"},{"v":0,"d":"0.0%"},{"$nulls":4},0]
[null,null,{"$f":"T('2 REPAIR ESTIMATOR'!D1058:O1058)","v":""},{"$nulls":3},{"$f":"'2 REPAIR ESTIMATOR'!AQ1058","v":{"v":0,"d":"$0"}},null,{"v":0,"d":"$0.0"},{"v":0,"d":"0.0%"},{"$nulls":4},0]
[null,null,{"$f":"T('2 REPAIR ESTIMATOR'!D1059:O1059)","v":""},{"$nulls":3},{"$f":"'2 REPAIR ESTIMATOR'!AQ1059","v":{"v":0,"d":"$0"}},null,{"v":0,"d":"$0.0"},{"v":0,"d":"0.0%"},{"$nulls":4},0]
[null,null,{"$f":"T('2 REPAIR ESTIMATOR'!D1060:O1060)","v":""},{"$nulls":3},{"$f":"'2 REPAIR ESTIMATOR'!AQ1060","v":{"v":0,"d":"$0"}},null,{"v":0,"d":"$0.0"},{"v":0,"d":"0.0%"},{"$nulls":4},0]
[null,null,{"$f":"T('2 REPAIR ESTIMATOR'!D1061:O1061)","v":""},{"$nulls":3},{"$f":"'2 REPAIR ESTIMATOR'!AQ1061","v":{"v":0,"d":"$0"}},null,{"v":0,"d":"$0.0"},{"v":0,"d":"0.0%"},{"$nulls":4},0]
[null,null,{"$f":"T('2 REPAIR ESTIMATOR'!D1062:O1062)","v":""},{"$nulls":3},{"$f":"'2 REPAIR ESTIMATOR'!AQ1062","v":{"v":0,"d":"$0"}},null,{"v":0,"d":"$0.0"},{"v":0,"d":"0.0%"},{"$nulls":4},0]
[null,null,{"$f":"T('2 REPAIR ESTIMATOR'!D1063:O1063)","v":""},{"$nulls":3},{"$f":"'2 REPAIR ESTIMATOR'!AQ1063","v":{"v":0,"d":"$0"}},null,{"v":0,"d":"$0.0"},{"v":0,"d":"0.0%"},{"$nulls":4},0]
[null,null,{"$f":"T('2 REPAIR ESTIMATOR'!D1064:O1064)","v":""},{"$nulls":3},{"$f":"'2 REPAIR ESTIMATOR'!AQ1064","v":{"v":0,"d":"$0"}},null,{"v":0,"d":"$0.0"},{"v":0,"d":"0.0%"},{"$nulls":4},0]
[null,null,{"$f":"T('2 REPAIR ESTIMATOR'!D1065:O1065)","v":""},{"$nulls":3},{"$f":"'2 REPAIR ESTIMATOR'!AQ1065","v":{"v":0,"d":"$0"}},null,{"v":0,"d":"$0.0"},{"v":0,"d":"0.0%"},{"$nulls":4},0]
[null,null,{"$f":"T('2 REPAIR ESTIMATOR'!D1066:O1066)","v":""},{"$nulls":3},{"$f":"'2 REPAIR ESTIMATOR'!AQ1066","v":{"v":0,"d":"$0"}},null,{"v":0,"d":"$0.0"},{"v":0,"d":"0.0%"},{"$nulls":4},0]
[null,null,{"$f":"T('2 REPAIR ESTIMATOR'!D1067:O1067)","v":""},{"$nulls":3},{"$f":"'2 REPAIR ESTIMATOR'!AQ1067","v":{"v":0,"d":"$0"}},null,{"v":0,"d":"$0.0"},{"v":0,"d":"0.0%"},{"$nulls":4},0]
[null,null,{"$f":"T('2 REPAIR ESTIMATOR'!D1068:O1068)","v":""},{"$nulls":3},{"$f":"'2 REPAIR ESTIMATOR'!AQ1068","v":{"v":0,"d":"$0"}},null,{"v":0,"d":"$0.0"},{"v":0,"d":"0.0%"},{"$nulls":4},0]
[null,null,{"$f":"T('2 REPAIR ESTIMATOR'!D1069:O1069)","v":""},{"$nulls":3},{"$f":"'2 REPAIR ESTIMATOR'!AQ1069","v":{"v":0,"d":"$0"}},null,{"v":0,"d":"$0.0"},{"v":0,"d":"0.0%"},{"$nulls":4},0]
[null,null,{"$f":"T('2 REPAIR ESTIMATOR'!D1070:O1070)","v":""},{"$nulls":3},{"$f":"'2 REPAIR ESTIMATOR'!AQ1070","v":{"v":0,"d":"$0"}},null,{"v":0,"d":"$0.0"},{"v":0,"d":"0.0%"},{"$nulls":4},0]
[null,null,{"$f":"T('2 REPAIR ESTIMATOR'!D1071:O1071)","v":""},{"$nulls":3},{"$f":"'2 REPAIR ESTIMATOR'!AQ1071","v":{"v":0,"d":"$0"}},null,{"v":0,"d":"$0.0"},{"v":0,"d":"0.0%"},{"$nulls":4},0]
[null,null,{"$f":"T('2 REPAIR ESTIMATOR'!D1072:O1072)","v":""},{"$nulls":3},{"$f":"'2 REPAIR ESTIMATOR'!AQ1072","v":{"v":0,"d":"$0"}},null,{"v":0,"d":"$0.0"},{"v":0,"d":"0.0%"},{"$nulls":4},0]
[null,null,{"$f":"T('2 REPAIR ESTIMATOR'!AC1074)","v":"HVAC TOTAL"},{"$nulls":3},{"$f":"SUM(G955:H994)","v":{"v":483.5,"d":"$484"}},null,{"$f":"SUM(I955:I994)","v":{"v":0.3223333333333333,"d":"$0"}},{"$f":"SUM(J955:J994)","v":{"v":3.4474153297682714E-3,"d":"0.3%"}},{"$nulls":4},{"$f":"SUM(O955:O994)","v":2}]
[{"$nulls":14},{"$f":"O995","v":2}]
[null,null,{"$f":"T('2 REPAIR ESTIMATOR'!D1077:O1077)","v":"ELECTRICAL"},{"$nulls":11},{"$f":"SUM(O998:O1037)","v":7}]
[null,null,{"$f":"T('2 REPAIR ESTIMATOR'!D1078:O1078)","v":"Electrical, bid/allowance"},{"$nulls":3},{"$f":"'2 REPAIR ESTIMATOR'!AQ1078","v":{"v":0,"d":"$0"}},null,{"$f":"IFERROR(G998/Property_Size,0)","v":{"v":0,"d":"$0.0"}},{"$f":"IFERROR(G998/Total_Project_Costs_Result,0)","v":{"v":0,"d":"0.0%"}},{"$nulls":4},{"$f":"IF(G998>0,1,0)","v":0}]
[null,null,{"$f":"T('2 REPAIR ESTIMATOR'!D1079:O1079)","v":"Miscellaneous Electrical "},{"$nulls":3},{"$f":"'2 REPAIR ESTIMATOR'!AQ1079","v":{"v":0,"d":"$0"}},null,{"v":0,"d":"$0.0"},{"v":0,"d":"0.0%"},{"$nulls":4},{"$f":"IF(G999>0,1,0)","v":0}]
[null,null,{"$f":"T('2 REPAIR ESTIMATOR'!D1080:O1080)","v":"Electrical Rough-in, per hour"},{"$nulls":3},{"$f":"'2 REPAIR ESTIMATOR'!AQ1080","v":{"v":0,"d":"$0"}},null,{"v":0,"d":"$0.0"},{"v":0,"d":"0.0%"},{"$nulls":4},0]
[null,null,{"$f":"T('2 REPAIR ESTIMATOR'!D1081:O1081)","v":"CATV Rough-in, per hour"},{"$nulls":3},{"$f":"'2 REPAIR ESTIMATOR'!AQ1081","v":{"v":0,"d":"$0"}},null,{"v":0,"d":"$0.0"},{"v":0,"d":"0.0%"},{"$nulls":4},0]
[null,null,{"$f":"T('2 REPAIR ESTIMATOR'!D1082:O1082)","v":"Electrical Finish Work, per hour"},{"$nulls":3},{"$f":"'2 REPAIR ESTIMATOR'!AQ1082","v":{"v":0,"d":"$0"}},null,{"v":0,"d":"$0.0"},{"v":0,"d":"0.0%"},{"$nulls":4},0]
[null,null,{"$f":"T('2 REPAIR ESTIMATOR'!D1083:O1083)","v":"Replace electrical panel, 100 AMP"},{"$nulls":3},{"$f":"'2 REPAIR ESTIMATOR'!AQ1083","v":{"v":0,"d":"$0"}},null,{"v":0,"d":"$0.0"},{"v":0,"d":"0.0%"},{"$nulls":4},0]
[null,null,{"$f":"T('2 REPAIR ESTIMATOR'!D1084:O1084)","v":"Replace electrical panel, 200 AMP"},{"$nulls":3},{"$f":"'2 REPAIR ESTIMATOR'!AQ1084","v":{"v":0,"d":"$0"}},null,{"v":0,"d":"$0.0"},{"v":0,"d":"0.0%"},{"$nulls":4},0]
[null,null,{"$f":"T('2 REPAIR ESTIMATOR'!D1085:O1085)","v":"Replace outlets, light switches"},{"$nulls":3},{"$f":"'2 REPAIR ESTIMATOR'!AQ1085","v":{"v":0,"d":"$0"}},null,{"v":0,"d":"$0.0"},{"v":0,"d":"0.0%"},{"$nulls":4},0]
[null,null,{"$f":"T('2 REPAIR ESTIMATOR'!D1086:O1086)","v":"Replace GFI outlets/ground back to panel"},{"$nulls":3},{"$f":"'2 REPAIR ESTIMATOR'!AQ1086","v":{"v":0,"d":"$0"}},null,{"v":0,"d":"$0.0"},{"v":0,"d":"0.0%"},{"$nulls":4},0]
[null,null,{"$f":"T('2 REPAIR ESTIMATOR'!D1087:O1087)","v":"Exhaust Fan"},{"$nulls":3},{"$f":"'2 REPAIR ESTIMATOR'!AQ1087","v":{"v":0,"d":"$0"}},null,{"v":0,"d":"$0.0"},{"v":0,"d":"0.0%"},{"$nulls":4},0]
[null,null,{"$f":"T('2 REPAIR ESTIMATOR'!D1088:O1088)","v":"Smoke detectors"},{"$nulls":3},{"$f":"'2 REPAIR ESTIMATOR'!AQ1088","v":{"v":205.25,"d":"$205"}},null,{"v":0.13683333333333333,"d":"$0.1"},{"v":0.001463458110516934,"d":"0.1%"},{"$nulls":4},1]
[null,null,{"$f":"T('2 REPAIR ESTIMATOR'!D1089:O1089)","v":"Carbon monoxide detector"},{"$nulls":3},{"$f":"'2 REPAIR ESTIMATOR'!AQ1089","v":{"v":0,"d":"$0"}},null,{"v":0,"d":"$0.0"},{"v":0,"d":"0.0%"},{"$nulls":4},0]
[null,null,{"$f":"T('2 REPAIR ESTIMATOR'!D1090:O1090)","v":"Lighting"},{"$nulls":3},{"$f":"'2 REPAIR ESTIMATOR'!AQ1090","v":{"v":0,"d":"$0"}},null,{"v":0,"d":"$0.0"},{"v":0,"d":"0.0%"},{"$nulls":4},0]
[null,null,{"$f":"T('2 REPAIR ESTIMATOR'!D1091:O1091)","v":"Track/Pendent light"},{"$nulls":3},{"$f":"'2 REPAIR ESTIMATOR'!AQ1091","v":{"v":157,"d":"$157"}},null,{"v":0.10466666666666667,"d":"$0.1"},{"v":1.1194295900178253E-3,"d":"0.1%"},{"$nulls":4},1]
[null,null,{"$f":"T('2 REPAIR ESTIMATOR'!D1092:O1092)","v":"Chandelier light fixture"},{"$nulls":3},{"$f":"'2 REPAIR ESTIMATOR'!AQ1092","v":{"v":287.25,"d":"$287"}},null,{"v":0.1915,"d":"$0.2"},{"v":0.002048128342245989,"d":"0.2%"},{"$nulls":4},1]
[null,null,{"$f":"T('2 REPAIR ESTIMATOR'!D1093:O1093)","v":"Ceiling dome light"},{"$nulls":3},{"$f":"'2 REPAIR ESTIMATOR'!AQ1093","v":{"v":312.25,"d":"$312"}},null,{"v":0.20816666666666667,"d":"$0.2"},{"v":0.002226381461675579,"d":"0.2%"},{"$nulls":4},1]
[null,null,{"$f":"T('2 REPAIR ESTIMATOR'!D1094:O1094)","v":"Ceiling fan fixture"},{"$nulls":3},{"$f":"'2 REPAIR ESTIMATOR'!AQ1094","v":{"v":792.2,"d":"$792"}},null,{"v":0.5281333333333333,"d":"$0.5"},{"v":0.005648484848484849,"d":"0.6%"},{"$nulls":4},1]
[null,null,{"$f":"T('2 REPAIR ESTIMATOR'!D1095:O1095)","v":"Bathroom vanity light"},{"$nulls":3},{"$f":"'2 REPAIR ESTIMATOR'!AQ1095","v":{"v":281.9,"d":"$282"}},null,{"v":0.1879333333333333,"d":"$0.2"},{"v":2.009982174688057E-3,"d":"0.2%"},{"$nulls":4},1]
[null,null,{"$f":"T('2 REPAIR ESTIMATOR'!D1096:O1096)","v":"Can lighting"},{"$nulls":3},{"$f":"'2 REPAIR ESTIMATOR'!AQ1096","v":{"v":0,"d":"$0"}},null,{"v":0,"d":"$0.0"},{"v":0,"d":"0.0%"},{"$nulls":4},0]
[null,null,{"$f":"T('2 REPAIR ESTIMATOR'!D1097:O1097)","v":"Exterior light fixture"},{"$nulls":3},{"$f":"'2 REPAIR ESTIMATOR'!AQ1097","v":{"v":260.5,"d":"$261"}},null,{"v":0.17366666666666666,"d":"$0.2"},{"v":0.001857397504456328,"d":"0.2%"},{"$nulls":4},1]
[null,null,{"$f":"T('2 REPAIR ESTIMATOR'!D1098:O1098)","v":""},{"$nulls":3},{"$f":"'2 REPAIR ESTIMATOR'!AQ1098","v":{"v":0,"d":"$0"}},null,{"v":0,"d":"$0.0"},{"v":0,"d":"0.0%"},{"$nulls":4},0]
[null,null,{"$f":"T('2 REPAIR ESTIMATOR'!D1099:O1099)","v":""},{"$nulls":3},{"$f":"'2 REPAIR ESTIMATOR'!AQ1099","v":{"v":0,"d":"$0"}},null,{"v":0,"d":"$0.0"},{"v":0,"d":"0.0%"},{"$nulls":4},0]
[null,null,{"$f":"T('2 REPAIR ESTIMATOR'!D1100:O1100)","v":""},{"$nulls":3},{"$f":"'2 REPAIR ESTIMATOR'!AQ1100","v":{"v":0,"d":"$0"}},null,{"v":0,"d":"$0.0"},{"v":0,"d":"0.0%"},{"$nulls":4},0]
[null,null,{"$f":"T('2 REPAIR ESTIMATOR'!D1101:O1101)","v":""},{"$nulls":3},{"$f":"'2 REPAIR ESTIMATOR'!AQ1101","v":{"v":0,"d":"$0"}},null,{"v":0,"d":"$0.0"},{"v":0,"d":"0.0%"},{"$nulls":4},0]
[null,null,{"$f":"T('2 REPAIR ESTIMATOR'!D1102:O1102)","v":""},{"$nulls":3},{"$f":"'2 REPAIR ESTIMATOR'!AQ1102","v":{"v":0,"d":"$0"}},null,{"v":0,"d":"$0.0"},{"v":0,"d":"0.0%"},{"$nulls":4},0]
[null,null,{"$f":"T('2 REPAIR ESTIMATOR'!D1103:O1103)","v":""},{"$nulls":3},{"$f":"'2 REPAIR ESTIMATOR'!AQ1103","v":{"v":0,"d":"$0"}},null,{"v":0,"d":"$0.0"},{"v":0,"d":"0.0%"},{"$nulls":4},0]
[null,null,{"$f":"T('2 REPAIR ESTIMATOR'!D1104:O1104)","v":""},{"$nulls":3},{"$f":"'2 REPAIR ESTIMATOR'!AQ1104","v":{"v":0,"d":"$0"}},null,{"v":0,"d":"$0.0"},{"v":0,"d":"0.0%"},{"$nulls":4},0]
[null,null,{"$f":"T('2 REPAIR ESTIMATOR'!D1105:O1105)","v":""},{"$nulls":3},{"$f":"'2 REPAIR ESTIMATOR'!AQ1105","v":{"v":0,"d":"$0"}},null,{"v":0,"d":"$0.0"},{"v":0,"d":"0.0%"},{"$nulls":4},0]
[null,null,{"$f":"T('2 REPAIR ESTIMATOR'!D1106:O1106)","v":""},{"$nulls":3},{"$f":"'2 REPAIR ESTIMATOR'!AQ1106","v":{"v":0,"d":"$0"}},null,{"v":0,"d":"$0.0"},{"v":0,"d":"0.0%"},{"$nulls":4},0]
[null,null,{"$f":"T('2 REPAIR ESTIMATOR'!D1107:O1107)","v":""},{"$nulls":3},{"$f":"'2 REPAIR ESTIMATOR'!AQ1107","v":{"v":0,"d":"$0"}},null,{"v":0,"d":"$0.0"},{"v":0,"d":"0.0%"},{"$nulls":4},0]
[null,null,{"$f":"T('2 REPAIR ESTIMATOR'!D1108:O1108)","v":""},{"$nulls":3},{"$f":"'2 REPAIR ESTIMATOR'!AQ1108","v":{"v":0,"d":"$0"}},null,{"v":0,"d":"$0.0"},{"v":0,"d":"0.0%"},{"$nulls":4},0]
[null,null,{"$f":"T('2 REPAIR ESTIMATOR'!D1109:O1109)","v":""},{"$nulls":3},{"$f":"'2 REPAIR ESTIMATOR'!AQ1109","v":{"v":0,"d":"$0"}},null,{"v":0,"d":"$0.0"},{"v":0,"d":"0.0%"},{"$nulls":4},0]
[null,null,{"$f":"T('2 REPAIR ESTIMATOR'!D1110:O1110)","v":""},{"$nulls":3},{"$f":"'2 REPAIR ESTIMATOR'!AQ1110","v":{"v":0,"d":"$0"}},null,{"v":0,"d":"$0.0"},{"v":0,"d":"0.0%"},{"$nulls":4},0]
[null,null,{"$f":"T('2 REPAIR ESTIMATOR'!D1111:O1111)","v":""},{"$nulls":3},{"$f":"'2 REPAIR ESTIMATOR'!AQ1111","v":{"v":0,"d":"$0"}},null,{"v":0,"d":"$0.0"},{"v":0,"d":"0.0%"},{"$nulls":4},0]
[null,null,{"$f":"T('2 REPAIR ESTIMATOR'!D1112:O1112)","v":""},{"$nulls":3},{"$f":"'2 REPAIR ESTIMATOR'!AQ1112","v":{"v":0,"d":"$0"}},null,{"v":0,"d":"$0.0"},{"v":0,"d":"0.0%"},{"$nulls":4},0]
[null,null,{"$f":"T('2 REPAIR ESTIMATOR'!D1113:O1113)","v":""},{"$nulls":3},{"$f":"'2 REPAIR ESTIMATOR'!AQ1113","v":{"v":0,"d":"$0"}},null,{"v":0,"d":"$0.0"},{"v":0,"d":"0.0%"},{"$nulls":4},0]
[null,null,{"$f":"T('2 REPAIR ESTIMATOR'!D1114:O1114)","v":""},{"$nulls":3},{"$f":"'2 REPAIR ESTIMATOR'!AQ1114","v":{"v":0,"d":"$0"}},null,{"v":0,"d":"$0.0"},{"v":0,"d":"0.0%"},{"$nulls":4},0]
[null,null,{"$f":"T('2 REPAIR ESTIMATOR'!D1115:O1115)","v":""},{"$nulls":3},{"$f":"'2 REPAIR ESTIMATOR'!AQ1115","v":{"v":0,"d":"$0"}},null,{"v":0,"d":"$0.0"},{"v":0,"d":"0.0%"},{"$nulls":4},0]
[null,null,{"$f":"T('2 REPAIR ESTIMATOR'!D1116:O1116)","v":""},{"$nulls":3},{"$f":"'2 REPAIR ESTIMATOR'!AQ1116","v":{"v":0,"d":"$0"}},null,{"v":0,"d":"$0.0"},{"v":0,"d":"0.0%"},{"$nulls":4},0]
[null,null,{"$f":"T('2 REPAIR ESTIMATOR'!D1117:O1117)","v":""},{"$nulls":3},{"$f":"'2 REPAIR ESTIMATOR'!AQ1117","v":{"v":0,"d":"$0"}},null,{"v":0,"d":"$0.0"},{"v":0,"d":"0.0%"},{"$nulls":4},0]
[null,null,{"$f":"T('2 REPAIR ESTIMATOR'!AC1119)","v":"ELECTRICAL TOTAL"},{"$nulls":3},{"$f":"SUM(G998:H1037)","v":{"v":2296.35,"d":"$2,296"}},null,{"$f":"SUM(I998:I1037)","v":{"v":1.5309,"d":"$2"}},{"$f":"SUM(J998:J1037)","v":{"v":0.01637326203208556,"d":"1.6%"}},{"$nulls":4},{"$f":"SUM(O998:O1037)","v":7}]
[{"$nulls":14},{"$f":"O1038","v":7}]
[null,null,{"$f":"T('2 REPAIR ESTIMATOR'!D1122:O1122)","v":"MISCELLANEOUS"},{"$nulls":11},{"$f":"SUM(O1041:O1080)","v":0}]
[null,null,{"$f":"T('2 REPAIR ESTIMATOR'!D1123:O1123)","v":"Bath accessories, towel bar, toilet disp, ea bathroom"},{"$nulls":3},{"$f":"'2 REPAIR ESTIMATOR'!AQ1123","v":{"v":0,"d":"$0"}},null,{"$f":"IFERROR(G1041/Property_Size,0)","v":{"v":0,"d":"$0.0"}},{"$f":"IFERROR(G1041/Total_Project_Costs_Result,0)","v":{"v":0,"d":"0.0%"}},{"$nulls":4},{"$f":"IF(G1041>0,1,0)","v":0}]
[null,null,{"$f":"T('2 REPAIR ESTIMATOR'!D1124:O1124)","v":"Bathroom mirrors"},{"$nulls":3},{"$f":"'2 REPAIR ESTIMATOR'!AQ1124","v":{"v":0,"d":"$0"}},null,{"v":0,"d":"$0.0"},{"v":0,"d":"0.0%"},{"$nulls":4},{"$f":"IF(G1042>0,1,0)","v":0}]
[null,null,{"$f":"T('2 REPAIR ESTIMATOR'!D1125:O1125)","v":"Window coverings, each window"},{"$nulls":3},{"$f":"'2 REPAIR ESTIMATOR'!AQ1125","v":{"v":0,"d":"$0"}},null,{"v":0,"d":"$0.0"},{"v":0,"d":"0.0%"},{"$nulls":4},0]
[null,null,{"$f":"T('2 REPAIR ESTIMATOR'!D1126:O1126)","v":""},{"$nulls":3},{"$f":"'2 REPAIR ESTIMATOR'!AQ1126","v":{"v":0,"d":"$0"}},null,{"v":0,"d":"$0.0"},{"v":0,"d":"0.0%"},{"$nulls":4},0]
[null,null,{"$f":"T('2 REPAIR ESTIMATOR'!D1127:O1127)","v":""},{"$nulls":3},{"$f":"'2 REPAIR ESTIMATOR'!AQ1127","v":{"v":0,"d":"$0"}},null,{"v":0,"d":"$0.0"},{"v":0,"d":"0.0%"},{"$nulls":4},0]
[null,null,{"$f":"T('2 REPAIR ESTIMATOR'!D1128:O1128)","v":""},{"$nulls":3},{"$f":"'2 REPAIR ESTIMATOR'!AQ1128","v":{"v":0,"d":"$0"}},null,{"v":0,"d":"$0.0"},{"v":0,"d":"0.0%"},{"$nulls":4},0]
[null,null,{"$f":"T('2 REPAIR ESTIMATOR'!D1129:O1129)","v":""},{"$nulls":3},{"$f":"'2 REPAIR ESTIMATOR'!AQ1129","v":{"v":0,"d":"$0"}},null,{"v":0,"d":"$0.0"},{"v":0,"d":"0.0%"},{"$nulls":4},0]
[null,null,{"$f":"T('2 REPAIR ESTIMATOR'!D1130:O1130)","v":""},{"$nulls":3},{"$f":"'2 REPAIR ESTIMATOR'!AQ1130","v":{"v":0,"d":"$0"}},null,{"v":0,"d":"$0.0"},{"v":0,"d":"0.0%"},{"$nulls":4},0]
[null,null,{"$f":"T('2 REPAIR ESTIMATOR'!D1131:O1131)","v":""},{"$nulls":3},{"$f":"'2 REPAIR ESTIMATOR'!AQ1131","v":{"v":0,"d":"$0"}},null,{"v":0,"d":"$0.0"},{"v":0,"d":"0.0%"},{"$nulls":4},0]
[null,null,{"$f":"T('2 REPAIR ESTIMATOR'!D1132:O1132)","v":""},{"$nulls":3},{"$f":"'2 REPAIR ESTIMATOR'!AQ1132","v":{"v":0,"d":"$0"}},null,{"v":0,"d":"$0.0"},{"v":0,"d":"0.0%"},{"$nulls":4},0]
[null,null,{"$f":"T('2 REPAIR ESTIMATOR'!D1133:O1133)","v":""},{"$nulls":3},{"$f":"'2 REPAIR ESTIMATOR'!AQ1133","v":{"v":0,"d":"$0"}},null,{"v":0,"d":"$0.0"},{"v":0,"d":"0.0%"},{"$nulls":4},0]
[null,null,{"$f":"T('2 REPAIR ESTIMATOR'!D1134:O1134)","v":""},{"$nulls":3},{"$f":"'2 REPAIR ESTIMATOR'!AQ1134","v":{"v":0,"d":"$0"}},null,{"v":0,"d":"$0.0"},{"v":0,"d":"0.0%"},{"$nulls":4},0]
[null,null,{"$f":"T('2 REPAIR ESTIMATOR'!D1135:O1135)","v":""},{"$nulls":3},{"$f":"'2 REPAIR ESTIMATOR'!AQ1135","v":{"v":0,"d":"$0"}},null,{"v":0,"d":"$0.0"},{"v":0,"d":"0.0%"},{"$nulls":4},0]
[null,null,{"$f":"T('2 REPAIR ESTIMATOR'!D1136:O1136)","v":""},{"$nulls":3},{"$f":"'2 REPAIR ESTIMATOR'!AQ1136","v":{"v":0,"d":"$0"}},null,{"v":0,"d":"$0.0"},{"v":0,"d":"0.0%"},{"$nulls":4},0]
[null,null,{"$f":"T('2 REPAIR ESTIMATOR'!D1137:O1137)","v":""},{"$nulls":3},{"$f":"'2 REPAIR ESTIMATOR'!AQ1137","v":{"v":0,"d":"$0"}},null,{"v":0,"d":"$0.0"},{"v":0,"d":"0.0%"},{"$nulls":4},0]
[null,null,{"$f":"T('2 REPAIR ESTIMATOR'!D1138:O1138)","v":""},{"$nulls":3},{"$f":"'2 REPAIR ESTIMATOR'!AQ1138","v":{"v":0,"d":"$0"}},null,{"v":0,"d":"$0.0"},{"v":0,"d":"0.0%"},{"$nulls":4},0]
[null,null,{"$f":"T('2 REPAIR ESTIMATOR'!D1139:O1139)","v":""},{"$nulls":3},{"$f":"'2 REPAIR ESTIMATOR'!AQ1139","v":{"v":0,"d":"$0"}},null,{"v":0,"d":"$0.0"},{"v":0,"d":"0.0%"},{"$nulls":4},0]
[null,null,{"$f":"T('2 REPAIR ESTIMATOR'!D1140:O1140)","v":""},{"$nulls":3},{"$f":"'2 REPAIR ESTIMATOR'!AQ1140","v":{"v":0,"d":"$0"}},null,{"v":0,"d":"$0.0"},{"v":0,"d":"0.0%"},{"$nulls":4},0]
[null,null,{"$f":"T('2 REPAIR ESTIMATOR'!D1141:O1141)","v":""},{"$nulls":3},{"$f":"'2 REPAIR ESTIMATOR'!AQ1141","v":{"v":0,"d":"$0"}},null,{"v":0,"d":"$0.0"},{"v":0,"d":"0.0%"},{"$nulls":4},0]
[null,null,{"$f":"T('2 REPAIR ESTIMATOR'!D1142:O1142)","v":""},{"$nulls":3},{"$f":"'2 REPAIR ESTIMATOR'!AQ1142","v":{"v":0,"d":"$0"}},null,{"v":0,"d":"$0.0"},{"v":0,"d":"0.0%"},{"$nulls":4},0]
[null,null,{"$f":"T('2 REPAIR ESTIMATOR'!D1143:O1143)","v":""},{"$nulls":3},{"$f":"'2 REPAIR ESTIMATOR'!AQ1143","v":{"v":0,"d":"$0"}},null,{"v":0,"d":"$0.0"},{"v":0,"d":"0.0%"},{"$nulls":4},0]
[null,null,{"$f":"T('2 REPAIR ESTIMATOR'!D1144:O1144)","v":""},{"$nulls":3},{"$f":"'2 REPAIR ESTIMATOR'!AQ1144","v":{"v":0,"d":"$0"}},null,{"v":0,"d":"$0.0"},{"v":0,"d":"0.0%"},{"$nulls":4},0]
[null,null,{"$f":"T('2 REPAIR ESTIMATOR'!D1145:O1145)","v":""},{"$nulls":3},{"$f":"'2 REPAIR ESTIMATOR'!AQ1145","v":{"v":0,"d":"$0"}},null,{"v":0,"d":"$0.0"},{"v":0,"d":"0.0%"},{"$nulls":4},0]
[null,null,{"$f":"T('2 REPAIR ESTIMATOR'!D1146:O1146)","v":""},{"$nulls":3},{"$f":"'2 REPAIR ESTIMATOR'!AQ1146","v":{"v":0,"d":"$0"}},null,{"v":0,"d":"$0.0"},{"v":0,"d":"0.0%"},{"$nulls":4},0]
[null,null,{"$f":"T('2 REPAIR ESTIMATOR'!D1147:O1147)","v":""},{"$nulls":3},{"$f":"'2 REPAIR ESTIMATOR'!AQ1147","v":{"v":0,"d":"$0"}},null,{"v":0,"d":"$0.0"},{"v":0,"d":"0.0%"},{"$nulls":4},0]
[null,null,{"$f":"T('2 REPAIR ESTIMATOR'!D1148:O1148)","v":""},{"$nulls":3},{"$f":"'2 REPAIR ESTIMATOR'!AQ1148","v":{"v":0,"d":"$0"}},null,{"v":0,"d":"$0.0"},{"v":0,"d":"0.0%"},{"$nulls":4},0]
[null,null,{"$f":"T('2 REPAIR ESTIMATOR'!D1149:O1149)","v":""},{"$nulls":3},{"$f":"'2 REPAIR ESTIMATOR'!AQ1149","v":{"v":0,"d":"$0"}},null,{"v":0,"d":"$0.0"},{"v":0,"d":"0.0%"},{"$nulls":4},0]
[null,null,{"$f":"T('2 REPAIR ESTIMATOR'!D1150:O1150)","v":""},{"$nulls":3},{"$f":"'2 REPAIR ESTIMATOR'!AQ1150","v":{"v":0,"d":"$0"}},null,{"v":0,"d":"$0.0"},{"v":0,"d":"0.0%"},{"$nulls":4},0]
[null,null,{"$f":"T('2 REPAIR ESTIMATOR'!D1151:O1151)","v":""},{"$nulls":3},{"$f":"'2 REPAIR ESTIMATOR'!AQ1151","v":{"v":0,"d":"$0"}},null,{"v":0,"d":"$0.0"},{"v":0,"d":"0.0%"},{"$nulls":4},0]
[null,null,{"$f":"T('2 REPAIR ESTIMATOR'!D1152:O1152)","v":""},{"$nulls":3},{"$f":"'2 REPAIR ESTIMATOR'!AQ1152","v":{"v":0,"d":"$0"}},null,{"v":0,"d":"$0.0"},{"v":0,"d":"0.0%"},{"$nulls":4},0]
[null,null,{"$f":"T('2 REPAIR ESTIMATOR'!D1153:O1153)","v":""},{"$nulls":3},{"$f":"'2 REPAIR ESTIMATOR'!AQ1153","v":{"v":0,"d":"$0"}},null,{"v":0,"d":"$0.0"},{"v":0,"d":"0.0%"},{"$nulls":4},0]
[null,null,{"$f":"T('2 REPAIR ESTIMATOR'!D1154:O1154)","v":""},{"$nulls":3},{"$f":"'2 REPAIR ESTIMATOR'!AQ1154","v":{"v":0,"d":"$0"}},null,{"v":0,"d":"$0.0"},{"v":0,"d":"0.0%"},{"$nulls":4},0]
[null,null,{"$f":"T('2 REPAIR ESTIMATOR'!D1155:O1155)","v":""},{"$nulls":3},{"$f":"'2 REPAIR ESTIMATOR'!AQ1155","v":{"v":0,"d":"$0"}},null,{"v":0,"d":"$0.0"},{"v":0,"d":"0.0%"},{"$nulls":4},0]
[null,null,{"$f":"T('2 REPAIR ESTIMATOR'!D1156:O1156)","v":""},{"$nulls":3},{"$f":"'2 REPAIR ESTIMATOR'!AQ1156","v":{"v":0,"d":"$0"}},null,{"v":0,"d":"$0.0"},{"v":0,"d":"0.0%"},{"$nulls":4},0]
[null,null,{"$f":"T('2 REPAIR ESTIMATOR'!D1157:O1157)","v":""},{"$nulls":3},{"$f":"'2 REPAIR ESTIMATOR'!AQ1157","v":{"v":0,"d":"$0"}},null,{"v":0,"d":"$0.0"},{"v":0,"d":"0.0%"},{"$nulls":4},0]
[null,null,{"$f":"T('2 REPAIR ESTIMATOR'!D1158:O1158)","v":""},{"$nulls":3},{"$f":"'2 REPAIR ESTIMATOR'!AQ1158","v":{"v":0,"d":"$0"}},null,{"v":0,"d":"$0.0"},{"v":0,"d":"0.0%"},{"$nulls":4},0]
[null,null,{"$f":"T('2 REPAIR ESTIMATOR'!D1159:O1159)","v":""},{"$nulls":3},{"$f":"'2 REPAIR ESTIMATOR'!AQ1159","v":{"v":0,"d":"$0"}},null,{"v":0,"d":"$0.0"},{"v":0,"d":"0.0%"},{"$nulls":4},0]
[null,null,{"$f":"T('2 REPAIR ESTIMATOR'!D1160:O1160)","v":""},{"$nulls":3},{"$f":"'2 REPAIR ESTIMATOR'!AQ1160","v":{"v":0,"d":"$0"}},null,{"v":0,"d":"$0.0"},{"v":0,"d":"0.0%"},{"$nulls":4},0]
[null,null,{"$f":"T('2 REPAIR ESTIMATOR'!D1161:O1161)","v":""},{"$nulls":3},{"$f":"'2 REPAIR ESTIMATOR'!AQ1161","v":{"v":0,"d":"$0"}},null,{"v":0,"d":"$0.0"},{"v":0,"d":"0.0%"},{"$nulls":4},0]
[null,null,{"$f":"T('2 REPAIR ESTIMATOR'!D1162:O1162)","v":""},{"$nulls":3},{"$f":"'2 REPAIR ESTIMATOR'!AQ1162","v":{"v":0,"d":"$0"}},null,{"v":0,"d":"$0.0"},{"v":0,"d":"0.0%"},{"$nulls":4},0]
[null,null,{"$f":"T('2 REPAIR ESTIMATOR'!AC1164)","v":"MISCELLANEOUS TOTAL"},{"$nulls":3},{"$f":"SUM(G1041:H1080)","v":{"v":0,"d":"$0"}},null,{"$f":"SUM(I1041:I1080)","v":{"v":0,"d":"$0"}},{"$f":"SUM(J1041:J1080)","v":{"v":0,"d":"0.0%"}},{"$nulls":4},{"$f":"SUM(O1041:O1080)","v":0}]
[{"$nulls":14},{"$f":"O1081","v":0}]
[null,null,"SUBTOTAL ESTIMATE",{"$nulls":3},{"$f":"SUBTOTAL_ESTIMATE","v":{"v":49750,"d":"$49,750"}},null,{"$f":"IFERROR(G1083/Property_Size,0)","v":{"v":33.166666666666664,"d":"$33"}},{"$f":"IFERROR(G1083/Total_Project_Costs_Result,0)","v":{"v":0.35472370766488415,"d":"35.5%"}},{"$nulls":4},{"$f":"IF(G1083>0,1,0)","v":1}]
[{"$nulls":14},{"$f":"O1090","v":0}]
[null,null,"ADDERS",{"$nulls":11},{"$f":"O1090","v":0}]
[null,null,{"$f":"CONCATENATE(\"Location Multiplier of \",TEXT(Location_Mutiplier,\"0.00\"))","v":"Location Multiplier of 0.00"},{"$nulls":3},{"$f":"Location_Mutiplier_Amount","v":{"v":0,"d":"$0"}},null,{"$f":"IFERROR(G1086/Property_Size,0)","v":{"v":0,"d":"$0.00"}},{"$f":"IFERROR(G1086/Total_Project_Costs_Result,0)","v":{"v":0,"d":"0.0%"}},{"$nulls":4},{"$f":"IF(G1086>0,1,0)","v":0}]
[null,null,{"$f":"CONCATENATE(\"Building Permit Costs (\",TEXT(Permit_Percentage,\"0.0%\"),\")\")","v":"Building Permit Costs (0.0%)"},{"$nulls":3},{"$f":"Permit_Amount","v":{"v":0,"d":"$0"}},null,{"$f":"IFERROR(G1087/Property_Size,0)","v":{"v":0,"d":"$0.00"}},{"$f":"IFERROR(G1087/Total_Project_Costs_Result,0)","v":{"v":0,"d":"0.0%"}},{"$nulls":4},{"$f":"IF(G1087>0,1,0)","v":0}]
[null,null,{"$f":"CONCATENATE(\"Contractors Overhead and Profit (\",TEXT(Contractos_Overhead_Percentage,\"0.0%\"),\")\")","v":"Contractors Overhead and Profit (0.0%)"},{"$nulls":3},{"$f":"Contractors_Overhead_Profit_Amount","v":{"v":0,"d":"$0"}},null,{"$f":"IFERROR(G1088/Property_Size,0)","v":{"v":0,"d":"$0.00"}},{"$f":"IFERROR(G1088/Total_Project_Costs_Result,0)","v":{"v":0,"d":"0.0%"}},{"$nulls":4},0]
[null,null,{"$f":"CONCATENATE(\"Estimate Contingency  (\",TEXT(Contingency_Percentage,\"0.0%\"),\")\")","v":"Estimate Contingency  (0.0%)"},{"$nulls":3},{"$f":"Contingency_Amount","v":{"v":0,"d":"$0"}},null,{"$f":"IFERROR(G1089/Property_Size,0)","v":{"v":0,"d":"$0.00"}},{"$f":"IFERROR(G1089/Total_Project_Costs_Result,0)","v":{"v":0,"d":"0.0%"}},{"$nulls":4},0]
[null,null,"TOTAL ADDERS",{"$nulls":3},{"$f":"SUM(G1086:H1089)","v":{"v":0,"d":"$0"}},null,{"$f":"SUM(I1086:I1089)","v":{"v":0,"d":"$0.00"}},{"$f":"SUM(J1086:J1089)","v":{"v":0,"d":"0%"}},{"$nulls":4},0]
[{"$nulls":14},{"$f":"O1092","v":1}]
[null,null,"TOTAL ESTIMATE",{"$nulls":3},{"$f":"G1083+G1090","v":{"v":49750,"d":"$49,750"}},null,{"$f":"IFERROR(G1092/Property_Size,0)","v":{"v":33.166666666666664,"d":"$33"}},{"$f":"IFERROR(G1092/Total_Project_Costs_Result,0)","v":{"v":0.35472370766488415,"d":"35.5%"}},{"$nulls":4},1]
[{"$nulls":14},{"$f":"O1094","v":1}]
[null,null,"TOTAL PROJECT COSTS",{"$nulls":3},{"$f":"Total_Project_Costs_Result","v":{"v":140250,"d":"$140,250"}},null,{"$f":"IFERROR(G1094/Property_Size,0)","v":{"v":93.5,"d":"$94"}},{"$f":"IFERROR(G1094/Total_Project_Costs_Result,0)","v":{"v":1,"d":"100.0%"}},{"$nulls":4},1]
[{"$nulls":14},1]
[null,null,"© 2016 by Houseflippingspreadsheet.com. All rights reserved"]

{"sheet":"INVESTMENT REPORTS","index":33,"n_rows":329,"n_cols":40,"rows_kept":329,"hidden":true,"merged":[[1,2,3,6],[2,33,3,33],[2,34,3,34],[2,35,3,35],[2,36,3,36],[2,37,3,37],[2,38,3,38],[2,39,3,39],[5,8,8,22],[9,15,10,22],[12,7,12,23],[18,8,20,22],[21,8,22,22],[23,8,23,22],[25,8,26,19],[28,8,47,22],[50,8,50,14],[51,8,51,14],[52,8,52,14],[53,8,53,14],[57,7,57,21],[57,22,57,23],[58,7,58,23],[62,7,62,16],[62,18,62,23],[63,7,63,10],[63,11,63,16],[64,7,64,10],[64,11,64,16],[64,18,64,23],[65,7,65,10],[65,11,65,16],[65,18,66,23],[67,7,67,16],[67,18,67,21],[67,22,67,23],[68,7,68,13],[68,14,68,16],[69,7,69,13],[69,14,69,16],[69,18,69,23],[70,7,70,13],[70,14,70,16],[70,18,71,23],[71,7,71,13],[71,14,71,16],[72,14,72,16],[72,18,72,21],[72,22,72,23],[73,7,73,13],[73,14,73,16],[74,7,74,13],[74,14,74,16],[74,18,74,23],[75,7,75,13],[75,14,75,16],[75,18,76,23],[76,14,76,16],[77,7,77,13],[77,14,77,16],[77,18,77,21],[77,22,77,23],[78,7,78,13],[78,14,78,16],[79,7,79,13],[79,14,79,16],[79,18,79,23],[80,14,80,16],[80,18,81,23],[81,7,81,16],[82,18,82,21],[82,22,82,23],[83,7,83,13],[83,14,83,16],[84,7,84,13],[84,14,84,16],[84,18,84,23],[85,7,85,13],[85,14,85,16],[85,18,86,23],[86,7,86,13],[86,14,86,16],[87,18,87,21],[87,22,87,23],[88,7,88,16],[89,14,89,16],[89,18,89,23],[90,7,90,13],[90,14,90,16],[90,18,91,23],[91,7,91,13],[91,14,91,16],[92,7,92,13],[92,14,92,16],[92,18,92,21],[92,22,92,23],[93,7,93,13],[93,14,93,16],[95,7,95,13],[95,14,95,16],[96,7,96,13],[96,14,96,16],[98,7,98,21],[98,22,98,23],[99,7,99,23],[103,7,103,20],[103,21,103,23],[104,7,104,20],[104,21,104,23],[106,7,106,20],[106,21,106,23],[107,7,107,20],[107,21,107,23],[108,7,108,20],[108,21,108,23],[109,7,109,20],[109,21,109,23],[111,7,111,20],[111,21,111,23],[112,7,112,20],[112,21,112,23],[114,7,114,20],[114,21,114,23],[115,7,115,20],[115,21,115,23],[116,7,116,20],[116,21,116,23],[117,7,117,20],[117,21,117,23],[118,7,118,20],[118,21,118,23],[121,7,121,20],[121,21,121,23],[122,7,122,20],[122,21,122,23],[123,7,123,20],[123,21,123,23],[124,7,124,20],[124,21,124,23],[125,7,125,20],[125,21,125,23],[126,7,126,20],[126,21,126,23],[127,7,127,20],[127,21,127,23],[128,7,128,20],[128,21,128,23],[129,7,129,20],[129,21,129,23],[130,7,130,20],[130,21,130,23],[131,7,131,20],[131,21,131,23],[133,7,133,20],[133,21,133,23],[135,7,135,20],[135,21,135,23],[136,7,136,20],[136,21,136,23],[137,7,137,20],[137,21,137,23],[138,7,138,20],[138,21,138,23],[139,7,139,20],[139,21,139,23],[141,7,141,20],[141,22,141,23],[142,7,142,23],[146,7,146,23],[147,7,147,9],[147,10,147,11],[147,12,147,15],[147,16,147,19],[147,20,147,23],[148,7,149,9],[148,10,149,11],[148,12,149,15],[148,16,149,19],[148,20,149,23],[150,7,150,9],[150,10,150,11],[150,12,150,15],[150,16,150,19],[150,20,150,23],[151,7,151,9],[151,10,151,11],[151,12,151,15],[151,16,151,19],[151,20,151,23],[152,7,152,9],[152,10,152,11],[152,12,152,15],[152,16,152,19],[152,20,152,23],[153,7,153,9],[153,10,153,11],[153,12,153,15],[153,16,153,19],[153,20,153,23],[154,7,154,9],[154,10,154,11],[154,12,154,15],[154,16,154,19],[154,20,154,23],[155,7,155,9],[155,10,155,11],[155,12,155,15],[155,16,155,19],[155,20,155,23],[156,7,156,23],[157,7,157,9],[157,10,157,11],[157,12,157,14],[157,16,157,18],[157,20,157,22],[158,7,158,9],[158,10,158,11],[158,12,158,14],[158,16,158,18],[158,20,158,22],[159,7,159,9],[159,10,159,11],[159,12,159,14],[159,16,159,18],[159,20,159,22],[160,7,160,9],[160,10,160,11],[160,12,160,14],[160,16,160,18],[160,20,160,22],[161,7,161,9],[161,10,161,11],[161,12,161,14],[161,16,161,18],[161,20,161,22],[162,7,162,9],[162,10,162,11],[162,12,162,14],[162,16,162,18],[162,20,162,22],[163,7,163,9],[163,10,163,11],[163,12,163,14],[163,16,163,18],[163,20,163,22],[164,7,164,9],[164,10,164,11],[164,12,164,14],[164,16,164,18],[164,20,164,22],[165,7,165,9],[165,10,165,11],[165,12,165,14],[165,16,165,18],[165,20,165,22],[166,7,166,9],[166,10,166,11],[166,12,166,14],[166,16,166,18],[166,20,166,22],[167,7,170,9],[167,10,170,11],[167,12,170,14],[167,15,170,15],[167,16,170,18],[167,19,170,19],[167,20,170,22],[167,23,170,23],[171,7,175,9],[171,10,175,11],[171,12,175,14],[171,15,175,15],[171,16,175,18],[171,19,175,19],[171,20,175,22],[171,23,175,23],[176,7,176,11],[176,12,176,15],[176,16,176,19],[176,20,176,23],[177,7,177,9],[177,10,177,11],[177,12,177,15],[177,16,177,19],[177,20,177,23],[182,7,182,20],[182,22,182,23],[183,7,183,23],[187,7,190,23],[192,7,192,16],[192,17,192,20],[192,21,192,23],[193,7,193,16],[193,17,193,20],[193,21,193,23],[194,7,194,16],[194,17,194,20],[194,21,194,23],[195,7,195,16],[195,17,195,20],[195,21,195,23],[196,7,196,16],[196,17,196,20],[196,21,196,23],[197,7,197,16],[197,17,197,20],[197,21,197,23],[198,7,198,16],[198,17,198,20],[198,21,198,23],[199,7,199,16],[199,17,199,20],[199,21,199,23],[200,7,200,16],[200,17,200,20],[200,21,200,23],[201,7,201,16],[201,17,201,20],[201,21,201,23],[202,7,202,16],[202,17,202,20],[202,21,202,23],[203,7,203,16],[203,17,203,20],[203,21,203,23],[204,7,204,16],[204,17,204,20],[204,21,204,23],[205,7,205,16],[205,17,205,20],[205,21,205,23],[206,7,206,16],[206,17,206,20],[206,21,206,23],[207,7,207,16],[207,17,207,20],[207,21,207,23],[208,7,208,16],[208,17,208,20],[208,21,208,23],[209,7,209,16],[209,17,209,20],[209,21,209,23],[210,7,210,16],[210,17,210,20],[210,21,210,23],[211,7,211,16],[211,17,211,20],[211,21,211,23],[212,7,212,16],[212,17,212,20],[212,21,212,23],[213,7,213,16],[213,17,213,20],[213,21,213,23],[214,7,214,16],[214,17,214,20],[214,21,214,23],[215,7,215,16],[215,17,215,20],[215,21,215,23],[216,7,216,16],[216,17,216,20],[216,21,216,23],[217,7,217,16],[217,17,217,20],[217,21,217,23],[219,7,219,16],[219,17,219,20],[219,21,219,23],[220,7,220,16],[220,17,220,20],[220,21,220,23],[223,7,223,21],[223,22,223,23],[224,7,224,23],[227,7,235,11],[227,13,235,17],[227,19,235,23],[236,7,237,11],[236,13,237,17],[236,19,237,23],[239,7,247,11],[239,13,247,17],[239,19,247,23],[248,7,249,11],[248,13,249,17],[248,19,249,23],[251,7,259,11],[251,13,259,17],[251,19,259,23],[260,7,261,11],[260,13,261,17],[260,19,261,23],[263,7,271,11],[263,13,271,17],[263,19,271,23],[272,7,273,11],[272,13,273,17],[272,19,273,23],[275,7,275,21],[275,22,275,23],[276,7,276,23],[279,7,287,11],[279,13,287,17],[279,19,287,23],[288,7,289,11],[288,13,289,17],[288,19,289,23],[291,7,299,11],[291,13,299,17],[291,19,299,23],[300,7,301,11],[300,13,301,17],[300,19,301,23],[303,7,311,11],[303,13,311,17],[303,19,311,23],[312,7,313,11],[312,13,313,17],[312,19,313,23],[315,7,323,11],[315,13,323,17],[315,19,323,23],[324,7,325,11],[324,13,325,17],[324,19,325,23],[327,7,327,21],[327,22,327,23],[328,7,329,23]]}
[]
[null,null,"INVESTMENT REPORT",{"$nulls":30},"Cover","Summary","Capital","Comps","Estimate","Photos","All Hidden?"]
[{"$nulls":33},"Shown","Shown","Shown","Shown","Shown","Shown",{"$f":"IF(AND(Investment_Report_Cover_Setting=\"Hidden\",Investment_Report_Summary_Setting=\"Hidden\",Investment_Report_Photo_Setting=\"Hidden\"),\"All Hidden\",\"\")","v":""}]
[]
[]
[{"$nulls":8},"The Investment Report summarizes your Rehab Financial Analysis and can be given to business partners and lenders to highlight your due diligence and financial analysis performed for the project."]
[]
[]
[]
[{"$nulls":15},"Investment Report Tutorial"]
[]
[]
[{"$nulls":7},{"$f":"CONCATENATE(Street_Address,\", \",City_State_Zip)","v":"1234 Main St, Kansas City, MO 64116"}]
[]
[]
[]
[]
[]
[{"$nulls":8},"PROPERTY INVESTMENT ANALYSIS"]
[]
[]
[{"$nulls":8},{"$f":"T(Street_Address)","v":"1234 Main St"}]
[]
[{"$nulls":8},{"$f":"T(City_State_Zip)","v":"Kansas City, MO 64116"}]
[]
[{"$nulls":8},{"$f":"TODAY()","v":"2019-06-23"}]
[]
[]
[{"$nulls":8},"Insert Cover Photo"]
{"$rows_empty":21}
[{"$nulls":8},{"$f":"UPPER(Company_Name)","v":"DAVE INC"}]
[{"$nulls":8},{"$f":"Investor_Name","v":"Dave"}]
[{"$nulls":8},{"$f":"T(Company_Email)","v":"dave@venturesheets.com"}]
[{"$nulls":8},{"$f":"Company_Phone","v":8161234567}]
[]
[]
[]
[{"$nulls":7},{"$f":"CONCATENATE(\"Report Prepared By: \",Investor_Name,\"  |  \",Company_Name,\"  |  \",Company_Email,\"  |  \",Company_Website)","v":"Report Prepared By: Dave  |  Dave Inc  |  dave@venturesheets.com  |  www.venturesheets.com"},{"$nulls":14},"Page 1 of 6"]
[{"$nulls":7},{"$f":"CONCATENATE(Street_Address,\", \",City_State_Zip)","v":"1234 Main St, Kansas City, MO 64116"}]
[]
[{"$nulls":7},"PROJECT FINANCIAL OVERVIEW"]
[]
[{"$nulls":7},"PROJECT INFO",{"$nulls":10},"PROJECT HIGHLIGHTS"]
[{"$nulls":7},"Beds, Baths, Square Footage",{"$nulls":3},{"$f":"CONCATENATE(Number_of_Beds,\" beds, \",Number_of_Baths,\" baths, \",Square_Feet,\" sf\")","v":"3 beds, 2 baths, 1500 sf"}]
[{"$nulls":7},"Neighborhood:",{"$nulls":3},{"$f":"Subdivision","v":"The Coves"},{"$nulls":6},"After Repair Value"]
[{"$nulls":7},"School District:",{"$nulls":3},{"$f":"School_District","v":"Park Hill School District"},{"$nulls":6},{"$f":"ARV","v":{"v":165000,"d":"$165,000"}}]
[]
[{"$nulls":7},"PROJECT COSTS",{"$nulls":10},"Price per SF:",{"$nulls":3},{"$f":"IFERROR(ARV/Property_Size,0)","v":{"v":110,"d":"$110 /sf"}}]
[{"$nulls":14},"Amount"]
[{"$nulls":7},"Purchase Price",{"$nulls":6},{"$f":"Maximum_Purchase_Price","v":{"v":61836.912500000006,"d":"$61,837"}},{"$nulls":3},"Purchase Price"]
[{"$nulls":7},"Buying Costs",{"$nulls":6},{"$f":"Buying_Costs_Result","v":{"v":1000,"d":"$1,000"}},{"$nulls":3},{"$f":"Maximum_Purchase_Price","v":{"v":61836.912500000006,"d":"$61,837"}}]
[{"$nulls":7},"Total Purchase Costs",{"$nulls":6},{"$f":"SUM(O70:Q71)","v":{"v":62836.912500000006,"d":"$62,837"}}]
[{"$nulls":18},"% of ARV:",{"$nulls":3},{"$f":"IFERROR(S71/ARV,0)","v":{"v":0.3747691666666667,"d":"37.5%"}}]
[{"$nulls":7},"Repair Costs",{"$nulls":6},{"$f":"Raw_Repair_Costs_Result","v":{"v":49750,"d":"$49,750"}}]
[{"$nulls":7},{"$f":"IF(O75=0,\"Contingeny\",CONCATENATE(\"Contingency (\",TEXT(Adders_Percentage,\"#.#%\"),\")\"))","v":"Contingency (27.8%)"},{"$nulls":6},{"$f":"Adders_Result","v":{"v":13813.0875,"d":"$13,813"}},{"$nulls":3},"Total Repairs"]
[{"$nulls":7},"Total Repair Costs",{"$nulls":6},{"$f":"SUM(O74:Q75)","v":{"v":63563.0875,"d":"$63,563"}},{"$nulls":3},{"$f":"O76","v":{"v":63563.0875,"d":"$63,563"}}]
[]
[{"$nulls":7},"Holding Costs",{"$nulls":6},{"$f":"Holding_Costs_Result","v":{"v":3000,"d":"$3,000"}},{"$nulls":3},"Price per SF:",{"$nulls":3},{"$f":"IFERROR(S76/Property_Size,0)","v":{"v":42.375391666666665,"d":"$42 /sf"}}]
[{"$nulls":7},"Financing Costs",{"$nulls":6},{"$f":"'ANALYSIS DATABASE'!C158","v":{"v":0,"d":"$0"}}]
[{"$nulls":7},"Total Carrying Costs",{"$nulls":6},{"$f":"SUM(O78:Q79)","v":{"v":3000,"d":"$3,000"}},{"$nulls":3},"Total Fixed Costs "]
[{"$nulls":18},{"$f":"O71+O78+O79+-O93","v":{"v":14850,"d":"$14,850"}}]
[{"$nulls":7},"FINANCIAL BREAKDOWN"]
[{"$nulls":18},"% of ARV:",{"$nulls":3},{"$f":"IFERROR(S81/ARV,0)","v":{"v":0.09,"d":"9.0%"}}]
[{"$nulls":7},"Upfront Project Costs (excluding Selling)",{"$nulls":6},{"$f":"O70+O71+O76+O80","v":{"v":129400,"d":"$129,400"}}]
[{"$nulls":7},"Debt Financing",{"$nulls":6},{"$f":"-'ANALYSIS DATABASE'!C250","v":{"v":0,"d":"$0"}},{"$nulls":3},"Total Project Costs"]
[{"$nulls":7},"Equity Financing",{"$nulls":6},{"$f":"-'ANALYSIS DATABASE'!C251","v":{"v":0,"d":"$0"}},{"$nulls":3},{"$f":"-O92-O93","v":{"v":140250,"d":"$140,250"}}]
[{"$nulls":7},"Rehabber's Cash Outlay",{"$nulls":6},{"$f":"SUM(O84:Q86)","v":{"v":129400,"d":"$129,400"}}]
[{"$nulls":18},"% of ARV:",{"$nulls":3},{"$f":"IFERROR(S86/ARV,0)","v":{"v":0.85,"d":"85.0%"}}]
[{"$nulls":7},"PROJECT RETURNS"]
[{"$nulls":18},"Project Profit"]
[{"$nulls":7},"Projected Sales Price (ARV):",{"$nulls":6},{"$f":"ARV","v":{"v":165000,"d":"$165,000"}},{"$nulls":3},{"$f":"O94","v":{"v":24750,"d":"$24,750"}}]
[{"$nulls":7},"Upfront Project Costs (excluding Selling)",{"$nulls":6},{"$f":"-O84","v":{"v":-129400,"d":"-$129,400"}}]
[{"$nulls":7},{"$f":"IF(O93=0,\"Selling Costs\",CONCATENATE(\"Selling Costs (\",TEXT(IFERROR(Selling_Costs_Result/ARV,0),\"#.#%\"),\")\"))","v":"Selling Costs (6.6%)"},{"$nulls":6},{"$f":"-Selling_Costs_Result","v":{"v":-10850,"d":"-$10,850"}},{"$nulls":3},"% of ARV:",{"$nulls":3},{"$f":"IFERROR(S91/ARV,0)","v":{"v":0.15,"d":"15.0%"}}]
[{"$nulls":7},"Project Profit",{"$nulls":6},{"$f":"SUM(O91:Q93)","v":{"v":24750,"d":"$24,750"}}]
[]
[{"$nulls":7},"Cash-On-Cash Return",{"$nulls":6},{"$f":"IFERROR(IF(O87<0,\"inf %\",O94/O87),0)","v":{"v":0.19126738794435857,"d":"19.13%"}}]
[{"$nulls":7},"Annualized COCR",{"$nulls":6},{"$f":"IFERROR(IF(O87<0,\"inf %\",O96/(Total_Schedule_Cell/12)),0)","v":{"v":0.45904173106646057,"d":"45.90%"}}]
[]
[{"$nulls":7},{"$f":"CONCATENATE(\"Report Prepared By: \",Investor_Name,\"  |  \",Company_Name,\"  |  \",Company_Email,\"  |  \",Company_Website)","v":"Report Prepared By: Dave  |  Dave Inc  |  dave@venturesheets.com  |  www.venturesheets.com"},{"$nulls":14},"Page 2 of 6"]
[{"$nulls":7},{"$f":"CONCATENATE(Street_Address,\", \",City_State_Zip)","v":"1234 Main St, Kansas City, MO 64116"}]
[]
[{"$nulls":7},"PROJECT CAPITAL"]
[]
[{"$nulls":7},"Capital Item",{"$nulls":13},"Capital Amount"]
[{"$nulls":7},"Capital Needed (All Project Costs excluding Selling Costs)",{"$nulls":13},{"$f":"'REHAB FINANCING SETUP'!BL97","v":{"v":129400,"d":"$129,400"}}]
[]
[{"$nulls":7},"Debt Financing"]
[{"$nulls":7},"Loan 1 Amount",{"$nulls":13},{"$f":"'REHAB FINANCING SETUP'!BL100","v":{"v":0,"d":"$0"}}]
[{"$nulls":7},"Loan 2 Amount",{"$nulls":13},{"$f":"'REHAB FINANCING SETUP'!BL101","v":{"v":0,"d":"$0"}}]
[{"$nulls":7},"Total Debt Financing",{"$nulls":13},{"$f":"'REHAB FINANCING SETUP'!BL102","v":{"v":0,"d":"$0"}}]
[]
[{"$nulls":7},"Equity Financing"]
[{"$nulls":7},"Outside Equity Investment Amount",{"$nulls":13},{"$f":"'REHAB FINANCING SETUP'!BL104","v":{"v":0,"d":"$0"}}]
[]
[{"$nulls":7},"Cash Investment"]
[{"$nulls":7},"Capital Needed (All Project Costs excluding Selling Costs)",{"$nulls":13},{"$f":"'REHAB FINANCING SETUP'!BL107","v":{"v":129400,"d":"$129,400"}}]
[{"$nulls":7},"- Less Total Debt Financing",{"$nulls":13},{"$f":"-V110","v":{"v":0,"d":"$0"}}]
[{"$nulls":7},"- Less Total Equity Financing",{"$nulls":13},{"$f":"'REHAB FINANCING SETUP'!BL109","v":{"v":0,"d":"$0"}}]
[{"$nulls":7},"Rehabber's Cash Outlay",{"$nulls":13},{"$f":"'REHAB FINANCING SETUP'!BL110","v":{"v":129400,"d":"$129,400"}}]
[{"$nulls":7},"FINANCING COSTS"]
[]
[{"$nulls":7},"Debt Financing Costs",{"$nulls":13},"Amount"]
[{"$nulls":7},"Loan 1 "]
[{"$nulls":7},"Loan 1 Interest",{"$nulls":13},{"$f":"'REHAB FINANCING SETUP'!BL116","v":{"v":0,"d":"$0"}}]
[{"$nulls":7},"Loan 1 Points",{"$nulls":13},{"$f":"'REHAB FINANCING SETUP'!BL117","v":{"v":0,"d":"$0"}}]
[{"$nulls":7},"Loan 1 Other Costs",{"$nulls":13},{"$f":"'REHAB FINANCING SETUP'!BL118","v":{"v":0,"d":"$0"}}]
[{"$nulls":7},"Total Loan 1 Financing Costs",{"$nulls":13},{"$f":"'REHAB FINANCING SETUP'!BL119","v":{"v":0,"d":"$0"}}]
[{"$nulls":7},"Loan 2"]
[{"$nulls":7},"Loan 2 Interest",{"$nulls":13},{"$f":"'REHAB FINANCING SETUP'!BL121","v":{"v":0,"d":"$0"}}]
[{"$nulls":7},"Loan 2 Points",{"$nulls":13},{"$f":"'REHAB FINANCING SETUP'!BL122","v":{"v":0,"d":"$0"}}]
[{"$nulls":7},"Loan 2 Other Costs",{"$nulls":13},{"$f":"'REHAB FINANCING SETUP'!BL123","v":{"v":0,"d":"$0"}}]
[{"$nulls":7},"Total Loan 2 Financing Costs",{"$nulls":13},{"$f":"'REHAB FINANCING SETUP'!BL124","v":{"v":0,"d":"$0"}}]
[]
[{"$nulls":7},"Equity Financing Costs (Profit Share)",{"$nulls":13},{"$f":"'REHAB FINANCING SETUP'!BL127","v":{"v":0,"d":"$0"}}]
[]
[{"$nulls":7},"Total Financing Costs",{"$nulls":13},"Amount"]
[{"$nulls":7},"Loan 1 Financing Costs",{"$nulls":13},{"$f":"V127","v":{"v":0,"d":"$0"}}]
[{"$nulls":7},"Loan 2 Financing Costs",{"$nulls":13},{"$f":"V132","v":{"v":0,"d":"$0"}}]
[{"$nulls":7},"Equity Financing Costs (Profit Share)",{"$nulls":13},{"$f":"V134","v":{"v":0,"d":"$0"}}]
[{"$nulls":7},"Total Financing Costs",{"$nulls":13},{"$f":"SUM(V137:X139)","v":{"v":0,"d":"$0"}}]
[]
[{"$nulls":7},"Report Prepared By: Dave  |  Dave Inc  |  dave@venturesheets.com  |  www.venturesheets.com",{"$nulls":14},"Page 3 of 6"]
[{"$nulls":7},{"$f":"CONCATENATE(Street_Address,\", \",City_State_Zip)","v":"1234 Main St, Kansas City, MO 64116"}]
[]
[{"$nulls":7},"COMPARABLE SALES"]
[]
[{"$nulls":7},"Comparable Sales"]
[{"$nulls":7},"Property Info",null,null,"Subject",null,"Comparable 1",{"$nulls":3},"Comparable 2",{"$nulls":3},"Comparable 3"]
[{"$nulls":7},"Street Address",null,null,{"$f":"CONCATENATE(COMPS!W6,\" \",COMPS!W7)","v":"1234 Main St Kansas City, MO 64116"},null,{"$f":"CONCATENATE(COMPS!AJ6,\" \",COMPS!AJ7)","v":"2345 N. Main St Kansas City, MO 64116"},{"$nulls":3},{"$f":"CONCATENATE(COMPS!AW6,\" \",COMPS!AW7)","v":"2345 N. Main St Kansas City, MO 64116"},{"$nulls":3},{"$f":"CONCATENATE(COMPS!BJ6,\" \",COMPS!BJ7)","v":"2345 N. Main St Kansas City, MO 64116"}]
[]
[{"$nulls":7},"Neighborhood",null,null,{"$f":"T(COMPS!W8)","v":"The Coves"},null,{"$f":"T(COMPS!AJ8)","v":"The Coves"},{"$nulls":3},{"$f":"T(COMPS!AW8)","v":"The Coves"},{"$nulls":3},{"$f":"T(COMPS!BJ8)","v":"The Coves"}]
[{"$nulls":7},"School District",null,null,{"$f":"T(COMPS!W9)","v":"Park Hill School District"},null,{"$f":"T(COMPS!AJ9)","v":"Park Hill School District"},{"$nulls":3},{"$f":"T(COMPS!AW9)","v":"Park Hill School District"},{"$nulls":3},{"$f":"T(COMPS!BJ9)","v":"Park Hill School District"}]
[{"$nulls":7},"List Price/Sales Price",null,null,{"$f":"(COMPS!W10)","v":{"v":165000,"d":"$165,000"}},null,{"$f":"COMPS!AJ10","v":{"v":245000,"d":"$245,000"}},{"$nulls":3},{"$f":"(COMPS!AW10)","v":{"v":260000,"d":"$260,000"}},{"$nulls":3},{"$f":"(COMPS!BJ10)","v":{"v":240000,"d":"$240,000"}}]
[{"$nulls":7},"Current Status",null,null,{"$f":"(COMPS!W11)","v":0},null,{"$f":"T(COMPS!AJ11)","v":"Sold"},{"$nulls":3},{"$f":"T(COMPS!AW11)","v":"Sold"},{"$nulls":3},{"$f":"T(COMPS!BJ11)","v":"Sold"}]
[{"$nulls":7},"Status Date",null,null,{"$f":"(COMPS!W12)","v":"00:00:00"},null,{"$f":"T(COMPS!AJ12)","v":""},{"$nulls":3},{"$f":"T(COMPS!AW12)","v":""},{"$nulls":3},{"$f":"T(COMPS!BJ12)","v":""}]
[{"$nulls":7},"Days on Market",null,null,{"$f":"(COMPS!W13)","v":{"v":0,"d":"0.00"}},null,{"$f":"T(COMPS!AJ13)","v":""},{"$nulls":3},{"$f":"T(COMPS!AW13)","v":""},{"$nulls":3},{"$f":"T(COMPS!BJ13)","v":""}]
[{"$nulls":7},"Property Characteristics"]
[{"$nulls":7},"Property Info",null,null,"Subject",null,"Comparable 1",null,null,"+/-","Comparable 2",null,null,"+/-","Comparable 3",null,null,"+/-"]
[{"$nulls":7},"# of Beds",null,null,{"$f":"COMPS!W16","v":{"v":3,"d":"3 beds"}},null,{"$f":"COMPS!AJ16","v":{"v":3,"d":"3 beds"}},null,null,{"$f":"COMPS!AR16","v":{"v":0,"d":"$0"}},{"$f":"COMPS!AW16","v":{"v":3,"d":"3 beds"}},null,null,{"$f":"COMPS!BE16","v":{"v":0,"d":"$0"}},{"$f":"COMPS!BJ16","v":{"v":3,"d":"3 beds"}},null,null,{"$f":"COMPS!BR16","v":{"v":0,"d":"$0"}}]
[{"$nulls":7},"# of Baths",null,null,{"$f":"COMPS!W17","v":2},null,{"$f":"COMPS!AJ17","v":{"v":2,"d":"2.0 baths"}},null,null,{"$f":"COMPS!AR17","v":{"v":0,"d":"$0"}},{"$f":"COMPS!AW17","v":{"v":2,"d":"2.0 baths"}},null,null,{"$f":"COMPS!BE17","v":{"v":0,"d":"$0"}},{"$f":"COMPS!BJ17","v":{"v":2,"d":"2.0 baths"}},null,null,{"$f":"COMPS!BR17","v":{"v":0,"d":"$0"}}]
[{"$nulls":7},"# of Garages",null,null,{"$f":"COMPS!W18","v":0},null,{"$f":"COMPS!AJ18","v":{"v":0,"d":"0 garages"}},null,null,{"$f":"COMPS!AR18","v":{"v":0,"d":"$0"}},{"$f":"COMPS!AW18","v":{"v":0,"d":"0 garages"}},null,null,{"$f":"COMPS!BE18","v":{"v":0,"d":"$0"}},{"$f":"COMPS!BJ18","v":{"v":0,"d":"0 garages"}},null,null,{"$f":"COMPS!BR18","v":{"v":0,"d":"$0"}}]
[{"$nulls":7},"Square Footage",null,null,{"$f":"COMPS!W19","v":1500},null,{"$f":"COMPS!AJ19","v":{"v":1450,"d":"1450 sf"}},null,null,{"$f":"COMPS!AR19","v":{"v":8250,"d":"$8,250"}},{"$f":"COMPS!AW19","v":{"v":1505,"d":"1505 sf"}},null,null,{"$f":"COMPS!BE19","v":{"v":0,"d":"$0"}},{"$f":"COMPS!BJ19","v":{"v":1400,"d":"1400 sf"}},null,null,{"$f":"COMPS!BR19","v":{"v":15000,"d":"$15,000"}}]
[{"$nulls":7},"Year Built",null,null,{"$f":"COMPS!W20","v":1982},null,{"$f":"COMPS!AJ20","v":1981},null,null,{"$f":"COMPS!AR20","v":{"v":0,"d":"$0"}},{"$f":"COMPS!AW20","v":1983},null,null,{"$f":"COMPS!BE20","v":{"v":0,"d":"$0"}},{"$f":"COMPS!BJ20","v":1985},null,null,{"$f":"COMPS!BR20","v":{"v":0,"d":"$0"}}]
[{"$nulls":7},"Basement Type",null,null,{"$f":"COMPS!W21","v":"Finished"},null,{"$f":"COMPS!AJ21","v":"Finished"},null,null,{"$f":"COMPS!AR21","v":{"v":0,"d":"$0"}},{"$f":"COMPS!AW21","v":"Finished"},null,null,{"$f":"COMPS!BE21","v":{"v":0,"d":"$0"}},{"$f":"COMPS!BJ21","v":"Finished"},null,null,{"$f":"COMPS!BR21","v":{"v":0,"d":"$0"}}]
[{"$nulls":7},"Central Heat",null,null,{"$f":"COMPS!W22","v":"Yes"},null,{"$f":"COMPS!AJ22","v":"Yes"},null,null,{"$f":"COMPS!AR22","v":{"v":0,"d":"$0"}},{"$f":"COMPS!AW22","v":"Yes"},null,null,{"$f":"COMPS!BE22","v":{"v":0,"d":"$0"}},{"$f":"COMPS!BJ22","v":"Yes"},null,null,{"$f":"COMPS!BR22","v":{"v":0,"d":"$0"}}]
[{"$nulls":7},"Air Conditioning",null,null,{"$f":"COMPS!W23","v":"Yes"},null,{"$f":"COMPS!AJ23","v":"Yes"},null,null,{"$f":"COMPS!AR23","v":{"v":0,"d":"$0"}},{"$f":"COMPS!AW23","v":"Yes"},null,null,{"$f":"COMPS!BE23","v":{"v":0,"d":"$0"}},{"$f":"COMPS!BJ23","v":"Yes"},null,null,{"$f":"COMPS!BR23","v":{"v":0,"d":"$0"}}]
[{"$nulls":7},"Property Condition",null,null,{"$f":"COMPS!W24","v":"Fully Renovated"},null,{"$f":"COMPS!AJ24","v":"Moderate Updates"},null,null,{"$f":"COMPS!AR24","v":{"v":10000,"d":"$10,000"}},{"$f":"COMPS!AW24","v":"Fully Renovated"},null,null,{"$f":"COMPS!BE24","v":{"v":0,"d":"$0"}},{"$f":"COMPS!BJ24","v":"Moderate Updates"},null,null,{"$f":"COMPS!BR24","v":{"v":10000,"d":"$10,000"}}]
[{"$nulls":7},"Other Improvements",null,null,{"$f":"T(COMPS!W25)","v":""},null,{"$f":"T(COMPS!AJ25)","v":""},null,null,{"v":0,"d":"$0"},{"$f":"T(COMPS!AW25)","v":""},null,null,{"$f":"COMPS!BE25","v":{"v":0,"d":"$0"}},{"$f":"T(COMPS!BJ25)","v":""},null,null,{"$f":"COMPS!BR25","v":{"v":0,"d":"$0"}}]
[{"$nulls":10},{"$f":"COMPS!W26","v":0},null,{"$f":"COMPS!AJ26","v":0},null,null,{"$f":"COMPS!AR26","v":{"v":0,"d":"$0"}},{"$nulls":3},{"$f":"COMPS!BE26","v":{"v":0,"d":"$0"}},{"$f":"COMPS!BJ26","v":0},null,null,{"$f":"COMPS!BR26","v":{"v":0,"d":"$0"}}]
[{"$nulls":10},{"$f":"COMPS!W27","v":0},null,{"$f":"COMPS!AJ27","v":0},null,null,{"$f":"COMPS!AR27","v":{"v":0,"d":"$0"}},{"$nulls":3},{"$f":"COMPS!BE27","v":{"v":0,"d":"$0"}},{"$f":"COMPS!BJ27","v":0},null,null,{"$f":"COMPS!BR27","v":{"v":0,"d":"$0"}}]
[{"$nulls":10},{"$f":"COMPS!W28","v":0},null,{"$f":"COMPS!AJ28","v":0},null,null,{"$f":"COMPS!AR28","v":{"v":0,"d":"$0"}},{"$nulls":3},{"$f":"COMPS!BE28","v":{"v":0,"d":"$0"}},{"$f":"COMPS!BJ28","v":0},null,null,{"$f":"COMPS!BR28","v":{"v":0,"d":"$0"}}]
[{"$nulls":7},"Notes:",null,null,{"$f":"T(COMPS!W26)","v":""},null,{"$f":"T(COMPS!AJ26)","v":""},null,null,{"$f":"COMPS!AR29","v":{"v":0,"d":"$0"}},{"$f":"T(COMPS!AW26)","v":"Property appears to have been rehabbed and flipped by an investor.  Property has similar finishes to the finishes planned for subject property."},null,null,{"$f":"COMPS!BE29","v":{"v":0,"d":"$0"}},{"$f":"T(COMPS!BJ26)","v":""},null,null,{"$f":"COMPS!BR29","v":{"v":0,"d":"$0"}}]
[{"$nulls":15},{"$f":"COMPS!AR30","v":{"v":0,"d":"$0"}},{"$nulls":3},{"$f":"COMPS!BE30","v":{"v":0,"d":"$0"}},{"$nulls":3},{"$f":"COMPS!BR30","v":{"v":0,"d":"$0"}}]
[{"$nulls":15},{"$f":"COMPS!AR31","v":{"v":0,"d":"$0"}},{"$nulls":3},{"$f":"COMPS!BE31","v":{"v":0,"d":"$0"}},{"$nulls":3},{"$f":"COMPS!BR31","v":{"v":0,"d":"$0"}}]
[{"$nulls":15},{"$f":"COMPS!AR32","v":{"v":0,"d":"$0"}},{"$nulls":3},{"$f":"COMPS!BE32","v":{"v":0,"d":"$0"}},{"$nulls":3},{"$f":"COMPS!BR32","v":{"v":0,"d":"$0"}}]
[{"$nulls":15},{"$f":"COMPS!AR33","v":{"v":0,"d":"$0"}},{"$nulls":3},{"$f":"COMPS!BE33","v":{"v":0,"d":"$0"}},{"$nulls":3},{"$f":"COMPS!BR33","v":{"v":0,"d":"$0"}}]
[{"$nulls":7},"TOTAL ADJUSTMENTS",{"$nulls":4},{"$f":"COMPS!AJ33","v":{"v":263250,"d":"$263,250"}},{"$nulls":3},{"$f":"COMPS!AW33","v":{"v":260000,"d":"$260,000"}},{"$nulls":3},{"$f":"COMPS!BJ33","v":{"v":265000,"d":"$265,000"}}]
[{"$nulls":7},"PRICE PER SF",null,null,{"$f":"COMPS!W34","v":{"v":110,"d":"$110.0"}},null,{"$f":"COMPS!AJ34","v":{"v":181.55172413793105,"d":"$182"}},{"$nulls":3},{"$f":"COMPS!AW34","v":{"v":172.75747508305648,"d":"$173"}},{"$nulls":3},{"$f":"COMPS!BJ34","v":{"v":189.28571428571428,"d":"$189"}}]
[]
[]
[]
[]
[{"$nulls":7},"Report Prepared By: Dave  |  Dave Inc  |  dave@venturesheets.com  |  www.venturesheets.com",{"$nulls":14},"Page 4 of 6"]
[{"$nulls":7},{"$f":"CONCATENATE(Street_Address,\", \",City_State_Zip)","v":"1234 Main St, Kansas City, MO 64116"}]
[]
[{"$nulls":7},"ESTIMATE SUMMARY"]
[]
[{"$nulls":7},"Input an estimate description"]
[]
[]
[]
[]
[{"$nulls":7},"SCOPE OF WORK",{"$nulls":9},"TOTAL",{"$nulls":3},"% of TOTAL"]
[{"$nulls":7},{"$f":"PROPER('ANALYSIS DATABASE'!B75)","v":"General Conditions"},{"$nulls":9},{"$f":"'ANALYSIS DATABASE'!C75","v":{"v":750,"d":"$750"}},{"$nulls":3},{"$f":"IFERROR(R194/$R$221,0)","v":{"v":0.01179930097007953,"d":"1.2%"}}]
[{"$nulls":7},{"$f":"PROPER('ANALYSIS DATABASE'!B76)","v":"Demolition"},{"$nulls":9},{"$f":"'ANALYSIS DATABASE'!C76","v":{"v":1000,"d":"$1,000"}},{"$nulls":3},{"$f":"IFERROR(R195/$R$221,0)","v":{"v":0.015732401293439374,"d":"1.6%"}}]
[{"$nulls":7},{"$f":"PROPER('ANALYSIS DATABASE'!B77)","v":"Structural Concrete"},{"$nulls":9},{"$f":"'ANALYSIS DATABASE'!C77","v":{"v":0,"d":"$0"}},{"$nulls":3},{"v":0,"d":"0.0%"}]
[{"$nulls":7},{"$f":"PROPER('ANALYSIS DATABASE'!B78)","v":"Concrete & Flatwork"},{"$nulls":9},{"$f":"'ANALYSIS DATABASE'!C78","v":{"v":0,"d":"$0"}},{"$nulls":3},{"v":0,"d":"0.0%"}]
[{"$nulls":7},{"$f":"PROPER('ANALYSIS DATABASE'!B79)","v":"Masonry"},{"$nulls":9},{"$f":"'ANALYSIS DATABASE'!C79","v":{"v":0,"d":"$0"}},{"$nulls":3},{"v":0,"d":"0.0%"}]
[{"$nulls":7},{"$f":"PROPER('ANALYSIS DATABASE'!B80)","v":"Siding"},{"$nulls":9},{"$f":"'ANALYSIS DATABASE'!C80","v":{"v":0,"d":"$0"}},{"$nulls":3},{"v":0,"d":"0.0%"}]
[{"$nulls":7},{"$f":"PROPER('ANALYSIS DATABASE'!B81)","v":"Decking And Patios"},{"$nulls":9},{"$f":"'ANALYSIS DATABASE'!C81","v":{"v":5000,"d":"$5,000"}},{"$nulls":3},{"v":0.07866200646719686,"d":"7.9%"}]
[{"$nulls":7},{"$f":"PROPER('ANALYSIS DATABASE'!B82)","v":"Roofing"},{"$nulls":9},{"$f":"'ANALYSIS DATABASE'!C82","v":{"v":5500,"d":"$5,500"}},{"$nulls":3},{"v":0.08652820711391655,"d":"8.7%"}]
[{"$nulls":7},{"$f":"PROPER('ANALYSIS DATABASE'!B83)","v":"Exterior Doors & Windows"},{"$nulls":9},{"$f":"'ANALYSIS DATABASE'!C83","v":{"v":2000,"d":"$2,000"}},{"$nulls":3},{"v":0.03146480258687875,"d":"3.1%"}]
[{"$nulls":7},{"$f":"PROPER('ANALYSIS DATABASE'!B84)","v":"Garage Doors"},{"$nulls":9},{"$f":"'ANALYSIS DATABASE'!C84","v":{"v":1250,"d":"$1,250"}},{"$nulls":3},{"v":0.019665501616799214,"d":"2.0%"}]
[{"$nulls":7},{"$f":"PROPER('ANALYSIS DATABASE'!B85)","v":"Landscaping"},{"$nulls":9},{"$f":"'ANALYSIS DATABASE'!C85","v":{"v":500,"d":"$500"}},{"$nulls":3},{"v":0.007866200646719687,"d":"0.8%"}]
[{"$nulls":7},{"$f":"PROPER('ANALYSIS DATABASE'!B86)","v":"Misc. Exterior Items"},{"$nulls":9},{"$f":"'ANALYSIS DATABASE'!C86","v":{"v":0,"d":"$0"}},{"$nulls":3},{"v":0,"d":"0.0%"}]
[{"$nulls":7},{"$f":"PROPER('ANALYSIS DATABASE'!B87)","v":"Framing & Drywall"},{"$nulls":9},{"$f":"'ANALYSIS DATABASE'!C87","v":{"v":500,"d":"$500"}},{"$nulls":3},{"v":0.007866200646719687,"d":"0.8%"}]
[{"$nulls":7},{"$f":"PROPER('ANALYSIS DATABASE'!B88)","v":"Cabinets & Countertops"},{"$nulls":9},{"$f":"'ANALYSIS DATABASE'!C88","v":{"v":7500,"d":"$7,500"}},{"$nulls":3},{"v":0.11799300970079529,"d":"11.8%"}]
[{"$nulls":7},{"$f":"PROPER('ANALYSIS DATABASE'!B89)","v":"Doors & Trim"},{"$nulls":9},{"$f":"'ANALYSIS DATABASE'!C89","v":{"v":3000,"d":"$3,000"}},{"$nulls":3},{"v":0.04719720388031812,"d":"4.7%"}]
[{"$nulls":7},{"$f":"PROPER('ANALYSIS DATABASE'!B90)","v":"Carpet & Resilient"},{"$nulls":9},{"$f":"'ANALYSIS DATABASE'!C90","v":{"v":3000,"d":"$3,000"}},{"$nulls":3},{"v":0.04719720388031812,"d":"4.7%"}]
[{"$nulls":7},{"$f":"PROPER('ANALYSIS DATABASE'!B91)","v":"Hardwood Flooring"},{"$nulls":9},{"$f":"'ANALYSIS DATABASE'!C91","v":{"v":2500,"d":"$2,500"}},{"$nulls":3},{"v":0.03933100323359843,"d":"3.9%"}]
[{"$nulls":7},{"$f":"PROPER('ANALYSIS DATABASE'!B92)","v":"Tiling"},{"$nulls":9},{"$f":"'ANALYSIS DATABASE'!C92","v":{"v":3000,"d":"$3,000"}},{"$nulls":3},{"v":0.04719720388031812,"d":"4.7%"}]
[{"$nulls":7},{"$f":"PROPER('ANALYSIS DATABASE'!B93)","v":"Painting"},{"$nulls":9},{"$f":"'ANALYSIS DATABASE'!C93","v":{"v":5000,"d":"$5,000"}},{"$nulls":3},{"v":0.07866200646719686,"d":"7.9%"}]
[{"$nulls":7},{"$f":"PROPER('ANALYSIS DATABASE'!B94)","v":"Appliances"},{"$nulls":9},{"$f":"'ANALYSIS DATABASE'!C94","v":{"v":2500,"d":"$2,500"}},{"$nulls":3},{"v":0.03933100323359843,"d":"3.9%"}]
[{"$nulls":7},{"$f":"PROPER('ANALYSIS DATABASE'!B95)","v":"Plumbing"},{"$nulls":9},{"$f":"'ANALYSIS DATABASE'!C95","v":{"v":3000,"d":"$3,000"}},{"$nulls":3},{"v":0.04719720388031812,"d":"4.7%"}]
[{"$nulls":7},{"$f":"PROPER('ANALYSIS DATABASE'!B96)","v":"Hvac"},{"$nulls":9},{"$f":"'ANALYSIS DATABASE'!C96","v":{"v":250,"d":"$250"}},{"$nulls":3},{"v":0.003933100323359843,"d":"0.4%"}]
[{"$nulls":7},{"$f":"PROPER('ANALYSIS DATABASE'!B97)","v":"Electrical"},{"$nulls":9},{"$f":"'ANALYSIS DATABASE'!C97","v":{"v":3500,"d":"$3,500"}},{"$nulls":3},{"v":0.0550634045270378,"d":"5.5%"}]
[{"$nulls":7},{"$f":"PROPER('ANALYSIS DATABASE'!B98)","v":"Miscellaneous"},{"$nulls":9},{"$f":"'ANALYSIS DATABASE'!C98","v":{"v":0,"d":"$0"}},{"$nulls":3},{"v":0,"d":"0.0%"}]
[{"$nulls":7},"Subtotal Estimate",{"$nulls":9},{"$f":"'1 REHAB ANALYZER'!BG57","v":{"v":49750,"d":"$49,750"}},{"$nulls":3},{"$f":"IFERROR(R218/$R$221,0)","v":{"v":0.7826869643486087,"d":"78%"}}]
[]
[{"$nulls":7},"Estimate Adders (Contingencies, Contractor OH & P, Taxes, etc.)",{"$nulls":9},{"$f":"Adders_Result","v":{"v":13813.0875,"d":"$13,813"}},{"$nulls":3},{"$f":"IFERROR(R220/$R$221,0)","v":{"v":0.2173130356513912,"d":"21.7%"}}]
[{"$nulls":7},"Total Estimate",{"$nulls":9},{"$f":"R218+R220","v":{"v":63563.0875,"d":"$63,563"}},{"$nulls":3},{"$f":"IFERROR(R221/$R$221,0)","v":{"v":1,"d":"100%"}}]
[]
[]
[{"$nulls":7},{"$f":"CONCATENATE(\"Report Prepared By: \",Investor_Name,\"  |  \",Company_Name,\"  |  \",Company_Email,\"  |  \",Company_Website)","v":"Report Prepared By: Dave  |  Dave Inc  |  dave@venturesheets.com  |  www.venturesheets.com"},{"$nulls":14},"Page 5 of 6"]
[{"$nulls":7},{"$f":"CONCATENATE(Street_Address,\", \",City_State_Zip)","v":"1234 Main St, Kansas City, MO 64116"}]
[]
[{"$nulls":7},"PROPERTY PHOTOS"]
{"$rows_empty":9}
[{"$nulls":7},"Picture Caption",{"$nulls":5},"Picture Caption",{"$nulls":5},"Picture Caption"]
{"$rows_empty":11}
[{"$nulls":7},"Picture Caption",{"$nulls":5},"Picture Caption",{"$nulls":5},"Picture Caption"]
{"$rows_empty":11}
[{"$nulls":7},"Picture Caption",{"$nulls":5},"Picture Caption",{"$nulls":5},"Picture Caption"]
{"$rows_empty":11}
[{"$nulls":7},"Picture Caption",{"$nulls":5},"Picture Caption",{"$nulls":5},"Picture Caption"]
[]
[]
[{"$nulls":7},{"$f":"CONCATENATE(\"Report Prepared By: \",Investor_Name,\"  |  \",Company_Name,\"  |  \",Company_Email,\"  |  \",Company_Website)","v":"Report Prepared By: Dave  |  Dave Inc  |  dave@venturesheets.com  |  www.venturesheets.com"},{"$nulls":14},"Page 6 of 6"]
[{"$nulls":7},{"$f":"CONCATENATE(Street_Address,\", \",City_State_Zip)","v":"1234 Main St, Kansas City, MO 64116"}]
[]
[{"$nulls":7},"PROPERTY PHOTOS"]
{"$rows_empty":9}
[{"$nulls":7},"Picture Caption",{"$nulls":5},"Picture Caption",{"$nulls":5},"Picture Caption"]
{"$rows_empty":11}
[{"$nulls":7},"Picture Caption",{"$nulls":5},"Picture Caption",{"$nulls":5},"Picture Caption"]
{"$rows_empty":11}
[{"$nulls":7},"Picture Caption",{"$nulls":5},"Picture Caption",{"$nulls":5},"Picture Caption"]
{"$rows_empty":11}
[{"$nulls":7},"Picture Caption",{"$nulls":5},"Picture Caption",{"$nulls":5},"Picture Caption"]
[]
[]
[{"$nulls":7},{"$f":"CONCATENATE(\"Report Prepared By: \",Investor_Name,\"  |  \",Company_Name,\"  |  \",Company_Email,\"  |  \",Company_Website)","v":"Report Prepared By: Dave  |  Dave Inc  |  dave@venturesheets.com  |  www.venturesheets.com"},{"$nulls":14},"Page 6 of 6"]
[{"$nulls":7},"© 2018 by Houseflippingspreadsheet.com. All rights reserved"]

{"sheet":"LENDER REPORTS","index":34,"n_rows":375,"n_cols":41,"rows_kept":375,"hidden":true,"merged":[[1,2,3,6],[2,25,2,26],[2,33,3,33],[2,34,3,34],[2,35,3,35],[2,36,3,36],[2,37,3,37],[2,38,3,38],[2,39,3,39],[2,40,3,40],[5,8,8,22],[10,7,10,23],[15,8,17,22],[19,8,20,22],[21,8,21,22],[23,8,24,19],[27,8,45,22],[48,8,48,14],[49,8,49,14],[50,8,50,14],[51,8,51,14],[55,7,55,21],[55,22,55,23],[56,7,56,23],[58,7,58,16],[60,7,60,16],[60,18,60,23],[61,7,61,10],[61,11,61,16],[62,7,62,10],[62,11,62,16],[62,18,62,23],[63,7,63,10],[63,11,63,16],[63,18,64,23],[65,7,65,16],[65,18,65,21],[65,22,65,23],[66,7,66,13],[66,14,66,16],[67,7,67,13],[67,14,67,16],[67,18,67,23],[68,7,68,13],[68,14,68,16],[68,18,69,23],[69,7,69,13],[69,14,69,16],[70,14,70,16],[70,18,70,21],[70,22,70,23],[71,7,71,13],[71,14,71,16],[72,7,72,13],[72,14,72,16],[72,18,72,23],[73,7,73,13],[73,14,73,16],[73,18,74,23],[74,14,74,16],[75,7,75,13],[75,14,75,16],[75,18,75,21],[75,22,75,23],[76,7,76,13],[76,14,76,16],[77,7,77,13],[77,14,77,16],[77,18,77,23],[78,14,78,16],[78,18,79,23],[79,7,79,16],[80,18,80,21],[80,22,80,23],[81,7,81,13],[81,14,81,16],[82,7,82,13],[82,14,82,16],[82,18,82,23],[83,7,83,13],[83,14,83,16],[83,18,84,23],[84,7,84,13],[84,14,84,16],[85,18,85,21],[85,22,85,23],[86,7,86,16],[87,14,87,16],[87,18,87,23],[88,7,88,13],[88,14,88,16],[88,18,89,23],[89,7,89,13],[89,14,89,16],[90,7,90,13],[90,14,90,16],[90,18,90,21],[90,22,90,23],[91,7,91,13],[91,14,91,16],[93,7,93,13],[93,14,93,16],[94,7,94,13],[94,14,94,16],[96,7,96,21],[96,22,96,23],[97,7,97,23],[99,7,99,16],[101,7,101,16],[101,18,101,23],[102,14,102,16],[103,7,103,13],[103,14,103,16],[103,18,103,23],[104,7,104,13],[104,14,104,16],[104,18,105,23],[105,7,105,13],[105,14,105,16],[106,18,106,21],[106,22,106,23],[107,7,107,13],[107,14,107,16],[108,7,108,13],[108,14,108,16],[108,18,108,23],[109,18,110,23],[110,7,110,16],[111,18,111,21],[111,22,111,23],[112,7,115,16],[113,18,113,23],[114,18,115,23],[116,14,116,16],[116,18,116,21],[116,22,116,23],[117,7,117,16],[118,7,118,13],[118,14,118,16],[118,18,118,23],[119,7,119,13],[119,14,119,16],[119,18,120,23],[120,7,120,13],[120,14,120,16],[121,14,121,16],[121,18,121,21],[121,22,121,23],[122,7,122,16],[123,7,123,10],[123,11,123,13],[123,14,123,16],[123,18,123,23],[124,7,124,10],[124,11,124,13],[124,14,124,16],[124,18,125,23],[125,7,125,10],[125,11,125,13],[125,14,125,16],[126,7,126,10],[126,11,126,13],[126,14,126,16],[126,18,126,21],[126,22,126,23],[127,7,127,13],[127,14,127,16],[128,7,128,13],[128,14,128,16],[128,18,128,23],[129,7,129,13],[129,14,129,16],[129,18,130,23],[131,18,131,21],[131,22,131,23],[137,7,137,21],[137,22,137,23],[138,7,138,23],[140,7,140,16],[142,7,142,16],[143,14,143,16],[144,7,144,13],[144,14,144,16],[145,7,145,13],[145,14,145,16],[146,7,146,13],[146,14,146,16],[148,7,148,13],[148,14,148,16],[149,7,149,13],[149,14,149,16],[152,7,152,16],[154,7,154,8],[154,9,154,12],[154,13,154,15],[154,16,154,18],[154,19,154,21],[154,22,154,23],[155,7,155,8],[155,9,155,12],[155,13,155,15],[155,16,155,18],[155,19,155,21],[155,22,155,23],[156,7,156,8],[156,9,156,12],[156,13,156,15],[156,16,156,18],[156,19,156,21],[156,22,156,23],[157,7,157,8],[157,9,157,12],[157,13,157,15],[157,16,157,18],[157,19,157,21],[157,22,157,23],[158,7,158,8],[158,9,158,12],[158,13,158,15],[158,16,158,18],[158,19,158,21],[158,22,158,23],[159,7,159,8],[159,9,159,12],[159,13,159,15],[159,16,159,18],[159,19,159,21],[159,22,159,23],[160,7,160,8],[160,9,160,12],[160,13,160,15],[160,16,160,18],[160,19,160,21],[160,22,160,23],[161,7,161,8],[161,9,161,12],[161,13,161,15],[161,16,161,18],[161,19,161,21],[161,22,161,23],[162,7,162,8],[162,9,162,12],[162,13,162,15],[162,16,162,18],[162,19,162,21],[162,22,162,23],[163,7,163,8],[163,9,163,12],[163,13,163,15],[163,16,163,18],[163,19,163,21],[163,22,163,23],[164,7,164,8],[164,9,164,12],[164,13,164,15],[164,16,164,18],[164,19,164,21],[164,22,164,23],[165,7,165,12],[165,13,165,15],[165,16,165,18],[165,19,165,21],[165,22,165,23],[167,14,167,18],[167,19,167,21],[167,22,167,23],[168,14,168,18],[168,19,168,21],[168,22,168,23],[169,14,169,18],[169,19,169,21],[169,22,169,23],[178,7,178,21],[178,22,178,23],[179,7,179,23],[183,7,183,23],[184,7,184,9],[184,10,184,11],[184,12,184,15],[184,16,184,19],[184,20,184,23],[185,7,186,9],[185,10,186,11],[185,12,186,15],[185,16,186,19],[185,20,186,23],[187,7,187,9],[187,10,187,11],[187,12,187,15],[187,16,187,19],[187,20,187,23],[188,7,188,9],[188,10,188,11],[188,12,188,15],[188,16,188,19],[188,20,188,23],[189,7,189,9],[189,10,189,11],[189,12,189,15],[189,16,189,19],[189,20,189,23],[190,7,190,9],[190,10,190,11],[190,12,190,15],[190,16,190,19],[190,20,190,23],[191,7,191,9],[191,10,191,11],[191,12,191,15],[191,16,191,19],[191,20,191,23],[192,7,192,9],[192,10,192,11],[192,12,192,15],[192,16,192,19],[192,20,192,23],[193,7,193,23],[194,7,194,9],[194,10,194,11],[194,12,194,14],[194,16,194,18],[194,20,194,22],[195,7,195,9],[195,10,195,11],[195,12,195,14],[195,16,195,18],[195,20,195,22],[196,7,196,9],[196,10,196,11],[196,12,196,14],[196,16,196,18],[196,20,196,22],[197,7,197,9],[197,10,197,11],[197,12,197,14],[197,16,197,18],[197,20,197,22],[198,7,198,9],[198,10,198,11],[198,12,198,14],[198,16,198,18],[198,20,198,22],[199,7,199,9],[199,10,199,11],[199,12,199,14],[199,16,199,18],[199,20,199,22],[200,7,200,9],[200,10,200,11],[200,12,200,14],[200,16,200,18],[200,20,200,22],[201,7,201,9],[201,10,201,11],[201,12,201,14],[201,16,201,18],[201,20,201,22],[202,7,202,9],[202,10,202,11],[202,12,202,14],[202,16,202,18],[202,20,202,22],[203,7,203,9],[203,10,203,11],[203,12,203,14],[203,16,203,18],[203,20,203,22],[204,7,207,9],[204,10,207,11],[204,12,207,14],[204,15,207,15],[204,16,207,18],[204,19,207,19],[204,20,207,22],[204,23,207,23],[208,7,212,9],[208,10,212,11],[208,12,212,14],[208,15,212,15],[208,16,212,18],[208,19,212,19],[208,20,212,22],[208,23,212,23],[213,7,213,11],[213,12,213,15],[213,16,213,19],[213,20,213,23],[214,7,214,9],[214,10,214,11],[214,12,214,15],[214,16,214,19],[214,20,214,23],[219,7,219,20],[219,22,219,23],[220,7,220,23],[224,7,227,23],[229,7,229,16],[229,17,229,20],[229,21,229,23],[230,7,230,16],[230,17,230,20],[230,21,230,23],[231,7,231,16],[231,17,231,20],[231,21,231,23],[232,7,232,16],[232,17,232,20],[232,21,232,23],[233,7,233,16],[233,17,233,20],[233,21,233,23],[234,7,234,16],[234,17,234,20],[234,21,234,23],[235,7,235,16],[235,17,235,20],[235,21,235,23],[236,7,236,16],[236,17,236,20],[236,21,236,23],[237,7,237,16],[237,17,237,20],[237,21,237,23],[238,7,238,16],[238,17,238,20],[238,21,238,23],[239,7,239,16],[239,17,239,20],[239,21,239,23],[240,7,240,16],[240,17,240,20],[240,21,240,23],[241,7,241,16],[241,17,241,20],[241,21,241,23],[242,7,242,16],[242,17,242,20],[242,21,242,23],[243,7,243,16],[243,17,243,20],[243,21,243,23],[244,7,244,16],[244,17,244,20],[244,21,244,23],[245,7,245,16],[245,17,245,20],[245,21,245,23],[246,7,246,16],[246,17,246,20],[246,21,246,23],[247,7,247,16],[247,17,247,20],[247,21,247,23],[248,7,248,16],[248,17,248,20],[248,21,248,23],[249,7,249,16],[249,17,249,20],[249,21,249,23],[250,7,250,16],[250,17,250,20],[250,21,250,23],[251,7,251,16],[251,17,251,20],[251,21,251,23],[252,7,252,16],[252,17,252,20],[252,21,252,23],[253,7,253,16],[253,17,253,20],[253,21,253,23],[254,7,254,16],[254,17,254,20],[254,21,254,23],[256,7,256,16],[256,17,256,20],[256,21,256,23],[257,7,257,16],[257,17,257,20],[257,21,257,23],[260,7,260,21],[260,22,260,23],[261,7,261,23],[268,7,276,11],[268,13,276,17],[268,19,276,23],[277,7,278,11],[277,13,278,17],[277,19,278,23],[280,7,288,11],[280,13,288,17],[280,19,288,23],[289,7,290,11],[289,13,290,17],[289,19,290,23],[292,7,300,11],[292,13,300,17],[292,19,300,23],[301,7,302,11],[301,13,302,17],[301,19,302,23],[304,7,312,11],[304,13,312,17],[304,19,312,23],[313,7,314,11],[313,13,314,17],[313,19,314,23],[317,7,317,21],[317,22,317,23],[318,7,318,23],[324,7,332,11],[324,13,332,17],[324,19,332,23],[333,7,334,11],[333,13,334,17],[333,19,334,23],[336,7,344,11],[336,13,344,17],[336,19,344,23],[345,7,346,11],[345,13,346,17],[345,19,346,23],[348,7,356,11],[348,13,356,17],[348,19,356,23],[357,7,358,11],[357,13,358,17],[357,19,358,23],[360,7,368,11],[360,13,368,17],[360,19,368,23],[369,7,370,11],[369,13,370,17],[369,19,370,23],[373,7,373,21],[373,22,373,23],[374,7,375,23]]}
[]
[null,null,"LENDER REPORT",{"$nulls":30},"Cover","Summary","Loan","Equity","Comps","Estimate","Photos","All Hidden?"]
[{"$nulls":25},"Loan 1",{"$nulls":7},"Shown","Shown","Shown","Shown","Shown","Shown","Shown",{"$f":"IF(AND(Investment_Report_Cover_Setting=\"Hidden\",Investment_Report_Summary_Setting=\"Hidden\",Investment_Report_Photo_Setting=\"Hidden\"),\"All Hidden\",\"\")","v":""}]
[]
[]
[{"$nulls":8},"The Lender Report summarizes the Lender's financial Return on Investment based upon the Loan Terms, Interest Rate, Points & Fees you have built into the deal.  The Lender Report can be marketed to your Private Money Lenders to solicit private money for your rehab projects."]
[]
[]
[]
[]
[{"$nulls":7},{"$f":"CONCATENATE(Street_Address,\", \",City_State_Zip)","v":"1234 Main St, Kansas City, MO 64116"}]
[]
[]
[]
[]
[{"$nulls":8},"REHAB INVESTMENT OPPORTUNITY"]
[]
[]
[]
[{"$nulls":8},{"$f":"T(Street_Address)","v":"1234 Main St"}]
[]
[{"$nulls":8},{"$f":"T(City_State_Zip)","v":"Kansas City, MO 64116"}]
[]
[{"$nulls":8},{"$f":"TODAY()","v":"2019-06-23"}]
[]
[]
[]
[{"$nulls":8},"Insert Cover Photo"]
{"$rows_empty":20}
[{"$nulls":8},{"$f":"Company_Name","v":"Dave Inc"}]
[{"$nulls":8},{"$f":"Investor_Name","v":"Dave"}]
[{"$nulls":8},{"$f":"T(Company_Email)","v":"dave@venturesheets.com"}]
[{"$nulls":8},{"$f":"Company_Phone","v":8161234567}]
[]
[]
[]
[{"$nulls":7},{"$f":"CONCATENATE(\"Report Prepared By: \",Investor_Name,\"  |  \",Company_Name,\"  |  \",Company_Email,\"  |  \",Company_Email)","v":"Report Prepared By: Dave  |  Dave Inc  |  dave@venturesheets.com  |  dave@venturesheets.com"},{"$nulls":14},"Page 1 of 7"]
[{"$nulls":7},{"$f":"CONCATENATE(Street_Address,\", \",City_State_Zip)","v":"1234 Main St, Kansas City, MO 64116"}]
[]
[{"$nulls":7},"PROJECT FINANCIAL OVERVIEW"]
[]
[{"$nulls":7},"PROJECT INFO",{"$nulls":10},"PROJECT HIGHLIGHTS"]
[{"$nulls":7},"Beds, Baths, Square Footage",{"$nulls":3},{"$f":"CONCATENATE(Number_of_Beds,\" beds, \",Number_of_Baths,\" baths, \",Square_Feet,\" sf\")","v":"3 beds, 2 baths, 1500 sf"}]
[{"$nulls":7},"Neighborhood:",{"$nulls":3},{"$f":"Subdivision","v":"The Coves"},{"$nulls":6},"After Repair Value"]
[{"$nulls":7},"School District:",{"$nulls":3},{"$f":"School_District","v":"Park Hill School District"},{"$nulls":6},{"$f":"ARV","v":{"v":165000,"d":"$165,000"}}]
[]
[{"$nulls":7},"PROJECT COSTS",{"$nulls":10},"Price per SF:",{"$nulls":3},{"$f":"IFERROR(ARV/Property_Size,0)","v":{"v":110,"d":"$110 /sf"}}]
[{"$nulls":14},"Amount"]
[{"$nulls":7},"Purchase Price",{"$nulls":6},{"$f":"Maximum_Purchase_Price","v":{"v":61836.912500000006,"d":"$61,837"}},{"$nulls":3},"Purchase Price"]
[{"$nulls":7},"Buying Costs",{"$nulls":6},{"$f":"Buying_Costs_Result","v":{"v":1000,"d":"$1,000"}},{"$nulls":3},{"$f":"Maximum_Purchase_Price","v":{"v":61836.912500000006,"d":"$61,837"}}]
[{"$nulls":7},"Total Purchase Costs",{"$nulls":6},{"$f":"SUM(O68:Q69)","v":{"v":62836.912500000006,"d":"$62,837"}}]
[{"$nulls":18},"% of ARV:",{"$nulls":3},{"$f":"IFERROR(S69/ARV,0)","v":{"v":0.3747691666666667,"d":"37.5%"}}]
[{"$nulls":7},"Repair Costs",{"$nulls":6},{"$f":"Raw_Repair_Costs_Result","v":{"v":49750,"d":"$49,750"}}]
[{"$nulls":7},{"$f":"IF(O73=0,\"Contingeny\",CONCATENATE(\"Contingency (\",TEXT(Adders_Percentage,\"#.#%\"),\")\"))","v":"Contingency (27.8%)"},{"$nulls":6},{"$f":"Adders_Result","v":{"v":13813.0875,"d":"$13,813"}},{"$nulls":3},"Total Repairs"]
[{"$nulls":7},"Total Repair Costs",{"$nulls":6},{"$f":"SUM(O72:Q73)","v":{"v":63563.0875,"d":"$63,563"}},{"$nulls":3},{"$f":"O74","v":{"v":63563.0875,"d":"$63,563"}}]
[]
[{"$nulls":7},"Holding Costs",{"$nulls":6},{"$f":"Holding_Costs_Result","v":{"v":3000,"d":"$3,000"}},{"$nulls":3},"Price per SF:",{"$nulls":3},{"$f":"IFERROR(S74/Property_Size,0)","v":{"v":42.375391666666665,"d":"$42 /sf"}}]
[{"$nulls":7},"Financing Costs",{"$nulls":6},{"$f":"'ANALYSIS DATABASE'!C158","v":{"v":0,"d":"$0"}}]
[{"$nulls":7},"Total Carrying Costs",{"$nulls":6},{"$f":"SUM(O76:Q77)","v":{"v":3000,"d":"$3,000"}},{"$nulls":3},"Total Fixed Costs "]
[{"$nulls":18},{"$f":"O69+O76+O77+-O91","v":{"v":14850,"d":"$14,850"}}]
[{"$nulls":7},"FINANCIAL BREAKDOWN"]
[{"$nulls":18},"% of ARV:",{"$nulls":3},{"$f":"IFERROR(S79/ARV,0)","v":{"v":0.09,"d":"9.0%"}}]
[{"$nulls":7},"Upfront Project Costs (excluding Selling)",{"$nulls":6},{"$f":"O70+O74+O78","v":{"v":129400,"d":"$129,400"}}]
[{"$nulls":7},"Debt Financing",{"$nulls":6},{"$f":"-'ANALYSIS DATABASE'!C250","v":{"v":0,"d":"$0"}},{"$nulls":3},"Total Project Costs"]
[{"$nulls":7},"Equity Financing",{"$nulls":6},{"$f":"-'ANALYSIS DATABASE'!C251","v":{"v":0,"d":"$0"}},{"$nulls":3},{"$f":"-O90-O91","v":{"v":140250,"d":"$140,250"}}]
[{"$nulls":7},"Rehabber's Cash Outlay",{"$nulls":6},{"$f":"SUM(O82:Q84)","v":{"v":129400,"d":"$129,400"}}]
[{"$nulls":18},"% of ARV:",{"$nulls":3},{"$f":"IFERROR(S84/ARV,0)","v":{"v":0.85,"d":"85.0%"}}]
[{"$nulls":7},"PROJECT RETURNS"]
[{"$nulls":18},"Project Profit"]
[{"$nulls":7},"Projected Sales Price (ARV):",{"$nulls":6},{"$f":"ARV","v":{"v":165000,"d":"$165,000"}},{"$nulls":3},{"$f":"O92","v":{"v":24750,"d":"$24,750"}}]
[{"$nulls":7},"Upfront Project Costs (excluding Selling)",{"$nulls":6},{"$f":"-O82","v":{"v":-129400,"d":"-$129,400"}}]
[{"$nulls":7},{"$f":"IF(O91=0,\"Selling Costs\",CONCATENATE(\"Selling Costs (\",TEXT(IFERROR(Selling_Costs_Result/ARV,0),\"#.#%\"),\")\"))","v":"Selling Costs (6.6%)"},{"$nulls":6},{"$f":"-Selling_Costs_Result","v":{"v":-10850,"d":"-$10,850"}},{"$nulls":3},"% of ARV:",{"$nulls":3},{"$f":"IFERROR(S89/ARV,0)","v":{"v":0.15,"d":"15.0%"}}]
[{"$nulls":7},"Project Profit",{"$nulls":6},{"$f":"SUM(O89:Q91)","v":{"v":24750,"d":"$24,750"}}]
[]
[{"$nulls":7},"Cash-On-Cash Return",{"$nulls":6},{"$f":"IFERROR(IF(O85<0,\"inf %\",O92/O85),0)","v":{"v":0.19126738794435857,"d":"19.13%"}}]
[{"$nulls":7},"Annualized COCR",{"$nulls":6},{"$f":"IFERROR(IF(O85<0,\"inf %\",O94/(Total_Schedule_Cell/12)),0)","v":{"v":0.45904173106646057,"d":"45.90%"}}]
[]
[{"$nulls":7},{"$f":"CONCATENATE(\"Report Prepared By: \",Investor_Name,\"  |  \",Company_Name,\"  |  \",Company_Email,\"  |  \",Company_Email)","v":"Report Prepared By: Dave  |  Dave Inc  |  dave@venturesheets.com  |  dave@venturesheets.com"},{"$nulls":14},"Page 2 of 7"]
[{"$nulls":7},{"$f":"CONCATENATE(Street_Address,\", \",City_State_Zip)","v":"1234 Main St, Kansas City, MO 64116"}]
[]
[{"$nulls":7},"LENDER RESULTS"]
[]
[{"$nulls":7},"PROJECT RETURNS",{"$nulls":10},"LOAN HIGHLIGHTS"]
[]
[{"$nulls":7},"Projected Sales Price (ARV):",{"$nulls":6},{"$f":"ARV","v":{"v":165000,"d":"$165,000"}},{"$nulls":3},"After Repair Value"]
[{"$nulls":7},"Project Costs",{"$nulls":6},{"$f":"O90+O91","v":{"v":-140250,"d":"-$140,250"}},{"$nulls":3},{"$f":"ARV","v":{"v":165000,"d":"$165,000"}}]
[{"$nulls":7},"Project Profit",{"$nulls":6},{"$f":"SUM(O104:Q105)","v":{"v":24750,"d":"$24,750"}}]
[{"$nulls":18},"Price per SF:",{"$nulls":3},{"$f":"IFERROR(ARV/Property_Size,0)","v":{"v":110,"d":"$110 /sf"}}]
[{"$nulls":7},"Cash-On-Cash Return",{"$nulls":6},{"$f":"O94","v":{"v":0.19126738794435857,"d":"19.13%"}}]
[{"$nulls":7},"Annualized COCR",{"$nulls":6},{"$f":"O95","v":{"v":0.45904173106646057,"d":"45.90%"}},{"$nulls":3},"Total Project Costs (excl. Selling)"]
[{"$nulls":18},{"$f":"O119","v":{"v":129400,"d":"$129,400"}}]
[{"$nulls":7},"LENDER TERMS & RESULTS"]
[{"$nulls":18},"% of ARV:",{"$nulls":3},{"$f":"IFERROR(S110/ARV,0)","v":{"v":0.7842424242424243,"d":"78.4%"}}]
[{"$nulls":7},"Describe the terms of the loan that you are requesting."]
[{"$nulls":18},"Total Loan Requested"]
[{"$nulls":18},{"$f":"-O120","v":{"v":0,"d":"$0"}}]
[]
[{"$nulls":18},"% of ARV:",{"$nulls":3},{"$f":"IFERROR(S115/ARV,0)","v":{"v":0,"d":"0.0%"}}]
[{"$nulls":7},"LOAN AMOUNT"]
[{"$nulls":7},"Project Costs (excluding selling costs)",{"$nulls":6},{"$f":"-O90","v":{"v":129400,"d":"$129,400"}},{"$nulls":3},"Total Interest Income"]
[{"$nulls":7},"- Less Loan Amount Requested",{"$nulls":6},{"$f":"-IF(Z3=\"Loan 1\",Loan1_Amount,IF(Z3=\"Loan 2\",Loan2_Amount,IF(Z3=\"Hybrid\",Loan1_Amount+Loan2_Amount,\"\")))","v":{"v":0,"d":"$0"}},{"$nulls":3},{"$f":"O125","v":{"v":0,"d":"$0"}}]
[{"$nulls":7},"Rehabber Cash Outlay",{"$nulls":6},{"$f":"SUM(O119:Q120)","v":{"v":129400,"d":"$129,400"}}]
[{"$nulls":18},"Annual Interest Rate:",{"$nulls":3},{"$f":"L125","v":{"v":0.12,"d":"12.0%"}}]
[{"$nulls":7},"LOAN TERMS"]
[{"$nulls":7},"Loan Term (# of Months)",{"$nulls":6},{"$f":"IF(Z3=\"Loan 1\",'REHAB FINANCING SETUP'!AR24,IF(Z3=\"Loan 2\",'REHAB FINANCING SETUP'!AR51,IF(Z3=\"Hybrid\",'1 REHAB ANALYZER'!M49,\"\")))","v":{"v":6,"d":"6.0 months"}},{"$nulls":3},"Total Points"]
[{"$nulls":7},"Interest Income",{"$nulls":3},{"$f":"IF(Z3=\"Loan 1\",Interest_Rate,IF(Z3=\"Loan 2\",Interest_Rate_Loan2,IF(Z3=\"Hybrid\",\"\",0)))","v":{"v":0.12,"d":"12%"}},null,null,{"$f":"IF(Z3=\"Loan 1\",Loan1_Interest,IF(Z3=\"Loan 2\",Loan2_Interest,IF(Z3=\"Hybrid\",Loan1_Interest+Loan2_Interest,0)))","v":{"v":0,"d":"$0"}},{"$nulls":3},{"$f":"O126","v":{"v":0,"d":"$0"}}]
[{"$nulls":7},"Points/Fees",{"$nulls":3},{"$f":"S125/S115","v":{"$error":"#DIV/0!"}},null,null,{"$f":"IF(Z3=\"Loan 1\",Loan1_Points_Amount,IF(Z3=\"Loan 2\",Loan2_Points_Amount,IF(Z3=\"Hybrid\",Loan1_Points_Amount+Loan2_Points_Amount,0)))","v":{"v":0,"d":"$0"}}]
[{"$nulls":7},"Other Fees",{"$nulls":6},{"$f":"IF(Z3=\"Loan 1\",Loan1_Other_Costs,IF(Z3=\"Loan 2\",Loan2_Other_Costs,IF(Z3=\"Hybrid\",Loan1_Other_Costs+Loan2_Other_Costs,0)))","v":{"v":0,"d":"$0"}},{"$nulls":3},"% of Loan:",{"$nulls":3},{"$f":"L126","v":{"$error":"#DIV/0!"}}]
[{"$nulls":7},"Total Income to Lender",{"$nulls":6},{"$f":"SUM(O125:Q127)","v":{"v":0,"d":"$0"}}]
[{"$nulls":7},"Lender Cash-On-Cash ROI",{"$nulls":6},{"$f":"IFERROR(O128/S115,0)","v":{"v":0,"d":"0.0%"}},{"$nulls":3},"Total Income to Lender"]
[{"$nulls":7},"Lender Annualized COCR",{"$nulls":6},{"$f":"IFERROR(O129/(O124/12),0)","v":{"v":0,"d":"0.0%"}},{"$nulls":3},{"$f":"O128","v":{"v":0,"d":"$0"}}]
[]
[{"$nulls":18},"Annualized ROI:",{"$nulls":3},{"$f":"O130","v":{"v":0,"d":"0.0%"}}]
[]
[]
[]
[]
[]
[{"$nulls":7},{"$f":"CONCATENATE(\"Report Prepared By: \",Investor_Name,\"  |  \",Company_Name,\"  |  \",Company_Email,\"  |  \",Company_Email)","v":"Report Prepared By: Dave  |  Dave Inc  |  dave@venturesheets.com  |  dave@venturesheets.com"},{"$nulls":14},"Page 3 of 7"]
[{"$nulls":7},{"$f":"CONCATENATE(Street_Address,\", \",City_State_Zip)","v":"1234 Main St, Kansas City, MO 64116"}]
[]
[{"$nulls":7},"EQUITY RESULTS"]
[]
[{"$nulls":7},"PROJECT RETURNS"]
[]
[{"$nulls":7},"Projected Sales Price (ARV):",{"$nulls":6},{"$f":"ARV","v":{"v":165000,"d":"$165,000"}}]
[{"$nulls":7},"Project Costs",{"$nulls":6},{"$f":"O90+O91","v":{"v":-140250,"d":"-$140,250"}}]
[{"$nulls":7},"Project Profit",{"$nulls":6},{"$f":"SUM(O145:Q146)","v":{"v":24750,"d":"$24,750"}}]
[]
[{"$nulls":7},"Cash-On-Cash Return",{"$nulls":6},{"$f":"O94","v":{"v":0.19126738794435857,"d":"19.13%"}}]
[{"$nulls":7},"Annualized COCR",{"$nulls":6},{"$f":"O95","v":{"v":0.45904173106646057,"d":"45.90%"}}]
[]
[]
[{"$nulls":7},"EQUITY TABLE"]
[]
[{"$nulls":7},"#",null,"Investor Name",{"$nulls":3},"Investment Amount",null,null,"Profit Share %",null,null,"Profit Amount",null,null,"COCR"]
[{"$nulls":7},{"$f":"'REHAB FINANCING SETUP'!U79","v":1},null,{"$f":"T('REHAB FINANCING SETUP'!X79:AO79)","v":"Larry the Investor"},{"$nulls":3},{"$f":"'REHAB FINANCING SETUP'!AP79","v":{"v":100000,"d":"$100,000"}},null,null,{"$f":"'REHAB FINANCING SETUP'!AZ79","v":{"v":0.25,"d":"25.00%"}},null,null,{"$f":"'REHAB FINANCING SETUP'!BJ79","v":{"v":6187.5,"d":"$6,188"}},null,null,{"$f":"'REHAB FINANCING SETUP'!BT79","v":{"v":0.061875,"d":"6.19%"}}]
[{"$nulls":7},{"$f":"'REHAB FINANCING SETUP'!U80","v":2},null,{"$f":"T('REHAB FINANCING SETUP'!X80:AO80)","v":"Investor 2"},{"$nulls":3},{"$f":"'REHAB FINANCING SETUP'!AP80","v":{"v":0,"d":"$0"}},null,null,{"$f":"'REHAB FINANCING SETUP'!AZ80","v":{"v":0,"d":"0.00%"}},null,null,{"$f":"'REHAB FINANCING SETUP'!BJ80","v":{"v":0,"d":"$0"}},null,null,{"$f":"'REHAB FINANCING SETUP'!BT80","v":{"v":0,"d":"0.00%"}}]
[{"$nulls":7},{"$f":"'REHAB FINANCING SETUP'!U81","v":3},null,{"$f":"T('REHAB FINANCING SETUP'!X81:AO81)","v":"Investor 3"},{"$nulls":3},{"$f":"'REHAB FINANCING SETUP'!AP81","v":{"v":0,"d":"$0"}},null,null,{"$f":"'REHAB FINANCING SETUP'!AZ81","v":{"v":0,"d":"0.00%"}},null,null,{"$f":"'REHAB FINANCING SETUP'!BJ81","v":{"v":0,"d":"$0"}},null,null,{"$f":"'REHAB FINANCING SETUP'!BT81","v":{"v":0,"d":"0.00%"}}]
[{"$nulls":7},{"$f":"'REHAB FINANCING SETUP'!U82","v":4},null,{"$f":"T('REHAB FINANCING SETUP'!X82:AO82)","v":"Investor 4"},{"$nulls":3},{"$f":"'REHAB FINANCING SETUP'!AP82","v":{"v":0,"d":"$0"}},null,null,{"$f":"'REHAB FINANCING SETUP'!AZ82","v":{"v":0,"d":"0.00%"}},null,null,{"$f":"'REHAB FINANCING SETUP'!BJ82","v":{"v":0,"d":"$0"}},null,null,{"$f":"'REHAB FINANCING SETUP'!BT82","v":{"v":0,"d":"0.00%"}}]
[{"$nulls":7},{"$f":"'REHAB FINANCING SETUP'!U83","v":5},null,{"$f":"T('REHAB FINANCING SETUP'!X83:AO83)","v":"Investor 5"},{"$nulls":3},{"$f":"'REHAB FINANCING SETUP'!AP83","v":{"v":0,"d":"$0"}},null,null,{"$f":"'REHAB FINANCING SETUP'!AZ83","v":{"v":0,"d":"0.00%"}},null,null,{"$f":"'REHAB FINANCING SETUP'!BJ83","v":{"v":0,"d":"$0"}},null,null,{"$f":"'REHAB FINANCING SETUP'!BT83","v":{"v":0,"d":"0.00%"}}]
[{"$nulls":7},{"$f":"'REHAB FINANCING SETUP'!U84","v":6},null,{"$f":"T('REHAB FINANCING SETUP'!X84:AO84)","v":"Investor 6"},{"$nulls":3},{"$f":"'REHAB FINANCING SETUP'!AP84","v":{"v":0,"d":"$0"}},null,null,{"$f":"'REHAB FINANCING SETUP'!AZ84","v":{"v":0,"d":"0.00%"}},null,null,{"$f":"'REHAB FINANCING SETUP'!BJ84","v":{"v":0,"d":"$0"}},null,null,{"$f":"'REHAB FINANCING SETUP'!BT84","v":{"v":0,"d":"0.00%"}}]
[{"$nulls":7},{"$f":"'REHAB FINANCING SETUP'!U85","v":7},null,{"$f":"T('REHAB FINANCING SETUP'!X85:AO85)","v":"Investor 7"},{"$nulls":3},{"$f":"'REHAB FINANCING SETUP'!AP85","v":{"v":0,"d":"$0"}},null,null,{"$f":"'REHAB FINANCING SETUP'!AZ85","v":{"v":0,"d":"0.00%"}},null,null,{"$f":"'REHAB FINANCING SETUP'!BJ85","v":{"v":0,"d":"$0"}},null,null,{"$f":"'REHAB FINANCING SETUP'!BT85","v":{"v":0,"d":"0.00%"}}]
[{"$nulls":7},{"$f":"'REHAB FINANCING SETUP'!U86","v":8},null,{"$f":"T('REHAB FINANCING SETUP'!X86:AO86)","v":"Investor 8"},{"$nulls":3},{"$f":"'REHAB FINANCING SETUP'!AP86","v":{"v":0,"d":"$0"}},null,null,{"$f":"'REHAB FINANCING SETUP'!AZ86","v":{"v":0,"d":"0.00%"}},null,null,{"$f":"'REHAB FINANCING SETUP'!BJ86","v":{"v":0,"d":"$0"}},null,null,{"$f":"'REHAB FINANCING SETUP'!BT86","v":{"v":0,"d":"0.00%"}}]
[{"$nulls":7},{"$f":"'REHAB FINANCING SETUP'!U87","v":9},null,{"$f":"T('REHAB FINANCING SETUP'!X87:AO87)","v":"Investor 9"},{"$nulls":3},{"$f":"'REHAB FINANCING SETUP'!AP87","v":{"v":0,"d":"$0"}},null,null,{"$f":"'REHAB FINANCING SETUP'!AZ87","v":{"v":0,"d":"0.00%"}},null,null,{"$f":"'REHAB FINANCING SETUP'!BJ87","v":{"v":0,"d":"$0"}},null,null,{"$f":"'REHAB FINANCING SETUP'!BT87","v":{"v":0,"d":"0.00%"}}]
[{"$nulls":7},{"$f":"'REHAB FINANCING SETUP'!U88","v":10},null,{"$f":"T('REHAB FINANCING SETUP'!X88:AO88)","v":"Investor 10"},{"$nulls":3},{"$f":"'REHAB FINANCING SETUP'!AP88","v":{"v":0,"d":"$0"}},null,null,{"$f":"'REHAB FINANCING SETUP'!AZ88","v":{"v":0,"d":"0.00%"}},null,null,{"$f":"'REHAB FINANCING SETUP'!BJ88","v":{"v":0,"d":"$0"}},null,null,{"$f":"'REHAB FINANCING SETUP'!BT88","v":{"v":0,"d":"0.00%"}}]
[{"$nulls":7},"Totals",{"$nulls":5},{"$f":"SUM(N156:P165)","v":{"v":100000,"d":"$100,000"}},null,null,{"$f":"SUM(Q156:S165)","v":{"v":0.25,"d":"25.00%"}},null,null,{"$f":"SUM(T156:V165)","v":{"v":6187.5,"d":"$6,188"}},null,null,{"$f":"'REHAB FINANCING SETUP'!BT89","v":{"v":0,"d":"0.00%"}}]
[]
[{"$nulls":14},"Equity Investor Profit",{"$nulls":4},{"$f":"T166","v":{"v":6187.5,"d":"$6,188"}},null,null,{"$f":"IFERROR(T168/$T$170,0)","v":{"v":0.25,"d":"25.00%"}}]
[{"$nulls":14},"Rehabber's Profit",{"$nulls":4},{"$f":"T170-T168","v":{"v":18562.5,"d":"$18,563"}},null,null,{"$f":"IFERROR(T169/$T$170,0)","v":{"v":0.75,"d":"75.00%"}}]
[{"$nulls":14},"Total Project Profit",{"$nulls":4},{"$f":"O147","v":{"v":24750,"d":"$24,750"}},null,null,{"$f":"IFERROR(T170/$T$170,0)","v":{"v":1,"d":"100%"}}]
{"$rows_empty":8}
[{"$nulls":7},{"$f":"CONCATENATE(\"Report Prepared By: \",Investor_Name,\"  |  \",Company_Name,\"  |  \",Company_Email,\"  |  \",Company_Email)","v":"Report Prepared By: Dave  |  Dave Inc  |  dave@venturesheets.com  |  dave@venturesheets.com"},{"$nulls":14},"Page 4 of 7"]
[{"$nulls":7},{"$f":"CONCATENATE(Street_Address,\", \",City_State_Zip)","v":"1234 Main St, Kansas City, MO 64116"}]
[]
[{"$nulls":7},"COMPARABLE SALES"]
[]
[{"$nulls":7},"Comparable Sales"]
[{"$nulls":7},"Property Info",null,null,"Subject",null,"Comparable 1",{"$nulls":3},"Comparable 2",{"$nulls":3},"Comparable 3"]
[{"$nulls":7},"Street Address",null,null,{"$f":"CONCATENATE(COMPS!W6,\" ,\",COMPS!W7)","v":"1234 Main St ,Kansas City, MO 64116"},null,{"$f":"CONCATENATE(COMPS!AJ6,\" ,\",COMPS!AJ7)","v":"2345 N. Main St ,Kansas City, MO 64116"},{"$nulls":3},{"$f":"CONCATENATE(COMPS!AW6,\" ,\",COMPS!AW7)","v":"2345 N. Main St ,Kansas City, MO 64116"},{"$nulls":3},{"$f":"CONCATENATE(COMPS!BJ6,\" ,\",COMPS!BJ7)","v":"2345 N. Main St ,Kansas City, MO 64116"}]
[]
[{"$nulls":7},"Neighborhood",null,null,{"$f":"T(COMPS!W8)","v":"The Coves"},null,{"$f":"T(COMPS!AJ8)","v":"The Coves"},{"$nulls":3},{"$f":"T(COMPS!AW8)","v":"The Coves"},{"$nulls":3},{"$f":"T(COMPS!BJ8)","v":"The Coves"}]
[{"$nulls":7},"School District",null,null,{"$f":"T(COMPS!W9)","v":"Park Hill School District"},null,{"$f":"T(COMPS!AJ9)","v":"Park Hill School District"},{"$nulls":3},{"$f":"T(COMPS!AW9)","v":"Park Hill School District"},{"$nulls":3},{"$f":"T(COMPS!BJ9)","v":"Park Hill School District"}]
[{"$nulls":7},"List Price/Sales Price",null,null,{"$f":"(COMPS!W10)","v":{"v":165000,"d":"$165,000"}},null,{"$f":"(COMPS!AJ10)","v":{"v":245000,"d":"$245,000"}},{"$nulls":3},{"$f":"(COMPS!AW10)","v":{"v":260000,"d":"$260,000"}},{"$nulls":3},{"$f":"(COMPS!BJ10)","v":{"v":240000,"d":"$240,000"}}]
[{"$nulls":7},"Current Status",null,null,{"$f":"(COMPS!W11)","v":0},null,{"$f":"T(COMPS!AJ11)","v":"Sold"},{"$nulls":3},{"$f":"T(COMPS!AW11)","v":"Sold"},{"$nulls":3},{"$f":"T(COMPS!BJ11)","v":"Sold"}]
[{"$nulls":7},"Status Date",null,null,{"$f":"(COMPS!W12)","v":"00:00:00"},null,{"$f":"T(COMPS!AJ12)","v":""},{"$nulls":3},{"$f":"T(COMPS!AW12)","v":""},{"$nulls":3},{"$f":"T(COMPS!BJ12)","v":""}]
[{"$nulls":7},"Days on Market",null,null,{"$f":"(COMPS!W13)","v":{"v":0,"d":"0.00"}},null,{"$f":"T(COMPS!AJ13)","v":""},{"$nulls":3},{"$f":"T(COMPS!AW13)","v":""},{"$nulls":3},{"$f":"T(COMPS!BJ13)","v":""}]
[{"$nulls":7},"Property Characteristics"]
[{"$nulls":7},"Property Info",null,null,"Subject",null,"Comparable 1",null,null,"+/-","Comparable 2",null,null,"+/-","Comparable 3",null,null,"+/-"]
[{"$nulls":7},"# of Beds",null,null,{"$f":"COMPS!W16","v":{"v":3,"d":"3 beds"}},null,{"$f":"COMPS!AJ16","v":{"v":3,"d":"3 beds"}},null,null,{"$f":"COMPS!AR16","v":{"v":0,"d":"$0"}},{"$f":"COMPS!AW16","v":{"v":3,"d":"3 beds"}},null,null,{"$f":"COMPS!BE16","v":{"v":0,"d":"$0"}},{"$f":"COMPS!BJ16","v":{"v":3,"d":"3 beds"}},null,null,{"$f":"COMPS!BR16","v":{"v":0,"d":"$0"}}]
[{"$nulls":7},"# of Baths",null,null,{"$f":"COMPS!W17","v":2},null,{"$f":"COMPS!AJ17","v":{"v":2,"d":"2.0 baths"}},null,null,{"$f":"COMPS!AR17","v":{"v":0,"d":"$0"}},{"$f":"COMPS!AW17","v":{"v":2,"d":"2.0 baths"}},null,null,{"$f":"COMPS!BE17","v":{"v":0,"d":"$0"}},{"$f":"COMPS!BJ17","v":{"v":2,"d":"2.0 baths"}},null,null,{"$f":"COMPS!BR17","v":{"v":0,"d":"$0"}}]
[{"$nulls":7},"# of Garages",null,null,{"$f":"COMPS!W18","v":0},null,{"$f":"COMPS!AJ18","v":{"v":0,"d":"0 garages"}},null,null,{"$f":"COMPS!AR18","v":{"v":0,"d":"$0"}},{"$f":"COMPS!AW18","v":{"v":0,"d":"0 garages"}},null,null,{"$f":"COMPS!BE18","v":{"v":0,"d":"$0"}},{"$f":"COMPS!BJ18","v":{"v":0,"d":"0 garages"}},null,null,{"$f":"COMPS!BR18","v":{"v":0,"d":"$0"}}]
[{"$nulls":7},"Square Footage",null,null,{"$f":"COMPS!W19","v":1500},null,{"$f":"COMPS!AJ19","v":{"v":1450,"d":"1450 sf"}},null,null,{"$f":"COMPS!AR19","v":{"v":8250,"d":"$8,250"}},{"$f":"COMPS!AW19","v":{"v":1505,"d":"1505 sf"}},null,null,{"$f":"COMPS!BE19","v":{"v":0,"d":"$0"}},{"$f":"COMPS!BJ19","v":{"v":1400,"d":"1400 sf"}},null,null,{"$f":"COMPS!BR19","v":{"v":15000,"d":"$15,000"}}]
[{"$nulls":7},"Year Built",null,null,{"$f":"COMPS!W20","v":1982},null,{"$f":"COMPS!AJ20","v":1981},null,null,{"$f":"COMPS!AR20","v":{"v":0,"d":"$0"}},{"$f":"COMPS!AW20","v":1983},null,null,{"$f":"COMPS!BE20","v":{"v":0,"d":"$0"}},{"$f":"COMPS!BJ20","v":1985},null,null,{"$f":"COMPS!BR20","v":{"v":0,"d":"$0"}}]
[{"$nulls":7},"Basement Type",null,null,{"$f":"COMPS!W21","v":"Finished"},null,{"$f":"COMPS!AJ21","v":"Finished"},null,null,{"$f":"COMPS!AR21","v":{"v":0,"d":"$0"}},{"$f":"COMPS!AW21","v":"Finished"},null,null,{"$f":"COMPS!BE21","v":{"v":0,"d":"$0"}},{"$f":"COMPS!BJ21","v":"Finished"},null,null,{"$f":"COMPS!BR21","v":{"v":0,"d":"$0"}}]
[{"$nulls":7},"Central Heat",null,null,{"$f":"COMPS!W22","v":"Yes"},null,{"$f":"COMPS!AJ22","v":"Yes"},null,null,{"$f":"COMPS!AR22","v":{"v":0,"d":"$0"}},{"$f":"COMPS!AW22","v":"Yes"},null,null,{"$f":"COMPS!BE22","v":{"v":0,"d":"$0"}},{"$f":"COMPS!BJ22","v":"Yes"},null,null,{"$f":"COMPS!BR22","v":{"v":0,"d":"$0"}}]
[{"$nulls":7},"Air Conditioning",null,null,{"$f":"COMPS!W23","v":"Yes"},null,{"$f":"COMPS!AJ23","v":"Yes"},null,null,{"$f":"COMPS!AR23","v":{"v":0,"d":"$0"}},{"$f":"COMPS!AW23","v":"Yes"},null,null,{"$f":"COMPS!BE23","v":{"v":0,"d":"$0"}},{"$f":"COMPS!BJ23","v":"Yes"},null,null,{"$f":"COMPS!BR23","v":{"v":0,"d":"$0"}}]
[{"$nulls":7},"Property Condition",null,null,{"$f":"COMPS!W24","v":"Fully Renovated"},null,{"$f":"COMPS!AJ24","v":"Moderate Updates"},null,null,{"$f":"COMPS!AR24","v":{"v":10000,"d":"$10,000"}},{"$f":"COMPS!AW24","v":"Fully Renovated"},null,null,{"$f":"COMPS!BE24","v":{"v":0,"d":"$0"}},{"$f":"COMPS!BJ24","v":"Moderate Updates"},null,null,{"$f":"COMPS!BR24","v":{"v":10000,"d":"$10,000"}}]
[{"$nulls":7},"Other Improvements",{"$nulls":7},{"v":0,"d":"$0"},{"$nulls":3},{"$f":"COMPS!BE25","v":{"v":0,"d":"$0"}},{"$nulls":3},{"$f":"COMPS!BR25","v":{"v":0,"d":"$0"}}]
[{"$nulls":15},{"$f":"COMPS!AR26","v":{"v":0,"d":"$0"}},{"$nulls":3},{"$f":"COMPS!BE26","v":{"v":0,"d":"$0"}},{"$nulls":3},{"$f":"COMPS!BR26","v":{"v":0,"d":"$0"}}]
[{"$nulls":15},{"$f":"COMPS!AR27","v":{"v":0,"d":"$0"}},{"$nulls":3},{"$f":"COMPS!BE27","v":{"v":0,"d":"$0"}},{"$nulls":3},{"$f":"COMPS!BR27","v":{"v":0,"d":"$0"}}]
[{"$nulls":15},{"$f":"COMPS!AR28","v":{"v":0,"d":"$0"}},{"$nulls":3},{"$f":"COMPS!BE28","v":{"v":0,"d":"$0"}},{"$nulls":3},{"$f":"COMPS!BR28","v":{"v":0,"d":"$0"}}]
[{"$nulls":7},"Notes:",{"$nulls":7},{"$f":"COMPS!AR29","v":{"v":0,"d":"$0"}},{"$f":"T(COMPS!AW26)","v":"Property appears to have been rehabbed and flipped by an investor.  Property has similar finishes to the finishes planned for subject property."},null,null,{"$f":"COMPS!BE29","v":{"v":0,"d":"$0"}},{"$nulls":3},{"$f":"COMPS!BR29","v":{"v":0,"d":"$0"}}]
[{"$nulls":15},{"$f":"COMPS!AR30","v":{"v":0,"d":"$0"}},{"$nulls":3},{"$f":"COMPS!BE30","v":{"v":0,"d":"$0"}},{"$nulls":3},{"$f":"COMPS!BR30","v":{"v":0,"d":"$0"}}]
[{"$nulls":15},{"$f":"COMPS!AR31","v":{"v":0,"d":"$0"}},{"$nulls":3},{"$f":"COMPS!BE31","v":{"v":0,"d":"$0"}},{"$nulls":3},{"$f":"COMPS!BR31","v":{"v":0,"d":"$0"}}]
[{"$nulls":15},{"$f":"COMPS!AR32","v":{"v":0,"d":"$0"}},{"$nulls":3},{"$f":"COMPS!BE32","v":{"v":0,"d":"$0"}},{"$nulls":3},{"$f":"COMPS!BR32","v":{"v":0,"d":"$0"}}]
[{"$nulls":15},{"$f":"COMPS!AR33","v":{"v":0,"d":"$0"}},{"$nulls":3},{"$f":"COMPS!BE33","v":{"v":0,"d":"$0"}},{"$nulls":3},{"$f":"COMPS!BR33","v":{"v":0,"d":"$0"}}]
[{"$nulls":7},"TOTAL ADJUSTMENTS",{"$nulls":4},{"$f":"COMPS!AJ33","v":{"v":263250,"d":"$263,250"}},{"$nulls":3},{"$f":"COMPS!AW33","v":{"v":260000,"d":"$260,000"}},{"$nulls":3},{"$f":"COMPS!BJ33","v":{"v":265000,"d":"$265,000"}}]
[{"$nulls":7},"PRICE PER SF",null,null,{"$f":"COMPS!W34","v":{"v":110,"d":"$110.0"}},null,{"$f":"COMPS!AJ34","v":{"v":181.55172413793105,"d":"$182"}},{"$nulls":3},{"$f":"COMPS!AW34","v":{"v":172.75747508305648,"d":"$173"}},{"$nulls":3},{"$f":"COMPS!BJ34","v":{"v":189.28571428571428,"d":"$189"}}]
[]
[]
[]
[]
[{"$nulls":7},{"$f":"CONCATENATE(\"Report Prepared By: \",Investor_Name,\"  |  \",Company_Name,\"  |  \",Company_Email,\"  |  \",Company_Email)","v":"Report Prepared By: Dave  |  Dave Inc  |  dave@venturesheets.com  |  dave@venturesheets.com"},{"$nulls":14},"Page 5 of 7"]
[{"$nulls":7},{"$f":"CONCATENATE(Street_Address,\", \",City_State_Zip)","v":"1234 Main St, Kansas City, MO 64116"}]
[]
[{"$nulls":7},"ESTIMATE SUMMARY"]
[]
[{"$nulls":7},"Input an estimate description"]
[]
[]
[]
[]
[{"$nulls":7},"SCOPE OF WORK",{"$nulls":9},"TOTAL",{"$nulls":3},"% of TOTAL"]
[{"$nulls":7},{"$f":"PROPER('ANALYSIS DATABASE'!B75)","v":"General Conditions"},{"$nulls":9},{"$f":"'ANALYSIS DATABASE'!C75","v":{"v":750,"d":"$750"}},{"$nulls":3},{"$f":"IFERROR(R231/$R$258,0)","v":{"v":0.01179930097007953,"d":"1.2%"}}]
[{"$nulls":7},{"$f":"PROPER('ANALYSIS DATABASE'!B76)","v":"Demolition"},{"$nulls":9},{"$f":"'ANALYSIS DATABASE'!C76","v":{"v":1000,"d":"$1,000"}},{"$nulls":3},{"$f":"IFERROR(R232/$R$258,0)","v":{"v":0.015732401293439374,"d":"1.6%"}}]
[{"$nulls":7},{"$f":"PROPER('ANALYSIS DATABASE'!B77)","v":"Structural Concrete"},{"$nulls":9},{"$f":"'ANALYSIS DATABASE'!C77","v":{"v":0,"d":"$0"}},{"$nulls":3},{"v":0,"d":"0.0%"}]
[{"$nulls":7},{"$f":"PROPER('ANALYSIS DATABASE'!B78)","v":"Concrete & Flatwork"},{"$nulls":9},{"$f":"'ANALYSIS DATABASE'!C78","v":{"v":0,"d":"$0"}},{"$nulls":3},{"v":0,"d":"0.0%"}]
[{"$nulls":7},{"$f":"PROPER('ANALYSIS DATABASE'!B79)","v":"Masonry"},{"$nulls":9},{"$f":"'ANALYSIS DATABASE'!C79","v":{"v":0,"d":"$0"}},{"$nulls":3},{"v":0,"d":"0.0%"}]
[{"$nulls":7},{"$f":"PROPER('ANALYSIS DATABASE'!B80)","v":"Siding"},{"$nulls":9},{"$f":"'ANALYSIS DATABASE'!C80","v":{"v":0,"d":"$0"}},{"$nulls":3},{"v":0,"d":"0.0%"}]
[{"$nulls":7},{"$f":"PROPER('ANALYSIS DATABASE'!B81)","v":"Decking And Patios"},{"$nulls":9},{"$f":"'ANALYSIS DATABASE'!C81","v":{"v":5000,"d":"$5,000"}},{"$nulls":3},{"v":0.07866200646719686,"d":"7.9%"}]
[{"$nulls":7},{"$f":"PROPER('ANALYSIS DATABASE'!B82)","v":"Roofing"},{"$nulls":9},{"$f":"'ANALYSIS DATABASE'!C82","v":{"v":5500,"d":"$5,500"}},{"$nulls":3},{"v":0.08652820711391655,"d":"8.7%"}]
[{"$nulls":7},{"$f":"PROPER('ANALYSIS DATABASE'!B83)","v":"Exterior Doors & Windows"},{"$nulls":9},{"$f":"'ANALYSIS DATABASE'!C83","v":{"v":2000,"d":"$2,000"}},{"$nulls":3},{"v":0.03146480258687875,"d":"3.1%"}]
[{"$nulls":7},{"$f":"PROPER('ANALYSIS DATABASE'!B84)","v":"Garage Doors"},{"$nulls":9},{"$f":"'ANALYSIS DATABASE'!C84","v":{"v":1250,"d":"$1,250"}},{"$nulls":3},{"v":0.019665501616799214,"d":"2.0%"}]
[{"$nulls":7},{"$f":"PROPER('ANALYSIS DATABASE'!B85)","v":"Landscaping"},{"$nulls":9},{"$f":"'ANALYSIS DATABASE'!C85","v":{"v":500,"d":"$500"}},{"$nulls":3},{"v":0.007866200646719687,"d":"0.8%"}]
[{"$nulls":7},{"$f":"PROPER('ANALYSIS DATABASE'!B86)","v":"Misc. Exterior Items"},{"$nulls":9},{"$f":"'ANALYSIS DATABASE'!C86","v":{"v":0,"d":"$0"}},{"$nulls":3},{"v":0,"d":"0.0%"}]
[{"$nulls":7},{"$f":"PROPER('ANALYSIS DATABASE'!B87)","v":"Framing & Drywall"},{"$nulls":9},{"$f":"'ANALYSIS DATABASE'!C87","v":{"v":500,"d":"$500"}},{"$nulls":3},{"v":0.007866200646719687,"d":"0.8%"}]
[{"$nulls":7},{"$f":"PROPER('ANALYSIS DATABASE'!B88)","v":"Cabinets & Countertops"},{"$nulls":9},{"$f":"'ANALYSIS DATABASE'!C88","v":{"v":7500,"d":"$7,500"}},{"$nulls":3},{"v":0.11799300970079529,"d":"11.8%"}]
[{"$nulls":7},{"$f":"PROPER('ANALYSIS DATABASE'!B89)","v":"Doors & Trim"},{"$nulls":9},{"$f":"'ANALYSIS DATABASE'!C89","v":{"v":3000,"d":"$3,000"}},{"$nulls":3},{"v":0.04719720388031812,"d":"4.7%"}]
[{"$nulls":7},{"$f":"PROPER('ANALYSIS DATABASE'!B90)","v":"Carpet & Resilient"},{"$nulls":9},{"$f":"'ANALYSIS DATABASE'!C90","v":{"v":3000,"d":"$3,000"}},{"$nulls":3},{"v":0.04719720388031812,"d":"4.7%"}]
[{"$nulls":7},{"$f":"PROPER('ANALYSIS DATABASE'!B91)","v":"Hardwood Flooring"},{"$nulls":9},{"$f":"'ANALYSIS DATABASE'!C91","v":{"v":2500,"d":"$2,500"}},{"$nulls":3},{"v":0.03933100323359843,"d":"3.9%"}]
[{"$nulls":7},{"$f":"PROPER('ANALYSIS DATABASE'!B92)","v":"Tiling"},{"$nulls":9},{"$f":"'ANALYSIS DATABASE'!C92","v":{"v":3000,"d":"$3,000"}},{"$nulls":3},{"v":0.04719720388031812,"d":"4.7%"}]
[{"$nulls":7},{"$f":"PROPER('ANALYSIS DATABASE'!B93)","v":"Painting"},{"$nulls":9},{"$f":"'ANALYSIS DATABASE'!C93","v":{"v":5000,"d":"$5,000"}},{"$nulls":3},{"v":0.07866200646719686,"d":"7.9%"}]
[{"$nulls":7},{"$f":"PROPER('ANALYSIS DATABASE'!B94)","v":"Appliances"},{"$nulls":9},{"$f":"'ANALYSIS DATABASE'!C94","v":{"v":2500,"d":"$2,500"}},{"$nulls":3},{"v":0.03933100323359843,"d":"3.9%"}]
[{"$nulls":7},{"$f":"PROPER('ANALYSIS DATABASE'!B95)","v":"Plumbing"},{"$nulls":9},{"$f":"'ANALYSIS DATABASE'!C95","v":{"v":3000,"d":"$3,000"}},{"$nulls":3},{"v":0.04719720388031812,"d":"4.7%"}]
[{"$nulls":7},{"$f":"PROPER('ANALYSIS DATABASE'!B96)","v":"Hvac"},{"$nulls":9},{"$f":"'ANALYSIS DATABASE'!C96","v":{"v":250,"d":"$250"}},{"$nulls":3},{"v":0.003933100323359843,"d":"0.4%"}]
[{"$nulls":7},{"$f":"PROPER('ANALYSIS DATABASE'!B97)","v":"Electrical"},{"$nulls":9},{"$f":"'ANALYSIS DATABASE'!C97","v":{"v":3500,"d":"$3,500"}},{"$nulls":3},{"v":0.0550634045270378,"d":"5.5%"}]
[{"$nulls":7},{"$f":"PROPER('ANALYSIS DATABASE'!B98)","v":"Miscellaneous"},{"$nulls":9},{"$f":"'ANALYSIS DATABASE'!C98","v":{"v":0,"d":"$0"}},{"$nulls":3},{"v":0,"d":"0.0%"}]
[{"$nulls":7},"Subtotal Estimate",{"$nulls":9},{"$f":"'1 REHAB ANALYZER'!BG57","v":{"v":49750,"d":"$49,750"}},{"$nulls":3},{"$f":"IFERROR(R255/$R$258,0)","v":{"v":0.7826869643486087,"d":"78%"}}]
[]
[{"$nulls":7},"Estimate Adders (Contingencies, Contractor OH & P, Taxes, etc.)",{"$nulls":9},{"$f":"Adders_Result","v":{"v":13813.0875,"d":"$13,813"}},{"$nulls":3},{"$f":"IFERROR(R257/$R$258,0)","v":{"v":0.2173130356513912,"d":"21.7%"}}]
[{"$nulls":7},"Total Estimate",{"$nulls":9},{"$f":"R255+R257","v":{"v":63563.0875,"d":"$63,563"}},{"$nulls":3},{"$f":"IFERROR(R258/$R$258,0)","v":{"v":1,"d":"100%"}}]
[]
[]
[{"$nulls":7},{"$f":"CONCATENATE(\"Report Prepared By: \",Investor_Name,\"  |  \",Company_Name,\"  |  \",Company_Email,\"  |  \",Company_Email)","v":"Report Prepared By: Dave  |  Dave Inc  |  dave@venturesheets.com  |  dave@venturesheets.com"},{"$nulls":14},"Page 6 of 7"]
[{"$nulls":7},{"$f":"CONCATENATE(Street_Address,\", \",City_State_Zip)","v":"1234 Main St, Kansas City, MO 64116"}]
[]
[{"$nulls":7},"PROPERTY PHOTOS"]
{"$rows_empty":13}
[{"$nulls":7},"Picture Caption",{"$nulls":5},"Picture Caption",{"$nulls":5},"Picture Caption"]
{"$rows_empty":11}
[{"$nulls":7},"Picture Caption",{"$nulls":5},"Picture Caption",{"$nulls":5},"Picture Caption"]
{"$rows_empty":11}
[{"$nulls":7},"Picture Caption",{"$nulls":5},"Picture Caption",{"$nulls":5},"Picture Caption"]
{"$rows_empty":11}
[{"$nulls":7},"Picture Caption",{"$nulls":5},"Picture Caption",{"$nulls":5},"Picture Caption"]
[]
[]
[]
[{"$nulls":7},{"$f":"CONCATENATE(\"Report Prepared By: \",Investor_Name,\"  |  \",Company_Name,\"  |  \",Company_Email,\"  |  \",Company_Email)","v":"Report Prepared By: Dave  |  Dave Inc  |  dave@venturesheets.com  |  dave@venturesheets.com"},{"$nulls":14},"Page 7 of 7"]
[{"$nulls":7},{"$f":"CONCATENATE(Street_Address,\", \",City_State_Zip)","v":"1234 Main St, Kansas City, MO 64116"}]
[]
[{"$nulls":7},"PROPERTY PHOTOS"]
{"$rows_empty":12}
[{"$nulls":7},"Picture Caption",{"$nulls":5},"Picture Caption",{"$nulls":5},"Picture Caption"]
{"$rows_empty":11}
[{"$nulls":7},"Picture Caption",{"$nulls":5},"Picture Caption",{"$nulls":5},"Picture Caption"]
{"$rows_empty":11}
[{"$nulls":7},"Picture Caption",{"$nulls":5},"Picture Caption",{"$nulls":5},"Picture Caption"]
{"$rows_empty":11}
[{"$nulls":7},"Picture Caption",{"$nulls":5},"Picture Caption",{"$nulls":5},"Picture Caption"]
[]
[]
[]
[{"$nulls":7},{"$f":"CONCATENATE(\"Report Prepared By: \",Investor_Name,\"  |  \",Company_Name,\"  |  \",Company_Email,\"  |  \",Company_Email)","v":"Report Prepared By: Dave  |  Dave Inc  |  dave@venturesheets.com  |  dave@venturesheets.com"},{"$nulls":14},"Page 6 of 6"]
[{"$nulls":7},"© 2018 by Houseflippingspreadsheet.com. All rights reserved"]

{"sheet":"HOMEOWNER REPORT","index":35,"n_rows":110,"n_cols":32,"rows_kept":110,"hidden":true,"merged":[[1,1,1,3],[1,4,3,6],[1,15,1,18],[1,19,1,21],[2,1,2,3],[2,16,2,17],[2,19,2,21],[2,31,3,31],[5,10,8,21],[9,17,10,22],[12,8,12,24],[14,8,15,24],[17,8,19,24],[22,8,22,11],[22,14,22,15],[22,16,22,17],[22,18,22,19],[22,20,22,24],[23,8,23,11],[23,14,23,15],[23,16,23,17],[23,18,23,19],[23,20,23,24],[24,8,24,11],[24,14,24,15],[24,16,24,17],[24,18,24,19],[24,20,24,24],[25,8,25,11],[25,14,25,15],[25,16,25,17],[25,18,25,19],[25,20,25,24],[27,8,27,12],[29,8,29,21],[29,22,29,24],[31,8,31,21],[32,8,32,21],[32,22,32,24],[33,8,33,21],[33,22,33,24],[34,8,34,21],[34,22,34,24],[35,8,35,21],[35,22,35,24],[36,8,36,21],[36,22,36,24],[37,8,37,21],[37,22,37,24],[38,8,38,21],[38,22,38,24],[39,8,39,21],[39,22,39,24],[40,8,40,21],[40,22,40,24],[41,8,41,21],[41,22,41,24],[42,8,42,21],[42,22,42,24],[43,8,43,21],[43,22,43,24],[44,8,44,21],[44,22,44,24],[45,8,45,21],[45,22,45,24],[46,8,46,21],[46,22,46,24],[47,8,47,21],[47,22,47,24],[48,8,48,21],[48,22,48,24],[49,8,49,21],[49,22,49,24],[50,8,50,21],[50,22,50,24],[51,8,51,21],[51,22,51,24],[52,8,52,21],[52,22,52,24],[53,8,53,21],[53,22,53,24],[54,8,54,21],[54,22,54,24],[55,8,55,21],[55,22,55,24],[56,8,56,21],[56,22,56,24],[58,8,58,21],[59,8,59,21],[59,22,59,24],[60,8,60,21],[60,22,60,24],[61,8,61,21],[61,22,61,24],[62,8,62,21],[62,22,62,24],[63,8,63,21],[63,22,63,24],[65,8,65,21],[65,22,65,24],[67,8,68,21],[67,22,68,24],[70,8,70,24],[71,8,71,11],[71,12,71,14],[71,15,71,19],[71,20,71,24],[72,8,73,24],[75,6,75,7],[75,8,75,9],[75,10,75,11],[75,12,75,13],[75,14,75,15],[75,16,75,17],[75,18,75,19],[75,20,75,21],[75,22,75,23],[75,24,75,25],[75,26,75,27],[76,6,76,7],[76,8,76,9],[76,10,76,11],[76,12,76,13],[76,14,76,15],[76,16,76,17],[76,18,76,19],[76,20,76,21],[76,22,76,23],[76,24,76,25],[76,26,76,27],[77,3,77,4],[77,6,77,7],[77,8,77,9],[77,10,77,11],[77,12,77,13],[77,14,77,15],[77,16,77,17],[77,18,77,19],[77,20,77,21],[77,22,77,23],[77,24,77,25],[77,26,77,27],[78,3,78,4],[78,6,78,7],[78,8,78,9],[78,10,78,11],[78,12,78,13],[78,14,78,15],[78,16,78,17],[78,18,78,19],[78,20,78,21],[78,22,78,23],[78,24,78,25],[78,26,78,27],[79,3,80,4],[79,6,79,7],[79,8,79,9],[79,10,79,11],[79,12,79,13],[79,14,79,15],[79,16,79,17],[79,18,79,19],[79,20,79,21],[79,22,79,23],[79,24,79,25],[79,26,79,27],[80,6,80,7],[80,8,80,9],[80,10,80,11],[80,12,80,13],[80,14,80,15],[80,16,80,17],[80,18,80,19],[80,20,80,21],[80,22,80,23],[80,24,80,25],[80,26,80,27],[81,3,81,4],[81,6,81,7],[81,8,81,9],[81,10,81,11],[81,12,81,13],[81,14,81,15],[81,16,81,17],[81,18,81,19],[81,20,81,21],[81,22,81,23],[81,24,81,25],[81,26,81,27],[82,3,82,4],[82,6,82,7],[82,8,82,9],[82,10,82,11],[82,12,82,13],[82,14,82,15],[82,16,82,17],[82,18,82,19],[82,20,82,21],[82,22,82,23],[82,24,82,25],[82,26,82,27],[83,1,83,2],[83,3,83,4],[83,6,83,7],[83,8,83,9],[83,10,83,11],[83,12,83,13],[83,14,83,15],[83,16,83,17],[83,18,83,19],[83,20,83,21],[83,22,83,23],[83,24,83,25],[83,26,83,27],[84,3,85,4],[84,6,84,7],[84,8,84,9],[84,10,84,11],[84,12,84,13],[84,14,84,15],[84,16,84,17],[84,18,84,19],[84,20,84,21],[84,22,84,23],[84,24,84,25],[84,26,84,27],[85,6,85,7],[85,8,85,9],[85,10,85,11],[85,12,85,13],[85,14,85,15],[85,16,85,17],[85,18,85,19],[85,20,85,21],[85,22,85,23],[85,24,85,25],[85,26,85,27],[86,3,86,4],[86,6,86,7],[86,8,86,9],[86,10,86,11],[86,12,86,13],[86,14,86,15],[86,16,86,17],[86,18,86,19],[86,20,86,21],[86,22,86,23],[86,24,86,25],[86,26,86,27],[87,3,88,4],[87,6,87,7],[87,8,87,9],[87,10,87,11],[87,12,87,13],[87,14,87,15],[87,16,87,17],[87,18,87,19],[87,20,87,21],[87,22,87,23],[87,24,87,25],[87,26,87,27],[88,6,88,7],[88,8,88,9],[88,10,88,11],[88,12,88,13],[88,14,88,15],[88,16,88,17],[88,18,88,19],[88,20,88,21],[88,22,88,23],[88,24,88,25],[88,26,88,27],[89,3,89,4],[89,6,89,7],[89,8,89,9],[89,10,89,11],[89,12,89,13],[89,14,89,15],[89,16,89,17],[89,18,89,19],[89,20,89,21],[89,22,89,23],[89,24,89,25],[89,26,89,27],[90,3,90,4],[90,6,90,7],[90,8,90,9],[90,10,90,11],[90,12,90,13],[90,14,90,15],[90,16,90,17],[90,18,90,19],[90,20,90,21],[90,22,90,23],[90,24,90,25],[90,26,90,27],[91,3,91,4],[91,6,91,7],[91,8,91,9],[91,10,91,11],[91,12,91,13],[91,14,91,15],[91,16,91,17],[91,18,91,19],[91,20,91,21],[91,22,91,23],[91,24,91,25],[91,26,91,27],[92,3,92,4],[92,6,92,7],[92,8,92,9],[92,10,92,11],[92,12,92,13],[92,14,92,15],[92,16,92,17],[92,18,92,19],[92,20,92,21],[92,22,92,23],[92,24,92,25],[92,26,92,27],[93,3,93,4],[93,6,93,7],[93,8,93,9],[93,10,93,11],[93,12,93,13],[93,14,93,15],[93,16,93,17],[93,18,93,19],[93,20,93,21],[93,22,93,23],[93,24,93,25],[93,26,93,27],[94,1,94,4],[94,6,94,7],[94,8,94,9],[94,10,94,11],[94,12,94,13],[94,14,94,15],[94,16,94,17],[94,18,94,19],[94,20,94,21],[94,22,94,23],[94,24,94,25],[94,26,94,27],[95,1,95,2],[95,3,95,4],[95,6,95,7],[95,8,95,9],[95,10,95,11],[95,12,95,13],[95,14,95,15],[95,16,95,17],[95,18,95,19],[95,20,95,21],[95,22,95,23],[95,24,95,25],[95,26,95,27],[96,1,96,2],[96,3,96,4],[96,6,96,7],[96,8,96,9],[96,10,96,11],[96,12,96,13],[96,14,96,15],[96,16,96,17],[96,18,96,19],[96,20,96,21],[96,22,96,23],[96,24,96,25],[96,26,96,27],[96,31,96,32],[97,1,97,2],[97,3,97,4],[97,6,97,7],[97,8,97,9],[97,10,97,11],[97,12,97,13],[97,14,97,15],[97,16,97,17],[97,18,97,19],[97,20,97,21],[97,22,97,23],[97,24,97,25],[97,26,97,27],[97,31,97,32],[98,3,98,4],[98,6,98,7],[98,8,98,9],[98,10,98,11],[98,12,98,13],[98,14,98,15],[98,16,98,17],[98,18,98,19],[98,20,98,21],[98,22,98,23],[98,24,98,25],[98,26,98,27],[99,3,99,4],[99,6,99,7],[99,8,99,9],[99,10,99,11],[99,12,99,13],[99,14,99,15],[99,16,99,17],[99,18,99,19],[99,20,99,21],[99,22,99,23],[99,24,99,25],[99,26,99,27],[100,3,100,4],[100,6,100,7],[100,8,100,9],[100,10,100,11],[100,12,100,13],[100,14,100,15],[100,16,100,17],[100,18,100,19],[100,20,100,21],[100,22,100,23],[100,24,100,25],[100,26,100,27],[101,1,101,4],[101,6,101,7],[101,8,101,9],[101,10,101,11],[101,12,101,13],[101,14,101,15],[101,16,101,17],[101,18,101,19],[101,20,101,21],[101,22,101,23],[101,24,101,25],[101,26,101,27],[102,1,102,2],[102,3,102,4],[102,6,102,7],[102,8,102,9],[102,10,102,11],[102,12,102,13],[102,14,102,15],[102,16,102,17],[102,18,102,19],[102,20,102,21],[102,22,102,23],[102,24,102,25],[102,26,102,27],[103,1,103,2],[103,3,103,4],[103,6,103,7],[103,8,103,9],[103,10,103,11],[103,12,103,13],[103,14,103,15],[103,16,103,17],[103,18,103,19],[103,20,103,21],[103,22,103,23],[103,24,103,25],[103,26,103,27],[104,1,104,2],[104,3,104,4],[104,8,104,9],[104,10,104,11],[104,12,104,13],[104,14,104,15],[104,16,104,17],[104,18,104,19],[104,20,104,21],[104,22,104,23],[104,24,104,25],[104,26,104,27],[105,3,105,4],[106,3,106,4],[107,3,107,4],[108,3,108,4],[109,1,109,2]]}
[]
[null,"Type of Deal",null,null," OFFER REPORT",{"$nulls":10},"Allocate Portion of Profit",{"$nulls":3},"Total Amount Allocated",{"$nulls":11},"Fixed Costs"]
[null,"Rehab",{"$nulls":14},{"v":0,"d":"0.00%"},null,null,{"$f":"D94","v":{"v":0,"d":"$0"}},{"$nulls":11},"Unallocated"]
[]
[]
[{"$nulls":10},"The Homeowner Offer report can be given to a Home Owner (Seller) that breaks down your offer and valuation of their property.  The report gives a detailed analysis of comparable sales, repair costs, and fixed costs that can be given to a seller to show that your offer is backed by market research and due diligence.",{"$nulls":20},"Rehab"]
[{"$nulls":31},"Wholesale"]
[]
[]
[{"$nulls":17},"Home Owner Offer Report Tutorial"]
[]
[]
[{"$nulls":8},{"$f":"CONCATENATE(Street_Address,\", \",City_State_Zip)","v":"1234 Main St, Kansas City, MO 64116"}]
[]
[{"$nulls":8},"OUR OFFER BY THE NUMBERS"]
[]
[]
[{"$nulls":8},"The following is a detailed appraisal and best-faith offer for your real property in as-is condition based upon comparable sales and required renovations and repairs.  Please use this information as a reference and acknowledgement of due diligence in evaluating our offer."]
[]
[]
[]
[{"$nulls":8},"COMPARABLE SALES"]
[{"$nulls":8},"Address",{"$nulls":3},"Beds","Baths","Sqft",null,"Sales Price",null,"$/sf",null,"Notes"]
[{"$nulls":8},{"$f":"T(Comparable1_Street_Address)","v":"2345 N. Main St"},{"$nulls":3},{"$f":"COMPS!Comparable1_Beds","v":3},{"$f":"COMPS!Comparable1_Baths","v":{"v":2,"d":"2.0"}},{"$f":"COMPS!AJ19","v":1450},null,{"$f":"COMPS!AJ10","v":{"v":245000,"d":"$245,000"}},null,{"$f":"IF(O24=0,0,Q24/O24)","v":{"v":168.9655172413793,"d":"$169.0 /sf"}}]
[{"$nulls":8},{"$f":"T(Comparable2_Street_Address)","v":"2345 N. Main St"},{"$nulls":3},{"$f":"COMPS!Comparable2_Beds","v":3},{"$f":"COMPS!Comparable2_Baths","v":{"v":2,"d":"2.0"}},{"$f":"COMPS!AW19","v":1505},null,{"$f":"COMPS!AW10","v":{"v":260000,"d":"$260,000"}},null,{"$f":"IF(O25=0,0,Q25/O25)","v":{"v":172.75747508305648,"d":"$172.8 /sf"}}]
[{"$nulls":8},{"$f":"T(Comparable3_Street_Address)","v":"2345 N. Main St"},{"$nulls":3},{"$f":"COMPS!Comparable3_Beds","v":3},{"$f":"COMPS!Comparable3_Baths","v":{"v":2,"d":"2.0"}},{"$f":"COMPS!BJ19","v":1400},null,{"$f":"COMPS!BJ10","v":{"v":240000,"d":"$240,000"}},null,{"$f":"IF(O26=0,0,Q26/O26)","v":{"v":171.42857142857142,"d":"$171.4 /sf"}}]
[]
[{"$nulls":8},"INVESTMENT BREAKDOWN"]
[]
[{"$nulls":8},"Resale Value",{"$nulls":13},{"$f":"IF(Offer_Deal_Type=\"Wholesale\",'WHOLESALE CALC'!B7,ARV)","v":{"v":165000,"d":"$165,000"}}]
[]
[{"$nulls":8},"Repair Costs"]
[{"$nulls":8},{"$f":"PROPER('2 REPAIR ESTIMATOR'!N75)","v":"General Conditions"},{"$nulls":13},{"$f":"IFERROR(AA77,0)","v":{"v":958.2375,"d":"$958"}}]
[{"$nulls":8},{"$f":"PROPER('2 REPAIR ESTIMATOR'!N76)","v":"Demolition"},{"$nulls":13},{"v":1277.65,"d":"$1,278"}]
[{"$nulls":8},{"$f":"PROPER('2 REPAIR ESTIMATOR'!N77)","v":"Structural Concrete"},{"$nulls":13},{"v":0,"d":"$0"}]
[{"$nulls":8},{"$f":"PROPER('2 REPAIR ESTIMATOR'!N78)","v":"Concrete & Flatwork"},{"$nulls":13},{"v":0,"d":"$0"}]
[{"$nulls":8},{"$f":"PROPER('2 REPAIR ESTIMATOR'!N79)","v":"Masonry"},{"$nulls":13},{"v":0,"d":"$0"}]
[{"$nulls":8},{"$f":"PROPER('2 REPAIR ESTIMATOR'!N80)","v":"Siding"},{"$nulls":13},{"v":0,"d":"$0"}]
[{"$nulls":8},{"$f":"PROPER('2 REPAIR ESTIMATOR'!N81)","v":"Decking And Patios"},{"$nulls":13},{"v":6388.25,"d":"$6,388"}]
[{"$nulls":8},{"$f":"PROPER('2 REPAIR ESTIMATOR'!N82)","v":"Roofing"},{"$nulls":13},{"v":7027.075,"d":"$7,027"}]
[{"$nulls":8},{"$f":"PROPER('2 REPAIR ESTIMATOR'!Y75)","v":"Exterior Doors & Windows"},{"$nulls":13},{"v":2555.3,"d":"$2,555"}]
[{"$nulls":8},{"$f":"PROPER('2 REPAIR ESTIMATOR'!Y76)","v":"Garage Doors"},{"$nulls":13},{"v":1597.0625,"d":"$1,597"}]
[{"$nulls":8},{"$f":"PROPER('2 REPAIR ESTIMATOR'!Y77)","v":"Landscaping"},{"$nulls":13},{"v":638.825,"d":"$639"}]
[{"$nulls":8},{"$f":"PROPER('2 REPAIR ESTIMATOR'!Y78)","v":"Misc. Exterior Items"},{"$nulls":13},{"v":0,"d":"$0"}]
[{"$nulls":8},{"$f":"PROPER('2 REPAIR ESTIMATOR'!Y79)","v":"Framing & Drywall"},{"$nulls":13},{"v":638.825,"d":"$639"}]
[{"$nulls":8},{"$f":"PROPER('2 REPAIR ESTIMATOR'!Y80)","v":"Cabinets & Countertops"},{"$nulls":13},{"v":9582.375,"d":"$9,582"}]
[{"$nulls":8},{"$f":"PROPER('2 REPAIR ESTIMATOR'!Y81)","v":"Doors & Trim"},{"$nulls":13},{"v":3832.95,"d":"$3,833"}]
[{"$nulls":8},{"$f":"PROPER('2 REPAIR ESTIMATOR'!Y82)","v":"Carpet & Resilient"},{"$nulls":13},{"v":3832.95,"d":"$3,833"}]
[{"$nulls":8},{"$f":"PROPER('2 REPAIR ESTIMATOR'!AJ75)","v":"Hardwood Flooring"},{"$nulls":13},{"v":3194.125,"d":"$3,194"}]
[{"$nulls":8},{"$f":"PROPER('2 REPAIR ESTIMATOR'!AJ76)","v":"Tiling"},{"$nulls":13},{"v":3832.95,"d":"$3,833"}]
[{"$nulls":8},{"$f":"PROPER('2 REPAIR ESTIMATOR'!AJ77)","v":"Painting"},{"$nulls":13},{"v":6388.25,"d":"$6,388"}]
[{"$nulls":8},{"$f":"PROPER('2 REPAIR ESTIMATOR'!AJ78)","v":"Appliances"},{"$nulls":13},{"v":3194.125,"d":"$3,194"}]
[{"$nulls":8},{"$f":"PROPER('2 REPAIR ESTIMATOR'!AJ79)","v":"Plumbing"},{"$nulls":13},{"v":3832.95,"d":"$3,833"}]
[{"$nulls":8},{"$f":"PROPER('2 REPAIR ESTIMATOR'!AJ80)","v":"Hvac"},{"$nulls":13},{"v":319.4125,"d":"$319"}]
[{"$nulls":8},{"$f":"PROPER('2 REPAIR ESTIMATOR'!AJ81)","v":"Electrical"},{"$nulls":13},{"v":4471.775,"d":"$4,472"}]
[{"$nulls":8},{"$f":"PROPER('2 REPAIR ESTIMATOR'!AJ82)","v":"Miscellaneous"},{"$nulls":13},{"v":0,"d":"$0"}]
[{"$nulls":8},"TOTAL REPAIR COSTS",{"$nulls":13},{"$f":"IFERROR(AF98,0)","v":{"v":63563.087499999994,"d":"$63,563"}}]
[]
[{"$nulls":8},"Other Costs"]
[{"$nulls":8},"Buying Costs (Closing costs, Appraisal fees, Inspection costs, etc.)",{"$nulls":13},{"$f":"IFERROR(AA101,0)","v":{"v":1000,"d":"$1,000"}}]
[{"$nulls":8},"Holding Costs (Mortgage Payments, PMI, Taxes, Utilities, Insurance, etc.)",{"$nulls":13},{"$f":"IFERROR(AA102,0)","v":{"v":3000,"d":"$3,000"}}]
[{"$nulls":8},"Selling Costs",{"$nulls":13},{"$f":"IFERROR(AA103,0)","v":{"v":10850,"d":"$10,850"}},{"$nulls":8},{"$f":"IF(B110=\"% OF ARV\",1,0)","v":0}]
[{"$nulls":8},"Financing Costs",{"$nulls":13},{"$f":"IFERROR(IF(AND(Offer_Deal_Type=\"Wholesale\",Wholesale_Calculator_Fixed_Cost_Calculation_Method=\"% of ARV\"),AA104,AA104)*F82,0)","v":{"v":0,"d":"$0"}}]
[{"$nulls":8},{"$f":"IF(Wholesale_Percent_Algo=1,\"BUYING, HOLDING, SELLING & FINANCING COSTS\",\"OTHER COSTS\")","v":"OTHER COSTS"},{"$nulls":13},{"$f":"SUM(W60:Y63)","v":{"v":14850,"d":"$14,850"}}]
[]
[{"$nulls":8},"Gross Profit:",{"$nulls":13},{"$f":"D92","v":{"v":24750,"d":"$24,750"}}]
[]
[{"$nulls":8},"Our Offer:",{"$nulls":13},{"$f":"W30-W57-W64-W66","v":{"v":61836.912500000006,"d":"$61,837"}}]
[]
[]
[{"$nulls":8},"Disclaimer:  The information above is provided as a basis in establishing our Property Price Opinion.  The  intent of our offer is to earn a profit after property rehabilitation.  Actual property figures including rehab cost, fixed cost, and profit, may vary materially, and there is no guarantee of accuracy of the figures presented above."]
[{"$nulls":8},{"$f":"T(Company_Name)","v":"Dave Inc"},{"$nulls":3},{"$f":"(Company_Phone)","v":8161234567},null,null,{"$f":"T(Company_Email)","v":"dave@venturesheets.com"},{"$nulls":4},{"$f":"T(Company_Website)","v":"www.venturesheets.com"}]
[{"$nulls":8},"© 2018 by Houseflippingspreadsheet.com. All rights reserved"]
[]
[]
[{"$nulls":6},"Scope of Work",null,"Raw Cost of Work",null,"Contingency Amount",null,"Cost w/ Contingency",null,"% of Total Repairs",null,"Fixed Cost Allocated",null,"Total Costs",null,"% of Total",null,"Profits Allocated",null,"Total Allocated",null,"Cost w/ Allocations"]
[{"$nulls":6},"General Conditions",null,{"$f":"IF(Offer_Deal_Type=\"Wholesale\",'WHOLESALE CALC'!AS7,'1 REHAB ANALYZER'!AQ98)","v":{"v":750,"d":"$750.00"}},null,{"$f":"IFERROR(IF($D$79=0,0,(I77/$I$105)*$D$79),0)","v":{"v":208.23749999999998,"d":"$208.24"}},null,{"$f":"I77+K77","v":{"v":958.2375,"d":"$958.24"}},null,{"$f":"IF($M$105=0,0,M77/$M$105)","v":{"v":0.015075376884422112,"d":"1.51%"}},null,{"$f":"O77*$D$84","v":{"v":0,"d":"$0.00"}},null,{"$f":"IF(Fixed_Costs_Allocation_Selection=\"Yes\",M77+Q77,M77)","v":{"v":958.2375,"d":"$958.24"}},null,{"$f":"IF($S$105=0,0,S77/$S$105)","v":{"v":0.012220377114980965,"d":"1.22%"}},null,{"$f":"$D$90*U77","v":{"v":0,"d":"$0.00"}},null,{"$f":"Q77+W77","v":{"v":0,"d":"$0.00"}},null,{"$f":"M77+Y77","v":{"v":958.2375,"d":"$958.24"}}]
[{"$nulls":3},"Adders",null,"Wholesale Fee","Demolition",null,{"$f":"IF(Offer_Deal_Type=\"Wholesale\",'WHOLESALE CALC'!AS9,'1 REHAB ANALYZER'!AQ99)","v":{"v":1000,"d":"$1,000.00"}},null,{"$f":"IFERROR(IF($D$79=0,0,(I78/$I$105)*$D$79),0)","v":{"v":277.65,"d":"$277.65"}},null,{"$f":"I78+K78","v":{"v":1277.65,"d":"$1,277.65"}},null,{"$f":"IF($M$105=0,0,M78/$M$105)","v":{"v":0.020100502512562818,"d":"2.01%"}},null,{"$f":"O78*$D$84","v":{"v":0,"d":"$0.00"}},null,{"v":1277.65,"d":"$1,277.65"},null,{"$f":"IF($S$105=0,0,S78/$S$105)","v":{"v":0.016293836153307956,"d":"1.63%"}},null,{"$f":"$D$90*U78","v":{"v":0,"d":"$0.00"}},null,{"v":0,"d":"$0.00"},null,{"$f":"M78+Y78","v":{"v":1277.65,"d":"$1,277.65"}}]
[{"$nulls":3},{"$f":"IF(Offer_Deal_Type=\"Wholesale\",'WHOLESALE CALC'!BG59,Adders_Result)","v":{"v":13813.0875,"d":"$13,813.1"}},null,{"$f":"IF(Offer_Deal_Type=\"Wholesale\",Wholesale_Profit,0)","v":{"v":0,"d":"$0.0"}},"Structural Concrete",null,{"$f":"IF(Offer_Deal_Type=\"Wholesale\",'WHOLESALE CALC'!AS11,'1 REHAB ANALYZER'!AQ100)","v":{"v":0,"d":"$0.00"}},null,{"v":0,"d":"$0.00"},null,{"v":0,"d":"$0.00"},null,{"v":0,"d":"0.00%"},null,{"v":0,"d":"$0.00"},null,{"v":0,"d":"$0.00"},null,{"v":0,"d":"0.00%"},null,{"v":0,"d":"$0.00"},null,{"v":0,"d":"$0.00"},null,{"v":0,"d":"$0.00"}]
[{"$nulls":3},"Allocate FC? (Yes/No)",null,null,"Concrete/Flatwork",null,{"$f":"IF(Offer_Deal_Type=\"Wholesale\",'WHOLESALE CALC'!AS13,'1 REHAB ANALYZER'!AQ101)","v":{"v":0,"d":"$0.00"}},null,{"v":0,"d":"$0.00"},null,{"v":0,"d":"$0.00"},null,{"v":0,"d":"0.00%"},null,{"v":0,"d":"$0.00"},null,{"v":0,"d":"$0.00"},null,{"v":0,"d":"0.00%"},null,{"v":0,"d":"$0.00"},null,{"v":0,"d":"$0.00"},null,{"v":0,"d":"$0.00"}]
[{"$nulls":6},"Masonry",null,{"$f":"IF(Offer_Deal_Type=\"Wholesale\",'WHOLESALE CALC'!AS15,'1 REHAB ANALYZER'!AQ102)","v":{"v":0,"d":"$0.00"}},null,{"v":0,"d":"$0.00"},null,{"v":0,"d":"$0.00"},null,{"v":0,"d":"0.00%"},null,{"v":0,"d":"$0.00"},null,{"v":0,"d":"$0.00"},null,{"v":0,"d":"0.00%"},null,{"v":0,"d":"$0.00"},null,{"v":0,"d":"$0.00"},null,{"v":0,"d":"$0.00"}]
[{"$nulls":3},"No",null,{"$f":"IF(Fixed_Costs_Allocation_Selection=\"Yes\",0,1)","v":{"v":1,"d":"$1.0"}},"Siding",null,{"$f":"IF(Offer_Deal_Type=\"Wholesale\",'WHOLESALE CALC'!AS17,'1 REHAB ANALYZER'!AQ103)","v":{"v":0,"d":"$0.00"}},null,{"v":0,"d":"$0.00"},null,{"v":0,"d":"$0.00"},null,{"v":0,"d":"0.00%"},null,{"v":0,"d":"$0.00"},null,{"v":0,"d":"$0.00"},null,{"v":0,"d":"0.00%"},null,{"v":0,"d":"$0.00"},null,{"v":0,"d":"$0.00"},null,{"v":0,"d":"$0.00"}]
[{"$nulls":3},"Fixed Cost Amount",null,null,"Decking",null,{"$f":"IF(Offer_Deal_Type=\"Wholesale\",'WHOLESALE CALC'!AS19,'1 REHAB ANALYZER'!AQ104)","v":{"v":5000,"d":"$5,000.00"}},null,{"v":1388.25,"d":"$1,388.25"},null,{"v":6388.25,"d":"$6,388.25"},null,{"v":0.10050251256281408,"d":"10.05%"},null,{"v":0,"d":"$0.00"},null,{"v":6388.25,"d":"$6,388.25"},null,{"v":0.08146918076653978,"d":"8.15%"},null,{"v":0,"d":"$0.00"},null,{"v":0,"d":"$0.00"},null,{"v":6388.25,"d":"$6,388.25"}]
[null,{"$f":"IF(Offer_Deal_Type=\"Wholesale\",TOTAL_FIXED_COSTS_WHOLESALE,TOTAL_FIXED_COSTS_ESTIMATED)","v":{"v":14850,"d":"$14,850.0"}},null,{"$f":"IF(D82=\"Yes\",B84,0)","v":{"v":0,"d":"$0.0"}},null,null,"Roofing",null,{"$f":"IF(Offer_Deal_Type=\"Wholesale\",'WHOLESALE CALC'!AS21,'1 REHAB ANALYZER'!AQ105)","v":{"v":5500,"d":"$5,500.00"}},null,{"v":1527.075,"d":"$1,527.08"},null,{"v":7027.075,"d":"$7,027.08"},null,{"v":0.11055276381909548,"d":"11.06%"},null,{"v":0,"d":"$0.00"},null,{"v":7027.075,"d":"$7,027.08"},null,{"v":0.08961609884319376,"d":"8.96%"},null,{"v":0,"d":"$0.00"},null,{"v":0,"d":"$0.00"},null,{"v":7027.075,"d":"$7,027.08"}]
[{"$nulls":3},"Allocate Profits? (Yes/No)",null,null,"Doors & Windows",null,{"$f":"IF(Offer_Deal_Type=\"Wholesale\",'WHOLESALE CALC'!AS23,'1 REHAB ANALYZER'!AQ106)","v":{"v":2000,"d":"$2,000.00"}},null,{"v":555.3,"d":"$555.30"},null,{"v":2555.3,"d":"$2,555.30"},null,{"v":0.040201005025125636,"d":"4.02%"},null,{"v":0,"d":"$0.00"},null,{"v":2555.3,"d":"$2,555.30"},null,{"v":0.03258767230661591,"d":"3.26%"},null,{"v":0,"d":"$0.00"},null,{"v":0,"d":"$0.00"},null,{"v":2555.3,"d":"$2,555.30"}]
[{"$nulls":6},"Garage Doors",null,{"$f":"IF(Offer_Deal_Type=\"Wholesale\",'WHOLESALE CALC'!AS25,'1 REHAB ANALYZER'!AQ107)","v":{"v":1250,"d":"$1,250.00"}},null,{"v":347.0625,"d":"$347.06"},null,{"v":1597.0625,"d":"$1,597.06"},null,{"v":0.02512562814070352,"d":"2.51%"},null,{"v":0,"d":"$0.00"},null,{"v":1597.0625,"d":"$1,597.06"},null,{"v":0.020367295191634945,"d":"2.04%"},null,{"v":0,"d":"$0.00"},null,{"v":0,"d":"$0.00"},null,{"v":1597.0625,"d":"$1,597.06"}]
[{"$nulls":3},"Yes",null,null,"Landscaping",null,{"$f":"IF(Offer_Deal_Type=\"Wholesale\",'WHOLESALE CALC'!AS27,'1 REHAB ANALYZER'!AQ108)","v":{"v":500,"d":"$500.00"}},null,{"v":138.825,"d":"$138.83"},null,{"v":638.825,"d":"$638.83"},null,{"v":0.010050251256281409,"d":"1.01%"},null,{"v":0,"d":"$0.00"},null,{"v":638.825,"d":"$638.83"},null,{"v":0.008146918076653978,"d":"0.81%"},null,{"v":0,"d":"$0.00"},null,{"v":0,"d":"$0.00"},null,{"v":638.825,"d":"$638.83"}]
[{"$nulls":3},"Profit Amount Allocated",null,null,"Misc. Ext. Improv.",null,{"$f":"IF(Offer_Deal_Type=\"Wholesale\",'WHOLESALE CALC'!AS29,'1 REHAB ANALYZER'!AQ109)","v":{"v":0,"d":"$0.00"}},null,{"v":0,"d":"$0.00"},null,{"v":0,"d":"$0.00"},null,{"v":0,"d":"0.00%"},null,{"v":0,"d":"$0.00"},null,{"v":0,"d":"$0.00"},null,{"v":0,"d":"0.00%"},null,{"v":0,"d":"$0.00"},null,{"v":0,"d":"$0.00"},null,{"v":0,"d":"$0.00"}]
[{"$nulls":6},"Framing/Drywall",null,{"$f":"IF(Offer_Deal_Type=\"Wholesale\",'WHOLESALE CALC'!BH7,'1 REHAB ANALYZER'!AQ110)","v":{"v":500,"d":"$500.00"}},null,{"v":138.825,"d":"$138.83"},null,{"v":638.825,"d":"$638.83"},null,{"v":0.010050251256281409,"d":"1.01%"},null,{"v":0,"d":"$0.00"},null,{"v":638.825,"d":"$638.83"},null,{"v":0.008146918076653978,"d":"0.81%"},null,{"v":0,"d":"$0.00"},null,{"v":0,"d":"$0.00"},null,{"v":638.825,"d":"$638.83"}]
[null,null,{"$f":"IF(Offer_Deal_Type=\"Wholesale\",REHABBER_PROFIT_WHOLESALE,REHAB_PROFIT_ESTIMATED)","v":{"v":24750,"d":"$24,750.0"}},{"$f":"IF(D87=\"yes\",(C90*Q3)+F79,0)","v":{"v":0,"d":"$0.0"}},null,null,"Cabinets/Counters",null,{"$f":"IF(Offer_Deal_Type=\"Wholesale\",'WHOLESALE CALC'!BH9,'1 REHAB ANALYZER'!AQ111)","v":{"v":7500,"d":"$7,500.00"}},null,{"v":2082.3749999999995,"d":"$2,082.38"},null,{"v":9582.375,"d":"$9,582.38"},null,{"v":0.15075376884422112,"d":"15.08%"},null,{"v":0,"d":"$0.00"},null,{"v":9582.375,"d":"$9,582.38"},null,{"v":0.12220377114980967,"d":"12.22%"},null,{"v":0,"d":"$0.00"},null,{"v":0,"d":"$0.00"},null,{"v":9582.375,"d":"$9,582.38"}]
[{"$nulls":3},"Profit Shown",null,null,"Doors and Trim",null,{"$f":"IF(Offer_Deal_Type=\"Wholesale\",'WHOLESALE CALC'!BH11,'1 REHAB ANALYZER'!AQ112)","v":{"v":3000,"d":"$3,000.00"}},null,{"v":832.9499999999999,"d":"$832.95"},null,{"v":3832.95,"d":"$3,832.95"},null,{"v":0.06030150753768845,"d":"6.03%"},null,{"v":0,"d":"$0.00"},null,{"v":3832.95,"d":"$3,832.95"},null,{"v":0.04888150845992386,"d":"4.89%"},null,{"v":0,"d":"$0.00"},null,{"v":0,"d":"$0.00"},null,{"v":3832.95,"d":"$3,832.95"}]
[{"$nulls":3},{"$f":"IF(Offer_Deal_Type=\"Wholesale\",'WHOLESALE CALC'!BN10,'1 REHAB ANALYZER'!BO12)-D90+F79","v":{"v":24750,"d":"$24,750.0"}},null,null,"Carpet & Resilient",null,{"$f":"IF(Offer_Deal_Type=\"Wholesale\",'WHOLESALE CALC'!BH13,'1 REHAB ANALYZER'!AQ113)","v":{"v":3000,"d":"$3,000.00"}},null,{"v":832.9499999999999,"d":"$832.95"},null,{"v":3832.95,"d":"$3,832.95"},null,{"v":0.06030150753768845,"d":"6.03%"},null,{"v":0,"d":"$0.00"},null,{"v":3832.95,"d":"$3,832.95"},null,{"v":0.04888150845992386,"d":"4.89%"},null,{"v":0,"d":"$0.00"},null,{"v":0,"d":"$0.00"},null,{"v":3832.95,"d":"$3,832.95"}]
[{"$nulls":3},"Total Allocated",null,null,"Hardwood Flooring",null,{"$f":"IF(Offer_Deal_Type=\"Wholesale\",'WHOLESALE CALC'!BH15,'1 REHAB ANALYZER'!AQ114)","v":{"v":2500,"d":"$2,500.00"}},null,{"v":694.125,"d":"$694.13"},null,{"v":3194.125,"d":"$3,194.13"},null,{"v":0.05025125628140704,"d":"5.03%"},null,{"v":0,"d":"$0.00"},null,{"v":3194.125,"d":"$3,194.13"},null,{"v":0.04073459038326989,"d":"4.07%"},null,{"v":0,"d":"$0.00"},null,{"v":0,"d":"$0.00"},null,{"v":3194.125,"d":"$3,194.13"}]
[{"$nulls":3},{"$f":"D84+D90","v":{"v":0,"d":"$0.0"}},null,null,"Tiling",null,{"$f":"IF(Offer_Deal_Type=\"Wholesale\",'WHOLESALE CALC'!BH17,'1 REHAB ANALYZER'!AQ115)","v":{"v":3000,"d":"$3,000.00"}},null,{"v":832.9499999999999,"d":"$832.95"},null,{"v":3832.95,"d":"$3,832.95"},null,{"v":0.06030150753768845,"d":"6.03%"},null,{"v":0,"d":"$0.00"},null,{"v":3832.95,"d":"$3,832.95"},null,{"v":0.04888150845992386,"d":"4.89%"},null,{"v":0,"d":"$0.00"},null,{"v":0,"d":"$0.00"},null,{"v":3832.95,"d":"$3,832.95"}]
[null,"Rehab",{"$nulls":4},"Painting",null,{"$f":"IF(Offer_Deal_Type=\"Wholesale\",'WHOLESALE CALC'!BH19,'1 REHAB ANALYZER'!AQ116)","v":{"v":5000,"d":"$5,000.00"}},null,{"v":1388.25,"d":"$1,388.25"},null,{"v":6388.25,"d":"$6,388.25"},null,{"v":0.10050251256281408,"d":"10.05%"},null,{"v":0,"d":"$0.00"},null,{"v":6388.25,"d":"$6,388.25"},null,{"v":0.08146918076653978,"d":"8.15%"},null,{"v":0,"d":"$0.00"},null,{"v":0,"d":"$0.00"},null,{"v":6388.25,"d":"$6,388.25"}]
[null,{"$f":"'1 REHAB ANALYZER'!X16","v":"DETAILED"},null,"Itemized",null,null,"Appliances",null,{"$f":"IF(Offer_Deal_Type=\"Wholesale\",'WHOLESALE CALC'!BH21,'1 REHAB ANALYZER'!AQ117)","v":{"v":2500,"d":"$2,500.00"}},null,{"v":694.125,"d":"$694.13"},null,{"v":3194.125,"d":"$3,194.13"},null,{"v":0.05025125628140704,"d":"5.03%"},null,{"v":0,"d":"$0.00"},null,{"v":3194.125,"d":"$3,194.13"},null,{"v":0.04073459038326989,"d":"4.07%"},null,{"v":0,"d":"$0.00"},null,{"v":0,"d":"$0.00"},null,{"v":3194.125,"d":"$3,194.13"}]
[null,{"$f":"'1 REHAB ANALYZER'!H84","v":{"v":14850,"d":"$14,850.0"}},null,{"$f":"'ANALYSIS DATABASE'!C141","v":{"v":1000,"d":"$1,000.0"}},null,null,"Plumbing ",null,{"$f":"IF(Offer_Deal_Type=\"Wholesale\",'WHOLESALE CALC'!BH23,'1 REHAB ANALYZER'!AQ118)","v":{"v":3000,"d":"$3,000.00"}},null,{"v":832.9499999999999,"d":"$832.95"},null,{"v":3832.95,"d":"$3,832.95"},null,{"v":0.06030150753768845,"d":"6.03%"},null,{"v":0,"d":"$0.00"},null,{"v":3832.95,"d":"$3,832.95"},null,{"v":0.04888150845992386,"d":"4.89%"},null,{"v":0,"d":"$0.00"},null,{"v":0,"d":"$0.00"},null,{"v":3832.95,"d":"$3,832.95"},{"$nulls":4},"Total Repair Costs"]
[null,{"$f":"B97/4","v":{"v":3712.5,"d":"$3,712.50"}},null,{"$f":"'ANALYSIS DATABASE'!C142","v":{"v":3000,"d":"$3,000.0"}},null,null,"HVAC",null,{"$f":"IF(Offer_Deal_Type=\"Wholesale\",'WHOLESALE CALC'!BH25,'1 REHAB ANALYZER'!AQ119)","v":{"v":250,"d":"$250.00"}},null,{"v":69.4125,"d":"$69.41"},null,{"v":319.4125,"d":"$319.41"},null,{"v":5.0251256281407045E-3,"d":"0.50%"},null,{"v":0,"d":"$0.00"},null,{"v":319.4125,"d":"$319.41"},null,{"v":0.004073459038326989,"d":"0.41%"},null,{"v":0,"d":"$0.00"},null,{"v":0,"d":"$0.00"},null,{"v":319.4125,"d":"$319.41"},{"$nulls":4},{"$f":"SUM(AA77:AB100)","v":{"v":63563.087499999994,"d":"$63,563.09"}}]
[{"$nulls":3},{"$f":"'ANALYSIS DATABASE'!C143","v":{"v":10850,"d":"$10,850.0"}},null,{"$f":"IF(Fixed_Cost_Calculation_Method=\"% of ARV\",B97,D101)","v":{"v":14850,"d":"$14,850.0"}},"Electrical",null,{"$f":"IF(Offer_Deal_Type=\"Wholesale\",'WHOLESALE CALC'!BH27,'1 REHAB ANALYZER'!AQ120)","v":{"v":3500,"d":"$3,500.00"}},null,{"v":971.775,"d":"$971.78"},null,{"v":4471.775,"d":"$4,471.78"},null,{"v":0.07035175879396985,"d":"7.04%"},null,{"v":0,"d":"$0.00"},null,{"v":4471.775,"d":"$4,471.78"},null,{"v":0.05702842653657784,"d":"5.70%"},null,{"v":0,"d":"$0.00"},null,{"v":0,"d":"$0.00"},null,{"v":4471.775,"d":"$4,471.78"}]
[{"$nulls":3},{"$f":"'ANALYSIS DATABASE'!C144","v":{"v":0,"d":"$0.0"}},null,null,"Furnishings",null,{"$f":"IF(Offer_Deal_Type=\"Wholesale\",'WHOLESALE CALC'!BH29,'1 REHAB ANALYZER'!AQ121)","v":{"v":0,"d":"$0.00"}},null,{"v":0,"d":"$0.00"},null,{"v":0,"d":"$0.00"},null,{"v":0,"d":"0.00%"},null,{"v":0,"d":"$0.00"},null,{"v":0,"d":"$0.00"},null,{"v":0,"d":"0.00%"},null,{"v":0,"d":"$0.00"},null,{"v":0,"d":"$0.00"},null,{"v":0,"d":"$0.00"}]
[{"$nulls":3},{"$f":"SUM(D97:E100)","v":{"v":14850,"d":"$14,850.0"}},null,null,"Buying Costs",{"$nulls":9},{"$f":"F104*$D$84","v":{"v":0,"d":"$0.00"}},null,{"$f":"IF(Fixed_Costs_Allocation_Selection=\"Yes\",0,F104)","v":{"v":1000,"d":"$1,000.00"}},null,{"v":0.012752973156426217,"d":"1.28%"},null,{"v":0,"d":"$0.00"},null,{"v":0,"d":"$0.00"},null,{"$f":"IF(Fixed_Costs_Allocation_Selection=\"Yes\",0,S101+Y101)","v":{"v":1000,"d":"$1,000.00"}}]
[null,"Wholesale",{"$nulls":4},"Holding Costs",{"$nulls":9},{"$f":"O102*$F$105","v":{"v":0,"d":"$0.00"}},null,{"$f":"IF(Fixed_Costs_Allocation_Selection=\"Yes\",0,F105)","v":{"v":3000,"d":"$3,000.00"}},null,{"v":0.038258919469278646,"d":"3.83%"},null,{"v":0,"d":"$0.00"},null,{"v":0,"d":"$0.00"},null,{"$f":"IF(Fixed_Costs_Allocation_Selection=\"Yes\",0,S102+Y102)","v":{"v":3000,"d":"$3,000.00"}}]
[null,{"$f":"'WHOLESALE CALC'!W14","v":"% OF ARV"},null,"Itemized",null,"Result","Selling Costs",{"$nulls":9},{"$f":"O103*$F$106","v":{"v":0,"d":"$0.00"}},null,{"$f":"IF(Fixed_Costs_Allocation_Selection=\"Yes\",0,F106)","v":{"v":10850,"d":"$10,850.00"}},null,{"v":0.13836975874722446,"d":"13.84%"},null,{"v":0,"d":"$0.00"},null,{"v":0,"d":"$0.00"},null,{"$f":"IF(Fixed_Costs_Allocation_Selection=\"Yes\",0,S103+Y103)","v":{"v":10850,"d":"$10,850.00"}}]
[null,{"$f":"'WHOLESALE CALC'!B74","v":{"v":37500,"d":"$37,500.0"}},null,{"$f":"IF('WHOLESALE CALC'!$W$14=\"% OF ARV\",'HOMEOWNER REPORT'!$B$104/4,'WHOLESALE CALC'!Z33)","v":{"v":9375,"d":"$9,375.0"}},null,{"$f":"IF(Offer_Deal_Type=\"Wholesale\",D104,D97)","v":{"v":1000,"d":"$1,000.0"}},"Financing Costs",{"$nulls":9},{"$f":"O104*$F$106","v":{"v":0,"d":"$0.00"}},null,{"$f":"IF(Fixed_Costs_Allocation_Selection=\"Yes\",0,F107)","v":{"v":0,"d":"$0.00"}},null,{"$f":"IF($S$105=0,0,S104/$S$105)","v":{"v":0,"d":"0.00%"}},null,{"$f":"$D$90*U104","v":{"v":0,"d":"$0.00"}},null,{"$f":"Q104+W104","v":{"v":0,"d":"$0.00"}},null,{"$f":"IF(Fixed_Costs_Allocation_Selection=\"Yes\",0,S104+Y104)","v":{"v":0,"d":"$0.00"}}]
[null,{"$f":"B104/4","v":{"v":9375,"d":"$9,375.00"}},null,{"$f":"IF('WHOLESALE CALC'!$W$14=\"% OF ARV\",'HOMEOWNER REPORT'!$B$104/4,'WHOLESALE CALC'!Z51)","v":{"v":9375,"d":"$9,375.0"}},null,{"$f":"IF(Offer_Deal_Type=\"Wholesale\",D105,D98)","v":{"v":3000,"d":"$3,000.0"}},null,null,{"$f":"SUM(I77:J104)","v":{"v":49750,"d":"$49,750.00"}},null,{"$f":"SUM(K77:L104)","v":{"v":13813.0875,"d":"$13,813.09"}},null,{"$f":"SUM(M77:N104)","v":{"v":63563.087499999994,"d":"$63,563.09"}},null,{"$f":"SUM(O77:P104)","v":{"v":1.0000000000000002,"d":"100.00%"}},null,{"$f":"SUM(Q77:R104)","v":{"v":0,"d":"$0.00"}},null,{"$f":"SUM(S77:T104)","v":{"v":78413.0875,"d":"$78,413.09"}},null,{"$f":"SUM(U77:V104)","v":{"v":1,"d":"100.00%"}},null,{"$f":"SUM(W77:X104)","v":{"v":0,"d":"$0.00"}},null,{"v":0,"d":"$0.00"},null,{"$f":"SUM(AA77:AB104)","v":{"v":78413.0875,"d":"$78,413.09"}}]
[{"$nulls":3},{"$f":"IF('WHOLESALE CALC'!$W$14=\"% OF ARV\",'HOMEOWNER REPORT'!$B$104/4,'WHOLESALE CALC'!Z69-'WHOLESALE CALC'!Z37-'WHOLESALE CALC'!Z29)","v":{"v":9375,"d":"$9,375.0"}},null,{"$f":"IF(Offer_Deal_Type=\"Wholesale\",D106,D99)","v":{"v":10850,"d":"$10,850.0"}}]
[{"$nulls":3},{"$f":"IF('WHOLESALE CALC'!$W$14=\"% OF ARV\",'HOMEOWNER REPORT'!$B$104/4,'WHOLESALE CALC'!Z29+'WHOLESALE CALC'!Z37)","v":{"v":9375,"d":"$9,375.0"}},null,{"$f":"IF(Offer_Deal_Type=\"Wholesale\",D107,D100)","v":{"v":0,"d":"$0.0"}}]
[{"$nulls":3},{"$f":"SUM(D104:E107)","v":{"v":37500,"d":"$37,500.0"}}]
[{"$nulls":3},{"$f":"IF(Wholesale_Calculator_Fixed_Cost_Calculation_Method=\"% of ARV\",B104,D108)","v":{"v":37500,"d":"$37,500.0"}}]
[null,{"$f":"IF(Offer_Deal_Type=\"Wholesale\",B103,B96)","v":"DETAILED"}]

{"sheet":"COMPS REPORT","index":36,"n_rows":126,"n_cols":34,"rows_kept":126,"hidden":true,"merged":[[1,1,3,4],[5,3,5,18],[5,19,5,21],[5,22,5,23],[8,4,8,6],[8,7,8,10],[8,11,8,14],[8,15,8,18],[8,19,8,22],[9,4,9,6],[9,7,9,10],[9,11,9,14],[9,15,9,18],[9,19,9,22],[10,4,10,6],[10,7,10,10],[10,11,10,14],[10,15,10,18],[10,19,10,22],[11,4,11,6],[11,7,11,10],[11,11,11,14],[11,15,11,18],[11,19,11,22],[12,4,12,6],[12,7,12,10],[12,11,12,14],[12,15,12,18],[12,19,12,22],[13,4,13,6],[13,7,13,10],[13,11,13,14],[13,15,13,18],[13,19,13,22],[14,4,14,6],[14,7,14,10],[14,11,14,14],[14,15,14,18],[14,19,14,22],[15,4,15,6],[15,7,15,10],[15,11,15,14],[15,15,15,18],[15,19,15,22],[16,4,16,6],[16,7,16,10],[16,11,16,14],[16,15,16,18],[16,19,16,22],[18,4,18,6],[18,7,18,9],[18,11,18,13],[18,15,18,17],[18,19,18,21],[19,4,19,6],[19,7,19,9],[19,11,19,13],[19,15,19,17],[19,19,19,21],[20,4,20,6],[20,7,20,9],[20,11,20,13],[20,15,20,17],[20,19,20,21],[21,4,21,6],[21,7,21,9],[21,11,21,13],[21,15,21,17],[21,19,21,21],[22,4,22,6],[22,7,22,9],[22,11,22,13],[22,15,22,17],[22,19,22,21],[23,4,23,6],[23,7,23,9],[23,11,23,13],[23,15,23,17],[23,19,23,21],[24,4,24,6],[24,7,24,9],[24,11,24,13],[24,15,24,17],[24,19,24,21],[25,4,25,6],[25,7,25,9],[25,11,25,13],[25,15,25,17],[25,19,25,21],[26,4,26,6],[26,7,26,9],[26,11,26,13],[26,15,26,17],[26,19,26,21],[27,4,27,6],[27,7,27,9],[27,11,27,13],[27,15,27,17],[27,19,27,21],[28,4,31,6],[28,7,31,9],[28,10,31,10],[28,11,31,13],[28,14,31,14],[28,15,31,17],[28,18,31,18],[28,19,31,21],[28,22,31,22],[32,4,39,6],[32,7,39,9],[32,10,39,10],[32,11,39,13],[32,14,39,14],[32,15,39,17],[32,18,39,18],[32,19,39,21],[32,22,39,22],[40,4,40,6],[40,7,40,10],[40,11,40,14],[40,15,40,18],[40,19,40,22],[41,4,41,6],[41,7,41,10],[41,11,41,14],[41,15,41,18],[41,19,41,22],[47,4,47,7],[47,9,47,12],[47,13,47,17],[47,18,47,22],[48,3,48,18],[48,19,48,21],[48,22,48,23],[50,4,52,4],[50,5,51,11],[52,5,52,11],[56,5,56,7],[56,8,56,11],[57,5,57,7],[57,8,57,11],[58,5,58,7],[58,8,58,11],[59,5,59,7],[59,8,59,11],[60,5,60,7],[60,8,60,11],[61,5,61,7],[61,8,61,11],[65,4,67,4],[65,5,66,11],[67,5,67,11],[71,5,71,7],[71,8,71,11],[72,5,72,7],[72,8,72,11],[73,5,73,7],[73,8,73,11],[74,5,74,7],[74,8,74,11],[75,5,75,7],[75,8,75,11],[76,5,76,7],[76,8,76,11],[80,4,82,4],[80,5,81,11],[82,5,82,11],[86,5,86,7],[86,8,86,11],[87,5,87,7],[87,8,87,11],[88,5,88,7],[88,8,88,11],[89,5,89,7],[89,8,89,11],[90,5,90,7],[90,8,90,11],[91,5,91,7],[91,8,91,11],[94,4,94,7],[94,9,94,12],[94,13,94,17],[94,18,94,22],[95,3,95,18],[95,19,95,21],[95,22,95,23],[104,25,107,28],[117,3,118,6],[117,7,118,11],[118,12,118,15],[118,16,118,17],[118,18,118,20],[118,21,118,23],[119,3,119,6],[119,7,119,11],[119,12,119,15],[119,16,119,17],[119,18,119,20],[119,21,119,23],[120,3,120,6],[120,7,120,11],[120,12,120,15],[120,16,120,17],[120,18,120,20],[120,21,120,23],[121,3,121,6],[121,7,121,11],[121,12,121,15],[121,16,121,17],[121,18,121,20],[121,21,121,23],[122,3,122,6],[122,7,122,11],[122,12,122,15],[122,16,122,17],[122,18,122,20],[122,21,122,23],[124,4,124,7],[124,9,124,12],[124,13,124,17],[124,18,124,22],[125,3,126,23]]}
[]
[null,"COMPARABLES REPORT",{"$nulls":29},"Summary","Detail","Map"]
[{"$nulls":31},"Shown","Shown","Shown"]
[]
[]
[{"$nulls":3},"COMPARABLES SUMMARY",{"$nulls":15},"Analysis Date:",null,null,{"$f":"TODAY()","v":"2019-06-23"}]
[]
[]
[{"$nulls":4},"Property Info:",null,null,"Subject Property",{"$nulls":3},"Comparable 1",{"$nulls":3},"Comparable 2",{"$nulls":3},"Comparable 3"]
[{"$nulls":4},"Street Address:",null,null,{"$f":"T(COMPS!W6)","v":"1234 Main St"},{"$nulls":3},{"$f":"T(COMPS!AJ6)","v":"2345 N. Main St"},{"$nulls":3},{"$f":"T(COMPS!AW6)","v":"2345 N. Main St"},{"$nulls":3},{"$f":"T(COMPS!BJ6)","v":"2345 N. Main St"}]
[{"$nulls":4},"City, State, Zip Code:",null,null,{"$f":"T(COMPS!W7)","v":"Kansas City, MO 64116"},{"$nulls":3},{"$f":"T(COMPS!AJ7)","v":"Kansas City, MO 64116"},{"$nulls":3},{"$f":"T(COMPS!AW7)","v":"Kansas City, MO 64116"},{"$nulls":3},{"$f":"T(COMPS!BJ7)","v":"Kansas City, MO 64116"}]
[{"$nulls":4},"Neighborhood:",null,null,{"$f":"T(COMPS!W8)","v":"The Coves"},{"$nulls":3},{"$f":"T(COMPS!AJ8)","v":"The Coves"},{"$nulls":3},{"$f":"T(COMPS!AW8)","v":"The Coves"},{"$nulls":3},{"$f":"T(COMPS!BJ8)","v":"The Coves"}]
[{"$nulls":4},"School District:",null,null,{"$f":"T(COMPS!W9)","v":"Park Hill School District"},{"$nulls":3},{"$f":"T(COMPS!AJ9)","v":"Park Hill School District"},{"$nulls":3},{"$f":"T(COMPS!AW9)","v":"Park Hill School District"},{"$nulls":3},{"$f":"T(COMPS!BJ9)","v":"Park Hill School District"}]
[{"$nulls":4},"List Price/Sales Price:",null,null,{"$f":"(COMPS!W10)","v":{"v":165000,"d":"$165,000"}},{"$nulls":3},{"$f":"COMPS!AJ10","v":{"v":245000,"d":"$245,000"}},{"$nulls":3},{"$f":"COMPS!AW10","v":{"v":260000,"d":"$260,000"}},{"$nulls":3},{"$f":"COMPS!BJ10","v":{"v":240000,"d":"$240,000"}}]
[{"$nulls":4},"Current Status:",null,null,{"$f":"T(COMPS!W11)","v":""},{"$nulls":3},{"$f":"T(COMPS!AJ11)","v":"Sold"},{"$nulls":3},{"$f":"T(COMPS!AW11)","v":"Sold"},{"$nulls":3},{"$f":"T(COMPS!BJ11)","v":"Sold"}]
[{"$nulls":4},"Status Date:",null,null,{"$f":"IF((COMPS!W12)=0,\"\",COMPS!W12)","v":""},{"$nulls":3},{"$f":"IF((COMPS!AJ12)=0,\"\",COMPS!AJ12)","v":"2018-08-01"},{"$nulls":3},{"$f":"IF((COMPS!AW12)=0,\"\",COMPS!AW12)","v":"2018-07-15"},{"$nulls":3},{"$f":"IF((COMPS!BJ12)=0,\"\",COMPS!BJ12)","v":"2018-07-02"}]
[{"$nulls":4},"Days on Market:",null,null,{"$f":"(COMPS!W13)","v":0},{"$nulls":3},{"$f":"COMPS!AJ13","v":54},{"$nulls":3},{"$f":"COMPS!AW13","v":45},{"$nulls":3},{"$f":"COMPS!BJ13","v":40}]
[]
[{"$nulls":4},"Property Characteristics",null,null,"Description:",null,null,"+/-","Description:",null,null,"+/-","Description:",null,null,"+/-","Description:",null,null,"+/-"]
[{"$nulls":4},"# of Beds",null,null,{"$f":"COMPS!W16","v":{"v":3,"d":"3 beds"}},null,null,{"$f":"COMPS!AE16","v":{"v":0,"d":"$0"}},{"$f":"COMPS!AJ16","v":{"v":3,"d":"3 beds"}},null,null,{"$f":"COMPS!AR16","v":{"v":0,"d":"$0"}},{"$f":"COMPS!AW16","v":{"v":3,"d":"3 beds"}},null,null,{"$f":"COMPS!BE16","v":{"v":0,"d":"$0"}},{"$f":"COMPS!BJ16","v":{"v":3,"d":"3 beds"}},null,null,{"$f":"COMPS!BR16","v":{"v":0,"d":"$0"}}]
[{"$nulls":4},"# of Baths",null,null,{"$f":"COMPS!W17","v":{"v":2,"d":"2.0 baths"}},null,null,{"$f":"COMPS!AE17","v":{"v":0,"d":"$0"}},{"$f":"COMPS!AJ17","v":{"v":2,"d":"2.0 baths"}},null,null,{"$f":"COMPS!AR17","v":{"v":0,"d":"$0"}},{"$f":"COMPS!AW17","v":{"v":2,"d":"2.0 baths"}},null,null,{"$f":"COMPS!BE17","v":{"v":0,"d":"$0"}},{"$f":"COMPS!BJ17","v":{"v":2,"d":"2.0 baths"}},null,null,{"$f":"COMPS!BR17","v":{"v":0,"d":"$0"}}]
[{"$nulls":4},"# of Garages",null,null,{"$f":"COMPS!W18","v":{"v":0,"d":"0 garages"}},null,null,{"$f":"COMPS!AE18","v":{"v":0,"d":"$0"}},{"$f":"COMPS!AJ18","v":{"v":0,"d":"0 garages"}},null,null,{"$f":"COMPS!AR18","v":{"v":0,"d":"$0"}},{"$f":"COMPS!AW18","v":{"v":0,"d":"0 garages"}},null,null,{"$f":"COMPS!BE18","v":{"v":0,"d":"$0"}},{"$f":"COMPS!BJ18","v":{"v":0,"d":"0 garages"}},null,null,{"$f":"COMPS!BR18","v":{"v":0,"d":"$0"}}]
[{"$nulls":4},"Square Footage",null,null,{"$f":"COMPS!W19","v":{"v":1500,"d":"1500 sf"}},null,null,{"$f":"COMPS!AE19","v":{"v":0,"d":"$0"}},{"$f":"COMPS!AJ19","v":{"v":1450,"d":"1450 sf"}},null,null,{"$f":"COMPS!AR19","v":{"v":8250,"d":"$8,250"}},{"$f":"COMPS!AW19","v":{"v":1505,"d":"1505 sf"}},null,null,{"$f":"COMPS!BE19","v":{"v":0,"d":"$0"}},{"$f":"COMPS!BJ19","v":{"v":1400,"d":"1400 sf"}},null,null,{"$f":"COMPS!BR19","v":{"v":15000,"d":"$15,000"}}]
[{"$nulls":4},"Year Built",null,null,{"$f":"COMPS!W20","v":1982},null,null,{"$f":"COMPS!AE20","v":{"v":0,"d":"$0"}},{"$f":"COMPS!AJ20","v":1981},null,null,{"$f":"COMPS!AR20","v":{"v":0,"d":"$0"}},{"$f":"COMPS!AW20","v":1983},null,null,{"$f":"COMPS!BE20","v":{"v":0,"d":"$0"}},{"$f":"COMPS!BJ20","v":1985},null,null,{"$f":"COMPS!BR20","v":{"v":0,"d":"$0"}}]
[{"$nulls":4},"Basement Type:",null,null,{"$f":"T(COMPS!W21)","v":"Finished"},null,null,{"$f":"COMPS!AE21","v":{"v":0,"d":"$0"}},{"$f":"T(COMPS!AJ21)","v":"Finished"},null,null,{"$f":"COMPS!AR21","v":{"v":0,"d":"$0"}},{"$f":"T(COMPS!AW21)","v":"Finished"},null,null,{"$f":"COMPS!BE21","v":{"v":0,"d":"$0"}},{"$f":"T(COMPS!BJ21)","v":"Finished"},null,null,{"$f":"COMPS!BR21","v":{"v":0,"d":"$0"}}]
[{"$nulls":4},"Central Heat",null,null,{"$f":"T(COMPS!W22)","v":"Yes"},null,null,{"$f":"COMPS!AE22","v":{"v":0,"d":"$0"}},{"$f":"T(COMPS!AJ22)","v":"Yes"},null,null,{"$f":"COMPS!AR22","v":{"v":0,"d":"$0"}},{"$f":"T(COMPS!AW22)","v":"Yes"},null,null,{"$f":"COMPS!BE22","v":{"v":0,"d":"$0"}},{"$f":"T(COMPS!BJ22)","v":"Yes"},null,null,{"$f":"COMPS!BR22","v":{"v":0,"d":"$0"}}]
[{"$nulls":4},"Air Conditioning",null,null,{"$f":"T(COMPS!W23)","v":"Yes"},null,null,{"$f":"COMPS!AE23","v":{"v":0,"d":"$0"}},{"$f":"T(COMPS!AJ23)","v":"Yes"},null,null,{"$f":"COMPS!AR23","v":{"v":0,"d":"$0"}},{"$f":"T(COMPS!AW23)","v":"Yes"},null,null,{"$f":"COMPS!BE23","v":{"v":0,"d":"$0"}},{"$f":"T(COMPS!BJ23)","v":"Yes"},null,null,{"$f":"COMPS!BR23","v":{"v":0,"d":"$0"}}]
[{"$nulls":4},"Property Condition",null,null,{"$f":"T(COMPS!W24)","v":"Fully Renovated"},null,null,{"$f":"COMPS!AE24","v":{"v":0,"d":"$0"}},{"$f":"T(COMPS!AJ24)","v":"Moderate Updates"},null,null,{"$f":"COMPS!AR24","v":{"v":10000,"d":"$10,000"}},{"$f":"T(COMPS!AW24)","v":"Fully Renovated"},null,null,{"$f":"COMPS!BE24","v":{"v":0,"d":"$0"}},{"$f":"T(COMPS!BJ24)","v":"Moderate Updates"},null,null,{"$f":"COMPS!BR24","v":{"v":10000,"d":"$10,000"}}]
[{"$nulls":4},"Other Improvements:",null,null,{"$f":"T(COMPS!W25)","v":""},null,null,{"$f":"COMPS!AE25","v":{"v":0,"d":"$0"}},{"$f":"T(COMPS!AJ25)","v":""},null,null,{"$f":"COMPS!AR25","v":{"v":0,"d":"$0"}},{"$f":"T(COMPS!AW25)","v":""},null,null,{"$f":"COMPS!BE25","v":{"v":0,"d":"$0"}},{"$f":"T(COMPS!BJ25)","v":""},null,null,{"$f":"COMPS!BR25","v":{"v":0,"d":"$0"}}]
[]
[]
[]
[{"$nulls":4},"Notes:",null,null,{"$f":"T(COMPS!W26)","v":""},{"$nulls":3},{"$f":"T(COMPS!AJ26)","v":""},{"$nulls":3},{"$f":"T(COMPS!AW26)","v":"Property appears to have been rehabbed and flipped by an investor.  Property has similar finishes to the finishes planned for subject property."},{"$nulls":3},{"$f":"T(COMPS!BJ26)","v":""}]
{"$rows_empty":7}
[{"$nulls":4},"Value w/ Adjustments:",null,null,{"$f":"COMPS!W33","v":{"v":165000,"d":"$165,000"}},{"$nulls":3},{"$f":"COMPS!AJ33","v":{"v":263250,"d":"$263,250"}},{"$nulls":3},{"$f":"COMPS!AW33","v":{"v":260000,"d":"$260,000"}},{"$nulls":3},{"$f":"COMPS!BJ33","v":{"v":265000,"d":"$265,000"}}]
[{"$nulls":4},"Price per SF:",null,null,{"$f":"COMPS!W34","v":{"v":110,"d":"$110"}},{"$nulls":3},{"$f":"COMPS!AJ34","v":{"v":181.55172413793105,"d":"$182"}},{"$nulls":3},{"$f":"COMPS!AW34","v":{"v":172.75747508305648,"d":"$173"}},{"$nulls":3},{"$f":"COMPS!BJ34","v":{"v":189.28571428571428,"d":"$189"}}]
[]
[]
[]
[]
[]
[{"$nulls":4},{"$f":"T(Company_Name)","v":"Dave Inc"},{"$nulls":4},{"$f":"Company_Phone","v":8161234567},{"$nulls":3},{"$f":"T(Company_Email)","v":"dave@venturesheets.com"},{"$nulls":4},{"$f":"T(Company_Website)","v":"www.venturesheets.com"}]
[{"$nulls":3},"COMPARABLES - DETAILS",{"$nulls":15},"Analysis Date:",null,null,{"$f":"TODAY()","v":"2019-06-23"}]
[]
[{"$nulls":4},1,{"$f":"Comparable1_Street_Address","v":"2345 N. Main St"}]
[]
[{"$nulls":5},{"$f":"T(Comparable1_City_State_Zip)","v":"Kansas City, MO 64116"}]
[]
[{"$nulls":5},"Property Information"]
[]
[{"$nulls":5},"Neighborhood:",null,null,{"$f":"T(Comparable1_Neighborhood)","v":"The Coves"}]
[{"$nulls":5},"School District:",null,null,{"$f":"T(Comparable1_School_District)","v":"Park Hill School District"}]
[{"$nulls":5},"List Price/Sales Price:",null,null,{"$f":"Comparable1_List_Price","v":{"v":245000,"d":"$245,000"}}]
[{"$nulls":5},"Current Status:",null,null,{"$f":"T(Comparable1_Status)","v":"Sold"}]
[{"$nulls":5},"Days on Market:",null,null,{"$f":"Comparable1_DOM","v":{"v":54,"d":"54 Days"}}]
[{"$nulls":5},"Beds, Baths, SF",null,null,{"$f":"CONCATENATE(COMPS!AJ16,\" beds, \",COMPS!AJ17,\" baths, \",COMPS!AJ19,\" sf\")","v":"3 beds, 2 baths, 1450 sf"}]
[]
[]
[]
[{"$nulls":4},2,{"$f":"Comparable2_Street_Address","v":"2345 N. Main St"}]
[]
[{"$nulls":5},{"$f":"T(Comparable2_City_State_Zip)","v":"Kansas City, MO 64116"}]
[]
[{"$nulls":5},"Property Information"]
[]
[{"$nulls":5},"Neighborhood:",null,null,{"$f":"T(Comparable2_Neighborhood)","v":"The Coves"}]
[{"$nulls":5},"School District:",null,null,{"$f":"T(Comparable2_School_District)","v":"Park Hill School District"}]
[{"$nulls":5},"List Price/Sales Price:",null,null,{"$f":"Comparable2_List_Price","v":{"v":260000,"d":"$260,000"}}]
[{"$nulls":5},"Current Status:",null,null,{"$f":"T(Comparable2_Status)","v":"Sold"}]
[{"$nulls":5},"Days on Market:",null,null,{"$f":"Comparable2_DOM","v":{"v":45,"d":"45 Days"}}]
[{"$nulls":5},"Beds, Baths, SF",null,null,{"$f":"CONCATENATE(COMPS!AW16,\" beds, \",COMPS!AW17,\" baths, \",COMPS!AW19,\" sf\")","v":"3 beds, 2 baths, 1505 sf"}]
[]
[]
[]
[{"$nulls":4},3,{"$f":"Comparable3_Street_Address","v":"2345 N. Main St"}]
[]
[{"$nulls":5},{"$f":"T(Comparable3_City_State_Zip)","v":"Kansas City, MO 64116"}]
[]
[{"$nulls":5},"Property Information"]
[]
[{"$nulls":5},"Neighborhood:",null,null,{"$f":"T(Comparable3_Neighborhood)","v":"The Coves"}]
[{"$nulls":5},"School District:",null,null,{"$f":"T(Comparable3_School_District)","v":"Park Hill School District"}]
[{"$nulls":5},"List Price/Sales Price:",null,null,{"$f":"Comparable3_List_Price","v":{"v":240000,"d":"$240,000"}}]
[{"$nulls":5},"Current Status:",null,null,{"$f":"T(Comparable3_Status)","v":"Sold"}]
[{"$nulls":5},"Days on Market:",null,null,{"$f":"Comparable3_DOM","v":{"v":40,"d":"40 Days"}}]
[{"$nulls":5},"Beds, Baths, SF",null,null,{"$f":"CONCATENATE(COMPS!BJ16,\" beds, \",COMPS!BJ17,\" baths, \",COMPS!BJ19,\" sf\")","v":"3 beds, 2 baths, 1400 sf"}]
[]
[]
[{"$nulls":4},{"$f":"T(Company_Name)","v":"Dave Inc"},{"$nulls":4},{"$f":"Company_Phone","v":8161234567},{"$nulls":3},{"$f":"T(Company_Email)","v":"dave@venturesheets.com"},{"$nulls":4},{"$f":"T(Company_Website)","v":"www.venturesheets.com"}]
[{"$nulls":3},"COMPARABLES - MAP",{"$nulls":15},"Analysis Date:",null,null,{"$f":"TODAY()","v":"2019-06-23"}]
{"$rows_empty":8}
[{"$nulls":25},"Grab and drop your icons below to your map to indicate your comparable sales locations:"]
{"$rows_empty":12}
[{"$nulls":3},"Comparables Key:",{"$nulls":3},"Property Address"]
[{"$nulls":12},"Beds, Baths, Square Footage",{"$nulls":3},"Sales Date",null,"Sales Price",null,null,"Sales Price/SF"]
[{"$nulls":3},"Subject Property:",{"$nulls":3},{"$f":"CONCATENATE(Property_Street_Address,\", \",Property_City_State_Zip)","v":"1234 Main St, Kansas City, MO 64116"},{"$nulls":4},{"$f":"CONCATENATE(Number_of_Beds,\" beds, \",Number_of_Baths,\" baths, \",Property_Size,\" sf\")","v":"3 beds, 2 baths, 1500 sf"},{"$nulls":3},"N/A",null,{"$f":"COMPS!W10","v":{"v":165000,"d":"$165,000"}},null,null,{"$f":"IFERROR(S120/Property_Size,\"\")","v":{"v":110,"d":"$110.00"}}]
[{"$nulls":3},"Comparable 1:",{"$nulls":3},{"$f":"CONCATENATE(Comparable1_Street_Address,\", \",Comparable1_City_State_Zip)","v":"2345 N. Main St, Kansas City, MO 64116"},{"$nulls":4},{"$f":"CONCATENATE(COMPS!AJ16,\" beds, \",COMPS!AJ17,\" baths, \",COMPS!AJ19,\" sf\")","v":"3 beds, 2 baths, 1450 sf"},{"$nulls":3},{"$f":"IF(COMPS!AJ12=0,\"\",COMPS!AJ12)","v":"2018-08-01"},null,{"$f":"COMPS!AJ10","v":{"v":245000,"d":"$245,000"}},null,null,{"$f":"IFERROR(S121/COMPS!AJ19,\"\")","v":{"v":168.9655172413793,"d":"$169"}}]
[{"$nulls":3},"Comparable 2:",{"$nulls":3},{"$f":"CONCATENATE(Comparable2_Street_Address,\", \",Comparable2_City_State_Zip)","v":"2345 N. Main St, Kansas City, MO 64116"},{"$nulls":4},{"$f":"CONCATENATE(COMPS!AW16,\" beds, \",COMPS!AW17,\" baths, \",COMPS!AW19,\" sf\")","v":"3 beds, 2 baths, 1505 sf"},{"$nulls":3},{"$f":"IF(COMPS!AW12=0,\"\",COMPS!AW12)","v":"2018-07-15"},null,{"$f":"COMPS!AW10","v":{"v":260000,"d":"$260,000"}},null,null,{"$f":"IFERROR(S122/COMPS!AW19,\"\")","v":172.75747508305648}]
[{"$nulls":3},"Comparable 3:",{"$nulls":3},{"$f":"CONCATENATE(Comparable3_Street_Address,\", \",Comparable3_City_State_Zip)","v":"2345 N. Main St, Kansas City, MO 64116"},{"$nulls":4},{"$f":"CONCATENATE(COMPS!BJ16,\" beds, \",COMPS!BJ17,\" baths, \",COMPS!BJ19,\" sf\")","v":"3 beds, 2 baths, 1400 sf"},{"$nulls":3},{"$f":"IF(COMPS!BJ12=0,\"\",COMPS!BJ12)","v":"2018-07-02"},null,{"$f":"COMPS!BJ10","v":{"v":240000,"d":"$240,000"}},null,null,{"$f":"IFERROR(S123/COMPS!BJ19,\"\")","v":171.42857142857142}]
[]
[{"$nulls":4},{"$f":"T(Company_Name)","v":"Dave Inc"},{"$nulls":4},{"$f":"Company_Phone","v":8161234567},{"$nulls":3},{"$f":"T(Company_Email)","v":"dave@venturesheets.com"},{"$nulls":4},{"$f":"T(Company_Website)","v":"www.venturesheets.com"}]
[{"$nulls":3},"© 2016 by HouseFlippingSpreadsheet.com. All rights reserved"]

{"sheet":"RENTAL PACKET","index":37,"n_rows":298,"n_cols":21,"rows_kept":298,"hidden":true,"merged":[[1,1,3,5],[1,18,3,20],[5,6,5,20],[7,16,8,20],[8,6,8,12],[10,6,10,10],[12,6,12,10],[12,11,12,12],[12,13,12,14],[13,11,13,12],[13,13,13,14],[13,16,13,20],[14,6,14,10],[14,11,14,12],[14,13,14,14],[14,16,16,20],[15,6,15,10],[15,11,15,12],[15,13,15,14],[16,6,16,10],[16,11,16,12],[16,13,16,14],[17,6,17,10],[17,11,17,12],[17,13,17,14],[18,6,18,10],[18,11,18,12],[18,13,18,14],[18,16,18,20],[19,6,19,10],[19,11,19,12],[19,13,19,14],[19,16,21,20],[20,6,20,10],[20,11,20,12],[20,13,20,14],[22,6,22,10],[22,11,22,12],[22,13,22,14],[23,16,23,20],[24,6,24,10],[24,16,26,20],[25,6,25,10],[25,11,25,12],[25,13,25,14],[26,6,26,10],[26,11,26,12],[26,13,26,14],[27,6,27,10],[27,11,27,12],[27,13,27,14],[28,16,28,20],[29,6,30,14],[29,16,31,20],[31,11,31,12],[31,13,31,14],[32,6,32,9],[32,11,32,12],[32,13,32,14],[33,6,33,8],[33,11,33,12],[33,13,33,14],[33,16,33,20],[34,6,34,8],[34,11,34,12],[34,13,34,14],[34,16,36,20],[35,6,35,8],[35,11,35,12],[35,13,35,14],[36,6,36,10],[36,11,36,12],[36,13,36,14],[38,6,38,10],[38,11,38,12],[38,13,38,14],[38,16,38,20],[39,16,41,20],[40,6,40,10],[40,11,40,12],[40,13,40,14],[42,6,42,9],[43,6,43,9],[43,11,43,12],[43,13,43,14],[43,16,43,20],[44,6,44,9],[44,11,44,12],[44,13,44,14],[44,16,46,20],[45,6,45,10],[45,11,45,12],[45,13,45,14],[47,6,47,9],[48,6,48,9],[48,11,48,12],[48,13,48,14],[48,16,48,20],[49,6,49,9],[49,11,49,12],[49,13,49,14],[49,16,51,20],[51,6,51,9],[52,6,52,10],[52,11,52,12],[52,13,52,14],[53,6,53,10],[53,11,53,12],[53,13,53,14],[53,16,53,20],[54,6,54,10],[54,11,54,12],[54,13,54,14],[54,16,56,20],[56,6,56,9],[56,11,56,12],[56,13,56,14],[57,6,57,9],[57,11,57,12],[57,13,57,14],[61,6,61,20],[62,6,62,20],[64,16,64,20],[66,6,66,9],[67,6,67,10],[68,6,68,10],[69,6,69,10],[70,6,70,10],[71,6,71,10],[72,6,72,10],[73,6,73,10],[74,6,74,10],[75,6,75,10],[76,6,76,10],[78,6,78,9],[79,6,79,10],[80,6,80,10],[81,6,81,10],[82,6,82,10],[83,6,83,10],[84,6,84,10],[85,6,85,10],[86,6,86,10],[87,6,87,10],[88,6,88,10],[89,6,89,10],[90,6,90,10],[91,6,91,10],[92,6,92,10],[93,6,93,10],[94,6,94,10],[95,6,95,10],[96,6,96,10],[97,6,97,9],[98,6,98,10],[100,6,100,9],[101,6,101,10],[102,6,102,10],[103,6,103,10],[104,6,104,10],[105,6,105,9],[106,6,106,10],[108,6,108,9],[109,6,109,10],[110,6,110,10],[111,6,111,9],[112,6,112,10],[113,6,113,10],[114,6,114,10],[115,6,115,10],[117,6,117,10],[118,6,118,10],[120,6,120,20],[121,6,121,20],[123,16,123,20],[125,6,125,9],[126,6,126,10],[127,6,127,10],[128,6,128,10],[129,6,129,10],[130,6,130,10],[131,6,131,10],[132,6,132,10],[133,6,133,10],[134,6,134,10],[135,6,135,10],[137,6,137,9],[138,6,138,10],[139,6,139,10],[140,6,140,10],[141,6,141,10],[142,6,142,10],[143,6,143,10],[144,6,144,10],[145,6,145,10],[146,6,146,10],[147,6,147,10],[148,6,148,10],[149,6,149,10],[150,6,150,10],[151,6,151,10],[152,6,152,10],[153,6,153,10],[154,6,154,10],[155,6,155,10],[156,6,156,9],[157,6,157,10],[159,6,159,9],[160,6,160,10],[161,6,161,10],[162,6,162,10],[163,6,163,10],[164,6,164,9],[165,6,165,10],[167,6,167,9],[168,6,168,10],[169,6,169,10],[170,6,170,9],[171,6,171,10],[172,6,172,10],[173,6,173,10],[174,6,174,10],[175,6,175,9],[176,6,176,10],[177,6,177,10],[179,6,179,20],[180,6,180,20],[182,16,182,20],[184,6,184,9],[185,6,185,10],[186,6,186,10],[187,6,187,10],[188,6,188,10],[189,6,189,10],[190,6,190,10],[191,6,191,10],[192,6,192,10],[193,6,193,10],[194,6,194,10],[196,6,196,9],[197,6,197,10],[198,6,198,10],[199,6,199,10],[200,6,200,10],[201,6,201,10],[202,6,202,10],[203,6,203,10],[204,6,204,10],[205,6,205,10],[206,6,206,10],[207,6,207,10],[208,6,208,10],[209,6,209,10],[210,6,210,10],[211,6,211,10],[212,6,212,10],[213,6,213,10],[214,6,214,10],[215,6,215,9],[216,6,216,10],[218,6,218,9],[219,6,219,10],[220,6,220,10],[221,6,221,10],[222,6,222,10],[223,6,223,9],[224,6,224,10],[226,6,226,9],[227,6,227,10],[228,6,228,10],[229,6,229,9],[230,6,230,10],[231,6,231,10],[232,6,232,10],[233,6,233,10],[234,6,234,9],[235,6,235,10],[236,6,236,10],[238,6,238,20],[239,6,239,20],[241,16,242,20],[242,6,242,12],[243,6,251,10],[243,11,251,15],[243,16,251,20],[252,6,254,10],[252,11,254,15],[252,16,254,20],[256,6,264,10],[256,11,264,15],[256,16,264,20],[265,6,267,10],[265,11,267,15],[265,16,267,20],[269,6,277,10],[269,11,277,15],[269,16,277,20],[278,6,280,10],[278,11,280,15],[278,16,280,20],[282,6,290,10],[282,11,290,15],[282,16,290,20],[291,6,293,10],[291,11,293,15],[291,16,293,20],[295,6,295,20],[297,0,298,27]]}
[]
[null,"RENTAL INVESTMENT PACKET",{"$nulls":16},"Edit Rental Analysis"]
[]
[]
[]
[{"$nulls":6},{"$f":"CONCATENATE(Street_Address,\", \",City_State_Zip)","v":"1234 Main St, Kansas City, MO 64116"}]
[]
[{"$nulls":6},"RENTAL INVESTMENT"]
[]
[]
[{"$nulls":6},"PURCHASE ANALYSIS"]
[]
[{"$nulls":6},"After Repair Value",{"$nulls":4},{"$f":"'RENTAL PURCHASE SETUP'!AA7","v":{"v":250000,"d":"$250,000"}}]
[{"$nulls":13},"% of ARV",null,null,"AFTER REPAIR VALUE"]
[{"$nulls":6},"Purchase Price",{"$nulls":4},{"$f":"'RENTAL PURCHASE SETUP'!AA10","v":{"v":100000,"d":"$100,000"}},null,{"$f":"IFERROR(L15/'RENTAL PURCHASE SETUP'!$AA$7,0)","v":{"v":0.4,"d":"40%"}},null,null,{"$f":"L13","v":{"v":250000,"d":"$250,000"}}]
[{"$nulls":6},"Buying Costs",{"$nulls":4},{"$f":"'RENTAL PURCHASE SETUP'!AA11","v":{"v":3000,"d":"$3,000"}},null,{"$f":"IFERROR(L16/'RENTAL PURCHASE SETUP'!$AA$7,0)","v":{"v":0.012,"d":"1%"}}]
[{"$nulls":6},"Construction Costs",{"$nulls":4},{"$f":"'RENTAL PURCHASE SETUP'!AA15","v":{"v":52500,"d":"$52,500"}},null,{"$f":"IFERROR(L17/'RENTAL PURCHASE SETUP'!$AA$7,0)","v":{"v":0.21,"d":"21%"}}]
[{"$nulls":6},"Holding Costs",{"$nulls":4},{"$f":"'RENTAL PURCHASE SETUP'!AA24","v":{"v":2190,"d":"$2,190"}},null,{"$f":"IFERROR(L18/'RENTAL PURCHASE SETUP'!$AA$7,0)","v":{"v":0.00876,"d":"1%"}}]
[{"$nulls":6},"Financing Costs",{"$nulls":4},{"$f":"'RENTAL PURCHASE SETUP'!AA53","v":{"v":0,"d":"$0"}},null,{"$f":"IFERROR(L19/'RENTAL PURCHASE SETUP'!$AA$7,0)","v":{"v":0,"d":"0%"}},null,null,"TOTAL PROJECT COSTS"]
[{"$nulls":6},"Selling Costs",{"$nulls":4},{"$f":"'RENTAL PURCHASE SETUP'!AA28","v":{"v":17500,"d":"$17,500"}},null,{"$f":"IFERROR(L20/'RENTAL PURCHASE SETUP'!$AA$7,0)","v":{"v":0.07,"d":"7%"}},null,null,{"$f":"L21","v":{"v":175190,"d":"$175,190"}}]
[{"$nulls":6},"Total Project Costs",{"$nulls":4},{"$f":"SUM(L15:M20)","v":{"v":175190,"d":"$175,190"}},null,{"$f":"IFERROR(L21/'RENTAL PURCHASE SETUP'!$AA$7,0)","v":{"v":0.70076,"d":"70%"}}]
[]
[{"$nulls":6},"PROFIT/EQUITY FROM REHAB",{"$nulls":4},{"$f":"L13-L21","v":{"v":74810,"d":"$74,810"}},null,{"$f":"1-N21","v":{"v":0.29923999999999995,"d":"30%"}}]
[{"$nulls":16},"PROFIT/EQUITY FROM REHAB"]
[{"$nulls":6},"LONG-TERM FINANCING",{"$nulls":9},{"$f":"L23","v":{"v":74810,"d":"$74,810"}}]
[{"$nulls":6},"Total Project Costs (excl. Selling)",{"$nulls":4},{"$f":"L21-L20","v":{"v":157690,"d":"$157,690"}},null,{"$f":"IFERROR(L26/'RENTAL PURCHASE SETUP'!$AA$7,0)","v":{"v":0.63076,"d":"63%"}}]
[{"$nulls":6},"Long Term Financing",{"$nulls":4},{"$f":"-'RENTAL LOAN SETUP'!AA9","v":{"v":-175000,"d":"-$175,000"}}]
[{"$nulls":6},"INVESTOR CASH IN DEAL",{"$nulls":4},{"$f":"SUM(L26:M27)","v":{"v":-17310,"d":"-$17,310"}},null,{"$f":"1-N26","v":{"v":0.36924,"d":"37%"}}]
[{"$nulls":16},"INVESTOR CASH IN DEAL"]
[{"$nulls":6},"RENTAL PRO FORMA - YEAR 1",{"$nulls":9},{"$f":"L28","v":{"v":-17310,"d":"-$17,310"}}]
[]
[{"$nulls":6},"Revenues",{"$nulls":4},"monthly",null,"yearly"]
[{"$nulls":6},"Monthly Rental Income",{"$nulls":4},{"$f":"'RENTAL ANALYSIS'!U23","v":{"v":1250,"d":"$1,250"}},null,{"$f":"'RENTAL ANALYSIS'!V23","v":{"v":15000,"d":"$15,000"}}]
[{"$nulls":6},"Vacancy Loss",{"$nulls":4},{"$f":"N34/12","v":{"v":0,"d":"$0"}},null,{"$f":"'RENTAL ANALYSIS'!Y24","v":{"v":0,"d":"$0"}},null,null,"MONTHLY RENTAL INCOME"]
[{"$nulls":6},"Tenant Concessions",{"$nulls":4},{"$f":"N35/12","v":{"v":0,"d":"$0"}},null,{"$f":"'RENTAL ANALYSIS'!Y25","v":{"v":0,"d":"$0"}},null,null,{"$f":"L37","v":{"v":1250,"d":"$1,250 /mo"}}]
[{"$nulls":6},"Other Income",{"$nulls":4},{"$f":"N36/12","v":{"v":0,"d":"$0"}},null,{"$f":"'RENTAL ANALYSIS'!Y26","v":{"v":0,"d":"$0"}}]
[{"$nulls":6},"Gross Operating Income",{"$nulls":4},{"$f":"'RENTAL ANALYSIS'!U27","v":{"v":1250,"d":"$1,250"}},null,{"$f":"'RENTAL ANALYSIS'!V27","v":{"v":15000,"d":"$15,000"}}]
[]
[{"$nulls":6},"Operating Expenses",{"$nulls":4},{"$f":"'RENTAL ANALYSIS'!U48","v":{"v":-550,"d":"-$550"}},null,{"$f":"'RENTAL ANALYSIS'!V48","v":{"v":-6600,"d":"-$6,600"}},null,null,"MONTHLY CASH FLOW"]
[{"$nulls":16},{"$f":"L49","v":{"v":-239.43784027124335,"d":"-$239 /mo"}}]
[{"$nulls":6},"Net Operating Income",{"$nulls":4},{"$f":"'RENTAL ANALYSIS'!U50","v":{"v":700,"d":"$700"}},null,{"$f":"'RENTAL ANALYSIS'!V50","v":{"v":8400,"d":"$8,400"}}]
[]
[{"$nulls":6},"Financing"]
[{"$nulls":6},"Mortgage Payment  (interest)",{"$nulls":4},{"$f":"IFERROR(N44/12,\"\")","v":{"v":-724.2803940426526,"d":"-$724"}},null,{"$f":"'RENTAL ANALYSIS'!Y53","v":{"v":-8691.364728511831,"d":"-$8,691"}},null,null,"LEVERED CASH-ON-CASH ROI"]
[{"$nulls":6},"Mortgage Payment (principal)",{"$nulls":4},{"$f":"IFERROR(N45/12,\"\")","v":{"v":-215.15744622859083,"d":"-$215"}},null,{"$f":"'RENTAL ANALYSIS'!Y54","v":{"v":-2581.88935474309,"d":"-$2,582"}},null,null,{"$f":"N50","v":"inf %"}]
[{"$nulls":6},"Total Financing",{"$nulls":4},{"$f":"N46/12","v":{"v":-939.4378402712433,"d":"-$939"}},null,{"$f":"SUM(N44:O45)","v":{"v":-11273.25408325492,"d":"-$11,273"}}]
[]
[{"$nulls":6},"Cash Flow"]
[{"$nulls":6},"Cash Flow After Debt",{"$nulls":4},{"$f":"N49/12","v":{"v":-239.43784027124335,"d":"-$239"}},null,{"$f":"'RENTAL ANALYSIS'!Y70","v":{"v":-2873.2540832549203,"d":"-$2,873"}},null,null,"TOTAL RETURN (cash + equity)"]
[{"$nulls":6},"Levered Cash on Cash ROI",{"$nulls":4},{"$f":"IFERROR(IF(N50=\"inf %\",\"inf %\",N50/12),\"\")","v":"inf %"},null,{"$f":"'RENTAL ANALYSIS'!Y72","v":"inf %"},null,null,{"$f":"L57","v":{"v":509.5737726240118,"d":"$510 /mo"}}]
[]
[{"$nulls":6},"Equity"]
[{"$nulls":6},"Equity Earned (principal paydown)",{"$nulls":4},{"$f":"'RENTAL ANALYSIS'!U76","v":{"v":215.15744622859083,"d":"$215"}},null,{"$f":"L53*12","v":{"v":2581.88935474309,"d":"$2,582"}}]
[{"$nulls":6},"Equity Earned (property appreciation)",{"$nulls":4},{"$f":"'RENTAL ANALYSIS'!U77","v":{"v":533.8541666666642,"d":"$534"}},null,{"$f":"L54*12","v":{"v":6406.249999999971,"d":"$6,406"}},null,null,"TOTAL RETURN %"]
[{"$nulls":6},"Total Equity Earned",{"$nulls":4},{"$f":"SUM(L53:M54)","v":{"v":749.0116128952551,"d":"$749"}},null,{"$f":"SUM(N53:O54)","v":{"v":8988.13935474306,"d":"$8,988"}},null,null,{"$f":"IFERROR(N58,0)","v":"inf %"}]
[]
[{"$nulls":6},"Total Return (cash + equity)",{"$nulls":4},{"$f":"L55+L49","v":{"v":509.5737726240118,"d":"$510"}},null,{"$f":"N55+N49","v":{"v":6114.88527148814,"d":"$6,115"}}]
[{"$nulls":6},"Total ROI (cash + equity)",{"$nulls":4},{"$f":"IFERROR(IF($Q$30<0,\"inf %\",L57/$Q$30),0)","v":"inf %"},null,{"$f":"IFERROR(IF($Q$30<0,\"inf %\",N57/$Q$30),0)","v":"inf %"}]
[]
[]
[]
[{"$nulls":6},{"$f":"CONCATENATE(\"Report Prepared By: \",Investor_Name,\"  |  \",Company_Name,\"  |  \",Company_Email,\"  |  \",Company_Email)","v":"Report Prepared By: Dave  |  Dave Inc  |  dave@venturesheets.com  |  dave@venturesheets.com"}]
[{"$nulls":6},{"$f":"CONCATENATE(Street_Address,\", \",City_State_Zip)","v":"1234 Main St, Kansas City, MO 64116"}]
[]
[{"$nulls":6},"CASH FLOW REPORT"]
[]
[{"$nulls":6},"Revenues",{"$nulls":4},1,2,3,4,5,6,7,8,9,10]
[{"$nulls":6},{"$f":"T('RENTAL ANALYSIS'!D18:M18)","v":"Rental Unit 1  -  ( units, square feet, beds, baths)"},{"$nulls":4},{"$f":"'RENTAL ANALYSIS'!Y18","v":{"v":15000,"d":"15,000"}},{"$f":"'RENTAL ANALYSIS'!Z18","v":{"v":15150,"d":"15,150"}},{"$f":"'RENTAL ANALYSIS'!AA18","v":{"v":15301.5,"d":"15,302"}},{"$f":"'RENTAL ANALYSIS'!AB18","v":{"v":15454.515,"d":"15,455"}},{"$f":"'RENTAL ANALYSIS'!AC18","v":{"v":15609.06015,"d":"15,609"}},{"$f":"'RENTAL ANALYSIS'!AD18","v":{"v":15765.1507515,"d":"15,765"}},{"$f":"'RENTAL ANALYSIS'!AE18","v":{"v":15922.802259015,"d":"15,923"}},{"$f":"'RENTAL ANALYSIS'!AF18","v":{"v":16082.03028160515,"d":"16,082"}},{"$f":"'RENTAL ANALYSIS'!AG18","v":{"v":16242.850584421201,"d":"16,243"}},{"$f":"'RENTAL ANALYSIS'!AH18","v":{"v":16405.279090265412,"d":"16,405"}}]
[{"$nulls":6},{"$f":"T('RENTAL ANALYSIS'!D19:M19)","v":"Rental Unit 2  -  ( units, square feet, beds, baths)"},{"$nulls":4},{"$f":"'RENTAL ANALYSIS'!Y19","v":0},{"$f":"'RENTAL ANALYSIS'!Z19","v":0},{"$f":"'RENTAL ANALYSIS'!AA19","v":0},{"$f":"'RENTAL ANALYSIS'!AB19","v":0},{"$f":"'RENTAL ANALYSIS'!AC19","v":0},{"$f":"'RENTAL ANALYSIS'!AD19","v":0},{"$f":"'RENTAL ANALYSIS'!AE19","v":0},{"$f":"'RENTAL ANALYSIS'!AF19","v":0},{"$f":"'RENTAL ANALYSIS'!AG19","v":0},{"$f":"'RENTAL ANALYSIS'!AH19","v":0}]
[{"$nulls":6},{"$f":"T('RENTAL ANALYSIS'!D20:M20)","v":"Rental Unit 3  -  ( units, square feet, beds, baths)"},{"$nulls":4},{"$f":"'RENTAL ANALYSIS'!Y20","v":0},{"$f":"'RENTAL ANALYSIS'!Z20","v":0},{"$f":"'RENTAL ANALYSIS'!AA20","v":0},{"$f":"'RENTAL ANALYSIS'!AB20","v":0},{"$f":"'RENTAL ANALYSIS'!AC20","v":0},{"$f":"'RENTAL ANALYSIS'!AD20","v":0},{"$f":"'RENTAL ANALYSIS'!AE20","v":0},{"$f":"'RENTAL ANALYSIS'!AF20","v":0},{"$f":"'RENTAL ANALYSIS'!AG20","v":0},{"$f":"'RENTAL ANALYSIS'!AH20","v":0}]
[{"$nulls":6},{"$f":"T('RENTAL ANALYSIS'!D21:M21)","v":"Rental Unit 4  -  ( units, square feet, beds, baths)"},{"$nulls":4},{"$f":"'RENTAL ANALYSIS'!Y21","v":0},{"$f":"'RENTAL ANALYSIS'!Z21","v":0},{"$f":"'RENTAL ANALYSIS'!AA21","v":0},{"$f":"'RENTAL ANALYSIS'!AB21","v":0},{"$f":"'RENTAL ANALYSIS'!AC21","v":0},{"$f":"'RENTAL ANALYSIS'!AD21","v":0},{"$f":"'RENTAL ANALYSIS'!AE21","v":0},{"$f":"'RENTAL ANALYSIS'!AF21","v":0},{"$f":"'RENTAL ANALYSIS'!AG21","v":0},{"$f":"'RENTAL ANALYSIS'!AH21","v":0}]
[{"$nulls":6},{"$f":"T('RENTAL ANALYSIS'!D22:M22)","v":"Rental Unit 5  -  ( units, square feet, beds, baths)"},{"$nulls":4},{"$f":"'RENTAL ANALYSIS'!Y22","v":0},{"$f":"'RENTAL ANALYSIS'!Z22","v":0},{"$f":"'RENTAL ANALYSIS'!AA22","v":0},{"$f":"'RENTAL ANALYSIS'!AB22","v":0},{"$f":"'RENTAL ANALYSIS'!AC22","v":0},{"$f":"'RENTAL ANALYSIS'!AD22","v":0},{"$f":"'RENTAL ANALYSIS'!AE22","v":0},{"$f":"'RENTAL ANALYSIS'!AF22","v":0},{"$f":"'RENTAL ANALYSIS'!AG22","v":0},{"$f":"'RENTAL ANALYSIS'!AH22","v":0}]
[{"$nulls":6},"GROSS SCHEDULED INCOME",{"$nulls":4},{"$f":"'RENTAL ANALYSIS'!Y23","v":{"v":15000,"d":"15,000"}},{"$f":"'RENTAL ANALYSIS'!Z23","v":{"v":15150,"d":"15,150"}},{"$f":"'RENTAL ANALYSIS'!AA23","v":{"v":15301.5,"d":"15,302"}},{"$f":"'RENTAL ANALYSIS'!AB23","v":{"v":15454.515,"d":"15,455"}},{"$f":"'RENTAL ANALYSIS'!AC23","v":{"v":15609.06015,"d":"15,609"}},{"$f":"'RENTAL ANALYSIS'!AD23","v":{"v":15765.1507515,"d":"15,765"}},{"$f":"'RENTAL ANALYSIS'!AE23","v":{"v":15922.802259015,"d":"15,923"}},{"$f":"'RENTAL ANALYSIS'!AF23","v":{"v":16082.03028160515,"d":"16,082"}},{"$f":"'RENTAL ANALYSIS'!AG23","v":{"v":16242.850584421201,"d":"16,243"}},{"$f":"'RENTAL ANALYSIS'!AH23","v":{"v":16405.279090265412,"d":"16,405"}}]
[{"$nulls":6},"Vacancy Loss Amount",{"$nulls":4},{"$f":"'RENTAL ANALYSIS'!Y24","v":0},{"$f":"'RENTAL ANALYSIS'!Z24","v":0},{"$f":"'RENTAL ANALYSIS'!AA24","v":0},{"$f":"'RENTAL ANALYSIS'!AB24","v":0},{"$f":"'RENTAL ANALYSIS'!AC24","v":0},{"$f":"'RENTAL ANALYSIS'!AD24","v":0},{"$f":"'RENTAL ANALYSIS'!AE24","v":0},{"$f":"'RENTAL ANALYSIS'!AF24","v":0},{"$f":"'RENTAL ANALYSIS'!AG24","v":0},{"$f":"'RENTAL ANALYSIS'!AH24","v":0}]
[{"$nulls":6},"Tenant Concessions",{"$nulls":4},{"$f":"'RENTAL ANALYSIS'!Y25","v":0},{"$f":"'RENTAL ANALYSIS'!Z25","v":0},{"$f":"'RENTAL ANALYSIS'!AA25","v":0},{"$f":"'RENTAL ANALYSIS'!AB25","v":0},{"$f":"'RENTAL ANALYSIS'!AC25","v":0},{"$f":"'RENTAL ANALYSIS'!AD25","v":0},{"$f":"'RENTAL ANALYSIS'!AE25","v":0},{"$f":"'RENTAL ANALYSIS'!AF25","v":0},{"$f":"'RENTAL ANALYSIS'!AG25","v":0},{"$f":"'RENTAL ANALYSIS'!AH25","v":0}]
[{"$nulls":6},"Other Income",{"$nulls":4},{"$f":"'RENTAL ANALYSIS'!Y26","v":0},{"$f":"'RENTAL ANALYSIS'!Z26","v":0},{"$f":"'RENTAL ANALYSIS'!AA26","v":0},{"$f":"'RENTAL ANALYSIS'!AB26","v":0},{"$f":"'RENTAL ANALYSIS'!AC26","v":0},{"$f":"'RENTAL ANALYSIS'!AD26","v":0},{"$f":"'RENTAL ANALYSIS'!AE26","v":0},{"$f":"'RENTAL ANALYSIS'!AF26","v":0},{"$f":"'RENTAL ANALYSIS'!AG26","v":0},{"$f":"'RENTAL ANALYSIS'!AH26","v":0}]
[{"$nulls":6},"Gross Operating Income",{"$nulls":4},{"$f":"'RENTAL ANALYSIS'!Y27","v":{"v":15000,"d":"15,000"}},{"$f":"'RENTAL ANALYSIS'!Z27","v":{"v":15150,"d":"15,150"}},{"$f":"'RENTAL ANALYSIS'!AA27","v":{"v":15301.5,"d":"15,302"}},{"$f":"'RENTAL ANALYSIS'!AB27","v":{"v":15454.515,"d":"15,455"}},{"$f":"'RENTAL ANALYSIS'!AC27","v":{"v":15609.06015,"d":"15,609"}},{"$f":"'RENTAL ANALYSIS'!AD27","v":{"v":15765.1507515,"d":"15,765"}},{"$f":"'RENTAL ANALYSIS'!AE27","v":{"v":15922.802259015,"d":"15,923"}},{"$f":"'RENTAL ANALYSIS'!AF27","v":{"v":16082.03028160515,"d":"16,082"}},{"$f":"'RENTAL ANALYSIS'!AG27","v":{"v":16242.850584421201,"d":"16,243"}},{"$f":"'RENTAL ANALYSIS'!AH27","v":{"v":16405.279090265412,"d":"16,405"}}]
[]
[{"$nulls":6},"Operating Expenses"]
[{"$nulls":6},{"$f":"T('RENTAL ANALYSIS'!D31:M31)","v":"Property Taxes"},{"$nulls":4},{"$f":"'RENTAL ANALYSIS'!Y31","v":{"v":-2000,"d":"-2,000"}},{"$f":"'RENTAL ANALYSIS'!Z31","v":{"v":-2020,"d":"-2,020"}},{"$f":"'RENTAL ANALYSIS'!AA31","v":{"v":-2040.2,"d":"-2,040"}},{"$f":"'RENTAL ANALYSIS'!AB31","v":{"v":-2060.602,"d":"-2,061"}},{"$f":"'RENTAL ANALYSIS'!AC31","v":{"v":-2081.20802,"d":"-2,081"}},{"$f":"'RENTAL ANALYSIS'!AD31","v":{"v":-2102.0201002,"d":"-2,102"}},{"$f":"'RENTAL ANALYSIS'!AE31","v":{"v":-2123.0403012019997,"d":"-2,123"}},{"$f":"'RENTAL ANALYSIS'!AF31","v":{"v":-2144.2707042140196,"d":"-2,144"}},{"$f":"'RENTAL ANALYSIS'!AG31","v":{"v":-2165.71341125616,"d":"-2,166"}},{"$f":"'RENTAL ANALYSIS'!AH31","v":{"v":-2187.3705453687217,"d":"-2,187"}}]
[{"$nulls":6},{"$f":"T('RENTAL ANALYSIS'!D32:M32)","v":"Property Insurance"},{"$nulls":4},{"$f":"'RENTAL ANALYSIS'!Y32","v":-100},{"$f":"'RENTAL ANALYSIS'!Z32","v":-101},{"$f":"'RENTAL ANALYSIS'!AA32","v":{"v":-102.01,"d":"-102"}},{"$f":"'RENTAL ANALYSIS'!AB32","v":{"v":-103.0301,"d":"-103"}},{"$f":"'RENTAL ANALYSIS'!AC32","v":{"v":-104.060401,"d":"-104"}},{"$f":"'RENTAL ANALYSIS'!AD32","v":{"v":-105.10100501,"d":"-105"}},{"$f":"'RENTAL ANALYSIS'!AE32","v":{"v":-106.1520150601,"d":"-106"}},{"$f":"'RENTAL ANALYSIS'!AF32","v":{"v":-107.213535210701,"d":"-107"}},{"$f":"'RENTAL ANALYSIS'!AG32","v":{"v":-108.28567056280801,"d":"-108"}},{"$f":"'RENTAL ANALYSIS'!AH32","v":{"v":-109.36852726843608,"d":"-109"}}]
[{"$nulls":6},{"$f":"T('RENTAL ANALYSIS'!D33:M33)","v":"Cleaning and Maintenance:"},{"$nulls":4},{"$f":"'RENTAL ANALYSIS'!Y33","v":0},{"$f":"'RENTAL ANALYSIS'!Z33","v":0},{"$f":"'RENTAL ANALYSIS'!AA33","v":0},{"$f":"'RENTAL ANALYSIS'!AB33","v":0},{"$f":"'RENTAL ANALYSIS'!AC33","v":0},{"$f":"'RENTAL ANALYSIS'!AD33","v":0},{"$f":"'RENTAL ANALYSIS'!AE33","v":0},{"$f":"'RENTAL ANALYSIS'!AF33","v":0},{"$f":"'RENTAL ANALYSIS'!AG33","v":0},{"$f":"'RENTAL ANALYSIS'!AH33","v":0}]
[{"$nulls":6},{"$f":"T('RENTAL ANALYSIS'!D34:M34)","v":"HOA Dues:"},{"$nulls":4},{"$f":"'RENTAL ANALYSIS'!Y34","v":0},{"$f":"'RENTAL ANALYSIS'!Z34","v":0},{"$f":"'RENTAL ANALYSIS'!AA34","v":0},{"$f":"'RENTAL ANALYSIS'!AB34","v":0},{"$f":"'RENTAL ANALYSIS'!AC34","v":0},{"$f":"'RENTAL ANALYSIS'!AD34","v":0},{"$f":"'RENTAL ANALYSIS'!AE34","v":0},{"$f":"'RENTAL ANALYSIS'!AF34","v":0},{"$f":"'RENTAL ANALYSIS'!AG34","v":0},{"$f":"'RENTAL ANALYSIS'!AH34","v":0}]
[{"$nulls":6},{"$f":"T('RENTAL ANALYSIS'!D35:M35)","v":"Lawn and Groundskeeping:"},{"$nulls":4},{"$f":"'RENTAL ANALYSIS'!Y35","v":0},{"$f":"'RENTAL ANALYSIS'!Z35","v":0},{"$f":"'RENTAL ANALYSIS'!AA35","v":0},{"$f":"'RENTAL ANALYSIS'!AB35","v":0},{"$f":"'RENTAL ANALYSIS'!AC35","v":0},{"$f":"'RENTAL ANALYSIS'!AD35","v":0},{"$f":"'RENTAL ANALYSIS'!AE35","v":0},{"$f":"'RENTAL ANALYSIS'!AF35","v":0},{"$f":"'RENTAL ANALYSIS'!AG35","v":0},{"$f":"'RENTAL ANALYSIS'!AH35","v":0}]
[{"$nulls":6},{"$f":"T('RENTAL ANALYSIS'!D36:M36)","v":"Auto and Travel:"},{"$nulls":4},{"$f":"'RENTAL ANALYSIS'!Y36","v":0},{"$f":"'RENTAL ANALYSIS'!Z36","v":0},{"$f":"'RENTAL ANALYSIS'!AA36","v":0},{"$f":"'RENTAL ANALYSIS'!AB36","v":0},{"$f":"'RENTAL ANALYSIS'!AC36","v":0},{"$f":"'RENTAL ANALYSIS'!AD36","v":0},{"$f":"'RENTAL ANALYSIS'!AE36","v":0},{"$f":"'RENTAL ANALYSIS'!AF36","v":0},{"$f":"'RENTAL ANALYSIS'!AG36","v":0},{"$f":"'RENTAL ANALYSIS'!AH36","v":0}]
[{"$nulls":6},{"$f":"T('RENTAL ANALYSIS'!D37:M37)","v":"Electrical Utilities:"},{"$nulls":4},{"$f":"'RENTAL ANALYSIS'!Y37","v":0},{"$f":"'RENTAL ANALYSIS'!Z37","v":0},{"$f":"'RENTAL ANALYSIS'!AA37","v":0},{"$f":"'RENTAL ANALYSIS'!AB37","v":0},{"$f":"'RENTAL ANALYSIS'!AC37","v":0},{"$f":"'RENTAL ANALYSIS'!AD37","v":0},{"$f":"'RENTAL ANALYSIS'!AE37","v":0},{"$f":"'RENTAL ANALYSIS'!AF37","v":0},{"$f":"'RENTAL ANALYSIS'!AG37","v":0},{"$f":"'RENTAL ANALYSIS'!AH37","v":0}]
[{"$nulls":6},{"$f":"T('RENTAL ANALYSIS'!D38:M38)","v":"Water Utilities:"},{"$nulls":4},{"$f":"'RENTAL ANALYSIS'!Y38","v":0},{"$f":"'RENTAL ANALYSIS'!Z38","v":0},{"$f":"'RENTAL ANALYSIS'!AA38","v":0},{"$f":"'RENTAL ANALYSIS'!AB38","v":0},{"$f":"'RENTAL ANALYSIS'!AC38","v":0},{"$f":"'RENTAL ANALYSIS'!AD38","v":0},{"$f":"'RENTAL ANALYSIS'!AE38","v":0},{"$f":"'RENTAL ANALYSIS'!AF38","v":0},{"$f":"'RENTAL ANALYSIS'!AG38","v":0},{"$f":"'RENTAL ANALYSIS'!AH38","v":0}]
[{"$nulls":6},{"$f":"T('RENTAL ANALYSIS'!D39:M39)","v":"Gas Utilities:"},{"$nulls":4},{"$f":"'RENTAL ANALYSIS'!Y39","v":0},{"$f":"'RENTAL ANALYSIS'!Z39","v":0},{"$f":"'RENTAL ANALYSIS'!AA39","v":0},{"$f":"'RENTAL ANALYSIS'!AB39","v":0},{"$f":"'RENTAL ANALYSIS'!AC39","v":0},{"$f":"'RENTAL ANALYSIS'!AD39","v":0},{"$f":"'RENTAL ANALYSIS'!AE39","v":0},{"$f":"'RENTAL ANALYSIS'!AF39","v":0},{"$f":"'RENTAL ANALYSIS'!AG39","v":0},{"$f":"'RENTAL ANALYSIS'!AH39","v":0}]
[{"$nulls":6},{"$f":"T('RENTAL ANALYSIS'!D40:M40)","v":"Garbage:"},{"$nulls":4},{"$f":"'RENTAL ANALYSIS'!Y40","v":0},{"$f":"'RENTAL ANALYSIS'!Z40","v":0},{"$f":"'RENTAL ANALYSIS'!AA40","v":0},{"$f":"'RENTAL ANALYSIS'!AB40","v":0},{"$f":"'RENTAL ANALYSIS'!AC40","v":0},{"$f":"'RENTAL ANALYSIS'!AD40","v":0},{"$f":"'RENTAL ANALYSIS'!AE40","v":0},{"$f":"'RENTAL ANALYSIS'!AF40","v":0},{"$f":"'RENTAL ANALYSIS'!AG40","v":0},{"$f":"'RENTAL ANALYSIS'!AH40","v":0}]
[{"$nulls":6},{"$f":"T('RENTAL ANALYSIS'!D41:M41)","v":"Advertising:"},{"$nulls":4},{"$f":"'RENTAL ANALYSIS'!Y41","v":0},{"$f":"'RENTAL ANALYSIS'!Z41","v":0},{"$f":"'RENTAL ANALYSIS'!AA41","v":0},{"$f":"'RENTAL ANALYSIS'!AB41","v":0},{"$f":"'RENTAL ANALYSIS'!AC41","v":0},{"$f":"'RENTAL ANALYSIS'!AD41","v":0},{"$f":"'RENTAL ANALYSIS'!AE41","v":0},{"$f":"'RENTAL ANALYSIS'!AF41","v":0},{"$f":"'RENTAL ANALYSIS'!AG41","v":0},{"$f":"'RENTAL ANALYSIS'!AH41","v":0}]
[{"$nulls":6},{"$f":"T('RENTAL ANALYSIS'!D42:M42)","v":"Accounting & Legal:"},{"$nulls":4},{"$f":"'RENTAL ANALYSIS'!Y42","v":0},{"$f":"'RENTAL ANALYSIS'!Z42","v":0},{"$f":"'RENTAL ANALYSIS'!AA42","v":0},{"$f":"'RENTAL ANALYSIS'!AB42","v":0},{"$f":"'RENTAL ANALYSIS'!AC42","v":0},{"$f":"'RENTAL ANALYSIS'!AD42","v":0},{"$f":"'RENTAL ANALYSIS'!AE42","v":0},{"$f":"'RENTAL ANALYSIS'!AF42","v":0},{"$f":"'RENTAL ANALYSIS'!AG42","v":0},{"$f":"'RENTAL ANALYSIS'!AH42","v":0}]
[{"$nulls":6},{"$f":"T('RENTAL ANALYSIS'!D43:M43)","v":"Other 1:"},{"$nulls":4},{"$f":"'RENTAL ANALYSIS'!Y43","v":0},{"$f":"'RENTAL ANALYSIS'!Z43","v":0},{"$f":"'RENTAL ANALYSIS'!AA43","v":0},{"$f":"'RENTAL ANALYSIS'!AB43","v":0},{"$f":"'RENTAL ANALYSIS'!AC43","v":0},{"$f":"'RENTAL ANALYSIS'!AD43","v":0},{"$f":"'RENTAL ANALYSIS'!AE43","v":0},{"$f":"'RENTAL ANALYSIS'!AF43","v":0},{"$f":"'RENTAL ANALYSIS'!AG43","v":0},{"$f":"'RENTAL ANALYSIS'!AH43","v":0}]
[{"$nulls":6},{"$f":"T('RENTAL ANALYSIS'!D44:M44)","v":"Other 2:"},{"$nulls":4},{"$f":"'RENTAL ANALYSIS'!Y44","v":0},{"$f":"'RENTAL ANALYSIS'!Z44","v":0},{"$f":"'RENTAL ANALYSIS'!AA44","v":0},{"$f":"'RENTAL ANALYSIS'!AB44","v":0},{"$f":"'RENTAL ANALYSIS'!AC44","v":0},{"$f":"'RENTAL ANALYSIS'!AD44","v":0},{"$f":"'RENTAL ANALYSIS'!AE44","v":0},{"$f":"'RENTAL ANALYSIS'!AF44","v":0},{"$f":"'RENTAL ANALYSIS'!AG44","v":0},{"$f":"'RENTAL ANALYSIS'!AH44","v":0}]
[{"$nulls":6},{"$f":"T('RENTAL ANALYSIS'!D45:M45)","v":"Property Management:"},{"$nulls":4},{"$f":"'RENTAL ANALYSIS'!Y45","v":{"v":-1500,"d":"-1,500"}},{"$f":"'RENTAL ANALYSIS'!Z45","v":{"v":-1515,"d":"-1,515"}},{"$f":"'RENTAL ANALYSIS'!AA45","v":{"v":-1530.15,"d":"-1,530"}},{"$f":"'RENTAL ANALYSIS'!AB45","v":{"v":-1545.4515000000001,"d":"-1,545"}},{"$f":"'RENTAL ANALYSIS'!AC45","v":{"v":-1560.9060150000003,"d":"-1,561"}},{"$f":"'RENTAL ANALYSIS'!AD45","v":{"v":-1576.5150751500003,"d":"-1,577"}},{"$f":"'RENTAL ANALYSIS'!AE45","v":{"v":-1592.2802259015002,"d":"-1,592"}},{"$f":"'RENTAL ANALYSIS'!AF45","v":{"v":-1608.2030281605153,"d":"-1,608"}},{"$f":"'RENTAL ANALYSIS'!AG45","v":{"v":-1624.2850584421203,"d":"-1,624"}},{"$f":"'RENTAL ANALYSIS'!AH45","v":{"v":-1640.5279090265415,"d":"-1,641"}}]
[{"$nulls":6},{"$f":"T('RENTAL ANALYSIS'!D46:M46)","v":"Repairs:"},{"$nulls":4},{"$f":"'RENTAL ANALYSIS'!Y46","v":{"v":-1500,"d":"-1,500"}},{"$f":"'RENTAL ANALYSIS'!Z46","v":{"v":-1515,"d":"-1,515"}},{"$f":"'RENTAL ANALYSIS'!AA46","v":{"v":-1530.15,"d":"-1,530"}},{"$f":"'RENTAL ANALYSIS'!AB46","v":{"v":-1545.4515000000001,"d":"-1,545"}},{"$f":"'RENTAL ANALYSIS'!AC46","v":{"v":-1560.9060150000003,"d":"-1,561"}},{"$f":"'RENTAL ANALYSIS'!AD46","v":{"v":-1576.5150751500003,"d":"-1,577"}},{"$f":"'RENTAL ANALYSIS'!AE46","v":{"v":-1592.2802259015002,"d":"-1,592"}},{"$f":"'RENTAL ANALYSIS'!AF46","v":{"v":-1608.2030281605153,"d":"-1,608"}},{"$f":"'RENTAL ANALYSIS'!AG46","v":{"v":-1624.2850584421203,"d":"-1,624"}},{"$f":"'RENTAL ANALYSIS'!AH46","v":{"v":-1640.5279090265415,"d":"-1,641"}}]
[{"$nulls":6},{"$f":"T('RENTAL ANALYSIS'!D47:M47)","v":"Cap Ex:"},{"$nulls":4},{"$f":"'RENTAL ANALYSIS'!Y47","v":{"v":-1500,"d":"-1,500"}},{"$f":"'RENTAL ANALYSIS'!Z47","v":{"v":-1515,"d":"-1,515"}},{"$f":"'RENTAL ANALYSIS'!AA47","v":{"v":-1530.15,"d":"-1,530"}},{"$f":"'RENTAL ANALYSIS'!AB47","v":{"v":-1545.4515000000001,"d":"-1,545"}},{"$f":"'RENTAL ANALYSIS'!AC47","v":{"v":-1560.9060150000003,"d":"-1,561"}},{"$f":"'RENTAL ANALYSIS'!AD47","v":{"v":-1576.5150751500003,"d":"-1,577"}},{"$f":"'RENTAL ANALYSIS'!AE47","v":{"v":-1592.2802259015002,"d":"-1,592"}},{"$f":"'RENTAL ANALYSIS'!AF47","v":{"v":-1608.2030281605153,"d":"-1,608"}},{"$f":"'RENTAL ANALYSIS'!AG47","v":{"v":-1624.2850584421203,"d":"-1,624"}},{"$f":"'RENTAL ANALYSIS'!AH47","v":{"v":-1640.5279090265415,"d":"-1,641"}}]
[{"$nulls":6},"Total Operating Expenses",{"$nulls":4},{"$f":"'RENTAL ANALYSIS'!Y48","v":{"v":-6600,"d":"-6,600"}},{"$f":"'RENTAL ANALYSIS'!Z48","v":{"v":-6666,"d":"-6,666"}},{"$f":"'RENTAL ANALYSIS'!AA48","v":{"v":-6732.66,"d":"-6,733"}},{"$f":"'RENTAL ANALYSIS'!AB48","v":{"v":-6799.9866,"d":"-6,800"}},{"$f":"'RENTAL ANALYSIS'!AC48","v":{"v":-6867.986466000001,"d":"-6,868"}},{"$f":"'RENTAL ANALYSIS'!AD48","v":{"v":-6936.666330660001,"d":"-6,937"}},{"$f":"'RENTAL ANALYSIS'!AE48","v":{"v":-7006.032993966601,"d":"-7,006"}},{"$f":"'RENTAL ANALYSIS'!AF48","v":{"v":-7076.093323906267,"d":"-7,076"}},{"$f":"'RENTAL ANALYSIS'!AG48","v":{"v":-7146.854257145328,"d":"-7,147"}},{"$f":"'RENTAL ANALYSIS'!AH48","v":{"v":-7218.322799716781,"d":"-7,218"}}]
[]
[{"$nulls":6},"Net Operating Income",{"$nulls":4},{"$f":"'RENTAL ANALYSIS'!Y50","v":{"v":8400,"d":"8,400"}},{"$f":"'RENTAL ANALYSIS'!Z50","v":{"v":8484,"d":"8,484"}},{"$f":"'RENTAL ANALYSIS'!AA50","v":{"v":8568.84,"d":"8,569"}},{"$f":"'RENTAL ANALYSIS'!AB50","v":{"v":8654.5284,"d":"8,655"}},{"$f":"'RENTAL ANALYSIS'!AC50","v":{"v":8741.073683999999,"d":"8,741"}},{"$f":"'RENTAL ANALYSIS'!AD50","v":{"v":8828.484420839999,"d":"8,828"}},{"$f":"'RENTAL ANALYSIS'!AE50","v":{"v":8916.769265048399,"d":"8,917"}},{"$f":"'RENTAL ANALYSIS'!AF50","v":{"v":9005.936957698883,"d":"9,006"}},{"$f":"'RENTAL ANALYSIS'!AG50","v":{"v":9095.996327275872,"d":"9,096"}},{"$f":"'RENTAL ANALYSIS'!AH50","v":{"v":9186.956290548631,"d":"9,187"}}]
[]
[{"$nulls":6},"Financing"]
[{"$nulls":6},"Mortgage PMT (Interest)",{"$nulls":4},{"$f":"'RENTAL ANALYSIS'!Y53","v":{"v":-8691.364728511831,"d":"-8,691"}},{"$f":"'RENTAL ANALYSIS'!Z53","v":{"v":-8559.27036900253,"d":"-8,559"}},{"$f":"'RENTAL ANALYSIS'!AA53","v":{"v":-8420.417811361263,"d":"-8,420"}},{"$f":"'RENTAL ANALYSIS'!AB53","v":{"v":-8274.461293345335,"d":"-8,274"}},{"$f":"'RENTAL ANALYSIS'!AC53","v":{"v":-8121.0373628595025,"d":"-8,121"}},{"$f":"'RENTAL ANALYSIS'!AD53","v":{"v":-7959.763972909541,"d":"-7,960"}},{"$f":"'RENTAL ANALYSIS'!AE53","v":{"v":-7790.239530251918,"d":"-7,790"}},{"$f":"'RENTAL ANALYSIS'!AF53","v":{"v":-7612.0418953705885,"d":"-7,612"}},{"$f":"'RENTAL ANALYSIS'!AG53","v":{"v":-7424.727331290693,"d":"-7,425"}},{"$f":"'RENTAL ANALYSIS'!AH53","v":{"v":-7227.8293986115805,"d":"-7,228"}}]
[{"$nulls":6},"Mortgage PMT (Principal)",{"$nulls":4},{"$f":"'RENTAL ANALYSIS'!Y54","v":{"v":-2581.88935474309,"d":"-2,582"}},{"$f":"'RENTAL ANALYSIS'!Z54","v":{"v":-2713.9837142523897,"d":"-2,714"}},{"$f":"'RENTAL ANALYSIS'!AA54","v":{"v":-2852.8362718936573,"d":"-2,853"}},{"$f":"'RENTAL ANALYSIS'!AB54","v":{"v":-2998.792789909585,"d":"-2,999"}},{"$f":"'RENTAL ANALYSIS'!AC54","v":{"v":-3152.2167203954173,"d":"-3,152"}},{"$f":"'RENTAL ANALYSIS'!AD54","v":{"v":-3313.490110345379,"d":"-3,313"}},{"$f":"'RENTAL ANALYSIS'!AE54","v":{"v":-3483.0145530030027,"d":"-3,483"}},{"$f":"'RENTAL ANALYSIS'!AF54","v":{"v":-3661.212187884332,"d":"-3,661"}},{"$f":"'RENTAL ANALYSIS'!AG54","v":{"v":-3848.526751964227,"d":"-3,849"}},{"$f":"'RENTAL ANALYSIS'!AH54","v":{"v":-4045.42468464334,"d":"-4,045"}}]
[{"$nulls":6},"Total Financing",{"$nulls":4},{"$f":"'RENTAL ANALYSIS'!Y55","v":{"v":-11273.25408325492,"d":"-11,273"}},{"$f":"'RENTAL ANALYSIS'!Z55","v":{"v":-11273.25408325492,"d":"-11,273"}},{"$f":"'RENTAL ANALYSIS'!AA55","v":{"v":-11273.25408325492,"d":"-11,273"}},{"$f":"'RENTAL ANALYSIS'!AB55","v":{"v":-11273.25408325492,"d":"-11,273"}},{"$f":"'RENTAL ANALYSIS'!AC55","v":{"v":-11273.25408325492,"d":"-11,273"}},{"$f":"'RENTAL ANALYSIS'!AD55","v":{"v":-11273.25408325492,"d":"-11,273"}},{"$f":"'RENTAL ANALYSIS'!AE55","v":{"v":-11273.25408325492,"d":"-11,273"}},{"$f":"'RENTAL ANALYSIS'!AF55","v":{"v":-11273.25408325492,"d":"-11,273"}},{"$f":"'RENTAL ANALYSIS'!AG55","v":{"v":-11273.25408325492,"d":"-11,273"}},{"$f":"'RENTAL ANALYSIS'!AH55","v":{"v":-11273.25408325492,"d":"-11,273"}}]
[{"$nulls":6},"Loan Balance",{"$nulls":4},{"$f":"'RENTAL ANALYSIS'!Y56","v":{"v":172418.1106452569,"d":"172,418"}},{"$f":"'RENTAL ANALYSIS'!Z56","v":{"v":169704.12693100452,"d":"169,704"}},{"$f":"'RENTAL ANALYSIS'!AA56","v":{"v":166851.29065911085,"d":"166,851"}},{"$f":"'RENTAL ANALYSIS'!AB56","v":{"v":163852.49786920127,"d":"163,852"}},{"$f":"'RENTAL ANALYSIS'!AC56","v":{"v":160700.28114880584,"d":"160,700"}},{"$f":"'RENTAL ANALYSIS'!AD56","v":{"v":157386.79103846045,"d":"157,387"}},{"$f":"'RENTAL ANALYSIS'!AE56","v":{"v":153903.77648545743,"d":"153,904"}},{"$f":"'RENTAL ANALYSIS'!AF56","v":{"v":150242.56429757312,"d":"150,243"}},{"$f":"'RENTAL ANALYSIS'!AG56","v":{"v":146394.03754560888,"d":"146,394"}},{"$f":"'RENTAL ANALYSIS'!AH56","v":{"v":142348.61286096554,"d":"142,349"}}]
[]
[{"$nulls":6},"Property Value",{"$nulls":4},{"$f":"'RENTAL ANALYSIS'!Y63","v":{"v":256249.99999999997,"d":"256,250"}},{"$f":"'RENTAL ANALYSIS'!Z63","v":{"v":262656.24999999994,"d":"262,656"}},{"$f":"'RENTAL ANALYSIS'!AA63","v":{"v":269222.65624999994,"d":"269,223"}},{"$f":"'RENTAL ANALYSIS'!AB63","v":{"v":275953.22265624994,"d":"275,953"}},{"$f":"'RENTAL ANALYSIS'!AC63","v":{"v":282852.0532226562,"d":"282,852"}},{"$f":"'RENTAL ANALYSIS'!AD63","v":{"v":289923.3545532226,"d":"289,923"}},{"$f":"'RENTAL ANALYSIS'!AE63","v":{"v":297171.43841705314,"d":"297,171"}},{"$f":"'RENTAL ANALYSIS'!AF63","v":{"v":304600.72437747946,"d":"304,601"}},{"$f":"'RENTAL ANALYSIS'!AG63","v":{"v":312215.7424869164,"d":"312,216"}},{"$f":"'RENTAL ANALYSIS'!AH63","v":{"v":320021.1360490893,"d":"320,021"}}]
[]
[{"$nulls":6},"Cash Flow "]
[{"$nulls":6},"Cash Flow",{"$nulls":4},{"$f":"'RENTAL ANALYSIS'!Y70","v":{"v":-2873.2540832549203,"d":"-2,873"}},{"$f":"'RENTAL ANALYSIS'!Z70","v":{"v":-2789.2540832549203,"d":"-2,789"}},{"$f":"'RENTAL ANALYSIS'!AA70","v":{"v":-2704.41408325492,"d":"-2,704"}},{"$f":"'RENTAL ANALYSIS'!AB70","v":{"v":-2618.725683254921,"d":"-2,619"}},{"$f":"'RENTAL ANALYSIS'!AC70","v":{"v":-2532.180399254921,"d":"-2,532"}},{"$f":"'RENTAL ANALYSIS'!AD70","v":{"v":-2444.769662414921,"d":"-2,445"}},{"$f":"'RENTAL ANALYSIS'!AE70","v":{"v":-2356.4848182065216,"d":"-2,356"}},{"$f":"'RENTAL ANALYSIS'!AF70","v":{"v":-2267.3171255560374,"d":"-2,267"}},{"$f":"'RENTAL ANALYSIS'!AG70","v":{"v":-2177.257755979048,"d":"-2,177"}},{"$f":"'RENTAL ANALYSIS'!AH70","v":{"v":-2086.2977927062893,"d":"-2,086"}}]
[{"$nulls":6},"Levered Cash-On-Cash ROI",{"$nulls":4},{"$f":"'RENTAL ANALYSIS'!Y72","v":"inf %"},{"$f":"'RENTAL ANALYSIS'!Z72","v":"inf %"},{"$f":"'RENTAL ANALYSIS'!AA72","v":"inf %"},{"$f":"'RENTAL ANALYSIS'!AB72","v":"inf %"},{"$f":"'RENTAL ANALYSIS'!AC72","v":"inf %"},{"$f":"'RENTAL ANALYSIS'!AD72","v":"inf %"},{"$f":"'RENTAL ANALYSIS'!AE72","v":"inf %"},{"$f":"'RENTAL ANALYSIS'!AF72","v":"inf %"},{"$f":"'RENTAL ANALYSIS'!AG72","v":"inf %"},{"$f":"'RENTAL ANALYSIS'!AH72","v":"inf %"}]
[{"$nulls":6},"Equity"]
[{"$nulls":6},"Equity Earned from Purchase & Rehab",{"$nulls":4},{"$f":"'RENTAL ANALYSIS'!Y75","v":{"v":74810,"d":"74,810"}},{"$f":"'RENTAL ANALYSIS'!Z75","v":0},{"$f":"'RENTAL ANALYSIS'!AA75","v":0},{"$f":"'RENTAL ANALYSIS'!AB75","v":0},{"$f":"'RENTAL ANALYSIS'!AC75","v":0},{"$f":"'RENTAL ANALYSIS'!AD75","v":0},{"$f":"'RENTAL ANALYSIS'!AE75","v":0},{"$f":"'RENTAL ANALYSIS'!AF75","v":0},{"$f":"'RENTAL ANALYSIS'!AG75","v":0},{"$f":"'RENTAL ANALYSIS'!AH75","v":0}]
[{"$nulls":6},"Equity Earned (Principal Paydown)",{"$nulls":4},{"$f":"'RENTAL ANALYSIS'!Y76","v":{"v":2581.88935474309,"d":"2,582"}},{"$f":"'RENTAL ANALYSIS'!Z76","v":{"v":2713.9837142523897,"d":"2,714"}},{"$f":"'RENTAL ANALYSIS'!AA76","v":{"v":2852.8362718936573,"d":"2,853"}},{"$f":"'RENTAL ANALYSIS'!AB76","v":{"v":2998.792789909585,"d":"2,999"}},{"$f":"'RENTAL ANALYSIS'!AC76","v":{"v":3152.2167203954173,"d":"3,152"}},{"$f":"'RENTAL ANALYSIS'!AD76","v":{"v":3313.490110345379,"d":"3,313"}},{"$f":"'RENTAL ANALYSIS'!AE76","v":{"v":3483.0145530030027,"d":"3,483"}},{"$f":"'RENTAL ANALYSIS'!AF76","v":{"v":3661.212187884332,"d":"3,661"}},{"$f":"'RENTAL ANALYSIS'!AG76","v":{"v":3848.526751964227,"d":"3,849"}},{"$f":"'RENTAL ANALYSIS'!AH76","v":{"v":4045.42468464334,"d":"4,045"}}]
[{"$nulls":6},"Equity Earned (Appreciation)",{"$nulls":4},{"$f":"'RENTAL ANALYSIS'!Y77","v":{"v":6249.999999999971,"d":"6,250"}},{"$f":"'RENTAL ANALYSIS'!Z77","v":{"v":6406.249999999971,"d":"6,406"}},{"$f":"'RENTAL ANALYSIS'!AA77","v":{"v":6566.40625,"d":"6,566"}},{"$f":"'RENTAL ANALYSIS'!AB77","v":{"v":6730.56640625,"d":"6,731"}},{"$f":"'RENTAL ANALYSIS'!AC77","v":{"v":6898.83056640625,"d":"6,899"}},{"$f":"'RENTAL ANALYSIS'!AD77","v":{"v":7071.301330566406,"d":"7,071"}},{"$f":"'RENTAL ANALYSIS'!AE77","v":{"v":7248.083863830543,"d":"7,248"}},{"$f":"'RENTAL ANALYSIS'!AF77","v":{"v":7429.285960426321,"d":"7,429"}},{"$f":"'RENTAL ANALYSIS'!AG77","v":{"v":7615.018109436962,"d":"7,615"}},{"$f":"'RENTAL ANALYSIS'!AH77","v":{"v":7805.393562172889,"d":"7,805"}}]
[{"$nulls":6},"Total Equity Earned",{"$nulls":4},{"$f":"'RENTAL ANALYSIS'!Y78","v":{"v":83641.88935474306,"d":"83,642"}},{"$f":"'RENTAL ANALYSIS'!Z78","v":{"v":9120.233714252361,"d":"9,120"}},{"$f":"'RENTAL ANALYSIS'!AA78","v":{"v":9419.242521893657,"d":"9,419"}},{"$f":"'RENTAL ANALYSIS'!AB78","v":{"v":9729.359196159585,"d":"9,729"}},{"$f":"'RENTAL ANALYSIS'!AC78","v":{"v":10051.047286801668,"d":"10,051"}},{"$f":"'RENTAL ANALYSIS'!AD78","v":{"v":10384.791440911786,"d":"10,385"}},{"$f":"'RENTAL ANALYSIS'!AE78","v":{"v":10731.098416833545,"d":"10,731"}},{"$f":"'RENTAL ANALYSIS'!AF78","v":{"v":11090.498148310653,"d":"11,090"}},{"$f":"'RENTAL ANALYSIS'!AG78","v":{"v":11463.54486140119,"d":"11,464"}},{"$f":"'RENTAL ANALYSIS'!AH78","v":{"v":11850.818246816229,"d":"11,851"}}]
[]
[{"$nulls":6},"Total Return",{"$nulls":4},{"$f":"'RENTAL ANALYSIS'!Y82","v":{"v":80768.63527148814,"d":"80,769"}},{"$f":"'RENTAL ANALYSIS'!Z82","v":{"v":6330.979630997441,"d":"6,331"}},{"$f":"'RENTAL ANALYSIS'!AA82","v":{"v":6714.828438638737,"d":"6,715"}},{"$f":"'RENTAL ANALYSIS'!AB82","v":{"v":7110.633512904664,"d":"7,111"}},{"$f":"'RENTAL ANALYSIS'!AC82","v":{"v":7518.8668875467465,"d":"7,519"}},{"$f":"'RENTAL ANALYSIS'!AD82","v":{"v":7940.0217784968645,"d":"7,940"}},{"$f":"'RENTAL ANALYSIS'!AE82","v":{"v":8374.613598627024,"d":"8,375"}},{"$f":"'RENTAL ANALYSIS'!AF82","v":{"v":8823.181022754616,"d":"8,823"}},{"$f":"'RENTAL ANALYSIS'!AG82","v":{"v":9286.287105422141,"d":"9,286"}},{"$f":"'RENTAL ANALYSIS'!AH82","v":{"v":9764.52045410994,"d":"9,765"}}]
[{"$nulls":6},"Total Return-on-Cash",{"$nulls":4},{"$f":"'RENTAL ANALYSIS'!Y85","v":"inf %"},{"$f":"'RENTAL ANALYSIS'!Z85","v":"inf %"},{"$f":"'RENTAL ANALYSIS'!AA85","v":"inf %"},{"$f":"'RENTAL ANALYSIS'!AB85","v":"inf %"},{"$f":"'RENTAL ANALYSIS'!AC85","v":"inf %"},{"$f":"'RENTAL ANALYSIS'!AD85","v":"inf %"},{"$f":"'RENTAL ANALYSIS'!AE85","v":"inf %"},{"$f":"'RENTAL ANALYSIS'!AF85","v":"inf %"},{"$f":"'RENTAL ANALYSIS'!AG85","v":"inf %"},{"$f":"'RENTAL ANALYSIS'!AH85","v":"inf %"}]
[]
[{"$nulls":6},{"$f":"CONCATENATE(\"Report Prepared By: \",Investor_Name,\"  |  \",Company_Name,\"  |  \",Company_Email,\"  |  \",Company_Email)","v":"Report Prepared By: Dave  |  Dave Inc  |  dave@venturesheets.com  |  dave@venturesheets.com"}]
[{"$nulls":6},{"$f":"CONCATENATE(Street_Address,\", \",City_State_Zip)","v":"1234 Main St, Kansas City, MO 64116"}]
[]
[{"$nulls":6},"CASH FLOW REPORT"]
[]
[{"$nulls":6},"Revenues",{"$nulls":4},11,12,13,14,15,16,17,18,19,20]
[{"$nulls":6},{"$f":"T('RENTAL ANALYSIS'!D18:M18)","v":"Rental Unit 1  -  ( units, square feet, beds, baths)"},{"$nulls":4},{"$f":"'RENTAL ANALYSIS'!AI18","v":{"v":16569.331881168066,"d":"16,569"}},{"$f":"'RENTAL ANALYSIS'!AJ18","v":{"v":16735.025199979747,"d":"16,735"}},{"$f":"'RENTAL ANALYSIS'!AK18","v":{"v":16902.375451979544,"d":"16,902"}},{"$f":"'RENTAL ANALYSIS'!AL18","v":{"v":17071.39920649934,"d":"17,071"}},{"$f":"'RENTAL ANALYSIS'!AM18","v":{"v":17242.113198564333,"d":"17,242"}},{"$f":"'RENTAL ANALYSIS'!AN18","v":{"v":17414.534330549977,"d":"17,415"}},{"$f":"'RENTAL ANALYSIS'!AO18","v":{"v":17588.679673855477,"d":"17,589"}},{"$f":"'RENTAL ANALYSIS'!AP18","v":{"v":17764.566470594033,"d":"17,765"}},{"$f":"'RENTAL ANALYSIS'!AQ18","v":{"v":17942.212135299975,"d":"17,942"}},{"$f":"'RENTAL ANALYSIS'!AR18","v":{"v":18121.634256652975,"d":"18,122"}}]
[{"$nulls":6},{"$f":"T('RENTAL ANALYSIS'!D19:M19)","v":"Rental Unit 2  -  ( units, square feet, beds, baths)"},{"$nulls":4},{"$f":"'RENTAL ANALYSIS'!AI19","v":0},{"$f":"'RENTAL ANALYSIS'!AJ19","v":0},{"$f":"'RENTAL ANALYSIS'!AK19","v":0},{"$f":"'RENTAL ANALYSIS'!AL19","v":0},{"$f":"'RENTAL ANALYSIS'!AM19","v":0},{"$f":"'RENTAL ANALYSIS'!AN19","v":0},{"$f":"'RENTAL ANALYSIS'!AO19","v":0},{"$f":"'RENTAL ANALYSIS'!AP19","v":0},{"$f":"'RENTAL ANALYSIS'!AQ19","v":0},{"$f":"'RENTAL ANALYSIS'!AR19","v":0}]
[{"$nulls":6},{"$f":"T('RENTAL ANALYSIS'!D20:M20)","v":"Rental Unit 3  -  ( units, square feet, beds, baths)"},{"$nulls":4},{"$f":"'RENTAL ANALYSIS'!AI20","v":0},{"$f":"'RENTAL ANALYSIS'!AJ20","v":0},{"$f":"'RENTAL ANALYSIS'!AK20","v":0},{"$f":"'RENTAL ANALYSIS'!AL20","v":0},{"$f":"'RENTAL ANALYSIS'!AM20","v":0},{"$f":"'RENTAL ANALYSIS'!AN20","v":0},{"$f":"'RENTAL ANALYSIS'!AO20","v":0},{"$f":"'RENTAL ANALYSIS'!AP20","v":0},{"$f":"'RENTAL ANALYSIS'!AQ20","v":0},{"$f":"'RENTAL ANALYSIS'!AR20","v":0}]
[{"$nulls":6},{"$f":"T('RENTAL ANALYSIS'!D21:M21)","v":"Rental Unit 4  -  ( units, square feet, beds, baths)"},{"$nulls":4},{"$f":"'RENTAL ANALYSIS'!AI21","v":0},{"$f":"'RENTAL ANALYSIS'!AJ21","v":0},{"$f":"'RENTAL ANALYSIS'!AK21","v":0},{"$f":"'RENTAL ANALYSIS'!AL21","v":0},{"$f":"'RENTAL ANALYSIS'!AM21","v":0},{"$f":"'RENTAL ANALYSIS'!AN21","v":0},{"$f":"'RENTAL ANALYSIS'!AO21","v":0},{"$f":"'RENTAL ANALYSIS'!AP21","v":0},{"$f":"'RENTAL ANALYSIS'!AQ21","v":0},{"$f":"'RENTAL ANALYSIS'!AR21","v":0}]
[{"$nulls":6},{"$f":"T('RENTAL ANALYSIS'!D22:M22)","v":"Rental Unit 5  -  ( units, square feet, beds, baths)"},{"$nulls":4},{"$f":"'RENTAL ANALYSIS'!AI22","v":0},{"$f":"'RENTAL ANALYSIS'!AJ22","v":0},{"$f":"'RENTAL ANALYSIS'!AK22","v":0},{"$f":"'RENTAL ANALYSIS'!AL22","v":0},{"$f":"'RENTAL ANALYSIS'!AM22","v":0},{"$f":"'RENTAL ANALYSIS'!AN22","v":0},{"$f":"'RENTAL ANALYSIS'!AO22","v":0},{"$f":"'RENTAL ANALYSIS'!AP22","v":0},{"$f":"'RENTAL ANALYSIS'!AQ22","v":0},{"$f":"'RENTAL ANALYSIS'!AR22","v":0}]
[{"$nulls":6},{"$f":"T('RENTAL ANALYSIS'!D23:M23)","v":"GROSS SCHEDULED INCOME"},{"$nulls":4},{"$f":"'RENTAL ANALYSIS'!AI23","v":{"v":16569.331881168066,"d":"16,569"}},{"$f":"'RENTAL ANALYSIS'!AJ23","v":{"v":16735.025199979747,"d":"16,735"}},{"$f":"'RENTAL ANALYSIS'!AK23","v":{"v":16902.375451979544,"d":"16,902"}},{"$f":"'RENTAL ANALYSIS'!AL23","v":{"v":17071.39920649934,"d":"17,071"}},{"$f":"'RENTAL ANALYSIS'!AM23","v":{"v":17242.113198564333,"d":"17,242"}},{"$f":"'RENTAL ANALYSIS'!AN23","v":{"v":17414.534330549977,"d":"17,415"}},{"$f":"'RENTAL ANALYSIS'!AO23","v":{"v":17588.679673855477,"d":"17,589"}},{"$f":"'RENTAL ANALYSIS'!AP23","v":{"v":17764.566470594033,"d":"17,765"}},{"$f":"'RENTAL ANALYSIS'!AQ23","v":{"v":17942.212135299975,"d":"17,942"}},{"$f":"'RENTAL ANALYSIS'!AR23","v":{"v":18121.634256652975,"d":"18,122"}}]
[{"$nulls":6},"Vacancy Loss Amount",{"$nulls":4},{"$f":"'RENTAL ANALYSIS'!AI24","v":0},{"$f":"'RENTAL ANALYSIS'!AJ24","v":0},{"$f":"'RENTAL ANALYSIS'!AK24","v":0},{"$f":"'RENTAL ANALYSIS'!AL24","v":0},{"$f":"'RENTAL ANALYSIS'!AM24","v":0},{"$f":"'RENTAL ANALYSIS'!AN24","v":0},{"$f":"'RENTAL ANALYSIS'!AO24","v":0},{"$f":"'RENTAL ANALYSIS'!AP24","v":0},{"$f":"'RENTAL ANALYSIS'!AQ24","v":0},{"$f":"'RENTAL ANALYSIS'!AR24","v":0}]
[{"$nulls":6},"Tenant Concessions",{"$nulls":4},{"$f":"'RENTAL ANALYSIS'!AI25","v":0},{"$f":"'RENTAL ANALYSIS'!AJ25","v":0},{"$f":"'RENTAL ANALYSIS'!AK25","v":0},{"$f":"'RENTAL ANALYSIS'!AL25","v":0},{"$f":"'RENTAL ANALYSIS'!AM25","v":0},{"$f":"'RENTAL ANALYSIS'!AN25","v":0},{"$f":"'RENTAL ANALYSIS'!AO25","v":0},{"$f":"'RENTAL ANALYSIS'!AP25","v":0},{"$f":"'RENTAL ANALYSIS'!AQ25","v":0},{"$f":"'RENTAL ANALYSIS'!AR25","v":0}]
[{"$nulls":6},"Other Income",{"$nulls":4},{"$f":"'RENTAL ANALYSIS'!AI26","v":0},{"$f":"'RENTAL ANALYSIS'!AJ26","v":0},{"$f":"'RENTAL ANALYSIS'!AK26","v":0},{"$f":"'RENTAL ANALYSIS'!AL26","v":0},{"$f":"'RENTAL ANALYSIS'!AM26","v":0},{"$f":"'RENTAL ANALYSIS'!AN26","v":0},{"$f":"'RENTAL ANALYSIS'!AO26","v":0},{"$f":"'RENTAL ANALYSIS'!AP26","v":0},{"$f":"'RENTAL ANALYSIS'!AQ26","v":0},{"$f":"'RENTAL ANALYSIS'!AR26","v":0}]
[{"$nulls":6},"Gross Operating Income",{"$nulls":4},{"$f":"'RENTAL ANALYSIS'!AI27","v":{"v":16569.331881168066,"d":"16,569"}},{"$f":"'RENTAL ANALYSIS'!AJ27","v":{"v":16735.025199979747,"d":"16,735"}},{"$f":"'RENTAL ANALYSIS'!AK27","v":{"v":16902.375451979544,"d":"16,902"}},{"$f":"'RENTAL ANALYSIS'!AL27","v":{"v":17071.39920649934,"d":"17,071"}},{"$f":"'RENTAL ANALYSIS'!AM27","v":{"v":17242.113198564333,"d":"17,242"}},{"$f":"'RENTAL ANALYSIS'!AN27","v":{"v":17414.534330549977,"d":"17,415"}},{"$f":"'RENTAL ANALYSIS'!AO27","v":{"v":17588.679673855477,"d":"17,589"}},{"$f":"'RENTAL ANALYSIS'!AP27","v":{"v":17764.566470594033,"d":"17,765"}},{"$f":"'RENTAL ANALYSIS'!AQ27","v":{"v":17942.212135299975,"d":"17,942"}},{"$f":"'RENTAL ANALYSIS'!AR27","v":{"v":18121.634256652975,"d":"18,122"}}]
[]
[{"$nulls":6},"Operating Expenses"]
[{"$nulls":6},{"$f":"T('RENTAL ANALYSIS'!D31:M31)","v":"Property Taxes"},{"$nulls":4},{"$f":"'RENTAL ANALYSIS'!AI31","v":{"v":-2209.244250822409,"d":"-2,209"}},{"$f":"'RENTAL ANALYSIS'!AJ31","v":{"v":-2231.336693330633,"d":"-2,231"}},{"$f":"'RENTAL ANALYSIS'!AK31","v":{"v":-2253.6500602639394,"d":"-2,254"}},{"$f":"'RENTAL ANALYSIS'!AL31","v":{"v":-2276.186560866579,"d":"-2,276"}},{"$f":"'RENTAL ANALYSIS'!AM31","v":{"v":-2298.9484264752446,"d":"-2,299"}},{"$f":"'RENTAL ANALYSIS'!AN31","v":{"v":-2321.937910739997,"d":"-2,322"}},{"$f":"'RENTAL ANALYSIS'!AO31","v":{"v":-2345.157289847397,"d":"-2,345"}},{"$f":"'RENTAL ANALYSIS'!AP31","v":{"v":-2368.6088627458707,"d":"-2,369"}},{"$f":"'RENTAL ANALYSIS'!AQ31","v":{"v":-2392.2949513733292,"d":"-2,392"}},{"$f":"'RENTAL ANALYSIS'!AR31","v":{"v":-2416.2179008870626,"d":"-2,416"}}]
[{"$nulls":6},{"$f":"T('RENTAL ANALYSIS'!D32:M32)","v":"Property Insurance"},{"$nulls":4},{"$f":"'RENTAL ANALYSIS'!AI32","v":{"v":-110.46221254112045,"d":"-110"}},{"$f":"'RENTAL ANALYSIS'!AJ32","v":{"v":-111.56683466653166,"d":"-112"}},{"$f":"'RENTAL ANALYSIS'!AK32","v":{"v":-112.68250301319698,"d":"-113"}},{"$f":"'RENTAL ANALYSIS'!AL32","v":{"v":-113.80932804332895,"d":"-114"}},{"$f":"'RENTAL ANALYSIS'!AM32","v":{"v":-114.94742132376224,"d":"-115"}},{"$f":"'RENTAL ANALYSIS'!AN32","v":{"v":-116.09689553699987,"d":"-116"}},{"$f":"'RENTAL ANALYSIS'!AO32","v":{"v":-117.25786449236986,"d":"-117"}},{"$f":"'RENTAL ANALYSIS'!AP32","v":{"v":-118.43044313729357,"d":"-118"}},{"$f":"'RENTAL ANALYSIS'!AQ32","v":{"v":-119.6147475686665,"d":"-120"}},{"$f":"'RENTAL ANALYSIS'!AR32","v":{"v":-120.81089504435317,"d":"-121"}}]
[{"$nulls":6},{"$f":"T('RENTAL ANALYSIS'!D33:M33)","v":"Cleaning and Maintenance:"},{"$nulls":4},{"$f":"'RENTAL ANALYSIS'!AI33","v":0},{"$f":"'RENTAL ANALYSIS'!AJ33","v":0},{"$f":"'RENTAL ANALYSIS'!AK33","v":0},{"$f":"'RENTAL ANALYSIS'!AL33","v":0},{"$f":"'RENTAL ANALYSIS'!AM33","v":0},{"$f":"'RENTAL ANALYSIS'!AN33","v":0},{"$f":"'RENTAL ANALYSIS'!AO33","v":0},{"$f":"'RENTAL ANALYSIS'!AP33","v":0},{"$f":"'RENTAL ANALYSIS'!AQ33","v":0},{"$f":"'RENTAL ANALYSIS'!AR33","v":0}]
[{"$nulls":6},{"$f":"T('RENTAL ANALYSIS'!D34:M34)","v":"HOA Dues:"},{"$nulls":4},{"$f":"'RENTAL ANALYSIS'!AI34","v":0},{"$f":"'RENTAL ANALYSIS'!AJ34","v":0},{"$f":"'RENTAL ANALYSIS'!AK34","v":0},{"$f":"'RENTAL ANALYSIS'!AL34","v":0},{"$f":"'RENTAL ANALYSIS'!AM34","v":0},{"$f":"'RENTAL ANALYSIS'!AN34","v":0},{"$f":"'RENTAL ANALYSIS'!AO34","v":0},{"$f":"'RENTAL ANALYSIS'!AP34","v":0},{"$f":"'RENTAL ANALYSIS'!AQ34","v":0},{"$f":"'RENTAL ANALYSIS'!AR34","v":0}]
[{"$nulls":6},{"$f":"T('RENTAL ANALYSIS'!D35:M35)","v":"Lawn and Groundskeeping:"},{"$nulls":4},{"$f":"'RENTAL ANALYSIS'!AI35","v":0},{"$f":"'RENTAL ANALYSIS'!AJ35","v":0},{"$f":"'RENTAL ANALYSIS'!AK35","v":0},{"$f":"'RENTAL ANALYSIS'!AL35","v":0},{"$f":"'RENTAL ANALYSIS'!AM35","v":0},{"$f":"'RENTAL ANALYSIS'!AN35","v":0},{"$f":"'RENTAL ANALYSIS'!AO35","v":0},{"$f":"'RENTAL ANALYSIS'!AP35","v":0},{"$f":"'RENTAL ANALYSIS'!AQ35","v":0},{"$f":"'RENTAL ANALYSIS'!AR35","v":0}]
[{"$nulls":6},{"$f":"T('RENTAL ANALYSIS'!D36:M36)","v":"Auto and Travel:"},{"$nulls":4},{"$f":"'RENTAL ANALYSIS'!AI36","v":0},{"$f":"'RENTAL ANALYSIS'!AJ36","v":0},{"$f":"'RENTAL ANALYSIS'!AK36","v":0},{"$f":"'RENTAL ANALYSIS'!AL36","v":0},{"$f":"'RENTAL ANALYSIS'!AM36","v":0},{"$f":"'RENTAL ANALYSIS'!AN36","v":0},{"$f":"'RENTAL ANALYSIS'!AO36","v":0},{"$f":"'RENTAL ANALYSIS'!AP36","v":0},{"$f":"'RENTAL ANALYSIS'!AQ36","v":0},{"$f":"'RENTAL ANALYSIS'!AR36","v":0}]
[{"$nulls":6},{"$f":"T('RENTAL ANALYSIS'!D37:M37)","v":"Electrical Utilities:"},{"$nulls":4},{"$f":"'RENTAL ANALYSIS'!AI37","v":0},{"$f":"'RENTAL ANALYSIS'!AJ37","v":0},{"$f":"'RENTAL ANALYSIS'!AK37","v":0},{"$f":"'RENTAL ANALYSIS'!AL37","v":0},{"$f":"'RENTAL ANALYSIS'!AM37","v":0},{"$f":"'RENTAL ANALYSIS'!AN37","v":0},{"$f":"'RENTAL ANALYSIS'!AO37","v":0},{"$f":"'RENTAL ANALYSIS'!AP37","v":0},{"$f":"'RENTAL ANALYSIS'!AQ37","v":0},{"$f":"'RENTAL ANALYSIS'!AR37","v":0}]
[{"$nulls":6},{"$f":"T('RENTAL ANALYSIS'!D38:M38)","v":"Water Utilities:"},{"$nulls":4},{"$f":"'RENTAL ANALYSIS'!AI38","v":0},{"$f":"'RENTAL ANALYSIS'!AJ38","v":0},{"$f":"'RENTAL ANALYSIS'!AK38","v":0},{"$f":"'RENTAL ANALYSIS'!AL38","v":0},{"$f":"'RENTAL ANALYSIS'!AM38","v":0},{"$f":"'RENTAL ANALYSIS'!AN38","v":0},{"$f":"'RENTAL ANALYSIS'!AO38","v":0},{"$f":"'RENTAL ANALYSIS'!AP38","v":0},{"$f":"'RENTAL ANALYSIS'!AQ38","v":0},{"$f":"'RENTAL ANALYSIS'!AR38","v":0}]
[{"$nulls":6},{"$f":"T('RENTAL ANALYSIS'!D39:M39)","v":"Gas Utilities:"},{"$nulls":4},{"$f":"'RENTAL ANALYSIS'!AI39","v":0},{"$f":"'RENTAL ANALYSIS'!AJ39","v":0},{"$f":"'RENTAL ANALYSIS'!AK39","v":0},{"$f":"'RENTAL ANALYSIS'!AL39","v":0},{"$f":"'RENTAL ANALYSIS'!AM39","v":0},{"$f":"'RENTAL ANALYSIS'!AN39","v":0},{"$f":"'RENTAL ANALYSIS'!AO39","v":0},{"$f":"'RENTAL ANALYSIS'!AP39","v":0},{"$f":"'RENTAL ANALYSIS'!AQ39","v":0},{"$f":"'RENTAL ANALYSIS'!AR39","v":0}]
[{"$nulls":6},{"$f":"T('RENTAL ANALYSIS'!D40:M40)","v":"Garbage:"},{"$nulls":4},{"$f":"'RENTAL ANALYSIS'!AI40","v":0},{"$f":"'RENTAL ANALYSIS'!AJ40","v":0},{"$f":"'RENTAL ANALYSIS'!AK40","v":0},{"$f":"'RENTAL ANALYSIS'!AL40","v":0},{"$f":"'RENTAL ANALYSIS'!AM40","v":0},{"$f":"'RENTAL ANALYSIS'!AN40","v":0},{"$f":"'RENTAL ANALYSIS'!AO40","v":0},{"$f":"'RENTAL ANALYSIS'!AP40","v":0},{"$f":"'RENTAL ANALYSIS'!AQ40","v":0},{"$f":"'RENTAL ANALYSIS'!AR40","v":0}]
[{"$nulls":6},{"$f":"T('RENTAL ANALYSIS'!D41:M41)","v":"Advertising:"},{"$nulls":4},{"$f":"'RENTAL ANALYSIS'!AI41","v":0},{"$f":"'RENTAL ANALYSIS'!AJ41","v":0},{"$f":"'RENTAL ANALYSIS'!AK41","v":0},{"$f":"'RENTAL ANALYSIS'!AL41","v":0},{"$f":"'RENTAL ANALYSIS'!AM41","v":0},{"$f":"'RENTAL ANALYSIS'!AN41","v":0},{"$f":"'RENTAL ANALYSIS'!AO41","v":0},{"$f":"'RENTAL ANALYSIS'!AP41","v":0},{"$f":"'RENTAL ANALYSIS'!AQ41","v":0},{"$f":"'RENTAL ANALYSIS'!AR41","v":0}]
[{"$nulls":6},{"$f":"T('RENTAL ANALYSIS'!D42:M42)","v":"Accounting & Legal:"},{"$nulls":4},{"$f":"'RENTAL ANALYSIS'!AI42","v":0},{"$f":"'RENTAL ANALYSIS'!AJ42","v":0},{"$f":"'RENTAL ANALYSIS'!AK42","v":0},{"$f":"'RENTAL ANALYSIS'!AL42","v":0},{"$f":"'RENTAL ANALYSIS'!AM42","v":0},{"$f":"'RENTAL ANALYSIS'!AN42","v":0},{"$f":"'RENTAL ANALYSIS'!AO42","v":0},{"$f":"'RENTAL ANALYSIS'!AP42","v":0},{"$f":"'RENTAL ANALYSIS'!AQ42","v":0},{"$f":"'RENTAL ANALYSIS'!AR42","v":0}]
[{"$nulls":6},{"$f":"T('RENTAL ANALYSIS'!D43:M43)","v":"Other 1:"},{"$nulls":4},{"$f":"'RENTAL ANALYSIS'!AI43","v":0},{"$f":"'RENTAL ANALYSIS'!AJ43","v":0},{"$f":"'RENTAL ANALYSIS'!AK43","v":0},{"$f":"'RENTAL ANALYSIS'!AL43","v":0},{"$f":"'RENTAL ANALYSIS'!AM43","v":0},{"$f":"'RENTAL ANALYSIS'!AN43","v":0},{"$f":"'RENTAL ANALYSIS'!AO43","v":0},{"$f":"'RENTAL ANALYSIS'!AP43","v":0},{"$f":"'RENTAL ANALYSIS'!AQ43","v":0},{"$f":"'RENTAL ANALYSIS'!AR43","v":0}]
[{"$nulls":6},{"$f":"T('RENTAL ANALYSIS'!D44:M44)","v":"Other 2:"},{"$nulls":4},{"$f":"'RENTAL ANALYSIS'!AI44","v":0},{"$f":"'RENTAL ANALYSIS'!AJ44","v":0},{"$f":"'RENTAL ANALYSIS'!AK44","v":0},{"$f":"'RENTAL ANALYSIS'!AL44","v":0},{"$f":"'RENTAL ANALYSIS'!AM44","v":0},{"$f":"'RENTAL ANALYSIS'!AN44","v":0},{"$f":"'RENTAL ANALYSIS'!AO44","v":0},{"$f":"'RENTAL ANALYSIS'!AP44","v":0},{"$f":"'RENTAL ANALYSIS'!AQ44","v":0},{"$f":"'RENTAL ANALYSIS'!AR44","v":0}]
[{"$nulls":6},{"$f":"T('RENTAL ANALYSIS'!D45:M45)","v":"Property Management:"},{"$nulls":4},{"$f":"'RENTAL ANALYSIS'!AI45","v":{"v":-1656.9331881168068,"d":"-1,657"}},{"$f":"'RENTAL ANALYSIS'!AJ45","v":{"v":-1673.502519997975,"d":"-1,674"}},{"$f":"'RENTAL ANALYSIS'!AK45","v":{"v":-1690.237545197955,"d":"-1,690"}},{"$f":"'RENTAL ANALYSIS'!AL45","v":{"v":-1707.1399206499345,"d":"-1,707"}},{"$f":"'RENTAL ANALYSIS'!AM45","v":{"v":-1724.2113198564339,"d":"-1,724"}},{"$f":"'RENTAL ANALYSIS'!AN45","v":{"v":-1741.4534330549982,"d":"-1,741"}},{"$f":"'RENTAL ANALYSIS'!AO45","v":{"v":-1758.8679673855481,"d":"-1,759"}},{"$f":"'RENTAL ANALYSIS'!AP45","v":{"v":-1776.4566470594036,"d":"-1,776"}},{"$f":"'RENTAL ANALYSIS'!AQ45","v":{"v":-1794.2212135299976,"d":"-1,794"}},{"$f":"'RENTAL ANALYSIS'!AR45","v":{"v":-1812.1634256652976,"d":"-1,812"}}]
[{"$nulls":6},{"$f":"T('RENTAL ANALYSIS'!D46:M46)","v":"Repairs:"},{"$nulls":4},{"$f":"'RENTAL ANALYSIS'!AI46","v":{"v":-1656.9331881168068,"d":"-1,657"}},{"$f":"'RENTAL ANALYSIS'!AJ46","v":{"v":-1673.502519997975,"d":"-1,674"}},{"$f":"'RENTAL ANALYSIS'!AK46","v":{"v":-1690.237545197955,"d":"-1,690"}},{"$f":"'RENTAL ANALYSIS'!AL46","v":{"v":-1707.1399206499345,"d":"-1,707"}},{"$f":"'RENTAL ANALYSIS'!AM46","v":{"v":-1724.2113198564339,"d":"-1,724"}},{"$f":"'RENTAL ANALYSIS'!AN46","v":{"v":-1741.4534330549982,"d":"-1,741"}},{"$f":"'RENTAL ANALYSIS'!AO46","v":{"v":-1758.8679673855481,"d":"-1,759"}},{"$f":"'RENTAL ANALYSIS'!AP46","v":{"v":-1776.4566470594036,"d":"-1,776"}},{"$f":"'RENTAL ANALYSIS'!AQ46","v":{"v":-1794.2212135299976,"d":"-1,794"}},{"$f":"'RENTAL ANALYSIS'!AR46","v":{"v":-1812.1634256652976,"d":"-1,812"}}]
[{"$nulls":6},{"$f":"T('RENTAL ANALYSIS'!D47:M47)","v":"Cap Ex:"},{"$nulls":4},{"$f":"'RENTAL ANALYSIS'!AI47","v":{"v":-1656.9331881168068,"d":"-1,657"}},{"$f":"'RENTAL ANALYSIS'!AJ47","v":{"v":-1673.502519997975,"d":"-1,674"}},{"$f":"'RENTAL ANALYSIS'!AK47","v":{"v":-1690.237545197955,"d":"-1,690"}},{"$f":"'RENTAL ANALYSIS'!AL47","v":{"v":-1707.1399206499345,"d":"-1,707"}},{"$f":"'RENTAL ANALYSIS'!AM47","v":{"v":-1724.2113198564339,"d":"-1,724"}},{"$f":"'RENTAL ANALYSIS'!AN47","v":{"v":-1741.4534330549982,"d":"-1,741"}},{"$f":"'RENTAL ANALYSIS'!AO47","v":{"v":-1758.8679673855481,"d":"-1,759"}},{"$f":"'RENTAL ANALYSIS'!AP47","v":{"v":-1776.4566470594036,"d":"-1,776"}},{"$f":"'RENTAL ANALYSIS'!AQ47","v":{"v":-1794.2212135299976,"d":"-1,794"}},{"$f":"'RENTAL ANALYSIS'!AR47","v":{"v":-1812.1634256652976,"d":"-1,812"}}]
[{"$nulls":6},"Total Operating Expenses",{"$nulls":4},{"$f":"'RENTAL ANALYSIS'!AI48","v":{"v":-7290.506027713951,"d":"-7,291"}},{"$f":"'RENTAL ANALYSIS'!AJ48","v":{"v":-7363.4110879910895,"d":"-7,363"}},{"$f":"'RENTAL ANALYSIS'!AK48","v":{"v":-7437.045198871001,"d":"-7,437"}},{"$f":"'RENTAL ANALYSIS'!AL48","v":{"v":-7511.415650859712,"d":"-7,511"}},{"$f":"'RENTAL ANALYSIS'!AM48","v":{"v":-7586.529807368308,"d":"-7,587"}},{"$f":"'RENTAL ANALYSIS'!AN48","v":{"v":-7662.39510544199,"d":"-7,662"}},{"$f":"'RENTAL ANALYSIS'!AO48","v":{"v":-7739.0190564964105,"d":"-7,739"}},{"$f":"'RENTAL ANALYSIS'!AP48","v":{"v":-7816.409247061375,"d":"-7,816"}},{"$f":"'RENTAL ANALYSIS'!AQ48","v":{"v":-7894.573339531989,"d":"-7,895"}},{"$f":"'RENTAL ANALYSIS'!AR48","v":{"v":-7973.519072927309,"d":"-7,974"}}]
[]
[{"$nulls":6},"Net Operating Income",{"$nulls":4},{"$f":"'RENTAL ANALYSIS'!AI50","v":{"v":9278.825853454115,"d":"9,279"}},{"$f":"'RENTAL ANALYSIS'!AJ50","v":{"v":9371.614111988658,"d":"9,372"}},{"$f":"'RENTAL ANALYSIS'!AK50","v":{"v":9465.330253108543,"d":"9,465"}},{"$f":"'RENTAL ANALYSIS'!AL50","v":{"v":9559.983555639628,"d":"9,560"}},{"$f":"'RENTAL ANALYSIS'!AM50","v":{"v":9655.583391196025,"d":"9,656"}},{"$f":"'RENTAL ANALYSIS'!AN50","v":{"v":9752.139225107987,"d":"9,752"}},{"$f":"'RENTAL ANALYSIS'!AO50","v":{"v":9849.660617359066,"d":"9,850"}},{"$f":"'RENTAL ANALYSIS'!AP50","v":{"v":9948.157223532657,"d":"9,948"}},{"$f":"'RENTAL ANALYSIS'!AQ50","v":{"v":10047.638795767985,"d":"10,048"}},{"$f":"'RENTAL ANALYSIS'!AR50","v":{"v":10148.115183725666,"d":"10,148"}}]
[]
[{"$nulls":6},"Financing"]
[{"$nulls":6},"Mortgage PMT (Interest)",{"$nulls":4},{"$f":"'RENTAL ANALYSIS'!AI53","v":{"v":-7020.857794007615,"d":"-7,021"}},{"$f":"'RENTAL ANALYSIS'!AJ53","v":{"v":-6803.297129304484,"d":"-6,803"}},{"$f":"'RENTAL ANALYSIS'!AK53","v":{"v":-6574.605648090728,"d":"-6,575"}},{"$f":"'RENTAL ANALYSIS'!AL53","v":{"v":-6334.213876668692,"d":"-6,334"}},{"$f":"'RENTAL ANALYSIS'!AM53","v":{"v":-6081.523205985554,"d":"-6,082"}},{"$f":"'RENTAL ANALYSIS'!AN53","v":{"v":-5815.904401013258,"d":"-5,816"}},{"$f":"'RENTAL ANALYSIS'!AO53","v":{"v":-5536.696033865501,"d":"-5,537"}},{"$f":"'RENTAL ANALYSIS'!AP53","v":{"v":-5243.202836750005,"d":"-5,243"}},{"$f":"'RENTAL ANALYSIS'!AQ53","v":{"v":-4934.693970654702,"d":"-4,935"}},{"$f":"'RENTAL ANALYSIS'!AR53","v":{"v":-4610.401205456623,"d":"-4,610"}}]
[{"$nulls":6},"Mortgage PMT (Principal)",{"$nulls":4},{"$f":"'RENTAL ANALYSIS'!AI54","v":{"v":-4252.3962892473055,"d":"-4,252"}},{"$f":"'RENTAL ANALYSIS'!AJ54","v":{"v":-4469.956953950436,"d":"-4,470"}},{"$f":"'RENTAL ANALYSIS'!AK54","v":{"v":-4698.648435164192,"d":"-4,699"}},{"$f":"'RENTAL ANALYSIS'!AL54","v":{"v":-4939.040206586228,"d":"-4,939"}},{"$f":"'RENTAL ANALYSIS'!AM54","v":{"v":-5191.730877269366,"d":"-5,192"}},{"$f":"'RENTAL ANALYSIS'!AN54","v":{"v":-5457.349682241662,"d":"-5,457"}},{"$f":"'RENTAL ANALYSIS'!AO54","v":{"v":-5736.5580493894195,"d":"-5,737"}},{"$f":"'RENTAL ANALYSIS'!AP54","v":{"v":-6030.051246504915,"d":"-6,030"}},{"$f":"'RENTAL ANALYSIS'!AQ54","v":{"v":-6338.560112600218,"d":"-6,339"}},{"$f":"'RENTAL ANALYSIS'!AR54","v":{"v":-6662.852877798297,"d":"-6,663"}}]
[{"$nulls":6},"Total Financing",{"$nulls":4},{"$f":"'RENTAL ANALYSIS'!AI55","v":{"v":-11273.25408325492,"d":"-11,273"}},{"$f":"'RENTAL ANALYSIS'!AJ55","v":{"v":-11273.25408325492,"d":"-11,273"}},{"$f":"'RENTAL ANALYSIS'!AK55","v":{"v":-11273.25408325492,"d":"-11,273"}},{"$f":"'RENTAL ANALYSIS'!AL55","v":{"v":-11273.25408325492,"d":"-11,273"}},{"$f":"'RENTAL ANALYSIS'!AM55","v":{"v":-11273.25408325492,"d":"-11,273"}},{"$f":"'RENTAL ANALYSIS'!AN55","v":{"v":-11273.25408325492,"d":"-11,273"}},{"$f":"'RENTAL ANALYSIS'!AO55","v":{"v":-11273.25408325492,"d":"-11,273"}},{"$f":"'RENTAL ANALYSIS'!AP55","v":{"v":-11273.25408325492,"d":"-11,273"}},{"$f":"'RENTAL ANALYSIS'!AQ55","v":{"v":-11273.25408325492,"d":"-11,273"}},{"$f":"'RENTAL ANALYSIS'!AR55","v":{"v":-11273.25408325492,"d":"-11,273"}}]
[{"$nulls":6},"Loan Balance",{"$nulls":4},{"$f":"'RENTAL ANALYSIS'!AI56","v":{"v":138096.21657171825,"d":"138,096"}},{"$f":"'RENTAL ANALYSIS'!AJ56","v":{"v":133626.25961776782,"d":"133,626"}},{"$f":"'RENTAL ANALYSIS'!AK56","v":{"v":128927.61118260364,"d":"128,928"}},{"$f":"'RENTAL ANALYSIS'!AL56","v":{"v":123988.5709760174,"d":"123,989"}},{"$f":"'RENTAL ANALYSIS'!AM56","v":{"v":118796.84009874804,"d":"118,797"}},{"$f":"'RENTAL ANALYSIS'!AN56","v":{"v":113339.49041650638,"d":"113,339"}},{"$f":"'RENTAL ANALYSIS'!AO56","v":{"v":107602.93236711695,"d":"107,603"}},{"$f":"'RENTAL ANALYSIS'!AP56","v":{"v":101572.88112061204,"d":"101,573"}},{"$f":"'RENTAL ANALYSIS'!AQ56","v":{"v":95234.32100801183,"d":"95,234"}},{"$f":"'RENTAL ANALYSIS'!AR56","v":{"v":88571.46813021353,"d":"88,571"}}]
[]
[{"$nulls":6},"Property Value",{"$nulls":4},{"$f":"'RENTAL ANALYSIS'!AI63","v":{"v":328021.6644503165,"d":"328,022"}},{"$f":"'RENTAL ANALYSIS'!AJ63","v":{"v":336222.2060615744,"d":"336,222"}},{"$f":"'RENTAL ANALYSIS'!AK63","v":{"v":344627.7612131137,"d":"344,628"}},{"$f":"'RENTAL ANALYSIS'!AL63","v":{"v":353243.45524344157,"d":"353,243"}},{"$f":"'RENTAL ANALYSIS'!AM63","v":{"v":362074.5416245276,"d":"362,075"}},{"$f":"'RENTAL ANALYSIS'!AN63","v":{"v":371126.40516514075,"d":"371,126"}},{"$f":"'RENTAL ANALYSIS'!AO63","v":{"v":380404.56529426924,"d":"380,405"}},{"$f":"'RENTAL ANALYSIS'!AP63","v":{"v":389914.67942662595,"d":"389,915"}},{"$f":"'RENTAL ANALYSIS'!AQ63","v":{"v":399662.5464122916,"d":"399,663"}},{"$f":"'RENTAL ANALYSIS'!AR63","v":{"v":409654.11007259885,"d":"409,654"}}]
[]
[{"$nulls":6},"Cash Flow "]
[{"$nulls":6},"Cash Flow",{"$nulls":4},{"$f":"'RENTAL ANALYSIS'!AI70","v":{"v":-1994.4282298008056,"d":"-1,994"}},{"$f":"'RENTAL ANALYSIS'!AJ70","v":{"v":-1901.6399712662624,"d":"-1,902"}},{"$f":"'RENTAL ANALYSIS'!AK70","v":{"v":-1807.9238301463774,"d":"-1,808"}},{"$f":"'RENTAL ANALYSIS'!AL70","v":{"v":-1713.270527615292,"d":"-1,713"}},{"$f":"'RENTAL ANALYSIS'!AM70","v":{"v":-1617.670692058895,"d":"-1,618"}},{"$f":"'RENTAL ANALYSIS'!AN70","v":{"v":-1521.1148581469333,"d":"-1,521"}},{"$f":"'RENTAL ANALYSIS'!AO70","v":{"v":-1423.593465895854,"d":"-1,424"}},{"$f":"'RENTAL ANALYSIS'!AP70","v":{"v":-1325.0968597222636,"d":"-1,325"}},{"$f":"'RENTAL ANALYSIS'!AQ70","v":{"v":-1225.615287486935,"d":"-1,226"}},{"$f":"'RENTAL ANALYSIS'!AR70","v":{"v":-1125.1388995292546,"d":"-1,125"}}]
[{"$nulls":6},"Levered Cash-On-Cash ROI",{"$nulls":4},{"$f":"'RENTAL ANALYSIS'!AI72","v":"inf %"},{"$f":"'RENTAL ANALYSIS'!AJ72","v":"inf %"},{"$f":"'RENTAL ANALYSIS'!AK72","v":"inf %"},{"$f":"'RENTAL ANALYSIS'!AL72","v":"inf %"},{"$f":"'RENTAL ANALYSIS'!AM72","v":"inf %"},{"$f":"'RENTAL ANALYSIS'!AN72","v":"inf %"},{"$f":"'RENTAL ANALYSIS'!AO72","v":"inf %"},{"$f":"'RENTAL ANALYSIS'!AP72","v":"inf %"},{"$f":"'RENTAL ANALYSIS'!AQ72","v":"inf %"},{"$f":"'RENTAL ANALYSIS'!AR72","v":"inf %"}]
[{"$nulls":6},"Equity"]
[{"$nulls":6},"Equity Earned from Purchase & Rehab",{"$nulls":4},{"$f":"'RENTAL ANALYSIS'!AI75","v":0},{"$f":"'RENTAL ANALYSIS'!AJ75","v":0},{"$f":"'RENTAL ANALYSIS'!AK75","v":0},{"$f":"'RENTAL ANALYSIS'!AL75","v":0},{"$f":"'RENTAL ANALYSIS'!AM75","v":0},{"$f":"'RENTAL ANALYSIS'!AN75","v":0},{"$f":"'RENTAL ANALYSIS'!AO75","v":0},{"$f":"'RENTAL ANALYSIS'!AP75","v":0},{"$f":"'RENTAL ANALYSIS'!AQ75","v":0},{"$f":"'RENTAL ANALYSIS'!AR75","v":0}]
[{"$nulls":6},"Equity Earned (Principal Paydown)",{"$nulls":4},{"$f":"'RENTAL ANALYSIS'!AI76","v":{"v":4252.3962892473055,"d":"4,252"}},{"$f":"'RENTAL ANALYSIS'!AJ76","v":{"v":4469.956953950436,"d":"4,470"}},{"$f":"'RENTAL ANALYSIS'!AK76","v":{"v":4698.648435164192,"d":"4,699"}},{"$f":"'RENTAL ANALYSIS'!AL76","v":{"v":4939.040206586228,"d":"4,939"}},{"$f":"'RENTAL ANALYSIS'!AM76","v":{"v":5191.730877269366,"d":"5,192"}},{"$f":"'RENTAL ANALYSIS'!AN76","v":{"v":5457.349682241662,"d":"5,457"}},{"$f":"'RENTAL ANALYSIS'!AO76","v":{"v":5736.5580493894195,"d":"5,737"}},{"$f":"'RENTAL ANALYSIS'!AP76","v":{"v":6030.051246504915,"d":"6,030"}},{"$f":"'RENTAL ANALYSIS'!AQ76","v":{"v":6338.560112600218,"d":"6,339"}},{"$f":"'RENTAL ANALYSIS'!AR76","v":{"v":6662.852877798297,"d":"6,663"}}]
[{"$nulls":6},"Equity Earned (Appreciation)",{"$nulls":4},{"$f":"'RENTAL ANALYSIS'!AI77","v":{"v":8000.528401227202,"d":"8,001"}},{"$f":"'RENTAL ANALYSIS'!AJ77","v":{"v":8200.541611257882,"d":"8,201"}},{"$f":"'RENTAL ANALYSIS'!AK77","v":{"v":8405.55515153933,"d":"8,406"}},{"$f":"'RENTAL ANALYSIS'!AL77","v":{"v":8615.694030327839,"d":"8,616"}},{"$f":"'RENTAL ANALYSIS'!AM77","v":{"v":8831.086381086032,"d":"8,831"}},{"$f":"'RENTAL ANALYSIS'!AN77","v":{"v":9051.86354061315,"d":"9,052"}},{"$f":"'RENTAL ANALYSIS'!AO77","v":{"v":9278.16012912849,"d":"9,278"}},{"$f":"'RENTAL ANALYSIS'!AP77","v":{"v":9510.114132356714,"d":"9,510"}},{"$f":"'RENTAL ANALYSIS'!AQ77","v":{"v":9747.866985665634,"d":"9,748"}},{"$f":"'RENTAL ANALYSIS'!AR77","v":{"v":9991.563660307263,"d":"9,992"}}]
[{"$nulls":6},"Total Equity Earned",{"$nulls":4},{"$f":"'RENTAL ANALYSIS'!AI78","v":{"v":12252.924690474509,"d":"12,253"}},{"$f":"'RENTAL ANALYSIS'!AJ78","v":{"v":12670.49856520832,"d":"12,670"}},{"$f":"'RENTAL ANALYSIS'!AK78","v":{"v":13104.203586703523,"d":"13,104"}},{"$f":"'RENTAL ANALYSIS'!AL78","v":{"v":13554.734236914068,"d":"13,555"}},{"$f":"'RENTAL ANALYSIS'!AM78","v":{"v":14022.817258355397,"d":"14,023"}},{"$f":"'RENTAL ANALYSIS'!AN78","v":{"v":14509.213222854813,"d":"14,509"}},{"$f":"'RENTAL ANALYSIS'!AO78","v":{"v":15014.71817851791,"d":"15,015"}},{"$f":"'RENTAL ANALYSIS'!AP78","v":{"v":15540.165378861628,"d":"15,540"}},{"$f":"'RENTAL ANALYSIS'!AQ78","v":{"v":16086.427098265853,"d":"16,086"}},{"$f":"'RENTAL ANALYSIS'!AR78","v":{"v":16654.41653810556,"d":"16,654"}}]
[{"$nulls":6},"Total Return"]
[{"$nulls":6},"Total Return",{"$nulls":4},{"$f":"'RENTAL ANALYSIS'!AI82","v":{"v":10258.496460673703,"d":"10,258"}},{"$f":"'RENTAL ANALYSIS'!AJ82","v":{"v":10768.858593942057,"d":"10,769"}},{"$f":"'RENTAL ANALYSIS'!AK82","v":{"v":11296.279756557145,"d":"11,296"}},{"$f":"'RENTAL ANALYSIS'!AL82","v":{"v":11841.463709298776,"d":"11,841"}},{"$f":"'RENTAL ANALYSIS'!AM82","v":{"v":12405.146566296502,"d":"12,405"}},{"$f":"'RENTAL ANALYSIS'!AN82","v":{"v":12988.09836470788,"d":"12,988"}},{"$f":"'RENTAL ANALYSIS'!AO82","v":{"v":13591.124712622055,"d":"13,591"}},{"$f":"'RENTAL ANALYSIS'!AP82","v":{"v":14215.068519139364,"d":"14,215"}},{"$f":"'RENTAL ANALYSIS'!AQ82","v":{"v":14860.811810778918,"d":"14,861"}},{"$f":"'RENTAL ANALYSIS'!AR82","v":{"v":15529.277638576306,"d":"15,529"}}]
[{"$nulls":6},"Total Return-on-Cash",{"$nulls":4},{"$f":"'RENTAL ANALYSIS'!AI85","v":"inf %"},{"$f":"'RENTAL ANALYSIS'!AJ85","v":"inf %"},{"$f":"'RENTAL ANALYSIS'!AK85","v":"inf %"},{"$f":"'RENTAL ANALYSIS'!AL85","v":"inf %"},{"$f":"'RENTAL ANALYSIS'!AM85","v":"inf %"},{"$f":"'RENTAL ANALYSIS'!AN85","v":"inf %"},{"$f":"'RENTAL ANALYSIS'!AO85","v":"inf %"},{"$f":"'RENTAL ANALYSIS'!AP85","v":"inf %"},{"$f":"'RENTAL ANALYSIS'!AQ85","v":"inf %"},{"$f":"'RENTAL ANALYSIS'!AR85","v":"inf %"}]
[]
[{"$nulls":6},{"$f":"CONCATENATE(\"Report Prepared By: \",Investor_Name,\"  |  \",Company_Name,\"  |  \",Company_Email,\"  |  \",Company_Email)","v":"Report Prepared By: Dave  |  Dave Inc  |  dave@venturesheets.com  |  dave@venturesheets.com"}]
[{"$nulls":6},{"$f":"CONCATENATE(Street_Address,\", \",City_State_Zip)","v":"1234 Main St, Kansas City, MO 64116"}]
[]
[{"$nulls":6},"CASH FLOW REPORT"]
[]
[{"$nulls":6},"Revenues",{"$nulls":4},21,22,23,24,25,26,27,28,29,30]
[{"$nulls":6},{"$f":"T('RENTAL ANALYSIS'!D18:M18)","v":"Rental Unit 1  -  ( units, square feet, beds, baths)"},{"$nulls":4},{"$f":"'RENTAL ANALYSIS'!AS18","v":{"v":18302.850599219506,"d":"18,303"}},{"$f":"'RENTAL ANALYSIS'!AT18","v":{"v":18485.8791052117,"d":"18,486"}},{"$f":"'RENTAL ANALYSIS'!AU18","v":{"v":18670.737896263818,"d":"18,671"}},{"$f":"'RENTAL ANALYSIS'!AV18","v":{"v":18857.445275226455,"d":"18,857"}},{"$f":"'RENTAL ANALYSIS'!AW18","v":{"v":19046.01972797872,"d":"19,046"}},{"$f":"'RENTAL ANALYSIS'!AX18","v":{"v":19236.479925258507,"d":"19,236"}},{"$f":"'RENTAL ANALYSIS'!AY18","v":{"v":19428.84472451109,"d":"19,429"}},{"$f":"'RENTAL ANALYSIS'!AZ18","v":{"v":19623.133171756203,"d":"19,623"}},{"$f":"'RENTAL ANALYSIS'!BA18","v":{"v":19819.364503473764,"d":"19,819"}},{"$f":"'RENTAL ANALYSIS'!BB18","v":{"v":20017.558148508502,"d":"20,018"}}]
[{"$nulls":6},{"$f":"T('RENTAL ANALYSIS'!D19:M19)","v":"Rental Unit 2  -  ( units, square feet, beds, baths)"},{"$nulls":4},{"$f":"'RENTAL ANALYSIS'!AS19","v":0},{"$f":"'RENTAL ANALYSIS'!AT19","v":0},{"$f":"'RENTAL ANALYSIS'!AU19","v":0},{"$f":"'RENTAL ANALYSIS'!AV19","v":0},{"$f":"'RENTAL ANALYSIS'!AW19","v":0},{"$f":"'RENTAL ANALYSIS'!AX19","v":0},{"$f":"'RENTAL ANALYSIS'!AY19","v":0},{"$f":"'RENTAL ANALYSIS'!AZ19","v":0},{"$f":"'RENTAL ANALYSIS'!BA19","v":0},{"$f":"'RENTAL ANALYSIS'!BB19","v":0}]
[{"$nulls":6},{"$f":"T('RENTAL ANALYSIS'!D20:M20)","v":"Rental Unit 3  -  ( units, square feet, beds, baths)"},{"$nulls":4},{"$f":"'RENTAL ANALYSIS'!AS20","v":0},{"$f":"'RENTAL ANALYSIS'!AT20","v":0},{"$f":"'RENTAL ANALYSIS'!AU20","v":0},{"$f":"'RENTAL ANALYSIS'!AV20","v":0},{"$f":"'RENTAL ANALYSIS'!AW20","v":0},{"$f":"'RENTAL ANALYSIS'!AX20","v":0},{"$f":"'RENTAL ANALYSIS'!AY20","v":0},{"$f":"'RENTAL ANALYSIS'!AZ20","v":0},{"$f":"'RENTAL ANALYSIS'!BA20","v":0},{"$f":"'RENTAL ANALYSIS'!BB20","v":0}]
[{"$nulls":6},{"$f":"T('RENTAL ANALYSIS'!D21:M21)","v":"Rental Unit 4  -  ( units, square feet, beds, baths)"},{"$nulls":4},{"$f":"'RENTAL ANALYSIS'!AS21","v":0},{"$f":"'RENTAL ANALYSIS'!AT21","v":0},{"$f":"'RENTAL ANALYSIS'!AU21","v":0},{"$f":"'RENTAL ANALYSIS'!AV21","v":0},{"$f":"'RENTAL ANALYSIS'!AW21","v":0},{"$f":"'RENTAL ANALYSIS'!AX21","v":0},{"$f":"'RENTAL ANALYSIS'!AY21","v":0},{"$f":"'RENTAL ANALYSIS'!AZ21","v":0},{"$f":"'RENTAL ANALYSIS'!BA21","v":0},{"$f":"'RENTAL ANALYSIS'!BB21","v":0}]
[{"$nulls":6},{"$f":"T('RENTAL ANALYSIS'!D22:M22)","v":"Rental Unit 5  -  ( units, square feet, beds, baths)"},{"$nulls":4},{"$f":"'RENTAL ANALYSIS'!AS22","v":0},{"$f":"'RENTAL ANALYSIS'!AT22","v":0},{"$f":"'RENTAL ANALYSIS'!AU22","v":0},{"$f":"'RENTAL ANALYSIS'!AV22","v":0},{"$f":"'RENTAL ANALYSIS'!AW22","v":0},{"$f":"'RENTAL ANALYSIS'!AX22","v":0},{"$f":"'RENTAL ANALYSIS'!AY22","v":0},{"$f":"'RENTAL ANALYSIS'!AZ22","v":0},{"$f":"'RENTAL ANALYSIS'!BA22","v":0},{"$f":"'RENTAL ANALYSIS'!BB22","v":0}]
[{"$nulls":6},{"$f":"T('RENTAL ANALYSIS'!D23:M23)","v":"GROSS SCHEDULED INCOME"},{"$nulls":4},{"$f":"'RENTAL ANALYSIS'!AS23","v":{"v":18302.850599219506,"d":"18,303"}},{"$f":"'RENTAL ANALYSIS'!AT23","v":{"v":18485.8791052117,"d":"18,486"}},{"$f":"'RENTAL ANALYSIS'!AU23","v":{"v":18670.737896263818,"d":"18,671"}},{"$f":"'RENTAL ANALYSIS'!AV23","v":{"v":18857.445275226455,"d":"18,857"}},{"$f":"'RENTAL ANALYSIS'!AW23","v":{"v":19046.01972797872,"d":"19,046"}},{"$f":"'RENTAL ANALYSIS'!AX23","v":{"v":19236.479925258507,"d":"19,236"}},{"$f":"'RENTAL ANALYSIS'!AY23","v":{"v":19428.84472451109,"d":"19,429"}},{"$f":"'RENTAL ANALYSIS'!AZ23","v":{"v":19623.133171756203,"d":"19,623"}},{"$f":"'RENTAL ANALYSIS'!BA23","v":{"v":19819.364503473764,"d":"19,819"}},{"$f":"'RENTAL ANALYSIS'!BB23","v":{"v":20017.558148508502,"d":"20,018"}}]
[{"$nulls":6},"Vacancy Loss Amount",{"$nulls":4},{"$f":"'RENTAL ANALYSIS'!AS24","v":0},{"$f":"'RENTAL ANALYSIS'!AT24","v":0},{"$f":"'RENTAL ANALYSIS'!AU24","v":0},{"$f":"'RENTAL ANALYSIS'!AV24","v":0},{"$f":"'RENTAL ANALYSIS'!AW24","v":0},{"$f":"'RENTAL ANALYSIS'!AX24","v":0},{"$f":"'RENTAL ANALYSIS'!AY24","v":0},{"$f":"'RENTAL ANALYSIS'!AZ24","v":0},{"$f":"'RENTAL ANALYSIS'!BA24","v":0},{"$f":"'RENTAL ANALYSIS'!BB24","v":0}]
[{"$nulls":6},"Tenant Concessions",{"$nulls":4},{"$f":"'RENTAL ANALYSIS'!AS25","v":0},{"$f":"'RENTAL ANALYSIS'!AT25","v":0},{"$f":"'RENTAL ANALYSIS'!AU25","v":0},{"$f":"'RENTAL ANALYSIS'!AV25","v":0},{"$f":"'RENTAL ANALYSIS'!AW25","v":0},{"$f":"'RENTAL ANALYSIS'!AX25","v":0},{"$f":"'RENTAL ANALYSIS'!AY25","v":0},{"$f":"'RENTAL ANALYSIS'!AZ25","v":0},{"$f":"'RENTAL ANALYSIS'!BA25","v":0},{"$f":"'RENTAL ANALYSIS'!BB25","v":0}]
[{"$nulls":6},"Other Income",{"$nulls":4},{"$f":"'RENTAL ANALYSIS'!AS26","v":0},{"$f":"'RENTAL ANALYSIS'!AT26","v":0},{"$f":"'RENTAL ANALYSIS'!AU26","v":0},{"$f":"'RENTAL ANALYSIS'!AV26","v":0},{"$f":"'RENTAL ANALYSIS'!AW26","v":0},{"$f":"'RENTAL ANALYSIS'!AX26","v":0},{"$f":"'RENTAL ANALYSIS'!AY26","v":0},{"$f":"'RENTAL ANALYSIS'!AZ26","v":0},{"$f":"'RENTAL ANALYSIS'!BA26","v":0},{"$f":"'RENTAL ANALYSIS'!BB26","v":0}]
[{"$nulls":6},"Gross Operating Income",{"$nulls":4},{"$f":"'RENTAL ANALYSIS'!AS27","v":{"v":18302.850599219506,"d":"18,303"}},{"$f":"'RENTAL ANALYSIS'!AT27","v":{"v":18485.8791052117,"d":"18,486"}},{"$f":"'RENTAL ANALYSIS'!AU27","v":{"v":18670.737896263818,"d":"18,671"}},{"$f":"'RENTAL ANALYSIS'!AV27","v":{"v":18857.445275226455,"d":"18,857"}},{"$f":"'RENTAL ANALYSIS'!AW27","v":{"v":19046.01972797872,"d":"19,046"}},{"$f":"'RENTAL ANALYSIS'!AX27","v":{"v":19236.479925258507,"d":"19,236"}},{"$f":"'RENTAL ANALYSIS'!AY27","v":{"v":19428.84472451109,"d":"19,429"}},{"$f":"'RENTAL ANALYSIS'!AZ27","v":{"v":19623.133171756203,"d":"19,623"}},{"$f":"'RENTAL ANALYSIS'!BA27","v":{"v":19819.364503473764,"d":"19,819"}},{"$f":"'RENTAL ANALYSIS'!BB27","v":{"v":20017.558148508502,"d":"20,018"}}]
[]
[{"$nulls":6},"Operating Expenses"]
[{"$nulls":6},{"$f":"T('RENTAL ANALYSIS'!D31:M31)","v":"Property Taxes"},{"$nulls":4},{"$f":"'RENTAL ANALYSIS'!AS31","v":{"v":-2440.3800798959332,"d":"-2,440"}},{"$f":"'RENTAL ANALYSIS'!AT31","v":{"v":-2464.7838806948926,"d":"-2,465"}},{"$f":"'RENTAL ANALYSIS'!AU31","v":{"v":-2489.4317195018416,"d":"-2,489"}},{"$f":"'RENTAL ANALYSIS'!AV31","v":{"v":-2514.3260366968602,"d":"-2,514"}},{"$f":"'RENTAL ANALYSIS'!AW31","v":{"v":-2539.469297063829,"d":"-2,539"}},{"$f":"'RENTAL ANALYSIS'!AX31","v":{"v":-2564.8639900344674,"d":"-2,565"}},{"$f":"'RENTAL ANALYSIS'!AY31","v":{"v":-2590.512629934812,"d":"-2,591"}},{"$f":"'RENTAL ANALYSIS'!AZ31","v":{"v":-2616.41775623416,"d":"-2,616"}},{"$f":"'RENTAL ANALYSIS'!BA31","v":{"v":-2642.5819337965017,"d":"-2,643"}},{"$f":"'RENTAL ANALYSIS'!BB31","v":{"v":-2669.007753134467,"d":"-2,669"}}]
[{"$nulls":6},{"$f":"T('RENTAL ANALYSIS'!D32:M32)","v":"Property Insurance"},{"$nulls":4},{"$f":"'RENTAL ANALYSIS'!AS32","v":{"v":-122.0190039947967,"d":"-122"}},{"$f":"'RENTAL ANALYSIS'!AT32","v":{"v":-123.23919403474467,"d":"-123"}},{"$f":"'RENTAL ANALYSIS'!AU32","v":{"v":-124.47158597509213,"d":"-124"}},{"$f":"'RENTAL ANALYSIS'!AV32","v":{"v":-125.71630183484305,"d":"-126"}},{"$f":"'RENTAL ANALYSIS'!AW32","v":{"v":-126.97346485319149,"d":"-127"}},{"$f":"'RENTAL ANALYSIS'!AX32","v":{"v":-128.2431995017234,"d":"-128"}},{"$f":"'RENTAL ANALYSIS'!AY32","v":{"v":-129.52563149674066,"d":"-130"}},{"$f":"'RENTAL ANALYSIS'!AZ32","v":{"v":-130.82088781170808,"d":"-131"}},{"$f":"'RENTAL ANALYSIS'!BA32","v":{"v":-132.12909668982516,"d":"-132"}},{"$f":"'RENTAL ANALYSIS'!BB32","v":{"v":-133.45038765672342,"d":"-133"}}]
[{"$nulls":6},{"$f":"T('RENTAL ANALYSIS'!D33:M33)","v":"Cleaning and Maintenance:"},{"$nulls":4},{"$f":"'RENTAL ANALYSIS'!AS33","v":0},{"$f":"'RENTAL ANALYSIS'!AT33","v":0},{"$f":"'RENTAL ANALYSIS'!AU33","v":0},{"$f":"'RENTAL ANALYSIS'!AV33","v":0},{"$f":"'RENTAL ANALYSIS'!AW33","v":0},{"$f":"'RENTAL ANALYSIS'!AX33","v":0},{"$f":"'RENTAL ANALYSIS'!AY33","v":0},{"$f":"'RENTAL ANALYSIS'!AZ33","v":0},{"$f":"'RENTAL ANALYSIS'!BA33","v":0},{"$f":"'RENTAL ANALYSIS'!BB33","v":0}]
[{"$nulls":6},{"$f":"T('RENTAL ANALYSIS'!D34:M34)","v":"HOA Dues:"},{"$nulls":4},{"$f":"'RENTAL ANALYSIS'!AS34","v":0},{"$f":"'RENTAL ANALYSIS'!AT34","v":0},{"$f":"'RENTAL ANALYSIS'!AU34","v":0},{"$f":"'RENTAL ANALYSIS'!AV34","v":0},{"$f":"'RENTAL ANALYSIS'!AW34","v":0},{"$f":"'RENTAL ANALYSIS'!AX34","v":0},{"$f":"'RENTAL ANALYSIS'!AY34","v":0},{"$f":"'RENTAL ANALYSIS'!AZ34","v":0},{"$f":"'RENTAL ANALYSIS'!BA34","v":0},{"$f":"'RENTAL ANALYSIS'!BB34","v":0}]
[{"$nulls":6},{"$f":"T('RENTAL ANALYSIS'!D35:M35)","v":"Lawn and Groundskeeping:"},{"$nulls":4},{"$f":"'RENTAL ANALYSIS'!AS35","v":0},{"$f":"'RENTAL ANALYSIS'!AT35","v":0},{"$f":"'RENTAL ANALYSIS'!AU35","v":0},{"$f":"'RENTAL ANALYSIS'!AV35","v":0},{"$f":"'RENTAL ANALYSIS'!AW35","v":0},{"$f":"'RENTAL ANALYSIS'!AX35","v":0},{"$f":"'RENTAL ANALYSIS'!AY35","v":0},{"$f":"'RENTAL ANALYSIS'!AZ35","v":0},{"$f":"'RENTAL ANALYSIS'!BA35","v":0},{"$f":"'RENTAL ANALYSIS'!BB35","v":0}]
[{"$nulls":6},{"$f":"T('RENTAL ANALYSIS'!D36:M36)","v":"Auto and Travel:"},{"$nulls":4},{"$f":"'RENTAL ANALYSIS'!AS36","v":0},{"$f":"'RENTAL ANALYSIS'!AT36","v":0},{"$f":"'RENTAL ANALYSIS'!AU36","v":0},{"$f":"'RENTAL ANALYSIS'!AV36","v":0},{"$f":"'RENTAL ANALYSIS'!AW36","v":0},{"$f":"'RENTAL ANALYSIS'!AX36","v":0},{"$f":"'RENTAL ANALYSIS'!AY36","v":0},{"$f":"'RENTAL ANALYSIS'!AZ36","v":0},{"$f":"'RENTAL ANALYSIS'!BA36","v":0},{"$f":"'RENTAL ANALYSIS'!BB36","v":0}]
[{"$nulls":6},{"$f":"T('RENTAL ANALYSIS'!D37:M37)","v":"Electrical Utilities:"},{"$nulls":4},{"$f":"'RENTAL ANALYSIS'!AS37","v":0},{"$f":"'RENTAL ANALYSIS'!AT37","v":0},{"$f":"'RENTAL ANALYSIS'!AU37","v":0},{"$f":"'RENTAL ANALYSIS'!AV37","v":0},{"$f":"'RENTAL ANALYSIS'!AW37","v":0},{"$f":"'RENTAL ANALYSIS'!AX37","v":0},{"$f":"'RENTAL ANALYSIS'!AY37","v":0},{"$f":"'RENTAL ANALYSIS'!AZ37","v":0},{"$f":"'RENTAL ANALYSIS'!BA37","v":0},{"$f":"'RENTAL ANALYSIS'!BB37","v":0}]
[{"$nulls":6},{"$f":"T('RENTAL ANALYSIS'!D38:M38)","v":"Water Utilities:"},{"$nulls":4},{"$f":"'RENTAL ANALYSIS'!AS38","v":0},{"$f":"'RENTAL ANALYSIS'!AT38","v":0},{"$f":"'RENTAL ANALYSIS'!AU38","v":0},{"$f":"'RENTAL ANALYSIS'!AV38","v":0},{"$f":"'RENTAL ANALYSIS'!AW38","v":0},{"$f":"'RENTAL ANALYSIS'!AX38","v":0},{"$f":"'RENTAL ANALYSIS'!AY38","v":0},{"$f":"'RENTAL ANALYSIS'!AZ38","v":0},{"$f":"'RENTAL ANALYSIS'!BA38","v":0},{"$f":"'RENTAL ANALYSIS'!BB38","v":0}]
[{"$nulls":6},{"$f":"T('RENTAL ANALYSIS'!D39:M39)","v":"Gas Utilities:"},{"$nulls":4},{"$f":"'RENTAL ANALYSIS'!AS39","v":0},{"$f":"'RENTAL ANALYSIS'!AT39","v":0},{"$f":"'RENTAL ANALYSIS'!AU39","v":0},{"$f":"'RENTAL ANALYSIS'!AV39","v":0},{"$f":"'RENTAL ANALYSIS'!AW39","v":0},{"$f":"'RENTAL ANALYSIS'!AX39","v":0},{"$f":"'RENTAL ANALYSIS'!AY39","v":0},{"$f":"'RENTAL ANALYSIS'!AZ39","v":0},{"$f":"'RENTAL ANALYSIS'!BA39","v":0},{"$f":"'RENTAL ANALYSIS'!BB39","v":0}]
[{"$nulls":6},{"$f":"T('RENTAL ANALYSIS'!D40:M40)","v":"Garbage:"},{"$nulls":4},{"$f":"'RENTAL ANALYSIS'!AS40","v":0},{"$f":"'RENTAL ANALYSIS'!AT40","v":0},{"$f":"'RENTAL ANALYSIS'!AU40","v":0},{"$f":"'RENTAL ANALYSIS'!AV40","v":0},{"$f":"'RENTAL ANALYSIS'!AW40","v":0},{"$f":"'RENTAL ANALYSIS'!AX40","v":0},{"$f":"'RENTAL ANALYSIS'!AY40","v":0},{"$f":"'RENTAL ANALYSIS'!AZ40","v":0},{"$f":"'RENTAL ANALYSIS'!BA40","v":0},{"$f":"'RENTAL ANALYSIS'!BB40","v":0}]
[{"$nulls":6},{"$f":"T('RENTAL ANALYSIS'!D41:M41)","v":"Advertising:"},{"$nulls":4},{"$f":"'RENTAL ANALYSIS'!AS41","v":0},{"$f":"'RENTAL ANALYSIS'!AT41","v":0},{"$f":"'RENTAL ANALYSIS'!AU41","v":0},{"$f":"'RENTAL ANALYSIS'!AV41","v":0},{"$f":"'RENTAL ANALYSIS'!AW41","v":0},{"$f":"'RENTAL ANALYSIS'!AX41","v":0},{"$f":"'RENTAL ANALYSIS'!AY41","v":0},{"$f":"'RENTAL ANALYSIS'!AZ41","v":0},{"$f":"'RENTAL ANALYSIS'!BA41","v":0},{"$f":"'RENTAL ANALYSIS'!BB41","v":0}]
[{"$nulls":6},{"$f":"T('RENTAL ANALYSIS'!D42:M42)","v":"Accounting & Legal:"},{"$nulls":4},{"$f":"'RENTAL ANALYSIS'!AS42","v":0},{"$f":"'RENTAL ANALYSIS'!AT42","v":0},{"$f":"'RENTAL ANALYSIS'!AU42","v":0},{"$f":"'RENTAL ANALYSIS'!AV42","v":0},{"$f":"'RENTAL ANALYSIS'!AW42","v":0},{"$f":"'RENTAL ANALYSIS'!AX42","v":0},{"$f":"'RENTAL ANALYSIS'!AY42","v":0},{"$f":"'RENTAL ANALYSIS'!AZ42","v":0},{"$f":"'RENTAL ANALYSIS'!BA42","v":0},{"$f":"'RENTAL ANALYSIS'!BB42","v":0}]
[{"$nulls":6},{"$f":"T('RENTAL ANALYSIS'!D43:M43)","v":"Other 1:"},{"$nulls":4},{"$f":"'RENTAL ANALYSIS'!AS43","v":0},{"$f":"'RENTAL ANALYSIS'!AT43","v":0},{"$f":"'RENTAL ANALYSIS'!AU43","v":0},{"$f":"'RENTAL ANALYSIS'!AV43","v":0},{"$f":"'RENTAL ANALYSIS'!AW43","v":0},{"$f":"'RENTAL ANALYSIS'!AX43","v":0},{"$f":"'RENTAL ANALYSIS'!AY43","v":0},{"$f":"'RENTAL ANALYSIS'!AZ43","v":0},{"$f":"'RENTAL ANALYSIS'!BA43","v":0},{"$f":"'RENTAL ANALYSIS'!BB43","v":0}]
[{"$nulls":6},{"$f":"T('RENTAL ANALYSIS'!D44:M44)","v":"Other 2:"},{"$nulls":4},{"$f":"'RENTAL ANALYSIS'!AS44","v":0},{"$f":"'RENTAL ANALYSIS'!AT44","v":0},{"$f":"'RENTAL ANALYSIS'!AU44","v":0},{"$f":"'RENTAL ANALYSIS'!AV44","v":0},{"$f":"'RENTAL ANALYSIS'!AW44","v":0},{"$f":"'RENTAL ANALYSIS'!AX44","v":0},{"$f":"'RENTAL ANALYSIS'!AY44","v":0},{"$f":"'RENTAL ANALYSIS'!AZ44","v":0},{"$f":"'RENTAL ANALYSIS'!BA44","v":0},{"$f":"'RENTAL ANALYSIS'!BB44","v":0}]
[{"$nulls":6},{"$f":"T('RENTAL ANALYSIS'!D45:M45)","v":"Property Management:"},{"$nulls":4},{"$f":"'RENTAL ANALYSIS'!AS45","v":{"v":-1830.2850599219505,"d":"-1,830"}},{"$f":"'RENTAL ANALYSIS'!AT45","v":{"v":-1848.58791052117,"d":"-1,849"}},{"$f":"'RENTAL ANALYSIS'!AU45","v":{"v":-1867.0737896263818,"d":"-1,867"}},{"$f":"'RENTAL ANALYSIS'!AV45","v":{"v":-1885.7445275226455,"d":"-1,886"}},{"$f":"'RENTAL ANALYSIS'!AW45","v":{"v":-1904.601972797872,"d":"-1,905"}},{"$f":"'RENTAL ANALYSIS'!AX45","v":{"v":-1923.6479925258507,"d":"-1,924"}},{"$f":"'RENTAL ANALYSIS'!AY45","v":{"v":-1942.884472451109,"d":"-1,943"}},{"$f":"'RENTAL ANALYSIS'!AZ45","v":{"v":-1962.31331717562,"d":"-1,962"}},{"$f":"'RENTAL ANALYSIS'!BA45","v":{"v":-1981.9364503473764,"d":"-1,982"}},{"$f":"'RENTAL ANALYSIS'!BB45","v":{"v":-2001.7558148508501,"d":"-2,002"}}]
[{"$nulls":6},{"$f":"T('RENTAL ANALYSIS'!D46:M46)","v":"Repairs:"},{"$nulls":4},{"$f":"'RENTAL ANALYSIS'!AS46","v":{"v":-1830.2850599219505,"d":"-1,830"}},{"$f":"'RENTAL ANALYSIS'!AT46","v":{"v":-1848.58791052117,"d":"-1,849"}},{"$f":"'RENTAL ANALYSIS'!AU46","v":{"v":-1867.0737896263818,"d":"-1,867"}},{"$f":"'RENTAL ANALYSIS'!AV46","v":{"v":-1885.7445275226455,"d":"-1,886"}},{"$f":"'RENTAL ANALYSIS'!AW46","v":{"v":-1904.601972797872,"d":"-1,905"}},{"$f":"'RENTAL ANALYSIS'!AX46","v":{"v":-1923.6479925258507,"d":"-1,924"}},{"$f":"'RENTAL ANALYSIS'!AY46","v":{"v":-1942.884472451109,"d":"-1,943"}},{"$f":"'RENTAL ANALYSIS'!AZ46","v":{"v":-1962.31331717562,"d":"-1,962"}},{"$f":"'RENTAL ANALYSIS'!BA46","v":{"v":-1981.9364503473764,"d":"-1,982"}},{"$f":"'RENTAL ANALYSIS'!BB46","v":{"v":-2001.7558148508501,"d":"-2,002"}}]
[{"$nulls":6},{"$f":"T('RENTAL ANALYSIS'!D47:M47)","v":"Cap Ex:"},{"$nulls":4},{"$f":"'RENTAL ANALYSIS'!AS47","v":{"v":-1830.2850599219505,"d":"-1,830"}},{"$f":"'RENTAL ANALYSIS'!AT47","v":{"v":-1848.58791052117,"d":"-1,849"}},{"$f":"'RENTAL ANALYSIS'!AU47","v":{"v":-1867.0737896263818,"d":"-1,867"}},{"$f":"'RENTAL ANALYSIS'!AV47","v":{"v":-1885.7445275226455,"d":"-1,886"}},{"$f":"'RENTAL ANALYSIS'!AW47","v":{"v":-1904.601972797872,"d":"-1,905"}},{"$f":"'RENTAL ANALYSIS'!AX47","v":{"v":-1923.6479925258507,"d":"-1,924"}},{"$f":"'RENTAL ANALYSIS'!AY47","v":{"v":-1942.884472451109,"d":"-1,943"}},{"$f":"'RENTAL ANALYSIS'!AZ47","v":{"v":-1962.31331717562,"d":"-1,962"}},{"$f":"'RENTAL ANALYSIS'!BA47","v":{"v":-1981.9364503473764,"d":"-1,982"}},{"$f":"'RENTAL ANALYSIS'!BB47","v":{"v":-2001.7558148508501,"d":"-2,002"}}]
[{"$nulls":6},"Total Operating Expenses",{"$nulls":4},{"$f":"'RENTAL ANALYSIS'!AS48","v":{"v":-8053.254263656581,"d":"-8,053"}},{"$f":"'RENTAL ANALYSIS'!AT48","v":{"v":-8133.786806293147,"d":"-8,134"}},{"$f":"'RENTAL ANALYSIS'!AU48","v":{"v":-8215.124674356079,"d":"-8,215"}},{"$f":"'RENTAL ANALYSIS'!AV48","v":{"v":-8297.27592109964,"d":"-8,297"}},{"$f":"'RENTAL ANALYSIS'!AW48","v":{"v":-8380.248680310637,"d":"-8,380"}},{"$f":"'RENTAL ANALYSIS'!AX48","v":{"v":-8464.051167113743,"d":"-8,464"}},{"$f":"'RENTAL ANALYSIS'!AY48","v":{"v":-8548.69167878488,"d":"-8,549"}},{"$f":"'RENTAL ANALYSIS'!AZ48","v":{"v":-8634.178595572728,"d":"-8,634"}},{"$f":"'RENTAL ANALYSIS'!BA48","v":{"v":-8720.520381528457,"d":"-8,721"}},{"$f":"'RENTAL ANALYSIS'!BB48","v":{"v":-8807.725585343742,"d":"-8,808"}}]
[]
[{"$nulls":6},"Net Operating Income",{"$nulls":4},{"$f":"'RENTAL ANALYSIS'!AS50","v":{"v":10249.596335562925,"d":"10,250"}},{"$f":"'RENTAL ANALYSIS'!AT50","v":{"v":10352.092298918555,"d":"10,352"}},{"$f":"'RENTAL ANALYSIS'!AU50","v":{"v":10455.613221907739,"d":"10,456"}},{"$f":"'RENTAL ANALYSIS'!AV50","v":{"v":10560.169354126816,"d":"10,560"}},{"$f":"'RENTAL ANALYSIS'!AW50","v":{"v":10665.771047668084,"d":"10,666"}},{"$f":"'RENTAL ANALYSIS'!AX50","v":{"v":10772.428758144764,"d":"10,772"}},{"$f":"'RENTAL ANALYSIS'!AY50","v":{"v":10880.15304572621,"d":"10,880"}},{"$f":"'RENTAL ANALYSIS'!AZ50","v":{"v":10988.954576183474,"d":"10,989"}},{"$f":"'RENTAL ANALYSIS'!BA50","v":{"v":11098.844121945307,"d":"11,099"}},{"$f":"'RENTAL ANALYSIS'!BB50","v":{"v":11209.83256316476,"d":"11,210"}}]
[]
[{"$nulls":6},"Financing"]
[{"$nulls":6},"Mortgage PMT (Interest)",{"$nulls":4},{"$f":"'RENTAL ANALYSIS'!AS53","v":{"v":-4269.517006921694,"d":"-4,270"}},{"$f":"'RENTAL ANALYSIS'!AT53","v":{"v":-3911.192525831825,"d":"-3,911"}},{"$f":"'RENTAL ANALYSIS'!AU53","v":{"v":-3534.535484231912,"d":"-3,535"}},{"$f":"'RENTAL ANALYSIS'!AV53","v":{"v":-3138.6079535332256,"d":"-3,139"}},{"$f":"'RENTAL ANALYSIS'!AW53","v":{"v":-2722.42401894037,"d":"-2,722"}},{"$f":"'RENTAL ANALYSIS'!AX53","v":{"v":-2284.947324385854,"d":"-2,285"}},{"$f":"'RENTAL ANALYSIS'!AY53","v":{"v":-1825.0884918589036,"d":"-1,825"}},{"$f":"'RENTAL ANALYSIS'!AZ53","v":{"v":-1341.7024087021946,"d":"-1,342"}},{"$f":"'RENTAL ANALYSIS'!BA53","v":{"v":-833.5853761215731,"d":"-834"}},{"$f":"'RENTAL ANALYSIS'!BB53","v":{"v":-299.47211180809245,"d":"-299"}}]
[{"$nulls":6},"Mortgage PMT (Principal)",{"$nulls":4},{"$f":"'RENTAL ANALYSIS'!AS54","v":{"v":-7003.7370763332265,"d":"-7,004"}},{"$f":"'RENTAL ANALYSIS'!AT54","v":{"v":-7362.061557423095,"d":"-7,362"}},{"$f":"'RENTAL ANALYSIS'!AU54","v":{"v":-7738.718599023008,"d":"-7,739"}},{"$f":"'RENTAL ANALYSIS'!AV54","v":{"v":-8134.646129721695,"d":"-8,135"}},{"$f":"'RENTAL ANALYSIS'!AW54","v":{"v":-8550.83006431455,"d":"-8,551"}},{"$f":"'RENTAL ANALYSIS'!AX54","v":{"v":-8988.306758869066,"d":"-8,988"}},{"$f":"'RENTAL ANALYSIS'!AY54","v":{"v":-9448.165591396017,"d":"-9,448"}},{"$f":"'RENTAL ANALYSIS'!AZ54","v":{"v":-9931.551674552726,"d":"-9,932"}},{"$f":"'RENTAL ANALYSIS'!BA54","v":{"v":-10439.668707133347,"d":"-10,440"}},{"$f":"'RENTAL ANALYSIS'!BB54","v":{"v":-10973.781971446828,"d":"-10,974"}}]
[{"$nulls":6},"Total Financing",{"$nulls":4},{"$f":"'RENTAL ANALYSIS'!AS55","v":{"v":-11273.25408325492,"d":"-11,273"}},{"$f":"'RENTAL ANALYSIS'!AT55","v":{"v":-11273.25408325492,"d":"-11,273"}},{"$f":"'RENTAL ANALYSIS'!AU55","v":{"v":-11273.25408325492,"d":"-11,273"}},{"$f":"'RENTAL ANALYSIS'!AV55","v":{"v":-11273.25408325492,"d":"-11,273"}},{"$f":"'RENTAL ANALYSIS'!AW55","v":{"v":-11273.25408325492,"d":"-11,273"}},{"$f":"'RENTAL ANALYSIS'!AX55","v":{"v":-11273.25408325492,"d":"-11,273"}},{"$f":"'RENTAL ANALYSIS'!AY55","v":{"v":-11273.25408325492,"d":"-11,273"}},{"$f":"'RENTAL ANALYSIS'!AZ55","v":{"v":-11273.25408325492,"d":"-11,273"}},{"$f":"'RENTAL ANALYSIS'!BA55","v":{"v":-11273.25408325492,"d":"-11,273"}},{"$f":"'RENTAL ANALYSIS'!BB55","v":{"v":-11273.25408325492,"d":"-11,273"}}]
[{"$nulls":6},"Loan Balance",{"$nulls":4},{"$f":"'RENTAL ANALYSIS'!AS56","v":{"v":81567.7310538803,"d":"81,568"}},{"$f":"'RENTAL ANALYSIS'!AT56","v":{"v":74205.66949645721,"d":"74,206"}},{"$f":"'RENTAL ANALYSIS'!AU56","v":{"v":66466.9508974342,"d":"66,467"}},{"$f":"'RENTAL ANALYSIS'!AV56","v":{"v":58332.30476771251,"d":"58,332"}},{"$f":"'RENTAL ANALYSIS'!AW56","v":{"v":49781.47470339796,"d":"49,781"}},{"$f":"'RENTAL ANALYSIS'!AX56","v":{"v":40793.16794452889,"d":"40,793"}},{"$f":"'RENTAL ANALYSIS'!AY56","v":{"v":31345.002353132873,"d":"31,345"}},{"$f":"'RENTAL ANALYSIS'!AZ56","v":{"v":21413.45067858015,"d":"21,413"}},{"$f":"'RENTAL ANALYSIS'!BA56","v":{"v":10973.781971446802,"d":"10,974"}},{"$f":"'RENTAL ANALYSIS'!BB56","v":{"v":-2.546585164964199e-11,"d":"-0"}}]
[]
[{"$nulls":6},"Property Value",{"$nulls":4},{"$f":"'RENTAL ANALYSIS'!AS63","v":{"v":419895.4628244138,"d":"419,895"}},{"$f":"'RENTAL ANALYSIS'!AT63","v":{"v":430392.84939502407,"d":"430,393"}},{"$f":"'RENTAL ANALYSIS'!AU63","v":{"v":441152.67062989966,"d":"441,153"}},{"$f":"'RENTAL ANALYSIS'!AV63","v":{"v":452181.4873956471,"d":"452,181"}},{"$f":"'RENTAL ANALYSIS'!AW63","v":{"v":463486.0245805382,"d":"463,486"}},{"$f":"'RENTAL ANALYSIS'!AX63","v":{"v":475073.17519505165,"d":"475,073"}},{"$f":"'RENTAL ANALYSIS'!AY63","v":{"v":486950.0045749279,"d":"486,950"}},{"$f":"'RENTAL ANALYSIS'!AZ63","v":{"v":499123.7546893011,"d":"499,124"}},{"$f":"'RENTAL ANALYSIS'!BA63","v":{"v":511601.8485565336,"d":"511,602"}},{"$f":"'RENTAL ANALYSIS'!BB63","v":{"v":524391.8947704468,"d":"524,392"}}]
[]
[{"$nulls":6},"Cash Flow "]
[{"$nulls":6},"Cash Flow",{"$nulls":4},{"$f":"'RENTAL ANALYSIS'!AS70","v":{"v":-1023.6577476919956,"d":"-1,024"}},{"$f":"'RENTAL ANALYSIS'!AT70","v":{"v":-921.1617843363656,"d":"-921"}},{"$f":"'RENTAL ANALYSIS'!AU70","v":{"v":-817.6408613471813,"d":"-818"}},{"$f":"'RENTAL ANALYSIS'!AV70","v":{"v":-713.0847291281043,"d":"-713"}},{"$f":"'RENTAL ANALYSIS'!AW70","v":{"v":-607.4830355868362,"d":"-607"}},{"$f":"'RENTAL ANALYSIS'!AX70","v":{"v":-500.825325110156,"d":"-501"}},{"$f":"'RENTAL ANALYSIS'!AY70","v":{"v":-393.10103752870964,"d":"-393"}},{"$f":"'RENTAL ANALYSIS'!AZ70","v":{"v":-284.299507071446,"d":"-284"}},{"$f":"'RENTAL ANALYSIS'!BA70","v":{"v":-174.4099613096132,"d":"-174"}},{"$f":"'RENTAL ANALYSIS'!BB70","v":{"v":-63.4215200901599,"d":"-63"}}]
[{"$nulls":6},"Levered Cash-On-Cash ROI",{"$nulls":4},{"$f":"'RENTAL ANALYSIS'!AS72","v":"inf %"},{"$f":"'RENTAL ANALYSIS'!AT72","v":"inf %"},{"$f":"'RENTAL ANALYSIS'!AU72","v":"inf %"},{"$f":"'RENTAL ANALYSIS'!AV72","v":"inf %"},{"$f":"'RENTAL ANALYSIS'!AW72","v":"inf %"},{"$f":"'RENTAL ANALYSIS'!AX72","v":"inf %"},{"$f":"'RENTAL ANALYSIS'!AY72","v":"inf %"},{"$f":"'RENTAL ANALYSIS'!AZ72","v":"inf %"},{"$f":"'RENTAL ANALYSIS'!BA72","v":"inf %"},{"$f":"'RENTAL ANALYSIS'!BB72","v":"inf %"}]
[{"$nulls":6},"Equity"]
[{"$nulls":6},"Equity Earned from Purchase & Rehab",{"$nulls":4},{"$f":"'RENTAL ANALYSIS'!AS75","v":0},{"$f":"'RENTAL ANALYSIS'!AT75","v":0},{"$f":"'RENTAL ANALYSIS'!AU75","v":0},{"$f":"'RENTAL ANALYSIS'!AV75","v":0},{"$f":"'RENTAL ANALYSIS'!AW75","v":0},{"$f":"'RENTAL ANALYSIS'!AX75","v":0},{"$f":"'RENTAL ANALYSIS'!AY75","v":0},{"$f":"'RENTAL ANALYSIS'!AZ75","v":0},{"$f":"'RENTAL ANALYSIS'!BA75","v":0},{"$f":"'RENTAL ANALYSIS'!BB75","v":0}]
[{"$nulls":6},"Equity Earned (Principal Paydown)",{"$nulls":4},{"$f":"'RENTAL ANALYSIS'!AS76","v":{"v":7003.7370763332265,"d":"7,004"}},{"$f":"'RENTAL ANALYSIS'!AT76","v":{"v":7362.061557423095,"d":"7,362"}},{"$f":"'RENTAL ANALYSIS'!AU76","v":{"v":7738.718599023008,"d":"7,739"}},{"$f":"'RENTAL ANALYSIS'!AV76","v":{"v":8134.646129721695,"d":"8,135"}},{"$f":"'RENTAL ANALYSIS'!AW76","v":{"v":8550.83006431455,"d":"8,551"}},{"$f":"'RENTAL ANALYSIS'!AX76","v":{"v":8988.306758869066,"d":"8,988"}},{"$f":"'RENTAL ANALYSIS'!AY76","v":{"v":9448.165591396017,"d":"9,448"}},{"$f":"'RENTAL ANALYSIS'!AZ76","v":{"v":9931.551674552726,"d":"9,932"}},{"$f":"'RENTAL ANALYSIS'!BA76","v":{"v":10439.668707133347,"d":"10,440"}},{"$f":"'RENTAL ANALYSIS'!BB76","v":{"v":10973.781971446828,"d":"10,974"}}]
[{"$nulls":6},"Equity Earned (Appreciation)",{"$nulls":4},{"$f":"'RENTAL ANALYSIS'!AS77","v":{"v":10241.352751814935,"d":"10,241"}},{"$f":"'RENTAL ANALYSIS'!AT77","v":{"v":10497.38657061028,"d":"10,497"}},{"$f":"'RENTAL ANALYSIS'!AU77","v":{"v":10759.821234875591,"d":"10,760"}},{"$f":"'RENTAL ANALYSIS'!AV77","v":{"v":11028.81676574744,"d":"11,029"}},{"$f":"'RENTAL ANALYSIS'!AW77","v":{"v":11304.537184891116,"d":"11,305"}},{"$f":"'RENTAL ANALYSIS'!AX77","v":{"v":11587.150614513434,"d":"11,587"}},{"$f":"'RENTAL ANALYSIS'!AY77","v":{"v":11876.82937987626,"d":"11,877"}},{"$f":"'RENTAL ANALYSIS'!AZ77","v":{"v":12173.750114373164,"d":"12,174"}},{"$f":"'RENTAL ANALYSIS'!BA77","v":{"v":12478.0938672325,"d":"12,478"}},{"$f":"'RENTAL ANALYSIS'!BB77","v":{"v":12790.046213913243,"d":"12,790"}}]
[{"$nulls":6},"Total Equity Earned",{"$nulls":4},{"$f":"'RENTAL ANALYSIS'!AS78","v":{"v":17245.08982814816,"d":"17,245"}},{"$f":"'RENTAL ANALYSIS'!AT78","v":{"v":17859.448128033375,"d":"17,859"}},{"$f":"'RENTAL ANALYSIS'!AU78","v":{"v":18498.539833898598,"d":"18,499"}},{"$f":"'RENTAL ANALYSIS'!AV78","v":{"v":19163.462895469136,"d":"19,163"}},{"$f":"'RENTAL ANALYSIS'!AW78","v":{"v":19855.367249205665,"d":"19,855"}},{"$f":"'RENTAL ANALYSIS'!AX78","v":{"v":20575.457373382502,"d":"20,575"}},{"$f":"'RENTAL ANALYSIS'!AY78","v":{"v":21324.994971272277,"d":"21,325"}},{"$f":"'RENTAL ANALYSIS'!AZ78","v":{"v":22105.30178892589,"d":"22,105"}},{"$f":"'RENTAL ANALYSIS'!BA78","v":{"v":22917.762574365846,"d":"22,918"}},{"$f":"'RENTAL ANALYSIS'!BB78","v":{"v":23763.82818536007,"d":"23,764"}}]
[{"$nulls":6},"Total Return"]
[{"$nulls":6},"Total Return",{"$nulls":4},{"$f":"'RENTAL ANALYSIS'!AS82","v":{"v":16221.432080456165,"d":"16,221"}},{"$f":"'RENTAL ANALYSIS'!AT82","v":{"v":16938.286343697007,"d":"16,938"}},{"$f":"'RENTAL ANALYSIS'!AU82","v":{"v":17680.89897255142,"d":"17,681"}},{"$f":"'RENTAL ANALYSIS'!AV82","v":{"v":18450.378166341034,"d":"18,450"}},{"$f":"'RENTAL ANALYSIS'!AW82","v":{"v":19247.88421361883,"d":"19,248"}},{"$f":"'RENTAL ANALYSIS'!AX82","v":{"v":20074.632048272346,"d":"20,075"}},{"$f":"'RENTAL ANALYSIS'!AY82","v":{"v":20931.893933743566,"d":"20,932"}},{"$f":"'RENTAL ANALYSIS'!AZ82","v":{"v":21821.002281854446,"d":"21,821"}},{"$f":"'RENTAL ANALYSIS'!BA82","v":{"v":22743.35261305623,"d":"22,743"}},{"$f":"'RENTAL ANALYSIS'!BB82","v":{"v":23700.40666526991,"d":"23,700"}}]
[{"$nulls":6},"Total Return-on-Cash",{"$nulls":4},{"$f":"'RENTAL ANALYSIS'!AS85","v":"inf %"},{"$f":"'RENTAL ANALYSIS'!AT85","v":"inf %"},{"$f":"'RENTAL ANALYSIS'!AU85","v":"inf %"},{"$f":"'RENTAL ANALYSIS'!AV85","v":"inf %"},{"$f":"'RENTAL ANALYSIS'!AW85","v":"inf %"},{"$f":"'RENTAL ANALYSIS'!AX85","v":"inf %"},{"$f":"'RENTAL ANALYSIS'!AY85","v":"inf %"},{"$f":"'RENTAL ANALYSIS'!AZ85","v":"inf %"},{"$f":"'RENTAL ANALYSIS'!BA85","v":"inf %"},{"$f":"'RENTAL ANALYSIS'!BB85","v":"inf %"}]
[]
[{"$nulls":6},{"$f":"CONCATENATE(\"Report Prepared By: \",Investor_Name,\"  |  \",Company_Name,\"  |  \",Company_Email,\"  |  \",Company_Email)","v":"Report Prepared By: Dave  |  Dave Inc  |  dave@venturesheets.com  |  dave@venturesheets.com"}]
[{"$nulls":6},{"$f":"CONCATENATE(Street_Address,\", \",City_State_Zip)","v":"1234 Main St, Kansas City, MO 64116"}]
[]
[{"$nulls":6},"PROPERTY PHOTOS"]
{"$rows_empty":10}
[{"$nulls":6},"Insert Caption",{"$nulls":4},"Insert Caption",{"$nulls":4},"Insert Caption"]
{"$rows_empty":12}
[{"$nulls":6},"Insert Caption",{"$nulls":4},"Insert Caption",{"$nulls":4},"Insert Caption"]
{"$rows_empty":12}
[{"$nulls":6},"Insert Caption",{"$nulls":4},"Insert Caption",{"$nulls":4},"Insert Caption"]
{"$rows_empty":12}
[{"$nulls":6},"Insert Caption",{"$nulls":4},"Insert Caption",{"$nulls":4},"Insert Caption"]
[]
[]
[]
[{"$nulls":6},{"$f":"CONCATENATE(\"Report Prepared By: \",Investor_Name,\"  |  \",Company_Name,\"  |  \",Company_Email,\"  |  \",Company_Email)","v":"Report Prepared By: Dave  |  Dave Inc  |  dave@venturesheets.com  |  dave@venturesheets.com"}]
[]
["© 2018 by HouseFlippingSpreadsheet.com. All rights reserved"]

{"sheet":"WHOLESALE REPORT","index":38,"n_rows":286,"n_cols":39,"rows_kept":286,"hidden":true,"merged":[[1,2,3,6],[2,33,3,33],[2,34,3,34],[2,35,3,35],[2,36,3,36],[2,37,3,37],[2,38,3,38],[5,8,8,22],[9,15,10,22],[12,7,12,23],[21,8,23,22],[24,8,25,22],[26,8,26,22],[29,8,30,19],[33,8,47,22],[50,8,50,14],[51,8,51,14],[52,8,52,14],[53,8,53,14],[57,7,57,21],[57,22,57,23],[58,7,58,23],[62,18,62,23],[64,18,64,23],[65,18,66,23],[67,18,67,21],[67,22,67,23],[69,18,69,23],[70,18,71,23],[71,7,71,16],[72,7,72,11],[72,12,72,16],[72,18,72,21],[72,22,72,23],[73,7,73,11],[73,12,73,16],[74,7,74,11],[74,12,74,16],[74,18,74,23],[75,7,75,11],[75,12,75,16],[75,18,76,23],[76,7,76,11],[76,12,76,16],[77,18,77,21],[77,22,77,23],[78,7,78,16],[79,7,79,13],[79,14,79,16],[79,18,79,23],[80,7,80,13],[80,14,80,16],[80,18,81,23],[82,7,82,13],[82,14,82,16],[82,18,82,21],[82,22,82,23],[83,7,83,13],[83,14,83,16],[84,7,84,13],[84,14,84,16],[84,18,84,23],[85,7,85,13],[85,14,85,16],[85,18,86,23],[86,7,86,13],[86,14,86,16],[87,7,87,13],[87,14,87,16],[87,18,87,21],[87,22,87,23],[88,7,88,13],[88,14,88,16],[89,18,89,23],[90,7,90,16],[90,18,91,23],[92,7,92,13],[92,14,92,16],[92,18,92,21],[92,22,92,23],[93,7,93,13],[93,14,93,16],[94,7,94,13],[94,14,94,16],[98,7,98,21],[98,22,98,23],[99,7,99,23],[103,7,103,23],[104,7,104,9],[104,10,104,11],[104,12,104,15],[104,16,104,19],[104,20,104,23],[105,7,106,9],[105,10,106,11],[105,12,106,15],[105,16,106,19],[105,20,106,23],[107,7,107,9],[107,10,107,11],[107,12,107,15],[107,16,107,19],[107,20,107,23],[108,7,108,9],[108,10,108,11],[108,12,108,15],[108,16,108,19],[108,20,108,23],[109,7,109,9],[109,10,109,11],[109,12,109,15],[109,16,109,19],[109,20,109,23],[110,7,110,9],[110,10,110,11],[110,12,110,15],[110,16,110,19],[110,20,110,23],[111,7,111,9],[111,10,111,11],[111,12,111,15],[111,16,111,19],[111,20,111,23],[112,7,112,9],[112,10,112,11],[112,12,112,15],[112,16,112,19],[112,20,112,23],[113,7,113,23],[114,7,114,9],[114,10,114,11],[114,12,114,14],[114,16,114,18],[114,20,114,22],[115,7,115,9],[115,10,115,11],[115,12,115,14],[115,16,115,18],[115,20,115,22],[116,7,116,9],[116,10,116,11],[116,12,116,14],[116,16,116,18],[116,20,116,22],[117,7,117,9],[117,10,117,11],[117,12,117,14],[117,16,117,18],[117,20,117,22],[118,7,118,9],[118,10,118,11],[118,12,118,14],[118,16,118,18],[118,20,118,22],[119,7,119,9],[119,10,119,11],[119,12,119,14],[119,16,119,18],[119,20,119,22],[120,7,120,9],[120,10,120,11],[120,12,120,14],[120,16,120,18],[120,20,120,22],[121,7,121,9],[121,10,121,11],[121,12,121,14],[121,16,121,18],[121,20,121,22],[122,7,122,9],[122,10,122,11],[122,12,122,14],[122,16,122,18],[122,20,122,22],[123,7,123,9],[123,10,123,11],[123,12,123,14],[123,16,123,18],[123,20,123,22],[124,7,127,9],[124,10,127,11],[124,12,127,14],[124,15,127,15],[124,16,127,18],[124,19,127,19],[124,20,127,22],[124,23,127,23],[128,7,132,9],[128,10,132,11],[128,12,132,14],[128,15,132,15],[128,16,132,18],[128,19,132,19],[128,20,132,22],[128,23,132,23],[133,7,133,11],[133,12,133,15],[133,16,133,19],[133,20,133,23],[134,7,134,9],[134,10,134,11],[134,12,134,15],[134,16,134,19],[134,20,134,23],[139,7,139,20],[139,22,139,23],[140,7,140,23],[144,7,147,23],[149,7,149,16],[149,17,149,20],[149,21,149,23],[150,7,150,16],[150,17,150,20],[150,21,150,23],[151,7,151,16],[151,17,151,20],[151,21,151,23],[152,7,152,16],[152,17,152,20],[152,21,152,23],[153,7,153,16],[153,17,153,20],[153,21,153,23],[154,7,154,16],[154,17,154,20],[154,21,154,23],[155,7,155,16],[155,17,155,20],[155,21,155,23],[156,7,156,16],[156,17,156,20],[156,21,156,23],[157,7,157,16],[157,17,157,20],[157,21,157,23],[158,7,158,16],[158,17,158,20],[158,21,158,23],[159,7,159,16],[159,17,159,20],[159,21,159,23],[160,7,160,16],[160,17,160,20],[160,21,160,23],[161,7,161,16],[161,17,161,20],[161,21,161,23],[162,7,162,16],[162,17,162,20],[162,21,162,23],[163,7,163,16],[163,17,163,20],[163,21,163,23],[164,7,164,16],[164,17,164,20],[164,21,164,23],[165,7,165,16],[165,17,165,20],[165,21,165,23],[166,7,166,16],[166,17,166,20],[166,21,166,23],[167,7,167,16],[167,17,167,20],[167,21,167,23],[168,7,168,16],[168,17,168,20],[168,21,168,23],[169,7,169,16],[169,17,169,20],[169,21,169,23],[170,7,170,16],[170,17,170,20],[170,21,170,23],[171,7,171,16],[171,17,171,20],[171,21,171,23],[172,7,172,16],[172,17,172,20],[172,21,172,23],[173,7,173,16],[173,17,173,20],[173,21,173,23],[174,7,174,16],[174,17,174,20],[174,21,174,23],[176,7,176,16],[176,17,176,20],[176,21,176,23],[177,7,177,16],[177,17,177,20],[177,21,177,23],[180,7,180,21],[180,22,180,23],[181,7,181,23],[184,7,192,11],[184,13,192,17],[184,19,192,23],[193,7,194,11],[193,13,194,17],[193,19,194,23],[196,7,204,11],[196,13,204,17],[196,19,204,23],[205,7,206,11],[205,13,206,17],[205,19,206,23],[208,7,216,11],[208,13,216,17],[208,19,216,23],[217,7,218,11],[217,13,218,17],[217,19,218,23],[220,7,228,11],[220,13,228,17],[220,19,228,23],[229,7,230,11],[229,13,230,17],[229,19,230,23],[232,7,232,21],[232,22,232,23],[233,7,233,23],[236,7,244,11],[236,13,244,17],[236,19,244,23],[245,7,246,11],[245,13,246,17],[245,19,246,23],[248,7,256,11],[248,13,256,17],[248,19,256,23],[257,7,258,11],[257,13,258,17],[257,19,258,23],[260,7,268,11],[260,13,268,17],[260,19,268,23],[269,7,270,11],[269,13,270,17],[269,19,270,23],[272,7,280,11],[272,13,280,17],[272,19,280,23],[281,7,282,11],[281,13,282,17],[281,19,282,23],[284,7,284,21],[284,22,284,23],[285,7,286,23]]}
[]
[null,null,"WHOLESALE REPORT",{"$nulls":30},"Cover","Summary","Comps","Estimate","Photos","All Hidden?"]
[{"$nulls":33},"Shown","Shown","Shown","Shown","Shown",{"$f":"IF(AND(Investment_Report_Cover_Setting=\"Hidden\",Investment_Report_Summary_Setting=\"Hidden\",Investment_Report_Photo_Setting=\"Hidden\"),\"All Hidden\",\"\")","v":""}]
[]
[]
[{"$nulls":8},"The Investment Report summarizes your Rehab Financial Analysis and can be given to business partners and lenders to highlight your due diligence and financial analysis performed for the project."]
[]
[]
[]
[{"$nulls":15},"Wholesale Marketing Packet"]
[]
[]
[{"$nulls":7},{"$f":"CONCATENATE(Street_Address,\", \",City_State_Zip)","v":"1234 Main St, Kansas City, MO 64116"}]
{"$rows_empty":8}
[{"$nulls":8},"REHAB OPPORTUNITY"]
[]
[]
[{"$nulls":8},{"$f":"T(Street_Address)","v":"1234 Main St"}]
[]
[{"$nulls":8},{"$f":"T(City_State_Zip)","v":"Kansas City, MO 64116"}]
[]
[]
[{"$nulls":8},{"$f":"TODAY()","v":"2019-06-23"}]
[]
[]
[]
[{"$nulls":8},"Insert Cover Photo"]
{"$rows_empty":16}
[{"$nulls":8},{"$f":"Company_Name","v":"Dave Inc"}]
[{"$nulls":8},{"$f":"Investor_Name","v":"Dave"}]
[{"$nulls":8},{"$f":"T(Company_Email)","v":"dave@venturesheets.com"}]
[{"$nulls":8},{"$f":"Company_Phone","v":8161234567}]
[]
[]
[]
[{"$nulls":7},{"$f":"CONCATENATE(\"Report Prepared By: \",Investor_Name,\"  |  \",Company_Name,\"  |  \",Company_Email,\"  |  \",Company_Email)","v":"Report Prepared By: Dave  |  Dave Inc  |  dave@venturesheets.com  |  dave@venturesheets.com"},{"$nulls":14},"Page 1 of 6"]
[{"$nulls":7},{"$f":"CONCATENATE(Street_Address,\", \",City_State_Zip)","v":"1234 Main St, Kansas City, MO 64116"}]
[]
[{"$nulls":7},"PROJECT FINANCIAL OVERVIEW"]
[]
[{"$nulls":18},"PROJECT HIGHLIGHTS"]
[]
[{"$nulls":18},"After Repair Value"]
[{"$nulls":18},{"$f":"O81","v":{"v":250000,"d":"$250,000"}}]
[]
[{"$nulls":18},"Price per SF:",{"$nulls":3},{"$f":"IFERROR(S66/Property_Size,0)","v":{"v":166.66666666666666,"d":"$167 /sf"}}]
[]
[{"$nulls":18},"Purchase Price"]
[{"$nulls":18},{"$f":"-O83","v":{"v":125000,"d":"$125,000"}}]
[{"$nulls":7},"PROPERTY INFO"]
[{"$nulls":7},"# of Beds:",{"$nulls":4},{"$f":"Number_of_Beds","v":3},{"$nulls":5},"% of ARV:",{"$nulls":3},{"$f":"IFERROR(S71/ARV,0)","v":{"v":0.7575757575757576,"d":"75.8%"}}]
[{"$nulls":7},"# of Beds:",{"$nulls":4},{"$f":"Number_of_Baths","v":2}]
[{"$nulls":7},"Square Footage:",{"$nulls":4},{"$f":"Square_Feet","v":{"v":1500,"d":"1500 sf"}},{"$nulls":5},"Total Repairs"]
[{"$nulls":7},"Neighborhood:",{"$nulls":4},{"$f":"Subdivision","v":"The Coves"},{"$nulls":5},{"$f":"-O84+-O85","v":{"v":50000,"d":"$50,000"}}]
[{"$nulls":7},"School District:",{"$nulls":4},{"$f":"School_District","v":"Park Hill School District"}]
[{"$nulls":18},"Price per SF:",{"$nulls":3},{"$f":"IFERROR(S76/Property_Size,0)","v":{"v":33.333333333333336,"d":"$33 /sf"}}]
[{"$nulls":7},"PROJECT FINANCIALS"]
[{"$nulls":14},"Amount",{"$nulls":3},"Total Fixed Costs "]
[{"$nulls":7},"After Repair Value",{"$nulls":6},{"$f":"AFTER_REPAIR_VALUE_WHOLESALE","v":{"v":250000,"d":"$250,000"}},{"$nulls":3},{"$f":"-O86-O87-O88","v":{"v":37500,"d":"$37,500"}}]
[]
[{"$nulls":7},"Purchase Price",{"$nulls":6},{"$f":"-MAXIMUM_PURCHASE_PRICE_WHOLESALE","v":{"v":-125000,"d":"-$125,000"}},{"$nulls":3},"% of ARV:",{"$nulls":3},{"$f":"IFERROR(S81/ARV,0)","v":{"v":0.22727272727272727,"d":"22.7%"}}]
[{"$nulls":7},"Repair Costs",{"$nulls":6},{"$f":"-'WHOLESALE CALC'!BG64","v":{"v":-50000,"d":"-$50,000"}}]
[{"$nulls":7},{"$f":"IF(O85=0,\"Contingeny\",CONCATENATE(\"Contingency (\",TEXT(Adders_Percentage,\"#.#%\"),\")\"))","v":"Contingeny"},{"$nulls":6},{"$f":"-'WHOLESALE CALC'!BG59","v":{"v":0,"d":"$0"}},{"$nulls":3},"Total Project Costs"]
[{"$nulls":7},"Buying Costs",{"$nulls":6},{"$f":"-TOTAL_BUYING_COSTS_WHOLESALE","v":{"v":-12500,"d":"-$12,500"}},{"$nulls":3},{"$f":"-SUM(O83:Q88)","v":{"v":212500,"d":"$212,500"}}]
[{"$nulls":7},"Holding Costs",{"$nulls":6},{"$f":"-TOTAL_HOLDING_COSTS_WHOLESALE","v":{"v":-12500,"d":"-$12,500"}}]
[{"$nulls":7},"Selling Costs",{"$nulls":6},{"$f":"-TOTAL_SELLING_COSTS_WHOLESALE","v":{"v":-12500,"d":"-$12,500"}},{"$nulls":3},"% of ARV:",{"$nulls":3},{"$f":"IFERROR(S86/ARV,0)","v":{"v":1.2878787878787878,"d":"128.8%"}}]
[{"$nulls":7},"Project Profit",{"$nulls":6},{"$f":"SUM(O81:Q88)","v":{"v":37500,"d":"$37,500"}}]
[{"$nulls":18},"Project Profit"]
[{"$nulls":7},"PROJECT RETURNS",{"$nulls":10},{"$f":"O89","v":{"v":37500,"d":"$37,500"}}]
[]
[{"$nulls":7},"Total Investment",{"$nulls":6},{"$f":"-(O83+O84+O85+O86+O87)","v":{"v":200000,"d":"$200,000"}},{"$nulls":3},"% of ARV:",{"$nulls":3},{"$f":"IFERROR(S91/ARV,0)","v":{"v":0.22727272727272727,"d":"22.7%"}}]
[{"$nulls":7},"Profit",{"$nulls":6},{"$f":"O89","v":{"v":37500,"d":"$37,500"}}]
[{"$nulls":7},"COCR",{"$nulls":6},{"$f":"O94/O93","v":{"v":0.1875,"d":"19%"}}]
[]
[]
[]
[{"$nulls":7},{"$f":"CONCATENATE(\"Report Prepared By: \",Investor_Name,\"  |  \",Company_Name,\"  |  \",Company_Email,\"  |  \",Company_Email)","v":"Report Prepared By: Dave  |  Dave Inc  |  dave@venturesheets.com  |  dave@venturesheets.com"},{"$nulls":14},"Page 2 of 6"]
[{"$nulls":7},{"$f":"CONCATENATE(Street_Address,\", \",City_State_Zip)","v":"1234 Main St, Kansas City, MO 64116"}]
[]
[{"$nulls":7},"COMPARABLE SALES"]
[]
[{"$nulls":7},"Comparable Sales"]
[{"$nulls":7},"Property Info",null,null,"Subject",null,"Comparable 1",{"$nulls":3},"Comparable 2",{"$nulls":3},"Comparable 3"]
[{"$nulls":7},"Street Address",null,null,{"$f":"CONCATENATE(COMPS!W6,\" \",COMPS!W7)","v":"1234 Main St Kansas City, MO 64116"},null,{"$f":"CONCATENATE(COMPS!AJ6,\" \",COMPS!AJ7)","v":"2345 N. Main St Kansas City, MO 64116"},{"$nulls":3},{"$f":"CONCATENATE(COMPS!AW6,\" \",COMPS!AW7)","v":"2345 N. Main St Kansas City, MO 64116"},{"$nulls":3},{"$f":"CONCATENATE(COMPS!BJ6,\" \",COMPS!BJ7)","v":"2345 N. Main St Kansas City, MO 64116"}]
[]
[{"$nulls":7},"Neighborhood",null,null,{"$f":"T(COMPS!W8)","v":"The Coves"},null,{"$f":"T(COMPS!AJ8)","v":"The Coves"},{"$nulls":3},{"$f":"T(COMPS!AW8)","v":"The Coves"},{"$nulls":3},{"$f":"T(COMPS!BJ8)","v":"The Coves"}]
[{"$nulls":7},"School District",null,null,{"$f":"T(COMPS!W9)","v":"Park Hill School District"},null,{"$f":"T(COMPS!AJ9)","v":"Park Hill School District"},{"$nulls":3},{"$f":"T(COMPS!AW9)","v":"Park Hill School District"},{"$nulls":3},{"$f":"T(COMPS!BJ9)","v":"Park Hill School District"}]
[{"$nulls":7},"List Price/Sales Price",null,null,{"$f":"(COMPS!W10)","v":165000},null,{"$f":"T(COMPS!AJ10)","v":""},{"$nulls":3},{"$f":"T(COMPS!AW10)","v":""},{"$nulls":3},{"$f":"T(COMPS!BJ10)","v":""}]
[{"$nulls":7},"Current Status",null,null,{"$f":"(COMPS!W11)","v":0},null,{"$f":"T(COMPS!AJ11)","v":"Sold"},{"$nulls":3},{"$f":"T(COMPS!AW11)","v":"Sold"},{"$nulls":3},{"$f":"T(COMPS!BJ11)","v":"Sold"}]
[{"$nulls":7},"Status Date",null,null,{"$f":"(COMPS!W12)","v":"00:00:00"},null,{"$f":"T(COMPS!AJ12)","v":""},{"$nulls":3},{"$f":"T(COMPS!AW12)","v":""},{"$nulls":3},{"$f":"T(COMPS!BJ12)","v":""}]
[{"$nulls":7},"Days on Market",null,null,{"$f":"(COMPS!W13)","v":{"v":0,"d":"0.00"}},null,{"$f":"T(COMPS!AJ13)","v":""},{"$nulls":3},{"$f":"T(COMPS!AW13)","v":""},{"$nulls":3},{"$f":"T(COMPS!BJ13)","v":""}]
[{"$nulls":7},"Property Characteristics"]
[{"$nulls":7},"Property Info",null,null,"Subject",null,"Comparable 1",null,null,"+/-","Comparable 2",null,null,"+/-","Comparable 3",null,null,"+/-"]
[{"$nulls":7},"# of Beds",null,null,{"$f":"COMPS!W16","v":{"v":3,"d":"3 beds"}},null,{"$f":"COMPS!AJ16","v":{"v":3,"d":"3 beds"}},null,null,{"$f":"COMPS!AR16","v":{"v":0,"d":"$0"}},{"$f":"COMPS!AW16","v":{"v":3,"d":"3 beds"}},null,null,{"$f":"COMPS!BE16","v":{"v":0,"d":"$0"}},{"$f":"COMPS!BJ16","v":{"v":3,"d":"3 beds"}},null,null,{"$f":"COMPS!BR16","v":{"v":0,"d":"$0"}}]
[{"$nulls":7},"# of Baths",null,null,{"$f":"COMPS!W17","v":2},null,{"$f":"COMPS!AJ17","v":{"v":2,"d":"2.0 baths"}},null,null,{"$f":"COMPS!AR17","v":{"v":0,"d":"$0"}},{"$f":"COMPS!AW17","v":{"v":2,"d":"2.0 baths"}},null,null,{"$f":"COMPS!BE17","v":{"v":0,"d":"$0"}},{"$f":"COMPS!BJ17","v":{"v":2,"d":"2.0 baths"}},null,null,{"$f":"COMPS!BR17","v":{"v":0,"d":"$0"}}]
[{"$nulls":7},"# of Garages",null,null,{"$f":"COMPS!W18","v":0},null,{"$f":"COMPS!AJ18","v":{"v":0,"d":"0 garages"}},null,null,{"$f":"COMPS!AR18","v":{"v":0,"d":"$0"}},{"$f":"COMPS!AW18","v":{"v":0,"d":"0 garages"}},null,null,{"$f":"COMPS!BE18","v":{"v":0,"d":"$0"}},{"$f":"COMPS!BJ18","v":{"v":0,"d":"0 garages"}},null,null,{"$f":"COMPS!BR18","v":{"v":0,"d":"$0"}}]
[{"$nulls":7},"Square Footage",null,null,{"$f":"COMPS!W19","v":1500},null,{"$f":"COMPS!AJ19","v":{"v":1450,"d":"1450 sf"}},null,null,{"$f":"COMPS!AR19","v":{"v":8250,"d":"$8,250"}},{"$f":"COMPS!AW19","v":{"v":1505,"d":"1505 sf"}},null,null,{"$f":"COMPS!BE19","v":{"v":0,"d":"$0"}},{"$f":"COMPS!BJ19","v":{"v":1400,"d":"1400 sf"}},null,null,{"$f":"COMPS!BR19","v":{"v":15000,"d":"$15,000"}}]
[{"$nulls":7},"Year Built",null,null,{"$f":"COMPS!W20","v":1982},null,{"$f":"COMPS!AJ20","v":1981},null,null,{"$f":"COMPS!AR20","v":{"v":0,"d":"$0"}},{"$f":"COMPS!AW20","v":1983},null,null,{"$f":"COMPS!BE20","v":{"v":0,"d":"$0"}},{"$f":"COMPS!BJ20","v":1985},null,null,{"$f":"COMPS!BR20","v":{"v":0,"d":"$0"}}]
[{"$nulls":7},"Basement Type",null,null,{"$f":"COMPS!W21","v":"Finished"},null,{"$f":"COMPS!AJ21","v":"Finished"},null,null,{"$f":"COMPS!AR21","v":{"v":0,"d":"$0"}},{"$f":"COMPS!AW21","v":"Finished"},null,null,{"$f":"COMPS!BE21","v":{"v":0,"d":"$0"}},{"$f":"COMPS!BJ21","v":"Finished"},null,null,{"$f":"COMPS!BR21","v":{"v":0,"d":"$0"}}]
[{"$nulls":7},"Central Heat",null,null,{"$f":"COMPS!W22","v":"Yes"},null,{"$f":"COMPS!AJ22","v":"Yes"},null,null,{"$f":"COMPS!AR22","v":{"v":0,"d":"$0"}},{"$f":"COMPS!AW22","v":"Yes"},null,null,{"$f":"COMPS!BE22","v":{"v":0,"d":"$0"}},{"$f":"COMPS!BJ22","v":"Yes"},null,null,{"$f":"COMPS!BR22","v":{"v":0,"d":"$0"}}]
[{"$nulls":7},"Air Conditioning",null,null,{"$f":"COMPS!W23","v":"Yes"},null,{"$f":"COMPS!AJ23","v":"Yes"},null,null,{"$f":"COMPS!AR23","v":{"v":0,"d":"$0"}},{"$f":"COMPS!AW23","v":"Yes"},null,null,{"$f":"COMPS!BE23","v":{"v":0,"d":"$0"}},{"$f":"COMPS!BJ23","v":"Yes"},null,null,{"$f":"COMPS!BR23","v":{"v":0,"d":"$0"}}]
[{"$nulls":7},"Property Condition",null,null,{"$f":"COMPS!W24","v":"Fully Renovated"},null,{"$f":"COMPS!AJ24","v":"Moderate Updates"},null,null,{"$f":"COMPS!AR24","v":{"v":10000,"d":"$10,000"}},{"$f":"COMPS!AW24","v":"Fully Renovated"},null,null,{"$f":"COMPS!BE24","v":{"v":0,"d":"$0"}},{"$f":"COMPS!BJ24","v":"Moderate Updates"},null,null,{"$f":"COMPS!BR24","v":{"v":10000,"d":"$10,000"}}]
[{"$nulls":7},"Other Improvements",null,null,{"$f":"COMPS!W25","v":0},null,{"$f":"COMPS!AJ25","v":0},null,null,{"v":0,"d":"$0"},{"$f":"COMPS!AW25","v":0},null,null,{"$f":"COMPS!BE25","v":{"v":0,"d":"$0"}},{"$f":"COMPS!BJ25","v":0},null,null,{"$f":"COMPS!BR25","v":{"v":0,"d":"$0"}}]
[{"$nulls":10},{"$f":"COMPS!W26","v":0},null,{"$f":"COMPS!AJ26","v":0},null,null,{"$f":"COMPS!AR26","v":{"v":0,"d":"$0"}},{"$nulls":3},{"$f":"COMPS!BE26","v":{"v":0,"d":"$0"}},{"$f":"COMPS!BJ26","v":0},null,null,{"$f":"COMPS!BR26","v":{"v":0,"d":"$0"}}]
[{"$nulls":10},{"$f":"COMPS!W27","v":0},null,{"$f":"COMPS!AJ27","v":0},null,null,{"$f":"COMPS!AR27","v":{"v":0,"d":"$0"}},{"$nulls":3},{"$f":"COMPS!BE27","v":{"v":0,"d":"$0"}},{"$f":"COMPS!BJ27","v":0},null,null,{"$f":"COMPS!BR27","v":{"v":0,"d":"$0"}}]
[{"$nulls":10},{"$f":"COMPS!W28","v":0},null,{"$f":"COMPS!AJ28","v":0},null,null,{"$f":"COMPS!AR28","v":{"v":0,"d":"$0"}},{"$nulls":3},{"$f":"COMPS!BE28","v":{"v":0,"d":"$0"}},{"$f":"COMPS!BJ28","v":0},null,null,{"$f":"COMPS!BR28","v":{"v":0,"d":"$0"}}]
[{"$nulls":7},"Notes:",null,null,{"$f":"COMPS!W26","v":0},null,{"$f":"COMPS!AJ26","v":0},null,null,{"$f":"COMPS!AR29","v":{"v":0,"d":"$0"}},{"$nulls":3},{"$f":"COMPS!BE29","v":{"v":0,"d":"$0"}},{"$nulls":3},{"$f":"COMPS!BR29","v":{"v":0,"d":"$0"}}]
[{"$nulls":15},{"$f":"COMPS!AR30","v":{"v":0,"d":"$0"}},{"$nulls":3},{"$f":"COMPS!BE30","v":{"v":0,"d":"$0"}},{"$nulls":3},{"$f":"COMPS!BR30","v":{"v":0,"d":"$0"}}]
[{"$nulls":15},{"$f":"COMPS!AR31","v":{"v":0,"d":"$0"}},{"$nulls":3},{"$f":"COMPS!BE31","v":{"v":0,"d":"$0"}},{"$nulls":3},{"$f":"COMPS!BR31","v":{"v":0,"d":"$0"}}]
[{"$nulls":15},{"$f":"COMPS!AR32","v":{"v":0,"d":"$0"}},{"$nulls":3},{"$f":"COMPS!BE32","v":{"v":0,"d":"$0"}},{"$nulls":3},{"$f":"COMPS!BR32","v":{"v":0,"d":"$0"}}]
[{"$nulls":15},{"$f":"COMPS!AR33","v":{"v":0,"d":"$0"}},{"$nulls":3},{"$f":"COMPS!BE33","v":{"v":0,"d":"$0"}},{"$nulls":3},{"$f":"COMPS!BR33","v":{"v":0,"d":"$0"}}]
[{"$nulls":7},"TOTAL ADJUSTMENTS",{"$nulls":4},{"$f":"COMPS!AJ33","v":{"v":263250,"d":"$263,250"}},{"$nulls":3},{"$f":"COMPS!AW33","v":{"v":260000,"d":"$260,000"}},{"$nulls":3},{"$f":"COMPS!BJ33","v":{"v":265000,"d":"$265,000"}}]
[{"$nulls":7},"PRICE PER SF",null,null,{"$f":"COMPS!W34","v":{"v":110,"d":"$110.0"}},null,{"$f":"COMPS!AJ34","v":{"v":181.55172413793105,"d":"$182"}},{"$nulls":3},{"$f":"COMPS!AW34","v":{"v":172.75747508305648,"d":"$173"}},{"$nulls":3},{"$f":"COMPS!BJ34","v":{"v":189.28571428571428,"d":"$189"}}]
[]
[]
[]
[]
[{"$nulls":7},{"$f":"CONCATENATE(\"Report Prepared By: \",Investor_Name,\"  |  \",Company_Name,\"  |  \",Company_Email,\"  |  \",Company_Email)","v":"Report Prepared By: Dave  |  Dave Inc  |  dave@venturesheets.com  |  dave@venturesheets.com"},{"$nulls":14},"Page 3 of 6"]
[{"$nulls":7},{"$f":"CONCATENATE(Street_Address,\", \",City_State_Zip)","v":"1234 Main St, Kansas City, MO 64116"}]
[]
[{"$nulls":7},"ESTIMATE SUMMARY"]
[]
[{"$nulls":7},"Input an estimate description"]
[]
[]
[]
[]
[{"$nulls":7},"SCOPE OF WORK",{"$nulls":9},"TOTAL",{"$nulls":3},"% of TOTAL"]
[{"$nulls":7},{"$f":"PROPER('ANALYSIS DATABASE'!B75)","v":"General Conditions"},{"$nulls":9},{"$f":"'WHOLESALE CALC'!AS7","v":{"v":0,"d":"$0"}},{"$nulls":3},{"$f":"IFERROR(R151/$R$178,0)","v":{"v":0,"d":"0.0%"}}]
[{"$nulls":7},{"$f":"PROPER('ANALYSIS DATABASE'!B76)","v":"Demolition"},{"$nulls":9},{"$f":"'WHOLESALE CALC'!AS8","v":{"v":0,"d":"$0"}},{"$nulls":3},{"$f":"IFERROR(R152/$R$178,0)","v":{"v":0,"d":"0.0%"}}]
[{"$nulls":7},{"$f":"PROPER('ANALYSIS DATABASE'!B77)","v":"Structural Concrete"},{"$nulls":9},{"$f":"'WHOLESALE CALC'!AS9","v":{"v":0,"d":"$0"}},{"$nulls":3},{"v":0,"d":"0.0%"}]
[{"$nulls":7},{"$f":"PROPER('ANALYSIS DATABASE'!B78)","v":"Concrete & Flatwork"},{"$nulls":9},{"$f":"'WHOLESALE CALC'!AS10","v":{"v":0,"d":"$0"}},{"$nulls":3},{"v":0,"d":"0.0%"}]
[{"$nulls":7},{"$f":"PROPER('ANALYSIS DATABASE'!B79)","v":"Masonry"},{"$nulls":9},{"$f":"'WHOLESALE CALC'!AS11","v":{"v":0,"d":"$0"}},{"$nulls":3},{"v":0,"d":"0.0%"}]
[{"$nulls":7},{"$f":"PROPER('ANALYSIS DATABASE'!B80)","v":"Siding"},{"$nulls":9},{"$f":"'WHOLESALE CALC'!AS12","v":{"v":0,"d":"$0"}},{"$nulls":3},{"v":0,"d":"0.0%"}]
[{"$nulls":7},{"$f":"PROPER('ANALYSIS DATABASE'!B81)","v":"Decking And Patios"},{"$nulls":9},{"$f":"'WHOLESALE CALC'!AS13","v":{"v":0,"d":"$0"}},{"$nulls":3},{"v":0,"d":"0.0%"}]
[{"$nulls":7},{"$f":"PROPER('ANALYSIS DATABASE'!B82)","v":"Roofing"},{"$nulls":9},{"$f":"'WHOLESALE CALC'!AS14","v":{"v":0,"d":"$0"}},{"$nulls":3},{"v":0,"d":"0.0%"}]
[{"$nulls":7},{"$f":"PROPER('ANALYSIS DATABASE'!B83)","v":"Exterior Doors & Windows"},{"$nulls":9},{"$f":"'WHOLESALE CALC'!AS23","v":{"v":0,"d":"$0"}},{"$nulls":3},{"v":0,"d":"0.0%"}]
[{"$nulls":7},{"$f":"PROPER('ANALYSIS DATABASE'!B84)","v":"Garage Doors"},{"$nulls":9},{"$f":"'WHOLESALE CALC'!AS24","v":{"v":0,"d":"$0"}},{"$nulls":3},{"v":0,"d":"0.0%"}]
[{"$nulls":7},{"$f":"PROPER('ANALYSIS DATABASE'!B85)","v":"Landscaping"},{"$nulls":9},{"$f":"'WHOLESALE CALC'!AS25","v":{"v":0,"d":"$0"}},{"$nulls":3},{"v":0,"d":"0.0%"}]
[{"$nulls":7},{"$f":"PROPER('ANALYSIS DATABASE'!B86)","v":"Misc. Exterior Items"},{"$nulls":9},{"$f":"'WHOLESALE CALC'!AS26","v":{"v":0,"d":"$0"}},{"$nulls":3},{"v":0,"d":"0.0%"}]
[{"$nulls":7},{"$f":"PROPER('ANALYSIS DATABASE'!B87)","v":"Framing & Drywall"},{"$nulls":9},{"$f":"'WHOLESALE CALC'!BH7","v":{"v":0,"d":"$0"}},{"$nulls":3},{"v":0,"d":"0.0%"}]
[{"$nulls":7},{"$f":"PROPER('ANALYSIS DATABASE'!B88)","v":"Cabinets & Countertops"},{"$nulls":9},{"$f":"'WHOLESALE CALC'!BH8","v":{"v":0,"d":"$0"}},{"$nulls":3},{"v":0,"d":"0.0%"}]
[{"$nulls":7},{"$f":"PROPER('ANALYSIS DATABASE'!B89)","v":"Doors & Trim"},{"$nulls":9},{"$f":"'WHOLESALE CALC'!BH9","v":{"v":0,"d":"$0"}},{"$nulls":3},{"v":0,"d":"0.0%"}]
[{"$nulls":7},{"$f":"PROPER('ANALYSIS DATABASE'!B90)","v":"Carpet & Resilient"},{"$nulls":9},{"$f":"'WHOLESALE CALC'!BH10","v":{"v":0,"d":"$0"}},{"$nulls":3},{"v":0,"d":"0.0%"}]
[{"$nulls":7},{"$f":"PROPER('ANALYSIS DATABASE'!B91)","v":"Hardwood Flooring"},{"$nulls":9},{"$f":"'WHOLESALE CALC'!BH11","v":{"v":0,"d":"$0"}},{"$nulls":3},{"v":0,"d":"0.0%"}]
[{"$nulls":7},{"$f":"PROPER('ANALYSIS DATABASE'!B92)","v":"Tiling"},{"$nulls":9},{"$f":"'WHOLESALE CALC'!BH12","v":{"v":0,"d":"$0"}},{"$nulls":3},{"v":0,"d":"0.0%"}]
[{"$nulls":7},{"$f":"PROPER('ANALYSIS DATABASE'!B93)","v":"Painting"},{"$nulls":9},{"$f":"'WHOLESALE CALC'!BH13","v":{"v":0,"d":"$0"}},{"$nulls":3},{"v":0,"d":"0.0%"}]
[{"$nulls":7},{"$f":"PROPER('ANALYSIS DATABASE'!B94)","v":"Appliances"},{"$nulls":9},{"$f":"'WHOLESALE CALC'!BH14","v":{"v":0,"d":"$0"}},{"$nulls":3},{"v":0,"d":"0.0%"}]
[{"$nulls":7},{"$f":"PROPER('ANALYSIS DATABASE'!B95)","v":"Plumbing"},{"$nulls":9},{"$f":"'WHOLESALE CALC'!BH15","v":{"v":0,"d":"$0"}},{"$nulls":3},{"v":0,"d":"0.0%"}]
[{"$nulls":7},{"$f":"PROPER('ANALYSIS DATABASE'!B96)","v":"Hvac"},{"$nulls":9},{"$f":"'WHOLESALE CALC'!BH16","v":{"v":0,"d":"$0"}},{"$nulls":3},{"v":0,"d":"0.0%"}]
[{"$nulls":7},{"$f":"PROPER('ANALYSIS DATABASE'!B97)","v":"Electrical"},{"$nulls":9},{"$f":"'WHOLESALE CALC'!BH17","v":{"v":0,"d":"$0"}},{"$nulls":3},{"v":0,"d":"0.0%"}]
[{"$nulls":7},{"$f":"PROPER('ANALYSIS DATABASE'!B98)","v":"Miscellaneous"},{"$nulls":9},{"$f":"'WHOLESALE CALC'!BH18","v":{"v":0,"d":"$0"}},{"$nulls":3},{"v":0,"d":"0.0%"}]
[{"$nulls":7},"Subtotal Estimate",{"$nulls":9},{"$f":"'WHOLESALE CALC'!BG64","v":{"v":50000,"d":"$50,000"}},{"$nulls":3},{"v":1,"d":"100%"}]
[]
[{"$nulls":7},"Estimate Adders (Contingencies, Contractor OH & P, Taxes, etc.)",{"$nulls":9},{"$f":"'WHOLESALE CALC'!BG59","v":{"v":0,"d":"$0"}},{"$nulls":3},{"$f":"IFERROR(R177/$R$178,0)","v":{"v":0,"d":"0.0%"}}]
[{"$nulls":7},"Total Estimate",{"$nulls":9},{"$f":"R175+R177","v":{"v":50000,"d":"$50,000"}},{"$nulls":3},{"$f":"IFERROR(R178/$R$178,0)","v":{"v":1,"d":"100%"}}]
[]
[]
[{"$nulls":7},{"$f":"CONCATENATE(\"Report Prepared By: \",Investor_Name,\"  |  \",Company_Name,\"  |  \",Company_Email,\"  |  \",Company_Email)","v":"Report Prepared By: Dave  |  Dave Inc  |  dave@venturesheets.com  |  dave@venturesheets.com"},{"$nulls":14},"Page 4 of 6"]
[{"$nulls":7},{"$f":"CONCATENATE(Street_Address,\", \",City_State_Zip)","v":"1234 Main St, Kansas City, MO 64116"}]
[]
[{"$nulls":7},"PROPERTY PHOTOS"]
{"$rows_empty":9}
[{"$nulls":7},"Picture Caption",{"$nulls":5},"Picture Caption",{"$nulls":5},"Picture Caption"]
{"$rows_empty":11}
[{"$nulls":7},"Picture Caption",{"$nulls":5},"Picture Caption",{"$nulls":5},"Picture Caption"]
{"$rows_empty":11}
[{"$nulls":7},"Picture Caption",{"$nulls":5},"Picture Caption",{"$nulls":5},"Picture Caption"]
{"$rows_empty":11}
[{"$nulls":7},"Picture Caption",{"$nulls":5},"Picture Caption",{"$nulls":5},"Picture Caption"]
[]
[]
[{"$nulls":7},{"$f":"CONCATENATE(\"Report Prepared By: \",Investor_Name,\"  |  \",Company_Name,\"  |  \",Company_Email,\"  |  \",Company_Email)","v":"Report Prepared By: Dave  |  Dave Inc  |  dave@venturesheets.com  |  dave@venturesheets.com"},{"$nulls":14},"Page 5 of 6"]
[{"$nulls":7},{"$f":"CONCATENATE(Street_Address,\", \",City_State_Zip)","v":"1234 Main St, Kansas City, MO 64116"}]
[]
[{"$nulls":7},"PROPERTY PHOTOS"]
{"$rows_empty":9}
[{"$nulls":7},"Picture Caption",{"$nulls":5},"Picture Caption",{"$nulls":5},"Picture Caption"]
{"$rows_empty":11}
[{"$nulls":7},"Picture Caption",{"$nulls":5},"Picture Caption",{"$nulls":5},"Picture Caption"]
{"$rows_empty":11}
[{"$nulls":7},"Picture Caption",{"$nulls":5},"Picture Caption",{"$nulls":5},"Picture Caption"]
{"$rows_empty":11}
[{"$nulls":7},"Picture Caption",{"$nulls":5},"Picture Caption",{"$nulls":5},"Picture Caption"]
[]
[]
[{"$nulls":7},{"$f":"CONCATENATE(\"Report Prepared By: \",Investor_Name,\"  |  \",Company_Name,\"  |  \",Company_Email,\"  |  \",Company_Email)","v":"Report Prepared By: Dave  |  Dave Inc  |  dave@venturesheets.com  |  dave@venturesheets.com"},{"$nulls":14},"Page 6 of 6"]
[{"$nulls":7},"© 2018 by Houseflippingspreadsheet.com. All rights reserved"]

{"sheet":"PREQUAL FORM","index":39,"n_rows":186,"n_cols":37,"rows_kept":186,"hidden":true,"merged":[[1,0,1,5],[3,10,6,40],[7,26,8,40],[10,5,12,27],[13,5,15,25],[16,5,17,25],[18,5,19,26],[21,5,23,24],[21,26,23,45],[25,5,31,24],[25,26,27,45],[29,26,31,45],[33,5,35,24],[33,26,35,45],[37,5,38,26],[40,6,42,14],[40,16,42,24],[40,26,42,34],[40,36,42,44],[44,5,46,45],[48,5,54,45],[56,5,62,45],[64,5,65,26],[66,5,67,45],[69,5,71,24],[69,26,71,45],[73,5,77,45],[79,5,81,24],[79,26,81,45],[83,5,87,45],[89,5,91,24],[89,26,91,45],[93,5,97,45],[99,5,99,15],[99,16,99,22],[99,23,99,33],[99,34,99,45],[100,5,101,26],[102,5,103,45],[105,14,107,24],[105,26,107,45],[106,7,107,10],[109,14,111,24],[109,26,111,45],[110,7,111,10],[113,26,115,45],[114,18,115,21],[118,5,119,26],[121,5,123,45],[125,5,127,45],[129,5,130,26],[132,5,133,45],[134,5,154,45],[161,12,163,18],[161,19,163,37],[165,12,167,18],[165,19,167,37],[169,12,171,18],[169,19,171,37],[173,12,175,18],[173,19,175,37],[184,5,184,15],[184,16,184,22],[184,23,184,33],[184,34,184,45],[185,5,186,45]]}
[]
["PREQUALIFICATION FORM"]
[]
[{"$nulls":10},"The Contractor Prequalification form is used to prequalify potential contractors, subcontractors or vendors for your project.  The form requests business information experience and references to ensure your contractors are reputable, qualified and insured."]
[]
[]
[]
[{"$nulls":26},"Contractor Prequalification Tutorial"]
[]
[]
[{"$nulls":5},"CONTRACTOR PREQUALIFICATION"]
[]
[]
[{"$nulls":5},{"$f":"T(Street_Address)","v":"1234 Main St"}]
[]
[]
[{"$nulls":5},{"$f":"T(City_State_Zip)","v":"Kansas City, MO 64116"}]
[]
[{"$nulls":5},"BUSINESS INFORMATION"]
[]
[]
[{"$nulls":5},"COMPANY NAME:",{"$nulls":20},"CONTACT PERSON:"]
[]
[]
[]
[{"$nulls":5},"BUSINESS ADDRESS:",{"$nulls":20},"OFFICE PHONE #:"]
[]
[]
[]
[{"$nulls":26},"CELL PHONE #:"]
[]
[]
[]
[{"$nulls":5},"WEB ADDRESS:",{"$nulls":20},"EMAiL:"]
[]
[]
[]
[{"$nulls":5},"BUSINESS EXPERIENCE"]
[]
[]
[{"$nulls":6},"# OF YEARS IN BUSINESS:",{"$nulls":9},"AVG. SIZE OF PROJECT ($):",{"$nulls":9},"# OF EMPLOYEES:",{"$nulls":9},"AVAILABILITY: "]
[]
[]
[]
[{"$nulls":5},"CONTRACTOR LICENSES:"]
[]
[]
[]
[{"$nulls":5},"TYPE OF WORK QUALIFIED TO PERFORM: (CARPENTRY, TILE, ELECTRICAL, ETC.)"]
{"$rows_empty":7}
[{"$nulls":5},"TYPE OF WORK SUBCONTRACTED, IF ANY:"]
{"$rows_empty":7}
[{"$nulls":5},"BUSINESS REFERENCES"]
[]
[{"$nulls":5},"PLEASE LIST 3 REFERENCES (HOMEOWNERS, REAL ESTATE INVESTORS, INSPECTORS, ETC.)"]
[]
[]
[{"$nulls":5},"CONTACT PERSON:",{"$nulls":20},"CONTACT #:"]
[]
[]
[]
[{"$nulls":5},"WORK PERFORMED:"]
[]
[]
[]
[]
[]
[{"$nulls":5},"CONTACT PERSON:",{"$nulls":20},"CONTACT #:"]
[]
[]
[]
[{"$nulls":5},"WORK PERFORMED:"]
[]
[]
[]
[]
[]
[{"$nulls":5},"CONTACT PERSON:",{"$nulls":20},"CONTACT #:"]
[]
[]
[]
[{"$nulls":5},"WORK PERFORMED:"]
[]
[]
[]
[]
[]
[{"$nulls":5},{"$f":"T(Company_Name)","v":"Dave Inc"},{"$nulls":10},{"$f":"(Company_Phone)","v":8161234567},{"$nulls":6},{"$f":"T(Company_Email)","v":"dave@venturesheets.com"},{"$nulls":10},{"$f":"T(Company_Website)","v":"www.venturesheets.com"}]
[{"$nulls":5},"INSURANCE"]
[]
[{"$nulls":5},"BEFORE CONSTRUCTION STARTS, CONTRACTOR MUST BE ABLE TO PRESENT PROOF OF INSURANCE CERTIFICATE. "]
[]
[]
[{"$nulls":5},"GENERAL LIABILITY INSURANCE:",{"$nulls":8},"LIMIT OF LIABILITY:",{"$nulls":11},"BROKERAGE:"]
[{"$nulls":7},"YES  /  NO"]
[]
[]
[{"$nulls":5},"WORKERS' COMP INSURANCE:",{"$nulls":8},"LIMIT EACH ACCIDENT:",{"$nulls":11},"CONTACT PERSON:"]
[{"$nulls":7},"YES  /  NO"]
[]
[]
[{"$nulls":16},"SUBCONTRACTORS INSURED?:",{"$nulls":9},"CONTACT #:"]
[{"$nulls":18},"YES  /  NO"]
[]
[]
[]
[{"$nulls":5},"LEGAL INFORMATION"]
[]
[]
[{"$nulls":5},"ARE THERE ANY JUDGENTS, CLAIMS, ABRITRATION PROCEEDINGS, OR SUITS PENDING, OUTSTANDING AGAINST YOUR BUSINESS, OFFICES OR PRINCIPALS?  IF YES, PLEASE PROVIDE A COMPLETE EXPLANATION ON A SEPARATE SHEET.    YES  /   NO"]
[]
[]
[]
[{"$nulls":5},"HAS YOUR COMPANY FILED ANY LAWSUITS OR REQUESTED ARBITRATION OR MEDIATION WITH REGARD TO CONSTRUCTION CONTRACTS WITHIN THE LAST 3 YEARS?   IF YES, PLEASE PROVIDE A COMPLETE EXPLANATION ON A SEPARATE SHEET.    YES  /   NO"]
[]
[]
[]
[{"$nulls":5},"ADDITIONAL INFORMATION"]
[]
[]
[{"$nulls":5},"PLEASE LIST ANY ADDITIONAL INFORMATION YOU FEEL WILL HELP US DETERMINE YOUR COMPANY'S QUALIFICATIONS AND EXPERTISE:"]
{"$rows_empty":28}
[{"$nulls":12},"COMPLETED BY:"]
[]
[]
[{"$nulls":19},"NAME"]
[]
[]
[]
[{"$nulls":19},"TITLE"]
[]
[]
[]
[{"$nulls":19},"SIGNATURE"]
[]
[]
[]
[{"$nulls":19},"DATE"]
{"$rows_empty":7}
[{"$nulls":5},{"$f":"T(Company_Name)","v":"Dave Inc"},{"$nulls":10},{"$f":"(Company_Phone)","v":8161234567},{"$nulls":6},{"$f":"T(Company_Email)","v":"dave@venturesheets.com"},{"$nulls":10},{"$f":"T(Company_Website)","v":"www.venturesheets.com"}]
[{"$nulls":5},"© 2018 by Houseflippingspreadsheet.com. All rights reserved"]

{"sheet":"BID FORM","index":40,"n_rows":49,"n_cols":23,"rows_kept":49,"hidden":true,"merged":[[1,3,1,5],[3,9,6,20],[3,22,7,22],[9,8,9,21],[10,8,11,21],[12,8,12,10],[12,11,12,16],[13,8,13,10],[13,11,13,16],[15,8,15,16],[15,18,15,21],[16,8,16,16],[16,18,16,21],[17,8,17,16],[17,18,17,21],[18,8,18,16],[18,18,18,21],[19,8,19,16],[19,18,19,21],[20,8,20,16],[20,18,20,21],[21,8,21,16],[21,18,21,21],[22,8,22,16],[22,18,22,21],[23,8,23,16],[23,18,23,21],[24,8,24,16],[24,18,24,21],[25,8,25,16],[25,18,25,21],[26,8,26,16],[26,18,26,21],[27,8,27,16],[27,18,27,21],[28,8,28,16],[28,18,28,21],[29,8,29,16],[29,18,29,21],[30,8,30,16],[30,18,30,21],[31,8,31,16],[31,18,31,21],[32,8,32,16],[32,18,32,21],[33,8,33,16],[33,18,33,21],[34,8,34,16],[34,18,34,21],[35,8,35,16],[35,18,35,21],[36,8,36,16],[36,18,36,21],[37,8,37,16],[37,18,37,21],[38,8,38,16],[38,18,38,21],[39,8,39,16],[39,18,39,21],[40,8,40,16],[40,18,40,21],[41,8,41,17],[42,8,42,17],[42,18,42,21],[44,11,44,14],[44,15,44,21],[46,11,46,14],[46,15,46,21],[48,8,48,11],[48,12,48,13],[48,14,48,17],[48,18,48,21]]}
[]
[{"$nulls":3},"BID FORM"]
[]
[{"$nulls":9}," The Bid Form can be printed and given to General Contractors to solicit contractor proposals and bids for your project.  This Bid Form can be used to receive a breakdown of Contractor Bids for each Scope of Work on the project.",{"$nulls":12},"DO NOT DELETE - USED TO SORT REPORT"]
[]
[]
[]
[]
[]
[{"$nulls":8},"BID FORM",{"$nulls":13},1]
[{"$nulls":22},1]
[{"$nulls":22},1]
[{"$nulls":8},"Project Address:",null,null,{"$f":"T(Street_Address)","v":"1234 Main St"},{"$nulls":10},1]
[{"$nulls":8},"Contractor Name:",{"$nulls":13},1]
[{"$nulls":22},1]
[{"$nulls":8},"PROJECT SCOPES OF WORK",{"$nulls":9},"TOTALS",{"$nulls":3},1]
[{"$nulls":8},{"$f":"T('2 REPAIR ESTIMATOR'!N75:T75)","v":"GENERAL CONDITIONS"},{"$nulls":13},{"$f":"'2 REPAIR ESTIMATOR'!U75","v":{"v":534.75,"d":"$535"}}]
[{"$nulls":8},{"$f":"T('2 REPAIR ESTIMATOR'!N76:T76)","v":"DEMOLITION"},{"$nulls":13},{"$f":"'2 REPAIR ESTIMATOR'!U76","v":{"v":1600,"d":"$1,600"}}]
[{"$nulls":8},{"$f":"T('2 REPAIR ESTIMATOR'!N77:T77)","v":"STRUCTURAL CONCRETE"},{"$nulls":13},{"$f":"'2 REPAIR ESTIMATOR'!U77","v":{"v":0,"d":"$0"}}]
[{"$nulls":8},{"$f":"T('2 REPAIR ESTIMATOR'!N78:T78)","v":"CONCRETE & FLATWORK"},{"$nulls":13},{"$f":"'2 REPAIR ESTIMATOR'!U78","v":{"v":0,"d":"$0"}}]
[{"$nulls":8},{"$f":"T('2 REPAIR ESTIMATOR'!N79:T79)","v":"MASONRY"},{"$nulls":13},{"$f":"'2 REPAIR ESTIMATOR'!U79","v":{"v":0,"d":"$0"}}]
[{"$nulls":8},{"$f":"T('2 REPAIR ESTIMATOR'!N80:T80)","v":"SIDING"},{"$nulls":13},{"$f":"'2 REPAIR ESTIMATOR'!U80","v":{"v":0,"d":"$0"}}]
[{"$nulls":8},{"$f":"T('2 REPAIR ESTIMATOR'!N81:T81)","v":"DECKING AND PATIOS"},{"$nulls":13},{"$f":"'2 REPAIR ESTIMATOR'!U81","v":{"v":1071,"d":"$1,071"}}]
[{"$nulls":8},{"$f":"T('2 REPAIR ESTIMATOR'!N82:T82)","v":"ROOFING"},{"$nulls":13},{"$f":"'2 REPAIR ESTIMATOR'!U82","v":{"v":5461,"d":"$5,461"}}]
[{"$nulls":8},{"$f":"T('2 REPAIR ESTIMATOR'!Y75:AE75)","v":"EXTERIOR DOORS & WINDOWS"},{"$nulls":13},{"$f":"'2 REPAIR ESTIMATOR'!AF75","v":{"v":4835,"d":"$4,835"}}]
[{"$nulls":8},{"$f":"T('2 REPAIR ESTIMATOR'!Y76:AE76)","v":"GARAGE DOORS"},{"$nulls":13},{"$f":"'2 REPAIR ESTIMATOR'!AF76","v":{"v":1363,"d":"$1,363"}}]
[{"$nulls":8},{"$f":"T('2 REPAIR ESTIMATOR'!Y77:AE77)","v":"LANDSCAPING"},{"$nulls":13},{"$f":"'2 REPAIR ESTIMATOR'!AF77","v":{"v":571,"d":"$571"}}]
[{"$nulls":8},{"$f":"T('2 REPAIR ESTIMATOR'!Y78:AE78)","v":"MISC. EXTERIOR ITEMS"},{"$nulls":13},{"$f":"'2 REPAIR ESTIMATOR'!AF78","v":{"v":631.6,"d":"$632"}}]
[{"$nulls":8},{"$f":"T('2 REPAIR ESTIMATOR'!Y79:AE79)","v":"FRAMING & DRYWALL"},{"$nulls":13},{"$f":"'2 REPAIR ESTIMATOR'!AF79","v":{"v":750,"d":"$750"}}]
[{"$nulls":8},{"$f":"T('2 REPAIR ESTIMATOR'!Y80:AE80)","v":"CABINETS & COUNTERTOPS"},{"$nulls":13},{"$f":"'2 REPAIR ESTIMATOR'!AF80","v":{"v":11446.25,"d":"$11,446"}}]
[{"$nulls":8},{"$f":"T('2 REPAIR ESTIMATOR'!Y81:AE81)","v":"DOORS & TRIM"},{"$nulls":13},{"$f":"'2 REPAIR ESTIMATOR'!AF81","v":{"v":2409,"d":"$2,409"}}]
[{"$nulls":8},{"$f":"T('2 REPAIR ESTIMATOR'!Y82:AE82)","v":"CARPET & RESILIENT"},{"$nulls":13},{"$f":"'2 REPAIR ESTIMATOR'!AF82","v":{"v":2505,"d":"$2,505"}}]
[{"$nulls":8},{"$f":"T('2 REPAIR ESTIMATOR'!AJ75:AP75)","v":"HARDWOOD FLOORING"},{"$nulls":13},{"$f":"'2 REPAIR ESTIMATOR'!AQ75","v":{"v":3458,"d":"$3,458"}}]
[{"$nulls":8},{"$f":"T('2 REPAIR ESTIMATOR'!AJ76:AP76)","v":"TILING"},{"$nulls":13},{"$f":"'2 REPAIR ESTIMATOR'!AQ76","v":{"v":3904.1000000000004,"d":"$3,904"}}]
[{"$nulls":8},{"$f":"T('2 REPAIR ESTIMATOR'!AJ77:AP77)","v":"PAINTING"},{"$nulls":13},{"$f":"'2 REPAIR ESTIMATOR'!AQ77","v":{"v":4000,"d":"$4,000"}}]
[{"$nulls":8},{"$f":"T('2 REPAIR ESTIMATOR'!AJ78:AP78)","v":"APPLIANCES"},{"$nulls":13},{"$f":"'2 REPAIR ESTIMATOR'!AQ78","v":{"v":3210,"d":"$3,210"}}]
[{"$nulls":8},{"$f":"T('2 REPAIR ESTIMATOR'!AJ79:AP79)","v":"PLUMBING"},{"$nulls":13},{"$f":"'2 REPAIR ESTIMATOR'!AQ79","v":{"v":2924,"d":"$2,924"}}]
[{"$nulls":8},{"$f":"T('2 REPAIR ESTIMATOR'!AJ80:AP80)","v":"HVAC"},{"$nulls":13},{"$f":"'2 REPAIR ESTIMATOR'!AQ80","v":{"v":483.5,"d":"$484"}}]
[{"$nulls":8},{"$f":"T('2 REPAIR ESTIMATOR'!AJ81:AP81)","v":"ELECTRICAL"},{"$nulls":13},{"$f":"'2 REPAIR ESTIMATOR'!AQ81","v":{"v":2296.35,"d":"$2,296"}}]
[{"$nulls":8},{"$f":"T('2 REPAIR ESTIMATOR'!AJ82:AP82)","v":"MISCELLANEOUS"},{"$nulls":13},{"$f":"'2 REPAIR ESTIMATOR'!AQ82","v":{"v":0,"d":"$0"}}]
[{"$nulls":8},"OTHER",{"$nulls":13},1]
[{"$nulls":8},{"$f":"T('2 REPAIR ESTIMATOR'!N84:T84)","v":""},{"$nulls":13},1]
[{"$nulls":8},"PROJECT TOTAL",{"$nulls":9},{"$f":"IF(SUM(S17:V41)=0,\"\",SUM(S17:V41))","v":""},{"$nulls":3},1]
[{"$nulls":22},1]
[{"$nulls":11},"CONTRACTOR SIGNATURE",{"$nulls":10},1]
[{"$nulls":22},1]
[{"$nulls":11},"CLIENT SIGNATURE",{"$nulls":10},1]
[{"$nulls":22},1]
[{"$nulls":8},{"$f":"T(Company_Name)","v":"Dave Inc"},{"$nulls":3},{"$f":"(Company_Phone)","v":8161234567},null,{"$f":"T(Company_Email)","v":"dave@venturesheets.com"},{"$nulls":3},{"$f":"T(Company_Website)","v":"www.venturesheets.com"},{"$nulls":3},1]

{"sheet":"SCOPE OF WORK","index":41,"n_rows":1415,"n_cols":26,"rows_kept":1415,"hidden":true,"merged":[[10,3,10,17],[10,18,10,21],[12,18,13,20],[14,18,14,20],[14,21,15,21],[20,3,20,21],[1067,3,1067,10],[1067,11,1067,12],[1067,13,1067,14],[1067,15,1067,21],[1068,3,1068,10],[1068,11,1068,12],[1068,13,1068,14],[1068,15,1068,21],[1069,3,1069,10],[1069,11,1069,12],[1069,13,1069,14],[1069,15,1069,21],[1070,3,1070,10],[1070,11,1070,12],[1070,13,1070,14],[1070,15,1070,21],[1071,3,1071,10],[1071,11,1071,12],[1071,13,1071,14],[1071,15,1071,21],[1072,3,1072,10],[1072,11,1072,12],[1072,13,1072,14],[1072,15,1072,21],[1073,3,1073,10],[1073,11,1073,12],[1073,13,1073,14],[1073,15,1073,21],[1074,3,1074,10],[1074,11,1074,12],[1074,13,1074,14],[1074,15,1074,21],[1075,3,1075,10],[1075,11,1075,12],[1075,13,1075,14],[1075,15,1075,21],[1076,3,1076,10],[1076,11,1076,12],[1076,13,1076,14],[1076,15,1076,21],[1077,3,1077,10],[1077,11,1077,12],[1077,13,1077,14],[1077,15,1077,21],[1078,3,1078,10],[1078,11,1078,12],[1078,13,1078,14],[1078,15,1078,21],[1079,3,1079,10],[1079,11,1079,12],[1079,13,1079,14],[1079,15,1079,21],[1080,3,1080,10],[1080,11,1080,12],[1080,13,1080,14],[1080,15,1080,21],[1081,3,1081,10],[1081,11,1081,12],[1081,13,1081,14],[1081,15,1081,21],[1082,3,1082,10],[1082,11,1082,12],[1082,13,1082,14],[1082,15,1082,21],[1083,3,1083,10],[1083,11,1083,12],[1083,13,1083,14],[1083,15,1083,21],[1084,3,1084,10],[1084,11,1084,12],[1084,13,1084,14],[1084,15,1084,21],[1085,3,1085,10],[1085,11,1085,12],[1085,13,1085,14],[1085,15,1085,21],[1086,3,1086,10],[1086,11,1086,12],[1086,13,1086,14],[1086,15,1086,21],[1087,3,1087,10],[1087,11,1087,12],[1087,13,1087,14],[1087,15,1087,21],[1088,3,1088,10],[1088,11,1088,12],[1088,13,1088,14],[1088,15,1088,21],[1089,3,1089,10],[1089,11,1089,12],[1089,13,1089,14],[1089,15,1089,21],[1090,3,1090,10],[1090,11,1090,12],[1090,13,1090,14],[1090,15,1090,21],[1092,3,1092,21],[1093,4,1093,21],[1094,4,1094,21],[1095,4,1095,21],[1096,4,1096,21],[1097,4,1097,21],[1098,4,1098,21],[1099,4,1099,21],[1100,4,1100,21],[1101,4,1101,21],[1102,4,1102,21],[1104,3,1104,15],[1104,16,1104,21],[1106,3,1106,10],[1106,11,1106,12],[1106,13,1106,14],[1106,15,1106,21],[1107,3,1107,10],[1107,11,1107,12],[1107,13,1107,14],[1107,15,1107,21],[1108,3,1108,10],[1108,11,1108,12],[1108,13,1108,14],[1108,15,1108,21],[1109,3,1109,10],[1109,11,1109,12],[1109,13,1109,14],[1109,15,1109,21],[1110,3,1110,10],[1110,11,1110,12],[1110,13,1110,14],[1110,15,1110,21],[1111,3,1111,10],[1111,11,1111,12],[1111,13,1111,14],[1111,15,1111,21],[1112,3,1112,10],[1112,11,1112,12],[1112,13,1112,14],[1112,15,1112,21],[1113,3,1113,10],[1113,11,1113,12],[1113,13,1113,14],[1113,15,1113,21],[1114,3,1114,10],[1114,11,1114,12],[1114,13,1114,14],[1114,15,1114,21],[1115,3,1115,10],[1115,11,1115,12],[1115,13,1115,14],[1115,15,1115,21],[1116,3,1116,10],[1116,11,1116,12],[1116,13,1116,14],[1116,15,1116,21],[1117,3,1117,10],[1117,11,1117,12],[1117,13,1117,14],[1117,15,1117,21],[1118,3,1118,10],[1118,11,1118,12],[1118,13,1118,14],[1118,15,1118,21],[1119,3,1119,10],[1119,11,1119,12],[1119,13,1119,14],[1119,15,1119,21],[1120,3,1120,10],[1120,11,1120,12],[1120,13,1120,14],[1120,15,1120,21],[1121,3,1121,10],[1121,11,1121,12],[1121,13,1121,14],[1121,15,1121,21],[1122,3,1122,10],[1122,11,1122,12],[1122,13,1122,14],[1122,15,1122,21],[1123,3,1123,10],[1123,11,1123,12],[1123,13,1123,14],[1123,15,1123,21],[1124,3,1124,10],[1124,11,1124,12],[1124,13,1124,14],[1124,15,1124,21],[1125,3,1125,10],[1125,11,1125,12],[1125,13,1125,14],[1125,15,1125,21],[1126,3,1126,10],[1126,11,1126,12],[1126,13,1126,14],[1126,15,1126,21],[1127,3,1127,10],[1127,11,1127,12],[1127,13,1127,14],[1127,15,1127,21],[1128,3,1128,10],[1128,11,1128,12],[1128,13,1128,14],[1128,15,1128,21],[1129,3,1129,10],[1129,11,1129,12],[1129,13,1129,14],[1129,15,1129,21],[1130,3,1130,10],[1130,11,1130,12],[1130,13,1130,14],[1130,15,1130,21],[1131,3,1131,10],[1131,11,1131,12],[1131,13,1131,14],[1131,15,1131,21],[1132,3,1132,10],[1132,11,1132,12],[1132,13,1132,14],[1132,15,1132,21],[1133,3,1133,10],[1133,11,1133,12],[1133,13,1133,14],[1133,15,1133,21],[1134,3,1134,10],[1134,11,1134,12],[1134,13,1134,14],[1134,15,1134,21],[1135,3,1135,10],[1135,11,1135,12],[1135,13,1135,14],[1135,15,1135,21],[1136,3,1136,10],[1136,11,1136,12],[1136,13,1136,14],[1136,15,1136,21],[1137,3,1137,10],[1137,11,1137,12],[1137,13,1137,14],[1137,15,1137,21],[1138,3,1138,10],[1138,11,1138,12],[1138,13,1138,14],[1138,15,1138,21],[1139,3,1139,10],[1139,11,1139,12],[1139,13,1139,14],[1139,15,1139,21],[1140,3,1140,10],[1140,11,1140,12],[1140,13,1140,14],[1140,15,1140,21],[1141,3,1141,10],[1141,11,1141,12],[1141,13,1141,14],[1141,15,1141,21],[1142,3,1142,10],[1142,11,1142,12],[1142,13,1142,14],[1142,15,1142,21],[1143,3,1143,10],[1143,11,1143,12],[1143,13,1143,14],[1143,15,1143,21],[1144,3,1144,10],[1144,11,1144,12],[1144,13,1144,14],[1144,15,1144,21],[1145,3,1145,10],[1145,11,1145,12],[1145,13,1145,14],[1145,15,1145,21],[1146,3,1146,10],[1146,11,1146,12],[1146,13,1146,14],[1146,15,1146,21],[1148,3,1148,21],[1149,4,1149,21],[1150,4,1150,21],[1151,4,1151,21],[1152,4,1152,21],[1153,4,1153,21],[1154,4,1154,21],[1155,4,1155,21],[1156,4,1156,21],[1157,4,1157,21],[1158,4,1158,21],[1160,3,1160,15],[1160,16,1160,21],[1162,3,1162,10],[1162,11,1162,12],[1162,13,1162,14],[1162,15,1162,21],[1163,3,1163,10],[1163,11,1163,12],[1163,13,1163,14],[1163,15,1163,21],[1164,3,1164,10],[1164,11,1164,12],[1164,13,1164,14],[1164,15,1164,21],[1165,3,1165,10],[1165,11,1165,12],[1165,13,1165,14],[1165,15,1165,21],[1166,3,1166,10],[1166,11,1166,12],[1166,13,1166,14],[1166,15,1166,21],[1167,3,1167,10],[1167,11,1167,12],[1167,13,1167,14],[1167,15,1167,21],[1168,3,1168,10],[1168,11,1168,12],[1168,13,1168,14],[1168,15,1168,21],[1169,3,1169,10],[1169,11,1169,12],[1169,13,1169,14],[1169,15,1169,21],[1170,3,1170,10],[1170,11,1170,12],[1170,13,1170,14],[1170,15,1170,21],[1171,3,1171,10],[1171,11,1171,12],[1171,13,1171,14],[1171,15,1171,21],[1172,3,1172,10],[1172,11,1172,12],[1172,13,1172,14],[1172,15,1172,21],[1173,3,1173,10],[1173,11,1173,12],[1173,13,1173,14],[1173,15,1173,21],[1174,3,1174,10],[1174,11,1174,12],[1174,13,1174,14],[1174,15,1174,21],[1175,3,1175,10],[1175,11,1175,12],[1175,13,1175,14],[1175,15,1175,21],[1176,3,1176,10],[1176,11,1176,12],[1176,13,1176,14],[1176,15,1176,21],[1177,3,1177,10],[1177,11,1177,12],[1177,13,1177,14],[1177,15,1177,21],[1178,3,1178,10],[1178,11,1178,12],[1178,13,1178,14],[1178,15,1178,21],[1179,3,1179,10],[1179,11,1179,12],[1179,13,1179,14],[1179,15,1179,21],[1180,3,1180,10],[1180,11,1180,12],[1180,13,1180,14],[1180,15,1180,21],[1181,3,1181,10],[1181,11,1181,12],[1181,13,1181,14],[1181,15,1181,21],[1182,3,1182,10],[1182,11,1182,12],[1182,13,1182,14],[1182,15,1182,21],[1183,3,1183,10],[1183,11,1183,12],[1183,13,1183,14],[1183,15,1183,21],[1184,3,1184,10],[1184,11,1184,12],[1184,13,1184,14],[1184,15,1184,21],[1185,3,1185,10],[1185,11,1185,12],[1185,13,1185,14],[1185,15,1185,21],[1186,3,1186,10],[1186,11,1186,12],[1186,13,1186,14],[1186,15,1186,21],[1187,3,1187,10],[1187,11,1187,12],[1187,13,1187,14],[1187,15,1187,21],[1188,3,1188,10],[1188,11,1188,12],[1188,13,1188,14],[1188,15,1188,21],[1189,3,1189,10],[1189,11,1189,12],[1189,13,1189,14],[1189,15,1189,21],[1190,3,1190,10],[1190,11,1190,12],[1190,13,1190,14],[1190,15,1190,21],[1191,3,1191,10],[1191,11,1191,12],[1191,13,1191,14],[1191,15,1191,21],[1192,3,1192,10],[1192,11,1192,12],[1192,13,1192,14],[1192,15,1192,21],[1193,3,1193,10],[1193,11,1193,12],[1193,13,1193,14],[1193,15,1193,21],[1194,3,1194,10],[1194,11,1194,12],[1194,13,1194,14],[1194,15,1194,21],[1195,3,1195,10],[1195,11,1195,12],[1195,13,1195,14],[1195,15,1195,21],[1196,3,1196,10],[1196,11,1196,12],[1196,13,1196,14],[1196,15,1196,21],[1197,3,1197,10],[1197,11,1197,12],[1197,13,1197,14],[1197,15,1197,21],[1198,3,1198,10],[1198,11,1198,12],[1198,13,1198,14],[1198,15,1198,21],[1199,3,1199,10],[1199,11,1199,12],[1199,13,1199,14],[1199,15,1199,21],[1200,3,1200,10],[1200,11,1200,12],[1200,13,1200,14],[1200,15,1200,21],[1201,3,1201,10],[1201,11,1201,12],[1201,13,1201,14],[1201,15,1201,21],[1202,3,1202,10],[1202,11,1202,12],[1202,13,1202,14],[1202,15,1202,21],[1204,3,1204,21],[1205,4,1205,21],[1206,4,1206,21],[1207,4,1207,21],[1208,4,1208,21],[1209,4,1209,21],[1210,4,1210,21],[1211,4,1211,21],[1212,4,1212,21],[1213,4,1213,21],[1214,4,1214,21],[1216,3,1216,15],[1216,16,1216,21],[1218,3,1218,10],[1218,11,1218,12],[1218,13,1218,14],[1218,15,1218,21],[1219,3,1219,10],[1219,11,1219,12],[1219,13,1219,14],[1219,15,1219,21],[1220,3,1220,10],[1220,11,1220,12],[1220,13,1220,14],[1220,15,1220,21],[1221,3,1221,10],[1221,11,1221,12],[1221,13,1221,14],[1221,15,1221,21],[1222,3,1222,10],[1222,11,1222,12],[1222,13,1222,14],[1222,15,1222,21],[1223,3,1223,10],[1223,11,1223,12],[1223,13,1223,14],[1223,15,1223,21],[1224,3,1224,10],[1224,11,1224,12],[1224,13,1224,14],[1224,15,1224,21],[1225,3,1225,10],[1225,11,1225,12],[1225,13,1225,14],[1225,15,1225,21],[1226,3,1226,10],[1226,11,1226,12],[1226,13,1226,14],[1226,15,1226,21],[1227,3,1227,10],[1227,11,1227,12],[1227,13,1227,14],[1227,15,1227,21],[1228,3,1228,10],[1228,11,1228,12],[1228,13,1228,14],[1228,15,1228,21],[1229,3,1229,10],[1229,11,1229,12],[1229,13,1229,14],[1229,15,1229,21],[1230,3,1230,10],[1230,11,1230,12],[1230,13,1230,14],[1230,15,1230,21],[1231,3,1231,10],[1231,11,1231,12],[1231,13,1231,14],[1231,15,1231,21],[1232,3,1232,10],[1232,11,1232,12],[1232,13,1232,14],[1232,15,1232,21],[1233,3,1233,10],[1233,11,1233,12],[1233,13,1233,14],[1233,15,1233,21],[1234,3,1234,10],[1234,11,1234,12],[1234,13,1234,14],[1234,15,1234,21],[1235,3,1235,10],[1235,11,1235,12],[1235,13,1235,14],[1235,15,1235,21],[1236,3,1236,10],[1236,11,1236,12],[1236,13,1236,14],[1236,15,1236,21],[1237,3,1237,10],[1237,11,1237,12],[1237,13,1237,14],[1237,15,1237,21],[1238,3,1238,10],[1238,11,1238,12],[1238,13,1238,14],[1238,15,1238,21],[1239,3,1239,10],[1239,11,1239,12],[1239,13,1239,14],[1239,15,1239,21],[1240,3,1240,10],[1240,11,1240,12],[1240,13,1240,14],[1240,15,1240,21],[1241,3,1241,10],[1241,11,1241,12],[1241,13,1241,14],[1241,15,1241,21],[1242,3,1242,10],[1242,11,1242,12],[1242,13,1242,14],[1242,15,1242,21],[1243,3,1243,10],[1243,11,1243,12],[1243,13,1243,14],[1243,15,1243,21],[1244,3,1244,10],[1244,11,1244,12],[1244,13,1244,14],[1244,15,1244,21],[1245,3,1245,10],[1245,11,1245,12],[1245,13,1245,14],[1245,15,1245,21],[1246,3,1246,10],[1246,11,1246,12],[1246,13,1246,14],[1246,15,1246,21],[1247,3,1247,10],[1247,11,1247,12],[1247,13,1247,14],[1247,15,1247,21],[1248,3,1248,10],[1248,11,1248,12],[1248,13,1248,14],[1248,15,1248,21],[1249,3,1249,10],[1249,11,1249,12],[1249,13,1249,14],[1249,15,1249,21],[1250,3,1250,10],[1250,11,1250,12],[1250,13,1250,14],[1250,15,1250,21],[1251,3,1251,10],[1251,11,1251,12],[1251,13,1251,14],[1251,15,1251,21],[1252,3,1252,10],[1252,11,1252,12],[1252,13,1252,14],[1252,15,1252,21],[1253,3,1253,10],[1253,11,1253,12],[1253,13,1253,14],[1253,15,1253,21],[1254,3,1254,10],[1254,11,1254,12],[1254,13,1254,14],[1254,15,1254,21],[1255,3,1255,10],[1255,11,1255,12],[1255,13,1255,14],[1255,15,1255,21],[1256,3,1256,10],[1256,11,1256,12],[1256,13,1256,14],[1256,15,1256,21],[1257,3,1257,10],[1257,11,1257,12],[1257,13,1257,14],[1257,15,1257,21],[1258,3,1258,10],[1258,11,1258,12],[1258,13,1258,14],[1258,15,1258,21],[1260,3,1260,21],[1261,4,1261,21],[1262,4,1262,21],[1263,4,1263,21],[1264,4,1264,21],[1265,4,1265,21],[1266,4,1266,21],[1267,4,1267,21],[1268,4,1268,21],[1269,4,1269,21],[1270,4,1270,21],[1272,3,1272,15],[1272,16,1272,21],[1274,3,1274,10],[1274,11,1274,12],[1274,13,1274,14],[1274,15,1274,21],[1275,3,1275,10],[1275,11,1275,12],[1275,13,1275,14],[1275,15,1275,21],[1276,3,1276,10],[1276,11,1276,12],[1276,13,1276,14],[1276,15,1276,21],[1277,3,1277,10],[1277,11,1277,12],[1277,13,1277,14],[1277,15,1277,21],[1278,3,1278,10],[1278,11,1278,12],[1278,13,1278,14],[1278,15,1278,21],[1279,3,1279,10],[1279,11,1279,12],[1279,13,1279,14],[1279,15,1279,21],[1280,3,1280,10],[1280,11,1280,12],[1280,13,1280,14],[1280,15,1280,21],[1281,3,1281,10],[1281,11,1281,12],[1281,13,1281,14],[1281,15,1281,21],[1282,3,1282,10],[1282,11,1282,12],[1282,13,1282,14],[1282,15,1282,21],[1283,3,1283,10],[1283,11,1283,12],[1283,13,1283,14],[1283,15,1283,21],[1284,3,1284,10],[1284,11,1284,12],[1284,13,1284,14],[1284,15,1284,21],[1285,3,1285,10],[1285,11,1285,12],[1285,13,1285,14],[1285,15,1285,21],[1286,3,1286,10],[1286,11,1286,12],[1286,13,1286,14],[1286,15,1286,21],[1287,3,1287,10],[1287,11,1287,12],[1287,13,1287,14],[1287,15,1287,21],[1288,3,1288,10],[1288,11,1288,12],[1288,13,1288,14],[1288,15,1288,21],[1289,3,1289,10],[1289,11,1289,12],[1289,13,1289,14],[1289,15,1289,21],[1290,3,1290,10],[1290,11,1290,12],[1290,13,1290,14],[1290,15,1290,21],[1291,3,1291,10],[1291,11,1291,12],[1291,13,1291,14],[1291,15,1291,21],[1292,3,1292,10],[1292,11,1292,12],[1292,13,1292,14],[1292,15,1292,21],[1293,3,1293,10],[1293,11,1293,12],[1293,13,1293,14],[1293,15,1293,21],[1294,3,1294,10],[1294,11,1294,12],[1294,13,1294,14],[1294,15,1294,21],[1295,3,1295,10],[1295,11,1295,12],[1295,13,1295,14],[1295,15,1295,21],[1296,3,1296,10],[1296,11,1296,12],[1296,13,1296,14],[1296,15,1296,21],[1297,3,1297,10],[1297,11,1297,12],[1297,13,1297,14],[1297,15,1297,21],[1298,3,1298,10],[1298,11,1298,12],[1298,13,1298,14],[1298,15,1298,21],[1299,3,1299,10],[1299,11,1299,12],[1299,13,1299,14],[1299,15,1299,21],[1300,3,1300,10],[1300,11,1300,12],[1300,13,1300,14],[1300,15,1300,21],[1301,3,1301,10],[1301,11,1301,12],[1301,13,1301,14],[1301,15,1301,21],[1302,3,1302,10],[1302,11,1302,12],[1302,13,1302,14],[1302,15,1302,21],[1303,3,1303,10],[1303,11,1303,12],[1303,13,1303,14],[1303,15,1303,21],[1304,3,1304,10],[1304,11,1304,12],[1304,13,1304,14],[1304,15,1304,21],[1305,3,1305,10],[1305,11,1305,12],[1305,13,1305,14],[1305,15,1305,21],[1306,3,1306,10],[1306,11,1306,12],[1306,13,1306,14],[1306,15,1306,21],[1307,3,1307,10],[1307,11,1307,12],[1307,13,1307,14],[1307,15,1307,21],[1308,3,1308,10],[1308,11,1308,12],[1308,13,1308,14],[1308,15,1308,21],[1309,3,1309,10],[1309,11,1309,12],[1309,13,1309,14],[1309,15,1309,21],[1310,3,1310,10],[1310,11,1310,12],[1310,13,1310,14],[1310,15,1310,21],[1311,3,1311,10],[1311,11,1311,12],[1311,13,1311,14],[1311,15,1311,21],[1312,3,1312,10],[1312,11,1312,12],[1312,13,1312,14],[1312,15,1312,21],[1313,3,1313,10],[1313,11,1313,12],[1313,13,1313,14],[1313,15,1313,21],[1314,3,1314,10],[1314,11,1314,12],[1314,13,1314,14],[1314,15,1314,21],[1316,3,1316,21],[1317,4,1317,21],[1318,4,1318,21],[1319,4,1319,21],[1320,4,1320,21],[1321,4,1321,21],[1322,4,1322,21],[1323,4,1323,21],[1324,4,1324,21],[1325,4,1325,21],[1326,4,1326,21],[1328,3,1328,15],[1328,16,1328,21],[1330,3,1330,10],[1330,11,1330,12],[1330,13,1330,14],[1330,15,1330,21],[1331,3,1331,10],[1331,11,1331,12],[1331,13,1331,14],[1331,15,1331,21],[1332,3,1332,10],[1332,11,1332,12],[1332,13,1332,14],[1332,15,1332,21],[1333,3,1333,10],[1333,11,1333,12],[1333,13,1333,14],[1333,15,1333,21],[1334,3,1334,10],[1334,11,1334,12],[1334,13,1334,14],[1334,15,1334,21],[1335,3,1335,10],[1335,11,1335,12],[1335,13,1335,14],[1335,15,1335,21],[1336,3,1336,10],[1336,11,1336,12],[1336,13,1336,14],[1336,15,1336,21],[1337,3,1337,10],[1337,11,1337,12],[1337,13,1337,14],[1337,15,1337,21],[1338,3,1338,10],[1338,11,1338,12],[1338,13,1338,14],[1338,15,1338,21],[1339,3,1339,10],[1339,11,1339,12],[1339,13,1339,14],[1339,15,1339,21],[1340,3,1340,10],[1340,11,1340,12],[1340,13,1340,14],[1340,15,1340,21],[1341,3,1341,10],[1341,11,1341,12],[1341,13,1341,14],[1341,15,1341,21],[1342,3,1342,10],[1342,11,1342,12],[1342,13,1342,14],[1342,15,1342,21],[1343,3,1343,10],[1343,11,1343,12],[1343,13,1343,14],[1343,15,1343,21],[1344,3,1344,10],[1344,11,1344,12],[1344,13,1344,14],[1344,15,1344,21],[1345,3,1345,10],[1345,11,1345,12],[1345,13,1345,14],[1345,15,1345,21],[1346,3,1346,10],[1346,11,1346,12],[1346,13,1346,14],[1346,15,1346,21],[1347,3,1347,10],[1347,11,1347,12],[1347,13,1347,14],[1347,15,1347,21],[1348,3,1348,10],[1348,11,1348,12],[1348,13,1348,14],[1348,15,1348,21],[1349,3,1349,10],[1349,11,1349,12],[1349,13,1349,14],[1349,15,1349,21],[1350,3,1350,10],[1350,11,1350,12],[1350,13,1350,14],[1350,15,1350,21],[1351,3,1351,10],[1351,11,1351,12],[1351,13,1351,14],[1351,15,1351,21],[1352,3,1352,10],[1352,11,1352,12],[1352,13,1352,14],[1352,15,1352,21],[1353,3,1353,10],[1353,11,1353,12],[1353,13,1353,14],[1353,15,1353,21],[1354,3,1354,10],[1354,11,1354,12],[1354,13,1354,14],[1354,15,1354,21],[1355,3,1355,10],[1355,11,1355,12],[1355,13,1355,14],[1355,15,1355,21],[1356,3,1356,10],[1356,11,1356,12],[1356,13,1356,14],[1356,15,1356,21],[1357,3,1357,10],[1357,11,1357,12],[1357,13,1357,14],[1357,15,1357,21],[1358,3,1358,10],[1358,11,1358,12],[1358,13,1358,14],[1358,15,1358,21],[1359,3,1359,10],[1359,11,1359,12],[1359,13,1359,14],[1359,15,1359,21],[1360,3,1360,10],[1360,11,1360,12],[1360,13,1360,14],[1360,15,1360,21],[1361,3,1361,10],[1361,11,1361,12],[1361,13,1361,14],[1361,15,1361,21],[1362,3,1362,10],[1362,11,1362,12],[1362,13,1362,14],[1362,15,1362,21],[1363,3,1363,10],[1363,11,1363,12],[1363,13,1363,14],[1363,15,1363,21],[1364,3,1364,10],[1364,11,1364,12],[1364,13,1364,14],[1364,15,1364,21],[1365,3,1365,10],[1365,11,1365,12],[1365,13,1365,14],[1365,15,1365,21],[1366,3,1366,10],[1366,11,1366,12],[1366,13,1366,14],[1366,15,1366,21],[1367,3,1367,10],[1367,11,1367,12],[1367,13,1367,14],[1367,15,1367,21],[1368,3,1368,10],[1368,11,1368,12],[1368,13,1368,14],[1368,15,1368,21],[1369,3,1369,10],[1369,11,1369,12],[1369,13,1369,14],[1369,15,1369,21],[1370,3,1370,10],[1370,11,1370,12],[1370,13,1370,14],[1370,15,1370,21],[1372,3,1372,21],[1373,4,1373,21],[1374,4,1374,21],[1375,4,1375,21],[1376,4,1376,21],[1377,4,1377,21],[1378,4,1378,21],[1379,4,1379,21],[1380,4,1380,21],[1381,4,1381,21],[1382,4,1382,21],[1384,3,1384,15],[1384,16,1384,21]],"merged_total":4286,"flags":["merged_cut"]}
[]
[null,"SCOPE OF WORK",{"$nulls":23},"All Rows"]
{"$rows_empty":8}
[{"$nulls":3},"SCOPES OF WORK",{"$nulls":14},"REPORT OPTIONS"]
[{"$nulls":4},{"$f":"T(Scope_1_Cell)","v":"GENERAL CONDITIONS"},{"$nulls":4},{"$f":"T('2 REPAIR ESTIMATOR'!Y75:AE75)","v":"EXTERIOR DOORS & WINDOWS"},{"$nulls":4},{"$f":"T('2 REPAIR ESTIMATOR'!AJ75:AP75)","v":"HARDWOOD FLOORING"}]
[{"$nulls":3},{"$f":"T('2 REPAIR ESTIMATOR'!L76)","v":""},{"$f":"T('2 REPAIR ESTIMATOR'!N76)","v":"DEMOLITION"},{"$nulls":3},{"$f":"T('2 REPAIR ESTIMATOR'!R76)","v":""},{"$f":"T('2 REPAIR ESTIMATOR'!Y76:AE76)","v":"GARAGE DOORS"},{"$nulls":3},{"$f":"T('2 REPAIR ESTIMATOR'!V76)","v":""},{"$f":"T('2 REPAIR ESTIMATOR'!AJ76:AP76)","v":"TILING"},{"$nulls":3},"Show All Rows"]
[{"$nulls":3},{"$f":"T('2 REPAIR ESTIMATOR'!L77)","v":""},{"$f":"T('2 REPAIR ESTIMATOR'!N77)","v":"STRUCTURAL CONCRETE"},{"$nulls":3},{"$f":"T('2 REPAIR ESTIMATOR'!R77)","v":""},{"$f":"T('2 REPAIR ESTIMATOR'!Y77:AE77)","v":"LANDSCAPING"},{"$nulls":3},{"$f":"T('2 REPAIR ESTIMATOR'!V77)","v":""},{"$f":"T('2 REPAIR ESTIMATOR'!AJ77:AP77)","v":"PAINTING"}]
[{"$nulls":3},{"$f":"T('2 REPAIR ESTIMATOR'!L78)","v":""},{"$f":"T('2 REPAIR ESTIMATOR'!N78)","v":"CONCRETE & FLATWORK"},{"$nulls":3},{"$f":"T('2 REPAIR ESTIMATOR'!R78)","v":""},{"$f":"T('2 REPAIR ESTIMATOR'!Y78:AE78)","v":"MISC. EXTERIOR ITEMS"},{"$nulls":3},{"$f":"T('2 REPAIR ESTIMATOR'!V78)","v":""},{"$f":"T('2 REPAIR ESTIMATOR'!AJ78:AP78)","v":"APPLIANCES"},{"$nulls":3},"Hide Blank Rows"]
[{"$nulls":3},{"$f":"T('2 REPAIR ESTIMATOR'!L79)","v":""},{"$f":"T('2 REPAIR ESTIMATOR'!N79)","v":"MASONRY"},{"$nulls":3},{"$f":"T('2 REPAIR ESTIMATOR'!R79)","v":""},{"$f":"T('2 REPAIR ESTIMATOR'!Y79:AE79)","v":"FRAMING & DRYWALL"},{"$nulls":3},{"$f":"T('2 REPAIR ESTIMATOR'!V79)","v":""},{"$f":"T('2 REPAIR ESTIMATOR'!AJ79:AP79)","v":"PLUMBING"}]
[{"$nulls":3},{"$f":"T('2 REPAIR ESTIMATOR'!L80)","v":""},{"$f":"T('2 REPAIR ESTIMATOR'!N80)","v":"SIDING"},{"$nulls":3},{"$f":"T('2 REPAIR ESTIMATOR'!R80)","v":""},{"$f":"T('2 REPAIR ESTIMATOR'!Y80:AE80)","v":"CABINETS & COUNTERTOPS"},{"$nulls":3},{"$f":"T('2 REPAIR ESTIMATOR'!V80)","v":""},{"$f":"T('2 REPAIR ESTIMATOR'!AJ80:AP80)","v":"HVAC"},{"$nulls":4},"View Setting"]
[{"$nulls":3},{"$f":"T('2 REPAIR ESTIMATOR'!L81)","v":""},{"$f":"T('2 REPAIR ESTIMATOR'!N81)","v":"DECKING AND PATIOS"},{"$nulls":3},{"$f":"T('2 REPAIR ESTIMATOR'!R81)","v":""},{"$f":"T('2 REPAIR ESTIMATOR'!Y81:AE81)","v":"DOORS & TRIM"},{"$nulls":3},{"$f":"T('2 REPAIR ESTIMATOR'!V81)","v":""},{"$f":"T('2 REPAIR ESTIMATOR'!AJ81:AP81)","v":"ELECTRICAL"},{"$nulls":4},"Data View"]
[{"$nulls":3},{"$f":"T('2 REPAIR ESTIMATOR'!L82)","v":""},{"$f":"T('2 REPAIR ESTIMATOR'!N82)","v":"ROOFING"},{"$nulls":3},{"$f":"T('2 REPAIR ESTIMATOR'!R82)","v":""},{"$f":"T('2 REPAIR ESTIMATOR'!Y82:AE82)","v":"CARPET & RESILIENT"},{"$nulls":3},{"$f":"T('2 REPAIR ESTIMATOR'!V82)","v":""},{"$f":"T('2 REPAIR ESTIMATOR'!AJ82:AP82)","v":"MISCELLANEOUS"}]
[]
[{"$nulls":3},{"$f":"CONCATENATE(Street_Address,\", \",City_State_Zip)","v":"1234 Main St, Kansas City, MO 64116"}]
[]
[{"$nulls":3},"SCOPE OF WORK ",{"$nulls":14},{"$f":"TODAY()","v":"2019-06-23"}]
{"$rows_empty":17}
[{"$nulls":23},"Show All Rows","Show Sorted Rows"]
[]
[{"$nulls":3},{"$f":"T('2 REPAIR ESTIMATOR'!D87:O87)","v":"GENERAL CONDITIONS"},{"$nulls":7},{"$f":"SUM(L44:M83)","v":5},{"$nulls":10},{"$f":"IF(L43>0,1,0)","v":1},{"$f":"IF(Scope1_Setting=\"Shown\",1,0)","v":1},{"$f":"W43*X43","v":1}]
[{"$nulls":3},{"$f":"T('2 REPAIR ESTIMATOR'!D88:O88)","v":"Dumpster rental-40 yard"},{"$nulls":7},{"$f":"'2 REPAIR ESTIMATOR'!P88","v":1},null,{"$f":"T('2 REPAIR ESTIMATOR'!S88:T88)","v":"ea"},{"$nulls":8},{"$f":"IF(L44=\"\",0,1)","v":1},1,{"$f":"W44*X44","v":1}]
[{"$nulls":3},{"$f":"T('2 REPAIR ESTIMATOR'!D89:O89)","v":"Storage Container"},{"$nulls":7},{"$f":"'2 REPAIR ESTIMATOR'!P89","v":0},null,{"$f":"T('2 REPAIR ESTIMATOR'!S89:T89)","v":"job"},{"$nulls":8},{"$f":"IF(L45=\"\",0,1)","v":1},1,1]
[{"$nulls":3},{"$f":"T('2 REPAIR ESTIMATOR'!D90:O90)","v":"Chemical Toilet"},{"$nulls":7},{"$f":"'2 REPAIR ESTIMATOR'!P90","v":0},null,{"$f":"T('2 REPAIR ESTIMATOR'!S90:T90)","v":"mo"},{"$nulls":8},1,1,1]
[{"$nulls":3},{"$f":"T('2 REPAIR ESTIMATOR'!D91:O91)","v":"Misc. Tools & Materials"},{"$nulls":7},{"$f":"'2 REPAIR ESTIMATOR'!P91","v":0},null,{"$f":"T('2 REPAIR ESTIMATOR'!S91:T91)","v":"ls"},{"$nulls":8},1,1,1]
[{"$nulls":3},{"$f":"T('2 REPAIR ESTIMATOR'!D92:O92)","v":"Rekey/lock box"},{"$nulls":7},{"$f":"'2 REPAIR ESTIMATOR'!P92","v":0},null,{"$f":"T('2 REPAIR ESTIMATOR'!S92:T92)","v":"ea"},{"$nulls":8},1,1,1]
[{"$nulls":3},{"$f":"T('2 REPAIR ESTIMATOR'!D93:O93)","v":"Turn on utilities"},{"$nulls":7},{"$f":"'2 REPAIR ESTIMATOR'!P93","v":0},null,{"$f":"T('2 REPAIR ESTIMATOR'!S93:T93)","v":"ls"},{"$nulls":8},1,1,1]
[{"$nulls":3},{"$f":"T('2 REPAIR ESTIMATOR'!D94:O94)","v":"Truck expense/car payment"},{"$nulls":7},{"$f":"'2 REPAIR ESTIMATOR'!P94","v":0},null,{"$f":"T('2 REPAIR ESTIMATOR'!S94:T94)","v":"month"},{"$nulls":8},1,1,1]
[{"$nulls":3},{"$f":"T('2 REPAIR ESTIMATOR'!D95:O95)","v":"Fuel/gas expense"},{"$nulls":7},{"$f":"'2 REPAIR ESTIMATOR'!P95","v":0},null,{"$f":"T('2 REPAIR ESTIMATOR'!S95:T95)","v":"wk"},{"$nulls":8},1,1,1]
[{"$nulls":3},{"$f":"T('2 REPAIR ESTIMATOR'!D96:O96)","v":"Project management"},{"$nulls":7},{"$f":"'2 REPAIR ESTIMATOR'!P96","v":0},null,{"$f":"T('2 REPAIR ESTIMATOR'!S96:T96)","v":"wk"},{"$nulls":8},1,1,1]
[{"$nulls":3},{"$f":"T('2 REPAIR ESTIMATOR'!D97:O97)","v":"Architectural Fees"},{"$nulls":7},{"$f":"'2 REPAIR ESTIMATOR'!P97","v":0},null,{"$f":"T('2 REPAIR ESTIMATOR'!S97:T97)","v":"hrs"},{"$nulls":8},1,1,1]
[{"$nulls":3},{"$f":"T('2 REPAIR ESTIMATOR'!D98:O98)","v":"Engineering Fees"},{"$nulls":7},{"$f":"'2 REPAIR ESTIMATOR'!P98","v":0},null,{"$f":"T('2 REPAIR ESTIMATOR'!S98:T98)","v":"hrs"},{"$nulls":8},1,1,1]
[{"$nulls":3},{"$f":"T('2 REPAIR ESTIMATOR'!D99:O99)","v":"Professional Photography"},{"$nulls":7},{"$f":"'2 REPAIR ESTIMATOR'!P99","v":0},null,{"$f":"T('2 REPAIR ESTIMATOR'!S99:T99)","v":"ls"},{"$nulls":8},1,1,1]
[{"$nulls":3},{"$f":"T('2 REPAIR ESTIMATOR'!D100:O100)","v":"Material Deliveries"},{"$nulls":7},{"$f":"'2 REPAIR ESTIMATOR'!P100","v":0},null,{"$f":"T('2 REPAIR ESTIMATOR'!S100:T100)","v":"ea"},{"$nulls":8},1,1,1]
[{"$nulls":3},{"$f":"T('2 REPAIR ESTIMATOR'!D101:O101)","v":"Final cleaning"},{"$nulls":7},{"$f":"'2 REPAIR ESTIMATOR'!P101","v":4},null,{"$f":"T('2 REPAIR ESTIMATOR'!S101:T101)","v":"hrs"},{"$nulls":8},1,1,1]
[{"$nulls":3},{"$f":"T('2 REPAIR ESTIMATOR'!D102:O102)","v":""},{"$nulls":7},{"$f":"'2 REPAIR ESTIMATOR'!P102","v":0},null,{"$f":"T('2 REPAIR ESTIMATOR'!S102:T102)","v":""},{"$nulls":8},1,1,1]
[{"$nulls":3},{"$f":"T('2 REPAIR ESTIMATOR'!D103:O103)","v":""},{"$nulls":7},{"$f":"'2 REPAIR ESTIMATOR'!P103","v":0},null,{"$f":"T('2 REPAIR ESTIMATOR'!S103:T103)","v":""},{"$nulls":8},1,1,1]
[{"$nulls":3},{"$f":"T('2 REPAIR ESTIMATOR'!D104:O104)","v":""},{"$nulls":7},{"$f":"'2 REPAIR ESTIMATOR'!P104","v":0},null,{"$f":"T('2 REPAIR ESTIMATOR'!S104:T104)","v":""},{"$nulls":8},1,1,1]
[{"$nulls":3},{"$f":"T('2 REPAIR ESTIMATOR'!D105:O105)","v":""},{"$nulls":7},{"$f":"'2 REPAIR ESTIMATOR'!P105","v":0},null,{"$f":"T('2 REPAIR ESTIMATOR'!S105:T105)","v":""},{"$nulls":8},1,1,1]
[{"$nulls":3},{"$f":"T('2 REPAIR ESTIMATOR'!D106:O106)","v":""},{"$nulls":7},{"$f":"'2 REPAIR ESTIMATOR'!P106","v":0},null,{"$f":"T('2 REPAIR ESTIMATOR'!S106:T106)","v":""},{"$nulls":8},1,1,1]
[{"$nulls":3},{"$f":"T('2 REPAIR ESTIMATOR'!D107:O107)","v":""},{"$nulls":7},{"$f":"'2 REPAIR ESTIMATOR'!P107","v":0},null,{"$f":"T('2 REPAIR ESTIMATOR'!S107:T107)","v":""},{"$nulls":8},1,1,1]
[{"$nulls":3},{"$f":"T('2 REPAIR ESTIMATOR'!D108:O108)","v":""},{"$nulls":7},{"$f":"'2 REPAIR ESTIMATOR'!P108","v":0},null,{"$f":"T('2 REPAIR ESTIMATOR'!S108:T108)","v":""},{"$nulls":8},1,1,1]
[{"$nulls":3},{"$f":"T('2 REPAIR ESTIMATOR'!D109:O109)","v":""},{"$nulls":7},{"$f":"'2 REPAIR ESTIMATOR'!P109","v":0},null,{"$f":"T('2 REPAIR ESTIMATOR'!S109:T109)","v":""},{"$nulls":8},1,1,1]
[{"$nulls":3},{"$f":"T('2 REPAIR ESTIMATOR'!D110:O110)","v":""},{"$nulls":7},{"$f":"'2 REPAIR ESTIMATOR'!P110","v":0},null,{"$f":"T('2 REPAIR ESTIMATOR'!S110:T110)","v":""},{"$nulls":8},1,1,1]
[{"$nulls":3},{"$f":"T('2 REPAIR ESTIMATOR'!D111:O111)","v":""},{"$nulls":7},{"$f":"'2 REPAIR ESTIMATOR'!P111","v":0},null,{"$f":"T('2 REPAIR ESTIMATOR'!S111:T111)","v":""},{"$nulls":8},1,1,1]
[{"$nulls":3},{"$f":"T('2 REPAIR ESTIMATOR'!D112:O112)","v":""},{"$nulls":7},{"$f":"'2 REPAIR ESTIMATOR'!P112","v":0},null,{"$f":"T('2 REPAIR ESTIMATOR'!S112:T112)","v":""},{"$nulls":8},1,1,1]
[{"$nulls":3},{"$f":"T('2 REPAIR ESTIMATOR'!D113:O113)","v":""},{"$nulls":7},{"$f":"'2 REPAIR ESTIMATOR'!P113","v":0},null,{"$f":"T('2 REPAIR ESTIMATOR'!S113:T113)","v":""},{"$nulls":8},1,1,1]
[{"$nulls":3},{"$f":"T('2 REPAIR ESTIMATOR'!D114:O114)","v":""},{"$nulls":7},{"$f":"'2 REPAIR ESTIMATOR'!P114","v":0},null,{"$f":"T('2 REPAIR ESTIMATOR'!S114:T114)","v":""},{"$nulls":8},1,1,1]
[{"$nulls":3},{"$f":"T('2 REPAIR ESTIMATOR'!D115:O115)","v":""},{"$nulls":7},{"$f":"'2 REPAIR ESTIMATOR'!P115","v":0},null,{"$f":"T('2 REPAIR ESTIMATOR'!S115:T115)","v":""},{"$nulls":8},1,1,1]
[{"$nulls":3},{"$f":"T('2 REPAIR ESTIMATOR'!D116:O116)","v":""},{"$nulls":7},{"$f":"'2 REPAIR ESTIMATOR'!P116","v":0},null,{"$f":"T('2 REPAIR ESTIMATOR'!S116:T116)","v":""},{"$nulls":8},1,1,1]
[{"$nulls":3},{"$f":"T('2 REPAIR ESTIMATOR'!D117:O117)","v":""},{"$nulls":7},{"$f":"'2 REPAIR ESTIMATOR'!P117","v":0},null,{"$f":"T('2 REPAIR ESTIMATOR'!S117:T117)","v":""},{"$nulls":8},1,1,1]
[{"$nulls":3},{"$f":"T('2 REPAIR ESTIMATOR'!D118:O118)","v":""},{"$nulls":7},{"$f":"'2 REPAIR ESTIMATOR'!P118","v":0},null,{"$f":"T('2 REPAIR ESTIMATOR'!S118:T118)","v":""},{"$nulls":8},1,1,1]
[{"$nulls":3},{"$f":"T('2 REPAIR ESTIMATOR'!D119:O119)","v":""},{"$nulls":7},{"$f":"'2 REPAIR ESTIMATOR'!P119","v":0},null,{"$f":"T('2 REPAIR ESTIMATOR'!S119:T119)","v":""},{"$nulls":8},1,{"$f":"IF(Scope1_Setting=\"Shown\",1,0)","v":1},1]
[{"$nulls":3},{"$f":"T('2 REPAIR ESTIMATOR'!D120:O120)","v":""},{"$nulls":7},{"$f":"'2 REPAIR ESTIMATOR'!P120","v":0},null,{"$f":"T('2 REPAIR ESTIMATOR'!S120:T120)","v":""},{"$nulls":8},1,1,1]
[{"$nulls":3},{"$f":"T('2 REPAIR ESTIMATOR'!D121:O121)","v":""},{"$nulls":7},{"$f":"'2 REPAIR ESTIMATOR'!P121","v":0},null,{"$f":"T('2 REPAIR ESTIMATOR'!S121:T121)","v":""},{"$nulls":8},1,1,1]
[{"$nulls":3},{"$f":"T('2 REPAIR ESTIMATOR'!D122:O122)","v":""},{"$nulls":7},{"$f":"'2 REPAIR ESTIMATOR'!P122","v":0},null,{"$f":"T('2 REPAIR ESTIMATOR'!S122:T122)","v":""},{"$nulls":8},1,1,1]
[{"$nulls":3},{"$f":"T('2 REPAIR ESTIMATOR'!D123:O123)","v":""},{"$nulls":7},{"$f":"'2 REPAIR ESTIMATOR'!P123","v":0},null,{"$f":"T('2 REPAIR ESTIMATOR'!S123:T123)","v":""},{"$nulls":8},1,1,1]
[{"$nulls":3},{"$f":"T('2 REPAIR ESTIMATOR'!D124:O124)","v":""},{"$nulls":7},{"$f":"'2 REPAIR ESTIMATOR'!P124","v":0},null,{"$f":"T('2 REPAIR ESTIMATOR'!S124:T124)","v":""},{"$nulls":8},1,1,1]
[{"$nulls":3},{"$f":"T('2 REPAIR ESTIMATOR'!D125:O125)","v":""},{"$nulls":7},{"$f":"'2 REPAIR ESTIMATOR'!P125","v":0},null,{"$f":"T('2 REPAIR ESTIMATOR'!S125:T125)","v":""},{"$nulls":8},1,1,1]
[{"$nulls":3},{"$f":"T('2 REPAIR ESTIMATOR'!D126:O126)","v":""},{"$nulls":7},{"$f":"'2 REPAIR ESTIMATOR'!P126","v":0},null,{"$f":"T('2 REPAIR ESTIMATOR'!S126:T126)","v":""},{"$nulls":8},1,1,1]
[{"$nulls":3},{"$f":"T('2 REPAIR ESTIMATOR'!D127:O127)","v":""},{"$nulls":7},{"$f":"'2 REPAIR ESTIMATOR'!P127","v":0},null,{"$f":"T('2 REPAIR ESTIMATOR'!S127:T127)","v":""},{"$nulls":8},1,1,1]
[{"$nulls":22},{"$f":"W85","v":0},1,0]
[{"$nulls":3},{"$f":"UPPER(CONCATENATE(\"Miscellaneous \",D43,\" Items\"))","v":"MISCELLANEOUS GENERAL CONDITIONS ITEMS"},{"$nulls":18},{"$f":"SUM(W86:W95)","v":0},1,0]
[{"$nulls":3},1,{"$nulls":18},{"$f":"IF(E86<>\"\",1,0)*$W$43","v":0},1,0]
[{"$nulls":3},2,{"$nulls":18},{"$f":"IF(E87<>\"\",1,0)*$W$43","v":0},1,0]
[{"$nulls":3},3,{"$nulls":18},0,1,0]
[{"$nulls":3},4,{"$nulls":18},0,1,0]
[{"$nulls":3},5,{"$nulls":18},0,1,0]
[{"$nulls":3},6,{"$nulls":18},0,1,0]
[{"$nulls":3},7,{"$nulls":18},0,1,0]
[{"$nulls":3},8,{"$nulls":18},0,1,0]
[{"$nulls":3},9,{"$nulls":18},0,1,0]
[{"$nulls":3},10,{"$nulls":18},0,1,0]
[{"$nulls":22},{"$f":"$W$43","v":1},1,1]
[{"$nulls":3},{"$f":"UPPER(CONCATENATE(\"TOTAL \",D43))","v":"TOTAL GENERAL CONDITIONS"},{"$nulls":18},{"$f":"$W$43","v":1},1,1]
[{"$nulls":22},{"$f":"$W$43","v":1},1,1]
[{"$nulls":3},{"$f":"T('2 REPAIR ESTIMATOR'!D132:O132)","v":"DEMOLITION"},{"$nulls":7},{"$f":"SUM(L100:M139)","v":80},{"$nulls":10},{"$f":"IF(L99>0,1,0)","v":1},{"$f":"IF(Scope2_Setting=\"Shown\",1,0)","v":1},1]
[{"$nulls":3},{"$f":"T('2 REPAIR ESTIMATOR'!D133:O133)","v":"Demolition"},{"$nulls":7},{"$f":"'2 REPAIR ESTIMATOR'!P133","v":0},null,{"$f":"T('2 REPAIR ESTIMATOR'!S133)","v":"ls"},{"$nulls":8},{"$f":"IF(L100=\"\",0,1)","v":1},1,1]
[{"$nulls":3},{"$f":"T('2 REPAIR ESTIMATOR'!D134:O134)","v":"Demo bid/allowance"},{"$nulls":7},{"$f":"'2 REPAIR ESTIMATOR'!P134","v":0},null,{"$f":"T('2 REPAIR ESTIMATOR'!S134)","v":"ls"},{"$nulls":8},{"$f":"IF(L101=\"\",0,1)","v":1},1,1]
[{"$nulls":3},{"$f":"T('2 REPAIR ESTIMATOR'!D135:O135)","v":"Demolition work per hour"},{"$nulls":7},{"$f":"'2 REPAIR ESTIMATOR'!P135","v":80},null,{"$f":"T('2 REPAIR ESTIMATOR'!S135)","v":"hrs"},{"$nulls":8},1,1,1]
[{"$nulls":3},{"$f":"T('2 REPAIR ESTIMATOR'!D136:O136)","v":"Room demolition, typical room"},{"$nulls":7},{"$f":"'2 REPAIR ESTIMATOR'!P136","v":0},null,{"$f":"T('2 REPAIR ESTIMATOR'!S136)","v":"sf"},{"$nulls":8},1,1,1]
[{"$nulls":3},{"$f":"T('2 REPAIR ESTIMATOR'!D137:O137)","v":"Room demolition, bathroom"},{"$nulls":7},{"$f":"'2 REPAIR ESTIMATOR'!P137","v":0},null,{"$f":"T('2 REPAIR ESTIMATOR'!S137)","v":"sf"},{"$nulls":8},1,1,1]
[{"$nulls":3},{"$f":"T('2 REPAIR ESTIMATOR'!D138:O138)","v":"Room demolition, kitchen"},{"$nulls":7},{"$f":"'2 REPAIR ESTIMATOR'!P138","v":0},null,{"$f":"T('2 REPAIR ESTIMATOR'!S138)","v":"sf"},{"$nulls":8},1,1,1]
[{"$nulls":3},{"$f":"T('2 REPAIR ESTIMATOR'!D139:O139)","v":"Building demolition, 1-story wood-framed"},{"$nulls":7},{"$f":"'2 REPAIR ESTIMATOR'!P139","v":0},null,{"$f":"T('2 REPAIR ESTIMATOR'!S139)","v":"sf"},{"$nulls":8},1,1,1]
[{"$nulls":3},{"$f":"T('2 REPAIR ESTIMATOR'!D140:O140)","v":"Building demolition, 2-story wood framed"},{"$nulls":7},{"$f":"'2 REPAIR ESTIMATOR'!P140","v":0},null,{"$f":"T('2 REPAIR ESTIMATOR'!S140)","v":"sf"},{"$nulls":8},1,1,1]
[{"$nulls":3},{"$f":"T('2 REPAIR ESTIMATOR'!D141:O141)","v":"Building demolition, masonry"},{"$nulls":7},{"$f":"'2 REPAIR ESTIMATOR'!P141","v":0},null,{"$f":"T('2 REPAIR ESTIMATOR'!S141)","v":"sf"},{"$nulls":8},1,1,{"$f":"W108*X108","v":1}]
[{"$nulls":3},{"$f":"T('2 REPAIR ESTIMATOR'!D142:O142)","v":"Building demolition, steel/concrete"},{"$nulls":7},{"$f":"'2 REPAIR ESTIMATOR'!P142","v":0},null,{"$f":"T('2 REPAIR ESTIMATOR'!S142)","v":"sf"},{"$nulls":8},1,1,1]
[{"$nulls":3},{"$f":"T('2 REPAIR ESTIMATOR'!D143:O143)","v":"Concrete slab demolition, 4\"-6\""},{"$nulls":7},{"$f":"'2 REPAIR ESTIMATOR'!P143","v":0},null,{"$f":"T('2 REPAIR ESTIMATOR'!S143)","v":""},{"$nulls":8},1,1,1]
[{"$nulls":3},{"$f":"T('2 REPAIR ESTIMATOR'!D144:O144)","v":""},{"$nulls":7},{"$f":"'2 REPAIR ESTIMATOR'!P144","v":0},null,{"$f":"T('2 REPAIR ESTIMATOR'!S144)","v":""},{"$nulls":8},1,1,1]
[{"$nulls":3},{"$f":"T('2 REPAIR ESTIMATOR'!D145:O145)","v":""},{"$nulls":7},{"$f":"'2 REPAIR ESTIMATOR'!P145","v":0},null,{"$f":"T('2 REPAIR ESTIMATOR'!S145)","v":""},{"$nulls":8},1,1,1]
[{"$nulls":3},{"$f":"T('2 REPAIR ESTIMATOR'!D146:O146)","v":"Abatement"},{"$nulls":7},{"$f":"'2 REPAIR ESTIMATOR'!P146","v":0},null,{"$f":"T('2 REPAIR ESTIMATOR'!S146)","v":"ls"},{"$nulls":8},1,1,1]
[{"$nulls":3},{"$f":"T('2 REPAIR ESTIMATOR'!D147:O147)","v":"Asbestos bid/allowance"},{"$nulls":7},{"$f":"'2 REPAIR ESTIMATOR'!P147","v":0},null,{"$f":"T('2 REPAIR ESTIMATOR'!S147)","v":"ls"},{"$nulls":8},1,1,1]
[{"$nulls":3},{"$f":"T('2 REPAIR ESTIMATOR'!D148:O148)","v":"Asbestos testing"},{"$nulls":7},{"$f":"'2 REPAIR ESTIMATOR'!P148","v":0},null,{"$f":"T('2 REPAIR ESTIMATOR'!S148)","v":"ea"},{"$nulls":8},1,1,1]
[{"$nulls":3},{"$f":"T('2 REPAIR ESTIMATOR'!D149:O149)","v":"Asbestos abatement, minimum charge"},{"$nulls":7},{"$f":"'2 REPAIR ESTIMATOR'!P149","v":0},null,{"$f":"T('2 REPAIR ESTIMATOR'!S149)","v":"ea"},{"$nulls":8},1,1,1]
[{"$nulls":3},{"$f":"T('2 REPAIR ESTIMATOR'!D150:O150)","v":"Mold, minimum charge"},{"$nulls":7},{"$f":"'2 REPAIR ESTIMATOR'!P150","v":0},null,{"$f":"T('2 REPAIR ESTIMATOR'!S150)","v":""},{"$nulls":8},1,1,1]
[{"$nulls":3},{"$f":"T('2 REPAIR ESTIMATOR'!D151:O151)","v":""},{"$nulls":7},{"$f":"'2 REPAIR ESTIMATOR'!P151","v":0},null,{"$f":"T('2 REPAIR ESTIMATOR'!S151)","v":""},{"$nulls":8},1,1,1]
[{"$nulls":3},{"$f":"T('2 REPAIR ESTIMATOR'!D152:O152)","v":""},{"$nulls":7},{"$f":"'2 REPAIR ESTIMATOR'!P152","v":0},null,{"$f":"T('2 REPAIR ESTIMATOR'!S152)","v":""},{"$nulls":8},1,1,1]
[{"$nulls":3},{"$f":"T('2 REPAIR ESTIMATOR'!D153:O153)","v":""},{"$nulls":7},{"$f":"'2 REPAIR ESTIMATOR'!P153","v":0},null,{"$f":"T('2 REPAIR ESTIMATOR'!S153)","v":""},{"$nulls":8},1,1,1]
[{"$nulls":3},{"$f":"T('2 REPAIR ESTIMATOR'!D154:O154)","v":""},{"$nulls":7},{"$f":"'2 REPAIR ESTIMATOR'!P154","v":0},null,{"$f":"T('2 REPAIR ESTIMATOR'!S154)","v":""},{"$nulls":8},1,1,1]
[{"$nulls":3},{"$f":"T('2 REPAIR ESTIMATOR'!D155:O155)","v":""},{"$nulls":7},{"$f":"'2 REPAIR ESTIMATOR'!P155","v":0},null,{"$f":"T('2 REPAIR ESTIMATOR'!S155)","v":""},{"$nulls":8},1,1,1]
[{"$nulls":3},{"$f":"T('2 REPAIR ESTIMATOR'!D156:O156)","v":""},{"$nulls":7},{"$f":"'2 REPAIR ESTIMATOR'!P156","v":0},null,{"$f":"T('2 REPAIR ESTIMATOR'!S156)","v":""},{"$nulls":8},1,1,1]
[{"$nulls":3},{"$f":"T('2 REPAIR ESTIMATOR'!D157:O157)","v":""},{"$nulls":7},{"$f":"'2 REPAIR ESTIMATOR'!P157","v":0},null,{"$f":"T('2 REPAIR ESTIMATOR'!S157)","v":""},{"$nulls":8},1,1,1]
[{"$nulls":3},{"$f":"T('2 REPAIR ESTIMATOR'!D158:O158)","v":""},{"$nulls":7},{"$f":"'2 REPAIR ESTIMATOR'!P158","v":0},null,{"$f":"T('2 REPAIR ESTIMATOR'!S158)","v":""},{"$nulls":8},1,1,1]
[{"$nulls":3},{"$f":"T('2 REPAIR ESTIMATOR'!D159:O159)","v":""},{"$nulls":7},{"$f":"'2 REPAIR ESTIMATOR'!P159","v":0},null,{"$f":"T('2 REPAIR ESTIMATOR'!S159)","v":""},{"$nulls":8},1,1,1]
[{"$nulls":3},{"$f":"T('2 REPAIR ESTIMATOR'!D160:O160)","v":""},{"$nulls":7},{"$f":"'2 REPAIR ESTIMATOR'!P160","v":0},null,{"$f":"T('2 REPAIR ESTIMATOR'!S160)","v":""},{"$nulls":8},1,1,1]
[{"$nulls":3},{"$f":"T('2 REPAIR ESTIMATOR'!D161:O161)","v":""},{"$nulls":7},{"$f":"'2 REPAIR ESTIMATOR'!P161","v":0},null,{"$f":"T('2 REPAIR ESTIMATOR'!S161)","v":""},{"$nulls":8},1,1,1]
[{"$nulls":3},{"$f":"T('2 REPAIR ESTIMATOR'!D162:O162)","v":""},{"$nulls":7},{"$f":"'2 REPAIR ESTIMATOR'!P162","v":0},null,{"$f":"T('2 REPAIR ESTIMATOR'!S162)","v":""},{"$nulls":8},1,1,1]
[{"$nulls":3},{"$f":"T('2 REPAIR ESTIMATOR'!D163:O163)","v":""},{"$nulls":7},{"$f":"'2 REPAIR ESTIMATOR'!P163","v":0},null,{"$f":"T('2 REPAIR ESTIMATOR'!S163)","v":""},{"$nulls":8},1,1,1]
[{"$nulls":3},{"$f":"T('2 REPAIR ESTIMATOR'!D164:O164)","v":""},{"$nulls":7},{"$f":"'2 REPAIR ESTIMATOR'!P164","v":0},null,{"$f":"T('2 REPAIR ESTIMATOR'!S164)","v":""},{"$nulls":8},1,{"$f":"IF(Scope2_Setting=\"Shown\",1,0)","v":1},1]
[{"$nulls":3},{"$f":"T('2 REPAIR ESTIMATOR'!D165:O165)","v":""},{"$nulls":7},{"$f":"'2 REPAIR ESTIMATOR'!P165","v":0},null,{"$f":"T('2 REPAIR ESTIMATOR'!S165)","v":""},{"$nulls":8},1,1,1]
[{"$nulls":3},{"$f":"T('2 REPAIR ESTIMATOR'!D166:O166)","v":""},{"$nulls":7},{"$f":"'2 REPAIR ESTIMATOR'!P166","v":0},null,{"$f":"T('2 REPAIR ESTIMATOR'!S166)","v":""},{"$nulls":8},1,1,1]
[{"$nulls":3},{"$f":"T('2 REPAIR ESTIMATOR'!D167:O167)","v":""},{"$nulls":7},{"$f":"'2 REPAIR ESTIMATOR'!P167","v":0},null,{"$f":"T('2 REPAIR ESTIMATOR'!S167)","v":""},{"$nulls":8},1,1,1]
[{"$nulls":3},{"$f":"T('2 REPAIR ESTIMATOR'!D168:O168)","v":""},{"$nulls":7},{"$f":"'2 REPAIR ESTIMATOR'!P168","v":0},null,{"$f":"T('2 REPAIR ESTIMATOR'!S168)","v":""},{"$nulls":8},1,1,1]
[{"$nulls":3},{"$f":"T('2 REPAIR ESTIMATOR'!D169:O169)","v":""},{"$nulls":7},{"$f":"'2 REPAIR ESTIMATOR'!P169","v":0},null,{"$f":"T('2 REPAIR ESTIMATOR'!S169)","v":""},{"$nulls":8},1,1,1]
[{"$nulls":3},{"$f":"T('2 REPAIR ESTIMATOR'!D170:O170)","v":""},{"$nulls":7},{"$f":"'2 REPAIR ESTIMATOR'!P170","v":0},null,{"$f":"T('2 REPAIR ESTIMATOR'!S170)","v":""},{"$nulls":8},1,1,1]
[{"$nulls":3},{"$f":"T('2 REPAIR ESTIMATOR'!D171:O171)","v":""},{"$nulls":7},{"$f":"'2 REPAIR ESTIMATOR'!P171","v":0},null,{"$f":"T('2 REPAIR ESTIMATOR'!S171)","v":""},{"$nulls":8},1,1,1]
[{"$nulls":3},{"$f":"T('2 REPAIR ESTIMATOR'!D172:O172)","v":""},{"$nulls":7},{"$f":"'2 REPAIR ESTIMATOR'!P172","v":0},null,{"$f":"T('2 REPAIR ESTIMATOR'!S172)","v":""},{"$nulls":8},1,1,1]
[{"$nulls":22},{"$f":"W141","v":6},1,6]
[{"$nulls":3},{"$f":"UPPER(CONCATENATE(\"Miscellaneous \",D99,\" Items\"))","v":"MISCELLANEOUS DEMOLITION ITEMS"},{"$nulls":18},{"$f":"SUM(W142:W151)","v":6},1,6]
[{"$nulls":3},1,"Temporarily disconnect/cap all plumbing lines at existing plumbing fixtures.","Temporarily disconnect/cap all plumbing lines at existing plumbing fixtures.","Temporarily disconnect/cap all plumbing lines at existing plumbing fixtures.","Temporarily disconnect/cap all plumbing lines at existing plumbing fixtures.","Temporarily disconnect/cap all plumbing lines at existing plumbing fixtures.","Temporarily disconnect/cap all plumbing lines at existing plumbing fixtures.","Temporarily disconnect/cap all plumbing lines at existing plumbing fixtures.","Temporarily disconnect/cap all plumbing lines at existing plumbing fixtures.","Temporarily disconnect/cap all plumbing lines at existing plumbing fixtures.","Temporarily disconnect/cap all plumbing lines at existing plumbing fixtures.","Temporarily disconnect/cap all plumbing lines at existing plumbing fixtures.","Temporarily disconnect/cap all plumbing lines at existing plumbing fixtures.","Temporarily disconnect/cap all plumbing lines at existing plumbing fixtures.","Temporarily disconnect/cap all plumbing lines at existing plumbing fixtures.","Temporarily disconnect/cap all plumbing lines at existing plumbing fixtures.","Temporarily disconnect/cap all plumbing lines at existing plumbing fixtures.","Temporarily disconnect/cap all plumbing lines at existing plumbing fixtures.","Temporarily disconnect/cap all plumbing lines at existing plumbing fixtures.",{"$f":"IF(E142<>\"\",1,0)*W99","v":1},1,1]
[{"$nulls":3},2,"Remove and dispose of all demolition debris into project dumpster.","Remove and dispose of all demolition debris into project dumpster.","Remove and dispose of all demolition debris into project dumpster.","Remove and dispose of all demolition debris into project dumpster.","Remove and dispose of all demolition debris into project dumpster.","Remove and dispose of all demolition debris into project dumpster.","Remove and dispose of all demolition debris into project dumpster.","Remove and dispose of all demolition debris into project dumpster.","Remove and dispose of all demolition debris into project dumpster.","Remove and dispose of all demolition debris into project dumpster.","Remove and dispose of all demolition debris into project dumpster.","Remove and dispose of all demolition debris into project dumpster.","Remove and dispose of all demolition debris into project dumpster.","Remove and dispose of all demolition debris into project dumpster.","Remove and dispose of all demolition debris into project dumpster.","Remove and dispose of all demolition debris into project dumpster.","Remove and dispose of all demolition debris into project dumpster.","Remove and dispose of all demolition debris into project dumpster.",{"$f":"IF(E143<>\"\",1,0)*W99","v":1},1,1]
[{"$nulls":3},3,"Remove and dispose all yard waste and debris into project dumpster.","Remove and dispose all yard waste and debris into project dumpster.","Remove and dispose all yard waste and debris into project dumpster.","Remove and dispose all yard waste and debris into project dumpster.","Remove and dispose all yard waste and debris into project dumpster.","Remove and dispose all yard waste and debris into project dumpster.","Remove and dispose all yard waste and debris into project dumpster.","Remove and dispose all yard waste and debris into project dumpster.","Remove and dispose all yard waste and debris into project dumpster.","Remove and dispose all yard waste and debris into project dumpster.","Remove and dispose all yard waste and debris into project dumpster.","Remove and dispose all yard waste and debris into project dumpster.","Remove and dispose all yard waste and debris into project dumpster.","Remove and dispose all yard waste and debris into project dumpster.","Remove and dispose all yard waste and debris into project dumpster.","Remove and dispose all yard waste and debris into project dumpster.","Remove and dispose all yard waste and debris into project dumpster.","Remove and dispose all yard waste and debris into project dumpster.",{"$f":"IF(E144<>\"\",1,0)*W99","v":1},1,1]
[{"$nulls":3},4,"Remove and dispose of any furnishings left by previous owner into project dumpster.","Remove and dispose of any furnishings left by previous owner into project dumpster.","Remove and dispose of any furnishings left by previous owner into project dumpster.","Remove and dispose of any furnishings left by previous owner into project dumpster.","Remove and dispose of any furnishings left by previous owner into project dumpster.","Remove and dispose of any furnishings left by previous owner into project dumpster.","Remove and dispose of any furnishings left by previous owner into project dumpster.","Remove and dispose of any furnishings left by previous owner into project dumpster.","Remove and dispose of any furnishings left by previous owner into project dumpster.","Remove and dispose of any furnishings left by previous owner into project dumpster.","Remove and dispose of any furnishings left by previous owner into project dumpster.","Remove and dispose of any furnishings left by previous owner into project dumpster.","Remove and dispose of any furnishings left by previous owner into project dumpster.","Remove and dispose of any furnishings left by previous owner into project dumpster.","Remove and dispose of any furnishings left by previous owner into project dumpster.","Remove and dispose of any furnishings left by previous owner into project dumpster.","Remove and dispose of any furnishings left by previous owner into project dumpster.","Remove and dispose of any furnishings left by previous owner into project dumpster.",{"$f":"IF(E145<>\"\",1,0)*W99","v":1},1,1]
[{"$nulls":3},5,"Remove and dispose of all appliances in the kitchen.","Remove and dispose of all appliances in the kitchen.","Remove and dispose of all appliances in the kitchen.","Remove and dispose of all appliances in the kitchen.","Remove and dispose of all appliances in the kitchen.","Remove and dispose of all appliances in the kitchen.","Remove and dispose of all appliances in the kitchen.","Remove and dispose of all appliances in the kitchen.","Remove and dispose of all appliances in the kitchen.","Remove and dispose of all appliances in the kitchen.","Remove and dispose of all appliances in the kitchen.","Remove and dispose of all appliances in the kitchen.","Remove and dispose of all appliances in the kitchen.","Remove and dispose of all appliances in the kitchen.","Remove and dispose of all appliances in the kitchen.","Remove and dispose of all appliances in the kitchen.","Remove and dispose of all appliances in the kitchen.","Remove and dispose of all appliances in the kitchen.",{"$f":"IF(E146<>\"\",1,0)*W99","v":1},1,1]
[{"$nulls":3},6,"Daily general clean-up and prep work for new construction activities.","Daily general clean-up and prep work for new construction activities.","Daily general clean-up and prep work for new construction activities.","Daily general clean-up and prep work for new construction activities.","Daily general clean-up and prep work for new construction activities.","Daily general clean-up and prep work for new construction activities.","Daily general clean-up and prep work for new construction activities.","Daily general clean-up and prep work for new construction activities.","Daily general clean-up and prep work for new construction activities.","Daily general clean-up and prep work for new construction activities.","Daily general clean-up and prep work for new construction activities.","Daily general clean-up and prep work for new construction activities.","Daily general clean-up and prep work for new construction activities.","Daily general clean-up and prep work for new construction activities.","Daily general clean-up and prep work for new construction activities.","Daily general clean-up and prep work for new construction activities.","Daily general clean-up and prep work for new construction activities.","Daily general clean-up and prep work for new construction activities.",{"$f":"IF(E147<>\"\",1,0)*W99","v":1},1,1]
[{"$nulls":3},7,{"$nulls":18},{"$f":"IF(E148<>\"\",1,0)*W99","v":0},1,0]
[{"$nulls":3},8,{"$nulls":18},{"$f":"IF(E149<>\"\",1,0)*W99","v":0},1,0]
[{"$nulls":3},9,{"$nulls":18},{"$f":"IF(E150<>\"\",1,0)*W99","v":0},1,0]
[{"$nulls":3},10,{"$nulls":18},{"$f":"IF(E151<>\"\",1,0)*W99","v":0},1,0]
[{"$nulls":22},{"$f":"W99","v":1},1,1]
[{"$nulls":3},{"$f":"UPPER(CONCATENATE(\"TOTAL \",D99))","v":"TOTAL DEMOLITION"},{"$nulls":18},{"$f":"W99","v":1},1,1]
[{"$nulls":22},{"$f":"W99","v":1},1,1]
[{"$nulls":3},{"$f":"T('2 REPAIR ESTIMATOR'!D177:O177)","v":"STRUCTURAL CONCRETE"},{"$nulls":7},{"$f":"SUM(L156:M195)","v":0},{"$nulls":10},{"$f":"IF(L155>0,1,0)","v":0},{"$f":"IF(Scope3_Setting=\"Shown\",1,0)","v":1},0]
[{"$nulls":3},{"$f":"T('2 REPAIR ESTIMATOR'!D178:O178)","v":"Excavation"},{"$nulls":7},{"$f":"'2 REPAIR ESTIMATOR'!P178","v":0},null,{"$f":"T('2 REPAIR ESTIMATOR'!S178)","v":""},{"$nulls":8},{"$f":"IF(L156=\"\",0,1)","v":1},1,1]
[{"$nulls":3},{"$f":"T('2 REPAIR ESTIMATOR'!D179:O179)","v":"Excavation bid/allowance"},{"$nulls":7},{"$f":"'2 REPAIR ESTIMATOR'!P179","v":0},null,{"$f":"T('2 REPAIR ESTIMATOR'!S179)","v":"ls"},{"$nulls":8},{"$f":"IF(L157=\"\",0,1)","v":1},1,1]
[{"$nulls":3},{"$f":"T('2 REPAIR ESTIMATOR'!D180:O180)","v":"Footing trenching"},{"$nulls":7},{"$f":"'2 REPAIR ESTIMATOR'!P180","v":0},null,{"$f":"T('2 REPAIR ESTIMATOR'!S180)","v":"cy"},{"$nulls":8},1,1,1]
[{"$nulls":3},{"$f":"T('2 REPAIR ESTIMATOR'!D181:O181)","v":"Backfill of trenches "},{"$nulls":7},{"$f":"'2 REPAIR ESTIMATOR'!P181","v":0},null,{"$f":"T('2 REPAIR ESTIMATOR'!S181)","v":"cy"},{"$nulls":8},1,1,1]
[{"$nulls":3},{"$f":"T('2 REPAIR ESTIMATOR'!D182:O182)","v":""},{"$nulls":7},{"$f":"'2 REPAIR ESTIMATOR'!P182","v":0},null,{"$f":"T('2 REPAIR ESTIMATOR'!S182)","v":""},{"$nulls":8},1,1,1]
[{"$nulls":3},{"$f":"T('2 REPAIR ESTIMATOR'!D183:O183)","v":""},{"$nulls":7},{"$f":"'2 REPAIR ESTIMATOR'!P183","v":0},null,{"$f":"T('2 REPAIR ESTIMATOR'!S183)","v":""},{"$nulls":8},1,1,1]
[{"$nulls":3},{"$f":"T('2 REPAIR ESTIMATOR'!D184:O184)","v":"Foundation"},{"$nulls":7},{"$f":"'2 REPAIR ESTIMATOR'!P184","v":0},null,{"$f":"T('2 REPAIR ESTIMATOR'!S184)","v":""},{"$nulls":8},1,1,1]
[{"$nulls":3},{"$f":"T('2 REPAIR ESTIMATOR'!D185:O185)","v":"Foundation bid/allowance"},{"$nulls":7},{"$f":"'2 REPAIR ESTIMATOR'!P185","v":0},null,{"$f":"T('2 REPAIR ESTIMATOR'!S185)","v":"ls"},{"$nulls":8},1,1,1]
[{"$nulls":3},{"$f":"T('2 REPAIR ESTIMATOR'!D186:O186)","v":"Concrete slab on grade, 4\" thick"},{"$nulls":7},{"$f":"'2 REPAIR ESTIMATOR'!P186","v":0},null,{"$f":"T('2 REPAIR ESTIMATOR'!S186)","v":"sf"},{"$nulls":8},1,1,1]
[{"$nulls":3},{"$f":"T('2 REPAIR ESTIMATOR'!D187:O187)","v":"Concrete footing, 12\" wide "},{"$nulls":7},{"$f":"'2 REPAIR ESTIMATOR'!P187","v":0},null,{"$f":"T('2 REPAIR ESTIMATOR'!S187)","v":"lf"},{"$nulls":8},1,1,1]
[{"$nulls":3},{"$f":"T('2 REPAIR ESTIMATOR'!D188:O188)","v":"Stem wall, single story"},{"$nulls":7},{"$f":"'2 REPAIR ESTIMATOR'!P188","v":0},null,{"$f":"T('2 REPAIR ESTIMATOR'!S188)","v":"lf"},{"$nulls":8},1,1,1]
[{"$nulls":3},{"$f":"T('2 REPAIR ESTIMATOR'!D189:O189)","v":""},{"$nulls":7},{"$f":"'2 REPAIR ESTIMATOR'!P189","v":0},null,{"$f":"T('2 REPAIR ESTIMATOR'!S189)","v":""},{"$nulls":8},1,1,1]
[{"$nulls":3},{"$f":"T('2 REPAIR ESTIMATOR'!D190:O190)","v":""},{"$nulls":7},{"$f":"'2 REPAIR ESTIMATOR'!P190","v":0},null,{"$f":"T('2 REPAIR ESTIMATOR'!S190)","v":""},{"$nulls":8},1,1,1]
[{"$nulls":3},{"$f":"T('2 REPAIR ESTIMATOR'!D191:O191)","v":"Structural Repairs"},{"$nulls":7},{"$f":"'2 REPAIR ESTIMATOR'!P191","v":0},null,{"$f":"T('2 REPAIR ESTIMATOR'!S191)","v":""},{"$nulls":8},1,1,1]
[{"$nulls":3},{"$f":"T('2 REPAIR ESTIMATOR'!D192:O192)","v":"Structural Repairs bid/allowance"},{"$nulls":7},{"$f":"'2 REPAIR ESTIMATOR'!P192","v":0},null,{"$f":"T('2 REPAIR ESTIMATOR'!S192)","v":"ls"},{"$nulls":8},1,1,1]
[{"$nulls":3},{"$f":"T('2 REPAIR ESTIMATOR'!D193:O193)","v":"Stair mud jacking, case by case"},{"$nulls":7},{"$f":"'2 REPAIR ESTIMATOR'!P193","v":0},null,{"$f":"T('2 REPAIR ESTIMATOR'!S193)","v":"ea"},{"$nulls":8},1,1,1]
[{"$nulls":3},{"$f":"T('2 REPAIR ESTIMATOR'!D194:O194)","v":"Bowing foundation walls, vertical I-Beams"},{"$nulls":7},{"$f":"'2 REPAIR ESTIMATOR'!P194","v":0},null,{"$f":"T('2 REPAIR ESTIMATOR'!S194)","v":"ea"},{"$nulls":8},1,1,{"$f":"W172*X172","v":1}]
[{"$nulls":3},{"$f":"T('2 REPAIR ESTIMATOR'!D195:O195)","v":"Settled foundation walls, concrete piers/underpinning"},{"$nulls":7},{"$f":"'2 REPAIR ESTIMATOR'!P195","v":0},null,{"$f":"T('2 REPAIR ESTIMATOR'!S195)","v":"ea"},{"$nulls":8},1,1,1]
[{"$nulls":3},{"$f":"T('2 REPAIR ESTIMATOR'!D196:O196)","v":"Foundation waterproofing & drain tile, single story"},{"$nulls":7},{"$f":"'2 REPAIR ESTIMATOR'!P196","v":0},null,{"$f":"T('2 REPAIR ESTIMATOR'!S196)","v":"lf"},{"$nulls":8},1,1,1]
[{"$nulls":3},{"$f":"T('2 REPAIR ESTIMATOR'!D197:O197)","v":"Epoxy crack injection"},{"$nulls":7},{"$f":"'2 REPAIR ESTIMATOR'!P197","v":0},null,{"$f":"T('2 REPAIR ESTIMATOR'!S197)","v":"lf"},{"$nulls":8},1,1,1]
[{"$nulls":3},{"$f":"T('2 REPAIR ESTIMATOR'!D198:O198)","v":""},{"$nulls":7},{"$f":"'2 REPAIR ESTIMATOR'!P198","v":0},null,{"$f":"T('2 REPAIR ESTIMATOR'!S198)","v":""},{"$nulls":8},1,1,1]
[{"$nulls":3},{"$f":"T('2 REPAIR ESTIMATOR'!D199:O199)","v":""},{"$nulls":7},{"$f":"'2 REPAIR ESTIMATOR'!P199","v":0},null,{"$f":"T('2 REPAIR ESTIMATOR'!S199)","v":""},{"$nulls":8},1,1,1]
[{"$nulls":3},{"$f":"T('2 REPAIR ESTIMATOR'!D200:O200)","v":""},{"$nulls":7},{"$f":"'2 REPAIR ESTIMATOR'!P200","v":0},null,{"$f":"T('2 REPAIR ESTIMATOR'!S200)","v":""},{"$nulls":8},1,1,1]
[{"$nulls":3},{"$f":"T('2 REPAIR ESTIMATOR'!D201:O201)","v":""},{"$nulls":7},{"$f":"'2 REPAIR ESTIMATOR'!P201","v":0},null,{"$f":"T('2 REPAIR ESTIMATOR'!S201)","v":""},{"$nulls":8},1,1,1]
[{"$nulls":3},{"$f":"T('2 REPAIR ESTIMATOR'!D202:O202)","v":""},{"$nulls":7},{"$f":"'2 REPAIR ESTIMATOR'!P202","v":0},null,{"$f":"T('2 REPAIR ESTIMATOR'!S202)","v":""},{"$nulls":8},1,1,1]
[{"$nulls":3},{"$f":"T('2 REPAIR ESTIMATOR'!D203:O203)","v":""},{"$nulls":7},{"$f":"'2 REPAIR ESTIMATOR'!P203","v":0},null,{"$f":"T('2 REPAIR ESTIMATOR'!S203)","v":""},{"$nulls":8},1,1,1]
[{"$nulls":3},{"$f":"T('2 REPAIR ESTIMATOR'!D204:O204)","v":""},{"$nulls":7},{"$f":"'2 REPAIR ESTIMATOR'!P204","v":0},null,{"$f":"T('2 REPAIR ESTIMATOR'!S204)","v":""},{"$nulls":8},1,1,1]
[{"$nulls":3},{"$f":"T('2 REPAIR ESTIMATOR'!D205:O205)","v":""},{"$nulls":7},{"$f":"'2 REPAIR ESTIMATOR'!P205","v":0},null,{"$f":"T('2 REPAIR ESTIMATOR'!S205)","v":""},{"$nulls":8},1,1,1]
[{"$nulls":3},{"$f":"T('2 REPAIR ESTIMATOR'!D206:O206)","v":""},{"$nulls":7},{"$f":"'2 REPAIR ESTIMATOR'!P206","v":0},null,{"$f":"T('2 REPAIR ESTIMATOR'!S206)","v":""},{"$nulls":8},1,1,1]
[{"$nulls":3},{"$f":"T('2 REPAIR ESTIMATOR'!D207:O207)","v":""},{"$nulls":7},{"$f":"'2 REPAIR ESTIMATOR'!P207","v":0},null,{"$f":"T('2 REPAIR ESTIMATOR'!S207)","v":""},{"$nulls":8},1,1,1]
[{"$nulls":3},{"$f":"T('2 REPAIR ESTIMATOR'!D208:O208)","v":""},{"$nulls":7},{"$f":"'2 REPAIR ESTIMATOR'!P208","v":0},null,{"$f":"T('2 REPAIR ESTIMATOR'!S208)","v":""},{"$nulls":8},1,1,1]
[{"$nulls":3},{"$f":"T('2 REPAIR ESTIMATOR'!D209:O209)","v":""},{"$nulls":7},{"$f":"'2 REPAIR ESTIMATOR'!P209","v":0},null,{"$f":"T('2 REPAIR ESTIMATOR'!S209)","v":""},{"$nulls":8},1,{"$f":"IF(Scope3_Setting=\"Shown\",1,0)","v":1},1]
[{"$nulls":3},{"$f":"T('2 REPAIR ESTIMATOR'!D210:O210)","v":""},{"$nulls":7},{"$f":"'2 REPAIR ESTIMATOR'!P210","v":0},null,{"$f":"T('2 REPAIR ESTIMATOR'!S210)","v":""},{"$nulls":8},1,1,1]
[{"$nulls":3},{"$f":"T('2 REPAIR ESTIMATOR'!D211:O211)","v":""},{"$nulls":7},{"$f":"'2 REPAIR ESTIMATOR'!P211","v":0},null,{"$f":"T('2 REPAIR ESTIMATOR'!S211)","v":""},{"$nulls":8},1,1,1]
[{"$nulls":3},{"$f":"T('2 REPAIR ESTIMATOR'!D212:O212)","v":""},{"$nulls":7},{"$f":"'2 REPAIR ESTIMATOR'!P212","v":0},null,{"$f":"T('2 REPAIR ESTIMATOR'!S212)","v":""},{"$nulls":8},1,1,1]
[{"$nulls":3},{"$f":"T('2 REPAIR ESTIMATOR'!D213:O213)","v":""},{"$nulls":7},{"$f":"'2 REPAIR ESTIMATOR'!P213","v":0},null,{"$f":"T('2 REPAIR ESTIMATOR'!S213)","v":""},{"$nulls":8},1,1,1]
[{"$nulls":3},{"$f":"T('2 REPAIR ESTIMATOR'!D214:O214)","v":""},{"$nulls":7},{"$f":"'2 REPAIR ESTIMATOR'!P214","v":0},null,{"$f":"T('2 REPAIR ESTIMATOR'!S214)","v":""},{"$nulls":8},1,1,1]
[{"$nulls":3},{"$f":"T('2 REPAIR ESTIMATOR'!D215:O215)","v":""},{"$nulls":7},{"$f":"'2 REPAIR ESTIMATOR'!P215","v":0},null,{"$f":"T('2 REPAIR ESTIMATOR'!S215)","v":""},{"$nulls":8},1,1,1]
[{"$nulls":3},{"$f":"T('2 REPAIR ESTIMATOR'!D216:O216)","v":""},{"$nulls":7},{"$f":"'2 REPAIR ESTIMATOR'!P216","v":0},null,{"$f":"T('2 REPAIR ESTIMATOR'!S216)","v":""},{"$nulls":8},1,1,1]
[{"$nulls":3},{"$f":"T('2 REPAIR ESTIMATOR'!D217:O217)","v":""},{"$nulls":7},{"$f":"'2 REPAIR ESTIMATOR'!P217","v":0},null,{"$f":"T('2 REPAIR ESTIMATOR'!S217)","v":""},{"$nulls":8},1,1,1]
[{"$nulls":22},{"$f":"W197","v":0},1,0]
[{"$nulls":3},{"$f":"UPPER(CONCATENATE(\"Miscellaneous \",D155,\" Items\"))","v":"MISCELLANEOUS STRUCTURAL CONCRETE ITEMS"},{"$nulls":18},{"$f":"SUM(W198:W207)","v":0},1,0]
[{"$nulls":3},1,"All structural concrete/foundation components and repairs are to be contractor furnished, contractor installed.","All structural concrete/foundation components and repairs are to be contractor furnished, contractor installed.","All structural concrete/foundation components and repairs are to be contractor furnished, contractor installed.","All structural concrete/foundation components and repairs are to be contractor furnished, contractor installed.","All structural concrete/foundation components and repairs are to be contractor furnished, contractor installed.","All structural concrete/foundation components and repairs are to be contractor furnished, contractor installed.","All structural concrete/foundation components and repairs are to be contractor furnished, contractor installed.","All structural concrete/foundation components and repairs are to be contractor furnished, contractor installed.","All structural concrete/foundation components and repairs are to be contractor furnished, contractor installed.","All structural concrete/foundation components and repairs are to be contractor furnished, contractor installed.","All structural concrete/foundation components and repairs are to be contractor furnished, contractor installed.","All structural concrete/foundation components and repairs are to be contractor furnished, contractor installed.","All structural concrete/foundation components and repairs are to be contractor furnished, contractor installed.","All structural concrete/foundation components and repairs are to be contractor furnished, contractor installed.","All structural concrete/foundation components and repairs are to be contractor furnished, contractor installed.","All structural concrete/foundation components and repairs are to be contractor furnished, contractor installed.","All structural concrete/foundation components and repairs are to be contractor furnished, contractor installed.","All structural concrete/foundation components and repairs are to be contractor furnished, contractor installed.",{"$f":"IF(E198<>\"\",1,0)*W155","v":0},1,0]
[{"$nulls":3},2,"Provide warranty for Structural Concrete/Foundation repairs.","Provide warranty for Structural Concrete/Foundation repairs.","Provide warranty for Structural Concrete/Foundation repairs.","Provide warranty for Structural Concrete/Foundation repairs.","Provide warranty for Structural Concrete/Foundation repairs.","Provide warranty for Structural Concrete/Foundation repairs.","Provide warranty for Structural Concrete/Foundation repairs.","Provide warranty for Structural Concrete/Foundation repairs.","Provide warranty for Structural Concrete/Foundation repairs.","Provide warranty for Structural Concrete/Foundation repairs.","Provide warranty for Structural Concrete/Foundation repairs.","Provide warranty for Structural Concrete/Foundation repairs.","Provide warranty for Structural Concrete/Foundation repairs.","Provide warranty for Structural Concrete/Foundation repairs.","Provide warranty for Structural Concrete/Foundation repairs.","Provide warranty for Structural Concrete/Foundation repairs.","Provide warranty for Structural Concrete/Foundation repairs.","Provide warranty for Structural Concrete/Foundation repairs.",{"$f":"IF(E199<>\"\",1,0)*W155","v":0},1,0]
[{"$nulls":3},3,{"$nulls":18},{"$f":"IF(E200<>\"\",1,0)*W155","v":0},1,0]
[{"$nulls":3},4,{"$nulls":18},{"$f":"IF(E201<>\"\",1,0)*W155","v":0},1,0]
[{"$nulls":3},5,{"$nulls":18},{"$f":"IF(E202<>\"\",1,0)*W155","v":0},1,0]
[{"$nulls":3},6,{"$nulls":18},{"$f":"IF(E203<>\"\",1,0)*W155","v":0},1,0]
[{"$nulls":3},7,{"$nulls":18},{"$f":"IF(E204<>\"\",1,0)*W155","v":0},1,0]
[{"$nulls":3},8,{"$nulls":18},{"$f":"IF(E205<>\"\",1,0)*W155","v":0},1,0]
[{"$nulls":3},9,{"$nulls":18},{"$f":"IF(E206<>\"\",1,0)*W155","v":0},1,0]
[{"$nulls":3},10,{"$nulls":18},{"$f":"IF(E207<>\"\",1,0)*W155","v":0},1,0]
[{"$nulls":22},{"$f":"W155","v":0},1,0]
[{"$nulls":3},{"$f":"UPPER(CONCATENATE(\"TOTAL \",D155))","v":"TOTAL STRUCTURAL CONCRETE"},{"$nulls":18},{"$f":"W155","v":0},1,0]
[{"$nulls":22},{"$f":"W155","v":0},1,0]
[{"$nulls":3},{"$f":"T('2 REPAIR ESTIMATOR'!D222:O222)","v":"CONCRETE & FLATWORK"},{"$nulls":7},{"$f":"SUM(L212:M251)","v":0},{"$nulls":10},{"$f":"IF(L211>0,1,0)","v":0},{"$f":"IF(Scope4_Setting=\"Shown\",1,0)","v":1},0]
[{"$nulls":3},{"$f":"T('2 REPAIR ESTIMATOR'!D223:O223)","v":"Concrete"},{"$nulls":7},{"$f":"'2 REPAIR ESTIMATOR'!P223","v":0},null,{"$f":"T('2 REPAIR ESTIMATOR'!S223)","v":""},{"$nulls":8},{"$f":"IF(L212=\"\",0,1)","v":1},1,1]
[{"$nulls":3},{"$f":"T('2 REPAIR ESTIMATOR'!D224:O224)","v":"Concrete bid/allowance"},{"$nulls":7},{"$f":"'2 REPAIR ESTIMATOR'!P224","v":0},null,{"$f":"T('2 REPAIR ESTIMATOR'!S224)","v":"ls"},{"$nulls":8},{"$f":"IF(L213=\"\",0,1)","v":1},1,1]
[{"$nulls":3},{"$f":"T('2 REPAIR ESTIMATOR'!D225:O225)","v":"Concrete flatwork demo"},{"$nulls":7},{"$f":"'2 REPAIR ESTIMATOR'!P225","v":0},null,{"$f":"T('2 REPAIR ESTIMATOR'!S225)","v":"sf"},{"$nulls":8},1,1,1]
[{"$nulls":3},{"$f":"T('2 REPAIR ESTIMATOR'!D226:O226)","v":"Concrete driveway/patio, 6\" thick"},{"$nulls":7},{"$f":"'2 REPAIR ESTIMATOR'!P226","v":0},null,{"$f":"T('2 REPAIR ESTIMATOR'!S226)","v":"sf"},{"$nulls":8},1,1,1]
[{"$nulls":3},{"$f":"T('2 REPAIR ESTIMATOR'!D227:O227)","v":"Concrete sidewalk, 4\" thick"},{"$nulls":7},{"$f":"'2 REPAIR ESTIMATOR'!P227","v":0},null,{"$f":"T('2 REPAIR ESTIMATOR'!S227)","v":"sf"},{"$nulls":8},1,1,1]
[{"$nulls":3},{"$f":"T('2 REPAIR ESTIMATOR'!D228:O228)","v":"Add for 4\" base rock below concrete pavement"},{"$nulls":7},{"$f":"'2 REPAIR ESTIMATOR'!P228","v":0},null,{"$f":"T('2 REPAIR ESTIMATOR'!S228)","v":"sf"},{"$nulls":8},1,1,1]
[{"$nulls":3},{"$f":"T('2 REPAIR ESTIMATOR'!D229:O229)","v":""},{"$nulls":7},{"$f":"'2 REPAIR ESTIMATOR'!P229","v":0},null,{"$f":"T('2 REPAIR ESTIMATOR'!S229)","v":""},{"$nulls":8},1,1,1]
[{"$nulls":3},{"$f":"T('2 REPAIR ESTIMATOR'!D230:O230)","v":"Asphalt"},{"$nulls":7},{"$f":"'2 REPAIR ESTIMATOR'!P230","v":0},null,{"$f":"T('2 REPAIR ESTIMATOR'!S230)","v":""},{"$nulls":8},1,1,1]
[{"$nulls":3},{"$f":"T('2 REPAIR ESTIMATOR'!D231:O231)","v":"Asphalt bid/allowance"},{"$nulls":7},{"$f":"'2 REPAIR ESTIMATOR'!P231","v":0},null,{"$f":"T('2 REPAIR ESTIMATOR'!S231)","v":"ls"},{"$nulls":8},1,1,1]
[{"$nulls":3},{"$f":"T('2 REPAIR ESTIMATOR'!D232:O232)","v":"Asphalt pavement, 5\" thick"},{"$nulls":7},{"$f":"'2 REPAIR ESTIMATOR'!P232","v":0},null,{"$f":"T('2 REPAIR ESTIMATOR'!S232)","v":"sy"},{"$nulls":8},1,1,1]
[{"$nulls":3},{"$f":"T('2 REPAIR ESTIMATOR'!D233:O233)","v":"Asphalt pavement, 7\" thick"},{"$nulls":7},{"$f":"'2 REPAIR ESTIMATOR'!P233","v":0},null,{"$f":"T('2 REPAIR ESTIMATOR'!S233)","v":"sy"},{"$nulls":8},1,1,1]
[{"$nulls":3},{"$f":"T('2 REPAIR ESTIMATOR'!D234:O234)","v":"Asphalt pavement, wearing course, 1\" thick only"},{"$nulls":7},{"$f":"'2 REPAIR ESTIMATOR'!P234","v":0},null,{"$f":"T('2 REPAIR ESTIMATOR'!S234)","v":"sy"},{"$nulls":8},1,1,1]
[{"$nulls":3},{"$f":"T('2 REPAIR ESTIMATOR'!D235:O235)","v":"Asphalt seal coat"},{"$nulls":7},{"$f":"'2 REPAIR ESTIMATOR'!P235","v":0},null,{"$f":"T('2 REPAIR ESTIMATOR'!S235)","v":"sy"},{"$nulls":8},1,1,1]
[{"$nulls":3},{"$f":"T('2 REPAIR ESTIMATOR'!D236:O236)","v":"Add for 4\" base rock below asphalt pavement"},{"$nulls":7},{"$f":"'2 REPAIR ESTIMATOR'!P236","v":0},null,{"$f":"T('2 REPAIR ESTIMATOR'!S236)","v":"sy"},{"$nulls":8},1,1,1]
[{"$nulls":3},{"$f":"T('2 REPAIR ESTIMATOR'!D237:O237)","v":""},{"$nulls":7},{"$f":"'2 REPAIR ESTIMATOR'!P237","v":0},null,{"$f":"T('2 REPAIR ESTIMATOR'!S237)","v":""},{"$nulls":8},1,1,1]
[{"$nulls":3},{"$f":"T('2 REPAIR ESTIMATOR'!D238:O238)","v":"Pavers"},{"$nulls":7},{"$f":"'2 REPAIR ESTIMATOR'!P238","v":0},null,{"$f":"T('2 REPAIR ESTIMATOR'!S238)","v":""},{"$nulls":8},1,1,1]
[{"$nulls":3},{"$f":"T('2 REPAIR ESTIMATOR'!D239:O239)","v":"Pavers bid/allowance"},{"$nulls":7},{"$f":"'2 REPAIR ESTIMATOR'!P239","v":0},null,{"$f":"T('2 REPAIR ESTIMATOR'!S239)","v":"ls"},{"$nulls":8},1,1,1]
[{"$nulls":3},{"$f":"T('2 REPAIR ESTIMATOR'!D240:O240)","v":"Brick pavers, sand base"},{"$nulls":7},{"$f":"'2 REPAIR ESTIMATOR'!P240","v":0},null,{"$f":"T('2 REPAIR ESTIMATOR'!S240)","v":"sf"},{"$nulls":8},1,1,1]
[{"$nulls":3},{"$f":"T('2 REPAIR ESTIMATOR'!D241:O241)","v":"Brick pavers, mortar base"},{"$nulls":7},{"$f":"'2 REPAIR ESTIMATOR'!P241","v":0},null,{"$f":"T('2 REPAIR ESTIMATOR'!S241)","v":"sf"},{"$nulls":8},1,1,1]
[{"$nulls":3},{"$f":"T('2 REPAIR ESTIMATOR'!D242:O242)","v":""},{"$nulls":7},{"$f":"'2 REPAIR ESTIMATOR'!P242","v":0},null,{"$f":"T('2 REPAIR ESTIMATOR'!S242)","v":""},{"$nulls":8},1,1,1]
[{"$nulls":3},{"$f":"T('2 REPAIR ESTIMATOR'!D243:O243)","v":""},{"$nulls":7},{"$f":"'2 REPAIR ESTIMATOR'!P243","v":0},null,{"$f":"T('2 REPAIR ESTIMATOR'!S243)","v":""},{"$nulls":8},1,1,1]
[{"$nulls":3},{"$f":"T('2 REPAIR ESTIMATOR'!D244:O244)","v":""},{"$nulls":7},{"$f":"'2 REPAIR ESTIMATOR'!P244","v":0},null,{"$f":"T('2 REPAIR ESTIMATOR'!S244)","v":""},{"$nulls":8},1,1,1]
[{"$nulls":3},{"$f":"T('2 REPAIR ESTIMATOR'!D245:O245)","v":""},{"$nulls":7},{"$f":"'2 REPAIR ESTIMATOR'!P245","v":0},null,{"$f":"T('2 REPAIR ESTIMATOR'!S245)","v":""},{"$nulls":8},1,1,1]
[{"$nulls":3},{"$f":"T('2 REPAIR ESTIMATOR'!D246:O246)","v":""},{"$nulls":7},{"$f":"'2 REPAIR ESTIMATOR'!P246","v":0},null,{"$f":"T('2 REPAIR ESTIMATOR'!S246)","v":""},{"$nulls":8},1,1,1]
[{"$nulls":3},{"$f":"T('2 REPAIR ESTIMATOR'!D247:O247)","v":""},{"$nulls":7},{"$f":"'2 REPAIR ESTIMATOR'!P247","v":0},null,{"$f":"T('2 REPAIR ESTIMATOR'!S247)","v":""},{"$nulls":8},1,1,{"$f":"W236*X236","v":1}]
[{"$nulls":3},{"$f":"T('2 REPAIR ESTIMATOR'!D248:O248)","v":""},{"$nulls":7},{"$f":"'2 REPAIR ESTIMATOR'!P248","v":0},null,{"$f":"T('2 REPAIR ESTIMATOR'!S248)","v":""},{"$nulls":8},1,1,1]
[{"$nulls":3},{"$f":"T('2 REPAIR ESTIMATOR'!D249:O249)","v":""},{"$nulls":7},{"$f":"'2 REPAIR ESTIMATOR'!P249","v":0},null,{"$f":"T('2 REPAIR ESTIMATOR'!S249)","v":""},{"$nulls":8},1,1,1]
[{"$nulls":3},{"$f":"T('2 REPAIR ESTIMATOR'!D250:O250)","v":""},{"$nulls":7},{"$f":"'2 REPAIR ESTIMATOR'!P250","v":0},null,{"$f":"T('2 REPAIR ESTIMATOR'!S250)","v":""},{"$nulls":8},1,1,1]
[{"$nulls":3},{"$f":"T('2 REPAIR ESTIMATOR'!D251:O251)","v":""},{"$nulls":7},{"$f":"'2 REPAIR ESTIMATOR'!P251","v":0},null,{"$f":"T('2 REPAIR ESTIMATOR'!S251)","v":""},{"$nulls":8},1,1,1]
[{"$nulls":3},{"$f":"T('2 REPAIR ESTIMATOR'!D252:O252)","v":""},{"$nulls":7},{"$f":"'2 REPAIR ESTIMATOR'!P252","v":0},null,{"$f":"T('2 REPAIR ESTIMATOR'!S252)","v":""},{"$nulls":8},1,1,1]
[{"$nulls":3},{"$f":"T('2 REPAIR ESTIMATOR'!D253:O253)","v":""},{"$nulls":7},{"$f":"'2 REPAIR ESTIMATOR'!P253","v":0},null,{"$f":"T('2 REPAIR ESTIMATOR'!S253)","v":""},{"$nulls":8},1,1,1]
[{"$nulls":3},{"$f":"T('2 REPAIR ESTIMATOR'!D254:O254)","v":""},{"$nulls":7},{"$f":"'2 REPAIR ESTIMATOR'!P254","v":0},null,{"$f":"T('2 REPAIR ESTIMATOR'!S254)","v":""},{"$nulls":8},1,{"$f":"IF(Scope4_Setting=\"Shown\",1,0)","v":1},1]
[{"$nulls":3},{"$f":"T('2 REPAIR ESTIMATOR'!D255:O255)","v":""},{"$nulls":7},{"$f":"'2 REPAIR ESTIMATOR'!P255","v":0},null,{"$f":"T('2 REPAIR ESTIMATOR'!S255)","v":""},{"$nulls":8},1,1,1]
[{"$nulls":3},{"$f":"T('2 REPAIR ESTIMATOR'!D256:O256)","v":""},{"$nulls":7},{"$f":"'2 REPAIR ESTIMATOR'!P256","v":0},null,{"$f":"T('2 REPAIR ESTIMATOR'!S256)","v":""},{"$nulls":8},1,1,1]
[{"$nulls":3},{"$f":"T('2 REPAIR ESTIMATOR'!D257:O257)","v":""},{"$nulls":7},{"$f":"'2 REPAIR ESTIMATOR'!P257","v":0},null,{"$f":"T('2 REPAIR ESTIMATOR'!S257)","v":""},{"$nulls":8},1,1,1]
[{"$nulls":3},{"$f":"T('2 REPAIR ESTIMATOR'!D258:O258)","v":""},{"$nulls":7},{"$f":"'2 REPAIR ESTIMATOR'!P258","v":0},null,{"$f":"T('2 REPAIR ESTIMATOR'!S258)","v":""},{"$nulls":8},1,1,1]
[{"$nulls":3},{"$f":"T('2 REPAIR ESTIMATOR'!D259:O259)","v":""},{"$nulls":7},{"$f":"'2 REPAIR ESTIMATOR'!P259","v":0},null,{"$f":"T('2 REPAIR ESTIMATOR'!S259)","v":""},{"$nulls":8},1,1,1]
[{"$nulls":3},{"$f":"T('2 REPAIR ESTIMATOR'!D260:O260)","v":""},{"$nulls":7},{"$f":"'2 REPAIR ESTIMATOR'!P260","v":0},null,{"$f":"T('2 REPAIR ESTIMATOR'!S260)","v":""},{"$nulls":8},1,1,1]
[{"$nulls":3},{"$f":"T('2 REPAIR ESTIMATOR'!D261:O261)","v":""},{"$nulls":7},{"$f":"'2 REPAIR ESTIMATOR'!P261","v":0},null,{"$f":"T('2 REPAIR ESTIMATOR'!S261)","v":""},{"$nulls":8},1,1,1]
[{"$nulls":3},{"$f":"T('2 REPAIR ESTIMATOR'!D262:O262)","v":""},{"$nulls":7},{"$f":"'2 REPAIR ESTIMATOR'!P262","v":0},null,{"$f":"T('2 REPAIR ESTIMATOR'!S262)","v":""},{"$nulls":8},1,1,1]
[{"$nulls":22},{"$f":"W253","v":0},1,0]
[{"$nulls":3},{"$f":"UPPER(CONCATENATE(\"Miscellaneous \",D211,\" Items\"))","v":"MISCELLANEOUS CONCRETE & FLATWORK ITEMS"},{"$nulls":18},{"$f":"SUM(W254:W263)","v":0},1,0]
[{"$nulls":3},1,"All concrete and sidewalk components are to be contractor furnished, contractor installed.","All concrete and sidewalk components are to be contractor furnished, contractor installed.","All concrete and sidewalk components are to be contractor furnished, contractor installed.","All concrete and sidewalk components are to be contractor furnished, contractor installed.","All concrete and sidewalk components are to be contractor furnished, contractor installed.","All concrete and sidewalk components are to be contractor furnished, contractor installed.","All concrete and sidewalk components are to be contractor furnished, contractor installed.","All concrete and sidewalk components are to be contractor furnished, contractor installed.","All concrete and sidewalk components are to be contractor furnished, contractor installed.","All concrete and sidewalk components are to be contractor furnished, contractor installed.","All concrete and sidewalk components are to be contractor furnished, contractor installed.","All concrete and sidewalk components are to be contractor furnished, contractor installed.","All concrete and sidewalk components are to be contractor furnished, contractor installed.","All concrete and sidewalk components are to be contractor furnished, contractor installed.","All concrete and sidewalk components are to be contractor furnished, contractor installed.","All concrete and sidewalk components are to be contractor furnished, contractor installed.","All concrete and sidewalk components are to be contractor furnished, contractor installed.","All concrete and sidewalk components are to be contractor furnished, contractor installed.",{"$f":"IF(E254<>\"\",1,0)*W211","v":0},1,0]
[{"$nulls":3},2,"Demolish and remove existing pavement to accommodate new pavement.","Demolish and remove existing pavement to accommodate new pavement.","Demolish and remove existing pavement to accommodate new pavement.","Demolish and remove existing pavement to accommodate new pavement.","Demolish and remove existing pavement to accommodate new pavement.","Demolish and remove existing pavement to accommodate new pavement.","Demolish and remove existing pavement to accommodate new pavement.","Demolish and remove existing pavement to accommodate new pavement.","Demolish and remove existing pavement to accommodate new pavement.","Demolish and remove existing pavement to accommodate new pavement.","Demolish and remove existing pavement to accommodate new pavement.","Demolish and remove existing pavement to accommodate new pavement.","Demolish and remove existing pavement to accommodate new pavement.","Demolish and remove existing pavement to accommodate new pavement.","Demolish and remove existing pavement to accommodate new pavement.","Demolish and remove existing pavement to accommodate new pavement.","Demolish and remove existing pavement to accommodate new pavement.","Demolish and remove existing pavement to accommodate new pavement.",{"$f":"IF(E255<>\"\",1,0)*W211","v":0},1,0]
[{"$nulls":3},3,"Furnish and install new concrete pavement with new 4\" base rock to replace existing. CFCI","Furnish and install new concrete pavement with new 4\" base rock to replace existing. CFCI","Furnish and install new concrete pavement with new 4\" base rock to replace existing. CFCI","Furnish and install new concrete pavement with new 4\" base rock to replace existing. CFCI","Furnish and install new concrete pavement with new 4\" base rock to replace existing. CFCI","Furnish and install new concrete pavement with new 4\" base rock to replace existing. CFCI","Furnish and install new concrete pavement with new 4\" base rock to replace existing. CFCI","Furnish and install new concrete pavement with new 4\" base rock to replace existing. CFCI","Furnish and install new concrete pavement with new 4\" base rock to replace existing. CFCI","Furnish and install new concrete pavement with new 4\" base rock to replace existing. CFCI","Furnish and install new concrete pavement with new 4\" base rock to replace existing. CFCI","Furnish and install new concrete pavement with new 4\" base rock to replace existing. CFCI","Furnish and install new concrete pavement with new 4\" base rock to replace existing. CFCI","Furnish and install new concrete pavement with new 4\" base rock to replace existing. CFCI","Furnish and install new concrete pavement with new 4\" base rock to replace existing. CFCI","Furnish and install new concrete pavement with new 4\" base rock to replace existing. CFCI","Furnish and install new concrete pavement with new 4\" base rock to replace existing. CFCI","Furnish and install new concrete pavement with new 4\" base rock to replace existing. CFCI",{"$f":"IF(E256<>\"\",1,0)*W211","v":0},1,0]
[{"$nulls":3},4,"Provide concrete PSI strength that meets or exceeds local building codes/standards.",{"$nulls":17},{"$f":"IF(E257<>\"\",1,0)*W211","v":0},1,0]
[{"$nulls":3},5,"Provide re-inforcing bar/mesh material if required by local building codes/standards.",{"$nulls":17},{"$f":"IF(E258<>\"\",1,0)*W211","v":0},1,0]
[{"$nulls":3},6,"Provide necessary expansion joints and tooled construction joints and edges with a brushed finish.","Provide tooled construction joints and edges with a brushed finish.","Provide tooled construction joints and edges with a brushed finish.","Provide tooled construction joints and edges with a brushed finish.","Provide tooled construction joints and edges with a brushed finish.","Provide tooled construction joints and edges with a brushed finish.","Provide tooled construction joints and edges with a brushed finish.","Provide tooled construction joints and edges with a brushed finish.","Provide tooled construction joints and edges with a brushed finish.","Provide tooled construction joints and edges with a brushed finish.","Provide tooled construction joints and edges with a brushed finish.","Provide tooled construction joints and edges with a brushed finish.","Provide tooled construction joints and edges with a brushed finish.","Provide tooled construction joints and edges with a brushed finish.","Provide tooled construction joints and edges with a brushed finish.","Provide tooled construction joints and edges with a brushed finish.","Provide tooled construction joints and edges with a brushed finish.","Provide tooled construction joints and edges with a brushed finish.",{"$f":"IF(E259<>\"\",1,0)*W211","v":0},1,0]
[{"$nulls":3},7,"Fine grade, prep & re-seed disturbed areas.","Fine grade, prep & re-seed disturbed areas.","Fine grade, prep & re-seed disturbed areas.","Fine grade, prep & re-seed disturbed areas.","Fine grade, prep & re-seed disturbed areas.","Fine grade, prep & re-seed disturbed areas.","Fine grade, prep & re-seed disturbed areas.","Fine grade, prep & re-seed disturbed areas.","Fine grade, prep & re-seed disturbed areas.","Fine grade, prep & re-seed disturbed areas.","Fine grade, prep & re-seed disturbed areas.","Fine grade, prep & re-seed disturbed areas.","Fine grade, prep & re-seed disturbed areas.","Fine grade, prep & re-seed disturbed areas.","Fine grade, prep & re-seed disturbed areas.","Fine grade, prep & re-seed disturbed areas.","Fine grade, prep & re-seed disturbed areas.","Fine grade, prep & re-seed disturbed areas.",{"$f":"IF(E260<>\"\",1,0)*W211","v":0},1,0]
[{"$nulls":3},8,{"$nulls":18},{"$f":"IF(E261<>\"\",1,0)*W211","v":0},1,0]
[{"$nulls":3},9,{"$nulls":18},{"$f":"IF(E262<>\"\",1,0)*W211","v":0},1,0]
[{"$nulls":3},10,{"$nulls":18},{"$f":"IF(E263<>\"\",1,0)*W211","v":0},1,0]
[{"$nulls":22},{"$f":"W211","v":0},1,0]
[{"$nulls":3},{"$f":"UPPER(CONCATENATE(\"TOTAL \",D211))","v":"TOTAL CONCRETE & FLATWORK"},{"$nulls":18},{"$f":"W211","v":0},1,0]
[{"$nulls":22},{"$f":"W211","v":0},1,0]
[{"$nulls":3},{"$f":"T('2 REPAIR ESTIMATOR'!D267:O267)","v":"MASONRY"},{"$nulls":7},{"$f":"SUM(L268:M307)","v":0},{"$nulls":10},{"$f":"IF(L267>0,1,0)","v":0},{"$f":"IF(Scope5_Setting=\"Shown\",1,0)","v":1},0]
[{"$nulls":3},{"$f":"T('2 REPAIR ESTIMATOR'!D268:O268)","v":"Masonry bid/allowance"},{"$nulls":7},{"$f":"'2 REPAIR ESTIMATOR'!P268","v":0},null,{"$f":"T('2 REPAIR ESTIMATOR'!S268)","v":"ls"},{"$nulls":8},{"$f":"IF(L268=\"\",0,1)","v":1},1,1]
[{"$nulls":3},{"$f":"T('2 REPAIR ESTIMATOR'!D269:O269)","v":"CMU, 4x8"},{"$nulls":7},{"$f":"'2 REPAIR ESTIMATOR'!P269","v":0},null,{"$f":"T('2 REPAIR ESTIMATOR'!S269)","v":"sf"},{"$nulls":8},{"$f":"IF(L269=\"\",0,1)","v":1},1,1]
[{"$nulls":3},{"$f":"T('2 REPAIR ESTIMATOR'!D270:O270)","v":"CMU, 8x8"},{"$nulls":7},{"$f":"'2 REPAIR ESTIMATOR'!P270","v":0},null,{"$f":"T('2 REPAIR ESTIMATOR'!S270)","v":"sf"},{"$nulls":8},1,1,1]
[{"$nulls":3},{"$f":"T('2 REPAIR ESTIMATOR'!D271:O271)","v":"Brick veneer"},{"$nulls":7},{"$f":"'2 REPAIR ESTIMATOR'!P271","v":0},null,{"$f":"T('2 REPAIR ESTIMATOR'!S271)","v":"sf"},{"$nulls":8},1,1,1]
[{"$nulls":3},{"$f":"T('2 REPAIR ESTIMATOR'!D272:O272)","v":"Natural stone"},{"$nulls":7},{"$f":"'2 REPAIR ESTIMATOR'!P272","v":0},null,{"$f":"T('2 REPAIR ESTIMATOR'!S272)","v":"sf"},{"$nulls":8},1,1,1]
[{"$nulls":3},{"$f":"T('2 REPAIR ESTIMATOR'!D273:O273)","v":"Masonry waterproofing"},{"$nulls":7},{"$f":"'2 REPAIR ESTIMATOR'!P273","v":0},null,{"$f":"T('2 REPAIR ESTIMATOR'!S273)","v":"sf"},{"$nulls":8},1,1,1]
[{"$nulls":3},{"$f":"T('2 REPAIR ESTIMATOR'!D274:O274)","v":"Tuck-point masonry"},{"$nulls":7},{"$f":"'2 REPAIR ESTIMATOR'!P274","v":0},null,{"$f":"T('2 REPAIR ESTIMATOR'!S274)","v":"sf"},{"$nulls":8},1,1,1]
[{"$nulls":3},{"$f":"T('2 REPAIR ESTIMATOR'!D275:O275)","v":"Power wash masonry"},{"$nulls":7},{"$f":"'2 REPAIR ESTIMATOR'!P275","v":0},null,{"$f":"T('2 REPAIR ESTIMATOR'!S275)","v":"sf"},{"$nulls":8},1,1,1]
[{"$nulls":3},{"$f":"T('2 REPAIR ESTIMATOR'!D276:O276)","v":"Chimney, brick "},{"$nulls":7},{"$f":"'2 REPAIR ESTIMATOR'!P276","v":0},null,{"$f":"T('2 REPAIR ESTIMATOR'!S276)","v":"vlf"},{"$nulls":8},1,1,1]
[{"$nulls":3},{"$f":"T('2 REPAIR ESTIMATOR'!D277:O277)","v":"Chimney, stone"},{"$nulls":7},{"$f":"'2 REPAIR ESTIMATOR'!P277","v":0},null,{"$f":"T('2 REPAIR ESTIMATOR'!S277)","v":"vlf"},{"$nulls":8},1,1,1]
[{"$nulls":3},{"$f":"T('2 REPAIR ESTIMATOR'!D278:O278)","v":"Add to above for chimney cap"},{"$nulls":7},{"$f":"'2 REPAIR ESTIMATOR'!P278","v":0},null,{"$f":"T('2 REPAIR ESTIMATOR'!S278)","v":"ea"},{"$nulls":8},1,1,1]
[{"$nulls":3},{"$f":"T('2 REPAIR ESTIMATOR'!D279:O279)","v":"Fireplace complete, brick, 3ft-4ft wide w/ chimney"},{"$nulls":7},{"$f":"'2 REPAIR ESTIMATOR'!P279","v":0},null,{"$f":"T('2 REPAIR ESTIMATOR'!S279)","v":"ea"},{"$nulls":8},1,1,1]
[{"$nulls":3},{"$f":"T('2 REPAIR ESTIMATOR'!D280:O280)","v":""},{"$nulls":7},{"$f":"'2 REPAIR ESTIMATOR'!P280","v":0},null,{"$f":"T('2 REPAIR ESTIMATOR'!S280)","v":""},{"$nulls":8},1,1,1]
[{"$nulls":3},{"$f":"T('2 REPAIR ESTIMATOR'!D281:O281)","v":""},{"$nulls":7},{"$f":"'2 REPAIR ESTIMATOR'!P281","v":0},null,{"$f":"T('2 REPAIR ESTIMATOR'!S281)","v":""},{"$nulls":8},1,1,1]
[{"$nulls":3},{"$f":"T('2 REPAIR ESTIMATOR'!D282:O282)","v":""},{"$nulls":7},{"$f":"'2 REPAIR ESTIMATOR'!P282","v":0},null,{"$f":"T('2 REPAIR ESTIMATOR'!S282)","v":""},{"$nulls":8},1,1,1]
[{"$nulls":3},{"$f":"T('2 REPAIR ESTIMATOR'!D283:O283)","v":""},{"$nulls":7},{"$f":"'2 REPAIR ESTIMATOR'!P283","v":0},null,{"$f":"T('2 REPAIR ESTIMATOR'!S283)","v":""},{"$nulls":8},1,1,1]
[{"$nulls":3},{"$f":"T('2 REPAIR ESTIMATOR'!D284:O284)","v":""},{"$nulls":7},{"$f":"'2 REPAIR ESTIMATOR'!P284","v":0},null,{"$f":"T('2 REPAIR ESTIMATOR'!S284)","v":""},{"$nulls":8},1,1,1]
[{"$nulls":3},{"$f":"T('2 REPAIR ESTIMATOR'!D285:O285)","v":""},{"$nulls":7},{"$f":"'2 REPAIR ESTIMATOR'!P285","v":0},null,{"$f":"T('2 REPAIR ESTIMATOR'!S285)","v":""},{"$nulls":8},1,1,1]
[{"$nulls":3},{"$f":"T('2 REPAIR ESTIMATOR'!D286:O286)","v":""},{"$nulls":7},{"$f":"'2 REPAIR ESTIMATOR'!P286","v":0},null,{"$f":"T('2 REPAIR ESTIMATOR'!S286)","v":""},{"$nulls":8},1,1,1]
[{"$nulls":3},{"$f":"T('2 REPAIR ESTIMATOR'!D287:O287)","v":""},{"$nulls":7},{"$f":"'2 REPAIR ESTIMATOR'!P287","v":0},null,{"$f":"T('2 REPAIR ESTIMATOR'!S287)","v":""},{"$nulls":8},1,1,1]
[{"$nulls":3},{"$f":"T('2 REPAIR ESTIMATOR'!D288:O288)","v":""},{"$nulls":7},{"$f":"'2 REPAIR ESTIMATOR'!P288","v":0},null,{"$f":"T('2 REPAIR ESTIMATOR'!S288)","v":""},{"$nulls":8},1,1,1]
[{"$nulls":3},{"$f":"T('2 REPAIR ESTIMATOR'!D289:O289)","v":""},{"$nulls":7},{"$f":"'2 REPAIR ESTIMATOR'!P289","v":0},null,{"$f":"T('2 REPAIR ESTIMATOR'!S289)","v":""},{"$nulls":8},1,1,1]
[{"$nulls":3},{"$f":"T('2 REPAIR ESTIMATOR'!D290:O290)","v":""},{"$nulls":7},{"$f":"'2 REPAIR ESTIMATOR'!P290","v":0},null,{"$f":"T('2 REPAIR ESTIMATOR'!S290)","v":""},{"$nulls":8},1,1,1]
[{"$nulls":3},{"$f":"T('2 REPAIR ESTIMATOR'!D291:O291)","v":""},{"$nulls":7},{"$f":"'2 REPAIR ESTIMATOR'!P291","v":0},null,{"$f":"T('2 REPAIR ESTIMATOR'!S291)","v":""},{"$nulls":8},1,1,1]
[{"$nulls":3},{"$f":"T('2 REPAIR ESTIMATOR'!D292:O292)","v":""},{"$nulls":7},{"$f":"'2 REPAIR ESTIMATOR'!P292","v":0},null,{"$f":"T('2 REPAIR ESTIMATOR'!S292)","v":""},{"$nulls":8},1,1,1]
[{"$nulls":3},{"$f":"T('2 REPAIR ESTIMATOR'!D293:O293)","v":""},{"$nulls":7},{"$f":"'2 REPAIR ESTIMATOR'!P293","v":0},null,{"$f":"T('2 REPAIR ESTIMATOR'!S293)","v":""},{"$nulls":8},1,1,1]
[{"$nulls":3},{"$f":"T('2 REPAIR ESTIMATOR'!D294:O294)","v":""},{"$nulls":7},{"$f":"'2 REPAIR ESTIMATOR'!P294","v":0},null,{"$f":"T('2 REPAIR ESTIMATOR'!S294)","v":""},{"$nulls":8},1,1,1]
[{"$nulls":3},{"$f":"T('2 REPAIR ESTIMATOR'!D295:O295)","v":""},{"$nulls":7},{"$f":"'2 REPAIR ESTIMATOR'!P295","v":0},null,{"$f":"T('2 REPAIR ESTIMATOR'!S295)","v":""},{"$nulls":8},1,1,1]
[{"$nulls":3},{"$f":"T('2 REPAIR ESTIMATOR'!D296:O296)","v":""},{"$nulls":7},{"$f":"'2 REPAIR ESTIMATOR'!P296","v":0},null,{"$f":"T('2 REPAIR ESTIMATOR'!S296)","v":""},{"$nulls":8},1,1,1]
[{"$nulls":3},{"$f":"T('2 REPAIR ESTIMATOR'!D297:O297)","v":""},{"$nulls":7},{"$f":"'2 REPAIR ESTIMATOR'!P297","v":0},null,{"$f":"T('2 REPAIR ESTIMATOR'!S297)","v":""},{"$nulls":8},1,1,1]
[{"$nulls":3},{"$f":"T('2 REPAIR ESTIMATOR'!D298:O298)","v":""},{"$nulls":7},{"$f":"'2 REPAIR ESTIMATOR'!P298","v":0},null,{"$f":"T('2 REPAIR ESTIMATOR'!S298)","v":""},{"$nulls":8},1,1,1]
[{"$nulls":3},{"$f":"T('2 REPAIR ESTIMATOR'!D299:O299)","v":""},{"$nulls":7},{"$f":"'2 REPAIR ESTIMATOR'!P299","v":0},null,{"$f":"T('2 REPAIR ESTIMATOR'!S299)","v":""},{"$nulls":8},1,{"$f":"IF(Scope5_Setting=\"Shown\",1,0)","v":1},1]
[{"$nulls":3},{"$f":"T('2 REPAIR ESTIMATOR'!D300:O300)","v":""},{"$nulls":7},{"$f":"'2 REPAIR ESTIMATOR'!P300","v":0},null,{"$f":"T('2 REPAIR ESTIMATOR'!S300)","v":""},{"$nulls":8},1,1,{"$f":"W300*X300","v":1}]
[{"$nulls":3},{"$f":"T('2 REPAIR ESTIMATOR'!D301:O301)","v":""},{"$nulls":7},{"$f":"'2 REPAIR ESTIMATOR'!P301","v":0},null,{"$f":"T('2 REPAIR ESTIMATOR'!S301)","v":""},{"$nulls":8},1,1,1]
[{"$nulls":3},{"$f":"T('2 REPAIR ESTIMATOR'!D302:O302)","v":""},{"$nulls":7},{"$f":"'2 REPAIR ESTIMATOR'!P302","v":0},null,{"$f":"T('2 REPAIR ESTIMATOR'!S302)","v":""},{"$nulls":8},1,1,1]
[{"$nulls":3},{"$f":"T('2 REPAIR ESTIMATOR'!D303:O303)","v":""},{"$nulls":7},{"$f":"'2 REPAIR ESTIMATOR'!P303","v":0},null,{"$f":"T('2 REPAIR ESTIMATOR'!S303)","v":""},{"$nulls":8},1,1,1]
[{"$nulls":3},{"$f":"T('2 REPAIR ESTIMATOR'!D304:O304)","v":""},{"$nulls":7},{"$f":"'2 REPAIR ESTIMATOR'!P304","v":0},null,{"$f":"T('2 REPAIR ESTIMATOR'!S304)","v":""},{"$nulls":8},1,1,1]
[{"$nulls":3},{"$f":"T('2 REPAIR ESTIMATOR'!D305:O305)","v":""},{"$nulls":7},{"$f":"'2 REPAIR ESTIMATOR'!P305","v":0},null,{"$f":"T('2 REPAIR ESTIMATOR'!S305)","v":""},{"$nulls":8},1,1,1]
[{"$nulls":3},{"$f":"T('2 REPAIR ESTIMATOR'!D306:O306)","v":""},{"$nulls":7},{"$f":"'2 REPAIR ESTIMATOR'!P306","v":0},null,{"$f":"T('2 REPAIR ESTIMATOR'!S306)","v":""},{"$nulls":8},1,1,1]
[{"$nulls":3},{"$f":"T('2 REPAIR ESTIMATOR'!D307:O307)","v":""},{"$nulls":7},{"$f":"'2 REPAIR ESTIMATOR'!P307","v":0},null,{"$f":"T('2 REPAIR ESTIMATOR'!S307)","v":""},{"$nulls":8},1,1,1]
[{"$nulls":22},{"$f":"W309","v":0},1,0]
[{"$nulls":3},{"$f":"UPPER(CONCATENATE(\"Miscellaneous \",D267,\" Items\"))","v":"MISCELLANEOUS MASONRY ITEMS"},{"$nulls":18},{"$f":"SUM(W310:W319)","v":0},1,0]
[{"$nulls":3},1,"All masonry work is to be contractor furnished, contractor installed.",{"$nulls":17},{"$f":"IF(E310<>\"\",1,0)*W267","v":0},1,0]
[{"$nulls":3},2,"Furnish and install new red, face brick according to local building standards.",{"$nulls":17},{"$f":"IF(E311<>\"\",1,0)*W267","v":0},1,0]
[{"$nulls":3},3,"(a) Brick Product Specification: _______________________",{"$nulls":17},{"$f":"IF(E312<>\"\",1,0)*W267","v":0},1,0]
[{"$nulls":3},4,"Include all necessary waterproofing membrane, flashings, mortar, anchors & accessories as necessary for masonry installation.",{"$nulls":17},{"$f":"IF(E313<>\"\",1,0)*W267","v":0},1,0]
[{"$nulls":3},5,"Provide tooled mortar joints.",{"$nulls":17},{"$f":"IF(E314<>\"\",1,0)*W267","v":0},1,0]
[{"$nulls":3},6,"Tuckpoint, repair and replace existing grout lines as necessary.",{"$nulls":17},{"$f":"IF(E315<>\"\",1,0)*W267","v":0},1,0]
[{"$nulls":3},7,"Furnish and install steel lintels above doors & windows (if applicable)",{"$nulls":17},{"$f":"IF(E316<>\"\",1,0)*W267","v":0},1,0]
[{"$nulls":3},8,"Final Cleaning:  After mortar is set and cured, clean exposed masonry and surrounding areas.",{"$nulls":17},{"$f":"IF(E317<>\"\",1,0)*W267","v":0},1,0]
[{"$nulls":3},9,{"$nulls":18},{"$f":"IF(E318<>\"\",1,0)*W267","v":0},1,0]
[{"$nulls":3},10,{"$nulls":18},{"$f":"IF(E319<>\"\",1,0)*W267","v":0},1,0]
[{"$nulls":22},{"$f":"W267","v":0},1,0]
[{"$nulls":3},{"$f":"UPPER(CONCATENATE(\"TOTAL \",D267))","v":"TOTAL MASONRY"},{"$nulls":18},{"$f":"W267","v":0},1,0]
[{"$nulls":22},{"$f":"W267","v":0},1,0]
[{"$nulls":3},{"$f":"T('2 REPAIR ESTIMATOR'!D312:O312)","v":"SIDING"},{"$nulls":7},{"$f":"SUM(L324:M363)","v":1},{"$nulls":10},{"$f":"IF(L323>0,1,0)","v":1},{"$f":"IF(Scope6_Setting=\"Shown\",1,0)","v":1},1]
[{"$nulls":3},{"$f":"T('2 REPAIR ESTIMATOR'!D313:O313)","v":"Siding bid/allowance"},{"$nulls":7},{"$f":"'2 REPAIR ESTIMATOR'!P313","v":1},null,{"$f":"T('2 REPAIR ESTIMATOR'!S313)","v":"ls"},{"$nulls":8},{"$f":"IF(L324=\"\",0,1)","v":1},1,1]
[{"$nulls":3},{"$f":"T('2 REPAIR ESTIMATOR'!D314:O314)","v":"Demo existing siding"},{"$nulls":7},{"$f":"'2 REPAIR ESTIMATOR'!P314","v":0},null,{"$f":"T('2 REPAIR ESTIMATOR'!S314)","v":"sf"},{"$nulls":8},{"$f":"IF(L325=\"\",0,1)","v":1},1,1]
[{"$nulls":3},{"$f":"T('2 REPAIR ESTIMATOR'!D315:O315)","v":"Plywood panel, douglas fir"},{"$nulls":7},{"$f":"'2 REPAIR ESTIMATOR'!P315","v":0},null,{"$f":"T('2 REPAIR ESTIMATOR'!S315)","v":"sf"},{"$nulls":8},1,1,1]
[{"$nulls":3},{"$f":"T('2 REPAIR ESTIMATOR'!D316:O316)","v":"Plywood panel, cedar"},{"$nulls":7},{"$f":"'2 REPAIR ESTIMATOR'!P316","v":0},null,{"$f":"T('2 REPAIR ESTIMATOR'!S316)","v":"sf"},{"$nulls":8},1,1,1]
[{"$nulls":3},{"$f":"T('2 REPAIR ESTIMATOR'!D317:O317)","v":"Tongue and groove, douglas fir"},{"$nulls":7},{"$f":"'2 REPAIR ESTIMATOR'!P317","v":0},null,{"$f":"T('2 REPAIR ESTIMATOR'!S317)","v":"sf"},{"$nulls":8},1,1,1]
[{"$nulls":3},{"$f":"T('2 REPAIR ESTIMATOR'!D318:O318)","v":"Tongue and groove, cedar"},{"$nulls":7},{"$f":"'2 REPAIR ESTIMATOR'!P318","v":0},null,{"$f":"T('2 REPAIR ESTIMATOR'!S318)","v":"sf"},{"$nulls":8},1,1,1]
[{"$nulls":3},{"$f":"T('2 REPAIR ESTIMATOR'!D319:O319)","v":"Board and batten, douglas fir"},{"$nulls":7},{"$f":"'2 REPAIR ESTIMATOR'!P319","v":0},null,{"$f":"T('2 REPAIR ESTIMATOR'!S319)","v":"sf"},{"$nulls":8},1,1,1]
[{"$nulls":3},{"$f":"T('2 REPAIR ESTIMATOR'!D320:O320)","v":"Board and batten, cedar"},{"$nulls":7},{"$f":"'2 REPAIR ESTIMATOR'!P320","v":0},null,{"$f":"T('2 REPAIR ESTIMATOR'!S320)","v":"sf"},{"$nulls":8},1,1,1]
[{"$nulls":3},{"$f":"T('2 REPAIR ESTIMATOR'!D321:O321)","v":"Wood shingle/shake"},{"$nulls":7},{"$f":"'2 REPAIR ESTIMATOR'!P321","v":0},null,{"$f":"T('2 REPAIR ESTIMATOR'!S321)","v":"sf"},{"$nulls":8},1,1,1]
[{"$nulls":3},{"$f":"T('2 REPAIR ESTIMATOR'!D322:O322)","v":"Fiber cement siding, 4x8 panels"},{"$nulls":7},{"$f":"'2 REPAIR ESTIMATOR'!P322","v":0},null,{"$f":"T('2 REPAIR ESTIMATOR'!S322)","v":"sf"},{"$nulls":8},1,1,1]
[{"$nulls":3},{"$f":"T('2 REPAIR ESTIMATOR'!D323:O323)","v":"Fiber cement siding, lap"},{"$nulls":7},{"$f":"'2 REPAIR ESTIMATOR'!P323","v":0},null,{"$f":"T('2 REPAIR ESTIMATOR'!S323)","v":"sf"},{"$nulls":8},1,1,1]
[{"$nulls":3},{"$f":"T('2 REPAIR ESTIMATOR'!D324:O324)","v":"Vinyl siding, non-insulated"},{"$nulls":7},{"$f":"'2 REPAIR ESTIMATOR'!P324","v":0},null,{"$f":"T('2 REPAIR ESTIMATOR'!S324)","v":"sf"},{"$nulls":8},1,1,1]
[{"$nulls":3},{"$f":"T('2 REPAIR ESTIMATOR'!D325:O325)","v":"Vinyl siding, insulated"},{"$nulls":7},{"$f":"'2 REPAIR ESTIMATOR'!P325","v":0},null,{"$f":"T('2 REPAIR ESTIMATOR'!S325)","v":"sf"},{"$nulls":8},1,1,1]
[{"$nulls":3},{"$f":"T('2 REPAIR ESTIMATOR'!D326:O326)","v":"Trim, 1\"x3\", pine"},{"$nulls":7},{"$f":"'2 REPAIR ESTIMATOR'!P326","v":0},null,{"$f":"T('2 REPAIR ESTIMATOR'!S326)","v":"lf"},{"$nulls":8},1,1,1]
[{"$nulls":3},{"$f":"T('2 REPAIR ESTIMATOR'!D327:O327)","v":"Trim, 1\"x4\", pine"},{"$nulls":7},{"$f":"'2 REPAIR ESTIMATOR'!P327","v":0},null,{"$f":"T('2 REPAIR ESTIMATOR'!S327)","v":"lf"},{"$nulls":8},1,1,1]
[{"$nulls":3},{"$f":"T('2 REPAIR ESTIMATOR'!D328:O328)","v":"Trim, 1\"x6\", pine"},{"$nulls":7},{"$f":"'2 REPAIR ESTIMATOR'!P328","v":0},null,{"$f":"T('2 REPAIR ESTIMATOR'!S328)","v":"lf"},{"$nulls":8},1,1,1]
[{"$nulls":3},{"$f":"T('2 REPAIR ESTIMATOR'!D329:O329)","v":"Siding patch, window/door, siding, insulation"},{"$nulls":7},{"$f":"'2 REPAIR ESTIMATOR'!P329","v":0},null,{"$f":"T('2 REPAIR ESTIMATOR'!S329)","v":"ea"},{"$nulls":8},1,1,1]
[{"$nulls":3},{"$f":"T('2 REPAIR ESTIMATOR'!D330:O330)","v":"Stucco"},{"$nulls":7},{"$f":"'2 REPAIR ESTIMATOR'!P330","v":0},null,{"$f":"T('2 REPAIR ESTIMATOR'!S330)","v":"sf"},{"$nulls":8},1,1,1]
[{"$nulls":3},{"$f":"T('2 REPAIR ESTIMATOR'!D331:O331)","v":""},{"$nulls":7},{"$f":"'2 REPAIR ESTIMATOR'!P331","v":0},null,{"$f":"T('2 REPAIR ESTIMATOR'!S331)","v":""},{"$nulls":8},1,1,1]
[{"$nulls":3},{"$f":"T('2 REPAIR ESTIMATOR'!D332:O332)","v":""},{"$nulls":7},{"$f":"'2 REPAIR ESTIMATOR'!P332","v":0},null,{"$f":"T('2 REPAIR ESTIMATOR'!S332)","v":""},{"$nulls":8},1,1,1]
[{"$nulls":3},{"$f":"T('2 REPAIR ESTIMATOR'!D333:O333)","v":""},{"$nulls":7},{"$f":"'2 REPAIR ESTIMATOR'!P333","v":0},null,{"$f":"T('2 REPAIR ESTIMATOR'!S333)","v":""},{"$nulls":8},1,1,1]
[{"$nulls":3},{"$f":"T('2 REPAIR ESTIMATOR'!D334:O334)","v":""},{"$nulls":7},{"$f":"'2 REPAIR ESTIMATOR'!P334","v":0},null,{"$f":"T('2 REPAIR ESTIMATOR'!S334)","v":""},{"$nulls":8},1,1,1]
[{"$nulls":3},{"$f":"T('2 REPAIR ESTIMATOR'!D335:O335)","v":""},{"$nulls":7},{"$f":"'2 REPAIR ESTIMATOR'!P335","v":0},null,{"$f":"T('2 REPAIR ESTIMATOR'!S335)","v":""},{"$nulls":8},1,1,1]
[{"$nulls":3},{"$f":"T('2 REPAIR ESTIMATOR'!D336:O336)","v":""},{"$nulls":7},{"$f":"'2 REPAIR ESTIMATOR'!P336","v":0},null,{"$f":"T('2 REPAIR ESTIMATOR'!S336)","v":""},{"$nulls":8},1,1,1]
[{"$nulls":3},{"$f":"T('2 REPAIR ESTIMATOR'!D337:O337)","v":""},{"$nulls":7},{"$f":"'2 REPAIR ESTIMATOR'!P337","v":0},null,{"$f":"T('2 REPAIR ESTIMATOR'!S337)","v":""},{"$nulls":8},1,1,1]
[{"$nulls":3},{"$f":"T('2 REPAIR ESTIMATOR'!D338:O338)","v":""},{"$nulls":7},{"$f":"'2 REPAIR ESTIMATOR'!P338","v":0},null,{"$f":"T('2 REPAIR ESTIMATOR'!S338)","v":""},{"$nulls":8},1,1,1]
[{"$nulls":3},{"$f":"T('2 REPAIR ESTIMATOR'!D339:O339)","v":""},{"$nulls":7},{"$f":"'2 REPAIR ESTIMATOR'!P339","v":0},null,{"$f":"T('2 REPAIR ESTIMATOR'!S339)","v":""},{"$nulls":8},1,1,1]
[{"$nulls":3},{"$f":"T('2 REPAIR ESTIMATOR'!D340:O340)","v":""},{"$nulls":7},{"$f":"'2 REPAIR ESTIMATOR'!P340","v":0},null,{"$f":"T('2 REPAIR ESTIMATOR'!S340)","v":""},{"$nulls":8},1,1,1]
[{"$nulls":3},{"$f":"T('2 REPAIR ESTIMATOR'!D341:O341)","v":""},{"$nulls":7},{"$f":"'2 REPAIR ESTIMATOR'!P341","v":0},null,{"$f":"T('2 REPAIR ESTIMATOR'!S341)","v":""},{"$nulls":8},1,1,1]
[{"$nulls":3},{"$f":"T('2 REPAIR ESTIMATOR'!D342:O342)","v":""},{"$nulls":7},{"$f":"'2 REPAIR ESTIMATOR'!P342","v":0},null,{"$f":"T('2 REPAIR ESTIMATOR'!S342)","v":""},{"$nulls":8},1,1,1]
[{"$nulls":3},{"$f":"T('2 REPAIR ESTIMATOR'!D343:O343)","v":""},{"$nulls":7},{"$f":"'2 REPAIR ESTIMATOR'!P343","v":0},null,{"$f":"T('2 REPAIR ESTIMATOR'!S343)","v":""},{"$nulls":8},1,1,1]
[{"$nulls":3},{"$f":"T('2 REPAIR ESTIMATOR'!D344:O344)","v":""},{"$nulls":7},{"$f":"'2 REPAIR ESTIMATOR'!P344","v":0},null,{"$f":"T('2 REPAIR ESTIMATOR'!S344)","v":""},{"$nulls":8},1,{"$f":"IF(Scope6_Setting=\"Shown\",1,0)","v":1},1]
[{"$nulls":3},{"$f":"T('2 REPAIR ESTIMATOR'!D345:O345)","v":""},{"$nulls":7},{"$f":"'2 REPAIR ESTIMATOR'!P345","v":0},null,{"$f":"T('2 REPAIR ESTIMATOR'!S345)","v":""},{"$nulls":8},1,1,1]
[{"$nulls":3},{"$f":"T('2 REPAIR ESTIMATOR'!D346:O346)","v":""},{"$nulls":7},{"$f":"'2 REPAIR ESTIMATOR'!P346","v":0},null,{"$f":"T('2 REPAIR ESTIMATOR'!S346)","v":""},{"$nulls":8},1,1,1]
[{"$nulls":3},{"$f":"T('2 REPAIR ESTIMATOR'!D347:O347)","v":""},{"$nulls":7},{"$f":"'2 REPAIR ESTIMATOR'!P347","v":0},null,{"$f":"T('2 REPAIR ESTIMATOR'!S347)","v":""},{"$nulls":8},1,1,1]
[{"$nulls":3},{"$f":"T('2 REPAIR ESTIMATOR'!D348:O348)","v":""},{"$nulls":7},{"$f":"'2 REPAIR ESTIMATOR'!P348","v":0},null,{"$f":"T('2 REPAIR ESTIMATOR'!S348)","v":""},{"$nulls":8},1,1,1]
[{"$nulls":3},{"$f":"T('2 REPAIR ESTIMATOR'!D349:O349)","v":""},{"$nulls":7},{"$f":"'2 REPAIR ESTIMATOR'!P349","v":0},null,{"$f":"T('2 REPAIR ESTIMATOR'!S349)","v":""},{"$nulls":8},1,1,1]
[{"$nulls":3},{"$f":"T('2 REPAIR ESTIMATOR'!D350:O350)","v":""},{"$nulls":7},{"$f":"'2 REPAIR ESTIMATOR'!P350","v":0},null,{"$f":"T('2 REPAIR ESTIMATOR'!S350)","v":""},{"$nulls":8},1,1,1]
[{"$nulls":3},{"$f":"T('2 REPAIR ESTIMATOR'!D351:O351)","v":""},{"$nulls":7},{"$f":"'2 REPAIR ESTIMATOR'!P351","v":0},null,{"$f":"T('2 REPAIR ESTIMATOR'!S351)","v":""},{"$nulls":8},1,1,1]
[{"$nulls":3},{"$f":"T('2 REPAIR ESTIMATOR'!D352:O352)","v":""},{"$nulls":7},{"$f":"'2 REPAIR ESTIMATOR'!P352","v":0},null,{"$f":"T('2 REPAIR ESTIMATOR'!S352)","v":""},{"$nulls":8},1,1,1]
[{"$nulls":22},{"$f":"W365","v":5},1,{"$f":"W364*X364","v":5}]
[{"$nulls":3},{"$f":"UPPER(CONCATENATE(\"Miscellaneous \",D323,\" Items\"))","v":"MISCELLANEOUS SIDING ITEMS"},{"$nulls":18},{"$f":"SUM(W366:W375)","v":5},1,5]
[{"$nulls":3},1,"All siding components and repairs are to be contractor furnished, contractor installed.",{"$nulls":17},{"$f":"IF(E366<>\"\",1,0)*W323","v":1},1,1]
[{"$nulls":3},2,"Furnish and install new siding according to local building codes.",{"$nulls":17},{"$f":"IF(E367<>\"\",1,0)*W323","v":1},1,1]
[{"$nulls":3},3,"(a) Siding Product Specification: _______________________",{"$nulls":17},{"$f":"IF(E368<>\"\",1,0)*W323","v":1},1,1]
[{"$nulls":3},4,"Include all necessary weather proofing membranes, flashings, trim boards, fascia boards, soffits, anchors and accessories.",{"$nulls":17},{"$f":"IF(E369<>\"\",1,0)*W323","v":1},1,1]
[{"$nulls":3},5,"Final Cleaning:  Clean up all scrap siding, screws and anchors from project site.",{"$nulls":17},{"$f":"IF(E370<>\"\",1,0)*W323","v":1},1,1]
[{"$nulls":3},6,{"$nulls":18},{"$f":"IF(E371<>\"\",1,0)*W323","v":0},1,0]
[{"$nulls":3},7,{"$nulls":18},{"$f":"IF(E372<>\"\",1,0)*W323","v":0},1,0]
[{"$nulls":3},8,{"$nulls":18},{"$f":"IF(E373<>\"\",1,0)*W323","v":0},1,0]
[{"$nulls":3},9,{"$nulls":18},{"$f":"IF(E374<>\"\",1,0)*W323","v":0},1,0]
[{"$nulls":3},10,{"$nulls":18},{"$f":"IF(E375<>\"\",1,0)*W323","v":0},1,0]
[{"$nulls":22},{"$f":"W323","v":1},1,1]
[{"$nulls":3},{"$f":"UPPER(CONCATENATE(\"TOTAL \",D323))","v":"TOTAL SIDING"},{"$nulls":18},{"$f":"W323","v":1},1,1]
[{"$nulls":22},{"$f":"W323","v":1},1,1]
[{"$nulls":3},{"$f":"T('2 REPAIR ESTIMATOR'!D357:O357)","v":"DECKING AND PATIOS"},{"$nulls":7},{"$f":"SUM(L380:M419)","v":150},{"$nulls":10},{"$f":"IF(L379>0,1,0)","v":1},{"$f":"IF(Scope7_Setting=\"Shown\",1,0)","v":1},1]
[{"$nulls":3},{"$f":"T('2 REPAIR ESTIMATOR'!D358:O358)","v":"Decking"},{"$nulls":7},{"$f":"'2 REPAIR ESTIMATOR'!P358","v":0},null,{"$f":"T('2 REPAIR ESTIMATOR'!S358)","v":""},{"$nulls":8},{"$f":"IF(L380=\"\",0,1)","v":1},1,1]
[{"$nulls":3},{"$f":"T('2 REPAIR ESTIMATOR'!D359:O359)","v":"Deck bid/allowance"},{"$nulls":7},{"$f":"'2 REPAIR ESTIMATOR'!P359","v":0},null,{"$f":"T('2 REPAIR ESTIMATOR'!S359)","v":"ls"},{"$nulls":8},{"$f":"IF(L381=\"\",0,1)","v":1},1,1]
[{"$nulls":3},{"$f":"T('2 REPAIR ESTIMATOR'!D360:O360)","v":"New deck, columns, joists, railing-treated lumber"},{"$nulls":7},{"$f":"'2 REPAIR ESTIMATOR'!P360","v":0},null,{"$f":"T('2 REPAIR ESTIMATOR'!S360)","v":"sf"},{"$nulls":8},1,1,1]
[{"$nulls":3},{"$f":"T('2 REPAIR ESTIMATOR'!D361:O361)","v":"New deck, columns, joists, railing-cedar"},{"$nulls":7},{"$f":"'2 REPAIR ESTIMATOR'!P361","v":0},null,{"$f":"T('2 REPAIR ESTIMATOR'!S361)","v":"sf"},{"$nulls":8},1,1,1]
[{"$nulls":3},{"$f":"T('2 REPAIR ESTIMATOR'!D362:O362)","v":"Existing deck, replace decking"},{"$nulls":7},{"$f":"'2 REPAIR ESTIMATOR'!P362","v":150},null,{"$f":"T('2 REPAIR ESTIMATOR'!S362)","v":"sf"},{"$nulls":8},1,1,1]
[{"$nulls":3},{"$f":"T('2 REPAIR ESTIMATOR'!D363:O363)","v":"Install railing w/ wood balusters only"},{"$nulls":7},{"$f":"'2 REPAIR ESTIMATOR'!P363","v":0},null,{"$f":"T('2 REPAIR ESTIMATOR'!S363)","v":"lf"},{"$nulls":8},1,1,1]
[{"$nulls":3},{"$f":"T('2 REPAIR ESTIMATOR'!D364:O364)","v":"Install railing w/ metal balusters only"},{"$nulls":7},{"$f":"'2 REPAIR ESTIMATOR'!P364","v":0},null,{"$f":"T('2 REPAIR ESTIMATOR'!S364)","v":"lf"},{"$nulls":8},1,1,1]
[{"$nulls":3},{"$f":"T('2 REPAIR ESTIMATOR'!D365:O365)","v":"Stairs, 5 to 7 risers"},{"$nulls":7},{"$f":"'2 REPAIR ESTIMATOR'!P365","v":0},null,{"$f":"T('2 REPAIR ESTIMATOR'!S365)","v":"ea"},{"$nulls":8},1,1,1]
[{"$nulls":3},{"$f":"T('2 REPAIR ESTIMATOR'!D366:O366)","v":""},{"$nulls":7},{"$f":"'2 REPAIR ESTIMATOR'!P366","v":0},null,{"$f":"T('2 REPAIR ESTIMATOR'!S366)","v":""},{"$nulls":8},1,1,1]
[{"$nulls":3},{"$f":"T('2 REPAIR ESTIMATOR'!D367:O367)","v":""},{"$nulls":7},{"$f":"'2 REPAIR ESTIMATOR'!P367","v":0},null,{"$f":"T('2 REPAIR ESTIMATOR'!S367)","v":""},{"$nulls":8},1,1,1]
[{"$nulls":3},{"$f":"T('2 REPAIR ESTIMATOR'!D368:O368)","v":"Covered Patio"},{"$nulls":7},{"$f":"'2 REPAIR ESTIMATOR'!P368","v":0},null,{"$f":"T('2 REPAIR ESTIMATOR'!S368)","v":""},{"$nulls":8},1,1,1]
[{"$nulls":3},{"$f":"T('2 REPAIR ESTIMATOR'!D369:O369)","v":"Covered Patio bid/allowance"},{"$nulls":7},{"$f":"'2 REPAIR ESTIMATOR'!P369","v":0},null,{"$f":"T('2 REPAIR ESTIMATOR'!S369)","v":"ls"},{"$nulls":8},1,1,1]
[{"$nulls":3},{"$f":"T('2 REPAIR ESTIMATOR'!D370:O370)","v":"Covered patio, floor, roof frame, decking, treated"},{"$nulls":7},{"$f":"'2 REPAIR ESTIMATOR'!P370","v":0},null,{"$f":"T('2 REPAIR ESTIMATOR'!S370)","v":"sf"},{"$nulls":8},1,1,1]
[{"$nulls":3},{"$f":"T('2 REPAIR ESTIMATOR'!D371:O371)","v":"Install railing w/ wood balusters only"},{"$nulls":7},{"$f":"'2 REPAIR ESTIMATOR'!P371","v":0},null,{"$f":"T('2 REPAIR ESTIMATOR'!S371)","v":"lf"},{"$nulls":8},1,1,1]
[{"$nulls":3},{"$f":"T('2 REPAIR ESTIMATOR'!D372:O372)","v":"Install railing w/ metal balusters only"},{"$nulls":7},{"$f":"'2 REPAIR ESTIMATOR'!P372","v":0},null,{"$f":"T('2 REPAIR ESTIMATOR'!S372)","v":"lf"},{"$nulls":8},1,1,1]
[{"$nulls":3},{"$f":"T('2 REPAIR ESTIMATOR'!D373:O373)","v":"Stairs, 5 to 7 risers"},{"$nulls":7},{"$f":"'2 REPAIR ESTIMATOR'!P373","v":0},null,{"$f":"T('2 REPAIR ESTIMATOR'!S373)","v":"ea"},{"$nulls":8},1,1,1]
[{"$nulls":3},{"$f":"T('2 REPAIR ESTIMATOR'!D374:O374)","v":"Wood board ceiling, tongue and groove"},{"$nulls":7},{"$f":"'2 REPAIR ESTIMATOR'!P374","v":0},null,{"$f":"T('2 REPAIR ESTIMATOR'!S374)","v":"sf"},{"$nulls":8},1,1,1]
[{"$nulls":3},{"$f":"T('2 REPAIR ESTIMATOR'!D375:O375)","v":"Insect screening"},{"$nulls":7},{"$f":"'2 REPAIR ESTIMATOR'!P375","v":0},null,{"$f":"T('2 REPAIR ESTIMATOR'!S375)","v":"sf"},{"$nulls":8},1,1,1]
[{"$nulls":3},{"$f":"T('2 REPAIR ESTIMATOR'!D376:O376)","v":""},{"$nulls":7},{"$f":"'2 REPAIR ESTIMATOR'!P376","v":0},null,{"$f":"T('2 REPAIR ESTIMATOR'!S376)","v":""},{"$nulls":8},1,1,1]
[{"$nulls":3},{"$f":"T('2 REPAIR ESTIMATOR'!D377:O377)","v":""},{"$nulls":7},{"$f":"'2 REPAIR ESTIMATOR'!P377","v":0},null,{"$f":"T('2 REPAIR ESTIMATOR'!S377)","v":""},{"$nulls":8},1,1,1]
[{"$nulls":3},{"$f":"T('2 REPAIR ESTIMATOR'!D378:O378)","v":""},{"$nulls":7},{"$f":"'2 REPAIR ESTIMATOR'!P378","v":0},null,{"$f":"T('2 REPAIR ESTIMATOR'!S378)","v":""},{"$nulls":8},1,1,1]
[{"$nulls":3},{"$f":"T('2 REPAIR ESTIMATOR'!D379:O379)","v":""},{"$nulls":7},{"$f":"'2 REPAIR ESTIMATOR'!P379","v":0},null,{"$f":"T('2 REPAIR ESTIMATOR'!S379)","v":""},{"$nulls":8},1,1,1]
[{"$nulls":3},{"$f":"T('2 REPAIR ESTIMATOR'!D380:O380)","v":""},{"$nulls":7},{"$f":"'2 REPAIR ESTIMATOR'!P380","v":0},null,{"$f":"T('2 REPAIR ESTIMATOR'!S380)","v":""},{"$nulls":8},1,1,1]
[{"$nulls":3},{"$f":"T('2 REPAIR ESTIMATOR'!D381:O381)","v":""},{"$nulls":7},{"$f":"'2 REPAIR ESTIMATOR'!P381","v":0},null,{"$f":"T('2 REPAIR ESTIMATOR'!S381)","v":""},{"$nulls":8},1,1,1]
[{"$nulls":3},{"$f":"T('2 REPAIR ESTIMATOR'!D382:O382)","v":""},{"$nulls":7},{"$f":"'2 REPAIR ESTIMATOR'!P382","v":0},null,{"$f":"T('2 REPAIR ESTIMATOR'!S382)","v":""},{"$nulls":8},1,1,1]
[{"$nulls":3},{"$f":"T('2 REPAIR ESTIMATOR'!D383:O383)","v":""},{"$nulls":7},{"$f":"'2 REPAIR ESTIMATOR'!P383","v":0},null,{"$f":"T('2 REPAIR ESTIMATOR'!S383)","v":""},{"$nulls":8},1,1,1]
[{"$nulls":3},{"$f":"T('2 REPAIR ESTIMATOR'!D384:O384)","v":""},{"$nulls":7},{"$f":"'2 REPAIR ESTIMATOR'!P384","v":0},null,{"$f":"T('2 REPAIR ESTIMATOR'!S384)","v":""},{"$nulls":8},1,1,1]
[{"$nulls":3},{"$f":"T('2 REPAIR ESTIMATOR'!D385:O385)","v":""},{"$nulls":7},{"$f":"'2 REPAIR ESTIMATOR'!P385","v":0},null,{"$f":"T('2 REPAIR ESTIMATOR'!S385)","v":""},{"$nulls":8},1,1,1]
[{"$nulls":3},{"$f":"T('2 REPAIR ESTIMATOR'!D386:O386)","v":""},{"$nulls":7},{"$f":"'2 REPAIR ESTIMATOR'!P386","v":0},null,{"$f":"T('2 REPAIR ESTIMATOR'!S386)","v":""},{"$nulls":8},1,1,1]
[{"$nulls":3},{"$f":"T('2 REPAIR ESTIMATOR'!D387:O387)","v":""},{"$nulls":7},{"$f":"'2 REPAIR ESTIMATOR'!P387","v":0},null,{"$f":"T('2 REPAIR ESTIMATOR'!S387)","v":""},{"$nulls":8},1,1,1]
[{"$nulls":3},{"$f":"T('2 REPAIR ESTIMATOR'!D388:O388)","v":""},{"$nulls":7},{"$f":"'2 REPAIR ESTIMATOR'!P388","v":0},null,{"$f":"T('2 REPAIR ESTIMATOR'!S388)","v":""},{"$nulls":8},1,1,1]
[{"$nulls":3},{"$f":"T('2 REPAIR ESTIMATOR'!D389:O389)","v":""},{"$nulls":7},{"$f":"'2 REPAIR ESTIMATOR'!P389","v":0},null,{"$f":"T('2 REPAIR ESTIMATOR'!S389)","v":""},{"$nulls":8},1,{"$f":"IF(Scope7_Setting=\"Shown\",1,0)","v":1},1]
[{"$nulls":3},{"$f":"T('2 REPAIR ESTIMATOR'!D390:O390)","v":""},{"$nulls":7},{"$f":"'2 REPAIR ESTIMATOR'!P390","v":0},null,{"$f":"T('2 REPAIR ESTIMATOR'!S390)","v":""},{"$nulls":8},1,1,1]
[{"$nulls":3},{"$f":"T('2 REPAIR ESTIMATOR'!D391:O391)","v":""},{"$nulls":7},{"$f":"'2 REPAIR ESTIMATOR'!P391","v":0},null,{"$f":"T('2 REPAIR ESTIMATOR'!S391)","v":""},{"$nulls":8},1,1,1]
[{"$nulls":3},{"$f":"T('2 REPAIR ESTIMATOR'!D392:O392)","v":""},{"$nulls":7},{"$f":"'2 REPAIR ESTIMATOR'!P392","v":0},null,{"$f":"T('2 REPAIR ESTIMATOR'!S392)","v":""},{"$nulls":8},1,1,1]
[{"$nulls":3},{"$f":"T('2 REPAIR ESTIMATOR'!D393:O393)","v":""},{"$nulls":7},{"$f":"'2 REPAIR ESTIMATOR'!P393","v":0},null,{"$f":"T('2 REPAIR ESTIMATOR'!S393)","v":""},{"$nulls":8},1,1,1]
[{"$nulls":3},{"$f":"T('2 REPAIR ESTIMATOR'!D394:O394)","v":""},{"$nulls":7},{"$f":"'2 REPAIR ESTIMATOR'!P394","v":0},null,{"$f":"T('2 REPAIR ESTIMATOR'!S394)","v":""},{"$nulls":8},1,1,1]
[{"$nulls":3},{"$f":"T('2 REPAIR ESTIMATOR'!D395:O395)","v":""},{"$nulls":7},{"$f":"'2 REPAIR ESTIMATOR'!P395","v":0},null,{"$f":"T('2 REPAIR ESTIMATOR'!S395)","v":""},{"$nulls":8},1,1,1]
[{"$nulls":3},{"$f":"T('2 REPAIR ESTIMATOR'!D396:O396)","v":""},{"$nulls":7},{"$f":"'2 REPAIR ESTIMATOR'!P396","v":0},null,{"$f":"T('2 REPAIR ESTIMATOR'!S396)","v":""},{"$nulls":8},1,1,1]
[{"$nulls":3},{"$f":"T('2 REPAIR ESTIMATOR'!D397:O397)","v":""},{"$nulls":7},{"$f":"'2 REPAIR ESTIMATOR'!P397","v":0},null,{"$f":"T('2 REPAIR ESTIMATOR'!S397)","v":""},{"$nulls":8},1,1,1]
[{"$nulls":22},{"$f":"W421","v":6},1,6]
[{"$nulls":3},{"$f":"UPPER(CONCATENATE(\"Miscellaneous \",D379,\" Items\"))","v":"MISCELLANEOUS DECKING AND PATIOS ITEMS"},{"$nulls":18},{"$f":"SUM(W422:W431)","v":6},1,6]
[{"$nulls":3},1,"All deck framing, decking, railing, balusters & stair components are to be contractor furnished, contractor installed.","All deck framing, decking, railing, balusters & stair components are to be contractor furnished, contractor installed.","All deck framing, decking, railing, balusters & stair components are to be contractor furnished, contractor installed.","All deck framing, decking, railing, balusters & stair components are to be contractor furnished, contractor installed.","All deck framing, decking, railing, balusters & stair components are to be contractor furnished, contractor installed.","All deck framing, decking, railing, balusters & stair components are to be contractor furnished, contractor installed.","All deck framing, decking, railing, balusters & stair components are to be contractor furnished, contractor installed.","All deck framing, decking, railing, balusters & stair components are to be contractor furnished, contractor installed.","All deck framing, decking, railing, balusters & stair components are to be contractor furnished, contractor installed.","All deck framing, decking, railing, balusters & stair components are to be contractor furnished, contractor installed.","All deck framing, decking, railing, balusters & stair components are to be contractor furnished, contractor installed.","All deck framing, decking, railing, balusters & stair components are to be contractor furnished, contractor installed.","All deck framing, decking, railing, balusters & stair components are to be contractor furnished, contractor installed.","All deck framing, decking, railing, balusters & stair components are to be contractor furnished, contractor installed.","All deck framing, decking, railing, balusters & stair components are to be contractor furnished, contractor installed.","All deck framing, decking, railing, balusters & stair components are to be contractor furnished, contractor installed.","All deck framing, decking, railing, balusters & stair components are to be contractor furnished, contractor installed.","All deck framing, decking, railing, balusters & stair components are to be contractor furnished, contractor installed.",{"$f":"IF(E422<>\"\",1,0)*W379","v":1},1,1]
[{"$nulls":3},2,"Deck structural design and layout is to be approved by the City prior to installation.","Deck structural design and layout is to be approved by the City prior to installation.","Deck structural design and layout is to be approved by the City prior to installation.","Deck structural design and layout is to be approved by the City prior to installation.","Deck structural design and layout is to be approved by the City prior to installation.","Deck structural design and layout is to be approved by the City prior to installation.","Deck structural design and layout is to be approved by the City prior to installation.","Deck structural design and layout is to be approved by the City prior to installation.","Deck structural design and layout is to be approved by the City prior to installation.","Deck structural design and layout is to be approved by the City prior to installation.","Deck structural design and layout is to be approved by the City prior to installation.","Deck structural design and layout is to be approved by the City prior to installation.","Deck structural design and layout is to be approved by the City prior to installation.","Deck structural design and layout is to be approved by the City prior to installation.","Deck structural design and layout is to be approved by the City prior to installation.","Deck structural design and layout is to be approved by the City prior to installation.","Deck structural design and layout is to be approved by the City prior to installation.","Deck structural design and layout is to be approved by the City prior to installation.",{"$f":"IF(E423<>\"\",1,0)*W379","v":1},1,1]
[{"$nulls":3},3,"Deck construction to meet or exceed local building codes.","Deck construction to meet or exceed local building codes.","Deck construction to meet or exceed local building codes.","Deck construction to meet or exceed local building codes.","Deck construction to meet or exceed local building codes.","Deck construction to meet or exceed local building codes.","Deck construction to meet or exceed local building codes.","Deck construction to meet or exceed local building codes.","Deck construction to meet or exceed local building codes.","Deck construction to meet or exceed local building codes.","Deck construction to meet or exceed local building codes.","Deck construction to meet or exceed local building codes.","Deck construction to meet or exceed local building codes.","Deck construction to meet or exceed local building codes.","Deck construction to meet or exceed local building codes.","Deck construction to meet or exceed local building codes.","Deck construction to meet or exceed local building codes.","Deck construction to meet or exceed local building codes.",{"$f":"IF(E424<>\"\",1,0)*W379","v":1},1,1]
[{"$nulls":3},4,"Deck joists sizes, column sizes and structural framing sizes should be confirmed with local build","Wood to be pressure treated decking materials. (CFCI)","Wood to be pressure treated decking materials. (CFCI)","Wood to be pressure treated decking materials. (CFCI)","Wood to be pressure treated decking materials. (CFCI)","Wood to be pressure treated decking materials. (CFCI)","Wood to be pressure treated decking materials. (CFCI)","Wood to be pressure treated decking materials. (CFCI)","Wood to be pressure treated decking materials. (CFCI)","Wood to be pressure treated decking materials. (CFCI)","Wood to be pressure treated decking materials. (CFCI)","Wood to be pressure treated decking materials. (CFCI)","Wood to be pressure treated decking materials. (CFCI)","Wood to be pressure treated decking materials. (CFCI)","Wood to be pressure treated decking materials. (CFCI)","Wood to be pressure treated decking materials. (CFCI)","Wood to be pressure treated decking materials. (CFCI)","Wood to be pressure treated decking materials. (CFCI)",{"$f":"IF(E425<>\"\",1,0)*W379","v":1},1,1]
[{"$nulls":3},5,"Wood to be pressure treated decking materials. (CFCI)","Wood to be pressure treated decking materials. (CFCI)","Wood to be pressure treated decking materials. (CFCI)","Wood to be pressure treated decking materials. (CFCI)","Wood to be pressure treated decking materials. (CFCI)","Wood to be pressure treated decking materials. (CFCI)","Wood to be pressure treated decking materials. (CFCI)","Wood to be pressure treated decking materials. (CFCI)","Wood to be pressure treated decking materials. (CFCI)","Wood to be pressure treated decking materials. (CFCI)","Wood to be pressure treated decking materials. (CFCI)","Wood to be pressure treated decking materials. (CFCI)","Wood to be pressure treated decking materials. (CFCI)","Wood to be pressure treated decking materials. (CFCI)","Wood to be pressure treated decking materials. (CFCI)","Wood to be pressure treated decking materials. (CFCI)","Wood to be pressure treated decking materials. (CFCI)","Wood to be pressure treated decking materials. (CFCI)",{"$f":"IF(E426<>\"\",1,0)*W379","v":1},1,1]
[{"$nulls":3},6,"Final Cleaning:  Clean up all scrap lumber and screws from project site.",{"$nulls":17},{"$f":"IF(E427<>\"\",1,0)*W379","v":1},1,1]
[{"$nulls":3},7,{"$nulls":18},{"$f":"IF(E428<>\"\",1,0)*W379","v":0},1,{"$f":"W428*X428","v":0}]
[{"$nulls":3},8,{"$nulls":18},{"$f":"IF(E429<>\"\",1,0)*W379","v":0},1,0]
[{"$nulls":3},9,{"$nulls":18},{"$f":"IF(E430<>\"\",1,0)*W379","v":0},1,0]
[{"$nulls":3},10,{"$nulls":18},{"$f":"IF(E431<>\"\",1,0)*W379","v":0},1,0]
[{"$nulls":22},{"$f":"W379","v":1},1,1]
[{"$nulls":3},{"$f":"UPPER(CONCATENATE(\"TOTAL \",D379))","v":"TOTAL DECKING AND PATIOS"},{"$nulls":18},{"$f":"W379","v":1},1,1]
[{"$nulls":22},{"$f":"W379","v":1},1,1]
[{"$nulls":3},{"$f":"T('2 REPAIR ESTIMATOR'!D402:O402)","v":"ROOFING"},{"$nulls":7},{"$f":"SUM(L436:M475)","v":20},{"$nulls":10},{"$f":"IF(L435>0,1,0)","v":1},{"$f":"IF(Scope8_Setting=\"Shown\",1,0)","v":1},1]
[{"$nulls":3},{"$f":"T('2 REPAIR ESTIMATOR'!D403:O403)","v":"Roofing bid/allowance"},{"$nulls":7},{"$f":"'2 REPAIR ESTIMATOR'!P403","v":0},null,{"$f":"T('2 REPAIR ESTIMATOR'!S403)","v":"ls"},{"$nulls":8},{"$f":"IF(L436=\"\",0,1)","v":1},1,1]
[{"$nulls":3},{"$f":"T('2 REPAIR ESTIMATOR'!D404:O404)","v":"Asphalt shingle roof"},{"$nulls":7},{"$f":"'2 REPAIR ESTIMATOR'!P404","v":0},null,{"$f":"T('2 REPAIR ESTIMATOR'!S404)","v":""},{"$nulls":8},{"$f":"IF(L437=\"\",0,1)","v":1},1,1]
[{"$nulls":3},{"$f":"T('2 REPAIR ESTIMATOR'!D405:O405)","v":"Roof repair/patch, asphalt"},{"$nulls":7},{"$f":"'2 REPAIR ESTIMATOR'!P405","v":0},null,{"$f":"T('2 REPAIR ESTIMATOR'!S405)","v":"ea"},{"$nulls":8},1,1,1]
[{"$nulls":3},{"$f":"T('2 REPAIR ESTIMATOR'!D406:O406)","v":"Roof replacement-demo & replace, 3-tab"},{"$nulls":7},{"$f":"'2 REPAIR ESTIMATOR'!P406","v":0},null,{"$f":"T('2 REPAIR ESTIMATOR'!S406)","v":"sq"},{"$nulls":8},1,1,1]
[{"$nulls":3},{"$f":"T('2 REPAIR ESTIMATOR'!D407:O407)","v":"Roof replacement-demo & replace, architectural"},{"$nulls":7},{"$f":"'2 REPAIR ESTIMATOR'!P407","v":20},null,{"$f":"T('2 REPAIR ESTIMATOR'!S407)","v":"sq"},{"$nulls":8},1,1,1]
[{"$nulls":3},{"$f":"T('2 REPAIR ESTIMATOR'!D408:O408)","v":"Premium for 3 layer tear off"},{"$nulls":7},{"$f":"'2 REPAIR ESTIMATOR'!P408","v":0},null,{"$f":"T('2 REPAIR ESTIMATOR'!S408)","v":"sq"},{"$nulls":8},1,1,1]
[{"$nulls":3},{"$f":"T('2 REPAIR ESTIMATOR'!D409:O409)","v":"Premium for steep pitch roof"},{"$nulls":7},{"$f":"'2 REPAIR ESTIMATOR'!P409","v":0},null,{"$f":"T('2 REPAIR ESTIMATOR'!S409)","v":"sq"},{"$nulls":8},1,1,1]
[{"$nulls":3},{"$f":"T('2 REPAIR ESTIMATOR'!D410:O410)","v":""},{"$nulls":7},{"$f":"'2 REPAIR ESTIMATOR'!P410","v":0},null,{"$f":"T('2 REPAIR ESTIMATOR'!S410)","v":""},{"$nulls":8},1,1,1]
[{"$nulls":3},{"$f":"T('2 REPAIR ESTIMATOR'!D411:O411)","v":"Wood Shingle Roof"},{"$nulls":7},{"$f":"'2 REPAIR ESTIMATOR'!P411","v":0},null,{"$f":"T('2 REPAIR ESTIMATOR'!S411)","v":""},{"$nulls":8},1,1,1]
[{"$nulls":3},{"$f":"T('2 REPAIR ESTIMATOR'!D412:O412)","v":"Roof repair/patch, wood"},{"$nulls":7},{"$f":"'2 REPAIR ESTIMATOR'!P412","v":0},null,{"$f":"T('2 REPAIR ESTIMATOR'!S412)","v":"ea"},{"$nulls":8},1,1,1]
[{"$nulls":3},{"$f":"T('2 REPAIR ESTIMATOR'!D413:O413)","v":"Roof replacement-demo & replace, 3-tab"},{"$nulls":7},{"$f":"'2 REPAIR ESTIMATOR'!P413","v":0},null,{"$f":"T('2 REPAIR ESTIMATOR'!S413)","v":"sq"},{"$nulls":8},1,1,1]
[{"$nulls":3},{"$f":"T('2 REPAIR ESTIMATOR'!D414:O414)","v":"Wood shingle, low end"},{"$nulls":7},{"$f":"'2 REPAIR ESTIMATOR'!P414","v":0},null,{"$f":"T('2 REPAIR ESTIMATOR'!S414)","v":"sq"},{"$nulls":8},1,1,1]
[{"$nulls":3},{"$f":"T('2 REPAIR ESTIMATOR'!D415:O415)","v":"Wood shingle, high end"},{"$nulls":7},{"$f":"'2 REPAIR ESTIMATOR'!P415","v":0},null,{"$f":"T('2 REPAIR ESTIMATOR'!S415)","v":"sq"},{"$nulls":8},1,1,1]
[{"$nulls":3},{"$f":"T('2 REPAIR ESTIMATOR'!D416:O416)","v":"Roof sheathing, plywood 1/2\", remove & install"},{"$nulls":7},{"$f":"'2 REPAIR ESTIMATOR'!P416","v":0},null,{"$f":"T('2 REPAIR ESTIMATOR'!S416)","v":"sheet"},{"$nulls":8},1,1,1]
[{"$nulls":3},{"$f":"T('2 REPAIR ESTIMATOR'!D417:O417)","v":""},{"$nulls":7},{"$f":"'2 REPAIR ESTIMATOR'!P417","v":0},null,{"$f":"T('2 REPAIR ESTIMATOR'!S417)","v":""},{"$nulls":8},1,1,1]
[{"$nulls":3},{"$f":"T('2 REPAIR ESTIMATOR'!D418:O418)","v":"Slate/Clay Tile"},{"$nulls":7},{"$f":"'2 REPAIR ESTIMATOR'!P418","v":0},null,{"$f":"T('2 REPAIR ESTIMATOR'!S418)","v":""},{"$nulls":8},1,1,1]
[{"$nulls":3},{"$f":"T('2 REPAIR ESTIMATOR'!D419:O419)","v":"Roof replacement-demo & replace, slate"},{"$nulls":7},{"$f":"'2 REPAIR ESTIMATOR'!P419","v":0},null,{"$f":"T('2 REPAIR ESTIMATOR'!S419)","v":"sq"},{"$nulls":8},1,1,1]
[{"$nulls":3},{"$f":"T('2 REPAIR ESTIMATOR'!D420:O420)","v":""},{"$nulls":7},{"$f":"'2 REPAIR ESTIMATOR'!P420","v":0},null,{"$f":"T('2 REPAIR ESTIMATOR'!S420)","v":""},{"$nulls":8},1,1,1]
[{"$nulls":3},{"$f":"T('2 REPAIR ESTIMATOR'!D421:O421)","v":"Gutters & downspouts, aluminum"},{"$nulls":7},{"$f":"'2 REPAIR ESTIMATOR'!P421","v":0},null,{"$f":"T('2 REPAIR ESTIMATOR'!S421)","v":"lf"},{"$nulls":8},1,1,1]
[{"$nulls":3},{"$f":"T('2 REPAIR ESTIMATOR'!D422:O422)","v":"Clean gutters & downspouts"},{"$nulls":7},{"$f":"'2 REPAIR ESTIMATOR'!P422","v":0},null,{"$f":"T('2 REPAIR ESTIMATOR'!S422)","v":"hrs"},{"$nulls":8},1,1,1]
[{"$nulls":3},{"$f":"T('2 REPAIR ESTIMATOR'!D423:O423)","v":""},{"$nulls":7},{"$f":"'2 REPAIR ESTIMATOR'!P423","v":0},null,{"$f":"T('2 REPAIR ESTIMATOR'!S423)","v":""},{"$nulls":8},1,1,1]
[{"$nulls":3},{"$f":"T('2 REPAIR ESTIMATOR'!D424:O424)","v":""},{"$nulls":7},{"$f":"'2 REPAIR ESTIMATOR'!P424","v":0},null,{"$f":"T('2 REPAIR ESTIMATOR'!S424)","v":""},{"$nulls":8},1,1,1]
[{"$nulls":3},{"$f":"T('2 REPAIR ESTIMATOR'!D425:O425)","v":""},{"$nulls":7},{"$f":"'2 REPAIR ESTIMATOR'!P425","v":0},null,{"$f":"T('2 REPAIR ESTIMATOR'!S425)","v":""},{"$nulls":8},1,1,1]
[{"$nulls":3},{"$f":"T('2 REPAIR ESTIMATOR'!D426:O426)","v":""},{"$nulls":7},{"$f":"'2 REPAIR ESTIMATOR'!P426","v":0},null,{"$f":"T('2 REPAIR ESTIMATOR'!S426)","v":""},{"$nulls":8},1,1,1]
[{"$nulls":3},{"$f":"T('2 REPAIR ESTIMATOR'!D427:O427)","v":""},{"$nulls":7},{"$f":"'2 REPAIR ESTIMATOR'!P427","v":0},null,{"$f":"T('2 REPAIR ESTIMATOR'!S427)","v":""},{"$nulls":8},1,1,1]
[{"$nulls":3},{"$f":"T('2 REPAIR ESTIMATOR'!D428:O428)","v":""},{"$nulls":7},{"$f":"'2 REPAIR ESTIMATOR'!P428","v":0},null,{"$f":"T('2 REPAIR ESTIMATOR'!S428)","v":""},{"$nulls":8},1,1,1]
[{"$nulls":3},{"$f":"T('2 REPAIR ESTIMATOR'!D429:O429)","v":""},{"$nulls":7},{"$f":"'2 REPAIR ESTIMATOR'!P429","v":0},null,{"$f":"T('2 REPAIR ESTIMATOR'!S429)","v":""},{"$nulls":8},1,1,1]
[{"$nulls":3},{"$f":"T('2 REPAIR ESTIMATOR'!D430:O430)","v":""},{"$nulls":7},{"$f":"'2 REPAIR ESTIMATOR'!P430","v":0},null,{"$f":"T('2 REPAIR ESTIMATOR'!S430)","v":""},{"$nulls":8},1,1,1]
[{"$nulls":3},{"$f":"T('2 REPAIR ESTIMATOR'!D431:O431)","v":""},{"$nulls":7},{"$f":"'2 REPAIR ESTIMATOR'!P431","v":0},null,{"$f":"T('2 REPAIR ESTIMATOR'!S431)","v":""},{"$nulls":8},1,1,1]
[{"$nulls":3},{"$f":"T('2 REPAIR ESTIMATOR'!D432:O432)","v":""},{"$nulls":7},{"$f":"'2 REPAIR ESTIMATOR'!P432","v":0},null,{"$f":"T('2 REPAIR ESTIMATOR'!S432)","v":""},{"$nulls":8},1,1,1]
[{"$nulls":3},{"$f":"T('2 REPAIR ESTIMATOR'!D433:O433)","v":""},{"$nulls":7},{"$f":"'2 REPAIR ESTIMATOR'!P433","v":0},null,{"$f":"T('2 REPAIR ESTIMATOR'!S433)","v":""},{"$nulls":8},1,1,1]
[{"$nulls":3},{"$f":"T('2 REPAIR ESTIMATOR'!D434:O434)","v":""},{"$nulls":7},{"$f":"'2 REPAIR ESTIMATOR'!P434","v":0},null,{"$f":"T('2 REPAIR ESTIMATOR'!S434)","v":""},{"$nulls":8},1,{"$f":"IF(Scope8_Setting=\"Shown\",1,0)","v":1},1]
[{"$nulls":3},{"$f":"T('2 REPAIR ESTIMATOR'!D435:O435)","v":""},{"$nulls":7},{"$f":"'2 REPAIR ESTIMATOR'!P435","v":0},null,{"$f":"T('2 REPAIR ESTIMATOR'!S435)","v":""},{"$nulls":8},1,1,1]
[{"$nulls":3},{"$f":"T('2 REPAIR ESTIMATOR'!D436:O436)","v":""},{"$nulls":7},{"$f":"'2 REPAIR ESTIMATOR'!P436","v":0},null,{"$f":"T('2 REPAIR ESTIMATOR'!S436)","v":""},{"$nulls":8},1,1,1]
[{"$nulls":3},{"$f":"T('2 REPAIR ESTIMATOR'!D437:O437)","v":""},{"$nulls":7},{"$f":"'2 REPAIR ESTIMATOR'!P437","v":0},null,{"$f":"T('2 REPAIR ESTIMATOR'!S437)","v":""},{"$nulls":8},1,1,1]
[{"$nulls":3},{"$f":"T('2 REPAIR ESTIMATOR'!D438:O438)","v":""},{"$nulls":7},{"$f":"'2 REPAIR ESTIMATOR'!P438","v":0},null,{"$f":"T('2 REPAIR ESTIMATOR'!S438)","v":""},{"$nulls":8},1,1,1]
[{"$nulls":3},{"$f":"T('2 REPAIR ESTIMATOR'!D439:O439)","v":""},{"$nulls":7},{"$f":"'2 REPAIR ESTIMATOR'!P439","v":0},null,{"$f":"T('2 REPAIR ESTIMATOR'!S439)","v":""},{"$nulls":8},1,1,1]
[{"$nulls":3},{"$f":"T('2 REPAIR ESTIMATOR'!D440:O440)","v":""},{"$nulls":7},{"$f":"'2 REPAIR ESTIMATOR'!P440","v":0},null,{"$f":"T('2 REPAIR ESTIMATOR'!S440)","v":""},{"$nulls":8},1,1,1]
[{"$nulls":3},{"$f":"T('2 REPAIR ESTIMATOR'!D441:O441)","v":""},{"$nulls":7},{"$f":"'2 REPAIR ESTIMATOR'!P441","v":0},null,{"$f":"T('2 REPAIR ESTIMATOR'!S441)","v":""},{"$nulls":8},1,1,1]
[{"$nulls":3},{"$f":"T('2 REPAIR ESTIMATOR'!D442:O442)","v":""},{"$nulls":7},{"$f":"'2 REPAIR ESTIMATOR'!P442","v":0},null,{"$f":"T('2 REPAIR ESTIMATOR'!S442)","v":""},{"$nulls":8},1,1,1]
[{"$nulls":22},{"$f":"W477","v":9},1,9]
[{"$nulls":3},{"$f":"UPPER(CONCATENATE(\"Miscellaneous \",D435,\" Items\"))","v":"MISCELLANEOUS ROOFING ITEMS"},{"$nulls":18},{"$f":"SUM(W478:W487)","v":9},1,9]
[{"$nulls":3},1,"All roofing components are to be contractor furnished, contractor installed.","All roofing components are to be contractor furnished, contractor installed.","All roofing components are to be contractor furnished, contractor installed.","All roofing components are to be contractor furnished, contractor installed.","All roofing components are to be contractor furnished, contractor installed.","All roofing components are to be contractor furnished, contractor installed.","All roofing components are to be contractor furnished, contractor installed.","All roofing components are to be contractor furnished, contractor installed.","All roofing components are to be contractor furnished, contractor installed.","All roofing components are to be contractor furnished, contractor installed.","All roofing components are to be contractor furnished, contractor installed.","All roofing components are to be contractor furnished, contractor installed.","All roofing components are to be contractor furnished, contractor installed.","All roofing components are to be contractor furnished, contractor installed.","All roofing components are to be contractor furnished, contractor installed.","All roofing components are to be contractor furnished, contractor installed.","All roofing components are to be contractor furnished, contractor installed.","All roofing components are to be contractor furnished, contractor installed.",{"$f":"IF(E478<>\"\",1,0)*W435","v":1},1,1]
[{"$nulls":3},2,"Remove existing shingles as necessary to install new roof shingles.","Remove existing shingles as necessary to install new roof shingles.","Remove existing shingles as necessary to install new roof shingles.","Remove existing shingles as necessary to install new roof shingles.","Remove existing shingles as necessary to install new roof shingles.","Remove existing shingles as necessary to install new roof shingles.","Remove existing shingles as necessary to install new roof shingles.","Remove existing shingles as necessary to install new roof shingles.","Remove existing shingles as necessary to install new roof shingles.","Remove existing shingles as necessary to install new roof shingles.","Remove existing shingles as necessary to install new roof shingles.","Remove existing shingles as necessary to install new roof shingles.","Remove existing shingles as necessary to install new roof shingles.","Remove existing shingles as necessary to install new roof shingles.","Remove existing shingles as necessary to install new roof shingles.","Remove existing shingles as necessary to install new roof shingles.","Remove existing shingles as necessary to install new roof shingles.","Remove existing shingles as necessary to install new roof shingles.",{"$f":"IF(E479<>\"\",1,0)*W435","v":1},1,1]
[{"$nulls":3},3,"Replace damaged or rotted plywood sheathing as necessary.","Replace damaged or rotted plywood sheathing as necessary.","Replace damaged or rotted plywood sheathing as necessary.","Replace damaged or rotted plywood sheathing as necessary.","Replace damaged or rotted plywood sheathing as necessary.","Replace damaged or rotted plywood sheathing as necessary.","Replace damaged or rotted plywood sheathing as necessary.","Replace damaged or rotted plywood sheathing as necessary.","Replace damaged or rotted plywood sheathing as necessary.","Replace damaged or rotted plywood sheathing as necessary.","Replace damaged or rotted plywood sheathing as necessary.","Replace damaged or rotted plywood sheathing as necessary.","Replace damaged or rotted plywood sheathing as necessary.","Replace damaged or rotted plywood sheathing as necessary.","Replace damaged or rotted plywood sheathing as necessary.","Replace damaged or rotted plywood sheathing as necessary.","Replace damaged or rotted plywood sheathing as necessary.","Replace damaged or rotted plywood sheathing as necessary.",{"$f":"IF(E480<>\"\",1,0)*W435","v":1},1,1]
[{"$nulls":3},4,"Plywood replacement will be priced by each sheet required to be replaced.  Price per sheet: $_______________","Plywood replacement will be priced by each sheet required to be replaced.  Price per sheet: $_______________","Plywood replacement will be priced by each sheet required to be replaced.  Price per sheet: $_______________","Plywood replacement will be priced by each sheet required to be replaced.  Price per sheet: $_______________","Plywood replacement will be priced by each sheet required to be replaced.  Price per sheet: $_______________","Plywood replacement will be priced by each sheet required to be replaced.  Price per sheet: $_______________","Plywood replacement will be priced by each sheet required to be replaced.  Price per sheet: $_______________","Plywood replacement will be priced by each sheet required to be replaced.  Price per sheet: $_______________","Plywood replacement will be priced by each sheet required to be replaced.  Price per sheet: $_______________","Plywood replacement will be priced by each sheet required to be replaced.  Price per sheet: $_______________","Plywood replacement will be priced by each sheet required to be replaced.  Price per sheet: $_______________","Plywood replacement will be priced by each sheet required to be replaced.  Price per sheet: $_______________","Plywood replacement will be priced by each sheet required to be replaced.  Price per sheet: $_______________","Plywood replacement will be priced by each sheet required to be replaced.  Price per sheet: $_______________","Plywood replacement will be priced by each sheet required to be replaced.  Price per sheet: $_______________","Plywood replacement will be priced by each sheet required to be replaced.  Price per sheet: $_______________","Plywood replacement will be priced by each sheet required to be replaced.  Price per sheet: $_______________","Plywood replacement will be priced by each sheet required to be replaced.  Price per sheet: $_______________",{"$f":"IF(E481<>\"\",1,0)*W435","v":1},1,1]
[{"$nulls":3},5,"Furnish and install new roof shingles, roof vents, flashings & components as required by local building standards.","Furnish and install new roof shingles, roof vents, flashings & components as required by local building standards.","Furnish and install new roof shingles, roof vents, flashings & components as required by local building standards.","Furnish and install new roof shingles, roof vents, flashings & components as required by local building standards.","Furnish and install new roof shingles, roof vents, flashings & components as required by local building standards.","Furnish and install new roof shingles, roof vents, flashings & components as required by local building standards.","Furnish and install new roof shingles, roof vents, flashings & components as required by local building standards.","Furnish and install new roof shingles, roof vents, flashings & components as required by local building standards.","Furnish and install new roof shingles, roof vents, flashings & components as required by local building standards.","Furnish and install new roof shingles, roof vents, flashings & components as required by local building standards.","Furnish and install new roof shingles, roof vents, flashings & components as required by local building standards.","Furnish and install new roof shingles, roof vents, flashings & components as required by local building standards.","Furnish and install new roof shingles, roof vents, flashings & components as required by local building standards.","Furnish and install new roof shingles, roof vents, flashings & components as required by local building standards.","Furnish and install new roof shingles, roof vents, flashings & components as required by local building standards.","Furnish and install new roof shingles, roof vents, flashings & components as required by local building standards.","Furnish and install new roof shingles, roof vents, flashings & components as required by local building standards.","Furnish and install new roof shingles, roof vents, flashings & components as required by local building standards.",{"$f":"IF(E482<>\"\",1,0)*W435","v":1},1,1]
[{"$nulls":3},6,"(a) Architectural Shingle Specification: ______________________","(a) Architectural Shingle Specification: ______________________","(a) Architectural Shingle Specification: ______________________","(a) Architectural Shingle Specification: ______________________","(a) Architectural Shingle Specification: ______________________","(a) Architectural Shingle Specification: ______________________","(a) Architectural Shingle Specification: ______________________","(a) Architectural Shingle Specification: ______________________","(a) Architectural Shingle Specification: ______________________","(a) Architectural Shingle Specification: ______________________","(a) Architectural Shingle Specification: ______________________","(a) Architectural Shingle Specification: ______________________","(a) Architectural Shingle Specification: ______________________","(a) Architectural Shingle Specification: ______________________","(a) Architectural Shingle Specification: ______________________","(a) Architectural Shingle Specification: ______________________","(a) Architectural Shingle Specification: ______________________","(a) Architectural Shingle Specification: ______________________",{"$f":"IF(E483<>\"\",1,0)*W435","v":1},1,1]
[{"$nulls":3},7,"Alternate materials and manufacturers that provide savings to the Client will be considered, but must be approved.","Alternate materials and manufacturers that provide savings to the Client will be considered, but must be approved.","Alternate materials and manufacturers that provide savings to the Client will be considered, but must be approved.","Alternate materials and manufacturers that provide savings to the Client will be considered, but must be approved.","Alternate materials and manufacturers that provide savings to the Client will be considered, but must be approved.","Alternate materials and manufacturers that provide savings to the Client will be considered, but must be approved.","Alternate materials and manufacturers that provide savings to the Client will be considered, but must be approved.","Alternate materials and manufacturers that provide savings to the Client will be considered, but must be approved.","Alternate materials and manufacturers that provide savings to the Client will be considered, but must be approved.","Alternate materials and manufacturers that provide savings to the Client will be considered, but must be approved.","Alternate materials and manufacturers that provide savings to the Client will be considered, but must be approved.","Alternate materials and manufacturers that provide savings to the Client will be considered, but must be approved.","Alternate materials and manufacturers that provide savings to the Client will be considered, but must be approved.","Alternate materials and manufacturers that provide savings to the Client will be considered, but must be approved.","Alternate materials and manufacturers that provide savings to the Client will be considered, but must be approved.","Alternate materials and manufacturers that provide savings to the Client will be considered, but must be approved.","Alternate materials and manufacturers that provide savings to the Client will be considered, but must be approved.","Alternate materials and manufacturers that provide savings to the Client will be considered, but must be approved.",{"$f":"IF(E484<>\"\",1,0)*W435","v":1},1,1]
[{"$nulls":3},8,"Repair any loose or damaged gutters or downspouts.","Repair any loose or damaged gutters or downspouts.","Repair any loose or damaged gutters or downspouts.","Repair any loose or damaged gutters or downspouts.","Repair any loose or damaged gutters or downspouts.","Repair any loose or damaged gutters or downspouts.","Repair any loose or damaged gutters or downspouts.","Repair any loose or damaged gutters or downspouts.","Repair any loose or damaged gutters or downspouts.","Repair any loose or damaged gutters or downspouts.","Repair any loose or damaged gutters or downspouts.","Repair any loose or damaged gutters or downspouts.","Repair any loose or damaged gutters or downspouts.","Repair any loose or damaged gutters or downspouts.","Repair any loose or damaged gutters or downspouts.","Repair any loose or damaged gutters or downspouts.","Repair any loose or damaged gutters or downspouts.","Repair any loose or damaged gutters or downspouts.",{"$f":"IF(E485<>\"\",1,0)*W435","v":1},1,1]
[{"$nulls":3},9,"Final Cleaning:  Clean up all scrap roofing materials, debris and screws from project site.",{"$nulls":17},{"$f":"IF(E486<>\"\",1,0)*W435","v":1},1,1]
[{"$nulls":3},10,{"$nulls":18},{"$f":"IF(E487<>\"\",1,0)*W435","v":0},1,0]
[{"$nulls":22},{"$f":"W435","v":1},1,1]
[{"$nulls":3},{"$f":"UPPER(CONCATENATE(\"TOTAL \",D435))","v":"TOTAL ROOFING"},{"$nulls":18},{"$f":"W435","v":1},1,1]
[{"$nulls":22},{"$f":"W435","v":1},1,1]
[{"$nulls":3},{"$f":"T('2 REPAIR ESTIMATOR'!D447:O447)","v":"EXTERIOR DOORS & WINDOWS"},{"$nulls":7},{"$f":"SUM(L492:M531)","v":18},{"$nulls":10},{"$f":"IF(L491>0,1,0)","v":1},{"$f":"IF(Scope9_Setting=\"Shown\",1,0)","v":1},1]
[{"$nulls":3},{"$f":"T('2 REPAIR ESTIMATOR'!D448:O448)","v":"Exterior Doors"},{"$nulls":7},{"$f":"'2 REPAIR ESTIMATOR'!P448","v":0},null,{"$f":"T('2 REPAIR ESTIMATOR'!S448)","v":""},{"$nulls":8},{"$f":"IF(L492=\"\",0,1)","v":1},1,{"$f":"W492*X492","v":1}]
[{"$nulls":3},{"$f":"T('2 REPAIR ESTIMATOR'!D449:O449)","v":"Exterior doors bid/allowance"},{"$nulls":7},{"$f":"'2 REPAIR ESTIMATOR'!P449","v":0},null,{"$f":"T('2 REPAIR ESTIMATOR'!S449)","v":"ls"},{"$nulls":8},{"$f":"IF(L493=\"\",0,1)","v":1},1,1]
[{"$nulls":3},{"$f":"T('2 REPAIR ESTIMATOR'!D450:O450)","v":"Steel entry door,  single"},{"$nulls":7},{"$f":"'2 REPAIR ESTIMATOR'!P450","v":3},null,{"$f":"T('2 REPAIR ESTIMATOR'!S450)","v":"ea"},{"$nulls":8},1,1,1]
[{"$nulls":3},{"$f":"T('2 REPAIR ESTIMATOR'!D451:O451)","v":"French patio door, pair"},{"$nulls":7},{"$f":"'2 REPAIR ESTIMATOR'!P451","v":0},null,{"$f":"T('2 REPAIR ESTIMATOR'!S451)","v":"ea"},{"$nulls":8},1,1,1]
[{"$nulls":3},{"$f":"T('2 REPAIR ESTIMATOR'!D452:O452)","v":"Exterior door hardware w/ dead bolt "},{"$nulls":7},{"$f":"'2 REPAIR ESTIMATOR'!P452","v":3},null,{"$f":"T('2 REPAIR ESTIMATOR'!S452)","v":"ea"},{"$nulls":8},1,1,1]
[{"$nulls":3},{"$f":"T('2 REPAIR ESTIMATOR'!D453:O453)","v":"Glass storm door, single"},{"$nulls":7},{"$f":"'2 REPAIR ESTIMATOR'!P453","v":1},null,{"$f":"T('2 REPAIR ESTIMATOR'!S453)","v":"ea"},{"$nulls":8},1,1,1]
[{"$nulls":3},{"$f":"T('2 REPAIR ESTIMATOR'!D454:O454)","v":"Sliding glass door, vinyl, double"},{"$nulls":7},{"$f":"'2 REPAIR ESTIMATOR'!P454","v":0},null,{"$f":"T('2 REPAIR ESTIMATOR'!S454)","v":"ea"},{"$nulls":8},1,1,1]
[{"$nulls":3},{"$f":"T('2 REPAIR ESTIMATOR'!D455:O455)","v":""},{"$nulls":7},{"$f":"'2 REPAIR ESTIMATOR'!P455","v":0},null,{"$f":"T('2 REPAIR ESTIMATOR'!S455)","v":""},{"$nulls":8},1,1,1]
[{"$nulls":3},{"$f":"T('2 REPAIR ESTIMATOR'!D456:O456)","v":""},{"$nulls":7},{"$f":"'2 REPAIR ESTIMATOR'!P456","v":0},null,{"$f":"T('2 REPAIR ESTIMATOR'!S456)","v":""},{"$nulls":8},1,1,1]
[{"$nulls":3},{"$f":"T('2 REPAIR ESTIMATOR'!D457:O457)","v":"Windows"},{"$nulls":7},{"$f":"'2 REPAIR ESTIMATOR'!P457","v":0},null,{"$f":"T('2 REPAIR ESTIMATOR'!S457)","v":""},{"$nulls":8},1,1,1]
[{"$nulls":3},{"$f":"T('2 REPAIR ESTIMATOR'!D458:O458)","v":"New windows, vinyl, average size"},{"$nulls":7},{"$f":"'2 REPAIR ESTIMATOR'!P458","v":11},null,{"$f":"T('2 REPAIR ESTIMATOR'!S458)","v":"ea"},{"$nulls":8},1,1,1]
[{"$nulls":3},{"$f":"T('2 REPAIR ESTIMATOR'!D459:O459)","v":"Replacement windows, vinyl, average size"},{"$nulls":7},{"$f":"'2 REPAIR ESTIMATOR'!P459","v":0},null,{"$f":"T('2 REPAIR ESTIMATOR'!S459)","v":"ea"},{"$nulls":8},1,1,1]
[{"$nulls":3},{"$f":"T('2 REPAIR ESTIMATOR'!D460:O460)","v":"Wood windows, average size"},{"$nulls":7},{"$f":"'2 REPAIR ESTIMATOR'!P460","v":0},null,{"$f":"T('2 REPAIR ESTIMATOR'!S460)","v":"ea"},{"$nulls":8},1,1,1]
[{"$nulls":3},{"$f":"T('2 REPAIR ESTIMATOR'!D461:O461)","v":"Replace broken window pane"},{"$nulls":7},{"$f":"'2 REPAIR ESTIMATOR'!P461","v":0},null,{"$f":"T('2 REPAIR ESTIMATOR'!S461)","v":"ea"},{"$nulls":8},1,1,1]
[{"$nulls":3},{"$f":"T('2 REPAIR ESTIMATOR'!D462:O462)","v":"Replace broken screens"},{"$nulls":7},{"$f":"'2 REPAIR ESTIMATOR'!P462","v":0},null,{"$f":"T('2 REPAIR ESTIMATOR'!S462)","v":"ea"},{"$nulls":8},1,1,1]
[{"$nulls":3},{"$f":"T('2 REPAIR ESTIMATOR'!D463:O463)","v":"Repair broken screens"},{"$nulls":7},{"$f":"'2 REPAIR ESTIMATOR'!P463","v":0},null,{"$f":"T('2 REPAIR ESTIMATOR'!S463)","v":"ea"},{"$nulls":8},1,1,1]
[{"$nulls":3},{"$f":"T('2 REPAIR ESTIMATOR'!D464:O464)","v":"Skylight, 3x3, fixed"},{"$nulls":7},{"$f":"'2 REPAIR ESTIMATOR'!P464","v":0},null,{"$f":"T('2 REPAIR ESTIMATOR'!S464)","v":"ea"},{"$nulls":8},1,1,1]
[{"$nulls":3},{"$f":"T('2 REPAIR ESTIMATOR'!D465:O465)","v":"Skylight, operable"},{"$nulls":7},{"$f":"'2 REPAIR ESTIMATOR'!P465","v":0},null,{"$f":"T('2 REPAIR ESTIMATOR'!S465)","v":"ea"},{"$nulls":8},1,1,1]
[{"$nulls":3},{"$f":"T('2 REPAIR ESTIMATOR'!D466:O466)","v":""},{"$nulls":7},{"$f":"'2 REPAIR ESTIMATOR'!P466","v":0},null,{"$f":"T('2 REPAIR ESTIMATOR'!S466)","v":""},{"$nulls":8},1,1,1]
[{"$nulls":3},{"$f":"T('2 REPAIR ESTIMATOR'!D467:O467)","v":""},{"$nulls":7},{"$f":"'2 REPAIR ESTIMATOR'!P467","v":0},null,{"$f":"T('2 REPAIR ESTIMATOR'!S467)","v":""},{"$nulls":8},1,1,1]
[{"$nulls":3},{"$f":"T('2 REPAIR ESTIMATOR'!D468:O468)","v":""},{"$nulls":7},{"$f":"'2 REPAIR ESTIMATOR'!P468","v":0},null,{"$f":"T('2 REPAIR ESTIMATOR'!S468)","v":""},{"$nulls":8},1,1,1]
[{"$nulls":3},{"$f":"T('2 REPAIR ESTIMATOR'!D469:O469)","v":""},{"$nulls":7},{"$f":"'2 REPAIR ESTIMATOR'!P469","v":0},null,{"$f":"T('2 REPAIR ESTIMATOR'!S469)","v":""},{"$nulls":8},1,1,1]
[{"$nulls":3},{"$f":"T('2 REPAIR ESTIMATOR'!D470:O470)","v":""},{"$nulls":7},{"$f":"'2 REPAIR ESTIMATOR'!P470","v":0},null,{"$f":"T('2 REPAIR ESTIMATOR'!S470)","v":""},{"$nulls":8},1,1,1]
[{"$nulls":3},{"$f":"T('2 REPAIR ESTIMATOR'!D471:O471)","v":""},{"$nulls":7},{"$f":"'2 REPAIR ESTIMATOR'!P471","v":0},null,{"$f":"T('2 REPAIR ESTIMATOR'!S471)","v":""},{"$nulls":8},1,1,1]
[{"$nulls":3},{"$f":"T('2 REPAIR ESTIMATOR'!D472:O472)","v":""},{"$nulls":7},{"$f":"'2 REPAIR ESTIMATOR'!P472","v":0},null,{"$f":"T('2 REPAIR ESTIMATOR'!S472)","v":""},{"$nulls":8},1,1,1]
[{"$nulls":3},{"$f":"T('2 REPAIR ESTIMATOR'!D473:O473)","v":""},{"$nulls":7},{"$f":"'2 REPAIR ESTIMATOR'!P473","v":0},null,{"$f":"T('2 REPAIR ESTIMATOR'!S473)","v":""},{"$nulls":8},1,1,1]
[{"$nulls":3},{"$f":"T('2 REPAIR ESTIMATOR'!D474:O474)","v":""},{"$nulls":7},{"$f":"'2 REPAIR ESTIMATOR'!P474","v":0},null,{"$f":"T('2 REPAIR ESTIMATOR'!S474)","v":""},{"$nulls":8},1,1,1]
[{"$nulls":3},{"$f":"T('2 REPAIR ESTIMATOR'!D475:O475)","v":""},{"$nulls":7},{"$f":"'2 REPAIR ESTIMATOR'!P475","v":0},null,{"$f":"T('2 REPAIR ESTIMATOR'!S475)","v":""},{"$nulls":8},1,1,1]
[{"$nulls":3},{"$f":"T('2 REPAIR ESTIMATOR'!D476:O476)","v":""},{"$nulls":7},{"$f":"'2 REPAIR ESTIMATOR'!P476","v":0},null,{"$f":"T('2 REPAIR ESTIMATOR'!S476)","v":""},{"$nulls":8},1,1,1]
[{"$nulls":3},{"$f":"T('2 REPAIR ESTIMATOR'!D477:O477)","v":""},{"$nulls":7},{"$f":"'2 REPAIR ESTIMATOR'!P477","v":0},null,{"$f":"T('2 REPAIR ESTIMATOR'!S477)","v":""},{"$nulls":8},1,1,1]
[{"$nulls":3},{"$f":"T('2 REPAIR ESTIMATOR'!D478:O478)","v":""},{"$nulls":7},{"$f":"'2 REPAIR ESTIMATOR'!P478","v":0},null,{"$f":"T('2 REPAIR ESTIMATOR'!S478)","v":""},{"$nulls":8},1,1,1]
[{"$nulls":3},{"$f":"T('2 REPAIR ESTIMATOR'!D479:O479)","v":""},{"$nulls":7},{"$f":"'2 REPAIR ESTIMATOR'!P479","v":0},null,{"$f":"T('2 REPAIR ESTIMATOR'!S479)","v":""},{"$nulls":8},1,{"$f":"IF(Scope9_Setting=\"Shown\",1,0)","v":1},1]
[{"$nulls":3},{"$f":"T('2 REPAIR ESTIMATOR'!D480:O480)","v":""},{"$nulls":7},{"$f":"'2 REPAIR ESTIMATOR'!P480","v":0},null,{"$f":"T('2 REPAIR ESTIMATOR'!S480)","v":""},{"$nulls":8},1,1,1]
[{"$nulls":3},{"$f":"T('2 REPAIR ESTIMATOR'!D481:O481)","v":""},{"$nulls":7},{"$f":"'2 REPAIR ESTIMATOR'!P481","v":0},null,{"$f":"T('2 REPAIR ESTIMATOR'!S481)","v":""},{"$nulls":8},1,1,1]
[{"$nulls":3},{"$f":"T('2 REPAIR ESTIMATOR'!D482:O482)","v":""},{"$nulls":7},{"$f":"'2 REPAIR ESTIMATOR'!P482","v":0},null,{"$f":"T('2 REPAIR ESTIMATOR'!S482)","v":""},{"$nulls":8},1,1,1]
[{"$nulls":3},{"$f":"T('2 REPAIR ESTIMATOR'!D483:O483)","v":""},{"$nulls":7},{"$f":"'2 REPAIR ESTIMATOR'!P483","v":0},null,{"$f":"T('2 REPAIR ESTIMATOR'!S483)","v":""},{"$nulls":8},1,1,1]
[{"$nulls":3},{"$f":"T('2 REPAIR ESTIMATOR'!D484:O484)","v":""},{"$nulls":7},{"$f":"'2 REPAIR ESTIMATOR'!P484","v":0},null,{"$f":"T('2 REPAIR ESTIMATOR'!S484)","v":""},{"$nulls":8},1,1,1]
[{"$nulls":3},{"$f":"T('2 REPAIR ESTIMATOR'!D485:O485)","v":""},{"$nulls":7},{"$f":"'2 REPAIR ESTIMATOR'!P485","v":0},null,{"$f":"T('2 REPAIR ESTIMATOR'!S485)","v":""},{"$nulls":8},1,1,1]
[{"$nulls":3},{"$f":"T('2 REPAIR ESTIMATOR'!D486:O486)","v":""},{"$nulls":7},{"$f":"'2 REPAIR ESTIMATOR'!P486","v":0},null,{"$f":"T('2 REPAIR ESTIMATOR'!S486)","v":""},{"$nulls":8},1,1,1]
[{"$nulls":3},{"$f":"T('2 REPAIR ESTIMATOR'!D487:O487)","v":""},{"$nulls":7},{"$f":"'2 REPAIR ESTIMATOR'!P487","v":0},null,{"$f":"T('2 REPAIR ESTIMATOR'!S487)","v":""},{"$nulls":8},1,1,1]
[{"$nulls":22},{"$f":"W533","v":4},1,4]
[{"$nulls":3},{"$f":"UPPER(CONCATENATE(\"Miscellaneous \",D491,\" Items\"))","v":"MISCELLANEOUS EXTERIOR DOORS & WINDOWS ITEMS"},{"$nulls":18},{"$f":"SUM(W534:W543)","v":4},1,4]
[{"$nulls":3},1,"All door and window components are to be contractor furnished, contractor installed.","All door and window components are to be contractor furnished, contractor installed.","All door and window components are to be contractor furnished, contractor installed.","All door and window components are to be contractor furnished, contractor installed.","All door and window components are to be contractor furnished, contractor installed.","All door and window components are to be contractor furnished, contractor installed.","All door and window components are to be contractor furnished, contractor installed.","All door and window components are to be contractor furnished, contractor installed.","All door and window components are to be contractor furnished, contractor installed.","All door and window components are to be contractor furnished, contractor installed.","All door and window components are to be contractor furnished, contractor installed.","All door and window components are to be contractor furnished, contractor installed.","All door and window components are to be contractor furnished, contractor installed.","All door and window components are to be contractor furnished, contractor installed.","All door and window components are to be contractor furnished, contractor installed.","All door and window components are to be contractor furnished, contractor installed.","All door and window components are to be contractor furnished, contractor installed.","All door and window components are to be contractor furnished, contractor installed.",{"$f":"IF(E534<>\"\",1,0)*W491","v":1},1,1]
[{"$nulls":3},2,"Remove existing doors and windows to be replaced with new.","Remove existing doors and windows to be replaced with new.","Remove existing doors and windows to be replaced with new.","Remove existing doors and windows to be replaced with new.","Remove existing doors and windows to be replaced with new.","Remove existing doors and windows to be replaced with new.","Remove existing doors and windows to be replaced with new.","Remove existing doors and windows to be replaced with new.","Remove existing doors and windows to be replaced with new.","Remove existing doors and windows to be replaced with new.","Remove existing doors and windows to be replaced with new.","Remove existing doors and windows to be replaced with new.","Remove existing doors and windows to be replaced with new.","Remove existing doors and windows to be replaced with new.","Remove existing doors and windows to be replaced with new.","Remove existing doors and windows to be replaced with new.","Remove existing doors and windows to be replaced with new.","Remove existing doors and windows to be replaced with new.",{"$f":"IF(E535<>\"\",1,0)*W491","v":1},1,1]
[{"$nulls":3},3,"Contractor to field verify door window sizes and openings.","Contractor to field verify door window sizes and openings.","Contractor to field verify door window sizes and openings.","Contractor to field verify door window sizes and openings.","Contractor to field verify door window sizes and openings.","Contractor to field verify door window sizes and openings.","Contractor to field verify door window sizes and openings.","Contractor to field verify door window sizes and openings.","Contractor to field verify door window sizes and openings.","Contractor to field verify door window sizes and openings.","Contractor to field verify door window sizes and openings.","Contractor to field verify door window sizes and openings.","Contractor to field verify door window sizes and openings.","Contractor to field verify door window sizes and openings.","Contractor to field verify door window sizes and openings.","Contractor to field verify door window sizes and openings.","Contractor to field verify door window sizes and openings.","Contractor to field verify door window sizes and openings.",{"$f":"IF(E536<>\"\",1,0)*W491","v":1},1,1]
[{"$nulls":3},4,"Furnish and install caulking, flashing, trim boards around doors and windows to provide water tight installation. (CFCI)","Furnish and install caulking, flashing, trim boards around doors and windows to provide water tight installation. (CFCI)","Furnish and install caulking, flashing, trim boards around doors and windows to provide water tight installation. (CFCI)","Furnish and install caulking, flashing, trim boards around doors and windows to provide water tight installation. (CFCI)","Furnish and install caulking, flashing, trim boards around doors and windows to provide water tight installation. (CFCI)","Furnish and install caulking, flashing, trim boards around doors and windows to provide water tight installation. (CFCI)","Furnish and install caulking, flashing, trim boards around doors and windows to provide water tight installation. (CFCI)","Furnish and install caulking, flashing, trim boards around doors and windows to provide water tight installation. (CFCI)","Furnish and install caulking, flashing, trim boards around doors and windows to provide water tight installation. (CFCI)","Furnish and install caulking, flashing, trim boards around doors and windows to provide water tight installation. (CFCI)","Furnish and install caulking, flashing, trim boards around doors and windows to provide water tight installation. (CFCI)","Furnish and install caulking, flashing, trim boards around doors and windows to provide water tight installation. (CFCI)","Furnish and install caulking, flashing, trim boards around doors and windows to provide water tight installation. (CFCI)","Furnish and install caulking, flashing, trim boards around doors and windows to provide water tight installation. (CFCI)","Furnish and install caulking, flashing, trim boards around doors and windows to provide water tight installation. (CFCI)","Furnish and install caulking, flashing, trim boards around doors and windows to provide water tight installation. (CFCI)","Furnish and install caulking, flashing, trim boards around doors and windows to provide water tight installation. (CFCI)","Furnish and install caulking, flashing, trim boards around doors and windows to provide water tight installation. (CFCI)",{"$f":"IF(E537<>\"\",1,0)*W491","v":1},1,1]
[{"$nulls":3},5,{"$nulls":18},{"$f":"IF(E538<>\"\",1,0)*W491","v":0},1,0]
[{"$nulls":3},6,{"$nulls":18},{"$f":"IF(E539<>\"\",1,0)*W491","v":0},1,0]
[{"$nulls":3},7,{"$nulls":18},{"$f":"IF(E540<>\"\",1,0)*W491","v":0},1,0]
[{"$nulls":3},8,{"$nulls":18},{"$f":"IF(E541<>\"\",1,0)*W491","v":0},1,0]
[{"$nulls":3},9,{"$nulls":18},{"$f":"IF(E542<>\"\",1,0)*W491","v":0},1,0]
[{"$nulls":3},10,{"$nulls":18},{"$f":"IF(E543<>\"\",1,0)*W491","v":0},1,0]
[{"$nulls":22},{"$f":"W491","v":1},1,1]
[{"$nulls":3},{"$f":"UPPER(CONCATENATE(\"TOTAL \",D491))","v":"TOTAL EXTERIOR DOORS & WINDOWS"},{"$nulls":18},{"$f":"W491","v":1},1,1]
[{"$nulls":22},{"$f":"W491","v":1},1,1]
[{"$nulls":3},{"$f":"T('2 REPAIR ESTIMATOR'!D492:O492)","v":"GARAGE DOORS"},{"$nulls":7},{"$f":"SUM(L548:M587)","v":2},{"$nulls":10},{"$f":"IF(L547>0,1,0)","v":1},{"$f":"IF(Scope10_Setting=\"Shown\",1,0)","v":1},1]
[{"$nulls":3},{"$f":"T('2 REPAIR ESTIMATOR'!D493:O493)","v":"Garage Doors Bid/Allowance"},{"$nulls":7},{"$f":"'2 REPAIR ESTIMATOR'!P493","v":0},null,{"$f":"T('2 REPAIR ESTIMATOR'!S493)","v":"ls"},{"$nulls":8},{"$f":"IF(L548=\"\",0,1)","v":1},1,1]
[{"$nulls":3},{"$f":"T('2 REPAIR ESTIMATOR'!D494:O494)","v":"Garage Doors Only- 9'x7'  door, manual"},{"$nulls":7},{"$f":"'2 REPAIR ESTIMATOR'!P494","v":0},null,{"$f":"T('2 REPAIR ESTIMATOR'!S494)","v":"ea"},{"$nulls":8},{"$f":"IF(L549=\"\",0,1)","v":1},1,1]
[{"$nulls":3},{"$f":"T('2 REPAIR ESTIMATOR'!D495:O495)","v":"Garage Doors Only- 16' door, manual"},{"$nulls":7},{"$f":"'2 REPAIR ESTIMATOR'!P495","v":1},null,{"$f":"T('2 REPAIR ESTIMATOR'!S495)","v":"ea"},{"$nulls":8},1,1,1]
[{"$nulls":3},{"$f":"T('2 REPAIR ESTIMATOR'!D496:O496)","v":"Garage Door Operator only"},{"$nulls":7},{"$f":"'2 REPAIR ESTIMATOR'!P496","v":1},null,{"$f":"T('2 REPAIR ESTIMATOR'!S496)","v":"ea"},{"$nulls":8},1,1,1]
[{"$nulls":3},{"$f":"T('2 REPAIR ESTIMATOR'!D497:O497)","v":"Replace springs for garage door"},{"$nulls":7},{"$f":"'2 REPAIR ESTIMATOR'!P497","v":0},null,{"$f":"T('2 REPAIR ESTIMATOR'!S497)","v":"ea"},{"$nulls":8},1,1,1]
[{"$nulls":3},{"$f":"T('2 REPAIR ESTIMATOR'!D498:O498)","v":""},{"$nulls":7},{"$f":"'2 REPAIR ESTIMATOR'!P498","v":0},null,{"$f":"T('2 REPAIR ESTIMATOR'!S498)","v":""},{"$nulls":8},1,1,1]
[{"$nulls":3},{"$f":"T('2 REPAIR ESTIMATOR'!D499:O499)","v":""},{"$nulls":7},{"$f":"'2 REPAIR ESTIMATOR'!P499","v":0},null,{"$f":"T('2 REPAIR ESTIMATOR'!S499)","v":""},{"$nulls":8},1,1,1]
[{"$nulls":3},{"$f":"T('2 REPAIR ESTIMATOR'!D500:O500)","v":""},{"$nulls":7},{"$f":"'2 REPAIR ESTIMATOR'!P500","v":0},null,{"$f":"T('2 REPAIR ESTIMATOR'!S500)","v":""},{"$nulls":8},1,1,1]
[{"$nulls":3},{"$f":"T('2 REPAIR ESTIMATOR'!D501:O501)","v":""},{"$nulls":7},{"$f":"'2 REPAIR ESTIMATOR'!P501","v":0},null,{"$f":"T('2 REPAIR ESTIMATOR'!S501)","v":""},{"$nulls":8},1,1,{"$f":"W556*X556","v":1}]
[{"$nulls":3},{"$f":"T('2 REPAIR ESTIMATOR'!D502:O502)","v":""},{"$nulls":7},{"$f":"'2 REPAIR ESTIMATOR'!P502","v":0},null,{"$f":"T('2 REPAIR ESTIMATOR'!S502)","v":""},{"$nulls":8},1,1,1]
[{"$nulls":3},{"$f":"T('2 REPAIR ESTIMATOR'!D503:O503)","v":""},{"$nulls":7},{"$f":"'2 REPAIR ESTIMATOR'!P503","v":0},null,{"$f":"T('2 REPAIR ESTIMATOR'!S503)","v":""},{"$nulls":8},1,1,1]
[{"$nulls":3},{"$f":"T('2 REPAIR ESTIMATOR'!D504:O504)","v":""},{"$nulls":7},{"$f":"'2 REPAIR ESTIMATOR'!P504","v":0},null,{"$f":"T('2 REPAIR ESTIMATOR'!S504)","v":""},{"$nulls":8},1,1,1]
[{"$nulls":3},{"$f":"T('2 REPAIR ESTIMATOR'!D505:O505)","v":""},{"$nulls":7},{"$f":"'2 REPAIR ESTIMATOR'!P505","v":0},null,{"$f":"T('2 REPAIR ESTIMATOR'!S505)","v":""},{"$nulls":8},1,1,1]
[{"$nulls":3},{"$f":"T('2 REPAIR ESTIMATOR'!D506:O506)","v":""},{"$nulls":7},{"$f":"'2 REPAIR ESTIMATOR'!P506","v":0},null,{"$f":"T('2 REPAIR ESTIMATOR'!S506)","v":""},{"$nulls":8},1,1,1]
[{"$nulls":3},{"$f":"T('2 REPAIR ESTIMATOR'!D507:O507)","v":""},{"$nulls":7},{"$f":"'2 REPAIR ESTIMATOR'!P507","v":0},null,{"$f":"T('2 REPAIR ESTIMATOR'!S507)","v":""},{"$nulls":8},1,1,1]
[{"$nulls":3},{"$f":"T('2 REPAIR ESTIMATOR'!D508:O508)","v":""},{"$nulls":7},{"$f":"'2 REPAIR ESTIMATOR'!P508","v":0},null,{"$f":"T('2 REPAIR ESTIMATOR'!S508)","v":""},{"$nulls":8},1,1,1]
[{"$nulls":3},{"$f":"T('2 REPAIR ESTIMATOR'!D509:O509)","v":""},{"$nulls":7},{"$f":"'2 REPAIR ESTIMATOR'!P509","v":0},null,{"$f":"T('2 REPAIR ESTIMATOR'!S509)","v":""},{"$nulls":8},1,1,1]
[{"$nulls":3},{"$f":"T('2 REPAIR ESTIMATOR'!D510:O510)","v":""},{"$nulls":7},{"$f":"'2 REPAIR ESTIMATOR'!P510","v":0},null,{"$f":"T('2 REPAIR ESTIMATOR'!S510)","v":""},{"$nulls":8},1,1,1]
[{"$nulls":3},{"$f":"T('2 REPAIR ESTIMATOR'!D511:O511)","v":""},{"$nulls":7},{"$f":"'2 REPAIR ESTIMATOR'!P511","v":0},null,{"$f":"T('2 REPAIR ESTIMATOR'!S511)","v":""},{"$nulls":8},1,1,1]
[{"$nulls":3},{"$f":"T('2 REPAIR ESTIMATOR'!D512:O512)","v":""},{"$nulls":7},{"$f":"'2 REPAIR ESTIMATOR'!P512","v":0},null,{"$f":"T('2 REPAIR ESTIMATOR'!S512)","v":""},{"$nulls":8},1,1,1]
[{"$nulls":3},{"$f":"T('2 REPAIR ESTIMATOR'!D513:O513)","v":""},{"$nulls":7},{"$f":"'2 REPAIR ESTIMATOR'!P513","v":0},null,{"$f":"T('2 REPAIR ESTIMATOR'!S513)","v":""},{"$nulls":8},1,1,1]
[{"$nulls":3},{"$f":"T('2 REPAIR ESTIMATOR'!D514:O514)","v":""},{"$nulls":7},{"$f":"'2 REPAIR ESTIMATOR'!P514","v":0},null,{"$f":"T('2 REPAIR ESTIMATOR'!S514)","v":""},{"$nulls":8},1,1,1]
[{"$nulls":3},{"$f":"T('2 REPAIR ESTIMATOR'!D515:O515)","v":""},{"$nulls":7},{"$f":"'2 REPAIR ESTIMATOR'!P515","v":0},null,{"$f":"T('2 REPAIR ESTIMATOR'!S515)","v":""},{"$nulls":8},1,1,1]
[{"$nulls":3},{"$f":"T('2 REPAIR ESTIMATOR'!D516:O516)","v":""},{"$nulls":7},{"$f":"'2 REPAIR ESTIMATOR'!P516","v":0},null,{"$f":"T('2 REPAIR ESTIMATOR'!S516)","v":""},{"$nulls":8},1,1,1]
[{"$nulls":3},{"$f":"T('2 REPAIR ESTIMATOR'!D517:O517)","v":""},{"$nulls":7},{"$f":"'2 REPAIR ESTIMATOR'!P517","v":0},null,{"$f":"T('2 REPAIR ESTIMATOR'!S517)","v":""},{"$nulls":8},1,1,1]
[{"$nulls":3},{"$f":"T('2 REPAIR ESTIMATOR'!D518:O518)","v":""},{"$nulls":7},{"$f":"'2 REPAIR ESTIMATOR'!P518","v":0},null,{"$f":"T('2 REPAIR ESTIMATOR'!S518)","v":""},{"$nulls":8},1,1,1]
[{"$nulls":3},{"$f":"T('2 REPAIR ESTIMATOR'!D519:O519)","v":""},{"$nulls":7},{"$f":"'2 REPAIR ESTIMATOR'!P519","v":0},null,{"$f":"T('2 REPAIR ESTIMATOR'!S519)","v":""},{"$nulls":8},1,1,1]
[{"$nulls":3},{"$f":"T('2 REPAIR ESTIMATOR'!D520:O520)","v":""},{"$nulls":7},{"$f":"'2 REPAIR ESTIMATOR'!P520","v":0},null,{"$f":"T('2 REPAIR ESTIMATOR'!S520)","v":""},{"$nulls":8},1,1,1]
[{"$nulls":3},{"$f":"T('2 REPAIR ESTIMATOR'!D521:O521)","v":""},{"$nulls":7},{"$f":"'2 REPAIR ESTIMATOR'!P521","v":0},null,{"$f":"T('2 REPAIR ESTIMATOR'!S521)","v":""},{"$nulls":8},1,1,1]
[{"$nulls":3},{"$f":"T('2 REPAIR ESTIMATOR'!D522:O522)","v":""},{"$nulls":7},{"$f":"'2 REPAIR ESTIMATOR'!P522","v":0},null,{"$f":"T('2 REPAIR ESTIMATOR'!S522)","v":""},{"$nulls":8},1,1,1]
[{"$nulls":3},{"$f":"T('2 REPAIR ESTIMATOR'!D523:O523)","v":""},{"$nulls":7},{"$f":"'2 REPAIR ESTIMATOR'!P523","v":0},null,{"$f":"T('2 REPAIR ESTIMATOR'!S523)","v":""},{"$nulls":8},1,1,1]
[{"$nulls":3},{"$f":"T('2 REPAIR ESTIMATOR'!D524:O524)","v":""},{"$nulls":7},{"$f":"'2 REPAIR ESTIMATOR'!P524","v":0},null,{"$f":"T('2 REPAIR ESTIMATOR'!S524)","v":""},{"$nulls":8},1,{"$f":"IF(Scope10_Setting=\"Shown\",1,0)","v":1},1]
[{"$nulls":3},{"$f":"T('2 REPAIR ESTIMATOR'!D525:O525)","v":""},{"$nulls":7},{"$f":"'2 REPAIR ESTIMATOR'!P525","v":0},null,{"$f":"T('2 REPAIR ESTIMATOR'!S525)","v":""},{"$nulls":8},1,1,1]
[{"$nulls":3},{"$f":"T('2 REPAIR ESTIMATOR'!D526:O526)","v":""},{"$nulls":7},{"$f":"'2 REPAIR ESTIMATOR'!P526","v":0},null,{"$f":"T('2 REPAIR ESTIMATOR'!S526)","v":""},{"$nulls":8},1,1,1]
[{"$nulls":3},{"$f":"T('2 REPAIR ESTIMATOR'!D527:O527)","v":""},{"$nulls":7},{"$f":"'2 REPAIR ESTIMATOR'!P527","v":0},null,{"$f":"T('2 REPAIR ESTIMATOR'!S527)","v":""},{"$nulls":8},1,1,1]
[{"$nulls":3},{"$f":"T('2 REPAIR ESTIMATOR'!D528:O528)","v":""},{"$nulls":7},{"$f":"'2 REPAIR ESTIMATOR'!P528","v":0},null,{"$f":"T('2 REPAIR ESTIMATOR'!S528)","v":""},{"$nulls":8},1,1,1]
[{"$nulls":3},{"$f":"T('2 REPAIR ESTIMATOR'!D529:O529)","v":""},{"$nulls":7},{"$f":"'2 REPAIR ESTIMATOR'!P529","v":0},null,{"$f":"T('2 REPAIR ESTIMATOR'!S529)","v":""},{"$nulls":8},1,1,1]
[{"$nulls":3},{"$f":"T('2 REPAIR ESTIMATOR'!D530:O530)","v":""},{"$nulls":7},{"$f":"'2 REPAIR ESTIMATOR'!P530","v":0},null,{"$f":"T('2 REPAIR ESTIMATOR'!S530)","v":""},{"$nulls":8},1,1,1]
[{"$nulls":3},{"$f":"T('2 REPAIR ESTIMATOR'!D531:O531)","v":""},{"$nulls":7},{"$f":"'2 REPAIR ESTIMATOR'!P531","v":0},null,{"$f":"T('2 REPAIR ESTIMATOR'!S531)","v":""},{"$nulls":8},1,1,1]
[{"$nulls":3},{"$f":"T('2 REPAIR ESTIMATOR'!D532:O532)","v":""},{"$nulls":7},{"$f":"'2 REPAIR ESTIMATOR'!P532","v":0},null,{"$f":"T('2 REPAIR ESTIMATOR'!S532)","v":""},{"$nulls":8},1,1,1]
[{"$nulls":22},{"$f":"W589","v":5},1,5]
[{"$nulls":3},{"$f":"UPPER(CONCATENATE(\"Miscellaneous \",D547,\" Items\"))","v":"MISCELLANEOUS GARAGE DOORS ITEMS"},{"$nulls":18},{"$f":"SUM(W590:W599)","v":5},1,5]
[{"$nulls":3},1,"All garage door components are to be contractor furnished, contractor installed.","All door and window components are to be contractor furnished, contractor installed.","All door and window components are to be contractor furnished, contractor installed.","All door and window components are to be contractor furnished, contractor installed.","All door and window components are to be contractor furnished, contractor installed.","All door and window components are to be contractor furnished, contractor installed.","All door and window components are to be contractor furnished, contractor installed.","All door and window components are to be contractor furnished, contractor installed.","All door and window components are to be contractor furnished, contractor installed.","All door and window components are to be contractor furnished, contractor installed.","All door and window components are to be contractor furnished, contractor installed.","All door and window components are to be contractor furnished, contractor installed.","All door and window components are to be contractor furnished, contractor installed.","All door and window components are to be contractor furnished, contractor installed.","All door and window components are to be contractor furnished, contractor installed.","All door and window components are to be contractor furnished, contractor installed.","All door and window components are to be contractor furnished, contractor installed.","All door and window components are to be contractor furnished, contractor installed.",{"$f":"IF(E590<>\"\",1,0)*W547","v":1},1,1]
[{"$nulls":3},2,"Remove existing garage doors, and equipment as necessary to install new garage doors.",{"$nulls":17},{"$f":"IF(E591<>\"\",1,0)*W547","v":1},1,1]
[{"$nulls":3},3,"Install new garage doors, and door operators.",{"$nulls":17},{"$f":"IF(E592<>\"\",1,0)*W547","v":1},1,1]
[{"$nulls":3},4,"(a) Garage Door Specification: ______________________","(a) Architectural Shingle Specification: ______________________","(a) Architectural Shingle Specification: ______________________","(a) Architectural Shingle Specification: ______________________","(a) Architectural Shingle Specification: ______________________","(a) Architectural Shingle Specification: ______________________","(a) Architectural Shingle Specification: ______________________","(a) Architectural Shingle Specification: ______________________","(a) Architectural Shingle Specification: ______________________","(a) Architectural Shingle Specification: ______________________","(a) Architectural Shingle Specification: ______________________","(a) Architectural Shingle Specification: ______________________","(a) Architectural Shingle Specification: ______________________","(a) Architectural Shingle Specification: ______________________","(a) Architectural Shingle Specification: ______________________","(a) Architectural Shingle Specification: ______________________","(a) Architectural Shingle Specification: ______________________","(a) Architectural Shingle Specification: ______________________",{"$f":"IF(E593<>\"\",1,0)*W547","v":1},1,1]
[{"$nulls":3},5,"(b) Garage Door Operator Specification: ______________________","(a) Architectural Shingle Specification: ______________________","(a) Architectural Shingle Specification: ______________________","(a) Architectural Shingle Specification: ______________________","(a) Architectural Shingle Specification: ______________________","(a) Architectural Shingle Specification: ______________________","(a) Architectural Shingle Specification: ______________________","(a) Architectural Shingle Specification: ______________________","(a) Architectural Shingle Specification: ______________________","(a) Architectural Shingle Specification: ______________________","(a) Architectural Shingle Specification: ______________________","(a) Architectural Shingle Specification: ______________________","(a) Architectural Shingle Specification: ______________________","(a) Architectural Shingle Specification: ______________________","(a) Architectural Shingle Specification: ______________________","(a) Architectural Shingle Specification: ______________________","(a) Architectural Shingle Specification: ______________________","(a) Architectural Shingle Specification: ______________________",{"$f":"IF(E594<>\"\",1,0)*W547","v":1},1,1]
[{"$nulls":3},6,{"$nulls":18},{"$f":"IF(E595<>\"\",1,0)*W547","v":0},1,0]
[{"$nulls":3},7,{"$nulls":18},{"$f":"IF(E596<>\"\",1,0)*W547","v":0},1,0]
[{"$nulls":3},8,{"$nulls":18},{"$f":"IF(E597<>\"\",1,0)*W547","v":0},1,0]
[{"$nulls":3},9,{"$nulls":18},{"$f":"IF(E598<>\"\",1,0)*W547","v":0},1,0]
[{"$nulls":3},10,{"$nulls":18},{"$f":"IF(E599<>\"\",1,0)*W547","v":0},1,0]
[{"$nulls":22},{"$f":"W547","v":1},1,1]
[{"$nulls":3},{"$f":"UPPER(CONCATENATE(\"TOTAL \",D547))","v":"TOTAL GARAGE DOORS"},{"$nulls":18},{"$f":"W547","v":1},1,1]
[{"$nulls":22},{"$f":"W547","v":1},1,1]
[{"$nulls":3},{"$f":"T('2 REPAIR ESTIMATOR'!D537:O537)","v":"LANDSCAPING"},{"$nulls":7},{"$f":"SUM(L604:M643)","v":1},{"$nulls":10},{"$f":"IF(L603>0,1,0)","v":1},{"$f":"IF(Scope11_Setting=\"Shown\",1,0)","v":1},1]
[{"$nulls":3},{"$f":"T('2 REPAIR ESTIMATOR'!D538:O538)","v":"Landscaping bid/allowance, trees, bushes, flowers"},{"$nulls":7},{"$f":"'2 REPAIR ESTIMATOR'!P538","v":1},null,{"$f":"T('2 REPAIR ESTIMATOR'!S538)","v":"ls"},{"$nulls":8},{"$f":"IF(L604=\"\",0,1)","v":1},1,1]
[{"$nulls":3},{"$f":"T('2 REPAIR ESTIMATOR'!D539:O539)","v":"Sod"},{"$nulls":7},{"$f":"'2 REPAIR ESTIMATOR'!P539","v":0},null,{"$f":"T('2 REPAIR ESTIMATOR'!S539)","v":"sf"},{"$nulls":8},{"$f":"IF(L605=\"\",0,1)","v":1},1,1]
[{"$nulls":3},{"$f":"T('2 REPAIR ESTIMATOR'!D540:O540)","v":"Seeding"},{"$nulls":7},{"$f":"'2 REPAIR ESTIMATOR'!P540","v":0},null,{"$f":"T('2 REPAIR ESTIMATOR'!S540)","v":"sf"},{"$nulls":8},1,1,1]
[{"$nulls":3},{"$f":"T('2 REPAIR ESTIMATOR'!D541:O541)","v":"Shrubs/plantings, 1 gallon"},{"$nulls":7},{"$f":"'2 REPAIR ESTIMATOR'!P541","v":0},null,{"$f":"T('2 REPAIR ESTIMATOR'!S541)","v":"ea"},{"$nulls":8},1,1,1]
[{"$nulls":3},{"$f":"T('2 REPAIR ESTIMATOR'!D542:O542)","v":"Shrubs/plantings, 2 gallon"},{"$nulls":7},{"$f":"'2 REPAIR ESTIMATOR'!P542","v":0},null,{"$f":"T('2 REPAIR ESTIMATOR'!S542)","v":"ea"},{"$nulls":8},1,1,1]
[{"$nulls":3},{"$f":"T('2 REPAIR ESTIMATOR'!D543:O543)","v":"Shrubs/plantings, 5 gallon"},{"$nulls":7},{"$f":"'2 REPAIR ESTIMATOR'!P543","v":0},null,{"$f":"T('2 REPAIR ESTIMATOR'!S543)","v":"ea"},{"$nulls":8},1,1,1]
[{"$nulls":3},{"$f":"T('2 REPAIR ESTIMATOR'!D544:O544)","v":"Small trees, 1-2\" caliper, 10 gallon"},{"$nulls":7},{"$f":"'2 REPAIR ESTIMATOR'!P544","v":0},null,{"$f":"T('2 REPAIR ESTIMATOR'!S544)","v":"ea"},{"$nulls":8},1,1,1]
[{"$nulls":3},{"$f":"T('2 REPAIR ESTIMATOR'!D545:O545)","v":"Small trees, 1-2\" 15 gallon"},{"$nulls":7},{"$f":"'2 REPAIR ESTIMATOR'!P545","v":0},null,{"$f":"T('2 REPAIR ESTIMATOR'!S545)","v":"ea"},{"$nulls":8},1,1,1]
[{"$nulls":3},{"$f":"T('2 REPAIR ESTIMATOR'!D546:O546)","v":"36\" box tree"},{"$nulls":7},{"$f":"'2 REPAIR ESTIMATOR'!P546","v":0},null,{"$f":"T('2 REPAIR ESTIMATOR'!S546)","v":"ea"},{"$nulls":8},1,1,1]
[{"$nulls":3},{"$f":"T('2 REPAIR ESTIMATOR'!D547:O547)","v":"Mulch, standard 3\" thick"},{"$nulls":7},{"$f":"'2 REPAIR ESTIMATOR'!P547","v":0},null,{"$f":"T('2 REPAIR ESTIMATOR'!S547)","v":"sf"},{"$nulls":8},1,1,1]
[{"$nulls":3},{"$f":"T('2 REPAIR ESTIMATOR'!D548:O548)","v":"Landscape rock, 3/4\""},{"$nulls":7},{"$f":"'2 REPAIR ESTIMATOR'!P548","v":0},null,{"$f":"T('2 REPAIR ESTIMATOR'!S548)","v":"sf"},{"$nulls":8},1,1,1]
[{"$nulls":3},{"$f":"T('2 REPAIR ESTIMATOR'!D549:O549)","v":"Cobble stone rock"},{"$nulls":7},{"$f":"'2 REPAIR ESTIMATOR'!P549","v":0},null,{"$f":"T('2 REPAIR ESTIMATOR'!S549)","v":"sf"},{"$nulls":8},1,1,1]
[{"$nulls":3},{"$f":"T('2 REPAIR ESTIMATOR'!D550:O550)","v":"Tree removal, per tree"},{"$nulls":7},{"$f":"'2 REPAIR ESTIMATOR'!P550","v":0},null,{"$f":"T('2 REPAIR ESTIMATOR'!S550)","v":"ea"},{"$nulls":8},1,1,1]
[{"$nulls":3},{"$f":"T('2 REPAIR ESTIMATOR'!D551:O551)","v":"Stacked, retaining wall"},{"$nulls":7},{"$f":"'2 REPAIR ESTIMATOR'!P551","v":0},null,{"$f":"T('2 REPAIR ESTIMATOR'!S551)","v":"sf"},{"$nulls":8},1,1,1]
[{"$nulls":3},{"$f":"T('2 REPAIR ESTIMATOR'!D552:O552)","v":""},{"$nulls":7},{"$f":"'2 REPAIR ESTIMATOR'!P552","v":0},null,{"$f":"T('2 REPAIR ESTIMATOR'!S552)","v":""},{"$nulls":8},1,1,1]
[{"$nulls":3},{"$f":"T('2 REPAIR ESTIMATOR'!D553:O553)","v":""},{"$nulls":7},{"$f":"'2 REPAIR ESTIMATOR'!P553","v":0},null,{"$f":"T('2 REPAIR ESTIMATOR'!S553)","v":""},{"$nulls":8},1,1,1]
[{"$nulls":3},{"$f":"T('2 REPAIR ESTIMATOR'!D554:O554)","v":""},{"$nulls":7},{"$f":"'2 REPAIR ESTIMATOR'!P554","v":0},null,{"$f":"T('2 REPAIR ESTIMATOR'!S554)","v":""},{"$nulls":8},1,1,{"$f":"W620*X620","v":1}]
[{"$nulls":3},{"$f":"T('2 REPAIR ESTIMATOR'!D555:O555)","v":""},{"$nulls":7},{"$f":"'2 REPAIR ESTIMATOR'!P555","v":0},null,{"$f":"T('2 REPAIR ESTIMATOR'!S555)","v":""},{"$nulls":8},1,1,1]
[{"$nulls":3},{"$f":"T('2 REPAIR ESTIMATOR'!D556:O556)","v":""},{"$nulls":7},{"$f":"'2 REPAIR ESTIMATOR'!P556","v":0},null,{"$f":"T('2 REPAIR ESTIMATOR'!S556)","v":""},{"$nulls":8},1,1,1]
[{"$nulls":3},{"$f":"T('2 REPAIR ESTIMATOR'!D557:O557)","v":""},{"$nulls":7},{"$f":"'2 REPAIR ESTIMATOR'!P557","v":0},null,{"$f":"T('2 REPAIR ESTIMATOR'!S557)","v":""},{"$nulls":8},1,1,1]
[{"$nulls":3},{"$f":"T('2 REPAIR ESTIMATOR'!D558:O558)","v":""},{"$nulls":7},{"$f":"'2 REPAIR ESTIMATOR'!P558","v":0},null,{"$f":"T('2 REPAIR ESTIMATOR'!S558)","v":""},{"$nulls":8},1,1,1]
[{"$nulls":3},{"$f":"T('2 REPAIR ESTIMATOR'!D559:O559)","v":""},{"$nulls":7},{"$f":"'2 REPAIR ESTIMATOR'!P559","v":0},null,{"$f":"T('2 REPAIR ESTIMATOR'!S559)","v":""},{"$nulls":8},1,1,1]
[{"$nulls":3},{"$f":"T('2 REPAIR ESTIMATOR'!D560:O560)","v":""},{"$nulls":7},{"$f":"'2 REPAIR ESTIMATOR'!P560","v":0},null,{"$f":"T('2 REPAIR ESTIMATOR'!S560)","v":""},{"$nulls":8},1,1,1]
[{"$nulls":3},{"$f":"T('2 REPAIR ESTIMATOR'!D561:O561)","v":""},{"$nulls":7},{"$f":"'2 REPAIR ESTIMATOR'!P561","v":0},null,{"$f":"T('2 REPAIR ESTIMATOR'!S561)","v":""},{"$nulls":8},1,1,1]
[{"$nulls":3},{"$f":"T('2 REPAIR ESTIMATOR'!D562:O562)","v":""},{"$nulls":7},{"$f":"'2 REPAIR ESTIMATOR'!P562","v":0},null,{"$f":"T('2 REPAIR ESTIMATOR'!S562)","v":""},{"$nulls":8},1,1,1]
[{"$nulls":3},{"$f":"T('2 REPAIR ESTIMATOR'!D563:O563)","v":""},{"$nulls":7},{"$f":"'2 REPAIR ESTIMATOR'!P563","v":0},null,{"$f":"T('2 REPAIR ESTIMATOR'!S563)","v":""},{"$nulls":8},1,1,1]
[{"$nulls":3},{"$f":"T('2 REPAIR ESTIMATOR'!D564:O564)","v":""},{"$nulls":7},{"$f":"'2 REPAIR ESTIMATOR'!P564","v":0},null,{"$f":"T('2 REPAIR ESTIMATOR'!S564)","v":""},{"$nulls":8},1,1,1]
[{"$nulls":3},{"$f":"T('2 REPAIR ESTIMATOR'!D565:O565)","v":""},{"$nulls":7},{"$f":"'2 REPAIR ESTIMATOR'!P565","v":0},null,{"$f":"T('2 REPAIR ESTIMATOR'!S565)","v":""},{"$nulls":8},1,1,1]
[{"$nulls":3},{"$f":"T('2 REPAIR ESTIMATOR'!D566:O566)","v":""},{"$nulls":7},{"$f":"'2 REPAIR ESTIMATOR'!P566","v":0},null,{"$f":"T('2 REPAIR ESTIMATOR'!S566)","v":""},{"$nulls":8},1,1,1]
[{"$nulls":3},{"$f":"T('2 REPAIR ESTIMATOR'!D567:O567)","v":""},{"$nulls":7},{"$f":"'2 REPAIR ESTIMATOR'!P567","v":0},null,{"$f":"T('2 REPAIR ESTIMATOR'!S567)","v":""},{"$nulls":8},1,1,1]
[{"$nulls":3},{"$f":"T('2 REPAIR ESTIMATOR'!D568:O568)","v":""},{"$nulls":7},{"$f":"'2 REPAIR ESTIMATOR'!P568","v":0},null,{"$f":"T('2 REPAIR ESTIMATOR'!S568)","v":""},{"$nulls":8},1,1,1]
[{"$nulls":3},{"$f":"T('2 REPAIR ESTIMATOR'!D569:O569)","v":""},{"$nulls":7},{"$f":"'2 REPAIR ESTIMATOR'!P569","v":0},null,{"$f":"T('2 REPAIR ESTIMATOR'!S569)","v":""},{"$nulls":8},1,{"$f":"IF(Scope11_Setting=\"Shown\",1,0)","v":1},1]
[{"$nulls":3},{"$f":"T('2 REPAIR ESTIMATOR'!D570:O570)","v":""},{"$nulls":7},{"$f":"'2 REPAIR ESTIMATOR'!P570","v":0},null,{"$f":"T('2 REPAIR ESTIMATOR'!S570)","v":""},{"$nulls":8},1,1,1]
[{"$nulls":3},{"$f":"T('2 REPAIR ESTIMATOR'!D571:O571)","v":""},{"$nulls":7},{"$f":"'2 REPAIR ESTIMATOR'!P571","v":0},null,{"$f":"T('2 REPAIR ESTIMATOR'!S571)","v":""},{"$nulls":8},1,1,1]
[{"$nulls":3},{"$f":"T('2 REPAIR ESTIMATOR'!D572:O572)","v":""},{"$nulls":7},{"$f":"'2 REPAIR ESTIMATOR'!P572","v":0},null,{"$f":"T('2 REPAIR ESTIMATOR'!S572)","v":""},{"$nulls":8},1,1,1]
[{"$nulls":3},{"$f":"T('2 REPAIR ESTIMATOR'!D573:O573)","v":""},{"$nulls":7},{"$f":"'2 REPAIR ESTIMATOR'!P573","v":0},null,{"$f":"T('2 REPAIR ESTIMATOR'!S573)","v":""},{"$nulls":8},1,1,1]
[{"$nulls":3},{"$f":"T('2 REPAIR ESTIMATOR'!D574:O574)","v":""},{"$nulls":7},{"$f":"'2 REPAIR ESTIMATOR'!P574","v":0},null,{"$f":"T('2 REPAIR ESTIMATOR'!S574)","v":""},{"$nulls":8},1,1,1]
[{"$nulls":3},{"$f":"T('2 REPAIR ESTIMATOR'!D575:O575)","v":""},{"$nulls":7},{"$f":"'2 REPAIR ESTIMATOR'!P575","v":0},null,{"$f":"T('2 REPAIR ESTIMATOR'!S575)","v":""},{"$nulls":8},1,1,1]
[{"$nulls":3},{"$f":"T('2 REPAIR ESTIMATOR'!D576:O576)","v":""},{"$nulls":7},{"$f":"'2 REPAIR ESTIMATOR'!P576","v":0},null,{"$f":"T('2 REPAIR ESTIMATOR'!S576)","v":""},{"$nulls":8},1,1,1]
[{"$nulls":3},{"$f":"T('2 REPAIR ESTIMATOR'!D577:O577)","v":""},{"$nulls":7},{"$f":"'2 REPAIR ESTIMATOR'!P577","v":0},null,{"$f":"T('2 REPAIR ESTIMATOR'!S577)","v":""},{"$nulls":8},1,1,1]
[{"$nulls":22},{"$f":"W645","v":7},1,7]
[{"$nulls":3},{"$f":"UPPER(CONCATENATE(\"Miscellaneous \",D603,\" Items\"))","v":"MISCELLANEOUS LANDSCAPING ITEMS"},{"$nulls":18},{"$f":"SUM(W646:W655)","v":7},1,7]
[{"$nulls":3},1,"Remove and dispose of existing bushes and plantings on the front side of the home.","Demolish and remove existing bushes and plantings on the front side of the home.","Demolish and remove existing bushes and plantings on the front side of the home.","Demolish and remove existing bushes and plantings on the front side of the home.","Demolish and remove existing bushes and plantings on the front side of the home.","Demolish and remove existing bushes and plantings on the front side of the home.","Demolish and remove existing bushes and plantings on the front side of the home.","Demolish and remove existing bushes and plantings on the front side of the home.","Demolish and remove existing bushes and plantings on the front side of the home.","Demolish and remove existing bushes and plantings on the front side of the home.","Demolish and remove existing bushes and plantings on the front side of the home.","Demolish and remove existing bushes and plantings on the front side of the home.","Demolish and remove existing bushes and plantings on the front side of the home.","Demolish and remove existing bushes and plantings on the front side of the home.","Demolish and remove existing bushes and plantings on the front side of the home.","Demolish and remove existing bushes and plantings on the front side of the home.","Demolish and remove existing bushes and plantings on the front side of the home.","Demolish and remove existing bushes and plantings on the front side of the home.",{"$f":"IF(E646<>\"\",1,0)*W603","v":1},1,1]
[{"$nulls":3},2,"Clean front and back yards of debris and trash.","Clean front and back yards of debris and trash.","Clean front and back yards of debris and trash.","Clean front and back yards of debris and trash.","Clean front and back yards of debris and trash.","Clean front and back yards of debris and trash.","Clean front and back yards of debris and trash.","Clean front and back yards of debris and trash.","Clean front and back yards of debris and trash.","Clean front and back yards of debris and trash.","Clean front and back yards of debris and trash.","Clean front and back yards of debris and trash.","Clean front and back yards of debris and trash.","Clean front and back yards of debris and trash.","Clean front and back yards of debris and trash.","Clean front and back yards of debris and trash.","Clean front and back yards of debris and trash.","Clean front and back yards of debris and trash.",{"$f":"IF(E647<>\"\",1,0)*W603","v":1},1,1]
[{"$nulls":3},3,"Install (5) 1-gallon bushes in front planting beds. (OFCI)","Install (5) 1-gallon bushes in front planting beds. (OFCI)","Install (5) 1-gallon bushes in front planting beds. (OFCI)","Install (5) 1-gallon bushes in front planting beds. (OFCI)","Install (5) 1-gallon bushes in front planting beds. (OFCI)","Install (5) 1-gallon bushes in front planting beds. (OFCI)","Install (5) 1-gallon bushes in front planting beds. (OFCI)","Install (5) 1-gallon bushes in front planting beds. (OFCI)","Install (5) 1-gallon bushes in front planting beds. (OFCI)","Install (5) 1-gallon bushes in front planting beds. (OFCI)","Install (5) 1-gallon bushes in front planting beds. (OFCI)","Install (5) 1-gallon bushes in front planting beds. (OFCI)","Install (5) 1-gallon bushes in front planting beds. (OFCI)","Install (5) 1-gallon bushes in front planting beds. (OFCI)","Install (5) 1-gallon bushes in front planting beds. (OFCI)","Install (5) 1-gallon bushes in front planting beds. (OFCI)","Install (5) 1-gallon bushes in front planting beds. (OFCI)","Install (5) 1-gallon bushes in front planting beds. (OFCI)",{"$f":"IF(E648<>\"\",1,0)*W603","v":1},1,1]
[{"$nulls":3},4,"(4) Install (10) ½ gallon plantings/annuals/perennials in front planting beds. (OFCI)","(4) Install (10) ½ gallon plantings/annuals/perennials in front planting beds. (OFCI)","(4) Install (10) ½ gallon plantings/annuals/perennials in front planting beds. (OFCI)","(4) Install (10) ½ gallon plantings/annuals/perennials in front planting beds. (OFCI)","(4) Install (10) ½ gallon plantings/annuals/perennials in front planting beds. (OFCI)","(4) Install (10) ½ gallon plantings/annuals/perennials in front planting beds. (OFCI)","(4) Install (10) ½ gallon plantings/annuals/perennials in front planting beds. (OFCI)","(4) Install (10) ½ gallon plantings/annuals/perennials in front planting beds. (OFCI)","(4) Install (10) ½ gallon plantings/annuals/perennials in front planting beds. (OFCI)","(4) Install (10) ½ gallon plantings/annuals/perennials in front planting beds. (OFCI)","(4) Install (10) ½ gallon plantings/annuals/perennials in front planting beds. (OFCI)","(4) Install (10) ½ gallon plantings/annuals/perennials in front planting beds. (OFCI)","(4) Install (10) ½ gallon plantings/annuals/perennials in front planting beds. (OFCI)","(4) Install (10) ½ gallon plantings/annuals/perennials in front planting beds. (OFCI)","(4) Install (10) ½ gallon plantings/annuals/perennials in front planting beds. (OFCI)","(4) Install (10) ½ gallon plantings/annuals/perennials in front planting beds. (OFCI)","(4) Install (10) ½ gallon plantings/annuals/perennials in front planting beds. (OFCI)","(4) Install (10) ½ gallon plantings/annuals/perennials in front planting beds. (OFCI)",{"$f":"IF(E649<>\"\",1,0)*W603","v":1},1,1]
[{"$nulls":3},5,"Install filter fabric over in front planting beds. (OFCI)","Install filter fabric over in front planting beds. (OFCI)","Install filter fabric over in front planting beds. (OFCI)","Install filter fabric over in front planting beds. (OFCI)","Install filter fabric over in front planting beds. (OFCI)","Install filter fabric over in front planting beds. (OFCI)","Install filter fabric over in front planting beds. (OFCI)","Install filter fabric over in front planting beds. (OFCI)","Install filter fabric over in front planting beds. (OFCI)","Install filter fabric over in front planting beds. (OFCI)","Install filter fabric over in front planting beds. (OFCI)","Install filter fabric over in front planting beds. (OFCI)","Install filter fabric over in front planting beds. (OFCI)","Install filter fabric over in front planting beds. (OFCI)","Install filter fabric over in front planting beds. (OFCI)","Install filter fabric over in front planting beds. (OFCI)","Install filter fabric over in front planting beds. (OFCI)","Install filter fabric over in front planting beds. (OFCI)",{"$f":"IF(E650<>\"\",1,0)*W603","v":1},1,1]
[{"$nulls":3},6,"Install black mulch beds in front planting beds. (OFCI)","Install black mulch beds in front planting beds. (OFCI)","Install black mulch beds in front planting beds. (OFCI)","Install black mulch beds in front planting beds. (OFCI)","Install black mulch beds in front planting beds. (OFCI)","Install black mulch beds in front planting beds. (OFCI)","Install black mulch beds in front planting beds. (OFCI)","Install black mulch beds in front planting beds. (OFCI)","Install black mulch beds in front planting beds. (OFCI)","Install black mulch beds in front planting beds. (OFCI)","Install black mulch beds in front planting beds. (OFCI)","Install black mulch beds in front planting beds. (OFCI)","Install black mulch beds in front planting beds. (OFCI)","Install black mulch beds in front planting beds. (OFCI)","Install black mulch beds in front planting beds. (OFCI)","Install black mulch beds in front planting beds. (OFCI)","Install black mulch beds in front planting beds. (OFCI)","Install black mulch beds in front planting beds. (OFCI)",{"$f":"IF(E651<>\"\",1,0)*W603","v":1},1,1]
[{"$nulls":3},7,"Water new plantings as recommended by planting specifications.",{"$nulls":17},{"$f":"IF(E652<>\"\",1,0)*W603","v":1},1,1]
[{"$nulls":3},8,{"$nulls":18},{"$f":"IF(E653<>\"\",1,0)*W603","v":0},1,0]
[{"$nulls":3},9,{"$nulls":18},{"$f":"IF(E654<>\"\",1,0)*W603","v":0},1,0]
[{"$nulls":3},10,{"$nulls":18},{"$f":"IF(E655<>\"\",1,0)*W603","v":0},1,0]
[{"$nulls":22},{"$f":"W603","v":1},1,1]
[{"$nulls":3},{"$f":"UPPER(CONCATENATE(\"TOTAL \",D603))","v":"TOTAL LANDSCAPING"},{"$nulls":18},{"$f":"W603","v":1},1,1]
[{"$nulls":22},{"$f":"W603","v":1},1,1]
[{"$nulls":3},{"$f":"T('2 REPAIR ESTIMATOR'!D582:O582)","v":"MISC. EXTERIOR ITEMS"},{"$nulls":7},{"$f":"SUM(L660:M699)","v":8},{"$nulls":10},{"$f":"IF(L659>0,1,0)","v":1},{"$f":"IF(Scope12_Setting=\"Shown\",1,0)","v":1},1]
[{"$nulls":3},{"$f":"T('2 REPAIR ESTIMATOR'!D583:O583)","v":"Misc. Ext Improvements bid/allowance"},{"$nulls":7},{"$f":"'2 REPAIR ESTIMATOR'!P583","v":0},null,{"$f":"T('2 REPAIR ESTIMATOR'!S583)","v":"ls"},{"$nulls":8},{"$f":"IF(L660=\"\",0,1)","v":1},1,1]
[{"$nulls":3},{"$f":"T('2 REPAIR ESTIMATOR'!D584:O584)","v":"Miscellaneous Improvements"},{"$nulls":7},{"$f":"'2 REPAIR ESTIMATOR'!P584","v":0},null,{"$f":"T('2 REPAIR ESTIMATOR'!S584)","v":""},{"$nulls":8},{"$f":"IF(L661=\"\",0,1)","v":1},1,1]
[{"$nulls":3},{"$f":"T('2 REPAIR ESTIMATOR'!D585:O585)","v":"New mailbox"},{"$nulls":7},{"$f":"'2 REPAIR ESTIMATOR'!P585","v":1},null,{"$f":"T('2 REPAIR ESTIMATOR'!S585)","v":"ea"},{"$nulls":8},1,1,1]
[{"$nulls":3},{"$f":"T('2 REPAIR ESTIMATOR'!D586:O586)","v":"New address #"},{"$nulls":7},{"$f":"'2 REPAIR ESTIMATOR'!P586","v":1},null,{"$f":"T('2 REPAIR ESTIMATOR'!S586)","v":"ea"},{"$nulls":8},1,1,1]
[{"$nulls":3},{"$f":"T('2 REPAIR ESTIMATOR'!D587:O587)","v":"Shutters"},{"$nulls":7},{"$f":"'2 REPAIR ESTIMATOR'!P587","v":6},null,{"$f":"T('2 REPAIR ESTIMATOR'!S587)","v":"ea"},{"$nulls":8},1,1,1]
[{"$nulls":3},{"$f":"T('2 REPAIR ESTIMATOR'!D588:O588)","v":""},{"$nulls":7},{"$f":"'2 REPAIR ESTIMATOR'!P588","v":0},null,{"$f":"T('2 REPAIR ESTIMATOR'!S588)","v":""},{"$nulls":8},1,1,1]
[{"$nulls":3},{"$f":"T('2 REPAIR ESTIMATOR'!D589:O589)","v":"Fencing"},{"$nulls":7},{"$f":"'2 REPAIR ESTIMATOR'!P589","v":0},null,{"$f":"T('2 REPAIR ESTIMATOR'!S589)","v":""},{"$nulls":8},1,1,1]
[{"$nulls":3},{"$f":"T('2 REPAIR ESTIMATOR'!D590:O590)","v":"Chain link fencing"},{"$nulls":7},{"$f":"'2 REPAIR ESTIMATOR'!P590","v":0},null,{"$f":"T('2 REPAIR ESTIMATOR'!S590)","v":"lf"},{"$nulls":8},1,1,1]
[{"$nulls":3},{"$f":"T('2 REPAIR ESTIMATOR'!D591:O591)","v":"Wood fencing"},{"$nulls":7},{"$f":"'2 REPAIR ESTIMATOR'!P591","v":0},null,{"$f":"T('2 REPAIR ESTIMATOR'!S591)","v":"lf"},{"$nulls":8},1,1,1]
[{"$nulls":3},{"$f":"T('2 REPAIR ESTIMATOR'!D592:O592)","v":""},{"$nulls":7},{"$f":"'2 REPAIR ESTIMATOR'!P592","v":0},null,{"$f":"T('2 REPAIR ESTIMATOR'!S592)","v":""},{"$nulls":8},1,1,1]
[{"$nulls":3},{"$f":"T('2 REPAIR ESTIMATOR'!D593:O593)","v":"Misc. Exterior Structures"},{"$nulls":7},{"$f":"'2 REPAIR ESTIMATOR'!P593","v":0},null,{"$f":"T('2 REPAIR ESTIMATOR'!S593)","v":""},{"$nulls":8},1,1,1]
[{"$nulls":3},{"$f":"T('2 REPAIR ESTIMATOR'!D594:O594)","v":"Premanufactured carport"},{"$nulls":7},{"$f":"'2 REPAIR ESTIMATOR'!P594","v":0},null,{"$f":"T('2 REPAIR ESTIMATOR'!S594)","v":"ea"},{"$nulls":8},1,1,1]
[{"$nulls":3},{"$f":"T('2 REPAIR ESTIMATOR'!D595:O595)","v":"Storage shed, wood"},{"$nulls":7},{"$f":"'2 REPAIR ESTIMATOR'!P595","v":0},null,{"$f":"T('2 REPAIR ESTIMATOR'!S595)","v":"ea"},{"$nulls":8},1,1,1]
[{"$nulls":3},{"$f":"T('2 REPAIR ESTIMATOR'!D596:O596)","v":"Gazebo"},{"$nulls":7},{"$f":"'2 REPAIR ESTIMATOR'!P596","v":0},null,{"$f":"T('2 REPAIR ESTIMATOR'!S596)","v":"sf"},{"$nulls":8},1,1,1]
[{"$nulls":3},{"$f":"T('2 REPAIR ESTIMATOR'!D597:O597)","v":""},{"$nulls":7},{"$f":"'2 REPAIR ESTIMATOR'!P597","v":0},null,{"$f":"T('2 REPAIR ESTIMATOR'!S597)","v":""},{"$nulls":8},1,1,1]
[{"$nulls":3},{"$f":"T('2 REPAIR ESTIMATOR'!D598:O598)","v":"Pools"},{"$nulls":7},{"$f":"'2 REPAIR ESTIMATOR'!P598","v":0},null,{"$f":"T('2 REPAIR ESTIMATOR'!S598)","v":""},{"$nulls":8},1,1,1]
[{"$nulls":3},{"$f":"T('2 REPAIR ESTIMATOR'!D599:O599)","v":"New Pool structure"},{"$nulls":7},{"$f":"'2 REPAIR ESTIMATOR'!P599","v":0},null,{"$f":"T('2 REPAIR ESTIMATOR'!S599)","v":"sf"},{"$nulls":8},1,1,1]
[{"$nulls":3},{"$f":"T('2 REPAIR ESTIMATOR'!D600:O600)","v":"Pool heater/motor"},{"$nulls":7},{"$f":"'2 REPAIR ESTIMATOR'!P600","v":0},null,{"$f":"T('2 REPAIR ESTIMATOR'!S600)","v":"ea"},{"$nulls":8},1,1,1]
[{"$nulls":3},{"$f":"T('2 REPAIR ESTIMATOR'!D601:O601)","v":"Pool filter system"},{"$nulls":7},{"$f":"'2 REPAIR ESTIMATOR'!P601","v":0},null,{"$f":"T('2 REPAIR ESTIMATOR'!S601)","v":"ea"},{"$nulls":8},1,1,1]
[{"$nulls":3},{"$f":"T('2 REPAIR ESTIMATOR'!D602:O602)","v":"Replaster existing pool wall"},{"$nulls":7},{"$f":"'2 REPAIR ESTIMATOR'!P602","v":0},null,{"$f":"T('2 REPAIR ESTIMATOR'!S602)","v":"sf"},{"$nulls":8},1,1,1]
[{"$nulls":3},{"$f":"T('2 REPAIR ESTIMATOR'!D603:O603)","v":""},{"$nulls":7},{"$f":"'2 REPAIR ESTIMATOR'!P603","v":0},null,{"$f":"T('2 REPAIR ESTIMATOR'!S603)","v":""},{"$nulls":8},1,1,1]
[{"$nulls":3},{"$f":"T('2 REPAIR ESTIMATOR'!D604:O604)","v":""},{"$nulls":7},{"$f":"'2 REPAIR ESTIMATOR'!P604","v":0},null,{"$f":"T('2 REPAIR ESTIMATOR'!S604)","v":""},{"$nulls":8},1,1,1]
[{"$nulls":3},{"$f":"T('2 REPAIR ESTIMATOR'!D605:O605)","v":""},{"$nulls":7},{"$f":"'2 REPAIR ESTIMATOR'!P605","v":0},null,{"$f":"T('2 REPAIR ESTIMATOR'!S605)","v":""},{"$nulls":8},1,1,1]
[{"$nulls":3},{"$f":"T('2 REPAIR ESTIMATOR'!D606:O606)","v":""},{"$nulls":7},{"$f":"'2 REPAIR ESTIMATOR'!P606","v":0},null,{"$f":"T('2 REPAIR ESTIMATOR'!S606)","v":""},{"$nulls":8},1,1,1]
[{"$nulls":3},{"$f":"T('2 REPAIR ESTIMATOR'!D607:O607)","v":""},{"$nulls":7},{"$f":"'2 REPAIR ESTIMATOR'!P607","v":0},null,{"$f":"T('2 REPAIR ESTIMATOR'!S607)","v":""},{"$nulls":8},1,1,{"$f":"W684*X684","v":1}]
[{"$nulls":3},{"$f":"T('2 REPAIR ESTIMATOR'!D608:O608)","v":""},{"$nulls":7},{"$f":"'2 REPAIR ESTIMATOR'!P608","v":0},null,{"$f":"T('2 REPAIR ESTIMATOR'!S608)","v":""},{"$nulls":8},1,1,1]
[{"$nulls":3},{"$f":"T('2 REPAIR ESTIMATOR'!D609:O609)","v":""},{"$nulls":7},{"$f":"'2 REPAIR ESTIMATOR'!P609","v":0},null,{"$f":"T('2 REPAIR ESTIMATOR'!S609)","v":""},{"$nulls":8},1,1,1]
[{"$nulls":3},{"$f":"T('2 REPAIR ESTIMATOR'!D610:O610)","v":""},{"$nulls":7},{"$f":"'2 REPAIR ESTIMATOR'!P610","v":0},null,{"$f":"T('2 REPAIR ESTIMATOR'!S610)","v":""},{"$nulls":8},1,1,1]
[{"$nulls":3},{"$f":"T('2 REPAIR ESTIMATOR'!D611:O611)","v":""},{"$nulls":7},{"$f":"'2 REPAIR ESTIMATOR'!P611","v":0},null,{"$f":"T('2 REPAIR ESTIMATOR'!S611)","v":""},{"$nulls":8},1,1,1]
[{"$nulls":3},{"$f":"T('2 REPAIR ESTIMATOR'!D612:O612)","v":""},{"$nulls":7},{"$f":"'2 REPAIR ESTIMATOR'!P612","v":0},null,{"$f":"T('2 REPAIR ESTIMATOR'!S612)","v":""},{"$nulls":8},1,1,1]
[{"$nulls":3},{"$f":"T('2 REPAIR ESTIMATOR'!D613:O613)","v":""},{"$nulls":7},{"$f":"'2 REPAIR ESTIMATOR'!P613","v":0},null,{"$f":"T('2 REPAIR ESTIMATOR'!S613)","v":""},{"$nulls":8},1,1,1]
[{"$nulls":3},{"$f":"T('2 REPAIR ESTIMATOR'!D614:O614)","v":""},{"$nulls":7},{"$f":"'2 REPAIR ESTIMATOR'!P614","v":0},null,{"$f":"T('2 REPAIR ESTIMATOR'!S614)","v":""},{"$nulls":8},1,{"$f":"IF(Scope12_Setting=\"Shown\",1,0)","v":1},1]
[{"$nulls":3},{"$f":"T('2 REPAIR ESTIMATOR'!D615:O615)","v":""},{"$nulls":7},{"$f":"'2 REPAIR ESTIMATOR'!P615","v":0},null,{"$f":"T('2 REPAIR ESTIMATOR'!S615)","v":""},{"$nulls":8},1,1,1]
[{"$nulls":3},{"$f":"T('2 REPAIR ESTIMATOR'!D616:O616)","v":""},{"$nulls":7},{"$f":"'2 REPAIR ESTIMATOR'!P616","v":0},null,{"$f":"T('2 REPAIR ESTIMATOR'!S616)","v":""},{"$nulls":8},1,1,1]
[{"$nulls":3},{"$f":"T('2 REPAIR ESTIMATOR'!D617:O617)","v":""},{"$nulls":7},{"$f":"'2 REPAIR ESTIMATOR'!P617","v":0},null,{"$f":"T('2 REPAIR ESTIMATOR'!S617)","v":""},{"$nulls":8},1,1,1]
[{"$nulls":3},{"$f":"T('2 REPAIR ESTIMATOR'!D618:O618)","v":""},{"$nulls":7},{"$f":"'2 REPAIR ESTIMATOR'!P618","v":0},null,{"$f":"T('2 REPAIR ESTIMATOR'!S618)","v":""},{"$nulls":8},1,1,1]
[{"$nulls":3},{"$f":"T('2 REPAIR ESTIMATOR'!D619:O619)","v":""},{"$nulls":7},{"$f":"'2 REPAIR ESTIMATOR'!P619","v":0},null,{"$f":"T('2 REPAIR ESTIMATOR'!S619)","v":""},{"$nulls":8},1,1,1]
[{"$nulls":3},{"$f":"T('2 REPAIR ESTIMATOR'!D620:O620)","v":""},{"$nulls":7},{"$f":"'2 REPAIR ESTIMATOR'!P620","v":0},null,{"$f":"T('2 REPAIR ESTIMATOR'!S620)","v":""},{"$nulls":8},1,1,1]
[{"$nulls":3},{"$f":"T('2 REPAIR ESTIMATOR'!D621:O621)","v":""},{"$nulls":7},{"$f":"'2 REPAIR ESTIMATOR'!P621","v":0},null,{"$f":"T('2 REPAIR ESTIMATOR'!S621)","v":""},{"$nulls":8},1,1,1]
[{"$nulls":3},{"$f":"T('2 REPAIR ESTIMATOR'!D622:O622)","v":""},{"$nulls":7},{"$f":"'2 REPAIR ESTIMATOR'!P622","v":0},null,{"$f":"T('2 REPAIR ESTIMATOR'!S622)","v":""},{"$nulls":8},1,1,1]
[{"$nulls":22},{"$f":"W701","v":0},1,0]
[{"$nulls":3},{"$f":"UPPER(CONCATENATE(\"Miscellaneous \",D659,\" Items\"))","v":"MISCELLANEOUS MISC. EXTERIOR ITEMS ITEMS"},{"$nulls":18},{"$f":"SUM(W702:W711)","v":0},1,0]
[{"$nulls":3},1,{"$nulls":18},{"$f":"IF(E702<>\"\",1,0)*W659","v":0},1,0]
[{"$nulls":3},2,{"$nulls":18},{"$f":"IF(E703<>\"\",1,0)*W659","v":0},1,0]
[{"$nulls":3},3,{"$nulls":18},{"$f":"IF(E704<>\"\",1,0)*W659","v":0},1,0]
[{"$nulls":3},4,{"$nulls":18},{"$f":"IF(E705<>\"\",1,0)*W659","v":0},1,0]
[{"$nulls":3},5,{"$nulls":18},{"$f":"IF(E706<>\"\",1,0)*W659","v":0},1,0]
[{"$nulls":3},6,{"$nulls":18},{"$f":"IF(E707<>\"\",1,0)*W659","v":0},1,0]
[{"$nulls":3},7,{"$nulls":18},{"$f":"IF(E708<>\"\",1,0)*W659","v":0},1,0]
[{"$nulls":3},8,{"$nulls":18},{"$f":"IF(E709<>\"\",1,0)*W659","v":0},1,0]
[{"$nulls":3},9,{"$nulls":18},{"$f":"IF(E710<>\"\",1,0)*W659","v":0},1,0]
[{"$nulls":3},10,{"$nulls":18},{"$f":"IF(E711<>\"\",1,0)*W659","v":0},1,0]
[{"$nulls":22},{"$f":"W659","v":1},1,1]
[{"$nulls":3},{"$f":"UPPER(CONCATENATE(\"TOTAL \",D659))","v":"TOTAL MISC. EXTERIOR ITEMS"},{"$nulls":18},{"$f":"W659","v":1},1,1]
[{"$nulls":22},{"$f":"W659","v":1},1,1]
[{"$nulls":3},{"$f":"T('2 REPAIR ESTIMATOR'!D627:O627)","v":"FRAMING & DRYWALL"},{"$nulls":7},{"$f":"SUM(L716:M755)","v":1},{"$nulls":10},{"$f":"IF(L715>0,1,0)","v":1},{"$f":"IF(Scope13_Setting=\"Shown\",1,0)","v":1},1]
[{"$nulls":3},{"$f":"T('2 REPAIR ESTIMATOR'!D628:O628)","v":"Framing"},{"$nulls":7},{"$f":"'2 REPAIR ESTIMATOR'!P628","v":0},null,{"$f":"T('2 REPAIR ESTIMATOR'!S628)","v":""},{"$nulls":8},{"$f":"IF(L716=\"\",0,1)","v":1},1,1]
[{"$nulls":3},{"$f":"T('2 REPAIR ESTIMATOR'!D629:O629)","v":"Structural framing bid/allowance, case by case"},{"$nulls":7},{"$f":"'2 REPAIR ESTIMATOR'!P629","v":0},null,{"$f":"T('2 REPAIR ESTIMATOR'!S629)","v":"ls"},{"$nulls":8},{"$f":"IF(L717=\"\",0,1)","v":1},1,1]
[{"$nulls":3},{"$f":"T('2 REPAIR ESTIMATOR'!D630:O630)","v":"Subflooring, 3/4\" plywood"},{"$nulls":7},{"$f":"'2 REPAIR ESTIMATOR'!P630","v":0},null,{"$f":"T('2 REPAIR ESTIMATOR'!S630)","v":"sf"},{"$nulls":8},1,1,1]
[{"$nulls":3},{"$f":"T('2 REPAIR ESTIMATOR'!D631:O631)","v":"Interior wall framing"},{"$nulls":7},{"$f":"'2 REPAIR ESTIMATOR'!P631","v":0},null,{"$f":"T('2 REPAIR ESTIMATOR'!S631)","v":"sf"},{"$nulls":8},1,1,1]
[{"$nulls":3},{"$f":"T('2 REPAIR ESTIMATOR'!D632:O632)","v":"Structural/Exterior wall framing"},{"$nulls":7},{"$f":"'2 REPAIR ESTIMATOR'!P632","v":0},null,{"$f":"T('2 REPAIR ESTIMATOR'!S632)","v":"sf"},{"$nulls":8},1,1,1]
[{"$nulls":3},{"$f":"T('2 REPAIR ESTIMATOR'!D633:O633)","v":"Rough-in openings"},{"$nulls":7},{"$f":"'2 REPAIR ESTIMATOR'!P633","v":0},null,{"$f":"T('2 REPAIR ESTIMATOR'!S633)","v":"ea"},{"$nulls":8},1,1,1]
[{"$nulls":3},{"$f":"T('2 REPAIR ESTIMATOR'!D634:O634)","v":"Floor joists/ceiling joists"},{"$nulls":7},{"$f":"'2 REPAIR ESTIMATOR'!P634","v":0},null,{"$f":"T('2 REPAIR ESTIMATOR'!S634)","v":"sf"},{"$nulls":8},1,1,1]
[{"$nulls":3},{"$f":"T('2 REPAIR ESTIMATOR'!D635:O635)","v":"Roof framing/rafters"},{"$nulls":7},{"$f":"'2 REPAIR ESTIMATOR'!P635","v":0},null,{"$f":"T('2 REPAIR ESTIMATOR'!S635)","v":"sf"},{"$nulls":8},1,1,1]
[{"$nulls":3},{"$f":"T('2 REPAIR ESTIMATOR'!D636:O636)","v":"Open load bearing/structural wall"},{"$nulls":7},{"$f":"'2 REPAIR ESTIMATOR'!P636","v":0},null,{"$f":"T('2 REPAIR ESTIMATOR'!S636)","v":"ea"},{"$nulls":8},1,1,1]
[{"$nulls":3},{"$f":"T('2 REPAIR ESTIMATOR'!D637:O637)","v":"Insulation"},{"$nulls":7},{"$f":"'2 REPAIR ESTIMATOR'!P637","v":0},null,{"$f":"T('2 REPAIR ESTIMATOR'!S637)","v":""},{"$nulls":8},1,1,1]
[{"$nulls":3},{"$f":"T('2 REPAIR ESTIMATOR'!D638:O638)","v":"Insulation bid/allowance"},{"$nulls":7},{"$f":"'2 REPAIR ESTIMATOR'!P638","v":0},null,{"$f":"T('2 REPAIR ESTIMATOR'!S638)","v":"ls"},{"$nulls":8},1,1,1]
[{"$nulls":3},{"$f":"T('2 REPAIR ESTIMATOR'!D639:O639)","v":"Wall insulation"},{"$nulls":7},{"$f":"'2 REPAIR ESTIMATOR'!P639","v":0},null,{"$f":"T('2 REPAIR ESTIMATOR'!S639)","v":"sf"},{"$nulls":8},1,1,1]
[{"$nulls":3},{"$f":"T('2 REPAIR ESTIMATOR'!D640:O640)","v":"Floor insulation"},{"$nulls":7},{"$f":"'2 REPAIR ESTIMATOR'!P640","v":0},null,{"$f":"T('2 REPAIR ESTIMATOR'!S640)","v":"sf"},{"$nulls":8},1,1,1]
[{"$nulls":3},{"$f":"T('2 REPAIR ESTIMATOR'!D641:O641)","v":"Attic insulation, blown-in"},{"$nulls":7},{"$f":"'2 REPAIR ESTIMATOR'!P641","v":0},null,{"$f":"T('2 REPAIR ESTIMATOR'!S641)","v":"sf"},{"$nulls":8},1,1,1]
[{"$nulls":3},{"$f":"T('2 REPAIR ESTIMATOR'!D642:O642)","v":"Walls/Ceilings"},{"$nulls":7},{"$f":"'2 REPAIR ESTIMATOR'!P642","v":0},null,{"$f":"T('2 REPAIR ESTIMATOR'!S642)","v":""},{"$nulls":8},1,1,1]
[{"$nulls":3},{"$f":"T('2 REPAIR ESTIMATOR'!D643:O643)","v":"Drywall bid/allowance, case by case"},{"$nulls":7},{"$f":"'2 REPAIR ESTIMATOR'!P643","v":1},null,{"$f":"T('2 REPAIR ESTIMATOR'!S643)","v":"ls"},{"$nulls":8},1,1,1]
[{"$nulls":3},{"$f":"T('2 REPAIR ESTIMATOR'!D644:O644)","v":"Drywall wallboard, 1/2\" thick, finish one side"},{"$nulls":7},{"$f":"'2 REPAIR ESTIMATOR'!P644","v":0},null,{"$f":"T('2 REPAIR ESTIMATOR'!S644)","v":"sf"},{"$nulls":8},1,1,1]
[{"$nulls":3},{"$f":"T('2 REPAIR ESTIMATOR'!D645:O645)","v":"Drywall ceilings, 1/2\" thick"},{"$nulls":7},{"$f":"'2 REPAIR ESTIMATOR'!P645","v":0},null,{"$f":"T('2 REPAIR ESTIMATOR'!S645)","v":"sf"},{"$nulls":8},1,1,1]
[{"$nulls":3},{"$f":"T('2 REPAIR ESTIMATOR'!D646:O646)","v":"Skim coating/texturing walls"},{"$nulls":7},{"$f":"'2 REPAIR ESTIMATOR'!P646","v":0},null,{"$f":"T('2 REPAIR ESTIMATOR'!S646)","v":"sf"},{"$nulls":8},1,1,1]
[{"$nulls":3},{"$f":"T('2 REPAIR ESTIMATOR'!D647:O647)","v":"Skim coating/texturing ceilings"},{"$nulls":7},{"$f":"'2 REPAIR ESTIMATOR'!P647","v":0},null,{"$f":"T('2 REPAIR ESTIMATOR'!S647)","v":"sf"},{"$nulls":8},1,1,1]
[{"$nulls":3},{"$f":"T('2 REPAIR ESTIMATOR'!D648:O648)","v":""},{"$nulls":7},{"$f":"'2 REPAIR ESTIMATOR'!P648","v":0},null,{"$f":"T('2 REPAIR ESTIMATOR'!S648)","v":""},{"$nulls":8},1,1,1]
[{"$nulls":3},{"$f":"T('2 REPAIR ESTIMATOR'!D649:O649)","v":""},{"$nulls":7},{"$f":"'2 REPAIR ESTIMATOR'!P649","v":0},null,{"$f":"T('2 REPAIR ESTIMATOR'!S649)","v":""},{"$nulls":8},1,1,1]
[{"$nulls":3},{"$f":"T('2 REPAIR ESTIMATOR'!D650:O650)","v":""},{"$nulls":7},{"$f":"'2 REPAIR ESTIMATOR'!P650","v":0},null,{"$f":"T('2 REPAIR ESTIMATOR'!S650)","v":""},{"$nulls":8},1,1,1]
[{"$nulls":3},{"$f":"T('2 REPAIR ESTIMATOR'!D651:O651)","v":""},{"$nulls":7},{"$f":"'2 REPAIR ESTIMATOR'!P651","v":0},null,{"$f":"T('2 REPAIR ESTIMATOR'!S651)","v":""},{"$nulls":8},1,1,1]
[{"$nulls":3},{"$f":"T('2 REPAIR ESTIMATOR'!D652:O652)","v":""},{"$nulls":7},{"$f":"'2 REPAIR ESTIMATOR'!P652","v":0},null,{"$f":"T('2 REPAIR ESTIMATOR'!S652)","v":""},{"$nulls":8},1,1,1]
[{"$nulls":3},{"$f":"T('2 REPAIR ESTIMATOR'!D653:O653)","v":""},{"$nulls":7},{"$f":"'2 REPAIR ESTIMATOR'!P653","v":0},null,{"$f":"T('2 REPAIR ESTIMATOR'!S653)","v":""},{"$nulls":8},1,1,1]
[{"$nulls":3},{"$f":"T('2 REPAIR ESTIMATOR'!D654:O654)","v":""},{"$nulls":7},{"$f":"'2 REPAIR ESTIMATOR'!P654","v":0},null,{"$f":"T('2 REPAIR ESTIMATOR'!S654)","v":""},{"$nulls":8},1,1,1]
[{"$nulls":3},{"$f":"T('2 REPAIR ESTIMATOR'!D655:O655)","v":""},{"$nulls":7},{"$f":"'2 REPAIR ESTIMATOR'!P655","v":0},null,{"$f":"T('2 REPAIR ESTIMATOR'!S655)","v":""},{"$nulls":8},1,1,1]
[{"$nulls":3},{"$f":"T('2 REPAIR ESTIMATOR'!D656:O656)","v":""},{"$nulls":7},{"$f":"'2 REPAIR ESTIMATOR'!P656","v":0},null,{"$f":"T('2 REPAIR ESTIMATOR'!S656)","v":""},{"$nulls":8},1,1,1]
[{"$nulls":3},{"$f":"T('2 REPAIR ESTIMATOR'!D657:O657)","v":""},{"$nulls":7},{"$f":"'2 REPAIR ESTIMATOR'!P657","v":0},null,{"$f":"T('2 REPAIR ESTIMATOR'!S657)","v":""},{"$nulls":8},1,1,1]
[{"$nulls":3},{"$f":"T('2 REPAIR ESTIMATOR'!D658:O658)","v":""},{"$nulls":7},{"$f":"'2 REPAIR ESTIMATOR'!P658","v":0},null,{"$f":"T('2 REPAIR ESTIMATOR'!S658)","v":""},{"$nulls":8},1,1,1]
[{"$nulls":3},{"$f":"T('2 REPAIR ESTIMATOR'!D659:O659)","v":""},{"$nulls":7},{"$f":"'2 REPAIR ESTIMATOR'!P659","v":0},null,{"$f":"T('2 REPAIR ESTIMATOR'!S659)","v":""},{"$nulls":8},1,{"$f":"IF(Scope13_Setting=\"Shown\",1,0)","v":1},1]
[{"$nulls":3},{"$f":"T('2 REPAIR ESTIMATOR'!D660:O660)","v":""},{"$nulls":7},{"$f":"'2 REPAIR ESTIMATOR'!P660","v":0},null,{"$f":"T('2 REPAIR ESTIMATOR'!S660)","v":""},{"$nulls":8},1,1,{"$f":"W748*X748","v":1}]
[{"$nulls":3},{"$f":"T('2 REPAIR ESTIMATOR'!D661:O661)","v":""},{"$nulls":7},{"$f":"'2 REPAIR ESTIMATOR'!P661","v":0},null,{"$f":"T('2 REPAIR ESTIMATOR'!S661)","v":""},{"$nulls":8},1,1,1]
[{"$nulls":3},{"$f":"T('2 REPAIR ESTIMATOR'!D662:O662)","v":""},{"$nulls":7},{"$f":"'2 REPAIR ESTIMATOR'!P662","v":0},null,{"$f":"T('2 REPAIR ESTIMATOR'!S662)","v":""},{"$nulls":8},1,1,1]
[{"$nulls":3},{"$f":"T('2 REPAIR ESTIMATOR'!D663:O663)","v":""},{"$nulls":7},{"$f":"'2 REPAIR ESTIMATOR'!P663","v":0},null,{"$f":"T('2 REPAIR ESTIMATOR'!S663)","v":""},{"$nulls":8},1,1,1]
[{"$nulls":3},{"$f":"T('2 REPAIR ESTIMATOR'!D664:O664)","v":""},{"$nulls":7},{"$f":"'2 REPAIR ESTIMATOR'!P664","v":0},null,{"$f":"T('2 REPAIR ESTIMATOR'!S664)","v":""},{"$nulls":8},1,1,1]
[{"$nulls":3},{"$f":"T('2 REPAIR ESTIMATOR'!D665:O665)","v":""},{"$nulls":7},{"$f":"'2 REPAIR ESTIMATOR'!P665","v":0},null,{"$f":"T('2 REPAIR ESTIMATOR'!S665)","v":""},{"$nulls":8},1,1,1]
[{"$nulls":3},{"$f":"T('2 REPAIR ESTIMATOR'!D666:O666)","v":""},{"$nulls":7},{"$f":"'2 REPAIR ESTIMATOR'!P666","v":0},null,{"$f":"T('2 REPAIR ESTIMATOR'!S666)","v":""},{"$nulls":8},1,1,1]
[{"$nulls":3},{"$f":"T('2 REPAIR ESTIMATOR'!D667:O667)","v":""},{"$nulls":7},{"$f":"'2 REPAIR ESTIMATOR'!P667","v":0},null,{"$f":"T('2 REPAIR ESTIMATOR'!S667)","v":""},{"$nulls":8},1,1,1]
[{"$nulls":22},{"$f":"W757","v":8},1,8]
[{"$nulls":3},{"$f":"UPPER(CONCATENATE(\"Miscellaneous \",D715,\" Items\"))","v":"MISCELLANEOUS FRAMING & DRYWALL ITEMS"},{"$nulls":18},{"$f":"SUM(W758:W767)","v":8},1,8]
[{"$nulls":3},1,"All framing and drywall components are to be contractor furnished, contractor installed.","All door and window components are to be contractor furnished, contractor installed.","All door and window components are to be contractor furnished, contractor installed.","All door and window components are to be contractor furnished, contractor installed.","All door and window components are to be contractor furnished, contractor installed.","All door and window components are to be contractor furnished, contractor installed.","All door and window components are to be contractor furnished, contractor installed.","All door and window components are to be contractor furnished, contractor installed.","All door and window components are to be contractor furnished, contractor installed.","All door and window components are to be contractor furnished, contractor installed.","All door and window components are to be contractor furnished, contractor installed.","All door and window components are to be contractor furnished, contractor installed.","All door and window components are to be contractor furnished, contractor installed.","All door and window components are to be contractor furnished, contractor installed.","All door and window components are to be contractor furnished, contractor installed.","All door and window components are to be contractor furnished, contractor installed.","All door and window components are to be contractor furnished, contractor installed.","All door and window components are to be contractor furnished, contractor installed.",{"$f":"IF(E758<>\"\",1,0)*W715","v":1},1,1]
[{"$nulls":3},2,"Any structural framing work shall be performed per local building codes/ standards.",{"$nulls":17},{"$f":"IF(E759<>\"\",1,0)*W715","v":1},1,1]
[{"$nulls":3},3,"Provide pressure treated/fire-resistant lumber as required by local building codes/standards.",{"$nulls":17},{"$f":"IF(E760<>\"\",1,0)*W715","v":1},1,1]
[{"$nulls":3},4,"Furnish and install fire-resistant, mold-resistant drywall in areas required by local building codes/standards.",{"$nulls":17},{"$f":"IF(E761<>\"\",1,0)*W715","v":1},1,1]
[{"$nulls":3},5,"Patch and prep miscellenaous holes in walls and ceilings.",{"$nulls":17},{"$f":"IF(E762<>\"\",1,0)*W715","v":1},1,1]
[{"$nulls":3},6,"Patch and prep miscellaneous cracks in walls and ceilings.",{"$nulls":17},{"$f":"IF(E763<>\"\",1,0)*W715","v":1},1,1]
[{"$nulls":3},7,"Patch existing walls at new plumbing/electrical rough-in locations (if required).",{"$nulls":17},{"$f":"IF(E764<>\"\",1,0)*W715","v":1},1,1]
[{"$nulls":3},8,"Provide knockdown texture on ceilings throughout.",{"$nulls":17},{"$f":"IF(E765<>\"\",1,0)*W715","v":1},1,1]
[{"$nulls":3},9,{"$nulls":18},{"$f":"IF(E766<>\"\",1,0)*W715","v":0},1,0]
[{"$nulls":3},10,{"$nulls":18},{"$f":"IF(E767<>\"\",1,0)*W715","v":0},1,0]
[{"$nulls":22},{"$f":"W715","v":1},1,1]
[{"$nulls":3},{"$f":"UPPER(CONCATENATE(\"TOTAL \",D715))","v":"TOTAL FRAMING & DRYWALL"},{"$nulls":18},{"$f":"W715","v":1},1,1]
[{"$nulls":22},{"$f":"W715","v":1},1,1]
[{"$nulls":3},{"$f":"T('2 REPAIR ESTIMATOR'!D672:O672)","v":"CABINETS & COUNTERTOPS"},{"$nulls":7},{"$f":"SUM(L772:M811)","v":64},{"$nulls":10},{"$f":"IF(L771>0,1,0)","v":1},{"$f":"IF(Scope14_Setting=\"Shown\",1,0)","v":1},1]
[{"$nulls":3},{"$f":"T('2 REPAIR ESTIMATOR'!D673:O673)","v":"Cabinet Installation bid/allowance"},{"$nulls":7},{"$f":"'2 REPAIR ESTIMATOR'!P673","v":0},null,{"$f":"T('2 REPAIR ESTIMATOR'!S673)","v":"ls"},{"$nulls":8},{"$f":"IF(L772=\"\",0,1)","v":1},1,1]
[{"$nulls":3},{"$f":"T('2 REPAIR ESTIMATOR'!D674:O674)","v":"Cabinet Material bid/allowance"},{"$nulls":7},{"$f":"'2 REPAIR ESTIMATOR'!P674","v":0},null,{"$f":"T('2 REPAIR ESTIMATOR'!S674)","v":"ls"},{"$nulls":8},{"$f":"IF(L773=\"\",0,1)","v":1},1,1]
[{"$nulls":3},{"$f":"T('2 REPAIR ESTIMATOR'!D675:O675)","v":"Countertop bid/allowance"},{"$nulls":7},{"$f":"'2 REPAIR ESTIMATOR'!P675","v":0},null,{"$f":"T('2 REPAIR ESTIMATOR'!S675)","v":"ls"},{"$nulls":8},1,1,1]
[{"$nulls":3},{"$f":"T('2 REPAIR ESTIMATOR'!D676:O676)","v":"Kitchen"},{"$nulls":7},{"$f":"'2 REPAIR ESTIMATOR'!P676","v":0},null,{"$f":"T('2 REPAIR ESTIMATOR'!S676)","v":""},{"$nulls":8},1,1,1]
[{"$nulls":3},{"$f":"T('2 REPAIR ESTIMATOR'!D677:O677)","v":"Kitchen Base Cabinetry"},{"$nulls":7},{"$f":"'2 REPAIR ESTIMATOR'!P677","v":15},null,{"$f":"T('2 REPAIR ESTIMATOR'!S677)","v":"lf"},{"$nulls":8},1,1,1]
[{"$nulls":3},{"$f":"T('2 REPAIR ESTIMATOR'!D678:O678)","v":"Kitchen Upper Cabinetry"},{"$nulls":7},{"$f":"'2 REPAIR ESTIMATOR'!P678","v":15},null,{"$f":"T('2 REPAIR ESTIMATOR'!S678)","v":"lf"},{"$nulls":8},1,1,1]
[{"$nulls":3},{"$f":"T('2 REPAIR ESTIMATOR'!D679:O679)","v":"Kitchen Pantry Cabinet"},{"$nulls":7},{"$f":"'2 REPAIR ESTIMATOR'!P679","v":1},null,{"$f":"T('2 REPAIR ESTIMATOR'!S679)","v":"ea"},{"$nulls":8},1,1,1]
[{"$nulls":3},{"$f":"T('2 REPAIR ESTIMATOR'!D680:O680)","v":"Plastic laminate countertop"},{"$nulls":7},{"$f":"'2 REPAIR ESTIMATOR'!P680","v":0},null,{"$f":"T('2 REPAIR ESTIMATOR'!S680)","v":"sf"},{"$nulls":8},1,1,1]
[{"$nulls":3},{"$f":"T('2 REPAIR ESTIMATOR'!D681:O681)","v":"Replace cabinet doors, only"},{"$nulls":7},{"$f":"'2 REPAIR ESTIMATOR'!P681","v":0},null,{"$f":"T('2 REPAIR ESTIMATOR'!S681)","v":"ea"},{"$nulls":8},1,1,1]
[{"$nulls":3},{"$f":"T('2 REPAIR ESTIMATOR'!D682:O682)","v":"Replace cabinet drawer fronts, only"},{"$nulls":7},{"$f":"'2 REPAIR ESTIMATOR'!P682","v":0},null,{"$f":"T('2 REPAIR ESTIMATOR'!S682)","v":"ea"},{"$nulls":8},1,1,1]
[{"$nulls":3},{"$f":"T('2 REPAIR ESTIMATOR'!D683:O683)","v":"New cabinet door pulls"},{"$nulls":7},{"$f":"'2 REPAIR ESTIMATOR'!P683","v":0},null,{"$f":"T('2 REPAIR ESTIMATOR'!S683)","v":"ea"},{"$nulls":8},1,1,1]
[{"$nulls":3},{"$f":"T('2 REPAIR ESTIMATOR'!D684:O684)","v":"Stone/solid surface countertop, kitchen"},{"$nulls":7},{"$f":"'2 REPAIR ESTIMATOR'!P684","v":30},null,{"$f":"T('2 REPAIR ESTIMATOR'!S684)","v":"sf"},{"$nulls":8},1,1,1]
[{"$nulls":3},{"$f":"T('2 REPAIR ESTIMATOR'!D685:O685)","v":"Kitchen sink bowl, stainless steel, undermount"},{"$nulls":7},{"$f":"'2 REPAIR ESTIMATOR'!P685","v":1},null,{"$f":"T('2 REPAIR ESTIMATOR'!S685)","v":"ea"},{"$nulls":8},1,1,1]
[{"$nulls":3},{"$f":"T('2 REPAIR ESTIMATOR'!D686:O686)","v":"Kitchen sink bowl, composite, undermount"},{"$nulls":7},{"$f":"'2 REPAIR ESTIMATOR'!P686","v":0},null,{"$f":"T('2 REPAIR ESTIMATOR'!S686)","v":"ea"},{"$nulls":8},1,1,1]
[{"$nulls":3},{"$f":"T('2 REPAIR ESTIMATOR'!D687:O687)","v":"Bathrooms"},{"$nulls":7},{"$f":"'2 REPAIR ESTIMATOR'!P687","v":0},null,{"$f":"T('2 REPAIR ESTIMATOR'!S687)","v":""},{"$nulls":8},1,1,1]
[{"$nulls":3},{"$f":"T('2 REPAIR ESTIMATOR'!D688:O688)","v":"Vanity cabinet"},{"$nulls":7},{"$f":"'2 REPAIR ESTIMATOR'!P688","v":2},null,{"$f":"T('2 REPAIR ESTIMATOR'!S688)","v":"ea"},{"$nulls":8},1,1,1]
[{"$nulls":3},{"$f":"T('2 REPAIR ESTIMATOR'!D689:O689)","v":"New cabinet door pulls"},{"$nulls":7},{"$f":"'2 REPAIR ESTIMATOR'!P689","v":0},null,{"$f":"T('2 REPAIR ESTIMATOR'!S689)","v":"ea"},{"$nulls":8},1,1,1]
[{"$nulls":3},{"$f":"T('2 REPAIR ESTIMATOR'!D690:O690)","v":"Vanity countertop, stone/solid surface"},{"$nulls":7},{"$f":"'2 REPAIR ESTIMATOR'!P690","v":0},null,{"$f":"T('2 REPAIR ESTIMATOR'!S690)","v":"sf"},{"$nulls":8},1,1,1]
[{"$nulls":3},{"$f":"T('2 REPAIR ESTIMATOR'!D691:O691)","v":""},{"$nulls":7},{"$f":"'2 REPAIR ESTIMATOR'!P691","v":0},null,{"$f":"T('2 REPAIR ESTIMATOR'!S691)","v":""},{"$nulls":8},1,1,1]
[{"$nulls":3},{"$f":"T('2 REPAIR ESTIMATOR'!D692:O692)","v":""},{"$nulls":7},{"$f":"'2 REPAIR ESTIMATOR'!P692","v":0},null,{"$f":"T('2 REPAIR ESTIMATOR'!S692)","v":""},{"$nulls":8},1,1,1]
[{"$nulls":3},{"$f":"T('2 REPAIR ESTIMATOR'!D693:O693)","v":""},{"$nulls":7},{"$f":"'2 REPAIR ESTIMATOR'!P693","v":0},null,{"$f":"T('2 REPAIR ESTIMATOR'!S693)","v":""},{"$nulls":8},1,1,1]
[{"$nulls":3},{"$f":"T('2 REPAIR ESTIMATOR'!D694:O694)","v":""},{"$nulls":7},{"$f":"'2 REPAIR ESTIMATOR'!P694","v":0},null,{"$f":"T('2 REPAIR ESTIMATOR'!S694)","v":""},{"$nulls":8},1,1,1]
[{"$nulls":3},{"$f":"T('2 REPAIR ESTIMATOR'!D695:O695)","v":""},{"$nulls":7},{"$f":"'2 REPAIR ESTIMATOR'!P695","v":0},null,{"$f":"T('2 REPAIR ESTIMATOR'!S695)","v":""},{"$nulls":8},1,1,1]
[{"$nulls":3},{"$f":"T('2 REPAIR ESTIMATOR'!D696:O696)","v":""},{"$nulls":7},{"$f":"'2 REPAIR ESTIMATOR'!P696","v":0},null,{"$f":"T('2 REPAIR ESTIMATOR'!S696)","v":""},{"$nulls":8},1,1,1]
[{"$nulls":3},{"$f":"T('2 REPAIR ESTIMATOR'!D697:O697)","v":""},{"$nulls":7},{"$f":"'2 REPAIR ESTIMATOR'!P697","v":0},null,{"$f":"T('2 REPAIR ESTIMATOR'!S697)","v":""},{"$nulls":8},1,1,1]
[{"$nulls":3},{"$f":"T('2 REPAIR ESTIMATOR'!D698:O698)","v":""},{"$nulls":7},{"$f":"'2 REPAIR ESTIMATOR'!P698","v":0},null,{"$f":"T('2 REPAIR ESTIMATOR'!S698)","v":""},{"$nulls":8},1,1,1]
[{"$nulls":3},{"$f":"T('2 REPAIR ESTIMATOR'!D699:O699)","v":""},{"$nulls":7},{"$f":"'2 REPAIR ESTIMATOR'!P699","v":0},null,{"$f":"T('2 REPAIR ESTIMATOR'!S699)","v":""},{"$nulls":8},1,1,1]
[{"$nulls":3},{"$f":"T('2 REPAIR ESTIMATOR'!D700:O700)","v":""},{"$nulls":7},{"$f":"'2 REPAIR ESTIMATOR'!P700","v":0},null,{"$f":"T('2 REPAIR ESTIMATOR'!S700)","v":""},{"$nulls":8},1,1,1]
[{"$nulls":3},{"$f":"T('2 REPAIR ESTIMATOR'!D701:O701)","v":""},{"$nulls":7},{"$f":"'2 REPAIR ESTIMATOR'!P701","v":0},null,{"$f":"T('2 REPAIR ESTIMATOR'!S701)","v":""},{"$nulls":8},1,1,1]
[{"$nulls":3},{"$f":"T('2 REPAIR ESTIMATOR'!D702:O702)","v":""},{"$nulls":7},{"$f":"'2 REPAIR ESTIMATOR'!P702","v":0},null,{"$f":"T('2 REPAIR ESTIMATOR'!S702)","v":""},{"$nulls":8},1,1,1]
[{"$nulls":3},{"$f":"T('2 REPAIR ESTIMATOR'!D703:O703)","v":""},{"$nulls":7},{"$f":"'2 REPAIR ESTIMATOR'!P703","v":0},null,{"$f":"T('2 REPAIR ESTIMATOR'!S703)","v":""},{"$nulls":8},1,1,1]
[{"$nulls":3},{"$f":"T('2 REPAIR ESTIMATOR'!D704:O704)","v":""},{"$nulls":7},{"$f":"'2 REPAIR ESTIMATOR'!P704","v":0},null,{"$f":"T('2 REPAIR ESTIMATOR'!S704)","v":""},{"$nulls":8},1,{"$f":"IF(Scope14_Setting=\"Shown\",1,0)","v":1},1]
[{"$nulls":3},{"$f":"T('2 REPAIR ESTIMATOR'!D705:O705)","v":""},{"$nulls":7},{"$f":"'2 REPAIR ESTIMATOR'!P705","v":0},null,{"$f":"T('2 REPAIR ESTIMATOR'!S705)","v":""},{"$nulls":8},1,1,1]
[{"$nulls":3},{"$f":"T('2 REPAIR ESTIMATOR'!D706:O706)","v":""},{"$nulls":7},{"$f":"'2 REPAIR ESTIMATOR'!P706","v":0},null,{"$f":"T('2 REPAIR ESTIMATOR'!S706)","v":""},{"$nulls":8},1,1,1]
[{"$nulls":3},{"$f":"T('2 REPAIR ESTIMATOR'!D707:O707)","v":""},{"$nulls":7},{"$f":"'2 REPAIR ESTIMATOR'!P707","v":0},null,{"$f":"T('2 REPAIR ESTIMATOR'!S707)","v":""},{"$nulls":8},1,1,1]
[{"$nulls":3},{"$f":"T('2 REPAIR ESTIMATOR'!D708:O708)","v":""},{"$nulls":7},{"$f":"'2 REPAIR ESTIMATOR'!P708","v":0},null,{"$f":"T('2 REPAIR ESTIMATOR'!S708)","v":""},{"$nulls":8},1,1,1]
[{"$nulls":3},{"$f":"T('2 REPAIR ESTIMATOR'!D709:O709)","v":""},{"$nulls":7},{"$f":"'2 REPAIR ESTIMATOR'!P709","v":0},null,{"$f":"T('2 REPAIR ESTIMATOR'!S709)","v":""},{"$nulls":8},1,1,1]
[{"$nulls":3},{"$f":"T('2 REPAIR ESTIMATOR'!D710:O710)","v":""},{"$nulls":7},{"$f":"'2 REPAIR ESTIMATOR'!P710","v":0},null,{"$f":"T('2 REPAIR ESTIMATOR'!S710)","v":""},{"$nulls":8},1,1,1]
[{"$nulls":3},{"$f":"T('2 REPAIR ESTIMATOR'!D711:O711)","v":""},{"$nulls":7},{"$f":"'2 REPAIR ESTIMATOR'!P711","v":0},null,{"$f":"T('2 REPAIR ESTIMATOR'!S711)","v":""},{"$nulls":8},1,1,1]
[{"$nulls":3},{"$f":"T('2 REPAIR ESTIMATOR'!D712:O712)","v":""},{"$nulls":7},{"$f":"'2 REPAIR ESTIMATOR'!P712","v":0},null,{"$f":"T('2 REPAIR ESTIMATOR'!S712)","v":""},{"$nulls":8},1,1,1]
[{"$nulls":22},{"$f":"W813","v":7},1,{"$f":"W812*X812","v":7}]
[{"$nulls":3},{"$f":"UPPER(CONCATENATE(\"Miscellaneous \",D771,\" Items\"))","v":"MISCELLANEOUS CABINETS & COUNTERTOPS ITEMS"},{"$nulls":18},{"$f":"SUM(W814:W823)","v":7},1,7]
[{"$nulls":3},1,"Cabinetry materials and countertops will be Owner Furnished, Contractor Installed.",{"$nulls":17},{"$f":"IF(E814<>\"\",1,0)*W771","v":1},1,1]
[{"$nulls":3},2,"Install kitchen cabinets per the layout in the kitchen sketches/drawings provided. (OFCI)",{"$nulls":17},{"$f":"IF(E815<>\"\",1,0)*W771","v":1},1,1]
[{"$nulls":3},3,"Install kitchen cabinets, base, upper & pantry cabinets. (OFCI)",{"$nulls":17},{"$f":"IF(E816<>\"\",1,0)*W771","v":1},1,1]
[{"$nulls":3},4,"Install cabinet crown molding, base molding, filler panels, end panels and trim pieces as necessary. (OFCI)",{"$nulls":17},{"$f":"IF(E817<>\"\",1,0)*W771","v":1},1,1]
[{"$nulls":3},5,"Install cabinet door pulls. (OFCI)",{"$nulls":17},{"$f":"IF(E818<>\"\",1,0)*W771","v":1},1,1]
[{"$nulls":3},6,"Provide all necessary shims and fasteners as required.",{"$nulls":17},{"$f":"IF(E819<>\"\",1,0)*W771","v":1},1,1]
[{"$nulls":3},7,"All cabinets shall be attached to wall blocking or framing.",{"$nulls":17},{"$f":"IF(E820<>\"\",1,0)*W771","v":1},1,1]
[{"$nulls":3},8,{"$nulls":18},{"$f":"IF(E821<>\"\",1,0)*W771","v":0},1,0]
[{"$nulls":3},9,{"$nulls":18},{"$f":"IF(E822<>\"\",1,0)*W771","v":0},1,0]
[{"$nulls":3},10,{"$nulls":18},{"$f":"IF(E823<>\"\",1,0)*W771","v":0},1,0]
[{"$nulls":22},{"$f":"W771","v":1},1,1]
[{"$nulls":3},{"$f":"UPPER(CONCATENATE(\"TOTAL \",D771))","v":"TOTAL CABINETS & COUNTERTOPS"},{"$nulls":18},{"$f":"W771","v":1},1,1]
[{"$nulls":22},{"$f":"W771","v":1},1,1]
[{"$nulls":3},{"$f":"T('2 REPAIR ESTIMATOR'!D717:O717)","v":"DOORS & TRIM"},{"$nulls":7},{"$f":"SUM(L828:M867)","v":15},{"$nulls":10},{"$f":"IF(L827>0,1,0)","v":1},{"$f":"IF(Scope15_Setting=\"Shown\",1,0)","v":1},1]
[{"$nulls":3},{"$f":"T('2 REPAIR ESTIMATOR'!D718:O718)","v":"Finish carpentry bid/allowance"},{"$nulls":7},{"$f":"'2 REPAIR ESTIMATOR'!P718","v":0},null,{"$f":"T('2 REPAIR ESTIMATOR'!S718)","v":"ls"},{"$nulls":8},{"$f":"IF(L828=\"\",0,1)","v":1},1,1]
[{"$nulls":3},{"$f":"T('2 REPAIR ESTIMATOR'!D719:O719)","v":"Interior door, prehung, hollow-core door"},{"$nulls":7},{"$f":"'2 REPAIR ESTIMATOR'!P719","v":15},null,{"$f":"T('2 REPAIR ESTIMATOR'!S719)","v":"ea"},{"$nulls":8},{"$f":"IF(L829=\"\",0,1)","v":1},1,1]
[{"$nulls":3},{"$f":"T('2 REPAIR ESTIMATOR'!D720:O720)","v":"Interior mirrored, sliding, closet doors"},{"$nulls":7},{"$f":"'2 REPAIR ESTIMATOR'!P720","v":0},null,{"$f":"T('2 REPAIR ESTIMATOR'!S720)","v":"ea"},{"$nulls":8},1,1,1]
[{"$nulls":3},{"$f":"T('2 REPAIR ESTIMATOR'!D721:O721)","v":"Interior bi-fold, closet doors"},{"$nulls":7},{"$f":"'2 REPAIR ESTIMATOR'!P721","v":0},null,{"$f":"T('2 REPAIR ESTIMATOR'!S721)","v":"ea"},{"$nulls":8},1,1,1]
[{"$nulls":3},{"$f":"T('2 REPAIR ESTIMATOR'!D722:O722)","v":"Door hardware, knobs only"},{"$nulls":7},{"$f":"'2 REPAIR ESTIMATOR'!P722","v":0},null,{"$f":"T('2 REPAIR ESTIMATOR'!S722)","v":"ea"},{"$nulls":8},1,1,1]
[{"$nulls":3},{"$f":"T('2 REPAIR ESTIMATOR'!D723:O723)","v":"Door casings"},{"$nulls":7},{"$f":"'2 REPAIR ESTIMATOR'!P723","v":0},null,{"$f":"T('2 REPAIR ESTIMATOR'!S723)","v":"ea"},{"$nulls":8},1,1,1]
[{"$nulls":3},{"$f":"T('2 REPAIR ESTIMATOR'!D724:O724)","v":"Window casings"},{"$nulls":7},{"$f":"'2 REPAIR ESTIMATOR'!P724","v":0},null,{"$f":"T('2 REPAIR ESTIMATOR'!S724)","v":"ea"},{"$nulls":8},1,1,1]
[{"$nulls":3},{"$f":"T('2 REPAIR ESTIMATOR'!D725:O725)","v":"Window sills"},{"$nulls":7},{"$f":"'2 REPAIR ESTIMATOR'!P725","v":0},null,{"$f":"T('2 REPAIR ESTIMATOR'!S725)","v":"lf"},{"$nulls":8},1,1,1]
[{"$nulls":3},{"$f":"T('2 REPAIR ESTIMATOR'!D726:O726)","v":"Wood  base"},{"$nulls":7},{"$f":"'2 REPAIR ESTIMATOR'!P726","v":0},null,{"$f":"T('2 REPAIR ESTIMATOR'!S726)","v":"lf"},{"$nulls":8},1,1,1]
[{"$nulls":3},{"$f":"T('2 REPAIR ESTIMATOR'!D727:O727)","v":"Crown molding"},{"$nulls":7},{"$f":"'2 REPAIR ESTIMATOR'!P727","v":0},null,{"$f":"T('2 REPAIR ESTIMATOR'!S727)","v":"lf"},{"$nulls":8},1,1,1]
[{"$nulls":3},{"$f":"T('2 REPAIR ESTIMATOR'!D728:O728)","v":"Raised panel wood wainscoting"},{"$nulls":7},{"$f":"'2 REPAIR ESTIMATOR'!P728","v":0},null,{"$f":"T('2 REPAIR ESTIMATOR'!S728)","v":"lf"},{"$nulls":8},1,1,1]
[{"$nulls":3},{"$f":"T('2 REPAIR ESTIMATOR'!D729:O729)","v":"Bead board wainscoting"},{"$nulls":7},{"$f":"'2 REPAIR ESTIMATOR'!P729","v":0},null,{"$f":"T('2 REPAIR ESTIMATOR'!S729)","v":"lf"},{"$nulls":8},1,1,1]
[{"$nulls":3},{"$f":"T('2 REPAIR ESTIMATOR'!D730:O730)","v":"Fireplace mantel"},{"$nulls":7},{"$f":"'2 REPAIR ESTIMATOR'!P730","v":0},null,{"$f":"T('2 REPAIR ESTIMATOR'!S730)","v":"ea"},{"$nulls":8},1,1,1]
[{"$nulls":3},{"$f":"T('2 REPAIR ESTIMATOR'!D731:O731)","v":"Wood columns"},{"$nulls":7},{"$f":"'2 REPAIR ESTIMATOR'!P731","v":0},null,{"$f":"T('2 REPAIR ESTIMATOR'!S731)","v":"ea"},{"$nulls":8},1,1,1]
[{"$nulls":3},{"$f":"T('2 REPAIR ESTIMATOR'!D732:O732)","v":"Closet shelf and rod"},{"$nulls":7},{"$f":"'2 REPAIR ESTIMATOR'!P732","v":0},null,{"$f":"T('2 REPAIR ESTIMATOR'!S732)","v":"lf"},{"$nulls":8},1,1,1]
[{"$nulls":3},{"$f":"T('2 REPAIR ESTIMATOR'!D733:O733)","v":"Closet kit, 8ft long"},{"$nulls":7},{"$f":"'2 REPAIR ESTIMATOR'!P733","v":0},null,{"$f":"T('2 REPAIR ESTIMATOR'!S733)","v":"lf"},{"$nulls":8},1,1,1]
[{"$nulls":3},{"$f":"T('2 REPAIR ESTIMATOR'!D734:O734)","v":"Wood handrail - rail only"},{"$nulls":7},{"$f":"'2 REPAIR ESTIMATOR'!P734","v":0},null,{"$f":"T('2 REPAIR ESTIMATOR'!S734)","v":"lf"},{"$nulls":8},1,1,1]
[{"$nulls":3},{"$f":"T('2 REPAIR ESTIMATOR'!D735:O735)","v":"Wood balusters"},{"$nulls":7},{"$f":"'2 REPAIR ESTIMATOR'!P735","v":0},null,{"$f":"T('2 REPAIR ESTIMATOR'!S735)","v":"lf"},{"$nulls":8},1,1,1]
[{"$nulls":3},{"$f":"T('2 REPAIR ESTIMATOR'!D736:O736)","v":"Iron balusters"},{"$nulls":7},{"$f":"'2 REPAIR ESTIMATOR'!P736","v":0},null,{"$f":"T('2 REPAIR ESTIMATOR'!S736)","v":"lf"},{"$nulls":8},1,1,1]
[{"$nulls":3},{"$f":"T('2 REPAIR ESTIMATOR'!D737:O737)","v":""},{"$nulls":7},{"$f":"'2 REPAIR ESTIMATOR'!P737","v":0},null,{"$f":"T('2 REPAIR ESTIMATOR'!S737)","v":""},{"$nulls":8},1,1,1]
[{"$nulls":3},{"$f":"T('2 REPAIR ESTIMATOR'!D738:O738)","v":""},{"$nulls":7},{"$f":"'2 REPAIR ESTIMATOR'!P738","v":0},null,{"$f":"T('2 REPAIR ESTIMATOR'!S738)","v":""},{"$nulls":8},1,1,1]
[{"$nulls":3},{"$f":"T('2 REPAIR ESTIMATOR'!D739:O739)","v":""},{"$nulls":7},{"$f":"'2 REPAIR ESTIMATOR'!P739","v":0},null,{"$f":"T('2 REPAIR ESTIMATOR'!S739)","v":""},{"$nulls":8},1,1,1]
[{"$nulls":3},{"$f":"T('2 REPAIR ESTIMATOR'!D740:O740)","v":""},{"$nulls":7},{"$f":"'2 REPAIR ESTIMATOR'!P740","v":0},null,{"$f":"T('2 REPAIR ESTIMATOR'!S740)","v":""},{"$nulls":8},1,1,1]
[{"$nulls":3},{"$f":"T('2 REPAIR ESTIMATOR'!D741:O741)","v":""},{"$nulls":7},{"$f":"'2 REPAIR ESTIMATOR'!P741","v":0},null,{"$f":"T('2 REPAIR ESTIMATOR'!S741)","v":""},{"$nulls":8},1,1,1]
[{"$nulls":3},{"$f":"T('2 REPAIR ESTIMATOR'!D742:O742)","v":""},{"$nulls":7},{"$f":"'2 REPAIR ESTIMATOR'!P742","v":0},null,{"$f":"T('2 REPAIR ESTIMATOR'!S742)","v":""},{"$nulls":8},1,1,1]
[{"$nulls":3},{"$f":"T('2 REPAIR ESTIMATOR'!D743:O743)","v":""},{"$nulls":7},{"$f":"'2 REPAIR ESTIMATOR'!P743","v":0},null,{"$f":"T('2 REPAIR ESTIMATOR'!S743)","v":""},{"$nulls":8},1,1,1]
[{"$nulls":3},{"$f":"T('2 REPAIR ESTIMATOR'!D744:O744)","v":""},{"$nulls":7},{"$f":"'2 REPAIR ESTIMATOR'!P744","v":0},null,{"$f":"T('2 REPAIR ESTIMATOR'!S744)","v":""},{"$nulls":8},1,1,1]
[{"$nulls":3},{"$f":"T('2 REPAIR ESTIMATOR'!D745:O745)","v":""},{"$nulls":7},{"$f":"'2 REPAIR ESTIMATOR'!P745","v":0},null,{"$f":"T('2 REPAIR ESTIMATOR'!S745)","v":""},{"$nulls":8},1,1,1]
[{"$nulls":3},{"$f":"T('2 REPAIR ESTIMATOR'!D746:O746)","v":""},{"$nulls":7},{"$f":"'2 REPAIR ESTIMATOR'!P746","v":0},null,{"$f":"T('2 REPAIR ESTIMATOR'!S746)","v":""},{"$nulls":8},1,1,1]
[{"$nulls":3},{"$f":"T('2 REPAIR ESTIMATOR'!D747:O747)","v":""},{"$nulls":7},{"$f":"'2 REPAIR ESTIMATOR'!P747","v":0},null,{"$f":"T('2 REPAIR ESTIMATOR'!S747)","v":""},{"$nulls":8},1,1,1]
[{"$nulls":3},{"$f":"T('2 REPAIR ESTIMATOR'!D748:O748)","v":""},{"$nulls":7},{"$f":"'2 REPAIR ESTIMATOR'!P748","v":0},null,{"$f":"T('2 REPAIR ESTIMATOR'!S748)","v":""},{"$nulls":8},1,1,1]
[{"$nulls":3},{"$f":"T('2 REPAIR ESTIMATOR'!D749:O749)","v":""},{"$nulls":7},{"$f":"'2 REPAIR ESTIMATOR'!P749","v":0},null,{"$f":"T('2 REPAIR ESTIMATOR'!S749)","v":""},{"$nulls":8},1,{"$f":"IF(Scope15_Setting=\"Shown\",1,0)","v":1},1]
[{"$nulls":3},{"$f":"T('2 REPAIR ESTIMATOR'!D750:O750)","v":""},{"$nulls":7},{"$f":"'2 REPAIR ESTIMATOR'!P750","v":0},null,{"$f":"T('2 REPAIR ESTIMATOR'!S750)","v":""},{"$nulls":8},1,1,1]
[{"$nulls":3},{"$f":"T('2 REPAIR ESTIMATOR'!D751:O751)","v":""},{"$nulls":7},{"$f":"'2 REPAIR ESTIMATOR'!P751","v":0},null,{"$f":"T('2 REPAIR ESTIMATOR'!S751)","v":""},{"$nulls":8},1,1,1]
[{"$nulls":3},{"$f":"T('2 REPAIR ESTIMATOR'!D752:O752)","v":""},{"$nulls":7},{"$f":"'2 REPAIR ESTIMATOR'!P752","v":0},null,{"$f":"T('2 REPAIR ESTIMATOR'!S752)","v":""},{"$nulls":8},1,1,1]
[{"$nulls":3},{"$f":"T('2 REPAIR ESTIMATOR'!D753:O753)","v":""},{"$nulls":7},{"$f":"'2 REPAIR ESTIMATOR'!P753","v":0},null,{"$f":"T('2 REPAIR ESTIMATOR'!S753)","v":""},{"$nulls":8},1,1,1]
[{"$nulls":3},{"$f":"T('2 REPAIR ESTIMATOR'!D754:O754)","v":""},{"$nulls":7},{"$f":"'2 REPAIR ESTIMATOR'!P754","v":0},null,{"$f":"T('2 REPAIR ESTIMATOR'!S754)","v":""},{"$nulls":8},1,1,1]
[{"$nulls":3},{"$f":"T('2 REPAIR ESTIMATOR'!D755:O755)","v":""},{"$nulls":7},{"$f":"'2 REPAIR ESTIMATOR'!P755","v":0},null,{"$f":"T('2 REPAIR ESTIMATOR'!S755)","v":""},{"$nulls":8},1,1,1]
[{"$nulls":3},{"$f":"T('2 REPAIR ESTIMATOR'!D756:O756)","v":""},{"$nulls":7},{"$f":"'2 REPAIR ESTIMATOR'!P756","v":0},null,{"$f":"T('2 REPAIR ESTIMATOR'!S756)","v":""},{"$nulls":8},1,1,1]
[{"$nulls":3},{"$f":"T('2 REPAIR ESTIMATOR'!D757:O757)","v":""},{"$nulls":7},{"$f":"'2 REPAIR ESTIMATOR'!P757","v":0},null,{"$f":"T('2 REPAIR ESTIMATOR'!S757)","v":""},{"$nulls":8},1,1,1]
[{"$nulls":22},{"$f":"W869","v":4},1,4]
[{"$nulls":3},{"$f":"UPPER(CONCATENATE(\"Miscellaneous \",D827,\" Items\"))","v":"MISCELLANEOUS DOORS & TRIM ITEMS"},{"$nulls":18},{"$f":"SUM(W870:W879)","v":4},1,4]
[{"$nulls":3},1,"All doors, trim, and molding components will be Contractor Furnished, Contractor Installed.",{"$nulls":17},{"$f":"IF(E870<>\"\",1,0)*W827","v":1},1,1]
[{"$nulls":3},2,"Furnish and install new hollow core, split-frame, 6-panel doors and frames thorughout.",{"$nulls":17},{"$f":"IF(E871<>\"\",1,0)*W827","v":1},1,1]
[{"$nulls":3},3,"Furnish and install all new door hardware on new and existing doors to remain.",{"$nulls":17},{"$f":"IF(E872<>\"\",1,0)*W827","v":1},1,1]
[{"$nulls":3},4,"Provide all necessary shims and fasteners as required.",{"$nulls":17},{"$f":"IF(E873<>\"\",1,0)*W827","v":1},1,1]
[{"$nulls":3},5,{"$nulls":18},{"$f":"IF(E874<>\"\",1,0)*W827","v":0},1,0]
[{"$nulls":3},6,{"$nulls":18},{"$f":"IF(E875<>\"\",1,0)*W827","v":0},1,0]
[{"$nulls":3},7,{"$nulls":18},{"$f":"IF(E876<>\"\",1,0)*W827","v":0},1,{"$f":"W876*X876","v":0}]
[{"$nulls":3},8,{"$nulls":18},{"$f":"IF(E877<>\"\",1,0)*W827","v":0},1,0]
[{"$nulls":3},9,{"$nulls":18},{"$f":"IF(E878<>\"\",1,0)*W827","v":0},1,0]
[{"$nulls":3},10,{"$nulls":18},{"$f":"IF(E879<>\"\",1,0)*W827","v":0},1,0]
[{"$nulls":22},{"$f":"W827","v":1},1,1]
[{"$nulls":3},{"$f":"UPPER(CONCATENATE(\"TOTAL \",D827))","v":"TOTAL DOORS & TRIM"},{"$nulls":18},{"$f":"W827","v":1},1,1]
[{"$nulls":22},{"$f":"W827","v":1},1,1]
[{"$nulls":3},{"$f":"T('2 REPAIR ESTIMATOR'!D762:O762)","v":"CARPET & RESILIENT"},{"$nulls":7},{"$f":"SUM(L884:M923)","v":{"v":1200,"d":"1,200"}},{"$nulls":10},{"$f":"IF(L883>0,1,0)","v":1},{"$f":"IF(Scope16_Setting=\"Shown\",1,0)","v":1},1]
[{"$nulls":3},{"$f":"T('2 REPAIR ESTIMATOR'!D763:O763)","v":"Carpeting & Resilient bid/allowance"},{"$nulls":7},{"$f":"'2 REPAIR ESTIMATOR'!P763","v":0},null,{"$f":"T('2 REPAIR ESTIMATOR'!S763)","v":"ls"},{"$nulls":8},{"$f":"IF(L884=\"\",0,1)","v":1},1,1]
[{"$nulls":3},{"$f":"T('2 REPAIR ESTIMATOR'!D764:O764)","v":"Carpeting"},{"$nulls":7},{"$f":"'2 REPAIR ESTIMATOR'!P764","v":0},null,{"$f":"T('2 REPAIR ESTIMATOR'!S764)","v":""},{"$nulls":8},{"$f":"IF(L885=\"\",0,1)","v":1},1,1]
[{"$nulls":3},{"$f":"T('2 REPAIR ESTIMATOR'!D765:O765)","v":"Carpet, economy grade"},{"$nulls":7},{"$f":"'2 REPAIR ESTIMATOR'!P765","v":{"v":1200,"d":"1,200"}},null,{"$f":"T('2 REPAIR ESTIMATOR'!S765)","v":"sf"},{"$nulls":8},1,1,1]
[{"$nulls":3},{"$f":"T('2 REPAIR ESTIMATOR'!D766:O766)","v":"Carpet average grade"},{"$nulls":7},{"$f":"'2 REPAIR ESTIMATOR'!P766","v":0},null,{"$f":"T('2 REPAIR ESTIMATOR'!S766)","v":"sf"},{"$nulls":8},1,1,1]
[{"$nulls":3},{"$f":"T('2 REPAIR ESTIMATOR'!D767:O767)","v":"Carpet, premium grade"},{"$nulls":7},{"$f":"'2 REPAIR ESTIMATOR'!P767","v":0},null,{"$f":"T('2 REPAIR ESTIMATOR'!S767)","v":"sf"},{"$nulls":8},1,1,1]
[{"$nulls":3},{"$f":"T('2 REPAIR ESTIMATOR'!D768:O768)","v":""},{"$nulls":7},{"$f":"'2 REPAIR ESTIMATOR'!P768","v":0},null,{"$f":"T('2 REPAIR ESTIMATOR'!S768)","v":""},{"$nulls":8},1,1,1]
[{"$nulls":3},{"$f":"T('2 REPAIR ESTIMATOR'!D769:O769)","v":""},{"$nulls":7},{"$f":"'2 REPAIR ESTIMATOR'!P769","v":0},null,{"$f":"T('2 REPAIR ESTIMATOR'!S769)","v":""},{"$nulls":8},1,1,1]
[{"$nulls":3},{"$f":"T('2 REPAIR ESTIMATOR'!D770:O770)","v":"Sheet Vinyl"},{"$nulls":7},{"$f":"'2 REPAIR ESTIMATOR'!P770","v":0},null,{"$f":"T('2 REPAIR ESTIMATOR'!S770)","v":""},{"$nulls":8},1,1,1]
[{"$nulls":3},{"$f":"T('2 REPAIR ESTIMATOR'!D771:O771)","v":"Sheet vinyl, economy grade"},{"$nulls":7},{"$f":"'2 REPAIR ESTIMATOR'!P771","v":0},null,{"$f":"T('2 REPAIR ESTIMATOR'!S771)","v":"sf"},{"$nulls":8},1,1,1]
[{"$nulls":3},{"$f":"T('2 REPAIR ESTIMATOR'!D772:O772)","v":"Sheet vinyl, average grade"},{"$nulls":7},{"$f":"'2 REPAIR ESTIMATOR'!P772","v":0},null,{"$f":"T('2 REPAIR ESTIMATOR'!S772)","v":"sf"},{"$nulls":8},1,1,1]
[{"$nulls":3},{"$f":"T('2 REPAIR ESTIMATOR'!D773:O773)","v":"Sheet vinyl, premium grade"},{"$nulls":7},{"$f":"'2 REPAIR ESTIMATOR'!P773","v":0},null,{"$f":"T('2 REPAIR ESTIMATOR'!S773)","v":"sf"},{"$nulls":8},1,1,1]
[{"$nulls":3},{"$f":"T('2 REPAIR ESTIMATOR'!D774:O774)","v":"Clean and wax vinyl"},{"$nulls":7},{"$f":"'2 REPAIR ESTIMATOR'!P774","v":0},null,{"$f":"T('2 REPAIR ESTIMATOR'!S774)","v":"sf"},{"$nulls":8},1,1,1]
[{"$nulls":3},{"$f":"T('2 REPAIR ESTIMATOR'!D775:O775)","v":""},{"$nulls":7},{"$f":"'2 REPAIR ESTIMATOR'!P775","v":0},null,{"$f":"T('2 REPAIR ESTIMATOR'!S775)","v":""},{"$nulls":8},1,1,1]
[{"$nulls":3},{"$f":"T('2 REPAIR ESTIMATOR'!D776:O776)","v":"Vinyl Tile"},{"$nulls":7},{"$f":"'2 REPAIR ESTIMATOR'!P776","v":0},null,{"$f":"T('2 REPAIR ESTIMATOR'!S776)","v":""},{"$nulls":8},1,1,1]
[{"$nulls":3},{"$f":"T('2 REPAIR ESTIMATOR'!D777:O777)","v":"Vinyl tile, economy grade"},{"$nulls":7},{"$f":"'2 REPAIR ESTIMATOR'!P777","v":0},null,{"$f":"T('2 REPAIR ESTIMATOR'!S777)","v":"sf"},{"$nulls":8},1,1,1]
[{"$nulls":3},{"$f":"T('2 REPAIR ESTIMATOR'!D778:O778)","v":"Vinyl tile, average grade"},{"$nulls":7},{"$f":"'2 REPAIR ESTIMATOR'!P778","v":0},null,{"$f":"T('2 REPAIR ESTIMATOR'!S778)","v":"sf"},{"$nulls":8},1,1,1]
[{"$nulls":3},{"$f":"T('2 REPAIR ESTIMATOR'!D779:O779)","v":"Vinyl tile, premium grade"},{"$nulls":7},{"$f":"'2 REPAIR ESTIMATOR'!P779","v":0},null,{"$f":"T('2 REPAIR ESTIMATOR'!S779)","v":"sf"},{"$nulls":8},1,1,1]
[{"$nulls":3},{"$f":"T('2 REPAIR ESTIMATOR'!D780:O780)","v":"Clean and wax vinyl"},{"$nulls":7},{"$f":"'2 REPAIR ESTIMATOR'!P780","v":0},null,{"$f":"T('2 REPAIR ESTIMATOR'!S780)","v":"sf"},{"$nulls":8},1,1,1]
[{"$nulls":3},{"$f":"T('2 REPAIR ESTIMATOR'!D781:O781)","v":""},{"$nulls":7},{"$f":"'2 REPAIR ESTIMATOR'!P781","v":0},null,{"$f":"T('2 REPAIR ESTIMATOR'!S781)","v":""},{"$nulls":8},1,1,1]
[{"$nulls":3},{"$f":"T('2 REPAIR ESTIMATOR'!D782:O782)","v":""},{"$nulls":7},{"$f":"'2 REPAIR ESTIMATOR'!P782","v":0},null,{"$f":"T('2 REPAIR ESTIMATOR'!S782)","v":""},{"$nulls":8},1,1,1]
[{"$nulls":3},{"$f":"T('2 REPAIR ESTIMATOR'!D783:O783)","v":""},{"$nulls":7},{"$f":"'2 REPAIR ESTIMATOR'!P783","v":0},null,{"$f":"T('2 REPAIR ESTIMATOR'!S783)","v":""},{"$nulls":8},1,1,1]
[{"$nulls":3},{"$f":"T('2 REPAIR ESTIMATOR'!D784:O784)","v":""},{"$nulls":7},{"$f":"'2 REPAIR ESTIMATOR'!P784","v":0},null,{"$f":"T('2 REPAIR ESTIMATOR'!S784)","v":""},{"$nulls":8},1,1,1]
[{"$nulls":3},{"$f":"T('2 REPAIR ESTIMATOR'!D785:O785)","v":""},{"$nulls":7},{"$f":"'2 REPAIR ESTIMATOR'!P785","v":0},null,{"$f":"T('2 REPAIR ESTIMATOR'!S785)","v":""},{"$nulls":8},1,1,1]
[{"$nulls":3},{"$f":"T('2 REPAIR ESTIMATOR'!D786:O786)","v":""},{"$nulls":7},{"$f":"'2 REPAIR ESTIMATOR'!P786","v":0},null,{"$f":"T('2 REPAIR ESTIMATOR'!S786)","v":""},{"$nulls":8},1,1,1]
[{"$nulls":3},{"$f":"T('2 REPAIR ESTIMATOR'!D787:O787)","v":""},{"$nulls":7},{"$f":"'2 REPAIR ESTIMATOR'!P787","v":0},null,{"$f":"T('2 REPAIR ESTIMATOR'!S787)","v":""},{"$nulls":8},1,1,1]
[{"$nulls":3},{"$f":"T('2 REPAIR ESTIMATOR'!D788:O788)","v":""},{"$nulls":7},{"$f":"'2 REPAIR ESTIMATOR'!P788","v":0},null,{"$f":"T('2 REPAIR ESTIMATOR'!S788)","v":""},{"$nulls":8},1,1,1]
[{"$nulls":3},{"$f":"T('2 REPAIR ESTIMATOR'!D789:O789)","v":""},{"$nulls":7},{"$f":"'2 REPAIR ESTIMATOR'!P789","v":0},null,{"$f":"T('2 REPAIR ESTIMATOR'!S789)","v":""},{"$nulls":8},1,1,1]
[{"$nulls":3},{"$f":"T('2 REPAIR ESTIMATOR'!D790:O790)","v":""},{"$nulls":7},{"$f":"'2 REPAIR ESTIMATOR'!P790","v":0},null,{"$f":"T('2 REPAIR ESTIMATOR'!S790)","v":""},{"$nulls":8},1,1,1]
[{"$nulls":3},{"$f":"T('2 REPAIR ESTIMATOR'!D791:O791)","v":""},{"$nulls":7},{"$f":"'2 REPAIR ESTIMATOR'!P791","v":0},null,{"$f":"T('2 REPAIR ESTIMATOR'!S791)","v":""},{"$nulls":8},1,1,1]
[{"$nulls":3},{"$f":"T('2 REPAIR ESTIMATOR'!D792:O792)","v":""},{"$nulls":7},{"$f":"'2 REPAIR ESTIMATOR'!P792","v":0},null,{"$f":"T('2 REPAIR ESTIMATOR'!S792)","v":""},{"$nulls":8},1,1,1]
[{"$nulls":3},{"$f":"T('2 REPAIR ESTIMATOR'!D793:O793)","v":""},{"$nulls":7},{"$f":"'2 REPAIR ESTIMATOR'!P793","v":0},null,{"$f":"T('2 REPAIR ESTIMATOR'!S793)","v":""},{"$nulls":8},1,1,1]
[{"$nulls":3},{"$f":"T('2 REPAIR ESTIMATOR'!D794:O794)","v":""},{"$nulls":7},{"$f":"'2 REPAIR ESTIMATOR'!P794","v":0},null,{"$f":"T('2 REPAIR ESTIMATOR'!S794)","v":""},{"$nulls":8},1,{"$f":"IF(Scope16_Setting=\"Shown\",1,0)","v":1},1]
[{"$nulls":3},{"$f":"T('2 REPAIR ESTIMATOR'!D795:O795)","v":""},{"$nulls":7},{"$f":"'2 REPAIR ESTIMATOR'!P795","v":0},null,{"$f":"T('2 REPAIR ESTIMATOR'!S795)","v":""},{"$nulls":8},1,1,1]
[{"$nulls":3},{"$f":"T('2 REPAIR ESTIMATOR'!D796:O796)","v":""},{"$nulls":7},{"$f":"'2 REPAIR ESTIMATOR'!P796","v":0},null,{"$f":"T('2 REPAIR ESTIMATOR'!S796)","v":""},{"$nulls":8},1,1,1]
[{"$nulls":3},{"$f":"T('2 REPAIR ESTIMATOR'!D797:O797)","v":""},{"$nulls":7},{"$f":"'2 REPAIR ESTIMATOR'!P797","v":0},null,{"$f":"T('2 REPAIR ESTIMATOR'!S797)","v":""},{"$nulls":8},1,1,1]
[{"$nulls":3},{"$f":"T('2 REPAIR ESTIMATOR'!D798:O798)","v":""},{"$nulls":7},{"$f":"'2 REPAIR ESTIMATOR'!P798","v":0},null,{"$f":"T('2 REPAIR ESTIMATOR'!S798)","v":""},{"$nulls":8},1,1,1]
[{"$nulls":3},{"$f":"T('2 REPAIR ESTIMATOR'!D799:O799)","v":""},{"$nulls":7},{"$f":"'2 REPAIR ESTIMATOR'!P799","v":0},null,{"$f":"T('2 REPAIR ESTIMATOR'!S799)","v":""},{"$nulls":8},1,1,1]
[{"$nulls":3},{"$f":"T('2 REPAIR ESTIMATOR'!D800:O800)","v":""},{"$nulls":7},{"$f":"'2 REPAIR ESTIMATOR'!P800","v":0},null,{"$f":"T('2 REPAIR ESTIMATOR'!S800)","v":""},{"$nulls":8},1,1,1]
[{"$nulls":3},{"$f":"T('2 REPAIR ESTIMATOR'!D801:O801)","v":""},{"$nulls":7},{"$f":"'2 REPAIR ESTIMATOR'!P801","v":0},null,{"$f":"T('2 REPAIR ESTIMATOR'!S801)","v":""},{"$nulls":8},1,1,1]
[{"$nulls":3},{"$f":"T('2 REPAIR ESTIMATOR'!D802:O802)","v":""},{"$nulls":7},{"$f":"'2 REPAIR ESTIMATOR'!P802","v":0},null,{"$f":"T('2 REPAIR ESTIMATOR'!S802)","v":""},{"$nulls":8},1,1,1]
[{"$nulls":22},{"$f":"W925","v":6},1,6]
[{"$nulls":3},{"$f":"UPPER(CONCATENATE(\"Miscellaneous \",D883,\" Items\"))","v":"MISCELLANEOUS CARPET & RESILIENT ITEMS"},{"$nulls":18},{"$f":"SUM(W926:W935)","v":6},1,6]
[{"$nulls":3},1,"All carpeting components will be Contractor Furnished, Contractor Installed.",{"$nulls":17},{"$f":"IF(E926<>\"\",1,0)*W883","v":1},1,1]
[{"$nulls":3},2,"Furnish and install new carpeting in designated rooms.",{"$nulls":17},{"$f":"IF(E927<>\"\",1,0)*W883","v":1},1,1]
[{"$nulls":3},3,"(a) Carpet Specification: _______________",{"$nulls":17},{"$f":"IF(E928<>\"\",1,0)*W883","v":1},1,1]
[{"$nulls":3},4,"Furnish and install new carpet pad, tack strip and accessories as necessary.",{"$nulls":17},{"$f":"IF(E929<>\"\",1,0)*W883","v":1},1,1]
[{"$nulls":3},5,"(a) Carpet Pad Thickness: _______________",{"$nulls":17},{"$f":"IF(E930<>\"\",1,0)*W883","v":1},1,1]
[{"$nulls":3},6,"Provide carpet warranty information/documentation.",{"$nulls":17},{"$f":"IF(E931<>\"\",1,0)*W883","v":1},1,1]
[{"$nulls":3},7,{"$nulls":18},{"$f":"IF(E932<>\"\",1,0)*W883","v":0},1,0]
[{"$nulls":3},8,{"$nulls":18},{"$f":"IF(E933<>\"\",1,0)*W883","v":0},1,0]
[{"$nulls":3},9,{"$nulls":18},{"$f":"IF(E934<>\"\",1,0)*W883","v":0},1,0]
[{"$nulls":3},10,{"$nulls":18},{"$f":"IF(E935<>\"\",1,0)*W883","v":0},1,0]
[{"$nulls":22},{"$f":"W883","v":1},1,1]
[{"$nulls":3},{"$f":"UPPER(CONCATENATE(\"TOTAL \",D883))","v":"TOTAL CARPET & RESILIENT"},{"$nulls":18},{"$f":"W883","v":1},1,1]
[{"$nulls":22},{"$f":"W883","v":1},1,1]
[{"$nulls":3},{"$f":"T('2 REPAIR ESTIMATOR'!D807:O807)","v":"HARDWOOD FLOORING"},{"$nulls":7},{"$f":"SUM(L940:M979)","v":475},{"$nulls":10},{"$f":"IF(L939>0,1,0)","v":1},{"$f":"IF(Scope17_Setting=\"Shown\",1,0)","v":1},1]
[{"$nulls":3},{"$f":"T('2 REPAIR ESTIMATOR'!D808:O808)","v":"Hardwood floors, bid/allowance"},{"$nulls":7},{"$f":"'2 REPAIR ESTIMATOR'!P808","v":0},null,{"$f":"T('2 REPAIR ESTIMATOR'!S808)","v":"ls"},{"$nulls":8},{"$f":"IF(L940=\"\",0,1)","v":1},1,{"$f":"W940*X940","v":1}]
[{"$nulls":3},{"$f":"T('2 REPAIR ESTIMATOR'!D809:O809)","v":"Laminate Flooring"},{"$nulls":7},{"$f":"'2 REPAIR ESTIMATOR'!P809","v":0},null,{"$f":"T('2 REPAIR ESTIMATOR'!S809)","v":""},{"$nulls":8},{"$f":"IF(L941=\"\",0,1)","v":1},1,1]
[{"$nulls":3},{"$f":"T('2 REPAIR ESTIMATOR'!D810:O810)","v":"Laminate wood flooring, economy grade"},{"$nulls":7},{"$f":"'2 REPAIR ESTIMATOR'!P810","v":0},null,{"$f":"T('2 REPAIR ESTIMATOR'!S810)","v":"sf"},{"$nulls":8},1,1,1]
[{"$nulls":3},{"$f":"T('2 REPAIR ESTIMATOR'!D811:O811)","v":"Laminate wood flooring, average grade"},{"$nulls":7},{"$f":"'2 REPAIR ESTIMATOR'!P811","v":0},null,{"$f":"T('2 REPAIR ESTIMATOR'!S811)","v":"sf"},{"$nulls":8},1,1,1]
[{"$nulls":3},{"$f":"T('2 REPAIR ESTIMATOR'!D812:O812)","v":"Laminate wood flooring, premium grade"},{"$nulls":7},{"$f":"'2 REPAIR ESTIMATOR'!P812","v":0},null,{"$f":"T('2 REPAIR ESTIMATOR'!S812)","v":"sf"},{"$nulls":8},1,1,1]
[{"$nulls":3},{"$f":"T('2 REPAIR ESTIMATOR'!D813:O813)","v":""},{"$nulls":7},{"$f":"'2 REPAIR ESTIMATOR'!P813","v":0},null,{"$f":"T('2 REPAIR ESTIMATOR'!S813)","v":""},{"$nulls":8},1,1,1]
[{"$nulls":3},{"$f":"T('2 REPAIR ESTIMATOR'!D814:O814)","v":"Hardwood Flooring"},{"$nulls":7},{"$f":"'2 REPAIR ESTIMATOR'!P814","v":0},null,{"$f":"T('2 REPAIR ESTIMATOR'!S814)","v":""},{"$nulls":8},1,1,1]
[{"$nulls":3},{"$f":"T('2 REPAIR ESTIMATOR'!D815:O815)","v":"Hardwood flooring, economy grade"},{"$nulls":7},{"$f":"'2 REPAIR ESTIMATOR'!P815","v":0},null,{"$f":"T('2 REPAIR ESTIMATOR'!S815)","v":"sf"},{"$nulls":8},1,1,1]
[{"$nulls":3},{"$f":"T('2 REPAIR ESTIMATOR'!D816:O816)","v":"Hardwood flooring, average grade"},{"$nulls":7},{"$f":"'2 REPAIR ESTIMATOR'!P816","v":475},null,{"$f":"T('2 REPAIR ESTIMATOR'!S816)","v":"sf"},{"$nulls":8},1,1,1]
[{"$nulls":3},{"$f":"T('2 REPAIR ESTIMATOR'!D817:O817)","v":"Hardwood flooring, premium grade"},{"$nulls":7},{"$f":"'2 REPAIR ESTIMATOR'!P817","v":0},null,{"$f":"T('2 REPAIR ESTIMATOR'!S817)","v":"sf"},{"$nulls":8},1,1,1]
[{"$nulls":3},{"$f":"T('2 REPAIR ESTIMATOR'!D818:O818)","v":""},{"$nulls":7},{"$f":"'2 REPAIR ESTIMATOR'!P818","v":0},null,{"$f":"T('2 REPAIR ESTIMATOR'!S818)","v":""},{"$nulls":8},1,1,1]
[{"$nulls":3},{"$f":"T('2 REPAIR ESTIMATOR'!D819:O819)","v":"Hardwood Floor Refinishing"},{"$nulls":7},{"$f":"'2 REPAIR ESTIMATOR'!P819","v":0},null,{"$f":"T('2 REPAIR ESTIMATOR'!S819)","v":""},{"$nulls":8},1,1,1]
[{"$nulls":3},{"$f":"T('2 REPAIR ESTIMATOR'!D820:O820)","v":"Floor refinishing"},{"$nulls":7},{"$f":"'2 REPAIR ESTIMATOR'!P820","v":0},null,{"$f":"T('2 REPAIR ESTIMATOR'!S820)","v":"sf"},{"$nulls":8},1,1,1]
[{"$nulls":3},{"$f":"T('2 REPAIR ESTIMATOR'!D821:O821)","v":"Lacing new hardwood to match existing, case-by-case"},{"$nulls":7},{"$f":"'2 REPAIR ESTIMATOR'!P821","v":0},null,{"$f":"T('2 REPAIR ESTIMATOR'!S821)","v":"sf"},{"$nulls":8},1,1,1]
[{"$nulls":3},{"$f":"T('2 REPAIR ESTIMATOR'!D822:O822)","v":""},{"$nulls":7},{"$f":"'2 REPAIR ESTIMATOR'!P822","v":0},null,{"$f":"T('2 REPAIR ESTIMATOR'!S822)","v":""},{"$nulls":8},1,1,1]
[{"$nulls":3},{"$f":"T('2 REPAIR ESTIMATOR'!D823:O823)","v":"Miscellaneous"},{"$nulls":7},{"$f":"'2 REPAIR ESTIMATOR'!P823","v":0},null,{"$f":"T('2 REPAIR ESTIMATOR'!S823)","v":""},{"$nulls":8},1,1,1]
[{"$nulls":3},{"$f":"T('2 REPAIR ESTIMATOR'!D824:O824)","v":"Stair treads, 4ft avg"},{"$nulls":7},{"$f":"'2 REPAIR ESTIMATOR'!P824","v":0},null,{"$f":"T('2 REPAIR ESTIMATOR'!S824)","v":"ea"},{"$nulls":8},1,1,1]
[{"$nulls":3},{"$f":"T('2 REPAIR ESTIMATOR'!D825:O825)","v":"Shoe moldings"},{"$nulls":7},{"$f":"'2 REPAIR ESTIMATOR'!P825","v":0},null,{"$f":"T('2 REPAIR ESTIMATOR'!S825)","v":"lf"},{"$nulls":8},1,1,1]
[{"$nulls":3},{"$f":"T('2 REPAIR ESTIMATOR'!D826:O826)","v":"Underlayment"},{"$nulls":7},{"$f":"'2 REPAIR ESTIMATOR'!P826","v":0},null,{"$f":"T('2 REPAIR ESTIMATOR'!S826)","v":"sf"},{"$nulls":8},1,1,1]
[{"$nulls":3},{"$f":"T('2 REPAIR ESTIMATOR'!D827:O827)","v":""},{"$nulls":7},{"$f":"'2 REPAIR ESTIMATOR'!P827","v":0},null,{"$f":"T('2 REPAIR ESTIMATOR'!S827)","v":""},{"$nulls":8},1,1,1]
[{"$nulls":3},{"$f":"T('2 REPAIR ESTIMATOR'!D828:O828)","v":""},{"$nulls":7},{"$f":"'2 REPAIR ESTIMATOR'!P828","v":0},null,{"$f":"T('2 REPAIR ESTIMATOR'!S828)","v":""},{"$nulls":8},1,1,1]
[{"$nulls":3},{"$f":"T('2 REPAIR ESTIMATOR'!D829:O829)","v":""},{"$nulls":7},{"$f":"'2 REPAIR ESTIMATOR'!P829","v":0},null,{"$f":"T('2 REPAIR ESTIMATOR'!S829)","v":""},{"$nulls":8},1,1,1]
[{"$nulls":3},{"$f":"T('2 REPAIR ESTIMATOR'!D830:O830)","v":""},{"$nulls":7},{"$f":"'2 REPAIR ESTIMATOR'!P830","v":0},null,{"$f":"T('2 REPAIR ESTIMATOR'!S830)","v":""},{"$nulls":8},1,1,1]
[{"$nulls":3},{"$f":"T('2 REPAIR ESTIMATOR'!D831:O831)","v":""},{"$nulls":7},{"$f":"'2 REPAIR ESTIMATOR'!P831","v":0},null,{"$f":"T('2 REPAIR ESTIMATOR'!S831)","v":""},{"$nulls":8},1,1,1]
[{"$nulls":3},{"$f":"T('2 REPAIR ESTIMATOR'!D832:O832)","v":""},{"$nulls":7},{"$f":"'2 REPAIR ESTIMATOR'!P832","v":0},null,{"$f":"T('2 REPAIR ESTIMATOR'!S832)","v":""},{"$nulls":8},1,1,1]
[{"$nulls":3},{"$f":"T('2 REPAIR ESTIMATOR'!D833:O833)","v":""},{"$nulls":7},{"$f":"'2 REPAIR ESTIMATOR'!P833","v":0},null,{"$f":"T('2 REPAIR ESTIMATOR'!S833)","v":""},{"$nulls":8},1,1,1]
[{"$nulls":3},{"$f":"T('2 REPAIR ESTIMATOR'!D834:O834)","v":""},{"$nulls":7},{"$f":"'2 REPAIR ESTIMATOR'!P834","v":0},null,{"$f":"T('2 REPAIR ESTIMATOR'!S834)","v":""},{"$nulls":8},1,1,1]
[{"$nulls":3},{"$f":"T('2 REPAIR ESTIMATOR'!D835:O835)","v":""},{"$nulls":7},{"$f":"'2 REPAIR ESTIMATOR'!P835","v":0},null,{"$f":"T('2 REPAIR ESTIMATOR'!S835)","v":""},{"$nulls":8},1,1,1]
[{"$nulls":3},{"$f":"T('2 REPAIR ESTIMATOR'!D836:O836)","v":""},{"$nulls":7},{"$f":"'2 REPAIR ESTIMATOR'!P836","v":0},null,{"$f":"T('2 REPAIR ESTIMATOR'!S836)","v":""},{"$nulls":8},1,1,1]
[{"$nulls":3},{"$f":"T('2 REPAIR ESTIMATOR'!D837:O837)","v":""},{"$nulls":7},{"$f":"'2 REPAIR ESTIMATOR'!P837","v":0},null,{"$f":"T('2 REPAIR ESTIMATOR'!S837)","v":""},{"$nulls":8},1,1,1]
[{"$nulls":3},{"$f":"T('2 REPAIR ESTIMATOR'!D838:O838)","v":""},{"$nulls":7},{"$f":"'2 REPAIR ESTIMATOR'!P838","v":0},null,{"$f":"T('2 REPAIR ESTIMATOR'!S838)","v":""},{"$nulls":8},1,1,1]
[{"$nulls":3},{"$f":"T('2 REPAIR ESTIMATOR'!D839:O839)","v":""},{"$nulls":7},{"$f":"'2 REPAIR ESTIMATOR'!P839","v":0},null,{"$f":"T('2 REPAIR ESTIMATOR'!S839)","v":""},{"$nulls":8},1,{"$f":"IF(Scope17_Setting=\"Shown\",1,0)","v":1},1]
[{"$nulls":3},{"$f":"T('2 REPAIR ESTIMATOR'!D840:O840)","v":""},{"$nulls":7},{"$f":"'2 REPAIR ESTIMATOR'!P840","v":0},null,{"$f":"T('2 REPAIR ESTIMATOR'!S840)","v":""},{"$nulls":8},1,1,1]
[{"$nulls":3},{"$f":"T('2 REPAIR ESTIMATOR'!D841:O841)","v":""},{"$nulls":7},{"$f":"'2 REPAIR ESTIMATOR'!P841","v":0},null,{"$f":"T('2 REPAIR ESTIMATOR'!S841)","v":""},{"$nulls":8},1,1,1]
[{"$nulls":3},{"$f":"T('2 REPAIR ESTIMATOR'!D842:O842)","v":""},{"$nulls":7},{"$f":"'2 REPAIR ESTIMATOR'!P842","v":0},null,{"$f":"T('2 REPAIR ESTIMATOR'!S842)","v":""},{"$nulls":8},1,1,1]
[{"$nulls":3},{"$f":"T('2 REPAIR ESTIMATOR'!D843:O843)","v":""},{"$nulls":7},{"$f":"'2 REPAIR ESTIMATOR'!P843","v":0},null,{"$f":"T('2 REPAIR ESTIMATOR'!S843)","v":""},{"$nulls":8},1,1,1]
[{"$nulls":3},{"$f":"T('2 REPAIR ESTIMATOR'!D844:O844)","v":""},{"$nulls":7},{"$f":"'2 REPAIR ESTIMATOR'!P844","v":0},null,{"$f":"T('2 REPAIR ESTIMATOR'!S844)","v":""},{"$nulls":8},1,1,1]
[{"$nulls":3},{"$f":"T('2 REPAIR ESTIMATOR'!D845:O845)","v":""},{"$nulls":7},{"$f":"'2 REPAIR ESTIMATOR'!P845","v":0},null,{"$f":"T('2 REPAIR ESTIMATOR'!S845)","v":""},{"$nulls":8},1,1,1]
[{"$nulls":3},{"$f":"T('2 REPAIR ESTIMATOR'!D846:O846)","v":""},{"$nulls":7},{"$f":"'2 REPAIR ESTIMATOR'!P846","v":0},null,{"$f":"T('2 REPAIR ESTIMATOR'!S846)","v":""},{"$nulls":8},1,1,1]
[{"$nulls":3},{"$f":"T('2 REPAIR ESTIMATOR'!D847:O847)","v":""},{"$nulls":7},{"$f":"'2 REPAIR ESTIMATOR'!P847","v":0},null,{"$f":"T('2 REPAIR ESTIMATOR'!S847)","v":""},{"$nulls":8},1,1,1]
[{"$nulls":22},{"$f":"W981","v":5},1,5]
[{"$nulls":3},{"$f":"UPPER(CONCATENATE(\"Miscellaneous \",D939,\" Items\"))","v":"MISCELLANEOUS HARDWOOD FLOORING ITEMS"},{"$nulls":18},{"$f":"SUM(W982:W991)","v":5},1,5]
[{"$nulls":3},1,"All hardwood flooring components will be Contractor Furnished, Contractor Installed.",{"$nulls":17},{"$f":"IF(E982<>\"\",1,0)*W939","v":1},1,1]
[{"$nulls":3},2,"Furnish and install new hardwood flooring in designated rooms.",{"$nulls":17},{"$f":"IF(E983<>\"\",1,0)*W939","v":1},1,1]
[{"$nulls":3},3,"(a) Hardwood Flooring Specification: ____________________",{"$nulls":17},{"$f":"IF(E984<>\"\",1,0)*W939","v":1},1,1]
[{"$nulls":3},4,"If wood selected is unfinished, include staining and finishing of floor.",{"$nulls":17},{"$f":"IF(E985<>\"\",1,0)*W939","v":1},1,1]
[{"$nulls":3},5,"Include temporary floor protection after installation.",{"$nulls":17},{"$f":"IF(E986<>\"\",1,0)*W939","v":1},1,1]
[{"$nulls":3},6,{"$nulls":18},{"$f":"IF(E987<>\"\",1,0)*W939","v":0},1,0]
[{"$nulls":3},7,{"$nulls":18},{"$f":"IF(E988<>\"\",1,0)*W939","v":0},1,0]
[{"$nulls":3},8,{"$nulls":18},{"$f":"IF(E989<>\"\",1,0)*W939","v":0},1,0]
[{"$nulls":3},9,{"$nulls":18},{"$f":"IF(E990<>\"\",1,0)*W939","v":0},1,0]
[{"$nulls":3},10,{"$nulls":18},{"$f":"IF(E991<>\"\",1,0)*W939","v":0},1,0]
[{"$nulls":22},{"$f":"W939","v":1},1,1]
[{"$nulls":3},{"$f":"UPPER(CONCATENATE(\"TOTAL \",D939))","v":"TOTAL HARDWOOD FLOORING"},{"$nulls":18},{"$f":"W939","v":1},1,1]
[{"$nulls":22},{"$f":"W939","v":1},1,1]
[{"$nulls":3},{"$f":"T('2 REPAIR ESTIMATOR'!D852:O852)","v":"TILING"},{"$nulls":7},{"$f":"SUM(L996:M1035)","v":300},{"$nulls":10},{"$f":"IF(L995>0,1,0)","v":1},{"$f":"IF(Scope18_Setting=\"Shown\",1,0)","v":1},1]
[{"$nulls":3},{"$f":"T('2 REPAIR ESTIMATOR'!D853:O853)","v":"Tiling bid/allowance"},{"$nulls":7},{"$f":"'2 REPAIR ESTIMATOR'!P853","v":0},null,{"$f":"T('2 REPAIR ESTIMATOR'!S853)","v":"ls"},{"$nulls":8},{"$f":"IF(L996=\"\",0,1)","v":1},1,1]
[{"$nulls":3},{"$f":"T('2 REPAIR ESTIMATOR'!D854:O854)","v":"Kitchen "},{"$nulls":7},{"$f":"'2 REPAIR ESTIMATOR'!P854","v":0},null,{"$f":"T('2 REPAIR ESTIMATOR'!S854)","v":""},{"$nulls":8},{"$f":"IF(L997=\"\",0,1)","v":1},1,1]
[{"$nulls":3},{"$f":"T('2 REPAIR ESTIMATOR'!D855:O855)","v":"Kitchen backsplash, mosaic tile"},{"$nulls":7},{"$f":"'2 REPAIR ESTIMATOR'!P855","v":25},null,{"$f":"T('2 REPAIR ESTIMATOR'!S855)","v":"sf"},{"$nulls":8},1,1,1]
[{"$nulls":3},{"$f":"T('2 REPAIR ESTIMATOR'!D856:O856)","v":"Floor tile, Kitchen"},{"$nulls":7},{"$f":"'2 REPAIR ESTIMATOR'!P856","v":0},null,{"$f":"T('2 REPAIR ESTIMATOR'!S856)","v":"sf"},{"$nulls":8},1,1,1]
[{"$nulls":3},{"$f":"T('2 REPAIR ESTIMATOR'!D857:O857)","v":""},{"$nulls":7},{"$f":"'2 REPAIR ESTIMATOR'!P857","v":0},null,{"$f":"T('2 REPAIR ESTIMATOR'!S857)","v":""},{"$nulls":8},1,1,1]
[{"$nulls":3},{"$f":"T('2 REPAIR ESTIMATOR'!D858:O858)","v":""},{"$nulls":7},{"$f":"'2 REPAIR ESTIMATOR'!P858","v":0},null,{"$f":"T('2 REPAIR ESTIMATOR'!S858)","v":""},{"$nulls":8},1,1,1]
[{"$nulls":3},{"$f":"T('2 REPAIR ESTIMATOR'!D859:O859)","v":"Bathrooms"},{"$nulls":7},{"$f":"'2 REPAIR ESTIMATOR'!P859","v":0},null,{"$f":"T('2 REPAIR ESTIMATOR'!S859)","v":""},{"$nulls":8},1,1,1]
[{"$nulls":3},{"$f":"T('2 REPAIR ESTIMATOR'!D860:O860)","v":"Shower tile, standard"},{"$nulls":7},{"$f":"'2 REPAIR ESTIMATOR'!P860","v":180},null,{"$f":"T('2 REPAIR ESTIMATOR'!S860)","v":"sf"},{"$nulls":8},1,1,1]
[{"$nulls":3},{"$f":"T('2 REPAIR ESTIMATOR'!D861:O861)","v":"Shower tile, accent mosaic tile"},{"$nulls":7},{"$f":"'2 REPAIR ESTIMATOR'!P861","v":20},null,{"$f":"T('2 REPAIR ESTIMATOR'!S861)","v":"sf"},{"$nulls":8},1,1,{"$f":"W1004*X1004","v":1}]
[{"$nulls":3},{"$f":"T('2 REPAIR ESTIMATOR'!D862:O862)","v":"Floor tile, bathrooms"},{"$nulls":7},{"$f":"'2 REPAIR ESTIMATOR'!P862","v":75},null,{"$f":"T('2 REPAIR ESTIMATOR'!S862)","v":"sf"},{"$nulls":8},1,1,1]
[{"$nulls":3},{"$f":"T('2 REPAIR ESTIMATOR'!D863:O863)","v":""},{"$nulls":7},{"$f":"'2 REPAIR ESTIMATOR'!P863","v":0},null,{"$f":"T('2 REPAIR ESTIMATOR'!S863)","v":""},{"$nulls":8},1,1,1]
[{"$nulls":3},{"$f":"T('2 REPAIR ESTIMATOR'!D864:O864)","v":""},{"$nulls":7},{"$f":"'2 REPAIR ESTIMATOR'!P864","v":0},null,{"$f":"T('2 REPAIR ESTIMATOR'!S864)","v":""},{"$nulls":8},1,1,1]
[{"$nulls":3},{"$f":"T('2 REPAIR ESTIMATOR'!D865:O865)","v":"Miscellaneous Tiling"},{"$nulls":7},{"$f":"'2 REPAIR ESTIMATOR'!P865","v":0},null,{"$f":"T('2 REPAIR ESTIMATOR'!S865)","v":""},{"$nulls":8},1,1,1]
[{"$nulls":3},{"$f":"T('2 REPAIR ESTIMATOR'!D866:O866)","v":"Floor tile, entry "},{"$nulls":7},{"$f":"'2 REPAIR ESTIMATOR'!P866","v":0},null,{"$f":"T('2 REPAIR ESTIMATOR'!S866)","v":"sf"},{"$nulls":8},1,1,1]
[{"$nulls":3},{"$f":"T('2 REPAIR ESTIMATOR'!D867:O867)","v":"Fireplace tiling"},{"$nulls":7},{"$f":"'2 REPAIR ESTIMATOR'!P867","v":0},null,{"$f":"T('2 REPAIR ESTIMATOR'!S867)","v":"sf"},{"$nulls":8},1,1,1]
[{"$nulls":3},{"$f":"T('2 REPAIR ESTIMATOR'!D868:O868)","v":""},{"$nulls":7},{"$f":"'2 REPAIR ESTIMATOR'!P868","v":0},null,{"$f":"T('2 REPAIR ESTIMATOR'!S868)","v":""},{"$nulls":8},1,1,1]
[{"$nulls":3},{"$f":"T('2 REPAIR ESTIMATOR'!D869:O869)","v":""},{"$nulls":7},{"$f":"'2 REPAIR ESTIMATOR'!P869","v":0},null,{"$f":"T('2 REPAIR ESTIMATOR'!S869)","v":""},{"$nulls":8},1,1,1]
[{"$nulls":3},{"$f":"T('2 REPAIR ESTIMATOR'!D870:O870)","v":"Other"},{"$nulls":7},{"$f":"'2 REPAIR ESTIMATOR'!P870","v":0},null,{"$f":"T('2 REPAIR ESTIMATOR'!S870)","v":""},{"$nulls":8},1,1,1]
[{"$nulls":3},{"$f":"T('2 REPAIR ESTIMATOR'!D871:O871)","v":"Backer board 1/4\" at floor tile"},{"$nulls":7},{"$f":"'2 REPAIR ESTIMATOR'!P871","v":0},null,{"$f":"T('2 REPAIR ESTIMATOR'!S871)","v":"sf"},{"$nulls":8},1,1,1]
[{"$nulls":3},{"$f":"T('2 REPAIR ESTIMATOR'!D872:O872)","v":"Backer board 1/2\" at wall tile"},{"$nulls":7},{"$f":"'2 REPAIR ESTIMATOR'!P872","v":0},null,{"$f":"T('2 REPAIR ESTIMATOR'!S872)","v":"sf"},{"$nulls":8},1,1,1]
[{"$nulls":3},{"$f":"T('2 REPAIR ESTIMATOR'!D873:O873)","v":""},{"$nulls":7},{"$f":"'2 REPAIR ESTIMATOR'!P873","v":0},null,{"$f":"T('2 REPAIR ESTIMATOR'!S873)","v":""},{"$nulls":8},1,1,1]
[{"$nulls":3},{"$f":"T('2 REPAIR ESTIMATOR'!D874:O874)","v":""},{"$nulls":7},{"$f":"'2 REPAIR ESTIMATOR'!P874","v":0},null,{"$f":"T('2 REPAIR ESTIMATOR'!S874)","v":""},{"$nulls":8},1,1,1]
[{"$nulls":3},{"$f":"T('2 REPAIR ESTIMATOR'!D875:O875)","v":""},{"$nulls":7},{"$f":"'2 REPAIR ESTIMATOR'!P875","v":0},null,{"$f":"T('2 REPAIR ESTIMATOR'!S875)","v":""},{"$nulls":8},1,1,1]
[{"$nulls":3},{"$f":"T('2 REPAIR ESTIMATOR'!D876:O876)","v":""},{"$nulls":7},{"$f":"'2 REPAIR ESTIMATOR'!P876","v":0},null,{"$f":"T('2 REPAIR ESTIMATOR'!S876)","v":""},{"$nulls":8},1,1,1]
[{"$nulls":3},{"$f":"T('2 REPAIR ESTIMATOR'!D877:O877)","v":""},{"$nulls":7},{"$f":"'2 REPAIR ESTIMATOR'!P877","v":0},null,{"$f":"T('2 REPAIR ESTIMATOR'!S877)","v":""},{"$nulls":8},1,1,1]
[{"$nulls":3},{"$f":"T('2 REPAIR ESTIMATOR'!D878:O878)","v":""},{"$nulls":7},{"$f":"'2 REPAIR ESTIMATOR'!P878","v":0},null,{"$f":"T('2 REPAIR ESTIMATOR'!S878)","v":""},{"$nulls":8},1,1,1]
[{"$nulls":3},{"$f":"T('2 REPAIR ESTIMATOR'!D879:O879)","v":""},{"$nulls":7},{"$f":"'2 REPAIR ESTIMATOR'!P879","v":0},null,{"$f":"T('2 REPAIR ESTIMATOR'!S879)","v":""},{"$nulls":8},1,1,1]
[{"$nulls":3},{"$f":"T('2 REPAIR ESTIMATOR'!D880:O880)","v":""},{"$nulls":7},{"$f":"'2 REPAIR ESTIMATOR'!P880","v":0},null,{"$f":"T('2 REPAIR ESTIMATOR'!S880)","v":""},{"$nulls":8},1,1,1]
[{"$nulls":3},{"$f":"T('2 REPAIR ESTIMATOR'!D881:O881)","v":""},{"$nulls":7},{"$f":"'2 REPAIR ESTIMATOR'!P881","v":0},null,{"$f":"T('2 REPAIR ESTIMATOR'!S881)","v":""},{"$nulls":8},1,1,1]
[{"$nulls":3},{"$f":"T('2 REPAIR ESTIMATOR'!D882:O882)","v":""},{"$nulls":7},{"$f":"'2 REPAIR ESTIMATOR'!P882","v":0},null,{"$f":"T('2 REPAIR ESTIMATOR'!S882)","v":""},{"$nulls":8},1,1,1]
[{"$nulls":3},{"$f":"T('2 REPAIR ESTIMATOR'!D883:O883)","v":""},{"$nulls":7},{"$f":"'2 REPAIR ESTIMATOR'!P883","v":0},null,{"$f":"T('2 REPAIR ESTIMATOR'!S883)","v":""},{"$nulls":8},1,1,1]
[{"$nulls":3},{"$f":"T('2 REPAIR ESTIMATOR'!D884:O884)","v":""},{"$nulls":7},{"$f":"'2 REPAIR ESTIMATOR'!P884","v":0},null,{"$f":"T('2 REPAIR ESTIMATOR'!S884)","v":""},{"$nulls":8},1,{"$f":"IF(Scope18_Setting=\"Shown\",1,0)","v":1},1]
[{"$nulls":3},{"$f":"T('2 REPAIR ESTIMATOR'!D885:O885)","v":""},{"$nulls":7},{"$f":"'2 REPAIR ESTIMATOR'!P885","v":0},null,{"$f":"T('2 REPAIR ESTIMATOR'!S885)","v":""},{"$nulls":8},1,1,1]
[{"$nulls":3},{"$f":"T('2 REPAIR ESTIMATOR'!D886:O886)","v":""},{"$nulls":7},{"$f":"'2 REPAIR ESTIMATOR'!P886","v":0},null,{"$f":"T('2 REPAIR ESTIMATOR'!S886)","v":""},{"$nulls":8},1,1,1]
[{"$nulls":3},{"$f":"T('2 REPAIR ESTIMATOR'!D887:O887)","v":""},{"$nulls":7},{"$f":"'2 REPAIR ESTIMATOR'!P887","v":0},null,{"$f":"T('2 REPAIR ESTIMATOR'!S887)","v":""},{"$nulls":8},1,1,1]
[{"$nulls":3},{"$f":"T('2 REPAIR ESTIMATOR'!D888:O888)","v":""},{"$nulls":7},{"$f":"'2 REPAIR ESTIMATOR'!P888","v":0},null,{"$f":"T('2 REPAIR ESTIMATOR'!S888)","v":""},{"$nulls":8},1,1,1]
[{"$nulls":3},{"$f":"T('2 REPAIR ESTIMATOR'!D889:O889)","v":""},{"$nulls":7},{"$f":"'2 REPAIR ESTIMATOR'!P889","v":0},null,{"$f":"T('2 REPAIR ESTIMATOR'!S889)","v":""},{"$nulls":8},1,1,1]
[{"$nulls":3},{"$f":"T('2 REPAIR ESTIMATOR'!D890:O890)","v":""},{"$nulls":7},{"$f":"'2 REPAIR ESTIMATOR'!P890","v":0},null,{"$f":"T('2 REPAIR ESTIMATOR'!S890)","v":""},{"$nulls":8},1,1,1]
[{"$nulls":3},{"$f":"T('2 REPAIR ESTIMATOR'!D891:O891)","v":""},{"$nulls":7},{"$f":"'2 REPAIR ESTIMATOR'!P891","v":0},null,{"$f":"T('2 REPAIR ESTIMATOR'!S891)","v":""},{"$nulls":8},1,1,1]
[{"$nulls":3},{"$f":"T('2 REPAIR ESTIMATOR'!D892:O892)","v":""},{"$nulls":7},{"$f":"'2 REPAIR ESTIMATOR'!P892","v":0},null,{"$f":"T('2 REPAIR ESTIMATOR'!S892)","v":""},{"$nulls":8},1,1,1]
[{"$nulls":22},{"$f":"W1037","v":{"$error":"#REF!"}},1,{"$error":"#REF!"}]
[{"$nulls":3},{"$f":"UPPER(CONCATENATE(\"Miscellaneous \",D995,\" Items\"))","v":"MISCELLANEOUS TILING ITEMS"},{"$nulls":18},{"$f":"SUM(W1038:W1047)","v":{"$error":"#REF!"}},1,{"$error":"#REF!"}]
[{"$nulls":3},1,"All tiling components will be Contractor Furnished, Contractor Installed.",{"$nulls":17},{"$f":"IF(E1038<>\"\",1,0)*W995","v":1},1,1]
[{"$nulls":3},2,"Furnish and install new tiling in designated areas.",{"$nulls":17},{"$f":"IF(E1039<>\"\",1,0)*W995","v":1},1,1]
[{"$nulls":3},3,"(a) Tiling Material Specification: ____________________",{"$nulls":17},{"$f":"IF(E1041<>\"\",1,0)*W995","v":1},1,1]
[{"$nulls":3},4,"Furnish and install cement board (or equivalent) at all tile areas. (CFCI)",{"$nulls":17},{"$f":"IF(E1042<>\"\",1,0)*W995","v":1},1,1]
[{"$nulls":3},5,"Install pre-fabricated or filed built shower base (contractor's preference) at master bathroom shower. (CFCI)",{"$nulls":17},{"$f":"IF(E1043<>\"\",1,0)*W995","v":1},1,1]
[{"$nulls":3},6,"Install fluied-appplied or mechanically fastened waterproofing membrane at shower tile. (CFCI)",{"$nulls":17},{"$f":"IF(E1044<>\"\",1,0)*W995","v":1},1,1]
[{"$nulls":3},7,"Furnish and install all grout and mortar. (CFCI)",{"$nulls":17},{"$f":"IF(E1045<>\"\",1,0)*W995","v":1},1,1]
[{"$nulls":3},8,"Install tile sealant and joint sealants. (CFCI)",{"$nulls":17},{"$f":"IF(#REF!<>\"\",1,0)*W995","v":{"$error":"#REF!"}},1,{"$error":"#REF!"}]
[{"$nulls":3},9,{"$nulls":18},{"$f":"IF(E1046<>\"\",1,0)*W995","v":0},1,0]
[{"$nulls":3},10,{"$nulls":18},{"$f":"IF(E1047<>\"\",1,0)*W995","v":0},1,0]
[{"$nulls":22},{"$f":"W995","v":1},1,1]
[{"$nulls":3},{"$f":"UPPER(CONCATENATE(\"TOTAL \",D995))","v":"TOTAL TILING"},{"$nulls":18},{"$f":"W995","v":1},1,1]
[{"$nulls":22},{"$f":"W995","v":1},1,1]
[{"$nulls":3},{"$f":"T('2 REPAIR ESTIMATOR'!D897:O897)","v":"PAINTING"},{"$nulls":7},{"$f":"SUM(L1052:M1091)","v":2},{"$nulls":10},{"$f":"IF(L1051>0,1,0)","v":1},{"$f":"IF(Scope19_Setting=\"Shown\",1,0)","v":1},1]
[{"$nulls":3},{"$f":"T('2 REPAIR ESTIMATOR'!D898:O898)","v":"Exterior Painting"},{"$nulls":7},{"$f":"'2 REPAIR ESTIMATOR'!P898","v":0},null,{"$f":"T('2 REPAIR ESTIMATOR'!S898)","v":""},{"$nulls":8},{"$f":"IF(L1052=\"\",0,1)","v":1},1,1]
[{"$nulls":3},{"$f":"T('2 REPAIR ESTIMATOR'!D899:O899)","v":"Exterior painting, bid/allowance"},{"$nulls":7},{"$f":"'2 REPAIR ESTIMATOR'!P899","v":1},null,{"$f":"T('2 REPAIR ESTIMATOR'!S899)","v":"ls"},{"$nulls":8},{"$f":"IF(L1053=\"\",0,1)","v":1},1,1]
[{"$nulls":3},{"$f":"T('2 REPAIR ESTIMATOR'!D900:O900)","v":"Exterior painting materials allowance"},{"$nulls":7},{"$f":"'2 REPAIR ESTIMATOR'!P900","v":0},null,{"$f":"T('2 REPAIR ESTIMATOR'!S900)","v":"gal"},{"$nulls":8},1,1,1]
[{"$nulls":3},{"$f":"T('2 REPAIR ESTIMATOR'!D901:O901)","v":"Prep/clean siding"},{"$nulls":7},{"$f":"'2 REPAIR ESTIMATOR'!P901","v":0},null,{"$f":"T('2 REPAIR ESTIMATOR'!S901)","v":"sf"},{"$nulls":8},1,1,1]
[{"$nulls":3},{"$f":"T('2 REPAIR ESTIMATOR'!D902:O902)","v":"Paint siding"},{"$nulls":7},{"$f":"'2 REPAIR ESTIMATOR'!P902","v":0},null,{"$f":"T('2 REPAIR ESTIMATOR'!S902)","v":"sf"},{"$nulls":8},1,1,1]
[{"$nulls":3},{"$f":"T('2 REPAIR ESTIMATOR'!D903:O903)","v":"Paint exterior door"},{"$nulls":7},{"$f":"'2 REPAIR ESTIMATOR'!P903","v":0},null,{"$f":"T('2 REPAIR ESTIMATOR'!S903)","v":"ea"},{"$nulls":8},1,1,1]
[{"$nulls":3},{"$f":"T('2 REPAIR ESTIMATOR'!D904:O904)","v":"Paint trim only"},{"$nulls":7},{"$f":"'2 REPAIR ESTIMATOR'!P904","v":0},null,{"$f":"T('2 REPAIR ESTIMATOR'!S904)","v":"lf"},{"$nulls":8},1,1,1]
[{"$nulls":3},{"$f":"T('2 REPAIR ESTIMATOR'!D905:O905)","v":"Sand & refinish decking"},{"$nulls":7},{"$f":"'2 REPAIR ESTIMATOR'!P905","v":0},null,{"$f":"T('2 REPAIR ESTIMATOR'!S905)","v":"sf"},{"$nulls":8},1,1,1]
[{"$nulls":3},{"$f":"T('2 REPAIR ESTIMATOR'!D906:O906)","v":""},{"$nulls":7},{"$f":"'2 REPAIR ESTIMATOR'!P906","v":0},null,{"$f":"T('2 REPAIR ESTIMATOR'!S906)","v":""},{"$nulls":8},1,1,1]
[{"$nulls":3},{"$f":"T('2 REPAIR ESTIMATOR'!D907:O907)","v":""},{"$nulls":7},{"$f":"'2 REPAIR ESTIMATOR'!P907","v":0},null,{"$f":"T('2 REPAIR ESTIMATOR'!S907)","v":""},{"$nulls":8},1,1,1]
[{"$nulls":3},{"$f":"T('2 REPAIR ESTIMATOR'!D908:O908)","v":"Interior Painting"},{"$nulls":7},{"$f":"'2 REPAIR ESTIMATOR'!P908","v":0},null,{"$f":"T('2 REPAIR ESTIMATOR'!S908)","v":""},{"$nulls":8},1,1,1]
[{"$nulls":3},{"$f":"T('2 REPAIR ESTIMATOR'!D909:O909)","v":"Interior painting, bid/allowance"},{"$nulls":7},{"$f":"'2 REPAIR ESTIMATOR'!P909","v":1},null,{"$f":"T('2 REPAIR ESTIMATOR'!S909)","v":"ls"},{"$nulls":8},1,1,1]
[{"$nulls":3},{"$f":"T('2 REPAIR ESTIMATOR'!D910:O910)","v":"Interior painting materials allowance"},{"$nulls":7},{"$f":"'2 REPAIR ESTIMATOR'!P910","v":0},null,{"$f":"T('2 REPAIR ESTIMATOR'!S910)","v":"gal"},{"$nulls":8},1,1,1]
[{"$nulls":3},{"$f":"T('2 REPAIR ESTIMATOR'!D911:O911)","v":"Paint doors & frames"},{"$nulls":7},{"$f":"'2 REPAIR ESTIMATOR'!P911","v":0},null,{"$f":"T('2 REPAIR ESTIMATOR'!S911)","v":"ea"},{"$nulls":8},1,1,1]
[{"$nulls":3},{"$f":"T('2 REPAIR ESTIMATOR'!D912:O912)","v":"Paint walls"},{"$nulls":7},{"$f":"'2 REPAIR ESTIMATOR'!P912","v":0},null,{"$f":"T('2 REPAIR ESTIMATOR'!S912)","v":"sf"},{"$nulls":8},1,1,1]
[{"$nulls":3},{"$f":"T('2 REPAIR ESTIMATOR'!D913:O913)","v":"Paint ceilings"},{"$nulls":7},{"$f":"'2 REPAIR ESTIMATOR'!P913","v":0},null,{"$f":"T('2 REPAIR ESTIMATOR'!S913)","v":"sf"},{"$nulls":8},1,1,1]
[{"$nulls":3},{"$f":"T('2 REPAIR ESTIMATOR'!D914:O914)","v":"Paint wood base"},{"$nulls":7},{"$f":"'2 REPAIR ESTIMATOR'!P914","v":0},null,{"$f":"T('2 REPAIR ESTIMATOR'!S914)","v":"lf"},{"$nulls":8},1,1,{"$f":"W1068*X1068","v":1}]
[{"$nulls":3},{"$f":"T('2 REPAIR ESTIMATOR'!D915:O915)","v":"Strip, paint cabinets/vanities"},{"$nulls":7},{"$f":"'2 REPAIR ESTIMATOR'!P915","v":0},null,{"$f":"T('2 REPAIR ESTIMATOR'!S915)","v":"sf"},{"$nulls":8},1,1,1]
[{"$nulls":3},{"$f":"T('2 REPAIR ESTIMATOR'!D916:O916)","v":""},{"$nulls":7},{"$f":"'2 REPAIR ESTIMATOR'!P916","v":0},null,{"$f":"T('2 REPAIR ESTIMATOR'!S916)","v":""},{"$nulls":8},1,1,1]
[{"$nulls":3},{"$f":"T('2 REPAIR ESTIMATOR'!D917:O917)","v":""},{"$nulls":7},{"$f":"'2 REPAIR ESTIMATOR'!P917","v":0},null,{"$f":"T('2 REPAIR ESTIMATOR'!S917)","v":""},{"$nulls":8},1,1,1]
[{"$nulls":3},{"$f":"T('2 REPAIR ESTIMATOR'!D918:O918)","v":""},{"$nulls":7},{"$f":"'2 REPAIR ESTIMATOR'!P918","v":0},null,{"$f":"T('2 REPAIR ESTIMATOR'!S918)","v":""},{"$nulls":8},1,1,1]
[{"$nulls":3},{"$f":"T('2 REPAIR ESTIMATOR'!D919:O919)","v":""},{"$nulls":7},{"$f":"'2 REPAIR ESTIMATOR'!P919","v":0},null,{"$f":"T('2 REPAIR ESTIMATOR'!S919)","v":""},{"$nulls":8},1,1,1]
[{"$nulls":3},{"$f":"T('2 REPAIR ESTIMATOR'!D920:O920)","v":""},{"$nulls":7},{"$f":"'2 REPAIR ESTIMATOR'!P920","v":0},null,{"$f":"T('2 REPAIR ESTIMATOR'!S920)","v":""},{"$nulls":8},1,1,1]
[{"$nulls":3},{"$f":"T('2 REPAIR ESTIMATOR'!D921:O921)","v":""},{"$nulls":7},{"$f":"'2 REPAIR ESTIMATOR'!P921","v":0},null,{"$f":"T('2 REPAIR ESTIMATOR'!S921)","v":""},{"$nulls":8},1,1,1]
[{"$nulls":3},{"$f":"T('2 REPAIR ESTIMATOR'!D922:O922)","v":""},{"$nulls":7},{"$f":"'2 REPAIR ESTIMATOR'!P922","v":0},null,{"$f":"T('2 REPAIR ESTIMATOR'!S922)","v":""},{"$nulls":8},1,1,1]
[{"$nulls":3},{"$f":"T('2 REPAIR ESTIMATOR'!D923:O923)","v":""},{"$nulls":7},{"$f":"'2 REPAIR ESTIMATOR'!P923","v":0},null,{"$f":"T('2 REPAIR ESTIMATOR'!S923)","v":""},{"$nulls":8},1,1,1]
[{"$nulls":3},{"$f":"T('2 REPAIR ESTIMATOR'!D924:O924)","v":""},{"$nulls":7},{"$f":"'2 REPAIR ESTIMATOR'!P924","v":0},null,{"$f":"T('2 REPAIR ESTIMATOR'!S924)","v":""},{"$nulls":8},1,1,1]
[{"$nulls":3},{"$f":"T('2 REPAIR ESTIMATOR'!D925:O925)","v":""},{"$nulls":7},{"$f":"'2 REPAIR ESTIMATOR'!P925","v":0},null,{"$f":"T('2 REPAIR ESTIMATOR'!S925)","v":""},{"$nulls":8},1,1,1]
[{"$nulls":3},{"$f":"T('2 REPAIR ESTIMATOR'!D926:O926)","v":""},{"$nulls":7},{"$f":"'2 REPAIR ESTIMATOR'!P926","v":0},null,{"$f":"T('2 REPAIR ESTIMATOR'!S926)","v":""},{"$nulls":8},1,1,1]
[{"$nulls":3},{"$f":"T('2 REPAIR ESTIMATOR'!D927:O927)","v":""},{"$nulls":7},{"$f":"'2 REPAIR ESTIMATOR'!P927","v":0},null,{"$f":"T('2 REPAIR ESTIMATOR'!S927)","v":""},{"$nulls":8},1,1,1]
[{"$nulls":3},{"$f":"T('2 REPAIR ESTIMATOR'!D928:O928)","v":""},{"$nulls":7},{"$f":"'2 REPAIR ESTIMATOR'!P928","v":0},null,{"$f":"T('2 REPAIR ESTIMATOR'!S928)","v":""},{"$nulls":8},1,1,1]
[{"$nulls":3},{"$f":"T('2 REPAIR ESTIMATOR'!D929:O929)","v":""},{"$nulls":7},{"$f":"'2 REPAIR ESTIMATOR'!P929","v":0},null,{"$f":"T('2 REPAIR ESTIMATOR'!S929)","v":""},{"$nulls":8},1,{"$f":"IF(Scope19_Setting=\"Shown\",1,0)","v":1},1]
[{"$nulls":3},{"$f":"T('2 REPAIR ESTIMATOR'!D930:O930)","v":""},{"$nulls":7},{"$f":"'2 REPAIR ESTIMATOR'!P930","v":0},null,{"$f":"T('2 REPAIR ESTIMATOR'!S930)","v":""},{"$nulls":8},1,1,1]
[{"$nulls":3},{"$f":"T('2 REPAIR ESTIMATOR'!D931:O931)","v":""},{"$nulls":7},{"$f":"'2 REPAIR ESTIMATOR'!P931","v":0},null,{"$f":"T('2 REPAIR ESTIMATOR'!S931)","v":""},{"$nulls":8},1,1,1]
[{"$nulls":3},{"$f":"T('2 REPAIR ESTIMATOR'!D932:O932)","v":""},{"$nulls":7},{"$f":"'2 REPAIR ESTIMATOR'!P932","v":0},null,{"$f":"T('2 REPAIR ESTIMATOR'!S932)","v":""},{"$nulls":8},1,1,1]
[{"$nulls":3},{"$f":"T('2 REPAIR ESTIMATOR'!D933:O933)","v":""},{"$nulls":7},{"$f":"'2 REPAIR ESTIMATOR'!P933","v":0},null,{"$f":"T('2 REPAIR ESTIMATOR'!S933)","v":""},{"$nulls":8},1,1,1]
[{"$nulls":3},{"$f":"T('2 REPAIR ESTIMATOR'!D934:O934)","v":""},{"$nulls":7},{"$f":"'2 REPAIR ESTIMATOR'!P934","v":0},null,{"$f":"T('2 REPAIR ESTIMATOR'!S934)","v":""},{"$nulls":8},1,1,1]
[{"$nulls":3},{"$f":"T('2 REPAIR ESTIMATOR'!D935:O935)","v":""},{"$nulls":7},{"$f":"'2 REPAIR ESTIMATOR'!P935","v":0},null,{"$f":"T('2 REPAIR ESTIMATOR'!S935)","v":""},{"$nulls":8},1,1,1]
[{"$nulls":3},{"$f":"T('2 REPAIR ESTIMATOR'!D936:O936)","v":""},{"$nulls":7},{"$f":"'2 REPAIR ESTIMATOR'!P936","v":0},null,{"$f":"T('2 REPAIR ESTIMATOR'!S936)","v":""},{"$nulls":8},1,1,1]
[{"$nulls":3},{"$f":"T('2 REPAIR ESTIMATOR'!D937:O937)","v":""},{"$nulls":7},{"$f":"'2 REPAIR ESTIMATOR'!P937","v":0},null,{"$f":"T('2 REPAIR ESTIMATOR'!S937)","v":""},{"$nulls":8},1,1,1]
[{"$nulls":22},{"$f":"W1093","v":10},1,10]
[{"$nulls":3},{"$f":"UPPER(CONCATENATE(\"Miscellaneous \",D1051,\" Items\"))","v":"MISCELLANEOUS PAINTING ITEMS"},{"$nulls":18},{"$f":"SUM(W1094:W1103)","v":10},1,10]
[{"$nulls":3},1,"All painting components will be Contractor Furnished, Contractor Installed.",{"$nulls":17},{"$f":"IF(E1094<>\"\",1,0)*W1051","v":1},1,1]
[{"$nulls":3},2,"Power wash existing siding as necessary to prep for new paint.",{"$nulls":17},{"$f":"IF(E1095<>\"\",1,0)*W1051","v":1},1,1]
[{"$nulls":3},3,"Scape existing peeling, splintering or cracking paint to prep for new paint.",{"$nulls":17},{"$f":"IF(E1096<>\"\",1,0)*W1051","v":1},1,1]
[{"$nulls":3},4,"Caulk and prep all new & existing exterior trim boards. (CFCI)",{"$nulls":17},{"$f":"IF(E1097<>\"\",1,0)*W1051","v":1},1,1]
[{"$nulls":3},5,"Exterior Painting Plan Scheme:   Walls ________________   Trim ________________ Front Door _________________",{"$nulls":17},{"$f":"IF(E1098<>\"\",1,0)*W1051","v":1},1,1]
[{"$nulls":3},6,"Paint interior walls, ceilings, doors and trim. (CFCI)",{"$nulls":17},{"$f":"IF(E1099<>\"\",1,0)*W1051","v":1},1,1]
[{"$nulls":3},7,"Prep and patch minor dents/imperfections in existing walls to receive paint.",{"$nulls":17},{"$f":"IF(E1100<>\"\",1,0)*W1051","v":1},1,1]
[{"$nulls":3},8,"Interior Painting Plan Scheme:   Walls ________________  Ceilings ________________ Trim _________________  Doors ________________",{"$nulls":17},{"$f":"IF(E1101<>\"\",1,0)*W1051","v":1},1,1]
[{"$nulls":3},9,"Protect existing surfaces not to receive paint.",{"$nulls":17},{"$f":"IF(E1102<>\"\",1,0)*W1051","v":1},1,1]
[{"$nulls":3},10,"Caulk all new & existing trim to receive paint as required. (CFCI)",{"$nulls":17},{"$f":"IF(E1103<>\"\",1,0)*W1051","v":1},1,1]
[{"$nulls":22},{"$f":"W1051","v":1},1,1]
[{"$nulls":3},{"$f":"UPPER(CONCATENATE(\"TOTAL \",D1051))","v":"TOTAL PAINTING"},{"$nulls":18},{"$f":"W1051","v":1},1,1]
[{"$nulls":22},{"$f":"W1051","v":1},1,1]
[{"$nulls":3},{"$f":"T('2 REPAIR ESTIMATOR'!D942:O942)","v":"APPLIANCES"},{"$nulls":7},{"$f":"SUM(L1108:M1147)","v":1},{"$nulls":10},{"$f":"IF(L1107>0,1,0)","v":1},{"$f":"IF(Scope20_Setting=\"Shown\",1,0)","v":1},1]
[{"$nulls":3},{"$f":"T('2 REPAIR ESTIMATOR'!D943:O943)","v":"Appliances, Bid/Allowance"},{"$nulls":7},{"$f":"'2 REPAIR ESTIMATOR'!P943","v":0},null,{"$f":"T('2 REPAIR ESTIMATOR'!S943)","v":"ls"},{"$nulls":8},{"$f":"IF(L1108=\"\",0,1)","v":1},1,1]
[{"$nulls":3},{"$f":"T('2 REPAIR ESTIMATOR'!D944:O944)","v":""},{"$nulls":7},{"$f":"'2 REPAIR ESTIMATOR'!P944","v":0},null,{"$f":"T('2 REPAIR ESTIMATOR'!S944)","v":""},{"$nulls":8},{"$f":"IF(L1109=\"\",0,1)","v":1},1,1]
[{"$nulls":3},{"$f":"T('2 REPAIR ESTIMATOR'!D945:O945)","v":"Appliance Package"},{"$nulls":7},{"$f":"'2 REPAIR ESTIMATOR'!P945","v":0},null,{"$f":"T('2 REPAIR ESTIMATOR'!S945)","v":""},null,"OFCI",{"$nulls":6},1,1,1]
[{"$nulls":3},{"$f":"T('2 REPAIR ESTIMATOR'!D946:O946)","v":"Economy, (fridge, range, hood, dw, microwave)"},{"$nulls":7},{"$f":"'2 REPAIR ESTIMATOR'!P946","v":0},null,{"$f":"T('2 REPAIR ESTIMATOR'!S946)","v":"ea"},null,"OFCI",{"$nulls":6},1,1,1]
[{"$nulls":3},{"$f":"T('2 REPAIR ESTIMATOR'!D947:O947)","v":"Average, (fridge, range, hood, dw, microwave)"},{"$nulls":7},{"$f":"'2 REPAIR ESTIMATOR'!P947","v":1},null,{"$f":"T('2 REPAIR ESTIMATOR'!S947)","v":"ea"},null,"OFCI",{"$nulls":6},1,1,1]
[{"$nulls":3},{"$f":"T('2 REPAIR ESTIMATOR'!D948:O948)","v":"High End, (fridge, range, hood, dw, microwave)"},{"$nulls":7},{"$f":"'2 REPAIR ESTIMATOR'!P948","v":0},null,{"$f":"T('2 REPAIR ESTIMATOR'!S948)","v":"ea"},null,"OFCI",{"$nulls":6},1,1,1]
[{"$nulls":3},{"$f":"T('2 REPAIR ESTIMATOR'!D949:O949)","v":""},{"$nulls":7},{"$f":"'2 REPAIR ESTIMATOR'!P949","v":0},null,{"$f":"T('2 REPAIR ESTIMATOR'!S949)","v":""},{"$nulls":8},1,1,1]
[{"$nulls":3},{"$f":"T('2 REPAIR ESTIMATOR'!D950:O950)","v":""},{"$nulls":7},{"$f":"'2 REPAIR ESTIMATOR'!P950","v":0},null,{"$f":"T('2 REPAIR ESTIMATOR'!S950)","v":""},{"$nulls":8},1,1,1]
[{"$nulls":3},{"$f":"T('2 REPAIR ESTIMATOR'!D951:O951)","v":"Appliances, Detailed, Ecomony"},{"$nulls":7},{"$f":"'2 REPAIR ESTIMATOR'!P951","v":0},null,{"$f":"T('2 REPAIR ESTIMATOR'!S951)","v":""},null,"OFCI",{"$nulls":6},1,1,1]
[{"$nulls":3},{"$f":"T('2 REPAIR ESTIMATOR'!D952:O952)","v":"Refrigerator, economy"},{"$nulls":7},{"$f":"'2 REPAIR ESTIMATOR'!P952","v":0},null,{"$f":"T('2 REPAIR ESTIMATOR'!S952)","v":"ea"},null,"OFCI",{"$nulls":6},1,1,1]
[{"$nulls":3},{"$f":"T('2 REPAIR ESTIMATOR'!D953:O953)","v":"Range, economy"},{"$nulls":7},{"$f":"'2 REPAIR ESTIMATOR'!P953","v":0},null,{"$f":"T('2 REPAIR ESTIMATOR'!S953)","v":"ea"},null,"OFCI",{"$nulls":6},1,1,1]
[{"$nulls":3},{"$f":"T('2 REPAIR ESTIMATOR'!D954:O954)","v":"Range Hood, economy"},{"$nulls":7},{"$f":"'2 REPAIR ESTIMATOR'!P954","v":0},null,{"$f":"T('2 REPAIR ESTIMATOR'!S954)","v":"ea"},null,"OFCI",{"$nulls":6},1,1,1]
[{"$nulls":3},{"$f":"T('2 REPAIR ESTIMATOR'!D955:O955)","v":"Dishwasher, economy"},{"$nulls":7},{"$f":"'2 REPAIR ESTIMATOR'!P955","v":0},null,{"$f":"T('2 REPAIR ESTIMATOR'!S955)","v":"ea"},null,"OFCI",{"$nulls":6},1,1,1]
[{"$nulls":3},{"$f":"T('2 REPAIR ESTIMATOR'!D956:O956)","v":"Microwave, economy"},{"$nulls":7},{"$f":"'2 REPAIR ESTIMATOR'!P956","v":0},null,{"$f":"T('2 REPAIR ESTIMATOR'!S956)","v":"ea"},null,"OFCI",{"$nulls":6},1,1,1]
[{"$nulls":3},{"$f":"T('2 REPAIR ESTIMATOR'!D957:O957)","v":"Appliance delivery"},{"$nulls":7},{"$f":"'2 REPAIR ESTIMATOR'!P957","v":0},null,{"$f":"T('2 REPAIR ESTIMATOR'!S957)","v":"ea"},null,"OFCI",{"$nulls":6},1,1,1]
[{"$nulls":3},{"$f":"T('2 REPAIR ESTIMATOR'!D958:O958)","v":""},{"$nulls":7},{"$f":"'2 REPAIR ESTIMATOR'!P958","v":0},null,{"$f":"T('2 REPAIR ESTIMATOR'!S958)","v":""},{"$nulls":8},1,1,1]
[{"$nulls":3},{"$f":"T('2 REPAIR ESTIMATOR'!D959:O959)","v":""},{"$nulls":7},{"$f":"'2 REPAIR ESTIMATOR'!P959","v":0},null,{"$f":"T('2 REPAIR ESTIMATOR'!S959)","v":""},{"$nulls":8},1,1,1]
[{"$nulls":3},{"$f":"T('2 REPAIR ESTIMATOR'!D960:O960)","v":"Appliances, Detailed, Average"},{"$nulls":7},{"$f":"'2 REPAIR ESTIMATOR'!P960","v":0},null,{"$f":"T('2 REPAIR ESTIMATOR'!S960)","v":""},null,"OFCI",{"$nulls":6},1,1,1]
[{"$nulls":3},{"$f":"T('2 REPAIR ESTIMATOR'!D961:O961)","v":"Refrigerator, average"},{"$nulls":7},{"$f":"'2 REPAIR ESTIMATOR'!P961","v":0},null,{"$f":"T('2 REPAIR ESTIMATOR'!S961)","v":"ea"},null,"OFCI",{"$nulls":6},1,1,1]
[{"$nulls":3},{"$f":"T('2 REPAIR ESTIMATOR'!D962:O962)","v":"Range, average"},{"$nulls":7},{"$f":"'2 REPAIR ESTIMATOR'!P962","v":0},null,{"$f":"T('2 REPAIR ESTIMATOR'!S962)","v":"ea"},null,"OFCI",{"$nulls":6},1,1,1]
[{"$nulls":3},{"$f":"T('2 REPAIR ESTIMATOR'!D963:O963)","v":"Range Hood, average"},{"$nulls":7},{"$f":"'2 REPAIR ESTIMATOR'!P963","v":0},null,{"$f":"T('2 REPAIR ESTIMATOR'!S963)","v":"ea"},null,"OFCI",{"$nulls":6},1,1,1]
[{"$nulls":3},{"$f":"T('2 REPAIR ESTIMATOR'!D964:O964)","v":"Dishwasher, average"},{"$nulls":7},{"$f":"'2 REPAIR ESTIMATOR'!P964","v":0},null,{"$f":"T('2 REPAIR ESTIMATOR'!S964)","v":"ea"},null,"OFCI",{"$nulls":6},1,1,1]
[{"$nulls":3},{"$f":"T('2 REPAIR ESTIMATOR'!D965:O965)","v":"Microwave, average"},{"$nulls":7},{"$f":"'2 REPAIR ESTIMATOR'!P965","v":0},null,{"$f":"T('2 REPAIR ESTIMATOR'!S965)","v":"ea"},null,"OFCI",{"$nulls":6},1,1,1]
[{"$nulls":3},{"$f":"T('2 REPAIR ESTIMATOR'!D966:O966)","v":"Appliance delivery"},{"$nulls":7},{"$f":"'2 REPAIR ESTIMATOR'!P966","v":0},null,{"$f":"T('2 REPAIR ESTIMATOR'!S966)","v":"ea"},null,"OFCI",{"$nulls":6},1,1,1]
[{"$nulls":3},{"$f":"T('2 REPAIR ESTIMATOR'!D967:O967)","v":""},{"$nulls":7},{"$f":"'2 REPAIR ESTIMATOR'!P967","v":0},null,{"$f":"T('2 REPAIR ESTIMATOR'!S967)","v":""},{"$nulls":8},1,1,{"$f":"W1132*X1132","v":1}]
[{"$nulls":3},{"$f":"T('2 REPAIR ESTIMATOR'!D968:O968)","v":""},{"$nulls":7},{"$f":"'2 REPAIR ESTIMATOR'!P968","v":0},null,{"$f":"T('2 REPAIR ESTIMATOR'!S968)","v":""},{"$nulls":8},1,1,1]
[{"$nulls":3},{"$f":"T('2 REPAIR ESTIMATOR'!D969:O969)","v":"Appliances, Detailed, High End"},{"$nulls":7},{"$f":"'2 REPAIR ESTIMATOR'!P969","v":0},null,{"$f":"T('2 REPAIR ESTIMATOR'!S969)","v":""},null,"OFCI",{"$nulls":6},1,1,1]
[{"$nulls":3},{"$f":"T('2 REPAIR ESTIMATOR'!D970:O970)","v":"Refrigerator, high end"},{"$nulls":7},{"$f":"'2 REPAIR ESTIMATOR'!P970","v":0},null,{"$f":"T('2 REPAIR ESTIMATOR'!S970)","v":"ea"},null,"OFCI",{"$nulls":6},1,1,1]
[{"$nulls":3},{"$f":"T('2 REPAIR ESTIMATOR'!D971:O971)","v":"Range, high end"},{"$nulls":7},{"$f":"'2 REPAIR ESTIMATOR'!P971","v":0},null,{"$f":"T('2 REPAIR ESTIMATOR'!S971)","v":"ea"},null,"OFCI",{"$nulls":6},1,1,1]
[{"$nulls":3},{"$f":"T('2 REPAIR ESTIMATOR'!D972:O972)","v":"Range Hood, high end"},{"$nulls":7},{"$f":"'2 REPAIR ESTIMATOR'!P972","v":0},null,{"$f":"T('2 REPAIR ESTIMATOR'!S972)","v":"ea"},null,"OFCI",{"$nulls":6},1,1,1]
[{"$nulls":3},{"$f":"T('2 REPAIR ESTIMATOR'!D973:O973)","v":"Dishwasher, high end"},{"$nulls":7},{"$f":"'2 REPAIR ESTIMATOR'!P973","v":0},null,{"$f":"T('2 REPAIR ESTIMATOR'!S973)","v":"ea"},null,"OFCI",{"$nulls":6},1,1,1]
[{"$nulls":3},{"$f":"T('2 REPAIR ESTIMATOR'!D974:O974)","v":"Microwave, high end"},{"$nulls":7},{"$f":"'2 REPAIR ESTIMATOR'!P974","v":0},null,{"$f":"T('2 REPAIR ESTIMATOR'!S974)","v":"ea"},null,"OFCI",{"$nulls":6},1,{"$f":"IF(Scope20_Setting=\"Shown\",1,0)","v":1},1]
[{"$nulls":3},{"$f":"T('2 REPAIR ESTIMATOR'!D975:O975)","v":"Appliance delivery"},{"$nulls":7},{"$f":"'2 REPAIR ESTIMATOR'!P975","v":0},null,{"$f":"T('2 REPAIR ESTIMATOR'!S975)","v":"ea"},null,"OFCI",{"$nulls":6},1,1,1]
[{"$nulls":3},{"$f":"T('2 REPAIR ESTIMATOR'!D976:O976)","v":""},{"$nulls":7},{"$f":"'2 REPAIR ESTIMATOR'!P976","v":0},null,{"$f":"T('2 REPAIR ESTIMATOR'!S976)","v":""},{"$nulls":8},1,1,1]
[{"$nulls":3},{"$f":"T('2 REPAIR ESTIMATOR'!D977:O977)","v":""},{"$nulls":7},{"$f":"'2 REPAIR ESTIMATOR'!P977","v":0},null,{"$f":"T('2 REPAIR ESTIMATOR'!S977)","v":""},{"$nulls":8},1,1,1]
[{"$nulls":3},{"$f":"T('2 REPAIR ESTIMATOR'!D978:O978)","v":""},{"$nulls":7},{"$f":"'2 REPAIR ESTIMATOR'!P978","v":0},null,{"$f":"T('2 REPAIR ESTIMATOR'!S978)","v":""},{"$nulls":8},1,1,1]
[{"$nulls":3},{"$f":"T('2 REPAIR ESTIMATOR'!D979:O979)","v":""},{"$nulls":7},{"$f":"'2 REPAIR ESTIMATOR'!P979","v":0},null,{"$f":"T('2 REPAIR ESTIMATOR'!S979)","v":""},{"$nulls":8},1,1,1]
[{"$nulls":3},{"$f":"T('2 REPAIR ESTIMATOR'!D980:O980)","v":""},{"$nulls":7},{"$f":"'2 REPAIR ESTIMATOR'!P980","v":0},null,{"$f":"T('2 REPAIR ESTIMATOR'!S980)","v":""},{"$nulls":8},1,1,1]
[{"$nulls":3},{"$f":"T('2 REPAIR ESTIMATOR'!D981:O981)","v":""},{"$nulls":7},{"$f":"'2 REPAIR ESTIMATOR'!P981","v":0},null,{"$f":"T('2 REPAIR ESTIMATOR'!S981)","v":""},{"$nulls":8},1,1,1]
[{"$nulls":3},{"$f":"T('2 REPAIR ESTIMATOR'!D982:O982)","v":""},{"$nulls":7},{"$f":"'2 REPAIR ESTIMATOR'!P982","v":0},null,{"$f":"T('2 REPAIR ESTIMATOR'!S982)","v":""},{"$nulls":8},1,1,1]
[{"$nulls":22},{"$f":"W1149","v":3},1,3]
[{"$nulls":3},{"$f":"UPPER(CONCATENATE(\"Miscellaneous \",D1107,\" Items\"))","v":"MISCELLANEOUS APPLIANCES ITEMS"},{"$nulls":18},{"$f":"SUM(W1150:W1159)","v":3},1,3]
[{"$nulls":3},1,"Appliances will be Owner-Furnished, Contractor-Installed.",{"$nulls":17},{"$f":"IF(E1150<>\"\",1,0)*W1107","v":1},1,1]
[{"$nulls":3},2,"All cords, hoses, and connections to be Owner-Furnished, Contractor-Installed",{"$nulls":17},{"$f":"IF(E1151<>\"\",1,0)*W1107","v":1},1,1]
[{"$nulls":3},3,"Install and connect all owener furnished kitchen appliances.",{"$nulls":17},{"$f":"IF(E1152<>\"\",1,0)*W1107","v":1},1,1]
[{"$nulls":3},4,{"$nulls":18},{"$f":"IF(E1153<>\"\",1,0)*W1107","v":0},1,0]
[{"$nulls":3},5,{"$nulls":18},{"$f":"IF(E1154<>\"\",1,0)*W1107","v":0},1,0]
[{"$nulls":3},6,{"$nulls":18},{"$f":"IF(E1155<>\"\",1,0)*W1107","v":0},1,0]
[{"$nulls":3},7,{"$nulls":18},{"$f":"IF(E1156<>\"\",1,0)*W1107","v":0},1,0]
[{"$nulls":3},8,{"$nulls":18},{"$f":"IF(E1157<>\"\",1,0)*W1107","v":0},1,0]
[{"$nulls":3},9,{"$nulls":18},{"$f":"IF(E1158<>\"\",1,0)*W1107","v":0},1,0]
[{"$nulls":3},10,{"$nulls":18},{"$f":"IF(E1159<>\"\",1,0)*W1107","v":0},1,0]
[{"$nulls":22},{"$f":"W1107","v":1},1,1]
[{"$nulls":3},{"$f":"UPPER(CONCATENATE(\"TOTAL \",D1107))","v":"TOTAL APPLIANCES"},{"$nulls":18},{"$f":"W1107","v":1},1,1]
[{"$nulls":22},{"$f":"W1107","v":1},1,1]
[{"$nulls":3},{"$f":"T('2 REPAIR ESTIMATOR'!D987:O987)","v":"PLUMBING"},{"$nulls":7},{"$f":"SUM(L1164:M1203)","v":14},{"$nulls":10},{"$f":"IF(L1163>0,1,0)","v":1},{"$f":"IF(Scope21_Setting=\"Shown\",1,0)","v":1},1]
[{"$nulls":3},{"$f":"T('2 REPAIR ESTIMATOR'!D988:O988)","v":"Plumbing, bid/allowance"},{"$nulls":7},{"$f":"'2 REPAIR ESTIMATOR'!P988","v":0},null,{"$f":"T('2 REPAIR ESTIMATOR'!S988)","v":"ls"},{"$nulls":8},{"$f":"IF(L1164=\"\",0,1)","v":1},1,1]
[{"$nulls":3},{"$f":"T('2 REPAIR ESTIMATOR'!D989:O989)","v":"Miscellaneous Plumbing"},{"$nulls":7},{"$f":"'2 REPAIR ESTIMATOR'!P989","v":0},null,{"$f":"T('2 REPAIR ESTIMATOR'!S989)","v":"ls"},{"$nulls":8},{"$f":"IF(L1165=\"\",0,1)","v":1},1,1]
[{"$nulls":3},{"$f":"T('2 REPAIR ESTIMATOR'!D990:O990)","v":"Plumbing rough-in, per hour"},{"$nulls":7},{"$f":"'2 REPAIR ESTIMATOR'!P990","v":2},null,{"$f":"T('2 REPAIR ESTIMATOR'!S990)","v":"hrs"},{"$nulls":8},1,1,1]
[{"$nulls":3},{"$f":"T('2 REPAIR ESTIMATOR'!D991:O991)","v":"Concrete demo for below slab rough-in"},{"$nulls":7},{"$f":"'2 REPAIR ESTIMATOR'!P991","v":0},null,{"$f":"T('2 REPAIR ESTIMATOR'!S991)","v":"sf"},null,"OFCI",{"$nulls":6},1,1,1]
[{"$nulls":3},{"$f":"T('2 REPAIR ESTIMATOR'!D992:O992)","v":"Plumbing finish work, per hour"},{"$nulls":7},{"$f":"'2 REPAIR ESTIMATOR'!P992","v":0},null,{"$f":"T('2 REPAIR ESTIMATOR'!S992)","v":"hrs"},null,"OFCI",{"$nulls":6},1,1,1]
[{"$nulls":3},{"$f":"T('2 REPAIR ESTIMATOR'!D993:O993)","v":"Replace gas hot water heater, 40 gallon"},{"$nulls":7},{"$f":"'2 REPAIR ESTIMATOR'!P993","v":0},null,{"$f":"T('2 REPAIR ESTIMATOR'!S993)","v":"ea"},null,"OFCI",{"$nulls":6},1,1,1]
[{"$nulls":3},{"$f":"T('2 REPAIR ESTIMATOR'!D994:O994)","v":"Kitchen"},{"$nulls":7},{"$f":"'2 REPAIR ESTIMATOR'!P994","v":0},null,{"$f":"T('2 REPAIR ESTIMATOR'!S994)","v":""},{"$nulls":8},1,1,1]
[{"$nulls":3},{"$f":"T('2 REPAIR ESTIMATOR'!D995:O995)","v":"Kitchen faucet fixture"},{"$nulls":7},{"$f":"'2 REPAIR ESTIMATOR'!P995","v":1},null,{"$f":"T('2 REPAIR ESTIMATOR'!S995)","v":"ea"},null,"OFCI",{"$nulls":6},1,1,1]
[{"$nulls":3},{"$f":"T('2 REPAIR ESTIMATOR'!D996:O996)","v":"Garbage disposal"},{"$nulls":7},{"$f":"'2 REPAIR ESTIMATOR'!P996","v":1},null,{"$f":"T('2 REPAIR ESTIMATOR'!S996)","v":"ea"},null,"OFCI",{"$nulls":6},1,1,1]
[{"$nulls":3},{"$f":"T('2 REPAIR ESTIMATOR'!D997:O997)","v":"Hookup dishwasher"},{"$nulls":7},{"$f":"'2 REPAIR ESTIMATOR'!P997","v":1},null,{"$f":"T('2 REPAIR ESTIMATOR'!S997)","v":"ea"},null,"OFCI",{"$nulls":6},1,1,1]
[{"$nulls":3},{"$f":"T('2 REPAIR ESTIMATOR'!D998:O998)","v":"Water supply line for refrigerator"},{"$nulls":7},{"$f":"'2 REPAIR ESTIMATOR'!P998","v":1},null,{"$f":"T('2 REPAIR ESTIMATOR'!S998)","v":"ea"},null,"OFCI",{"$nulls":6},1,1,1]
[{"$nulls":3},{"$f":"T('2 REPAIR ESTIMATOR'!D999:O999)","v":"Bathrooms"},{"$nulls":7},{"$f":"'2 REPAIR ESTIMATOR'!P999","v":0},null,{"$f":"T('2 REPAIR ESTIMATOR'!S999)","v":""},null,"OFCI",{"$nulls":6},1,1,1]
[{"$nulls":3},{"$f":"T('2 REPAIR ESTIMATOR'!D1000:O1000)","v":"Bathroom faucet fixture"},{"$nulls":7},{"$f":"'2 REPAIR ESTIMATOR'!P1000","v":2},null,{"$f":"T('2 REPAIR ESTIMATOR'!S1000)","v":"ea"},null,"OFCI",{"$nulls":6},1,1,1]
[{"$nulls":3},{"$f":"T('2 REPAIR ESTIMATOR'!D1001:O1001)","v":"Fiberglass shower stall"},{"$nulls":7},{"$f":"'2 REPAIR ESTIMATOR'!P1001","v":0},null,{"$f":"T('2 REPAIR ESTIMATOR'!S1001)","v":"ea"},null,"OFCI",{"$nulls":6},1,1,1]
[{"$nulls":3},{"$f":"T('2 REPAIR ESTIMATOR'!D1002:O1002)","v":"Fiberglass tub"},{"$nulls":7},{"$f":"'2 REPAIR ESTIMATOR'!P1002","v":2},null,{"$f":"T('2 REPAIR ESTIMATOR'!S1002)","v":"ea"},null,"OFCI",{"$nulls":6},1,1,1]
[{"$nulls":3},{"$f":"T('2 REPAIR ESTIMATOR'!D1003:O1003)","v":"Fiberglass tub/shower surround"},{"$nulls":7},{"$f":"'2 REPAIR ESTIMATOR'!P1003","v":0},null,{"$f":"T('2 REPAIR ESTIMATOR'!S1003)","v":"ea"},null,"OFCI",{"$nulls":6},1,1,1]
[{"$nulls":3},{"$f":"T('2 REPAIR ESTIMATOR'!D1004:O1004)","v":"Showerhead/tub kit"},{"$nulls":7},{"$f":"'2 REPAIR ESTIMATOR'!P1004","v":2},null,{"$f":"T('2 REPAIR ESTIMATOR'!S1004)","v":"ea"},null,"OFCI",{"$nulls":6},1,1,1]
[{"$nulls":3},{"$f":"T('2 REPAIR ESTIMATOR'!D1005:O1005)","v":"Toilets"},{"$nulls":7},{"$f":"'2 REPAIR ESTIMATOR'!P1005","v":2},null,{"$f":"T('2 REPAIR ESTIMATOR'!S1005)","v":"ea"},null,"OFCI",{"$nulls":6},1,1,1]
[{"$nulls":3},{"$f":"T('2 REPAIR ESTIMATOR'!D1006:O1006)","v":"Toilet seats"},{"$nulls":7},{"$f":"'2 REPAIR ESTIMATOR'!P1006","v":0},null,{"$f":"T('2 REPAIR ESTIMATOR'!S1006)","v":"ea"},null,"OFCI",{"$nulls":6},1,1,1]
[{"$nulls":3},{"$f":"T('2 REPAIR ESTIMATOR'!D1007:O1007)","v":"Pedestal sink"},{"$nulls":7},{"$f":"'2 REPAIR ESTIMATOR'!P1007","v":0},null,{"$f":"T('2 REPAIR ESTIMATOR'!S1007)","v":"ea"},null,"OFCI",{"$nulls":6},1,1,1]
[{"$nulls":3},{"$f":"T('2 REPAIR ESTIMATOR'!D1008:O1008)","v":""},{"$nulls":7},{"$f":"'2 REPAIR ESTIMATOR'!P1008","v":0},null,{"$f":"T('2 REPAIR ESTIMATOR'!S1008)","v":""},{"$nulls":8},1,1,1]
[{"$nulls":3},{"$f":"T('2 REPAIR ESTIMATOR'!D1009:O1009)","v":""},{"$nulls":7},{"$f":"'2 REPAIR ESTIMATOR'!P1009","v":0},null,{"$f":"T('2 REPAIR ESTIMATOR'!S1009)","v":""},{"$nulls":8},1,1,1]
[{"$nulls":3},{"$f":"T('2 REPAIR ESTIMATOR'!D1010:O1010)","v":""},{"$nulls":7},{"$f":"'2 REPAIR ESTIMATOR'!P1010","v":0},null,{"$f":"T('2 REPAIR ESTIMATOR'!S1010)","v":""},{"$nulls":8},1,1,1]
[{"$nulls":3},{"$f":"T('2 REPAIR ESTIMATOR'!D1011:O1011)","v":""},{"$nulls":7},{"$f":"'2 REPAIR ESTIMATOR'!P1011","v":0},null,{"$f":"T('2 REPAIR ESTIMATOR'!S1011)","v":""},{"$nulls":8},1,1,1]
[{"$nulls":3},{"$f":"T('2 REPAIR ESTIMATOR'!D1012:O1012)","v":""},{"$nulls":7},{"$f":"'2 REPAIR ESTIMATOR'!P1012","v":0},null,{"$f":"T('2 REPAIR ESTIMATOR'!S1012)","v":""},{"$nulls":8},1,1,1]
[{"$nulls":3},{"$f":"T('2 REPAIR ESTIMATOR'!D1013:O1013)","v":""},{"$nulls":7},{"$f":"'2 REPAIR ESTIMATOR'!P1013","v":0},null,{"$f":"T('2 REPAIR ESTIMATOR'!S1013)","v":""},{"$nulls":8},1,1,1]
[{"$nulls":3},{"$f":"T('2 REPAIR ESTIMATOR'!D1014:O1014)","v":""},{"$nulls":7},{"$f":"'2 REPAIR ESTIMATOR'!P1014","v":0},null,{"$f":"T('2 REPAIR ESTIMATOR'!S1014)","v":""},{"$nulls":8},1,1,1]
[{"$nulls":3},{"$f":"T('2 REPAIR ESTIMATOR'!D1015:O1015)","v":""},{"$nulls":7},{"$f":"'2 REPAIR ESTIMATOR'!P1015","v":0},null,{"$f":"T('2 REPAIR ESTIMATOR'!S1015)","v":""},{"$nulls":8},1,1,1]
[{"$nulls":3},{"$f":"T('2 REPAIR ESTIMATOR'!D1016:O1016)","v":""},{"$nulls":7},{"$f":"'2 REPAIR ESTIMATOR'!P1016","v":0},null,{"$f":"T('2 REPAIR ESTIMATOR'!S1016)","v":""},{"$nulls":8},1,1,1]
[{"$nulls":3},{"$f":"T('2 REPAIR ESTIMATOR'!D1017:O1017)","v":""},{"$nulls":7},{"$f":"'2 REPAIR ESTIMATOR'!P1017","v":0},null,{"$f":"T('2 REPAIR ESTIMATOR'!S1017)","v":""},{"$nulls":8},1,1,1]
[{"$nulls":3},{"$f":"T('2 REPAIR ESTIMATOR'!D1018:O1018)","v":""},{"$nulls":7},{"$f":"'2 REPAIR ESTIMATOR'!P1018","v":0},null,{"$f":"T('2 REPAIR ESTIMATOR'!S1018)","v":""},{"$nulls":8},1,1,1]
[{"$nulls":3},{"$f":"T('2 REPAIR ESTIMATOR'!D1019:O1019)","v":""},{"$nulls":7},{"$f":"'2 REPAIR ESTIMATOR'!P1019","v":0},null,{"$f":"T('2 REPAIR ESTIMATOR'!S1019)","v":""},{"$nulls":8},1,{"$f":"IF(Scope21_Setting=\"Shown\",1,0)","v":1},1]
[{"$nulls":3},{"$f":"T('2 REPAIR ESTIMATOR'!D1020:O1020)","v":""},{"$nulls":7},{"$f":"'2 REPAIR ESTIMATOR'!P1020","v":0},null,{"$f":"T('2 REPAIR ESTIMATOR'!S1020)","v":""},{"$nulls":8},1,1,{"$f":"W1196*X1196","v":1}]
[{"$nulls":3},{"$f":"T('2 REPAIR ESTIMATOR'!D1021:O1021)","v":""},{"$nulls":7},{"$f":"'2 REPAIR ESTIMATOR'!P1021","v":0},null,{"$f":"T('2 REPAIR ESTIMATOR'!S1021)","v":""},{"$nulls":8},1,1,1]
[{"$nulls":3},{"$f":"T('2 REPAIR ESTIMATOR'!D1022:O1022)","v":""},{"$nulls":7},{"$f":"'2 REPAIR ESTIMATOR'!P1022","v":0},null,{"$f":"T('2 REPAIR ESTIMATOR'!S1022)","v":""},{"$nulls":8},1,1,1]
[{"$nulls":3},{"$f":"T('2 REPAIR ESTIMATOR'!D1023:O1023)","v":""},{"$nulls":7},{"$f":"'2 REPAIR ESTIMATOR'!P1023","v":0},null,{"$f":"T('2 REPAIR ESTIMATOR'!S1023)","v":""},{"$nulls":8},1,1,1]
[{"$nulls":3},{"$f":"T('2 REPAIR ESTIMATOR'!D1024:O1024)","v":""},{"$nulls":7},{"$f":"'2 REPAIR ESTIMATOR'!P1024","v":0},null,{"$f":"T('2 REPAIR ESTIMATOR'!S1024)","v":""},{"$nulls":8},1,1,1]
[{"$nulls":3},{"$f":"T('2 REPAIR ESTIMATOR'!D1025:O1025)","v":""},{"$nulls":7},{"$f":"'2 REPAIR ESTIMATOR'!P1025","v":0},null,{"$f":"T('2 REPAIR ESTIMATOR'!S1025)","v":""},{"$nulls":8},1,1,1]
[{"$nulls":3},{"$f":"T('2 REPAIR ESTIMATOR'!D1026:O1026)","v":""},{"$nulls":7},{"$f":"'2 REPAIR ESTIMATOR'!P1026","v":0},null,{"$f":"T('2 REPAIR ESTIMATOR'!S1026)","v":""},{"$nulls":8},1,1,1]
[{"$nulls":3},{"$f":"T('2 REPAIR ESTIMATOR'!D1027:O1027)","v":""},{"$nulls":7},{"$f":"'2 REPAIR ESTIMATOR'!P1027","v":0},null,{"$f":"T('2 REPAIR ESTIMATOR'!S1027)","v":""},{"$nulls":8},1,1,1]
[{"$nulls":22},{"$f":"W1205","v":8},1,8]
[{"$nulls":3},{"$f":"UPPER(CONCATENATE(\"Miscellaneous \",D1163,\" Items\"))","v":"MISCELLANEOUS PLUMBING ITEMS"},{"$nulls":18},{"$f":"SUM(W1206:W1215)","v":8},1,8]
[{"$nulls":3},1,"All work associated with plumbing is contractor furnished, contractor installed unless otherwise noted.",{"$nulls":17},{"$f":"IF(E1206<>\"\",1,0)*W1163","v":1},1,1]
[{"$nulls":3},2,"Copper or PEX piping are acceptable water supply lines.  ",{"$nulls":17},{"$f":"IF(E1207<>\"\",1,0)*W1163","v":1},1,1]
[{"$nulls":3},3,"Remove any existing piping as required to complete new plumbing work.",{"$nulls":17},{"$f":"IF(E1208<>\"\",1,0)*W1163","v":1},1,1]
[{"$nulls":3},4,"Provide new water-supply, waste, & vent piping rough-in work as necessary for new Kitchen & bathroom layouts.",{"$nulls":17},{"$f":"IF(E1209<>\"\",1,0)*W1163","v":1},1,1]
[{"$nulls":3},5,"Install and connect Owner-Furnished plumbing fixtures (toilets, faucets, tub/shower kits). (OFCI)",{"$nulls":17},{"$f":"IF(E1210<>\"\",1,0)*W1163","v":1},1,1]
[{"$nulls":3},6,"Connect kitchen sinks & bathoom sink water supply and waste piping. (CFCI)",{"$nulls":17},{"$f":"IF(E1211<>\"\",1,0)*W1163","v":1},1,1]
[{"$nulls":3},7,"Connect water supply lines to dishwasher & refrigerator.",{"$nulls":17},{"$f":"IF(E1212<>\"\",1,0)*W1163","v":1},1,1]
[{"$nulls":3},8,"Install and connect garbage disposal. (CFCI)",{"$nulls":17},{"$f":"IF(E1213<>\"\",1,0)*W1163","v":1},1,1]
[{"$nulls":3},9,{"$nulls":18},{"$f":"IF(E1214<>\"\",1,0)*W1163","v":0},1,0]
[{"$nulls":3},10,{"$nulls":18},{"$f":"IF(E1215<>\"\",1,0)*W1163","v":0},1,0]
[{"$nulls":22},{"$f":"W1163","v":1},1,1]
[{"$nulls":3},{"$f":"UPPER(CONCATENATE(\"TOTAL \",D1163))","v":"TOTAL PLUMBING"},{"$nulls":18},{"$f":"W1163","v":1},1,1]
[{"$nulls":22},{"$f":"W1163","v":1},1,1]
[{"$nulls":3},{"$f":"T('2 REPAIR ESTIMATOR'!D1032:O1032)","v":"HVAC"},{"$nulls":7},{"$f":"SUM(L1220:M1259)","v":16},{"$nulls":10},{"$f":"IF(L1219>0,1,0)","v":1},{"$f":"IF(Scope22_Setting=\"Shown\",1,0)","v":1},1]
[{"$nulls":3},{"$f":"T('2 REPAIR ESTIMATOR'!D1033:O1033)","v":"HVAC, bid/allowance"},{"$nulls":7},{"$f":"'2 REPAIR ESTIMATOR'!P1033","v":0},null,{"$f":"T('2 REPAIR ESTIMATOR'!S1033)","v":"ls"},{"$nulls":8},{"$f":"IF(L1220=\"\",0,1)","v":1},1,1]
[{"$nulls":3},{"$f":"T('2 REPAIR ESTIMATOR'!D1034:O1034)","v":"HVAC Rough-In, per hour"},{"$nulls":7},{"$f":"'2 REPAIR ESTIMATOR'!P1034","v":0},null,{"$f":"T('2 REPAIR ESTIMATOR'!S1034)","v":"hrs"},{"$nulls":8},{"$f":"IF(L1221=\"\",0,1)","v":1},1,1]
[{"$nulls":3},{"$f":"T('2 REPAIR ESTIMATOR'!D1035:O1035)","v":"HVAC Finish Work, per hour"},{"$nulls":7},{"$f":"'2 REPAIR ESTIMATOR'!P1035","v":0},null,{"$f":"T('2 REPAIR ESTIMATOR'!S1035)","v":"hrs"},{"$nulls":8},1,1,1]
[{"$nulls":3},{"$f":"T('2 REPAIR ESTIMATOR'!D1036:O1036)","v":"Replace gas fired forced air unit, 1000 sf, 60k btus"},{"$nulls":7},{"$f":"'2 REPAIR ESTIMATOR'!P1036","v":0},null,{"$f":"T('2 REPAIR ESTIMATOR'!S1036)","v":"ea"},null,"CFCI",{"$nulls":6},1,1,1]
[{"$nulls":3},{"$f":"T('2 REPAIR ESTIMATOR'!D1037:O1037)","v":"Replace gas fired forced air unit, 2,000, 80k btus"},{"$nulls":7},{"$f":"'2 REPAIR ESTIMATOR'!P1037","v":0},null,{"$f":"T('2 REPAIR ESTIMATOR'!S1037)","v":"ea"},null,"CFCI",{"$nulls":6},1,1,1]
[{"$nulls":3},{"$f":"T('2 REPAIR ESTIMATOR'!D1038:O1038)","v":"Replace gas fired forced air unit, 3,000, 100k btus"},{"$nulls":7},{"$f":"'2 REPAIR ESTIMATOR'!P1038","v":0},null,{"$f":"T('2 REPAIR ESTIMATOR'!S1038)","v":"ea"},null,"CFCI",{"$nulls":6},1,1,1]
[{"$nulls":3},{"$f":"T('2 REPAIR ESTIMATOR'!D1039:O1039)","v":"Replace air conditioning unit, ~1,000 sf, 2 ton"},{"$nulls":7},{"$f":"'2 REPAIR ESTIMATOR'!P1039","v":0},null,{"$f":"T('2 REPAIR ESTIMATOR'!S1039)","v":"ea"},null,"CFCI",{"$nulls":6},1,1,1]
[{"$nulls":3},{"$f":"T('2 REPAIR ESTIMATOR'!D1040:O1040)","v":"Replace air conditioning unit, ~2,000 sf, 3.5 ton"},{"$nulls":7},{"$f":"'2 REPAIR ESTIMATOR'!P1040","v":0},null,{"$f":"T('2 REPAIR ESTIMATOR'!S1040)","v":"ea"},null,"CFCI",{"$nulls":6},1,1,1]
[{"$nulls":3},{"$f":"T('2 REPAIR ESTIMATOR'!D1041:O1041)","v":"Replace air conditioning unit, ~3,000sf, 5 ton"},{"$nulls":7},{"$f":"'2 REPAIR ESTIMATOR'!P1041","v":0},null,{"$f":"T('2 REPAIR ESTIMATOR'!S1041)","v":"ea"},null,"CFCI",{"$nulls":6},1,1,1]
[{"$nulls":3},{"$f":"T('2 REPAIR ESTIMATOR'!D1042:O1042)","v":"Hotel type, hot/cold packaged unit"},{"$nulls":7},{"$f":"'2 REPAIR ESTIMATOR'!P1042","v":0},null,{"$f":"T('2 REPAIR ESTIMATOR'!S1042)","v":"ea"},null,"CFCI",{"$nulls":6},1,1,1]
[{"$nulls":3},{"$f":"T('2 REPAIR ESTIMATOR'!D1043:O1043)","v":"Window mounted unit"},{"$nulls":7},{"$f":"'2 REPAIR ESTIMATOR'!P1043","v":0},null,{"$f":"T('2 REPAIR ESTIMATOR'!S1043)","v":"ea"},null,"CFCI",{"$nulls":6},1,1,1]
[{"$nulls":3},{"$f":"T('2 REPAIR ESTIMATOR'!D1044:O1044)","v":"HVAC equipment tune-up/service call"},{"$nulls":7},{"$f":"'2 REPAIR ESTIMATOR'!P1044","v":0},null,{"$f":"T('2 REPAIR ESTIMATOR'!S1044)","v":"ea"},{"$nulls":8},1,1,1]
[{"$nulls":3},{"$f":"T('2 REPAIR ESTIMATOR'!D1045:O1045)","v":"Programmable thermostat"},{"$nulls":7},{"$f":"'2 REPAIR ESTIMATOR'!P1045","v":1},null,{"$f":"T('2 REPAIR ESTIMATOR'!S1045)","v":"ea"},null,"CFCI",{"$nulls":6},1,1,1]
[{"$nulls":3},{"$f":"T('2 REPAIR ESTIMATOR'!D1046:O1046)","v":"Replace supply air grilles/returns"},{"$nulls":7},{"$f":"'2 REPAIR ESTIMATOR'!P1046","v":15},null,{"$f":"T('2 REPAIR ESTIMATOR'!S1046)","v":"ea"},null,"CFCI",{"$nulls":6},1,1,1]
[{"$nulls":3},{"$f":"T('2 REPAIR ESTIMATOR'!D1047:O1047)","v":"Clean ductwork"},{"$nulls":7},{"$f":"'2 REPAIR ESTIMATOR'!P1047","v":0},null,{"$f":"T('2 REPAIR ESTIMATOR'!S1047)","v":"ls"},{"$nulls":8},1,1,1]
[{"$nulls":3},{"$f":"T('2 REPAIR ESTIMATOR'!D1048:O1048)","v":""},{"$nulls":7},{"$f":"'2 REPAIR ESTIMATOR'!P1048","v":0},null,{"$f":"T('2 REPAIR ESTIMATOR'!S1048)","v":""},{"$nulls":8},1,1,1]
[{"$nulls":3},{"$f":"T('2 REPAIR ESTIMATOR'!D1049:O1049)","v":""},{"$nulls":7},{"$f":"'2 REPAIR ESTIMATOR'!P1049","v":0},null,{"$f":"T('2 REPAIR ESTIMATOR'!S1049)","v":""},{"$nulls":8},1,1,1]
[{"$nulls":3},{"$f":"T('2 REPAIR ESTIMATOR'!D1050:O1050)","v":""},{"$nulls":7},{"$f":"'2 REPAIR ESTIMATOR'!P1050","v":0},null,{"$f":"T('2 REPAIR ESTIMATOR'!S1050)","v":""},{"$nulls":8},1,1,1]
[{"$nulls":3},{"$f":"T('2 REPAIR ESTIMATOR'!D1051:O1051)","v":""},{"$nulls":7},{"$f":"'2 REPAIR ESTIMATOR'!P1051","v":0},null,{"$f":"T('2 REPAIR ESTIMATOR'!S1051)","v":""},{"$nulls":8},1,1,1]
[{"$nulls":3},{"$f":"T('2 REPAIR ESTIMATOR'!D1052:O1052)","v":""},{"$nulls":7},{"$f":"'2 REPAIR ESTIMATOR'!P1052","v":0},null,{"$f":"T('2 REPAIR ESTIMATOR'!S1052)","v":""},{"$nulls":8},1,1,1]
[{"$nulls":3},{"$f":"T('2 REPAIR ESTIMATOR'!D1053:O1053)","v":""},{"$nulls":7},{"$f":"'2 REPAIR ESTIMATOR'!P1053","v":0},null,{"$f":"T('2 REPAIR ESTIMATOR'!S1053)","v":""},{"$nulls":8},1,1,1]
[{"$nulls":3},{"$f":"T('2 REPAIR ESTIMATOR'!D1054:O1054)","v":""},{"$nulls":7},{"$f":"'2 REPAIR ESTIMATOR'!P1054","v":0},null,{"$f":"T('2 REPAIR ESTIMATOR'!S1054)","v":""},{"$nulls":8},1,1,1]
[{"$nulls":3},{"$f":"T('2 REPAIR ESTIMATOR'!D1055:O1055)","v":""},{"$nulls":7},{"$f":"'2 REPAIR ESTIMATOR'!P1055","v":0},null,{"$f":"T('2 REPAIR ESTIMATOR'!S1055)","v":""},{"$nulls":8},1,1,1]
[{"$nulls":3},{"$f":"T('2 REPAIR ESTIMATOR'!D1056:O1056)","v":""},{"$nulls":7},{"$f":"'2 REPAIR ESTIMATOR'!P1056","v":0},null,{"$f":"T('2 REPAIR ESTIMATOR'!S1056)","v":""},{"$nulls":8},1,1,1]
[{"$nulls":3},{"$f":"T('2 REPAIR ESTIMATOR'!D1057:O1057)","v":""},{"$nulls":7},{"$f":"'2 REPAIR ESTIMATOR'!P1057","v":0},null,{"$f":"T('2 REPAIR ESTIMATOR'!S1057)","v":""},{"$nulls":8},1,1,1]
[{"$nulls":3},{"$f":"T('2 REPAIR ESTIMATOR'!D1058:O1058)","v":""},{"$nulls":7},{"$f":"'2 REPAIR ESTIMATOR'!P1058","v":0},null,{"$f":"T('2 REPAIR ESTIMATOR'!S1058)","v":""},{"$nulls":8},1,1,1]
[{"$nulls":3},{"$f":"T('2 REPAIR ESTIMATOR'!D1059:O1059)","v":""},{"$nulls":7},{"$f":"'2 REPAIR ESTIMATOR'!P1059","v":0},null,{"$f":"T('2 REPAIR ESTIMATOR'!S1059)","v":""},{"$nulls":8},1,1,1]
[{"$nulls":3},{"$f":"T('2 REPAIR ESTIMATOR'!D1060:O1060)","v":""},{"$nulls":7},{"$f":"'2 REPAIR ESTIMATOR'!P1060","v":0},null,{"$f":"T('2 REPAIR ESTIMATOR'!S1060)","v":""},{"$nulls":8},1,1,1]
[{"$nulls":3},{"$f":"T('2 REPAIR ESTIMATOR'!D1061:O1061)","v":""},{"$nulls":7},{"$f":"'2 REPAIR ESTIMATOR'!P1061","v":0},null,{"$f":"T('2 REPAIR ESTIMATOR'!S1061)","v":""},{"$nulls":8},1,1,1]
[{"$nulls":3},{"$f":"T('2 REPAIR ESTIMATOR'!D1062:O1062)","v":""},{"$nulls":7},{"$f":"'2 REPAIR ESTIMATOR'!P1062","v":0},null,{"$f":"T('2 REPAIR ESTIMATOR'!S1062)","v":""},{"$nulls":8},1,1,1]
[{"$nulls":3},{"$f":"T('2 REPAIR ESTIMATOR'!D1063:O1063)","v":""},{"$nulls":7},{"$f":"'2 REPAIR ESTIMATOR'!P1063","v":0},null,{"$f":"T('2 REPAIR ESTIMATOR'!S1063)","v":""},{"$nulls":8},1,1,1]
[{"$nulls":3},{"$f":"T('2 REPAIR ESTIMATOR'!D1064:O1064)","v":""},{"$nulls":7},{"$f":"'2 REPAIR ESTIMATOR'!P1064","v":0},null,{"$f":"T('2 REPAIR ESTIMATOR'!S1064)","v":""},{"$nulls":8},1,{"$f":"IF(Scope22_Setting=\"Shown\",1,0)","v":1},1]
[{"$nulls":3},{"$f":"T('2 REPAIR ESTIMATOR'!D1065:O1065)","v":""},{"$nulls":7},{"$f":"'2 REPAIR ESTIMATOR'!P1065","v":0},null,{"$f":"T('2 REPAIR ESTIMATOR'!S1065)","v":""},{"$nulls":8},1,1,1]
[{"$nulls":3},{"$f":"T('2 REPAIR ESTIMATOR'!D1066:O1066)","v":""},{"$nulls":7},{"$f":"'2 REPAIR ESTIMATOR'!P1066","v":0},null,{"$f":"T('2 REPAIR ESTIMATOR'!S1066)","v":""},{"$nulls":8},1,1,1]
[{"$nulls":3},{"$f":"T('2 REPAIR ESTIMATOR'!D1067:O1067)","v":""},{"$nulls":7},{"$f":"'2 REPAIR ESTIMATOR'!P1067","v":0},null,{"$f":"T('2 REPAIR ESTIMATOR'!S1067)","v":""},{"$nulls":8},1,1,1]
[{"$nulls":3},{"$f":"T('2 REPAIR ESTIMATOR'!D1068:O1068)","v":""},{"$nulls":7},{"$f":"'2 REPAIR ESTIMATOR'!P1068","v":0},null,{"$f":"T('2 REPAIR ESTIMATOR'!S1068)","v":""},{"$nulls":8},1,1,1]
[{"$nulls":3},{"$f":"T('2 REPAIR ESTIMATOR'!D1069:O1069)","v":""},{"$nulls":7},{"$f":"'2 REPAIR ESTIMATOR'!P1069","v":0},null,{"$f":"T('2 REPAIR ESTIMATOR'!S1069)","v":""},{"$nulls":8},1,1,1]
[{"$nulls":3},{"$f":"T('2 REPAIR ESTIMATOR'!D1070:O1070)","v":""},{"$nulls":7},{"$f":"'2 REPAIR ESTIMATOR'!P1070","v":0},null,{"$f":"T('2 REPAIR ESTIMATOR'!S1070)","v":""},{"$nulls":8},1,1,1]
[{"$nulls":3},{"$f":"T('2 REPAIR ESTIMATOR'!D1071:O1071)","v":""},{"$nulls":7},{"$f":"'2 REPAIR ESTIMATOR'!P1071","v":0},null,{"$f":"T('2 REPAIR ESTIMATOR'!S1071)","v":""},{"$nulls":8},1,1,1]
[{"$nulls":3},{"$f":"T('2 REPAIR ESTIMATOR'!D1072:O1072)","v":""},{"$nulls":7},{"$f":"'2 REPAIR ESTIMATOR'!P1072","v":0},null,{"$f":"T('2 REPAIR ESTIMATOR'!S1072)","v":""},{"$nulls":8},1,1,1]
[{"$nulls":22},{"$f":"W1261","v":4},1,{"$f":"W1260*X1260","v":4}]
[{"$nulls":3},{"$f":"UPPER(CONCATENATE(\"Miscellaneous \",D1219,\" Items\"))","v":"MISCELLANEOUS HVAC ITEMS"},{"$nulls":18},{"$f":"SUM(W1262:W1271)","v":4},1,4]
[{"$nulls":3},1,"All work associated with HVAC is contractor furnished, contractor installed.",{"$nulls":17},{"$f":"IF(E1262<>\"\",1,0)*W1219","v":1},1,1]
[{"$nulls":3},2,"Provide ductwork rough-in as necessary for new register locations.",{"$nulls":17},{"$f":"IF(E1263<>\"\",1,0)*W1219","v":1},1,1]
[{"$nulls":3},3,"Furnish and install new programmable themostat. Thermostat Specification: __________________",{"$nulls":17},{"$f":"IF(E1264<>\"\",1,0)*W1219","v":1},1,1]
[{"$nulls":3},4,"Install new registers and grilles throughout (CFCI).",{"$nulls":17},{"$f":"IF(E1265<>\"\",1,0)*W1219","v":1},1,1]
[{"$nulls":3},5,{"$nulls":18},{"$f":"IF(E1266<>\"\",1,0)*W1219","v":0},1,0]
[{"$nulls":3},6,{"$nulls":18},{"$f":"IF(E1267<>\"\",1,0)*W1219","v":0},1,0]
[{"$nulls":3},7,{"$nulls":18},{"$f":"IF(E1268<>\"\",1,0)*W1219","v":0},1,0]
[{"$nulls":3},8,{"$nulls":18},{"$f":"IF(E1269<>\"\",1,0)*W1219","v":0},1,0]
[{"$nulls":3},9,{"$nulls":18},{"$f":"IF(E1270<>\"\",1,0)*W1219","v":0},1,0]
[{"$nulls":3},10,{"$nulls":18},{"$f":"IF(E1271<>\"\",1,0)*W1219","v":0},1,0]
[{"$nulls":22},{"$f":"W1219","v":1},1,1]
[{"$nulls":3},{"$f":"UPPER(CONCATENATE(\"TOTAL \",D1219))","v":"TOTAL HVAC"},{"$nulls":18},{"$f":"W1219","v":1},1,1]
[{"$nulls":22},{"$f":"W1219","v":1},1,1]
[{"$nulls":3},{"$f":"T('2 REPAIR ESTIMATOR'!D1077:O1077)","v":"ELECTRICAL"},{"$nulls":7},{"$f":"SUM(L1276:M1315)","v":20},{"$nulls":10},{"$f":"IF(L1275>0,1,0)","v":1},{"$f":"IF(Scope23_Setting=\"Shown\",1,0)","v":1},1]
[{"$nulls":3},{"$f":"T('2 REPAIR ESTIMATOR'!D1078:O1078)","v":"Electrical, bid/allowance"},{"$nulls":7},{"$f":"'2 REPAIR ESTIMATOR'!P1078","v":0},null,{"$f":"T('2 REPAIR ESTIMATOR'!S1078)","v":"ls"},{"$nulls":8},{"$f":"IF(L1276=\"\",0,1)","v":1},1,1]
[{"$nulls":3},{"$f":"T('2 REPAIR ESTIMATOR'!D1079:O1079)","v":"Miscellaneous Electrical "},{"$nulls":7},{"$f":"'2 REPAIR ESTIMATOR'!P1079","v":0},null,{"$f":"T('2 REPAIR ESTIMATOR'!S1079)","v":""},{"$nulls":8},{"$f":"IF(L1277=\"\",0,1)","v":1},1,1]
[{"$nulls":3},{"$f":"T('2 REPAIR ESTIMATOR'!D1080:O1080)","v":"Electrical Rough-in, per hour"},{"$nulls":7},{"$f":"'2 REPAIR ESTIMATOR'!P1080","v":0},null,{"$f":"T('2 REPAIR ESTIMATOR'!S1080)","v":"hrs"},null,"CFCI",{"$nulls":6},1,1,1]
[{"$nulls":3},{"$f":"T('2 REPAIR ESTIMATOR'!D1081:O1081)","v":"CATV Rough-in, per hour"},{"$nulls":7},{"$f":"'2 REPAIR ESTIMATOR'!P1081","v":0},null,{"$f":"T('2 REPAIR ESTIMATOR'!S1081)","v":"hrs"},null,"CFCI",{"$nulls":6},1,1,1]
[{"$nulls":3},{"$f":"T('2 REPAIR ESTIMATOR'!D1082:O1082)","v":"Electrical Finish Work, per hour"},{"$nulls":7},{"$f":"'2 REPAIR ESTIMATOR'!P1082","v":0},null,{"$f":"T('2 REPAIR ESTIMATOR'!S1082)","v":"hrs"},null,"CFCI",{"$nulls":6},1,1,1]
[{"$nulls":3},{"$f":"T('2 REPAIR ESTIMATOR'!D1083:O1083)","v":"Replace electrical panel, 100 AMP"},{"$nulls":7},{"$f":"'2 REPAIR ESTIMATOR'!P1083","v":0},null,{"$f":"T('2 REPAIR ESTIMATOR'!S1083)","v":"ea"},null,"CFCI",{"$nulls":6},1,1,1]
[{"$nulls":3},{"$f":"T('2 REPAIR ESTIMATOR'!D1084:O1084)","v":"Replace electrical panel, 200 AMP"},{"$nulls":7},{"$f":"'2 REPAIR ESTIMATOR'!P1084","v":0},null,{"$f":"T('2 REPAIR ESTIMATOR'!S1084)","v":"ea"},null,"CFCI",{"$nulls":6},1,1,1]
[{"$nulls":3},{"$f":"T('2 REPAIR ESTIMATOR'!D1085:O1085)","v":"Replace outlets, light switches"},{"$nulls":7},{"$f":"'2 REPAIR ESTIMATOR'!P1085","v":0},null,{"$f":"T('2 REPAIR ESTIMATOR'!S1085)","v":"ea"},null,"CFCI",{"$nulls":6},1,1,1]
[{"$nulls":3},{"$f":"T('2 REPAIR ESTIMATOR'!D1086:O1086)","v":"Replace GFI outlets/ground back to panel"},{"$nulls":7},{"$f":"'2 REPAIR ESTIMATOR'!P1086","v":0},null,{"$f":"T('2 REPAIR ESTIMATOR'!S1086)","v":"ea"},null,"CFCI",{"$nulls":6},1,1,1]
[{"$nulls":3},{"$f":"T('2 REPAIR ESTIMATOR'!D1087:O1087)","v":"Exhaust Fan"},{"$nulls":7},{"$f":"'2 REPAIR ESTIMATOR'!P1087","v":0},null,{"$f":"T('2 REPAIR ESTIMATOR'!S1087)","v":"ea"},null,"OFCI",{"$nulls":6},1,1,1]
[{"$nulls":3},{"$f":"T('2 REPAIR ESTIMATOR'!D1088:O1088)","v":"Smoke detectors"},{"$nulls":7},{"$f":"'2 REPAIR ESTIMATOR'!P1088","v":5},null,{"$f":"T('2 REPAIR ESTIMATOR'!S1088)","v":"ea"},null,"CFCI",{"$nulls":6},1,1,1]
[{"$nulls":3},{"$f":"T('2 REPAIR ESTIMATOR'!D1089:O1089)","v":"Carbon monoxide detector"},{"$nulls":7},{"$f":"'2 REPAIR ESTIMATOR'!P1089","v":0},null,{"$f":"T('2 REPAIR ESTIMATOR'!S1089)","v":"ea"},null,"CFCI",{"$nulls":6},1,1,1]
[{"$nulls":3},{"$f":"T('2 REPAIR ESTIMATOR'!D1090:O1090)","v":"Lighting"},{"$nulls":7},{"$f":"'2 REPAIR ESTIMATOR'!P1090","v":0},null,{"$f":"T('2 REPAIR ESTIMATOR'!S1090)","v":""},null,"OFCI",{"$nulls":6},1,1,1]
[{"$nulls":3},{"$f":"T('2 REPAIR ESTIMATOR'!D1091:O1091)","v":"Track/Pendent light"},{"$nulls":7},{"$f":"'2 REPAIR ESTIMATOR'!P1091","v":1},null,{"$f":"T('2 REPAIR ESTIMATOR'!S1091)","v":"ea"},null,"OFCI",{"$nulls":6},1,1,1]
[{"$nulls":3},{"$f":"T('2 REPAIR ESTIMATOR'!D1092:O1092)","v":"Chandelier light fixture"},{"$nulls":7},{"$f":"'2 REPAIR ESTIMATOR'!P1092","v":1},null,{"$f":"T('2 REPAIR ESTIMATOR'!S1092)","v":"ea"},null,"OFCI",{"$nulls":6},1,1,1]
[{"$nulls":3},{"$f":"T('2 REPAIR ESTIMATOR'!D1093:O1093)","v":"Ceiling dome light"},{"$nulls":7},{"$f":"'2 REPAIR ESTIMATOR'!P1093","v":5},null,{"$f":"T('2 REPAIR ESTIMATOR'!S1093)","v":"ea"},null,"OFCI",{"$nulls":6},1,1,1]
[{"$nulls":3},{"$f":"T('2 REPAIR ESTIMATOR'!D1094:O1094)","v":"Ceiling fan fixture"},{"$nulls":7},{"$f":"'2 REPAIR ESTIMATOR'!P1094","v":4},null,{"$f":"T('2 REPAIR ESTIMATOR'!S1094)","v":"ea"},null,"OFCI",{"$nulls":6},1,1,1]
[{"$nulls":3},{"$f":"T('2 REPAIR ESTIMATOR'!D1095:O1095)","v":"Bathroom vanity light"},{"$nulls":7},{"$f":"'2 REPAIR ESTIMATOR'!P1095","v":2},null,{"$f":"T('2 REPAIR ESTIMATOR'!S1095)","v":"ea"},null,"OFCI",{"$nulls":6},1,1,1]
[{"$nulls":3},{"$f":"T('2 REPAIR ESTIMATOR'!D1096:O1096)","v":"Can lighting"},{"$nulls":7},{"$f":"'2 REPAIR ESTIMATOR'!P1096","v":0},null,{"$f":"T('2 REPAIR ESTIMATOR'!S1096)","v":"ea"},null,"OFCI",{"$nulls":6},1,1,1]
[{"$nulls":3},{"$f":"T('2 REPAIR ESTIMATOR'!D1097:O1097)","v":"Exterior light fixture"},{"$nulls":7},{"$f":"'2 REPAIR ESTIMATOR'!P1097","v":2},null,{"$f":"T('2 REPAIR ESTIMATOR'!S1097)","v":"ea"},null,"OFCI",{"$nulls":6},1,1,1]
[{"$nulls":3},{"$f":"T('2 REPAIR ESTIMATOR'!D1098:O1098)","v":""},{"$nulls":7},{"$f":"'2 REPAIR ESTIMATOR'!P1098","v":0},null,{"$f":"T('2 REPAIR ESTIMATOR'!S1098)","v":""},{"$nulls":8},1,1,1]
[{"$nulls":3},{"$f":"T('2 REPAIR ESTIMATOR'!D1099:O1099)","v":""},{"$nulls":7},{"$f":"'2 REPAIR ESTIMATOR'!P1099","v":0},null,{"$f":"T('2 REPAIR ESTIMATOR'!S1099)","v":""},{"$nulls":8},1,1,1]
[{"$nulls":3},{"$f":"T('2 REPAIR ESTIMATOR'!D1100:O1100)","v":""},{"$nulls":7},{"$f":"'2 REPAIR ESTIMATOR'!P1100","v":0},null,{"$f":"T('2 REPAIR ESTIMATOR'!S1100)","v":""},{"$nulls":8},1,1,1]
[{"$nulls":3},{"$f":"T('2 REPAIR ESTIMATOR'!D1101:O1101)","v":""},{"$nulls":7},{"$f":"'2 REPAIR ESTIMATOR'!P1101","v":0},null,{"$f":"T('2 REPAIR ESTIMATOR'!S1101)","v":""},{"$nulls":8},1,1,1]
[{"$nulls":3},{"$f":"T('2 REPAIR ESTIMATOR'!D1102:O1102)","v":""},{"$nulls":7},{"$f":"'2 REPAIR ESTIMATOR'!P1102","v":0},null,{"$f":"T('2 REPAIR ESTIMATOR'!S1102)","v":""},{"$nulls":8},1,1,1]
[{"$nulls":3},{"$f":"T('2 REPAIR ESTIMATOR'!D1103:O1103)","v":""},{"$nulls":7},{"$f":"'2 REPAIR ESTIMATOR'!P1103","v":0},null,{"$f":"T('2 REPAIR ESTIMATOR'!S1103)","v":""},{"$nulls":8},1,1,1]
[{"$nulls":3},{"$f":"T('2 REPAIR ESTIMATOR'!D1104:O1104)","v":""},{"$nulls":7},{"$f":"'2 REPAIR ESTIMATOR'!P1104","v":0},null,{"$f":"T('2 REPAIR ESTIMATOR'!S1104)","v":""},{"$nulls":8},1,1,1]
[{"$nulls":3},{"$f":"T('2 REPAIR ESTIMATOR'!D1105:O1105)","v":""},{"$nulls":7},{"$f":"'2 REPAIR ESTIMATOR'!P1105","v":0},null,{"$f":"T('2 REPAIR ESTIMATOR'!S1105)","v":""},{"$nulls":8},1,1,1]
[{"$nulls":3},{"$f":"T('2 REPAIR ESTIMATOR'!D1106:O1106)","v":""},{"$nulls":7},{"$f":"'2 REPAIR ESTIMATOR'!P1106","v":0},null,{"$f":"T('2 REPAIR ESTIMATOR'!S1106)","v":""},{"$nulls":8},1,1,1]
[{"$nulls":3},{"$f":"T('2 REPAIR ESTIMATOR'!D1107:O1107)","v":""},{"$nulls":7},{"$f":"'2 REPAIR ESTIMATOR'!P1107","v":0},null,{"$f":"T('2 REPAIR ESTIMATOR'!S1107)","v":""},{"$nulls":8},1,1,1]
[{"$nulls":3},{"$f":"T('2 REPAIR ESTIMATOR'!D1108:O1108)","v":""},{"$nulls":7},{"$f":"'2 REPAIR ESTIMATOR'!P1108","v":0},null,{"$f":"T('2 REPAIR ESTIMATOR'!S1108)","v":""},{"$nulls":8},1,1,1]
[{"$nulls":3},{"$f":"T('2 REPAIR ESTIMATOR'!D1109:O1109)","v":""},{"$nulls":7},{"$f":"'2 REPAIR ESTIMATOR'!P1109","v":0},null,{"$f":"T('2 REPAIR ESTIMATOR'!S1109)","v":""},{"$nulls":8},1,{"$f":"IF(Scope23_Setting=\"Shown\",1,0)","v":1},1]
[{"$nulls":3},{"$f":"T('2 REPAIR ESTIMATOR'!D1110:O1110)","v":""},{"$nulls":7},{"$f":"'2 REPAIR ESTIMATOR'!P1110","v":0},null,{"$f":"T('2 REPAIR ESTIMATOR'!S1110)","v":""},{"$nulls":8},1,1,1]
[{"$nulls":3},{"$f":"T('2 REPAIR ESTIMATOR'!D1111:O1111)","v":""},{"$nulls":7},{"$f":"'2 REPAIR ESTIMATOR'!P1111","v":0},null,{"$f":"T('2 REPAIR ESTIMATOR'!S1111)","v":""},{"$nulls":8},1,1,1]
[{"$nulls":3},{"$f":"T('2 REPAIR ESTIMATOR'!D1112:O1112)","v":""},{"$nulls":7},{"$f":"'2 REPAIR ESTIMATOR'!P1112","v":0},null,{"$f":"T('2 REPAIR ESTIMATOR'!S1112)","v":""},{"$nulls":8},1,1,1]
[{"$nulls":3},{"$f":"T('2 REPAIR ESTIMATOR'!D1113:O1113)","v":""},{"$nulls":7},{"$f":"'2 REPAIR ESTIMATOR'!P1113","v":0},null,{"$f":"T('2 REPAIR ESTIMATOR'!S1113)","v":""},{"$nulls":8},1,1,1]
[{"$nulls":3},{"$f":"T('2 REPAIR ESTIMATOR'!D1114:O1114)","v":""},{"$nulls":7},{"$f":"'2 REPAIR ESTIMATOR'!P1114","v":0},null,{"$f":"T('2 REPAIR ESTIMATOR'!S1114)","v":""},{"$nulls":8},1,1,1]
[{"$nulls":3},{"$f":"T('2 REPAIR ESTIMATOR'!D1115:O1115)","v":""},{"$nulls":7},{"$f":"'2 REPAIR ESTIMATOR'!P1115","v":0},null,{"$f":"T('2 REPAIR ESTIMATOR'!S1115)","v":""},{"$nulls":8},1,1,1]
[{"$nulls":3},{"$f":"T('2 REPAIR ESTIMATOR'!D1116:O1116)","v":""},{"$nulls":7},{"$f":"'2 REPAIR ESTIMATOR'!P1116","v":0},null,{"$f":"T('2 REPAIR ESTIMATOR'!S1116)","v":""},{"$nulls":8},1,1,1]
[{"$nulls":3},{"$f":"T('2 REPAIR ESTIMATOR'!D1117:O1117)","v":""},{"$nulls":7},{"$f":"'2 REPAIR ESTIMATOR'!P1117","v":0},null,{"$f":"T('2 REPAIR ESTIMATOR'!S1117)","v":""},{"$nulls":8},1,1,1]
[{"$nulls":22},{"$f":"W1317","v":7},1,7]
[{"$nulls":3},{"$f":"UPPER(CONCATENATE(\"Miscellaneous \",D1275,\" Items\"))","v":"MISCELLANEOUS ELECTRICAL ITEMS"},{"$nulls":18},{"$f":"SUM(W1318:W1327)","v":7},1,7]
[{"$nulls":3},1,"All work associated with electrical is contractor furnished, contractor installed unless otherwise noted.",{"$nulls":17},{"$f":"IF(E1318<>\"\",1,0)*W1275","v":1},1,1]
[{"$nulls":3},2,"Perform any necessary electrical demolition to accommodate new floor layout.",{"$nulls":17},{"$f":"IF(E1319<>\"\",1,0)*W1275","v":1},1,1]
[{"$nulls":3},3,"Re-use existing electrical circuits where applicable.",{"$nulls":17},{"$f":"IF(E1320<>\"\",1,0)*W1275","v":1},1,1]
[{"$nulls":3},4,"Rough-in new power and lighting circuits for new layouts as required by local buildling code/standards.",{"$nulls":17},{"$f":"IF(E1321<>\"\",1,0)*W1275","v":1},1,1]
[{"$nulls":3},5,"Replace all existing outlets and switches with new white devices and cover plates. (CFCI)",{"$nulls":17},{"$f":"IF(E1322<>\"\",1,0)*W1275","v":1},1,1]
[{"$nulls":3},6,"Furnish and install new grounded circuits and outlets at kitchens and bathrooms as required by local buliding code/standards. (CFCI)",{"$nulls":17},{"$f":"IF(E1323<>\"\",1,0)*W1275","v":1},1,1]
[{"$nulls":3},7,"Furnish and install new Owner-Furnished light fixtures as designated. (OFCI)",{"$nulls":17},{"$f":"IF(E1324<>\"\",1,0)*W1275","v":1},1,{"$f":"W1324*X1324","v":1}]
[{"$nulls":3},8,{"$nulls":18},{"$f":"IF(E1325<>\"\",1,0)*W1275","v":0},1,0]
[{"$nulls":3},9,{"$nulls":18},{"$f":"IF(E1326<>\"\",1,0)*W1275","v":0},1,0]
[{"$nulls":3},10,{"$nulls":18},{"$f":"IF(E1327<>\"\",1,0)*W1275","v":0},1,0]
[{"$nulls":22},{"$f":"W1275","v":1},1,1]
[{"$nulls":3},{"$f":"UPPER(CONCATENATE(\"TOTAL \",D1275))","v":"TOTAL ELECTRICAL"},{"$nulls":18},{"$f":"W1275","v":1},1,1]
[{"$nulls":22},{"$f":"W1275","v":1},1,1]
[{"$nulls":3},{"$f":"T('2 REPAIR ESTIMATOR'!D1122:O1122)","v":"MISCELLANEOUS"},{"$nulls":7},{"$f":"SUM(L1332:M1371)","v":0},{"$nulls":10},{"$f":"IF(L1331>0,1,0)","v":0},{"$f":"IF(Scope24_Setting=\"Shown\",1,0)","v":1},0]
[{"$nulls":3},{"$f":"T('2 REPAIR ESTIMATOR'!D1123:O1123)","v":"Bath accessories, towel bar, toilet disp, ea bathroom"},{"$nulls":7},{"$f":"'2 REPAIR ESTIMATOR'!P1123","v":0},null,{"$f":"T('2 REPAIR ESTIMATOR'!S1123)","v":"ea"},{"$nulls":8},{"$f":"IF(L1332=\"\",0,1)","v":1},1,1]
[{"$nulls":3},{"$f":"T('2 REPAIR ESTIMATOR'!D1124:O1124)","v":"Bathroom mirrors"},{"$nulls":7},{"$f":"'2 REPAIR ESTIMATOR'!P1124","v":0},null,{"$f":"T('2 REPAIR ESTIMATOR'!S1124)","v":"ea"},{"$nulls":8},{"$f":"IF(L1333=\"\",0,1)","v":1},1,1]
[{"$nulls":3},{"$f":"T('2 REPAIR ESTIMATOR'!D1125:O1125)","v":"Window coverings, each window"},{"$nulls":7},{"$f":"'2 REPAIR ESTIMATOR'!P1125","v":0},null,{"$f":"T('2 REPAIR ESTIMATOR'!S1125)","v":"ea"},{"$nulls":8},1,1,1]
[{"$nulls":3},{"$f":"T('2 REPAIR ESTIMATOR'!D1126:O1126)","v":""},{"$nulls":7},{"$f":"'2 REPAIR ESTIMATOR'!P1126","v":0},null,{"$f":"T('2 REPAIR ESTIMATOR'!S1126)","v":""},{"$nulls":8},1,1,1]
[{"$nulls":3},{"$f":"T('2 REPAIR ESTIMATOR'!D1127:O1127)","v":""},{"$nulls":7},{"$f":"'2 REPAIR ESTIMATOR'!P1127","v":0},null,{"$f":"T('2 REPAIR ESTIMATOR'!S1127)","v":""},{"$nulls":8},1,1,1]
[{"$nulls":3},{"$f":"T('2 REPAIR ESTIMATOR'!D1128:O1128)","v":""},{"$nulls":7},{"$f":"'2 REPAIR ESTIMATOR'!P1128","v":0},null,{"$f":"T('2 REPAIR ESTIMATOR'!S1128)","v":""},{"$nulls":8},1,1,1]
[{"$nulls":3},{"$f":"T('2 REPAIR ESTIMATOR'!D1129:O1129)","v":""},{"$nulls":7},{"$f":"'2 REPAIR ESTIMATOR'!P1129","v":0},null,{"$f":"T('2 REPAIR ESTIMATOR'!S1129)","v":""},{"$nulls":8},1,1,1]
[{"$nulls":3},{"$f":"T('2 REPAIR ESTIMATOR'!D1130:O1130)","v":""},{"$nulls":7},{"$f":"'2 REPAIR ESTIMATOR'!P1130","v":0},null,{"$f":"T('2 REPAIR ESTIMATOR'!S1130)","v":""},{"$nulls":8},1,1,1]
[{"$nulls":3},{"$f":"T('2 REPAIR ESTIMATOR'!D1131:O1131)","v":""},{"$nulls":7},{"$f":"'2 REPAIR ESTIMATOR'!P1131","v":0},null,{"$f":"T('2 REPAIR ESTIMATOR'!S1131)","v":""},{"$nulls":8},1,1,1]
[{"$nulls":3},{"$f":"T('2 REPAIR ESTIMATOR'!D1132:O1132)","v":""},{"$nulls":7},{"$f":"'2 REPAIR ESTIMATOR'!P1132","v":0},null,{"$f":"T('2 REPAIR ESTIMATOR'!S1132)","v":""},{"$nulls":8},1,1,1]
[{"$nulls":3},{"$f":"T('2 REPAIR ESTIMATOR'!D1133:O1133)","v":""},{"$nulls":7},{"$f":"'2 REPAIR ESTIMATOR'!P1133","v":0},null,{"$f":"T('2 REPAIR ESTIMATOR'!S1133)","v":""},{"$nulls":8},1,1,1]
[{"$nulls":3},{"$f":"T('2 REPAIR ESTIMATOR'!D1134:O1134)","v":""},{"$nulls":7},{"$f":"'2 REPAIR ESTIMATOR'!P1134","v":0},null,{"$f":"T('2 REPAIR ESTIMATOR'!S1134)","v":""},{"$nulls":8},1,1,1]
[{"$nulls":3},{"$f":"T('2 REPAIR ESTIMATOR'!D1135:O1135)","v":""},{"$nulls":7},{"$f":"'2 REPAIR ESTIMATOR'!P1135","v":0},null,{"$f":"T('2 REPAIR ESTIMATOR'!S1135)","v":""},{"$nulls":8},1,1,1]
[{"$nulls":3},{"$f":"T('2 REPAIR ESTIMATOR'!D1136:O1136)","v":""},{"$nulls":7},{"$f":"'2 REPAIR ESTIMATOR'!P1136","v":0},null,{"$f":"T('2 REPAIR ESTIMATOR'!S1136)","v":""},{"$nulls":8},1,1,1]
[{"$nulls":3},{"$f":"T('2 REPAIR ESTIMATOR'!D1137:O1137)","v":""},{"$nulls":7},{"$f":"'2 REPAIR ESTIMATOR'!P1137","v":0},null,{"$f":"T('2 REPAIR ESTIMATOR'!S1137)","v":""},{"$nulls":8},1,1,1]
[{"$nulls":3},{"$f":"T('2 REPAIR ESTIMATOR'!D1138:O1138)","v":""},{"$nulls":7},{"$f":"'2 REPAIR ESTIMATOR'!P1138","v":0},null,{"$f":"T('2 REPAIR ESTIMATOR'!S1138)","v":""},{"$nulls":8},1,1,1]
[{"$nulls":3},{"$f":"T('2 REPAIR ESTIMATOR'!D1139:O1139)","v":""},{"$nulls":7},{"$f":"'2 REPAIR ESTIMATOR'!P1139","v":0},null,{"$f":"T('2 REPAIR ESTIMATOR'!S1139)","v":""},{"$nulls":8},1,1,1]
[{"$nulls":3},{"$f":"T('2 REPAIR ESTIMATOR'!D1140:O1140)","v":""},{"$nulls":7},{"$f":"'2 REPAIR ESTIMATOR'!P1140","v":0},null,{"$f":"T('2 REPAIR ESTIMATOR'!S1140)","v":""},{"$nulls":8},1,1,1]
[{"$nulls":3},{"$f":"T('2 REPAIR ESTIMATOR'!D1141:O1141)","v":""},{"$nulls":7},{"$f":"'2 REPAIR ESTIMATOR'!P1141","v":0},null,{"$f":"T('2 REPAIR ESTIMATOR'!S1141)","v":""},{"$nulls":8},1,1,1]
[{"$nulls":3},{"$f":"T('2 REPAIR ESTIMATOR'!D1142:O1142)","v":""},{"$nulls":7},{"$f":"'2 REPAIR ESTIMATOR'!P1142","v":0},null,{"$f":"T('2 REPAIR ESTIMATOR'!S1142)","v":""},{"$nulls":8},1,1,1]
[{"$nulls":3},{"$f":"T('2 REPAIR ESTIMATOR'!D1143:O1143)","v":""},{"$nulls":7},{"$f":"'2 REPAIR ESTIMATOR'!P1143","v":0},null,{"$f":"T('2 REPAIR ESTIMATOR'!S1143)","v":""},{"$nulls":8},1,1,1]
[{"$nulls":3},{"$f":"T('2 REPAIR ESTIMATOR'!D1144:O1144)","v":""},{"$nulls":7},{"$f":"'2 REPAIR ESTIMATOR'!P1144","v":0},null,{"$f":"T('2 REPAIR ESTIMATOR'!S1144)","v":""},{"$nulls":8},1,1,1]
[{"$nulls":3},{"$f":"T('2 REPAIR ESTIMATOR'!D1145:O1145)","v":""},{"$nulls":7},{"$f":"'2 REPAIR ESTIMATOR'!P1145","v":0},null,{"$f":"T('2 REPAIR ESTIMATOR'!S1145)","v":""},{"$nulls":8},1,1,1]
[{"$nulls":3},{"$f":"T('2 REPAIR ESTIMATOR'!D1146:O1146)","v":""},{"$nulls":7},{"$f":"'2 REPAIR ESTIMATOR'!P1146","v":0},null,{"$f":"T('2 REPAIR ESTIMATOR'!S1146)","v":""},{"$nulls":8},1,1,1]
[{"$nulls":3},{"$f":"T('2 REPAIR ESTIMATOR'!D1147:O1147)","v":""},{"$nulls":7},{"$f":"'2 REPAIR ESTIMATOR'!P1147","v":0},null,{"$f":"T('2 REPAIR ESTIMATOR'!S1147)","v":""},{"$nulls":8},1,1,1]
[{"$nulls":3},{"$f":"T('2 REPAIR ESTIMATOR'!D1148:O1148)","v":""},{"$nulls":7},{"$f":"'2 REPAIR ESTIMATOR'!P1148","v":0},null,{"$f":"T('2 REPAIR ESTIMATOR'!S1148)","v":""},{"$nulls":8},1,1,1]
[{"$nulls":3},{"$f":"T('2 REPAIR ESTIMATOR'!D1149:O1149)","v":""},{"$nulls":7},{"$f":"'2 REPAIR ESTIMATOR'!P1149","v":0},null,{"$f":"T('2 REPAIR ESTIMATOR'!S1149)","v":""},{"$nulls":8},1,1,1]
[{"$nulls":3},{"$f":"T('2 REPAIR ESTIMATOR'!D1150:O1150)","v":""},{"$nulls":7},{"$f":"'2 REPAIR ESTIMATOR'!P1150","v":0},null,{"$f":"T('2 REPAIR ESTIMATOR'!S1150)","v":""},{"$nulls":8},1,1,1]
[{"$nulls":3},{"$f":"T('2 REPAIR ESTIMATOR'!D1151:O1151)","v":""},{"$nulls":7},{"$f":"'2 REPAIR ESTIMATOR'!P1151","v":0},null,{"$f":"T('2 REPAIR ESTIMATOR'!S1151)","v":""},{"$nulls":8},1,1,1]
[{"$nulls":3},{"$f":"T('2 REPAIR ESTIMATOR'!D1152:O1152)","v":""},{"$nulls":7},{"$f":"'2 REPAIR ESTIMATOR'!P1152","v":0},null,{"$f":"T('2 REPAIR ESTIMATOR'!S1152)","v":""},{"$nulls":8},1,1,1]
[{"$nulls":3},{"$f":"T('2 REPAIR ESTIMATOR'!D1153:O1153)","v":""},{"$nulls":7},{"$f":"'2 REPAIR ESTIMATOR'!P1153","v":0},null,{"$f":"T('2 REPAIR ESTIMATOR'!S1153)","v":""},{"$nulls":8},1,1,1]
[{"$nulls":3},{"$f":"T('2 REPAIR ESTIMATOR'!D1154:O1154)","v":""},{"$nulls":7},{"$f":"'2 REPAIR ESTIMATOR'!P1154","v":0},null,{"$f":"T('2 REPAIR ESTIMATOR'!S1154)","v":""},{"$nulls":8},1,{"$f":"IF(Scope24_Setting=\"Shown\",1,0)","v":1},1]
[{"$nulls":3},{"$f":"T('2 REPAIR ESTIMATOR'!D1155:O1155)","v":""},{"$nulls":7},{"$f":"'2 REPAIR ESTIMATOR'!P1155","v":0},null,{"$f":"T('2 REPAIR ESTIMATOR'!S1155)","v":""},{"$nulls":8},1,1,1]
[{"$nulls":3},{"$f":"T('2 REPAIR ESTIMATOR'!D1156:O1156)","v":""},{"$nulls":7},{"$f":"'2 REPAIR ESTIMATOR'!P1156","v":0},null,{"$f":"T('2 REPAIR ESTIMATOR'!S1156)","v":""},{"$nulls":8},1,1,1]
[{"$nulls":3},{"$f":"T('2 REPAIR ESTIMATOR'!D1157:O1157)","v":""},{"$nulls":7},{"$f":"'2 REPAIR ESTIMATOR'!P1157","v":0},null,{"$f":"T('2 REPAIR ESTIMATOR'!S1157)","v":""},{"$nulls":8},1,1,1]
[{"$nulls":3},{"$f":"T('2 REPAIR ESTIMATOR'!D1158:O1158)","v":""},{"$nulls":7},{"$f":"'2 REPAIR ESTIMATOR'!P1158","v":0},null,{"$f":"T('2 REPAIR ESTIMATOR'!S1158)","v":""},{"$nulls":8},1,1,1]
[{"$nulls":3},{"$f":"T('2 REPAIR ESTIMATOR'!D1159:O1159)","v":""},{"$nulls":7},{"$f":"'2 REPAIR ESTIMATOR'!P1159","v":0},null,{"$f":"T('2 REPAIR ESTIMATOR'!S1159)","v":""},{"$nulls":8},1,1,1]
[{"$nulls":3},{"$f":"T('2 REPAIR ESTIMATOR'!D1160:O1160)","v":""},{"$nulls":7},{"$f":"'2 REPAIR ESTIMATOR'!P1160","v":0},null,{"$f":"T('2 REPAIR ESTIMATOR'!S1160)","v":""},{"$nulls":8},1,1,1]
[{"$nulls":3},{"$f":"T('2 REPAIR ESTIMATOR'!D1161:O1161)","v":""},{"$nulls":7},{"$f":"'2 REPAIR ESTIMATOR'!P1161","v":0},null,{"$f":"T('2 REPAIR ESTIMATOR'!S1161)","v":""},{"$nulls":8},1,1,1]
[{"$nulls":3},{"$f":"T('2 REPAIR ESTIMATOR'!D1162:O1162)","v":""},{"$nulls":7},{"$f":"'2 REPAIR ESTIMATOR'!P1162","v":0},null,{"$f":"T('2 REPAIR ESTIMATOR'!S1162)","v":""},{"$nulls":8},1,1,1]
[{"$nulls":22},{"$f":"W1373","v":0},1,0]
[{"$nulls":3},{"$f":"UPPER(CONCATENATE(\"Miscellaneous \",D1331,\" Items\"))","v":"MISCELLANEOUS MISCELLANEOUS ITEMS"},{"$nulls":18},{"$f":"SUM(W1374:W1383)","v":0},1,0]
[{"$nulls":3},1,{"$nulls":18},{"$f":"IF(E1374<>\"\",1,0)*W1331","v":0},1,0]
[{"$nulls":3},2,{"$nulls":18},{"$f":"IF(E1375<>\"\",1,0)*W1331","v":0},1,0]
[{"$nulls":3},3,{"$nulls":18},{"$f":"IF(E1376<>\"\",1,0)*W1331","v":0},1,0]
[{"$nulls":3},4,{"$nulls":18},{"$f":"IF(E1377<>\"\",1,0)*W1331","v":0},1,0]
[{"$nulls":3},5,{"$nulls":18},{"$f":"IF(E1378<>\"\",1,0)*W1331","v":0},1,0]
[{"$nulls":3},6,{"$nulls":18},{"$f":"IF(E1379<>\"\",1,0)*W1331","v":0},1,0]
[{"$nulls":3},7,{"$nulls":18},{"$f":"IF(E1380<>\"\",1,0)*W1331","v":0},1,0]
[{"$nulls":3},8,{"$nulls":18},{"$f":"IF(E1381<>\"\",1,0)*W1331","v":0},1,0]
[{"$nulls":3},9,{"$nulls":18},{"$f":"IF(E1382<>\"\",1,0)*W1331","v":0},1,0]
[{"$nulls":3},10,{"$nulls":18},{"$f":"IF(E1383<>\"\",1,0)*W1331","v":0},1,0]
[{"$nulls":22},{"$f":"W1331","v":0},1,0]
[{"$nulls":3},{"$f":"UPPER(CONCATENATE(\"TOTAL \",D1331))","v":"TOTAL MISCELLANEOUS"},{"$nulls":18},{"$f":"W1331","v":0},1,0]
[{"$nulls":22},{"$f":"W1331","v":0},1,0]
[{"$nulls":22},1,1,1]
[{"$nulls":3},"© 2016 by Houseflippingspreadsheet.com. All rights reserved"]
[]
[]
[]
[{"$nulls":4},"Scope 1","Shown"]
[{"$nulls":4},"Scope 2","Shown"]
[{"$nulls":4},"Scope 3","Shown"]
[{"$nulls":4},"Scope 4","Shown"]
[{"$nulls":4},"Scope 5","Shown"]
[{"$nulls":4},"Scope 6","Shown"]
[{"$nulls":4},"Scope 7","Shown"]
[{"$nulls":4},"Scope 8","Shown"]
[{"$nulls":4},"Scope 9","Shown"]
[{"$nulls":4},"Scope 10","Shown"]
[{"$nulls":4},"Scope 11","Shown"]
[{"$nulls":4},"Scope 12","Shown"]
[{"$nulls":4},"Scope 13","Shown"]
[{"$nulls":4},"Scope 14","Shown"]
[{"$nulls":4},"Scope 15","Shown"]
[{"$nulls":4},"Scope 16","Shown"]
[{"$nulls":4},"Scope 17","Shown"]
[{"$nulls":4},"Scope 18","Shown"]
[{"$nulls":4},"Scope 19","Shown"]
[{"$nulls":4},"Scope 20","Shown"]
[{"$nulls":4},"Scope 21","Shown"]
[{"$nulls":4},"Scope 22","Shown"]
[{"$nulls":4},"Scope 23","Shown"]
[{"$nulls":4},"Scope 24","Shown"]

{"sheet":"CONTRACT","index":42,"n_rows":405,"n_cols":44,"rows_kept":405,"hidden":true,"merged":[[1,0,1,3],[3,6,6,36],[7,6,8,36],[10,5,10,37],[11,5,11,37],[73,29,73,33],[73,34,73,37],[74,29,74,33],[74,34,74,37],[77,5,77,14],[77,15,77,20],[77,21,77,29],[77,30,77,37],[140,29,140,33],[140,34,140,37],[141,29,141,33],[141,34,141,37],[143,5,143,14],[143,15,143,20],[143,21,143,29],[143,30,143,37],[205,29,205,33],[205,34,205,37],[206,29,206,33],[206,34,206,37],[209,5,209,14],[209,15,209,20],[209,21,209,29],[209,30,209,37],[255,7,257,20],[255,22,257,35],[258,7,259,20],[258,22,259,35],[260,7,262,20],[260,22,262,35],[263,7,264,20],[263,22,264,35],[265,7,267,20],[268,7,269,20],[270,7,272,20],[273,7,274,20],[277,5,277,14],[277,15,277,20],[277,21,277,29],[277,30,277,37],[278,5,278,37],[279,5,279,37],[280,5,280,12],[280,13,280,32],[281,5,281,12],[281,13,281,32],[282,5,282,12],[282,13,282,32],[284,5,285,12],[284,13,285,37],[286,5,287,7],[286,11,287,12],[286,13,292,37],[288,5,289,12],[290,5,292,12],[294,5,295,12],[294,13,295,37],[296,5,297,7],[296,11,297,12],[296,13,302,37],[298,5,299,12],[300,5,302,12],[304,5,305,12],[304,13,305,37],[306,5,307,7],[306,11,307,12],[306,13,312,37],[308,5,309,12],[310,5,312,12],[314,5,315,12],[314,13,315,37],[316,5,317,7],[316,11,317,12],[316,13,322,37],[318,5,319,12],[320,5,322,12],[324,5,325,12],[324,13,325,37],[326,5,327,7],[326,11,327,12],[326,13,332,37],[328,5,329,12],[330,5,332,12],[334,5,335,12],[334,13,335,37],[336,5,337,7],[336,11,337,12],[336,13,342,37],[338,5,339,12],[340,5,342,12],[344,5,345,12],[344,13,345,37],[346,5,347,7],[346,11,347,12],[346,13,352,37],[348,5,349,12],[350,5,352,12],[354,5,355,12],[354,13,355,37],[356,5,357,7],[356,11,357,12],[356,13,362,37],[358,5,359,12],[360,5,362,12],[364,5,365,12],[364,13,365,37],[366,5,367,7],[366,11,367,12],[366,13,372,37],[368,5,369,12],[370,5,372,12],[374,5,375,12],[374,13,375,37],[376,5,377,7],[376,11,377,12],[376,13,382,37],[378,5,379,12],[380,5,382,12],[384,5,385,12],[384,13,385,37],[386,5,387,7],[386,11,387,12],[386,13,392,37],[388,5,389,12],[390,5,392,12],[394,22,394,29],[394,30,394,37],[396,23,396,31],[396,32,396,37],[397,23,397,31],[397,32,397,37],[404,5,404,14],[404,15,404,20],[404,21,404,29],[404,30,404,37],[405,5,405,37]]}
[]
["CONTRACT AGREEMENT",{"$nulls":41},"Shown","Shown"]
[]
[{"$nulls":6},"The Contract Agreement and Payment Schedule Report can be used to establish terms of a Contractual relationship between you and your Contractor.  Negotiate with your Contractor the Contract Terms, Payment Schedule Amounts and Milestones that will be used to make periodic progress payments.  "]
[]
[]
[]
[{"$nulls":6},"Disclaimer:  This document is intended to be used solely as an example of an Independent Contractor Agreement and should not be used without legal counsel from a licensed attorney in your state to address the particulars of your specific situation."]
[]
[]
[]
[{"$nulls":5},"INDEPENDENT CONTRACTOR AGREEMENT"]
{"$rows_empty":61}
[{"$nulls":29},"Contractor Initials"]
[{"$nulls":29},"Client Initials"]
[]
[]
[{"$nulls":5},{"$f":"T(Company_Name)","v":"Dave Inc"},{"$nulls":9},{"$f":"(Company_Phone)","v":8161234567},{"$nulls":5},{"$f":"T(Company_Email)","v":"dave@venturesheets.com"},{"$nulls":8},{"$f":"T(Company_Website)","v":"www.venturesheets.com"}]
{"$rows_empty":62}
[{"$nulls":29},"Contractor Initials"]
[{"$nulls":29},"Client Initials"]
[]
[{"$nulls":5},{"$f":"T(Company_Name)","v":"Dave Inc"},{"$nulls":9},{"$f":"(Company_Phone)","v":8161234567},{"$nulls":5},{"$f":"T(Company_Email)","v":"dave@venturesheets.com"},{"$nulls":8},{"$f":"T(Company_Website)","v":"www.venturesheets.com"}]
{"$rows_empty":61}
[{"$nulls":29},"Contractor Initials"]
[{"$nulls":29},"Client Initials"]
[]
[]
[{"$nulls":5},{"$f":"T(Company_Name)","v":"Dave Inc"},{"$nulls":9},{"$f":"(Company_Phone)","v":8161234567},{"$nulls":5},{"$f":"T(Company_Email)","v":"dave@venturesheets.com"},{"$nulls":8},{"$f":"T(Company_Website)","v":"www.venturesheets.com"}]
{"$rows_empty":48}
[{"$nulls":7},"CONTRACTOR",{"$nulls":14},"CLIENT"]
[]
[]
[]
[]
[{"$nulls":7},"DATE",{"$nulls":14},"DATE"]
[]
[]
[]
[]
[{"$nulls":7},"STREET ADDRESS"]
[]
[]
[]
[]
[{"$nulls":7},"CITY, STATE, ZIP"]
[]
[]
[]
[{"$nulls":5},{"$f":"T(Company_Name)","v":"Dave Inc"},{"$nulls":9},{"$f":"(Company_Phone)","v":8161234567},{"$nulls":5},{"$f":"T(Company_Email)","v":"dave@venturesheets.com"},{"$nulls":8},{"$f":"T(Company_Website)","v":"www.venturesheets.com"}]
[{"$nulls":5},"PAYMENT SCHEDULE"]
[]
[{"$nulls":5},"Project Address:"]
[{"$nulls":5},"Contractor Name:"]
[{"$nulls":5},"Client Name:"]
[]
[{"$nulls":5},"PAYMENT 1",{"$nulls":7},"DESCRIPTION OF MILESTONE"]
[]
[{"$nulls":5},"DATE",{"$nulls":7},"Project Milestones:"]
[]
[{"$nulls":5},"AMOUNT"]
[]
[]
[]
[]
[]
[{"$nulls":5},"PAYMENT 2",{"$nulls":7},"DESCRIPTION OF MILESTONE"]
[]
[{"$nulls":5},"DATE",{"$nulls":7},"Project Milestones:"]
[]
[{"$nulls":5},"AMOUNT"]
[]
[]
[]
[]
[]
[{"$nulls":5},"PAYMENT 3",{"$nulls":7},"DESCRIPTION OF MILESTONE"]
[]
[{"$nulls":5},"DATE",{"$nulls":7},"Project Milestones:"]
[]
[{"$nulls":5},"AMOUNT"]
[]
[]
[]
[]
[]
[{"$nulls":5},"PAYMENT 4",{"$nulls":7},"DESCRIPTION OF MILESTONE"]
[]
[{"$nulls":5},"DATE",{"$nulls":7},"Project Milestones:"]
[]
[{"$nulls":5},"AMOUNT"]
[]
[]
[]
[]
[]
[{"$nulls":5},"PAYMENT 5",{"$nulls":7},"DESCRIPTION OF MILESTONE"]
[]
[{"$nulls":5},"DATE",{"$nulls":7},"Project Milestones:"]
[]
[{"$nulls":5},"AMOUNT"]
[]
[]
[]
[]
[]
[{"$nulls":5},"PAYMENT 6",{"$nulls":7},"DESCRIPTION OF MILESTONE"]
[]
[{"$nulls":5},"DATE",{"$nulls":7},"Project Milestones:"]
[]
[{"$nulls":5},"AMOUNT"]
[]
[]
[]
[]
[]
[{"$nulls":5},"PAYMENT 7",{"$nulls":7},"DESCRIPTION OF MILESTONE"]
[]
[{"$nulls":5},"DATE",{"$nulls":7},"Project Milestones:"]
[]
[{"$nulls":5},"AMOUNT"]
[]
[]
[]
[]
[]
[{"$nulls":5},"PAYMENT 8",{"$nulls":7},"DESCRIPTION OF MILESTONE"]
[]
[{"$nulls":5},"DATE",{"$nulls":7},"Project Milestones:"]
[]
[{"$nulls":5},"AMOUNT"]
[]
[]
[]
[]
[]
[{"$nulls":5},"PAYMENT 9",{"$nulls":7},"DESCRIPTION OF MILESTONE"]
[]
[{"$nulls":5},"DATE",{"$nulls":7},"Project Milestones:"]
[]
[{"$nulls":5},"AMOUNT"]
[]
[]
[]
[]
[]
[{"$nulls":5},"PAYMENT 10",{"$nulls":7},"DESCRIPTION OF MILESTONE"]
[]
[{"$nulls":5},"DATE",{"$nulls":7},"Project Milestones:"]
[]
[{"$nulls":5},"AMOUNT"]
[]
[]
[]
[]
[]
[{"$nulls":5},"FINAL PAYMENT",{"$nulls":7},"DESCRIPTION OF MILESTONE"]
[]
[{"$nulls":5},"DATE",{"$nulls":7},"Project Milestones:"]
[]
[{"$nulls":5},"AMOUNT"]
[]
[]
[]
[]
[]
[{"$nulls":22},"PROJECT TOTAL",{"$nulls":7},{"$f":"IF(SUM(F291+F301+F311+F321+F331+F341+F351+F361+F371+F381+F391)=0,\"\",F291+F301+F311+F321+F331+F341+F351+F361+F371+F381+F391)","v":""}]
[]
[{"$nulls":23},"CONTRACTOR INITIAL"]
[{"$nulls":23},"CLIENT INITIAL"]
[]
[]
[]
[]
[]
[]
[{"$nulls":5},{"$f":"T(Company_Name)","v":"Dave Inc"},{"$nulls":9},{"$f":"(Company_Phone)","v":8161234567},{"$nulls":5},{"$f":"T(Company_Email)","v":"dave@venturesheets.com"},{"$nulls":8},{"$f":"T(Company_Website)","v":"www.venturesheets.com"}]

{"sheet":"REHAB CHECKLIST","index":43,"n_rows":320,"n_cols":45,"rows_kept":320,"hidden":true,"merged":[[1,9,1,21],[3,23,6,54],[10,20,11,39],[12,21,12,39],[13,21,13,39],[15,20,15,21],[15,22,15,39],[16,22,16,38],[16,42,16,56],[18,23,18,38],[18,44,18,56],[20,23,20,38],[20,44,20,56],[22,23,22,39],[22,44,22,56],[24,23,24,38],[24,44,24,56],[26,23,26,38],[26,44,26,56],[28,23,28,38],[28,44,28,56],[30,22,30,38],[30,44,30,56],[32,23,32,38],[32,42,32,56],[34,23,34,38],[34,44,34,56],[36,23,36,38],[36,44,36,56],[38,23,38,38],[38,44,38,56],[40,21,41,30],[40,44,40,56],[42,22,42,25],[42,26,42,31],[42,32,42,35],[42,36,42,41],[42,44,42,56],[44,22,44,25],[44,26,44,31],[44,32,44,35],[44,36,44,41],[44,44,44,56],[46,21,46,26],[46,27,46,34],[46,35,46,37],[46,38,46,41],[49,20,49,21],[49,22,49,39],[51,22,51,38],[51,42,51,56],[53,23,53,38],[53,44,53,56],[55,23,55,38],[55,44,55,56],[57,44,57,56],[59,23,59,38],[61,23,61,38],[64,20,64,21],[64,22,64,39],[65,22,65,57],[67,23,67,38],[67,42,67,56],[69,23,69,38],[69,44,69,56],[71,23,71,38],[71,44,71,56],[73,25,73,30],[73,32,73,38],[73,42,73,56],[75,25,75,30],[75,32,75,38],[75,44,75,56],[77,25,77,30],[77,32,77,38],[79,23,79,38],[80,40,86,56],[81,23,81,38],[83,23,84,38],[89,20,89,21],[89,22,89,39],[91,22,91,38],[91,42,91,56],[93,23,93,38],[93,44,93,56],[95,23,95,40],[95,44,95,56],[97,23,97,38],[97,44,97,56],[99,23,99,38],[101,23,101,38],[103,23,103,38],[105,23,105,40],[108,20,108,21],[108,22,108,39],[109,22,109,57],[110,22,110,37],[112,23,112,37],[112,42,112,56],[114,23,114,37],[114,44,114,56],[116,23,116,37],[116,44,116,56],[118,23,118,37],[118,44,118,56],[120,23,122,39],[120,44,120,56],[122,44,122,56],[124,21,125,30],[126,21,126,25],[126,26,126,31],[126,32,126,35],[126,36,126,41],[128,21,128,25],[128,26,128,31],[128,32,128,35],[128,36,128,41],[129,27,130,34],[129,38,130,41],[130,21,130,26],[130,35,130,37],[133,20,133,21],[133,22,133,39],[134,22,134,37],[134,42,134,56],[136,23,136,38],[136,44,136,55],[138,23,138,38],[138,44,138,55],[140,23,140,38],[140,44,140,55],[142,23,142,38],[142,44,142,55],[144,23,144,38],[144,42,144,56],[146,23,146,38],[146,44,146,55],[148,23,148,38],[148,44,148,55],[150,23,150,38],[150,44,150,55],[152,23,152,32],[152,34,153,38],[152,44,152,55],[154,23,154,32],[154,41,154,56],[156,23,156,38],[156,41,156,43],[156,45,156,49],[156,51,156,55],[158,23,158,38],[158,41,158,43],[158,45,158,49],[158,51,158,55],[160,23,160,37],[160,41,160,43],[160,45,160,49],[160,51,160,55],[162,23,162,37],[162,41,162,43],[162,45,162,49],[162,51,162,55],[164,23,164,37],[164,45,164,48],[164,51,164,55],[168,20,168,21],[168,22,168,39],[169,22,169,37],[169,42,169,56],[171,23,171,38],[171,44,171,55],[173,23,173,38],[173,44,173,55],[175,23,175,38],[175,44,175,55],[177,23,177,38],[177,44,177,55],[179,23,179,38],[179,44,179,55],[181,23,181,38],[181,44,181,55],[184,20,184,21],[184,22,184,37],[184,38,184,39],[184,40,184,57],[185,40,185,56],[187,23,187,35],[187,41,187,57],[189,23,189,35],[189,41,189,57],[191,23,191,35],[191,41,191,57],[193,23,193,35],[193,41,193,57],[195,23,195,35],[195,41,195,57],[197,23,197,35],[197,41,197,57],[199,23,199,35],[199,41,199,57],[201,23,201,35],[201,41,201,57],[203,23,203,35],[203,41,203,57],[205,23,205,35],[205,41,205,57],[208,20,208,21],[208,22,208,37],[208,38,208,39],[208,40,208,57],[210,22,210,38],[210,40,210,55],[212,23,212,37],[212,41,212,56],[214,23,214,37],[214,41,214,56],[216,23,216,37],[216,41,216,56],[218,23,218,37],[218,41,218,56],[220,23,220,37],[220,41,220,56],[222,23,222,38],[222,41,222,57],[224,23,224,38],[224,41,224,56],[226,23,226,37],[226,40,226,55],[228,23,228,37],[228,41,228,56],[230,23,230,37],[230,41,230,56],[232,23,232,37],[232,41,232,56],[234,41,234,56],[237,20,237,21],[237,22,237,39],[238,22,238,37],[240,23,240,38],[240,41,240,56],[242,23,242,38],[242,43,242,56],[244,23,244,38],[244,43,244,56],[246,23,246,38],[246,43,246,56],[248,23,248,38],[248,43,248,56],[250,23,250,38],[250,43,250,56],[252,23,252,38],[252,43,252,56],[254,23,254,38],[254,43,254,56],[256,23,256,38],[256,43,256,56],[259,20,259,21],[259,22,259,39],[260,22,260,37],[262,23,262,38],[262,41,262,56],[264,23,264,38],[264,43,264,56],[266,23,266,38],[266,43,266,56],[268,23,268,38],[268,43,268,56],[270,23,270,38],[270,43,270,56],[272,23,272,38],[272,43,272,56],[274,23,274,38],[274,43,274,56],[276,23,276,38],[276,43,276,56],[278,23,278,38],[281,20,281,21],[281,22,281,39],[283,22,283,38],[285,23,285,38],[287,23,287,38],[289,23,289,38],[291,23,291,38],[293,23,293,38],[295,23,295,38],[297,23,300,38],[302,23,302,38],[304,23,304,38],[307,20,307,21],[307,22,307,39],[308,22,308,37],[308,41,308,55],[310,23,310,38],[310,43,310,56],[312,23,312,39],[312,43,312,56],[314,23,314,38],[314,43,314,56],[316,23,316,38],[319,19,320,59]]}
[]
[{"$nulls":9},"REHAB CHECKLIST"]
[]
[{"$nulls":23},"The rehab checklist is a printer-friendly checklist that can be used to manage your rehab property from Start to Finish.  The rehab checklist provides a detailed lists of tasks and to-do items for each step throughout the rehab process.\n"]
[]
[]
[]
[]
[]
[]
[{"$nulls":20},"REHAB CHECKLIST"]
[]
[{"$nulls":21},{"$f":"T(Street_Address)","v":"1234 Main St"}]
[{"$nulls":21},{"$f":"T(City_State_Zip)","v":"Kansas City, MO 64116"}]
[]
[{"$nulls":20},"01",null,"Submitting an Offer"]
[{"$nulls":22},"To Do:",{"$nulls":19},"Software Component | Reporting"]
[]
[{"$nulls":23},"Contact Agent and Contractor to Walkthrough Property",{"$nulls":20},"Inspection Checklist"]
[]
[{"$nulls":23},"Walkthrough/Inspect Property for Repairs Needed",{"$nulls":20},"Repair Cost Calculator"]
[]
[{"$nulls":23},"Fill-Out Inspection Checklist for Preliminary Scope of Work",{"$nulls":20},"Maximum Purchase Price Calculator"]
[]
[{"$nulls":23},"Create Preliminary Repair Cost Estimate",{"$nulls":20},"Investment Report "]
[]
[{"$nulls":23},"Calculate the Maximum Purchase Price for the Property",{"$nulls":20},"Maximum Purchase Price Report"]
[]
[{"$nulls":23},"Distribute Financial Analysis to Partners (if required)",{"$nulls":20},"Repair Cost Estimate Report"]
[]
[{"$nulls":22},"Offer Decision:",{"$nulls":21},"Homeowner Offer Report"]
[]
[{"$nulls":23},"Make 'Go' or 'No-Go' Decision on Offer",{"$nulls":18},"Property Documentation"]
[]
[{"$nulls":23},"Send Signed Offer/ Purchase Agreement to Agent/Seller",{"$nulls":20},"MLS Listing Information"]
[]
[{"$nulls":23},"Send Copy of EMD/Certified Check (if required)",{"$nulls":20},"Comparable Sales Information"]
[]
[{"$nulls":23},"Send Proof of Funds Letter (if required)",{"$nulls":20},"Tax Information"]
[]
[{"$nulls":21},"Offer Tracking:",{"$nulls":22},"Signed Purchase Agreement"]
[]
[{"$nulls":22},"Offer #1:",{"$nulls":9},"Counter #1:",{"$nulls":11},"EMD/Certified Check"]
[]
[{"$nulls":22},"Offer #2:",{"$nulls":9},"Counter #2:",{"$nulls":11},"Proof of Funds Letter"]
[]
[{"$nulls":21},"Accepted Offer:",{"$nulls":13},"Date:"]
[]
[]
[{"$nulls":20},"02",null,"Offer Acceptance"]
[]
[{"$nulls":22},"To Do:",{"$nulls":19},"Property Documentation"]
[]
[{"$nulls":23},"Send Original Copy of EMD/Proof of Funds (if required)",{"$nulls":20},"Signed Purchase Agreement"]
[]
[{"$nulls":23},"Schedule an Inspection / Walkthrough",{"$nulls":20},"Contract Addendums"]
[]
[{"$nulls":22},"If Financing:",{"$nulls":21},"Copy of EMD/Certified Check"]
[]
[{"$nulls":23},"Send Property Info, Contract & Closing Date to Lender"]
[]
[{"$nulls":23},"Schedule an Appraisal w/ Lender"]
[]
[]
[{"$nulls":20},"03",null,"Property Inspections"]
[{"$nulls":22},"*Conduct a property inspection with a professional inspector or contractor to create a detailed scope of work for the property."]
[]
[{"$nulls":23},"Ensure Main Water Shut-Off Valve is Turned Off.",{"$nulls":18},"Software Component | Reporting"]
[]
[{"$nulls":23},"Arrange Utilities Be Turned On for Inspections",{"$nulls":20},"Inspection Checklist"]
[]
[{"$nulls":23},"Conduct Property Inspections",{"$nulls":20},"Scope of Work Report Builder"]
[]
[{"$nulls":25},"Home Inspection",{"$nulls":6},"Structural Evaluation",{"$nulls":9},"Property Documentation"]
[]
[{"$nulls":25},"Termite Inspection",{"$nulls":6},"Radon Evaluation",{"$nulls":11},"Final Inspection Report"]
[]
[{"$nulls":25},"Waste Line Inspection",{"$nulls":6},"Abatement Inspection",{"$nulls":11},"Termite Letter"]
[]
[{"$nulls":23},"Receive Final Inspection Report / Termite Report"]
[{"$nulls":40},"Tip: **After the Property Inspection/Walkthrough, you may be able to reasonably make a financial decision to 'Go/No-Go' the property based upon the findings at the Inspection.  If time allows, solicit contractor proposals to make the Final 'Go/No-Go' Decision."]
[{"$nulls":23},"Create Detailed Scope of Work"]
[]
[{"$nulls":23},"**Make a Go/No-Go Decision to Purchase the Property OR Solicit Bids from Contractors "]
[]
[]
[]
[]
[]
[{"$nulls":20},"04",null,"Contractor Preparation / Bidding"]
[]
[{"$nulls":22},"To Do:",{"$nulls":19},"Software Component | Reporting"]
[]
[{"$nulls":23},"Create Detailed Scope of Work",{"$nulls":20},"Scope of Work Report "]
[]
[{"$nulls":23},"Create Material List (Owner or Contractor-Furnished Materials)",{"$nulls":20},"Shopping List Report "]
[]
[{"$nulls":23},"Create a Contractors Bidders List",{"$nulls":20},"Contractor Prequalification Form"]
[]
[{"$nulls":23},"Solicit Contractor Bids"]
[]
[{"$nulls":23},"Schedule Contractor Walkthroughs"]
[]
[{"$nulls":23},"Set a Bid Date to Receive Proposals "]
[]
[{"$nulls":23},"Evaluate Contractors Bids and Determine Lowest Qualified Bidders"]
[]
[]
[{"$nulls":20},"05",null,"Final Purchase Decision"]
[{"$nulls":22},"*Perform a final financial analysis of the property based upon Property Inspections and Contractor Proposals received for the property. "]
[{"$nulls":22},"To Do:"]
[]
[{"$nulls":23},"Calculate the Final Repair Cost Estimate",{"$nulls":18},"Software Component | Reporting"]
[]
[{"$nulls":23},"Calculate the Final Maximum Purchase Price ",{"$nulls":20},"Repair Cost Calculator"]
[]
[{"$nulls":23},"Perform Rental Analysis for Alternative Exit Strategy",{"$nulls":20},"Maximum Purchase Price Calculator"]
[]
[{"$nulls":23},"Distribute Financial Analysis to Partners (if required)",{"$nulls":20},"Investment Report "]
[]
[{"$nulls":23},"Make a Go/No-Go Decision to Purchase the Property OR Renegotiate Terms Based Upon Inspection Findings",{"$nulls":20},"Maximum Purchase Price Report"]
[]
[{"$nulls":44},"Repair Cost Estimate Report"]
[]
[{"$nulls":21},"Inspection Amendments:"]
[]
[{"$nulls":21},"Revised Offer #1:",{"$nulls":10},"Counter #1:"]
[]
[{"$nulls":21},"Revised Offer #2:",{"$nulls":10},"Counter #2:"]
[]
[{"$nulls":21},"Accepted Offer:",{"$nulls":13},"Date:"]
[]
[]
[{"$nulls":20},"06",null,"Rehab Preparation"]
[{"$nulls":22},"To Do:",{"$nulls":19},"Software Component | Reporting"]
[]
[{"$nulls":23},"Finalize Closing Date with Agent or Lender (if applicable)",{"$nulls":20},"Repair Cost Calculator"]
[]
[{"$nulls":23},"Take Preliminary Property Photos / Video",{"$nulls":20},"Repair Cost Report"]
[]
[{"$nulls":23},"Choose Contractors/ Subcontractors",{"$nulls":20},"Scope of Work Report"]
[]
[{"$nulls":23},"Receive Contractor Agreements/ Contract Documents",{"$nulls":20},"Project Scheduler"]
[]
[{"$nulls":23},"Finalize Rehab Budget / Setup in Accounting Software",{"$nulls":18},"Property Documentation"]
[]
[{"$nulls":23},"Create Rehab Schedule",{"$nulls":20},"Independent Contractor Agreement"]
[]
[{"$nulls":23},"Turn-On/Transfer Utilities (Water, Gas, Electric)",{"$nulls":20},"Insurance & Indemnification Agreement"]
[]
[{"$nulls":23},"Request Property Insurance Policy",{"$nulls":20},"Proof of Insurance (GL & WC)"]
[]
[{"$nulls":23},"Schedule Contractor Start Dates",{"$nulls":10},"lockbox combination",{"$nulls":9},"Signed W9s"]
[]
[{"$nulls":23},"Place Keys/Lockbox at Property",{"$nulls":17},"Account Information:"]
[]
[{"$nulls":23},"Procure Long Lead-Time Material Items",{"$nulls":17},"Water:"]
[]
[{"$nulls":23},"Collect Lowes/Home Depot 10% Off Coupons",{"$nulls":17},"Gas:"]
[]
[{"$nulls":23},"Architectural/Engineered Drawings (if required)",{"$nulls":17},"Electric:"]
[]
[{"$nulls":23},"Kitchen Layout/Drawings (if required)",{"$nulls":17},"Insurance:"]
[]
[{"$nulls":23},"Order Construction Signage/Marketing Signage"]
[]
[]
[]
[{"$nulls":20},"07",null,"Purchase Closing"]
[{"$nulls":22},"To Do:",{"$nulls":19},"Property Documentation"]
[]
[{"$nulls":23},"Receive and Review HUD-1",{"$nulls":20},"HUD-1"]
[]
[{"$nulls":23},"Receive and Review Good Faith Estimate (if financing)",{"$nulls":20},"Good Faith Estimate (GFE)"]
[]
[{"$nulls":23},"Contact Settlement Agent to Ensure Closing is On-Schedule",{"$nulls":20},"Signed Purchase Agreement Addendums"]
[]
[{"$nulls":23},"Arrange for Money Transfer ",{"$nulls":20},"Contract Amendments"]
[]
[{"$nulls":23},"Obtain Property Keys/Make Copies",{"$nulls":20},"Warranty Deed"]
[]
[{"$nulls":23},"Place Keys in Lockbox for Contractor Access",{"$nulls":20},"Insurance Policy Binder"]
[]
[]
[{"$nulls":20},"08",null,"Project Start-Up"]
[{"$nulls":22},"Rehab Start-Up: ",{"$nulls":17},"Accounting Setup:"]
[]
[{"$nulls":23},"Contact/Schedule Contractor Start Dates",{"$nulls":17},"Setup Property Bank Account (if required)"]
[]
[{"$nulls":23},"Preconstruction Meeting w/ Contractors",{"$nulls":17},"Setup Property Credit/Debit Card (if required)"]
[]
[{"$nulls":23},"Purchase Start-Up Materials/Schedule Delivery",{"$nulls":17},"Order Checks (if required)"]
[]
[{"$nulls":23},"Order/Schedule Dumpster Delivery",{"$nulls":17},"Setup Loan Automatic Payment/Withdrawal (if financing)"]
[]
[{"$nulls":23},"Set Temporary Toilet/Porta-Potty",{"$nulls":17},"Setup Insurance Automatic Payment/Withdrawal"]
[]
[{"$nulls":23},"Utility Locates",{"$nulls":17},"Setup Utilities Automatic Payment/Withdrawal"]
[]
[{"$nulls":23},"Turn-On Utilities",{"$nulls":17},"Setup Project in Accounting Software / Ledger"]
[]
[{"$nulls":23},"Pull Demolition/Building Permits/MEP Permits",{"$nulls":17},"Setup Project Accounts Payable in Accounting Software"]
[]
[{"$nulls":23},"Install Project Sign/Marketing Signage",{"$nulls":17},"Input Vendor 1099 Info In Accounting Software"]
[]
[{"$nulls":23},"Furnish Fire Extinguishers On-Site",{"$nulls":17},"Create Rehab Budget in Accounting Software"]
[]
[]
[{"$nulls":20},"09",null,"Project Management"]
[]
[{"$nulls":22},"Rehab Management Weekly To-Do",{"$nulls":17},"Accounting Weekly To-Do (Setup Tasks in Calendar):"]
[]
[{"$nulls":23},"Daily Jobsite Visits",{"$nulls":17},"Input Weekly Material Receipts/Invoices"]
[]
[{"$nulls":23},"Take Jobsite Photos and Videos",{"$nulls":17},"Pay contractors/Vendors per Contract Agreement"]
[]
[{"$nulls":23},"Review Jobsite, Maintenance, Safety & Cleanliness",{"$nulls":17},"Request Signed Lien Waivers for Paid/Completed Work"]
[]
[{"$nulls":23},"Review Scope of Work w/ Contractors",{"$nulls":17},"Document Change Orders"]
[]
[{"$nulls":23},"Inspect Work for Quality Control",{"$nulls":17},"Update Rehab Budget"]
[]
[{"$nulls":23},"Review Schedule w/ Contractors and Update Progress",{"$nulls":17},"Send Budget Updates/Projections to Partners (if required)"]
[]
[{"$nulls":23},"Schedule & Confirm Contractor Start/Completion Dates",{"$nulls":17},"Bank Account Reconciliation"]
[]
[{"$nulls":23},"Schedule Property Inspections",{"$nulls":16},"Monthly To-Do (Setup Tasks in Calendar):"]
[]
[{"$nulls":23},"Procure Materials, Schedule Deliveries & Returns",{"$nulls":17},"Pay Monthly Loan Payment (if required)"]
[]
[{"$nulls":23},"Send Progress Reports/Photos to Partners ",{"$nulls":17},"Pay Monthly Credit Card Bill"]
[]
[{"$nulls":23},"Organize Vendor Warranties/Product Information",{"$nulls":17},"Pay Monthly Utility Bill"]
[]
[{"$nulls":41},"Pay Monthly Insurance Bill"]
[]
[]
[{"$nulls":20},"10",null,"Project Closeout"]
[{"$nulls":22},"To-Do:"]
[]
[{"$nulls":23},"Final Punch List Walkthrough",{"$nulls":17},"Finalize 'Homeowner's Manual' "]
[]
[{"$nulls":23},"Make Final Payments to Contractors",{"$nulls":19},"List of Home Improvements"]
[]
[{"$nulls":23},"Receive Signed Lien Waivers",{"$nulls":19},"Pre-Inspection Report"]
[]
[{"$nulls":23},"Final Cleaning of the Property",{"$nulls":19},"Seller's Disclosures"]
[]
[{"$nulls":23},"Staging",{"$nulls":19},"Home Warranty Information"]
[]
[{"$nulls":23},"Professional Property Photos",{"$nulls":19},"Material/Equipment Warranty Information"]
[]
[{"$nulls":23},"Complete Seller's Disclosures",{"$nulls":19},"Architectural Drawings/As-Builts"]
[]
[{"$nulls":23},"Make a List of Home Improvements",{"$nulls":19},"Structural Drawings/Warranty Information"]
[]
[{"$nulls":23},"Purchase Home Warranty",{"$nulls":19},"Building Permit Copies"]
[]
[]
[{"$nulls":20},"11",null,"Property Listing"]
[{"$nulls":22},"To-Do:"]
[]
[{"$nulls":23},"Hire a Real Estate Agent or List FSBO",{"$nulls":17},"Open House Checklist"]
[]
[{"$nulls":23},"Review Comparables Sales & Establish Listing Price",{"$nulls":19},"Schedule Date and Time for Open House"]
[]
[{"$nulls":23},"Post Property to the Multiple Listing Service",{"$nulls":19},"Place Open House Notice on MLS/Internet"]
[]
[{"$nulls":23},"Post Property to Real Estate Listing Websites",{"$nulls":19},"Distribute Flyers to the Neighborhood"]
[]
[{"$nulls":23},"Place Yard Sign",{"$nulls":19},"Print /Order Property Flyers and Buyers Packets"]
[]
[{"$nulls":23},"Install Lock Box at Property",{"$nulls":19},"Place Open House Signs and Directional Signage"]
[]
[{"$nulls":23},"Print/Order Property Flyers and Buyers Packets",{"$nulls":19},"Food and Beverages"]
[]
[{"$nulls":23},"Schedule an Open House",{"$nulls":19},"Sign-In Sheet"]
[]
[{"$nulls":23},"Receive Offers and Negotiate Contract w/ Homebuyers"]
[]
[]
[{"$nulls":20},"12",null,"Offer Acceptance"]
[]
[{"$nulls":22},"To Do:"]
[]
[{"$nulls":23},"Negotiate and Execute Contract w/ Home Buyer"]
[]
[{"$nulls":23},"Agent Send Contract Information to a Closing Agent"]
[]
[{"$nulls":23},"Closing Agent Will Conduct a Title Search"]
[]
[{"$nulls":23},"Homebuyer Will Schedule and Conduct Inspections"]
[]
[{"$nulls":23},"Negotiate Inspection Repairs"]
[]
[{"$nulls":23},"Lender Will Order An Appraisal"]
[]
[{"$nulls":23},"Provide Appraiser w/ Scope of Work, Rehab Costs Breakdown, Before/After Pictures and Comparables Sales Information"]
[]
[]
[]
[]
[{"$nulls":23},"Make Agreed Upon Inspection Repairs"]
[]
[{"$nulls":23},"Post Inspection Repairs / Pre-Closing Walkthrough"]
[]
[]
[{"$nulls":20},"13",null,"Sales Closing"]
[{"$nulls":22},"To Do:",{"$nulls":18},"Software Component | Reporting"]
[]
[{"$nulls":23},"Receive and Review HUD-1",{"$nulls":19},"HUD-1"]
[]
[{"$nulls":23},"Contact Settlement Agent to Ensure Closing is On-Schedule",{"$nulls":19},"Signed Purchase and Sales  Agreement"]
[]
[{"$nulls":23},"Arrange for Money Transfer ",{"$nulls":19},"Contract Amendments and Addendums"]
[]
[{"$nulls":23},"Bring Property Keys to Closing"]
[]
[]
[{"$nulls":19},"© 2018 by Houseflippingspreadsheet.com. All rights reserved"]

{"sheet":"BID TRACKER","index":44,"n_rows":1270,"n_cols":22,"rows_kept":1270,"hidden":true,"merged":[[1,0,3,3],[1,15,1,16],[2,15,2,16],[5,4,10,17],[84,18,84,19],[85,18,85,19],[90,18,90,19],[91,18,91,19],[92,18,92,19],[93,18,93,19],[94,18,94,19],[95,18,95,19],[96,18,96,19],[106,18,106,19],[107,18,107,19],[115,18,115,19],[116,18,116,19],[117,18,117,19],[118,2,118,5],[118,8,118,9],[118,10,118,11],[118,12,118,13],[118,14,118,15],[118,16,118,17],[118,18,118,19],[119,2,119,5],[119,8,119,9],[119,10,119,11],[119,12,119,13],[119,14,119,15],[119,16,119,17],[119,18,119,19],[121,18,121,19],[123,18,123,19],[124,18,124,19],[125,18,125,19],[126,18,126,19],[127,18,127,19],[128,18,128,19],[129,18,129,19],[130,18,130,19],[131,18,131,19],[132,18,132,19],[133,18,133,19],[134,16,134,17],[134,18,134,19],[135,16,135,17],[135,18,135,19],[136,16,136,17],[136,18,136,19],[137,16,137,17],[137,18,137,19],[138,18,138,19],[139,18,139,19],[140,16,140,17],[140,18,140,19],[141,16,141,17],[141,18,141,19],[142,16,142,17],[142,18,142,19],[143,16,143,17],[143,18,143,19],[144,16,144,17],[144,18,144,19],[145,16,145,17],[145,18,145,19],[146,16,146,17],[146,18,146,19],[147,16,147,17],[147,18,147,19],[148,16,148,17],[148,18,148,19],[149,16,149,17],[149,18,149,19],[150,16,150,17],[150,18,150,19],[151,16,151,17],[151,18,151,19],[152,18,152,19],[153,18,153,19],[165,10,165,11],[165,12,165,13],[165,14,165,15],[165,16,165,17],[166,2,166,7],[166,8,166,9],[166,10,166,11],[166,12,166,13],[166,14,166,15],[166,16,166,17],[167,2,167,5],[167,8,167,9],[167,10,167,11],[167,12,167,13],[167,14,167,15],[167,16,167,17],[168,10,168,11],[168,12,168,13],[168,14,168,15],[168,16,168,17],[169,2,169,5],[169,8,169,9],[169,10,169,11],[169,12,169,13],[169,14,169,15],[169,16,169,17],[169,18,169,19],[170,2,170,5],[170,8,170,9],[170,10,170,11],[170,12,170,13],[170,14,170,15],[170,16,170,17],[170,18,170,19],[171,2,171,5],[171,8,171,9],[171,10,171,11],[171,12,171,13],[171,14,171,15],[171,16,171,17],[200,18,200,19],[201,18,201,19],[202,18,202,19],[203,18,203,19],[212,18,212,19],[217,2,217,7],[217,8,217,9],[217,10,217,11],[217,12,217,13],[217,14,217,15],[217,16,217,17],[217,18,217,19],[218,2,218,7],[218,8,218,9],[218,10,218,11],[218,12,218,13],[218,14,218,15],[218,16,218,17],[219,2,219,5],[219,8,219,9],[219,10,219,11],[219,12,219,13],[219,14,219,15],[219,16,219,17],[220,2,220,5],[220,8,220,9],[220,10,220,11],[220,12,220,13],[220,14,220,15],[220,16,220,17],[221,2,221,5],[221,8,221,9],[221,10,221,11],[221,12,221,13],[221,14,221,15],[221,16,221,17],[222,2,222,5],[222,8,222,9],[222,10,222,11],[222,12,222,13],[222,14,222,15],[222,16,222,17],[223,2,223,5],[223,8,223,9],[223,10,223,11],[223,12,223,13],[223,14,223,15],[223,16,223,17],[223,18,223,19],[275,2,275,5],[275,8,275,9],[275,10,275,11],[275,12,275,13],[275,14,275,15],[275,16,275,17],[275,18,275,19],[292,18,292,19],[293,18,293,19],[298,18,298,19],[299,18,299,19],[300,18,300,19],[301,18,301,19],[302,18,302,19],[303,18,303,19],[304,18,304,19],[305,18,305,19],[306,18,306,19],[307,18,307,19],[308,18,308,19],[309,18,309,19],[321,2,321,7],[321,8,321,9],[321,10,321,11],[321,12,321,13],[321,14,321,15],[321,16,321,17],[321,18,321,19],[322,10,322,11],[322,12,322,13],[322,14,322,15],[322,16,322,17],[323,2,323,5],[323,8,323,9],[323,10,323,11],[323,12,323,13],[323,14,323,15],[323,16,323,17],[324,2,324,5],[324,8,324,9],[324,10,324,11],[324,12,324,13],[324,14,324,15],[324,16,324,17],[325,10,325,11],[325,12,325,13],[325,14,325,15],[325,16,325,17],[326,2,326,5],[326,8,326,9],[326,10,326,11],[326,12,326,13],[327,2,327,5],[327,8,327,9],[327,10,327,11],[327,12,327,13],[327,14,327,15],[327,16,327,17],[356,18,356,19],[357,18,357,19],[358,18,358,19],[359,18,359,19],[360,18,360,19],[361,18,361,19],[362,18,362,19],[363,18,363,19],[364,18,364,19],[365,18,365,19],[366,16,366,17],[366,18,366,19],[367,16,367,17],[367,18,367,19],[373,2,373,7],[373,8,373,9],[373,10,373,11],[373,12,373,13],[373,14,373,15],[373,16,373,17],[374,2,374,7],[374,8,374,9],[374,10,374,11],[374,12,374,13],[374,14,374,15],[374,16,374,17],[375,2,375,5],[375,8,375,9],[375,10,375,11],[375,12,375,13],[375,14,375,15],[375,16,375,17],[376,2,376,5],[376,8,376,9],[376,10,376,11],[376,12,376,13],[376,14,376,15],[376,16,376,17],[377,2,377,5],[377,8,377,9],[377,10,377,11],[377,12,377,13],[377,14,377,15],[377,16,377,17],[377,18,377,19],[378,2,378,5],[378,8,378,9],[378,10,378,11],[378,12,378,13],[378,14,378,15],[378,16,378,17],[378,18,378,19],[379,2,379,5],[379,8,379,9],[379,10,379,11],[379,12,379,13],[379,14,379,15],[379,16,379,17],[477,2,477,7],[477,8,477,9],[477,10,477,11],[477,12,477,13],[477,14,477,15],[477,16,477,17],[478,2,478,7],[478,8,478,9],[478,10,478,11],[478,12,478,13],[478,14,478,15],[478,16,478,17],[479,10,479,11],[479,12,479,13],[479,14,479,15],[479,16,479,17],[480,2,480,5],[480,8,480,9],[480,10,480,11],[480,12,480,13],[480,14,480,15],[480,16,480,17],[481,2,481,5],[481,8,481,9],[481,10,481,11],[481,12,481,13],[481,14,481,15],[481,16,481,17],[481,18,481,19],[482,10,482,11],[482,12,482,13],[482,14,482,15],[482,16,482,17],[482,18,482,19],[483,2,483,5],[483,8,483,9],[483,10,483,11],[483,12,483,13],[483,14,483,15],[483,16,483,17],[518,18,518,19],[519,18,519,19],[520,18,520,19],[524,18,524,19],[525,18,525,19],[526,18,526,19],[527,18,527,19],[529,8,529,9],[529,10,529,11],[529,12,529,13],[529,14,529,15],[529,16,529,17],[529,18,529,19],[533,2,533,5],[533,8,533,9],[533,10,533,11],[533,12,533,13],[533,14,533,15],[533,16,533,17],[534,2,534,5],[534,8,534,9],[534,10,534,11],[534,12,534,13],[534,14,534,15],[534,16,534,17],[535,16,535,17],[537,2,537,7],[537,16,537,17],[556,16,556,17],[557,16,557,17],[558,16,558,17],[559,16,559,17],[560,16,560,17],[561,16,561,17],[562,16,562,17],[563,16,563,17],[564,16,564,17],[565,16,565,17],[566,16,566,17],[567,16,567,17],[584,2,584,5],[584,8,584,9],[584,10,584,11],[584,12,584,13],[584,14,584,15],[584,16,584,17],[585,2,585,5],[585,8,585,9],[585,10,585,11],[585,12,585,13],[585,14,585,15],[585,16,585,17],[586,2,586,5],[586,8,586,9],[586,10,586,11],[586,12,586,13],[586,14,586,15],[586,16,586,17],[587,2,587,5],[587,8,587,9],[587,10,587,11],[587,12,587,13],[587,14,587,15],[587,16,587,17],[587,18,587,19],[589,2,589,7],[589,8,589,9],[589,10,589,11],[589,12,589,13],[589,14,589,15],[589,16,589,17],[589,18,589,19],[604,18,604,19],[605,18,605,19],[606,18,606,19],[607,18,607,19],[610,18,610,19],[611,18,611,19],[612,18,612,19],[613,18,613,19],[614,18,614,19],[615,18,615,19],[628,18,628,19],[629,18,629,19],[630,18,630,19],[631,18,631,19],[633,10,633,11],[633,12,633,13],[633,14,633,15],[633,16,633,17],[634,2,634,7],[634,8,634,9],[634,10,634,11],[634,12,634,13],[634,14,634,15],[634,16,634,17],[635,2,635,5],[635,8,635,9],[635,10,635,11],[635,12,635,13],[635,14,635,15],[635,16,635,17],[636,10,636,11],[636,12,636,13],[636,14,636,15],[636,16,636,17],[637,2,637,5],[637,8,637,9],[637,10,637,11],[637,12,637,13],[637,14,637,15],[637,16,637,17],[637,18,637,19],[638,2,638,5],[638,8,638,9],[638,10,638,11],[638,12,638,13],[638,14,638,15],[638,16,638,17],[638,18,638,19],[639,2,639,5],[639,8,639,9],[639,10,639,11],[639,12,639,13],[639,14,639,15],[639,16,639,17],[639,18,639,19],[641,10,641,11],[641,12,641,13],[641,14,641,15],[641,16,641,17],[641,18,641,19],[688,2,688,5],[688,8,688,9],[688,10,688,11],[688,12,688,13],[688,14,688,15],[688,16,688,17],[691,2,691,5],[691,8,691,9],[691,10,691,11],[691,12,691,13],[691,14,691,15],[691,16,691,17],[691,18,691,19],[693,2,693,7],[693,8,693,9],[693,10,693,11],[693,12,693,13],[693,14,693,15],[693,16,693,17],[693,18,693,19],[714,18,714,19],[715,18,715,19],[732,18,732,19],[733,18,733,19],[734,18,734,19],[735,18,735,19],[737,2,737,7],[737,8,737,9],[737,10,737,11],[737,12,737,13],[737,14,737,15],[737,16,737,17],[741,2,741,5],[741,8,741,9],[741,10,741,11],[741,12,741,13],[741,14,741,15],[741,16,741,17],[742,2,742,5],[742,8,742,9],[742,10,742,11],[742,12,742,13],[742,14,742,15],[742,16,742,17],[742,18,742,19],[772,18,772,19],[789,2,789,7],[789,8,789,9],[789,10,789,11],[789,12,789,13],[789,14,789,15],[789,16,789,17],[790,2,790,7],[790,8,790,9],[790,10,790,11],[790,12,790,13],[790,14,790,15],[790,16,790,17],[791,2,791,5],[791,8,791,9],[791,10,791,11],[791,12,791,13],[791,14,791,15],[791,16,791,17],[792,2,792,5],[792,8,792,9],[792,10,792,11],[792,12,792,13],[792,14,792,15],[792,16,792,17],[793,2,793,5],[793,8,793,9],[793,10,793,11],[793,12,793,13],[793,14,793,15],[793,16,793,17],[794,10,794,11],[794,12,794,13],[794,14,794,15],[794,16,794,17],[794,18,794,19],[795,2,795,5],[795,8,795,9],[795,10,795,11],[795,12,795,13],[795,14,795,15],[795,16,795,17],[797,10,797,11],[797,12,797,13],[797,14,797,15],[797,16,797,17],[797,18,797,19],[812,18,812,19],[813,18,813,19],[818,18,818,19],[819,18,819,19],[820,18,820,19],[821,18,821,19],[822,18,822,19],[823,18,823,19],[824,18,824,19],[825,18,825,19],[826,18,826,19],[830,18,830,19],[831,18,831,19],[832,18,832,19],[833,18,833,19],[834,18,834,19],[835,18,835,19],[836,18,836,19],[837,18,837,19],[838,18,838,19],[839,18,839,19],[845,2,845,5],[845,8,845,9],[845,10,845,11],[845,12,845,13],[845,14,845,15],[845,16,845,17],[845,18,845,19],[846,2,846,5],[846,8,846,9],[846,10,846,11],[846,12,846,13],[846,16,846,17],[846,18,846,19],[847,2,847,5],[847,8,847,9],[847,10,847,11],[847,12,847,13],[847,14,847,15],[847,16,847,17],[882,18,882,19],[883,18,883,19],[884,18,884,19],[885,18,885,19],[886,18,886,19],[887,18,887,19],[893,2,893,7],[893,8,893,9],[893,10,893,11],[893,12,893,13],[893,14,893,15],[893,16,893,17],[899,2,899,5],[899,8,899,9],[899,10,899,11],[899,12,899,13],[899,14,899,15],[899,16,899,17],[899,18,899,19],[901,2,901,7],[901,8,901,9],[901,10,901,11],[901,12,901,13],[901,14,901,15],[901,16,901,17],[901,18,901,19],[916,18,916,19],[917,18,917,19],[918,18,918,19],[919,18,919,19],[922,18,922,19],[923,18,923,19],[924,18,924,19],[925,18,925,19],[926,18,926,19],[927,18,927,19],[928,18,928,19],[929,18,929,19],[930,18,930,19],[931,18,931,19],[932,18,932,19],[933,18,933,19],[940,18,940,19],[941,18,941,19],[945,10,945,11],[945,12,945,13],[945,14,945,15],[945,16,945,17],[946,2,946,7],[946,8,946,9],[946,10,946,11],[946,12,946,13],[946,14,946,15],[946,16,946,17],[947,2,947,5],[947,8,947,9],[947,10,947,11],[947,12,947,13],[947,14,947,15],[947,16,947,17],[948,10,948,11],[948,12,948,13],[948,14,948,15],[948,16,948,17],[949,2,949,5],[949,8,949,9],[949,10,949,11],[949,12,949,13],[949,14,949,15],[949,16,949,17],[949,18,949,19],[950,2,950,5],[950,8,950,9],[950,10,950,11],[950,12,950,13],[950,14,950,15],[950,16,950,17],[950,18,950,19],[951,2,951,5],[951,8,951,9],[951,10,951,11],[951,12,951,13],[951,14,951,15],[951,16,951,17],[953,10,953,11],[953,12,953,13],[953,14,953,15],[953,16,953,17],[953,18,953,19],[1000,2,1000,5],[1000,8,1000,9],[1000,10,1000,11],[1000,12,1000,13],[1000,14,1000,15],[1000,16,1000,17],[1003,2,1003,5],[1003,8,1003,9],[1003,10,1003,11],[1003,12,1003,13],[1003,14,1003,15],[1003,16,1003,17],[1003,18,1003,19],[1005,2,1005,7],[1005,8,1005,9],[1005,10,1005,11],[1005,12,1005,13],[1005,14,1005,15],[1005,16,1005,17],[1005,18,1005,19],[1026,18,1026,19],[1027,18,1027,19],[1044,18,1044,19],[1045,18,1045,19],[1046,18,1046,19],[1047,18,1047,19],[1049,2,1049,7],[1049,8,1049,9],[1049,10,1049,11],[1049,12,1049,13],[1049,14,1049,15],[1049,16,1049,17],[1053,2,1053,5],[1053,8,1053,9],[1053,10,1053,11],[1053,12,1053,13],[1053,14,1053,15],[1053,16,1053,17],[1054,2,1054,5],[1054,8,1054,9],[1054,10,1054,11],[1054,12,1054,13],[1054,14,1054,15],[1054,16,1054,17],[1054,18,1054,19],[1084,18,1084,19],[1101,2,1101,7],[1101,8,1101,9],[1101,10,1101,11],[1101,12,1101,13],[1101,14,1101,15],[1101,16,1101,17],[1102,2,1102,7],[1102,8,1102,9],[1102,10,1102,11],[1102,12,1102,13],[1102,14,1102,15],[1102,16,1102,17],[1103,2,1103,5],[1103,8,1103,9],[1103,10,1103,11],[1103,12,1103,13],[1103,14,1103,15],[1103,16,1103,17],[1104,2,1104,5],[1104,8,1104,9],[1104,10,1104,11],[1104,12,1104,13],[1104,14,1104,15],[1104,16,1104,17],[1105,2,1105,5],[1105,8,1105,9],[1105,10,1105,11],[1105,12,1105,13],[1105,14,1105,15],[1105,16,1105,17],[1106,10,1106,11],[1106,12,1106,13],[1106,14,1106,15],[1106,16,1106,17],[1106,18,1106,19],[1107,2,1107,5],[1107,8,1107,9],[1107,10,1107,11],[1107,12,1107,13],[1107,14,1107,15],[1107,16,1107,17],[1109,10,1109,11],[1109,12,1109,13],[1109,14,1109,15],[1109,16,1109,17],[1109,18,1109,19],[1112,18,1112,19],[1113,18,1113,19],[1114,18,1114,19],[1115,18,1115,19],[1116,18,1116,19],[1118,18,1118,19],[1119,18,1119,19],[1120,18,1120,19],[1121,18,1121,19],[1122,18,1122,19],[1123,18,1123,19],[1124,18,1124,19],[1125,18,1125,19],[1126,18,1126,19],[1127,18,1127,19],[1128,18,1128,19],[1129,18,1129,19],[1130,18,1130,19],[1131,18,1131,19],[1132,18,1132,19],[1133,18,1133,19],[1134,18,1134,19],[1135,18,1135,19],[1136,18,1136,19],[1137,18,1137,19],[1138,18,1138,19],[1139,18,1139,19],[1140,18,1140,19],[1141,18,1141,19],[1142,18,1142,19],[1143,18,1143,19],[1144,18,1144,19],[1145,18,1145,19],[1146,18,1146,19],[1147,18,1147,19],[1148,18,1148,19],[1149,18,1149,19],[1150,18,1150,19],[1151,18,1151,19],[1153,18,1153,19],[1154,18,1154,19],[1155,18,1155,19],[1156,18,1156,19],[1157,18,1157,19],[1158,2,1158,5],[1158,8,1158,9],[1158,10,1158,11],[1158,12,1158,13],[1158,14,1158,15],[1158,16,1158,17],[1158,18,1158,19],[1159,2,1159,5],[1159,8,1159,9],[1159,10,1159,11],[1159,12,1159,13],[1159,14,1159,15],[1159,16,1159,17],[1159,18,1159,19],[1161,2,1161,7],[1161,8,1161,9],[1161,10,1161,11],[1161,12,1161,13],[1161,14,1161,15],[1161,16,1161,17],[1161,18,1161,19],[1163,18,1163,19],[1164,18,1164,19],[1165,18,1165,19],[1166,18,1166,19],[1167,18,1167,19],[1168,18,1168,19],[1169,18,1169,19],[1170,18,1170,19],[1171,18,1171,19],[1172,18,1172,19],[1173,18,1173,19],[1174,18,1174,19],[1175,18,1175,19],[1176,18,1176,19],[1177,18,1177,19],[1178,18,1178,19],[1179,18,1179,19],[1180,18,1180,19],[1181,18,1181,19],[1182,18,1182,19],[1183,18,1183,19],[1184,18,1184,19],[1185,18,1185,19],[1186,18,1186,19],[1187,18,1187,19],[1188,18,1188,19],[1189,18,1189,19],[1190,18,1190,19],[1191,18,1191,19],[1192,18,1192,19],[1193,18,1193,19],[1194,18,1194,19],[1195,18,1195,19],[1196,18,1196,19],[1197,18,1197,19],[1198,18,1198,19],[1199,18,1199,19],[1200,18,1200,19],[1201,18,1201,19],[1202,18,1202,19],[1203,18,1203,19],[1205,18,1205,19],[1206,18,1206,19],[1207,18,1207,19],[1208,2,1208,5],[1208,8,1208,9],[1208,10,1208,11],[1208,12,1208,13],[1208,14,1208,15],[1208,16,1208,17],[1208,18,1208,19],[1209,18,1209,19],[1210,18,1210,19],[1211,2,1211,5],[1211,8,1211,9],[1211,10,1211,11],[1211,12,1211,13],[1211,14,1211,15],[1211,16,1211,17],[1211,18,1211,19],[1213,2,1213,7],[1213,8,1213,9],[1213,10,1213,11],[1213,12,1213,13],[1213,14,1213,15],[1213,16,1213,17],[1213,18,1213,19],[1215,18,1215,19],[1216,18,1216,19],[1217,18,1217,19],[1218,18,1218,19],[1219,18,1219,19],[1220,18,1220,19],[1221,18,1221,19],[1222,18,1222,19],[1223,18,1223,19],[1224,18,1224,19],[1225,18,1225,19],[1226,18,1226,19],[1227,18,1227,19],[1228,18,1228,19],[1229,18,1229,19],[1230,18,1230,19],[1231,18,1231,19],[1232,18,1232,19],[1233,18,1233,19],[1234,18,1234,19],[1235,18,1235,19],[1236,18,1236,19],[1237,18,1237,19],[1238,18,1238,19],[1239,18,1239,19],[1240,18,1240,19],[1241,18,1241,19],[1242,18,1242,19],[1243,18,1243,19],[1244,18,1244,19],[1245,18,1245,19],[1246,18,1246,19],[1247,18,1247,19],[1248,18,1248,19],[1249,18,1249,19],[1250,18,1250,19],[1251,18,1251,19],[1252,18,1252,19],[1253,18,1253,19],[1254,18,1254,19],[1255,18,1255,19],[1257,2,1257,7],[1257,8,1257,9],[1257,10,1257,11],[1257,12,1257,13],[1257,14,1257,15],[1257,16,1257,17],[1257,18,1257,19],[1258,2,1258,7],[1258,8,1258,9],[1258,10,1258,11],[1258,12,1258,13],[1258,14,1258,15],[1258,16,1258,17],[1258,18,1258,19],[1259,2,1259,5],[1259,8,1259,9],[1259,10,1259,11],[1259,12,1259,13],[1259,14,1259,15],[1259,16,1259,17],[1259,18,1259,19],[1260,2,1260,5],[1260,8,1260,9],[1260,10,1260,11],[1260,12,1260,13],[1260,14,1260,15],[1260,16,1260,17],[1260,18,1260,19],[1261,2,1261,5],[1261,8,1261,9],[1261,10,1261,11],[1261,12,1261,13],[1261,14,1261,15],[1261,16,1261,17],[1261,18,1261,19],[1262,2,1262,5],[1262,8,1262,9],[1262,10,1262,11],[1262,12,1262,13],[1262,14,1262,15],[1262,16,1262,17],[1262,18,1262,19],[1263,2,1263,5],[1263,8,1263,9],[1263,10,1263,11],[1263,12,1263,13],[1263,14,1263,15],[1263,16,1263,17],[1263,18,1263,19],[1265,2,1265,7],[1265,8,1265,9],[1265,10,1265,11],[1265,12,1265,13],[1265,14,1265,15],[1265,16,1265,17],[1265,18,1265,19],[1268,18,1268,19]],"merged_total":8266,"flags":["merged_cut"]}
[]
["BID TRACKER ",{"$nulls":14},"view setting"]
[{"$nulls":15},"Data View",{"$nulls":4},"All Rows"]
[]
[]
[{"$nulls":4},"The Bid Tracker can be used to track your Contractor Bids and Proposals to compare and select the lowest, qualified bidder for your projects.  Input your collected Bid Values for each contractor into the yellow cells below, and analyze the lowest bids for each Scope of Work and the overall project."]
{"$rows_empty":7}
[null,null,"BID TRACKER",{"$nulls":17},1]
[{"$nulls":20},1]
[{"$nulls":20},1]
[null,null,"Description of Work",{"$nulls":3},"QTY","Unit","Budget",null,"BIDDER 1",null,"BIDDER 2",null,"BIDDER 3",null,"BIDDER 4",null,"BIDDER 5",null,1]
[{"$nulls":20},1]
[{"$nulls":20},1]
[null,null,{"$f":"T('2 REPAIR ESTIMATOR'!D87:O87)","v":"GENERAL CONDITIONS"},{"$nulls":3},{"$f":"SUM(G21:G68)","v":5},{"$nulls":3},"Bidder Name",null,"Bidder Name",null,"Bidder Name",null,"Bidder Name",null,"Bidder Name",null,{"$f":"G20","v":5}]
[null,null,{"$f":"T('2 REPAIR ESTIMATOR'!D88:O88)","v":"Dumpster rental-40 yard"},{"$nulls":3},{"$f":"'2 REPAIR ESTIMATOR'!P88","v":1},{"$f":"T('2 REPAIR ESTIMATOR'!S88:T88)","v":"ea"},{"$f":"'2 REPAIR ESTIMATOR'!AQ88","v":{"v":454.75,"d":"$455"}},{"$nulls":11},1]
[null,null,{"$f":"T('2 REPAIR ESTIMATOR'!D89:O89)","v":"Storage Container"},{"$nulls":3},{"$f":"'2 REPAIR ESTIMATOR'!P89","v":0},{"$f":"T('2 REPAIR ESTIMATOR'!S89:T89)","v":"job"},{"$f":"'2 REPAIR ESTIMATOR'!AQ89","v":{"v":0,"d":"$0"}},{"$nulls":11},0]
[null,null,{"$f":"T('2 REPAIR ESTIMATOR'!D90:O90)","v":"Chemical Toilet"},{"$nulls":3},{"$f":"'2 REPAIR ESTIMATOR'!P90","v":0},{"$f":"T('2 REPAIR ESTIMATOR'!S90:T90)","v":"mo"},{"$f":"'2 REPAIR ESTIMATOR'!AQ90","v":{"v":0,"d":"$0"}},{"$nulls":11},0]
[null,null,{"$f":"T('2 REPAIR ESTIMATOR'!D91:O91)","v":"Misc. Tools & Materials"},{"$nulls":3},{"$f":"'2 REPAIR ESTIMATOR'!P91","v":0},{"$f":"T('2 REPAIR ESTIMATOR'!S91:T91)","v":"ls"},{"$f":"'2 REPAIR ESTIMATOR'!AQ91","v":{"v":0,"d":"$0"}},{"$nulls":11},0]
[null,null,{"$f":"T('2 REPAIR ESTIMATOR'!D92:O92)","v":"Rekey/lock box"},{"$nulls":3},{"$f":"'2 REPAIR ESTIMATOR'!P92","v":0},{"$f":"T('2 REPAIR ESTIMATOR'!S92:T92)","v":"ea"},{"$f":"'2 REPAIR ESTIMATOR'!AQ92","v":{"v":0,"d":"$0"}},{"$nulls":11},0]
[null,null,{"$f":"T('2 REPAIR ESTIMATOR'!D93:O93)","v":"Turn on utilities"},{"$nulls":3},{"$f":"'2 REPAIR ESTIMATOR'!P93","v":0},{"$f":"T('2 REPAIR ESTIMATOR'!S93:T93)","v":"ls"},{"$f":"'2 REPAIR ESTIMATOR'!AQ93","v":{"v":0,"d":"$0"}},{"$nulls":11},0]
[null,null,{"$f":"T('2 REPAIR ESTIMATOR'!D94:O94)","v":"Truck expense/car payment"},{"$nulls":3},{"$f":"'2 REPAIR ESTIMATOR'!P94","v":0},{"$f":"T('2 REPAIR ESTIMATOR'!S94:T94)","v":"month"},{"$f":"'2 REPAIR ESTIMATOR'!AQ94","v":{"v":0,"d":"$0"}},{"$nulls":11},0]
[null,null,{"$f":"T('2 REPAIR ESTIMATOR'!D95:O95)","v":"Fuel/gas expense"},{"$nulls":3},{"$f":"'2 REPAIR ESTIMATOR'!P95","v":0},{"$f":"T('2 REPAIR ESTIMATOR'!S95:T95)","v":"wk"},{"$f":"'2 REPAIR ESTIMATOR'!AQ95","v":{"v":0,"d":"$0"}},{"$nulls":11},0]
[null,null,{"$f":"T('2 REPAIR ESTIMATOR'!D96:O96)","v":"Project management"},{"$nulls":3},{"$f":"'2 REPAIR ESTIMATOR'!P96","v":0},{"$f":"T('2 REPAIR ESTIMATOR'!S96:T96)","v":"wk"},{"$f":"'2 REPAIR ESTIMATOR'!AQ96","v":{"v":0,"d":"$0"}},{"$nulls":11},0]
[null,null,{"$f":"T('2 REPAIR ESTIMATOR'!D97:O97)","v":"Architectural Fees"},{"$nulls":3},{"$f":"'2 REPAIR ESTIMATOR'!P97","v":0},{"$f":"T('2 REPAIR ESTIMATOR'!S97:T97)","v":"hrs"},{"$f":"'2 REPAIR ESTIMATOR'!AQ97","v":{"v":0,"d":"$0"}},{"$nulls":11},0]
[null,null,{"$f":"T('2 REPAIR ESTIMATOR'!D98:O98)","v":"Engineering Fees"},{"$nulls":3},{"$f":"'2 REPAIR ESTIMATOR'!P98","v":0},{"$f":"T('2 REPAIR ESTIMATOR'!S98:T98)","v":"hrs"},{"$f":"'2 REPAIR ESTIMATOR'!AQ98","v":{"v":0,"d":"$0"}},{"$nulls":11},0]
[null,null,{"$f":"T('2 REPAIR ESTIMATOR'!D99:O99)","v":"Professional Photography"},{"$nulls":3},{"$f":"'2 REPAIR ESTIMATOR'!P99","v":0},{"$f":"T('2 REPAIR ESTIMATOR'!S99:T99)","v":"ls"},{"$f":"'2 REPAIR ESTIMATOR'!AQ99","v":{"v":0,"d":"$0"}},{"$nulls":11},0]
[null,null,{"$f":"T('2 REPAIR ESTIMATOR'!D100:O100)","v":"Material Deliveries"},{"$nulls":3},{"$f":"'2 REPAIR ESTIMATOR'!P100","v":0},{"$f":"T('2 REPAIR ESTIMATOR'!S100:T100)","v":"ea"},{"$f":"'2 REPAIR ESTIMATOR'!AQ100","v":{"v":0,"d":"$0"}},{"$nulls":11},0]
[null,null,{"$f":"T('2 REPAIR ESTIMATOR'!D101:O101)","v":"Final cleaning"},{"$nulls":3},{"$f":"'2 REPAIR ESTIMATOR'!P101","v":4},{"$f":"T('2 REPAIR ESTIMATOR'!S101:T101)","v":"hrs"},{"$f":"'2 REPAIR ESTIMATOR'!AQ101","v":{"v":80,"d":"$80"}},{"$nulls":11},4]
[null,null,{"$f":"T('2 REPAIR ESTIMATOR'!D102:O102)","v":""},{"$nulls":3},{"$f":"'2 REPAIR ESTIMATOR'!P102","v":0},{"$f":"T('2 REPAIR ESTIMATOR'!S102:T102)","v":""},{"$f":"'2 REPAIR ESTIMATOR'!AQ102","v":{"v":0,"d":"$0"}},{"$nulls":11},0]
[null,null,{"$f":"T('2 REPAIR ESTIMATOR'!D103:O103)","v":""},{"$nulls":3},{"$f":"'2 REPAIR ESTIMATOR'!P103","v":0},{"$f":"T('2 REPAIR ESTIMATOR'!S103:T103)","v":""},{"$f":"'2 REPAIR ESTIMATOR'!AQ103","v":{"v":0,"d":"$0"}},{"$nulls":11},0]
[null,null,{"$f":"T('2 REPAIR ESTIMATOR'!D104:O104)","v":""},{"$nulls":3},{"$f":"'2 REPAIR ESTIMATOR'!P104","v":0},{"$f":"T('2 REPAIR ESTIMATOR'!S104:T104)","v":""},{"$f":"'2 REPAIR ESTIMATOR'!AQ104","v":{"v":0,"d":"$0"}},{"$nulls":11},0]
[null,null,{"$f":"T('2 REPAIR ESTIMATOR'!D105:O105)","v":""},{"$nulls":3},{"$f":"'2 REPAIR ESTIMATOR'!P105","v":0},{"$f":"T('2 REPAIR ESTIMATOR'!S105:T105)","v":""},{"$f":"'2 REPAIR ESTIMATOR'!AQ105","v":{"v":0,"d":"$0"}},{"$nulls":11},0]
[null,null,{"$f":"T('2 REPAIR ESTIMATOR'!D106:O106)","v":""},{"$nulls":3},{"$f":"'2 REPAIR ESTIMATOR'!P106","v":0},{"$f":"T('2 REPAIR ESTIMATOR'!S106:T106)","v":""},{"$f":"'2 REPAIR ESTIMATOR'!AQ106","v":{"v":0,"d":"$0"}},{"$nulls":11},0]
[null,null,{"$f":"T('2 REPAIR ESTIMATOR'!D107:O107)","v":""},{"$nulls":3},{"$f":"'2 REPAIR ESTIMATOR'!P107","v":0},{"$f":"T('2 REPAIR ESTIMATOR'!S107:T107)","v":""},{"$f":"'2 REPAIR ESTIMATOR'!AQ107","v":{"v":0,"d":"$0"}},{"$nulls":11},0]
[null,null,{"$f":"T('2 REPAIR ESTIMATOR'!D108:O108)","v":""},{"$nulls":3},{"$f":"'2 REPAIR ESTIMATOR'!P108","v":0},{"$f":"T('2 REPAIR ESTIMATOR'!S108:T108)","v":""},{"$f":"'2 REPAIR ESTIMATOR'!AQ108","v":{"v":0,"d":"$0"}},{"$nulls":11},0]
[null,null,{"$f":"T('2 REPAIR ESTIMATOR'!D109:O109)","v":""},{"$nulls":3},{"$f":"'2 REPAIR ESTIMATOR'!P109","v":0},{"$f":"T('2 REPAIR ESTIMATOR'!S109:T109)","v":""},{"$f":"'2 REPAIR ESTIMATOR'!AQ109","v":{"v":0,"d":"$0"}},{"$nulls":11},0]
[null,null,{"$f":"T('2 REPAIR ESTIMATOR'!D110:O110)","v":""},{"$nulls":3},{"$f":"'2 REPAIR ESTIMATOR'!P110","v":0},{"$f":"T('2 REPAIR ESTIMATOR'!S110:T110)","v":""},{"$f":"'2 REPAIR ESTIMATOR'!AQ110","v":{"v":0,"d":"$0"}},{"$nulls":11},0]
[null,null,{"$f":"T('2 REPAIR ESTIMATOR'!D111:O111)","v":""},{"$nulls":3},{"$f":"'2 REPAIR ESTIMATOR'!P111","v":0},{"$f":"T('2 REPAIR ESTIMATOR'!S111:T111)","v":""},{"$f":"'2 REPAIR ESTIMATOR'!AQ111","v":{"v":0,"d":"$0"}},{"$nulls":11},0]
[null,null,{"$f":"T('2 REPAIR ESTIMATOR'!D112:O112)","v":""},{"$nulls":3},{"$f":"'2 REPAIR ESTIMATOR'!P112","v":0},{"$f":"T('2 REPAIR ESTIMATOR'!S112:T112)","v":""},{"$f":"'2 REPAIR ESTIMATOR'!AQ112","v":{"v":0,"d":"$0"}},{"$nulls":11},0]
[null,null,{"$f":"T('2 REPAIR ESTIMATOR'!D113:O113)","v":""},{"$nulls":3},{"$f":"'2 REPAIR ESTIMATOR'!P113","v":0},{"$f":"T('2 REPAIR ESTIMATOR'!S113:T113)","v":""},{"$f":"'2 REPAIR ESTIMATOR'!AQ113","v":{"v":0,"d":"$0"}},{"$nulls":11},0]
[null,null,{"$f":"T('2 REPAIR ESTIMATOR'!D114:O114)","v":""},{"$nulls":3},{"$f":"'2 REPAIR ESTIMATOR'!P114","v":0},{"$f":"T('2 REPAIR ESTIMATOR'!S114:T114)","v":""},{"$f":"'2 REPAIR ESTIMATOR'!AQ114","v":{"v":0,"d":"$0"}},{"$nulls":11},0]
[null,null,{"$f":"T('2 REPAIR ESTIMATOR'!D115:O115)","v":""},{"$nulls":3},{"$f":"'2 REPAIR ESTIMATOR'!P115","v":0},{"$f":"T('2 REPAIR ESTIMATOR'!S115:T115)","v":""},{"$f":"'2 REPAIR ESTIMATOR'!AQ115","v":{"v":0,"d":"$0"}},{"$nulls":11},0]
[null,null,{"$f":"T('2 REPAIR ESTIMATOR'!D116:O116)","v":""},{"$nulls":3},{"$f":"'2 REPAIR ESTIMATOR'!P116","v":0},{"$f":"T('2 REPAIR ESTIMATOR'!S116:T116)","v":""},{"$f":"'2 REPAIR ESTIMATOR'!AQ116","v":{"v":0,"d":"$0"}},{"$nulls":11},0]
[null,null,{"$f":"T('2 REPAIR ESTIMATOR'!D117:O117)","v":""},{"$nulls":3},{"$f":"'2 REPAIR ESTIMATOR'!P117","v":0},{"$f":"T('2 REPAIR ESTIMATOR'!S117:T117)","v":""},{"$f":"'2 REPAIR ESTIMATOR'!AQ117","v":{"v":0,"d":"$0"}},{"$nulls":11},0]
[null,null,{"$f":"T('2 REPAIR ESTIMATOR'!D118:O118)","v":""},{"$nulls":3},{"$f":"'2 REPAIR ESTIMATOR'!P118","v":0},{"$f":"T('2 REPAIR ESTIMATOR'!S118:T118)","v":""},{"$f":"'2 REPAIR ESTIMATOR'!AQ118","v":{"v":0,"d":"$0"}},{"$nulls":11},0]
[null,null,{"$f":"T('2 REPAIR ESTIMATOR'!D119:O119)","v":""},{"$nulls":3},{"$f":"'2 REPAIR ESTIMATOR'!P119","v":0},{"$f":"T('2 REPAIR ESTIMATOR'!S119:T119)","v":""},{"$f":"'2 REPAIR ESTIMATOR'!AQ119","v":{"v":0,"d":"$0"}},{"$nulls":11},0]
[null,null,{"$f":"T('2 REPAIR ESTIMATOR'!D120:O120)","v":""},{"$nulls":3},{"$f":"'2 REPAIR ESTIMATOR'!P120","v":0},{"$f":"T('2 REPAIR ESTIMATOR'!S120:T120)","v":""},{"$f":"'2 REPAIR ESTIMATOR'!AQ120","v":{"v":0,"d":"$0"}},{"$nulls":11},0]
[null,null,{"$f":"T('2 REPAIR ESTIMATOR'!D121:O121)","v":""},{"$nulls":3},{"$f":"'2 REPAIR ESTIMATOR'!P121","v":0},{"$f":"T('2 REPAIR ESTIMATOR'!S121:T121)","v":""},{"$f":"'2 REPAIR ESTIMATOR'!AQ121","v":{"v":0,"d":"$0"}},{"$nulls":11},0]
[null,null,{"$f":"T('2 REPAIR ESTIMATOR'!D122:O122)","v":""},{"$nulls":3},{"$f":"'2 REPAIR ESTIMATOR'!P122","v":0},{"$f":"T('2 REPAIR ESTIMATOR'!S122:T122)","v":""},{"$f":"'2 REPAIR ESTIMATOR'!AQ122","v":{"v":0,"d":"$0"}},{"$nulls":11},0]
[null,null,{"$f":"T('2 REPAIR ESTIMATOR'!D123:O123)","v":""},{"$nulls":3},{"$f":"'2 REPAIR ESTIMATOR'!P123","v":0},{"$f":"T('2 REPAIR ESTIMATOR'!S123:T123)","v":""},{"$f":"'2 REPAIR ESTIMATOR'!AQ123","v":{"v":0,"d":"$0"}},{"$nulls":11},0]
[null,null,{"$f":"T('2 REPAIR ESTIMATOR'!D124:O124)","v":""},{"$nulls":3},{"$f":"'2 REPAIR ESTIMATOR'!P124","v":0},{"$f":"T('2 REPAIR ESTIMATOR'!S124:T124)","v":""},{"$f":"'2 REPAIR ESTIMATOR'!AQ124","v":{"v":0,"d":"$0"}},{"$nulls":11},0]
[null,null,{"$f":"T('2 REPAIR ESTIMATOR'!D125:O125)","v":""},{"$nulls":3},{"$f":"'2 REPAIR ESTIMATOR'!P125","v":0},{"$f":"T('2 REPAIR ESTIMATOR'!S125:T125)","v":""},{"$f":"'2 REPAIR ESTIMATOR'!AQ125","v":{"v":0,"d":"$0"}},{"$nulls":11},0]
[null,null,{"$f":"T('2 REPAIR ESTIMATOR'!D126:O126)","v":""},{"$nulls":3},{"$f":"'2 REPAIR ESTIMATOR'!P126","v":0},{"$f":"T('2 REPAIR ESTIMATOR'!S126:T126)","v":""},{"$f":"'2 REPAIR ESTIMATOR'!AQ126","v":{"v":0,"d":"$0"}},{"$nulls":11},0]
[null,null,{"$f":"T('2 REPAIR ESTIMATOR'!D127:O127)","v":""},{"$nulls":3},{"$f":"'2 REPAIR ESTIMATOR'!P127","v":0},{"$f":"T('2 REPAIR ESTIMATOR'!S127:T127)","v":""},{"$f":"'2 REPAIR ESTIMATOR'!AQ127","v":{"v":0,"d":"$0"}},{"$nulls":11},0]
[{"$nulls":20},{"$f":"IF(I62>0,1,0)","v":1}]
[null,null,{"$f":"CONCATENATE(C20,\" SUBTOTAL\")","v":"GENERAL CONDITIONS SUBTOTAL"},{"$nulls":5},{"$f":"SUM(I20:J61)","v":{"v":534.75,"d":"$535"}},{"$f":"SUM(J13:J60)","v":{"v":0,"d":"$0"}},{"$f":"SUM(K20:L61)","v":{"v":0,"d":"$0"}},{"$f":"SUM(L13:L60)","v":{"v":0,"d":"$0"}},{"$f":"SUM(M20:N61)","v":{"v":0,"d":"$0"}},{"$f":"SUM(N13:N60)","v":{"v":0,"d":"$0"}},{"$f":"SUM(O20:P61)","v":{"v":0,"d":"$0"}},{"$f":"SUM(P13:P60)","v":{"v":0,"d":"$0"}},{"$f":"SUM(Q20:R61)","v":{"v":0,"d":"$0"}},{"$f":"SUM(R13:R60)","v":{"v":0,"d":"$0"}},{"$f":"SUM(S20:T61)","v":{"v":0,"d":"$0"}},{"$f":"SUM(T13:T60)","v":{"v":0,"d":"$0"}},{"$f":"SUM(U20:U61)","v":11},{"$f":"SUM(V13:V60)","v":0}]
[null,null,"Contractor Exclusions:",{"$nulls":17},{"$f":"U62","v":11}]
[{"$nulls":20},{"$f":"U62","v":11}]
[{"$nulls":20},{"$f":"U62","v":11}]
[{"$nulls":20},{"$f":"U62","v":11}]
[{"$nulls":20},{"$f":"U62","v":11}]
[{"$nulls":20},{"$f":"U62","v":11}]
[{"$nulls":20},{"$f":"IF(I70>0,1,0)","v":1}]
[null,null,{"$f":"CONCATENATE(C20,\" TOTAL\")","v":"GENERAL CONDITIONS TOTAL"},{"$nulls":5},{"$f":"I62","v":{"v":534.75,"d":"$535"}},{"$f":"SUM(J21:J69)","v":{"v":0,"d":"$0"}},{"$f":"K62+SUM(K63:L69)","v":{"v":0,"d":"$0"}},{"$f":"SUM(L21:L69)","v":{"v":0,"d":"$0"}},{"$f":"M62+SUM(M63:N69)","v":{"v":0,"d":"$0"}},{"$f":"SUM(N21:N69)","v":{"v":0,"d":"$0"}},{"$f":"O62+SUM(O63:P69)","v":{"v":0,"d":"$0"}},{"$f":"SUM(P21:P69)","v":{"v":0,"d":"$0"}},{"$f":"Q62+SUM(Q63:R69)","v":{"v":0,"d":"$0"}},{"$f":"SUM(R21:R69)","v":{"v":0,"d":"$0"}},{"$f":"S62+SUM(S63:T69)","v":{"v":0,"d":"$0"}},{"$f":"SUM(T21:T69)","v":{"v":0,"d":"$0"}},{"$f":"U62+SUM(U63:U69)","v":78}]
[{"$nulls":20},{"$f":"U70","v":78}]
[null,null,{"$f":"T('2 REPAIR ESTIMATOR'!D132:O132)","v":"DEMOLITION"},{"$nulls":3},{"$f":"SUM(G73:G112)","v":80},{"$nulls":3},"Bidder Name",null,"Bidder Name",null,"Bidder Name",null,"Bidder Name",null,"Bidder Name",null,{"$f":"G72","v":80}]
[null,null,{"$f":"T('2 REPAIR ESTIMATOR'!D133:O133)","v":"Demolition"},{"$nulls":3},{"$f":"'2 REPAIR ESTIMATOR'!P133","v":0},{"$f":"T('2 REPAIR ESTIMATOR'!S133)","v":"ls"},{"$f":"'2 REPAIR ESTIMATOR'!AQ133","v":{"v":0,"d":"$0"}},{"$nulls":11},0]
[null,null,{"$f":"T('2 REPAIR ESTIMATOR'!D134:O134)","v":"Demo bid/allowance"},{"$nulls":3},{"$f":"'2 REPAIR ESTIMATOR'!P134","v":0},{"$f":"T('2 REPAIR ESTIMATOR'!S134)","v":"ls"},{"$f":"'2 REPAIR ESTIMATOR'!AQ134","v":{"v":0,"d":"$0"}},{"$nulls":11},0]
[null,null,{"$f":"T('2 REPAIR ESTIMATOR'!D135:O135)","v":"Demolition work per hour"},{"$nulls":3},{"$f":"'2 REPAIR ESTIMATOR'!P135","v":80},{"$f":"T('2 REPAIR ESTIMATOR'!S135)","v":"hrs"},{"$f":"'2 REPAIR ESTIMATOR'!AQ135","v":{"v":1600,"d":"$1,600"}},{"$nulls":11},80]
[null,null,{"$f":"T('2 REPAIR ESTIMATOR'!D136:O136)","v":"Room demolition, typical room"},{"$nulls":3},{"$f":"'2 REPAIR ESTIMATOR'!P136","v":0},{"$f":"T('2 REPAIR ESTIMATOR'!S136)","v":"sf"},{"$f":"'2 REPAIR ESTIMATOR'!AQ136","v":{"v":0,"d":"$0"}},{"$nulls":11},0]
[null,null,{"$f":"T('2 REPAIR ESTIMATOR'!D137:O137)","v":"Room demolition, bathroom"},{"$nulls":3},{"$f":"'2 REPAIR ESTIMATOR'!P137","v":0},{"$f":"T('2 REPAIR ESTIMATOR'!S137)","v":"sf"},{"$f":"'2 REPAIR ESTIMATOR'!AQ137","v":{"v":0,"d":"$0"}},{"$nulls":11},0]
[null,null,{"$f":"T('2 REPAIR ESTIMATOR'!D138:O138)","v":"Room demolition, kitchen"},{"$nulls":3},{"$f":"'2 REPAIR ESTIMATOR'!P138","v":0},{"$f":"T('2 REPAIR ESTIMATOR'!S138)","v":"sf"},{"$f":"'2 REPAIR ESTIMATOR'!AQ138","v":{"v":0,"d":"$0"}},{"$nulls":11},0]
[null,null,{"$f":"T('2 REPAIR ESTIMATOR'!D139:O139)","v":"Building demolition, 1-story wood-framed"},{"$nulls":3},{"$f":"'2 REPAIR ESTIMATOR'!P139","v":0},{"$f":"T('2 REPAIR ESTIMATOR'!S139)","v":"sf"},{"$f":"'2 REPAIR ESTIMATOR'!AQ139","v":{"v":0,"d":"$0"}},{"$nulls":11},0]
[null,null,{"$f":"T('2 REPAIR ESTIMATOR'!D140:O140)","v":"Building demolition, 2-story wood framed"},{"$nulls":3},{"$f":"'2 REPAIR ESTIMATOR'!P140","v":0},{"$f":"T('2 REPAIR ESTIMATOR'!S140)","v":"sf"},{"$f":"'2 REPAIR ESTIMATOR'!AQ140","v":{"v":0,"d":"$0"}},{"$nulls":11},0]
[null,null,{"$f":"T('2 REPAIR ESTIMATOR'!D141:O141)","v":"Building demolition, masonry"},{"$nulls":3},{"$f":"'2 REPAIR ESTIMATOR'!P141","v":0},{"$f":"T('2 REPAIR ESTIMATOR'!S141)","v":"sf"},{"$f":"'2 REPAIR ESTIMATOR'!AQ141","v":{"v":0,"d":"$0"}},{"$nulls":11},0]
[null,null,{"$f":"T('2 REPAIR ESTIMATOR'!D142:O142)","v":"Building demolition, steel/concrete"},{"$nulls":3},{"$f":"'2 REPAIR ESTIMATOR'!P142","v":0},{"$f":"T('2 REPAIR ESTIMATOR'!S142)","v":"sf"},{"$f":"'2 REPAIR ESTIMATOR'!AQ142","v":{"v":0,"d":"$0"}},{"$nulls":11},0]
[null,null,{"$f":"T('2 REPAIR ESTIMATOR'!D143:O143)","v":"Concrete slab demolition, 4\"-6\""},{"$nulls":3},{"$f":"'2 REPAIR ESTIMATOR'!P143","v":0},{"$f":"T('2 REPAIR ESTIMATOR'!S143)","v":""},{"$f":"'2 REPAIR ESTIMATOR'!AQ143","v":{"v":0,"d":"$0"}},{"$nulls":11},0]
[null,null,{"$f":"T('2 REPAIR ESTIMATOR'!D144:O144)","v":""},{"$nulls":3},{"$f":"'2 REPAIR ESTIMATOR'!P144","v":0},{"$f":"T('2 REPAIR ESTIMATOR'!S144)","v":""},{"$f":"'2 REPAIR ESTIMATOR'!AQ144","v":{"v":0,"d":"$0"}},{"$nulls":11},0]
[null,null,{"$f":"T('2 REPAIR ESTIMATOR'!D145:O145)","v":""},{"$nulls":3},{"$f":"'2 REPAIR ESTIMATOR'!P145","v":0},{"$f":"T('2 REPAIR ESTIMATOR'!S145)","v":""},{"$f":"'2 REPAIR ESTIMATOR'!AQ145","v":{"v":0,"d":"$0"}},{"$nulls":11},0]
[null,null,{"$f":"T('2 REPAIR ESTIMATOR'!D146:O146)","v":"Abatement"},{"$nulls":3},{"$f":"'2 REPAIR ESTIMATOR'!P146","v":0},{"$f":"T('2 REPAIR ESTIMATOR'!S146)","v":"ls"},{"$f":"'2 REPAIR ESTIMATOR'!AQ146","v":{"v":0,"d":"$0"}},{"$nulls":11},0]
[null,null,{"$f":"T('2 REPAIR ESTIMATOR'!D147:O147)","v":"Asbestos bid/allowance"},{"$nulls":3},{"$f":"'2 REPAIR ESTIMATOR'!P147","v":0},{"$f":"T('2 REPAIR ESTIMATOR'!S147)","v":"ls"},{"$f":"'2 REPAIR ESTIMATOR'!AQ147","v":{"v":0,"d":"$0"}},{"$nulls":11},0]
[null,null,{"$f":"T('2 REPAIR ESTIMATOR'!D148:O148)","v":"Asbestos testing"},{"$nulls":3},{"$f":"'2 REPAIR ESTIMATOR'!P148","v":0},{"$f":"T('2 REPAIR ESTIMATOR'!S148)","v":"ea"},{"$f":"'2 REPAIR ESTIMATOR'!AQ148","v":{"v":0,"d":"$0"}},{"$nulls":11},0]
[null,null,{"$f":"T('2 REPAIR ESTIMATOR'!D149:O149)","v":"Asbestos abatement, minimum charge"},{"$nulls":3},{"$f":"'2 REPAIR ESTIMATOR'!P149","v":0},{"$f":"T('2 REPAIR ESTIMATOR'!S149)","v":"ea"},{"$f":"'2 REPAIR ESTIMATOR'!AQ149","v":{"v":0,"d":"$0"}},{"$nulls":11},0]
[null,null,{"$f":"T('2 REPAIR ESTIMATOR'!D150:O150)","v":"Mold, minimum charge"},{"$nulls":3},{"$f":"'2 REPAIR ESTIMATOR'!P150","v":0},{"$f":"T('2 REPAIR ESTIMATOR'!S150)","v":""},{"$f":"'2 REPAIR ESTIMATOR'!AQ150","v":{"v":0,"d":"$0"}},{"$nulls":11},0]
[null,null,{"$f":"T('2 REPAIR ESTIMATOR'!D151:O151)","v":""},{"$nulls":3},{"$f":"'2 REPAIR ESTIMATOR'!P151","v":0},{"$f":"T('2 REPAIR ESTIMATOR'!S151)","v":""},{"$f":"'2 REPAIR ESTIMATOR'!AQ151","v":{"v":0,"d":"$0"}},{"$nulls":11},0]
[null,null,{"$f":"T('2 REPAIR ESTIMATOR'!D152:O152)","v":""},{"$nulls":3},{"$f":"'2 REPAIR ESTIMATOR'!P152","v":0},{"$f":"T('2 REPAIR ESTIMATOR'!S152)","v":""},{"$f":"'2 REPAIR ESTIMATOR'!AQ152","v":{"v":0,"d":"$0"}},{"$nulls":11},0]
[null,null,{"$f":"T('2 REPAIR ESTIMATOR'!D153:O153)","v":""},{"$nulls":3},{"$f":"'2 REPAIR ESTIMATOR'!P153","v":0},{"$f":"T('2 REPAIR ESTIMATOR'!S153)","v":""},{"$f":"'2 REPAIR ESTIMATOR'!AQ153","v":{"v":0,"d":"$0"}},{"$nulls":11},0]
[null,null,{"$f":"T('2 REPAIR ESTIMATOR'!D154:O154)","v":""},{"$nulls":3},{"$f":"'2 REPAIR ESTIMATOR'!P154","v":0},{"$f":"T('2 REPAIR ESTIMATOR'!S154)","v":""},{"$f":"'2 REPAIR ESTIMATOR'!AQ154","v":{"v":0,"d":"$0"}},{"$nulls":11},0]
[null,null,{"$f":"T('2 REPAIR ESTIMATOR'!D155:O155)","v":""},{"$nulls":3},{"$f":"'2 REPAIR ESTIMATOR'!P155","v":0},{"$f":"T('2 REPAIR ESTIMATOR'!S155)","v":""},{"$f":"'2 REPAIR ESTIMATOR'!AQ155","v":{"v":0,"d":"$0"}},{"$nulls":11},0]
[null,null,{"$f":"T('2 REPAIR ESTIMATOR'!D156:O156)","v":""},{"$nulls":3},{"$f":"'2 REPAIR ESTIMATOR'!P156","v":0},{"$f":"T('2 REPAIR ESTIMATOR'!S156)","v":""},{"$f":"'2 REPAIR ESTIMATOR'!AQ156","v":{"v":0,"d":"$0"}},{"$nulls":11},0]
[null,null,{"$f":"T('2 REPAIR ESTIMATOR'!D157:O157)","v":""},{"$nulls":3},{"$f":"'2 REPAIR ESTIMATOR'!P157","v":0},{"$f":"T('2 REPAIR ESTIMATOR'!S157)","v":""},{"$f":"'2 REPAIR ESTIMATOR'!AQ157","v":{"v":0,"d":"$0"}},{"$nulls":11},0]
[null,null,{"$f":"T('2 REPAIR ESTIMATOR'!D158:O158)","v":""},{"$nulls":3},{"$f":"'2 REPAIR ESTIMATOR'!P158","v":0},{"$f":"T('2 REPAIR ESTIMATOR'!S158)","v":""},{"$f":"'2 REPAIR ESTIMATOR'!AQ158","v":{"v":0,"d":"$0"}},{"$nulls":11},0]
[null,null,{"$f":"T('2 REPAIR ESTIMATOR'!D159:O159)","v":""},{"$nulls":3},{"$f":"'2 REPAIR ESTIMATOR'!P159","v":0},{"$f":"T('2 REPAIR ESTIMATOR'!S159)","v":""},{"$f":"'2 REPAIR ESTIMATOR'!AQ159","v":{"v":0,"d":"$0"}},{"$nulls":11},0]
[null,null,{"$f":"T('2 REPAIR ESTIMATOR'!D160:O160)","v":""},{"$nulls":3},{"$f":"'2 REPAIR ESTIMATOR'!P160","v":0},{"$f":"T('2 REPAIR ESTIMATOR'!S160)","v":""},{"$f":"'2 REPAIR ESTIMATOR'!AQ160","v":{"v":0,"d":"$0"}},{"$nulls":11},0]
[null,null,{"$f":"T('2 REPAIR ESTIMATOR'!D161:O161)","v":""},{"$nulls":3},{"$f":"'2 REPAIR ESTIMATOR'!P161","v":0},{"$f":"T('2 REPAIR ESTIMATOR'!S161)","v":""},{"$f":"'2 REPAIR ESTIMATOR'!AQ161","v":{"v":0,"d":"$0"}},{"$nulls":11},0]
[null,null,{"$f":"T('2 REPAIR ESTIMATOR'!D162:O162)","v":""},{"$nulls":3},{"$f":"'2 REPAIR ESTIMATOR'!P162","v":0},{"$f":"T('2 REPAIR ESTIMATOR'!S162)","v":""},{"$f":"'2 REPAIR ESTIMATOR'!AQ162","v":{"v":0,"d":"$0"}},{"$nulls":11},0]
[null,null,{"$f":"T('2 REPAIR ESTIMATOR'!D163:O163)","v":""},{"$nulls":3},{"$f":"'2 REPAIR ESTIMATOR'!P163","v":0},{"$f":"T('2 REPAIR ESTIMATOR'!S163)","v":""},{"$f":"'2 REPAIR ESTIMATOR'!AQ163","v":{"v":0,"d":"$0"}},{"$nulls":11},0]
[null,null,{"$f":"T('2 REPAIR ESTIMATOR'!D164:O164)","v":""},{"$nulls":3},{"$f":"'2 REPAIR ESTIMATOR'!P164","v":0},{"$f":"T('2 REPAIR ESTIMATOR'!S164)","v":""},{"$f":"'2 REPAIR ESTIMATOR'!AQ164","v":{"v":0,"d":"$0"}},{"$nulls":11},0]
[null,null,{"$f":"T('2 REPAIR ESTIMATOR'!D165:O165)","v":""},{"$nulls":3},{"$f":"'2 REPAIR ESTIMATOR'!P165","v":0},{"$f":"T('2 REPAIR ESTIMATOR'!S165)","v":""},{"$f":"'2 REPAIR ESTIMATOR'!AQ165","v":{"v":0,"d":"$0"}},{"$nulls":11},0]
[null,null,{"$f":"T('2 REPAIR ESTIMATOR'!D166:O166)","v":""},{"$nulls":3},{"$f":"'2 REPAIR ESTIMATOR'!P166","v":0},{"$f":"T('2 REPAIR ESTIMATOR'!S166)","v":""},{"$f":"'2 REPAIR ESTIMATOR'!AQ166","v":{"v":0,"d":"$0"}},{"$nulls":11},0]
[null,null,{"$f":"T('2 REPAIR ESTIMATOR'!D167:O167)","v":""},{"$nulls":3},{"$f":"'2 REPAIR ESTIMATOR'!P167","v":0},{"$f":"T('2 REPAIR ESTIMATOR'!S167)","v":""},{"$f":"'2 REPAIR ESTIMATOR'!AQ167","v":{"v":0,"d":"$0"}},{"$nulls":11},0]
[null,null,{"$f":"T('2 REPAIR ESTIMATOR'!D168:O168)","v":""},{"$nulls":3},{"$f":"'2 REPAIR ESTIMATOR'!P168","v":0},{"$f":"T('2 REPAIR ESTIMATOR'!S168)","v":""},{"$f":"'2 REPAIR ESTIMATOR'!AQ168","v":{"v":0,"d":"$0"}},{"$nulls":11},0]
[null,null,{"$f":"T('2 REPAIR ESTIMATOR'!D169:O169)","v":""},{"$nulls":3},{"$f":"'2 REPAIR ESTIMATOR'!P169","v":0},{"$f":"T('2 REPAIR ESTIMATOR'!S169)","v":""},{"$f":"'2 REPAIR ESTIMATOR'!AQ169","v":{"v":0,"d":"$0"}},{"$nulls":11},0]
[null,null,{"$f":"T('2 REPAIR ESTIMATOR'!D170:O170)","v":""},{"$nulls":3},{"$f":"'2 REPAIR ESTIMATOR'!P170","v":0},{"$f":"T('2 REPAIR ESTIMATOR'!S170)","v":""},{"$f":"'2 REPAIR ESTIMATOR'!AQ170","v":{"v":0,"d":"$0"}},{"$nulls":11},0]
[null,null,{"$f":"T('2 REPAIR ESTIMATOR'!D171:O171)","v":""},{"$nulls":3},{"$f":"'2 REPAIR ESTIMATOR'!P171","v":0},{"$f":"T('2 REPAIR ESTIMATOR'!S171)","v":""},{"$f":"'2 REPAIR ESTIMATOR'!AQ171","v":{"v":0,"d":"$0"}},{"$nulls":11},0]
[null,null,{"$f":"T('2 REPAIR ESTIMATOR'!D172:O172)","v":""},{"$nulls":3},{"$f":"'2 REPAIR ESTIMATOR'!P172","v":0},{"$f":"T('2 REPAIR ESTIMATOR'!S172)","v":""},{"$f":"'2 REPAIR ESTIMATOR'!AQ172","v":{"v":0,"d":"$0"}},{"$nulls":11},0]
[{"$nulls":20},{"$f":"IF(I114>0,1,0)","v":1}]
[null,null,{"$f":"CONCATENATE(C72,\" SUBTOTAL\")","v":"DEMOLITION SUBTOTAL"},{"$nulls":5},{"$f":"SUM(I72:J113)","v":{"v":1600,"d":"$1,600"}},{"$f":"SUM(J65:J112)","v":{"v":0,"d":"$0"}},{"$f":"SUM(K72:L113)","v":{"v":0,"d":"$0"}},{"$f":"SUM(L65:L112)","v":{"v":0,"d":"$0"}},{"$f":"SUM(M72:N113)","v":{"v":0,"d":"$0"}},{"$f":"SUM(N65:N112)","v":{"v":0,"d":"$0"}},{"$f":"SUM(O72:P113)","v":{"v":0,"d":"$0"}},{"$f":"SUM(P65:P112)","v":{"v":0,"d":"$0"}},{"$f":"SUM(Q72:R113)","v":{"v":0,"d":"$0"}},{"$f":"SUM(R65:R112)","v":{"v":0,"d":"$0"}},{"$f":"SUM(S72:T113)","v":{"v":0,"d":"$0"}},{"$f":"SUM(T65:T112)","v":{"v":0,"d":"$0"}},{"$f":"SUM(U72:U113)","v":161}]
[null,null,"Contractor Exclusions:",{"$nulls":17},{"$f":"U114","v":161}]
[{"$nulls":20},{"$f":"U114","v":161}]
[{"$nulls":20},{"$f":"U114","v":161}]
[{"$nulls":20},{"$f":"U114","v":161}]
[{"$nulls":20},{"$f":"U114","v":161}]
[{"$nulls":20},{"$f":"U114","v":161}]
[{"$nulls":20},{"$f":"IF(I122>0,1,0)","v":1}]
[null,null,{"$f":"CONCATENATE(C72,\" TOTAL\")","v":"DEMOLITION TOTAL"},{"$nulls":5},{"$f":"I114","v":{"v":1600,"d":"$1,600"}},{"$f":"SUM(J73:J121)","v":{"v":0,"d":"$0"}},{"$f":"K114+SUM(K115:L121)","v":{"v":0,"d":"$0"}},{"$f":"SUM(L73:L121)","v":{"v":0,"d":"$0"}},{"$f":"M114+SUM(M115:N121)","v":{"v":0,"d":"$0"}},{"$f":"SUM(N73:N121)","v":{"v":0,"d":"$0"}},{"$f":"O114+SUM(O115:P121)","v":{"v":0,"d":"$0"}},{"$f":"SUM(P73:P121)","v":{"v":0,"d":"$0"}},{"$f":"Q114+SUM(Q115:R121)","v":{"v":0,"d":"$0"}},{"$f":"SUM(R73:R121)","v":{"v":0,"d":"$0"}},{"$f":"S114+SUM(S115:T121)","v":{"v":0,"d":"$0"}},{"$f":"SUM(T73:T121)","v":{"v":0,"d":"$0"}},{"$f":"U114+SUM(U115:U121)","v":{"v":1128,"d":"1,128"}}]
[{"$nulls":20},{"$f":"U122","v":{"v":1128,"d":"1,128"}}]
[null,null,{"$f":"T('2 REPAIR ESTIMATOR'!D177:O177)","v":"STRUCTURAL CONCRETE"},{"$nulls":3},{"$f":"SUM(G125:G164)","v":0},{"$nulls":3},"Bidder Name",null,"Bidder Name",null,"Bidder Name",null,"Bidder Name",null,"Bidder Name",null,{"$f":"G124","v":0}]
[null,null,{"$f":"T('2 REPAIR ESTIMATOR'!D178:O178)","v":"Excavation"},{"$nulls":3},{"$f":"'2 REPAIR ESTIMATOR'!P178","v":0},{"$f":"T('2 REPAIR ESTIMATOR'!S178)","v":""},{"$f":"'2 REPAIR ESTIMATOR'!AQ178","v":{"v":0,"d":"$0"}},{"$nulls":11},0]
[null,null,{"$f":"T('2 REPAIR ESTIMATOR'!D179:O179)","v":"Excavation bid/allowance"},{"$nulls":3},{"$f":"'2 REPAIR ESTIMATOR'!P179","v":0},{"$f":"T('2 REPAIR ESTIMATOR'!S179)","v":"ls"},{"$f":"'2 REPAIR ESTIMATOR'!AQ179","v":{"v":0,"d":"$0"}},{"$nulls":11},0]
[null,null,{"$f":"T('2 REPAIR ESTIMATOR'!D180:O180)","v":"Footing trenching"},{"$nulls":3},{"$f":"'2 REPAIR ESTIMATOR'!P180","v":0},{"$f":"T('2 REPAIR ESTIMATOR'!S180)","v":"cy"},{"$f":"'2 REPAIR ESTIMATOR'!AQ180","v":{"v":0,"d":"$0"}},{"$nulls":11},0]
[null,null,{"$f":"T('2 REPAIR ESTIMATOR'!D181:O181)","v":"Backfill of trenches "},{"$nulls":3},{"$f":"'2 REPAIR ESTIMATOR'!P181","v":0},{"$f":"T('2 REPAIR ESTIMATOR'!S181)","v":"cy"},{"$f":"'2 REPAIR ESTIMATOR'!AQ181","v":{"v":0,"d":"$0"}},{"$nulls":11},0]
[null,null,{"$f":"T('2 REPAIR ESTIMATOR'!D182:O182)","v":""},{"$nulls":3},{"$f":"'2 REPAIR ESTIMATOR'!P182","v":0},{"$f":"T('2 REPAIR ESTIMATOR'!S182)","v":""},{"$f":"'2 REPAIR ESTIMATOR'!AQ182","v":{"v":0,"d":"$0"}},{"$nulls":11},0]
[null,null,{"$f":"T('2 REPAIR ESTIMATOR'!D183:O183)","v":""},{"$nulls":3},{"$f":"'2 REPAIR ESTIMATOR'!P183","v":0},{"$f":"T('2 REPAIR ESTIMATOR'!S183)","v":""},{"$f":"'2 REPAIR ESTIMATOR'!AQ183","v":{"v":0,"d":"$0"}},{"$nulls":11},0]
[null,null,{"$f":"T('2 REPAIR ESTIMATOR'!D184:O184)","v":"Foundation"},{"$nulls":3},{"$f":"'2 REPAIR ESTIMATOR'!P184","v":0},{"$f":"T('2 REPAIR ESTIMATOR'!S184)","v":""},{"$f":"'2 REPAIR ESTIMATOR'!AQ184","v":{"v":0,"d":"$0"}},{"$nulls":11},0]
[null,null,{"$f":"T('2 REPAIR ESTIMATOR'!D185:O185)","v":"Foundation bid/allowance"},{"$nulls":3},{"$f":"'2 REPAIR ESTIMATOR'!P185","v":0},{"$f":"T('2 REPAIR ESTIMATOR'!S185)","v":"ls"},{"$f":"'2 REPAIR ESTIMATOR'!AQ185","v":{"v":0,"d":"$0"}},{"$nulls":11},0]
[null,null,{"$f":"T('2 REPAIR ESTIMATOR'!D186:O186)","v":"Concrete slab on grade, 4\" thick"},{"$nulls":3},{"$f":"'2 REPAIR ESTIMATOR'!P186","v":0},{"$f":"T('2 REPAIR ESTIMATOR'!S186)","v":"sf"},{"$f":"'2 REPAIR ESTIMATOR'!AQ186","v":{"v":0,"d":"$0"}},{"$nulls":11},0]
[null,null,{"$f":"T('2 REPAIR ESTIMATOR'!D187:O187)","v":"Concrete footing, 12\" wide "},{"$nulls":3},{"$f":"'2 REPAIR ESTIMATOR'!P187","v":0},{"$f":"T('2 REPAIR ESTIMATOR'!S187)","v":"lf"},{"$f":"'2 REPAIR ESTIMATOR'!AQ187","v":{"v":0,"d":"$0"}},{"$nulls":11},0]
[null,null,{"$f":"T('2 REPAIR ESTIMATOR'!D188:O188)","v":"Stem wall, single story"},{"$nulls":3},{"$f":"'2 REPAIR ESTIMATOR'!P188","v":0},{"$f":"T('2 REPAIR ESTIMATOR'!S188)","v":"lf"},{"$f":"'2 REPAIR ESTIMATOR'!AQ188","v":{"v":0,"d":"$0"}},{"$nulls":11},0]
[null,null,{"$f":"T('2 REPAIR ESTIMATOR'!D189:O189)","v":""},{"$nulls":3},{"$f":"'2 REPAIR ESTIMATOR'!P189","v":0},{"$f":"T('2 REPAIR ESTIMATOR'!S189)","v":""},{"$f":"'2 REPAIR ESTIMATOR'!AQ189","v":{"v":0,"d":"$0"}},{"$nulls":11},0]
[null,null,{"$f":"T('2 REPAIR ESTIMATOR'!D190:O190)","v":""},{"$nulls":3},{"$f":"'2 REPAIR ESTIMATOR'!P190","v":0},{"$f":"T('2 REPAIR ESTIMATOR'!S190)","v":""},{"$f":"'2 REPAIR ESTIMATOR'!AQ190","v":{"v":0,"d":"$0"}},{"$nulls":11},0]
[null,null,{"$f":"T('2 REPAIR ESTIMATOR'!D191:O191)","v":"Structural Repairs"},{"$nulls":3},{"$f":"'2 REPAIR ESTIMATOR'!P191","v":0},{"$f":"T('2 REPAIR ESTIMATOR'!S191)","v":""},{"$f":"'2 REPAIR ESTIMATOR'!AQ191","v":{"v":0,"d":"$0"}},{"$nulls":11},0]
[null,null,{"$f":"T('2 REPAIR ESTIMATOR'!D192:O192)","v":"Structural Repairs bid/allowance"},{"$nulls":3},{"$f":"'2 REPAIR ESTIMATOR'!P192","v":0},{"$f":"T('2 REPAIR ESTIMATOR'!S192)","v":"ls"},{"$f":"'2 REPAIR ESTIMATOR'!AQ192","v":{"v":0,"d":"$0"}},{"$nulls":11},0]
[null,null,{"$f":"T('2 REPAIR ESTIMATOR'!D193:O193)","v":"Stair mud jacking, case by case"},{"$nulls":3},{"$f":"'2 REPAIR ESTIMATOR'!P193","v":0},{"$f":"T('2 REPAIR ESTIMATOR'!S193)","v":"ea"},{"$f":"'2 REPAIR ESTIMATOR'!AQ193","v":{"v":0,"d":"$0"}},{"$nulls":11},0]
[null,null,{"$f":"T('2 REPAIR ESTIMATOR'!D194:O194)","v":"Bowing foundation walls, vertical I-Beams"},{"$nulls":3},{"$f":"'2 REPAIR ESTIMATOR'!P194","v":0},{"$f":"T('2 REPAIR ESTIMATOR'!S194)","v":"ea"},{"$f":"'2 REPAIR ESTIMATOR'!AQ194","v":{"v":0,"d":"$0"}},{"$nulls":11},0]
[null,null,{"$f":"T('2 REPAIR ESTIMATOR'!D195:O195)","v":"Settled foundation walls, concrete piers/underpinning"},{"$nulls":3},{"$f":"'2 REPAIR ESTIMATOR'!P195","v":0},{"$f":"T('2 REPAIR ESTIMATOR'!S195)","v":"ea"},{"$f":"'2 REPAIR ESTIMATOR'!AQ195","v":{"v":0,"d":"$0"}},{"$nulls":11},0]
[null,null,{"$f":"T('2 REPAIR ESTIMATOR'!D196:O196)","v":"Foundation waterproofing & drain tile, single story"},{"$nulls":3},{"$f":"'2 REPAIR ESTIMATOR'!P196","v":0},{"$f":"T('2 REPAIR ESTIMATOR'!S196)","v":"lf"},{"$f":"'2 REPAIR ESTIMATOR'!AQ196","v":{"v":0,"d":"$0"}},{"$nulls":11},0]
[null,null,{"$f":"T('2 REPAIR ESTIMATOR'!D197:O197)","v":"Epoxy crack injection"},{"$nulls":3},{"$f":"'2 REPAIR ESTIMATOR'!P197","v":0},{"$f":"T('2 REPAIR ESTIMATOR'!S197)","v":"lf"},{"$f":"'2 REPAIR ESTIMATOR'!AQ197","v":{"v":0,"d":"$0"}},{"$nulls":11},0]
[null,null,{"$f":"T('2 REPAIR ESTIMATOR'!D198:O198)","v":""},{"$nulls":3},{"$f":"'2 REPAIR ESTIMATOR'!P198","v":0},{"$f":"T('2 REPAIR ESTIMATOR'!S198)","v":""},{"$f":"'2 REPAIR ESTIMATOR'!AQ198","v":{"v":0,"d":"$0"}},{"$nulls":11},0]
[null,null,{"$f":"T('2 REPAIR ESTIMATOR'!D199:O199)","v":""},{"$nulls":3},{"$f":"'2 REPAIR ESTIMATOR'!P199","v":0},{"$f":"T('2 REPAIR ESTIMATOR'!S199)","v":""},{"$f":"'2 REPAIR ESTIMATOR'!AQ199","v":{"v":0,"d":"$0"}},{"$nulls":11},0]
[null,null,{"$f":"T('2 REPAIR ESTIMATOR'!D200:O200)","v":""},{"$nulls":3},{"$f":"'2 REPAIR ESTIMATOR'!P200","v":0},{"$f":"T('2 REPAIR ESTIMATOR'!S200)","v":""},{"$f":"'2 REPAIR ESTIMATOR'!AQ200","v":{"v":0,"d":"$0"}},{"$nulls":11},0]
[null,null,{"$f":"T('2 REPAIR ESTIMATOR'!D201:O201)","v":""},{"$nulls":3},{"$f":"'2 REPAIR ESTIMATOR'!P201","v":0},{"$f":"T('2 REPAIR ESTIMATOR'!S201)","v":""},{"$f":"'2 REPAIR ESTIMATOR'!AQ201","v":{"v":0,"d":"$0"}},{"$nulls":11},0]
[null,null,{"$f":"T('2 REPAIR ESTIMATOR'!D202:O202)","v":""},{"$nulls":3},{"$f":"'2 REPAIR ESTIMATOR'!P202","v":0},{"$f":"T('2 REPAIR ESTIMATOR'!S202)","v":""},{"$f":"'2 REPAIR ESTIMATOR'!AQ202","v":{"v":0,"d":"$0"}},{"$nulls":11},0]
[null,null,{"$f":"T('2 REPAIR ESTIMATOR'!D203:O203)","v":""},{"$nulls":3},{"$f":"'2 REPAIR ESTIMATOR'!P203","v":0},{"$f":"T('2 REPAIR ESTIMATOR'!S203)","v":""},{"$f":"'2 REPAIR ESTIMATOR'!AQ203","v":{"v":0,"d":"$0"}},{"$nulls":11},0]
[null,null,{"$f":"T('2 REPAIR ESTIMATOR'!D204:O204)","v":""},{"$nulls":3},{"$f":"'2 REPAIR ESTIMATOR'!P204","v":0},{"$f":"T('2 REPAIR ESTIMATOR'!S204)","v":""},{"$f":"'2 REPAIR ESTIMATOR'!AQ204","v":{"v":0,"d":"$0"}},{"$nulls":11},0]
[null,null,{"$f":"T('2 REPAIR ESTIMATOR'!D205:O205)","v":""},{"$nulls":3},{"$f":"'2 REPAIR ESTIMATOR'!P205","v":0},{"$f":"T('2 REPAIR ESTIMATOR'!S205)","v":""},{"$f":"'2 REPAIR ESTIMATOR'!AQ205","v":{"v":0,"d":"$0"}},{"$nulls":11},0]
[null,null,{"$f":"T('2 REPAIR ESTIMATOR'!D206:O206)","v":""},{"$nulls":3},{"$f":"'2 REPAIR ESTIMATOR'!P206","v":0},{"$f":"T('2 REPAIR ESTIMATOR'!S206)","v":""},{"$f":"'2 REPAIR ESTIMATOR'!AQ206","v":{"v":0,"d":"$0"}},{"$nulls":11},0]
[null,null,{"$f":"T('2 REPAIR ESTIMATOR'!D207:O207)","v":""},{"$nulls":3},{"$f":"'2 REPAIR ESTIMATOR'!P207","v":0},{"$f":"T('2 REPAIR ESTIMATOR'!S207)","v":""},{"$f":"'2 REPAIR ESTIMATOR'!AQ207","v":{"v":0,"d":"$0"}},{"$nulls":11},0]
[null,null,{"$f":"T('2 REPAIR ESTIMATOR'!D208:O208)","v":""},{"$nulls":3},{"$f":"'2 REPAIR ESTIMATOR'!P208","v":0},{"$f":"T('2 REPAIR ESTIMATOR'!S208)","v":""},{"$f":"'2 REPAIR ESTIMATOR'!AQ208","v":{"v":0,"d":"$0"}},{"$nulls":11},0]
[null,null,{"$f":"T('2 REPAIR ESTIMATOR'!D209:O209)","v":""},{"$nulls":3},{"$f":"'2 REPAIR ESTIMATOR'!P209","v":0},{"$f":"T('2 REPAIR ESTIMATOR'!S209)","v":""},{"$f":"'2 REPAIR ESTIMATOR'!AQ209","v":{"v":0,"d":"$0"}},{"$nulls":11},0]
[null,null,{"$f":"T('2 REPAIR ESTIMATOR'!D210:O210)","v":""},{"$nulls":3},{"$f":"'2 REPAIR ESTIMATOR'!P210","v":0},{"$f":"T('2 REPAIR ESTIMATOR'!S210)","v":""},{"$f":"'2 REPAIR ESTIMATOR'!AQ210","v":{"v":0,"d":"$0"}},{"$nulls":11},0]
[null,null,{"$f":"T('2 REPAIR ESTIMATOR'!D211:O211)","v":""},{"$nulls":3},{"$f":"'2 REPAIR ESTIMATOR'!P211","v":0},{"$f":"T('2 REPAIR ESTIMATOR'!S211)","v":""},{"$f":"'2 REPAIR ESTIMATOR'!AQ211","v":{"v":0,"d":"$0"}},{"$nulls":11},0]
[null,null,{"$f":"T('2 REPAIR ESTIMATOR'!D212:O212)","v":""},{"$nulls":3},{"$f":"'2 REPAIR ESTIMATOR'!P212","v":0},{"$f":"T('2 REPAIR ESTIMATOR'!S212)","v":""},{"$f":"'2 REPAIR ESTIMATOR'!AQ212","v":{"v":0,"d":"$0"}},{"$nulls":11},0]
[null,null,{"$f":"T('2 REPAIR ESTIMATOR'!D213:O213)","v":""},{"$nulls":3},{"$f":"'2 REPAIR ESTIMATOR'!P213","v":0},{"$f":"T('2 REPAIR ESTIMATOR'!S213)","v":""},{"$f":"'2 REPAIR ESTIMATOR'!AQ213","v":{"v":0,"d":"$0"}},{"$nulls":11},0]
[null,null,{"$f":"T('2 REPAIR ESTIMATOR'!D214:O214)","v":""},{"$nulls":3},{"$f":"'2 REPAIR ESTIMATOR'!P214","v":0},{"$f":"T('2 REPAIR ESTIMATOR'!S214)","v":""},{"$f":"'2 REPAIR ESTIMATOR'!AQ214","v":{"v":0,"d":"$0"}},{"$nulls":11},0]
[null,null,{"$f":"T('2 REPAIR ESTIMATOR'!D215:O215)","v":""},{"$nulls":3},{"$f":"'2 REPAIR ESTIMATOR'!P215","v":0},{"$f":"T('2 REPAIR ESTIMATOR'!S215)","v":""},{"$f":"'2 REPAIR ESTIMATOR'!AQ215","v":{"v":0,"d":"$0"}},{"$nulls":11},0]
[null,null,{"$f":"T('2 REPAIR ESTIMATOR'!D216:O216)","v":""},{"$nulls":3},{"$f":"'2 REPAIR ESTIMATOR'!P216","v":0},{"$f":"T('2 REPAIR ESTIMATOR'!S216)","v":""},{"$f":"'2 REPAIR ESTIMATOR'!AQ216","v":{"v":0,"d":"$0"}},{"$nulls":11},0]
[null,null,{"$f":"T('2 REPAIR ESTIMATOR'!D217:O217)","v":""},{"$nulls":3},{"$f":"'2 REPAIR ESTIMATOR'!P217","v":0},{"$f":"T('2 REPAIR ESTIMATOR'!S217)","v":""},{"$f":"'2 REPAIR ESTIMATOR'!AQ217","v":{"v":0,"d":"$0"}},{"$nulls":11},0]
[{"$nulls":20},{"$f":"IF(I166>0,1,0)","v":0}]
[null,null,{"$f":"CONCATENATE(C124,\" SUBTOTAL\")","v":"STRUCTURAL CONCRETE SUBTOTAL"},{"$nulls":5},{"$f":"SUM(I124:J165)","v":{"v":0,"d":"$0"}},{"$f":"SUM(J117:J164)","v":{"v":0,"d":"$0"}},{"$f":"SUM(K124:L165)","v":{"v":0,"d":"$0"}},{"$f":"SUM(L117:L164)","v":{"v":0,"d":"$0"}},{"$f":"SUM(M124:N165)","v":{"v":0,"d":"$0"}},{"$f":"SUM(N117:N164)","v":{"v":0,"d":"$0"}},{"$f":"SUM(O124:P165)","v":{"v":0,"d":"$0"}},{"$f":"SUM(P117:P164)","v":{"v":0,"d":"$0"}},{"$f":"SUM(Q124:R165)","v":{"v":0,"d":"$0"}},{"$f":"SUM(R117:R164)","v":{"v":0,"d":"$0"}},{"$f":"SUM(S124:T165)","v":{"v":0,"d":"$0"}},{"$f":"SUM(T117:T164)","v":{"v":0,"d":"$0"}},{"$f":"SUM(U124:U165)","v":0}]
[null,null,"Contractor Exclusions:",{"$nulls":17},{"$f":"U166","v":0}]
[{"$nulls":20},{"$f":"U166","v":0}]
[{"$nulls":20},{"$f":"U166","v":0}]
[{"$nulls":20},{"$f":"U166","v":0}]
[{"$nulls":20},{"$f":"U166","v":0}]
[{"$nulls":20},{"$f":"U166","v":0}]
[{"$nulls":20},{"$f":"IF(I174>0,1,0)","v":0}]
[null,null,{"$f":"CONCATENATE(C124,\" TOTAL\")","v":"STRUCTURAL CONCRETE TOTAL"},{"$nulls":5},{"$f":"I166","v":{"v":0,"d":"$0"}},{"$f":"SUM(J125:J173)","v":{"v":0,"d":"$0"}},{"$f":"K166+SUM(K167:L173)","v":{"v":0,"d":"$0"}},{"$f":"SUM(L125:L173)","v":{"v":0,"d":"$0"}},{"$f":"M166+SUM(M167:N173)","v":{"v":0,"d":"$0"}},{"$f":"SUM(N125:N173)","v":{"v":0,"d":"$0"}},{"$f":"O166+SUM(O167:P173)","v":{"v":0,"d":"$0"}},{"$f":"SUM(P125:P173)","v":{"v":0,"d":"$0"}},{"$f":"Q166+SUM(Q167:R173)","v":{"v":0,"d":"$0"}},{"$f":"SUM(R125:R173)","v":{"v":0,"d":"$0"}},{"$f":"S166+SUM(S167:T173)","v":{"v":0,"d":"$0"}},{"$f":"SUM(T125:T173)","v":{"v":0,"d":"$0"}},{"$f":"U166+SUM(U167:U173)","v":0}]
[{"$nulls":20},{"$f":"U174","v":0}]
[null,null,{"$f":"T('2 REPAIR ESTIMATOR'!D222:O222)","v":"CONCRETE & FLATWORK"},{"$nulls":3},{"$f":"SUM(G177:G216)","v":0},{"$nulls":3},"Bidder Name",null,"Bidder Name",null,"Bidder Name",null,"Bidder Name",null,"Bidder Name",null,{"$f":"G176","v":0}]
[null,null,{"$f":"T('2 REPAIR ESTIMATOR'!D223:O223)","v":"Concrete"},{"$nulls":3},{"$f":"'2 REPAIR ESTIMATOR'!P223","v":0},{"$f":"T('2 REPAIR ESTIMATOR'!S223)","v":""},{"$f":"'2 REPAIR ESTIMATOR'!AQ223","v":{"v":0,"d":"$0"}},{"$nulls":11},0]
[null,null,{"$f":"T('2 REPAIR ESTIMATOR'!D224:O224)","v":"Concrete bid/allowance"},{"$nulls":3},{"$f":"'2 REPAIR ESTIMATOR'!P224","v":0},{"$f":"T('2 REPAIR ESTIMATOR'!S224)","v":"ls"},{"$f":"'2 REPAIR ESTIMATOR'!AQ224","v":{"v":0,"d":"$0"}},{"$nulls":11},0]
[null,null,{"$f":"T('2 REPAIR ESTIMATOR'!D225:O225)","v":"Concrete flatwork demo"},{"$nulls":3},{"$f":"'2 REPAIR ESTIMATOR'!P225","v":0},{"$f":"T('2 REPAIR ESTIMATOR'!S225)","v":"sf"},{"$f":"'2 REPAIR ESTIMATOR'!AQ225","v":{"v":0,"d":"$0"}},{"$nulls":11},0]
[null,null,{"$f":"T('2 REPAIR ESTIMATOR'!D226:O226)","v":"Concrete driveway/patio, 6\" thick"},{"$nulls":3},{"$f":"'2 REPAIR ESTIMATOR'!P226","v":0},{"$f":"T('2 REPAIR ESTIMATOR'!S226)","v":"sf"},{"$f":"'2 REPAIR ESTIMATOR'!AQ226","v":{"v":0,"d":"$0"}},{"$nulls":11},0]
[null,null,{"$f":"T('2 REPAIR ESTIMATOR'!D227:O227)","v":"Concrete sidewalk, 4\" thick"},{"$nulls":3},{"$f":"'2 REPAIR ESTIMATOR'!P227","v":0},{"$f":"T('2 REPAIR ESTIMATOR'!S227)","v":"sf"},{"$f":"'2 REPAIR ESTIMATOR'!AQ227","v":{"v":0,"d":"$0"}},{"$nulls":11},0]
[null,null,{"$f":"T('2 REPAIR ESTIMATOR'!D228:O228)","v":"Add for 4\" base rock below concrete pavement"},{"$nulls":3},{"$f":"'2 REPAIR ESTIMATOR'!P228","v":0},{"$f":"T('2 REPAIR ESTIMATOR'!S228)","v":"sf"},{"$f":"'2 REPAIR ESTIMATOR'!AQ228","v":{"v":0,"d":"$0"}},{"$nulls":11},0]
[null,null,{"$f":"T('2 REPAIR ESTIMATOR'!D229:O229)","v":""},{"$nulls":3},{"$f":"'2 REPAIR ESTIMATOR'!P229","v":0},{"$f":"T('2 REPAIR ESTIMATOR'!S229)","v":""},{"$f":"'2 REPAIR ESTIMATOR'!AQ229","v":{"v":0,"d":"$0"}},{"$nulls":11},0]
[null,null,{"$f":"T('2 REPAIR ESTIMATOR'!D230:O230)","v":"Asphalt"},{"$nulls":3},{"$f":"'2 REPAIR ESTIMATOR'!P230","v":0},{"$f":"T('2 REPAIR ESTIMATOR'!S230)","v":""},{"$f":"'2 REPAIR ESTIMATOR'!AQ230","v":{"v":0,"d":"$0"}},{"$nulls":11},0]
[null,null,{"$f":"T('2 REPAIR ESTIMATOR'!D231:O231)","v":"Asphalt bid/allowance"},{"$nulls":3},{"$f":"'2 REPAIR ESTIMATOR'!P231","v":0},{"$f":"T('2 REPAIR ESTIMATOR'!S231)","v":"ls"},{"$f":"'2 REPAIR ESTIMATOR'!AQ231","v":{"v":0,"d":"$0"}},{"$nulls":11},0]
[null,null,{"$f":"T('2 REPAIR ESTIMATOR'!D232:O232)","v":"Asphalt pavement, 5\" thick"},{"$nulls":3},{"$f":"'2 REPAIR ESTIMATOR'!P232","v":0},{"$f":"T('2 REPAIR ESTIMATOR'!S232)","v":"sy"},{"$f":"'2 REPAIR ESTIMATOR'!AQ232","v":{"v":0,"d":"$0"}},{"$nulls":11},0]
[null,null,{"$f":"T('2 REPAIR ESTIMATOR'!D233:O233)","v":"Asphalt pavement, 7\" thick"},{"$nulls":3},{"$f":"'2 REPAIR ESTIMATOR'!P233","v":0},{"$f":"T('2 REPAIR ESTIMATOR'!S233)","v":"sy"},{"$f":"'2 REPAIR ESTIMATOR'!AQ233","v":{"v":0,"d":"$0"}},{"$nulls":11},0]
[null,null,{"$f":"T('2 REPAIR ESTIMATOR'!D234:O234)","v":"Asphalt pavement, wearing course, 1\" thick only"},{"$nulls":3},{"$f":"'2 REPAIR ESTIMATOR'!P234","v":0},{"$f":"T('2 REPAIR ESTIMATOR'!S234)","v":"sy"},{"$f":"'2 REPAIR ESTIMATOR'!AQ234","v":{"v":0,"d":"$0"}},{"$nulls":11},0]
[null,null,{"$f":"T('2 REPAIR ESTIMATOR'!D235:O235)","v":"Asphalt seal coat"},{"$nulls":3},{"$f":"'2 REPAIR ESTIMATOR'!P235","v":0},{"$f":"T('2 REPAIR ESTIMATOR'!S235)","v":"sy"},{"$f":"'2 REPAIR ESTIMATOR'!AQ235","v":{"v":0,"d":"$0"}},{"$nulls":11},0]
[null,null,{"$f":"T('2 REPAIR ESTIMATOR'!D236:O236)","v":"Add for 4\" base rock below asphalt pavement"},{"$nulls":3},{"$f":"'2 REPAIR ESTIMATOR'!P236","v":0},{"$f":"T('2 REPAIR ESTIMATOR'!S236)","v":"sy"},{"$f":"'2 REPAIR ESTIMATOR'!AQ236","v":{"v":0,"d":"$0"}},{"$nulls":11},0]
[null,null,{"$f":"T('2 REPAIR ESTIMATOR'!D237:O237)","v":""},{"$nulls":3},{"$f":"'2 REPAIR ESTIMATOR'!P237","v":0},{"$f":"T('2 REPAIR ESTIMATOR'!S237)","v":""},{"$f":"'2 REPAIR ESTIMATOR'!AQ237","v":{"v":0,"d":"$0"}},{"$nulls":11},0]
[null,null,{"$f":"T('2 REPAIR ESTIMATOR'!D238:O238)","v":"Pavers"},{"$nulls":3},{"$f":"'2 REPAIR ESTIMATOR'!P238","v":0},{"$f":"T('2 REPAIR ESTIMATOR'!S238)","v":""},{"$f":"'2 REPAIR ESTIMATOR'!AQ238","v":{"v":0,"d":"$0"}},{"$nulls":11},0]
[null,null,{"$f":"T('2 REPAIR ESTIMATOR'!D239:O239)","v":"Pavers bid/allowance"},{"$nulls":3},{"$f":"'2 REPAIR ESTIMATOR'!P239","v":0},{"$f":"T('2 REPAIR ESTIMATOR'!S239)","v":"ls"},{"$f":"'2 REPAIR ESTIMATOR'!AQ239","v":{"v":0,"d":"$0"}},{"$nulls":11},0]
[null,null,{"$f":"T('2 REPAIR ESTIMATOR'!D240:O240)","v":"Brick pavers, sand base"},{"$nulls":3},{"$f":"'2 REPAIR ESTIMATOR'!P240","v":0},{"$f":"T('2 REPAIR ESTIMATOR'!S240)","v":"sf"},{"$f":"'2 REPAIR ESTIMATOR'!AQ240","v":{"v":0,"d":"$0"}},{"$nulls":11},0]
[null,null,{"$f":"T('2 REPAIR ESTIMATOR'!D241:O241)","v":"Brick pavers, mortar base"},{"$nulls":3},{"$f":"'2 REPAIR ESTIMATOR'!P241","v":0},{"$f":"T('2 REPAIR ESTIMATOR'!S241)","v":"sf"},{"$f":"'2 REPAIR ESTIMATOR'!AQ241","v":{"v":0,"d":"$0"}},{"$nulls":11},0]
[null,null,{"$f":"T('2 REPAIR ESTIMATOR'!D242:O242)","v":""},{"$nulls":3},{"$f":"'2 REPAIR ESTIMATOR'!P242","v":0},{"$f":"T('2 REPAIR ESTIMATOR'!S242)","v":""},{"$f":"'2 REPAIR ESTIMATOR'!AQ242","v":{"v":0,"d":"$0"}},{"$nulls":11},0]
[null,null,{"$f":"T('2 REPAIR ESTIMATOR'!D243:O243)","v":""},{"$nulls":3},{"$f":"'2 REPAIR ESTIMATOR'!P243","v":0},{"$f":"T('2 REPAIR ESTIMATOR'!S243)","v":""},{"$f":"'2 REPAIR ESTIMATOR'!AQ243","v":{"v":0,"d":"$0"}},{"$nulls":11},0]
[null,null,{"$f":"T('2 REPAIR ESTIMATOR'!D244:O244)","v":""},{"$nulls":3},{"$f":"'2 REPAIR ESTIMATOR'!P244","v":0},{"$f":"T('2 REPAIR ESTIMATOR'!S244)","v":""},{"$f":"'2 REPAIR ESTIMATOR'!AQ244","v":{"v":0,"d":"$0"}},{"$nulls":11},0]
[null,null,{"$f":"T('2 REPAIR ESTIMATOR'!D245:O245)","v":""},{"$nulls":3},{"$f":"'2 REPAIR ESTIMATOR'!P245","v":0},{"$f":"T('2 REPAIR ESTIMATOR'!S245)","v":""},{"$f":"'2 REPAIR ESTIMATOR'!AQ245","v":{"v":0,"d":"$0"}},{"$nulls":11},0]
[null,null,{"$f":"T('2 REPAIR ESTIMATOR'!D246:O246)","v":""},{"$nulls":3},{"$f":"'2 REPAIR ESTIMATOR'!P246","v":0},{"$f":"T('2 REPAIR ESTIMATOR'!S246)","v":""},{"$f":"'2 REPAIR ESTIMATOR'!AQ246","v":{"v":0,"d":"$0"}},{"$nulls":11},0]
[null,null,{"$f":"T('2 REPAIR ESTIMATOR'!D247:O247)","v":""},{"$nulls":3},{"$f":"'2 REPAIR ESTIMATOR'!P247","v":0},{"$f":"T('2 REPAIR ESTIMATOR'!S247)","v":""},{"$f":"'2 REPAIR ESTIMATOR'!AQ247","v":{"v":0,"d":"$0"}},{"$nulls":11},0]
[null,null,{"$f":"T('2 REPAIR ESTIMATOR'!D248:O248)","v":""},{"$nulls":3},{"$f":"'2 REPAIR ESTIMATOR'!P248","v":0},{"$f":"T('2 REPAIR ESTIMATOR'!S248)","v":""},{"$f":"'2 REPAIR ESTIMATOR'!AQ248","v":{"v":0,"d":"$0"}},{"$nulls":11},0]
[null,null,{"$f":"T('2 REPAIR ESTIMATOR'!D249:O249)","v":""},{"$nulls":3},{"$f":"'2 REPAIR ESTIMATOR'!P249","v":0},{"$f":"T('2 REPAIR ESTIMATOR'!S249)","v":""},{"$f":"'2 REPAIR ESTIMATOR'!AQ249","v":{"v":0,"d":"$0"}},{"$nulls":11},0]
[null,null,{"$f":"T('2 REPAIR ESTIMATOR'!D250:O250)","v":""},{"$nulls":3},{"$f":"'2 REPAIR ESTIMATOR'!P250","v":0},{"$f":"T('2 REPAIR ESTIMATOR'!S250)","v":""},{"$f":"'2 REPAIR ESTIMATOR'!AQ250","v":{"v":0,"d":"$0"}},{"$nulls":11},0]
[null,null,{"$f":"T('2 REPAIR ESTIMATOR'!D251:O251)","v":""},{"$nulls":3},{"$f":"'2 REPAIR ESTIMATOR'!P251","v":0},{"$f":"T('2 REPAIR ESTIMATOR'!S251)","v":""},{"$f":"'2 REPAIR ESTIMATOR'!AQ251","v":{"v":0,"d":"$0"}},{"$nulls":11},0]
[null,null,{"$f":"T('2 REPAIR ESTIMATOR'!D252:O252)","v":""},{"$nulls":3},{"$f":"'2 REPAIR ESTIMATOR'!P252","v":0},{"$f":"T('2 REPAIR ESTIMATOR'!S252)","v":""},{"$f":"'2 REPAIR ESTIMATOR'!AQ252","v":{"v":0,"d":"$0"}},{"$nulls":11},0]
[null,null,{"$f":"T('2 REPAIR ESTIMATOR'!D253:O253)","v":""},{"$nulls":3},{"$f":"'2 REPAIR ESTIMATOR'!P253","v":0},{"$f":"T('2 REPAIR ESTIMATOR'!S253)","v":""},{"$f":"'2 REPAIR ESTIMATOR'!AQ253","v":{"v":0,"d":"$0"}},{"$nulls":11},0]
[null,null,{"$f":"T('2 REPAIR ESTIMATOR'!D254:O254)","v":""},{"$nulls":3},{"$f":"'2 REPAIR ESTIMATOR'!P254","v":0},{"$f":"T('2 REPAIR ESTIMATOR'!S254)","v":""},{"$f":"'2 REPAIR ESTIMATOR'!AQ254","v":{"v":0,"d":"$0"}},{"$nulls":11},0]
[null,null,{"$f":"T('2 REPAIR ESTIMATOR'!D255:O255)","v":""},{"$nulls":3},{"$f":"'2 REPAIR ESTIMATOR'!P255","v":0},{"$f":"T('2 REPAIR ESTIMATOR'!S255)","v":""},{"$f":"'2 REPAIR ESTIMATOR'!AQ255","v":{"v":0,"d":"$0"}},{"$nulls":11},0]
[null,null,{"$f":"T('2 REPAIR ESTIMATOR'!D256:O256)","v":""},{"$nulls":3},{"$f":"'2 REPAIR ESTIMATOR'!P256","v":0},{"$f":"T('2 REPAIR ESTIMATOR'!S256)","v":""},{"$f":"'2 REPAIR ESTIMATOR'!AQ256","v":{"v":0,"d":"$0"}},{"$nulls":11},0]
[null,null,{"$f":"T('2 REPAIR ESTIMATOR'!D257:O257)","v":""},{"$nulls":3},{"$f":"'2 REPAIR ESTIMATOR'!P257","v":0},{"$f":"T('2 REPAIR ESTIMATOR'!S257)","v":""},{"$f":"'2 REPAIR ESTIMATOR'!AQ257","v":{"v":0,"d":"$0"}},{"$nulls":11},0]
[null,null,{"$f":"T('2 REPAIR ESTIMATOR'!D258:O258)","v":""},{"$nulls":3},{"$f":"'2 REPAIR ESTIMATOR'!P258","v":0},{"$f":"T('2 REPAIR ESTIMATOR'!S258)","v":""},{"$f":"'2 REPAIR ESTIMATOR'!AQ258","v":{"v":0,"d":"$0"}},{"$nulls":11},0]
[null,null,{"$f":"T('2 REPAIR ESTIMATOR'!D259:O259)","v":""},{"$nulls":3},{"$f":"'2 REPAIR ESTIMATOR'!P259","v":0},{"$f":"T('2 REPAIR ESTIMATOR'!S259)","v":""},{"$f":"'2 REPAIR ESTIMATOR'!AQ259","v":{"v":0,"d":"$0"}},{"$nulls":11},0]
[null,null,{"$f":"T('2 REPAIR ESTIMATOR'!D260:O260)","v":""},{"$nulls":3},{"$f":"'2 REPAIR ESTIMATOR'!P260","v":0},{"$f":"T('2 REPAIR ESTIMATOR'!S260)","v":""},{"$f":"'2 REPAIR ESTIMATOR'!AQ260","v":{"v":0,"d":"$0"}},{"$nulls":11},0]
[null,null,{"$f":"T('2 REPAIR ESTIMATOR'!D261:O261)","v":""},{"$nulls":3},{"$f":"'2 REPAIR ESTIMATOR'!P261","v":0},{"$f":"T('2 REPAIR ESTIMATOR'!S261)","v":""},{"$f":"'2 REPAIR ESTIMATOR'!AQ261","v":{"v":0,"d":"$0"}},{"$nulls":11},0]
[null,null,{"$f":"T('2 REPAIR ESTIMATOR'!D262:O262)","v":""},{"$nulls":3},{"$f":"'2 REPAIR ESTIMATOR'!P262","v":0},{"$f":"T('2 REPAIR ESTIMATOR'!S262)","v":""},{"$f":"'2 REPAIR ESTIMATOR'!AQ262","v":{"v":0,"d":"$0"}},{"$nulls":11},0]
[{"$nulls":20},{"$f":"IF(I218>0,1,0)","v":0}]
[null,null,{"$f":"CONCATENATE(C176,\" SUBTOTAL\")","v":"CONCRETE & FLATWORK SUBTOTAL"},{"$nulls":5},{"$f":"SUM(I176:J217)","v":{"v":0,"d":"$0"}},{"$f":"SUM(J169:J216)","v":{"v":0,"d":"$0"}},{"$f":"SUM(K176:L217)","v":{"v":0,"d":"$0"}},{"$f":"SUM(L169:L216)","v":{"v":0,"d":"$0"}},{"$f":"SUM(M176:N217)","v":{"v":0,"d":"$0"}},{"$f":"SUM(N169:N216)","v":{"v":0,"d":"$0"}},{"$f":"SUM(O176:P217)","v":{"v":0,"d":"$0"}},{"$f":"SUM(P169:P216)","v":{"v":0,"d":"$0"}},{"$f":"SUM(Q176:R217)","v":{"v":0,"d":"$0"}},{"$f":"SUM(R169:R216)","v":{"v":0,"d":"$0"}},{"$f":"SUM(S176:T217)","v":{"v":0,"d":"$0"}},{"$f":"SUM(T169:T216)","v":{"v":0,"d":"$0"}},{"$f":"SUM(U176:U217)","v":0}]
[null,null,"Contractor Exclusions:",{"$nulls":17},{"$f":"U218","v":0}]
[{"$nulls":20},{"$f":"U218","v":0}]
[{"$nulls":20},{"$f":"U218","v":0}]
[{"$nulls":20},{"$f":"U218","v":0}]
[{"$nulls":20},{"$f":"U218","v":0}]
[{"$nulls":20},{"$f":"U218","v":0}]
[{"$nulls":20},{"$f":"IF(I226>0,1,0)","v":0}]
[null,null,{"$f":"CONCATENATE(C176,\" TOTAL\")","v":"CONCRETE & FLATWORK TOTAL"},{"$nulls":5},{"$f":"I218","v":{"v":0,"d":"$0"}},{"$f":"SUM(J177:J225)","v":{"v":0,"d":"$0"}},{"$f":"K218+SUM(K219:L225)","v":{"v":0,"d":"$0"}},{"$f":"SUM(L177:L225)","v":{"v":0,"d":"$0"}},{"$f":"M218+SUM(M219:N225)","v":{"v":0,"d":"$0"}},{"$f":"SUM(N177:N225)","v":{"v":0,"d":"$0"}},{"$f":"O218+SUM(O219:P225)","v":{"v":0,"d":"$0"}},{"$f":"SUM(P177:P225)","v":{"v":0,"d":"$0"}},{"$f":"Q218+SUM(Q219:R225)","v":{"v":0,"d":"$0"}},{"$f":"SUM(R177:R225)","v":{"v":0,"d":"$0"}},{"$f":"S218+SUM(S219:T225)","v":{"v":0,"d":"$0"}},{"$f":"SUM(T177:T225)","v":{"v":0,"d":"$0"}},{"$f":"U218+SUM(U219:U225)","v":0}]
[{"$nulls":20},{"$f":"U226","v":0}]
[null,null,{"$f":"T('2 REPAIR ESTIMATOR'!D267:O267)","v":"MASONRY"},{"$nulls":3},{"$f":"SUM(G229:G268)","v":0},{"$nulls":3},"Bidder Name",null,"Bidder Name",null,"Bidder Name",null,"Bidder Name",null,"Bidder Name",null,{"$f":"G228","v":0}]
[null,null,{"$f":"T('2 REPAIR ESTIMATOR'!D268:O268)","v":"Masonry bid/allowance"},{"$nulls":3},{"$f":"'2 REPAIR ESTIMATOR'!P268","v":0},{"$f":"T('2 REPAIR ESTIMATOR'!S268)","v":"ls"},{"$f":"'2 REPAIR ESTIMATOR'!AQ268","v":{"v":0,"d":"$0"}},{"$nulls":11},0]
[null,null,{"$f":"T('2 REPAIR ESTIMATOR'!D269:O269)","v":"CMU, 4x8"},{"$nulls":3},{"$f":"'2 REPAIR ESTIMATOR'!P269","v":0},{"$f":"T('2 REPAIR ESTIMATOR'!S269)","v":"sf"},{"$f":"'2 REPAIR ESTIMATOR'!AQ269","v":{"v":0,"d":"$0"}},{"$nulls":11},0]
[null,null,{"$f":"T('2 REPAIR ESTIMATOR'!D270:O270)","v":"CMU, 8x8"},{"$nulls":3},{"$f":"'2 REPAIR ESTIMATOR'!P270","v":0},{"$f":"T('2 REPAIR ESTIMATOR'!S270)","v":"sf"},{"$f":"'2 REPAIR ESTIMATOR'!AQ270","v":{"v":0,"d":"$0"}},{"$nulls":11},0]
[null,null,{"$f":"T('2 REPAIR ESTIMATOR'!D271:O271)","v":"Brick veneer"},{"$nulls":3},{"$f":"'2 REPAIR ESTIMATOR'!P271","v":0},{"$f":"T('2 REPAIR ESTIMATOR'!S271)","v":"sf"},{"$f":"'2 REPAIR ESTIMATOR'!AQ271","v":{"v":0,"d":"$0"}},{"$nulls":11},0]
[null,null,{"$f":"T('2 REPAIR ESTIMATOR'!D272:O272)","v":"Natural stone"},{"$nulls":3},{"$f":"'2 REPAIR ESTIMATOR'!P272","v":0},{"$f":"T('2 REPAIR ESTIMATOR'!S272)","v":"sf"},{"$f":"'2 REPAIR ESTIMATOR'!AQ272","v":{"v":0,"d":"$0"}},{"$nulls":11},0]
[null,null,{"$f":"T('2 REPAIR ESTIMATOR'!D273:O273)","v":"Masonry waterproofing"},{"$nulls":3},{"$f":"'2 REPAIR ESTIMATOR'!P273","v":0},{"$f":"T('2 REPAIR ESTIMATOR'!S273)","v":"sf"},{"$f":"'2 REPAIR ESTIMATOR'!AQ273","v":{"v":0,"d":"$0"}},{"$nulls":11},0]
[null,null,{"$f":"T('2 REPAIR ESTIMATOR'!D274:O274)","v":"Tuck-point masonry"},{"$nulls":3},{"$f":"'2 REPAIR ESTIMATOR'!P274","v":0},{"$f":"T('2 REPAIR ESTIMATOR'!S274)","v":"sf"},{"$f":"'2 REPAIR ESTIMATOR'!AQ274","v":{"v":0,"d":"$0"}},{"$nulls":11},0]
[null,null,{"$f":"T('2 REPAIR ESTIMATOR'!D275:O275)","v":"Power wash masonry"},{"$nulls":3},{"$f":"'2 REPAIR ESTIMATOR'!P275","v":0},{"$f":"T('2 REPAIR ESTIMATOR'!S275)","v":"sf"},{"$f":"'2 REPAIR ESTIMATOR'!AQ275","v":{"v":0,"d":"$0"}},{"$nulls":11},0]
[null,null,{"$f":"T('2 REPAIR ESTIMATOR'!D276:O276)","v":"Chimney, brick "},{"$nulls":3},{"$f":"'2 REPAIR ESTIMATOR'!P276","v":0},{"$f":"T('2 REPAIR ESTIMATOR'!S276)","v":"vlf"},{"$f":"'2 REPAIR ESTIMATOR'!AQ276","v":{"v":0,"d":"$0"}},{"$nulls":11},0]
[null,null,{"$f":"T('2 REPAIR ESTIMATOR'!D277:O277)","v":"Chimney, stone"},{"$nulls":3},{"$f":"'2 REPAIR ESTIMATOR'!P277","v":0},{"$f":"T('2 REPAIR ESTIMATOR'!S277)","v":"vlf"},{"$f":"'2 REPAIR ESTIMATOR'!AQ277","v":{"v":0,"d":"$0"}},{"$nulls":11},0]
[null,null,{"$f":"T('2 REPAIR ESTIMATOR'!D278:O278)","v":"Add to above for chimney cap"},{"$nulls":3},{"$f":"'2 REPAIR ESTIMATOR'!P278","v":0},{"$f":"T('2 REPAIR ESTIMATOR'!S278)","v":"ea"},{"$f":"'2 REPAIR ESTIMATOR'!AQ278","v":{"v":0,"d":"$0"}},{"$nulls":11},0]
[null,null,{"$f":"T('2 REPAIR ESTIMATOR'!D279:O279)","v":"Fireplace complete, brick, 3ft-4ft wide w/ chimney"},{"$nulls":3},{"$f":"'2 REPAIR ESTIMATOR'!P279","v":0},{"$f":"T('2 REPAIR ESTIMATOR'!S279)","v":"ea"},{"$f":"'2 REPAIR ESTIMATOR'!AQ279","v":{"v":0,"d":"$0"}},{"$nulls":11},0]
[null,null,{"$f":"T('2 REPAIR ESTIMATOR'!D280:O280)","v":""},{"$nulls":3},{"$f":"'2 REPAIR ESTIMATOR'!P280","v":0},{"$f":"T('2 REPAIR ESTIMATOR'!S280)","v":""},{"$f":"'2 REPAIR ESTIMATOR'!AQ280","v":{"v":0,"d":"$0"}},{"$nulls":11},0]
[null,null,{"$f":"T('2 REPAIR ESTIMATOR'!D281:O281)","v":""},{"$nulls":3},{"$f":"'2 REPAIR ESTIMATOR'!P281","v":0},{"$f":"T('2 REPAIR ESTIMATOR'!S281)","v":""},{"$f":"'2 REPAIR ESTIMATOR'!AQ281","v":{"v":0,"d":"$0"}},{"$nulls":11},0]
[null,null,{"$f":"T('2 REPAIR ESTIMATOR'!D282:O282)","v":""},{"$nulls":3},{"$f":"'2 REPAIR ESTIMATOR'!P282","v":0},{"$f":"T('2 REPAIR ESTIMATOR'!S282)","v":""},{"$f":"'2 REPAIR ESTIMATOR'!AQ282","v":{"v":0,"d":"$0"}},{"$nulls":11},0]
[null,null,{"$f":"T('2 REPAIR ESTIMATOR'!D283:O283)","v":""},{"$nulls":3},{"$f":"'2 REPAIR ESTIMATOR'!P283","v":0},{"$f":"T('2 REPAIR ESTIMATOR'!S283)","v":""},{"$f":"'2 REPAIR ESTIMATOR'!AQ283","v":{"v":0,"d":"$0"}},{"$nulls":11},0]
[null,null,{"$f":"T('2 REPAIR ESTIMATOR'!D284:O284)","v":""},{"$nulls":3},{"$f":"'2 REPAIR ESTIMATOR'!P284","v":0},{"$f":"T('2 REPAIR ESTIMATOR'!S284)","v":""},{"$f":"'2 REPAIR ESTIMATOR'!AQ284","v":{"v":0,"d":"$0"}},{"$nulls":11},0]
[null,null,{"$f":"T('2 REPAIR ESTIMATOR'!D285:O285)","v":""},{"$nulls":3},{"$f":"'2 REPAIR ESTIMATOR'!P285","v":0},{"$f":"T('2 REPAIR ESTIMATOR'!S285)","v":""},{"$f":"'2 REPAIR ESTIMATOR'!AQ285","v":{"v":0,"d":"$0"}},{"$nulls":11},0]
[null,null,{"$f":"T('2 REPAIR ESTIMATOR'!D286:O286)","v":""},{"$nulls":3},{"$f":"'2 REPAIR ESTIMATOR'!P286","v":0},{"$f":"T('2 REPAIR ESTIMATOR'!S286)","v":""},{"$f":"'2 REPAIR ESTIMATOR'!AQ286","v":{"v":0,"d":"$0"}},{"$nulls":11},0]
[null,null,{"$f":"T('2 REPAIR ESTIMATOR'!D287:O287)","v":""},{"$nulls":3},{"$f":"'2 REPAIR ESTIMATOR'!P287","v":0},{"$f":"T('2 REPAIR ESTIMATOR'!S287)","v":""},{"$f":"'2 REPAIR ESTIMATOR'!AQ287","v":{"v":0,"d":"$0"}},{"$nulls":11},0]
[null,null,{"$f":"T('2 REPAIR ESTIMATOR'!D288:O288)","v":""},{"$nulls":3},{"$f":"'2 REPAIR ESTIMATOR'!P288","v":0},{"$f":"T('2 REPAIR ESTIMATOR'!S288)","v":""},{"$f":"'2 REPAIR ESTIMATOR'!AQ288","v":{"v":0,"d":"$0"}},{"$nulls":11},0]
[null,null,{"$f":"T('2 REPAIR ESTIMATOR'!D289:O289)","v":""},{"$nulls":3},{"$f":"'2 REPAIR ESTIMATOR'!P289","v":0},{"$f":"T('2 REPAIR ESTIMATOR'!S289)","v":""},{"$f":"'2 REPAIR ESTIMATOR'!AQ289","v":{"v":0,"d":"$0"}},{"$nulls":11},0]
[null,null,{"$f":"T('2 REPAIR ESTIMATOR'!D290:O290)","v":""},{"$nulls":3},{"$f":"'2 REPAIR ESTIMATOR'!P290","v":0},{"$f":"T('2 REPAIR ESTIMATOR'!S290)","v":""},{"$f":"'2 REPAIR ESTIMATOR'!AQ290","v":{"v":0,"d":"$0"}},{"$nulls":11},0]
[null,null,{"$f":"T('2 REPAIR ESTIMATOR'!D291:O291)","v":""},{"$nulls":3},{"$f":"'2 REPAIR ESTIMATOR'!P291","v":0},{"$f":"T('2 REPAIR ESTIMATOR'!S291)","v":""},{"$f":"'2 REPAIR ESTIMATOR'!AQ291","v":{"v":0,"d":"$0"}},{"$nulls":11},0]
[null,null,{"$f":"T('2 REPAIR ESTIMATOR'!D292:O292)","v":""},{"$nulls":3},{"$f":"'2 REPAIR ESTIMATOR'!P292","v":0},{"$f":"T('2 REPAIR ESTIMATOR'!S292)","v":""},{"$f":"'2 REPAIR ESTIMATOR'!AQ292","v":{"v":0,"d":"$0"}},{"$nulls":11},0]
[null,null,{"$f":"T('2 REPAIR ESTIMATOR'!D293:O293)","v":""},{"$nulls":3},{"$f":"'2 REPAIR ESTIMATOR'!P293","v":0},{"$f":"T('2 REPAIR ESTIMATOR'!S293)","v":""},{"$f":"'2 REPAIR ESTIMATOR'!AQ293","v":{"v":0,"d":"$0"}},{"$nulls":11},0]
[null,null,{"$f":"T('2 REPAIR ESTIMATOR'!D294:O294)","v":""},{"$nulls":3},{"$f":"'2 REPAIR ESTIMATOR'!P294","v":0},{"$f":"T('2 REPAIR ESTIMATOR'!S294)","v":""},{"$f":"'2 REPAIR ESTIMATOR'!AQ294","v":{"v":0,"d":"$0"}},{"$nulls":11},0]
[null,null,{"$f":"T('2 REPAIR ESTIMATOR'!D295:O295)","v":""},{"$nulls":3},{"$f":"'2 REPAIR ESTIMATOR'!P295","v":0},{"$f":"T('2 REPAIR ESTIMATOR'!S295)","v":""},{"$f":"'2 REPAIR ESTIMATOR'!AQ295","v":{"v":0,"d":"$0"}},{"$nulls":11},0]
[null,null,{"$f":"T('2 REPAIR ESTIMATOR'!D296:O296)","v":""},{"$nulls":3},{"$f":"'2 REPAIR ESTIMATOR'!P296","v":0},{"$f":"T('2 REPAIR ESTIMATOR'!S296)","v":""},{"$f":"'2 REPAIR ESTIMATOR'!AQ296","v":{"v":0,"d":"$0"}},{"$nulls":11},0]
[null,null,{"$f":"T('2 REPAIR ESTIMATOR'!D297:O297)","v":""},{"$nulls":3},{"$f":"'2 REPAIR ESTIMATOR'!P297","v":0},{"$f":"T('2 REPAIR ESTIMATOR'!S297)","v":""},{"$f":"'2 REPAIR ESTIMATOR'!AQ297","v":{"v":0,"d":"$0"}},{"$nulls":11},0]
[null,null,{"$f":"T('2 REPAIR ESTIMATOR'!D298:O298)","v":""},{"$nulls":3},{"$f":"'2 REPAIR ESTIMATOR'!P298","v":0},{"$f":"T('2 REPAIR ESTIMATOR'!S298)","v":""},{"$f":"'2 REPAIR ESTIMATOR'!AQ298","v":{"v":0,"d":"$0"}},{"$nulls":11},0]
[null,null,{"$f":"T('2 REPAIR ESTIMATOR'!D299:O299)","v":""},{"$nulls":3},{"$f":"'2 REPAIR ESTIMATOR'!P299","v":0},{"$f":"T('2 REPAIR ESTIMATOR'!S299)","v":""},{"$f":"'2 REPAIR ESTIMATOR'!AQ299","v":{"v":0,"d":"$0"}},{"$nulls":11},0]
[null,null,{"$f":"T('2 REPAIR ESTIMATOR'!D300:O300)","v":""},{"$nulls":3},{"$f":"'2 REPAIR ESTIMATOR'!P300","v":0},{"$f":"T('2 REPAIR ESTIMATOR'!S300)","v":""},{"$f":"'2 REPAIR ESTIMATOR'!AQ300","v":{"v":0,"d":"$0"}},{"$nulls":11},0]
[null,null,{"$f":"T('2 REPAIR ESTIMATOR'!D301:O301)","v":""},{"$nulls":3},{"$f":"'2 REPAIR ESTIMATOR'!P301","v":0},{"$f":"T('2 REPAIR ESTIMATOR'!S301)","v":""},{"$f":"'2 REPAIR ESTIMATOR'!AQ301","v":{"v":0,"d":"$0"}},{"$nulls":11},0]
[null,null,{"$f":"T('2 REPAIR ESTIMATOR'!D302:O302)","v":""},{"$nulls":3},{"$f":"'2 REPAIR ESTIMATOR'!P302","v":0},{"$f":"T('2 REPAIR ESTIMATOR'!S302)","v":""},{"$f":"'2 REPAIR ESTIMATOR'!AQ302","v":{"v":0,"d":"$0"}},{"$nulls":11},0]
[null,null,{"$f":"T('2 REPAIR ESTIMATOR'!D303:O303)","v":""},{"$nulls":3},{"$f":"'2 REPAIR ESTIMATOR'!P303","v":0},{"$f":"T('2 REPAIR ESTIMATOR'!S303)","v":""},{"$f":"'2 REPAIR ESTIMATOR'!AQ303","v":{"v":0,"d":"$0"}},{"$nulls":11},0]
[null,null,{"$f":"T('2 REPAIR ESTIMATOR'!D304:O304)","v":""},{"$nulls":3},{"$f":"'2 REPAIR ESTIMATOR'!P304","v":0},{"$f":"T('2 REPAIR ESTIMATOR'!S304)","v":""},{"$f":"'2 REPAIR ESTIMATOR'!AQ304","v":{"v":0,"d":"$0"}},{"$nulls":11},0]
[null,null,{"$f":"T('2 REPAIR ESTIMATOR'!D305:O305)","v":""},{"$nulls":3},{"$f":"'2 REPAIR ESTIMATOR'!P305","v":0},{"$f":"T('2 REPAIR ESTIMATOR'!S305)","v":""},{"$f":"'2 REPAIR ESTIMATOR'!AQ305","v":{"v":0,"d":"$0"}},{"$nulls":11},0]
[null,null,{"$f":"T('2 REPAIR ESTIMATOR'!D306:O306)","v":""},{"$nulls":3},{"$f":"'2 REPAIR ESTIMATOR'!P306","v":0},{"$f":"T('2 REPAIR ESTIMATOR'!S306)","v":""},{"$f":"'2 REPAIR ESTIMATOR'!AQ306","v":{"v":0,"d":"$0"}},{"$nulls":11},0]
[null,null,{"$f":"T('2 REPAIR ESTIMATOR'!D307:O307)","v":""},{"$nulls":3},{"$f":"'2 REPAIR ESTIMATOR'!P307","v":0},{"$f":"T('2 REPAIR ESTIMATOR'!S307)","v":""},{"$f":"'2 REPAIR ESTIMATOR'!AQ307","v":{"v":0,"d":"$0"}},{"$nulls":11},0]
[{"$nulls":20},{"$f":"IF(I270>0,1,0)","v":0}]
[null,null,{"$f":"CONCATENATE(C228,\" SUBTOTAL\")","v":"MASONRY SUBTOTAL"},{"$nulls":5},{"$f":"SUM(I228:J269)","v":{"v":0,"d":"$0"}},{"$f":"SUM(J221:J268)","v":{"v":0,"d":"$0"}},{"$f":"SUM(K228:L269)","v":{"v":0,"d":"$0"}},{"$f":"SUM(L221:L268)","v":{"v":0,"d":"$0"}},{"$f":"SUM(M228:N269)","v":{"v":0,"d":"$0"}},{"$f":"SUM(N221:N268)","v":{"v":0,"d":"$0"}},{"$f":"SUM(O228:P269)","v":{"v":0,"d":"$0"}},{"$f":"SUM(P221:P268)","v":{"v":0,"d":"$0"}},{"$f":"SUM(Q228:R269)","v":{"v":0,"d":"$0"}},{"$f":"SUM(R221:R268)","v":{"v":0,"d":"$0"}},{"$f":"SUM(S228:T269)","v":{"v":0,"d":"$0"}},{"$f":"SUM(T221:T268)","v":{"v":0,"d":"$0"}},{"$f":"SUM(U228:U269)","v":0}]
[null,null,"Contractor Exclusions:",{"$nulls":17},{"$f":"U270","v":0}]
[{"$nulls":20},{"$f":"U270","v":0}]
[{"$nulls":20},{"$f":"U270","v":0}]
[{"$nulls":20},{"$f":"U270","v":0}]
[{"$nulls":20},{"$f":"U270","v":0}]
[{"$nulls":20},{"$f":"U270","v":0}]
[{"$nulls":20},{"$f":"IF(I278>0,1,0)","v":0}]
[null,null,{"$f":"CONCATENATE(C228,\" TOTAL\")","v":"MASONRY TOTAL"},{"$nulls":5},{"$f":"I270","v":{"v":0,"d":"$0"}},{"$f":"SUM(J229:J277)","v":{"v":0,"d":"$0"}},{"$f":"K270+SUM(K271:L277)","v":{"v":0,"d":"$0"}},{"$f":"SUM(L229:L277)","v":{"v":0,"d":"$0"}},{"$f":"M270+SUM(M271:N277)","v":{"v":0,"d":"$0"}},{"$f":"SUM(N229:N277)","v":{"v":0,"d":"$0"}},{"$f":"O270+SUM(O271:P277)","v":{"v":0,"d":"$0"}},{"$f":"SUM(P229:P277)","v":{"v":0,"d":"$0"}},{"$f":"Q270+SUM(Q271:R277)","v":{"v":0,"d":"$0"}},{"$f":"SUM(R229:R277)","v":{"v":0,"d":"$0"}},{"$f":"S270+SUM(S271:T277)","v":{"v":0,"d":"$0"}},{"$f":"SUM(T229:T277)","v":{"v":0,"d":"$0"}},{"$f":"U270+SUM(U271:U277)","v":0}]
[{"$nulls":20},{"$f":"U278","v":0}]
[null,null,{"$f":"T('2 REPAIR ESTIMATOR'!D312:O312)","v":"SIDING"},{"$nulls":3},{"$f":"SUM(G281:G320)","v":1},{"$nulls":3},"Bidder Name",null,"Bidder Name",null,"Bidder Name",null,"Bidder Name",null,"Bidder Name",null,{"$f":"G280","v":1}]
[null,null,{"$f":"T('2 REPAIR ESTIMATOR'!D313:O313)","v":"Siding bid/allowance"},{"$nulls":3},{"$f":"'2 REPAIR ESTIMATOR'!P313","v":1},{"$f":"T('2 REPAIR ESTIMATOR'!S313)","v":"ls"},{"$f":"'2 REPAIR ESTIMATOR'!AQ313","v":{"v":0,"d":"$0"}},{"$nulls":11},1]
[null,null,{"$f":"T('2 REPAIR ESTIMATOR'!D314:O314)","v":"Demo existing siding"},{"$nulls":3},{"$f":"'2 REPAIR ESTIMATOR'!P314","v":0},{"$f":"T('2 REPAIR ESTIMATOR'!S314)","v":"sf"},{"$f":"'2 REPAIR ESTIMATOR'!AQ314","v":{"v":0,"d":"$0"}},{"$nulls":11},0]
[null,null,{"$f":"T('2 REPAIR ESTIMATOR'!D315:O315)","v":"Plywood panel, douglas fir"},{"$nulls":3},{"$f":"'2 REPAIR ESTIMATOR'!P315","v":0},{"$f":"T('2 REPAIR ESTIMATOR'!S315)","v":"sf"},{"$f":"'2 REPAIR ESTIMATOR'!AQ315","v":{"v":0,"d":"$0"}},{"$nulls":11},0]
[null,null,{"$f":"T('2 REPAIR ESTIMATOR'!D316:O316)","v":"Plywood panel, cedar"},{"$nulls":3},{"$f":"'2 REPAIR ESTIMATOR'!P316","v":0},{"$f":"T('2 REPAIR ESTIMATOR'!S316)","v":"sf"},{"$f":"'2 REPAIR ESTIMATOR'!AQ316","v":{"v":0,"d":"$0"}},{"$nulls":11},0]
[null,null,{"$f":"T('2 REPAIR ESTIMATOR'!D317:O317)","v":"Tongue and groove, douglas fir"},{"$nulls":3},{"$f":"'2 REPAIR ESTIMATOR'!P317","v":0},{"$f":"T('2 REPAIR ESTIMATOR'!S317)","v":"sf"},{"$f":"'2 REPAIR ESTIMATOR'!AQ317","v":{"v":0,"d":"$0"}},{"$nulls":11},0]
[null,null,{"$f":"T('2 REPAIR ESTIMATOR'!D318:O318)","v":"Tongue and groove, cedar"},{"$nulls":3},{"$f":"'2 REPAIR ESTIMATOR'!P318","v":0},{"$f":"T('2 REPAIR ESTIMATOR'!S318)","v":"sf"},{"$f":"'2 REPAIR ESTIMATOR'!AQ318","v":{"v":0,"d":"$0"}},{"$nulls":11},0]
[null,null,{"$f":"T('2 REPAIR ESTIMATOR'!D319:O319)","v":"Board and batten, douglas fir"},{"$nulls":3},{"$f":"'2 REPAIR ESTIMATOR'!P319","v":0},{"$f":"T('2 REPAIR ESTIMATOR'!S319)","v":"sf"},{"$f":"'2 REPAIR ESTIMATOR'!AQ319","v":{"v":0,"d":"$0"}},{"$nulls":11},0]
[null,null,{"$f":"T('2 REPAIR ESTIMATOR'!D320:O320)","v":"Board and batten, cedar"},{"$nulls":3},{"$f":"'2 REPAIR ESTIMATOR'!P320","v":0},{"$f":"T('2 REPAIR ESTIMATOR'!S320)","v":"sf"},{"$f":"'2 REPAIR ESTIMATOR'!AQ320","v":{"v":0,"d":"$0"}},{"$nulls":11},0]
[null,null,{"$f":"T('2 REPAIR ESTIMATOR'!D321:O321)","v":"Wood shingle/shake"},{"$nulls":3},{"$f":"'2 REPAIR ESTIMATOR'!P321","v":0},{"$f":"T('2 REPAIR ESTIMATOR'!S321)","v":"sf"},{"$f":"'2 REPAIR ESTIMATOR'!AQ321","v":{"v":0,"d":"$0"}},{"$nulls":11},0]
[null,null,{"$f":"T('2 REPAIR ESTIMATOR'!D322:O322)","v":"Fiber cement siding, 4x8 panels"},{"$nulls":3},{"$f":"'2 REPAIR ESTIMATOR'!P322","v":0},{"$f":"T('2 REPAIR ESTIMATOR'!S322)","v":"sf"},{"$f":"'2 REPAIR ESTIMATOR'!AQ322","v":{"v":0,"d":"$0"}},{"$nulls":11},0]
[null,null,{"$f":"T('2 REPAIR ESTIMATOR'!D323:O323)","v":"Fiber cement siding, lap"},{"$nulls":3},{"$f":"'2 REPAIR ESTIMATOR'!P323","v":0},{"$f":"T('2 REPAIR ESTIMATOR'!S323)","v":"sf"},{"$f":"'2 REPAIR ESTIMATOR'!AQ323","v":{"v":0,"d":"$0"}},{"$nulls":11},0]
[null,null,{"$f":"T('2 REPAIR ESTIMATOR'!D324:O324)","v":"Vinyl siding, non-insulated"},{"$nulls":3},{"$f":"'2 REPAIR ESTIMATOR'!P324","v":0},{"$f":"T('2 REPAIR ESTIMATOR'!S324)","v":"sf"},{"$f":"'2 REPAIR ESTIMATOR'!AQ324","v":{"v":0,"d":"$0"}},{"$nulls":11},0]
[null,null,{"$f":"T('2 REPAIR ESTIMATOR'!D325:O325)","v":"Vinyl siding, insulated"},{"$nulls":3},{"$f":"'2 REPAIR ESTIMATOR'!P325","v":0},{"$f":"T('2 REPAIR ESTIMATOR'!S325)","v":"sf"},{"$f":"'2 REPAIR ESTIMATOR'!AQ325","v":{"v":0,"d":"$0"}},{"$nulls":11},0]
[null,null,{"$f":"T('2 REPAIR ESTIMATOR'!D326:O326)","v":"Trim, 1\"x3\", pine"},{"$nulls":3},{"$f":"'2 REPAIR ESTIMATOR'!P326","v":0},{"$f":"T('2 REPAIR ESTIMATOR'!S326)","v":"lf"},{"$f":"'2 REPAIR ESTIMATOR'!AQ326","v":{"v":0,"d":"$0"}},{"$nulls":11},0]
[null,null,{"$f":"T('2 REPAIR ESTIMATOR'!D327:O327)","v":"Trim, 1\"x4\", pine"},{"$nulls":3},{"$f":"'2 REPAIR ESTIMATOR'!P327","v":0},{"$f":"T('2 REPAIR ESTIMATOR'!S327)","v":"lf"},{"$f":"'2 REPAIR ESTIMATOR'!AQ327","v":{"v":0,"d":"$0"}},{"$nulls":11},0]
[null,null,{"$f":"T('2 REPAIR ESTIMATOR'!D328:O328)","v":"Trim, 1\"x6\", pine"},{"$nulls":3},{"$f":"'2 REPAIR ESTIMATOR'!P328","v":0},{"$f":"T('2 REPAIR ESTIMATOR'!S328)","v":"lf"},{"$f":"'2 REPAIR ESTIMATOR'!AQ328","v":{"v":0,"d":"$0"}},{"$nulls":11},0]
[null,null,{"$f":"T('2 REPAIR ESTIMATOR'!D329:O329)","v":"Siding patch, window/door, siding, insulation"},{"$nulls":3},{"$f":"'2 REPAIR ESTIMATOR'!P329","v":0},{"$f":"T('2 REPAIR ESTIMATOR'!S329)","v":"ea"},{"$f":"'2 REPAIR ESTIMATOR'!AQ329","v":{"v":0,"d":"$0"}},{"$nulls":11},0]
[null,null,{"$f":"T('2 REPAIR ESTIMATOR'!D330:O330)","v":"Stucco"},{"$nulls":3},{"$f":"'2 REPAIR ESTIMATOR'!P330","v":0},{"$f":"T('2 REPAIR ESTIMATOR'!S330)","v":"sf"},{"$f":"'2 REPAIR ESTIMATOR'!AQ330","v":{"v":0,"d":"$0"}},{"$nulls":11},0]
[null,null,{"$f":"T('2 REPAIR ESTIMATOR'!D331:O331)","v":""},{"$nulls":3},{"$f":"'2 REPAIR ESTIMATOR'!P331","v":0},{"$f":"T('2 REPAIR ESTIMATOR'!S331)","v":""},{"$f":"'2 REPAIR ESTIMATOR'!AQ331","v":{"v":0,"d":"$0"}},{"$nulls":11},0]
[null,null,{"$f":"T('2 REPAIR ESTIMATOR'!D332:O332)","v":""},{"$nulls":3},{"$f":"'2 REPAIR ESTIMATOR'!P332","v":0},{"$f":"T('2 REPAIR ESTIMATOR'!S332)","v":""},{"$f":"'2 REPAIR ESTIMATOR'!AQ332","v":{"v":0,"d":"$0"}},{"$nulls":11},0]
[null,null,{"$f":"T('2 REPAIR ESTIMATOR'!D333:O333)","v":""},{"$nulls":3},{"$f":"'2 REPAIR ESTIMATOR'!P333","v":0},{"$f":"T('2 REPAIR ESTIMATOR'!S333)","v":""},{"$f":"'2 REPAIR ESTIMATOR'!AQ333","v":{"v":0,"d":"$0"}},{"$nulls":11},0]
[null,null,{"$f":"T('2 REPAIR ESTIMATOR'!D334:O334)","v":""},{"$nulls":3},{"$f":"'2 REPAIR ESTIMATOR'!P334","v":0},{"$f":"T('2 REPAIR ESTIMATOR'!S334)","v":""},{"$f":"'2 REPAIR ESTIMATOR'!AQ334","v":{"v":0,"d":"$0"}},{"$nulls":11},0]
[null,null,{"$f":"T('2 REPAIR ESTIMATOR'!D335:O335)","v":""},{"$nulls":3},{"$f":"'2 REPAIR ESTIMATOR'!P335","v":0},{"$f":"T('2 REPAIR ESTIMATOR'!S335)","v":""},{"$f":"'2 REPAIR ESTIMATOR'!AQ335","v":{"v":0,"d":"$0"}},{"$nulls":11},0]
[null,null,{"$f":"T('2 REPAIR ESTIMATOR'!D336:O336)","v":""},{"$nulls":3},{"$f":"'2 REPAIR ESTIMATOR'!P336","v":0},{"$f":"T('2 REPAIR ESTIMATOR'!S336)","v":""},{"$f":"'2 REPAIR ESTIMATOR'!AQ336","v":{"v":0,"d":"$0"}},{"$nulls":11},0]
[null,null,{"$f":"T('2 REPAIR ESTIMATOR'!D337:O337)","v":""},{"$nulls":3},{"$f":"'2 REPAIR ESTIMATOR'!P337","v":0},{"$f":"T('2 REPAIR ESTIMATOR'!S337)","v":""},{"$f":"'2 REPAIR ESTIMATOR'!AQ337","v":{"v":0,"d":"$0"}},{"$nulls":11},0]
[null,null,{"$f":"T('2 REPAIR ESTIMATOR'!D338:O338)","v":""},{"$nulls":3},{"$f":"'2 REPAIR ESTIMATOR'!P338","v":0},{"$f":"T('2 REPAIR ESTIMATOR'!S338)","v":""},{"$f":"'2 REPAIR ESTIMATOR'!AQ338","v":{"v":0,"d":"$0"}},{"$nulls":11},0]
[null,null,{"$f":"T('2 REPAIR ESTIMATOR'!D339:O339)","v":""},{"$nulls":3},{"$f":"'2 REPAIR ESTIMATOR'!P339","v":0},{"$f":"T('2 REPAIR ESTIMATOR'!S339)","v":""},{"$f":"'2 REPAIR ESTIMATOR'!AQ339","v":{"v":0,"d":"$0"}},{"$nulls":11},0]
[null,null,{"$f":"T('2 REPAIR ESTIMATOR'!D340:O340)","v":""},{"$nulls":3},{"$f":"'2 REPAIR ESTIMATOR'!P340","v":0},{"$f":"T('2 REPAIR ESTIMATOR'!S340)","v":""},{"$f":"'2 REPAIR ESTIMATOR'!AQ340","v":{"v":0,"d":"$0"}},{"$nulls":11},0]
[null,null,{"$f":"T('2 REPAIR ESTIMATOR'!D341:O341)","v":""},{"$nulls":3},{"$f":"'2 REPAIR ESTIMATOR'!P341","v":0},{"$f":"T('2 REPAIR ESTIMATOR'!S341)","v":""},{"$f":"'2 REPAIR ESTIMATOR'!AQ341","v":{"v":0,"d":"$0"}},{"$nulls":11},0]
[null,null,{"$f":"T('2 REPAIR ESTIMATOR'!D342:O342)","v":""},{"$nulls":3},{"$f":"'2 REPAIR ESTIMATOR'!P342","v":0},{"$f":"T('2 REPAIR ESTIMATOR'!S342)","v":""},{"$f":"'2 REPAIR ESTIMATOR'!AQ342","v":{"v":0,"d":"$0"}},{"$nulls":11},0]
[null,null,{"$f":"T('2 REPAIR ESTIMATOR'!D343:O343)","v":""},{"$nulls":3},{"$f":"'2 REPAIR ESTIMATOR'!P343","v":0},{"$f":"T('2 REPAIR ESTIMATOR'!S343)","v":""},{"$f":"'2 REPAIR ESTIMATOR'!AQ343","v":{"v":0,"d":"$0"}},{"$nulls":11},0]
[null,null,{"$f":"T('2 REPAIR ESTIMATOR'!D344:O344)","v":""},{"$nulls":3},{"$f":"'2 REPAIR ESTIMATOR'!P344","v":0},{"$f":"T('2 REPAIR ESTIMATOR'!S344)","v":""},{"$f":"'2 REPAIR ESTIMATOR'!AQ344","v":{"v":0,"d":"$0"}},{"$nulls":11},0]
[null,null,{"$f":"T('2 REPAIR ESTIMATOR'!D345:O345)","v":""},{"$nulls":3},{"$f":"'2 REPAIR ESTIMATOR'!P345","v":0},{"$f":"T('2 REPAIR ESTIMATOR'!S345)","v":""},{"$f":"'2 REPAIR ESTIMATOR'!AQ345","v":{"v":0,"d":"$0"}},{"$nulls":11},0]
[null,null,{"$f":"T('2 REPAIR ESTIMATOR'!D346:O346)","v":""},{"$nulls":3},{"$f":"'2 REPAIR ESTIMATOR'!P346","v":0},{"$f":"T('2 REPAIR ESTIMATOR'!S346)","v":""},{"$f":"'2 REPAIR ESTIMATOR'!AQ346","v":{"v":0,"d":"$0"}},{"$nulls":11},0]
[null,null,{"$f":"T('2 REPAIR ESTIMATOR'!D347:O347)","v":""},{"$nulls":3},{"$f":"'2 REPAIR ESTIMATOR'!P347","v":0},{"$f":"T('2 REPAIR ESTIMATOR'!S347)","v":""},{"$f":"'2 REPAIR ESTIMATOR'!AQ347","v":{"v":0,"d":"$0"}},{"$nulls":11},0]
[null,null,{"$f":"T('2 REPAIR ESTIMATOR'!D348:O348)","v":""},{"$nulls":3},{"$f":"'2 REPAIR ESTIMATOR'!P348","v":0},{"$f":"T('2 REPAIR ESTIMATOR'!S348)","v":""},{"$f":"'2 REPAIR ESTIMATOR'!AQ348","v":{"v":0,"d":"$0"}},{"$nulls":11},0]
[null,null,{"$f":"T('2 REPAIR ESTIMATOR'!D349:O349)","v":""},{"$nulls":3},{"$f":"'2 REPAIR ESTIMATOR'!P349","v":0},{"$f":"T('2 REPAIR ESTIMATOR'!S349)","v":""},{"$f":"'2 REPAIR ESTIMATOR'!AQ349","v":{"v":0,"d":"$0"}},{"$nulls":11},0]
[null,null,{"$f":"T('2 REPAIR ESTIMATOR'!D350:O350)","v":""},{"$nulls":3},{"$f":"'2 REPAIR ESTIMATOR'!P350","v":0},{"$f":"T('2 REPAIR ESTIMATOR'!S350)","v":""},{"$f":"'2 REPAIR ESTIMATOR'!AQ350","v":{"v":0,"d":"$0"}},{"$nulls":11},0]
[null,null,{"$f":"T('2 REPAIR ESTIMATOR'!D351:O351)","v":""},{"$nulls":3},{"$f":"'2 REPAIR ESTIMATOR'!P351","v":0},{"$f":"T('2 REPAIR ESTIMATOR'!S351)","v":""},{"$f":"'2 REPAIR ESTIMATOR'!AQ351","v":{"v":0,"d":"$0"}},{"$nulls":11},0]
[null,null,{"$f":"T('2 REPAIR ESTIMATOR'!D352:O352)","v":""},{"$nulls":3},{"$f":"'2 REPAIR ESTIMATOR'!P352","v":0},{"$f":"T('2 REPAIR ESTIMATOR'!S352)","v":""},{"$f":"'2 REPAIR ESTIMATOR'!AQ352","v":{"v":0,"d":"$0"}},{"$nulls":11},0]
[{"$nulls":20},{"$f":"IF(I322>0,1,0)","v":0}]
[null,null,{"$f":"CONCATENATE(C280,\" SUBTOTAL\")","v":"SIDING SUBTOTAL"},{"$nulls":5},{"$f":"SUM(I280:J321)","v":{"v":0,"d":"$0"}},{"$f":"SUM(J273:J320)","v":{"v":0,"d":"$0"}},{"$f":"SUM(K280:L321)","v":{"v":0,"d":"$0"}},{"$f":"SUM(L273:L320)","v":{"v":0,"d":"$0"}},{"$f":"SUM(M280:N321)","v":{"v":0,"d":"$0"}},{"$f":"SUM(N273:N320)","v":{"v":0,"d":"$0"}},{"$f":"SUM(O280:P321)","v":{"v":0,"d":"$0"}},{"$f":"SUM(P273:P320)","v":{"v":0,"d":"$0"}},{"$f":"SUM(Q280:R321)","v":{"v":0,"d":"$0"}},{"$f":"SUM(R273:R320)","v":{"v":0,"d":"$0"}},{"$f":"SUM(S280:T321)","v":{"v":0,"d":"$0"}},{"$f":"SUM(T273:T320)","v":{"v":0,"d":"$0"}},{"$f":"SUM(U280:U321)","v":2}]
[null,null,"Contractor Exclusions:",{"$nulls":17},{"$f":"U322","v":2}]
[{"$nulls":20},{"$f":"U322","v":2}]
[{"$nulls":20},{"$f":"U322","v":2}]
[{"$nulls":20},{"$f":"U322","v":2}]
[{"$nulls":20},{"$f":"U322","v":2}]
[{"$nulls":20},{"$f":"U322","v":2}]
[{"$nulls":20},{"$f":"IF(I330>0,1,0)","v":0}]
[null,null,{"$f":"CONCATENATE(C280,\" TOTAL\")","v":"SIDING TOTAL"},{"$nulls":5},{"$f":"I322","v":{"v":0,"d":"$0"}},{"$f":"SUM(J281:J329)","v":{"v":0,"d":"$0"}},{"$f":"K322+SUM(K323:L329)","v":{"v":0,"d":"$0"}},{"$f":"SUM(L281:L329)","v":{"v":0,"d":"$0"}},{"$f":"M322+SUM(M323:N329)","v":{"v":0,"d":"$0"}},{"$f":"SUM(N281:N329)","v":{"v":0,"d":"$0"}},{"$f":"O322+SUM(O323:P329)","v":{"v":0,"d":"$0"}},{"$f":"SUM(P281:P329)","v":{"v":0,"d":"$0"}},{"$f":"Q322+SUM(Q323:R329)","v":{"v":0,"d":"$0"}},{"$f":"SUM(R281:R329)","v":{"v":0,"d":"$0"}},{"$f":"S322+SUM(S323:T329)","v":{"v":0,"d":"$0"}},{"$f":"SUM(T281:T329)","v":{"v":0,"d":"$0"}},{"$f":"U322+SUM(U323:U329)","v":14}]
[{"$nulls":20},{"$f":"U330","v":14}]
[null,null,{"$f":"T('2 REPAIR ESTIMATOR'!D357:O357)","v":"DECKING AND PATIOS"},{"$nulls":3},{"$f":"SUM(G333:G372)","v":150},{"$nulls":3},"Bidder Name",null,"Bidder Name",null,"Bidder Name",null,"Bidder Name",null,"Bidder Name",null,{"$f":"G332","v":150}]
[null,null,{"$f":"T('2 REPAIR ESTIMATOR'!D358:O358)","v":"Decking"},{"$nulls":3},{"$f":"'2 REPAIR ESTIMATOR'!P358","v":0},{"$f":"T('2 REPAIR ESTIMATOR'!S358)","v":""},{"$f":"'2 REPAIR ESTIMATOR'!AQ358","v":{"v":0,"d":"$0"}},{"$nulls":11},0]
[null,null,{"$f":"T('2 REPAIR ESTIMATOR'!D359:O359)","v":"Deck bid/allowance"},{"$nulls":3},{"$f":"'2 REPAIR ESTIMATOR'!P359","v":0},{"$f":"T('2 REPAIR ESTIMATOR'!S359)","v":"ls"},{"$f":"'2 REPAIR ESTIMATOR'!AQ359","v":{"v":0,"d":"$0"}},{"$nulls":11},0]
[null,null,{"$f":"T('2 REPAIR ESTIMATOR'!D360:O360)","v":"New deck, columns, joists, railing-treated lumber"},{"$nulls":3},{"$f":"'2 REPAIR ESTIMATOR'!P360","v":0},{"$f":"T('2 REPAIR ESTIMATOR'!S360)","v":"sf"},{"$f":"'2 REPAIR ESTIMATOR'!AQ360","v":{"v":0,"d":"$0"}},{"$nulls":11},0]
[null,null,{"$f":"T('2 REPAIR ESTIMATOR'!D361:O361)","v":"New deck, columns, joists, railing-cedar"},{"$nulls":3},{"$f":"'2 REPAIR ESTIMATOR'!P361","v":0},{"$f":"T('2 REPAIR ESTIMATOR'!S361)","v":"sf"},{"$f":"'2 REPAIR ESTIMATOR'!AQ361","v":{"v":0,"d":"$0"}},{"$nulls":11},0]
[null,null,{"$f":"T('2 REPAIR ESTIMATOR'!D362:O362)","v":"Existing deck, replace decking"},{"$nulls":3},{"$f":"'2 REPAIR ESTIMATOR'!P362","v":150},{"$f":"T('2 REPAIR ESTIMATOR'!S362)","v":"sf"},{"$f":"'2 REPAIR ESTIMATOR'!AQ362","v":{"v":1071,"d":"$1,071"}},{"$nulls":11},150]
[null,null,{"$f":"T('2 REPAIR ESTIMATOR'!D363:O363)","v":"Install railing w/ wood balusters only"},{"$nulls":3},{"$f":"'2 REPAIR ESTIMATOR'!P363","v":0},{"$f":"T('2 REPAIR ESTIMATOR'!S363)","v":"lf"},{"$f":"'2 REPAIR ESTIMATOR'!AQ363","v":{"v":0,"d":"$0"}},{"$nulls":11},0]
[null,null,{"$f":"T('2 REPAIR ESTIMATOR'!D364:O364)","v":"Install railing w/ metal balusters only"},{"$nulls":3},{"$f":"'2 REPAIR ESTIMATOR'!P364","v":0},{"$f":"T('2 REPAIR ESTIMATOR'!S364)","v":"lf"},{"$f":"'2 REPAIR ESTIMATOR'!AQ364","v":{"v":0,"d":"$0"}},{"$nulls":11},0]
[null,null,{"$f":"T('2 REPAIR ESTIMATOR'!D365:O365)","v":"Stairs, 5 to 7 risers"},{"$nulls":3},{"$f":"'2 REPAIR ESTIMATOR'!P365","v":0},{"$f":"T('2 REPAIR ESTIMATOR'!S365)","v":"ea"},{"$f":"'2 REPAIR ESTIMATOR'!AQ365","v":{"v":0,"d":"$0"}},{"$nulls":11},0]
[null,null,{"$f":"T('2 REPAIR ESTIMATOR'!D366:O366)","v":""},{"$nulls":3},{"$f":"'2 REPAIR ESTIMATOR'!P366","v":0},{"$f":"T('2 REPAIR ESTIMATOR'!S366)","v":""},{"$f":"'2 REPAIR ESTIMATOR'!AQ366","v":{"v":0,"d":"$0"}},{"$nulls":11},0]
[null,null,{"$f":"T('2 REPAIR ESTIMATOR'!D367:O367)","v":""},{"$nulls":3},{"$f":"'2 REPAIR ESTIMATOR'!P367","v":0},{"$f":"T('2 REPAIR ESTIMATOR'!S367)","v":""},{"$f":"'2 REPAIR ESTIMATOR'!AQ367","v":{"v":0,"d":"$0"}},{"$nulls":11},0]
[null,null,{"$f":"T('2 REPAIR ESTIMATOR'!D368:O368)","v":"Covered Patio"},{"$nulls":3},{"$f":"'2 REPAIR ESTIMATOR'!P368","v":0},{"$f":"T('2 REPAIR ESTIMATOR'!S368)","v":""},{"$f":"'2 REPAIR ESTIMATOR'!AQ368","v":{"v":0,"d":"$0"}},{"$nulls":11},0]
[null,null,{"$f":"T('2 REPAIR ESTIMATOR'!D369:O369)","v":"Covered Patio bid/allowance"},{"$nulls":3},{"$f":"'2 REPAIR ESTIMATOR'!P369","v":0},{"$f":"T('2 REPAIR ESTIMATOR'!S369)","v":"ls"},{"$f":"'2 REPAIR ESTIMATOR'!AQ369","v":{"v":0,"d":"$0"}},{"$nulls":11},0]
[null,null,{"$f":"T('2 REPAIR ESTIMATOR'!D370:O370)","v":"Covered patio, floor, roof frame, decking, treated"},{"$nulls":3},{"$f":"'2 REPAIR ESTIMATOR'!P370","v":0},{"$f":"T('2 REPAIR ESTIMATOR'!S370)","v":"sf"},{"$f":"'2 REPAIR ESTIMATOR'!AQ370","v":{"v":0,"d":"$0"}},{"$nulls":11},0]
[null,null,{"$f":"T('2 REPAIR ESTIMATOR'!D371:O371)","v":"Install railing w/ wood balusters only"},{"$nulls":3},{"$f":"'2 REPAIR ESTIMATOR'!P371","v":0},{"$f":"T('2 REPAIR ESTIMATOR'!S371)","v":"lf"},{"$f":"'2 REPAIR ESTIMATOR'!AQ371","v":{"v":0,"d":"$0"}},{"$nulls":11},0]
[null,null,{"$f":"T('2 REPAIR ESTIMATOR'!D372:O372)","v":"Install railing w/ metal balusters only"},{"$nulls":3},{"$f":"'2 REPAIR ESTIMATOR'!P372","v":0},{"$f":"T('2 REPAIR ESTIMATOR'!S372)","v":"lf"},{"$f":"'2 REPAIR ESTIMATOR'!AQ372","v":{"v":0,"d":"$0"}},{"$nulls":11},0]
[null,null,{"$f":"T('2 REPAIR ESTIMATOR'!D373:O373)","v":"Stairs, 5 to 7 risers"},{"$nulls":3},{"$f":"'2 REPAIR ESTIMATOR'!P373","v":0},{"$f":"T('2 REPAIR ESTIMATOR'!S373)","v":"ea"},{"$f":"'2 REPAIR ESTIMATOR'!AQ373","v":{"v":0,"d":"$0"}},{"$nulls":11},0]
[null,null,{"$f":"T('2 REPAIR ESTIMATOR'!D374:O374)","v":"Wood board ceiling, tongue and groove"},{"$nulls":3},{"$f":"'2 REPAIR ESTIMATOR'!P374","v":0},{"$f":"T('2 REPAIR ESTIMATOR'!S374)","v":"sf"},{"$f":"'2 REPAIR ESTIMATOR'!AQ374","v":{"v":0,"d":"$0"}},{"$nulls":11},0]
[null,null,{"$f":"T('2 REPAIR ESTIMATOR'!D375:O375)","v":"Insect screening"},{"$nulls":3},{"$f":"'2 REPAIR ESTIMATOR'!P375","v":0},{"$f":"T('2 REPAIR ESTIMATOR'!S375)","v":"sf"},{"$f":"'2 REPAIR ESTIMATOR'!AQ375","v":{"v":0,"d":"$0"}},{"$nulls":11},0]
[null,null,{"$f":"T('2 REPAIR ESTIMATOR'!D376:O376)","v":""},{"$nulls":3},{"$f":"'2 REPAIR ESTIMATOR'!P376","v":0},{"$f":"T('2 REPAIR ESTIMATOR'!S376)","v":""},{"$f":"'2 REPAIR ESTIMATOR'!AQ376","v":{"v":0,"d":"$0"}},{"$nulls":11},0]
[null,null,{"$f":"T('2 REPAIR ESTIMATOR'!D377:O377)","v":""},{"$nulls":3},{"$f":"'2 REPAIR ESTIMATOR'!P377","v":0},{"$f":"T('2 REPAIR ESTIMATOR'!S377)","v":""},{"$f":"'2 REPAIR ESTIMATOR'!AQ377","v":{"v":0,"d":"$0"}},{"$nulls":11},0]
[null,null,{"$f":"T('2 REPAIR ESTIMATOR'!D378:O378)","v":""},{"$nulls":3},{"$f":"'2 REPAIR ESTIMATOR'!P378","v":0},{"$f":"T('2 REPAIR ESTIMATOR'!S378)","v":""},{"$f":"'2 REPAIR ESTIMATOR'!AQ378","v":{"v":0,"d":"$0"}},{"$nulls":11},0]
[null,null,{"$f":"T('2 REPAIR ESTIMATOR'!D379:O379)","v":""},{"$nulls":3},{"$f":"'2 REPAIR ESTIMATOR'!P379","v":0},{"$f":"T('2 REPAIR ESTIMATOR'!S379)","v":""},{"$f":"'2 REPAIR ESTIMATOR'!AQ379","v":{"v":0,"d":"$0"}},{"$nulls":11},0]
[null,null,{"$f":"T('2 REPAIR ESTIMATOR'!D380:O380)","v":""},{"$nulls":3},{"$f":"'2 REPAIR ESTIMATOR'!P380","v":0},{"$f":"T('2 REPAIR ESTIMATOR'!S380)","v":""},{"$f":"'2 REPAIR ESTIMATOR'!AQ380","v":{"v":0,"d":"$0"}},{"$nulls":11},0]
[null,null,{"$f":"T('2 REPAIR ESTIMATOR'!D381:O381)","v":""},{"$nulls":3},{"$f":"'2 REPAIR ESTIMATOR'!P381","v":0},{"$f":"T('2 REPAIR ESTIMATOR'!S381)","v":""},{"$f":"'2 REPAIR ESTIMATOR'!AQ381","v":{"v":0,"d":"$0"}},{"$nulls":11},0]
[null,null,{"$f":"T('2 REPAIR ESTIMATOR'!D382:O382)","v":""},{"$nulls":3},{"$f":"'2 REPAIR ESTIMATOR'!P382","v":0},{"$f":"T('2 REPAIR ESTIMATOR'!S382)","v":""},{"$f":"'2 REPAIR ESTIMATOR'!AQ382","v":{"v":0,"d":"$0"}},{"$nulls":11},0]
[null,null,{"$f":"T('2 REPAIR ESTIMATOR'!D383:O383)","v":""},{"$nulls":3},{"$f":"'2 REPAIR ESTIMATOR'!P383","v":0},{"$f":"T('2 REPAIR ESTIMATOR'!S383)","v":""},{"$f":"'2 REPAIR ESTIMATOR'!AQ383","v":{"v":0,"d":"$0"}},{"$nulls":11},0]
[null,null,{"$f":"T('2 REPAIR ESTIMATOR'!D384:O384)","v":""},{"$nulls":3},{"$f":"'2 REPAIR ESTIMATOR'!P384","v":0},{"$f":"T('2 REPAIR ESTIMATOR'!S384)","v":""},{"$f":"'2 REPAIR ESTIMATOR'!AQ384","v":{"v":0,"d":"$0"}},{"$nulls":11},0]
[null,null,{"$f":"T('2 REPAIR ESTIMATOR'!D385:O385)","v":""},{"$nulls":3},{"$f":"'2 REPAIR ESTIMATOR'!P385","v":0},{"$f":"T('2 REPAIR ESTIMATOR'!S385)","v":""},{"$f":"'2 REPAIR ESTIMATOR'!AQ385","v":{"v":0,"d":"$0"}},{"$nulls":11},0]
[null,null,{"$f":"T('2 REPAIR ESTIMATOR'!D386:O386)","v":""},{"$nulls":3},{"$f":"'2 REPAIR ESTIMATOR'!P386","v":0},{"$f":"T('2 REPAIR ESTIMATOR'!S386)","v":""},{"$f":"'2 REPAIR ESTIMATOR'!AQ386","v":{"v":0,"d":"$0"}},{"$nulls":11},0]
[null,null,{"$f":"T('2 REPAIR ESTIMATOR'!D387:O387)","v":""},{"$nulls":3},{"$f":"'2 REPAIR ESTIMATOR'!P387","v":0},{"$f":"T('2 REPAIR ESTIMATOR'!S387)","v":""},{"$f":"'2 REPAIR ESTIMATOR'!AQ387","v":{"v":0,"d":"$0"}},{"$nulls":11},0]
[null,null,{"$f":"T('2 REPAIR ESTIMATOR'!D388:O388)","v":""},{"$nulls":3},{"$f":"'2 REPAIR ESTIMATOR'!P388","v":0},{"$f":"T('2 REPAIR ESTIMATOR'!S388)","v":""},{"$f":"'2 REPAIR ESTIMATOR'!AQ388","v":{"v":0,"d":"$0"}},{"$nulls":11},0]
[null,null,{"$f":"T('2 REPAIR ESTIMATOR'!D389:O389)","v":""},{"$nulls":3},{"$f":"'2 REPAIR ESTIMATOR'!P389","v":0},{"$f":"T('2 REPAIR ESTIMATOR'!S389)","v":""},{"$f":"'2 REPAIR ESTIMATOR'!AQ389","v":{"v":0,"d":"$0"}},{"$nulls":11},0]
[null,null,{"$f":"T('2 REPAIR ESTIMATOR'!D390:O390)","v":""},{"$nulls":3},{"$f":"'2 REPAIR ESTIMATOR'!P390","v":0},{"$f":"T('2 REPAIR ESTIMATOR'!S390)","v":""},{"$f":"'2 REPAIR ESTIMATOR'!AQ390","v":{"v":0,"d":"$0"}},{"$nulls":11},0]
[null,null,{"$f":"T('2 REPAIR ESTIMATOR'!D391:O391)","v":""},{"$nulls":3},{"$f":"'2 REPAIR ESTIMATOR'!P391","v":0},{"$f":"T('2 REPAIR ESTIMATOR'!S391)","v":""},{"$f":"'2 REPAIR ESTIMATOR'!AQ391","v":{"v":0,"d":"$0"}},{"$nulls":11},0]
[null,null,{"$f":"T('2 REPAIR ESTIMATOR'!D392:O392)","v":""},{"$nulls":3},{"$f":"'2 REPAIR ESTIMATOR'!P392","v":0},{"$f":"T('2 REPAIR ESTIMATOR'!S392)","v":""},{"$f":"'2 REPAIR ESTIMATOR'!AQ392","v":{"v":0,"d":"$0"}},{"$nulls":11},0]
[null,null,{"$f":"T('2 REPAIR ESTIMATOR'!D393:O393)","v":""},{"$nulls":3},{"$f":"'2 REPAIR ESTIMATOR'!P393","v":0},{"$f":"T('2 REPAIR ESTIMATOR'!S393)","v":""},{"$f":"'2 REPAIR ESTIMATOR'!AQ393","v":{"v":0,"d":"$0"}},{"$nulls":11},0]
[null,null,{"$f":"T('2 REPAIR ESTIMATOR'!D394:O394)","v":""},{"$nulls":3},{"$f":"'2 REPAIR ESTIMATOR'!P394","v":0},{"$f":"T('2 REPAIR ESTIMATOR'!S394)","v":""},{"$f":"'2 REPAIR ESTIMATOR'!AQ394","v":{"v":0,"d":"$0"}},{"$nulls":11},0]
[null,null,{"$f":"T('2 REPAIR ESTIMATOR'!D395:O395)","v":""},{"$nulls":3},{"$f":"'2 REPAIR ESTIMATOR'!P395","v":0},{"$f":"T('2 REPAIR ESTIMATOR'!S395)","v":""},{"$f":"'2 REPAIR ESTIMATOR'!AQ395","v":{"v":0,"d":"$0"}},{"$nulls":11},0]
[null,null,{"$f":"T('2 REPAIR ESTIMATOR'!D396:O396)","v":""},{"$nulls":3},{"$f":"'2 REPAIR ESTIMATOR'!P396","v":0},{"$f":"T('2 REPAIR ESTIMATOR'!S396)","v":""},{"$f":"'2 REPAIR ESTIMATOR'!AQ396","v":{"v":0,"d":"$0"}},{"$nulls":11},0]
[null,null,{"$f":"T('2 REPAIR ESTIMATOR'!D397:O397)","v":""},{"$nulls":3},{"$f":"'2 REPAIR ESTIMATOR'!P397","v":0},{"$f":"T('2 REPAIR ESTIMATOR'!S397)","v":""},{"$f":"'2 REPAIR ESTIMATOR'!AQ397","v":{"v":0,"d":"$0"}},{"$nulls":11},0]
[{"$nulls":20},{"$f":"IF(I374>0,1,0)","v":1}]
[null,null,{"$f":"CONCATENATE(C332,\" SUBTOTAL\")","v":"DECKING AND PATIOS SUBTOTAL"},{"$nulls":5},{"$f":"SUM(I332:J373)","v":{"v":1071,"d":"$1,071"}},{"$f":"SUM(J325:J372)","v":{"v":0,"d":"$0"}},{"$f":"SUM(K332:L373)","v":{"v":0,"d":"$0"}},{"$f":"SUM(L325:L372)","v":{"v":0,"d":"$0"}},{"$f":"SUM(M332:N373)","v":{"v":0,"d":"$0"}},{"$f":"SUM(N325:N372)","v":{"v":0,"d":"$0"}},{"$f":"SUM(O332:P373)","v":{"v":0,"d":"$0"}},{"$f":"SUM(P325:P372)","v":{"v":0,"d":"$0"}},{"$f":"SUM(Q332:R373)","v":{"v":0,"d":"$0"}},{"$f":"SUM(R325:R372)","v":{"v":0,"d":"$0"}},{"$f":"SUM(S332:T373)","v":{"v":0,"d":"$0"}},{"$f":"SUM(T325:T372)","v":{"v":0,"d":"$0"}},{"$f":"SUM(U332:U373)","v":301}]
[null,null,"Contractor Exclusions:",{"$nulls":17},{"$f":"U374","v":301}]
[{"$nulls":20},{"$f":"U374","v":301}]
[{"$nulls":20},{"$f":"U374","v":301}]
[{"$nulls":20},{"$f":"U374","v":301}]
[{"$nulls":20},{"$f":"U374","v":301}]
[{"$nulls":20},{"$f":"U374","v":301}]
[{"$nulls":20},{"$f":"IF(I382>0,1,0)","v":1}]
[null,null,{"$f":"CONCATENATE(C332,\" TOTAL\")","v":"DECKING AND PATIOS TOTAL"},{"$nulls":5},{"$f":"I374","v":{"v":1071,"d":"$1,071"}},{"$f":"SUM(J333:J381)","v":{"v":0,"d":"$0"}},{"$f":"K374+SUM(K375:L381)","v":{"v":0,"d":"$0"}},{"$f":"SUM(L333:L381)","v":{"v":0,"d":"$0"}},{"$f":"M374+SUM(M375:N381)","v":{"v":0,"d":"$0"}},{"$f":"SUM(N333:N381)","v":{"v":0,"d":"$0"}},{"$f":"O374+SUM(O375:P381)","v":{"v":0,"d":"$0"}},{"$f":"SUM(P333:P381)","v":{"v":0,"d":"$0"}},{"$f":"Q374+SUM(Q375:R381)","v":{"v":0,"d":"$0"}},{"$f":"SUM(R333:R381)","v":{"v":0,"d":"$0"}},{"$f":"S374+SUM(S375:T381)","v":{"v":0,"d":"$0"}},{"$f":"SUM(T333:T381)","v":{"v":0,"d":"$0"}},{"$f":"U374+SUM(U375:U381)","v":{"v":2108,"d":"2,108"}}]
[{"$nulls":20},{"$f":"U382","v":{"v":2108,"d":"2,108"}}]
[null,null,{"$f":"T('2 REPAIR ESTIMATOR'!D402:O402)","v":"ROOFING"},{"$nulls":3},{"$f":"SUM(G385:G424)","v":20},{"$nulls":3},"Bidder Name",null,"Bidder Name",null,"Bidder Name",null,"Bidder Name",null,"Bidder Name",null,{"$f":"G384","v":20}]
[null,null,{"$f":"T('2 REPAIR ESTIMATOR'!D403:O403)","v":"Roofing bid/allowance"},{"$nulls":3},{"$f":"'2 REPAIR ESTIMATOR'!P403","v":0},{"$f":"T('2 REPAIR ESTIMATOR'!S403)","v":"ls"},{"$f":"'2 REPAIR ESTIMATOR'!AQ403","v":{"v":0,"d":"$0"}},{"$nulls":11},0]
[null,null,{"$f":"T('2 REPAIR ESTIMATOR'!D404:O404)","v":"Asphalt shingle roof"},{"$nulls":3},{"$f":"'2 REPAIR ESTIMATOR'!P404","v":0},{"$f":"T('2 REPAIR ESTIMATOR'!S404)","v":""},{"$f":"'2 REPAIR ESTIMATOR'!AQ404","v":{"v":0,"d":"$0"}},{"$nulls":11},0]
[null,null,{"$f":"T('2 REPAIR ESTIMATOR'!D405:O405)","v":"Roof repair/patch, asphalt"},{"$nulls":3},{"$f":"'2 REPAIR ESTIMATOR'!P405","v":0},{"$f":"T('2 REPAIR ESTIMATOR'!S405)","v":"ea"},{"$f":"'2 REPAIR ESTIMATOR'!AQ405","v":{"v":0,"d":"$0"}},{"$nulls":11},0]
[null,null,{"$f":"T('2 REPAIR ESTIMATOR'!D406:O406)","v":"Roof replacement-demo & replace, 3-tab"},{"$nulls":3},{"$f":"'2 REPAIR ESTIMATOR'!P406","v":0},{"$f":"T('2 REPAIR ESTIMATOR'!S406)","v":"sq"},{"$f":"'2 REPAIR ESTIMATOR'!AQ406","v":{"v":0,"d":"$0"}},{"$nulls":11},0]
[null,null,{"$f":"T('2 REPAIR ESTIMATOR'!D407:O407)","v":"Roof replacement-demo & replace, architectural"},{"$nulls":3},{"$f":"'2 REPAIR ESTIMATOR'!P407","v":20},{"$f":"T('2 REPAIR ESTIMATOR'!S407)","v":"sq"},{"$f":"'2 REPAIR ESTIMATOR'!AQ407","v":{"v":5461,"d":"$5,461"}},{"$nulls":11},20]
[null,null,{"$f":"T('2 REPAIR ESTIMATOR'!D408:O408)","v":"Premium for 3 layer tear off"},{"$nulls":3},{"$f":"'2 REPAIR ESTIMATOR'!P408","v":0},{"$f":"T('2 REPAIR ESTIMATOR'!S408)","v":"sq"},{"$f":"'2 REPAIR ESTIMATOR'!AQ408","v":{"v":0,"d":"$0"}},{"$nulls":11},0]
[null,null,{"$f":"T('2 REPAIR ESTIMATOR'!D409:O409)","v":"Premium for steep pitch roof"},{"$nulls":3},{"$f":"'2 REPAIR ESTIMATOR'!P409","v":0},{"$f":"T('2 REPAIR ESTIMATOR'!S409)","v":"sq"},{"$f":"'2 REPAIR ESTIMATOR'!AQ409","v":{"v":0,"d":"$0"}},{"$nulls":11},0]
[null,null,{"$f":"T('2 REPAIR ESTIMATOR'!D410:O410)","v":""},{"$nulls":3},{"$f":"'2 REPAIR ESTIMATOR'!P410","v":0},{"$f":"T('2 REPAIR ESTIMATOR'!S410)","v":""},{"$f":"'2 REPAIR ESTIMATOR'!AQ410","v":{"v":0,"d":"$0"}},{"$nulls":11},0]
[null,null,{"$f":"T('2 REPAIR ESTIMATOR'!D411:O411)","v":"Wood Shingle Roof"},{"$nulls":3},{"$f":"'2 REPAIR ESTIMATOR'!P411","v":0},{"$f":"T('2 REPAIR ESTIMATOR'!S411)","v":""},{"$f":"'2 REPAIR ESTIMATOR'!AQ411","v":{"v":0,"d":"$0"}},{"$nulls":11},0]
[null,null,{"$f":"T('2 REPAIR ESTIMATOR'!D412:O412)","v":"Roof repair/patch, wood"},{"$nulls":3},{"$f":"'2 REPAIR ESTIMATOR'!P412","v":0},{"$f":"T('2 REPAIR ESTIMATOR'!S412)","v":"ea"},{"$f":"'2 REPAIR ESTIMATOR'!AQ412","v":{"v":0,"d":"$0"}},{"$nulls":11},0]
[null,null,{"$f":"T('2 REPAIR ESTIMATOR'!D413:O413)","v":"Roof replacement-demo & replace, 3-tab"},{"$nulls":3},{"$f":"'2 REPAIR ESTIMATOR'!P413","v":0},{"$f":"T('2 REPAIR ESTIMATOR'!S413)","v":"sq"},{"$f":"'2 REPAIR ESTIMATOR'!AQ413","v":{"v":0,"d":"$0"}},{"$nulls":11},0]
[null,null,{"$f":"T('2 REPAIR ESTIMATOR'!D414:O414)","v":"Wood shingle, low end"},{"$nulls":3},{"$f":"'2 REPAIR ESTIMATOR'!P414","v":0},{"$f":"T('2 REPAIR ESTIMATOR'!S414)","v":"sq"},{"$f":"'2 REPAIR ESTIMATOR'!AQ414","v":{"v":0,"d":"$0"}},{"$nulls":11},0]
[null,null,{"$f":"T('2 REPAIR ESTIMATOR'!D415:O415)","v":"Wood shingle, high end"},{"$nulls":3},{"$f":"'2 REPAIR ESTIMATOR'!P415","v":0},{"$f":"T('2 REPAIR ESTIMATOR'!S415)","v":"sq"},{"$f":"'2 REPAIR ESTIMATOR'!AQ415","v":{"v":0,"d":"$0"}},{"$nulls":11},0]
[null,null,{"$f":"T('2 REPAIR ESTIMATOR'!D416:O416)","v":"Roof sheathing, plywood 1/2\", remove & install"},{"$nulls":3},{"$f":"'2 REPAIR ESTIMATOR'!P416","v":0},{"$f":"T('2 REPAIR ESTIMATOR'!S416)","v":"sheet"},{"$f":"'2 REPAIR ESTIMATOR'!AQ416","v":{"v":0,"d":"$0"}},{"$nulls":11},0]
[null,null,{"$f":"T('2 REPAIR ESTIMATOR'!D417:O417)","v":""},{"$nulls":3},{"$f":"'2 REPAIR ESTIMATOR'!P417","v":0},{"$f":"T('2 REPAIR ESTIMATOR'!S417)","v":""},{"$f":"'2 REPAIR ESTIMATOR'!AQ417","v":{"v":0,"d":"$0"}},{"$nulls":11},0]
[null,null,{"$f":"T('2 REPAIR ESTIMATOR'!D418:O418)","v":"Slate/Clay Tile"},{"$nulls":3},{"$f":"'2 REPAIR ESTIMATOR'!P418","v":0},{"$f":"T('2 REPAIR ESTIMATOR'!S418)","v":""},{"$f":"'2 REPAIR ESTIMATOR'!AQ418","v":{"v":0,"d":"$0"}},{"$nulls":11},0]
[null,null,{"$f":"T('2 REPAIR ESTIMATOR'!D419:O419)","v":"Roof replacement-demo & replace, slate"},{"$nulls":3},{"$f":"'2 REPAIR ESTIMATOR'!P419","v":0},{"$f":"T('2 REPAIR ESTIMATOR'!S419)","v":"sq"},{"$f":"'2 REPAIR ESTIMATOR'!AQ419","v":{"v":0,"d":"$0"}},{"$nulls":11},0]
[null,null,{"$f":"T('2 REPAIR ESTIMATOR'!D420:O420)","v":""},{"$nulls":3},{"$f":"'2 REPAIR ESTIMATOR'!P420","v":0},{"$f":"T('2 REPAIR ESTIMATOR'!S420)","v":""},{"$f":"'2 REPAIR ESTIMATOR'!AQ420","v":{"v":0,"d":"$0"}},{"$nulls":11},0]
[null,null,{"$f":"T('2 REPAIR ESTIMATOR'!D421:O421)","v":"Gutters & downspouts, aluminum"},{"$nulls":3},{"$f":"'2 REPAIR ESTIMATOR'!P421","v":0},{"$f":"T('2 REPAIR ESTIMATOR'!S421)","v":"lf"},{"$f":"'2 REPAIR ESTIMATOR'!AQ421","v":{"v":0,"d":"$0"}},{"$nulls":11},0]
[null,null,{"$f":"T('2 REPAIR ESTIMATOR'!D422:O422)","v":"Clean gutters & downspouts"},{"$nulls":3},{"$f":"'2 REPAIR ESTIMATOR'!P422","v":0},{"$f":"T('2 REPAIR ESTIMATOR'!S422)","v":"hrs"},{"$f":"'2 REPAIR ESTIMATOR'!AQ422","v":{"v":0,"d":"$0"}},{"$nulls":11},0]
[null,null,{"$f":"T('2 REPAIR ESTIMATOR'!D423:O423)","v":""},{"$nulls":3},{"$f":"'2 REPAIR ESTIMATOR'!P423","v":0},{"$f":"T('2 REPAIR ESTIMATOR'!S423)","v":""},{"$f":"'2 REPAIR ESTIMATOR'!AQ423","v":{"v":0,"d":"$0"}},{"$nulls":11},0]
[null,null,{"$f":"T('2 REPAIR ESTIMATOR'!D424:O424)","v":""},{"$nulls":3},{"$f":"'2 REPAIR ESTIMATOR'!P424","v":0},{"$f":"T('2 REPAIR ESTIMATOR'!S424)","v":""},{"$f":"'2 REPAIR ESTIMATOR'!AQ424","v":{"v":0,"d":"$0"}},{"$nulls":11},0]
[null,null,{"$f":"T('2 REPAIR ESTIMATOR'!D425:O425)","v":""},{"$nulls":3},{"$f":"'2 REPAIR ESTIMATOR'!P425","v":0},{"$f":"T('2 REPAIR ESTIMATOR'!S425)","v":""},{"$f":"'2 REPAIR ESTIMATOR'!AQ425","v":{"v":0,"d":"$0"}},{"$nulls":11},0]
[null,null,{"$f":"T('2 REPAIR ESTIMATOR'!D426:O426)","v":""},{"$nulls":3},{"$f":"'2 REPAIR ESTIMATOR'!P426","v":0},{"$f":"T('2 REPAIR ESTIMATOR'!S426)","v":""},{"$f":"'2 REPAIR ESTIMATOR'!AQ426","v":{"v":0,"d":"$0"}},{"$nulls":11},0]
[null,null,{"$f":"T('2 REPAIR ESTIMATOR'!D427:O427)","v":""},{"$nulls":3},{"$f":"'2 REPAIR ESTIMATOR'!P427","v":0},{"$f":"T('2 REPAIR ESTIMATOR'!S427)","v":""},{"$f":"'2 REPAIR ESTIMATOR'!AQ427","v":{"v":0,"d":"$0"}},{"$nulls":11},0]
[null,null,{"$f":"T('2 REPAIR ESTIMATOR'!D428:O428)","v":""},{"$nulls":3},{"$f":"'2 REPAIR ESTIMATOR'!P428","v":0},{"$f":"T('2 REPAIR ESTIMATOR'!S428)","v":""},{"$f":"'2 REPAIR ESTIMATOR'!AQ428","v":{"v":0,"d":"$0"}},{"$nulls":11},0]
[null,null,{"$f":"T('2 REPAIR ESTIMATOR'!D429:O429)","v":""},{"$nulls":3},{"$f":"'2 REPAIR ESTIMATOR'!P429","v":0},{"$f":"T('2 REPAIR ESTIMATOR'!S429)","v":""},{"$f":"'2 REPAIR ESTIMATOR'!AQ429","v":{"v":0,"d":"$0"}},{"$nulls":11},0]
[null,null,{"$f":"T('2 REPAIR ESTIMATOR'!D430:O430)","v":""},{"$nulls":3},{"$f":"'2 REPAIR ESTIMATOR'!P430","v":0},{"$f":"T('2 REPAIR ESTIMATOR'!S430)","v":""},{"$f":"'2 REPAIR ESTIMATOR'!AQ430","v":{"v":0,"d":"$0"}},{"$nulls":11},0]
[null,null,{"$f":"T('2 REPAIR ESTIMATOR'!D431:O431)","v":""},{"$nulls":3},{"$f":"'2 REPAIR ESTIMATOR'!P431","v":0},{"$f":"T('2 REPAIR ESTIMATOR'!S431)","v":""},{"$f":"'2 REPAIR ESTIMATOR'!AQ431","v":{"v":0,"d":"$0"}},{"$nulls":11},0]
[null,null,{"$f":"T('2 REPAIR ESTIMATOR'!D432:O432)","v":""},{"$nulls":3},{"$f":"'2 REPAIR ESTIMATOR'!P432","v":0},{"$f":"T('2 REPAIR ESTIMATOR'!S432)","v":""},{"$f":"'2 REPAIR ESTIMATOR'!AQ432","v":{"v":0,"d":"$0"}},{"$nulls":11},0]
[null,null,{"$f":"T('2 REPAIR ESTIMATOR'!D433:O433)","v":""},{"$nulls":3},{"$f":"'2 REPAIR ESTIMATOR'!P433","v":0},{"$f":"T('2 REPAIR ESTIMATOR'!S433)","v":""},{"$f":"'2 REPAIR ESTIMATOR'!AQ433","v":{"v":0,"d":"$0"}},{"$nulls":11},0]
[null,null,{"$f":"T('2 REPAIR ESTIMATOR'!D434:O434)","v":""},{"$nulls":3},{"$f":"'2 REPAIR ESTIMATOR'!P434","v":0},{"$f":"T('2 REPAIR ESTIMATOR'!S434)","v":""},{"$f":"'2 REPAIR ESTIMATOR'!AQ434","v":{"v":0,"d":"$0"}},{"$nulls":11},0]
[null,null,{"$f":"T('2 REPAIR ESTIMATOR'!D435:O435)","v":""},{"$nulls":3},{"$f":"'2 REPAIR ESTIMATOR'!P435","v":0},{"$f":"T('2 REPAIR ESTIMATOR'!S435)","v":""},{"$f":"'2 REPAIR ESTIMATOR'!AQ435","v":{"v":0,"d":"$0"}},{"$nulls":11},0]
[null,null,{"$f":"T('2 REPAIR ESTIMATOR'!D436:O436)","v":""},{"$nulls":3},{"$f":"'2 REPAIR ESTIMATOR'!P436","v":0},{"$f":"T('2 REPAIR ESTIMATOR'!S436)","v":""},{"$f":"'2 REPAIR ESTIMATOR'!AQ436","v":{"v":0,"d":"$0"}},{"$nulls":11},0]
[null,null,{"$f":"T('2 REPAIR ESTIMATOR'!D437:O437)","v":""},{"$nulls":3},{"$f":"'2 REPAIR ESTIMATOR'!P437","v":0},{"$f":"T('2 REPAIR ESTIMATOR'!S437)","v":""},{"$f":"'2 REPAIR ESTIMATOR'!AQ437","v":{"v":0,"d":"$0"}},{"$nulls":11},0]
[null,null,{"$f":"T('2 REPAIR ESTIMATOR'!D438:O438)","v":""},{"$nulls":3},{"$f":"'2 REPAIR ESTIMATOR'!P438","v":0},{"$f":"T('2 REPAIR ESTIMATOR'!S438)","v":""},{"$f":"'2 REPAIR ESTIMATOR'!AQ438","v":{"v":0,"d":"$0"}},{"$nulls":11},0]
[null,null,{"$f":"T('2 REPAIR ESTIMATOR'!D439:O439)","v":""},{"$nulls":3},{"$f":"'2 REPAIR ESTIMATOR'!P439","v":0},{"$f":"T('2 REPAIR ESTIMATOR'!S439)","v":""},{"$f":"'2 REPAIR ESTIMATOR'!AQ439","v":{"v":0,"d":"$0"}},{"$nulls":11},0]
[null,null,{"$f":"T('2 REPAIR ESTIMATOR'!D440:O440)","v":""},{"$nulls":3},{"$f":"'2 REPAIR ESTIMATOR'!P440","v":0},{"$f":"T('2 REPAIR ESTIMATOR'!S440)","v":""},{"$f":"'2 REPAIR ESTIMATOR'!AQ440","v":{"v":0,"d":"$0"}},{"$nulls":11},0]
[null,null,{"$f":"T('2 REPAIR ESTIMATOR'!D441:O441)","v":""},{"$nulls":3},{"$f":"'2 REPAIR ESTIMATOR'!P441","v":0},{"$f":"T('2 REPAIR ESTIMATOR'!S441)","v":""},{"$f":"'2 REPAIR ESTIMATOR'!AQ441","v":{"v":0,"d":"$0"}},{"$nulls":11},0]
[null,null,{"$f":"T('2 REPAIR ESTIMATOR'!D442:O442)","v":""},{"$nulls":3},{"$f":"'2 REPAIR ESTIMATOR'!P442","v":0},{"$f":"T('2 REPAIR ESTIMATOR'!S442)","v":""},{"$f":"'2 REPAIR ESTIMATOR'!AQ442","v":{"v":0,"d":"$0"}},{"$nulls":11},0]
[{"$nulls":20},{"$f":"IF(I426>0,1,0)","v":1}]
[null,null,{"$f":"CONCATENATE(C384,\" SUBTOTAL\")","v":"ROOFING SUBTOTAL"},{"$nulls":5},{"$f":"SUM(I384:J425)","v":{"v":5461,"d":"$5,461"}},{"$f":"SUM(J377:J424)","v":{"v":0,"d":"$0"}},{"$f":"SUM(K384:L425)","v":{"v":0,"d":"$0"}},{"$f":"SUM(L377:L424)","v":{"v":0,"d":"$0"}},{"$f":"SUM(M384:N425)","v":{"v":0,"d":"$0"}},{"$f":"SUM(N377:N424)","v":{"v":0,"d":"$0"}},{"$f":"SUM(O384:P425)","v":{"v":0,"d":"$0"}},{"$f":"SUM(P377:P424)","v":{"v":0,"d":"$0"}},{"$f":"SUM(Q384:R425)","v":{"v":0,"d":"$0"}},{"$f":"SUM(R377:R424)","v":{"v":0,"d":"$0"}},{"$f":"SUM(S384:T425)","v":{"v":0,"d":"$0"}},{"$f":"SUM(T377:T424)","v":{"v":0,"d":"$0"}},{"$f":"SUM(U384:U425)","v":41}]
[null,null,"Contractor Exclusions:",{"$nulls":17},{"$f":"U426","v":41}]
[{"$nulls":20},{"$f":"U426","v":41}]
[{"$nulls":20},{"$f":"U426","v":41}]
[{"$nulls":20},{"$f":"U426","v":41}]
[{"$nulls":20},{"$f":"U426","v":41}]
[{"$nulls":20},{"$f":"U426","v":41}]
[{"$nulls":20},{"$f":"IF(I434>0,1,0)","v":1}]
[null,null,{"$f":"CONCATENATE(C384,\" TOTAL\")","v":"ROOFING TOTAL"},{"$nulls":5},{"$f":"I426","v":{"v":5461,"d":"$5,461"}},{"$f":"SUM(J385:J433)","v":{"v":0,"d":"$0"}},{"$f":"K426+SUM(K427:L433)","v":{"v":0,"d":"$0"}},{"$f":"SUM(L385:L433)","v":{"v":0,"d":"$0"}},{"$f":"M426+SUM(M427:N433)","v":{"v":0,"d":"$0"}},{"$f":"SUM(N385:N433)","v":{"v":0,"d":"$0"}},{"$f":"O426+SUM(O427:P433)","v":{"v":0,"d":"$0"}},{"$f":"SUM(P385:P433)","v":{"v":0,"d":"$0"}},{"$f":"Q426+SUM(Q427:R433)","v":{"v":0,"d":"$0"}},{"$f":"SUM(R385:R433)","v":{"v":0,"d":"$0"}},{"$f":"S426+SUM(S427:T433)","v":{"v":0,"d":"$0"}},{"$f":"SUM(T385:T433)","v":{"v":0,"d":"$0"}},{"$f":"U426+SUM(U427:U433)","v":288}]
[{"$nulls":20},{"$f":"U434","v":288}]
[null,null,{"$f":"T('2 REPAIR ESTIMATOR'!D447:O447)","v":"EXTERIOR DOORS & WINDOWS"},{"$nulls":3},{"$f":"SUM(G437:G476)","v":18},{"$nulls":3},"Bidder Name",null,"Bidder Name",null,"Bidder Name",null,"Bidder Name",null,"Bidder Name",null,{"$f":"G436","v":18}]
[null,null,{"$f":"T('2 REPAIR ESTIMATOR'!D448:O448)","v":"Exterior Doors"},{"$nulls":3},{"$f":"'2 REPAIR ESTIMATOR'!P448","v":0},{"$f":"T('2 REPAIR ESTIMATOR'!S448)","v":""},{"$f":"'2 REPAIR ESTIMATOR'!AQ448","v":{"v":0,"d":"$0"}},{"$nulls":11},0]
[null,null,{"$f":"T('2 REPAIR ESTIMATOR'!D449:O449)","v":"Exterior doors bid/allowance"},{"$nulls":3},{"$f":"'2 REPAIR ESTIMATOR'!P449","v":0},{"$f":"T('2 REPAIR ESTIMATOR'!S449)","v":"ls"},{"$f":"'2 REPAIR ESTIMATOR'!AQ449","v":{"v":0,"d":"$0"}},{"$nulls":11},0]
[null,null,{"$f":"T('2 REPAIR ESTIMATOR'!D450:O450)","v":"Steel entry door,  single"},{"$nulls":3},{"$f":"'2 REPAIR ESTIMATOR'!P450","v":3},{"$f":"T('2 REPAIR ESTIMATOR'!S450)","v":"ea"},{"$f":"'2 REPAIR ESTIMATOR'!AQ450","v":{"v":1402.5,"d":"$1,403"}},{"$nulls":11},3]
[null,null,{"$f":"T('2 REPAIR ESTIMATOR'!D451:O451)","v":"French patio door, pair"},{"$nulls":3},{"$f":"'2 REPAIR ESTIMATOR'!P451","v":0},{"$f":"T('2 REPAIR ESTIMATOR'!S451)","v":"ea"},{"$f":"'2 REPAIR ESTIMATOR'!AQ451","v":{"v":0,"d":"$0"}},{"$nulls":11},0]
[null,null,{"$f":"T('2 REPAIR ESTIMATOR'!D452:O452)","v":"Exterior door hardware w/ dead bolt "},{"$nulls":3},{"$f":"'2 REPAIR ESTIMATOR'!P452","v":3},{"$f":"T('2 REPAIR ESTIMATOR'!S452)","v":"ea"},{"$f":"'2 REPAIR ESTIMATOR'!AQ452","v":{"v":155.25,"d":"$155"}},{"$nulls":11},3]
[null,null,{"$f":"T('2 REPAIR ESTIMATOR'!D453:O453)","v":"Glass storm door, single"},{"$nulls":3},{"$f":"'2 REPAIR ESTIMATOR'!P453","v":1},{"$f":"T('2 REPAIR ESTIMATOR'!S453)","v":"ea"},{"$f":"'2 REPAIR ESTIMATOR'!AQ453","v":{"v":392.5,"d":"$393"}},{"$nulls":11},1]
[null,null,{"$f":"T('2 REPAIR ESTIMATOR'!D454:O454)","v":"Sliding glass door, vinyl, double"},{"$nulls":3},{"$f":"'2 REPAIR ESTIMATOR'!P454","v":0},{"$f":"T('2 REPAIR ESTIMATOR'!S454)","v":"ea"},{"$f":"'2 REPAIR ESTIMATOR'!AQ454","v":{"v":0,"d":"$0"}},{"$nulls":11},0]
[null,null,{"$f":"T('2 REPAIR ESTIMATOR'!D455:O455)","v":""},{"$nulls":3},{"$f":"'2 REPAIR ESTIMATOR'!P455","v":0},{"$f":"T('2 REPAIR ESTIMATOR'!S455)","v":""},{"$f":"'2 REPAIR ESTIMATOR'!AQ455","v":{"v":0,"d":"$0"}},{"$nulls":11},0]
[null,null,{"$f":"T('2 REPAIR ESTIMATOR'!D456:O456)","v":""},{"$nulls":3},{"$f":"'2 REPAIR ESTIMATOR'!P456","v":0},{"$f":"T('2 REPAIR ESTIMATOR'!S456)","v":""},{"$f":"'2 REPAIR ESTIMATOR'!AQ456","v":{"v":0,"d":"$0"}},{"$nulls":11},0]
[null,null,{"$f":"T('2 REPAIR ESTIMATOR'!D457:O457)","v":"Windows"},{"$nulls":3},{"$f":"'2 REPAIR ESTIMATOR'!P457","v":0},{"$f":"T('2 REPAIR ESTIMATOR'!S457)","v":""},{"$f":"'2 REPAIR ESTIMATOR'!AQ457","v":{"v":0,"d":"$0"}},{"$nulls":11},0]
[null,null,{"$f":"T('2 REPAIR ESTIMATOR'!D458:O458)","v":"New windows, vinyl, average size"},{"$nulls":3},{"$f":"'2 REPAIR ESTIMATOR'!P458","v":11},{"$f":"T('2 REPAIR ESTIMATOR'!S458)","v":"ea"},{"$f":"'2 REPAIR ESTIMATOR'!AQ458","v":{"v":2884.75,"d":"$2,885"}},{"$nulls":11},11]
[null,null,{"$f":"T('2 REPAIR ESTIMATOR'!D459:O459)","v":"Replacement windows, vinyl, average size"},{"$nulls":3},{"$f":"'2 REPAIR ESTIMATOR'!P459","v":0},{"$f":"T('2 REPAIR ESTIMATOR'!S459)","v":"ea"},{"$f":"'2 REPAIR ESTIMATOR'!AQ459","v":{"v":0,"d":"$0"}},{"$nulls":11},0]
[null,null,{"$f":"T('2 REPAIR ESTIMATOR'!D460:O460)","v":"Wood windows, average size"},{"$nulls":3},{"$f":"'2 REPAIR ESTIMATOR'!P460","v":0},{"$f":"T('2 REPAIR ESTIMATOR'!S460)","v":"ea"},{"$f":"'2 REPAIR ESTIMATOR'!AQ460","v":{"v":0,"d":"$0"}},{"$nulls":11},0]
[null,null,{"$f":"T('2 REPAIR ESTIMATOR'!D461:O461)","v":"Replace broken window pane"},{"$nulls":3},{"$f":"'2 REPAIR ESTIMATOR'!P461","v":0},{"$f":"T('2 REPAIR ESTIMATOR'!S461)","v":"ea"},{"$f":"'2 REPAIR ESTIMATOR'!AQ461","v":{"v":0,"d":"$0"}},{"$nulls":11},0]
[null,null,{"$f":"T('2 REPAIR ESTIMATOR'!D462:O462)","v":"Replace broken screens"},{"$nulls":3},{"$f":"'2 REPAIR ESTIMATOR'!P462","v":0},{"$f":"T('2 REPAIR ESTIMATOR'!S462)","v":"ea"},{"$f":"'2 REPAIR ESTIMATOR'!AQ462","v":{"v":0,"d":"$0"}},{"$nulls":11},0]
[null,null,{"$f":"T('2 REPAIR ESTIMATOR'!D463:O463)","v":"Repair broken screens"},{"$nulls":3},{"$f":"'2 REPAIR ESTIMATOR'!P463","v":0},{"$f":"T('2 REPAIR ESTIMATOR'!S463)","v":"ea"},{"$f":"'2 REPAIR ESTIMATOR'!AQ463","v":{"v":0,"d":"$0"}},{"$nulls":11},0]
[null,null,{"$f":"T('2 REPAIR ESTIMATOR'!D464:O464)","v":"Skylight, 3x3, fixed"},{"$nulls":3},{"$f":"'2 REPAIR ESTIMATOR'!P464","v":0},{"$f":"T('2 REPAIR ESTIMATOR'!S464)","v":"ea"},{"$f":"'2 REPAIR ESTIMATOR'!AQ464","v":{"v":0,"d":"$0"}},{"$nulls":11},0]
[null,null,{"$f":"T('2 REPAIR ESTIMATOR'!D465:O465)","v":"Skylight, operable"},{"$nulls":3},{"$f":"'2 REPAIR ESTIMATOR'!P465","v":0},{"$f":"T('2 REPAIR ESTIMATOR'!S465)","v":"ea"},{"$f":"'2 REPAIR ESTIMATOR'!AQ465","v":{"v":0,"d":"$0"}},{"$nulls":11},0]
[null,null,{"$f":"T('2 REPAIR ESTIMATOR'!D466:O466)","v":""},{"$nulls":3},{"$f":"'2 REPAIR ESTIMATOR'!P466","v":0},{"$f":"T('2 REPAIR ESTIMATOR'!S466)","v":""},{"$f":"'2 REPAIR ESTIMATOR'!AQ466","v":{"v":0,"d":"$0"}},{"$nulls":11},0]
[null,null,{"$f":"T('2 REPAIR ESTIMATOR'!D467:O467)","v":""},{"$nulls":3},{"$f":"'2 REPAIR ESTIMATOR'!P467","v":0},{"$f":"T('2 REPAIR ESTIMATOR'!S467)","v":""},{"$f":"'2 REPAIR ESTIMATOR'!AQ467","v":{"v":0,"d":"$0"}},{"$nulls":11},0]
[null,null,{"$f":"T('2 REPAIR ESTIMATOR'!D468:O468)","v":""},{"$nulls":3},{"$f":"'2 REPAIR ESTIMATOR'!P468","v":0},{"$f":"T('2 REPAIR ESTIMATOR'!S468)","v":""},{"$f":"'2 REPAIR ESTIMATOR'!AQ468","v":{"v":0,"d":"$0"}},{"$nulls":11},0]
[null,null,{"$f":"T('2 REPAIR ESTIMATOR'!D469:O469)","v":""},{"$nulls":3},{"$f":"'2 REPAIR ESTIMATOR'!P469","v":0},{"$f":"T('2 REPAIR ESTIMATOR'!S469)","v":""},{"$f":"'2 REPAIR ESTIMATOR'!AQ469","v":{"v":0,"d":"$0"}},{"$nulls":11},0]
[null,null,{"$f":"T('2 REPAIR ESTIMATOR'!D470:O470)","v":""},{"$nulls":3},{"$f":"'2 REPAIR ESTIMATOR'!P470","v":0},{"$f":"T('2 REPAIR ESTIMATOR'!S470)","v":""},{"$f":"'2 REPAIR ESTIMATOR'!AQ470","v":{"v":0,"d":"$0"}},{"$nulls":11},0]
[null,null,{"$f":"T('2 REPAIR ESTIMATOR'!D471:O471)","v":""},{"$nulls":3},{"$f":"'2 REPAIR ESTIMATOR'!P471","v":0},{"$f":"T('2 REPAIR ESTIMATOR'!S471)","v":""},{"$f":"'2 REPAIR ESTIMATOR'!AQ471","v":{"v":0,"d":"$0"}},{"$nulls":11},0]
[null,null,{"$f":"T('2 REPAIR ESTIMATOR'!D472:O472)","v":""},{"$nulls":3},{"$f":"'2 REPAIR ESTIMATOR'!P472","v":0},{"$f":"T('2 REPAIR ESTIMATOR'!S472)","v":""},{"$f":"'2 REPAIR ESTIMATOR'!AQ472","v":{"v":0,"d":"$0"}},{"$nulls":11},0]
[null,null,{"$f":"T('2 REPAIR ESTIMATOR'!D473:O473)","v":""},{"$nulls":3},{"$f":"'2 REPAIR ESTIMATOR'!P473","v":0},{"$f":"T('2 REPAIR ESTIMATOR'!S473)","v":""},{"$f":"'2 REPAIR ESTIMATOR'!AQ473","v":{"v":0,"d":"$0"}},{"$nulls":11},0]
[null,null,{"$f":"T('2 REPAIR ESTIMATOR'!D474:O474)","v":""},{"$nulls":3},{"$f":"'2 REPAIR ESTIMATOR'!P474","v":0},{"$f":"T('2 REPAIR ESTIMATOR'!S474)","v":""},{"$f":"'2 REPAIR ESTIMATOR'!AQ474","v":{"v":0,"d":"$0"}},{"$nulls":11},0]
[null,null,{"$f":"T('2 REPAIR ESTIMATOR'!D475:O475)","v":""},{"$nulls":3},{"$f":"'2 REPAIR ESTIMATOR'!P475","v":0},{"$f":"T('2 REPAIR ESTIMATOR'!S475)","v":""},{"$f":"'2 REPAIR ESTIMATOR'!AQ475","v":{"v":0,"d":"$0"}},{"$nulls":11},0]
[null,null,{"$f":"T('2 REPAIR ESTIMATOR'!D476:O476)","v":""},{"$nulls":3},{"$f":"'2 REPAIR ESTIMATOR'!P476","v":0},{"$f":"T('2 REPAIR ESTIMATOR'!S476)","v":""},{"$f":"'2 REPAIR ESTIMATOR'!AQ476","v":{"v":0,"d":"$0"}},{"$nulls":11},0]
[null,null,{"$f":"T('2 REPAIR ESTIMATOR'!D477:O477)","v":""},{"$nulls":3},{"$f":"'2 REPAIR ESTIMATOR'!P477","v":0},{"$f":"T('2 REPAIR ESTIMATOR'!S477)","v":""},{"$f":"'2 REPAIR ESTIMATOR'!AQ477","v":{"v":0,"d":"$0"}},{"$nulls":11},0]
[null,null,{"$f":"T('2 REPAIR ESTIMATOR'!D478:O478)","v":""},{"$nulls":3},{"$f":"'2 REPAIR ESTIMATOR'!P478","v":0},{"$f":"T('2 REPAIR ESTIMATOR'!S478)","v":""},{"$f":"'2 REPAIR ESTIMATOR'!AQ478","v":{"v":0,"d":"$0"}},{"$nulls":11},0]
[null,null,{"$f":"T('2 REPAIR ESTIMATOR'!D479:O479)","v":""},{"$nulls":3},{"$f":"'2 REPAIR ESTIMATOR'!P479","v":0},{"$f":"T('2 REPAIR ESTIMATOR'!S479)","v":""},{"$f":"'2 REPAIR ESTIMATOR'!AQ479","v":{"v":0,"d":"$0"}},{"$nulls":11},0]
[null,null,{"$f":"T('2 REPAIR ESTIMATOR'!D480:O480)","v":""},{"$nulls":3},{"$f":"'2 REPAIR ESTIMATOR'!P480","v":0},{"$f":"T('2 REPAIR ESTIMATOR'!S480)","v":""},{"$f":"'2 REPAIR ESTIMATOR'!AQ480","v":{"v":0,"d":"$0"}},{"$nulls":11},0]
[null,null,{"$f":"T('2 REPAIR ESTIMATOR'!D481:O481)","v":""},{"$nulls":3},{"$f":"'2 REPAIR ESTIMATOR'!P481","v":0},{"$f":"T('2 REPAIR ESTIMATOR'!S481)","v":""},{"$f":"'2 REPAIR ESTIMATOR'!AQ481","v":{"v":0,"d":"$0"}},{"$nulls":11},0]
[null,null,{"$f":"T('2 REPAIR ESTIMATOR'!D482:O482)","v":""},{"$nulls":3},{"$f":"'2 REPAIR ESTIMATOR'!P482","v":0},{"$f":"T('2 REPAIR ESTIMATOR'!S482)","v":""},{"$f":"'2 REPAIR ESTIMATOR'!AQ482","v":{"v":0,"d":"$0"}},{"$nulls":11},0]
[null,null,{"$f":"T('2 REPAIR ESTIMATOR'!D483:O483)","v":""},{"$nulls":3},{"$f":"'2 REPAIR ESTIMATOR'!P483","v":0},{"$f":"T('2 REPAIR ESTIMATOR'!S483)","v":""},{"$f":"'2 REPAIR ESTIMATOR'!AQ483","v":{"v":0,"d":"$0"}},{"$nulls":11},0]
[null,null,{"$f":"T('2 REPAIR ESTIMATOR'!D484:O484)","v":""},{"$nulls":3},{"$f":"'2 REPAIR ESTIMATOR'!P484","v":0},{"$f":"T('2 REPAIR ESTIMATOR'!S484)","v":""},{"$f":"'2 REPAIR ESTIMATOR'!AQ484","v":{"v":0,"d":"$0"}},{"$nulls":11},0]
[null,null,{"$f":"T('2 REPAIR ESTIMATOR'!D485:O485)","v":""},{"$nulls":3},{"$f":"'2 REPAIR ESTIMATOR'!P485","v":0},{"$f":"T('2 REPAIR ESTIMATOR'!S485)","v":""},{"$f":"'2 REPAIR ESTIMATOR'!AQ485","v":{"v":0,"d":"$0"}},{"$nulls":11},0]
[null,null,{"$f":"T('2 REPAIR ESTIMATOR'!D486:O486)","v":""},{"$nulls":3},{"$f":"'2 REPAIR ESTIMATOR'!P486","v":0},{"$f":"T('2 REPAIR ESTIMATOR'!S486)","v":""},{"$f":"'2 REPAIR ESTIMATOR'!AQ486","v":{"v":0,"d":"$0"}},{"$nulls":11},0]
[null,null,{"$f":"T('2 REPAIR ESTIMATOR'!D487:O487)","v":""},{"$nulls":3},{"$f":"'2 REPAIR ESTIMATOR'!P487","v":0},{"$f":"T('2 REPAIR ESTIMATOR'!S487)","v":""},{"$f":"'2 REPAIR ESTIMATOR'!AQ487","v":{"v":0,"d":"$0"}},{"$nulls":11},0]
[{"$nulls":20},{"$f":"IF(I478>0,1,0)","v":1}]
[null,null,{"$f":"CONCATENATE(C436,\" SUBTOTAL\")","v":"EXTERIOR DOORS & WINDOWS SUBTOTAL"},{"$nulls":5},{"$f":"SUM(I436:J477)","v":{"v":4835,"d":"$4,835"}},{"$f":"SUM(J429:J476)","v":{"v":0,"d":"$0"}},{"$f":"SUM(K436:L477)","v":{"v":0,"d":"$0"}},{"$f":"SUM(L429:L476)","v":{"v":0,"d":"$0"}},{"$f":"SUM(M436:N477)","v":{"v":0,"d":"$0"}},{"$f":"SUM(N429:N476)","v":{"v":0,"d":"$0"}},{"$f":"SUM(O436:P477)","v":{"v":0,"d":"$0"}},{"$f":"SUM(P429:P476)","v":{"v":0,"d":"$0"}},{"$f":"SUM(Q436:R477)","v":{"v":0,"d":"$0"}},{"$f":"SUM(R429:R476)","v":{"v":0,"d":"$0"}},{"$f":"SUM(S436:T477)","v":{"v":0,"d":"$0"}},{"$f":"SUM(T429:T476)","v":{"v":0,"d":"$0"}},{"$f":"SUM(U436:U477)","v":37}]
[null,null,"Contractor Exclusions:",{"$nulls":17},{"$f":"U478","v":37}]
[{"$nulls":20},{"$f":"U478","v":37}]
[{"$nulls":20},{"$f":"U478","v":37}]
[{"$nulls":20},{"$f":"U478","v":37}]
[{"$nulls":20},{"$f":"U478","v":37}]
[{"$nulls":20},{"$f":"U478","v":37}]
[{"$nulls":20},{"$f":"IF(I486>0,1,0)","v":1}]
[null,null,{"$f":"CONCATENATE(C436,\" TOTAL\")","v":"EXTERIOR DOORS & WINDOWS TOTAL"},{"$nulls":5},{"$f":"I478","v":{"v":4835,"d":"$4,835"}},{"$f":"SUM(J437:J485)","v":{"v":0,"d":"$0"}},{"$f":"K478+SUM(K479:L485)","v":{"v":0,"d":"$0"}},{"$f":"SUM(L437:L485)","v":{"v":0,"d":"$0"}},{"$f":"M478+SUM(M479:N485)","v":{"v":0,"d":"$0"}},{"$f":"SUM(N437:N485)","v":{"v":0,"d":"$0"}},{"$f":"O478+SUM(O479:P485)","v":{"v":0,"d":"$0"}},{"$f":"SUM(P437:P485)","v":{"v":0,"d":"$0"}},{"$f":"Q478+SUM(Q479:R485)","v":{"v":0,"d":"$0"}},{"$f":"SUM(R437:R485)","v":{"v":0,"d":"$0"}},{"$f":"S478+SUM(S479:T485)","v":{"v":0,"d":"$0"}},{"$f":"SUM(T437:T485)","v":{"v":0,"d":"$0"}},{"$f":"U478+SUM(U479:U485)","v":260}]
[{"$nulls":20},{"$f":"U486","v":260}]
[null,null,{"$f":"T('2 REPAIR ESTIMATOR'!D492:O492)","v":"GARAGE DOORS"},{"$nulls":3},{"$f":"SUM(G489:G528)","v":2},{"$nulls":3},"Bidder Name",null,"Bidder Name",null,"Bidder Name",null,"Bidder Name",null,"Bidder Name",null,{"$f":"G488","v":2}]
[null,null,{"$f":"T('2 REPAIR ESTIMATOR'!D493:O493)","v":"Garage Doors Bid/Allowance"},{"$nulls":3},{"$f":"'2 REPAIR ESTIMATOR'!P493","v":0},{"$f":"T('2 REPAIR ESTIMATOR'!S493)","v":"ls"},{"$f":"'2 REPAIR ESTIMATOR'!AQ493","v":{"v":0,"d":"$0"}},{"$nulls":11},0]
[null,null,{"$f":"T('2 REPAIR ESTIMATOR'!D494:O494)","v":"Garage Doors Only- 9'x7'  door, manual"},{"$nulls":3},{"$f":"'2 REPAIR ESTIMATOR'!P494","v":0},{"$f":"T('2 REPAIR ESTIMATOR'!S494)","v":"ea"},{"$f":"'2 REPAIR ESTIMATOR'!AQ494","v":{"v":0,"d":"$0"}},{"$nulls":11},0]
[null,null,{"$f":"T('2 REPAIR ESTIMATOR'!D495:O495)","v":"Garage Doors Only- 16' door, manual"},{"$nulls":3},{"$f":"'2 REPAIR ESTIMATOR'!P495","v":1},{"$f":"T('2 REPAIR ESTIMATOR'!S495)","v":"ea"},{"$f":"'2 REPAIR ESTIMATOR'!AQ495","v":{"v":1102.5,"d":"$1,103"}},{"$nulls":11},1]
[null,null,{"$f":"T('2 REPAIR ESTIMATOR'!D496:O496)","v":"Garage Door Operator only"},{"$nulls":3},{"$f":"'2 REPAIR ESTIMATOR'!P496","v":1},{"$f":"T('2 REPAIR ESTIMATOR'!S496)","v":"ea"},{"$f":"'2 REPAIR ESTIMATOR'!AQ496","v":{"v":260.5,"d":"$261"}},{"$nulls":11},1]
[null,null,{"$f":"T('2 REPAIR ESTIMATOR'!D497:O497)","v":"Replace springs for garage door"},{"$nulls":3},{"$f":"'2 REPAIR ESTIMATOR'!P497","v":0},{"$f":"T('2 REPAIR ESTIMATOR'!S497)","v":"ea"},{"$f":"'2 REPAIR ESTIMATOR'!AQ497","v":{"v":0,"d":"$0"}},{"$nulls":11},0]
[null,null,{"$f":"T('2 REPAIR ESTIMATOR'!D498:O498)","v":""},{"$nulls":3},{"$f":"'2 REPAIR ESTIMATOR'!P498","v":0},{"$f":"T('2 REPAIR ESTIMATOR'!S498)","v":""},{"$f":"'2 REPAIR ESTIMATOR'!AQ498","v":{"v":0,"d":"$0"}},{"$nulls":11},0]
[null,null,{"$f":"T('2 REPAIR ESTIMATOR'!D499:O499)","v":""},{"$nulls":3},{"$f":"'2 REPAIR ESTIMATOR'!P499","v":0},{"$f":"T('2 REPAIR ESTIMATOR'!S499)","v":""},{"$f":"'2 REPAIR ESTIMATOR'!AQ499","v":{"v":0,"d":"$0"}},{"$nulls":11},0]
[null,null,{"$f":"T('2 REPAIR ESTIMATOR'!D500:O500)","v":""},{"$nulls":3},{"$f":"'2 REPAIR ESTIMATOR'!P500","v":0},{"$f":"T('2 REPAIR ESTIMATOR'!S500)","v":""},{"$f":"'2 REPAIR ESTIMATOR'!AQ500","v":{"v":0,"d":"$0"}},{"$nulls":11},0]
[null,null,{"$f":"T('2 REPAIR ESTIMATOR'!D501:O501)","v":""},{"$nulls":3},{"$f":"'2 REPAIR ESTIMATOR'!P501","v":0},{"$f":"T('2 REPAIR ESTIMATOR'!S501)","v":""},{"$f":"'2 REPAIR ESTIMATOR'!AQ501","v":{"v":0,"d":"$0"}},{"$nulls":11},0]
[null,null,{"$f":"T('2 REPAIR ESTIMATOR'!D502:O502)","v":""},{"$nulls":3},{"$f":"'2 REPAIR ESTIMATOR'!P502","v":0},{"$f":"T('2 REPAIR ESTIMATOR'!S502)","v":""},{"$f":"'2 REPAIR ESTIMATOR'!AQ502","v":{"v":0,"d":"$0"}},{"$nulls":11},0]
[null,null,{"$f":"T('2 REPAIR ESTIMATOR'!D503:O503)","v":""},{"$nulls":3},{"$f":"'2 REPAIR ESTIMATOR'!P503","v":0},{"$f":"T('2 REPAIR ESTIMATOR'!S503)","v":""},{"$f":"'2 REPAIR ESTIMATOR'!AQ503","v":{"v":0,"d":"$0"}},{"$nulls":11},0]
[null,null,{"$f":"T('2 REPAIR ESTIMATOR'!D504:O504)","v":""},{"$nulls":3},{"$f":"'2 REPAIR ESTIMATOR'!P504","v":0},{"$f":"T('2 REPAIR ESTIMATOR'!S504)","v":""},{"$f":"'2 REPAIR ESTIMATOR'!AQ504","v":{"v":0,"d":"$0"}},{"$nulls":11},0]
[null,null,{"$f":"T('2 REPAIR ESTIMATOR'!D505:O505)","v":""},{"$nulls":3},{"$f":"'2 REPAIR ESTIMATOR'!P505","v":0},{"$f":"T('2 REPAIR ESTIMATOR'!S505)","v":""},{"$f":"'2 REPAIR ESTIMATOR'!AQ505","v":{"v":0,"d":"$0"}},{"$nulls":11},0]
[null,null,{"$f":"T('2 REPAIR ESTIMATOR'!D506:O506)","v":""},{"$nulls":3},{"$f":"'2 REPAIR ESTIMATOR'!P506","v":0},{"$f":"T('2 REPAIR ESTIMATOR'!S506)","v":""},{"$f":"'2 REPAIR ESTIMATOR'!AQ506","v":{"v":0,"d":"$0"}},{"$nulls":11},0]
[null,null,{"$f":"T('2 REPAIR ESTIMATOR'!D507:O507)","v":""},{"$nulls":3},{"$f":"'2 REPAIR ESTIMATOR'!P507","v":0},{"$f":"T('2 REPAIR ESTIMATOR'!S507)","v":""},{"$f":"'2 REPAIR ESTIMATOR'!AQ507","v":{"v":0,"d":"$0"}},{"$nulls":11},0]
[null,null,{"$f":"T('2 REPAIR ESTIMATOR'!D508:O508)","v":""},{"$nulls":3},{"$f":"'2 REPAIR ESTIMATOR'!P508","v":0},{"$f":"T('2 REPAIR ESTIMATOR'!S508)","v":""},{"$f":"'2 REPAIR ESTIMATOR'!AQ508","v":{"v":0,"d":"$0"}},{"$nulls":11},0]
[null,null,{"$f":"T('2 REPAIR ESTIMATOR'!D509:O509)","v":""},{"$nulls":3},{"$f":"'2 REPAIR ESTIMATOR'!P509","v":0},{"$f":"T('2 REPAIR ESTIMATOR'!S509)","v":""},{"$f":"'2 REPAIR ESTIMATOR'!AQ509","v":{"v":0,"d":"$0"}},{"$nulls":11},0]
[null,null,{"$f":"T('2 REPAIR ESTIMATOR'!D510:O510)","v":""},{"$nulls":3},{"$f":"'2 REPAIR ESTIMATOR'!P510","v":0},{"$f":"T('2 REPAIR ESTIMATOR'!S510)","v":""},{"$f":"'2 REPAIR ESTIMATOR'!AQ510","v":{"v":0,"d":"$0"}},{"$nulls":11},0]
[null,null,{"$f":"T('2 REPAIR ESTIMATOR'!D511:O511)","v":""},{"$nulls":3},{"$f":"'2 REPAIR ESTIMATOR'!P511","v":0},{"$f":"T('2 REPAIR ESTIMATOR'!S511)","v":""},{"$f":"'2 REPAIR ESTIMATOR'!AQ511","v":{"v":0,"d":"$0"}},{"$nulls":11},0]
[null,null,{"$f":"T('2 REPAIR ESTIMATOR'!D512:O512)","v":""},{"$nulls":3},{"$f":"'2 REPAIR ESTIMATOR'!P512","v":0},{"$f":"T('2 REPAIR ESTIMATOR'!S512)","v":""},{"$f":"'2 REPAIR ESTIMATOR'!AQ512","v":{"v":0,"d":"$0"}},{"$nulls":11},0]
[null,null,{"$f":"T('2 REPAIR ESTIMATOR'!D513:O513)","v":""},{"$nulls":3},{"$f":"'2 REPAIR ESTIMATOR'!P513","v":0},{"$f":"T('2 REPAIR ESTIMATOR'!S513)","v":""},{"$f":"'2 REPAIR ESTIMATOR'!AQ513","v":{"v":0,"d":"$0"}},{"$nulls":11},0]
[null,null,{"$f":"T('2 REPAIR ESTIMATOR'!D514:O514)","v":""},{"$nulls":3},{"$f":"'2 REPAIR ESTIMATOR'!P514","v":0},{"$f":"T('2 REPAIR ESTIMATOR'!S514)","v":""},{"$f":"'2 REPAIR ESTIMATOR'!AQ514","v":{"v":0,"d":"$0"}},{"$nulls":11},0]
[null,null,{"$f":"T('2 REPAIR ESTIMATOR'!D515:O515)","v":""},{"$nulls":3},{"$f":"'2 REPAIR ESTIMATOR'!P515","v":0},{"$f":"T('2 REPAIR ESTIMATOR'!S515)","v":""},{"$f":"'2 REPAIR ESTIMATOR'!AQ515","v":{"v":0,"d":"$0"}},{"$nulls":11},0]
[null,null,{"$f":"T('2 REPAIR ESTIMATOR'!D516:O516)","v":""},{"$nulls":3},{"$f":"'2 REPAIR ESTIMATOR'!P516","v":0},{"$f":"T('2 REPAIR ESTIMATOR'!S516)","v":""},{"$f":"'2 REPAIR ESTIMATOR'!AQ516","v":{"v":0,"d":"$0"}},{"$nulls":11},0]
[null,null,{"$f":"T('2 REPAIR ESTIMATOR'!D517:O517)","v":""},{"$nulls":3},{"$f":"'2 REPAIR ESTIMATOR'!P517","v":0},{"$f":"T('2 REPAIR ESTIMATOR'!S517)","v":""},{"$f":"'2 REPAIR ESTIMATOR'!AQ517","v":{"v":0,"d":"$0"}},{"$nulls":11},0]
[null,null,{"$f":"T('2 REPAIR ESTIMATOR'!D518:O518)","v":""},{"$nulls":3},{"$f":"'2 REPAIR ESTIMATOR'!P518","v":0},{"$f":"T('2 REPAIR ESTIMATOR'!S518)","v":""},{"$f":"'2 REPAIR ESTIMATOR'!AQ518","v":{"v":0,"d":"$0"}},{"$nulls":11},0]
[null,null,{"$f":"T('2 REPAIR ESTIMATOR'!D519:O519)","v":""},{"$nulls":3},{"$f":"'2 REPAIR ESTIMATOR'!P519","v":0},{"$f":"T('2 REPAIR ESTIMATOR'!S519)","v":""},{"$f":"'2 REPAIR ESTIMATOR'!AQ519","v":{"v":0,"d":"$0"}},{"$nulls":11},0]
[null,null,{"$f":"T('2 REPAIR ESTIMATOR'!D520:O520)","v":""},{"$nulls":3},{"$f":"'2 REPAIR ESTIMATOR'!P520","v":0},{"$f":"T('2 REPAIR ESTIMATOR'!S520)","v":""},{"$f":"'2 REPAIR ESTIMATOR'!AQ520","v":{"v":0,"d":"$0"}},{"$nulls":11},0]
[null,null,{"$f":"T('2 REPAIR ESTIMATOR'!D521:O521)","v":""},{"$nulls":3},{"$f":"'2 REPAIR ESTIMATOR'!P521","v":0},{"$f":"T('2 REPAIR ESTIMATOR'!S521)","v":""},{"$f":"'2 REPAIR ESTIMATOR'!AQ521","v":{"v":0,"d":"$0"}},{"$nulls":11},0]
[null,null,{"$f":"T('2 REPAIR ESTIMATOR'!D522:O522)","v":""},{"$nulls":3},{"$f":"'2 REPAIR ESTIMATOR'!P522","v":0},{"$f":"T('2 REPAIR ESTIMATOR'!S522)","v":""},{"$f":"'2 REPAIR ESTIMATOR'!AQ522","v":{"v":0,"d":"$0"}},{"$nulls":11},0]
[null,null,{"$f":"T('2 REPAIR ESTIMATOR'!D523:O523)","v":""},{"$nulls":3},{"$f":"'2 REPAIR ESTIMATOR'!P523","v":0},{"$f":"T('2 REPAIR ESTIMATOR'!S523)","v":""},{"$f":"'2 REPAIR ESTIMATOR'!AQ523","v":{"v":0,"d":"$0"}},{"$nulls":11},0]
[null,null,{"$f":"T('2 REPAIR ESTIMATOR'!D524:O524)","v":""},{"$nulls":3},{"$f":"'2 REPAIR ESTIMATOR'!P524","v":0},{"$f":"T('2 REPAIR ESTIMATOR'!S524)","v":""},{"$f":"'2 REPAIR ESTIMATOR'!AQ524","v":{"v":0,"d":"$0"}},{"$nulls":11},0]
[null,null,{"$f":"T('2 REPAIR ESTIMATOR'!D525:O525)","v":""},{"$nulls":3},{"$f":"'2 REPAIR ESTIMATOR'!P525","v":0},{"$f":"T('2 REPAIR ESTIMATOR'!S525)","v":""},{"$f":"'2 REPAIR ESTIMATOR'!AQ525","v":{"v":0,"d":"$0"}},{"$nulls":11},0]
[null,null,{"$f":"T('2 REPAIR ESTIMATOR'!D526:O526)","v":""},{"$nulls":3},{"$f":"'2 REPAIR ESTIMATOR'!P526","v":0},{"$f":"T('2 REPAIR ESTIMATOR'!S526)","v":""},{"$f":"'2 REPAIR ESTIMATOR'!AQ526","v":{"v":0,"d":"$0"}},{"$nulls":11},0]
[null,null,{"$f":"T('2 REPAIR ESTIMATOR'!D527:O527)","v":""},{"$nulls":3},{"$f":"'2 REPAIR ESTIMATOR'!P527","v":0},{"$f":"T('2 REPAIR ESTIMATOR'!S527)","v":""},{"$f":"'2 REPAIR ESTIMATOR'!AQ527","v":{"v":0,"d":"$0"}},{"$nulls":11},0]
[null,null,{"$f":"T('2 REPAIR ESTIMATOR'!D528:O528)","v":""},{"$nulls":3},{"$f":"'2 REPAIR ESTIMATOR'!P528","v":0},{"$f":"T('2 REPAIR ESTIMATOR'!S528)","v":""},{"$f":"'2 REPAIR ESTIMATOR'!AQ528","v":{"v":0,"d":"$0"}},{"$nulls":11},0]
[null,null,{"$f":"T('2 REPAIR ESTIMATOR'!D529:O529)","v":""},{"$nulls":3},{"$f":"'2 REPAIR ESTIMATOR'!P529","v":0},{"$f":"T('2 REPAIR ESTIMATOR'!S529)","v":""},{"$f":"'2 REPAIR ESTIMATOR'!AQ529","v":{"v":0,"d":"$0"}},{"$nulls":11},0]
[null,null,{"$f":"T('2 REPAIR ESTIMATOR'!D530:O530)","v":""},{"$nulls":3},{"$f":"'2 REPAIR ESTIMATOR'!P530","v":0},{"$f":"T('2 REPAIR ESTIMATOR'!S530)","v":""},{"$f":"'2 REPAIR ESTIMATOR'!AQ530","v":{"v":0,"d":"$0"}},{"$nulls":11},0]
[null,null,{"$f":"T('2 REPAIR ESTIMATOR'!D531:O531)","v":""},{"$nulls":3},{"$f":"'2 REPAIR ESTIMATOR'!P531","v":0},{"$f":"T('2 REPAIR ESTIMATOR'!S531)","v":""},{"$f":"'2 REPAIR ESTIMATOR'!AQ531","v":{"v":0,"d":"$0"}},{"$nulls":11},0]
[null,null,{"$f":"T('2 REPAIR ESTIMATOR'!D532:O532)","v":""},{"$nulls":3},{"$f":"'2 REPAIR ESTIMATOR'!P532","v":0},{"$f":"T('2 REPAIR ESTIMATOR'!S532)","v":""},{"$f":"'2 REPAIR ESTIMATOR'!AQ532","v":{"v":0,"d":"$0"}},{"$nulls":11},0]
[{"$nulls":20},{"$f":"IF(I530>0,1,0)","v":1}]
[null,null,{"$f":"CONCATENATE(C488,\" SUBTOTAL\")","v":"GARAGE DOORS SUBTOTAL"},{"$nulls":5},{"$f":"SUM(I488:J529)","v":{"v":1363,"d":"$1,363"}},{"$f":"SUM(J481:J528)","v":{"v":0,"d":"$0"}},{"$f":"SUM(K488:L529)","v":{"v":0,"d":"$0"}},{"$f":"SUM(L481:L528)","v":{"v":0,"d":"$0"}},{"$f":"SUM(M488:N529)","v":{"v":0,"d":"$0"}},{"$f":"SUM(N481:N528)","v":{"v":0,"d":"$0"}},{"$f":"SUM(O488:P529)","v":{"v":0,"d":"$0"}},{"$f":"SUM(P481:P528)","v":{"v":0,"d":"$0"}},{"$f":"SUM(Q488:R529)","v":{"v":0,"d":"$0"}},{"$f":"SUM(R481:R528)","v":{"v":0,"d":"$0"}},{"$f":"SUM(S488:T529)","v":{"v":0,"d":"$0"}},{"$f":"SUM(T481:T528)","v":{"v":0,"d":"$0"}},{"$f":"SUM(U488:U529)","v":5}]
[null,null,"Contractor Exclusions:",{"$nulls":17},{"$f":"U530","v":5}]
[{"$nulls":20},{"$f":"U530","v":5}]
[{"$nulls":20},{"$f":"U530","v":5}]
[{"$nulls":20},{"$f":"U530","v":5}]
[{"$nulls":20},{"$f":"U530","v":5}]
[{"$nulls":20},{"$f":"U530","v":5}]
[{"$nulls":20},{"$f":"IF(I538>0,1,0)","v":1}]
[null,null,{"$f":"CONCATENATE(C488,\" TOTAL\")","v":"GARAGE DOORS TOTAL"},{"$nulls":5},{"$f":"I530","v":{"v":1363,"d":"$1,363"}},{"$f":"SUM(J487:J537)","v":{"v":0,"d":"$0"}},{"$f":"K530+SUM(K531:L537)","v":{"v":0,"d":"$0"}},{"$f":"SUM(L487:L537)","v":{"v":0,"d":"$0"}},{"$f":"M530+SUM(M531:N537)","v":{"v":0,"d":"$0"}},{"$f":"SUM(N487:N537)","v":{"v":0,"d":"$0"}},{"$f":"O530+SUM(O531:P537)","v":{"v":0,"d":"$0"}},{"$f":"SUM(P487:P537)","v":{"v":0,"d":"$0"}},{"$f":"Q530+SUM(Q531:R537)","v":{"v":0,"d":"$0"}},{"$f":"SUM(R487:R537)","v":{"v":0,"d":"$0"}},{"$f":"S530+SUM(S531:T537)","v":{"v":0,"d":"$0"}},{"$f":"SUM(T487:T537)","v":{"v":0,"d":"$0"}},{"$f":"U530+SUM(U531:U537)","v":36}]
[{"$nulls":20},{"$f":"U538","v":36}]
[null,null,{"$f":"T('2 REPAIR ESTIMATOR'!D537:O537)","v":"LANDSCAPING"},{"$nulls":3},{"$f":"SUM(G541:G580)","v":1},{"$nulls":3},"Bidder Name",null,"Bidder Name",null,"Bidder Name",null,"Bidder Name",null,"Bidder Name",null,{"$f":"G540","v":1}]
[null,null,{"$f":"T('2 REPAIR ESTIMATOR'!D538:O538)","v":"Landscaping bid/allowance, trees, bushes, flowers"},{"$nulls":3},{"$f":"'2 REPAIR ESTIMATOR'!P538","v":1},{"$f":"T('2 REPAIR ESTIMATOR'!S538)","v":"ls"},{"$f":"'2 REPAIR ESTIMATOR'!AQ538","v":{"v":571,"d":"$571"}},{"$nulls":11},1]
[null,null,{"$f":"T('2 REPAIR ESTIMATOR'!D539:O539)","v":"Sod"},{"$nulls":3},{"$f":"'2 REPAIR ESTIMATOR'!P539","v":0},{"$f":"T('2 REPAIR ESTIMATOR'!S539)","v":"sf"},{"$f":"'2 REPAIR ESTIMATOR'!AQ539","v":{"v":0,"d":"$0"}},{"$nulls":11},0]
[null,null,{"$f":"T('2 REPAIR ESTIMATOR'!D540:O540)","v":"Seeding"},{"$nulls":3},{"$f":"'2 REPAIR ESTIMATOR'!P540","v":0},{"$f":"T('2 REPAIR ESTIMATOR'!S540)","v":"sf"},{"$f":"'2 REPAIR ESTIMATOR'!AQ540","v":{"v":0,"d":"$0"}},{"$nulls":11},0]
[null,null,{"$f":"T('2 REPAIR ESTIMATOR'!D541:O541)","v":"Shrubs/plantings, 1 gallon"},{"$nulls":3},{"$f":"'2 REPAIR ESTIMATOR'!P541","v":0},{"$f":"T('2 REPAIR ESTIMATOR'!S541)","v":"ea"},{"$f":"'2 REPAIR ESTIMATOR'!AQ541","v":{"v":0,"d":"$0"}},{"$nulls":11},0]
[null,null,{"$f":"T('2 REPAIR ESTIMATOR'!D542:O542)","v":"Shrubs/plantings, 2 gallon"},{"$nulls":3},{"$f":"'2 REPAIR ESTIMATOR'!P542","v":0},{"$f":"T('2 REPAIR ESTIMATOR'!S542)","v":"ea"},{"$f":"'2 REPAIR ESTIMATOR'!AQ542","v":{"v":0,"d":"$0"}},{"$nulls":11},0]
[null,null,{"$f":"T('2 REPAIR ESTIMATOR'!D543:O543)","v":"Shrubs/plantings, 5 gallon"},{"$nulls":3},{"$f":"'2 REPAIR ESTIMATOR'!P543","v":0},{"$f":"T('2 REPAIR ESTIMATOR'!S543)","v":"ea"},{"$f":"'2 REPAIR ESTIMATOR'!AQ543","v":{"v":0,"d":"$0"}},{"$nulls":11},0]
[null,null,{"$f":"T('2 REPAIR ESTIMATOR'!D544:O544)","v":"Small trees, 1-2\" caliper, 10 gallon"},{"$nulls":3},{"$f":"'2 REPAIR ESTIMATOR'!P544","v":0},{"$f":"T('2 REPAIR ESTIMATOR'!S544)","v":"ea"},{"$f":"'2 REPAIR ESTIMATOR'!AQ544","v":{"v":0,"d":"$0"}},{"$nulls":11},0]
[null,null,{"$f":"T('2 REPAIR ESTIMATOR'!D545:O545)","v":"Small trees, 1-2\" 15 gallon"},{"$nulls":3},{"$f":"'2 REPAIR ESTIMATOR'!P545","v":0},{"$f":"T('2 REPAIR ESTIMATOR'!S545)","v":"ea"},{"$f":"'2 REPAIR ESTIMATOR'!AQ545","v":{"v":0,"d":"$0"}},{"$nulls":11},0]
[null,null,{"$f":"T('2 REPAIR ESTIMATOR'!D546:O546)","v":"36\" box tree"},{"$nulls":3},{"$f":"'2 REPAIR ESTIMATOR'!P546","v":0},{"$f":"T('2 REPAIR ESTIMATOR'!S546)","v":"ea"},{"$f":"'2 REPAIR ESTIMATOR'!AQ546","v":{"v":0,"d":"$0"}},{"$nulls":11},0]
[null,null,{"$f":"T('2 REPAIR ESTIMATOR'!D547:O547)","v":"Mulch, standard 3\" thick"},{"$nulls":3},{"$f":"'2 REPAIR ESTIMATOR'!P547","v":0},{"$f":"T('2 REPAIR ESTIMATOR'!S547)","v":"sf"},{"$f":"'2 REPAIR ESTIMATOR'!AQ547","v":{"v":0,"d":"$0"}},{"$nulls":11},0]
[null,null,{"$f":"T('2 REPAIR ESTIMATOR'!D548:O548)","v":"Landscape rock, 3/4\""},{"$nulls":3},{"$f":"'2 REPAIR ESTIMATOR'!P548","v":0},{"$f":"T('2 REPAIR ESTIMATOR'!S548)","v":"sf"},{"$f":"'2 REPAIR ESTIMATOR'!AQ548","v":{"v":0,"d":"$0"}},{"$nulls":11},0]
[null,null,{"$f":"T('2 REPAIR ESTIMATOR'!D549:O549)","v":"Cobble stone rock"},{"$nulls":3},{"$f":"'2 REPAIR ESTIMATOR'!P549","v":0},{"$f":"T('2 REPAIR ESTIMATOR'!S549)","v":"sf"},{"$f":"'2 REPAIR ESTIMATOR'!AQ549","v":{"v":0,"d":"$0"}},{"$nulls":11},0]
[null,null,{"$f":"T('2 REPAIR ESTIMATOR'!D550:O550)","v":"Tree removal, per tree"},{"$nulls":3},{"$f":"'2 REPAIR ESTIMATOR'!P550","v":0},{"$f":"T('2 REPAIR ESTIMATOR'!S550)","v":"ea"},{"$f":"'2 REPAIR ESTIMATOR'!AQ550","v":{"v":0,"d":"$0"}},{"$nulls":11},0]
[null,null,{"$f":"T('2 REPAIR ESTIMATOR'!D551:O551)","v":"Stacked, retaining wall"},{"$nulls":3},{"$f":"'2 REPAIR ESTIMATOR'!P551","v":0},{"$f":"T('2 REPAIR ESTIMATOR'!S551)","v":"sf"},{"$f":"'2 REPAIR ESTIMATOR'!AQ551","v":{"v":0,"d":"$0"}},{"$nulls":11},0]
[null,null,{"$f":"T('2 REPAIR ESTIMATOR'!D552:O552)","v":""},{"$nulls":3},{"$f":"'2 REPAIR ESTIMATOR'!P552","v":0},{"$f":"T('2 REPAIR ESTIMATOR'!S552)","v":""},{"$f":"'2 REPAIR ESTIMATOR'!AQ552","v":{"v":0,"d":"$0"}},{"$nulls":11},0]
[null,null,{"$f":"T('2 REPAIR ESTIMATOR'!D553:O553)","v":""},{"$nulls":3},{"$f":"'2 REPAIR ESTIMATOR'!P553","v":0},{"$f":"T('2 REPAIR ESTIMATOR'!S553)","v":""},{"$f":"'2 REPAIR ESTIMATOR'!AQ553","v":{"v":0,"d":"$0"}},{"$nulls":11},0]
[null,null,{"$f":"T('2 REPAIR ESTIMATOR'!D554:O554)","v":""},{"$nulls":3},{"$f":"'2 REPAIR ESTIMATOR'!P554","v":0},{"$f":"T('2 REPAIR ESTIMATOR'!S554)","v":""},{"$f":"'2 REPAIR ESTIMATOR'!AQ554","v":{"v":0,"d":"$0"}},{"$nulls":11},0]
[null,null,{"$f":"T('2 REPAIR ESTIMATOR'!D555:O555)","v":""},{"$nulls":3},{"$f":"'2 REPAIR ESTIMATOR'!P555","v":0},{"$f":"T('2 REPAIR ESTIMATOR'!S555)","v":""},{"$f":"'2 REPAIR ESTIMATOR'!AQ555","v":{"v":0,"d":"$0"}},{"$nulls":11},0]
[null,null,{"$f":"T('2 REPAIR ESTIMATOR'!D556:O556)","v":""},{"$nulls":3},{"$f":"'2 REPAIR ESTIMATOR'!P556","v":0},{"$f":"T('2 REPAIR ESTIMATOR'!S556)","v":""},{"$f":"'2 REPAIR ESTIMATOR'!AQ556","v":{"v":0,"d":"$0"}},{"$nulls":11},0]
[null,null,{"$f":"T('2 REPAIR ESTIMATOR'!D557:O557)","v":""},{"$nulls":3},{"$f":"'2 REPAIR ESTIMATOR'!P557","v":0},{"$f":"T('2 REPAIR ESTIMATOR'!S557)","v":""},{"$f":"'2 REPAIR ESTIMATOR'!AQ557","v":{"v":0,"d":"$0"}},{"$nulls":11},0]
[null,null,{"$f":"T('2 REPAIR ESTIMATOR'!D558:O558)","v":""},{"$nulls":3},{"$f":"'2 REPAIR ESTIMATOR'!P558","v":0},{"$f":"T('2 REPAIR ESTIMATOR'!S558)","v":""},{"$f":"'2 REPAIR ESTIMATOR'!AQ558","v":{"v":0,"d":"$0"}},{"$nulls":11},0]
[null,null,{"$f":"T('2 REPAIR ESTIMATOR'!D559:O559)","v":""},{"$nulls":3},{"$f":"'2 REPAIR ESTIMATOR'!P559","v":0},{"$f":"T('2 REPAIR ESTIMATOR'!S559)","v":""},{"$f":"'2 REPAIR ESTIMATOR'!AQ559","v":{"v":0,"d":"$0"}},{"$nulls":11},0]
[null,null,{"$f":"T('2 REPAIR ESTIMATOR'!D560:O560)","v":""},{"$nulls":3},{"$f":"'2 REPAIR ESTIMATOR'!P560","v":0},{"$f":"T('2 REPAIR ESTIMATOR'!S560)","v":""},{"$f":"'2 REPAIR ESTIMATOR'!AQ560","v":{"v":0,"d":"$0"}},{"$nulls":11},0]
[null,null,{"$f":"T('2 REPAIR ESTIMATOR'!D561:O561)","v":""},{"$nulls":3},{"$f":"'2 REPAIR ESTIMATOR'!P561","v":0},{"$f":"T('2 REPAIR ESTIMATOR'!S561)","v":""},{"$f":"'2 REPAIR ESTIMATOR'!AQ561","v":{"v":0,"d":"$0"}},{"$nulls":11},0]
[null,null,{"$f":"T('2 REPAIR ESTIMATOR'!D562:O562)","v":""},{"$nulls":3},{"$f":"'2 REPAIR ESTIMATOR'!P562","v":0},{"$f":"T('2 REPAIR ESTIMATOR'!S562)","v":""},{"$f":"'2 REPAIR ESTIMATOR'!AQ562","v":{"v":0,"d":"$0"}},{"$nulls":11},0]
[null,null,{"$f":"T('2 REPAIR ESTIMATOR'!D563:O563)","v":""},{"$nulls":3},{"$f":"'2 REPAIR ESTIMATOR'!P563","v":0},{"$f":"T('2 REPAIR ESTIMATOR'!S563)","v":""},{"$f":"'2 REPAIR ESTIMATOR'!AQ563","v":{"v":0,"d":"$0"}},{"$nulls":11},0]
[null,null,{"$f":"T('2 REPAIR ESTIMATOR'!D564:O564)","v":""},{"$nulls":3},{"$f":"'2 REPAIR ESTIMATOR'!P564","v":0},{"$f":"T('2 REPAIR ESTIMATOR'!S564)","v":""},{"$f":"'2 REPAIR ESTIMATOR'!AQ564","v":{"v":0,"d":"$0"}},{"$nulls":11},0]
[null,null,{"$f":"T('2 REPAIR ESTIMATOR'!D565:O565)","v":""},{"$nulls":3},{"$f":"'2 REPAIR ESTIMATOR'!P565","v":0},{"$f":"T('2 REPAIR ESTIMATOR'!S565)","v":""},{"$f":"'2 REPAIR ESTIMATOR'!AQ565","v":{"v":0,"d":"$0"}},{"$nulls":11},0]
[null,null,{"$f":"T('2 REPAIR ESTIMATOR'!D566:O566)","v":""},{"$nulls":3},{"$f":"'2 REPAIR ESTIMATOR'!P566","v":0},{"$f":"T('2 REPAIR ESTIMATOR'!S566)","v":""},{"$f":"'2 REPAIR ESTIMATOR'!AQ566","v":{"v":0,"d":"$0"}},{"$nulls":11},0]
[null,null,{"$f":"T('2 REPAIR ESTIMATOR'!D567:O567)","v":""},{"$nulls":3},{"$f":"'2 REPAIR ESTIMATOR'!P567","v":0},{"$f":"T('2 REPAIR ESTIMATOR'!S567)","v":""},{"$f":"'2 REPAIR ESTIMATOR'!AQ567","v":{"v":0,"d":"$0"}},{"$nulls":11},0]
[null,null,{"$f":"T('2 REPAIR ESTIMATOR'!D568:O568)","v":""},{"$nulls":3},{"$f":"'2 REPAIR ESTIMATOR'!P568","v":0},{"$f":"T('2 REPAIR ESTIMATOR'!S568)","v":""},{"$f":"'2 REPAIR ESTIMATOR'!AQ568","v":{"v":0,"d":"$0"}},{"$nulls":11},0]
[null,null,{"$f":"T('2 REPAIR ESTIMATOR'!D569:O569)","v":""},{"$nulls":3},{"$f":"'2 REPAIR ESTIMATOR'!P569","v":0},{"$f":"T('2 REPAIR ESTIMATOR'!S569)","v":""},{"$f":"'2 REPAIR ESTIMATOR'!AQ569","v":{"v":0,"d":"$0"}},{"$nulls":11},0]
[null,null,{"$f":"T('2 REPAIR ESTIMATOR'!D570:O570)","v":""},{"$nulls":3},{"$f":"'2 REPAIR ESTIMATOR'!P570","v":0},{"$f":"T('2 REPAIR ESTIMATOR'!S570)","v":""},{"$f":"'2 REPAIR ESTIMATOR'!AQ570","v":{"v":0,"d":"$0"}},{"$nulls":11},0]
[null,null,{"$f":"T('2 REPAIR ESTIMATOR'!D571:O571)","v":""},{"$nulls":3},{"$f":"'2 REPAIR ESTIMATOR'!P571","v":0},{"$f":"T('2 REPAIR ESTIMATOR'!S571)","v":""},{"$f":"'2 REPAIR ESTIMATOR'!AQ571","v":{"v":0,"d":"$0"}},{"$nulls":11},0]
[null,null,{"$f":"T('2 REPAIR ESTIMATOR'!D572:O572)","v":""},{"$nulls":3},{"$f":"'2 REPAIR ESTIMATOR'!P572","v":0},{"$f":"T('2 REPAIR ESTIMATOR'!S572)","v":""},{"$f":"'2 REPAIR ESTIMATOR'!AQ572","v":{"v":0,"d":"$0"}},{"$nulls":11},0]
[null,null,{"$f":"T('2 REPAIR ESTIMATOR'!D573:O573)","v":""},{"$nulls":3},{"$f":"'2 REPAIR ESTIMATOR'!P573","v":0},{"$f":"T('2 REPAIR ESTIMATOR'!S573)","v":""},{"$f":"'2 REPAIR ESTIMATOR'!AQ573","v":{"v":0,"d":"$0"}},{"$nulls":11},0]
[null,null,{"$f":"T('2 REPAIR ESTIMATOR'!D574:O574)","v":""},{"$nulls":3},{"$f":"'2 REPAIR ESTIMATOR'!P574","v":0},{"$f":"T('2 REPAIR ESTIMATOR'!S574)","v":""},{"$f":"'2 REPAIR ESTIMATOR'!AQ574","v":{"v":0,"d":"$0"}},{"$nulls":11},0]
[null,null,{"$f":"T('2 REPAIR ESTIMATOR'!D575:O575)","v":""},{"$nulls":3},{"$f":"'2 REPAIR ESTIMATOR'!P575","v":0},{"$f":"T('2 REPAIR ESTIMATOR'!S575)","v":""},{"$f":"'2 REPAIR ESTIMATOR'!AQ575","v":{"v":0,"d":"$0"}},{"$nulls":11},0]
[null,null,{"$f":"T('2 REPAIR ESTIMATOR'!D576:O576)","v":""},{"$nulls":3},{"$f":"'2 REPAIR ESTIMATOR'!P576","v":0},{"$f":"T('2 REPAIR ESTIMATOR'!S576)","v":""},{"$f":"'2 REPAIR ESTIMATOR'!AQ576","v":{"v":0,"d":"$0"}},{"$nulls":11},0]
[null,null,{"$f":"T('2 REPAIR ESTIMATOR'!D577:O577)","v":""},{"$nulls":3},{"$f":"'2 REPAIR ESTIMATOR'!P577","v":0},{"$f":"T('2 REPAIR ESTIMATOR'!S577)","v":""},{"$f":"'2 REPAIR ESTIMATOR'!AQ577","v":{"v":0,"d":"$0"}},{"$nulls":11},0]
[{"$nulls":20},{"$f":"IF(I582>0,1,0)","v":1}]
[null,null,{"$f":"CONCATENATE(C540,\" SUBTOTAL\")","v":"LANDSCAPING SUBTOTAL"},{"$nulls":5},{"$f":"SUM(I540:J581)","v":{"v":571,"d":"$571"}},{"$f":"SUM(J533:J580)","v":{"v":0,"d":"$0"}},{"$f":"SUM(K540:L581)","v":{"v":0,"d":"$0"}},{"$f":"SUM(L533:L580)","v":{"v":0,"d":"$0"}},{"$f":"SUM(M540:N581)","v":{"v":0,"d":"$0"}},{"$f":"SUM(N533:N580)","v":{"v":0,"d":"$0"}},{"$f":"SUM(O540:P581)","v":{"v":0,"d":"$0"}},{"$f":"SUM(P533:P580)","v":{"v":0,"d":"$0"}},{"$f":"SUM(Q540:R581)","v":{"v":0,"d":"$0"}},{"$f":"SUM(R533:R580)","v":{"v":0,"d":"$0"}},{"$f":"SUM(S540:T581)","v":{"v":0,"d":"$0"}},{"$f":"SUM(T533:T580)","v":{"v":0,"d":"$0"}},{"$f":"SUM(U540:U581)","v":3}]
[null,null,"Contractor Exclusions:",{"$nulls":17},{"$f":"U582","v":3}]
[{"$nulls":20},{"$f":"U582","v":3}]
[{"$nulls":20},{"$f":"U582","v":3}]
[{"$nulls":20},{"$f":"U582","v":3}]
[{"$nulls":20},{"$f":"U582","v":3}]
[{"$nulls":20},{"$f":"U582","v":3}]
[{"$nulls":20},{"$f":"IF(I590>0,1,0)","v":1}]
[null,null,{"$f":"CONCATENATE(C540,\" TOTAL\")","v":"LANDSCAPING TOTAL"},{"$nulls":5},{"$f":"I582","v":{"v":571,"d":"$571"}},{"$f":"SUM(J539:J589)","v":{"v":0,"d":"$0"}},{"$f":"K582+SUM(K583:L589)","v":{"v":0,"d":"$0"}},{"$f":"SUM(L539:L589)","v":{"v":0,"d":"$0"}},{"$f":"M582+SUM(M583:N589)","v":{"v":0,"d":"$0"}},{"$f":"SUM(N539:N589)","v":{"v":0,"d":"$0"}},{"$f":"O582+SUM(O583:P589)","v":{"v":0,"d":"$0"}},{"$f":"SUM(P539:P589)","v":{"v":0,"d":"$0"}},{"$f":"Q582+SUM(Q583:R589)","v":{"v":0,"d":"$0"}},{"$f":"SUM(R539:R589)","v":{"v":0,"d":"$0"}},{"$f":"S582+SUM(S583:T589)","v":{"v":0,"d":"$0"}},{"$f":"SUM(T539:T589)","v":{"v":0,"d":"$0"}},{"$f":"U582+SUM(U583:U589)","v":22}]
[{"$nulls":20},{"$f":"U590","v":22}]
[null,null,{"$f":"T('2 REPAIR ESTIMATOR'!D582:O582)","v":"MISC. EXTERIOR ITEMS"},{"$nulls":3},{"$f":"SUM(G593:G632)","v":8},{"$nulls":3},"Bidder Name",null,"Bidder Name",null,"Bidder Name",null,"Bidder Name",null,"Bidder Name",null,{"$f":"G592","v":8}]
[null,null,{"$f":"T('2 REPAIR ESTIMATOR'!D583:O583)","v":"Misc. Ext Improvements bid/allowance"},{"$nulls":3},{"$f":"'2 REPAIR ESTIMATOR'!P583","v":0},{"$f":"T('2 REPAIR ESTIMATOR'!S583)","v":"ls"},{"$f":"'2 REPAIR ESTIMATOR'!AQ583","v":{"v":0,"d":"$0"}},{"$nulls":11},0]
[null,null,{"$f":"T('2 REPAIR ESTIMATOR'!D584:O584)","v":"Miscellaneous Improvements"},{"$nulls":3},{"$f":"'2 REPAIR ESTIMATOR'!P584","v":0},{"$f":"T('2 REPAIR ESTIMATOR'!S584)","v":""},{"$f":"'2 REPAIR ESTIMATOR'!AQ584","v":{"v":0,"d":"$0"}},{"$nulls":11},0]
[null,null,{"$f":"T('2 REPAIR ESTIMATOR'!D585:O585)","v":"New mailbox"},{"$nulls":3},{"$f":"'2 REPAIR ESTIMATOR'!P585","v":1},{"$f":"T('2 REPAIR ESTIMATOR'!S585)","v":"ea"},{"$f":"'2 REPAIR ESTIMATOR'!AQ585","v":{"v":157,"d":"$157"}},{"$nulls":11},1]
[null,null,{"$f":"T('2 REPAIR ESTIMATOR'!D586:O586)","v":"New address #"},{"$nulls":3},{"$f":"'2 REPAIR ESTIMATOR'!P586","v":1},{"$f":"T('2 REPAIR ESTIMATOR'!S586)","v":"ea"},{"$f":"'2 REPAIR ESTIMATOR'!AQ586","v":{"v":67.80000000000001,"d":"$68"}},{"$nulls":11},1]
[null,null,{"$f":"T('2 REPAIR ESTIMATOR'!D587:O587)","v":"Shutters"},{"$nulls":3},{"$f":"'2 REPAIR ESTIMATOR'!P587","v":6},{"$f":"T('2 REPAIR ESTIMATOR'!S587)","v":"ea"},{"$f":"'2 REPAIR ESTIMATOR'!AQ587","v":{"v":406.8,"d":"$407"}},{"$nulls":11},6]
[null,null,{"$f":"T('2 REPAIR ESTIMATOR'!D588:O588)","v":""},{"$nulls":3},{"$f":"'2 REPAIR ESTIMATOR'!P588","v":0},{"$f":"T('2 REPAIR ESTIMATOR'!S588)","v":""},{"$f":"'2 REPAIR ESTIMATOR'!AQ588","v":{"v":0,"d":"$0"}},{"$nulls":11},0]
[null,null,{"$f":"T('2 REPAIR ESTIMATOR'!D589:O589)","v":"Fencing"},{"$nulls":3},{"$f":"'2 REPAIR ESTIMATOR'!P589","v":0},{"$f":"T('2 REPAIR ESTIMATOR'!S589)","v":""},{"$f":"'2 REPAIR ESTIMATOR'!AQ589","v":{"v":0,"d":"$0"}},{"$nulls":11},0]
[null,null,{"$f":"T('2 REPAIR ESTIMATOR'!D590:O590)","v":"Chain link fencing"},{"$nulls":3},{"$f":"'2 REPAIR ESTIMATOR'!P590","v":0},{"$f":"T('2 REPAIR ESTIMATOR'!S590)","v":"lf"},{"$f":"'2 REPAIR ESTIMATOR'!AQ590","v":{"v":0,"d":"$0"}},{"$nulls":11},0]
[null,null,{"$f":"T('2 REPAIR ESTIMATOR'!D591:O591)","v":"Wood fencing"},{"$nulls":3},{"$f":"'2 REPAIR ESTIMATOR'!P591","v":0},{"$f":"T('2 REPAIR ESTIMATOR'!S591)","v":"lf"},{"$f":"'2 REPAIR ESTIMATOR'!AQ591","v":{"v":0,"d":"$0"}},{"$nulls":11},0]
[null,null,{"$f":"T('2 REPAIR ESTIMATOR'!D592:O592)","v":""},{"$nulls":3},{"$f":"'2 REPAIR ESTIMATOR'!P592","v":0},{"$f":"T('2 REPAIR ESTIMATOR'!S592)","v":""},{"$f":"'2 REPAIR ESTIMATOR'!AQ592","v":{"v":0,"d":"$0"}},{"$nulls":11},0]
[null,null,{"$f":"T('2 REPAIR ESTIMATOR'!D593:O593)","v":"Misc. Exterior Structures"},{"$nulls":3},{"$f":"'2 REPAIR ESTIMATOR'!P593","v":0},{"$f":"T('2 REPAIR ESTIMATOR'!S593)","v":""},{"$f":"'2 REPAIR ESTIMATOR'!AQ593","v":{"v":0,"d":"$0"}},{"$nulls":11},0]
[null,null,{"$f":"T('2 REPAIR ESTIMATOR'!D594:O594)","v":"Premanufactured carport"},{"$nulls":3},{"$f":"'2 REPAIR ESTIMATOR'!P594","v":0},{"$f":"T('2 REPAIR ESTIMATOR'!S594)","v":"ea"},{"$f":"'2 REPAIR ESTIMATOR'!AQ594","v":{"v":0,"d":"$0"}},{"$nulls":11},0]
[null,null,{"$f":"T('2 REPAIR ESTIMATOR'!D595:O595)","v":"Storage shed, wood"},{"$nulls":3},{"$f":"'2 REPAIR ESTIMATOR'!P595","v":0},{"$f":"T('2 REPAIR ESTIMATOR'!S595)","v":"ea"},{"$f":"'2 REPAIR ESTIMATOR'!AQ595","v":{"v":0,"d":"$0"}},{"$nulls":11},0]
[null,null,{"$f":"T('2 REPAIR ESTIMATOR'!D596:O596)","v":"Gazebo"},{"$nulls":3},{"$f":"'2 REPAIR ESTIMATOR'!P596","v":0},{"$f":"T('2 REPAIR ESTIMATOR'!S596)","v":"sf"},{"$f":"'2 REPAIR ESTIMATOR'!AQ596","v":{"v":0,"d":"$0"}},{"$nulls":11},0]
[null,null,{"$f":"T('2 REPAIR ESTIMATOR'!D597:O597)","v":""},{"$nulls":3},{"$f":"'2 REPAIR ESTIMATOR'!P597","v":0},{"$f":"T('2 REPAIR ESTIMATOR'!S597)","v":""},{"$f":"'2 REPAIR ESTIMATOR'!AQ597","v":{"v":0,"d":"$0"}},{"$nulls":11},0]
[null,null,{"$f":"T('2 REPAIR ESTIMATOR'!D598:O598)","v":"Pools"},{"$nulls":3},{"$f":"'2 REPAIR ESTIMATOR'!P598","v":0},{"$f":"T('2 REPAIR ESTIMATOR'!S598)","v":""},{"$f":"'2 REPAIR ESTIMATOR'!AQ598","v":{"v":0,"d":"$0"}},{"$nulls":11},0]
[null,null,{"$f":"T('2 REPAIR ESTIMATOR'!D599:O599)","v":"New Pool structure"},{"$nulls":3},{"$f":"'2 REPAIR ESTIMATOR'!P599","v":0},{"$f":"T('2 REPAIR ESTIMATOR'!S599)","v":"sf"},{"$f":"'2 REPAIR ESTIMATOR'!AQ599","v":{"v":0,"d":"$0"}},{"$nulls":11},0]
[null,null,{"$f":"T('2 REPAIR ESTIMATOR'!D600:O600)","v":"Pool heater/motor"},{"$nulls":3},{"$f":"'2 REPAIR ESTIMATOR'!P600","v":0},{"$f":"T('2 REPAIR ESTIMATOR'!S600)","v":"ea"},{"$f":"'2 REPAIR ESTIMATOR'!AQ600","v":{"v":0,"d":"$0"}},{"$nulls":11},0]
[null,null,{"$f":"T('2 REPAIR ESTIMATOR'!D601:O601)","v":"Pool filter system"},{"$nulls":3},{"$f":"'2 REPAIR ESTIMATOR'!P601","v":0},{"$f":"T('2 REPAIR ESTIMATOR'!S601)","v":"ea"},{"$f":"'2 REPAIR ESTIMATOR'!AQ601","v":{"v":0,"d":"$0"}},{"$nulls":11},0]
[null,null,{"$f":"T('2 REPAIR ESTIMATOR'!D602:O602)","v":"Replaster existing pool wall"},{"$nulls":3},{"$f":"'2 REPAIR ESTIMATOR'!P602","v":0},{"$f":"T('2 REPAIR ESTIMATOR'!S602)","v":"sf"},{"$f":"'2 REPAIR ESTIMATOR'!AQ602","v":{"v":0,"d":"$0"}},{"$nulls":11},0]
[null,null,{"$f":"T('2 REPAIR ESTIMATOR'!D603:O603)","v":""},{"$nulls":3},{"$f":"'2 REPAIR ESTIMATOR'!P603","v":0},{"$f":"T('2 REPAIR ESTIMATOR'!S603)","v":""},{"$f":"'2 REPAIR ESTIMATOR'!AQ603","v":{"v":0,"d":"$0"}},{"$nulls":11},0]
[null,null,{"$f":"T('2 REPAIR ESTIMATOR'!D604:O604)","v":""},{"$nulls":3},{"$f":"'2 REPAIR ESTIMATOR'!P604","v":0},{"$f":"T('2 REPAIR ESTIMATOR'!S604)","v":""},{"$f":"'2 REPAIR ESTIMATOR'!AQ604","v":{"v":0,"d":"$0"}},{"$nulls":11},0]
[null,null,{"$f":"T('2 REPAIR ESTIMATOR'!D605:O605)","v":""},{"$nulls":3},{"$f":"'2 REPAIR ESTIMATOR'!P605","v":0},{"$f":"T('2 REPAIR ESTIMATOR'!S605)","v":""},{"$f":"'2 REPAIR ESTIMATOR'!AQ605","v":{"v":0,"d":"$0"}},{"$nulls":11},0]
[null,null,{"$f":"T('2 REPAIR ESTIMATOR'!D606:O606)","v":""},{"$nulls":3},{"$f":"'2 REPAIR ESTIMATOR'!P606","v":0},{"$f":"T('2 REPAIR ESTIMATOR'!S606)","v":""},{"$f":"'2 REPAIR ESTIMATOR'!AQ606","v":{"v":0,"d":"$0"}},{"$nulls":11},0]
[null,null,{"$f":"T('2 REPAIR ESTIMATOR'!D607:O607)","v":""},{"$nulls":3},{"$f":"'2 REPAIR ESTIMATOR'!P607","v":0},{"$f":"T('2 REPAIR ESTIMATOR'!S607)","v":""},{"$f":"'2 REPAIR ESTIMATOR'!AQ607","v":{"v":0,"d":"$0"}},{"$nulls":11},0]
[null,null,{"$f":"T('2 REPAIR ESTIMATOR'!D608:O608)","v":""},{"$nulls":3},{"$f":"'2 REPAIR ESTIMATOR'!P608","v":0},{"$f":"T('2 REPAIR ESTIMATOR'!S608)","v":""},{"$f":"'2 REPAIR ESTIMATOR'!AQ608","v":{"v":0,"d":"$0"}},{"$nulls":11},0]
[null,null,{"$f":"T('2 REPAIR ESTIMATOR'!D609:O609)","v":""},{"$nulls":3},{"$f":"'2 REPAIR ESTIMATOR'!P609","v":0},{"$f":"T('2 REPAIR ESTIMATOR'!S609)","v":""},{"$f":"'2 REPAIR ESTIMATOR'!AQ609","v":{"v":0,"d":"$0"}},{"$nulls":11},0]
[null,null,{"$f":"T('2 REPAIR ESTIMATOR'!D610:O610)","v":""},{"$nulls":3},{"$f":"'2 REPAIR ESTIMATOR'!P610","v":0},{"$f":"T('2 REPAIR ESTIMATOR'!S610)","v":""},{"$f":"'2 REPAIR ESTIMATOR'!AQ610","v":{"v":0,"d":"$0"}},{"$nulls":11},0]
[null,null,{"$f":"T('2 REPAIR ESTIMATOR'!D611:O611)","v":""},{"$nulls":3},{"$f":"'2 REPAIR ESTIMATOR'!P611","v":0},{"$f":"T('2 REPAIR ESTIMATOR'!S611)","v":""},{"$f":"'2 REPAIR ESTIMATOR'!AQ611","v":{"v":0,"d":"$0"}},{"$nulls":11},0]
[null,null,{"$f":"T('2 REPAIR ESTIMATOR'!D612:O612)","v":""},{"$nulls":3},{"$f":"'2 REPAIR ESTIMATOR'!P612","v":0},{"$f":"T('2 REPAIR ESTIMATOR'!S612)","v":""},{"$f":"'2 REPAIR ESTIMATOR'!AQ612","v":{"v":0,"d":"$0"}},{"$nulls":11},0]
[null,null,{"$f":"T('2 REPAIR ESTIMATOR'!D613:O613)","v":""},{"$nulls":3},{"$f":"'2 REPAIR ESTIMATOR'!P613","v":0},{"$f":"T('2 REPAIR ESTIMATOR'!S613)","v":""},{"$f":"'2 REPAIR ESTIMATOR'!AQ613","v":{"v":0,"d":"$0"}},{"$nulls":11},0]
[null,null,{"$f":"T('2 REPAIR ESTIMATOR'!D614:O614)","v":""},{"$nulls":3},{"$f":"'2 REPAIR ESTIMATOR'!P614","v":0},{"$f":"T('2 REPAIR ESTIMATOR'!S614)","v":""},{"$f":"'2 REPAIR ESTIMATOR'!AQ614","v":{"v":0,"d":"$0"}},{"$nulls":11},0]
[null,null,{"$f":"T('2 REPAIR ESTIMATOR'!D615:O615)","v":""},{"$nulls":3},{"$f":"'2 REPAIR ESTIMATOR'!P615","v":0},{"$f":"T('2 REPAIR ESTIMATOR'!S615)","v":""},{"$f":"'2 REPAIR ESTIMATOR'!AQ615","v":{"v":0,"d":"$0"}},{"$nulls":11},0]
[null,null,{"$f":"T('2 REPAIR ESTIMATOR'!D616:O616)","v":""},{"$nulls":3},{"$f":"'2 REPAIR ESTIMATOR'!P616","v":0},{"$f":"T('2 REPAIR ESTIMATOR'!S616)","v":""},{"$f":"'2 REPAIR ESTIMATOR'!AQ616","v":{"v":0,"d":"$0"}},{"$nulls":11},0]
[null,null,{"$f":"T('2 REPAIR ESTIMATOR'!D617:O617)","v":""},{"$nulls":3},{"$f":"'2 REPAIR ESTIMATOR'!P617","v":0},{"$f":"T('2 REPAIR ESTIMATOR'!S617)","v":""},{"$f":"'2 REPAIR ESTIMATOR'!AQ617","v":{"v":0,"d":"$0"}},{"$nulls":11},0]
[null,null,{"$f":"T('2 REPAIR ESTIMATOR'!D618:O618)","v":""},{"$nulls":3},{"$f":"'2 REPAIR ESTIMATOR'!P618","v":0},{"$f":"T('2 REPAIR ESTIMATOR'!S618)","v":""},{"$f":"'2 REPAIR ESTIMATOR'!AQ618","v":{"v":0,"d":"$0"}},{"$nulls":11},0]
[null,null,{"$f":"T('2 REPAIR ESTIMATOR'!D619:O619)","v":""},{"$nulls":3},{"$f":"'2 REPAIR ESTIMATOR'!P619","v":0},{"$f":"T('2 REPAIR ESTIMATOR'!S619)","v":""},{"$f":"'2 REPAIR ESTIMATOR'!AQ619","v":{"v":0,"d":"$0"}},{"$nulls":11},0]
[null,null,{"$f":"T('2 REPAIR ESTIMATOR'!D620:O620)","v":""},{"$nulls":3},{"$f":"'2 REPAIR ESTIMATOR'!P620","v":0},{"$f":"T('2 REPAIR ESTIMATOR'!S620)","v":""},{"$f":"'2 REPAIR ESTIMATOR'!AQ620","v":{"v":0,"d":"$0"}},{"$nulls":11},0]
[null,null,{"$f":"T('2 REPAIR ESTIMATOR'!D621:O621)","v":""},{"$nulls":3},{"$f":"'2 REPAIR ESTIMATOR'!P621","v":0},{"$f":"T('2 REPAIR ESTIMATOR'!S621)","v":""},{"$f":"'2 REPAIR ESTIMATOR'!AQ621","v":{"v":0,"d":"$0"}},{"$nulls":11},0]
[null,null,{"$f":"T('2 REPAIR ESTIMATOR'!D622:O622)","v":""},{"$nulls":3},{"$f":"'2 REPAIR ESTIMATOR'!P622","v":0},{"$f":"T('2 REPAIR ESTIMATOR'!S622)","v":""},{"$f":"'2 REPAIR ESTIMATOR'!AQ622","v":{"v":0,"d":"$0"}},{"$nulls":11},0]
[{"$nulls":20},{"$f":"IF(I634>0,1,0)","v":1}]
[null,null,{"$f":"CONCATENATE(C592,\" SUBTOTAL\")","v":"MISC. EXTERIOR ITEMS SUBTOTAL"},{"$nulls":5},{"$f":"SUM(I592:J633)","v":{"v":631.6,"d":"$632"}},{"$f":"SUM(J585:J632)","v":{"v":0,"d":"$0"}},{"$f":"SUM(K592:L633)","v":{"v":0,"d":"$0"}},{"$f":"SUM(L585:L632)","v":{"v":0,"d":"$0"}},{"$f":"SUM(M592:N633)","v":{"v":0,"d":"$0"}},{"$f":"SUM(N585:N632)","v":{"v":0,"d":"$0"}},{"$f":"SUM(O592:P633)","v":{"v":0,"d":"$0"}},{"$f":"SUM(P585:P632)","v":{"v":0,"d":"$0"}},{"$f":"SUM(Q592:R633)","v":{"v":0,"d":"$0"}},{"$f":"SUM(R585:R632)","v":{"v":0,"d":"$0"}},{"$f":"SUM(S592:T633)","v":{"v":0,"d":"$0"}},{"$f":"SUM(T585:T632)","v":{"v":0,"d":"$0"}},{"$f":"SUM(U592:U633)","v":17}]
[null,null,"Contractor Exclusions:",{"$nulls":17},{"$f":"U634","v":17}]
[{"$nulls":20},{"$f":"U634","v":17}]
[{"$nulls":20},{"$f":"U634","v":17}]
[{"$nulls":20},{"$f":"U634","v":17}]
[{"$nulls":20},{"$f":"U634","v":17}]
[{"$nulls":20},{"$f":"U634","v":17}]
[{"$nulls":20},{"$f":"IF(I642>0,1,0)","v":1}]
[null,null,{"$f":"CONCATENATE(C592,\" TOTAL\")","v":"MISC. EXTERIOR ITEMS TOTAL"},{"$nulls":5},{"$f":"I634","v":{"v":631.6,"d":"$632"}},{"$f":"SUM(J591:J641)","v":{"v":0,"d":"$0"}},{"$f":"K634+SUM(K635:L641)","v":{"v":0,"d":"$0"}},{"$f":"SUM(L591:L641)","v":{"v":0,"d":"$0"}},{"$f":"M634+SUM(M635:N641)","v":{"v":0,"d":"$0"}},{"$f":"SUM(N591:N641)","v":{"v":0,"d":"$0"}},{"$f":"O634+SUM(O635:P641)","v":{"v":0,"d":"$0"}},{"$f":"SUM(P591:P641)","v":{"v":0,"d":"$0"}},{"$f":"Q634+SUM(Q635:R641)","v":{"v":0,"d":"$0"}},{"$f":"SUM(R591:R641)","v":{"v":0,"d":"$0"}},{"$f":"S634+SUM(S635:T641)","v":{"v":0,"d":"$0"}},{"$f":"SUM(T591:T641)","v":{"v":0,"d":"$0"}},{"$f":"U634+SUM(U635:U641)","v":120}]
[{"$nulls":20},{"$f":"U642","v":120}]
[null,null,{"$f":"T('2 REPAIR ESTIMATOR'!D627:O627)","v":"FRAMING & DRYWALL"},{"$nulls":3},{"$f":"SUM(G645:G684)","v":1},{"$nulls":3},"Bidder Name",null,"Bidder Name",null,"Bidder Name",null,"Bidder Name",null,"Bidder Name",null,{"$f":"G644","v":1}]
[null,null,{"$f":"T('2 REPAIR ESTIMATOR'!D628:O628)","v":"Framing"},{"$nulls":3},{"$f":"'2 REPAIR ESTIMATOR'!P628","v":0},{"$f":"T('2 REPAIR ESTIMATOR'!S628)","v":""},{"$f":"'2 REPAIR ESTIMATOR'!AQ628","v":{"v":0,"d":"$0"}},{"$nulls":11},0]
[null,null,{"$f":"T('2 REPAIR ESTIMATOR'!D629:O629)","v":"Structural framing bid/allowance, case by case"},{"$nulls":3},{"$f":"'2 REPAIR ESTIMATOR'!P629","v":0},{"$f":"T('2 REPAIR ESTIMATOR'!S629)","v":"ls"},{"$f":"'2 REPAIR ESTIMATOR'!AQ629","v":{"v":0,"d":"$0"}},{"$nulls":11},0]
[null,null,{"$f":"T('2 REPAIR ESTIMATOR'!D630:O630)","v":"Subflooring, 3/4\" plywood"},{"$nulls":3},{"$f":"'2 REPAIR ESTIMATOR'!P630","v":0},{"$f":"T('2 REPAIR ESTIMATOR'!S630)","v":"sf"},{"$f":"'2 REPAIR ESTIMATOR'!AQ630","v":{"v":0,"d":"$0"}},{"$nulls":11},0]
[null,null,{"$f":"T('2 REPAIR ESTIMATOR'!D631:O631)","v":"Interior wall framing"},{"$nulls":3},{"$f":"'2 REPAIR ESTIMATOR'!P631","v":0},{"$f":"T('2 REPAIR ESTIMATOR'!S631)","v":"sf"},{"$f":"'2 REPAIR ESTIMATOR'!AQ631","v":{"v":0,"d":"$0"}},{"$nulls":11},0]
[null,null,{"$f":"T('2 REPAIR ESTIMATOR'!D632:O632)","v":"Structural/Exterior wall framing"},{"$nulls":3},{"$f":"'2 REPAIR ESTIMATOR'!P632","v":0},{"$f":"T('2 REPAIR ESTIMATOR'!S632)","v":"sf"},{"$f":"'2 REPAIR ESTIMATOR'!AQ632","v":{"v":0,"d":"$0"}},{"$nulls":11},0]
[null,null,{"$f":"T('2 REPAIR ESTIMATOR'!D633:O633)","v":"Rough-in openings"},{"$nulls":3},{"$f":"'2 REPAIR ESTIMATOR'!P633","v":0},{"$f":"T('2 REPAIR ESTIMATOR'!S633)","v":"ea"},{"$f":"'2 REPAIR ESTIMATOR'!AQ633","v":{"v":0,"d":"$0"}},{"$nulls":11},0]
[null,null,{"$f":"T('2 REPAIR ESTIMATOR'!D634:O634)","v":"Floor joists/ceiling joists"},{"$nulls":3},{"$f":"'2 REPAIR ESTIMATOR'!P634","v":0},{"$f":"T('2 REPAIR ESTIMATOR'!S634)","v":"sf"},{"$f":"'2 REPAIR ESTIMATOR'!AQ634","v":{"v":0,"d":"$0"}},{"$nulls":11},0]
[null,null,{"$f":"T('2 REPAIR ESTIMATOR'!D635:O635)","v":"Roof framing/rafters"},{"$nulls":3},{"$f":"'2 REPAIR ESTIMATOR'!P635","v":0},{"$f":"T('2 REPAIR ESTIMATOR'!S635)","v":"sf"},{"$f":"'2 REPAIR ESTIMATOR'!AQ635","v":{"v":0,"d":"$0"}},{"$nulls":11},0]
[null,null,{"$f":"T('2 REPAIR ESTIMATOR'!D636:O636)","v":"Open load bearing/structural wall"},{"$nulls":3},{"$f":"'2 REPAIR ESTIMATOR'!P636","v":0},{"$f":"T('2 REPAIR ESTIMATOR'!S636)","v":"ea"},{"$f":"'2 REPAIR ESTIMATOR'!AQ636","v":{"v":0,"d":"$0"}},{"$nulls":11},0]
[null,null,{"$f":"T('2 REPAIR ESTIMATOR'!D637:O637)","v":"Insulation"},{"$nulls":3},{"$f":"'2 REPAIR ESTIMATOR'!P637","v":0},{"$f":"T('2 REPAIR ESTIMATOR'!S637)","v":""},{"$f":"'2 REPAIR ESTIMATOR'!AQ637","v":{"v":0,"d":"$0"}},{"$nulls":11},0]
[null,null,{"$f":"T('2 REPAIR ESTIMATOR'!D638:O638)","v":"Insulation bid/allowance"},{"$nulls":3},{"$f":"'2 REPAIR ESTIMATOR'!P638","v":0},{"$f":"T('2 REPAIR ESTIMATOR'!S638)","v":"ls"},{"$f":"'2 REPAIR ESTIMATOR'!AQ638","v":{"v":0,"d":"$0"}},{"$nulls":11},0]
[null,null,{"$f":"T('2 REPAIR ESTIMATOR'!D639:O639)","v":"Wall insulation"},{"$nulls":3},{"$f":"'2 REPAIR ESTIMATOR'!P639","v":0},{"$f":"T('2 REPAIR ESTIMATOR'!S639)","v":"sf"},{"$f":"'2 REPAIR ESTIMATOR'!AQ639","v":{"v":0,"d":"$0"}},{"$nulls":11},0]
[null,null,{"$f":"T('2 REPAIR ESTIMATOR'!D640:O640)","v":"Floor insulation"},{"$nulls":3},{"$f":"'2 REPAIR ESTIMATOR'!P640","v":0},{"$f":"T('2 REPAIR ESTIMATOR'!S640)","v":"sf"},{"$f":"'2 REPAIR ESTIMATOR'!AQ640","v":{"v":0,"d":"$0"}},{"$nulls":11},0]
[null,null,{"$f":"T('2 REPAIR ESTIMATOR'!D641:O641)","v":"Attic insulation, blown-in"},{"$nulls":3},{"$f":"'2 REPAIR ESTIMATOR'!P641","v":0},{"$f":"T('2 REPAIR ESTIMATOR'!S641)","v":"sf"},{"$f":"'2 REPAIR ESTIMATOR'!AQ641","v":{"v":0,"d":"$0"}},{"$nulls":11},0]
[null,null,{"$f":"T('2 REPAIR ESTIMATOR'!D642:O642)","v":"Walls/Ceilings"},{"$nulls":3},{"$f":"'2 REPAIR ESTIMATOR'!P642","v":0},{"$f":"T('2 REPAIR ESTIMATOR'!S642)","v":""},{"$f":"'2 REPAIR ESTIMATOR'!AQ642","v":{"v":0,"d":"$0"}},{"$nulls":11},0]
[null,null,{"$f":"T('2 REPAIR ESTIMATOR'!D643:O643)","v":"Drywall bid/allowance, case by case"},{"$nulls":3},{"$f":"'2 REPAIR ESTIMATOR'!P643","v":1},{"$f":"T('2 REPAIR ESTIMATOR'!S643)","v":"ls"},{"$f":"'2 REPAIR ESTIMATOR'!AQ643","v":{"v":750,"d":"$750"}},{"$nulls":11},1]
[null,null,{"$f":"T('2 REPAIR ESTIMATOR'!D644:O644)","v":"Drywall wallboard, 1/2\" thick, finish one side"},{"$nulls":3},{"$f":"'2 REPAIR ESTIMATOR'!P644","v":0},{"$f":"T('2 REPAIR ESTIMATOR'!S644)","v":"sf"},{"$f":"'2 REPAIR ESTIMATOR'!AQ644","v":{"v":0,"d":"$0"}},{"$nulls":11},0]
[null,null,{"$f":"T('2 REPAIR ESTIMATOR'!D645:O645)","v":"Drywall ceilings, 1/2\" thick"},{"$nulls":3},{"$f":"'2 REPAIR ESTIMATOR'!P645","v":0},{"$f":"T('2 REPAIR ESTIMATOR'!S645)","v":"sf"},{"$f":"'2 REPAIR ESTIMATOR'!AQ645","v":{"v":0,"d":"$0"}},{"$nulls":11},0]
[null,null,{"$f":"T('2 REPAIR ESTIMATOR'!D646:O646)","v":"Skim coating/texturing walls"},{"$nulls":3},{"$f":"'2 REPAIR ESTIMATOR'!P646","v":0},{"$f":"T('2 REPAIR ESTIMATOR'!S646)","v":"sf"},{"$f":"'2 REPAIR ESTIMATOR'!AQ646","v":{"v":0,"d":"$0"}},{"$nulls":11},0]
[null,null,{"$f":"T('2 REPAIR ESTIMATOR'!D647:O647)","v":"Skim coating/texturing ceilings"},{"$nulls":3},{"$f":"'2 REPAIR ESTIMATOR'!P647","v":0},{"$f":"T('2 REPAIR ESTIMATOR'!S647)","v":"sf"},{"$f":"'2 REPAIR ESTIMATOR'!AQ647","v":{"v":0,"d":"$0"}},{"$nulls":11},0]
[null,null,{"$f":"T('2 REPAIR ESTIMATOR'!D648:O648)","v":""},{"$nulls":3},{"$f":"'2 REPAIR ESTIMATOR'!P648","v":0},{"$f":"T('2 REPAIR ESTIMATOR'!S648)","v":""},{"$f":"'2 REPAIR ESTIMATOR'!AQ648","v":{"v":0,"d":"$0"}},{"$nulls":11},0]
[null,null,{"$f":"T('2 REPAIR ESTIMATOR'!D649:O649)","v":""},{"$nulls":3},{"$f":"'2 REPAIR ESTIMATOR'!P649","v":0},{"$f":"T('2 REPAIR ESTIMATOR'!S649)","v":""},{"$f":"'2 REPAIR ESTIMATOR'!AQ649","v":{"v":0,"d":"$0"}},{"$nulls":11},0]
[null,null,{"$f":"T('2 REPAIR ESTIMATOR'!D650:O650)","v":""},{"$nulls":3},{"$f":"'2 REPAIR ESTIMATOR'!P650","v":0},{"$f":"T('2 REPAIR ESTIMATOR'!S650)","v":""},{"$f":"'2 REPAIR ESTIMATOR'!AQ650","v":{"v":0,"d":"$0"}},{"$nulls":11},0]
[null,null,{"$f":"T('2 REPAIR ESTIMATOR'!D651:O651)","v":""},{"$nulls":3},{"$f":"'2 REPAIR ESTIMATOR'!P651","v":0},{"$f":"T('2 REPAIR ESTIMATOR'!S651)","v":""},{"$f":"'2 REPAIR ESTIMATOR'!AQ651","v":{"v":0,"d":"$0"}},{"$nulls":11},0]
[null,null,{"$f":"T('2 REPAIR ESTIMATOR'!D652:O652)","v":""},{"$nulls":3},{"$f":"'2 REPAIR ESTIMATOR'!P652","v":0},{"$f":"T('2 REPAIR ESTIMATOR'!S652)","v":""},{"$f":"'2 REPAIR ESTIMATOR'!AQ652","v":{"v":0,"d":"$0"}},{"$nulls":11},0]
[null,null,{"$f":"T('2 REPAIR ESTIMATOR'!D653:O653)","v":""},{"$nulls":3},{"$f":"'2 REPAIR ESTIMATOR'!P653","v":0},{"$f":"T('2 REPAIR ESTIMATOR'!S653)","v":""},{"$f":"'2 REPAIR ESTIMATOR'!AQ653","v":{"v":0,"d":"$0"}},{"$nulls":11},0]
[null,null,{"$f":"T('2 REPAIR ESTIMATOR'!D654:O654)","v":""},{"$nulls":3},{"$f":"'2 REPAIR ESTIMATOR'!P654","v":0},{"$f":"T('2 REPAIR ESTIMATOR'!S654)","v":""},{"$f":"'2 REPAIR ESTIMATOR'!AQ654","v":{"v":0,"d":"$0"}},{"$nulls":11},0]
[null,null,{"$f":"T('2 REPAIR ESTIMATOR'!D655:O655)","v":""},{"$nulls":3},{"$f":"'2 REPAIR ESTIMATOR'!P655","v":0},{"$f":"T('2 REPAIR ESTIMATOR'!S655)","v":""},{"$f":"'2 REPAIR ESTIMATOR'!AQ655","v":{"v":0,"d":"$0"}},{"$nulls":11},0]
[null,null,{"$f":"T('2 REPAIR ESTIMATOR'!D656:O656)","v":""},{"$nulls":3},{"$f":"'2 REPAIR ESTIMATOR'!P656","v":0},{"$f":"T('2 REPAIR ESTIMATOR'!S656)","v":""},{"$f":"'2 REPAIR ESTIMATOR'!AQ656","v":{"v":0,"d":"$0"}},{"$nulls":11},0]
[null,null,{"$f":"T('2 REPAIR ESTIMATOR'!D657:O657)","v":""},{"$nulls":3},{"$f":"'2 REPAIR ESTIMATOR'!P657","v":0},{"$f":"T('2 REPAIR ESTIMATOR'!S657)","v":""},{"$f":"'2 REPAIR ESTIMATOR'!AQ657","v":{"v":0,"d":"$0"}},{"$nulls":11},0]
[null,null,{"$f":"T('2 REPAIR ESTIMATOR'!D658:O658)","v":""},{"$nulls":3},{"$f":"'2 REPAIR ESTIMATOR'!P658","v":0},{"$f":"T('2 REPAIR ESTIMATOR'!S658)","v":""},{"$f":"'2 REPAIR ESTIMATOR'!AQ658","v":{"v":0,"d":"$0"}},{"$nulls":11},0]
[null,null,{"$f":"T('2 REPAIR ESTIMATOR'!D659:O659)","v":""},{"$nulls":3},{"$f":"'2 REPAIR ESTIMATOR'!P659","v":0},{"$f":"T('2 REPAIR ESTIMATOR'!S659)","v":""},{"$f":"'2 REPAIR ESTIMATOR'!AQ659","v":{"v":0,"d":"$0"}},{"$nulls":11},0]
[null,null,{"$f":"T('2 REPAIR ESTIMATOR'!D660:O660)","v":""},{"$nulls":3},{"$f":"'2 REPAIR ESTIMATOR'!P660","v":0},{"$f":"T('2 REPAIR ESTIMATOR'!S660)","v":""},{"$f":"'2 REPAIR ESTIMATOR'!AQ660","v":{"v":0,"d":"$0"}},{"$nulls":11},0]
[null,null,{"$f":"T('2 REPAIR ESTIMATOR'!D661:O661)","v":""},{"$nulls":3},{"$f":"'2 REPAIR ESTIMATOR'!P661","v":0},{"$f":"T('2 REPAIR ESTIMATOR'!S661)","v":""},{"$f":"'2 REPAIR ESTIMATOR'!AQ661","v":{"v":0,"d":"$0"}},{"$nulls":11},0]
[null,null,{"$f":"T('2 REPAIR ESTIMATOR'!D662:O662)","v":""},{"$nulls":3},{"$f":"'2 REPAIR ESTIMATOR'!P662","v":0},{"$f":"T('2 REPAIR ESTIMATOR'!S662)","v":""},{"$f":"'2 REPAIR ESTIMATOR'!AQ662","v":{"v":0,"d":"$0"}},{"$nulls":11},0]
[null,null,{"$f":"T('2 REPAIR ESTIMATOR'!D663:O663)","v":""},{"$nulls":3},{"$f":"'2 REPAIR ESTIMATOR'!P663","v":0},{"$f":"T('2 REPAIR ESTIMATOR'!S663)","v":""},{"$f":"'2 REPAIR ESTIMATOR'!AQ663","v":{"v":0,"d":"$0"}},{"$nulls":11},0]
[null,null,{"$f":"T('2 REPAIR ESTIMATOR'!D664:O664)","v":""},{"$nulls":3},{"$f":"'2 REPAIR ESTIMATOR'!P664","v":0},{"$f":"T('2 REPAIR ESTIMATOR'!S664)","v":""},{"$f":"'2 REPAIR ESTIMATOR'!AQ664","v":{"v":0,"d":"$0"}},{"$nulls":11},0]
[null,null,{"$f":"T('2 REPAIR ESTIMATOR'!D665:O665)","v":""},{"$nulls":3},{"$f":"'2 REPAIR ESTIMATOR'!P665","v":0},{"$f":"T('2 REPAIR ESTIMATOR'!S665)","v":""},{"$f":"'2 REPAIR ESTIMATOR'!AQ665","v":{"v":0,"d":"$0"}},{"$nulls":11},0]
[null,null,{"$f":"T('2 REPAIR ESTIMATOR'!D666:O666)","v":""},{"$nulls":3},{"$f":"'2 REPAIR ESTIMATOR'!P666","v":0},{"$f":"T('2 REPAIR ESTIMATOR'!S666)","v":""},{"$f":"'2 REPAIR ESTIMATOR'!AQ666","v":{"v":0,"d":"$0"}},{"$nulls":11},0]
[null,null,{"$f":"T('2 REPAIR ESTIMATOR'!D667:O667)","v":""},{"$nulls":3},{"$f":"'2 REPAIR ESTIMATOR'!P667","v":0},{"$f":"T('2 REPAIR ESTIMATOR'!S667)","v":""},{"$f":"'2 REPAIR ESTIMATOR'!AQ667","v":{"v":0,"d":"$0"}},{"$nulls":11},0]
[{"$nulls":20},{"$f":"IF(I686>0,1,0)","v":1}]
[null,null,{"$f":"CONCATENATE(C644,\" SUBTOTAL\")","v":"FRAMING & DRYWALL SUBTOTAL"},{"$nulls":5},{"$f":"SUM(I644:J685)","v":{"v":750,"d":"$750"}},{"$f":"SUM(J637:J684)","v":{"v":0,"d":"$0"}},{"$f":"SUM(K644:L685)","v":{"v":0,"d":"$0"}},{"$f":"SUM(L637:L684)","v":{"v":0,"d":"$0"}},{"$f":"SUM(M644:N685)","v":{"v":0,"d":"$0"}},{"$f":"SUM(N637:N684)","v":{"v":0,"d":"$0"}},{"$f":"SUM(O644:P685)","v":{"v":0,"d":"$0"}},{"$f":"SUM(P637:P684)","v":{"v":0,"d":"$0"}},{"$f":"SUM(Q644:R685)","v":{"v":0,"d":"$0"}},{"$f":"SUM(R637:R684)","v":{"v":0,"d":"$0"}},{"$f":"SUM(S644:T685)","v":{"v":0,"d":"$0"}},{"$f":"SUM(T637:T684)","v":{"v":0,"d":"$0"}},{"$f":"SUM(U644:U685)","v":3}]
[null,null,"Contractor Exclusions:",{"$nulls":17},{"$f":"U686","v":3}]
[{"$nulls":20},{"$f":"U686","v":3}]
[{"$nulls":20},{"$f":"U686","v":3}]
[{"$nulls":20},{"$f":"U686","v":3}]
[{"$nulls":20},{"$f":"U686","v":3}]
[{"$nulls":20},{"$f":"U686","v":3}]
[{"$nulls":20},{"$f":"IF(I694>0,1,0)","v":1}]
[null,null,{"$f":"CONCATENATE(C644,\" TOTAL\")","v":"FRAMING & DRYWALL TOTAL"},{"$nulls":5},{"$f":"I686","v":{"v":750,"d":"$750"}},{"$f":"SUM(J643:J693)","v":{"v":0,"d":"$0"}},{"$f":"K686+SUM(K687:L693)","v":{"v":0,"d":"$0"}},{"$f":"SUM(L643:L693)","v":{"v":0,"d":"$0"}},{"$f":"M686+SUM(M687:N693)","v":{"v":0,"d":"$0"}},{"$f":"SUM(N643:N693)","v":{"v":0,"d":"$0"}},{"$f":"O686+SUM(O687:P693)","v":{"v":0,"d":"$0"}},{"$f":"SUM(P643:P693)","v":{"v":0,"d":"$0"}},{"$f":"Q686+SUM(Q687:R693)","v":{"v":0,"d":"$0"}},{"$f":"SUM(R643:R693)","v":{"v":0,"d":"$0"}},{"$f":"S686+SUM(S687:T693)","v":{"v":0,"d":"$0"}},{"$f":"SUM(T643:T693)","v":{"v":0,"d":"$0"}},{"$f":"U686+SUM(U687:U693)","v":22}]
[{"$nulls":20},{"$f":"U694","v":22}]
[null,null,{"$f":"T('2 REPAIR ESTIMATOR'!D672:O672)","v":"CABINETS & COUNTERTOPS"},{"$nulls":3},{"$f":"SUM(G697:G736)","v":64},{"$nulls":3},"Bidder Name",null,"Bidder Name",null,"Bidder Name",null,"Bidder Name",null,"Bidder Name",null,{"$f":"G696","v":64}]
[null,null,{"$f":"T('2 REPAIR ESTIMATOR'!D673:O673)","v":"Cabinet Installation bid/allowance"},{"$nulls":3},{"$f":"'2 REPAIR ESTIMATOR'!P673","v":0},{"$f":"T('2 REPAIR ESTIMATOR'!S673)","v":"ls"},{"$f":"'2 REPAIR ESTIMATOR'!AQ673","v":{"v":0,"d":"$0"}},{"$nulls":11},0]
[null,null,{"$f":"T('2 REPAIR ESTIMATOR'!D674:O674)","v":"Cabinet Material bid/allowance"},{"$nulls":3},{"$f":"'2 REPAIR ESTIMATOR'!P674","v":0},{"$f":"T('2 REPAIR ESTIMATOR'!S674)","v":"ls"},{"$f":"'2 REPAIR ESTIMATOR'!AQ674","v":{"v":0,"d":"$0"}},{"$nulls":11},0]
[null,null,{"$f":"T('2 REPAIR ESTIMATOR'!D675:O675)","v":"Countertop bid/allowance"},{"$nulls":3},{"$f":"'2 REPAIR ESTIMATOR'!P675","v":0},{"$f":"T('2 REPAIR ESTIMATOR'!S675)","v":"ls"},{"$f":"'2 REPAIR ESTIMATOR'!AQ675","v":{"v":0,"d":"$0"}},{"$nulls":11},0]
[null,null,{"$f":"T('2 REPAIR ESTIMATOR'!D676:O676)","v":"Kitchen"},{"$nulls":3},{"$f":"'2 REPAIR ESTIMATOR'!P676","v":0},{"$f":"T('2 REPAIR ESTIMATOR'!S676)","v":""},{"$f":"'2 REPAIR ESTIMATOR'!AQ676","v":{"v":0,"d":"$0"}},{"$nulls":11},0]
[null,null,{"$f":"T('2 REPAIR ESTIMATOR'!D677:O677)","v":"Kitchen Base Cabinetry"},{"$nulls":3},{"$f":"'2 REPAIR ESTIMATOR'!P677","v":15},{"$f":"T('2 REPAIR ESTIMATOR'!S677)","v":"lf"},{"$f":"'2 REPAIR ESTIMATOR'!AQ677","v":{"v":3558.75,"d":"$3,559"}},{"$nulls":11},15]
[null,null,{"$f":"T('2 REPAIR ESTIMATOR'!D678:O678)","v":"Kitchen Upper Cabinetry"},{"$nulls":3},{"$f":"'2 REPAIR ESTIMATOR'!P678","v":15},{"$f":"T('2 REPAIR ESTIMATOR'!S678)","v":"lf"},{"$f":"'2 REPAIR ESTIMATOR'!AQ678","v":{"v":2932.5,"d":"$2,933"}},{"$nulls":11},15]
[null,null,{"$f":"T('2 REPAIR ESTIMATOR'!D679:O679)","v":"Kitchen Pantry Cabinet"},{"$nulls":3},{"$f":"'2 REPAIR ESTIMATOR'!P679","v":1},{"$f":"T('2 REPAIR ESTIMATOR'!S679)","v":"ea"},{"$f":"'2 REPAIR ESTIMATOR'!AQ679","v":{"v":1138,"d":"$1,138"}},{"$nulls":11},1]
[null,null,{"$f":"T('2 REPAIR ESTIMATOR'!D680:O680)","v":"Plastic laminate countertop"},{"$nulls":3},{"$f":"'2 REPAIR ESTIMATOR'!P680","v":0},{"$f":"T('2 REPAIR ESTIMATOR'!S680)","v":"sf"},{"$f":"'2 REPAIR ESTIMATOR'!AQ680","v":{"v":0,"d":"$0"}},{"$nulls":11},0]
[null,null,{"$f":"T('2 REPAIR ESTIMATOR'!D681:O681)","v":"Replace cabinet doors, only"},{"$nulls":3},{"$f":"'2 REPAIR ESTIMATOR'!P681","v":0},{"$f":"T('2 REPAIR ESTIMATOR'!S681)","v":"ea"},{"$f":"'2 REPAIR ESTIMATOR'!AQ681","v":{"v":0,"d":"$0"}},{"$nulls":11},0]
[null,null,{"$f":"T('2 REPAIR ESTIMATOR'!D682:O682)","v":"Replace cabinet drawer fronts, only"},{"$nulls":3},{"$f":"'2 REPAIR ESTIMATOR'!P682","v":0},{"$f":"T('2 REPAIR ESTIMATOR'!S682)","v":"ea"},{"$f":"'2 REPAIR ESTIMATOR'!AQ682","v":{"v":0,"d":"$0"}},{"$nulls":11},0]
[null,null,{"$f":"T('2 REPAIR ESTIMATOR'!D683:O683)","v":"New cabinet door pulls"},{"$nulls":3},{"$f":"'2 REPAIR ESTIMATOR'!P683","v":0},{"$f":"T('2 REPAIR ESTIMATOR'!S683)","v":"ea"},{"$f":"'2 REPAIR ESTIMATOR'!AQ683","v":{"v":0,"d":"$0"}},{"$nulls":11},0]
[null,null,{"$f":"T('2 REPAIR ESTIMATOR'!D684:O684)","v":"Stone/solid surface countertop, kitchen"},{"$nulls":3},{"$f":"'2 REPAIR ESTIMATOR'!P684","v":30},{"$f":"T('2 REPAIR ESTIMATOR'!S684)","v":"sf"},{"$f":"'2 REPAIR ESTIMATOR'!AQ684","v":{"v":1765.5,"d":"$1,766"}},{"$nulls":11},30]
[null,null,{"$f":"T('2 REPAIR ESTIMATOR'!D685:O685)","v":"Kitchen sink bowl, stainless steel, undermount"},{"$nulls":3},{"$f":"'2 REPAIR ESTIMATOR'!P685","v":1},{"$f":"T('2 REPAIR ESTIMATOR'!S685)","v":"ea"},{"$f":"'2 REPAIR ESTIMATOR'!AQ685","v":{"v":367.5,"d":"$368"}},{"$nulls":11},1]
[null,null,{"$f":"T('2 REPAIR ESTIMATOR'!D686:O686)","v":"Kitchen sink bowl, composite, undermount"},{"$nulls":3},{"$f":"'2 REPAIR ESTIMATOR'!P686","v":0},{"$f":"T('2 REPAIR ESTIMATOR'!S686)","v":"ea"},{"$f":"'2 REPAIR ESTIMATOR'!AQ686","v":{"v":0,"d":"$0"}},{"$nulls":11},0]
[null,null,{"$f":"T('2 REPAIR ESTIMATOR'!D687:O687)","v":"Bathrooms"},{"$nulls":3},{"$f":"'2 REPAIR ESTIMATOR'!P687","v":0},{"$f":"T('2 REPAIR ESTIMATOR'!S687)","v":""},{"$f":"'2 REPAIR ESTIMATOR'!AQ687","v":{"v":0,"d":"$0"}},{"$nulls":11},0]
[null,null,{"$f":"T('2 REPAIR ESTIMATOR'!D688:O688)","v":"Vanity cabinet"},{"$nulls":3},{"$f":"'2 REPAIR ESTIMATOR'!P688","v":2},{"$f":"T('2 REPAIR ESTIMATOR'!S688)","v":"ea"},{"$f":"'2 REPAIR ESTIMATOR'!AQ688","v":{"v":1684,"d":"$1,684"}},{"$nulls":11},2]
[null,null,{"$f":"T('2 REPAIR ESTIMATOR'!D689:O689)","v":"New cabinet door pulls"},{"$nulls":3},{"$f":"'2 REPAIR ESTIMATOR'!P689","v":0},{"$f":"T('2 REPAIR ESTIMATOR'!S689)","v":"ea"},{"$f":"'2 REPAIR ESTIMATOR'!AQ689","v":{"v":0,"d":"$0"}},{"$nulls":11},0]
[null,null,{"$f":"T('2 REPAIR ESTIMATOR'!D690:O690)","v":"Vanity countertop, stone/solid surface"},{"$nulls":3},{"$f":"'2 REPAIR ESTIMATOR'!P690","v":0},{"$f":"T('2 REPAIR ESTIMATOR'!S690)","v":"sf"},{"$f":"'2 REPAIR ESTIMATOR'!AQ690","v":{"v":0,"d":"$0"}},{"$nulls":11},0]
[null,null,{"$f":"T('2 REPAIR ESTIMATOR'!D691:O691)","v":""},{"$nulls":3},{"$f":"'2 REPAIR ESTIMATOR'!P691","v":0},{"$f":"T('2 REPAIR ESTIMATOR'!S691)","v":""},{"$f":"'2 REPAIR ESTIMATOR'!AQ691","v":{"v":0,"d":"$0"}},{"$nulls":11},0]
[null,null,{"$f":"T('2 REPAIR ESTIMATOR'!D692:O692)","v":""},{"$nulls":3},{"$f":"'2 REPAIR ESTIMATOR'!P692","v":0},{"$f":"T('2 REPAIR ESTIMATOR'!S692)","v":""},{"$f":"'2 REPAIR ESTIMATOR'!AQ692","v":{"v":0,"d":"$0"}},{"$nulls":11},0]
[null,null,{"$f":"T('2 REPAIR ESTIMATOR'!D693:O693)","v":""},{"$nulls":3},{"$f":"'2 REPAIR ESTIMATOR'!P693","v":0},{"$f":"T('2 REPAIR ESTIMATOR'!S693)","v":""},{"$f":"'2 REPAIR ESTIMATOR'!AQ693","v":{"v":0,"d":"$0"}},{"$nulls":11},0]
[null,null,{"$f":"T('2 REPAIR ESTIMATOR'!D694:O694)","v":""},{"$nulls":3},{"$f":"'2 REPAIR ESTIMATOR'!P694","v":0},{"$f":"T('2 REPAIR ESTIMATOR'!S694)","v":""},{"$f":"'2 REPAIR ESTIMATOR'!AQ694","v":{"v":0,"d":"$0"}},{"$nulls":11},0]
[null,null,{"$f":"T('2 REPAIR ESTIMATOR'!D695:O695)","v":""},{"$nulls":3},{"$f":"'2 REPAIR ESTIMATOR'!P695","v":0},{"$f":"T('2 REPAIR ESTIMATOR'!S695)","v":""},{"$f":"'2 REPAIR ESTIMATOR'!AQ695","v":{"v":0,"d":"$0"}},{"$nulls":11},0]
[null,null,{"$f":"T('2 REPAIR ESTIMATOR'!D696:O696)","v":""},{"$nulls":3},{"$f":"'2 REPAIR ESTIMATOR'!P696","v":0},{"$f":"T('2 REPAIR ESTIMATOR'!S696)","v":""},{"$f":"'2 REPAIR ESTIMATOR'!AQ696","v":{"v":0,"d":"$0"}},{"$nulls":11},0]
[null,null,{"$f":"T('2 REPAIR ESTIMATOR'!D697:O697)","v":""},{"$nulls":3},{"$f":"'2 REPAIR ESTIMATOR'!P697","v":0},{"$f":"T('2 REPAIR ESTIMATOR'!S697)","v":""},{"$f":"'2 REPAIR ESTIMATOR'!AQ697","v":{"v":0,"d":"$0"}},{"$nulls":11},0]
[null,null,{"$f":"T('2 REPAIR ESTIMATOR'!D698:O698)","v":""},{"$nulls":3},{"$f":"'2 REPAIR ESTIMATOR'!P698","v":0},{"$f":"T('2 REPAIR ESTIMATOR'!S698)","v":""},{"$f":"'2 REPAIR ESTIMATOR'!AQ698","v":{"v":0,"d":"$0"}},{"$nulls":11},0]
[null,null,{"$f":"T('2 REPAIR ESTIMATOR'!D699:O699)","v":""},{"$nulls":3},{"$f":"'2 REPAIR ESTIMATOR'!P699","v":0},{"$f":"T('2 REPAIR ESTIMATOR'!S699)","v":""},{"$f":"'2 REPAIR ESTIMATOR'!AQ699","v":{"v":0,"d":"$0"}},{"$nulls":11},0]
[null,null,{"$f":"T('2 REPAIR ESTIMATOR'!D700:O700)","v":""},{"$nulls":3},{"$f":"'2 REPAIR ESTIMATOR'!P700","v":0},{"$f":"T('2 REPAIR ESTIMATOR'!S700)","v":""},{"$f":"'2 REPAIR ESTIMATOR'!AQ700","v":{"v":0,"d":"$0"}},{"$nulls":11},0]
[null,null,{"$f":"T('2 REPAIR ESTIMATOR'!D701:O701)","v":""},{"$nulls":3},{"$f":"'2 REPAIR ESTIMATOR'!P701","v":0},{"$f":"T('2 REPAIR ESTIMATOR'!S701)","v":""},{"$f":"'2 REPAIR ESTIMATOR'!AQ701","v":{"v":0,"d":"$0"}},{"$nulls":11},0]
[null,null,{"$f":"T('2 REPAIR ESTIMATOR'!D702:O702)","v":""},{"$nulls":3},{"$f":"'2 REPAIR ESTIMATOR'!P702","v":0},{"$f":"T('2 REPAIR ESTIMATOR'!S702)","v":""},{"$f":"'2 REPAIR ESTIMATOR'!AQ702","v":{"v":0,"d":"$0"}},{"$nulls":11},0]
[null,null,{"$f":"T('2 REPAIR ESTIMATOR'!D703:O703)","v":""},{"$nulls":3},{"$f":"'2 REPAIR ESTIMATOR'!P703","v":0},{"$f":"T('2 REPAIR ESTIMATOR'!S703)","v":""},{"$f":"'2 REPAIR ESTIMATOR'!AQ703","v":{"v":0,"d":"$0"}},{"$nulls":11},0]
[null,null,{"$f":"T('2 REPAIR ESTIMATOR'!D704:O704)","v":""},{"$nulls":3},{"$f":"'2 REPAIR ESTIMATOR'!P704","v":0},{"$f":"T('2 REPAIR ESTIMATOR'!S704)","v":""},{"$f":"'2 REPAIR ESTIMATOR'!AQ704","v":{"v":0,"d":"$0"}},{"$nulls":11},0]
[null,null,{"$f":"T('2 REPAIR ESTIMATOR'!D705:O705)","v":""},{"$nulls":3},{"$f":"'2 REPAIR ESTIMATOR'!P705","v":0},{"$f":"T('2 REPAIR ESTIMATOR'!S705)","v":""},{"$f":"'2 REPAIR ESTIMATOR'!AQ705","v":{"v":0,"d":"$0"}},{"$nulls":11},0]
[null,null,{"$f":"T('2 REPAIR ESTIMATOR'!D706:O706)","v":""},{"$nulls":3},{"$f":"'2 REPAIR ESTIMATOR'!P706","v":0},{"$f":"T('2 REPAIR ESTIMATOR'!S706)","v":""},{"$f":"'2 REPAIR ESTIMATOR'!AQ706","v":{"v":0,"d":"$0"}},{"$nulls":11},0]
[null,null,{"$f":"T('2 REPAIR ESTIMATOR'!D707:O707)","v":""},{"$nulls":3},{"$f":"'2 REPAIR ESTIMATOR'!P707","v":0},{"$f":"T('2 REPAIR ESTIMATOR'!S707)","v":""},{"$f":"'2 REPAIR ESTIMATOR'!AQ707","v":{"v":0,"d":"$0"}},{"$nulls":11},0]
[null,null,{"$f":"T('2 REPAIR ESTIMATOR'!D708:O708)","v":""},{"$nulls":3},{"$f":"'2 REPAIR ESTIMATOR'!P708","v":0},{"$f":"T('2 REPAIR ESTIMATOR'!S708)","v":""},{"$f":"'2 REPAIR ESTIMATOR'!AQ708","v":{"v":0,"d":"$0"}},{"$nulls":11},0]
[null,null,{"$f":"T('2 REPAIR ESTIMATOR'!D709:O709)","v":""},{"$nulls":3},{"$f":"'2 REPAIR ESTIMATOR'!P709","v":0},{"$f":"T('2 REPAIR ESTIMATOR'!S709)","v":""},{"$f":"'2 REPAIR ESTIMATOR'!AQ709","v":{"v":0,"d":"$0"}},{"$nulls":11},0]
[null,null,{"$f":"T('2 REPAIR ESTIMATOR'!D710:O710)","v":""},{"$nulls":3},{"$f":"'2 REPAIR ESTIMATOR'!P710","v":0},{"$f":"T('2 REPAIR ESTIMATOR'!S710)","v":""},{"$f":"'2 REPAIR ESTIMATOR'!AQ710","v":{"v":0,"d":"$0"}},{"$nulls":11},0]
[null,null,{"$f":"T('2 REPAIR ESTIMATOR'!D711:O711)","v":""},{"$nulls":3},{"$f":"'2 REPAIR ESTIMATOR'!P711","v":0},{"$f":"T('2 REPAIR ESTIMATOR'!S711)","v":""},{"$f":"'2 REPAIR ESTIMATOR'!AQ711","v":{"v":0,"d":"$0"}},{"$nulls":11},0]
[null,null,{"$f":"T('2 REPAIR ESTIMATOR'!D712:O712)","v":""},{"$nulls":3},{"$f":"'2 REPAIR ESTIMATOR'!P712","v":0},{"$f":"T('2 REPAIR ESTIMATOR'!S712)","v":""},{"$f":"'2 REPAIR ESTIMATOR'!AQ712","v":{"v":0,"d":"$0"}},{"$nulls":11},0]
[{"$nulls":20},{"$f":"IF(I738>0,1,0)","v":1}]
[null,null,{"$f":"CONCATENATE(C696,\" SUBTOTAL\")","v":"CABINETS & COUNTERTOPS SUBTOTAL"},{"$nulls":5},{"$f":"SUM(I696:J737)","v":{"v":11446.25,"d":"$11,446"}},{"$f":"SUM(J689:J736)","v":{"v":0,"d":"$0"}},{"$f":"SUM(K696:L737)","v":{"v":0,"d":"$0"}},{"$f":"SUM(L689:L736)","v":{"v":0,"d":"$0"}},{"$f":"SUM(M696:N737)","v":{"v":0,"d":"$0"}},{"$f":"SUM(N689:N736)","v":{"v":0,"d":"$0"}},{"$f":"SUM(O696:P737)","v":{"v":0,"d":"$0"}},{"$f":"SUM(P689:P736)","v":{"v":0,"d":"$0"}},{"$f":"SUM(Q696:R737)","v":{"v":0,"d":"$0"}},{"$f":"SUM(R689:R736)","v":{"v":0,"d":"$0"}},{"$f":"SUM(S696:T737)","v":{"v":0,"d":"$0"}},{"$f":"SUM(T689:T736)","v":{"v":0,"d":"$0"}},{"$f":"SUM(U696:U737)","v":129}]
[null,null,"Contractor Exclusions:",{"$nulls":17},{"$f":"U738","v":129}]
[{"$nulls":20},{"$f":"U738","v":129}]
[{"$nulls":20},{"$f":"U738","v":129}]
[{"$nulls":20},{"$f":"U738","v":129}]
[{"$nulls":20},{"$f":"U738","v":129}]
[{"$nulls":20},{"$f":"U738","v":129}]
[{"$nulls":20},{"$f":"IF(I746>0,1,0)","v":1}]
[null,null,{"$f":"CONCATENATE(C696,\" TOTAL\")","v":"CABINETS & COUNTERTOPS TOTAL"},{"$nulls":5},{"$f":"I738","v":{"v":11446.25,"d":"$11,446"}},{"$f":"SUM(J695:J745)","v":{"v":0,"d":"$0"}},{"$f":"K738+SUM(K739:L745)","v":{"v":0,"d":"$0"}},{"$f":"SUM(L695:L745)","v":{"v":0,"d":"$0"}},{"$f":"M738+SUM(M739:N745)","v":{"v":0,"d":"$0"}},{"$f":"SUM(N695:N745)","v":{"v":0,"d":"$0"}},{"$f":"O738+SUM(O739:P745)","v":{"v":0,"d":"$0"}},{"$f":"SUM(P695:P745)","v":{"v":0,"d":"$0"}},{"$f":"Q738+SUM(Q739:R745)","v":{"v":0,"d":"$0"}},{"$f":"SUM(R695:R745)","v":{"v":0,"d":"$0"}},{"$f":"S738+SUM(S739:T745)","v":{"v":0,"d":"$0"}},{"$f":"SUM(T695:T745)","v":{"v":0,"d":"$0"}},{"$f":"U738+SUM(U739:U745)","v":904}]
[{"$nulls":20},{"$f":"U746","v":904}]
[null,null,{"$f":"T('2 REPAIR ESTIMATOR'!D717:O717)","v":"DOORS & TRIM"},{"$nulls":3},{"$f":"SUM(G749:G788)","v":15},{"$nulls":3},"Bidder Name",null,"Bidder Name",null,"Bidder Name",null,"Bidder Name",null,"Bidder Name",null,{"$f":"G748","v":15}]
[null,null,{"$f":"T('2 REPAIR ESTIMATOR'!D718:O718)","v":"Finish carpentry bid/allowance"},{"$nulls":3},{"$f":"'2 REPAIR ESTIMATOR'!P718","v":0},{"$f":"T('2 REPAIR ESTIMATOR'!S718)","v":"ls"},{"$f":"'2 REPAIR ESTIMATOR'!AQ718","v":{"v":0,"d":"$0"}},{"$nulls":11},0]
[null,null,{"$f":"T('2 REPAIR ESTIMATOR'!D719:O719)","v":"Interior door, prehung, hollow-core door"},{"$nulls":3},{"$f":"'2 REPAIR ESTIMATOR'!P719","v":15},{"$f":"T('2 REPAIR ESTIMATOR'!S719)","v":"ea"},{"$f":"'2 REPAIR ESTIMATOR'!AQ719","v":{"v":2409,"d":"$2,409"}},{"$nulls":11},15]
[null,null,{"$f":"T('2 REPAIR ESTIMATOR'!D720:O720)","v":"Interior mirrored, sliding, closet doors"},{"$nulls":3},{"$f":"'2 REPAIR ESTIMATOR'!P720","v":0},{"$f":"T('2 REPAIR ESTIMATOR'!S720)","v":"ea"},{"$f":"'2 REPAIR ESTIMATOR'!AQ720","v":{"v":0,"d":"$0"}},{"$nulls":11},0]
[null,null,{"$f":"T('2 REPAIR ESTIMATOR'!D721:O721)","v":"Interior bi-fold, closet doors"},{"$nulls":3},{"$f":"'2 REPAIR ESTIMATOR'!P721","v":0},{"$f":"T('2 REPAIR ESTIMATOR'!S721)","v":"ea"},{"$f":"'2 REPAIR ESTIMATOR'!AQ721","v":{"v":0,"d":"$0"}},{"$nulls":11},0]
[null,null,{"$f":"T('2 REPAIR ESTIMATOR'!D722:O722)","v":"Door hardware, knobs only"},{"$nulls":3},{"$f":"'2 REPAIR ESTIMATOR'!P722","v":0},{"$f":"T('2 REPAIR ESTIMATOR'!S722)","v":"ea"},{"$f":"'2 REPAIR ESTIMATOR'!AQ722","v":{"v":0,"d":"$0"}},{"$nulls":11},0]
[null,null,{"$f":"T('2 REPAIR ESTIMATOR'!D723:O723)","v":"Door casings"},{"$nulls":3},{"$f":"'2 REPAIR ESTIMATOR'!P723","v":0},{"$f":"T('2 REPAIR ESTIMATOR'!S723)","v":"ea"},{"$f":"'2 REPAIR ESTIMATOR'!AQ723","v":{"v":0,"d":"$0"}},{"$nulls":11},0]
[null,null,{"$f":"T('2 REPAIR ESTIMATOR'!D724:O724)","v":"Window casings"},{"$nulls":3},{"$f":"'2 REPAIR ESTIMATOR'!P724","v":0},{"$f":"T('2 REPAIR ESTIMATOR'!S724)","v":"ea"},{"$f":"'2 REPAIR ESTIMATOR'!AQ724","v":{"v":0,"d":"$0"}},{"$nulls":11},0]
[null,null,{"$f":"T('2 REPAIR ESTIMATOR'!D725:O725)","v":"Window sills"},{"$nulls":3},{"$f":"'2 REPAIR ESTIMATOR'!P725","v":0},{"$f":"T('2 REPAIR ESTIMATOR'!S725)","v":"lf"},{"$f":"'2 REPAIR ESTIMATOR'!AQ725","v":{"v":0,"d":"$0"}},{"$nulls":11},0]
[null,null,{"$f":"T('2 REPAIR ESTIMATOR'!D726:O726)","v":"Wood  base"},{"$nulls":3},{"$f":"'2 REPAIR ESTIMATOR'!P726","v":0},{"$f":"T('2 REPAIR ESTIMATOR'!S726)","v":"lf"},{"$f":"'2 REPAIR ESTIMATOR'!AQ726","v":{"v":0,"d":"$0"}},{"$nulls":11},0]
[null,null,{"$f":"T('2 REPAIR ESTIMATOR'!D727:O727)","v":"Crown molding"},{"$nulls":3},{"$f":"'2 REPAIR ESTIMATOR'!P727","v":0},{"$f":"T('2 REPAIR ESTIMATOR'!S727)","v":"lf"},{"$f":"'2 REPAIR ESTIMATOR'!AQ727","v":{"v":0,"d":"$0"}},{"$nulls":11},0]
[null,null,{"$f":"T('2 REPAIR ESTIMATOR'!D728:O728)","v":"Raised panel wood wainscoting"},{"$nulls":3},{"$f":"'2 REPAIR ESTIMATOR'!P728","v":0},{"$f":"T('2 REPAIR ESTIMATOR'!S728)","v":"lf"},{"$f":"'2 REPAIR ESTIMATOR'!AQ728","v":{"v":0,"d":"$0"}},{"$nulls":11},0]
[null,null,{"$f":"T('2 REPAIR ESTIMATOR'!D729:O729)","v":"Bead board wainscoting"},{"$nulls":3},{"$f":"'2 REPAIR ESTIMATOR'!P729","v":0},{"$f":"T('2 REPAIR ESTIMATOR'!S729)","v":"lf"},{"$f":"'2 REPAIR ESTIMATOR'!AQ729","v":{"v":0,"d":"$0"}},{"$nulls":11},0]
[null,null,{"$f":"T('2 REPAIR ESTIMATOR'!D730:O730)","v":"Fireplace mantel"},{"$nulls":3},{"$f":"'2 REPAIR ESTIMATOR'!P730","v":0},{"$f":"T('2 REPAIR ESTIMATOR'!S730)","v":"ea"},{"$f":"'2 REPAIR ESTIMATOR'!AQ730","v":{"v":0,"d":"$0"}},{"$nulls":11},0]
[null,null,{"$f":"T('2 REPAIR ESTIMATOR'!D731:O731)","v":"Wood columns"},{"$nulls":3},{"$f":"'2 REPAIR ESTIMATOR'!P731","v":0},{"$f":"T('2 REPAIR ESTIMATOR'!S731)","v":"ea"},{"$f":"'2 REPAIR ESTIMATOR'!AQ731","v":{"v":0,"d":"$0"}},{"$nulls":11},0]
[null,null,{"$f":"T('2 REPAIR ESTIMATOR'!D732:O732)","v":"Closet shelf and rod"},{"$nulls":3},{"$f":"'2 REPAIR ESTIMATOR'!P732","v":0},{"$f":"T('2 REPAIR ESTIMATOR'!S732)","v":"lf"},{"$f":"'2 REPAIR ESTIMATOR'!AQ732","v":{"v":0,"d":"$0"}},{"$nulls":11},0]
[null,null,{"$f":"T('2 REPAIR ESTIMATOR'!D733:O733)","v":"Closet kit, 8ft long"},{"$nulls":3},{"$f":"'2 REPAIR ESTIMATOR'!P733","v":0},{"$f":"T('2 REPAIR ESTIMATOR'!S733)","v":"lf"},{"$f":"'2 REPAIR ESTIMATOR'!AQ733","v":{"v":0,"d":"$0"}},{"$nulls":11},0]
[null,null,{"$f":"T('2 REPAIR ESTIMATOR'!D734:O734)","v":"Wood handrail - rail only"},{"$nulls":3},{"$f":"'2 REPAIR ESTIMATOR'!P734","v":0},{"$f":"T('2 REPAIR ESTIMATOR'!S734)","v":"lf"},{"$f":"'2 REPAIR ESTIMATOR'!AQ734","v":{"v":0,"d":"$0"}},{"$nulls":11},0]
[null,null,{"$f":"T('2 REPAIR ESTIMATOR'!D735:O735)","v":"Wood balusters"},{"$nulls":3},{"$f":"'2 REPAIR ESTIMATOR'!P735","v":0},{"$f":"T('2 REPAIR ESTIMATOR'!S735)","v":"lf"},{"$f":"'2 REPAIR ESTIMATOR'!AQ735","v":{"v":0,"d":"$0"}},{"$nulls":11},0]
[null,null,{"$f":"T('2 REPAIR ESTIMATOR'!D736:O736)","v":"Iron balusters"},{"$nulls":3},{"$f":"'2 REPAIR ESTIMATOR'!P736","v":0},{"$f":"T('2 REPAIR ESTIMATOR'!S736)","v":"lf"},{"$f":"'2 REPAIR ESTIMATOR'!AQ736","v":{"v":0,"d":"$0"}},{"$nulls":11},0]
[null,null,{"$f":"T('2 REPAIR ESTIMATOR'!D737:O737)","v":""},{"$nulls":3},{"$f":"'2 REPAIR ESTIMATOR'!P737","v":0},{"$f":"T('2 REPAIR ESTIMATOR'!S737)","v":""},{"$f":"'2 REPAIR ESTIMATOR'!AQ737","v":{"v":0,"d":"$0"}},{"$nulls":11},0]
[null,null,{"$f":"T('2 REPAIR ESTIMATOR'!D738:O738)","v":""},{"$nulls":3},{"$f":"'2 REPAIR ESTIMATOR'!P738","v":0},{"$f":"T('2 REPAIR ESTIMATOR'!S738)","v":""},{"$f":"'2 REPAIR ESTIMATOR'!AQ738","v":{"v":0,"d":"$0"}},{"$nulls":11},0]
[null,null,{"$f":"T('2 REPAIR ESTIMATOR'!D739:O739)","v":""},{"$nulls":3},{"$f":"'2 REPAIR ESTIMATOR'!P739","v":0},{"$f":"T('2 REPAIR ESTIMATOR'!S739)","v":""},{"$f":"'2 REPAIR ESTIMATOR'!AQ739","v":{"v":0,"d":"$0"}},{"$nulls":11},0]
[null,null,{"$f":"T('2 REPAIR ESTIMATOR'!D740:O740)","v":""},{"$nulls":3},{"$f":"'2 REPAIR ESTIMATOR'!P740","v":0},{"$f":"T('2 REPAIR ESTIMATOR'!S740)","v":""},{"$f":"'2 REPAIR ESTIMATOR'!AQ740","v":{"v":0,"d":"$0"}},{"$nulls":11},0]
[null,null,{"$f":"T('2 REPAIR ESTIMATOR'!D741:O741)","v":""},{"$nulls":3},{"$f":"'2 REPAIR ESTIMATOR'!P741","v":0},{"$f":"T('2 REPAIR ESTIMATOR'!S741)","v":""},{"$f":"'2 REPAIR ESTIMATOR'!AQ741","v":{"v":0,"d":"$0"}},{"$nulls":11},0]
[null,null,{"$f":"T('2 REPAIR ESTIMATOR'!D742:O742)","v":""},{"$nulls":3},{"$f":"'2 REPAIR ESTIMATOR'!P742","v":0},{"$f":"T('2 REPAIR ESTIMATOR'!S742)","v":""},{"$f":"'2 REPAIR ESTIMATOR'!AQ742","v":{"v":0,"d":"$0"}},{"$nulls":11},0]
[null,null,{"$f":"T('2 REPAIR ESTIMATOR'!D743:O743)","v":""},{"$nulls":3},{"$f":"'2 REPAIR ESTIMATOR'!P743","v":0},{"$f":"T('2 REPAIR ESTIMATOR'!S743)","v":""},{"$f":"'2 REPAIR ESTIMATOR'!AQ743","v":{"v":0,"d":"$0"}},{"$nulls":11},0]
[null,null,{"$f":"T('2 REPAIR ESTIMATOR'!D744:O744)","v":""},{"$nulls":3},{"$f":"'2 REPAIR ESTIMATOR'!P744","v":0},{"$f":"T('2 REPAIR ESTIMATOR'!S744)","v":""},{"$f":"'2 REPAIR ESTIMATOR'!AQ744","v":{"v":0,"d":"$0"}},{"$nulls":11},0]
[null,null,{"$f":"T('2 REPAIR ESTIMATOR'!D745:O745)","v":""},{"$nulls":3},{"$f":"'2 REPAIR ESTIMATOR'!P745","v":0},{"$f":"T('2 REPAIR ESTIMATOR'!S745)","v":""},{"$f":"'2 REPAIR ESTIMATOR'!AQ745","v":{"v":0,"d":"$0"}},{"$nulls":11},0]
[null,null,{"$f":"T('2 REPAIR ESTIMATOR'!D746:O746)","v":""},{"$nulls":3},{"$f":"'2 REPAIR ESTIMATOR'!P746","v":0},{"$f":"T('2 REPAIR ESTIMATOR'!S746)","v":""},{"$f":"'2 REPAIR ESTIMATOR'!AQ746","v":{"v":0,"d":"$0"}},{"$nulls":11},0]
[null,null,{"$f":"T('2 REPAIR ESTIMATOR'!D747:O747)","v":""},{"$nulls":3},{"$f":"'2 REPAIR ESTIMATOR'!P747","v":0},{"$f":"T('2 REPAIR ESTIMATOR'!S747)","v":""},{"$f":"'2 REPAIR ESTIMATOR'!AQ747","v":{"v":0,"d":"$0"}},{"$nulls":11},0]
[null,null,{"$f":"T('2 REPAIR ESTIMATOR'!D748:O748)","v":""},{"$nulls":3},{"$f":"'2 REPAIR ESTIMATOR'!P748","v":0},{"$f":"T('2 REPAIR ESTIMATOR'!S748)","v":""},{"$f":"'2 REPAIR ESTIMATOR'!AQ748","v":{"v":0,"d":"$0"}},{"$nulls":11},0]
[null,null,{"$f":"T('2 REPAIR ESTIMATOR'!D749:O749)","v":""},{"$nulls":3},{"$f":"'2 REPAIR ESTIMATOR'!P749","v":0},{"$f":"T('2 REPAIR ESTIMATOR'!S749)","v":""},{"$f":"'2 REPAIR ESTIMATOR'!AQ749","v":{"v":0,"d":"$0"}},{"$nulls":11},0]
[null,null,{"$f":"T('2 REPAIR ESTIMATOR'!D750:O750)","v":""},{"$nulls":3},{"$f":"'2 REPAIR ESTIMATOR'!P750","v":0},{"$f":"T('2 REPAIR ESTIMATOR'!S750)","v":""},{"$f":"'2 REPAIR ESTIMATOR'!AQ750","v":{"v":0,"d":"$0"}},{"$nulls":11},0]
[null,null,{"$f":"T('2 REPAIR ESTIMATOR'!D751:O751)","v":""},{"$nulls":3},{"$f":"'2 REPAIR ESTIMATOR'!P751","v":0},{"$f":"T('2 REPAIR ESTIMATOR'!S751)","v":""},{"$f":"'2 REPAIR ESTIMATOR'!AQ751","v":{"v":0,"d":"$0"}},{"$nulls":11},0]
[null,null,{"$f":"T('2 REPAIR ESTIMATOR'!D752:O752)","v":""},{"$nulls":3},{"$f":"'2 REPAIR ESTIMATOR'!P752","v":0},{"$f":"T('2 REPAIR ESTIMATOR'!S752)","v":""},{"$f":"'2 REPAIR ESTIMATOR'!AQ752","v":{"v":0,"d":"$0"}},{"$nulls":11},0]
[null,null,{"$f":"T('2 REPAIR ESTIMATOR'!D753:O753)","v":""},{"$nulls":3},{"$f":"'2 REPAIR ESTIMATOR'!P753","v":0},{"$f":"T('2 REPAIR ESTIMATOR'!S753)","v":""},{"$f":"'2 REPAIR ESTIMATOR'!AQ753","v":{"v":0,"d":"$0"}},{"$nulls":11},0]
[null,null,{"$f":"T('2 REPAIR ESTIMATOR'!D754:O754)","v":""},{"$nulls":3},{"$f":"'2 REPAIR ESTIMATOR'!P754","v":0},{"$f":"T('2 REPAIR ESTIMATOR'!S754)","v":""},{"$f":"'2 REPAIR ESTIMATOR'!AQ754","v":{"v":0,"d":"$0"}},{"$nulls":11},0]
[null,null,{"$f":"T('2 REPAIR ESTIMATOR'!D755:O755)","v":""},{"$nulls":3},{"$f":"'2 REPAIR ESTIMATOR'!P755","v":0},{"$f":"T('2 REPAIR ESTIMATOR'!S755)","v":""},{"$f":"'2 REPAIR ESTIMATOR'!AQ755","v":{"v":0,"d":"$0"}},{"$nulls":11},0]
[null,null,{"$f":"T('2 REPAIR ESTIMATOR'!D756:O756)","v":""},{"$nulls":3},{"$f":"'2 REPAIR ESTIMATOR'!P756","v":0},{"$f":"T('2 REPAIR ESTIMATOR'!S756)","v":""},{"$f":"'2 REPAIR ESTIMATOR'!AQ756","v":{"v":0,"d":"$0"}},{"$nulls":11},0]
[null,null,{"$f":"T('2 REPAIR ESTIMATOR'!D757:O757)","v":""},{"$nulls":3},{"$f":"'2 REPAIR ESTIMATOR'!P757","v":0},{"$f":"T('2 REPAIR ESTIMATOR'!S757)","v":""},{"$f":"'2 REPAIR ESTIMATOR'!AQ757","v":{"v":0,"d":"$0"}},{"$nulls":11},0]
[{"$nulls":20},{"$f":"IF(I790>0,1,0)","v":1}]
[null,null,{"$f":"CONCATENATE(C748,\" SUBTOTAL\")","v":"DOORS & TRIM SUBTOTAL"},{"$nulls":5},{"$f":"SUM(I748:J789)","v":{"v":2409,"d":"$2,409"}},{"$f":"SUM(J741:J788)","v":{"v":0,"d":"$0"}},{"$f":"SUM(K748:L789)","v":{"v":0,"d":"$0"}},{"$f":"SUM(L741:L788)","v":{"v":0,"d":"$0"}},{"$f":"SUM(M748:N789)","v":{"v":0,"d":"$0"}},{"$f":"SUM(N741:N788)","v":{"v":0,"d":"$0"}},{"$f":"SUM(O748:P789)","v":{"v":0,"d":"$0"}},{"$f":"SUM(P741:P788)","v":{"v":0,"d":"$0"}},{"$f":"SUM(Q748:R789)","v":{"v":0,"d":"$0"}},{"$f":"SUM(R741:R788)","v":{"v":0,"d":"$0"}},{"$f":"SUM(S748:T789)","v":{"v":0,"d":"$0"}},{"$f":"SUM(T741:T788)","v":{"v":0,"d":"$0"}},{"$f":"SUM(U748:U789)","v":31}]
[null,null,"Contractor Exclusions:",{"$nulls":17},{"$f":"U790","v":31}]
[{"$nulls":20},{"$f":"U790","v":31}]
[{"$nulls":20},{"$f":"U790","v":31}]
[{"$nulls":20},{"$f":"U790","v":31}]
[{"$nulls":20},{"$f":"U790","v":31}]
[{"$nulls":20},{"$f":"U790","v":31}]
[{"$nulls":20},{"$f":"IF(I798>0,1,0)","v":1}]
[null,null,{"$f":"CONCATENATE(C748,\" TOTAL\")","v":"DOORS & TRIM TOTAL"},{"$nulls":5},{"$f":"I790","v":{"v":2409,"d":"$2,409"}},{"$f":"SUM(J747:J797)","v":{"v":0,"d":"$0"}},{"$f":"K790+SUM(K791:L797)","v":{"v":0,"d":"$0"}},{"$f":"SUM(L747:L797)","v":{"v":0,"d":"$0"}},{"$f":"M790+SUM(M791:N797)","v":{"v":0,"d":"$0"}},{"$f":"SUM(N747:N797)","v":{"v":0,"d":"$0"}},{"$f":"O790+SUM(O791:P797)","v":{"v":0,"d":"$0"}},{"$f":"SUM(P747:P797)","v":{"v":0,"d":"$0"}},{"$f":"Q790+SUM(Q791:R797)","v":{"v":0,"d":"$0"}},{"$f":"SUM(R747:R797)","v":{"v":0,"d":"$0"}},{"$f":"S790+SUM(S791:T797)","v":{"v":0,"d":"$0"}},{"$f":"SUM(T747:T797)","v":{"v":0,"d":"$0"}},{"$f":"U790+SUM(U791:U797)","v":218}]
[{"$nulls":20},{"$f":"U798","v":218}]
[null,null,{"$f":"T('2 REPAIR ESTIMATOR'!D762:O762)","v":"CARPET & RESILIENT"},{"$nulls":3},{"$f":"SUM(G801:G840)","v":{"v":1200,"d":"1,200"}},{"$nulls":3},"Bidder Name",null,"Bidder Name",null,"Bidder Name",null,"Bidder Name",null,"Bidder Name",null,{"$f":"G800","v":{"v":1200,"d":"1,200"}}]
[null,null,{"$f":"T('2 REPAIR ESTIMATOR'!D763:O763)","v":"Carpeting & Resilient bid/allowance"},{"$nulls":3},{"$f":"'2 REPAIR ESTIMATOR'!P763","v":0},{"$f":"T('2 REPAIR ESTIMATOR'!S763)","v":"ls"},{"$f":"'2 REPAIR ESTIMATOR'!AQ763","v":{"v":0,"d":"$0"}},{"$nulls":11},0]
[null,null,{"$f":"T('2 REPAIR ESTIMATOR'!D764:O764)","v":"Carpeting"},{"$nulls":3},{"$f":"'2 REPAIR ESTIMATOR'!P764","v":0},{"$f":"T('2 REPAIR ESTIMATOR'!S764)","v":""},{"$f":"'2 REPAIR ESTIMATOR'!AQ764","v":{"v":0,"d":"$0"}},{"$nulls":11},0]
[null,null,{"$f":"T('2 REPAIR ESTIMATOR'!D765:O765)","v":"Carpet, economy grade"},{"$nulls":3},{"$f":"'2 REPAIR ESTIMATOR'!P765","v":{"v":1200,"d":"1,200"}},{"$f":"T('2 REPAIR ESTIMATOR'!S765)","v":"sf"},{"$f":"'2 REPAIR ESTIMATOR'!AQ765","v":{"v":2505,"d":"$2,505"}},{"$nulls":11},{"v":1200,"d":"1,200"}]
[null,null,{"$f":"T('2 REPAIR ESTIMATOR'!D766:O766)","v":"Carpet average grade"},{"$nulls":3},{"$f":"'2 REPAIR ESTIMATOR'!P766","v":0},{"$f":"T('2 REPAIR ESTIMATOR'!S766)","v":"sf"},{"$f":"'2 REPAIR ESTIMATOR'!AQ766","v":{"v":0,"d":"$0"}},{"$nulls":11},0]
[null,null,{"$f":"T('2 REPAIR ESTIMATOR'!D767:O767)","v":"Carpet, premium grade"},{"$nulls":3},{"$f":"'2 REPAIR ESTIMATOR'!P767","v":0},{"$f":"T('2 REPAIR ESTIMATOR'!S767)","v":"sf"},{"$f":"'2 REPAIR ESTIMATOR'!AQ767","v":{"v":0,"d":"$0"}},{"$nulls":11},0]
[null,null,{"$f":"T('2 REPAIR ESTIMATOR'!D768:O768)","v":""},{"$nulls":3},{"$f":"'2 REPAIR ESTIMATOR'!P768","v":0},{"$f":"T('2 REPAIR ESTIMATOR'!S768)","v":""},{"$f":"'2 REPAIR ESTIMATOR'!AQ768","v":{"v":0,"d":"$0"}},{"$nulls":11},0]
[null,null,{"$f":"T('2 REPAIR ESTIMATOR'!D769:O769)","v":""},{"$nulls":3},{"$f":"'2 REPAIR ESTIMATOR'!P769","v":0},{"$f":"T('2 REPAIR ESTIMATOR'!S769)","v":""},{"$f":"'2 REPAIR ESTIMATOR'!AQ769","v":{"v":0,"d":"$0"}},{"$nulls":11},0]
[null,null,{"$f":"T('2 REPAIR ESTIMATOR'!D770:O770)","v":"Sheet Vinyl"},{"$nulls":3},{"$f":"'2 REPAIR ESTIMATOR'!P770","v":0},{"$f":"T('2 REPAIR ESTIMATOR'!S770)","v":""},{"$f":"'2 REPAIR ESTIMATOR'!AQ770","v":{"v":0,"d":"$0"}},{"$nulls":11},0]
[null,null,{"$f":"T('2 REPAIR ESTIMATOR'!D771:O771)","v":"Sheet vinyl, economy grade"},{"$nulls":3},{"$f":"'2 REPAIR ESTIMATOR'!P771","v":0},{"$f":"T('2 REPAIR ESTIMATOR'!S771)","v":"sf"},{"$f":"'2 REPAIR ESTIMATOR'!AQ771","v":{"v":0,"d":"$0"}},{"$nulls":11},0]
[null,null,{"$f":"T('2 REPAIR ESTIMATOR'!D772:O772)","v":"Sheet vinyl, average grade"},{"$nulls":3},{"$f":"'2 REPAIR ESTIMATOR'!P772","v":0},{"$f":"T('2 REPAIR ESTIMATOR'!S772)","v":"sf"},{"$f":"'2 REPAIR ESTIMATOR'!AQ772","v":{"v":0,"d":"$0"}},{"$nulls":11},0]
[null,null,{"$f":"T('2 REPAIR ESTIMATOR'!D773:O773)","v":"Sheet vinyl, premium grade"},{"$nulls":3},{"$f":"'2 REPAIR ESTIMATOR'!P773","v":0},{"$f":"T('2 REPAIR ESTIMATOR'!S773)","v":"sf"},{"$f":"'2 REPAIR ESTIMATOR'!AQ773","v":{"v":0,"d":"$0"}},{"$nulls":11},0]
[null,null,{"$f":"T('2 REPAIR ESTIMATOR'!D774:O774)","v":"Clean and wax vinyl"},{"$nulls":3},{"$f":"'2 REPAIR ESTIMATOR'!P774","v":0},{"$f":"T('2 REPAIR ESTIMATOR'!S774)","v":"sf"},{"$f":"'2 REPAIR ESTIMATOR'!AQ774","v":{"v":0,"d":"$0"}},{"$nulls":11},0]
[null,null,{"$f":"T('2 REPAIR ESTIMATOR'!D775:O775)","v":""},{"$nulls":3},{"$f":"'2 REPAIR ESTIMATOR'!P775","v":0},{"$f":"T('2 REPAIR ESTIMATOR'!S775)","v":""},{"$f":"'2 REPAIR ESTIMATOR'!AQ775","v":{"v":0,"d":"$0"}},{"$nulls":11},0]
[null,null,{"$f":"T('2 REPAIR ESTIMATOR'!D776:O776)","v":"Vinyl Tile"},{"$nulls":3},{"$f":"'2 REPAIR ESTIMATOR'!P776","v":0},{"$f":"T('2 REPAIR ESTIMATOR'!S776)","v":""},{"$f":"'2 REPAIR ESTIMATOR'!AQ776","v":{"v":0,"d":"$0"}},{"$nulls":11},0]
[null,null,{"$f":"T('2 REPAIR ESTIMATOR'!D777:O777)","v":"Vinyl tile, economy grade"},{"$nulls":3},{"$f":"'2 REPAIR ESTIMATOR'!P777","v":0},{"$f":"T('2 REPAIR ESTIMATOR'!S777)","v":"sf"},{"$f":"'2 REPAIR ESTIMATOR'!AQ777","v":{"v":0,"d":"$0"}},{"$nulls":11},0]
[null,null,{"$f":"T('2 REPAIR ESTIMATOR'!D778:O778)","v":"Vinyl tile, average grade"},{"$nulls":3},{"$f":"'2 REPAIR ESTIMATOR'!P778","v":0},{"$f":"T('2 REPAIR ESTIMATOR'!S778)","v":"sf"},{"$f":"'2 REPAIR ESTIMATOR'!AQ778","v":{"v":0,"d":"$0"}},{"$nulls":11},0]
[null,null,{"$f":"T('2 REPAIR ESTIMATOR'!D779:O779)","v":"Vinyl tile, premium grade"},{"$nulls":3},{"$f":"'2 REPAIR ESTIMATOR'!P779","v":0},{"$f":"T('2 REPAIR ESTIMATOR'!S779)","v":"sf"},{"$f":"'2 REPAIR ESTIMATOR'!AQ779","v":{"v":0,"d":"$0"}},{"$nulls":11},0]
[null,null,{"$f":"T('2 REPAIR ESTIMATOR'!D780:O780)","v":"Clean and wax vinyl"},{"$nulls":3},{"$f":"'2 REPAIR ESTIMATOR'!P780","v":0},{"$f":"T('2 REPAIR ESTIMATOR'!S780)","v":"sf"},{"$f":"'2 REPAIR ESTIMATOR'!AQ780","v":{"v":0,"d":"$0"}},{"$nulls":11},0]
[null,null,{"$f":"T('2 REPAIR ESTIMATOR'!D781:O781)","v":""},{"$nulls":3},{"$f":"'2 REPAIR ESTIMATOR'!P781","v":0},{"$f":"T('2 REPAIR ESTIMATOR'!S781)","v":""},{"$f":"'2 REPAIR ESTIMATOR'!AQ781","v":{"v":0,"d":"$0"}},{"$nulls":11},0]
[null,null,{"$f":"T('2 REPAIR ESTIMATOR'!D782:O782)","v":""},{"$nulls":3},{"$f":"'2 REPAIR ESTIMATOR'!P782","v":0},{"$f":"T('2 REPAIR ESTIMATOR'!S782)","v":""},{"$f":"'2 REPAIR ESTIMATOR'!AQ782","v":{"v":0,"d":"$0"}},{"$nulls":11},0]
[null,null,{"$f":"T('2 REPAIR ESTIMATOR'!D783:O783)","v":""},{"$nulls":3},{"$f":"'2 REPAIR ESTIMATOR'!P783","v":0},{"$f":"T('2 REPAIR ESTIMATOR'!S783)","v":""},{"$f":"'2 REPAIR ESTIMATOR'!AQ783","v":{"v":0,"d":"$0"}},{"$nulls":11},0]
[null,null,{"$f":"T('2 REPAIR ESTIMATOR'!D784:O784)","v":""},{"$nulls":3},{"$f":"'2 REPAIR ESTIMATOR'!P784","v":0},{"$f":"T('2 REPAIR ESTIMATOR'!S784)","v":""},{"$f":"'2 REPAIR ESTIMATOR'!AQ784","v":{"v":0,"d":"$0"}},{"$nulls":11},0]
[null,null,{"$f":"T('2 REPAIR ESTIMATOR'!D785:O785)","v":""},{"$nulls":3},{"$f":"'2 REPAIR ESTIMATOR'!P785","v":0},{"$f":"T('2 REPAIR ESTIMATOR'!S785)","v":""},{"$f":"'2 REPAIR ESTIMATOR'!AQ785","v":{"v":0,"d":"$0"}},{"$nulls":11},0]
[null,null,{"$f":"T('2 REPAIR ESTIMATOR'!D786:O786)","v":""},{"$nulls":3},{"$f":"'2 REPAIR ESTIMATOR'!P786","v":0},{"$f":"T('2 REPAIR ESTIMATOR'!S786)","v":""},{"$f":"'2 REPAIR ESTIMATOR'!AQ786","v":{"v":0,"d":"$0"}},{"$nulls":11},0]
[null,null,{"$f":"T('2 REPAIR ESTIMATOR'!D787:O787)","v":""},{"$nulls":3},{"$f":"'2 REPAIR ESTIMATOR'!P787","v":0},{"$f":"T('2 REPAIR ESTIMATOR'!S787)","v":""},{"$f":"'2 REPAIR ESTIMATOR'!AQ787","v":{"v":0,"d":"$0"}},{"$nulls":11},0]
[null,null,{"$f":"T('2 REPAIR ESTIMATOR'!D788:O788)","v":""},{"$nulls":3},{"$f":"'2 REPAIR ESTIMATOR'!P788","v":0},{"$f":"T('2 REPAIR ESTIMATOR'!S788)","v":""},{"$f":"'2 REPAIR ESTIMATOR'!AQ788","v":{"v":0,"d":"$0"}},{"$nulls":11},0]
[null,null,{"$f":"T('2 REPAIR ESTIMATOR'!D789:O789)","v":""},{"$nulls":3},{"$f":"'2 REPAIR ESTIMATOR'!P789","v":0},{"$f":"T('2 REPAIR ESTIMATOR'!S789)","v":""},{"$f":"'2 REPAIR ESTIMATOR'!AQ789","v":{"v":0,"d":"$0"}},{"$nulls":11},0]
[null,null,{"$f":"T('2 REPAIR ESTIMATOR'!D790:O790)","v":""},{"$nulls":3},{"$f":"'2 REPAIR ESTIMATOR'!P790","v":0},{"$f":"T('2 REPAIR ESTIMATOR'!S790)","v":""},{"$f":"'2 REPAIR ESTIMATOR'!AQ790","v":{"v":0,"d":"$0"}},{"$nulls":11},0]
[null,null,{"$f":"T('2 REPAIR ESTIMATOR'!D791:O791)","v":""},{"$nulls":3},{"$f":"'2 REPAIR ESTIMATOR'!P791","v":0},{"$f":"T('2 REPAIR ESTIMATOR'!S791)","v":""},{"$f":"'2 REPAIR ESTIMATOR'!AQ791","v":{"v":0,"d":"$0"}},{"$nulls":11},0]
[null,null,{"$f":"T('2 REPAIR ESTIMATOR'!D792:O792)","v":""},{"$nulls":3},{"$f":"'2 REPAIR ESTIMATOR'!P792","v":0},{"$f":"T('2 REPAIR ESTIMATOR'!S792)","v":""},{"$f":"'2 REPAIR ESTIMATOR'!AQ792","v":{"v":0,"d":"$0"}},{"$nulls":11},0]
[null,null,{"$f":"T('2 REPAIR ESTIMATOR'!D793:O793)","v":""},{"$nulls":3},{"$f":"'2 REPAIR ESTIMATOR'!P793","v":0},{"$f":"T('2 REPAIR ESTIMATOR'!S793)","v":""},{"$f":"'2 REPAIR ESTIMATOR'!AQ793","v":{"v":0,"d":"$0"}},{"$nulls":11},0]
[null,null,{"$f":"T('2 REPAIR ESTIMATOR'!D794:O794)","v":""},{"$nulls":3},{"$f":"'2 REPAIR ESTIMATOR'!P794","v":0},{"$f":"T('2 REPAIR ESTIMATOR'!S794)","v":""},{"$f":"'2 REPAIR ESTIMATOR'!AQ794","v":{"v":0,"d":"$0"}},{"$nulls":11},0]
[null,null,{"$f":"T('2 REPAIR ESTIMATOR'!D795:O795)","v":""},{"$nulls":3},{"$f":"'2 REPAIR ESTIMATOR'!P795","v":0},{"$f":"T('2 REPAIR ESTIMATOR'!S795)","v":""},{"$f":"'2 REPAIR ESTIMATOR'!AQ795","v":{"v":0,"d":"$0"}},{"$nulls":11},0]
[null,null,{"$f":"T('2 REPAIR ESTIMATOR'!D796:O796)","v":""},{"$nulls":3},{"$f":"'2 REPAIR ESTIMATOR'!P796","v":0},{"$f":"T('2 REPAIR ESTIMATOR'!S796)","v":""},{"$f":"'2 REPAIR ESTIMATOR'!AQ796","v":{"v":0,"d":"$0"}},{"$nulls":11},0]
[null,null,{"$f":"T('2 REPAIR ESTIMATOR'!D797:O797)","v":""},{"$nulls":3},{"$f":"'2 REPAIR ESTIMATOR'!P797","v":0},{"$f":"T('2 REPAIR ESTIMATOR'!S797)","v":""},{"$f":"'2 REPAIR ESTIMATOR'!AQ797","v":{"v":0,"d":"$0"}},{"$nulls":11},0]
[null,null,{"$f":"T('2 REPAIR ESTIMATOR'!D798:O798)","v":""},{"$nulls":3},{"$f":"'2 REPAIR ESTIMATOR'!P798","v":0},{"$f":"T('2 REPAIR ESTIMATOR'!S798)","v":""},{"$f":"'2 REPAIR ESTIMATOR'!AQ798","v":{"v":0,"d":"$0"}},{"$nulls":11},0]
[null,null,{"$f":"T('2 REPAIR ESTIMATOR'!D799:O799)","v":""},{"$nulls":3},{"$f":"'2 REPAIR ESTIMATOR'!P799","v":0},{"$f":"T('2 REPAIR ESTIMATOR'!S799)","v":""},{"$f":"'2 REPAIR ESTIMATOR'!AQ799","v":{"v":0,"d":"$0"}},{"$nulls":11},0]
[null,null,{"$f":"T('2 REPAIR ESTIMATOR'!D800:O800)","v":""},{"$nulls":3},{"$f":"'2 REPAIR ESTIMATOR'!P800","v":0},{"$f":"T('2 REPAIR ESTIMATOR'!S800)","v":""},{"$f":"'2 REPAIR ESTIMATOR'!AQ800","v":{"v":0,"d":"$0"}},{"$nulls":11},0]
[null,null,{"$f":"T('2 REPAIR ESTIMATOR'!D801:O801)","v":""},{"$nulls":3},{"$f":"'2 REPAIR ESTIMATOR'!P801","v":0},{"$f":"T('2 REPAIR ESTIMATOR'!S801)","v":""},{"$f":"'2 REPAIR ESTIMATOR'!AQ801","v":{"v":0,"d":"$0"}},{"$nulls":11},0]
[null,null,{"$f":"T('2 REPAIR ESTIMATOR'!D802:O802)","v":""},{"$nulls":3},{"$f":"'2 REPAIR ESTIMATOR'!P802","v":0},{"$f":"T('2 REPAIR ESTIMATOR'!S802)","v":""},{"$f":"'2 REPAIR ESTIMATOR'!AQ802","v":{"v":0,"d":"$0"}},{"$nulls":11},0]
[{"$nulls":20},{"$f":"IF(I842>0,1,0)","v":1}]
[null,null,{"$f":"CONCATENATE(C800,\" SUBTOTAL\")","v":"CARPET & RESILIENT SUBTOTAL"},{"$nulls":5},{"$f":"SUM(I800:J841)","v":{"v":2505,"d":"$2,505"}},{"$f":"SUM(J793:J840)","v":{"v":0,"d":"$0"}},{"$f":"SUM(K800:L841)","v":{"v":0,"d":"$0"}},{"$f":"SUM(L793:L840)","v":{"v":0,"d":"$0"}},{"$f":"SUM(M800:N841)","v":{"v":0,"d":"$0"}},{"$f":"SUM(N793:N840)","v":{"v":0,"d":"$0"}},{"$f":"SUM(O800:P841)","v":{"v":0,"d":"$0"}},{"$f":"SUM(P793:P840)","v":{"v":0,"d":"$0"}},{"$f":"SUM(Q800:R841)","v":{"v":0,"d":"$0"}},{"$f":"SUM(R793:R840)","v":{"v":0,"d":"$0"}},{"$f":"SUM(S800:T841)","v":{"v":0,"d":"$0"}},{"$f":"SUM(T793:T840)","v":{"v":0,"d":"$0"}},{"$f":"SUM(U800:U841)","v":{"v":2401,"d":"2,401"}}]
[null,null,"Contractor Exclusions:",{"$nulls":17},{"$f":"U842","v":{"v":2401,"d":"2,401"}}]
[{"$nulls":20},{"$f":"U842","v":{"v":2401,"d":"2,401"}}]
[{"$nulls":20},{"$f":"U842","v":{"v":2401,"d":"2,401"}}]
[{"$nulls":20},{"$f":"U842","v":{"v":2401,"d":"2,401"}}]
[{"$nulls":20},{"$f":"U842","v":{"v":2401,"d":"2,401"}}]
[{"$nulls":20},{"$f":"U842","v":{"v":2401,"d":"2,401"}}]
[{"$nulls":20},{"$f":"IF(I850>0,1,0)","v":1}]
[null,null,{"$f":"CONCATENATE(C800,\" TOTAL\")","v":"CARPET & RESILIENT TOTAL"},{"$nulls":5},{"$f":"I842","v":{"v":2505,"d":"$2,505"}},{"$f":"SUM(J799:J849)","v":{"v":0,"d":"$0"}},{"$f":"K842+SUM(K843:L849)","v":{"v":0,"d":"$0"}},{"$f":"SUM(L799:L849)","v":{"v":0,"d":"$0"}},{"$f":"M842+SUM(M843:N849)","v":{"v":0,"d":"$0"}},{"$f":"SUM(N799:N849)","v":{"v":0,"d":"$0"}},{"$f":"O842+SUM(O843:P849)","v":{"v":0,"d":"$0"}},{"$f":"SUM(P799:P849)","v":{"v":0,"d":"$0"}},{"$f":"Q842+SUM(Q843:R849)","v":{"v":0,"d":"$0"}},{"$f":"SUM(R799:R849)","v":{"v":0,"d":"$0"}},{"$f":"S842+SUM(S843:T849)","v":{"v":0,"d":"$0"}},{"$f":"SUM(T799:T849)","v":{"v":0,"d":"$0"}},{"$f":"U842+SUM(U843:U849)","v":{"v":16808,"d":"16,808"}}]
[{"$nulls":20},{"$f":"U850","v":{"v":16808,"d":"16,808"}}]
[null,null,{"$f":"T('2 REPAIR ESTIMATOR'!D807:O807)","v":"HARDWOOD FLOORING"},{"$nulls":3},{"$f":"SUM(G853:G892)","v":475},{"$nulls":3},"Bidder Name",null,"Bidder Name",null,"Bidder Name",null,"Bidder Name",null,"Bidder Name",null,{"$f":"G852","v":475}]
[null,null,{"$f":"T('2 REPAIR ESTIMATOR'!D808:O808)","v":"Hardwood floors, bid/allowance"},{"$nulls":3},{"$f":"'2 REPAIR ESTIMATOR'!P808","v":0},{"$f":"T('2 REPAIR ESTIMATOR'!S808)","v":"ls"},{"$f":"'2 REPAIR ESTIMATOR'!AQ808","v":{"v":0,"d":"$0"}},{"$nulls":11},0]
[null,null,{"$f":"T('2 REPAIR ESTIMATOR'!D809:O809)","v":"Laminate Flooring"},{"$nulls":3},{"$f":"'2 REPAIR ESTIMATOR'!P809","v":0},{"$f":"T('2 REPAIR ESTIMATOR'!S809)","v":""},{"$f":"'2 REPAIR ESTIMATOR'!AQ809","v":{"v":0,"d":"$0"}},{"$nulls":11},0]
[null,null,{"$f":"T('2 REPAIR ESTIMATOR'!D810:O810)","v":"Laminate wood flooring, economy grade"},{"$nulls":3},{"$f":"'2 REPAIR ESTIMATOR'!P810","v":0},{"$f":"T('2 REPAIR ESTIMATOR'!S810)","v":"sf"},{"$f":"'2 REPAIR ESTIMATOR'!AQ810","v":{"v":0,"d":"$0"}},{"$nulls":11},0]
[null,null,{"$f":"T('2 REPAIR ESTIMATOR'!D811:O811)","v":"Laminate wood flooring, average grade"},{"$nulls":3},{"$f":"'2 REPAIR ESTIMATOR'!P811","v":0},{"$f":"T('2 REPAIR ESTIMATOR'!S811)","v":"sf"},{"$f":"'2 REPAIR ESTIMATOR'!AQ811","v":{"v":0,"d":"$0"}},{"$nulls":11},0]
[null,null,{"$f":"T('2 REPAIR ESTIMATOR'!D812:O812)","v":"Laminate wood flooring, premium grade"},{"$nulls":3},{"$f":"'2 REPAIR ESTIMATOR'!P812","v":0},{"$f":"T('2 REPAIR ESTIMATOR'!S812)","v":"sf"},{"$f":"'2 REPAIR ESTIMATOR'!AQ812","v":{"v":0,"d":"$0"}},{"$nulls":11},0]
[null,null,{"$f":"T('2 REPAIR ESTIMATOR'!D813:O813)","v":""},{"$nulls":3},{"$f":"'2 REPAIR ESTIMATOR'!P813","v":0},{"$f":"T('2 REPAIR ESTIMATOR'!S813)","v":""},{"$f":"'2 REPAIR ESTIMATOR'!AQ813","v":{"v":0,"d":"$0"}},{"$nulls":11},0]
[null,null,{"$f":"T('2 REPAIR ESTIMATOR'!D814:O814)","v":"Hardwood Flooring"},{"$nulls":3},{"$f":"'2 REPAIR ESTIMATOR'!P814","v":0},{"$f":"T('2 REPAIR ESTIMATOR'!S814)","v":""},{"$f":"'2 REPAIR ESTIMATOR'!AQ814","v":{"v":0,"d":"$0"}},{"$nulls":11},0]
[null,null,{"$f":"T('2 REPAIR ESTIMATOR'!D815:O815)","v":"Hardwood flooring, economy grade"},{"$nulls":3},{"$f":"'2 REPAIR ESTIMATOR'!P815","v":0},{"$f":"T('2 REPAIR ESTIMATOR'!S815)","v":"sf"},{"$f":"'2 REPAIR ESTIMATOR'!AQ815","v":{"v":0,"d":"$0"}},{"$nulls":11},0]
[null,null,{"$f":"T('2 REPAIR ESTIMATOR'!D816:O816)","v":"Hardwood flooring, average grade"},{"$nulls":3},{"$f":"'2 REPAIR ESTIMATOR'!P816","v":475},{"$f":"T('2 REPAIR ESTIMATOR'!S816)","v":"sf"},{"$f":"'2 REPAIR ESTIMATOR'!AQ816","v":{"v":3458,"d":"$3,458"}},{"$nulls":11},475]
[null,null,{"$f":"T('2 REPAIR ESTIMATOR'!D817:O817)","v":"Hardwood flooring, premium grade"},{"$nulls":3},{"$f":"'2 REPAIR ESTIMATOR'!P817","v":0},{"$f":"T('2 REPAIR ESTIMATOR'!S817)","v":"sf"},{"$f":"'2 REPAIR ESTIMATOR'!AQ817","v":{"v":0,"d":"$0"}},{"$nulls":11},0]
[null,null,{"$f":"T('2 REPAIR ESTIMATOR'!D818:O818)","v":""},{"$nulls":3},{"$f":"'2 REPAIR ESTIMATOR'!P818","v":0},{"$f":"T('2 REPAIR ESTIMATOR'!S818)","v":""},{"$f":"'2 REPAIR ESTIMATOR'!AQ818","v":{"v":0,"d":"$0"}},{"$nulls":11},0]
[null,null,{"$f":"T('2 REPAIR ESTIMATOR'!D819:O819)","v":"Hardwood Floor Refinishing"},{"$nulls":3},{"$f":"'2 REPAIR ESTIMATOR'!P819","v":0},{"$f":"T('2 REPAIR ESTIMATOR'!S819)","v":""},{"$f":"'2 REPAIR ESTIMATOR'!AQ819","v":{"v":0,"d":"$0"}},{"$nulls":11},0]
[null,null,{"$f":"T('2 REPAIR ESTIMATOR'!D820:O820)","v":"Floor refinishing"},{"$nulls":3},{"$f":"'2 REPAIR ESTIMATOR'!P820","v":0},{"$f":"T('2 REPAIR ESTIMATOR'!S820)","v":"sf"},{"$f":"'2 REPAIR ESTIMATOR'!AQ820","v":{"v":0,"d":"$0"}},{"$nulls":11},0]
[null,null,{"$f":"T('2 REPAIR ESTIMATOR'!D821:O821)","v":"Lacing new hardwood to match existing, case-by-case"},{"$nulls":3},{"$f":"'2 REPAIR ESTIMATOR'!P821","v":0},{"$f":"T('2 REPAIR ESTIMATOR'!S821)","v":"sf"},{"$f":"'2 REPAIR ESTIMATOR'!AQ821","v":{"v":0,"d":"$0"}},{"$nulls":11},0]
[null,null,{"$f":"T('2 REPAIR ESTIMATOR'!D822:O822)","v":""},{"$nulls":3},{"$f":"'2 REPAIR ESTIMATOR'!P822","v":0},{"$f":"T('2 REPAIR ESTIMATOR'!S822)","v":""},{"$f":"'2 REPAIR ESTIMATOR'!AQ822","v":{"v":0,"d":"$0"}},{"$nulls":11},0]
[null,null,{"$f":"T('2 REPAIR ESTIMATOR'!D823:O823)","v":"Miscellaneous"},{"$nulls":3},{"$f":"'2 REPAIR ESTIMATOR'!P823","v":0},{"$f":"T('2 REPAIR ESTIMATOR'!S823)","v":""},{"$f":"'2 REPAIR ESTIMATOR'!AQ823","v":{"v":0,"d":"$0"}},{"$nulls":11},0]
[null,null,{"$f":"T('2 REPAIR ESTIMATOR'!D824:O824)","v":"Stair treads, 4ft avg"},{"$nulls":3},{"$f":"'2 REPAIR ESTIMATOR'!P824","v":0},{"$f":"T('2 REPAIR ESTIMATOR'!S824)","v":"ea"},{"$f":"'2 REPAIR ESTIMATOR'!AQ824","v":{"v":0,"d":"$0"}},{"$nulls":11},0]
[null,null,{"$f":"T('2 REPAIR ESTIMATOR'!D825:O825)","v":"Shoe moldings"},{"$nulls":3},{"$f":"'2 REPAIR ESTIMATOR'!P825","v":0},{"$f":"T('2 REPAIR ESTIMATOR'!S825)","v":"lf"},{"$f":"'2 REPAIR ESTIMATOR'!AQ825","v":{"v":0,"d":"$0"}},{"$nulls":11},0]
[null,null,{"$f":"T('2 REPAIR ESTIMATOR'!D826:O826)","v":"Underlayment"},{"$nulls":3},{"$f":"'2 REPAIR ESTIMATOR'!P826","v":0},{"$f":"T('2 REPAIR ESTIMATOR'!S826)","v":"sf"},{"$f":"'2 REPAIR ESTIMATOR'!AQ826","v":{"v":0,"d":"$0"}},{"$nulls":11},0]
[null,null,{"$f":"T('2 REPAIR ESTIMATOR'!D827:O827)","v":""},{"$nulls":3},{"$f":"'2 REPAIR ESTIMATOR'!P827","v":0},{"$f":"T('2 REPAIR ESTIMATOR'!S827)","v":""},{"$f":"'2 REPAIR ESTIMATOR'!AQ827","v":{"v":0,"d":"$0"}},{"$nulls":11},0]
[null,null,{"$f":"T('2 REPAIR ESTIMATOR'!D828:O828)","v":""},{"$nulls":3},{"$f":"'2 REPAIR ESTIMATOR'!P828","v":0},{"$f":"T('2 REPAIR ESTIMATOR'!S828)","v":""},{"$f":"'2 REPAIR ESTIMATOR'!AQ828","v":{"v":0,"d":"$0"}},{"$nulls":11},0]
[null,null,{"$f":"T('2 REPAIR ESTIMATOR'!D829:O829)","v":""},{"$nulls":3},{"$f":"'2 REPAIR ESTIMATOR'!P829","v":0},{"$f":"T('2 REPAIR ESTIMATOR'!S829)","v":""},{"$f":"'2 REPAIR ESTIMATOR'!AQ829","v":{"v":0,"d":"$0"}},{"$nulls":11},0]
[null,null,{"$f":"T('2 REPAIR ESTIMATOR'!D830:O830)","v":""},{"$nulls":3},{"$f":"'2 REPAIR ESTIMATOR'!P830","v":0},{"$f":"T('2 REPAIR ESTIMATOR'!S830)","v":""},{"$f":"'2 REPAIR ESTIMATOR'!AQ830","v":{"v":0,"d":"$0"}},{"$nulls":11},0]
[null,null,{"$f":"T('2 REPAIR ESTIMATOR'!D831:O831)","v":""},{"$nulls":3},{"$f":"'2 REPAIR ESTIMATOR'!P831","v":0},{"$f":"T('2 REPAIR ESTIMATOR'!S831)","v":""},{"$f":"'2 REPAIR ESTIMATOR'!AQ831","v":{"v":0,"d":"$0"}},{"$nulls":11},0]
[null,null,{"$f":"T('2 REPAIR ESTIMATOR'!D832:O832)","v":""},{"$nulls":3},{"$f":"'2 REPAIR ESTIMATOR'!P832","v":0},{"$f":"T('2 REPAIR ESTIMATOR'!S832)","v":""},{"$f":"'2 REPAIR ESTIMATOR'!AQ832","v":{"v":0,"d":"$0"}},{"$nulls":11},0]
[null,null,{"$f":"T('2 REPAIR ESTIMATOR'!D833:O833)","v":""},{"$nulls":3},{"$f":"'2 REPAIR ESTIMATOR'!P833","v":0},{"$f":"T('2 REPAIR ESTIMATOR'!S833)","v":""},{"$f":"'2 REPAIR ESTIMATOR'!AQ833","v":{"v":0,"d":"$0"}},{"$nulls":11},0]
[null,null,{"$f":"T('2 REPAIR ESTIMATOR'!D834:O834)","v":""},{"$nulls":3},{"$f":"'2 REPAIR ESTIMATOR'!P834","v":0},{"$f":"T('2 REPAIR ESTIMATOR'!S834)","v":""},{"$f":"'2 REPAIR ESTIMATOR'!AQ834","v":{"v":0,"d":"$0"}},{"$nulls":11},0]
[null,null,{"$f":"T('2 REPAIR ESTIMATOR'!D835:O835)","v":""},{"$nulls":3},{"$f":"'2 REPAIR ESTIMATOR'!P835","v":0},{"$f":"T('2 REPAIR ESTIMATOR'!S835)","v":""},{"$f":"'2 REPAIR ESTIMATOR'!AQ835","v":{"v":0,"d":"$0"}},{"$nulls":11},0]
[null,null,{"$f":"T('2 REPAIR ESTIMATOR'!D836:O836)","v":""},{"$nulls":3},{"$f":"'2 REPAIR ESTIMATOR'!P836","v":0},{"$f":"T('2 REPAIR ESTIMATOR'!S836)","v":""},{"$f":"'2 REPAIR ESTIMATOR'!AQ836","v":{"v":0,"d":"$0"}},{"$nulls":11},0]
[null,null,{"$f":"T('2 REPAIR ESTIMATOR'!D837:O837)","v":""},{"$nulls":3},{"$f":"'2 REPAIR ESTIMATOR'!P837","v":0},{"$f":"T('2 REPAIR ESTIMATOR'!S837)","v":""},{"$f":"'2 REPAIR ESTIMATOR'!AQ837","v":{"v":0,"d":"$0"}},{"$nulls":11},0]
[null,null,{"$f":"T('2 REPAIR ESTIMATOR'!D838:O838)","v":""},{"$nulls":3},{"$f":"'2 REPAIR ESTIMATOR'!P838","v":0},{"$f":"T('2 REPAIR ESTIMATOR'!S838)","v":""},{"$f":"'2 REPAIR ESTIMATOR'!AQ838","v":{"v":0,"d":"$0"}},{"$nulls":11},0]
[null,null,{"$f":"T('2 REPAIR ESTIMATOR'!D839:O839)","v":""},{"$nulls":3},{"$f":"'2 REPAIR ESTIMATOR'!P839","v":0},{"$f":"T('2 REPAIR ESTIMATOR'!S839)","v":""},{"$f":"'2 REPAIR ESTIMATOR'!AQ839","v":{"v":0,"d":"$0"}},{"$nulls":11},0]
[null,null,{"$f":"T('2 REPAIR ESTIMATOR'!D840:O840)","v":""},{"$nulls":3},{"$f":"'2 REPAIR ESTIMATOR'!P840","v":0},{"$f":"T('2 REPAIR ESTIMATOR'!S840)","v":""},{"$f":"'2 REPAIR ESTIMATOR'!AQ840","v":{"v":0,"d":"$0"}},{"$nulls":11},0]
[null,null,{"$f":"T('2 REPAIR ESTIMATOR'!D841:O841)","v":""},{"$nulls":3},{"$f":"'2 REPAIR ESTIMATOR'!P841","v":0},{"$f":"T('2 REPAIR ESTIMATOR'!S841)","v":""},{"$f":"'2 REPAIR ESTIMATOR'!AQ841","v":{"v":0,"d":"$0"}},{"$nulls":11},0]
[null,null,{"$f":"T('2 REPAIR ESTIMATOR'!D842:O842)","v":""},{"$nulls":3},{"$f":"'2 REPAIR ESTIMATOR'!P842","v":0},{"$f":"T('2 REPAIR ESTIMATOR'!S842)","v":""},{"$f":"'2 REPAIR ESTIMATOR'!AQ842","v":{"v":0,"d":"$0"}},{"$nulls":11},0]
[null,null,{"$f":"T('2 REPAIR ESTIMATOR'!D843:O843)","v":""},{"$nulls":3},{"$f":"'2 REPAIR ESTIMATOR'!P843","v":0},{"$f":"T('2 REPAIR ESTIMATOR'!S843)","v":""},{"$f":"'2 REPAIR ESTIMATOR'!AQ843","v":{"v":0,"d":"$0"}},{"$nulls":11},0]
[null,null,{"$f":"T('2 REPAIR ESTIMATOR'!D844:O844)","v":""},{"$nulls":3},{"$f":"'2 REPAIR ESTIMATOR'!P844","v":0},{"$f":"T('2 REPAIR ESTIMATOR'!S844)","v":""},{"$f":"'2 REPAIR ESTIMATOR'!AQ844","v":{"v":0,"d":"$0"}},{"$nulls":11},0]
[null,null,{"$f":"T('2 REPAIR ESTIMATOR'!D845:O845)","v":""},{"$nulls":3},{"$f":"'2 REPAIR ESTIMATOR'!P845","v":0},{"$f":"T('2 REPAIR ESTIMATOR'!S845)","v":""},{"$f":"'2 REPAIR ESTIMATOR'!AQ845","v":{"v":0,"d":"$0"}},{"$nulls":11},0]
[null,null,{"$f":"T('2 REPAIR ESTIMATOR'!D846:O846)","v":""},{"$nulls":3},{"$f":"'2 REPAIR ESTIMATOR'!P846","v":0},{"$f":"T('2 REPAIR ESTIMATOR'!S846)","v":""},{"$f":"'2 REPAIR ESTIMATOR'!AQ846","v":{"v":0,"d":"$0"}},{"$nulls":11},0]
[null,null,{"$f":"T('2 REPAIR ESTIMATOR'!D847:O847)","v":""},{"$nulls":3},{"$f":"'2 REPAIR ESTIMATOR'!P847","v":0},{"$f":"T('2 REPAIR ESTIMATOR'!S847)","v":""},{"$f":"'2 REPAIR ESTIMATOR'!AQ847","v":{"v":0,"d":"$0"}},{"$nulls":11},0]
[{"$nulls":20},{"$f":"IF(I894>0,1,0)","v":1}]
[null,null,{"$f":"CONCATENATE(C852,\" SUBTOTAL\")","v":"HARDWOOD FLOORING SUBTOTAL"},{"$nulls":5},{"$f":"SUM(I852:J893)","v":{"v":3458,"d":"$3,458"}},{"$f":"SUM(J845:J892)","v":{"v":0,"d":"$0"}},{"$f":"SUM(K852:L893)","v":{"v":0,"d":"$0"}},{"$f":"SUM(L845:L892)","v":{"v":0,"d":"$0"}},{"$f":"SUM(M852:N893)","v":{"v":0,"d":"$0"}},{"$f":"SUM(N845:N892)","v":{"v":0,"d":"$0"}},{"$f":"SUM(O852:P893)","v":{"v":0,"d":"$0"}},{"$f":"SUM(P845:P892)","v":{"v":0,"d":"$0"}},{"$f":"SUM(Q852:R893)","v":{"v":0,"d":"$0"}},{"$f":"SUM(R845:R892)","v":{"v":0,"d":"$0"}},{"$f":"SUM(S852:T893)","v":{"v":0,"d":"$0"}},{"$f":"SUM(T845:T892)","v":{"v":0,"d":"$0"}},{"$f":"SUM(U852:U893)","v":951}]
[null,null,"Contractor Exclusions:",{"$nulls":17},{"$f":"U894","v":951}]
[{"$nulls":20},{"$f":"U894","v":951}]
[{"$nulls":20},{"$f":"U894","v":951}]
[{"$nulls":20},{"$f":"U894","v":951}]
[{"$nulls":20},{"$f":"U894","v":951}]
[{"$nulls":20},{"$f":"U894","v":951}]
[{"$nulls":20},{"$f":"IF(I902>0,1,0)","v":1}]
[null,null,{"$f":"CONCATENATE(C852,\" TOTAL\")","v":"HARDWOOD FLOORING TOTAL"},{"$nulls":5},{"$f":"I894","v":{"v":3458,"d":"$3,458"}},{"$f":"SUM(J851:J901)","v":{"v":0,"d":"$0"}},{"$f":"K894+SUM(K895:L901)","v":{"v":0,"d":"$0"}},{"$f":"SUM(L851:L901)","v":{"v":0,"d":"$0"}},{"$f":"M894+SUM(M895:N901)","v":{"v":0,"d":"$0"}},{"$f":"SUM(N851:N901)","v":{"v":0,"d":"$0"}},{"$f":"O894+SUM(O895:P901)","v":{"v":0,"d":"$0"}},{"$f":"SUM(P851:P901)","v":{"v":0,"d":"$0"}},{"$f":"Q894+SUM(Q895:R901)","v":{"v":0,"d":"$0"}},{"$f":"SUM(R851:R901)","v":{"v":0,"d":"$0"}},{"$f":"S894+SUM(S895:T901)","v":{"v":0,"d":"$0"}},{"$f":"SUM(T851:T901)","v":{"v":0,"d":"$0"}},{"$f":"U894+SUM(U895:U901)","v":{"v":6658,"d":"6,658"}}]
[{"$nulls":20},{"$f":"U902","v":{"v":6658,"d":"6,658"}}]
[null,null,{"$f":"T('2 REPAIR ESTIMATOR'!D852:O852)","v":"TILING"},{"$nulls":3},{"$f":"SUM(G905:G944)","v":300},{"$nulls":3},"Bidder Name",null,"Bidder Name",null,"Bidder Name",null,"Bidder Name",null,"Bidder Name",null,{"$f":"G904","v":300}]
[null,null,{"$f":"T('2 REPAIR ESTIMATOR'!D853:O853)","v":"Tiling bid/allowance"},{"$nulls":3},{"$f":"'2 REPAIR ESTIMATOR'!P853","v":0},{"$f":"T('2 REPAIR ESTIMATOR'!S853)","v":"ls"},{"$f":"'2 REPAIR ESTIMATOR'!AQ853","v":{"v":0,"d":"$0"}},{"$nulls":11},0]
[null,null,{"$f":"T('2 REPAIR ESTIMATOR'!D854:O854)","v":"Kitchen "},{"$nulls":3},{"$f":"'2 REPAIR ESTIMATOR'!P854","v":0},{"$f":"T('2 REPAIR ESTIMATOR'!S854)","v":""},{"$f":"'2 REPAIR ESTIMATOR'!AQ854","v":{"v":0,"d":"$0"}},{"$nulls":11},0]
[null,null,{"$f":"T('2 REPAIR ESTIMATOR'!D855:O855)","v":"Kitchen backsplash, mosaic tile"},{"$nulls":3},{"$f":"'2 REPAIR ESTIMATOR'!P855","v":25},{"$f":"T('2 REPAIR ESTIMATOR'!S855)","v":"sf"},{"$f":"'2 REPAIR ESTIMATOR'!AQ855","v":{"v":651.25,"d":"$651"}},{"$nulls":11},25]
[null,null,{"$f":"T('2 REPAIR ESTIMATOR'!D856:O856)","v":"Floor tile, Kitchen"},{"$nulls":3},{"$f":"'2 REPAIR ESTIMATOR'!P856","v":0},{"$f":"T('2 REPAIR ESTIMATOR'!S856)","v":"sf"},{"$f":"'2 REPAIR ESTIMATOR'!AQ856","v":{"v":0,"d":"$0"}},{"$nulls":11},0]
[null,null,{"$f":"T('2 REPAIR ESTIMATOR'!D857:O857)","v":""},{"$nulls":3},{"$f":"'2 REPAIR ESTIMATOR'!P857","v":0},{"$f":"T('2 REPAIR ESTIMATOR'!S857)","v":""},{"$f":"'2 REPAIR ESTIMATOR'!AQ857","v":{"v":0,"d":"$0"}},{"$nulls":11},0]
[null,null,{"$f":"T('2 REPAIR ESTIMATOR'!D858:O858)","v":""},{"$nulls":3},{"$f":"'2 REPAIR ESTIMATOR'!P858","v":0},{"$f":"T('2 REPAIR ESTIMATOR'!S858)","v":""},{"$f":"'2 REPAIR ESTIMATOR'!AQ858","v":{"v":0,"d":"$0"}},{"$nulls":11},0]
[null,null,{"$f":"T('2 REPAIR ESTIMATOR'!D859:O859)","v":"Bathrooms"},{"$nulls":3},{"$f":"'2 REPAIR ESTIMATOR'!P859","v":0},{"$f":"T('2 REPAIR ESTIMATOR'!S859)","v":""},{"$f":"'2 REPAIR ESTIMATOR'!AQ859","v":{"v":0,"d":"$0"}},{"$nulls":11},0]
[null,null,{"$f":"T('2 REPAIR ESTIMATOR'!D860:O860)","v":"Shower tile, standard"},{"$nulls":3},{"$f":"'2 REPAIR ESTIMATOR'!P860","v":180},{"$f":"T('2 REPAIR ESTIMATOR'!S860)","v":"sf"},{"$f":"'2 REPAIR ESTIMATOR'!AQ860","v":{"v":2055.6000000000004,"d":"$2,056"}},{"$nulls":11},180]
[null,null,{"$f":"T('2 REPAIR ESTIMATOR'!D861:O861)","v":"Shower tile, accent mosaic tile"},{"$nulls":3},{"$f":"'2 REPAIR ESTIMATOR'!P861","v":20},{"$f":"T('2 REPAIR ESTIMATOR'!S861)","v":"sf"},{"$f":"'2 REPAIR ESTIMATOR'!AQ861","v":{"v":421,"d":"$421"}},{"$nulls":11},20]
[null,null,{"$f":"T('2 REPAIR ESTIMATOR'!D862:O862)","v":"Floor tile, bathrooms"},{"$nulls":3},{"$f":"'2 REPAIR ESTIMATOR'!P862","v":75},{"$f":"T('2 REPAIR ESTIMATOR'!S862)","v":"sf"},{"$f":"'2 REPAIR ESTIMATOR'!AQ862","v":{"v":776.25,"d":"$776"}},{"$nulls":11},75]
[null,null,{"$f":"T('2 REPAIR ESTIMATOR'!D863:O863)","v":""},{"$nulls":3},{"$f":"'2 REPAIR ESTIMATOR'!P863","v":0},{"$f":"T('2 REPAIR ESTIMATOR'!S863)","v":""},{"$f":"'2 REPAIR ESTIMATOR'!AQ863","v":{"v":0,"d":"$0"}},{"$nulls":11},0]
[null,null,{"$f":"T('2 REPAIR ESTIMATOR'!D864:O864)","v":""},{"$nulls":3},{"$f":"'2 REPAIR ESTIMATOR'!P864","v":0},{"$f":"T('2 REPAIR ESTIMATOR'!S864)","v":""},{"$f":"'2 REPAIR ESTIMATOR'!AQ864","v":{"v":0,"d":"$0"}},{"$nulls":11},0]
[null,null,{"$f":"T('2 REPAIR ESTIMATOR'!D865:O865)","v":"Miscellaneous Tiling"},{"$nulls":3},{"$f":"'2 REPAIR ESTIMATOR'!P865","v":0},{"$f":"T('2 REPAIR ESTIMATOR'!S865)","v":""},{"$f":"'2 REPAIR ESTIMATOR'!AQ865","v":{"v":0,"d":"$0"}},{"$nulls":11},0]
[null,null,{"$f":"T('2 REPAIR ESTIMATOR'!D866:O866)","v":"Floor tile, entry "},{"$nulls":3},{"$f":"'2 REPAIR ESTIMATOR'!P866","v":0},{"$f":"T('2 REPAIR ESTIMATOR'!S866)","v":"sf"},{"$f":"'2 REPAIR ESTIMATOR'!AQ866","v":{"v":0,"d":"$0"}},{"$nulls":11},0]
[null,null,{"$f":"T('2 REPAIR ESTIMATOR'!D867:O867)","v":"Fireplace tiling"},{"$nulls":3},{"$f":"'2 REPAIR ESTIMATOR'!P867","v":0},{"$f":"T('2 REPAIR ESTIMATOR'!S867)","v":"sf"},{"$f":"'2 REPAIR ESTIMATOR'!AQ867","v":{"v":0,"d":"$0"}},{"$nulls":11},0]
[null,null,{"$f":"T('2 REPAIR ESTIMATOR'!D868:O868)","v":""},{"$nulls":3},{"$f":"'2 REPAIR ESTIMATOR'!P868","v":0},{"$f":"T('2 REPAIR ESTIMATOR'!S868)","v":""},{"$f":"'2 REPAIR ESTIMATOR'!AQ868","v":{"v":0,"d":"$0"}},{"$nulls":11},0]
[null,null,{"$f":"T('2 REPAIR ESTIMATOR'!D869:O869)","v":""},{"$nulls":3},{"$f":"'2 REPAIR ESTIMATOR'!P869","v":0},{"$f":"T('2 REPAIR ESTIMATOR'!S869)","v":""},{"$f":"'2 REPAIR ESTIMATOR'!AQ869","v":{"v":0,"d":"$0"}},{"$nulls":11},0]
[null,null,{"$f":"T('2 REPAIR ESTIMATOR'!D870:O870)","v":"Other"},{"$nulls":3},{"$f":"'2 REPAIR ESTIMATOR'!P870","v":0},{"$f":"T('2 REPAIR ESTIMATOR'!S870)","v":""},{"$f":"'2 REPAIR ESTIMATOR'!AQ870","v":{"v":0,"d":"$0"}},{"$nulls":11},0]
[null,null,{"$f":"T('2 REPAIR ESTIMATOR'!D871:O871)","v":"Backer board 1/4\" at floor tile"},{"$nulls":3},{"$f":"'2 REPAIR ESTIMATOR'!P871","v":0},{"$f":"T('2 REPAIR ESTIMATOR'!S871)","v":"sf"},{"$f":"'2 REPAIR ESTIMATOR'!AQ871","v":{"v":0,"d":"$0"}},{"$nulls":11},0]
[null,null,{"$f":"T('2 REPAIR ESTIMATOR'!D872:O872)","v":"Backer board 1/2\" at wall tile"},{"$nulls":3},{"$f":"'2 REPAIR ESTIMATOR'!P872","v":0},{"$f":"T('2 REPAIR ESTIMATOR'!S872)","v":"sf"},{"$f":"'2 REPAIR ESTIMATOR'!AQ872","v":{"v":0,"d":"$0"}},{"$nulls":11},0]
[null,null,{"$f":"T('2 REPAIR ESTIMATOR'!D873:O873)","v":""},{"$nulls":3},{"$f":"'2 REPAIR ESTIMATOR'!P873","v":0},{"$f":"T('2 REPAIR ESTIMATOR'!S873)","v":""},{"$f":"'2 REPAIR ESTIMATOR'!AQ873","v":{"v":0,"d":"$0"}},{"$nulls":11},0]
[null,null,{"$f":"T('2 REPAIR ESTIMATOR'!D874:O874)","v":""},{"$nulls":3},{"$f":"'2 REPAIR ESTIMATOR'!P874","v":0},{"$f":"T('2 REPAIR ESTIMATOR'!S874)","v":""},{"$f":"'2 REPAIR ESTIMATOR'!AQ874","v":{"v":0,"d":"$0"}},{"$nulls":11},0]
[null,null,{"$f":"T('2 REPAIR ESTIMATOR'!D875:O875)","v":""},{"$nulls":3},{"$f":"'2 REPAIR ESTIMATOR'!P875","v":0},{"$f":"T('2 REPAIR ESTIMATOR'!S875)","v":""},{"$f":"'2 REPAIR ESTIMATOR'!AQ875","v":{"v":0,"d":"$0"}},{"$nulls":11},0]
[null,null,{"$f":"T('2 REPAIR ESTIMATOR'!D876:O876)","v":""},{"$nulls":3},{"$f":"'2 REPAIR ESTIMATOR'!P876","v":0},{"$f":"T('2 REPAIR ESTIMATOR'!S876)","v":""},{"$f":"'2 REPAIR ESTIMATOR'!AQ876","v":{"v":0,"d":"$0"}},{"$nulls":11},0]
[null,null,{"$f":"T('2 REPAIR ESTIMATOR'!D877:O877)","v":""},{"$nulls":3},{"$f":"'2 REPAIR ESTIMATOR'!P877","v":0},{"$f":"T('2 REPAIR ESTIMATOR'!S877)","v":""},{"$f":"'2 REPAIR ESTIMATOR'!AQ877","v":{"v":0,"d":"$0"}},{"$nulls":11},0]
[null,null,{"$f":"T('2 REPAIR ESTIMATOR'!D878:O878)","v":""},{"$nulls":3},{"$f":"'2 REPAIR ESTIMATOR'!P878","v":0},{"$f":"T('2 REPAIR ESTIMATOR'!S878)","v":""},{"$f":"'2 REPAIR ESTIMATOR'!AQ878","v":{"v":0,"d":"$0"}},{"$nulls":11},0]
[null,null,{"$f":"T('2 REPAIR ESTIMATOR'!D879:O879)","v":""},{"$nulls":3},{"$f":"'2 REPAIR ESTIMATOR'!P879","v":0},{"$f":"T('2 REPAIR ESTIMATOR'!S879)","v":""},{"$f":"'2 REPAIR ESTIMATOR'!AQ879","v":{"v":0,"d":"$0"}},{"$nulls":11},0]
[null,null,{"$f":"T('2 REPAIR ESTIMATOR'!D880:O880)","v":""},{"$nulls":3},{"$f":"'2 REPAIR ESTIMATOR'!P880","v":0},{"$f":"T('2 REPAIR ESTIMATOR'!S880)","v":""},{"$f":"'2 REPAIR ESTIMATOR'!AQ880","v":{"v":0,"d":"$0"}},{"$nulls":11},0]
[null,null,{"$f":"T('2 REPAIR ESTIMATOR'!D881:O881)","v":""},{"$nulls":3},{"$f":"'2 REPAIR ESTIMATOR'!P881","v":0},{"$f":"T('2 REPAIR ESTIMATOR'!S881)","v":""},{"$f":"'2 REPAIR ESTIMATOR'!AQ881","v":{"v":0,"d":"$0"}},{"$nulls":11},0]
[null,null,{"$f":"T('2 REPAIR ESTIMATOR'!D882:O882)","v":""},{"$nulls":3},{"$f":"'2 REPAIR ESTIMATOR'!P882","v":0},{"$f":"T('2 REPAIR ESTIMATOR'!S882)","v":""},{"$f":"'2 REPAIR ESTIMATOR'!AQ882","v":{"v":0,"d":"$0"}},{"$nulls":11},0]
[null,null,{"$f":"T('2 REPAIR ESTIMATOR'!D883:O883)","v":""},{"$nulls":3},{"$f":"'2 REPAIR ESTIMATOR'!P883","v":0},{"$f":"T('2 REPAIR ESTIMATOR'!S883)","v":""},{"$f":"'2 REPAIR ESTIMATOR'!AQ883","v":{"v":0,"d":"$0"}},{"$nulls":11},0]
[null,null,{"$f":"T('2 REPAIR ESTIMATOR'!D884:O884)","v":""},{"$nulls":3},{"$f":"'2 REPAIR ESTIMATOR'!P884","v":0},{"$f":"T('2 REPAIR ESTIMATOR'!S884)","v":""},{"$f":"'2 REPAIR ESTIMATOR'!AQ884","v":{"v":0,"d":"$0"}},{"$nulls":11},0]
[null,null,{"$f":"T('2 REPAIR ESTIMATOR'!D885:O885)","v":""},{"$nulls":3},{"$f":"'2 REPAIR ESTIMATOR'!P885","v":0},{"$f":"T('2 REPAIR ESTIMATOR'!S885)","v":""},{"$f":"'2 REPAIR ESTIMATOR'!AQ885","v":{"v":0,"d":"$0"}},{"$nulls":11},0]
[null,null,{"$f":"T('2 REPAIR ESTIMATOR'!D886:O886)","v":""},{"$nulls":3},{"$f":"'2 REPAIR ESTIMATOR'!P886","v":0},{"$f":"T('2 REPAIR ESTIMATOR'!S886)","v":""},{"$f":"'2 REPAIR ESTIMATOR'!AQ886","v":{"v":0,"d":"$0"}},{"$nulls":11},0]
[null,null,{"$f":"T('2 REPAIR ESTIMATOR'!D887:O887)","v":""},{"$nulls":3},{"$f":"'2 REPAIR ESTIMATOR'!P887","v":0},{"$f":"T('2 REPAIR ESTIMATOR'!S887)","v":""},{"$f":"'2 REPAIR ESTIMATOR'!AQ887","v":{"v":0,"d":"$0"}},{"$nulls":11},0]
[null,null,{"$f":"T('2 REPAIR ESTIMATOR'!D888:O888)","v":""},{"$nulls":3},{"$f":"'2 REPAIR ESTIMATOR'!P888","v":0},{"$f":"T('2 REPAIR ESTIMATOR'!S888)","v":""},{"$f":"'2 REPAIR ESTIMATOR'!AQ888","v":{"v":0,"d":"$0"}},{"$nulls":11},0]
[null,null,{"$f":"T('2 REPAIR ESTIMATOR'!D889:O889)","v":""},{"$nulls":3},{"$f":"'2 REPAIR ESTIMATOR'!P889","v":0},{"$f":"T('2 REPAIR ESTIMATOR'!S889)","v":""},{"$f":"'2 REPAIR ESTIMATOR'!AQ889","v":{"v":0,"d":"$0"}},{"$nulls":11},0]
[null,null,{"$f":"T('2 REPAIR ESTIMATOR'!D890:O890)","v":""},{"$nulls":3},{"$f":"'2 REPAIR ESTIMATOR'!P890","v":0},{"$f":"T('2 REPAIR ESTIMATOR'!S890)","v":""},{"$f":"'2 REPAIR ESTIMATOR'!AQ890","v":{"v":0,"d":"$0"}},{"$nulls":11},0]
[null,null,{"$f":"T('2 REPAIR ESTIMATOR'!D891:O891)","v":""},{"$nulls":3},{"$f":"'2 REPAIR ESTIMATOR'!P891","v":0},{"$f":"T('2 REPAIR ESTIMATOR'!S891)","v":""},{"$f":"'2 REPAIR ESTIMATOR'!AQ891","v":{"v":0,"d":"$0"}},{"$nulls":11},0]
[null,null,{"$f":"T('2 REPAIR ESTIMATOR'!D892:O892)","v":""},{"$nulls":3},{"$f":"'2 REPAIR ESTIMATOR'!P892","v":0},{"$f":"T('2 REPAIR ESTIMATOR'!S892)","v":""},{"$f":"'2 REPAIR ESTIMATOR'!AQ892","v":{"v":0,"d":"$0"}},{"$nulls":11},0]
[{"$nulls":20},{"$f":"IF(I946>0,1,0)","v":1}]
[null,null,{"$f":"CONCATENATE(C904,\" SUBTOTAL\")","v":"TILING SUBTOTAL"},{"$nulls":5},{"$f":"SUM(I904:J945)","v":{"v":3904.1000000000004,"d":"$3,904"}},{"$f":"SUM(J897:J944)","v":{"v":0,"d":"$0"}},{"$f":"SUM(K904:L945)","v":{"v":0,"d":"$0"}},{"$f":"SUM(L897:L944)","v":{"v":0,"d":"$0"}},{"$f":"SUM(M904:N945)","v":{"v":0,"d":"$0"}},{"$f":"SUM(N897:N944)","v":{"v":0,"d":"$0"}},{"$f":"SUM(O904:P945)","v":{"v":0,"d":"$0"}},{"$f":"SUM(P897:P944)","v":{"v":0,"d":"$0"}},{"$f":"SUM(Q904:R945)","v":{"v":0,"d":"$0"}},{"$f":"SUM(R897:R944)","v":{"v":0,"d":"$0"}},{"$f":"SUM(S904:T945)","v":{"v":0,"d":"$0"}},{"$f":"SUM(T897:T944)","v":{"v":0,"d":"$0"}},{"$f":"SUM(U904:U945)","v":601}]
[null,null,"Contractor Exclusions:",{"$nulls":17},{"$f":"U946","v":601}]
[{"$nulls":20},{"$f":"U946","v":601}]
[{"$nulls":20},{"$f":"U946","v":601}]
[{"$nulls":20},{"$f":"U946","v":601}]
[{"$nulls":20},{"$f":"U946","v":601}]
[{"$nulls":20},{"$f":"U946","v":601}]
[{"$nulls":20},{"$f":"IF(I954>0,1,0)","v":1}]
[null,null,{"$f":"CONCATENATE(C904,\" TOTAL\")","v":"TILING TOTAL"},{"$nulls":5},{"$f":"I946","v":{"v":3904.1000000000004,"d":"$3,904"}},{"$f":"SUM(J903:J953)","v":{"v":0,"d":"$0"}},{"$f":"K946+SUM(K947:L953)","v":{"v":0,"d":"$0"}},{"$f":"SUM(L903:L953)","v":{"v":0,"d":"$0"}},{"$f":"M946+SUM(M947:N953)","v":{"v":0,"d":"$0"}},{"$f":"SUM(N903:N953)","v":{"v":0,"d":"$0"}},{"$f":"O946+SUM(O947:P953)","v":{"v":0,"d":"$0"}},{"$f":"SUM(P903:P953)","v":{"v":0,"d":"$0"}},{"$f":"Q946+SUM(Q947:R953)","v":{"v":0,"d":"$0"}},{"$f":"SUM(R903:R953)","v":{"v":0,"d":"$0"}},{"$f":"S946+SUM(S947:T953)","v":{"v":0,"d":"$0"}},{"$f":"SUM(T903:T953)","v":{"v":0,"d":"$0"}},{"$f":"U946+SUM(U947:U953)","v":{"v":4208,"d":"4,208"}}]
[{"$nulls":20},{"$f":"U954","v":{"v":4208,"d":"4,208"}}]
[null,null,{"$f":"T('2 REPAIR ESTIMATOR'!D897)","v":"PAINTING"},{"$nulls":3},{"$f":"SUM(G957:G996)","v":2},{"$nulls":3},"Bidder Name",null,"Bidder Name",null,"Bidder Name",null,"Bidder Name",null,"Bidder Name",null,{"$f":"G956","v":2}]
[null,null,{"$f":"T('2 REPAIR ESTIMATOR'!D898)","v":"Exterior Painting"},{"$nulls":3},{"$f":"'2 REPAIR ESTIMATOR'!P898","v":0},{"$f":"T('2 REPAIR ESTIMATOR'!S898)","v":""},{"$f":"'2 REPAIR ESTIMATOR'!AQ898","v":{"v":0,"d":"$0"}},{"$nulls":11},0]
[null,null,{"$f":"T('2 REPAIR ESTIMATOR'!D899)","v":"Exterior painting, bid/allowance"},{"$nulls":3},{"$f":"'2 REPAIR ESTIMATOR'!P899","v":1},{"$f":"T('2 REPAIR ESTIMATOR'!S899)","v":"ls"},{"$f":"'2 REPAIR ESTIMATOR'!AQ899","v":{"v":2000,"d":"$2,000"}},{"$nulls":11},1]
[null,null,{"$f":"T('2 REPAIR ESTIMATOR'!D900)","v":"Exterior painting materials allowance"},{"$nulls":3},{"$f":"'2 REPAIR ESTIMATOR'!P900","v":0},{"$f":"T('2 REPAIR ESTIMATOR'!S900)","v":"gal"},{"$f":"'2 REPAIR ESTIMATOR'!AQ900","v":{"v":0,"d":"$0"}},{"$nulls":11},0]
[null,null,{"$f":"T('2 REPAIR ESTIMATOR'!D901)","v":"Prep/clean siding"},{"$nulls":3},{"$f":"'2 REPAIR ESTIMATOR'!P901","v":0},{"$f":"T('2 REPAIR ESTIMATOR'!S901)","v":"sf"},{"$f":"'2 REPAIR ESTIMATOR'!AQ901","v":{"v":0,"d":"$0"}},{"$nulls":11},0]
[null,null,{"$f":"T('2 REPAIR ESTIMATOR'!D902)","v":"Paint siding"},{"$nulls":3},{"$f":"'2 REPAIR ESTIMATOR'!P902","v":0},{"$f":"T('2 REPAIR ESTIMATOR'!S902)","v":"sf"},{"$f":"'2 REPAIR ESTIMATOR'!AQ902","v":{"v":0,"d":"$0"}},{"$nulls":11},0]
[null,null,{"$f":"T('2 REPAIR ESTIMATOR'!D903)","v":"Paint exterior door"},{"$nulls":3},{"$f":"'2 REPAIR ESTIMATOR'!P903","v":0},{"$f":"T('2 REPAIR ESTIMATOR'!S903)","v":"ea"},{"$f":"'2 REPAIR ESTIMATOR'!AQ903","v":{"v":0,"d":"$0"}},{"$nulls":11},0]
[null,null,{"$f":"T('2 REPAIR ESTIMATOR'!D904)","v":"Paint trim only"},{"$nulls":3},{"$f":"'2 REPAIR ESTIMATOR'!P904","v":0},{"$f":"T('2 REPAIR ESTIMATOR'!S904)","v":"lf"},{"$f":"'2 REPAIR ESTIMATOR'!AQ904","v":{"v":0,"d":"$0"}},{"$nulls":11},0]
[null,null,{"$f":"T('2 REPAIR ESTIMATOR'!D905)","v":"Sand & refinish decking"},{"$nulls":3},{"$f":"'2 REPAIR ESTIMATOR'!P905","v":0},{"$f":"T('2 REPAIR ESTIMATOR'!S905)","v":"sf"},{"$f":"'2 REPAIR ESTIMATOR'!AQ905","v":{"v":0,"d":"$0"}},{"$nulls":11},0]
[null,null,{"$f":"T('2 REPAIR ESTIMATOR'!D906)","v":""},{"$nulls":3},{"$f":"'2 REPAIR ESTIMATOR'!P906","v":0},{"$f":"T('2 REPAIR ESTIMATOR'!S906)","v":""},{"$f":"'2 REPAIR ESTIMATOR'!AQ906","v":{"v":0,"d":"$0"}},{"$nulls":11},0]
[null,null,{"$f":"T('2 REPAIR ESTIMATOR'!D907)","v":""},{"$nulls":3},{"$f":"'2 REPAIR ESTIMATOR'!P907","v":0},{"$f":"T('2 REPAIR ESTIMATOR'!S907)","v":""},{"$f":"'2 REPAIR ESTIMATOR'!AQ907","v":{"v":0,"d":"$0"}},{"$nulls":11},0]
[null,null,{"$f":"T('2 REPAIR ESTIMATOR'!D908)","v":"Interior Painting"},{"$nulls":3},{"$f":"'2 REPAIR ESTIMATOR'!P908","v":0},{"$f":"T('2 REPAIR ESTIMATOR'!S908)","v":""},{"$f":"'2 REPAIR ESTIMATOR'!AQ908","v":{"v":0,"d":"$0"}},{"$nulls":11},0]
[null,null,{"$f":"T('2 REPAIR ESTIMATOR'!D909)","v":"Interior painting, bid/allowance"},{"$nulls":3},{"$f":"'2 REPAIR ESTIMATOR'!P909","v":1},{"$f":"T('2 REPAIR ESTIMATOR'!S909)","v":"ls"},{"$f":"'2 REPAIR ESTIMATOR'!AQ909","v":{"v":2000,"d":"$2,000"}},{"$nulls":11},1]
[null,null,{"$f":"T('2 REPAIR ESTIMATOR'!D910)","v":"Interior painting materials allowance"},{"$nulls":3},{"$f":"'2 REPAIR ESTIMATOR'!P910","v":0},{"$f":"T('2 REPAIR ESTIMATOR'!S910)","v":"gal"},{"$f":"'2 REPAIR ESTIMATOR'!AQ910","v":{"v":0,"d":"$0"}},{"$nulls":11},0]
[null,null,{"$f":"T('2 REPAIR ESTIMATOR'!D911)","v":"Paint doors & frames"},{"$nulls":3},{"$f":"'2 REPAIR ESTIMATOR'!P911","v":0},{"$f":"T('2 REPAIR ESTIMATOR'!S911)","v":"ea"},{"$f":"'2 REPAIR ESTIMATOR'!AQ911","v":{"v":0,"d":"$0"}},{"$nulls":11},0]
[null,null,{"$f":"T('2 REPAIR ESTIMATOR'!D912)","v":"Paint walls"},{"$nulls":3},{"$f":"'2 REPAIR ESTIMATOR'!P912","v":0},{"$f":"T('2 REPAIR ESTIMATOR'!S912)","v":"sf"},{"$f":"'2 REPAIR ESTIMATOR'!AQ912","v":{"v":0,"d":"$0"}},{"$nulls":11},0]
[null,null,{"$f":"T('2 REPAIR ESTIMATOR'!D913)","v":"Paint ceilings"},{"$nulls":3},{"$f":"'2 REPAIR ESTIMATOR'!P913","v":0},{"$f":"T('2 REPAIR ESTIMATOR'!S913)","v":"sf"},{"$f":"'2 REPAIR ESTIMATOR'!AQ913","v":{"v":0,"d":"$0"}},{"$nulls":11},0]
[null,null,{"$f":"T('2 REPAIR ESTIMATOR'!D914)","v":"Paint wood base"},{"$nulls":3},{"$f":"'2 REPAIR ESTIMATOR'!P914","v":0},{"$f":"T('2 REPAIR ESTIMATOR'!S914)","v":"lf"},{"$f":"'2 REPAIR ESTIMATOR'!AQ914","v":{"v":0,"d":"$0"}},{"$nulls":11},0]
[null,null,{"$f":"T('2 REPAIR ESTIMATOR'!D915)","v":"Strip, paint cabinets/vanities"},{"$nulls":3},{"$f":"'2 REPAIR ESTIMATOR'!P915","v":0},{"$f":"T('2 REPAIR ESTIMATOR'!S915)","v":"sf"},{"$f":"'2 REPAIR ESTIMATOR'!AQ915","v":{"v":0,"d":"$0"}},{"$nulls":11},0]
[null,null,{"$f":"T('2 REPAIR ESTIMATOR'!D916)","v":""},{"$nulls":3},{"$f":"'2 REPAIR ESTIMATOR'!P916","v":0},{"$f":"T('2 REPAIR ESTIMATOR'!S916)","v":""},{"$f":"'2 REPAIR ESTIMATOR'!AQ916","v":{"v":0,"d":"$0"}},{"$nulls":11},0]
[null,null,{"$f":"T('2 REPAIR ESTIMATOR'!D917)","v":""},{"$nulls":3},{"$f":"'2 REPAIR ESTIMATOR'!P917","v":0},{"$f":"T('2 REPAIR ESTIMATOR'!S917)","v":""},{"$f":"'2 REPAIR ESTIMATOR'!AQ917","v":{"v":0,"d":"$0"}},{"$nulls":11},0]
[null,null,{"$f":"T('2 REPAIR ESTIMATOR'!D918)","v":""},{"$nulls":3},{"$f":"'2 REPAIR ESTIMATOR'!P918","v":0},{"$f":"T('2 REPAIR ESTIMATOR'!S918)","v":""},{"$f":"'2 REPAIR ESTIMATOR'!AQ918","v":{"v":0,"d":"$0"}},{"$nulls":11},0]
[null,null,{"$f":"T('2 REPAIR ESTIMATOR'!D919)","v":""},{"$nulls":3},{"$f":"'2 REPAIR ESTIMATOR'!P919","v":0},{"$f":"T('2 REPAIR ESTIMATOR'!S919)","v":""},{"$f":"'2 REPAIR ESTIMATOR'!AQ919","v":{"v":0,"d":"$0"}},{"$nulls":11},0]
[null,null,{"$f":"T('2 REPAIR ESTIMATOR'!D920)","v":""},{"$nulls":3},{"$f":"'2 REPAIR ESTIMATOR'!P920","v":0},{"$f":"T('2 REPAIR ESTIMATOR'!S920)","v":""},{"$f":"'2 REPAIR ESTIMATOR'!AQ920","v":{"v":0,"d":"$0"}},{"$nulls":11},0]
[null,null,{"$f":"T('2 REPAIR ESTIMATOR'!D921)","v":""},{"$nulls":3},{"$f":"'2 REPAIR ESTIMATOR'!P921","v":0},{"$f":"T('2 REPAIR ESTIMATOR'!S921)","v":""},{"$f":"'2 REPAIR ESTIMATOR'!AQ921","v":{"v":0,"d":"$0"}},{"$nulls":11},0]
[null,null,{"$f":"T('2 REPAIR ESTIMATOR'!D922)","v":""},{"$nulls":3},{"$f":"'2 REPAIR ESTIMATOR'!P922","v":0},{"$f":"T('2 REPAIR ESTIMATOR'!S922)","v":""},{"$f":"'2 REPAIR ESTIMATOR'!AQ922","v":{"v":0,"d":"$0"}},{"$nulls":11},0]
[null,null,{"$f":"T('2 REPAIR ESTIMATOR'!D923)","v":""},{"$nulls":3},{"$f":"'2 REPAIR ESTIMATOR'!P923","v":0},{"$f":"T('2 REPAIR ESTIMATOR'!S923)","v":""},{"$f":"'2 REPAIR ESTIMATOR'!AQ923","v":{"v":0,"d":"$0"}},{"$nulls":11},0]
[null,null,{"$f":"T('2 REPAIR ESTIMATOR'!D924)","v":""},{"$nulls":3},{"$f":"'2 REPAIR ESTIMATOR'!P924","v":0},{"$f":"T('2 REPAIR ESTIMATOR'!S924)","v":""},{"$f":"'2 REPAIR ESTIMATOR'!AQ924","v":{"v":0,"d":"$0"}},{"$nulls":11},0]
[null,null,{"$f":"T('2 REPAIR ESTIMATOR'!D925)","v":""},{"$nulls":3},{"$f":"'2 REPAIR ESTIMATOR'!P925","v":0},{"$f":"T('2 REPAIR ESTIMATOR'!S925)","v":""},{"$f":"'2 REPAIR ESTIMATOR'!AQ925","v":{"v":0,"d":"$0"}},{"$nulls":11},0]
[null,null,{"$f":"T('2 REPAIR ESTIMATOR'!D926)","v":""},{"$nulls":3},{"$f":"'2 REPAIR ESTIMATOR'!P926","v":0},{"$f":"T('2 REPAIR ESTIMATOR'!S926)","v":""},{"$f":"'2 REPAIR ESTIMATOR'!AQ926","v":{"v":0,"d":"$0"}},{"$nulls":11},0]
[null,null,{"$f":"T('2 REPAIR ESTIMATOR'!D927)","v":""},{"$nulls":3},{"$f":"'2 REPAIR ESTIMATOR'!P927","v":0},{"$f":"T('2 REPAIR ESTIMATOR'!S927)","v":""},{"$f":"'2 REPAIR ESTIMATOR'!AQ927","v":{"v":0,"d":"$0"}},{"$nulls":11},0]
[null,null,{"$f":"T('2 REPAIR ESTIMATOR'!D928)","v":""},{"$nulls":3},{"$f":"'2 REPAIR ESTIMATOR'!P928","v":0},{"$f":"T('2 REPAIR ESTIMATOR'!S928)","v":""},{"$f":"'2 REPAIR ESTIMATOR'!AQ928","v":{"v":0,"d":"$0"}},{"$nulls":11},0]
[null,null,{"$f":"T('2 REPAIR ESTIMATOR'!D929)","v":""},{"$nulls":3},{"$f":"'2 REPAIR ESTIMATOR'!P929","v":0},{"$f":"T('2 REPAIR ESTIMATOR'!S929)","v":""},{"$f":"'2 REPAIR ESTIMATOR'!AQ929","v":{"v":0,"d":"$0"}},{"$nulls":11},0]
[null,null,{"$f":"T('2 REPAIR ESTIMATOR'!D930)","v":""},{"$nulls":3},{"$f":"'2 REPAIR ESTIMATOR'!P930","v":0},{"$f":"T('2 REPAIR ESTIMATOR'!S930)","v":""},{"$f":"'2 REPAIR ESTIMATOR'!AQ930","v":{"v":0,"d":"$0"}},{"$nulls":11},0]
[null,null,{"$f":"T('2 REPAIR ESTIMATOR'!D931)","v":""},{"$nulls":3},{"$f":"'2 REPAIR ESTIMATOR'!P931","v":0},{"$f":"T('2 REPAIR ESTIMATOR'!S931)","v":""},{"$f":"'2 REPAIR ESTIMATOR'!AQ931","v":{"v":0,"d":"$0"}},{"$nulls":11},0]
[null,null,{"$f":"T('2 REPAIR ESTIMATOR'!D932)","v":""},{"$nulls":3},{"$f":"'2 REPAIR ESTIMATOR'!P932","v":0},{"$f":"T('2 REPAIR ESTIMATOR'!S932)","v":""},{"$f":"'2 REPAIR ESTIMATOR'!AQ932","v":{"v":0,"d":"$0"}},{"$nulls":11},0]
[null,null,{"$f":"T('2 REPAIR ESTIMATOR'!D933)","v":""},{"$nulls":3},{"$f":"'2 REPAIR ESTIMATOR'!P933","v":0},{"$f":"T('2 REPAIR ESTIMATOR'!S933)","v":""},{"$f":"'2 REPAIR ESTIMATOR'!AQ933","v":{"v":0,"d":"$0"}},{"$nulls":11},0]
[null,null,{"$f":"T('2 REPAIR ESTIMATOR'!D934)","v":""},{"$nulls":3},{"$f":"'2 REPAIR ESTIMATOR'!P934","v":0},{"$f":"T('2 REPAIR ESTIMATOR'!S934)","v":""},{"$f":"'2 REPAIR ESTIMATOR'!AQ934","v":{"v":0,"d":"$0"}},{"$nulls":11},0]
[null,null,{"$f":"T('2 REPAIR ESTIMATOR'!D935)","v":""},{"$nulls":3},{"$f":"'2 REPAIR ESTIMATOR'!P935","v":0},{"$f":"T('2 REPAIR ESTIMATOR'!S935)","v":""},{"$f":"'2 REPAIR ESTIMATOR'!AQ935","v":{"v":0,"d":"$0"}},{"$nulls":11},0]
[null,null,{"$f":"T('2 REPAIR ESTIMATOR'!D936)","v":""},{"$nulls":3},{"$f":"'2 REPAIR ESTIMATOR'!P936","v":0},{"$f":"T('2 REPAIR ESTIMATOR'!S936)","v":""},{"$f":"'2 REPAIR ESTIMATOR'!AQ936","v":{"v":0,"d":"$0"}},{"$nulls":11},0]
[null,null,{"$f":"T('2 REPAIR ESTIMATOR'!D937)","v":""},{"$nulls":3},{"$f":"'2 REPAIR ESTIMATOR'!P937","v":0},{"$f":"T('2 REPAIR ESTIMATOR'!S937)","v":""},{"$f":"'2 REPAIR ESTIMATOR'!AQ937","v":{"v":0,"d":"$0"}},{"$nulls":11},0]
[{"$nulls":20},{"$f":"IF(I998>0,1,0)","v":1}]
[null,null,{"$f":"CONCATENATE(C956,\" SUBTOTAL\")","v":"PAINTING SUBTOTAL"},{"$nulls":5},{"$f":"SUM(I956:J997)","v":{"v":4000,"d":"$4,000"}},{"$f":"SUM(J949:J996)","v":{"v":0,"d":"$0"}},{"$f":"SUM(K956:L997)","v":{"v":0,"d":"$0"}},{"$f":"SUM(L949:L996)","v":{"v":0,"d":"$0"}},{"$f":"SUM(M956:N997)","v":{"v":0,"d":"$0"}},{"$f":"SUM(N949:N996)","v":{"v":0,"d":"$0"}},{"$f":"SUM(O956:P997)","v":{"v":0,"d":"$0"}},{"$f":"SUM(P949:P996)","v":{"v":0,"d":"$0"}},{"$f":"SUM(Q956:R997)","v":{"v":0,"d":"$0"}},{"$f":"SUM(R949:R996)","v":{"v":0,"d":"$0"}},{"$f":"SUM(S956:T997)","v":{"v":0,"d":"$0"}},{"$f":"SUM(T949:T996)","v":{"v":0,"d":"$0"}},{"$f":"SUM(U956:U997)","v":5}]
[null,null,"Contractor Exclusions:",{"$nulls":17},{"$f":"U998","v":5}]
[{"$nulls":20},{"$f":"U998","v":5}]
[{"$nulls":20},{"$f":"U998","v":5}]
[{"$nulls":20},{"$f":"U998","v":5}]
[{"$nulls":20},{"$f":"U998","v":5}]
[{"$nulls":20},{"$f":"U998","v":5}]
[{"$nulls":20},{"$f":"IF(I1006>0,1,0)","v":1}]
[null,null,{"$f":"CONCATENATE(C956,\" TOTAL\")","v":"PAINTING TOTAL"},{"$nulls":5},{"$f":"I998","v":{"v":4000,"d":"$4,000"}},{"$f":"SUM(J955:J1005)","v":{"v":0,"d":"$0"}},{"$f":"K998+SUM(K999:L1005)","v":{"v":0,"d":"$0"}},{"$f":"SUM(L955:L1005)","v":{"v":0,"d":"$0"}},{"$f":"M998+SUM(M999:N1005)","v":{"v":0,"d":"$0"}},{"$f":"SUM(N955:N1005)","v":{"v":0,"d":"$0"}},{"$f":"O998+SUM(O999:P1005)","v":{"v":0,"d":"$0"}},{"$f":"SUM(P955:P1005)","v":{"v":0,"d":"$0"}},{"$f":"Q998+SUM(Q999:R1005)","v":{"v":0,"d":"$0"}},{"$f":"SUM(R955:R1005)","v":{"v":0,"d":"$0"}},{"$f":"S998+SUM(S999:T1005)","v":{"v":0,"d":"$0"}},{"$f":"SUM(T955:T1005)","v":{"v":0,"d":"$0"}},{"$f":"U998+SUM(U999:U1005)","v":36}]
[{"$nulls":20},{"$f":"U1006","v":36}]
[null,null,{"$f":"T('2 REPAIR ESTIMATOR'!D942)","v":"APPLIANCES"},{"$nulls":3},{"$f":"SUM(G1009:G1048)","v":1},{"$nulls":3},"Bidder Name",null,"Bidder Name",null,"Bidder Name",null,"Bidder Name",null,"Bidder Name",null,{"$f":"G1008","v":1}]
[null,null,{"$f":"T('2 REPAIR ESTIMATOR'!D943)","v":"Appliances, Bid/Allowance"},{"$nulls":3},{"$f":"'2 REPAIR ESTIMATOR'!P943","v":0},{"$f":"T('2 REPAIR ESTIMATOR'!S943)","v":"ls"},{"$f":"'2 REPAIR ESTIMATOR'!AQ943","v":{"v":0,"d":"$0"}},{"$nulls":11},0]
[null,null,{"$f":"T('2 REPAIR ESTIMATOR'!D944)","v":""},{"$nulls":3},{"$f":"'2 REPAIR ESTIMATOR'!P944","v":0},{"$f":"T('2 REPAIR ESTIMATOR'!S944)","v":""},{"$f":"'2 REPAIR ESTIMATOR'!AQ944","v":{"v":0,"d":"$0"}},{"$nulls":11},0]
[null,null,{"$f":"T('2 REPAIR ESTIMATOR'!D945)","v":"Appliance Package"},{"$nulls":3},{"$f":"'2 REPAIR ESTIMATOR'!P945","v":0},{"$f":"T('2 REPAIR ESTIMATOR'!S945)","v":""},{"$f":"'2 REPAIR ESTIMATOR'!AQ945","v":{"v":0,"d":"$0"}},{"$nulls":11},0]
[null,null,{"$f":"T('2 REPAIR ESTIMATOR'!D946)","v":"Economy, (fridge, range, hood, dw, microwave)"},{"$nulls":3},{"$f":"'2 REPAIR ESTIMATOR'!P946","v":0},{"$f":"T('2 REPAIR ESTIMATOR'!S946)","v":"ea"},{"$f":"'2 REPAIR ESTIMATOR'!AQ946","v":{"v":0,"d":"$0"}},{"$nulls":11},0]
[null,null,{"$f":"T('2 REPAIR ESTIMATOR'!D947)","v":"Average, (fridge, range, hood, dw, microwave)"},{"$nulls":3},{"$f":"'2 REPAIR ESTIMATOR'!P947","v":1},{"$f":"T('2 REPAIR ESTIMATOR'!S947)","v":"ea"},{"$f":"'2 REPAIR ESTIMATOR'!AQ947","v":{"v":3210,"d":"$3,210"}},{"$nulls":11},1]
[null,null,{"$f":"T('2 REPAIR ESTIMATOR'!D948)","v":"High End, (fridge, range, hood, dw, microwave)"},{"$nulls":3},{"$f":"'2 REPAIR ESTIMATOR'!P948","v":0},{"$f":"T('2 REPAIR ESTIMATOR'!S948)","v":"ea"},{"$f":"'2 REPAIR ESTIMATOR'!AQ948","v":{"v":0,"d":"$0"}},{"$nulls":11},0]
[null,null,{"$f":"T('2 REPAIR ESTIMATOR'!D949)","v":""},{"$nulls":3},{"$f":"'2 REPAIR ESTIMATOR'!P949","v":0},{"$f":"T('2 REPAIR ESTIMATOR'!S949)","v":""},{"$f":"'2 REPAIR ESTIMATOR'!AQ949","v":{"v":0,"d":"$0"}},{"$nulls":11},0]
[null,null,{"$f":"T('2 REPAIR ESTIMATOR'!D950)","v":""},{"$nulls":3},{"$f":"'2 REPAIR ESTIMATOR'!P950","v":0},{"$f":"T('2 REPAIR ESTIMATOR'!S950)","v":""},{"$f":"'2 REPAIR ESTIMATOR'!AQ950","v":{"v":0,"d":"$0"}},{"$nulls":11},0]
[null,null,{"$f":"T('2 REPAIR ESTIMATOR'!D951)","v":"Appliances, Detailed, Ecomony"},{"$nulls":3},{"$f":"'2 REPAIR ESTIMATOR'!P951","v":0},{"$f":"T('2 REPAIR ESTIMATOR'!S951)","v":""},{"$f":"'2 REPAIR ESTIMATOR'!AQ951","v":{"v":0,"d":"$0"}},{"$nulls":11},0]
[null,null,{"$f":"T('2 REPAIR ESTIMATOR'!D952)","v":"Refrigerator, economy"},{"$nulls":3},{"$f":"'2 REPAIR ESTIMATOR'!P952","v":0},{"$f":"T('2 REPAIR ESTIMATOR'!S952)","v":"ea"},{"$f":"'2 REPAIR ESTIMATOR'!AQ952","v":{"v":0,"d":"$0"}},{"$nulls":11},0]
[null,null,{"$f":"T('2 REPAIR ESTIMATOR'!D953)","v":"Range, economy"},{"$nulls":3},{"$f":"'2 REPAIR ESTIMATOR'!P953","v":0},{"$f":"T('2 REPAIR ESTIMATOR'!S953)","v":"ea"},{"$f":"'2 REPAIR ESTIMATOR'!AQ953","v":{"v":0,"d":"$0"}},{"$nulls":11},0]
[null,null,{"$f":"T('2 REPAIR ESTIMATOR'!D954)","v":"Range Hood, economy"},{"$nulls":3},{"$f":"'2 REPAIR ESTIMATOR'!P954","v":0},{"$f":"T('2 REPAIR ESTIMATOR'!S954)","v":"ea"},{"$f":"'2 REPAIR ESTIMATOR'!AQ954","v":{"v":0,"d":"$0"}},{"$nulls":11},0]
[null,null,{"$f":"T('2 REPAIR ESTIMATOR'!D955)","v":"Dishwasher, economy"},{"$nulls":3},{"$f":"'2 REPAIR ESTIMATOR'!P955","v":0},{"$f":"T('2 REPAIR ESTIMATOR'!S955)","v":"ea"},{"$f":"'2 REPAIR ESTIMATOR'!AQ955","v":{"v":0,"d":"$0"}},{"$nulls":11},0]
[null,null,{"$f":"T('2 REPAIR ESTIMATOR'!D956)","v":"Microwave, economy"},{"$nulls":3},{"$f":"'2 REPAIR ESTIMATOR'!P956","v":0},{"$f":"T('2 REPAIR ESTIMATOR'!S956)","v":"ea"},{"$f":"'2 REPAIR ESTIMATOR'!AQ956","v":{"v":0,"d":"$0"}},{"$nulls":11},0]
[null,null,{"$f":"T('2 REPAIR ESTIMATOR'!D957)","v":"Appliance delivery"},{"$nulls":3},{"$f":"'2 REPAIR ESTIMATOR'!P957","v":0},{"$f":"T('2 REPAIR ESTIMATOR'!S957)","v":"ea"},{"$f":"'2 REPAIR ESTIMATOR'!AQ957","v":{"v":0,"d":"$0"}},{"$nulls":11},0]
[null,null,{"$f":"T('2 REPAIR ESTIMATOR'!D958)","v":""},{"$nulls":3},{"$f":"'2 REPAIR ESTIMATOR'!P958","v":0},{"$f":"T('2 REPAIR ESTIMATOR'!S958)","v":""},{"$f":"'2 REPAIR ESTIMATOR'!AQ958","v":{"v":0,"d":"$0"}},{"$nulls":11},0]
[null,null,{"$f":"T('2 REPAIR ESTIMATOR'!D959)","v":""},{"$nulls":3},{"$f":"'2 REPAIR ESTIMATOR'!P959","v":0},{"$f":"T('2 REPAIR ESTIMATOR'!S959)","v":""},{"$f":"'2 REPAIR ESTIMATOR'!AQ959","v":{"v":0,"d":"$0"}},{"$nulls":11},0]
[null,null,{"$f":"T('2 REPAIR ESTIMATOR'!D960)","v":"Appliances, Detailed, Average"},{"$nulls":3},{"$f":"'2 REPAIR ESTIMATOR'!P960","v":0},{"$f":"T('2 REPAIR ESTIMATOR'!S960)","v":""},{"$f":"'2 REPAIR ESTIMATOR'!AQ960","v":{"v":0,"d":"$0"}},{"$nulls":11},0]
[null,null,{"$f":"T('2 REPAIR ESTIMATOR'!D961)","v":"Refrigerator, average"},{"$nulls":3},{"$f":"'2 REPAIR ESTIMATOR'!P961","v":0},{"$f":"T('2 REPAIR ESTIMATOR'!S961)","v":"ea"},{"$f":"'2 REPAIR ESTIMATOR'!AQ961","v":{"v":0,"d":"$0"}},{"$nulls":11},0]
[null,null,{"$f":"T('2 REPAIR ESTIMATOR'!D962)","v":"Range, average"},{"$nulls":3},{"$f":"'2 REPAIR ESTIMATOR'!P962","v":0},{"$f":"T('2 REPAIR ESTIMATOR'!S962)","v":"ea"},{"$f":"'2 REPAIR ESTIMATOR'!AQ962","v":{"v":0,"d":"$0"}},{"$nulls":11},0]
[null,null,{"$f":"T('2 REPAIR ESTIMATOR'!D963)","v":"Range Hood, average"},{"$nulls":3},{"$f":"'2 REPAIR ESTIMATOR'!P963","v":0},{"$f":"T('2 REPAIR ESTIMATOR'!S963)","v":"ea"},{"$f":"'2 REPAIR ESTIMATOR'!AQ963","v":{"v":0,"d":"$0"}},{"$nulls":11},0]
[null,null,{"$f":"T('2 REPAIR ESTIMATOR'!D964)","v":"Dishwasher, average"},{"$nulls":3},{"$f":"'2 REPAIR ESTIMATOR'!P964","v":0},{"$f":"T('2 REPAIR ESTIMATOR'!S964)","v":"ea"},{"$f":"'2 REPAIR ESTIMATOR'!AQ964","v":{"v":0,"d":"$0"}},{"$nulls":11},0]
[null,null,{"$f":"T('2 REPAIR ESTIMATOR'!D965)","v":"Microwave, average"},{"$nulls":3},{"$f":"'2 REPAIR ESTIMATOR'!P965","v":0},{"$f":"T('2 REPAIR ESTIMATOR'!S965)","v":"ea"},{"$f":"'2 REPAIR ESTIMATOR'!AQ965","v":{"v":0,"d":"$0"}},{"$nulls":11},0]
[null,null,{"$f":"T('2 REPAIR ESTIMATOR'!D966)","v":"Appliance delivery"},{"$nulls":3},{"$f":"'2 REPAIR ESTIMATOR'!P966","v":0},{"$f":"T('2 REPAIR ESTIMATOR'!S966)","v":"ea"},{"$f":"'2 REPAIR ESTIMATOR'!AQ966","v":{"v":0,"d":"$0"}},{"$nulls":11},0]
[null,null,{"$f":"T('2 REPAIR ESTIMATOR'!D967)","v":""},{"$nulls":3},{"$f":"'2 REPAIR ESTIMATOR'!P967","v":0},{"$f":"T('2 REPAIR ESTIMATOR'!S967)","v":""},{"$f":"'2 REPAIR ESTIMATOR'!AQ967","v":{"v":0,"d":"$0"}},{"$nulls":11},0]
[null,null,{"$f":"T('2 REPAIR ESTIMATOR'!D968)","v":""},{"$nulls":3},{"$f":"'2 REPAIR ESTIMATOR'!P968","v":0},{"$f":"T('2 REPAIR ESTIMATOR'!S968)","v":""},{"$f":"'2 REPAIR ESTIMATOR'!AQ968","v":{"v":0,"d":"$0"}},{"$nulls":11},0]
[null,null,{"$f":"T('2 REPAIR ESTIMATOR'!D969)","v":"Appliances, Detailed, High End"},{"$nulls":3},{"$f":"'2 REPAIR ESTIMATOR'!P969","v":0},{"$f":"T('2 REPAIR ESTIMATOR'!S969)","v":""},{"$f":"'2 REPAIR ESTIMATOR'!AQ969","v":{"v":0,"d":"$0"}},{"$nulls":11},0]
[null,null,{"$f":"T('2 REPAIR ESTIMATOR'!D970)","v":"Refrigerator, high end"},{"$nulls":3},{"$f":"'2 REPAIR ESTIMATOR'!P970","v":0},{"$f":"T('2 REPAIR ESTIMATOR'!S970)","v":"ea"},{"$f":"'2 REPAIR ESTIMATOR'!AQ970","v":{"v":0,"d":"$0"}},{"$nulls":11},0]
[null,null,{"$f":"T('2 REPAIR ESTIMATOR'!D971)","v":"Range, high end"},{"$nulls":3},{"$f":"'2 REPAIR ESTIMATOR'!P971","v":0},{"$f":"T('2 REPAIR ESTIMATOR'!S971)","v":"ea"},{"$f":"'2 REPAIR ESTIMATOR'!AQ971","v":{"v":0,"d":"$0"}},{"$nulls":11},0]
[null,null,{"$f":"T('2 REPAIR ESTIMATOR'!D972)","v":"Range Hood, high end"},{"$nulls":3},{"$f":"'2 REPAIR ESTIMATOR'!P972","v":0},{"$f":"T('2 REPAIR ESTIMATOR'!S972)","v":"ea"},{"$f":"'2 REPAIR ESTIMATOR'!AQ972","v":{"v":0,"d":"$0"}},{"$nulls":11},0]
[null,null,{"$f":"T('2 REPAIR ESTIMATOR'!D973)","v":"Dishwasher, high end"},{"$nulls":3},{"$f":"'2 REPAIR ESTIMATOR'!P973","v":0},{"$f":"T('2 REPAIR ESTIMATOR'!S973)","v":"ea"},{"$f":"'2 REPAIR ESTIMATOR'!AQ973","v":{"v":0,"d":"$0"}},{"$nulls":11},0]
[null,null,{"$f":"T('2 REPAIR ESTIMATOR'!D974)","v":"Microwave, high end"},{"$nulls":3},{"$f":"'2 REPAIR ESTIMATOR'!P974","v":0},{"$f":"T('2 REPAIR ESTIMATOR'!S974)","v":"ea"},{"$f":"'2 REPAIR ESTIMATOR'!AQ974","v":{"v":0,"d":"$0"}},{"$nulls":11},0]
[null,null,{"$f":"T('2 REPAIR ESTIMATOR'!D975)","v":"Appliance delivery"},{"$nulls":3},{"$f":"'2 REPAIR ESTIMATOR'!P975","v":0},{"$f":"T('2 REPAIR ESTIMATOR'!S975)","v":"ea"},{"$f":"'2 REPAIR ESTIMATOR'!AQ975","v":{"v":0,"d":"$0"}},{"$nulls":11},0]
[null,null,{"$f":"T('2 REPAIR ESTIMATOR'!D976)","v":""},{"$nulls":3},{"$f":"'2 REPAIR ESTIMATOR'!P976","v":0},{"$f":"T('2 REPAIR ESTIMATOR'!S976)","v":""},{"$f":"'2 REPAIR ESTIMATOR'!AQ976","v":{"v":0,"d":"$0"}},{"$nulls":11},0]
[null,null,{"$f":"T('2 REPAIR ESTIMATOR'!D977)","v":""},{"$nulls":3},{"$f":"'2 REPAIR ESTIMATOR'!P977","v":0},{"$f":"T('2 REPAIR ESTIMATOR'!S977)","v":""},{"$f":"'2 REPAIR ESTIMATOR'!AQ977","v":{"v":0,"d":"$0"}},{"$nulls":11},0]
[null,null,{"$f":"T('2 REPAIR ESTIMATOR'!D978)","v":""},{"$nulls":3},{"$f":"'2 REPAIR ESTIMATOR'!P978","v":0},{"$f":"T('2 REPAIR ESTIMATOR'!S978)","v":""},{"$f":"'2 REPAIR ESTIMATOR'!AQ978","v":{"v":0,"d":"$0"}},{"$nulls":11},0]
[null,null,{"$f":"T('2 REPAIR ESTIMATOR'!D979)","v":""},{"$nulls":3},{"$f":"'2 REPAIR ESTIMATOR'!P979","v":0},{"$f":"T('2 REPAIR ESTIMATOR'!S979)","v":""},{"$f":"'2 REPAIR ESTIMATOR'!AQ979","v":{"v":0,"d":"$0"}},{"$nulls":11},0]
[null,null,{"$f":"T('2 REPAIR ESTIMATOR'!D980)","v":""},{"$nulls":3},{"$f":"'2 REPAIR ESTIMATOR'!P980","v":0},{"$f":"T('2 REPAIR ESTIMATOR'!S980)","v":""},{"$f":"'2 REPAIR ESTIMATOR'!AQ980","v":{"v":0,"d":"$0"}},{"$nulls":11},0]
[null,null,{"$f":"T('2 REPAIR ESTIMATOR'!D981)","v":""},{"$nulls":3},{"$f":"'2 REPAIR ESTIMATOR'!P981","v":0},{"$f":"T('2 REPAIR ESTIMATOR'!S981)","v":""},{"$f":"'2 REPAIR ESTIMATOR'!AQ981","v":{"v":0,"d":"$0"}},{"$nulls":11},0]
[null,null,{"$f":"T('2 REPAIR ESTIMATOR'!D982)","v":""},{"$nulls":3},{"$f":"'2 REPAIR ESTIMATOR'!P982","v":0},{"$f":"T('2 REPAIR ESTIMATOR'!S982)","v":""},{"$f":"'2 REPAIR ESTIMATOR'!AQ982","v":{"v":0,"d":"$0"}},{"$nulls":11},0]
[{"$nulls":20},{"$f":"IF(I1050>0,1,0)","v":1}]
[null,null,{"$f":"CONCATENATE(C1008,\" SUBTOTAL\")","v":"APPLIANCES SUBTOTAL"},{"$nulls":5},{"$f":"SUM(I1008:J1049)","v":{"v":3210,"d":"$3,210"}},{"$f":"SUM(J1001:J1048)","v":{"v":0,"d":"$0"}},{"$f":"SUM(K1008:L1049)","v":{"v":0,"d":"$0"}},{"$f":"SUM(L1001:L1048)","v":{"v":0,"d":"$0"}},{"$f":"SUM(M1008:N1049)","v":{"v":0,"d":"$0"}},{"$f":"SUM(N1001:N1048)","v":{"v":0,"d":"$0"}},{"$f":"SUM(O1008:P1049)","v":{"v":0,"d":"$0"}},{"$f":"SUM(P1001:P1048)","v":{"v":0,"d":"$0"}},{"$f":"SUM(Q1008:R1049)","v":{"v":0,"d":"$0"}},{"$f":"SUM(R1001:R1048)","v":{"v":0,"d":"$0"}},{"$f":"SUM(S1008:T1049)","v":{"v":0,"d":"$0"}},{"$f":"SUM(T1001:T1048)","v":{"v":0,"d":"$0"}},{"$f":"SUM(U1008:U1049)","v":3}]
[null,null,"Contractor Exclusions:",{"$nulls":17},{"$f":"U1050","v":3}]
[{"$nulls":20},{"$f":"U1050","v":3}]
[{"$nulls":20},{"$f":"U1050","v":3}]
[{"$nulls":20},{"$f":"U1050","v":3}]
[{"$nulls":20},{"$f":"U1050","v":3}]
[{"$nulls":20},{"$f":"U1050","v":3}]
[{"$nulls":20},{"$f":"IF(I1058>0,1,0)","v":1}]
[null,null,{"$f":"CONCATENATE(C1008,\" TOTAL\")","v":"APPLIANCES TOTAL"},{"$nulls":5},{"$f":"I1050","v":{"v":3210,"d":"$3,210"}},{"$f":"SUM(J1007:J1057)","v":{"v":0,"d":"$0"}},{"$f":"K1050+SUM(K1051:L1057)","v":{"v":0,"d":"$0"}},{"$f":"SUM(L1007:L1057)","v":{"v":0,"d":"$0"}},{"$f":"M1050+SUM(M1051:N1057)","v":{"v":0,"d":"$0"}},{"$f":"SUM(N1007:N1057)","v":{"v":0,"d":"$0"}},{"$f":"O1050+SUM(O1051:P1057)","v":{"v":0,"d":"$0"}},{"$f":"SUM(P1007:P1057)","v":{"v":0,"d":"$0"}},{"$f":"Q1050+SUM(Q1051:R1057)","v":{"v":0,"d":"$0"}},{"$f":"SUM(R1007:R1057)","v":{"v":0,"d":"$0"}},{"$f":"S1050+SUM(S1051:T1057)","v":{"v":0,"d":"$0"}},{"$f":"SUM(T1007:T1057)","v":{"v":0,"d":"$0"}},{"$f":"U1050+SUM(U1051:U1057)","v":22}]
[{"$nulls":20},{"$f":"U1058","v":22}]
[null,null,{"$f":"T('2 REPAIR ESTIMATOR'!D987)","v":"PLUMBING"},{"$nulls":3},{"$f":"SUM(G1061:G1100)","v":14},{"$nulls":3},"Bidder Name",null,"Bidder Name",null,"Bidder Name",null,"Bidder Name",null,"Bidder Name",null,{"$f":"G1060","v":14}]
[null,null,{"$f":"T('2 REPAIR ESTIMATOR'!D988)","v":"Plumbing, bid/allowance"},{"$nulls":3},{"$f":"'2 REPAIR ESTIMATOR'!P988","v":0},{"$f":"T('2 REPAIR ESTIMATOR'!S988)","v":"ls"},{"$f":"'2 REPAIR ESTIMATOR'!AQ988","v":{"v":0,"d":"$0"}},{"$nulls":11},0]
[null,null,{"$f":"T('2 REPAIR ESTIMATOR'!D989)","v":"Miscellaneous Plumbing"},{"$nulls":3},{"$f":"'2 REPAIR ESTIMATOR'!P989","v":0},{"$f":"T('2 REPAIR ESTIMATOR'!S989)","v":"ls"},{"$f":"'2 REPAIR ESTIMATOR'!AQ989","v":{"v":0,"d":"$0"}},{"$nulls":11},0]
[null,null,{"$f":"T('2 REPAIR ESTIMATOR'!D990)","v":"Plumbing rough-in, per hour"},{"$nulls":3},{"$f":"'2 REPAIR ESTIMATOR'!P990","v":2},{"$f":"T('2 REPAIR ESTIMATOR'!S990)","v":"hrs"},{"$f":"'2 REPAIR ESTIMATOR'!AQ990","v":{"v":130,"d":"$130"}},{"$nulls":11},2]
[null,null,{"$f":"T('2 REPAIR ESTIMATOR'!D991)","v":"Concrete demo for below slab rough-in"},{"$nulls":3},{"$f":"'2 REPAIR ESTIMATOR'!P991","v":0},{"$f":"T('2 REPAIR ESTIMATOR'!S991)","v":"sf"},{"$f":"'2 REPAIR ESTIMATOR'!AQ991","v":{"v":0,"d":"$0"}},{"$nulls":11},0]
[null,null,{"$f":"T('2 REPAIR ESTIMATOR'!D992)","v":"Plumbing finish work, per hour"},{"$nulls":3},{"$f":"'2 REPAIR ESTIMATOR'!P992","v":0},{"$f":"T('2 REPAIR ESTIMATOR'!S992)","v":"hrs"},{"$f":"'2 REPAIR ESTIMATOR'!AQ992","v":{"v":0,"d":"$0"}},{"$nulls":11},0]
[null,null,{"$f":"T('2 REPAIR ESTIMATOR'!D993)","v":"Replace gas hot water heater, 40 gallon"},{"$nulls":3},{"$f":"'2 REPAIR ESTIMATOR'!P993","v":0},{"$f":"T('2 REPAIR ESTIMATOR'!S993)","v":"ea"},{"$f":"'2 REPAIR ESTIMATOR'!AQ993","v":{"v":0,"d":"$0"}},{"$nulls":11},0]
[null,null,{"$f":"T('2 REPAIR ESTIMATOR'!D994)","v":"Kitchen"},{"$nulls":3},{"$f":"'2 REPAIR ESTIMATOR'!P994","v":0},{"$f":"T('2 REPAIR ESTIMATOR'!S994)","v":""},{"$f":"'2 REPAIR ESTIMATOR'!AQ994","v":{"v":0,"d":"$0"}},{"$nulls":11},0]
[null,null,{"$f":"T('2 REPAIR ESTIMATOR'!D995)","v":"Kitchen faucet fixture"},{"$nulls":3},{"$f":"'2 REPAIR ESTIMATOR'!P995","v":1},{"$f":"T('2 REPAIR ESTIMATOR'!S995)","v":"ea"},{"$f":"'2 REPAIR ESTIMATOR'!AQ995","v":{"v":235.5,"d":"$236"}},{"$nulls":11},1]
[null,null,{"$f":"T('2 REPAIR ESTIMATOR'!D996)","v":"Garbage disposal"},{"$nulls":3},{"$f":"'2 REPAIR ESTIMATOR'!P996","v":1},{"$f":"T('2 REPAIR ESTIMATOR'!S996)","v":"ea"},{"$f":"'2 REPAIR ESTIMATOR'!AQ996","v":{"v":157,"d":"$157"}},{"$nulls":11},1]
[null,null,{"$f":"T('2 REPAIR ESTIMATOR'!D997)","v":"Hookup dishwasher"},{"$nulls":3},{"$f":"'2 REPAIR ESTIMATOR'!P997","v":1},{"$f":"T('2 REPAIR ESTIMATOR'!S997)","v":"ea"},{"$f":"'2 REPAIR ESTIMATOR'!AQ997","v":{"v":76.75,"d":"$77"}},{"$nulls":11},1]
[null,null,{"$f":"T('2 REPAIR ESTIMATOR'!D998)","v":"Water supply line for refrigerator"},{"$nulls":3},{"$f":"'2 REPAIR ESTIMATOR'!P998","v":1},{"$f":"T('2 REPAIR ESTIMATOR'!S998)","v":"ea"},{"$f":"'2 REPAIR ESTIMATOR'!AQ998","v":{"v":76.75,"d":"$77"}},{"$nulls":11},1]
[null,null,{"$f":"T('2 REPAIR ESTIMATOR'!D999)","v":"Bathrooms"},{"$nulls":3},{"$f":"'2 REPAIR ESTIMATOR'!P999","v":0},{"$f":"T('2 REPAIR ESTIMATOR'!S999)","v":""},{"$f":"'2 REPAIR ESTIMATOR'!AQ999","v":{"v":0,"d":"$0"}},{"$nulls":11},0]
[null,null,{"$f":"T('2 REPAIR ESTIMATOR'!D1000)","v":"Bathroom faucet fixture"},{"$nulls":3},{"$f":"'2 REPAIR ESTIMATOR'!P1000","v":2},{"$f":"T('2 REPAIR ESTIMATOR'!S1000)","v":"ea"},{"$f":"'2 REPAIR ESTIMATOR'!AQ1000","v":{"v":417.5,"d":"$418"}},{"$nulls":11},2]
[null,null,{"$f":"T('2 REPAIR ESTIMATOR'!D1001)","v":"Fiberglass shower stall"},{"$nulls":3},{"$f":"'2 REPAIR ESTIMATOR'!P1001","v":0},{"$f":"T('2 REPAIR ESTIMATOR'!S1001)","v":"ea"},{"$f":"'2 REPAIR ESTIMATOR'!AQ1001","v":{"v":0,"d":"$0"}},{"$nulls":11},0]
[null,null,{"$f":"T('2 REPAIR ESTIMATOR'!D1002)","v":"Fiberglass tub"},{"$nulls":3},{"$f":"'2 REPAIR ESTIMATOR'!P1002","v":2},{"$f":"T('2 REPAIR ESTIMATOR'!S1002)","v":"ea"},{"$f":"'2 REPAIR ESTIMATOR'!AQ1002","v":{"v":942,"d":"$942"}},{"$nulls":11},2]
[null,null,{"$f":"T('2 REPAIR ESTIMATOR'!D1003)","v":"Fiberglass tub/shower surround"},{"$nulls":3},{"$f":"'2 REPAIR ESTIMATOR'!P1003","v":0},{"$f":"T('2 REPAIR ESTIMATOR'!S1003)","v":"ea"},{"$f":"'2 REPAIR ESTIMATOR'!AQ1003","v":{"v":0,"d":"$0"}},{"$nulls":11},0]
[null,null,{"$f":"T('2 REPAIR ESTIMATOR'!D1004)","v":"Showerhead/tub kit"},{"$nulls":3},{"$f":"'2 REPAIR ESTIMATOR'!P1004","v":2},{"$f":"T('2 REPAIR ESTIMATOR'!S1004)","v":"ea"},{"$f":"'2 REPAIR ESTIMATOR'!AQ1004","v":{"v":471,"d":"$471"}},{"$nulls":11},2]
[null,null,{"$f":"T('2 REPAIR ESTIMATOR'!D1005)","v":"Toilets"},{"$nulls":3},{"$f":"'2 REPAIR ESTIMATOR'!P1005","v":2},{"$f":"T('2 REPAIR ESTIMATOR'!S1005)","v":"ea"},{"$f":"'2 REPAIR ESTIMATOR'!AQ1005","v":{"v":417.5,"d":"$418"}},{"$nulls":11},2]
[null,null,{"$f":"T('2 REPAIR ESTIMATOR'!D1006)","v":"Toilet seats"},{"$nulls":3},{"$f":"'2 REPAIR ESTIMATOR'!P1006","v":0},{"$f":"T('2 REPAIR ESTIMATOR'!S1006)","v":"ea"},{"$f":"'2 REPAIR ESTIMATOR'!AQ1006","v":{"v":0,"d":"$0"}},{"$nulls":11},0]
[null,null,{"$f":"T('2 REPAIR ESTIMATOR'!D1007)","v":"Pedestal sink"},{"$nulls":3},{"$f":"'2 REPAIR ESTIMATOR'!P1007","v":0},{"$f":"T('2 REPAIR ESTIMATOR'!S1007)","v":"ea"},{"$f":"'2 REPAIR ESTIMATOR'!AQ1007","v":{"v":0,"d":"$0"}},{"$nulls":11},0]
[null,null,{"$f":"T('2 REPAIR ESTIMATOR'!D1008)","v":""},{"$nulls":3},{"$f":"'2 REPAIR ESTIMATOR'!P1008","v":0},{"$f":"T('2 REPAIR ESTIMATOR'!S1008)","v":""},{"$f":"'2 REPAIR ESTIMATOR'!AQ1008","v":{"v":0,"d":"$0"}},{"$nulls":11},0]
[null,null,{"$f":"T('2 REPAIR ESTIMATOR'!D1009)","v":""},{"$nulls":3},{"$f":"'2 REPAIR ESTIMATOR'!P1009","v":0},{"$f":"T('2 REPAIR ESTIMATOR'!S1009)","v":""},{"$f":"'2 REPAIR ESTIMATOR'!AQ1009","v":{"v":0,"d":"$0"}},{"$nulls":11},0]
[null,null,{"$f":"T('2 REPAIR ESTIMATOR'!D1010)","v":""},{"$nulls":3},{"$f":"'2 REPAIR ESTIMATOR'!P1010","v":0},{"$f":"T('2 REPAIR ESTIMATOR'!S1010)","v":""},{"$f":"'2 REPAIR ESTIMATOR'!AQ1010","v":{"v":0,"d":"$0"}},{"$nulls":11},0]
[null,null,{"$f":"T('2 REPAIR ESTIMATOR'!D1011)","v":""},{"$nulls":3},{"$f":"'2 REPAIR ESTIMATOR'!P1011","v":0},{"$f":"T('2 REPAIR ESTIMATOR'!S1011)","v":""},{"$f":"'2 REPAIR ESTIMATOR'!AQ1011","v":{"v":0,"d":"$0"}},{"$nulls":11},0]
[null,null,{"$f":"T('2 REPAIR ESTIMATOR'!D1012)","v":""},{"$nulls":3},{"$f":"'2 REPAIR ESTIMATOR'!P1012","v":0},{"$f":"T('2 REPAIR ESTIMATOR'!S1012)","v":""},{"$f":"'2 REPAIR ESTIMATOR'!AQ1012","v":{"v":0,"d":"$0"}},{"$nulls":11},0]
[null,null,{"$f":"T('2 REPAIR ESTIMATOR'!D1013)","v":""},{"$nulls":3},{"$f":"'2 REPAIR ESTIMATOR'!P1013","v":0},{"$f":"T('2 REPAIR ESTIMATOR'!S1013)","v":""},{"$f":"'2 REPAIR ESTIMATOR'!AQ1013","v":{"v":0,"d":"$0"}},{"$nulls":11},0]
[null,null,{"$f":"T('2 REPAIR ESTIMATOR'!D1014)","v":""},{"$nulls":3},{"$f":"'2 REPAIR ESTIMATOR'!P1014","v":0},{"$f":"T('2 REPAIR ESTIMATOR'!S1014)","v":""},{"$f":"'2 REPAIR ESTIMATOR'!AQ1014","v":{"v":0,"d":"$0"}},{"$nulls":11},0]
[null,null,{"$f":"T('2 REPAIR ESTIMATOR'!D1015)","v":""},{"$nulls":3},{"$f":"'2 REPAIR ESTIMATOR'!P1015","v":0},{"$f":"T('2 REPAIR ESTIMATOR'!S1015)","v":""},{"$f":"'2 REPAIR ESTIMATOR'!AQ1015","v":{"v":0,"d":"$0"}},{"$nulls":11},0]
[null,null,{"$f":"T('2 REPAIR ESTIMATOR'!D1016)","v":""},{"$nulls":3},{"$f":"'2 REPAIR ESTIMATOR'!P1016","v":0},{"$f":"T('2 REPAIR ESTIMATOR'!S1016)","v":""},{"$f":"'2 REPAIR ESTIMATOR'!AQ1016","v":{"v":0,"d":"$0"}},{"$nulls":11},0]
[null,null,{"$f":"T('2 REPAIR ESTIMATOR'!D1017)","v":""},{"$nulls":3},{"$f":"'2 REPAIR ESTIMATOR'!P1017","v":0},{"$f":"T('2 REPAIR ESTIMATOR'!S1017)","v":""},{"$f":"'2 REPAIR ESTIMATOR'!AQ1017","v":{"v":0,"d":"$0"}},{"$nulls":11},0]
[null,null,{"$f":"T('2 REPAIR ESTIMATOR'!D1018)","v":""},{"$nulls":3},{"$f":"'2 REPAIR ESTIMATOR'!P1018","v":0},{"$f":"T('2 REPAIR ESTIMATOR'!S1018)","v":""},{"$f":"'2 REPAIR ESTIMATOR'!AQ1018","v":{"v":0,"d":"$0"}},{"$nulls":11},0]
[null,null,{"$f":"T('2 REPAIR ESTIMATOR'!D1019)","v":""},{"$nulls":3},{"$f":"'2 REPAIR ESTIMATOR'!P1019","v":0},{"$f":"T('2 REPAIR ESTIMATOR'!S1019)","v":""},{"$f":"'2 REPAIR ESTIMATOR'!AQ1019","v":{"v":0,"d":"$0"}},{"$nulls":11},0]
[null,null,{"$f":"T('2 REPAIR ESTIMATOR'!D1020)","v":""},{"$nulls":3},{"$f":"'2 REPAIR ESTIMATOR'!P1020","v":0},{"$f":"T('2 REPAIR ESTIMATOR'!S1020)","v":""},{"$f":"'2 REPAIR ESTIMATOR'!AQ1020","v":{"v":0,"d":"$0"}},{"$nulls":11},0]
[null,null,{"$f":"T('2 REPAIR ESTIMATOR'!D1021)","v":""},{"$nulls":3},{"$f":"'2 REPAIR ESTIMATOR'!P1021","v":0},{"$f":"T('2 REPAIR ESTIMATOR'!S1021)","v":""},{"$f":"'2 REPAIR ESTIMATOR'!AQ1021","v":{"v":0,"d":"$0"}},{"$nulls":11},0]
[null,null,{"$f":"T('2 REPAIR ESTIMATOR'!D1022)","v":""},{"$nulls":3},{"$f":"'2 REPAIR ESTIMATOR'!P1022","v":0},{"$f":"T('2 REPAIR ESTIMATOR'!S1022)","v":""},{"$f":"'2 REPAIR ESTIMATOR'!AQ1022","v":{"v":0,"d":"$0"}},{"$nulls":11},0]
[null,null,{"$f":"T('2 REPAIR ESTIMATOR'!D1023)","v":""},{"$nulls":3},{"$f":"'2 REPAIR ESTIMATOR'!P1023","v":0},{"$f":"T('2 REPAIR ESTIMATOR'!S1023)","v":""},{"$f":"'2 REPAIR ESTIMATOR'!AQ1023","v":{"v":0,"d":"$0"}},{"$nulls":11},0]
[null,null,{"$f":"T('2 REPAIR ESTIMATOR'!D1024)","v":""},{"$nulls":3},{"$f":"'2 REPAIR ESTIMATOR'!P1024","v":0},{"$f":"T('2 REPAIR ESTIMATOR'!S1024)","v":""},{"$f":"'2 REPAIR ESTIMATOR'!AQ1024","v":{"v":0,"d":"$0"}},{"$nulls":11},0]
[null,null,{"$f":"T('2 REPAIR ESTIMATOR'!D1025)","v":""},{"$nulls":3},{"$f":"'2 REPAIR ESTIMATOR'!P1025","v":0},{"$f":"T('2 REPAIR ESTIMATOR'!S1025)","v":""},{"$f":"'2 REPAIR ESTIMATOR'!AQ1025","v":{"v":0,"d":"$0"}},{"$nulls":11},0]
[null,null,{"$f":"T('2 REPAIR ESTIMATOR'!D1026)","v":""},{"$nulls":3},{"$f":"'2 REPAIR ESTIMATOR'!P1026","v":0},{"$f":"T('2 REPAIR ESTIMATOR'!S1026)","v":""},{"$f":"'2 REPAIR ESTIMATOR'!AQ1026","v":{"v":0,"d":"$0"}},{"$nulls":11},0]
[null,null,{"$f":"T('2 REPAIR ESTIMATOR'!D1027)","v":""},{"$nulls":3},{"$f":"'2 REPAIR ESTIMATOR'!P1027","v":0},{"$f":"T('2 REPAIR ESTIMATOR'!S1027)","v":""},{"$f":"'2 REPAIR ESTIMATOR'!AQ1027","v":{"v":0,"d":"$0"}},{"$nulls":11},0]
[{"$nulls":6},{"$f":"'2 REPAIR ESTIMATOR'!P1028","v":0},{"$f":"T('2 REPAIR ESTIMATOR'!S1028)","v":""},{"$f":"'2 REPAIR ESTIMATOR'!AQ1028","v":{"v":0,"d":"$0.00"}},{"$nulls":11},{"$f":"IF(I1102>0,1,0)","v":1}]
[null,null,{"$f":"CONCATENATE(C1060,\" SUBTOTAL\")","v":"PLUMBING SUBTOTAL"},{"$nulls":5},{"$f":"SUM(I1060:J1101)","v":{"v":2924,"d":"$2,924"}},{"$f":"SUM(J1053:J1100)","v":{"v":0,"d":"$0"}},{"$f":"SUM(K1060:L1101)","v":{"v":0,"d":"$0"}},{"$f":"SUM(L1053:L1100)","v":{"v":0,"d":"$0"}},{"$f":"SUM(M1060:N1101)","v":{"v":0,"d":"$0"}},{"$f":"SUM(N1053:N1100)","v":{"v":0,"d":"$0"}},{"$f":"SUM(O1060:P1101)","v":{"v":0,"d":"$0"}},{"$f":"SUM(P1053:P1100)","v":{"v":0,"d":"$0"}},{"$f":"SUM(Q1060:R1101)","v":{"v":0,"d":"$0"}},{"$f":"SUM(R1053:R1100)","v":{"v":0,"d":"$0"}},{"$f":"SUM(S1060:T1101)","v":{"v":0,"d":"$0"}},{"$f":"SUM(T1053:T1100)","v":{"v":0,"d":"$0"}},{"$f":"SUM(U1060:U1101)","v":29}]
[null,null,"Contractor Exclusions:",{"$nulls":17},{"$f":"U1102","v":29}]
[{"$nulls":20},{"$f":"U1102","v":29}]
[{"$nulls":20},{"$f":"U1102","v":29}]
[{"$nulls":20},{"$f":"U1102","v":29}]
[{"$nulls":20},{"$f":"U1102","v":29}]
[{"$nulls":20},{"$f":"U1102","v":29}]
[{"$nulls":20},{"$f":"IF(I1110>0,1,0)","v":1}]
[null,null,{"$f":"CONCATENATE(C1060,\" TOTAL\")","v":"PLUMBING TOTAL"},{"$nulls":5},{"$f":"I1102","v":{"v":2924,"d":"$2,924"}},{"$f":"SUM(J1059:J1109)","v":{"v":0,"d":"$0"}},{"$f":"K1102+SUM(K1103:L1109)","v":{"v":0,"d":"$0"}},{"$f":"SUM(L1059:L1109)","v":{"v":0,"d":"$0"}},{"$f":"M1102+SUM(M1103:N1109)","v":{"v":0,"d":"$0"}},{"$f":"SUM(N1059:N1109)","v":{"v":0,"d":"$0"}},{"$f":"O1102+SUM(O1103:P1109)","v":{"v":0,"d":"$0"}},{"$f":"SUM(P1059:P1109)","v":{"v":0,"d":"$0"}},{"$f":"Q1102+SUM(Q1103:R1109)","v":{"v":0,"d":"$0"}},{"$f":"SUM(R1059:R1109)","v":{"v":0,"d":"$0"}},{"$f":"S1102+SUM(S1103:T1109)","v":{"v":0,"d":"$0"}},{"$f":"SUM(T1059:T1109)","v":{"v":0,"d":"$0"}},{"$f":"U1102+SUM(U1103:U1109)","v":204}]
[{"$nulls":20},{"$f":"U1110","v":204}]
[null,null,{"$f":"T('2 REPAIR ESTIMATOR'!D1032)","v":"HVAC"},{"$nulls":3},{"$f":"SUM(G1113:G1152)","v":16},{"$nulls":3},"Bidder Name",null,"Bidder Name",null,"Bidder Name",null,"Bidder Name",null,"Bidder Name",null,{"$f":"G1112","v":16}]
[null,null,{"$f":"T('2 REPAIR ESTIMATOR'!D1033)","v":"HVAC, bid/allowance"},{"$nulls":3},{"$f":"'2 REPAIR ESTIMATOR'!P1033","v":0},{"$f":"T('2 REPAIR ESTIMATOR'!S1033)","v":"ls"},{"$f":"'2 REPAIR ESTIMATOR'!AQ1033","v":{"v":0,"d":"$0"}},{"$nulls":11},0]
[null,null,{"$f":"T('2 REPAIR ESTIMATOR'!D1034)","v":"HVAC Rough-In, per hour"},{"$nulls":3},{"$f":"'2 REPAIR ESTIMATOR'!P1034","v":0},{"$f":"T('2 REPAIR ESTIMATOR'!S1034)","v":"hrs"},{"$f":"'2 REPAIR ESTIMATOR'!AQ1034","v":{"v":0,"d":"$0"}},{"$nulls":11},0]
[null,null,{"$f":"T('2 REPAIR ESTIMATOR'!D1035)","v":"HVAC Finish Work, per hour"},{"$nulls":3},{"$f":"'2 REPAIR ESTIMATOR'!P1035","v":0},{"$f":"T('2 REPAIR ESTIMATOR'!S1035)","v":"hrs"},{"$f":"'2 REPAIR ESTIMATOR'!AQ1035","v":{"v":0,"d":"$0"}},{"$nulls":11},0]
[null,null,{"$f":"T('2 REPAIR ESTIMATOR'!D1036)","v":"Replace gas fired forced air unit, 1000 sf, 60k btus"},{"$nulls":3},{"$f":"'2 REPAIR ESTIMATOR'!P1036","v":0},{"$f":"T('2 REPAIR ESTIMATOR'!S1036)","v":"ea"},{"$f":"'2 REPAIR ESTIMATOR'!AQ1036","v":{"v":0,"d":"$0"}},{"$nulls":11},0]
[null,null,{"$f":"T('2 REPAIR ESTIMATOR'!D1037)","v":"Replace gas fired forced air unit, 2,000, 80k btus"},{"$nulls":3},{"$f":"'2 REPAIR ESTIMATOR'!P1037","v":0},{"$f":"T('2 REPAIR ESTIMATOR'!S1037)","v":"ea"},{"$f":"'2 REPAIR ESTIMATOR'!AQ1037","v":{"v":0,"d":"$0"}},{"$nulls":11},0]
[null,null,{"$f":"T('2 REPAIR ESTIMATOR'!D1038)","v":"Replace gas fired forced air unit, 3,000, 100k btus"},{"$nulls":3},{"$f":"'2 REPAIR ESTIMATOR'!P1038","v":0},{"$f":"T('2 REPAIR ESTIMATOR'!S1038)","v":"ea"},{"$f":"'2 REPAIR ESTIMATOR'!AQ1038","v":{"v":0,"d":"$0"}},{"$nulls":11},0]
[null,null,{"$f":"T('2 REPAIR ESTIMATOR'!D1039)","v":"Replace air conditioning unit, ~1,000 sf, 2 ton"},{"$nulls":3},{"$f":"'2 REPAIR ESTIMATOR'!P1039","v":0},{"$f":"T('2 REPAIR ESTIMATOR'!S1039)","v":"ea"},{"$f":"'2 REPAIR ESTIMATOR'!AQ1039","v":{"v":0,"d":"$0"}},{"$nulls":11},0]
[null,null,{"$f":"T('2 REPAIR ESTIMATOR'!D1040)","v":"Replace air conditioning unit, ~2,000 sf, 3.5 ton"},{"$nulls":3},{"$f":"'2 REPAIR ESTIMATOR'!P1040","v":0},{"$f":"T('2 REPAIR ESTIMATOR'!S1040)","v":"ea"},{"$f":"'2 REPAIR ESTIMATOR'!AQ1040","v":{"v":0,"d":"$0"}},{"$nulls":11},0]
[null,null,{"$f":"T('2 REPAIR ESTIMATOR'!D1041)","v":"Replace air conditioning unit, ~3,000sf, 5 ton"},{"$nulls":3},{"$f":"'2 REPAIR ESTIMATOR'!P1041","v":0},{"$f":"T('2 REPAIR ESTIMATOR'!S1041)","v":"ea"},{"$f":"'2 REPAIR ESTIMATOR'!AQ1041","v":{"v":0,"d":"$0"}},{"$nulls":11},0]
[null,null,{"$f":"T('2 REPAIR ESTIMATOR'!D1042)","v":"Hotel type, hot/cold packaged unit"},{"$nulls":3},{"$f":"'2 REPAIR ESTIMATOR'!P1042","v":0},{"$f":"T('2 REPAIR ESTIMATOR'!S1042)","v":"ea"},{"$f":"'2 REPAIR ESTIMATOR'!AQ1042","v":{"v":0,"d":"$0"}},{"$nulls":11},0]
[null,null,{"$f":"T('2 REPAIR ESTIMATOR'!D1043)","v":"Window mounted unit"},{"$nulls":3},{"$f":"'2 REPAIR ESTIMATOR'!P1043","v":0},{"$f":"T('2 REPAIR ESTIMATOR'!S1043)","v":"ea"},{"$f":"'2 REPAIR ESTIMATOR'!AQ1043","v":{"v":0,"d":"$0"}},{"$nulls":11},0]
[null,null,{"$f":"T('2 REPAIR ESTIMATOR'!D1044)","v":"HVAC equipment tune-up/service call"},{"$nulls":3},{"$f":"'2 REPAIR ESTIMATOR'!P1044","v":0},{"$f":"T('2 REPAIR ESTIMATOR'!S1044)","v":"ea"},{"$f":"'2 REPAIR ESTIMATOR'!AQ1044","v":{"v":0,"d":"$0"}},{"$nulls":11},0]
[null,null,{"$f":"T('2 REPAIR ESTIMATOR'!D1045)","v":"Programmable thermostat"},{"$nulls":3},{"$f":"'2 REPAIR ESTIMATOR'!P1045","v":1},{"$f":"T('2 REPAIR ESTIMATOR'!S1045)","v":"ea"},{"$f":"'2 REPAIR ESTIMATOR'!AQ1045","v":{"v":130.25,"d":"$130"}},{"$nulls":11},1]
[null,null,{"$f":"T('2 REPAIR ESTIMATOR'!D1046)","v":"Replace supply air grilles/returns"},{"$nulls":3},{"$f":"'2 REPAIR ESTIMATOR'!P1046","v":15},{"$f":"T('2 REPAIR ESTIMATOR'!S1046)","v":"ea"},{"$f":"'2 REPAIR ESTIMATOR'!AQ1046","v":{"v":353.25,"d":"$353"}},{"$nulls":11},15]
[null,null,{"$f":"T('2 REPAIR ESTIMATOR'!D1047)","v":"Clean ductwork"},{"$nulls":3},{"$f":"'2 REPAIR ESTIMATOR'!P1047","v":0},{"$f":"T('2 REPAIR ESTIMATOR'!S1047)","v":"ls"},{"$f":"'2 REPAIR ESTIMATOR'!AQ1047","v":{"v":0,"d":"$0"}},{"$nulls":11},0]
[null,null,{"$f":"T('2 REPAIR ESTIMATOR'!D1048)","v":""},{"$nulls":3},{"$f":"'2 REPAIR ESTIMATOR'!P1048","v":0},{"$f":"T('2 REPAIR ESTIMATOR'!S1048)","v":""},{"$f":"'2 REPAIR ESTIMATOR'!AQ1048","v":{"v":0,"d":"$0"}},{"$nulls":11},0]
[null,null,{"$f":"T('2 REPAIR ESTIMATOR'!D1049)","v":""},{"$nulls":3},{"$f":"'2 REPAIR ESTIMATOR'!P1049","v":0},{"$f":"T('2 REPAIR ESTIMATOR'!S1049)","v":""},{"$f":"'2 REPAIR ESTIMATOR'!AQ1049","v":{"v":0,"d":"$0"}},{"$nulls":11},0]
[null,null,{"$f":"T('2 REPAIR ESTIMATOR'!D1050)","v":""},{"$nulls":3},{"$f":"'2 REPAIR ESTIMATOR'!P1050","v":0},{"$f":"T('2 REPAIR ESTIMATOR'!S1050)","v":""},{"$f":"'2 REPAIR ESTIMATOR'!AQ1050","v":{"v":0,"d":"$0"}},{"$nulls":11},0]
[null,null,{"$f":"T('2 REPAIR ESTIMATOR'!D1051)","v":""},{"$nulls":3},{"$f":"'2 REPAIR ESTIMATOR'!P1051","v":0},{"$f":"T('2 REPAIR ESTIMATOR'!S1051)","v":""},{"$f":"'2 REPAIR ESTIMATOR'!AQ1051","v":{"v":0,"d":"$0"}},{"$nulls":11},0]
[null,null,{"$f":"T('2 REPAIR ESTIMATOR'!D1052)","v":""},{"$nulls":3},{"$f":"'2 REPAIR ESTIMATOR'!P1052","v":0},{"$f":"T('2 REPAIR ESTIMATOR'!S1052)","v":""},{"$f":"'2 REPAIR ESTIMATOR'!AQ1052","v":{"v":0,"d":"$0"}},{"$nulls":11},0]
[null,null,{"$f":"T('2 REPAIR ESTIMATOR'!D1053)","v":""},{"$nulls":3},{"$f":"'2 REPAIR ESTIMATOR'!P1053","v":0},{"$f":"T('2 REPAIR ESTIMATOR'!S1053)","v":""},{"$f":"'2 REPAIR ESTIMATOR'!AQ1053","v":{"v":0,"d":"$0"}},{"$nulls":11},0]
[null,null,{"$f":"T('2 REPAIR ESTIMATOR'!D1054)","v":""},{"$nulls":3},{"$f":"'2 REPAIR ESTIMATOR'!P1054","v":0},{"$f":"T('2 REPAIR ESTIMATOR'!S1054)","v":""},{"$f":"'2 REPAIR ESTIMATOR'!AQ1054","v":{"v":0,"d":"$0"}},{"$nulls":11},0]
[null,null,{"$f":"T('2 REPAIR ESTIMATOR'!D1055)","v":""},{"$nulls":3},{"$f":"'2 REPAIR ESTIMATOR'!P1055","v":0},{"$f":"T('2 REPAIR ESTIMATOR'!S1055)","v":""},{"$f":"'2 REPAIR ESTIMATOR'!AQ1055","v":{"v":0,"d":"$0"}},{"$nulls":11},0]
[null,null,{"$f":"T('2 REPAIR ESTIMATOR'!D1056)","v":""},{"$nulls":3},{"$f":"'2 REPAIR ESTIMATOR'!P1056","v":0},{"$f":"T('2 REPAIR ESTIMATOR'!S1056)","v":""},{"$f":"'2 REPAIR ESTIMATOR'!AQ1056","v":{"v":0,"d":"$0"}},{"$nulls":11},0]
[null,null,{"$f":"T('2 REPAIR ESTIMATOR'!D1057)","v":""},{"$nulls":3},{"$f":"'2 REPAIR ESTIMATOR'!P1057","v":0},{"$f":"T('2 REPAIR ESTIMATOR'!S1057)","v":""},{"$f":"'2 REPAIR ESTIMATOR'!AQ1057","v":{"v":0,"d":"$0"}},{"$nulls":11},0]
[null,null,{"$f":"T('2 REPAIR ESTIMATOR'!D1058)","v":""},{"$nulls":3},{"$f":"'2 REPAIR ESTIMATOR'!P1058","v":0},{"$f":"T('2 REPAIR ESTIMATOR'!S1058)","v":""},{"$f":"'2 REPAIR ESTIMATOR'!AQ1058","v":{"v":0,"d":"$0"}},{"$nulls":11},0]
[null,null,{"$f":"T('2 REPAIR ESTIMATOR'!D1059)","v":""},{"$nulls":3},{"$f":"'2 REPAIR ESTIMATOR'!P1059","v":0},{"$f":"T('2 REPAIR ESTIMATOR'!S1059)","v":""},{"$f":"'2 REPAIR ESTIMATOR'!AQ1059","v":{"v":0,"d":"$0"}},{"$nulls":11},0]
[null,null,{"$f":"T('2 REPAIR ESTIMATOR'!D1060)","v":""},{"$nulls":3},{"$f":"'2 REPAIR ESTIMATOR'!P1060","v":0},{"$f":"T('2 REPAIR ESTIMATOR'!S1060)","v":""},{"$f":"'2 REPAIR ESTIMATOR'!AQ1060","v":{"v":0,"d":"$0"}},{"$nulls":11},0]
[null,null,{"$f":"T('2 REPAIR ESTIMATOR'!D1061)","v":""},{"$nulls":3},{"$f":"'2 REPAIR ESTIMATOR'!P1061","v":0},{"$f":"T('2 REPAIR ESTIMATOR'!S1061)","v":""},{"$f":"'2 REPAIR ESTIMATOR'!AQ1061","v":{"v":0,"d":"$0"}},{"$nulls":11},0]
[null,null,{"$f":"T('2 REPAIR ESTIMATOR'!D1062)","v":""},{"$nulls":3},{"$f":"'2 REPAIR ESTIMATOR'!P1062","v":0},{"$f":"T('2 REPAIR ESTIMATOR'!S1062)","v":""},{"$f":"'2 REPAIR ESTIMATOR'!AQ1062","v":{"v":0,"d":"$0"}},{"$nulls":11},0]
[null,null,{"$f":"T('2 REPAIR ESTIMATOR'!D1063)","v":""},{"$nulls":3},{"$f":"'2 REPAIR ESTIMATOR'!P1063","v":0},{"$f":"T('2 REPAIR ESTIMATOR'!S1063)","v":""},{"$f":"'2 REPAIR ESTIMATOR'!AQ1063","v":{"v":0,"d":"$0"}},{"$nulls":11},0]
[null,null,{"$f":"T('2 REPAIR ESTIMATOR'!D1064)","v":""},{"$nulls":3},{"$f":"'2 REPAIR ESTIMATOR'!P1064","v":0},{"$f":"T('2 REPAIR ESTIMATOR'!S1064)","v":""},{"$f":"'2 REPAIR ESTIMATOR'!AQ1064","v":{"v":0,"d":"$0"}},{"$nulls":11},0]
[null,null,{"$f":"T('2 REPAIR ESTIMATOR'!D1065)","v":""},{"$nulls":3},{"$f":"'2 REPAIR ESTIMATOR'!P1065","v":0},{"$f":"T('2 REPAIR ESTIMATOR'!S1065)","v":""},{"$f":"'2 REPAIR ESTIMATOR'!AQ1065","v":{"v":0,"d":"$0"}},{"$nulls":11},0]
[null,null,{"$f":"T('2 REPAIR ESTIMATOR'!D1066)","v":""},{"$nulls":3},{"$f":"'2 REPAIR ESTIMATOR'!P1066","v":0},{"$f":"T('2 REPAIR ESTIMATOR'!S1066)","v":""},{"$f":"'2 REPAIR ESTIMATOR'!AQ1066","v":{"v":0,"d":"$0"}},{"$nulls":11},0]
[null,null,{"$f":"T('2 REPAIR ESTIMATOR'!D1067)","v":""},{"$nulls":3},{"$f":"'2 REPAIR ESTIMATOR'!P1067","v":0},{"$f":"T('2 REPAIR ESTIMATOR'!S1067)","v":""},{"$f":"'2 REPAIR ESTIMATOR'!AQ1067","v":{"v":0,"d":"$0"}},{"$nulls":11},0]
[null,null,{"$f":"T('2 REPAIR ESTIMATOR'!D1068)","v":""},{"$nulls":3},{"$f":"'2 REPAIR ESTIMATOR'!P1068","v":0},{"$f":"T('2 REPAIR ESTIMATOR'!S1068)","v":""},{"$f":"'2 REPAIR ESTIMATOR'!AQ1068","v":{"v":0,"d":"$0"}},{"$nulls":11},0]
[null,null,{"$f":"T('2 REPAIR ESTIMATOR'!D1069)","v":""},{"$nulls":3},{"$f":"'2 REPAIR ESTIMATOR'!P1069","v":0},{"$f":"T('2 REPAIR ESTIMATOR'!S1069)","v":""},{"$f":"'2 REPAIR ESTIMATOR'!AQ1069","v":{"v":0,"d":"$0"}},{"$nulls":11},0]
[null,null,{"$f":"T('2 REPAIR ESTIMATOR'!D1070)","v":""},{"$nulls":3},{"$f":"'2 REPAIR ESTIMATOR'!P1070","v":0},{"$f":"T('2 REPAIR ESTIMATOR'!S1070)","v":""},{"$f":"'2 REPAIR ESTIMATOR'!AQ1070","v":{"v":0,"d":"$0"}},{"$nulls":11},0]
[null,null,{"$f":"T('2 REPAIR ESTIMATOR'!D1071)","v":""},{"$nulls":3},{"$f":"'2 REPAIR ESTIMATOR'!P1071","v":0},{"$f":"T('2 REPAIR ESTIMATOR'!S1071)","v":""},{"$f":"'2 REPAIR ESTIMATOR'!AQ1071","v":{"v":0,"d":"$0"}},{"$nulls":11},0]
[null,null,{"$f":"T('2 REPAIR ESTIMATOR'!D1072)","v":""},{"$nulls":3},{"$f":"'2 REPAIR ESTIMATOR'!P1072","v":0},{"$f":"T('2 REPAIR ESTIMATOR'!S1072)","v":""},{"$f":"'2 REPAIR ESTIMATOR'!AQ1072","v":{"v":0,"d":"$0"}},{"$nulls":11},0]
[{"$nulls":20},{"$f":"IF(I1154>0,1,0)","v":1}]
[null,null,{"$f":"CONCATENATE(C1112,\" SUBTOTAL\")","v":"HVAC SUBTOTAL"},{"$nulls":5},{"$f":"SUM(I1112:J1153)","v":{"v":483.5,"d":"$484"}},{"$f":"SUM(J1105:J1152)","v":{"v":0,"d":"$0"}},{"$f":"SUM(K1112:L1153)","v":{"v":0,"d":"$0"}},{"$f":"SUM(L1105:L1152)","v":{"v":0,"d":"$0"}},{"$f":"SUM(M1112:N1153)","v":{"v":0,"d":"$0"}},{"$f":"SUM(N1105:N1152)","v":{"v":0,"d":"$0"}},{"$f":"SUM(O1112:P1153)","v":{"v":0,"d":"$0"}},{"$f":"SUM(P1105:P1152)","v":{"v":0,"d":"$0"}},{"$f":"SUM(Q1112:R1153)","v":{"v":0,"d":"$0"}},{"$f":"SUM(R1105:R1152)","v":{"v":0,"d":"$0"}},{"$f":"SUM(S1112:T1153)","v":{"v":0,"d":"$0"}},{"$f":"SUM(T1105:T1152)","v":{"v":0,"d":"$0"}},{"$f":"SUM(U1112:U1153)","v":33}]
[null,null,"Contractor Exclusions:",{"$nulls":17},{"$f":"U1154","v":33}]
[{"$nulls":20},{"$f":"U1154","v":33}]
[{"$nulls":20},{"$f":"U1154","v":33}]
[{"$nulls":20},{"$f":"U1154","v":33}]
[{"$nulls":20},{"$f":"U1154","v":33}]
[{"$nulls":20},{"$f":"U1154","v":33}]
[{"$nulls":20},{"$f":"IF(I1162>0,1,0)","v":1}]
[null,null,{"$f":"CONCATENATE(C1112,\" TOTAL\")","v":"HVAC TOTAL"},{"$nulls":5},{"$f":"I1154","v":{"v":483.5,"d":"$484"}},{"$f":"SUM(J1111:J1161)","v":{"v":0,"d":"$0"}},{"$f":"K1154+SUM(K1155:L1161)","v":{"v":0,"d":"$0"}},{"$f":"SUM(L1111:L1161)","v":{"v":0,"d":"$0"}},{"$f":"M1154+SUM(M1155:N1161)","v":{"v":0,"d":"$0"}},{"$f":"SUM(N1111:N1161)","v":{"v":0,"d":"$0"}},{"$f":"O1154+SUM(O1155:P1161)","v":{"v":0,"d":"$0"}},{"$f":"SUM(P1111:P1161)","v":{"v":0,"d":"$0"}},{"$f":"Q1154+SUM(Q1155:R1161)","v":{"v":0,"d":"$0"}},{"$f":"SUM(R1111:R1161)","v":{"v":0,"d":"$0"}},{"$f":"S1154+SUM(S1155:T1161)","v":{"v":0,"d":"$0"}},{"$f":"SUM(T1111:T1161)","v":{"v":0,"d":"$0"}},{"$f":"U1154+SUM(U1155:U1161)","v":232}]
[{"$nulls":20},{"$f":"U1162","v":232}]
[null,null,{"$f":"T('2 REPAIR ESTIMATOR'!D1077)","v":"ELECTRICAL"},{"$nulls":3},{"$f":"SUM(G1165:G1204)","v":20},{"$nulls":3},"Bidder Name",null,"Bidder Name",null,"Bidder Name",null,"Bidder Name",null,"Bidder Name",null,{"$f":"G1164","v":20}]
[null,null,{"$f":"T('2 REPAIR ESTIMATOR'!D1078)","v":"Electrical, bid/allowance"},{"$nulls":3},{"$f":"'2 REPAIR ESTIMATOR'!P1078","v":0},{"$f":"T('2 REPAIR ESTIMATOR'!S1078)","v":"ls"},{"$f":"'2 REPAIR ESTIMATOR'!AQ1078","v":{"v":0,"d":"$0"}},{"$nulls":11},0]
[null,null,{"$f":"T('2 REPAIR ESTIMATOR'!D1079)","v":"Miscellaneous Electrical "},{"$nulls":3},{"$f":"'2 REPAIR ESTIMATOR'!P1079","v":0},{"$f":"T('2 REPAIR ESTIMATOR'!S1079)","v":""},{"$f":"'2 REPAIR ESTIMATOR'!AQ1079","v":{"v":0,"d":"$0"}},{"$nulls":11},0]
[null,null,{"$f":"T('2 REPAIR ESTIMATOR'!D1080)","v":"Electrical Rough-in, per hour"},{"$nulls":3},{"$f":"'2 REPAIR ESTIMATOR'!P1080","v":0},{"$f":"T('2 REPAIR ESTIMATOR'!S1080)","v":"hrs"},{"$f":"'2 REPAIR ESTIMATOR'!AQ1080","v":{"v":0,"d":"$0"}},{"$nulls":11},0]
[null,null,{"$f":"T('2 REPAIR ESTIMATOR'!D1081)","v":"CATV Rough-in, per hour"},{"$nulls":3},{"$f":"'2 REPAIR ESTIMATOR'!P1081","v":0},{"$f":"T('2 REPAIR ESTIMATOR'!S1081)","v":"hrs"},{"$f":"'2 REPAIR ESTIMATOR'!AQ1081","v":{"v":0,"d":"$0"}},{"$nulls":11},0]
[null,null,{"$f":"T('2 REPAIR ESTIMATOR'!D1082)","v":"Electrical Finish Work, per hour"},{"$nulls":3},{"$f":"'2 REPAIR ESTIMATOR'!P1082","v":0},{"$f":"T('2 REPAIR ESTIMATOR'!S1082)","v":"hrs"},{"$f":"'2 REPAIR ESTIMATOR'!AQ1082","v":{"v":0,"d":"$0"}},{"$nulls":11},0]
[null,null,{"$f":"T('2 REPAIR ESTIMATOR'!D1083)","v":"Replace electrical panel, 100 AMP"},{"$nulls":3},{"$f":"'2 REPAIR ESTIMATOR'!P1083","v":0},{"$f":"T('2 REPAIR ESTIMATOR'!S1083)","v":"ea"},{"$f":"'2 REPAIR ESTIMATOR'!AQ1083","v":{"v":0,"d":"$0"}},{"$nulls":11},0]
[null,null,{"$f":"T('2 REPAIR ESTIMATOR'!D1084)","v":"Replace electrical panel, 200 AMP"},{"$nulls":3},{"$f":"'2 REPAIR ESTIMATOR'!P1084","v":0},{"$f":"T('2 REPAIR ESTIMATOR'!S1084)","v":"ea"},{"$f":"'2 REPAIR ESTIMATOR'!AQ1084","v":{"v":0,"d":"$0"}},{"$nulls":11},0]
[null,null,{"$f":"T('2 REPAIR ESTIMATOR'!D1085)","v":"Replace outlets, light switches"},{"$nulls":3},{"$f":"'2 REPAIR ESTIMATOR'!P1085","v":0},{"$f":"T('2 REPAIR ESTIMATOR'!S1085)","v":"ea"},{"$f":"'2 REPAIR ESTIMATOR'!AQ1085","v":{"v":0,"d":"$0"}},{"$nulls":11},0]
[null,null,{"$f":"T('2 REPAIR ESTIMATOR'!D1086)","v":"Replace GFI outlets/ground back to panel"},{"$nulls":3},{"$f":"'2 REPAIR ESTIMATOR'!P1086","v":0},{"$f":"T('2 REPAIR ESTIMATOR'!S1086)","v":"ea"},{"$f":"'2 REPAIR ESTIMATOR'!AQ1086","v":{"v":0,"d":"$0"}},{"$nulls":11},0]
[null,null,{"$f":"T('2 REPAIR ESTIMATOR'!D1087)","v":"Exhaust Fan"},{"$nulls":3},{"$f":"'2 REPAIR ESTIMATOR'!P1087","v":0},{"$f":"T('2 REPAIR ESTIMATOR'!S1087)","v":"ea"},{"$f":"'2 REPAIR ESTIMATOR'!AQ1087","v":{"v":0,"d":"$0"}},{"$nulls":11},0]
[null,null,{"$f":"T('2 REPAIR ESTIMATOR'!D1088)","v":"Smoke detectors"},{"$nulls":3},{"$f":"'2 REPAIR ESTIMATOR'!P1088","v":5},{"$f":"T('2 REPAIR ESTIMATOR'!S1088)","v":"ea"},{"$f":"'2 REPAIR ESTIMATOR'!AQ1088","v":{"v":205.25,"d":"$205"}},{"$nulls":11},5]
[null,null,{"$f":"T('2 REPAIR ESTIMATOR'!D1089)","v":"Carbon monoxide detector"},{"$nulls":3},{"$f":"'2 REPAIR ESTIMATOR'!P1089","v":0},{"$f":"T('2 REPAIR ESTIMATOR'!S1089)","v":"ea"},{"$f":"'2 REPAIR ESTIMATOR'!AQ1089","v":{"v":0,"d":"$0"}},{"$nulls":11},0]
[null,null,{"$f":"T('2 REPAIR ESTIMATOR'!D1090)","v":"Lighting"},{"$nulls":3},{"$f":"'2 REPAIR ESTIMATOR'!P1090","v":0},{"$f":"T('2 REPAIR ESTIMATOR'!S1090)","v":""},{"$f":"'2 REPAIR ESTIMATOR'!AQ1090","v":{"v":0,"d":"$0"}},{"$nulls":11},0]
[null,null,{"$f":"T('2 REPAIR ESTIMATOR'!D1091)","v":"Track/Pendent light"},{"$nulls":3},{"$f":"'2 REPAIR ESTIMATOR'!P1091","v":1},{"$f":"T('2 REPAIR ESTIMATOR'!S1091)","v":"ea"},{"$f":"'2 REPAIR ESTIMATOR'!AQ1091","v":{"v":157,"d":"$157"}},{"$nulls":11},1]
[null,null,{"$f":"T('2 REPAIR ESTIMATOR'!D1092)","v":"Chandelier light fixture"},{"$nulls":3},{"$f":"'2 REPAIR ESTIMATOR'!P1092","v":1},{"$f":"T('2 REPAIR ESTIMATOR'!S1092)","v":"ea"},{"$f":"'2 REPAIR ESTIMATOR'!AQ1092","v":{"v":287.25,"d":"$287"}},{"$nulls":11},1]
[null,null,{"$f":"T('2 REPAIR ESTIMATOR'!D1093)","v":"Ceiling dome light"},{"$nulls":3},{"$f":"'2 REPAIR ESTIMATOR'!P1093","v":5},{"$f":"T('2 REPAIR ESTIMATOR'!S1093)","v":"ea"},{"$f":"'2 REPAIR ESTIMATOR'!AQ1093","v":{"v":312.25,"d":"$312"}},{"$nulls":11},5]
[null,null,{"$f":"T('2 REPAIR ESTIMATOR'!D1094)","v":"Ceiling fan fixture"},{"$nulls":3},{"$f":"'2 REPAIR ESTIMATOR'!P1094","v":4},{"$f":"T('2 REPAIR ESTIMATOR'!S1094)","v":"ea"},{"$f":"'2 REPAIR ESTIMATOR'!AQ1094","v":{"v":792.2,"d":"$792"}},{"$nulls":11},4]
[null,null,{"$f":"T('2 REPAIR ESTIMATOR'!D1095)","v":"Bathroom vanity light"},{"$nulls":3},{"$f":"'2 REPAIR ESTIMATOR'!P1095","v":2},{"$f":"T('2 REPAIR ESTIMATOR'!S1095)","v":"ea"},{"$f":"'2 REPAIR ESTIMATOR'!AQ1095","v":{"v":281.9,"d":"$282"}},{"$nulls":11},2]
[null,null,{"$f":"T('2 REPAIR ESTIMATOR'!D1096)","v":"Can lighting"},{"$nulls":3},{"$f":"'2 REPAIR ESTIMATOR'!P1096","v":0},{"$f":"T('2 REPAIR ESTIMATOR'!S1096)","v":"ea"},{"$f":"'2 REPAIR ESTIMATOR'!AQ1096","v":{"v":0,"d":"$0"}},{"$nulls":11},0]
[null,null,{"$f":"T('2 REPAIR ESTIMATOR'!D1097)","v":"Exterior light fixture"},{"$nulls":3},{"$f":"'2 REPAIR ESTIMATOR'!P1097","v":2},{"$f":"T('2 REPAIR ESTIMATOR'!S1097)","v":"ea"},{"$f":"'2 REPAIR ESTIMATOR'!AQ1097","v":{"v":260.5,"d":"$261"}},{"$nulls":11},2]
[null,null,{"$f":"T('2 REPAIR ESTIMATOR'!D1098)","v":""},{"$nulls":3},{"$f":"'2 REPAIR ESTIMATOR'!P1098","v":0},{"$f":"T('2 REPAIR ESTIMATOR'!S1098)","v":""},{"$f":"'2 REPAIR ESTIMATOR'!AQ1098","v":{"v":0,"d":"$0"}},{"$nulls":11},0]
[null,null,{"$f":"T('2 REPAIR ESTIMATOR'!D1099)","v":""},{"$nulls":3},{"$f":"'2 REPAIR ESTIMATOR'!P1099","v":0},{"$f":"T('2 REPAIR ESTIMATOR'!S1099)","v":""},{"$f":"'2 REPAIR ESTIMATOR'!AQ1099","v":{"v":0,"d":"$0"}},{"$nulls":11},0]
[null,null,{"$f":"T('2 REPAIR ESTIMATOR'!D1100)","v":""},{"$nulls":3},{"$f":"'2 REPAIR ESTIMATOR'!P1100","v":0},{"$f":"T('2 REPAIR ESTIMATOR'!S1100)","v":""},{"$f":"'2 REPAIR ESTIMATOR'!AQ1100","v":{"v":0,"d":"$0"}},{"$nulls":11},0]
[null,null,{"$f":"T('2 REPAIR ESTIMATOR'!D1101)","v":""},{"$nulls":3},{"$f":"'2 REPAIR ESTIMATOR'!P1101","v":0},{"$f":"T('2 REPAIR ESTIMATOR'!S1101)","v":""},{"$f":"'2 REPAIR ESTIMATOR'!AQ1101","v":{"v":0,"d":"$0"}},{"$nulls":11},0]
[null,null,{"$f":"T('2 REPAIR ESTIMATOR'!D1102)","v":""},{"$nulls":3},{"$f":"'2 REPAIR ESTIMATOR'!P1102","v":0},{"$f":"T('2 REPAIR ESTIMATOR'!S1102)","v":""},{"$f":"'2 REPAIR ESTIMATOR'!AQ1102","v":{"v":0,"d":"$0"}},{"$nulls":11},0]
[null,null,{"$f":"T('2 REPAIR ESTIMATOR'!D1103)","v":""},{"$nulls":3},{"$f":"'2 REPAIR ESTIMATOR'!P1103","v":0},{"$f":"T('2 REPAIR ESTIMATOR'!S1103)","v":""},{"$f":"'2 REPAIR ESTIMATOR'!AQ1103","v":{"v":0,"d":"$0"}},{"$nulls":11},0]
[null,null,{"$f":"T('2 REPAIR ESTIMATOR'!D1104)","v":""},{"$nulls":3},{"$f":"'2 REPAIR ESTIMATOR'!P1104","v":0},{"$f":"T('2 REPAIR ESTIMATOR'!S1104)","v":""},{"$f":"'2 REPAIR ESTIMATOR'!AQ1104","v":{"v":0,"d":"$0"}},{"$nulls":11},0]
[null,null,{"$f":"T('2 REPAIR ESTIMATOR'!D1105)","v":""},{"$nulls":3},{"$f":"'2 REPAIR ESTIMATOR'!P1105","v":0},{"$f":"T('2 REPAIR ESTIMATOR'!S1105)","v":""},{"$f":"'2 REPAIR ESTIMATOR'!AQ1105","v":{"v":0,"d":"$0"}},{"$nulls":11},0]
[null,null,{"$f":"T('2 REPAIR ESTIMATOR'!D1106)","v":""},{"$nulls":3},{"$f":"'2 REPAIR ESTIMATOR'!P1106","v":0},{"$f":"T('2 REPAIR ESTIMATOR'!S1106)","v":""},{"$f":"'2 REPAIR ESTIMATOR'!AQ1106","v":{"v":0,"d":"$0"}},{"$nulls":11},0]
[null,null,{"$f":"T('2 REPAIR ESTIMATOR'!D1107)","v":""},{"$nulls":3},{"$f":"'2 REPAIR ESTIMATOR'!P1107","v":0},{"$f":"T('2 REPAIR ESTIMATOR'!S1107)","v":""},{"$f":"'2 REPAIR ESTIMATOR'!AQ1107","v":{"v":0,"d":"$0"}},{"$nulls":11},0]
[null,null,{"$f":"T('2 REPAIR ESTIMATOR'!D1108)","v":""},{"$nulls":3},{"$f":"'2 REPAIR ESTIMATOR'!P1108","v":0},{"$f":"T('2 REPAIR ESTIMATOR'!S1108)","v":""},{"$f":"'2 REPAIR ESTIMATOR'!AQ1108","v":{"v":0,"d":"$0"}},{"$nulls":11},0]
[null,null,{"$f":"T('2 REPAIR ESTIMATOR'!D1109)","v":""},{"$nulls":3},{"$f":"'2 REPAIR ESTIMATOR'!P1109","v":0},{"$f":"T('2 REPAIR ESTIMATOR'!S1109)","v":""},{"$f":"'2 REPAIR ESTIMATOR'!AQ1109","v":{"v":0,"d":"$0"}},{"$nulls":11},0]
[null,null,{"$f":"T('2 REPAIR ESTIMATOR'!D1110)","v":""},{"$nulls":3},{"$f":"'2 REPAIR ESTIMATOR'!P1110","v":0},{"$f":"T('2 REPAIR ESTIMATOR'!S1110)","v":""},{"$f":"'2 REPAIR ESTIMATOR'!AQ1110","v":{"v":0,"d":"$0"}},{"$nulls":11},0]
[null,null,{"$f":"T('2 REPAIR ESTIMATOR'!D1111)","v":""},{"$nulls":3},{"$f":"'2 REPAIR ESTIMATOR'!P1111","v":0},{"$f":"T('2 REPAIR ESTIMATOR'!S1111)","v":""},{"$f":"'2 REPAIR ESTIMATOR'!AQ1111","v":{"v":0,"d":"$0"}},{"$nulls":11},0]
[null,null,{"$f":"T('2 REPAIR ESTIMATOR'!D1112)","v":""},{"$nulls":3},{"$f":"'2 REPAIR ESTIMATOR'!P1112","v":0},{"$f":"T('2 REPAIR ESTIMATOR'!S1112)","v":""},{"$f":"'2 REPAIR ESTIMATOR'!AQ1112","v":{"v":0,"d":"$0"}},{"$nulls":11},0]
[null,null,{"$f":"T('2 REPAIR ESTIMATOR'!D1113)","v":""},{"$nulls":3},{"$f":"'2 REPAIR ESTIMATOR'!P1113","v":0},{"$f":"T('2 REPAIR ESTIMATOR'!S1113)","v":""},{"$f":"'2 REPAIR ESTIMATOR'!AQ1113","v":{"v":0,"d":"$0"}},{"$nulls":11},0]
[null,null,{"$f":"T('2 REPAIR ESTIMATOR'!D1114)","v":""},{"$nulls":3},{"$f":"'2 REPAIR ESTIMATOR'!P1114","v":0},{"$f":"T('2 REPAIR ESTIMATOR'!S1114)","v":""},{"$f":"'2 REPAIR ESTIMATOR'!AQ1114","v":{"v":0,"d":"$0"}},{"$nulls":11},0]
[null,null,{"$f":"T('2 REPAIR ESTIMATOR'!D1115)","v":""},{"$nulls":3},{"$f":"'2 REPAIR ESTIMATOR'!P1115","v":0},{"$f":"T('2 REPAIR ESTIMATOR'!S1115)","v":""},{"$f":"'2 REPAIR ESTIMATOR'!AQ1115","v":{"v":0,"d":"$0"}},{"$nulls":11},0]
[null,null,{"$f":"T('2 REPAIR ESTIMATOR'!D1116)","v":""},{"$nulls":3},{"$f":"'2 REPAIR ESTIMATOR'!P1116","v":0},{"$f":"T('2 REPAIR ESTIMATOR'!S1116)","v":""},{"$f":"'2 REPAIR ESTIMATOR'!AQ1116","v":{"v":0,"d":"$0"}},{"$nulls":11},0]
[null,null,{"$f":"T('2 REPAIR ESTIMATOR'!D1117)","v":""},{"$nulls":3},{"$f":"'2 REPAIR ESTIMATOR'!P1117","v":0},{"$f":"T('2 REPAIR ESTIMATOR'!S1117)","v":""},{"$f":"'2 REPAIR ESTIMATOR'!AQ1117","v":{"v":0,"d":"$0"}},{"$nulls":11},0]
[{"$nulls":20},{"$f":"IF(I1206>0,1,0)","v":1}]
[null,null,{"$f":"CONCATENATE(C1164,\" SUBTOTAL\")","v":"ELECTRICAL SUBTOTAL"},{"$nulls":5},{"$f":"SUM(I1164:J1205)","v":{"v":2296.35,"d":"$2,296"}},{"$f":"SUM(J1157:J1204)","v":{"v":0,"d":"$0"}},{"$f":"SUM(K1164:L1205)","v":{"v":0,"d":"$0"}},{"$f":"SUM(L1157:L1204)","v":{"v":0,"d":"$0"}},{"$f":"SUM(M1164:N1205)","v":{"v":0,"d":"$0"}},{"$f":"SUM(N1157:N1204)","v":{"v":0,"d":"$0"}},{"$f":"SUM(O1164:P1205)","v":{"v":0,"d":"$0"}},{"$f":"SUM(P1157:P1204)","v":{"v":0,"d":"$0"}},{"$f":"SUM(Q1164:R1205)","v":{"v":0,"d":"$0"}},{"$f":"SUM(R1157:R1204)","v":{"v":0,"d":"$0"}},{"$f":"SUM(S1164:T1205)","v":{"v":0,"d":"$0"}},{"$f":"SUM(T1157:T1204)","v":{"v":0,"d":"$0"}},{"$f":"SUM(U1164:U1205)","v":41}]
[null,null,"Contractor Exclusions:",{"$nulls":17},{"$f":"U1206","v":41}]
[{"$nulls":20},{"$f":"U1206","v":41}]
[{"$nulls":20},{"$f":"U1206","v":41}]
[{"$nulls":20},{"$f":"U1206","v":41}]
[{"$nulls":20},{"$f":"U1206","v":41}]
[{"$nulls":20},{"$f":"U1206","v":41}]
[{"$nulls":20},{"$f":"IF(I1214>0,1,0)","v":1}]
[null,null,{"$f":"CONCATENATE(C1164,\" TOTAL\")","v":"ELECTRICAL TOTAL"},{"$nulls":5},{"$f":"I1206","v":{"v":2296.35,"d":"$2,296"}},{"$f":"SUM(J1163:J1213)","v":{"v":0,"d":"$0"}},{"$f":"K1206+SUM(K1207:L1213)","v":{"v":0,"d":"$0"}},{"$f":"SUM(L1163:L1213)","v":{"v":0,"d":"$0"}},{"$f":"M1206+SUM(M1207:N1213)","v":{"v":0,"d":"$0"}},{"$f":"SUM(N1163:N1213)","v":{"v":0,"d":"$0"}},{"$f":"O1206+SUM(O1207:P1213)","v":{"v":0,"d":"$0"}},{"$f":"SUM(P1163:P1213)","v":{"v":0,"d":"$0"}},{"$f":"Q1206+SUM(Q1207:R1213)","v":{"v":0,"d":"$0"}},{"$f":"SUM(R1163:R1213)","v":{"v":0,"d":"$0"}},{"$f":"S1206+SUM(S1207:T1213)","v":{"v":0,"d":"$0"}},{"$f":"SUM(T1163:T1213)","v":{"v":0,"d":"$0"}},{"$f":"U1206+SUM(U1207:U1213)","v":288}]
[{"$nulls":20},{"$f":"U1214","v":288}]
[null,null,{"$f":"T('2 REPAIR ESTIMATOR'!D1122)","v":"MISCELLANEOUS"},{"$nulls":3},{"$f":"SUM(G1217:G1256)","v":0},{"$nulls":3},"Bidder Name",null,"Bidder Name",null,"Bidder Name",null,"Bidder Name",null,"Bidder Name",null,{"$f":"G1216","v":0}]
[null,null,{"$f":"T('2 REPAIR ESTIMATOR'!D1123)","v":"Bath accessories, towel bar, toilet disp, ea bathroom"},{"$nulls":3},{"$f":"'2 REPAIR ESTIMATOR'!P1123","v":0},{"$f":"T('2 REPAIR ESTIMATOR'!S1123)","v":"ea"},{"$f":"'2 REPAIR ESTIMATOR'!AQ1123","v":{"v":0,"d":"$0"}},{"$nulls":11},0]
[null,null,{"$f":"T('2 REPAIR ESTIMATOR'!D1124)","v":"Bathroom mirrors"},{"$nulls":3},{"$f":"'2 REPAIR ESTIMATOR'!P1124","v":0},{"$f":"T('2 REPAIR ESTIMATOR'!S1124)","v":"ea"},{"$f":"'2 REPAIR ESTIMATOR'!AQ1124","v":{"v":0,"d":"$0"}},{"$nulls":11},0]
[null,null,{"$f":"T('2 REPAIR ESTIMATOR'!D1125)","v":"Window coverings, each window"},{"$nulls":3},{"$f":"'2 REPAIR ESTIMATOR'!P1125","v":0},{"$f":"T('2 REPAIR ESTIMATOR'!S1125)","v":"ea"},{"$f":"'2 REPAIR ESTIMATOR'!AQ1125","v":{"v":0,"d":"$0"}},{"$nulls":11},0]
[null,null,{"$f":"T('2 REPAIR ESTIMATOR'!D1126)","v":""},{"$nulls":3},{"$f":"'2 REPAIR ESTIMATOR'!P1126","v":0},{"$f":"T('2 REPAIR ESTIMATOR'!S1126)","v":""},{"$f":"'2 REPAIR ESTIMATOR'!AQ1126","v":{"v":0,"d":"$0"}},{"$nulls":11},0]
[null,null,{"$f":"T('2 REPAIR ESTIMATOR'!D1127)","v":""},{"$nulls":3},{"$f":"'2 REPAIR ESTIMATOR'!P1127","v":0},{"$f":"T('2 REPAIR ESTIMATOR'!S1127)","v":""},{"$f":"'2 REPAIR ESTIMATOR'!AQ1127","v":{"v":0,"d":"$0"}},{"$nulls":11},0]
[null,null,{"$f":"T('2 REPAIR ESTIMATOR'!D1128)","v":""},{"$nulls":3},{"$f":"'2 REPAIR ESTIMATOR'!P1128","v":0},{"$f":"T('2 REPAIR ESTIMATOR'!S1128)","v":""},{"$f":"'2 REPAIR ESTIMATOR'!AQ1128","v":{"v":0,"d":"$0"}},{"$nulls":11},0]
[null,null,{"$f":"T('2 REPAIR ESTIMATOR'!D1129)","v":""},{"$nulls":3},{"$f":"'2 REPAIR ESTIMATOR'!P1129","v":0},{"$f":"T('2 REPAIR ESTIMATOR'!S1129)","v":""},{"$f":"'2 REPAIR ESTIMATOR'!AQ1129","v":{"v":0,"d":"$0"}},{"$nulls":11},0]
[null,null,{"$f":"T('2 REPAIR ESTIMATOR'!D1130)","v":""},{"$nulls":3},{"$f":"'2 REPAIR ESTIMATOR'!P1130","v":0},{"$f":"T('2 REPAIR ESTIMATOR'!S1130)","v":""},{"$f":"'2 REPAIR ESTIMATOR'!AQ1130","v":{"v":0,"d":"$0"}},{"$nulls":11},0]
[null,null,{"$f":"T('2 REPAIR ESTIMATOR'!D1131)","v":""},{"$nulls":3},{"$f":"'2 REPAIR ESTIMATOR'!P1131","v":0},{"$f":"T('2 REPAIR ESTIMATOR'!S1131)","v":""},{"$f":"'2 REPAIR ESTIMATOR'!AQ1131","v":{"v":0,"d":"$0"}},{"$nulls":11},0]
[null,null,{"$f":"T('2 REPAIR ESTIMATOR'!D1132)","v":""},{"$nulls":3},{"$f":"'2 REPAIR ESTIMATOR'!P1132","v":0},{"$f":"T('2 REPAIR ESTIMATOR'!S1132)","v":""},{"$f":"'2 REPAIR ESTIMATOR'!AQ1132","v":{"v":0,"d":"$0"}},{"$nulls":11},0]
[null,null,{"$f":"T('2 REPAIR ESTIMATOR'!D1133)","v":""},{"$nulls":3},{"$f":"'2 REPAIR ESTIMATOR'!P1133","v":0},{"$f":"T('2 REPAIR ESTIMATOR'!S1133)","v":""},{"$f":"'2 REPAIR ESTIMATOR'!AQ1133","v":{"v":0,"d":"$0"}},{"$nulls":11},0]
[null,null,{"$f":"T('2 REPAIR ESTIMATOR'!D1134)","v":""},{"$nulls":3},{"$f":"'2 REPAIR ESTIMATOR'!P1134","v":0},{"$f":"T('2 REPAIR ESTIMATOR'!S1134)","v":""},{"$f":"'2 REPAIR ESTIMATOR'!AQ1134","v":{"v":0,"d":"$0"}},{"$nulls":11},0]
[null,null,{"$f":"T('2 REPAIR ESTIMATOR'!D1135)","v":""},{"$nulls":3},{"$f":"'2 REPAIR ESTIMATOR'!P1135","v":0},{"$f":"T('2 REPAIR ESTIMATOR'!S1135)","v":""},{"$f":"'2 REPAIR ESTIMATOR'!AQ1135","v":{"v":0,"d":"$0"}},{"$nulls":11},0]
[null,null,{"$f":"T('2 REPAIR ESTIMATOR'!D1136)","v":""},{"$nulls":3},{"$f":"'2 REPAIR ESTIMATOR'!P1136","v":0},{"$f":"T('2 REPAIR ESTIMATOR'!S1136)","v":""},{"$f":"'2 REPAIR ESTIMATOR'!AQ1136","v":{"v":0,"d":"$0"}},{"$nulls":11},0]
[null,null,{"$f":"T('2 REPAIR ESTIMATOR'!D1137)","v":""},{"$nulls":3},{"$f":"'2 REPAIR ESTIMATOR'!P1137","v":0},{"$f":"T('2 REPAIR ESTIMATOR'!S1137)","v":""},{"$f":"'2 REPAIR ESTIMATOR'!AQ1137","v":{"v":0,"d":"$0"}},{"$nulls":11},0]
[null,null,{"$f":"T('2 REPAIR ESTIMATOR'!D1138)","v":""},{"$nulls":3},{"$f":"'2 REPAIR ESTIMATOR'!P1138","v":0},{"$f":"T('2 REPAIR ESTIMATOR'!S1138)","v":""},{"$f":"'2 REPAIR ESTIMATOR'!AQ1138","v":{"v":0,"d":"$0"}},{"$nulls":11},0]
[null,null,{"$f":"T('2 REPAIR ESTIMATOR'!D1139)","v":""},{"$nulls":3},{"$f":"'2 REPAIR ESTIMATOR'!P1139","v":0},{"$f":"T('2 REPAIR ESTIMATOR'!S1139)","v":""},{"$f":"'2 REPAIR ESTIMATOR'!AQ1139","v":{"v":0,"d":"$0"}},{"$nulls":11},0]
[null,null,{"$f":"T('2 REPAIR ESTIMATOR'!D1140)","v":""},{"$nulls":3},{"$f":"'2 REPAIR ESTIMATOR'!P1140","v":0},{"$f":"T('2 REPAIR ESTIMATOR'!S1140)","v":""},{"$f":"'2 REPAIR ESTIMATOR'!AQ1140","v":{"v":0,"d":"$0"}},{"$nulls":11},0]
[null,null,{"$f":"T('2 REPAIR ESTIMATOR'!D1141)","v":""},{"$nulls":3},{"$f":"'2 REPAIR ESTIMATOR'!P1141","v":0},{"$f":"T('2 REPAIR ESTIMATOR'!S1141)","v":""},{"$f":"'2 REPAIR ESTIMATOR'!AQ1141","v":{"v":0,"d":"$0"}},{"$nulls":11},0]
[null,null,{"$f":"T('2 REPAIR ESTIMATOR'!D1142)","v":""},{"$nulls":3},{"$f":"'2 REPAIR ESTIMATOR'!P1142","v":0},{"$f":"T('2 REPAIR ESTIMATOR'!S1142)","v":""},{"$f":"'2 REPAIR ESTIMATOR'!AQ1142","v":{"v":0,"d":"$0"}},{"$nulls":11},0]
[null,null,{"$f":"T('2 REPAIR ESTIMATOR'!D1143)","v":""},{"$nulls":3},{"$f":"'2 REPAIR ESTIMATOR'!P1143","v":0},{"$f":"T('2 REPAIR ESTIMATOR'!S1143)","v":""},{"$f":"'2 REPAIR ESTIMATOR'!AQ1143","v":{"v":0,"d":"$0"}},{"$nulls":11},0]
[null,null,{"$f":"T('2 REPAIR ESTIMATOR'!D1144)","v":""},{"$nulls":3},{"$f":"'2 REPAIR ESTIMATOR'!P1144","v":0},{"$f":"T('2 REPAIR ESTIMATOR'!S1144)","v":""},{"$f":"'2 REPAIR ESTIMATOR'!AQ1144","v":{"v":0,"d":"$0"}},{"$nulls":11},0]
[null,null,{"$f":"T('2 REPAIR ESTIMATOR'!D1145)","v":""},{"$nulls":3},{"$f":"'2 REPAIR ESTIMATOR'!P1145","v":0},{"$f":"T('2 REPAIR ESTIMATOR'!S1145)","v":""},{"$f":"'2 REPAIR ESTIMATOR'!AQ1145","v":{"v":0,"d":"$0"}},{"$nulls":11},0]
[null,null,{"$f":"T('2 REPAIR ESTIMATOR'!D1146)","v":""},{"$nulls":3},{"$f":"'2 REPAIR ESTIMATOR'!P1146","v":0},{"$f":"T('2 REPAIR ESTIMATOR'!S1146)","v":""},{"$f":"'2 REPAIR ESTIMATOR'!AQ1146","v":{"v":0,"d":"$0"}},{"$nulls":11},0]
[null,null,{"$f":"T('2 REPAIR ESTIMATOR'!D1147)","v":""},{"$nulls":3},{"$f":"'2 REPAIR ESTIMATOR'!P1147","v":0},{"$f":"T('2 REPAIR ESTIMATOR'!S1147)","v":""},{"$f":"'2 REPAIR ESTIMATOR'!AQ1147","v":{"v":0,"d":"$0"}},{"$nulls":11},0]
[null,null,{"$f":"T('2 REPAIR ESTIMATOR'!D1148)","v":""},{"$nulls":3},{"$f":"'2 REPAIR ESTIMATOR'!P1148","v":0},{"$f":"T('2 REPAIR ESTIMATOR'!S1148)","v":""},{"$f":"'2 REPAIR ESTIMATOR'!AQ1148","v":{"v":0,"d":"$0"}},{"$nulls":11},0]
[null,null,{"$f":"T('2 REPAIR ESTIMATOR'!D1149)","v":""},{"$nulls":3},{"$f":"'2 REPAIR ESTIMATOR'!P1149","v":0},{"$f":"T('2 REPAIR ESTIMATOR'!S1149)","v":""},{"$f":"'2 REPAIR ESTIMATOR'!AQ1149","v":{"v":0,"d":"$0"}},{"$nulls":11},0]
[null,null,{"$f":"T('2 REPAIR ESTIMATOR'!D1150)","v":""},{"$nulls":3},{"$f":"'2 REPAIR ESTIMATOR'!P1150","v":0},{"$f":"T('2 REPAIR ESTIMATOR'!S1150)","v":""},{"$f":"'2 REPAIR ESTIMATOR'!AQ1150","v":{"v":0,"d":"$0"}},{"$nulls":11},0]
[null,null,{"$f":"T('2 REPAIR ESTIMATOR'!D1151)","v":""},{"$nulls":3},{"$f":"'2 REPAIR ESTIMATOR'!P1151","v":0},{"$f":"T('2 REPAIR ESTIMATOR'!S1151)","v":""},{"$f":"'2 REPAIR ESTIMATOR'!AQ1151","v":{"v":0,"d":"$0"}},{"$nulls":11},0]
[null,null,{"$f":"T('2 REPAIR ESTIMATOR'!D1152)","v":""},{"$nulls":3},{"$f":"'2 REPAIR ESTIMATOR'!P1152","v":0},{"$f":"T('2 REPAIR ESTIMATOR'!S1152)","v":""},{"$f":"'2 REPAIR ESTIMATOR'!AQ1152","v":{"v":0,"d":"$0"}},{"$nulls":11},0]
[null,null,{"$f":"T('2 REPAIR ESTIMATOR'!D1153)","v":""},{"$nulls":3},{"$f":"'2 REPAIR ESTIMATOR'!P1153","v":0},{"$f":"T('2 REPAIR ESTIMATOR'!S1153)","v":""},{"$f":"'2 REPAIR ESTIMATOR'!AQ1153","v":{"v":0,"d":"$0"}},{"$nulls":11},0]
[null,null,{"$f":"T('2 REPAIR ESTIMATOR'!D1154)","v":""},{"$nulls":3},{"$f":"'2 REPAIR ESTIMATOR'!P1154","v":0},{"$f":"T('2 REPAIR ESTIMATOR'!S1154)","v":""},{"$f":"'2 REPAIR ESTIMATOR'!AQ1154","v":{"v":0,"d":"$0"}},{"$nulls":11},0]
[null,null,{"$f":"T('2 REPAIR ESTIMATOR'!D1155)","v":""},{"$nulls":3},{"$f":"'2 REPAIR ESTIMATOR'!P1155","v":0},{"$f":"T('2 REPAIR ESTIMATOR'!S1155)","v":""},{"$f":"'2 REPAIR ESTIMATOR'!AQ1155","v":{"v":0,"d":"$0"}},{"$nulls":11},0]
[null,null,{"$f":"T('2 REPAIR ESTIMATOR'!D1156)","v":""},{"$nulls":3},{"$f":"'2 REPAIR ESTIMATOR'!P1156","v":0},{"$f":"T('2 REPAIR ESTIMATOR'!S1156)","v":""},{"$f":"'2 REPAIR ESTIMATOR'!AQ1156","v":{"v":0,"d":"$0"}},{"$nulls":11},0]
[null,null,{"$f":"T('2 REPAIR ESTIMATOR'!D1157)","v":""},{"$nulls":3},{"$f":"'2 REPAIR ESTIMATOR'!P1157","v":0},{"$f":"T('2 REPAIR ESTIMATOR'!S1157)","v":""},{"$f":"'2 REPAIR ESTIMATOR'!AQ1157","v":{"v":0,"d":"$0"}},{"$nulls":11},0]
[null,null,{"$f":"T('2 REPAIR ESTIMATOR'!D1158)","v":""},{"$nulls":3},{"$f":"'2 REPAIR ESTIMATOR'!P1158","v":0},{"$f":"T('2 REPAIR ESTIMATOR'!S1158)","v":""},{"$f":"'2 REPAIR ESTIMATOR'!AQ1158","v":{"v":0,"d":"$0"}},{"$nulls":11},0]
[null,null,{"$f":"T('2 REPAIR ESTIMATOR'!D1159)","v":""},{"$nulls":3},{"$f":"'2 REPAIR ESTIMATOR'!P1159","v":0},{"$f":"T('2 REPAIR ESTIMATOR'!S1159)","v":""},{"$f":"'2 REPAIR ESTIMATOR'!AQ1159","v":{"v":0,"d":"$0"}},{"$nulls":11},0]
[null,null,{"$f":"T('2 REPAIR ESTIMATOR'!D1160)","v":""},{"$nulls":3},{"$f":"'2 REPAIR ESTIMATOR'!P1160","v":0},{"$f":"T('2 REPAIR ESTIMATOR'!S1160)","v":""},{"$f":"'2 REPAIR ESTIMATOR'!AQ1160","v":{"v":0,"d":"$0"}},{"$nulls":11},0]
[null,null,{"$f":"T('2 REPAIR ESTIMATOR'!D1161)","v":""},{"$nulls":3},{"$f":"'2 REPAIR ESTIMATOR'!P1161","v":0},{"$f":"T('2 REPAIR ESTIMATOR'!S1161)","v":""},{"$f":"'2 REPAIR ESTIMATOR'!AQ1161","v":{"v":0,"d":"$0"}},{"$nulls":11},0]
[null,null,{"$f":"T('2 REPAIR ESTIMATOR'!D1162)","v":""},{"$nulls":3},{"$f":"'2 REPAIR ESTIMATOR'!P1162","v":0},{"$f":"T('2 REPAIR ESTIMATOR'!S1162)","v":""},{"$f":"'2 REPAIR ESTIMATOR'!AQ1162","v":{"v":0,"d":"$0"}},{"$nulls":11},0]
[{"$nulls":20},{"$f":"IF(I1258>0,1,0)","v":0}]
[null,null,{"$f":"CONCATENATE(C1216,\" SUBTOTAL\")","v":"MISCELLANEOUS SUBTOTAL"},{"$nulls":5},{"$f":"SUM(I1216:J1257)","v":{"v":0,"d":"$0"}},{"$f":"SUM(J1209:J1256)","v":{"v":0,"d":"$0"}},{"$f":"SUM(K1216:L1257)","v":{"v":0,"d":"$0"}},{"$f":"SUM(L1209:L1256)","v":{"v":0,"d":"$0"}},{"$f":"SUM(M1216:N1257)","v":{"v":0,"d":"$0"}},{"$f":"SUM(N1209:N1256)","v":{"v":0,"d":"$0"}},{"$f":"SUM(O1216:P1257)","v":{"v":0,"d":"$0"}},{"$f":"SUM(P1209:P1256)","v":{"v":0,"d":"$0"}},{"$f":"SUM(Q1216:R1257)","v":{"v":0,"d":"$0"}},{"$f":"SUM(R1209:R1256)","v":{"v":0,"d":"$0"}},{"$f":"SUM(S1216:T1257)","v":{"v":0,"d":"$0"}},{"$f":"SUM(T1209:T1256)","v":{"v":0,"d":"$0"}},{"$f":"SUM(U1216:U1257)","v":0}]
[null,null,"Contractor Exclusions:",{"$nulls":17},{"$f":"U1258","v":0}]
[{"$nulls":20},{"$f":"U1258","v":0}]
[{"$nulls":20},{"$f":"U1258","v":0}]
[{"$nulls":20},{"$f":"U1258","v":0}]
[{"$nulls":20},{"$f":"U1258","v":0}]
[{"$nulls":20},{"$f":"U1258","v":0}]
[{"$nulls":20},{"$f":"IF(I1266>0,1,0)","v":0}]
[null,null,{"$f":"CONCATENATE(C1216,\" TOTAL\")","v":"MISCELLANEOUS TOTAL"},{"$nulls":5},{"$f":"I1258","v":{"v":0,"d":"$0"}},{"$f":"SUM(J1215:J1265)","v":{"v":0,"d":"$0"}},{"$f":"K1258+SUM(K1259:L1265)","v":{"v":0,"d":"$0"}},{"$f":"SUM(L1215:L1265)","v":{"v":0,"d":"$0"}},{"$f":"M1258+SUM(M1259:N1265)","v":{"v":0,"d":"$0"}},{"$f":"SUM(N1215:N1265)","v":{"v":0,"d":"$0"}},{"$f":"O1258+SUM(O1259:P1265)","v":{"v":0,"d":"$0"}},{"$f":"SUM(P1215:P1265)","v":{"v":0,"d":"$0"}},{"$f":"Q1258+SUM(Q1259:R1265)","v":{"v":0,"d":"$0"}},{"$f":"SUM(R1215:R1265)","v":{"v":0,"d":"$0"}},{"$f":"S1258+SUM(S1259:T1265)","v":{"v":0,"d":"$0"}},{"$f":"SUM(T1215:T1265)","v":{"v":0,"d":"$0"}},{"$f":"U1258+SUM(U1259:U1265)","v":0}]
[{"$nulls":20},{"$f":"U1266","v":0}]
[{"$nulls":20},{"$f":"U1269","v":{"v":53453.549999999996,"d":"53,454"}}]
[null,null,"TOTAL REPAIR BUDGET",{"$nulls":5},{"$f":"I70+I122+I174+I226+I278+I330+I382+I434+I486+I538+I590+I642+I694+I746+I798+I850+I902+I954+I1006+I1058+I1110+I1162+I1214+I1266","v":{"v":53453.549999999996,"d":"$53,454"}},null,{"$f":"K70+K122+K174+K226+K278+K330+K382+K434+K486+K538+K590+K642+K694+K746+K798+K850+K902+K954+K1006+K1058+K1110+K1162+K1214+K1266","v":{"v":0,"d":"$0"}},null,{"$f":"M70+M122+M174+M226+M278+M330+M382+M434+M486+M538+M590+M642+M694+M746+M798+M850+M902+M954+M1006+M1058+M1110+M1162+M1214+M1266","v":{"v":0,"d":"$0"}},null,{"$f":"O70+O122+O174+O226+O278+O330+O382+O434+O486+O538+O590+O642+O694+O746+O798+O850+O902+O954+O1006+O1058+O1110+O1162+O1214+O1266","v":{"v":0,"d":"$0"}},null,{"$f":"Q70+Q122+Q174+Q226+Q278+Q330+Q382+Q434+Q486+Q538+Q590+Q642+Q694+Q746+Q798+Q850+Q902+Q954+Q1006+Q1058+Q1110+Q1162+Q1214+Q1266","v":{"v":0,"d":"$0"}},null,{"$f":"S70+S122+S174+S226+S278+S330+S382+S434+S486+S538+S590+S642+S694+S746+S798+S850+S902+S954+S1006+S1058+S1110+S1162+S1214+S1266","v":{"v":0,"d":"$0"}},null,{"$f":"I1269","v":{"v":53453.549999999996,"d":"53,454"}}]
[{"$nulls":20},{"$f":"#REF!","v":{"$error":"#REF!"}}]

{"sheet":"MATERIAL LIST","index":45,"n_rows":1345,"n_cols":27,"rows_kept":1345,"hidden":true,"merged":[[1,3,3,6],[13,9,14,9],[16,9,20,12],[16,13,16,15],[17,13,20,15],[1344,9,1344,15]]}
[]
[{"$nulls":3},"MATERIAL LIST ",{"$nulls":22},"view setting"]
[{"$nulls":18},"All Rows",{"$nulls":7},"Data View"]
{"$rows_empty":8}
[{"$nulls":16},8,9,10,11,12]
[{"$nulls":9},"MATERIAL LIST"]
[{"$nulls":9},{"$f":"T(Street_Address)","v":"1234 Main St"}]
[]
[{"$nulls":9},{"$f":"T(City_State_Zip)","v":"Kansas City, MO 64116"}]
[{"$nulls":9},"General Notes:",{"$nulls":3},"Total Material Budget"]
[{"$nulls":13},{"$f":"N1344","v":{"v":31581.049999999996,"d":"$31,581"}}]
[]
[]
[]
[{"$nulls":6},"Shopping List (x)","Purchased (x)",null,"Description of Work","QTY","Unit","Mat'l Unit Cost","Total Mat'l Budget","Store","SKU #",null,"Qualified?","Shopping List Sort","Purchased Sort","Unpurch Sort"]
[]
[{"$nulls":9},{"$f":"T('2 REPAIR ESTIMATOR'!D87:O87)","v":"GENERAL CONDITIONS"},{"$f":"#REF!","v":{"$error":"#REF!"}},{"$nulls":6},{"$f":"IF(SUM(R25:R78)>0,1,0)","v":{"$error":"#REF!"}},{"$f":"SUM(S25:S78)","v":0},{"$f":"SUM(T25:T78)","v":0},{"$f":"SUM(U25:U78)","v":{"$error":"#REF!"}}]
[{"$nulls":9},{"$f":"T('2 REPAIR ESTIMATOR'!D88:O88)","v":"Dumpster rental-40 yard"},{"$f":"'2 REPAIR ESTIMATOR'!P88","v":1},{"$f":"'2 REPAIR ESTIMATOR'!S88","v":"ea"},{"$f":"'2 REPAIR ESTIMATOR'!X88","v":{"v":425,"d":"$425.00"}},{"$f":"'2 REPAIR ESTIMATOR'!AG88","v":{"v":454.75,"d":"$454.75"}},{"$f":"T('2 REPAIR ESTIMATOR'!AX88)","v":""},{"$f":"T('2 REPAIR ESTIMATOR'!AY88)","v":""},null,{"$f":"IF(OR(G25=\"x\",N25>0),1,0)","v":1},{"$f":"IF(G25=\"x\",1,0)","v":0},{"$f":"IF(H25=\"x\",1,0)","v":0},{"$f":"IF(AND(R25=1,T25<>1),1,0)","v":1}]
[{"$nulls":9},{"$f":"T('2 REPAIR ESTIMATOR'!D89:O89)","v":"Storage Container"},{"$f":"'2 REPAIR ESTIMATOR'!P89","v":0},{"$f":"'2 REPAIR ESTIMATOR'!S89","v":"job"},{"$f":"'2 REPAIR ESTIMATOR'!X89","v":{"v":200,"d":"$200.00"}},{"$f":"'2 REPAIR ESTIMATOR'!AG89","v":0},{"$f":"T('2 REPAIR ESTIMATOR'!AX89)","v":""},{"$f":"T('2 REPAIR ESTIMATOR'!AY89)","v":""},null,{"$f":"IF(OR(G26=\"x\",N26>0),1,0)","v":0},{"$f":"IF(G26=\"x\",1,0)","v":0},{"$f":"IF(H26=\"x\",1,0)","v":0},{"$f":"IF(AND(R26=1,T26<>1),1,0)","v":0}]
[{"$nulls":9},{"$f":"T('2 REPAIR ESTIMATOR'!D90:O90)","v":"Chemical Toilet"},{"$f":"'2 REPAIR ESTIMATOR'!P90","v":0},{"$f":"'2 REPAIR ESTIMATOR'!S90","v":"mo"},{"$f":"'2 REPAIR ESTIMATOR'!X90","v":{"v":85,"d":"$85.00"}},{"$f":"'2 REPAIR ESTIMATOR'!AG90","v":0},{"$f":"T('2 REPAIR ESTIMATOR'!AX90)","v":""},{"$f":"T('2 REPAIR ESTIMATOR'!AY90)","v":""},null,0,0,0,0]
[{"$nulls":9},{"$f":"T('2 REPAIR ESTIMATOR'!D91:O91)","v":"Misc. Tools & Materials"},{"$f":"'2 REPAIR ESTIMATOR'!P91","v":0},{"$f":"'2 REPAIR ESTIMATOR'!S91","v":"ls"},{"$f":"'2 REPAIR ESTIMATOR'!X91","v":{"v":250,"d":"$250.00"}},{"$f":"'2 REPAIR ESTIMATOR'!AG91","v":0},{"$f":"T('2 REPAIR ESTIMATOR'!AX91)","v":""},{"$f":"T('2 REPAIR ESTIMATOR'!AY91)","v":""},null,0,0,0,0]
[{"$nulls":9},{"$f":"T('2 REPAIR ESTIMATOR'!D92:O92)","v":"Rekey/lock box"},{"$f":"'2 REPAIR ESTIMATOR'!P92","v":0},{"$f":"'2 REPAIR ESTIMATOR'!S92","v":"ea"},{"$f":"'2 REPAIR ESTIMATOR'!X92","v":{"v":50,"d":"$50.00"}},{"$f":"'2 REPAIR ESTIMATOR'!AG92","v":0},{"$f":"T('2 REPAIR ESTIMATOR'!AX92)","v":""},{"$f":"T('2 REPAIR ESTIMATOR'!AY92)","v":""},null,0,0,0,0]
[{"$nulls":9},{"$f":"T('2 REPAIR ESTIMATOR'!D93:O93)","v":"Turn on utilities"},{"$f":"'2 REPAIR ESTIMATOR'!P93","v":0},{"$f":"'2 REPAIR ESTIMATOR'!S93","v":"ls"},{"$f":"'2 REPAIR ESTIMATOR'!X93","v":{"v":125,"d":"$125.00"}},{"$f":"'2 REPAIR ESTIMATOR'!AG93","v":0},{"$f":"T('2 REPAIR ESTIMATOR'!AX93)","v":""},{"$f":"T('2 REPAIR ESTIMATOR'!AY93)","v":""},null,0,0,0,0]
[{"$nulls":9},{"$f":"T('2 REPAIR ESTIMATOR'!D94:O94)","v":"Truck expense/car payment"},{"$f":"'2 REPAIR ESTIMATOR'!P94","v":0},{"$f":"'2 REPAIR ESTIMATOR'!S94","v":"month"},{"$f":"'2 REPAIR ESTIMATOR'!X94","v":{"v":250,"d":"$250.00"}},{"$f":"'2 REPAIR ESTIMATOR'!AG94","v":0},{"$f":"T('2 REPAIR ESTIMATOR'!AX94)","v":""},{"$f":"T('2 REPAIR ESTIMATOR'!AY94)","v":""},null,0,0,0,0]
[{"$nulls":9},{"$f":"T('2 REPAIR ESTIMATOR'!D95:O95)","v":"Fuel/gas expense"},{"$f":"'2 REPAIR ESTIMATOR'!P95","v":0},{"$f":"'2 REPAIR ESTIMATOR'!S95","v":"wk"},{"$f":"'2 REPAIR ESTIMATOR'!X95","v":{"v":50,"d":"$50.00"}},{"$f":"'2 REPAIR ESTIMATOR'!AG95","v":0},{"$f":"T('2 REPAIR ESTIMATOR'!AX95)","v":""},{"$f":"T('2 REPAIR ESTIMATOR'!AY95)","v":""},null,0,0,0,0]
[{"$nulls":9},{"$f":"T('2 REPAIR ESTIMATOR'!D96:O96)","v":"Project management"},{"$f":"'2 REPAIR ESTIMATOR'!P96","v":0},{"$f":"'2 REPAIR ESTIMATOR'!S96","v":"wk"},{"$f":"'2 REPAIR ESTIMATOR'!X96","v":{"v":0,"d":"$0.00"}},{"$f":"'2 REPAIR ESTIMATOR'!AG96","v":0},{"$f":"T('2 REPAIR ESTIMATOR'!AX96)","v":""},{"$f":"T('2 REPAIR ESTIMATOR'!AY96)","v":""},null,0,0,0,0]
[{"$nulls":9},{"$f":"T('2 REPAIR ESTIMATOR'!D97:O97)","v":"Architectural Fees"},{"$f":"'2 REPAIR ESTIMATOR'!P97","v":0},{"$f":"'2 REPAIR ESTIMATOR'!S97","v":"hrs"},{"$f":"'2 REPAIR ESTIMATOR'!X97","v":{"v":0,"d":"$0.00"}},{"$f":"'2 REPAIR ESTIMATOR'!AG97","v":0},{"$f":"T('2 REPAIR ESTIMATOR'!AX97)","v":""},{"$f":"T('2 REPAIR ESTIMATOR'!AY97)","v":""},null,0,0,0,0]
[{"$nulls":9},{"$f":"T('2 REPAIR ESTIMATOR'!D98:O98)","v":"Engineering Fees"},{"$f":"'2 REPAIR ESTIMATOR'!P98","v":0},{"$f":"'2 REPAIR ESTIMATOR'!S98","v":"hrs"},{"$f":"'2 REPAIR ESTIMATOR'!X98","v":{"v":0,"d":"$0.00"}},{"$f":"'2 REPAIR ESTIMATOR'!AG98","v":0},{"$f":"T('2 REPAIR ESTIMATOR'!AX98)","v":""},{"$f":"T('2 REPAIR ESTIMATOR'!AY98)","v":""},null,0,0,0,0]
[{"$nulls":9},{"$f":"T('2 REPAIR ESTIMATOR'!D99:O99)","v":"Professional Photography"},{"$f":"'2 REPAIR ESTIMATOR'!P99","v":0},{"$f":"'2 REPAIR ESTIMATOR'!S99","v":"ls"},{"$f":"'2 REPAIR ESTIMATOR'!X99","v":{"v":0,"d":"$0.00"}},{"$f":"'2 REPAIR ESTIMATOR'!AG99","v":0},{"$f":"T('2 REPAIR ESTIMATOR'!AX99)","v":""},{"$f":"T('2 REPAIR ESTIMATOR'!AY99)","v":""},null,0,0,0,0]
[{"$nulls":9},{"$f":"T('2 REPAIR ESTIMATOR'!D100:O100)","v":"Material Deliveries"},{"$f":"'2 REPAIR ESTIMATOR'!P100","v":0},{"$f":"'2 REPAIR ESTIMATOR'!S100","v":"ea"},{"$f":"'2 REPAIR ESTIMATOR'!X100","v":{"v":75,"d":"$75.00"}},{"$f":"'2 REPAIR ESTIMATOR'!AG100","v":0},{"$f":"T('2 REPAIR ESTIMATOR'!AX100)","v":""},{"$f":"T('2 REPAIR ESTIMATOR'!AY100)","v":""},null,0,0,0,0]
[{"$nulls":9},{"$f":"T('2 REPAIR ESTIMATOR'!D101:O101)","v":"Final cleaning"},{"$f":"'2 REPAIR ESTIMATOR'!P101","v":4},{"$f":"'2 REPAIR ESTIMATOR'!S101","v":"hrs"},{"$f":"'2 REPAIR ESTIMATOR'!X101","v":{"v":0,"d":"$0.00"}},{"$f":"'2 REPAIR ESTIMATOR'!AG101","v":0},{"$f":"T('2 REPAIR ESTIMATOR'!AX101)","v":""},{"$f":"T('2 REPAIR ESTIMATOR'!AY101)","v":""},null,0,0,0,0]
[{"$nulls":9},{"$f":"T('2 REPAIR ESTIMATOR'!D102:O102)","v":""},{"$f":"'2 REPAIR ESTIMATOR'!P102","v":0},{"$f":"'2 REPAIR ESTIMATOR'!S102","v":0},{"$f":"'2 REPAIR ESTIMATOR'!X102","v":{"v":0,"d":"$0.00"}},{"$f":"'2 REPAIR ESTIMATOR'!AG102","v":0},{"$f":"T('2 REPAIR ESTIMATOR'!AX102)","v":""},{"$f":"T('2 REPAIR ESTIMATOR'!AY102)","v":""},null,0,0,0,0]
[{"$nulls":9},{"$f":"T('2 REPAIR ESTIMATOR'!D103:O103)","v":""},{"$f":"'2 REPAIR ESTIMATOR'!P103","v":0},{"$f":"'2 REPAIR ESTIMATOR'!S103","v":0},{"$f":"'2 REPAIR ESTIMATOR'!X103","v":{"v":0,"d":"$0.00"}},{"$f":"'2 REPAIR ESTIMATOR'!AG103","v":0},{"$f":"T('2 REPAIR ESTIMATOR'!AX103)","v":""},{"$f":"T('2 REPAIR ESTIMATOR'!AY103)","v":""},null,0,0,0,0]
[{"$nulls":9},{"$f":"T('2 REPAIR ESTIMATOR'!D104:O104)","v":""},{"$f":"'2 REPAIR ESTIMATOR'!P104","v":0},{"$f":"'2 REPAIR ESTIMATOR'!S104","v":0},{"$f":"'2 REPAIR ESTIMATOR'!X104","v":{"v":0,"d":"$0.00"}},{"$f":"'2 REPAIR ESTIMATOR'!AG104","v":0},{"$f":"T('2 REPAIR ESTIMATOR'!AX104)","v":""},{"$f":"T('2 REPAIR ESTIMATOR'!AY104)","v":""},null,0,0,0,0]
[{"$nulls":9},{"$f":"T('2 REPAIR ESTIMATOR'!D105:O105)","v":""},{"$f":"'2 REPAIR ESTIMATOR'!P105","v":0},{"$f":"'2 REPAIR ESTIMATOR'!S105","v":0},{"$f":"'2 REPAIR ESTIMATOR'!X105","v":{"v":0,"d":"$0.00"}},{"$f":"'2 REPAIR ESTIMATOR'!AG105","v":0},{"$f":"T('2 REPAIR ESTIMATOR'!AX105)","v":""},{"$f":"T('2 REPAIR ESTIMATOR'!AY105)","v":""},null,0,0,0,0]
[{"$nulls":9},{"$f":"T('2 REPAIR ESTIMATOR'!D106:O106)","v":""},{"$f":"'2 REPAIR ESTIMATOR'!P106","v":0},{"$f":"'2 REPAIR ESTIMATOR'!S106","v":0},{"$f":"'2 REPAIR ESTIMATOR'!X106","v":{"v":0,"d":"$0.00"}},{"$f":"'2 REPAIR ESTIMATOR'!AG106","v":0},{"$f":"T('2 REPAIR ESTIMATOR'!AX106)","v":""},{"$f":"T('2 REPAIR ESTIMATOR'!AY106)","v":""},null,0,0,0,0]
[{"$nulls":9},{"$f":"T('2 REPAIR ESTIMATOR'!D107:O107)","v":""},{"$f":"'2 REPAIR ESTIMATOR'!P107","v":0},{"$f":"'2 REPAIR ESTIMATOR'!S107","v":0},{"$f":"'2 REPAIR ESTIMATOR'!X107","v":{"v":0,"d":"$0.00"}},{"$f":"'2 REPAIR ESTIMATOR'!AG107","v":0},{"$f":"T('2 REPAIR ESTIMATOR'!AX107)","v":""},{"$f":"T('2 REPAIR ESTIMATOR'!AY107)","v":""},null,0,0,0,0]
[{"$nulls":9},{"$f":"T('2 REPAIR ESTIMATOR'!D108:O108)","v":""},{"$f":"'2 REPAIR ESTIMATOR'!P108","v":0},{"$f":"'2 REPAIR ESTIMATOR'!S108","v":0},{"$f":"'2 REPAIR ESTIMATOR'!X108","v":{"v":0,"d":"$0.00"}},{"$f":"'2 REPAIR ESTIMATOR'!AG108","v":0},{"$f":"T('2 REPAIR ESTIMATOR'!AX108)","v":""},{"$f":"T('2 REPAIR ESTIMATOR'!AY108)","v":""},null,0,0,0,0]
[{"$nulls":9},{"$f":"T('2 REPAIR ESTIMATOR'!D109:O109)","v":""},{"$f":"'2 REPAIR ESTIMATOR'!P109","v":0},{"$f":"'2 REPAIR ESTIMATOR'!S109","v":0},{"$f":"'2 REPAIR ESTIMATOR'!X109","v":{"v":0,"d":"$0.00"}},{"$f":"'2 REPAIR ESTIMATOR'!AG109","v":0},{"$f":"T('2 REPAIR ESTIMATOR'!AX109)","v":""},{"$f":"T('2 REPAIR ESTIMATOR'!AY109)","v":""},null,0,0,0,0]
[{"$nulls":9},{"$f":"T('2 REPAIR ESTIMATOR'!D110:O110)","v":""},{"$f":"'2 REPAIR ESTIMATOR'!P110","v":0},{"$f":"'2 REPAIR ESTIMATOR'!S110","v":0},{"$f":"'2 REPAIR ESTIMATOR'!X110","v":{"v":0,"d":"$0.00"}},{"$f":"'2 REPAIR ESTIMATOR'!AG110","v":0},{"$f":"T('2 REPAIR ESTIMATOR'!AX110)","v":""},{"$f":"T('2 REPAIR ESTIMATOR'!AY110)","v":""},null,0,0,0,0]
[{"$nulls":9},{"$f":"T('2 REPAIR ESTIMATOR'!D111:O111)","v":""},{"$f":"'2 REPAIR ESTIMATOR'!P111","v":0},{"$f":"'2 REPAIR ESTIMATOR'!S111","v":0},{"$f":"'2 REPAIR ESTIMATOR'!X111","v":{"v":0,"d":"$0.00"}},{"$f":"'2 REPAIR ESTIMATOR'!AG111","v":0},{"$f":"T('2 REPAIR ESTIMATOR'!AX111)","v":""},{"$f":"T('2 REPAIR ESTIMATOR'!AY111)","v":""},null,0,0,0,0]
[{"$nulls":9},{"$f":"T('2 REPAIR ESTIMATOR'!D112:O112)","v":""},{"$f":"'2 REPAIR ESTIMATOR'!P112","v":0},{"$f":"'2 REPAIR ESTIMATOR'!S112","v":0},{"$f":"'2 REPAIR ESTIMATOR'!X112","v":{"v":0,"d":"$0.00"}},{"$f":"'2 REPAIR ESTIMATOR'!AG112","v":0},{"$f":"T('2 REPAIR ESTIMATOR'!AX112)","v":""},{"$f":"T('2 REPAIR ESTIMATOR'!AY112)","v":""},null,0,0,0,0]
[{"$nulls":9},{"$f":"T('2 REPAIR ESTIMATOR'!D113:O113)","v":""},{"$f":"'2 REPAIR ESTIMATOR'!P113","v":0},{"$f":"'2 REPAIR ESTIMATOR'!S113","v":0},{"$f":"'2 REPAIR ESTIMATOR'!X113","v":{"v":0,"d":"$0.00"}},{"$f":"'2 REPAIR ESTIMATOR'!AG113","v":0},{"$f":"T('2 REPAIR ESTIMATOR'!AX113)","v":""},{"$f":"T('2 REPAIR ESTIMATOR'!AY113)","v":""},null,0,0,0,0]
[{"$nulls":9},{"$f":"T('2 REPAIR ESTIMATOR'!D114:O114)","v":""},{"$f":"'2 REPAIR ESTIMATOR'!P114","v":0},{"$f":"'2 REPAIR ESTIMATOR'!S114","v":0},{"$f":"'2 REPAIR ESTIMATOR'!X114","v":{"v":0,"d":"$0.00"}},{"$f":"'2 REPAIR ESTIMATOR'!AG114","v":0},{"$f":"T('2 REPAIR ESTIMATOR'!AX114)","v":""},{"$f":"T('2 REPAIR ESTIMATOR'!AY114)","v":""},null,0,0,0,0]
[{"$nulls":9},{"$f":"T('2 REPAIR ESTIMATOR'!D115:O115)","v":""},{"$f":"'2 REPAIR ESTIMATOR'!P115","v":0},{"$f":"'2 REPAIR ESTIMATOR'!S115","v":0},{"$f":"'2 REPAIR ESTIMATOR'!X115","v":{"v":0,"d":"$0.00"}},{"$f":"'2 REPAIR ESTIMATOR'!AG115","v":0},{"$f":"T('2 REPAIR ESTIMATOR'!AX115)","v":""},{"$f":"T('2 REPAIR ESTIMATOR'!AY115)","v":""},null,0,0,0,0]
[{"$nulls":9},{"$f":"T('2 REPAIR ESTIMATOR'!D116:O116)","v":""},{"$f":"'2 REPAIR ESTIMATOR'!P116","v":0},{"$f":"'2 REPAIR ESTIMATOR'!S116","v":0},{"$f":"'2 REPAIR ESTIMATOR'!X116","v":{"v":0,"d":"$0.00"}},{"$f":"'2 REPAIR ESTIMATOR'!AG116","v":0},{"$f":"T('2 REPAIR ESTIMATOR'!AX116)","v":""},{"$f":"T('2 REPAIR ESTIMATOR'!AY116)","v":""},null,0,0,0,0]
[{"$nulls":9},{"$f":"T('2 REPAIR ESTIMATOR'!D117:O117)","v":""},{"$f":"'2 REPAIR ESTIMATOR'!P117","v":0},{"$f":"'2 REPAIR ESTIMATOR'!S117","v":0},{"$f":"'2 REPAIR ESTIMATOR'!X117","v":{"v":0,"d":"$0.00"}},{"$f":"'2 REPAIR ESTIMATOR'!AG117","v":0},{"$f":"T('2 REPAIR ESTIMATOR'!AX117)","v":""},{"$f":"T('2 REPAIR ESTIMATOR'!AY117)","v":""},null,0,0,0,0]
[{"$nulls":9},{"$f":"T('2 REPAIR ESTIMATOR'!D118:O118)","v":""},{"$f":"'2 REPAIR ESTIMATOR'!P118","v":0},{"$f":"'2 REPAIR ESTIMATOR'!S118","v":0},{"$f":"'2 REPAIR ESTIMATOR'!X118","v":{"v":0,"d":"$0.00"}},{"$f":"'2 REPAIR ESTIMATOR'!AG118","v":0},{"$f":"T('2 REPAIR ESTIMATOR'!AX118)","v":""},{"$f":"T('2 REPAIR ESTIMATOR'!AY118)","v":""},null,0,0,0,0]
[{"$nulls":9},{"$f":"T('2 REPAIR ESTIMATOR'!D119:O119)","v":""},{"$f":"'2 REPAIR ESTIMATOR'!P119","v":0},{"$f":"'2 REPAIR ESTIMATOR'!S119","v":0},{"$f":"'2 REPAIR ESTIMATOR'!X119","v":{"v":0,"d":"$0.00"}},{"$f":"'2 REPAIR ESTIMATOR'!AG119","v":0},{"$f":"T('2 REPAIR ESTIMATOR'!AX119)","v":""},{"$f":"T('2 REPAIR ESTIMATOR'!AY119)","v":""},null,0,0,0,0]
[{"$nulls":9},{"$f":"T('2 REPAIR ESTIMATOR'!D120:O120)","v":""},{"$f":"'2 REPAIR ESTIMATOR'!P120","v":0},{"$f":"'2 REPAIR ESTIMATOR'!S120","v":0},{"$f":"'2 REPAIR ESTIMATOR'!X120","v":{"v":0,"d":"$0.00"}},{"$f":"'2 REPAIR ESTIMATOR'!AG120","v":0},{"$f":"T('2 REPAIR ESTIMATOR'!AX120)","v":""},{"$f":"T('2 REPAIR ESTIMATOR'!AY120)","v":""},null,0,0,0,0]
[{"$nulls":9},{"$f":"T('2 REPAIR ESTIMATOR'!D121:O121)","v":""},{"$f":"'2 REPAIR ESTIMATOR'!P121","v":0},{"$f":"'2 REPAIR ESTIMATOR'!S121","v":0},{"$f":"'2 REPAIR ESTIMATOR'!X121","v":{"v":0,"d":"$0.00"}},{"$f":"'2 REPAIR ESTIMATOR'!AG121","v":0},{"$f":"T('2 REPAIR ESTIMATOR'!AX121)","v":""},{"$f":"T('2 REPAIR ESTIMATOR'!AY121)","v":""},null,0,0,0,0]
[{"$nulls":9},{"$f":"T('2 REPAIR ESTIMATOR'!D122:O122)","v":""},{"$f":"'2 REPAIR ESTIMATOR'!P122","v":0},{"$f":"'2 REPAIR ESTIMATOR'!S122","v":0},{"$f":"'2 REPAIR ESTIMATOR'!X122","v":{"v":0,"d":"$0.00"}},{"$f":"'2 REPAIR ESTIMATOR'!AG122","v":0},{"$f":"T('2 REPAIR ESTIMATOR'!AX122)","v":""},{"$f":"T('2 REPAIR ESTIMATOR'!AY122)","v":""},null,0,0,0,0]
[{"$nulls":9},{"$f":"T('2 REPAIR ESTIMATOR'!D123:O123)","v":""},{"$f":"'2 REPAIR ESTIMATOR'!P123","v":0},{"$f":"'2 REPAIR ESTIMATOR'!S123","v":0},{"$f":"'2 REPAIR ESTIMATOR'!X123","v":{"v":0,"d":"$0.00"}},{"$f":"'2 REPAIR ESTIMATOR'!AG123","v":0},{"$f":"T('2 REPAIR ESTIMATOR'!AX123)","v":""},{"$f":"T('2 REPAIR ESTIMATOR'!AY123)","v":""},null,0,0,0,0]
[{"$nulls":9},{"$f":"T('2 REPAIR ESTIMATOR'!D124:O124)","v":""},{"$f":"'2 REPAIR ESTIMATOR'!P124","v":0},{"$f":"'2 REPAIR ESTIMATOR'!S124","v":0},{"$f":"'2 REPAIR ESTIMATOR'!X124","v":{"v":0,"d":"$0.00"}},{"$f":"'2 REPAIR ESTIMATOR'!AG124","v":0},{"$f":"T('2 REPAIR ESTIMATOR'!AX124)","v":""},{"$f":"T('2 REPAIR ESTIMATOR'!AY124)","v":""},null,0,0,0,0]
[{"$nulls":9},{"$f":"T('2 REPAIR ESTIMATOR'!D125:O125)","v":""},{"$f":"'2 REPAIR ESTIMATOR'!P125","v":0},{"$f":"'2 REPAIR ESTIMATOR'!S125","v":0},{"$f":"'2 REPAIR ESTIMATOR'!X125","v":{"v":0,"d":"$0.00"}},{"$f":"'2 REPAIR ESTIMATOR'!AG125","v":0},{"$f":"T('2 REPAIR ESTIMATOR'!AX125)","v":""},{"$f":"T('2 REPAIR ESTIMATOR'!AY125)","v":""},null,0,0,0,0]
[{"$nulls":9},{"$f":"T('2 REPAIR ESTIMATOR'!D126:O126)","v":""},{"$f":"'2 REPAIR ESTIMATOR'!P126","v":0},{"$f":"'2 REPAIR ESTIMATOR'!S126","v":0},{"$f":"'2 REPAIR ESTIMATOR'!X126","v":{"v":0,"d":"$0.00"}},{"$f":"'2 REPAIR ESTIMATOR'!AG126","v":0},{"$f":"T('2 REPAIR ESTIMATOR'!AX126)","v":""},{"$f":"T('2 REPAIR ESTIMATOR'!AY126)","v":""},null,0,0,0,0]
[{"$nulls":9},{"$f":"T('2 REPAIR ESTIMATOR'!D127:O127)","v":""},{"$f":"'2 REPAIR ESTIMATOR'!P127","v":0},{"$f":"'2 REPAIR ESTIMATOR'!S127","v":0},{"$f":"'2 REPAIR ESTIMATOR'!X127","v":{"v":0,"d":"$0.00"}},{"$f":"'2 REPAIR ESTIMATOR'!AG127","v":0},{"$f":"T('2 REPAIR ESTIMATOR'!AX127)","v":""},{"$f":"T('2 REPAIR ESTIMATOR'!AY127)","v":""},null,0,0,0,0]
[{"$nulls":12},{"$f":"CONCATENATE(J24,\" \",\"TOTAL\")","v":"GENERAL CONDITIONS TOTAL"},{"$f":"SUBTOTAL(9,N25:N64)","v":{"v":454.75,"d":"$454.75"}},{"$nulls":3},{"$f":"SUM(R25:R64)","v":1},{"$f":"SUM(S25:S64)","v":0},{"$f":"SUM(T25:T64)","v":0},{"$f":"SUM(U25:U64)","v":1}]
[{"$nulls":9},{"$f":"T(#REF!)","v":{"$error":"#REF!"}},{"$f":"#REF!","v":{"$error":"#REF!"}},{"$f":"#REF!","v":{"$error":"#REF!"}},{"$f":"#REF!","v":{"$error":"#REF!"}},{"$f":"#REF!","v":{"$error":"#REF!"}},{"$nulls":3},{"$f":"R65","v":1},{"$f":"S65","v":0},{"$f":"T65","v":0},{"$f":"U65","v":1}]
[{"$nulls":9},{"$f":"CONCATENATE(\"MISCELLANEOUS \",J24,\" MATERIAL ITEMS\")","v":"MISCELLANEOUS GENERAL CONDITIONS MATERIAL ITEMS"},{"$nulls":4},"Store","SKU #",null,{"$f":"SUM(R68:R77)*R24","v":{"$error":"#REF!"}},{"$f":"SUM(S68:S77)","v":0},{"$f":"SUM(T68:T77)","v":0},{"$f":"SUM(U68:U77)","v":{"$error":"#REF!"}}]
[{"$nulls":17},{"$f":"IF(OR(G68=\"x\",J68>0),1,0)*R24","v":{"$error":"#REF!"}},{"$f":"IF(G68=\"x\",1,0)","v":0},0,{"$f":"IF(AND(R68=1,T68<>1),1,0)","v":{"$error":"#REF!"}}]
[{"$nulls":17},{"$f":"IF(OR(G69=\"x\",J69>0),1,0)*R24","v":{"$error":"#REF!"}},0,0,{"$error":"#REF!"}]
[{"$nulls":17},{"$f":"IF(OR(G70=\"x\",J70>0),1,0)*R24","v":{"$error":"#REF!"}},0,0,{"$error":"#REF!"}]
[{"$nulls":17},{"$f":"IF(OR(G71=\"x\",J71>0),1,0)*R24","v":{"$error":"#REF!"}},0,0,{"$error":"#REF!"}]
[{"$nulls":17},{"$f":"IF(OR(G72=\"x\",J72>0),1,0)*R24","v":{"$error":"#REF!"}},0,0,{"$error":"#REF!"}]
[{"$nulls":17},{"$f":"IF(OR(G73=\"x\",J73>0),1,0)*R24","v":{"$error":"#REF!"}},0,0,{"$error":"#REF!"}]
[{"$nulls":17},{"$f":"IF(OR(G74=\"x\",J74>0),1,0)*R24","v":{"$error":"#REF!"}},0,0,{"$error":"#REF!"}]
[{"$nulls":17},{"$f":"IF(OR(G75=\"x\",J75>0),1,0)*R24","v":{"$error":"#REF!"}},0,0,{"$error":"#REF!"}]
[{"$nulls":17},{"$f":"IF(OR(G76=\"x\",J76>0),1,0)*R24","v":{"$error":"#REF!"}},0,0,{"$error":"#REF!"}]
[{"$nulls":17},{"$f":"IF(OR(G77=\"x\",J77>0),1,0)*R24","v":{"$error":"#REF!"}},0,0,{"$error":"#REF!"}]
[{"$nulls":9},{"$f":"T(#REF!)","v":{"$error":"#REF!"}},{"$f":"#REF!","v":{"$error":"#REF!"}},{"$f":"#REF!","v":{"$error":"#REF!"}},{"$f":"#REF!","v":{"$error":"#REF!"}},{"$f":"#REF!","v":{"$error":"#REF!"}},{"$nulls":3},{"$f":"R67*R24","v":{"$error":"#REF!"}},{"$f":"S67","v":0},{"$f":"T67","v":0},{"$f":"U67","v":{"$error":"#REF!"}}]
[{"$nulls":9},{"$f":"T('2 REPAIR ESTIMATOR'!D132:O132)","v":"DEMOLITION"},{"$f":"#REF!","v":{"$error":"#REF!"}},{"$f":"#REF!","v":{"$error":"#REF!"}},{"$f":"#REF!","v":{"$error":"#REF!"}},{"$f":"#REF!","v":{"$error":"#REF!"}},{"$nulls":3},{"$f":"IF(SUM(R80:R133)>0,1,0)","v":{"$error":"#REF!"}},{"$f":"SUM(S80:S133)","v":0},{"$f":"SUM(T80:T133)","v":0},{"$f":"SUM(U80:U133)","v":{"$error":"#REF!"}}]
[{"$nulls":9},{"$f":"T('2 REPAIR ESTIMATOR'!D133:O133)","v":"Demolition"},{"$f":"'2 REPAIR ESTIMATOR'!P133","v":0},{"$f":"'2 REPAIR ESTIMATOR'!S133","v":"ls"},{"$f":"'2 REPAIR ESTIMATOR'!X133","v":{"v":0,"d":"$0.00"}},{"$f":"'2 REPAIR ESTIMATOR'!AG133","v":0},{"$f":"T('2 REPAIR ESTIMATOR'!AX133)","v":""},{"$f":"T('2 REPAIR ESTIMATOR'!AY133)","v":""},null,{"$f":"IF(OR(G80=\"x\",N80>0),1,0)","v":0},{"$f":"IF(G80=\"x\",1,0)","v":0},{"$f":"IF(H80=\"x\",1,0)","v":0},{"$f":"IF(AND(R80=1,T80<>1),1,0)","v":0}]
[{"$nulls":9},{"$f":"T('2 REPAIR ESTIMATOR'!D134:O134)","v":"Demo bid/allowance"},{"$f":"'2 REPAIR ESTIMATOR'!P134","v":0},{"$f":"'2 REPAIR ESTIMATOR'!S134","v":"ls"},{"$f":"'2 REPAIR ESTIMATOR'!X134","v":{"v":0,"d":"$0.00"}},{"$f":"'2 REPAIR ESTIMATOR'!AG134","v":0},{"$f":"T('2 REPAIR ESTIMATOR'!AX134)","v":""},{"$f":"T('2 REPAIR ESTIMATOR'!AY134)","v":""},null,{"$f":"IF(OR(G81=\"x\",N81>0),1,0)","v":0},{"$f":"IF(G81=\"x\",1,0)","v":0},{"$f":"IF(H81=\"x\",1,0)","v":0},{"$f":"IF(AND(R81=1,T81<>1),1,0)","v":0}]
[{"$nulls":9},{"$f":"T('2 REPAIR ESTIMATOR'!D135:O135)","v":"Demolition work per hour"},{"$f":"'2 REPAIR ESTIMATOR'!P135","v":80},{"$f":"'2 REPAIR ESTIMATOR'!S135","v":"hrs"},{"$f":"'2 REPAIR ESTIMATOR'!X135","v":{"v":0,"d":"$0.00"}},{"$f":"'2 REPAIR ESTIMATOR'!AG135","v":0},{"$f":"T('2 REPAIR ESTIMATOR'!AX135)","v":""},{"$f":"T('2 REPAIR ESTIMATOR'!AY135)","v":""},null,0,0,0,0]
[{"$nulls":9},{"$f":"T('2 REPAIR ESTIMATOR'!D136:O136)","v":"Room demolition, typical room"},{"$f":"'2 REPAIR ESTIMATOR'!P136","v":0},{"$f":"'2 REPAIR ESTIMATOR'!S136","v":"sf"},{"$f":"'2 REPAIR ESTIMATOR'!X136","v":{"v":0,"d":"$0.00"}},{"$f":"'2 REPAIR ESTIMATOR'!AG136","v":0},{"$f":"T('2 REPAIR ESTIMATOR'!AX136)","v":""},{"$f":"T('2 REPAIR ESTIMATOR'!AY136)","v":""},null,0,0,0,0]
[{"$nulls":9},{"$f":"T('2 REPAIR ESTIMATOR'!D137:O137)","v":"Room demolition, bathroom"},{"$f":"'2 REPAIR ESTIMATOR'!P137","v":0},{"$f":"'2 REPAIR ESTIMATOR'!S137","v":"sf"},{"$f":"'2 REPAIR ESTIMATOR'!X137","v":{"v":0,"d":"$0.00"}},{"$f":"'2 REPAIR ESTIMATOR'!AG137","v":0},{"$f":"T('2 REPAIR ESTIMATOR'!AX137)","v":""},{"$f":"T('2 REPAIR ESTIMATOR'!AY137)","v":""},null,0,0,0,0]
[{"$nulls":9},{"$f":"T('2 REPAIR ESTIMATOR'!D138:O138)","v":"Room demolition, kitchen"},{"$f":"'2 REPAIR ESTIMATOR'!P138","v":0},{"$f":"'2 REPAIR ESTIMATOR'!S138","v":"sf"},{"$f":"'2 REPAIR ESTIMATOR'!X138","v":{"v":0,"d":"$0.00"}},{"$f":"'2 REPAIR ESTIMATOR'!AG138","v":0},{"$f":"T('2 REPAIR ESTIMATOR'!AX138)","v":""},{"$f":"T('2 REPAIR ESTIMATOR'!AY138)","v":""},null,0,0,0,0]
[{"$nulls":9},{"$f":"T('2 REPAIR ESTIMATOR'!D139:O139)","v":"Building demolition, 1-story wood-framed"},{"$f":"'2 REPAIR ESTIMATOR'!P139","v":0},{"$f":"'2 REPAIR ESTIMATOR'!S139","v":"sf"},{"$f":"'2 REPAIR ESTIMATOR'!X139","v":{"v":0,"d":"$0.00"}},{"$f":"'2 REPAIR ESTIMATOR'!AG139","v":0},{"$f":"T('2 REPAIR ESTIMATOR'!AX139)","v":""},{"$f":"T('2 REPAIR ESTIMATOR'!AY139)","v":""},null,0,0,0,0]
[{"$nulls":9},{"$f":"T('2 REPAIR ESTIMATOR'!D140:O140)","v":"Building demolition, 2-story wood framed"},{"$f":"'2 REPAIR ESTIMATOR'!P140","v":0},{"$f":"'2 REPAIR ESTIMATOR'!S140","v":"sf"},{"$f":"'2 REPAIR ESTIMATOR'!X140","v":{"v":0,"d":"$0.00"}},{"$f":"'2 REPAIR ESTIMATOR'!AG140","v":0},{"$f":"T('2 REPAIR ESTIMATOR'!AX140)","v":""},{"$f":"T('2 REPAIR ESTIMATOR'!AY140)","v":""},null,0,0,0,0]
[{"$nulls":9},{"$f":"T('2 REPAIR ESTIMATOR'!D141:O141)","v":"Building demolition, masonry"},{"$f":"'2 REPAIR ESTIMATOR'!P141","v":0},{"$f":"'2 REPAIR ESTIMATOR'!S141","v":"sf"},{"$f":"'2 REPAIR ESTIMATOR'!X141","v":{"v":0,"d":"$0.00"}},{"$f":"'2 REPAIR ESTIMATOR'!AG141","v":0},{"$f":"T('2 REPAIR ESTIMATOR'!AX141)","v":""},{"$f":"T('2 REPAIR ESTIMATOR'!AY141)","v":""},null,0,0,0,0]
[{"$nulls":9},{"$f":"T('2 REPAIR ESTIMATOR'!D142:O142)","v":"Building demolition, steel/concrete"},{"$f":"'2 REPAIR ESTIMATOR'!P142","v":0},{"$f":"'2 REPAIR ESTIMATOR'!S142","v":"sf"},{"$f":"'2 REPAIR ESTIMATOR'!X142","v":{"v":0,"d":"$0.00"}},{"$f":"'2 REPAIR ESTIMATOR'!AG142","v":0},{"$f":"T('2 REPAIR ESTIMATOR'!AX142)","v":""},{"$f":"T('2 REPAIR ESTIMATOR'!AY142)","v":""},null,0,0,0,0]
[{"$nulls":9},{"$f":"T('2 REPAIR ESTIMATOR'!D143:O143)","v":"Concrete slab demolition, 4\"-6\""},{"$f":"'2 REPAIR ESTIMATOR'!P143","v":0},{"$f":"'2 REPAIR ESTIMATOR'!S143","v":0},{"$f":"'2 REPAIR ESTIMATOR'!X143","v":{"v":0,"d":"$0.00"}},{"$f":"'2 REPAIR ESTIMATOR'!AG143","v":0},{"$f":"T('2 REPAIR ESTIMATOR'!AX143)","v":""},{"$f":"T('2 REPAIR ESTIMATOR'!AY143)","v":""},null,0,0,0,0]
[{"$nulls":9},{"$f":"T('2 REPAIR ESTIMATOR'!D144:O144)","v":""},{"$f":"'2 REPAIR ESTIMATOR'!P144","v":0},{"$f":"'2 REPAIR ESTIMATOR'!S144","v":0},{"$f":"'2 REPAIR ESTIMATOR'!X144","v":{"v":0,"d":"$0.00"}},{"$f":"'2 REPAIR ESTIMATOR'!AG144","v":0},{"$f":"T('2 REPAIR ESTIMATOR'!AX144)","v":""},{"$f":"T('2 REPAIR ESTIMATOR'!AY144)","v":""},null,0,0,0,0]
[{"$nulls":9},{"$f":"T('2 REPAIR ESTIMATOR'!D145:O145)","v":""},{"$f":"'2 REPAIR ESTIMATOR'!P145","v":0},{"$f":"'2 REPAIR ESTIMATOR'!S145","v":0},{"$f":"'2 REPAIR ESTIMATOR'!X145","v":{"v":0,"d":"$0.00"}},{"$f":"'2 REPAIR ESTIMATOR'!AG145","v":0},{"$f":"T('2 REPAIR ESTIMATOR'!AX145)","v":""},{"$f":"T('2 REPAIR ESTIMATOR'!AY145)","v":""},null,0,0,0,0]
[{"$nulls":9},{"$f":"T('2 REPAIR ESTIMATOR'!D146:O146)","v":"Abatement"},{"$f":"'2 REPAIR ESTIMATOR'!P146","v":0},{"$f":"'2 REPAIR ESTIMATOR'!S146","v":"ls"},{"$f":"'2 REPAIR ESTIMATOR'!X146","v":{"v":0,"d":"$0.00"}},{"$f":"'2 REPAIR ESTIMATOR'!AG146","v":0},{"$f":"T('2 REPAIR ESTIMATOR'!AX146)","v":""},{"$f":"T('2 REPAIR ESTIMATOR'!AY146)","v":""},null,0,0,0,0]
[{"$nulls":9},{"$f":"T('2 REPAIR ESTIMATOR'!D147:O147)","v":"Asbestos bid/allowance"},{"$f":"'2 REPAIR ESTIMATOR'!P147","v":0},{"$f":"'2 REPAIR ESTIMATOR'!S147","v":"ls"},{"$f":"'2 REPAIR ESTIMATOR'!X147","v":{"v":0,"d":"$0.00"}},{"$f":"'2 REPAIR ESTIMATOR'!AG147","v":0},{"$f":"T('2 REPAIR ESTIMATOR'!AX147)","v":""},{"$f":"T('2 REPAIR ESTIMATOR'!AY147)","v":""},null,0,0,0,0]
[{"$nulls":9},{"$f":"T('2 REPAIR ESTIMATOR'!D148:O148)","v":"Asbestos testing"},{"$f":"'2 REPAIR ESTIMATOR'!P148","v":0},{"$f":"'2 REPAIR ESTIMATOR'!S148","v":"ea"},{"$f":"'2 REPAIR ESTIMATOR'!X148","v":{"v":0,"d":"$0.00"}},{"$f":"'2 REPAIR ESTIMATOR'!AG148","v":0},{"$f":"T('2 REPAIR ESTIMATOR'!AX148)","v":""},{"$f":"T('2 REPAIR ESTIMATOR'!AY148)","v":""},null,0,0,0,0]
[{"$nulls":9},{"$f":"T('2 REPAIR ESTIMATOR'!D149:O149)","v":"Asbestos abatement, minimum charge"},{"$f":"'2 REPAIR ESTIMATOR'!P149","v":0},{"$f":"'2 REPAIR ESTIMATOR'!S149","v":"ea"},{"$f":"'2 REPAIR ESTIMATOR'!X149","v":{"v":0,"d":"$0.00"}},{"$f":"'2 REPAIR ESTIMATOR'!AG149","v":0},{"$f":"T('2 REPAIR ESTIMATOR'!AX149)","v":""},{"$f":"T('2 REPAIR ESTIMATOR'!AY149)","v":""},null,0,0,0,0]
[{"$nulls":9},{"$f":"T('2 REPAIR ESTIMATOR'!D150:O150)","v":"Mold, minimum charge"},{"$f":"'2 REPAIR ESTIMATOR'!P150","v":0},{"$f":"'2 REPAIR ESTIMATOR'!S150","v":0},{"$f":"'2 REPAIR ESTIMATOR'!X150","v":{"v":0,"d":"$0.00"}},{"$f":"'2 REPAIR ESTIMATOR'!AG150","v":0},{"$f":"T('2 REPAIR ESTIMATOR'!AX150)","v":""},{"$f":"T('2 REPAIR ESTIMATOR'!AY150)","v":""},null,0,0,0,0]
[{"$nulls":9},{"$f":"T('2 REPAIR ESTIMATOR'!D151:O151)","v":""},{"$f":"'2 REPAIR ESTIMATOR'!P151","v":0},{"$f":"'2 REPAIR ESTIMATOR'!S151","v":0},{"$f":"'2 REPAIR ESTIMATOR'!X151","v":{"v":0,"d":"$0.00"}},{"$f":"'2 REPAIR ESTIMATOR'!AG151","v":0},{"$f":"T('2 REPAIR ESTIMATOR'!AX151)","v":""},{"$f":"T('2 REPAIR ESTIMATOR'!AY151)","v":""},null,0,0,0,0]
[{"$nulls":9},{"$f":"T('2 REPAIR ESTIMATOR'!D152:O152)","v":""},{"$f":"'2 REPAIR ESTIMATOR'!P152","v":0},{"$f":"'2 REPAIR ESTIMATOR'!S152","v":0},{"$f":"'2 REPAIR ESTIMATOR'!X152","v":{"v":0,"d":"$0.00"}},{"$f":"'2 REPAIR ESTIMATOR'!AG152","v":0},{"$f":"T('2 REPAIR ESTIMATOR'!AX152)","v":""},{"$f":"T('2 REPAIR ESTIMATOR'!AY152)","v":""},null,0,0,0,0]
[{"$nulls":9},{"$f":"T('2 REPAIR ESTIMATOR'!D153:O153)","v":""},{"$f":"'2 REPAIR ESTIMATOR'!P153","v":0},{"$f":"'2 REPAIR ESTIMATOR'!S153","v":0},{"$f":"'2 REPAIR ESTIMATOR'!X153","v":{"v":0,"d":"$0.00"}},{"$f":"'2 REPAIR ESTIMATOR'!AG153","v":0},{"$f":"T('2 REPAIR ESTIMATOR'!AX153)","v":""},{"$f":"T('2 REPAIR ESTIMATOR'!AY153)","v":""},null,0,0,0,0]
[{"$nulls":9},{"$f":"T('2 REPAIR ESTIMATOR'!D154:O154)","v":""},{"$f":"'2 REPAIR ESTIMATOR'!P154","v":0},{"$f":"'2 REPAIR ESTIMATOR'!S154","v":0},{"$f":"'2 REPAIR ESTIMATOR'!X154","v":{"v":0,"d":"$0.00"}},{"$f":"'2 REPAIR ESTIMATOR'!AG154","v":0},{"$f":"T('2 REPAIR ESTIMATOR'!AX154)","v":""},{"$f":"T('2 REPAIR ESTIMATOR'!AY154)","v":""},null,0,0,0,0]
[{"$nulls":9},{"$f":"T('2 REPAIR ESTIMATOR'!D155:O155)","v":""},{"$f":"'2 REPAIR ESTIMATOR'!P155","v":0},{"$f":"'2 REPAIR ESTIMATOR'!S155","v":0},{"$f":"'2 REPAIR ESTIMATOR'!X155","v":{"v":0,"d":"$0.00"}},{"$f":"'2 REPAIR ESTIMATOR'!AG155","v":0},{"$f":"T('2 REPAIR ESTIMATOR'!AX155)","v":""},{"$f":"T('2 REPAIR ESTIMATOR'!AY155)","v":""},null,0,0,0,0]
[{"$nulls":9},{"$f":"T('2 REPAIR ESTIMATOR'!D156:O156)","v":""},{"$f":"'2 REPAIR ESTIMATOR'!P156","v":0},{"$f":"'2 REPAIR ESTIMATOR'!S156","v":0},{"$f":"'2 REPAIR ESTIMATOR'!X156","v":{"v":0,"d":"$0.00"}},{"$f":"'2 REPAIR ESTIMATOR'!AG156","v":0},{"$f":"T('2 REPAIR ESTIMATOR'!AX156)","v":""},{"$f":"T('2 REPAIR ESTIMATOR'!AY156)","v":""},null,0,0,0,0]
[{"$nulls":9},{"$f":"T('2 REPAIR ESTIMATOR'!D157:O157)","v":""},{"$f":"'2 REPAIR ESTIMATOR'!P157","v":0},{"$f":"'2 REPAIR ESTIMATOR'!S157","v":0},{"$f":"'2 REPAIR ESTIMATOR'!X157","v":{"v":0,"d":"$0.00"}},{"$f":"'2 REPAIR ESTIMATOR'!AG157","v":0},{"$f":"T('2 REPAIR ESTIMATOR'!AX157)","v":""},{"$f":"T('2 REPAIR ESTIMATOR'!AY157)","v":""},null,0,0,0,0]
[{"$nulls":9},{"$f":"T('2 REPAIR ESTIMATOR'!D158:O158)","v":""},{"$f":"'2 REPAIR ESTIMATOR'!P158","v":0},{"$f":"'2 REPAIR ESTIMATOR'!S158","v":0},{"$f":"'2 REPAIR ESTIMATOR'!X158","v":{"v":0,"d":"$0.00"}},{"$f":"'2 REPAIR ESTIMATOR'!AG158","v":0},{"$f":"T('2 REPAIR ESTIMATOR'!AX158)","v":""},{"$f":"T('2 REPAIR ESTIMATOR'!AY158)","v":""},null,0,0,0,0]
[{"$nulls":9},{"$f":"T('2 REPAIR ESTIMATOR'!D159:O159)","v":""},{"$f":"'2 REPAIR ESTIMATOR'!P159","v":0},{"$f":"'2 REPAIR ESTIMATOR'!S159","v":0},{"$f":"'2 REPAIR ESTIMATOR'!X159","v":{"v":0,"d":"$0.00"}},{"$f":"'2 REPAIR ESTIMATOR'!AG159","v":0},{"$f":"T('2 REPAIR ESTIMATOR'!AX159)","v":""},{"$f":"T('2 REPAIR ESTIMATOR'!AY159)","v":""},null,0,0,0,0]
[{"$nulls":9},{"$f":"T('2 REPAIR ESTIMATOR'!D160:O160)","v":""},{"$f":"'2 REPAIR ESTIMATOR'!P160","v":0},{"$f":"'2 REPAIR ESTIMATOR'!S160","v":0},{"$f":"'2 REPAIR ESTIMATOR'!X160","v":{"v":0,"d":"$0.00"}},{"$f":"'2 REPAIR ESTIMATOR'!AG160","v":0},{"$f":"T('2 REPAIR ESTIMATOR'!AX160)","v":""},{"$f":"T('2 REPAIR ESTIMATOR'!AY160)","v":""},null,0,0,0,0]
[{"$nulls":9},{"$f":"T('2 REPAIR ESTIMATOR'!D161:O161)","v":""},{"$f":"'2 REPAIR ESTIMATOR'!P161","v":0},{"$f":"'2 REPAIR ESTIMATOR'!S161","v":0},{"$f":"'2 REPAIR ESTIMATOR'!X161","v":{"v":0,"d":"$0.00"}},{"$f":"'2 REPAIR ESTIMATOR'!AG161","v":0},{"$f":"T('2 REPAIR ESTIMATOR'!AX161)","v":""},{"$f":"T('2 REPAIR ESTIMATOR'!AY161)","v":""},null,0,0,0,0]
[{"$nulls":9},{"$f":"T('2 REPAIR ESTIMATOR'!D162:O162)","v":""},{"$f":"'2 REPAIR ESTIMATOR'!P162","v":0},{"$f":"'2 REPAIR ESTIMATOR'!S162","v":0},{"$f":"'2 REPAIR ESTIMATOR'!X162","v":{"v":0,"d":"$0.00"}},{"$f":"'2 REPAIR ESTIMATOR'!AG162","v":0},{"$f":"T('2 REPAIR ESTIMATOR'!AX162)","v":""},{"$f":"T('2 REPAIR ESTIMATOR'!AY162)","v":""},null,0,0,0,0]
[{"$nulls":9},{"$f":"T('2 REPAIR ESTIMATOR'!D163:O163)","v":""},{"$f":"'2 REPAIR ESTIMATOR'!P163","v":0},{"$f":"'2 REPAIR ESTIMATOR'!S163","v":0},{"$f":"'2 REPAIR ESTIMATOR'!X163","v":{"v":0,"d":"$0.00"}},{"$f":"'2 REPAIR ESTIMATOR'!AG163","v":0},{"$f":"T('2 REPAIR ESTIMATOR'!AX163)","v":""},{"$f":"T('2 REPAIR ESTIMATOR'!AY163)","v":""},null,0,0,0,0]
[{"$nulls":9},{"$f":"T('2 REPAIR ESTIMATOR'!D164:O164)","v":""},{"$f":"'2 REPAIR ESTIMATOR'!P164","v":0},{"$f":"'2 REPAIR ESTIMATOR'!S164","v":0},{"$f":"'2 REPAIR ESTIMATOR'!X164","v":{"v":0,"d":"$0.00"}},{"$f":"'2 REPAIR ESTIMATOR'!AG164","v":0},{"$f":"T('2 REPAIR ESTIMATOR'!AX164)","v":""},{"$f":"T('2 REPAIR ESTIMATOR'!AY164)","v":""},null,0,0,0,0]
[{"$nulls":9},{"$f":"T('2 REPAIR ESTIMATOR'!D165:O165)","v":""},{"$f":"'2 REPAIR ESTIMATOR'!P165","v":0},{"$f":"'2 REPAIR ESTIMATOR'!S165","v":0},{"$f":"'2 REPAIR ESTIMATOR'!X165","v":{"v":0,"d":"$0.00"}},{"$f":"'2 REPAIR ESTIMATOR'!AG165","v":0},{"$f":"T('2 REPAIR ESTIMATOR'!AX165)","v":""},{"$f":"T('2 REPAIR ESTIMATOR'!AY165)","v":""},null,0,0,0,0]
[{"$nulls":9},{"$f":"T('2 REPAIR ESTIMATOR'!D166:O166)","v":""},{"$f":"'2 REPAIR ESTIMATOR'!P166","v":0},{"$f":"'2 REPAIR ESTIMATOR'!S166","v":0},{"$f":"'2 REPAIR ESTIMATOR'!X166","v":{"v":0,"d":"$0.00"}},{"$f":"'2 REPAIR ESTIMATOR'!AG166","v":0},{"$f":"T('2 REPAIR ESTIMATOR'!AX166)","v":""},{"$f":"T('2 REPAIR ESTIMATOR'!AY166)","v":""},null,0,0,0,0]
[{"$nulls":9},{"$f":"T('2 REPAIR ESTIMATOR'!D167:O167)","v":""},{"$f":"'2 REPAIR ESTIMATOR'!P167","v":0},{"$f":"'2 REPAIR ESTIMATOR'!S167","v":0},{"$f":"'2 REPAIR ESTIMATOR'!X167","v":{"v":0,"d":"$0.00"}},{"$f":"'2 REPAIR ESTIMATOR'!AG167","v":0},{"$f":"T('2 REPAIR ESTIMATOR'!AX167)","v":""},{"$f":"T('2 REPAIR ESTIMATOR'!AY167)","v":""},null,0,0,0,0]
[{"$nulls":9},{"$f":"T('2 REPAIR ESTIMATOR'!D168:O168)","v":""},{"$f":"'2 REPAIR ESTIMATOR'!P168","v":0},{"$f":"'2 REPAIR ESTIMATOR'!S168","v":0},{"$f":"'2 REPAIR ESTIMATOR'!X168","v":{"v":0,"d":"$0.00"}},{"$f":"'2 REPAIR ESTIMATOR'!AG168","v":0},{"$f":"T('2 REPAIR ESTIMATOR'!AX168)","v":""},{"$f":"T('2 REPAIR ESTIMATOR'!AY168)","v":""},null,0,0,0,0]
[{"$nulls":9},{"$f":"T('2 REPAIR ESTIMATOR'!D169:O169)","v":""},{"$f":"'2 REPAIR ESTIMATOR'!P169","v":0},{"$f":"'2 REPAIR ESTIMATOR'!S169","v":0},{"$f":"'2 REPAIR ESTIMATOR'!X169","v":{"v":0,"d":"$0.00"}},{"$f":"'2 REPAIR ESTIMATOR'!AG169","v":0},{"$f":"T('2 REPAIR ESTIMATOR'!AX169)","v":""},{"$f":"T('2 REPAIR ESTIMATOR'!AY169)","v":""},null,0,0,0,0]
[{"$nulls":9},{"$f":"T('2 REPAIR ESTIMATOR'!D170:O170)","v":""},{"$f":"'2 REPAIR ESTIMATOR'!P170","v":0},{"$f":"'2 REPAIR ESTIMATOR'!S170","v":0},{"$f":"'2 REPAIR ESTIMATOR'!X170","v":{"v":0,"d":"$0.00"}},{"$f":"'2 REPAIR ESTIMATOR'!AG170","v":0},{"$f":"T('2 REPAIR ESTIMATOR'!AX170)","v":""},{"$f":"T('2 REPAIR ESTIMATOR'!AY170)","v":""},null,0,0,0,0]
[{"$nulls":9},{"$f":"T('2 REPAIR ESTIMATOR'!D171:O171)","v":""},{"$f":"'2 REPAIR ESTIMATOR'!P171","v":0},{"$f":"'2 REPAIR ESTIMATOR'!S171","v":0},{"$f":"'2 REPAIR ESTIMATOR'!X171","v":{"v":0,"d":"$0.00"}},{"$f":"'2 REPAIR ESTIMATOR'!AG171","v":0},{"$f":"T('2 REPAIR ESTIMATOR'!AX171)","v":""},{"$f":"T('2 REPAIR ESTIMATOR'!AY171)","v":""},null,0,0,0,0]
[{"$nulls":9},{"$f":"T('2 REPAIR ESTIMATOR'!D172:O172)","v":""},{"$f":"'2 REPAIR ESTIMATOR'!P172","v":0},{"$f":"'2 REPAIR ESTIMATOR'!S172","v":0},{"$f":"'2 REPAIR ESTIMATOR'!X172","v":{"v":0,"d":"$0.00"}},{"$f":"'2 REPAIR ESTIMATOR'!AG172","v":0},{"$f":"T('2 REPAIR ESTIMATOR'!AX172)","v":""},{"$f":"T('2 REPAIR ESTIMATOR'!AY172)","v":""},null,0,0,0,0]
[{"$nulls":12},{"$f":"CONCATENATE(J79,\" \",\"TOTAL\")","v":"DEMOLITION TOTAL"},{"$f":"SUBTOTAL(9,N80:N119)","v":0},{"$nulls":3},{"$f":"SUM(R80:R119)","v":0},{"$f":"SUM(S80:S119)","v":0},{"$f":"SUM(T80:T119)","v":0},{"$f":"SUM(U80:U119)","v":0}]
[{"$nulls":9},{"$f":"T(#REF!)","v":{"$error":"#REF!"}},{"$f":"#REF!","v":{"$error":"#REF!"}},{"$f":"#REF!","v":{"$error":"#REF!"}},{"$f":"#REF!","v":{"$error":"#REF!"}},{"$f":"#REF!","v":{"$error":"#REF!"}},{"$nulls":3},{"$f":"R120","v":0},{"$f":"S120","v":0},{"$f":"T120","v":0},{"$f":"U120","v":0}]
[{"$nulls":9},{"$f":"CONCATENATE(\"MISCELLANEOUS \",J79,\" MATERIAL ITEMS\")","v":"MISCELLANEOUS DEMOLITION MATERIAL ITEMS"},{"$nulls":4},"Store","SKU #",null,{"$f":"SUM(R123:R132)*R79","v":{"$error":"#REF!"}},{"$f":"SUM(S123:S132)","v":0},{"$f":"SUM(T123:T132)","v":0},{"$f":"SUM(U123:U132)","v":{"$error":"#REF!"}}]
[{"$nulls":9},"1. Safety equipment (goggles, dust masks, hard hats)",{"$nulls":7},{"$f":"IF(OR(G123=\"x\",J123>0),1,0)*R79","v":{"$error":"#REF!"}},{"$f":"IF(G123=\"x\",1,0)","v":0},{"$f":"IF(H123=\"x\",1,0)","v":0},{"$f":"IF(AND(R123=1,T123<>1),1,0)","v":{"$error":"#REF!"}}]
[{"$nulls":9},"2. Garbage cans/backets",{"$nulls":7},{"$f":"IF(OR(G124=\"x\",J124>0),1,0)*R79","v":{"$error":"#REF!"}},0,0,{"$error":"#REF!"}]
[{"$nulls":9},"3. Brooms, dust pans",{"$nulls":7},{"$f":"IF(OR(G125=\"x\",J125>0),1,0)*R79","v":{"$error":"#REF!"}},0,0,{"$error":"#REF!"}]
[{"$nulls":9},"4. Garbage bags",{"$nulls":7},{"$f":"IF(OR(G126=\"x\",J126>0),1,0)*R79","v":{"$error":"#REF!"}},0,0,{"$error":"#REF!"}]
[{"$nulls":17},{"$f":"IF(OR(G127=\"x\",J127>0),1,0)*R79","v":{"$error":"#REF!"}},0,0,{"$error":"#REF!"}]
[{"$nulls":17},{"$f":"IF(OR(G128=\"x\",J128>0),1,0)*R79","v":{"$error":"#REF!"}},0,0,{"$error":"#REF!"}]
[{"$nulls":17},{"$f":"IF(OR(G129=\"x\",J129>0),1,0)*R79","v":{"$error":"#REF!"}},0,0,{"$error":"#REF!"}]
[{"$nulls":17},{"$f":"IF(OR(G130=\"x\",J130>0),1,0)*R79","v":{"$error":"#REF!"}},0,0,{"$error":"#REF!"}]
[{"$nulls":17},{"$f":"IF(OR(G131=\"x\",J131>0),1,0)*R79","v":{"$error":"#REF!"}},0,0,{"$error":"#REF!"}]
[{"$nulls":17},{"$f":"IF(OR(G132=\"x\",J132>0),1,0)*R79","v":{"$error":"#REF!"}},0,0,{"$error":"#REF!"}]
[{"$nulls":9},{"$f":"T(#REF!)","v":{"$error":"#REF!"}},{"$f":"#REF!","v":{"$error":"#REF!"}},{"$f":"#REF!","v":{"$error":"#REF!"}},{"$f":"#REF!","v":{"$error":"#REF!"}},{"$f":"#REF!","v":{"$error":"#REF!"}},{"$nulls":3},{"$f":"R122*R79","v":{"$error":"#REF!"}},{"$f":"S122","v":0},{"$f":"T122","v":0},{"$f":"U122","v":{"$error":"#REF!"}}]
[{"$nulls":9},{"$f":"T('2 REPAIR ESTIMATOR'!D177:O177)","v":"STRUCTURAL CONCRETE"},{"$f":"#REF!","v":{"$error":"#REF!"}},{"$f":"#REF!","v":{"$error":"#REF!"}},{"$f":"#REF!","v":{"$error":"#REF!"}},{"$f":"#REF!","v":{"$error":"#REF!"}},{"$nulls":3},{"$f":"IF(SUM(R135:R188)>0,1,0)","v":{"$error":"#REF!"}},{"$f":"SUM(S135:S188)","v":0},{"$f":"SUM(T135:T188)","v":0},{"$f":"SUM(U135:U188)","v":{"$error":"#REF!"}}]
[{"$nulls":9},{"$f":"T('2 REPAIR ESTIMATOR'!D178:O178)","v":"Excavation"},{"$f":"'2 REPAIR ESTIMATOR'!P178","v":0},{"$f":"'2 REPAIR ESTIMATOR'!S178","v":0},{"$f":"'2 REPAIR ESTIMATOR'!X178","v":{"v":0,"d":"$0.00"}},{"$f":"'2 REPAIR ESTIMATOR'!AG178","v":0},{"$f":"T('2 REPAIR ESTIMATOR'!AX178)","v":""},{"$f":"T('2 REPAIR ESTIMATOR'!AY178)","v":""},null,{"$f":"IF(OR(G135=\"x\",N135>0),1,0)","v":0},{"$f":"IF(G135=\"x\",1,0)","v":0},{"$f":"IF(H135=\"x\",1,0)","v":0},{"$f":"IF(AND(R135=1,T135<>1),1,0)","v":0}]
[{"$nulls":9},{"$f":"T('2 REPAIR ESTIMATOR'!D179:O179)","v":"Excavation bid/allowance"},{"$f":"'2 REPAIR ESTIMATOR'!P179","v":0},{"$f":"'2 REPAIR ESTIMATOR'!S179","v":"ls"},{"$f":"'2 REPAIR ESTIMATOR'!X179","v":{"v":0,"d":"$0.00"}},{"$f":"'2 REPAIR ESTIMATOR'!AG179","v":0},{"$f":"T('2 REPAIR ESTIMATOR'!AX179)","v":""},{"$f":"T('2 REPAIR ESTIMATOR'!AY179)","v":""},null,{"$f":"IF(OR(G136=\"x\",N136>0),1,0)","v":0},{"$f":"IF(G136=\"x\",1,0)","v":0},{"$f":"IF(H136=\"x\",1,0)","v":0},{"$f":"IF(AND(R136=1,T136<>1),1,0)","v":0}]
[{"$nulls":9},{"$f":"T('2 REPAIR ESTIMATOR'!D180:O180)","v":"Footing trenching"},{"$f":"'2 REPAIR ESTIMATOR'!P180","v":0},{"$f":"'2 REPAIR ESTIMATOR'!S180","v":"cy"},{"$f":"'2 REPAIR ESTIMATOR'!X180","v":{"v":0,"d":"$0.00"}},{"$f":"'2 REPAIR ESTIMATOR'!AG180","v":0},{"$f":"T('2 REPAIR ESTIMATOR'!AX180)","v":""},{"$f":"T('2 REPAIR ESTIMATOR'!AY180)","v":""},null,0,0,0,0]
[{"$nulls":9},{"$f":"T('2 REPAIR ESTIMATOR'!D181:O181)","v":"Backfill of trenches "},{"$f":"'2 REPAIR ESTIMATOR'!P181","v":0},{"$f":"'2 REPAIR ESTIMATOR'!S181","v":"cy"},{"$f":"'2 REPAIR ESTIMATOR'!X181","v":{"v":0,"d":"$0.00"}},{"$f":"'2 REPAIR ESTIMATOR'!AG181","v":0},{"$f":"T('2 REPAIR ESTIMATOR'!AX181)","v":""},{"$f":"T('2 REPAIR ESTIMATOR'!AY181)","v":""},null,0,0,0,0]
[{"$nulls":9},{"$f":"T('2 REPAIR ESTIMATOR'!D182:O182)","v":""},{"$f":"'2 REPAIR ESTIMATOR'!P182","v":0},{"$f":"'2 REPAIR ESTIMATOR'!S182","v":0},{"$f":"'2 REPAIR ESTIMATOR'!X182","v":{"v":0,"d":"$0.00"}},{"$f":"'2 REPAIR ESTIMATOR'!AG182","v":0},{"$f":"T('2 REPAIR ESTIMATOR'!AX182)","v":""},{"$f":"T('2 REPAIR ESTIMATOR'!AY182)","v":""},null,0,0,0,0]
[{"$nulls":9},{"$f":"T('2 REPAIR ESTIMATOR'!D183:O183)","v":""},{"$f":"'2 REPAIR ESTIMATOR'!P183","v":0},{"$f":"'2 REPAIR ESTIMATOR'!S183","v":0},{"$f":"'2 REPAIR ESTIMATOR'!X183","v":{"v":0,"d":"$0.00"}},{"$f":"'2 REPAIR ESTIMATOR'!AG183","v":0},{"$f":"T('2 REPAIR ESTIMATOR'!AX183)","v":""},{"$f":"T('2 REPAIR ESTIMATOR'!AY183)","v":""},null,0,0,0,0]
[{"$nulls":9},{"$f":"T('2 REPAIR ESTIMATOR'!D184:O184)","v":"Foundation"},{"$f":"'2 REPAIR ESTIMATOR'!P184","v":0},{"$f":"'2 REPAIR ESTIMATOR'!S184","v":0},{"$f":"'2 REPAIR ESTIMATOR'!X184","v":{"v":0,"d":"$0.00"}},{"$f":"'2 REPAIR ESTIMATOR'!AG184","v":0},{"$f":"T('2 REPAIR ESTIMATOR'!AX184)","v":""},{"$f":"T('2 REPAIR ESTIMATOR'!AY184)","v":""},null,0,0,0,0]
[{"$nulls":9},{"$f":"T('2 REPAIR ESTIMATOR'!D185:O185)","v":"Foundation bid/allowance"},{"$f":"'2 REPAIR ESTIMATOR'!P185","v":0},{"$f":"'2 REPAIR ESTIMATOR'!S185","v":"ls"},{"$f":"'2 REPAIR ESTIMATOR'!X185","v":{"v":0,"d":"$0.00"}},{"$f":"'2 REPAIR ESTIMATOR'!AG185","v":0},{"$f":"T('2 REPAIR ESTIMATOR'!AX185)","v":""},{"$f":"T('2 REPAIR ESTIMATOR'!AY185)","v":""},null,0,0,0,0]
[{"$nulls":9},{"$f":"T('2 REPAIR ESTIMATOR'!D186:O186)","v":"Concrete slab on grade, 4\" thick"},{"$f":"'2 REPAIR ESTIMATOR'!P186","v":0},{"$f":"'2 REPAIR ESTIMATOR'!S186","v":"sf"},{"$f":"'2 REPAIR ESTIMATOR'!X186","v":{"v":2.5,"d":"$2.50"}},{"$f":"'2 REPAIR ESTIMATOR'!AG186","v":0},{"$f":"T('2 REPAIR ESTIMATOR'!AX186)","v":""},{"$f":"T('2 REPAIR ESTIMATOR'!AY186)","v":""},null,0,0,0,0]
[{"$nulls":9},{"$f":"T('2 REPAIR ESTIMATOR'!D187:O187)","v":"Concrete footing, 12\" wide "},{"$f":"'2 REPAIR ESTIMATOR'!P187","v":0},{"$f":"'2 REPAIR ESTIMATOR'!S187","v":"lf"},{"$f":"'2 REPAIR ESTIMATOR'!X187","v":{"v":15,"d":"$15.00"}},{"$f":"'2 REPAIR ESTIMATOR'!AG187","v":0},{"$f":"T('2 REPAIR ESTIMATOR'!AX187)","v":""},{"$f":"T('2 REPAIR ESTIMATOR'!AY187)","v":""},null,0,0,0,0]
[{"$nulls":9},{"$f":"T('2 REPAIR ESTIMATOR'!D188:O188)","v":"Stem wall, single story"},{"$f":"'2 REPAIR ESTIMATOR'!P188","v":0},{"$f":"'2 REPAIR ESTIMATOR'!S188","v":"lf"},{"$f":"'2 REPAIR ESTIMATOR'!X188","v":{"v":30,"d":"$30.00"}},{"$f":"'2 REPAIR ESTIMATOR'!AG188","v":0},{"$f":"T('2 REPAIR ESTIMATOR'!AX188)","v":""},{"$f":"T('2 REPAIR ESTIMATOR'!AY188)","v":""},null,0,0,0,0]
[{"$nulls":9},{"$f":"T('2 REPAIR ESTIMATOR'!D189:O189)","v":""},{"$f":"'2 REPAIR ESTIMATOR'!P189","v":0},{"$f":"'2 REPAIR ESTIMATOR'!S189","v":0},{"$f":"'2 REPAIR ESTIMATOR'!X189","v":{"v":0,"d":"$0.00"}},{"$f":"'2 REPAIR ESTIMATOR'!AG189","v":0},{"$f":"T('2 REPAIR ESTIMATOR'!AX189)","v":""},{"$f":"T('2 REPAIR ESTIMATOR'!AY189)","v":""},null,0,0,0,0]
[{"$nulls":9},{"$f":"T('2 REPAIR ESTIMATOR'!D190:O190)","v":""},{"$f":"'2 REPAIR ESTIMATOR'!P190","v":0},{"$f":"'2 REPAIR ESTIMATOR'!S190","v":0},{"$f":"'2 REPAIR ESTIMATOR'!X190","v":{"v":0,"d":"$0.00"}},{"$f":"'2 REPAIR ESTIMATOR'!AG190","v":0},{"$f":"T('2 REPAIR ESTIMATOR'!AX190)","v":""},{"$f":"T('2 REPAIR ESTIMATOR'!AY190)","v":""},null,0,0,0,0]
[{"$nulls":9},{"$f":"T('2 REPAIR ESTIMATOR'!D191:O191)","v":"Structural Repairs"},{"$f":"'2 REPAIR ESTIMATOR'!P191","v":0},{"$f":"'2 REPAIR ESTIMATOR'!S191","v":0},{"$f":"'2 REPAIR ESTIMATOR'!X191","v":{"v":0,"d":"$0.00"}},{"$f":"'2 REPAIR ESTIMATOR'!AG191","v":0},{"$f":"T('2 REPAIR ESTIMATOR'!AX191)","v":""},{"$f":"T('2 REPAIR ESTIMATOR'!AY191)","v":""},null,0,0,0,0]
[{"$nulls":9},{"$f":"T('2 REPAIR ESTIMATOR'!D192:O192)","v":"Structural Repairs bid/allowance"},{"$f":"'2 REPAIR ESTIMATOR'!P192","v":0},{"$f":"'2 REPAIR ESTIMATOR'!S192","v":"ls"},{"$f":"'2 REPAIR ESTIMATOR'!X192","v":{"v":0,"d":"$0.00"}},{"$f":"'2 REPAIR ESTIMATOR'!AG192","v":0},{"$f":"T('2 REPAIR ESTIMATOR'!AX192)","v":""},{"$f":"T('2 REPAIR ESTIMATOR'!AY192)","v":""},null,0,0,0,0]
[{"$nulls":9},{"$f":"T('2 REPAIR ESTIMATOR'!D193:O193)","v":"Stair mud jacking, case by case"},{"$f":"'2 REPAIR ESTIMATOR'!P193","v":0},{"$f":"'2 REPAIR ESTIMATOR'!S193","v":"ea"},{"$f":"'2 REPAIR ESTIMATOR'!X193","v":{"v":0,"d":"$0.00"}},{"$f":"'2 REPAIR ESTIMATOR'!AG193","v":0},{"$f":"T('2 REPAIR ESTIMATOR'!AX193)","v":""},{"$f":"T('2 REPAIR ESTIMATOR'!AY193)","v":""},null,0,0,0,0]
[{"$nulls":9},{"$f":"T('2 REPAIR ESTIMATOR'!D194:O194)","v":"Bowing foundation walls, vertical I-Beams"},{"$f":"'2 REPAIR ESTIMATOR'!P194","v":0},{"$f":"'2 REPAIR ESTIMATOR'!S194","v":"ea"},{"$f":"'2 REPAIR ESTIMATOR'!X194","v":{"v":0,"d":"$0.00"}},{"$f":"'2 REPAIR ESTIMATOR'!AG194","v":0},{"$f":"T('2 REPAIR ESTIMATOR'!AX194)","v":""},{"$f":"T('2 REPAIR ESTIMATOR'!AY194)","v":""},null,0,0,0,0]
[{"$nulls":9},{"$f":"T('2 REPAIR ESTIMATOR'!D195:O195)","v":"Settled foundation walls, concrete piers/underpinning"},{"$f":"'2 REPAIR ESTIMATOR'!P195","v":0},{"$f":"'2 REPAIR ESTIMATOR'!S195","v":"ea"},{"$f":"'2 REPAIR ESTIMATOR'!X195","v":{"v":0,"d":"$0.00"}},{"$f":"'2 REPAIR ESTIMATOR'!AG195","v":0},{"$f":"T('2 REPAIR ESTIMATOR'!AX195)","v":""},{"$f":"T('2 REPAIR ESTIMATOR'!AY195)","v":""},null,0,0,0,0]
[{"$nulls":9},{"$f":"T('2 REPAIR ESTIMATOR'!D196:O196)","v":"Foundation waterproofing & drain tile, single story"},{"$f":"'2 REPAIR ESTIMATOR'!P196","v":0},{"$f":"'2 REPAIR ESTIMATOR'!S196","v":"lf"},{"$f":"'2 REPAIR ESTIMATOR'!X196","v":{"v":0,"d":"$0.00"}},{"$f":"'2 REPAIR ESTIMATOR'!AG196","v":0},{"$f":"T('2 REPAIR ESTIMATOR'!AX196)","v":""},{"$f":"T('2 REPAIR ESTIMATOR'!AY196)","v":""},null,0,0,0,0]
[{"$nulls":9},{"$f":"T('2 REPAIR ESTIMATOR'!D197:O197)","v":"Epoxy crack injection"},{"$f":"'2 REPAIR ESTIMATOR'!P197","v":0},{"$f":"'2 REPAIR ESTIMATOR'!S197","v":"lf"},{"$f":"'2 REPAIR ESTIMATOR'!X197","v":{"v":0,"d":"$0.00"}},{"$f":"'2 REPAIR ESTIMATOR'!AG197","v":0},{"$f":"T('2 REPAIR ESTIMATOR'!AX197)","v":""},{"$f":"T('2 REPAIR ESTIMATOR'!AY197)","v":""},null,0,0,0,0]
[{"$nulls":9},{"$f":"T('2 REPAIR ESTIMATOR'!D198:O198)","v":""},{"$f":"'2 REPAIR ESTIMATOR'!P198","v":0},{"$f":"'2 REPAIR ESTIMATOR'!S198","v":0},{"$f":"'2 REPAIR ESTIMATOR'!X198","v":{"v":0,"d":"$0.00"}},{"$f":"'2 REPAIR ESTIMATOR'!AG198","v":0},{"$f":"T('2 REPAIR ESTIMATOR'!AX198)","v":""},{"$f":"T('2 REPAIR ESTIMATOR'!AY198)","v":""},null,0,0,0,0]
[{"$nulls":9},{"$f":"T('2 REPAIR ESTIMATOR'!D199:O199)","v":""},{"$f":"'2 REPAIR ESTIMATOR'!P199","v":0},{"$f":"'2 REPAIR ESTIMATOR'!S199","v":0},{"$f":"'2 REPAIR ESTIMATOR'!X199","v":{"v":0,"d":"$0.00"}},{"$f":"'2 REPAIR ESTIMATOR'!AG199","v":0},{"$f":"T('2 REPAIR ESTIMATOR'!AX199)","v":""},{"$f":"T('2 REPAIR ESTIMATOR'!AY199)","v":""},null,0,0,0,0]
[{"$nulls":9},{"$f":"T('2 REPAIR ESTIMATOR'!D200:O200)","v":""},{"$f":"'2 REPAIR ESTIMATOR'!P200","v":0},{"$f":"'2 REPAIR ESTIMATOR'!S200","v":0},{"$f":"'2 REPAIR ESTIMATOR'!X200","v":{"v":0,"d":"$0.00"}},{"$f":"'2 REPAIR ESTIMATOR'!AG200","v":0},{"$f":"T('2 REPAIR ESTIMATOR'!AX200)","v":""},{"$f":"T('2 REPAIR ESTIMATOR'!AY200)","v":""},null,0,0,0,0]
[{"$nulls":9},{"$f":"T('2 REPAIR ESTIMATOR'!D201:O201)","v":""},{"$f":"'2 REPAIR ESTIMATOR'!P201","v":0},{"$f":"'2 REPAIR ESTIMATOR'!S201","v":0},{"$f":"'2 REPAIR ESTIMATOR'!X201","v":{"v":0,"d":"$0.00"}},{"$f":"'2 REPAIR ESTIMATOR'!AG201","v":0},{"$f":"T('2 REPAIR ESTIMATOR'!AX201)","v":""},{"$f":"T('2 REPAIR ESTIMATOR'!AY201)","v":""},null,0,0,0,0]
[{"$nulls":9},{"$f":"T('2 REPAIR ESTIMATOR'!D202:O202)","v":""},{"$f":"'2 REPAIR ESTIMATOR'!P202","v":0},{"$f":"'2 REPAIR ESTIMATOR'!S202","v":0},{"$f":"'2 REPAIR ESTIMATOR'!X202","v":{"v":0,"d":"$0.00"}},{"$f":"'2 REPAIR ESTIMATOR'!AG202","v":0},{"$f":"T('2 REPAIR ESTIMATOR'!AX202)","v":""},{"$f":"T('2 REPAIR ESTIMATOR'!AY202)","v":""},null,0,0,0,0]
[{"$nulls":9},{"$f":"T('2 REPAIR ESTIMATOR'!D203:O203)","v":""},{"$f":"'2 REPAIR ESTIMATOR'!P203","v":0},{"$f":"'2 REPAIR ESTIMATOR'!S203","v":0},{"$f":"'2 REPAIR ESTIMATOR'!X203","v":{"v":0,"d":"$0.00"}},{"$f":"'2 REPAIR ESTIMATOR'!AG203","v":0},{"$f":"T('2 REPAIR ESTIMATOR'!AX203)","v":""},{"$f":"T('2 REPAIR ESTIMATOR'!AY203)","v":""},null,0,0,0,0]
[{"$nulls":9},{"$f":"T('2 REPAIR ESTIMATOR'!D204:O204)","v":""},{"$f":"'2 REPAIR ESTIMATOR'!P204","v":0},{"$f":"'2 REPAIR ESTIMATOR'!S204","v":0},{"$f":"'2 REPAIR ESTIMATOR'!X204","v":{"v":0,"d":"$0.00"}},{"$f":"'2 REPAIR ESTIMATOR'!AG204","v":0},{"$f":"T('2 REPAIR ESTIMATOR'!AX204)","v":""},{"$f":"T('2 REPAIR ESTIMATOR'!AY204)","v":""},null,0,0,0,0]
[{"$nulls":9},{"$f":"T('2 REPAIR ESTIMATOR'!D205:O205)","v":""},{"$f":"'2 REPAIR ESTIMATOR'!P205","v":0},{"$f":"'2 REPAIR ESTIMATOR'!S205","v":0},{"$f":"'2 REPAIR ESTIMATOR'!X205","v":{"v":0,"d":"$0.00"}},{"$f":"'2 REPAIR ESTIMATOR'!AG205","v":0},{"$f":"T('2 REPAIR ESTIMATOR'!AX205)","v":""},{"$f":"T('2 REPAIR ESTIMATOR'!AY205)","v":""},null,0,0,0,0]
[{"$nulls":9},{"$f":"T('2 REPAIR ESTIMATOR'!D206:O206)","v":""},{"$f":"'2 REPAIR ESTIMATOR'!P206","v":0},{"$f":"'2 REPAIR ESTIMATOR'!S206","v":0},{"$f":"'2 REPAIR ESTIMATOR'!X206","v":{"v":0,"d":"$0.00"}},{"$f":"'2 REPAIR ESTIMATOR'!AG206","v":0},{"$f":"T('2 REPAIR ESTIMATOR'!AX206)","v":""},{"$f":"T('2 REPAIR ESTIMATOR'!AY206)","v":""},null,0,0,0,0]
[{"$nulls":9},{"$f":"T('2 REPAIR ESTIMATOR'!D207:O207)","v":""},{"$f":"'2 REPAIR ESTIMATOR'!P207","v":0},{"$f":"'2 REPAIR ESTIMATOR'!S207","v":0},{"$f":"'2 REPAIR ESTIMATOR'!X207","v":{"v":0,"d":"$0.00"}},{"$f":"'2 REPAIR ESTIMATOR'!AG207","v":0},{"$f":"T('2 REPAIR ESTIMATOR'!AX207)","v":""},{"$f":"T('2 REPAIR ESTIMATOR'!AY207)","v":""},null,0,0,0,0]
[{"$nulls":9},{"$f":"T('2 REPAIR ESTIMATOR'!D208:O208)","v":""},{"$f":"'2 REPAIR ESTIMATOR'!P208","v":0},{"$f":"'2 REPAIR ESTIMATOR'!S208","v":0},{"$f":"'2 REPAIR ESTIMATOR'!X208","v":{"v":0,"d":"$0.00"}},{"$f":"'2 REPAIR ESTIMATOR'!AG208","v":0},{"$f":"T('2 REPAIR ESTIMATOR'!AX208)","v":""},{"$f":"T('2 REPAIR ESTIMATOR'!AY208)","v":""},null,0,0,0,0]
[{"$nulls":9},{"$f":"T('2 REPAIR ESTIMATOR'!D209:O209)","v":""},{"$f":"'2 REPAIR ESTIMATOR'!P209","v":0},{"$f":"'2 REPAIR ESTIMATOR'!S209","v":0},{"$f":"'2 REPAIR ESTIMATOR'!X209","v":{"v":0,"d":"$0.00"}},{"$f":"'2 REPAIR ESTIMATOR'!AG209","v":0},{"$f":"T('2 REPAIR ESTIMATOR'!AX209)","v":""},{"$f":"T('2 REPAIR ESTIMATOR'!AY209)","v":""},null,0,0,0,0]
[{"$nulls":9},{"$f":"T('2 REPAIR ESTIMATOR'!D210:O210)","v":""},{"$f":"'2 REPAIR ESTIMATOR'!P210","v":0},{"$f":"'2 REPAIR ESTIMATOR'!S210","v":0},{"$f":"'2 REPAIR ESTIMATOR'!X210","v":{"v":0,"d":"$0.00"}},{"$f":"'2 REPAIR ESTIMATOR'!AG210","v":0},{"$f":"T('2 REPAIR ESTIMATOR'!AX210)","v":""},{"$f":"T('2 REPAIR ESTIMATOR'!AY210)","v":""},null,0,0,0,0]
[{"$nulls":9},{"$f":"T('2 REPAIR ESTIMATOR'!D211:O211)","v":""},{"$f":"'2 REPAIR ESTIMATOR'!P211","v":0},{"$f":"'2 REPAIR ESTIMATOR'!S211","v":0},{"$f":"'2 REPAIR ESTIMATOR'!X211","v":{"v":0,"d":"$0.00"}},{"$f":"'2 REPAIR ESTIMATOR'!AG211","v":0},{"$f":"T('2 REPAIR ESTIMATOR'!AX211)","v":""},{"$f":"T('2 REPAIR ESTIMATOR'!AY211)","v":""},null,0,0,0,0]
[{"$nulls":9},{"$f":"T('2 REPAIR ESTIMATOR'!D212:O212)","v":""},{"$f":"'2 REPAIR ESTIMATOR'!P212","v":0},{"$f":"'2 REPAIR ESTIMATOR'!S212","v":0},{"$f":"'2 REPAIR ESTIMATOR'!X212","v":{"v":0,"d":"$0.00"}},{"$f":"'2 REPAIR ESTIMATOR'!AG212","v":0},{"$f":"T('2 REPAIR ESTIMATOR'!AX212)","v":""},{"$f":"T('2 REPAIR ESTIMATOR'!AY212)","v":""},null,0,0,0,0]
[{"$nulls":9},{"$f":"T('2 REPAIR ESTIMATOR'!D213:O213)","v":""},{"$f":"'2 REPAIR ESTIMATOR'!P213","v":0},{"$f":"'2 REPAIR ESTIMATOR'!S213","v":0},{"$f":"'2 REPAIR ESTIMATOR'!X213","v":{"v":0,"d":"$0.00"}},{"$f":"'2 REPAIR ESTIMATOR'!AG213","v":0},{"$f":"T('2 REPAIR ESTIMATOR'!AX213)","v":""},{"$f":"T('2 REPAIR ESTIMATOR'!AY213)","v":""},null,0,0,0,0]
[{"$nulls":9},{"$f":"T('2 REPAIR ESTIMATOR'!D214:O214)","v":""},{"$f":"'2 REPAIR ESTIMATOR'!P214","v":0},{"$f":"'2 REPAIR ESTIMATOR'!S214","v":0},{"$f":"'2 REPAIR ESTIMATOR'!X214","v":{"v":0,"d":"$0.00"}},{"$f":"'2 REPAIR ESTIMATOR'!AG214","v":0},{"$f":"T('2 REPAIR ESTIMATOR'!AX214)","v":""},{"$f":"T('2 REPAIR ESTIMATOR'!AY214)","v":""},null,0,0,0,0]
[{"$nulls":9},{"$f":"T('2 REPAIR ESTIMATOR'!D215:O215)","v":""},{"$f":"'2 REPAIR ESTIMATOR'!P215","v":0},{"$f":"'2 REPAIR ESTIMATOR'!S215","v":0},{"$f":"'2 REPAIR ESTIMATOR'!X215","v":{"v":0,"d":"$0.00"}},{"$f":"'2 REPAIR ESTIMATOR'!AG215","v":0},{"$f":"T('2 REPAIR ESTIMATOR'!AX215)","v":""},{"$f":"T('2 REPAIR ESTIMATOR'!AY215)","v":""},null,0,0,0,0]
[{"$nulls":9},{"$f":"T('2 REPAIR ESTIMATOR'!D216:O216)","v":""},{"$f":"'2 REPAIR ESTIMATOR'!P216","v":0},{"$f":"'2 REPAIR ESTIMATOR'!S216","v":0},{"$f":"'2 REPAIR ESTIMATOR'!X216","v":{"v":0,"d":"$0.00"}},{"$f":"'2 REPAIR ESTIMATOR'!AG216","v":0},{"$f":"T('2 REPAIR ESTIMATOR'!AX216)","v":""},{"$f":"T('2 REPAIR ESTIMATOR'!AY216)","v":""},null,0,0,0,0]
[{"$nulls":9},{"$f":"T('2 REPAIR ESTIMATOR'!D217:O217)","v":""},{"$f":"'2 REPAIR ESTIMATOR'!P217","v":0},{"$f":"'2 REPAIR ESTIMATOR'!S217","v":0},{"$f":"'2 REPAIR ESTIMATOR'!X217","v":{"v":0,"d":"$0.00"}},{"$f":"'2 REPAIR ESTIMATOR'!AG217","v":0},{"$f":"T('2 REPAIR ESTIMATOR'!AX217)","v":""},{"$f":"T('2 REPAIR ESTIMATOR'!AY217)","v":""},null,0,0,0,0]
[{"$nulls":12},{"$f":"CONCATENATE(J134,\" \",\"TOTAL\")","v":"STRUCTURAL CONCRETE TOTAL"},{"$f":"SUBTOTAL(9,N135:N174)","v":0},{"$nulls":3},{"$f":"SUM(R135:R174)","v":0},{"$f":"SUM(S135:S174)","v":0},{"$f":"SUM(T135:T174)","v":0},{"$f":"SUM(U135:U174)","v":0}]
[{"$nulls":9},{"$f":"T(#REF!)","v":{"$error":"#REF!"}},{"$f":"#REF!","v":{"$error":"#REF!"}},{"$f":"#REF!","v":{"$error":"#REF!"}},{"$f":"#REF!","v":{"$error":"#REF!"}},{"$f":"#REF!","v":{"$error":"#REF!"}},{"$nulls":3},{"$f":"R175","v":0},{"$f":"S175","v":0},{"$f":"T175","v":0},{"$f":"U175","v":0}]
[{"$nulls":9},{"$f":"CONCATENATE(\"MISCELLANEOUS \",J134,\" MATERIAL ITEMS\")","v":"MISCELLANEOUS STRUCTURAL CONCRETE MATERIAL ITEMS"},{"$nulls":4},"Store","SKU #",null,{"$f":"SUM(R178:R187)*R134","v":{"$error":"#REF!"}},{"$f":"SUM(S178:S187)","v":0},{"$f":"SUM(T178:T187)","v":0},{"$f":"SUM(U178:U187)","v":{"$error":"#REF!"}}]
[{"$nulls":9},"1. Concrete mix",{"$nulls":7},{"$f":"IF(OR(G178=\"x\",J178>0),1,0)*R134","v":{"$error":"#REF!"}},{"$f":"IF(G178=\"x\",1,0)","v":0},{"$f":"IF(H178=\"x\",1,0)","v":0},{"$f":"IF(AND(R178=1,T178<>1),1,0)","v":{"$error":"#REF!"}}]
[{"$nulls":9},"2. Gravel base",{"$nulls":7},{"$f":"IF(OR(G179=\"x\",J179>0),1,0)*R134","v":{"$error":"#REF!"}},0,0,{"$error":"#REF!"}]
[{"$nulls":9},"3. Reinforcing materials (re-bar, mesh)",{"$nulls":7},{"$f":"IF(OR(G180=\"x\",J180>0),1,0)*R134","v":{"$error":"#REF!"}},0,0,{"$error":"#REF!"}]
[{"$nulls":9},"4. Lumber/stakes for formwork",{"$nulls":7},{"$f":"IF(OR(G181=\"x\",J181>0),1,0)*R134","v":{"$error":"#REF!"}},0,0,{"$error":"#REF!"}]
[{"$nulls":9},"5. Foundation waterproofing",{"$nulls":7},{"$f":"IF(OR(G182=\"x\",J182>0),1,0)*R134","v":{"$error":"#REF!"}},0,0,{"$error":"#REF!"}]
[{"$nulls":9},"6. Corrugated drainage pipe",{"$nulls":7},{"$f":"IF(OR(G183=\"x\",J183>0),1,0)*R134","v":{"$error":"#REF!"}},0,0,{"$error":"#REF!"}]
[{"$nulls":9},"7. Sump pump?",{"$nulls":7},{"$f":"IF(OR(G184=\"x\",J184>0),1,0)*R134","v":{"$error":"#REF!"}},0,0,{"$error":"#REF!"}]
[{"$nulls":9},"8. Lumber/stakes for formwork",{"$nulls":7},{"$f":"IF(OR(G185=\"x\",J185>0),1,0)*R134","v":{"$error":"#REF!"}},0,0,{"$error":"#REF!"}]
[{"$nulls":9},"9. Nails/Screws/Fasteners",{"$nulls":7},{"$f":"IF(OR(G186=\"x\",J186>0),1,0)*R134","v":{"$error":"#REF!"}},0,0,{"$error":"#REF!"}]
[{"$nulls":17},{"$f":"IF(OR(G187=\"x\",J187>0),1,0)*R134","v":{"$error":"#REF!"}},0,0,{"$error":"#REF!"}]
[{"$nulls":9},{"$f":"T(#REF!)","v":{"$error":"#REF!"}},{"$f":"#REF!","v":{"$error":"#REF!"}},{"$f":"#REF!","v":{"$error":"#REF!"}},{"$f":"#REF!","v":{"$error":"#REF!"}},{"$f":"#REF!","v":{"$error":"#REF!"}},{"$nulls":3},{"$f":"R177*R134","v":{"$error":"#REF!"}},{"$f":"S177","v":0},{"$f":"T177","v":0},{"$f":"U177","v":{"$error":"#REF!"}}]
[{"$nulls":9},{"$f":"T('2 REPAIR ESTIMATOR'!D222:O222)","v":"CONCRETE & FLATWORK"},{"$f":"#REF!","v":{"$error":"#REF!"}},{"$f":"#REF!","v":{"$error":"#REF!"}},{"$f":"#REF!","v":{"$error":"#REF!"}},{"$f":"#REF!","v":{"$error":"#REF!"}},{"$nulls":3},{"$f":"IF(SUM(R190:R243)>0,1,0)","v":{"$error":"#REF!"}},{"$f":"SUM(S190:S243)","v":0},{"$f":"SUM(T190:T243)","v":0},{"$f":"SUM(U190:U243)","v":{"$error":"#REF!"}}]
[{"$nulls":9},{"$f":"T('2 REPAIR ESTIMATOR'!D223:O223)","v":"Concrete"},{"$f":"'2 REPAIR ESTIMATOR'!P223","v":0},{"$f":"'2 REPAIR ESTIMATOR'!S223","v":0},{"$f":"'2 REPAIR ESTIMATOR'!X223","v":{"v":0,"d":"$0.00"}},{"$f":"'2 REPAIR ESTIMATOR'!AG223","v":0},{"$f":"T('2 REPAIR ESTIMATOR'!AX223)","v":""},{"$f":"T('2 REPAIR ESTIMATOR'!AY223)","v":""},null,{"$f":"IF(OR(G190=\"x\",N190>0),1,0)","v":0},{"$f":"IF(G190=\"x\",1,0)","v":0},{"$f":"IF(H190=\"x\",1,0)","v":0},{"$f":"IF(AND(R190=1,T190<>1),1,0)","v":0}]
[{"$nulls":9},{"$f":"T('2 REPAIR ESTIMATOR'!D224:O224)","v":"Concrete bid/allowance"},{"$f":"'2 REPAIR ESTIMATOR'!P224","v":0},{"$f":"'2 REPAIR ESTIMATOR'!S224","v":"ls"},{"$f":"'2 REPAIR ESTIMATOR'!X224","v":{"v":0,"d":"$0.00"}},{"$f":"'2 REPAIR ESTIMATOR'!AG224","v":0},{"$f":"T('2 REPAIR ESTIMATOR'!AX224)","v":""},{"$f":"T('2 REPAIR ESTIMATOR'!AY224)","v":""},null,{"$f":"IF(OR(G191=\"x\",N191>0),1,0)","v":0},{"$f":"IF(G191=\"x\",1,0)","v":0},{"$f":"IF(H191=\"x\",1,0)","v":0},{"$f":"IF(AND(R191=1,T191<>1),1,0)","v":0}]
[{"$nulls":9},{"$f":"T('2 REPAIR ESTIMATOR'!D225:O225)","v":"Concrete flatwork demo"},{"$f":"'2 REPAIR ESTIMATOR'!P225","v":0},{"$f":"'2 REPAIR ESTIMATOR'!S225","v":"sf"},{"$f":"'2 REPAIR ESTIMATOR'!X225","v":{"v":0,"d":"$0.00"}},{"$f":"'2 REPAIR ESTIMATOR'!AG225","v":0},{"$f":"T('2 REPAIR ESTIMATOR'!AX225)","v":""},{"$f":"T('2 REPAIR ESTIMATOR'!AY225)","v":""},null,0,0,0,0]
[{"$nulls":9},{"$f":"T('2 REPAIR ESTIMATOR'!D226:O226)","v":"Concrete driveway/patio, 6\" thick"},{"$f":"'2 REPAIR ESTIMATOR'!P226","v":0},{"$f":"'2 REPAIR ESTIMATOR'!S226","v":"sf"},{"$f":"'2 REPAIR ESTIMATOR'!X226","v":{"v":2,"d":"$2.00"}},{"$f":"'2 REPAIR ESTIMATOR'!AG226","v":0},{"$f":"T('2 REPAIR ESTIMATOR'!AX226)","v":""},{"$f":"T('2 REPAIR ESTIMATOR'!AY226)","v":""},null,0,0,0,0]
[{"$nulls":9},{"$f":"T('2 REPAIR ESTIMATOR'!D227:O227)","v":"Concrete sidewalk, 4\" thick"},{"$f":"'2 REPAIR ESTIMATOR'!P227","v":0},{"$f":"'2 REPAIR ESTIMATOR'!S227","v":"sf"},{"$f":"'2 REPAIR ESTIMATOR'!X227","v":{"v":1.75,"d":"$1.75"}},{"$f":"'2 REPAIR ESTIMATOR'!AG227","v":0},{"$f":"T('2 REPAIR ESTIMATOR'!AX227)","v":""},{"$f":"T('2 REPAIR ESTIMATOR'!AY227)","v":""},null,0,0,0,0]
[{"$nulls":9},{"$f":"T('2 REPAIR ESTIMATOR'!D228:O228)","v":"Add for 4\" base rock below concrete pavement"},{"$f":"'2 REPAIR ESTIMATOR'!P228","v":0},{"$f":"'2 REPAIR ESTIMATOR'!S228","v":"sf"},{"$f":"'2 REPAIR ESTIMATOR'!X228","v":{"v":0.75,"d":"$0.75"}},{"$f":"'2 REPAIR ESTIMATOR'!AG228","v":0},{"$f":"T('2 REPAIR ESTIMATOR'!AX228)","v":""},{"$f":"T('2 REPAIR ESTIMATOR'!AY228)","v":""},null,0,0,0,0]
[{"$nulls":9},{"$f":"T('2 REPAIR ESTIMATOR'!D229:O229)","v":""},{"$f":"'2 REPAIR ESTIMATOR'!P229","v":0},{"$f":"'2 REPAIR ESTIMATOR'!S229","v":0},{"$f":"'2 REPAIR ESTIMATOR'!X229","v":{"v":0,"d":"$0.00"}},{"$f":"'2 REPAIR ESTIMATOR'!AG229","v":0},{"$f":"T('2 REPAIR ESTIMATOR'!AX229)","v":""},{"$f":"T('2 REPAIR ESTIMATOR'!AY229)","v":""},null,0,0,0,0]
[{"$nulls":9},{"$f":"T('2 REPAIR ESTIMATOR'!D230:O230)","v":"Asphalt"},{"$f":"'2 REPAIR ESTIMATOR'!P230","v":0},{"$f":"'2 REPAIR ESTIMATOR'!S230","v":0},{"$f":"'2 REPAIR ESTIMATOR'!X230","v":{"v":0,"d":"$0.00"}},{"$f":"'2 REPAIR ESTIMATOR'!AG230","v":0},{"$f":"T('2 REPAIR ESTIMATOR'!AX230)","v":""},{"$f":"T('2 REPAIR ESTIMATOR'!AY230)","v":""},null,0,0,0,0]
[{"$nulls":9},{"$f":"T('2 REPAIR ESTIMATOR'!D231:O231)","v":"Asphalt bid/allowance"},{"$f":"'2 REPAIR ESTIMATOR'!P231","v":0},{"$f":"'2 REPAIR ESTIMATOR'!S231","v":"ls"},{"$f":"'2 REPAIR ESTIMATOR'!X231","v":{"v":0,"d":"$0.00"}},{"$f":"'2 REPAIR ESTIMATOR'!AG231","v":0},{"$f":"T('2 REPAIR ESTIMATOR'!AX231)","v":""},{"$f":"T('2 REPAIR ESTIMATOR'!AY231)","v":""},null,0,0,0,0]
[{"$nulls":9},{"$f":"T('2 REPAIR ESTIMATOR'!D232:O232)","v":"Asphalt pavement, 5\" thick"},{"$f":"'2 REPAIR ESTIMATOR'!P232","v":0},{"$f":"'2 REPAIR ESTIMATOR'!S232","v":"sy"},{"$f":"'2 REPAIR ESTIMATOR'!X232","v":{"v":0,"d":"$0.00"}},{"$f":"'2 REPAIR ESTIMATOR'!AG232","v":0},{"$f":"T('2 REPAIR ESTIMATOR'!AX232)","v":""},{"$f":"T('2 REPAIR ESTIMATOR'!AY232)","v":""},null,0,0,0,0]
[{"$nulls":9},{"$f":"T('2 REPAIR ESTIMATOR'!D233:O233)","v":"Asphalt pavement, 7\" thick"},{"$f":"'2 REPAIR ESTIMATOR'!P233","v":0},{"$f":"'2 REPAIR ESTIMATOR'!S233","v":"sy"},{"$f":"'2 REPAIR ESTIMATOR'!X233","v":{"v":0,"d":"$0.00"}},{"$f":"'2 REPAIR ESTIMATOR'!AG233","v":0},{"$f":"T('2 REPAIR ESTIMATOR'!AX233)","v":""},{"$f":"T('2 REPAIR ESTIMATOR'!AY233)","v":""},null,0,0,0,0]
[{"$nulls":9},{"$f":"T('2 REPAIR ESTIMATOR'!D234:O234)","v":"Asphalt pavement, wearing course, 1\" thick only"},{"$f":"'2 REPAIR ESTIMATOR'!P234","v":0},{"$f":"'2 REPAIR ESTIMATOR'!S234","v":"sy"},{"$f":"'2 REPAIR ESTIMATOR'!X234","v":{"v":0,"d":"$0.00"}},{"$f":"'2 REPAIR ESTIMATOR'!AG234","v":0},{"$f":"T('2 REPAIR ESTIMATOR'!AX234)","v":""},{"$f":"T('2 REPAIR ESTIMATOR'!AY234)","v":""},null,0,0,0,0]
[{"$nulls":9},{"$f":"T('2 REPAIR ESTIMATOR'!D235:O235)","v":"Asphalt seal coat"},{"$f":"'2 REPAIR ESTIMATOR'!P235","v":0},{"$f":"'2 REPAIR ESTIMATOR'!S235","v":"sy"},{"$f":"'2 REPAIR ESTIMATOR'!X235","v":{"v":0,"d":"$0.00"}},{"$f":"'2 REPAIR ESTIMATOR'!AG235","v":0},{"$f":"T('2 REPAIR ESTIMATOR'!AX235)","v":""},{"$f":"T('2 REPAIR ESTIMATOR'!AY235)","v":""},null,0,0,0,0]
[{"$nulls":9},{"$f":"T('2 REPAIR ESTIMATOR'!D236:O236)","v":"Add for 4\" base rock below asphalt pavement"},{"$f":"'2 REPAIR ESTIMATOR'!P236","v":0},{"$f":"'2 REPAIR ESTIMATOR'!S236","v":"sy"},{"$f":"'2 REPAIR ESTIMATOR'!X236","v":{"v":0,"d":"$0.00"}},{"$f":"'2 REPAIR ESTIMATOR'!AG236","v":0},{"$f":"T('2 REPAIR ESTIMATOR'!AX236)","v":""},{"$f":"T('2 REPAIR ESTIMATOR'!AY236)","v":""},null,0,0,0,0]
[{"$nulls":9},{"$f":"T('2 REPAIR ESTIMATOR'!D237:O237)","v":""},{"$f":"'2 REPAIR ESTIMATOR'!P237","v":0},{"$f":"'2 REPAIR ESTIMATOR'!S237","v":0},{"$f":"'2 REPAIR ESTIMATOR'!X237","v":{"v":0,"d":"$0.00"}},{"$f":"'2 REPAIR ESTIMATOR'!AG237","v":0},{"$f":"T('2 REPAIR ESTIMATOR'!AX237)","v":""},{"$f":"T('2 REPAIR ESTIMATOR'!AY237)","v":""},null,0,0,0,0]
[{"$nulls":9},{"$f":"T('2 REPAIR ESTIMATOR'!D238:O238)","v":"Pavers"},{"$f":"'2 REPAIR ESTIMATOR'!P238","v":0},{"$f":"'2 REPAIR ESTIMATOR'!S238","v":0},{"$f":"'2 REPAIR ESTIMATOR'!X238","v":{"v":0,"d":"$0.00"}},{"$f":"'2 REPAIR ESTIMATOR'!AG238","v":0},{"$f":"T('2 REPAIR ESTIMATOR'!AX238)","v":""},{"$f":"T('2 REPAIR ESTIMATOR'!AY238)","v":""},null,0,0,0,0]
[{"$nulls":9},{"$f":"T('2 REPAIR ESTIMATOR'!D239:O239)","v":"Pavers bid/allowance"},{"$f":"'2 REPAIR ESTIMATOR'!P239","v":0},{"$f":"'2 REPAIR ESTIMATOR'!S239","v":"ls"},{"$f":"'2 REPAIR ESTIMATOR'!X239","v":{"v":0,"d":"$0.00"}},{"$f":"'2 REPAIR ESTIMATOR'!AG239","v":0},{"$f":"T('2 REPAIR ESTIMATOR'!AX239)","v":""},{"$f":"T('2 REPAIR ESTIMATOR'!AY239)","v":""},null,0,0,0,0]
[{"$nulls":9},{"$f":"T('2 REPAIR ESTIMATOR'!D240:O240)","v":"Brick pavers, sand base"},{"$f":"'2 REPAIR ESTIMATOR'!P240","v":0},{"$f":"'2 REPAIR ESTIMATOR'!S240","v":"sf"},{"$f":"'2 REPAIR ESTIMATOR'!X240","v":{"v":3.5,"d":"$3.50"}},{"$f":"'2 REPAIR ESTIMATOR'!AG240","v":0},{"$f":"T('2 REPAIR ESTIMATOR'!AX240)","v":""},{"$f":"T('2 REPAIR ESTIMATOR'!AY240)","v":""},null,0,0,0,0]
[{"$nulls":9},{"$f":"T('2 REPAIR ESTIMATOR'!D241:O241)","v":"Brick pavers, mortar base"},{"$f":"'2 REPAIR ESTIMATOR'!P241","v":0},{"$f":"'2 REPAIR ESTIMATOR'!S241","v":"sf"},{"$f":"'2 REPAIR ESTIMATOR'!X241","v":{"v":6,"d":"$6.00"}},{"$f":"'2 REPAIR ESTIMATOR'!AG241","v":0},{"$f":"T('2 REPAIR ESTIMATOR'!AX241)","v":""},{"$f":"T('2 REPAIR ESTIMATOR'!AY241)","v":""},null,0,0,0,0]
[{"$nulls":9},{"$f":"T('2 REPAIR ESTIMATOR'!D242:O242)","v":""},{"$f":"'2 REPAIR ESTIMATOR'!P242","v":0},{"$f":"'2 REPAIR ESTIMATOR'!S242","v":0},{"$f":"'2 REPAIR ESTIMATOR'!X242","v":{"v":0,"d":"$0.00"}},{"$f":"'2 REPAIR ESTIMATOR'!AG242","v":0},{"$f":"T('2 REPAIR ESTIMATOR'!AX242)","v":""},{"$f":"T('2 REPAIR ESTIMATOR'!AY242)","v":""},null,0,0,0,0]
[{"$nulls":9},{"$f":"T('2 REPAIR ESTIMATOR'!D243:O243)","v":""},{"$f":"'2 REPAIR ESTIMATOR'!P243","v":0},{"$f":"'2 REPAIR ESTIMATOR'!S243","v":0},{"$f":"'2 REPAIR ESTIMATOR'!X243","v":{"v":0,"d":"$0.00"}},{"$f":"'2 REPAIR ESTIMATOR'!AG243","v":0},{"$f":"T('2 REPAIR ESTIMATOR'!AX243)","v":""},{"$f":"T('2 REPAIR ESTIMATOR'!AY243)","v":""},null,0,0,0,0]
[{"$nulls":9},{"$f":"T('2 REPAIR ESTIMATOR'!D244:O244)","v":""},{"$f":"'2 REPAIR ESTIMATOR'!P244","v":0},{"$f":"'2 REPAIR ESTIMATOR'!S244","v":0},{"$f":"'2 REPAIR ESTIMATOR'!X244","v":{"v":0,"d":"$0.00"}},{"$f":"'2 REPAIR ESTIMATOR'!AG244","v":0},{"$f":"T('2 REPAIR ESTIMATOR'!AX244)","v":""},{"$f":"T('2 REPAIR ESTIMATOR'!AY244)","v":""},null,0,0,0,0]
[{"$nulls":9},{"$f":"T('2 REPAIR ESTIMATOR'!D245:O245)","v":""},{"$f":"'2 REPAIR ESTIMATOR'!P245","v":0},{"$f":"'2 REPAIR ESTIMATOR'!S245","v":0},{"$f":"'2 REPAIR ESTIMATOR'!X245","v":{"v":0,"d":"$0.00"}},{"$f":"'2 REPAIR ESTIMATOR'!AG245","v":0},{"$f":"T('2 REPAIR ESTIMATOR'!AX245)","v":""},{"$f":"T('2 REPAIR ESTIMATOR'!AY245)","v":""},null,0,0,0,0]
[{"$nulls":9},{"$f":"T('2 REPAIR ESTIMATOR'!D246:O246)","v":""},{"$f":"'2 REPAIR ESTIMATOR'!P246","v":0},{"$f":"'2 REPAIR ESTIMATOR'!S246","v":0},{"$f":"'2 REPAIR ESTIMATOR'!X246","v":{"v":0,"d":"$0.00"}},{"$f":"'2 REPAIR ESTIMATOR'!AG246","v":0},{"$f":"T('2 REPAIR ESTIMATOR'!AX246)","v":""},{"$f":"T('2 REPAIR ESTIMATOR'!AY246)","v":""},null,0,0,0,0]
[{"$nulls":9},{"$f":"T('2 REPAIR ESTIMATOR'!D247:O247)","v":""},{"$f":"'2 REPAIR ESTIMATOR'!P247","v":0},{"$f":"'2 REPAIR ESTIMATOR'!S247","v":0},{"$f":"'2 REPAIR ESTIMATOR'!X247","v":{"v":0,"d":"$0.00"}},{"$f":"'2 REPAIR ESTIMATOR'!AG247","v":0},{"$f":"T('2 REPAIR ESTIMATOR'!AX247)","v":""},{"$f":"T('2 REPAIR ESTIMATOR'!AY247)","v":""},null,0,0,0,0]
[{"$nulls":9},{"$f":"T('2 REPAIR ESTIMATOR'!D248:O248)","v":""},{"$f":"'2 REPAIR ESTIMATOR'!P248","v":0},{"$f":"'2 REPAIR ESTIMATOR'!S248","v":0},{"$f":"'2 REPAIR ESTIMATOR'!X248","v":{"v":0,"d":"$0.00"}},{"$f":"'2 REPAIR ESTIMATOR'!AG248","v":0},{"$f":"T('2 REPAIR ESTIMATOR'!AX248)","v":""},{"$f":"T('2 REPAIR ESTIMATOR'!AY248)","v":""},null,0,0,0,0]
[{"$nulls":9},{"$f":"T('2 REPAIR ESTIMATOR'!D249:O249)","v":""},{"$f":"'2 REPAIR ESTIMATOR'!P249","v":0},{"$f":"'2 REPAIR ESTIMATOR'!S249","v":0},{"$f":"'2 REPAIR ESTIMATOR'!X249","v":{"v":0,"d":"$0.00"}},{"$f":"'2 REPAIR ESTIMATOR'!AG249","v":0},{"$f":"T('2 REPAIR ESTIMATOR'!AX249)","v":""},{"$f":"T('2 REPAIR ESTIMATOR'!AY249)","v":""},null,0,0,0,0]
[{"$nulls":9},{"$f":"T('2 REPAIR ESTIMATOR'!D250:O250)","v":""},{"$f":"'2 REPAIR ESTIMATOR'!P250","v":0},{"$f":"'2 REPAIR ESTIMATOR'!S250","v":0},{"$f":"'2 REPAIR ESTIMATOR'!X250","v":{"v":0,"d":"$0.00"}},{"$f":"'2 REPAIR ESTIMATOR'!AG250","v":0},{"$f":"T('2 REPAIR ESTIMATOR'!AX250)","v":""},{"$f":"T('2 REPAIR ESTIMATOR'!AY250)","v":""},null,0,0,0,0]
[{"$nulls":9},{"$f":"T('2 REPAIR ESTIMATOR'!D251:O251)","v":""},{"$f":"'2 REPAIR ESTIMATOR'!P251","v":0},{"$f":"'2 REPAIR ESTIMATOR'!S251","v":0},{"$f":"'2 REPAIR ESTIMATOR'!X251","v":{"v":0,"d":"$0.00"}},{"$f":"'2 REPAIR ESTIMATOR'!AG251","v":0},{"$f":"T('2 REPAIR ESTIMATOR'!AX251)","v":""},{"$f":"T('2 REPAIR ESTIMATOR'!AY251)","v":""},null,0,0,0,0]
[{"$nulls":9},{"$f":"T('2 REPAIR ESTIMATOR'!D252:O252)","v":""},{"$f":"'2 REPAIR ESTIMATOR'!P252","v":0},{"$f":"'2 REPAIR ESTIMATOR'!S252","v":0},{"$f":"'2 REPAIR ESTIMATOR'!X252","v":{"v":0,"d":"$0.00"}},{"$f":"'2 REPAIR ESTIMATOR'!AG252","v":0},{"$f":"T('2 REPAIR ESTIMATOR'!AX252)","v":""},{"$f":"T('2 REPAIR ESTIMATOR'!AY252)","v":""},null,0,0,0,0]
[{"$nulls":9},{"$f":"T('2 REPAIR ESTIMATOR'!D253:O253)","v":""},{"$f":"'2 REPAIR ESTIMATOR'!P253","v":0},{"$f":"'2 REPAIR ESTIMATOR'!S253","v":0},{"$f":"'2 REPAIR ESTIMATOR'!X253","v":{"v":0,"d":"$0.00"}},{"$f":"'2 REPAIR ESTIMATOR'!AG253","v":0},{"$f":"T('2 REPAIR ESTIMATOR'!AX253)","v":""},{"$f":"T('2 REPAIR ESTIMATOR'!AY253)","v":""},null,0,0,0,0]
[{"$nulls":9},{"$f":"T('2 REPAIR ESTIMATOR'!D254:O254)","v":""},{"$f":"'2 REPAIR ESTIMATOR'!P254","v":0},{"$f":"'2 REPAIR ESTIMATOR'!S254","v":0},{"$f":"'2 REPAIR ESTIMATOR'!X254","v":{"v":0,"d":"$0.00"}},{"$f":"'2 REPAIR ESTIMATOR'!AG254","v":0},{"$f":"T('2 REPAIR ESTIMATOR'!AX254)","v":""},{"$f":"T('2 REPAIR ESTIMATOR'!AY254)","v":""},null,0,0,0,0]
[{"$nulls":9},{"$f":"T('2 REPAIR ESTIMATOR'!D255:O255)","v":""},{"$f":"'2 REPAIR ESTIMATOR'!P255","v":0},{"$f":"'2 REPAIR ESTIMATOR'!S255","v":0},{"$f":"'2 REPAIR ESTIMATOR'!X255","v":{"v":0,"d":"$0.00"}},{"$f":"'2 REPAIR ESTIMATOR'!AG255","v":0},{"$f":"T('2 REPAIR ESTIMATOR'!AX255)","v":""},{"$f":"T('2 REPAIR ESTIMATOR'!AY255)","v":""},null,0,0,0,0]
[{"$nulls":9},{"$f":"T('2 REPAIR ESTIMATOR'!D256:O256)","v":""},{"$f":"'2 REPAIR ESTIMATOR'!P256","v":0},{"$f":"'2 REPAIR ESTIMATOR'!S256","v":0},{"$f":"'2 REPAIR ESTIMATOR'!X256","v":{"v":0,"d":"$0.00"}},{"$f":"'2 REPAIR ESTIMATOR'!AG256","v":0},{"$f":"T('2 REPAIR ESTIMATOR'!AX256)","v":""},{"$f":"T('2 REPAIR ESTIMATOR'!AY256)","v":""},null,0,0,0,0]
[{"$nulls":9},{"$f":"T('2 REPAIR ESTIMATOR'!D257:O257)","v":""},{"$f":"'2 REPAIR ESTIMATOR'!P257","v":0},{"$f":"'2 REPAIR ESTIMATOR'!S257","v":0},{"$f":"'2 REPAIR ESTIMATOR'!X257","v":{"v":0,"d":"$0.00"}},{"$f":"'2 REPAIR ESTIMATOR'!AG257","v":0},{"$f":"T('2 REPAIR ESTIMATOR'!AX257)","v":""},{"$f":"T('2 REPAIR ESTIMATOR'!AY257)","v":""},null,0,0,0,0]
[{"$nulls":9},{"$f":"T('2 REPAIR ESTIMATOR'!D258:O258)","v":""},{"$f":"'2 REPAIR ESTIMATOR'!P258","v":0},{"$f":"'2 REPAIR ESTIMATOR'!S258","v":0},{"$f":"'2 REPAIR ESTIMATOR'!X258","v":{"v":0,"d":"$0.00"}},{"$f":"'2 REPAIR ESTIMATOR'!AG258","v":0},{"$f":"T('2 REPAIR ESTIMATOR'!AX258)","v":""},{"$f":"T('2 REPAIR ESTIMATOR'!AY258)","v":""},null,0,0,0,0]
[{"$nulls":9},{"$f":"T('2 REPAIR ESTIMATOR'!D259:O259)","v":""},{"$f":"'2 REPAIR ESTIMATOR'!P259","v":0},{"$f":"'2 REPAIR ESTIMATOR'!S259","v":0},{"$f":"'2 REPAIR ESTIMATOR'!X259","v":{"v":0,"d":"$0.00"}},{"$f":"'2 REPAIR ESTIMATOR'!AG259","v":0},{"$f":"T('2 REPAIR ESTIMATOR'!AX259)","v":""},{"$f":"T('2 REPAIR ESTIMATOR'!AY259)","v":""},null,0,0,0,0]
[{"$nulls":9},{"$f":"T('2 REPAIR ESTIMATOR'!D260:O260)","v":""},{"$f":"'2 REPAIR ESTIMATOR'!P260","v":0},{"$f":"'2 REPAIR ESTIMATOR'!S260","v":0},{"$f":"'2 REPAIR ESTIMATOR'!X260","v":{"v":0,"d":"$0.00"}},{"$f":"'2 REPAIR ESTIMATOR'!AG260","v":0},{"$f":"T('2 REPAIR ESTIMATOR'!AX260)","v":""},{"$f":"T('2 REPAIR ESTIMATOR'!AY260)","v":""},null,0,0,0,0]
[{"$nulls":9},{"$f":"T('2 REPAIR ESTIMATOR'!D261:O261)","v":""},{"$f":"'2 REPAIR ESTIMATOR'!P261","v":0},{"$f":"'2 REPAIR ESTIMATOR'!S261","v":0},{"$f":"'2 REPAIR ESTIMATOR'!X261","v":{"v":0,"d":"$0.00"}},{"$f":"'2 REPAIR ESTIMATOR'!AG261","v":0},{"$f":"T('2 REPAIR ESTIMATOR'!AX261)","v":""},{"$f":"T('2 REPAIR ESTIMATOR'!AY261)","v":""},null,0,0,0,0]
[{"$nulls":9},{"$f":"T('2 REPAIR ESTIMATOR'!D262:O262)","v":""},{"$f":"'2 REPAIR ESTIMATOR'!P262","v":0},{"$f":"'2 REPAIR ESTIMATOR'!S262","v":0},{"$f":"'2 REPAIR ESTIMATOR'!X262","v":{"v":0,"d":"$0.00"}},{"$f":"'2 REPAIR ESTIMATOR'!AG262","v":0},{"$f":"T('2 REPAIR ESTIMATOR'!AX262)","v":""},{"$f":"T('2 REPAIR ESTIMATOR'!AY262)","v":""},null,0,0,0,0]
[{"$nulls":12},{"$f":"CONCATENATE(J189,\" \",\"TOTAL\")","v":"CONCRETE & FLATWORK TOTAL"},{"$f":"SUBTOTAL(9,N190:N229)","v":0},{"$nulls":3},{"$f":"SUM(R190:R229)","v":0},{"$f":"SUM(S190:S229)","v":0},{"$f":"SUM(T190:T229)","v":0},{"$f":"SUM(U190:U229)","v":0}]
[{"$nulls":9},{"$f":"T(#REF!)","v":{"$error":"#REF!"}},{"$f":"#REF!","v":{"$error":"#REF!"}},{"$f":"#REF!","v":{"$error":"#REF!"}},{"$f":"#REF!","v":{"$error":"#REF!"}},{"$f":"#REF!","v":{"$error":"#REF!"}},{"$nulls":3},{"$f":"R230","v":0},{"$f":"S230","v":0},{"$f":"T230","v":0},{"$f":"U230","v":0}]
[{"$nulls":9},{"$f":"CONCATENATE(\"MISCELLANEOUS \",J189,\" MATERIAL ITEMS\")","v":"MISCELLANEOUS CONCRETE & FLATWORK MATERIAL ITEMS"},{"$nulls":4},"Store","SKU #",null,{"$f":"SUM(R233:R242)*R189","v":{"$error":"#REF!"}},{"$f":"SUM(S233:S242)","v":0},{"$f":"SUM(T233:T242)","v":0},{"$f":"SUM(U233:U242)","v":{"$error":"#REF!"}}]
[{"$nulls":9},"1. Concrete mix",{"$nulls":7},{"$f":"IF(OR(G233=\"x\",J233>0),1,0)*R189","v":{"$error":"#REF!"}},{"$f":"IF(G233=\"x\",1,0)","v":0},{"$f":"IF(H233=\"x\",1,0)","v":0},{"$f":"IF(AND(R233=1,T233<>1),1,0)","v":{"$error":"#REF!"}}]
[{"$nulls":9},"2. Gravel base",{"$nulls":7},{"$f":"IF(OR(G234=\"x\",J234>0),1,0)*R189","v":{"$error":"#REF!"}},0,0,{"$error":"#REF!"}]
[{"$nulls":9},"3. Reinforcing materials (re-bar, mesh)",{"$nulls":7},{"$f":"IF(OR(G235=\"x\",J235>0),1,0)*R189","v":{"$error":"#REF!"}},0,0,{"$error":"#REF!"}]
[{"$nulls":9},"4. Lumber/stakes for formwork",{"$nulls":7},{"$f":"IF(OR(G236=\"x\",J236>0),1,0)*R189","v":{"$error":"#REF!"}},0,0,{"$error":"#REF!"}]
[{"$nulls":9},"5. Nails/Screws/Fasteners",{"$nulls":7},{"$f":"IF(OR(G237=\"x\",J237>0),1,0)*R189","v":{"$error":"#REF!"}},0,0,{"$error":"#REF!"}]
[{"$nulls":17},{"$f":"IF(OR(G238=\"x\",J238>0),1,0)*R189","v":{"$error":"#REF!"}},0,0,{"$error":"#REF!"}]
[{"$nulls":17},{"$f":"IF(OR(G239=\"x\",J239>0),1,0)*R189","v":{"$error":"#REF!"}},0,0,{"$error":"#REF!"}]
[{"$nulls":17},{"$f":"IF(OR(G240=\"x\",J240>0),1,0)*R189","v":{"$error":"#REF!"}},0,0,{"$error":"#REF!"}]
[{"$nulls":17},{"$f":"IF(OR(G241=\"x\",J241>0),1,0)*R189","v":{"$error":"#REF!"}},0,0,{"$error":"#REF!"}]
[{"$nulls":17},{"$f":"IF(OR(G242=\"x\",J242>0),1,0)*R189","v":{"$error":"#REF!"}},0,0,{"$error":"#REF!"}]
[{"$nulls":9},{"$f":"T(#REF!)","v":{"$error":"#REF!"}},{"$f":"#REF!","v":{"$error":"#REF!"}},{"$f":"#REF!","v":{"$error":"#REF!"}},{"$f":"#REF!","v":{"$error":"#REF!"}},{"$f":"#REF!","v":{"$error":"#REF!"}},{"$nulls":3},{"$f":"R232*R189","v":{"$error":"#REF!"}},{"$f":"S232","v":0},{"$f":"T232","v":0},{"$f":"U232","v":{"$error":"#REF!"}}]
[{"$nulls":9},{"$f":"T('2 REPAIR ESTIMATOR'!D267:O267)","v":"MASONRY"},{"$f":"#REF!","v":{"$error":"#REF!"}},{"$f":"#REF!","v":{"$error":"#REF!"}},{"$f":"#REF!","v":{"$error":"#REF!"}},{"$f":"#REF!","v":{"$error":"#REF!"}},{"$nulls":3},{"$f":"IF(SUM(R245:R298)>0,1,0)","v":{"$error":"#REF!"}},{"$f":"SUM(S245:S298)","v":0},{"$f":"SUM(T245:T298)","v":0},{"$f":"SUM(U245:U298)","v":{"$error":"#REF!"}}]
[{"$nulls":9},{"$f":"T('2 REPAIR ESTIMATOR'!D268:O268)","v":"Masonry bid/allowance"},{"$f":"'2 REPAIR ESTIMATOR'!P268","v":0},{"$f":"'2 REPAIR ESTIMATOR'!S268","v":"ls"},{"$f":"'2 REPAIR ESTIMATOR'!X268","v":{"v":0,"d":"$0.00"}},{"$f":"'2 REPAIR ESTIMATOR'!AG268","v":0},{"$f":"T('2 REPAIR ESTIMATOR'!AX268)","v":""},{"$f":"T('2 REPAIR ESTIMATOR'!AY268)","v":""},null,{"$f":"IF(OR(G245=\"x\",N245>0),1,0)","v":0},{"$f":"IF(G245=\"x\",1,0)","v":0},{"$f":"IF(H245=\"x\",1,0)","v":0},{"$f":"IF(AND(R245=1,T245<>1),1,0)","v":0}]
[{"$nulls":9},{"$f":"T('2 REPAIR ESTIMATOR'!D269:O269)","v":"CMU, 4x8"},{"$f":"'2 REPAIR ESTIMATOR'!P269","v":0},{"$f":"'2 REPAIR ESTIMATOR'!S269","v":"sf"},{"$f":"'2 REPAIR ESTIMATOR'!X269","v":{"v":2.25,"d":"$2.25"}},{"$f":"'2 REPAIR ESTIMATOR'!AG269","v":0},{"$f":"T('2 REPAIR ESTIMATOR'!AX269)","v":""},{"$f":"T('2 REPAIR ESTIMATOR'!AY269)","v":""},null,{"$f":"IF(OR(G246=\"x\",N246>0),1,0)","v":0},{"$f":"IF(G246=\"x\",1,0)","v":0},{"$f":"IF(H246=\"x\",1,0)","v":0},{"$f":"IF(AND(R246=1,T246<>1),1,0)","v":0}]
[{"$nulls":9},{"$f":"T('2 REPAIR ESTIMATOR'!D270:O270)","v":"CMU, 8x8"},{"$f":"'2 REPAIR ESTIMATOR'!P270","v":0},{"$f":"'2 REPAIR ESTIMATOR'!S270","v":"sf"},{"$f":"'2 REPAIR ESTIMATOR'!X270","v":{"v":2.5,"d":"$2.50"}},{"$f":"'2 REPAIR ESTIMATOR'!AG270","v":0},{"$f":"T('2 REPAIR ESTIMATOR'!AX270)","v":""},{"$f":"T('2 REPAIR ESTIMATOR'!AY270)","v":""},null,0,0,0,0]
[{"$nulls":9},{"$f":"T('2 REPAIR ESTIMATOR'!D271:O271)","v":"Brick veneer"},{"$f":"'2 REPAIR ESTIMATOR'!P271","v":0},{"$f":"'2 REPAIR ESTIMATOR'!S271","v":"sf"},{"$f":"'2 REPAIR ESTIMATOR'!X271","v":{"v":8,"d":"$8.00"}},{"$f":"'2 REPAIR ESTIMATOR'!AG271","v":0},{"$f":"T('2 REPAIR ESTIMATOR'!AX271)","v":""},{"$f":"T('2 REPAIR ESTIMATOR'!AY271)","v":""},null,0,0,0,0]
[{"$nulls":9},{"$f":"T('2 REPAIR ESTIMATOR'!D272:O272)","v":"Natural stone"},{"$f":"'2 REPAIR ESTIMATOR'!P272","v":0},{"$f":"'2 REPAIR ESTIMATOR'!S272","v":"sf"},{"$f":"'2 REPAIR ESTIMATOR'!X272","v":{"v":13,"d":"$13.00"}},{"$f":"'2 REPAIR ESTIMATOR'!AG272","v":0},{"$f":"T('2 REPAIR ESTIMATOR'!AX272)","v":""},{"$f":"T('2 REPAIR ESTIMATOR'!AY272)","v":""},null,0,0,0,0]
[{"$nulls":9},{"$f":"T('2 REPAIR ESTIMATOR'!D273:O273)","v":"Masonry waterproofing"},{"$f":"'2 REPAIR ESTIMATOR'!P273","v":0},{"$f":"'2 REPAIR ESTIMATOR'!S273","v":"sf"},{"$f":"'2 REPAIR ESTIMATOR'!X273","v":{"v":0.5,"d":"$0.50"}},{"$f":"'2 REPAIR ESTIMATOR'!AG273","v":0},{"$f":"T('2 REPAIR ESTIMATOR'!AX273)","v":""},{"$f":"T('2 REPAIR ESTIMATOR'!AY273)","v":""},null,0,0,0,0]
[{"$nulls":9},{"$f":"T('2 REPAIR ESTIMATOR'!D274:O274)","v":"Tuck-point masonry"},{"$f":"'2 REPAIR ESTIMATOR'!P274","v":0},{"$f":"'2 REPAIR ESTIMATOR'!S274","v":"sf"},{"$f":"'2 REPAIR ESTIMATOR'!X274","v":{"v":0.5,"d":"$0.50"}},{"$f":"'2 REPAIR ESTIMATOR'!AG274","v":0},{"$f":"T('2 REPAIR ESTIMATOR'!AX274)","v":""},{"$f":"T('2 REPAIR ESTIMATOR'!AY274)","v":""},null,0,0,0,0]
[{"$nulls":9},{"$f":"T('2 REPAIR ESTIMATOR'!D275:O275)","v":"Power wash masonry"},{"$f":"'2 REPAIR ESTIMATOR'!P275","v":0},{"$f":"'2 REPAIR ESTIMATOR'!S275","v":"sf"},{"$f":"'2 REPAIR ESTIMATOR'!X275","v":{"v":0,"d":"$0.00"}},{"$f":"'2 REPAIR ESTIMATOR'!AG275","v":0},{"$f":"T('2 REPAIR ESTIMATOR'!AX275)","v":""},{"$f":"T('2 REPAIR ESTIMATOR'!AY275)","v":""},null,0,0,0,0]
[{"$nulls":9},{"$f":"T('2 REPAIR ESTIMATOR'!D276:O276)","v":"Chimney, brick "},{"$f":"'2 REPAIR ESTIMATOR'!P276","v":0},{"$f":"'2 REPAIR ESTIMATOR'!S276","v":"vlf"},{"$f":"'2 REPAIR ESTIMATOR'!X276","v":{"v":35,"d":"$35.00"}},{"$f":"'2 REPAIR ESTIMATOR'!AG276","v":0},{"$f":"T('2 REPAIR ESTIMATOR'!AX276)","v":""},{"$f":"T('2 REPAIR ESTIMATOR'!AY276)","v":""},null,0,0,0,0]
[{"$nulls":9},{"$f":"T('2 REPAIR ESTIMATOR'!D277:O277)","v":"Chimney, stone"},{"$f":"'2 REPAIR ESTIMATOR'!P277","v":0},{"$f":"'2 REPAIR ESTIMATOR'!S277","v":"vlf"},{"$f":"'2 REPAIR ESTIMATOR'!X277","v":{"v":75,"d":"$75.00"}},{"$f":"'2 REPAIR ESTIMATOR'!AG277","v":0},{"$f":"T('2 REPAIR ESTIMATOR'!AX277)","v":""},{"$f":"T('2 REPAIR ESTIMATOR'!AY277)","v":""},null,0,0,0,0]
[{"$nulls":9},{"$f":"T('2 REPAIR ESTIMATOR'!D278:O278)","v":"Add to above for chimney cap"},{"$f":"'2 REPAIR ESTIMATOR'!P278","v":0},{"$f":"'2 REPAIR ESTIMATOR'!S278","v":"ea"},{"$f":"'2 REPAIR ESTIMATOR'!X278","v":{"v":50,"d":"$50.00"}},{"$f":"'2 REPAIR ESTIMATOR'!AG278","v":0},{"$f":"T('2 REPAIR ESTIMATOR'!AX278)","v":""},{"$f":"T('2 REPAIR ESTIMATOR'!AY278)","v":""},null,0,0,0,0]
[{"$nulls":9},{"$f":"T('2 REPAIR ESTIMATOR'!D279:O279)","v":"Fireplace complete, brick, 3ft-4ft wide w/ chimney"},{"$f":"'2 REPAIR ESTIMATOR'!P279","v":0},{"$f":"'2 REPAIR ESTIMATOR'!S279","v":"ea"},{"$f":"'2 REPAIR ESTIMATOR'!X279","v":{"v":2000,"d":"$2,000.00"}},{"$f":"'2 REPAIR ESTIMATOR'!AG279","v":0},{"$f":"T('2 REPAIR ESTIMATOR'!AX279)","v":""},{"$f":"T('2 REPAIR ESTIMATOR'!AY279)","v":""},null,0,0,0,0]
[{"$nulls":9},{"$f":"T('2 REPAIR ESTIMATOR'!D280:O280)","v":""},{"$f":"'2 REPAIR ESTIMATOR'!P280","v":0},{"$f":"'2 REPAIR ESTIMATOR'!S280","v":0},{"$f":"'2 REPAIR ESTIMATOR'!X280","v":{"v":0,"d":"$0.00"}},{"$f":"'2 REPAIR ESTIMATOR'!AG280","v":0},{"$f":"T('2 REPAIR ESTIMATOR'!AX280)","v":""},{"$f":"T('2 REPAIR ESTIMATOR'!AY280)","v":""},null,0,0,0,0]
[{"$nulls":9},{"$f":"T('2 REPAIR ESTIMATOR'!D281:O281)","v":""},{"$f":"'2 REPAIR ESTIMATOR'!P281","v":0},{"$f":"'2 REPAIR ESTIMATOR'!S281","v":0},{"$f":"'2 REPAIR ESTIMATOR'!X281","v":{"v":0,"d":"$0.00"}},{"$f":"'2 REPAIR ESTIMATOR'!AG281","v":0},{"$f":"T('2 REPAIR ESTIMATOR'!AX281)","v":""},{"$f":"T('2 REPAIR ESTIMATOR'!AY281)","v":""},null,0,0,0,0]
[{"$nulls":9},{"$f":"T('2 REPAIR ESTIMATOR'!D282:O282)","v":""},{"$f":"'2 REPAIR ESTIMATOR'!P282","v":0},{"$f":"'2 REPAIR ESTIMATOR'!S282","v":0},{"$f":"'2 REPAIR ESTIMATOR'!X282","v":{"v":0,"d":"$0.00"}},{"$f":"'2 REPAIR ESTIMATOR'!AG282","v":0},{"$f":"T('2 REPAIR ESTIMATOR'!AX282)","v":""},{"$f":"T('2 REPAIR ESTIMATOR'!AY282)","v":""},null,0,0,0,0]
[{"$nulls":9},{"$f":"T('2 REPAIR ESTIMATOR'!D283:O283)","v":""},{"$f":"'2 REPAIR ESTIMATOR'!P283","v":0},{"$f":"'2 REPAIR ESTIMATOR'!S283","v":0},{"$f":"'2 REPAIR ESTIMATOR'!X283","v":{"v":0,"d":"$0.00"}},{"$f":"'2 REPAIR ESTIMATOR'!AG283","v":0},{"$f":"T('2 REPAIR ESTIMATOR'!AX283)","v":""},{"$f":"T('2 REPAIR ESTIMATOR'!AY283)","v":""},null,0,0,0,0]
[{"$nulls":9},{"$f":"T('2 REPAIR ESTIMATOR'!D284:O284)","v":""},{"$f":"'2 REPAIR ESTIMATOR'!P284","v":0},{"$f":"'2 REPAIR ESTIMATOR'!S284","v":0},{"$f":"'2 REPAIR ESTIMATOR'!X284","v":{"v":0,"d":"$0.00"}},{"$f":"'2 REPAIR ESTIMATOR'!AG284","v":0},{"$f":"T('2 REPAIR ESTIMATOR'!AX284)","v":""},{"$f":"T('2 REPAIR ESTIMATOR'!AY284)","v":""},null,0,0,0,0]
[{"$nulls":9},{"$f":"T('2 REPAIR ESTIMATOR'!D285:O285)","v":""},{"$f":"'2 REPAIR ESTIMATOR'!P285","v":0},{"$f":"'2 REPAIR ESTIMATOR'!S285","v":0},{"$f":"'2 REPAIR ESTIMATOR'!X285","v":{"v":0,"d":"$0.00"}},{"$f":"'2 REPAIR ESTIMATOR'!AG285","v":0},{"$f":"T('2 REPAIR ESTIMATOR'!AX285)","v":""},{"$f":"T('2 REPAIR ESTIMATOR'!AY285)","v":""},null,0,0,0,0]
[{"$nulls":9},{"$f":"T('2 REPAIR ESTIMATOR'!D286:O286)","v":""},{"$f":"'2 REPAIR ESTIMATOR'!P286","v":0},{"$f":"'2 REPAIR ESTIMATOR'!S286","v":0},{"$f":"'2 REPAIR ESTIMATOR'!X286","v":{"v":0,"d":"$0.00"}},{"$f":"'2 REPAIR ESTIMATOR'!AG286","v":0},{"$f":"T('2 REPAIR ESTIMATOR'!AX286)","v":""},{"$f":"T('2 REPAIR ESTIMATOR'!AY286)","v":""},null,0,0,0,0]
[{"$nulls":9},{"$f":"T('2 REPAIR ESTIMATOR'!D287:O287)","v":""},{"$f":"'2 REPAIR ESTIMATOR'!P287","v":0},{"$f":"'2 REPAIR ESTIMATOR'!S287","v":0},{"$f":"'2 REPAIR ESTIMATOR'!X287","v":{"v":0,"d":"$0.00"}},{"$f":"'2 REPAIR ESTIMATOR'!AG287","v":0},{"$f":"T('2 REPAIR ESTIMATOR'!AX287)","v":""},{"$f":"T('2 REPAIR ESTIMATOR'!AY287)","v":""},null,0,0,0,0]
[{"$nulls":9},{"$f":"T('2 REPAIR ESTIMATOR'!D288:O288)","v":""},{"$f":"'2 REPAIR ESTIMATOR'!P288","v":0},{"$f":"'2 REPAIR ESTIMATOR'!S288","v":0},{"$f":"'2 REPAIR ESTIMATOR'!X288","v":{"v":0,"d":"$0.00"}},{"$f":"'2 REPAIR ESTIMATOR'!AG288","v":0},{"$f":"T('2 REPAIR ESTIMATOR'!AX288)","v":""},{"$f":"T('2 REPAIR ESTIMATOR'!AY288)","v":""},null,0,0,0,0]
[{"$nulls":9},{"$f":"T('2 REPAIR ESTIMATOR'!D289:O289)","v":""},{"$f":"'2 REPAIR ESTIMATOR'!P289","v":0},{"$f":"'2 REPAIR ESTIMATOR'!S289","v":0},{"$f":"'2 REPAIR ESTIMATOR'!X289","v":{"v":0,"d":"$0.00"}},{"$f":"'2 REPAIR ESTIMATOR'!AG289","v":0},{"$f":"T('2 REPAIR ESTIMATOR'!AX289)","v":""},{"$f":"T('2 REPAIR ESTIMATOR'!AY289)","v":""},null,0,0,0,0]
[{"$nulls":9},{"$f":"T('2 REPAIR ESTIMATOR'!D290:O290)","v":""},{"$f":"'2 REPAIR ESTIMATOR'!P290","v":0},{"$f":"'2 REPAIR ESTIMATOR'!S290","v":0},{"$f":"'2 REPAIR ESTIMATOR'!X290","v":{"v":0,"d":"$0.00"}},{"$f":"'2 REPAIR ESTIMATOR'!AG290","v":0},{"$f":"T('2 REPAIR ESTIMATOR'!AX290)","v":""},{"$f":"T('2 REPAIR ESTIMATOR'!AY290)","v":""},null,0,0,0,0]
[{"$nulls":9},{"$f":"T('2 REPAIR ESTIMATOR'!D291:O291)","v":""},{"$f":"'2 REPAIR ESTIMATOR'!P291","v":0},{"$f":"'2 REPAIR ESTIMATOR'!S291","v":0},{"$f":"'2 REPAIR ESTIMATOR'!X291","v":{"v":0,"d":"$0.00"}},{"$f":"'2 REPAIR ESTIMATOR'!AG291","v":0},{"$f":"T('2 REPAIR ESTIMATOR'!AX291)","v":""},{"$f":"T('2 REPAIR ESTIMATOR'!AY291)","v":""},null,0,0,0,0]
[{"$nulls":9},{"$f":"T('2 REPAIR ESTIMATOR'!D292:O292)","v":""},{"$f":"'2 REPAIR ESTIMATOR'!P292","v":0},{"$f":"'2 REPAIR ESTIMATOR'!S292","v":0},{"$f":"'2 REPAIR ESTIMATOR'!X292","v":{"v":0,"d":"$0.00"}},{"$f":"'2 REPAIR ESTIMATOR'!AG292","v":0},{"$f":"T('2 REPAIR ESTIMATOR'!AX292)","v":""},{"$f":"T('2 REPAIR ESTIMATOR'!AY292)","v":""},null,0,0,0,0]
[{"$nulls":9},{"$f":"T('2 REPAIR ESTIMATOR'!D293:O293)","v":""},{"$f":"'2 REPAIR ESTIMATOR'!P293","v":0},{"$f":"'2 REPAIR ESTIMATOR'!S293","v":0},{"$f":"'2 REPAIR ESTIMATOR'!X293","v":{"v":0,"d":"$0.00"}},{"$f":"'2 REPAIR ESTIMATOR'!AG293","v":0},{"$f":"T('2 REPAIR ESTIMATOR'!AX293)","v":""},{"$f":"T('2 REPAIR ESTIMATOR'!AY293)","v":""},null,0,0,0,0]
[{"$nulls":9},{"$f":"T('2 REPAIR ESTIMATOR'!D294:O294)","v":""},{"$f":"'2 REPAIR ESTIMATOR'!P294","v":0},{"$f":"'2 REPAIR ESTIMATOR'!S294","v":0},{"$f":"'2 REPAIR ESTIMATOR'!X294","v":{"v":0,"d":"$0.00"}},{"$f":"'2 REPAIR ESTIMATOR'!AG294","v":0},{"$f":"T('2 REPAIR ESTIMATOR'!AX294)","v":""},{"$f":"T('2 REPAIR ESTIMATOR'!AY294)","v":""},null,0,0,0,0]
[{"$nulls":9},{"$f":"T('2 REPAIR ESTIMATOR'!D295:O295)","v":""},{"$f":"'2 REPAIR ESTIMATOR'!P295","v":0},{"$f":"'2 REPAIR ESTIMATOR'!S295","v":0},{"$f":"'2 REPAIR ESTIMATOR'!X295","v":{"v":0,"d":"$0.00"}},{"$f":"'2 REPAIR ESTIMATOR'!AG295","v":0},{"$f":"T('2 REPAIR ESTIMATOR'!AX295)","v":""},{"$f":"T('2 REPAIR ESTIMATOR'!AY295)","v":""},null,0,0,0,0]
[{"$nulls":9},{"$f":"T('2 REPAIR ESTIMATOR'!D296:O296)","v":""},{"$f":"'2 REPAIR ESTIMATOR'!P296","v":0},{"$f":"'2 REPAIR ESTIMATOR'!S296","v":0},{"$f":"'2 REPAIR ESTIMATOR'!X296","v":{"v":0,"d":"$0.00"}},{"$f":"'2 REPAIR ESTIMATOR'!AG296","v":0},{"$f":"T('2 REPAIR ESTIMATOR'!AX296)","v":""},{"$f":"T('2 REPAIR ESTIMATOR'!AY296)","v":""},null,0,0,0,0]
[{"$nulls":9},{"$f":"T('2 REPAIR ESTIMATOR'!D297:O297)","v":""},{"$f":"'2 REPAIR ESTIMATOR'!P297","v":0},{"$f":"'2 REPAIR ESTIMATOR'!S297","v":0},{"$f":"'2 REPAIR ESTIMATOR'!X297","v":{"v":0,"d":"$0.00"}},{"$f":"'2 REPAIR ESTIMATOR'!AG297","v":0},{"$f":"T('2 REPAIR ESTIMATOR'!AX297)","v":""},{"$f":"T('2 REPAIR ESTIMATOR'!AY297)","v":""},null,0,0,0,0]
[{"$nulls":9},{"$f":"T('2 REPAIR ESTIMATOR'!D298:O298)","v":""},{"$f":"'2 REPAIR ESTIMATOR'!P298","v":0},{"$f":"'2 REPAIR ESTIMATOR'!S298","v":0},{"$f":"'2 REPAIR ESTIMATOR'!X298","v":{"v":0,"d":"$0.00"}},{"$f":"'2 REPAIR ESTIMATOR'!AG298","v":0},{"$f":"T('2 REPAIR ESTIMATOR'!AX298)","v":""},{"$f":"T('2 REPAIR ESTIMATOR'!AY298)","v":""},null,0,0,0,0]
[{"$nulls":9},{"$f":"T('2 REPAIR ESTIMATOR'!D299:O299)","v":""},{"$f":"'2 REPAIR ESTIMATOR'!P299","v":0},{"$f":"'2 REPAIR ESTIMATOR'!S299","v":0},{"$f":"'2 REPAIR ESTIMATOR'!X299","v":{"v":0,"d":"$0.00"}},{"$f":"'2 REPAIR ESTIMATOR'!AG299","v":0},{"$f":"T('2 REPAIR ESTIMATOR'!AX299)","v":""},{"$f":"T('2 REPAIR ESTIMATOR'!AY299)","v":""},null,0,0,0,0]
[{"$nulls":9},{"$f":"T('2 REPAIR ESTIMATOR'!D300:O300)","v":""},{"$f":"'2 REPAIR ESTIMATOR'!P300","v":0},{"$f":"'2 REPAIR ESTIMATOR'!S300","v":0},{"$f":"'2 REPAIR ESTIMATOR'!X300","v":{"v":0,"d":"$0.00"}},{"$f":"'2 REPAIR ESTIMATOR'!AG300","v":0},{"$f":"T('2 REPAIR ESTIMATOR'!AX300)","v":""},{"$f":"T('2 REPAIR ESTIMATOR'!AY300)","v":""},null,0,0,0,0]
[{"$nulls":9},{"$f":"T('2 REPAIR ESTIMATOR'!D301:O301)","v":""},{"$f":"'2 REPAIR ESTIMATOR'!P301","v":0},{"$f":"'2 REPAIR ESTIMATOR'!S301","v":0},{"$f":"'2 REPAIR ESTIMATOR'!X301","v":{"v":0,"d":"$0.00"}},{"$f":"'2 REPAIR ESTIMATOR'!AG301","v":0},{"$f":"T('2 REPAIR ESTIMATOR'!AX301)","v":""},{"$f":"T('2 REPAIR ESTIMATOR'!AY301)","v":""},null,0,0,0,0]
[{"$nulls":9},{"$f":"T('2 REPAIR ESTIMATOR'!D302:O302)","v":""},{"$f":"'2 REPAIR ESTIMATOR'!P302","v":0},{"$f":"'2 REPAIR ESTIMATOR'!S302","v":0},{"$f":"'2 REPAIR ESTIMATOR'!X302","v":{"v":0,"d":"$0.00"}},{"$f":"'2 REPAIR ESTIMATOR'!AG302","v":0},{"$f":"T('2 REPAIR ESTIMATOR'!AX302)","v":""},{"$f":"T('2 REPAIR ESTIMATOR'!AY302)","v":""},null,0,0,0,0]
[{"$nulls":9},{"$f":"T('2 REPAIR ESTIMATOR'!D303:O303)","v":""},{"$f":"'2 REPAIR ESTIMATOR'!P303","v":0},{"$f":"'2 REPAIR ESTIMATOR'!S303","v":0},{"$f":"'2 REPAIR ESTIMATOR'!X303","v":{"v":0,"d":"$0.00"}},{"$f":"'2 REPAIR ESTIMATOR'!AG303","v":0},{"$f":"T('2 REPAIR ESTIMATOR'!AX303)","v":""},{"$f":"T('2 REPAIR ESTIMATOR'!AY303)","v":""},null,0,0,0,0]
[{"$nulls":9},{"$f":"T('2 REPAIR ESTIMATOR'!D304:O304)","v":""},{"$f":"'2 REPAIR ESTIMATOR'!P304","v":0},{"$f":"'2 REPAIR ESTIMATOR'!S304","v":0},{"$f":"'2 REPAIR ESTIMATOR'!X304","v":{"v":0,"d":"$0.00"}},{"$f":"'2 REPAIR ESTIMATOR'!AG304","v":0},{"$f":"T('2 REPAIR ESTIMATOR'!AX304)","v":""},{"$f":"T('2 REPAIR ESTIMATOR'!AY304)","v":""},null,0,0,0,0]
[{"$nulls":9},{"$f":"T('2 REPAIR ESTIMATOR'!D305:O305)","v":""},{"$f":"'2 REPAIR ESTIMATOR'!P305","v":0},{"$f":"'2 REPAIR ESTIMATOR'!S305","v":0},{"$f":"'2 REPAIR ESTIMATOR'!X305","v":{"v":0,"d":"$0.00"}},{"$f":"'2 REPAIR ESTIMATOR'!AG305","v":0},{"$f":"T('2 REPAIR ESTIMATOR'!AX305)","v":""},{"$f":"T('2 REPAIR ESTIMATOR'!AY305)","v":""},null,0,0,0,0]
[{"$nulls":9},{"$f":"T('2 REPAIR ESTIMATOR'!D306:O306)","v":""},{"$f":"'2 REPAIR ESTIMATOR'!P306","v":0},{"$f":"'2 REPAIR ESTIMATOR'!S306","v":0},{"$f":"'2 REPAIR ESTIMATOR'!X306","v":{"v":0,"d":"$0.00"}},{"$f":"'2 REPAIR ESTIMATOR'!AG306","v":0},{"$f":"T('2 REPAIR ESTIMATOR'!AX306)","v":""},{"$f":"T('2 REPAIR ESTIMATOR'!AY306)","v":""},null,0,0,0,0]
[{"$nulls":9},{"$f":"T('2 REPAIR ESTIMATOR'!D307:O307)","v":""},{"$f":"'2 REPAIR ESTIMATOR'!P307","v":0},{"$f":"'2 REPAIR ESTIMATOR'!S307","v":0},{"$f":"'2 REPAIR ESTIMATOR'!X307","v":{"v":0,"d":"$0.00"}},{"$f":"'2 REPAIR ESTIMATOR'!AG307","v":0},{"$f":"T('2 REPAIR ESTIMATOR'!AX307)","v":""},{"$f":"T('2 REPAIR ESTIMATOR'!AY307)","v":""},null,0,0,0,0]
[{"$nulls":12},{"$f":"CONCATENATE(J244,\" \",\"TOTAL\")","v":"MASONRY TOTAL"},{"$f":"SUBTOTAL(9,N245:N284)","v":0},{"$nulls":3},{"$f":"SUM(R245:R284)","v":0},{"$f":"SUM(S245:S284)","v":0},{"$f":"SUM(T245:T284)","v":0},{"$f":"SUM(U245:U284)","v":0}]
[{"$nulls":9},{"$f":"T(#REF!)","v":{"$error":"#REF!"}},{"$f":"#REF!","v":{"$error":"#REF!"}},{"$f":"#REF!","v":{"$error":"#REF!"}},{"$f":"#REF!","v":{"$error":"#REF!"}},{"$f":"#REF!","v":{"$error":"#REF!"}},{"$nulls":3},{"$f":"R285","v":0},{"$f":"S285","v":0},{"$f":"T285","v":0},{"$f":"U285","v":0}]
[{"$nulls":9},{"$f":"CONCATENATE(\"MISCELLANEOUS \",J244,\" MATERIAL ITEMS\")","v":"MISCELLANEOUS MASONRY MATERIAL ITEMS"},{"$nulls":4},"Store","SKU #",null,{"$f":"SUM(R288:R297)*R244","v":{"$error":"#REF!"}},{"$f":"SUM(S288:S297)","v":0},{"$f":"SUM(T288:T297)","v":0},{"$f":"SUM(U288:U297)","v":{"$error":"#REF!"}}]
[{"$nulls":9},"1. Brick/masonry unit materials",{"$nulls":7},{"$f":"IF(OR(G288=\"x\",J288>0),1,0)*R244","v":{"$error":"#REF!"}},{"$f":"IF(G288=\"x\",1,0)","v":0},{"$f":"IF(H288=\"x\",1,0)","v":0},{"$f":"IF(AND(R288=1,T288<>1),1,0)","v":{"$error":"#REF!"}}]
[{"$nulls":9},"2. Masonry grout",{"$nulls":7},{"$f":"IF(OR(G289=\"x\",J289>0),1,0)*R244","v":{"$error":"#REF!"}},0,0,{"$error":"#REF!"}]
[{"$nulls":9},"3. Masonry mortar",{"$nulls":7},{"$f":"IF(OR(G290=\"x\",J290>0),1,0)*R244","v":{"$error":"#REF!"}},0,0,{"$error":"#REF!"}]
[{"$nulls":9},"4. Masonry Reinforcing Bar",{"$nulls":7},{"$f":"IF(OR(G291=\"x\",J291>0),1,0)*R244","v":{"$error":"#REF!"}},0,0,{"$error":"#REF!"}]
[{"$nulls":9},"5. Flashings",{"$nulls":7},{"$f":"IF(OR(G292=\"x\",J292>0),1,0)*R244","v":{"$error":"#REF!"}},0,0,{"$error":"#REF!"}]
[{"$nulls":9},"6. Masonry ties",{"$nulls":7},{"$f":"IF(OR(G293=\"x\",J293>0),1,0)*R244","v":{"$error":"#REF!"}},0,0,{"$error":"#REF!"}]
[{"$nulls":9},"7. Weep lines",{"$nulls":7},{"$f":"IF(OR(G294=\"x\",J294>0),1,0)*R244","v":{"$error":"#REF!"}},0,0,{"$error":"#REF!"}]
[{"$nulls":17},{"$f":"IF(OR(G295=\"x\",J295>0),1,0)*R244","v":{"$error":"#REF!"}},0,0,{"$error":"#REF!"}]
[{"$nulls":17},{"$f":"IF(OR(G296=\"x\",J296>0),1,0)*R244","v":{"$error":"#REF!"}},0,0,{"$error":"#REF!"}]
[{"$nulls":17},{"$f":"IF(OR(G297=\"x\",J297>0),1,0)*R244","v":{"$error":"#REF!"}},0,0,{"$error":"#REF!"}]
[{"$nulls":9},{"$f":"T(#REF!)","v":{"$error":"#REF!"}},{"$f":"#REF!","v":{"$error":"#REF!"}},{"$f":"#REF!","v":{"$error":"#REF!"}},{"$f":"#REF!","v":{"$error":"#REF!"}},{"$f":"#REF!","v":{"$error":"#REF!"}},{"$nulls":3},{"$f":"R287*R244","v":{"$error":"#REF!"}},{"$f":"S287","v":0},{"$f":"T287","v":0},{"$f":"U287","v":{"$error":"#REF!"}}]
[{"$nulls":9},{"$f":"T('2 REPAIR ESTIMATOR'!D312:O312)","v":"SIDING"},{"$f":"#REF!","v":{"$error":"#REF!"}},{"$f":"#REF!","v":{"$error":"#REF!"}},{"$f":"#REF!","v":{"$error":"#REF!"}},{"$f":"#REF!","v":{"$error":"#REF!"}},{"$nulls":3},{"$f":"IF(SUM(R300:R353)>0,1,0)","v":{"$error":"#REF!"}},{"$f":"SUM(S300:S353)","v":0},{"$f":"SUM(T300:T353)","v":0},{"$f":"SUM(U300:U353)","v":{"$error":"#REF!"}}]
[{"$nulls":9},{"$f":"T('2 REPAIR ESTIMATOR'!D313:O313)","v":"Siding bid/allowance"},{"$f":"'2 REPAIR ESTIMATOR'!P313","v":1},{"$f":"'2 REPAIR ESTIMATOR'!S313","v":"ls"},{"$f":"'2 REPAIR ESTIMATOR'!X313","v":{"v":0,"d":"$0.00"}},{"$f":"'2 REPAIR ESTIMATOR'!AG313","v":0},{"$f":"T('2 REPAIR ESTIMATOR'!AX313)","v":""},{"$f":"T('2 REPAIR ESTIMATOR'!AY313)","v":""},null,{"$f":"IF(OR(G300=\"x\",N300>0),1,0)","v":0},{"$f":"IF(G300=\"x\",1,0)","v":0},{"$f":"IF(H300=\"x\",1,0)","v":0},{"$f":"IF(AND(R300=1,T300<>1),1,0)","v":0}]
[{"$nulls":9},{"$f":"T('2 REPAIR ESTIMATOR'!D314:O314)","v":"Demo existing siding"},{"$f":"'2 REPAIR ESTIMATOR'!P314","v":0},{"$f":"'2 REPAIR ESTIMATOR'!S314","v":"sf"},{"$f":"'2 REPAIR ESTIMATOR'!X314","v":{"v":0,"d":"$0.00"}},{"$f":"'2 REPAIR ESTIMATOR'!AG314","v":0},{"$f":"T('2 REPAIR ESTIMATOR'!AX314)","v":""},{"$f":"T('2 REPAIR ESTIMATOR'!AY314)","v":""},null,{"$f":"IF(OR(G301=\"x\",N301>0),1,0)","v":0},{"$f":"IF(G301=\"x\",1,0)","v":0},{"$f":"IF(H301=\"x\",1,0)","v":0},{"$f":"IF(AND(R301=1,T301<>1),1,0)","v":0}]
[{"$nulls":9},{"$f":"T('2 REPAIR ESTIMATOR'!D315:O315)","v":"Plywood panel, douglas fir"},{"$f":"'2 REPAIR ESTIMATOR'!P315","v":0},{"$f":"'2 REPAIR ESTIMATOR'!S315","v":"sf"},{"$f":"'2 REPAIR ESTIMATOR'!X315","v":{"v":1.25,"d":"$1.25"}},{"$f":"'2 REPAIR ESTIMATOR'!AG315","v":0},{"$f":"T('2 REPAIR ESTIMATOR'!AX315)","v":""},{"$f":"T('2 REPAIR ESTIMATOR'!AY315)","v":""},null,0,0,0,0]
[{"$nulls":9},{"$f":"T('2 REPAIR ESTIMATOR'!D316:O316)","v":"Plywood panel, cedar"},{"$f":"'2 REPAIR ESTIMATOR'!P316","v":0},{"$f":"'2 REPAIR ESTIMATOR'!S316","v":"sf"},{"$f":"'2 REPAIR ESTIMATOR'!X316","v":{"v":2.75,"d":"$2.75"}},{"$f":"'2 REPAIR ESTIMATOR'!AG316","v":0},{"$f":"T('2 REPAIR ESTIMATOR'!AX316)","v":""},{"$f":"T('2 REPAIR ESTIMATOR'!AY316)","v":""},null,0,0,0,0]
[{"$nulls":9},{"$f":"T('2 REPAIR ESTIMATOR'!D317:O317)","v":"Tongue and groove, douglas fir"},{"$f":"'2 REPAIR ESTIMATOR'!P317","v":0},{"$f":"'2 REPAIR ESTIMATOR'!S317","v":"sf"},{"$f":"'2 REPAIR ESTIMATOR'!X317","v":{"v":2.5,"d":"$2.50"}},{"$f":"'2 REPAIR ESTIMATOR'!AG317","v":0},{"$f":"T('2 REPAIR ESTIMATOR'!AX317)","v":""},{"$f":"T('2 REPAIR ESTIMATOR'!AY317)","v":""},null,0,0,0,0]
[{"$nulls":9},{"$f":"T('2 REPAIR ESTIMATOR'!D318:O318)","v":"Tongue and groove, cedar"},{"$f":"'2 REPAIR ESTIMATOR'!P318","v":0},{"$f":"'2 REPAIR ESTIMATOR'!S318","v":"sf"},{"$f":"'2 REPAIR ESTIMATOR'!X318","v":{"v":4,"d":"$4.00"}},{"$f":"'2 REPAIR ESTIMATOR'!AG318","v":0},{"$f":"T('2 REPAIR ESTIMATOR'!AX318)","v":""},{"$f":"T('2 REPAIR ESTIMATOR'!AY318)","v":""},null,0,0,0,0]
[{"$nulls":9},{"$f":"T('2 REPAIR ESTIMATOR'!D319:O319)","v":"Board and batten, douglas fir"},{"$f":"'2 REPAIR ESTIMATOR'!P319","v":0},{"$f":"'2 REPAIR ESTIMATOR'!S319","v":"sf"},{"$f":"'2 REPAIR ESTIMATOR'!X319","v":{"v":1,"d":"$1.00"}},{"$f":"'2 REPAIR ESTIMATOR'!AG319","v":0},{"$f":"T('2 REPAIR ESTIMATOR'!AX319)","v":""},{"$f":"T('2 REPAIR ESTIMATOR'!AY319)","v":""},null,0,0,0,0]
[{"$nulls":9},{"$f":"T('2 REPAIR ESTIMATOR'!D320:O320)","v":"Board and batten, cedar"},{"$f":"'2 REPAIR ESTIMATOR'!P320","v":0},{"$f":"'2 REPAIR ESTIMATOR'!S320","v":"sf"},{"$f":"'2 REPAIR ESTIMATOR'!X320","v":{"v":1,"d":"$1.00"}},{"$f":"'2 REPAIR ESTIMATOR'!AG320","v":0},{"$f":"T('2 REPAIR ESTIMATOR'!AX320)","v":""},{"$f":"T('2 REPAIR ESTIMATOR'!AY320)","v":""},null,0,0,0,0]
[{"$nulls":9},{"$f":"T('2 REPAIR ESTIMATOR'!D321:O321)","v":"Wood shingle/shake"},{"$f":"'2 REPAIR ESTIMATOR'!P321","v":0},{"$f":"'2 REPAIR ESTIMATOR'!S321","v":"sf"},{"$f":"'2 REPAIR ESTIMATOR'!X321","v":{"v":1.75,"d":"$1.75"}},{"$f":"'2 REPAIR ESTIMATOR'!AG321","v":0},{"$f":"T('2 REPAIR ESTIMATOR'!AX321)","v":""},{"$f":"T('2 REPAIR ESTIMATOR'!AY321)","v":""},null,0,0,0,0]
[{"$nulls":9},{"$f":"T('2 REPAIR ESTIMATOR'!D322:O322)","v":"Fiber cement siding, 4x8 panels"},{"$f":"'2 REPAIR ESTIMATOR'!P322","v":0},{"$f":"'2 REPAIR ESTIMATOR'!S322","v":"sf"},{"$f":"'2 REPAIR ESTIMATOR'!X322","v":{"v":1,"d":"$1.00"}},{"$f":"'2 REPAIR ESTIMATOR'!AG322","v":0},{"$f":"T('2 REPAIR ESTIMATOR'!AX322)","v":""},{"$f":"T('2 REPAIR ESTIMATOR'!AY322)","v":""},null,0,0,0,0]
[{"$nulls":9},{"$f":"T('2 REPAIR ESTIMATOR'!D323:O323)","v":"Fiber cement siding, lap"},{"$f":"'2 REPAIR ESTIMATOR'!P323","v":0},{"$f":"'2 REPAIR ESTIMATOR'!S323","v":"sf"},{"$f":"'2 REPAIR ESTIMATOR'!X323","v":{"v":1.2,"d":"$1.20"}},{"$f":"'2 REPAIR ESTIMATOR'!AG323","v":0},{"$f":"T('2 REPAIR ESTIMATOR'!AX323)","v":""},{"$f":"T('2 REPAIR ESTIMATOR'!AY323)","v":""},null,0,0,0,0]
[{"$nulls":9},{"$f":"T('2 REPAIR ESTIMATOR'!D324:O324)","v":"Vinyl siding, non-insulated"},{"$f":"'2 REPAIR ESTIMATOR'!P324","v":0},{"$f":"'2 REPAIR ESTIMATOR'!S324","v":"sf"},{"$f":"'2 REPAIR ESTIMATOR'!X324","v":{"v":1.3,"d":"$1.30"}},{"$f":"'2 REPAIR ESTIMATOR'!AG324","v":0},{"$f":"T('2 REPAIR ESTIMATOR'!AX324)","v":""},{"$f":"T('2 REPAIR ESTIMATOR'!AY324)","v":""},null,0,0,0,0]
[{"$nulls":9},{"$f":"T('2 REPAIR ESTIMATOR'!D325:O325)","v":"Vinyl siding, insulated"},{"$f":"'2 REPAIR ESTIMATOR'!P325","v":0},{"$f":"'2 REPAIR ESTIMATOR'!S325","v":"sf"},{"$f":"'2 REPAIR ESTIMATOR'!X325","v":{"v":1.75,"d":"$1.75"}},{"$f":"'2 REPAIR ESTIMATOR'!AG325","v":0},{"$f":"T('2 REPAIR ESTIMATOR'!AX325)","v":""},{"$f":"T('2 REPAIR ESTIMATOR'!AY325)","v":""},null,0,0,0,0]
[{"$nulls":9},{"$f":"T('2 REPAIR ESTIMATOR'!D326:O326)","v":"Trim, 1\"x3\", pine"},{"$f":"'2 REPAIR ESTIMATOR'!P326","v":0},{"$f":"'2 REPAIR ESTIMATOR'!S326","v":"lf"},{"$f":"'2 REPAIR ESTIMATOR'!X326","v":{"v":0.4,"d":"$0.40"}},{"$f":"'2 REPAIR ESTIMATOR'!AG326","v":0},{"$f":"T('2 REPAIR ESTIMATOR'!AX326)","v":""},{"$f":"T('2 REPAIR ESTIMATOR'!AY326)","v":""},null,0,0,0,0]
[{"$nulls":9},{"$f":"T('2 REPAIR ESTIMATOR'!D327:O327)","v":"Trim, 1\"x4\", pine"},{"$f":"'2 REPAIR ESTIMATOR'!P327","v":0},{"$f":"'2 REPAIR ESTIMATOR'!S327","v":"lf"},{"$f":"'2 REPAIR ESTIMATOR'!X327","v":{"v":0.9,"d":"$0.90"}},{"$f":"'2 REPAIR ESTIMATOR'!AG327","v":0},{"$f":"T('2 REPAIR ESTIMATOR'!AX327)","v":""},{"$f":"T('2 REPAIR ESTIMATOR'!AY327)","v":""},null,0,0,0,0]
[{"$nulls":9},{"$f":"T('2 REPAIR ESTIMATOR'!D328:O328)","v":"Trim, 1\"x6\", pine"},{"$f":"'2 REPAIR ESTIMATOR'!P328","v":0},{"$f":"'2 REPAIR ESTIMATOR'!S328","v":"lf"},{"$f":"'2 REPAIR ESTIMATOR'!X328","v":{"v":1.3,"d":"$1.30"}},{"$f":"'2 REPAIR ESTIMATOR'!AG328","v":0},{"$f":"T('2 REPAIR ESTIMATOR'!AX328)","v":""},{"$f":"T('2 REPAIR ESTIMATOR'!AY328)","v":""},null,0,0,0,0]
[{"$nulls":9},{"$f":"T('2 REPAIR ESTIMATOR'!D329:O329)","v":"Siding patch, window/door, siding, insulation"},{"$f":"'2 REPAIR ESTIMATOR'!P329","v":0},{"$f":"'2 REPAIR ESTIMATOR'!S329","v":"ea"},{"$f":"'2 REPAIR ESTIMATOR'!X329","v":{"v":75,"d":"$75.00"}},{"$f":"'2 REPAIR ESTIMATOR'!AG329","v":0},{"$f":"T('2 REPAIR ESTIMATOR'!AX329)","v":""},{"$f":"T('2 REPAIR ESTIMATOR'!AY329)","v":""},null,0,0,0,0]
[{"$nulls":9},{"$f":"T('2 REPAIR ESTIMATOR'!D330:O330)","v":"Stucco"},{"$f":"'2 REPAIR ESTIMATOR'!P330","v":0},{"$f":"'2 REPAIR ESTIMATOR'!S330","v":"sf"},{"$f":"'2 REPAIR ESTIMATOR'!X330","v":{"v":3,"d":"$3.00"}},{"$f":"'2 REPAIR ESTIMATOR'!AG330","v":0},{"$f":"T('2 REPAIR ESTIMATOR'!AX330)","v":""},{"$f":"T('2 REPAIR ESTIMATOR'!AY330)","v":""},null,0,0,0,0]
[{"$nulls":9},{"$f":"T('2 REPAIR ESTIMATOR'!D331:O331)","v":""},{"$f":"'2 REPAIR ESTIMATOR'!P331","v":0},{"$f":"'2 REPAIR ESTIMATOR'!S331","v":0},{"$f":"'2 REPAIR ESTIMATOR'!X331","v":{"v":0,"d":"$0.00"}},{"$f":"'2 REPAIR ESTIMATOR'!AG331","v":0},{"$f":"T('2 REPAIR ESTIMATOR'!AX331)","v":""},{"$f":"T('2 REPAIR ESTIMATOR'!AY331)","v":""},null,0,0,0,0]
[{"$nulls":9},{"$f":"T('2 REPAIR ESTIMATOR'!D332:O332)","v":""},{"$f":"'2 REPAIR ESTIMATOR'!P332","v":0},{"$f":"'2 REPAIR ESTIMATOR'!S332","v":0},{"$f":"'2 REPAIR ESTIMATOR'!X332","v":{"v":0,"d":"$0.00"}},{"$f":"'2 REPAIR ESTIMATOR'!AG332","v":0},{"$f":"T('2 REPAIR ESTIMATOR'!AX332)","v":""},{"$f":"T('2 REPAIR ESTIMATOR'!AY332)","v":""},null,0,0,0,0]
[{"$nulls":9},{"$f":"T('2 REPAIR ESTIMATOR'!D333:O333)","v":""},{"$f":"'2 REPAIR ESTIMATOR'!P333","v":0},{"$f":"'2 REPAIR ESTIMATOR'!S333","v":0},{"$f":"'2 REPAIR ESTIMATOR'!X333","v":{"v":0,"d":"$0.00"}},{"$f":"'2 REPAIR ESTIMATOR'!AG333","v":0},{"$f":"T('2 REPAIR ESTIMATOR'!AX333)","v":""},{"$f":"T('2 REPAIR ESTIMATOR'!AY333)","v":""},null,0,0,0,0]
[{"$nulls":9},{"$f":"T('2 REPAIR ESTIMATOR'!D334:O334)","v":""},{"$f":"'2 REPAIR ESTIMATOR'!P334","v":0},{"$f":"'2 REPAIR ESTIMATOR'!S334","v":0},{"$f":"'2 REPAIR ESTIMATOR'!X334","v":{"v":0,"d":"$0.00"}},{"$f":"'2 REPAIR ESTIMATOR'!AG334","v":0},{"$f":"T('2 REPAIR ESTIMATOR'!AX334)","v":""},{"$f":"T('2 REPAIR ESTIMATOR'!AY334)","v":""},null,0,0,0,0]
[{"$nulls":9},{"$f":"T('2 REPAIR ESTIMATOR'!D335:O335)","v":""},{"$f":"'2 REPAIR ESTIMATOR'!P335","v":0},{"$f":"'2 REPAIR ESTIMATOR'!S335","v":0},{"$f":"'2 REPAIR ESTIMATOR'!X335","v":{"v":0,"d":"$0.00"}},{"$f":"'2 REPAIR ESTIMATOR'!AG335","v":0},{"$f":"T('2 REPAIR ESTIMATOR'!AX335)","v":""},{"$f":"T('2 REPAIR ESTIMATOR'!AY335)","v":""},null,0,0,0,0]
[{"$nulls":9},{"$f":"T('2 REPAIR ESTIMATOR'!D336:O336)","v":""},{"$f":"'2 REPAIR ESTIMATOR'!P336","v":0},{"$f":"'2 REPAIR ESTIMATOR'!S336","v":0},{"$f":"'2 REPAIR ESTIMATOR'!X336","v":{"v":0,"d":"$0.00"}},{"$f":"'2 REPAIR ESTIMATOR'!AG336","v":0},{"$f":"T('2 REPAIR ESTIMATOR'!AX336)","v":""},{"$f":"T('2 REPAIR ESTIMATOR'!AY336)","v":""},null,0,0,0,0]
[{"$nulls":9},{"$f":"T('2 REPAIR ESTIMATOR'!D337:O337)","v":""},{"$f":"'2 REPAIR ESTIMATOR'!P337","v":0},{"$f":"'2 REPAIR ESTIMATOR'!S337","v":0},{"$f":"'2 REPAIR ESTIMATOR'!X337","v":{"v":0,"d":"$0.00"}},{"$f":"'2 REPAIR ESTIMATOR'!AG337","v":0},{"$f":"T('2 REPAIR ESTIMATOR'!AX337)","v":""},{"$f":"T('2 REPAIR ESTIMATOR'!AY337)","v":""},null,0,0,0,0]
[{"$nulls":9},{"$f":"T('2 REPAIR ESTIMATOR'!D338:O338)","v":""},{"$f":"'2 REPAIR ESTIMATOR'!P338","v":0},{"$f":"'2 REPAIR ESTIMATOR'!S338","v":0},{"$f":"'2 REPAIR ESTIMATOR'!X338","v":{"v":0,"d":"$0.00"}},{"$f":"'2 REPAIR ESTIMATOR'!AG338","v":0},{"$f":"T('2 REPAIR ESTIMATOR'!AX338)","v":""},{"$f":"T('2 REPAIR ESTIMATOR'!AY338)","v":""},null,0,0,0,0]
[{"$nulls":9},{"$f":"T('2 REPAIR ESTIMATOR'!D339:O339)","v":""},{"$f":"'2 REPAIR ESTIMATOR'!P339","v":0},{"$f":"'2 REPAIR ESTIMATOR'!S339","v":0},{"$f":"'2 REPAIR ESTIMATOR'!X339","v":{"v":0,"d":"$0.00"}},{"$f":"'2 REPAIR ESTIMATOR'!AG339","v":0},{"$f":"T('2 REPAIR ESTIMATOR'!AX339)","v":""},{"$f":"T('2 REPAIR ESTIMATOR'!AY339)","v":""},null,0,0,0,0]
[{"$nulls":9},{"$f":"T('2 REPAIR ESTIMATOR'!D340:O340)","v":""},{"$f":"'2 REPAIR ESTIMATOR'!P340","v":0},{"$f":"'2 REPAIR ESTIMATOR'!S340","v":0},{"$f":"'2 REPAIR ESTIMATOR'!X340","v":{"v":0,"d":"$0.00"}},{"$f":"'2 REPAIR ESTIMATOR'!AG340","v":0},{"$f":"T('2 REPAIR ESTIMATOR'!AX340)","v":""},{"$f":"T('2 REPAIR ESTIMATOR'!AY340)","v":""},null,0,0,0,0]
[{"$nulls":9},{"$f":"T('2 REPAIR ESTIMATOR'!D341:O341)","v":""},{"$f":"'2 REPAIR ESTIMATOR'!P341","v":0},{"$f":"'2 REPAIR ESTIMATOR'!S341","v":0},{"$f":"'2 REPAIR ESTIMATOR'!X341","v":{"v":0,"d":"$0.00"}},{"$f":"'2 REPAIR ESTIMATOR'!AG341","v":0},{"$f":"T('2 REPAIR ESTIMATOR'!AX341)","v":""},{"$f":"T('2 REPAIR ESTIMATOR'!AY341)","v":""},null,0,0,0,0]
[{"$nulls":9},{"$f":"T('2 REPAIR ESTIMATOR'!D342:O342)","v":""},{"$f":"'2 REPAIR ESTIMATOR'!P342","v":0},{"$f":"'2 REPAIR ESTIMATOR'!S342","v":0},{"$f":"'2 REPAIR ESTIMATOR'!X342","v":{"v":0,"d":"$0.00"}},{"$f":"'2 REPAIR ESTIMATOR'!AG342","v":0},{"$f":"T('2 REPAIR ESTIMATOR'!AX342)","v":""},{"$f":"T('2 REPAIR ESTIMATOR'!AY342)","v":""},null,0,0,0,0]
[{"$nulls":9},{"$f":"T('2 REPAIR ESTIMATOR'!D343:O343)","v":""},{"$f":"'2 REPAIR ESTIMATOR'!P343","v":0},{"$f":"'2 REPAIR ESTIMATOR'!S343","v":0},{"$f":"'2 REPAIR ESTIMATOR'!X343","v":{"v":0,"d":"$0.00"}},{"$f":"'2 REPAIR ESTIMATOR'!AG343","v":0},{"$f":"T('2 REPAIR ESTIMATOR'!AX343)","v":""},{"$f":"T('2 REPAIR ESTIMATOR'!AY343)","v":""},null,0,0,0,0]
[{"$nulls":9},{"$f":"T('2 REPAIR ESTIMATOR'!D344:O344)","v":""},{"$f":"'2 REPAIR ESTIMATOR'!P344","v":0},{"$f":"'2 REPAIR ESTIMATOR'!S344","v":0},{"$f":"'2 REPAIR ESTIMATOR'!X344","v":{"v":0,"d":"$0.00"}},{"$f":"'2 REPAIR ESTIMATOR'!AG344","v":0},{"$f":"T('2 REPAIR ESTIMATOR'!AX344)","v":""},{"$f":"T('2 REPAIR ESTIMATOR'!AY344)","v":""},null,0,0,0,0]
[{"$nulls":9},{"$f":"T('2 REPAIR ESTIMATOR'!D345:O345)","v":""},{"$f":"'2 REPAIR ESTIMATOR'!P345","v":0},{"$f":"'2 REPAIR ESTIMATOR'!S345","v":0},{"$f":"'2 REPAIR ESTIMATOR'!X345","v":{"v":0,"d":"$0.00"}},{"$f":"'2 REPAIR ESTIMATOR'!AG345","v":0},{"$f":"T('2 REPAIR ESTIMATOR'!AX345)","v":""},{"$f":"T('2 REPAIR ESTIMATOR'!AY345)","v":""},null,0,0,0,0]
[{"$nulls":9},{"$f":"T('2 REPAIR ESTIMATOR'!D346:O346)","v":""},{"$f":"'2 REPAIR ESTIMATOR'!P346","v":0},{"$f":"'2 REPAIR ESTIMATOR'!S346","v":0},{"$f":"'2 REPAIR ESTIMATOR'!X346","v":{"v":0,"d":"$0.00"}},{"$f":"'2 REPAIR ESTIMATOR'!AG346","v":0},{"$f":"T('2 REPAIR ESTIMATOR'!AX346)","v":""},{"$f":"T('2 REPAIR ESTIMATOR'!AY346)","v":""},null,0,0,0,0]
[{"$nulls":9},{"$f":"T('2 REPAIR ESTIMATOR'!D347:O347)","v":""},{"$f":"'2 REPAIR ESTIMATOR'!P347","v":0},{"$f":"'2 REPAIR ESTIMATOR'!S347","v":0},{"$f":"'2 REPAIR ESTIMATOR'!X347","v":{"v":0,"d":"$0.00"}},{"$f":"'2 REPAIR ESTIMATOR'!AG347","v":0},{"$f":"T('2 REPAIR ESTIMATOR'!AX347)","v":""},{"$f":"T('2 REPAIR ESTIMATOR'!AY347)","v":""},null,0,0,0,0]
[{"$nulls":9},{"$f":"T('2 REPAIR ESTIMATOR'!D348:O348)","v":""},{"$f":"'2 REPAIR ESTIMATOR'!P348","v":0},{"$f":"'2 REPAIR ESTIMATOR'!S348","v":0},{"$f":"'2 REPAIR ESTIMATOR'!X348","v":{"v":0,"d":"$0.00"}},{"$f":"'2 REPAIR ESTIMATOR'!AG348","v":0},{"$f":"T('2 REPAIR ESTIMATOR'!AX348)","v":""},{"$f":"T('2 REPAIR ESTIMATOR'!AY348)","v":""},null,0,0,0,0]
[{"$nulls":9},{"$f":"T('2 REPAIR ESTIMATOR'!D349:O349)","v":""},{"$f":"'2 REPAIR ESTIMATOR'!P349","v":0},{"$f":"'2 REPAIR ESTIMATOR'!S349","v":0},{"$f":"'2 REPAIR ESTIMATOR'!X349","v":{"v":0,"d":"$0.00"}},{"$f":"'2 REPAIR ESTIMATOR'!AG349","v":0},{"$f":"T('2 REPAIR ESTIMATOR'!AX349)","v":""},{"$f":"T('2 REPAIR ESTIMATOR'!AY349)","v":""},null,0,0,0,0]
[{"$nulls":9},{"$f":"T('2 REPAIR ESTIMATOR'!D350:O350)","v":""},{"$f":"'2 REPAIR ESTIMATOR'!P350","v":0},{"$f":"'2 REPAIR ESTIMATOR'!S350","v":0},{"$f":"'2 REPAIR ESTIMATOR'!X350","v":{"v":0,"d":"$0.00"}},{"$f":"'2 REPAIR ESTIMATOR'!AG350","v":0},{"$f":"T('2 REPAIR ESTIMATOR'!AX350)","v":""},{"$f":"T('2 REPAIR ESTIMATOR'!AY350)","v":""},null,0,0,0,0]
[{"$nulls":9},{"$f":"T('2 REPAIR ESTIMATOR'!D351:O351)","v":""},{"$f":"'2 REPAIR ESTIMATOR'!P351","v":0},{"$f":"'2 REPAIR ESTIMATOR'!S351","v":0},{"$f":"'2 REPAIR ESTIMATOR'!X351","v":{"v":0,"d":"$0.00"}},{"$f":"'2 REPAIR ESTIMATOR'!AG351","v":0},{"$f":"T('2 REPAIR ESTIMATOR'!AX351)","v":""},{"$f":"T('2 REPAIR ESTIMATOR'!AY351)","v":""},null,0,0,0,0]
[{"$nulls":9},{"$f":"T('2 REPAIR ESTIMATOR'!D352:O352)","v":""},{"$f":"'2 REPAIR ESTIMATOR'!P352","v":0},{"$f":"'2 REPAIR ESTIMATOR'!S352","v":0},{"$f":"'2 REPAIR ESTIMATOR'!X352","v":{"v":0,"d":"$0.00"}},{"$f":"'2 REPAIR ESTIMATOR'!AG352","v":0},{"$f":"T('2 REPAIR ESTIMATOR'!AX352)","v":""},{"$f":"T('2 REPAIR ESTIMATOR'!AY352)","v":""},null,0,0,0,0]
[{"$nulls":12},{"$f":"CONCATENATE(J299,\" \",\"TOTAL\")","v":"SIDING TOTAL"},{"$f":"SUBTOTAL(9,N300:N339)","v":0},{"$nulls":3},{"$f":"SUM(R300:R339)","v":0},{"$f":"SUM(S300:S339)","v":0},{"$f":"SUM(T300:T339)","v":0},{"$f":"SUM(U300:U339)","v":0}]
[{"$nulls":9},{"$f":"T(#REF!)","v":{"$error":"#REF!"}},{"$f":"#REF!","v":{"$error":"#REF!"}},{"$f":"#REF!","v":{"$error":"#REF!"}},{"$f":"#REF!","v":{"$error":"#REF!"}},{"$f":"#REF!","v":{"$error":"#REF!"}},{"$nulls":3},{"$f":"R340","v":0},{"$f":"S340","v":0},{"$f":"T340","v":0},{"$f":"U340","v":0}]
[{"$nulls":9},{"$f":"CONCATENATE(\"MISCELLANEOUS \",J299,\" MATERIAL ITEMS\")","v":"MISCELLANEOUS SIDING MATERIAL ITEMS"},{"$nulls":4},"Store","SKU #",null,{"$f":"SUM(R343:R352)*R299","v":{"$error":"#REF!"}},{"$f":"SUM(S343:S352)","v":0},{"$f":"SUM(T343:T352)","v":0},{"$f":"SUM(U343:U352)","v":{"$error":"#REF!"}}]
[{"$nulls":9},"1. Siding boards, siding paneling materials",{"$nulls":7},{"$f":"IF(OR(G343=\"x\",J343>0),1,0)*R299","v":{"$error":"#REF!"}},{"$f":"IF(G343=\"x\",1,0)","v":0},{"$f":"IF(H343=\"x\",1,0)","v":0},{"$f":"IF(AND(R343=1,T343<>1),1,0)","v":{"$error":"#REF!"}}]
[{"$nulls":9},"2. Trim Boards",{"$nulls":7},{"$f":"IF(OR(G344=\"x\",J344>0),1,0)*R299","v":{"$error":"#REF!"}},0,0,{"$error":"#REF!"}]
[{"$nulls":9},"3. Plywood sheathing",{"$nulls":7},{"$f":"IF(OR(G345=\"x\",J345>0),1,0)*R299","v":{"$error":"#REF!"}},0,0,{"$error":"#REF!"}]
[{"$nulls":9},"4. Building paper/building wrap",{"$nulls":7},{"$f":"IF(OR(G346=\"x\",J346>0),1,0)*R299","v":{"$error":"#REF!"}},0,0,{"$error":"#REF!"}]
[{"$nulls":9},"5. Window/Sills/Window Trim",{"$nulls":7},{"$f":"IF(OR(G347=\"x\",J347>0),1,0)*R299","v":{"$error":"#REF!"}},0,0,{"$error":"#REF!"}]
[{"$nulls":9},"6. Window Sills/Window Trim",{"$nulls":7},{"$f":"IF(OR(G348=\"x\",J348>0),1,0)*R299","v":{"$error":"#REF!"}},0,0,{"$error":"#REF!"}]
[{"$nulls":9},"7. Exterior caulking/joint sealants",{"$nulls":7},{"$f":"IF(OR(G349=\"x\",J349>0),1,0)*R299","v":{"$error":"#REF!"}},0,0,{"$error":"#REF!"}]
[{"$nulls":9},"8. Siding nails/screws/fasteners",{"$nulls":7},{"$f":"IF(OR(G350=\"x\",J350>0),1,0)*R299","v":{"$error":"#REF!"}},0,0,{"$error":"#REF!"}]
[{"$nulls":17},{"$f":"IF(OR(G351=\"x\",J351>0),1,0)*R299","v":{"$error":"#REF!"}},0,0,{"$error":"#REF!"}]
[{"$nulls":17},{"$f":"IF(OR(G352=\"x\",J352>0),1,0)*R299","v":{"$error":"#REF!"}},0,0,{"$error":"#REF!"}]
[{"$nulls":9},{"$f":"T(#REF!)","v":{"$error":"#REF!"}},{"$f":"#REF!","v":{"$error":"#REF!"}},{"$f":"#REF!","v":{"$error":"#REF!"}},{"$f":"#REF!","v":{"$error":"#REF!"}},{"$f":"#REF!","v":{"$error":"#REF!"}},{"$nulls":3},{"$f":"R342*R299","v":{"$error":"#REF!"}},{"$f":"S342","v":0},{"$f":"T342","v":0},{"$f":"U342","v":{"$error":"#REF!"}}]
[{"$nulls":9},{"$f":"T('2 REPAIR ESTIMATOR'!D357:O357)","v":"DECKING AND PATIOS"},{"$f":"#REF!","v":{"$error":"#REF!"}},{"$f":"#REF!","v":{"$error":"#REF!"}},{"$f":"#REF!","v":{"$error":"#REF!"}},{"$f":"#REF!","v":{"$error":"#REF!"}},{"$nulls":3},{"$f":"IF(SUM(R355:R408)>0,1,0)","v":{"$error":"#REF!"}},{"$f":"SUM(S355:S408)","v":0},{"$f":"SUM(T355:T408)","v":0},{"$f":"SUM(U355:U408)","v":{"$error":"#REF!"}}]
[{"$nulls":9},{"$f":"T('2 REPAIR ESTIMATOR'!D358:O358)","v":"Decking"},{"$f":"'2 REPAIR ESTIMATOR'!P358","v":0},{"$f":"'2 REPAIR ESTIMATOR'!S358","v":0},{"$f":"'2 REPAIR ESTIMATOR'!X358","v":{"v":0,"d":"$0.00"}},{"$f":"'2 REPAIR ESTIMATOR'!AG358","v":0},{"$f":"T('2 REPAIR ESTIMATOR'!AX358)","v":""},{"$f":"T('2 REPAIR ESTIMATOR'!AY358)","v":""},null,{"$f":"IF(OR(G355=\"x\",N355>0),1,0)","v":0},{"$f":"IF(G355=\"x\",1,0)","v":0},{"$f":"IF(H355=\"x\",1,0)","v":0},{"$f":"IF(AND(R355=1,T355<>1),1,0)","v":0}]
[{"$nulls":9},{"$f":"T('2 REPAIR ESTIMATOR'!D359:O359)","v":"Deck bid/allowance"},{"$f":"'2 REPAIR ESTIMATOR'!P359","v":0},{"$f":"'2 REPAIR ESTIMATOR'!S359","v":"ls"},{"$f":"'2 REPAIR ESTIMATOR'!X359","v":{"v":0,"d":"$0.00"}},{"$f":"'2 REPAIR ESTIMATOR'!AG359","v":0},{"$f":"T('2 REPAIR ESTIMATOR'!AX359)","v":""},{"$f":"T('2 REPAIR ESTIMATOR'!AY359)","v":""},null,{"$f":"IF(OR(G356=\"x\",N356>0),1,0)","v":0},{"$f":"IF(G356=\"x\",1,0)","v":0},{"$f":"IF(H356=\"x\",1,0)","v":0},{"$f":"IF(AND(R356=1,T356<>1),1,0)","v":0}]
[{"$nulls":9},{"$f":"T('2 REPAIR ESTIMATOR'!D360:O360)","v":"New deck, columns, joists, railing-treated lumber"},{"$f":"'2 REPAIR ESTIMATOR'!P360","v":0},{"$f":"'2 REPAIR ESTIMATOR'!S360","v":"sf"},{"$f":"'2 REPAIR ESTIMATOR'!X360","v":{"v":5,"d":"$5.00"}},{"$f":"'2 REPAIR ESTIMATOR'!AG360","v":0},{"$f":"T('2 REPAIR ESTIMATOR'!AX360)","v":""},{"$f":"T('2 REPAIR ESTIMATOR'!AY360)","v":""},null,0,0,0,0]
[{"$nulls":9},{"$f":"T('2 REPAIR ESTIMATOR'!D361:O361)","v":"New deck, columns, joists, railing-cedar"},{"$f":"'2 REPAIR ESTIMATOR'!P361","v":0},{"$f":"'2 REPAIR ESTIMATOR'!S361","v":"sf"},{"$f":"'2 REPAIR ESTIMATOR'!X361","v":{"v":9,"d":"$9.00"}},{"$f":"'2 REPAIR ESTIMATOR'!AG361","v":0},{"$f":"T('2 REPAIR ESTIMATOR'!AX361)","v":""},{"$f":"T('2 REPAIR ESTIMATOR'!AY361)","v":""},null,0,0,0,0]
[{"$nulls":9},{"$f":"T('2 REPAIR ESTIMATOR'!D362:O362)","v":"Existing deck, replace decking"},{"$f":"'2 REPAIR ESTIMATOR'!P362","v":150},{"$f":"'2 REPAIR ESTIMATOR'!S362","v":"sf"},{"$f":"'2 REPAIR ESTIMATOR'!X362","v":{"v":2,"d":"$2.00"}},{"$f":"'2 REPAIR ESTIMATOR'!AG362","v":{"v":321,"d":"$321.00"}},{"$f":"T('2 REPAIR ESTIMATOR'!AX362)","v":""},{"$f":"T('2 REPAIR ESTIMATOR'!AY362)","v":""},null,1,0,0,1]
[{"$nulls":9},{"$f":"T('2 REPAIR ESTIMATOR'!D363:O363)","v":"Install railing w/ wood balusters only"},{"$f":"'2 REPAIR ESTIMATOR'!P363","v":0},{"$f":"'2 REPAIR ESTIMATOR'!S363","v":"lf"},{"$f":"'2 REPAIR ESTIMATOR'!X363","v":{"v":15,"d":"$15.00"}},{"$f":"'2 REPAIR ESTIMATOR'!AG363","v":0},{"$f":"T('2 REPAIR ESTIMATOR'!AX363)","v":""},{"$f":"T('2 REPAIR ESTIMATOR'!AY363)","v":""},null,0,0,0,0]
[{"$nulls":9},{"$f":"T('2 REPAIR ESTIMATOR'!D364:O364)","v":"Install railing w/ metal balusters only"},{"$f":"'2 REPAIR ESTIMATOR'!P364","v":0},{"$f":"'2 REPAIR ESTIMATOR'!S364","v":"lf"},{"$f":"'2 REPAIR ESTIMATOR'!X364","v":{"v":25,"d":"$25.00"}},{"$f":"'2 REPAIR ESTIMATOR'!AG364","v":0},{"$f":"T('2 REPAIR ESTIMATOR'!AX364)","v":""},{"$f":"T('2 REPAIR ESTIMATOR'!AY364)","v":""},null,0,0,0,0]
[{"$nulls":9},{"$f":"T('2 REPAIR ESTIMATOR'!D365:O365)","v":"Stairs, 5 to 7 risers"},{"$f":"'2 REPAIR ESTIMATOR'!P365","v":0},{"$f":"'2 REPAIR ESTIMATOR'!S365","v":"ea"},{"$f":"'2 REPAIR ESTIMATOR'!X365","v":{"v":175,"d":"$175.00"}},{"$f":"'2 REPAIR ESTIMATOR'!AG365","v":0},{"$f":"T('2 REPAIR ESTIMATOR'!AX365)","v":""},{"$f":"T('2 REPAIR ESTIMATOR'!AY365)","v":""},null,0,0,0,0]
[{"$nulls":9},{"$f":"T('2 REPAIR ESTIMATOR'!D366:O366)","v":""},{"$f":"'2 REPAIR ESTIMATOR'!P366","v":0},{"$f":"'2 REPAIR ESTIMATOR'!S366","v":0},{"$f":"'2 REPAIR ESTIMATOR'!X366","v":{"v":0,"d":"$0.00"}},{"$f":"'2 REPAIR ESTIMATOR'!AG366","v":0},{"$f":"T('2 REPAIR ESTIMATOR'!AX366)","v":""},{"$f":"T('2 REPAIR ESTIMATOR'!AY366)","v":""},null,0,0,0,0]
[{"$nulls":9},{"$f":"T('2 REPAIR ESTIMATOR'!D367:O367)","v":""},{"$f":"'2 REPAIR ESTIMATOR'!P367","v":0},{"$f":"'2 REPAIR ESTIMATOR'!S367","v":0},{"$f":"'2 REPAIR ESTIMATOR'!X367","v":{"v":0,"d":"$0.00"}},{"$f":"'2 REPAIR ESTIMATOR'!AG367","v":0},{"$f":"T('2 REPAIR ESTIMATOR'!AX367)","v":""},{"$f":"T('2 REPAIR ESTIMATOR'!AY367)","v":""},null,0,0,0,0]
[{"$nulls":9},{"$f":"T('2 REPAIR ESTIMATOR'!D368:O368)","v":"Covered Patio"},{"$f":"'2 REPAIR ESTIMATOR'!P368","v":0},{"$f":"'2 REPAIR ESTIMATOR'!S368","v":0},{"$f":"'2 REPAIR ESTIMATOR'!X368","v":{"v":0,"d":"$0.00"}},{"$f":"'2 REPAIR ESTIMATOR'!AG368","v":0},{"$f":"T('2 REPAIR ESTIMATOR'!AX368)","v":""},{"$f":"T('2 REPAIR ESTIMATOR'!AY368)","v":""},null,0,0,0,0]
[{"$nulls":9},{"$f":"T('2 REPAIR ESTIMATOR'!D369:O369)","v":"Covered Patio bid/allowance"},{"$f":"'2 REPAIR ESTIMATOR'!P369","v":0},{"$f":"'2 REPAIR ESTIMATOR'!S369","v":"ls"},{"$f":"'2 REPAIR ESTIMATOR'!X369","v":{"v":0,"d":"$0.00"}},{"$f":"'2 REPAIR ESTIMATOR'!AG369","v":0},{"$f":"T('2 REPAIR ESTIMATOR'!AX369)","v":""},{"$f":"T('2 REPAIR ESTIMATOR'!AY369)","v":""},null,0,0,0,0]
[{"$nulls":9},{"$f":"T('2 REPAIR ESTIMATOR'!D370:O370)","v":"Covered patio, floor, roof frame, decking, treated"},{"$f":"'2 REPAIR ESTIMATOR'!P370","v":0},{"$f":"'2 REPAIR ESTIMATOR'!S370","v":"sf"},{"$f":"'2 REPAIR ESTIMATOR'!X370","v":{"v":15,"d":"$15.00"}},{"$f":"'2 REPAIR ESTIMATOR'!AG370","v":0},{"$f":"T('2 REPAIR ESTIMATOR'!AX370)","v":""},{"$f":"T('2 REPAIR ESTIMATOR'!AY370)","v":""},null,0,0,0,0]
[{"$nulls":9},{"$f":"T('2 REPAIR ESTIMATOR'!D371:O371)","v":"Install railing w/ wood balusters only"},{"$f":"'2 REPAIR ESTIMATOR'!P371","v":0},{"$f":"'2 REPAIR ESTIMATOR'!S371","v":"lf"},{"$f":"'2 REPAIR ESTIMATOR'!X371","v":{"v":15,"d":"$15.00"}},{"$f":"'2 REPAIR ESTIMATOR'!AG371","v":0},{"$f":"T('2 REPAIR ESTIMATOR'!AX371)","v":""},{"$f":"T('2 REPAIR ESTIMATOR'!AY371)","v":""},null,0,0,0,0]
[{"$nulls":9},{"$f":"T('2 REPAIR ESTIMATOR'!D372:O372)","v":"Install railing w/ metal balusters only"},{"$f":"'2 REPAIR ESTIMATOR'!P372","v":0},{"$f":"'2 REPAIR ESTIMATOR'!S372","v":"lf"},{"$f":"'2 REPAIR ESTIMATOR'!X372","v":{"v":25,"d":"$25.00"}},{"$f":"'2 REPAIR ESTIMATOR'!AG372","v":0},{"$f":"T('2 REPAIR ESTIMATOR'!AX372)","v":""},{"$f":"T('2 REPAIR ESTIMATOR'!AY372)","v":""},null,0,0,0,0]
[{"$nulls":9},{"$f":"T('2 REPAIR ESTIMATOR'!D373:O373)","v":"Stairs, 5 to 7 risers"},{"$f":"'2 REPAIR ESTIMATOR'!P373","v":0},{"$f":"'2 REPAIR ESTIMATOR'!S373","v":"ea"},{"$f":"'2 REPAIR ESTIMATOR'!X373","v":{"v":175,"d":"$175.00"}},{"$f":"'2 REPAIR ESTIMATOR'!AG373","v":0},{"$f":"T('2 REPAIR ESTIMATOR'!AX373)","v":""},{"$f":"T('2 REPAIR ESTIMATOR'!AY373)","v":""},null,0,0,0,0]
[{"$nulls":9},{"$f":"T('2 REPAIR ESTIMATOR'!D374:O374)","v":"Wood board ceiling, tongue and groove"},{"$f":"'2 REPAIR ESTIMATOR'!P374","v":0},{"$f":"'2 REPAIR ESTIMATOR'!S374","v":"sf"},{"$f":"'2 REPAIR ESTIMATOR'!X374","v":{"v":2,"d":"$2.00"}},{"$f":"'2 REPAIR ESTIMATOR'!AG374","v":0},{"$f":"T('2 REPAIR ESTIMATOR'!AX374)","v":""},{"$f":"T('2 REPAIR ESTIMATOR'!AY374)","v":""},null,0,0,0,0]
[{"$nulls":9},{"$f":"T('2 REPAIR ESTIMATOR'!D375:O375)","v":"Insect screening"},{"$f":"'2 REPAIR ESTIMATOR'!P375","v":0},{"$f":"'2 REPAIR ESTIMATOR'!S375","v":"sf"},{"$f":"'2 REPAIR ESTIMATOR'!X375","v":{"v":1.25,"d":"$1.25"}},{"$f":"'2 REPAIR ESTIMATOR'!AG375","v":0},{"$f":"T('2 REPAIR ESTIMATOR'!AX375)","v":""},{"$f":"T('2 REPAIR ESTIMATOR'!AY375)","v":""},null,0,0,0,0]
[{"$nulls":9},{"$f":"T('2 REPAIR ESTIMATOR'!D376:O376)","v":""},{"$f":"'2 REPAIR ESTIMATOR'!P376","v":0},{"$f":"'2 REPAIR ESTIMATOR'!S376","v":0},{"$f":"'2 REPAIR ESTIMATOR'!X376","v":{"v":0,"d":"$0.00"}},{"$f":"'2 REPAIR ESTIMATOR'!AG376","v":0},{"$f":"T('2 REPAIR ESTIMATOR'!AX376)","v":""},{"$f":"T('2 REPAIR ESTIMATOR'!AY376)","v":""},null,0,0,0,0]
[{"$nulls":9},{"$f":"T('2 REPAIR ESTIMATOR'!D377:O377)","v":""},{"$f":"'2 REPAIR ESTIMATOR'!P377","v":0},{"$f":"'2 REPAIR ESTIMATOR'!S377","v":0},{"$f":"'2 REPAIR ESTIMATOR'!X377","v":{"v":0,"d":"$0.00"}},{"$f":"'2 REPAIR ESTIMATOR'!AG377","v":0},{"$f":"T('2 REPAIR ESTIMATOR'!AX377)","v":""},{"$f":"T('2 REPAIR ESTIMATOR'!AY377)","v":""},null,0,0,0,0]
[{"$nulls":9},{"$f":"T('2 REPAIR ESTIMATOR'!D378:O378)","v":""},{"$f":"'2 REPAIR ESTIMATOR'!P378","v":0},{"$f":"'2 REPAIR ESTIMATOR'!S378","v":0},{"$f":"'2 REPAIR ESTIMATOR'!X378","v":{"v":0,"d":"$0.00"}},{"$f":"'2 REPAIR ESTIMATOR'!AG378","v":0},{"$f":"T('2 REPAIR ESTIMATOR'!AX378)","v":""},{"$f":"T('2 REPAIR ESTIMATOR'!AY378)","v":""},null,0,0,0,0]
[{"$nulls":9},{"$f":"T('2 REPAIR ESTIMATOR'!D379:O379)","v":""},{"$f":"'2 REPAIR ESTIMATOR'!P379","v":0},{"$f":"'2 REPAIR ESTIMATOR'!S379","v":0},{"$f":"'2 REPAIR ESTIMATOR'!X379","v":{"v":0,"d":"$0.00"}},{"$f":"'2 REPAIR ESTIMATOR'!AG379","v":0},{"$f":"T('2 REPAIR ESTIMATOR'!AX379)","v":""},{"$f":"T('2 REPAIR ESTIMATOR'!AY379)","v":""},null,0,0,0,0]
[{"$nulls":9},{"$f":"T('2 REPAIR ESTIMATOR'!D380:O380)","v":""},{"$f":"'2 REPAIR ESTIMATOR'!P380","v":0},{"$f":"'2 REPAIR ESTIMATOR'!S380","v":0},{"$f":"'2 REPAIR ESTIMATOR'!X380","v":{"v":0,"d":"$0.00"}},{"$f":"'2 REPAIR ESTIMATOR'!AG380","v":0},{"$f":"T('2 REPAIR ESTIMATOR'!AX380)","v":""},{"$f":"T('2 REPAIR ESTIMATOR'!AY380)","v":""},null,0,0,0,0]
[{"$nulls":9},{"$f":"T('2 REPAIR ESTIMATOR'!D381:O381)","v":""},{"$f":"'2 REPAIR ESTIMATOR'!P381","v":0},{"$f":"'2 REPAIR ESTIMATOR'!S381","v":0},{"$f":"'2 REPAIR ESTIMATOR'!X381","v":{"v":0,"d":"$0.00"}},{"$f":"'2 REPAIR ESTIMATOR'!AG381","v":0},{"$f":"T('2 REPAIR ESTIMATOR'!AX381)","v":""},{"$f":"T('2 REPAIR ESTIMATOR'!AY381)","v":""},null,0,0,0,0]
[{"$nulls":9},{"$f":"T('2 REPAIR ESTIMATOR'!D382:O382)","v":""},{"$f":"'2 REPAIR ESTIMATOR'!P382","v":0},{"$f":"'2 REPAIR ESTIMATOR'!S382","v":0},{"$f":"'2 REPAIR ESTIMATOR'!X382","v":{"v":0,"d":"$0.00"}},{"$f":"'2 REPAIR ESTIMATOR'!AG382","v":0},{"$f":"T('2 REPAIR ESTIMATOR'!AX382)","v":""},{"$f":"T('2 REPAIR ESTIMATOR'!AY382)","v":""},null,0,0,0,0]
[{"$nulls":9},{"$f":"T('2 REPAIR ESTIMATOR'!D383:O383)","v":""},{"$f":"'2 REPAIR ESTIMATOR'!P383","v":0},{"$f":"'2 REPAIR ESTIMATOR'!S383","v":0},{"$f":"'2 REPAIR ESTIMATOR'!X383","v":{"v":0,"d":"$0.00"}},{"$f":"'2 REPAIR ESTIMATOR'!AG383","v":0},{"$f":"T('2 REPAIR ESTIMATOR'!AX383)","v":""},{"$f":"T('2 REPAIR ESTIMATOR'!AY383)","v":""},null,0,0,0,0]
[{"$nulls":9},{"$f":"T('2 REPAIR ESTIMATOR'!D384:O384)","v":""},{"$f":"'2 REPAIR ESTIMATOR'!P384","v":0},{"$f":"'2 REPAIR ESTIMATOR'!S384","v":0},{"$f":"'2 REPAIR ESTIMATOR'!X384","v":{"v":0,"d":"$0.00"}},{"$f":"'2 REPAIR ESTIMATOR'!AG384","v":0},{"$f":"T('2 REPAIR ESTIMATOR'!AX384)","v":""},{"$f":"T('2 REPAIR ESTIMATOR'!AY384)","v":""},null,0,0,0,0]
[{"$nulls":9},{"$f":"T('2 REPAIR ESTIMATOR'!D385:O385)","v":""},{"$f":"'2 REPAIR ESTIMATOR'!P385","v":0},{"$f":"'2 REPAIR ESTIMATOR'!S385","v":0},{"$f":"'2 REPAIR ESTIMATOR'!X385","v":{"v":0,"d":"$0.00"}},{"$f":"'2 REPAIR ESTIMATOR'!AG385","v":0},{"$f":"T('2 REPAIR ESTIMATOR'!AX385)","v":""},{"$f":"T('2 REPAIR ESTIMATOR'!AY385)","v":""},null,0,0,0,0]
[{"$nulls":9},{"$f":"T('2 REPAIR ESTIMATOR'!D386:O386)","v":""},{"$f":"'2 REPAIR ESTIMATOR'!P386","v":0},{"$f":"'2 REPAIR ESTIMATOR'!S386","v":0},{"$f":"'2 REPAIR ESTIMATOR'!X386","v":{"v":0,"d":"$0.00"}},{"$f":"'2 REPAIR ESTIMATOR'!AG386","v":0},{"$f":"T('2 REPAIR ESTIMATOR'!AX386)","v":""},{"$f":"T('2 REPAIR ESTIMATOR'!AY386)","v":""},null,0,0,0,0]
[{"$nulls":9},{"$f":"T('2 REPAIR ESTIMATOR'!D387:O387)","v":""},{"$f":"'2 REPAIR ESTIMATOR'!P387","v":0},{"$f":"'2 REPAIR ESTIMATOR'!S387","v":0},{"$f":"'2 REPAIR ESTIMATOR'!X387","v":{"v":0,"d":"$0.00"}},{"$f":"'2 REPAIR ESTIMATOR'!AG387","v":0},{"$f":"T('2 REPAIR ESTIMATOR'!AX387)","v":""},{"$f":"T('2 REPAIR ESTIMATOR'!AY387)","v":""},null,0,0,0,0]
[{"$nulls":9},{"$f":"T('2 REPAIR ESTIMATOR'!D388:O388)","v":""},{"$f":"'2 REPAIR ESTIMATOR'!P388","v":0},{"$f":"'2 REPAIR ESTIMATOR'!S388","v":0},{"$f":"'2 REPAIR ESTIMATOR'!X388","v":{"v":0,"d":"$0.00"}},{"$f":"'2 REPAIR ESTIMATOR'!AG388","v":0},{"$f":"T('2 REPAIR ESTIMATOR'!AX388)","v":""},{"$f":"T('2 REPAIR ESTIMATOR'!AY388)","v":""},null,0,0,0,0]
[{"$nulls":9},{"$f":"T('2 REPAIR ESTIMATOR'!D389:O389)","v":""},{"$f":"'2 REPAIR ESTIMATOR'!P389","v":0},{"$f":"'2 REPAIR ESTIMATOR'!S389","v":0},{"$f":"'2 REPAIR ESTIMATOR'!X389","v":{"v":0,"d":"$0.00"}},{"$f":"'2 REPAIR ESTIMATOR'!AG389","v":0},{"$f":"T('2 REPAIR ESTIMATOR'!AX389)","v":""},{"$f":"T('2 REPAIR ESTIMATOR'!AY389)","v":""},null,0,0,0,0]
[{"$nulls":9},{"$f":"T('2 REPAIR ESTIMATOR'!D390:O390)","v":""},{"$f":"'2 REPAIR ESTIMATOR'!P390","v":0},{"$f":"'2 REPAIR ESTIMATOR'!S390","v":0},{"$f":"'2 REPAIR ESTIMATOR'!X390","v":{"v":0,"d":"$0.00"}},{"$f":"'2 REPAIR ESTIMATOR'!AG390","v":0},{"$f":"T('2 REPAIR ESTIMATOR'!AX390)","v":""},{"$f":"T('2 REPAIR ESTIMATOR'!AY390)","v":""},null,0,0,0,0]
[{"$nulls":9},{"$f":"T('2 REPAIR ESTIMATOR'!D391:O391)","v":""},{"$f":"'2 REPAIR ESTIMATOR'!P391","v":0},{"$f":"'2 REPAIR ESTIMATOR'!S391","v":0},{"$f":"'2 REPAIR ESTIMATOR'!X391","v":{"v":0,"d":"$0.00"}},{"$f":"'2 REPAIR ESTIMATOR'!AG391","v":0},{"$f":"T('2 REPAIR ESTIMATOR'!AX391)","v":""},{"$f":"T('2 REPAIR ESTIMATOR'!AY391)","v":""},null,0,0,0,0]
[{"$nulls":9},{"$f":"T('2 REPAIR ESTIMATOR'!D392:O392)","v":""},{"$f":"'2 REPAIR ESTIMATOR'!P392","v":0},{"$f":"'2 REPAIR ESTIMATOR'!S392","v":0},{"$f":"'2 REPAIR ESTIMATOR'!X392","v":{"v":0,"d":"$0.00"}},{"$f":"'2 REPAIR ESTIMATOR'!AG392","v":0},{"$f":"T('2 REPAIR ESTIMATOR'!AX392)","v":""},{"$f":"T('2 REPAIR ESTIMATOR'!AY392)","v":""},null,0,0,0,0]
[{"$nulls":9},{"$f":"T('2 REPAIR ESTIMATOR'!D393:O393)","v":""},{"$f":"'2 REPAIR ESTIMATOR'!P393","v":0},{"$f":"'2 REPAIR ESTIMATOR'!S393","v":0},{"$f":"'2 REPAIR ESTIMATOR'!X393","v":{"v":0,"d":"$0.00"}},{"$f":"'2 REPAIR ESTIMATOR'!AG393","v":0},{"$f":"T('2 REPAIR ESTIMATOR'!AX393)","v":""},{"$f":"T('2 REPAIR ESTIMATOR'!AY393)","v":""},null,0,0,0,0]
[{"$nulls":9},{"$f":"T('2 REPAIR ESTIMATOR'!D394:O394)","v":""},{"$f":"'2 REPAIR ESTIMATOR'!P394","v":0},{"$f":"'2 REPAIR ESTIMATOR'!S394","v":0},{"$f":"'2 REPAIR ESTIMATOR'!X394","v":{"v":0,"d":"$0.00"}},{"$f":"'2 REPAIR ESTIMATOR'!AG394","v":0},{"$f":"T('2 REPAIR ESTIMATOR'!AX394)","v":""},{"$f":"T('2 REPAIR ESTIMATOR'!AY394)","v":""},null,0,0,0,0]
[{"$nulls":9},{"$f":"T('2 REPAIR ESTIMATOR'!D395:O395)","v":""},{"$f":"'2 REPAIR ESTIMATOR'!P395","v":0},{"$f":"'2 REPAIR ESTIMATOR'!S395","v":0},{"$f":"'2 REPAIR ESTIMATOR'!X395","v":{"v":0,"d":"$0.00"}},{"$f":"'2 REPAIR ESTIMATOR'!AG395","v":0},{"$f":"T('2 REPAIR ESTIMATOR'!AX395)","v":""},{"$f":"T('2 REPAIR ESTIMATOR'!AY395)","v":""},null,0,0,0,0]
[{"$nulls":9},{"$f":"T('2 REPAIR ESTIMATOR'!D396:O396)","v":""},{"$f":"'2 REPAIR ESTIMATOR'!P396","v":0},{"$f":"'2 REPAIR ESTIMATOR'!S396","v":0},{"$f":"'2 REPAIR ESTIMATOR'!X396","v":{"v":0,"d":"$0.00"}},{"$f":"'2 REPAIR ESTIMATOR'!AG396","v":0},{"$f":"T('2 REPAIR ESTIMATOR'!AX396)","v":""},{"$f":"T('2 REPAIR ESTIMATOR'!AY396)","v":""},null,0,0,0,0]
[{"$nulls":9},{"$f":"T('2 REPAIR ESTIMATOR'!D397:O397)","v":""},{"$f":"'2 REPAIR ESTIMATOR'!P397","v":0},{"$f":"'2 REPAIR ESTIMATOR'!S397","v":0},{"$f":"'2 REPAIR ESTIMATOR'!X397","v":{"v":0,"d":"$0.00"}},{"$f":"'2 REPAIR ESTIMATOR'!AG397","v":0},{"$f":"T('2 REPAIR ESTIMATOR'!AX397)","v":""},{"$f":"T('2 REPAIR ESTIMATOR'!AY397)","v":""},null,0,0,0,0]
[{"$nulls":12},{"$f":"CONCATENATE(J354,\" \",\"TOTAL\")","v":"DECKING AND PATIOS TOTAL"},{"$f":"SUBTOTAL(9,N355:N394)","v":{"v":321,"d":"$321.00"}},{"$nulls":3},{"$f":"SUM(R355:R394)","v":1},{"$f":"SUM(S355:S394)","v":0},{"$f":"SUM(T355:T394)","v":0},{"$f":"SUM(U355:U394)","v":1}]
[{"$nulls":9},{"$f":"T(#REF!)","v":{"$error":"#REF!"}},{"$f":"#REF!","v":{"$error":"#REF!"}},{"$f":"#REF!","v":{"$error":"#REF!"}},{"$f":"#REF!","v":{"$error":"#REF!"}},{"$f":"#REF!","v":{"$error":"#REF!"}},{"$nulls":3},{"$f":"R395","v":1},{"$f":"S395","v":0},{"$f":"T395","v":0},{"$f":"U395","v":1}]
[{"$nulls":9},{"$f":"CONCATENATE(\"MISCELLANEOUS \",J354,\" MATERIAL ITEMS\")","v":"MISCELLANEOUS DECKING AND PATIOS MATERIAL ITEMS"},{"$nulls":4},"Store","SKU #",null,{"$f":"SUM(R398:R407)*R354","v":{"$error":"#REF!"}},{"$f":"SUM(S398:S407)","v":0},{"$f":"SUM(T398:T407)","v":0},{"$f":"SUM(U398:U407)","v":{"$error":"#REF!"}}]
[{"$nulls":9},"1. 2x Lumber for Structural Framing",{"$nulls":7},{"$f":"IF(OR(G398=\"x\",J398>0),1,0)*R354","v":{"$error":"#REF!"}},{"$f":"IF(G398=\"x\",1,0)","v":0},{"$f":"IF(H398=\"x\",1,0)","v":0},{"$f":"IF(AND(R398=1,T398<>1),1,0)","v":{"$error":"#REF!"}}]
[{"$nulls":9},"2. Deck Lumber column/posts",{"$nulls":7},{"$f":"IF(OR(G399=\"x\",J399>0),1,0)*R354","v":{"$error":"#REF!"}},0,0,{"$error":"#REF!"}]
[{"$nulls":9},"3. Decking materials",{"$nulls":7},{"$f":"IF(OR(G400=\"x\",J400>0),1,0)*R354","v":{"$error":"#REF!"}},0,0,{"$error":"#REF!"}]
[{"$nulls":9},"4. Railing balusters",{"$nulls":7},{"$f":"IF(OR(G401=\"x\",J401>0),1,0)*R354","v":{"$error":"#REF!"}},0,0,{"$error":"#REF!"}]
[{"$nulls":9},"5. Deck screws",{"$nulls":7},{"$f":"IF(OR(G402=\"x\",J402>0),1,0)*R354","v":{"$error":"#REF!"}},0,0,{"$error":"#REF!"}]
[{"$nulls":9},"6. Joist hangers",{"$nulls":7},{"$f":"IF(OR(G403=\"x\",J403>0),1,0)*R354","v":{"$error":"#REF!"}},0,0,{"$error":"#REF!"}]
[{"$nulls":9},"7. Carriage bolts for deck ledger board",{"$nulls":7},{"$f":"IF(OR(G404=\"x\",J404>0),1,0)*R354","v":{"$error":"#REF!"}},0,0,{"$error":"#REF!"}]
[{"$nulls":9},"8. Concrete footing materials",{"$nulls":7},{"$f":"IF(OR(G405=\"x\",J405>0),1,0)*R354","v":{"$error":"#REF!"}},0,0,{"$error":"#REF!"}]
[{"$nulls":9},"9. Footing post hangers",{"$nulls":7},{"$f":"IF(OR(G406=\"x\",J406>0),1,0)*R354","v":{"$error":"#REF!"}},0,0,{"$error":"#REF!"}]
[{"$nulls":17},{"$f":"IF(OR(G407=\"x\",J407>0),1,0)*R354","v":{"$error":"#REF!"}},0,0,{"$error":"#REF!"}]
[{"$nulls":9},{"$f":"T(#REF!)","v":{"$error":"#REF!"}},{"$f":"#REF!","v":{"$error":"#REF!"}},{"$f":"#REF!","v":{"$error":"#REF!"}},{"$f":"#REF!","v":{"$error":"#REF!"}},{"$f":"#REF!","v":{"$error":"#REF!"}},{"$nulls":3},{"$f":"R397*R354","v":{"$error":"#REF!"}},{"$f":"S397","v":0},{"$f":"T397","v":0},{"$f":"U397","v":{"$error":"#REF!"}}]
[{"$nulls":9},{"$f":"T('2 REPAIR ESTIMATOR'!D402:O402)","v":"ROOFING"},{"$f":"#REF!","v":{"$error":"#REF!"}},{"$f":"#REF!","v":{"$error":"#REF!"}},{"$f":"#REF!","v":{"$error":"#REF!"}},{"$f":"#REF!","v":{"$error":"#REF!"}},{"$nulls":3},{"$f":"IF(SUM(R410:R463)>0,1,0)","v":{"$error":"#REF!"}},{"$f":"SUM(S410:S463)","v":0},{"$f":"SUM(T410:T463)","v":0},{"$f":"SUM(U410:U463)","v":{"$error":"#REF!"}}]
[{"$nulls":9},{"$f":"T('2 REPAIR ESTIMATOR'!D403:O403)","v":"Roofing bid/allowance"},{"$f":"'2 REPAIR ESTIMATOR'!P403","v":0},{"$f":"'2 REPAIR ESTIMATOR'!S403","v":"ls"},{"$f":"'2 REPAIR ESTIMATOR'!X403","v":{"v":0,"d":"$0.00"}},{"$f":"'2 REPAIR ESTIMATOR'!AG403","v":0},{"$f":"T('2 REPAIR ESTIMATOR'!AX403)","v":""},{"$f":"T('2 REPAIR ESTIMATOR'!AY403)","v":""},null,{"$f":"IF(OR(G410=\"x\",N410>0),1,0)","v":0},{"$f":"IF(G410=\"x\",1,0)","v":0},{"$f":"IF(H410=\"x\",1,0)","v":0},{"$f":"IF(AND(R410=1,T410<>1),1,0)","v":0}]
[{"$nulls":9},{"$f":"T('2 REPAIR ESTIMATOR'!D404:O404)","v":"Asphalt shingle roof"},{"$f":"'2 REPAIR ESTIMATOR'!P404","v":0},{"$f":"'2 REPAIR ESTIMATOR'!S404","v":0},{"$f":"'2 REPAIR ESTIMATOR'!X404","v":{"v":0,"d":"$0.00"}},{"$f":"'2 REPAIR ESTIMATOR'!AG404","v":0},{"$f":"T('2 REPAIR ESTIMATOR'!AX404)","v":""},{"$f":"T('2 REPAIR ESTIMATOR'!AY404)","v":""},null,{"$f":"IF(OR(G411=\"x\",N411>0),1,0)","v":0},{"$f":"IF(G411=\"x\",1,0)","v":0},{"$f":"IF(H411=\"x\",1,0)","v":0},{"$f":"IF(AND(R411=1,T411<>1),1,0)","v":0}]
[{"$nulls":9},{"$f":"T('2 REPAIR ESTIMATOR'!D405:O405)","v":"Roof repair/patch, asphalt"},{"$f":"'2 REPAIR ESTIMATOR'!P405","v":0},{"$f":"'2 REPAIR ESTIMATOR'!S405","v":"ea"},{"$f":"'2 REPAIR ESTIMATOR'!X405","v":{"v":100,"d":"$100.00"}},{"$f":"'2 REPAIR ESTIMATOR'!AG405","v":0},{"$f":"T('2 REPAIR ESTIMATOR'!AX405)","v":""},{"$f":"T('2 REPAIR ESTIMATOR'!AY405)","v":""},null,0,0,0,0]
[{"$nulls":9},{"$f":"T('2 REPAIR ESTIMATOR'!D406:O406)","v":"Roof replacement-demo & replace, 3-tab"},{"$f":"'2 REPAIR ESTIMATOR'!P406","v":0},{"$f":"'2 REPAIR ESTIMATOR'!S406","v":"sq"},{"$f":"'2 REPAIR ESTIMATOR'!X406","v":{"v":95,"d":"$95.00"}},{"$f":"'2 REPAIR ESTIMATOR'!AG406","v":0},{"$f":"T('2 REPAIR ESTIMATOR'!AX406)","v":""},{"$f":"T('2 REPAIR ESTIMATOR'!AY406)","v":""},null,0,0,0,0]
[{"$nulls":9},{"$f":"T('2 REPAIR ESTIMATOR'!D407:O407)","v":"Roof replacement-demo & replace, architectural"},{"$f":"'2 REPAIR ESTIMATOR'!P407","v":20},{"$f":"'2 REPAIR ESTIMATOR'!S407","v":"sq"},{"$f":"'2 REPAIR ESTIMATOR'!X407","v":{"v":115,"d":"$115.00"}},{"$f":"'2 REPAIR ESTIMATOR'!AG407","v":{"v":2461,"d":"$2,461.00"}},{"$f":"T('2 REPAIR ESTIMATOR'!AX407)","v":""},{"$f":"T('2 REPAIR ESTIMATOR'!AY407)","v":""},null,1,0,0,1]
[{"$nulls":9},{"$f":"T('2 REPAIR ESTIMATOR'!D408:O408)","v":"Premium for 3 layer tear off"},{"$f":"'2 REPAIR ESTIMATOR'!P408","v":0},{"$f":"'2 REPAIR ESTIMATOR'!S408","v":"sq"},{"$f":"'2 REPAIR ESTIMATOR'!X408","v":{"v":0,"d":"$0.00"}},{"$f":"'2 REPAIR ESTIMATOR'!AG408","v":0},{"$f":"T('2 REPAIR ESTIMATOR'!AX408)","v":""},{"$f":"T('2 REPAIR ESTIMATOR'!AY408)","v":""},null,0,0,0,0]
[{"$nulls":9},{"$f":"T('2 REPAIR ESTIMATOR'!D409:O409)","v":"Premium for steep pitch roof"},{"$f":"'2 REPAIR ESTIMATOR'!P409","v":0},{"$f":"'2 REPAIR ESTIMATOR'!S409","v":"sq"},{"$f":"'2 REPAIR ESTIMATOR'!X409","v":{"v":0,"d":"$0.00"}},{"$f":"'2 REPAIR ESTIMATOR'!AG409","v":0},{"$f":"T('2 REPAIR ESTIMATOR'!AX409)","v":""},{"$f":"T('2 REPAIR ESTIMATOR'!AY409)","v":""},null,0,0,0,0]
[{"$nulls":9},{"$f":"T('2 REPAIR ESTIMATOR'!D410:O410)","v":""},{"$f":"'2 REPAIR ESTIMATOR'!P410","v":0},{"$f":"'2 REPAIR ESTIMATOR'!S410","v":0},{"$f":"'2 REPAIR ESTIMATOR'!X410","v":{"v":0,"d":"$0.00"}},{"$f":"'2 REPAIR ESTIMATOR'!AG410","v":0},{"$f":"T('2 REPAIR ESTIMATOR'!AX410)","v":""},{"$f":"T('2 REPAIR ESTIMATOR'!AY410)","v":""},null,0,0,0,0]
[{"$nulls":9},{"$f":"T('2 REPAIR ESTIMATOR'!D411:O411)","v":"Wood Shingle Roof"},{"$f":"'2 REPAIR ESTIMATOR'!P411","v":0},{"$f":"'2 REPAIR ESTIMATOR'!S411","v":0},{"$f":"'2 REPAIR ESTIMATOR'!X411","v":{"v":0,"d":"$0.00"}},{"$f":"'2 REPAIR ESTIMATOR'!AG411","v":0},{"$f":"T('2 REPAIR ESTIMATOR'!AX411)","v":""},{"$f":"T('2 REPAIR ESTIMATOR'!AY411)","v":""},null,0,0,0,0]
[{"$nulls":9},{"$f":"T('2 REPAIR ESTIMATOR'!D412:O412)","v":"Roof repair/patch, wood"},{"$f":"'2 REPAIR ESTIMATOR'!P412","v":0},{"$f":"'2 REPAIR ESTIMATOR'!S412","v":"ea"},{"$f":"'2 REPAIR ESTIMATOR'!X412","v":{"v":100,"d":"$100.00"}},{"$f":"'2 REPAIR ESTIMATOR'!AG412","v":0},{"$f":"T('2 REPAIR ESTIMATOR'!AX412)","v":""},{"$f":"T('2 REPAIR ESTIMATOR'!AY412)","v":""},null,0,0,0,0]
[{"$nulls":9},{"$f":"T('2 REPAIR ESTIMATOR'!D413:O413)","v":"Roof replacement-demo & replace, 3-tab"},{"$f":"'2 REPAIR ESTIMATOR'!P413","v":0},{"$f":"'2 REPAIR ESTIMATOR'!S413","v":"sq"},{"$f":"'2 REPAIR ESTIMATOR'!X413","v":{"v":50,"d":"$50.00"}},{"$f":"'2 REPAIR ESTIMATOR'!AG413","v":0},{"$f":"T('2 REPAIR ESTIMATOR'!AX413)","v":""},{"$f":"T('2 REPAIR ESTIMATOR'!AY413)","v":""},null,0,0,0,0]
[{"$nulls":9},{"$f":"T('2 REPAIR ESTIMATOR'!D414:O414)","v":"Wood shingle, low end"},{"$f":"'2 REPAIR ESTIMATOR'!P414","v":0},{"$f":"'2 REPAIR ESTIMATOR'!S414","v":"sq"},{"$f":"'2 REPAIR ESTIMATOR'!X414","v":{"v":175,"d":"$175.00"}},{"$f":"'2 REPAIR ESTIMATOR'!AG414","v":0},{"$f":"T('2 REPAIR ESTIMATOR'!AX414)","v":""},{"$f":"T('2 REPAIR ESTIMATOR'!AY414)","v":""},null,0,0,0,0]
[{"$nulls":9},{"$f":"T('2 REPAIR ESTIMATOR'!D415:O415)","v":"Wood shingle, high end"},{"$f":"'2 REPAIR ESTIMATOR'!P415","v":0},{"$f":"'2 REPAIR ESTIMATOR'!S415","v":"sq"},{"$f":"'2 REPAIR ESTIMATOR'!X415","v":{"v":350,"d":"$350.00"}},{"$f":"'2 REPAIR ESTIMATOR'!AG415","v":0},{"$f":"T('2 REPAIR ESTIMATOR'!AX415)","v":""},{"$f":"T('2 REPAIR ESTIMATOR'!AY415)","v":""},null,0,0,0,0]
[{"$nulls":9},{"$f":"T('2 REPAIR ESTIMATOR'!D416:O416)","v":"Roof sheathing, plywood 1/2\", remove & install"},{"$f":"'2 REPAIR ESTIMATOR'!P416","v":0},{"$f":"'2 REPAIR ESTIMATOR'!S416","v":"sheet"},{"$f":"'2 REPAIR ESTIMATOR'!X416","v":{"v":25,"d":"$25.00"}},{"$f":"'2 REPAIR ESTIMATOR'!AG416","v":0},{"$f":"T('2 REPAIR ESTIMATOR'!AX416)","v":""},{"$f":"T('2 REPAIR ESTIMATOR'!AY416)","v":""},null,0,0,0,0]
[{"$nulls":9},{"$f":"T('2 REPAIR ESTIMATOR'!D417:O417)","v":""},{"$f":"'2 REPAIR ESTIMATOR'!P417","v":0},{"$f":"'2 REPAIR ESTIMATOR'!S417","v":0},{"$f":"'2 REPAIR ESTIMATOR'!X417","v":{"v":0,"d":"$0.00"}},{"$f":"'2 REPAIR ESTIMATOR'!AG417","v":0},{"$f":"T('2 REPAIR ESTIMATOR'!AX417)","v":""},{"$f":"T('2 REPAIR ESTIMATOR'!AY417)","v":""},null,0,0,0,0]
[{"$nulls":9},{"$f":"T('2 REPAIR ESTIMATOR'!D418:O418)","v":"Slate/Clay Tile"},{"$f":"'2 REPAIR ESTIMATOR'!P418","v":0},{"$f":"'2 REPAIR ESTIMATOR'!S418","v":0},{"$f":"'2 REPAIR ESTIMATOR'!X418","v":{"v":0,"d":"$0.00"}},{"$f":"'2 REPAIR ESTIMATOR'!AG418","v":0},{"$f":"T('2 REPAIR ESTIMATOR'!AX418)","v":""},{"$f":"T('2 REPAIR ESTIMATOR'!AY418)","v":""},null,0,0,0,0]
[{"$nulls":9},{"$f":"T('2 REPAIR ESTIMATOR'!D419:O419)","v":"Roof replacement-demo & replace, slate"},{"$f":"'2 REPAIR ESTIMATOR'!P419","v":0},{"$f":"'2 REPAIR ESTIMATOR'!S419","v":"sq"},{"$f":"'2 REPAIR ESTIMATOR'!X419","v":{"v":500,"d":"$500.00"}},{"$f":"'2 REPAIR ESTIMATOR'!AG419","v":0},{"$f":"T('2 REPAIR ESTIMATOR'!AX419)","v":""},{"$f":"T('2 REPAIR ESTIMATOR'!AY419)","v":""},null,0,0,0,0]
[{"$nulls":9},{"$f":"T('2 REPAIR ESTIMATOR'!D420:O420)","v":""},{"$f":"'2 REPAIR ESTIMATOR'!P420","v":0},{"$f":"'2 REPAIR ESTIMATOR'!S420","v":0},{"$f":"'2 REPAIR ESTIMATOR'!X420","v":{"v":0,"d":"$0.00"}},{"$f":"'2 REPAIR ESTIMATOR'!AG420","v":0},{"$f":"T('2 REPAIR ESTIMATOR'!AX420)","v":""},{"$f":"T('2 REPAIR ESTIMATOR'!AY420)","v":""},null,0,0,0,0]
[{"$nulls":9},{"$f":"T('2 REPAIR ESTIMATOR'!D421:O421)","v":"Gutters & downspouts, aluminum"},{"$f":"'2 REPAIR ESTIMATOR'!P421","v":0},{"$f":"'2 REPAIR ESTIMATOR'!S421","v":"lf"},{"$f":"'2 REPAIR ESTIMATOR'!X421","v":{"v":3,"d":"$3.00"}},{"$f":"'2 REPAIR ESTIMATOR'!AG421","v":0},{"$f":"T('2 REPAIR ESTIMATOR'!AX421)","v":""},{"$f":"T('2 REPAIR ESTIMATOR'!AY421)","v":""},null,0,0,0,0]
[{"$nulls":9},{"$f":"T('2 REPAIR ESTIMATOR'!D422:O422)","v":"Clean gutters & downspouts"},{"$f":"'2 REPAIR ESTIMATOR'!P422","v":0},{"$f":"'2 REPAIR ESTIMATOR'!S422","v":"hrs"},{"$f":"'2 REPAIR ESTIMATOR'!X422","v":{"v":0,"d":"$0.00"}},{"$f":"'2 REPAIR ESTIMATOR'!AG422","v":0},{"$f":"T('2 REPAIR ESTIMATOR'!AX422)","v":""},{"$f":"T('2 REPAIR ESTIMATOR'!AY422)","v":""},null,0,0,0,0]
[{"$nulls":9},{"$f":"T('2 REPAIR ESTIMATOR'!D423:O423)","v":""},{"$f":"'2 REPAIR ESTIMATOR'!P423","v":0},{"$f":"'2 REPAIR ESTIMATOR'!S423","v":0},{"$f":"'2 REPAIR ESTIMATOR'!X423","v":{"v":0,"d":"$0.00"}},{"$f":"'2 REPAIR ESTIMATOR'!AG423","v":0},{"$f":"T('2 REPAIR ESTIMATOR'!AX423)","v":""},{"$f":"T('2 REPAIR ESTIMATOR'!AY423)","v":""},null,0,0,0,0]
[{"$nulls":9},{"$f":"T('2 REPAIR ESTIMATOR'!D424:O424)","v":""},{"$f":"'2 REPAIR ESTIMATOR'!P424","v":0},{"$f":"'2 REPAIR ESTIMATOR'!S424","v":0},{"$f":"'2 REPAIR ESTIMATOR'!X424","v":{"v":0,"d":"$0.00"}},{"$f":"'2 REPAIR ESTIMATOR'!AG424","v":0},{"$f":"T('2 REPAIR ESTIMATOR'!AX424)","v":""},{"$f":"T('2 REPAIR ESTIMATOR'!AY424)","v":""},null,0,0,0,0]
[{"$nulls":9},{"$f":"T('2 REPAIR ESTIMATOR'!D425:O425)","v":""},{"$f":"'2 REPAIR ESTIMATOR'!P425","v":0},{"$f":"'2 REPAIR ESTIMATOR'!S425","v":0},{"$f":"'2 REPAIR ESTIMATOR'!X425","v":{"v":0,"d":"$0.00"}},{"$f":"'2 REPAIR ESTIMATOR'!AG425","v":0},{"$f":"T('2 REPAIR ESTIMATOR'!AX425)","v":""},{"$f":"T('2 REPAIR ESTIMATOR'!AY425)","v":""},null,0,0,0,0]
[{"$nulls":9},{"$f":"T('2 REPAIR ESTIMATOR'!D426:O426)","v":""},{"$f":"'2 REPAIR ESTIMATOR'!P426","v":0},{"$f":"'2 REPAIR ESTIMATOR'!S426","v":0},{"$f":"'2 REPAIR ESTIMATOR'!X426","v":{"v":0,"d":"$0.00"}},{"$f":"'2 REPAIR ESTIMATOR'!AG426","v":0},{"$f":"T('2 REPAIR ESTIMATOR'!AX426)","v":""},{"$f":"T('2 REPAIR ESTIMATOR'!AY426)","v":""},null,0,0,0,0]
[{"$nulls":9},{"$f":"T('2 REPAIR ESTIMATOR'!D427:O427)","v":""},{"$f":"'2 REPAIR ESTIMATOR'!P427","v":0},{"$f":"'2 REPAIR ESTIMATOR'!S427","v":0},{"$f":"'2 REPAIR ESTIMATOR'!X427","v":{"v":0,"d":"$0.00"}},{"$f":"'2 REPAIR ESTIMATOR'!AG427","v":0},{"$f":"T('2 REPAIR ESTIMATOR'!AX427)","v":""},{"$f":"T('2 REPAIR ESTIMATOR'!AY427)","v":""},null,0,0,0,0]
[{"$nulls":9},{"$f":"T('2 REPAIR ESTIMATOR'!D428:O428)","v":""},{"$f":"'2 REPAIR ESTIMATOR'!P428","v":0},{"$f":"'2 REPAIR ESTIMATOR'!S428","v":0},{"$f":"'2 REPAIR ESTIMATOR'!X428","v":{"v":0,"d":"$0.00"}},{"$f":"'2 REPAIR ESTIMATOR'!AG428","v":0},{"$f":"T('2 REPAIR ESTIMATOR'!AX428)","v":""},{"$f":"T('2 REPAIR ESTIMATOR'!AY428)","v":""},null,0,0,0,0]
[{"$nulls":9},{"$f":"T('2 REPAIR ESTIMATOR'!D429:O429)","v":""},{"$f":"'2 REPAIR ESTIMATOR'!P429","v":0},{"$f":"'2 REPAIR ESTIMATOR'!S429","v":0},{"$f":"'2 REPAIR ESTIMATOR'!X429","v":{"v":0,"d":"$0.00"}},{"$f":"'2 REPAIR ESTIMATOR'!AG429","v":0},{"$f":"T('2 REPAIR ESTIMATOR'!AX429)","v":""},{"$f":"T('2 REPAIR ESTIMATOR'!AY429)","v":""},null,0,0,0,0]
[{"$nulls":9},{"$f":"T('2 REPAIR ESTIMATOR'!D430:O430)","v":""},{"$f":"'2 REPAIR ESTIMATOR'!P430","v":0},{"$f":"'2 REPAIR ESTIMATOR'!S430","v":0},{"$f":"'2 REPAIR ESTIMATOR'!X430","v":{"v":0,"d":"$0.00"}},{"$f":"'2 REPAIR ESTIMATOR'!AG430","v":0},{"$f":"T('2 REPAIR ESTIMATOR'!AX430)","v":""},{"$f":"T('2 REPAIR ESTIMATOR'!AY430)","v":""},null,0,0,0,0]
[{"$nulls":9},{"$f":"T('2 REPAIR ESTIMATOR'!D431:O431)","v":""},{"$f":"'2 REPAIR ESTIMATOR'!P431","v":0},{"$f":"'2 REPAIR ESTIMATOR'!S431","v":0},{"$f":"'2 REPAIR ESTIMATOR'!X431","v":{"v":0,"d":"$0.00"}},{"$f":"'2 REPAIR ESTIMATOR'!AG431","v":0},{"$f":"T('2 REPAIR ESTIMATOR'!AX431)","v":""},{"$f":"T('2 REPAIR ESTIMATOR'!AY431)","v":""},null,0,0,0,0]
[{"$nulls":9},{"$f":"T('2 REPAIR ESTIMATOR'!D432:O432)","v":""},{"$f":"'2 REPAIR ESTIMATOR'!P432","v":0},{"$f":"'2 REPAIR ESTIMATOR'!S432","v":0},{"$f":"'2 REPAIR ESTIMATOR'!X432","v":{"v":0,"d":"$0.00"}},{"$f":"'2 REPAIR ESTIMATOR'!AG432","v":0},{"$f":"T('2 REPAIR ESTIMATOR'!AX432)","v":""},{"$f":"T('2 REPAIR ESTIMATOR'!AY432)","v":""},null,0,0,0,0]
[{"$nulls":9},{"$f":"T('2 REPAIR ESTIMATOR'!D433:O433)","v":""},{"$f":"'2 REPAIR ESTIMATOR'!P433","v":0},{"$f":"'2 REPAIR ESTIMATOR'!S433","v":0},{"$f":"'2 REPAIR ESTIMATOR'!X433","v":{"v":0,"d":"$0.00"}},{"$f":"'2 REPAIR ESTIMATOR'!AG433","v":0},{"$f":"T('2 REPAIR ESTIMATOR'!AX433)","v":""},{"$f":"T('2 REPAIR ESTIMATOR'!AY433)","v":""},null,0,0,0,0]
[{"$nulls":9},{"$f":"T('2 REPAIR ESTIMATOR'!D434:O434)","v":""},{"$f":"'2 REPAIR ESTIMATOR'!P434","v":0},{"$f":"'2 REPAIR ESTIMATOR'!S434","v":0},{"$f":"'2 REPAIR ESTIMATOR'!X434","v":{"v":0,"d":"$0.00"}},{"$f":"'2 REPAIR ESTIMATOR'!AG434","v":0},{"$f":"T('2 REPAIR ESTIMATOR'!AX434)","v":""},{"$f":"T('2 REPAIR ESTIMATOR'!AY434)","v":""},null,0,0,0,0]
[{"$nulls":9},{"$f":"T('2 REPAIR ESTIMATOR'!D435:O435)","v":""},{"$f":"'2 REPAIR ESTIMATOR'!P435","v":0},{"$f":"'2 REPAIR ESTIMATOR'!S435","v":0},{"$f":"'2 REPAIR ESTIMATOR'!X435","v":{"v":0,"d":"$0.00"}},{"$f":"'2 REPAIR ESTIMATOR'!AG435","v":0},{"$f":"T('2 REPAIR ESTIMATOR'!AX435)","v":""},{"$f":"T('2 REPAIR ESTIMATOR'!AY435)","v":""},null,0,0,0,0]
[{"$nulls":9},{"$f":"T('2 REPAIR ESTIMATOR'!D436:O436)","v":""},{"$f":"'2 REPAIR ESTIMATOR'!P436","v":0},{"$f":"'2 REPAIR ESTIMATOR'!S436","v":0},{"$f":"'2 REPAIR ESTIMATOR'!X436","v":{"v":0,"d":"$0.00"}},{"$f":"'2 REPAIR ESTIMATOR'!AG436","v":0},{"$f":"T('2 REPAIR ESTIMATOR'!AX436)","v":""},{"$f":"T('2 REPAIR ESTIMATOR'!AY436)","v":""},null,0,0,0,0]
[{"$nulls":9},{"$f":"T('2 REPAIR ESTIMATOR'!D437:O437)","v":""},{"$f":"'2 REPAIR ESTIMATOR'!P437","v":0},{"$f":"'2 REPAIR ESTIMATOR'!S437","v":0},{"$f":"'2 REPAIR ESTIMATOR'!X437","v":{"v":0,"d":"$0.00"}},{"$f":"'2 REPAIR ESTIMATOR'!AG437","v":0},{"$f":"T('2 REPAIR ESTIMATOR'!AX437)","v":""},{"$f":"T('2 REPAIR ESTIMATOR'!AY437)","v":""},null,0,0,0,0]
[{"$nulls":9},{"$f":"T('2 REPAIR ESTIMATOR'!D438:O438)","v":""},{"$f":"'2 REPAIR ESTIMATOR'!P438","v":0},{"$f":"'2 REPAIR ESTIMATOR'!S438","v":0},{"$f":"'2 REPAIR ESTIMATOR'!X438","v":{"v":0,"d":"$0.00"}},{"$f":"'2 REPAIR ESTIMATOR'!AG438","v":0},{"$f":"T('2 REPAIR ESTIMATOR'!AX438)","v":""},{"$f":"T('2 REPAIR ESTIMATOR'!AY438)","v":""},null,0,0,0,0]
[{"$nulls":9},{"$f":"T('2 REPAIR ESTIMATOR'!D439:O439)","v":""},{"$f":"'2 REPAIR ESTIMATOR'!P439","v":0},{"$f":"'2 REPAIR ESTIMATOR'!S439","v":0},{"$f":"'2 REPAIR ESTIMATOR'!X439","v":{"v":0,"d":"$0.00"}},{"$f":"'2 REPAIR ESTIMATOR'!AG439","v":0},{"$f":"T('2 REPAIR ESTIMATOR'!AX439)","v":""},{"$f":"T('2 REPAIR ESTIMATOR'!AY439)","v":""},null,0,0,0,0]
[{"$nulls":9},{"$f":"T('2 REPAIR ESTIMATOR'!D440:O440)","v":""},{"$f":"'2 REPAIR ESTIMATOR'!P440","v":0},{"$f":"'2 REPAIR ESTIMATOR'!S440","v":0},{"$f":"'2 REPAIR ESTIMATOR'!X440","v":{"v":0,"d":"$0.00"}},{"$f":"'2 REPAIR ESTIMATOR'!AG440","v":0},{"$f":"T('2 REPAIR ESTIMATOR'!AX440)","v":""},{"$f":"T('2 REPAIR ESTIMATOR'!AY440)","v":""},null,0,0,0,0]
[{"$nulls":9},{"$f":"T('2 REPAIR ESTIMATOR'!D441:O441)","v":""},{"$f":"'2 REPAIR ESTIMATOR'!P441","v":0},{"$f":"'2 REPAIR ESTIMATOR'!S441","v":0},{"$f":"'2 REPAIR ESTIMATOR'!X441","v":{"v":0,"d":"$0.00"}},{"$f":"'2 REPAIR ESTIMATOR'!AG441","v":0},{"$f":"T('2 REPAIR ESTIMATOR'!AX441)","v":""},{"$f":"T('2 REPAIR ESTIMATOR'!AY441)","v":""},null,0,0,0,0]
[{"$nulls":9},{"$f":"T('2 REPAIR ESTIMATOR'!D442:O442)","v":""},{"$f":"'2 REPAIR ESTIMATOR'!P442","v":0},{"$f":"'2 REPAIR ESTIMATOR'!S442","v":0},{"$f":"'2 REPAIR ESTIMATOR'!X442","v":{"v":0,"d":"$0.00"}},{"$f":"'2 REPAIR ESTIMATOR'!AG442","v":0},{"$f":"T('2 REPAIR ESTIMATOR'!AX442)","v":""},{"$f":"T('2 REPAIR ESTIMATOR'!AY442)","v":""},null,0,0,0,0]
[{"$nulls":12},{"$f":"CONCATENATE(J409,\" \",\"TOTAL\")","v":"ROOFING TOTAL"},{"$f":"SUBTOTAL(9,N410:N449)","v":{"v":2461,"d":"$2,461.00"}},{"$nulls":3},{"$f":"SUM(R410:R449)","v":1},{"$f":"SUM(S410:S449)","v":0},{"$f":"SUM(T410:T449)","v":0},{"$f":"SUM(U410:U449)","v":1}]
[{"$nulls":9},{"$f":"T(#REF!)","v":{"$error":"#REF!"}},{"$f":"#REF!","v":{"$error":"#REF!"}},{"$f":"#REF!","v":{"$error":"#REF!"}},{"$f":"#REF!","v":{"$error":"#REF!"}},{"$f":"#REF!","v":{"$error":"#REF!"}},{"$nulls":3},{"$f":"R450","v":1},{"$f":"S450","v":0},{"$f":"T450","v":0},{"$f":"U450","v":1}]
[{"$nulls":9},{"$f":"CONCATENATE(\"MISCELLANEOUS \",J409,\" MATERIAL ITEMS\")","v":"MISCELLANEOUS ROOFING MATERIAL ITEMS"},{"$nulls":4},"Store","SKU #",null,{"$f":"SUM(R453:R462)*R409","v":{"$error":"#REF!"}},{"$f":"SUM(S453:S462)","v":0},{"$f":"SUM(T453:T462)","v":0},{"$f":"SUM(U453:U462)","v":{"$error":"#REF!"}}]
[{"$nulls":9},"1. Roof shingle materials",{"$nulls":7},{"$f":"IF(OR(G453=\"x\",J453>0),1,0)*R409","v":{"$error":"#REF!"}},{"$f":"IF(G453=\"x\",1,0)","v":0},{"$f":"IF(H453=\"x\",1,0)","v":0},{"$f":"IF(AND(R453=1,T453<>1),1,0)","v":{"$error":"#REF!"}}]
[{"$nulls":9},"2. Roof hip and ridge shingles",{"$nulls":7},{"$f":"IF(OR(G454=\"x\",J454>0),1,0)*R409","v":{"$error":"#REF!"}},0,0,{"$error":"#REF!"}]
[{"$nulls":9},"3. Roof flashings",{"$nulls":7},{"$f":"IF(OR(G455=\"x\",J455>0),1,0)*R409","v":{"$error":"#REF!"}},0,0,{"$error":"#REF!"}]
[{"$nulls":9},"4. Roof felt underlayment materials",{"$nulls":7},{"$f":"IF(OR(G456=\"x\",J456>0),1,0)*R409","v":{"$error":"#REF!"}},0,0,{"$error":"#REF!"}]
[{"$nulls":9},"5. Roof vent couplings",{"$nulls":7},{"$f":"IF(OR(G457=\"x\",J457>0),1,0)*R409","v":{"$error":"#REF!"}},0,0,{"$error":"#REF!"}]
[{"$nulls":9},"6. Roofing nails/fasteners",{"$nulls":7},{"$f":"IF(OR(G458=\"x\",J458>0),1,0)*R409","v":{"$error":"#REF!"}},0,0,{"$error":"#REF!"}]
[{"$nulls":9},"7. Roof plywood sheathing",{"$nulls":7},{"$f":"IF(OR(G459=\"x\",J459>0),1,0)*R409","v":{"$error":"#REF!"}},0,0,{"$error":"#REF!"}]
[{"$nulls":17},{"$f":"IF(OR(G460=\"x\",J460>0),1,0)*R409","v":{"$error":"#REF!"}},0,0,{"$error":"#REF!"}]
[{"$nulls":17},{"$f":"IF(OR(G461=\"x\",J461>0),1,0)*R409","v":{"$error":"#REF!"}},0,0,{"$error":"#REF!"}]
[{"$nulls":17},{"$f":"IF(OR(G462=\"x\",J462>0),1,0)*R409","v":{"$error":"#REF!"}},0,0,{"$error":"#REF!"}]
[{"$nulls":9},{"$f":"T(#REF!)","v":{"$error":"#REF!"}},{"$f":"#REF!","v":{"$error":"#REF!"}},{"$f":"#REF!","v":{"$error":"#REF!"}},{"$f":"#REF!","v":{"$error":"#REF!"}},{"$f":"#REF!","v":{"$error":"#REF!"}},{"$nulls":3},{"$f":"R452*R409","v":{"$error":"#REF!"}},{"$f":"S452","v":0},{"$f":"T452","v":0},{"$f":"U452","v":{"$error":"#REF!"}}]
[{"$nulls":9},{"$f":"T('2 REPAIR ESTIMATOR'!D447:O447)","v":"EXTERIOR DOORS & WINDOWS"},{"$f":"#REF!","v":{"$error":"#REF!"}},{"$f":"#REF!","v":{"$error":"#REF!"}},{"$f":"#REF!","v":{"$error":"#REF!"}},{"$f":"#REF!","v":{"$error":"#REF!"}},{"$nulls":3},{"$f":"IF(SUM(R465:R518)>0,1,0)","v":{"$error":"#REF!"}},{"$f":"SUM(S465:S518)","v":0},{"$f":"SUM(T465:T518)","v":0},{"$f":"SUM(U465:U518)","v":{"$error":"#REF!"}}]
[{"$nulls":9},{"$f":"T('2 REPAIR ESTIMATOR'!D448:O448)","v":"Exterior Doors"},{"$f":"'2 REPAIR ESTIMATOR'!P448","v":0},{"$f":"'2 REPAIR ESTIMATOR'!S448","v":0},{"$f":"'2 REPAIR ESTIMATOR'!X448","v":{"v":0,"d":"$0.00"}},{"$f":"'2 REPAIR ESTIMATOR'!AG448","v":0},{"$f":"T('2 REPAIR ESTIMATOR'!AX448)","v":""},{"$f":"T('2 REPAIR ESTIMATOR'!AY448)","v":""},null,{"$f":"IF(OR(G465=\"x\",N465>0),1,0)","v":0},{"$f":"IF(G465=\"x\",1,0)","v":0},{"$f":"IF(H465=\"x\",1,0)","v":0},{"$f":"IF(AND(R465=1,T465<>1),1,0)","v":0}]
[{"$nulls":9},{"$f":"T('2 REPAIR ESTIMATOR'!D449:O449)","v":"Exterior doors bid/allowance"},{"$f":"'2 REPAIR ESTIMATOR'!P449","v":0},{"$f":"'2 REPAIR ESTIMATOR'!S449","v":"ls"},{"$f":"'2 REPAIR ESTIMATOR'!X449","v":{"v":0,"d":"$0.00"}},{"$f":"'2 REPAIR ESTIMATOR'!AG449","v":0},{"$f":"T('2 REPAIR ESTIMATOR'!AX449)","v":""},{"$f":"T('2 REPAIR ESTIMATOR'!AY449)","v":""},null,{"$f":"IF(OR(G466=\"x\",N466>0),1,0)","v":0},{"$f":"IF(G466=\"x\",1,0)","v":0},{"$f":"IF(H466=\"x\",1,0)","v":0},{"$f":"IF(AND(R466=1,T466<>1),1,0)","v":0}]
[{"$nulls":9},{"$f":"T('2 REPAIR ESTIMATOR'!D450:O450)","v":"Steel entry door,  single"},{"$f":"'2 REPAIR ESTIMATOR'!P450","v":3},{"$f":"'2 REPAIR ESTIMATOR'!S450","v":"ea"},{"$f":"'2 REPAIR ESTIMATOR'!X450","v":{"v":250,"d":"$250.00"}},{"$f":"'2 REPAIR ESTIMATOR'!AG450","v":{"v":802.5,"d":"$802.50"}},{"$f":"T('2 REPAIR ESTIMATOR'!AX450)","v":""},{"$f":"T('2 REPAIR ESTIMATOR'!AY450)","v":""},null,1,0,0,1]
[{"$nulls":9},{"$f":"T('2 REPAIR ESTIMATOR'!D451:O451)","v":"French patio door, pair"},{"$f":"'2 REPAIR ESTIMATOR'!P451","v":0},{"$f":"'2 REPAIR ESTIMATOR'!S451","v":"ea"},{"$f":"'2 REPAIR ESTIMATOR'!X451","v":{"v":500,"d":"$500.00"}},{"$f":"'2 REPAIR ESTIMATOR'!AG451","v":0},{"$f":"T('2 REPAIR ESTIMATOR'!AX451)","v":""},{"$f":"T('2 REPAIR ESTIMATOR'!AY451)","v":""},null,0,0,0,0]
[{"$nulls":9},{"$f":"T('2 REPAIR ESTIMATOR'!D452:O452)","v":"Exterior door hardware w/ dead bolt "},{"$f":"'2 REPAIR ESTIMATOR'!P452","v":3},{"$f":"'2 REPAIR ESTIMATOR'!S452","v":"ea"},{"$f":"'2 REPAIR ESTIMATOR'!X452","v":{"v":25,"d":"$25.00"}},{"$f":"'2 REPAIR ESTIMATOR'!AG452","v":{"v":80.25,"d":"$80.25"}},{"$f":"T('2 REPAIR ESTIMATOR'!AX452)","v":""},{"$f":"T('2 REPAIR ESTIMATOR'!AY452)","v":""},null,1,0,0,1]
[{"$nulls":9},{"$f":"T('2 REPAIR ESTIMATOR'!D453:O453)","v":"Glass storm door, single"},{"$f":"'2 REPAIR ESTIMATOR'!P453","v":1},{"$f":"'2 REPAIR ESTIMATOR'!S453","v":"ea"},{"$f":"'2 REPAIR ESTIMATOR'!X453","v":{"v":250,"d":"$250.00"}},{"$f":"'2 REPAIR ESTIMATOR'!AG453","v":{"v":267.5,"d":"$267.50"}},{"$f":"T('2 REPAIR ESTIMATOR'!AX453)","v":""},{"$f":"T('2 REPAIR ESTIMATOR'!AY453)","v":""},null,1,0,0,1]
[{"$nulls":9},{"$f":"T('2 REPAIR ESTIMATOR'!D454:O454)","v":"Sliding glass door, vinyl, double"},{"$f":"'2 REPAIR ESTIMATOR'!P454","v":0},{"$f":"'2 REPAIR ESTIMATOR'!S454","v":"ea"},{"$f":"'2 REPAIR ESTIMATOR'!X454","v":{"v":500,"d":"$500.00"}},{"$f":"'2 REPAIR ESTIMATOR'!AG454","v":0},{"$f":"T('2 REPAIR ESTIMATOR'!AX454)","v":""},{"$f":"T('2 REPAIR ESTIMATOR'!AY454)","v":""},null,0,0,0,0]
[{"$nulls":9},{"$f":"T('2 REPAIR ESTIMATOR'!D455:O455)","v":""},{"$f":"'2 REPAIR ESTIMATOR'!P455","v":0},{"$f":"'2 REPAIR ESTIMATOR'!S455","v":0},{"$f":"'2 REPAIR ESTIMATOR'!X455","v":{"v":0,"d":"$0.00"}},{"$f":"'2 REPAIR ESTIMATOR'!AG455","v":0},{"$f":"T('2 REPAIR ESTIMATOR'!AX455)","v":""},{"$f":"T('2 REPAIR ESTIMATOR'!AY455)","v":""},null,0,0,0,0]
[{"$nulls":9},{"$f":"T('2 REPAIR ESTIMATOR'!D456:O456)","v":""},{"$f":"'2 REPAIR ESTIMATOR'!P456","v":0},{"$f":"'2 REPAIR ESTIMATOR'!S456","v":0},{"$f":"'2 REPAIR ESTIMATOR'!X456","v":{"v":0,"d":"$0.00"}},{"$f":"'2 REPAIR ESTIMATOR'!AG456","v":0},{"$f":"T('2 REPAIR ESTIMATOR'!AX456)","v":""},{"$f":"T('2 REPAIR ESTIMATOR'!AY456)","v":""},null,0,0,0,0]
[{"$nulls":9},{"$f":"T('2 REPAIR ESTIMATOR'!D457:O457)","v":"Windows"},{"$f":"'2 REPAIR ESTIMATOR'!P457","v":0},{"$f":"'2 REPAIR ESTIMATOR'!S457","v":0},{"$f":"'2 REPAIR ESTIMATOR'!X457","v":{"v":0,"d":"$0.00"}},{"$f":"'2 REPAIR ESTIMATOR'!AG457","v":0},{"$f":"T('2 REPAIR ESTIMATOR'!AX457)","v":""},{"$f":"T('2 REPAIR ESTIMATOR'!AY457)","v":""},null,0,0,0,0]
[{"$nulls":9},{"$f":"T('2 REPAIR ESTIMATOR'!D458:O458)","v":"New windows, vinyl, average size"},{"$f":"'2 REPAIR ESTIMATOR'!P458","v":11},{"$f":"'2 REPAIR ESTIMATOR'!S458","v":"ea"},{"$f":"'2 REPAIR ESTIMATOR'!X458","v":{"v":175,"d":"$175.00"}},{"$f":"'2 REPAIR ESTIMATOR'!AG458","v":{"v":2059.75,"d":"$2,059.75"}},{"$f":"T('2 REPAIR ESTIMATOR'!AX458)","v":""},{"$f":"T('2 REPAIR ESTIMATOR'!AY458)","v":""},null,1,0,0,1]
[{"$nulls":9},{"$f":"T('2 REPAIR ESTIMATOR'!D459:O459)","v":"Replacement windows, vinyl, average size"},{"$f":"'2 REPAIR ESTIMATOR'!P459","v":0},{"$f":"'2 REPAIR ESTIMATOR'!S459","v":"ea"},{"$f":"'2 REPAIR ESTIMATOR'!X459","v":{"v":175,"d":"$175.00"}},{"$f":"'2 REPAIR ESTIMATOR'!AG459","v":0},{"$f":"T('2 REPAIR ESTIMATOR'!AX459)","v":""},{"$f":"T('2 REPAIR ESTIMATOR'!AY459)","v":""},null,0,0,0,0]
[{"$nulls":9},{"$f":"T('2 REPAIR ESTIMATOR'!D460:O460)","v":"Wood windows, average size"},{"$f":"'2 REPAIR ESTIMATOR'!P460","v":0},{"$f":"'2 REPAIR ESTIMATOR'!S460","v":"ea"},{"$f":"'2 REPAIR ESTIMATOR'!X460","v":{"v":350,"d":"$350.00"}},{"$f":"'2 REPAIR ESTIMATOR'!AG460","v":0},{"$f":"T('2 REPAIR ESTIMATOR'!AX460)","v":""},{"$f":"T('2 REPAIR ESTIMATOR'!AY460)","v":""},null,0,0,0,0]
[{"$nulls":9},{"$f":"T('2 REPAIR ESTIMATOR'!D461:O461)","v":"Replace broken window pane"},{"$f":"'2 REPAIR ESTIMATOR'!P461","v":0},{"$f":"'2 REPAIR ESTIMATOR'!S461","v":"ea"},{"$f":"'2 REPAIR ESTIMATOR'!X461","v":{"v":50,"d":"$50.00"}},{"$f":"'2 REPAIR ESTIMATOR'!AG461","v":0},{"$f":"T('2 REPAIR ESTIMATOR'!AX461)","v":""},{"$f":"T('2 REPAIR ESTIMATOR'!AY461)","v":""},null,0,0,0,0]
[{"$nulls":9},{"$f":"T('2 REPAIR ESTIMATOR'!D462:O462)","v":"Replace broken screens"},{"$f":"'2 REPAIR ESTIMATOR'!P462","v":0},{"$f":"'2 REPAIR ESTIMATOR'!S462","v":"ea"},{"$f":"'2 REPAIR ESTIMATOR'!X462","v":{"v":50,"d":"$50.00"}},{"$f":"'2 REPAIR ESTIMATOR'!AG462","v":0},{"$f":"T('2 REPAIR ESTIMATOR'!AX462)","v":""},{"$f":"T('2 REPAIR ESTIMATOR'!AY462)","v":""},null,0,0,0,0]
[{"$nulls":9},{"$f":"T('2 REPAIR ESTIMATOR'!D463:O463)","v":"Repair broken screens"},{"$f":"'2 REPAIR ESTIMATOR'!P463","v":0},{"$f":"'2 REPAIR ESTIMATOR'!S463","v":"ea"},{"$f":"'2 REPAIR ESTIMATOR'!X463","v":{"v":12,"d":"$12.00"}},{"$f":"'2 REPAIR ESTIMATOR'!AG463","v":0},{"$f":"T('2 REPAIR ESTIMATOR'!AX463)","v":""},{"$f":"T('2 REPAIR ESTIMATOR'!AY463)","v":""},null,0,0,0,0]
[{"$nulls":9},{"$f":"T('2 REPAIR ESTIMATOR'!D464:O464)","v":"Skylight, 3x3, fixed"},{"$f":"'2 REPAIR ESTIMATOR'!P464","v":0},{"$f":"'2 REPAIR ESTIMATOR'!S464","v":"ea"},{"$f":"'2 REPAIR ESTIMATOR'!X464","v":{"v":300,"d":"$300.00"}},{"$f":"'2 REPAIR ESTIMATOR'!AG464","v":0},{"$f":"T('2 REPAIR ESTIMATOR'!AX464)","v":""},{"$f":"T('2 REPAIR ESTIMATOR'!AY464)","v":""},null,0,0,0,0]
[{"$nulls":9},{"$f":"T('2 REPAIR ESTIMATOR'!D465:O465)","v":"Skylight, operable"},{"$f":"'2 REPAIR ESTIMATOR'!P465","v":0},{"$f":"'2 REPAIR ESTIMATOR'!S465","v":"ea"},{"$f":"'2 REPAIR ESTIMATOR'!X465","v":{"v":400,"d":"$400.00"}},{"$f":"'2 REPAIR ESTIMATOR'!AG465","v":0},{"$f":"T('2 REPAIR ESTIMATOR'!AX465)","v":""},{"$f":"T('2 REPAIR ESTIMATOR'!AY465)","v":""},null,0,0,0,0]
[{"$nulls":9},{"$f":"T('2 REPAIR ESTIMATOR'!D466:O466)","v":""},{"$f":"'2 REPAIR ESTIMATOR'!P466","v":0},{"$f":"'2 REPAIR ESTIMATOR'!S466","v":0},{"$f":"'2 REPAIR ESTIMATOR'!X466","v":{"v":0,"d":"$0.00"}},{"$f":"'2 REPAIR ESTIMATOR'!AG466","v":0},{"$f":"T('2 REPAIR ESTIMATOR'!AX466)","v":""},{"$f":"T('2 REPAIR ESTIMATOR'!AY466)","v":""},null,0,0,0,0]
[{"$nulls":9},{"$f":"T('2 REPAIR ESTIMATOR'!D467:O467)","v":""},{"$f":"'2 REPAIR ESTIMATOR'!P467","v":0},{"$f":"'2 REPAIR ESTIMATOR'!S467","v":0},{"$f":"'2 REPAIR ESTIMATOR'!X467","v":{"v":0,"d":"$0.00"}},{"$f":"'2 REPAIR ESTIMATOR'!AG467","v":0},{"$f":"T('2 REPAIR ESTIMATOR'!AX467)","v":""},{"$f":"T('2 REPAIR ESTIMATOR'!AY467)","v":""},null,0,0,0,0]
[{"$nulls":9},{"$f":"T('2 REPAIR ESTIMATOR'!D468:O468)","v":""},{"$f":"'2 REPAIR ESTIMATOR'!P468","v":0},{"$f":"'2 REPAIR ESTIMATOR'!S468","v":0},{"$f":"'2 REPAIR ESTIMATOR'!X468","v":{"v":0,"d":"$0.00"}},{"$f":"'2 REPAIR ESTIMATOR'!AG468","v":0},{"$f":"T('2 REPAIR ESTIMATOR'!AX468)","v":""},{"$f":"T('2 REPAIR ESTIMATOR'!AY468)","v":""},null,0,0,0,0]
[{"$nulls":9},{"$f":"T('2 REPAIR ESTIMATOR'!D469:O469)","v":""},{"$f":"'2 REPAIR ESTIMATOR'!P469","v":0},{"$f":"'2 REPAIR ESTIMATOR'!S469","v":0},{"$f":"'2 REPAIR ESTIMATOR'!X469","v":{"v":0,"d":"$0.00"}},{"$f":"'2 REPAIR ESTIMATOR'!AG469","v":0},{"$f":"T('2 REPAIR ESTIMATOR'!AX469)","v":""},{"$f":"T('2 REPAIR ESTIMATOR'!AY469)","v":""},null,0,0,0,0]
[{"$nulls":9},{"$f":"T('2 REPAIR ESTIMATOR'!D470:O470)","v":""},{"$f":"'2 REPAIR ESTIMATOR'!P470","v":0},{"$f":"'2 REPAIR ESTIMATOR'!S470","v":0},{"$f":"'2 REPAIR ESTIMATOR'!X470","v":{"v":0,"d":"$0.00"}},{"$f":"'2 REPAIR ESTIMATOR'!AG470","v":0},{"$f":"T('2 REPAIR ESTIMATOR'!AX470)","v":""},{"$f":"T('2 REPAIR ESTIMATOR'!AY470)","v":""},null,0,0,0,0]
[{"$nulls":9},{"$f":"T('2 REPAIR ESTIMATOR'!D471:O471)","v":""},{"$f":"'2 REPAIR ESTIMATOR'!P471","v":0},{"$f":"'2 REPAIR ESTIMATOR'!S471","v":0},{"$f":"'2 REPAIR ESTIMATOR'!X471","v":{"v":0,"d":"$0.00"}},{"$f":"'2 REPAIR ESTIMATOR'!AG471","v":0},{"$f":"T('2 REPAIR ESTIMATOR'!AX471)","v":""},{"$f":"T('2 REPAIR ESTIMATOR'!AY471)","v":""},null,0,0,0,0]
[{"$nulls":9},{"$f":"T('2 REPAIR ESTIMATOR'!D472:O472)","v":""},{"$f":"'2 REPAIR ESTIMATOR'!P472","v":0},{"$f":"'2 REPAIR ESTIMATOR'!S472","v":0},{"$f":"'2 REPAIR ESTIMATOR'!X472","v":{"v":0,"d":"$0.00"}},{"$f":"'2 REPAIR ESTIMATOR'!AG472","v":0},{"$f":"T('2 REPAIR ESTIMATOR'!AX472)","v":""},{"$f":"T('2 REPAIR ESTIMATOR'!AY472)","v":""},null,0,0,0,0]
[{"$nulls":9},{"$f":"T('2 REPAIR ESTIMATOR'!D473:O473)","v":""},{"$f":"'2 REPAIR ESTIMATOR'!P473","v":0},{"$f":"'2 REPAIR ESTIMATOR'!S473","v":0},{"$f":"'2 REPAIR ESTIMATOR'!X473","v":{"v":0,"d":"$0.00"}},{"$f":"'2 REPAIR ESTIMATOR'!AG473","v":0},{"$f":"T('2 REPAIR ESTIMATOR'!AX473)","v":""},{"$f":"T('2 REPAIR ESTIMATOR'!AY473)","v":""},null,0,0,0,0]
[{"$nulls":9},{"$f":"T('2 REPAIR ESTIMATOR'!D474:O474)","v":""},{"$f":"'2 REPAIR ESTIMATOR'!P474","v":0},{"$f":"'2 REPAIR ESTIMATOR'!S474","v":0},{"$f":"'2 REPAIR ESTIMATOR'!X474","v":{"v":0,"d":"$0.00"}},{"$f":"'2 REPAIR ESTIMATOR'!AG474","v":0},{"$f":"T('2 REPAIR ESTIMATOR'!AX474)","v":""},{"$f":"T('2 REPAIR ESTIMATOR'!AY474)","v":""},null,0,0,0,0]
[{"$nulls":9},{"$f":"T('2 REPAIR ESTIMATOR'!D475:O475)","v":""},{"$f":"'2 REPAIR ESTIMATOR'!P475","v":0},{"$f":"'2 REPAIR ESTIMATOR'!S475","v":0},{"$f":"'2 REPAIR ESTIMATOR'!X475","v":{"v":0,"d":"$0.00"}},{"$f":"'2 REPAIR ESTIMATOR'!AG475","v":0},{"$f":"T('2 REPAIR ESTIMATOR'!AX475)","v":""},{"$f":"T('2 REPAIR ESTIMATOR'!AY475)","v":""},null,0,0,0,0]
[{"$nulls":9},{"$f":"T('2 REPAIR ESTIMATOR'!D476:O476)","v":""},{"$f":"'2 REPAIR ESTIMATOR'!P476","v":0},{"$f":"'2 REPAIR ESTIMATOR'!S476","v":0},{"$f":"'2 REPAIR ESTIMATOR'!X476","v":{"v":0,"d":"$0.00"}},{"$f":"'2 REPAIR ESTIMATOR'!AG476","v":0},{"$f":"T('2 REPAIR ESTIMATOR'!AX476)","v":""},{"$f":"T('2 REPAIR ESTIMATOR'!AY476)","v":""},null,0,0,0,0]
[{"$nulls":9},{"$f":"T('2 REPAIR ESTIMATOR'!D477:O477)","v":""},{"$f":"'2 REPAIR ESTIMATOR'!P477","v":0},{"$f":"'2 REPAIR ESTIMATOR'!S477","v":0},{"$f":"'2 REPAIR ESTIMATOR'!X477","v":{"v":0,"d":"$0.00"}},{"$f":"'2 REPAIR ESTIMATOR'!AG477","v":0},{"$f":"T('2 REPAIR ESTIMATOR'!AX477)","v":""},{"$f":"T('2 REPAIR ESTIMATOR'!AY477)","v":""},null,0,0,0,0]
[{"$nulls":9},{"$f":"T('2 REPAIR ESTIMATOR'!D478:O478)","v":""},{"$f":"'2 REPAIR ESTIMATOR'!P478","v":0},{"$f":"'2 REPAIR ESTIMATOR'!S478","v":0},{"$f":"'2 REPAIR ESTIMATOR'!X478","v":{"v":0,"d":"$0.00"}},{"$f":"'2 REPAIR ESTIMATOR'!AG478","v":0},{"$f":"T('2 REPAIR ESTIMATOR'!AX478)","v":""},{"$f":"T('2 REPAIR ESTIMATOR'!AY478)","v":""},null,0,0,0,0]
[{"$nulls":9},{"$f":"T('2 REPAIR ESTIMATOR'!D479:O479)","v":""},{"$f":"'2 REPAIR ESTIMATOR'!P479","v":0},{"$f":"'2 REPAIR ESTIMATOR'!S479","v":0},{"$f":"'2 REPAIR ESTIMATOR'!X479","v":{"v":0,"d":"$0.00"}},{"$f":"'2 REPAIR ESTIMATOR'!AG479","v":0},{"$f":"T('2 REPAIR ESTIMATOR'!AX479)","v":""},{"$f":"T('2 REPAIR ESTIMATOR'!AY479)","v":""},null,0,0,0,0]
[{"$nulls":9},{"$f":"T('2 REPAIR ESTIMATOR'!D480:O480)","v":""},{"$f":"'2 REPAIR ESTIMATOR'!P480","v":0},{"$f":"'2 REPAIR ESTIMATOR'!S480","v":0},{"$f":"'2 REPAIR ESTIMATOR'!X480","v":{"v":0,"d":"$0.00"}},{"$f":"'2 REPAIR ESTIMATOR'!AG480","v":0},{"$f":"T('2 REPAIR ESTIMATOR'!AX480)","v":""},{"$f":"T('2 REPAIR ESTIMATOR'!AY480)","v":""},null,0,0,0,0]
[{"$nulls":9},{"$f":"T('2 REPAIR ESTIMATOR'!D481:O481)","v":""},{"$f":"'2 REPAIR ESTIMATOR'!P481","v":0},{"$f":"'2 REPAIR ESTIMATOR'!S481","v":0},{"$f":"'2 REPAIR ESTIMATOR'!X481","v":{"v":0,"d":"$0.00"}},{"$f":"'2 REPAIR ESTIMATOR'!AG481","v":0},{"$f":"T('2 REPAIR ESTIMATOR'!AX481)","v":""},{"$f":"T('2 REPAIR ESTIMATOR'!AY481)","v":""},null,0,0,0,0]
[{"$nulls":9},{"$f":"T('2 REPAIR ESTIMATOR'!D482:O482)","v":""},{"$f":"'2 REPAIR ESTIMATOR'!P482","v":0},{"$f":"'2 REPAIR ESTIMATOR'!S482","v":0},{"$f":"'2 REPAIR ESTIMATOR'!X482","v":{"v":0,"d":"$0.00"}},{"$f":"'2 REPAIR ESTIMATOR'!AG482","v":0},{"$f":"T('2 REPAIR ESTIMATOR'!AX482)","v":""},{"$f":"T('2 REPAIR ESTIMATOR'!AY482)","v":""},null,0,0,0,0]
[{"$nulls":9},{"$f":"T('2 REPAIR ESTIMATOR'!D483:O483)","v":""},{"$f":"'2 REPAIR ESTIMATOR'!P483","v":0},{"$f":"'2 REPAIR ESTIMATOR'!S483","v":0},{"$f":"'2 REPAIR ESTIMATOR'!X483","v":{"v":0,"d":"$0.00"}},{"$f":"'2 REPAIR ESTIMATOR'!AG483","v":0},{"$f":"T('2 REPAIR ESTIMATOR'!AX483)","v":""},{"$f":"T('2 REPAIR ESTIMATOR'!AY483)","v":""},null,0,0,0,0]
[{"$nulls":9},{"$f":"T('2 REPAIR ESTIMATOR'!D484:O484)","v":""},{"$f":"'2 REPAIR ESTIMATOR'!P484","v":0},{"$f":"'2 REPAIR ESTIMATOR'!S484","v":0},{"$f":"'2 REPAIR ESTIMATOR'!X484","v":{"v":0,"d":"$0.00"}},{"$f":"'2 REPAIR ESTIMATOR'!AG484","v":0},{"$f":"T('2 REPAIR ESTIMATOR'!AX484)","v":""},{"$f":"T('2 REPAIR ESTIMATOR'!AY484)","v":""},null,0,0,0,0]
[{"$nulls":9},{"$f":"T('2 REPAIR ESTIMATOR'!D485:O485)","v":""},{"$f":"'2 REPAIR ESTIMATOR'!P485","v":0},{"$f":"'2 REPAIR ESTIMATOR'!S485","v":0},{"$f":"'2 REPAIR ESTIMATOR'!X485","v":{"v":0,"d":"$0.00"}},{"$f":"'2 REPAIR ESTIMATOR'!AG485","v":0},{"$f":"T('2 REPAIR ESTIMATOR'!AX485)","v":""},{"$f":"T('2 REPAIR ESTIMATOR'!AY485)","v":""},null,0,0,0,0]
[{"$nulls":9},{"$f":"T('2 REPAIR ESTIMATOR'!D486:O486)","v":""},{"$f":"'2 REPAIR ESTIMATOR'!P486","v":0},{"$f":"'2 REPAIR ESTIMATOR'!S486","v":0},{"$f":"'2 REPAIR ESTIMATOR'!X486","v":{"v":0,"d":"$0.00"}},{"$f":"'2 REPAIR ESTIMATOR'!AG486","v":0},{"$f":"T('2 REPAIR ESTIMATOR'!AX486)","v":""},{"$f":"T('2 REPAIR ESTIMATOR'!AY486)","v":""},null,0,0,0,0]
[{"$nulls":9},{"$f":"T('2 REPAIR ESTIMATOR'!D487:O487)","v":""},{"$f":"'2 REPAIR ESTIMATOR'!P487","v":0},{"$f":"'2 REPAIR ESTIMATOR'!S487","v":0},{"$f":"'2 REPAIR ESTIMATOR'!X487","v":{"v":0,"d":"$0.00"}},{"$f":"'2 REPAIR ESTIMATOR'!AG487","v":0},{"$f":"T('2 REPAIR ESTIMATOR'!AX487)","v":""},{"$f":"T('2 REPAIR ESTIMATOR'!AY487)","v":""},null,0,0,0,0]
[{"$nulls":12},{"$f":"CONCATENATE(J464,\" \",\"TOTAL\")","v":"EXTERIOR DOORS & WINDOWS TOTAL"},{"$f":"SUBTOTAL(9,N465:N504)","v":{"v":3210,"d":"$3,210.00"}},{"$nulls":3},{"$f":"SUM(R465:R504)","v":4},{"$f":"SUM(S465:S504)","v":0},{"$f":"SUM(T465:T504)","v":0},{"$f":"SUM(U465:U504)","v":4}]
[{"$nulls":9},{"$f":"T(#REF!)","v":{"$error":"#REF!"}},{"$f":"#REF!","v":{"$error":"#REF!"}},{"$f":"#REF!","v":{"$error":"#REF!"}},{"$f":"#REF!","v":{"$error":"#REF!"}},{"$f":"#REF!","v":{"$error":"#REF!"}},{"$nulls":3},{"$f":"R505","v":4},{"$f":"S505","v":0},{"$f":"T505","v":0},{"$f":"U505","v":4}]
[{"$nulls":9},{"$f":"CONCATENATE(\"MISCELLANEOUS \",J464,\" MATERIAL ITEMS\")","v":"MISCELLANEOUS EXTERIOR DOORS & WINDOWS MATERIAL ITEMS"},{"$nulls":4},"Store","SKU #",null,{"$f":"SUM(R508:R517)*R464","v":{"$error":"#REF!"}},{"$f":"SUM(S508:S517)","v":0},{"$f":"SUM(T508:T517)","v":0},{"$f":"SUM(U508:U517)","v":{"$error":"#REF!"}}]
[{"$nulls":9},"1. Door and window materials",{"$nulls":7},{"$f":"IF(OR(G508=\"x\",J508>0),1,0)*R464","v":{"$error":"#REF!"}},{"$f":"IF(G508=\"x\",1,0)","v":0},{"$f":"IF(H508=\"x\",1,0)","v":0},{"$f":"IF(AND(R508=1,T508<>1),1,0)","v":{"$error":"#REF!"}}]
[{"$nulls":9},"2. Door and window trim (exterior)",{"$nulls":7},{"$f":"IF(OR(G509=\"x\",J509>0),1,0)*R464","v":{"$error":"#REF!"}},0,0,{"$error":"#REF!"}]
[{"$nulls":9},"3. Door and window trim (interior)",{"$nulls":7},{"$f":"IF(OR(G510=\"x\",J510>0),1,0)*R464","v":{"$error":"#REF!"}},0,0,{"$error":"#REF!"}]
[{"$nulls":9},"4. Door and window flashings",{"$nulls":7},{"$f":"IF(OR(G511=\"x\",J511>0),1,0)*R464","v":{"$error":"#REF!"}},0,0,{"$error":"#REF!"}]
[{"$nulls":9},"5. Caulking/joint sealants",{"$nulls":7},{"$f":"IF(OR(G512=\"x\",J512>0),1,0)*R464","v":{"$error":"#REF!"}},0,0,{"$error":"#REF!"}]
[{"$nulls":9},"6. Wood shims",{"$nulls":7},{"$f":"IF(OR(G513=\"x\",J513>0),1,0)*R464","v":{"$error":"#REF!"}},0,0,{"$error":"#REF!"}]
[{"$nulls":9},"7. Screws/nails/fasteners",{"$nulls":7},{"$f":"IF(OR(G514=\"x\",J514>0),1,0)*R464","v":{"$error":"#REF!"}},0,0,{"$error":"#REF!"}]
[{"$nulls":17},{"$f":"IF(OR(G515=\"x\",J515>0),1,0)*R464","v":{"$error":"#REF!"}},0,0,{"$error":"#REF!"}]
[{"$nulls":17},{"$f":"IF(OR(G516=\"x\",J516>0),1,0)*R464","v":{"$error":"#REF!"}},0,0,{"$error":"#REF!"}]
[{"$nulls":17},{"$f":"IF(OR(G517=\"x\",J517>0),1,0)*R464","v":{"$error":"#REF!"}},0,0,{"$error":"#REF!"}]
[{"$nulls":9},{"$f":"T(#REF!)","v":{"$error":"#REF!"}},{"$f":"#REF!","v":{"$error":"#REF!"}},{"$f":"#REF!","v":{"$error":"#REF!"}},{"$f":"#REF!","v":{"$error":"#REF!"}},{"$f":"#REF!","v":{"$error":"#REF!"}},{"$nulls":3},{"$f":"R507*R464","v":{"$error":"#REF!"}},{"$f":"S507","v":0},{"$f":"T507","v":0},{"$f":"U507","v":{"$error":"#REF!"}}]
[{"$nulls":9},{"$f":"T('2 REPAIR ESTIMATOR'!D492:O492)","v":"GARAGE DOORS"},{"$f":"#REF!","v":{"$error":"#REF!"}},{"$f":"#REF!","v":{"$error":"#REF!"}},{"$f":"#REF!","v":{"$error":"#REF!"}},{"$f":"#REF!","v":{"$error":"#REF!"}},{"$nulls":3},{"$f":"IF(SUM(R520:R573)>0,1,0)","v":{"$error":"#REF!"}},{"$f":"SUM(S520:S573)","v":0},{"$f":"SUM(T520:T573)","v":0},{"$f":"SUM(U520:U573)","v":{"$error":"#REF!"}}]
[{"$nulls":9},{"$f":"T('2 REPAIR ESTIMATOR'!D493:O493)","v":"Garage Doors Bid/Allowance"},{"$f":"'2 REPAIR ESTIMATOR'!P493","v":0},{"$f":"'2 REPAIR ESTIMATOR'!S493","v":"ls"},{"$f":"'2 REPAIR ESTIMATOR'!X493","v":{"v":0,"d":"$0.00"}},{"$f":"'2 REPAIR ESTIMATOR'!AG493","v":0},{"$f":"T('2 REPAIR ESTIMATOR'!AX493)","v":""},{"$f":"T('2 REPAIR ESTIMATOR'!AY493)","v":""},null,{"$f":"IF(OR(G520=\"x\",N520>0),1,0)","v":0},{"$f":"IF(G520=\"x\",1,0)","v":0},{"$f":"IF(H520=\"x\",1,0)","v":0},{"$f":"IF(AND(R520=1,T520<>1),1,0)","v":0}]
[{"$nulls":9},{"$f":"T('2 REPAIR ESTIMATOR'!D494:O494)","v":"Garage Doors Only- 9'x7'  door, manual"},{"$f":"'2 REPAIR ESTIMATOR'!P494","v":0},{"$f":"'2 REPAIR ESTIMATOR'!S494","v":"ea"},{"$f":"'2 REPAIR ESTIMATOR'!X494","v":{"v":450,"d":"$450.00"}},{"$f":"'2 REPAIR ESTIMATOR'!AG494","v":0},{"$f":"T('2 REPAIR ESTIMATOR'!AX494)","v":""},{"$f":"T('2 REPAIR ESTIMATOR'!AY494)","v":""},null,{"$f":"IF(OR(G521=\"x\",N521>0),1,0)","v":0},{"$f":"IF(G521=\"x\",1,0)","v":0},{"$f":"IF(H521=\"x\",1,0)","v":0},{"$f":"IF(AND(R521=1,T521<>1),1,0)","v":0}]
[{"$nulls":9},{"$f":"T('2 REPAIR ESTIMATOR'!D495:O495)","v":"Garage Doors Only- 16' door, manual"},{"$f":"'2 REPAIR ESTIMATOR'!P495","v":1},{"$f":"'2 REPAIR ESTIMATOR'!S495","v":"ea"},{"$f":"'2 REPAIR ESTIMATOR'!X495","v":{"v":750,"d":"$750.00"}},{"$f":"'2 REPAIR ESTIMATOR'!AG495","v":{"v":802.5,"d":"$802.50"}},{"$f":"T('2 REPAIR ESTIMATOR'!AX495)","v":""},{"$f":"T('2 REPAIR ESTIMATOR'!AY495)","v":""},null,1,0,0,1]
[{"$nulls":9},{"$f":"T('2 REPAIR ESTIMATOR'!D496:O496)","v":"Garage Door Operator only"},{"$f":"'2 REPAIR ESTIMATOR'!P496","v":1},{"$f":"'2 REPAIR ESTIMATOR'!S496","v":"ea"},{"$f":"'2 REPAIR ESTIMATOR'!X496","v":{"v":150,"d":"$150.00"}},{"$f":"'2 REPAIR ESTIMATOR'!AG496","v":{"v":160.5,"d":"$160.50"}},{"$f":"T('2 REPAIR ESTIMATOR'!AX496)","v":""},{"$f":"T('2 REPAIR ESTIMATOR'!AY496)","v":""},null,1,0,0,1]
[{"$nulls":9},{"$f":"T('2 REPAIR ESTIMATOR'!D497:O497)","v":"Replace springs for garage door"},{"$f":"'2 REPAIR ESTIMATOR'!P497","v":0},{"$f":"'2 REPAIR ESTIMATOR'!S497","v":"ea"},{"$f":"'2 REPAIR ESTIMATOR'!X497","v":{"v":50,"d":"$50.00"}},{"$f":"'2 REPAIR ESTIMATOR'!AG497","v":0},{"$f":"T('2 REPAIR ESTIMATOR'!AX497)","v":""},{"$f":"T('2 REPAIR ESTIMATOR'!AY497)","v":""},null,0,0,0,0]
[{"$nulls":9},{"$f":"T('2 REPAIR ESTIMATOR'!D498:O498)","v":""},{"$f":"'2 REPAIR ESTIMATOR'!P498","v":0},{"$f":"'2 REPAIR ESTIMATOR'!S498","v":0},{"$f":"'2 REPAIR ESTIMATOR'!X498","v":{"v":0,"d":"$0.00"}},{"$f":"'2 REPAIR ESTIMATOR'!AG498","v":0},{"$f":"T('2 REPAIR ESTIMATOR'!AX498)","v":""},{"$f":"T('2 REPAIR ESTIMATOR'!AY498)","v":""},null,0,0,0,0]
[{"$nulls":9},{"$f":"T('2 REPAIR ESTIMATOR'!D499:O499)","v":""},{"$f":"'2 REPAIR ESTIMATOR'!P499","v":0},{"$f":"'2 REPAIR ESTIMATOR'!S499","v":0},{"$f":"'2 REPAIR ESTIMATOR'!X499","v":{"v":0,"d":"$0.00"}},{"$f":"'2 REPAIR ESTIMATOR'!AG499","v":0},{"$f":"T('2 REPAIR ESTIMATOR'!AX499)","v":""},{"$f":"T('2 REPAIR ESTIMATOR'!AY499)","v":""},null,0,0,0,0]
[{"$nulls":9},{"$f":"T('2 REPAIR ESTIMATOR'!D500:O500)","v":""},{"$f":"'2 REPAIR ESTIMATOR'!P500","v":0},{"$f":"'2 REPAIR ESTIMATOR'!S500","v":0},{"$f":"'2 REPAIR ESTIMATOR'!X500","v":{"v":0,"d":"$0.00"}},{"$f":"'2 REPAIR ESTIMATOR'!AG500","v":0},{"$f":"T('2 REPAIR ESTIMATOR'!AX500)","v":""},{"$f":"T('2 REPAIR ESTIMATOR'!AY500)","v":""},null,0,0,0,0]
[{"$nulls":9},{"$f":"T('2 REPAIR ESTIMATOR'!D501:O501)","v":""},{"$f":"'2 REPAIR ESTIMATOR'!P501","v":0},{"$f":"'2 REPAIR ESTIMATOR'!S501","v":0},{"$f":"'2 REPAIR ESTIMATOR'!X501","v":{"v":0,"d":"$0.00"}},{"$f":"'2 REPAIR ESTIMATOR'!AG501","v":0},{"$f":"T('2 REPAIR ESTIMATOR'!AX501)","v":""},{"$f":"T('2 REPAIR ESTIMATOR'!AY501)","v":""},null,0,0,0,0]
[{"$nulls":9},{"$f":"T('2 REPAIR ESTIMATOR'!D502:O502)","v":""},{"$f":"'2 REPAIR ESTIMATOR'!P502","v":0},{"$f":"'2 REPAIR ESTIMATOR'!S502","v":0},{"$f":"'2 REPAIR ESTIMATOR'!X502","v":{"v":0,"d":"$0.00"}},{"$f":"'2 REPAIR ESTIMATOR'!AG502","v":0},{"$f":"T('2 REPAIR ESTIMATOR'!AX502)","v":""},{"$f":"T('2 REPAIR ESTIMATOR'!AY502)","v":""},null,0,0,0,0]
[{"$nulls":9},{"$f":"T('2 REPAIR ESTIMATOR'!D503:O503)","v":""},{"$f":"'2 REPAIR ESTIMATOR'!P503","v":0},{"$f":"'2 REPAIR ESTIMATOR'!S503","v":0},{"$f":"'2 REPAIR ESTIMATOR'!X503","v":{"v":0,"d":"$0.00"}},{"$f":"'2 REPAIR ESTIMATOR'!AG503","v":0},{"$f":"T('2 REPAIR ESTIMATOR'!AX503)","v":""},{"$f":"T('2 REPAIR ESTIMATOR'!AY503)","v":""},null,0,0,0,0]
[{"$nulls":9},{"$f":"T('2 REPAIR ESTIMATOR'!D504:O504)","v":""},{"$f":"'2 REPAIR ESTIMATOR'!P504","v":0},{"$f":"'2 REPAIR ESTIMATOR'!S504","v":0},{"$f":"'2 REPAIR ESTIMATOR'!X504","v":{"v":0,"d":"$0.00"}},{"$f":"'2 REPAIR ESTIMATOR'!AG504","v":0},{"$f":"T('2 REPAIR ESTIMATOR'!AX504)","v":""},{"$f":"T('2 REPAIR ESTIMATOR'!AY504)","v":""},null,0,0,0,0]
[{"$nulls":9},{"$f":"T('2 REPAIR ESTIMATOR'!D505:O505)","v":""},{"$f":"'2 REPAIR ESTIMATOR'!P505","v":0},{"$f":"'2 REPAIR ESTIMATOR'!S505","v":0},{"$f":"'2 REPAIR ESTIMATOR'!X505","v":{"v":0,"d":"$0.00"}},{"$f":"'2 REPAIR ESTIMATOR'!AG505","v":0},{"$f":"T('2 REPAIR ESTIMATOR'!AX505)","v":""},{"$f":"T('2 REPAIR ESTIMATOR'!AY505)","v":""},null,0,0,0,0]
[{"$nulls":9},{"$f":"T('2 REPAIR ESTIMATOR'!D506:O506)","v":""},{"$f":"'2 REPAIR ESTIMATOR'!P506","v":0},{"$f":"'2 REPAIR ESTIMATOR'!S506","v":0},{"$f":"'2 REPAIR ESTIMATOR'!X506","v":{"v":0,"d":"$0.00"}},{"$f":"'2 REPAIR ESTIMATOR'!AG506","v":0},{"$f":"T('2 REPAIR ESTIMATOR'!AX506)","v":""},{"$f":"T('2 REPAIR ESTIMATOR'!AY506)","v":""},null,0,0,0,0]
[{"$nulls":9},{"$f":"T('2 REPAIR ESTIMATOR'!D507:O507)","v":""},{"$f":"'2 REPAIR ESTIMATOR'!P507","v":0},{"$f":"'2 REPAIR ESTIMATOR'!S507","v":0},{"$f":"'2 REPAIR ESTIMATOR'!X507","v":{"v":0,"d":"$0.00"}},{"$f":"'2 REPAIR ESTIMATOR'!AG507","v":0},{"$f":"T('2 REPAIR ESTIMATOR'!AX507)","v":""},{"$f":"T('2 REPAIR ESTIMATOR'!AY507)","v":""},null,0,0,0,0]
[{"$nulls":9},{"$f":"T('2 REPAIR ESTIMATOR'!D508:O508)","v":""},{"$f":"'2 REPAIR ESTIMATOR'!P508","v":0},{"$f":"'2 REPAIR ESTIMATOR'!S508","v":0},{"$f":"'2 REPAIR ESTIMATOR'!X508","v":{"v":0,"d":"$0.00"}},{"$f":"'2 REPAIR ESTIMATOR'!AG508","v":0},{"$f":"T('2 REPAIR ESTIMATOR'!AX508)","v":""},{"$f":"T('2 REPAIR ESTIMATOR'!AY508)","v":""},null,0,0,0,0]
[{"$nulls":9},{"$f":"T('2 REPAIR ESTIMATOR'!D509:O509)","v":""},{"$f":"'2 REPAIR ESTIMATOR'!P509","v":0},{"$f":"'2 REPAIR ESTIMATOR'!S509","v":0},{"$f":"'2 REPAIR ESTIMATOR'!X509","v":{"v":0,"d":"$0.00"}},{"$f":"'2 REPAIR ESTIMATOR'!AG509","v":0},{"$f":"T('2 REPAIR ESTIMATOR'!AX509)","v":""},{"$f":"T('2 REPAIR ESTIMATOR'!AY509)","v":""},null,0,0,0,0]
[{"$nulls":9},{"$f":"T('2 REPAIR ESTIMATOR'!D510:O510)","v":""},{"$f":"'2 REPAIR ESTIMATOR'!P510","v":0},{"$f":"'2 REPAIR ESTIMATOR'!S510","v":0},{"$f":"'2 REPAIR ESTIMATOR'!X510","v":{"v":0,"d":"$0.00"}},{"$f":"'2 REPAIR ESTIMATOR'!AG510","v":0},{"$f":"T('2 REPAIR ESTIMATOR'!AX510)","v":""},{"$f":"T('2 REPAIR ESTIMATOR'!AY510)","v":""},null,0,0,0,0]
[{"$nulls":9},{"$f":"T('2 REPAIR ESTIMATOR'!D511:O511)","v":""},{"$f":"'2 REPAIR ESTIMATOR'!P511","v":0},{"$f":"'2 REPAIR ESTIMATOR'!S511","v":0},{"$f":"'2 REPAIR ESTIMATOR'!X511","v":{"v":0,"d":"$0.00"}},{"$f":"'2 REPAIR ESTIMATOR'!AG511","v":0},{"$f":"T('2 REPAIR ESTIMATOR'!AX511)","v":""},{"$f":"T('2 REPAIR ESTIMATOR'!AY511)","v":""},null,0,0,0,0]
[{"$nulls":9},{"$f":"T('2 REPAIR ESTIMATOR'!D512:O512)","v":""},{"$f":"'2 REPAIR ESTIMATOR'!P512","v":0},{"$f":"'2 REPAIR ESTIMATOR'!S512","v":0},{"$f":"'2 REPAIR ESTIMATOR'!X512","v":{"v":0,"d":"$0.00"}},{"$f":"'2 REPAIR ESTIMATOR'!AG512","v":0},{"$f":"T('2 REPAIR ESTIMATOR'!AX512)","v":""},{"$f":"T('2 REPAIR ESTIMATOR'!AY512)","v":""},null,0,0,0,0]
[{"$nulls":9},{"$f":"T('2 REPAIR ESTIMATOR'!D513:O513)","v":""},{"$f":"'2 REPAIR ESTIMATOR'!P513","v":0},{"$f":"'2 REPAIR ESTIMATOR'!S513","v":0},{"$f":"'2 REPAIR ESTIMATOR'!X513","v":{"v":0,"d":"$0.00"}},{"$f":"'2 REPAIR ESTIMATOR'!AG513","v":0},{"$f":"T('2 REPAIR ESTIMATOR'!AX513)","v":""},{"$f":"T('2 REPAIR ESTIMATOR'!AY513)","v":""},null,0,0,0,0]
[{"$nulls":9},{"$f":"T('2 REPAIR ESTIMATOR'!D514:O514)","v":""},{"$f":"'2 REPAIR ESTIMATOR'!P514","v":0},{"$f":"'2 REPAIR ESTIMATOR'!S514","v":0},{"$f":"'2 REPAIR ESTIMATOR'!X514","v":{"v":0,"d":"$0.00"}},{"$f":"'2 REPAIR ESTIMATOR'!AG514","v":0},{"$f":"T('2 REPAIR ESTIMATOR'!AX514)","v":""},{"$f":"T('2 REPAIR ESTIMATOR'!AY514)","v":""},null,0,0,0,0]
[{"$nulls":9},{"$f":"T('2 REPAIR ESTIMATOR'!D515:O515)","v":""},{"$f":"'2 REPAIR ESTIMATOR'!P515","v":0},{"$f":"'2 REPAIR ESTIMATOR'!S515","v":0},{"$f":"'2 REPAIR ESTIMATOR'!X515","v":{"v":0,"d":"$0.00"}},{"$f":"'2 REPAIR ESTIMATOR'!AG515","v":0},{"$f":"T('2 REPAIR ESTIMATOR'!AX515)","v":""},{"$f":"T('2 REPAIR ESTIMATOR'!AY515)","v":""},null,0,0,0,0]
[{"$nulls":9},{"$f":"T('2 REPAIR ESTIMATOR'!D516:O516)","v":""},{"$f":"'2 REPAIR ESTIMATOR'!P516","v":0},{"$f":"'2 REPAIR ESTIMATOR'!S516","v":0},{"$f":"'2 REPAIR ESTIMATOR'!X516","v":{"v":0,"d":"$0.00"}},{"$f":"'2 REPAIR ESTIMATOR'!AG516","v":0},{"$f":"T('2 REPAIR ESTIMATOR'!AX516)","v":""},{"$f":"T('2 REPAIR ESTIMATOR'!AY516)","v":""},null,0,0,0,0]
[{"$nulls":9},{"$f":"T('2 REPAIR ESTIMATOR'!D517:O517)","v":""},{"$f":"'2 REPAIR ESTIMATOR'!P517","v":0},{"$f":"'2 REPAIR ESTIMATOR'!S517","v":0},{"$f":"'2 REPAIR ESTIMATOR'!X517","v":{"v":0,"d":"$0.00"}},{"$f":"'2 REPAIR ESTIMATOR'!AG517","v":0},{"$f":"T('2 REPAIR ESTIMATOR'!AX517)","v":""},{"$f":"T('2 REPAIR ESTIMATOR'!AY517)","v":""},null,0,0,0,0]
[{"$nulls":9},{"$f":"T('2 REPAIR ESTIMATOR'!D518:O518)","v":""},{"$f":"'2 REPAIR ESTIMATOR'!P518","v":0},{"$f":"'2 REPAIR ESTIMATOR'!S518","v":0},{"$f":"'2 REPAIR ESTIMATOR'!X518","v":{"v":0,"d":"$0.00"}},{"$f":"'2 REPAIR ESTIMATOR'!AG518","v":0},{"$f":"T('2 REPAIR ESTIMATOR'!AX518)","v":""},{"$f":"T('2 REPAIR ESTIMATOR'!AY518)","v":""},null,0,0,0,0]
[{"$nulls":9},{"$f":"T('2 REPAIR ESTIMATOR'!D519:O519)","v":""},{"$f":"'2 REPAIR ESTIMATOR'!P519","v":0},{"$f":"'2 REPAIR ESTIMATOR'!S519","v":0},{"$f":"'2 REPAIR ESTIMATOR'!X519","v":{"v":0,"d":"$0.00"}},{"$f":"'2 REPAIR ESTIMATOR'!AG519","v":0},{"$f":"T('2 REPAIR ESTIMATOR'!AX519)","v":""},{"$f":"T('2 REPAIR ESTIMATOR'!AY519)","v":""},null,0,0,0,0]
[{"$nulls":9},{"$f":"T('2 REPAIR ESTIMATOR'!D520:O520)","v":""},{"$f":"'2 REPAIR ESTIMATOR'!P520","v":0},{"$f":"'2 REPAIR ESTIMATOR'!S520","v":0},{"$f":"'2 REPAIR ESTIMATOR'!X520","v":{"v":0,"d":"$0.00"}},{"$f":"'2 REPAIR ESTIMATOR'!AG520","v":0},{"$f":"T('2 REPAIR ESTIMATOR'!AX520)","v":""},{"$f":"T('2 REPAIR ESTIMATOR'!AY520)","v":""},null,0,0,0,0]
[{"$nulls":9},{"$f":"T('2 REPAIR ESTIMATOR'!D521:O521)","v":""},{"$f":"'2 REPAIR ESTIMATOR'!P521","v":0},{"$f":"'2 REPAIR ESTIMATOR'!S521","v":0},{"$f":"'2 REPAIR ESTIMATOR'!X521","v":{"v":0,"d":"$0.00"}},{"$f":"'2 REPAIR ESTIMATOR'!AG521","v":0},{"$f":"T('2 REPAIR ESTIMATOR'!AX521)","v":""},{"$f":"T('2 REPAIR ESTIMATOR'!AY521)","v":""},null,0,0,0,0]
[{"$nulls":9},{"$f":"T('2 REPAIR ESTIMATOR'!D522:O522)","v":""},{"$f":"'2 REPAIR ESTIMATOR'!P522","v":0},{"$f":"'2 REPAIR ESTIMATOR'!S522","v":0},{"$f":"'2 REPAIR ESTIMATOR'!X522","v":{"v":0,"d":"$0.00"}},{"$f":"'2 REPAIR ESTIMATOR'!AG522","v":0},{"$f":"T('2 REPAIR ESTIMATOR'!AX522)","v":""},{"$f":"T('2 REPAIR ESTIMATOR'!AY522)","v":""},null,0,0,0,0]
[{"$nulls":9},{"$f":"T('2 REPAIR ESTIMATOR'!D523:O523)","v":""},{"$f":"'2 REPAIR ESTIMATOR'!P523","v":0},{"$f":"'2 REPAIR ESTIMATOR'!S523","v":0},{"$f":"'2 REPAIR ESTIMATOR'!X523","v":{"v":0,"d":"$0.00"}},{"$f":"'2 REPAIR ESTIMATOR'!AG523","v":0},{"$f":"T('2 REPAIR ESTIMATOR'!AX523)","v":""},{"$f":"T('2 REPAIR ESTIMATOR'!AY523)","v":""},null,0,0,0,0]
[{"$nulls":9},{"$f":"T('2 REPAIR ESTIMATOR'!D524:O524)","v":""},{"$f":"'2 REPAIR ESTIMATOR'!P524","v":0},{"$f":"'2 REPAIR ESTIMATOR'!S524","v":0},{"$f":"'2 REPAIR ESTIMATOR'!X524","v":{"v":0,"d":"$0.00"}},{"$f":"'2 REPAIR ESTIMATOR'!AG524","v":0},{"$f":"T('2 REPAIR ESTIMATOR'!AX524)","v":""},{"$f":"T('2 REPAIR ESTIMATOR'!AY524)","v":""},null,0,0,0,0]
[{"$nulls":9},{"$f":"T('2 REPAIR ESTIMATOR'!D525:O525)","v":""},{"$f":"'2 REPAIR ESTIMATOR'!P525","v":0},{"$f":"'2 REPAIR ESTIMATOR'!S525","v":0},{"$f":"'2 REPAIR ESTIMATOR'!X525","v":{"v":0,"d":"$0.00"}},{"$f":"'2 REPAIR ESTIMATOR'!AG525","v":0},{"$f":"T('2 REPAIR ESTIMATOR'!AX525)","v":""},{"$f":"T('2 REPAIR ESTIMATOR'!AY525)","v":""},null,0,0,0,0]
[{"$nulls":9},{"$f":"T('2 REPAIR ESTIMATOR'!D526:O526)","v":""},{"$f":"'2 REPAIR ESTIMATOR'!P526","v":0},{"$f":"'2 REPAIR ESTIMATOR'!S526","v":0},{"$f":"'2 REPAIR ESTIMATOR'!X526","v":{"v":0,"d":"$0.00"}},{"$f":"'2 REPAIR ESTIMATOR'!AG526","v":0},{"$f":"T('2 REPAIR ESTIMATOR'!AX526)","v":""},{"$f":"T('2 REPAIR ESTIMATOR'!AY526)","v":""},null,0,0,0,0]
[{"$nulls":9},{"$f":"T('2 REPAIR ESTIMATOR'!D527:O527)","v":""},{"$f":"'2 REPAIR ESTIMATOR'!P527","v":0},{"$f":"'2 REPAIR ESTIMATOR'!S527","v":0},{"$f":"'2 REPAIR ESTIMATOR'!X527","v":{"v":0,"d":"$0.00"}},{"$f":"'2 REPAIR ESTIMATOR'!AG527","v":0},{"$f":"T('2 REPAIR ESTIMATOR'!AX527)","v":""},{"$f":"T('2 REPAIR ESTIMATOR'!AY527)","v":""},null,0,0,0,0]
[{"$nulls":9},{"$f":"T('2 REPAIR ESTIMATOR'!D528:O528)","v":""},{"$f":"'2 REPAIR ESTIMATOR'!P528","v":0},{"$f":"'2 REPAIR ESTIMATOR'!S528","v":0},{"$f":"'2 REPAIR ESTIMATOR'!X528","v":{"v":0,"d":"$0.00"}},{"$f":"'2 REPAIR ESTIMATOR'!AG528","v":0},{"$f":"T('2 REPAIR ESTIMATOR'!AX528)","v":""},{"$f":"T('2 REPAIR ESTIMATOR'!AY528)","v":""},null,0,0,0,0]
[{"$nulls":9},{"$f":"T('2 REPAIR ESTIMATOR'!D529:O529)","v":""},{"$f":"'2 REPAIR ESTIMATOR'!P529","v":0},{"$f":"'2 REPAIR ESTIMATOR'!S529","v":0},{"$f":"'2 REPAIR ESTIMATOR'!X529","v":{"v":0,"d":"$0.00"}},{"$f":"'2 REPAIR ESTIMATOR'!AG529","v":0},{"$f":"T('2 REPAIR ESTIMATOR'!AX529)","v":""},{"$f":"T('2 REPAIR ESTIMATOR'!AY529)","v":""},null,0,0,0,0]
[{"$nulls":9},{"$f":"T('2 REPAIR ESTIMATOR'!D530:O530)","v":""},{"$f":"'2 REPAIR ESTIMATOR'!P530","v":0},{"$f":"'2 REPAIR ESTIMATOR'!S530","v":0},{"$f":"'2 REPAIR ESTIMATOR'!X530","v":{"v":0,"d":"$0.00"}},{"$f":"'2 REPAIR ESTIMATOR'!AG530","v":0},{"$f":"T('2 REPAIR ESTIMATOR'!AX530)","v":""},{"$f":"T('2 REPAIR ESTIMATOR'!AY530)","v":""},null,0,0,0,0]
[{"$nulls":9},{"$f":"T('2 REPAIR ESTIMATOR'!D531:O531)","v":""},{"$f":"'2 REPAIR ESTIMATOR'!P531","v":0},{"$f":"'2 REPAIR ESTIMATOR'!S531","v":0},{"$f":"'2 REPAIR ESTIMATOR'!X531","v":{"v":0,"d":"$0.00"}},{"$f":"'2 REPAIR ESTIMATOR'!AG531","v":0},{"$f":"T('2 REPAIR ESTIMATOR'!AX531)","v":""},{"$f":"T('2 REPAIR ESTIMATOR'!AY531)","v":""},null,0,0,0,0]
[{"$nulls":9},{"$f":"T('2 REPAIR ESTIMATOR'!D532:O532)","v":""},{"$f":"'2 REPAIR ESTIMATOR'!P532","v":0},{"$f":"'2 REPAIR ESTIMATOR'!S532","v":0},{"$f":"'2 REPAIR ESTIMATOR'!X532","v":{"v":0,"d":"$0.00"}},{"$f":"'2 REPAIR ESTIMATOR'!AG532","v":0},{"$f":"T('2 REPAIR ESTIMATOR'!AX532)","v":""},{"$f":"T('2 REPAIR ESTIMATOR'!AY532)","v":""},null,0,0,0,0]
[{"$nulls":12},{"$f":"CONCATENATE(J519,\" \",\"TOTAL\")","v":"GARAGE DOORS TOTAL"},{"$f":"SUBTOTAL(9,N520:N559)","v":{"v":963,"d":"$963.00"}},{"$nulls":3},{"$f":"SUM(R520:R559)","v":2},{"$f":"SUM(S520:S559)","v":0},{"$f":"SUM(T520:T559)","v":0},{"$f":"SUM(U520:U559)","v":2}]
[{"$nulls":9},{"$f":"T(#REF!)","v":{"$error":"#REF!"}},{"$f":"#REF!","v":{"$error":"#REF!"}},{"$f":"#REF!","v":{"$error":"#REF!"}},{"$f":"#REF!","v":{"$error":"#REF!"}},{"$f":"#REF!","v":{"$error":"#REF!"}},{"$nulls":3},{"$f":"R560","v":2},{"$f":"S560","v":0},{"$f":"T560","v":0},{"$f":"U560","v":2}]
[{"$nulls":9},{"$f":"CONCATENATE(\"MISCELLANEOUS \",J519,\" MATERIAL ITEMS\")","v":"MISCELLANEOUS GARAGE DOORS MATERIAL ITEMS"},{"$nulls":4},"Store","SKU #",null,{"$f":"SUM(R563:R572)*R519","v":{"$error":"#REF!"}},{"$f":"SUM(S563:S572)","v":0},{"$f":"SUM(T563:T572)","v":0},{"$f":"SUM(U563:U572)","v":{"$error":"#REF!"}}]
[{"$nulls":9},"1. Garage door panels",{"$nulls":7},{"$f":"IF(OR(G563=\"x\",J563>0),1,0)*R519","v":{"$error":"#REF!"}},{"$f":"IF(G563=\"x\",1,0)","v":0},{"$f":"IF(H563=\"x\",1,0)","v":0},{"$f":"IF(AND(R563=1,T563<>1),1,0)","v":{"$error":"#REF!"}}]
[{"$nulls":9},"2. Garage door operators",{"$nulls":7},{"$f":"IF(OR(G564=\"x\",J564>0),1,0)*R519","v":{"$error":"#REF!"}},0,0,{"$error":"#REF!"}]
[{"$nulls":9},"3. Garage door remote openers",{"$nulls":7},{"$f":"IF(OR(G565=\"x\",J565>0),1,0)*R519","v":{"$error":"#REF!"}},0,0,{"$error":"#REF!"}]
[{"$nulls":17},{"$f":"IF(OR(G566=\"x\",J566>0),1,0)*R519","v":{"$error":"#REF!"}},0,0,{"$error":"#REF!"}]
[{"$nulls":17},{"$f":"IF(OR(G567=\"x\",J567>0),1,0)*R519","v":{"$error":"#REF!"}},0,0,{"$error":"#REF!"}]
[{"$nulls":17},{"$f":"IF(OR(G568=\"x\",J568>0),1,0)*R519","v":{"$error":"#REF!"}},0,0,{"$error":"#REF!"}]
[{"$nulls":17},{"$f":"IF(OR(G569=\"x\",J569>0),1,0)*R519","v":{"$error":"#REF!"}},0,0,{"$error":"#REF!"}]
[{"$nulls":17},{"$f":"IF(OR(G570=\"x\",J570>0),1,0)*R519","v":{"$error":"#REF!"}},0,0,{"$error":"#REF!"}]
[{"$nulls":17},{"$f":"IF(OR(G571=\"x\",J571>0),1,0)*R519","v":{"$error":"#REF!"}},0,0,{"$error":"#REF!"}]
[{"$nulls":17},{"$f":"IF(OR(G572=\"x\",J572>0),1,0)*R519","v":{"$error":"#REF!"}},0,0,{"$error":"#REF!"}]
[{"$nulls":9},{"$f":"T(#REF!)","v":{"$error":"#REF!"}},{"$f":"#REF!","v":{"$error":"#REF!"}},{"$f":"#REF!","v":{"$error":"#REF!"}},{"$f":"#REF!","v":{"$error":"#REF!"}},{"$f":"#REF!","v":{"$error":"#REF!"}},{"$nulls":3},{"$f":"R562*R519","v":{"$error":"#REF!"}},{"$f":"S562","v":0},{"$f":"T562","v":0},{"$f":"U562","v":{"$error":"#REF!"}}]
[{"$nulls":9},{"$f":"T('2 REPAIR ESTIMATOR'!D537:O537)","v":"LANDSCAPING"},{"$f":"#REF!","v":{"$error":"#REF!"}},{"$f":"#REF!","v":{"$error":"#REF!"}},{"$f":"#REF!","v":{"$error":"#REF!"}},{"$f":"#REF!","v":{"$error":"#REF!"}},{"$nulls":3},{"$f":"IF(SUM(R575:R628)>0,1,0)","v":{"$error":"#REF!"}},{"$f":"SUM(S575:S628)","v":0},{"$f":"SUM(T575:T628)","v":0},{"$f":"SUM(U575:U628)","v":{"$error":"#REF!"}}]
[{"$nulls":9},{"$f":"T('2 REPAIR ESTIMATOR'!D538:O538)","v":"Landscaping bid/allowance, trees, bushes, flowers"},{"$f":"'2 REPAIR ESTIMATOR'!P538","v":1},{"$f":"'2 REPAIR ESTIMATOR'!S538","v":"ls"},{"$f":"'2 REPAIR ESTIMATOR'!X538","v":{"v":300,"d":"$300.00"}},{"$f":"'2 REPAIR ESTIMATOR'!AG538","v":{"v":321,"d":"$321.00"}},{"$f":"T('2 REPAIR ESTIMATOR'!AX538)","v":""},{"$f":"T('2 REPAIR ESTIMATOR'!AY538)","v":""},null,{"$f":"IF(OR(G575=\"x\",N575>0),1,0)","v":1},{"$f":"IF(G575=\"x\",1,0)","v":0},{"$f":"IF(H575=\"x\",1,0)","v":0},{"$f":"IF(AND(R575=1,T575<>1),1,0)","v":1}]
[{"$nulls":9},{"$f":"T('2 REPAIR ESTIMATOR'!D539:O539)","v":"Sod"},{"$f":"'2 REPAIR ESTIMATOR'!P539","v":0},{"$f":"'2 REPAIR ESTIMATOR'!S539","v":"sf"},{"$f":"'2 REPAIR ESTIMATOR'!X539","v":{"v":0.25,"d":"$0.25"}},{"$f":"'2 REPAIR ESTIMATOR'!AG539","v":0},{"$f":"T('2 REPAIR ESTIMATOR'!AX539)","v":""},{"$f":"T('2 REPAIR ESTIMATOR'!AY539)","v":""},null,{"$f":"IF(OR(G576=\"x\",N576>0),1,0)","v":0},{"$f":"IF(G576=\"x\",1,0)","v":0},{"$f":"IF(H576=\"x\",1,0)","v":0},{"$f":"IF(AND(R576=1,T576<>1),1,0)","v":0}]
[{"$nulls":9},{"$f":"T('2 REPAIR ESTIMATOR'!D540:O540)","v":"Seeding"},{"$f":"'2 REPAIR ESTIMATOR'!P540","v":0},{"$f":"'2 REPAIR ESTIMATOR'!S540","v":"sf"},{"$f":"'2 REPAIR ESTIMATOR'!X540","v":{"v":0.05,"d":"$0.05"}},{"$f":"'2 REPAIR ESTIMATOR'!AG540","v":0},{"$f":"T('2 REPAIR ESTIMATOR'!AX540)","v":""},{"$f":"T('2 REPAIR ESTIMATOR'!AY540)","v":""},null,0,0,0,0]
[{"$nulls":9},{"$f":"T('2 REPAIR ESTIMATOR'!D541:O541)","v":"Shrubs/plantings, 1 gallon"},{"$f":"'2 REPAIR ESTIMATOR'!P541","v":0},{"$f":"'2 REPAIR ESTIMATOR'!S541","v":"ea"},{"$f":"'2 REPAIR ESTIMATOR'!X541","v":{"v":10,"d":"$10.00"}},{"$f":"'2 REPAIR ESTIMATOR'!AG541","v":0},{"$f":"T('2 REPAIR ESTIMATOR'!AX541)","v":""},{"$f":"T('2 REPAIR ESTIMATOR'!AY541)","v":""},null,0,0,0,0]
[{"$nulls":9},{"$f":"T('2 REPAIR ESTIMATOR'!D542:O542)","v":"Shrubs/plantings, 2 gallon"},{"$f":"'2 REPAIR ESTIMATOR'!P542","v":0},{"$f":"'2 REPAIR ESTIMATOR'!S542","v":"ea"},{"$f":"'2 REPAIR ESTIMATOR'!X542","v":{"v":20,"d":"$20.00"}},{"$f":"'2 REPAIR ESTIMATOR'!AG542","v":0},{"$f":"T('2 REPAIR ESTIMATOR'!AX542)","v":""},{"$f":"T('2 REPAIR ESTIMATOR'!AY542)","v":""},null,0,0,0,0]
[{"$nulls":9},{"$f":"T('2 REPAIR ESTIMATOR'!D543:O543)","v":"Shrubs/plantings, 5 gallon"},{"$f":"'2 REPAIR ESTIMATOR'!P543","v":0},{"$f":"'2 REPAIR ESTIMATOR'!S543","v":"ea"},{"$f":"'2 REPAIR ESTIMATOR'!X543","v":{"v":35,"d":"$35.00"}},{"$f":"'2 REPAIR ESTIMATOR'!AG543","v":0},{"$f":"T('2 REPAIR ESTIMATOR'!AX543)","v":""},{"$f":"T('2 REPAIR ESTIMATOR'!AY543)","v":""},null,0,0,0,0]
[{"$nulls":9},{"$f":"T('2 REPAIR ESTIMATOR'!D544:O544)","v":"Small trees, 1-2\" caliper, 10 gallon"},{"$f":"'2 REPAIR ESTIMATOR'!P544","v":0},{"$f":"'2 REPAIR ESTIMATOR'!S544","v":"ea"},{"$f":"'2 REPAIR ESTIMATOR'!X544","v":{"v":50,"d":"$50.00"}},{"$f":"'2 REPAIR ESTIMATOR'!AG544","v":0},{"$f":"T('2 REPAIR ESTIMATOR'!AX544)","v":""},{"$f":"T('2 REPAIR ESTIMATOR'!AY544)","v":""},null,0,0,0,0]
[{"$nulls":9},{"$f":"T('2 REPAIR ESTIMATOR'!D545:O545)","v":"Small trees, 1-2\" 15 gallon"},{"$f":"'2 REPAIR ESTIMATOR'!P545","v":0},{"$f":"'2 REPAIR ESTIMATOR'!S545","v":"ea"},{"$f":"'2 REPAIR ESTIMATOR'!X545","v":{"v":75,"d":"$75.00"}},{"$f":"'2 REPAIR ESTIMATOR'!AG545","v":0},{"$f":"T('2 REPAIR ESTIMATOR'!AX545)","v":""},{"$f":"T('2 REPAIR ESTIMATOR'!AY545)","v":""},null,0,0,0,0]
[{"$nulls":9},{"$f":"T('2 REPAIR ESTIMATOR'!D546:O546)","v":"36\" box tree"},{"$f":"'2 REPAIR ESTIMATOR'!P546","v":0},{"$f":"'2 REPAIR ESTIMATOR'!S546","v":"ea"},{"$f":"'2 REPAIR ESTIMATOR'!X546","v":{"v":200,"d":"$200.00"}},{"$f":"'2 REPAIR ESTIMATOR'!AG546","v":0},{"$f":"T('2 REPAIR ESTIMATOR'!AX546)","v":""},{"$f":"T('2 REPAIR ESTIMATOR'!AY546)","v":""},null,0,0,0,0]
[{"$nulls":9},{"$f":"T('2 REPAIR ESTIMATOR'!D547:O547)","v":"Mulch, standard 3\" thick"},{"$f":"'2 REPAIR ESTIMATOR'!P547","v":0},{"$f":"'2 REPAIR ESTIMATOR'!S547","v":"sf"},{"$f":"'2 REPAIR ESTIMATOR'!X547","v":{"v":0.5,"d":"$0.50"}},{"$f":"'2 REPAIR ESTIMATOR'!AG547","v":0},{"$f":"T('2 REPAIR ESTIMATOR'!AX547)","v":""},{"$f":"T('2 REPAIR ESTIMATOR'!AY547)","v":""},null,0,0,0,0]
[{"$nulls":9},{"$f":"T('2 REPAIR ESTIMATOR'!D548:O548)","v":"Landscape rock, 3/4\""},{"$f":"'2 REPAIR ESTIMATOR'!P548","v":0},{"$f":"'2 REPAIR ESTIMATOR'!S548","v":"sf"},{"$f":"'2 REPAIR ESTIMATOR'!X548","v":{"v":1,"d":"$1.00"}},{"$f":"'2 REPAIR ESTIMATOR'!AG548","v":0},{"$f":"T('2 REPAIR ESTIMATOR'!AX548)","v":""},{"$f":"T('2 REPAIR ESTIMATOR'!AY548)","v":""},null,0,0,0,0]
[{"$nulls":9},{"$f":"T('2 REPAIR ESTIMATOR'!D549:O549)","v":"Cobble stone rock"},{"$f":"'2 REPAIR ESTIMATOR'!P549","v":0},{"$f":"'2 REPAIR ESTIMATOR'!S549","v":"sf"},{"$f":"'2 REPAIR ESTIMATOR'!X549","v":{"v":1.75,"d":"$1.75"}},{"$f":"'2 REPAIR ESTIMATOR'!AG549","v":0},{"$f":"T('2 REPAIR ESTIMATOR'!AX549)","v":""},{"$f":"T('2 REPAIR ESTIMATOR'!AY549)","v":""},null,0,0,0,0]
[{"$nulls":9},{"$f":"T('2 REPAIR ESTIMATOR'!D550:O550)","v":"Tree removal, per tree"},{"$f":"'2 REPAIR ESTIMATOR'!P550","v":0},{"$f":"'2 REPAIR ESTIMATOR'!S550","v":"ea"},{"$f":"'2 REPAIR ESTIMATOR'!X550","v":{"v":0,"d":"$0.00"}},{"$f":"'2 REPAIR ESTIMATOR'!AG550","v":0},{"$f":"T('2 REPAIR ESTIMATOR'!AX550)","v":""},{"$f":"T('2 REPAIR ESTIMATOR'!AY550)","v":""},null,0,0,0,0]
[{"$nulls":9},{"$f":"T('2 REPAIR ESTIMATOR'!D551:O551)","v":"Stacked, retaining wall"},{"$f":"'2 REPAIR ESTIMATOR'!P551","v":0},{"$f":"'2 REPAIR ESTIMATOR'!S551","v":"sf"},{"$f":"'2 REPAIR ESTIMATOR'!X551","v":{"v":7.5,"d":"$7.50"}},{"$f":"'2 REPAIR ESTIMATOR'!AG551","v":0},{"$f":"T('2 REPAIR ESTIMATOR'!AX551)","v":""},{"$f":"T('2 REPAIR ESTIMATOR'!AY551)","v":""},null,0,0,0,0]
[{"$nulls":9},{"$f":"T('2 REPAIR ESTIMATOR'!D552:O552)","v":""},{"$f":"'2 REPAIR ESTIMATOR'!P552","v":0},{"$f":"'2 REPAIR ESTIMATOR'!S552","v":0},{"$f":"'2 REPAIR ESTIMATOR'!X552","v":{"v":0,"d":"$0.00"}},{"$f":"'2 REPAIR ESTIMATOR'!AG552","v":0},{"$f":"T('2 REPAIR ESTIMATOR'!AX552)","v":""},{"$f":"T('2 REPAIR ESTIMATOR'!AY552)","v":""},null,0,0,0,0]
[{"$nulls":9},{"$f":"T('2 REPAIR ESTIMATOR'!D553:O553)","v":""},{"$f":"'2 REPAIR ESTIMATOR'!P553","v":0},{"$f":"'2 REPAIR ESTIMATOR'!S553","v":0},{"$f":"'2 REPAIR ESTIMATOR'!X553","v":{"v":0,"d":"$0.00"}},{"$f":"'2 REPAIR ESTIMATOR'!AG553","v":0},{"$f":"T('2 REPAIR ESTIMATOR'!AX553)","v":""},{"$f":"T('2 REPAIR ESTIMATOR'!AY553)","v":""},null,0,0,0,0]
[{"$nulls":9},{"$f":"T('2 REPAIR ESTIMATOR'!D554:O554)","v":""},{"$f":"'2 REPAIR ESTIMATOR'!P554","v":0},{"$f":"'2 REPAIR ESTIMATOR'!S554","v":0},{"$f":"'2 REPAIR ESTIMATOR'!X554","v":{"v":0,"d":"$0.00"}},{"$f":"'2 REPAIR ESTIMATOR'!AG554","v":0},{"$f":"T('2 REPAIR ESTIMATOR'!AX554)","v":""},{"$f":"T('2 REPAIR ESTIMATOR'!AY554)","v":""},null,0,0,0,0]
[{"$nulls":9},{"$f":"T('2 REPAIR ESTIMATOR'!D555:O555)","v":""},{"$f":"'2 REPAIR ESTIMATOR'!P555","v":0},{"$f":"'2 REPAIR ESTIMATOR'!S555","v":0},{"$f":"'2 REPAIR ESTIMATOR'!X555","v":{"v":0,"d":"$0.00"}},{"$f":"'2 REPAIR ESTIMATOR'!AG555","v":0},{"$f":"T('2 REPAIR ESTIMATOR'!AX555)","v":""},{"$f":"T('2 REPAIR ESTIMATOR'!AY555)","v":""},null,0,0,0,0]
[{"$nulls":9},{"$f":"T('2 REPAIR ESTIMATOR'!D556:O556)","v":""},{"$f":"'2 REPAIR ESTIMATOR'!P556","v":0},{"$f":"'2 REPAIR ESTIMATOR'!S556","v":0},{"$f":"'2 REPAIR ESTIMATOR'!X556","v":{"v":0,"d":"$0.00"}},{"$f":"'2 REPAIR ESTIMATOR'!AG556","v":0},{"$f":"T('2 REPAIR ESTIMATOR'!AX556)","v":""},{"$f":"T('2 REPAIR ESTIMATOR'!AY556)","v":""},null,0,0,0,0]
[{"$nulls":9},{"$f":"T('2 REPAIR ESTIMATOR'!D557:O557)","v":""},{"$f":"'2 REPAIR ESTIMATOR'!P557","v":0},{"$f":"'2 REPAIR ESTIMATOR'!S557","v":0},{"$f":"'2 REPAIR ESTIMATOR'!X557","v":{"v":0,"d":"$0.00"}},{"$f":"'2 REPAIR ESTIMATOR'!AG557","v":0},{"$f":"T('2 REPAIR ESTIMATOR'!AX557)","v":""},{"$f":"T('2 REPAIR ESTIMATOR'!AY557)","v":""},null,0,0,0,0]
[{"$nulls":9},{"$f":"T('2 REPAIR ESTIMATOR'!D558:O558)","v":""},{"$f":"'2 REPAIR ESTIMATOR'!P558","v":0},{"$f":"'2 REPAIR ESTIMATOR'!S558","v":0},{"$f":"'2 REPAIR ESTIMATOR'!X558","v":{"v":0,"d":"$0.00"}},{"$f":"'2 REPAIR ESTIMATOR'!AG558","v":0},{"$f":"T('2 REPAIR ESTIMATOR'!AX558)","v":""},{"$f":"T('2 REPAIR ESTIMATOR'!AY558)","v":""},null,0,0,0,0]
[{"$nulls":9},{"$f":"T('2 REPAIR ESTIMATOR'!D559:O559)","v":""},{"$f":"'2 REPAIR ESTIMATOR'!P559","v":0},{"$f":"'2 REPAIR ESTIMATOR'!S559","v":0},{"$f":"'2 REPAIR ESTIMATOR'!X559","v":{"v":0,"d":"$0.00"}},{"$f":"'2 REPAIR ESTIMATOR'!AG559","v":0},{"$f":"T('2 REPAIR ESTIMATOR'!AX559)","v":""},{"$f":"T('2 REPAIR ESTIMATOR'!AY559)","v":""},null,0,0,0,0]
[{"$nulls":9},{"$f":"T('2 REPAIR ESTIMATOR'!D560:O560)","v":""},{"$f":"'2 REPAIR ESTIMATOR'!P560","v":0},{"$f":"'2 REPAIR ESTIMATOR'!S560","v":0},{"$f":"'2 REPAIR ESTIMATOR'!X560","v":{"v":0,"d":"$0.00"}},{"$f":"'2 REPAIR ESTIMATOR'!AG560","v":0},{"$f":"T('2 REPAIR ESTIMATOR'!AX560)","v":""},{"$f":"T('2 REPAIR ESTIMATOR'!AY560)","v":""},null,0,0,0,0]
[{"$nulls":9},{"$f":"T('2 REPAIR ESTIMATOR'!D561:O561)","v":""},{"$f":"'2 REPAIR ESTIMATOR'!P561","v":0},{"$f":"'2 REPAIR ESTIMATOR'!S561","v":0},{"$f":"'2 REPAIR ESTIMATOR'!X561","v":{"v":0,"d":"$0.00"}},{"$f":"'2 REPAIR ESTIMATOR'!AG561","v":0},{"$f":"T('2 REPAIR ESTIMATOR'!AX561)","v":""},{"$f":"T('2 REPAIR ESTIMATOR'!AY561)","v":""},null,0,0,0,0]
[{"$nulls":9},{"$f":"T('2 REPAIR ESTIMATOR'!D562:O562)","v":""},{"$f":"'2 REPAIR ESTIMATOR'!P562","v":0},{"$f":"'2 REPAIR ESTIMATOR'!S562","v":0},{"$f":"'2 REPAIR ESTIMATOR'!X562","v":{"v":0,"d":"$0.00"}},{"$f":"'2 REPAIR ESTIMATOR'!AG562","v":0},{"$f":"T('2 REPAIR ESTIMATOR'!AX562)","v":""},{"$f":"T('2 REPAIR ESTIMATOR'!AY562)","v":""},null,0,0,0,0]
[{"$nulls":9},{"$f":"T('2 REPAIR ESTIMATOR'!D563:O563)","v":""},{"$f":"'2 REPAIR ESTIMATOR'!P563","v":0},{"$f":"'2 REPAIR ESTIMATOR'!S563","v":0},{"$f":"'2 REPAIR ESTIMATOR'!X563","v":{"v":0,"d":"$0.00"}},{"$f":"'2 REPAIR ESTIMATOR'!AG563","v":0},{"$f":"T('2 REPAIR ESTIMATOR'!AX563)","v":""},{"$f":"T('2 REPAIR ESTIMATOR'!AY563)","v":""},null,0,0,0,0]
[{"$nulls":9},{"$f":"T('2 REPAIR ESTIMATOR'!D564:O564)","v":""},{"$f":"'2 REPAIR ESTIMATOR'!P564","v":0},{"$f":"'2 REPAIR ESTIMATOR'!S564","v":0},{"$f":"'2 REPAIR ESTIMATOR'!X564","v":{"v":0,"d":"$0.00"}},{"$f":"'2 REPAIR ESTIMATOR'!AG564","v":0},{"$f":"T('2 REPAIR ESTIMATOR'!AX564)","v":""},{"$f":"T('2 REPAIR ESTIMATOR'!AY564)","v":""},null,0,0,0,0]
[{"$nulls":9},{"$f":"T('2 REPAIR ESTIMATOR'!D565:O565)","v":""},{"$f":"'2 REPAIR ESTIMATOR'!P565","v":0},{"$f":"'2 REPAIR ESTIMATOR'!S565","v":0},{"$f":"'2 REPAIR ESTIMATOR'!X565","v":{"v":0,"d":"$0.00"}},{"$f":"'2 REPAIR ESTIMATOR'!AG565","v":0},{"$f":"T('2 REPAIR ESTIMATOR'!AX565)","v":""},{"$f":"T('2 REPAIR ESTIMATOR'!AY565)","v":""},null,0,0,0,0]
[{"$nulls":9},{"$f":"T('2 REPAIR ESTIMATOR'!D566:O566)","v":""},{"$f":"'2 REPAIR ESTIMATOR'!P566","v":0},{"$f":"'2 REPAIR ESTIMATOR'!S566","v":0},{"$f":"'2 REPAIR ESTIMATOR'!X566","v":{"v":0,"d":"$0.00"}},{"$f":"'2 REPAIR ESTIMATOR'!AG566","v":0},{"$f":"T('2 REPAIR ESTIMATOR'!AX566)","v":""},{"$f":"T('2 REPAIR ESTIMATOR'!AY566)","v":""},null,0,0,0,0]
[{"$nulls":9},{"$f":"T('2 REPAIR ESTIMATOR'!D567:O567)","v":""},{"$f":"'2 REPAIR ESTIMATOR'!P567","v":0},{"$f":"'2 REPAIR ESTIMATOR'!S567","v":0},{"$f":"'2 REPAIR ESTIMATOR'!X567","v":{"v":0,"d":"$0.00"}},{"$f":"'2 REPAIR ESTIMATOR'!AG567","v":0},{"$f":"T('2 REPAIR ESTIMATOR'!AX567)","v":""},{"$f":"T('2 REPAIR ESTIMATOR'!AY567)","v":""},null,0,0,0,0]
[{"$nulls":9},{"$f":"T('2 REPAIR ESTIMATOR'!D568:O568)","v":""},{"$f":"'2 REPAIR ESTIMATOR'!P568","v":0},{"$f":"'2 REPAIR ESTIMATOR'!S568","v":0},{"$f":"'2 REPAIR ESTIMATOR'!X568","v":{"v":0,"d":"$0.00"}},{"$f":"'2 REPAIR ESTIMATOR'!AG568","v":0},{"$f":"T('2 REPAIR ESTIMATOR'!AX568)","v":""},{"$f":"T('2 REPAIR ESTIMATOR'!AY568)","v":""},null,0,0,0,0]
[{"$nulls":9},{"$f":"T('2 REPAIR ESTIMATOR'!D569:O569)","v":""},{"$f":"'2 REPAIR ESTIMATOR'!P569","v":0},{"$f":"'2 REPAIR ESTIMATOR'!S569","v":0},{"$f":"'2 REPAIR ESTIMATOR'!X569","v":{"v":0,"d":"$0.00"}},{"$f":"'2 REPAIR ESTIMATOR'!AG569","v":0},{"$f":"T('2 REPAIR ESTIMATOR'!AX569)","v":""},{"$f":"T('2 REPAIR ESTIMATOR'!AY569)","v":""},null,0,0,0,0]
[{"$nulls":9},{"$f":"T('2 REPAIR ESTIMATOR'!D570:O570)","v":""},{"$f":"'2 REPAIR ESTIMATOR'!P570","v":0},{"$f":"'2 REPAIR ESTIMATOR'!S570","v":0},{"$f":"'2 REPAIR ESTIMATOR'!X570","v":{"v":0,"d":"$0.00"}},{"$f":"'2 REPAIR ESTIMATOR'!AG570","v":0},{"$f":"T('2 REPAIR ESTIMATOR'!AX570)","v":""},{"$f":"T('2 REPAIR ESTIMATOR'!AY570)","v":""},null,0,0,0,0]
[{"$nulls":9},{"$f":"T('2 REPAIR ESTIMATOR'!D571:O571)","v":""},{"$f":"'2 REPAIR ESTIMATOR'!P571","v":0},{"$f":"'2 REPAIR ESTIMATOR'!S571","v":0},{"$f":"'2 REPAIR ESTIMATOR'!X571","v":{"v":0,"d":"$0.00"}},{"$f":"'2 REPAIR ESTIMATOR'!AG571","v":0},{"$f":"T('2 REPAIR ESTIMATOR'!AX571)","v":""},{"$f":"T('2 REPAIR ESTIMATOR'!AY571)","v":""},null,0,0,0,0]
[{"$nulls":9},{"$f":"T('2 REPAIR ESTIMATOR'!D572:O572)","v":""},{"$f":"'2 REPAIR ESTIMATOR'!P572","v":0},{"$f":"'2 REPAIR ESTIMATOR'!S572","v":0},{"$f":"'2 REPAIR ESTIMATOR'!X572","v":{"v":0,"d":"$0.00"}},{"$f":"'2 REPAIR ESTIMATOR'!AG572","v":0},{"$f":"T('2 REPAIR ESTIMATOR'!AX572)","v":""},{"$f":"T('2 REPAIR ESTIMATOR'!AY572)","v":""},null,0,0,0,0]
[{"$nulls":9},{"$f":"T('2 REPAIR ESTIMATOR'!D573:O573)","v":""},{"$f":"'2 REPAIR ESTIMATOR'!P573","v":0},{"$f":"'2 REPAIR ESTIMATOR'!S573","v":0},{"$f":"'2 REPAIR ESTIMATOR'!X573","v":{"v":0,"d":"$0.00"}},{"$f":"'2 REPAIR ESTIMATOR'!AG573","v":0},{"$f":"T('2 REPAIR ESTIMATOR'!AX573)","v":""},{"$f":"T('2 REPAIR ESTIMATOR'!AY573)","v":""},null,0,0,0,0]
[{"$nulls":9},{"$f":"T('2 REPAIR ESTIMATOR'!D574:O574)","v":""},{"$f":"'2 REPAIR ESTIMATOR'!P574","v":0},{"$f":"'2 REPAIR ESTIMATOR'!S574","v":0},{"$f":"'2 REPAIR ESTIMATOR'!X574","v":{"v":0,"d":"$0.00"}},{"$f":"'2 REPAIR ESTIMATOR'!AG574","v":0},{"$f":"T('2 REPAIR ESTIMATOR'!AX574)","v":""},{"$f":"T('2 REPAIR ESTIMATOR'!AY574)","v":""},null,0,0,0,0]
[{"$nulls":9},{"$f":"T('2 REPAIR ESTIMATOR'!D575:O575)","v":""},{"$f":"'2 REPAIR ESTIMATOR'!P575","v":0},{"$f":"'2 REPAIR ESTIMATOR'!S575","v":0},{"$f":"'2 REPAIR ESTIMATOR'!X575","v":{"v":0,"d":"$0.00"}},{"$f":"'2 REPAIR ESTIMATOR'!AG575","v":0},{"$f":"T('2 REPAIR ESTIMATOR'!AX575)","v":""},{"$f":"T('2 REPAIR ESTIMATOR'!AY575)","v":""},null,0,0,0,0]
[{"$nulls":9},{"$f":"T('2 REPAIR ESTIMATOR'!D576:O576)","v":""},{"$f":"'2 REPAIR ESTIMATOR'!P576","v":0},{"$f":"'2 REPAIR ESTIMATOR'!S576","v":0},{"$f":"'2 REPAIR ESTIMATOR'!X576","v":{"v":0,"d":"$0.00"}},{"$f":"'2 REPAIR ESTIMATOR'!AG576","v":0},{"$f":"T('2 REPAIR ESTIMATOR'!AX576)","v":""},{"$f":"T('2 REPAIR ESTIMATOR'!AY576)","v":""},null,0,0,0,0]
[{"$nulls":9},{"$f":"T('2 REPAIR ESTIMATOR'!D577:O577)","v":""},{"$f":"'2 REPAIR ESTIMATOR'!P577","v":0},{"$f":"'2 REPAIR ESTIMATOR'!S577","v":0},{"$f":"'2 REPAIR ESTIMATOR'!X577","v":{"v":0,"d":"$0.00"}},{"$f":"'2 REPAIR ESTIMATOR'!AG577","v":0},{"$f":"T('2 REPAIR ESTIMATOR'!AX577)","v":""},{"$f":"T('2 REPAIR ESTIMATOR'!AY577)","v":""},null,0,0,0,0]
[{"$nulls":12},{"$f":"CONCATENATE(J574,\" \",\"TOTAL\")","v":"LANDSCAPING TOTAL"},{"$f":"SUBTOTAL(9,N575:N614)","v":{"v":321,"d":"$321.00"}},{"$nulls":3},{"$f":"SUM(R575:R614)","v":1},{"$f":"SUM(S575:S614)","v":0},{"$f":"SUM(T575:T614)","v":0},{"$f":"SUM(U575:U614)","v":1}]
[{"$nulls":9},{"$f":"T(#REF!)","v":{"$error":"#REF!"}},{"$f":"#REF!","v":{"$error":"#REF!"}},{"$f":"#REF!","v":{"$error":"#REF!"}},{"$f":"#REF!","v":{"$error":"#REF!"}},{"$f":"#REF!","v":{"$error":"#REF!"}},{"$nulls":3},{"$f":"R615","v":1},{"$f":"S615","v":0},{"$f":"T615","v":0},{"$f":"U615","v":1}]
[{"$nulls":9},{"$f":"CONCATENATE(\"MISCELLANEOUS \",J574,\" MATERIAL ITEMS\")","v":"MISCELLANEOUS LANDSCAPING MATERIAL ITEMS"},{"$nulls":4},"Store","SKU #",null,{"$f":"SUM(R618:R627)*R574","v":{"$error":"#REF!"}},{"$f":"SUM(S618:S627)","v":0},{"$f":"SUM(T618:T627)","v":0},{"$f":"SUM(U618:U627)","v":{"$error":"#REF!"}}]
[{"$nulls":9},"1. Landscaping plantings",{"$nulls":7},{"$f":"IF(OR(G618=\"x\",J618>0),1,0)*R574","v":{"$error":"#REF!"}},{"$f":"IF(G618=\"x\",1,0)","v":0},{"$f":"IF(H618=\"x\",1,0)","v":0},{"$f":"IF(AND(R618=1,T618<>1),1,0)","v":{"$error":"#REF!"}}]
[{"$nulls":9},"2. Top soil, planting soil",{"$nulls":7},{"$f":"IF(OR(G619=\"x\",J619>0),1,0)*R574","v":{"$error":"#REF!"}},0,0,{"$error":"#REF!"}]
[{"$nulls":9},"3. Landscaping filter fabric",{"$nulls":7},{"$f":"IF(OR(G620=\"x\",J620>0),1,0)*R574","v":{"$error":"#REF!"}},0,0,{"$error":"#REF!"}]
[{"$nulls":9},"4. Bags of Mulch",{"$nulls":7},{"$f":"IF(OR(G621=\"x\",J621>0),1,0)*R574","v":{"$error":"#REF!"}},0,0,{"$error":"#REF!"}]
[{"$nulls":17},{"$f":"IF(OR(G622=\"x\",J622>0),1,0)*R574","v":{"$error":"#REF!"}},0,0,{"$error":"#REF!"}]
[{"$nulls":17},{"$f":"IF(OR(G623=\"x\",J623>0),1,0)*R574","v":{"$error":"#REF!"}},0,0,{"$error":"#REF!"}]
[{"$nulls":17},{"$f":"IF(OR(G624=\"x\",J624>0),1,0)*R574","v":{"$error":"#REF!"}},0,0,{"$error":"#REF!"}]
[{"$nulls":17},{"$f":"IF(OR(G625=\"x\",J625>0),1,0)*R574","v":{"$error":"#REF!"}},0,0,{"$error":"#REF!"}]
[{"$nulls":17},{"$f":"IF(OR(G626=\"x\",J626>0),1,0)*R574","v":{"$error":"#REF!"}},0,0,{"$error":"#REF!"}]
[{"$nulls":17},{"$f":"IF(OR(G627=\"x\",J627>0),1,0)*R574","v":{"$error":"#REF!"}},0,0,{"$error":"#REF!"}]
[{"$nulls":9},{"$f":"T(#REF!)","v":{"$error":"#REF!"}},{"$f":"#REF!","v":{"$error":"#REF!"}},{"$f":"#REF!","v":{"$error":"#REF!"}},{"$f":"#REF!","v":{"$error":"#REF!"}},{"$f":"#REF!","v":{"$error":"#REF!"}},{"$nulls":3},{"$f":"R617*R574","v":{"$error":"#REF!"}},{"$f":"S617","v":0},{"$f":"T617","v":0},{"$f":"U617","v":{"$error":"#REF!"}}]
[{"$nulls":9},{"$f":"T('2 REPAIR ESTIMATOR'!D582:O582)","v":"MISC. EXTERIOR ITEMS"},{"$f":"#REF!","v":{"$error":"#REF!"}},{"$f":"#REF!","v":{"$error":"#REF!"}},{"$f":"#REF!","v":{"$error":"#REF!"}},{"$f":"#REF!","v":{"$error":"#REF!"}},{"$nulls":3},{"$f":"IF(SUM(R630:R683)>0,1,0)","v":{"$error":"#REF!"}},{"$f":"SUM(S630:S683)","v":0},{"$f":"SUM(T630:T683)","v":0},{"$f":"SUM(U630:U683)","v":{"$error":"#REF!"}}]
[{"$nulls":9},{"$f":"T('2 REPAIR ESTIMATOR'!D583:O583)","v":"Misc. Ext Improvements bid/allowance"},{"$f":"'2 REPAIR ESTIMATOR'!P583","v":0},{"$f":"'2 REPAIR ESTIMATOR'!S583","v":"ls"},{"$f":"'2 REPAIR ESTIMATOR'!X583","v":{"v":0,"d":"$0.00"}},{"$f":"'2 REPAIR ESTIMATOR'!AG583","v":0},{"$f":"T('2 REPAIR ESTIMATOR'!AX583)","v":""},{"$f":"T('2 REPAIR ESTIMATOR'!AY583)","v":""},null,{"$f":"IF(OR(G630=\"x\",N630>0),1,0)","v":0},{"$f":"IF(G630=\"x\",1,0)","v":0},{"$f":"IF(H630=\"x\",1,0)","v":0},{"$f":"IF(AND(R630=1,T630<>1),1,0)","v":0}]
[{"$nulls":9},{"$f":"T('2 REPAIR ESTIMATOR'!D584:O584)","v":"Miscellaneous Improvements"},{"$f":"'2 REPAIR ESTIMATOR'!P584","v":0},{"$f":"'2 REPAIR ESTIMATOR'!S584","v":0},{"$f":"'2 REPAIR ESTIMATOR'!X584","v":{"v":0,"d":"$0.00"}},{"$f":"'2 REPAIR ESTIMATOR'!AG584","v":0},{"$f":"T('2 REPAIR ESTIMATOR'!AX584)","v":""},{"$f":"T('2 REPAIR ESTIMATOR'!AY584)","v":""},null,{"$f":"IF(OR(G631=\"x\",N631>0),1,0)","v":0},{"$f":"IF(G631=\"x\",1,0)","v":0},{"$f":"IF(H631=\"x\",1,0)","v":0},{"$f":"IF(AND(R631=1,T631<>1),1,0)","v":0}]
[{"$nulls":9},{"$f":"T('2 REPAIR ESTIMATOR'!D585:O585)","v":"New mailbox"},{"$f":"'2 REPAIR ESTIMATOR'!P585","v":1},{"$f":"'2 REPAIR ESTIMATOR'!S585","v":"ea"},{"$f":"'2 REPAIR ESTIMATOR'!X585","v":{"v":100,"d":"$100.00"}},{"$f":"'2 REPAIR ESTIMATOR'!AG585","v":{"v":107,"d":"$107.00"}},{"$f":"T('2 REPAIR ESTIMATOR'!AX585)","v":""},{"$f":"T('2 REPAIR ESTIMATOR'!AY585)","v":""},null,1,0,0,1]
[{"$nulls":9},{"$f":"T('2 REPAIR ESTIMATOR'!D586:O586)","v":"New address #"},{"$f":"'2 REPAIR ESTIMATOR'!P586","v":1},{"$f":"'2 REPAIR ESTIMATOR'!S586","v":"ea"},{"$f":"'2 REPAIR ESTIMATOR'!X586","v":{"v":40,"d":"$40.00"}},{"$f":"'2 REPAIR ESTIMATOR'!AG586","v":{"v":42.800000000000004,"d":"$42.80"}},{"$f":"T('2 REPAIR ESTIMATOR'!AX586)","v":""},{"$f":"T('2 REPAIR ESTIMATOR'!AY586)","v":""},null,1,0,0,1]
[{"$nulls":9},{"$f":"T('2 REPAIR ESTIMATOR'!D587:O587)","v":"Shutters"},{"$f":"'2 REPAIR ESTIMATOR'!P587","v":6},{"$f":"'2 REPAIR ESTIMATOR'!S587","v":"ea"},{"$f":"'2 REPAIR ESTIMATOR'!X587","v":{"v":40,"d":"$40.00"}},{"$f":"'2 REPAIR ESTIMATOR'!AG587","v":{"v":256.8,"d":"$256.80"}},{"$f":"T('2 REPAIR ESTIMATOR'!AX587)","v":""},{"$f":"T('2 REPAIR ESTIMATOR'!AY587)","v":""},null,1,0,0,1]
[{"$nulls":9},{"$f":"T('2 REPAIR ESTIMATOR'!D588:O588)","v":""},{"$f":"'2 REPAIR ESTIMATOR'!P588","v":0},{"$f":"'2 REPAIR ESTIMATOR'!S588","v":0},{"$f":"'2 REPAIR ESTIMATOR'!X588","v":{"v":0,"d":"$0.00"}},{"$f":"'2 REPAIR ESTIMATOR'!AG588","v":0},{"$f":"T('2 REPAIR ESTIMATOR'!AX588)","v":""},{"$f":"T('2 REPAIR ESTIMATOR'!AY588)","v":""},null,0,0,0,0]
[{"$nulls":9},{"$f":"T('2 REPAIR ESTIMATOR'!D589:O589)","v":"Fencing"},{"$f":"'2 REPAIR ESTIMATOR'!P589","v":0},{"$f":"'2 REPAIR ESTIMATOR'!S589","v":0},{"$f":"'2 REPAIR ESTIMATOR'!X589","v":{"v":0,"d":"$0.00"}},{"$f":"'2 REPAIR ESTIMATOR'!AG589","v":0},{"$f":"T('2 REPAIR ESTIMATOR'!AX589)","v":""},{"$f":"T('2 REPAIR ESTIMATOR'!AY589)","v":""},null,0,0,0,0]
[{"$nulls":9},{"$f":"T('2 REPAIR ESTIMATOR'!D590:O590)","v":"Chain link fencing"},{"$f":"'2 REPAIR ESTIMATOR'!P590","v":0},{"$f":"'2 REPAIR ESTIMATOR'!S590","v":"lf"},{"$f":"'2 REPAIR ESTIMATOR'!X590","v":{"v":8,"d":"$8.00"}},{"$f":"'2 REPAIR ESTIMATOR'!AG590","v":0},{"$f":"T('2 REPAIR ESTIMATOR'!AX590)","v":""},{"$f":"T('2 REPAIR ESTIMATOR'!AY590)","v":""},null,0,0,0,0]
[{"$nulls":9},{"$f":"T('2 REPAIR ESTIMATOR'!D591:O591)","v":"Wood fencing"},{"$f":"'2 REPAIR ESTIMATOR'!P591","v":0},{"$f":"'2 REPAIR ESTIMATOR'!S591","v":"lf"},{"$f":"'2 REPAIR ESTIMATOR'!X591","v":{"v":13.5,"d":"$13.50"}},{"$f":"'2 REPAIR ESTIMATOR'!AG591","v":0},{"$f":"T('2 REPAIR ESTIMATOR'!AX591)","v":""},{"$f":"T('2 REPAIR ESTIMATOR'!AY591)","v":""},null,0,0,0,0]
[{"$nulls":9},{"$f":"T('2 REPAIR ESTIMATOR'!D592:O592)","v":""},{"$f":"'2 REPAIR ESTIMATOR'!P592","v":0},{"$f":"'2 REPAIR ESTIMATOR'!S592","v":0},{"$f":"'2 REPAIR ESTIMATOR'!X592","v":{"v":0,"d":"$0.00"}},{"$f":"'2 REPAIR ESTIMATOR'!AG592","v":0},{"$f":"T('2 REPAIR ESTIMATOR'!AX592)","v":""},{"$f":"T('2 REPAIR ESTIMATOR'!AY592)","v":""},null,0,0,0,0]
[{"$nulls":9},{"$f":"T('2 REPAIR ESTIMATOR'!D593:O593)","v":"Misc. Exterior Structures"},{"$f":"'2 REPAIR ESTIMATOR'!P593","v":0},{"$f":"'2 REPAIR ESTIMATOR'!S593","v":0},{"$f":"'2 REPAIR ESTIMATOR'!X593","v":{"v":0,"d":"$0.00"}},{"$f":"'2 REPAIR ESTIMATOR'!AG593","v":0},{"$f":"T('2 REPAIR ESTIMATOR'!AX593)","v":""},{"$f":"T('2 REPAIR ESTIMATOR'!AY593)","v":""},null,0,0,0,0]
[{"$nulls":9},{"$f":"T('2 REPAIR ESTIMATOR'!D594:O594)","v":"Premanufactured carport"},{"$f":"'2 REPAIR ESTIMATOR'!P594","v":0},{"$f":"'2 REPAIR ESTIMATOR'!S594","v":"ea"},{"$f":"'2 REPAIR ESTIMATOR'!X594","v":{"v":4500,"d":"$4,500.00"}},{"$f":"'2 REPAIR ESTIMATOR'!AG594","v":0},{"$f":"T('2 REPAIR ESTIMATOR'!AX594)","v":""},{"$f":"T('2 REPAIR ESTIMATOR'!AY594)","v":""},null,0,0,0,0]
[{"$nulls":9},{"$f":"T('2 REPAIR ESTIMATOR'!D595:O595)","v":"Storage shed, wood"},{"$f":"'2 REPAIR ESTIMATOR'!P595","v":0},{"$f":"'2 REPAIR ESTIMATOR'!S595","v":"ea"},{"$f":"'2 REPAIR ESTIMATOR'!X595","v":{"v":1750,"d":"$1,750.00"}},{"$f":"'2 REPAIR ESTIMATOR'!AG595","v":0},{"$f":"T('2 REPAIR ESTIMATOR'!AX595)","v":""},{"$f":"T('2 REPAIR ESTIMATOR'!AY595)","v":""},null,0,0,0,0]
[{"$nulls":9},{"$f":"T('2 REPAIR ESTIMATOR'!D596:O596)","v":"Gazebo"},{"$f":"'2 REPAIR ESTIMATOR'!P596","v":0},{"$f":"'2 REPAIR ESTIMATOR'!S596","v":"sf"},{"$f":"'2 REPAIR ESTIMATOR'!X596","v":{"v":45,"d":"$45.00"}},{"$f":"'2 REPAIR ESTIMATOR'!AG596","v":0},{"$f":"T('2 REPAIR ESTIMATOR'!AX596)","v":""},{"$f":"T('2 REPAIR ESTIMATOR'!AY596)","v":""},null,0,0,0,0]
[{"$nulls":9},{"$f":"T('2 REPAIR ESTIMATOR'!D597:O597)","v":""},{"$f":"'2 REPAIR ESTIMATOR'!P597","v":0},{"$f":"'2 REPAIR ESTIMATOR'!S597","v":0},{"$f":"'2 REPAIR ESTIMATOR'!X597","v":{"v":0,"d":"$0.00"}},{"$f":"'2 REPAIR ESTIMATOR'!AG597","v":0},{"$f":"T('2 REPAIR ESTIMATOR'!AX597)","v":""},{"$f":"T('2 REPAIR ESTIMATOR'!AY597)","v":""},null,0,0,0,0]
[{"$nulls":9},{"$f":"T('2 REPAIR ESTIMATOR'!D598:O598)","v":"Pools"},{"$f":"'2 REPAIR ESTIMATOR'!P598","v":0},{"$f":"'2 REPAIR ESTIMATOR'!S598","v":0},{"$f":"'2 REPAIR ESTIMATOR'!X598","v":{"v":0,"d":"$0.00"}},{"$f":"'2 REPAIR ESTIMATOR'!AG598","v":0},{"$f":"T('2 REPAIR ESTIMATOR'!AX598)","v":""},{"$f":"T('2 REPAIR ESTIMATOR'!AY598)","v":""},null,0,0,0,0]
[{"$nulls":9},{"$f":"T('2 REPAIR ESTIMATOR'!D599:O599)","v":"New Pool structure"},{"$f":"'2 REPAIR ESTIMATOR'!P599","v":0},{"$f":"'2 REPAIR ESTIMATOR'!S599","v":"sf"},{"$f":"'2 REPAIR ESTIMATOR'!X599","v":{"v":0,"d":"$0.00"}},{"$f":"'2 REPAIR ESTIMATOR'!AG599","v":0},{"$f":"T('2 REPAIR ESTIMATOR'!AX599)","v":""},{"$f":"T('2 REPAIR ESTIMATOR'!AY599)","v":""},null,0,0,0,0]
[{"$nulls":9},{"$f":"T('2 REPAIR ESTIMATOR'!D600:O600)","v":"Pool heater/motor"},{"$f":"'2 REPAIR ESTIMATOR'!P600","v":0},{"$f":"'2 REPAIR ESTIMATOR'!S600","v":"ea"},{"$f":"'2 REPAIR ESTIMATOR'!X600","v":{"v":500,"d":"$500.00"}},{"$f":"'2 REPAIR ESTIMATOR'!AG600","v":0},{"$f":"T('2 REPAIR ESTIMATOR'!AX600)","v":""},{"$f":"T('2 REPAIR ESTIMATOR'!AY600)","v":""},null,0,0,0,0]
[{"$nulls":9},{"$f":"T('2 REPAIR ESTIMATOR'!D601:O601)","v":"Pool filter system"},{"$f":"'2 REPAIR ESTIMATOR'!P601","v":0},{"$f":"'2 REPAIR ESTIMATOR'!S601","v":"ea"},{"$f":"'2 REPAIR ESTIMATOR'!X601","v":{"v":400,"d":"$400.00"}},{"$f":"'2 REPAIR ESTIMATOR'!AG601","v":0},{"$f":"T('2 REPAIR ESTIMATOR'!AX601)","v":""},{"$f":"T('2 REPAIR ESTIMATOR'!AY601)","v":""},null,0,0,0,0]
[{"$nulls":9},{"$f":"T('2 REPAIR ESTIMATOR'!D602:O602)","v":"Replaster existing pool wall"},{"$f":"'2 REPAIR ESTIMATOR'!P602","v":0},{"$f":"'2 REPAIR ESTIMATOR'!S602","v":"sf"},{"$f":"'2 REPAIR ESTIMATOR'!X602","v":{"v":1.5,"d":"$1.50"}},{"$f":"'2 REPAIR ESTIMATOR'!AG602","v":0},{"$f":"T('2 REPAIR ESTIMATOR'!AX602)","v":""},{"$f":"T('2 REPAIR ESTIMATOR'!AY602)","v":""},null,0,0,0,0]
[{"$nulls":9},{"$f":"T('2 REPAIR ESTIMATOR'!D603:O603)","v":""},{"$f":"'2 REPAIR ESTIMATOR'!P603","v":0},{"$f":"'2 REPAIR ESTIMATOR'!S603","v":0},{"$f":"'2 REPAIR ESTIMATOR'!X603","v":{"v":0,"d":"$0.00"}},{"$f":"'2 REPAIR ESTIMATOR'!AG603","v":0},{"$f":"T('2 REPAIR ESTIMATOR'!AX603)","v":""},{"$f":"T('2 REPAIR ESTIMATOR'!AY603)","v":""},null,0,0,0,0]
[{"$nulls":9},{"$f":"T('2 REPAIR ESTIMATOR'!D604:O604)","v":""},{"$f":"'2 REPAIR ESTIMATOR'!P604","v":0},{"$f":"'2 REPAIR ESTIMATOR'!S604","v":0},{"$f":"'2 REPAIR ESTIMATOR'!X604","v":{"v":0,"d":"$0.00"}},{"$f":"'2 REPAIR ESTIMATOR'!AG604","v":0},{"$f":"T('2 REPAIR ESTIMATOR'!AX604)","v":""},{"$f":"T('2 REPAIR ESTIMATOR'!AY604)","v":""},null,0,0,0,0]
[{"$nulls":9},{"$f":"T('2 REPAIR ESTIMATOR'!D605:O605)","v":""},{"$f":"'2 REPAIR ESTIMATOR'!P605","v":0},{"$f":"'2 REPAIR ESTIMATOR'!S605","v":0},{"$f":"'2 REPAIR ESTIMATOR'!X605","v":{"v":0,"d":"$0.00"}},{"$f":"'2 REPAIR ESTIMATOR'!AG605","v":0},{"$f":"T('2 REPAIR ESTIMATOR'!AX605)","v":""},{"$f":"T('2 REPAIR ESTIMATOR'!AY605)","v":""},null,0,0,0,0]
[{"$nulls":9},{"$f":"T('2 REPAIR ESTIMATOR'!D606:O606)","v":""},{"$f":"'2 REPAIR ESTIMATOR'!P606","v":0},{"$f":"'2 REPAIR ESTIMATOR'!S606","v":0},{"$f":"'2 REPAIR ESTIMATOR'!X606","v":{"v":0,"d":"$0.00"}},{"$f":"'2 REPAIR ESTIMATOR'!AG606","v":0},{"$f":"T('2 REPAIR ESTIMATOR'!AX606)","v":""},{"$f":"T('2 REPAIR ESTIMATOR'!AY606)","v":""},null,0,0,0,0]
[{"$nulls":9},{"$f":"T('2 REPAIR ESTIMATOR'!D607:O607)","v":""},{"$f":"'2 REPAIR ESTIMATOR'!P607","v":0},{"$f":"'2 REPAIR ESTIMATOR'!S607","v":0},{"$f":"'2 REPAIR ESTIMATOR'!X607","v":{"v":0,"d":"$0.00"}},{"$f":"'2 REPAIR ESTIMATOR'!AG607","v":0},{"$f":"T('2 REPAIR ESTIMATOR'!AX607)","v":""},{"$f":"T('2 REPAIR ESTIMATOR'!AY607)","v":""},null,0,0,0,0]
[{"$nulls":9},{"$f":"T('2 REPAIR ESTIMATOR'!D608:O608)","v":""},{"$f":"'2 REPAIR ESTIMATOR'!P608","v":0},{"$f":"'2 REPAIR ESTIMATOR'!S608","v":0},{"$f":"'2 REPAIR ESTIMATOR'!X608","v":{"v":0,"d":"$0.00"}},{"$f":"'2 REPAIR ESTIMATOR'!AG608","v":0},{"$f":"T('2 REPAIR ESTIMATOR'!AX608)","v":""},{"$f":"T('2 REPAIR ESTIMATOR'!AY608)","v":""},null,0,0,0,0]
[{"$nulls":9},{"$f":"T('2 REPAIR ESTIMATOR'!D609:O609)","v":""},{"$f":"'2 REPAIR ESTIMATOR'!P609","v":0},{"$f":"'2 REPAIR ESTIMATOR'!S609","v":0},{"$f":"'2 REPAIR ESTIMATOR'!X609","v":{"v":0,"d":"$0.00"}},{"$f":"'2 REPAIR ESTIMATOR'!AG609","v":0},{"$f":"T('2 REPAIR ESTIMATOR'!AX609)","v":""},{"$f":"T('2 REPAIR ESTIMATOR'!AY609)","v":""},null,0,0,0,0]
[{"$nulls":9},{"$f":"T('2 REPAIR ESTIMATOR'!D610:O610)","v":""},{"$f":"'2 REPAIR ESTIMATOR'!P610","v":0},{"$f":"'2 REPAIR ESTIMATOR'!S610","v":0},{"$f":"'2 REPAIR ESTIMATOR'!X610","v":{"v":0,"d":"$0.00"}},{"$f":"'2 REPAIR ESTIMATOR'!AG610","v":0},{"$f":"T('2 REPAIR ESTIMATOR'!AX610)","v":""},{"$f":"T('2 REPAIR ESTIMATOR'!AY610)","v":""},null,0,0,0,0]
[{"$nulls":9},{"$f":"T('2 REPAIR ESTIMATOR'!D611:O611)","v":""},{"$f":"'2 REPAIR ESTIMATOR'!P611","v":0},{"$f":"'2 REPAIR ESTIMATOR'!S611","v":0},{"$f":"'2 REPAIR ESTIMATOR'!X611","v":{"v":0,"d":"$0.00"}},{"$f":"'2 REPAIR ESTIMATOR'!AG611","v":0},{"$f":"T('2 REPAIR ESTIMATOR'!AX611)","v":""},{"$f":"T('2 REPAIR ESTIMATOR'!AY611)","v":""},null,0,0,0,0]
[{"$nulls":9},{"$f":"T('2 REPAIR ESTIMATOR'!D612:O612)","v":""},{"$f":"'2 REPAIR ESTIMATOR'!P612","v":0},{"$f":"'2 REPAIR ESTIMATOR'!S612","v":0},{"$f":"'2 REPAIR ESTIMATOR'!X612","v":{"v":0,"d":"$0.00"}},{"$f":"'2 REPAIR ESTIMATOR'!AG612","v":0},{"$f":"T('2 REPAIR ESTIMATOR'!AX612)","v":""},{"$f":"T('2 REPAIR ESTIMATOR'!AY612)","v":""},null,0,0,0,0]
[{"$nulls":9},{"$f":"T('2 REPAIR ESTIMATOR'!D613:O613)","v":""},{"$f":"'2 REPAIR ESTIMATOR'!P613","v":0},{"$f":"'2 REPAIR ESTIMATOR'!S613","v":0},{"$f":"'2 REPAIR ESTIMATOR'!X613","v":{"v":0,"d":"$0.00"}},{"$f":"'2 REPAIR ESTIMATOR'!AG613","v":0},{"$f":"T('2 REPAIR ESTIMATOR'!AX613)","v":""},{"$f":"T('2 REPAIR ESTIMATOR'!AY613)","v":""},null,0,0,0,0]
[{"$nulls":9},{"$f":"T('2 REPAIR ESTIMATOR'!D614:O614)","v":""},{"$f":"'2 REPAIR ESTIMATOR'!P614","v":0},{"$f":"'2 REPAIR ESTIMATOR'!S614","v":0},{"$f":"'2 REPAIR ESTIMATOR'!X614","v":{"v":0,"d":"$0.00"}},{"$f":"'2 REPAIR ESTIMATOR'!AG614","v":0},{"$f":"T('2 REPAIR ESTIMATOR'!AX614)","v":""},{"$f":"T('2 REPAIR ESTIMATOR'!AY614)","v":""},null,0,0,0,0]
[{"$nulls":9},{"$f":"T('2 REPAIR ESTIMATOR'!D615:O615)","v":""},{"$f":"'2 REPAIR ESTIMATOR'!P615","v":0},{"$f":"'2 REPAIR ESTIMATOR'!S615","v":0},{"$f":"'2 REPAIR ESTIMATOR'!X615","v":{"v":0,"d":"$0.00"}},{"$f":"'2 REPAIR ESTIMATOR'!AG615","v":0},{"$f":"T('2 REPAIR ESTIMATOR'!AX615)","v":""},{"$f":"T('2 REPAIR ESTIMATOR'!AY615)","v":""},null,0,0,0,0]
[{"$nulls":9},{"$f":"T('2 REPAIR ESTIMATOR'!D616:O616)","v":""},{"$f":"'2 REPAIR ESTIMATOR'!P616","v":0},{"$f":"'2 REPAIR ESTIMATOR'!S616","v":0},{"$f":"'2 REPAIR ESTIMATOR'!X616","v":{"v":0,"d":"$0.00"}},{"$f":"'2 REPAIR ESTIMATOR'!AG616","v":0},{"$f":"T('2 REPAIR ESTIMATOR'!AX616)","v":""},{"$f":"T('2 REPAIR ESTIMATOR'!AY616)","v":""},null,0,0,0,0]
[{"$nulls":9},{"$f":"T('2 REPAIR ESTIMATOR'!D617:O617)","v":""},{"$f":"'2 REPAIR ESTIMATOR'!P617","v":0},{"$f":"'2 REPAIR ESTIMATOR'!S617","v":0},{"$f":"'2 REPAIR ESTIMATOR'!X617","v":{"v":0,"d":"$0.00"}},{"$f":"'2 REPAIR ESTIMATOR'!AG617","v":0},{"$f":"T('2 REPAIR ESTIMATOR'!AX617)","v":""},{"$f":"T('2 REPAIR ESTIMATOR'!AY617)","v":""},null,0,0,0,0]
[{"$nulls":9},{"$f":"T('2 REPAIR ESTIMATOR'!D618:O618)","v":""},{"$f":"'2 REPAIR ESTIMATOR'!P618","v":0},{"$f":"'2 REPAIR ESTIMATOR'!S618","v":0},{"$f":"'2 REPAIR ESTIMATOR'!X618","v":{"v":0,"d":"$0.00"}},{"$f":"'2 REPAIR ESTIMATOR'!AG618","v":0},{"$f":"T('2 REPAIR ESTIMATOR'!AX618)","v":""},{"$f":"T('2 REPAIR ESTIMATOR'!AY618)","v":""},null,0,0,0,0]
[{"$nulls":9},{"$f":"T('2 REPAIR ESTIMATOR'!D619:O619)","v":""},{"$f":"'2 REPAIR ESTIMATOR'!P619","v":0},{"$f":"'2 REPAIR ESTIMATOR'!S619","v":0},{"$f":"'2 REPAIR ESTIMATOR'!X619","v":{"v":0,"d":"$0.00"}},{"$f":"'2 REPAIR ESTIMATOR'!AG619","v":0},{"$f":"T('2 REPAIR ESTIMATOR'!AX619)","v":""},{"$f":"T('2 REPAIR ESTIMATOR'!AY619)","v":""},null,0,0,0,0]
[{"$nulls":9},{"$f":"T('2 REPAIR ESTIMATOR'!D620:O620)","v":""},{"$f":"'2 REPAIR ESTIMATOR'!P620","v":0},{"$f":"'2 REPAIR ESTIMATOR'!S620","v":0},{"$f":"'2 REPAIR ESTIMATOR'!X620","v":{"v":0,"d":"$0.00"}},{"$f":"'2 REPAIR ESTIMATOR'!AG620","v":0},{"$f":"T('2 REPAIR ESTIMATOR'!AX620)","v":""},{"$f":"T('2 REPAIR ESTIMATOR'!AY620)","v":""},null,0,0,0,0]
[{"$nulls":9},{"$f":"T('2 REPAIR ESTIMATOR'!D621:O621)","v":""},{"$f":"'2 REPAIR ESTIMATOR'!P621","v":0},{"$f":"'2 REPAIR ESTIMATOR'!S621","v":0},{"$f":"'2 REPAIR ESTIMATOR'!X621","v":{"v":0,"d":"$0.00"}},{"$f":"'2 REPAIR ESTIMATOR'!AG621","v":0},{"$f":"T('2 REPAIR ESTIMATOR'!AX621)","v":""},{"$f":"T('2 REPAIR ESTIMATOR'!AY621)","v":""},null,0,0,0,0]
[{"$nulls":9},{"$f":"T('2 REPAIR ESTIMATOR'!D622:O622)","v":""},{"$f":"'2 REPAIR ESTIMATOR'!P622","v":0},{"$f":"'2 REPAIR ESTIMATOR'!S622","v":0},{"$f":"'2 REPAIR ESTIMATOR'!X622","v":{"v":0,"d":"$0.00"}},{"$f":"'2 REPAIR ESTIMATOR'!AG622","v":0},{"$f":"T('2 REPAIR ESTIMATOR'!AX622)","v":""},{"$f":"T('2 REPAIR ESTIMATOR'!AY622)","v":""},null,0,0,0,0]
[{"$nulls":12},{"$f":"CONCATENATE(J629,\" \",\"TOTAL\")","v":"MISC. EXTERIOR ITEMS TOTAL"},{"$f":"SUBTOTAL(9,N630:N669)","v":{"v":406.6,"d":"$406.60"}},{"$nulls":3},{"$f":"SUM(R630:R669)","v":3},{"$f":"SUM(S630:S669)","v":0},{"$f":"SUM(T630:T669)","v":0},{"$f":"SUM(U630:U669)","v":3}]
[{"$nulls":9},{"$f":"T(#REF!)","v":{"$error":"#REF!"}},{"$f":"#REF!","v":{"$error":"#REF!"}},{"$f":"#REF!","v":{"$error":"#REF!"}},{"$f":"#REF!","v":{"$error":"#REF!"}},{"$f":"#REF!","v":{"$error":"#REF!"}},{"$nulls":3},{"$f":"R670","v":3},{"$f":"S670","v":0},{"$f":"T670","v":0},{"$f":"U670","v":3}]
[{"$nulls":9},{"$f":"CONCATENATE(\"MISCELLANEOUS \",J629,\" MATERIAL ITEMS\")","v":"MISCELLANEOUS MISC. EXTERIOR ITEMS MATERIAL ITEMS"},{"$nulls":4},"Store","SKU #",null,{"$f":"SUM(R673:R682)*R629","v":{"$error":"#REF!"}},{"$f":"SUM(S673:S682)","v":0},{"$f":"SUM(T673:T682)","v":0},{"$f":"SUM(U673:U682)","v":{"$error":"#REF!"}}]
[{"$nulls":17},{"$f":"IF(OR(G673=\"x\",J673>0),1,0)*R629","v":{"$error":"#REF!"}},{"$f":"IF(G673=\"x\",1,0)","v":0},{"$f":"IF(H673=\"x\",1,0)","v":0},{"$f":"IF(AND(R673=1,T673<>1),1,0)","v":{"$error":"#REF!"}}]
[{"$nulls":17},{"$f":"IF(OR(G674=\"x\",J674>0),1,0)*R629","v":{"$error":"#REF!"}},0,0,{"$error":"#REF!"}]
[{"$nulls":17},{"$f":"IF(OR(G675=\"x\",J675>0),1,0)*R629","v":{"$error":"#REF!"}},0,0,{"$error":"#REF!"}]
[{"$nulls":17},{"$f":"IF(OR(G676=\"x\",J676>0),1,0)*R629","v":{"$error":"#REF!"}},0,0,{"$error":"#REF!"}]
[{"$nulls":17},{"$f":"IF(OR(G677=\"x\",J677>0),1,0)*R629","v":{"$error":"#REF!"}},0,0,{"$error":"#REF!"}]
[{"$nulls":17},{"$f":"IF(OR(G678=\"x\",J678>0),1,0)*R629","v":{"$error":"#REF!"}},0,0,{"$error":"#REF!"}]
[{"$nulls":17},{"$f":"IF(OR(G679=\"x\",J679>0),1,0)*R629","v":{"$error":"#REF!"}},0,0,{"$error":"#REF!"}]
[{"$nulls":17},{"$f":"IF(OR(G680=\"x\",J680>0),1,0)*R629","v":{"$error":"#REF!"}},0,0,{"$error":"#REF!"}]
[{"$nulls":17},{"$f":"IF(OR(G681=\"x\",J681>0),1,0)*R629","v":{"$error":"#REF!"}},0,0,{"$error":"#REF!"}]
[{"$nulls":17},{"$f":"IF(OR(G682=\"x\",J682>0),1,0)*R629","v":{"$error":"#REF!"}},0,0,{"$error":"#REF!"}]
[{"$nulls":9},{"$f":"T(#REF!)","v":{"$error":"#REF!"}},{"$f":"#REF!","v":{"$error":"#REF!"}},{"$f":"#REF!","v":{"$error":"#REF!"}},{"$f":"#REF!","v":{"$error":"#REF!"}},{"$f":"#REF!","v":{"$error":"#REF!"}},{"$nulls":3},{"$f":"R672*R629","v":{"$error":"#REF!"}},{"$f":"S672","v":0},{"$f":"T672","v":0},{"$f":"U672","v":{"$error":"#REF!"}}]
[{"$nulls":9},{"$f":"T('2 REPAIR ESTIMATOR'!D627:O627)","v":"FRAMING & DRYWALL"},{"$f":"#REF!","v":{"$error":"#REF!"}},{"$f":"#REF!","v":{"$error":"#REF!"}},{"$f":"#REF!","v":{"$error":"#REF!"}},{"$f":"#REF!","v":{"$error":"#REF!"}},{"$nulls":3},{"$f":"IF(SUM(R685:R738)>0,1,0)","v":{"$error":"#REF!"}},{"$f":"SUM(S685:S738)","v":0},{"$f":"SUM(T685:T738)","v":0},{"$f":"SUM(U685:U738)","v":{"$error":"#REF!"}}]
[{"$nulls":9},{"$f":"T('2 REPAIR ESTIMATOR'!D628:O628)","v":"Framing"},{"$f":"'2 REPAIR ESTIMATOR'!P628","v":0},{"$f":"'2 REPAIR ESTIMATOR'!S628","v":0},{"$f":"'2 REPAIR ESTIMATOR'!X628","v":{"v":0,"d":"$0.00"}},{"$f":"'2 REPAIR ESTIMATOR'!AG628","v":0},{"$f":"T('2 REPAIR ESTIMATOR'!AX628)","v":""},{"$f":"T('2 REPAIR ESTIMATOR'!AY628)","v":""},null,{"$f":"IF(OR(G685=\"x\",N685>0),1,0)","v":0},{"$f":"IF(G685=\"x\",1,0)","v":0},{"$f":"IF(H685=\"x\",1,0)","v":0},{"$f":"IF(AND(R685=1,T685<>1),1,0)","v":0}]
[{"$nulls":9},{"$f":"T('2 REPAIR ESTIMATOR'!D629:O629)","v":"Structural framing bid/allowance, case by case"},{"$f":"'2 REPAIR ESTIMATOR'!P629","v":0},{"$f":"'2 REPAIR ESTIMATOR'!S629","v":"ls"},{"$f":"'2 REPAIR ESTIMATOR'!X629","v":{"v":0,"d":"$0.00"}},{"$f":"'2 REPAIR ESTIMATOR'!AG629","v":0},{"$f":"T('2 REPAIR ESTIMATOR'!AX629)","v":""},{"$f":"T('2 REPAIR ESTIMATOR'!AY629)","v":""},null,{"$f":"IF(OR(G686=\"x\",N686>0),1,0)","v":0},{"$f":"IF(G686=\"x\",1,0)","v":0},{"$f":"IF(H686=\"x\",1,0)","v":0},{"$f":"IF(AND(R686=1,T686<>1),1,0)","v":0}]
[{"$nulls":9},{"$f":"T('2 REPAIR ESTIMATOR'!D630:O630)","v":"Subflooring, 3/4\" plywood"},{"$f":"'2 REPAIR ESTIMATOR'!P630","v":0},{"$f":"'2 REPAIR ESTIMATOR'!S630","v":"sf"},{"$f":"'2 REPAIR ESTIMATOR'!X630","v":{"v":0.85,"d":"$0.85"}},{"$f":"'2 REPAIR ESTIMATOR'!AG630","v":0},{"$f":"T('2 REPAIR ESTIMATOR'!AX630)","v":""},{"$f":"T('2 REPAIR ESTIMATOR'!AY630)","v":""},null,0,0,0,0]
[{"$nulls":9},{"$f":"T('2 REPAIR ESTIMATOR'!D631:O631)","v":"Interior wall framing"},{"$f":"'2 REPAIR ESTIMATOR'!P631","v":0},{"$f":"'2 REPAIR ESTIMATOR'!S631","v":"sf"},{"$f":"'2 REPAIR ESTIMATOR'!X631","v":{"v":1.75,"d":"$1.75"}},{"$f":"'2 REPAIR ESTIMATOR'!AG631","v":0},{"$f":"T('2 REPAIR ESTIMATOR'!AX631)","v":""},{"$f":"T('2 REPAIR ESTIMATOR'!AY631)","v":""},null,0,0,0,0]
[{"$nulls":9},{"$f":"T('2 REPAIR ESTIMATOR'!D632:O632)","v":"Structural/Exterior wall framing"},{"$f":"'2 REPAIR ESTIMATOR'!P632","v":0},{"$f":"'2 REPAIR ESTIMATOR'!S632","v":"sf"},{"$f":"'2 REPAIR ESTIMATOR'!X632","v":{"v":1.75,"d":"$1.75"}},{"$f":"'2 REPAIR ESTIMATOR'!AG632","v":0},{"$f":"T('2 REPAIR ESTIMATOR'!AX632)","v":""},{"$f":"T('2 REPAIR ESTIMATOR'!AY632)","v":""},null,0,0,0,0]
[{"$nulls":9},{"$f":"T('2 REPAIR ESTIMATOR'!D633:O633)","v":"Rough-in openings"},{"$f":"'2 REPAIR ESTIMATOR'!P633","v":0},{"$f":"'2 REPAIR ESTIMATOR'!S633","v":"ea"},{"$f":"'2 REPAIR ESTIMATOR'!X633","v":{"v":20,"d":"$20.00"}},{"$f":"'2 REPAIR ESTIMATOR'!AG633","v":0},{"$f":"T('2 REPAIR ESTIMATOR'!AX633)","v":""},{"$f":"T('2 REPAIR ESTIMATOR'!AY633)","v":""},null,0,0,0,0]
[{"$nulls":9},{"$f":"T('2 REPAIR ESTIMATOR'!D634:O634)","v":"Floor joists/ceiling joists"},{"$f":"'2 REPAIR ESTIMATOR'!P634","v":0},{"$f":"'2 REPAIR ESTIMATOR'!S634","v":"sf"},{"$f":"'2 REPAIR ESTIMATOR'!X634","v":{"v":0.75,"d":"$0.75"}},{"$f":"'2 REPAIR ESTIMATOR'!AG634","v":0},{"$f":"T('2 REPAIR ESTIMATOR'!AX634)","v":""},{"$f":"T('2 REPAIR ESTIMATOR'!AY634)","v":""},null,0,0,0,0]
[{"$nulls":9},{"$f":"T('2 REPAIR ESTIMATOR'!D635:O635)","v":"Roof framing/rafters"},{"$f":"'2 REPAIR ESTIMATOR'!P635","v":0},{"$f":"'2 REPAIR ESTIMATOR'!S635","v":"sf"},{"$f":"'2 REPAIR ESTIMATOR'!X635","v":{"v":1,"d":"$1.00"}},{"$f":"'2 REPAIR ESTIMATOR'!AG635","v":0},{"$f":"T('2 REPAIR ESTIMATOR'!AX635)","v":""},{"$f":"T('2 REPAIR ESTIMATOR'!AY635)","v":""},null,0,0,0,0]
[{"$nulls":9},{"$f":"T('2 REPAIR ESTIMATOR'!D636:O636)","v":"Open load bearing/structural wall"},{"$f":"'2 REPAIR ESTIMATOR'!P636","v":0},{"$f":"'2 REPAIR ESTIMATOR'!S636","v":"ea"},{"$f":"'2 REPAIR ESTIMATOR'!X636","v":{"v":250,"d":"$250.00"}},{"$f":"'2 REPAIR ESTIMATOR'!AG636","v":0},{"$f":"T('2 REPAIR ESTIMATOR'!AX636)","v":""},{"$f":"T('2 REPAIR ESTIMATOR'!AY636)","v":""},null,0,0,0,0]
[{"$nulls":9},{"$f":"T('2 REPAIR ESTIMATOR'!D637:O637)","v":"Insulation"},{"$f":"'2 REPAIR ESTIMATOR'!P637","v":0},{"$f":"'2 REPAIR ESTIMATOR'!S637","v":0},{"$f":"'2 REPAIR ESTIMATOR'!X637","v":{"v":0,"d":"$0.00"}},{"$f":"'2 REPAIR ESTIMATOR'!AG637","v":0},{"$f":"T('2 REPAIR ESTIMATOR'!AX637)","v":""},{"$f":"T('2 REPAIR ESTIMATOR'!AY637)","v":""},null,0,0,0,0]
[{"$nulls":9},{"$f":"T('2 REPAIR ESTIMATOR'!D638:O638)","v":"Insulation bid/allowance"},{"$f":"'2 REPAIR ESTIMATOR'!P638","v":0},{"$f":"'2 REPAIR ESTIMATOR'!S638","v":"ls"},{"$f":"'2 REPAIR ESTIMATOR'!X638","v":{"v":0,"d":"$0.00"}},{"$f":"'2 REPAIR ESTIMATOR'!AG638","v":0},{"$f":"T('2 REPAIR ESTIMATOR'!AX638)","v":""},{"$f":"T('2 REPAIR ESTIMATOR'!AY638)","v":""},null,0,0,0,0]
[{"$nulls":9},{"$f":"T('2 REPAIR ESTIMATOR'!D639:O639)","v":"Wall insulation"},{"$f":"'2 REPAIR ESTIMATOR'!P639","v":0},{"$f":"'2 REPAIR ESTIMATOR'!S639","v":"sf"},{"$f":"'2 REPAIR ESTIMATOR'!X639","v":{"v":0.5,"d":"$0.50"}},{"$f":"'2 REPAIR ESTIMATOR'!AG639","v":0},{"$f":"T('2 REPAIR ESTIMATOR'!AX639)","v":""},{"$f":"T('2 REPAIR ESTIMATOR'!AY639)","v":""},null,0,0,0,0]
[{"$nulls":9},{"$f":"T('2 REPAIR ESTIMATOR'!D640:O640)","v":"Floor insulation"},{"$f":"'2 REPAIR ESTIMATOR'!P640","v":0},{"$f":"'2 REPAIR ESTIMATOR'!S640","v":"sf"},{"$f":"'2 REPAIR ESTIMATOR'!X640","v":{"v":0.5,"d":"$0.50"}},{"$f":"'2 REPAIR ESTIMATOR'!AG640","v":0},{"$f":"T('2 REPAIR ESTIMATOR'!AX640)","v":""},{"$f":"T('2 REPAIR ESTIMATOR'!AY640)","v":""},null,0,0,0,0]
[{"$nulls":9},{"$f":"T('2 REPAIR ESTIMATOR'!D641:O641)","v":"Attic insulation, blown-in"},{"$f":"'2 REPAIR ESTIMATOR'!P641","v":0},{"$f":"'2 REPAIR ESTIMATOR'!S641","v":"sf"},{"$f":"'2 REPAIR ESTIMATOR'!X641","v":{"v":0.3,"d":"$0.30"}},{"$f":"'2 REPAIR ESTIMATOR'!AG641","v":0},{"$f":"T('2 REPAIR ESTIMATOR'!AX641)","v":""},{"$f":"T('2 REPAIR ESTIMATOR'!AY641)","v":""},null,0,0,0,0]
[{"$nulls":9},{"$f":"T('2 REPAIR ESTIMATOR'!D642:O642)","v":"Walls/Ceilings"},{"$f":"'2 REPAIR ESTIMATOR'!P642","v":0},{"$f":"'2 REPAIR ESTIMATOR'!S642","v":0},{"$f":"'2 REPAIR ESTIMATOR'!X642","v":{"v":0,"d":"$0.00"}},{"$f":"'2 REPAIR ESTIMATOR'!AG642","v":0},{"$f":"T('2 REPAIR ESTIMATOR'!AX642)","v":""},{"$f":"T('2 REPAIR ESTIMATOR'!AY642)","v":""},null,0,0,0,0]
[{"$nulls":9},{"$f":"T('2 REPAIR ESTIMATOR'!D643:O643)","v":"Drywall bid/allowance, case by case"},{"$f":"'2 REPAIR ESTIMATOR'!P643","v":1},{"$f":"'2 REPAIR ESTIMATOR'!S643","v":"ls"},{"$f":"'2 REPAIR ESTIMATOR'!X643","v":{"v":0,"d":"$0.00"}},{"$f":"'2 REPAIR ESTIMATOR'!AG643","v":0},{"$f":"T('2 REPAIR ESTIMATOR'!AX643)","v":""},{"$f":"T('2 REPAIR ESTIMATOR'!AY643)","v":""},null,0,0,0,0]
[{"$nulls":9},{"$f":"T('2 REPAIR ESTIMATOR'!D644:O644)","v":"Drywall wallboard, 1/2\" thick, finish one side"},{"$f":"'2 REPAIR ESTIMATOR'!P644","v":0},{"$f":"'2 REPAIR ESTIMATOR'!S644","v":"sf"},{"$f":"'2 REPAIR ESTIMATOR'!X644","v":{"v":1,"d":"$1.00"}},{"$f":"'2 REPAIR ESTIMATOR'!AG644","v":0},{"$f":"T('2 REPAIR ESTIMATOR'!AX644)","v":""},{"$f":"T('2 REPAIR ESTIMATOR'!AY644)","v":""},null,0,0,0,0]
[{"$nulls":9},{"$f":"T('2 REPAIR ESTIMATOR'!D645:O645)","v":"Drywall ceilings, 1/2\" thick"},{"$f":"'2 REPAIR ESTIMATOR'!P645","v":0},{"$f":"'2 REPAIR ESTIMATOR'!S645","v":"sf"},{"$f":"'2 REPAIR ESTIMATOR'!X645","v":{"v":0.75,"d":"$0.75"}},{"$f":"'2 REPAIR ESTIMATOR'!AG645","v":0},{"$f":"T('2 REPAIR ESTIMATOR'!AX645)","v":""},{"$f":"T('2 REPAIR ESTIMATOR'!AY645)","v":""},null,0,0,0,0]
[{"$nulls":9},{"$f":"T('2 REPAIR ESTIMATOR'!D646:O646)","v":"Skim coating/texturing walls"},{"$f":"'2 REPAIR ESTIMATOR'!P646","v":0},{"$f":"'2 REPAIR ESTIMATOR'!S646","v":"sf"},{"$f":"'2 REPAIR ESTIMATOR'!X646","v":{"v":0.25,"d":"$0.25"}},{"$f":"'2 REPAIR ESTIMATOR'!AG646","v":0},{"$f":"T('2 REPAIR ESTIMATOR'!AX646)","v":""},{"$f":"T('2 REPAIR ESTIMATOR'!AY646)","v":""},null,0,0,0,0]
[{"$nulls":9},{"$f":"T('2 REPAIR ESTIMATOR'!D647:O647)","v":"Skim coating/texturing ceilings"},{"$f":"'2 REPAIR ESTIMATOR'!P647","v":0},{"$f":"'2 REPAIR ESTIMATOR'!S647","v":"sf"},{"$f":"'2 REPAIR ESTIMATOR'!X647","v":{"v":0.25,"d":"$0.25"}},{"$f":"'2 REPAIR ESTIMATOR'!AG647","v":0},{"$f":"T('2 REPAIR ESTIMATOR'!AX647)","v":""},{"$f":"T('2 REPAIR ESTIMATOR'!AY647)","v":""},null,0,0,0,0]
[{"$nulls":9},{"$f":"T('2 REPAIR ESTIMATOR'!D648:O648)","v":""},{"$f":"'2 REPAIR ESTIMATOR'!P648","v":0},{"$f":"'2 REPAIR ESTIMATOR'!S648","v":0},{"$f":"'2 REPAIR ESTIMATOR'!X648","v":{"v":0,"d":"$0.00"}},{"$f":"'2 REPAIR ESTIMATOR'!AG648","v":0},{"$f":"T('2 REPAIR ESTIMATOR'!AX648)","v":""},{"$f":"T('2 REPAIR ESTIMATOR'!AY648)","v":""},null,0,0,0,0]
[{"$nulls":9},{"$f":"T('2 REPAIR ESTIMATOR'!D649:O649)","v":""},{"$f":"'2 REPAIR ESTIMATOR'!P649","v":0},{"$f":"'2 REPAIR ESTIMATOR'!S649","v":0},{"$f":"'2 REPAIR ESTIMATOR'!X649","v":{"v":0,"d":"$0.00"}},{"$f":"'2 REPAIR ESTIMATOR'!AG649","v":0},{"$f":"T('2 REPAIR ESTIMATOR'!AX649)","v":""},{"$f":"T('2 REPAIR ESTIMATOR'!AY649)","v":""},null,0,0,0,0]
[{"$nulls":9},{"$f":"T('2 REPAIR ESTIMATOR'!D650:O650)","v":""},{"$f":"'2 REPAIR ESTIMATOR'!P650","v":0},{"$f":"'2 REPAIR ESTIMATOR'!S650","v":0},{"$f":"'2 REPAIR ESTIMATOR'!X650","v":{"v":0,"d":"$0.00"}},{"$f":"'2 REPAIR ESTIMATOR'!AG650","v":0},{"$f":"T('2 REPAIR ESTIMATOR'!AX650)","v":""},{"$f":"T('2 REPAIR ESTIMATOR'!AY650)","v":""},null,0,0,0,0]
[{"$nulls":9},{"$f":"T('2 REPAIR ESTIMATOR'!D651:O651)","v":""},{"$f":"'2 REPAIR ESTIMATOR'!P651","v":0},{"$f":"'2 REPAIR ESTIMATOR'!S651","v":0},{"$f":"'2 REPAIR ESTIMATOR'!X651","v":{"v":0,"d":"$0.00"}},{"$f":"'2 REPAIR ESTIMATOR'!AG651","v":0},{"$f":"T('2 REPAIR ESTIMATOR'!AX651)","v":""},{"$f":"T('2 REPAIR ESTIMATOR'!AY651)","v":""},null,0,0,0,0]
[{"$nulls":9},{"$f":"T('2 REPAIR ESTIMATOR'!D652:O652)","v":""},{"$f":"'2 REPAIR ESTIMATOR'!P652","v":0},{"$f":"'2 REPAIR ESTIMATOR'!S652","v":0},{"$f":"'2 REPAIR ESTIMATOR'!X652","v":{"v":0,"d":"$0.00"}},{"$f":"'2 REPAIR ESTIMATOR'!AG652","v":0},{"$f":"T('2 REPAIR ESTIMATOR'!AX652)","v":""},{"$f":"T('2 REPAIR ESTIMATOR'!AY652)","v":""},null,0,0,0,0]
[{"$nulls":9},{"$f":"T('2 REPAIR ESTIMATOR'!D653:O653)","v":""},{"$f":"'2 REPAIR ESTIMATOR'!P653","v":0},{"$f":"'2 REPAIR ESTIMATOR'!S653","v":0},{"$f":"'2 REPAIR ESTIMATOR'!X653","v":{"v":0,"d":"$0.00"}},{"$f":"'2 REPAIR ESTIMATOR'!AG653","v":0},{"$f":"T('2 REPAIR ESTIMATOR'!AX653)","v":""},{"$f":"T('2 REPAIR ESTIMATOR'!AY653)","v":""},null,0,0,0,0]
[{"$nulls":9},{"$f":"T('2 REPAIR ESTIMATOR'!D654:O654)","v":""},{"$f":"'2 REPAIR ESTIMATOR'!P654","v":0},{"$f":"'2 REPAIR ESTIMATOR'!S654","v":0},{"$f":"'2 REPAIR ESTIMATOR'!X654","v":{"v":0,"d":"$0.00"}},{"$f":"'2 REPAIR ESTIMATOR'!AG654","v":0},{"$f":"T('2 REPAIR ESTIMATOR'!AX654)","v":""},{"$f":"T('2 REPAIR ESTIMATOR'!AY654)","v":""},null,0,0,0,0]
[{"$nulls":9},{"$f":"T('2 REPAIR ESTIMATOR'!D655:O655)","v":""},{"$f":"'2 REPAIR ESTIMATOR'!P655","v":0},{"$f":"'2 REPAIR ESTIMATOR'!S655","v":0},{"$f":"'2 REPAIR ESTIMATOR'!X655","v":{"v":0,"d":"$0.00"}},{"$f":"'2 REPAIR ESTIMATOR'!AG655","v":0},{"$f":"T('2 REPAIR ESTIMATOR'!AX655)","v":""},{"$f":"T('2 REPAIR ESTIMATOR'!AY655)","v":""},null,0,0,0,0]
[{"$nulls":9},{"$f":"T('2 REPAIR ESTIMATOR'!D656:O656)","v":""},{"$f":"'2 REPAIR ESTIMATOR'!P656","v":0},{"$f":"'2 REPAIR ESTIMATOR'!S656","v":0},{"$f":"'2 REPAIR ESTIMATOR'!X656","v":{"v":0,"d":"$0.00"}},{"$f":"'2 REPAIR ESTIMATOR'!AG656","v":0},{"$f":"T('2 REPAIR ESTIMATOR'!AX656)","v":""},{"$f":"T('2 REPAIR ESTIMATOR'!AY656)","v":""},null,0,0,0,0]
[{"$nulls":9},{"$f":"T('2 REPAIR ESTIMATOR'!D657:O657)","v":""},{"$f":"'2 REPAIR ESTIMATOR'!P657","v":0},{"$f":"'2 REPAIR ESTIMATOR'!S657","v":0},{"$f":"'2 REPAIR ESTIMATOR'!X657","v":{"v":0,"d":"$0.00"}},{"$f":"'2 REPAIR ESTIMATOR'!AG657","v":0},{"$f":"T('2 REPAIR ESTIMATOR'!AX657)","v":""},{"$f":"T('2 REPAIR ESTIMATOR'!AY657)","v":""},null,0,0,0,0]
[{"$nulls":9},{"$f":"T('2 REPAIR ESTIMATOR'!D658:O658)","v":""},{"$f":"'2 REPAIR ESTIMATOR'!P658","v":0},{"$f":"'2 REPAIR ESTIMATOR'!S658","v":0},{"$f":"'2 REPAIR ESTIMATOR'!X658","v":{"v":0,"d":"$0.00"}},{"$f":"'2 REPAIR ESTIMATOR'!AG658","v":0},{"$f":"T('2 REPAIR ESTIMATOR'!AX658)","v":""},{"$f":"T('2 REPAIR ESTIMATOR'!AY658)","v":""},null,0,0,0,0]
[{"$nulls":9},{"$f":"T('2 REPAIR ESTIMATOR'!D659:O659)","v":""},{"$f":"'2 REPAIR ESTIMATOR'!P659","v":0},{"$f":"'2 REPAIR ESTIMATOR'!S659","v":0},{"$f":"'2 REPAIR ESTIMATOR'!X659","v":{"v":0,"d":"$0.00"}},{"$f":"'2 REPAIR ESTIMATOR'!AG659","v":0},{"$f":"T('2 REPAIR ESTIMATOR'!AX659)","v":""},{"$f":"T('2 REPAIR ESTIMATOR'!AY659)","v":""},null,0,0,0,0]
[{"$nulls":9},{"$f":"T('2 REPAIR ESTIMATOR'!D660:O660)","v":""},{"$f":"'2 REPAIR ESTIMATOR'!P660","v":0},{"$f":"'2 REPAIR ESTIMATOR'!S660","v":0},{"$f":"'2 REPAIR ESTIMATOR'!X660","v":{"v":0,"d":"$0.00"}},{"$f":"'2 REPAIR ESTIMATOR'!AG660","v":0},{"$f":"T('2 REPAIR ESTIMATOR'!AX660)","v":""},{"$f":"T('2 REPAIR ESTIMATOR'!AY660)","v":""},null,0,0,0,0]
[{"$nulls":9},{"$f":"T('2 REPAIR ESTIMATOR'!D661:O661)","v":""},{"$f":"'2 REPAIR ESTIMATOR'!P661","v":0},{"$f":"'2 REPAIR ESTIMATOR'!S661","v":0},{"$f":"'2 REPAIR ESTIMATOR'!X661","v":{"v":0,"d":"$0.00"}},{"$f":"'2 REPAIR ESTIMATOR'!AG661","v":0},{"$f":"T('2 REPAIR ESTIMATOR'!AX661)","v":""},{"$f":"T('2 REPAIR ESTIMATOR'!AY661)","v":""},null,0,0,0,0]
[{"$nulls":9},{"$f":"T('2 REPAIR ESTIMATOR'!D662:O662)","v":""},{"$f":"'2 REPAIR ESTIMATOR'!P662","v":0},{"$f":"'2 REPAIR ESTIMATOR'!S662","v":0},{"$f":"'2 REPAIR ESTIMATOR'!X662","v":{"v":0,"d":"$0.00"}},{"$f":"'2 REPAIR ESTIMATOR'!AG662","v":0},{"$f":"T('2 REPAIR ESTIMATOR'!AX662)","v":""},{"$f":"T('2 REPAIR ESTIMATOR'!AY662)","v":""},null,0,0,0,0]
[{"$nulls":9},{"$f":"T('2 REPAIR ESTIMATOR'!D663:O663)","v":""},{"$f":"'2 REPAIR ESTIMATOR'!P663","v":0},{"$f":"'2 REPAIR ESTIMATOR'!S663","v":0},{"$f":"'2 REPAIR ESTIMATOR'!X663","v":{"v":0,"d":"$0.00"}},{"$f":"'2 REPAIR ESTIMATOR'!AG663","v":0},{"$f":"T('2 REPAIR ESTIMATOR'!AX663)","v":""},{"$f":"T('2 REPAIR ESTIMATOR'!AY663)","v":""},null,0,0,0,0]
[{"$nulls":9},{"$f":"T('2 REPAIR ESTIMATOR'!D664:O664)","v":""},{"$f":"'2 REPAIR ESTIMATOR'!P664","v":0},{"$f":"'2 REPAIR ESTIMATOR'!S664","v":0},{"$f":"'2 REPAIR ESTIMATOR'!X664","v":{"v":0,"d":"$0.00"}},{"$f":"'2 REPAIR ESTIMATOR'!AG664","v":0},{"$f":"T('2 REPAIR ESTIMATOR'!AX664)","v":""},{"$f":"T('2 REPAIR ESTIMATOR'!AY664)","v":""},null,0,0,0,0]
[{"$nulls":9},{"$f":"T('2 REPAIR ESTIMATOR'!D665:O665)","v":""},{"$f":"'2 REPAIR ESTIMATOR'!P665","v":0},{"$f":"'2 REPAIR ESTIMATOR'!S665","v":0},{"$f":"'2 REPAIR ESTIMATOR'!X665","v":{"v":0,"d":"$0.00"}},{"$f":"'2 REPAIR ESTIMATOR'!AG665","v":0},{"$f":"T('2 REPAIR ESTIMATOR'!AX665)","v":""},{"$f":"T('2 REPAIR ESTIMATOR'!AY665)","v":""},null,0,0,0,0]
[{"$nulls":9},{"$f":"T('2 REPAIR ESTIMATOR'!D666:O666)","v":""},{"$f":"'2 REPAIR ESTIMATOR'!P666","v":0},{"$f":"'2 REPAIR ESTIMATOR'!S666","v":0},{"$f":"'2 REPAIR ESTIMATOR'!X666","v":{"v":0,"d":"$0.00"}},{"$f":"'2 REPAIR ESTIMATOR'!AG666","v":0},{"$f":"T('2 REPAIR ESTIMATOR'!AX666)","v":""},{"$f":"T('2 REPAIR ESTIMATOR'!AY666)","v":""},null,0,0,0,0]
[{"$nulls":9},{"$f":"T('2 REPAIR ESTIMATOR'!D667:O667)","v":""},{"$f":"'2 REPAIR ESTIMATOR'!P667","v":0},{"$f":"'2 REPAIR ESTIMATOR'!S667","v":0},{"$f":"'2 REPAIR ESTIMATOR'!X667","v":{"v":0,"d":"$0.00"}},{"$f":"'2 REPAIR ESTIMATOR'!AG667","v":0},{"$f":"T('2 REPAIR ESTIMATOR'!AX667)","v":""},{"$f":"T('2 REPAIR ESTIMATOR'!AY667)","v":""},null,0,0,0,0]
[{"$nulls":12},{"$f":"CONCATENATE(J684,\" \",\"TOTAL\")","v":"FRAMING & DRYWALL TOTAL"},{"$f":"SUBTOTAL(9,N685:N724)","v":0},{"$nulls":3},{"$f":"SUM(R685:R724)","v":0},{"$f":"SUM(S685:S724)","v":0},{"$f":"SUM(T685:T724)","v":0},{"$f":"SUM(U685:U724)","v":0}]
[{"$nulls":9},{"$f":"T(#REF!)","v":{"$error":"#REF!"}},{"$f":"#REF!","v":{"$error":"#REF!"}},{"$f":"#REF!","v":{"$error":"#REF!"}},{"$f":"#REF!","v":{"$error":"#REF!"}},{"$f":"#REF!","v":{"$error":"#REF!"}},{"$nulls":3},{"$f":"R725","v":0},{"$f":"S725","v":0},{"$f":"T725","v":0},{"$f":"U725","v":0}]
[{"$nulls":9},{"$f":"CONCATENATE(\"MISCELLANEOUS \",J684,\" MATERIAL ITEMS\")","v":"MISCELLANEOUS FRAMING & DRYWALL MATERIAL ITEMS"},{"$nulls":4},"Store","SKU #",null,{"$f":"SUM(R728:R737)*R684","v":{"$error":"#REF!"}},{"$f":"SUM(S728:S737)","v":0},{"$f":"SUM(T728:T737)","v":0},{"$f":"SUM(U728:U737)","v":{"$error":"#REF!"}}]
[{"$nulls":9},"1. Sheets of drywall",{"$nulls":7},{"$f":"IF(OR(G728=\"x\",J728>0),1,0)*R684","v":{"$error":"#REF!"}},{"$f":"IF(G728=\"x\",1,0)","v":0},{"$f":"IF(H728=\"x\",1,0)","v":0},{"$f":"IF(AND(R728=1,T728<>1),1,0)","v":{"$error":"#REF!"}}]
[{"$nulls":9},"2. Drywall joint compound",{"$nulls":7},{"$f":"IF(OR(G729=\"x\",J729>0),1,0)*R684","v":{"$error":"#REF!"}},0,0,{"$error":"#REF!"}]
[{"$nulls":9},"3. Drywall tape",{"$nulls":7},{"$f":"IF(OR(G730=\"x\",J730>0),1,0)*R684","v":{"$error":"#REF!"}},0,0,{"$error":"#REF!"}]
[{"$nulls":9},"4. Drywall corner bead",{"$nulls":7},{"$f":"IF(OR(G731=\"x\",J731>0),1,0)*R684","v":{"$error":"#REF!"}},0,0,{"$error":"#REF!"}]
[{"$nulls":9},"5. Batt wall insulation",{"$nulls":7},{"$f":"IF(OR(G732=\"x\",J732>0),1,0)*R684","v":{"$error":"#REF!"}},0,0,{"$error":"#REF!"}]
[{"$nulls":9},"6. Screws/nails/fasteners",{"$nulls":7},{"$f":"IF(OR(G733=\"x\",J733>0),1,0)*R684","v":{"$error":"#REF!"}},0,0,{"$error":"#REF!"}]
[{"$nulls":17},{"$f":"IF(OR(G734=\"x\",J734>0),1,0)*R684","v":{"$error":"#REF!"}},0,0,{"$error":"#REF!"}]
[{"$nulls":17},{"$f":"IF(OR(G735=\"x\",J735>0),1,0)*R684","v":{"$error":"#REF!"}},0,0,{"$error":"#REF!"}]
[{"$nulls":17},{"$f":"IF(OR(G736=\"x\",J736>0),1,0)*R684","v":{"$error":"#REF!"}},0,0,{"$error":"#REF!"}]
[{"$nulls":17},{"$f":"IF(OR(G737=\"x\",J737>0),1,0)*R684","v":{"$error":"#REF!"}},0,0,{"$error":"#REF!"}]
[{"$nulls":9},{"$f":"T(#REF!)","v":{"$error":"#REF!"}},{"$f":"#REF!","v":{"$error":"#REF!"}},{"$f":"#REF!","v":{"$error":"#REF!"}},{"$f":"#REF!","v":{"$error":"#REF!"}},{"$f":"#REF!","v":{"$error":"#REF!"}},{"$nulls":3},{"$f":"R727*R684","v":{"$error":"#REF!"}},{"$f":"S727","v":0},{"$f":"T727","v":0},{"$f":"U727","v":{"$error":"#REF!"}}]
[{"$nulls":9},{"$f":"T('2 REPAIR ESTIMATOR'!D672:O672)","v":"CABINETS & COUNTERTOPS"},{"$f":"#REF!","v":{"$error":"#REF!"}},{"$f":"#REF!","v":{"$error":"#REF!"}},{"$f":"#REF!","v":{"$error":"#REF!"}},{"$f":"#REF!","v":{"$error":"#REF!"}},{"$nulls":3},{"$f":"IF(SUM(R740:R793)>0,1,0)","v":{"$error":"#REF!"}},{"$f":"SUM(S740:S793)","v":0},{"$f":"SUM(T740:T793)","v":0},{"$f":"SUM(U740:U793)","v":{"$error":"#REF!"}}]
[{"$nulls":9},{"$f":"T('2 REPAIR ESTIMATOR'!D673:O673)","v":"Cabinet Installation bid/allowance"},{"$f":"'2 REPAIR ESTIMATOR'!P673","v":0},{"$f":"'2 REPAIR ESTIMATOR'!S673","v":"ls"},{"$f":"'2 REPAIR ESTIMATOR'!X673","v":{"v":0,"d":"$0.00"}},{"$f":"'2 REPAIR ESTIMATOR'!AG673","v":0},{"$f":"T('2 REPAIR ESTIMATOR'!AX673)","v":""},{"$f":"T('2 REPAIR ESTIMATOR'!AY673)","v":""},null,{"$f":"IF(OR(G740=\"x\",N740>0),1,0)","v":0},{"$f":"IF(G740=\"x\",1,0)","v":0},{"$f":"IF(H740=\"x\",1,0)","v":0},{"$f":"IF(AND(R740=1,T740<>1),1,0)","v":0}]
[{"$nulls":9},{"$f":"T('2 REPAIR ESTIMATOR'!D674:O674)","v":"Cabinet Material bid/allowance"},{"$f":"'2 REPAIR ESTIMATOR'!P674","v":0},{"$f":"'2 REPAIR ESTIMATOR'!S674","v":"ls"},{"$f":"'2 REPAIR ESTIMATOR'!X674","v":{"v":0,"d":"$0.00"}},{"$f":"'2 REPAIR ESTIMATOR'!AG674","v":0},{"$f":"T('2 REPAIR ESTIMATOR'!AX674)","v":""},{"$f":"T('2 REPAIR ESTIMATOR'!AY674)","v":""},null,{"$f":"IF(OR(G741=\"x\",N741>0),1,0)","v":0},{"$f":"IF(G741=\"x\",1,0)","v":0},{"$f":"IF(H741=\"x\",1,0)","v":0},{"$f":"IF(AND(R741=1,T741<>1),1,0)","v":0}]
[{"$nulls":9},{"$f":"T('2 REPAIR ESTIMATOR'!D675:O675)","v":"Countertop bid/allowance"},{"$f":"'2 REPAIR ESTIMATOR'!P675","v":0},{"$f":"'2 REPAIR ESTIMATOR'!S675","v":"ls"},{"$f":"'2 REPAIR ESTIMATOR'!X675","v":{"v":0,"d":"$0.00"}},{"$f":"'2 REPAIR ESTIMATOR'!AG675","v":0},{"$f":"T('2 REPAIR ESTIMATOR'!AX675)","v":""},{"$f":"T('2 REPAIR ESTIMATOR'!AY675)","v":""},null,0,0,0,0]
[{"$nulls":9},{"$f":"T('2 REPAIR ESTIMATOR'!D676:O676)","v":"Kitchen"},{"$f":"'2 REPAIR ESTIMATOR'!P676","v":0},{"$f":"'2 REPAIR ESTIMATOR'!S676","v":0},{"$f":"'2 REPAIR ESTIMATOR'!X676","v":{"v":0,"d":"$0.00"}},{"$f":"'2 REPAIR ESTIMATOR'!AG676","v":0},{"$f":"T('2 REPAIR ESTIMATOR'!AX676)","v":""},{"$f":"T('2 REPAIR ESTIMATOR'!AY676)","v":""},null,0,0,0,0]
[{"$nulls":9},{"$f":"T('2 REPAIR ESTIMATOR'!D677:O677)","v":"Kitchen Base Cabinetry"},{"$f":"'2 REPAIR ESTIMATOR'!P677","v":15},{"$f":"'2 REPAIR ESTIMATOR'!S677","v":"lf"},{"$f":"'2 REPAIR ESTIMATOR'!X677","v":{"v":175,"d":"$175.00"}},{"$f":"'2 REPAIR ESTIMATOR'!AG677","v":{"v":2808.75,"d":"$2,808.75"}},{"$f":"T('2 REPAIR ESTIMATOR'!AX677)","v":""},{"$f":"T('2 REPAIR ESTIMATOR'!AY677)","v":""},null,1,0,0,1]
[{"$nulls":9},{"$f":"T('2 REPAIR ESTIMATOR'!D678:O678)","v":"Kitchen Upper Cabinetry"},{"$f":"'2 REPAIR ESTIMATOR'!P678","v":15},{"$f":"'2 REPAIR ESTIMATOR'!S678","v":"lf"},{"$f":"'2 REPAIR ESTIMATOR'!X678","v":{"v":150,"d":"$150.00"}},{"$f":"'2 REPAIR ESTIMATOR'!AG678","v":{"v":2407.5,"d":"$2,407.50"}},{"$f":"T('2 REPAIR ESTIMATOR'!AX678)","v":""},{"$f":"T('2 REPAIR ESTIMATOR'!AY678)","v":""},null,1,0,0,1]
[{"$nulls":9},{"$f":"T('2 REPAIR ESTIMATOR'!D679:O679)","v":"Kitchen Pantry Cabinet"},{"$f":"'2 REPAIR ESTIMATOR'!P679","v":1},{"$f":"'2 REPAIR ESTIMATOR'!S679","v":"ea"},{"$f":"'2 REPAIR ESTIMATOR'!X679","v":{"v":900,"d":"$900.00"}},{"$f":"'2 REPAIR ESTIMATOR'!AG679","v":{"v":963,"d":"$963.00"}},{"$f":"T('2 REPAIR ESTIMATOR'!AX679)","v":""},{"$f":"T('2 REPAIR ESTIMATOR'!AY679)","v":""},null,1,0,0,1]
[{"$nulls":9},{"$f":"T('2 REPAIR ESTIMATOR'!D680:O680)","v":"Plastic laminate countertop"},{"$f":"'2 REPAIR ESTIMATOR'!P680","v":0},{"$f":"'2 REPAIR ESTIMATOR'!S680","v":"sf"},{"$f":"'2 REPAIR ESTIMATOR'!X680","v":{"v":12.5,"d":"$12.50"}},{"$f":"'2 REPAIR ESTIMATOR'!AG680","v":0},{"$f":"T('2 REPAIR ESTIMATOR'!AX680)","v":""},{"$f":"T('2 REPAIR ESTIMATOR'!AY680)","v":""},null,0,0,0,0]
[{"$nulls":9},{"$f":"T('2 REPAIR ESTIMATOR'!D681:O681)","v":"Replace cabinet doors, only"},{"$f":"'2 REPAIR ESTIMATOR'!P681","v":0},{"$f":"'2 REPAIR ESTIMATOR'!S681","v":"ea"},{"$f":"'2 REPAIR ESTIMATOR'!X681","v":{"v":100,"d":"$100.00"}},{"$f":"'2 REPAIR ESTIMATOR'!AG681","v":0},{"$f":"T('2 REPAIR ESTIMATOR'!AX681)","v":""},{"$f":"T('2 REPAIR ESTIMATOR'!AY681)","v":""},null,0,0,0,0]
[{"$nulls":9},{"$f":"T('2 REPAIR ESTIMATOR'!D682:O682)","v":"Replace cabinet drawer fronts, only"},{"$f":"'2 REPAIR ESTIMATOR'!P682","v":0},{"$f":"'2 REPAIR ESTIMATOR'!S682","v":"ea"},{"$f":"'2 REPAIR ESTIMATOR'!X682","v":{"v":40,"d":"$40.00"}},{"$f":"'2 REPAIR ESTIMATOR'!AG682","v":0},{"$f":"T('2 REPAIR ESTIMATOR'!AX682)","v":""},{"$f":"T('2 REPAIR ESTIMATOR'!AY682)","v":""},null,0,0,0,0]
[{"$nulls":9},{"$f":"T('2 REPAIR ESTIMATOR'!D683:O683)","v":"New cabinet door pulls"},{"$f":"'2 REPAIR ESTIMATOR'!P683","v":0},{"$f":"'2 REPAIR ESTIMATOR'!S683","v":"ea"},{"$f":"'2 REPAIR ESTIMATOR'!X683","v":{"v":5,"d":"$5.00"}},{"$f":"'2 REPAIR ESTIMATOR'!AG683","v":0},{"$f":"T('2 REPAIR ESTIMATOR'!AX683)","v":""},{"$f":"T('2 REPAIR ESTIMATOR'!AY683)","v":""},null,0,0,0,0]
[{"$nulls":9},{"$f":"T('2 REPAIR ESTIMATOR'!D684:O684)","v":"Stone/solid surface countertop, kitchen"},{"$f":"'2 REPAIR ESTIMATOR'!P684","v":30},{"$f":"'2 REPAIR ESTIMATOR'!S684","v":"sf"},{"$f":"'2 REPAIR ESTIMATOR'!X684","v":{"v":55,"d":"$55.00"}},{"$f":"'2 REPAIR ESTIMATOR'!AG684","v":{"v":1765.5,"d":"$1,765.50"}},{"$f":"T('2 REPAIR ESTIMATOR'!AX684)","v":""},{"$f":"T('2 REPAIR ESTIMATOR'!AY684)","v":""},null,1,0,0,1]
[{"$nulls":9},{"$f":"T('2 REPAIR ESTIMATOR'!D685:O685)","v":"Kitchen sink bowl, stainless steel, undermount"},{"$f":"'2 REPAIR ESTIMATOR'!P685","v":1},{"$f":"'2 REPAIR ESTIMATOR'!S685","v":"ea"},{"$f":"'2 REPAIR ESTIMATOR'!X685","v":{"v":250,"d":"$250.00"}},{"$f":"'2 REPAIR ESTIMATOR'!AG685","v":{"v":267.5,"d":"$267.50"}},{"$f":"T('2 REPAIR ESTIMATOR'!AX685)","v":""},{"$f":"T('2 REPAIR ESTIMATOR'!AY685)","v":""},null,1,0,0,1]
[{"$nulls":9},{"$f":"T('2 REPAIR ESTIMATOR'!D686:O686)","v":"Kitchen sink bowl, composite, undermount"},{"$f":"'2 REPAIR ESTIMATOR'!P686","v":0},{"$f":"'2 REPAIR ESTIMATOR'!S686","v":"ea"},{"$f":"'2 REPAIR ESTIMATOR'!X686","v":{"v":350,"d":"$350.00"}},{"$f":"'2 REPAIR ESTIMATOR'!AG686","v":0},{"$f":"T('2 REPAIR ESTIMATOR'!AX686)","v":""},{"$f":"T('2 REPAIR ESTIMATOR'!AY686)","v":""},null,0,0,0,0]
[{"$nulls":9},{"$f":"T('2 REPAIR ESTIMATOR'!D687:O687)","v":"Bathrooms"},{"$f":"'2 REPAIR ESTIMATOR'!P687","v":0},{"$f":"'2 REPAIR ESTIMATOR'!S687","v":0},{"$f":"'2 REPAIR ESTIMATOR'!X687","v":{"v":0,"d":"$0.00"}},{"$f":"'2 REPAIR ESTIMATOR'!AG687","v":0},{"$f":"T('2 REPAIR ESTIMATOR'!AX687)","v":""},{"$f":"T('2 REPAIR ESTIMATOR'!AY687)","v":""},null,0,0,0,0]
[{"$nulls":9},{"$f":"T('2 REPAIR ESTIMATOR'!D688:O688)","v":"Vanity cabinet"},{"$f":"'2 REPAIR ESTIMATOR'!P688","v":2},{"$f":"'2 REPAIR ESTIMATOR'!S688","v":"ea"},{"$f":"'2 REPAIR ESTIMATOR'!X688","v":{"v":600,"d":"$600.00"}},{"$f":"'2 REPAIR ESTIMATOR'!AG688","v":{"v":1284,"d":"$1,284.00"}},{"$f":"T('2 REPAIR ESTIMATOR'!AX688)","v":""},{"$f":"T('2 REPAIR ESTIMATOR'!AY688)","v":""},null,1,0,0,1]
[{"$nulls":9},{"$f":"T('2 REPAIR ESTIMATOR'!D689:O689)","v":"New cabinet door pulls"},{"$f":"'2 REPAIR ESTIMATOR'!P689","v":0},{"$f":"'2 REPAIR ESTIMATOR'!S689","v":"ea"},{"$f":"'2 REPAIR ESTIMATOR'!X689","v":{"v":4.25,"d":"$4.25"}},{"$f":"'2 REPAIR ESTIMATOR'!AG689","v":0},{"$f":"T('2 REPAIR ESTIMATOR'!AX689)","v":""},{"$f":"T('2 REPAIR ESTIMATOR'!AY689)","v":""},null,0,0,0,0]
[{"$nulls":9},{"$f":"T('2 REPAIR ESTIMATOR'!D690:O690)","v":"Vanity countertop, stone/solid surface"},{"$f":"'2 REPAIR ESTIMATOR'!P690","v":0},{"$f":"'2 REPAIR ESTIMATOR'!S690","v":"sf"},{"$f":"'2 REPAIR ESTIMATOR'!X690","v":{"v":50,"d":"$50.00"}},{"$f":"'2 REPAIR ESTIMATOR'!AG690","v":0},{"$f":"T('2 REPAIR ESTIMATOR'!AX690)","v":""},{"$f":"T('2 REPAIR ESTIMATOR'!AY690)","v":""},null,0,0,0,0]
[{"$nulls":9},{"$f":"T('2 REPAIR ESTIMATOR'!D691:O691)","v":""},{"$f":"'2 REPAIR ESTIMATOR'!P691","v":0},{"$f":"'2 REPAIR ESTIMATOR'!S691","v":0},{"$f":"'2 REPAIR ESTIMATOR'!X691","v":{"v":0,"d":"$0.00"}},{"$f":"'2 REPAIR ESTIMATOR'!AG691","v":0},{"$f":"T('2 REPAIR ESTIMATOR'!AX691)","v":""},{"$f":"T('2 REPAIR ESTIMATOR'!AY691)","v":""},null,0,0,0,0]
[{"$nulls":9},{"$f":"T('2 REPAIR ESTIMATOR'!D692:O692)","v":""},{"$f":"'2 REPAIR ESTIMATOR'!P692","v":0},{"$f":"'2 REPAIR ESTIMATOR'!S692","v":0},{"$f":"'2 REPAIR ESTIMATOR'!X692","v":{"v":0,"d":"$0.00"}},{"$f":"'2 REPAIR ESTIMATOR'!AG692","v":0},{"$f":"T('2 REPAIR ESTIMATOR'!AX692)","v":""},{"$f":"T('2 REPAIR ESTIMATOR'!AY692)","v":""},null,0,0,0,0]
[{"$nulls":9},{"$f":"T('2 REPAIR ESTIMATOR'!D693:O693)","v":""},{"$f":"'2 REPAIR ESTIMATOR'!P693","v":0},{"$f":"'2 REPAIR ESTIMATOR'!S693","v":0},{"$f":"'2 REPAIR ESTIMATOR'!X693","v":{"v":0,"d":"$0.00"}},{"$f":"'2 REPAIR ESTIMATOR'!AG693","v":0},{"$f":"T('2 REPAIR ESTIMATOR'!AX693)","v":""},{"$f":"T('2 REPAIR ESTIMATOR'!AY693)","v":""},null,0,0,0,0]
[{"$nulls":9},{"$f":"T('2 REPAIR ESTIMATOR'!D694:O694)","v":""},{"$f":"'2 REPAIR ESTIMATOR'!P694","v":0},{"$f":"'2 REPAIR ESTIMATOR'!S694","v":0},{"$f":"'2 REPAIR ESTIMATOR'!X694","v":{"v":0,"d":"$0.00"}},{"$f":"'2 REPAIR ESTIMATOR'!AG694","v":0},{"$f":"T('2 REPAIR ESTIMATOR'!AX694)","v":""},{"$f":"T('2 REPAIR ESTIMATOR'!AY694)","v":""},null,0,0,0,0]
[{"$nulls":9},{"$f":"T('2 REPAIR ESTIMATOR'!D695:O695)","v":""},{"$f":"'2 REPAIR ESTIMATOR'!P695","v":0},{"$f":"'2 REPAIR ESTIMATOR'!S695","v":0},{"$f":"'2 REPAIR ESTIMATOR'!X695","v":{"v":0,"d":"$0.00"}},{"$f":"'2 REPAIR ESTIMATOR'!AG695","v":0},{"$f":"T('2 REPAIR ESTIMATOR'!AX695)","v":""},{"$f":"T('2 REPAIR ESTIMATOR'!AY695)","v":""},null,0,0,0,0]
[{"$nulls":9},{"$f":"T('2 REPAIR ESTIMATOR'!D696:O696)","v":""},{"$f":"'2 REPAIR ESTIMATOR'!P696","v":0},{"$f":"'2 REPAIR ESTIMATOR'!S696","v":0},{"$f":"'2 REPAIR ESTIMATOR'!X696","v":{"v":0,"d":"$0.00"}},{"$f":"'2 REPAIR ESTIMATOR'!AG696","v":0},{"$f":"T('2 REPAIR ESTIMATOR'!AX696)","v":""},{"$f":"T('2 REPAIR ESTIMATOR'!AY696)","v":""},null,0,0,0,0]
[{"$nulls":9},{"$f":"T('2 REPAIR ESTIMATOR'!D697:O697)","v":""},{"$f":"'2 REPAIR ESTIMATOR'!P697","v":0},{"$f":"'2 REPAIR ESTIMATOR'!S697","v":0},{"$f":"'2 REPAIR ESTIMATOR'!X697","v":{"v":0,"d":"$0.00"}},{"$f":"'2 REPAIR ESTIMATOR'!AG697","v":0},{"$f":"T('2 REPAIR ESTIMATOR'!AX697)","v":""},{"$f":"T('2 REPAIR ESTIMATOR'!AY697)","v":""},null,0,0,0,0]
[{"$nulls":9},{"$f":"T('2 REPAIR ESTIMATOR'!D698:O698)","v":""},{"$f":"'2 REPAIR ESTIMATOR'!P698","v":0},{"$f":"'2 REPAIR ESTIMATOR'!S698","v":0},{"$f":"'2 REPAIR ESTIMATOR'!X698","v":{"v":0,"d":"$0.00"}},{"$f":"'2 REPAIR ESTIMATOR'!AG698","v":0},{"$f":"T('2 REPAIR ESTIMATOR'!AX698)","v":""},{"$f":"T('2 REPAIR ESTIMATOR'!AY698)","v":""},null,0,0,0,0]
[{"$nulls":9},{"$f":"T('2 REPAIR ESTIMATOR'!D699:O699)","v":""},{"$f":"'2 REPAIR ESTIMATOR'!P699","v":0},{"$f":"'2 REPAIR ESTIMATOR'!S699","v":0},{"$f":"'2 REPAIR ESTIMATOR'!X699","v":{"v":0,"d":"$0.00"}},{"$f":"'2 REPAIR ESTIMATOR'!AG699","v":0},{"$f":"T('2 REPAIR ESTIMATOR'!AX699)","v":""},{"$f":"T('2 REPAIR ESTIMATOR'!AY699)","v":""},null,0,0,0,0]
[{"$nulls":9},{"$f":"T('2 REPAIR ESTIMATOR'!D700:O700)","v":""},{"$f":"'2 REPAIR ESTIMATOR'!P700","v":0},{"$f":"'2 REPAIR ESTIMATOR'!S700","v":0},{"$f":"'2 REPAIR ESTIMATOR'!X700","v":{"v":0,"d":"$0.00"}},{"$f":"'2 REPAIR ESTIMATOR'!AG700","v":0},{"$f":"T('2 REPAIR ESTIMATOR'!AX700)","v":""},{"$f":"T('2 REPAIR ESTIMATOR'!AY700)","v":""},null,0,0,0,0]
[{"$nulls":9},{"$f":"T('2 REPAIR ESTIMATOR'!D701:O701)","v":""},{"$f":"'2 REPAIR ESTIMATOR'!P701","v":0},{"$f":"'2 REPAIR ESTIMATOR'!S701","v":0},{"$f":"'2 REPAIR ESTIMATOR'!X701","v":{"v":0,"d":"$0.00"}},{"$f":"'2 REPAIR ESTIMATOR'!AG701","v":0},{"$f":"T('2 REPAIR ESTIMATOR'!AX701)","v":""},{"$f":"T('2 REPAIR ESTIMATOR'!AY701)","v":""},null,0,0,0,0]
[{"$nulls":9},{"$f":"T('2 REPAIR ESTIMATOR'!D702:O702)","v":""},{"$f":"'2 REPAIR ESTIMATOR'!P702","v":0},{"$f":"'2 REPAIR ESTIMATOR'!S702","v":0},{"$f":"'2 REPAIR ESTIMATOR'!X702","v":{"v":0,"d":"$0.00"}},{"$f":"'2 REPAIR ESTIMATOR'!AG702","v":0},{"$f":"T('2 REPAIR ESTIMATOR'!AX702)","v":""},{"$f":"T('2 REPAIR ESTIMATOR'!AY702)","v":""},null,0,0,0,0]
[{"$nulls":9},{"$f":"T('2 REPAIR ESTIMATOR'!D703:O703)","v":""},{"$f":"'2 REPAIR ESTIMATOR'!P703","v":0},{"$f":"'2 REPAIR ESTIMATOR'!S703","v":0},{"$f":"'2 REPAIR ESTIMATOR'!X703","v":{"v":0,"d":"$0.00"}},{"$f":"'2 REPAIR ESTIMATOR'!AG703","v":0},{"$f":"T('2 REPAIR ESTIMATOR'!AX703)","v":""},{"$f":"T('2 REPAIR ESTIMATOR'!AY703)","v":""},null,0,0,0,0]
[{"$nulls":9},{"$f":"T('2 REPAIR ESTIMATOR'!D704:O704)","v":""},{"$f":"'2 REPAIR ESTIMATOR'!P704","v":0},{"$f":"'2 REPAIR ESTIMATOR'!S704","v":0},{"$f":"'2 REPAIR ESTIMATOR'!X704","v":{"v":0,"d":"$0.00"}},{"$f":"'2 REPAIR ESTIMATOR'!AG704","v":0},{"$f":"T('2 REPAIR ESTIMATOR'!AX704)","v":""},{"$f":"T('2 REPAIR ESTIMATOR'!AY704)","v":""},null,0,0,0,0]
[{"$nulls":9},{"$f":"T('2 REPAIR ESTIMATOR'!D705:O705)","v":""},{"$f":"'2 REPAIR ESTIMATOR'!P705","v":0},{"$f":"'2 REPAIR ESTIMATOR'!S705","v":0},{"$f":"'2 REPAIR ESTIMATOR'!X705","v":{"v":0,"d":"$0.00"}},{"$f":"'2 REPAIR ESTIMATOR'!AG705","v":0},{"$f":"T('2 REPAIR ESTIMATOR'!AX705)","v":""},{"$f":"T('2 REPAIR ESTIMATOR'!AY705)","v":""},null,0,0,0,0]
[{"$nulls":9},{"$f":"T('2 REPAIR ESTIMATOR'!D706:O706)","v":""},{"$f":"'2 REPAIR ESTIMATOR'!P706","v":0},{"$f":"'2 REPAIR ESTIMATOR'!S706","v":0},{"$f":"'2 REPAIR ESTIMATOR'!X706","v":{"v":0,"d":"$0.00"}},{"$f":"'2 REPAIR ESTIMATOR'!AG706","v":0},{"$f":"T('2 REPAIR ESTIMATOR'!AX706)","v":""},{"$f":"T('2 REPAIR ESTIMATOR'!AY706)","v":""},null,0,0,0,0]
[{"$nulls":9},{"$f":"T('2 REPAIR ESTIMATOR'!D707:O707)","v":""},{"$f":"'2 REPAIR ESTIMATOR'!P707","v":0},{"$f":"'2 REPAIR ESTIMATOR'!S707","v":0},{"$f":"'2 REPAIR ESTIMATOR'!X707","v":{"v":0,"d":"$0.00"}},{"$f":"'2 REPAIR ESTIMATOR'!AG707","v":0},{"$f":"T('2 REPAIR ESTIMATOR'!AX707)","v":""},{"$f":"T('2 REPAIR ESTIMATOR'!AY707)","v":""},null,0,0,0,0]
[{"$nulls":9},{"$f":"T('2 REPAIR ESTIMATOR'!D708:O708)","v":""},{"$f":"'2 REPAIR ESTIMATOR'!P708","v":0},{"$f":"'2 REPAIR ESTIMATOR'!S708","v":0},{"$f":"'2 REPAIR ESTIMATOR'!X708","v":{"v":0,"d":"$0.00"}},{"$f":"'2 REPAIR ESTIMATOR'!AG708","v":0},{"$f":"T('2 REPAIR ESTIMATOR'!AX708)","v":""},{"$f":"T('2 REPAIR ESTIMATOR'!AY708)","v":""},null,0,0,0,0]
[{"$nulls":9},{"$f":"T('2 REPAIR ESTIMATOR'!D709:O709)","v":""},{"$f":"'2 REPAIR ESTIMATOR'!P709","v":0},{"$f":"'2 REPAIR ESTIMATOR'!S709","v":0},{"$f":"'2 REPAIR ESTIMATOR'!X709","v":{"v":0,"d":"$0.00"}},{"$f":"'2 REPAIR ESTIMATOR'!AG709","v":0},{"$f":"T('2 REPAIR ESTIMATOR'!AX709)","v":""},{"$f":"T('2 REPAIR ESTIMATOR'!AY709)","v":""},null,0,0,0,0]
[{"$nulls":9},{"$f":"T('2 REPAIR ESTIMATOR'!D710:O710)","v":""},{"$f":"'2 REPAIR ESTIMATOR'!P710","v":0},{"$f":"'2 REPAIR ESTIMATOR'!S710","v":0},{"$f":"'2 REPAIR ESTIMATOR'!X710","v":{"v":0,"d":"$0.00"}},{"$f":"'2 REPAIR ESTIMATOR'!AG710","v":0},{"$f":"T('2 REPAIR ESTIMATOR'!AX710)","v":""},{"$f":"T('2 REPAIR ESTIMATOR'!AY710)","v":""},null,0,0,0,0]
[{"$nulls":9},{"$f":"T('2 REPAIR ESTIMATOR'!D711:O711)","v":""},{"$f":"'2 REPAIR ESTIMATOR'!P711","v":0},{"$f":"'2 REPAIR ESTIMATOR'!S711","v":0},{"$f":"'2 REPAIR ESTIMATOR'!X711","v":{"v":0,"d":"$0.00"}},{"$f":"'2 REPAIR ESTIMATOR'!AG711","v":0},{"$f":"T('2 REPAIR ESTIMATOR'!AX711)","v":""},{"$f":"T('2 REPAIR ESTIMATOR'!AY711)","v":""},null,0,0,0,0]
[{"$nulls":9},{"$f":"T('2 REPAIR ESTIMATOR'!D712:O712)","v":""},{"$f":"'2 REPAIR ESTIMATOR'!P712","v":0},{"$f":"'2 REPAIR ESTIMATOR'!S712","v":0},{"$f":"'2 REPAIR ESTIMATOR'!X712","v":{"v":0,"d":"$0.00"}},{"$f":"'2 REPAIR ESTIMATOR'!AG712","v":0},{"$f":"T('2 REPAIR ESTIMATOR'!AX712)","v":""},{"$f":"T('2 REPAIR ESTIMATOR'!AY712)","v":""},null,0,0,0,0]
[{"$nulls":12},{"$f":"CONCATENATE(J739,\" \",\"TOTAL\")","v":"CABINETS & COUNTERTOPS TOTAL"},{"$f":"SUBTOTAL(9,N740:N779)","v":{"v":9496.25,"d":"$9,496.25"}},{"$nulls":3},{"$f":"SUM(R740:R779)","v":6},{"$f":"SUM(S740:S779)","v":0},{"$f":"SUM(T740:T779)","v":0},{"$f":"SUM(U740:U779)","v":6}]
[{"$nulls":9},{"$f":"T(#REF!)","v":{"$error":"#REF!"}},{"$f":"#REF!","v":{"$error":"#REF!"}},{"$f":"#REF!","v":{"$error":"#REF!"}},{"$f":"#REF!","v":{"$error":"#REF!"}},{"$f":"#REF!","v":{"$error":"#REF!"}},{"$nulls":3},{"$f":"R780","v":6},{"$f":"S780","v":0},{"$f":"T780","v":0},{"$f":"U780","v":6}]
[{"$nulls":9},{"$f":"CONCATENATE(\"MISCELLANEOUS \",J739,\" MATERIAL ITEMS\")","v":"MISCELLANEOUS CABINETS & COUNTERTOPS MATERIAL ITEMS"},{"$nulls":4},"Store","SKU #",null,{"$f":"SUM(R783:R792)*R739","v":{"$error":"#REF!"}},{"$f":"SUM(S783:S792)","v":0},{"$f":"SUM(T783:T792)","v":0},{"$f":"SUM(U783:U792)","v":{"$error":"#REF!"}}]
[{"$nulls":9},"1. Cabinetry materials",{"$nulls":7},{"$f":"IF(OR(G783=\"x\",J783>0),1,0)*R739","v":{"$error":"#REF!"}},{"$f":"IF(G783=\"x\",1,0)","v":0},{"$f":"IF(H783=\"x\",1,0)","v":0},{"$f":"IF(AND(R783=1,T783<>1),1,0)","v":{"$error":"#REF!"}}]
[{"$nulls":9},"2. Counterop materials",{"$nulls":7},{"$f":"IF(OR(G784=\"x\",J784>0),1,0)*R739","v":{"$error":"#REF!"}},0,0,{"$error":"#REF!"}]
[{"$nulls":9},"3. 2x blocking",{"$nulls":7},{"$f":"IF(OR(G785=\"x\",J785>0),1,0)*R739","v":{"$error":"#REF!"}},0,0,{"$error":"#REF!"}]
[{"$nulls":9},"4. Wood shims",{"$nulls":7},{"$f":"IF(OR(G786=\"x\",J786>0),1,0)*R739","v":{"$error":"#REF!"}},0,0,{"$error":"#REF!"}]
[{"$nulls":9},"5. Screws/nails/fasteners",{"$nulls":7},{"$f":"IF(OR(G787=\"x\",J787>0),1,0)*R739","v":{"$error":"#REF!"}},0,0,{"$error":"#REF!"}]
[{"$nulls":17},{"$f":"IF(OR(G788=\"x\",J788>0),1,0)*R739","v":{"$error":"#REF!"}},0,0,{"$error":"#REF!"}]
[{"$nulls":17},{"$f":"IF(OR(G789=\"x\",J789>0),1,0)*R739","v":{"$error":"#REF!"}},0,0,{"$error":"#REF!"}]
[{"$nulls":17},{"$f":"IF(OR(G790=\"x\",J790>0),1,0)*R739","v":{"$error":"#REF!"}},0,0,{"$error":"#REF!"}]
[{"$nulls":17},{"$f":"IF(OR(G791=\"x\",J791>0),1,0)*R739","v":{"$error":"#REF!"}},0,0,{"$error":"#REF!"}]
[{"$nulls":17},{"$f":"IF(OR(G792=\"x\",J792>0),1,0)*R739","v":{"$error":"#REF!"}},0,0,{"$error":"#REF!"}]
[{"$nulls":9},{"$f":"T(#REF!)","v":{"$error":"#REF!"}},{"$f":"#REF!","v":{"$error":"#REF!"}},{"$f":"#REF!","v":{"$error":"#REF!"}},{"$f":"#REF!","v":{"$error":"#REF!"}},{"$f":"#REF!","v":{"$error":"#REF!"}},{"$nulls":3},{"$f":"R782*R739","v":{"$error":"#REF!"}},{"$f":"S782","v":0},{"$f":"T782","v":0},{"$f":"U782","v":{"$error":"#REF!"}}]
[{"$nulls":9},{"$f":"T('2 REPAIR ESTIMATOR'!D717:O717)","v":"DOORS & TRIM"},{"$f":"#REF!","v":{"$error":"#REF!"}},{"$f":"#REF!","v":{"$error":"#REF!"}},{"$f":"#REF!","v":{"$error":"#REF!"}},{"$f":"#REF!","v":{"$error":"#REF!"}},{"$nulls":3},{"$f":"IF(SUM(R795:R848)>0,1,0)","v":{"$error":"#REF!"}},{"$f":"SUM(S795:S848)","v":0},{"$f":"SUM(T795:T848)","v":0},{"$f":"SUM(U795:U848)","v":{"$error":"#REF!"}}]
[{"$nulls":9},{"$f":"T('2 REPAIR ESTIMATOR'!D718:O718)","v":"Finish carpentry bid/allowance"},{"$f":"'2 REPAIR ESTIMATOR'!P718","v":0},{"$f":"'2 REPAIR ESTIMATOR'!S718","v":"ls"},{"$f":"'2 REPAIR ESTIMATOR'!X718","v":{"v":0,"d":"$0.00"}},{"$f":"'2 REPAIR ESTIMATOR'!AG718","v":0},{"$f":"T('2 REPAIR ESTIMATOR'!AX718)","v":""},{"$f":"T('2 REPAIR ESTIMATOR'!AY718)","v":""},null,{"$f":"IF(OR(G795=\"x\",N795>0),1,0)","v":0},{"$f":"IF(G795=\"x\",1,0)","v":0},{"$f":"IF(H795=\"x\",1,0)","v":0},{"$f":"IF(AND(R795=1,T795<>1),1,0)","v":0}]
[{"$nulls":9},{"$f":"T('2 REPAIR ESTIMATOR'!D719:O719)","v":"Interior door, prehung, hollow-core door"},{"$f":"'2 REPAIR ESTIMATOR'!P719","v":15},{"$f":"'2 REPAIR ESTIMATOR'!S719","v":"ea"},{"$f":"'2 REPAIR ESTIMATOR'!X719","v":{"v":80,"d":"$80.00"}},{"$f":"'2 REPAIR ESTIMATOR'!AG719","v":{"v":1284,"d":"$1,284.00"}},{"$f":"T('2 REPAIR ESTIMATOR'!AX719)","v":""},{"$f":"T('2 REPAIR ESTIMATOR'!AY719)","v":""},null,{"$f":"IF(OR(G796=\"x\",N796>0),1,0)","v":1},{"$f":"IF(G796=\"x\",1,0)","v":0},{"$f":"IF(H796=\"x\",1,0)","v":0},{"$f":"IF(AND(R796=1,T796<>1),1,0)","v":1}]
[{"$nulls":9},{"$f":"T('2 REPAIR ESTIMATOR'!D720:O720)","v":"Interior mirrored, sliding, closet doors"},{"$f":"'2 REPAIR ESTIMATOR'!P720","v":0},{"$f":"'2 REPAIR ESTIMATOR'!S720","v":"ea"},{"$f":"'2 REPAIR ESTIMATOR'!X720","v":{"v":95,"d":"$95.00"}},{"$f":"'2 REPAIR ESTIMATOR'!AG720","v":0},{"$f":"T('2 REPAIR ESTIMATOR'!AX720)","v":""},{"$f":"T('2 REPAIR ESTIMATOR'!AY720)","v":""},null,0,0,0,0]
[{"$nulls":9},{"$f":"T('2 REPAIR ESTIMATOR'!D721:O721)","v":"Interior bi-fold, closet doors"},{"$f":"'2 REPAIR ESTIMATOR'!P721","v":0},{"$f":"'2 REPAIR ESTIMATOR'!S721","v":"ea"},{"$f":"'2 REPAIR ESTIMATOR'!X721","v":{"v":100,"d":"$100.00"}},{"$f":"'2 REPAIR ESTIMATOR'!AG721","v":0},{"$f":"T('2 REPAIR ESTIMATOR'!AX721)","v":""},{"$f":"T('2 REPAIR ESTIMATOR'!AY721)","v":""},null,0,0,0,0]
[{"$nulls":9},{"$f":"T('2 REPAIR ESTIMATOR'!D722:O722)","v":"Door hardware, knobs only"},{"$f":"'2 REPAIR ESTIMATOR'!P722","v":0},{"$f":"'2 REPAIR ESTIMATOR'!S722","v":"ea"},{"$f":"'2 REPAIR ESTIMATOR'!X722","v":{"v":15,"d":"$15.00"}},{"$f":"'2 REPAIR ESTIMATOR'!AG722","v":0},{"$f":"T('2 REPAIR ESTIMATOR'!AX722)","v":""},{"$f":"T('2 REPAIR ESTIMATOR'!AY722)","v":""},null,0,0,0,0]
[{"$nulls":9},{"$f":"T('2 REPAIR ESTIMATOR'!D723:O723)","v":"Door casings"},{"$f":"'2 REPAIR ESTIMATOR'!P723","v":0},{"$f":"'2 REPAIR ESTIMATOR'!S723","v":"ea"},{"$f":"'2 REPAIR ESTIMATOR'!X723","v":{"v":25,"d":"$25.00"}},{"$f":"'2 REPAIR ESTIMATOR'!AG723","v":0},{"$f":"T('2 REPAIR ESTIMATOR'!AX723)","v":""},{"$f":"T('2 REPAIR ESTIMATOR'!AY723)","v":""},null,0,0,0,0]
[{"$nulls":9},{"$f":"T('2 REPAIR ESTIMATOR'!D724:O724)","v":"Window casings"},{"$f":"'2 REPAIR ESTIMATOR'!P724","v":0},{"$f":"'2 REPAIR ESTIMATOR'!S724","v":"ea"},{"$f":"'2 REPAIR ESTIMATOR'!X724","v":{"v":30,"d":"$30.00"}},{"$f":"'2 REPAIR ESTIMATOR'!AG724","v":0},{"$f":"T('2 REPAIR ESTIMATOR'!AX724)","v":""},{"$f":"T('2 REPAIR ESTIMATOR'!AY724)","v":""},null,0,0,0,0]
[{"$nulls":9},{"$f":"T('2 REPAIR ESTIMATOR'!D725:O725)","v":"Window sills"},{"$f":"'2 REPAIR ESTIMATOR'!P725","v":0},{"$f":"'2 REPAIR ESTIMATOR'!S725","v":"lf"},{"$f":"'2 REPAIR ESTIMATOR'!X725","v":{"v":2.5,"d":"$2.50"}},{"$f":"'2 REPAIR ESTIMATOR'!AG725","v":0},{"$f":"T('2 REPAIR ESTIMATOR'!AX725)","v":""},{"$f":"T('2 REPAIR ESTIMATOR'!AY725)","v":""},null,0,0,0,0]
[{"$nulls":9},{"$f":"T('2 REPAIR ESTIMATOR'!D726:O726)","v":"Wood  base"},{"$f":"'2 REPAIR ESTIMATOR'!P726","v":0},{"$f":"'2 REPAIR ESTIMATOR'!S726","v":"lf"},{"$f":"'2 REPAIR ESTIMATOR'!X726","v":{"v":1.25,"d":"$1.25"}},{"$f":"'2 REPAIR ESTIMATOR'!AG726","v":0},{"$f":"T('2 REPAIR ESTIMATOR'!AX726)","v":""},{"$f":"T('2 REPAIR ESTIMATOR'!AY726)","v":""},null,0,0,0,0]
[{"$nulls":9},{"$f":"T('2 REPAIR ESTIMATOR'!D727:O727)","v":"Crown molding"},{"$f":"'2 REPAIR ESTIMATOR'!P727","v":0},{"$f":"'2 REPAIR ESTIMATOR'!S727","v":"lf"},{"$f":"'2 REPAIR ESTIMATOR'!X727","v":{"v":2,"d":"$2.00"}},{"$f":"'2 REPAIR ESTIMATOR'!AG727","v":0},{"$f":"T('2 REPAIR ESTIMATOR'!AX727)","v":""},{"$f":"T('2 REPAIR ESTIMATOR'!AY727)","v":""},null,0,0,0,0]
[{"$nulls":9},{"$f":"T('2 REPAIR ESTIMATOR'!D728:O728)","v":"Raised panel wood wainscoting"},{"$f":"'2 REPAIR ESTIMATOR'!P728","v":0},{"$f":"'2 REPAIR ESTIMATOR'!S728","v":"lf"},{"$f":"'2 REPAIR ESTIMATOR'!X728","v":{"v":7.5,"d":"$7.50"}},{"$f":"'2 REPAIR ESTIMATOR'!AG728","v":0},{"$f":"T('2 REPAIR ESTIMATOR'!AX728)","v":""},{"$f":"T('2 REPAIR ESTIMATOR'!AY728)","v":""},null,0,0,0,0]
[{"$nulls":9},{"$f":"T('2 REPAIR ESTIMATOR'!D729:O729)","v":"Bead board wainscoting"},{"$f":"'2 REPAIR ESTIMATOR'!P729","v":0},{"$f":"'2 REPAIR ESTIMATOR'!S729","v":"lf"},{"$f":"'2 REPAIR ESTIMATOR'!X729","v":{"v":12.5,"d":"$12.50"}},{"$f":"'2 REPAIR ESTIMATOR'!AG729","v":0},{"$f":"T('2 REPAIR ESTIMATOR'!AX729)","v":""},{"$f":"T('2 REPAIR ESTIMATOR'!AY729)","v":""},null,0,0,0,0]
[{"$nulls":9},{"$f":"T('2 REPAIR ESTIMATOR'!D730:O730)","v":"Fireplace mantel"},{"$f":"'2 REPAIR ESTIMATOR'!P730","v":0},{"$f":"'2 REPAIR ESTIMATOR'!S730","v":"ea"},{"$f":"'2 REPAIR ESTIMATOR'!X730","v":{"v":300,"d":"$300.00"}},{"$f":"'2 REPAIR ESTIMATOR'!AG730","v":0},{"$f":"T('2 REPAIR ESTIMATOR'!AX730)","v":""},{"$f":"T('2 REPAIR ESTIMATOR'!AY730)","v":""},null,0,0,0,0]
[{"$nulls":9},{"$f":"T('2 REPAIR ESTIMATOR'!D731:O731)","v":"Wood columns"},{"$f":"'2 REPAIR ESTIMATOR'!P731","v":0},{"$f":"'2 REPAIR ESTIMATOR'!S731","v":"ea"},{"$f":"'2 REPAIR ESTIMATOR'!X731","v":{"v":150,"d":"$150.00"}},{"$f":"'2 REPAIR ESTIMATOR'!AG731","v":0},{"$f":"T('2 REPAIR ESTIMATOR'!AX731)","v":""},{"$f":"T('2 REPAIR ESTIMATOR'!AY731)","v":""},null,0,0,0,0]
[{"$nulls":9},{"$f":"T('2 REPAIR ESTIMATOR'!D732:O732)","v":"Closet shelf and rod"},{"$f":"'2 REPAIR ESTIMATOR'!P732","v":0},{"$f":"'2 REPAIR ESTIMATOR'!S732","v":"lf"},{"$f":"'2 REPAIR ESTIMATOR'!X732","v":{"v":3.5,"d":"$3.50"}},{"$f":"'2 REPAIR ESTIMATOR'!AG732","v":0},{"$f":"T('2 REPAIR ESTIMATOR'!AX732)","v":""},{"$f":"T('2 REPAIR ESTIMATOR'!AY732)","v":""},null,0,0,0,0]
[{"$nulls":9},{"$f":"T('2 REPAIR ESTIMATOR'!D733:O733)","v":"Closet kit, 8ft long"},{"$f":"'2 REPAIR ESTIMATOR'!P733","v":0},{"$f":"'2 REPAIR ESTIMATOR'!S733","v":"lf"},{"$f":"'2 REPAIR ESTIMATOR'!X733","v":{"v":350,"d":"$350.00"}},{"$f":"'2 REPAIR ESTIMATOR'!AG733","v":0},{"$f":"T('2 REPAIR ESTIMATOR'!AX733)","v":""},{"$f":"T('2 REPAIR ESTIMATOR'!AY733)","v":""},null,0,0,0,0]
[{"$nulls":9},{"$f":"T('2 REPAIR ESTIMATOR'!D734:O734)","v":"Wood handrail - rail only"},{"$f":"'2 REPAIR ESTIMATOR'!P734","v":0},{"$f":"'2 REPAIR ESTIMATOR'!S734","v":"lf"},{"$f":"'2 REPAIR ESTIMATOR'!X734","v":{"v":4,"d":"$4.00"}},{"$f":"'2 REPAIR ESTIMATOR'!AG734","v":0},{"$f":"T('2 REPAIR ESTIMATOR'!AX734)","v":""},{"$f":"T('2 REPAIR ESTIMATOR'!AY734)","v":""},null,0,0,0,0]
[{"$nulls":9},{"$f":"T('2 REPAIR ESTIMATOR'!D735:O735)","v":"Wood balusters"},{"$f":"'2 REPAIR ESTIMATOR'!P735","v":0},{"$f":"'2 REPAIR ESTIMATOR'!S735","v":"lf"},{"$f":"'2 REPAIR ESTIMATOR'!X735","v":{"v":10,"d":"$10.00"}},{"$f":"'2 REPAIR ESTIMATOR'!AG735","v":0},{"$f":"T('2 REPAIR ESTIMATOR'!AX735)","v":""},{"$f":"T('2 REPAIR ESTIMATOR'!AY735)","v":""},null,0,0,0,0]
[{"$nulls":9},{"$f":"T('2 REPAIR ESTIMATOR'!D736:O736)","v":"Iron balusters"},{"$f":"'2 REPAIR ESTIMATOR'!P736","v":0},{"$f":"'2 REPAIR ESTIMATOR'!S736","v":"lf"},{"$f":"'2 REPAIR ESTIMATOR'!X736","v":{"v":30,"d":"$30.00"}},{"$f":"'2 REPAIR ESTIMATOR'!AG736","v":0},{"$f":"T('2 REPAIR ESTIMATOR'!AX736)","v":""},{"$f":"T('2 REPAIR ESTIMATOR'!AY736)","v":""},null,0,0,0,0]
[{"$nulls":9},{"$f":"T('2 REPAIR ESTIMATOR'!D737:O737)","v":""},{"$f":"'2 REPAIR ESTIMATOR'!P737","v":0},{"$f":"'2 REPAIR ESTIMATOR'!S737","v":0},{"$f":"'2 REPAIR ESTIMATOR'!X737","v":{"v":0,"d":"$0.00"}},{"$f":"'2 REPAIR ESTIMATOR'!AG737","v":0},{"$f":"T('2 REPAIR ESTIMATOR'!AX737)","v":""},{"$f":"T('2 REPAIR ESTIMATOR'!AY737)","v":""},null,0,0,0,0]
[{"$nulls":9},{"$f":"T('2 REPAIR ESTIMATOR'!D738:O738)","v":""},{"$f":"'2 REPAIR ESTIMATOR'!P738","v":0},{"$f":"'2 REPAIR ESTIMATOR'!S738","v":0},{"$f":"'2 REPAIR ESTIMATOR'!X738","v":{"v":0,"d":"$0.00"}},{"$f":"'2 REPAIR ESTIMATOR'!AG738","v":0},{"$f":"T('2 REPAIR ESTIMATOR'!AX738)","v":""},{"$f":"T('2 REPAIR ESTIMATOR'!AY738)","v":""},null,0,0,0,0]
[{"$nulls":9},{"$f":"T('2 REPAIR ESTIMATOR'!D739:O739)","v":""},{"$f":"'2 REPAIR ESTIMATOR'!P739","v":0},{"$f":"'2 REPAIR ESTIMATOR'!S739","v":0},{"$f":"'2 REPAIR ESTIMATOR'!X739","v":{"v":0,"d":"$0.00"}},{"$f":"'2 REPAIR ESTIMATOR'!AG739","v":0},{"$f":"T('2 REPAIR ESTIMATOR'!AX739)","v":""},{"$f":"T('2 REPAIR ESTIMATOR'!AY739)","v":""},null,0,0,0,0]
[{"$nulls":9},{"$f":"T('2 REPAIR ESTIMATOR'!D740:O740)","v":""},{"$f":"'2 REPAIR ESTIMATOR'!P740","v":0},{"$f":"'2 REPAIR ESTIMATOR'!S740","v":0},{"$f":"'2 REPAIR ESTIMATOR'!X740","v":{"v":0,"d":"$0.00"}},{"$f":"'2 REPAIR ESTIMATOR'!AG740","v":0},{"$f":"T('2 REPAIR ESTIMATOR'!AX740)","v":""},{"$f":"T('2 REPAIR ESTIMATOR'!AY740)","v":""},null,0,0,0,0]
[{"$nulls":9},{"$f":"T('2 REPAIR ESTIMATOR'!D741:O741)","v":""},{"$f":"'2 REPAIR ESTIMATOR'!P741","v":0},{"$f":"'2 REPAIR ESTIMATOR'!S741","v":0},{"$f":"'2 REPAIR ESTIMATOR'!X741","v":{"v":0,"d":"$0.00"}},{"$f":"'2 REPAIR ESTIMATOR'!AG741","v":0},{"$f":"T('2 REPAIR ESTIMATOR'!AX741)","v":""},{"$f":"T('2 REPAIR ESTIMATOR'!AY741)","v":""},null,0,0,0,0]
[{"$nulls":9},{"$f":"T('2 REPAIR ESTIMATOR'!D742:O742)","v":""},{"$f":"'2 REPAIR ESTIMATOR'!P742","v":0},{"$f":"'2 REPAIR ESTIMATOR'!S742","v":0},{"$f":"'2 REPAIR ESTIMATOR'!X742","v":{"v":0,"d":"$0.00"}},{"$f":"'2 REPAIR ESTIMATOR'!AG742","v":0},{"$f":"T('2 REPAIR ESTIMATOR'!AX742)","v":""},{"$f":"T('2 REPAIR ESTIMATOR'!AY742)","v":""},null,0,0,0,0]
[{"$nulls":9},{"$f":"T('2 REPAIR ESTIMATOR'!D743:O743)","v":""},{"$f":"'2 REPAIR ESTIMATOR'!P743","v":0},{"$f":"'2 REPAIR ESTIMATOR'!S743","v":0},{"$f":"'2 REPAIR ESTIMATOR'!X743","v":{"v":0,"d":"$0.00"}},{"$f":"'2 REPAIR ESTIMATOR'!AG743","v":0},{"$f":"T('2 REPAIR ESTIMATOR'!AX743)","v":""},{"$f":"T('2 REPAIR ESTIMATOR'!AY743)","v":""},null,0,0,0,0]
[{"$nulls":9},{"$f":"T('2 REPAIR ESTIMATOR'!D744:O744)","v":""},{"$f":"'2 REPAIR ESTIMATOR'!P744","v":0},{"$f":"'2 REPAIR ESTIMATOR'!S744","v":0},{"$f":"'2 REPAIR ESTIMATOR'!X744","v":{"v":0,"d":"$0.00"}},{"$f":"'2 REPAIR ESTIMATOR'!AG744","v":0},{"$f":"T('2 REPAIR ESTIMATOR'!AX744)","v":""},{"$f":"T('2 REPAIR ESTIMATOR'!AY744)","v":""},null,0,0,0,0]
[{"$nulls":9},{"$f":"T('2 REPAIR ESTIMATOR'!D745:O745)","v":""},{"$f":"'2 REPAIR ESTIMATOR'!P745","v":0},{"$f":"'2 REPAIR ESTIMATOR'!S745","v":0},{"$f":"'2 REPAIR ESTIMATOR'!X745","v":{"v":0,"d":"$0.00"}},{"$f":"'2 REPAIR ESTIMATOR'!AG745","v":0},{"$f":"T('2 REPAIR ESTIMATOR'!AX745)","v":""},{"$f":"T('2 REPAIR ESTIMATOR'!AY745)","v":""},null,0,0,0,0]
[{"$nulls":9},{"$f":"T('2 REPAIR ESTIMATOR'!D746:O746)","v":""},{"$f":"'2 REPAIR ESTIMATOR'!P746","v":0},{"$f":"'2 REPAIR ESTIMATOR'!S746","v":0},{"$f":"'2 REPAIR ESTIMATOR'!X746","v":{"v":0,"d":"$0.00"}},{"$f":"'2 REPAIR ESTIMATOR'!AG746","v":0},{"$f":"T('2 REPAIR ESTIMATOR'!AX746)","v":""},{"$f":"T('2 REPAIR ESTIMATOR'!AY746)","v":""},null,0,0,0,0]
[{"$nulls":9},{"$f":"T('2 REPAIR ESTIMATOR'!D747:O747)","v":""},{"$f":"'2 REPAIR ESTIMATOR'!P747","v":0},{"$f":"'2 REPAIR ESTIMATOR'!S747","v":0},{"$f":"'2 REPAIR ESTIMATOR'!X747","v":{"v":0,"d":"$0.00"}},{"$f":"'2 REPAIR ESTIMATOR'!AG747","v":0},{"$f":"T('2 REPAIR ESTIMATOR'!AX747)","v":""},{"$f":"T('2 REPAIR ESTIMATOR'!AY747)","v":""},null,0,0,0,0]
[{"$nulls":9},{"$f":"T('2 REPAIR ESTIMATOR'!D748:O748)","v":""},{"$f":"'2 REPAIR ESTIMATOR'!P748","v":0},{"$f":"'2 REPAIR ESTIMATOR'!S748","v":0},{"$f":"'2 REPAIR ESTIMATOR'!X748","v":{"v":0,"d":"$0.00"}},{"$f":"'2 REPAIR ESTIMATOR'!AG748","v":0},{"$f":"T('2 REPAIR ESTIMATOR'!AX748)","v":""},{"$f":"T('2 REPAIR ESTIMATOR'!AY748)","v":""},null,0,0,0,0]
[{"$nulls":9},{"$f":"T('2 REPAIR ESTIMATOR'!D749:O749)","v":""},{"$f":"'2 REPAIR ESTIMATOR'!P749","v":0},{"$f":"'2 REPAIR ESTIMATOR'!S749","v":0},{"$f":"'2 REPAIR ESTIMATOR'!X749","v":{"v":0,"d":"$0.00"}},{"$f":"'2 REPAIR ESTIMATOR'!AG749","v":0},{"$f":"T('2 REPAIR ESTIMATOR'!AX749)","v":""},{"$f":"T('2 REPAIR ESTIMATOR'!AY749)","v":""},null,0,0,0,0]
[{"$nulls":9},{"$f":"T('2 REPAIR ESTIMATOR'!D750:O750)","v":""},{"$f":"'2 REPAIR ESTIMATOR'!P750","v":0},{"$f":"'2 REPAIR ESTIMATOR'!S750","v":0},{"$f":"'2 REPAIR ESTIMATOR'!X750","v":{"v":0,"d":"$0.00"}},{"$f":"'2 REPAIR ESTIMATOR'!AG750","v":0},{"$f":"T('2 REPAIR ESTIMATOR'!AX750)","v":""},{"$f":"T('2 REPAIR ESTIMATOR'!AY750)","v":""},null,0,0,0,0]
[{"$nulls":9},{"$f":"T('2 REPAIR ESTIMATOR'!D751:O751)","v":""},{"$f":"'2 REPAIR ESTIMATOR'!P751","v":0},{"$f":"'2 REPAIR ESTIMATOR'!S751","v":0},{"$f":"'2 REPAIR ESTIMATOR'!X751","v":{"v":0,"d":"$0.00"}},{"$f":"'2 REPAIR ESTIMATOR'!AG751","v":0},{"$f":"T('2 REPAIR ESTIMATOR'!AX751)","v":""},{"$f":"T('2 REPAIR ESTIMATOR'!AY751)","v":""},null,0,0,0,0]
[{"$nulls":9},{"$f":"T('2 REPAIR ESTIMATOR'!D752:O752)","v":""},{"$f":"'2 REPAIR ESTIMATOR'!P752","v":0},{"$f":"'2 REPAIR ESTIMATOR'!S752","v":0},{"$f":"'2 REPAIR ESTIMATOR'!X752","v":{"v":0,"d":"$0.00"}},{"$f":"'2 REPAIR ESTIMATOR'!AG752","v":0},{"$f":"T('2 REPAIR ESTIMATOR'!AX752)","v":""},{"$f":"T('2 REPAIR ESTIMATOR'!AY752)","v":""},null,0,0,0,0]
[{"$nulls":9},{"$f":"T('2 REPAIR ESTIMATOR'!D753:O753)","v":""},{"$f":"'2 REPAIR ESTIMATOR'!P753","v":0},{"$f":"'2 REPAIR ESTIMATOR'!S753","v":0},{"$f":"'2 REPAIR ESTIMATOR'!X753","v":{"v":0,"d":"$0.00"}},{"$f":"'2 REPAIR ESTIMATOR'!AG753","v":0},{"$f":"T('2 REPAIR ESTIMATOR'!AX753)","v":""},{"$f":"T('2 REPAIR ESTIMATOR'!AY753)","v":""},null,0,0,0,0]
[{"$nulls":9},{"$f":"T('2 REPAIR ESTIMATOR'!D754:O754)","v":""},{"$f":"'2 REPAIR ESTIMATOR'!P754","v":0},{"$f":"'2 REPAIR ESTIMATOR'!S754","v":0},{"$f":"'2 REPAIR ESTIMATOR'!X754","v":{"v":0,"d":"$0.00"}},{"$f":"'2 REPAIR ESTIMATOR'!AG754","v":0},{"$f":"T('2 REPAIR ESTIMATOR'!AX754)","v":""},{"$f":"T('2 REPAIR ESTIMATOR'!AY754)","v":""},null,0,0,0,0]
[{"$nulls":9},{"$f":"T('2 REPAIR ESTIMATOR'!D755:O755)","v":""},{"$f":"'2 REPAIR ESTIMATOR'!P755","v":0},{"$f":"'2 REPAIR ESTIMATOR'!S755","v":0},{"$f":"'2 REPAIR ESTIMATOR'!X755","v":{"v":0,"d":"$0.00"}},{"$f":"'2 REPAIR ESTIMATOR'!AG755","v":0},{"$f":"T('2 REPAIR ESTIMATOR'!AX755)","v":""},{"$f":"T('2 REPAIR ESTIMATOR'!AY755)","v":""},null,0,0,0,0]
[{"$nulls":9},{"$f":"T('2 REPAIR ESTIMATOR'!D756:O756)","v":""},{"$f":"'2 REPAIR ESTIMATOR'!P756","v":0},{"$f":"'2 REPAIR ESTIMATOR'!S756","v":0},{"$f":"'2 REPAIR ESTIMATOR'!X756","v":{"v":0,"d":"$0.00"}},{"$f":"'2 REPAIR ESTIMATOR'!AG756","v":0},{"$f":"T('2 REPAIR ESTIMATOR'!AX756)","v":""},{"$f":"T('2 REPAIR ESTIMATOR'!AY756)","v":""},null,0,0,0,0]
[{"$nulls":9},{"$f":"T('2 REPAIR ESTIMATOR'!D757:O757)","v":""},{"$f":"'2 REPAIR ESTIMATOR'!P757","v":0},{"$f":"'2 REPAIR ESTIMATOR'!S757","v":0},{"$f":"'2 REPAIR ESTIMATOR'!X757","v":{"v":0,"d":"$0.00"}},{"$f":"'2 REPAIR ESTIMATOR'!AG757","v":0},{"$f":"T('2 REPAIR ESTIMATOR'!AX757)","v":""},{"$f":"T('2 REPAIR ESTIMATOR'!AY757)","v":""},null,0,0,0,0]
[{"$nulls":12},{"$f":"CONCATENATE(J794,\" \",\"TOTAL\")","v":"DOORS & TRIM TOTAL"},{"$f":"SUBTOTAL(9,N795:N834)","v":{"v":1284,"d":"$1,284.00"}},{"$nulls":3},{"$f":"SUM(R795:R834)","v":1},{"$f":"SUM(S795:S834)","v":0},{"$f":"SUM(T795:T834)","v":0},{"$f":"SUM(U795:U834)","v":1}]
[{"$nulls":9},{"$f":"T(#REF!)","v":{"$error":"#REF!"}},{"$f":"#REF!","v":{"$error":"#REF!"}},{"$f":"#REF!","v":{"$error":"#REF!"}},{"$f":"#REF!","v":{"$error":"#REF!"}},{"$f":"#REF!","v":{"$error":"#REF!"}},{"$nulls":3},{"$f":"R835","v":1},{"$f":"S835","v":0},{"$f":"T835","v":0},{"$f":"U835","v":1}]
[{"$nulls":9},{"$f":"CONCATENATE(\"MISCELLANEOUS \",J794,\" MATERIAL ITEMS\")","v":"MISCELLANEOUS DOORS & TRIM MATERIAL ITEMS"},{"$nulls":4},"Store","SKU #",null,{"$f":"SUM(R838:R847)*R794","v":{"$error":"#REF!"}},{"$f":"SUM(S838:S847)","v":0},{"$f":"SUM(T838:T847)","v":0},{"$f":"SUM(U838:U847)","v":{"$error":"#REF!"}}]
[{"$nulls":9},"1. Doors/trim materials",{"$nulls":7},{"$f":"IF(OR(G838=\"x\",J838>0),1,0)*R794","v":{"$error":"#REF!"}},{"$f":"IF(G838=\"x\",1,0)","v":0},{"$f":"IF(H838=\"x\",1,0)","v":0},{"$f":"IF(AND(R838=1,T838<>1),1,0)","v":{"$error":"#REF!"}}]
[{"$nulls":9},"2. Door hardware",{"$nulls":7},{"$f":"IF(OR(G839=\"x\",J839>0),1,0)*R794","v":{"$error":"#REF!"}},0,0,{"$error":"#REF!"}]
[{"$nulls":9},"3. Wood shims",{"$nulls":7},{"$f":"IF(OR(G840=\"x\",J840>0),1,0)*R794","v":{"$error":"#REF!"}},0,0,{"$error":"#REF!"}]
[{"$nulls":9},"4. Screws/nails/fasteners",{"$nulls":7},{"$f":"IF(OR(G841=\"x\",J841>0),1,0)*R794","v":{"$error":"#REF!"}},0,0,{"$error":"#REF!"}]
[{"$nulls":17},{"$f":"IF(OR(G842=\"x\",J842>0),1,0)*R794","v":{"$error":"#REF!"}},0,0,{"$error":"#REF!"}]
[{"$nulls":17},{"$f":"IF(OR(G843=\"x\",J843>0),1,0)*R794","v":{"$error":"#REF!"}},0,0,{"$error":"#REF!"}]
[{"$nulls":17},{"$f":"IF(OR(G844=\"x\",J844>0),1,0)*R794","v":{"$error":"#REF!"}},0,0,{"$error":"#REF!"}]
[{"$nulls":17},{"$f":"IF(OR(G845=\"x\",J845>0),1,0)*R794","v":{"$error":"#REF!"}},0,0,{"$error":"#REF!"}]
[{"$nulls":17},{"$f":"IF(OR(G846=\"x\",J846>0),1,0)*R794","v":{"$error":"#REF!"}},0,0,{"$error":"#REF!"}]
[{"$nulls":17},{"$f":"IF(OR(G847=\"x\",J847>0),1,0)*R794","v":{"$error":"#REF!"}},0,0,{"$error":"#REF!"}]
[{"$nulls":9},{"$f":"T(#REF!)","v":{"$error":"#REF!"}},{"$f":"#REF!","v":{"$error":"#REF!"}},{"$f":"#REF!","v":{"$error":"#REF!"}},{"$f":"#REF!","v":{"$error":"#REF!"}},{"$f":"#REF!","v":{"$error":"#REF!"}},{"$nulls":3},{"$f":"R837*R794","v":{"$error":"#REF!"}},{"$f":"S837","v":0},{"$f":"T837","v":0},{"$f":"U837","v":{"$error":"#REF!"}}]
[{"$nulls":9},{"$f":"T('2 REPAIR ESTIMATOR'!D762:O762)","v":"CARPET & RESILIENT"},{"$f":"#REF!","v":{"$error":"#REF!"}},{"$f":"#REF!","v":{"$error":"#REF!"}},{"$f":"#REF!","v":{"$error":"#REF!"}},{"$f":"#REF!","v":{"$error":"#REF!"}},{"$nulls":3},{"$f":"IF(SUM(R850:R903)>0,1,0)","v":{"$error":"#REF!"}},{"$f":"SUM(S850:S903)","v":0},{"$f":"SUM(T850:T903)","v":0},{"$f":"SUM(U850:U903)","v":{"$error":"#REF!"}}]
[{"$nulls":9},{"$f":"T('2 REPAIR ESTIMATOR'!D763:O763)","v":"Carpeting & Resilient bid/allowance"},{"$f":"'2 REPAIR ESTIMATOR'!P763","v":0},{"$f":"'2 REPAIR ESTIMATOR'!S763","v":"ls"},{"$f":"'2 REPAIR ESTIMATOR'!X763","v":{"v":0,"d":"$0.00"}},{"$f":"'2 REPAIR ESTIMATOR'!AG763","v":0},{"$f":"T('2 REPAIR ESTIMATOR'!AX763)","v":""},{"$f":"T('2 REPAIR ESTIMATOR'!AY763)","v":""},null,{"$f":"IF(OR(G850=\"x\",N850>0),1,0)","v":0},{"$f":"IF(G850=\"x\",1,0)","v":0},{"$f":"IF(H850=\"x\",1,0)","v":0},{"$f":"IF(AND(R850=1,T850<>1),1,0)","v":0}]
[{"$nulls":9},{"$f":"T('2 REPAIR ESTIMATOR'!D764:O764)","v":"Carpeting"},{"$f":"'2 REPAIR ESTIMATOR'!P764","v":0},{"$f":"'2 REPAIR ESTIMATOR'!S764","v":0},{"$f":"'2 REPAIR ESTIMATOR'!X764","v":{"v":0,"d":"$0.00"}},{"$f":"'2 REPAIR ESTIMATOR'!AG764","v":0},{"$f":"T('2 REPAIR ESTIMATOR'!AX764)","v":""},{"$f":"T('2 REPAIR ESTIMATOR'!AY764)","v":""},null,{"$f":"IF(OR(G851=\"x\",N851>0),1,0)","v":0},{"$f":"IF(G851=\"x\",1,0)","v":0},{"$f":"IF(H851=\"x\",1,0)","v":0},{"$f":"IF(AND(R851=1,T851<>1),1,0)","v":0}]
[{"$nulls":9},{"$f":"T('2 REPAIR ESTIMATOR'!D765:O765)","v":"Carpet, economy grade"},{"$f":"'2 REPAIR ESTIMATOR'!P765","v":{"v":1200,"d":"1,200"}},{"$f":"'2 REPAIR ESTIMATOR'!S765","v":"sf"},{"$f":"'2 REPAIR ESTIMATOR'!X765","v":{"v":1.25,"d":"$1.25"}},{"$f":"'2 REPAIR ESTIMATOR'!AG765","v":{"v":1605,"d":"$1,605.00"}},{"$f":"T('2 REPAIR ESTIMATOR'!AX765)","v":""},{"$f":"T('2 REPAIR ESTIMATOR'!AY765)","v":""},null,1,0,0,1]
[{"$nulls":9},{"$f":"T('2 REPAIR ESTIMATOR'!D766:O766)","v":"Carpet average grade"},{"$f":"'2 REPAIR ESTIMATOR'!P766","v":0},{"$f":"'2 REPAIR ESTIMATOR'!S766","v":"sf"},{"$f":"'2 REPAIR ESTIMATOR'!X766","v":{"v":2,"d":"$2.00"}},{"$f":"'2 REPAIR ESTIMATOR'!AG766","v":0},{"$f":"T('2 REPAIR ESTIMATOR'!AX766)","v":""},{"$f":"T('2 REPAIR ESTIMATOR'!AY766)","v":""},null,0,0,0,0]
[{"$nulls":9},{"$f":"T('2 REPAIR ESTIMATOR'!D767:O767)","v":"Carpet, premium grade"},{"$f":"'2 REPAIR ESTIMATOR'!P767","v":0},{"$f":"'2 REPAIR ESTIMATOR'!S767","v":"sf"},{"$f":"'2 REPAIR ESTIMATOR'!X767","v":{"v":3,"d":"$3.00"}},{"$f":"'2 REPAIR ESTIMATOR'!AG767","v":0},{"$f":"T('2 REPAIR ESTIMATOR'!AX767)","v":""},{"$f":"T('2 REPAIR ESTIMATOR'!AY767)","v":""},null,0,0,0,0]
[{"$nulls":9},{"$f":"T('2 REPAIR ESTIMATOR'!D768:O768)","v":""},{"$f":"'2 REPAIR ESTIMATOR'!P768","v":0},{"$f":"'2 REPAIR ESTIMATOR'!S768","v":0},{"$f":"'2 REPAIR ESTIMATOR'!X768","v":{"v":0,"d":"$0.00"}},{"$f":"'2 REPAIR ESTIMATOR'!AG768","v":0},{"$f":"T('2 REPAIR ESTIMATOR'!AX768)","v":""},{"$f":"T('2 REPAIR ESTIMATOR'!AY768)","v":""},null,0,0,0,0]
[{"$nulls":9},{"$f":"T('2 REPAIR ESTIMATOR'!D769:O769)","v":""},{"$f":"'2 REPAIR ESTIMATOR'!P769","v":0},{"$f":"'2 REPAIR ESTIMATOR'!S769","v":0},{"$f":"'2 REPAIR ESTIMATOR'!X769","v":{"v":0,"d":"$0.00"}},{"$f":"'2 REPAIR ESTIMATOR'!AG769","v":0},{"$f":"T('2 REPAIR ESTIMATOR'!AX769)","v":""},{"$f":"T('2 REPAIR ESTIMATOR'!AY769)","v":""},null,0,0,0,0]
[{"$nulls":9},{"$f":"T('2 REPAIR ESTIMATOR'!D770:O770)","v":"Sheet Vinyl"},{"$f":"'2 REPAIR ESTIMATOR'!P770","v":0},{"$f":"'2 REPAIR ESTIMATOR'!S770","v":0},{"$f":"'2 REPAIR ESTIMATOR'!X770","v":{"v":0,"d":"$0.00"}},{"$f":"'2 REPAIR ESTIMATOR'!AG770","v":0},{"$f":"T('2 REPAIR ESTIMATOR'!AX770)","v":""},{"$f":"T('2 REPAIR ESTIMATOR'!AY770)","v":""},null,0,0,0,0]
[{"$nulls":9},{"$f":"T('2 REPAIR ESTIMATOR'!D771:O771)","v":"Sheet vinyl, economy grade"},{"$f":"'2 REPAIR ESTIMATOR'!P771","v":0},{"$f":"'2 REPAIR ESTIMATOR'!S771","v":"sf"},{"$f":"'2 REPAIR ESTIMATOR'!X771","v":{"v":2,"d":"$2.00"}},{"$f":"'2 REPAIR ESTIMATOR'!AG771","v":0},{"$f":"T('2 REPAIR ESTIMATOR'!AX771)","v":""},{"$f":"T('2 REPAIR ESTIMATOR'!AY771)","v":""},null,0,0,0,0]
[{"$nulls":9},{"$f":"T('2 REPAIR ESTIMATOR'!D772:O772)","v":"Sheet vinyl, average grade"},{"$f":"'2 REPAIR ESTIMATOR'!P772","v":0},{"$f":"'2 REPAIR ESTIMATOR'!S772","v":"sf"},{"$f":"'2 REPAIR ESTIMATOR'!X772","v":{"v":3,"d":"$3.00"}},{"$f":"'2 REPAIR ESTIMATOR'!AG772","v":0},{"$f":"T('2 REPAIR ESTIMATOR'!AX772)","v":""},{"$f":"T('2 REPAIR ESTIMATOR'!AY772)","v":""},null,0,0,0,0]
[{"$nulls":9},{"$f":"T('2 REPAIR ESTIMATOR'!D773:O773)","v":"Sheet vinyl, premium grade"},{"$f":"'2 REPAIR ESTIMATOR'!P773","v":0},{"$f":"'2 REPAIR ESTIMATOR'!S773","v":"sf"},{"$f":"'2 REPAIR ESTIMATOR'!X773","v":{"v":4.5,"d":"$4.50"}},{"$f":"'2 REPAIR ESTIMATOR'!AG773","v":0},{"$f":"T('2 REPAIR ESTIMATOR'!AX773)","v":""},{"$f":"T('2 REPAIR ESTIMATOR'!AY773)","v":""},null,0,0,0,0]
[{"$nulls":9},{"$f":"T('2 REPAIR ESTIMATOR'!D774:O774)","v":"Clean and wax vinyl"},{"$f":"'2 REPAIR ESTIMATOR'!P774","v":0},{"$f":"'2 REPAIR ESTIMATOR'!S774","v":"sf"},{"$f":"'2 REPAIR ESTIMATOR'!X774","v":{"v":0.03,"d":"$0.03"}},{"$f":"'2 REPAIR ESTIMATOR'!AG774","v":0},{"$f":"T('2 REPAIR ESTIMATOR'!AX774)","v":""},{"$f":"T('2 REPAIR ESTIMATOR'!AY774)","v":""},null,0,0,0,0]
[{"$nulls":9},{"$f":"T('2 REPAIR ESTIMATOR'!D775:O775)","v":""},{"$f":"'2 REPAIR ESTIMATOR'!P775","v":0},{"$f":"'2 REPAIR ESTIMATOR'!S775","v":0},{"$f":"'2 REPAIR ESTIMATOR'!X775","v":{"v":0,"d":"$0.00"}},{"$f":"'2 REPAIR ESTIMATOR'!AG775","v":0},{"$f":"T('2 REPAIR ESTIMATOR'!AX775)","v":""},{"$f":"T('2 REPAIR ESTIMATOR'!AY775)","v":""},null,0,0,0,0]
[{"$nulls":9},{"$f":"T('2 REPAIR ESTIMATOR'!D776:O776)","v":"Vinyl Tile"},{"$f":"'2 REPAIR ESTIMATOR'!P776","v":0},{"$f":"'2 REPAIR ESTIMATOR'!S776","v":0},{"$f":"'2 REPAIR ESTIMATOR'!X776","v":{"v":0,"d":"$0.00"}},{"$f":"'2 REPAIR ESTIMATOR'!AG776","v":0},{"$f":"T('2 REPAIR ESTIMATOR'!AX776)","v":""},{"$f":"T('2 REPAIR ESTIMATOR'!AY776)","v":""},null,0,0,0,0]
[{"$nulls":9},{"$f":"T('2 REPAIR ESTIMATOR'!D777:O777)","v":"Vinyl tile, economy grade"},{"$f":"'2 REPAIR ESTIMATOR'!P777","v":0},{"$f":"'2 REPAIR ESTIMATOR'!S777","v":"sf"},{"$f":"'2 REPAIR ESTIMATOR'!X777","v":{"v":2,"d":"$2.00"}},{"$f":"'2 REPAIR ESTIMATOR'!AG777","v":0},{"$f":"T('2 REPAIR ESTIMATOR'!AX777)","v":""},{"$f":"T('2 REPAIR ESTIMATOR'!AY777)","v":""},null,0,0,0,0]
[{"$nulls":9},{"$f":"T('2 REPAIR ESTIMATOR'!D778:O778)","v":"Vinyl tile, average grade"},{"$f":"'2 REPAIR ESTIMATOR'!P778","v":0},{"$f":"'2 REPAIR ESTIMATOR'!S778","v":"sf"},{"$f":"'2 REPAIR ESTIMATOR'!X778","v":{"v":5,"d":"$5.00"}},{"$f":"'2 REPAIR ESTIMATOR'!AG778","v":0},{"$f":"T('2 REPAIR ESTIMATOR'!AX778)","v":""},{"$f":"T('2 REPAIR ESTIMATOR'!AY778)","v":""},null,0,0,0,0]
[{"$nulls":9},{"$f":"T('2 REPAIR ESTIMATOR'!D779:O779)","v":"Vinyl tile, premium grade"},{"$f":"'2 REPAIR ESTIMATOR'!P779","v":0},{"$f":"'2 REPAIR ESTIMATOR'!S779","v":"sf"},{"$f":"'2 REPAIR ESTIMATOR'!X779","v":{"v":8,"d":"$8.00"}},{"$f":"'2 REPAIR ESTIMATOR'!AG779","v":0},{"$f":"T('2 REPAIR ESTIMATOR'!AX779)","v":""},{"$f":"T('2 REPAIR ESTIMATOR'!AY779)","v":""},null,0,0,0,0]
[{"$nulls":9},{"$f":"T('2 REPAIR ESTIMATOR'!D780:O780)","v":"Clean and wax vinyl"},{"$f":"'2 REPAIR ESTIMATOR'!P780","v":0},{"$f":"'2 REPAIR ESTIMATOR'!S780","v":"sf"},{"$f":"'2 REPAIR ESTIMATOR'!X780","v":{"v":0.03,"d":"$0.03"}},{"$f":"'2 REPAIR ESTIMATOR'!AG780","v":0},{"$f":"T('2 REPAIR ESTIMATOR'!AX780)","v":""},{"$f":"T('2 REPAIR ESTIMATOR'!AY780)","v":""},null,0,0,0,0]
[{"$nulls":9},{"$f":"T('2 REPAIR ESTIMATOR'!D781:O781)","v":""},{"$f":"'2 REPAIR ESTIMATOR'!P781","v":0},{"$f":"'2 REPAIR ESTIMATOR'!S781","v":0},{"$f":"'2 REPAIR ESTIMATOR'!X781","v":{"v":0,"d":"$0.00"}},{"$f":"'2 REPAIR ESTIMATOR'!AG781","v":0},{"$f":"T('2 REPAIR ESTIMATOR'!AX781)","v":""},{"$f":"T('2 REPAIR ESTIMATOR'!AY781)","v":""},null,0,0,0,0]
[{"$nulls":9},{"$f":"T('2 REPAIR ESTIMATOR'!D782:O782)","v":""},{"$f":"'2 REPAIR ESTIMATOR'!P782","v":0},{"$f":"'2 REPAIR ESTIMATOR'!S782","v":0},{"$f":"'2 REPAIR ESTIMATOR'!X782","v":{"v":0,"d":"$0.00"}},{"$f":"'2 REPAIR ESTIMATOR'!AG782","v":0},{"$f":"T('2 REPAIR ESTIMATOR'!AX782)","v":""},{"$f":"T('2 REPAIR ESTIMATOR'!AY782)","v":""},null,0,0,0,0]
[{"$nulls":9},{"$f":"T('2 REPAIR ESTIMATOR'!D783:O783)","v":""},{"$f":"'2 REPAIR ESTIMATOR'!P783","v":0},{"$f":"'2 REPAIR ESTIMATOR'!S783","v":0},{"$f":"'2 REPAIR ESTIMATOR'!X783","v":{"v":0,"d":"$0.00"}},{"$f":"'2 REPAIR ESTIMATOR'!AG783","v":0},{"$f":"T('2 REPAIR ESTIMATOR'!AX783)","v":""},{"$f":"T('2 REPAIR ESTIMATOR'!AY783)","v":""},null,0,0,0,0]
[{"$nulls":9},{"$f":"T('2 REPAIR ESTIMATOR'!D784:O784)","v":""},{"$f":"'2 REPAIR ESTIMATOR'!P784","v":0},{"$f":"'2 REPAIR ESTIMATOR'!S784","v":0},{"$f":"'2 REPAIR ESTIMATOR'!X784","v":{"v":0,"d":"$0.00"}},{"$f":"'2 REPAIR ESTIMATOR'!AG784","v":0},{"$f":"T('2 REPAIR ESTIMATOR'!AX784)","v":""},{"$f":"T('2 REPAIR ESTIMATOR'!AY784)","v":""},null,0,0,0,0]
[{"$nulls":9},{"$f":"T('2 REPAIR ESTIMATOR'!D785:O785)","v":""},{"$f":"'2 REPAIR ESTIMATOR'!P785","v":0},{"$f":"'2 REPAIR ESTIMATOR'!S785","v":0},{"$f":"'2 REPAIR ESTIMATOR'!X785","v":{"v":0,"d":"$0.00"}},{"$f":"'2 REPAIR ESTIMATOR'!AG785","v":0},{"$f":"T('2 REPAIR ESTIMATOR'!AX785)","v":""},{"$f":"T('2 REPAIR ESTIMATOR'!AY785)","v":""},null,0,0,0,0]
[{"$nulls":9},{"$f":"T('2 REPAIR ESTIMATOR'!D786:O786)","v":""},{"$f":"'2 REPAIR ESTIMATOR'!P786","v":0},{"$f":"'2 REPAIR ESTIMATOR'!S786","v":0},{"$f":"'2 REPAIR ESTIMATOR'!X786","v":{"v":0,"d":"$0.00"}},{"$f":"'2 REPAIR ESTIMATOR'!AG786","v":0},{"$f":"T('2 REPAIR ESTIMATOR'!AX786)","v":""},{"$f":"T('2 REPAIR ESTIMATOR'!AY786)","v":""},null,0,0,0,0]
[{"$nulls":9},{"$f":"T('2 REPAIR ESTIMATOR'!D787:O787)","v":""},{"$f":"'2 REPAIR ESTIMATOR'!P787","v":0},{"$f":"'2 REPAIR ESTIMATOR'!S787","v":0},{"$f":"'2 REPAIR ESTIMATOR'!X787","v":{"v":0,"d":"$0.00"}},{"$f":"'2 REPAIR ESTIMATOR'!AG787","v":0},{"$f":"T('2 REPAIR ESTIMATOR'!AX787)","v":""},{"$f":"T('2 REPAIR ESTIMATOR'!AY787)","v":""},null,0,0,0,0]
[{"$nulls":9},{"$f":"T('2 REPAIR ESTIMATOR'!D788:O788)","v":""},{"$f":"'2 REPAIR ESTIMATOR'!P788","v":0},{"$f":"'2 REPAIR ESTIMATOR'!S788","v":0},{"$f":"'2 REPAIR ESTIMATOR'!X788","v":{"v":0,"d":"$0.00"}},{"$f":"'2 REPAIR ESTIMATOR'!AG788","v":0},{"$f":"T('2 REPAIR ESTIMATOR'!AX788)","v":""},{"$f":"T('2 REPAIR ESTIMATOR'!AY788)","v":""},null,0,0,0,0]
[{"$nulls":9},{"$f":"T('2 REPAIR ESTIMATOR'!D789:O789)","v":""},{"$f":"'2 REPAIR ESTIMATOR'!P789","v":0},{"$f":"'2 REPAIR ESTIMATOR'!S789","v":0},{"$f":"'2 REPAIR ESTIMATOR'!X789","v":{"v":0,"d":"$0.00"}},{"$f":"'2 REPAIR ESTIMATOR'!AG789","v":0},{"$f":"T('2 REPAIR ESTIMATOR'!AX789)","v":""},{"$f":"T('2 REPAIR ESTIMATOR'!AY789)","v":""},null,0,0,0,0]
[{"$nulls":9},{"$f":"T('2 REPAIR ESTIMATOR'!D790:O790)","v":""},{"$f":"'2 REPAIR ESTIMATOR'!P790","v":0},{"$f":"'2 REPAIR ESTIMATOR'!S790","v":0},{"$f":"'2 REPAIR ESTIMATOR'!X790","v":{"v":0,"d":"$0.00"}},{"$f":"'2 REPAIR ESTIMATOR'!AG790","v":0},{"$f":"T('2 REPAIR ESTIMATOR'!AX790)","v":""},{"$f":"T('2 REPAIR ESTIMATOR'!AY790)","v":""},null,0,0,0,0]
[{"$nulls":9},{"$f":"T('2 REPAIR ESTIMATOR'!D791:O791)","v":""},{"$f":"'2 REPAIR ESTIMATOR'!P791","v":0},{"$f":"'2 REPAIR ESTIMATOR'!S791","v":0},{"$f":"'2 REPAIR ESTIMATOR'!X791","v":{"v":0,"d":"$0.00"}},{"$f":"'2 REPAIR ESTIMATOR'!AG791","v":0},{"$f":"T('2 REPAIR ESTIMATOR'!AX791)","v":""},{"$f":"T('2 REPAIR ESTIMATOR'!AY791)","v":""},null,0,0,0,0]
[{"$nulls":9},{"$f":"T('2 REPAIR ESTIMATOR'!D792:O792)","v":""},{"$f":"'2 REPAIR ESTIMATOR'!P792","v":0},{"$f":"'2 REPAIR ESTIMATOR'!S792","v":0},{"$f":"'2 REPAIR ESTIMATOR'!X792","v":{"v":0,"d":"$0.00"}},{"$f":"'2 REPAIR ESTIMATOR'!AG792","v":0},{"$f":"T('2 REPAIR ESTIMATOR'!AX792)","v":""},{"$f":"T('2 REPAIR ESTIMATOR'!AY792)","v":""},null,0,0,0,0]
[{"$nulls":9},{"$f":"T('2 REPAIR ESTIMATOR'!D793:O793)","v":""},{"$f":"'2 REPAIR ESTIMATOR'!P793","v":0},{"$f":"'2 REPAIR ESTIMATOR'!S793","v":0},{"$f":"'2 REPAIR ESTIMATOR'!X793","v":{"v":0,"d":"$0.00"}},{"$f":"'2 REPAIR ESTIMATOR'!AG793","v":0},{"$f":"T('2 REPAIR ESTIMATOR'!AX793)","v":""},{"$f":"T('2 REPAIR ESTIMATOR'!AY793)","v":""},null,0,0,0,0]
[{"$nulls":9},{"$f":"T('2 REPAIR ESTIMATOR'!D794:O794)","v":""},{"$f":"'2 REPAIR ESTIMATOR'!P794","v":0},{"$f":"'2 REPAIR ESTIMATOR'!S794","v":0},{"$f":"'2 REPAIR ESTIMATOR'!X794","v":{"v":0,"d":"$0.00"}},{"$f":"'2 REPAIR ESTIMATOR'!AG794","v":0},{"$f":"T('2 REPAIR ESTIMATOR'!AX794)","v":""},{"$f":"T('2 REPAIR ESTIMATOR'!AY794)","v":""},null,0,0,0,0]
[{"$nulls":9},{"$f":"T('2 REPAIR ESTIMATOR'!D795:O795)","v":""},{"$f":"'2 REPAIR ESTIMATOR'!P795","v":0},{"$f":"'2 REPAIR ESTIMATOR'!S795","v":0},{"$f":"'2 REPAIR ESTIMATOR'!X795","v":{"v":0,"d":"$0.00"}},{"$f":"'2 REPAIR ESTIMATOR'!AG795","v":0},{"$f":"T('2 REPAIR ESTIMATOR'!AX795)","v":""},{"$f":"T('2 REPAIR ESTIMATOR'!AY795)","v":""},null,0,0,0,0]
[{"$nulls":9},{"$f":"T('2 REPAIR ESTIMATOR'!D796:O796)","v":""},{"$f":"'2 REPAIR ESTIMATOR'!P796","v":0},{"$f":"'2 REPAIR ESTIMATOR'!S796","v":0},{"$f":"'2 REPAIR ESTIMATOR'!X796","v":{"v":0,"d":"$0.00"}},{"$f":"'2 REPAIR ESTIMATOR'!AG796","v":0},{"$f":"T('2 REPAIR ESTIMATOR'!AX796)","v":""},{"$f":"T('2 REPAIR ESTIMATOR'!AY796)","v":""},null,0,0,0,0]
[{"$nulls":9},{"$f":"T('2 REPAIR ESTIMATOR'!D797:O797)","v":""},{"$f":"'2 REPAIR ESTIMATOR'!P797","v":0},{"$f":"'2 REPAIR ESTIMATOR'!S797","v":0},{"$f":"'2 REPAIR ESTIMATOR'!X797","v":{"v":0,"d":"$0.00"}},{"$f":"'2 REPAIR ESTIMATOR'!AG797","v":0},{"$f":"T('2 REPAIR ESTIMATOR'!AX797)","v":""},{"$f":"T('2 REPAIR ESTIMATOR'!AY797)","v":""},null,0,0,0,0]
[{"$nulls":9},{"$f":"T('2 REPAIR ESTIMATOR'!D798:O798)","v":""},{"$f":"'2 REPAIR ESTIMATOR'!P798","v":0},{"$f":"'2 REPAIR ESTIMATOR'!S798","v":0},{"$f":"'2 REPAIR ESTIMATOR'!X798","v":{"v":0,"d":"$0.00"}},{"$f":"'2 REPAIR ESTIMATOR'!AG798","v":0},{"$f":"T('2 REPAIR ESTIMATOR'!AX798)","v":""},{"$f":"T('2 REPAIR ESTIMATOR'!AY798)","v":""},null,0,0,0,0]
[{"$nulls":9},{"$f":"T('2 REPAIR ESTIMATOR'!D799:O799)","v":""},{"$f":"'2 REPAIR ESTIMATOR'!P799","v":0},{"$f":"'2 REPAIR ESTIMATOR'!S799","v":0},{"$f":"'2 REPAIR ESTIMATOR'!X799","v":{"v":0,"d":"$0.00"}},{"$f":"'2 REPAIR ESTIMATOR'!AG799","v":0},{"$f":"T('2 REPAIR ESTIMATOR'!AX799)","v":""},{"$f":"T('2 REPAIR ESTIMATOR'!AY799)","v":""},null,0,0,0,0]
[{"$nulls":9},{"$f":"T('2 REPAIR ESTIMATOR'!D800:O800)","v":""},{"$f":"'2 REPAIR ESTIMATOR'!P800","v":0},{"$f":"'2 REPAIR ESTIMATOR'!S800","v":0},{"$f":"'2 REPAIR ESTIMATOR'!X800","v":{"v":0,"d":"$0.00"}},{"$f":"'2 REPAIR ESTIMATOR'!AG800","v":0},{"$f":"T('2 REPAIR ESTIMATOR'!AX800)","v":""},{"$f":"T('2 REPAIR ESTIMATOR'!AY800)","v":""},null,0,0,0,0]
[{"$nulls":9},{"$f":"T('2 REPAIR ESTIMATOR'!D801:O801)","v":""},{"$f":"'2 REPAIR ESTIMATOR'!P801","v":0},{"$f":"'2 REPAIR ESTIMATOR'!S801","v":0},{"$f":"'2 REPAIR ESTIMATOR'!X801","v":{"v":0,"d":"$0.00"}},{"$f":"'2 REPAIR ESTIMATOR'!AG801","v":0},{"$f":"T('2 REPAIR ESTIMATOR'!AX801)","v":""},{"$f":"T('2 REPAIR ESTIMATOR'!AY801)","v":""},null,0,0,0,0]
[{"$nulls":9},{"$f":"T('2 REPAIR ESTIMATOR'!D802:O802)","v":""},{"$f":"'2 REPAIR ESTIMATOR'!P802","v":0},{"$f":"'2 REPAIR ESTIMATOR'!S802","v":0},{"$f":"'2 REPAIR ESTIMATOR'!X802","v":{"v":0,"d":"$0.00"}},{"$f":"'2 REPAIR ESTIMATOR'!AG802","v":0},{"$f":"T('2 REPAIR ESTIMATOR'!AX802)","v":""},{"$f":"T('2 REPAIR ESTIMATOR'!AY802)","v":""},null,0,0,0,0]
[{"$nulls":12},{"$f":"CONCATENATE(J849,\" \",\"TOTAL\")","v":"CARPET & RESILIENT TOTAL"},{"$f":"SUBTOTAL(9,N850:N889)","v":{"v":1605,"d":"$1,605.00"}},{"$nulls":3},{"$f":"SUM(R850:R889)","v":1},{"$f":"SUM(S850:S889)","v":0},{"$f":"SUM(T850:T889)","v":0},{"$f":"SUM(U850:U889)","v":1}]
[{"$nulls":9},{"$f":"T(#REF!)","v":{"$error":"#REF!"}},{"$f":"#REF!","v":{"$error":"#REF!"}},{"$f":"#REF!","v":{"$error":"#REF!"}},{"$f":"#REF!","v":{"$error":"#REF!"}},{"$f":"#REF!","v":{"$error":"#REF!"}},{"$nulls":3},{"$f":"R890","v":1},{"$f":"S890","v":0},{"$f":"T890","v":0},{"$f":"U890","v":1}]
[{"$nulls":9},{"$f":"CONCATENATE(\"MISCELLANEOUS \",J849,\" MATERIAL ITEMS\")","v":"MISCELLANEOUS CARPET & RESILIENT MATERIAL ITEMS"},{"$nulls":4},"Store","SKU #",null,{"$f":"SUM(R893:R902)*R849","v":{"$error":"#REF!"}},{"$f":"SUM(S893:S902)","v":0},{"$f":"SUM(T893:T902)","v":0},{"$f":"SUM(U893:U902)","v":{"$error":"#REF!"}}]
[{"$nulls":9},"1. Carpeting materials",{"$nulls":7},{"$f":"IF(OR(G893=\"x\",J893>0),1,0)*R849","v":{"$error":"#REF!"}},{"$f":"IF(G893=\"x\",1,0)","v":0},{"$f":"IF(H893=\"x\",1,0)","v":0},{"$f":"IF(AND(R893=1,T893<>1),1,0)","v":{"$error":"#REF!"}}]
[{"$nulls":9},"2. Carpet pad",{"$nulls":7},{"$f":"IF(OR(G894=\"x\",J894>0),1,0)*R849","v":{"$error":"#REF!"}},0,0,{"$error":"#REF!"}]
[{"$nulls":9},"3. Tack strips",{"$nulls":7},{"$f":"IF(OR(G895=\"x\",J895>0),1,0)*R849","v":{"$error":"#REF!"}},0,0,{"$error":"#REF!"}]
[{"$nulls":9},"4. Pad adhesive/tape",{"$nulls":7},{"$f":"IF(OR(G896=\"x\",J896>0),1,0)*R849","v":{"$error":"#REF!"}},0,0,{"$error":"#REF!"}]
[{"$nulls":17},{"$f":"IF(OR(G897=\"x\",J897>0),1,0)*R849","v":{"$error":"#REF!"}},0,0,{"$error":"#REF!"}]
[{"$nulls":17},{"$f":"IF(OR(G898=\"x\",J898>0),1,0)*R849","v":{"$error":"#REF!"}},0,0,{"$error":"#REF!"}]
[{"$nulls":17},{"$f":"IF(OR(G899=\"x\",J899>0),1,0)*R849","v":{"$error":"#REF!"}},0,0,{"$error":"#REF!"}]
[{"$nulls":17},{"$f":"IF(OR(G900=\"x\",J900>0),1,0)*R849","v":{"$error":"#REF!"}},0,0,{"$error":"#REF!"}]
[{"$nulls":17},{"$f":"IF(OR(G901=\"x\",J901>0),1,0)*R849","v":{"$error":"#REF!"}},0,0,{"$error":"#REF!"}]
[{"$nulls":17},{"$f":"IF(OR(G902=\"x\",J902>0),1,0)*R849","v":{"$error":"#REF!"}},0,0,{"$error":"#REF!"}]
[{"$nulls":9},{"$f":"T(#REF!)","v":{"$error":"#REF!"}},{"$f":"#REF!","v":{"$error":"#REF!"}},{"$f":"#REF!","v":{"$error":"#REF!"}},{"$f":"#REF!","v":{"$error":"#REF!"}},{"$f":"#REF!","v":{"$error":"#REF!"}},{"$nulls":3},{"$f":"R892*R849","v":{"$error":"#REF!"}},{"$f":"S892","v":0},{"$f":"T892","v":0},{"$f":"U892","v":{"$error":"#REF!"}}]
[{"$nulls":9},{"$f":"T('2 REPAIR ESTIMATOR'!D807:O807)","v":"HARDWOOD FLOORING"},{"$f":"#REF!","v":{"$error":"#REF!"}},{"$f":"#REF!","v":{"$error":"#REF!"}},{"$f":"#REF!","v":{"$error":"#REF!"}},{"$f":"#REF!","v":{"$error":"#REF!"}},{"$nulls":3},{"$f":"IF(SUM(R905:R958)>0,1,0)","v":{"$error":"#REF!"}},{"$f":"SUM(S905:S958)","v":0},{"$f":"SUM(T905:T958)","v":0},{"$f":"SUM(U905:U958)","v":{"$error":"#REF!"}}]
[{"$nulls":9},{"$f":"T('2 REPAIR ESTIMATOR'!D808:O808)","v":"Hardwood floors, bid/allowance"},{"$f":"'2 REPAIR ESTIMATOR'!P808","v":0},{"$f":"'2 REPAIR ESTIMATOR'!S808","v":"ls"},{"$f":"'2 REPAIR ESTIMATOR'!X808","v":{"v":0,"d":"$0.00"}},{"$f":"'2 REPAIR ESTIMATOR'!AG808","v":0},{"$f":"T('2 REPAIR ESTIMATOR'!AX808)","v":""},{"$f":"T('2 REPAIR ESTIMATOR'!AY808)","v":""},null,{"$f":"IF(OR(G905=\"x\",N905>0),1,0)","v":0},{"$f":"IF(G905=\"x\",1,0)","v":0},{"$f":"IF(H905=\"x\",1,0)","v":0},{"$f":"IF(AND(R905=1,T905<>1),1,0)","v":0}]
[{"$nulls":9},{"$f":"T('2 REPAIR ESTIMATOR'!D809:O809)","v":"Laminate Flooring"},{"$f":"'2 REPAIR ESTIMATOR'!P809","v":0},{"$f":"'2 REPAIR ESTIMATOR'!S809","v":0},{"$f":"'2 REPAIR ESTIMATOR'!X809","v":{"v":0,"d":"$0.00"}},{"$f":"'2 REPAIR ESTIMATOR'!AG809","v":0},{"$f":"T('2 REPAIR ESTIMATOR'!AX809)","v":""},{"$f":"T('2 REPAIR ESTIMATOR'!AY809)","v":""},null,{"$f":"IF(OR(G906=\"x\",N906>0),1,0)","v":0},{"$f":"IF(G906=\"x\",1,0)","v":0},{"$f":"IF(H906=\"x\",1,0)","v":0},{"$f":"IF(AND(R906=1,T906<>1),1,0)","v":0}]
[{"$nulls":9},{"$f":"T('2 REPAIR ESTIMATOR'!D810:O810)","v":"Laminate wood flooring, economy grade"},{"$f":"'2 REPAIR ESTIMATOR'!P810","v":0},{"$f":"'2 REPAIR ESTIMATOR'!S810","v":"sf"},{"$f":"'2 REPAIR ESTIMATOR'!X810","v":{"v":1,"d":"$1.00"}},{"$f":"'2 REPAIR ESTIMATOR'!AG810","v":0},{"$f":"T('2 REPAIR ESTIMATOR'!AX810)","v":""},{"$f":"T('2 REPAIR ESTIMATOR'!AY810)","v":""},null,0,0,0,0]
[{"$nulls":9},{"$f":"T('2 REPAIR ESTIMATOR'!D811:O811)","v":"Laminate wood flooring, average grade"},{"$f":"'2 REPAIR ESTIMATOR'!P811","v":0},{"$f":"'2 REPAIR ESTIMATOR'!S811","v":"sf"},{"$f":"'2 REPAIR ESTIMATOR'!X811","v":{"v":1.75,"d":"$1.75"}},{"$f":"'2 REPAIR ESTIMATOR'!AG811","v":0},{"$f":"T('2 REPAIR ESTIMATOR'!AX811)","v":""},{"$f":"T('2 REPAIR ESTIMATOR'!AY811)","v":""},null,0,0,0,0]
[{"$nulls":9},{"$f":"T('2 REPAIR ESTIMATOR'!D812:O812)","v":"Laminate wood flooring, premium grade"},{"$f":"'2 REPAIR ESTIMATOR'!P812","v":0},{"$f":"'2 REPAIR ESTIMATOR'!S812","v":"sf"},{"$f":"'2 REPAIR ESTIMATOR'!X812","v":{"v":2.5,"d":"$2.50"}},{"$f":"'2 REPAIR ESTIMATOR'!AG812","v":0},{"$f":"T('2 REPAIR ESTIMATOR'!AX812)","v":""},{"$f":"T('2 REPAIR ESTIMATOR'!AY812)","v":""},null,0,0,0,0]
[{"$nulls":9},{"$f":"T('2 REPAIR ESTIMATOR'!D813:O813)","v":""},{"$f":"'2 REPAIR ESTIMATOR'!P813","v":0},{"$f":"'2 REPAIR ESTIMATOR'!S813","v":0},{"$f":"'2 REPAIR ESTIMATOR'!X813","v":{"v":0,"d":"$0.00"}},{"$f":"'2 REPAIR ESTIMATOR'!AG813","v":0},{"$f":"T('2 REPAIR ESTIMATOR'!AX813)","v":""},{"$f":"T('2 REPAIR ESTIMATOR'!AY813)","v":""},null,0,0,0,0]
[{"$nulls":9},{"$f":"T('2 REPAIR ESTIMATOR'!D814:O814)","v":"Hardwood Flooring"},{"$f":"'2 REPAIR ESTIMATOR'!P814","v":0},{"$f":"'2 REPAIR ESTIMATOR'!S814","v":0},{"$f":"'2 REPAIR ESTIMATOR'!X814","v":{"v":0,"d":"$0.00"}},{"$f":"'2 REPAIR ESTIMATOR'!AG814","v":0},{"$f":"T('2 REPAIR ESTIMATOR'!AX814)","v":""},{"$f":"T('2 REPAIR ESTIMATOR'!AY814)","v":""},null,0,0,0,0]
[{"$nulls":9},{"$f":"T('2 REPAIR ESTIMATOR'!D815:O815)","v":"Hardwood flooring, economy grade"},{"$f":"'2 REPAIR ESTIMATOR'!P815","v":0},{"$f":"'2 REPAIR ESTIMATOR'!S815","v":"sf"},{"$f":"'2 REPAIR ESTIMATOR'!X815","v":{"v":2.5,"d":"$2.50"}},{"$f":"'2 REPAIR ESTIMATOR'!AG815","v":0},{"$f":"T('2 REPAIR ESTIMATOR'!AX815)","v":""},{"$f":"T('2 REPAIR ESTIMATOR'!AY815)","v":""},null,0,0,0,0]
[{"$nulls":9},{"$f":"T('2 REPAIR ESTIMATOR'!D816:O816)","v":"Hardwood flooring, average grade"},{"$f":"'2 REPAIR ESTIMATOR'!P816","v":475},{"$f":"'2 REPAIR ESTIMATOR'!S816","v":"sf"},{"$f":"'2 REPAIR ESTIMATOR'!X816","v":{"v":4,"d":"$4.00"}},{"$f":"'2 REPAIR ESTIMATOR'!AG816","v":{"v":2033.0000000000002,"d":"$2,033.00"}},{"$f":"T('2 REPAIR ESTIMATOR'!AX816)","v":""},{"$f":"T('2 REPAIR ESTIMATOR'!AY816)","v":""},null,1,0,0,1]
[{"$nulls":9},{"$f":"T('2 REPAIR ESTIMATOR'!D817:O817)","v":"Hardwood flooring, premium grade"},{"$f":"'2 REPAIR ESTIMATOR'!P817","v":0},{"$f":"'2 REPAIR ESTIMATOR'!S817","v":"sf"},{"$f":"'2 REPAIR ESTIMATOR'!X817","v":{"v":7,"d":"$7.00"}},{"$f":"'2 REPAIR ESTIMATOR'!AG817","v":0},{"$f":"T('2 REPAIR ESTIMATOR'!AX817)","v":""},{"$f":"T('2 REPAIR ESTIMATOR'!AY817)","v":""},null,0,0,0,0]
[{"$nulls":9},{"$f":"T('2 REPAIR ESTIMATOR'!D818:O818)","v":""},{"$f":"'2 REPAIR ESTIMATOR'!P818","v":0},{"$f":"'2 REPAIR ESTIMATOR'!S818","v":0},{"$f":"'2 REPAIR ESTIMATOR'!X818","v":{"v":0,"d":"$0.00"}},{"$f":"'2 REPAIR ESTIMATOR'!AG818","v":0},{"$f":"T('2 REPAIR ESTIMATOR'!AX818)","v":""},{"$f":"T('2 REPAIR ESTIMATOR'!AY818)","v":""},null,0,0,0,0]
[{"$nulls":9},{"$f":"T('2 REPAIR ESTIMATOR'!D819:O819)","v":"Hardwood Floor Refinishing"},{"$f":"'2 REPAIR ESTIMATOR'!P819","v":0},{"$f":"'2 REPAIR ESTIMATOR'!S819","v":0},{"$f":"'2 REPAIR ESTIMATOR'!X819","v":{"v":0,"d":"$0.00"}},{"$f":"'2 REPAIR ESTIMATOR'!AG819","v":0},{"$f":"T('2 REPAIR ESTIMATOR'!AX819)","v":""},{"$f":"T('2 REPAIR ESTIMATOR'!AY819)","v":""},null,0,0,0,0]
[{"$nulls":9},{"$f":"T('2 REPAIR ESTIMATOR'!D820:O820)","v":"Floor refinishing"},{"$f":"'2 REPAIR ESTIMATOR'!P820","v":0},{"$f":"'2 REPAIR ESTIMATOR'!S820","v":"sf"},{"$f":"'2 REPAIR ESTIMATOR'!X820","v":{"v":0.25,"d":"$0.25"}},{"$f":"'2 REPAIR ESTIMATOR'!AG820","v":0},{"$f":"T('2 REPAIR ESTIMATOR'!AX820)","v":""},{"$f":"T('2 REPAIR ESTIMATOR'!AY820)","v":""},null,0,0,0,0]
[{"$nulls":9},{"$f":"T('2 REPAIR ESTIMATOR'!D821:O821)","v":"Lacing new hardwood to match existing, case-by-case"},{"$f":"'2 REPAIR ESTIMATOR'!P821","v":0},{"$f":"'2 REPAIR ESTIMATOR'!S821","v":"sf"},{"$f":"'2 REPAIR ESTIMATOR'!X821","v":{"v":4,"d":"$4.00"}},{"$f":"'2 REPAIR ESTIMATOR'!AG821","v":0},{"$f":"T('2 REPAIR ESTIMATOR'!AX821)","v":""},{"$f":"T('2 REPAIR ESTIMATOR'!AY821)","v":""},null,0,0,0,0]
[{"$nulls":9},{"$f":"T('2 REPAIR ESTIMATOR'!D822:O822)","v":""},{"$f":"'2 REPAIR ESTIMATOR'!P822","v":0},{"$f":"'2 REPAIR ESTIMATOR'!S822","v":0},{"$f":"'2 REPAIR ESTIMATOR'!X822","v":{"v":0,"d":"$0.00"}},{"$f":"'2 REPAIR ESTIMATOR'!AG822","v":0},{"$f":"T('2 REPAIR ESTIMATOR'!AX822)","v":""},{"$f":"T('2 REPAIR ESTIMATOR'!AY822)","v":""},null,0,0,0,0]
[{"$nulls":9},{"$f":"T('2 REPAIR ESTIMATOR'!D823:O823)","v":"Miscellaneous"},{"$f":"'2 REPAIR ESTIMATOR'!P823","v":0},{"$f":"'2 REPAIR ESTIMATOR'!S823","v":0},{"$f":"'2 REPAIR ESTIMATOR'!X823","v":{"v":0,"d":"$0.00"}},{"$f":"'2 REPAIR ESTIMATOR'!AG823","v":0},{"$f":"T('2 REPAIR ESTIMATOR'!AX823)","v":""},{"$f":"T('2 REPAIR ESTIMATOR'!AY823)","v":""},null,0,0,0,0]
[{"$nulls":9},{"$f":"T('2 REPAIR ESTIMATOR'!D824:O824)","v":"Stair treads, 4ft avg"},{"$f":"'2 REPAIR ESTIMATOR'!P824","v":0},{"$f":"'2 REPAIR ESTIMATOR'!S824","v":"ea"},{"$f":"'2 REPAIR ESTIMATOR'!X824","v":{"v":85,"d":"$85.00"}},{"$f":"'2 REPAIR ESTIMATOR'!AG824","v":0},{"$f":"T('2 REPAIR ESTIMATOR'!AX824)","v":""},{"$f":"T('2 REPAIR ESTIMATOR'!AY824)","v":""},null,0,0,0,0]
[{"$nulls":9},{"$f":"T('2 REPAIR ESTIMATOR'!D825:O825)","v":"Shoe moldings"},{"$f":"'2 REPAIR ESTIMATOR'!P825","v":0},{"$f":"'2 REPAIR ESTIMATOR'!S825","v":"lf"},{"$f":"'2 REPAIR ESTIMATOR'!X825","v":{"v":0.8,"d":"$0.80"}},{"$f":"'2 REPAIR ESTIMATOR'!AG825","v":0},{"$f":"T('2 REPAIR ESTIMATOR'!AX825)","v":""},{"$f":"T('2 REPAIR ESTIMATOR'!AY825)","v":""},null,0,0,0,0]
[{"$nulls":9},{"$f":"T('2 REPAIR ESTIMATOR'!D826:O826)","v":"Underlayment"},{"$f":"'2 REPAIR ESTIMATOR'!P826","v":0},{"$f":"'2 REPAIR ESTIMATOR'!S826","v":"sf"},{"$f":"'2 REPAIR ESTIMATOR'!X826","v":{"v":0.25,"d":"$0.25"}},{"$f":"'2 REPAIR ESTIMATOR'!AG826","v":0},{"$f":"T('2 REPAIR ESTIMATOR'!AX826)","v":""},{"$f":"T('2 REPAIR ESTIMATOR'!AY826)","v":""},null,0,0,0,0]
[{"$nulls":9},{"$f":"T('2 REPAIR ESTIMATOR'!D827:O827)","v":""},{"$f":"'2 REPAIR ESTIMATOR'!P827","v":0},{"$f":"'2 REPAIR ESTIMATOR'!S827","v":0},{"$f":"'2 REPAIR ESTIMATOR'!X827","v":{"v":0,"d":"$0.00"}},{"$f":"'2 REPAIR ESTIMATOR'!AG827","v":0},{"$f":"T('2 REPAIR ESTIMATOR'!AX827)","v":""},{"$f":"T('2 REPAIR ESTIMATOR'!AY827)","v":""},null,0,0,0,0]
[{"$nulls":9},{"$f":"T('2 REPAIR ESTIMATOR'!D828:O828)","v":""},{"$f":"'2 REPAIR ESTIMATOR'!P828","v":0},{"$f":"'2 REPAIR ESTIMATOR'!S828","v":0},{"$f":"'2 REPAIR ESTIMATOR'!X828","v":{"v":0,"d":"$0.00"}},{"$f":"'2 REPAIR ESTIMATOR'!AG828","v":0},{"$f":"T('2 REPAIR ESTIMATOR'!AX828)","v":""},{"$f":"T('2 REPAIR ESTIMATOR'!AY828)","v":""},null,0,0,0,0]
[{"$nulls":9},{"$f":"T('2 REPAIR ESTIMATOR'!D829:O829)","v":""},{"$f":"'2 REPAIR ESTIMATOR'!P829","v":0},{"$f":"'2 REPAIR ESTIMATOR'!S829","v":0},{"$f":"'2 REPAIR ESTIMATOR'!X829","v":{"v":0,"d":"$0.00"}},{"$f":"'2 REPAIR ESTIMATOR'!AG829","v":0},{"$f":"T('2 REPAIR ESTIMATOR'!AX829)","v":""},{"$f":"T('2 REPAIR ESTIMATOR'!AY829)","v":""},null,0,0,0,0]
[{"$nulls":9},{"$f":"T('2 REPAIR ESTIMATOR'!D830:O830)","v":""},{"$f":"'2 REPAIR ESTIMATOR'!P830","v":0},{"$f":"'2 REPAIR ESTIMATOR'!S830","v":0},{"$f":"'2 REPAIR ESTIMATOR'!X830","v":{"v":0,"d":"$0.00"}},{"$f":"'2 REPAIR ESTIMATOR'!AG830","v":0},{"$f":"T('2 REPAIR ESTIMATOR'!AX830)","v":""},{"$f":"T('2 REPAIR ESTIMATOR'!AY830)","v":""},null,0,0,0,0]
[{"$nulls":9},{"$f":"T('2 REPAIR ESTIMATOR'!D831:O831)","v":""},{"$f":"'2 REPAIR ESTIMATOR'!P831","v":0},{"$f":"'2 REPAIR ESTIMATOR'!S831","v":0},{"$f":"'2 REPAIR ESTIMATOR'!X831","v":{"v":0,"d":"$0.00"}},{"$f":"'2 REPAIR ESTIMATOR'!AG831","v":0},{"$f":"T('2 REPAIR ESTIMATOR'!AX831)","v":""},{"$f":"T('2 REPAIR ESTIMATOR'!AY831)","v":""},null,0,0,0,0]
[{"$nulls":9},{"$f":"T('2 REPAIR ESTIMATOR'!D832:O832)","v":""},{"$f":"'2 REPAIR ESTIMATOR'!P832","v":0},{"$f":"'2 REPAIR ESTIMATOR'!S832","v":0},{"$f":"'2 REPAIR ESTIMATOR'!X832","v":{"v":0,"d":"$0.00"}},{"$f":"'2 REPAIR ESTIMATOR'!AG832","v":0},{"$f":"T('2 REPAIR ESTIMATOR'!AX832)","v":""},{"$f":"T('2 REPAIR ESTIMATOR'!AY832)","v":""},null,0,0,0,0]
[{"$nulls":9},{"$f":"T('2 REPAIR ESTIMATOR'!D833:O833)","v":""},{"$f":"'2 REPAIR ESTIMATOR'!P833","v":0},{"$f":"'2 REPAIR ESTIMATOR'!S833","v":0},{"$f":"'2 REPAIR ESTIMATOR'!X833","v":{"v":0,"d":"$0.00"}},{"$f":"'2 REPAIR ESTIMATOR'!AG833","v":0},{"$f":"T('2 REPAIR ESTIMATOR'!AX833)","v":""},{"$f":"T('2 REPAIR ESTIMATOR'!AY833)","v":""},null,0,0,0,0]
[{"$nulls":9},{"$f":"T('2 REPAIR ESTIMATOR'!D834:O834)","v":""},{"$f":"'2 REPAIR ESTIMATOR'!P834","v":0},{"$f":"'2 REPAIR ESTIMATOR'!S834","v":0},{"$f":"'2 REPAIR ESTIMATOR'!X834","v":{"v":0,"d":"$0.00"}},{"$f":"'2 REPAIR ESTIMATOR'!AG834","v":0},{"$f":"T('2 REPAIR ESTIMATOR'!AX834)","v":""},{"$f":"T('2 REPAIR ESTIMATOR'!AY834)","v":""},null,0,0,0,0]
[{"$nulls":9},{"$f":"T('2 REPAIR ESTIMATOR'!D835:O835)","v":""},{"$f":"'2 REPAIR ESTIMATOR'!P835","v":0},{"$f":"'2 REPAIR ESTIMATOR'!S835","v":0},{"$f":"'2 REPAIR ESTIMATOR'!X835","v":{"v":0,"d":"$0.00"}},{"$f":"'2 REPAIR ESTIMATOR'!AG835","v":0},{"$f":"T('2 REPAIR ESTIMATOR'!AX835)","v":""},{"$f":"T('2 REPAIR ESTIMATOR'!AY835)","v":""},null,0,0,0,0]
[{"$nulls":9},{"$f":"T('2 REPAIR ESTIMATOR'!D836:O836)","v":""},{"$f":"'2 REPAIR ESTIMATOR'!P836","v":0},{"$f":"'2 REPAIR ESTIMATOR'!S836","v":0},{"$f":"'2 REPAIR ESTIMATOR'!X836","v":{"v":0,"d":"$0.00"}},{"$f":"'2 REPAIR ESTIMATOR'!AG836","v":0},{"$f":"T('2 REPAIR ESTIMATOR'!AX836)","v":""},{"$f":"T('2 REPAIR ESTIMATOR'!AY836)","v":""},null,0,0,0,0]
[{"$nulls":9},{"$f":"T('2 REPAIR ESTIMATOR'!D837:O837)","v":""},{"$f":"'2 REPAIR ESTIMATOR'!P837","v":0},{"$f":"'2 REPAIR ESTIMATOR'!S837","v":0},{"$f":"'2 REPAIR ESTIMATOR'!X837","v":{"v":0,"d":"$0.00"}},{"$f":"'2 REPAIR ESTIMATOR'!AG837","v":0},{"$f":"T('2 REPAIR ESTIMATOR'!AX837)","v":""},{"$f":"T('2 REPAIR ESTIMATOR'!AY837)","v":""},null,0,0,0,0]
[{"$nulls":9},{"$f":"T('2 REPAIR ESTIMATOR'!D838:O838)","v":""},{"$f":"'2 REPAIR ESTIMATOR'!P838","v":0},{"$f":"'2 REPAIR ESTIMATOR'!S838","v":0},{"$f":"'2 REPAIR ESTIMATOR'!X838","v":{"v":0,"d":"$0.00"}},{"$f":"'2 REPAIR ESTIMATOR'!AG838","v":0},{"$f":"T('2 REPAIR ESTIMATOR'!AX838)","v":""},{"$f":"T('2 REPAIR ESTIMATOR'!AY838)","v":""},null,0,0,0,0]
[{"$nulls":9},{"$f":"T('2 REPAIR ESTIMATOR'!D839:O839)","v":""},{"$f":"'2 REPAIR ESTIMATOR'!P839","v":0},{"$f":"'2 REPAIR ESTIMATOR'!S839","v":0},{"$f":"'2 REPAIR ESTIMATOR'!X839","v":{"v":0,"d":"$0.00"}},{"$f":"'2 REPAIR ESTIMATOR'!AG839","v":0},{"$f":"T('2 REPAIR ESTIMATOR'!AX839)","v":""},{"$f":"T('2 REPAIR ESTIMATOR'!AY839)","v":""},null,0,0,0,0]
[{"$nulls":9},{"$f":"T('2 REPAIR ESTIMATOR'!D840:O840)","v":""},{"$f":"'2 REPAIR ESTIMATOR'!P840","v":0},{"$f":"'2 REPAIR ESTIMATOR'!S840","v":0},{"$f":"'2 REPAIR ESTIMATOR'!X840","v":{"v":0,"d":"$0.00"}},{"$f":"'2 REPAIR ESTIMATOR'!AG840","v":0},{"$f":"T('2 REPAIR ESTIMATOR'!AX840)","v":""},{"$f":"T('2 REPAIR ESTIMATOR'!AY840)","v":""},null,0,0,0,0]
[{"$nulls":9},{"$f":"T('2 REPAIR ESTIMATOR'!D841:O841)","v":""},{"$f":"'2 REPAIR ESTIMATOR'!P841","v":0},{"$f":"'2 REPAIR ESTIMATOR'!S841","v":0},{"$f":"'2 REPAIR ESTIMATOR'!X841","v":{"v":0,"d":"$0.00"}},{"$f":"'2 REPAIR ESTIMATOR'!AG841","v":0},{"$f":"T('2 REPAIR ESTIMATOR'!AX841)","v":""},{"$f":"T('2 REPAIR ESTIMATOR'!AY841)","v":""},null,0,0,0,0]
[{"$nulls":9},{"$f":"T('2 REPAIR ESTIMATOR'!D842:O842)","v":""},{"$f":"'2 REPAIR ESTIMATOR'!P842","v":0},{"$f":"'2 REPAIR ESTIMATOR'!S842","v":0},{"$f":"'2 REPAIR ESTIMATOR'!X842","v":{"v":0,"d":"$0.00"}},{"$f":"'2 REPAIR ESTIMATOR'!AG842","v":0},{"$f":"T('2 REPAIR ESTIMATOR'!AX842)","v":""},{"$f":"T('2 REPAIR ESTIMATOR'!AY842)","v":""},null,0,0,0,0]
[{"$nulls":9},{"$f":"T('2 REPAIR ESTIMATOR'!D843:O843)","v":""},{"$f":"'2 REPAIR ESTIMATOR'!P843","v":0},{"$f":"'2 REPAIR ESTIMATOR'!S843","v":0},{"$f":"'2 REPAIR ESTIMATOR'!X843","v":{"v":0,"d":"$0.00"}},{"$f":"'2 REPAIR ESTIMATOR'!AG843","v":0},{"$f":"T('2 REPAIR ESTIMATOR'!AX843)","v":""},{"$f":"T('2 REPAIR ESTIMATOR'!AY843)","v":""},null,0,0,0,0]
[{"$nulls":9},{"$f":"T('2 REPAIR ESTIMATOR'!D844:O844)","v":""},{"$f":"'2 REPAIR ESTIMATOR'!P844","v":0},{"$f":"'2 REPAIR ESTIMATOR'!S844","v":0},{"$f":"'2 REPAIR ESTIMATOR'!X844","v":{"v":0,"d":"$0.00"}},{"$f":"'2 REPAIR ESTIMATOR'!AG844","v":0},{"$f":"T('2 REPAIR ESTIMATOR'!AX844)","v":""},{"$f":"T('2 REPAIR ESTIMATOR'!AY844)","v":""},null,0,0,0,0]
[{"$nulls":9},{"$f":"T('2 REPAIR ESTIMATOR'!D845:O845)","v":""},{"$f":"'2 REPAIR ESTIMATOR'!P845","v":0},{"$f":"'2 REPAIR ESTIMATOR'!S845","v":0},{"$f":"'2 REPAIR ESTIMATOR'!X845","v":{"v":0,"d":"$0.00"}},{"$f":"'2 REPAIR ESTIMATOR'!AG845","v":0},{"$f":"T('2 REPAIR ESTIMATOR'!AX845)","v":""},{"$f":"T('2 REPAIR ESTIMATOR'!AY845)","v":""},null,0,0,0,0]
[{"$nulls":9},{"$f":"T('2 REPAIR ESTIMATOR'!D846:O846)","v":""},{"$f":"'2 REPAIR ESTIMATOR'!P846","v":0},{"$f":"'2 REPAIR ESTIMATOR'!S846","v":0},{"$f":"'2 REPAIR ESTIMATOR'!X846","v":{"v":0,"d":"$0.00"}},{"$f":"'2 REPAIR ESTIMATOR'!AG846","v":0},{"$f":"T('2 REPAIR ESTIMATOR'!AX846)","v":""},{"$f":"T('2 REPAIR ESTIMATOR'!AY846)","v":""},null,0,0,0,0]
[{"$nulls":9},{"$f":"T('2 REPAIR ESTIMATOR'!D847:O847)","v":""},{"$f":"'2 REPAIR ESTIMATOR'!P847","v":0},{"$f":"'2 REPAIR ESTIMATOR'!S847","v":0},{"$f":"'2 REPAIR ESTIMATOR'!X847","v":{"v":0,"d":"$0.00"}},{"$f":"'2 REPAIR ESTIMATOR'!AG847","v":0},{"$f":"T('2 REPAIR ESTIMATOR'!AX847)","v":""},{"$f":"T('2 REPAIR ESTIMATOR'!AY847)","v":""},null,0,0,0,0]
[{"$nulls":12},{"$f":"CONCATENATE(J904,\" \",\"TOTAL\")","v":"HARDWOOD FLOORING TOTAL"},{"$f":"SUBTOTAL(9,N905:N944)","v":{"v":2033.0000000000002,"d":"$2,033.00"}},{"$nulls":3},{"$f":"SUM(R905:R944)","v":1},{"$f":"SUM(S905:S944)","v":0},{"$f":"SUM(T905:T944)","v":0},{"$f":"SUM(U905:U944)","v":1}]
[{"$nulls":9},{"$f":"T(#REF!)","v":{"$error":"#REF!"}},{"$f":"#REF!","v":{"$error":"#REF!"}},{"$f":"#REF!","v":{"$error":"#REF!"}},{"$f":"#REF!","v":{"$error":"#REF!"}},{"$f":"#REF!","v":{"$error":"#REF!"}},{"$nulls":3},{"$f":"R945","v":1},{"$f":"S945","v":0},{"$f":"T945","v":0},{"$f":"U945","v":1}]
[{"$nulls":9},{"$f":"CONCATENATE(\"MISCELLANEOUS \",J904,\" MATERIAL ITEMS\")","v":"MISCELLANEOUS HARDWOOD FLOORING MATERIAL ITEMS"},{"$nulls":4},"Store","SKU #",null,{"$f":"SUM(R948:R957)*R904","v":{"$error":"#REF!"}},{"$f":"SUM(S948:S957)","v":0},{"$f":"SUM(T948:T957)","v":0},{"$f":"SUM(U948:U957)","v":{"$error":"#REF!"}}]
[{"$nulls":9},"1. Hardwood flooring materials",{"$nulls":7},{"$f":"IF(OR(G948=\"x\",J948>0),1,0)*R904","v":{"$error":"#REF!"}},{"$f":"IF(G948=\"x\",1,0)","v":0},{"$f":"IF(H948=\"x\",1,0)","v":0},{"$f":"IF(AND(R948=1,T948<>1),1,0)","v":{"$error":"#REF!"}}]
[{"$nulls":9},"2. Floor underlayment/padding",{"$nulls":7},{"$f":"IF(OR(G949=\"x\",J949>0),1,0)*R904","v":{"$error":"#REF!"}},0,0,{"$error":"#REF!"}]
[{"$nulls":9},"3. Flooring Nails",{"$nulls":7},{"$f":"IF(OR(G950=\"x\",J950>0),1,0)*R904","v":{"$error":"#REF!"}},0,0,{"$error":"#REF!"}]
[{"$nulls":9},"4. Floor stain",{"$nulls":7},{"$f":"IF(OR(G951=\"x\",J951>0),1,0)*R904","v":{"$error":"#REF!"}},0,0,{"$error":"#REF!"}]
[{"$nulls":9},"5. Floor protection",{"$nulls":7},{"$f":"IF(OR(G952=\"x\",J952>0),1,0)*R904","v":{"$error":"#REF!"}},0,0,{"$error":"#REF!"}]
[{"$nulls":17},{"$f":"IF(OR(G953=\"x\",J953>0),1,0)*R904","v":{"$error":"#REF!"}},0,0,{"$error":"#REF!"}]
[{"$nulls":17},{"$f":"IF(OR(G954=\"x\",J954>0),1,0)*R904","v":{"$error":"#REF!"}},0,0,{"$error":"#REF!"}]
[{"$nulls":17},{"$f":"IF(OR(G955=\"x\",J955>0),1,0)*R904","v":{"$error":"#REF!"}},0,0,{"$error":"#REF!"}]
[{"$nulls":17},{"$f":"IF(OR(G956=\"x\",J956>0),1,0)*R904","v":{"$error":"#REF!"}},0,0,{"$error":"#REF!"}]
[{"$nulls":17},{"$f":"IF(OR(G957=\"x\",J957>0),1,0)*R904","v":{"$error":"#REF!"}},0,0,{"$error":"#REF!"}]
[{"$nulls":9},{"$f":"T(#REF!)","v":{"$error":"#REF!"}},{"$f":"#REF!","v":{"$error":"#REF!"}},{"$f":"#REF!","v":{"$error":"#REF!"}},{"$f":"#REF!","v":{"$error":"#REF!"}},{"$f":"#REF!","v":{"$error":"#REF!"}},{"$nulls":3},{"$f":"R947*R904","v":{"$error":"#REF!"}},{"$f":"S947","v":0},{"$f":"T947","v":0},{"$f":"U947","v":{"$error":"#REF!"}}]
[{"$nulls":9},{"$f":"T('2 REPAIR ESTIMATOR'!D852:O852)","v":"TILING"},{"$f":"#REF!","v":{"$error":"#REF!"}},{"$f":"#REF!","v":{"$error":"#REF!"}},{"$f":"#REF!","v":{"$error":"#REF!"}},{"$f":"#REF!","v":{"$error":"#REF!"}},{"$nulls":3},{"$f":"IF(SUM(R960:R1013)>0,1,0)","v":{"$error":"#REF!"}},{"$f":"SUM(S960:S1013)","v":0},{"$f":"SUM(T960:T1013)","v":0},{"$f":"SUM(U960:U1013)","v":{"$error":"#REF!"}}]
[{"$nulls":9},{"$f":"T('2 REPAIR ESTIMATOR'!D853:O853)","v":"Tiling bid/allowance"},{"$f":"'2 REPAIR ESTIMATOR'!P853","v":0},{"$f":"'2 REPAIR ESTIMATOR'!S853","v":"ls"},{"$f":"'2 REPAIR ESTIMATOR'!X853","v":{"v":0,"d":"$0.00"}},{"$f":"'2 REPAIR ESTIMATOR'!AG853","v":0},{"$f":"T('2 REPAIR ESTIMATOR'!AX853)","v":""},{"$f":"T('2 REPAIR ESTIMATOR'!AY853)","v":""},null,{"$f":"IF(OR(G960=\"x\",N960>0),1,0)","v":0},{"$f":"IF(G960=\"x\",1,0)","v":0},{"$f":"IF(H960=\"x\",1,0)","v":0},{"$f":"IF(AND(R960=1,T960<>1),1,0)","v":0}]
[{"$nulls":9},{"$f":"T('2 REPAIR ESTIMATOR'!D854:O854)","v":"Kitchen "},{"$f":"'2 REPAIR ESTIMATOR'!P854","v":0},{"$f":"'2 REPAIR ESTIMATOR'!S854","v":0},{"$f":"'2 REPAIR ESTIMATOR'!X854","v":{"v":0,"d":"$0.00"}},{"$f":"'2 REPAIR ESTIMATOR'!AG854","v":0},{"$f":"T('2 REPAIR ESTIMATOR'!AX854)","v":""},{"$f":"T('2 REPAIR ESTIMATOR'!AY854)","v":""},null,{"$f":"IF(OR(G961=\"x\",N961>0),1,0)","v":0},{"$f":"IF(G961=\"x\",1,0)","v":0},{"$f":"IF(H961=\"x\",1,0)","v":0},{"$f":"IF(AND(R961=1,T961<>1),1,0)","v":0}]
[{"$nulls":9},{"$f":"T('2 REPAIR ESTIMATOR'!D855:O855)","v":"Kitchen backsplash, mosaic tile"},{"$f":"'2 REPAIR ESTIMATOR'!P855","v":25},{"$f":"'2 REPAIR ESTIMATOR'!S855","v":"sf"},{"$f":"'2 REPAIR ESTIMATOR'!X855","v":{"v":15,"d":"$15.00"}},{"$f":"'2 REPAIR ESTIMATOR'!AG855","v":{"v":401.25,"d":"$401.25"}},{"$f":"T('2 REPAIR ESTIMATOR'!AX855)","v":""},{"$f":"T('2 REPAIR ESTIMATOR'!AY855)","v":""},null,1,0,0,1]
[{"$nulls":9},{"$f":"T('2 REPAIR ESTIMATOR'!D856:O856)","v":"Floor tile, Kitchen"},{"$f":"'2 REPAIR ESTIMATOR'!P856","v":0},{"$f":"'2 REPAIR ESTIMATOR'!S856","v":"sf"},{"$f":"'2 REPAIR ESTIMATOR'!X856","v":{"v":4,"d":"$4.00"}},{"$f":"'2 REPAIR ESTIMATOR'!AG856","v":0},{"$f":"T('2 REPAIR ESTIMATOR'!AX856)","v":""},{"$f":"T('2 REPAIR ESTIMATOR'!AY856)","v":""},null,0,0,0,0]
[{"$nulls":9},{"$f":"T('2 REPAIR ESTIMATOR'!D857:O857)","v":""},{"$f":"'2 REPAIR ESTIMATOR'!P857","v":0},{"$f":"'2 REPAIR ESTIMATOR'!S857","v":0},{"$f":"'2 REPAIR ESTIMATOR'!X857","v":{"v":0,"d":"$0.00"}},{"$f":"'2 REPAIR ESTIMATOR'!AG857","v":0},{"$f":"T('2 REPAIR ESTIMATOR'!AX857)","v":""},{"$f":"T('2 REPAIR ESTIMATOR'!AY857)","v":""},null,0,0,0,0]
[{"$nulls":9},{"$f":"T('2 REPAIR ESTIMATOR'!D858:O858)","v":""},{"$f":"'2 REPAIR ESTIMATOR'!P858","v":0},{"$f":"'2 REPAIR ESTIMATOR'!S858","v":0},{"$f":"'2 REPAIR ESTIMATOR'!X858","v":{"v":0,"d":"$0.00"}},{"$f":"'2 REPAIR ESTIMATOR'!AG858","v":0},{"$f":"T('2 REPAIR ESTIMATOR'!AX858)","v":""},{"$f":"T('2 REPAIR ESTIMATOR'!AY858)","v":""},null,0,0,0,0]
[{"$nulls":9},{"$f":"T('2 REPAIR ESTIMATOR'!D859:O859)","v":"Bathrooms"},{"$f":"'2 REPAIR ESTIMATOR'!P859","v":0},{"$f":"'2 REPAIR ESTIMATOR'!S859","v":0},{"$f":"'2 REPAIR ESTIMATOR'!X859","v":{"v":0,"d":"$0.00"}},{"$f":"'2 REPAIR ESTIMATOR'!AG859","v":0},{"$f":"T('2 REPAIR ESTIMATOR'!AX859)","v":""},{"$f":"T('2 REPAIR ESTIMATOR'!AY859)","v":""},null,0,0,0,0]
[{"$nulls":9},{"$f":"T('2 REPAIR ESTIMATOR'!D860:O860)","v":"Shower tile, standard"},{"$f":"'2 REPAIR ESTIMATOR'!P860","v":180},{"$f":"'2 REPAIR ESTIMATOR'!S860","v":"sf"},{"$f":"'2 REPAIR ESTIMATOR'!X860","v":{"v":6,"d":"$6.00"}},{"$f":"'2 REPAIR ESTIMATOR'!AG860","v":{"v":1155.6000000000001,"d":"$1,155.60"}},{"$f":"T('2 REPAIR ESTIMATOR'!AX860)","v":""},{"$f":"T('2 REPAIR ESTIMATOR'!AY860)","v":""},null,1,0,0,1]
[{"$nulls":9},{"$f":"T('2 REPAIR ESTIMATOR'!D861:O861)","v":"Shower tile, accent mosaic tile"},{"$f":"'2 REPAIR ESTIMATOR'!P861","v":20},{"$f":"'2 REPAIR ESTIMATOR'!S861","v":"sf"},{"$f":"'2 REPAIR ESTIMATOR'!X861","v":{"v":15,"d":"$15.00"}},{"$f":"'2 REPAIR ESTIMATOR'!AG861","v":{"v":321,"d":"$321.00"}},{"$f":"T('2 REPAIR ESTIMATOR'!AX861)","v":""},{"$f":"T('2 REPAIR ESTIMATOR'!AY861)","v":""},null,1,0,0,1]
[{"$nulls":9},{"$f":"T('2 REPAIR ESTIMATOR'!D862:O862)","v":"Floor tile, bathrooms"},{"$f":"'2 REPAIR ESTIMATOR'!P862","v":75},{"$f":"'2 REPAIR ESTIMATOR'!S862","v":"sf"},{"$f":"'2 REPAIR ESTIMATOR'!X862","v":{"v":5,"d":"$5.00"}},{"$f":"'2 REPAIR ESTIMATOR'!AG862","v":{"v":401.25,"d":"$401.25"}},{"$f":"T('2 REPAIR ESTIMATOR'!AX862)","v":""},{"$f":"T('2 REPAIR ESTIMATOR'!AY862)","v":""},null,1,0,0,1]
[{"$nulls":9},{"$f":"T('2 REPAIR ESTIMATOR'!D863:O863)","v":""},{"$f":"'2 REPAIR ESTIMATOR'!P863","v":0},{"$f":"'2 REPAIR ESTIMATOR'!S863","v":0},{"$f":"'2 REPAIR ESTIMATOR'!X863","v":{"v":0,"d":"$0.00"}},{"$f":"'2 REPAIR ESTIMATOR'!AG863","v":0},{"$f":"T('2 REPAIR ESTIMATOR'!AX863)","v":""},{"$f":"T('2 REPAIR ESTIMATOR'!AY863)","v":""},null,0,0,0,0]
[{"$nulls":9},{"$f":"T('2 REPAIR ESTIMATOR'!D864:O864)","v":""},{"$f":"'2 REPAIR ESTIMATOR'!P864","v":0},{"$f":"'2 REPAIR ESTIMATOR'!S864","v":0},{"$f":"'2 REPAIR ESTIMATOR'!X864","v":{"v":0,"d":"$0.00"}},{"$f":"'2 REPAIR ESTIMATOR'!AG864","v":0},{"$f":"T('2 REPAIR ESTIMATOR'!AX864)","v":""},{"$f":"T('2 REPAIR ESTIMATOR'!AY864)","v":""},null,0,0,0,0]
[{"$nulls":9},{"$f":"T('2 REPAIR ESTIMATOR'!D865:O865)","v":"Miscellaneous Tiling"},{"$f":"'2 REPAIR ESTIMATOR'!P865","v":0},{"$f":"'2 REPAIR ESTIMATOR'!S865","v":0},{"$f":"'2 REPAIR ESTIMATOR'!X865","v":{"v":0,"d":"$0.00"}},{"$f":"'2 REPAIR ESTIMATOR'!AG865","v":0},{"$f":"T('2 REPAIR ESTIMATOR'!AX865)","v":""},{"$f":"T('2 REPAIR ESTIMATOR'!AY865)","v":""},null,0,0,0,0]
[{"$nulls":9},{"$f":"T('2 REPAIR ESTIMATOR'!D866:O866)","v":"Floor tile, entry "},{"$f":"'2 REPAIR ESTIMATOR'!P866","v":0},{"$f":"'2 REPAIR ESTIMATOR'!S866","v":"sf"},{"$f":"'2 REPAIR ESTIMATOR'!X866","v":{"v":4,"d":"$4.00"}},{"$f":"'2 REPAIR ESTIMATOR'!AG866","v":0},{"$f":"T('2 REPAIR ESTIMATOR'!AX866)","v":""},{"$f":"T('2 REPAIR ESTIMATOR'!AY866)","v":""},null,0,0,0,0]
[{"$nulls":9},{"$f":"T('2 REPAIR ESTIMATOR'!D867:O867)","v":"Fireplace tiling"},{"$f":"'2 REPAIR ESTIMATOR'!P867","v":0},{"$f":"'2 REPAIR ESTIMATOR'!S867","v":"sf"},{"$f":"'2 REPAIR ESTIMATOR'!X867","v":{"v":12,"d":"$12.00"}},{"$f":"'2 REPAIR ESTIMATOR'!AG867","v":0},{"$f":"T('2 REPAIR ESTIMATOR'!AX867)","v":""},{"$f":"T('2 REPAIR ESTIMATOR'!AY867)","v":""},null,0,0,0,0]
[{"$nulls":9},{"$f":"T('2 REPAIR ESTIMATOR'!D868:O868)","v":""},{"$f":"'2 REPAIR ESTIMATOR'!P868","v":0},{"$f":"'2 REPAIR ESTIMATOR'!S868","v":0},{"$f":"'2 REPAIR ESTIMATOR'!X868","v":{"v":0,"d":"$0.00"}},{"$f":"'2 REPAIR ESTIMATOR'!AG868","v":0},{"$f":"T('2 REPAIR ESTIMATOR'!AX868)","v":""},{"$f":"T('2 REPAIR ESTIMATOR'!AY868)","v":""},null,0,0,0,0]
[{"$nulls":9},{"$f":"T('2 REPAIR ESTIMATOR'!D869:O869)","v":""},{"$f":"'2 REPAIR ESTIMATOR'!P869","v":0},{"$f":"'2 REPAIR ESTIMATOR'!S869","v":0},{"$f":"'2 REPAIR ESTIMATOR'!X869","v":{"v":0,"d":"$0.00"}},{"$f":"'2 REPAIR ESTIMATOR'!AG869","v":0},{"$f":"T('2 REPAIR ESTIMATOR'!AX869)","v":""},{"$f":"T('2 REPAIR ESTIMATOR'!AY869)","v":""},null,0,0,0,0]
[{"$nulls":9},{"$f":"T('2 REPAIR ESTIMATOR'!D870:O870)","v":"Other"},{"$f":"'2 REPAIR ESTIMATOR'!P870","v":0},{"$f":"'2 REPAIR ESTIMATOR'!S870","v":0},{"$f":"'2 REPAIR ESTIMATOR'!X870","v":{"v":0,"d":"$0.00"}},{"$f":"'2 REPAIR ESTIMATOR'!AG870","v":0},{"$f":"T('2 REPAIR ESTIMATOR'!AX870)","v":""},{"$f":"T('2 REPAIR ESTIMATOR'!AY870)","v":""},null,0,0,0,0]
[{"$nulls":9},{"$f":"T('2 REPAIR ESTIMATOR'!D871:O871)","v":"Backer board 1/4\" at floor tile"},{"$f":"'2 REPAIR ESTIMATOR'!P871","v":0},{"$f":"'2 REPAIR ESTIMATOR'!S871","v":"sf"},{"$f":"'2 REPAIR ESTIMATOR'!X871","v":{"v":0.75,"d":"$0.75"}},{"$f":"'2 REPAIR ESTIMATOR'!AG871","v":0},{"$f":"T('2 REPAIR ESTIMATOR'!AX871)","v":""},{"$f":"T('2 REPAIR ESTIMATOR'!AY871)","v":""},null,0,0,0,0]
[{"$nulls":9},{"$f":"T('2 REPAIR ESTIMATOR'!D872:O872)","v":"Backer board 1/2\" at wall tile"},{"$f":"'2 REPAIR ESTIMATOR'!P872","v":0},{"$f":"'2 REPAIR ESTIMATOR'!S872","v":"sf"},{"$f":"'2 REPAIR ESTIMATOR'!X872","v":{"v":0.85,"d":"$0.85"}},{"$f":"'2 REPAIR ESTIMATOR'!AG872","v":0},{"$f":"T('2 REPAIR ESTIMATOR'!AX872)","v":""},{"$f":"T('2 REPAIR ESTIMATOR'!AY872)","v":""},null,0,0,0,0]
[{"$nulls":9},{"$f":"T('2 REPAIR ESTIMATOR'!D873:O873)","v":""},{"$f":"'2 REPAIR ESTIMATOR'!P873","v":0},{"$f":"'2 REPAIR ESTIMATOR'!S873","v":0},{"$f":"'2 REPAIR ESTIMATOR'!X873","v":{"v":0,"d":"$0.00"}},{"$f":"'2 REPAIR ESTIMATOR'!AG873","v":0},{"$f":"T('2 REPAIR ESTIMATOR'!AX873)","v":""},{"$f":"T('2 REPAIR ESTIMATOR'!AY873)","v":""},null,0,0,0,0]
[{"$nulls":9},{"$f":"T('2 REPAIR ESTIMATOR'!D874:O874)","v":""},{"$f":"'2 REPAIR ESTIMATOR'!P874","v":0},{"$f":"'2 REPAIR ESTIMATOR'!S874","v":0},{"$f":"'2 REPAIR ESTIMATOR'!X874","v":{"v":0,"d":"$0.00"}},{"$f":"'2 REPAIR ESTIMATOR'!AG874","v":0},{"$f":"T('2 REPAIR ESTIMATOR'!AX874)","v":""},{"$f":"T('2 REPAIR ESTIMATOR'!AY874)","v":""},null,0,0,0,0]
[{"$nulls":9},{"$f":"T('2 REPAIR ESTIMATOR'!D875:O875)","v":""},{"$f":"'2 REPAIR ESTIMATOR'!P875","v":0},{"$f":"'2 REPAIR ESTIMATOR'!S875","v":0},{"$f":"'2 REPAIR ESTIMATOR'!X875","v":{"v":0,"d":"$0.00"}},{"$f":"'2 REPAIR ESTIMATOR'!AG875","v":0},{"$f":"T('2 REPAIR ESTIMATOR'!AX875)","v":""},{"$f":"T('2 REPAIR ESTIMATOR'!AY875)","v":""},null,0,0,0,0]
[{"$nulls":9},{"$f":"T('2 REPAIR ESTIMATOR'!D876:O876)","v":""},{"$f":"'2 REPAIR ESTIMATOR'!P876","v":0},{"$f":"'2 REPAIR ESTIMATOR'!S876","v":0},{"$f":"'2 REPAIR ESTIMATOR'!X876","v":{"v":0,"d":"$0.00"}},{"$f":"'2 REPAIR ESTIMATOR'!AG876","v":0},{"$f":"T('2 REPAIR ESTIMATOR'!AX876)","v":""},{"$f":"T('2 REPAIR ESTIMATOR'!AY876)","v":""},null,0,0,0,0]
[{"$nulls":9},{"$f":"T('2 REPAIR ESTIMATOR'!D877:O877)","v":""},{"$f":"'2 REPAIR ESTIMATOR'!P877","v":0},{"$f":"'2 REPAIR ESTIMATOR'!S877","v":0},{"$f":"'2 REPAIR ESTIMATOR'!X877","v":{"v":0,"d":"$0.00"}},{"$f":"'2 REPAIR ESTIMATOR'!AG877","v":0},{"$f":"T('2 REPAIR ESTIMATOR'!AX877)","v":""},{"$f":"T('2 REPAIR ESTIMATOR'!AY877)","v":""},null,0,0,0,0]
[{"$nulls":9},{"$f":"T('2 REPAIR ESTIMATOR'!D878:O878)","v":""},{"$f":"'2 REPAIR ESTIMATOR'!P878","v":0},{"$f":"'2 REPAIR ESTIMATOR'!S878","v":0},{"$f":"'2 REPAIR ESTIMATOR'!X878","v":{"v":0,"d":"$0.00"}},{"$f":"'2 REPAIR ESTIMATOR'!AG878","v":0},{"$f":"T('2 REPAIR ESTIMATOR'!AX878)","v":""},{"$f":"T('2 REPAIR ESTIMATOR'!AY878)","v":""},null,0,0,0,0]
[{"$nulls":9},{"$f":"T('2 REPAIR ESTIMATOR'!D879:O879)","v":""},{"$f":"'2 REPAIR ESTIMATOR'!P879","v":0},{"$f":"'2 REPAIR ESTIMATOR'!S879","v":0},{"$f":"'2 REPAIR ESTIMATOR'!X879","v":{"v":0,"d":"$0.00"}},{"$f":"'2 REPAIR ESTIMATOR'!AG879","v":0},{"$f":"T('2 REPAIR ESTIMATOR'!AX879)","v":""},{"$f":"T('2 REPAIR ESTIMATOR'!AY879)","v":""},null,0,0,0,0]
[{"$nulls":9},{"$f":"T('2 REPAIR ESTIMATOR'!D880:O880)","v":""},{"$f":"'2 REPAIR ESTIMATOR'!P880","v":0},{"$f":"'2 REPAIR ESTIMATOR'!S880","v":0},{"$f":"'2 REPAIR ESTIMATOR'!X880","v":{"v":0,"d":"$0.00"}},{"$f":"'2 REPAIR ESTIMATOR'!AG880","v":0},{"$f":"T('2 REPAIR ESTIMATOR'!AX880)","v":""},{"$f":"T('2 REPAIR ESTIMATOR'!AY880)","v":""},null,0,0,0,0]
[{"$nulls":9},{"$f":"T('2 REPAIR ESTIMATOR'!D881:O881)","v":""},{"$f":"'2 REPAIR ESTIMATOR'!P881","v":0},{"$f":"'2 REPAIR ESTIMATOR'!S881","v":0},{"$f":"'2 REPAIR ESTIMATOR'!X881","v":{"v":0,"d":"$0.00"}},{"$f":"'2 REPAIR ESTIMATOR'!AG881","v":0},{"$f":"T('2 REPAIR ESTIMATOR'!AX881)","v":""},{"$f":"T('2 REPAIR ESTIMATOR'!AY881)","v":""},null,0,0,0,0]
[{"$nulls":9},{"$f":"T('2 REPAIR ESTIMATOR'!D882:O882)","v":""},{"$f":"'2 REPAIR ESTIMATOR'!P882","v":0},{"$f":"'2 REPAIR ESTIMATOR'!S882","v":0},{"$f":"'2 REPAIR ESTIMATOR'!X882","v":{"v":0,"d":"$0.00"}},{"$f":"'2 REPAIR ESTIMATOR'!AG882","v":0},{"$f":"T('2 REPAIR ESTIMATOR'!AX882)","v":""},{"$f":"T('2 REPAIR ESTIMATOR'!AY882)","v":""},null,0,0,0,0]
[{"$nulls":9},{"$f":"T('2 REPAIR ESTIMATOR'!D883:O883)","v":""},{"$f":"'2 REPAIR ESTIMATOR'!P883","v":0},{"$f":"'2 REPAIR ESTIMATOR'!S883","v":0},{"$f":"'2 REPAIR ESTIMATOR'!X883","v":{"v":0,"d":"$0.00"}},{"$f":"'2 REPAIR ESTIMATOR'!AG883","v":0},{"$f":"T('2 REPAIR ESTIMATOR'!AX883)","v":""},{"$f":"T('2 REPAIR ESTIMATOR'!AY883)","v":""},null,0,0,0,0]
[{"$nulls":9},{"$f":"T('2 REPAIR ESTIMATOR'!D884:O884)","v":""},{"$f":"'2 REPAIR ESTIMATOR'!P884","v":0},{"$f":"'2 REPAIR ESTIMATOR'!S884","v":0},{"$f":"'2 REPAIR ESTIMATOR'!X884","v":{"v":0,"d":"$0.00"}},{"$f":"'2 REPAIR ESTIMATOR'!AG884","v":0},{"$f":"T('2 REPAIR ESTIMATOR'!AX884)","v":""},{"$f":"T('2 REPAIR ESTIMATOR'!AY884)","v":""},null,0,0,0,0]
[{"$nulls":9},{"$f":"T('2 REPAIR ESTIMATOR'!D885:O885)","v":""},{"$f":"'2 REPAIR ESTIMATOR'!P885","v":0},{"$f":"'2 REPAIR ESTIMATOR'!S885","v":0},{"$f":"'2 REPAIR ESTIMATOR'!X885","v":{"v":0,"d":"$0.00"}},{"$f":"'2 REPAIR ESTIMATOR'!AG885","v":0},{"$f":"T('2 REPAIR ESTIMATOR'!AX885)","v":""},{"$f":"T('2 REPAIR ESTIMATOR'!AY885)","v":""},null,0,0,0,0]
[{"$nulls":9},{"$f":"T('2 REPAIR ESTIMATOR'!D886:O886)","v":""},{"$f":"'2 REPAIR ESTIMATOR'!P886","v":0},{"$f":"'2 REPAIR ESTIMATOR'!S886","v":0},{"$f":"'2 REPAIR ESTIMATOR'!X886","v":{"v":0,"d":"$0.00"}},{"$f":"'2 REPAIR ESTIMATOR'!AG886","v":0},{"$f":"T('2 REPAIR ESTIMATOR'!AX886)","v":""},{"$f":"T('2 REPAIR ESTIMATOR'!AY886)","v":""},null,0,0,0,0]
[{"$nulls":9},{"$f":"T('2 REPAIR ESTIMATOR'!D887:O887)","v":""},{"$f":"'2 REPAIR ESTIMATOR'!P887","v":0},{"$f":"'2 REPAIR ESTIMATOR'!S887","v":0},{"$f":"'2 REPAIR ESTIMATOR'!X887","v":{"v":0,"d":"$0.00"}},{"$f":"'2 REPAIR ESTIMATOR'!AG887","v":0},{"$f":"T('2 REPAIR ESTIMATOR'!AX887)","v":""},{"$f":"T('2 REPAIR ESTIMATOR'!AY887)","v":""},null,0,0,0,0]
[{"$nulls":9},{"$f":"T('2 REPAIR ESTIMATOR'!D888:O888)","v":""},{"$f":"'2 REPAIR ESTIMATOR'!P888","v":0},{"$f":"'2 REPAIR ESTIMATOR'!S888","v":0},{"$f":"'2 REPAIR ESTIMATOR'!X888","v":{"v":0,"d":"$0.00"}},{"$f":"'2 REPAIR ESTIMATOR'!AG888","v":0},{"$f":"T('2 REPAIR ESTIMATOR'!AX888)","v":""},{"$f":"T('2 REPAIR ESTIMATOR'!AY888)","v":""},null,0,0,0,0]
[{"$nulls":9},{"$f":"T('2 REPAIR ESTIMATOR'!D889:O889)","v":""},{"$f":"'2 REPAIR ESTIMATOR'!P889","v":0},{"$f":"'2 REPAIR ESTIMATOR'!S889","v":0},{"$f":"'2 REPAIR ESTIMATOR'!X889","v":{"v":0,"d":"$0.00"}},{"$f":"'2 REPAIR ESTIMATOR'!AG889","v":0},{"$f":"T('2 REPAIR ESTIMATOR'!AX889)","v":""},{"$f":"T('2 REPAIR ESTIMATOR'!AY889)","v":""},null,0,0,0,0]
[{"$nulls":9},{"$f":"T('2 REPAIR ESTIMATOR'!D890:O890)","v":""},{"$f":"'2 REPAIR ESTIMATOR'!P890","v":0},{"$f":"'2 REPAIR ESTIMATOR'!S890","v":0},{"$f":"'2 REPAIR ESTIMATOR'!X890","v":{"v":0,"d":"$0.00"}},{"$f":"'2 REPAIR ESTIMATOR'!AG890","v":0},{"$f":"T('2 REPAIR ESTIMATOR'!AX890)","v":""},{"$f":"T('2 REPAIR ESTIMATOR'!AY890)","v":""},null,0,0,0,0]
[{"$nulls":9},{"$f":"T('2 REPAIR ESTIMATOR'!D891:O891)","v":""},{"$f":"'2 REPAIR ESTIMATOR'!P891","v":0},{"$f":"'2 REPAIR ESTIMATOR'!S891","v":0},{"$f":"'2 REPAIR ESTIMATOR'!X891","v":{"v":0,"d":"$0.00"}},{"$f":"'2 REPAIR ESTIMATOR'!AG891","v":0},{"$f":"T('2 REPAIR ESTIMATOR'!AX891)","v":""},{"$f":"T('2 REPAIR ESTIMATOR'!AY891)","v":""},null,0,0,0,0]
[{"$nulls":9},{"$f":"T('2 REPAIR ESTIMATOR'!D892:O892)","v":""},{"$f":"'2 REPAIR ESTIMATOR'!P892","v":0},{"$f":"'2 REPAIR ESTIMATOR'!S892","v":0},{"$f":"'2 REPAIR ESTIMATOR'!X892","v":{"v":0,"d":"$0.00"}},{"$f":"'2 REPAIR ESTIMATOR'!AG892","v":0},{"$f":"T('2 REPAIR ESTIMATOR'!AX892)","v":""},{"$f":"T('2 REPAIR ESTIMATOR'!AY892)","v":""},null,0,0,0,0]
[{"$nulls":12},{"$f":"CONCATENATE(J959,\" \",\"TOTAL\")","v":"TILING TOTAL"},{"$f":"SUBTOTAL(9,N960:N999)","v":{"v":2279.1000000000004,"d":"$2,279.10"}},{"$nulls":3},{"$f":"SUM(R960:R999)","v":4},{"$f":"SUM(S960:S999)","v":0},{"$f":"SUM(T960:T999)","v":0},{"$f":"SUM(U960:U999)","v":4}]
[{"$nulls":9},{"$f":"T(#REF!)","v":{"$error":"#REF!"}},{"$f":"#REF!","v":{"$error":"#REF!"}},{"$f":"#REF!","v":{"$error":"#REF!"}},{"$f":"#REF!","v":{"$error":"#REF!"}},{"$f":"#REF!","v":{"$error":"#REF!"}},{"$nulls":3},{"$f":"R1000","v":4},{"$f":"S1000","v":0},{"$f":"T1000","v":0},{"$f":"U1000","v":4}]
[{"$nulls":9},{"$f":"CONCATENATE(\"MISCELLANEOUS \",J959,\" MATERIAL ITEMS\")","v":"MISCELLANEOUS TILING MATERIAL ITEMS"},{"$nulls":4},"Store","SKU #",null,{"$f":"SUM(R1003:R1012)*R959","v":{"$error":"#REF!"}},{"$f":"SUM(S1003:S1012)","v":0},{"$f":"SUM(T1003:T1012)","v":0},{"$f":"SUM(U1003:U1012)","v":{"$error":"#REF!"}}]
[{"$nulls":9},"1. Tiling materials",{"$nulls":7},{"$f":"IF(OR(G1003=\"x\",J1003>0),1,0)*R959","v":{"$error":"#REF!"}},{"$f":"IF(G1003=\"x\",1,0)","v":0},{"$f":"IF(H1003=\"x\",1,0)","v":0},{"$f":"IF(AND(R1003=1,T1003<>1),1,0)","v":{"$error":"#REF!"}}]
[{"$nulls":9},"2. Tiling backer board (hardi-board or cement board)",{"$nulls":7},{"$f":"IF(OR(G1004=\"x\",J1004>0),1,0)*R959","v":{"$error":"#REF!"}},0,0,{"$error":"#REF!"}]
[{"$nulls":9},"3. Backer screws",{"$nulls":7},{"$f":"IF(OR(G1005=\"x\",J1005>0),1,0)*R959","v":{"$error":"#REF!"}},0,0,{"$error":"#REF!"}]
[{"$nulls":9},"4. Fluid applied/mechanically fastened waterproofing membrane",{"$nulls":7},{"$f":"IF(OR(G1006=\"x\",J1006>0),1,0)*R959","v":{"$error":"#REF!"}},0,0,{"$error":"#REF!"}]
[{"$nulls":9},"5. Mortar materials",{"$nulls":7},{"$f":"IF(OR(G1007=\"x\",J1007>0),1,0)*R959","v":{"$error":"#REF!"}},0,0,{"$error":"#REF!"}]
[{"$nulls":9},"6. Grout materials",{"$nulls":7},{"$f":"IF(OR(G1008=\"x\",J1008>0),1,0)*R959","v":{"$error":"#REF!"}},0,0,{"$error":"#REF!"}]
[{"$nulls":9},"7. Tile spacers",{"$nulls":7},{"$f":"IF(OR(G1009=\"x\",J1009>0),1,0)*R959","v":{"$error":"#REF!"}},0,0,{"$error":"#REF!"}]
[{"$nulls":9},"8. Tiling/Grout Sealant",{"$nulls":7},{"$f":"IF(OR(G1010=\"x\",J1010>0),1,0)*R959","v":{"$error":"#REF!"}},0,0,{"$error":"#REF!"}]
[{"$nulls":9},"9. Caulking/Joint Sealant",{"$nulls":7},{"$f":"IF(OR(G1011=\"x\",J1011>0),1,0)*R959","v":{"$error":"#REF!"}},0,0,{"$error":"#REF!"}]
[{"$nulls":17},{"$f":"IF(OR(G1012=\"x\",J1012>0),1,0)*R959","v":{"$error":"#REF!"}},0,0,{"$error":"#REF!"}]
[{"$nulls":9},{"$f":"T(#REF!)","v":{"$error":"#REF!"}},{"$f":"#REF!","v":{"$error":"#REF!"}},{"$f":"#REF!","v":{"$error":"#REF!"}},{"$f":"#REF!","v":{"$error":"#REF!"}},{"$f":"#REF!","v":{"$error":"#REF!"}},{"$nulls":3},{"$f":"R1002*R959","v":{"$error":"#REF!"}},{"$f":"S1002","v":0},{"$f":"T1002","v":0},{"$f":"U1002","v":{"$error":"#REF!"}}]
[{"$nulls":9},{"$f":"T('2 REPAIR ESTIMATOR'!D897:O897)","v":"PAINTING"},{"$f":"#REF!","v":{"$error":"#REF!"}},{"$f":"#REF!","v":{"$error":"#REF!"}},{"$f":"#REF!","v":{"$error":"#REF!"}},{"$f":"#REF!","v":{"$error":"#REF!"}},{"$nulls":3},{"$f":"IF(SUM(R1015:R1068)>0,1,0)","v":{"$error":"#REF!"}},{"$f":"SUM(S1015:S1068)","v":0},{"$f":"SUM(T1015:T1068)","v":0},{"$f":"SUM(U1015:U1068)","v":{"$error":"#REF!"}}]
[{"$nulls":9},{"$f":"T('2 REPAIR ESTIMATOR'!D898:O898)","v":"Exterior Painting"},{"$f":"'2 REPAIR ESTIMATOR'!P898","v":0},{"$f":"'2 REPAIR ESTIMATOR'!S898","v":0},{"$f":"'2 REPAIR ESTIMATOR'!X898","v":{"v":0,"d":"$0.00"}},{"$f":"'2 REPAIR ESTIMATOR'!AG898","v":0},{"$f":"T('2 REPAIR ESTIMATOR'!AX898)","v":""},{"$f":"T('2 REPAIR ESTIMATOR'!AY898)","v":""},null,{"$f":"IF(OR(G1015=\"x\",N1015>0),1,0)","v":0},{"$f":"IF(G1015=\"x\",1,0)","v":0},{"$f":"IF(H1015=\"x\",1,0)","v":0},{"$f":"IF(AND(R1015=1,T1015<>1),1,0)","v":0}]
[{"$nulls":9},{"$f":"T('2 REPAIR ESTIMATOR'!D899:O899)","v":"Exterior painting, bid/allowance"},{"$f":"'2 REPAIR ESTIMATOR'!P899","v":1},{"$f":"'2 REPAIR ESTIMATOR'!S899","v":"ls"},{"$f":"'2 REPAIR ESTIMATOR'!X899","v":{"v":0,"d":"$0.00"}},{"$f":"'2 REPAIR ESTIMATOR'!AG899","v":0},{"$f":"T('2 REPAIR ESTIMATOR'!AX899)","v":""},{"$f":"T('2 REPAIR ESTIMATOR'!AY899)","v":""},null,{"$f":"IF(OR(G1016=\"x\",N1016>0),1,0)","v":0},{"$f":"IF(G1016=\"x\",1,0)","v":0},{"$f":"IF(H1016=\"x\",1,0)","v":0},{"$f":"IF(AND(R1016=1,T1016<>1),1,0)","v":0}]
[{"$nulls":9},{"$f":"T('2 REPAIR ESTIMATOR'!D900:O900)","v":"Exterior painting materials allowance"},{"$f":"'2 REPAIR ESTIMATOR'!P900","v":0},{"$f":"'2 REPAIR ESTIMATOR'!S900","v":"gal"},{"$f":"'2 REPAIR ESTIMATOR'!X900","v":{"v":35,"d":"$35.00"}},{"$f":"'2 REPAIR ESTIMATOR'!AG900","v":0},{"$f":"T('2 REPAIR ESTIMATOR'!AX900)","v":""},{"$f":"T('2 REPAIR ESTIMATOR'!AY900)","v":""},null,0,0,0,0]
[{"$nulls":9},{"$f":"T('2 REPAIR ESTIMATOR'!D901:O901)","v":"Prep/clean siding"},{"$f":"'2 REPAIR ESTIMATOR'!P901","v":0},{"$f":"'2 REPAIR ESTIMATOR'!S901","v":"sf"},{"$f":"'2 REPAIR ESTIMATOR'!X901","v":{"v":0,"d":"$0.00"}},{"$f":"'2 REPAIR ESTIMATOR'!AG901","v":0},{"$f":"T('2 REPAIR ESTIMATOR'!AX901)","v":""},{"$f":"T('2 REPAIR ESTIMATOR'!AY901)","v":""},null,0,0,0,0]
[{"$nulls":9},{"$f":"T('2 REPAIR ESTIMATOR'!D902:O902)","v":"Paint siding"},{"$f":"'2 REPAIR ESTIMATOR'!P902","v":0},{"$f":"'2 REPAIR ESTIMATOR'!S902","v":"sf"},{"$f":"'2 REPAIR ESTIMATOR'!X902","v":{"v":0.25,"d":"$0.25"}},{"$f":"'2 REPAIR ESTIMATOR'!AG902","v":0},{"$f":"T('2 REPAIR ESTIMATOR'!AX902)","v":""},{"$f":"T('2 REPAIR ESTIMATOR'!AY902)","v":""},null,0,0,0,0]
[{"$nulls":9},{"$f":"T('2 REPAIR ESTIMATOR'!D903:O903)","v":"Paint exterior door"},{"$f":"'2 REPAIR ESTIMATOR'!P903","v":0},{"$f":"'2 REPAIR ESTIMATOR'!S903","v":"ea"},{"$f":"'2 REPAIR ESTIMATOR'!X903","v":{"v":10,"d":"$10.00"}},{"$f":"'2 REPAIR ESTIMATOR'!AG903","v":0},{"$f":"T('2 REPAIR ESTIMATOR'!AX903)","v":""},{"$f":"T('2 REPAIR ESTIMATOR'!AY903)","v":""},null,0,0,0,0]
[{"$nulls":9},{"$f":"T('2 REPAIR ESTIMATOR'!D904:O904)","v":"Paint trim only"},{"$f":"'2 REPAIR ESTIMATOR'!P904","v":0},{"$f":"'2 REPAIR ESTIMATOR'!S904","v":"lf"},{"$f":"'2 REPAIR ESTIMATOR'!X904","v":{"v":0.15,"d":"$0.15"}},{"$f":"'2 REPAIR ESTIMATOR'!AG904","v":0},{"$f":"T('2 REPAIR ESTIMATOR'!AX904)","v":""},{"$f":"T('2 REPAIR ESTIMATOR'!AY904)","v":""},null,0,0,0,0]
[{"$nulls":9},{"$f":"T('2 REPAIR ESTIMATOR'!D905:O905)","v":"Sand & refinish decking"},{"$f":"'2 REPAIR ESTIMATOR'!P905","v":0},{"$f":"'2 REPAIR ESTIMATOR'!S905","v":"sf"},{"$f":"'2 REPAIR ESTIMATOR'!X905","v":{"v":0.25,"d":"$0.25"}},{"$f":"'2 REPAIR ESTIMATOR'!AG905","v":0},{"$f":"T('2 REPAIR ESTIMATOR'!AX905)","v":""},{"$f":"T('2 REPAIR ESTIMATOR'!AY905)","v":""},null,0,0,0,0]
[{"$nulls":9},{"$f":"T('2 REPAIR ESTIMATOR'!D906:O906)","v":""},{"$f":"'2 REPAIR ESTIMATOR'!P906","v":0},{"$f":"'2 REPAIR ESTIMATOR'!S906","v":0},{"$f":"'2 REPAIR ESTIMATOR'!X906","v":{"v":0,"d":"$0.00"}},{"$f":"'2 REPAIR ESTIMATOR'!AG906","v":0},{"$f":"T('2 REPAIR ESTIMATOR'!AX906)","v":""},{"$f":"T('2 REPAIR ESTIMATOR'!AY906)","v":""},null,0,0,0,0]
[{"$nulls":9},{"$f":"T('2 REPAIR ESTIMATOR'!D907:O907)","v":""},{"$f":"'2 REPAIR ESTIMATOR'!P907","v":0},{"$f":"'2 REPAIR ESTIMATOR'!S907","v":0},{"$f":"'2 REPAIR ESTIMATOR'!X907","v":{"v":0,"d":"$0.00"}},{"$f":"'2 REPAIR ESTIMATOR'!AG907","v":0},{"$f":"T('2 REPAIR ESTIMATOR'!AX907)","v":""},{"$f":"T('2 REPAIR ESTIMATOR'!AY907)","v":""},null,0,0,0,0]
[{"$nulls":9},{"$f":"T('2 REPAIR ESTIMATOR'!D908:O908)","v":"Interior Painting"},{"$f":"'2 REPAIR ESTIMATOR'!P908","v":0},{"$f":"'2 REPAIR ESTIMATOR'!S908","v":0},{"$f":"'2 REPAIR ESTIMATOR'!X908","v":{"v":0,"d":"$0.00"}},{"$f":"'2 REPAIR ESTIMATOR'!AG908","v":0},{"$f":"T('2 REPAIR ESTIMATOR'!AX908)","v":""},{"$f":"T('2 REPAIR ESTIMATOR'!AY908)","v":""},null,0,0,0,0]
[{"$nulls":9},{"$f":"T('2 REPAIR ESTIMATOR'!D909:O909)","v":"Interior painting, bid/allowance"},{"$f":"'2 REPAIR ESTIMATOR'!P909","v":1},{"$f":"'2 REPAIR ESTIMATOR'!S909","v":"ls"},{"$f":"'2 REPAIR ESTIMATOR'!X909","v":{"v":0,"d":"$0.00"}},{"$f":"'2 REPAIR ESTIMATOR'!AG909","v":0},{"$f":"T('2 REPAIR ESTIMATOR'!AX909)","v":""},{"$f":"T('2 REPAIR ESTIMATOR'!AY909)","v":""},null,0,0,0,0]
[{"$nulls":9},{"$f":"T('2 REPAIR ESTIMATOR'!D910:O910)","v":"Interior painting materials allowance"},{"$f":"'2 REPAIR ESTIMATOR'!P910","v":0},{"$f":"'2 REPAIR ESTIMATOR'!S910","v":"gal"},{"$f":"'2 REPAIR ESTIMATOR'!X910","v":{"v":35,"d":"$35.00"}},{"$f":"'2 REPAIR ESTIMATOR'!AG910","v":0},{"$f":"T('2 REPAIR ESTIMATOR'!AX910)","v":""},{"$f":"T('2 REPAIR ESTIMATOR'!AY910)","v":""},null,0,0,0,0]
[{"$nulls":9},{"$f":"T('2 REPAIR ESTIMATOR'!D911:O911)","v":"Paint doors & frames"},{"$f":"'2 REPAIR ESTIMATOR'!P911","v":0},{"$f":"'2 REPAIR ESTIMATOR'!S911","v":"ea"},{"$f":"'2 REPAIR ESTIMATOR'!X911","v":{"v":5,"d":"$5.00"}},{"$f":"'2 REPAIR ESTIMATOR'!AG911","v":0},{"$f":"T('2 REPAIR ESTIMATOR'!AX911)","v":""},{"$f":"T('2 REPAIR ESTIMATOR'!AY911)","v":""},null,0,0,0,0]
[{"$nulls":9},{"$f":"T('2 REPAIR ESTIMATOR'!D912:O912)","v":"Paint walls"},{"$f":"'2 REPAIR ESTIMATOR'!P912","v":0},{"$f":"'2 REPAIR ESTIMATOR'!S912","v":"sf"},{"$f":"'2 REPAIR ESTIMATOR'!X912","v":{"v":0.2,"d":"$0.20"}},{"$f":"'2 REPAIR ESTIMATOR'!AG912","v":0},{"$f":"T('2 REPAIR ESTIMATOR'!AX912)","v":""},{"$f":"T('2 REPAIR ESTIMATOR'!AY912)","v":""},null,0,0,0,0]
[{"$nulls":9},{"$f":"T('2 REPAIR ESTIMATOR'!D913:O913)","v":"Paint ceilings"},{"$f":"'2 REPAIR ESTIMATOR'!P913","v":0},{"$f":"'2 REPAIR ESTIMATOR'!S913","v":"sf"},{"$f":"'2 REPAIR ESTIMATOR'!X913","v":{"v":0.25,"d":"$0.25"}},{"$f":"'2 REPAIR ESTIMATOR'!AG913","v":0},{"$f":"T('2 REPAIR ESTIMATOR'!AX913)","v":""},{"$f":"T('2 REPAIR ESTIMATOR'!AY913)","v":""},null,0,0,0,0]
[{"$nulls":9},{"$f":"T('2 REPAIR ESTIMATOR'!D914:O914)","v":"Paint wood base"},{"$f":"'2 REPAIR ESTIMATOR'!P914","v":0},{"$f":"'2 REPAIR ESTIMATOR'!S914","v":"lf"},{"$f":"'2 REPAIR ESTIMATOR'!X914","v":{"v":0.1,"d":"$0.10"}},{"$f":"'2 REPAIR ESTIMATOR'!AG914","v":0},{"$f":"T('2 REPAIR ESTIMATOR'!AX914)","v":""},{"$f":"T('2 REPAIR ESTIMATOR'!AY914)","v":""},null,0,0,0,0]
[{"$nulls":9},{"$f":"T('2 REPAIR ESTIMATOR'!D915:O915)","v":"Strip, paint cabinets/vanities"},{"$f":"'2 REPAIR ESTIMATOR'!P915","v":0},{"$f":"'2 REPAIR ESTIMATOR'!S915","v":"sf"},{"$f":"'2 REPAIR ESTIMATOR'!X915","v":{"v":0.5,"d":"$0.50"}},{"$f":"'2 REPAIR ESTIMATOR'!AG915","v":0},{"$f":"T('2 REPAIR ESTIMATOR'!AX915)","v":""},{"$f":"T('2 REPAIR ESTIMATOR'!AY915)","v":""},null,0,0,0,0]
[{"$nulls":9},{"$f":"T('2 REPAIR ESTIMATOR'!D916:O916)","v":""},{"$f":"'2 REPAIR ESTIMATOR'!P916","v":0},{"$f":"'2 REPAIR ESTIMATOR'!S916","v":0},{"$f":"'2 REPAIR ESTIMATOR'!X916","v":{"v":0,"d":"$0.00"}},{"$f":"'2 REPAIR ESTIMATOR'!AG916","v":0},{"$f":"T('2 REPAIR ESTIMATOR'!AX916)","v":""},{"$f":"T('2 REPAIR ESTIMATOR'!AY916)","v":""},null,0,0,0,0]
[{"$nulls":9},{"$f":"T('2 REPAIR ESTIMATOR'!D917:O917)","v":""},{"$f":"'2 REPAIR ESTIMATOR'!P917","v":0},{"$f":"'2 REPAIR ESTIMATOR'!S917","v":0},{"$f":"'2 REPAIR ESTIMATOR'!X917","v":{"v":0,"d":"$0.00"}},{"$f":"'2 REPAIR ESTIMATOR'!AG917","v":0},{"$f":"T('2 REPAIR ESTIMATOR'!AX917)","v":""},{"$f":"T('2 REPAIR ESTIMATOR'!AY917)","v":""},null,0,0,0,0]
[{"$nulls":9},{"$f":"T('2 REPAIR ESTIMATOR'!D918:O918)","v":""},{"$f":"'2 REPAIR ESTIMATOR'!P918","v":0},{"$f":"'2 REPAIR ESTIMATOR'!S918","v":0},{"$f":"'2 REPAIR ESTIMATOR'!X918","v":{"v":0,"d":"$0.00"}},{"$f":"'2 REPAIR ESTIMATOR'!AG918","v":0},{"$f":"T('2 REPAIR ESTIMATOR'!AX918)","v":""},{"$f":"T('2 REPAIR ESTIMATOR'!AY918)","v":""},null,0,0,0,0]
[{"$nulls":9},{"$f":"T('2 REPAIR ESTIMATOR'!D919:O919)","v":""},{"$f":"'2 REPAIR ESTIMATOR'!P919","v":0},{"$f":"'2 REPAIR ESTIMATOR'!S919","v":0},{"$f":"'2 REPAIR ESTIMATOR'!X919","v":{"v":0,"d":"$0.00"}},{"$f":"'2 REPAIR ESTIMATOR'!AG919","v":0},{"$f":"T('2 REPAIR ESTIMATOR'!AX919)","v":""},{"$f":"T('2 REPAIR ESTIMATOR'!AY919)","v":""},null,0,0,0,0]
[{"$nulls":9},{"$f":"T('2 REPAIR ESTIMATOR'!D920:O920)","v":""},{"$f":"'2 REPAIR ESTIMATOR'!P920","v":0},{"$f":"'2 REPAIR ESTIMATOR'!S920","v":0},{"$f":"'2 REPAIR ESTIMATOR'!X920","v":{"v":0,"d":"$0.00"}},{"$f":"'2 REPAIR ESTIMATOR'!AG920","v":0},{"$f":"T('2 REPAIR ESTIMATOR'!AX920)","v":""},{"$f":"T('2 REPAIR ESTIMATOR'!AY920)","v":""},null,0,0,0,0]
[{"$nulls":9},{"$f":"T('2 REPAIR ESTIMATOR'!D921:O921)","v":""},{"$f":"'2 REPAIR ESTIMATOR'!P921","v":0},{"$f":"'2 REPAIR ESTIMATOR'!S921","v":0},{"$f":"'2 REPAIR ESTIMATOR'!X921","v":{"v":0,"d":"$0.00"}},{"$f":"'2 REPAIR ESTIMATOR'!AG921","v":0},{"$f":"T('2 REPAIR ESTIMATOR'!AX921)","v":""},{"$f":"T('2 REPAIR ESTIMATOR'!AY921)","v":""},null,0,0,0,0]
[{"$nulls":9},{"$f":"T('2 REPAIR ESTIMATOR'!D922:O922)","v":""},{"$f":"'2 REPAIR ESTIMATOR'!P922","v":0},{"$f":"'2 REPAIR ESTIMATOR'!S922","v":0},{"$f":"'2 REPAIR ESTIMATOR'!X922","v":{"v":0,"d":"$0.00"}},{"$f":"'2 REPAIR ESTIMATOR'!AG922","v":0},{"$f":"T('2 REPAIR ESTIMATOR'!AX922)","v":""},{"$f":"T('2 REPAIR ESTIMATOR'!AY922)","v":""},null,0,0,0,0]
[{"$nulls":9},{"$f":"T('2 REPAIR ESTIMATOR'!D923:O923)","v":""},{"$f":"'2 REPAIR ESTIMATOR'!P923","v":0},{"$f":"'2 REPAIR ESTIMATOR'!S923","v":0},{"$f":"'2 REPAIR ESTIMATOR'!X923","v":{"v":0,"d":"$0.00"}},{"$f":"'2 REPAIR ESTIMATOR'!AG923","v":0},{"$f":"T('2 REPAIR ESTIMATOR'!AX923)","v":""},{"$f":"T('2 REPAIR ESTIMATOR'!AY923)","v":""},null,0,0,0,0]
[{"$nulls":9},{"$f":"T('2 REPAIR ESTIMATOR'!D924:O924)","v":""},{"$f":"'2 REPAIR ESTIMATOR'!P924","v":0},{"$f":"'2 REPAIR ESTIMATOR'!S924","v":0},{"$f":"'2 REPAIR ESTIMATOR'!X924","v":{"v":0,"d":"$0.00"}},{"$f":"'2 REPAIR ESTIMATOR'!AG924","v":0},{"$f":"T('2 REPAIR ESTIMATOR'!AX924)","v":""},{"$f":"T('2 REPAIR ESTIMATOR'!AY924)","v":""},null,0,0,0,0]
[{"$nulls":9},{"$f":"T('2 REPAIR ESTIMATOR'!D925:O925)","v":""},{"$f":"'2 REPAIR ESTIMATOR'!P925","v":0},{"$f":"'2 REPAIR ESTIMATOR'!S925","v":0},{"$f":"'2 REPAIR ESTIMATOR'!X925","v":{"v":0,"d":"$0.00"}},{"$f":"'2 REPAIR ESTIMATOR'!AG925","v":0},{"$f":"T('2 REPAIR ESTIMATOR'!AX925)","v":""},{"$f":"T('2 REPAIR ESTIMATOR'!AY925)","v":""},null,0,0,0,0]
[{"$nulls":9},{"$f":"T('2 REPAIR ESTIMATOR'!D926:O926)","v":""},{"$f":"'2 REPAIR ESTIMATOR'!P926","v":0},{"$f":"'2 REPAIR ESTIMATOR'!S926","v":0},{"$f":"'2 REPAIR ESTIMATOR'!X926","v":{"v":0,"d":"$0.00"}},{"$f":"'2 REPAIR ESTIMATOR'!AG926","v":0},{"$f":"T('2 REPAIR ESTIMATOR'!AX926)","v":""},{"$f":"T('2 REPAIR ESTIMATOR'!AY926)","v":""},null,0,0,0,0]
[{"$nulls":9},{"$f":"T('2 REPAIR ESTIMATOR'!D927:O927)","v":""},{"$f":"'2 REPAIR ESTIMATOR'!P927","v":0},{"$f":"'2 REPAIR ESTIMATOR'!S927","v":0},{"$f":"'2 REPAIR ESTIMATOR'!X927","v":{"v":0,"d":"$0.00"}},{"$f":"'2 REPAIR ESTIMATOR'!AG927","v":0},{"$f":"T('2 REPAIR ESTIMATOR'!AX927)","v":""},{"$f":"T('2 REPAIR ESTIMATOR'!AY927)","v":""},null,0,0,0,0]
[{"$nulls":9},{"$f":"T('2 REPAIR ESTIMATOR'!D928:O928)","v":""},{"$f":"'2 REPAIR ESTIMATOR'!P928","v":0},{"$f":"'2 REPAIR ESTIMATOR'!S928","v":0},{"$f":"'2 REPAIR ESTIMATOR'!X928","v":{"v":0,"d":"$0.00"}},{"$f":"'2 REPAIR ESTIMATOR'!AG928","v":0},{"$f":"T('2 REPAIR ESTIMATOR'!AX928)","v":""},{"$f":"T('2 REPAIR ESTIMATOR'!AY928)","v":""},null,0,0,0,0]
[{"$nulls":9},{"$f":"T('2 REPAIR ESTIMATOR'!D929:O929)","v":""},{"$f":"'2 REPAIR ESTIMATOR'!P929","v":0},{"$f":"'2 REPAIR ESTIMATOR'!S929","v":0},{"$f":"'2 REPAIR ESTIMATOR'!X929","v":{"v":0,"d":"$0.00"}},{"$f":"'2 REPAIR ESTIMATOR'!AG929","v":0},{"$f":"T('2 REPAIR ESTIMATOR'!AX929)","v":""},{"$f":"T('2 REPAIR ESTIMATOR'!AY929)","v":""},null,0,0,0,0]
[{"$nulls":9},{"$f":"T('2 REPAIR ESTIMATOR'!D930:O930)","v":""},{"$f":"'2 REPAIR ESTIMATOR'!P930","v":0},{"$f":"'2 REPAIR ESTIMATOR'!S930","v":0},{"$f":"'2 REPAIR ESTIMATOR'!X930","v":{"v":0,"d":"$0.00"}},{"$f":"'2 REPAIR ESTIMATOR'!AG930","v":0},{"$f":"T('2 REPAIR ESTIMATOR'!AX930)","v":""},{"$f":"T('2 REPAIR ESTIMATOR'!AY930)","v":""},null,0,0,0,0]
[{"$nulls":9},{"$f":"T('2 REPAIR ESTIMATOR'!D931:O931)","v":""},{"$f":"'2 REPAIR ESTIMATOR'!P931","v":0},{"$f":"'2 REPAIR ESTIMATOR'!S931","v":0},{"$f":"'2 REPAIR ESTIMATOR'!X931","v":{"v":0,"d":"$0.00"}},{"$f":"'2 REPAIR ESTIMATOR'!AG931","v":0},{"$f":"T('2 REPAIR ESTIMATOR'!AX931)","v":""},{"$f":"T('2 REPAIR ESTIMATOR'!AY931)","v":""},null,0,0,0,0]
[{"$nulls":9},{"$f":"T('2 REPAIR ESTIMATOR'!D932:O932)","v":""},{"$f":"'2 REPAIR ESTIMATOR'!P932","v":0},{"$f":"'2 REPAIR ESTIMATOR'!S932","v":0},{"$f":"'2 REPAIR ESTIMATOR'!X932","v":{"v":0,"d":"$0.00"}},{"$f":"'2 REPAIR ESTIMATOR'!AG932","v":0},{"$f":"T('2 REPAIR ESTIMATOR'!AX932)","v":""},{"$f":"T('2 REPAIR ESTIMATOR'!AY932)","v":""},null,0,0,0,0]
[{"$nulls":9},{"$f":"T('2 REPAIR ESTIMATOR'!D933:O933)","v":""},{"$f":"'2 REPAIR ESTIMATOR'!P933","v":0},{"$f":"'2 REPAIR ESTIMATOR'!S933","v":0},{"$f":"'2 REPAIR ESTIMATOR'!X933","v":{"v":0,"d":"$0.00"}},{"$f":"'2 REPAIR ESTIMATOR'!AG933","v":0},{"$f":"T('2 REPAIR ESTIMATOR'!AX933)","v":""},{"$f":"T('2 REPAIR ESTIMATOR'!AY933)","v":""},null,0,0,0,0]
[{"$nulls":9},{"$f":"T('2 REPAIR ESTIMATOR'!D934:O934)","v":""},{"$f":"'2 REPAIR ESTIMATOR'!P934","v":0},{"$f":"'2 REPAIR ESTIMATOR'!S934","v":0},{"$f":"'2 REPAIR ESTIMATOR'!X934","v":{"v":0,"d":"$0.00"}},{"$f":"'2 REPAIR ESTIMATOR'!AG934","v":0},{"$f":"T('2 REPAIR ESTIMATOR'!AX934)","v":""},{"$f":"T('2 REPAIR ESTIMATOR'!AY934)","v":""},null,0,0,0,0]
[{"$nulls":9},{"$f":"T('2 REPAIR ESTIMATOR'!D935:O935)","v":""},{"$f":"'2 REPAIR ESTIMATOR'!P935","v":0},{"$f":"'2 REPAIR ESTIMATOR'!S935","v":0},{"$f":"'2 REPAIR ESTIMATOR'!X935","v":{"v":0,"d":"$0.00"}},{"$f":"'2 REPAIR ESTIMATOR'!AG935","v":0},{"$f":"T('2 REPAIR ESTIMATOR'!AX935)","v":""},{"$f":"T('2 REPAIR ESTIMATOR'!AY935)","v":""},null,0,0,0,0]
[{"$nulls":9},{"$f":"T('2 REPAIR ESTIMATOR'!D936:O936)","v":""},{"$f":"'2 REPAIR ESTIMATOR'!P936","v":0},{"$f":"'2 REPAIR ESTIMATOR'!S936","v":0},{"$f":"'2 REPAIR ESTIMATOR'!X936","v":{"v":0,"d":"$0.00"}},{"$f":"'2 REPAIR ESTIMATOR'!AG936","v":0},{"$f":"T('2 REPAIR ESTIMATOR'!AX936)","v":""},{"$f":"T('2 REPAIR ESTIMATOR'!AY936)","v":""},null,0,0,0,0]
[{"$nulls":9},{"$f":"T('2 REPAIR ESTIMATOR'!D937:O937)","v":""},{"$f":"'2 REPAIR ESTIMATOR'!P937","v":0},{"$f":"'2 REPAIR ESTIMATOR'!S937","v":0},{"$f":"'2 REPAIR ESTIMATOR'!X937","v":{"v":0,"d":"$0.00"}},{"$f":"'2 REPAIR ESTIMATOR'!AG937","v":0},{"$f":"T('2 REPAIR ESTIMATOR'!AX937)","v":""},{"$f":"T('2 REPAIR ESTIMATOR'!AY937)","v":""},null,0,0,0,0]
[{"$nulls":12},{"$f":"CONCATENATE(J1014,\" \",\"TOTAL\")","v":"PAINTING TOTAL"},{"$f":"SUBTOTAL(9,N1015:N1054)","v":0},{"$nulls":3},{"$f":"SUM(R1015:R1054)","v":0},{"$f":"SUM(S1015:S1054)","v":0},{"$f":"SUM(T1015:T1054)","v":0},{"$f":"SUM(U1015:U1054)","v":0}]
[{"$nulls":9},{"$f":"T(#REF!)","v":{"$error":"#REF!"}},{"$f":"#REF!","v":{"$error":"#REF!"}},{"$f":"#REF!","v":{"$error":"#REF!"}},{"$f":"#REF!","v":{"$error":"#REF!"}},{"$f":"#REF!","v":{"$error":"#REF!"}},{"$nulls":3},{"$f":"R1055","v":0},{"$f":"S1055","v":0},{"$f":"T1055","v":0},{"$f":"U1055","v":0}]
[{"$nulls":9},{"$f":"CONCATENATE(\"MISCELLANEOUS \",J1014,\" MATERIAL ITEMS\")","v":"MISCELLANEOUS PAINTING MATERIAL ITEMS"},{"$nulls":4},"Store","SKU #",null,{"$f":"SUM(R1058:R1067)*R1014","v":{"$error":"#REF!"}},{"$f":"SUM(S1058:S1067)","v":0},{"$f":"SUM(T1058:T1067)","v":0},{"$f":"SUM(U1058:U1067)","v":{"$error":"#REF!"}}]
[{"$nulls":17},{"$f":"IF(OR(G1058=\"x\",J1058>0),1,0)*R1014","v":{"$error":"#REF!"}},{"$f":"IF(G1058=\"x\",1,0)","v":0},{"$f":"IF(H1058=\"x\",1,0)","v":0},{"$f":"IF(AND(R1058=1,T1058<>1),1,0)","v":{"$error":"#REF!"}}]
[{"$nulls":17},{"$f":"IF(OR(G1059=\"x\",J1059>0),1,0)*R1014","v":{"$error":"#REF!"}},0,0,{"$error":"#REF!"}]
[{"$nulls":17},{"$f":"IF(OR(G1060=\"x\",J1060>0),1,0)*R1014","v":{"$error":"#REF!"}},0,0,{"$error":"#REF!"}]
[{"$nulls":17},{"$f":"IF(OR(G1061=\"x\",J1061>0),1,0)*R1014","v":{"$error":"#REF!"}},0,0,{"$error":"#REF!"}]
[{"$nulls":17},{"$f":"IF(OR(G1062=\"x\",J1062>0),1,0)*R1014","v":{"$error":"#REF!"}},0,0,{"$error":"#REF!"}]
[{"$nulls":17},{"$f":"IF(OR(G1063=\"x\",J1063>0),1,0)*R1014","v":{"$error":"#REF!"}},0,0,{"$error":"#REF!"}]
[{"$nulls":17},{"$f":"IF(OR(G1064=\"x\",J1064>0),1,0)*R1014","v":{"$error":"#REF!"}},0,0,{"$error":"#REF!"}]
[{"$nulls":17},{"$f":"IF(OR(G1065=\"x\",J1065>0),1,0)*R1014","v":{"$error":"#REF!"}},0,0,{"$error":"#REF!"}]
[{"$nulls":17},{"$f":"IF(OR(G1066=\"x\",J1066>0),1,0)*R1014","v":{"$error":"#REF!"}},0,0,{"$error":"#REF!"}]
[{"$nulls":17},{"$f":"IF(OR(G1067=\"x\",J1067>0),1,0)*R1014","v":{"$error":"#REF!"}},0,0,{"$error":"#REF!"}]
[{"$nulls":9},{"$f":"T(#REF!)","v":{"$error":"#REF!"}},{"$f":"#REF!","v":{"$error":"#REF!"}},{"$f":"#REF!","v":{"$error":"#REF!"}},{"$f":"#REF!","v":{"$error":"#REF!"}},{"$f":"#REF!","v":{"$error":"#REF!"}},{"$nulls":3},{"$f":"R1057*R1014","v":{"$error":"#REF!"}},{"$f":"S1057","v":0},{"$f":"T1057","v":0},{"$f":"U1057","v":{"$error":"#REF!"}}]
[{"$nulls":9},{"$f":"T('2 REPAIR ESTIMATOR'!D942:O942)","v":"APPLIANCES"},{"$f":"#REF!","v":{"$error":"#REF!"}},{"$f":"#REF!","v":{"$error":"#REF!"}},{"$f":"#REF!","v":{"$error":"#REF!"}},{"$f":"#REF!","v":{"$error":"#REF!"}},{"$nulls":3},{"$f":"IF(SUM(R1070:R1123)>0,1,0)","v":{"$error":"#REF!"}},{"$f":"SUM(S1070:S1123)","v":0},{"$f":"SUM(T1070:T1123)","v":0},{"$f":"SUM(U1070:U1123)","v":{"$error":"#REF!"}}]
[{"$nulls":9},{"$f":"T('2 REPAIR ESTIMATOR'!D943:O943)","v":"Appliances, Bid/Allowance"},{"$f":"'2 REPAIR ESTIMATOR'!P943","v":0},{"$f":"'2 REPAIR ESTIMATOR'!S943","v":"ls"},{"$f":"'2 REPAIR ESTIMATOR'!X943","v":{"v":2500,"d":"$2,500.00"}},{"$f":"'2 REPAIR ESTIMATOR'!AG943","v":0},{"$f":"T('2 REPAIR ESTIMATOR'!AX943)","v":""},{"$f":"T('2 REPAIR ESTIMATOR'!AY943)","v":""},null,{"$f":"IF(OR(G1070=\"x\",N1070>0),1,0)","v":0},{"$f":"IF(G1070=\"x\",1,0)","v":0},{"$f":"IF(H1070=\"x\",1,0)","v":0},{"$f":"IF(AND(R1070=1,T1070<>1),1,0)","v":0}]
[{"$nulls":9},{"$f":"T('2 REPAIR ESTIMATOR'!D944:O944)","v":""},{"$f":"'2 REPAIR ESTIMATOR'!P944","v":0},{"$f":"'2 REPAIR ESTIMATOR'!S944","v":0},{"$f":"'2 REPAIR ESTIMATOR'!X944","v":{"v":0,"d":"$0.00"}},{"$f":"'2 REPAIR ESTIMATOR'!AG944","v":0},{"$f":"T('2 REPAIR ESTIMATOR'!AX944)","v":""},{"$f":"T('2 REPAIR ESTIMATOR'!AY944)","v":""},null,{"$f":"IF(OR(G1071=\"x\",N1071>0),1,0)","v":0},{"$f":"IF(G1071=\"x\",1,0)","v":0},{"$f":"IF(H1071=\"x\",1,0)","v":0},{"$f":"IF(AND(R1071=1,T1071<>1),1,0)","v":0}]
[{"$nulls":9},{"$f":"T('2 REPAIR ESTIMATOR'!D945:O945)","v":"Appliance Package"},{"$f":"'2 REPAIR ESTIMATOR'!P945","v":0},{"$f":"'2 REPAIR ESTIMATOR'!S945","v":0},{"$f":"'2 REPAIR ESTIMATOR'!X945","v":{"v":0,"d":"$0.00"}},{"$f":"'2 REPAIR ESTIMATOR'!AG945","v":0},{"$f":"T('2 REPAIR ESTIMATOR'!AX945)","v":""},{"$f":"T('2 REPAIR ESTIMATOR'!AY945)","v":""},null,0,0,0,0]
[{"$nulls":9},{"$f":"T('2 REPAIR ESTIMATOR'!D946:O946)","v":"Economy, (fridge, range, hood, dw, microwave)"},{"$f":"'2 REPAIR ESTIMATOR'!P946","v":0},{"$f":"'2 REPAIR ESTIMATOR'!S946","v":"ea"},{"$f":"'2 REPAIR ESTIMATOR'!X946","v":{"v":1800,"d":"$1,800.00"}},{"$f":"'2 REPAIR ESTIMATOR'!AG946","v":0},{"$f":"T('2 REPAIR ESTIMATOR'!AX946)","v":""},{"$f":"T('2 REPAIR ESTIMATOR'!AY946)","v":""},null,0,0,0,0]
[{"$nulls":9},{"$f":"T('2 REPAIR ESTIMATOR'!D947:O947)","v":"Average, (fridge, range, hood, dw, microwave)"},{"$f":"'2 REPAIR ESTIMATOR'!P947","v":1},{"$f":"'2 REPAIR ESTIMATOR'!S947","v":"ea"},{"$f":"'2 REPAIR ESTIMATOR'!X947","v":{"v":3000,"d":"$3,000.00"}},{"$f":"'2 REPAIR ESTIMATOR'!AG947","v":{"v":3210,"d":"$3,210.00"}},{"$f":"T('2 REPAIR ESTIMATOR'!AX947)","v":""},{"$f":"T('2 REPAIR ESTIMATOR'!AY947)","v":""},null,1,0,0,1]
[{"$nulls":9},{"$f":"T('2 REPAIR ESTIMATOR'!D948:O948)","v":"High End, (fridge, range, hood, dw, microwave)"},{"$f":"'2 REPAIR ESTIMATOR'!P948","v":0},{"$f":"'2 REPAIR ESTIMATOR'!S948","v":"ea"},{"$f":"'2 REPAIR ESTIMATOR'!X948","v":{"v":7500,"d":"$7,500.00"}},{"$f":"'2 REPAIR ESTIMATOR'!AG948","v":0},{"$f":"T('2 REPAIR ESTIMATOR'!AX948)","v":""},{"$f":"T('2 REPAIR ESTIMATOR'!AY948)","v":""},null,0,0,0,0]
[{"$nulls":9},{"$f":"T('2 REPAIR ESTIMATOR'!D949:O949)","v":""},{"$f":"'2 REPAIR ESTIMATOR'!P949","v":0},{"$f":"'2 REPAIR ESTIMATOR'!S949","v":0},{"$f":"'2 REPAIR ESTIMATOR'!X949","v":{"v":0,"d":"$0.00"}},{"$f":"'2 REPAIR ESTIMATOR'!AG949","v":0},{"$f":"T('2 REPAIR ESTIMATOR'!AX949)","v":""},{"$f":"T('2 REPAIR ESTIMATOR'!AY949)","v":""},null,0,0,0,0]
[{"$nulls":9},{"$f":"T('2 REPAIR ESTIMATOR'!D950:O950)","v":""},{"$f":"'2 REPAIR ESTIMATOR'!P950","v":0},{"$f":"'2 REPAIR ESTIMATOR'!S950","v":0},{"$f":"'2 REPAIR ESTIMATOR'!X950","v":{"v":0,"d":"$0.00"}},{"$f":"'2 REPAIR ESTIMATOR'!AG950","v":0},{"$f":"T('2 REPAIR ESTIMATOR'!AX950)","v":""},{"$f":"T('2 REPAIR ESTIMATOR'!AY950)","v":""},null,0,0,0,0]
[{"$nulls":9},{"$f":"T('2 REPAIR ESTIMATOR'!D951:O951)","v":"Appliances, Detailed, Ecomony"},{"$f":"'2 REPAIR ESTIMATOR'!P951","v":0},{"$f":"'2 REPAIR ESTIMATOR'!S951","v":0},{"$f":"'2 REPAIR ESTIMATOR'!X951","v":{"v":0,"d":"$0.00"}},{"$f":"'2 REPAIR ESTIMATOR'!AG951","v":0},{"$f":"T('2 REPAIR ESTIMATOR'!AX951)","v":""},{"$f":"T('2 REPAIR ESTIMATOR'!AY951)","v":""},null,0,0,0,0]
[{"$nulls":9},{"$f":"T('2 REPAIR ESTIMATOR'!D952:O952)","v":"Refrigerator, economy"},{"$f":"'2 REPAIR ESTIMATOR'!P952","v":0},{"$f":"'2 REPAIR ESTIMATOR'!S952","v":"ea"},{"$f":"'2 REPAIR ESTIMATOR'!X952","v":{"v":750,"d":"$750.00"}},{"$f":"'2 REPAIR ESTIMATOR'!AG952","v":0},{"$f":"T('2 REPAIR ESTIMATOR'!AX952)","v":""},{"$f":"T('2 REPAIR ESTIMATOR'!AY952)","v":""},null,0,0,0,0]
[{"$nulls":9},{"$f":"T('2 REPAIR ESTIMATOR'!D953:O953)","v":"Range, economy"},{"$f":"'2 REPAIR ESTIMATOR'!P953","v":0},{"$f":"'2 REPAIR ESTIMATOR'!S953","v":"ea"},{"$f":"'2 REPAIR ESTIMATOR'!X953","v":{"v":375,"d":"$375.00"}},{"$f":"'2 REPAIR ESTIMATOR'!AG953","v":0},{"$f":"T('2 REPAIR ESTIMATOR'!AX953)","v":""},{"$f":"T('2 REPAIR ESTIMATOR'!AY953)","v":""},null,0,0,0,0]
[{"$nulls":9},{"$f":"T('2 REPAIR ESTIMATOR'!D954:O954)","v":"Range Hood, economy"},{"$f":"'2 REPAIR ESTIMATOR'!P954","v":0},{"$f":"'2 REPAIR ESTIMATOR'!S954","v":"ea"},{"$f":"'2 REPAIR ESTIMATOR'!X954","v":{"v":200,"d":"$200.00"}},{"$f":"'2 REPAIR ESTIMATOR'!AG954","v":0},{"$f":"T('2 REPAIR ESTIMATOR'!AX954)","v":""},{"$f":"T('2 REPAIR ESTIMATOR'!AY954)","v":""},null,0,0,0,0]
[{"$nulls":9},{"$f":"T('2 REPAIR ESTIMATOR'!D955:O955)","v":"Dishwasher, economy"},{"$f":"'2 REPAIR ESTIMATOR'!P955","v":0},{"$f":"'2 REPAIR ESTIMATOR'!S955","v":"ea"},{"$f":"'2 REPAIR ESTIMATOR'!X955","v":{"v":300,"d":"$300.00"}},{"$f":"'2 REPAIR ESTIMATOR'!AG955","v":0},{"$f":"T('2 REPAIR ESTIMATOR'!AX955)","v":""},{"$f":"T('2 REPAIR ESTIMATOR'!AY955)","v":""},null,0,0,0,0]
[{"$nulls":9},{"$f":"T('2 REPAIR ESTIMATOR'!D956:O956)","v":"Microwave, economy"},{"$f":"'2 REPAIR ESTIMATOR'!P956","v":0},{"$f":"'2 REPAIR ESTIMATOR'!S956","v":"ea"},{"$f":"'2 REPAIR ESTIMATOR'!X956","v":{"v":100,"d":"$100.00"}},{"$f":"'2 REPAIR ESTIMATOR'!AG956","v":0},{"$f":"T('2 REPAIR ESTIMATOR'!AX956)","v":""},{"$f":"T('2 REPAIR ESTIMATOR'!AY956)","v":""},null,0,0,0,0]
[{"$nulls":9},{"$f":"T('2 REPAIR ESTIMATOR'!D957:O957)","v":"Appliance delivery"},{"$f":"'2 REPAIR ESTIMATOR'!P957","v":0},{"$f":"'2 REPAIR ESTIMATOR'!S957","v":"ea"},{"$f":"'2 REPAIR ESTIMATOR'!X957","v":{"v":75,"d":"$75.00"}},{"$f":"'2 REPAIR ESTIMATOR'!AG957","v":0},{"$f":"T('2 REPAIR ESTIMATOR'!AX957)","v":""},{"$f":"T('2 REPAIR ESTIMATOR'!AY957)","v":""},null,0,0,0,0]
[{"$nulls":9},{"$f":"T('2 REPAIR ESTIMATOR'!D958:O958)","v":""},{"$f":"'2 REPAIR ESTIMATOR'!P958","v":0},{"$f":"'2 REPAIR ESTIMATOR'!S958","v":0},{"$f":"'2 REPAIR ESTIMATOR'!X958","v":{"v":0,"d":"$0.00"}},{"$f":"'2 REPAIR ESTIMATOR'!AG958","v":0},{"$f":"T('2 REPAIR ESTIMATOR'!AX958)","v":""},{"$f":"T('2 REPAIR ESTIMATOR'!AY958)","v":""},null,0,0,0,0]
[{"$nulls":9},{"$f":"T('2 REPAIR ESTIMATOR'!D959:O959)","v":""},{"$f":"'2 REPAIR ESTIMATOR'!P959","v":0},{"$f":"'2 REPAIR ESTIMATOR'!S959","v":0},{"$f":"'2 REPAIR ESTIMATOR'!X959","v":{"v":0,"d":"$0.00"}},{"$f":"'2 REPAIR ESTIMATOR'!AG959","v":0},{"$f":"T('2 REPAIR ESTIMATOR'!AX959)","v":""},{"$f":"T('2 REPAIR ESTIMATOR'!AY959)","v":""},null,0,0,0,0]
[{"$nulls":9},{"$f":"T('2 REPAIR ESTIMATOR'!D960:O960)","v":"Appliances, Detailed, Average"},{"$f":"'2 REPAIR ESTIMATOR'!P960","v":0},{"$f":"'2 REPAIR ESTIMATOR'!S960","v":0},{"$f":"'2 REPAIR ESTIMATOR'!X960","v":{"v":0,"d":"$0.00"}},{"$f":"'2 REPAIR ESTIMATOR'!AG960","v":0},{"$f":"T('2 REPAIR ESTIMATOR'!AX960)","v":""},{"$f":"T('2 REPAIR ESTIMATOR'!AY960)","v":""},null,0,0,0,0]
[{"$nulls":9},{"$f":"T('2 REPAIR ESTIMATOR'!D961:O961)","v":"Refrigerator, average"},{"$f":"'2 REPAIR ESTIMATOR'!P961","v":0},{"$f":"'2 REPAIR ESTIMATOR'!S961","v":"ea"},{"$f":"'2 REPAIR ESTIMATOR'!X961","v":{"v":1150,"d":"$1,150.00"}},{"$f":"'2 REPAIR ESTIMATOR'!AG961","v":0},{"$f":"T('2 REPAIR ESTIMATOR'!AX961)","v":""},{"$f":"T('2 REPAIR ESTIMATOR'!AY961)","v":""},null,0,0,0,0]
[{"$nulls":9},{"$f":"T('2 REPAIR ESTIMATOR'!D962:O962)","v":"Range, average"},{"$f":"'2 REPAIR ESTIMATOR'!P962","v":0},{"$f":"'2 REPAIR ESTIMATOR'!S962","v":"ea"},{"$f":"'2 REPAIR ESTIMATOR'!X962","v":{"v":750,"d":"$750.00"}},{"$f":"'2 REPAIR ESTIMATOR'!AG962","v":0},{"$f":"T('2 REPAIR ESTIMATOR'!AX962)","v":""},{"$f":"T('2 REPAIR ESTIMATOR'!AY962)","v":""},null,0,0,0,0]
[{"$nulls":9},{"$f":"T('2 REPAIR ESTIMATOR'!D963:O963)","v":"Range Hood, average"},{"$f":"'2 REPAIR ESTIMATOR'!P963","v":0},{"$f":"'2 REPAIR ESTIMATOR'!S963","v":"ea"},{"$f":"'2 REPAIR ESTIMATOR'!X963","v":{"v":350,"d":"$350.00"}},{"$f":"'2 REPAIR ESTIMATOR'!AG963","v":0},{"$f":"T('2 REPAIR ESTIMATOR'!AX963)","v":""},{"$f":"T('2 REPAIR ESTIMATOR'!AY963)","v":""},null,0,0,0,0]
[{"$nulls":9},{"$f":"T('2 REPAIR ESTIMATOR'!D964:O964)","v":"Dishwasher, average"},{"$f":"'2 REPAIR ESTIMATOR'!P964","v":0},{"$f":"'2 REPAIR ESTIMATOR'!S964","v":"ea"},{"$f":"'2 REPAIR ESTIMATOR'!X964","v":{"v":500,"d":"$500.00"}},{"$f":"'2 REPAIR ESTIMATOR'!AG964","v":0},{"$f":"T('2 REPAIR ESTIMATOR'!AX964)","v":""},{"$f":"T('2 REPAIR ESTIMATOR'!AY964)","v":""},null,0,0,0,0]
[{"$nulls":9},{"$f":"T('2 REPAIR ESTIMATOR'!D965:O965)","v":"Microwave, average"},{"$f":"'2 REPAIR ESTIMATOR'!P965","v":0},{"$f":"'2 REPAIR ESTIMATOR'!S965","v":"ea"},{"$f":"'2 REPAIR ESTIMATOR'!X965","v":{"v":175,"d":"$175.00"}},{"$f":"'2 REPAIR ESTIMATOR'!AG965","v":0},{"$f":"T('2 REPAIR ESTIMATOR'!AX965)","v":""},{"$f":"T('2 REPAIR ESTIMATOR'!AY965)","v":""},null,0,0,0,0]
[{"$nulls":9},{"$f":"T('2 REPAIR ESTIMATOR'!D966:O966)","v":"Appliance delivery"},{"$f":"'2 REPAIR ESTIMATOR'!P966","v":0},{"$f":"'2 REPAIR ESTIMATOR'!S966","v":"ea"},{"$f":"'2 REPAIR ESTIMATOR'!X966","v":{"v":75,"d":"$75.00"}},{"$f":"'2 REPAIR ESTIMATOR'!AG966","v":0},{"$f":"T('2 REPAIR ESTIMATOR'!AX966)","v":""},{"$f":"T('2 REPAIR ESTIMATOR'!AY966)","v":""},null,0,0,0,0]
[{"$nulls":9},{"$f":"T('2 REPAIR ESTIMATOR'!D967:O967)","v":""},{"$f":"'2 REPAIR ESTIMATOR'!P967","v":0},{"$f":"'2 REPAIR ESTIMATOR'!S967","v":0},{"$f":"'2 REPAIR ESTIMATOR'!X967","v":{"v":0,"d":"$0.00"}},{"$f":"'2 REPAIR ESTIMATOR'!AG967","v":0},{"$f":"T('2 REPAIR ESTIMATOR'!AX967)","v":""},{"$f":"T('2 REPAIR ESTIMATOR'!AY967)","v":""},null,0,0,0,0]
[{"$nulls":9},{"$f":"T('2 REPAIR ESTIMATOR'!D968:O968)","v":""},{"$f":"'2 REPAIR ESTIMATOR'!P968","v":0},{"$f":"'2 REPAIR ESTIMATOR'!S968","v":0},{"$f":"'2 REPAIR ESTIMATOR'!X968","v":{"v":0,"d":"$0.00"}},{"$f":"'2 REPAIR ESTIMATOR'!AG968","v":0},{"$f":"T('2 REPAIR ESTIMATOR'!AX968)","v":""},{"$f":"T('2 REPAIR ESTIMATOR'!AY968)","v":""},null,0,0,0,0]
[{"$nulls":9},{"$f":"T('2 REPAIR ESTIMATOR'!D969:O969)","v":"Appliances, Detailed, High End"},{"$f":"'2 REPAIR ESTIMATOR'!P969","v":0},{"$f":"'2 REPAIR ESTIMATOR'!S969","v":0},{"$f":"'2 REPAIR ESTIMATOR'!X969","v":{"v":0,"d":"$0.00"}},{"$f":"'2 REPAIR ESTIMATOR'!AG969","v":0},{"$f":"T('2 REPAIR ESTIMATOR'!AX969)","v":""},{"$f":"T('2 REPAIR ESTIMATOR'!AY969)","v":""},null,0,0,0,0]
[{"$nulls":9},{"$f":"T('2 REPAIR ESTIMATOR'!D970:O970)","v":"Refrigerator, high end"},{"$f":"'2 REPAIR ESTIMATOR'!P970","v":0},{"$f":"'2 REPAIR ESTIMATOR'!S970","v":"ea"},{"$f":"'2 REPAIR ESTIMATOR'!X970","v":{"v":3000,"d":"$3,000.00"}},{"$f":"'2 REPAIR ESTIMATOR'!AG970","v":0},{"$f":"T('2 REPAIR ESTIMATOR'!AX970)","v":""},{"$f":"T('2 REPAIR ESTIMATOR'!AY970)","v":""},null,0,0,0,0]
[{"$nulls":9},{"$f":"T('2 REPAIR ESTIMATOR'!D971:O971)","v":"Range, high end"},{"$f":"'2 REPAIR ESTIMATOR'!P971","v":0},{"$f":"'2 REPAIR ESTIMATOR'!S971","v":"ea"},{"$f":"'2 REPAIR ESTIMATOR'!X971","v":{"v":2000,"d":"$2,000.00"}},{"$f":"'2 REPAIR ESTIMATOR'!AG971","v":0},{"$f":"T('2 REPAIR ESTIMATOR'!AX971)","v":""},{"$f":"T('2 REPAIR ESTIMATOR'!AY971)","v":""},null,0,0,0,0]
[{"$nulls":9},{"$f":"T('2 REPAIR ESTIMATOR'!D972:O972)","v":"Range Hood, high end"},{"$f":"'2 REPAIR ESTIMATOR'!P972","v":0},{"$f":"'2 REPAIR ESTIMATOR'!S972","v":"ea"},{"$f":"'2 REPAIR ESTIMATOR'!X972","v":{"v":750,"d":"$750.00"}},{"$f":"'2 REPAIR ESTIMATOR'!AG972","v":0},{"$f":"T('2 REPAIR ESTIMATOR'!AX972)","v":""},{"$f":"T('2 REPAIR ESTIMATOR'!AY972)","v":""},null,0,0,0,0]
[{"$nulls":9},{"$f":"T('2 REPAIR ESTIMATOR'!D973:O973)","v":"Dishwasher, high end"},{"$f":"'2 REPAIR ESTIMATOR'!P973","v":0},{"$f":"'2 REPAIR ESTIMATOR'!S973","v":"ea"},{"$f":"'2 REPAIR ESTIMATOR'!X973","v":{"v":1250,"d":"$1,250.00"}},{"$f":"'2 REPAIR ESTIMATOR'!AG973","v":0},{"$f":"T('2 REPAIR ESTIMATOR'!AX973)","v":""},{"$f":"T('2 REPAIR ESTIMATOR'!AY973)","v":""},null,0,0,0,0]
[{"$nulls":9},{"$f":"T('2 REPAIR ESTIMATOR'!D974:O974)","v":"Microwave, high end"},{"$f":"'2 REPAIR ESTIMATOR'!P974","v":0},{"$f":"'2 REPAIR ESTIMATOR'!S974","v":"ea"},{"$f":"'2 REPAIR ESTIMATOR'!X974","v":{"v":400,"d":"$400.00"}},{"$f":"'2 REPAIR ESTIMATOR'!AG974","v":0},{"$f":"T('2 REPAIR ESTIMATOR'!AX974)","v":""},{"$f":"T('2 REPAIR ESTIMATOR'!AY974)","v":""},null,0,0,0,0]
[{"$nulls":9},{"$f":"T('2 REPAIR ESTIMATOR'!D975:O975)","v":"Appliance delivery"},{"$f":"'2 REPAIR ESTIMATOR'!P975","v":0},{"$f":"'2 REPAIR ESTIMATOR'!S975","v":"ea"},{"$f":"'2 REPAIR ESTIMATOR'!X975","v":{"v":75,"d":"$75.00"}},{"$f":"'2 REPAIR ESTIMATOR'!AG975","v":0},{"$f":"T('2 REPAIR ESTIMATOR'!AX975)","v":""},{"$f":"T('2 REPAIR ESTIMATOR'!AY975)","v":""},null,0,0,0,0]
[{"$nulls":9},{"$f":"T('2 REPAIR ESTIMATOR'!D976:O976)","v":""},{"$f":"'2 REPAIR ESTIMATOR'!P976","v":0},{"$f":"'2 REPAIR ESTIMATOR'!S976","v":0},{"$f":"'2 REPAIR ESTIMATOR'!X976","v":{"v":0,"d":"$0.00"}},{"$f":"'2 REPAIR ESTIMATOR'!AG976","v":0},{"$f":"T('2 REPAIR ESTIMATOR'!AX976)","v":""},{"$f":"T('2 REPAIR ESTIMATOR'!AY976)","v":""},null,0,0,0,0]
[{"$nulls":9},{"$f":"T('2 REPAIR ESTIMATOR'!D977:O977)","v":""},{"$f":"'2 REPAIR ESTIMATOR'!P977","v":0},{"$f":"'2 REPAIR ESTIMATOR'!S977","v":0},{"$f":"'2 REPAIR ESTIMATOR'!X977","v":{"v":0,"d":"$0.00"}},{"$f":"'2 REPAIR ESTIMATOR'!AG977","v":0},{"$f":"T('2 REPAIR ESTIMATOR'!AX977)","v":""},{"$f":"T('2 REPAIR ESTIMATOR'!AY977)","v":""},null,0,0,0,0]
[{"$nulls":9},{"$f":"T('2 REPAIR ESTIMATOR'!D978:O978)","v":""},{"$f":"'2 REPAIR ESTIMATOR'!P978","v":0},{"$f":"'2 REPAIR ESTIMATOR'!S978","v":0},{"$f":"'2 REPAIR ESTIMATOR'!X978","v":{"v":0,"d":"$0.00"}},{"$f":"'2 REPAIR ESTIMATOR'!AG978","v":0},{"$f":"T('2 REPAIR ESTIMATOR'!AX978)","v":""},{"$f":"T('2 REPAIR ESTIMATOR'!AY978)","v":""},null,0,0,0,0]
[{"$nulls":9},{"$f":"T('2 REPAIR ESTIMATOR'!D979:O979)","v":""},{"$f":"'2 REPAIR ESTIMATOR'!P979","v":0},{"$f":"'2 REPAIR ESTIMATOR'!S979","v":0},{"$f":"'2 REPAIR ESTIMATOR'!X979","v":{"v":0,"d":"$0.00"}},{"$f":"'2 REPAIR ESTIMATOR'!AG979","v":0},{"$f":"T('2 REPAIR ESTIMATOR'!AX979)","v":""},{"$f":"T('2 REPAIR ESTIMATOR'!AY979)","v":""},null,0,0,0,0]
[{"$nulls":9},{"$f":"T('2 REPAIR ESTIMATOR'!D980:O980)","v":""},{"$f":"'2 REPAIR ESTIMATOR'!P980","v":0},{"$f":"'2 REPAIR ESTIMATOR'!S980","v":0},{"$f":"'2 REPAIR ESTIMATOR'!X980","v":{"v":0,"d":"$0.00"}},{"$f":"'2 REPAIR ESTIMATOR'!AG980","v":0},{"$f":"T('2 REPAIR ESTIMATOR'!AX980)","v":""},{"$f":"T('2 REPAIR ESTIMATOR'!AY980)","v":""},null,0,0,0,0]
[{"$nulls":9},{"$f":"T('2 REPAIR ESTIMATOR'!D981:O981)","v":""},{"$f":"'2 REPAIR ESTIMATOR'!P981","v":0},{"$f":"'2 REPAIR ESTIMATOR'!S981","v":0},{"$f":"'2 REPAIR ESTIMATOR'!X981","v":{"v":0,"d":"$0.00"}},{"$f":"'2 REPAIR ESTIMATOR'!AG981","v":0},{"$f":"T('2 REPAIR ESTIMATOR'!AX981)","v":""},{"$f":"T('2 REPAIR ESTIMATOR'!AY981)","v":""},null,0,0,0,0]
[{"$nulls":9},{"$f":"T('2 REPAIR ESTIMATOR'!D982:O982)","v":""},{"$f":"'2 REPAIR ESTIMATOR'!P982","v":0},{"$f":"'2 REPAIR ESTIMATOR'!S982","v":0},{"$f":"'2 REPAIR ESTIMATOR'!X982","v":{"v":0,"d":"$0.00"}},{"$f":"'2 REPAIR ESTIMATOR'!AG982","v":0},{"$f":"T('2 REPAIR ESTIMATOR'!AX982)","v":""},{"$f":"T('2 REPAIR ESTIMATOR'!AY982)","v":""},null,0,0,0,0]
[{"$nulls":12},{"$f":"CONCATENATE(J1069,\" \",\"TOTAL\")","v":"APPLIANCES TOTAL"},{"$f":"SUBTOTAL(9,N1070:N1109)","v":{"v":3210,"d":"$3,210.00"}},{"$nulls":3},{"$f":"SUM(R1070:R1109)","v":1},{"$f":"SUM(S1070:S1109)","v":0},{"$f":"SUM(T1070:T1109)","v":0},{"$f":"SUM(U1070:U1109)","v":1}]
[{"$nulls":9},{"$f":"T(#REF!)","v":{"$error":"#REF!"}},{"$f":"#REF!","v":{"$error":"#REF!"}},{"$f":"#REF!","v":{"$error":"#REF!"}},{"$f":"#REF!","v":{"$error":"#REF!"}},{"$f":"#REF!","v":{"$error":"#REF!"}},{"$nulls":3},{"$f":"R1110","v":1},{"$f":"S1110","v":0},{"$f":"T1110","v":0},{"$f":"U1110","v":1}]
[{"$nulls":9},{"$f":"CONCATENATE(\"MISCELLANEOUS \",J1069,\" MATERIAL ITEMS\")","v":"MISCELLANEOUS APPLIANCES MATERIAL ITEMS"},{"$nulls":4},"Store","SKU #",null,{"$f":"SUM(R1113:R1122)*R1069","v":{"$error":"#REF!"}},{"$f":"SUM(S1113:S1122)","v":0},{"$f":"SUM(T1113:T1122)","v":0},{"$f":"SUM(U1113:U1122)","v":{"$error":"#REF!"}}]
[{"$nulls":9},"1. Refrigerator water supply line",{"$nulls":7},{"$f":"IF(OR(G1113=\"x\",J1113>0),1,0)*R1069","v":{"$error":"#REF!"}},{"$f":"IF(G1113=\"x\",1,0)","v":0},{"$f":"IF(H1113=\"x\",1,0)","v":0},{"$f":"IF(AND(R1113=1,T1113<>1),1,0)","v":{"$error":"#REF!"}}]
[{"$nulls":9},"2. Range appliance wire",{"$nulls":7},{"$f":"IF(OR(G1114=\"x\",J1114>0),1,0)*R1069","v":{"$error":"#REF!"}},0,0,{"$error":"#REF!"}]
[{"$nulls":9},"3. Dishwasher water supply/discharge hose",{"$nulls":7},{"$f":"IF(OR(G1115=\"x\",J1115>0),1,0)*R1069","v":{"$error":"#REF!"}},0,0,{"$error":"#REF!"}]
[{"$nulls":17},{"$f":"IF(OR(G1116=\"x\",J1116>0),1,0)*R1069","v":{"$error":"#REF!"}},0,0,{"$error":"#REF!"}]
[{"$nulls":17},{"$f":"IF(OR(G1117=\"x\",J1117>0),1,0)*R1069","v":{"$error":"#REF!"}},0,0,{"$error":"#REF!"}]
[{"$nulls":17},{"$f":"IF(OR(G1118=\"x\",J1118>0),1,0)*R1069","v":{"$error":"#REF!"}},0,0,{"$error":"#REF!"}]
[{"$nulls":17},{"$f":"IF(OR(G1119=\"x\",J1119>0),1,0)*R1069","v":{"$error":"#REF!"}},0,0,{"$error":"#REF!"}]
[{"$nulls":17},{"$f":"IF(OR(G1120=\"x\",J1120>0),1,0)*R1069","v":{"$error":"#REF!"}},0,0,{"$error":"#REF!"}]
[{"$nulls":17},{"$f":"IF(OR(G1121=\"x\",J1121>0),1,0)*R1069","v":{"$error":"#REF!"}},0,0,{"$error":"#REF!"}]
[{"$nulls":17},{"$f":"IF(OR(G1122=\"x\",J1122>0),1,0)*R1069","v":{"$error":"#REF!"}},0,0,{"$error":"#REF!"}]
[{"$nulls":9},{"$f":"T(#REF!)","v":{"$error":"#REF!"}},{"$f":"#REF!","v":{"$error":"#REF!"}},{"$f":"#REF!","v":{"$error":"#REF!"}},{"$f":"#REF!","v":{"$error":"#REF!"}},{"$f":"#REF!","v":{"$error":"#REF!"}},{"$nulls":3},{"$f":"R1112*R1069","v":{"$error":"#REF!"}},{"$f":"S1112","v":0},{"$f":"T1112","v":0},{"$f":"U1112","v":{"$error":"#REF!"}}]
[{"$nulls":9},{"$f":"T('2 REPAIR ESTIMATOR'!D987:O987)","v":"PLUMBING"},{"$f":"#REF!","v":{"$error":"#REF!"}},{"$f":"#REF!","v":{"$error":"#REF!"}},{"$f":"#REF!","v":{"$error":"#REF!"}},{"$f":"#REF!","v":{"$error":"#REF!"}},{"$nulls":3},{"$f":"IF(SUM(R1125:R1178)>0,1,0)","v":{"$error":"#REF!"}},{"$f":"SUM(S1125:S1178)","v":0},{"$f":"SUM(T1125:T1178)","v":0},{"$f":"SUM(U1125:U1178)","v":{"$error":"#REF!"}}]
[{"$nulls":9},{"$f":"T('2 REPAIR ESTIMATOR'!D988:O988)","v":"Plumbing, bid/allowance"},{"$f":"'2 REPAIR ESTIMATOR'!P988","v":0},{"$f":"'2 REPAIR ESTIMATOR'!S988","v":"ls"},{"$f":"'2 REPAIR ESTIMATOR'!X988","v":{"v":3500,"d":"$3,500.00"}},{"$f":"'2 REPAIR ESTIMATOR'!AG988","v":0},{"$f":"T('2 REPAIR ESTIMATOR'!AX988)","v":""},{"$f":"T('2 REPAIR ESTIMATOR'!AY988)","v":""},null,{"$f":"IF(OR(G1125=\"x\",N1125>0),1,0)","v":0},{"$f":"IF(G1125=\"x\",1,0)","v":0},{"$f":"IF(H1125=\"x\",1,0)","v":0},{"$f":"IF(AND(R1125=1,T1125<>1),1,0)","v":0}]
[{"$nulls":9},{"$f":"T('2 REPAIR ESTIMATOR'!D989:O989)","v":"Miscellaneous Plumbing"},{"$f":"'2 REPAIR ESTIMATOR'!P989","v":0},{"$f":"'2 REPAIR ESTIMATOR'!S989","v":"ls"},{"$f":"'2 REPAIR ESTIMATOR'!X989","v":{"v":0,"d":"$0.00"}},{"$f":"'2 REPAIR ESTIMATOR'!AG989","v":0},{"$f":"T('2 REPAIR ESTIMATOR'!AX989)","v":""},{"$f":"T('2 REPAIR ESTIMATOR'!AY989)","v":""},null,{"$f":"IF(OR(G1126=\"x\",N1126>0),1,0)","v":0},{"$f":"IF(G1126=\"x\",1,0)","v":0},{"$f":"IF(H1126=\"x\",1,0)","v":0},{"$f":"IF(AND(R1126=1,T1126<>1),1,0)","v":0}]
[{"$nulls":9},{"$f":"T('2 REPAIR ESTIMATOR'!D990:O990)","v":"Plumbing rough-in, per hour"},{"$f":"'2 REPAIR ESTIMATOR'!P990","v":2},{"$f":"'2 REPAIR ESTIMATOR'!S990","v":"hrs"},{"$f":"'2 REPAIR ESTIMATOR'!X990","v":{"v":0,"d":"$0.00"}},{"$f":"'2 REPAIR ESTIMATOR'!AG990","v":0},{"$f":"T('2 REPAIR ESTIMATOR'!AX990)","v":""},{"$f":"T('2 REPAIR ESTIMATOR'!AY990)","v":""},null,0,0,0,0]
[{"$nulls":9},{"$f":"T('2 REPAIR ESTIMATOR'!D991:O991)","v":"Concrete demo for below slab rough-in"},{"$f":"'2 REPAIR ESTIMATOR'!P991","v":0},{"$f":"'2 REPAIR ESTIMATOR'!S991","v":"sf"},{"$f":"'2 REPAIR ESTIMATOR'!X991","v":{"v":0,"d":"$0.00"}},{"$f":"'2 REPAIR ESTIMATOR'!AG991","v":0},{"$f":"T('2 REPAIR ESTIMATOR'!AX991)","v":""},{"$f":"T('2 REPAIR ESTIMATOR'!AY991)","v":""},null,0,0,0,0]
[{"$nulls":9},{"$f":"T('2 REPAIR ESTIMATOR'!D992:O992)","v":"Plumbing finish work, per hour"},{"$f":"'2 REPAIR ESTIMATOR'!P992","v":0},{"$f":"'2 REPAIR ESTIMATOR'!S992","v":"hrs"},{"$f":"'2 REPAIR ESTIMATOR'!X992","v":{"v":0,"d":"$0.00"}},{"$f":"'2 REPAIR ESTIMATOR'!AG992","v":0},{"$f":"T('2 REPAIR ESTIMATOR'!AX992)","v":""},{"$f":"T('2 REPAIR ESTIMATOR'!AY992)","v":""},null,0,0,0,0]
[{"$nulls":9},{"$f":"T('2 REPAIR ESTIMATOR'!D993:O993)","v":"Replace gas hot water heater, 40 gallon"},{"$f":"'2 REPAIR ESTIMATOR'!P993","v":0},{"$f":"'2 REPAIR ESTIMATOR'!S993","v":"ea"},{"$f":"'2 REPAIR ESTIMATOR'!X993","v":{"v":350,"d":"$350.00"}},{"$f":"'2 REPAIR ESTIMATOR'!AG993","v":0},{"$f":"T('2 REPAIR ESTIMATOR'!AX993)","v":""},{"$f":"T('2 REPAIR ESTIMATOR'!AY993)","v":""},null,0,0,0,0]
[{"$nulls":9},{"$f":"T('2 REPAIR ESTIMATOR'!D994:O994)","v":"Kitchen"},{"$f":"'2 REPAIR ESTIMATOR'!P994","v":0},{"$f":"'2 REPAIR ESTIMATOR'!S994","v":0},{"$f":"'2 REPAIR ESTIMATOR'!X994","v":{"v":0,"d":"$0.00"}},{"$f":"'2 REPAIR ESTIMATOR'!AG994","v":0},{"$f":"T('2 REPAIR ESTIMATOR'!AX994)","v":""},{"$f":"T('2 REPAIR ESTIMATOR'!AY994)","v":""},null,0,0,0,0]
[{"$nulls":9},{"$f":"T('2 REPAIR ESTIMATOR'!D995:O995)","v":"Kitchen faucet fixture"},{"$f":"'2 REPAIR ESTIMATOR'!P995","v":1},{"$f":"'2 REPAIR ESTIMATOR'!S995","v":"ea"},{"$f":"'2 REPAIR ESTIMATOR'!X995","v":{"v":150,"d":"$150.00"}},{"$f":"'2 REPAIR ESTIMATOR'!AG995","v":{"v":160.5,"d":"$160.50"}},{"$f":"T('2 REPAIR ESTIMATOR'!AX995)","v":""},{"$f":"T('2 REPAIR ESTIMATOR'!AY995)","v":""},null,1,0,0,1]
[{"$nulls":9},{"$f":"T('2 REPAIR ESTIMATOR'!D996:O996)","v":"Garbage disposal"},{"$f":"'2 REPAIR ESTIMATOR'!P996","v":1},{"$f":"'2 REPAIR ESTIMATOR'!S996","v":"ea"},{"$f":"'2 REPAIR ESTIMATOR'!X996","v":{"v":100,"d":"$100.00"}},{"$f":"'2 REPAIR ESTIMATOR'!AG996","v":{"v":107,"d":"$107.00"}},{"$f":"T('2 REPAIR ESTIMATOR'!AX996)","v":""},{"$f":"T('2 REPAIR ESTIMATOR'!AY996)","v":""},null,1,0,0,1]
[{"$nulls":9},{"$f":"T('2 REPAIR ESTIMATOR'!D997:O997)","v":"Hookup dishwasher"},{"$f":"'2 REPAIR ESTIMATOR'!P997","v":1},{"$f":"'2 REPAIR ESTIMATOR'!S997","v":"ea"},{"$f":"'2 REPAIR ESTIMATOR'!X997","v":{"v":25,"d":"$25.00"}},{"$f":"'2 REPAIR ESTIMATOR'!AG997","v":{"v":26.75,"d":"$26.75"}},{"$f":"T('2 REPAIR ESTIMATOR'!AX997)","v":""},{"$f":"T('2 REPAIR ESTIMATOR'!AY997)","v":""},null,1,0,0,1]
[{"$nulls":9},{"$f":"T('2 REPAIR ESTIMATOR'!D998:O998)","v":"Water supply line for refrigerator"},{"$f":"'2 REPAIR ESTIMATOR'!P998","v":1},{"$f":"'2 REPAIR ESTIMATOR'!S998","v":"ea"},{"$f":"'2 REPAIR ESTIMATOR'!X998","v":{"v":25,"d":"$25.00"}},{"$f":"'2 REPAIR ESTIMATOR'!AG998","v":{"v":26.75,"d":"$26.75"}},{"$f":"T('2 REPAIR ESTIMATOR'!AX998)","v":""},{"$f":"T('2 REPAIR ESTIMATOR'!AY998)","v":""},null,1,0,0,1]
[{"$nulls":9},{"$f":"T('2 REPAIR ESTIMATOR'!D999:O999)","v":"Bathrooms"},{"$f":"'2 REPAIR ESTIMATOR'!P999","v":0},{"$f":"'2 REPAIR ESTIMATOR'!S999","v":0},{"$f":"'2 REPAIR ESTIMATOR'!X999","v":{"v":0,"d":"$0.00"}},{"$f":"'2 REPAIR ESTIMATOR'!AG999","v":0},{"$f":"T('2 REPAIR ESTIMATOR'!AX999)","v":""},{"$f":"T('2 REPAIR ESTIMATOR'!AY999)","v":""},null,0,0,0,0]
[{"$nulls":9},{"$f":"T('2 REPAIR ESTIMATOR'!D1000:O1000)","v":"Bathroom faucet fixture"},{"$f":"'2 REPAIR ESTIMATOR'!P1000","v":2},{"$f":"'2 REPAIR ESTIMATOR'!S1000","v":"ea"},{"$f":"'2 REPAIR ESTIMATOR'!X1000","v":{"v":125,"d":"$125.00"}},{"$f":"'2 REPAIR ESTIMATOR'!AG1000","v":{"v":267.5,"d":"$267.50"}},{"$f":"T('2 REPAIR ESTIMATOR'!AX1000)","v":""},{"$f":"T('2 REPAIR ESTIMATOR'!AY1000)","v":""},null,1,0,0,1]
[{"$nulls":9},{"$f":"T('2 REPAIR ESTIMATOR'!D1001:O1001)","v":"Fiberglass shower stall"},{"$f":"'2 REPAIR ESTIMATOR'!P1001","v":0},{"$f":"'2 REPAIR ESTIMATOR'!S1001","v":"ea"},{"$f":"'2 REPAIR ESTIMATOR'!X1001","v":{"v":300,"d":"$300.00"}},{"$f":"'2 REPAIR ESTIMATOR'!AG1001","v":0},{"$f":"T('2 REPAIR ESTIMATOR'!AX1001)","v":""},{"$f":"T('2 REPAIR ESTIMATOR'!AY1001)","v":""},null,0,0,0,0]
[{"$nulls":9},{"$f":"T('2 REPAIR ESTIMATOR'!D1002:O1002)","v":"Fiberglass tub"},{"$f":"'2 REPAIR ESTIMATOR'!P1002","v":2},{"$f":"'2 REPAIR ESTIMATOR'!S1002","v":"ea"},{"$f":"'2 REPAIR ESTIMATOR'!X1002","v":{"v":300,"d":"$300.00"}},{"$f":"'2 REPAIR ESTIMATOR'!AG1002","v":{"v":642,"d":"$642.00"}},{"$f":"T('2 REPAIR ESTIMATOR'!AX1002)","v":""},{"$f":"T('2 REPAIR ESTIMATOR'!AY1002)","v":""},null,1,0,0,1]
[{"$nulls":9},{"$f":"T('2 REPAIR ESTIMATOR'!D1003:O1003)","v":"Fiberglass tub/shower surround"},{"$f":"'2 REPAIR ESTIMATOR'!P1003","v":0},{"$f":"'2 REPAIR ESTIMATOR'!S1003","v":"ea"},{"$f":"'2 REPAIR ESTIMATOR'!X1003","v":{"v":400,"d":"$400.00"}},{"$f":"'2 REPAIR ESTIMATOR'!AG1003","v":0},{"$f":"T('2 REPAIR ESTIMATOR'!AX1003)","v":""},{"$f":"T('2 REPAIR ESTIMATOR'!AY1003)","v":""},null,0,0,0,0]
[{"$nulls":9},{"$f":"T('2 REPAIR ESTIMATOR'!D1004:O1004)","v":"Showerhead/tub kit"},{"$f":"'2 REPAIR ESTIMATOR'!P1004","v":2},{"$f":"'2 REPAIR ESTIMATOR'!S1004","v":"ea"},{"$f":"'2 REPAIR ESTIMATOR'!X1004","v":{"v":150,"d":"$150.00"}},{"$f":"'2 REPAIR ESTIMATOR'!AG1004","v":{"v":321,"d":"$321.00"}},{"$f":"T('2 REPAIR ESTIMATOR'!AX1004)","v":""},{"$f":"T('2 REPAIR ESTIMATOR'!AY1004)","v":""},null,1,0,0,1]
[{"$nulls":9},{"$f":"T('2 REPAIR ESTIMATOR'!D1005:O1005)","v":"Toilets"},{"$f":"'2 REPAIR ESTIMATOR'!P1005","v":2},{"$f":"'2 REPAIR ESTIMATOR'!S1005","v":"ea"},{"$f":"'2 REPAIR ESTIMATOR'!X1005","v":{"v":125,"d":"$125.00"}},{"$f":"'2 REPAIR ESTIMATOR'!AG1005","v":{"v":267.5,"d":"$267.50"}},{"$f":"T('2 REPAIR ESTIMATOR'!AX1005)","v":""},{"$f":"T('2 REPAIR ESTIMATOR'!AY1005)","v":""},null,1,0,0,1]
[{"$nulls":9},{"$f":"T('2 REPAIR ESTIMATOR'!D1006:O1006)","v":"Toilet seats"},{"$f":"'2 REPAIR ESTIMATOR'!P1006","v":0},{"$f":"'2 REPAIR ESTIMATOR'!S1006","v":"ea"},{"$f":"'2 REPAIR ESTIMATOR'!X1006","v":{"v":20,"d":"$20.00"}},{"$f":"'2 REPAIR ESTIMATOR'!AG1006","v":0},{"$f":"T('2 REPAIR ESTIMATOR'!AX1006)","v":""},{"$f":"T('2 REPAIR ESTIMATOR'!AY1006)","v":""},null,0,0,0,0]
[{"$nulls":9},{"$f":"T('2 REPAIR ESTIMATOR'!D1007:O1007)","v":"Pedestal sink"},{"$f":"'2 REPAIR ESTIMATOR'!P1007","v":0},{"$f":"'2 REPAIR ESTIMATOR'!S1007","v":"ea"},{"$f":"'2 REPAIR ESTIMATOR'!X1007","v":{"v":250,"d":"$250.00"}},{"$f":"'2 REPAIR ESTIMATOR'!AG1007","v":0},{"$f":"T('2 REPAIR ESTIMATOR'!AX1007)","v":""},{"$f":"T('2 REPAIR ESTIMATOR'!AY1007)","v":""},null,0,0,0,0]
[{"$nulls":9},{"$f":"T('2 REPAIR ESTIMATOR'!D1008:O1008)","v":""},{"$f":"'2 REPAIR ESTIMATOR'!P1008","v":0},{"$f":"'2 REPAIR ESTIMATOR'!S1008","v":0},{"$f":"'2 REPAIR ESTIMATOR'!X1008","v":{"v":0,"d":"$0.00"}},{"$f":"'2 REPAIR ESTIMATOR'!AG1008","v":0},{"$f":"T('2 REPAIR ESTIMATOR'!AX1008)","v":""},{"$f":"T('2 REPAIR ESTIMATOR'!AY1008)","v":""},null,0,0,0,0]
[{"$nulls":9},{"$f":"T('2 REPAIR ESTIMATOR'!D1009:O1009)","v":""},{"$f":"'2 REPAIR ESTIMATOR'!P1009","v":0},{"$f":"'2 REPAIR ESTIMATOR'!S1009","v":0},{"$f":"'2 REPAIR ESTIMATOR'!X1009","v":{"v":0,"d":"$0.00"}},{"$f":"'2 REPAIR ESTIMATOR'!AG1009","v":0},{"$f":"T('2 REPAIR ESTIMATOR'!AX1009)","v":""},{"$f":"T('2 REPAIR ESTIMATOR'!AY1009)","v":""},null,0,0,0,0]
[{"$nulls":9},{"$f":"T('2 REPAIR ESTIMATOR'!D1010:O1010)","v":""},{"$f":"'2 REPAIR ESTIMATOR'!P1010","v":0},{"$f":"'2 REPAIR ESTIMATOR'!S1010","v":0},{"$f":"'2 REPAIR ESTIMATOR'!X1010","v":{"v":0,"d":"$0.00"}},{"$f":"'2 REPAIR ESTIMATOR'!AG1010","v":0},{"$f":"T('2 REPAIR ESTIMATOR'!AX1010)","v":""},{"$f":"T('2 REPAIR ESTIMATOR'!AY1010)","v":""},null,0,0,0,0]
[{"$nulls":9},{"$f":"T('2 REPAIR ESTIMATOR'!D1011:O1011)","v":""},{"$f":"'2 REPAIR ESTIMATOR'!P1011","v":0},{"$f":"'2 REPAIR ESTIMATOR'!S1011","v":0},{"$f":"'2 REPAIR ESTIMATOR'!X1011","v":{"v":0,"d":"$0.00"}},{"$f":"'2 REPAIR ESTIMATOR'!AG1011","v":0},{"$f":"T('2 REPAIR ESTIMATOR'!AX1011)","v":""},{"$f":"T('2 REPAIR ESTIMATOR'!AY1011)","v":""},null,0,0,0,0]
[{"$nulls":9},{"$f":"T('2 REPAIR ESTIMATOR'!D1012:O1012)","v":""},{"$f":"'2 REPAIR ESTIMATOR'!P1012","v":0},{"$f":"'2 REPAIR ESTIMATOR'!S1012","v":0},{"$f":"'2 REPAIR ESTIMATOR'!X1012","v":{"v":0,"d":"$0.00"}},{"$f":"'2 REPAIR ESTIMATOR'!AG1012","v":0},{"$f":"T('2 REPAIR ESTIMATOR'!AX1012)","v":""},{"$f":"T('2 REPAIR ESTIMATOR'!AY1012)","v":""},null,0,0,0,0]
[{"$nulls":9},{"$f":"T('2 REPAIR ESTIMATOR'!D1013:O1013)","v":""},{"$f":"'2 REPAIR ESTIMATOR'!P1013","v":0},{"$f":"'2 REPAIR ESTIMATOR'!S1013","v":0},{"$f":"'2 REPAIR ESTIMATOR'!X1013","v":{"v":0,"d":"$0.00"}},{"$f":"'2 REPAIR ESTIMATOR'!AG1013","v":0},{"$f":"T('2 REPAIR ESTIMATOR'!AX1013)","v":""},{"$f":"T('2 REPAIR ESTIMATOR'!AY1013)","v":""},null,0,0,0,0]
[{"$nulls":9},{"$f":"T('2 REPAIR ESTIMATOR'!D1014:O1014)","v":""},{"$f":"'2 REPAIR ESTIMATOR'!P1014","v":0},{"$f":"'2 REPAIR ESTIMATOR'!S1014","v":0},{"$f":"'2 REPAIR ESTIMATOR'!X1014","v":{"v":0,"d":"$0.00"}},{"$f":"'2 REPAIR ESTIMATOR'!AG1014","v":0},{"$f":"T('2 REPAIR ESTIMATOR'!AX1014)","v":""},{"$f":"T('2 REPAIR ESTIMATOR'!AY1014)","v":""},null,0,0,0,0]
[{"$nulls":9},{"$f":"T('2 REPAIR ESTIMATOR'!D1015:O1015)","v":""},{"$f":"'2 REPAIR ESTIMATOR'!P1015","v":0},{"$f":"'2 REPAIR ESTIMATOR'!S1015","v":0},{"$f":"'2 REPAIR ESTIMATOR'!X1015","v":{"v":0,"d":"$0.00"}},{"$f":"'2 REPAIR ESTIMATOR'!AG1015","v":0},{"$f":"T('2 REPAIR ESTIMATOR'!AX1015)","v":""},{"$f":"T('2 REPAIR ESTIMATOR'!AY1015)","v":""},null,0,0,0,0]
[{"$nulls":9},{"$f":"T('2 REPAIR ESTIMATOR'!D1016:O1016)","v":""},{"$f":"'2 REPAIR ESTIMATOR'!P1016","v":0},{"$f":"'2 REPAIR ESTIMATOR'!S1016","v":0},{"$f":"'2 REPAIR ESTIMATOR'!X1016","v":{"v":0,"d":"$0.00"}},{"$f":"'2 REPAIR ESTIMATOR'!AG1016","v":0},{"$f":"T('2 REPAIR ESTIMATOR'!AX1016)","v":""},{"$f":"T('2 REPAIR ESTIMATOR'!AY1016)","v":""},null,0,0,0,0]
[{"$nulls":9},{"$f":"T('2 REPAIR ESTIMATOR'!D1017:O1017)","v":""},{"$f":"'2 REPAIR ESTIMATOR'!P1017","v":0},{"$f":"'2 REPAIR ESTIMATOR'!S1017","v":0},{"$f":"'2 REPAIR ESTIMATOR'!X1017","v":{"v":0,"d":"$0.00"}},{"$f":"'2 REPAIR ESTIMATOR'!AG1017","v":0},{"$f":"T('2 REPAIR ESTIMATOR'!AX1017)","v":""},{"$f":"T('2 REPAIR ESTIMATOR'!AY1017)","v":""},null,0,0,0,0]
[{"$nulls":9},{"$f":"T('2 REPAIR ESTIMATOR'!D1018:O1018)","v":""},{"$f":"'2 REPAIR ESTIMATOR'!P1018","v":0},{"$f":"'2 REPAIR ESTIMATOR'!S1018","v":0},{"$f":"'2 REPAIR ESTIMATOR'!X1018","v":{"v":0,"d":"$0.00"}},{"$f":"'2 REPAIR ESTIMATOR'!AG1018","v":0},{"$f":"T('2 REPAIR ESTIMATOR'!AX1018)","v":""},{"$f":"T('2 REPAIR ESTIMATOR'!AY1018)","v":""},null,0,0,0,0]
[{"$nulls":9},{"$f":"T('2 REPAIR ESTIMATOR'!D1019:O1019)","v":""},{"$f":"'2 REPAIR ESTIMATOR'!P1019","v":0},{"$f":"'2 REPAIR ESTIMATOR'!S1019","v":0},{"$f":"'2 REPAIR ESTIMATOR'!X1019","v":{"v":0,"d":"$0.00"}},{"$f":"'2 REPAIR ESTIMATOR'!AG1019","v":0},{"$f":"T('2 REPAIR ESTIMATOR'!AX1019)","v":""},{"$f":"T('2 REPAIR ESTIMATOR'!AY1019)","v":""},null,0,0,0,0]
[{"$nulls":9},{"$f":"T('2 REPAIR ESTIMATOR'!D1020:O1020)","v":""},{"$f":"'2 REPAIR ESTIMATOR'!P1020","v":0},{"$f":"'2 REPAIR ESTIMATOR'!S1020","v":0},{"$f":"'2 REPAIR ESTIMATOR'!X1020","v":{"v":0,"d":"$0.00"}},{"$f":"'2 REPAIR ESTIMATOR'!AG1020","v":0},{"$f":"T('2 REPAIR ESTIMATOR'!AX1020)","v":""},{"$f":"T('2 REPAIR ESTIMATOR'!AY1020)","v":""},null,0,0,0,0]
[{"$nulls":9},{"$f":"T('2 REPAIR ESTIMATOR'!D1021:O1021)","v":""},{"$f":"'2 REPAIR ESTIMATOR'!P1021","v":0},{"$f":"'2 REPAIR ESTIMATOR'!S1021","v":0},{"$f":"'2 REPAIR ESTIMATOR'!X1021","v":{"v":0,"d":"$0.00"}},{"$f":"'2 REPAIR ESTIMATOR'!AG1021","v":0},{"$f":"T('2 REPAIR ESTIMATOR'!AX1021)","v":""},{"$f":"T('2 REPAIR ESTIMATOR'!AY1021)","v":""},null,0,0,0,0]
[{"$nulls":9},{"$f":"T('2 REPAIR ESTIMATOR'!D1022:O1022)","v":""},{"$f":"'2 REPAIR ESTIMATOR'!P1022","v":0},{"$f":"'2 REPAIR ESTIMATOR'!S1022","v":0},{"$f":"'2 REPAIR ESTIMATOR'!X1022","v":{"v":0,"d":"$0.00"}},{"$f":"'2 REPAIR ESTIMATOR'!AG1022","v":0},{"$f":"T('2 REPAIR ESTIMATOR'!AX1022)","v":""},{"$f":"T('2 REPAIR ESTIMATOR'!AY1022)","v":""},null,0,0,0,0]
[{"$nulls":9},{"$f":"T('2 REPAIR ESTIMATOR'!D1023:O1023)","v":""},{"$f":"'2 REPAIR ESTIMATOR'!P1023","v":0},{"$f":"'2 REPAIR ESTIMATOR'!S1023","v":0},{"$f":"'2 REPAIR ESTIMATOR'!X1023","v":{"v":0,"d":"$0.00"}},{"$f":"'2 REPAIR ESTIMATOR'!AG1023","v":0},{"$f":"T('2 REPAIR ESTIMATOR'!AX1023)","v":""},{"$f":"T('2 REPAIR ESTIMATOR'!AY1023)","v":""},null,0,0,0,0]
[{"$nulls":9},{"$f":"T('2 REPAIR ESTIMATOR'!D1024:O1024)","v":""},{"$f":"'2 REPAIR ESTIMATOR'!P1024","v":0},{"$f":"'2 REPAIR ESTIMATOR'!S1024","v":0},{"$f":"'2 REPAIR ESTIMATOR'!X1024","v":{"v":0,"d":"$0.00"}},{"$f":"'2 REPAIR ESTIMATOR'!AG1024","v":0},{"$f":"T('2 REPAIR ESTIMATOR'!AX1024)","v":""},{"$f":"T('2 REPAIR ESTIMATOR'!AY1024)","v":""},null,0,0,0,0]
[{"$nulls":9},{"$f":"T('2 REPAIR ESTIMATOR'!D1025:O1025)","v":""},{"$f":"'2 REPAIR ESTIMATOR'!P1025","v":0},{"$f":"'2 REPAIR ESTIMATOR'!S1025","v":0},{"$f":"'2 REPAIR ESTIMATOR'!X1025","v":{"v":0,"d":"$0.00"}},{"$f":"'2 REPAIR ESTIMATOR'!AG1025","v":0},{"$f":"T('2 REPAIR ESTIMATOR'!AX1025)","v":""},{"$f":"T('2 REPAIR ESTIMATOR'!AY1025)","v":""},null,0,0,0,0]
[{"$nulls":9},{"$f":"T('2 REPAIR ESTIMATOR'!D1026:O1026)","v":""},{"$f":"'2 REPAIR ESTIMATOR'!P1026","v":0},{"$f":"'2 REPAIR ESTIMATOR'!S1026","v":0},{"$f":"'2 REPAIR ESTIMATOR'!X1026","v":{"v":0,"d":"$0.00"}},{"$f":"'2 REPAIR ESTIMATOR'!AG1026","v":0},{"$f":"T('2 REPAIR ESTIMATOR'!AX1026)","v":""},{"$f":"T('2 REPAIR ESTIMATOR'!AY1026)","v":""},null,0,0,0,0]
[{"$nulls":9},{"$f":"T('2 REPAIR ESTIMATOR'!D1027:O1027)","v":""},{"$f":"'2 REPAIR ESTIMATOR'!P1027","v":0},{"$f":"'2 REPAIR ESTIMATOR'!S1027","v":0},{"$f":"'2 REPAIR ESTIMATOR'!X1027","v":{"v":0,"d":"$0.00"}},{"$f":"'2 REPAIR ESTIMATOR'!AG1027","v":0},{"$f":"T('2 REPAIR ESTIMATOR'!AX1027)","v":""},{"$f":"T('2 REPAIR ESTIMATOR'!AY1027)","v":""},null,0,0,0,0]
[{"$nulls":12},{"$f":"CONCATENATE(J1124,\" \",\"TOTAL\")","v":"PLUMBING TOTAL"},{"$f":"SUBTOTAL(9,N1125:N1164)","v":{"v":1819,"d":"$1,819.00"}},{"$nulls":3},{"$f":"SUM(R1125:R1164)","v":8},{"$f":"SUM(S1125:S1164)","v":0},{"$f":"SUM(T1125:T1164)","v":0},{"$f":"SUM(U1125:U1164)","v":8}]
[{"$nulls":9},{"$f":"T(#REF!)","v":{"$error":"#REF!"}},{"$f":"#REF!","v":{"$error":"#REF!"}},{"$f":"#REF!","v":{"$error":"#REF!"}},{"$f":"#REF!","v":{"$error":"#REF!"}},{"$f":"#REF!","v":{"$error":"#REF!"}},{"$nulls":3},{"$f":"R1165","v":8},{"$f":"S1165","v":0},{"$f":"T1165","v":0},{"$f":"U1165","v":8}]
[{"$nulls":9},{"$f":"CONCATENATE(\"MISCELLANEOUS \",J1124,\" MATERIAL ITEMS\")","v":"MISCELLANEOUS PLUMBING MATERIAL ITEMS"},{"$nulls":4},"Store","SKU #",null,{"$f":"SUM(R1168:R1177)*R1124","v":{"$error":"#REF!"}},{"$f":"SUM(S1168:S1177)","v":0},{"$f":"SUM(T1168:T1177)","v":0},{"$f":"SUM(U1168:U1177)","v":{"$error":"#REF!"}}]
[{"$nulls":9},"1. Plumbing fixtures (tubs, showers, toilets, shower/tub kits, faucets)",{"$nulls":7},{"$f":"IF(OR(G1168=\"x\",J1168>0),1,0)*R1124","v":{"$error":"#REF!"}},{"$f":"IF(G1168=\"x\",1,0)","v":0},{"$f":"IF(H1168=\"x\",1,0)","v":0},{"$f":"IF(AND(R1168=1,T1168<>1),1,0)","v":{"$error":"#REF!"}}]
[{"$nulls":9},"2. Plumbing water supply piping (copper/PEX)",{"$nulls":7},{"$f":"IF(OR(G1169=\"x\",J1169>0),1,0)*R1124","v":{"$error":"#REF!"}},0,0,{"$error":"#REF!"}]
[{"$nulls":9},"3. Plumbing waste/vent piping",{"$nulls":7},{"$f":"IF(OR(G1170=\"x\",J1170>0),1,0)*R1124","v":{"$error":"#REF!"}},0,0,{"$error":"#REF!"}]
[{"$nulls":9},"4. Miscellaneous connections/valves/fittings",{"$nulls":7},{"$f":"IF(OR(G1171=\"x\",J1171>0),1,0)*R1124","v":{"$error":"#REF!"}},0,0,{"$error":"#REF!"}]
[{"$nulls":9},"5. Water supply hoses for sinks/faucets and toilets",{"$nulls":7},{"$f":"IF(OR(G1172=\"x\",J1172>0),1,0)*R1124","v":{"$error":"#REF!"}},0,0,{"$error":"#REF!"}]
[{"$nulls":9},"6. Flange and wax ring for toilets",{"$nulls":7},{"$f":"IF(OR(G1173=\"x\",J1173>0),1,0)*R1124","v":{"$error":"#REF!"}},0,0,{"$error":"#REF!"}]
[{"$nulls":9},"7. Plumber's cement and primer",{"$nulls":7},{"$f":"IF(OR(G1174=\"x\",J1174>0),1,0)*R1124","v":{"$error":"#REF!"}},0,0,{"$error":"#REF!"}]
[{"$nulls":9},"8. Soldering wire",{"$nulls":7},{"$f":"IF(OR(G1175=\"x\",J1175>0),1,0)*R1124","v":{"$error":"#REF!"}},0,0,{"$error":"#REF!"}]
[{"$nulls":9},"9. Plumber's thread tape",{"$nulls":7},{"$f":"IF(OR(G1176=\"x\",J1176>0),1,0)*R1124","v":{"$error":"#REF!"}},0,0,{"$error":"#REF!"}]
[{"$nulls":17},{"$f":"IF(OR(G1177=\"x\",J1177>0),1,0)*R1124","v":{"$error":"#REF!"}},0,0,{"$error":"#REF!"}]
[{"$nulls":9},{"$f":"T(#REF!)","v":{"$error":"#REF!"}},{"$f":"#REF!","v":{"$error":"#REF!"}},{"$f":"#REF!","v":{"$error":"#REF!"}},{"$f":"#REF!","v":{"$error":"#REF!"}},{"$f":"#REF!","v":{"$error":"#REF!"}},{"$nulls":3},{"$f":"R1167*R1124","v":{"$error":"#REF!"}},{"$f":"S1167","v":0},{"$f":"T1167","v":0},{"$f":"U1167","v":{"$error":"#REF!"}}]
[{"$nulls":9},{"$f":"T('2 REPAIR ESTIMATOR'!D1032:O1032)","v":"HVAC"},{"$f":"#REF!","v":{"$error":"#REF!"}},{"$f":"#REF!","v":{"$error":"#REF!"}},{"$f":"#REF!","v":{"$error":"#REF!"}},{"$f":"#REF!","v":{"$error":"#REF!"}},{"$nulls":3},{"$f":"IF(SUM(R1180:R1233)>0,1,0)","v":{"$error":"#REF!"}},{"$f":"SUM(S1180:S1233)","v":0},{"$f":"SUM(T1180:T1233)","v":0},{"$f":"SUM(U1180:U1233)","v":{"$error":"#REF!"}}]
[{"$nulls":9},{"$f":"T('2 REPAIR ESTIMATOR'!D1033:O1033)","v":"HVAC, bid/allowance"},{"$f":"'2 REPAIR ESTIMATOR'!P1033","v":0},{"$f":"'2 REPAIR ESTIMATOR'!S1033","v":"ls"},{"$f":"'2 REPAIR ESTIMATOR'!X1033","v":{"v":0,"d":"$0.00"}},{"$f":"'2 REPAIR ESTIMATOR'!AG1033","v":0},{"$f":"T('2 REPAIR ESTIMATOR'!AX1033)","v":""},{"$f":"T('2 REPAIR ESTIMATOR'!AY1033)","v":""},null,{"$f":"IF(OR(G1180=\"x\",N1180>0),1,0)","v":0},{"$f":"IF(G1180=\"x\",1,0)","v":0},{"$f":"IF(H1180=\"x\",1,0)","v":0},{"$f":"IF(AND(R1180=1,T1180<>1),1,0)","v":0}]
[{"$nulls":9},{"$f":"T('2 REPAIR ESTIMATOR'!D1034:O1034)","v":"HVAC Rough-In, per hour"},{"$f":"'2 REPAIR ESTIMATOR'!P1034","v":0},{"$f":"'2 REPAIR ESTIMATOR'!S1034","v":"hrs"},{"$f":"'2 REPAIR ESTIMATOR'!X1034","v":{"v":0,"d":"$0.00"}},{"$f":"'2 REPAIR ESTIMATOR'!AG1034","v":0},{"$f":"T('2 REPAIR ESTIMATOR'!AX1034)","v":""},{"$f":"T('2 REPAIR ESTIMATOR'!AY1034)","v":""},null,{"$f":"IF(OR(G1181=\"x\",N1181>0),1,0)","v":0},{"$f":"IF(G1181=\"x\",1,0)","v":0},{"$f":"IF(H1181=\"x\",1,0)","v":0},{"$f":"IF(AND(R1181=1,T1181<>1),1,0)","v":0}]
[{"$nulls":9},{"$f":"T('2 REPAIR ESTIMATOR'!D1035:O1035)","v":"HVAC Finish Work, per hour"},{"$f":"'2 REPAIR ESTIMATOR'!P1035","v":0},{"$f":"'2 REPAIR ESTIMATOR'!S1035","v":"hrs"},{"$f":"'2 REPAIR ESTIMATOR'!X1035","v":{"v":0,"d":"$0.00"}},{"$f":"'2 REPAIR ESTIMATOR'!AG1035","v":0},{"$f":"T('2 REPAIR ESTIMATOR'!AX1035)","v":""},{"$f":"T('2 REPAIR ESTIMATOR'!AY1035)","v":""},null,0,0,0,0]
[{"$nulls":9},{"$f":"T('2 REPAIR ESTIMATOR'!D1036:O1036)","v":"Replace gas fired forced air unit, 1000 sf, 60k btus"},{"$f":"'2 REPAIR ESTIMATOR'!P1036","v":0},{"$f":"'2 REPAIR ESTIMATOR'!S1036","v":"ea"},{"$f":"'2 REPAIR ESTIMATOR'!X1036","v":{"v":0,"d":"$0.00"}},{"$f":"'2 REPAIR ESTIMATOR'!AG1036","v":0},{"$f":"T('2 REPAIR ESTIMATOR'!AX1036)","v":""},{"$f":"T('2 REPAIR ESTIMATOR'!AY1036)","v":""},null,0,0,0,0]
[{"$nulls":9},{"$f":"T('2 REPAIR ESTIMATOR'!D1037:O1037)","v":"Replace gas fired forced air unit, 2,000, 80k btus"},{"$f":"'2 REPAIR ESTIMATOR'!P1037","v":0},{"$f":"'2 REPAIR ESTIMATOR'!S1037","v":"ea"},{"$f":"'2 REPAIR ESTIMATOR'!X1037","v":{"v":0,"d":"$0.00"}},{"$f":"'2 REPAIR ESTIMATOR'!AG1037","v":0},{"$f":"T('2 REPAIR ESTIMATOR'!AX1037)","v":""},{"$f":"T('2 REPAIR ESTIMATOR'!AY1037)","v":""},null,0,0,0,0]
[{"$nulls":9},{"$f":"T('2 REPAIR ESTIMATOR'!D1038:O1038)","v":"Replace gas fired forced air unit, 3,000, 100k btus"},{"$f":"'2 REPAIR ESTIMATOR'!P1038","v":0},{"$f":"'2 REPAIR ESTIMATOR'!S1038","v":"ea"},{"$f":"'2 REPAIR ESTIMATOR'!X1038","v":{"v":0,"d":"$0.00"}},{"$f":"'2 REPAIR ESTIMATOR'!AG1038","v":0},{"$f":"T('2 REPAIR ESTIMATOR'!AX1038)","v":""},{"$f":"T('2 REPAIR ESTIMATOR'!AY1038)","v":""},null,0,0,0,0]
[{"$nulls":9},{"$f":"T('2 REPAIR ESTIMATOR'!D1039:O1039)","v":"Replace air conditioning unit, ~1,000 sf, 2 ton"},{"$f":"'2 REPAIR ESTIMATOR'!P1039","v":0},{"$f":"'2 REPAIR ESTIMATOR'!S1039","v":"ea"},{"$f":"'2 REPAIR ESTIMATOR'!X1039","v":{"v":0,"d":"$0.00"}},{"$f":"'2 REPAIR ESTIMATOR'!AG1039","v":0},{"$f":"T('2 REPAIR ESTIMATOR'!AX1039)","v":""},{"$f":"T('2 REPAIR ESTIMATOR'!AY1039)","v":""},null,0,0,0,0]
[{"$nulls":9},{"$f":"T('2 REPAIR ESTIMATOR'!D1040:O1040)","v":"Replace air conditioning unit, ~2,000 sf, 3.5 ton"},{"$f":"'2 REPAIR ESTIMATOR'!P1040","v":0},{"$f":"'2 REPAIR ESTIMATOR'!S1040","v":"ea"},{"$f":"'2 REPAIR ESTIMATOR'!X1040","v":{"v":0,"d":"$0.00"}},{"$f":"'2 REPAIR ESTIMATOR'!AG1040","v":0},{"$f":"T('2 REPAIR ESTIMATOR'!AX1040)","v":""},{"$f":"T('2 REPAIR ESTIMATOR'!AY1040)","v":""},null,0,0,0,0]
[{"$nulls":9},{"$f":"T('2 REPAIR ESTIMATOR'!D1041:O1041)","v":"Replace air conditioning unit, ~3,000sf, 5 ton"},{"$f":"'2 REPAIR ESTIMATOR'!P1041","v":0},{"$f":"'2 REPAIR ESTIMATOR'!S1041","v":"ea"},{"$f":"'2 REPAIR ESTIMATOR'!X1041","v":{"v":0,"d":"$0.00"}},{"$f":"'2 REPAIR ESTIMATOR'!AG1041","v":0},{"$f":"T('2 REPAIR ESTIMATOR'!AX1041)","v":""},{"$f":"T('2 REPAIR ESTIMATOR'!AY1041)","v":""},null,0,0,0,0]
[{"$nulls":9},{"$f":"T('2 REPAIR ESTIMATOR'!D1042:O1042)","v":"Hotel type, hot/cold packaged unit"},{"$f":"'2 REPAIR ESTIMATOR'!P1042","v":0},{"$f":"'2 REPAIR ESTIMATOR'!S1042","v":"ea"},{"$f":"'2 REPAIR ESTIMATOR'!X1042","v":{"v":0,"d":"$0.00"}},{"$f":"'2 REPAIR ESTIMATOR'!AG1042","v":0},{"$f":"T('2 REPAIR ESTIMATOR'!AX1042)","v":""},{"$f":"T('2 REPAIR ESTIMATOR'!AY1042)","v":""},null,0,0,0,0]
[{"$nulls":9},{"$f":"T('2 REPAIR ESTIMATOR'!D1043:O1043)","v":"Window mounted unit"},{"$f":"'2 REPAIR ESTIMATOR'!P1043","v":0},{"$f":"'2 REPAIR ESTIMATOR'!S1043","v":"ea"},{"$f":"'2 REPAIR ESTIMATOR'!X1043","v":{"v":0,"d":"$0.00"}},{"$f":"'2 REPAIR ESTIMATOR'!AG1043","v":0},{"$f":"T('2 REPAIR ESTIMATOR'!AX1043)","v":""},{"$f":"T('2 REPAIR ESTIMATOR'!AY1043)","v":""},null,0,0,0,0]
[{"$nulls":9},{"$f":"T('2 REPAIR ESTIMATOR'!D1044:O1044)","v":"HVAC equipment tune-up/service call"},{"$f":"'2 REPAIR ESTIMATOR'!P1044","v":0},{"$f":"'2 REPAIR ESTIMATOR'!S1044","v":"ea"},{"$f":"'2 REPAIR ESTIMATOR'!X1044","v":{"v":0,"d":"$0.00"}},{"$f":"'2 REPAIR ESTIMATOR'!AG1044","v":0},{"$f":"T('2 REPAIR ESTIMATOR'!AX1044)","v":""},{"$f":"T('2 REPAIR ESTIMATOR'!AY1044)","v":""},null,0,0,0,0]
[{"$nulls":9},{"$f":"T('2 REPAIR ESTIMATOR'!D1045:O1045)","v":"Programmable thermostat"},{"$f":"'2 REPAIR ESTIMATOR'!P1045","v":1},{"$f":"'2 REPAIR ESTIMATOR'!S1045","v":"ea"},{"$f":"'2 REPAIR ESTIMATOR'!X1045","v":{"v":75,"d":"$75.00"}},{"$f":"'2 REPAIR ESTIMATOR'!AG1045","v":{"v":80.25,"d":"$80.25"}},{"$f":"T('2 REPAIR ESTIMATOR'!AX1045)","v":""},{"$f":"T('2 REPAIR ESTIMATOR'!AY1045)","v":""},null,1,0,0,1]
[{"$nulls":9},{"$f":"T('2 REPAIR ESTIMATOR'!D1046:O1046)","v":"Replace supply air grilles/returns"},{"$f":"'2 REPAIR ESTIMATOR'!P1046","v":15},{"$f":"'2 REPAIR ESTIMATOR'!S1046","v":"ea"},{"$f":"'2 REPAIR ESTIMATOR'!X1046","v":{"v":15,"d":"$15.00"}},{"$f":"'2 REPAIR ESTIMATOR'!AG1046","v":{"v":240.75,"d":"$240.75"}},{"$f":"T('2 REPAIR ESTIMATOR'!AX1046)","v":""},{"$f":"T('2 REPAIR ESTIMATOR'!AY1046)","v":""},null,1,0,0,1]
[{"$nulls":9},{"$f":"T('2 REPAIR ESTIMATOR'!D1047:O1047)","v":"Clean ductwork"},{"$f":"'2 REPAIR ESTIMATOR'!P1047","v":0},{"$f":"'2 REPAIR ESTIMATOR'!S1047","v":"ls"},{"$f":"'2 REPAIR ESTIMATOR'!X1047","v":{"v":0,"d":"$0.00"}},{"$f":"'2 REPAIR ESTIMATOR'!AG1047","v":0},{"$f":"T('2 REPAIR ESTIMATOR'!AX1047)","v":""},{"$f":"T('2 REPAIR ESTIMATOR'!AY1047)","v":""},null,0,0,0,0]
[{"$nulls":9},{"$f":"T('2 REPAIR ESTIMATOR'!D1048:O1048)","v":""},{"$f":"'2 REPAIR ESTIMATOR'!P1048","v":0},{"$f":"'2 REPAIR ESTIMATOR'!S1048","v":0},{"$f":"'2 REPAIR ESTIMATOR'!X1048","v":{"v":0,"d":"$0.00"}},{"$f":"'2 REPAIR ESTIMATOR'!AG1048","v":0},{"$f":"T('2 REPAIR ESTIMATOR'!AX1048)","v":""},{"$f":"T('2 REPAIR ESTIMATOR'!AY1048)","v":""},null,0,0,0,0]
[{"$nulls":9},{"$f":"T('2 REPAIR ESTIMATOR'!D1049:O1049)","v":""},{"$f":"'2 REPAIR ESTIMATOR'!P1049","v":0},{"$f":"'2 REPAIR ESTIMATOR'!S1049","v":0},{"$f":"'2 REPAIR ESTIMATOR'!X1049","v":{"v":0,"d":"$0.00"}},{"$f":"'2 REPAIR ESTIMATOR'!AG1049","v":0},{"$f":"T('2 REPAIR ESTIMATOR'!AX1049)","v":""},{"$f":"T('2 REPAIR ESTIMATOR'!AY1049)","v":""},null,0,0,0,0]
[{"$nulls":9},{"$f":"T('2 REPAIR ESTIMATOR'!D1050:O1050)","v":""},{"$f":"'2 REPAIR ESTIMATOR'!P1050","v":0},{"$f":"'2 REPAIR ESTIMATOR'!S1050","v":0},{"$f":"'2 REPAIR ESTIMATOR'!X1050","v":{"v":0,"d":"$0.00"}},{"$f":"'2 REPAIR ESTIMATOR'!AG1050","v":0},{"$f":"T('2 REPAIR ESTIMATOR'!AX1050)","v":""},{"$f":"T('2 REPAIR ESTIMATOR'!AY1050)","v":""},null,0,0,0,0]
[{"$nulls":9},{"$f":"T('2 REPAIR ESTIMATOR'!D1051:O1051)","v":""},{"$f":"'2 REPAIR ESTIMATOR'!P1051","v":0},{"$f":"'2 REPAIR ESTIMATOR'!S1051","v":0},{"$f":"'2 REPAIR ESTIMATOR'!X1051","v":{"v":0,"d":"$0.00"}},{"$f":"'2 REPAIR ESTIMATOR'!AG1051","v":0},{"$f":"T('2 REPAIR ESTIMATOR'!AX1051)","v":""},{"$f":"T('2 REPAIR ESTIMATOR'!AY1051)","v":""},null,0,0,0,0]
[{"$nulls":9},{"$f":"T('2 REPAIR ESTIMATOR'!D1052:O1052)","v":""},{"$f":"'2 REPAIR ESTIMATOR'!P1052","v":0},{"$f":"'2 REPAIR ESTIMATOR'!S1052","v":0},{"$f":"'2 REPAIR ESTIMATOR'!X1052","v":{"v":0,"d":"$0.00"}},{"$f":"'2 REPAIR ESTIMATOR'!AG1052","v":0},{"$f":"T('2 REPAIR ESTIMATOR'!AX1052)","v":""},{"$f":"T('2 REPAIR ESTIMATOR'!AY1052)","v":""},null,0,0,0,0]
[{"$nulls":9},{"$f":"T('2 REPAIR ESTIMATOR'!D1053:O1053)","v":""},{"$f":"'2 REPAIR ESTIMATOR'!P1053","v":0},{"$f":"'2 REPAIR ESTIMATOR'!S1053","v":0},{"$f":"'2 REPAIR ESTIMATOR'!X1053","v":{"v":0,"d":"$0.00"}},{"$f":"'2 REPAIR ESTIMATOR'!AG1053","v":0},{"$f":"T('2 REPAIR ESTIMATOR'!AX1053)","v":""},{"$f":"T('2 REPAIR ESTIMATOR'!AY1053)","v":""},null,0,0,0,0]
[{"$nulls":9},{"$f":"T('2 REPAIR ESTIMATOR'!D1054:O1054)","v":""},{"$f":"'2 REPAIR ESTIMATOR'!P1054","v":0},{"$f":"'2 REPAIR ESTIMATOR'!S1054","v":0},{"$f":"'2 REPAIR ESTIMATOR'!X1054","v":{"v":0,"d":"$0.00"}},{"$f":"'2 REPAIR ESTIMATOR'!AG1054","v":0},{"$f":"T('2 REPAIR ESTIMATOR'!AX1054)","v":""},{"$f":"T('2 REPAIR ESTIMATOR'!AY1054)","v":""},null,0,0,0,0]
[{"$nulls":9},{"$f":"T('2 REPAIR ESTIMATOR'!D1055:O1055)","v":""},{"$f":"'2 REPAIR ESTIMATOR'!P1055","v":0},{"$f":"'2 REPAIR ESTIMATOR'!S1055","v":0},{"$f":"'2 REPAIR ESTIMATOR'!X1055","v":{"v":0,"d":"$0.00"}},{"$f":"'2 REPAIR ESTIMATOR'!AG1055","v":0},{"$f":"T('2 REPAIR ESTIMATOR'!AX1055)","v":""},{"$f":"T('2 REPAIR ESTIMATOR'!AY1055)","v":""},null,0,0,0,0]
[{"$nulls":9},{"$f":"T('2 REPAIR ESTIMATOR'!D1056:O1056)","v":""},{"$f":"'2 REPAIR ESTIMATOR'!P1056","v":0},{"$f":"'2 REPAIR ESTIMATOR'!S1056","v":0},{"$f":"'2 REPAIR ESTIMATOR'!X1056","v":{"v":0,"d":"$0.00"}},{"$f":"'2 REPAIR ESTIMATOR'!AG1056","v":0},{"$f":"T('2 REPAIR ESTIMATOR'!AX1056)","v":""},{"$f":"T('2 REPAIR ESTIMATOR'!AY1056)","v":""},null,0,0,0,0]
[{"$nulls":9},{"$f":"T('2 REPAIR ESTIMATOR'!D1057:O1057)","v":""},{"$f":"'2 REPAIR ESTIMATOR'!P1057","v":0},{"$f":"'2 REPAIR ESTIMATOR'!S1057","v":0},{"$f":"'2 REPAIR ESTIMATOR'!X1057","v":{"v":0,"d":"$0.00"}},{"$f":"'2 REPAIR ESTIMATOR'!AG1057","v":0},{"$f":"T('2 REPAIR ESTIMATOR'!AX1057)","v":""},{"$f":"T('2 REPAIR ESTIMATOR'!AY1057)","v":""},null,0,0,0,0]
[{"$nulls":9},{"$f":"T('2 REPAIR ESTIMATOR'!D1058:O1058)","v":""},{"$f":"'2 REPAIR ESTIMATOR'!P1058","v":0},{"$f":"'2 REPAIR ESTIMATOR'!S1058","v":0},{"$f":"'2 REPAIR ESTIMATOR'!X1058","v":{"v":0,"d":"$0.00"}},{"$f":"'2 REPAIR ESTIMATOR'!AG1058","v":0},{"$f":"T('2 REPAIR ESTIMATOR'!AX1058)","v":""},{"$f":"T('2 REPAIR ESTIMATOR'!AY1058)","v":""},null,0,0,0,0]
[{"$nulls":9},{"$f":"T('2 REPAIR ESTIMATOR'!D1059:O1059)","v":""},{"$f":"'2 REPAIR ESTIMATOR'!P1059","v":0},{"$f":"'2 REPAIR ESTIMATOR'!S1059","v":0},{"$f":"'2 REPAIR ESTIMATOR'!X1059","v":{"v":0,"d":"$0.00"}},{"$f":"'2 REPAIR ESTIMATOR'!AG1059","v":0},{"$f":"T('2 REPAIR ESTIMATOR'!AX1059)","v":""},{"$f":"T('2 REPAIR ESTIMATOR'!AY1059)","v":""},null,0,0,0,0]
[{"$nulls":9},{"$f":"T('2 REPAIR ESTIMATOR'!D1060:O1060)","v":""},{"$f":"'2 REPAIR ESTIMATOR'!P1060","v":0},{"$f":"'2 REPAIR ESTIMATOR'!S1060","v":0},{"$f":"'2 REPAIR ESTIMATOR'!X1060","v":{"v":0,"d":"$0.00"}},{"$f":"'2 REPAIR ESTIMATOR'!AG1060","v":0},{"$f":"T('2 REPAIR ESTIMATOR'!AX1060)","v":""},{"$f":"T('2 REPAIR ESTIMATOR'!AY1060)","v":""},null,0,0,0,0]
[{"$nulls":9},{"$f":"T('2 REPAIR ESTIMATOR'!D1061:O1061)","v":""},{"$f":"'2 REPAIR ESTIMATOR'!P1061","v":0},{"$f":"'2 REPAIR ESTIMATOR'!S1061","v":0},{"$f":"'2 REPAIR ESTIMATOR'!X1061","v":{"v":0,"d":"$0.00"}},{"$f":"'2 REPAIR ESTIMATOR'!AG1061","v":0},{"$f":"T('2 REPAIR ESTIMATOR'!AX1061)","v":""},{"$f":"T('2 REPAIR ESTIMATOR'!AY1061)","v":""},null,0,0,0,0]
[{"$nulls":9},{"$f":"T('2 REPAIR ESTIMATOR'!D1062:O1062)","v":""},{"$f":"'2 REPAIR ESTIMATOR'!P1062","v":0},{"$f":"'2 REPAIR ESTIMATOR'!S1062","v":0},{"$f":"'2 REPAIR ESTIMATOR'!X1062","v":{"v":0,"d":"$0.00"}},{"$f":"'2 REPAIR ESTIMATOR'!AG1062","v":0},{"$f":"T('2 REPAIR ESTIMATOR'!AX1062)","v":""},{"$f":"T('2 REPAIR ESTIMATOR'!AY1062)","v":""},null,0,0,0,0]
[{"$nulls":9},{"$f":"T('2 REPAIR ESTIMATOR'!D1063:O1063)","v":""},{"$f":"'2 REPAIR ESTIMATOR'!P1063","v":0},{"$f":"'2 REPAIR ESTIMATOR'!S1063","v":0},{"$f":"'2 REPAIR ESTIMATOR'!X1063","v":{"v":0,"d":"$0.00"}},{"$f":"'2 REPAIR ESTIMATOR'!AG1063","v":0},{"$f":"T('2 REPAIR ESTIMATOR'!AX1063)","v":""},{"$f":"T('2 REPAIR ESTIMATOR'!AY1063)","v":""},null,0,0,0,0]
[{"$nulls":9},{"$f":"T('2 REPAIR ESTIMATOR'!D1064:O1064)","v":""},{"$f":"'2 REPAIR ESTIMATOR'!P1064","v":0},{"$f":"'2 REPAIR ESTIMATOR'!S1064","v":0},{"$f":"'2 REPAIR ESTIMATOR'!X1064","v":{"v":0,"d":"$0.00"}},{"$f":"'2 REPAIR ESTIMATOR'!AG1064","v":0},{"$f":"T('2 REPAIR ESTIMATOR'!AX1064)","v":""},{"$f":"T('2 REPAIR ESTIMATOR'!AY1064)","v":""},null,0,0,0,0]
[{"$nulls":9},{"$f":"T('2 REPAIR ESTIMATOR'!D1065:O1065)","v":""},{"$f":"'2 REPAIR ESTIMATOR'!P1065","v":0},{"$f":"'2 REPAIR ESTIMATOR'!S1065","v":0},{"$f":"'2 REPAIR ESTIMATOR'!X1065","v":{"v":0,"d":"$0.00"}},{"$f":"'2 REPAIR ESTIMATOR'!AG1065","v":0},{"$f":"T('2 REPAIR ESTIMATOR'!AX1065)","v":""},{"$f":"T('2 REPAIR ESTIMATOR'!AY1065)","v":""},null,0,0,0,0]
[{"$nulls":9},{"$f":"T('2 REPAIR ESTIMATOR'!D1066:O1066)","v":""},{"$f":"'2 REPAIR ESTIMATOR'!P1066","v":0},{"$f":"'2 REPAIR ESTIMATOR'!S1066","v":0},{"$f":"'2 REPAIR ESTIMATOR'!X1066","v":{"v":0,"d":"$0.00"}},{"$f":"'2 REPAIR ESTIMATOR'!AG1066","v":0},{"$f":"T('2 REPAIR ESTIMATOR'!AX1066)","v":""},{"$f":"T('2 REPAIR ESTIMATOR'!AY1066)","v":""},null,0,0,0,0]
[{"$nulls":9},{"$f":"T('2 REPAIR ESTIMATOR'!D1067:O1067)","v":""},{"$f":"'2 REPAIR ESTIMATOR'!P1067","v":0},{"$f":"'2 REPAIR ESTIMATOR'!S1067","v":0},{"$f":"'2 REPAIR ESTIMATOR'!X1067","v":{"v":0,"d":"$0.00"}},{"$f":"'2 REPAIR ESTIMATOR'!AG1067","v":0},{"$f":"T('2 REPAIR ESTIMATOR'!AX1067)","v":""},{"$f":"T('2 REPAIR ESTIMATOR'!AY1067)","v":""},null,0,0,0,0]
[{"$nulls":9},{"$f":"T('2 REPAIR ESTIMATOR'!D1068:O1068)","v":""},{"$f":"'2 REPAIR ESTIMATOR'!P1068","v":0},{"$f":"'2 REPAIR ESTIMATOR'!S1068","v":0},{"$f":"'2 REPAIR ESTIMATOR'!X1068","v":{"v":0,"d":"$0.00"}},{"$f":"'2 REPAIR ESTIMATOR'!AG1068","v":0},{"$f":"T('2 REPAIR ESTIMATOR'!AX1068)","v":""},{"$f":"T('2 REPAIR ESTIMATOR'!AY1068)","v":""},null,0,0,0,0]
[{"$nulls":9},{"$f":"T('2 REPAIR ESTIMATOR'!D1069:O1069)","v":""},{"$f":"'2 REPAIR ESTIMATOR'!P1069","v":0},{"$f":"'2 REPAIR ESTIMATOR'!S1069","v":0},{"$f":"'2 REPAIR ESTIMATOR'!X1069","v":{"v":0,"d":"$0.00"}},{"$f":"'2 REPAIR ESTIMATOR'!AG1069","v":0},{"$f":"T('2 REPAIR ESTIMATOR'!AX1069)","v":""},{"$f":"T('2 REPAIR ESTIMATOR'!AY1069)","v":""},null,0,0,0,0]
[{"$nulls":9},{"$f":"T('2 REPAIR ESTIMATOR'!D1070:O1070)","v":""},{"$f":"'2 REPAIR ESTIMATOR'!P1070","v":0},{"$f":"'2 REPAIR ESTIMATOR'!S1070","v":0},{"$f":"'2 REPAIR ESTIMATOR'!X1070","v":{"v":0,"d":"$0.00"}},{"$f":"'2 REPAIR ESTIMATOR'!AG1070","v":0},{"$f":"T('2 REPAIR ESTIMATOR'!AX1070)","v":""},{"$f":"T('2 REPAIR ESTIMATOR'!AY1070)","v":""},null,0,0,0,0]
[{"$nulls":9},{"$f":"T('2 REPAIR ESTIMATOR'!D1071:O1071)","v":""},{"$f":"'2 REPAIR ESTIMATOR'!P1071","v":0},{"$f":"'2 REPAIR ESTIMATOR'!S1071","v":0},{"$f":"'2 REPAIR ESTIMATOR'!X1071","v":{"v":0,"d":"$0.00"}},{"$f":"'2 REPAIR ESTIMATOR'!AG1071","v":0},{"$f":"T('2 REPAIR ESTIMATOR'!AX1071)","v":""},{"$f":"T('2 REPAIR ESTIMATOR'!AY1071)","v":""},null,0,0,0,0]
[{"$nulls":9},{"$f":"T('2 REPAIR ESTIMATOR'!D1072:O1072)","v":""},{"$f":"'2 REPAIR ESTIMATOR'!P1072","v":0},{"$f":"'2 REPAIR ESTIMATOR'!S1072","v":0},{"$f":"'2 REPAIR ESTIMATOR'!X1072","v":{"v":0,"d":"$0.00"}},{"$f":"'2 REPAIR ESTIMATOR'!AG1072","v":0},{"$f":"T('2 REPAIR ESTIMATOR'!AX1072)","v":""},{"$f":"T('2 REPAIR ESTIMATOR'!AY1072)","v":""},null,0,0,0,0]
[{"$nulls":12},{"$f":"CONCATENATE(J1179,\" \",\"TOTAL\")","v":"HVAC TOTAL"},{"$f":"SUBTOTAL(9,N1180:N1219)","v":{"v":321,"d":"$321.00"}},{"$nulls":3},{"$f":"SUM(R1180:R1219)","v":2},{"$f":"SUM(S1180:S1219)","v":0},{"$f":"SUM(T1180:T1219)","v":0},{"$f":"SUM(U1180:U1219)","v":2}]
[{"$nulls":9},{"$f":"T(#REF!)","v":{"$error":"#REF!"}},{"$f":"#REF!","v":{"$error":"#REF!"}},{"$f":"#REF!","v":{"$error":"#REF!"}},{"$f":"#REF!","v":{"$error":"#REF!"}},{"$f":"#REF!","v":{"$error":"#REF!"}},{"$nulls":3},{"$f":"R1220","v":2},{"$f":"S1220","v":0},{"$f":"T1220","v":0},{"$f":"U1220","v":2}]
[{"$nulls":9},{"$f":"CONCATENATE(\"MISCELLANEOUS \",J1179,\" MATERIAL ITEMS\")","v":"MISCELLANEOUS HVAC MATERIAL ITEMS"},{"$nulls":4},"Store","SKU #",null,{"$f":"SUM(R1223:R1232)*R1179","v":{"$error":"#REF!"}},{"$f":"SUM(S1223:S1232)","v":0},{"$f":"SUM(T1223:T1232)","v":0},{"$f":"SUM(U1223:U1232)","v":{"$error":"#REF!"}}]
[{"$nulls":9},"1. HVAC equipmment (Furnace, A/C)",{"$nulls":7},{"$f":"IF(OR(G1223=\"x\",J1223>0),1,0)*R1179","v":{"$error":"#REF!"}},{"$f":"IF(G1223=\"x\",1,0)","v":0},{"$f":"IF(H1223=\"x\",1,0)","v":0},{"$f":"IF(AND(R1223=1,T1223<>1),1,0)","v":{"$error":"#REF!"}}]
[{"$nulls":9},"2. Ductwork materials",{"$nulls":7},{"$f":"IF(OR(G1224=\"x\",J1224>0),1,0)*R1179","v":{"$error":"#REF!"}},0,0,{"$error":"#REF!"}]
[{"$nulls":9},"3. Grilles, registers and diffusers",{"$nulls":7},{"$f":"IF(OR(G1225=\"x\",J1225>0),1,0)*R1179","v":{"$error":"#REF!"}},0,0,{"$error":"#REF!"}]
[{"$nulls":9},"4. Programmable thermostat",{"$nulls":7},{"$f":"IF(OR(G1226=\"x\",J1226>0),1,0)*R1179","v":{"$error":"#REF!"}},0,0,{"$error":"#REF!"}]
[{"$nulls":9},"5. Furnace air filters",{"$nulls":7},{"$f":"IF(OR(G1227=\"x\",J1227>0),1,0)*R1179","v":{"$error":"#REF!"}},0,0,{"$error":"#REF!"}]
[{"$nulls":17},{"$f":"IF(OR(G1228=\"x\",J1228>0),1,0)*R1179","v":{"$error":"#REF!"}},0,0,{"$error":"#REF!"}]
[{"$nulls":17},{"$f":"IF(OR(G1229=\"x\",J1229>0),1,0)*R1179","v":{"$error":"#REF!"}},0,0,{"$error":"#REF!"}]
[{"$nulls":17},{"$f":"IF(OR(G1230=\"x\",J1230>0),1,0)*R1179","v":{"$error":"#REF!"}},0,0,{"$error":"#REF!"}]
[{"$nulls":17},{"$f":"IF(OR(G1231=\"x\",J1231>0),1,0)*R1179","v":{"$error":"#REF!"}},0,0,{"$error":"#REF!"}]
[{"$nulls":17},{"$f":"IF(OR(G1232=\"x\",J1232>0),1,0)*R1179","v":{"$error":"#REF!"}},0,0,{"$error":"#REF!"}]
[{"$nulls":9},{"$f":"T(#REF!)","v":{"$error":"#REF!"}},{"$f":"#REF!","v":{"$error":"#REF!"}},{"$f":"#REF!","v":{"$error":"#REF!"}},{"$f":"#REF!","v":{"$error":"#REF!"}},{"$f":"#REF!","v":{"$error":"#REF!"}},{"$nulls":3},{"$f":"R1222*R1179","v":{"$error":"#REF!"}},{"$f":"S1222","v":0},{"$f":"T1222","v":0},{"$f":"U1222","v":{"$error":"#REF!"}}]
[{"$nulls":9},{"$f":"T('2 REPAIR ESTIMATOR'!D1077:O1077)","v":"ELECTRICAL"},{"$f":"#REF!","v":{"$error":"#REF!"}},{"$f":"#REF!","v":{"$error":"#REF!"}},{"$f":"#REF!","v":{"$error":"#REF!"}},{"$f":"#REF!","v":{"$error":"#REF!"}},{"$nulls":3},{"$f":"IF(SUM(R1235:R1288)>0,1,0)","v":{"$error":"#REF!"}},{"$f":"SUM(S1235:S1288)","v":0},{"$f":"SUM(T1235:T1288)","v":0},{"$f":"SUM(U1235:U1288)","v":{"$error":"#REF!"}}]
[{"$nulls":9},{"$f":"T('2 REPAIR ESTIMATOR'!D1078:O1078)","v":"Electrical, bid/allowance"},{"$f":"'2 REPAIR ESTIMATOR'!P1078","v":0},{"$f":"'2 REPAIR ESTIMATOR'!S1078","v":"ls"},{"$f":"'2 REPAIR ESTIMATOR'!X1078","v":{"v":0,"d":"$0.00"}},{"$f":"'2 REPAIR ESTIMATOR'!AG1078","v":0},{"$f":"T('2 REPAIR ESTIMATOR'!AX1078)","v":""},{"$f":"T('2 REPAIR ESTIMATOR'!AY1078)","v":""},null,{"$f":"IF(OR(G1235=\"x\",N1235>0),1,0)","v":0},{"$f":"IF(G1235=\"x\",1,0)","v":0},{"$f":"IF(H1235=\"x\",1,0)","v":0},{"$f":"IF(AND(R1235=1,T1235<>1),1,0)","v":0}]
[{"$nulls":9},{"$f":"T('2 REPAIR ESTIMATOR'!D1079:O1079)","v":"Miscellaneous Electrical "},{"$f":"'2 REPAIR ESTIMATOR'!P1079","v":0},{"$f":"'2 REPAIR ESTIMATOR'!S1079","v":0},{"$f":"'2 REPAIR ESTIMATOR'!X1079","v":{"v":0,"d":"$0.00"}},{"$f":"'2 REPAIR ESTIMATOR'!AG1079","v":0},{"$f":"T('2 REPAIR ESTIMATOR'!AX1079)","v":""},{"$f":"T('2 REPAIR ESTIMATOR'!AY1079)","v":""},null,{"$f":"IF(OR(G1236=\"x\",N1236>0),1,0)","v":0},{"$f":"IF(G1236=\"x\",1,0)","v":0},{"$f":"IF(H1236=\"x\",1,0)","v":0},{"$f":"IF(AND(R1236=1,T1236<>1),1,0)","v":0}]
[{"$nulls":9},{"$f":"T('2 REPAIR ESTIMATOR'!D1080:O1080)","v":"Electrical Rough-in, per hour"},{"$f":"'2 REPAIR ESTIMATOR'!P1080","v":0},{"$f":"'2 REPAIR ESTIMATOR'!S1080","v":"hrs"},{"$f":"'2 REPAIR ESTIMATOR'!X1080","v":{"v":0,"d":"$0.00"}},{"$f":"'2 REPAIR ESTIMATOR'!AG1080","v":0},{"$f":"T('2 REPAIR ESTIMATOR'!AX1080)","v":""},{"$f":"T('2 REPAIR ESTIMATOR'!AY1080)","v":""},null,0,0,0,0]
[{"$nulls":9},{"$f":"T('2 REPAIR ESTIMATOR'!D1081:O1081)","v":"CATV Rough-in, per hour"},{"$f":"'2 REPAIR ESTIMATOR'!P1081","v":0},{"$f":"'2 REPAIR ESTIMATOR'!S1081","v":"hrs"},{"$f":"'2 REPAIR ESTIMATOR'!X1081","v":{"v":0,"d":"$0.00"}},{"$f":"'2 REPAIR ESTIMATOR'!AG1081","v":0},{"$f":"T('2 REPAIR ESTIMATOR'!AX1081)","v":""},{"$f":"T('2 REPAIR ESTIMATOR'!AY1081)","v":""},null,0,0,0,0]
[{"$nulls":9},{"$f":"T('2 REPAIR ESTIMATOR'!D1082:O1082)","v":"Electrical Finish Work, per hour"},{"$f":"'2 REPAIR ESTIMATOR'!P1082","v":0},{"$f":"'2 REPAIR ESTIMATOR'!S1082","v":"hrs"},{"$f":"'2 REPAIR ESTIMATOR'!X1082","v":{"v":0,"d":"$0.00"}},{"$f":"'2 REPAIR ESTIMATOR'!AG1082","v":0},{"$f":"T('2 REPAIR ESTIMATOR'!AX1082)","v":""},{"$f":"T('2 REPAIR ESTIMATOR'!AY1082)","v":""},null,0,0,0,0]
[{"$nulls":9},{"$f":"T('2 REPAIR ESTIMATOR'!D1083:O1083)","v":"Replace electrical panel, 100 AMP"},{"$f":"'2 REPAIR ESTIMATOR'!P1083","v":0},{"$f":"'2 REPAIR ESTIMATOR'!S1083","v":"ea"},{"$f":"'2 REPAIR ESTIMATOR'!X1083","v":{"v":0,"d":"$0.00"}},{"$f":"'2 REPAIR ESTIMATOR'!AG1083","v":0},{"$f":"T('2 REPAIR ESTIMATOR'!AX1083)","v":""},{"$f":"T('2 REPAIR ESTIMATOR'!AY1083)","v":""},null,0,0,0,0]
[{"$nulls":9},{"$f":"T('2 REPAIR ESTIMATOR'!D1084:O1084)","v":"Replace electrical panel, 200 AMP"},{"$f":"'2 REPAIR ESTIMATOR'!P1084","v":0},{"$f":"'2 REPAIR ESTIMATOR'!S1084","v":"ea"},{"$f":"'2 REPAIR ESTIMATOR'!X1084","v":{"v":0,"d":"$0.00"}},{"$f":"'2 REPAIR ESTIMATOR'!AG1084","v":0},{"$f":"T('2 REPAIR ESTIMATOR'!AX1084)","v":""},{"$f":"T('2 REPAIR ESTIMATOR'!AY1084)","v":""},null,0,0,0,0]
[{"$nulls":9},{"$f":"T('2 REPAIR ESTIMATOR'!D1085:O1085)","v":"Replace outlets, light switches"},{"$f":"'2 REPAIR ESTIMATOR'!P1085","v":0},{"$f":"'2 REPAIR ESTIMATOR'!S1085","v":"ea"},{"$f":"'2 REPAIR ESTIMATOR'!X1085","v":{"v":0,"d":"$0.00"}},{"$f":"'2 REPAIR ESTIMATOR'!AG1085","v":0},{"$f":"T('2 REPAIR ESTIMATOR'!AX1085)","v":""},{"$f":"T('2 REPAIR ESTIMATOR'!AY1085)","v":""},null,0,0,0,0]
[{"$nulls":9},{"$f":"T('2 REPAIR ESTIMATOR'!D1086:O1086)","v":"Replace GFI outlets/ground back to panel"},{"$f":"'2 REPAIR ESTIMATOR'!P1086","v":0},{"$f":"'2 REPAIR ESTIMATOR'!S1086","v":"ea"},{"$f":"'2 REPAIR ESTIMATOR'!X1086","v":{"v":0,"d":"$0.00"}},{"$f":"'2 REPAIR ESTIMATOR'!AG1086","v":0},{"$f":"T('2 REPAIR ESTIMATOR'!AX1086)","v":""},{"$f":"T('2 REPAIR ESTIMATOR'!AY1086)","v":""},null,0,0,0,0]
[{"$nulls":9},{"$f":"T('2 REPAIR ESTIMATOR'!D1087:O1087)","v":"Exhaust Fan"},{"$f":"'2 REPAIR ESTIMATOR'!P1087","v":0},{"$f":"'2 REPAIR ESTIMATOR'!S1087","v":"ea"},{"$f":"'2 REPAIR ESTIMATOR'!X1087","v":{"v":40,"d":"$40.00"}},{"$f":"'2 REPAIR ESTIMATOR'!AG1087","v":0},{"$f":"T('2 REPAIR ESTIMATOR'!AX1087)","v":""},{"$f":"T('2 REPAIR ESTIMATOR'!AY1087)","v":""},null,0,0,0,0]
[{"$nulls":9},{"$f":"T('2 REPAIR ESTIMATOR'!D1088:O1088)","v":"Smoke detectors"},{"$f":"'2 REPAIR ESTIMATOR'!P1088","v":5},{"$f":"'2 REPAIR ESTIMATOR'!S1088","v":"ea"},{"$f":"'2 REPAIR ESTIMATOR'!X1088","v":{"v":15,"d":"$15.00"}},{"$f":"'2 REPAIR ESTIMATOR'!AG1088","v":{"v":80.25,"d":"$80.25"}},{"$f":"T('2 REPAIR ESTIMATOR'!AX1088)","v":""},{"$f":"T('2 REPAIR ESTIMATOR'!AY1088)","v":""},null,1,0,0,1]
[{"$nulls":9},{"$f":"T('2 REPAIR ESTIMATOR'!D1089:O1089)","v":"Carbon monoxide detector"},{"$f":"'2 REPAIR ESTIMATOR'!P1089","v":0},{"$f":"'2 REPAIR ESTIMATOR'!S1089","v":"ea"},{"$f":"'2 REPAIR ESTIMATOR'!X1089","v":{"v":20,"d":"$20.00"}},{"$f":"'2 REPAIR ESTIMATOR'!AG1089","v":0},{"$f":"T('2 REPAIR ESTIMATOR'!AX1089)","v":""},{"$f":"T('2 REPAIR ESTIMATOR'!AY1089)","v":""},null,0,0,0,0]
[{"$nulls":9},{"$f":"T('2 REPAIR ESTIMATOR'!D1090:O1090)","v":"Lighting"},{"$f":"'2 REPAIR ESTIMATOR'!P1090","v":0},{"$f":"'2 REPAIR ESTIMATOR'!S1090","v":0},{"$f":"'2 REPAIR ESTIMATOR'!X1090","v":{"v":35,"d":"$35.00"}},{"$f":"'2 REPAIR ESTIMATOR'!AG1090","v":0},{"$f":"T('2 REPAIR ESTIMATOR'!AX1090)","v":""},{"$f":"T('2 REPAIR ESTIMATOR'!AY1090)","v":""},null,0,0,0,0]
[{"$nulls":9},{"$f":"T('2 REPAIR ESTIMATOR'!D1091:O1091)","v":"Track/Pendent light"},{"$f":"'2 REPAIR ESTIMATOR'!P1091","v":1},{"$f":"'2 REPAIR ESTIMATOR'!S1091","v":"ea"},{"$f":"'2 REPAIR ESTIMATOR'!X1091","v":{"v":100,"d":"$100.00"}},{"$f":"'2 REPAIR ESTIMATOR'!AG1091","v":{"v":107,"d":"$107.00"}},{"$f":"T('2 REPAIR ESTIMATOR'!AX1091)","v":""},{"$f":"T('2 REPAIR ESTIMATOR'!AY1091)","v":""},null,1,0,0,1]
[{"$nulls":9},{"$f":"T('2 REPAIR ESTIMATOR'!D1092:O1092)","v":"Chandelier light fixture"},{"$f":"'2 REPAIR ESTIMATOR'!P1092","v":1},{"$f":"'2 REPAIR ESTIMATOR'!S1092","v":"ea"},{"$f":"'2 REPAIR ESTIMATOR'!X1092","v":{"v":175,"d":"$175.00"}},{"$f":"'2 REPAIR ESTIMATOR'!AG1092","v":{"v":187.25,"d":"$187.25"}},{"$f":"T('2 REPAIR ESTIMATOR'!AX1092)","v":""},{"$f":"T('2 REPAIR ESTIMATOR'!AY1092)","v":""},null,1,0,0,1]
[{"$nulls":9},{"$f":"T('2 REPAIR ESTIMATOR'!D1093:O1093)","v":"Ceiling dome light"},{"$f":"'2 REPAIR ESTIMATOR'!P1093","v":5},{"$f":"'2 REPAIR ESTIMATOR'!S1093","v":"ea"},{"$f":"'2 REPAIR ESTIMATOR'!X1093","v":{"v":35,"d":"$35.00"}},{"$f":"'2 REPAIR ESTIMATOR'!AG1093","v":{"v":187.25,"d":"$187.25"}},{"$f":"T('2 REPAIR ESTIMATOR'!AX1093)","v":""},{"$f":"T('2 REPAIR ESTIMATOR'!AY1093)","v":""},null,1,0,0,1]
[{"$nulls":9},{"$f":"T('2 REPAIR ESTIMATOR'!D1094:O1094)","v":"Ceiling fan fixture"},{"$f":"'2 REPAIR ESTIMATOR'!P1094","v":4},{"$f":"'2 REPAIR ESTIMATOR'!S1094","v":"ea"},{"$f":"'2 REPAIR ESTIMATOR'!X1094","v":{"v":115,"d":"$115.00"}},{"$f":"'2 REPAIR ESTIMATOR'!AG1094","v":{"v":492.20000000000005,"d":"$492.20"}},{"$f":"T('2 REPAIR ESTIMATOR'!AX1094)","v":""},{"$f":"T('2 REPAIR ESTIMATOR'!AY1094)","v":""},null,1,0,0,1]
[{"$nulls":9},{"$f":"T('2 REPAIR ESTIMATOR'!D1095:O1095)","v":"Bathroom vanity light"},{"$f":"'2 REPAIR ESTIMATOR'!P1095","v":2},{"$f":"'2 REPAIR ESTIMATOR'!S1095","v":"ea"},{"$f":"'2 REPAIR ESTIMATOR'!X1095","v":{"v":85,"d":"$85.00"}},{"$f":"'2 REPAIR ESTIMATOR'!AG1095","v":{"v":181.9,"d":"$181.90"}},{"$f":"T('2 REPAIR ESTIMATOR'!AX1095)","v":""},{"$f":"T('2 REPAIR ESTIMATOR'!AY1095)","v":""},null,1,0,0,1]
[{"$nulls":9},{"$f":"T('2 REPAIR ESTIMATOR'!D1096:O1096)","v":"Can lighting"},{"$f":"'2 REPAIR ESTIMATOR'!P1096","v":0},{"$f":"'2 REPAIR ESTIMATOR'!S1096","v":"ea"},{"$f":"'2 REPAIR ESTIMATOR'!X1096","v":{"v":25,"d":"$25.00"}},{"$f":"'2 REPAIR ESTIMATOR'!AG1096","v":0},{"$f":"T('2 REPAIR ESTIMATOR'!AX1096)","v":""},{"$f":"T('2 REPAIR ESTIMATOR'!AY1096)","v":""},null,0,0,0,0]
[{"$nulls":9},{"$f":"T('2 REPAIR ESTIMATOR'!D1097:O1097)","v":"Exterior light fixture"},{"$f":"'2 REPAIR ESTIMATOR'!P1097","v":2},{"$f":"'2 REPAIR ESTIMATOR'!S1097","v":"ea"},{"$f":"'2 REPAIR ESTIMATOR'!X1097","v":{"v":75,"d":"$75.00"}},{"$f":"'2 REPAIR ESTIMATOR'!AG1097","v":{"v":160.5,"d":"$160.50"}},{"$f":"T('2 REPAIR ESTIMATOR'!AX1097)","v":""},{"$f":"T('2 REPAIR ESTIMATOR'!AY1097)","v":""},null,1,0,0,1]
[{"$nulls":9},{"$f":"T('2 REPAIR ESTIMATOR'!D1098:O1098)","v":""},{"$f":"'2 REPAIR ESTIMATOR'!P1098","v":0},{"$f":"'2 REPAIR ESTIMATOR'!S1098","v":0},{"$f":"'2 REPAIR ESTIMATOR'!X1098","v":{"v":0,"d":"$0.00"}},{"$f":"'2 REPAIR ESTIMATOR'!AG1098","v":0},{"$f":"T('2 REPAIR ESTIMATOR'!AX1098)","v":""},{"$f":"T('2 REPAIR ESTIMATOR'!AY1098)","v":""},null,0,0,0,0]
[{"$nulls":9},{"$f":"T('2 REPAIR ESTIMATOR'!D1099:O1099)","v":""},{"$f":"'2 REPAIR ESTIMATOR'!P1099","v":0},{"$f":"'2 REPAIR ESTIMATOR'!S1099","v":0},{"$f":"'2 REPAIR ESTIMATOR'!X1099","v":{"v":0,"d":"$0.00"}},{"$f":"'2 REPAIR ESTIMATOR'!AG1099","v":0},{"$f":"T('2 REPAIR ESTIMATOR'!AX1099)","v":""},{"$f":"T('2 REPAIR ESTIMATOR'!AY1099)","v":""},null,0,0,0,0]
[{"$nulls":9},{"$f":"T('2 REPAIR ESTIMATOR'!D1100:O1100)","v":""},{"$f":"'2 REPAIR ESTIMATOR'!P1100","v":0},{"$f":"'2 REPAIR ESTIMATOR'!S1100","v":0},{"$f":"'2 REPAIR ESTIMATOR'!X1100","v":{"v":0,"d":"$0.00"}},{"$f":"'2 REPAIR ESTIMATOR'!AG1100","v":0},{"$f":"T('2 REPAIR ESTIMATOR'!AX1100)","v":""},{"$f":"T('2 REPAIR ESTIMATOR'!AY1100)","v":""},null,0,0,0,0]
[{"$nulls":9},{"$f":"T('2 REPAIR ESTIMATOR'!D1101:O1101)","v":""},{"$f":"'2 REPAIR ESTIMATOR'!P1101","v":0},{"$f":"'2 REPAIR ESTIMATOR'!S1101","v":0},{"$f":"'2 REPAIR ESTIMATOR'!X1101","v":{"v":0,"d":"$0.00"}},{"$f":"'2 REPAIR ESTIMATOR'!AG1101","v":0},{"$f":"T('2 REPAIR ESTIMATOR'!AX1101)","v":""},{"$f":"T('2 REPAIR ESTIMATOR'!AY1101)","v":""},null,0,0,0,0]
[{"$nulls":9},{"$f":"T('2 REPAIR ESTIMATOR'!D1102:O1102)","v":""},{"$f":"'2 REPAIR ESTIMATOR'!P1102","v":0},{"$f":"'2 REPAIR ESTIMATOR'!S1102","v":0},{"$f":"'2 REPAIR ESTIMATOR'!X1102","v":{"v":0,"d":"$0.00"}},{"$f":"'2 REPAIR ESTIMATOR'!AG1102","v":0},{"$f":"T('2 REPAIR ESTIMATOR'!AX1102)","v":""},{"$f":"T('2 REPAIR ESTIMATOR'!AY1102)","v":""},null,0,0,0,0]
[{"$nulls":9},{"$f":"T('2 REPAIR ESTIMATOR'!D1103:O1103)","v":""},{"$f":"'2 REPAIR ESTIMATOR'!P1103","v":0},{"$f":"'2 REPAIR ESTIMATOR'!S1103","v":0},{"$f":"'2 REPAIR ESTIMATOR'!X1103","v":{"v":0,"d":"$0.00"}},{"$f":"'2 REPAIR ESTIMATOR'!AG1103","v":0},{"$f":"T('2 REPAIR ESTIMATOR'!AX1103)","v":""},{"$f":"T('2 REPAIR ESTIMATOR'!AY1103)","v":""},null,0,0,0,0]
[{"$nulls":9},{"$f":"T('2 REPAIR ESTIMATOR'!D1104:O1104)","v":""},{"$f":"'2 REPAIR ESTIMATOR'!P1104","v":0},{"$f":"'2 REPAIR ESTIMATOR'!S1104","v":0},{"$f":"'2 REPAIR ESTIMATOR'!X1104","v":{"v":0,"d":"$0.00"}},{"$f":"'2 REPAIR ESTIMATOR'!AG1104","v":0},{"$f":"T('2 REPAIR ESTIMATOR'!AX1104)","v":""},{"$f":"T('2 REPAIR ESTIMATOR'!AY1104)","v":""},null,0,0,0,0]
[{"$nulls":9},{"$f":"T('2 REPAIR ESTIMATOR'!D1105:O1105)","v":""},{"$f":"'2 REPAIR ESTIMATOR'!P1105","v":0},{"$f":"'2 REPAIR ESTIMATOR'!S1105","v":0},{"$f":"'2 REPAIR ESTIMATOR'!X1105","v":{"v":0,"d":"$0.00"}},{"$f":"'2 REPAIR ESTIMATOR'!AG1105","v":0},{"$f":"T('2 REPAIR ESTIMATOR'!AX1105)","v":""},{"$f":"T('2 REPAIR ESTIMATOR'!AY1105)","v":""},null,0,0,0,0]
[{"$nulls":9},{"$f":"T('2 REPAIR ESTIMATOR'!D1106:O1106)","v":""},{"$f":"'2 REPAIR ESTIMATOR'!P1106","v":0},{"$f":"'2 REPAIR ESTIMATOR'!S1106","v":0},{"$f":"'2 REPAIR ESTIMATOR'!X1106","v":{"v":0,"d":"$0.00"}},{"$f":"'2 REPAIR ESTIMATOR'!AG1106","v":0},{"$f":"T('2 REPAIR ESTIMATOR'!AX1106)","v":""},{"$f":"T('2 REPAIR ESTIMATOR'!AY1106)","v":""},null,0,0,0,0]
[{"$nulls":9},{"$f":"T('2 REPAIR ESTIMATOR'!D1107:O1107)","v":""},{"$f":"'2 REPAIR ESTIMATOR'!P1107","v":0},{"$f":"'2 REPAIR ESTIMATOR'!S1107","v":0},{"$f":"'2 REPAIR ESTIMATOR'!X1107","v":{"v":0,"d":"$0.00"}},{"$f":"'2 REPAIR ESTIMATOR'!AG1107","v":0},{"$f":"T('2 REPAIR ESTIMATOR'!AX1107)","v":""},{"$f":"T('2 REPAIR ESTIMATOR'!AY1107)","v":""},null,0,0,0,0]
[{"$nulls":9},{"$f":"T('2 REPAIR ESTIMATOR'!D1108:O1108)","v":""},{"$f":"'2 REPAIR ESTIMATOR'!P1108","v":0},{"$f":"'2 REPAIR ESTIMATOR'!S1108","v":0},{"$f":"'2 REPAIR ESTIMATOR'!X1108","v":{"v":0,"d":"$0.00"}},{"$f":"'2 REPAIR ESTIMATOR'!AG1108","v":0},{"$f":"T('2 REPAIR ESTIMATOR'!AX1108)","v":""},{"$f":"T('2 REPAIR ESTIMATOR'!AY1108)","v":""},null,0,0,0,0]
[{"$nulls":9},{"$f":"T('2 REPAIR ESTIMATOR'!D1109:O1109)","v":""},{"$f":"'2 REPAIR ESTIMATOR'!P1109","v":0},{"$f":"'2 REPAIR ESTIMATOR'!S1109","v":0},{"$f":"'2 REPAIR ESTIMATOR'!X1109","v":{"v":0,"d":"$0.00"}},{"$f":"'2 REPAIR ESTIMATOR'!AG1109","v":0},{"$f":"T('2 REPAIR ESTIMATOR'!AX1109)","v":""},{"$f":"T('2 REPAIR ESTIMATOR'!AY1109)","v":""},null,0,0,0,0]
[{"$nulls":9},{"$f":"T('2 REPAIR ESTIMATOR'!D1110:O1110)","v":""},{"$f":"'2 REPAIR ESTIMATOR'!P1110","v":0},{"$f":"'2 REPAIR ESTIMATOR'!S1110","v":0},{"$f":"'2 REPAIR ESTIMATOR'!X1110","v":{"v":0,"d":"$0.00"}},{"$f":"'2 REPAIR ESTIMATOR'!AG1110","v":0},{"$f":"T('2 REPAIR ESTIMATOR'!AX1110)","v":""},{"$f":"T('2 REPAIR ESTIMATOR'!AY1110)","v":""},null,0,0,0,0]
[{"$nulls":9},{"$f":"T('2 REPAIR ESTIMATOR'!D1111:O1111)","v":""},{"$f":"'2 REPAIR ESTIMATOR'!P1111","v":0},{"$f":"'2 REPAIR ESTIMATOR'!S1111","v":0},{"$f":"'2 REPAIR ESTIMATOR'!X1111","v":{"v":0,"d":"$0.00"}},{"$f":"'2 REPAIR ESTIMATOR'!AG1111","v":0},{"$f":"T('2 REPAIR ESTIMATOR'!AX1111)","v":""},{"$f":"T('2 REPAIR ESTIMATOR'!AY1111)","v":""},null,0,0,0,0]
[{"$nulls":9},{"$f":"T('2 REPAIR ESTIMATOR'!D1112:O1112)","v":""},{"$f":"'2 REPAIR ESTIMATOR'!P1112","v":0},{"$f":"'2 REPAIR ESTIMATOR'!S1112","v":0},{"$f":"'2 REPAIR ESTIMATOR'!X1112","v":{"v":0,"d":"$0.00"}},{"$f":"'2 REPAIR ESTIMATOR'!AG1112","v":0},{"$f":"T('2 REPAIR ESTIMATOR'!AX1112)","v":""},{"$f":"T('2 REPAIR ESTIMATOR'!AY1112)","v":""},null,0,0,0,0]
[{"$nulls":9},{"$f":"T('2 REPAIR ESTIMATOR'!D1113:O1113)","v":""},{"$f":"'2 REPAIR ESTIMATOR'!P1113","v":0},{"$f":"'2 REPAIR ESTIMATOR'!S1113","v":0},{"$f":"'2 REPAIR ESTIMATOR'!X1113","v":{"v":0,"d":"$0.00"}},{"$f":"'2 REPAIR ESTIMATOR'!AG1113","v":0},{"$f":"T('2 REPAIR ESTIMATOR'!AX1113)","v":""},{"$f":"T('2 REPAIR ESTIMATOR'!AY1113)","v":""},null,0,0,0,0]
[{"$nulls":9},{"$f":"T('2 REPAIR ESTIMATOR'!D1114:O1114)","v":""},{"$f":"'2 REPAIR ESTIMATOR'!P1114","v":0},{"$f":"'2 REPAIR ESTIMATOR'!S1114","v":0},{"$f":"'2 REPAIR ESTIMATOR'!X1114","v":{"v":0,"d":"$0.00"}},{"$f":"'2 REPAIR ESTIMATOR'!AG1114","v":0},{"$f":"T('2 REPAIR ESTIMATOR'!AX1114)","v":""},{"$f":"T('2 REPAIR ESTIMATOR'!AY1114)","v":""},null,0,0,0,0]
[{"$nulls":9},{"$f":"T('2 REPAIR ESTIMATOR'!D1115:O1115)","v":""},{"$f":"'2 REPAIR ESTIMATOR'!P1115","v":0},{"$f":"'2 REPAIR ESTIMATOR'!S1115","v":0},{"$f":"'2 REPAIR ESTIMATOR'!X1115","v":{"v":0,"d":"$0.00"}},{"$f":"'2 REPAIR ESTIMATOR'!AG1115","v":0},{"$f":"T('2 REPAIR ESTIMATOR'!AX1115)","v":""},{"$f":"T('2 REPAIR ESTIMATOR'!AY1115)","v":""},null,0,0,0,0]
[{"$nulls":9},{"$f":"T('2 REPAIR ESTIMATOR'!D1116:O1116)","v":""},{"$f":"'2 REPAIR ESTIMATOR'!P1116","v":0},{"$f":"'2 REPAIR ESTIMATOR'!S1116","v":0},{"$f":"'2 REPAIR ESTIMATOR'!X1116","v":{"v":0,"d":"$0.00"}},{"$f":"'2 REPAIR ESTIMATOR'!AG1116","v":0},{"$f":"T('2 REPAIR ESTIMATOR'!AX1116)","v":""},{"$f":"T('2 REPAIR ESTIMATOR'!AY1116)","v":""},null,0,0,0,0]
[{"$nulls":9},{"$f":"T('2 REPAIR ESTIMATOR'!D1117:O1117)","v":""},{"$f":"'2 REPAIR ESTIMATOR'!P1117","v":0},{"$f":"'2 REPAIR ESTIMATOR'!S1117","v":0},{"$f":"'2 REPAIR ESTIMATOR'!X1117","v":{"v":0,"d":"$0.00"}},{"$f":"'2 REPAIR ESTIMATOR'!AG1117","v":0},{"$f":"T('2 REPAIR ESTIMATOR'!AX1117)","v":""},{"$f":"T('2 REPAIR ESTIMATOR'!AY1117)","v":""},null,0,0,0,0]
[{"$nulls":12},{"$f":"CONCATENATE(J1234,\" \",\"TOTAL\")","v":"ELECTRICAL TOTAL"},{"$f":"SUBTOTAL(9,N1235:N1274)","v":{"v":1396.3500000000001,"d":"$1,396.35"}},{"$nulls":3},{"$f":"SUM(R1235:R1274)","v":7},{"$f":"SUM(S1235:S1274)","v":0},{"$f":"SUM(T1235:T1274)","v":0},{"$f":"SUM(U1235:U1274)","v":7}]
[{"$nulls":9},{"$f":"T(#REF!)","v":{"$error":"#REF!"}},{"$f":"#REF!","v":{"$error":"#REF!"}},{"$f":"#REF!","v":{"$error":"#REF!"}},{"$f":"#REF!","v":{"$error":"#REF!"}},{"$f":"#REF!","v":{"$error":"#REF!"}},{"$nulls":3},{"$f":"R1275","v":7},{"$f":"S1275","v":0},{"$f":"T1275","v":0},{"$f":"U1275","v":7}]
[{"$nulls":9},{"$f":"CONCATENATE(\"MISCELLANEOUS \",J1234,\" MATERIAL ITEMS\")","v":"MISCELLANEOUS ELECTRICAL MATERIAL ITEMS"},{"$nulls":4},"Store","SKU #",null,{"$f":"SUM(R1278:R1287)*R1234","v":{"$error":"#REF!"}},{"$f":"SUM(S1278:S1287)","v":0},{"$f":"SUM(T1278:T1287)","v":0},{"$f":"SUM(U1278:U1287)","v":{"$error":"#REF!"}}]
[{"$nulls":9},"Light fixtures",{"$nulls":7},{"$f":"IF(OR(G1278=\"x\",J1278>0),1,0)*R1234","v":{"$error":"#REF!"}},{"$f":"IF(G1278=\"x\",1,0)","v":0},{"$f":"IF(H1278=\"x\",1,0)","v":0},{"$f":"IF(AND(R1278=1,T1278<>1),1,0)","v":{"$error":"#REF!"}}]
[{"$nulls":9},"Outlets, switches and cover plates",{"$nulls":7},{"$f":"IF(OR(G1279=\"x\",J1279>0),1,0)*R1234","v":{"$error":"#REF!"}},0,0,{"$error":"#REF!"}]
[{"$nulls":9},"Smoke detectors",{"$nulls":7},{"$f":"IF(OR(G1280=\"x\",J1280>0),1,0)*R1234","v":{"$error":"#REF!"}},0,0,{"$error":"#REF!"}]
[{"$nulls":9},"Wiring materials",{"$nulls":7},{"$f":"IF(OR(G1281=\"x\",J1281>0),1,0)*R1234","v":{"$error":"#REF!"}},0,0,{"$error":"#REF!"}]
[{"$nulls":9},"Junction boxes",{"$nulls":7},{"$f":"IF(OR(G1282=\"x\",J1282>0),1,0)*R1234","v":{"$error":"#REF!"}},0,0,{"$error":"#REF!"}]
[{"$nulls":9},"Wiring staples",{"$nulls":7},{"$f":"IF(OR(G1283=\"x\",J1283>0),1,0)*R1234","v":{"$error":"#REF!"}},0,0,{"$error":"#REF!"}]
[{"$nulls":17},{"$f":"IF(OR(G1284=\"x\",J1284>0),1,0)*R1234","v":{"$error":"#REF!"}},0,0,{"$error":"#REF!"}]
[{"$nulls":17},{"$f":"IF(OR(G1285=\"x\",J1285>0),1,0)*R1234","v":{"$error":"#REF!"}},0,0,{"$error":"#REF!"}]
[{"$nulls":17},{"$f":"IF(OR(G1286=\"x\",J1286>0),1,0)*R1234","v":{"$error":"#REF!"}},0,0,{"$error":"#REF!"}]
[{"$nulls":17},{"$f":"IF(OR(G1287=\"x\",J1287>0),1,0)*R1234","v":{"$error":"#REF!"}},0,0,{"$error":"#REF!"}]
[{"$nulls":9},{"$f":"T(#REF!)","v":{"$error":"#REF!"}},{"$f":"#REF!","v":{"$error":"#REF!"}},{"$f":"#REF!","v":{"$error":"#REF!"}},{"$f":"#REF!","v":{"$error":"#REF!"}},{"$f":"#REF!","v":{"$error":"#REF!"}},{"$nulls":3},{"$f":"R1277*R1234","v":{"$error":"#REF!"}},{"$f":"S1277","v":0},{"$f":"T1277","v":0},{"$f":"U1277","v":{"$error":"#REF!"}}]
[{"$nulls":9},{"$f":"T('2 REPAIR ESTIMATOR'!D1122:O1122)","v":"MISCELLANEOUS"},{"$f":"#REF!","v":{"$error":"#REF!"}},{"$f":"#REF!","v":{"$error":"#REF!"}},{"$f":"#REF!","v":{"$error":"#REF!"}},{"$f":"#REF!","v":{"$error":"#REF!"}},{"$nulls":3},{"$f":"IF(SUM(R1290:R1343)>0,1,0)","v":{"$error":"#REF!"}},{"$f":"SUM(S1290:S1343)","v":0},{"$f":"SUM(T1290:T1343)","v":0},{"$f":"SUM(U1290:U1343)","v":{"$error":"#REF!"}}]
[{"$nulls":9},{"$f":"T('2 REPAIR ESTIMATOR'!D1123:O1123)","v":"Bath accessories, towel bar, toilet disp, ea bathroom"},{"$f":"'2 REPAIR ESTIMATOR'!P1123","v":0},{"$f":"'2 REPAIR ESTIMATOR'!S1123","v":"ea"},{"$f":"'2 REPAIR ESTIMATOR'!X1123","v":{"v":50,"d":"$50.00"}},{"$f":"'2 REPAIR ESTIMATOR'!AG1123","v":0},{"$f":"T('2 REPAIR ESTIMATOR'!AX1123)","v":""},{"$f":"T('2 REPAIR ESTIMATOR'!AY1123)","v":""},null,{"$f":"IF(OR(G1290=\"x\",N1290>0),1,0)","v":0},{"$f":"IF(G1290=\"x\",1,0)","v":0},{"$f":"IF(H1290=\"x\",1,0)","v":0},{"$f":"IF(AND(R1290=1,T1290<>1),1,0)","v":0}]
[{"$nulls":9},{"$f":"T('2 REPAIR ESTIMATOR'!D1124:O1124)","v":"Bathroom mirrors"},{"$f":"'2 REPAIR ESTIMATOR'!P1124","v":0},{"$f":"'2 REPAIR ESTIMATOR'!S1124","v":"ea"},{"$f":"'2 REPAIR ESTIMATOR'!X1124","v":{"v":70,"d":"$70.00"}},{"$f":"'2 REPAIR ESTIMATOR'!AG1124","v":0},{"$f":"T('2 REPAIR ESTIMATOR'!AX1124)","v":""},{"$f":"T('2 REPAIR ESTIMATOR'!AY1124)","v":""},null,{"$f":"IF(OR(G1291=\"x\",N1291>0),1,0)","v":0},{"$f":"IF(G1291=\"x\",1,0)","v":0},{"$f":"IF(H1291=\"x\",1,0)","v":0},{"$f":"IF(AND(R1291=1,T1291<>1),1,0)","v":0}]
[{"$nulls":9},{"$f":"T('2 REPAIR ESTIMATOR'!D1125:O1125)","v":"Window coverings, each window"},{"$f":"'2 REPAIR ESTIMATOR'!P1125","v":0},{"$f":"'2 REPAIR ESTIMATOR'!S1125","v":"ea"},{"$f":"'2 REPAIR ESTIMATOR'!X1125","v":{"v":50,"d":"$50.00"}},{"$f":"'2 REPAIR ESTIMATOR'!AG1125","v":0},{"$f":"T('2 REPAIR ESTIMATOR'!AX1125)","v":""},{"$f":"T('2 REPAIR ESTIMATOR'!AY1125)","v":""},null,0,0,0,0]
[{"$nulls":9},{"$f":"T('2 REPAIR ESTIMATOR'!D1126:O1126)","v":""},{"$f":"'2 REPAIR ESTIMATOR'!P1126","v":0},{"$f":"'2 REPAIR ESTIMATOR'!S1126","v":0},{"$f":"'2 REPAIR ESTIMATOR'!X1126","v":{"v":0,"d":"$0.00"}},{"$f":"'2 REPAIR ESTIMATOR'!AG1126","v":0},{"$f":"T('2 REPAIR ESTIMATOR'!AX1126)","v":""},{"$f":"T('2 REPAIR ESTIMATOR'!AY1126)","v":""},null,0,0,0,0]
[{"$nulls":9},{"$f":"T('2 REPAIR ESTIMATOR'!D1127:O1127)","v":""},{"$f":"'2 REPAIR ESTIMATOR'!P1127","v":0},{"$f":"'2 REPAIR ESTIMATOR'!S1127","v":0},{"$f":"'2 REPAIR ESTIMATOR'!X1127","v":{"v":0,"d":"$0.00"}},{"$f":"'2 REPAIR ESTIMATOR'!AG1127","v":0},{"$f":"T('2 REPAIR ESTIMATOR'!AX1127)","v":""},{"$f":"T('2 REPAIR ESTIMATOR'!AY1127)","v":""},null,0,0,0,0]
[{"$nulls":9},{"$f":"T('2 REPAIR ESTIMATOR'!D1128:O1128)","v":""},{"$f":"'2 REPAIR ESTIMATOR'!P1128","v":0},{"$f":"'2 REPAIR ESTIMATOR'!S1128","v":0},{"$f":"'2 REPAIR ESTIMATOR'!X1128","v":{"v":0,"d":"$0.00"}},{"$f":"'2 REPAIR ESTIMATOR'!AG1128","v":0},{"$f":"T('2 REPAIR ESTIMATOR'!AX1128)","v":""},{"$f":"T('2 REPAIR ESTIMATOR'!AY1128)","v":""},null,0,0,0,0]
[{"$nulls":9},{"$f":"T('2 REPAIR ESTIMATOR'!D1129:O1129)","v":""},{"$f":"'2 REPAIR ESTIMATOR'!P1129","v":0},{"$f":"'2 REPAIR ESTIMATOR'!S1129","v":0},{"$f":"'2 REPAIR ESTIMATOR'!X1129","v":{"v":0,"d":"$0.00"}},{"$f":"'2 REPAIR ESTIMATOR'!AG1129","v":0},{"$f":"T('2 REPAIR ESTIMATOR'!AX1129)","v":""},{"$f":"T('2 REPAIR ESTIMATOR'!AY1129)","v":""},null,0,0,0,0]
[{"$nulls":9},{"$f":"T('2 REPAIR ESTIMATOR'!D1130:O1130)","v":""},{"$f":"'2 REPAIR ESTIMATOR'!P1130","v":0},{"$f":"'2 REPAIR ESTIMATOR'!S1130","v":0},{"$f":"'2 REPAIR ESTIMATOR'!X1130","v":{"v":0,"d":"$0.00"}},{"$f":"'2 REPAIR ESTIMATOR'!AG1130","v":0},{"$f":"T('2 REPAIR ESTIMATOR'!AX1130)","v":""},{"$f":"T('2 REPAIR ESTIMATOR'!AY1130)","v":""},null,0,0,0,0]
[{"$nulls":9},{"$f":"T('2 REPAIR ESTIMATOR'!D1131:O1131)","v":""},{"$f":"'2 REPAIR ESTIMATOR'!P1131","v":0},{"$f":"'2 REPAIR ESTIMATOR'!S1131","v":0},{"$f":"'2 REPAIR ESTIMATOR'!X1131","v":{"v":0,"d":"$0.00"}},{"$f":"'2 REPAIR ESTIMATOR'!AG1131","v":0},{"$f":"T('2 REPAIR ESTIMATOR'!AX1131)","v":""},{"$f":"T('2 REPAIR ESTIMATOR'!AY1131)","v":""},null,0,0,0,0]
[{"$nulls":9},{"$f":"T('2 REPAIR ESTIMATOR'!D1132:O1132)","v":""},{"$f":"'2 REPAIR ESTIMATOR'!P1132","v":0},{"$f":"'2 REPAIR ESTIMATOR'!S1132","v":0},{"$f":"'2 REPAIR ESTIMATOR'!X1132","v":{"v":0,"d":"$0.00"}},{"$f":"'2 REPAIR ESTIMATOR'!AG1132","v":0},{"$f":"T('2 REPAIR ESTIMATOR'!AX1132)","v":""},{"$f":"T('2 REPAIR ESTIMATOR'!AY1132)","v":""},null,0,0,0,0]
[{"$nulls":9},{"$f":"T('2 REPAIR ESTIMATOR'!D1133:O1133)","v":""},{"$f":"'2 REPAIR ESTIMATOR'!P1133","v":0},{"$f":"'2 REPAIR ESTIMATOR'!S1133","v":0},{"$f":"'2 REPAIR ESTIMATOR'!X1133","v":{"v":0,"d":"$0.00"}},{"$f":"'2 REPAIR ESTIMATOR'!AG1133","v":0},{"$f":"T('2 REPAIR ESTIMATOR'!AX1133)","v":""},{"$f":"T('2 REPAIR ESTIMATOR'!AY1133)","v":""},null,0,0,0,0]
[{"$nulls":9},{"$f":"T('2 REPAIR ESTIMATOR'!D1134:O1134)","v":""},{"$f":"'2 REPAIR ESTIMATOR'!P1134","v":0},{"$f":"'2 REPAIR ESTIMATOR'!S1134","v":0},{"$f":"'2 REPAIR ESTIMATOR'!X1134","v":{"v":0,"d":"$0.00"}},{"$f":"'2 REPAIR ESTIMATOR'!AG1134","v":0},{"$f":"T('2 REPAIR ESTIMATOR'!AX1134)","v":""},{"$f":"T('2 REPAIR ESTIMATOR'!AY1134)","v":""},null,0,0,0,0]
[{"$nulls":9},{"$f":"T('2 REPAIR ESTIMATOR'!D1135:O1135)","v":""},{"$f":"'2 REPAIR ESTIMATOR'!P1135","v":0},{"$f":"'2 REPAIR ESTIMATOR'!S1135","v":0},{"$f":"'2 REPAIR ESTIMATOR'!X1135","v":{"v":0,"d":"$0.00"}},{"$f":"'2 REPAIR ESTIMATOR'!AG1135","v":0},{"$f":"T('2 REPAIR ESTIMATOR'!AX1135)","v":""},{"$f":"T('2 REPAIR ESTIMATOR'!AY1135)","v":""},null,0,0,0,0]
[{"$nulls":9},{"$f":"T('2 REPAIR ESTIMATOR'!D1136:O1136)","v":""},{"$f":"'2 REPAIR ESTIMATOR'!P1136","v":0},{"$f":"'2 REPAIR ESTIMATOR'!S1136","v":0},{"$f":"'2 REPAIR ESTIMATOR'!X1136","v":{"v":0,"d":"$0.00"}},{"$f":"'2 REPAIR ESTIMATOR'!AG1136","v":0},{"$f":"T('2 REPAIR ESTIMATOR'!AX1136)","v":""},{"$f":"T('2 REPAIR ESTIMATOR'!AY1136)","v":""},null,0,0,0,0]
[{"$nulls":9},{"$f":"T('2 REPAIR ESTIMATOR'!D1137:O1137)","v":""},{"$f":"'2 REPAIR ESTIMATOR'!P1137","v":0},{"$f":"'2 REPAIR ESTIMATOR'!S1137","v":0},{"$f":"'2 REPAIR ESTIMATOR'!X1137","v":{"v":0,"d":"$0.00"}},{"$f":"'2 REPAIR ESTIMATOR'!AG1137","v":0},{"$f":"T('2 REPAIR ESTIMATOR'!AX1137)","v":""},{"$f":"T('2 REPAIR ESTIMATOR'!AY1137)","v":""},null,0,0,0,0]
[{"$nulls":9},{"$f":"T('2 REPAIR ESTIMATOR'!D1138:O1138)","v":""},{"$f":"'2 REPAIR ESTIMATOR'!P1138","v":0},{"$f":"'2 REPAIR ESTIMATOR'!S1138","v":0},{"$f":"'2 REPAIR ESTIMATOR'!X1138","v":{"v":0,"d":"$0.00"}},{"$f":"'2 REPAIR ESTIMATOR'!AG1138","v":0},{"$f":"T('2 REPAIR ESTIMATOR'!AX1138)","v":""},{"$f":"T('2 REPAIR ESTIMATOR'!AY1138)","v":""},null,0,0,0,0]
[{"$nulls":9},{"$f":"T('2 REPAIR ESTIMATOR'!D1139:O1139)","v":""},{"$f":"'2 REPAIR ESTIMATOR'!P1139","v":0},{"$f":"'2 REPAIR ESTIMATOR'!S1139","v":0},{"$f":"'2 REPAIR ESTIMATOR'!X1139","v":{"v":0,"d":"$0.00"}},{"$f":"'2 REPAIR ESTIMATOR'!AG1139","v":0},{"$f":"T('2 REPAIR ESTIMATOR'!AX1139)","v":""},{"$f":"T('2 REPAIR ESTIMATOR'!AY1139)","v":""},null,0,0,0,0]
[{"$nulls":9},{"$f":"T('2 REPAIR ESTIMATOR'!D1140:O1140)","v":""},{"$f":"'2 REPAIR ESTIMATOR'!P1140","v":0},{"$f":"'2 REPAIR ESTIMATOR'!S1140","v":0},{"$f":"'2 REPAIR ESTIMATOR'!X1140","v":{"v":0,"d":"$0.00"}},{"$f":"'2 REPAIR ESTIMATOR'!AG1140","v":0},{"$f":"T('2 REPAIR ESTIMATOR'!AX1140)","v":""},{"$f":"T('2 REPAIR ESTIMATOR'!AY1140)","v":""},null,0,0,0,0]
[{"$nulls":9},{"$f":"T('2 REPAIR ESTIMATOR'!D1141:O1141)","v":""},{"$f":"'2 REPAIR ESTIMATOR'!P1141","v":0},{"$f":"'2 REPAIR ESTIMATOR'!S1141","v":0},{"$f":"'2 REPAIR ESTIMATOR'!X1141","v":{"v":0,"d":"$0.00"}},{"$f":"'2 REPAIR ESTIMATOR'!AG1141","v":0},{"$f":"T('2 REPAIR ESTIMATOR'!AX1141)","v":""},{"$f":"T('2 REPAIR ESTIMATOR'!AY1141)","v":""},null,0,0,0,0]
[{"$nulls":9},{"$f":"T('2 REPAIR ESTIMATOR'!D1142:O1142)","v":""},{"$f":"'2 REPAIR ESTIMATOR'!P1142","v":0},{"$f":"'2 REPAIR ESTIMATOR'!S1142","v":0},{"$f":"'2 REPAIR ESTIMATOR'!X1142","v":{"v":0,"d":"$0.00"}},{"$f":"'2 REPAIR ESTIMATOR'!AG1142","v":0},{"$f":"T('2 REPAIR ESTIMATOR'!AX1142)","v":""},{"$f":"T('2 REPAIR ESTIMATOR'!AY1142)","v":""},null,0,0,0,0]
[{"$nulls":9},{"$f":"T('2 REPAIR ESTIMATOR'!D1143:O1143)","v":""},{"$f":"'2 REPAIR ESTIMATOR'!P1143","v":0},{"$f":"'2 REPAIR ESTIMATOR'!S1143","v":0},{"$f":"'2 REPAIR ESTIMATOR'!X1143","v":{"v":0,"d":"$0.00"}},{"$f":"'2 REPAIR ESTIMATOR'!AG1143","v":0},{"$f":"T('2 REPAIR ESTIMATOR'!AX1143)","v":""},{"$f":"T('2 REPAIR ESTIMATOR'!AY1143)","v":""},null,0,0,0,0]
[{"$nulls":9},{"$f":"T('2 REPAIR ESTIMATOR'!D1144:O1144)","v":""},{"$f":"'2 REPAIR ESTIMATOR'!P1144","v":0},{"$f":"'2 REPAIR ESTIMATOR'!S1144","v":0},{"$f":"'2 REPAIR ESTIMATOR'!X1144","v":{"v":0,"d":"$0.00"}},{"$f":"'2 REPAIR ESTIMATOR'!AG1144","v":0},{"$f":"T('2 REPAIR ESTIMATOR'!AX1144)","v":""},{"$f":"T('2 REPAIR ESTIMATOR'!AY1144)","v":""},null,0,0,0,0]
[{"$nulls":9},{"$f":"T('2 REPAIR ESTIMATOR'!D1145:O1145)","v":""},{"$f":"'2 REPAIR ESTIMATOR'!P1145","v":0},{"$f":"'2 REPAIR ESTIMATOR'!S1145","v":0},{"$f":"'2 REPAIR ESTIMATOR'!X1145","v":{"v":0,"d":"$0.00"}},{"$f":"'2 REPAIR ESTIMATOR'!AG1145","v":0},{"$f":"T('2 REPAIR ESTIMATOR'!AX1145)","v":""},{"$f":"T('2 REPAIR ESTIMATOR'!AY1145)","v":""},null,0,0,0,0]
[{"$nulls":9},{"$f":"T('2 REPAIR ESTIMATOR'!D1146:O1146)","v":""},{"$f":"'2 REPAIR ESTIMATOR'!P1146","v":0},{"$f":"'2 REPAIR ESTIMATOR'!S1146","v":0},{"$f":"'2 REPAIR ESTIMATOR'!X1146","v":{"v":0,"d":"$0.00"}},{"$f":"'2 REPAIR ESTIMATOR'!AG1146","v":0},{"$f":"T('2 REPAIR ESTIMATOR'!AX1146)","v":""},{"$f":"T('2 REPAIR ESTIMATOR'!AY1146)","v":""},null,0,0,0,0]
[{"$nulls":9},{"$f":"T('2 REPAIR ESTIMATOR'!D1147:O1147)","v":""},{"$f":"'2 REPAIR ESTIMATOR'!P1147","v":0},{"$f":"'2 REPAIR ESTIMATOR'!S1147","v":0},{"$f":"'2 REPAIR ESTIMATOR'!X1147","v":{"v":0,"d":"$0.00"}},{"$f":"'2 REPAIR ESTIMATOR'!AG1147","v":0},{"$f":"T('2 REPAIR ESTIMATOR'!AX1147)","v":""},{"$f":"T('2 REPAIR ESTIMATOR'!AY1147)","v":""},null,0,0,0,0]
[{"$nulls":9},{"$f":"T('2 REPAIR ESTIMATOR'!D1148:O1148)","v":""},{"$f":"'2 REPAIR ESTIMATOR'!P1148","v":0},{"$f":"'2 REPAIR ESTIMATOR'!S1148","v":0},{"$f":"'2 REPAIR ESTIMATOR'!X1148","v":{"v":0,"d":"$0.00"}},{"$f":"'2 REPAIR ESTIMATOR'!AG1148","v":0},{"$f":"T('2 REPAIR ESTIMATOR'!AX1148)","v":""},{"$f":"T('2 REPAIR ESTIMATOR'!AY1148)","v":""},null,0,0,0,0]
[{"$nulls":9},{"$f":"T('2 REPAIR ESTIMATOR'!D1149:O1149)","v":""},{"$f":"'2 REPAIR ESTIMATOR'!P1149","v":0},{"$f":"'2 REPAIR ESTIMATOR'!S1149","v":0},{"$f":"'2 REPAIR ESTIMATOR'!X1149","v":{"v":0,"d":"$0.00"}},{"$f":"'2 REPAIR ESTIMATOR'!AG1149","v":0},{"$f":"T('2 REPAIR ESTIMATOR'!AX1149)","v":""},{"$f":"T('2 REPAIR ESTIMATOR'!AY1149)","v":""},null,0,0,0,0]
[{"$nulls":9},{"$f":"T('2 REPAIR ESTIMATOR'!D1150:O1150)","v":""},{"$f":"'2 REPAIR ESTIMATOR'!P1150","v":0},{"$f":"'2 REPAIR ESTIMATOR'!S1150","v":0},{"$f":"'2 REPAIR ESTIMATOR'!X1150","v":{"v":0,"d":"$0.00"}},{"$f":"'2 REPAIR ESTIMATOR'!AG1150","v":0},{"$f":"T('2 REPAIR ESTIMATOR'!AX1150)","v":""},{"$f":"T('2 REPAIR ESTIMATOR'!AY1150)","v":""},null,0,0,0,0]
[{"$nulls":9},{"$f":"T('2 REPAIR ESTIMATOR'!D1151:O1151)","v":""},{"$f":"'2 REPAIR ESTIMATOR'!P1151","v":0},{"$f":"'2 REPAIR ESTIMATOR'!S1151","v":0},{"$f":"'2 REPAIR ESTIMATOR'!X1151","v":{"v":0,"d":"$0.00"}},{"$f":"'2 REPAIR ESTIMATOR'!AG1151","v":0},{"$f":"T('2 REPAIR ESTIMATOR'!AX1151)","v":""},{"$f":"T('2 REPAIR ESTIMATOR'!AY1151)","v":""},null,0,0,0,0]
[{"$nulls":9},{"$f":"T('2 REPAIR ESTIMATOR'!D1152:O1152)","v":""},{"$f":"'2 REPAIR ESTIMATOR'!P1152","v":0},{"$f":"'2 REPAIR ESTIMATOR'!S1152","v":0},{"$f":"'2 REPAIR ESTIMATOR'!X1152","v":{"v":0,"d":"$0.00"}},{"$f":"'2 REPAIR ESTIMATOR'!AG1152","v":0},{"$f":"T('2 REPAIR ESTIMATOR'!AX1152)","v":""},{"$f":"T('2 REPAIR ESTIMATOR'!AY1152)","v":""},null,0,0,0,0]
[{"$nulls":9},{"$f":"T('2 REPAIR ESTIMATOR'!D1153:O1153)","v":""},{"$f":"'2 REPAIR ESTIMATOR'!P1153","v":0},{"$f":"'2 REPAIR ESTIMATOR'!S1153","v":0},{"$f":"'2 REPAIR ESTIMATOR'!X1153","v":{"v":0,"d":"$0.00"}},{"$f":"'2 REPAIR ESTIMATOR'!AG1153","v":0},{"$f":"T('2 REPAIR ESTIMATOR'!AX1153)","v":""},{"$f":"T('2 REPAIR ESTIMATOR'!AY1153)","v":""},null,0,0,0,0]
[{"$nulls":9},{"$f":"T('2 REPAIR ESTIMATOR'!D1154:O1154)","v":""},{"$f":"'2 REPAIR ESTIMATOR'!P1154","v":0},{"$f":"'2 REPAIR ESTIMATOR'!S1154","v":0},{"$f":"'2 REPAIR ESTIMATOR'!X1154","v":{"v":0,"d":"$0.00"}},{"$f":"'2 REPAIR ESTIMATOR'!AG1154","v":0},{"$f":"T('2 REPAIR ESTIMATOR'!AX1154)","v":""},{"$f":"T('2 REPAIR ESTIMATOR'!AY1154)","v":""},null,0,0,0,0]
[{"$nulls":9},{"$f":"T('2 REPAIR ESTIMATOR'!D1155:O1155)","v":""},{"$f":"'2 REPAIR ESTIMATOR'!P1155","v":0},{"$f":"'2 REPAIR ESTIMATOR'!S1155","v":0},{"$f":"'2 REPAIR ESTIMATOR'!X1155","v":{"v":0,"d":"$0.00"}},{"$f":"'2 REPAIR ESTIMATOR'!AG1155","v":0},{"$f":"T('2 REPAIR ESTIMATOR'!AX1155)","v":""},{"$f":"T('2 REPAIR ESTIMATOR'!AY1155)","v":""},null,0,0,0,0]
[{"$nulls":9},{"$f":"T('2 REPAIR ESTIMATOR'!D1156:O1156)","v":""},{"$f":"'2 REPAIR ESTIMATOR'!P1156","v":0},{"$f":"'2 REPAIR ESTIMATOR'!S1156","v":0},{"$f":"'2 REPAIR ESTIMATOR'!X1156","v":{"v":0,"d":"$0.00"}},{"$f":"'2 REPAIR ESTIMATOR'!AG1156","v":0},{"$f":"T('2 REPAIR ESTIMATOR'!AX1156)","v":""},{"$f":"T('2 REPAIR ESTIMATOR'!AY1156)","v":""},null,0,0,0,0]
[{"$nulls":9},{"$f":"T('2 REPAIR ESTIMATOR'!D1157:O1157)","v":""},{"$f":"'2 REPAIR ESTIMATOR'!P1157","v":0},{"$f":"'2 REPAIR ESTIMATOR'!S1157","v":0},{"$f":"'2 REPAIR ESTIMATOR'!X1157","v":{"v":0,"d":"$0.00"}},{"$f":"'2 REPAIR ESTIMATOR'!AG1157","v":0},{"$f":"T('2 REPAIR ESTIMATOR'!AX1157)","v":""},{"$f":"T('2 REPAIR ESTIMATOR'!AY1157)","v":""},null,0,0,0,0]
[{"$nulls":9},{"$f":"T('2 REPAIR ESTIMATOR'!D1158:O1158)","v":""},{"$f":"'2 REPAIR ESTIMATOR'!P1158","v":0},{"$f":"'2 REPAIR ESTIMATOR'!S1158","v":0},{"$f":"'2 REPAIR ESTIMATOR'!X1158","v":{"v":0,"d":"$0.00"}},{"$f":"'2 REPAIR ESTIMATOR'!AG1158","v":0},{"$f":"T('2 REPAIR ESTIMATOR'!AX1158)","v":""},{"$f":"T('2 REPAIR ESTIMATOR'!AY1158)","v":""},null,0,0,0,0]
[{"$nulls":9},{"$f":"T('2 REPAIR ESTIMATOR'!D1159:O1159)","v":""},{"$f":"'2 REPAIR ESTIMATOR'!P1159","v":0},{"$f":"'2 REPAIR ESTIMATOR'!S1159","v":0},{"$f":"'2 REPAIR ESTIMATOR'!X1159","v":{"v":0,"d":"$0.00"}},{"$f":"'2 REPAIR ESTIMATOR'!AG1159","v":0},{"$f":"T('2 REPAIR ESTIMATOR'!AX1159)","v":""},{"$f":"T('2 REPAIR ESTIMATOR'!AY1159)","v":""},null,0,0,0,0]
[{"$nulls":9},{"$f":"T('2 REPAIR ESTIMATOR'!D1160:O1160)","v":""},{"$f":"'2 REPAIR ESTIMATOR'!P1160","v":0},{"$f":"'2 REPAIR ESTIMATOR'!S1160","v":0},{"$f":"'2 REPAIR ESTIMATOR'!X1160","v":{"v":0,"d":"$0.00"}},{"$f":"'2 REPAIR ESTIMATOR'!AG1160","v":0},{"$f":"T('2 REPAIR ESTIMATOR'!AX1160)","v":""},{"$f":"T('2 REPAIR ESTIMATOR'!AY1160)","v":""},null,0,0,0,0]
[{"$nulls":9},{"$f":"T('2 REPAIR ESTIMATOR'!D1161:O1161)","v":""},{"$f":"'2 REPAIR ESTIMATOR'!P1161","v":0},{"$f":"'2 REPAIR ESTIMATOR'!S1161","v":0},{"$f":"'2 REPAIR ESTIMATOR'!X1161","v":{"v":0,"d":"$0.00"}},{"$f":"'2 REPAIR ESTIMATOR'!AG1161","v":0},{"$f":"T('2 REPAIR ESTIMATOR'!AX1161)","v":""},{"$f":"T('2 REPAIR ESTIMATOR'!AY1161)","v":""},null,0,0,0,0]
[{"$nulls":9},{"$f":"T('2 REPAIR ESTIMATOR'!D1162:O1162)","v":""},{"$f":"'2 REPAIR ESTIMATOR'!P1162","v":0},{"$f":"'2 REPAIR ESTIMATOR'!S1162","v":0},{"$f":"'2 REPAIR ESTIMATOR'!X1162","v":{"v":0,"d":"$0.00"}},{"$f":"'2 REPAIR ESTIMATOR'!AG1162","v":0},{"$f":"T('2 REPAIR ESTIMATOR'!AX1162)","v":""},{"$f":"T('2 REPAIR ESTIMATOR'!AY1162)","v":""},null,0,0,0,0]
[{"$nulls":9},{"$f":"CONCATENATE(\"MISCELLANEOUS \",J1287,\" MATERIAL ITEMS\")","v":"MISCELLANEOUS  MATERIAL ITEMS"},{"$nulls":4},"Store","SKU #",null,{"$f":"SUM(R1290:R1329)","v":0},{"$f":"SUM(S1290:S1329)","v":0},{"$f":"SUM(T1290:T1329)","v":0},{"$f":"SUM(U1290:U1329)","v":0}]
[{"$nulls":17},{"$f":"R1330","v":0},{"$f":"S1330","v":0},{"$f":"T1330","v":0},{"$f":"U1330","v":0}]
[{"$nulls":17},{"$f":"SUM(R1333:R1342)*R1289","v":{"$error":"#REF!"}},{"$f":"SUM(S1333:S1342)","v":0},{"$f":"SUM(T1333:T1342)","v":0},{"$f":"SUM(U1333:U1342)","v":{"$error":"#REF!"}}]
[{"$nulls":17},{"$f":"IF(OR(G1333=\"x\",J1333>0),1,0)*R1289","v":{"$error":"#REF!"}},{"$f":"IF(G1333=\"x\",1,0)","v":0},{"$f":"IF(H1333=\"x\",1,0)","v":0},{"$f":"IF(AND(R1333=1,T1333<>1),1,0)","v":{"$error":"#REF!"}}]
[{"$nulls":17},{"$f":"IF(OR(G1334=\"x\",J1334>0),1,0)*R1289","v":{"$error":"#REF!"}},0,0,{"$error":"#REF!"}]
[{"$nulls":17},{"$f":"IF(OR(G1335=\"x\",J1335>0),1,0)*R1289","v":{"$error":"#REF!"}},0,0,{"$error":"#REF!"}]
[{"$nulls":17},{"$f":"IF(OR(G1336=\"x\",J1336>0),1,0)*R1289","v":{"$error":"#REF!"}},0,0,{"$error":"#REF!"}]
[{"$nulls":17},{"$f":"IF(OR(G1337=\"x\",J1337>0),1,0)*R1289","v":{"$error":"#REF!"}},0,0,{"$error":"#REF!"}]
[{"$nulls":17},{"$f":"IF(OR(G1338=\"x\",J1338>0),1,0)*R1289","v":{"$error":"#REF!"}},0,0,{"$error":"#REF!"}]
[{"$nulls":17},{"$f":"IF(OR(G1339=\"x\",J1339>0),1,0)*R1289","v":{"$error":"#REF!"}},0,0,{"$error":"#REF!"}]
[{"$nulls":17},{"$f":"IF(OR(G1340=\"x\",J1340>0),1,0)*R1289","v":{"$error":"#REF!"}},0,0,{"$error":"#REF!"}]
[{"$nulls":9},{"$f":"T(#REF!)","v":{"$error":"#REF!"}},{"$f":"#REF!","v":{"$error":"#REF!"}},{"$f":"#REF!","v":{"$error":"#REF!"}},{"$f":"#REF!","v":{"$error":"#REF!"}},{"$f":"#REF!","v":{"$error":"#REF!"}},{"$nulls":3},{"$f":"IF(OR(G1341=\"x\",J1341>0),1,0)*R1289","v":{"$error":"#REF!"}},0,0,{"$error":"#REF!"}]
[{"$nulls":12},{"$f":"CONCATENATE(J1289,\" \",\"TOTAL\")","v":"MISCELLANEOUS TOTAL"},{"$f":"SUBTOTAL(9,N1290:N1329)","v":0},{"$nulls":3},{"$f":"IF(OR(G1342=\"x\",J1342>0),1,0)*R1289","v":{"$error":"#REF!"}},0,0,{"$error":"#REF!"}]
[{"$nulls":9},{"$f":"T(#REF!)","v":{"$error":"#REF!"}},{"$f":"#REF!","v":{"$error":"#REF!"}},{"$f":"#REF!","v":{"$error":"#REF!"}},{"$f":"#REF!","v":{"$error":"#REF!"}},{"$f":"#REF!","v":{"$error":"#REF!"}},{"$nulls":3},{"$f":"R1332*R1289","v":{"$error":"#REF!"}},{"$f":"S1332","v":0},{"$f":"T1332","v":0},{"$f":"U1332","v":{"$error":"#REF!"}}]
[{"$nulls":12},"TOTAL MATERIAL COST",{"$f":"SUM(N65+N120+N175+N230+N285+N340+N395+N450+N505+N560+N615+N670+N725+N780+N835+N890+N945+N1000+N1055+N1110+N1165+N1220+N1275+N1342)","v":{"v":31581.049999999996,"d":"$31,581.05"}},{"$nulls":3},{"$f":"SUM(R65+R120+R175+R230+R285+R340+R395+R450+R505+R560+R615+R670+R725+R780+R835+R890+R945+R1000+R1055+R1110+R1165+R1220+R1275+R1342)","v":{"$error":"#REF!"}},{"$f":"SUM(S65+S120+S175+S230+S285+S340+S395+S450+S505+S560+S615+S670+S725+S780+S835+S890+S945+S1000+S1055+S1110+S1165+S1220+S1275+S1342)","v":0},{"$f":"SUM(T65+T120+T175+T230+T285+T340+T395+T450+T505+T560+T615+T670+T725+T780+T835+T890+T945+T1000+T1055+T1110+T1165+T1220+T1275+T1342)","v":0},{"$f":"SUM(U65+U120+U175+U230+U285+U340+U395+U450+U505+U560+U615+U670+U725+U780+U835+U890+U945+U1000+U1055+U1110+U1165+U1220+U1275+U1342)","v":{"$error":"#REF!"}}]
[{"$nulls":9},"© 2018 by Houseflippingspreadsheet.com. All rights reserved"]

{"sheet":"TASK CHECKLIST","index":46,"n_rows":1008,"n_cols":16,"rows_kept":1008,"hidden":true,"merged":[[1,3,3,6],[12,7,12,11],[16,7,20,11],[1007,7,1007,11]]}
[]
[{"$nulls":3},"PROJECT TASK LIST"]
[{"$nulls":12},"Data View",null,"All Rows"]
{"$rows_empty":9}
[{"$nulls":7},{"$f":"CONCATENATE(Street_Address,\", \",City_State_Zip)","v":"1234 Main St, Kansas City, MO 64116"}]
[]
[{"$nulls":7},"TASK CHECKLIST"]
[]
[{"$nulls":7},"General Notes:"]
[]
[]
[]
[]
[{"$nulls":7},"Description of Work","QTY","Unit","Complete (X)","Notes",null,"If >0,1,0","Complete","Incomplete"]
[]
[{"$nulls":7},{"$f":"T('2 REPAIR ESTIMATOR'!D87:O87)","v":"GENERAL CONDITIONS"},{"$nulls":5},{"$f":"SUM(N25:N64)","v":40},{"$f":"SUM(O25:O64)","v":0},{"$f":"SUM(P25:P64)","v":40}]
[{"$nulls":7},{"$f":"T('2 REPAIR ESTIMATOR'!D88:O88)","v":"Dumpster rental-40 yard"},{"$f":"'2 REPAIR ESTIMATOR'!P88","v":1},{"$f":"T('2 REPAIR ESTIMATOR'!S88:T88)","v":"ea"},{"$nulls":3},{"$f":"IF(I25<>\"\",1,0)","v":1},{"$f":"IF(K25=\"x\",1,0)","v":0},{"$f":"IF(AND(N25>0,O25=0),1,0)","v":1}]
[{"$nulls":7},{"$f":"T('2 REPAIR ESTIMATOR'!D89:O89)","v":"Storage Container"},{"$f":"'2 REPAIR ESTIMATOR'!P89","v":0},{"$f":"T('2 REPAIR ESTIMATOR'!S89:T89)","v":"job"},{"$nulls":3},{"$f":"IF(I26<>\"\",1,0)","v":1},{"$f":"IF(K26=\"x\",1,0)","v":0},{"$f":"IF(AND(N26>0,O26=0),1,0)","v":1}]
[{"$nulls":7},{"$f":"T('2 REPAIR ESTIMATOR'!D90:O90)","v":"Chemical Toilet"},{"$f":"'2 REPAIR ESTIMATOR'!P90","v":0},{"$f":"T('2 REPAIR ESTIMATOR'!S90:T90)","v":"mo"},{"$nulls":3},1,0,1]
[{"$nulls":7},{"$f":"T('2 REPAIR ESTIMATOR'!D91:O91)","v":"Misc. Tools & Materials"},{"$f":"'2 REPAIR ESTIMATOR'!P91","v":0},{"$f":"T('2 REPAIR ESTIMATOR'!S91:T91)","v":"ls"},{"$nulls":3},1,0,1]
[{"$nulls":7},{"$f":"T('2 REPAIR ESTIMATOR'!D92:O92)","v":"Rekey/lock box"},{"$f":"'2 REPAIR ESTIMATOR'!P92","v":0},{"$f":"T('2 REPAIR ESTIMATOR'!S92:T92)","v":"ea"},{"$nulls":3},1,0,1]
[{"$nulls":7},{"$f":"T('2 REPAIR ESTIMATOR'!D93:O93)","v":"Turn on utilities"},{"$f":"'2 REPAIR ESTIMATOR'!P93","v":0},{"$f":"T('2 REPAIR ESTIMATOR'!S93:T93)","v":"ls"},{"$nulls":3},1,0,1]
[{"$nulls":7},{"$f":"T('2 REPAIR ESTIMATOR'!D94:O94)","v":"Truck expense/car payment"},{"$f":"'2 REPAIR ESTIMATOR'!P94","v":0},{"$f":"T('2 REPAIR ESTIMATOR'!S94:T94)","v":"month"},{"$nulls":3},1,0,1]
[{"$nulls":7},{"$f":"T('2 REPAIR ESTIMATOR'!D95:O95)","v":"Fuel/gas expense"},{"$f":"'2 REPAIR ESTIMATOR'!P95","v":0},{"$f":"T('2 REPAIR ESTIMATOR'!S95:T95)","v":"wk"},{"$nulls":3},1,0,1]
[{"$nulls":7},{"$f":"T('2 REPAIR ESTIMATOR'!D96:O96)","v":"Project management"},{"$f":"'2 REPAIR ESTIMATOR'!P96","v":0},{"$f":"T('2 REPAIR ESTIMATOR'!S96:T96)","v":"wk"},{"$nulls":3},1,0,1]
[{"$nulls":7},{"$f":"T('2 REPAIR ESTIMATOR'!D97:O97)","v":"Architectural Fees"},{"$f":"'2 REPAIR ESTIMATOR'!P97","v":0},{"$f":"T('2 REPAIR ESTIMATOR'!S97:T97)","v":"hrs"},{"$nulls":3},1,0,1]
[{"$nulls":7},{"$f":"T('2 REPAIR ESTIMATOR'!D98:O98)","v":"Engineering Fees"},{"$f":"'2 REPAIR ESTIMATOR'!P98","v":0},{"$f":"T('2 REPAIR ESTIMATOR'!S98:T98)","v":"hrs"},{"$nulls":3},1,0,1]
[{"$nulls":7},{"$f":"T('2 REPAIR ESTIMATOR'!D99:O99)","v":"Professional Photography"},{"$f":"'2 REPAIR ESTIMATOR'!P99","v":0},{"$f":"T('2 REPAIR ESTIMATOR'!S99:T99)","v":"ls"},{"$nulls":3},1,0,1]
[{"$nulls":7},{"$f":"T('2 REPAIR ESTIMATOR'!D100:O100)","v":"Material Deliveries"},{"$f":"'2 REPAIR ESTIMATOR'!P100","v":0},{"$f":"T('2 REPAIR ESTIMATOR'!S100:T100)","v":"ea"},{"$nulls":3},1,0,1]
[{"$nulls":7},{"$f":"T('2 REPAIR ESTIMATOR'!D101:O101)","v":"Final cleaning"},{"$f":"'2 REPAIR ESTIMATOR'!P101","v":4},{"$f":"T('2 REPAIR ESTIMATOR'!S101:T101)","v":"hrs"},{"$nulls":3},1,0,1]
[{"$nulls":7},{"$f":"T('2 REPAIR ESTIMATOR'!D102:O102)","v":""},{"$f":"'2 REPAIR ESTIMATOR'!P102","v":0},{"$f":"T('2 REPAIR ESTIMATOR'!S102:T102)","v":""},{"$nulls":3},1,0,1]
[{"$nulls":7},{"$f":"T('2 REPAIR ESTIMATOR'!D103:O103)","v":""},{"$f":"'2 REPAIR ESTIMATOR'!P103","v":0},{"$f":"T('2 REPAIR ESTIMATOR'!S103:T103)","v":""},{"$nulls":3},1,0,1]
[{"$nulls":7},{"$f":"T('2 REPAIR ESTIMATOR'!D104:O104)","v":""},{"$f":"'2 REPAIR ESTIMATOR'!P104","v":0},{"$f":"T('2 REPAIR ESTIMATOR'!S104:T104)","v":""},{"$nulls":3},1,0,1]
[{"$nulls":7},{"$f":"T('2 REPAIR ESTIMATOR'!D105:O105)","v":""},{"$f":"'2 REPAIR ESTIMATOR'!P105","v":0},{"$f":"T('2 REPAIR ESTIMATOR'!S105:T105)","v":""},{"$nulls":3},1,0,1]
[{"$nulls":7},{"$f":"T('2 REPAIR ESTIMATOR'!D106:O106)","v":""},{"$f":"'2 REPAIR ESTIMATOR'!P106","v":0},{"$f":"T('2 REPAIR ESTIMATOR'!S106:T106)","v":""},{"$nulls":3},1,0,1]
[{"$nulls":7},{"$f":"T('2 REPAIR ESTIMATOR'!D107:O107)","v":""},{"$f":"'2 REPAIR ESTIMATOR'!P107","v":0},{"$f":"T('2 REPAIR ESTIMATOR'!S107:T107)","v":""},{"$nulls":3},1,0,1]
[{"$nulls":7},{"$f":"T('2 REPAIR ESTIMATOR'!D108:O108)","v":""},{"$f":"'2 REPAIR ESTIMATOR'!P108","v":0},{"$f":"T('2 REPAIR ESTIMATOR'!S108:T108)","v":""},{"$nulls":3},1,0,1]
[{"$nulls":7},{"$f":"T('2 REPAIR ESTIMATOR'!D109:O109)","v":""},{"$f":"'2 REPAIR ESTIMATOR'!P109","v":0},{"$f":"T('2 REPAIR ESTIMATOR'!S109:T109)","v":""},{"$nulls":3},1,0,1]
[{"$nulls":7},{"$f":"T('2 REPAIR ESTIMATOR'!D110:O110)","v":""},{"$f":"'2 REPAIR ESTIMATOR'!P110","v":0},{"$f":"T('2 REPAIR ESTIMATOR'!S110:T110)","v":""},{"$nulls":3},1,0,1]
[{"$nulls":7},{"$f":"T('2 REPAIR ESTIMATOR'!D111:O111)","v":""},{"$f":"'2 REPAIR ESTIMATOR'!P111","v":0},{"$f":"T('2 REPAIR ESTIMATOR'!S111:T111)","v":""},{"$nulls":3},1,0,1]
[{"$nulls":7},{"$f":"T('2 REPAIR ESTIMATOR'!D112:O112)","v":""},{"$f":"'2 REPAIR ESTIMATOR'!P112","v":0},{"$f":"T('2 REPAIR ESTIMATOR'!S112:T112)","v":""},{"$nulls":3},1,0,1]
[{"$nulls":7},{"$f":"T('2 REPAIR ESTIMATOR'!D113:O113)","v":""},{"$f":"'2 REPAIR ESTIMATOR'!P113","v":0},{"$f":"T('2 REPAIR ESTIMATOR'!S113:T113)","v":""},{"$nulls":3},1,0,1]
[{"$nulls":7},{"$f":"T('2 REPAIR ESTIMATOR'!D114:O114)","v":""},{"$f":"'2 REPAIR ESTIMATOR'!P114","v":0},{"$f":"T('2 REPAIR ESTIMATOR'!S114:T114)","v":""},{"$nulls":3},1,0,1]
[{"$nulls":7},{"$f":"T('2 REPAIR ESTIMATOR'!D115:O115)","v":""},{"$f":"'2 REPAIR ESTIMATOR'!P115","v":0},{"$f":"T('2 REPAIR ESTIMATOR'!S115:T115)","v":""},{"$nulls":3},1,0,1]
[{"$nulls":7},{"$f":"T('2 REPAIR ESTIMATOR'!D116:O116)","v":""},{"$f":"'2 REPAIR ESTIMATOR'!P116","v":0},{"$f":"T('2 REPAIR ESTIMATOR'!S116:T116)","v":""},{"$nulls":3},1,0,1]
[{"$nulls":7},{"$f":"T('2 REPAIR ESTIMATOR'!D117:O117)","v":""},{"$f":"'2 REPAIR ESTIMATOR'!P117","v":0},{"$f":"T('2 REPAIR ESTIMATOR'!S117:T117)","v":""},{"$nulls":3},1,0,1]
[{"$nulls":7},{"$f":"T('2 REPAIR ESTIMATOR'!D118:O118)","v":""},{"$f":"'2 REPAIR ESTIMATOR'!P118","v":0},{"$f":"T('2 REPAIR ESTIMATOR'!S118:T118)","v":""},{"$nulls":3},1,0,1]
[{"$nulls":7},{"$f":"T('2 REPAIR ESTIMATOR'!D119:O119)","v":""},{"$f":"'2 REPAIR ESTIMATOR'!P119","v":0},{"$f":"T('2 REPAIR ESTIMATOR'!S119:T119)","v":""},{"$nulls":3},1,0,1]
[{"$nulls":7},{"$f":"T('2 REPAIR ESTIMATOR'!D120:O120)","v":""},{"$f":"'2 REPAIR ESTIMATOR'!P120","v":0},{"$f":"T('2 REPAIR ESTIMATOR'!S120:T120)","v":""},{"$nulls":3},1,0,1]
[{"$nulls":7},{"$f":"T('2 REPAIR ESTIMATOR'!D121:O121)","v":""},{"$f":"'2 REPAIR ESTIMATOR'!P121","v":0},{"$f":"T('2 REPAIR ESTIMATOR'!S121:T121)","v":""},{"$nulls":3},1,0,1]
[{"$nulls":7},{"$f":"T('2 REPAIR ESTIMATOR'!D122:O122)","v":""},{"$f":"'2 REPAIR ESTIMATOR'!P122","v":0},{"$f":"T('2 REPAIR ESTIMATOR'!S122:T122)","v":""},{"$nulls":3},1,0,1]
[{"$nulls":7},{"$f":"T('2 REPAIR ESTIMATOR'!D123:O123)","v":""},{"$f":"'2 REPAIR ESTIMATOR'!P123","v":0},{"$f":"T('2 REPAIR ESTIMATOR'!S123:T123)","v":""},{"$nulls":3},1,0,1]
[{"$nulls":7},{"$f":"T('2 REPAIR ESTIMATOR'!D124:O124)","v":""},{"$f":"'2 REPAIR ESTIMATOR'!P124","v":0},{"$f":"T('2 REPAIR ESTIMATOR'!S124:T124)","v":""},{"$nulls":3},1,0,1]
[{"$nulls":7},{"$f":"T('2 REPAIR ESTIMATOR'!D125:O125)","v":""},{"$f":"'2 REPAIR ESTIMATOR'!P125","v":0},{"$f":"T('2 REPAIR ESTIMATOR'!S125:T125)","v":""},{"$nulls":3},1,0,1]
[{"$nulls":7},{"$f":"T('2 REPAIR ESTIMATOR'!D126:O126)","v":""},{"$f":"'2 REPAIR ESTIMATOR'!P126","v":0},{"$f":"T('2 REPAIR ESTIMATOR'!S126:T126)","v":""},{"$nulls":3},1,0,1]
[{"$nulls":7},{"$f":"T('2 REPAIR ESTIMATOR'!D127:O127)","v":""},{"$f":"'2 REPAIR ESTIMATOR'!P127","v":0},{"$f":"T('2 REPAIR ESTIMATOR'!S127:T127)","v":""},{"$nulls":3},1,0,1]
[{"$nulls":7},{"$f":"T('2 REPAIR ESTIMATOR'!D132:O132)","v":"DEMOLITION"},{"$f":"#REF!","v":{"$error":"#REF!"}},{"$nulls":4},{"$f":"SUM(N66:N105)","v":40},{"$f":"SUM(O66:O105)","v":0},{"$f":"SUM(P66:P105)","v":40}]
[{"$nulls":7},{"$f":"T('2 REPAIR ESTIMATOR'!D133:O133)","v":"Demolition"},{"$f":"'2 REPAIR ESTIMATOR'!P133","v":0},{"$f":"T('2 REPAIR ESTIMATOR'!S133)","v":"ls"},{"$nulls":3},{"$f":"IF(I66<>\"\",1,0)","v":1},{"$f":"IF(K66=\"x\",1,0)","v":0},{"$f":"IF(AND(N66>0,O66=0),1,0)","v":1}]
[{"$nulls":7},{"$f":"T('2 REPAIR ESTIMATOR'!D134:O134)","v":"Demo bid/allowance"},{"$f":"'2 REPAIR ESTIMATOR'!P134","v":0},{"$f":"T('2 REPAIR ESTIMATOR'!S134)","v":"ls"},{"$nulls":3},{"$f":"IF(I67<>\"\",1,0)","v":1},{"$f":"IF(K67=\"x\",1,0)","v":0},{"$f":"IF(AND(N67>0,O67=0),1,0)","v":1}]
[{"$nulls":7},{"$f":"T('2 REPAIR ESTIMATOR'!D135:O135)","v":"Demolition work per hour"},{"$f":"'2 REPAIR ESTIMATOR'!P135","v":80},{"$f":"T('2 REPAIR ESTIMATOR'!S135)","v":"hrs"},{"$nulls":3},1,0,1]
[{"$nulls":7},{"$f":"T('2 REPAIR ESTIMATOR'!D136:O136)","v":"Room demolition, typical room"},{"$f":"'2 REPAIR ESTIMATOR'!P136","v":0},{"$f":"T('2 REPAIR ESTIMATOR'!S136)","v":"sf"},{"$nulls":3},1,0,1]
[{"$nulls":7},{"$f":"T('2 REPAIR ESTIMATOR'!D137:O137)","v":"Room demolition, bathroom"},{"$f":"'2 REPAIR ESTIMATOR'!P137","v":0},{"$f":"T('2 REPAIR ESTIMATOR'!S137)","v":"sf"},{"$nulls":3},1,0,1]
[{"$nulls":7},{"$f":"T('2 REPAIR ESTIMATOR'!D138:O138)","v":"Room demolition, kitchen"},{"$f":"'2 REPAIR ESTIMATOR'!P138","v":0},{"$f":"T('2 REPAIR ESTIMATOR'!S138)","v":"sf"},{"$nulls":3},1,0,1]
[{"$nulls":7},{"$f":"T('2 REPAIR ESTIMATOR'!D139:O139)","v":"Building demolition, 1-story wood-framed"},{"$f":"'2 REPAIR ESTIMATOR'!P139","v":0},{"$f":"T('2 REPAIR ESTIMATOR'!S139)","v":"sf"},{"$nulls":3},1,0,1]
[{"$nulls":7},{"$f":"T('2 REPAIR ESTIMATOR'!D140:O140)","v":"Building demolition, 2-story wood framed"},{"$f":"'2 REPAIR ESTIMATOR'!P140","v":0},{"$f":"T('2 REPAIR ESTIMATOR'!S140)","v":"sf"},{"$nulls":3},1,0,1]
[{"$nulls":7},{"$f":"T('2 REPAIR ESTIMATOR'!D141:O141)","v":"Building demolition, masonry"},{"$f":"'2 REPAIR ESTIMATOR'!P141","v":0},{"$f":"T('2 REPAIR ESTIMATOR'!S141)","v":"sf"},{"$nulls":3},1,0,1]
[{"$nulls":7},{"$f":"T('2 REPAIR ESTIMATOR'!D142:O142)","v":"Building demolition, steel/concrete"},{"$f":"'2 REPAIR ESTIMATOR'!P142","v":0},{"$f":"T('2 REPAIR ESTIMATOR'!S142)","v":"sf"},{"$nulls":3},1,0,1]
[{"$nulls":7},{"$f":"T('2 REPAIR ESTIMATOR'!D143:O143)","v":"Concrete slab demolition, 4\"-6\""},{"$f":"'2 REPAIR ESTIMATOR'!P143","v":0},{"$f":"T('2 REPAIR ESTIMATOR'!S143)","v":""},{"$nulls":3},1,0,1]
[{"$nulls":7},{"$f":"T('2 REPAIR ESTIMATOR'!D144:O144)","v":""},{"$f":"'2 REPAIR ESTIMATOR'!P144","v":0},{"$f":"T('2 REPAIR ESTIMATOR'!S144)","v":""},{"$nulls":3},1,0,1]
[{"$nulls":7},{"$f":"T('2 REPAIR ESTIMATOR'!D145:O145)","v":""},{"$f":"'2 REPAIR ESTIMATOR'!P145","v":0},{"$f":"T('2 REPAIR ESTIMATOR'!S145)","v":""},{"$nulls":3},1,0,1]
[{"$nulls":7},{"$f":"T('2 REPAIR ESTIMATOR'!D146:O146)","v":"Abatement"},{"$f":"'2 REPAIR ESTIMATOR'!P146","v":0},{"$f":"T('2 REPAIR ESTIMATOR'!S146)","v":"ls"},{"$nulls":3},1,0,1]
[{"$nulls":7},{"$f":"T('2 REPAIR ESTIMATOR'!D147:O147)","v":"Asbestos bid/allowance"},{"$f":"'2 REPAIR ESTIMATOR'!P147","v":0},{"$f":"T('2 REPAIR ESTIMATOR'!S147)","v":"ls"},{"$nulls":3},1,0,1]
[{"$nulls":7},{"$f":"T('2 REPAIR ESTIMATOR'!D148:O148)","v":"Asbestos testing"},{"$f":"'2 REPAIR ESTIMATOR'!P148","v":0},{"$f":"T('2 REPAIR ESTIMATOR'!S148)","v":"ea"},{"$nulls":3},1,0,1]
[{"$nulls":7},{"$f":"T('2 REPAIR ESTIMATOR'!D149:O149)","v":"Asbestos abatement, minimum charge"},{"$f":"'2 REPAIR ESTIMATOR'!P149","v":0},{"$f":"T('2 REPAIR ESTIMATOR'!S149)","v":"ea"},{"$nulls":3},1,0,1]
[{"$nulls":7},{"$f":"T('2 REPAIR ESTIMATOR'!D150:O150)","v":"Mold, minimum charge"},{"$f":"'2 REPAIR ESTIMATOR'!P150","v":0},{"$f":"T('2 REPAIR ESTIMATOR'!S150)","v":""},{"$nulls":3},1,0,1]
[{"$nulls":7},{"$f":"T('2 REPAIR ESTIMATOR'!D151:O151)","v":""},{"$f":"'2 REPAIR ESTIMATOR'!P151","v":0},{"$f":"T('2 REPAIR ESTIMATOR'!S151)","v":""},{"$nulls":3},1,0,1]
[{"$nulls":7},{"$f":"T('2 REPAIR ESTIMATOR'!D152:O152)","v":""},{"$f":"'2 REPAIR ESTIMATOR'!P152","v":0},{"$f":"T('2 REPAIR ESTIMATOR'!S152)","v":""},{"$nulls":3},1,0,1]
[{"$nulls":7},{"$f":"T('2 REPAIR ESTIMATOR'!D153:O153)","v":""},{"$f":"'2 REPAIR ESTIMATOR'!P153","v":0},{"$f":"T('2 REPAIR ESTIMATOR'!S153)","v":""},{"$nulls":3},1,0,1]
[{"$nulls":7},{"$f":"T('2 REPAIR ESTIMATOR'!D154:O154)","v":""},{"$f":"'2 REPAIR ESTIMATOR'!P154","v":0},{"$f":"T('2 REPAIR ESTIMATOR'!S154)","v":""},{"$nulls":3},1,0,1]
[{"$nulls":7},{"$f":"T('2 REPAIR ESTIMATOR'!D155:O155)","v":""},{"$f":"'2 REPAIR ESTIMATOR'!P155","v":0},{"$f":"T('2 REPAIR ESTIMATOR'!S155)","v":""},{"$nulls":3},1,0,1]
[{"$nulls":7},{"$f":"T('2 REPAIR ESTIMATOR'!D156:O156)","v":""},{"$f":"'2 REPAIR ESTIMATOR'!P156","v":0},{"$f":"T('2 REPAIR ESTIMATOR'!S156)","v":""},{"$nulls":3},1,0,1]
[{"$nulls":7},{"$f":"T('2 REPAIR ESTIMATOR'!D157:O157)","v":""},{"$f":"'2 REPAIR ESTIMATOR'!P157","v":0},{"$f":"T('2 REPAIR ESTIMATOR'!S157)","v":""},{"$nulls":3},1,0,1]
[{"$nulls":7},{"$f":"T('2 REPAIR ESTIMATOR'!D158:O158)","v":""},{"$f":"'2 REPAIR ESTIMATOR'!P158","v":0},{"$f":"T('2 REPAIR ESTIMATOR'!S158)","v":""},{"$nulls":3},1,0,1]
[{"$nulls":7},{"$f":"T('2 REPAIR ESTIMATOR'!D159:O159)","v":""},{"$f":"'2 REPAIR ESTIMATOR'!P159","v":0},{"$f":"T('2 REPAIR ESTIMATOR'!S159)","v":""},{"$nulls":3},1,0,1]
[{"$nulls":7},{"$f":"T('2 REPAIR ESTIMATOR'!D160:O160)","v":""},{"$f":"'2 REPAIR ESTIMATOR'!P160","v":0},{"$f":"T('2 REPAIR ESTIMATOR'!S160)","v":""},{"$nulls":3},1,0,1]
[{"$nulls":7},{"$f":"T('2 REPAIR ESTIMATOR'!D161:O161)","v":""},{"$f":"'2 REPAIR ESTIMATOR'!P161","v":0},{"$f":"T('2 REPAIR ESTIMATOR'!S161)","v":""},{"$nulls":3},1,0,1]
[{"$nulls":7},{"$f":"T('2 REPAIR ESTIMATOR'!D162:O162)","v":""},{"$f":"'2 REPAIR ESTIMATOR'!P162","v":0},{"$f":"T('2 REPAIR ESTIMATOR'!S162)","v":""},{"$nulls":3},1,0,1]
[{"$nulls":7},{"$f":"T('2 REPAIR ESTIMATOR'!D163:O163)","v":""},{"$f":"'2 REPAIR ESTIMATOR'!P163","v":0},{"$f":"T('2 REPAIR ESTIMATOR'!S163)","v":""},{"$nulls":3},1,0,1]
[{"$nulls":7},{"$f":"T('2 REPAIR ESTIMATOR'!D164:O164)","v":""},{"$f":"'2 REPAIR ESTIMATOR'!P164","v":0},{"$f":"T('2 REPAIR ESTIMATOR'!S164)","v":""},{"$nulls":3},1,0,1]
[{"$nulls":7},{"$f":"T('2 REPAIR ESTIMATOR'!D165:O165)","v":""},{"$f":"'2 REPAIR ESTIMATOR'!P165","v":0},{"$f":"T('2 REPAIR ESTIMATOR'!S165)","v":""},{"$nulls":3},1,0,1]
[{"$nulls":7},{"$f":"T('2 REPAIR ESTIMATOR'!D166:O166)","v":""},{"$f":"'2 REPAIR ESTIMATOR'!P166","v":0},{"$f":"T('2 REPAIR ESTIMATOR'!S166)","v":""},{"$nulls":3},1,0,1]
[{"$nulls":7},{"$f":"T('2 REPAIR ESTIMATOR'!D167:O167)","v":""},{"$f":"'2 REPAIR ESTIMATOR'!P167","v":0},{"$f":"T('2 REPAIR ESTIMATOR'!S167)","v":""},{"$nulls":3},1,0,1]
[{"$nulls":7},{"$f":"T('2 REPAIR ESTIMATOR'!D168:O168)","v":""},{"$f":"'2 REPAIR ESTIMATOR'!P168","v":0},{"$f":"T('2 REPAIR ESTIMATOR'!S168)","v":""},{"$nulls":3},1,0,1]
[{"$nulls":7},{"$f":"T('2 REPAIR ESTIMATOR'!D169:O169)","v":""},{"$f":"'2 REPAIR ESTIMATOR'!P169","v":0},{"$f":"T('2 REPAIR ESTIMATOR'!S169)","v":""},{"$nulls":3},1,0,1]
[{"$nulls":7},{"$f":"T('2 REPAIR ESTIMATOR'!D170:O170)","v":""},{"$f":"'2 REPAIR ESTIMATOR'!P170","v":0},{"$f":"T('2 REPAIR ESTIMATOR'!S170)","v":""},{"$nulls":3},1,0,1]
[{"$nulls":7},{"$f":"T('2 REPAIR ESTIMATOR'!D171:O171)","v":""},{"$f":"'2 REPAIR ESTIMATOR'!P171","v":0},{"$f":"T('2 REPAIR ESTIMATOR'!S171)","v":""},{"$nulls":3},1,0,1]
[{"$nulls":7},{"$f":"T('2 REPAIR ESTIMATOR'!D172:O172)","v":""},{"$f":"'2 REPAIR ESTIMATOR'!P172","v":0},{"$f":"T('2 REPAIR ESTIMATOR'!S172)","v":""},{"$nulls":3},1,0,1]
[{"$nulls":7},{"$f":"T('2 REPAIR ESTIMATOR'!D177:O177)","v":"STRUCTURAL CONCRETE"},{"$f":"#REF!","v":{"$error":"#REF!"}},{"$nulls":4},{"$f":"SUM(N107:N146)","v":40},{"$f":"SUM(O107:O146)","v":0},{"$f":"SUM(P107:P146)","v":40}]
[{"$nulls":7},{"$f":"T('2 REPAIR ESTIMATOR'!D178:O178)","v":"Excavation"},{"$f":"'2 REPAIR ESTIMATOR'!P178","v":0},{"$f":"T('2 REPAIR ESTIMATOR'!S178)","v":""},{"$nulls":3},{"$f":"IF(I107<>\"\",1,0)","v":1},{"$f":"IF(K107=\"x\",1,0)","v":0},{"$f":"IF(AND(N107>0,O107=0),1,0)","v":1}]
[{"$nulls":7},{"$f":"T('2 REPAIR ESTIMATOR'!D179:O179)","v":"Excavation bid/allowance"},{"$f":"'2 REPAIR ESTIMATOR'!P179","v":0},{"$f":"T('2 REPAIR ESTIMATOR'!S179)","v":"ls"},{"$nulls":3},{"$f":"IF(I108<>\"\",1,0)","v":1},{"$f":"IF(K108=\"x\",1,0)","v":0},{"$f":"IF(AND(N108>0,O108=0),1,0)","v":1}]
[{"$nulls":7},{"$f":"T('2 REPAIR ESTIMATOR'!D180:O180)","v":"Footing trenching"},{"$f":"'2 REPAIR ESTIMATOR'!P180","v":0},{"$f":"T('2 REPAIR ESTIMATOR'!S180)","v":"cy"},{"$nulls":3},1,0,1]
[{"$nulls":7},{"$f":"T('2 REPAIR ESTIMATOR'!D181:O181)","v":"Backfill of trenches "},{"$f":"'2 REPAIR ESTIMATOR'!P181","v":0},{"$f":"T('2 REPAIR ESTIMATOR'!S181)","v":"cy"},{"$nulls":3},1,0,1]
[{"$nulls":7},{"$f":"T('2 REPAIR ESTIMATOR'!D182:O182)","v":""},{"$f":"'2 REPAIR ESTIMATOR'!P182","v":0},{"$f":"T('2 REPAIR ESTIMATOR'!S182)","v":""},{"$nulls":3},1,0,1]
[{"$nulls":7},{"$f":"T('2 REPAIR ESTIMATOR'!D183:O183)","v":""},{"$f":"'2 REPAIR ESTIMATOR'!P183","v":0},{"$f":"T('2 REPAIR ESTIMATOR'!S183)","v":""},{"$nulls":3},1,0,1]
[{"$nulls":7},{"$f":"T('2 REPAIR ESTIMATOR'!D184:O184)","v":"Foundation"},{"$f":"'2 REPAIR ESTIMATOR'!P184","v":0},{"$f":"T('2 REPAIR ESTIMATOR'!S184)","v":""},{"$nulls":3},1,0,1]
[{"$nulls":7},{"$f":"T('2 REPAIR ESTIMATOR'!D185:O185)","v":"Foundation bid/allowance"},{"$f":"'2 REPAIR ESTIMATOR'!P185","v":0},{"$f":"T('2 REPAIR ESTIMATOR'!S185)","v":"ls"},{"$nulls":3},1,0,1]
[{"$nulls":7},{"$f":"T('2 REPAIR ESTIMATOR'!D186:O186)","v":"Concrete slab on grade, 4\" thick"},{"$f":"'2 REPAIR ESTIMATOR'!P186","v":0},{"$f":"T('2 REPAIR ESTIMATOR'!S186)","v":"sf"},{"$nulls":3},1,0,1]
[{"$nulls":7},{"$f":"T('2 REPAIR ESTIMATOR'!D187:O187)","v":"Concrete footing, 12\" wide "},{"$f":"'2 REPAIR ESTIMATOR'!P187","v":0},{"$f":"T('2 REPAIR ESTIMATOR'!S187)","v":"lf"},{"$nulls":3},1,0,1]
[{"$nulls":7},{"$f":"T('2 REPAIR ESTIMATOR'!D188:O188)","v":"Stem wall, single story"},{"$f":"'2 REPAIR ESTIMATOR'!P188","v":0},{"$f":"T('2 REPAIR ESTIMATOR'!S188)","v":"lf"},{"$nulls":3},1,0,1]
[{"$nulls":7},{"$f":"T('2 REPAIR ESTIMATOR'!D189:O189)","v":""},{"$f":"'2 REPAIR ESTIMATOR'!P189","v":0},{"$f":"T('2 REPAIR ESTIMATOR'!S189)","v":""},{"$nulls":3},1,0,1]
[{"$nulls":7},{"$f":"T('2 REPAIR ESTIMATOR'!D190:O190)","v":""},{"$f":"'2 REPAIR ESTIMATOR'!P190","v":0},{"$f":"T('2 REPAIR ESTIMATOR'!S190)","v":""},{"$nulls":3},1,0,1]
[{"$nulls":7},{"$f":"T('2 REPAIR ESTIMATOR'!D191:O191)","v":"Structural Repairs"},{"$f":"'2 REPAIR ESTIMATOR'!P191","v":0},{"$f":"T('2 REPAIR ESTIMATOR'!S191)","v":""},{"$nulls":3},1,0,1]
[{"$nulls":7},{"$f":"T('2 REPAIR ESTIMATOR'!D192:O192)","v":"Structural Repairs bid/allowance"},{"$f":"'2 REPAIR ESTIMATOR'!P192","v":0},{"$f":"T('2 REPAIR ESTIMATOR'!S192)","v":"ls"},{"$nulls":3},1,0,1]
[{"$nulls":7},{"$f":"T('2 REPAIR ESTIMATOR'!D193:O193)","v":"Stair mud jacking, case by case"},{"$f":"'2 REPAIR ESTIMATOR'!P193","v":0},{"$f":"T('2 REPAIR ESTIMATOR'!S193)","v":"ea"},{"$nulls":3},1,0,1]
[{"$nulls":7},{"$f":"T('2 REPAIR ESTIMATOR'!D194:O194)","v":"Bowing foundation walls, vertical I-Beams"},{"$f":"'2 REPAIR ESTIMATOR'!P194","v":0},{"$f":"T('2 REPAIR ESTIMATOR'!S194)","v":"ea"},{"$nulls":3},1,0,1]
[{"$nulls":7},{"$f":"T('2 REPAIR ESTIMATOR'!D195:O195)","v":"Settled foundation walls, concrete piers/underpinning"},{"$f":"'2 REPAIR ESTIMATOR'!P195","v":0},{"$f":"T('2 REPAIR ESTIMATOR'!S195)","v":"ea"},{"$nulls":3},1,0,1]
[{"$nulls":7},{"$f":"T('2 REPAIR ESTIMATOR'!D196:O196)","v":"Foundation waterproofing & drain tile, single story"},{"$f":"'2 REPAIR ESTIMATOR'!P196","v":0},{"$f":"T('2 REPAIR ESTIMATOR'!S196)","v":"lf"},{"$nulls":3},1,0,1]
[{"$nulls":7},{"$f":"T('2 REPAIR ESTIMATOR'!D197:O197)","v":"Epoxy crack injection"},{"$f":"'2 REPAIR ESTIMATOR'!P197","v":0},{"$f":"T('2 REPAIR ESTIMATOR'!S197)","v":"lf"},{"$nulls":3},1,0,1]
[{"$nulls":7},{"$f":"T('2 REPAIR ESTIMATOR'!D198:O198)","v":""},{"$f":"'2 REPAIR ESTIMATOR'!P198","v":0},{"$f":"T('2 REPAIR ESTIMATOR'!S198)","v":""},{"$nulls":3},1,0,1]
[{"$nulls":7},{"$f":"T('2 REPAIR ESTIMATOR'!D199:O199)","v":""},{"$f":"'2 REPAIR ESTIMATOR'!P199","v":0},{"$f":"T('2 REPAIR ESTIMATOR'!S199)","v":""},{"$nulls":3},1,0,1]
[{"$nulls":7},{"$f":"T('2 REPAIR ESTIMATOR'!D200:O200)","v":""},{"$f":"'2 REPAIR ESTIMATOR'!P200","v":0},{"$f":"T('2 REPAIR ESTIMATOR'!S200)","v":""},{"$nulls":3},1,0,1]
[{"$nulls":7},{"$f":"T('2 REPAIR ESTIMATOR'!D201:O201)","v":""},{"$f":"'2 REPAIR ESTIMATOR'!P201","v":0},{"$f":"T('2 REPAIR ESTIMATOR'!S201)","v":""},{"$nulls":3},1,0,1]
[{"$nulls":7},{"$f":"T('2 REPAIR ESTIMATOR'!D202:O202)","v":""},{"$f":"'2 REPAIR ESTIMATOR'!P202","v":0},{"$f":"T('2 REPAIR ESTIMATOR'!S202)","v":""},{"$nulls":3},1,0,1]
[{"$nulls":7},{"$f":"T('2 REPAIR ESTIMATOR'!D203:O203)","v":""},{"$f":"'2 REPAIR ESTIMATOR'!P203","v":0},{"$f":"T('2 REPAIR ESTIMATOR'!S203)","v":""},{"$nulls":3},1,0,1]
[{"$nulls":7},{"$f":"T('2 REPAIR ESTIMATOR'!D204:O204)","v":""},{"$f":"'2 REPAIR ESTIMATOR'!P204","v":0},{"$f":"T('2 REPAIR ESTIMATOR'!S204)","v":""},{"$nulls":3},1,0,1]
[{"$nulls":7},{"$f":"T('2 REPAIR ESTIMATOR'!D205:O205)","v":""},{"$f":"'2 REPAIR ESTIMATOR'!P205","v":0},{"$f":"T('2 REPAIR ESTIMATOR'!S205)","v":""},{"$nulls":3},1,0,1]
[{"$nulls":7},{"$f":"T('2 REPAIR ESTIMATOR'!D206:O206)","v":""},{"$f":"'2 REPAIR ESTIMATOR'!P206","v":0},{"$f":"T('2 REPAIR ESTIMATOR'!S206)","v":""},{"$nulls":3},1,0,1]
[{"$nulls":7},{"$f":"T('2 REPAIR ESTIMATOR'!D207:O207)","v":""},{"$f":"'2 REPAIR ESTIMATOR'!P207","v":0},{"$f":"T('2 REPAIR ESTIMATOR'!S207)","v":""},{"$nulls":3},1,0,1]
[{"$nulls":7},{"$f":"T('2 REPAIR ESTIMATOR'!D208:O208)","v":""},{"$f":"'2 REPAIR ESTIMATOR'!P208","v":0},{"$f":"T('2 REPAIR ESTIMATOR'!S208)","v":""},{"$nulls":3},1,0,1]
[{"$nulls":7},{"$f":"T('2 REPAIR ESTIMATOR'!D209:O209)","v":""},{"$f":"'2 REPAIR ESTIMATOR'!P209","v":0},{"$f":"T('2 REPAIR ESTIMATOR'!S209)","v":""},{"$nulls":3},1,0,1]
[{"$nulls":7},{"$f":"T('2 REPAIR ESTIMATOR'!D210:O210)","v":""},{"$f":"'2 REPAIR ESTIMATOR'!P210","v":0},{"$f":"T('2 REPAIR ESTIMATOR'!S210)","v":""},{"$nulls":3},1,0,1]
[{"$nulls":7},{"$f":"T('2 REPAIR ESTIMATOR'!D211:O211)","v":""},{"$f":"'2 REPAIR ESTIMATOR'!P211","v":0},{"$f":"T('2 REPAIR ESTIMATOR'!S211)","v":""},{"$nulls":3},1,0,1]
[{"$nulls":7},{"$f":"T('2 REPAIR ESTIMATOR'!D212:O212)","v":""},{"$f":"'2 REPAIR ESTIMATOR'!P212","v":0},{"$f":"T('2 REPAIR ESTIMATOR'!S212)","v":""},{"$nulls":3},1,0,1]
[{"$nulls":7},{"$f":"T('2 REPAIR ESTIMATOR'!D213:O213)","v":""},{"$f":"'2 REPAIR ESTIMATOR'!P213","v":0},{"$f":"T('2 REPAIR ESTIMATOR'!S213)","v":""},{"$nulls":3},1,0,1]
[{"$nulls":7},{"$f":"T('2 REPAIR ESTIMATOR'!D214:O214)","v":""},{"$f":"'2 REPAIR ESTIMATOR'!P214","v":0},{"$f":"T('2 REPAIR ESTIMATOR'!S214)","v":""},{"$nulls":3},1,0,1]
[{"$nulls":7},{"$f":"T('2 REPAIR ESTIMATOR'!D215:O215)","v":""},{"$f":"'2 REPAIR ESTIMATOR'!P215","v":0},{"$f":"T('2 REPAIR ESTIMATOR'!S215)","v":""},{"$nulls":3},1,0,1]
[{"$nulls":7},{"$f":"T('2 REPAIR ESTIMATOR'!D216:O216)","v":""},{"$f":"'2 REPAIR ESTIMATOR'!P216","v":0},{"$f":"T('2 REPAIR ESTIMATOR'!S216)","v":""},{"$nulls":3},1,0,1]
[{"$nulls":7},{"$f":"T('2 REPAIR ESTIMATOR'!D217:O217)","v":""},{"$f":"'2 REPAIR ESTIMATOR'!P217","v":0},{"$f":"T('2 REPAIR ESTIMATOR'!S217)","v":""},{"$nulls":3},1,0,1]
[{"$nulls":7},{"$f":"T('2 REPAIR ESTIMATOR'!D222:O222)","v":"CONCRETE & FLATWORK"},{"$f":"#REF!","v":{"$error":"#REF!"}},{"$nulls":4},{"$f":"SUM(N148:N187)","v":40},{"$f":"SUM(O148:O187)","v":0},{"$f":"SUM(P148:P187)","v":40}]
[{"$nulls":7},{"$f":"T('2 REPAIR ESTIMATOR'!D223:O223)","v":"Concrete"},{"$f":"'2 REPAIR ESTIMATOR'!P223","v":0},{"$f":"T('2 REPAIR ESTIMATOR'!S223)","v":""},{"$nulls":3},{"$f":"IF(I148<>\"\",1,0)","v":1},{"$f":"IF(K148=\"x\",1,0)","v":0},{"$f":"IF(AND(N148>0,O148=0),1,0)","v":1}]
[{"$nulls":7},{"$f":"T('2 REPAIR ESTIMATOR'!D224:O224)","v":"Concrete bid/allowance"},{"$f":"'2 REPAIR ESTIMATOR'!P224","v":0},{"$f":"T('2 REPAIR ESTIMATOR'!S224)","v":"ls"},{"$nulls":3},{"$f":"IF(I149<>\"\",1,0)","v":1},{"$f":"IF(K149=\"x\",1,0)","v":0},{"$f":"IF(AND(N149>0,O149=0),1,0)","v":1}]
[{"$nulls":7},{"$f":"T('2 REPAIR ESTIMATOR'!D225:O225)","v":"Concrete flatwork demo"},{"$f":"'2 REPAIR ESTIMATOR'!P225","v":0},{"$f":"T('2 REPAIR ESTIMATOR'!S225)","v":"sf"},{"$nulls":3},1,0,1]
[{"$nulls":7},{"$f":"T('2 REPAIR ESTIMATOR'!D226:O226)","v":"Concrete driveway/patio, 6\" thick"},{"$f":"'2 REPAIR ESTIMATOR'!P226","v":0},{"$f":"T('2 REPAIR ESTIMATOR'!S226)","v":"sf"},{"$nulls":3},1,0,1]
[{"$nulls":7},{"$f":"T('2 REPAIR ESTIMATOR'!D227:O227)","v":"Concrete sidewalk, 4\" thick"},{"$f":"'2 REPAIR ESTIMATOR'!P227","v":0},{"$f":"T('2 REPAIR ESTIMATOR'!S227)","v":"sf"},{"$nulls":3},1,0,1]
[{"$nulls":7},{"$f":"T('2 REPAIR ESTIMATOR'!D228:O228)","v":"Add for 4\" base rock below concrete pavement"},{"$f":"'2 REPAIR ESTIMATOR'!P228","v":0},{"$f":"T('2 REPAIR ESTIMATOR'!S228)","v":"sf"},{"$nulls":3},1,0,1]
[{"$nulls":7},{"$f":"T('2 REPAIR ESTIMATOR'!D229:O229)","v":""},{"$f":"'2 REPAIR ESTIMATOR'!P229","v":0},{"$f":"T('2 REPAIR ESTIMATOR'!S229)","v":""},{"$nulls":3},1,0,1]
[{"$nulls":7},{"$f":"T('2 REPAIR ESTIMATOR'!D230:O230)","v":"Asphalt"},{"$f":"'2 REPAIR ESTIMATOR'!P230","v":0},{"$f":"T('2 REPAIR ESTIMATOR'!S230)","v":""},{"$nulls":3},1,0,1]
[{"$nulls":7},{"$f":"T('2 REPAIR ESTIMATOR'!D231:O231)","v":"Asphalt bid/allowance"},{"$f":"'2 REPAIR ESTIMATOR'!P231","v":0},{"$f":"T('2 REPAIR ESTIMATOR'!S231)","v":"ls"},{"$nulls":3},1,0,1]
[{"$nulls":7},{"$f":"T('2 REPAIR ESTIMATOR'!D232:O232)","v":"Asphalt pavement, 5\" thick"},{"$f":"'2 REPAIR ESTIMATOR'!P232","v":0},{"$f":"T('2 REPAIR ESTIMATOR'!S232)","v":"sy"},{"$nulls":3},1,0,1]
[{"$nulls":7},{"$f":"T('2 REPAIR ESTIMATOR'!D233:O233)","v":"Asphalt pavement, 7\" thick"},{"$f":"'2 REPAIR ESTIMATOR'!P233","v":0},{"$f":"T('2 REPAIR ESTIMATOR'!S233)","v":"sy"},{"$nulls":3},1,0,1]
[{"$nulls":7},{"$f":"T('2 REPAIR ESTIMATOR'!D234:O234)","v":"Asphalt pavement, wearing course, 1\" thick only"},{"$f":"'2 REPAIR ESTIMATOR'!P234","v":0},{"$f":"T('2 REPAIR ESTIMATOR'!S234)","v":"sy"},{"$nulls":3},1,0,1]
[{"$nulls":7},{"$f":"T('2 REPAIR ESTIMATOR'!D235:O235)","v":"Asphalt seal coat"},{"$f":"'2 REPAIR ESTIMATOR'!P235","v":0},{"$f":"T('2 REPAIR ESTIMATOR'!S235)","v":"sy"},{"$nulls":3},1,0,1]
[{"$nulls":7},{"$f":"T('2 REPAIR ESTIMATOR'!D236:O236)","v":"Add for 4\" base rock below asphalt pavement"},{"$f":"'2 REPAIR ESTIMATOR'!P236","v":0},{"$f":"T('2 REPAIR ESTIMATOR'!S236)","v":"sy"},{"$nulls":3},1,0,1]
[{"$nulls":7},{"$f":"T('2 REPAIR ESTIMATOR'!D237:O237)","v":""},{"$f":"'2 REPAIR ESTIMATOR'!P237","v":0},{"$f":"T('2 REPAIR ESTIMATOR'!S237)","v":""},{"$nulls":3},1,0,1]
[{"$nulls":7},{"$f":"T('2 REPAIR ESTIMATOR'!D238:O238)","v":"Pavers"},{"$f":"'2 REPAIR ESTIMATOR'!P238","v":0},{"$f":"T('2 REPAIR ESTIMATOR'!S238)","v":""},{"$nulls":3},1,0,1]
[{"$nulls":7},{"$f":"T('2 REPAIR ESTIMATOR'!D239:O239)","v":"Pavers bid/allowance"},{"$f":"'2 REPAIR ESTIMATOR'!P239","v":0},{"$f":"T('2 REPAIR ESTIMATOR'!S239)","v":"ls"},{"$nulls":3},1,0,1]
[{"$nulls":7},{"$f":"T('2 REPAIR ESTIMATOR'!D240:O240)","v":"Brick pavers, sand base"},{"$f":"'2 REPAIR ESTIMATOR'!P240","v":0},{"$f":"T('2 REPAIR ESTIMATOR'!S240)","v":"sf"},{"$nulls":3},1,0,1]
[{"$nulls":7},{"$f":"T('2 REPAIR ESTIMATOR'!D241:O241)","v":"Brick pavers, mortar base"},{"$f":"'2 REPAIR ESTIMATOR'!P241","v":0},{"$f":"T('2 REPAIR ESTIMATOR'!S241)","v":"sf"},{"$nulls":3},1,0,1]
[{"$nulls":7},{"$f":"T('2 REPAIR ESTIMATOR'!D242:O242)","v":""},{"$f":"'2 REPAIR ESTIMATOR'!P242","v":0},{"$f":"T('2 REPAIR ESTIMATOR'!S242)","v":""},{"$nulls":3},1,0,1]
[{"$nulls":7},{"$f":"T('2 REPAIR ESTIMATOR'!D243:O243)","v":""},{"$f":"'2 REPAIR ESTIMATOR'!P243","v":0},{"$f":"T('2 REPAIR ESTIMATOR'!S243)","v":""},{"$nulls":3},1,0,1]
[{"$nulls":7},{"$f":"T('2 REPAIR ESTIMATOR'!D244:O244)","v":""},{"$f":"'2 REPAIR ESTIMATOR'!P244","v":0},{"$f":"T('2 REPAIR ESTIMATOR'!S244)","v":""},{"$nulls":3},1,0,1]
[{"$nulls":7},{"$f":"T('2 REPAIR ESTIMATOR'!D245:O245)","v":""},{"$f":"'2 REPAIR ESTIMATOR'!P245","v":0},{"$f":"T('2 REPAIR ESTIMATOR'!S245)","v":""},{"$nulls":3},1,0,1]
[{"$nulls":7},{"$f":"T('2 REPAIR ESTIMATOR'!D246:O246)","v":""},{"$f":"'2 REPAIR ESTIMATOR'!P246","v":0},{"$f":"T('2 REPAIR ESTIMATOR'!S246)","v":""},{"$nulls":3},1,0,1]
[{"$nulls":7},{"$f":"T('2 REPAIR ESTIMATOR'!D247:O247)","v":""},{"$f":"'2 REPAIR ESTIMATOR'!P247","v":0},{"$f":"T('2 REPAIR ESTIMATOR'!S247)","v":""},{"$nulls":3},1,0,1]
[{"$nulls":7},{"$f":"T('2 REPAIR ESTIMATOR'!D248:O248)","v":""},{"$f":"'2 REPAIR ESTIMATOR'!P248","v":0},{"$f":"T('2 REPAIR ESTIMATOR'!S248)","v":""},{"$nulls":3},1,0,1]
[{"$nulls":7},{"$f":"T('2 REPAIR ESTIMATOR'!D249:O249)","v":""},{"$f":"'2 REPAIR ESTIMATOR'!P249","v":0},{"$f":"T('2 REPAIR ESTIMATOR'!S249)","v":""},{"$nulls":3},1,0,1]
[{"$nulls":7},{"$f":"T('2 REPAIR ESTIMATOR'!D250:O250)","v":""},{"$f":"'2 REPAIR ESTIMATOR'!P250","v":0},{"$f":"T('2 REPAIR ESTIMATOR'!S250)","v":""},{"$nulls":3},1,0,1]
[{"$nulls":7},{"$f":"T('2 REPAIR ESTIMATOR'!D251:O251)","v":""},{"$f":"'2 REPAIR ESTIMATOR'!P251","v":0},{"$f":"T('2 REPAIR ESTIMATOR'!S251)","v":""},{"$nulls":3},1,0,1]
[{"$nulls":7},{"$f":"T('2 REPAIR ESTIMATOR'!D252:O252)","v":""},{"$f":"'2 REPAIR ESTIMATOR'!P252","v":0},{"$f":"T('2 REPAIR ESTIMATOR'!S252)","v":""},{"$nulls":3},1,0,1]
[{"$nulls":7},{"$f":"T('2 REPAIR ESTIMATOR'!D253:O253)","v":""},{"$f":"'2 REPAIR ESTIMATOR'!P253","v":0},{"$f":"T('2 REPAIR ESTIMATOR'!S253)","v":""},{"$nulls":3},1,0,1]
[{"$nulls":7},{"$f":"T('2 REPAIR ESTIMATOR'!D254:O254)","v":""},{"$f":"'2 REPAIR ESTIMATOR'!P254","v":0},{"$f":"T('2 REPAIR ESTIMATOR'!S254)","v":""},{"$nulls":3},1,0,1]
[{"$nulls":7},{"$f":"T('2 REPAIR ESTIMATOR'!D255:O255)","v":""},{"$f":"'2 REPAIR ESTIMATOR'!P255","v":0},{"$f":"T('2 REPAIR ESTIMATOR'!S255)","v":""},{"$nulls":3},1,0,1]
[{"$nulls":7},{"$f":"T('2 REPAIR ESTIMATOR'!D256:O256)","v":""},{"$f":"'2 REPAIR ESTIMATOR'!P256","v":0},{"$f":"T('2 REPAIR ESTIMATOR'!S256)","v":""},{"$nulls":3},1,0,1]
[{"$nulls":7},{"$f":"T('2 REPAIR ESTIMATOR'!D257:O257)","v":""},{"$f":"'2 REPAIR ESTIMATOR'!P257","v":0},{"$f":"T('2 REPAIR ESTIMATOR'!S257)","v":""},{"$nulls":3},1,0,1]
[{"$nulls":7},{"$f":"T('2 REPAIR ESTIMATOR'!D258:O258)","v":""},{"$f":"'2 REPAIR ESTIMATOR'!P258","v":0},{"$f":"T('2 REPAIR ESTIMATOR'!S258)","v":""},{"$nulls":3},1,0,1]
[{"$nulls":7},{"$f":"T('2 REPAIR ESTIMATOR'!D259:O259)","v":""},{"$f":"'2 REPAIR ESTIMATOR'!P259","v":0},{"$f":"T('2 REPAIR ESTIMATOR'!S259)","v":""},{"$nulls":3},1,0,1]
[{"$nulls":7},{"$f":"T('2 REPAIR ESTIMATOR'!D260:O260)","v":""},{"$f":"'2 REPAIR ESTIMATOR'!P260","v":0},{"$f":"T('2 REPAIR ESTIMATOR'!S260)","v":""},{"$nulls":3},1,0,1]
[{"$nulls":7},{"$f":"T('2 REPAIR ESTIMATOR'!D261:O261)","v":""},{"$f":"'2 REPAIR ESTIMATOR'!P261","v":0},{"$f":"T('2 REPAIR ESTIMATOR'!S261)","v":""},{"$nulls":3},1,0,1]
[{"$nulls":7},{"$f":"T('2 REPAIR ESTIMATOR'!D262:O262)","v":""},{"$f":"'2 REPAIR ESTIMATOR'!P262","v":0},{"$f":"T('2 REPAIR ESTIMATOR'!S262)","v":""},{"$nulls":3},1,0,1]
[{"$nulls":7},{"$f":"T('2 REPAIR ESTIMATOR'!D267:O267)","v":"MASONRY"},{"$f":"#REF!","v":{"$error":"#REF!"}},{"$nulls":4},{"$f":"SUM(N189:N228)","v":40},{"$f":"SUM(O189:O228)","v":0},{"$f":"SUM(P189:P228)","v":40}]
[{"$nulls":7},{"$f":"T('2 REPAIR ESTIMATOR'!D268:O268)","v":"Masonry bid/allowance"},{"$f":"'2 REPAIR ESTIMATOR'!P268","v":0},{"$f":"T('2 REPAIR ESTIMATOR'!S268)","v":"ls"},{"$nulls":3},{"$f":"IF(I189<>\"\",1,0)","v":1},{"$f":"IF(K189=\"x\",1,0)","v":0},{"$f":"IF(AND(N189>0,O189=0),1,0)","v":1}]
[{"$nulls":7},{"$f":"T('2 REPAIR ESTIMATOR'!D269:O269)","v":"CMU, 4x8"},{"$f":"'2 REPAIR ESTIMATOR'!P269","v":0},{"$f":"T('2 REPAIR ESTIMATOR'!S269)","v":"sf"},{"$nulls":3},{"$f":"IF(I190<>\"\",1,0)","v":1},{"$f":"IF(K190=\"x\",1,0)","v":0},{"$f":"IF(AND(N190>0,O190=0),1,0)","v":1}]
[{"$nulls":7},{"$f":"T('2 REPAIR ESTIMATOR'!D270:O270)","v":"CMU, 8x8"},{"$f":"'2 REPAIR ESTIMATOR'!P270","v":0},{"$f":"T('2 REPAIR ESTIMATOR'!S270)","v":"sf"},{"$nulls":3},1,0,1]
[{"$nulls":7},{"$f":"T('2 REPAIR ESTIMATOR'!D271:O271)","v":"Brick veneer"},{"$f":"'2 REPAIR ESTIMATOR'!P271","v":0},{"$f":"T('2 REPAIR ESTIMATOR'!S271)","v":"sf"},{"$nulls":3},1,0,1]
[{"$nulls":7},{"$f":"T('2 REPAIR ESTIMATOR'!D272:O272)","v":"Natural stone"},{"$f":"'2 REPAIR ESTIMATOR'!P272","v":0},{"$f":"T('2 REPAIR ESTIMATOR'!S272)","v":"sf"},{"$nulls":3},1,0,1]
[{"$nulls":7},{"$f":"T('2 REPAIR ESTIMATOR'!D273:O273)","v":"Masonry waterproofing"},{"$f":"'2 REPAIR ESTIMATOR'!P273","v":0},{"$f":"T('2 REPAIR ESTIMATOR'!S273)","v":"sf"},{"$nulls":3},1,0,1]
[{"$nulls":7},{"$f":"T('2 REPAIR ESTIMATOR'!D274:O274)","v":"Tuck-point masonry"},{"$f":"'2 REPAIR ESTIMATOR'!P274","v":0},{"$f":"T('2 REPAIR ESTIMATOR'!S274)","v":"sf"},{"$nulls":3},1,0,1]
[{"$nulls":7},{"$f":"T('2 REPAIR ESTIMATOR'!D275:O275)","v":"Power wash masonry"},{"$f":"'2 REPAIR ESTIMATOR'!P275","v":0},{"$f":"T('2 REPAIR ESTIMATOR'!S275)","v":"sf"},{"$nulls":3},1,0,1]
[{"$nulls":7},{"$f":"T('2 REPAIR ESTIMATOR'!D276:O276)","v":"Chimney, brick "},{"$f":"'2 REPAIR ESTIMATOR'!P276","v":0},{"$f":"T('2 REPAIR ESTIMATOR'!S276)","v":"vlf"},{"$nulls":3},1,0,1]
[{"$nulls":7},{"$f":"T('2 REPAIR ESTIMATOR'!D277:O277)","v":"Chimney, stone"},{"$f":"'2 REPAIR ESTIMATOR'!P277","v":0},{"$f":"T('2 REPAIR ESTIMATOR'!S277)","v":"vlf"},{"$nulls":3},1,0,1]
[{"$nulls":7},{"$f":"T('2 REPAIR ESTIMATOR'!D278:O278)","v":"Add to above for chimney cap"},{"$f":"'2 REPAIR ESTIMATOR'!P278","v":0},{"$f":"T('2 REPAIR ESTIMATOR'!S278)","v":"ea"},{"$nulls":3},1,0,1]
[{"$nulls":7},{"$f":"T('2 REPAIR ESTIMATOR'!D279:O279)","v":"Fireplace complete, brick, 3ft-4ft wide w/ chimney"},{"$f":"'2 REPAIR ESTIMATOR'!P279","v":0},{"$f":"T('2 REPAIR ESTIMATOR'!S279)","v":"ea"},{"$nulls":3},1,0,1]
[{"$nulls":7},{"$f":"T('2 REPAIR ESTIMATOR'!D280:O280)","v":""},{"$f":"'2 REPAIR ESTIMATOR'!P280","v":0},{"$f":"T('2 REPAIR ESTIMATOR'!S280)","v":""},{"$nulls":3},1,0,1]
[{"$nulls":7},{"$f":"T('2 REPAIR ESTIMATOR'!D281:O281)","v":""},{"$f":"'2 REPAIR ESTIMATOR'!P281","v":0},{"$f":"T('2 REPAIR ESTIMATOR'!S281)","v":""},{"$nulls":3},1,0,1]
[{"$nulls":7},{"$f":"T('2 REPAIR ESTIMATOR'!D282:O282)","v":""},{"$f":"'2 REPAIR ESTIMATOR'!P282","v":0},{"$f":"T('2 REPAIR ESTIMATOR'!S282)","v":""},{"$nulls":3},1,0,1]
[{"$nulls":7},{"$f":"T('2 REPAIR ESTIMATOR'!D283:O283)","v":""},{"$f":"'2 REPAIR ESTIMATOR'!P283","v":0},{"$f":"T('2 REPAIR ESTIMATOR'!S283)","v":""},{"$nulls":3},1,0,1]
[{"$nulls":7},{"$f":"T('2 REPAIR ESTIMATOR'!D284:O284)","v":""},{"$f":"'2 REPAIR ESTIMATOR'!P284","v":0},{"$f":"T('2 REPAIR ESTIMATOR'!S284)","v":""},{"$nulls":3},1,0,1]
[{"$nulls":7},{"$f":"T('2 REPAIR ESTIMATOR'!D285:O285)","v":""},{"$f":"'2 REPAIR ESTIMATOR'!P285","v":0},{"$f":"T('2 REPAIR ESTIMATOR'!S285)","v":""},{"$nulls":3},1,0,1]
[{"$nulls":7},{"$f":"T('2 REPAIR ESTIMATOR'!D286:O286)","v":""},{"$f":"'2 REPAIR ESTIMATOR'!P286","v":0},{"$f":"T('2 REPAIR ESTIMATOR'!S286)","v":""},{"$nulls":3},1,0,1]
[{"$nulls":7},{"$f":"T('2 REPAIR ESTIMATOR'!D287:O287)","v":""},{"$f":"'2 REPAIR ESTIMATOR'!P287","v":0},{"$f":"T('2 REPAIR ESTIMATOR'!S287)","v":""},{"$nulls":3},1,0,1]
[{"$nulls":7},{"$f":"T('2 REPAIR ESTIMATOR'!D288:O288)","v":""},{"$f":"'2 REPAIR ESTIMATOR'!P288","v":0},{"$f":"T('2 REPAIR ESTIMATOR'!S288)","v":""},{"$nulls":3},1,0,1]
[{"$nulls":7},{"$f":"T('2 REPAIR ESTIMATOR'!D289:O289)","v":""},{"$f":"'2 REPAIR ESTIMATOR'!P289","v":0},{"$f":"T('2 REPAIR ESTIMATOR'!S289)","v":""},{"$nulls":3},1,0,1]
[{"$nulls":7},{"$f":"T('2 REPAIR ESTIMATOR'!D290:O290)","v":""},{"$f":"'2 REPAIR ESTIMATOR'!P290","v":0},{"$f":"T('2 REPAIR ESTIMATOR'!S290)","v":""},{"$nulls":3},1,0,1]
[{"$nulls":7},{"$f":"T('2 REPAIR ESTIMATOR'!D291:O291)","v":""},{"$f":"'2 REPAIR ESTIMATOR'!P291","v":0},{"$f":"T('2 REPAIR ESTIMATOR'!S291)","v":""},{"$nulls":3},1,0,1]
[{"$nulls":7},{"$f":"T('2 REPAIR ESTIMATOR'!D292:O292)","v":""},{"$f":"'2 REPAIR ESTIMATOR'!P292","v":0},{"$f":"T('2 REPAIR ESTIMATOR'!S292)","v":""},{"$nulls":3},1,0,1]
[{"$nulls":7},{"$f":"T('2 REPAIR ESTIMATOR'!D293:O293)","v":""},{"$f":"'2 REPAIR ESTIMATOR'!P293","v":0},{"$f":"T('2 REPAIR ESTIMATOR'!S293)","v":""},{"$nulls":3},1,0,1]
[{"$nulls":7},{"$f":"T('2 REPAIR ESTIMATOR'!D294:O294)","v":""},{"$f":"'2 REPAIR ESTIMATOR'!P294","v":0},{"$f":"T('2 REPAIR ESTIMATOR'!S294)","v":""},{"$nulls":3},1,0,1]
[{"$nulls":7},{"$f":"T('2 REPAIR ESTIMATOR'!D295:O295)","v":""},{"$f":"'2 REPAIR ESTIMATOR'!P295","v":0},{"$f":"T('2 REPAIR ESTIMATOR'!S295)","v":""},{"$nulls":3},1,0,1]
[{"$nulls":7},{"$f":"T('2 REPAIR ESTIMATOR'!D296:O296)","v":""},{"$f":"'2 REPAIR ESTIMATOR'!P296","v":0},{"$f":"T('2 REPAIR ESTIMATOR'!S296)","v":""},{"$nulls":3},1,0,1]
[{"$nulls":7},{"$f":"T('2 REPAIR ESTIMATOR'!D297:O297)","v":""},{"$f":"'2 REPAIR ESTIMATOR'!P297","v":0},{"$f":"T('2 REPAIR ESTIMATOR'!S297)","v":""},{"$nulls":3},1,0,1]
[{"$nulls":7},{"$f":"T('2 REPAIR ESTIMATOR'!D298:O298)","v":""},{"$f":"'2 REPAIR ESTIMATOR'!P298","v":0},{"$f":"T('2 REPAIR ESTIMATOR'!S298)","v":""},{"$nulls":3},1,0,1]
[{"$nulls":7},{"$f":"T('2 REPAIR ESTIMATOR'!D299:O299)","v":""},{"$f":"'2 REPAIR ESTIMATOR'!P299","v":0},{"$f":"T('2 REPAIR ESTIMATOR'!S299)","v":""},{"$nulls":3},1,0,1]
[{"$nulls":7},{"$f":"T('2 REPAIR ESTIMATOR'!D300:O300)","v":""},{"$f":"'2 REPAIR ESTIMATOR'!P300","v":0},{"$f":"T('2 REPAIR ESTIMATOR'!S300)","v":""},{"$nulls":3},1,0,1]
[{"$nulls":7},{"$f":"T('2 REPAIR ESTIMATOR'!D301:O301)","v":""},{"$f":"'2 REPAIR ESTIMATOR'!P301","v":0},{"$f":"T('2 REPAIR ESTIMATOR'!S301)","v":""},{"$nulls":3},1,0,1]
[{"$nulls":7},{"$f":"T('2 REPAIR ESTIMATOR'!D302:O302)","v":""},{"$f":"'2 REPAIR ESTIMATOR'!P302","v":0},{"$f":"T('2 REPAIR ESTIMATOR'!S302)","v":""},{"$nulls":3},1,0,1]
[{"$nulls":7},{"$f":"T('2 REPAIR ESTIMATOR'!D303:O303)","v":""},{"$f":"'2 REPAIR ESTIMATOR'!P303","v":0},{"$f":"T('2 REPAIR ESTIMATOR'!S303)","v":""},{"$nulls":3},1,0,1]
[{"$nulls":7},{"$f":"T('2 REPAIR ESTIMATOR'!D304:O304)","v":""},{"$f":"'2 REPAIR ESTIMATOR'!P304","v":0},{"$f":"T('2 REPAIR ESTIMATOR'!S304)","v":""},{"$nulls":3},1,0,1]
[{"$nulls":7},{"$f":"T('2 REPAIR ESTIMATOR'!D305:O305)","v":""},{"$f":"'2 REPAIR ESTIMATOR'!P305","v":0},{"$f":"T('2 REPAIR ESTIMATOR'!S305)","v":""},{"$nulls":3},1,0,1]
[{"$nulls":7},{"$f":"T('2 REPAIR ESTIMATOR'!D306:O306)","v":""},{"$f":"'2 REPAIR ESTIMATOR'!P306","v":0},{"$f":"T('2 REPAIR ESTIMATOR'!S306)","v":""},{"$nulls":3},1,0,1]
[{"$nulls":7},{"$f":"T('2 REPAIR ESTIMATOR'!D307:O307)","v":""},{"$f":"'2 REPAIR ESTIMATOR'!P307","v":0},{"$f":"T('2 REPAIR ESTIMATOR'!S307)","v":""},{"$nulls":3},1,0,1]
[{"$nulls":7},{"$f":"T('2 REPAIR ESTIMATOR'!D312:O312)","v":"SIDING"},{"$f":"#REF!","v":{"$error":"#REF!"}},{"$nulls":4},{"$f":"SUM(N230:N269)","v":40},{"$f":"SUM(O230:O269)","v":0},{"$f":"SUM(P230:P269)","v":40}]
[{"$nulls":7},{"$f":"T('2 REPAIR ESTIMATOR'!D313:O313)","v":"Siding bid/allowance"},{"$f":"'2 REPAIR ESTIMATOR'!P313","v":1},{"$f":"T('2 REPAIR ESTIMATOR'!S313)","v":"ls"},{"$nulls":3},{"$f":"IF(I230<>\"\",1,0)","v":1},{"$f":"IF(K230=\"x\",1,0)","v":0},{"$f":"IF(AND(N230>0,O230=0),1,0)","v":1}]
[{"$nulls":7},{"$f":"T('2 REPAIR ESTIMATOR'!D314:O314)","v":"Demo existing siding"},{"$f":"'2 REPAIR ESTIMATOR'!P314","v":0},{"$f":"T('2 REPAIR ESTIMATOR'!S314)","v":"sf"},{"$nulls":3},{"$f":"IF(I231<>\"\",1,0)","v":1},{"$f":"IF(K231=\"x\",1,0)","v":0},{"$f":"IF(AND(N231>0,O231=0),1,0)","v":1}]
[{"$nulls":7},{"$f":"T('2 REPAIR ESTIMATOR'!D315:O315)","v":"Plywood panel, douglas fir"},{"$f":"'2 REPAIR ESTIMATOR'!P315","v":0},{"$f":"T('2 REPAIR ESTIMATOR'!S315)","v":"sf"},{"$nulls":3},1,0,1]
[{"$nulls":7},{"$f":"T('2 REPAIR ESTIMATOR'!D316:O316)","v":"Plywood panel, cedar"},{"$f":"'2 REPAIR ESTIMATOR'!P316","v":0},{"$f":"T('2 REPAIR ESTIMATOR'!S316)","v":"sf"},{"$nulls":3},1,0,1]
[{"$nulls":7},{"$f":"T('2 REPAIR ESTIMATOR'!D317:O317)","v":"Tongue and groove, douglas fir"},{"$f":"'2 REPAIR ESTIMATOR'!P317","v":0},{"$f":"T('2 REPAIR ESTIMATOR'!S317)","v":"sf"},{"$nulls":3},1,0,1]
[{"$nulls":7},{"$f":"T('2 REPAIR ESTIMATOR'!D318:O318)","v":"Tongue and groove, cedar"},{"$f":"'2 REPAIR ESTIMATOR'!P318","v":0},{"$f":"T('2 REPAIR ESTIMATOR'!S318)","v":"sf"},{"$nulls":3},1,0,1]
[{"$nulls":7},{"$f":"T('2 REPAIR ESTIMATOR'!D319:O319)","v":"Board and batten, douglas fir"},{"$f":"'2 REPAIR ESTIMATOR'!P319","v":0},{"$f":"T('2 REPAIR ESTIMATOR'!S319)","v":"sf"},{"$nulls":3},1,0,1]
[{"$nulls":7},{"$f":"T('2 REPAIR ESTIMATOR'!D320:O320)","v":"Board and batten, cedar"},{"$f":"'2 REPAIR ESTIMATOR'!P320","v":0},{"$f":"T('2 REPAIR ESTIMATOR'!S320)","v":"sf"},{"$nulls":3},1,0,1]
[{"$nulls":7},{"$f":"T('2 REPAIR ESTIMATOR'!D321:O321)","v":"Wood shingle/shake"},{"$f":"'2 REPAIR ESTIMATOR'!P321","v":0},{"$f":"T('2 REPAIR ESTIMATOR'!S321)","v":"sf"},{"$nulls":3},1,0,1]
[{"$nulls":7},{"$f":"T('2 REPAIR ESTIMATOR'!D322:O322)","v":"Fiber cement siding, 4x8 panels"},{"$f":"'2 REPAIR ESTIMATOR'!P322","v":0},{"$f":"T('2 REPAIR ESTIMATOR'!S322)","v":"sf"},{"$nulls":3},1,0,1]
[{"$nulls":7},{"$f":"T('2 REPAIR ESTIMATOR'!D323:O323)","v":"Fiber cement siding, lap"},{"$f":"'2 REPAIR ESTIMATOR'!P323","v":0},{"$f":"T('2 REPAIR ESTIMATOR'!S323)","v":"sf"},{"$nulls":3},1,0,1]
[{"$nulls":7},{"$f":"T('2 REPAIR ESTIMATOR'!D324:O324)","v":"Vinyl siding, non-insulated"},{"$f":"'2 REPAIR ESTIMATOR'!P324","v":0},{"$f":"T('2 REPAIR ESTIMATOR'!S324)","v":"sf"},{"$nulls":3},1,0,1]
[{"$nulls":7},{"$f":"T('2 REPAIR ESTIMATOR'!D325:O325)","v":"Vinyl siding, insulated"},{"$f":"'2 REPAIR ESTIMATOR'!P325","v":0},{"$f":"T('2 REPAIR ESTIMATOR'!S325)","v":"sf"},{"$nulls":3},1,0,1]
[{"$nulls":7},{"$f":"T('2 REPAIR ESTIMATOR'!D326:O326)","v":"Trim, 1\"x3\", pine"},{"$f":"'2 REPAIR ESTIMATOR'!P326","v":0},{"$f":"T('2 REPAIR ESTIMATOR'!S326)","v":"lf"},{"$nulls":3},1,0,1]
[{"$nulls":7},{"$f":"T('2 REPAIR ESTIMATOR'!D327:O327)","v":"Trim, 1\"x4\", pine"},{"$f":"'2 REPAIR ESTIMATOR'!P327","v":0},{"$f":"T('2 REPAIR ESTIMATOR'!S327)","v":"lf"},{"$nulls":3},1,0,1]
[{"$nulls":7},{"$f":"T('2 REPAIR ESTIMATOR'!D328:O328)","v":"Trim, 1\"x6\", pine"},{"$f":"'2 REPAIR ESTIMATOR'!P328","v":0},{"$f":"T('2 REPAIR ESTIMATOR'!S328)","v":"lf"},{"$nulls":3},1,0,1]
[{"$nulls":7},{"$f":"T('2 REPAIR ESTIMATOR'!D329:O329)","v":"Siding patch, window/door, siding, insulation"},{"$f":"'2 REPAIR ESTIMATOR'!P329","v":0},{"$f":"T('2 REPAIR ESTIMATOR'!S329)","v":"ea"},{"$nulls":3},1,0,1]
[{"$nulls":7},{"$f":"T('2 REPAIR ESTIMATOR'!D330:O330)","v":"Stucco"},{"$f":"'2 REPAIR ESTIMATOR'!P330","v":0},{"$f":"T('2 REPAIR ESTIMATOR'!S330)","v":"sf"},{"$nulls":3},1,0,1]
[{"$nulls":7},{"$f":"T('2 REPAIR ESTIMATOR'!D331:O331)","v":""},{"$f":"'2 REPAIR ESTIMATOR'!P331","v":0},{"$f":"T('2 REPAIR ESTIMATOR'!S331)","v":""},{"$nulls":3},1,0,1]
[{"$nulls":7},{"$f":"T('2 REPAIR ESTIMATOR'!D332:O332)","v":""},{"$f":"'2 REPAIR ESTIMATOR'!P332","v":0},{"$f":"T('2 REPAIR ESTIMATOR'!S332)","v":""},{"$nulls":3},1,0,1]
[{"$nulls":7},{"$f":"T('2 REPAIR ESTIMATOR'!D333:O333)","v":""},{"$f":"'2 REPAIR ESTIMATOR'!P333","v":0},{"$f":"T('2 REPAIR ESTIMATOR'!S333)","v":""},{"$nulls":3},1,0,1]
[{"$nulls":7},{"$f":"T('2 REPAIR ESTIMATOR'!D334:O334)","v":""},{"$f":"'2 REPAIR ESTIMATOR'!P334","v":0},{"$f":"T('2 REPAIR ESTIMATOR'!S334)","v":""},{"$nulls":3},1,0,1]
[{"$nulls":7},{"$f":"T('2 REPAIR ESTIMATOR'!D335:O335)","v":""},{"$f":"'2 REPAIR ESTIMATOR'!P335","v":0},{"$f":"T('2 REPAIR ESTIMATOR'!S335)","v":""},{"$nulls":3},1,0,1]
[{"$nulls":7},{"$f":"T('2 REPAIR ESTIMATOR'!D336:O336)","v":""},{"$f":"'2 REPAIR ESTIMATOR'!P336","v":0},{"$f":"T('2 REPAIR ESTIMATOR'!S336)","v":""},{"$nulls":3},1,0,1]
[{"$nulls":7},{"$f":"T('2 REPAIR ESTIMATOR'!D337:O337)","v":""},{"$f":"'2 REPAIR ESTIMATOR'!P337","v":0},{"$f":"T('2 REPAIR ESTIMATOR'!S337)","v":""},{"$nulls":3},1,0,1]
[{"$nulls":7},{"$f":"T('2 REPAIR ESTIMATOR'!D338:O338)","v":""},{"$f":"'2 REPAIR ESTIMATOR'!P338","v":0},{"$f":"T('2 REPAIR ESTIMATOR'!S338)","v":""},{"$nulls":3},1,0,1]
[{"$nulls":7},{"$f":"T('2 REPAIR ESTIMATOR'!D339:O339)","v":""},{"$f":"'2 REPAIR ESTIMATOR'!P339","v":0},{"$f":"T('2 REPAIR ESTIMATOR'!S339)","v":""},{"$nulls":3},1,0,1]
[{"$nulls":7},{"$f":"T('2 REPAIR ESTIMATOR'!D340:O340)","v":""},{"$f":"'2 REPAIR ESTIMATOR'!P340","v":0},{"$f":"T('2 REPAIR ESTIMATOR'!S340)","v":""},{"$nulls":3},1,0,1]
[{"$nulls":7},{"$f":"T('2 REPAIR ESTIMATOR'!D341:O341)","v":""},{"$f":"'2 REPAIR ESTIMATOR'!P341","v":0},{"$f":"T('2 REPAIR ESTIMATOR'!S341)","v":""},{"$nulls":3},1,0,1]
[{"$nulls":7},{"$f":"T('2 REPAIR ESTIMATOR'!D342:O342)","v":""},{"$f":"'2 REPAIR ESTIMATOR'!P342","v":0},{"$f":"T('2 REPAIR ESTIMATOR'!S342)","v":""},{"$nulls":3},1,0,1]
[{"$nulls":7},{"$f":"T('2 REPAIR ESTIMATOR'!D343:O343)","v":""},{"$f":"'2 REPAIR ESTIMATOR'!P343","v":0},{"$f":"T('2 REPAIR ESTIMATOR'!S343)","v":""},{"$nulls":3},1,0,1]
[{"$nulls":7},{"$f":"T('2 REPAIR ESTIMATOR'!D344:O344)","v":""},{"$f":"'2 REPAIR ESTIMATOR'!P344","v":0},{"$f":"T('2 REPAIR ESTIMATOR'!S344)","v":""},{"$nulls":3},1,0,1]
[{"$nulls":7},{"$f":"T('2 REPAIR ESTIMATOR'!D345:O345)","v":""},{"$f":"'2 REPAIR ESTIMATOR'!P345","v":0},{"$f":"T('2 REPAIR ESTIMATOR'!S345)","v":""},{"$nulls":3},1,0,1]
[{"$nulls":7},{"$f":"T('2 REPAIR ESTIMATOR'!D346:O346)","v":""},{"$f":"'2 REPAIR ESTIMATOR'!P346","v":0},{"$f":"T('2 REPAIR ESTIMATOR'!S346)","v":""},{"$nulls":3},1,0,1]
[{"$nulls":7},{"$f":"T('2 REPAIR ESTIMATOR'!D347:O347)","v":""},{"$f":"'2 REPAIR ESTIMATOR'!P347","v":0},{"$f":"T('2 REPAIR ESTIMATOR'!S347)","v":""},{"$nulls":3},1,0,1]
[{"$nulls":7},{"$f":"T('2 REPAIR ESTIMATOR'!D348:O348)","v":""},{"$f":"'2 REPAIR ESTIMATOR'!P348","v":0},{"$f":"T('2 REPAIR ESTIMATOR'!S348)","v":""},{"$nulls":3},1,0,1]
[{"$nulls":7},{"$f":"T('2 REPAIR ESTIMATOR'!D349:O349)","v":""},{"$f":"'2 REPAIR ESTIMATOR'!P349","v":0},{"$f":"T('2 REPAIR ESTIMATOR'!S349)","v":""},{"$nulls":3},1,0,1]
[{"$nulls":7},{"$f":"T('2 REPAIR ESTIMATOR'!D350:O350)","v":""},{"$f":"'2 REPAIR ESTIMATOR'!P350","v":0},{"$f":"T('2 REPAIR ESTIMATOR'!S350)","v":""},{"$nulls":3},1,0,1]
[{"$nulls":7},{"$f":"T('2 REPAIR ESTIMATOR'!D351:O351)","v":""},{"$f":"'2 REPAIR ESTIMATOR'!P351","v":0},{"$f":"T('2 REPAIR ESTIMATOR'!S351)","v":""},{"$nulls":3},1,0,1]
[{"$nulls":7},{"$f":"T('2 REPAIR ESTIMATOR'!D352:O352)","v":""},{"$f":"'2 REPAIR ESTIMATOR'!P352","v":0},{"$f":"T('2 REPAIR ESTIMATOR'!S352)","v":""},{"$nulls":3},1,0,1]
[{"$nulls":7},{"$f":"T('2 REPAIR ESTIMATOR'!D357:O357)","v":"DECKING AND PATIOS"},{"$nulls":5},{"$f":"SUM(N271:N310)","v":40},{"$f":"SUM(O271:O310)","v":0},{"$f":"SUM(P271:P310)","v":40}]
[{"$nulls":7},{"$f":"T('2 REPAIR ESTIMATOR'!D358:O358)","v":"Decking"},{"$f":"'2 REPAIR ESTIMATOR'!P358","v":0},{"$f":"T('2 REPAIR ESTIMATOR'!S358)","v":""},{"$nulls":3},{"$f":"IF(I271<>\"\",1,0)","v":1},{"$f":"IF(K271=\"x\",1,0)","v":0},{"$f":"IF(AND(N271>0,O271=0),1,0)","v":1}]
[{"$nulls":7},{"$f":"T('2 REPAIR ESTIMATOR'!D359:O359)","v":"Deck bid/allowance"},{"$f":"'2 REPAIR ESTIMATOR'!P359","v":0},{"$f":"T('2 REPAIR ESTIMATOR'!S359)","v":"ls"},{"$nulls":3},{"$f":"IF(I272<>\"\",1,0)","v":1},{"$f":"IF(K272=\"x\",1,0)","v":0},{"$f":"IF(AND(N272>0,O272=0),1,0)","v":1}]
[{"$nulls":7},{"$f":"T('2 REPAIR ESTIMATOR'!D360:O360)","v":"New deck, columns, joists, railing-treated lumber"},{"$f":"'2 REPAIR ESTIMATOR'!P360","v":0},{"$f":"T('2 REPAIR ESTIMATOR'!S360)","v":"sf"},{"$nulls":3},1,0,1]
[{"$nulls":7},{"$f":"T('2 REPAIR ESTIMATOR'!D361:O361)","v":"New deck, columns, joists, railing-cedar"},{"$f":"'2 REPAIR ESTIMATOR'!P361","v":0},{"$f":"T('2 REPAIR ESTIMATOR'!S361)","v":"sf"},{"$nulls":3},1,0,1]
[{"$nulls":7},{"$f":"T('2 REPAIR ESTIMATOR'!D362:O362)","v":"Existing deck, replace decking"},{"$f":"'2 REPAIR ESTIMATOR'!P362","v":150},{"$f":"T('2 REPAIR ESTIMATOR'!S362)","v":"sf"},{"$nulls":3},1,0,1]
[{"$nulls":7},{"$f":"T('2 REPAIR ESTIMATOR'!D363:O363)","v":"Install railing w/ wood balusters only"},{"$f":"'2 REPAIR ESTIMATOR'!P363","v":0},{"$f":"T('2 REPAIR ESTIMATOR'!S363)","v":"lf"},{"$nulls":3},1,0,1]
[{"$nulls":7},{"$f":"T('2 REPAIR ESTIMATOR'!D364:O364)","v":"Install railing w/ metal balusters only"},{"$f":"'2 REPAIR ESTIMATOR'!P364","v":0},{"$f":"T('2 REPAIR ESTIMATOR'!S364)","v":"lf"},{"$nulls":3},1,0,1]
[{"$nulls":7},{"$f":"T('2 REPAIR ESTIMATOR'!D365:O365)","v":"Stairs, 5 to 7 risers"},{"$f":"'2 REPAIR ESTIMATOR'!P365","v":0},{"$f":"T('2 REPAIR ESTIMATOR'!S365)","v":"ea"},{"$nulls":3},1,0,1]
[{"$nulls":7},{"$f":"T('2 REPAIR ESTIMATOR'!D366:O366)","v":""},{"$f":"'2 REPAIR ESTIMATOR'!P366","v":0},{"$f":"T('2 REPAIR ESTIMATOR'!S366)","v":""},{"$nulls":3},1,0,1]
[{"$nulls":7},{"$f":"T('2 REPAIR ESTIMATOR'!D367:O367)","v":""},{"$f":"'2 REPAIR ESTIMATOR'!P367","v":0},{"$f":"T('2 REPAIR ESTIMATOR'!S367)","v":""},{"$nulls":3},1,0,1]
[{"$nulls":7},{"$f":"T('2 REPAIR ESTIMATOR'!D368:O368)","v":"Covered Patio"},{"$f":"'2 REPAIR ESTIMATOR'!P368","v":0},{"$f":"T('2 REPAIR ESTIMATOR'!S368)","v":""},{"$nulls":3},1,0,1]
[{"$nulls":7},{"$f":"T('2 REPAIR ESTIMATOR'!D369:O369)","v":"Covered Patio bid/allowance"},{"$f":"'2 REPAIR ESTIMATOR'!P369","v":0},{"$f":"T('2 REPAIR ESTIMATOR'!S369)","v":"ls"},{"$nulls":3},1,0,1]
[{"$nulls":7},{"$f":"T('2 REPAIR ESTIMATOR'!D370:O370)","v":"Covered patio, floor, roof frame, decking, treated"},{"$f":"'2 REPAIR ESTIMATOR'!P370","v":0},{"$f":"T('2 REPAIR ESTIMATOR'!S370)","v":"sf"},{"$nulls":3},1,0,1]
[{"$nulls":7},{"$f":"T('2 REPAIR ESTIMATOR'!D371:O371)","v":"Install railing w/ wood balusters only"},{"$f":"'2 REPAIR ESTIMATOR'!P371","v":0},{"$f":"T('2 REPAIR ESTIMATOR'!S371)","v":"lf"},{"$nulls":3},1,0,1]
[{"$nulls":7},{"$f":"T('2 REPAIR ESTIMATOR'!D372:O372)","v":"Install railing w/ metal balusters only"},{"$f":"'2 REPAIR ESTIMATOR'!P372","v":0},{"$f":"T('2 REPAIR ESTIMATOR'!S372)","v":"lf"},{"$nulls":3},1,0,1]
[{"$nulls":7},{"$f":"T('2 REPAIR ESTIMATOR'!D373:O373)","v":"Stairs, 5 to 7 risers"},{"$f":"'2 REPAIR ESTIMATOR'!P373","v":0},{"$f":"T('2 REPAIR ESTIMATOR'!S373)","v":"ea"},{"$nulls":3},1,0,1]
[{"$nulls":7},{"$f":"T('2 REPAIR ESTIMATOR'!D374:O374)","v":"Wood board ceiling, tongue and groove"},{"$f":"'2 REPAIR ESTIMATOR'!P374","v":0},{"$f":"T('2 REPAIR ESTIMATOR'!S374)","v":"sf"},{"$nulls":3},1,0,1]
[{"$nulls":7},{"$f":"T('2 REPAIR ESTIMATOR'!D375:O375)","v":"Insect screening"},{"$f":"'2 REPAIR ESTIMATOR'!P375","v":0},{"$f":"T('2 REPAIR ESTIMATOR'!S375)","v":"sf"},{"$nulls":3},1,0,1]
[{"$nulls":7},{"$f":"T('2 REPAIR ESTIMATOR'!D376:O376)","v":""},{"$f":"'2 REPAIR ESTIMATOR'!P376","v":0},{"$f":"T('2 REPAIR ESTIMATOR'!S376)","v":""},{"$nulls":3},1,0,1]
[{"$nulls":7},{"$f":"T('2 REPAIR ESTIMATOR'!D377:O377)","v":""},{"$f":"'2 REPAIR ESTIMATOR'!P377","v":0},{"$f":"T('2 REPAIR ESTIMATOR'!S377)","v":""},{"$nulls":3},1,0,1]
[{"$nulls":7},{"$f":"T('2 REPAIR ESTIMATOR'!D378:O378)","v":""},{"$f":"'2 REPAIR ESTIMATOR'!P378","v":0},{"$f":"T('2 REPAIR ESTIMATOR'!S378)","v":""},{"$nulls":3},1,0,1]
[{"$nulls":7},{"$f":"T('2 REPAIR ESTIMATOR'!D379:O379)","v":""},{"$f":"'2 REPAIR ESTIMATOR'!P379","v":0},{"$f":"T('2 REPAIR ESTIMATOR'!S379)","v":""},{"$nulls":3},1,0,1]
[{"$nulls":7},{"$f":"T('2 REPAIR ESTIMATOR'!D380:O380)","v":""},{"$f":"'2 REPAIR ESTIMATOR'!P380","v":0},{"$f":"T('2 REPAIR ESTIMATOR'!S380)","v":""},{"$nulls":3},1,0,1]
[{"$nulls":7},{"$f":"T('2 REPAIR ESTIMATOR'!D381:O381)","v":""},{"$f":"'2 REPAIR ESTIMATOR'!P381","v":0},{"$f":"T('2 REPAIR ESTIMATOR'!S381)","v":""},{"$nulls":3},1,0,1]
[{"$nulls":7},{"$f":"T('2 REPAIR ESTIMATOR'!D382:O382)","v":""},{"$f":"'2 REPAIR ESTIMATOR'!P382","v":0},{"$f":"T('2 REPAIR ESTIMATOR'!S382)","v":""},{"$nulls":3},1,0,1]
[{"$nulls":7},{"$f":"T('2 REPAIR ESTIMATOR'!D383:O383)","v":""},{"$f":"'2 REPAIR ESTIMATOR'!P383","v":0},{"$f":"T('2 REPAIR ESTIMATOR'!S383)","v":""},{"$nulls":3},1,0,1]
[{"$nulls":7},{"$f":"T('2 REPAIR ESTIMATOR'!D384:O384)","v":""},{"$f":"'2 REPAIR ESTIMATOR'!P384","v":0},{"$f":"T('2 REPAIR ESTIMATOR'!S384)","v":""},{"$nulls":3},1,0,1]
[{"$nulls":7},{"$f":"T('2 REPAIR ESTIMATOR'!D385:O385)","v":""},{"$f":"'2 REPAIR ESTIMATOR'!P385","v":0},{"$f":"T('2 REPAIR ESTIMATOR'!S385)","v":""},{"$nulls":3},1,0,1]
[{"$nulls":7},{"$f":"T('2 REPAIR ESTIMATOR'!D386:O386)","v":""},{"$f":"'2 REPAIR ESTIMATOR'!P386","v":0},{"$f":"T('2 REPAIR ESTIMATOR'!S386)","v":""},{"$nulls":3},1,0,1]
[{"$nulls":7},{"$f":"T('2 REPAIR ESTIMATOR'!D387:O387)","v":""},{"$f":"'2 REPAIR ESTIMATOR'!P387","v":0},{"$f":"T('2 REPAIR ESTIMATOR'!S387)","v":""},{"$nulls":3},1,0,1]
[{"$nulls":7},{"$f":"T('2 REPAIR ESTIMATOR'!D388:O388)","v":""},{"$f":"'2 REPAIR ESTIMATOR'!P388","v":0},{"$f":"T('2 REPAIR ESTIMATOR'!S388)","v":""},{"$nulls":3},1,0,1]
[{"$nulls":7},{"$f":"T('2 REPAIR ESTIMATOR'!D389:O389)","v":""},{"$f":"'2 REPAIR ESTIMATOR'!P389","v":0},{"$f":"T('2 REPAIR ESTIMATOR'!S389)","v":""},{"$nulls":3},1,0,1]
[{"$nulls":7},{"$f":"T('2 REPAIR ESTIMATOR'!D390:O390)","v":""},{"$f":"'2 REPAIR ESTIMATOR'!P390","v":0},{"$f":"T('2 REPAIR ESTIMATOR'!S390)","v":""},{"$nulls":3},1,0,1]
[{"$nulls":7},{"$f":"T('2 REPAIR ESTIMATOR'!D391:O391)","v":""},{"$f":"'2 REPAIR ESTIMATOR'!P391","v":0},{"$f":"T('2 REPAIR ESTIMATOR'!S391)","v":""},{"$nulls":3},1,0,1]
[{"$nulls":7},{"$f":"T('2 REPAIR ESTIMATOR'!D392:O392)","v":""},{"$f":"'2 REPAIR ESTIMATOR'!P392","v":0},{"$f":"T('2 REPAIR ESTIMATOR'!S392)","v":""},{"$nulls":3},1,0,1]
[{"$nulls":7},{"$f":"T('2 REPAIR ESTIMATOR'!D393:O393)","v":""},{"$f":"'2 REPAIR ESTIMATOR'!P393","v":0},{"$f":"T('2 REPAIR ESTIMATOR'!S393)","v":""},{"$nulls":3},1,0,1]
[{"$nulls":7},{"$f":"T('2 REPAIR ESTIMATOR'!D394:O394)","v":""},{"$f":"'2 REPAIR ESTIMATOR'!P394","v":0},{"$f":"T('2 REPAIR ESTIMATOR'!S394)","v":""},{"$nulls":3},1,0,1]
[{"$nulls":7},{"$f":"T('2 REPAIR ESTIMATOR'!D395:O395)","v":""},{"$f":"'2 REPAIR ESTIMATOR'!P395","v":0},{"$f":"T('2 REPAIR ESTIMATOR'!S395)","v":""},{"$nulls":3},1,0,1]
[{"$nulls":7},{"$f":"T('2 REPAIR ESTIMATOR'!D396:O396)","v":""},{"$f":"'2 REPAIR ESTIMATOR'!P396","v":0},{"$f":"T('2 REPAIR ESTIMATOR'!S396)","v":""},{"$nulls":3},1,0,1]
[{"$nulls":7},{"$f":"T('2 REPAIR ESTIMATOR'!D397:O397)","v":""},{"$f":"'2 REPAIR ESTIMATOR'!P397","v":0},{"$f":"T('2 REPAIR ESTIMATOR'!S397)","v":""},{"$nulls":3},1,0,1]
[{"$nulls":7},{"$f":"T('2 REPAIR ESTIMATOR'!D402:O402)","v":"ROOFING"},{"$f":"#REF!","v":{"$error":"#REF!"}},{"$nulls":4},{"$f":"SUM(N312:N351)","v":40},{"$f":"SUM(O312:O351)","v":0},{"$f":"SUM(P312:P351)","v":40}]
[{"$nulls":7},{"$f":"T('2 REPAIR ESTIMATOR'!D403:O403)","v":"Roofing bid/allowance"},{"$f":"'2 REPAIR ESTIMATOR'!P403","v":0},{"$f":"T('2 REPAIR ESTIMATOR'!S403)","v":"ls"},{"$nulls":3},{"$f":"IF(I312<>\"\",1,0)","v":1},{"$f":"IF(K312=\"x\",1,0)","v":0},{"$f":"IF(AND(N312>0,O312=0),1,0)","v":1}]
[{"$nulls":7},{"$f":"T('2 REPAIR ESTIMATOR'!D404:O404)","v":"Asphalt shingle roof"},{"$f":"'2 REPAIR ESTIMATOR'!P404","v":0},{"$f":"T('2 REPAIR ESTIMATOR'!S404)","v":""},{"$nulls":3},{"$f":"IF(I313<>\"\",1,0)","v":1},{"$f":"IF(K313=\"x\",1,0)","v":0},{"$f":"IF(AND(N313>0,O313=0),1,0)","v":1}]
[{"$nulls":7},{"$f":"T('2 REPAIR ESTIMATOR'!D405:O405)","v":"Roof repair/patch, asphalt"},{"$f":"'2 REPAIR ESTIMATOR'!P405","v":0},{"$f":"T('2 REPAIR ESTIMATOR'!S405)","v":"ea"},{"$nulls":3},1,0,1]
[{"$nulls":7},{"$f":"T('2 REPAIR ESTIMATOR'!D406:O406)","v":"Roof replacement-demo & replace, 3-tab"},{"$f":"'2 REPAIR ESTIMATOR'!P406","v":0},{"$f":"T('2 REPAIR ESTIMATOR'!S406)","v":"sq"},{"$nulls":3},1,0,1]
[{"$nulls":7},{"$f":"T('2 REPAIR ESTIMATOR'!D407:O407)","v":"Roof replacement-demo & replace, architectural"},{"$f":"'2 REPAIR ESTIMATOR'!P407","v":20},{"$f":"T('2 REPAIR ESTIMATOR'!S407)","v":"sq"},{"$nulls":3},1,0,1]
[{"$nulls":7},{"$f":"T('2 REPAIR ESTIMATOR'!D408:O408)","v":"Premium for 3 layer tear off"},{"$f":"'2 REPAIR ESTIMATOR'!P408","v":0},{"$f":"T('2 REPAIR ESTIMATOR'!S408)","v":"sq"},{"$nulls":3},1,0,1]
[{"$nulls":7},{"$f":"T('2 REPAIR ESTIMATOR'!D409:O409)","v":"Premium for steep pitch roof"},{"$f":"'2 REPAIR ESTIMATOR'!P409","v":0},{"$f":"T('2 REPAIR ESTIMATOR'!S409)","v":"sq"},{"$nulls":3},1,0,1]
[{"$nulls":7},{"$f":"T('2 REPAIR ESTIMATOR'!D410:O410)","v":""},{"$f":"'2 REPAIR ESTIMATOR'!P410","v":0},{"$f":"T('2 REPAIR ESTIMATOR'!S410)","v":""},{"$nulls":3},1,0,1]
[{"$nulls":7},{"$f":"T('2 REPAIR ESTIMATOR'!D411:O411)","v":"Wood Shingle Roof"},{"$f":"'2 REPAIR ESTIMATOR'!P411","v":0},{"$f":"T('2 REPAIR ESTIMATOR'!S411)","v":""},{"$nulls":3},1,0,1]
[{"$nulls":7},{"$f":"T('2 REPAIR ESTIMATOR'!D412:O412)","v":"Roof repair/patch, wood"},{"$f":"'2 REPAIR ESTIMATOR'!P412","v":0},{"$f":"T('2 REPAIR ESTIMATOR'!S412)","v":"ea"},{"$nulls":3},1,0,1]
[{"$nulls":7},{"$f":"T('2 REPAIR ESTIMATOR'!D413:O413)","v":"Roof replacement-demo & replace, 3-tab"},{"$f":"'2 REPAIR ESTIMATOR'!P413","v":0},{"$f":"T('2 REPAIR ESTIMATOR'!S413)","v":"sq"},{"$nulls":3},1,0,1]
[{"$nulls":7},{"$f":"T('2 REPAIR ESTIMATOR'!D414:O414)","v":"Wood shingle, low end"},{"$f":"'2 REPAIR ESTIMATOR'!P414","v":0},{"$f":"T('2 REPAIR ESTIMATOR'!S414)","v":"sq"},{"$nulls":3},1,0,1]
[{"$nulls":7},{"$f":"T('2 REPAIR ESTIMATOR'!D415:O415)","v":"Wood shingle, high end"},{"$f":"'2 REPAIR ESTIMATOR'!P415","v":0},{"$f":"T('2 REPAIR ESTIMATOR'!S415)","v":"sq"},{"$nulls":3},1,0,1]
[{"$nulls":7},{"$f":"T('2 REPAIR ESTIMATOR'!D416:O416)","v":"Roof sheathing, plywood 1/2\", remove & install"},{"$f":"'2 REPAIR ESTIMATOR'!P416","v":0},{"$f":"T('2 REPAIR ESTIMATOR'!S416)","v":"sheet"},{"$nulls":3},1,0,1]
[{"$nulls":7},{"$f":"T('2 REPAIR ESTIMATOR'!D417:O417)","v":""},{"$f":"'2 REPAIR ESTIMATOR'!P417","v":0},{"$f":"T('2 REPAIR ESTIMATOR'!S417)","v":""},{"$nulls":3},1,0,1]
[{"$nulls":7},{"$f":"T('2 REPAIR ESTIMATOR'!D418:O418)","v":"Slate/Clay Tile"},{"$f":"'2 REPAIR ESTIMATOR'!P418","v":0},{"$f":"T('2 REPAIR ESTIMATOR'!S418)","v":""},{"$nulls":3},1,0,1]
[{"$nulls":7},{"$f":"T('2 REPAIR ESTIMATOR'!D419:O419)","v":"Roof replacement-demo & replace, slate"},{"$f":"'2 REPAIR ESTIMATOR'!P419","v":0},{"$f":"T('2 REPAIR ESTIMATOR'!S419)","v":"sq"},{"$nulls":3},1,0,1]
[{"$nulls":7},{"$f":"T('2 REPAIR ESTIMATOR'!D420:O420)","v":""},{"$f":"'2 REPAIR ESTIMATOR'!P420","v":0},{"$f":"T('2 REPAIR ESTIMATOR'!S420)","v":""},{"$nulls":3},1,0,1]
[{"$nulls":7},{"$f":"T('2 REPAIR ESTIMATOR'!D421:O421)","v":"Gutters & downspouts, aluminum"},{"$f":"'2 REPAIR ESTIMATOR'!P421","v":0},{"$f":"T('2 REPAIR ESTIMATOR'!S421)","v":"lf"},{"$nulls":3},1,0,1]
[{"$nulls":7},{"$f":"T('2 REPAIR ESTIMATOR'!D422:O422)","v":"Clean gutters & downspouts"},{"$f":"'2 REPAIR ESTIMATOR'!P422","v":0},{"$f":"T('2 REPAIR ESTIMATOR'!S422)","v":"hrs"},{"$nulls":3},1,0,1]
[{"$nulls":7},{"$f":"T('2 REPAIR ESTIMATOR'!D423:O423)","v":""},{"$f":"'2 REPAIR ESTIMATOR'!P423","v":0},{"$f":"T('2 REPAIR ESTIMATOR'!S423)","v":""},{"$nulls":3},1,0,1]
[{"$nulls":7},{"$f":"T('2 REPAIR ESTIMATOR'!D424:O424)","v":""},{"$f":"'2 REPAIR ESTIMATOR'!P424","v":0},{"$f":"T('2 REPAIR ESTIMATOR'!S424)","v":""},{"$nulls":3},1,0,1]
[{"$nulls":7},{"$f":"T('2 REPAIR ESTIMATOR'!D425:O425)","v":""},{"$f":"'2 REPAIR ESTIMATOR'!P425","v":0},{"$f":"T('2 REPAIR ESTIMATOR'!S425)","v":""},{"$nulls":3},1,0,1]
[{"$nulls":7},{"$f":"T('2 REPAIR ESTIMATOR'!D426:O426)","v":""},{"$f":"'2 REPAIR ESTIMATOR'!P426","v":0},{"$f":"T('2 REPAIR ESTIMATOR'!S426)","v":""},{"$nulls":3},1,0,1]
[{"$nulls":7},{"$f":"T('2 REPAIR ESTIMATOR'!D427:O427)","v":""},{"$f":"'2 REPAIR ESTIMATOR'!P427","v":0},{"$f":"T('2 REPAIR ESTIMATOR'!S427)","v":""},{"$nulls":3},1,0,1]
[{"$nulls":7},{"$f":"T('2 REPAIR ESTIMATOR'!D428:O428)","v":""},{"$f":"'2 REPAIR ESTIMATOR'!P428","v":0},{"$f":"T('2 REPAIR ESTIMATOR'!S428)","v":""},{"$nulls":3},1,0,1]
[{"$nulls":7},{"$f":"T('2 REPAIR ESTIMATOR'!D429:O429)","v":""},{"$f":"'2 REPAIR ESTIMATOR'!P429","v":0},{"$f":"T('2 REPAIR ESTIMATOR'!S429)","v":""},{"$nulls":3},1,0,1]
[{"$nulls":7},{"$f":"T('2 REPAIR ESTIMATOR'!D430:O430)","v":""},{"$f":"'2 REPAIR ESTIMATOR'!P430","v":0},{"$f":"T('2 REPAIR ESTIMATOR'!S430)","v":""},{"$nulls":3},1,0,1]
[{"$nulls":7},{"$f":"T('2 REPAIR ESTIMATOR'!D431:O431)","v":""},{"$f":"'2 REPAIR ESTIMATOR'!P431","v":0},{"$f":"T('2 REPAIR ESTIMATOR'!S431)","v":""},{"$nulls":3},1,0,1]
[{"$nulls":7},{"$f":"T('2 REPAIR ESTIMATOR'!D432:O432)","v":""},{"$f":"'2 REPAIR ESTIMATOR'!P432","v":0},{"$f":"T('2 REPAIR ESTIMATOR'!S432)","v":""},{"$nulls":3},1,0,1]
[{"$nulls":7},{"$f":"T('2 REPAIR ESTIMATOR'!D433:O433)","v":""},{"$f":"'2 REPAIR ESTIMATOR'!P433","v":0},{"$f":"T('2 REPAIR ESTIMATOR'!S433)","v":""},{"$nulls":3},1,0,1]
[{"$nulls":7},{"$f":"T('2 REPAIR ESTIMATOR'!D434:O434)","v":""},{"$f":"'2 REPAIR ESTIMATOR'!P434","v":0},{"$f":"T('2 REPAIR ESTIMATOR'!S434)","v":""},{"$nulls":3},1,0,1]
[{"$nulls":7},{"$f":"T('2 REPAIR ESTIMATOR'!D435:O435)","v":""},{"$f":"'2 REPAIR ESTIMATOR'!P435","v":0},{"$f":"T('2 REPAIR ESTIMATOR'!S435)","v":""},{"$nulls":3},1,0,1]
[{"$nulls":7},{"$f":"T('2 REPAIR ESTIMATOR'!D436:O436)","v":""},{"$f":"'2 REPAIR ESTIMATOR'!P436","v":0},{"$f":"T('2 REPAIR ESTIMATOR'!S436)","v":""},{"$nulls":3},1,0,1]
[{"$nulls":7},{"$f":"T('2 REPAIR ESTIMATOR'!D437:O437)","v":""},{"$f":"'2 REPAIR ESTIMATOR'!P437","v":0},{"$f":"T('2 REPAIR ESTIMATOR'!S437)","v":""},{"$nulls":3},1,0,1]
[{"$nulls":7},{"$f":"T('2 REPAIR ESTIMATOR'!D438:O438)","v":""},{"$f":"'2 REPAIR ESTIMATOR'!P438","v":0},{"$f":"T('2 REPAIR ESTIMATOR'!S438)","v":""},{"$nulls":3},1,0,1]
[{"$nulls":7},{"$f":"T('2 REPAIR ESTIMATOR'!D439:O439)","v":""},{"$f":"'2 REPAIR ESTIMATOR'!P439","v":0},{"$f":"T('2 REPAIR ESTIMATOR'!S439)","v":""},{"$nulls":3},1,0,1]
[{"$nulls":7},{"$f":"T('2 REPAIR ESTIMATOR'!D440:O440)","v":""},{"$f":"'2 REPAIR ESTIMATOR'!P440","v":0},{"$f":"T('2 REPAIR ESTIMATOR'!S440)","v":""},{"$nulls":3},1,0,1]
[{"$nulls":7},{"$f":"T('2 REPAIR ESTIMATOR'!D441:O441)","v":""},{"$f":"'2 REPAIR ESTIMATOR'!P441","v":0},{"$f":"T('2 REPAIR ESTIMATOR'!S441)","v":""},{"$nulls":3},1,0,1]
[{"$nulls":7},{"$f":"T('2 REPAIR ESTIMATOR'!D442:O442)","v":""},{"$f":"'2 REPAIR ESTIMATOR'!P442","v":0},{"$f":"T('2 REPAIR ESTIMATOR'!S442)","v":""},{"$nulls":3},1,0,1]
[{"$nulls":7},{"$f":"T('2 REPAIR ESTIMATOR'!D447:O447)","v":"EXTERIOR DOORS & WINDOWS"},{"$f":"#REF!","v":{"$error":"#REF!"}},{"$nulls":4},{"$f":"SUM(N353:N392)","v":40},{"$f":"SUM(O353:O392)","v":0},{"$f":"SUM(P353:P392)","v":40}]
[{"$nulls":7},{"$f":"T('2 REPAIR ESTIMATOR'!D448:O448)","v":"Exterior Doors"},{"$f":"'2 REPAIR ESTIMATOR'!P448","v":0},{"$f":"T('2 REPAIR ESTIMATOR'!S448)","v":""},{"$nulls":3},{"$f":"IF(I353<>\"\",1,0)","v":1},{"$f":"IF(K353=\"x\",1,0)","v":0},{"$f":"IF(AND(N353>0,O353=0),1,0)","v":1}]
[{"$nulls":7},{"$f":"T('2 REPAIR ESTIMATOR'!D449:O449)","v":"Exterior doors bid/allowance"},{"$f":"'2 REPAIR ESTIMATOR'!P449","v":0},{"$f":"T('2 REPAIR ESTIMATOR'!S449)","v":"ls"},{"$nulls":3},{"$f":"IF(I354<>\"\",1,0)","v":1},{"$f":"IF(K354=\"x\",1,0)","v":0},{"$f":"IF(AND(N354>0,O354=0),1,0)","v":1}]
[{"$nulls":7},{"$f":"T('2 REPAIR ESTIMATOR'!D450:O450)","v":"Steel entry door,  single"},{"$f":"'2 REPAIR ESTIMATOR'!P450","v":3},{"$f":"T('2 REPAIR ESTIMATOR'!S450)","v":"ea"},{"$nulls":3},1,0,1]
[{"$nulls":7},{"$f":"T('2 REPAIR ESTIMATOR'!D451:O451)","v":"French patio door, pair"},{"$f":"'2 REPAIR ESTIMATOR'!P451","v":0},{"$f":"T('2 REPAIR ESTIMATOR'!S451)","v":"ea"},{"$nulls":3},1,0,1]
[{"$nulls":7},{"$f":"T('2 REPAIR ESTIMATOR'!D452:O452)","v":"Exterior door hardware w/ dead bolt "},{"$f":"'2 REPAIR ESTIMATOR'!P452","v":3},{"$f":"T('2 REPAIR ESTIMATOR'!S452)","v":"ea"},{"$nulls":3},1,0,1]
[{"$nulls":7},{"$f":"T('2 REPAIR ESTIMATOR'!D453:O453)","v":"Glass storm door, single"},{"$f":"'2 REPAIR ESTIMATOR'!P453","v":1},{"$f":"T('2 REPAIR ESTIMATOR'!S453)","v":"ea"},{"$nulls":3},1,0,1]
[{"$nulls":7},{"$f":"T('2 REPAIR ESTIMATOR'!D454:O454)","v":"Sliding glass door, vinyl, double"},{"$f":"'2 REPAIR ESTIMATOR'!P454","v":0},{"$f":"T('2 REPAIR ESTIMATOR'!S454)","v":"ea"},{"$nulls":3},1,0,1]
[{"$nulls":7},{"$f":"T('2 REPAIR ESTIMATOR'!D455:O455)","v":""},{"$f":"'2 REPAIR ESTIMATOR'!P455","v":0},{"$f":"T('2 REPAIR ESTIMATOR'!S455)","v":""},{"$nulls":3},1,0,1]
[{"$nulls":7},{"$f":"T('2 REPAIR ESTIMATOR'!D456:O456)","v":""},{"$f":"'2 REPAIR ESTIMATOR'!P456","v":0},{"$f":"T('2 REPAIR ESTIMATOR'!S456)","v":""},{"$nulls":3},1,0,1]
[{"$nulls":7},{"$f":"T('2 REPAIR ESTIMATOR'!D457:O457)","v":"Windows"},{"$f":"'2 REPAIR ESTIMATOR'!P457","v":0},{"$f":"T('2 REPAIR ESTIMATOR'!S457)","v":""},{"$nulls":3},1,0,1]
[{"$nulls":7},{"$f":"T('2 REPAIR ESTIMATOR'!D458:O458)","v":"New windows, vinyl, average size"},{"$f":"'2 REPAIR ESTIMATOR'!P458","v":11},{"$f":"T('2 REPAIR ESTIMATOR'!S458)","v":"ea"},{"$nulls":3},1,0,1]
[{"$nulls":7},{"$f":"T('2 REPAIR ESTIMATOR'!D459:O459)","v":"Replacement windows, vinyl, average size"},{"$f":"'2 REPAIR ESTIMATOR'!P459","v":0},{"$f":"T('2 REPAIR ESTIMATOR'!S459)","v":"ea"},{"$nulls":3},1,0,1]
[{"$nulls":7},{"$f":"T('2 REPAIR ESTIMATOR'!D460:O460)","v":"Wood windows, average size"},{"$f":"'2 REPAIR ESTIMATOR'!P460","v":0},{"$f":"T('2 REPAIR ESTIMATOR'!S460)","v":"ea"},{"$nulls":3},1,0,1]
[{"$nulls":7},{"$f":"T('2 REPAIR ESTIMATOR'!D461:O461)","v":"Replace broken window pane"},{"$f":"'2 REPAIR ESTIMATOR'!P461","v":0},{"$f":"T('2 REPAIR ESTIMATOR'!S461)","v":"ea"},{"$nulls":3},1,0,1]
[{"$nulls":7},{"$f":"T('2 REPAIR ESTIMATOR'!D462:O462)","v":"Replace broken screens"},{"$f":"'2 REPAIR ESTIMATOR'!P462","v":0},{"$f":"T('2 REPAIR ESTIMATOR'!S462)","v":"ea"},{"$nulls":3},1,0,1]
[{"$nulls":7},{"$f":"T('2 REPAIR ESTIMATOR'!D463:O463)","v":"Repair broken screens"},{"$f":"'2 REPAIR ESTIMATOR'!P463","v":0},{"$f":"T('2 REPAIR ESTIMATOR'!S463)","v":"ea"},{"$nulls":3},1,0,1]
[{"$nulls":7},{"$f":"T('2 REPAIR ESTIMATOR'!D464:O464)","v":"Skylight, 3x3, fixed"},{"$f":"'2 REPAIR ESTIMATOR'!P464","v":0},{"$f":"T('2 REPAIR ESTIMATOR'!S464)","v":"ea"},{"$nulls":3},1,0,1]
[{"$nulls":7},{"$f":"T('2 REPAIR ESTIMATOR'!D465:O465)","v":"Skylight, operable"},{"$f":"'2 REPAIR ESTIMATOR'!P465","v":0},{"$f":"T('2 REPAIR ESTIMATOR'!S465)","v":"ea"},{"$nulls":3},1,0,1]
[{"$nulls":7},{"$f":"T('2 REPAIR ESTIMATOR'!D466:O466)","v":""},{"$f":"'2 REPAIR ESTIMATOR'!P466","v":0},{"$f":"T('2 REPAIR ESTIMATOR'!S466)","v":""},{"$nulls":3},1,0,1]
[{"$nulls":7},{"$f":"T('2 REPAIR ESTIMATOR'!D467:O467)","v":""},{"$f":"'2 REPAIR ESTIMATOR'!P467","v":0},{"$f":"T('2 REPAIR ESTIMATOR'!S467)","v":""},{"$nulls":3},1,0,1]
[{"$nulls":7},{"$f":"T('2 REPAIR ESTIMATOR'!D468:O468)","v":""},{"$f":"'2 REPAIR ESTIMATOR'!P468","v":0},{"$f":"T('2 REPAIR ESTIMATOR'!S468)","v":""},{"$nulls":3},1,0,1]
[{"$nulls":7},{"$f":"T('2 REPAIR ESTIMATOR'!D469:O469)","v":""},{"$f":"'2 REPAIR ESTIMATOR'!P469","v":0},{"$f":"T('2 REPAIR ESTIMATOR'!S469)","v":""},{"$nulls":3},1,0,1]
[{"$nulls":7},{"$f":"T('2 REPAIR ESTIMATOR'!D470:O470)","v":""},{"$f":"'2 REPAIR ESTIMATOR'!P470","v":0},{"$f":"T('2 REPAIR ESTIMATOR'!S470)","v":""},{"$nulls":3},1,0,1]
[{"$nulls":7},{"$f":"T('2 REPAIR ESTIMATOR'!D471:O471)","v":""},{"$f":"'2 REPAIR ESTIMATOR'!P471","v":0},{"$f":"T('2 REPAIR ESTIMATOR'!S471)","v":""},{"$nulls":3},1,0,1]
[{"$nulls":7},{"$f":"T('2 REPAIR ESTIMATOR'!D472:O472)","v":""},{"$f":"'2 REPAIR ESTIMATOR'!P472","v":0},{"$f":"T('2 REPAIR ESTIMATOR'!S472)","v":""},{"$nulls":3},1,0,1]
[{"$nulls":7},{"$f":"T('2 REPAIR ESTIMATOR'!D473:O473)","v":""},{"$f":"'2 REPAIR ESTIMATOR'!P473","v":0},{"$f":"T('2 REPAIR ESTIMATOR'!S473)","v":""},{"$nulls":3},1,0,1]
[{"$nulls":7},{"$f":"T('2 REPAIR ESTIMATOR'!D474:O474)","v":""},{"$f":"'2 REPAIR ESTIMATOR'!P474","v":0},{"$f":"T('2 REPAIR ESTIMATOR'!S474)","v":""},{"$nulls":3},1,0,1]
[{"$nulls":7},{"$f":"T('2 REPAIR ESTIMATOR'!D475:O475)","v":""},{"$f":"'2 REPAIR ESTIMATOR'!P475","v":0},{"$f":"T('2 REPAIR ESTIMATOR'!S475)","v":""},{"$nulls":3},1,0,1]
[{"$nulls":7},{"$f":"T('2 REPAIR ESTIMATOR'!D476:O476)","v":""},{"$f":"'2 REPAIR ESTIMATOR'!P476","v":0},{"$f":"T('2 REPAIR ESTIMATOR'!S476)","v":""},{"$nulls":3},1,0,1]
[{"$nulls":7},{"$f":"T('2 REPAIR ESTIMATOR'!D477:O477)","v":""},{"$f":"'2 REPAIR ESTIMATOR'!P477","v":0},{"$f":"T('2 REPAIR ESTIMATOR'!S477)","v":""},{"$nulls":3},1,0,1]
[{"$nulls":7},{"$f":"T('2 REPAIR ESTIMATOR'!D478:O478)","v":""},{"$f":"'2 REPAIR ESTIMATOR'!P478","v":0},{"$f":"T('2 REPAIR ESTIMATOR'!S478)","v":""},{"$nulls":3},1,0,1]
[{"$nulls":7},{"$f":"T('2 REPAIR ESTIMATOR'!D479:O479)","v":""},{"$f":"'2 REPAIR ESTIMATOR'!P479","v":0},{"$f":"T('2 REPAIR ESTIMATOR'!S479)","v":""},{"$nulls":3},1,0,1]
[{"$nulls":7},{"$f":"T('2 REPAIR ESTIMATOR'!D480:O480)","v":""},{"$f":"'2 REPAIR ESTIMATOR'!P480","v":0},{"$f":"T('2 REPAIR ESTIMATOR'!S480)","v":""},{"$nulls":3},1,0,1]
[{"$nulls":7},{"$f":"T('2 REPAIR ESTIMATOR'!D481:O481)","v":""},{"$f":"'2 REPAIR ESTIMATOR'!P481","v":0},{"$f":"T('2 REPAIR ESTIMATOR'!S481)","v":""},{"$nulls":3},1,0,1]
[{"$nulls":7},{"$f":"T('2 REPAIR ESTIMATOR'!D482:O482)","v":""},{"$f":"'2 REPAIR ESTIMATOR'!P482","v":0},{"$f":"T('2 REPAIR ESTIMATOR'!S482)","v":""},{"$nulls":3},1,0,1]
[{"$nulls":7},{"$f":"T('2 REPAIR ESTIMATOR'!D483:O483)","v":""},{"$f":"'2 REPAIR ESTIMATOR'!P483","v":0},{"$f":"T('2 REPAIR ESTIMATOR'!S483)","v":""},{"$nulls":3},1,0,1]
[{"$nulls":7},{"$f":"T('2 REPAIR ESTIMATOR'!D484:O484)","v":""},{"$f":"'2 REPAIR ESTIMATOR'!P484","v":0},{"$f":"T('2 REPAIR ESTIMATOR'!S484)","v":""},{"$nulls":3},1,0,1]
[{"$nulls":7},{"$f":"T('2 REPAIR ESTIMATOR'!D485:O485)","v":""},{"$f":"'2 REPAIR ESTIMATOR'!P485","v":0},{"$f":"T('2 REPAIR ESTIMATOR'!S485)","v":""},{"$nulls":3},1,0,1]
[{"$nulls":7},{"$f":"T('2 REPAIR ESTIMATOR'!D486:O486)","v":""},{"$f":"'2 REPAIR ESTIMATOR'!P486","v":0},{"$f":"T('2 REPAIR ESTIMATOR'!S486)","v":""},{"$nulls":3},1,0,1]
[{"$nulls":7},{"$f":"T('2 REPAIR ESTIMATOR'!D487:O487)","v":""},{"$f":"'2 REPAIR ESTIMATOR'!P487","v":0},{"$f":"T('2 REPAIR ESTIMATOR'!S487)","v":""},{"$nulls":3},1,0,1]
[{"$nulls":7},{"$f":"T('2 REPAIR ESTIMATOR'!D492:O492)","v":"GARAGE DOORS"},{"$f":"#REF!","v":{"$error":"#REF!"}},{"$nulls":4},{"$f":"SUM(N394:N433)","v":40},{"$f":"SUM(O394:O433)","v":0},{"$f":"SUM(P394:P433)","v":40}]
[{"$nulls":7},{"$f":"T('2 REPAIR ESTIMATOR'!D493:O493)","v":"Garage Doors Bid/Allowance"},{"$f":"'2 REPAIR ESTIMATOR'!P493","v":0},{"$f":"T('2 REPAIR ESTIMATOR'!S492)","v":""},{"$nulls":3},{"$f":"IF(I394<>\"\",1,0)","v":1},{"$f":"IF(K394=\"x\",1,0)","v":0},{"$f":"IF(AND(N394>0,O394=0),1,0)","v":1}]
[{"$nulls":7},{"$f":"T('2 REPAIR ESTIMATOR'!D494:O494)","v":"Garage Doors Only- 9'x7'  door, manual"},{"$f":"'2 REPAIR ESTIMATOR'!P494","v":0},{"$f":"T('2 REPAIR ESTIMATOR'!S493)","v":"ls"},{"$nulls":3},{"$f":"IF(I395<>\"\",1,0)","v":1},{"$f":"IF(K395=\"x\",1,0)","v":0},{"$f":"IF(AND(N395>0,O395=0),1,0)","v":1}]
[{"$nulls":7},{"$f":"T('2 REPAIR ESTIMATOR'!D495:O495)","v":"Garage Doors Only- 16' door, manual"},{"$f":"'2 REPAIR ESTIMATOR'!P495","v":1},{"$f":"T('2 REPAIR ESTIMATOR'!S494)","v":"ea"},{"$nulls":3},1,0,1]
[{"$nulls":7},{"$f":"T('2 REPAIR ESTIMATOR'!D496:O496)","v":"Garage Door Operator only"},{"$f":"'2 REPAIR ESTIMATOR'!P496","v":1},{"$f":"T('2 REPAIR ESTIMATOR'!S495)","v":"ea"},{"$nulls":3},1,0,1]
[{"$nulls":7},{"$f":"T('2 REPAIR ESTIMATOR'!D497:O497)","v":"Replace springs for garage door"},{"$f":"'2 REPAIR ESTIMATOR'!P497","v":0},{"$f":"T('2 REPAIR ESTIMATOR'!S496)","v":"ea"},{"$nulls":3},1,0,1]
[{"$nulls":7},{"$f":"T('2 REPAIR ESTIMATOR'!D498:O498)","v":""},{"$f":"'2 REPAIR ESTIMATOR'!P498","v":0},{"$f":"T('2 REPAIR ESTIMATOR'!S497)","v":"ea"},{"$nulls":3},1,0,1]
[{"$nulls":7},{"$f":"T('2 REPAIR ESTIMATOR'!D499:O499)","v":""},{"$f":"'2 REPAIR ESTIMATOR'!P499","v":0},{"$f":"T('2 REPAIR ESTIMATOR'!S498)","v":""},{"$nulls":3},1,0,1]
[{"$nulls":7},{"$f":"T('2 REPAIR ESTIMATOR'!D500:O500)","v":""},{"$f":"'2 REPAIR ESTIMATOR'!P500","v":0},{"$f":"T('2 REPAIR ESTIMATOR'!S499)","v":""},{"$nulls":3},1,0,1]
[{"$nulls":7},{"$f":"T('2 REPAIR ESTIMATOR'!D501:O501)","v":""},{"$f":"'2 REPAIR ESTIMATOR'!P501","v":0},{"$f":"T('2 REPAIR ESTIMATOR'!S500)","v":""},{"$nulls":3},1,0,1]
[{"$nulls":7},{"$f":"T('2 REPAIR ESTIMATOR'!D502:O502)","v":""},{"$f":"'2 REPAIR ESTIMATOR'!P502","v":0},{"$f":"T('2 REPAIR ESTIMATOR'!S501)","v":""},{"$nulls":3},1,0,1]
[{"$nulls":7},{"$f":"T('2 REPAIR ESTIMATOR'!D503:O503)","v":""},{"$f":"'2 REPAIR ESTIMATOR'!P503","v":0},{"$f":"T('2 REPAIR ESTIMATOR'!S502)","v":""},{"$nulls":3},1,0,1]
[{"$nulls":7},{"$f":"T('2 REPAIR ESTIMATOR'!D504:O504)","v":""},{"$f":"'2 REPAIR ESTIMATOR'!P504","v":0},{"$f":"T('2 REPAIR ESTIMATOR'!S503)","v":""},{"$nulls":3},1,0,1]
[{"$nulls":7},{"$f":"T('2 REPAIR ESTIMATOR'!D505:O505)","v":""},{"$f":"'2 REPAIR ESTIMATOR'!P505","v":0},{"$f":"T('2 REPAIR ESTIMATOR'!S504)","v":""},{"$nulls":3},1,0,1]
[{"$nulls":7},{"$f":"T('2 REPAIR ESTIMATOR'!D506:O506)","v":""},{"$f":"'2 REPAIR ESTIMATOR'!P506","v":0},{"$f":"T('2 REPAIR ESTIMATOR'!S505)","v":""},{"$nulls":3},1,0,1]
[{"$nulls":7},{"$f":"T('2 REPAIR ESTIMATOR'!D507:O507)","v":""},{"$f":"'2 REPAIR ESTIMATOR'!P507","v":0},{"$f":"T('2 REPAIR ESTIMATOR'!S506)","v":""},{"$nulls":3},1,0,1]
[{"$nulls":7},{"$f":"T('2 REPAIR ESTIMATOR'!D508:O508)","v":""},{"$f":"'2 REPAIR ESTIMATOR'!P508","v":0},{"$f":"T('2 REPAIR ESTIMATOR'!S507)","v":""},{"$nulls":3},1,0,1]
[{"$nulls":7},{"$f":"T('2 REPAIR ESTIMATOR'!D509:O509)","v":""},{"$f":"'2 REPAIR ESTIMATOR'!P509","v":0},{"$f":"T('2 REPAIR ESTIMATOR'!S508)","v":""},{"$nulls":3},1,0,1]
[{"$nulls":7},{"$f":"T('2 REPAIR ESTIMATOR'!D510:O510)","v":""},{"$f":"'2 REPAIR ESTIMATOR'!P510","v":0},{"$f":"T('2 REPAIR ESTIMATOR'!S509)","v":""},{"$nulls":3},1,0,1]
[{"$nulls":7},{"$f":"T('2 REPAIR ESTIMATOR'!D511:O511)","v":""},{"$f":"'2 REPAIR ESTIMATOR'!P511","v":0},{"$f":"T('2 REPAIR ESTIMATOR'!S510)","v":""},{"$nulls":3},1,0,1]
[{"$nulls":7},{"$f":"T('2 REPAIR ESTIMATOR'!D512:O512)","v":""},{"$f":"'2 REPAIR ESTIMATOR'!P512","v":0},{"$f":"T('2 REPAIR ESTIMATOR'!S511)","v":""},{"$nulls":3},1,0,1]
[{"$nulls":7},{"$f":"T('2 REPAIR ESTIMATOR'!D513:O513)","v":""},{"$f":"'2 REPAIR ESTIMATOR'!P513","v":0},{"$f":"T('2 REPAIR ESTIMATOR'!S512)","v":""},{"$nulls":3},1,0,1]
[{"$nulls":7},{"$f":"T('2 REPAIR ESTIMATOR'!D514:O514)","v":""},{"$f":"'2 REPAIR ESTIMATOR'!P514","v":0},{"$f":"T('2 REPAIR ESTIMATOR'!S513)","v":""},{"$nulls":3},1,0,1]
[{"$nulls":7},{"$f":"T('2 REPAIR ESTIMATOR'!D515:O515)","v":""},{"$f":"'2 REPAIR ESTIMATOR'!P515","v":0},{"$f":"T('2 REPAIR ESTIMATOR'!S514)","v":""},{"$nulls":3},1,0,1]
[{"$nulls":7},{"$f":"T('2 REPAIR ESTIMATOR'!D516:O516)","v":""},{"$f":"'2 REPAIR ESTIMATOR'!P516","v":0},{"$f":"T('2 REPAIR ESTIMATOR'!S515)","v":""},{"$nulls":3},1,0,1]
[{"$nulls":7},{"$f":"T('2 REPAIR ESTIMATOR'!D517:O517)","v":""},{"$f":"'2 REPAIR ESTIMATOR'!P517","v":0},{"$f":"T('2 REPAIR ESTIMATOR'!S516)","v":""},{"$nulls":3},1,0,1]
[{"$nulls":7},{"$f":"T('2 REPAIR ESTIMATOR'!D518:O518)","v":""},{"$f":"'2 REPAIR ESTIMATOR'!P518","v":0},{"$f":"T('2 REPAIR ESTIMATOR'!S517)","v":""},{"$nulls":3},1,0,1]
[{"$nulls":7},{"$f":"T('2 REPAIR ESTIMATOR'!D519:O519)","v":""},{"$f":"'2 REPAIR ESTIMATOR'!P519","v":0},{"$f":"T('2 REPAIR ESTIMATOR'!S518)","v":""},{"$nulls":3},1,0,1]
[{"$nulls":7},{"$f":"T('2 REPAIR ESTIMATOR'!D520:O520)","v":""},{"$f":"'2 REPAIR ESTIMATOR'!P520","v":0},{"$f":"T('2 REPAIR ESTIMATOR'!S519)","v":""},{"$nulls":3},1,0,1]
[{"$nulls":7},{"$f":"T('2 REPAIR ESTIMATOR'!D521:O521)","v":""},{"$f":"'2 REPAIR ESTIMATOR'!P521","v":0},{"$f":"T('2 REPAIR ESTIMATOR'!S520)","v":""},{"$nulls":3},1,0,1]
[{"$nulls":7},{"$f":"T('2 REPAIR ESTIMATOR'!D522:O522)","v":""},{"$f":"'2 REPAIR ESTIMATOR'!P522","v":0},{"$f":"T('2 REPAIR ESTIMATOR'!S521)","v":""},{"$nulls":3},1,0,1]
[{"$nulls":7},{"$f":"T('2 REPAIR ESTIMATOR'!D523:O523)","v":""},{"$f":"'2 REPAIR ESTIMATOR'!P523","v":0},{"$f":"T('2 REPAIR ESTIMATOR'!S522)","v":""},{"$nulls":3},1,0,1]
[{"$nulls":7},{"$f":"T('2 REPAIR ESTIMATOR'!D524:O524)","v":""},{"$f":"'2 REPAIR ESTIMATOR'!P524","v":0},{"$f":"T('2 REPAIR ESTIMATOR'!S523)","v":""},{"$nulls":3},1,0,1]
[{"$nulls":7},{"$f":"T('2 REPAIR ESTIMATOR'!D525:O525)","v":""},{"$f":"'2 REPAIR ESTIMATOR'!P525","v":0},{"$f":"T('2 REPAIR ESTIMATOR'!S524)","v":""},{"$nulls":3},1,0,1]
[{"$nulls":7},{"$f":"T('2 REPAIR ESTIMATOR'!D526:O526)","v":""},{"$f":"'2 REPAIR ESTIMATOR'!P526","v":0},{"$f":"T('2 REPAIR ESTIMATOR'!S525)","v":""},{"$nulls":3},1,0,1]
[{"$nulls":7},{"$f":"T('2 REPAIR ESTIMATOR'!D527:O527)","v":""},{"$f":"'2 REPAIR ESTIMATOR'!P527","v":0},{"$f":"T('2 REPAIR ESTIMATOR'!S526)","v":""},{"$nulls":3},1,0,1]
[{"$nulls":7},{"$f":"T('2 REPAIR ESTIMATOR'!D528:O528)","v":""},{"$f":"'2 REPAIR ESTIMATOR'!P528","v":0},{"$f":"T('2 REPAIR ESTIMATOR'!S527)","v":""},{"$nulls":3},1,0,1]
[{"$nulls":7},{"$f":"T('2 REPAIR ESTIMATOR'!D529:O529)","v":""},{"$f":"'2 REPAIR ESTIMATOR'!P529","v":0},{"$f":"T('2 REPAIR ESTIMATOR'!S528)","v":""},{"$nulls":3},1,0,1]
[{"$nulls":7},{"$f":"T('2 REPAIR ESTIMATOR'!D530:O530)","v":""},{"$f":"'2 REPAIR ESTIMATOR'!P530","v":0},{"$f":"T('2 REPAIR ESTIMATOR'!S529)","v":""},{"$nulls":3},1,0,1]
[{"$nulls":7},{"$f":"T('2 REPAIR ESTIMATOR'!D531:O531)","v":""},{"$f":"'2 REPAIR ESTIMATOR'!P531","v":0},{"$f":"T('2 REPAIR ESTIMATOR'!S530)","v":""},{"$nulls":3},1,0,1]
[{"$nulls":7},{"$f":"T('2 REPAIR ESTIMATOR'!D532:O532)","v":""},{"$f":"'2 REPAIR ESTIMATOR'!P532","v":0},{"$f":"T('2 REPAIR ESTIMATOR'!S531)","v":""},{"$nulls":3},1,0,1]
[{"$nulls":7},{"$f":"T('2 REPAIR ESTIMATOR'!D537:O537)","v":"LANDSCAPING"},{"$f":"#REF!","v":{"$error":"#REF!"}},{"$nulls":4},{"$f":"SUM(N435:N474)","v":40},{"$f":"SUM(O435:O474)","v":0},{"$f":"SUM(P435:P474)","v":40}]
[{"$nulls":7},{"$f":"T('2 REPAIR ESTIMATOR'!D538:O538)","v":"Landscaping bid/allowance, trees, bushes, flowers"},{"$f":"'2 REPAIR ESTIMATOR'!P538","v":1},{"$f":"T('2 REPAIR ESTIMATOR'!S538)","v":"ls"},{"$nulls":3},{"$f":"IF(I435<>\"\",1,0)","v":1},{"$f":"IF(K435=\"x\",1,0)","v":0},{"$f":"IF(AND(N435>0,O435=0),1,0)","v":1}]
[{"$nulls":7},{"$f":"T('2 REPAIR ESTIMATOR'!D539:O539)","v":"Sod"},{"$f":"'2 REPAIR ESTIMATOR'!P539","v":0},{"$f":"T('2 REPAIR ESTIMATOR'!S539)","v":"sf"},{"$nulls":3},{"$f":"IF(I436<>\"\",1,0)","v":1},{"$f":"IF(K436=\"x\",1,0)","v":0},{"$f":"IF(AND(N436>0,O436=0),1,0)","v":1}]
[{"$nulls":7},{"$f":"T('2 REPAIR ESTIMATOR'!D540:O540)","v":"Seeding"},{"$f":"'2 REPAIR ESTIMATOR'!P540","v":0},{"$f":"T('2 REPAIR ESTIMATOR'!S540)","v":"sf"},{"$nulls":3},1,0,1]
[{"$nulls":7},{"$f":"T('2 REPAIR ESTIMATOR'!D541:O541)","v":"Shrubs/plantings, 1 gallon"},{"$f":"'2 REPAIR ESTIMATOR'!P541","v":0},{"$f":"T('2 REPAIR ESTIMATOR'!S541)","v":"ea"},{"$nulls":3},1,0,1]
[{"$nulls":7},{"$f":"T('2 REPAIR ESTIMATOR'!D542:O542)","v":"Shrubs/plantings, 2 gallon"},{"$f":"'2 REPAIR ESTIMATOR'!P542","v":0},{"$f":"T('2 REPAIR ESTIMATOR'!S542)","v":"ea"},{"$nulls":3},1,0,1]
[{"$nulls":7},{"$f":"T('2 REPAIR ESTIMATOR'!D543:O543)","v":"Shrubs/plantings, 5 gallon"},{"$f":"'2 REPAIR ESTIMATOR'!P543","v":0},{"$f":"T('2 REPAIR ESTIMATOR'!S543)","v":"ea"},{"$nulls":3},1,0,1]
[{"$nulls":7},{"$f":"T('2 REPAIR ESTIMATOR'!D544:O544)","v":"Small trees, 1-2\" caliper, 10 gallon"},{"$f":"'2 REPAIR ESTIMATOR'!P544","v":0},{"$f":"T('2 REPAIR ESTIMATOR'!S544)","v":"ea"},{"$nulls":3},1,0,1]
[{"$nulls":7},{"$f":"T('2 REPAIR ESTIMATOR'!D545:O545)","v":"Small trees, 1-2\" 15 gallon"},{"$f":"'2 REPAIR ESTIMATOR'!P545","v":0},{"$f":"T('2 REPAIR ESTIMATOR'!S545)","v":"ea"},{"$nulls":3},1,0,1]
[{"$nulls":7},{"$f":"T('2 REPAIR ESTIMATOR'!D546:O546)","v":"36\" box tree"},{"$f":"'2 REPAIR ESTIMATOR'!P546","v":0},{"$f":"T('2 REPAIR ESTIMATOR'!S546)","v":"ea"},{"$nulls":3},1,0,1]
[{"$nulls":7},{"$f":"T('2 REPAIR ESTIMATOR'!D547:O547)","v":"Mulch, standard 3\" thick"},{"$f":"'2 REPAIR ESTIMATOR'!P547","v":0},{"$f":"T('2 REPAIR ESTIMATOR'!S547)","v":"sf"},{"$nulls":3},1,0,1]
[{"$nulls":7},{"$f":"T('2 REPAIR ESTIMATOR'!D548:O548)","v":"Landscape rock, 3/4\""},{"$f":"'2 REPAIR ESTIMATOR'!P548","v":0},{"$f":"T('2 REPAIR ESTIMATOR'!S548)","v":"sf"},{"$nulls":3},1,0,1]
[{"$nulls":7},{"$f":"T('2 REPAIR ESTIMATOR'!D549:O549)","v":"Cobble stone rock"},{"$f":"'2 REPAIR ESTIMATOR'!P549","v":0},{"$f":"T('2 REPAIR ESTIMATOR'!S549)","v":"sf"},{"$nulls":3},1,0,1]
[{"$nulls":7},{"$f":"T('2 REPAIR ESTIMATOR'!D550:O550)","v":"Tree removal, per tree"},{"$f":"'2 REPAIR ESTIMATOR'!P550","v":0},{"$f":"T('2 REPAIR ESTIMATOR'!S550)","v":"ea"},{"$nulls":3},1,0,1]
[{"$nulls":7},{"$f":"T('2 REPAIR ESTIMATOR'!D551:O551)","v":"Stacked, retaining wall"},{"$f":"'2 REPAIR ESTIMATOR'!P551","v":0},{"$f":"T('2 REPAIR ESTIMATOR'!S551)","v":"sf"},{"$nulls":3},1,0,1]
[{"$nulls":7},{"$f":"T('2 REPAIR ESTIMATOR'!D552:O552)","v":""},{"$f":"'2 REPAIR ESTIMATOR'!P552","v":0},{"$f":"T('2 REPAIR ESTIMATOR'!S552)","v":""},{"$nulls":3},1,0,1]
[{"$nulls":7},{"$f":"T('2 REPAIR ESTIMATOR'!D553:O553)","v":""},{"$f":"'2 REPAIR ESTIMATOR'!P553","v":0},{"$f":"T('2 REPAIR ESTIMATOR'!S553)","v":""},{"$nulls":3},1,0,1]
[{"$nulls":7},{"$f":"T('2 REPAIR ESTIMATOR'!D554:O554)","v":""},{"$f":"'2 REPAIR ESTIMATOR'!P554","v":0},{"$f":"T('2 REPAIR ESTIMATOR'!S554)","v":""},{"$nulls":3},1,0,1]
[{"$nulls":7},{"$f":"T('2 REPAIR ESTIMATOR'!D555:O555)","v":""},{"$f":"'2 REPAIR ESTIMATOR'!P555","v":0},{"$f":"T('2 REPAIR ESTIMATOR'!S555)","v":""},{"$nulls":3},1,0,1]
[{"$nulls":7},{"$f":"T('2 REPAIR ESTIMATOR'!D556:O556)","v":""},{"$f":"'2 REPAIR ESTIMATOR'!P556","v":0},{"$f":"T('2 REPAIR ESTIMATOR'!S556)","v":""},{"$nulls":3},1,0,1]
[{"$nulls":7},{"$f":"T('2 REPAIR ESTIMATOR'!D557:O557)","v":""},{"$f":"'2 REPAIR ESTIMATOR'!P557","v":0},{"$f":"T('2 REPAIR ESTIMATOR'!S557)","v":""},{"$nulls":3},1,0,1]
[{"$nulls":7},{"$f":"T('2 REPAIR ESTIMATOR'!D558:O558)","v":""},{"$f":"'2 REPAIR ESTIMATOR'!P558","v":0},{"$f":"T('2 REPAIR ESTIMATOR'!S558)","v":""},{"$nulls":3},1,0,1]
[{"$nulls":7},{"$f":"T('2 REPAIR ESTIMATOR'!D559:O559)","v":""},{"$f":"'2 REPAIR ESTIMATOR'!P559","v":0},{"$f":"T('2 REPAIR ESTIMATOR'!S559)","v":""},{"$nulls":3},1,0,1]
[{"$nulls":7},{"$f":"T('2 REPAIR ESTIMATOR'!D560:O560)","v":""},{"$f":"'2 REPAIR ESTIMATOR'!P560","v":0},{"$f":"T('2 REPAIR ESTIMATOR'!S560)","v":""},{"$nulls":3},1,0,1]
[{"$nulls":7},{"$f":"T('2 REPAIR ESTIMATOR'!D561:O561)","v":""},{"$f":"'2 REPAIR ESTIMATOR'!P561","v":0},{"$f":"T('2 REPAIR ESTIMATOR'!S561)","v":""},{"$nulls":3},1,0,1]
[{"$nulls":7},{"$f":"T('2 REPAIR ESTIMATOR'!D562:O562)","v":""},{"$f":"'2 REPAIR ESTIMATOR'!P562","v":0},{"$f":"T('2 REPAIR ESTIMATOR'!S562)","v":""},{"$nulls":3},1,0,1]
[{"$nulls":7},{"$f":"T('2 REPAIR ESTIMATOR'!D563:O563)","v":""},{"$f":"'2 REPAIR ESTIMATOR'!P563","v":0},{"$f":"T('2 REPAIR ESTIMATOR'!S563)","v":""},{"$nulls":3},1,0,1]
[{"$nulls":7},{"$f":"T('2 REPAIR ESTIMATOR'!D564:O564)","v":""},{"$f":"'2 REPAIR ESTIMATOR'!P564","v":0},{"$f":"T('2 REPAIR ESTIMATOR'!S564)","v":""},{"$nulls":3},1,0,1]
[{"$nulls":7},{"$f":"T('2 REPAIR ESTIMATOR'!D565:O565)","v":""},{"$f":"'2 REPAIR ESTIMATOR'!P565","v":0},{"$f":"T('2 REPAIR ESTIMATOR'!S565)","v":""},{"$nulls":3},1,0,1]
[{"$nulls":7},{"$f":"T('2 REPAIR ESTIMATOR'!D566:O566)","v":""},{"$f":"'2 REPAIR ESTIMATOR'!P566","v":0},{"$f":"T('2 REPAIR ESTIMATOR'!S566)","v":""},{"$nulls":3},1,0,1]
[{"$nulls":7},{"$f":"T('2 REPAIR ESTIMATOR'!D567:O567)","v":""},{"$f":"'2 REPAIR ESTIMATOR'!P567","v":0},{"$f":"T('2 REPAIR ESTIMATOR'!S567)","v":""},{"$nulls":3},1,0,1]
[{"$nulls":7},{"$f":"T('2 REPAIR ESTIMATOR'!D568:O568)","v":""},{"$f":"'2 REPAIR ESTIMATOR'!P568","v":0},{"$f":"T('2 REPAIR ESTIMATOR'!S568)","v":""},{"$nulls":3},1,0,1]
[{"$nulls":7},{"$f":"T('2 REPAIR ESTIMATOR'!D569:O569)","v":""},{"$f":"'2 REPAIR ESTIMATOR'!P569","v":0},{"$f":"T('2 REPAIR ESTIMATOR'!S569)","v":""},{"$nulls":3},1,0,1]
[{"$nulls":7},{"$f":"T('2 REPAIR ESTIMATOR'!D570:O570)","v":""},{"$f":"'2 REPAIR ESTIMATOR'!P570","v":0},{"$f":"T('2 REPAIR ESTIMATOR'!S570)","v":""},{"$nulls":3},1,0,1]
[{"$nulls":7},{"$f":"T('2 REPAIR ESTIMATOR'!D571:O571)","v":""},{"$f":"'2 REPAIR ESTIMATOR'!P571","v":0},{"$f":"T('2 REPAIR ESTIMATOR'!S571)","v":""},{"$nulls":3},1,0,1]
[{"$nulls":7},{"$f":"T('2 REPAIR ESTIMATOR'!D572:O572)","v":""},{"$f":"'2 REPAIR ESTIMATOR'!P572","v":0},{"$f":"T('2 REPAIR ESTIMATOR'!S572)","v":""},{"$nulls":3},1,0,1]
[{"$nulls":7},{"$f":"T('2 REPAIR ESTIMATOR'!D573:O573)","v":""},{"$f":"'2 REPAIR ESTIMATOR'!P573","v":0},{"$f":"T('2 REPAIR ESTIMATOR'!S573)","v":""},{"$nulls":3},1,0,1]
[{"$nulls":7},{"$f":"T('2 REPAIR ESTIMATOR'!D574:O574)","v":""},{"$f":"'2 REPAIR ESTIMATOR'!P574","v":0},{"$f":"T('2 REPAIR ESTIMATOR'!S574)","v":""},{"$nulls":3},1,0,1]
[{"$nulls":7},{"$f":"T('2 REPAIR ESTIMATOR'!D575:O575)","v":""},{"$f":"'2 REPAIR ESTIMATOR'!P575","v":0},{"$f":"T('2 REPAIR ESTIMATOR'!S575)","v":""},{"$nulls":3},1,0,1]
[{"$nulls":7},{"$f":"T('2 REPAIR ESTIMATOR'!D576:O576)","v":""},{"$f":"'2 REPAIR ESTIMATOR'!P576","v":0},{"$f":"T('2 REPAIR ESTIMATOR'!S576)","v":""},{"$nulls":3},1,0,1]
[{"$nulls":7},{"$f":"T('2 REPAIR ESTIMATOR'!D577:O577)","v":""},{"$f":"'2 REPAIR ESTIMATOR'!P577","v":0},{"$f":"T('2 REPAIR ESTIMATOR'!S577)","v":""},{"$nulls":3},1,0,1]
[{"$nulls":7},{"$f":"T('2 REPAIR ESTIMATOR'!D582:O582)","v":"MISC. EXTERIOR ITEMS"},{"$f":"#REF!","v":{"$error":"#REF!"}},{"$f":"#REF!","v":{"$error":"#REF!"}},{"$nulls":3},{"$f":"SUM(N476:N515)","v":40},{"$f":"SUM(O476:O515)","v":0},{"$f":"SUM(P476:P515)","v":40}]
[{"$nulls":7},{"$f":"T('2 REPAIR ESTIMATOR'!D583:O583)","v":"Misc. Ext Improvements bid/allowance"},{"$f":"'2 REPAIR ESTIMATOR'!P583","v":0},{"$f":"T('2 REPAIR ESTIMATOR'!S583)","v":"ls"},{"$nulls":3},{"$f":"IF(I476<>\"\",1,0)","v":1},{"$f":"IF(K476=\"x\",1,0)","v":0},{"$f":"IF(AND(N476>0,O476=0),1,0)","v":1}]
[{"$nulls":7},{"$f":"T('2 REPAIR ESTIMATOR'!D584:O584)","v":"Miscellaneous Improvements"},{"$f":"'2 REPAIR ESTIMATOR'!P584","v":0},{"$f":"T('2 REPAIR ESTIMATOR'!S584)","v":""},{"$nulls":3},{"$f":"IF(I477<>\"\",1,0)","v":1},{"$f":"IF(K477=\"x\",1,0)","v":0},{"$f":"IF(AND(N477>0,O477=0),1,0)","v":1}]
[{"$nulls":7},{"$f":"T('2 REPAIR ESTIMATOR'!D585:O585)","v":"New mailbox"},{"$f":"'2 REPAIR ESTIMATOR'!P585","v":1},{"$f":"T('2 REPAIR ESTIMATOR'!S585)","v":"ea"},{"$nulls":3},1,0,1]
[{"$nulls":7},{"$f":"T('2 REPAIR ESTIMATOR'!D586:O586)","v":"New address #"},{"$f":"'2 REPAIR ESTIMATOR'!P586","v":1},{"$f":"T('2 REPAIR ESTIMATOR'!S586)","v":"ea"},{"$nulls":3},1,0,1]
[{"$nulls":7},{"$f":"T('2 REPAIR ESTIMATOR'!D587:O587)","v":"Shutters"},{"$f":"'2 REPAIR ESTIMATOR'!P587","v":6},{"$f":"T('2 REPAIR ESTIMATOR'!S587)","v":"ea"},{"$nulls":3},1,0,1]
[{"$nulls":7},{"$f":"T('2 REPAIR ESTIMATOR'!D588:O588)","v":""},{"$f":"'2 REPAIR ESTIMATOR'!P588","v":0},{"$f":"T('2 REPAIR ESTIMATOR'!S588)","v":""},{"$nulls":3},1,0,1]
[{"$nulls":7},{"$f":"T('2 REPAIR ESTIMATOR'!D589:O589)","v":"Fencing"},{"$f":"'2 REPAIR ESTIMATOR'!P589","v":0},{"$f":"T('2 REPAIR ESTIMATOR'!S589)","v":""},{"$nulls":3},1,0,1]
[{"$nulls":7},{"$f":"T('2 REPAIR ESTIMATOR'!D590:O590)","v":"Chain link fencing"},{"$f":"'2 REPAIR ESTIMATOR'!P590","v":0},{"$f":"T('2 REPAIR ESTIMATOR'!S590)","v":"lf"},{"$nulls":3},1,0,1]
[{"$nulls":7},{"$f":"T('2 REPAIR ESTIMATOR'!D591:O591)","v":"Wood fencing"},{"$f":"'2 REPAIR ESTIMATOR'!P591","v":0},{"$f":"T('2 REPAIR ESTIMATOR'!S591)","v":"lf"},{"$nulls":3},1,0,1]
[{"$nulls":7},{"$f":"T('2 REPAIR ESTIMATOR'!D592:O592)","v":""},{"$f":"'2 REPAIR ESTIMATOR'!P592","v":0},{"$f":"T('2 REPAIR ESTIMATOR'!S592)","v":""},{"$nulls":3},1,0,1]
[{"$nulls":7},{"$f":"T('2 REPAIR ESTIMATOR'!D593:O593)","v":"Misc. Exterior Structures"},{"$f":"'2 REPAIR ESTIMATOR'!P593","v":0},{"$f":"T('2 REPAIR ESTIMATOR'!S593)","v":""},{"$nulls":3},1,0,1]
[{"$nulls":7},{"$f":"T('2 REPAIR ESTIMATOR'!D594:O594)","v":"Premanufactured carport"},{"$f":"'2 REPAIR ESTIMATOR'!P594","v":0},{"$f":"T('2 REPAIR ESTIMATOR'!S594)","v":"ea"},{"$nulls":3},1,0,1]
[{"$nulls":7},{"$f":"T('2 REPAIR ESTIMATOR'!D595:O595)","v":"Storage shed, wood"},{"$f":"'2 REPAIR ESTIMATOR'!P595","v":0},{"$f":"T('2 REPAIR ESTIMATOR'!S595)","v":"ea"},{"$nulls":3},1,0,1]
[{"$nulls":7},{"$f":"T('2 REPAIR ESTIMATOR'!D596:O596)","v":"Gazebo"},{"$f":"'2 REPAIR ESTIMATOR'!P596","v":0},{"$f":"T('2 REPAIR ESTIMATOR'!S596)","v":"sf"},{"$nulls":3},1,0,1]
[{"$nulls":7},{"$f":"T('2 REPAIR ESTIMATOR'!D597:O597)","v":""},{"$f":"'2 REPAIR ESTIMATOR'!P597","v":0},{"$f":"T('2 REPAIR ESTIMATOR'!S597)","v":""},{"$nulls":3},1,0,1]
[{"$nulls":7},{"$f":"T('2 REPAIR ESTIMATOR'!D598:O598)","v":"Pools"},{"$f":"'2 REPAIR ESTIMATOR'!P598","v":0},{"$f":"T('2 REPAIR ESTIMATOR'!S598)","v":""},{"$nulls":3},1,0,1]
[{"$nulls":7},{"$f":"T('2 REPAIR ESTIMATOR'!D599:O599)","v":"New Pool structure"},{"$f":"'2 REPAIR ESTIMATOR'!P599","v":0},{"$f":"T('2 REPAIR ESTIMATOR'!S599)","v":"sf"},{"$nulls":3},1,0,1]
[{"$nulls":7},{"$f":"T('2 REPAIR ESTIMATOR'!D600:O600)","v":"Pool heater/motor"},{"$f":"'2 REPAIR ESTIMATOR'!P600","v":0},{"$f":"T('2 REPAIR ESTIMATOR'!S600)","v":"ea"},{"$nulls":3},1,0,1]
[{"$nulls":7},{"$f":"T('2 REPAIR ESTIMATOR'!D601:O601)","v":"Pool filter system"},{"$f":"'2 REPAIR ESTIMATOR'!P601","v":0},{"$f":"T('2 REPAIR ESTIMATOR'!S601)","v":"ea"},{"$nulls":3},1,0,1]
[{"$nulls":7},{"$f":"T('2 REPAIR ESTIMATOR'!D602:O602)","v":"Replaster existing pool wall"},{"$f":"'2 REPAIR ESTIMATOR'!P602","v":0},{"$f":"T('2 REPAIR ESTIMATOR'!S602)","v":"sf"},{"$nulls":3},1,0,1]
[{"$nulls":7},{"$f":"T('2 REPAIR ESTIMATOR'!D603:O603)","v":""},{"$f":"'2 REPAIR ESTIMATOR'!P603","v":0},{"$f":"T('2 REPAIR ESTIMATOR'!S603)","v":""},{"$nulls":3},1,0,1]
[{"$nulls":7},{"$f":"T('2 REPAIR ESTIMATOR'!D604:O604)","v":""},{"$f":"'2 REPAIR ESTIMATOR'!P604","v":0},{"$f":"T('2 REPAIR ESTIMATOR'!S604)","v":""},{"$nulls":3},1,0,1]
[{"$nulls":7},{"$f":"T('2 REPAIR ESTIMATOR'!D605:O605)","v":""},{"$f":"'2 REPAIR ESTIMATOR'!P605","v":0},{"$f":"T('2 REPAIR ESTIMATOR'!S605)","v":""},{"$nulls":3},1,0,1]
[{"$nulls":7},{"$f":"T('2 REPAIR ESTIMATOR'!D606:O606)","v":""},{"$f":"'2 REPAIR ESTIMATOR'!P606","v":0},{"$f":"T('2 REPAIR ESTIMATOR'!S606)","v":""},{"$nulls":3},1,0,1]
[{"$nulls":7},{"$f":"T('2 REPAIR ESTIMATOR'!D607:O607)","v":""},{"$f":"'2 REPAIR ESTIMATOR'!P607","v":0},{"$f":"T('2 REPAIR ESTIMATOR'!S607)","v":""},{"$nulls":3},1,0,1]
[{"$nulls":7},{"$f":"T('2 REPAIR ESTIMATOR'!D608:O608)","v":""},{"$f":"'2 REPAIR ESTIMATOR'!P608","v":0},{"$f":"T('2 REPAIR ESTIMATOR'!S608)","v":""},{"$nulls":3},1,0,1]
[{"$nulls":7},{"$f":"T('2 REPAIR ESTIMATOR'!D609:O609)","v":""},{"$f":"'2 REPAIR ESTIMATOR'!P609","v":0},{"$f":"T('2 REPAIR ESTIMATOR'!S609)","v":""},{"$nulls":3},1,0,1]
[{"$nulls":7},{"$f":"T('2 REPAIR ESTIMATOR'!D610:O610)","v":""},{"$f":"'2 REPAIR ESTIMATOR'!P610","v":0},{"$f":"T('2 REPAIR ESTIMATOR'!S610)","v":""},{"$nulls":3},1,0,1]
[{"$nulls":7},{"$f":"T('2 REPAIR ESTIMATOR'!D611:O611)","v":""},{"$f":"'2 REPAIR ESTIMATOR'!P611","v":0},{"$f":"T('2 REPAIR ESTIMATOR'!S611)","v":""},{"$nulls":3},1,0,1]
[{"$nulls":7},{"$f":"T('2 REPAIR ESTIMATOR'!D612:O612)","v":""},{"$f":"'2 REPAIR ESTIMATOR'!P612","v":0},{"$f":"T('2 REPAIR ESTIMATOR'!S612)","v":""},{"$nulls":3},1,0,1]
[{"$nulls":7},{"$f":"T('2 REPAIR ESTIMATOR'!D613:O613)","v":""},{"$f":"'2 REPAIR ESTIMATOR'!P613","v":0},{"$f":"T('2 REPAIR ESTIMATOR'!S613)","v":""},{"$nulls":3},1,0,1]
[{"$nulls":7},{"$f":"T('2 REPAIR ESTIMATOR'!D614:O614)","v":""},{"$f":"'2 REPAIR ESTIMATOR'!P614","v":0},{"$f":"T('2 REPAIR ESTIMATOR'!S614)","v":""},{"$nulls":3},1,0,1]
[{"$nulls":7},{"$f":"T('2 REPAIR ESTIMATOR'!D615:O615)","v":""},{"$f":"'2 REPAIR ESTIMATOR'!P615","v":0},{"$f":"T('2 REPAIR ESTIMATOR'!S615)","v":""},{"$nulls":3},1,0,1]
[{"$nulls":7},{"$f":"T('2 REPAIR ESTIMATOR'!D616:O616)","v":""},{"$f":"'2 REPAIR ESTIMATOR'!P616","v":0},{"$f":"T('2 REPAIR ESTIMATOR'!S616)","v":""},{"$nulls":3},1,0,1]
[{"$nulls":7},{"$f":"T('2 REPAIR ESTIMATOR'!D617:O617)","v":""},{"$f":"'2 REPAIR ESTIMATOR'!P617","v":0},{"$f":"T('2 REPAIR ESTIMATOR'!S617)","v":""},{"$nulls":3},1,0,1]
[{"$nulls":7},{"$f":"T('2 REPAIR ESTIMATOR'!D618:O618)","v":""},{"$f":"'2 REPAIR ESTIMATOR'!P618","v":0},{"$f":"T('2 REPAIR ESTIMATOR'!S618)","v":""},{"$nulls":3},1,0,1]
[{"$nulls":7},{"$f":"T('2 REPAIR ESTIMATOR'!D619:O619)","v":""},{"$f":"'2 REPAIR ESTIMATOR'!P619","v":0},{"$f":"T('2 REPAIR ESTIMATOR'!S619)","v":""},{"$nulls":3},1,0,1]
[{"$nulls":7},{"$f":"T('2 REPAIR ESTIMATOR'!D620:O620)","v":""},{"$f":"'2 REPAIR ESTIMATOR'!P620","v":0},{"$f":"T('2 REPAIR ESTIMATOR'!S620)","v":""},{"$nulls":3},1,0,1]
[{"$nulls":7},{"$f":"T('2 REPAIR ESTIMATOR'!D621:O621)","v":""},{"$f":"'2 REPAIR ESTIMATOR'!P621","v":0},{"$f":"T('2 REPAIR ESTIMATOR'!S621)","v":""},{"$nulls":3},1,0,1]
[{"$nulls":7},{"$f":"T('2 REPAIR ESTIMATOR'!D622:O622)","v":""},{"$f":"'2 REPAIR ESTIMATOR'!P622","v":0},{"$f":"T('2 REPAIR ESTIMATOR'!S622)","v":""},{"$nulls":3},1,0,1]
[{"$nulls":7},{"$f":"T('2 REPAIR ESTIMATOR'!D627:O627)","v":"FRAMING & DRYWALL"},{"$f":"#REF!","v":{"$error":"#REF!"}},{"$nulls":4},{"$f":"SUM(N517:N556)","v":40},{"$f":"SUM(O517:O556)","v":0},{"$f":"SUM(P517:P556)","v":40}]
[{"$nulls":7},{"$f":"T('2 REPAIR ESTIMATOR'!D628:O628)","v":"Framing"},{"$f":"'2 REPAIR ESTIMATOR'!P628","v":0},{"$f":"T('2 REPAIR ESTIMATOR'!S628)","v":""},{"$nulls":3},{"$f":"IF(I517<>\"\",1,0)","v":1},{"$f":"IF(K517=\"x\",1,0)","v":0},{"$f":"IF(AND(N517>0,O517=0),1,0)","v":1}]
[{"$nulls":7},{"$f":"T('2 REPAIR ESTIMATOR'!D629:O629)","v":"Structural framing bid/allowance, case by case"},{"$f":"'2 REPAIR ESTIMATOR'!P629","v":0},{"$f":"T('2 REPAIR ESTIMATOR'!S629)","v":"ls"},{"$nulls":3},{"$f":"IF(I518<>\"\",1,0)","v":1},{"$f":"IF(K518=\"x\",1,0)","v":0},{"$f":"IF(AND(N518>0,O518=0),1,0)","v":1}]
[{"$nulls":7},{"$f":"T('2 REPAIR ESTIMATOR'!D630:O630)","v":"Subflooring, 3/4\" plywood"},{"$f":"'2 REPAIR ESTIMATOR'!P630","v":0},{"$f":"T('2 REPAIR ESTIMATOR'!S630)","v":"sf"},{"$nulls":3},1,0,1]
[{"$nulls":7},{"$f":"T('2 REPAIR ESTIMATOR'!D631:O631)","v":"Interior wall framing"},{"$f":"'2 REPAIR ESTIMATOR'!P631","v":0},{"$f":"T('2 REPAIR ESTIMATOR'!S631)","v":"sf"},{"$nulls":3},1,0,1]
[{"$nulls":7},{"$f":"T('2 REPAIR ESTIMATOR'!D632:O632)","v":"Structural/Exterior wall framing"},{"$f":"'2 REPAIR ESTIMATOR'!P632","v":0},{"$f":"T('2 REPAIR ESTIMATOR'!S632)","v":"sf"},{"$nulls":3},1,0,1]
[{"$nulls":7},{"$f":"T('2 REPAIR ESTIMATOR'!D633:O633)","v":"Rough-in openings"},{"$f":"'2 REPAIR ESTIMATOR'!P633","v":0},{"$f":"T('2 REPAIR ESTIMATOR'!S633)","v":"ea"},{"$nulls":3},1,0,1]
[{"$nulls":7},{"$f":"T('2 REPAIR ESTIMATOR'!D634:O634)","v":"Floor joists/ceiling joists"},{"$f":"'2 REPAIR ESTIMATOR'!P634","v":0},{"$f":"T('2 REPAIR ESTIMATOR'!S634)","v":"sf"},{"$nulls":3},1,0,1]
[{"$nulls":7},{"$f":"T('2 REPAIR ESTIMATOR'!D635:O635)","v":"Roof framing/rafters"},{"$f":"'2 REPAIR ESTIMATOR'!P635","v":0},{"$f":"T('2 REPAIR ESTIMATOR'!S635)","v":"sf"},{"$nulls":3},1,0,1]
[{"$nulls":7},{"$f":"T('2 REPAIR ESTIMATOR'!D636:O636)","v":"Open load bearing/structural wall"},{"$f":"'2 REPAIR ESTIMATOR'!P636","v":0},{"$f":"T('2 REPAIR ESTIMATOR'!S636)","v":"ea"},{"$nulls":3},1,0,1]
[{"$nulls":7},{"$f":"T('2 REPAIR ESTIMATOR'!D637:O637)","v":"Insulation"},{"$f":"'2 REPAIR ESTIMATOR'!P637","v":0},{"$f":"T('2 REPAIR ESTIMATOR'!S637)","v":""},{"$nulls":3},1,0,1]
[{"$nulls":7},{"$f":"T('2 REPAIR ESTIMATOR'!D638:O638)","v":"Insulation bid/allowance"},{"$f":"'2 REPAIR ESTIMATOR'!P638","v":0},{"$f":"T('2 REPAIR ESTIMATOR'!S638)","v":"ls"},{"$nulls":3},1,0,1]
[{"$nulls":7},{"$f":"T('2 REPAIR ESTIMATOR'!D639:O639)","v":"Wall insulation"},{"$f":"'2 REPAIR ESTIMATOR'!P639","v":0},{"$f":"T('2 REPAIR ESTIMATOR'!S639)","v":"sf"},{"$nulls":3},1,0,1]
[{"$nulls":7},{"$f":"T('2 REPAIR ESTIMATOR'!D640:O640)","v":"Floor insulation"},{"$f":"'2 REPAIR ESTIMATOR'!P640","v":0},{"$f":"T('2 REPAIR ESTIMATOR'!S640)","v":"sf"},{"$nulls":3},1,0,1]
[{"$nulls":7},{"$f":"T('2 REPAIR ESTIMATOR'!D641:O641)","v":"Attic insulation, blown-in"},{"$f":"'2 REPAIR ESTIMATOR'!P641","v":0},{"$f":"T('2 REPAIR ESTIMATOR'!S641)","v":"sf"},{"$nulls":3},1,0,1]
[{"$nulls":7},{"$f":"T('2 REPAIR ESTIMATOR'!D642:O642)","v":"Walls/Ceilings"},{"$f":"'2 REPAIR ESTIMATOR'!P642","v":0},{"$f":"T('2 REPAIR ESTIMATOR'!S642)","v":""},{"$nulls":3},1,0,1]
[{"$nulls":7},{"$f":"T('2 REPAIR ESTIMATOR'!D643:O643)","v":"Drywall bid/allowance, case by case"},{"$f":"'2 REPAIR ESTIMATOR'!P643","v":1},{"$f":"T('2 REPAIR ESTIMATOR'!S643)","v":"ls"},{"$nulls":3},1,0,1]
[{"$nulls":7},{"$f":"T('2 REPAIR ESTIMATOR'!D644:O644)","v":"Drywall wallboard, 1/2\" thick, finish one side"},{"$f":"'2 REPAIR ESTIMATOR'!P644","v":0},{"$f":"T('2 REPAIR ESTIMATOR'!S644)","v":"sf"},{"$nulls":3},1,0,1]
[{"$nulls":7},{"$f":"T('2 REPAIR ESTIMATOR'!D645:O645)","v":"Drywall ceilings, 1/2\" thick"},{"$f":"'2 REPAIR ESTIMATOR'!P645","v":0},{"$f":"T('2 REPAIR ESTIMATOR'!S645)","v":"sf"},{"$nulls":3},1,0,1]
[{"$nulls":7},{"$f":"T('2 REPAIR ESTIMATOR'!D646:O646)","v":"Skim coating/texturing walls"},{"$f":"'2 REPAIR ESTIMATOR'!P646","v":0},{"$f":"T('2 REPAIR ESTIMATOR'!S646)","v":"sf"},{"$nulls":3},1,0,1]
[{"$nulls":7},{"$f":"T('2 REPAIR ESTIMATOR'!D647:O647)","v":"Skim coating/texturing ceilings"},{"$f":"'2 REPAIR ESTIMATOR'!P647","v":0},{"$f":"T('2 REPAIR ESTIMATOR'!S647)","v":"sf"},{"$nulls":3},1,0,1]
[{"$nulls":7},{"$f":"T('2 REPAIR ESTIMATOR'!D648:O648)","v":""},{"$f":"'2 REPAIR ESTIMATOR'!P648","v":0},{"$f":"T('2 REPAIR ESTIMATOR'!S648)","v":""},{"$nulls":3},1,0,1]
[{"$nulls":7},{"$f":"T('2 REPAIR ESTIMATOR'!D649:O649)","v":""},{"$f":"'2 REPAIR ESTIMATOR'!P649","v":0},{"$f":"T('2 REPAIR ESTIMATOR'!S649)","v":""},{"$nulls":3},1,0,1]
[{"$nulls":7},{"$f":"T('2 REPAIR ESTIMATOR'!D650:O650)","v":""},{"$f":"'2 REPAIR ESTIMATOR'!P650","v":0},{"$f":"T('2 REPAIR ESTIMATOR'!S650)","v":""},{"$nulls":3},1,0,1]
[{"$nulls":7},{"$f":"T('2 REPAIR ESTIMATOR'!D651:O651)","v":""},{"$f":"'2 REPAIR ESTIMATOR'!P651","v":0},{"$f":"T('2 REPAIR ESTIMATOR'!S651)","v":""},{"$nulls":3},1,0,1]
[{"$nulls":7},{"$f":"T('2 REPAIR ESTIMATOR'!D652:O652)","v":""},{"$f":"'2 REPAIR ESTIMATOR'!P652","v":0},{"$f":"T('2 REPAIR ESTIMATOR'!S652)","v":""},{"$nulls":3},1,0,1]
[{"$nulls":7},{"$f":"T('2 REPAIR ESTIMATOR'!D653:O653)","v":""},{"$f":"'2 REPAIR ESTIMATOR'!P653","v":0},{"$f":"T('2 REPAIR ESTIMATOR'!S653)","v":""},{"$nulls":3},1,0,1]
[{"$nulls":7},{"$f":"T('2 REPAIR ESTIMATOR'!D654:O654)","v":""},{"$f":"'2 REPAIR ESTIMATOR'!P654","v":0},{"$f":"T('2 REPAIR ESTIMATOR'!S654)","v":""},{"$nulls":3},1,0,1]
[{"$nulls":7},{"$f":"T('2 REPAIR ESTIMATOR'!D655:O655)","v":""},{"$f":"'2 REPAIR ESTIMATOR'!P655","v":0},{"$f":"T('2 REPAIR ESTIMATOR'!S655)","v":""},{"$nulls":3},1,0,1]
[{"$nulls":7},{"$f":"T('2 REPAIR ESTIMATOR'!D656:O656)","v":""},{"$f":"'2 REPAIR ESTIMATOR'!P656","v":0},{"$f":"T('2 REPAIR ESTIMATOR'!S656)","v":""},{"$nulls":3},1,0,1]
[{"$nulls":7},{"$f":"T('2 REPAIR ESTIMATOR'!D657:O657)","v":""},{"$f":"'2 REPAIR ESTIMATOR'!P657","v":0},{"$f":"T('2 REPAIR ESTIMATOR'!S657)","v":""},{"$nulls":3},1,0,1]
[{"$nulls":7},{"$f":"T('2 REPAIR ESTIMATOR'!D658:O658)","v":""},{"$f":"'2 REPAIR ESTIMATOR'!P658","v":0},{"$f":"T('2 REPAIR ESTIMATOR'!S658)","v":""},{"$nulls":3},1,0,1]
[{"$nulls":7},{"$f":"T('2 REPAIR ESTIMATOR'!D659:O659)","v":""},{"$f":"'2 REPAIR ESTIMATOR'!P659","v":0},{"$f":"T('2 REPAIR ESTIMATOR'!S659)","v":""},{"$nulls":3},1,0,1]
[{"$nulls":7},{"$f":"T('2 REPAIR ESTIMATOR'!D660:O660)","v":""},{"$f":"'2 REPAIR ESTIMATOR'!P660","v":0},{"$f":"T('2 REPAIR ESTIMATOR'!S660)","v":""},{"$nulls":3},1,0,1]
[{"$nulls":7},{"$f":"T('2 REPAIR ESTIMATOR'!D661:O661)","v":""},{"$f":"'2 REPAIR ESTIMATOR'!P661","v":0},{"$f":"T('2 REPAIR ESTIMATOR'!S661)","v":""},{"$nulls":3},1,0,1]
[{"$nulls":7},{"$f":"T('2 REPAIR ESTIMATOR'!D662:O662)","v":""},{"$f":"'2 REPAIR ESTIMATOR'!P662","v":0},{"$f":"T('2 REPAIR ESTIMATOR'!S662)","v":""},{"$nulls":3},1,0,1]
[{"$nulls":7},{"$f":"T('2 REPAIR ESTIMATOR'!D663:O663)","v":""},{"$f":"'2 REPAIR ESTIMATOR'!P663","v":0},{"$f":"T('2 REPAIR ESTIMATOR'!S663)","v":""},{"$nulls":3},1,0,1]
[{"$nulls":7},{"$f":"T('2 REPAIR ESTIMATOR'!D664:O664)","v":""},{"$f":"'2 REPAIR ESTIMATOR'!P664","v":0},{"$f":"T('2 REPAIR ESTIMATOR'!S664)","v":""},{"$nulls":3},1,0,1]
[{"$nulls":7},{"$f":"T('2 REPAIR ESTIMATOR'!D665:O665)","v":""},{"$f":"'2 REPAIR ESTIMATOR'!P665","v":0},{"$f":"T('2 REPAIR ESTIMATOR'!S665)","v":""},{"$nulls":3},1,0,1]
[{"$nulls":7},{"$f":"T('2 REPAIR ESTIMATOR'!D666:O666)","v":""},{"$f":"'2 REPAIR ESTIMATOR'!P666","v":0},{"$f":"T('2 REPAIR ESTIMATOR'!S666)","v":""},{"$nulls":3},1,0,1]
[{"$nulls":7},{"$f":"T('2 REPAIR ESTIMATOR'!D667:O667)","v":""},{"$f":"'2 REPAIR ESTIMATOR'!P667","v":0},{"$f":"T('2 REPAIR ESTIMATOR'!S667)","v":""},{"$nulls":3},1,0,1]
[{"$nulls":7},{"$f":"T('2 REPAIR ESTIMATOR'!D672:O672)","v":"CABINETS & COUNTERTOPS"},{"$f":"#REF!","v":{"$error":"#REF!"}},{"$nulls":4},{"$f":"SUM(N558:N597)","v":40},{"$f":"SUM(O558:O597)","v":0},{"$f":"SUM(P558:P597)","v":40}]
[{"$nulls":7},{"$f":"T('2 REPAIR ESTIMATOR'!D673:O673)","v":"Cabinet Installation bid/allowance"},{"$f":"'2 REPAIR ESTIMATOR'!P673","v":0},{"$f":"T('2 REPAIR ESTIMATOR'!S673)","v":"ls"},{"$nulls":3},{"$f":"IF(I558<>\"\",1,0)","v":1},{"$f":"IF(K558=\"x\",1,0)","v":0},{"$f":"IF(AND(N558>0,O558=0),1,0)","v":1}]
[{"$nulls":7},{"$f":"T('2 REPAIR ESTIMATOR'!D674:O674)","v":"Cabinet Material bid/allowance"},{"$f":"'2 REPAIR ESTIMATOR'!P674","v":0},{"$f":"T('2 REPAIR ESTIMATOR'!S674)","v":"ls"},{"$nulls":3},{"$f":"IF(I559<>\"\",1,0)","v":1},{"$f":"IF(K559=\"x\",1,0)","v":0},{"$f":"IF(AND(N559>0,O559=0),1,0)","v":1}]
[{"$nulls":7},{"$f":"T('2 REPAIR ESTIMATOR'!D675:O675)","v":"Countertop bid/allowance"},{"$f":"'2 REPAIR ESTIMATOR'!P675","v":0},{"$f":"T('2 REPAIR ESTIMATOR'!S675)","v":"ls"},{"$nulls":3},1,0,1]
[{"$nulls":7},{"$f":"T('2 REPAIR ESTIMATOR'!D676:O676)","v":"Kitchen"},{"$f":"'2 REPAIR ESTIMATOR'!P676","v":0},{"$f":"T('2 REPAIR ESTIMATOR'!S676)","v":""},{"$nulls":3},1,0,1]
[{"$nulls":7},{"$f":"T('2 REPAIR ESTIMATOR'!D677:O677)","v":"Kitchen Base Cabinetry"},{"$f":"'2 REPAIR ESTIMATOR'!P677","v":15},{"$f":"T('2 REPAIR ESTIMATOR'!S677)","v":"lf"},{"$nulls":3},1,0,1]
[{"$nulls":7},{"$f":"T('2 REPAIR ESTIMATOR'!D678:O678)","v":"Kitchen Upper Cabinetry"},{"$f":"'2 REPAIR ESTIMATOR'!P678","v":15},{"$f":"T('2 REPAIR ESTIMATOR'!S678)","v":"lf"},{"$nulls":3},1,0,1]
[{"$nulls":7},{"$f":"T('2 REPAIR ESTIMATOR'!D679:O679)","v":"Kitchen Pantry Cabinet"},{"$f":"'2 REPAIR ESTIMATOR'!P679","v":1},{"$f":"T('2 REPAIR ESTIMATOR'!S679)","v":"ea"},{"$nulls":3},1,0,1]
[{"$nulls":7},{"$f":"T('2 REPAIR ESTIMATOR'!D680:O680)","v":"Plastic laminate countertop"},{"$f":"'2 REPAIR ESTIMATOR'!P680","v":0},{"$f":"T('2 REPAIR ESTIMATOR'!S680)","v":"sf"},{"$nulls":3},1,0,1]
[{"$nulls":7},{"$f":"T('2 REPAIR ESTIMATOR'!D681:O681)","v":"Replace cabinet doors, only"},{"$f":"'2 REPAIR ESTIMATOR'!P681","v":0},{"$f":"T('2 REPAIR ESTIMATOR'!S681)","v":"ea"},{"$nulls":3},1,0,1]
[{"$nulls":7},{"$f":"T('2 REPAIR ESTIMATOR'!D682:O682)","v":"Replace cabinet drawer fronts, only"},{"$f":"'2 REPAIR ESTIMATOR'!P682","v":0},{"$f":"T('2 REPAIR ESTIMATOR'!S682)","v":"ea"},{"$nulls":3},1,0,1]
[{"$nulls":7},{"$f":"T('2 REPAIR ESTIMATOR'!D683:O683)","v":"New cabinet door pulls"},{"$f":"'2 REPAIR ESTIMATOR'!P683","v":0},{"$f":"T('2 REPAIR ESTIMATOR'!S683)","v":"ea"},{"$nulls":3},1,0,1]
[{"$nulls":7},{"$f":"T('2 REPAIR ESTIMATOR'!D684:O684)","v":"Stone/solid surface countertop, kitchen"},{"$f":"'2 REPAIR ESTIMATOR'!P684","v":30},{"$f":"T('2 REPAIR ESTIMATOR'!S684)","v":"sf"},{"$nulls":3},1,0,1]
[{"$nulls":7},{"$f":"T('2 REPAIR ESTIMATOR'!D685:O685)","v":"Kitchen sink bowl, stainless steel, undermount"},{"$f":"'2 REPAIR ESTIMATOR'!P685","v":1},{"$f":"T('2 REPAIR ESTIMATOR'!S685)","v":"ea"},{"$nulls":3},1,0,1]
[{"$nulls":7},{"$f":"T('2 REPAIR ESTIMATOR'!D686:O686)","v":"Kitchen sink bowl, composite, undermount"},{"$f":"'2 REPAIR ESTIMATOR'!P686","v":0},{"$f":"T('2 REPAIR ESTIMATOR'!S686)","v":"ea"},{"$nulls":3},1,0,1]
[{"$nulls":7},{"$f":"T('2 REPAIR ESTIMATOR'!D687:O687)","v":"Bathrooms"},{"$f":"'2 REPAIR ESTIMATOR'!P687","v":0},{"$f":"T('2 REPAIR ESTIMATOR'!S687)","v":""},{"$nulls":3},1,0,1]
[{"$nulls":7},{"$f":"T('2 REPAIR ESTIMATOR'!D688:O688)","v":"Vanity cabinet"},{"$f":"'2 REPAIR ESTIMATOR'!P688","v":2},{"$f":"T('2 REPAIR ESTIMATOR'!S688)","v":"ea"},{"$nulls":3},1,0,1]
[{"$nulls":7},{"$f":"T('2 REPAIR ESTIMATOR'!D689:O689)","v":"New cabinet door pulls"},{"$f":"'2 REPAIR ESTIMATOR'!P689","v":0},{"$f":"T('2 REPAIR ESTIMATOR'!S689)","v":"ea"},{"$nulls":3},1,0,1]
[{"$nulls":7},{"$f":"T('2 REPAIR ESTIMATOR'!D690:O690)","v":"Vanity countertop, stone/solid surface"},{"$f":"'2 REPAIR ESTIMATOR'!P690","v":0},{"$f":"T('2 REPAIR ESTIMATOR'!S690)","v":"sf"},{"$nulls":3},1,0,1]
[{"$nulls":7},{"$f":"T('2 REPAIR ESTIMATOR'!D691:O691)","v":""},{"$f":"'2 REPAIR ESTIMATOR'!P691","v":0},{"$f":"T('2 REPAIR ESTIMATOR'!S691)","v":""},{"$nulls":3},1,0,1]
[{"$nulls":7},{"$f":"T('2 REPAIR ESTIMATOR'!D692:O692)","v":""},{"$f":"'2 REPAIR ESTIMATOR'!P692","v":0},{"$f":"T('2 REPAIR ESTIMATOR'!S692)","v":""},{"$nulls":3},1,0,1]
[{"$nulls":7},{"$f":"T('2 REPAIR ESTIMATOR'!D693:O693)","v":""},{"$f":"'2 REPAIR ESTIMATOR'!P693","v":0},{"$f":"T('2 REPAIR ESTIMATOR'!S693)","v":""},{"$nulls":3},1,0,1]
[{"$nulls":7},{"$f":"T('2 REPAIR ESTIMATOR'!D694:O694)","v":""},{"$f":"'2 REPAIR ESTIMATOR'!P694","v":0},{"$f":"T('2 REPAIR ESTIMATOR'!S694)","v":""},{"$nulls":3},1,0,1]
[{"$nulls":7},{"$f":"T('2 REPAIR ESTIMATOR'!D695:O695)","v":""},{"$f":"'2 REPAIR ESTIMATOR'!P695","v":0},{"$f":"T('2 REPAIR ESTIMATOR'!S695)","v":""},{"$nulls":3},1,0,1]
[{"$nulls":7},{"$f":"T('2 REPAIR ESTIMATOR'!D696:O696)","v":""},{"$f":"'2 REPAIR ESTIMATOR'!P696","v":0},{"$f":"T('2 REPAIR ESTIMATOR'!S696)","v":""},{"$nulls":3},1,0,1]
[{"$nulls":7},{"$f":"T('2 REPAIR ESTIMATOR'!D697:O697)","v":""},{"$f":"'2 REPAIR ESTIMATOR'!P697","v":0},{"$f":"T('2 REPAIR ESTIMATOR'!S697)","v":""},{"$nulls":3},1,0,1]
[{"$nulls":7},{"$f":"T('2 REPAIR ESTIMATOR'!D698:O698)","v":""},{"$f":"'2 REPAIR ESTIMATOR'!P698","v":0},{"$f":"T('2 REPAIR ESTIMATOR'!S698)","v":""},{"$nulls":3},1,0,1]
[{"$nulls":7},{"$f":"T('2 REPAIR ESTIMATOR'!D699:O699)","v":""},{"$f":"'2 REPAIR ESTIMATOR'!P699","v":0},{"$f":"T('2 REPAIR ESTIMATOR'!S699)","v":""},{"$nulls":3},1,0,1]
[{"$nulls":7},{"$f":"T('2 REPAIR ESTIMATOR'!D700:O700)","v":""},{"$f":"'2 REPAIR ESTIMATOR'!P700","v":0},{"$f":"T('2 REPAIR ESTIMATOR'!S700)","v":""},{"$nulls":3},1,0,1]
[{"$nulls":7},{"$f":"T('2 REPAIR ESTIMATOR'!D701:O701)","v":""},{"$f":"'2 REPAIR ESTIMATOR'!P701","v":0},{"$f":"T('2 REPAIR ESTIMATOR'!S701)","v":""},{"$nulls":3},1,0,1]
[{"$nulls":7},{"$f":"T('2 REPAIR ESTIMATOR'!D702:O702)","v":""},{"$f":"'2 REPAIR ESTIMATOR'!P702","v":0},{"$f":"T('2 REPAIR ESTIMATOR'!S702)","v":""},{"$nulls":3},1,0,1]
[{"$nulls":7},{"$f":"T('2 REPAIR ESTIMATOR'!D703:O703)","v":""},{"$f":"'2 REPAIR ESTIMATOR'!P703","v":0},{"$f":"T('2 REPAIR ESTIMATOR'!S703)","v":""},{"$nulls":3},1,0,1]
[{"$nulls":7},{"$f":"T('2 REPAIR ESTIMATOR'!D704:O704)","v":""},{"$f":"'2 REPAIR ESTIMATOR'!P704","v":0},{"$f":"T('2 REPAIR ESTIMATOR'!S704)","v":""},{"$nulls":3},1,0,1]
[{"$nulls":7},{"$f":"T('2 REPAIR ESTIMATOR'!D705:O705)","v":""},{"$f":"'2 REPAIR ESTIMATOR'!P705","v":0},{"$f":"T('2 REPAIR ESTIMATOR'!S705)","v":""},{"$nulls":3},1,0,1]
[{"$nulls":7},{"$f":"T('2 REPAIR ESTIMATOR'!D706:O706)","v":""},{"$f":"'2 REPAIR ESTIMATOR'!P706","v":0},{"$f":"T('2 REPAIR ESTIMATOR'!S706)","v":""},{"$nulls":3},1,0,1]
[{"$nulls":7},{"$f":"T('2 REPAIR ESTIMATOR'!D707:O707)","v":""},{"$f":"'2 REPAIR ESTIMATOR'!P707","v":0},{"$f":"T('2 REPAIR ESTIMATOR'!S707)","v":""},{"$nulls":3},1,0,1]
[{"$nulls":7},{"$f":"T('2 REPAIR ESTIMATOR'!D708:O708)","v":""},{"$f":"'2 REPAIR ESTIMATOR'!P708","v":0},{"$f":"T('2 REPAIR ESTIMATOR'!S708)","v":""},{"$nulls":3},1,0,1]
[{"$nulls":7},{"$f":"T('2 REPAIR ESTIMATOR'!D709:O709)","v":""},{"$f":"'2 REPAIR ESTIMATOR'!P709","v":0},{"$f":"T('2 REPAIR ESTIMATOR'!S709)","v":""},{"$nulls":3},1,0,1]
[{"$nulls":7},{"$f":"T('2 REPAIR ESTIMATOR'!D710:O710)","v":""},{"$f":"'2 REPAIR ESTIMATOR'!P710","v":0},{"$f":"T('2 REPAIR ESTIMATOR'!S710)","v":""},{"$nulls":3},1,0,1]
[{"$nulls":7},{"$f":"T('2 REPAIR ESTIMATOR'!D711:O711)","v":""},{"$f":"'2 REPAIR ESTIMATOR'!P711","v":0},{"$f":"T('2 REPAIR ESTIMATOR'!S711)","v":""},{"$nulls":3},1,0,1]
[{"$nulls":7},{"$f":"T('2 REPAIR ESTIMATOR'!D712:O712)","v":""},{"$f":"'2 REPAIR ESTIMATOR'!P712","v":0},{"$f":"T('2 REPAIR ESTIMATOR'!S712)","v":""},{"$nulls":3},1,0,1]
[{"$nulls":7},{"$f":"T('2 REPAIR ESTIMATOR'!D717:O717)","v":"DOORS & TRIM"},{"$f":"#REF!","v":{"$error":"#REF!"}},{"$f":"#REF!","v":{"$error":"#REF!"}},{"$nulls":3},{"$f":"SUM(N599:N638)","v":40},{"$f":"SUM(O599:O638)","v":0},{"$f":"SUM(P599:P638)","v":40}]
[{"$nulls":7},{"$f":"T('2 REPAIR ESTIMATOR'!D718:O718)","v":"Finish carpentry bid/allowance"},{"$f":"'2 REPAIR ESTIMATOR'!P718","v":0},{"$f":"T('2 REPAIR ESTIMATOR'!S718)","v":"ls"},{"$nulls":3},{"$f":"IF(I599<>\"\",1,0)","v":1},{"$f":"IF(K599=\"x\",1,0)","v":0},{"$f":"IF(AND(N599>0,O599=0),1,0)","v":1}]
[{"$nulls":7},{"$f":"T('2 REPAIR ESTIMATOR'!D719:O719)","v":"Interior door, prehung, hollow-core door"},{"$f":"'2 REPAIR ESTIMATOR'!P719","v":15},{"$f":"T('2 REPAIR ESTIMATOR'!S719)","v":"ea"},{"$nulls":3},{"$f":"IF(I600<>\"\",1,0)","v":1},{"$f":"IF(K600=\"x\",1,0)","v":0},{"$f":"IF(AND(N600>0,O600=0),1,0)","v":1}]
[{"$nulls":7},{"$f":"T('2 REPAIR ESTIMATOR'!D720:O720)","v":"Interior mirrored, sliding, closet doors"},{"$f":"'2 REPAIR ESTIMATOR'!P720","v":0},{"$f":"T('2 REPAIR ESTIMATOR'!S720)","v":"ea"},{"$nulls":3},1,0,1]
[{"$nulls":7},{"$f":"T('2 REPAIR ESTIMATOR'!D721:O721)","v":"Interior bi-fold, closet doors"},{"$f":"'2 REPAIR ESTIMATOR'!P721","v":0},{"$f":"T('2 REPAIR ESTIMATOR'!S721)","v":"ea"},{"$nulls":3},1,0,1]
[{"$nulls":7},{"$f":"T('2 REPAIR ESTIMATOR'!D722:O722)","v":"Door hardware, knobs only"},{"$f":"'2 REPAIR ESTIMATOR'!P722","v":0},{"$f":"T('2 REPAIR ESTIMATOR'!S722)","v":"ea"},{"$nulls":3},1,0,1]
[{"$nulls":7},{"$f":"T('2 REPAIR ESTIMATOR'!D723:O723)","v":"Door casings"},{"$f":"'2 REPAIR ESTIMATOR'!P723","v":0},{"$f":"T('2 REPAIR ESTIMATOR'!S723)","v":"ea"},{"$nulls":3},1,0,1]
[{"$nulls":7},{"$f":"T('2 REPAIR ESTIMATOR'!D724:O724)","v":"Window casings"},{"$f":"'2 REPAIR ESTIMATOR'!P724","v":0},{"$f":"T('2 REPAIR ESTIMATOR'!S724)","v":"ea"},{"$nulls":3},1,0,1]
[{"$nulls":7},{"$f":"T('2 REPAIR ESTIMATOR'!D725:O725)","v":"Window sills"},{"$f":"'2 REPAIR ESTIMATOR'!P725","v":0},{"$f":"T('2 REPAIR ESTIMATOR'!S725)","v":"lf"},{"$nulls":3},1,0,1]
[{"$nulls":7},{"$f":"T('2 REPAIR ESTIMATOR'!D726:O726)","v":"Wood  base"},{"$f":"'2 REPAIR ESTIMATOR'!P726","v":0},{"$f":"T('2 REPAIR ESTIMATOR'!S726)","v":"lf"},{"$nulls":3},1,0,1]
[{"$nulls":7},{"$f":"T('2 REPAIR ESTIMATOR'!D727:O727)","v":"Crown molding"},{"$f":"'2 REPAIR ESTIMATOR'!P727","v":0},{"$f":"T('2 REPAIR ESTIMATOR'!S727)","v":"lf"},{"$nulls":3},1,0,1]
[{"$nulls":7},{"$f":"T('2 REPAIR ESTIMATOR'!D728:O728)","v":"Raised panel wood wainscoting"},{"$f":"'2 REPAIR ESTIMATOR'!P728","v":0},{"$f":"T('2 REPAIR ESTIMATOR'!S728)","v":"lf"},{"$nulls":3},1,0,1]
[{"$nulls":7},{"$f":"T('2 REPAIR ESTIMATOR'!D729:O729)","v":"Bead board wainscoting"},{"$f":"'2 REPAIR ESTIMATOR'!P729","v":0},{"$f":"T('2 REPAIR ESTIMATOR'!S729)","v":"lf"},{"$nulls":3},1,0,1]
[{"$nulls":7},{"$f":"T('2 REPAIR ESTIMATOR'!D730:O730)","v":"Fireplace mantel"},{"$f":"'2 REPAIR ESTIMATOR'!P730","v":0},{"$f":"T('2 REPAIR ESTIMATOR'!S730)","v":"ea"},{"$nulls":3},1,0,1]
[{"$nulls":7},{"$f":"T('2 REPAIR ESTIMATOR'!D731:O731)","v":"Wood columns"},{"$f":"'2 REPAIR ESTIMATOR'!P731","v":0},{"$f":"T('2 REPAIR ESTIMATOR'!S731)","v":"ea"},{"$nulls":3},1,0,1]
[{"$nulls":7},{"$f":"T('2 REPAIR ESTIMATOR'!D732:O732)","v":"Closet shelf and rod"},{"$f":"'2 REPAIR ESTIMATOR'!P732","v":0},{"$f":"T('2 REPAIR ESTIMATOR'!S732)","v":"lf"},{"$nulls":3},1,0,1]
[{"$nulls":7},{"$f":"T('2 REPAIR ESTIMATOR'!D733:O733)","v":"Closet kit, 8ft long"},{"$f":"'2 REPAIR ESTIMATOR'!P733","v":0},{"$f":"T('2 REPAIR ESTIMATOR'!S733)","v":"lf"},{"$nulls":3},1,0,1]
[{"$nulls":7},{"$f":"T('2 REPAIR ESTIMATOR'!D734:O734)","v":"Wood handrail - rail only"},{"$f":"'2 REPAIR ESTIMATOR'!P734","v":0},{"$f":"T('2 REPAIR ESTIMATOR'!S734)","v":"lf"},{"$nulls":3},1,0,1]
[{"$nulls":7},{"$f":"T('2 REPAIR ESTIMATOR'!D735:O735)","v":"Wood balusters"},{"$f":"'2 REPAIR ESTIMATOR'!P735","v":0},{"$f":"T('2 REPAIR ESTIMATOR'!S735)","v":"lf"},{"$nulls":3},1,0,1]
[{"$nulls":7},{"$f":"T('2 REPAIR ESTIMATOR'!D736:O736)","v":"Iron balusters"},{"$f":"'2 REPAIR ESTIMATOR'!P736","v":0},{"$f":"T('2 REPAIR ESTIMATOR'!S736)","v":"lf"},{"$nulls":3},1,0,1]
[{"$nulls":7},{"$f":"T('2 REPAIR ESTIMATOR'!D737:O737)","v":""},{"$f":"'2 REPAIR ESTIMATOR'!P737","v":0},{"$f":"T('2 REPAIR ESTIMATOR'!S737)","v":""},{"$nulls":3},1,0,1]
[{"$nulls":7},{"$f":"T('2 REPAIR ESTIMATOR'!D738:O738)","v":""},{"$f":"'2 REPAIR ESTIMATOR'!P738","v":0},{"$f":"T('2 REPAIR ESTIMATOR'!S738)","v":""},{"$nulls":3},1,0,1]
[{"$nulls":7},{"$f":"T('2 REPAIR ESTIMATOR'!D739:O739)","v":""},{"$f":"'2 REPAIR ESTIMATOR'!P739","v":0},{"$f":"T('2 REPAIR ESTIMATOR'!S739)","v":""},{"$nulls":3},1,0,1]
[{"$nulls":7},{"$f":"T('2 REPAIR ESTIMATOR'!D740:O740)","v":""},{"$f":"'2 REPAIR ESTIMATOR'!P740","v":0},{"$f":"T('2 REPAIR ESTIMATOR'!S740)","v":""},{"$nulls":3},1,0,1]
[{"$nulls":7},{"$f":"T('2 REPAIR ESTIMATOR'!D741:O741)","v":""},{"$f":"'2 REPAIR ESTIMATOR'!P741","v":0},{"$f":"T('2 REPAIR ESTIMATOR'!S741)","v":""},{"$nulls":3},1,0,1]
[{"$nulls":7},{"$f":"T('2 REPAIR ESTIMATOR'!D742:O742)","v":""},{"$f":"'2 REPAIR ESTIMATOR'!P742","v":0},{"$f":"T('2 REPAIR ESTIMATOR'!S742)","v":""},{"$nulls":3},1,0,1]
[{"$nulls":7},{"$f":"T('2 REPAIR ESTIMATOR'!D743:O743)","v":""},{"$f":"'2 REPAIR ESTIMATOR'!P743","v":0},{"$f":"T('2 REPAIR ESTIMATOR'!S743)","v":""},{"$nulls":3},1,0,1]
[{"$nulls":7},{"$f":"T('2 REPAIR ESTIMATOR'!D744:O744)","v":""},{"$f":"'2 REPAIR ESTIMATOR'!P744","v":0},{"$f":"T('2 REPAIR ESTIMATOR'!S744)","v":""},{"$nulls":3},1,0,1]
[{"$nulls":7},{"$f":"T('2 REPAIR ESTIMATOR'!D745:O745)","v":""},{"$f":"'2 REPAIR ESTIMATOR'!P745","v":0},{"$f":"T('2 REPAIR ESTIMATOR'!S745)","v":""},{"$nulls":3},1,0,1]
[{"$nulls":7},{"$f":"T('2 REPAIR ESTIMATOR'!D746:O746)","v":""},{"$f":"'2 REPAIR ESTIMATOR'!P746","v":0},{"$f":"T('2 REPAIR ESTIMATOR'!S746)","v":""},{"$nulls":3},1,0,1]
[{"$nulls":7},{"$f":"T('2 REPAIR ESTIMATOR'!D747:O747)","v":""},{"$f":"'2 REPAIR ESTIMATOR'!P747","v":0},{"$f":"T('2 REPAIR ESTIMATOR'!S747)","v":""},{"$nulls":3},1,0,1]
[{"$nulls":7},{"$f":"T('2 REPAIR ESTIMATOR'!D748:O748)","v":""},{"$f":"'2 REPAIR ESTIMATOR'!P748","v":0},{"$f":"T('2 REPAIR ESTIMATOR'!S748)","v":""},{"$nulls":3},1,0,1]
[{"$nulls":7},{"$f":"T('2 REPAIR ESTIMATOR'!D749:O749)","v":""},{"$f":"'2 REPAIR ESTIMATOR'!P749","v":0},{"$f":"T('2 REPAIR ESTIMATOR'!S749)","v":""},{"$nulls":3},1,0,1]
[{"$nulls":7},{"$f":"T('2 REPAIR ESTIMATOR'!D750:O750)","v":""},{"$f":"'2 REPAIR ESTIMATOR'!P750","v":0},{"$f":"T('2 REPAIR ESTIMATOR'!S750)","v":""},{"$nulls":3},1,0,1]
[{"$nulls":7},{"$f":"T('2 REPAIR ESTIMATOR'!D751:O751)","v":""},{"$f":"'2 REPAIR ESTIMATOR'!P751","v":0},{"$f":"T('2 REPAIR ESTIMATOR'!S751)","v":""},{"$nulls":3},1,0,1]
[{"$nulls":7},{"$f":"T('2 REPAIR ESTIMATOR'!D752:O752)","v":""},{"$f":"'2 REPAIR ESTIMATOR'!P752","v":0},{"$f":"T('2 REPAIR ESTIMATOR'!S752)","v":""},{"$nulls":3},1,0,1]
[{"$nulls":7},{"$f":"T('2 REPAIR ESTIMATOR'!D753:O753)","v":""},{"$f":"'2 REPAIR ESTIMATOR'!P753","v":0},{"$f":"T('2 REPAIR ESTIMATOR'!S753)","v":""},{"$nulls":3},1,0,1]
[{"$nulls":7},{"$f":"T('2 REPAIR ESTIMATOR'!D754:O754)","v":""},{"$f":"'2 REPAIR ESTIMATOR'!P754","v":0},{"$f":"T('2 REPAIR ESTIMATOR'!S754)","v":""},{"$nulls":3},1,0,1]
[{"$nulls":7},{"$f":"T('2 REPAIR ESTIMATOR'!D755:O755)","v":""},{"$f":"'2 REPAIR ESTIMATOR'!P755","v":0},{"$f":"T('2 REPAIR ESTIMATOR'!S755)","v":""},{"$nulls":3},1,0,1]
[{"$nulls":7},{"$f":"T('2 REPAIR ESTIMATOR'!D756:O756)","v":""},{"$f":"'2 REPAIR ESTIMATOR'!P756","v":0},{"$f":"T('2 REPAIR ESTIMATOR'!S756)","v":""},{"$nulls":3},1,0,1]
[{"$nulls":7},{"$f":"T('2 REPAIR ESTIMATOR'!D757:O757)","v":""},{"$f":"'2 REPAIR ESTIMATOR'!P757","v":0},{"$f":"T('2 REPAIR ESTIMATOR'!S757)","v":""},{"$nulls":3},1,0,1]
[{"$nulls":7},{"$f":"T('2 REPAIR ESTIMATOR'!D762:O762)","v":"CARPET & RESILIENT"},{"$f":"#REF!","v":{"$error":"#REF!"}},{"$f":"#REF!","v":{"$error":"#REF!"}},{"$nulls":3},{"$f":"SUM(N640:N679)","v":40},{"$f":"SUM(O640:O679)","v":0},{"$f":"SUM(P640:P679)","v":40}]
[{"$nulls":7},{"$f":"T('2 REPAIR ESTIMATOR'!D763:O763)","v":"Carpeting & Resilient bid/allowance"},{"$f":"'2 REPAIR ESTIMATOR'!P763","v":0},{"$f":"T('2 REPAIR ESTIMATOR'!S763)","v":"ls"},{"$nulls":3},{"$f":"IF(I640<>\"\",1,0)","v":1},{"$f":"IF(K640=\"x\",1,0)","v":0},{"$f":"IF(AND(N640>0,O640=0),1,0)","v":1}]
[{"$nulls":7},{"$f":"T('2 REPAIR ESTIMATOR'!D764:O764)","v":"Carpeting"},{"$f":"'2 REPAIR ESTIMATOR'!P764","v":0},{"$f":"T('2 REPAIR ESTIMATOR'!S764)","v":""},{"$nulls":3},{"$f":"IF(I641<>\"\",1,0)","v":1},{"$f":"IF(K641=\"x\",1,0)","v":0},{"$f":"IF(AND(N641>0,O641=0),1,0)","v":1}]
[{"$nulls":7},{"$f":"T('2 REPAIR ESTIMATOR'!D765:O765)","v":"Carpet, economy grade"},{"$f":"'2 REPAIR ESTIMATOR'!P765","v":{"v":1200,"d":"1,200"}},{"$f":"T('2 REPAIR ESTIMATOR'!S765)","v":"sf"},{"$nulls":3},1,0,1]
[{"$nulls":7},{"$f":"T('2 REPAIR ESTIMATOR'!D766:O766)","v":"Carpet average grade"},{"$f":"'2 REPAIR ESTIMATOR'!P766","v":0},{"$f":"T('2 REPAIR ESTIMATOR'!S766)","v":"sf"},{"$nulls":3},1,0,1]
[{"$nulls":7},{"$f":"T('2 REPAIR ESTIMATOR'!D767:O767)","v":"Carpet, premium grade"},{"$f":"'2 REPAIR ESTIMATOR'!P767","v":0},{"$f":"T('2 REPAIR ESTIMATOR'!S767)","v":"sf"},{"$nulls":3},1,0,1]
[{"$nulls":7},{"$f":"T('2 REPAIR ESTIMATOR'!D768:O768)","v":""},{"$f":"'2 REPAIR ESTIMATOR'!P768","v":0},{"$f":"T('2 REPAIR ESTIMATOR'!S768)","v":""},{"$nulls":3},1,0,1]
[{"$nulls":7},{"$f":"T('2 REPAIR ESTIMATOR'!D769:O769)","v":""},{"$f":"'2 REPAIR ESTIMATOR'!P769","v":0},{"$f":"T('2 REPAIR ESTIMATOR'!S769)","v":""},{"$nulls":3},1,0,1]
[{"$nulls":7},{"$f":"T('2 REPAIR ESTIMATOR'!D770:O770)","v":"Sheet Vinyl"},{"$f":"'2 REPAIR ESTIMATOR'!P770","v":0},{"$f":"T('2 REPAIR ESTIMATOR'!S770)","v":""},{"$nulls":3},1,0,1]
[{"$nulls":7},{"$f":"T('2 REPAIR ESTIMATOR'!D771:O771)","v":"Sheet vinyl, economy grade"},{"$f":"'2 REPAIR ESTIMATOR'!P771","v":0},{"$f":"T('2 REPAIR ESTIMATOR'!S771)","v":"sf"},{"$nulls":3},1,0,1]
[{"$nulls":7},{"$f":"T('2 REPAIR ESTIMATOR'!D772:O772)","v":"Sheet vinyl, average grade"},{"$f":"'2 REPAIR ESTIMATOR'!P772","v":0},{"$f":"T('2 REPAIR ESTIMATOR'!S772)","v":"sf"},{"$nulls":3},1,0,1]
[{"$nulls":7},{"$f":"T('2 REPAIR ESTIMATOR'!D773:O773)","v":"Sheet vinyl, premium grade"},{"$f":"'2 REPAIR ESTIMATOR'!P773","v":0},{"$f":"T('2 REPAIR ESTIMATOR'!S773)","v":"sf"},{"$nulls":3},1,0,1]
[{"$nulls":7},{"$f":"T('2 REPAIR ESTIMATOR'!D774:O774)","v":"Clean and wax vinyl"},{"$f":"'2 REPAIR ESTIMATOR'!P774","v":0},{"$f":"T('2 REPAIR ESTIMATOR'!S774)","v":"sf"},{"$nulls":3},1,0,1]
[{"$nulls":7},{"$f":"T('2 REPAIR ESTIMATOR'!D775:O775)","v":""},{"$f":"'2 REPAIR ESTIMATOR'!P775","v":0},{"$f":"T('2 REPAIR ESTIMATOR'!S775)","v":""},{"$nulls":3},1,0,1]
[{"$nulls":7},{"$f":"T('2 REPAIR ESTIMATOR'!D776:O776)","v":"Vinyl Tile"},{"$f":"'2 REPAIR ESTIMATOR'!P776","v":0},{"$f":"T('2 REPAIR ESTIMATOR'!S776)","v":""},{"$nulls":3},1,0,1]
[{"$nulls":7},{"$f":"T('2 REPAIR ESTIMATOR'!D777:O777)","v":"Vinyl tile, economy grade"},{"$f":"'2 REPAIR ESTIMATOR'!P777","v":0},{"$f":"T('2 REPAIR ESTIMATOR'!S777)","v":"sf"},{"$nulls":3},1,0,1]
[{"$nulls":7},{"$f":"T('2 REPAIR ESTIMATOR'!D778:O778)","v":"Vinyl tile, average grade"},{"$f":"'2 REPAIR ESTIMATOR'!P778","v":0},{"$f":"T('2 REPAIR ESTIMATOR'!S778)","v":"sf"},{"$nulls":3},1,0,1]
[{"$nulls":7},{"$f":"T('2 REPAIR ESTIMATOR'!D779:O779)","v":"Vinyl tile, premium grade"},{"$f":"'2 REPAIR ESTIMATOR'!P779","v":0},{"$f":"T('2 REPAIR ESTIMATOR'!S779)","v":"sf"},{"$nulls":3},1,0,1]
[{"$nulls":7},{"$f":"T('2 REPAIR ESTIMATOR'!D780:O780)","v":"Clean and wax vinyl"},{"$f":"'2 REPAIR ESTIMATOR'!P780","v":0},{"$f":"T('2 REPAIR ESTIMATOR'!S780)","v":"sf"},{"$nulls":3},1,0,1]
[{"$nulls":7},{"$f":"T('2 REPAIR ESTIMATOR'!D781:O781)","v":""},{"$f":"'2 REPAIR ESTIMATOR'!P781","v":0},{"$f":"T('2 REPAIR ESTIMATOR'!S781)","v":""},{"$nulls":3},1,0,1]
[{"$nulls":7},{"$f":"T('2 REPAIR ESTIMATOR'!D782:O782)","v":""},{"$f":"'2 REPAIR ESTIMATOR'!P782","v":0},{"$f":"T('2 REPAIR ESTIMATOR'!S782)","v":""},{"$nulls":3},1,0,1]
[{"$nulls":7},{"$f":"T('2 REPAIR ESTIMATOR'!D783:O783)","v":""},{"$f":"'2 REPAIR ESTIMATOR'!P783","v":0},{"$f":"T('2 REPAIR ESTIMATOR'!S783)","v":""},{"$nulls":3},1,0,1]
[{"$nulls":7},{"$f":"T('2 REPAIR ESTIMATOR'!D784:O784)","v":""},{"$f":"'2 REPAIR ESTIMATOR'!P784","v":0},{"$f":"T('2 REPAIR ESTIMATOR'!S784)","v":""},{"$nulls":3},1,0,1]
[{"$nulls":7},{"$f":"T('2 REPAIR ESTIMATOR'!D785:O785)","v":""},{"$f":"'2 REPAIR ESTIMATOR'!P785","v":0},{"$f":"T('2 REPAIR ESTIMATOR'!S785)","v":""},{"$nulls":3},1,0,1]
[{"$nulls":7},{"$f":"T('2 REPAIR ESTIMATOR'!D786:O786)","v":""},{"$f":"'2 REPAIR ESTIMATOR'!P786","v":0},{"$f":"T('2 REPAIR ESTIMATOR'!S786)","v":""},{"$nulls":3},1,0,1]
[{"$nulls":7},{"$f":"T('2 REPAIR ESTIMATOR'!D787:O787)","v":""},{"$f":"'2 REPAIR ESTIMATOR'!P787","v":0},{"$f":"T('2 REPAIR ESTIMATOR'!S787)","v":""},{"$nulls":3},1,0,1]
[{"$nulls":7},{"$f":"T('2 REPAIR ESTIMATOR'!D788:O788)","v":""},{"$f":"'2 REPAIR ESTIMATOR'!P788","v":0},{"$f":"T('2 REPAIR ESTIMATOR'!S788)","v":""},{"$nulls":3},1,0,1]
[{"$nulls":7},{"$f":"T('2 REPAIR ESTIMATOR'!D789:O789)","v":""},{"$f":"'2 REPAIR ESTIMATOR'!P789","v":0},{"$f":"T('2 REPAIR ESTIMATOR'!S789)","v":""},{"$nulls":3},1,0,1]
[{"$nulls":7},{"$f":"T('2 REPAIR ESTIMATOR'!D790:O790)","v":""},{"$f":"'2 REPAIR ESTIMATOR'!P790","v":0},{"$f":"T('2 REPAIR ESTIMATOR'!S790)","v":""},{"$nulls":3},1,0,1]
[{"$nulls":7},{"$f":"T('2 REPAIR ESTIMATOR'!D791:O791)","v":""},{"$f":"'2 REPAIR ESTIMATOR'!P791","v":0},{"$f":"T('2 REPAIR ESTIMATOR'!S791)","v":""},{"$nulls":3},1,0,1]
[{"$nulls":7},{"$f":"T('2 REPAIR ESTIMATOR'!D792:O792)","v":""},{"$f":"'2 REPAIR ESTIMATOR'!P792","v":0},{"$f":"T('2 REPAIR ESTIMATOR'!S792)","v":""},{"$nulls":3},1,0,1]
[{"$nulls":7},{"$f":"T('2 REPAIR ESTIMATOR'!D793:O793)","v":""},{"$f":"'2 REPAIR ESTIMATOR'!P793","v":0},{"$f":"T('2 REPAIR ESTIMATOR'!S793)","v":""},{"$nulls":3},1,0,1]
[{"$nulls":7},{"$f":"T('2 REPAIR ESTIMATOR'!D794:O794)","v":""},{"$f":"'2 REPAIR ESTIMATOR'!P794","v":0},{"$f":"T('2 REPAIR ESTIMATOR'!S794)","v":""},{"$nulls":3},1,0,1]
[{"$nulls":7},{"$f":"T('2 REPAIR ESTIMATOR'!D795:O795)","v":""},{"$f":"'2 REPAIR ESTIMATOR'!P795","v":0},{"$f":"T('2 REPAIR ESTIMATOR'!S795)","v":""},{"$nulls":3},1,0,1]
[{"$nulls":7},{"$f":"T('2 REPAIR ESTIMATOR'!D796:O796)","v":""},{"$f":"'2 REPAIR ESTIMATOR'!P796","v":0},{"$f":"T('2 REPAIR ESTIMATOR'!S796)","v":""},{"$nulls":3},1,0,1]
[{"$nulls":7},{"$f":"T('2 REPAIR ESTIMATOR'!D797:O797)","v":""},{"$f":"'2 REPAIR ESTIMATOR'!P797","v":0},{"$f":"T('2 REPAIR ESTIMATOR'!S797)","v":""},{"$nulls":3},1,0,1]
[{"$nulls":7},{"$f":"T('2 REPAIR ESTIMATOR'!D798:O798)","v":""},{"$f":"'2 REPAIR ESTIMATOR'!P798","v":0},{"$f":"T('2 REPAIR ESTIMATOR'!S798)","v":""},{"$nulls":3},1,0,1]
[{"$nulls":7},{"$f":"T('2 REPAIR ESTIMATOR'!D799:O799)","v":""},{"$f":"'2 REPAIR ESTIMATOR'!P799","v":0},{"$f":"T('2 REPAIR ESTIMATOR'!S799)","v":""},{"$nulls":3},1,0,1]
[{"$nulls":7},{"$f":"T('2 REPAIR ESTIMATOR'!D800:O800)","v":""},{"$f":"'2 REPAIR ESTIMATOR'!P800","v":0},{"$f":"T('2 REPAIR ESTIMATOR'!S800)","v":""},{"$nulls":3},1,0,1]
[{"$nulls":7},{"$f":"T('2 REPAIR ESTIMATOR'!D801:O801)","v":""},{"$f":"'2 REPAIR ESTIMATOR'!P801","v":0},{"$f":"T('2 REPAIR ESTIMATOR'!S801)","v":""},{"$nulls":3},1,0,1]
[{"$nulls":7},{"$f":"T('2 REPAIR ESTIMATOR'!D802:O802)","v":""},{"$f":"'2 REPAIR ESTIMATOR'!P802","v":0},{"$f":"T('2 REPAIR ESTIMATOR'!S802)","v":""},{"$nulls":3},1,0,1]
[{"$nulls":7},{"$f":"T('2 REPAIR ESTIMATOR'!D807:O807)","v":"HARDWOOD FLOORING"},{"$f":"#REF!","v":{"$error":"#REF!"}},{"$f":"#REF!","v":{"$error":"#REF!"}},{"$nulls":3},{"$f":"SUM(N681:N720)","v":40},{"$f":"SUM(O681:O720)","v":0},{"$f":"SUM(P681:P720)","v":40}]
[{"$nulls":7},{"$f":"T('2 REPAIR ESTIMATOR'!D808:O808)","v":"Hardwood floors, bid/allowance"},{"$f":"'2 REPAIR ESTIMATOR'!P808","v":0},{"$f":"T('2 REPAIR ESTIMATOR'!S808)","v":"ls"},{"$nulls":3},{"$f":"IF(I681<>\"\",1,0)","v":1},{"$f":"IF(K681=\"x\",1,0)","v":0},{"$f":"IF(AND(N681>0,O681=0),1,0)","v":1}]
[{"$nulls":7},{"$f":"T('2 REPAIR ESTIMATOR'!D809:O809)","v":"Laminate Flooring"},{"$f":"'2 REPAIR ESTIMATOR'!P809","v":0},{"$f":"T('2 REPAIR ESTIMATOR'!S809)","v":""},{"$nulls":3},{"$f":"IF(I682<>\"\",1,0)","v":1},{"$f":"IF(K682=\"x\",1,0)","v":0},{"$f":"IF(AND(N682>0,O682=0),1,0)","v":1}]
[{"$nulls":7},{"$f":"T('2 REPAIR ESTIMATOR'!D810:O810)","v":"Laminate wood flooring, economy grade"},{"$f":"'2 REPAIR ESTIMATOR'!P810","v":0},{"$f":"T('2 REPAIR ESTIMATOR'!S810)","v":"sf"},{"$nulls":3},1,0,1]
[{"$nulls":7},{"$f":"T('2 REPAIR ESTIMATOR'!D811:O811)","v":"Laminate wood flooring, average grade"},{"$f":"'2 REPAIR ESTIMATOR'!P811","v":0},{"$f":"T('2 REPAIR ESTIMATOR'!S811)","v":"sf"},{"$nulls":3},1,0,1]
[{"$nulls":7},{"$f":"T('2 REPAIR ESTIMATOR'!D812:O812)","v":"Laminate wood flooring, premium grade"},{"$f":"'2 REPAIR ESTIMATOR'!P812","v":0},{"$f":"T('2 REPAIR ESTIMATOR'!S812)","v":"sf"},{"$nulls":3},1,0,1]
[{"$nulls":7},{"$f":"T('2 REPAIR ESTIMATOR'!D813:O813)","v":""},{"$f":"'2 REPAIR ESTIMATOR'!P813","v":0},{"$f":"T('2 REPAIR ESTIMATOR'!S813)","v":""},{"$nulls":3},1,0,1]
[{"$nulls":7},{"$f":"T('2 REPAIR ESTIMATOR'!D814:O814)","v":"Hardwood Flooring"},{"$f":"'2 REPAIR ESTIMATOR'!P814","v":0},{"$f":"T('2 REPAIR ESTIMATOR'!S814)","v":""},{"$nulls":3},1,0,1]
[{"$nulls":7},{"$f":"T('2 REPAIR ESTIMATOR'!D815:O815)","v":"Hardwood flooring, economy grade"},{"$f":"'2 REPAIR ESTIMATOR'!P815","v":0},{"$f":"T('2 REPAIR ESTIMATOR'!S815)","v":"sf"},{"$nulls":3},1,0,1]
[{"$nulls":7},{"$f":"T('2 REPAIR ESTIMATOR'!D816:O816)","v":"Hardwood flooring, average grade"},{"$f":"'2 REPAIR ESTIMATOR'!P816","v":475},{"$f":"T('2 REPAIR ESTIMATOR'!S816)","v":"sf"},{"$nulls":3},1,0,1]
[{"$nulls":7},{"$f":"T('2 REPAIR ESTIMATOR'!D817:O817)","v":"Hardwood flooring, premium grade"},{"$f":"'2 REPAIR ESTIMATOR'!P817","v":0},{"$f":"T('2 REPAIR ESTIMATOR'!S817)","v":"sf"},{"$nulls":3},1,0,1]
[{"$nulls":7},{"$f":"T('2 REPAIR ESTIMATOR'!D818:O818)","v":""},{"$f":"'2 REPAIR ESTIMATOR'!P818","v":0},{"$f":"T('2 REPAIR ESTIMATOR'!S818)","v":""},{"$nulls":3},1,0,1]
[{"$nulls":7},{"$f":"T('2 REPAIR ESTIMATOR'!D819:O819)","v":"Hardwood Floor Refinishing"},{"$f":"'2 REPAIR ESTIMATOR'!P819","v":0},{"$f":"T('2 REPAIR ESTIMATOR'!S819)","v":""},{"$nulls":3},1,0,1]
[{"$nulls":7},{"$f":"T('2 REPAIR ESTIMATOR'!D820:O820)","v":"Floor refinishing"},{"$f":"'2 REPAIR ESTIMATOR'!P820","v":0},{"$f":"T('2 REPAIR ESTIMATOR'!S820)","v":"sf"},{"$nulls":3},1,0,1]
[{"$nulls":7},{"$f":"T('2 REPAIR ESTIMATOR'!D821:O821)","v":"Lacing new hardwood to match existing, case-by-case"},{"$f":"'2 REPAIR ESTIMATOR'!P821","v":0},{"$f":"T('2 REPAIR ESTIMATOR'!S821)","v":"sf"},{"$nulls":3},1,0,1]
[{"$nulls":7},{"$f":"T('2 REPAIR ESTIMATOR'!D822:O822)","v":""},{"$f":"'2 REPAIR ESTIMATOR'!P822","v":0},{"$f":"T('2 REPAIR ESTIMATOR'!S822)","v":""},{"$nulls":3},1,0,1]
[{"$nulls":7},{"$f":"T('2 REPAIR ESTIMATOR'!D823:O823)","v":"Miscellaneous"},{"$f":"'2 REPAIR ESTIMATOR'!P823","v":0},{"$f":"T('2 REPAIR ESTIMATOR'!S823)","v":""},{"$nulls":3},1,0,1]
[{"$nulls":7},{"$f":"T('2 REPAIR ESTIMATOR'!D824:O824)","v":"Stair treads, 4ft avg"},{"$f":"'2 REPAIR ESTIMATOR'!P824","v":0},{"$f":"T('2 REPAIR ESTIMATOR'!S824)","v":"ea"},{"$nulls":3},1,0,1]
[{"$nulls":7},{"$f":"T('2 REPAIR ESTIMATOR'!D825:O825)","v":"Shoe moldings"},{"$f":"'2 REPAIR ESTIMATOR'!P825","v":0},{"$f":"T('2 REPAIR ESTIMATOR'!S825)","v":"lf"},{"$nulls":3},1,0,1]
[{"$nulls":7},{"$f":"T('2 REPAIR ESTIMATOR'!D826:O826)","v":"Underlayment"},{"$f":"'2 REPAIR ESTIMATOR'!P826","v":0},{"$f":"T('2 REPAIR ESTIMATOR'!S826)","v":"sf"},{"$nulls":3},1,0,1]
[{"$nulls":7},{"$f":"T('2 REPAIR ESTIMATOR'!D827:O827)","v":""},{"$f":"'2 REPAIR ESTIMATOR'!P827","v":0},{"$f":"T('2 REPAIR ESTIMATOR'!S827)","v":""},{"$nulls":3},1,0,1]
[{"$nulls":7},{"$f":"T('2 REPAIR ESTIMATOR'!D828:O828)","v":""},{"$f":"'2 REPAIR ESTIMATOR'!P828","v":0},{"$f":"T('2 REPAIR ESTIMATOR'!S828)","v":""},{"$nulls":3},1,0,1]
[{"$nulls":7},{"$f":"T('2 REPAIR ESTIMATOR'!D829:O829)","v":""},{"$f":"'2 REPAIR ESTIMATOR'!P829","v":0},{"$f":"T('2 REPAIR ESTIMATOR'!S829)","v":""},{"$nulls":3},1,0,1]
[{"$nulls":7},{"$f":"T('2 REPAIR ESTIMATOR'!D830:O830)","v":""},{"$f":"'2 REPAIR ESTIMATOR'!P830","v":0},{"$f":"T('2 REPAIR ESTIMATOR'!S830)","v":""},{"$nulls":3},1,0,1]
[{"$nulls":7},{"$f":"T('2 REPAIR ESTIMATOR'!D831:O831)","v":""},{"$f":"'2 REPAIR ESTIMATOR'!P831","v":0},{"$f":"T('2 REPAIR ESTIMATOR'!S831)","v":""},{"$nulls":3},1,0,1]
[{"$nulls":7},{"$f":"T('2 REPAIR ESTIMATOR'!D832:O832)","v":""},{"$f":"'2 REPAIR ESTIMATOR'!P832","v":0},{"$f":"T('2 REPAIR ESTIMATOR'!S832)","v":""},{"$nulls":3},1,0,1]
[{"$nulls":7},{"$f":"T('2 REPAIR ESTIMATOR'!D833:O833)","v":""},{"$f":"'2 REPAIR ESTIMATOR'!P833","v":0},{"$f":"T('2 REPAIR ESTIMATOR'!S833)","v":""},{"$nulls":3},1,0,1]
[{"$nulls":7},{"$f":"T('2 REPAIR ESTIMATOR'!D834:O834)","v":""},{"$f":"'2 REPAIR ESTIMATOR'!P834","v":0},{"$f":"T('2 REPAIR ESTIMATOR'!S834)","v":""},{"$nulls":3},1,0,1]
[{"$nulls":7},{"$f":"T('2 REPAIR ESTIMATOR'!D835:O835)","v":""},{"$f":"'2 REPAIR ESTIMATOR'!P835","v":0},{"$f":"T('2 REPAIR ESTIMATOR'!S835)","v":""},{"$nulls":3},1,0,1]
[{"$nulls":7},{"$f":"T('2 REPAIR ESTIMATOR'!D836:O836)","v":""},{"$f":"'2 REPAIR ESTIMATOR'!P836","v":0},{"$f":"T('2 REPAIR ESTIMATOR'!S836)","v":""},{"$nulls":3},1,0,1]
[{"$nulls":7},{"$f":"T('2 REPAIR ESTIMATOR'!D837:O837)","v":""},{"$f":"'2 REPAIR ESTIMATOR'!P837","v":0},{"$f":"T('2 REPAIR ESTIMATOR'!S837)","v":""},{"$nulls":3},1,0,1]
[{"$nulls":7},{"$f":"T('2 REPAIR ESTIMATOR'!D838:O838)","v":""},{"$f":"'2 REPAIR ESTIMATOR'!P838","v":0},{"$f":"T('2 REPAIR ESTIMATOR'!S838)","v":""},{"$nulls":3},1,0,1]
[{"$nulls":7},{"$f":"T('2 REPAIR ESTIMATOR'!D839:O839)","v":""},{"$f":"'2 REPAIR ESTIMATOR'!P839","v":0},{"$f":"T('2 REPAIR ESTIMATOR'!S839)","v":""},{"$nulls":3},1,0,1]
[{"$nulls":7},{"$f":"T('2 REPAIR ESTIMATOR'!D840:O840)","v":""},{"$f":"'2 REPAIR ESTIMATOR'!P840","v":0},{"$f":"T('2 REPAIR ESTIMATOR'!S840)","v":""},{"$nulls":3},1,0,1]
[{"$nulls":7},{"$f":"T('2 REPAIR ESTIMATOR'!D841:O841)","v":""},{"$f":"'2 REPAIR ESTIMATOR'!P841","v":0},{"$f":"T('2 REPAIR ESTIMATOR'!S841)","v":""},{"$nulls":3},1,0,1]
[{"$nulls":7},{"$f":"T('2 REPAIR ESTIMATOR'!D842:O842)","v":""},{"$f":"'2 REPAIR ESTIMATOR'!P842","v":0},{"$f":"T('2 REPAIR ESTIMATOR'!S842)","v":""},{"$nulls":3},1,0,1]
[{"$nulls":7},{"$f":"T('2 REPAIR ESTIMATOR'!D843:O843)","v":""},{"$f":"'2 REPAIR ESTIMATOR'!P843","v":0},{"$f":"T('2 REPAIR ESTIMATOR'!S843)","v":""},{"$nulls":3},1,0,1]
[{"$nulls":7},{"$f":"T('2 REPAIR ESTIMATOR'!D844:O844)","v":""},{"$f":"'2 REPAIR ESTIMATOR'!P844","v":0},{"$f":"T('2 REPAIR ESTIMATOR'!S844)","v":""},{"$nulls":3},1,0,1]
[{"$nulls":7},{"$f":"T('2 REPAIR ESTIMATOR'!D845:O845)","v":""},{"$f":"'2 REPAIR ESTIMATOR'!P845","v":0},{"$f":"T('2 REPAIR ESTIMATOR'!S845)","v":""},{"$nulls":3},1,0,1]
[{"$nulls":7},{"$f":"T('2 REPAIR ESTIMATOR'!D846:O846)","v":""},{"$f":"'2 REPAIR ESTIMATOR'!P846","v":0},{"$f":"T('2 REPAIR ESTIMATOR'!S846)","v":""},{"$nulls":3},1,0,1]
[{"$nulls":7},{"$f":"T('2 REPAIR ESTIMATOR'!D847:O847)","v":""},{"$f":"'2 REPAIR ESTIMATOR'!P847","v":0},{"$f":"T('2 REPAIR ESTIMATOR'!S847)","v":""},{"$nulls":3},1,0,1]
[{"$nulls":7},{"$f":"T('2 REPAIR ESTIMATOR'!D852:O852)","v":"TILING"},{"$f":"#REF!","v":{"$error":"#REF!"}},{"$f":"#REF!","v":{"$error":"#REF!"}},{"$nulls":3},{"$f":"SUM(N722:N761)","v":40},{"$f":"SUM(O722:O761)","v":0},{"$f":"SUM(P722:P761)","v":40}]
[{"$nulls":7},{"$f":"T('2 REPAIR ESTIMATOR'!D853:O853)","v":"Tiling bid/allowance"},{"$f":"'2 REPAIR ESTIMATOR'!P853","v":0},{"$f":"T('2 REPAIR ESTIMATOR'!S853)","v":"ls"},{"$nulls":3},{"$f":"IF(I722<>\"\",1,0)","v":1},{"$f":"IF(K722=\"x\",1,0)","v":0},{"$f":"IF(AND(N722>0,O722=0),1,0)","v":1}]
[{"$nulls":7},{"$f":"T('2 REPAIR ESTIMATOR'!D854:O854)","v":"Kitchen "},{"$f":"'2 REPAIR ESTIMATOR'!P854","v":0},{"$f":"T('2 REPAIR ESTIMATOR'!S854)","v":""},{"$nulls":3},{"$f":"IF(I723<>\"\",1,0)","v":1},{"$f":"IF(K723=\"x\",1,0)","v":0},{"$f":"IF(AND(N723>0,O723=0),1,0)","v":1}]
[{"$nulls":7},{"$f":"T('2 REPAIR ESTIMATOR'!D855:O855)","v":"Kitchen backsplash, mosaic tile"},{"$f":"'2 REPAIR ESTIMATOR'!P855","v":25},{"$f":"T('2 REPAIR ESTIMATOR'!S855)","v":"sf"},{"$nulls":3},1,0,1]
[{"$nulls":7},{"$f":"T('2 REPAIR ESTIMATOR'!D856:O856)","v":"Floor tile, Kitchen"},{"$f":"'2 REPAIR ESTIMATOR'!P856","v":0},{"$f":"T('2 REPAIR ESTIMATOR'!S856)","v":"sf"},{"$nulls":3},1,0,1]
[{"$nulls":7},{"$f":"T('2 REPAIR ESTIMATOR'!D857:O857)","v":""},{"$f":"'2 REPAIR ESTIMATOR'!P857","v":0},{"$f":"T('2 REPAIR ESTIMATOR'!S857)","v":""},{"$nulls":3},1,0,1]
[{"$nulls":7},{"$f":"T('2 REPAIR ESTIMATOR'!D858:O858)","v":""},{"$f":"'2 REPAIR ESTIMATOR'!P858","v":0},{"$f":"T('2 REPAIR ESTIMATOR'!S858)","v":""},{"$nulls":3},1,0,1]
[{"$nulls":7},{"$f":"T('2 REPAIR ESTIMATOR'!D859:O859)","v":"Bathrooms"},{"$f":"'2 REPAIR ESTIMATOR'!P859","v":0},{"$f":"T('2 REPAIR ESTIMATOR'!S859)","v":""},{"$nulls":3},1,0,1]
[{"$nulls":7},{"$f":"T('2 REPAIR ESTIMATOR'!D860:O860)","v":"Shower tile, standard"},{"$f":"'2 REPAIR ESTIMATOR'!P860","v":180},{"$f":"T('2 REPAIR ESTIMATOR'!S860)","v":"sf"},{"$nulls":3},1,0,1]
[{"$nulls":7},{"$f":"T('2 REPAIR ESTIMATOR'!D861:O861)","v":"Shower tile, accent mosaic tile"},{"$f":"'2 REPAIR ESTIMATOR'!P861","v":20},{"$f":"T('2 REPAIR ESTIMATOR'!S861)","v":"sf"},{"$nulls":3},1,0,1]
[{"$nulls":7},{"$f":"T('2 REPAIR ESTIMATOR'!D862:O862)","v":"Floor tile, bathrooms"},{"$f":"'2 REPAIR ESTIMATOR'!P862","v":75},{"$f":"T('2 REPAIR ESTIMATOR'!S862)","v":"sf"},{"$nulls":3},1,0,1]
[{"$nulls":7},{"$f":"T('2 REPAIR ESTIMATOR'!D863:O863)","v":""},{"$f":"'2 REPAIR ESTIMATOR'!P863","v":0},{"$f":"T('2 REPAIR ESTIMATOR'!S863)","v":""},{"$nulls":3},1,0,1]
[{"$nulls":7},{"$f":"T('2 REPAIR ESTIMATOR'!D864:O864)","v":""},{"$f":"'2 REPAIR ESTIMATOR'!P864","v":0},{"$f":"T('2 REPAIR ESTIMATOR'!S864)","v":""},{"$nulls":3},1,0,1]
[{"$nulls":7},{"$f":"T('2 REPAIR ESTIMATOR'!D865:O865)","v":"Miscellaneous Tiling"},{"$f":"'2 REPAIR ESTIMATOR'!P865","v":0},{"$f":"T('2 REPAIR ESTIMATOR'!S865)","v":""},{"$nulls":3},1,0,1]
[{"$nulls":7},{"$f":"T('2 REPAIR ESTIMATOR'!D866:O866)","v":"Floor tile, entry "},{"$f":"'2 REPAIR ESTIMATOR'!P866","v":0},{"$f":"T('2 REPAIR ESTIMATOR'!S866)","v":"sf"},{"$nulls":3},1,0,1]
[{"$nulls":7},{"$f":"T('2 REPAIR ESTIMATOR'!D867:O867)","v":"Fireplace tiling"},{"$f":"'2 REPAIR ESTIMATOR'!P867","v":0},{"$f":"T('2 REPAIR ESTIMATOR'!S867)","v":"sf"},{"$nulls":3},1,0,1]
[{"$nulls":7},{"$f":"T('2 REPAIR ESTIMATOR'!D868:O868)","v":""},{"$f":"'2 REPAIR ESTIMATOR'!P868","v":0},{"$f":"T('2 REPAIR ESTIMATOR'!S868)","v":""},{"$nulls":3},1,0,1]
[{"$nulls":7},{"$f":"T('2 REPAIR ESTIMATOR'!D869:O869)","v":""},{"$f":"'2 REPAIR ESTIMATOR'!P869","v":0},{"$f":"T('2 REPAIR ESTIMATOR'!S869)","v":""},{"$nulls":3},1,0,1]
[{"$nulls":7},{"$f":"T('2 REPAIR ESTIMATOR'!D870:O870)","v":"Other"},{"$f":"'2 REPAIR ESTIMATOR'!P870","v":0},{"$f":"T('2 REPAIR ESTIMATOR'!S870)","v":""},{"$nulls":3},1,0,1]
[{"$nulls":7},{"$f":"T('2 REPAIR ESTIMATOR'!D871:O871)","v":"Backer board 1/4\" at floor tile"},{"$f":"'2 REPAIR ESTIMATOR'!P871","v":0},{"$f":"T('2 REPAIR ESTIMATOR'!S871)","v":"sf"},{"$nulls":3},1,0,1]
[{"$nulls":7},{"$f":"T('2 REPAIR ESTIMATOR'!D872:O872)","v":"Backer board 1/2\" at wall tile"},{"$f":"'2 REPAIR ESTIMATOR'!P872","v":0},{"$f":"T('2 REPAIR ESTIMATOR'!S872)","v":"sf"},{"$nulls":3},1,0,1]
[{"$nulls":7},{"$f":"T('2 REPAIR ESTIMATOR'!D873:O873)","v":""},{"$f":"'2 REPAIR ESTIMATOR'!P873","v":0},{"$f":"T('2 REPAIR ESTIMATOR'!S873)","v":""},{"$nulls":3},1,0,1]
[{"$nulls":7},{"$f":"T('2 REPAIR ESTIMATOR'!D874:O874)","v":""},{"$f":"'2 REPAIR ESTIMATOR'!P874","v":0},{"$f":"T('2 REPAIR ESTIMATOR'!S874)","v":""},{"$nulls":3},1,0,1]
[{"$nulls":7},{"$f":"T('2 REPAIR ESTIMATOR'!D875:O875)","v":""},{"$f":"'2 REPAIR ESTIMATOR'!P875","v":0},{"$f":"T('2 REPAIR ESTIMATOR'!S875)","v":""},{"$nulls":3},1,0,1]
[{"$nulls":7},{"$f":"T('2 REPAIR ESTIMATOR'!D876:O876)","v":""},{"$f":"'2 REPAIR ESTIMATOR'!P876","v":0},{"$f":"T('2 REPAIR ESTIMATOR'!S876)","v":""},{"$nulls":3},1,0,1]
[{"$nulls":7},{"$f":"T('2 REPAIR ESTIMATOR'!D877:O877)","v":""},{"$f":"'2 REPAIR ESTIMATOR'!P877","v":0},{"$f":"T('2 REPAIR ESTIMATOR'!S877)","v":""},{"$nulls":3},1,0,1]
[{"$nulls":7},{"$f":"T('2 REPAIR ESTIMATOR'!D878:O878)","v":""},{"$f":"'2 REPAIR ESTIMATOR'!P878","v":0},{"$f":"T('2 REPAIR ESTIMATOR'!S878)","v":""},{"$nulls":3},1,0,1]
[{"$nulls":7},{"$f":"T('2 REPAIR ESTIMATOR'!D879:O879)","v":""},{"$f":"'2 REPAIR ESTIMATOR'!P879","v":0},{"$f":"T('2 REPAIR ESTIMATOR'!S879)","v":""},{"$nulls":3},1,0,1]
[{"$nulls":7},{"$f":"T('2 REPAIR ESTIMATOR'!D880:O880)","v":""},{"$f":"'2 REPAIR ESTIMATOR'!P880","v":0},{"$f":"T('2 REPAIR ESTIMATOR'!S880)","v":""},{"$nulls":3},1,0,1]
[{"$nulls":7},{"$f":"T('2 REPAIR ESTIMATOR'!D881:O881)","v":""},{"$f":"'2 REPAIR ESTIMATOR'!P881","v":0},{"$f":"T('2 REPAIR ESTIMATOR'!S881)","v":""},{"$nulls":3},1,0,1]
[{"$nulls":7},{"$f":"T('2 REPAIR ESTIMATOR'!D882:O882)","v":""},{"$f":"'2 REPAIR ESTIMATOR'!P882","v":0},{"$f":"T('2 REPAIR ESTIMATOR'!S882)","v":""},{"$nulls":3},1,0,1]
[{"$nulls":7},{"$f":"T('2 REPAIR ESTIMATOR'!D883:O883)","v":""},{"$f":"'2 REPAIR ESTIMATOR'!P883","v":0},{"$f":"T('2 REPAIR ESTIMATOR'!S883)","v":""},{"$nulls":3},1,0,1]
[{"$nulls":7},{"$f":"T('2 REPAIR ESTIMATOR'!D884:O884)","v":""},{"$f":"'2 REPAIR ESTIMATOR'!P884","v":0},{"$f":"T('2 REPAIR ESTIMATOR'!S884)","v":""},{"$nulls":3},1,0,1]
[{"$nulls":7},{"$f":"T('2 REPAIR ESTIMATOR'!D885:O885)","v":""},{"$f":"'2 REPAIR ESTIMATOR'!P885","v":0},{"$f":"T('2 REPAIR ESTIMATOR'!S885)","v":""},{"$nulls":3},1,0,1]
[{"$nulls":7},{"$f":"T('2 REPAIR ESTIMATOR'!D886:O886)","v":""},{"$f":"'2 REPAIR ESTIMATOR'!P886","v":0},{"$f":"T('2 REPAIR ESTIMATOR'!S886)","v":""},{"$nulls":3},1,0,1]
[{"$nulls":7},{"$f":"T('2 REPAIR ESTIMATOR'!D887:O887)","v":""},{"$f":"'2 REPAIR ESTIMATOR'!P887","v":0},{"$f":"T('2 REPAIR ESTIMATOR'!S887)","v":""},{"$nulls":3},1,0,1]
[{"$nulls":7},{"$f":"T('2 REPAIR ESTIMATOR'!D888:O888)","v":""},{"$f":"'2 REPAIR ESTIMATOR'!P888","v":0},{"$f":"T('2 REPAIR ESTIMATOR'!S888)","v":""},{"$nulls":3},1,0,1]
[{"$nulls":7},{"$f":"T('2 REPAIR ESTIMATOR'!D889:O889)","v":""},{"$f":"'2 REPAIR ESTIMATOR'!P889","v":0},{"$f":"T('2 REPAIR ESTIMATOR'!S889)","v":""},{"$nulls":3},1,0,1]
[{"$nulls":7},{"$f":"T('2 REPAIR ESTIMATOR'!D890:O890)","v":""},{"$f":"'2 REPAIR ESTIMATOR'!P890","v":0},{"$f":"T('2 REPAIR ESTIMATOR'!S890)","v":""},{"$nulls":3},1,0,1]
[{"$nulls":7},{"$f":"T('2 REPAIR ESTIMATOR'!D891:O891)","v":""},{"$f":"'2 REPAIR ESTIMATOR'!P891","v":0},{"$f":"T('2 REPAIR ESTIMATOR'!S891)","v":""},{"$nulls":3},1,0,1]
[{"$nulls":7},{"$f":"T('2 REPAIR ESTIMATOR'!D892:O892)","v":""},{"$f":"'2 REPAIR ESTIMATOR'!P892","v":0},{"$f":"T('2 REPAIR ESTIMATOR'!S892)","v":""},{"$nulls":3},1,0,1]
[{"$nulls":7},{"$f":"T('2 REPAIR ESTIMATOR'!D897:O897)","v":"PAINTING"},{"$f":"#REF!","v":{"$error":"#REF!"}},{"$f":"#REF!","v":{"$error":"#REF!"}},{"$nulls":3},{"$f":"SUM(N763:N802)","v":40},{"$f":"SUM(O763:O802)","v":0},{"$f":"SUM(P763:P802)","v":40}]
[{"$nulls":7},{"$f":"T('2 REPAIR ESTIMATOR'!D898:O898)","v":"Exterior Painting"},{"$f":"'2 REPAIR ESTIMATOR'!P898","v":0},{"$f":"T('2 REPAIR ESTIMATOR'!S898)","v":""},{"$nulls":3},{"$f":"IF(I763<>\"\",1,0)","v":1},{"$f":"IF(K763=\"x\",1,0)","v":0},{"$f":"IF(AND(N763>0,O763=0),1,0)","v":1}]
[{"$nulls":7},{"$f":"T('2 REPAIR ESTIMATOR'!D899:O899)","v":"Exterior painting, bid/allowance"},{"$f":"'2 REPAIR ESTIMATOR'!P899","v":1},{"$f":"T('2 REPAIR ESTIMATOR'!S899)","v":"ls"},{"$nulls":3},{"$f":"IF(I764<>\"\",1,0)","v":1},{"$f":"IF(K764=\"x\",1,0)","v":0},{"$f":"IF(AND(N764>0,O764=0),1,0)","v":1}]
[{"$nulls":7},{"$f":"T('2 REPAIR ESTIMATOR'!D900:O900)","v":"Exterior painting materials allowance"},{"$f":"'2 REPAIR ESTIMATOR'!P900","v":0},{"$f":"T('2 REPAIR ESTIMATOR'!S900)","v":"gal"},{"$nulls":3},1,0,1]
[{"$nulls":7},{"$f":"T('2 REPAIR ESTIMATOR'!D901:O901)","v":"Prep/clean siding"},{"$f":"'2 REPAIR ESTIMATOR'!P901","v":0},{"$f":"T('2 REPAIR ESTIMATOR'!S901)","v":"sf"},{"$nulls":3},1,0,1]
[{"$nulls":7},{"$f":"T('2 REPAIR ESTIMATOR'!D902:O902)","v":"Paint siding"},{"$f":"'2 REPAIR ESTIMATOR'!P902","v":0},{"$f":"T('2 REPAIR ESTIMATOR'!S902)","v":"sf"},{"$nulls":3},1,0,1]
[{"$nulls":7},{"$f":"T('2 REPAIR ESTIMATOR'!D903:O903)","v":"Paint exterior door"},{"$f":"'2 REPAIR ESTIMATOR'!P903","v":0},{"$f":"T('2 REPAIR ESTIMATOR'!S903)","v":"ea"},{"$nulls":3},1,0,1]
[{"$nulls":7},{"$f":"T('2 REPAIR ESTIMATOR'!D904:O904)","v":"Paint trim only"},{"$f":"'2 REPAIR ESTIMATOR'!P904","v":0},{"$f":"T('2 REPAIR ESTIMATOR'!S904)","v":"lf"},{"$nulls":3},1,0,1]
[{"$nulls":7},{"$f":"T('2 REPAIR ESTIMATOR'!D905:O905)","v":"Sand & refinish decking"},{"$f":"'2 REPAIR ESTIMATOR'!P905","v":0},{"$f":"T('2 REPAIR ESTIMATOR'!S905)","v":"sf"},{"$nulls":3},1,0,1]
[{"$nulls":7},{"$f":"T('2 REPAIR ESTIMATOR'!D906:O906)","v":""},{"$f":"'2 REPAIR ESTIMATOR'!P906","v":0},{"$f":"T('2 REPAIR ESTIMATOR'!S906)","v":""},{"$nulls":3},1,0,1]
[{"$nulls":7},{"$f":"T('2 REPAIR ESTIMATOR'!D907:O907)","v":""},{"$f":"'2 REPAIR ESTIMATOR'!P907","v":0},{"$f":"T('2 REPAIR ESTIMATOR'!S907)","v":""},{"$nulls":3},1,0,1]
[{"$nulls":7},{"$f":"T('2 REPAIR ESTIMATOR'!D908:O908)","v":"Interior Painting"},{"$f":"'2 REPAIR ESTIMATOR'!P908","v":0},{"$f":"T('2 REPAIR ESTIMATOR'!S908)","v":""},{"$nulls":3},1,0,1]
[{"$nulls":7},{"$f":"T('2 REPAIR ESTIMATOR'!D909:O909)","v":"Interior painting, bid/allowance"},{"$f":"'2 REPAIR ESTIMATOR'!P909","v":1},{"$f":"T('2 REPAIR ESTIMATOR'!S909)","v":"ls"},{"$nulls":3},1,0,1]
[{"$nulls":7},{"$f":"T('2 REPAIR ESTIMATOR'!D910:O910)","v":"Interior painting materials allowance"},{"$f":"'2 REPAIR ESTIMATOR'!P910","v":0},{"$f":"T('2 REPAIR ESTIMATOR'!S910)","v":"gal"},{"$nulls":3},1,0,1]
[{"$nulls":7},{"$f":"T('2 REPAIR ESTIMATOR'!D911:O911)","v":"Paint doors & frames"},{"$f":"'2 REPAIR ESTIMATOR'!P911","v":0},{"$f":"T('2 REPAIR ESTIMATOR'!S911)","v":"ea"},{"$nulls":3},1,0,1]
[{"$nulls":7},{"$f":"T('2 REPAIR ESTIMATOR'!D912:O912)","v":"Paint walls"},{"$f":"'2 REPAIR ESTIMATOR'!P912","v":0},{"$f":"T('2 REPAIR ESTIMATOR'!S912)","v":"sf"},{"$nulls":3},1,0,1]
[{"$nulls":7},{"$f":"T('2 REPAIR ESTIMATOR'!D913:O913)","v":"Paint ceilings"},{"$f":"'2 REPAIR ESTIMATOR'!P913","v":0},{"$f":"T('2 REPAIR ESTIMATOR'!S913)","v":"sf"},{"$nulls":3},1,0,1]
[{"$nulls":7},{"$f":"T('2 REPAIR ESTIMATOR'!D914:O914)","v":"Paint wood base"},{"$f":"'2 REPAIR ESTIMATOR'!P914","v":0},{"$f":"T('2 REPAIR ESTIMATOR'!S914)","v":"lf"},{"$nulls":3},1,0,1]
[{"$nulls":7},{"$f":"T('2 REPAIR ESTIMATOR'!D915:O915)","v":"Strip, paint cabinets/vanities"},{"$f":"'2 REPAIR ESTIMATOR'!P915","v":0},{"$f":"T('2 REPAIR ESTIMATOR'!S915)","v":"sf"},{"$nulls":3},1,0,1]
[{"$nulls":7},{"$f":"T('2 REPAIR ESTIMATOR'!D916:O916)","v":""},{"$f":"'2 REPAIR ESTIMATOR'!P916","v":0},{"$f":"T('2 REPAIR ESTIMATOR'!S916)","v":""},{"$nulls":3},1,0,1]
[{"$nulls":7},{"$f":"T('2 REPAIR ESTIMATOR'!D917:O917)","v":""},{"$f":"'2 REPAIR ESTIMATOR'!P917","v":0},{"$f":"T('2 REPAIR ESTIMATOR'!S917)","v":""},{"$nulls":3},1,0,1]
[{"$nulls":7},{"$f":"T('2 REPAIR ESTIMATOR'!D918:O918)","v":""},{"$f":"'2 REPAIR ESTIMATOR'!P918","v":0},{"$f":"T('2 REPAIR ESTIMATOR'!S918)","v":""},{"$nulls":3},1,0,1]
[{"$nulls":7},{"$f":"T('2 REPAIR ESTIMATOR'!D919:O919)","v":""},{"$f":"'2 REPAIR ESTIMATOR'!P919","v":0},{"$f":"T('2 REPAIR ESTIMATOR'!S919)","v":""},{"$nulls":3},1,0,1]
[{"$nulls":7},{"$f":"T('2 REPAIR ESTIMATOR'!D920:O920)","v":""},{"$f":"'2 REPAIR ESTIMATOR'!P920","v":0},{"$f":"T('2 REPAIR ESTIMATOR'!S920)","v":""},{"$nulls":3},1,0,1]
[{"$nulls":7},{"$f":"T('2 REPAIR ESTIMATOR'!D921:O921)","v":""},{"$f":"'2 REPAIR ESTIMATOR'!P921","v":0},{"$f":"T('2 REPAIR ESTIMATOR'!S921)","v":""},{"$nulls":3},1,0,1]
[{"$nulls":7},{"$f":"T('2 REPAIR ESTIMATOR'!D922:O922)","v":""},{"$f":"'2 REPAIR ESTIMATOR'!P922","v":0},{"$f":"T('2 REPAIR ESTIMATOR'!S922)","v":""},{"$nulls":3},1,0,1]
[{"$nulls":7},{"$f":"T('2 REPAIR ESTIMATOR'!D923:O923)","v":""},{"$f":"'2 REPAIR ESTIMATOR'!P923","v":0},{"$f":"T('2 REPAIR ESTIMATOR'!S923)","v":""},{"$nulls":3},1,0,1]
[{"$nulls":7},{"$f":"T('2 REPAIR ESTIMATOR'!D924:O924)","v":""},{"$f":"'2 REPAIR ESTIMATOR'!P924","v":0},{"$f":"T('2 REPAIR ESTIMATOR'!S924)","v":""},{"$nulls":3},1,0,1]
[{"$nulls":7},{"$f":"T('2 REPAIR ESTIMATOR'!D925:O925)","v":""},{"$f":"'2 REPAIR ESTIMATOR'!P925","v":0},{"$f":"T('2 REPAIR ESTIMATOR'!S925)","v":""},{"$nulls":3},1,0,1]
[{"$nulls":7},{"$f":"T('2 REPAIR ESTIMATOR'!D926:O926)","v":""},{"$f":"'2 REPAIR ESTIMATOR'!P926","v":0},{"$f":"T('2 REPAIR ESTIMATOR'!S926)","v":""},{"$nulls":3},1,0,1]
[{"$nulls":7},{"$f":"T('2 REPAIR ESTIMATOR'!D927:O927)","v":""},{"$f":"'2 REPAIR ESTIMATOR'!P927","v":0},{"$f":"T('2 REPAIR ESTIMATOR'!S927)","v":""},{"$nulls":3},1,0,1]
[{"$nulls":7},{"$f":"T('2 REPAIR ESTIMATOR'!D928:O928)","v":""},{"$f":"'2 REPAIR ESTIMATOR'!P928","v":0},{"$f":"T('2 REPAIR ESTIMATOR'!S928)","v":""},{"$nulls":3},1,0,1]
[{"$nulls":7},{"$f":"T('2 REPAIR ESTIMATOR'!D929:O929)","v":""},{"$f":"'2 REPAIR ESTIMATOR'!P929","v":0},{"$f":"T('2 REPAIR ESTIMATOR'!S929)","v":""},{"$nulls":3},1,0,1]
[{"$nulls":7},{"$f":"T('2 REPAIR ESTIMATOR'!D930:O930)","v":""},{"$f":"'2 REPAIR ESTIMATOR'!P930","v":0},{"$f":"T('2 REPAIR ESTIMATOR'!S930)","v":""},{"$nulls":3},1,0,1]
[{"$nulls":7},{"$f":"T('2 REPAIR ESTIMATOR'!D931:O931)","v":""},{"$f":"'2 REPAIR ESTIMATOR'!P931","v":0},{"$f":"T('2 REPAIR ESTIMATOR'!S931)","v":""},{"$nulls":3},1,0,1]
[{"$nulls":7},{"$f":"T('2 REPAIR ESTIMATOR'!D932:O932)","v":""},{"$f":"'2 REPAIR ESTIMATOR'!P932","v":0},{"$f":"T('2 REPAIR ESTIMATOR'!S932)","v":""},{"$nulls":3},1,0,1]
[{"$nulls":7},{"$f":"T('2 REPAIR ESTIMATOR'!D933:O933)","v":""},{"$f":"'2 REPAIR ESTIMATOR'!P933","v":0},{"$f":"T('2 REPAIR ESTIMATOR'!S933)","v":""},{"$nulls":3},1,0,1]
[{"$nulls":7},{"$f":"T('2 REPAIR ESTIMATOR'!D934:O934)","v":""},{"$f":"'2 REPAIR ESTIMATOR'!P934","v":0},{"$f":"T('2 REPAIR ESTIMATOR'!S934)","v":""},{"$nulls":3},1,0,1]
[{"$nulls":7},{"$f":"T('2 REPAIR ESTIMATOR'!D935:O935)","v":""},{"$f":"'2 REPAIR ESTIMATOR'!P935","v":0},{"$f":"T('2 REPAIR ESTIMATOR'!S935)","v":""},{"$nulls":3},1,0,1]
[{"$nulls":7},{"$f":"T('2 REPAIR ESTIMATOR'!D936:O936)","v":""},{"$f":"'2 REPAIR ESTIMATOR'!P936","v":0},{"$f":"T('2 REPAIR ESTIMATOR'!S936)","v":""},{"$nulls":3},1,0,1]
[{"$nulls":7},{"$f":"T('2 REPAIR ESTIMATOR'!D937:O937)","v":""},{"$f":"'2 REPAIR ESTIMATOR'!P937","v":0},{"$f":"T('2 REPAIR ESTIMATOR'!S937)","v":""},{"$nulls":3},1,0,1]
[{"$nulls":7},{"$f":"T('2 REPAIR ESTIMATOR'!D942:O942)","v":"APPLIANCES"},{"$f":"#REF!","v":{"$error":"#REF!"}},{"$f":"#REF!","v":{"$error":"#REF!"}},{"$nulls":3},{"$f":"SUM(N804:N843)","v":40},{"$f":"SUM(O804:O843)","v":0},{"$f":"SUM(P804:P843)","v":40}]
[{"$nulls":7},{"$f":"T('2 REPAIR ESTIMATOR'!D943:O943)","v":"Appliances, Bid/Allowance"},{"$f":"'2 REPAIR ESTIMATOR'!P943","v":0},{"$f":"T('2 REPAIR ESTIMATOR'!S943)","v":"ls"},{"$nulls":3},{"$f":"IF(I804<>\"\",1,0)","v":1},{"$f":"IF(K804=\"x\",1,0)","v":0},{"$f":"IF(AND(N804>0,O804=0),1,0)","v":1}]
[{"$nulls":7},{"$f":"T('2 REPAIR ESTIMATOR'!D944:O944)","v":""},{"$f":"'2 REPAIR ESTIMATOR'!P944","v":0},{"$f":"T('2 REPAIR ESTIMATOR'!S944)","v":""},{"$nulls":3},{"$f":"IF(I805<>\"\",1,0)","v":1},{"$f":"IF(K805=\"x\",1,0)","v":0},{"$f":"IF(AND(N805>0,O805=0),1,0)","v":1}]
[{"$nulls":7},{"$f":"T('2 REPAIR ESTIMATOR'!D945:O945)","v":"Appliance Package"},{"$f":"'2 REPAIR ESTIMATOR'!P945","v":0},{"$f":"T('2 REPAIR ESTIMATOR'!S945)","v":""},{"$nulls":3},1,0,1]
[{"$nulls":7},{"$f":"T('2 REPAIR ESTIMATOR'!D946:O946)","v":"Economy, (fridge, range, hood, dw, microwave)"},{"$f":"'2 REPAIR ESTIMATOR'!P946","v":0},{"$f":"T('2 REPAIR ESTIMATOR'!S946)","v":"ea"},{"$nulls":3},1,0,1]
[{"$nulls":7},{"$f":"T('2 REPAIR ESTIMATOR'!D947:O947)","v":"Average, (fridge, range, hood, dw, microwave)"},{"$f":"'2 REPAIR ESTIMATOR'!P947","v":1},{"$f":"T('2 REPAIR ESTIMATOR'!S947)","v":"ea"},{"$nulls":3},1,0,1]
[{"$nulls":7},{"$f":"T('2 REPAIR ESTIMATOR'!D948:O948)","v":"High End, (fridge, range, hood, dw, microwave)"},{"$f":"'2 REPAIR ESTIMATOR'!P948","v":0},{"$f":"T('2 REPAIR ESTIMATOR'!S948)","v":"ea"},{"$nulls":3},1,0,1]
[{"$nulls":7},{"$f":"T('2 REPAIR ESTIMATOR'!D949:O949)","v":""},{"$f":"'2 REPAIR ESTIMATOR'!P949","v":0},{"$f":"T('2 REPAIR ESTIMATOR'!S949)","v":""},{"$nulls":3},1,0,1]
[{"$nulls":7},{"$f":"T('2 REPAIR ESTIMATOR'!D950:O950)","v":""},{"$f":"'2 REPAIR ESTIMATOR'!P950","v":0},{"$f":"T('2 REPAIR ESTIMATOR'!S950)","v":""},{"$nulls":3},1,0,1]
[{"$nulls":7},{"$f":"T('2 REPAIR ESTIMATOR'!D951:O951)","v":"Appliances, Detailed, Ecomony"},{"$f":"'2 REPAIR ESTIMATOR'!P951","v":0},{"$f":"T('2 REPAIR ESTIMATOR'!S951)","v":""},{"$nulls":3},1,0,1]
[{"$nulls":7},{"$f":"T('2 REPAIR ESTIMATOR'!D952:O952)","v":"Refrigerator, economy"},{"$f":"'2 REPAIR ESTIMATOR'!P952","v":0},{"$f":"T('2 REPAIR ESTIMATOR'!S952)","v":"ea"},{"$nulls":3},1,0,1]
[{"$nulls":7},{"$f":"T('2 REPAIR ESTIMATOR'!D953:O953)","v":"Range, economy"},{"$f":"'2 REPAIR ESTIMATOR'!P953","v":0},{"$f":"T('2 REPAIR ESTIMATOR'!S953)","v":"ea"},{"$nulls":3},1,0,1]
[{"$nulls":7},{"$f":"T('2 REPAIR ESTIMATOR'!D954:O954)","v":"Range Hood, economy"},{"$f":"'2 REPAIR ESTIMATOR'!P954","v":0},{"$f":"T('2 REPAIR ESTIMATOR'!S954)","v":"ea"},{"$nulls":3},1,0,1]
[{"$nulls":7},{"$f":"T('2 REPAIR ESTIMATOR'!D955:O955)","v":"Dishwasher, economy"},{"$f":"'2 REPAIR ESTIMATOR'!P955","v":0},{"$f":"T('2 REPAIR ESTIMATOR'!S955)","v":"ea"},{"$nulls":3},1,0,1]
[{"$nulls":7},{"$f":"T('2 REPAIR ESTIMATOR'!D956:O956)","v":"Microwave, economy"},{"$f":"'2 REPAIR ESTIMATOR'!P956","v":0},{"$f":"T('2 REPAIR ESTIMATOR'!S956)","v":"ea"},{"$nulls":3},1,0,1]
[{"$nulls":7},{"$f":"T('2 REPAIR ESTIMATOR'!D957:O957)","v":"Appliance delivery"},{"$f":"'2 REPAIR ESTIMATOR'!P957","v":0},{"$f":"T('2 REPAIR ESTIMATOR'!S957)","v":"ea"},{"$nulls":3},1,0,1]
[{"$nulls":7},{"$f":"T('2 REPAIR ESTIMATOR'!D958:O958)","v":""},{"$f":"'2 REPAIR ESTIMATOR'!P958","v":0},{"$f":"T('2 REPAIR ESTIMATOR'!S958)","v":""},{"$nulls":3},1,0,1]
[{"$nulls":7},{"$f":"T('2 REPAIR ESTIMATOR'!D959:O959)","v":""},{"$f":"'2 REPAIR ESTIMATOR'!P959","v":0},{"$f":"T('2 REPAIR ESTIMATOR'!S959)","v":""},{"$nulls":3},1,0,1]
[{"$nulls":7},{"$f":"T('2 REPAIR ESTIMATOR'!D960:O960)","v":"Appliances, Detailed, Average"},{"$f":"'2 REPAIR ESTIMATOR'!P960","v":0},{"$f":"T('2 REPAIR ESTIMATOR'!S960)","v":""},{"$nulls":3},1,0,1]
[{"$nulls":7},{"$f":"T('2 REPAIR ESTIMATOR'!D961:O961)","v":"Refrigerator, average"},{"$f":"'2 REPAIR ESTIMATOR'!P961","v":0},{"$f":"T('2 REPAIR ESTIMATOR'!S961)","v":"ea"},{"$nulls":3},1,0,1]
[{"$nulls":7},{"$f":"T('2 REPAIR ESTIMATOR'!D962:O962)","v":"Range, average"},{"$f":"'2 REPAIR ESTIMATOR'!P962","v":0},{"$f":"T('2 REPAIR ESTIMATOR'!S962)","v":"ea"},{"$nulls":3},1,0,1]
[{"$nulls":7},{"$f":"T('2 REPAIR ESTIMATOR'!D963:O963)","v":"Range Hood, average"},{"$f":"'2 REPAIR ESTIMATOR'!P963","v":0},{"$f":"T('2 REPAIR ESTIMATOR'!S963)","v":"ea"},{"$nulls":3},1,0,1]
[{"$nulls":7},{"$f":"T('2 REPAIR ESTIMATOR'!D964:O964)","v":"Dishwasher, average"},{"$f":"'2 REPAIR ESTIMATOR'!P964","v":0},{"$f":"T('2 REPAIR ESTIMATOR'!S964)","v":"ea"},{"$nulls":3},1,0,1]
[{"$nulls":7},{"$f":"T('2 REPAIR ESTIMATOR'!D965:O965)","v":"Microwave, average"},{"$f":"'2 REPAIR ESTIMATOR'!P965","v":0},{"$f":"T('2 REPAIR ESTIMATOR'!S965)","v":"ea"},{"$nulls":3},1,0,1]
[{"$nulls":7},{"$f":"T('2 REPAIR ESTIMATOR'!D966:O966)","v":"Appliance delivery"},{"$f":"'2 REPAIR ESTIMATOR'!P966","v":0},{"$f":"T('2 REPAIR ESTIMATOR'!S966)","v":"ea"},{"$nulls":3},1,0,1]
[{"$nulls":7},{"$f":"T('2 REPAIR ESTIMATOR'!D967:O967)","v":""},{"$f":"'2 REPAIR ESTIMATOR'!P967","v":0},{"$f":"T('2 REPAIR ESTIMATOR'!S967)","v":""},{"$nulls":3},1,0,1]
[{"$nulls":7},{"$f":"T('2 REPAIR ESTIMATOR'!D968:O968)","v":""},{"$f":"'2 REPAIR ESTIMATOR'!P968","v":0},{"$f":"T('2 REPAIR ESTIMATOR'!S968)","v":""},{"$nulls":3},1,0,1]
[{"$nulls":7},{"$f":"T('2 REPAIR ESTIMATOR'!D969:O969)","v":"Appliances, Detailed, High End"},{"$f":"'2 REPAIR ESTIMATOR'!P969","v":0},{"$f":"T('2 REPAIR ESTIMATOR'!S969)","v":""},{"$nulls":3},1,0,1]
[{"$nulls":7},{"$f":"T('2 REPAIR ESTIMATOR'!D970:O970)","v":"Refrigerator, high end"},{"$f":"'2 REPAIR ESTIMATOR'!P970","v":0},{"$f":"T('2 REPAIR ESTIMATOR'!S970)","v":"ea"},{"$nulls":3},1,0,1]
[{"$nulls":7},{"$f":"T('2 REPAIR ESTIMATOR'!D971:O971)","v":"Range, high end"},{"$f":"'2 REPAIR ESTIMATOR'!P971","v":0},{"$f":"T('2 REPAIR ESTIMATOR'!S971)","v":"ea"},{"$nulls":3},1,0,1]
[{"$nulls":7},{"$f":"T('2 REPAIR ESTIMATOR'!D972:O972)","v":"Range Hood, high end"},{"$f":"'2 REPAIR ESTIMATOR'!P972","v":0},{"$f":"T('2 REPAIR ESTIMATOR'!S972)","v":"ea"},{"$nulls":3},1,0,1]
[{"$nulls":7},{"$f":"T('2 REPAIR ESTIMATOR'!D973:O973)","v":"Dishwasher, high end"},{"$f":"'2 REPAIR ESTIMATOR'!P973","v":0},{"$f":"T('2 REPAIR ESTIMATOR'!S973)","v":"ea"},{"$nulls":3},1,0,1]
[{"$nulls":7},{"$f":"T('2 REPAIR ESTIMATOR'!D974:O974)","v":"Microwave, high end"},{"$f":"'2 REPAIR ESTIMATOR'!P974","v":0},{"$f":"T('2 REPAIR ESTIMATOR'!S974)","v":"ea"},{"$nulls":3},1,0,1]
[{"$nulls":7},{"$f":"T('2 REPAIR ESTIMATOR'!D975:O975)","v":"Appliance delivery"},{"$f":"'2 REPAIR ESTIMATOR'!P975","v":0},{"$f":"T('2 REPAIR ESTIMATOR'!S975)","v":"ea"},{"$nulls":3},1,0,1]
[{"$nulls":7},{"$f":"T('2 REPAIR ESTIMATOR'!D976:O976)","v":""},{"$f":"'2 REPAIR ESTIMATOR'!P976","v":0},{"$f":"T('2 REPAIR ESTIMATOR'!S976)","v":""},{"$nulls":3},1,0,1]
[{"$nulls":7},{"$f":"T('2 REPAIR ESTIMATOR'!D977:O977)","v":""},{"$f":"'2 REPAIR ESTIMATOR'!P977","v":0},{"$f":"T('2 REPAIR ESTIMATOR'!S977)","v":""},{"$nulls":3},1,0,1]
[{"$nulls":7},{"$f":"T('2 REPAIR ESTIMATOR'!D978:O978)","v":""},{"$f":"'2 REPAIR ESTIMATOR'!P978","v":0},{"$f":"T('2 REPAIR ESTIMATOR'!S978)","v":""},{"$nulls":3},1,0,1]
[{"$nulls":7},{"$f":"T('2 REPAIR ESTIMATOR'!D979:O979)","v":""},{"$f":"'2 REPAIR ESTIMATOR'!P979","v":0},{"$f":"T('2 REPAIR ESTIMATOR'!S979)","v":""},{"$nulls":3},1,0,1]
[{"$nulls":7},{"$f":"T('2 REPAIR ESTIMATOR'!D980:O980)","v":""},{"$f":"'2 REPAIR ESTIMATOR'!P980","v":0},{"$f":"T('2 REPAIR ESTIMATOR'!S980)","v":""},{"$nulls":3},1,0,1]
[{"$nulls":7},{"$f":"T('2 REPAIR ESTIMATOR'!D981:O981)","v":""},{"$f":"'2 REPAIR ESTIMATOR'!P981","v":0},{"$f":"T('2 REPAIR ESTIMATOR'!S981)","v":""},{"$nulls":3},1,0,1]
[{"$nulls":7},{"$f":"T('2 REPAIR ESTIMATOR'!D982:O982)","v":""},{"$f":"'2 REPAIR ESTIMATOR'!P982","v":0},{"$f":"T('2 REPAIR ESTIMATOR'!S982)","v":""},{"$nulls":3},1,0,1]
[{"$nulls":7},{"$f":"T('2 REPAIR ESTIMATOR'!D987:O987)","v":"PLUMBING"},{"$f":"#REF!","v":{"$error":"#REF!"}},{"$f":"#REF!","v":{"$error":"#REF!"}},{"$nulls":3},{"$f":"SUM(N845:N884)","v":40},{"$f":"SUM(O845:O884)","v":0},{"$f":"SUM(P845:P884)","v":40}]
[{"$nulls":7},{"$f":"T('2 REPAIR ESTIMATOR'!D988:O988)","v":"Plumbing, bid/allowance"},{"$f":"'2 REPAIR ESTIMATOR'!P988","v":0},{"$f":"T('2 REPAIR ESTIMATOR'!S988)","v":"ls"},{"$nulls":3},{"$f":"IF(I845<>\"\",1,0)","v":1},{"$f":"IF(K845=\"x\",1,0)","v":0},{"$f":"IF(AND(N845>0,O845=0),1,0)","v":1}]
[{"$nulls":7},{"$f":"T('2 REPAIR ESTIMATOR'!D989:O989)","v":"Miscellaneous Plumbing"},{"$f":"'2 REPAIR ESTIMATOR'!P989","v":0},{"$f":"T('2 REPAIR ESTIMATOR'!S989)","v":"ls"},{"$nulls":3},{"$f":"IF(I846<>\"\",1,0)","v":1},{"$f":"IF(K846=\"x\",1,0)","v":0},{"$f":"IF(AND(N846>0,O846=0),1,0)","v":1}]
[{"$nulls":7},{"$f":"T('2 REPAIR ESTIMATOR'!D990:O990)","v":"Plumbing rough-in, per hour"},{"$f":"'2 REPAIR ESTIMATOR'!P990","v":2},{"$f":"T('2 REPAIR ESTIMATOR'!S990)","v":"hrs"},{"$nulls":3},1,0,1]
[{"$nulls":7},{"$f":"T('2 REPAIR ESTIMATOR'!D991:O991)","v":"Concrete demo for below slab rough-in"},{"$f":"'2 REPAIR ESTIMATOR'!P991","v":0},{"$f":"T('2 REPAIR ESTIMATOR'!S991)","v":"sf"},{"$nulls":3},1,0,1]
[{"$nulls":7},{"$f":"T('2 REPAIR ESTIMATOR'!D992:O992)","v":"Plumbing finish work, per hour"},{"$f":"'2 REPAIR ESTIMATOR'!P992","v":0},{"$f":"T('2 REPAIR ESTIMATOR'!S992)","v":"hrs"},{"$nulls":3},1,0,1]
[{"$nulls":7},{"$f":"T('2 REPAIR ESTIMATOR'!D993:O993)","v":"Replace gas hot water heater, 40 gallon"},{"$f":"'2 REPAIR ESTIMATOR'!P993","v":0},{"$f":"T('2 REPAIR ESTIMATOR'!S993)","v":"ea"},{"$nulls":3},1,0,1]
[{"$nulls":7},{"$f":"T('2 REPAIR ESTIMATOR'!D994:O994)","v":"Kitchen"},{"$f":"'2 REPAIR ESTIMATOR'!P994","v":0},{"$f":"T('2 REPAIR ESTIMATOR'!S994)","v":""},{"$nulls":3},1,0,1]
[{"$nulls":7},{"$f":"T('2 REPAIR ESTIMATOR'!D995:O995)","v":"Kitchen faucet fixture"},{"$f":"'2 REPAIR ESTIMATOR'!P995","v":1},{"$f":"T('2 REPAIR ESTIMATOR'!S995)","v":"ea"},{"$nulls":3},1,0,1]
[{"$nulls":7},{"$f":"T('2 REPAIR ESTIMATOR'!D996:O996)","v":"Garbage disposal"},{"$f":"'2 REPAIR ESTIMATOR'!P996","v":1},{"$f":"T('2 REPAIR ESTIMATOR'!S996)","v":"ea"},{"$nulls":3},1,0,1]
[{"$nulls":7},{"$f":"T('2 REPAIR ESTIMATOR'!D997:O997)","v":"Hookup dishwasher"},{"$f":"'2 REPAIR ESTIMATOR'!P997","v":1},{"$f":"T('2 REPAIR ESTIMATOR'!S997)","v":"ea"},{"$nulls":3},1,0,1]
[{"$nulls":7},{"$f":"T('2 REPAIR ESTIMATOR'!D998:O998)","v":"Water supply line for refrigerator"},{"$f":"'2 REPAIR ESTIMATOR'!P998","v":1},{"$f":"T('2 REPAIR ESTIMATOR'!S998)","v":"ea"},{"$nulls":3},1,0,1]
[{"$nulls":7},{"$f":"T('2 REPAIR ESTIMATOR'!D999:O999)","v":"Bathrooms"},{"$f":"'2 REPAIR ESTIMATOR'!P999","v":0},{"$f":"T('2 REPAIR ESTIMATOR'!S999)","v":""},{"$nulls":3},1,0,1]
[{"$nulls":7},{"$f":"T('2 REPAIR ESTIMATOR'!D1000:O1000)","v":"Bathroom faucet fixture"},{"$f":"'2 REPAIR ESTIMATOR'!P1000","v":2},{"$f":"T('2 REPAIR ESTIMATOR'!S1000)","v":"ea"},{"$nulls":3},1,0,1]
[{"$nulls":7},{"$f":"T('2 REPAIR ESTIMATOR'!D1001:O1001)","v":"Fiberglass shower stall"},{"$f":"'2 REPAIR ESTIMATOR'!P1001","v":0},{"$f":"T('2 REPAIR ESTIMATOR'!S1001)","v":"ea"},{"$nulls":3},1,0,1]
[{"$nulls":7},{"$f":"T('2 REPAIR ESTIMATOR'!D1002:O1002)","v":"Fiberglass tub"},{"$f":"'2 REPAIR ESTIMATOR'!P1002","v":2},{"$f":"T('2 REPAIR ESTIMATOR'!S1002)","v":"ea"},{"$nulls":3},1,0,1]
[{"$nulls":7},{"$f":"T('2 REPAIR ESTIMATOR'!D1003:O1003)","v":"Fiberglass tub/shower surround"},{"$f":"'2 REPAIR ESTIMATOR'!P1003","v":0},{"$f":"T('2 REPAIR ESTIMATOR'!S1003)","v":"ea"},{"$nulls":3},1,0,1]
[{"$nulls":7},{"$f":"T('2 REPAIR ESTIMATOR'!D1004:O1004)","v":"Showerhead/tub kit"},{"$f":"'2 REPAIR ESTIMATOR'!P1004","v":2},{"$f":"T('2 REPAIR ESTIMATOR'!S1004)","v":"ea"},{"$nulls":3},1,0,1]
[{"$nulls":7},{"$f":"T('2 REPAIR ESTIMATOR'!D1005:O1005)","v":"Toilets"},{"$f":"'2 REPAIR ESTIMATOR'!P1005","v":2},{"$f":"T('2 REPAIR ESTIMATOR'!S1005)","v":"ea"},{"$nulls":3},1,0,1]
[{"$nulls":7},{"$f":"T('2 REPAIR ESTIMATOR'!D1006:O1006)","v":"Toilet seats"},{"$f":"'2 REPAIR ESTIMATOR'!P1006","v":0},{"$f":"T('2 REPAIR ESTIMATOR'!S1006)","v":"ea"},{"$nulls":3},1,0,1]
[{"$nulls":7},{"$f":"T('2 REPAIR ESTIMATOR'!D1007:O1007)","v":"Pedestal sink"},{"$f":"'2 REPAIR ESTIMATOR'!P1007","v":0},{"$f":"T('2 REPAIR ESTIMATOR'!S1007)","v":"ea"},{"$nulls":3},1,0,1]
[{"$nulls":7},{"$f":"T('2 REPAIR ESTIMATOR'!D1008:O1008)","v":""},{"$f":"'2 REPAIR ESTIMATOR'!P1008","v":0},{"$f":"T('2 REPAIR ESTIMATOR'!S1008)","v":""},{"$nulls":3},1,0,1]
[{"$nulls":7},{"$f":"T('2 REPAIR ESTIMATOR'!D1009:O1009)","v":""},{"$f":"'2 REPAIR ESTIMATOR'!P1009","v":0},{"$f":"T('2 REPAIR ESTIMATOR'!S1009)","v":""},{"$nulls":3},1,0,1]
[{"$nulls":7},{"$f":"T('2 REPAIR ESTIMATOR'!D1010:O1010)","v":""},{"$f":"'2 REPAIR ESTIMATOR'!P1010","v":0},{"$f":"T('2 REPAIR ESTIMATOR'!S1010)","v":""},{"$nulls":3},1,0,1]
[{"$nulls":7},{"$f":"T('2 REPAIR ESTIMATOR'!D1011:O1011)","v":""},{"$f":"'2 REPAIR ESTIMATOR'!P1011","v":0},{"$f":"T('2 REPAIR ESTIMATOR'!S1011)","v":""},{"$nulls":3},1,0,1]
[{"$nulls":7},{"$f":"T('2 REPAIR ESTIMATOR'!D1012:O1012)","v":""},{"$f":"'2 REPAIR ESTIMATOR'!P1012","v":0},{"$f":"T('2 REPAIR ESTIMATOR'!S1012)","v":""},{"$nulls":3},1,0,1]
[{"$nulls":7},{"$f":"T('2 REPAIR ESTIMATOR'!D1013:O1013)","v":""},{"$f":"'2 REPAIR ESTIMATOR'!P1013","v":0},{"$f":"T('2 REPAIR ESTIMATOR'!S1013)","v":""},{"$nulls":3},1,0,1]
[{"$nulls":7},{"$f":"T('2 REPAIR ESTIMATOR'!D1014:O1014)","v":""},{"$f":"'2 REPAIR ESTIMATOR'!P1014","v":0},{"$f":"T('2 REPAIR ESTIMATOR'!S1014)","v":""},{"$nulls":3},1,0,1]
[{"$nulls":7},{"$f":"T('2 REPAIR ESTIMATOR'!D1015:O1015)","v":""},{"$f":"'2 REPAIR ESTIMATOR'!P1015","v":0},{"$f":"T('2 REPAIR ESTIMATOR'!S1015)","v":""},{"$nulls":3},1,0,1]
[{"$nulls":7},{"$f":"T('2 REPAIR ESTIMATOR'!D1016:O1016)","v":""},{"$f":"'2 REPAIR ESTIMATOR'!P1016","v":0},{"$f":"T('2 REPAIR ESTIMATOR'!S1016)","v":""},{"$nulls":3},1,0,1]
[{"$nulls":7},{"$f":"T('2 REPAIR ESTIMATOR'!D1017:O1017)","v":""},{"$f":"'2 REPAIR ESTIMATOR'!P1017","v":0},{"$f":"T('2 REPAIR ESTIMATOR'!S1017)","v":""},{"$nulls":3},1,0,1]
[{"$nulls":7},{"$f":"T('2 REPAIR ESTIMATOR'!D1018:O1018)","v":""},{"$f":"'2 REPAIR ESTIMATOR'!P1018","v":0},{"$f":"T('2 REPAIR ESTIMATOR'!S1018)","v":""},{"$nulls":3},1,0,1]
[{"$nulls":7},{"$f":"T('2 REPAIR ESTIMATOR'!D1019:O1019)","v":""},{"$f":"'2 REPAIR ESTIMATOR'!P1019","v":0},{"$f":"T('2 REPAIR ESTIMATOR'!S1019)","v":""},{"$nulls":3},1,0,1]
[{"$nulls":7},{"$f":"T('2 REPAIR ESTIMATOR'!D1020:O1020)","v":""},{"$f":"'2 REPAIR ESTIMATOR'!P1020","v":0},{"$f":"T('2 REPAIR ESTIMATOR'!S1020)","v":""},{"$nulls":3},1,0,1]
[{"$nulls":7},{"$f":"T('2 REPAIR ESTIMATOR'!D1021:O1021)","v":""},{"$f":"'2 REPAIR ESTIMATOR'!P1021","v":0},{"$f":"T('2 REPAIR ESTIMATOR'!S1021)","v":""},{"$nulls":3},1,0,1]
[{"$nulls":7},{"$f":"T('2 REPAIR ESTIMATOR'!D1022:O1022)","v":""},{"$f":"'2 REPAIR ESTIMATOR'!P1022","v":0},{"$f":"T('2 REPAIR ESTIMATOR'!S1022)","v":""},{"$nulls":3},1,0,1]
[{"$nulls":7},{"$f":"T('2 REPAIR ESTIMATOR'!D1023:O1023)","v":""},{"$f":"'2 REPAIR ESTIMATOR'!P1023","v":0},{"$f":"T('2 REPAIR ESTIMATOR'!S1023)","v":""},{"$nulls":3},1,0,1]
[{"$nulls":7},{"$f":"T('2 REPAIR ESTIMATOR'!D1024:O1024)","v":""},{"$f":"'2 REPAIR ESTIMATOR'!P1024","v":0},{"$f":"T('2 REPAIR ESTIMATOR'!S1024)","v":""},{"$nulls":3},1,0,1]
[{"$nulls":7},{"$f":"T('2 REPAIR ESTIMATOR'!D1025:O1025)","v":""},{"$f":"'2 REPAIR ESTIMATOR'!P1025","v":0},{"$f":"T('2 REPAIR ESTIMATOR'!S1025)","v":""},{"$nulls":3},1,0,1]
[{"$nulls":7},{"$f":"T('2 REPAIR ESTIMATOR'!D1026:O1026)","v":""},{"$f":"'2 REPAIR ESTIMATOR'!P1026","v":0},{"$f":"T('2 REPAIR ESTIMATOR'!S1026)","v":""},{"$nulls":3},1,0,1]
[{"$nulls":7},{"$f":"T('2 REPAIR ESTIMATOR'!D1027:O1027)","v":""},{"$f":"'2 REPAIR ESTIMATOR'!P1027","v":0},{"$f":"T('2 REPAIR ESTIMATOR'!S1027)","v":""},{"$nulls":3},1,0,1]
[{"$nulls":7},{"$f":"T('2 REPAIR ESTIMATOR'!D1032:O1032)","v":"HVAC"},{"$f":"#REF!","v":{"$error":"#REF!"}},{"$f":"#REF!","v":{"$error":"#REF!"}},{"$nulls":3},{"$f":"SUM(N886:N925)","v":40},{"$f":"SUM(O886:O925)","v":0},{"$f":"SUM(P886:P925)","v":40}]
[{"$nulls":7},{"$f":"T('2 REPAIR ESTIMATOR'!D1033:O1033)","v":"HVAC, bid/allowance"},{"$f":"'2 REPAIR ESTIMATOR'!P1033","v":0},{"$f":"T('2 REPAIR ESTIMATOR'!S1033)","v":"ls"},{"$nulls":3},{"$f":"IF(I886<>\"\",1,0)","v":1},{"$f":"IF(K886=\"x\",1,0)","v":0},{"$f":"IF(AND(N886>0,O886=0),1,0)","v":1}]
[{"$nulls":7},{"$f":"T('2 REPAIR ESTIMATOR'!D1034:O1034)","v":"HVAC Rough-In, per hour"},{"$f":"'2 REPAIR ESTIMATOR'!P1034","v":0},{"$f":"T('2 REPAIR ESTIMATOR'!S1034)","v":"hrs"},{"$nulls":3},{"$f":"IF(I887<>\"\",1,0)","v":1},{"$f":"IF(K887=\"x\",1,0)","v":0},{"$f":"IF(AND(N887>0,O887=0),1,0)","v":1}]
[{"$nulls":7},{"$f":"T('2 REPAIR ESTIMATOR'!D1035:O1035)","v":"HVAC Finish Work, per hour"},{"$f":"'2 REPAIR ESTIMATOR'!P1035","v":0},{"$f":"T('2 REPAIR ESTIMATOR'!S1035)","v":"hrs"},{"$nulls":3},1,0,1]
[{"$nulls":7},{"$f":"T('2 REPAIR ESTIMATOR'!D1036:O1036)","v":"Replace gas fired forced air unit, 1000 sf, 60k btus"},{"$f":"'2 REPAIR ESTIMATOR'!P1036","v":0},{"$f":"T('2 REPAIR ESTIMATOR'!S1036)","v":"ea"},{"$nulls":3},1,0,1]
[{"$nulls":7},{"$f":"T('2 REPAIR ESTIMATOR'!D1037:O1037)","v":"Replace gas fired forced air unit, 2,000, 80k btus"},{"$f":"'2 REPAIR ESTIMATOR'!P1037","v":0},{"$f":"T('2 REPAIR ESTIMATOR'!S1037)","v":"ea"},{"$nulls":3},1,0,1]
[{"$nulls":7},{"$f":"T('2 REPAIR ESTIMATOR'!D1038:O1038)","v":"Replace gas fired forced air unit, 3,000, 100k btus"},{"$f":"'2 REPAIR ESTIMATOR'!P1038","v":0},{"$f":"T('2 REPAIR ESTIMATOR'!S1038)","v":"ea"},{"$nulls":3},1,0,1]
[{"$nulls":7},{"$f":"T('2 REPAIR ESTIMATOR'!D1039:O1039)","v":"Replace air conditioning unit, ~1,000 sf, 2 ton"},{"$f":"'2 REPAIR ESTIMATOR'!P1039","v":0},{"$f":"T('2 REPAIR ESTIMATOR'!S1039)","v":"ea"},{"$nulls":3},1,0,1]
[{"$nulls":7},{"$f":"T('2 REPAIR ESTIMATOR'!D1040:O1040)","v":"Replace air conditioning unit, ~2,000 sf, 3.5 ton"},{"$f":"'2 REPAIR ESTIMATOR'!P1040","v":0},{"$f":"T('2 REPAIR ESTIMATOR'!S1040)","v":"ea"},{"$nulls":3},1,0,1]
[{"$nulls":7},{"$f":"T('2 REPAIR ESTIMATOR'!D1041:O1041)","v":"Replace air conditioning unit, ~3,000sf, 5 ton"},{"$f":"'2 REPAIR ESTIMATOR'!P1041","v":0},{"$f":"T('2 REPAIR ESTIMATOR'!S1041)","v":"ea"},{"$nulls":3},1,0,1]
[{"$nulls":7},{"$f":"T('2 REPAIR ESTIMATOR'!D1042:O1042)","v":"Hotel type, hot/cold packaged unit"},{"$f":"'2 REPAIR ESTIMATOR'!P1042","v":0},{"$f":"T('2 REPAIR ESTIMATOR'!S1042)","v":"ea"},{"$nulls":3},1,0,1]
[{"$nulls":7},{"$f":"T('2 REPAIR ESTIMATOR'!D1043:O1043)","v":"Window mounted unit"},{"$f":"'2 REPAIR ESTIMATOR'!P1043","v":0},{"$f":"T('2 REPAIR ESTIMATOR'!S1043)","v":"ea"},{"$nulls":3},1,0,1]
[{"$nulls":7},{"$f":"T('2 REPAIR ESTIMATOR'!D1044:O1044)","v":"HVAC equipment tune-up/service call"},{"$f":"'2 REPAIR ESTIMATOR'!P1044","v":0},{"$f":"T('2 REPAIR ESTIMATOR'!S1044)","v":"ea"},{"$nulls":3},1,0,1]
[{"$nulls":7},{"$f":"T('2 REPAIR ESTIMATOR'!D1045:O1045)","v":"Programmable thermostat"},{"$f":"'2 REPAIR ESTIMATOR'!P1045","v":1},{"$f":"T('2 REPAIR ESTIMATOR'!S1045)","v":"ea"},{"$nulls":3},1,0,1]
[{"$nulls":7},{"$f":"T('2 REPAIR ESTIMATOR'!D1046:O1046)","v":"Replace supply air grilles/returns"},{"$f":"'2 REPAIR ESTIMATOR'!P1046","v":15},{"$f":"T('2 REPAIR ESTIMATOR'!S1046)","v":"ea"},{"$nulls":3},1,0,1]
[{"$nulls":7},{"$f":"T('2 REPAIR ESTIMATOR'!D1047:O1047)","v":"Clean ductwork"},{"$f":"'2 REPAIR ESTIMATOR'!P1047","v":0},{"$f":"T('2 REPAIR ESTIMATOR'!S1047)","v":"ls"},{"$nulls":3},1,0,1]
[{"$nulls":7},{"$f":"T('2 REPAIR ESTIMATOR'!D1048:O1048)","v":""},{"$f":"'2 REPAIR ESTIMATOR'!P1048","v":0},{"$f":"T('2 REPAIR ESTIMATOR'!S1048)","v":""},{"$nulls":3},1,0,1]
[{"$nulls":7},{"$f":"T('2 REPAIR ESTIMATOR'!D1049:O1049)","v":""},{"$f":"'2 REPAIR ESTIMATOR'!P1049","v":0},{"$f":"T('2 REPAIR ESTIMATOR'!S1049)","v":""},{"$nulls":3},1,0,1]
[{"$nulls":7},{"$f":"T('2 REPAIR ESTIMATOR'!D1050:O1050)","v":""},{"$f":"'2 REPAIR ESTIMATOR'!P1050","v":0},{"$f":"T('2 REPAIR ESTIMATOR'!S1050)","v":""},{"$nulls":3},1,0,1]
[{"$nulls":7},{"$f":"T('2 REPAIR ESTIMATOR'!D1051:O1051)","v":""},{"$f":"'2 REPAIR ESTIMATOR'!P1051","v":0},{"$f":"T('2 REPAIR ESTIMATOR'!S1051)","v":""},{"$nulls":3},1,0,1]
[{"$nulls":7},{"$f":"T('2 REPAIR ESTIMATOR'!D1052:O1052)","v":""},{"$f":"'2 REPAIR ESTIMATOR'!P1052","v":0},{"$f":"T('2 REPAIR ESTIMATOR'!S1052)","v":""},{"$nulls":3},1,0,1]
[{"$nulls":7},{"$f":"T('2 REPAIR ESTIMATOR'!D1053:O1053)","v":""},{"$f":"'2 REPAIR ESTIMATOR'!P1053","v":0},{"$f":"T('2 REPAIR ESTIMATOR'!S1053)","v":""},{"$nulls":3},1,0,1]
[{"$nulls":7},{"$f":"T('2 REPAIR ESTIMATOR'!D1054:O1054)","v":""},{"$f":"'2 REPAIR ESTIMATOR'!P1054","v":0},{"$f":"T('2 REPAIR ESTIMATOR'!S1054)","v":""},{"$nulls":3},1,0,1]
[{"$nulls":7},{"$f":"T('2 REPAIR ESTIMATOR'!D1055:O1055)","v":""},{"$f":"'2 REPAIR ESTIMATOR'!P1055","v":0},{"$f":"T('2 REPAIR ESTIMATOR'!S1055)","v":""},{"$nulls":3},1,0,1]
[{"$nulls":7},{"$f":"T('2 REPAIR ESTIMATOR'!D1056:O1056)","v":""},{"$f":"'2 REPAIR ESTIMATOR'!P1056","v":0},{"$f":"T('2 REPAIR ESTIMATOR'!S1056)","v":""},{"$nulls":3},1,0,1]
[{"$nulls":7},{"$f":"T('2 REPAIR ESTIMATOR'!D1057:O1057)","v":""},{"$f":"'2 REPAIR ESTIMATOR'!P1057","v":0},{"$f":"T('2 REPAIR ESTIMATOR'!S1057)","v":""},{"$nulls":3},1,0,1]
[{"$nulls":7},{"$f":"T('2 REPAIR ESTIMATOR'!D1058:O1058)","v":""},{"$f":"'2 REPAIR ESTIMATOR'!P1058","v":0},{"$f":"T('2 REPAIR ESTIMATOR'!S1058)","v":""},{"$nulls":3},1,0,1]
[{"$nulls":7},{"$f":"T('2 REPAIR ESTIMATOR'!D1059:O1059)","v":""},{"$f":"'2 REPAIR ESTIMATOR'!P1059","v":0},{"$f":"T('2 REPAIR ESTIMATOR'!S1059)","v":""},{"$nulls":3},1,0,1]
[{"$nulls":7},{"$f":"T('2 REPAIR ESTIMATOR'!D1060:O1060)","v":""},{"$f":"'2 REPAIR ESTIMATOR'!P1060","v":0},{"$f":"T('2 REPAIR ESTIMATOR'!S1060)","v":""},{"$nulls":3},1,0,1]
[{"$nulls":7},{"$f":"T('2 REPAIR ESTIMATOR'!D1061:O1061)","v":""},{"$f":"'2 REPAIR ESTIMATOR'!P1061","v":0},{"$f":"T('2 REPAIR ESTIMATOR'!S1061)","v":""},{"$nulls":3},1,0,1]
[{"$nulls":7},{"$f":"T('2 REPAIR ESTIMATOR'!D1062:O1062)","v":""},{"$f":"'2 REPAIR ESTIMATOR'!P1062","v":0},{"$f":"T('2 REPAIR ESTIMATOR'!S1062)","v":""},{"$nulls":3},1,0,1]
[{"$nulls":7},{"$f":"T('2 REPAIR ESTIMATOR'!D1063:O1063)","v":""},{"$f":"'2 REPAIR ESTIMATOR'!P1063","v":0},{"$f":"T('2 REPAIR ESTIMATOR'!S1063)","v":""},{"$nulls":3},1,0,1]
[{"$nulls":7},{"$f":"T('2 REPAIR ESTIMATOR'!D1064:O1064)","v":""},{"$f":"'2 REPAIR ESTIMATOR'!P1064","v":0},{"$f":"T('2 REPAIR ESTIMATOR'!S1064)","v":""},{"$nulls":3},1,0,1]
[{"$nulls":7},{"$f":"T('2 REPAIR ESTIMATOR'!D1065:O1065)","v":""},{"$f":"'2 REPAIR ESTIMATOR'!P1065","v":0},{"$f":"T('2 REPAIR ESTIMATOR'!S1065)","v":""},{"$nulls":3},1,0,1]
[{"$nulls":7},{"$f":"T('2 REPAIR ESTIMATOR'!D1066:O1066)","v":""},{"$f":"'2 REPAIR ESTIMATOR'!P1066","v":0},{"$f":"T('2 REPAIR ESTIMATOR'!S1066)","v":""},{"$nulls":3},1,0,1]
[{"$nulls":7},{"$f":"T('2 REPAIR ESTIMATOR'!D1067:O1067)","v":""},{"$f":"'2 REPAIR ESTIMATOR'!P1067","v":0},{"$f":"T('2 REPAIR ESTIMATOR'!S1067)","v":""},{"$nulls":3},1,0,1]
[{"$nulls":7},{"$f":"T('2 REPAIR ESTIMATOR'!D1068:O1068)","v":""},{"$f":"'2 REPAIR ESTIMATOR'!P1068","v":0},{"$f":"T('2 REPAIR ESTIMATOR'!S1068)","v":""},{"$nulls":3},1,0,1]
[{"$nulls":7},{"$f":"T('2 REPAIR ESTIMATOR'!D1069:O1069)","v":""},{"$f":"'2 REPAIR ESTIMATOR'!P1069","v":0},{"$f":"T('2 REPAIR ESTIMATOR'!S1069)","v":""},{"$nulls":3},1,0,1]
[{"$nulls":7},{"$f":"T('2 REPAIR ESTIMATOR'!D1070:O1070)","v":""},{"$f":"'2 REPAIR ESTIMATOR'!P1070","v":0},{"$f":"T('2 REPAIR ESTIMATOR'!S1070)","v":""},{"$nulls":3},1,0,1]
[{"$nulls":7},{"$f":"T('2 REPAIR ESTIMATOR'!D1071:O1071)","v":""},{"$f":"'2 REPAIR ESTIMATOR'!P1071","v":0},{"$f":"T('2 REPAIR ESTIMATOR'!S1071)","v":""},{"$nulls":3},1,0,1]
[{"$nulls":7},{"$f":"T('2 REPAIR ESTIMATOR'!D1072:O1072)","v":""},{"$f":"'2 REPAIR ESTIMATOR'!P1072","v":0},{"$f":"T('2 REPAIR ESTIMATOR'!S1072)","v":""},{"$nulls":3},1,0,1]
[{"$nulls":7},{"$f":"T('2 REPAIR ESTIMATOR'!D1077:O1077)","v":"ELECTRICAL"},{"$f":"#REF!","v":{"$error":"#REF!"}},{"$f":"#REF!","v":{"$error":"#REF!"}},{"$nulls":3},{"$f":"SUM(N927:N966)","v":40},{"$f":"SUM(O927:O966)","v":0},{"$f":"SUM(P927:P966)","v":40}]
[{"$nulls":7},{"$f":"T('2 REPAIR ESTIMATOR'!D1078:O1078)","v":"Electrical, bid/allowance"},{"$f":"'2 REPAIR ESTIMATOR'!P1078","v":0},{"$f":"T('2 REPAIR ESTIMATOR'!S1078)","v":"ls"},{"$nulls":3},{"$f":"IF(I927<>\"\",1,0)","v":1},{"$f":"IF(K927=\"x\",1,0)","v":0},{"$f":"IF(AND(N927>0,O927=0),1,0)","v":1}]
[{"$nulls":7},{"$f":"T('2 REPAIR ESTIMATOR'!D1079:O1079)","v":"Miscellaneous Electrical "},{"$f":"'2 REPAIR ESTIMATOR'!P1079","v":0},{"$f":"T('2 REPAIR ESTIMATOR'!S1079)","v":""},{"$nulls":3},{"$f":"IF(I928<>\"\",1,0)","v":1},{"$f":"IF(K928=\"x\",1,0)","v":0},{"$f":"IF(AND(N928>0,O928=0),1,0)","v":1}]
[{"$nulls":7},{"$f":"T('2 REPAIR ESTIMATOR'!D1080:O1080)","v":"Electrical Rough-in, per hour"},{"$f":"'2 REPAIR ESTIMATOR'!P1080","v":0},{"$f":"T('2 REPAIR ESTIMATOR'!S1080)","v":"hrs"},{"$nulls":3},1,0,1]
[{"$nulls":7},{"$f":"T('2 REPAIR ESTIMATOR'!D1081:O1081)","v":"CATV Rough-in, per hour"},{"$f":"'2 REPAIR ESTIMATOR'!P1081","v":0},{"$f":"T('2 REPAIR ESTIMATOR'!S1081)","v":"hrs"},{"$nulls":3},1,0,1]
[{"$nulls":7},{"$f":"T('2 REPAIR ESTIMATOR'!D1082:O1082)","v":"Electrical Finish Work, per hour"},{"$f":"'2 REPAIR ESTIMATOR'!P1082","v":0},{"$f":"T('2 REPAIR ESTIMATOR'!S1082)","v":"hrs"},{"$nulls":3},1,0,1]
[{"$nulls":7},{"$f":"T('2 REPAIR ESTIMATOR'!D1083:O1083)","v":"Replace electrical panel, 100 AMP"},{"$f":"'2 REPAIR ESTIMATOR'!P1083","v":0},{"$f":"T('2 REPAIR ESTIMATOR'!S1083)","v":"ea"},{"$nulls":3},1,0,1]
[{"$nulls":7},{"$f":"T('2 REPAIR ESTIMATOR'!D1084:O1084)","v":"Replace electrical panel, 200 AMP"},{"$f":"'2 REPAIR ESTIMATOR'!P1084","v":0},{"$f":"T('2 REPAIR ESTIMATOR'!S1084)","v":"ea"},{"$nulls":3},1,0,1]
[{"$nulls":7},{"$f":"T('2 REPAIR ESTIMATOR'!D1085:O1085)","v":"Replace outlets, light switches"},{"$f":"'2 REPAIR ESTIMATOR'!P1085","v":0},{"$f":"T('2 REPAIR ESTIMATOR'!S1085)","v":"ea"},{"$nulls":3},1,0,1]
[{"$nulls":7},{"$f":"T('2 REPAIR ESTIMATOR'!D1086:O1086)","v":"Replace GFI outlets/ground back to panel"},{"$f":"'2 REPAIR ESTIMATOR'!P1086","v":0},{"$f":"T('2 REPAIR ESTIMATOR'!S1086)","v":"ea"},{"$nulls":3},1,0,1]
[{"$nulls":7},{"$f":"T('2 REPAIR ESTIMATOR'!D1087:O1087)","v":"Exhaust Fan"},{"$f":"'2 REPAIR ESTIMATOR'!P1087","v":0},{"$f":"T('2 REPAIR ESTIMATOR'!S1087)","v":"ea"},{"$nulls":3},1,0,1]
[{"$nulls":7},{"$f":"T('2 REPAIR ESTIMATOR'!D1088:O1088)","v":"Smoke detectors"},{"$f":"'2 REPAIR ESTIMATOR'!P1088","v":5},{"$f":"T('2 REPAIR ESTIMATOR'!S1088)","v":"ea"},{"$nulls":3},1,0,1]
[{"$nulls":7},{"$f":"T('2 REPAIR ESTIMATOR'!D1089:O1089)","v":"Carbon monoxide detector"},{"$f":"'2 REPAIR ESTIMATOR'!P1089","v":0},{"$f":"T('2 REPAIR ESTIMATOR'!S1089)","v":"ea"},{"$nulls":3},1,0,1]
[{"$nulls":7},{"$f":"T('2 REPAIR ESTIMATOR'!D1090:O1090)","v":"Lighting"},{"$f":"'2 REPAIR ESTIMATOR'!P1090","v":0},{"$f":"T('2 REPAIR ESTIMATOR'!S1090)","v":""},{"$nulls":3},1,0,1]
[{"$nulls":7},{"$f":"T('2 REPAIR ESTIMATOR'!D1091:O1091)","v":"Track/Pendent light"},{"$f":"'2 REPAIR ESTIMATOR'!P1091","v":1},{"$f":"T('2 REPAIR ESTIMATOR'!S1091)","v":"ea"},{"$nulls":3},1,0,1]
[{"$nulls":7},{"$f":"T('2 REPAIR ESTIMATOR'!D1092:O1092)","v":"Chandelier light fixture"},{"$f":"'2 REPAIR ESTIMATOR'!P1092","v":1},{"$f":"T('2 REPAIR ESTIMATOR'!S1092)","v":"ea"},{"$nulls":3},1,0,1]
[{"$nulls":7},{"$f":"T('2 REPAIR ESTIMATOR'!D1093:O1093)","v":"Ceiling dome light"},{"$f":"'2 REPAIR ESTIMATOR'!P1093","v":5},{"$f":"T('2 REPAIR ESTIMATOR'!S1093)","v":"ea"},{"$nulls":3},1,0,1]
[{"$nulls":7},{"$f":"T('2 REPAIR ESTIMATOR'!D1094:O1094)","v":"Ceiling fan fixture"},{"$f":"'2 REPAIR ESTIMATOR'!P1094","v":4},{"$f":"T('2 REPAIR ESTIMATOR'!S1094)","v":"ea"},{"$nulls":3},1,0,1]
[{"$nulls":7},{"$f":"T('2 REPAIR ESTIMATOR'!D1095:O1095)","v":"Bathroom vanity light"},{"$f":"'2 REPAIR ESTIMATOR'!P1095","v":2},{"$f":"T('2 REPAIR ESTIMATOR'!S1095)","v":"ea"},{"$nulls":3},1,0,1]
[{"$nulls":7},{"$f":"T('2 REPAIR ESTIMATOR'!D1096:O1096)","v":"Can lighting"},{"$f":"'2 REPAIR ESTIMATOR'!P1096","v":0},{"$f":"T('2 REPAIR ESTIMATOR'!S1096)","v":"ea"},{"$nulls":3},1,0,1]
[{"$nulls":7},{"$f":"T('2 REPAIR ESTIMATOR'!D1097:O1097)","v":"Exterior light fixture"},{"$f":"'2 REPAIR ESTIMATOR'!P1097","v":2},{"$f":"T('2 REPAIR ESTIMATOR'!S1097)","v":"ea"},{"$nulls":3},1,0,1]
[{"$nulls":7},{"$f":"T('2 REPAIR ESTIMATOR'!D1098:O1098)","v":""},{"$f":"'2 REPAIR ESTIMATOR'!P1098","v":0},{"$f":"T('2 REPAIR ESTIMATOR'!S1098)","v":""},{"$nulls":3},1,0,1]
[{"$nulls":7},{"$f":"T('2 REPAIR ESTIMATOR'!D1099:O1099)","v":""},{"$f":"'2 REPAIR ESTIMATOR'!P1099","v":0},{"$f":"T('2 REPAIR ESTIMATOR'!S1099)","v":""},{"$nulls":3},1,0,1]
[{"$nulls":7},{"$f":"T('2 REPAIR ESTIMATOR'!D1100:O1100)","v":""},{"$f":"'2 REPAIR ESTIMATOR'!P1100","v":0},{"$f":"T('2 REPAIR ESTIMATOR'!S1100)","v":""},{"$nulls":3},1,0,1]
[{"$nulls":7},{"$f":"T('2 REPAIR ESTIMATOR'!D1101:O1101)","v":""},{"$f":"'2 REPAIR ESTIMATOR'!P1101","v":0},{"$f":"T('2 REPAIR ESTIMATOR'!S1101)","v":""},{"$nulls":3},1,0,1]
[{"$nulls":7},{"$f":"T('2 REPAIR ESTIMATOR'!D1102:O1102)","v":""},{"$f":"'2 REPAIR ESTIMATOR'!P1102","v":0},{"$f":"T('2 REPAIR ESTIMATOR'!S1102)","v":""},{"$nulls":3},1,0,1]
[{"$nulls":7},{"$f":"T('2 REPAIR ESTIMATOR'!D1103:O1103)","v":""},{"$f":"'2 REPAIR ESTIMATOR'!P1103","v":0},{"$f":"T('2 REPAIR ESTIMATOR'!S1103)","v":""},{"$nulls":3},1,0,1]
[{"$nulls":7},{"$f":"T('2 REPAIR ESTIMATOR'!D1104:O1104)","v":""},{"$f":"'2 REPAIR ESTIMATOR'!P1104","v":0},{"$f":"T('2 REPAIR ESTIMATOR'!S1104)","v":""},{"$nulls":3},1,0,1]
[{"$nulls":7},{"$f":"T('2 REPAIR ESTIMATOR'!D1105:O1105)","v":""},{"$f":"'2 REPAIR ESTIMATOR'!P1105","v":0},{"$f":"T('2 REPAIR ESTIMATOR'!S1105)","v":""},{"$nulls":3},1,0,1]
[{"$nulls":7},{"$f":"T('2 REPAIR ESTIMATOR'!D1106:O1106)","v":""},{"$f":"'2 REPAIR ESTIMATOR'!P1106","v":0},{"$f":"T('2 REPAIR ESTIMATOR'!S1106)","v":""},{"$nulls":3},1,0,1]
[{"$nulls":7},{"$f":"T('2 REPAIR ESTIMATOR'!D1107:O1107)","v":""},{"$f":"'2 REPAIR ESTIMATOR'!P1107","v":0},{"$f":"T('2 REPAIR ESTIMATOR'!S1107)","v":""},{"$nulls":3},1,0,1]
[{"$nulls":7},{"$f":"T('2 REPAIR ESTIMATOR'!D1108:O1108)","v":""},{"$f":"'2 REPAIR ESTIMATOR'!P1108","v":0},{"$f":"T('2 REPAIR ESTIMATOR'!S1108)","v":""},{"$nulls":3},1,0,1]
[{"$nulls":7},{"$f":"T('2 REPAIR ESTIMATOR'!D1109:O1109)","v":""},{"$f":"'2 REPAIR ESTIMATOR'!P1109","v":0},{"$f":"T('2 REPAIR ESTIMATOR'!S1109)","v":""},{"$nulls":3},1,0,1]
[{"$nulls":7},{"$f":"T('2 REPAIR ESTIMATOR'!D1110:O1110)","v":""},{"$f":"'2 REPAIR ESTIMATOR'!P1110","v":0},{"$f":"T('2 REPAIR ESTIMATOR'!S1110)","v":""},{"$nulls":3},1,0,1]
[{"$nulls":7},{"$f":"T('2 REPAIR ESTIMATOR'!D1111:O1111)","v":""},{"$f":"'2 REPAIR ESTIMATOR'!P1111","v":0},{"$f":"T('2 REPAIR ESTIMATOR'!S1111)","v":""},{"$nulls":3},1,0,1]
[{"$nulls":7},{"$f":"T('2 REPAIR ESTIMATOR'!D1112:O1112)","v":""},{"$f":"'2 REPAIR ESTIMATOR'!P1112","v":0},{"$f":"T('2 REPAIR ESTIMATOR'!S1112)","v":""},{"$nulls":3},1,0,1]
[{"$nulls":7},{"$f":"T('2 REPAIR ESTIMATOR'!D1113:O1113)","v":""},{"$f":"'2 REPAIR ESTIMATOR'!P1113","v":0},{"$f":"T('2 REPAIR ESTIMATOR'!S1113)","v":""},{"$nulls":3},1,0,1]
[{"$nulls":7},{"$f":"T('2 REPAIR ESTIMATOR'!D1114:O1114)","v":""},{"$f":"'2 REPAIR ESTIMATOR'!P1114","v":0},{"$f":"T('2 REPAIR ESTIMATOR'!S1114)","v":""},{"$nulls":3},1,0,1]
[{"$nulls":7},{"$f":"T('2 REPAIR ESTIMATOR'!D1115:O1115)","v":""},{"$f":"'2 REPAIR ESTIMATOR'!P1115","v":0},{"$f":"T('2 REPAIR ESTIMATOR'!S1115)","v":""},{"$nulls":3},1,0,1]
[{"$nulls":7},{"$f":"T('2 REPAIR ESTIMATOR'!D1116:O1116)","v":""},{"$f":"'2 REPAIR ESTIMATOR'!P1116","v":0},{"$f":"T('2 REPAIR ESTIMATOR'!S1116)","v":""},{"$nulls":3},1,0,1]
[{"$nulls":7},{"$f":"T('2 REPAIR ESTIMATOR'!D1117:O1117)","v":""},{"$f":"'2 REPAIR ESTIMATOR'!P1117","v":0},{"$f":"T('2 REPAIR ESTIMATOR'!S1117)","v":""},{"$nulls":3},1,0,1]
[{"$nulls":7},{"$f":"T('2 REPAIR ESTIMATOR'!D1122:O1122)","v":"MISCELLANEOUS"},{"$f":"#REF!","v":{"$error":"#REF!"}},{"$f":"#REF!","v":{"$error":"#REF!"}},{"$nulls":3},{"$f":"SUM(N968:N1007)","v":40},{"$f":"SUM(O968:O1007)","v":0},{"$f":"SUM(P968:P1007)","v":40}]
[{"$nulls":7},{"$f":"T('2 REPAIR ESTIMATOR'!D1123:O1123)","v":"Bath accessories, towel bar, toilet disp, ea bathroom"},{"$f":"'2 REPAIR ESTIMATOR'!P1123","v":0},{"$f":"T('2 REPAIR ESTIMATOR'!S1123)","v":"ea"},{"$nulls":3},{"$f":"IF(I968<>\"\",1,0)","v":1},{"$f":"IF(K968=\"x\",1,0)","v":0},{"$f":"IF(AND(N968>0,O968=0),1,0)","v":1}]
[{"$nulls":7},{"$f":"T('2 REPAIR ESTIMATOR'!D1124:O1124)","v":"Bathroom mirrors"},{"$f":"'2 REPAIR ESTIMATOR'!P1124","v":0},{"$f":"T('2 REPAIR ESTIMATOR'!S1124)","v":"ea"},{"$nulls":3},{"$f":"IF(I969<>\"\",1,0)","v":1},{"$f":"IF(K969=\"x\",1,0)","v":0},{"$f":"IF(AND(N969>0,O969=0),1,0)","v":1}]
[{"$nulls":7},{"$f":"T('2 REPAIR ESTIMATOR'!D1125:O1125)","v":"Window coverings, each window"},{"$f":"'2 REPAIR ESTIMATOR'!P1125","v":0},{"$f":"T('2 REPAIR ESTIMATOR'!S1125)","v":"ea"},{"$nulls":3},1,0,1]
[{"$nulls":7},{"$f":"T('2 REPAIR ESTIMATOR'!D1126:O1126)","v":""},{"$f":"'2 REPAIR ESTIMATOR'!P1126","v":0},{"$f":"T('2 REPAIR ESTIMATOR'!S1126)","v":""},{"$nulls":3},1,0,1]
[{"$nulls":7},{"$f":"T('2 REPAIR ESTIMATOR'!D1127:O1127)","v":""},{"$f":"'2 REPAIR ESTIMATOR'!P1127","v":0},{"$f":"T('2 REPAIR ESTIMATOR'!S1127)","v":""},{"$nulls":3},1,0,1]
[{"$nulls":7},{"$f":"T('2 REPAIR ESTIMATOR'!D1128:O1128)","v":""},{"$f":"'2 REPAIR ESTIMATOR'!P1128","v":0},{"$f":"T('2 REPAIR ESTIMATOR'!S1128)","v":""},{"$nulls":3},1,0,1]
[{"$nulls":7},{"$f":"T('2 REPAIR ESTIMATOR'!D1129:O1129)","v":""},{"$f":"'2 REPAIR ESTIMATOR'!P1129","v":0},{"$f":"T('2 REPAIR ESTIMATOR'!S1129)","v":""},{"$nulls":3},1,0,1]
[{"$nulls":7},{"$f":"T('2 REPAIR ESTIMATOR'!D1130:O1130)","v":""},{"$f":"'2 REPAIR ESTIMATOR'!P1130","v":0},{"$f":"T('2 REPAIR ESTIMATOR'!S1130)","v":""},{"$nulls":3},1,0,1]
[{"$nulls":7},{"$f":"T('2 REPAIR ESTIMATOR'!D1131:O1131)","v":""},{"$f":"'2 REPAIR ESTIMATOR'!P1131","v":0},{"$f":"T('2 REPAIR ESTIMATOR'!S1131)","v":""},{"$nulls":3},1,0,1]
[{"$nulls":7},{"$f":"T('2 REPAIR ESTIMATOR'!D1132:O1132)","v":""},{"$f":"'2 REPAIR ESTIMATOR'!P1132","v":0},{"$f":"T('2 REPAIR ESTIMATOR'!S1132)","v":""},{"$nulls":3},1,0,1]
[{"$nulls":7},{"$f":"T('2 REPAIR ESTIMATOR'!D1133:O1133)","v":""},{"$f":"'2 REPAIR ESTIMATOR'!P1133","v":0},{"$f":"T('2 REPAIR ESTIMATOR'!S1133)","v":""},{"$nulls":3},1,0,1]
[{"$nulls":7},{"$f":"T('2 REPAIR ESTIMATOR'!D1134:O1134)","v":""},{"$f":"'2 REPAIR ESTIMATOR'!P1134","v":0},{"$f":"T('2 REPAIR ESTIMATOR'!S1134)","v":""},{"$nulls":3},1,0,1]
[{"$nulls":7},{"$f":"T('2 REPAIR ESTIMATOR'!D1135:O1135)","v":""},{"$f":"'2 REPAIR ESTIMATOR'!P1135","v":0},{"$f":"T('2 REPAIR ESTIMATOR'!S1135)","v":""},{"$nulls":3},1,0,1]
[{"$nulls":7},{"$f":"T('2 REPAIR ESTIMATOR'!D1136:O1136)","v":""},{"$f":"'2 REPAIR ESTIMATOR'!P1136","v":0},{"$f":"T('2 REPAIR ESTIMATOR'!S1136)","v":""},{"$nulls":3},1,0,1]
[{"$nulls":7},{"$f":"T('2 REPAIR ESTIMATOR'!D1137:O1137)","v":""},{"$f":"'2 REPAIR ESTIMATOR'!P1137","v":0},{"$f":"T('2 REPAIR ESTIMATOR'!S1137)","v":""},{"$nulls":3},1,0,1]
[{"$nulls":7},{"$f":"T('2 REPAIR ESTIMATOR'!D1138:O1138)","v":""},{"$f":"'2 REPAIR ESTIMATOR'!P1138","v":0},{"$f":"T('2 REPAIR ESTIMATOR'!S1138)","v":""},{"$nulls":3},1,0,1]
[{"$nulls":7},{"$f":"T('2 REPAIR ESTIMATOR'!D1139:O1139)","v":""},{"$f":"'2 REPAIR ESTIMATOR'!P1139","v":0},{"$f":"T('2 REPAIR ESTIMATOR'!S1139)","v":""},{"$nulls":3},1,0,1]
[{"$nulls":7},{"$f":"T('2 REPAIR ESTIMATOR'!D1140:O1140)","v":""},{"$f":"'2 REPAIR ESTIMATOR'!P1140","v":0},{"$f":"T('2 REPAIR ESTIMATOR'!S1140)","v":""},{"$nulls":3},1,0,1]
[{"$nulls":7},{"$f":"T('2 REPAIR ESTIMATOR'!D1141:O1141)","v":""},{"$f":"'2 REPAIR ESTIMATOR'!P1141","v":0},{"$f":"T('2 REPAIR ESTIMATOR'!S1141)","v":""},{"$nulls":3},1,0,1]
[{"$nulls":7},{"$f":"T('2 REPAIR ESTIMATOR'!D1142:O1142)","v":""},{"$f":"'2 REPAIR ESTIMATOR'!P1142","v":0},{"$f":"T('2 REPAIR ESTIMATOR'!S1142)","v":""},{"$nulls":3},1,0,1]
[{"$nulls":7},{"$f":"T('2 REPAIR ESTIMATOR'!D1143:O1143)","v":""},{"$f":"'2 REPAIR ESTIMATOR'!P1143","v":0},{"$f":"T('2 REPAIR ESTIMATOR'!S1143)","v":""},{"$nulls":3},1,0,1]
[{"$nulls":7},{"$f":"T('2 REPAIR ESTIMATOR'!D1144:O1144)","v":""},{"$f":"'2 REPAIR ESTIMATOR'!P1144","v":0},{"$f":"T('2 REPAIR ESTIMATOR'!S1144)","v":""},{"$nulls":3},1,0,1]
[{"$nulls":7},{"$f":"T('2 REPAIR ESTIMATOR'!D1145:O1145)","v":""},{"$f":"'2 REPAIR ESTIMATOR'!P1145","v":0},{"$f":"T('2 REPAIR ESTIMATOR'!S1145)","v":""},{"$nulls":3},1,0,1]
[{"$nulls":7},{"$f":"T('2 REPAIR ESTIMATOR'!D1146:O1146)","v":""},{"$f":"'2 REPAIR ESTIMATOR'!P1146","v":0},{"$f":"T('2 REPAIR ESTIMATOR'!S1146)","v":""},{"$nulls":3},1,0,1]
[{"$nulls":7},{"$f":"T('2 REPAIR ESTIMATOR'!D1147:O1147)","v":""},{"$f":"'2 REPAIR ESTIMATOR'!P1147","v":0},{"$f":"T('2 REPAIR ESTIMATOR'!S1147)","v":""},{"$nulls":3},1,0,1]
[{"$nulls":7},{"$f":"T('2 REPAIR ESTIMATOR'!D1148:O1148)","v":""},{"$f":"'2 REPAIR ESTIMATOR'!P1148","v":0},{"$f":"T('2 REPAIR ESTIMATOR'!S1148)","v":""},{"$nulls":3},1,0,1]
[{"$nulls":7},{"$f":"T('2 REPAIR ESTIMATOR'!D1149:O1149)","v":""},{"$f":"'2 REPAIR ESTIMATOR'!P1149","v":0},{"$f":"T('2 REPAIR ESTIMATOR'!S1149)","v":""},{"$nulls":3},1,0,1]
[{"$nulls":7},{"$f":"T('2 REPAIR ESTIMATOR'!D1150:O1150)","v":""},{"$f":"'2 REPAIR ESTIMATOR'!P1150","v":0},{"$f":"T('2 REPAIR ESTIMATOR'!S1150)","v":""},{"$nulls":3},1,0,1]
[{"$nulls":7},{"$f":"T('2 REPAIR ESTIMATOR'!D1151:O1151)","v":""},{"$f":"'2 REPAIR ESTIMATOR'!P1151","v":0},{"$f":"T('2 REPAIR ESTIMATOR'!S1151)","v":""},{"$nulls":3},1,0,1]
[{"$nulls":7},{"$f":"T('2 REPAIR ESTIMATOR'!D1152:O1152)","v":""},{"$f":"'2 REPAIR ESTIMATOR'!P1152","v":0},{"$f":"T('2 REPAIR ESTIMATOR'!S1152)","v":""},{"$nulls":3},1,0,1]
[{"$nulls":7},{"$f":"T('2 REPAIR ESTIMATOR'!D1153:O1153)","v":""},{"$f":"'2 REPAIR ESTIMATOR'!P1153","v":0},{"$f":"T('2 REPAIR ESTIMATOR'!S1153)","v":""},{"$nulls":3},1,0,1]
[{"$nulls":7},{"$f":"T('2 REPAIR ESTIMATOR'!D1154:O1154)","v":""},{"$f":"'2 REPAIR ESTIMATOR'!P1154","v":0},{"$f":"T('2 REPAIR ESTIMATOR'!S1154)","v":""},{"$nulls":3},1,0,1]
[{"$nulls":7},{"$f":"T('2 REPAIR ESTIMATOR'!D1155:O1155)","v":""},{"$f":"'2 REPAIR ESTIMATOR'!P1155","v":0},{"$f":"T('2 REPAIR ESTIMATOR'!S1155)","v":""},{"$nulls":3},1,0,1]
[{"$nulls":7},{"$f":"T('2 REPAIR ESTIMATOR'!D1156:O1156)","v":""},{"$f":"'2 REPAIR ESTIMATOR'!P1156","v":0},{"$f":"T('2 REPAIR ESTIMATOR'!S1156)","v":""},{"$nulls":3},1,0,1]
[{"$nulls":7},{"$f":"T('2 REPAIR ESTIMATOR'!D1157:O1157)","v":""},{"$f":"'2 REPAIR ESTIMATOR'!P1157","v":0},{"$f":"T('2 REPAIR ESTIMATOR'!S1157)","v":""},{"$nulls":3},1,0,1]
[{"$nulls":7},{"$f":"T('2 REPAIR ESTIMATOR'!D1158:O1158)","v":""},{"$f":"'2 REPAIR ESTIMATOR'!P1158","v":0},{"$f":"T('2 REPAIR ESTIMATOR'!S1158)","v":""},{"$nulls":3},1,0,1]
[{"$nulls":7},{"$f":"T('2 REPAIR ESTIMATOR'!D1159:O1159)","v":""},{"$f":"'2 REPAIR ESTIMATOR'!P1159","v":0},{"$f":"T('2 REPAIR ESTIMATOR'!S1159)","v":""},{"$nulls":3},1,0,1]
[{"$nulls":7},{"$f":"T('2 REPAIR ESTIMATOR'!D1160:O1160)","v":""},{"$f":"'2 REPAIR ESTIMATOR'!P1160","v":0},{"$f":"T('2 REPAIR ESTIMATOR'!S1160)","v":""},{"$nulls":3},1,0,1]
[{"$nulls":7},{"$f":"T('2 REPAIR ESTIMATOR'!D1161:O1161)","v":""},{"$f":"'2 REPAIR ESTIMATOR'!P1161","v":0},{"$f":"T('2 REPAIR ESTIMATOR'!S1161)","v":""},{"$nulls":3},1,0,1]
[{"$nulls":7},{"$f":"T('2 REPAIR ESTIMATOR'!D1162:O1162)","v":""},{"$f":"'2 REPAIR ESTIMATOR'!P1162","v":0},{"$f":"T('2 REPAIR ESTIMATOR'!S1162)","v":""},{"$nulls":3},1,0,1]
[{"$nulls":7},"© 2018 by Houseflippingspreadsheet.com. All rights reserved"]

{"sheet":"PUNCHLIST","index":47,"n_rows":166,"n_cols":38,"rows_kept":166,"hidden":true,"merged":[[1,4,1,12],[3,17,8,47],[10,13,10,38],[11,13,11,38],[12,13,12,38],[14,13,15,30],[14,32,15,50],[17,14,18,30],[17,33,18,50],[19,18,19,30],[19,37,19,50],[21,18,21,30],[21,37,21,50],[23,18,23,30],[23,37,23,50],[25,18,25,30],[25,37,25,50],[27,18,27,30],[27,37,27,50],[29,18,29,30],[29,33,29,35],[29,37,29,50],[31,18,31,30],[31,33,31,35],[31,37,31,50],[33,14,33,16],[33,18,33,30],[33,33,34,50],[35,14,35,16],[35,18,35,30],[35,37,35,50],[37,14,38,30],[37,37,37,50],[39,18,39,30],[39,37,39,50],[41,18,41,30],[41,37,41,50],[43,18,43,30],[43,33,43,35],[43,37,43,50],[45,18,45,30],[45,33,45,35],[45,37,45,50],[47,18,47,30],[47,33,48,50],[49,18,49,30],[49,37,49,50],[51,14,51,16],[51,18,51,30],[51,37,51,50],[53,14,53,16],[53,18,53,30],[53,37,53,50],[55,13,56,30],[55,37,55,50],[57,18,57,30],[57,33,57,35],[57,37,57,50],[59,18,59,30],[59,33,59,35],[59,37,59,50],[61,18,61,30],[61,33,62,50],[63,18,63,30],[63,37,63,50],[65,18,65,30],[65,37,65,50],[67,18,67,30],[67,37,67,50],[69,14,69,16],[69,18,69,30],[69,33,69,35],[69,37,69,49],[71,14,71,16],[71,18,71,30],[71,33,71,35],[71,37,71,49],[74,13,85,50],[88,13,89,30],[88,32,89,50],[90,14,91,30],[90,33,91,50],[92,18,92,30],[92,37,92,50],[94,18,94,30],[94,37,94,50],[96,18,96,30],[96,37,96,50],[98,18,98,30],[98,33,99,50],[100,18,100,30],[100,37,100,50],[102,14,102,16],[102,18,102,30],[102,37,102,50],[104,14,104,16],[104,18,104,30],[104,37,104,50],[106,14,107,30],[106,33,107,50],[108,18,108,30],[108,37,108,50],[110,18,110,30],[110,37,110,50],[112,18,112,30],[112,37,112,50],[114,18,114,30],[114,37,114,50],[116,18,116,30],[116,33,117,50],[118,18,118,30],[118,37,118,50],[120,14,120,16],[120,18,120,30],[120,37,120,50],[122,14,122,16],[122,18,122,30],[122,33,123,50],[124,14,125,30],[124,37,124,50],[126,18,126,30],[126,37,126,50],[128,18,128,30],[128,37,128,50],[130,18,130,30],[130,37,130,50],[132,18,132,30],[132,37,132,50],[134,18,134,30],[134,37,134,50],[136,14,136,16],[136,18,136,30],[136,37,136,50],[138,14,138,16],[138,18,138,30],[141,13,163,50],[165,13,167,50]]}
[]
[{"$nulls":4},"PUNCH LIST REPORT "]
[]
[{"$nulls":17},"The Punch List report is a printer-friendly checklist that helps you close out your project.  The Punch List Report has a detailed checklist of items that you need to ensure are ready and completed before you place your property on the market.\n"]
[]
[]
[]
[]
[]
[]
[{"$nulls":13},"FINAL WALKTHROUGH / PUNCHLIST"]
[{"$nulls":13},{"$f":"T(Street_Address)","v":"1234 Main St"}]
[{"$nulls":13},{"$f":"T(City_State_Zip)","v":"Kansas City, MO 64116"}]
[]
[{"$nulls":13},"Kitchen",{"$nulls":18},"Interior Finishes"]
[]
[]
[{"$nulls":14},"Cabinets/Countertops",{"$nulls":18},"Flooring"]
[]
[{"$nulls":14},"Y",null,"N",null,"Cabinet doors open and close freely",{"$nulls":14},"Y",null,"N",null,"No loose carpet threads/seams"]
[]
[{"$nulls":14},"Y",null,"N",null,"Cabinet knobs secure/in-place",{"$nulls":14},"Y",null,"N",null,"Transition strips in-place"]
[]
[{"$nulls":14},"Y",null,"N",null,"Cabinet shelving in-place",{"$nulls":14},"Y",null,"N",null,"No major floor squeaks/imperfections"]
[]
[{"$nulls":14},"Y",null,"N",null,"Trim/moldings/end-panels in-place",{"$nulls":14},"Y",null,"N",null,"Floor protection for carpet/hardwood "]
[]
[{"$nulls":14},"Y",null,"N",null,"Cabinets/countertops caulked",{"$nulls":14},"Y",null,"N",null,"Floor vacuumed/cleaned"]
[]
[{"$nulls":14},"Y",null,"N",null,"Cabinets/countertops cleaned",{"$nulls":14},"Other:"]
[]
[{"$nulls":14},"Y",null,"N",null,"GFI Outlets installed/tested",{"$nulls":14},"Other:"]
[]
[{"$nulls":14},"Other:",{"$nulls":18},"Painting"]
[]
[{"$nulls":14},"Other:",{"$nulls":18},"Y",null,"N",null,"Interior Wall/Ceiling Paint/Touch-Up"]
[]
[{"$nulls":14},"Appliances",{"$nulls":18},"Y",null,"N",null,"Doors/Trim Paint/Touch-Up"]
[]
[{"$nulls":14},"Y",null,"N",null,"Refrigerator water supply lines hooked-up",{"$nulls":14},"Y",null,"N",null,"Trim nail holes filled/ caulked"]
[]
[{"$nulls":14},"Y",null,"N",null,"Dishwasher tested w/ no leaks",{"$nulls":14},"Y",null,"N",null,"No scuffs/blemishes/raw wood/bare spots"]
[]
[{"$nulls":14},"Y",null,"N",null,"Stove tested (if gas verify no leaks)",{"$nulls":14},"Other:"]
[]
[{"$nulls":14},"Y",null,"N",null,"Range hood tested",{"$nulls":14},"Other:"]
[]
[{"$nulls":14},"Y",null,"N",null,"Plastic/protective coverings removed",{"$nulls":14},"Doors/Trim"]
[]
[{"$nulls":14},"Y",null,"N",null,"Timers set ",{"$nulls":14},"Y",null,"N",null,"Doors open and close freely/operable"]
[]
[{"$nulls":14},"Other:",{"$nulls":18},"Y",null,"N",null,"Door swings correctly"]
[]
[{"$nulls":14},"Other:",{"$nulls":18},"Y",null,"N",null,"All door knobs/handles/stops  in-place"]
[]
[{"$nulls":13},"Bathrooms",{"$nulls":19},"Y",null,"N",null,"Handrails secure/in-place"]
[]
[{"$nulls":14},"Y",null,"N",null,"Bathroom vanities secure/in-place",{"$nulls":14},"Other:"]
[]
[{"$nulls":14},"Y",null,"N",null,"Mirrors/accessories secure/in-place",{"$nulls":14},"Other:"]
[]
[{"$nulls":14},"Y",null,"N",null,"Bathroom tile sealed/caulked",{"$nulls":14},"Other"]
[]
[{"$nulls":14},"Y",null,"N",null,"Bathroom tile sealed/caulked",{"$nulls":14},"Y",null,"N",null,"Fire place tested (gas key available)"]
[]
[{"$nulls":14},"Y",null,"N",null,"Exhaust fans installed/operable",{"$nulls":14},"Y",null,"N",null,"Door bell operable"]
[]
[{"$nulls":14},"Y",null,"N",null,"GFI Outlets installed/tested",{"$nulls":14},"Y",null,"N",null,"Smoke detectors installed/operable"]
[]
[{"$nulls":14},"Other:",{"$nulls":18},"Other:"]
[]
[{"$nulls":14},"Other:",{"$nulls":18},"Other:"]
[]
[]
[{"$nulls":13},"Other Notes:"]
{"$rows_empty":13}
[{"$nulls":13},"MEP Systems",{"$nulls":18},"Exterior Improvements"]
[]
[{"$nulls":14},"Electrical",{"$nulls":18},"Roofing"]
[]
[{"$nulls":14},"Y",null,"N",null,"All outlets/switches/covers new/clean",{"$nulls":14},"Y",null,"N",null,"Roof maintenance/repair "]
[]
[{"$nulls":14},"Y",null,"N",null,"All outlets tested",{"$nulls":14},"Y",null,"N",null,"Chimney cap in-place/good condition"]
[]
[{"$nulls":14},"Y",null,"N",null,"All fans/lights secured/tested",{"$nulls":14},"Y",null,"N",null,"Gutters/downspouts/splash blocks in-place"]
[]
[{"$nulls":14},"Y",null,"N",null,"No exposed wiring/junctions",{"$nulls":14},"Siding"]
[]
[{"$nulls":14},"Y",null,"N",null,"Light bulbs working",{"$nulls":14},"Y",null,"N",null,"Power washing of siding"]
[]
[{"$nulls":14},"Other:",{"$nulls":18},"Y",null,"N",null,"Siding/trim/fascia wood rot"]
[]
[{"$nulls":14},"Other:",{"$nulls":18},"Y",null,"N",null,"Exterior Painting/Touch-up "]
[]
[{"$nulls":14},"Plumbing",{"$nulls":18},"Exterior Doors/Windows"]
[]
[{"$nulls":14},"Y",null,"N",null,"No faucet leaks/drain line leaks",{"$nulls":14},"Y",null,"N",null,"Entry door hardware in-place/secure"]
[]
[{"$nulls":14},"Y",null,"N",null,"Hot/Cold faucets correct for all sinks",{"$nulls":14},"Y",null,"N",null,"Entry doors keyed (keys in lock-box)"]
[]
[{"$nulls":14},"Y",null,"N",null,"Shower/tub/toilet fixtures operable",{"$nulls":14},"Y",null,"N",null,"Windows open and close freely/operable"]
[]
[{"$nulls":14},"Y",null,"N",null,"Caulking of plumbing fixtures",{"$nulls":14},"Y",null,"N",null,"Caulking around doors/windows"]
[]
[{"$nulls":14},"Y",null,"N",null,"HW heater discharge pipe/flue piping",{"$nulls":14},"Decking/Misc. Carpentry"]
[]
[{"$nulls":14},"Y",null,"N",null,"Garbage disposal operable",{"$nulls":14},"Y",null,"N",null,"Decking/railings secured"]
[]
[{"$nulls":14},"Other:",{"$nulls":18},"Y",null,"N",null,"Joist hangers/ledger lag bolts"]
[]
[{"$nulls":14},"Other:",{"$nulls":18},"Landscaping"]
[]
[{"$nulls":14},"HVAC",{"$nulls":18},"Y",null,"N",null,"Bushes/shrubs/mulch beds in-place"]
[]
[{"$nulls":14},"Y",null,"N",null,"HVAC maintenance/repairs",{"$nulls":14},"Y",null,"N",null,"Sodding/seeding in-place"]
[]
[{"$nulls":14},"Y",null,"N",null,"Furnace filter changed",{"$nulls":14},"Y",null,"N",null,"Trees/bushes trimmed back from house"]
[]
[{"$nulls":14},"Y",null,"N",null,"Thermostat operable/Set to comfortable  temp",{"$nulls":14},"Y",null,"N",null,"Fence in-place/good condition"]
[]
[{"$nulls":14},"Y",null,"N",null,"Duct grilles/registers new/clean",{"$nulls":14},"Y",null,"N",null,"Mailbox/address #'s in place"]
[]
[{"$nulls":14},"Y",null,"N",null,"Ductwork cleaned/working order",{"$nulls":14},"Y",null,"N",null,"Shed repair/good condition"]
[]
[{"$nulls":14},"Other:",{"$nulls":18},"Y",null,"N",null,"General site debris and trash clean-up"]
[]
[{"$nulls":14},"Other:"]
[]
[]
[{"$nulls":13},"Other Notes:"]
{"$rows_empty":23}
[{"$nulls":13},"© 2018 by Houseflippingspreadsheet.com. All rights reserved"]

{"sheet":"LIEN WAIVER","index":48,"n_rows":103,"n_cols":40,"rows_kept":103,"hidden":true,"merged":[[1,1,1,5],[3,9,6,41],[10,5,12,27],[14,5,16,25],[17,5,18,25],[19,33,20,43],[22,33,24,37],[22,38,24,38],[22,39,24,43],[25,34,25,42],[29,6,31,22],[34,6,36,12],[34,13,36,43],[39,6,40,13],[39,14,40,43],[43,6,44,9],[43,10,44,18],[43,19,44,44],[47,6,48,38],[52,7,54,31],[56,7,58,31],[64,23,66,43],[69,23,71,43],[74,23,76,43],[79,23,81,43],[84,23,86,43],[101,5,101,15],[101,16,101,22],[101,23,101,33],[101,34,101,45],[102,5,102,45]]}
[]
[null,"LIEN WAIVER REPORT"]
[]
[{"$nulls":9},"The lien waiver report is a legal document used to receive signed lien waivers from contractors, subcontractors or vendors stating they have received payment for the work performed and waiving future lien rights to your property.\n"]
[]
[]
[]
[]
[]
[]
[{"$nulls":5},"LIEN WAIVER"]
[]
[]
[]
[{"$nulls":5},{"$f":"T(Street_Address)","v":"1234 Main St"}]
[]
[]
[{"$nulls":5},{"$f":"T(City_State_Zip)","v":"Kansas City, MO 64116"}]
[]
[{"$nulls":33},"TYPE OF WAIVER:"]
[]
[]
[{"$nulls":33},"FINAL",{"$nulls":4},"OR","PARTIAL"]
[]
[]
[{"$nulls":34},"CIRCLE ONE THAT APPLIES"]
[]
[]
[]
[{"$nulls":6},"To Whom It May Concern:"]
[]
[]
[]
[]
[{"$nulls":6},"I, the undersigned:"]
[]
[]
[{"$nulls":13},"NAME"]
[]
[{"$nulls":6},"for and consideration of "]
[]
[{"$nulls":14},"AMOUNT, WRITTEN OUT"]
[]
[{"$nulls":6},"Dollars     ($",{"$nulls":12},"do hereby waive, release, remise and relinquish any and all right to claim any lien"]
[]
[{"$nulls":10},"AMOUNT, IN NUMBERS"]
[]
[{"$nulls":6},"or liens for labor, materials furnished or work performed of any kind on the following described property:"]
[]
[]
[]
[]
[{"$nulls":7},{"$f":"Street_Address","v":"1234 Main St"}]
[]
[]
[{"$nulls":7},"STREET ADDRESS"]
[{"$nulls":7},{"$f":"City_State_Zip","v":"Kansas City, MO 64116"}]
[]
[]
[{"$nulls":7},"CITY, STATE, ZIP CODE"]
{"$rows_empty":7}
[{"$nulls":23},"COMPANY NAME"]
[]
[]
[]
[]
[{"$nulls":23},"NAME (PRINTED)"]
[]
[]
[]
[]
[{"$nulls":23},"TITLE / POSITION"]
[]
[]
[]
[]
[{"$nulls":23},"SIGNATURE"]
[]
[]
[]
[]
[{"$nulls":23},"DATE"]
{"$rows_empty":13}
[{"$nulls":5},{"$f":"T(Company_Name)","v":"Dave Inc"},{"$nulls":10},{"$f":"(Company_Phone)","v":8161234567},{"$nulls":6},{"$f":"T(Company_Email)","v":"dave@venturesheets.com"},{"$nulls":10},{"$f":"T(Company_Website)","v":"www.venturesheets.com"}]
[{"$nulls":5},"© 2018 by Houseflippingspreadsheet.com. All rights reserved"]

{"sheet":"FOR SALE FLYER","index":49,"n_rows":64,"n_cols":21,"rows_kept":64,"hidden":true,"merged":[[3,4,6,23],[11,18,11,19],[11,20,11,26],[11,28,12,30],[12,18,12,19],[12,20,12,26],[13,18,13,19],[13,20,13,26],[13,28,15,30],[16,1,34,26],[16,28,18,30],[63,1,63,26]]}
[]
["FOR SALE FLYER"]
[]
[{"$nulls":4},"The For Sale Flyer template can be used to market your finished rehab project to home buyers.  Simply upload your property photos, facts & features and print the report to a pdf as a paper copy & start marketing your property today."]
{"$rows_empty":7}
[{"$nulls":18},"email",null,{"$f":"Company_Email","v":"dave@venturesheets.com"}]
[{"$nulls":18},"phone",null,{"$f":"Company_Phone","v":8161234567}]
[{"$nulls":18},"website",null,{"$f":"Company_Website","v":"www.venturesheets.com"}]
{"$rows_empty":49}
[null,"© 2018 by Houseflippingspreadsheet.com. All rights reserved"]

{"sheet":"VENDOR CONTACT LIST","index":50,"n_rows":122,"n_cols":8,"rows_kept":122,"hidden":true,"merged":[[1,0,1,1],[10,1,14,3],[10,7,19,7],[15,1,17,3],[18,1,18,2],[18,3,18,6],[121,1,123,6]]}
[]
["VENDOR CONTACT LIST"]
{"$rows_empty":8}
[null,"VENDOR CONTACT LIST",{"$nulls":5},"DO NOT DELETE COLUMN - USED FOR REPORT SORT"]
[]
[]
[]
[]
[null,{"$f":"TODAY()","v":"2019-06-23"}]
[]
[]
[null,"COMPANY INFORMATION",null,"CONTACT INFORMATION"]
[null,"COMPANY NAME","VENDOR CATEGORY","FIRST NAME","LAST NAME","PHONE","EMAIL"]
[]
[null,{"$f":"T('ACCOUNTING SETUP'!Q9)","v":"First 1 Bank"},{"$f":"T('ACCOUNTING SETUP'!R9)","v":"Bank"},{"$f":"T('ACCOUNTING SETUP'!W9)","v":""},{"$f":"T('ACCOUNTING SETUP'!X9)","v":""},{"$f":"IF('ACCOUNTING SETUP'!Z9>0,'ACCOUNTING SETUP'!Z9,\"\")","v":""},{"$f":"T('ACCOUNTING SETUP'!AA9)","v":""},{"$f":"IF(B22=\"\",0,1)","v":1}]
[null,{"$f":"T('ACCOUNTING SETUP'!Q10)","v":"Defenbaugh Industries"},{"$f":"T('ACCOUNTING SETUP'!R10)","v":"Dumpster Rental"},{"$f":"T('ACCOUNTING SETUP'!W10)","v":""},{"$f":"T('ACCOUNTING SETUP'!X10)","v":""},{"$f":"IF('ACCOUNTING SETUP'!Z10>0,'ACCOUNTING SETUP'!Z10,\"\")","v":""},{"$f":"T('ACCOUNTING SETUP'!AA10)","v":""},{"$f":"IF(B23=\"\",0,1)","v":1}]
[null,{"$f":"T('ACCOUNTING SETUP'!Q11)","v":"Demolition Services Inc."},{"$f":"T('ACCOUNTING SETUP'!R11)","v":"Demolition Contractor"},{"$f":"T('ACCOUNTING SETUP'!W11)","v":""},{"$f":"T('ACCOUNTING SETUP'!X11)","v":""},{"$f":"IF('ACCOUNTING SETUP'!Z11>0,'ACCOUNTING SETUP'!Z11,\"\")","v":""},{"$f":"T('ACCOUNTING SETUP'!AA11)","v":""},1]
[null,{"$f":"T('ACCOUNTING SETUP'!Q12)","v":"Affordable Rehab & Remodeling"},{"$f":"T('ACCOUNTING SETUP'!R12)","v":"General Contractor"},{"$f":"T('ACCOUNTING SETUP'!W12)","v":""},{"$f":"T('ACCOUNTING SETUP'!X12)","v":""},{"$f":"IF('ACCOUNTING SETUP'!Z12>0,'ACCOUNTING SETUP'!Z12,\"\")","v":""},{"$f":"T('ACCOUNTING SETUP'!AA12)","v":""},1]
[null,{"$f":"T('ACCOUNTING SETUP'!Q13)","v":"Lowes"},{"$f":"T('ACCOUNTING SETUP'!R13)","v":"Material Supplier"},{"$f":"T('ACCOUNTING SETUP'!W13)","v":""},{"$f":"T('ACCOUNTING SETUP'!X13)","v":""},{"$f":"IF('ACCOUNTING SETUP'!Z13>0,'ACCOUNTING SETUP'!Z13,\"\")","v":""},{"$f":"T('ACCOUNTING SETUP'!AA13)","v":""},1]
[null,{"$f":"T('ACCOUNTING SETUP'!Q14)","v":"Home Depot"},{"$f":"T('ACCOUNTING SETUP'!R14)","v":"Material Supplier"},{"$f":"T('ACCOUNTING SETUP'!W14)","v":""},{"$f":"T('ACCOUNTING SETUP'!X14)","v":""},{"$f":"IF('ACCOUNTING SETUP'!Z14>0,'ACCOUNTING SETUP'!Z14,\"\")","v":""},{"$f":"T('ACCOUNTING SETUP'!AA14)","v":""},1]
[null,{"$f":"T('ACCOUNTING SETUP'!Q15)","v":"Ace Electric"},{"$f":"T('ACCOUNTING SETUP'!R15)","v":"Electrical Contractor"},{"$f":"T('ACCOUNTING SETUP'!W15)","v":""},{"$f":"T('ACCOUNTING SETUP'!X15)","v":""},{"$f":"IF('ACCOUNTING SETUP'!Z15>0,'ACCOUNTING SETUP'!Z15,\"\")","v":""},{"$f":"T('ACCOUNTING SETUP'!AA15)","v":""},1]
[null,{"$f":"T('ACCOUNTING SETUP'!Q16)","v":"Sherwin Williams"},{"$f":"T('ACCOUNTING SETUP'!R16)","v":"Material Supplier"},{"$f":"T('ACCOUNTING SETUP'!W16)","v":""},{"$f":"T('ACCOUNTING SETUP'!X16)","v":""},{"$f":"IF('ACCOUNTING SETUP'!Z16>0,'ACCOUNTING SETUP'!Z16,\"\")","v":""},{"$f":"T('ACCOUNTING SETUP'!AA16)","v":""},1]
[null,{"$f":"T('ACCOUNTING SETUP'!Q17)","v":""},{"$f":"T('ACCOUNTING SETUP'!R17)","v":""},{"$f":"T('ACCOUNTING SETUP'!W17)","v":""},{"$f":"T('ACCOUNTING SETUP'!X17)","v":""},{"$f":"IF('ACCOUNTING SETUP'!Z17>0,'ACCOUNTING SETUP'!Z17,\"\")","v":""},{"$f":"T('ACCOUNTING SETUP'!AA17)","v":""},0]
[null,{"$f":"T('ACCOUNTING SETUP'!Q18)","v":""},{"$f":"T('ACCOUNTING SETUP'!R18)","v":""},{"$f":"T('ACCOUNTING SETUP'!W18)","v":""},{"$f":"T('ACCOUNTING SETUP'!X18)","v":""},{"$f":"IF('ACCOUNTING SETUP'!Z18>0,'ACCOUNTING SETUP'!Z18,\"\")","v":""},{"$f":"T('ACCOUNTING SETUP'!AA18)","v":""},0]
[null,{"$f":"T('ACCOUNTING SETUP'!Q19)","v":""},{"$f":"T('ACCOUNTING SETUP'!R19)","v":""},{"$f":"T('ACCOUNTING SETUP'!W19)","v":""},{"$f":"T('ACCOUNTING SETUP'!X19)","v":""},{"$f":"IF('ACCOUNTING SETUP'!Z19>0,'ACCOUNTING SETUP'!Z19,\"\")","v":""},{"$f":"T('ACCOUNTING SETUP'!AA19)","v":""},0]
[null,{"$f":"T('ACCOUNTING SETUP'!Q20)","v":""},{"$f":"T('ACCOUNTING SETUP'!R20)","v":""},{"$f":"T('ACCOUNTING SETUP'!W20)","v":""},{"$f":"T('ACCOUNTING SETUP'!X20)","v":""},{"$f":"IF('ACCOUNTING SETUP'!Z20>0,'ACCOUNTING SETUP'!Z20,\"\")","v":""},{"$f":"T('ACCOUNTING SETUP'!AA20)","v":""},0]
[null,{"$f":"T('ACCOUNTING SETUP'!Q21)","v":""},{"$f":"T('ACCOUNTING SETUP'!R21)","v":""},{"$f":"T('ACCOUNTING SETUP'!W21)","v":""},{"$f":"T('ACCOUNTING SETUP'!X21)","v":""},{"$f":"IF('ACCOUNTING SETUP'!Z21>0,'ACCOUNTING SETUP'!Z21,\"\")","v":""},{"$f":"T('ACCOUNTING SETUP'!AA21)","v":""},0]
[null,{"$f":"T('ACCOUNTING SETUP'!Q22)","v":""},{"$f":"T('ACCOUNTING SETUP'!R22)","v":""},{"$f":"T('ACCOUNTING SETUP'!W22)","v":""},{"$f":"T('ACCOUNTING SETUP'!X22)","v":""},{"$f":"IF('ACCOUNTING SETUP'!Z22>0,'ACCOUNTING SETUP'!Z22,\"\")","v":""},{"$f":"T('ACCOUNTING SETUP'!AA22)","v":""},0]
[null,{"$f":"T('ACCOUNTING SETUP'!Q23)","v":""},{"$f":"T('ACCOUNTING SETUP'!R23)","v":""},{"$f":"T('ACCOUNTING SETUP'!W23)","v":""},{"$f":"T('ACCOUNTING SETUP'!X23)","v":""},{"$f":"IF('ACCOUNTING SETUP'!Z23>0,'ACCOUNTING SETUP'!Z23,\"\")","v":""},{"$f":"T('ACCOUNTING SETUP'!AA23)","v":""},0]
[null,{"$f":"T('ACCOUNTING SETUP'!Q24)","v":""},{"$f":"T('ACCOUNTING SETUP'!R24)","v":""},{"$f":"T('ACCOUNTING SETUP'!W24)","v":""},{"$f":"T('ACCOUNTING SETUP'!X24)","v":""},{"$f":"IF('ACCOUNTING SETUP'!Z24>0,'ACCOUNTING SETUP'!Z24,\"\")","v":""},{"$f":"T('ACCOUNTING SETUP'!AA24)","v":""},0]
[null,{"$f":"T('ACCOUNTING SETUP'!Q25)","v":""},{"$f":"T('ACCOUNTING SETUP'!R25)","v":""},{"$f":"T('ACCOUNTING SETUP'!W25)","v":""},{"$f":"T('ACCOUNTING SETUP'!X25)","v":""},{"$f":"IF('ACCOUNTING SETUP'!Z25>0,'ACCOUNTING SETUP'!Z25,\"\")","v":""},{"$f":"T('ACCOUNTING SETUP'!AA25)","v":""},0]
[null,{"$f":"T('ACCOUNTING SETUP'!Q26)","v":""},{"$f":"T('ACCOUNTING SETUP'!R26)","v":""},{"$f":"T('ACCOUNTING SETUP'!W26)","v":""},{"$f":"T('ACCOUNTING SETUP'!X26)","v":""},{"$f":"IF('ACCOUNTING SETUP'!Z26>0,'ACCOUNTING SETUP'!Z26,\"\")","v":""},{"$f":"T('ACCOUNTING SETUP'!AA26)","v":""},0]
[null,{"$f":"T('ACCOUNTING SETUP'!Q27)","v":""},{"$f":"T('ACCOUNTING SETUP'!R27)","v":""},{"$f":"T('ACCOUNTING SETUP'!W27)","v":""},{"$f":"T('ACCOUNTING SETUP'!X27)","v":""},{"$f":"IF('ACCOUNTING SETUP'!Z27>0,'ACCOUNTING SETUP'!Z27,\"\")","v":""},{"$f":"T('ACCOUNTING SETUP'!AA27)","v":""},0]
[null,{"$f":"T('ACCOUNTING SETUP'!Q28)","v":""},{"$f":"T('ACCOUNTING SETUP'!R28)","v":""},{"$f":"T('ACCOUNTING SETUP'!W28)","v":""},{"$f":"T('ACCOUNTING SETUP'!X28)","v":""},{"$f":"IF('ACCOUNTING SETUP'!Z28>0,'ACCOUNTING SETUP'!Z28,\"\")","v":""},{"$f":"T('ACCOUNTING SETUP'!AA28)","v":""},0]
[null,{"$f":"T('ACCOUNTING SETUP'!Q29)","v":""},{"$f":"T('ACCOUNTING SETUP'!R29)","v":""},{"$f":"T('ACCOUNTING SETUP'!W29)","v":""},{"$f":"T('ACCOUNTING SETUP'!X29)","v":""},{"$f":"IF('ACCOUNTING SETUP'!Z29>0,'ACCOUNTING SETUP'!Z29,\"\")","v":""},{"$f":"T('ACCOUNTING SETUP'!AA29)","v":""},0]
[null,{"$f":"T('ACCOUNTING SETUP'!Q30)","v":""},{"$f":"T('ACCOUNTING SETUP'!R30)","v":""},{"$f":"T('ACCOUNTING SETUP'!W30)","v":""},{"$f":"T('ACCOUNTING SETUP'!X30)","v":""},{"$f":"IF('ACCOUNTING SETUP'!Z30>0,'ACCOUNTING SETUP'!Z30,\"\")","v":""},{"$f":"T('ACCOUNTING SETUP'!AA30)","v":""},0]
[null,{"$f":"T('ACCOUNTING SETUP'!Q31)","v":""},{"$f":"T('ACCOUNTING SETUP'!R31)","v":""},{"$f":"T('ACCOUNTING SETUP'!W31)","v":""},{"$f":"T('ACCOUNTING SETUP'!X31)","v":""},{"$f":"IF('ACCOUNTING SETUP'!Z31>0,'ACCOUNTING SETUP'!Z31,\"\")","v":""},{"$f":"T('ACCOUNTING SETUP'!AA31)","v":""},0]
[null,{"$f":"T('ACCOUNTING SETUP'!Q32)","v":""},{"$f":"T('ACCOUNTING SETUP'!R32)","v":""},{"$f":"T('ACCOUNTING SETUP'!W32)","v":""},{"$f":"T('ACCOUNTING SETUP'!X32)","v":""},{"$f":"IF('ACCOUNTING SETUP'!Z32>0,'ACCOUNTING SETUP'!Z32,\"\")","v":""},{"$f":"T('ACCOUNTING SETUP'!AA32)","v":""},0]
[null,{"$f":"T('ACCOUNTING SETUP'!Q33)","v":""},{"$f":"T('ACCOUNTING SETUP'!R33)","v":""},{"$f":"T('ACCOUNTING SETUP'!W33)","v":""},{"$f":"T('ACCOUNTING SETUP'!X33)","v":""},{"$f":"IF('ACCOUNTING SETUP'!Z33>0,'ACCOUNTING SETUP'!Z33,\"\")","v":""},{"$f":"T('ACCOUNTING SETUP'!AA33)","v":""},0]
[null,{"$f":"T('ACCOUNTING SETUP'!Q34)","v":""},{"$f":"T('ACCOUNTING SETUP'!R34)","v":""},{"$f":"T('ACCOUNTING SETUP'!W34)","v":""},{"$f":"T('ACCOUNTING SETUP'!X34)","v":""},{"$f":"IF('ACCOUNTING SETUP'!Z34>0,'ACCOUNTING SETUP'!Z34,\"\")","v":""},{"$f":"T('ACCOUNTING SETUP'!AA34)","v":""},0]
[null,{"$f":"T('ACCOUNTING SETUP'!Q35)","v":""},{"$f":"T('ACCOUNTING SETUP'!R35)","v":""},{"$f":"T('ACCOUNTING SETUP'!W35)","v":""},{"$f":"T('ACCOUNTING SETUP'!X35)","v":""},{"$f":"IF('ACCOUNTING SETUP'!Z35>0,'ACCOUNTING SETUP'!Z35,\"\")","v":""},{"$f":"T('ACCOUNTING SETUP'!AA35)","v":""},0]
[null,{"$f":"T('ACCOUNTING SETUP'!Q36)","v":""},{"$f":"T('ACCOUNTING SETUP'!R36)","v":""},{"$f":"T('ACCOUNTING SETUP'!W36)","v":""},{"$f":"T('ACCOUNTING SETUP'!X36)","v":""},{"$f":"IF('ACCOUNTING SETUP'!Z36>0,'ACCOUNTING SETUP'!Z36,\"\")","v":""},{"$f":"T('ACCOUNTING SETUP'!AA36)","v":""},0]
[null,{"$f":"T('ACCOUNTING SETUP'!Q37)","v":""},{"$f":"T('ACCOUNTING SETUP'!R37)","v":""},{"$f":"T('ACCOUNTING SETUP'!W37)","v":""},{"$f":"T('ACCOUNTING SETUP'!X37)","v":""},{"$f":"IF('ACCOUNTING SETUP'!Z37>0,'ACCOUNTING SETUP'!Z37,\"\")","v":""},{"$f":"T('ACCOUNTING SETUP'!AA37)","v":""},0]
[null,{"$f":"T('ACCOUNTING SETUP'!Q38)","v":""},{"$f":"T('ACCOUNTING SETUP'!R38)","v":""},{"$f":"T('ACCOUNTING SETUP'!W38)","v":""},{"$f":"T('ACCOUNTING SETUP'!X38)","v":""},{"$f":"IF('ACCOUNTING SETUP'!Z38>0,'ACCOUNTING SETUP'!Z38,\"\")","v":""},{"$f":"T('ACCOUNTING SETUP'!AA38)","v":""},0]
[null,{"$f":"T('ACCOUNTING SETUP'!Q39)","v":""},{"$f":"T('ACCOUNTING SETUP'!R39)","v":""},{"$f":"T('ACCOUNTING SETUP'!W39)","v":""},{"$f":"T('ACCOUNTING SETUP'!X39)","v":""},{"$f":"IF('ACCOUNTING SETUP'!Z39>0,'ACCOUNTING SETUP'!Z39,\"\")","v":""},{"$f":"T('ACCOUNTING SETUP'!AA39)","v":""},0]
[null,{"$f":"T('ACCOUNTING SETUP'!Q40)","v":""},{"$f":"T('ACCOUNTING SETUP'!R40)","v":""},{"$f":"T('ACCOUNTING SETUP'!W40)","v":""},{"$f":"T('ACCOUNTING SETUP'!X40)","v":""},{"$f":"IF('ACCOUNTING SETUP'!Z40>0,'ACCOUNTING SETUP'!Z40,\"\")","v":""},{"$f":"T('ACCOUNTING SETUP'!AA40)","v":""},0]
[null,{"$f":"T('ACCOUNTING SETUP'!Q41)","v":""},{"$f":"T('ACCOUNTING SETUP'!R41)","v":""},{"$f":"T('ACCOUNTING SETUP'!W41)","v":""},{"$f":"T('ACCOUNTING SETUP'!X41)","v":""},{"$f":"IF('ACCOUNTING SETUP'!Z41>0,'ACCOUNTING SETUP'!Z41,\"\")","v":""},{"$f":"T('ACCOUNTING SETUP'!AA41)","v":""},0]
[null,{"$f":"T('ACCOUNTING SETUP'!Q42)","v":""},{"$f":"T('ACCOUNTING SETUP'!R42)","v":""},{"$f":"T('ACCOUNTING SETUP'!W42)","v":""},{"$f":"T('ACCOUNTING SETUP'!X42)","v":""},{"$f":"IF('ACCOUNTING SETUP'!Z42>0,'ACCOUNTING SETUP'!Z42,\"\")","v":""},{"$f":"T('ACCOUNTING SETUP'!AA42)","v":""},0]
[null,{"$f":"T('ACCOUNTING SETUP'!Q43)","v":""},{"$f":"T('ACCOUNTING SETUP'!R43)","v":""},{"$f":"T('ACCOUNTING SETUP'!W43)","v":""},{"$f":"T('ACCOUNTING SETUP'!X43)","v":""},{"$f":"IF('ACCOUNTING SETUP'!Z43>0,'ACCOUNTING SETUP'!Z43,\"\")","v":""},{"$f":"T('ACCOUNTING SETUP'!AA43)","v":""},0]
[null,{"$f":"T('ACCOUNTING SETUP'!Q44)","v":""},{"$f":"T('ACCOUNTING SETUP'!R44)","v":""},{"$f":"T('ACCOUNTING SETUP'!W44)","v":""},{"$f":"T('ACCOUNTING SETUP'!X44)","v":""},{"$f":"IF('ACCOUNTING SETUP'!Z44>0,'ACCOUNTING SETUP'!Z44,\"\")","v":""},{"$f":"T('ACCOUNTING SETUP'!AA44)","v":""},0]
[null,{"$f":"T('ACCOUNTING SETUP'!Q45)","v":""},{"$f":"T('ACCOUNTING SETUP'!R45)","v":""},{"$f":"T('ACCOUNTING SETUP'!W45)","v":""},{"$f":"T('ACCOUNTING SETUP'!X45)","v":""},{"$f":"IF('ACCOUNTING SETUP'!Z45>0,'ACCOUNTING SETUP'!Z45,\"\")","v":""},{"$f":"T('ACCOUNTING SETUP'!AA45)","v":""},0]
[null,{"$f":"T('ACCOUNTING SETUP'!Q46)","v":""},{"$f":"T('ACCOUNTING SETUP'!R46)","v":""},{"$f":"T('ACCOUNTING SETUP'!W46)","v":""},{"$f":"T('ACCOUNTING SETUP'!X46)","v":""},{"$f":"IF('ACCOUNTING SETUP'!Z46>0,'ACCOUNTING SETUP'!Z46,\"\")","v":""},{"$f":"T('ACCOUNTING SETUP'!AA46)","v":""},0]
[null,{"$f":"T('ACCOUNTING SETUP'!Q47)","v":""},{"$f":"T('ACCOUNTING SETUP'!R47)","v":""},{"$f":"T('ACCOUNTING SETUP'!W47)","v":""},{"$f":"T('ACCOUNTING SETUP'!X47)","v":""},{"$f":"IF('ACCOUNTING SETUP'!Z47>0,'ACCOUNTING SETUP'!Z47,\"\")","v":""},{"$f":"T('ACCOUNTING SETUP'!AA47)","v":""},0]
[null,{"$f":"T('ACCOUNTING SETUP'!Q48)","v":""},{"$f":"T('ACCOUNTING SETUP'!R48)","v":""},{"$f":"T('ACCOUNTING SETUP'!W48)","v":""},{"$f":"T('ACCOUNTING SETUP'!X48)","v":""},{"$f":"IF('ACCOUNTING SETUP'!Z48>0,'ACCOUNTING SETUP'!Z48,\"\")","v":""},{"$f":"T('ACCOUNTING SETUP'!AA48)","v":""},0]
[null,{"$f":"T('ACCOUNTING SETUP'!Q49)","v":""},{"$f":"T('ACCOUNTING SETUP'!R49)","v":""},{"$f":"T('ACCOUNTING SETUP'!W49)","v":""},{"$f":"T('ACCOUNTING SETUP'!X49)","v":""},{"$f":"IF('ACCOUNTING SETUP'!Z49>0,'ACCOUNTING SETUP'!Z49,\"\")","v":""},{"$f":"T('ACCOUNTING SETUP'!AA49)","v":""},0]
[null,{"$f":"T('ACCOUNTING SETUP'!Q50)","v":""},{"$f":"T('ACCOUNTING SETUP'!R50)","v":""},{"$f":"T('ACCOUNTING SETUP'!W50)","v":""},{"$f":"T('ACCOUNTING SETUP'!X50)","v":""},{"$f":"IF('ACCOUNTING SETUP'!Z50>0,'ACCOUNTING SETUP'!Z50,\"\")","v":""},{"$f":"T('ACCOUNTING SETUP'!AA50)","v":""},0]
[null,{"$f":"T('ACCOUNTING SETUP'!#REF!)","v":{"$error":"#REF!"}},{"$f":"T('ACCOUNTING SETUP'!#REF!)","v":{"$error":"#REF!"}},{"$f":"T('ACCOUNTING SETUP'!#REF!)","v":{"$error":"#REF!"}},{"$f":"T('ACCOUNTING SETUP'!#REF!)","v":{"$error":"#REF!"}},{"$f":"IF('ACCOUNTING SETUP'!#REF!>0,'ACCOUNTING SETUP'!#REF!,\"\")","v":{"$error":"#REF!"}},{"$f":"T('ACCOUNTING SETUP'!#REF!)","v":{"$error":"#REF!"}},{"$error":"#REF!"}]
[null,{"$f":"T('ACCOUNTING SETUP'!#REF!)","v":{"$error":"#REF!"}},{"$f":"T('ACCOUNTING SETUP'!#REF!)","v":{"$error":"#REF!"}},{"$f":"T('ACCOUNTING SETUP'!#REF!)","v":{"$error":"#REF!"}},{"$f":"T('ACCOUNTING SETUP'!#REF!)","v":{"$error":"#REF!"}},{"$f":"IF('ACCOUNTING SETUP'!#REF!>0,'ACCOUNTING SETUP'!#REF!,\"\")","v":{"$error":"#REF!"}},{"$f":"T('ACCOUNTING SETUP'!#REF!)","v":{"$error":"#REF!"}},{"$error":"#REF!"}]
[null,{"$f":"T('ACCOUNTING SETUP'!#REF!)","v":{"$error":"#REF!"}},{"$f":"T('ACCOUNTING SETUP'!#REF!)","v":{"$error":"#REF!"}},{"$f":"T('ACCOUNTING SETUP'!#REF!)","v":{"$error":"#REF!"}},{"$f":"T('ACCOUNTING SETUP'!#REF!)","v":{"$error":"#REF!"}},{"$f":"IF('ACCOUNTING SETUP'!#REF!>0,'ACCOUNTING SETUP'!#REF!,\"\")","v":{"$error":"#REF!"}},{"$f":"T('ACCOUNTING SETUP'!#REF!)","v":{"$error":"#REF!"}},{"$error":"#REF!"}]
[null,{"$f":"T('ACCOUNTING SETUP'!#REF!)","v":{"$error":"#REF!"}},{"$f":"T('ACCOUNTING SETUP'!#REF!)","v":{"$error":"#REF!"}},{"$f":"T('ACCOUNTING SETUP'!#REF!)","v":{"$error":"#REF!"}},{"$f":"T('ACCOUNTING SETUP'!#REF!)","v":{"$error":"#REF!"}},{"$f":"IF('ACCOUNTING SETUP'!#REF!>0,'ACCOUNTING SETUP'!#REF!,\"\")","v":{"$error":"#REF!"}},{"$f":"T('ACCOUNTING SETUP'!#REF!)","v":{"$error":"#REF!"}},{"$error":"#REF!"}]
[null,{"$f":"T('ACCOUNTING SETUP'!#REF!)","v":{"$error":"#REF!"}},{"$f":"T('ACCOUNTING SETUP'!#REF!)","v":{"$error":"#REF!"}},{"$f":"T('ACCOUNTING SETUP'!#REF!)","v":{"$error":"#REF!"}},{"$f":"T('ACCOUNTING SETUP'!#REF!)","v":{"$error":"#REF!"}},{"$f":"IF('ACCOUNTING SETUP'!#REF!>0,'ACCOUNTING SETUP'!#REF!,\"\")","v":{"$error":"#REF!"}},{"$f":"T('ACCOUNTING SETUP'!#REF!)","v":{"$error":"#REF!"}},{"$error":"#REF!"}]
[null,{"$f":"T('ACCOUNTING SETUP'!#REF!)","v":{"$error":"#REF!"}},{"$f":"T('ACCOUNTING SETUP'!#REF!)","v":{"$error":"#REF!"}},{"$f":"T('ACCOUNTING SETUP'!#REF!)","v":{"$error":"#REF!"}},{"$f":"T('ACCOUNTING SETUP'!#REF!)","v":{"$error":"#REF!"}},{"$f":"IF('ACCOUNTING SETUP'!#REF!>0,'ACCOUNTING SETUP'!#REF!,\"\")","v":{"$error":"#REF!"}},{"$f":"T('ACCOUNTING SETUP'!#REF!)","v":{"$error":"#REF!"}},{"$error":"#REF!"}]
[null,{"$f":"T('ACCOUNTING SETUP'!#REF!)","v":{"$error":"#REF!"}},{"$f":"T('ACCOUNTING SETUP'!#REF!)","v":{"$error":"#REF!"}},{"$f":"T('ACCOUNTING SETUP'!#REF!)","v":{"$error":"#REF!"}},{"$f":"T('ACCOUNTING SETUP'!#REF!)","v":{"$error":"#REF!"}},{"$f":"IF('ACCOUNTING SETUP'!#REF!>0,'ACCOUNTING SETUP'!#REF!,\"\")","v":{"$error":"#REF!"}},{"$f":"T('ACCOUNTING SETUP'!#REF!)","v":{"$error":"#REF!"}},{"$error":"#REF!"}]
[null,{"$f":"T('ACCOUNTING SETUP'!#REF!)","v":{"$error":"#REF!"}},{"$f":"T('ACCOUNTING SETUP'!#REF!)","v":{"$error":"#REF!"}},{"$f":"T('ACCOUNTING SETUP'!#REF!)","v":{"$error":"#REF!"}},{"$f":"T('ACCOUNTING SETUP'!#REF!)","v":{"$error":"#REF!"}},{"$f":"IF('ACCOUNTING SETUP'!#REF!>0,'ACCOUNTING SETUP'!#REF!,\"\")","v":{"$error":"#REF!"}},{"$f":"T('ACCOUNTING SETUP'!#REF!)","v":{"$error":"#REF!"}},{"$error":"#REF!"}]
[null,{"$f":"T('ACCOUNTING SETUP'!#REF!)","v":{"$error":"#REF!"}},{"$f":"T('ACCOUNTING SETUP'!#REF!)","v":{"$error":"#REF!"}},{"$f":"T('ACCOUNTING SETUP'!#REF!)","v":{"$error":"#REF!"}},{"$f":"T('ACCOUNTING SETUP'!#REF!)","v":{"$error":"#REF!"}},{"$f":"IF('ACCOUNTING SETUP'!#REF!>0,'ACCOUNTING SETUP'!#REF!,\"\")","v":{"$error":"#REF!"}},{"$f":"T('ACCOUNTING SETUP'!#REF!)","v":{"$error":"#REF!"}},{"$error":"#REF!"}]
[null,{"$f":"T('ACCOUNTING SETUP'!#REF!)","v":{"$error":"#REF!"}},{"$f":"T('ACCOUNTING SETUP'!#REF!)","v":{"$error":"#REF!"}},{"$f":"T('ACCOUNTING SETUP'!#REF!)","v":{"$error":"#REF!"}},{"$f":"T('ACCOUNTING SETUP'!#REF!)","v":{"$error":"#REF!"}},{"$f":"IF('ACCOUNTING SETUP'!#REF!>0,'ACCOUNTING SETUP'!#REF!,\"\")","v":{"$error":"#REF!"}},{"$f":"T('ACCOUNTING SETUP'!#REF!)","v":{"$error":"#REF!"}},{"$error":"#REF!"}]
[null,{"$f":"T('ACCOUNTING SETUP'!#REF!)","v":{"$error":"#REF!"}},{"$f":"T('ACCOUNTING SETUP'!#REF!)","v":{"$error":"#REF!"}},{"$f":"T('ACCOUNTING SETUP'!#REF!)","v":{"$error":"#REF!"}},{"$f":"T('ACCOUNTING SETUP'!#REF!)","v":{"$error":"#REF!"}},{"$f":"IF('ACCOUNTING SETUP'!#REF!>0,'ACCOUNTING SETUP'!#REF!,\"\")","v":{"$error":"#REF!"}},{"$f":"T('ACCOUNTING SETUP'!#REF!)","v":{"$error":"#REF!"}},{"$error":"#REF!"}]
[null,{"$f":"T('ACCOUNTING SETUP'!#REF!)","v":{"$error":"#REF!"}},{"$f":"T('ACCOUNTING SETUP'!#REF!)","v":{"$error":"#REF!"}},{"$f":"T('ACCOUNTING SETUP'!#REF!)","v":{"$error":"#REF!"}},{"$f":"T('ACCOUNTING SETUP'!#REF!)","v":{"$error":"#REF!"}},{"$f":"IF('ACCOUNTING SETUP'!#REF!>0,'ACCOUNTING SETUP'!#REF!,\"\")","v":{"$error":"#REF!"}},{"$f":"T('ACCOUNTING SETUP'!#REF!)","v":{"$error":"#REF!"}},{"$error":"#REF!"}]
[null,{"$f":"T('ACCOUNTING SETUP'!Q51)","v":""},{"$f":"T('ACCOUNTING SETUP'!R51)","v":""},{"$f":"T('ACCOUNTING SETUP'!W51)","v":""},{"$f":"T('ACCOUNTING SETUP'!X51)","v":""},{"$f":"IF('ACCOUNTING SETUP'!Z51>0,'ACCOUNTING SETUP'!Z51,\"\")","v":""},{"$f":"T('ACCOUNTING SETUP'!AA51)","v":""},0]
[null,{"$f":"T('ACCOUNTING SETUP'!Q52)","v":""},{"$f":"T('ACCOUNTING SETUP'!R52)","v":""},{"$f":"T('ACCOUNTING SETUP'!W52)","v":""},{"$f":"T('ACCOUNTING SETUP'!X52)","v":""},{"$f":"IF('ACCOUNTING SETUP'!Z52>0,'ACCOUNTING SETUP'!Z52,\"\")","v":""},{"$f":"T('ACCOUNTING SETUP'!AA52)","v":""},0]
[null,{"$f":"T('ACCOUNTING SETUP'!Q53)","v":""},{"$f":"T('ACCOUNTING SETUP'!R53)","v":""},{"$f":"T('ACCOUNTING SETUP'!W53)","v":""},{"$f":"T('ACCOUNTING SETUP'!X53)","v":""},{"$f":"IF('ACCOUNTING SETUP'!Z53>0,'ACCOUNTING SETUP'!Z53,\"\")","v":""},{"$f":"T('ACCOUNTING SETUP'!AA53)","v":""},0]
[null,{"$f":"T('ACCOUNTING SETUP'!Q54)","v":""},{"$f":"T('ACCOUNTING SETUP'!R54)","v":""},{"$f":"T('ACCOUNTING SETUP'!W54)","v":""},{"$f":"T('ACCOUNTING SETUP'!X54)","v":""},{"$f":"IF('ACCOUNTING SETUP'!Z54>0,'ACCOUNTING SETUP'!Z54,\"\")","v":""},{"$f":"T('ACCOUNTING SETUP'!AA54)","v":""},0]
[null,{"$f":"T('ACCOUNTING SETUP'!Q55)","v":""},{"$f":"T('ACCOUNTING SETUP'!R55)","v":""},{"$f":"T('ACCOUNTING SETUP'!W55)","v":""},{"$f":"T('ACCOUNTING SETUP'!X55)","v":""},{"$f":"IF('ACCOUNTING SETUP'!Z55>0,'ACCOUNTING SETUP'!Z55,\"\")","v":""},{"$f":"T('ACCOUNTING SETUP'!AA55)","v":""},0]
[null,{"$f":"T('ACCOUNTING SETUP'!Q56)","v":""},{"$f":"T('ACCOUNTING SETUP'!R56)","v":""},{"$f":"T('ACCOUNTING SETUP'!W56)","v":""},{"$f":"T('ACCOUNTING SETUP'!X56)","v":""},{"$f":"IF('ACCOUNTING SETUP'!Z56>0,'ACCOUNTING SETUP'!Z56,\"\")","v":""},{"$f":"T('ACCOUNTING SETUP'!AA56)","v":""},0]
[null,{"$f":"T('ACCOUNTING SETUP'!Q57)","v":""},{"$f":"T('ACCOUNTING SETUP'!R57)","v":""},{"$f":"T('ACCOUNTING SETUP'!W57)","v":""},{"$f":"T('ACCOUNTING SETUP'!X57)","v":""},{"$f":"IF('ACCOUNTING SETUP'!Z57>0,'ACCOUNTING SETUP'!Z57,\"\")","v":""},{"$f":"T('ACCOUNTING SETUP'!AA57)","v":""},0]
[null,{"$f":"T('ACCOUNTING SETUP'!Q58)","v":""},{"$f":"T('ACCOUNTING SETUP'!R58)","v":""},{"$f":"T('ACCOUNTING SETUP'!W58)","v":""},{"$f":"T('ACCOUNTING SETUP'!X58)","v":""},{"$f":"IF('ACCOUNTING SETUP'!Z58>0,'ACCOUNTING SETUP'!Z58,\"\")","v":""},{"$f":"T('ACCOUNTING SETUP'!AA58)","v":""},0]
[null,{"$f":"T('ACCOUNTING SETUP'!Q59)","v":""},{"$f":"T('ACCOUNTING SETUP'!R59)","v":""},{"$f":"T('ACCOUNTING SETUP'!W59)","v":""},{"$f":"T('ACCOUNTING SETUP'!X59)","v":""},{"$f":"IF('ACCOUNTING SETUP'!Z59>0,'ACCOUNTING SETUP'!Z59,\"\")","v":""},{"$f":"T('ACCOUNTING SETUP'!AA59)","v":""},0]
[null,{"$f":"T('ACCOUNTING SETUP'!Q60)","v":""},{"$f":"T('ACCOUNTING SETUP'!R60)","v":""},{"$f":"T('ACCOUNTING SETUP'!W60)","v":""},{"$f":"T('ACCOUNTING SETUP'!X60)","v":""},{"$f":"IF('ACCOUNTING SETUP'!Z60>0,'ACCOUNTING SETUP'!Z60,\"\")","v":""},{"$f":"T('ACCOUNTING SETUP'!AA60)","v":""},0]
[null,{"$f":"T('ACCOUNTING SETUP'!Q61)","v":""},{"$f":"T('ACCOUNTING SETUP'!R61)","v":""},{"$f":"T('ACCOUNTING SETUP'!W61)","v":""},{"$f":"T('ACCOUNTING SETUP'!X61)","v":""},{"$f":"IF('ACCOUNTING SETUP'!Z61>0,'ACCOUNTING SETUP'!Z61,\"\")","v":""},{"$f":"T('ACCOUNTING SETUP'!AA61)","v":""},0]
[null,{"$f":"T('ACCOUNTING SETUP'!Q62)","v":""},{"$f":"T('ACCOUNTING SETUP'!R62)","v":""},{"$f":"T('ACCOUNTING SETUP'!W62)","v":""},{"$f":"T('ACCOUNTING SETUP'!X62)","v":""},{"$f":"IF('ACCOUNTING SETUP'!Z62>0,'ACCOUNTING SETUP'!Z62,\"\")","v":""},{"$f":"T('ACCOUNTING SETUP'!AA62)","v":""},{"$f":"IF(B87=\"\",0,1)","v":0}]
[null,{"$f":"T('ACCOUNTING SETUP'!Q63)","v":""},{"$f":"T('ACCOUNTING SETUP'!R63)","v":""},{"$f":"T('ACCOUNTING SETUP'!W63)","v":""},{"$f":"T('ACCOUNTING SETUP'!X63)","v":""},{"$f":"IF('ACCOUNTING SETUP'!Z63>0,'ACCOUNTING SETUP'!Z63,\"\")","v":""},{"$f":"T('ACCOUNTING SETUP'!AA63)","v":""},0]
[null,{"$f":"T('ACCOUNTING SETUP'!Q64)","v":""},{"$f":"T('ACCOUNTING SETUP'!R64)","v":""},{"$f":"T('ACCOUNTING SETUP'!W64)","v":""},{"$f":"T('ACCOUNTING SETUP'!X64)","v":""},{"$f":"IF('ACCOUNTING SETUP'!Z64>0,'ACCOUNTING SETUP'!Z64,\"\")","v":""},{"$f":"T('ACCOUNTING SETUP'!AA64)","v":""},0]
[null,{"$f":"T('ACCOUNTING SETUP'!Q65)","v":""},{"$f":"T('ACCOUNTING SETUP'!R65)","v":""},{"$f":"T('ACCOUNTING SETUP'!W65)","v":""},{"$f":"T('ACCOUNTING SETUP'!X65)","v":""},{"$f":"IF('ACCOUNTING SETUP'!Z65>0,'ACCOUNTING SETUP'!Z65,\"\")","v":""},{"$f":"T('ACCOUNTING SETUP'!AA65)","v":""},0]
[null,{"$f":"T('ACCOUNTING SETUP'!Q66)","v":""},{"$f":"T('ACCOUNTING SETUP'!R66)","v":""},{"$f":"T('ACCOUNTING SETUP'!W66)","v":""},{"$f":"T('ACCOUNTING SETUP'!X66)","v":""},{"$f":"IF('ACCOUNTING SETUP'!Z66>0,'ACCOUNTING SETUP'!Z66,\"\")","v":""},{"$f":"T('ACCOUNTING SETUP'!AA66)","v":""},0]
[null,{"$f":"T('ACCOUNTING SETUP'!Q67)","v":""},{"$f":"T('ACCOUNTING SETUP'!R67)","v":""},{"$f":"T('ACCOUNTING SETUP'!W67)","v":""},{"$f":"T('ACCOUNTING SETUP'!X67)","v":""},{"$f":"IF('ACCOUNTING SETUP'!Z67>0,'ACCOUNTING SETUP'!Z67,\"\")","v":""},{"$f":"T('ACCOUNTING SETUP'!AA67)","v":""},0]
[null,{"$f":"T('ACCOUNTING SETUP'!Q68)","v":""},{"$f":"T('ACCOUNTING SETUP'!R68)","v":""},{"$f":"T('ACCOUNTING SETUP'!W68)","v":""},{"$f":"T('ACCOUNTING SETUP'!X68)","v":""},{"$f":"IF('ACCOUNTING SETUP'!Z68>0,'ACCOUNTING SETUP'!Z68,\"\")","v":""},{"$f":"T('ACCOUNTING SETUP'!AA68)","v":""},0]
[null,{"$f":"T('ACCOUNTING SETUP'!Q69)","v":""},{"$f":"T('ACCOUNTING SETUP'!R69)","v":""},{"$f":"T('ACCOUNTING SETUP'!W69)","v":""},{"$f":"T('ACCOUNTING SETUP'!X69)","v":""},{"$f":"IF('ACCOUNTING SETUP'!Z69>0,'ACCOUNTING SETUP'!Z69,\"\")","v":""},{"$f":"T('ACCOUNTING SETUP'!AA69)","v":""},0]
[null,{"$f":"T('ACCOUNTING SETUP'!Q70)","v":""},{"$f":"T('ACCOUNTING SETUP'!R70)","v":""},{"$f":"T('ACCOUNTING SETUP'!W70)","v":""},{"$f":"T('ACCOUNTING SETUP'!X70)","v":""},{"$f":"IF('ACCOUNTING SETUP'!Z70>0,'ACCOUNTING SETUP'!Z70,\"\")","v":""},{"$f":"T('ACCOUNTING SETUP'!AA70)","v":""},0]
[null,{"$f":"T('ACCOUNTING SETUP'!Q71)","v":""},{"$f":"T('ACCOUNTING SETUP'!R71)","v":""},{"$f":"T('ACCOUNTING SETUP'!W71)","v":""},{"$f":"T('ACCOUNTING SETUP'!X71)","v":""},{"$f":"IF('ACCOUNTING SETUP'!Z71>0,'ACCOUNTING SETUP'!Z71,\"\")","v":""},{"$f":"T('ACCOUNTING SETUP'!AA71)","v":""},0]
[null,{"$f":"T('ACCOUNTING SETUP'!Q72)","v":""},{"$f":"T('ACCOUNTING SETUP'!R72)","v":""},{"$f":"T('ACCOUNTING SETUP'!W72)","v":""},{"$f":"T('ACCOUNTING SETUP'!X72)","v":""},{"$f":"IF('ACCOUNTING SETUP'!Z72>0,'ACCOUNTING SETUP'!Z72,\"\")","v":""},{"$f":"T('ACCOUNTING SETUP'!AA72)","v":""},0]
[null,{"$f":"T('ACCOUNTING SETUP'!Q73)","v":""},{"$f":"T('ACCOUNTING SETUP'!R73)","v":""},{"$f":"T('ACCOUNTING SETUP'!W73)","v":""},{"$f":"T('ACCOUNTING SETUP'!X73)","v":""},{"$f":"IF('ACCOUNTING SETUP'!Z73>0,'ACCOUNTING SETUP'!Z73,\"\")","v":""},{"$f":"T('ACCOUNTING SETUP'!AA73)","v":""},0]
[null,{"$f":"T('ACCOUNTING SETUP'!Q74)","v":""},{"$f":"T('ACCOUNTING SETUP'!R74)","v":""},{"$f":"T('ACCOUNTING SETUP'!W74)","v":""},{"$f":"T('ACCOUNTING SETUP'!X74)","v":""},{"$f":"IF('ACCOUNTING SETUP'!Z74>0,'ACCOUNTING SETUP'!Z74,\"\")","v":""},{"$f":"T('ACCOUNTING SETUP'!AA74)","v":""},0]
[null,{"$f":"T('ACCOUNTING SETUP'!Q75)","v":""},{"$f":"T('ACCOUNTING SETUP'!R75)","v":""},{"$f":"T('ACCOUNTING SETUP'!W75)","v":""},{"$f":"T('ACCOUNTING SETUP'!X75)","v":""},{"$f":"IF('ACCOUNTING SETUP'!Z75>0,'ACCOUNTING SETUP'!Z75,\"\")","v":""},{"$f":"T('ACCOUNTING SETUP'!AA75)","v":""},0]
[null,{"$f":"T('ACCOUNTING SETUP'!Q76)","v":""},{"$f":"T('ACCOUNTING SETUP'!R76)","v":""},{"$f":"T('ACCOUNTING SETUP'!W76)","v":""},{"$f":"T('ACCOUNTING SETUP'!X76)","v":""},{"$f":"IF('ACCOUNTING SETUP'!Z76>0,'ACCOUNTING SETUP'!Z76,\"\")","v":""},{"$f":"T('ACCOUNTING SETUP'!AA76)","v":""},0]
[null,{"$f":"T('ACCOUNTING SETUP'!Q77)","v":""},{"$f":"T('ACCOUNTING SETUP'!R77)","v":""},{"$f":"T('ACCOUNTING SETUP'!W77)","v":""},{"$f":"T('ACCOUNTING SETUP'!X77)","v":""},{"$f":"IF('ACCOUNTING SETUP'!Z77>0,'ACCOUNTING SETUP'!Z77,\"\")","v":""},{"$f":"T('ACCOUNTING SETUP'!AA77)","v":""},0]
[null,{"$f":"T('ACCOUNTING SETUP'!Q78)","v":""},{"$f":"T('ACCOUNTING SETUP'!R78)","v":""},{"$f":"T('ACCOUNTING SETUP'!W78)","v":""},{"$f":"T('ACCOUNTING SETUP'!X78)","v":""},{"$f":"IF('ACCOUNTING SETUP'!Z78>0,'ACCOUNTING SETUP'!Z78,\"\")","v":""},{"$f":"T('ACCOUNTING SETUP'!AA78)","v":""},0]
[null,{"$f":"T('ACCOUNTING SETUP'!Q79)","v":""},{"$f":"T('ACCOUNTING SETUP'!R79)","v":""},{"$f":"T('ACCOUNTING SETUP'!W79)","v":""},{"$f":"T('ACCOUNTING SETUP'!X79)","v":""},{"$f":"IF('ACCOUNTING SETUP'!Z79>0,'ACCOUNTING SETUP'!Z79,\"\")","v":""},{"$f":"T('ACCOUNTING SETUP'!AA79)","v":""},0]
[null,{"$f":"T('ACCOUNTING SETUP'!Q80)","v":""},{"$f":"T('ACCOUNTING SETUP'!R80)","v":""},{"$f":"T('ACCOUNTING SETUP'!W80)","v":""},{"$f":"T('ACCOUNTING SETUP'!X80)","v":""},{"$f":"IF('ACCOUNTING SETUP'!Z80>0,'ACCOUNTING SETUP'!Z80,\"\")","v":""},{"$f":"T('ACCOUNTING SETUP'!AA80)","v":""},0]
[null,{"$f":"T('ACCOUNTING SETUP'!Q81)","v":""},{"$f":"T('ACCOUNTING SETUP'!R81)","v":""},{"$f":"T('ACCOUNTING SETUP'!W81)","v":""},{"$f":"T('ACCOUNTING SETUP'!X81)","v":""},{"$f":"IF('ACCOUNTING SETUP'!Z81>0,'ACCOUNTING SETUP'!Z81,\"\")","v":""},{"$f":"T('ACCOUNTING SETUP'!AA81)","v":""},0]
[null,{"$f":"T('ACCOUNTING SETUP'!Q82)","v":""},{"$f":"T('ACCOUNTING SETUP'!R82)","v":""},{"$f":"T('ACCOUNTING SETUP'!W82)","v":""},{"$f":"T('ACCOUNTING SETUP'!X82)","v":""},{"$f":"IF('ACCOUNTING SETUP'!Z82>0,'ACCOUNTING SETUP'!Z82,\"\")","v":""},{"$f":"T('ACCOUNTING SETUP'!AA82)","v":""},0]
[null,{"$f":"T('ACCOUNTING SETUP'!Q83)","v":""},{"$f":"T('ACCOUNTING SETUP'!R83)","v":""},{"$f":"T('ACCOUNTING SETUP'!W83)","v":""},{"$f":"T('ACCOUNTING SETUP'!X83)","v":""},{"$f":"IF('ACCOUNTING SETUP'!Z83>0,'ACCOUNTING SETUP'!Z83,\"\")","v":""},{"$f":"T('ACCOUNTING SETUP'!AA83)","v":""},0]
[null,{"$f":"T('ACCOUNTING SETUP'!Q84)","v":""},{"$f":"T('ACCOUNTING SETUP'!R84)","v":""},{"$f":"T('ACCOUNTING SETUP'!W84)","v":""},{"$f":"T('ACCOUNTING SETUP'!X84)","v":""},{"$f":"IF('ACCOUNTING SETUP'!Z84>0,'ACCOUNTING SETUP'!Z84,\"\")","v":""},{"$f":"T('ACCOUNTING SETUP'!AA84)","v":""},0]
[null,{"$f":"T('ACCOUNTING SETUP'!Q85)","v":""},{"$f":"T('ACCOUNTING SETUP'!R85)","v":""},{"$f":"T('ACCOUNTING SETUP'!W85)","v":""},{"$f":"T('ACCOUNTING SETUP'!X85)","v":""},{"$f":"IF('ACCOUNTING SETUP'!Z85>0,'ACCOUNTING SETUP'!Z85,\"\")","v":""},{"$f":"T('ACCOUNTING SETUP'!AA85)","v":""},0]
[null,{"$f":"T('ACCOUNTING SETUP'!Q86)","v":""},{"$f":"T('ACCOUNTING SETUP'!R86)","v":""},{"$f":"T('ACCOUNTING SETUP'!W86)","v":""},{"$f":"T('ACCOUNTING SETUP'!X86)","v":""},{"$f":"IF('ACCOUNTING SETUP'!Z86>0,'ACCOUNTING SETUP'!Z86,\"\")","v":""},{"$f":"T('ACCOUNTING SETUP'!AA86)","v":""},0]
[null,{"$f":"T('ACCOUNTING SETUP'!Q87)","v":""},{"$f":"T('ACCOUNTING SETUP'!R87)","v":""},{"$f":"T('ACCOUNTING SETUP'!W87)","v":""},{"$f":"T('ACCOUNTING SETUP'!X87)","v":""},{"$f":"IF('ACCOUNTING SETUP'!Z87>0,'ACCOUNTING SETUP'!Z87,\"\")","v":""},{"$f":"T('ACCOUNTING SETUP'!AA87)","v":""},0]
[null,{"$f":"T('ACCOUNTING SETUP'!Q88)","v":""},{"$f":"T('ACCOUNTING SETUP'!R88)","v":""},{"$f":"T('ACCOUNTING SETUP'!W88)","v":""},{"$f":"T('ACCOUNTING SETUP'!X88)","v":""},{"$f":"IF('ACCOUNTING SETUP'!Z88>0,'ACCOUNTING SETUP'!Z88,\"\")","v":""},{"$f":"T('ACCOUNTING SETUP'!AA88)","v":""},0]
[null,{"$f":"T('ACCOUNTING SETUP'!Q89)","v":""},{"$f":"T('ACCOUNTING SETUP'!R89)","v":""},{"$f":"T('ACCOUNTING SETUP'!W89)","v":""},{"$f":"T('ACCOUNTING SETUP'!X89)","v":""},{"$f":"IF('ACCOUNTING SETUP'!Z89>0,'ACCOUNTING SETUP'!Z89,\"\")","v":""},{"$f":"T('ACCOUNTING SETUP'!AA89)","v":""},0]
[null,{"$f":"T('ACCOUNTING SETUP'!Q90)","v":""},{"$f":"T('ACCOUNTING SETUP'!R90)","v":""},{"$f":"T('ACCOUNTING SETUP'!W90)","v":""},{"$f":"T('ACCOUNTING SETUP'!X90)","v":""},{"$f":"IF('ACCOUNTING SETUP'!Z90>0,'ACCOUNTING SETUP'!Z90,\"\")","v":""},{"$f":"T('ACCOUNTING SETUP'!AA90)","v":""},0]
[null,{"$f":"T('ACCOUNTING SETUP'!Q91)","v":""},{"$f":"T('ACCOUNTING SETUP'!R91)","v":""},{"$f":"T('ACCOUNTING SETUP'!W91)","v":""},{"$f":"T('ACCOUNTING SETUP'!X91)","v":""},{"$f":"IF('ACCOUNTING SETUP'!Z91>0,'ACCOUNTING SETUP'!Z91,\"\")","v":""},{"$f":"T('ACCOUNTING SETUP'!AA91)","v":""},0]
[null,{"$f":"T('ACCOUNTING SETUP'!Q92)","v":""},{"$f":"T('ACCOUNTING SETUP'!R92)","v":""},{"$f":"T('ACCOUNTING SETUP'!W92)","v":""},{"$f":"T('ACCOUNTING SETUP'!X92)","v":""},{"$f":"IF('ACCOUNTING SETUP'!Z92>0,'ACCOUNTING SETUP'!Z92,\"\")","v":""},{"$f":"T('ACCOUNTING SETUP'!AA92)","v":""},0]
[null,{"$f":"T('ACCOUNTING SETUP'!Q93)","v":""},{"$f":"T('ACCOUNTING SETUP'!R93)","v":""},{"$f":"T('ACCOUNTING SETUP'!W93)","v":""},{"$f":"T('ACCOUNTING SETUP'!X93)","v":""},{"$f":"IF('ACCOUNTING SETUP'!Z93>0,'ACCOUNTING SETUP'!Z93,\"\")","v":""},{"$f":"T('ACCOUNTING SETUP'!AA93)","v":""},0]
[null,{"$f":"T('ACCOUNTING SETUP'!Q94)","v":""},{"$f":"T('ACCOUNTING SETUP'!R94)","v":""},{"$f":"T('ACCOUNTING SETUP'!W94)","v":""},{"$f":"T('ACCOUNTING SETUP'!X94)","v":""},{"$f":"IF('ACCOUNTING SETUP'!Z94>0,'ACCOUNTING SETUP'!Z94,\"\")","v":""},{"$f":"T('ACCOUNTING SETUP'!AA94)","v":""},0]
[null,{"$f":"T('ACCOUNTING SETUP'!Q95)","v":""},{"$f":"T('ACCOUNTING SETUP'!R95)","v":""},{"$f":"T('ACCOUNTING SETUP'!W95)","v":""},{"$f":"T('ACCOUNTING SETUP'!X95)","v":""},{"$f":"IF('ACCOUNTING SETUP'!Z95>0,'ACCOUNTING SETUP'!Z95,\"\")","v":""},{"$f":"T('ACCOUNTING SETUP'!AA95)","v":""},0]
[null,{"$f":"T('ACCOUNTING SETUP'!Q96)","v":""},{"$f":"T('ACCOUNTING SETUP'!R96)","v":""},{"$f":"T('ACCOUNTING SETUP'!W96)","v":""},null,{"$f":"IF('ACCOUNTING SETUP'!Z96>0,'ACCOUNTING SETUP'!Z96,\"\")","v":""},{"$f":"T('ACCOUNTING SETUP'!AA96)","v":""},0]
[null,"© 2016 by Houseflippingspreadsheet.com. All rights reserved"]

{"sheet":"PROJECT BUDGET REPORT","index":51,"n_rows":64,"n_cols":23,"rows_kept":64,"hidden":true,"merged":[[1,0,1,4],[3,9,6,21],[10,7,10,23],[11,7,12,15],[14,7,15,17],[14,18,15,21],[14,22,15,23],[17,7,17,17],[17,18,17,21],[17,22,17,23],[18,7,19,17],[18,18,19,21],[18,22,19,23],[21,7,21,17],[21,18,21,21],[21,22,21,23],[22,7,22,17],[22,18,22,21],[22,22,22,23],[23,7,23,17],[23,18,23,21],[23,22,23,23],[24,7,24,17],[24,18,24,21],[24,22,24,23],[25,7,25,17],[25,18,25,21],[25,22,25,23],[26,7,27,17],[26,18,27,21],[26,22,27,23],[29,7,29,17],[29,18,29,21],[29,22,29,23],[30,7,30,17],[30,18,30,21],[30,22,30,23],[31,7,31,17],[31,18,31,21],[31,22,31,23],[32,7,32,17],[32,18,32,21],[32,22,32,23],[33,7,33,17],[33,18,33,21],[33,22,33,23],[34,7,34,17],[34,18,34,21],[34,22,34,23],[35,7,35,17],[35,18,35,21],[35,22,35,23],[36,7,36,17],[36,18,36,21],[36,22,36,23],[37,7,37,17],[37,18,37,21],[37,22,37,23],[38,7,38,17],[38,18,38,21],[38,22,38,23],[39,7,39,17],[39,18,39,21],[39,22,39,23],[40,7,40,17],[40,18,40,21],[40,22,40,23],[41,7,41,17],[41,18,41,21],[41,22,41,23],[42,7,42,17],[42,18,42,21],[42,22,42,23],[43,7,43,17],[43,18,43,21],[43,22,43,23],[44,7,44,17],[44,18,44,21],[44,22,44,23],[45,7,45,17],[45,18,45,21],[45,22,45,23],[46,7,46,17],[46,18,46,21],[46,22,46,23],[47,7,47,17],[47,18,47,21],[47,22,47,23],[48,7,48,17],[48,18,48,21],[48,22,48,23],[49,7,49,17],[49,18,49,21],[49,22,49,23],[50,7,50,17],[50,18,50,21],[50,22,50,23],[51,7,51,17],[51,18,51,21],[51,22,51,23],[52,7,52,17],[52,18,52,21],[52,22,52,23],[53,7,53,17],[53,18,53,21],[53,22,53,23],[54,7,54,17],[54,18,54,21],[54,22,54,23],[55,7,55,17],[55,18,55,21],[55,22,55,23],[56,18,56,21],[57,7,57,17],[57,18,57,21],[57,22,57,23],[59,7,59,17],[59,18,59,21],[59,22,59,23],[61,7,61,23],[62,7,62,10],[62,11,62,13],[62,14,62,18],[62,19,62,23],[63,7,64,23]]}
[]
["PROJECT BUDGET REPORT"]
[]
[{"$nulls":9},"The Project Budget Report summarizes the overall project costs for Repairs, Fixed Costs (Buying, Holding, Selling Costs) & projected profit based upon current budget."]
[]
[]
[]
[]
[]
[]
[{"$nulls":7},{"$f":"CONCATENATE(Street_Address,\", \",City_State_Zip)","v":"1234 Main St, Kansas City, MO 64116"}]
[{"$nulls":7},"PROJECT BUDGET"]
[]
[]
[{"$nulls":7},"BUDGET BREAKDOWN",{"$nulls":10},"Amount",{"$nulls":3},"% of Total"]
[]
[]
[{"$nulls":7},"Purchase Price",{"$nulls":10},{"$f":"'2 PROJECT BUDGETER'!C8","v":{"v":61836.912500000006,"d":"$61,837"}},{"$nulls":3},{"$f":"IFERROR(S18/$S$60,0)","v":{"v":0.44090490196078436,"d":"44.1%"}}]
[{"$nulls":7},"FIXED COSTS",{"$nulls":10},"Amount",{"$nulls":3},"% of Total"]
[]
[]
[{"$nulls":7},"Buying Costs",{"$nulls":10},{"$f":"'2 PROJECT BUDGETER'!C11","v":{"v":1000,"d":"$1,000"}},{"$nulls":3},{"$f":"IFERROR(S22/$S$60,0)","v":{"v":0.0071301247771836,"d":"0.7%"}}]
[{"$nulls":7},"Holding Costs",{"$nulls":10},{"$f":"'2 PROJECT BUDGETER'!C12","v":{"v":3000,"d":"$3,000"}},{"$nulls":3},{"$f":"IFERROR(S23/$S$60,0)","v":{"v":0.0213903743315508,"d":"2.1%"}}]
[{"$nulls":7},"Selling Costs",{"$nulls":10},{"$f":"'2 PROJECT BUDGETER'!C13","v":{"v":10850,"d":"$10,850"}},{"$nulls":3},{"$f":"IFERROR(S24/$S$60,0)","v":{"v":0.07736185383244207,"d":"7.7%"}}]
[{"$nulls":7},"Financing Costs",{"$nulls":10},{"$f":"'2 PROJECT BUDGETER'!C14","v":{"v":0,"d":"$0"}},{"$nulls":3},{"$f":"IFERROR(S25/$S$60,0)","v":{"v":0,"d":"0.0%"}}]
[{"$nulls":7},"TOTAL FIXED COST BUDGET",{"$nulls":10},{"$f":"SUM(S22:V25)","v":{"v":14850,"d":"$14,850"}},{"$nulls":3},{"$f":"IFERROR(S26/$S$60,0)","v":{"v":0.10588235294117647,"d":"10.6%"}}]
[{"$nulls":7},"REPAIR COSTS",{"$nulls":10},"Amount",{"$nulls":3},"% of Total"]
[]
[]
[{"$nulls":7},{"$f":"PROPER('2 PROJECT BUDGETER'!B18)","v":"General Conditions"},{"$nulls":10},{"$f":"'2 PROJECT BUDGETER'!C18","v":{"v":750,"d":"$750"}},{"$nulls":3},{"$f":"IFERROR(S30/$S$60,0)","v":{"v":0.0053475935828877,"d":"0.5%"}}]
[{"$nulls":7},{"$f":"PROPER('2 PROJECT BUDGETER'!B19)","v":"Demolition"},{"$nulls":10},{"$f":"'2 PROJECT BUDGETER'!C19","v":{"v":1000,"d":"$1,000"}},{"$nulls":3},{"v":0.0071301247771836,"d":"0.7%"}]
[{"$nulls":7},{"$f":"PROPER('2 PROJECT BUDGETER'!B20)","v":"Structural Concrete"},{"$nulls":10},{"$f":"'2 PROJECT BUDGETER'!C20","v":{"v":0,"d":"$0"}},{"$nulls":3},{"v":0,"d":"0.0%"}]
[{"$nulls":7},{"$f":"PROPER('2 PROJECT BUDGETER'!B21)","v":"Concrete & Flatwork"},{"$nulls":10},{"$f":"'2 PROJECT BUDGETER'!C21","v":{"v":0,"d":"$0"}},{"$nulls":3},{"v":0,"d":"0.0%"}]
[{"$nulls":7},{"$f":"PROPER('2 PROJECT BUDGETER'!B22)","v":"Masonry"},{"$nulls":10},{"$f":"'2 PROJECT BUDGETER'!C22","v":{"v":0,"d":"$0"}},{"$nulls":3},{"v":0,"d":"0.0%"}]
[{"$nulls":7},{"$f":"PROPER('2 PROJECT BUDGETER'!B23)","v":"Siding"},{"$nulls":10},{"$f":"'2 PROJECT BUDGETER'!C23","v":{"v":0,"d":"$0"}},{"$nulls":3},{"v":0,"d":"0.0%"}]
[{"$nulls":7},{"$f":"PROPER('2 PROJECT BUDGETER'!B24)","v":"Decking And Patios"},{"$nulls":10},{"$f":"'2 PROJECT BUDGETER'!C24","v":{"v":5000,"d":"$5,000"}},{"$nulls":3},{"v":0.035650623885918005,"d":"3.6%"}]
[{"$nulls":7},{"$f":"PROPER('2 PROJECT BUDGETER'!B25)","v":"Roofing"},{"$nulls":10},{"$f":"'2 PROJECT BUDGETER'!C25","v":{"v":5500,"d":"$5,500"}},{"$nulls":3},{"v":0.0392156862745098,"d":"3.9%"}]
[{"$nulls":7},{"$f":"PROPER('2 PROJECT BUDGETER'!B26)","v":"Exterior Doors & Windows"},{"$nulls":10},{"$f":"'2 PROJECT BUDGETER'!C26","v":{"v":2000,"d":"$2,000"}},{"$nulls":3},{"v":0.0142602495543672,"d":"1.4%"}]
[{"$nulls":7},{"$f":"PROPER('2 PROJECT BUDGETER'!B27)","v":"Garage Doors"},{"$nulls":10},{"$f":"'2 PROJECT BUDGETER'!C27","v":{"v":1250,"d":"$1,250"}},{"$nulls":3},{"v":0.008912655971479501,"d":"0.9%"}]
[{"$nulls":7},{"$f":"PROPER('2 PROJECT BUDGETER'!B28)","v":"Landscaping"},{"$nulls":10},{"$f":"'2 PROJECT BUDGETER'!C28","v":{"v":500,"d":"$500"}},{"$nulls":3},{"v":0.0035650623885918,"d":"0.4%"}]
[{"$nulls":7},{"$f":"PROPER('2 PROJECT BUDGETER'!B29)","v":"Misc. Exterior Items"},{"$nulls":10},{"$f":"'2 PROJECT BUDGETER'!C29","v":{"v":0,"d":"$0"}},{"$nulls":3},{"v":0,"d":"0.0%"}]
[{"$nulls":7},{"$f":"PROPER('2 PROJECT BUDGETER'!B30)","v":"Framing & Drywall"},{"$nulls":10},{"$f":"'2 PROJECT BUDGETER'!C30","v":{"v":500,"d":"$500"}},{"$nulls":3},{"v":0.0035650623885918,"d":"0.4%"}]
[{"$nulls":7},{"$f":"PROPER('2 PROJECT BUDGETER'!B31)","v":"Cabinets & Countertops"},{"$nulls":10},{"$f":"'2 PROJECT BUDGETER'!C31","v":{"v":7500,"d":"$7,500"}},{"$nulls":3},{"v":0.053475935828877004,"d":"5.3%"}]
[{"$nulls":7},{"$f":"PROPER('2 PROJECT BUDGETER'!B32)","v":"Doors & Trim"},{"$nulls":10},{"$f":"'2 PROJECT BUDGETER'!C32","v":{"v":3000,"d":"$3,000"}},{"$nulls":3},{"v":0.0213903743315508,"d":"2.1%"}]
[{"$nulls":7},{"$f":"PROPER('2 PROJECT BUDGETER'!B33)","v":"Carpet & Resilient"},{"$nulls":10},{"$f":"'2 PROJECT BUDGETER'!C33","v":{"v":3000,"d":"$3,000"}},{"$nulls":3},{"v":0.0213903743315508,"d":"2.1%"}]
[{"$nulls":7},{"$f":"PROPER('2 PROJECT BUDGETER'!B34)","v":"Hardwood Flooring"},{"$nulls":10},{"$f":"'2 PROJECT BUDGETER'!C34","v":{"v":2500,"d":"$2,500"}},{"$nulls":3},{"v":0.017825311942959002,"d":"1.8%"}]
[{"$nulls":7},{"$f":"PROPER('2 PROJECT BUDGETER'!B35)","v":"Tiling"},{"$nulls":10},{"$f":"'2 PROJECT BUDGETER'!C35","v":{"v":3000,"d":"$3,000"}},{"$nulls":3},{"v":0.0213903743315508,"d":"2.1%"}]
[{"$nulls":7},{"$f":"PROPER('2 PROJECT BUDGETER'!B36)","v":"Painting"},{"$nulls":10},{"$f":"'2 PROJECT BUDGETER'!C36","v":{"v":5000,"d":"$5,000"}},{"$nulls":3},{"v":0.035650623885918005,"d":"3.6%"}]
[{"$nulls":7},{"$f":"PROPER('2 PROJECT BUDGETER'!B37)","v":"Appliances"},{"$nulls":10},{"$f":"'2 PROJECT BUDGETER'!C37","v":{"v":2500,"d":"$2,500"}},{"$nulls":3},{"v":0.017825311942959002,"d":"1.8%"}]
[{"$nulls":7},{"$f":"PROPER('2 PROJECT BUDGETER'!B38)","v":"Plumbing"},{"$nulls":10},{"$f":"'2 PROJECT BUDGETER'!C38","v":{"v":3000,"d":"$3,000"}},{"$nulls":3},{"v":0.0213903743315508,"d":"2.1%"}]
[{"$nulls":7},{"$f":"PROPER('2 PROJECT BUDGETER'!B39)","v":"Hvac"},{"$nulls":10},{"$f":"'2 PROJECT BUDGETER'!C39","v":{"v":250,"d":"$250"}},{"$nulls":3},{"v":0.0017825311942959,"d":"0.2%"}]
[{"$nulls":7},{"$f":"PROPER('2 PROJECT BUDGETER'!B40)","v":"Electrical"},{"$nulls":10},{"$f":"'2 PROJECT BUDGETER'!C40","v":{"v":3500,"d":"$3,500"}},{"$nulls":3},{"v":0.024955436720142603,"d":"2.5%"}]
[{"$nulls":7},{"$f":"PROPER('2 PROJECT BUDGETER'!B41)","v":"Miscellaneous"},{"$nulls":10},{"$f":"'2 PROJECT BUDGETER'!C41","v":{"v":0,"d":"$0"}},{"$nulls":3},{"v":0,"d":"0.0%"}]
[{"$nulls":7},"SUBTOTAL REPAIR BUDGET",{"$nulls":10},{"$f":"SUM(S30:V53)","v":{"v":49750,"d":"$49,750"}},{"$nulls":3},{"v":0.35472370766488415,"d":"35.5%"}]
[{"$nulls":7},{"$f":"PROPER('2 PROJECT BUDGETER'!B43)","v":"Adders/Contingency/Change Orders"},{"$nulls":10},{"$f":"'2 PROJECT BUDGETER'!C43","v":{"v":13813.0875,"d":"$13,813"}},{"$nulls":3},{"v":0.09848903743315508,"d":"9.8%"}]
[{"$nulls":7},"TOTAL REPAIR BUDGET",{"$nulls":10},{"$f":"S54+S55","v":{"v":63563.0875,"d":"$63,563"}},{"$nulls":3},{"v":0.4532127450980392,"d":"45.3%"}]
[]
[{"$nulls":7},"Unassigned Costs",{"$nulls":10},{"$f":"'2 PROJECT BUDGETER'!C45","v":{"v":0,"d":"$0"}},{"$nulls":3},{"$f":"IFERROR(S58/$S$60,0)","v":{"v":0,"d":"0.0%"}}]
[]
[{"$nulls":7},"TOTAL PROJECT BUDGET",{"$nulls":10},{"$f":"S18+S26+S56+S58","v":{"v":140250,"d":"$140,250"}},{"$nulls":3},{"$f":"IFERROR(S60/$S$60,0)","v":{"v":1,"d":"100%"}}]
[]
[]
[{"$nulls":7},{"$f":"T(Company_Name)","v":"Dave Inc"},{"$nulls":3},{"$f":"(Company_Phone)","v":8161234567},null,null,{"$f":"T(Company_Email)","v":"dave@venturesheets.com"},{"$nulls":4},{"$f":"T(Company_Website)","v":"www.venturesheets.com"}]
[{"$nulls":7},"© 2018 by Houseflippingspreadsheet.com. All rights reserved"]

{"sheet":"EXPENSE BY SCOPE","index":52,"n_rows":969,"n_cols":12,"rows_kept":969,"hidden":true,"merged":[[1,0,1,1],[11,2,11,3],[11,5,11,6],[12,2,12,3],[13,2,13,3],[14,4,14,5],[15,2,15,3],[15,4,15,5],[16,2,16,3],[16,4,16,5],[17,2,17,3],[17,4,17,5],[18,2,18,3],[18,4,18,5],[19,2,19,3],[19,4,19,5],[20,2,20,3],[20,4,20,5],[21,2,21,3],[21,4,21,5],[22,2,22,3],[22,4,22,5],[23,2,23,3],[23,4,23,5],[24,2,24,3],[24,4,24,5],[25,2,25,3],[25,4,25,5],[26,2,26,3],[26,4,26,5],[27,2,27,3],[27,4,27,5],[28,2,28,3],[28,4,28,5],[29,2,29,3],[29,4,29,5],[30,2,30,3],[30,4,30,5],[31,2,31,3],[31,4,31,5],[32,2,32,3],[32,4,32,5],[33,2,33,3],[33,4,33,5],[34,2,34,3],[34,4,34,5],[35,2,35,3],[35,4,35,5],[36,2,36,3],[36,4,36,5],[37,2,37,3],[37,4,37,5],[38,2,38,3],[38,4,38,5],[39,2,39,3],[39,4,39,5],[40,2,40,3],[40,4,40,5],[41,2,41,3],[41,4,41,5],[42,2,42,3],[42,4,42,5],[43,2,43,3],[43,4,43,5],[44,2,44,3],[44,4,44,5],[45,2,45,3],[45,4,45,5],[46,2,46,3],[46,4,46,5],[47,2,47,3],[47,4,47,5],[50,2,50,3],[50,5,50,6],[51,2,51,3],[52,2,52,3],[55,2,56,2],[55,3,56,3],[55,4,56,4],[55,5,56,5],[55,6,56,6],[902,2,902,6]]}
[]
["EXPENSE BY CATEGORY",{"$nulls":7},"Shown","Shown"]
{"$rows_empty":8}
[{"$nulls":8},"RAW","+DESC","TOTAL","QTY"]
[null,null,"SCOPE EXPENSE SUMMARY",{"$nulls":4},1,1,null,{"$f":"I12+J12","v":1},1]
[null,null,{"$f":"T(Street_Address)","v":"1234 Main St"},{"$nulls":4},2,2,null,2,1]
[null,null,{"$f":"T(City_State_Zip)","v":"Kansas City, MO 64116"},{"$nulls":4},3,3,null,3,1]
[{"$nulls":7},4,4,null,4,1]
[null,null,"SCOPE OF WORK",null,"Totals",null,"$/SF",5,5,null,5,1]
[null,null,{"$f":"T('EXPENSE DATABASE'!B6)","v":"PURCHASE PRICE"},null,{"$f":"'EXPENSE DATABASE'!J6","v":{"v":52000,"d":"$52,000"}},null,{"$f":"IFERROR(E17/Square_Feet,0)","v":{"v":34.666666666666664,"d":"$35 /sf"}},6,6,null,6,{"$f":"IF(E17>0,1,0)","v":1}]
[null,null,{"$f":"T('EXPENSE DATABASE'!B7)","v":"BUYING COSTS"},null,{"$f":"'EXPENSE DATABASE'!J7","v":{"v":1060,"d":"$1,060"}},null,{"v":0.7066666666666667,"d":"$1 /sf"},7,7,null,7,1]
[null,null,{"$f":"T('EXPENSE DATABASE'!B8)","v":"HOLDING COSTS"},null,{"$f":"'EXPENSE DATABASE'!J8","v":{"v":0,"d":"$0"}},null,{"v":0,"d":"$0 /sf"},8,8,null,8,0]
[null,null,{"$f":"T('EXPENSE DATABASE'!B9)","v":"SELLING COSTS"},null,{"$f":"'EXPENSE DATABASE'!J9","v":{"v":0,"d":"$0"}},null,{"v":0,"d":"$0 /sf"},9,9,null,9,0]
[null,null,{"$f":"T('EXPENSE DATABASE'!B10)","v":"FINANCING COSTS"},null,{"$f":"'EXPENSE DATABASE'!J10","v":{"v":0,"d":"$0"}},null,{"v":0,"d":"$0 /sf"},10,10,null,10,0]
[null,null,{"$f":"T('EXPENSE DATABASE'!B11)","v":"GENERAL CONDITIONS"},null,{"$f":"'EXPENSE DATABASE'!J11","v":{"v":0,"d":"$0"}},null,{"v":0,"d":"$0 /sf"},11,11,null,11,0]
[null,null,{"$f":"T('EXPENSE DATABASE'!B12)","v":"DEMOLITION"},null,{"$f":"'EXPENSE DATABASE'!J12","v":{"v":1740,"d":"$1,740"}},null,{"v":1.16,"d":"$1 /sf"},12,12,null,12,1]
[null,null,{"$f":"T('EXPENSE DATABASE'!B13)","v":"STRUCTURAL CONCRETE"},null,{"$f":"'EXPENSE DATABASE'!J13","v":{"v":0,"d":"$0"}},null,{"v":0,"d":"$0 /sf"},13,13,null,13,0]
[null,null,{"$f":"T('EXPENSE DATABASE'!B14)","v":"CONCRETE & FLATWORK"},null,{"$f":"'EXPENSE DATABASE'!J14","v":{"v":0,"d":"$0"}},null,{"v":0,"d":"$0 /sf"},14,14,null,14,0]
[null,null,{"$f":"T('EXPENSE DATABASE'!B15)","v":"MASONRY"},null,{"$f":"'EXPENSE DATABASE'!J15","v":{"v":0,"d":"$0"}},null,{"v":0,"d":"$0 /sf"},15,15,null,15,0]
[null,null,{"$f":"T('EXPENSE DATABASE'!B16)","v":"SIDING"},null,{"$f":"'EXPENSE DATABASE'!J16","v":{"v":0,"d":"$0"}},null,{"v":0,"d":"$0 /sf"},16,16,null,16,0]
[null,null,{"$f":"T('EXPENSE DATABASE'!B17)","v":"DECKING AND PATIOS"},null,{"$f":"'EXPENSE DATABASE'!J17","v":{"v":0,"d":"$0"}},null,{"v":0,"d":"$0 /sf"},17,17,null,17,0]
[null,null,{"$f":"T('EXPENSE DATABASE'!B18)","v":"ROOFING"},null,{"$f":"'EXPENSE DATABASE'!J18","v":{"v":0,"d":"$0"}},null,{"v":0,"d":"$0 /sf"},18,18,null,18,0]
[null,null,{"$f":"T('EXPENSE DATABASE'!B19)","v":"EXTERIOR DOORS & WINDOWS"},null,{"$f":"'EXPENSE DATABASE'!J19","v":{"v":0,"d":"$0"}},null,{"v":0,"d":"$0 /sf"},19,19,null,19,0]
[null,null,{"$f":"T('EXPENSE DATABASE'!B20)","v":"GARAGE DOORS"},null,{"$f":"'EXPENSE DATABASE'!J20","v":{"v":0,"d":"$0"}},null,{"v":0,"d":"$0 /sf"},20,20,null,20,0]
[null,null,{"$f":"T('EXPENSE DATABASE'!B21)","v":"LANDSCAPING"},null,{"$f":"'EXPENSE DATABASE'!J21","v":{"v":0,"d":"$0"}},null,{"v":0,"d":"$0 /sf"},21,21,null,21,0]
[null,null,{"$f":"T('EXPENSE DATABASE'!B22)","v":"MISC. EXTERIOR ITEMS"},null,{"$f":"'EXPENSE DATABASE'!J22","v":{"v":0,"d":"$0"}},null,{"v":0,"d":"$0 /sf"},22,22,null,22,0]
[null,null,{"$f":"T('EXPENSE DATABASE'!B23)","v":"FRAMING & DRYWALL"},null,{"$f":"'EXPENSE DATABASE'!J23","v":{"v":500,"d":"$500"}},null,{"v":0.3333333333333333,"d":"$0 /sf"},23,23,null,23,1]
[null,null,{"$f":"T('EXPENSE DATABASE'!B24)","v":"CABINETS & COUNTERTOPS"},null,{"$f":"'EXPENSE DATABASE'!J24","v":{"v":0,"d":"$0"}},null,{"v":0,"d":"$0 /sf"},24,24,null,24,0]
[null,null,{"$f":"T('EXPENSE DATABASE'!B25)","v":"DOORS & TRIM"},null,{"$f":"'EXPENSE DATABASE'!J25","v":{"v":3339.3199999999997,"d":"$3,339"}},null,{"v":2.226213333333333,"d":"$2 /sf"},25,25,null,25,1]
[null,null,{"$f":"T('EXPENSE DATABASE'!B26)","v":"CARPET & RESILIENT"},null,{"$f":"'EXPENSE DATABASE'!J26","v":{"v":0,"d":"$0"}},null,{"v":0,"d":"$0 /sf"},26,26,null,26,0]
[null,null,{"$f":"T('EXPENSE DATABASE'!B27)","v":"HARDWOOD FLOORING"},null,{"$f":"'EXPENSE DATABASE'!J27","v":{"v":567.2,"d":"$567"}},null,{"v":0.3781333333333334,"d":"$0 /sf"},27,27,null,27,1]
[null,null,{"$f":"T('EXPENSE DATABASE'!B28)","v":"TILING"},null,{"$f":"'EXPENSE DATABASE'!J28","v":{"v":2325.23,"d":"$2,325"}},null,{"v":1.5501533333333333,"d":"$2 /sf"},28,28,null,28,1]
[null,null,{"$f":"T('EXPENSE DATABASE'!B29)","v":"PAINTING"},null,{"$f":"'EXPENSE DATABASE'!J29","v":{"v":4902.45,"d":"$4,902"}},null,{"v":3.2683,"d":"$3 /sf"},29,29,null,29,1]
[null,null,{"$f":"T('EXPENSE DATABASE'!B30)","v":"APPLIANCES"},null,{"$f":"'EXPENSE DATABASE'!J30","v":{"v":0,"d":"$0"}},null,{"v":0,"d":"$0 /sf"},30,30,null,30,0]
[null,null,{"$f":"T('EXPENSE DATABASE'!B31)","v":"PLUMBING"},null,{"$f":"'EXPENSE DATABASE'!J31","v":{"v":3473.08,"d":"$3,473"}},null,{"v":2.3153866666666665,"d":"$2 /sf"},31,31,null,31,1]
[null,null,{"$f":"T('EXPENSE DATABASE'!B32)","v":"HVAC"},null,{"$f":"'EXPENSE DATABASE'!J32","v":{"v":0,"d":"$0"}},null,{"v":0,"d":"$0 /sf"},32,32,null,32,0]
[null,null,{"$f":"T('EXPENSE DATABASE'!B33)","v":"ELECTRICAL"},null,{"$f":"'EXPENSE DATABASE'!J33","v":{"v":2610,"d":"$2,610"}},null,{"v":1.74,"d":"$2 /sf"},33,33,null,33,1]
[null,null,{"$f":"T('EXPENSE DATABASE'!B34)","v":"MISCELLANEOUS"},null,{"$f":"'EXPENSE DATABASE'!J34","v":{"v":0,"d":"$0"}},null,{"v":0,"d":"$0 /sf"},34,34,null,34,0]
[null,null,{"$f":"T('EXPENSE DATABASE'!B35)","v":"CHANGE ORDER"},null,{"$f":"'EXPENSE DATABASE'!J35","v":{"v":0,"d":"$0"}},null,{"v":0,"d":"$0 /sf"},35,35,null,35,0]
[null,null,"UNASSIGNED",null,{"$f":"'EXPENSE DATABASE'!J36","v":{"v":4385.599999999991,"d":"$4,386"}},null,{"v":2.9237333333333275,"d":"$3 /sf"},36,36,null,36,1]
[null,null,"TOTALS",null,{"$f":"SUM(E17:F47)","v":{"v":76902.87999999999,"d":"$76,903"}},null,{"$f":"SUM(G17:G47)","v":{"v":51.26858666666665,"d":"$51 /sf"}},37,37,null,37,1]
[{"$nulls":7},38,38,null,38,1]
[{"$nulls":7},39,39,null,39,1]
[null,null,"SCOPE EXPENSE DETAIL",{"$nulls":4},40,40,null,40,1]
[null,null,{"$f":"T(Street_Address)","v":"1234 Main St"},{"$nulls":4},41,41,null,41,1]
[null,null,{"$f":"T(City_State_Zip)","v":"Kansas City, MO 64116"},{"$nulls":4},42,42,null,42,1]
[{"$nulls":7},43,43,null,43,1]
[{"$nulls":7},44,44,null,44,1]
[null,null,"DATE","DESCRIPTION/MEMO","QTY","COST","TOTAL COST",45,45,null,45,1]
[{"$nulls":7},46,46,null,46,1]
[{"$nulls":7},47,47,null,47,1]
[{"$nulls":3},{"$f":"T('EXPENSE DATABASE'!E6)","v":"PURCHASE PRICE"},{"$nulls":3},48,1000,null,1000,{"$f":"K907","v":1}]
[{"$nulls":3},{"$f":"T('EXPENSE DATABASE'!E7)","v":"BUYING COSTS"},{"$nulls":3},49,2000,null,2000,2]
[{"$nulls":3},{"$f":"T('EXPENSE DATABASE'!E8)","v":"HOLDING COSTS"},{"$nulls":3},50,3000,null,3000,0]
[{"$nulls":3},{"$f":"T('EXPENSE DATABASE'!E9)","v":"SELLING COSTS"},{"$nulls":3},51,4000,null,4000,0]
[{"$nulls":3},{"$f":"T('EXPENSE DATABASE'!E10)","v":"FINANCING COSTS"},{"$nulls":3},52,5000,null,5000,0]
[{"$nulls":3},{"$f":"T('EXPENSE DATABASE'!E11)","v":"GENERAL CONDITIONS"},{"$nulls":3},53,6000,null,6000,0]
[{"$nulls":3},{"$f":"T('EXPENSE DATABASE'!E12)","v":"DEMOLITION"},{"$nulls":3},54,7000,null,7000,4]
[{"$nulls":3},{"$f":"T('EXPENSE DATABASE'!E13)","v":"STRUCTURAL CONCRETE"},{"$nulls":3},55,8000,null,8000,0]
[{"$nulls":3},{"$f":"T('EXPENSE DATABASE'!E14)","v":"CONCRETE & FLATWORK"},{"$nulls":3},56,9000,null,9000,0]
[{"$nulls":3},{"$f":"T('EXPENSE DATABASE'!E15)","v":"MASONRY"},{"$nulls":3},57,10000,null,10000,0]
[{"$nulls":3},{"$f":"T('EXPENSE DATABASE'!E16)","v":"SIDING"},{"$nulls":3},58,11000,null,11000,0]
[{"$nulls":3},{"$f":"T('EXPENSE DATABASE'!E17)","v":"DECKING AND PATIOS"},{"$nulls":3},59,12000,null,12000,0]
[{"$nulls":3},{"$f":"T('EXPENSE DATABASE'!E18)","v":"ROOFING"},{"$nulls":3},60,13000,null,13000,0]
[{"$nulls":3},{"$f":"T('EXPENSE DATABASE'!E19)","v":"EXTERIOR DOORS & WINDOWS"},{"$nulls":3},61,14000,null,14000,0]
[{"$nulls":3},{"$f":"T('EXPENSE DATABASE'!E20)","v":"GARAGE DOORS"},{"$nulls":3},62,15000,null,15000,0]
[{"$nulls":3},{"$f":"T('EXPENSE DATABASE'!E21)","v":"LANDSCAPING"},{"$nulls":3},63,16000,null,16000,0]
[{"$nulls":3},{"$f":"T('EXPENSE DATABASE'!E22)","v":"MISC. EXTERIOR ITEMS"},{"$nulls":3},64,17000,null,17000,0]
[{"$nulls":3},{"$f":"T('EXPENSE DATABASE'!E23)","v":"FRAMING & DRYWALL"},{"$nulls":3},65,18000,null,{"$f":"I76+J76","v":18000},1]
[{"$nulls":3},{"$f":"T('EXPENSE DATABASE'!E24)","v":"CABINETS & COUNTERTOPS"},{"$nulls":3},66,19000,null,19000,0]
[{"$nulls":3},{"$f":"T('EXPENSE DATABASE'!E25)","v":"DOORS & TRIM"},{"$nulls":3},67,20000,null,20000,3]
[{"$nulls":3},{"$f":"T('EXPENSE DATABASE'!E26)","v":"CARPET & RESILIENT"},{"$nulls":3},68,21000,null,21000,0]
[{"$nulls":3},{"$f":"T('EXPENSE DATABASE'!E27)","v":"HARDWOOD FLOORING"},{"$nulls":3},69,22000,null,22000,1]
[{"$nulls":3},{"$f":"T('EXPENSE DATABASE'!E28)","v":"TILING"},{"$nulls":3},70,23000,null,23000,2]
[{"$nulls":3},{"$f":"T('EXPENSE DATABASE'!E29)","v":"PAINTING"},{"$nulls":3},71,24000,null,24000,3]
[{"$nulls":3},{"$f":"T('EXPENSE DATABASE'!E30)","v":"APPLIANCES"},{"$nulls":3},72,25000,null,25000,0]
[{"$nulls":3},{"$f":"T('EXPENSE DATABASE'!E31)","v":"PLUMBING"},{"$nulls":3},73,26000,null,26000,2]
[{"$nulls":3},{"$f":"T('EXPENSE DATABASE'!E32)","v":"HVAC"},{"$nulls":3},74,27000,null,27000,0]
[{"$nulls":3},{"$f":"T('EXPENSE DATABASE'!E33)","v":"ELECTRICAL"},{"$nulls":3},75,28000,null,28000,2]
[{"$nulls":3},{"$f":"T('EXPENSE DATABASE'!E34)","v":"MISCELLANEOUS"},{"$nulls":3},76,29000,null,29000,0]
[{"$nulls":3},{"$f":"T('EXPENSE DATABASE'!E35)","v":"CHANGE ORDER"},{"$nulls":3},77,30000,null,30000,0]
[{"$nulls":3},"UNASSIGNED",{"$nulls":3},78,31000,null,31000,729]
[{"$nulls":5},{"$f":"CONCATENATE('EXPENSE DATABASE'!E6,\" \",\"TOTAL \")","v":"PURCHASE PRICE TOTAL "},{"$f":"Purchase_Expense","v":{"v":52000,"d":"$52,000.00"}},79,1998,null,1998,{"$f":"K907","v":1}]
[{"$nulls":7},80,1999,null,1999,{"$f":"L90","v":1}]
[{"$nulls":5},{"$f":"CONCATENATE('EXPENSE DATABASE'!T189,\" \",\"TOTALS \")","v":"BUYING COSTS TOTALS "},{"$f":"Buying_Costs_Expenses","v":{"v":1060,"d":"$1,060.00"}},81,2998,null,2998,{"$f":"K908","v":2}]
[{"$nulls":7},82,2999,null,2999,{"$f":"L92","v":2}]
[{"$nulls":5},{"$f":"CONCATENATE('EXPENSE DATABASE'!T190,\" \",\"TOTALS \")","v":"HOLDING COSTS TOTALS "},{"$f":"Holding_Costs_Expenses","v":{"v":0,"d":"$0.00"}},83,3998,null,3998,{"$f":"K909","v":0}]
[{"$nulls":7},84,3999,null,3999,{"$f":"L94","v":0}]
[{"$nulls":5},{"$f":"CONCATENATE('EXPENSE DATABASE'!T191,\" \",\"TOTALS \")","v":"SELLING COSTS TOTALS "},{"$f":"Selling_Costs_Expenses","v":{"v":0,"d":"$0.00"}},85,4998,null,4998,{"$f":"K910","v":0}]
[{"$nulls":7},86,4999,null,4999,{"$f":"L96","v":0}]
[{"$nulls":5},{"$f":"CONCATENATE('EXPENSE DATABASE'!T192,\" \",\"TOTALS \")","v":"FINANCING COSTS TOTALS "},{"$f":"Financing_Cost_Expenses","v":{"v":0,"d":"$0.00"}},87,5998,null,5998,{"$f":"K911","v":0}]
[{"$nulls":7},88,5999,null,5999,{"$f":"L98","v":0}]
[{"$nulls":5},{"$f":"CONCATENATE('EXPENSE DATABASE'!V187,\" \",\"TOTALS \")","v":"GENERAL CONDITIONS TOTALS "},{"$f":"General_Conditions_Expenses","v":{"v":0,"d":"$0.00"}},89,6998,null,6998,{"$f":"K912","v":0}]
[{"$nulls":7},90,6999,null,6999,{"$f":"L100","v":0}]
[{"$nulls":5},{"$f":"CONCATENATE('EXPENSE DATABASE'!V188,\" \",\"TOTALS \")","v":"DEMOLITION TOTALS "},{"$f":"Demolition_Expenses","v":{"v":1740,"d":"$1,740.00"}},91,7998,null,7998,{"$f":"K913","v":4}]
[{"$nulls":7},92,7999,null,7999,{"$f":"L102","v":4}]
[{"$nulls":5},{"$f":"CONCATENATE('EXPENSE DATABASE'!V189,\" \",\"TOTALS \")","v":"STRUCTURAL CONCRETE TOTALS "},{"$f":"Structural_Concrete_Expenses","v":{"v":0,"d":"$0.00"}},93,8998,null,8998,{"$f":"K914","v":0}]
[{"$nulls":7},94,8999,null,8999,{"$f":"L104","v":0}]
[{"$nulls":5},{"$f":"CONCATENATE('EXPENSE DATABASE'!V190,\" \",\"TOTALS \")","v":"CONCRETE & FLATWORK TOTALS "},{"$f":"Concrete_Flatwork_Expenses","v":{"v":0,"d":"$0.00"}},95,9998,null,9998,{"$f":"K915","v":0}]
[{"$nulls":7},96,9999,null,9999,{"$f":"L106","v":0}]
[{"$nulls":5},{"$f":"CONCATENATE('EXPENSE DATABASE'!V191,\" \",\"TOTALS \")","v":"MASONRY TOTALS "},{"$f":"Masonry_Expenses","v":{"v":0,"d":"$0.00"}},97,10998,null,10998,{"$f":"K916","v":0}]
[{"$nulls":7},98,10999,null,10999,{"$f":"L108","v":0}]
[{"$nulls":5},{"$f":"CONCATENATE('EXPENSE DATABASE'!V192,\" \",\"TOTALS \")","v":"SIDING TOTALS "},{"$f":"Siding_Expenses","v":{"v":0,"d":"$0.00"}},99,11998,null,11998,{"$f":"K917","v":0}]
[{"$nulls":7},100,11999,null,11999,{"$f":"L110","v":0}]
[{"$nulls":5},{"$f":"CONCATENATE('EXPENSE DATABASE'!V193,\" \",\"TOTALS \")","v":"DECKING AND PATIOS TOTALS "},{"$f":"Decking_Expenses","v":{"v":0,"d":"$0.00"}},101,12998,null,12998,{"$f":"K918","v":0}]
[{"$nulls":7},102,12999,null,12999,{"$f":"L112","v":0}]
[{"$nulls":5},{"$f":"CONCATENATE('EXPENSE DATABASE'!V194,\" \",\"TOTALS \")","v":"ROOFING TOTALS "},{"$f":"Roofing_Expenses","v":{"v":0,"d":"$0.00"}},103,13998,null,13998,{"$f":"K919","v":0}]
[{"$nulls":7},104,13999,null,13999,{"$f":"L114","v":0}]
[{"$nulls":5},{"$f":"CONCATENATE('EXPENSE DATABASE'!X187,\" \",\"TOTALS \")","v":"EXTERIOR DOORS & WINDOWS TOTALS "},{"$f":"Doors_Windows_Expenses","v":{"v":0,"d":"$0.00"}},105,14998,null,14998,{"$f":"K920","v":0}]
[{"$nulls":7},106,14999,null,14999,{"$f":"L116","v":0}]
[{"$nulls":5},{"$f":"CONCATENATE('EXPENSE DATABASE'!X188,\" \",\"TOTALS \")","v":"GARAGE DOORS TOTALS "},{"$f":"Garage_Doors_Expenses","v":{"v":0,"d":"$0.00"}},107,15998,null,15998,{"$f":"K921","v":0}]
[{"$nulls":7},108,15999,null,15999,{"$f":"L118","v":0}]
[{"$nulls":5},{"$f":"CONCATENATE('EXPENSE DATABASE'!X189,\" \",\"TOTALS \")","v":"LANDSCAPING TOTALS "},{"$f":"Landscaping_Expenses","v":{"v":0,"d":"$0.00"}},109,16998,null,16998,{"$f":"K922","v":0}]
[{"$nulls":7},110,16999,null,16999,{"$f":"L120","v":0}]
[{"$nulls":5},{"$f":"CONCATENATE('EXPENSE DATABASE'!X190,\" \",\"TOTALS \")","v":"MISC. EXTERIOR ITEMS TOTALS "},{"$f":"Misc_Ext_Expenses","v":{"v":0,"d":"$0.00"}},111,17998,null,17998,{"$f":"K923","v":0}]
[{"$nulls":7},112,17999,null,17999,{"$f":"L122","v":0}]
[{"$nulls":5},{"$f":"CONCATENATE('EXPENSE DATABASE'!X191,\" \",\"TOTALS \")","v":"FRAMING & DRYWALL TOTALS "},{"$f":"Framing_Drywall_Expenses","v":{"v":500,"d":"$500.00"}},113,18998,null,18998,{"$f":"K924","v":1}]
[{"$nulls":7},114,18999,null,18999,{"$f":"L124","v":1}]
[{"$nulls":5},{"$f":"CONCATENATE('EXPENSE DATABASE'!X192,\" \",\"TOTALS \")","v":"CABINETS & COUNTERTOPS TOTALS "},{"$f":"Cabinets_Counters_Expenses","v":{"v":0,"d":"$0.00"}},115,19998,null,19998,{"$f":"K925","v":0}]
[{"$nulls":7},116,19999,null,19999,{"$f":"L126","v":0}]
[{"$nulls":5},{"$f":"CONCATENATE('EXPENSE DATABASE'!X193,\" \",\"TOTALS \")","v":"DOORS & TRIM TOTALS "},{"$f":"Doors_Trim_Expenses","v":{"v":3339.3199999999997,"d":"$3,339.32"}},117,20998,null,20998,{"$f":"K926","v":3}]
[{"$nulls":7},118,20999,null,20999,{"$f":"L128","v":3}]
[{"$nulls":5},{"$f":"CONCATENATE('EXPENSE DATABASE'!X194,\" \",\"TOTALS \")","v":"CARPET & RESILIENT TOTALS "},{"$f":"Carpet_Expenses","v":{"v":0,"d":"$0.00"}},119,21998,null,21998,{"$f":"K927","v":0}]
[{"$nulls":7},120,21999,null,21999,{"$f":"L130","v":0}]
[{"$nulls":5},{"$f":"CONCATENATE('EXPENSE DATABASE'!Z187,\" \",\"TOTALS \")","v":"HARDWOOD FLOORING TOTALS "},{"$f":"Hardwood_Flooring_Expenses","v":{"v":567.2,"d":"$567.20"}},121,22998,null,22998,{"$f":"K928","v":1}]
[{"$nulls":7},122,22999,null,22999,{"$f":"L132","v":1}]
[{"$nulls":5},{"$f":"CONCATENATE('EXPENSE DATABASE'!Z188,\" \",\"TOTALS \")","v":"TILING TOTALS "},{"$f":"Tiling_Expenses","v":{"v":2325.23,"d":"$2,325.23"}},123,23998,null,23998,{"$f":"K929","v":2}]
[{"$nulls":7},124,23999,null,23999,{"$f":"L134","v":2}]
[{"$nulls":5},{"$f":"CONCATENATE('EXPENSE DATABASE'!Z189,\" \",\"TOTALS \")","v":"PAINTING TOTALS "},{"$f":"Painting_Expenses","v":{"v":4902.45,"d":"$4,902.45"}},125,24998,null,24998,{"$f":"K930","v":3}]
[{"$nulls":7},126,24999,null,24999,{"$f":"L136","v":3}]
[{"$nulls":5},{"$f":"CONCATENATE('EXPENSE DATABASE'!Z190,\" \",\"TOTALS \")","v":"APPLIANCES TOTALS "},{"$f":"Appliances_Expenses","v":{"v":0,"d":"$0.00"}},127,25998,null,25998,{"$f":"K931","v":0}]
[{"$nulls":7},128,25999,null,25999,{"$f":"L138","v":0}]
[{"$nulls":5},{"$f":"CONCATENATE('EXPENSE DATABASE'!Z191,\" \",\"TOTALS \")","v":"PLUMBING TOTALS "},{"$f":"Plumbing_Expenses","v":{"v":3473.08,"d":"$3,473.08"}},129,26998,null,{"$f":"I140+J140","v":26998},{"$f":"K932","v":2}]
[{"$nulls":7},130,26999,null,26999,{"$f":"L140","v":2}]
[{"$nulls":5},{"$f":"CONCATENATE('EXPENSE DATABASE'!Z192,\" \",\"TOTALS \")","v":"HVAC TOTALS "},{"$f":"HVAC_Expenses","v":{"v":0,"d":"$0.00"}},131,27998,null,27998,{"$f":"K933","v":0}]
[{"$nulls":7},132,27999,null,27999,{"$f":"L142","v":0}]
[{"$nulls":5},{"$f":"CONCATENATE('EXPENSE DATABASE'!Z193,\" \",\"TOTALS \")","v":"ELECTRICAL TOTALS "},{"$f":"Electrical_Expenses","v":{"v":2610,"d":"$2,610.00"}},133,28998,null,28998,{"$f":"K934","v":2}]
[{"$nulls":7},134,28999,null,28999,{"$f":"L144","v":2}]
[{"$nulls":5},{"$f":"CONCATENATE('EXPENSE DATABASE'!Z194,\" \",\"TOTALS \")","v":"MISCELLANEOUS TOTALS "},{"$f":"Furnishings_Expenses","v":{"v":0,"d":"$0.00"}},135,29998,null,29998,{"$f":"K935","v":0}]
[{"$nulls":7},136,29999,null,29999,{"$f":"L146","v":0}]
[{"$nulls":5},{"$f":"CONCATENATE('EXPENSE DATABASE'!Z195,\" \",\"CHANGE ORDER TOTALS \")","v":" CHANGE ORDER TOTALS "},{"$f":"Furnishings_Expenses","v":{"v":0,"d":"$0.00"}},137,30998,null,30998,{"$f":"K937","v":729}]
[{"$nulls":7},138,30999,null,30999,{"$f":"L148","v":729}]
[{"$nulls":5},"UNASSIGNED TOTALS",{"$f":"'EXPENSE DATABASE'!J36","v":{"v":4385.599999999991,"d":"$4,385.60"}},139,31998,null,31998,{"$f":"K937","v":729}]
[{"$nulls":7},140,31999,null,31999,{"$f":"L150","v":729}]
[null,null,{"$f":"IF('3 INCOME & EXPENSE'!E14=0,\"\",'3 INCOME & EXPENSE'!E14)","v":"2014-07-20"},{"$f":"T('3 INCOME & EXPENSE'!G14)","v":"Purchase Price for Property - Reference HUD -1"},{"$f":"'3 INCOME & EXPENSE'!M14","v":{"v":1,"d":"1.0"}},{"$f":"'3 INCOME & EXPENSE'!N14","v":{"v":52000,"d":"$52,000.00"}},{"$f":"'3 INCOME & EXPENSE'!O14","v":{"v":52000,"d":"$52,000.00"}},141,{"$f":"'3 INCOME & EXPENSE'!Z14","v":1},{"$f":"VLOOKUP(I152,$J$939:$K$969,2)","v":1000},1001,{"$f":"K152*E152","v":1001}]
[null,null,{"$f":"IF('3 INCOME & EXPENSE'!E15=0,\"\",'3 INCOME & EXPENSE'!E15)","v":"2014-07-20"},{"$f":"T('3 INCOME & EXPENSE'!G15)","v":"Buying Expenses for Property - Reference HUD-1"},{"$f":"'3 INCOME & EXPENSE'!M15","v":{"v":1,"d":"1.0"}},{"$f":"'3 INCOME & EXPENSE'!N15","v":{"v":565,"d":"$565.00"}},{"$f":"'3 INCOME & EXPENSE'!O15","v":{"v":565,"d":"$565.00"}},142,{"$f":"'3 INCOME & EXPENSE'!Z15","v":2},2000,2002,2002]
[null,null,{"$f":"IF('3 INCOME & EXPENSE'!E16=0,\"\",'3 INCOME & EXPENSE'!E16)","v":"2014-07-21"},{"$f":"T('3 INCOME & EXPENSE'!G16)","v":"Property Inspection"},{"$f":"'3 INCOME & EXPENSE'!M16","v":{"v":1,"d":"1.0"}},{"$f":"'3 INCOME & EXPENSE'!N16","v":{"v":495,"d":"$495.00"}},{"$f":"'3 INCOME & EXPENSE'!O16","v":{"v":495,"d":"$495.00"}},143,{"$f":"'3 INCOME & EXPENSE'!Z16","v":2},2000,2002,2002]
[null,null,{"$f":"IF('3 INCOME & EXPENSE'!E17=0,\"\",'3 INCOME & EXPENSE'!E17)","v":"2014-07-25"},{"$f":"T('3 INCOME & EXPENSE'!G17)","v":"Dumpster Rental"},{"$f":"'3 INCOME & EXPENSE'!M17","v":{"v":1,"d":"1.0"}},{"$f":"'3 INCOME & EXPENSE'!N17","v":{"v":370,"d":"$370.00"}},{"$f":"'3 INCOME & EXPENSE'!O17","v":{"v":370,"d":"$370.00"}},144,{"$f":"'3 INCOME & EXPENSE'!Z17","v":7},7000,7007,7007]
[null,null,{"$f":"IF('3 INCOME & EXPENSE'!E18=0,\"\",'3 INCOME & EXPENSE'!E18)","v":"2014-07-28"},{"$f":"T('3 INCOME & EXPENSE'!G18)","v":"Demolition - 1st Payment"},{"$f":"'3 INCOME & EXPENSE'!M18","v":{"v":1,"d":"1.0"}},{"$f":"'3 INCOME & EXPENSE'!N18","v":{"v":500,"d":"$500.00"}},{"$f":"'3 INCOME & EXPENSE'!O18","v":{"v":500,"d":"$500.00"}},145,{"$f":"'3 INCOME & EXPENSE'!Z18","v":7},7000,7007,7007]
[null,null,{"$f":"IF('3 INCOME & EXPENSE'!E19=0,\"\",'3 INCOME & EXPENSE'!E19)","v":"2014-08-01"},{"$f":"T('3 INCOME & EXPENSE'!G19)","v":"Demolition - 2nd Payment"},{"$f":"'3 INCOME & EXPENSE'!M19","v":{"v":1,"d":"1.0"}},{"$f":"'3 INCOME & EXPENSE'!N19","v":{"v":500,"d":"$500.00"}},{"$f":"'3 INCOME & EXPENSE'!O19","v":{"v":500,"d":"$500.00"}},146,{"$f":"'3 INCOME & EXPENSE'!Z19","v":7},7000,7007,7007]
[null,null,{"$f":"IF('3 INCOME & EXPENSE'!E20=0,\"\",'3 INCOME & EXPENSE'!E20)","v":"2014-07-28"},{"$f":"T('3 INCOME & EXPENSE'!G20)","v":"Exterior doors and window material"},{"$f":"'3 INCOME & EXPENSE'!M20","v":{"v":1,"d":"1.0"}},{"$f":"'3 INCOME & EXPENSE'!N20","v":{"v":2635.6,"d":"$2,635.60"}},{"$f":"'3 INCOME & EXPENSE'!O20","v":{"v":2635.6,"d":"$2,635.60"}},147,{"$f":"'3 INCOME & EXPENSE'!Z20","v":31},31000,31031,31031]
[null,null,{"$f":"IF('3 INCOME & EXPENSE'!E21=0,\"\",'3 INCOME & EXPENSE'!E21)","v":"2014-08-01"},{"$f":"T('3 INCOME & EXPENSE'!G21)","v":"Exterior Doors & Windows - 1st Payment"},{"$f":"'3 INCOME & EXPENSE'!M21","v":{"v":1,"d":"1.0"}},{"$f":"'3 INCOME & EXPENSE'!N21","v":{"v":750,"d":"$750.00"}},{"$f":"'3 INCOME & EXPENSE'!O21","v":{"v":750,"d":"$750.00"}},148,{"$f":"'3 INCOME & EXPENSE'!Z21","v":31},31000,31031,31031]
[null,null,{"$f":"IF('3 INCOME & EXPENSE'!E22=0,\"\",'3 INCOME & EXPENSE'!E22)","v":"2014-08-05"},{"$f":"T('3 INCOME & EXPENSE'!G22)","v":"Exterior Doors & Windows - 2nd Payment"},{"$f":"'3 INCOME & EXPENSE'!M22","v":{"v":1,"d":"1.0"}},{"$f":"'3 INCOME & EXPENSE'!N22","v":{"v":500,"d":"$500.00"}},{"$f":"'3 INCOME & EXPENSE'!O22","v":{"v":500,"d":"$500.00"}},149,{"$f":"'3 INCOME & EXPENSE'!Z22","v":31},31000,31031,31031]
[null,null,{"$f":"IF('3 INCOME & EXPENSE'!E23=0,\"\",'3 INCOME & EXPENSE'!E23)","v":"2014-08-08"},{"$f":"T('3 INCOME & EXPENSE'!G23)","v":"Plumbing Rough in - 1st Payment"},{"$f":"'3 INCOME & EXPENSE'!M23","v":{"v":1,"d":"1.0"}},{"$f":"'3 INCOME & EXPENSE'!N23","v":{"v":1250,"d":"$1,250.00"}},{"$f":"'3 INCOME & EXPENSE'!O23","v":{"v":1250,"d":"$1,250.00"}},150,{"$f":"'3 INCOME & EXPENSE'!Z23","v":26},26000,26026,26026]
[null,null,{"$f":"IF('3 INCOME & EXPENSE'!E24=0,\"\",'3 INCOME & EXPENSE'!E24)","v":"2014-08-08"},{"$f":"T('3 INCOME & EXPENSE'!G24)","v":"Electrical Rough in - 1st Payment"},{"$f":"'3 INCOME & EXPENSE'!M24","v":{"v":1,"d":"1.0"}},{"$f":"'3 INCOME & EXPENSE'!N24","v":{"v":1250,"d":"$1,250.00"}},{"$f":"'3 INCOME & EXPENSE'!O24","v":{"v":1250,"d":"$1,250.00"}},151,{"$f":"'3 INCOME & EXPENSE'!Z24","v":28},28000,28028,28028]
[null,null,{"$f":"IF('3 INCOME & EXPENSE'!E25=0,\"\",'3 INCOME & EXPENSE'!E25)","v":"2014-08-11"},{"$f":"T('3 INCOME & EXPENSE'!G25)","v":"Drywall Patching & Prep"},{"$f":"'3 INCOME & EXPENSE'!M25","v":{"v":1,"d":"1.0"}},{"$f":"'3 INCOME & EXPENSE'!N25","v":{"v":500,"d":"$500.00"}},{"$f":"'3 INCOME & EXPENSE'!O25","v":{"v":500,"d":"$500.00"}},152,{"$f":"'3 INCOME & EXPENSE'!Z25","v":18},18000,18018,18018]
[null,null,{"$f":"IF('3 INCOME & EXPENSE'!E26=0,\"\",'3 INCOME & EXPENSE'!E26)","v":"2014-08-05"},{"$f":"T('3 INCOME & EXPENSE'!G26)","v":"Doors, Trim, Handrail - Home Depot"},{"$f":"'3 INCOME & EXPENSE'!M26","v":{"v":1,"d":"1.0"}},{"$f":"'3 INCOME & EXPENSE'!N26","v":{"v":1689.32,"d":"$1,689.32"}},{"$f":"'3 INCOME & EXPENSE'!O26","v":{"v":1689.32,"d":"$1,689.32"}},153,{"$f":"'3 INCOME & EXPENSE'!Z26","v":20},20000,20020,20020]
[null,null,{"$f":"IF('3 INCOME & EXPENSE'!E27=0,\"\",'3 INCOME & EXPENSE'!E27)","v":"2014-08-11"},{"$f":"T('3 INCOME & EXPENSE'!G27)","v":"Doors & Trim Installation - 1st Payment"},{"$f":"'3 INCOME & EXPENSE'!M27","v":{"v":1,"d":"1.0"}},{"$f":"'3 INCOME & EXPENSE'!N27","v":{"v":825,"d":"$825.00"}},{"$f":"'3 INCOME & EXPENSE'!O27","v":{"v":825,"d":"$825.00"}},154,{"$f":"'3 INCOME & EXPENSE'!Z27","v":20},20000,20020,20020]
[null,null,{"$f":"IF('3 INCOME & EXPENSE'!E28=0,\"\",'3 INCOME & EXPENSE'!E28)","v":"2014-08-14"},{"$f":"T('3 INCOME & EXPENSE'!G28)","v":"Electrical Fixtures"},{"$f":"'3 INCOME & EXPENSE'!M28","v":{"v":1,"d":"1.0"}},{"$f":"'3 INCOME & EXPENSE'!N28","v":{"v":1360,"d":"$1,360.00"}},{"$f":"'3 INCOME & EXPENSE'!O28","v":{"v":1360,"d":"$1,360.00"}},155,{"$f":"'3 INCOME & EXPENSE'!Z28","v":28},28000,28028,28028]
[null,null,{"$f":"IF('3 INCOME & EXPENSE'!E29=0,\"\",'3 INCOME & EXPENSE'!E29)","v":"2014-08-14"},{"$f":"T('3 INCOME & EXPENSE'!G29)","v":"Plumbing Fixtures"},{"$f":"'3 INCOME & EXPENSE'!M29","v":{"v":1,"d":"1.0"}},{"$f":"'3 INCOME & EXPENSE'!N29","v":{"v":2223.08,"d":"$2,223.08"}},{"$f":"'3 INCOME & EXPENSE'!O29","v":{"v":2223.08,"d":"$2,223.08"}},156,{"$f":"'3 INCOME & EXPENSE'!Z29","v":26},26000,26026,26026]
[null,null,{"$f":"IF('3 INCOME & EXPENSE'!E30=0,\"\",'3 INCOME & EXPENSE'!E30)","v":"2014-08-14"},{"$f":"T('3 INCOME & EXPENSE'!G30)","v":"Tiling Materials"},{"$f":"'3 INCOME & EXPENSE'!M30","v":{"v":1,"d":"1.0"}},{"$f":"'3 INCOME & EXPENSE'!N30","v":{"v":1675.23,"d":"$1,675.23"}},{"$f":"'3 INCOME & EXPENSE'!O30","v":{"v":1675.23,"d":"$1,675.23"}},157,{"$f":"'3 INCOME & EXPENSE'!Z30","v":23},23000,23023,23023]
[null,null,{"$f":"IF('3 INCOME & EXPENSE'!E31=0,\"\",'3 INCOME & EXPENSE'!E31)","v":"2014-08-15"},{"$f":"T('3 INCOME & EXPENSE'!G31)","v":"Doors & Trim Installation - 2ndPayment"},{"$f":"'3 INCOME & EXPENSE'!M31","v":{"v":1,"d":"1.0"}},{"$f":"'3 INCOME & EXPENSE'!N31","v":{"v":825,"d":"$825.00"}},{"$f":"'3 INCOME & EXPENSE'!O31","v":{"v":825,"d":"$825.00"}},158,{"$f":"'3 INCOME & EXPENSE'!Z31","v":20},20000,20020,20020]
[null,null,{"$f":"IF('3 INCOME & EXPENSE'!E32=0,\"\",'3 INCOME & EXPENSE'!E32)","v":"2014-08-18"},{"$f":"T('3 INCOME & EXPENSE'!G32)","v":"Paint Materials"},{"$f":"'3 INCOME & EXPENSE'!M32","v":{"v":1,"d":"1.0"}},{"$f":"'3 INCOME & EXPENSE'!N32","v":{"v":2652.45,"d":"$2,652.45"}},{"$f":"'3 INCOME & EXPENSE'!O32","v":{"v":2652.45,"d":"$2,652.45"}},159,{"$f":"'3 INCOME & EXPENSE'!Z32","v":24},24000,24024,24024]
[null,null,{"$f":"IF('3 INCOME & EXPENSE'!E33=0,\"\",'3 INCOME & EXPENSE'!E33)","v":"2014-08-18"},{"$f":"T('3 INCOME & EXPENSE'!G33)","v":"Exterior Painting - 1st Payment"},{"$f":"'3 INCOME & EXPENSE'!M33","v":{"v":1,"d":"1.0"}},{"$f":"'3 INCOME & EXPENSE'!N33","v":{"v":1250,"d":"$1,250.00"}},{"$f":"'3 INCOME & EXPENSE'!O33","v":{"v":1250,"d":"$1,250.00"}},160,{"$f":"'3 INCOME & EXPENSE'!Z33","v":24},24000,24024,24024]
[null,null,{"$f":"IF('3 INCOME & EXPENSE'!E34=0,\"\",'3 INCOME & EXPENSE'!E34)","v":"2014-08-18"},{"$f":"T('3 INCOME & EXPENSE'!G34)","v":"Interior Painting - 1st Payment"},{"$f":"'3 INCOME & EXPENSE'!M34","v":{"v":1,"d":"1.0"}},{"$f":"'3 INCOME & EXPENSE'!N34","v":{"v":1000,"d":"$1,000.00"}},{"$f":"'3 INCOME & EXPENSE'!O34","v":{"v":1000,"d":"$1,000.00"}},161,{"$f":"'3 INCOME & EXPENSE'!Z34","v":24},24000,24024,24024]
[null,null,{"$f":"IF('3 INCOME & EXPENSE'!E35=0,\"\",'3 INCOME & EXPENSE'!E35)","v":"2014-08-25"},{"$f":"T('3 INCOME & EXPENSE'!G35)","v":"Tiling - 1st Payment"},{"$f":"'3 INCOME & EXPENSE'!M35","v":{"v":1,"d":"1.0"}},{"$f":"'3 INCOME & EXPENSE'!N35","v":{"v":650,"d":"$650.00"}},{"$f":"'3 INCOME & EXPENSE'!O35","v":{"v":650,"d":"$650.00"}},162,{"$f":"'3 INCOME & EXPENSE'!Z35","v":23},23000,23023,23023]
[null,null,{"$f":"IF('3 INCOME & EXPENSE'!E36=0,\"\",'3 INCOME & EXPENSE'!E36)","v":"2014-08-25"},{"$f":"T('3 INCOME & EXPENSE'!G36)","v":"Hardwood flooring materials"},{"$f":"'3 INCOME & EXPENSE'!M36","v":{"v":1,"d":"1.0"}},{"$f":"'3 INCOME & EXPENSE'!N36","v":{"v":567.2,"d":"$567.20"}},{"$f":"'3 INCOME & EXPENSE'!O36","v":{"v":567.2,"d":"$567.20"}},163,{"$f":"'3 INCOME & EXPENSE'!Z36","v":22},22000,22022,22022]
[null,null,{"$f":"IF('3 INCOME & EXPENSE'!E37=0,\"\",'3 INCOME & EXPENSE'!E37)","v":"2014-08-25"},{"$f":"T('3 INCOME & EXPENSE'!G37)","v":"Dumpster Rental"},{"$f":"'3 INCOME & EXPENSE'!M37","v":{"v":1,"d":"1.0"}},{"$f":"'3 INCOME & EXPENSE'!N37","v":{"v":370,"d":"$370.00"}},{"$f":"'3 INCOME & EXPENSE'!O37","v":{"v":370,"d":"$370.00"}},164,{"$f":"'3 INCOME & EXPENSE'!Z37","v":7},7000,7007,7007]
[null,null,{"$f":"IF('3 INCOME & EXPENSE'!E38=0,\"\",'3 INCOME & EXPENSE'!E38)","v":"2014-08-25"},{"$f":"T('3 INCOME & EXPENSE'!G38)","v":"Electrical Change order"},{"$f":"'3 INCOME & EXPENSE'!M38","v":{"v":1,"d":"1.0"}},{"$f":"'3 INCOME & EXPENSE'!N38","v":{"v":500,"d":"$500.00"}},{"$f":"'3 INCOME & EXPENSE'!O38","v":{"v":500,"d":"$500.00"}},165,{"$f":"'3 INCOME & EXPENSE'!Z38","v":31},31000,31031,31031]
[null,null,{"$f":"IF('3 INCOME & EXPENSE'!E39=0,\"\",'3 INCOME & EXPENSE'!E39)","v":""},{"$f":"T('3 INCOME & EXPENSE'!G39)","v":""},{"$f":"'3 INCOME & EXPENSE'!M39","v":{"v":0,"d":"0.0"}},{"$f":"'3 INCOME & EXPENSE'!N39","v":{"v":0,"d":"$0.00"}},{"$f":"'3 INCOME & EXPENSE'!O39","v":{"v":0,"d":"$0.00"}},166,{"$f":"'3 INCOME & EXPENSE'!Z39","v":31},31000,31031,0]
[null,null,{"$f":"IF('3 INCOME & EXPENSE'!E40=0,\"\",'3 INCOME & EXPENSE'!E40)","v":""},{"$f":"T('3 INCOME & EXPENSE'!G40)","v":""},{"$f":"'3 INCOME & EXPENSE'!M40","v":{"v":0,"d":"0.0"}},{"$f":"'3 INCOME & EXPENSE'!N40","v":{"v":0,"d":"$0.00"}},{"$f":"'3 INCOME & EXPENSE'!O40","v":{"v":0,"d":"$0.00"}},167,{"$f":"'3 INCOME & EXPENSE'!Z40","v":31},31000,31031,0]
[null,null,{"$f":"IF('3 INCOME & EXPENSE'!E41=0,\"\",'3 INCOME & EXPENSE'!E41)","v":""},{"$f":"T('3 INCOME & EXPENSE'!G41)","v":""},{"$f":"'3 INCOME & EXPENSE'!M41","v":{"v":0,"d":"0.0"}},{"$f":"'3 INCOME & EXPENSE'!N41","v":{"v":0,"d":"$0.00"}},{"$f":"'3 INCOME & EXPENSE'!O41","v":{"v":0,"d":"$0.00"}},168,{"$f":"'3 INCOME & EXPENSE'!Z41","v":31},31000,31031,0]
[null,null,{"$f":"IF('3 INCOME & EXPENSE'!E42=0,\"\",'3 INCOME & EXPENSE'!E42)","v":""},{"$f":"T('3 INCOME & EXPENSE'!G42)","v":""},{"$f":"'3 INCOME & EXPENSE'!M42","v":{"v":0,"d":"0.0"}},{"$f":"'3 INCOME & EXPENSE'!N42","v":{"v":0,"d":"$0.00"}},{"$f":"'3 INCOME & EXPENSE'!O42","v":{"v":0,"d":"$0.00"}},169,{"$f":"'3 INCOME & EXPENSE'!Z42","v":31},31000,31031,0]
[null,null,{"$f":"IF('3 INCOME & EXPENSE'!E43=0,\"\",'3 INCOME & EXPENSE'!E43)","v":""},{"$f":"T('3 INCOME & EXPENSE'!G43)","v":""},{"$f":"'3 INCOME & EXPENSE'!M43","v":{"v":0,"d":"0.0"}},{"$f":"'3 INCOME & EXPENSE'!N43","v":{"v":0,"d":"$0.00"}},{"$f":"'3 INCOME & EXPENSE'!O43","v":{"v":0,"d":"$0.00"}},170,{"$f":"'3 INCOME & EXPENSE'!Z43","v":31},31000,31031,0]
[null,null,{"$f":"IF('3 INCOME & EXPENSE'!E44=0,\"\",'3 INCOME & EXPENSE'!E44)","v":""},{"$f":"T('3 INCOME & EXPENSE'!G44)","v":""},{"$f":"'3 INCOME & EXPENSE'!M44","v":{"v":0,"d":"0.0"}},{"$f":"'3 INCOME & EXPENSE'!N44","v":{"v":0,"d":"$0.00"}},{"$f":"'3 INCOME & EXPENSE'!O44","v":{"v":0,"d":"$0.00"}},171,{"$f":"'3 INCOME & EXPENSE'!Z44","v":31},31000,31031,0]
[null,null,{"$f":"IF('3 INCOME & EXPENSE'!E45=0,\"\",'3 INCOME & EXPENSE'!E45)","v":""},{"$f":"T('3 INCOME & EXPENSE'!G45)","v":""},{"$f":"'3 INCOME & EXPENSE'!M45","v":{"v":0,"d":"0.0"}},{"$f":"'3 INCOME & EXPENSE'!N45","v":{"v":0,"d":"$0.00"}},{"$f":"'3 INCOME & EXPENSE'!O45","v":{"v":0,"d":"$0.00"}},172,{"$f":"'3 INCOME & EXPENSE'!Z45","v":31},31000,31031,0]
[null,null,{"$f":"IF('3 INCOME & EXPENSE'!E46=0,\"\",'3 INCOME & EXPENSE'!E46)","v":""},{"$f":"T('3 INCOME & EXPENSE'!G46)","v":""},{"$f":"'3 INCOME & EXPENSE'!M46","v":{"v":0,"d":"0.0"}},{"$f":"'3 INCOME & EXPENSE'!N46","v":{"v":0,"d":"$0.00"}},{"$f":"'3 INCOME & EXPENSE'!O46","v":{"v":0,"d":"$0.00"}},173,{"$f":"'3 INCOME & EXPENSE'!Z46","v":31},31000,31031,0]
[null,null,{"$f":"IF('3 INCOME & EXPENSE'!E47=0,\"\",'3 INCOME & EXPENSE'!E47)","v":""},{"$f":"T('3 INCOME & EXPENSE'!G47)","v":""},{"$f":"'3 INCOME & EXPENSE'!M47","v":{"v":0,"d":"0.0"}},{"$f":"'3 INCOME & EXPENSE'!N47","v":{"v":0,"d":"$0.00"}},{"$f":"'3 INCOME & EXPENSE'!O47","v":{"v":0,"d":"$0.00"}},174,{"$f":"'3 INCOME & EXPENSE'!Z47","v":31},31000,31031,0]
[null,null,{"$f":"IF('3 INCOME & EXPENSE'!E48=0,\"\",'3 INCOME & EXPENSE'!E48)","v":""},{"$f":"T('3 INCOME & EXPENSE'!G48)","v":""},{"$f":"'3 INCOME & EXPENSE'!M48","v":{"v":0,"d":"0.0"}},{"$f":"'3 INCOME & EXPENSE'!N48","v":{"v":0,"d":"$0.00"}},{"$f":"'3 INCOME & EXPENSE'!O48","v":{"v":0,"d":"$0.00"}},175,{"$f":"'3 INCOME & EXPENSE'!Z48","v":31},31000,31031,0]
[null,null,{"$f":"IF('3 INCOME & EXPENSE'!E49=0,\"\",'3 INCOME & EXPENSE'!E49)","v":""},{"$f":"T('3 INCOME & EXPENSE'!G49)","v":""},{"$f":"'3 INCOME & EXPENSE'!M49","v":{"v":0,"d":"0.0"}},{"$f":"'3 INCOME & EXPENSE'!N49","v":{"v":0,"d":"$0.00"}},{"$f":"'3 INCOME & EXPENSE'!O49","v":{"v":0,"d":"$0.00"}},176,{"$f":"'3 INCOME & EXPENSE'!Z49","v":31},31000,31031,0]
[null,null,{"$f":"IF('3 INCOME & EXPENSE'!E50=0,\"\",'3 INCOME & EXPENSE'!E50)","v":""},{"$f":"T('3 INCOME & EXPENSE'!G50)","v":""},{"$f":"'3 INCOME & EXPENSE'!M50","v":{"v":0,"d":"0.0"}},{"$f":"'3 INCOME & EXPENSE'!N50","v":{"v":0,"d":"$0.00"}},{"$f":"'3 INCOME & EXPENSE'!O50","v":{"v":0,"d":"$0.00"}},177,{"$f":"'3 INCOME & EXPENSE'!Z50","v":31},31000,31031,0]
[null,null,{"$f":"IF('3 INCOME & EXPENSE'!E51=0,\"\",'3 INCOME & EXPENSE'!E51)","v":""},{"$f":"T('3 INCOME & EXPENSE'!G51)","v":""},{"$f":"'3 INCOME & EXPENSE'!M51","v":{"v":0,"d":"0.0"}},{"$f":"'3 INCOME & EXPENSE'!N51","v":{"v":0,"d":"$0.00"}},{"$f":"'3 INCOME & EXPENSE'!O51","v":{"v":0,"d":"$0.00"}},178,{"$f":"'3 INCOME & EXPENSE'!Z51","v":31},31000,31031,0]
[null,null,{"$f":"IF('3 INCOME & EXPENSE'!E52=0,\"\",'3 INCOME & EXPENSE'!E52)","v":""},{"$f":"T('3 INCOME & EXPENSE'!G52)","v":""},{"$f":"'3 INCOME & EXPENSE'!M52","v":{"v":0,"d":"0.0"}},{"$f":"'3 INCOME & EXPENSE'!N52","v":{"v":0,"d":"$0.00"}},{"$f":"'3 INCOME & EXPENSE'!O52","v":{"v":0,"d":"$0.00"}},179,{"$f":"'3 INCOME & EXPENSE'!Z52","v":31},31000,31031,0]
[null,null,{"$f":"IF('3 INCOME & EXPENSE'!E53=0,\"\",'3 INCOME & EXPENSE'!E53)","v":""},{"$f":"T('3 INCOME & EXPENSE'!G53)","v":""},{"$f":"'3 INCOME & EXPENSE'!M53","v":{"v":0,"d":"0.0"}},{"$f":"'3 INCOME & EXPENSE'!N53","v":{"v":0,"d":"$0.00"}},{"$f":"'3 INCOME & EXPENSE'!O53","v":{"v":0,"d":"$0.00"}},180,{"$f":"'3 INCOME & EXPENSE'!Z53","v":31},31000,31031,0]
[null,null,{"$f":"IF('3 INCOME & EXPENSE'!E54=0,\"\",'3 INCOME & EXPENSE'!E54)","v":""},{"$f":"T('3 INCOME & EXPENSE'!G54)","v":""},{"$f":"'3 INCOME & EXPENSE'!M54","v":{"v":0,"d":"0.0"}},{"$f":"'3 INCOME & EXPENSE'!N54","v":{"v":0,"d":"$0.00"}},{"$f":"'3 INCOME & EXPENSE'!O54","v":{"v":0,"d":"$0.00"}},181,{"$f":"'3 INCOME & EXPENSE'!Z54","v":31},31000,31031,0]
[null,null,{"$f":"IF('3 INCOME & EXPENSE'!E55=0,\"\",'3 INCOME & EXPENSE'!E55)","v":""},{"$f":"T('3 INCOME & EXPENSE'!G55)","v":""},{"$f":"'3 INCOME & EXPENSE'!M55","v":{"v":0,"d":"0.0"}},{"$f":"'3 INCOME & EXPENSE'!N55","v":{"v":0,"d":"$0.00"}},{"$f":"'3 INCOME & EXPENSE'!O55","v":{"v":0,"d":"$0.00"}},182,{"$f":"'3 INCOME & EXPENSE'!Z55","v":31},31000,31031,0]
[null,null,{"$f":"IF('3 INCOME & EXPENSE'!E56=0,\"\",'3 INCOME & EXPENSE'!E56)","v":""},{"$f":"T('3 INCOME & EXPENSE'!G56)","v":""},{"$f":"'3 INCOME & EXPENSE'!M56","v":{"v":0,"d":"0.0"}},{"$f":"'3 INCOME & EXPENSE'!N56","v":{"v":0,"d":"$0.00"}},{"$f":"'3 INCOME & EXPENSE'!O56","v":{"v":0,"d":"$0.00"}},183,{"$f":"'3 INCOME & EXPENSE'!Z56","v":31},31000,31031,0]
[null,null,{"$f":"IF('3 INCOME & EXPENSE'!E57=0,\"\",'3 INCOME & EXPENSE'!E57)","v":""},{"$f":"T('3 INCOME & EXPENSE'!G57)","v":""},{"$f":"'3 INCOME & EXPENSE'!M57","v":{"v":0,"d":"0.0"}},{"$f":"'3 INCOME & EXPENSE'!N57","v":{"v":0,"d":"$0.00"}},{"$f":"'3 INCOME & EXPENSE'!O57","v":{"v":0,"d":"$0.00"}},184,{"$f":"'3 INCOME & EXPENSE'!Z57","v":31},31000,31031,0]
[null,null,{"$f":"IF('3 INCOME & EXPENSE'!E58=0,\"\",'3 INCOME & EXPENSE'!E58)","v":""},{"$f":"T('3 INCOME & EXPENSE'!G58)","v":""},{"$f":"'3 INCOME & EXPENSE'!M58","v":{"v":0,"d":"0.0"}},{"$f":"'3 INCOME & EXPENSE'!N58","v":{"v":0,"d":"$0.00"}},{"$f":"'3 INCOME & EXPENSE'!O58","v":{"v":0,"d":"$0.00"}},185,{"$f":"'3 INCOME & EXPENSE'!Z58","v":31},31000,31031,0]
[null,null,{"$f":"IF('3 INCOME & EXPENSE'!E59=0,\"\",'3 INCOME & EXPENSE'!E59)","v":""},{"$f":"T('3 INCOME & EXPENSE'!G59)","v":""},{"$f":"'3 INCOME & EXPENSE'!M59","v":{"v":0,"d":"0.0"}},{"$f":"'3 INCOME & EXPENSE'!N59","v":{"v":0,"d":"$0.00"}},{"$f":"'3 INCOME & EXPENSE'!O59","v":{"v":0,"d":"$0.00"}},186,{"$f":"'3 INCOME & EXPENSE'!Z59","v":31},31000,31031,0]
[null,null,{"$f":"IF('3 INCOME & EXPENSE'!E60=0,\"\",'3 INCOME & EXPENSE'!E60)","v":""},{"$f":"T('3 INCOME & EXPENSE'!G60)","v":""},{"$f":"'3 INCOME & EXPENSE'!M60","v":{"v":0,"d":"0.0"}},{"$f":"'3 INCOME & EXPENSE'!N60","v":{"v":0,"d":"$0.00"}},{"$f":"'3 INCOME & EXPENSE'!O60","v":{"v":0,"d":"$0.00"}},187,{"$f":"'3 INCOME & EXPENSE'!Z60","v":31},31000,31031,0]
[null,null,{"$f":"IF('3 INCOME & EXPENSE'!E61=0,\"\",'3 INCOME & EXPENSE'!E61)","v":""},{"$f":"T('3 INCOME & EXPENSE'!G61)","v":""},{"$f":"'3 INCOME & EXPENSE'!M61","v":{"v":0,"d":"0.0"}},{"$f":"'3 INCOME & EXPENSE'!N61","v":{"v":0,"d":"$0.00"}},{"$f":"'3 INCOME & EXPENSE'!O61","v":{"v":0,"d":"$0.00"}},188,{"$f":"'3 INCOME & EXPENSE'!Z61","v":31},31000,31031,0]
[null,null,{"$f":"IF('3 INCOME & EXPENSE'!E62=0,\"\",'3 INCOME & EXPENSE'!E62)","v":""},{"$f":"T('3 INCOME & EXPENSE'!G62)","v":""},{"$f":"'3 INCOME & EXPENSE'!M62","v":{"v":0,"d":"0.0"}},{"$f":"'3 INCOME & EXPENSE'!N62","v":{"v":0,"d":"$0.00"}},{"$f":"'3 INCOME & EXPENSE'!O62","v":{"v":0,"d":"$0.00"}},189,{"$f":"'3 INCOME & EXPENSE'!Z62","v":31},31000,31031,0]
[null,null,{"$f":"IF('3 INCOME & EXPENSE'!E63=0,\"\",'3 INCOME & EXPENSE'!E63)","v":""},{"$f":"T('3 INCOME & EXPENSE'!G63)","v":""},{"$f":"'3 INCOME & EXPENSE'!M63","v":{"v":0,"d":"0.0"}},{"$f":"'3 INCOME & EXPENSE'!N63","v":{"v":0,"d":"$0.00"}},{"$f":"'3 INCOME & EXPENSE'!O63","v":{"v":0,"d":"$0.00"}},190,{"$f":"'3 INCOME & EXPENSE'!Z63","v":31},31000,31031,0]
[null,null,{"$f":"IF('3 INCOME & EXPENSE'!E64=0,\"\",'3 INCOME & EXPENSE'!E64)","v":""},{"$f":"T('3 INCOME & EXPENSE'!G64)","v":""},{"$f":"'3 INCOME & EXPENSE'!M64","v":{"v":0,"d":"0.0"}},{"$f":"'3 INCOME & EXPENSE'!N64","v":{"v":0,"d":"$0.00"}},{"$f":"'3 INCOME & EXPENSE'!O64","v":{"v":0,"d":"$0.00"}},191,{"$f":"'3 INCOME & EXPENSE'!Z64","v":31},31000,31031,0]
[null,null,{"$f":"IF('3 INCOME & EXPENSE'!E65=0,\"\",'3 INCOME & EXPENSE'!E65)","v":""},{"$f":"T('3 INCOME & EXPENSE'!G65)","v":""},{"$f":"'3 INCOME & EXPENSE'!M65","v":{"v":0,"d":"0.0"}},{"$f":"'3 INCOME & EXPENSE'!N65","v":{"v":0,"d":"$0.00"}},{"$f":"'3 INCOME & EXPENSE'!O65","v":{"v":0,"d":"$0.00"}},192,{"$f":"'3 INCOME & EXPENSE'!Z65","v":31},31000,31031,0]
[null,null,{"$f":"IF('3 INCOME & EXPENSE'!E66=0,\"\",'3 INCOME & EXPENSE'!E66)","v":""},{"$f":"T('3 INCOME & EXPENSE'!G66)","v":""},{"$f":"'3 INCOME & EXPENSE'!M66","v":{"v":0,"d":"0.0"}},{"$f":"'3 INCOME & EXPENSE'!N66","v":{"v":0,"d":"$0.00"}},{"$f":"'3 INCOME & EXPENSE'!O66","v":{"v":0,"d":"$0.00"}},193,{"$f":"'3 INCOME & EXPENSE'!Z66","v":31},31000,{"$f":"I204+J204","v":31031},0]
[null,null,{"$f":"IF('3 INCOME & EXPENSE'!E67=0,\"\",'3 INCOME & EXPENSE'!E67)","v":""},{"$f":"T('3 INCOME & EXPENSE'!G67)","v":""},{"$f":"'3 INCOME & EXPENSE'!M67","v":{"v":0,"d":"0.0"}},{"$f":"'3 INCOME & EXPENSE'!N67","v":{"v":0,"d":"$0.00"}},{"$f":"'3 INCOME & EXPENSE'!O67","v":{"v":0,"d":"$0.00"}},194,{"$f":"'3 INCOME & EXPENSE'!Z67","v":31},31000,31031,0]
[null,null,{"$f":"IF('3 INCOME & EXPENSE'!E68=0,\"\",'3 INCOME & EXPENSE'!E68)","v":""},{"$f":"T('3 INCOME & EXPENSE'!G68)","v":""},{"$f":"'3 INCOME & EXPENSE'!M68","v":{"v":0,"d":"0.0"}},{"$f":"'3 INCOME & EXPENSE'!N68","v":{"v":0,"d":"$0.00"}},{"$f":"'3 INCOME & EXPENSE'!O68","v":{"v":0,"d":"$0.00"}},195,{"$f":"'3 INCOME & EXPENSE'!Z68","v":31},31000,31031,0]
[null,null,{"$f":"IF('3 INCOME & EXPENSE'!E69=0,\"\",'3 INCOME & EXPENSE'!E69)","v":""},{"$f":"T('3 INCOME & EXPENSE'!G69)","v":""},{"$f":"'3 INCOME & EXPENSE'!M69","v":{"v":0,"d":"0.0"}},{"$f":"'3 INCOME & EXPENSE'!N69","v":{"v":0,"d":"$0.00"}},{"$f":"'3 INCOME & EXPENSE'!O69","v":{"v":0,"d":"$0.00"}},196,{"$f":"'3 INCOME & EXPENSE'!Z69","v":31},31000,31031,0]
[null,null,{"$f":"IF('3 INCOME & EXPENSE'!E70=0,\"\",'3 INCOME & EXPENSE'!E70)","v":""},{"$f":"T('3 INCOME & EXPENSE'!G70)","v":""},{"$f":"'3 INCOME & EXPENSE'!M70","v":{"v":0,"d":"0.0"}},{"$f":"'3 INCOME & EXPENSE'!N70","v":{"v":0,"d":"$0.00"}},{"$f":"'3 INCOME & EXPENSE'!O70","v":{"v":0,"d":"$0.00"}},197,{"$f":"'3 INCOME & EXPENSE'!Z70","v":31},31000,31031,0]
[null,null,{"$f":"IF('3 INCOME & EXPENSE'!E71=0,\"\",'3 INCOME & EXPENSE'!E71)","v":""},{"$f":"T('3 INCOME & EXPENSE'!G71)","v":""},{"$f":"'3 INCOME & EXPENSE'!M71","v":{"v":0,"d":"0.0"}},{"$f":"'3 INCOME & EXPENSE'!N71","v":{"v":0,"d":"$0.00"}},{"$f":"'3 INCOME & EXPENSE'!O71","v":{"v":0,"d":"$0.00"}},198,{"$f":"'3 INCOME & EXPENSE'!Z71","v":31},31000,31031,0]
[null,null,{"$f":"IF('3 INCOME & EXPENSE'!E72=0,\"\",'3 INCOME & EXPENSE'!E72)","v":""},{"$f":"T('3 INCOME & EXPENSE'!G72)","v":""},{"$f":"'3 INCOME & EXPENSE'!M72","v":{"v":0,"d":"0.0"}},{"$f":"'3 INCOME & EXPENSE'!N72","v":{"v":0,"d":"$0.00"}},{"$f":"'3 INCOME & EXPENSE'!O72","v":{"v":0,"d":"$0.00"}},199,{"$f":"'3 INCOME & EXPENSE'!Z72","v":31},31000,31031,0]
[null,null,{"$f":"IF('3 INCOME & EXPENSE'!E73=0,\"\",'3 INCOME & EXPENSE'!E73)","v":""},{"$f":"T('3 INCOME & EXPENSE'!G73)","v":""},{"$f":"'3 INCOME & EXPENSE'!M73","v":{"v":0,"d":"0.0"}},{"$f":"'3 INCOME & EXPENSE'!N73","v":{"v":0,"d":"$0.00"}},{"$f":"'3 INCOME & EXPENSE'!O73","v":{"v":0,"d":"$0.00"}},200,{"$f":"'3 INCOME & EXPENSE'!Z73","v":31},31000,31031,0]
[null,null,{"$f":"IF('3 INCOME & EXPENSE'!E74=0,\"\",'3 INCOME & EXPENSE'!E74)","v":""},{"$f":"T('3 INCOME & EXPENSE'!G74)","v":""},{"$f":"'3 INCOME & EXPENSE'!M74","v":{"v":0,"d":"0.0"}},{"$f":"'3 INCOME & EXPENSE'!N74","v":{"v":0,"d":"$0.00"}},{"$f":"'3 INCOME & EXPENSE'!O74","v":{"v":0,"d":"$0.00"}},201,{"$f":"'3 INCOME & EXPENSE'!Z74","v":31},31000,31031,0]
[null,null,{"$f":"IF('3 INCOME & EXPENSE'!E75=0,\"\",'3 INCOME & EXPENSE'!E75)","v":""},{"$f":"T('3 INCOME & EXPENSE'!G75)","v":""},{"$f":"'3 INCOME & EXPENSE'!M75","v":{"v":0,"d":"0.0"}},{"$f":"'3 INCOME & EXPENSE'!N75","v":{"v":0,"d":"$0.00"}},{"$f":"'3 INCOME & EXPENSE'!O75","v":{"v":0,"d":"$0.00"}},202,{"$f":"'3 INCOME & EXPENSE'!Z75","v":31},31000,31031,0]
[null,null,{"$f":"IF('3 INCOME & EXPENSE'!E76=0,\"\",'3 INCOME & EXPENSE'!E76)","v":""},{"$f":"T('3 INCOME & EXPENSE'!G76)","v":""},{"$f":"'3 INCOME & EXPENSE'!M76","v":{"v":0,"d":"0.0"}},{"$f":"'3 INCOME & EXPENSE'!N76","v":{"v":0,"d":"$0.00"}},{"$f":"'3 INCOME & EXPENSE'!O76","v":{"v":0,"d":"$0.00"}},203,{"$f":"'3 INCOME & EXPENSE'!Z76","v":31},31000,31031,0]
[null,null,{"$f":"IF('3 INCOME & EXPENSE'!E77=0,\"\",'3 INCOME & EXPENSE'!E77)","v":""},{"$f":"T('3 INCOME & EXPENSE'!G77)","v":""},{"$f":"'3 INCOME & EXPENSE'!M77","v":{"v":0,"d":"0.0"}},{"$f":"'3 INCOME & EXPENSE'!N77","v":{"v":0,"d":"$0.00"}},{"$f":"'3 INCOME & EXPENSE'!O77","v":{"v":0,"d":"$0.00"}},204,{"$f":"'3 INCOME & EXPENSE'!Z77","v":31},31000,31031,0]
[null,null,{"$f":"IF('3 INCOME & EXPENSE'!E78=0,\"\",'3 INCOME & EXPENSE'!E78)","v":""},{"$f":"T('3 INCOME & EXPENSE'!G78)","v":""},{"$f":"'3 INCOME & EXPENSE'!M78","v":{"v":0,"d":"0.0"}},{"$f":"'3 INCOME & EXPENSE'!N78","v":{"v":0,"d":"$0.00"}},{"$f":"'3 INCOME & EXPENSE'!O78","v":{"v":0,"d":"$0.00"}},205,{"$f":"'3 INCOME & EXPENSE'!Z78","v":31},{"$f":"VLOOKUP(I216,$J$939:$K$969,2)","v":31000},31031,{"$f":"K216*E216","v":0}]
[null,null,{"$f":"IF('3 INCOME & EXPENSE'!E79=0,\"\",'3 INCOME & EXPENSE'!E79)","v":""},{"$f":"T('3 INCOME & EXPENSE'!G79)","v":""},{"$f":"'3 INCOME & EXPENSE'!M79","v":{"v":0,"d":"0.0"}},{"$f":"'3 INCOME & EXPENSE'!N79","v":{"v":0,"d":"$0.00"}},{"$f":"'3 INCOME & EXPENSE'!O79","v":{"v":0,"d":"$0.00"}},206,{"$f":"'3 INCOME & EXPENSE'!Z79","v":31},31000,31031,0]
[null,null,{"$f":"IF('3 INCOME & EXPENSE'!E80=0,\"\",'3 INCOME & EXPENSE'!E80)","v":""},{"$f":"T('3 INCOME & EXPENSE'!G80)","v":""},{"$f":"'3 INCOME & EXPENSE'!M80","v":{"v":0,"d":"0.0"}},{"$f":"'3 INCOME & EXPENSE'!N80","v":{"v":0,"d":"$0.00"}},{"$f":"'3 INCOME & EXPENSE'!O80","v":{"v":0,"d":"$0.00"}},207,{"$f":"'3 INCOME & EXPENSE'!Z80","v":31},31000,31031,0]
[null,null,{"$f":"IF('3 INCOME & EXPENSE'!E81=0,\"\",'3 INCOME & EXPENSE'!E81)","v":""},{"$f":"T('3 INCOME & EXPENSE'!G81)","v":""},{"$f":"'3 INCOME & EXPENSE'!M81","v":{"v":0,"d":"0.0"}},{"$f":"'3 INCOME & EXPENSE'!N81","v":{"v":0,"d":"$0.00"}},{"$f":"'3 INCOME & EXPENSE'!O81","v":{"v":0,"d":"$0.00"}},208,{"$f":"'3 INCOME & EXPENSE'!Z81","v":31},31000,31031,0]
[null,null,{"$f":"IF('3 INCOME & EXPENSE'!E82=0,\"\",'3 INCOME & EXPENSE'!E82)","v":""},{"$f":"T('3 INCOME & EXPENSE'!G82)","v":""},{"$f":"'3 INCOME & EXPENSE'!M82","v":{"v":0,"d":"0.0"}},{"$f":"'3 INCOME & EXPENSE'!N82","v":{"v":0,"d":"$0.00"}},{"$f":"'3 INCOME & EXPENSE'!O82","v":{"v":0,"d":"$0.00"}},209,{"$f":"'3 INCOME & EXPENSE'!Z82","v":31},31000,31031,0]
[null,null,{"$f":"IF('3 INCOME & EXPENSE'!E83=0,\"\",'3 INCOME & EXPENSE'!E83)","v":""},{"$f":"T('3 INCOME & EXPENSE'!G83)","v":""},{"$f":"'3 INCOME & EXPENSE'!M83","v":{"v":0,"d":"0.0"}},{"$f":"'3 INCOME & EXPENSE'!N83","v":{"v":0,"d":"$0.00"}},{"$f":"'3 INCOME & EXPENSE'!O83","v":{"v":0,"d":"$0.00"}},210,{"$f":"'3 INCOME & EXPENSE'!Z83","v":31},31000,31031,0]
[null,null,{"$f":"IF('3 INCOME & EXPENSE'!E84=0,\"\",'3 INCOME & EXPENSE'!E84)","v":""},{"$f":"T('3 INCOME & EXPENSE'!G84)","v":""},{"$f":"'3 INCOME & EXPENSE'!M84","v":{"v":0,"d":"0.0"}},{"$f":"'3 INCOME & EXPENSE'!N84","v":{"v":0,"d":"$0.00"}},{"$f":"'3 INCOME & EXPENSE'!O84","v":{"v":0,"d":"$0.00"}},211,{"$f":"'3 INCOME & EXPENSE'!Z84","v":31},31000,31031,0]
[null,null,{"$f":"IF('3 INCOME & EXPENSE'!E85=0,\"\",'3 INCOME & EXPENSE'!E85)","v":""},{"$f":"T('3 INCOME & EXPENSE'!G85)","v":""},{"$f":"'3 INCOME & EXPENSE'!M85","v":{"v":0,"d":"0.0"}},{"$f":"'3 INCOME & EXPENSE'!N85","v":{"v":0,"d":"$0.00"}},{"$f":"'3 INCOME & EXPENSE'!O85","v":{"v":0,"d":"$0.00"}},212,{"$f":"'3 INCOME & EXPENSE'!Z85","v":31},31000,31031,0]
[null,null,{"$f":"IF('3 INCOME & EXPENSE'!E86=0,\"\",'3 INCOME & EXPENSE'!E86)","v":""},{"$f":"T('3 INCOME & EXPENSE'!G86)","v":""},{"$f":"'3 INCOME & EXPENSE'!M86","v":{"v":0,"d":"0.0"}},{"$f":"'3 INCOME & EXPENSE'!N86","v":{"v":0,"d":"$0.00"}},{"$f":"'3 INCOME & EXPENSE'!O86","v":{"v":0,"d":"$0.00"}},213,{"$f":"'3 INCOME & EXPENSE'!Z86","v":31},31000,31031,0]
[null,null,{"$f":"IF('3 INCOME & EXPENSE'!E87=0,\"\",'3 INCOME & EXPENSE'!E87)","v":""},{"$f":"T('3 INCOME & EXPENSE'!G87)","v":""},{"$f":"'3 INCOME & EXPENSE'!M87","v":{"v":0,"d":"0.0"}},{"$f":"'3 INCOME & EXPENSE'!N87","v":{"v":0,"d":"$0.00"}},{"$f":"'3 INCOME & EXPENSE'!O87","v":{"v":0,"d":"$0.00"}},214,{"$f":"'3 INCOME & EXPENSE'!Z87","v":31},31000,31031,0]
[null,null,{"$f":"IF('3 INCOME & EXPENSE'!E88=0,\"\",'3 INCOME & EXPENSE'!E88)","v":""},{"$f":"T('3 INCOME & EXPENSE'!G88)","v":""},{"$f":"'3 INCOME & EXPENSE'!M88","v":{"v":0,"d":"0.0"}},{"$f":"'3 INCOME & EXPENSE'!N88","v":{"v":0,"d":"$0.00"}},{"$f":"'3 INCOME & EXPENSE'!O88","v":{"v":0,"d":"$0.00"}},215,{"$f":"'3 INCOME & EXPENSE'!Z88","v":31},31000,31031,0]
[null,null,{"$f":"IF('3 INCOME & EXPENSE'!E89=0,\"\",'3 INCOME & EXPENSE'!E89)","v":""},{"$f":"T('3 INCOME & EXPENSE'!G89)","v":""},{"$f":"'3 INCOME & EXPENSE'!M89","v":{"v":0,"d":"0.0"}},{"$f":"'3 INCOME & EXPENSE'!N89","v":{"v":0,"d":"$0.00"}},{"$f":"'3 INCOME & EXPENSE'!O89","v":{"v":0,"d":"$0.00"}},216,{"$f":"'3 INCOME & EXPENSE'!Z89","v":31},31000,31031,0]
[null,null,{"$f":"IF('3 INCOME & EXPENSE'!E90=0,\"\",'3 INCOME & EXPENSE'!E90)","v":""},{"$f":"T('3 INCOME & EXPENSE'!G90)","v":""},{"$f":"'3 INCOME & EXPENSE'!M90","v":{"v":0,"d":"0.0"}},{"$f":"'3 INCOME & EXPENSE'!N90","v":{"v":0,"d":"$0.00"}},{"$f":"'3 INCOME & EXPENSE'!O90","v":{"v":0,"d":"$0.00"}},217,{"$f":"'3 INCOME & EXPENSE'!Z90","v":31},31000,31031,0]
[null,null,{"$f":"IF('3 INCOME & EXPENSE'!E91=0,\"\",'3 INCOME & EXPENSE'!E91)","v":""},{"$f":"T('3 INCOME & EXPENSE'!G91)","v":""},{"$f":"'3 INCOME & EXPENSE'!M91","v":{"v":0,"d":"0.0"}},{"$f":"'3 INCOME & EXPENSE'!N91","v":{"v":0,"d":"$0.00"}},{"$f":"'3 INCOME & EXPENSE'!O91","v":{"v":0,"d":"$0.00"}},218,{"$f":"'3 INCOME & EXPENSE'!Z91","v":31},31000,31031,0]
[null,null,{"$f":"IF('3 INCOME & EXPENSE'!E92=0,\"\",'3 INCOME & EXPENSE'!E92)","v":""},{"$f":"T('3 INCOME & EXPENSE'!G92)","v":""},{"$f":"'3 INCOME & EXPENSE'!M92","v":{"v":0,"d":"0.0"}},{"$f":"'3 INCOME & EXPENSE'!N92","v":{"v":0,"d":"$0.00"}},{"$f":"'3 INCOME & EXPENSE'!O92","v":{"v":0,"d":"$0.00"}},219,{"$f":"'3 INCOME & EXPENSE'!Z92","v":31},31000,31031,0]
[null,null,{"$f":"IF('3 INCOME & EXPENSE'!E93=0,\"\",'3 INCOME & EXPENSE'!E93)","v":""},{"$f":"T('3 INCOME & EXPENSE'!G93)","v":""},{"$f":"'3 INCOME & EXPENSE'!M93","v":{"v":0,"d":"0.0"}},{"$f":"'3 INCOME & EXPENSE'!N93","v":{"v":0,"d":"$0.00"}},{"$f":"'3 INCOME & EXPENSE'!O93","v":{"v":0,"d":"$0.00"}},220,{"$f":"'3 INCOME & EXPENSE'!Z93","v":31},31000,31031,0]
[null,null,{"$f":"IF('3 INCOME & EXPENSE'!E94=0,\"\",'3 INCOME & EXPENSE'!E94)","v":""},{"$f":"T('3 INCOME & EXPENSE'!G94)","v":""},{"$f":"'3 INCOME & EXPENSE'!M94","v":{"v":0,"d":"0.0"}},{"$f":"'3 INCOME & EXPENSE'!N94","v":{"v":0,"d":"$0.00"}},{"$f":"'3 INCOME & EXPENSE'!O94","v":{"v":0,"d":"$0.00"}},221,{"$f":"'3 INCOME & EXPENSE'!Z94","v":31},31000,31031,0]
[null,null,{"$f":"IF('3 INCOME & EXPENSE'!E95=0,\"\",'3 INCOME & EXPENSE'!E95)","v":""},{"$f":"T('3 INCOME & EXPENSE'!G95)","v":""},{"$f":"'3 INCOME & EXPENSE'!M95","v":{"v":0,"d":"0.0"}},{"$f":"'3 INCOME & EXPENSE'!N95","v":{"v":0,"d":"$0.00"}},{"$f":"'3 INCOME & EXPENSE'!O95","v":{"v":0,"d":"$0.00"}},222,{"$f":"'3 INCOME & EXPENSE'!Z95","v":31},31000,31031,0]
[null,null,{"$f":"IF('3 INCOME & EXPENSE'!E96=0,\"\",'3 INCOME & EXPENSE'!E96)","v":""},{"$f":"T('3 INCOME & EXPENSE'!G96)","v":""},{"$f":"'3 INCOME & EXPENSE'!M96","v":{"v":0,"d":"0.0"}},{"$f":"'3 INCOME & EXPENSE'!N96","v":{"v":0,"d":"$0.00"}},{"$f":"'3 INCOME & EXPENSE'!O96","v":{"v":0,"d":"$0.00"}},223,{"$f":"'3 INCOME & EXPENSE'!Z96","v":31},31000,31031,0]
[null,null,{"$f":"IF('3 INCOME & EXPENSE'!E97=0,\"\",'3 INCOME & EXPENSE'!E97)","v":""},{"$f":"T('3 INCOME & EXPENSE'!G97)","v":""},{"$f":"'3 INCOME & EXPENSE'!M97","v":{"v":0,"d":"0.0"}},{"$f":"'3 INCOME & EXPENSE'!N97","v":{"v":0,"d":"$0.00"}},{"$f":"'3 INCOME & EXPENSE'!O97","v":{"v":0,"d":"$0.00"}},224,{"$f":"'3 INCOME & EXPENSE'!Z97","v":31},31000,31031,0]
[null,null,{"$f":"IF('3 INCOME & EXPENSE'!E98=0,\"\",'3 INCOME & EXPENSE'!E98)","v":""},{"$f":"T('3 INCOME & EXPENSE'!G98)","v":""},{"$f":"'3 INCOME & EXPENSE'!M98","v":{"v":0,"d":"0.0"}},{"$f":"'3 INCOME & EXPENSE'!N98","v":{"v":0,"d":"$0.00"}},{"$f":"'3 INCOME & EXPENSE'!O98","v":{"v":0,"d":"$0.00"}},225,{"$f":"'3 INCOME & EXPENSE'!Z98","v":31},31000,31031,0]
[null,null,{"$f":"IF('3 INCOME & EXPENSE'!E99=0,\"\",'3 INCOME & EXPENSE'!E99)","v":""},{"$f":"T('3 INCOME & EXPENSE'!G99)","v":""},{"$f":"'3 INCOME & EXPENSE'!M99","v":{"v":0,"d":"0.0"}},{"$f":"'3 INCOME & EXPENSE'!N99","v":{"v":0,"d":"$0.00"}},{"$f":"'3 INCOME & EXPENSE'!O99","v":{"v":0,"d":"$0.00"}},226,{"$f":"'3 INCOME & EXPENSE'!Z99","v":31},31000,31031,0]
[null,null,{"$f":"IF('3 INCOME & EXPENSE'!E100=0,\"\",'3 INCOME & EXPENSE'!E100)","v":""},{"$f":"T('3 INCOME & EXPENSE'!G100)","v":""},{"$f":"'3 INCOME & EXPENSE'!M100","v":{"v":0,"d":"0.0"}},{"$f":"'3 INCOME & EXPENSE'!N100","v":{"v":0,"d":"$0.00"}},{"$f":"'3 INCOME & EXPENSE'!O100","v":{"v":0,"d":"$0.00"}},227,{"$f":"'3 INCOME & EXPENSE'!Z100","v":31},31000,31031,0]
[null,null,{"$f":"IF('3 INCOME & EXPENSE'!E101=0,\"\",'3 INCOME & EXPENSE'!E101)","v":""},{"$f":"T('3 INCOME & EXPENSE'!G101)","v":""},{"$f":"'3 INCOME & EXPENSE'!M101","v":{"v":0,"d":"0.0"}},{"$f":"'3 INCOME & EXPENSE'!N101","v":{"v":0,"d":"$0.00"}},{"$f":"'3 INCOME & EXPENSE'!O101","v":{"v":0,"d":"$0.00"}},228,{"$f":"'3 INCOME & EXPENSE'!Z101","v":31},31000,31031,0]
[null,null,{"$f":"IF('3 INCOME & EXPENSE'!E102=0,\"\",'3 INCOME & EXPENSE'!E102)","v":""},{"$f":"T('3 INCOME & EXPENSE'!G102)","v":""},{"$f":"'3 INCOME & EXPENSE'!M102","v":{"v":0,"d":"0.0"}},{"$f":"'3 INCOME & EXPENSE'!N102","v":{"v":0,"d":"$0.00"}},{"$f":"'3 INCOME & EXPENSE'!O102","v":{"v":0,"d":"$0.00"}},229,{"$f":"'3 INCOME & EXPENSE'!Z102","v":31},31000,31031,0]
[null,null,{"$f":"IF('3 INCOME & EXPENSE'!E103=0,\"\",'3 INCOME & EXPENSE'!E103)","v":""},{"$f":"T('3 INCOME & EXPENSE'!G103)","v":""},{"$f":"'3 INCOME & EXPENSE'!M103","v":{"v":0,"d":"0.0"}},{"$f":"'3 INCOME & EXPENSE'!N103","v":{"v":0,"d":"$0.00"}},{"$f":"'3 INCOME & EXPENSE'!O103","v":{"v":0,"d":"$0.00"}},230,{"$f":"'3 INCOME & EXPENSE'!Z103","v":31},31000,31031,0]
[null,null,{"$f":"IF('3 INCOME & EXPENSE'!E104=0,\"\",'3 INCOME & EXPENSE'!E104)","v":""},{"$f":"T('3 INCOME & EXPENSE'!G104)","v":""},{"$f":"'3 INCOME & EXPENSE'!M104","v":{"v":0,"d":"0.0"}},{"$f":"'3 INCOME & EXPENSE'!N104","v":{"v":0,"d":"$0.00"}},{"$f":"'3 INCOME & EXPENSE'!O104","v":{"v":0,"d":"$0.00"}},231,{"$f":"'3 INCOME & EXPENSE'!Z104","v":31},31000,31031,0]
[null,null,{"$f":"IF('3 INCOME & EXPENSE'!E105=0,\"\",'3 INCOME & EXPENSE'!E105)","v":""},{"$f":"T('3 INCOME & EXPENSE'!G105)","v":""},{"$f":"'3 INCOME & EXPENSE'!M105","v":{"v":0,"d":"0.0"}},{"$f":"'3 INCOME & EXPENSE'!N105","v":{"v":0,"d":"$0.00"}},{"$f":"'3 INCOME & EXPENSE'!O105","v":{"v":0,"d":"$0.00"}},232,{"$f":"'3 INCOME & EXPENSE'!Z105","v":31},31000,31031,0]
[null,null,{"$f":"IF('3 INCOME & EXPENSE'!E106=0,\"\",'3 INCOME & EXPENSE'!E106)","v":""},{"$f":"T('3 INCOME & EXPENSE'!G106)","v":""},{"$f":"'3 INCOME & EXPENSE'!M106","v":{"v":0,"d":"0.0"}},{"$f":"'3 INCOME & EXPENSE'!N106","v":{"v":0,"d":"$0.00"}},{"$f":"'3 INCOME & EXPENSE'!O106","v":{"v":0,"d":"$0.00"}},233,{"$f":"'3 INCOME & EXPENSE'!Z106","v":31},31000,31031,0]
[null,null,{"$f":"IF('3 INCOME & EXPENSE'!E107=0,\"\",'3 INCOME & EXPENSE'!E107)","v":""},{"$f":"T('3 INCOME & EXPENSE'!G107)","v":""},{"$f":"'3 INCOME & EXPENSE'!M107","v":{"v":0,"d":"0.0"}},{"$f":"'3 INCOME & EXPENSE'!N107","v":{"v":0,"d":"$0.00"}},{"$f":"'3 INCOME & EXPENSE'!O107","v":{"v":0,"d":"$0.00"}},234,{"$f":"'3 INCOME & EXPENSE'!Z107","v":31},31000,31031,0]
[null,null,{"$f":"IF('3 INCOME & EXPENSE'!E108=0,\"\",'3 INCOME & EXPENSE'!E108)","v":""},{"$f":"T('3 INCOME & EXPENSE'!G108)","v":""},{"$f":"'3 INCOME & EXPENSE'!M108","v":{"v":0,"d":"0.0"}},{"$f":"'3 INCOME & EXPENSE'!N108","v":{"v":0,"d":"$0.00"}},{"$f":"'3 INCOME & EXPENSE'!O108","v":{"v":0,"d":"$0.00"}},235,{"$f":"'3 INCOME & EXPENSE'!Z108","v":31},31000,31031,0]
[null,null,{"$f":"IF('3 INCOME & EXPENSE'!E109=0,\"\",'3 INCOME & EXPENSE'!E109)","v":""},{"$f":"T('3 INCOME & EXPENSE'!G109)","v":""},{"$f":"'3 INCOME & EXPENSE'!M109","v":{"v":0,"d":"0.0"}},{"$f":"'3 INCOME & EXPENSE'!N109","v":{"v":0,"d":"$0.00"}},{"$f":"'3 INCOME & EXPENSE'!O109","v":{"v":0,"d":"$0.00"}},236,{"$f":"'3 INCOME & EXPENSE'!Z109","v":31},31000,31031,0]
[null,null,{"$f":"IF('3 INCOME & EXPENSE'!E110=0,\"\",'3 INCOME & EXPENSE'!E110)","v":""},{"$f":"T('3 INCOME & EXPENSE'!G110)","v":""},{"$f":"'3 INCOME & EXPENSE'!M110","v":{"v":0,"d":"0.0"}},{"$f":"'3 INCOME & EXPENSE'!N110","v":{"v":0,"d":"$0.00"}},{"$f":"'3 INCOME & EXPENSE'!O110","v":{"v":0,"d":"$0.00"}},237,{"$f":"'3 INCOME & EXPENSE'!Z110","v":31},31000,31031,0]
[null,null,{"$f":"IF('3 INCOME & EXPENSE'!E111=0,\"\",'3 INCOME & EXPENSE'!E111)","v":""},{"$f":"T('3 INCOME & EXPENSE'!G111)","v":""},{"$f":"'3 INCOME & EXPENSE'!M111","v":{"v":0,"d":"0.0"}},{"$f":"'3 INCOME & EXPENSE'!N111","v":{"v":0,"d":"$0.00"}},{"$f":"'3 INCOME & EXPENSE'!O111","v":{"v":0,"d":"$0.00"}},238,{"$f":"'3 INCOME & EXPENSE'!Z111","v":31},31000,31031,0]
[null,null,{"$f":"IF('3 INCOME & EXPENSE'!E112=0,\"\",'3 INCOME & EXPENSE'!E112)","v":""},{"$f":"T('3 INCOME & EXPENSE'!G112)","v":""},{"$f":"'3 INCOME & EXPENSE'!M112","v":{"v":0,"d":"0.0"}},{"$f":"'3 INCOME & EXPENSE'!N112","v":{"v":0,"d":"$0.00"}},{"$f":"'3 INCOME & EXPENSE'!O112","v":{"v":0,"d":"$0.00"}},239,{"$f":"'3 INCOME & EXPENSE'!Z112","v":31},31000,31031,0]
[null,null,{"$f":"IF('3 INCOME & EXPENSE'!E113=0,\"\",'3 INCOME & EXPENSE'!E113)","v":""},{"$f":"T('3 INCOME & EXPENSE'!G113)","v":""},{"$f":"'3 INCOME & EXPENSE'!M113","v":{"v":0,"d":"0.0"}},{"$f":"'3 INCOME & EXPENSE'!N113","v":{"v":0,"d":"$0.00"}},{"$f":"'3 INCOME & EXPENSE'!O113","v":{"v":0,"d":"$0.00"}},240,{"$f":"'3 INCOME & EXPENSE'!Z113","v":31},31000,31031,0]
[null,null,{"$f":"IF('3 INCOME & EXPENSE'!E114=0,\"\",'3 INCOME & EXPENSE'!E114)","v":""},{"$f":"T('3 INCOME & EXPENSE'!G114)","v":""},{"$f":"'3 INCOME & EXPENSE'!M114","v":{"v":0,"d":"0.0"}},{"$f":"'3 INCOME & EXPENSE'!N114","v":{"v":0,"d":"$0.00"}},{"$f":"'3 INCOME & EXPENSE'!O114","v":{"v":0,"d":"$0.00"}},241,{"$f":"'3 INCOME & EXPENSE'!Z114","v":31},31000,31031,0]
[null,null,{"$f":"IF('3 INCOME & EXPENSE'!E115=0,\"\",'3 INCOME & EXPENSE'!E115)","v":""},{"$f":"T('3 INCOME & EXPENSE'!G115)","v":""},{"$f":"'3 INCOME & EXPENSE'!M115","v":{"v":0,"d":"0.0"}},{"$f":"'3 INCOME & EXPENSE'!N115","v":{"v":0,"d":"$0.00"}},{"$f":"'3 INCOME & EXPENSE'!O115","v":{"v":0,"d":"$0.00"}},242,{"$f":"'3 INCOME & EXPENSE'!Z115","v":31},31000,31031,0]
[null,null,{"$f":"IF('3 INCOME & EXPENSE'!E116=0,\"\",'3 INCOME & EXPENSE'!E116)","v":""},{"$f":"T('3 INCOME & EXPENSE'!G116)","v":""},{"$f":"'3 INCOME & EXPENSE'!M116","v":{"v":0,"d":"0.0"}},{"$f":"'3 INCOME & EXPENSE'!N116","v":{"v":0,"d":"$0.00"}},{"$f":"'3 INCOME & EXPENSE'!O116","v":{"v":0,"d":"$0.00"}},243,{"$f":"'3 INCOME & EXPENSE'!Z116","v":31},31000,31031,0]
[null,null,{"$f":"IF('3 INCOME & EXPENSE'!E117=0,\"\",'3 INCOME & EXPENSE'!E117)","v":""},{"$f":"T('3 INCOME & EXPENSE'!G117)","v":""},{"$f":"'3 INCOME & EXPENSE'!M117","v":{"v":0,"d":"0.0"}},{"$f":"'3 INCOME & EXPENSE'!N117","v":{"v":0,"d":"$0.00"}},{"$f":"'3 INCOME & EXPENSE'!O117","v":{"v":0,"d":"$0.00"}},244,{"$f":"'3 INCOME & EXPENSE'!Z117","v":31},31000,31031,0]
[null,null,{"$f":"IF('3 INCOME & EXPENSE'!E118=0,\"\",'3 INCOME & EXPENSE'!E118)","v":""},{"$f":"T('3 INCOME & EXPENSE'!G118)","v":""},{"$f":"'3 INCOME & EXPENSE'!M118","v":{"v":0,"d":"0.0"}},{"$f":"'3 INCOME & EXPENSE'!N118","v":{"v":0,"d":"$0.00"}},{"$f":"'3 INCOME & EXPENSE'!O118","v":{"v":0,"d":"$0.00"}},245,{"$f":"'3 INCOME & EXPENSE'!Z118","v":31},31000,31031,0]
[null,null,{"$f":"IF('3 INCOME & EXPENSE'!E119=0,\"\",'3 INCOME & EXPENSE'!E119)","v":""},{"$f":"T('3 INCOME & EXPENSE'!G119)","v":""},{"$f":"'3 INCOME & EXPENSE'!M119","v":{"v":0,"d":"0.0"}},{"$f":"'3 INCOME & EXPENSE'!N119","v":{"v":0,"d":"$0.00"}},{"$f":"'3 INCOME & EXPENSE'!O119","v":{"v":0,"d":"$0.00"}},246,{"$f":"'3 INCOME & EXPENSE'!Z119","v":31},31000,31031,0]
[null,null,{"$f":"IF('3 INCOME & EXPENSE'!E120=0,\"\",'3 INCOME & EXPENSE'!E120)","v":""},{"$f":"T('3 INCOME & EXPENSE'!G120)","v":""},{"$f":"'3 INCOME & EXPENSE'!M120","v":{"v":0,"d":"0.0"}},{"$f":"'3 INCOME & EXPENSE'!N120","v":{"v":0,"d":"$0.00"}},{"$f":"'3 INCOME & EXPENSE'!O120","v":{"v":0,"d":"$0.00"}},247,{"$f":"'3 INCOME & EXPENSE'!Z120","v":31},31000,31031,0]
[null,null,{"$f":"IF('3 INCOME & EXPENSE'!E121=0,\"\",'3 INCOME & EXPENSE'!E121)","v":""},{"$f":"T('3 INCOME & EXPENSE'!G121)","v":""},{"$f":"'3 INCOME & EXPENSE'!M121","v":{"v":0,"d":"0.0"}},{"$f":"'3 INCOME & EXPENSE'!N121","v":{"v":0,"d":"$0.00"}},{"$f":"'3 INCOME & EXPENSE'!O121","v":{"v":0,"d":"$0.00"}},248,{"$f":"'3 INCOME & EXPENSE'!Z121","v":31},31000,31031,0]
[null,null,{"$f":"IF('3 INCOME & EXPENSE'!E122=0,\"\",'3 INCOME & EXPENSE'!E122)","v":""},{"$f":"T('3 INCOME & EXPENSE'!G122)","v":""},{"$f":"'3 INCOME & EXPENSE'!M122","v":{"v":0,"d":"0.0"}},{"$f":"'3 INCOME & EXPENSE'!N122","v":{"v":0,"d":"$0.00"}},{"$f":"'3 INCOME & EXPENSE'!O122","v":{"v":0,"d":"$0.00"}},249,{"$f":"'3 INCOME & EXPENSE'!Z122","v":31},31000,31031,0]
[null,null,{"$f":"IF('3 INCOME & EXPENSE'!E123=0,\"\",'3 INCOME & EXPENSE'!E123)","v":""},{"$f":"T('3 INCOME & EXPENSE'!G123)","v":""},{"$f":"'3 INCOME & EXPENSE'!M123","v":{"v":0,"d":"0.0"}},{"$f":"'3 INCOME & EXPENSE'!N123","v":{"v":0,"d":"$0.00"}},{"$f":"'3 INCOME & EXPENSE'!O123","v":{"v":0,"d":"$0.00"}},250,{"$f":"'3 INCOME & EXPENSE'!Z123","v":31},31000,31031,0]
[null,null,{"$f":"IF('3 INCOME & EXPENSE'!E124=0,\"\",'3 INCOME & EXPENSE'!E124)","v":""},{"$f":"T('3 INCOME & EXPENSE'!G124)","v":""},{"$f":"'3 INCOME & EXPENSE'!M124","v":{"v":0,"d":"0.0"}},{"$f":"'3 INCOME & EXPENSE'!N124","v":{"v":0,"d":"$0.00"}},{"$f":"'3 INCOME & EXPENSE'!O124","v":{"v":0,"d":"$0.00"}},251,{"$f":"'3 INCOME & EXPENSE'!Z124","v":31},31000,31031,0]
[null,null,{"$f":"IF('3 INCOME & EXPENSE'!E125=0,\"\",'3 INCOME & EXPENSE'!E125)","v":""},{"$f":"T('3 INCOME & EXPENSE'!G125)","v":""},{"$f":"'3 INCOME & EXPENSE'!M125","v":{"v":0,"d":"0.0"}},{"$f":"'3 INCOME & EXPENSE'!N125","v":{"v":0,"d":"$0.00"}},{"$f":"'3 INCOME & EXPENSE'!O125","v":{"v":0,"d":"$0.00"}},252,{"$f":"'3 INCOME & EXPENSE'!Z125","v":31},31000,31031,0]
[null,null,{"$f":"IF('3 INCOME & EXPENSE'!E126=0,\"\",'3 INCOME & EXPENSE'!E126)","v":""},{"$f":"T('3 INCOME & EXPENSE'!G126)","v":""},{"$f":"'3 INCOME & EXPENSE'!M126","v":{"v":0,"d":"0.0"}},{"$f":"'3 INCOME & EXPENSE'!N126","v":{"v":0,"d":"$0.00"}},{"$f":"'3 INCOME & EXPENSE'!O126","v":{"v":0,"d":"$0.00"}},253,{"$f":"'3 INCOME & EXPENSE'!Z126","v":31},31000,31031,0]
[null,null,{"$f":"IF('3 INCOME & EXPENSE'!E127=0,\"\",'3 INCOME & EXPENSE'!E127)","v":""},{"$f":"T('3 INCOME & EXPENSE'!G127)","v":""},{"$f":"'3 INCOME & EXPENSE'!M127","v":{"v":0,"d":"0.0"}},{"$f":"'3 INCOME & EXPENSE'!N127","v":{"v":0,"d":"$0.00"}},{"$f":"'3 INCOME & EXPENSE'!O127","v":{"v":0,"d":"$0.00"}},254,{"$f":"'3 INCOME & EXPENSE'!Z127","v":31},31000,31031,0]
[null,null,{"$f":"IF('3 INCOME & EXPENSE'!E128=0,\"\",'3 INCOME & EXPENSE'!E128)","v":""},{"$f":"T('3 INCOME & EXPENSE'!G128)","v":""},{"$f":"'3 INCOME & EXPENSE'!M128","v":{"v":0,"d":"0.0"}},{"$f":"'3 INCOME & EXPENSE'!N128","v":{"v":0,"d":"$0.00"}},{"$f":"'3 INCOME & EXPENSE'!O128","v":{"v":0,"d":"$0.00"}},255,{"$f":"'3 INCOME & EXPENSE'!Z128","v":31},31000,31031,0]
[null,null,{"$f":"IF('3 INCOME & EXPENSE'!E129=0,\"\",'3 INCOME & EXPENSE'!E129)","v":""},{"$f":"T('3 INCOME & EXPENSE'!G129)","v":""},{"$f":"'3 INCOME & EXPENSE'!M129","v":{"v":0,"d":"0.0"}},{"$f":"'3 INCOME & EXPENSE'!N129","v":{"v":0,"d":"$0.00"}},{"$f":"'3 INCOME & EXPENSE'!O129","v":{"v":0,"d":"$0.00"}},256,{"$f":"'3 INCOME & EXPENSE'!Z129","v":31},31000,31031,0]
[null,null,{"$f":"IF('3 INCOME & EXPENSE'!E130=0,\"\",'3 INCOME & EXPENSE'!E130)","v":""},{"$f":"T('3 INCOME & EXPENSE'!G130)","v":""},{"$f":"'3 INCOME & EXPENSE'!M130","v":{"v":0,"d":"0.0"}},{"$f":"'3 INCOME & EXPENSE'!N130","v":{"v":0,"d":"$0.00"}},{"$f":"'3 INCOME & EXPENSE'!O130","v":{"v":0,"d":"$0.00"}},257,{"$f":"'3 INCOME & EXPENSE'!Z130","v":31},31000,{"$f":"I268+J268","v":31031},0]
[null,null,{"$f":"IF('3 INCOME & EXPENSE'!E131=0,\"\",'3 INCOME & EXPENSE'!E131)","v":""},{"$f":"T('3 INCOME & EXPENSE'!G131)","v":""},{"$f":"'3 INCOME & EXPENSE'!M131","v":{"v":0,"d":"0.0"}},{"$f":"'3 INCOME & EXPENSE'!N131","v":{"v":0,"d":"$0.00"}},{"$f":"'3 INCOME & EXPENSE'!O131","v":{"v":0,"d":"$0.00"}},258,{"$f":"'3 INCOME & EXPENSE'!Z131","v":31},31000,31031,0]
[null,null,{"$f":"IF('3 INCOME & EXPENSE'!E132=0,\"\",'3 INCOME & EXPENSE'!E132)","v":""},{"$f":"T('3 INCOME & EXPENSE'!G132)","v":""},{"$f":"'3 INCOME & EXPENSE'!M132","v":{"v":0,"d":"0.0"}},{"$f":"'3 INCOME & EXPENSE'!N132","v":{"v":0,"d":"$0.00"}},{"$f":"'3 INCOME & EXPENSE'!O132","v":{"v":0,"d":"$0.00"}},259,{"$f":"'3 INCOME & EXPENSE'!Z132","v":31},31000,31031,0]
[null,null,{"$f":"IF('3 INCOME & EXPENSE'!E133=0,\"\",'3 INCOME & EXPENSE'!E133)","v":""},{"$f":"T('3 INCOME & EXPENSE'!G133)","v":""},{"$f":"'3 INCOME & EXPENSE'!M133","v":{"v":0,"d":"0.0"}},{"$f":"'3 INCOME & EXPENSE'!N133","v":{"v":0,"d":"$0.00"}},{"$f":"'3 INCOME & EXPENSE'!O133","v":{"v":0,"d":"$0.00"}},260,{"$f":"'3 INCOME & EXPENSE'!Z133","v":31},31000,31031,0]
[null,null,{"$f":"IF('3 INCOME & EXPENSE'!E134=0,\"\",'3 INCOME & EXPENSE'!E134)","v":""},{"$f":"T('3 INCOME & EXPENSE'!G134)","v":""},{"$f":"'3 INCOME & EXPENSE'!M134","v":{"v":0,"d":"0.0"}},{"$f":"'3 INCOME & EXPENSE'!N134","v":{"v":0,"d":"$0.00"}},{"$f":"'3 INCOME & EXPENSE'!O134","v":{"v":0,"d":"$0.00"}},261,{"$f":"'3 INCOME & EXPENSE'!Z134","v":31},31000,31031,0]
[null,null,{"$f":"IF('3 INCOME & EXPENSE'!E135=0,\"\",'3 INCOME & EXPENSE'!E135)","v":""},{"$f":"T('3 INCOME & EXPENSE'!G135)","v":""},{"$f":"'3 INCOME & EXPENSE'!M135","v":{"v":0,"d":"0.0"}},{"$f":"'3 INCOME & EXPENSE'!N135","v":{"v":0,"d":"$0.00"}},{"$f":"'3 INCOME & EXPENSE'!O135","v":{"v":0,"d":"$0.00"}},262,{"$f":"'3 INCOME & EXPENSE'!Z135","v":31},31000,31031,0]
[null,null,{"$f":"IF('3 INCOME & EXPENSE'!E136=0,\"\",'3 INCOME & EXPENSE'!E136)","v":""},{"$f":"T('3 INCOME & EXPENSE'!G136)","v":""},{"$f":"'3 INCOME & EXPENSE'!M136","v":{"v":0,"d":"0.0"}},{"$f":"'3 INCOME & EXPENSE'!N136","v":{"v":0,"d":"$0.00"}},{"$f":"'3 INCOME & EXPENSE'!O136","v":{"v":0,"d":"$0.00"}},263,{"$f":"'3 INCOME & EXPENSE'!Z136","v":31},31000,31031,0]
[null,null,{"$f":"IF('3 INCOME & EXPENSE'!E137=0,\"\",'3 INCOME & EXPENSE'!E137)","v":""},{"$f":"T('3 INCOME & EXPENSE'!G137)","v":""},{"$f":"'3 INCOME & EXPENSE'!M137","v":{"v":0,"d":"0.0"}},{"$f":"'3 INCOME & EXPENSE'!N137","v":{"v":0,"d":"$0.00"}},{"$f":"'3 INCOME & EXPENSE'!O137","v":{"v":0,"d":"$0.00"}},264,{"$f":"'3 INCOME & EXPENSE'!Z137","v":31},31000,31031,0]
[null,null,{"$f":"IF('3 INCOME & EXPENSE'!E138=0,\"\",'3 INCOME & EXPENSE'!E138)","v":""},{"$f":"T('3 INCOME & EXPENSE'!G138)","v":""},{"$f":"'3 INCOME & EXPENSE'!M138","v":{"v":0,"d":"0.0"}},{"$f":"'3 INCOME & EXPENSE'!N138","v":{"v":0,"d":"$0.00"}},{"$f":"'3 INCOME & EXPENSE'!O138","v":{"v":0,"d":"$0.00"}},265,{"$f":"'3 INCOME & EXPENSE'!Z138","v":31},31000,31031,0]
[null,null,{"$f":"IF('3 INCOME & EXPENSE'!E139=0,\"\",'3 INCOME & EXPENSE'!E139)","v":""},{"$f":"T('3 INCOME & EXPENSE'!G139)","v":""},{"$f":"'3 INCOME & EXPENSE'!M139","v":{"v":0,"d":"0.0"}},{"$f":"'3 INCOME & EXPENSE'!N139","v":{"v":0,"d":"$0.00"}},{"$f":"'3 INCOME & EXPENSE'!O139","v":{"v":0,"d":"$0.00"}},266,{"$f":"'3 INCOME & EXPENSE'!Z139","v":31},31000,31031,0]
[null,null,{"$f":"IF('3 INCOME & EXPENSE'!E140=0,\"\",'3 INCOME & EXPENSE'!E140)","v":""},{"$f":"T('3 INCOME & EXPENSE'!G140)","v":""},{"$f":"'3 INCOME & EXPENSE'!M140","v":{"v":0,"d":"0.0"}},{"$f":"'3 INCOME & EXPENSE'!N140","v":{"v":0,"d":"$0.00"}},{"$f":"'3 INCOME & EXPENSE'!O140","v":{"v":0,"d":"$0.00"}},267,{"$f":"'3 INCOME & EXPENSE'!Z140","v":31},31000,31031,0]
[null,null,{"$f":"IF('3 INCOME & EXPENSE'!E141=0,\"\",'3 INCOME & EXPENSE'!E141)","v":""},{"$f":"T('3 INCOME & EXPENSE'!G141)","v":""},{"$f":"'3 INCOME & EXPENSE'!M141","v":{"v":0,"d":"0.0"}},{"$f":"'3 INCOME & EXPENSE'!N141","v":{"v":0,"d":"$0.00"}},{"$f":"'3 INCOME & EXPENSE'!O141","v":{"v":0,"d":"$0.00"}},268,{"$f":"'3 INCOME & EXPENSE'!Z141","v":31},31000,31031,0]
[null,null,{"$f":"IF('3 INCOME & EXPENSE'!E142=0,\"\",'3 INCOME & EXPENSE'!E142)","v":""},{"$f":"T('3 INCOME & EXPENSE'!G142)","v":""},{"$f":"'3 INCOME & EXPENSE'!M142","v":{"v":0,"d":"0.0"}},{"$f":"'3 INCOME & EXPENSE'!N142","v":{"v":0,"d":"$0.00"}},{"$f":"'3 INCOME & EXPENSE'!O142","v":{"v":0,"d":"$0.00"}},269,{"$f":"'3 INCOME & EXPENSE'!Z142","v":31},{"$f":"VLOOKUP(I280,$J$939:$K$969,2)","v":31000},31031,{"$f":"K280*E280","v":0}]
[null,null,{"$f":"IF('3 INCOME & EXPENSE'!E143=0,\"\",'3 INCOME & EXPENSE'!E143)","v":""},{"$f":"T('3 INCOME & EXPENSE'!G143)","v":""},{"$f":"'3 INCOME & EXPENSE'!M143","v":{"v":0,"d":"0.0"}},{"$f":"'3 INCOME & EXPENSE'!N143","v":{"v":0,"d":"$0.00"}},{"$f":"'3 INCOME & EXPENSE'!O143","v":{"v":0,"d":"$0.00"}},270,{"$f":"'3 INCOME & EXPENSE'!Z143","v":31},31000,31031,0]
[null,null,{"$f":"IF('3 INCOME & EXPENSE'!E144=0,\"\",'3 INCOME & EXPENSE'!E144)","v":""},{"$f":"T('3 INCOME & EXPENSE'!G144)","v":""},{"$f":"'3 INCOME & EXPENSE'!M144","v":{"v":0,"d":"0.0"}},{"$f":"'3 INCOME & EXPENSE'!N144","v":{"v":0,"d":"$0.00"}},{"$f":"'3 INCOME & EXPENSE'!O144","v":{"v":0,"d":"$0.00"}},271,{"$f":"'3 INCOME & EXPENSE'!Z144","v":31},31000,31031,0]
[null,null,{"$f":"IF('3 INCOME & EXPENSE'!E145=0,\"\",'3 INCOME & EXPENSE'!E145)","v":""},{"$f":"T('3 INCOME & EXPENSE'!G145)","v":""},{"$f":"'3 INCOME & EXPENSE'!M145","v":{"v":0,"d":"0.0"}},{"$f":"'3 INCOME & EXPENSE'!N145","v":{"v":0,"d":"$0.00"}},{"$f":"'3 INCOME & EXPENSE'!O145","v":{"v":0,"d":"$0.00"}},272,{"$f":"'3 INCOME & EXPENSE'!Z145","v":31},31000,31031,0]
[null,null,{"$f":"IF('3 INCOME & EXPENSE'!E146=0,\"\",'3 INCOME & EXPENSE'!E146)","v":""},{"$f":"T('3 INCOME & EXPENSE'!G146)","v":""},{"$f":"'3 INCOME & EXPENSE'!M146","v":{"v":0,"d":"0.0"}},{"$f":"'3 INCOME & EXPENSE'!N146","v":{"v":0,"d":"$0.00"}},{"$f":"'3 INCOME & EXPENSE'!O146","v":{"v":0,"d":"$0.00"}},273,{"$f":"'3 INCOME & EXPENSE'!Z146","v":31},31000,31031,0]
[null,null,{"$f":"IF('3 INCOME & EXPENSE'!E147=0,\"\",'3 INCOME & EXPENSE'!E147)","v":""},{"$f":"T('3 INCOME & EXPENSE'!G147)","v":""},{"$f":"'3 INCOME & EXPENSE'!M147","v":{"v":0,"d":"0.0"}},{"$f":"'3 INCOME & EXPENSE'!N147","v":{"v":0,"d":"$0.00"}},{"$f":"'3 INCOME & EXPENSE'!O147","v":{"v":0,"d":"$0.00"}},274,{"$f":"'3 INCOME & EXPENSE'!Z147","v":31},31000,31031,0]
[null,null,{"$f":"IF('3 INCOME & EXPENSE'!E148=0,\"\",'3 INCOME & EXPENSE'!E148)","v":""},{"$f":"T('3 INCOME & EXPENSE'!G148)","v":""},{"$f":"'3 INCOME & EXPENSE'!M148","v":{"v":0,"d":"0.0"}},{"$f":"'3 INCOME & EXPENSE'!N148","v":{"v":0,"d":"$0.00"}},{"$f":"'3 INCOME & EXPENSE'!O148","v":{"v":0,"d":"$0.00"}},275,{"$f":"'3 INCOME & EXPENSE'!Z148","v":31},31000,31031,0]
[null,null,{"$f":"IF('3 INCOME & EXPENSE'!E149=0,\"\",'3 INCOME & EXPENSE'!E149)","v":""},{"$f":"T('3 INCOME & EXPENSE'!G149)","v":""},{"$f":"'3 INCOME & EXPENSE'!M149","v":{"v":0,"d":"0.0"}},{"$f":"'3 INCOME & EXPENSE'!N149","v":{"v":0,"d":"$0.00"}},{"$f":"'3 INCOME & EXPENSE'!O149","v":{"v":0,"d":"$0.00"}},276,{"$f":"'3 INCOME & EXPENSE'!Z149","v":31},31000,31031,0]
[null,null,{"$f":"IF('3 INCOME & EXPENSE'!E150=0,\"\",'3 INCOME & EXPENSE'!E150)","v":""},{"$f":"T('3 INCOME & EXPENSE'!G150)","v":""},{"$f":"'3 INCOME & EXPENSE'!M150","v":{"v":0,"d":"0.0"}},{"$f":"'3 INCOME & EXPENSE'!N150","v":{"v":0,"d":"$0.00"}},{"$f":"'3 INCOME & EXPENSE'!O150","v":{"v":0,"d":"$0.00"}},277,{"$f":"'3 INCOME & EXPENSE'!Z150","v":31},31000,31031,0]
[null,null,{"$f":"IF('3 INCOME & EXPENSE'!E151=0,\"\",'3 INCOME & EXPENSE'!E151)","v":""},{"$f":"T('3 INCOME & EXPENSE'!G151)","v":""},{"$f":"'3 INCOME & EXPENSE'!M151","v":{"v":0,"d":"0.0"}},{"$f":"'3 INCOME & EXPENSE'!N151","v":{"v":0,"d":"$0.00"}},{"$f":"'3 INCOME & EXPENSE'!O151","v":{"v":0,"d":"$0.00"}},278,{"$f":"'3 INCOME & EXPENSE'!Z151","v":31},31000,31031,0]
[null,null,{"$f":"IF('3 INCOME & EXPENSE'!E152=0,\"\",'3 INCOME & EXPENSE'!E152)","v":""},{"$f":"T('3 INCOME & EXPENSE'!G152)","v":""},{"$f":"'3 INCOME & EXPENSE'!M152","v":{"v":0,"d":"0.0"}},{"$f":"'3 INCOME & EXPENSE'!N152","v":{"v":0,"d":"$0.00"}},{"$f":"'3 INCOME & EXPENSE'!O152","v":{"v":0,"d":"$0.00"}},279,{"$f":"'3 INCOME & EXPENSE'!Z152","v":31},31000,31031,0]
[null,null,{"$f":"IF('3 INCOME & EXPENSE'!E153=0,\"\",'3 INCOME & EXPENSE'!E153)","v":""},{"$f":"T('3 INCOME & EXPENSE'!G153)","v":""},{"$f":"'3 INCOME & EXPENSE'!M153","v":{"v":0,"d":"0.0"}},{"$f":"'3 INCOME & EXPENSE'!N153","v":{"v":0,"d":"$0.00"}},{"$f":"'3 INCOME & EXPENSE'!O153","v":{"v":0,"d":"$0.00"}},280,{"$f":"'3 INCOME & EXPENSE'!Z153","v":31},31000,31031,0]
[null,null,{"$f":"IF('3 INCOME & EXPENSE'!E154=0,\"\",'3 INCOME & EXPENSE'!E154)","v":""},{"$f":"T('3 INCOME & EXPENSE'!G154)","v":""},{"$f":"'3 INCOME & EXPENSE'!M154","v":{"v":0,"d":"0.0"}},{"$f":"'3 INCOME & EXPENSE'!N154","v":{"v":0,"d":"$0.00"}},{"$f":"'3 INCOME & EXPENSE'!O154","v":{"v":0,"d":"$0.00"}},281,{"$f":"'3 INCOME & EXPENSE'!Z154","v":31},31000,31031,0]
[null,null,{"$f":"IF('3 INCOME & EXPENSE'!E155=0,\"\",'3 INCOME & EXPENSE'!E155)","v":""},{"$f":"T('3 INCOME & EXPENSE'!G155)","v":""},{"$f":"'3 INCOME & EXPENSE'!M155","v":{"v":0,"d":"0.0"}},{"$f":"'3 INCOME & EXPENSE'!N155","v":{"v":0,"d":"$0.00"}},{"$f":"'3 INCOME & EXPENSE'!O155","v":{"v":0,"d":"$0.00"}},282,{"$f":"'3 INCOME & EXPENSE'!Z155","v":31},31000,31031,0]
[null,null,{"$f":"IF('3 INCOME & EXPENSE'!E156=0,\"\",'3 INCOME & EXPENSE'!E156)","v":""},{"$f":"T('3 INCOME & EXPENSE'!G156)","v":""},{"$f":"'3 INCOME & EXPENSE'!M156","v":{"v":0,"d":"0.0"}},{"$f":"'3 INCOME & EXPENSE'!N156","v":{"v":0,"d":"$0.00"}},{"$f":"'3 INCOME & EXPENSE'!O156","v":{"v":0,"d":"$0.00"}},283,{"$f":"'3 INCOME & EXPENSE'!Z156","v":31},31000,31031,0]
[null,null,{"$f":"IF('3 INCOME & EXPENSE'!E157=0,\"\",'3 INCOME & EXPENSE'!E157)","v":""},{"$f":"T('3 INCOME & EXPENSE'!G157)","v":""},{"$f":"'3 INCOME & EXPENSE'!M157","v":{"v":0,"d":"0.0"}},{"$f":"'3 INCOME & EXPENSE'!N157","v":{"v":0,"d":"$0.00"}},{"$f":"'3 INCOME & EXPENSE'!O157","v":{"v":0,"d":"$0.00"}},284,{"$f":"'3 INCOME & EXPENSE'!Z157","v":31},31000,31031,0]
[null,null,{"$f":"IF('3 INCOME & EXPENSE'!E158=0,\"\",'3 INCOME & EXPENSE'!E158)","v":""},{"$f":"T('3 INCOME & EXPENSE'!G158)","v":""},{"$f":"'3 INCOME & EXPENSE'!M158","v":{"v":0,"d":"0.0"}},{"$f":"'3 INCOME & EXPENSE'!N158","v":{"v":0,"d":"$0.00"}},{"$f":"'3 INCOME & EXPENSE'!O158","v":{"v":0,"d":"$0.00"}},285,{"$f":"'3 INCOME & EXPENSE'!Z158","v":31},31000,31031,0]
[null,null,{"$f":"IF('3 INCOME & EXPENSE'!E159=0,\"\",'3 INCOME & EXPENSE'!E159)","v":""},{"$f":"T('3 INCOME & EXPENSE'!G159)","v":""},{"$f":"'3 INCOME & EXPENSE'!M159","v":{"v":0,"d":"0.0"}},{"$f":"'3 INCOME & EXPENSE'!N159","v":{"v":0,"d":"$0.00"}},{"$f":"'3 INCOME & EXPENSE'!O159","v":{"v":0,"d":"$0.00"}},286,{"$f":"'3 INCOME & EXPENSE'!Z159","v":31},31000,31031,0]
[null,null,{"$f":"IF('3 INCOME & EXPENSE'!E160=0,\"\",'3 INCOME & EXPENSE'!E160)","v":""},{"$f":"T('3 INCOME & EXPENSE'!G160)","v":""},{"$f":"'3 INCOME & EXPENSE'!M160","v":{"v":0,"d":"0.0"}},{"$f":"'3 INCOME & EXPENSE'!N160","v":{"v":0,"d":"$0.00"}},{"$f":"'3 INCOME & EXPENSE'!O160","v":{"v":0,"d":"$0.00"}},287,{"$f":"'3 INCOME & EXPENSE'!Z160","v":31},31000,31031,0]
[null,null,{"$f":"IF('3 INCOME & EXPENSE'!E161=0,\"\",'3 INCOME & EXPENSE'!E161)","v":""},{"$f":"T('3 INCOME & EXPENSE'!G161)","v":""},{"$f":"'3 INCOME & EXPENSE'!M161","v":{"v":0,"d":"0.0"}},{"$f":"'3 INCOME & EXPENSE'!N161","v":{"v":0,"d":"$0.00"}},{"$f":"'3 INCOME & EXPENSE'!O161","v":{"v":0,"d":"$0.00"}},288,{"$f":"'3 INCOME & EXPENSE'!Z161","v":31},31000,31031,0]
[null,null,{"$f":"IF('3 INCOME & EXPENSE'!E162=0,\"\",'3 INCOME & EXPENSE'!E162)","v":""},{"$f":"T('3 INCOME & EXPENSE'!G162)","v":""},{"$f":"'3 INCOME & EXPENSE'!M162","v":{"v":0,"d":"0.0"}},{"$f":"'3 INCOME & EXPENSE'!N162","v":{"v":0,"d":"$0.00"}},{"$f":"'3 INCOME & EXPENSE'!O162","v":{"v":0,"d":"$0.00"}},289,{"$f":"'3 INCOME & EXPENSE'!Z162","v":31},31000,31031,0]
[null,null,{"$f":"IF('3 INCOME & EXPENSE'!E163=0,\"\",'3 INCOME & EXPENSE'!E163)","v":""},{"$f":"T('3 INCOME & EXPENSE'!G163)","v":""},{"$f":"'3 INCOME & EXPENSE'!M163","v":{"v":0,"d":"0.0"}},{"$f":"'3 INCOME & EXPENSE'!N163","v":{"v":0,"d":"$0.00"}},{"$f":"'3 INCOME & EXPENSE'!O163","v":{"v":0,"d":"$0.00"}},290,{"$f":"'3 INCOME & EXPENSE'!Z163","v":31},31000,31031,0]
[null,null,{"$f":"IF('3 INCOME & EXPENSE'!E164=0,\"\",'3 INCOME & EXPENSE'!E164)","v":""},{"$f":"T('3 INCOME & EXPENSE'!G164)","v":""},{"$f":"'3 INCOME & EXPENSE'!M164","v":{"v":0,"d":"0.0"}},{"$f":"'3 INCOME & EXPENSE'!N164","v":{"v":0,"d":"$0.00"}},{"$f":"'3 INCOME & EXPENSE'!O164","v":{"v":0,"d":"$0.00"}},291,{"$f":"'3 INCOME & EXPENSE'!Z164","v":31},31000,31031,0]
[null,null,{"$f":"IF('3 INCOME & EXPENSE'!E165=0,\"\",'3 INCOME & EXPENSE'!E165)","v":""},{"$f":"T('3 INCOME & EXPENSE'!G165)","v":""},{"$f":"'3 INCOME & EXPENSE'!M165","v":{"v":0,"d":"0.0"}},{"$f":"'3 INCOME & EXPENSE'!N165","v":{"v":0,"d":"$0.00"}},{"$f":"'3 INCOME & EXPENSE'!O165","v":{"v":0,"d":"$0.00"}},292,{"$f":"'3 INCOME & EXPENSE'!Z165","v":31},31000,31031,0]
[null,null,{"$f":"IF('3 INCOME & EXPENSE'!E166=0,\"\",'3 INCOME & EXPENSE'!E166)","v":""},{"$f":"T('3 INCOME & EXPENSE'!G166)","v":""},{"$f":"'3 INCOME & EXPENSE'!M166","v":{"v":0,"d":"0.0"}},{"$f":"'3 INCOME & EXPENSE'!N166","v":{"v":0,"d":"$0.00"}},{"$f":"'3 INCOME & EXPENSE'!O166","v":{"v":0,"d":"$0.00"}},293,{"$f":"'3 INCOME & EXPENSE'!Z166","v":31},31000,31031,0]
[null,null,{"$f":"IF('3 INCOME & EXPENSE'!E167=0,\"\",'3 INCOME & EXPENSE'!E167)","v":""},{"$f":"T('3 INCOME & EXPENSE'!G167)","v":""},{"$f":"'3 INCOME & EXPENSE'!M167","v":{"v":0,"d":"0.0"}},{"$f":"'3 INCOME & EXPENSE'!N167","v":{"v":0,"d":"$0.00"}},{"$f":"'3 INCOME & EXPENSE'!O167","v":{"v":0,"d":"$0.00"}},294,{"$f":"'3 INCOME & EXPENSE'!Z167","v":31},31000,31031,0]
[null,null,{"$f":"IF('3 INCOME & EXPENSE'!E168=0,\"\",'3 INCOME & EXPENSE'!E168)","v":""},{"$f":"T('3 INCOME & EXPENSE'!G168)","v":""},{"$f":"'3 INCOME & EXPENSE'!M168","v":{"v":0,"d":"0.0"}},{"$f":"'3 INCOME & EXPENSE'!N168","v":{"v":0,"d":"$0.00"}},{"$f":"'3 INCOME & EXPENSE'!O168","v":{"v":0,"d":"$0.00"}},295,{"$f":"'3 INCOME & EXPENSE'!Z168","v":31},31000,31031,0]
[null,null,{"$f":"IF('3 INCOME & EXPENSE'!E169=0,\"\",'3 INCOME & EXPENSE'!E169)","v":""},{"$f":"T('3 INCOME & EXPENSE'!G169)","v":""},{"$f":"'3 INCOME & EXPENSE'!M169","v":{"v":0,"d":"0.0"}},{"$f":"'3 INCOME & EXPENSE'!N169","v":{"v":0,"d":"$0.00"}},{"$f":"'3 INCOME & EXPENSE'!O169","v":{"v":0,"d":"$0.00"}},296,{"$f":"'3 INCOME & EXPENSE'!Z169","v":31},31000,31031,0]
[null,null,{"$f":"IF('3 INCOME & EXPENSE'!E170=0,\"\",'3 INCOME & EXPENSE'!E170)","v":""},{"$f":"T('3 INCOME & EXPENSE'!G170)","v":""},{"$f":"'3 INCOME & EXPENSE'!M170","v":{"v":0,"d":"0.0"}},{"$f":"'3 INCOME & EXPENSE'!N170","v":{"v":0,"d":"$0.00"}},{"$f":"'3 INCOME & EXPENSE'!O170","v":{"v":0,"d":"$0.00"}},297,{"$f":"'3 INCOME & EXPENSE'!Z170","v":31},31000,31031,0]
[null,null,{"$f":"IF('3 INCOME & EXPENSE'!E171=0,\"\",'3 INCOME & EXPENSE'!E171)","v":""},{"$f":"T('3 INCOME & EXPENSE'!G171)","v":""},{"$f":"'3 INCOME & EXPENSE'!M171","v":{"v":0,"d":"0.0"}},{"$f":"'3 INCOME & EXPENSE'!N171","v":{"v":0,"d":"$0.00"}},{"$f":"'3 INCOME & EXPENSE'!O171","v":{"v":0,"d":"$0.00"}},298,{"$f":"'3 INCOME & EXPENSE'!Z171","v":31},31000,31031,0]
[null,null,{"$f":"IF('3 INCOME & EXPENSE'!E172=0,\"\",'3 INCOME & EXPENSE'!E172)","v":""},{"$f":"T('3 INCOME & EXPENSE'!G172)","v":""},{"$f":"'3 INCOME & EXPENSE'!M172","v":{"v":0,"d":"0.0"}},{"$f":"'3 INCOME & EXPENSE'!N172","v":{"v":0,"d":"$0.00"}},{"$f":"'3 INCOME & EXPENSE'!O172","v":{"v":0,"d":"$0.00"}},299,{"$f":"'3 INCOME & EXPENSE'!Z172","v":31},31000,31031,0]
[null,null,{"$f":"IF('3 INCOME & EXPENSE'!E173=0,\"\",'3 INCOME & EXPENSE'!E173)","v":""},{"$f":"T('3 INCOME & EXPENSE'!G173)","v":""},{"$f":"'3 INCOME & EXPENSE'!M173","v":{"v":0,"d":"0.0"}},{"$f":"'3 INCOME & EXPENSE'!N173","v":{"v":0,"d":"$0.00"}},{"$f":"'3 INCOME & EXPENSE'!O173","v":{"v":0,"d":"$0.00"}},300,{"$f":"'3 INCOME & EXPENSE'!Z173","v":31},31000,31031,0]
[null,null,{"$f":"IF('3 INCOME & EXPENSE'!E174=0,\"\",'3 INCOME & EXPENSE'!E174)","v":""},{"$f":"T('3 INCOME & EXPENSE'!G174)","v":""},{"$f":"'3 INCOME & EXPENSE'!M174","v":{"v":0,"d":"0.0"}},{"$f":"'3 INCOME & EXPENSE'!N174","v":{"v":0,"d":"$0.00"}},{"$f":"'3 INCOME & EXPENSE'!O174","v":{"v":0,"d":"$0.00"}},301,{"$f":"'3 INCOME & EXPENSE'!Z174","v":31},31000,31031,0]
[null,null,{"$f":"IF('3 INCOME & EXPENSE'!E175=0,\"\",'3 INCOME & EXPENSE'!E175)","v":""},{"$f":"T('3 INCOME & EXPENSE'!G175)","v":""},{"$f":"'3 INCOME & EXPENSE'!M175","v":{"v":0,"d":"0.0"}},{"$f":"'3 INCOME & EXPENSE'!N175","v":{"v":0,"d":"$0.00"}},{"$f":"'3 INCOME & EXPENSE'!O175","v":{"v":0,"d":"$0.00"}},302,{"$f":"'3 INCOME & EXPENSE'!Z175","v":31},31000,31031,0]
[null,null,{"$f":"IF('3 INCOME & EXPENSE'!E176=0,\"\",'3 INCOME & EXPENSE'!E176)","v":""},{"$f":"T('3 INCOME & EXPENSE'!G176)","v":""},{"$f":"'3 INCOME & EXPENSE'!M176","v":{"v":0,"d":"0.0"}},{"$f":"'3 INCOME & EXPENSE'!N176","v":{"v":0,"d":"$0.00"}},{"$f":"'3 INCOME & EXPENSE'!O176","v":{"v":0,"d":"$0.00"}},303,{"$f":"'3 INCOME & EXPENSE'!Z176","v":31},31000,31031,0]
[null,null,{"$f":"IF('3 INCOME & EXPENSE'!E177=0,\"\",'3 INCOME & EXPENSE'!E177)","v":""},{"$f":"T('3 INCOME & EXPENSE'!G177)","v":""},{"$f":"'3 INCOME & EXPENSE'!M177","v":{"v":0,"d":"0.0"}},{"$f":"'3 INCOME & EXPENSE'!N177","v":{"v":0,"d":"$0.00"}},{"$f":"'3 INCOME & EXPENSE'!O177","v":{"v":0,"d":"$0.00"}},304,{"$f":"'3 INCOME & EXPENSE'!Z177","v":31},31000,31031,0]
[null,null,{"$f":"IF('3 INCOME & EXPENSE'!E178=0,\"\",'3 INCOME & EXPENSE'!E178)","v":""},{"$f":"T('3 INCOME & EXPENSE'!G178)","v":""},{"$f":"'3 INCOME & EXPENSE'!M178","v":{"v":0,"d":"0.0"}},{"$f":"'3 INCOME & EXPENSE'!N178","v":{"v":0,"d":"$0.00"}},{"$f":"'3 INCOME & EXPENSE'!O178","v":{"v":0,"d":"$0.00"}},305,{"$f":"'3 INCOME & EXPENSE'!Z178","v":31},31000,31031,0]
[null,null,{"$f":"IF('3 INCOME & EXPENSE'!E179=0,\"\",'3 INCOME & EXPENSE'!E179)","v":""},{"$f":"T('3 INCOME & EXPENSE'!G179)","v":""},{"$f":"'3 INCOME & EXPENSE'!M179","v":{"v":0,"d":"0.0"}},{"$f":"'3 INCOME & EXPENSE'!N179","v":{"v":0,"d":"$0.00"}},{"$f":"'3 INCOME & EXPENSE'!O179","v":{"v":0,"d":"$0.00"}},306,{"$f":"'3 INCOME & EXPENSE'!Z179","v":31},31000,31031,0]
[null,null,{"$f":"IF('3 INCOME & EXPENSE'!E180=0,\"\",'3 INCOME & EXPENSE'!E180)","v":""},{"$f":"T('3 INCOME & EXPENSE'!G180)","v":""},{"$f":"'3 INCOME & EXPENSE'!M180","v":{"v":0,"d":"0.0"}},{"$f":"'3 INCOME & EXPENSE'!N180","v":{"v":0,"d":"$0.00"}},{"$f":"'3 INCOME & EXPENSE'!O180","v":{"v":0,"d":"$0.00"}},307,{"$f":"'3 INCOME & EXPENSE'!Z180","v":31},31000,31031,0]
[null,null,{"$f":"IF('3 INCOME & EXPENSE'!E181=0,\"\",'3 INCOME & EXPENSE'!E181)","v":""},{"$f":"T('3 INCOME & EXPENSE'!G181)","v":""},{"$f":"'3 INCOME & EXPENSE'!M181","v":{"v":0,"d":"0.0"}},{"$f":"'3 INCOME & EXPENSE'!N181","v":{"v":0,"d":"$0.00"}},{"$f":"'3 INCOME & EXPENSE'!O181","v":{"v":0,"d":"$0.00"}},308,{"$f":"'3 INCOME & EXPENSE'!Z181","v":31},31000,31031,0]
[null,null,{"$f":"IF('3 INCOME & EXPENSE'!E182=0,\"\",'3 INCOME & EXPENSE'!E182)","v":""},{"$f":"T('3 INCOME & EXPENSE'!G182)","v":""},{"$f":"'3 INCOME & EXPENSE'!M182","v":{"v":0,"d":"0.0"}},{"$f":"'3 INCOME & EXPENSE'!N182","v":{"v":0,"d":"$0.00"}},{"$f":"'3 INCOME & EXPENSE'!O182","v":{"v":0,"d":"$0.00"}},309,{"$f":"'3 INCOME & EXPENSE'!Z182","v":31},31000,31031,0]
[null,null,{"$f":"IF('3 INCOME & EXPENSE'!E183=0,\"\",'3 INCOME & EXPENSE'!E183)","v":""},{"$f":"T('3 INCOME & EXPENSE'!G183)","v":""},{"$f":"'3 INCOME & EXPENSE'!M183","v":{"v":0,"d":"0.0"}},{"$f":"'3 INCOME & EXPENSE'!N183","v":{"v":0,"d":"$0.00"}},{"$f":"'3 INCOME & EXPENSE'!O183","v":{"v":0,"d":"$0.00"}},310,{"$f":"'3 INCOME & EXPENSE'!Z183","v":31},31000,31031,0]
[null,null,{"$f":"IF('3 INCOME & EXPENSE'!E184=0,\"\",'3 INCOME & EXPENSE'!E184)","v":""},{"$f":"T('3 INCOME & EXPENSE'!G184)","v":""},{"$f":"'3 INCOME & EXPENSE'!M184","v":{"v":0,"d":"0.0"}},{"$f":"'3 INCOME & EXPENSE'!N184","v":{"v":0,"d":"$0.00"}},{"$f":"'3 INCOME & EXPENSE'!O184","v":{"v":0,"d":"$0.00"}},311,{"$f":"'3 INCOME & EXPENSE'!Z184","v":31},31000,31031,0]
[null,null,{"$f":"IF('3 INCOME & EXPENSE'!E185=0,\"\",'3 INCOME & EXPENSE'!E185)","v":""},{"$f":"T('3 INCOME & EXPENSE'!G185)","v":""},{"$f":"'3 INCOME & EXPENSE'!M185","v":{"v":0,"d":"0.0"}},{"$f":"'3 INCOME & EXPENSE'!N185","v":{"v":0,"d":"$0.00"}},{"$f":"'3 INCOME & EXPENSE'!O185","v":{"v":0,"d":"$0.00"}},312,{"$f":"'3 INCOME & EXPENSE'!Z185","v":31},31000,31031,0]
[null,null,{"$f":"IF('3 INCOME & EXPENSE'!E186=0,\"\",'3 INCOME & EXPENSE'!E186)","v":""},{"$f":"T('3 INCOME & EXPENSE'!G186)","v":""},{"$f":"'3 INCOME & EXPENSE'!M186","v":{"v":0,"d":"0.0"}},{"$f":"'3 INCOME & EXPENSE'!N186","v":{"v":0,"d":"$0.00"}},{"$f":"'3 INCOME & EXPENSE'!O186","v":{"v":0,"d":"$0.00"}},313,{"$f":"'3 INCOME & EXPENSE'!Z186","v":31},31000,31031,0]
[null,null,{"$f":"IF('3 INCOME & EXPENSE'!E187=0,\"\",'3 INCOME & EXPENSE'!E187)","v":""},{"$f":"T('3 INCOME & EXPENSE'!G187)","v":""},{"$f":"'3 INCOME & EXPENSE'!M187","v":{"v":0,"d":"0.0"}},{"$f":"'3 INCOME & EXPENSE'!N187","v":{"v":0,"d":"$0.00"}},{"$f":"'3 INCOME & EXPENSE'!O187","v":{"v":0,"d":"$0.00"}},314,{"$f":"'3 INCOME & EXPENSE'!Z187","v":31},31000,31031,0]
[null,null,{"$f":"IF('3 INCOME & EXPENSE'!E188=0,\"\",'3 INCOME & EXPENSE'!E188)","v":""},{"$f":"T('3 INCOME & EXPENSE'!G188)","v":""},{"$f":"'3 INCOME & EXPENSE'!M188","v":{"v":0,"d":"0.0"}},{"$f":"'3 INCOME & EXPENSE'!N188","v":{"v":0,"d":"$0.00"}},{"$f":"'3 INCOME & EXPENSE'!O188","v":{"v":0,"d":"$0.00"}},315,{"$f":"'3 INCOME & EXPENSE'!Z188","v":31},31000,31031,0]
[null,null,{"$f":"IF('3 INCOME & EXPENSE'!E189=0,\"\",'3 INCOME & EXPENSE'!E189)","v":""},{"$f":"T('3 INCOME & EXPENSE'!G189)","v":""},{"$f":"'3 INCOME & EXPENSE'!M189","v":{"v":0,"d":"0.0"}},{"$f":"'3 INCOME & EXPENSE'!N189","v":{"v":0,"d":"$0.00"}},{"$f":"'3 INCOME & EXPENSE'!O189","v":{"v":0,"d":"$0.00"}},316,{"$f":"'3 INCOME & EXPENSE'!Z189","v":31},31000,31031,0]
[null,null,{"$f":"IF('3 INCOME & EXPENSE'!E190=0,\"\",'3 INCOME & EXPENSE'!E190)","v":""},{"$f":"T('3 INCOME & EXPENSE'!G190)","v":""},{"$f":"'3 INCOME & EXPENSE'!M190","v":{"v":0,"d":"0.0"}},{"$f":"'3 INCOME & EXPENSE'!N190","v":{"v":0,"d":"$0.00"}},{"$f":"'3 INCOME & EXPENSE'!O190","v":{"v":0,"d":"$0.00"}},317,{"$f":"'3 INCOME & EXPENSE'!Z190","v":31},31000,31031,0]
[null,null,{"$f":"IF('3 INCOME & EXPENSE'!E191=0,\"\",'3 INCOME & EXPENSE'!E191)","v":""},{"$f":"T('3 INCOME & EXPENSE'!G191)","v":""},{"$f":"'3 INCOME & EXPENSE'!M191","v":{"v":0,"d":"0.0"}},{"$f":"'3 INCOME & EXPENSE'!N191","v":{"v":0,"d":"$0.00"}},{"$f":"'3 INCOME & EXPENSE'!O191","v":{"v":0,"d":"$0.00"}},318,{"$f":"'3 INCOME & EXPENSE'!Z191","v":31},31000,31031,0]
[null,null,{"$f":"IF('3 INCOME & EXPENSE'!E192=0,\"\",'3 INCOME & EXPENSE'!E192)","v":""},{"$f":"T('3 INCOME & EXPENSE'!G192)","v":""},{"$f":"'3 INCOME & EXPENSE'!M192","v":{"v":0,"d":"0.0"}},{"$f":"'3 INCOME & EXPENSE'!N192","v":{"v":0,"d":"$0.00"}},{"$f":"'3 INCOME & EXPENSE'!O192","v":{"v":0,"d":"$0.00"}},319,{"$f":"'3 INCOME & EXPENSE'!Z192","v":31},31000,31031,0]
[null,null,{"$f":"IF('3 INCOME & EXPENSE'!E193=0,\"\",'3 INCOME & EXPENSE'!E193)","v":""},{"$f":"T('3 INCOME & EXPENSE'!G193)","v":""},{"$f":"'3 INCOME & EXPENSE'!M193","v":{"v":0,"d":"0.0"}},{"$f":"'3 INCOME & EXPENSE'!N193","v":{"v":0,"d":"$0.00"}},{"$f":"'3 INCOME & EXPENSE'!O193","v":{"v":0,"d":"$0.00"}},320,{"$f":"'3 INCOME & EXPENSE'!Z193","v":31},31000,31031,0]
[null,null,{"$f":"IF('3 INCOME & EXPENSE'!E194=0,\"\",'3 INCOME & EXPENSE'!E194)","v":""},{"$f":"T('3 INCOME & EXPENSE'!G194)","v":""},{"$f":"'3 INCOME & EXPENSE'!M194","v":{"v":0,"d":"0.0"}},{"$f":"'3 INCOME & EXPENSE'!N194","v":{"v":0,"d":"$0.00"}},{"$f":"'3 INCOME & EXPENSE'!O194","v":{"v":0,"d":"$0.00"}},321,{"$f":"'3 INCOME & EXPENSE'!Z194","v":31},31000,{"$f":"I332+J332","v":31031},0]
[null,null,{"$f":"IF('3 INCOME & EXPENSE'!E195=0,\"\",'3 INCOME & EXPENSE'!E195)","v":""},{"$f":"T('3 INCOME & EXPENSE'!G195)","v":""},{"$f":"'3 INCOME & EXPENSE'!M195","v":{"v":0,"d":"0.0"}},{"$f":"'3 INCOME & EXPENSE'!N195","v":{"v":0,"d":"$0.00"}},{"$f":"'3 INCOME & EXPENSE'!O195","v":{"v":0,"d":"$0.00"}},322,{"$f":"'3 INCOME & EXPENSE'!Z195","v":31},31000,31031,0]
[null,null,{"$f":"IF('3 INCOME & EXPENSE'!E196=0,\"\",'3 INCOME & EXPENSE'!E196)","v":""},{"$f":"T('3 INCOME & EXPENSE'!G196)","v":""},{"$f":"'3 INCOME & EXPENSE'!M196","v":{"v":0,"d":"0.0"}},{"$f":"'3 INCOME & EXPENSE'!N196","v":{"v":0,"d":"$0.00"}},{"$f":"'3 INCOME & EXPENSE'!O196","v":{"v":0,"d":"$0.00"}},323,{"$f":"'3 INCOME & EXPENSE'!Z196","v":31},31000,31031,0]
[null,null,{"$f":"IF('3 INCOME & EXPENSE'!E197=0,\"\",'3 INCOME & EXPENSE'!E197)","v":""},{"$f":"T('3 INCOME & EXPENSE'!G197)","v":""},{"$f":"'3 INCOME & EXPENSE'!M197","v":{"v":0,"d":"0.0"}},{"$f":"'3 INCOME & EXPENSE'!N197","v":{"v":0,"d":"$0.00"}},{"$f":"'3 INCOME & EXPENSE'!O197","v":{"v":0,"d":"$0.00"}},324,{"$f":"'3 INCOME & EXPENSE'!Z197","v":31},31000,31031,0]
[null,null,{"$f":"IF('3 INCOME & EXPENSE'!E198=0,\"\",'3 INCOME & EXPENSE'!E198)","v":""},{"$f":"T('3 INCOME & EXPENSE'!G198)","v":""},{"$f":"'3 INCOME & EXPENSE'!M198","v":{"v":0,"d":"0.0"}},{"$f":"'3 INCOME & EXPENSE'!N198","v":{"v":0,"d":"$0.00"}},{"$f":"'3 INCOME & EXPENSE'!O198","v":{"v":0,"d":"$0.00"}},325,{"$f":"'3 INCOME & EXPENSE'!Z198","v":31},31000,31031,0]
[null,null,{"$f":"IF('3 INCOME & EXPENSE'!E199=0,\"\",'3 INCOME & EXPENSE'!E199)","v":""},{"$f":"T('3 INCOME & EXPENSE'!G199)","v":""},{"$f":"'3 INCOME & EXPENSE'!M199","v":{"v":0,"d":"0.0"}},{"$f":"'3 INCOME & EXPENSE'!N199","v":{"v":0,"d":"$0.00"}},{"$f":"'3 INCOME & EXPENSE'!O199","v":{"v":0,"d":"$0.00"}},326,{"$f":"'3 INCOME & EXPENSE'!Z199","v":31},31000,31031,0]
[null,null,{"$f":"IF('3 INCOME & EXPENSE'!E200=0,\"\",'3 INCOME & EXPENSE'!E200)","v":""},{"$f":"T('3 INCOME & EXPENSE'!G200)","v":""},{"$f":"'3 INCOME & EXPENSE'!M200","v":{"v":0,"d":"0.0"}},{"$f":"'3 INCOME & EXPENSE'!N200","v":{"v":0,"d":"$0.00"}},{"$f":"'3 INCOME & EXPENSE'!O200","v":{"v":0,"d":"$0.00"}},327,{"$f":"'3 INCOME & EXPENSE'!Z200","v":31},31000,31031,0]
[null,null,{"$f":"IF('3 INCOME & EXPENSE'!E201=0,\"\",'3 INCOME & EXPENSE'!E201)","v":""},{"$f":"T('3 INCOME & EXPENSE'!G201)","v":""},{"$f":"'3 INCOME & EXPENSE'!M201","v":{"v":0,"d":"0.0"}},{"$f":"'3 INCOME & EXPENSE'!N201","v":{"v":0,"d":"$0.00"}},{"$f":"'3 INCOME & EXPENSE'!O201","v":{"v":0,"d":"$0.00"}},328,{"$f":"'3 INCOME & EXPENSE'!Z201","v":31},31000,31031,0]
[null,null,{"$f":"IF('3 INCOME & EXPENSE'!E202=0,\"\",'3 INCOME & EXPENSE'!E202)","v":""},{"$f":"T('3 INCOME & EXPENSE'!G202)","v":""},{"$f":"'3 INCOME & EXPENSE'!M202","v":{"v":0,"d":"0.0"}},{"$f":"'3 INCOME & EXPENSE'!N202","v":{"v":0,"d":"$0.00"}},{"$f":"'3 INCOME & EXPENSE'!O202","v":{"v":0,"d":"$0.00"}},329,{"$f":"'3 INCOME & EXPENSE'!Z202","v":31},31000,31031,0]
[null,null,{"$f":"IF('3 INCOME & EXPENSE'!E203=0,\"\",'3 INCOME & EXPENSE'!E203)","v":""},{"$f":"T('3 INCOME & EXPENSE'!G203)","v":""},{"$f":"'3 INCOME & EXPENSE'!M203","v":{"v":0,"d":"0.0"}},{"$f":"'3 INCOME & EXPENSE'!N203","v":{"v":0,"d":"$0.00"}},{"$f":"'3 INCOME & EXPENSE'!O203","v":{"v":0,"d":"$0.00"}},330,{"$f":"'3 INCOME & EXPENSE'!Z203","v":31},31000,31031,0]
[null,null,{"$f":"IF('3 INCOME & EXPENSE'!E204=0,\"\",'3 INCOME & EXPENSE'!E204)","v":""},{"$f":"T('3 INCOME & EXPENSE'!G204)","v":""},{"$f":"'3 INCOME & EXPENSE'!M204","v":{"v":0,"d":"0.0"}},{"$f":"'3 INCOME & EXPENSE'!N204","v":{"v":0,"d":"$0.00"}},{"$f":"'3 INCOME & EXPENSE'!O204","v":{"v":0,"d":"$0.00"}},331,{"$f":"'3 INCOME & EXPENSE'!Z204","v":31},31000,31031,0]
[null,null,{"$f":"IF('3 INCOME & EXPENSE'!E205=0,\"\",'3 INCOME & EXPENSE'!E205)","v":""},{"$f":"T('3 INCOME & EXPENSE'!G205)","v":""},{"$f":"'3 INCOME & EXPENSE'!M205","v":{"v":0,"d":"0.0"}},{"$f":"'3 INCOME & EXPENSE'!N205","v":{"v":0,"d":"$0.00"}},{"$f":"'3 INCOME & EXPENSE'!O205","v":{"v":0,"d":"$0.00"}},332,{"$f":"'3 INCOME & EXPENSE'!Z205","v":31},31000,31031,0]
[null,null,{"$f":"IF('3 INCOME & EXPENSE'!E206=0,\"\",'3 INCOME & EXPENSE'!E206)","v":""},{"$f":"T('3 INCOME & EXPENSE'!G206)","v":""},{"$f":"'3 INCOME & EXPENSE'!M206","v":{"v":0,"d":"0.0"}},{"$f":"'3 INCOME & EXPENSE'!N206","v":{"v":0,"d":"$0.00"}},{"$f":"'3 INCOME & EXPENSE'!O206","v":{"v":0,"d":"$0.00"}},333,{"$f":"'3 INCOME & EXPENSE'!Z206","v":31},{"$f":"VLOOKUP(I344,$J$939:$K$969,2)","v":31000},31031,{"$f":"K344*E344","v":0}]
[null,null,{"$f":"IF('3 INCOME & EXPENSE'!E207=0,\"\",'3 INCOME & EXPENSE'!E207)","v":""},{"$f":"T('3 INCOME & EXPENSE'!G207)","v":""},{"$f":"'3 INCOME & EXPENSE'!M207","v":{"v":0,"d":"0.0"}},{"$f":"'3 INCOME & EXPENSE'!N207","v":{"v":0,"d":"$0.00"}},{"$f":"'3 INCOME & EXPENSE'!O207","v":{"v":0,"d":"$0.00"}},334,{"$f":"'3 INCOME & EXPENSE'!Z207","v":31},31000,31031,0]
[null,null,{"$f":"IF('3 INCOME & EXPENSE'!E208=0,\"\",'3 INCOME & EXPENSE'!E208)","v":""},{"$f":"T('3 INCOME & EXPENSE'!G208)","v":""},{"$f":"'3 INCOME & EXPENSE'!M208","v":{"v":0,"d":"0.0"}},{"$f":"'3 INCOME & EXPENSE'!N208","v":{"v":0,"d":"$0.00"}},{"$f":"'3 INCOME & EXPENSE'!O208","v":{"v":0,"d":"$0.00"}},335,{"$f":"'3 INCOME & EXPENSE'!Z208","v":31},31000,31031,0]
[null,null,{"$f":"IF('3 INCOME & EXPENSE'!E209=0,\"\",'3 INCOME & EXPENSE'!E209)","v":""},{"$f":"T('3 INCOME & EXPENSE'!G209)","v":""},{"$f":"'3 INCOME & EXPENSE'!M209","v":{"v":0,"d":"0.0"}},{"$f":"'3 INCOME & EXPENSE'!N209","v":{"v":0,"d":"$0.00"}},{"$f":"'3 INCOME & EXPENSE'!O209","v":{"v":0,"d":"$0.00"}},336,{"$f":"'3 INCOME & EXPENSE'!Z209","v":31},31000,31031,0]
[null,null,{"$f":"IF('3 INCOME & EXPENSE'!E210=0,\"\",'3 INCOME & EXPENSE'!E210)","v":""},{"$f":"T('3 INCOME & EXPENSE'!G210)","v":""},{"$f":"'3 INCOME & EXPENSE'!M210","v":{"v":0,"d":"0.0"}},{"$f":"'3 INCOME & EXPENSE'!N210","v":{"v":0,"d":"$0.00"}},{"$f":"'3 INCOME & EXPENSE'!O210","v":{"v":0,"d":"$0.00"}},337,{"$f":"'3 INCOME & EXPENSE'!Z210","v":31},31000,31031,0]
[null,null,{"$f":"IF('3 INCOME & EXPENSE'!E211=0,\"\",'3 INCOME & EXPENSE'!E211)","v":""},{"$f":"T('3 INCOME & EXPENSE'!G211)","v":""},{"$f":"'3 INCOME & EXPENSE'!M211","v":{"v":0,"d":"0.0"}},{"$f":"'3 INCOME & EXPENSE'!N211","v":{"v":0,"d":"$0.00"}},{"$f":"'3 INCOME & EXPENSE'!O211","v":{"v":0,"d":"$0.00"}},338,{"$f":"'3 INCOME & EXPENSE'!Z211","v":31},31000,31031,0]
[null,null,{"$f":"IF('3 INCOME & EXPENSE'!E212=0,\"\",'3 INCOME & EXPENSE'!E212)","v":""},{"$f":"T('3 INCOME & EXPENSE'!G212)","v":""},{"$f":"'3 INCOME & EXPENSE'!M212","v":{"v":0,"d":"0.0"}},{"$f":"'3 INCOME & EXPENSE'!N212","v":{"v":0,"d":"$0.00"}},{"$f":"'3 INCOME & EXPENSE'!O212","v":{"v":0,"d":"$0.00"}},339,{"$f":"'3 INCOME & EXPENSE'!Z212","v":31},31000,31031,0]
[null,null,{"$f":"IF('3 INCOME & EXPENSE'!E213=0,\"\",'3 INCOME & EXPENSE'!E213)","v":""},{"$f":"T('3 INCOME & EXPENSE'!G213)","v":""},{"$f":"'3 INCOME & EXPENSE'!M213","v":{"v":0,"d":"0.0"}},{"$f":"'3 INCOME & EXPENSE'!N213","v":{"v":0,"d":"$0.00"}},{"$f":"'3 INCOME & EXPENSE'!O213","v":{"v":0,"d":"$0.00"}},340,{"$f":"'3 INCOME & EXPENSE'!Z213","v":31},31000,31031,0]
[null,null,{"$f":"IF('3 INCOME & EXPENSE'!E214=0,\"\",'3 INCOME & EXPENSE'!E214)","v":""},{"$f":"T('3 INCOME & EXPENSE'!G214)","v":""},{"$f":"'3 INCOME & EXPENSE'!M214","v":{"v":0,"d":"0.0"}},{"$f":"'3 INCOME & EXPENSE'!N214","v":{"v":0,"d":"$0.00"}},{"$f":"'3 INCOME & EXPENSE'!O214","v":{"v":0,"d":"$0.00"}},341,{"$f":"'3 INCOME & EXPENSE'!Z214","v":31},31000,31031,0]
[null,null,{"$f":"IF('3 INCOME & EXPENSE'!E215=0,\"\",'3 INCOME & EXPENSE'!E215)","v":""},{"$f":"T('3 INCOME & EXPENSE'!G215)","v":""},{"$f":"'3 INCOME & EXPENSE'!M215","v":{"v":0,"d":"0.0"}},{"$f":"'3 INCOME & EXPENSE'!N215","v":{"v":0,"d":"$0.00"}},{"$f":"'3 INCOME & EXPENSE'!O215","v":{"v":0,"d":"$0.00"}},342,{"$f":"'3 INCOME & EXPENSE'!Z215","v":31},31000,31031,0]
[null,null,{"$f":"IF('3 INCOME & EXPENSE'!E216=0,\"\",'3 INCOME & EXPENSE'!E216)","v":""},{"$f":"T('3 INCOME & EXPENSE'!G216)","v":""},{"$f":"'3 INCOME & EXPENSE'!M216","v":{"v":0,"d":"0.0"}},{"$f":"'3 INCOME & EXPENSE'!N216","v":{"v":0,"d":"$0.00"}},{"$f":"'3 INCOME & EXPENSE'!O216","v":{"v":0,"d":"$0.00"}},343,{"$f":"'3 INCOME & EXPENSE'!Z216","v":31},31000,31031,0]
[null,null,{"$f":"IF('3 INCOME & EXPENSE'!E217=0,\"\",'3 INCOME & EXPENSE'!E217)","v":""},{"$f":"T('3 INCOME & EXPENSE'!G217)","v":""},{"$f":"'3 INCOME & EXPENSE'!M217","v":{"v":0,"d":"0.0"}},{"$f":"'3 INCOME & EXPENSE'!N217","v":{"v":0,"d":"$0.00"}},{"$f":"'3 INCOME & EXPENSE'!O217","v":{"v":0,"d":"$0.00"}},344,{"$f":"'3 INCOME & EXPENSE'!Z217","v":31},31000,31031,0]
[null,null,{"$f":"IF('3 INCOME & EXPENSE'!E218=0,\"\",'3 INCOME & EXPENSE'!E218)","v":""},{"$f":"T('3 INCOME & EXPENSE'!G218)","v":""},{"$f":"'3 INCOME & EXPENSE'!M218","v":{"v":0,"d":"0.0"}},{"$f":"'3 INCOME & EXPENSE'!N218","v":{"v":0,"d":"$0.00"}},{"$f":"'3 INCOME & EXPENSE'!O218","v":{"v":0,"d":"$0.00"}},345,{"$f":"'3 INCOME & EXPENSE'!Z218","v":31},31000,31031,0]
[null,null,{"$f":"IF('3 INCOME & EXPENSE'!E219=0,\"\",'3 INCOME & EXPENSE'!E219)","v":""},{"$f":"T('3 INCOME & EXPENSE'!G219)","v":""},{"$f":"'3 INCOME & EXPENSE'!M219","v":{"v":0,"d":"0.0"}},{"$f":"'3 INCOME & EXPENSE'!N219","v":{"v":0,"d":"$0.00"}},{"$f":"'3 INCOME & EXPENSE'!O219","v":{"v":0,"d":"$0.00"}},346,{"$f":"'3 INCOME & EXPENSE'!Z219","v":31},31000,31031,0]
[null,null,{"$f":"IF('3 INCOME & EXPENSE'!E220=0,\"\",'3 INCOME & EXPENSE'!E220)","v":""},{"$f":"T('3 INCOME & EXPENSE'!G220)","v":""},{"$f":"'3 INCOME & EXPENSE'!M220","v":{"v":0,"d":"0.0"}},{"$f":"'3 INCOME & EXPENSE'!N220","v":{"v":0,"d":"$0.00"}},{"$f":"'3 INCOME & EXPENSE'!O220","v":{"v":0,"d":"$0.00"}},347,{"$f":"'3 INCOME & EXPENSE'!Z220","v":31},31000,31031,0]
[null,null,{"$f":"IF('3 INCOME & EXPENSE'!E221=0,\"\",'3 INCOME & EXPENSE'!E221)","v":""},{"$f":"T('3 INCOME & EXPENSE'!G221)","v":""},{"$f":"'3 INCOME & EXPENSE'!M221","v":{"v":0,"d":"0.0"}},{"$f":"'3 INCOME & EXPENSE'!N221","v":{"v":0,"d":"$0.00"}},{"$f":"'3 INCOME & EXPENSE'!O221","v":{"v":0,"d":"$0.00"}},348,{"$f":"'3 INCOME & EXPENSE'!Z221","v":31},31000,31031,0]
[null,null,{"$f":"IF('3 INCOME & EXPENSE'!E222=0,\"\",'3 INCOME & EXPENSE'!E222)","v":""},{"$f":"T('3 INCOME & EXPENSE'!G222)","v":""},{"$f":"'3 INCOME & EXPENSE'!M222","v":{"v":0,"d":"0.0"}},{"$f":"'3 INCOME & EXPENSE'!N222","v":{"v":0,"d":"$0.00"}},{"$f":"'3 INCOME & EXPENSE'!O222","v":{"v":0,"d":"$0.00"}},349,{"$f":"'3 INCOME & EXPENSE'!Z222","v":31},31000,31031,0]
[null,null,{"$f":"IF('3 INCOME & EXPENSE'!E223=0,\"\",'3 INCOME & EXPENSE'!E223)","v":""},{"$f":"T('3 INCOME & EXPENSE'!G223)","v":""},{"$f":"'3 INCOME & EXPENSE'!M223","v":{"v":0,"d":"0.0"}},{"$f":"'3 INCOME & EXPENSE'!N223","v":{"v":0,"d":"$0.00"}},{"$f":"'3 INCOME & EXPENSE'!O223","v":{"v":0,"d":"$0.00"}},350,{"$f":"'3 INCOME & EXPENSE'!Z223","v":31},31000,31031,0]
[null,null,{"$f":"IF('3 INCOME & EXPENSE'!E224=0,\"\",'3 INCOME & EXPENSE'!E224)","v":""},{"$f":"T('3 INCOME & EXPENSE'!G224)","v":""},{"$f":"'3 INCOME & EXPENSE'!M224","v":{"v":0,"d":"0.0"}},{"$f":"'3 INCOME & EXPENSE'!N224","v":{"v":0,"d":"$0.00"}},{"$f":"'3 INCOME & EXPENSE'!O224","v":{"v":0,"d":"$0.00"}},351,{"$f":"'3 INCOME & EXPENSE'!Z224","v":31},31000,31031,0]
[null,null,{"$f":"IF('3 INCOME & EXPENSE'!E225=0,\"\",'3 INCOME & EXPENSE'!E225)","v":""},{"$f":"T('3 INCOME & EXPENSE'!G225)","v":""},{"$f":"'3 INCOME & EXPENSE'!M225","v":{"v":0,"d":"0.0"}},{"$f":"'3 INCOME & EXPENSE'!N225","v":{"v":0,"d":"$0.00"}},{"$f":"'3 INCOME & EXPENSE'!O225","v":{"v":0,"d":"$0.00"}},352,{"$f":"'3 INCOME & EXPENSE'!Z225","v":31},31000,31031,0]
[null,null,{"$f":"IF('3 INCOME & EXPENSE'!E226=0,\"\",'3 INCOME & EXPENSE'!E226)","v":""},{"$f":"T('3 INCOME & EXPENSE'!G226)","v":""},{"$f":"'3 INCOME & EXPENSE'!M226","v":{"v":0,"d":"0.0"}},{"$f":"'3 INCOME & EXPENSE'!N226","v":{"v":0,"d":"$0.00"}},{"$f":"'3 INCOME & EXPENSE'!O226","v":{"v":0,"d":"$0.00"}},353,{"$f":"'3 INCOME & EXPENSE'!Z226","v":31},31000,31031,0]
[null,null,{"$f":"IF('3 INCOME & EXPENSE'!E227=0,\"\",'3 INCOME & EXPENSE'!E227)","v":""},{"$f":"T('3 INCOME & EXPENSE'!G227)","v":""},{"$f":"'3 INCOME & EXPENSE'!M227","v":{"v":0,"d":"0.0"}},{"$f":"'3 INCOME & EXPENSE'!N227","v":{"v":0,"d":"$0.00"}},{"$f":"'3 INCOME & EXPENSE'!O227","v":{"v":0,"d":"$0.00"}},354,{"$f":"'3 INCOME & EXPENSE'!Z227","v":31},31000,31031,0]
[null,null,{"$f":"IF('3 INCOME & EXPENSE'!E228=0,\"\",'3 INCOME & EXPENSE'!E228)","v":""},{"$f":"T('3 INCOME & EXPENSE'!G228)","v":""},{"$f":"'3 INCOME & EXPENSE'!M228","v":{"v":0,"d":"0.0"}},{"$f":"'3 INCOME & EXPENSE'!N228","v":{"v":0,"d":"$0.00"}},{"$f":"'3 INCOME & EXPENSE'!O228","v":{"v":0,"d":"$0.00"}},355,{"$f":"'3 INCOME & EXPENSE'!Z228","v":31},31000,31031,0]
[null,null,{"$f":"IF('3 INCOME & EXPENSE'!E229=0,\"\",'3 INCOME & EXPENSE'!E229)","v":""},{"$f":"T('3 INCOME & EXPENSE'!G229)","v":""},{"$f":"'3 INCOME & EXPENSE'!M229","v":{"v":0,"d":"0.0"}},{"$f":"'3 INCOME & EXPENSE'!N229","v":{"v":0,"d":"$0.00"}},{"$f":"'3 INCOME & EXPENSE'!O229","v":{"v":0,"d":"$0.00"}},356,{"$f":"'3 INCOME & EXPENSE'!Z229","v":31},31000,31031,0]
[null,null,{"$f":"IF('3 INCOME & EXPENSE'!E230=0,\"\",'3 INCOME & EXPENSE'!E230)","v":""},{"$f":"T('3 INCOME & EXPENSE'!G230)","v":""},{"$f":"'3 INCOME & EXPENSE'!M230","v":{"v":0,"d":"0.0"}},{"$f":"'3 INCOME & EXPENSE'!N230","v":{"v":0,"d":"$0.00"}},{"$f":"'3 INCOME & EXPENSE'!O230","v":{"v":0,"d":"$0.00"}},357,{"$f":"'3 INCOME & EXPENSE'!Z230","v":31},31000,31031,0]
[null,null,{"$f":"IF('3 INCOME & EXPENSE'!E231=0,\"\",'3 INCOME & EXPENSE'!E231)","v":""},{"$f":"T('3 INCOME & EXPENSE'!G231)","v":""},{"$f":"'3 INCOME & EXPENSE'!M231","v":{"v":0,"d":"0.0"}},{"$f":"'3 INCOME & EXPENSE'!N231","v":{"v":0,"d":"$0.00"}},{"$f":"'3 INCOME & EXPENSE'!O231","v":{"v":0,"d":"$0.00"}},358,{"$f":"'3 INCOME & EXPENSE'!Z231","v":31},31000,31031,0]
[null,null,{"$f":"IF('3 INCOME & EXPENSE'!E232=0,\"\",'3 INCOME & EXPENSE'!E232)","v":""},{"$f":"T('3 INCOME & EXPENSE'!G232)","v":""},{"$f":"'3 INCOME & EXPENSE'!M232","v":{"v":0,"d":"0.0"}},{"$f":"'3 INCOME & EXPENSE'!N232","v":{"v":0,"d":"$0.00"}},{"$f":"'3 INCOME & EXPENSE'!O232","v":{"v":0,"d":"$0.00"}},359,{"$f":"'3 INCOME & EXPENSE'!Z232","v":31},31000,31031,0]
[null,null,{"$f":"IF('3 INCOME & EXPENSE'!E233=0,\"\",'3 INCOME & EXPENSE'!E233)","v":""},{"$f":"T('3 INCOME & EXPENSE'!G233)","v":""},{"$f":"'3 INCOME & EXPENSE'!M233","v":{"v":0,"d":"0.0"}},{"$f":"'3 INCOME & EXPENSE'!N233","v":{"v":0,"d":"$0.00"}},{"$f":"'3 INCOME & EXPENSE'!O233","v":{"v":0,"d":"$0.00"}},360,{"$f":"'3 INCOME & EXPENSE'!Z233","v":31},31000,31031,0]
[null,null,{"$f":"IF('3 INCOME & EXPENSE'!E234=0,\"\",'3 INCOME & EXPENSE'!E234)","v":""},{"$f":"T('3 INCOME & EXPENSE'!G234)","v":""},{"$f":"'3 INCOME & EXPENSE'!M234","v":{"v":0,"d":"0.0"}},{"$f":"'3 INCOME & EXPENSE'!N234","v":{"v":0,"d":"$0.00"}},{"$f":"'3 INCOME & EXPENSE'!O234","v":{"v":0,"d":"$0.00"}},361,{"$f":"'3 INCOME & EXPENSE'!Z234","v":31},31000,31031,0]
[null,null,{"$f":"IF('3 INCOME & EXPENSE'!E235=0,\"\",'3 INCOME & EXPENSE'!E235)","v":""},{"$f":"T('3 INCOME & EXPENSE'!G235)","v":""},{"$f":"'3 INCOME & EXPENSE'!M235","v":{"v":0,"d":"0.0"}},{"$f":"'3 INCOME & EXPENSE'!N235","v":{"v":0,"d":"$0.00"}},{"$f":"'3 INCOME & EXPENSE'!O235","v":{"v":0,"d":"$0.00"}},362,{"$f":"'3 INCOME & EXPENSE'!Z235","v":31},31000,31031,0]
[null,null,{"$f":"IF('3 INCOME & EXPENSE'!E236=0,\"\",'3 INCOME & EXPENSE'!E236)","v":""},{"$f":"T('3 INCOME & EXPENSE'!G236)","v":""},{"$f":"'3 INCOME & EXPENSE'!M236","v":{"v":0,"d":"0.0"}},{"$f":"'3 INCOME & EXPENSE'!N236","v":{"v":0,"d":"$0.00"}},{"$f":"'3 INCOME & EXPENSE'!O236","v":{"v":0,"d":"$0.00"}},363,{"$f":"'3 INCOME & EXPENSE'!Z236","v":31},31000,31031,0]
[null,null,{"$f":"IF('3 INCOME & EXPENSE'!E237=0,\"\",'3 INCOME & EXPENSE'!E237)","v":""},{"$f":"T('3 INCOME & EXPENSE'!G237)","v":""},{"$f":"'3 INCOME & EXPENSE'!M237","v":{"v":0,"d":"0.0"}},{"$f":"'3 INCOME & EXPENSE'!N237","v":{"v":0,"d":"$0.00"}},{"$f":"'3 INCOME & EXPENSE'!O237","v":{"v":0,"d":"$0.00"}},364,{"$f":"'3 INCOME & EXPENSE'!Z237","v":31},31000,31031,0]
[null,null,{"$f":"IF('3 INCOME & EXPENSE'!E238=0,\"\",'3 INCOME & EXPENSE'!E238)","v":""},{"$f":"T('3 INCOME & EXPENSE'!G238)","v":""},{"$f":"'3 INCOME & EXPENSE'!M238","v":{"v":0,"d":"0.0"}},{"$f":"'3 INCOME & EXPENSE'!N238","v":{"v":0,"d":"$0.00"}},{"$f":"'3 INCOME & EXPENSE'!O238","v":{"v":0,"d":"$0.00"}},365,{"$f":"'3 INCOME & EXPENSE'!Z238","v":31},31000,31031,0]
[null,null,{"$f":"IF('3 INCOME & EXPENSE'!E239=0,\"\",'3 INCOME & EXPENSE'!E239)","v":""},{"$f":"T('3 INCOME & EXPENSE'!G239)","v":""},{"$f":"'3 INCOME & EXPENSE'!M239","v":{"v":0,"d":"0.0"}},{"$f":"'3 INCOME & EXPENSE'!N239","v":{"v":0,"d":"$0.00"}},{"$f":"'3 INCOME & EXPENSE'!O239","v":{"v":0,"d":"$0.00"}},366,{"$f":"'3 INCOME & EXPENSE'!Z239","v":31},31000,31031,0]
[null,null,{"$f":"IF('3 INCOME & EXPENSE'!E240=0,\"\",'3 INCOME & EXPENSE'!E240)","v":""},{"$f":"T('3 INCOME & EXPENSE'!G240)","v":""},{"$f":"'3 INCOME & EXPENSE'!M240","v":{"v":0,"d":"0.0"}},{"$f":"'3 INCOME & EXPENSE'!N240","v":{"v":0,"d":"$0.00"}},{"$f":"'3 INCOME & EXPENSE'!O240","v":{"v":0,"d":"$0.00"}},367,{"$f":"'3 INCOME & EXPENSE'!Z240","v":31},31000,31031,0]
[null,null,{"$f":"IF('3 INCOME & EXPENSE'!E241=0,\"\",'3 INCOME & EXPENSE'!E241)","v":""},{"$f":"T('3 INCOME & EXPENSE'!G241)","v":""},{"$f":"'3 INCOME & EXPENSE'!M241","v":{"v":0,"d":"0.0"}},{"$f":"'3 INCOME & EXPENSE'!N241","v":{"v":0,"d":"$0.00"}},{"$f":"'3 INCOME & EXPENSE'!O241","v":{"v":0,"d":"$0.00"}},368,{"$f":"'3 INCOME & EXPENSE'!Z241","v":31},31000,31031,0]
[null,null,{"$f":"IF('3 INCOME & EXPENSE'!E242=0,\"\",'3 INCOME & EXPENSE'!E242)","v":""},{"$f":"T('3 INCOME & EXPENSE'!G242)","v":""},{"$f":"'3 INCOME & EXPENSE'!M242","v":{"v":0,"d":"0.0"}},{"$f":"'3 INCOME & EXPENSE'!N242","v":{"v":0,"d":"$0.00"}},{"$f":"'3 INCOME & EXPENSE'!O242","v":{"v":0,"d":"$0.00"}},369,{"$f":"'3 INCOME & EXPENSE'!Z242","v":31},31000,31031,0]
[null,null,{"$f":"IF('3 INCOME & EXPENSE'!E243=0,\"\",'3 INCOME & EXPENSE'!E243)","v":""},{"$f":"T('3 INCOME & EXPENSE'!G243)","v":""},{"$f":"'3 INCOME & EXPENSE'!M243","v":{"v":0,"d":"0.0"}},{"$f":"'3 INCOME & EXPENSE'!N243","v":{"v":0,"d":"$0.00"}},{"$f":"'3 INCOME & EXPENSE'!O243","v":{"v":0,"d":"$0.00"}},370,{"$f":"'3 INCOME & EXPENSE'!Z243","v":31},31000,31031,0]
[null,null,{"$f":"IF('3 INCOME & EXPENSE'!E244=0,\"\",'3 INCOME & EXPENSE'!E244)","v":""},{"$f":"T('3 INCOME & EXPENSE'!G244)","v":""},{"$f":"'3 INCOME & EXPENSE'!M244","v":{"v":0,"d":"0.0"}},{"$f":"'3 INCOME & EXPENSE'!N244","v":{"v":0,"d":"$0.00"}},{"$f":"'3 INCOME & EXPENSE'!O244","v":{"v":0,"d":"$0.00"}},371,{"$f":"'3 INCOME & EXPENSE'!Z244","v":31},31000,31031,0]
[null,null,{"$f":"IF('3 INCOME & EXPENSE'!E245=0,\"\",'3 INCOME & EXPENSE'!E245)","v":""},{"$f":"T('3 INCOME & EXPENSE'!G245)","v":""},{"$f":"'3 INCOME & EXPENSE'!M245","v":{"v":0,"d":"0.0"}},{"$f":"'3 INCOME & EXPENSE'!N245","v":{"v":0,"d":"$0.00"}},{"$f":"'3 INCOME & EXPENSE'!O245","v":{"v":0,"d":"$0.00"}},372,{"$f":"'3 INCOME & EXPENSE'!Z245","v":31},31000,31031,0]
[null,null,{"$f":"IF('3 INCOME & EXPENSE'!E246=0,\"\",'3 INCOME & EXPENSE'!E246)","v":""},{"$f":"T('3 INCOME & EXPENSE'!G246)","v":""},{"$f":"'3 INCOME & EXPENSE'!M246","v":{"v":0,"d":"0.0"}},{"$f":"'3 INCOME & EXPENSE'!N246","v":{"v":0,"d":"$0.00"}},{"$f":"'3 INCOME & EXPENSE'!O246","v":{"v":0,"d":"$0.00"}},373,{"$f":"'3 INCOME & EXPENSE'!Z246","v":31},31000,31031,0]
[null,null,{"$f":"IF('3 INCOME & EXPENSE'!E247=0,\"\",'3 INCOME & EXPENSE'!E247)","v":""},{"$f":"T('3 INCOME & EXPENSE'!G247)","v":""},{"$f":"'3 INCOME & EXPENSE'!M247","v":{"v":0,"d":"0.0"}},{"$f":"'3 INCOME & EXPENSE'!N247","v":{"v":0,"d":"$0.00"}},{"$f":"'3 INCOME & EXPENSE'!O247","v":{"v":0,"d":"$0.00"}},374,{"$f":"'3 INCOME & EXPENSE'!Z247","v":31},31000,31031,0]
[null,null,{"$f":"IF('3 INCOME & EXPENSE'!E248=0,\"\",'3 INCOME & EXPENSE'!E248)","v":""},{"$f":"T('3 INCOME & EXPENSE'!G248)","v":""},{"$f":"'3 INCOME & EXPENSE'!M248","v":{"v":0,"d":"0.0"}},{"$f":"'3 INCOME & EXPENSE'!N248","v":{"v":0,"d":"$0.00"}},{"$f":"'3 INCOME & EXPENSE'!O248","v":{"v":0,"d":"$0.00"}},375,{"$f":"'3 INCOME & EXPENSE'!Z248","v":31},31000,31031,0]
[null,null,{"$f":"IF('3 INCOME & EXPENSE'!E249=0,\"\",'3 INCOME & EXPENSE'!E249)","v":""},{"$f":"T('3 INCOME & EXPENSE'!G249)","v":""},{"$f":"'3 INCOME & EXPENSE'!M249","v":{"v":0,"d":"0.0"}},{"$f":"'3 INCOME & EXPENSE'!N249","v":{"v":0,"d":"$0.00"}},{"$f":"'3 INCOME & EXPENSE'!O249","v":{"v":0,"d":"$0.00"}},376,{"$f":"'3 INCOME & EXPENSE'!Z249","v":31},31000,31031,0]
[null,null,{"$f":"IF('3 INCOME & EXPENSE'!E250=0,\"\",'3 INCOME & EXPENSE'!E250)","v":""},{"$f":"T('3 INCOME & EXPENSE'!G250)","v":""},{"$f":"'3 INCOME & EXPENSE'!M250","v":{"v":0,"d":"0.0"}},{"$f":"'3 INCOME & EXPENSE'!N250","v":{"v":0,"d":"$0.00"}},{"$f":"'3 INCOME & EXPENSE'!O250","v":{"v":0,"d":"$0.00"}},377,{"$f":"'3 INCOME & EXPENSE'!Z250","v":31},31000,31031,0]
[null,null,{"$f":"IF('3 INCOME & EXPENSE'!E251=0,\"\",'3 INCOME & EXPENSE'!E251)","v":""},{"$f":"T('3 INCOME & EXPENSE'!G251)","v":""},{"$f":"'3 INCOME & EXPENSE'!M251","v":{"v":0,"d":"0.0"}},{"$f":"'3 INCOME & EXPENSE'!N251","v":{"v":0,"d":"$0.00"}},{"$f":"'3 INCOME & EXPENSE'!O251","v":{"v":0,"d":"$0.00"}},378,{"$f":"'3 INCOME & EXPENSE'!Z251","v":31},31000,31031,0]
[null,null,{"$f":"IF('3 INCOME & EXPENSE'!E252=0,\"\",'3 INCOME & EXPENSE'!E252)","v":""},{"$f":"T('3 INCOME & EXPENSE'!G252)","v":""},{"$f":"'3 INCOME & EXPENSE'!M252","v":{"v":0,"d":"0.0"}},{"$f":"'3 INCOME & EXPENSE'!N252","v":{"v":0,"d":"$0.00"}},{"$f":"'3 INCOME & EXPENSE'!O252","v":{"v":0,"d":"$0.00"}},379,{"$f":"'3 INCOME & EXPENSE'!Z252","v":31},31000,31031,0]
[null,null,{"$f":"IF('3 INCOME & EXPENSE'!E253=0,\"\",'3 INCOME & EXPENSE'!E253)","v":""},{"$f":"T('3 INCOME & EXPENSE'!G253)","v":""},{"$f":"'3 INCOME & EXPENSE'!M253","v":{"v":0,"d":"0.0"}},{"$f":"'3 INCOME & EXPENSE'!N253","v":{"v":0,"d":"$0.00"}},{"$f":"'3 INCOME & EXPENSE'!O253","v":{"v":0,"d":"$0.00"}},380,{"$f":"'3 INCOME & EXPENSE'!Z253","v":31},31000,31031,0]
[null,null,{"$f":"IF('3 INCOME & EXPENSE'!E254=0,\"\",'3 INCOME & EXPENSE'!E254)","v":""},{"$f":"T('3 INCOME & EXPENSE'!G254)","v":""},{"$f":"'3 INCOME & EXPENSE'!M254","v":{"v":0,"d":"0.0"}},{"$f":"'3 INCOME & EXPENSE'!N254","v":{"v":0,"d":"$0.00"}},{"$f":"'3 INCOME & EXPENSE'!O254","v":{"v":0,"d":"$0.00"}},381,{"$f":"'3 INCOME & EXPENSE'!Z254","v":31},31000,31031,0]
[null,null,{"$f":"IF('3 INCOME & EXPENSE'!E255=0,\"\",'3 INCOME & EXPENSE'!E255)","v":""},{"$f":"T('3 INCOME & EXPENSE'!G255)","v":""},{"$f":"'3 INCOME & EXPENSE'!M255","v":{"v":0,"d":"0.0"}},{"$f":"'3 INCOME & EXPENSE'!N255","v":{"v":0,"d":"$0.00"}},{"$f":"'3 INCOME & EXPENSE'!O255","v":{"v":0,"d":"$0.00"}},382,{"$f":"'3 INCOME & EXPENSE'!Z255","v":31},31000,31031,0]
[null,null,{"$f":"IF('3 INCOME & EXPENSE'!E256=0,\"\",'3 INCOME & EXPENSE'!E256)","v":""},{"$f":"T('3 INCOME & EXPENSE'!G256)","v":""},{"$f":"'3 INCOME & EXPENSE'!M256","v":{"v":0,"d":"0.0"}},{"$f":"'3 INCOME & EXPENSE'!N256","v":{"v":0,"d":"$0.00"}},{"$f":"'3 INCOME & EXPENSE'!O256","v":{"v":0,"d":"$0.00"}},383,{"$f":"'3 INCOME & EXPENSE'!Z256","v":31},31000,31031,0]
[null,null,{"$f":"IF('3 INCOME & EXPENSE'!E257=0,\"\",'3 INCOME & EXPENSE'!E257)","v":""},{"$f":"T('3 INCOME & EXPENSE'!G257)","v":""},{"$f":"'3 INCOME & EXPENSE'!M257","v":{"v":0,"d":"0.0"}},{"$f":"'3 INCOME & EXPENSE'!N257","v":{"v":0,"d":"$0.00"}},{"$f":"'3 INCOME & EXPENSE'!O257","v":{"v":0,"d":"$0.00"}},384,{"$f":"'3 INCOME & EXPENSE'!Z257","v":31},31000,31031,0]
[null,null,{"$f":"IF('3 INCOME & EXPENSE'!E258=0,\"\",'3 INCOME & EXPENSE'!E258)","v":""},{"$f":"T('3 INCOME & EXPENSE'!G258)","v":""},{"$f":"'3 INCOME & EXPENSE'!M258","v":{"v":0,"d":"0.0"}},{"$f":"'3 INCOME & EXPENSE'!N258","v":{"v":0,"d":"$0.00"}},{"$f":"'3 INCOME & EXPENSE'!O258","v":{"v":0,"d":"$0.00"}},385,{"$f":"'3 INCOME & EXPENSE'!Z258","v":31},31000,{"$f":"I396+J396","v":31031},0]
[null,null,{"$f":"IF('3 INCOME & EXPENSE'!E259=0,\"\",'3 INCOME & EXPENSE'!E259)","v":""},{"$f":"T('3 INCOME & EXPENSE'!G259)","v":""},{"$f":"'3 INCOME & EXPENSE'!M259","v":{"v":0,"d":"0.0"}},{"$f":"'3 INCOME & EXPENSE'!N259","v":{"v":0,"d":"$0.00"}},{"$f":"'3 INCOME & EXPENSE'!O259","v":{"v":0,"d":"$0.00"}},386,{"$f":"'3 INCOME & EXPENSE'!Z259","v":31},31000,31031,0]
[null,null,{"$f":"IF('3 INCOME & EXPENSE'!E260=0,\"\",'3 INCOME & EXPENSE'!E260)","v":""},{"$f":"T('3 INCOME & EXPENSE'!G260)","v":""},{"$f":"'3 INCOME & EXPENSE'!M260","v":{"v":0,"d":"0.0"}},{"$f":"'3 INCOME & EXPENSE'!N260","v":{"v":0,"d":"$0.00"}},{"$f":"'3 INCOME & EXPENSE'!O260","v":{"v":0,"d":"$0.00"}},387,{"$f":"'3 INCOME & EXPENSE'!Z260","v":31},31000,31031,0]
[null,null,{"$f":"IF('3 INCOME & EXPENSE'!E261=0,\"\",'3 INCOME & EXPENSE'!E261)","v":""},{"$f":"T('3 INCOME & EXPENSE'!G261)","v":""},{"$f":"'3 INCOME & EXPENSE'!M261","v":{"v":0,"d":"0.0"}},{"$f":"'3 INCOME & EXPENSE'!N261","v":{"v":0,"d":"$0.00"}},{"$f":"'3 INCOME & EXPENSE'!O261","v":{"v":0,"d":"$0.00"}},388,{"$f":"'3 INCOME & EXPENSE'!Z261","v":31},31000,31031,0]
[null,null,{"$f":"IF('3 INCOME & EXPENSE'!E262=0,\"\",'3 INCOME & EXPENSE'!E262)","v":""},{"$f":"T('3 INCOME & EXPENSE'!G262)","v":""},{"$f":"'3 INCOME & EXPENSE'!M262","v":{"v":0,"d":"0.0"}},{"$f":"'3 INCOME & EXPENSE'!N262","v":{"v":0,"d":"$0.00"}},{"$f":"'3 INCOME & EXPENSE'!O262","v":{"v":0,"d":"$0.00"}},389,{"$f":"'3 INCOME & EXPENSE'!Z262","v":31},31000,31031,0]
[null,null,{"$f":"IF('3 INCOME & EXPENSE'!E263=0,\"\",'3 INCOME & EXPENSE'!E263)","v":""},{"$f":"T('3 INCOME & EXPENSE'!G263)","v":""},{"$f":"'3 INCOME & EXPENSE'!M263","v":{"v":0,"d":"0.0"}},{"$f":"'3 INCOME & EXPENSE'!N263","v":{"v":0,"d":"$0.00"}},{"$f":"'3 INCOME & EXPENSE'!O263","v":{"v":0,"d":"$0.00"}},390,{"$f":"'3 INCOME & EXPENSE'!Z263","v":31},31000,31031,0]
[null,null,{"$f":"IF('3 INCOME & EXPENSE'!E264=0,\"\",'3 INCOME & EXPENSE'!E264)","v":""},{"$f":"T('3 INCOME & EXPENSE'!G264)","v":""},{"$f":"'3 INCOME & EXPENSE'!M264","v":{"v":0,"d":"0.0"}},{"$f":"'3 INCOME & EXPENSE'!N264","v":{"v":0,"d":"$0.00"}},{"$f":"'3 INCOME & EXPENSE'!O264","v":{"v":0,"d":"$0.00"}},391,{"$f":"'3 INCOME & EXPENSE'!Z264","v":31},31000,31031,0]
[null,null,{"$f":"IF('3 INCOME & EXPENSE'!E265=0,\"\",'3 INCOME & EXPENSE'!E265)","v":""},{"$f":"T('3 INCOME & EXPENSE'!G265)","v":""},{"$f":"'3 INCOME & EXPENSE'!M265","v":{"v":0,"d":"0.0"}},{"$f":"'3 INCOME & EXPENSE'!N265","v":{"v":0,"d":"$0.00"}},{"$f":"'3 INCOME & EXPENSE'!O265","v":{"v":0,"d":"$0.00"}},392,{"$f":"'3 INCOME & EXPENSE'!Z265","v":31},31000,31031,0]
[null,null,{"$f":"IF('3 INCOME & EXPENSE'!E266=0,\"\",'3 INCOME & EXPENSE'!E266)","v":""},{"$f":"T('3 INCOME & EXPENSE'!G266)","v":""},{"$f":"'3 INCOME & EXPENSE'!M266","v":{"v":0,"d":"0.0"}},{"$f":"'3 INCOME & EXPENSE'!N266","v":{"v":0,"d":"$0.00"}},{"$f":"'3 INCOME & EXPENSE'!O266","v":{"v":0,"d":"$0.00"}},393,{"$f":"'3 INCOME & EXPENSE'!Z266","v":31},31000,31031,0]
[null,null,{"$f":"IF('3 INCOME & EXPENSE'!E267=0,\"\",'3 INCOME & EXPENSE'!E267)","v":""},{"$f":"T('3 INCOME & EXPENSE'!G267)","v":""},{"$f":"'3 INCOME & EXPENSE'!M267","v":{"v":0,"d":"0.0"}},{"$f":"'3 INCOME & EXPENSE'!N267","v":{"v":0,"d":"$0.00"}},{"$f":"'3 INCOME & EXPENSE'!O267","v":{"v":0,"d":"$0.00"}},394,{"$f":"'3 INCOME & EXPENSE'!Z267","v":31},31000,31031,0]
[null,null,{"$f":"IF('3 INCOME & EXPENSE'!E268=0,\"\",'3 INCOME & EXPENSE'!E268)","v":""},{"$f":"T('3 INCOME & EXPENSE'!G268)","v":""},{"$f":"'3 INCOME & EXPENSE'!M268","v":{"v":0,"d":"0.0"}},{"$f":"'3 INCOME & EXPENSE'!N268","v":{"v":0,"d":"$0.00"}},{"$f":"'3 INCOME & EXPENSE'!O268","v":{"v":0,"d":"$0.00"}},395,{"$f":"'3 INCOME & EXPENSE'!Z268","v":31},31000,31031,0]
[null,null,{"$f":"IF('3 INCOME & EXPENSE'!E269=0,\"\",'3 INCOME & EXPENSE'!E269)","v":""},{"$f":"T('3 INCOME & EXPENSE'!G269)","v":""},{"$f":"'3 INCOME & EXPENSE'!M269","v":{"v":0,"d":"0.0"}},{"$f":"'3 INCOME & EXPENSE'!N269","v":{"v":0,"d":"$0.00"}},{"$f":"'3 INCOME & EXPENSE'!O269","v":{"v":0,"d":"$0.00"}},396,{"$f":"'3 INCOME & EXPENSE'!Z269","v":31},31000,31031,0]
[null,null,{"$f":"IF('3 INCOME & EXPENSE'!E270=0,\"\",'3 INCOME & EXPENSE'!E270)","v":""},{"$f":"T('3 INCOME & EXPENSE'!G270)","v":""},{"$f":"'3 INCOME & EXPENSE'!M270","v":{"v":0,"d":"0.0"}},{"$f":"'3 INCOME & EXPENSE'!N270","v":{"v":0,"d":"$0.00"}},{"$f":"'3 INCOME & EXPENSE'!O270","v":{"v":0,"d":"$0.00"}},397,{"$f":"'3 INCOME & EXPENSE'!Z270","v":31},{"$f":"VLOOKUP(I408,$J$939:$K$969,2)","v":31000},31031,{"$f":"K408*E408","v":0}]
[null,null,{"$f":"IF('3 INCOME & EXPENSE'!E271=0,\"\",'3 INCOME & EXPENSE'!E271)","v":""},{"$f":"T('3 INCOME & EXPENSE'!G271)","v":""},{"$f":"'3 INCOME & EXPENSE'!M271","v":{"v":0,"d":"0.0"}},{"$f":"'3 INCOME & EXPENSE'!N271","v":{"v":0,"d":"$0.00"}},{"$f":"'3 INCOME & EXPENSE'!O271","v":{"v":0,"d":"$0.00"}},398,{"$f":"'3 INCOME & EXPENSE'!Z271","v":31},31000,31031,0]
[null,null,{"$f":"IF('3 INCOME & EXPENSE'!E272=0,\"\",'3 INCOME & EXPENSE'!E272)","v":""},{"$f":"T('3 INCOME & EXPENSE'!G272)","v":""},{"$f":"'3 INCOME & EXPENSE'!M272","v":{"v":0,"d":"0.0"}},{"$f":"'3 INCOME & EXPENSE'!N272","v":{"v":0,"d":"$0.00"}},{"$f":"'3 INCOME & EXPENSE'!O272","v":{"v":0,"d":"$0.00"}},399,{"$f":"'3 INCOME & EXPENSE'!Z272","v":31},31000,31031,0]
[null,null,{"$f":"IF('3 INCOME & EXPENSE'!E273=0,\"\",'3 INCOME & EXPENSE'!E273)","v":""},{"$f":"T('3 INCOME & EXPENSE'!G273)","v":""},{"$f":"'3 INCOME & EXPENSE'!M273","v":{"v":0,"d":"0.0"}},{"$f":"'3 INCOME & EXPENSE'!N273","v":{"v":0,"d":"$0.00"}},{"$f":"'3 INCOME & EXPENSE'!O273","v":{"v":0,"d":"$0.00"}},400,{"$f":"'3 INCOME & EXPENSE'!Z273","v":31},31000,31031,0]
[null,null,{"$f":"IF('3 INCOME & EXPENSE'!E274=0,\"\",'3 INCOME & EXPENSE'!E274)","v":""},{"$f":"T('3 INCOME & EXPENSE'!G274)","v":""},{"$f":"'3 INCOME & EXPENSE'!M274","v":{"v":0,"d":"0.0"}},{"$f":"'3 INCOME & EXPENSE'!N274","v":{"v":0,"d":"$0.00"}},{"$f":"'3 INCOME & EXPENSE'!O274","v":{"v":0,"d":"$0.00"}},401,{"$f":"'3 INCOME & EXPENSE'!Z274","v":31},31000,31031,0]
[null,null,{"$f":"IF('3 INCOME & EXPENSE'!E275=0,\"\",'3 INCOME & EXPENSE'!E275)","v":""},{"$f":"T('3 INCOME & EXPENSE'!G275)","v":""},{"$f":"'3 INCOME & EXPENSE'!M275","v":{"v":0,"d":"0.0"}},{"$f":"'3 INCOME & EXPENSE'!N275","v":{"v":0,"d":"$0.00"}},{"$f":"'3 INCOME & EXPENSE'!O275","v":{"v":0,"d":"$0.00"}},402,{"$f":"'3 INCOME & EXPENSE'!Z275","v":31},31000,31031,0]
[null,null,{"$f":"IF('3 INCOME & EXPENSE'!E276=0,\"\",'3 INCOME & EXPENSE'!E276)","v":""},{"$f":"T('3 INCOME & EXPENSE'!G276)","v":""},{"$f":"'3 INCOME & EXPENSE'!M276","v":{"v":0,"d":"0.0"}},{"$f":"'3 INCOME & EXPENSE'!N276","v":{"v":0,"d":"$0.00"}},{"$f":"'3 INCOME & EXPENSE'!O276","v":{"v":0,"d":"$0.00"}},403,{"$f":"'3 INCOME & EXPENSE'!Z276","v":31},31000,31031,0]
[null,null,{"$f":"IF('3 INCOME & EXPENSE'!E277=0,\"\",'3 INCOME & EXPENSE'!E277)","v":""},{"$f":"T('3 INCOME & EXPENSE'!G277)","v":""},{"$f":"'3 INCOME & EXPENSE'!M277","v":{"v":0,"d":"0.0"}},{"$f":"'3 INCOME & EXPENSE'!N277","v":{"v":0,"d":"$0.00"}},{"$f":"'3 INCOME & EXPENSE'!O277","v":{"v":0,"d":"$0.00"}},404,{"$f":"'3 INCOME & EXPENSE'!Z277","v":31},31000,31031,0]
[null,null,{"$f":"IF('3 INCOME & EXPENSE'!E278=0,\"\",'3 INCOME & EXPENSE'!E278)","v":""},{"$f":"T('3 INCOME & EXPENSE'!G278)","v":""},{"$f":"'3 INCOME & EXPENSE'!M278","v":{"v":0,"d":"0.0"}},{"$f":"'3 INCOME & EXPENSE'!N278","v":{"v":0,"d":"$0.00"}},{"$f":"'3 INCOME & EXPENSE'!O278","v":{"v":0,"d":"$0.00"}},405,{"$f":"'3 INCOME & EXPENSE'!Z278","v":31},31000,31031,0]
[null,null,{"$f":"IF('3 INCOME & EXPENSE'!E279=0,\"\",'3 INCOME & EXPENSE'!E279)","v":""},{"$f":"T('3 INCOME & EXPENSE'!G279)","v":""},{"$f":"'3 INCOME & EXPENSE'!M279","v":{"v":0,"d":"0.0"}},{"$f":"'3 INCOME & EXPENSE'!N279","v":{"v":0,"d":"$0.00"}},{"$f":"'3 INCOME & EXPENSE'!O279","v":{"v":0,"d":"$0.00"}},406,{"$f":"'3 INCOME & EXPENSE'!Z279","v":31},31000,31031,0]
[null,null,{"$f":"IF('3 INCOME & EXPENSE'!E280=0,\"\",'3 INCOME & EXPENSE'!E280)","v":""},{"$f":"T('3 INCOME & EXPENSE'!G280)","v":""},{"$f":"'3 INCOME & EXPENSE'!M280","v":{"v":0,"d":"0.0"}},{"$f":"'3 INCOME & EXPENSE'!N280","v":{"v":0,"d":"$0.00"}},{"$f":"'3 INCOME & EXPENSE'!O280","v":{"v":0,"d":"$0.00"}},407,{"$f":"'3 INCOME & EXPENSE'!Z280","v":31},31000,31031,0]
[null,null,{"$f":"IF('3 INCOME & EXPENSE'!E281=0,\"\",'3 INCOME & EXPENSE'!E281)","v":""},{"$f":"T('3 INCOME & EXPENSE'!G281)","v":""},{"$f":"'3 INCOME & EXPENSE'!M281","v":{"v":0,"d":"0.0"}},{"$f":"'3 INCOME & EXPENSE'!N281","v":{"v":0,"d":"$0.00"}},{"$f":"'3 INCOME & EXPENSE'!O281","v":{"v":0,"d":"$0.00"}},408,{"$f":"'3 INCOME & EXPENSE'!Z281","v":31},31000,31031,0]
[null,null,{"$f":"IF('3 INCOME & EXPENSE'!E282=0,\"\",'3 INCOME & EXPENSE'!E282)","v":""},{"$f":"T('3 INCOME & EXPENSE'!G282)","v":""},{"$f":"'3 INCOME & EXPENSE'!M282","v":{"v":0,"d":"0.0"}},{"$f":"'3 INCOME & EXPENSE'!N282","v":{"v":0,"d":"$0.00"}},{"$f":"'3 INCOME & EXPENSE'!O282","v":{"v":0,"d":"$0.00"}},409,{"$f":"'3 INCOME & EXPENSE'!Z282","v":31},31000,31031,0]
[null,null,{"$f":"IF('3 INCOME & EXPENSE'!E283=0,\"\",'3 INCOME & EXPENSE'!E283)","v":""},{"$f":"T('3 INCOME & EXPENSE'!G283)","v":""},{"$f":"'3 INCOME & EXPENSE'!M283","v":{"v":0,"d":"0.0"}},{"$f":"'3 INCOME & EXPENSE'!N283","v":{"v":0,"d":"$0.00"}},{"$f":"'3 INCOME & EXPENSE'!O283","v":{"v":0,"d":"$0.00"}},410,{"$f":"'3 INCOME & EXPENSE'!Z283","v":31},31000,31031,0]
[null,null,{"$f":"IF('3 INCOME & EXPENSE'!E284=0,\"\",'3 INCOME & EXPENSE'!E284)","v":""},{"$f":"T('3 INCOME & EXPENSE'!G284)","v":""},{"$f":"'3 INCOME & EXPENSE'!M284","v":{"v":0,"d":"0.0"}},{"$f":"'3 INCOME & EXPENSE'!N284","v":{"v":0,"d":"$0.00"}},{"$f":"'3 INCOME & EXPENSE'!O284","v":{"v":0,"d":"$0.00"}},411,{"$f":"'3 INCOME & EXPENSE'!Z284","v":31},31000,31031,0]
[null,null,{"$f":"IF('3 INCOME & EXPENSE'!E285=0,\"\",'3 INCOME & EXPENSE'!E285)","v":""},{"$f":"T('3 INCOME & EXPENSE'!G285)","v":""},{"$f":"'3 INCOME & EXPENSE'!M285","v":{"v":0,"d":"0.0"}},{"$f":"'3 INCOME & EXPENSE'!N285","v":{"v":0,"d":"$0.00"}},{"$f":"'3 INCOME & EXPENSE'!O285","v":{"v":0,"d":"$0.00"}},412,{"$f":"'3 INCOME & EXPENSE'!Z285","v":31},31000,31031,0]
[null,null,{"$f":"IF('3 INCOME & EXPENSE'!E286=0,\"\",'3 INCOME & EXPENSE'!E286)","v":""},{"$f":"T('3 INCOME & EXPENSE'!G286)","v":""},{"$f":"'3 INCOME & EXPENSE'!M286","v":{"v":0,"d":"0.0"}},{"$f":"'3 INCOME & EXPENSE'!N286","v":{"v":0,"d":"$0.00"}},{"$f":"'3 INCOME & EXPENSE'!O286","v":{"v":0,"d":"$0.00"}},413,{"$f":"'3 INCOME & EXPENSE'!Z286","v":31},31000,31031,0]
[null,null,{"$f":"IF('3 INCOME & EXPENSE'!E287=0,\"\",'3 INCOME & EXPENSE'!E287)","v":""},{"$f":"T('3 INCOME & EXPENSE'!G287)","v":""},{"$f":"'3 INCOME & EXPENSE'!M287","v":{"v":0,"d":"0.0"}},{"$f":"'3 INCOME & EXPENSE'!N287","v":{"v":0,"d":"$0.00"}},{"$f":"'3 INCOME & EXPENSE'!O287","v":{"v":0,"d":"$0.00"}},414,{"$f":"'3 INCOME & EXPENSE'!Z287","v":31},31000,31031,0]
[null,null,{"$f":"IF('3 INCOME & EXPENSE'!E288=0,\"\",'3 INCOME & EXPENSE'!E288)","v":""},{"$f":"T('3 INCOME & EXPENSE'!G288)","v":""},{"$f":"'3 INCOME & EXPENSE'!M288","v":{"v":0,"d":"0.0"}},{"$f":"'3 INCOME & EXPENSE'!N288","v":{"v":0,"d":"$0.00"}},{"$f":"'3 INCOME & EXPENSE'!O288","v":{"v":0,"d":"$0.00"}},415,{"$f":"'3 INCOME & EXPENSE'!Z288","v":31},31000,31031,0]
[null,null,{"$f":"IF('3 INCOME & EXPENSE'!E289=0,\"\",'3 INCOME & EXPENSE'!E289)","v":""},{"$f":"T('3 INCOME & EXPENSE'!G289)","v":""},{"$f":"'3 INCOME & EXPENSE'!M289","v":{"v":0,"d":"0.0"}},{"$f":"'3 INCOME & EXPENSE'!N289","v":{"v":0,"d":"$0.00"}},{"$f":"'3 INCOME & EXPENSE'!O289","v":{"v":0,"d":"$0.00"}},416,{"$f":"'3 INCOME & EXPENSE'!Z289","v":31},31000,31031,0]
[null,null,{"$f":"IF('3 INCOME & EXPENSE'!E290=0,\"\",'3 INCOME & EXPENSE'!E290)","v":""},{"$f":"T('3 INCOME & EXPENSE'!G290)","v":""},{"$f":"'3 INCOME & EXPENSE'!M290","v":{"v":0,"d":"0.0"}},{"$f":"'3 INCOME & EXPENSE'!N290","v":{"v":0,"d":"$0.00"}},{"$f":"'3 INCOME & EXPENSE'!O290","v":{"v":0,"d":"$0.00"}},417,{"$f":"'3 INCOME & EXPENSE'!Z290","v":31},31000,31031,0]
[null,null,{"$f":"IF('3 INCOME & EXPENSE'!E291=0,\"\",'3 INCOME & EXPENSE'!E291)","v":""},{"$f":"T('3 INCOME & EXPENSE'!G291)","v":""},{"$f":"'3 INCOME & EXPENSE'!M291","v":{"v":0,"d":"0.0"}},{"$f":"'3 INCOME & EXPENSE'!N291","v":{"v":0,"d":"$0.00"}},{"$f":"'3 INCOME & EXPENSE'!O291","v":{"v":0,"d":"$0.00"}},418,{"$f":"'3 INCOME & EXPENSE'!Z291","v":31},31000,31031,0]
[null,null,{"$f":"IF('3 INCOME & EXPENSE'!E292=0,\"\",'3 INCOME & EXPENSE'!E292)","v":""},{"$f":"T('3 INCOME & EXPENSE'!G292)","v":""},{"$f":"'3 INCOME & EXPENSE'!M292","v":{"v":0,"d":"0.0"}},{"$f":"'3 INCOME & EXPENSE'!N292","v":{"v":0,"d":"$0.00"}},{"$f":"'3 INCOME & EXPENSE'!O292","v":{"v":0,"d":"$0.00"}},419,{"$f":"'3 INCOME & EXPENSE'!Z292","v":31},31000,31031,0]
[null,null,{"$f":"IF('3 INCOME & EXPENSE'!E293=0,\"\",'3 INCOME & EXPENSE'!E293)","v":""},{"$f":"T('3 INCOME & EXPENSE'!G293)","v":""},{"$f":"'3 INCOME & EXPENSE'!M293","v":{"v":0,"d":"0.0"}},{"$f":"'3 INCOME & EXPENSE'!N293","v":{"v":0,"d":"$0.00"}},{"$f":"'3 INCOME & EXPENSE'!O293","v":{"v":0,"d":"$0.00"}},420,{"$f":"'3 INCOME & EXPENSE'!Z293","v":31},31000,31031,0]
[null,null,{"$f":"IF('3 INCOME & EXPENSE'!E294=0,\"\",'3 INCOME & EXPENSE'!E294)","v":""},{"$f":"T('3 INCOME & EXPENSE'!G294)","v":""},{"$f":"'3 INCOME & EXPENSE'!M294","v":{"v":0,"d":"0.0"}},{"$f":"'3 INCOME & EXPENSE'!N294","v":{"v":0,"d":"$0.00"}},{"$f":"'3 INCOME & EXPENSE'!O294","v":{"v":0,"d":"$0.00"}},421,{"$f":"'3 INCOME & EXPENSE'!Z294","v":31},31000,31031,0]
[null,null,{"$f":"IF('3 INCOME & EXPENSE'!E295=0,\"\",'3 INCOME & EXPENSE'!E295)","v":""},{"$f":"T('3 INCOME & EXPENSE'!G295)","v":""},{"$f":"'3 INCOME & EXPENSE'!M295","v":{"v":0,"d":"0.0"}},{"$f":"'3 INCOME & EXPENSE'!N295","v":{"v":0,"d":"$0.00"}},{"$f":"'3 INCOME & EXPENSE'!O295","v":{"v":0,"d":"$0.00"}},422,{"$f":"'3 INCOME & EXPENSE'!Z295","v":31},31000,31031,0]
[null,null,{"$f":"IF('3 INCOME & EXPENSE'!E296=0,\"\",'3 INCOME & EXPENSE'!E296)","v":""},{"$f":"T('3 INCOME & EXPENSE'!G296)","v":""},{"$f":"'3 INCOME & EXPENSE'!M296","v":{"v":0,"d":"0.0"}},{"$f":"'3 INCOME & EXPENSE'!N296","v":{"v":0,"d":"$0.00"}},{"$f":"'3 INCOME & EXPENSE'!O296","v":{"v":0,"d":"$0.00"}},423,{"$f":"'3 INCOME & EXPENSE'!Z296","v":31},31000,31031,0]
[null,null,{"$f":"IF('3 INCOME & EXPENSE'!E297=0,\"\",'3 INCOME & EXPENSE'!E297)","v":""},{"$f":"T('3 INCOME & EXPENSE'!G297)","v":""},{"$f":"'3 INCOME & EXPENSE'!M297","v":{"v":0,"d":"0.0"}},{"$f":"'3 INCOME & EXPENSE'!N297","v":{"v":0,"d":"$0.00"}},{"$f":"'3 INCOME & EXPENSE'!O297","v":{"v":0,"d":"$0.00"}},424,{"$f":"'3 INCOME & EXPENSE'!Z297","v":31},31000,31031,0]
[null,null,{"$f":"IF('3 INCOME & EXPENSE'!E298=0,\"\",'3 INCOME & EXPENSE'!E298)","v":""},{"$f":"T('3 INCOME & EXPENSE'!G298)","v":""},{"$f":"'3 INCOME & EXPENSE'!M298","v":{"v":0,"d":"0.0"}},{"$f":"'3 INCOME & EXPENSE'!N298","v":{"v":0,"d":"$0.00"}},{"$f":"'3 INCOME & EXPENSE'!O298","v":{"v":0,"d":"$0.00"}},425,{"$f":"'3 INCOME & EXPENSE'!Z298","v":31},31000,31031,0]
[null,null,{"$f":"IF('3 INCOME & EXPENSE'!E299=0,\"\",'3 INCOME & EXPENSE'!E299)","v":""},{"$f":"T('3 INCOME & EXPENSE'!G299)","v":""},{"$f":"'3 INCOME & EXPENSE'!M299","v":{"v":0,"d":"0.0"}},{"$f":"'3 INCOME & EXPENSE'!N299","v":{"v":0,"d":"$0.00"}},{"$f":"'3 INCOME & EXPENSE'!O299","v":{"v":0,"d":"$0.00"}},426,{"$f":"'3 INCOME & EXPENSE'!Z299","v":31},31000,31031,0]
[null,null,{"$f":"IF('3 INCOME & EXPENSE'!E300=0,\"\",'3 INCOME & EXPENSE'!E300)","v":""},{"$f":"T('3 INCOME & EXPENSE'!G300)","v":""},{"$f":"'3 INCOME & EXPENSE'!M300","v":{"v":0,"d":"0.0"}},{"$f":"'3 INCOME & EXPENSE'!N300","v":{"v":0,"d":"$0.00"}},{"$f":"'3 INCOME & EXPENSE'!O300","v":{"v":0,"d":"$0.00"}},427,{"$f":"'3 INCOME & EXPENSE'!Z300","v":31},31000,31031,0]
[null,null,{"$f":"IF('3 INCOME & EXPENSE'!E301=0,\"\",'3 INCOME & EXPENSE'!E301)","v":""},{"$f":"T('3 INCOME & EXPENSE'!G301)","v":""},{"$f":"'3 INCOME & EXPENSE'!M301","v":{"v":0,"d":"0.0"}},{"$f":"'3 INCOME & EXPENSE'!N301","v":{"v":0,"d":"$0.00"}},{"$f":"'3 INCOME & EXPENSE'!O301","v":{"v":0,"d":"$0.00"}},428,{"$f":"'3 INCOME & EXPENSE'!Z301","v":31},31000,31031,0]
[null,null,{"$f":"IF('3 INCOME & EXPENSE'!E302=0,\"\",'3 INCOME & EXPENSE'!E302)","v":""},{"$f":"T('3 INCOME & EXPENSE'!G302)","v":""},{"$f":"'3 INCOME & EXPENSE'!M302","v":{"v":0,"d":"0.0"}},{"$f":"'3 INCOME & EXPENSE'!N302","v":{"v":0,"d":"$0.00"}},{"$f":"'3 INCOME & EXPENSE'!O302","v":{"v":0,"d":"$0.00"}},429,{"$f":"'3 INCOME & EXPENSE'!Z302","v":31},31000,31031,0]
[null,null,{"$f":"IF('3 INCOME & EXPENSE'!E303=0,\"\",'3 INCOME & EXPENSE'!E303)","v":""},{"$f":"T('3 INCOME & EXPENSE'!G303)","v":""},{"$f":"'3 INCOME & EXPENSE'!M303","v":{"v":0,"d":"0.0"}},{"$f":"'3 INCOME & EXPENSE'!N303","v":{"v":0,"d":"$0.00"}},{"$f":"'3 INCOME & EXPENSE'!O303","v":{"v":0,"d":"$0.00"}},430,{"$f":"'3 INCOME & EXPENSE'!Z303","v":31},31000,31031,0]
[null,null,{"$f":"IF('3 INCOME & EXPENSE'!E304=0,\"\",'3 INCOME & EXPENSE'!E304)","v":""},{"$f":"T('3 INCOME & EXPENSE'!G304)","v":""},{"$f":"'3 INCOME & EXPENSE'!M304","v":{"v":0,"d":"0.0"}},{"$f":"'3 INCOME & EXPENSE'!N304","v":{"v":0,"d":"$0.00"}},{"$f":"'3 INCOME & EXPENSE'!O304","v":{"v":0,"d":"$0.00"}},431,{"$f":"'3 INCOME & EXPENSE'!Z304","v":31},31000,31031,0]
[null,null,{"$f":"IF('3 INCOME & EXPENSE'!E305=0,\"\",'3 INCOME & EXPENSE'!E305)","v":""},{"$f":"T('3 INCOME & EXPENSE'!G305)","v":""},{"$f":"'3 INCOME & EXPENSE'!M305","v":{"v":0,"d":"0.0"}},{"$f":"'3 INCOME & EXPENSE'!N305","v":{"v":0,"d":"$0.00"}},{"$f":"'3 INCOME & EXPENSE'!O305","v":{"v":0,"d":"$0.00"}},432,{"$f":"'3 INCOME & EXPENSE'!Z305","v":31},31000,31031,0]
[null,null,{"$f":"IF('3 INCOME & EXPENSE'!E306=0,\"\",'3 INCOME & EXPENSE'!E306)","v":""},{"$f":"T('3 INCOME & EXPENSE'!G306)","v":""},{"$f":"'3 INCOME & EXPENSE'!M306","v":{"v":0,"d":"0.0"}},{"$f":"'3 INCOME & EXPENSE'!N306","v":{"v":0,"d":"$0.00"}},{"$f":"'3 INCOME & EXPENSE'!O306","v":{"v":0,"d":"$0.00"}},433,{"$f":"'3 INCOME & EXPENSE'!Z306","v":31},31000,31031,0]
[null,null,{"$f":"IF('3 INCOME & EXPENSE'!E307=0,\"\",'3 INCOME & EXPENSE'!E307)","v":""},{"$f":"T('3 INCOME & EXPENSE'!G307)","v":""},{"$f":"'3 INCOME & EXPENSE'!M307","v":{"v":0,"d":"0.0"}},{"$f":"'3 INCOME & EXPENSE'!N307","v":{"v":0,"d":"$0.00"}},{"$f":"'3 INCOME & EXPENSE'!O307","v":{"v":0,"d":"$0.00"}},434,{"$f":"'3 INCOME & EXPENSE'!Z307","v":31},31000,31031,0]
[null,null,{"$f":"IF('3 INCOME & EXPENSE'!E308=0,\"\",'3 INCOME & EXPENSE'!E308)","v":""},{"$f":"T('3 INCOME & EXPENSE'!G308)","v":""},{"$f":"'3 INCOME & EXPENSE'!M308","v":{"v":0,"d":"0.0"}},{"$f":"'3 INCOME & EXPENSE'!N308","v":{"v":0,"d":"$0.00"}},{"$f":"'3 INCOME & EXPENSE'!O308","v":{"v":0,"d":"$0.00"}},435,{"$f":"'3 INCOME & EXPENSE'!Z308","v":31},31000,31031,0]
[null,null,{"$f":"IF('3 INCOME & EXPENSE'!E309=0,\"\",'3 INCOME & EXPENSE'!E309)","v":""},{"$f":"T('3 INCOME & EXPENSE'!G309)","v":""},{"$f":"'3 INCOME & EXPENSE'!M309","v":{"v":0,"d":"0.0"}},{"$f":"'3 INCOME & EXPENSE'!N309","v":{"v":0,"d":"$0.00"}},{"$f":"'3 INCOME & EXPENSE'!O309","v":{"v":0,"d":"$0.00"}},436,{"$f":"'3 INCOME & EXPENSE'!Z309","v":31},31000,31031,0]
[null,null,{"$f":"IF('3 INCOME & EXPENSE'!E310=0,\"\",'3 INCOME & EXPENSE'!E310)","v":""},{"$f":"T('3 INCOME & EXPENSE'!G310)","v":""},{"$f":"'3 INCOME & EXPENSE'!M310","v":{"v":0,"d":"0.0"}},{"$f":"'3 INCOME & EXPENSE'!N310","v":{"v":0,"d":"$0.00"}},{"$f":"'3 INCOME & EXPENSE'!O310","v":{"v":0,"d":"$0.00"}},437,{"$f":"'3 INCOME & EXPENSE'!Z310","v":31},31000,31031,0]
[null,null,{"$f":"IF('3 INCOME & EXPENSE'!E311=0,\"\",'3 INCOME & EXPENSE'!E311)","v":""},{"$f":"T('3 INCOME & EXPENSE'!G311)","v":""},{"$f":"'3 INCOME & EXPENSE'!M311","v":{"v":0,"d":"0.0"}},{"$f":"'3 INCOME & EXPENSE'!N311","v":{"v":0,"d":"$0.00"}},{"$f":"'3 INCOME & EXPENSE'!O311","v":{"v":0,"d":"$0.00"}},438,{"$f":"'3 INCOME & EXPENSE'!Z311","v":31},31000,31031,0]
[null,null,{"$f":"IF('3 INCOME & EXPENSE'!E312=0,\"\",'3 INCOME & EXPENSE'!E312)","v":""},{"$f":"T('3 INCOME & EXPENSE'!G312)","v":""},{"$f":"'3 INCOME & EXPENSE'!M312","v":{"v":0,"d":"0.0"}},{"$f":"'3 INCOME & EXPENSE'!N312","v":{"v":0,"d":"$0.00"}},{"$f":"'3 INCOME & EXPENSE'!O312","v":{"v":0,"d":"$0.00"}},439,{"$f":"'3 INCOME & EXPENSE'!Z312","v":31},31000,31031,0]
[null,null,{"$f":"IF('3 INCOME & EXPENSE'!E313=0,\"\",'3 INCOME & EXPENSE'!E313)","v":""},{"$f":"T('3 INCOME & EXPENSE'!G313)","v":""},{"$f":"'3 INCOME & EXPENSE'!M313","v":{"v":0,"d":"0.0"}},{"$f":"'3 INCOME & EXPENSE'!N313","v":{"v":0,"d":"$0.00"}},{"$f":"'3 INCOME & EXPENSE'!O313","v":{"v":0,"d":"$0.00"}},440,{"$f":"'3 INCOME & EXPENSE'!Z313","v":31},31000,31031,0]
[null,null,{"$f":"IF('3 INCOME & EXPENSE'!E314=0,\"\",'3 INCOME & EXPENSE'!E314)","v":""},{"$f":"T('3 INCOME & EXPENSE'!G314)","v":""},{"$f":"'3 INCOME & EXPENSE'!M314","v":{"v":0,"d":"0.0"}},{"$f":"'3 INCOME & EXPENSE'!N314","v":{"v":0,"d":"$0.00"}},{"$f":"'3 INCOME & EXPENSE'!O314","v":{"v":0,"d":"$0.00"}},441,{"$f":"'3 INCOME & EXPENSE'!Z314","v":31},31000,31031,0]
[null,null,{"$f":"IF('3 INCOME & EXPENSE'!E315=0,\"\",'3 INCOME & EXPENSE'!E315)","v":""},{"$f":"T('3 INCOME & EXPENSE'!G315)","v":""},{"$f":"'3 INCOME & EXPENSE'!M315","v":{"v":0,"d":"0.0"}},{"$f":"'3 INCOME & EXPENSE'!N315","v":{"v":0,"d":"$0.00"}},{"$f":"'3 INCOME & EXPENSE'!O315","v":{"v":0,"d":"$0.00"}},442,{"$f":"'3 INCOME & EXPENSE'!Z315","v":31},31000,31031,0]
[null,null,{"$f":"IF('3 INCOME & EXPENSE'!E316=0,\"\",'3 INCOME & EXPENSE'!E316)","v":""},{"$f":"T('3 INCOME & EXPENSE'!G316)","v":""},{"$f":"'3 INCOME & EXPENSE'!M316","v":{"v":0,"d":"0.0"}},{"$f":"'3 INCOME & EXPENSE'!N316","v":{"v":0,"d":"$0.00"}},{"$f":"'3 INCOME & EXPENSE'!O316","v":{"v":0,"d":"$0.00"}},443,{"$f":"'3 INCOME & EXPENSE'!Z316","v":31},31000,31031,0]
[null,null,{"$f":"IF('3 INCOME & EXPENSE'!E317=0,\"\",'3 INCOME & EXPENSE'!E317)","v":""},{"$f":"T('3 INCOME & EXPENSE'!G317)","v":""},{"$f":"'3 INCOME & EXPENSE'!M317","v":{"v":0,"d":"0.0"}},{"$f":"'3 INCOME & EXPENSE'!N317","v":{"v":0,"d":"$0.00"}},{"$f":"'3 INCOME & EXPENSE'!O317","v":{"v":0,"d":"$0.00"}},444,{"$f":"'3 INCOME & EXPENSE'!Z317","v":31},31000,31031,0]
[null,null,{"$f":"IF('3 INCOME & EXPENSE'!E318=0,\"\",'3 INCOME & EXPENSE'!E318)","v":""},{"$f":"T('3 INCOME & EXPENSE'!G318)","v":""},{"$f":"'3 INCOME & EXPENSE'!M318","v":{"v":0,"d":"0.0"}},{"$f":"'3 INCOME & EXPENSE'!N318","v":{"v":0,"d":"$0.00"}},{"$f":"'3 INCOME & EXPENSE'!O318","v":{"v":0,"d":"$0.00"}},445,{"$f":"'3 INCOME & EXPENSE'!Z318","v":31},31000,31031,0]
[null,null,{"$f":"IF('3 INCOME & EXPENSE'!E319=0,\"\",'3 INCOME & EXPENSE'!E319)","v":""},{"$f":"T('3 INCOME & EXPENSE'!G319)","v":""},{"$f":"'3 INCOME & EXPENSE'!M319","v":{"v":0,"d":"0.0"}},{"$f":"'3 INCOME & EXPENSE'!N319","v":{"v":0,"d":"$0.00"}},{"$f":"'3 INCOME & EXPENSE'!O319","v":{"v":0,"d":"$0.00"}},446,{"$f":"'3 INCOME & EXPENSE'!Z319","v":31},31000,31031,0]
[null,null,{"$f":"IF('3 INCOME & EXPENSE'!E320=0,\"\",'3 INCOME & EXPENSE'!E320)","v":""},{"$f":"T('3 INCOME & EXPENSE'!G320)","v":""},{"$f":"'3 INCOME & EXPENSE'!M320","v":{"v":0,"d":"0.0"}},{"$f":"'3 INCOME & EXPENSE'!N320","v":{"v":0,"d":"$0.00"}},{"$f":"'3 INCOME & EXPENSE'!O320","v":{"v":0,"d":"$0.00"}},447,{"$f":"'3 INCOME & EXPENSE'!Z320","v":31},31000,31031,0]
[null,null,{"$f":"IF('3 INCOME & EXPENSE'!E321=0,\"\",'3 INCOME & EXPENSE'!E321)","v":""},{"$f":"T('3 INCOME & EXPENSE'!G321)","v":""},{"$f":"'3 INCOME & EXPENSE'!M321","v":{"v":0,"d":"0.0"}},{"$f":"'3 INCOME & EXPENSE'!N321","v":{"v":0,"d":"$0.00"}},{"$f":"'3 INCOME & EXPENSE'!O321","v":{"v":0,"d":"$0.00"}},448,{"$f":"'3 INCOME & EXPENSE'!Z321","v":31},31000,31031,0]
[null,null,{"$f":"IF('3 INCOME & EXPENSE'!E322=0,\"\",'3 INCOME & EXPENSE'!E322)","v":""},{"$f":"T('3 INCOME & EXPENSE'!G322)","v":""},{"$f":"'3 INCOME & EXPENSE'!M322","v":{"v":0,"d":"0.0"}},{"$f":"'3 INCOME & EXPENSE'!N322","v":{"v":0,"d":"$0.00"}},{"$f":"'3 INCOME & EXPENSE'!O322","v":{"v":0,"d":"$0.00"}},449,{"$f":"'3 INCOME & EXPENSE'!Z322","v":31},31000,{"$f":"I460+J460","v":31031},0]
[null,null,{"$f":"IF('3 INCOME & EXPENSE'!E323=0,\"\",'3 INCOME & EXPENSE'!E323)","v":""},{"$f":"T('3 INCOME & EXPENSE'!G323)","v":""},{"$f":"'3 INCOME & EXPENSE'!M323","v":{"v":0,"d":"0.0"}},{"$f":"'3 INCOME & EXPENSE'!N323","v":{"v":0,"d":"$0.00"}},{"$f":"'3 INCOME & EXPENSE'!O323","v":{"v":0,"d":"$0.00"}},450,{"$f":"'3 INCOME & EXPENSE'!Z323","v":31},31000,31031,0]
[null,null,{"$f":"IF('3 INCOME & EXPENSE'!E324=0,\"\",'3 INCOME & EXPENSE'!E324)","v":""},{"$f":"T('3 INCOME & EXPENSE'!G324)","v":""},{"$f":"'3 INCOME & EXPENSE'!M324","v":{"v":0,"d":"0.0"}},{"$f":"'3 INCOME & EXPENSE'!N324","v":{"v":0,"d":"$0.00"}},{"$f":"'3 INCOME & EXPENSE'!O324","v":{"v":0,"d":"$0.00"}},451,{"$f":"'3 INCOME & EXPENSE'!Z324","v":31},31000,31031,0]
[null,null,{"$f":"IF('3 INCOME & EXPENSE'!E325=0,\"\",'3 INCOME & EXPENSE'!E325)","v":""},{"$f":"T('3 INCOME & EXPENSE'!G325)","v":""},{"$f":"'3 INCOME & EXPENSE'!M325","v":{"v":0,"d":"0.0"}},{"$f":"'3 INCOME & EXPENSE'!N325","v":{"v":0,"d":"$0.00"}},{"$f":"'3 INCOME & EXPENSE'!O325","v":{"v":0,"d":"$0.00"}},452,{"$f":"'3 INCOME & EXPENSE'!Z325","v":31},31000,31031,0]
[null,null,{"$f":"IF('3 INCOME & EXPENSE'!E326=0,\"\",'3 INCOME & EXPENSE'!E326)","v":""},{"$f":"T('3 INCOME & EXPENSE'!G326)","v":""},{"$f":"'3 INCOME & EXPENSE'!M326","v":{"v":0,"d":"0.0"}},{"$f":"'3 INCOME & EXPENSE'!N326","v":{"v":0,"d":"$0.00"}},{"$f":"'3 INCOME & EXPENSE'!O326","v":{"v":0,"d":"$0.00"}},453,{"$f":"'3 INCOME & EXPENSE'!Z326","v":31},31000,31031,0]
[null,null,{"$f":"IF('3 INCOME & EXPENSE'!E327=0,\"\",'3 INCOME & EXPENSE'!E327)","v":""},{"$f":"T('3 INCOME & EXPENSE'!G327)","v":""},{"$f":"'3 INCOME & EXPENSE'!M327","v":{"v":0,"d":"0.0"}},{"$f":"'3 INCOME & EXPENSE'!N327","v":{"v":0,"d":"$0.00"}},{"$f":"'3 INCOME & EXPENSE'!O327","v":{"v":0,"d":"$0.00"}},454,{"$f":"'3 INCOME & EXPENSE'!Z327","v":31},31000,31031,0]
[null,null,{"$f":"IF('3 INCOME & EXPENSE'!E328=0,\"\",'3 INCOME & EXPENSE'!E328)","v":""},{"$f":"T('3 INCOME & EXPENSE'!G328)","v":""},{"$f":"'3 INCOME & EXPENSE'!M328","v":{"v":0,"d":"0.0"}},{"$f":"'3 INCOME & EXPENSE'!N328","v":{"v":0,"d":"$0.00"}},{"$f":"'3 INCOME & EXPENSE'!O328","v":{"v":0,"d":"$0.00"}},455,{"$f":"'3 INCOME & EXPENSE'!Z328","v":31},31000,31031,0]
[null,null,{"$f":"IF('3 INCOME & EXPENSE'!E329=0,\"\",'3 INCOME & EXPENSE'!E329)","v":""},{"$f":"T('3 INCOME & EXPENSE'!G329)","v":""},{"$f":"'3 INCOME & EXPENSE'!M329","v":{"v":0,"d":"0.0"}},{"$f":"'3 INCOME & EXPENSE'!N329","v":{"v":0,"d":"$0.00"}},{"$f":"'3 INCOME & EXPENSE'!O329","v":{"v":0,"d":"$0.00"}},456,{"$f":"'3 INCOME & EXPENSE'!Z329","v":31},31000,31031,0]
[null,null,{"$f":"IF('3 INCOME & EXPENSE'!E330=0,\"\",'3 INCOME & EXPENSE'!E330)","v":""},{"$f":"T('3 INCOME & EXPENSE'!G330)","v":""},{"$f":"'3 INCOME & EXPENSE'!M330","v":{"v":0,"d":"0.0"}},{"$f":"'3 INCOME & EXPENSE'!N330","v":{"v":0,"d":"$0.00"}},{"$f":"'3 INCOME & EXPENSE'!O330","v":{"v":0,"d":"$0.00"}},457,{"$f":"'3 INCOME & EXPENSE'!Z330","v":31},31000,31031,0]
[null,null,{"$f":"IF('3 INCOME & EXPENSE'!E331=0,\"\",'3 INCOME & EXPENSE'!E331)","v":""},{"$f":"T('3 INCOME & EXPENSE'!G331)","v":""},{"$f":"'3 INCOME & EXPENSE'!M331","v":{"v":0,"d":"0.0"}},{"$f":"'3 INCOME & EXPENSE'!N331","v":{"v":0,"d":"$0.00"}},{"$f":"'3 INCOME & EXPENSE'!O331","v":{"v":0,"d":"$0.00"}},458,{"$f":"'3 INCOME & EXPENSE'!Z331","v":31},31000,31031,0]
[null,null,{"$f":"IF('3 INCOME & EXPENSE'!E332=0,\"\",'3 INCOME & EXPENSE'!E332)","v":""},{"$f":"T('3 INCOME & EXPENSE'!G332)","v":""},{"$f":"'3 INCOME & EXPENSE'!M332","v":{"v":0,"d":"0.0"}},{"$f":"'3 INCOME & EXPENSE'!N332","v":{"v":0,"d":"$0.00"}},{"$f":"'3 INCOME & EXPENSE'!O332","v":{"v":0,"d":"$0.00"}},459,{"$f":"'3 INCOME & EXPENSE'!Z332","v":31},31000,31031,0]
[null,null,{"$f":"IF('3 INCOME & EXPENSE'!E333=0,\"\",'3 INCOME & EXPENSE'!E333)","v":""},{"$f":"T('3 INCOME & EXPENSE'!G333)","v":""},{"$f":"'3 INCOME & EXPENSE'!M333","v":{"v":0,"d":"0.0"}},{"$f":"'3 INCOME & EXPENSE'!N333","v":{"v":0,"d":"$0.00"}},{"$f":"'3 INCOME & EXPENSE'!O333","v":{"v":0,"d":"$0.00"}},460,{"$f":"'3 INCOME & EXPENSE'!Z333","v":31},31000,31031,0]
[null,null,{"$f":"IF('3 INCOME & EXPENSE'!E334=0,\"\",'3 INCOME & EXPENSE'!E334)","v":""},{"$f":"T('3 INCOME & EXPENSE'!G334)","v":""},{"$f":"'3 INCOME & EXPENSE'!M334","v":{"v":0,"d":"0.0"}},{"$f":"'3 INCOME & EXPENSE'!N334","v":{"v":0,"d":"$0.00"}},{"$f":"'3 INCOME & EXPENSE'!O334","v":{"v":0,"d":"$0.00"}},461,{"$f":"'3 INCOME & EXPENSE'!Z334","v":31},{"$f":"VLOOKUP(I472,$J$939:$K$969,2)","v":31000},31031,{"$f":"K472*E472","v":0}]
[null,null,{"$f":"IF('3 INCOME & EXPENSE'!E335=0,\"\",'3 INCOME & EXPENSE'!E335)","v":""},{"$f":"T('3 INCOME & EXPENSE'!G335)","v":""},{"$f":"'3 INCOME & EXPENSE'!M335","v":{"v":0,"d":"0.0"}},{"$f":"'3 INCOME & EXPENSE'!N335","v":{"v":0,"d":"$0.00"}},{"$f":"'3 INCOME & EXPENSE'!O335","v":{"v":0,"d":"$0.00"}},462,{"$f":"'3 INCOME & EXPENSE'!Z335","v":31},31000,31031,0]
[null,null,{"$f":"IF('3 INCOME & EXPENSE'!E336=0,\"\",'3 INCOME & EXPENSE'!E336)","v":""},{"$f":"T('3 INCOME & EXPENSE'!G336)","v":""},{"$f":"'3 INCOME & EXPENSE'!M336","v":{"v":0,"d":"0.0"}},{"$f":"'3 INCOME & EXPENSE'!N336","v":{"v":0,"d":"$0.00"}},{"$f":"'3 INCOME & EXPENSE'!O336","v":{"v":0,"d":"$0.00"}},463,{"$f":"'3 INCOME & EXPENSE'!Z336","v":31},31000,31031,0]
[null,null,{"$f":"IF('3 INCOME & EXPENSE'!E337=0,\"\",'3 INCOME & EXPENSE'!E337)","v":""},{"$f":"T('3 INCOME & EXPENSE'!G337)","v":""},{"$f":"'3 INCOME & EXPENSE'!M337","v":{"v":0,"d":"0.0"}},{"$f":"'3 INCOME & EXPENSE'!N337","v":{"v":0,"d":"$0.00"}},{"$f":"'3 INCOME & EXPENSE'!O337","v":{"v":0,"d":"$0.00"}},464,{"$f":"'3 INCOME & EXPENSE'!Z337","v":31},31000,31031,0]
[null,null,{"$f":"IF('3 INCOME & EXPENSE'!E338=0,\"\",'3 INCOME & EXPENSE'!E338)","v":""},{"$f":"T('3 INCOME & EXPENSE'!G338)","v":""},{"$f":"'3 INCOME & EXPENSE'!M338","v":{"v":0,"d":"0.0"}},{"$f":"'3 INCOME & EXPENSE'!N338","v":{"v":0,"d":"$0.00"}},{"$f":"'3 INCOME & EXPENSE'!O338","v":{"v":0,"d":"$0.00"}},465,{"$f":"'3 INCOME & EXPENSE'!Z338","v":31},31000,31031,0]
[null,null,{"$f":"IF('3 INCOME & EXPENSE'!E339=0,\"\",'3 INCOME & EXPENSE'!E339)","v":""},{"$f":"T('3 INCOME & EXPENSE'!G339)","v":""},{"$f":"'3 INCOME & EXPENSE'!M339","v":{"v":0,"d":"0.0"}},{"$f":"'3 INCOME & EXPENSE'!N339","v":{"v":0,"d":"$0.00"}},{"$f":"'3 INCOME & EXPENSE'!O339","v":{"v":0,"d":"$0.00"}},466,{"$f":"'3 INCOME & EXPENSE'!Z339","v":31},31000,31031,0]
[null,null,{"$f":"IF('3 INCOME & EXPENSE'!E340=0,\"\",'3 INCOME & EXPENSE'!E340)","v":""},{"$f":"T('3 INCOME & EXPENSE'!G340)","v":""},{"$f":"'3 INCOME & EXPENSE'!M340","v":{"v":0,"d":"0.0"}},{"$f":"'3 INCOME & EXPENSE'!N340","v":{"v":0,"d":"$0.00"}},{"$f":"'3 INCOME & EXPENSE'!O340","v":{"v":0,"d":"$0.00"}},467,{"$f":"'3 INCOME & EXPENSE'!Z340","v":31},31000,31031,0]
[null,null,{"$f":"IF('3 INCOME & EXPENSE'!E341=0,\"\",'3 INCOME & EXPENSE'!E341)","v":""},{"$f":"T('3 INCOME & EXPENSE'!G341)","v":""},{"$f":"'3 INCOME & EXPENSE'!M341","v":{"v":0,"d":"0.0"}},{"$f":"'3 INCOME & EXPENSE'!N341","v":{"v":0,"d":"$0.00"}},{"$f":"'3 INCOME & EXPENSE'!O341","v":{"v":0,"d":"$0.00"}},468,{"$f":"'3 INCOME & EXPENSE'!Z341","v":31},31000,31031,0]
[null,null,{"$f":"IF('3 INCOME & EXPENSE'!E342=0,\"\",'3 INCOME & EXPENSE'!E342)","v":""},{"$f":"T('3 INCOME & EXPENSE'!G342)","v":""},{"$f":"'3 INCOME & EXPENSE'!M342","v":{"v":0,"d":"0.0"}},{"$f":"'3 INCOME & EXPENSE'!N342","v":{"v":0,"d":"$0.00"}},{"$f":"'3 INCOME & EXPENSE'!O342","v":{"v":0,"d":"$0.00"}},469,{"$f":"'3 INCOME & EXPENSE'!Z342","v":31},31000,31031,0]
[null,null,{"$f":"IF('3 INCOME & EXPENSE'!E343=0,\"\",'3 INCOME & EXPENSE'!E343)","v":""},{"$f":"T('3 INCOME & EXPENSE'!G343)","v":""},{"$f":"'3 INCOME & EXPENSE'!M343","v":{"v":0,"d":"0.0"}},{"$f":"'3 INCOME & EXPENSE'!N343","v":{"v":0,"d":"$0.00"}},{"$f":"'3 INCOME & EXPENSE'!O343","v":{"v":0,"d":"$0.00"}},470,{"$f":"'3 INCOME & EXPENSE'!Z343","v":31},31000,31031,0]
[null,null,{"$f":"IF('3 INCOME & EXPENSE'!E344=0,\"\",'3 INCOME & EXPENSE'!E344)","v":""},{"$f":"T('3 INCOME & EXPENSE'!G344)","v":""},{"$f":"'3 INCOME & EXPENSE'!M344","v":{"v":0,"d":"0.0"}},{"$f":"'3 INCOME & EXPENSE'!N344","v":{"v":0,"d":"$0.00"}},{"$f":"'3 INCOME & EXPENSE'!O344","v":{"v":0,"d":"$0.00"}},471,{"$f":"'3 INCOME & EXPENSE'!Z344","v":31},31000,31031,0]
[null,null,{"$f":"IF('3 INCOME & EXPENSE'!E345=0,\"\",'3 INCOME & EXPENSE'!E345)","v":""},{"$f":"T('3 INCOME & EXPENSE'!G345)","v":""},{"$f":"'3 INCOME & EXPENSE'!M345","v":{"v":0,"d":"0.0"}},{"$f":"'3 INCOME & EXPENSE'!N345","v":{"v":0,"d":"$0.00"}},{"$f":"'3 INCOME & EXPENSE'!O345","v":{"v":0,"d":"$0.00"}},472,{"$f":"'3 INCOME & EXPENSE'!Z345","v":31},31000,31031,0]
[null,null,{"$f":"IF('3 INCOME & EXPENSE'!E346=0,\"\",'3 INCOME & EXPENSE'!E346)","v":""},{"$f":"T('3 INCOME & EXPENSE'!G346)","v":""},{"$f":"'3 INCOME & EXPENSE'!M346","v":{"v":0,"d":"0.0"}},{"$f":"'3 INCOME & EXPENSE'!N346","v":{"v":0,"d":"$0.00"}},{"$f":"'3 INCOME & EXPENSE'!O346","v":{"v":0,"d":"$0.00"}},473,{"$f":"'3 INCOME & EXPENSE'!Z346","v":31},31000,31031,0]
[null,null,{"$f":"IF('3 INCOME & EXPENSE'!E347=0,\"\",'3 INCOME & EXPENSE'!E347)","v":""},{"$f":"T('3 INCOME & EXPENSE'!G347)","v":""},{"$f":"'3 INCOME & EXPENSE'!M347","v":{"v":0,"d":"0.0"}},{"$f":"'3 INCOME & EXPENSE'!N347","v":{"v":0,"d":"$0.00"}},{"$f":"'3 INCOME & EXPENSE'!O347","v":{"v":0,"d":"$0.00"}},474,{"$f":"'3 INCOME & EXPENSE'!Z347","v":31},31000,31031,0]
[null,null,{"$f":"IF('3 INCOME & EXPENSE'!E348=0,\"\",'3 INCOME & EXPENSE'!E348)","v":""},{"$f":"T('3 INCOME & EXPENSE'!G348)","v":""},{"$f":"'3 INCOME & EXPENSE'!M348","v":{"v":0,"d":"0.0"}},{"$f":"'3 INCOME & EXPENSE'!N348","v":{"v":0,"d":"$0.00"}},{"$f":"'3 INCOME & EXPENSE'!O348","v":{"v":0,"d":"$0.00"}},475,{"$f":"'3 INCOME & EXPENSE'!Z348","v":31},31000,31031,0]
[null,null,{"$f":"IF('3 INCOME & EXPENSE'!E349=0,\"\",'3 INCOME & EXPENSE'!E349)","v":""},{"$f":"T('3 INCOME & EXPENSE'!G349)","v":""},{"$f":"'3 INCOME & EXPENSE'!M349","v":{"v":0,"d":"0.0"}},{"$f":"'3 INCOME & EXPENSE'!N349","v":{"v":0,"d":"$0.00"}},{"$f":"'3 INCOME & EXPENSE'!O349","v":{"v":0,"d":"$0.00"}},476,{"$f":"'3 INCOME & EXPENSE'!Z349","v":31},31000,31031,0]
[null,null,{"$f":"IF('3 INCOME & EXPENSE'!E350=0,\"\",'3 INCOME & EXPENSE'!E350)","v":""},{"$f":"T('3 INCOME & EXPENSE'!G350)","v":""},{"$f":"'3 INCOME & EXPENSE'!M350","v":{"v":0,"d":"0.0"}},{"$f":"'3 INCOME & EXPENSE'!N350","v":{"v":0,"d":"$0.00"}},{"$f":"'3 INCOME & EXPENSE'!O350","v":{"v":0,"d":"$0.00"}},477,{"$f":"'3 INCOME & EXPENSE'!Z350","v":31},31000,31031,0]
[null,null,{"$f":"IF('3 INCOME & EXPENSE'!E351=0,\"\",'3 INCOME & EXPENSE'!E351)","v":""},{"$f":"T('3 INCOME & EXPENSE'!G351)","v":""},{"$f":"'3 INCOME & EXPENSE'!M351","v":{"v":0,"d":"0.0"}},{"$f":"'3 INCOME & EXPENSE'!N351","v":{"v":0,"d":"$0.00"}},{"$f":"'3 INCOME & EXPENSE'!O351","v":{"v":0,"d":"$0.00"}},478,{"$f":"'3 INCOME & EXPENSE'!Z351","v":31},31000,31031,0]
[null,null,{"$f":"IF('3 INCOME & EXPENSE'!E352=0,\"\",'3 INCOME & EXPENSE'!E352)","v":""},{"$f":"T('3 INCOME & EXPENSE'!G352)","v":""},{"$f":"'3 INCOME & EXPENSE'!M352","v":{"v":0,"d":"0.0"}},{"$f":"'3 INCOME & EXPENSE'!N352","v":{"v":0,"d":"$0.00"}},{"$f":"'3 INCOME & EXPENSE'!O352","v":{"v":0,"d":"$0.00"}},479,{"$f":"'3 INCOME & EXPENSE'!Z352","v":31},31000,31031,0]
[null,null,{"$f":"IF('3 INCOME & EXPENSE'!E353=0,\"\",'3 INCOME & EXPENSE'!E353)","v":""},{"$f":"T('3 INCOME & EXPENSE'!G353)","v":""},{"$f":"'3 INCOME & EXPENSE'!M353","v":{"v":0,"d":"0.0"}},{"$f":"'3 INCOME & EXPENSE'!N353","v":{"v":0,"d":"$0.00"}},{"$f":"'3 INCOME & EXPENSE'!O353","v":{"v":0,"d":"$0.00"}},480,{"$f":"'3 INCOME & EXPENSE'!Z353","v":31},31000,31031,0]
[null,null,{"$f":"IF('3 INCOME & EXPENSE'!E354=0,\"\",'3 INCOME & EXPENSE'!E354)","v":""},{"$f":"T('3 INCOME & EXPENSE'!G354)","v":""},{"$f":"'3 INCOME & EXPENSE'!M354","v":{"v":0,"d":"0.0"}},{"$f":"'3 INCOME & EXPENSE'!N354","v":{"v":0,"d":"$0.00"}},{"$f":"'3 INCOME & EXPENSE'!O354","v":{"v":0,"d":"$0.00"}},481,{"$f":"'3 INCOME & EXPENSE'!Z354","v":31},31000,31031,0]
[null,null,{"$f":"IF('3 INCOME & EXPENSE'!E355=0,\"\",'3 INCOME & EXPENSE'!E355)","v":""},{"$f":"T('3 INCOME & EXPENSE'!G355)","v":""},{"$f":"'3 INCOME & EXPENSE'!M355","v":{"v":0,"d":"0.0"}},{"$f":"'3 INCOME & EXPENSE'!N355","v":{"v":0,"d":"$0.00"}},{"$f":"'3 INCOME & EXPENSE'!O355","v":{"v":0,"d":"$0.00"}},482,{"$f":"'3 INCOME & EXPENSE'!Z355","v":31},31000,31031,0]
[null,null,{"$f":"IF('3 INCOME & EXPENSE'!E356=0,\"\",'3 INCOME & EXPENSE'!E356)","v":""},{"$f":"T('3 INCOME & EXPENSE'!G356)","v":""},{"$f":"'3 INCOME & EXPENSE'!M356","v":{"v":0,"d":"0.0"}},{"$f":"'3 INCOME & EXPENSE'!N356","v":{"v":0,"d":"$0.00"}},{"$f":"'3 INCOME & EXPENSE'!O356","v":{"v":0,"d":"$0.00"}},483,{"$f":"'3 INCOME & EXPENSE'!Z356","v":31},31000,31031,0]
[null,null,{"$f":"IF('3 INCOME & EXPENSE'!E357=0,\"\",'3 INCOME & EXPENSE'!E357)","v":""},{"$f":"T('3 INCOME & EXPENSE'!G357)","v":""},{"$f":"'3 INCOME & EXPENSE'!M357","v":{"v":0,"d":"0.0"}},{"$f":"'3 INCOME & EXPENSE'!N357","v":{"v":0,"d":"$0.00"}},{"$f":"'3 INCOME & EXPENSE'!O357","v":{"v":0,"d":"$0.00"}},484,{"$f":"'3 INCOME & EXPENSE'!Z357","v":31},31000,31031,0]
[null,null,{"$f":"IF('3 INCOME & EXPENSE'!E358=0,\"\",'3 INCOME & EXPENSE'!E358)","v":""},{"$f":"T('3 INCOME & EXPENSE'!G358)","v":""},{"$f":"'3 INCOME & EXPENSE'!M358","v":{"v":0,"d":"0.0"}},{"$f":"'3 INCOME & EXPENSE'!N358","v":{"v":0,"d":"$0.00"}},{"$f":"'3 INCOME & EXPENSE'!O358","v":{"v":0,"d":"$0.00"}},485,{"$f":"'3 INCOME & EXPENSE'!Z358","v":31},31000,31031,0]
[null,null,{"$f":"IF('3 INCOME & EXPENSE'!E359=0,\"\",'3 INCOME & EXPENSE'!E359)","v":""},{"$f":"T('3 INCOME & EXPENSE'!G359)","v":""},{"$f":"'3 INCOME & EXPENSE'!M359","v":{"v":0,"d":"0.0"}},{"$f":"'3 INCOME & EXPENSE'!N359","v":{"v":0,"d":"$0.00"}},{"$f":"'3 INCOME & EXPENSE'!O359","v":{"v":0,"d":"$0.00"}},486,{"$f":"'3 INCOME & EXPENSE'!Z359","v":31},31000,31031,0]
[null,null,{"$f":"IF('3 INCOME & EXPENSE'!E360=0,\"\",'3 INCOME & EXPENSE'!E360)","v":""},{"$f":"T('3 INCOME & EXPENSE'!G360)","v":""},{"$f":"'3 INCOME & EXPENSE'!M360","v":{"v":0,"d":"0.0"}},{"$f":"'3 INCOME & EXPENSE'!N360","v":{"v":0,"d":"$0.00"}},{"$f":"'3 INCOME & EXPENSE'!O360","v":{"v":0,"d":"$0.00"}},487,{"$f":"'3 INCOME & EXPENSE'!Z360","v":31},31000,31031,0]
[null,null,{"$f":"IF('3 INCOME & EXPENSE'!E361=0,\"\",'3 INCOME & EXPENSE'!E361)","v":""},{"$f":"T('3 INCOME & EXPENSE'!G361)","v":""},{"$f":"'3 INCOME & EXPENSE'!M361","v":{"v":0,"d":"0.0"}},{"$f":"'3 INCOME & EXPENSE'!N361","v":{"v":0,"d":"$0.00"}},{"$f":"'3 INCOME & EXPENSE'!O361","v":{"v":0,"d":"$0.00"}},488,{"$f":"'3 INCOME & EXPENSE'!Z361","v":31},31000,31031,0]
[null,null,{"$f":"IF('3 INCOME & EXPENSE'!E362=0,\"\",'3 INCOME & EXPENSE'!E362)","v":""},{"$f":"T('3 INCOME & EXPENSE'!G362)","v":""},{"$f":"'3 INCOME & EXPENSE'!M362","v":{"v":0,"d":"0.0"}},{"$f":"'3 INCOME & EXPENSE'!N362","v":{"v":0,"d":"$0.00"}},{"$f":"'3 INCOME & EXPENSE'!O362","v":{"v":0,"d":"$0.00"}},489,{"$f":"'3 INCOME & EXPENSE'!Z362","v":31},31000,31031,0]
[null,null,{"$f":"IF('3 INCOME & EXPENSE'!E363=0,\"\",'3 INCOME & EXPENSE'!E363)","v":""},{"$f":"T('3 INCOME & EXPENSE'!G363)","v":""},{"$f":"'3 INCOME & EXPENSE'!M363","v":{"v":0,"d":"0.0"}},{"$f":"'3 INCOME & EXPENSE'!N363","v":{"v":0,"d":"$0.00"}},{"$f":"'3 INCOME & EXPENSE'!O363","v":{"v":0,"d":"$0.00"}},490,{"$f":"'3 INCOME & EXPENSE'!Z363","v":31},31000,31031,0]
[null,null,{"$f":"IF('3 INCOME & EXPENSE'!E364=0,\"\",'3 INCOME & EXPENSE'!E364)","v":""},{"$f":"T('3 INCOME & EXPENSE'!G364)","v":""},{"$f":"'3 INCOME & EXPENSE'!M364","v":{"v":0,"d":"0.0"}},{"$f":"'3 INCOME & EXPENSE'!N364","v":{"v":0,"d":"$0.00"}},{"$f":"'3 INCOME & EXPENSE'!O364","v":{"v":0,"d":"$0.00"}},491,{"$f":"'3 INCOME & EXPENSE'!Z364","v":31},31000,31031,0]
[null,null,{"$f":"IF('3 INCOME & EXPENSE'!E365=0,\"\",'3 INCOME & EXPENSE'!E365)","v":""},{"$f":"T('3 INCOME & EXPENSE'!G365)","v":""},{"$f":"'3 INCOME & EXPENSE'!M365","v":{"v":0,"d":"0.0"}},{"$f":"'3 INCOME & EXPENSE'!N365","v":{"v":0,"d":"$0.00"}},{"$f":"'3 INCOME & EXPENSE'!O365","v":{"v":0,"d":"$0.00"}},492,{"$f":"'3 INCOME & EXPENSE'!Z365","v":31},31000,31031,0]
[null,null,{"$f":"IF('3 INCOME & EXPENSE'!E366=0,\"\",'3 INCOME & EXPENSE'!E366)","v":""},{"$f":"T('3 INCOME & EXPENSE'!G366)","v":""},{"$f":"'3 INCOME & EXPENSE'!M366","v":{"v":0,"d":"0.0"}},{"$f":"'3 INCOME & EXPENSE'!N366","v":{"v":0,"d":"$0.00"}},{"$f":"'3 INCOME & EXPENSE'!O366","v":{"v":0,"d":"$0.00"}},493,{"$f":"'3 INCOME & EXPENSE'!Z366","v":31},31000,31031,0]
[null,null,{"$f":"IF('3 INCOME & EXPENSE'!E367=0,\"\",'3 INCOME & EXPENSE'!E367)","v":""},{"$f":"T('3 INCOME & EXPENSE'!G367)","v":""},{"$f":"'3 INCOME & EXPENSE'!M367","v":{"v":0,"d":"0.0"}},{"$f":"'3 INCOME & EXPENSE'!N367","v":{"v":0,"d":"$0.00"}},{"$f":"'3 INCOME & EXPENSE'!O367","v":{"v":0,"d":"$0.00"}},494,{"$f":"'3 INCOME & EXPENSE'!Z367","v":31},31000,31031,0]
[null,null,{"$f":"IF('3 INCOME & EXPENSE'!E368=0,\"\",'3 INCOME & EXPENSE'!E368)","v":""},{"$f":"T('3 INCOME & EXPENSE'!G368)","v":""},{"$f":"'3 INCOME & EXPENSE'!M368","v":{"v":0,"d":"0.0"}},{"$f":"'3 INCOME & EXPENSE'!N368","v":{"v":0,"d":"$0.00"}},{"$f":"'3 INCOME & EXPENSE'!O368","v":{"v":0,"d":"$0.00"}},495,{"$f":"'3 INCOME & EXPENSE'!Z368","v":31},31000,31031,0]
[null,null,{"$f":"IF('3 INCOME & EXPENSE'!E369=0,\"\",'3 INCOME & EXPENSE'!E369)","v":""},{"$f":"T('3 INCOME & EXPENSE'!G369)","v":""},{"$f":"'3 INCOME & EXPENSE'!M369","v":{"v":0,"d":"0.0"}},{"$f":"'3 INCOME & EXPENSE'!N369","v":{"v":0,"d":"$0.00"}},{"$f":"'3 INCOME & EXPENSE'!O369","v":{"v":0,"d":"$0.00"}},496,{"$f":"'3 INCOME & EXPENSE'!Z369","v":31},31000,31031,0]
[null,null,{"$f":"IF('3 INCOME & EXPENSE'!E370=0,\"\",'3 INCOME & EXPENSE'!E370)","v":""},{"$f":"T('3 INCOME & EXPENSE'!G370)","v":""},{"$f":"'3 INCOME & EXPENSE'!M370","v":{"v":0,"d":"0.0"}},{"$f":"'3 INCOME & EXPENSE'!N370","v":{"v":0,"d":"$0.00"}},{"$f":"'3 INCOME & EXPENSE'!O370","v":{"v":0,"d":"$0.00"}},497,{"$f":"'3 INCOME & EXPENSE'!Z370","v":31},31000,31031,0]
[null,null,{"$f":"IF('3 INCOME & EXPENSE'!E371=0,\"\",'3 INCOME & EXPENSE'!E371)","v":""},{"$f":"T('3 INCOME & EXPENSE'!G371)","v":""},{"$f":"'3 INCOME & EXPENSE'!M371","v":{"v":0,"d":"0.0"}},{"$f":"'3 INCOME & EXPENSE'!N371","v":{"v":0,"d":"$0.00"}},{"$f":"'3 INCOME & EXPENSE'!O371","v":{"v":0,"d":"$0.00"}},498,{"$f":"'3 INCOME & EXPENSE'!Z371","v":31},31000,31031,0]
[null,null,{"$f":"IF('3 INCOME & EXPENSE'!E372=0,\"\",'3 INCOME & EXPENSE'!E372)","v":""},{"$f":"T('3 INCOME & EXPENSE'!G372)","v":""},{"$f":"'3 INCOME & EXPENSE'!M372","v":{"v":0,"d":"0.0"}},{"$f":"'3 INCOME & EXPENSE'!N372","v":{"v":0,"d":"$0.00"}},{"$f":"'3 INCOME & EXPENSE'!O372","v":{"v":0,"d":"$0.00"}},499,{"$f":"'3 INCOME & EXPENSE'!Z372","v":31},31000,31031,0]
[null,null,{"$f":"IF('3 INCOME & EXPENSE'!E373=0,\"\",'3 INCOME & EXPENSE'!E373)","v":""},{"$f":"T('3 INCOME & EXPENSE'!G373)","v":""},{"$f":"'3 INCOME & EXPENSE'!M373","v":{"v":0,"d":"0.0"}},{"$f":"'3 INCOME & EXPENSE'!N373","v":{"v":0,"d":"$0.00"}},{"$f":"'3 INCOME & EXPENSE'!O373","v":{"v":0,"d":"$0.00"}},500,{"$f":"'3 INCOME & EXPENSE'!Z373","v":31},31000,31031,0]
[null,null,{"$f":"IF('3 INCOME & EXPENSE'!E374=0,\"\",'3 INCOME & EXPENSE'!E374)","v":""},{"$f":"T('3 INCOME & EXPENSE'!G374)","v":""},{"$f":"'3 INCOME & EXPENSE'!M374","v":{"v":0,"d":"0.0"}},{"$f":"'3 INCOME & EXPENSE'!N374","v":{"v":0,"d":"$0.00"}},{"$f":"'3 INCOME & EXPENSE'!O374","v":{"v":0,"d":"$0.00"}},501,{"$f":"'3 INCOME & EXPENSE'!Z374","v":31},31000,31031,0]
[null,null,{"$f":"IF('3 INCOME & EXPENSE'!E375=0,\"\",'3 INCOME & EXPENSE'!E375)","v":""},{"$f":"T('3 INCOME & EXPENSE'!G375)","v":""},{"$f":"'3 INCOME & EXPENSE'!M375","v":{"v":0,"d":"0.0"}},{"$f":"'3 INCOME & EXPENSE'!N375","v":{"v":0,"d":"$0.00"}},{"$f":"'3 INCOME & EXPENSE'!O375","v":{"v":0,"d":"$0.00"}},502,{"$f":"'3 INCOME & EXPENSE'!Z375","v":31},31000,31031,0]
[null,null,{"$f":"IF('3 INCOME & EXPENSE'!E376=0,\"\",'3 INCOME & EXPENSE'!E376)","v":""},{"$f":"T('3 INCOME & EXPENSE'!G376)","v":""},{"$f":"'3 INCOME & EXPENSE'!M376","v":{"v":0,"d":"0.0"}},{"$f":"'3 INCOME & EXPENSE'!N376","v":{"v":0,"d":"$0.00"}},{"$f":"'3 INCOME & EXPENSE'!O376","v":{"v":0,"d":"$0.00"}},503,{"$f":"'3 INCOME & EXPENSE'!Z376","v":31},31000,31031,0]
[null,null,{"$f":"IF('3 INCOME & EXPENSE'!E377=0,\"\",'3 INCOME & EXPENSE'!E377)","v":""},{"$f":"T('3 INCOME & EXPENSE'!G377)","v":""},{"$f":"'3 INCOME & EXPENSE'!M377","v":{"v":0,"d":"0.0"}},{"$f":"'3 INCOME & EXPENSE'!N377","v":{"v":0,"d":"$0.00"}},{"$f":"'3 INCOME & EXPENSE'!O377","v":{"v":0,"d":"$0.00"}},504,{"$f":"'3 INCOME & EXPENSE'!Z377","v":31},31000,31031,0]
[null,null,{"$f":"IF('3 INCOME & EXPENSE'!E378=0,\"\",'3 INCOME & EXPENSE'!E378)","v":""},{"$f":"T('3 INCOME & EXPENSE'!G378)","v":""},{"$f":"'3 INCOME & EXPENSE'!M378","v":{"v":0,"d":"0.0"}},{"$f":"'3 INCOME & EXPENSE'!N378","v":{"v":0,"d":"$0.00"}},{"$f":"'3 INCOME & EXPENSE'!O378","v":{"v":0,"d":"$0.00"}},505,{"$f":"'3 INCOME & EXPENSE'!Z378","v":31},31000,31031,0]
[null,null,{"$f":"IF('3 INCOME & EXPENSE'!E379=0,\"\",'3 INCOME & EXPENSE'!E379)","v":""},{"$f":"T('3 INCOME & EXPENSE'!G379)","v":""},{"$f":"'3 INCOME & EXPENSE'!M379","v":{"v":0,"d":"0.0"}},{"$f":"'3 INCOME & EXPENSE'!N379","v":{"v":0,"d":"$0.00"}},{"$f":"'3 INCOME & EXPENSE'!O379","v":{"v":0,"d":"$0.00"}},506,{"$f":"'3 INCOME & EXPENSE'!Z379","v":31},31000,31031,0]
[null,null,{"$f":"IF('3 INCOME & EXPENSE'!E380=0,\"\",'3 INCOME & EXPENSE'!E380)","v":""},{"$f":"T('3 INCOME & EXPENSE'!G380)","v":""},{"$f":"'3 INCOME & EXPENSE'!M380","v":{"v":0,"d":"0.0"}},{"$f":"'3 INCOME & EXPENSE'!N380","v":{"v":0,"d":"$0.00"}},{"$f":"'3 INCOME & EXPENSE'!O380","v":{"v":0,"d":"$0.00"}},507,{"$f":"'3 INCOME & EXPENSE'!Z380","v":31},31000,31031,0]
[null,null,{"$f":"IF('3 INCOME & EXPENSE'!E381=0,\"\",'3 INCOME & EXPENSE'!E381)","v":""},{"$f":"T('3 INCOME & EXPENSE'!G381)","v":""},{"$f":"'3 INCOME & EXPENSE'!M381","v":{"v":0,"d":"0.0"}},{"$f":"'3 INCOME & EXPENSE'!N381","v":{"v":0,"d":"$0.00"}},{"$f":"'3 INCOME & EXPENSE'!O381","v":{"v":0,"d":"$0.00"}},508,{"$f":"'3 INCOME & EXPENSE'!Z381","v":31},31000,31031,0]
[null,null,{"$f":"IF('3 INCOME & EXPENSE'!E382=0,\"\",'3 INCOME & EXPENSE'!E382)","v":""},{"$f":"T('3 INCOME & EXPENSE'!G382)","v":""},{"$f":"'3 INCOME & EXPENSE'!M382","v":{"v":0,"d":"0.0"}},{"$f":"'3 INCOME & EXPENSE'!N382","v":{"v":0,"d":"$0.00"}},{"$f":"'3 INCOME & EXPENSE'!O382","v":{"v":0,"d":"$0.00"}},509,{"$f":"'3 INCOME & EXPENSE'!Z382","v":31},31000,31031,0]
[null,null,{"$f":"IF('3 INCOME & EXPENSE'!E383=0,\"\",'3 INCOME & EXPENSE'!E383)","v":""},{"$f":"T('3 INCOME & EXPENSE'!G383)","v":""},{"$f":"'3 INCOME & EXPENSE'!M383","v":{"v":0,"d":"0.0"}},{"$f":"'3 INCOME & EXPENSE'!N383","v":{"v":0,"d":"$0.00"}},{"$f":"'3 INCOME & EXPENSE'!O383","v":{"v":0,"d":"$0.00"}},510,{"$f":"'3 INCOME & EXPENSE'!Z383","v":31},31000,31031,0]
[null,null,{"$f":"IF('3 INCOME & EXPENSE'!E384=0,\"\",'3 INCOME & EXPENSE'!E384)","v":""},{"$f":"T('3 INCOME & EXPENSE'!G384)","v":""},{"$f":"'3 INCOME & EXPENSE'!M384","v":{"v":0,"d":"0.0"}},{"$f":"'3 INCOME & EXPENSE'!N384","v":{"v":0,"d":"$0.00"}},{"$f":"'3 INCOME & EXPENSE'!O384","v":{"v":0,"d":"$0.00"}},511,{"$f":"'3 INCOME & EXPENSE'!Z384","v":31},31000,31031,0]
[null,null,{"$f":"IF('3 INCOME & EXPENSE'!E385=0,\"\",'3 INCOME & EXPENSE'!E385)","v":""},{"$f":"T('3 INCOME & EXPENSE'!G385)","v":""},{"$f":"'3 INCOME & EXPENSE'!M385","v":{"v":0,"d":"0.0"}},{"$f":"'3 INCOME & EXPENSE'!N385","v":{"v":0,"d":"$0.00"}},{"$f":"'3 INCOME & EXPENSE'!O385","v":{"v":0,"d":"$0.00"}},512,{"$f":"'3 INCOME & EXPENSE'!Z385","v":31},31000,31031,0]
[null,null,{"$f":"IF('3 INCOME & EXPENSE'!E386=0,\"\",'3 INCOME & EXPENSE'!E386)","v":""},{"$f":"T('3 INCOME & EXPENSE'!G386)","v":""},{"$f":"'3 INCOME & EXPENSE'!M386","v":{"v":0,"d":"0.0"}},{"$f":"'3 INCOME & EXPENSE'!N386","v":{"v":0,"d":"$0.00"}},{"$f":"'3 INCOME & EXPENSE'!O386","v":{"v":0,"d":"$0.00"}},513,{"$f":"'3 INCOME & EXPENSE'!Z386","v":31},31000,{"$f":"I524+J524","v":31031},0]
[null,null,{"$f":"IF('3 INCOME & EXPENSE'!E387=0,\"\",'3 INCOME & EXPENSE'!E387)","v":""},{"$f":"T('3 INCOME & EXPENSE'!G387)","v":""},{"$f":"'3 INCOME & EXPENSE'!M387","v":{"v":0,"d":"0.0"}},{"$f":"'3 INCOME & EXPENSE'!N387","v":{"v":0,"d":"$0.00"}},{"$f":"'3 INCOME & EXPENSE'!O387","v":{"v":0,"d":"$0.00"}},514,{"$f":"'3 INCOME & EXPENSE'!Z387","v":31},31000,31031,0]
[null,null,{"$f":"IF('3 INCOME & EXPENSE'!E388=0,\"\",'3 INCOME & EXPENSE'!E388)","v":""},{"$f":"T('3 INCOME & EXPENSE'!G388)","v":""},{"$f":"'3 INCOME & EXPENSE'!M388","v":{"v":0,"d":"0.0"}},{"$f":"'3 INCOME & EXPENSE'!N388","v":{"v":0,"d":"$0.00"}},{"$f":"'3 INCOME & EXPENSE'!O388","v":{"v":0,"d":"$0.00"}},515,{"$f":"'3 INCOME & EXPENSE'!Z388","v":31},31000,31031,0]
[null,null,{"$f":"IF('3 INCOME & EXPENSE'!E389=0,\"\",'3 INCOME & EXPENSE'!E389)","v":""},{"$f":"T('3 INCOME & EXPENSE'!G389)","v":""},{"$f":"'3 INCOME & EXPENSE'!M389","v":{"v":0,"d":"0.0"}},{"$f":"'3 INCOME & EXPENSE'!N389","v":{"v":0,"d":"$0.00"}},{"$f":"'3 INCOME & EXPENSE'!O389","v":{"v":0,"d":"$0.00"}},516,{"$f":"'3 INCOME & EXPENSE'!Z389","v":31},31000,31031,0]
[null,null,{"$f":"IF('3 INCOME & EXPENSE'!E390=0,\"\",'3 INCOME & EXPENSE'!E390)","v":""},{"$f":"T('3 INCOME & EXPENSE'!G390)","v":""},{"$f":"'3 INCOME & EXPENSE'!M390","v":{"v":0,"d":"0.0"}},{"$f":"'3 INCOME & EXPENSE'!N390","v":{"v":0,"d":"$0.00"}},{"$f":"'3 INCOME & EXPENSE'!O390","v":{"v":0,"d":"$0.00"}},517,{"$f":"'3 INCOME & EXPENSE'!Z390","v":31},31000,31031,0]
[null,null,{"$f":"IF('3 INCOME & EXPENSE'!E391=0,\"\",'3 INCOME & EXPENSE'!E391)","v":""},{"$f":"T('3 INCOME & EXPENSE'!G391)","v":""},{"$f":"'3 INCOME & EXPENSE'!M391","v":{"v":0,"d":"0.0"}},{"$f":"'3 INCOME & EXPENSE'!N391","v":{"v":0,"d":"$0.00"}},{"$f":"'3 INCOME & EXPENSE'!O391","v":{"v":0,"d":"$0.00"}},518,{"$f":"'3 INCOME & EXPENSE'!Z391","v":31},31000,31031,0]
[null,null,{"$f":"IF('3 INCOME & EXPENSE'!E392=0,\"\",'3 INCOME & EXPENSE'!E392)","v":""},{"$f":"T('3 INCOME & EXPENSE'!G392)","v":""},{"$f":"'3 INCOME & EXPENSE'!M392","v":{"v":0,"d":"0.0"}},{"$f":"'3 INCOME & EXPENSE'!N392","v":{"v":0,"d":"$0.00"}},{"$f":"'3 INCOME & EXPENSE'!O392","v":{"v":0,"d":"$0.00"}},519,{"$f":"'3 INCOME & EXPENSE'!Z392","v":31},31000,31031,0]
[null,null,{"$f":"IF('3 INCOME & EXPENSE'!E393=0,\"\",'3 INCOME & EXPENSE'!E393)","v":""},{"$f":"T('3 INCOME & EXPENSE'!G393)","v":""},{"$f":"'3 INCOME & EXPENSE'!M393","v":{"v":0,"d":"0.0"}},{"$f":"'3 INCOME & EXPENSE'!N393","v":{"v":0,"d":"$0.00"}},{"$f":"'3 INCOME & EXPENSE'!O393","v":{"v":0,"d":"$0.00"}},520,{"$f":"'3 INCOME & EXPENSE'!Z393","v":31},31000,31031,0]
[null,null,{"$f":"IF('3 INCOME & EXPENSE'!E394=0,\"\",'3 INCOME & EXPENSE'!E394)","v":""},{"$f":"T('3 INCOME & EXPENSE'!G394)","v":""},{"$f":"'3 INCOME & EXPENSE'!M394","v":{"v":0,"d":"0.0"}},{"$f":"'3 INCOME & EXPENSE'!N394","v":{"v":0,"d":"$0.00"}},{"$f":"'3 INCOME & EXPENSE'!O394","v":{"v":0,"d":"$0.00"}},521,{"$f":"'3 INCOME & EXPENSE'!Z394","v":31},31000,31031,0]
[null,null,{"$f":"IF('3 INCOME & EXPENSE'!E395=0,\"\",'3 INCOME & EXPENSE'!E395)","v":""},{"$f":"T('3 INCOME & EXPENSE'!G395)","v":""},{"$f":"'3 INCOME & EXPENSE'!M395","v":{"v":0,"d":"0.0"}},{"$f":"'3 INCOME & EXPENSE'!N395","v":{"v":0,"d":"$0.00"}},{"$f":"'3 INCOME & EXPENSE'!O395","v":{"v":0,"d":"$0.00"}},522,{"$f":"'3 INCOME & EXPENSE'!Z395","v":31},31000,31031,0]
[null,null,{"$f":"IF('3 INCOME & EXPENSE'!E396=0,\"\",'3 INCOME & EXPENSE'!E396)","v":""},{"$f":"T('3 INCOME & EXPENSE'!G396)","v":""},{"$f":"'3 INCOME & EXPENSE'!M396","v":{"v":0,"d":"0.0"}},{"$f":"'3 INCOME & EXPENSE'!N396","v":{"v":0,"d":"$0.00"}},{"$f":"'3 INCOME & EXPENSE'!O396","v":{"v":0,"d":"$0.00"}},523,{"$f":"'3 INCOME & EXPENSE'!Z396","v":31},31000,31031,0]
[null,null,{"$f":"IF('3 INCOME & EXPENSE'!E397=0,\"\",'3 INCOME & EXPENSE'!E397)","v":""},{"$f":"T('3 INCOME & EXPENSE'!G397)","v":""},{"$f":"'3 INCOME & EXPENSE'!M397","v":{"v":0,"d":"0.0"}},{"$f":"'3 INCOME & EXPENSE'!N397","v":{"v":0,"d":"$0.00"}},{"$f":"'3 INCOME & EXPENSE'!O397","v":{"v":0,"d":"$0.00"}},524,{"$f":"'3 INCOME & EXPENSE'!Z397","v":31},31000,31031,0]
[null,null,{"$f":"IF('3 INCOME & EXPENSE'!E398=0,\"\",'3 INCOME & EXPENSE'!E398)","v":""},{"$f":"T('3 INCOME & EXPENSE'!G398)","v":""},{"$f":"'3 INCOME & EXPENSE'!M398","v":{"v":0,"d":"0.0"}},{"$f":"'3 INCOME & EXPENSE'!N398","v":{"v":0,"d":"$0.00"}},{"$f":"'3 INCOME & EXPENSE'!O398","v":{"v":0,"d":"$0.00"}},525,{"$f":"'3 INCOME & EXPENSE'!Z398","v":31},{"$f":"VLOOKUP(I536,$J$939:$K$969,2)","v":31000},31031,{"$f":"K536*E536","v":0}]
[null,null,{"$f":"IF('3 INCOME & EXPENSE'!E399=0,\"\",'3 INCOME & EXPENSE'!E399)","v":""},{"$f":"T('3 INCOME & EXPENSE'!G399)","v":""},{"$f":"'3 INCOME & EXPENSE'!M399","v":{"v":0,"d":"0.0"}},{"$f":"'3 INCOME & EXPENSE'!N399","v":{"v":0,"d":"$0.00"}},{"$f":"'3 INCOME & EXPENSE'!O399","v":{"v":0,"d":"$0.00"}},526,{"$f":"'3 INCOME & EXPENSE'!Z399","v":31},31000,31031,0]
[null,null,{"$f":"IF('3 INCOME & EXPENSE'!E400=0,\"\",'3 INCOME & EXPENSE'!E400)","v":""},{"$f":"T('3 INCOME & EXPENSE'!G400)","v":""},{"$f":"'3 INCOME & EXPENSE'!M400","v":{"v":0,"d":"0.0"}},{"$f":"'3 INCOME & EXPENSE'!N400","v":{"v":0,"d":"$0.00"}},{"$f":"'3 INCOME & EXPENSE'!O400","v":{"v":0,"d":"$0.00"}},527,{"$f":"'3 INCOME & EXPENSE'!Z400","v":31},31000,31031,0]
[null,null,{"$f":"IF('3 INCOME & EXPENSE'!E401=0,\"\",'3 INCOME & EXPENSE'!E401)","v":""},{"$f":"T('3 INCOME & EXPENSE'!G401)","v":""},{"$f":"'3 INCOME & EXPENSE'!M401","v":{"v":0,"d":"0.0"}},{"$f":"'3 INCOME & EXPENSE'!N401","v":{"v":0,"d":"$0.00"}},{"$f":"'3 INCOME & EXPENSE'!O401","v":{"v":0,"d":"$0.00"}},528,{"$f":"'3 INCOME & EXPENSE'!Z401","v":31},31000,31031,0]
[null,null,{"$f":"IF('3 INCOME & EXPENSE'!E402=0,\"\",'3 INCOME & EXPENSE'!E402)","v":""},{"$f":"T('3 INCOME & EXPENSE'!G402)","v":""},{"$f":"'3 INCOME & EXPENSE'!M402","v":{"v":0,"d":"0.0"}},{"$f":"'3 INCOME & EXPENSE'!N402","v":{"v":0,"d":"$0.00"}},{"$f":"'3 INCOME & EXPENSE'!O402","v":{"v":0,"d":"$0.00"}},529,{"$f":"'3 INCOME & EXPENSE'!Z402","v":31},31000,31031,0]
[null,null,{"$f":"IF('3 INCOME & EXPENSE'!E403=0,\"\",'3 INCOME & EXPENSE'!E403)","v":""},{"$f":"T('3 INCOME & EXPENSE'!G403)","v":""},{"$f":"'3 INCOME & EXPENSE'!M403","v":{"v":0,"d":"0.0"}},{"$f":"'3 INCOME & EXPENSE'!N403","v":{"v":0,"d":"$0.00"}},{"$f":"'3 INCOME & EXPENSE'!O403","v":{"v":0,"d":"$0.00"}},530,{"$f":"'3 INCOME & EXPENSE'!Z403","v":31},31000,31031,0]
[null,null,{"$f":"IF('3 INCOME & EXPENSE'!E404=0,\"\",'3 INCOME & EXPENSE'!E404)","v":""},{"$f":"T('3 INCOME & EXPENSE'!G404)","v":""},{"$f":"'3 INCOME & EXPENSE'!M404","v":{"v":0,"d":"0.0"}},{"$f":"'3 INCOME & EXPENSE'!N404","v":{"v":0,"d":"$0.00"}},{"$f":"'3 INCOME & EXPENSE'!O404","v":{"v":0,"d":"$0.00"}},531,{"$f":"'3 INCOME & EXPENSE'!Z404","v":31},31000,31031,0]
[null,null,{"$f":"IF('3 INCOME & EXPENSE'!E405=0,\"\",'3 INCOME & EXPENSE'!E405)","v":""},{"$f":"T('3 INCOME & EXPENSE'!G405)","v":""},{"$f":"'3 INCOME & EXPENSE'!M405","v":{"v":0,"d":"0.0"}},{"$f":"'3 INCOME & EXPENSE'!N405","v":{"v":0,"d":"$0.00"}},{"$f":"'3 INCOME & EXPENSE'!O405","v":{"v":0,"d":"$0.00"}},532,{"$f":"'3 INCOME & EXPENSE'!Z405","v":31},31000,31031,0]
[null,null,{"$f":"IF('3 INCOME & EXPENSE'!E406=0,\"\",'3 INCOME & EXPENSE'!E406)","v":""},{"$f":"T('3 INCOME & EXPENSE'!G406)","v":""},{"$f":"'3 INCOME & EXPENSE'!M406","v":{"v":0,"d":"0.0"}},{"$f":"'3 INCOME & EXPENSE'!N406","v":{"v":0,"d":"$0.00"}},{"$f":"'3 INCOME & EXPENSE'!O406","v":{"v":0,"d":"$0.00"}},533,{"$f":"'3 INCOME & EXPENSE'!Z406","v":31},31000,31031,0]
[null,null,{"$f":"IF('3 INCOME & EXPENSE'!E407=0,\"\",'3 INCOME & EXPENSE'!E407)","v":""},{"$f":"T('3 INCOME & EXPENSE'!G407)","v":""},{"$f":"'3 INCOME & EXPENSE'!M407","v":{"v":0,"d":"0.0"}},{"$f":"'3 INCOME & EXPENSE'!N407","v":{"v":0,"d":"$0.00"}},{"$f":"'3 INCOME & EXPENSE'!O407","v":{"v":0,"d":"$0.00"}},534,{"$f":"'3 INCOME & EXPENSE'!Z407","v":31},31000,31031,0]
[null,null,{"$f":"IF('3 INCOME & EXPENSE'!E408=0,\"\",'3 INCOME & EXPENSE'!E408)","v":""},{"$f":"T('3 INCOME & EXPENSE'!G408)","v":""},{"$f":"'3 INCOME & EXPENSE'!M408","v":{"v":0,"d":"0.0"}},{"$f":"'3 INCOME & EXPENSE'!N408","v":{"v":0,"d":"$0.00"}},{"$f":"'3 INCOME & EXPENSE'!O408","v":{"v":0,"d":"$0.00"}},535,{"$f":"'3 INCOME & EXPENSE'!Z408","v":31},31000,31031,0]
[null,null,{"$f":"IF('3 INCOME & EXPENSE'!E409=0,\"\",'3 INCOME & EXPENSE'!E409)","v":""},{"$f":"T('3 INCOME & EXPENSE'!G409)","v":""},{"$f":"'3 INCOME & EXPENSE'!M409","v":{"v":0,"d":"0.0"}},{"$f":"'3 INCOME & EXPENSE'!N409","v":{"v":0,"d":"$0.00"}},{"$f":"'3 INCOME & EXPENSE'!O409","v":{"v":0,"d":"$0.00"}},536,{"$f":"'3 INCOME & EXPENSE'!Z409","v":31},31000,31031,0]
[null,null,{"$f":"IF('3 INCOME & EXPENSE'!E410=0,\"\",'3 INCOME & EXPENSE'!E410)","v":""},{"$f":"T('3 INCOME & EXPENSE'!G410)","v":""},{"$f":"'3 INCOME & EXPENSE'!M410","v":{"v":0,"d":"0.0"}},{"$f":"'3 INCOME & EXPENSE'!N410","v":{"v":0,"d":"$0.00"}},{"$f":"'3 INCOME & EXPENSE'!O410","v":{"v":0,"d":"$0.00"}},537,{"$f":"'3 INCOME & EXPENSE'!Z410","v":31},31000,31031,0]
[null,null,{"$f":"IF('3 INCOME & EXPENSE'!E411=0,\"\",'3 INCOME & EXPENSE'!E411)","v":""},{"$f":"T('3 INCOME & EXPENSE'!G411)","v":""},{"$f":"'3 INCOME & EXPENSE'!M411","v":{"v":0,"d":"0.0"}},{"$f":"'3 INCOME & EXPENSE'!N411","v":{"v":0,"d":"$0.00"}},{"$f":"'3 INCOME & EXPENSE'!O411","v":{"v":0,"d":"$0.00"}},538,{"$f":"'3 INCOME & EXPENSE'!Z411","v":31},31000,31031,0]
[null,null,{"$f":"IF('3 INCOME & EXPENSE'!E412=0,\"\",'3 INCOME & EXPENSE'!E412)","v":""},{"$f":"T('3 INCOME & EXPENSE'!G412)","v":""},{"$f":"'3 INCOME & EXPENSE'!M412","v":{"v":0,"d":"0.0"}},{"$f":"'3 INCOME & EXPENSE'!N412","v":{"v":0,"d":"$0.00"}},{"$f":"'3 INCOME & EXPENSE'!O412","v":{"v":0,"d":"$0.00"}},539,{"$f":"'3 INCOME & EXPENSE'!Z412","v":31},31000,31031,0]
[null,null,{"$f":"IF('3 INCOME & EXPENSE'!E413=0,\"\",'3 INCOME & EXPENSE'!E413)","v":""},{"$f":"T('3 INCOME & EXPENSE'!G413)","v":""},{"$f":"'3 INCOME & EXPENSE'!M413","v":{"v":0,"d":"0.0"}},{"$f":"'3 INCOME & EXPENSE'!N413","v":{"v":0,"d":"$0.00"}},{"$f":"'3 INCOME & EXPENSE'!O413","v":{"v":0,"d":"$0.00"}},540,{"$f":"'3 INCOME & EXPENSE'!Z413","v":31},31000,31031,0]
[null,null,{"$f":"IF('3 INCOME & EXPENSE'!E414=0,\"\",'3 INCOME & EXPENSE'!E414)","v":""},{"$f":"T('3 INCOME & EXPENSE'!G414)","v":""},{"$f":"'3 INCOME & EXPENSE'!M414","v":{"v":0,"d":"0.0"}},{"$f":"'3 INCOME & EXPENSE'!N414","v":{"v":0,"d":"$0.00"}},{"$f":"'3 INCOME & EXPENSE'!O414","v":{"v":0,"d":"$0.00"}},541,{"$f":"'3 INCOME & EXPENSE'!Z414","v":31},31000,31031,0]
[null,null,{"$f":"IF('3 INCOME & EXPENSE'!E415=0,\"\",'3 INCOME & EXPENSE'!E415)","v":""},{"$f":"T('3 INCOME & EXPENSE'!G415)","v":""},{"$f":"'3 INCOME & EXPENSE'!M415","v":{"v":0,"d":"0.0"}},{"$f":"'3 INCOME & EXPENSE'!N415","v":{"v":0,"d":"$0.00"}},{"$f":"'3 INCOME & EXPENSE'!O415","v":{"v":0,"d":"$0.00"}},542,{"$f":"'3 INCOME & EXPENSE'!Z415","v":31},31000,31031,0]
[null,null,{"$f":"IF('3 INCOME & EXPENSE'!E416=0,\"\",'3 INCOME & EXPENSE'!E416)","v":""},{"$f":"T('3 INCOME & EXPENSE'!G416)","v":""},{"$f":"'3 INCOME & EXPENSE'!M416","v":{"v":0,"d":"0.0"}},{"$f":"'3 INCOME & EXPENSE'!N416","v":{"v":0,"d":"$0.00"}},{"$f":"'3 INCOME & EXPENSE'!O416","v":{"v":0,"d":"$0.00"}},543,{"$f":"'3 INCOME & EXPENSE'!Z416","v":31},31000,31031,0]
[null,null,{"$f":"IF('3 INCOME & EXPENSE'!E417=0,\"\",'3 INCOME & EXPENSE'!E417)","v":""},{"$f":"T('3 INCOME & EXPENSE'!G417)","v":""},{"$f":"'3 INCOME & EXPENSE'!M417","v":{"v":0,"d":"0.0"}},{"$f":"'3 INCOME & EXPENSE'!N417","v":{"v":0,"d":"$0.00"}},{"$f":"'3 INCOME & EXPENSE'!O417","v":{"v":0,"d":"$0.00"}},544,{"$f":"'3 INCOME & EXPENSE'!Z417","v":31},31000,31031,0]
[null,null,{"$f":"IF('3 INCOME & EXPENSE'!E418=0,\"\",'3 INCOME & EXPENSE'!E418)","v":""},{"$f":"T('3 INCOME & EXPENSE'!G418)","v":""},{"$f":"'3 INCOME & EXPENSE'!M418","v":{"v":0,"d":"0.0"}},{"$f":"'3 INCOME & EXPENSE'!N418","v":{"v":0,"d":"$0.00"}},{"$f":"'3 INCOME & EXPENSE'!O418","v":{"v":0,"d":"$0.00"}},545,{"$f":"'3 INCOME & EXPENSE'!Z418","v":31},31000,31031,0]
[null,null,{"$f":"IF('3 INCOME & EXPENSE'!E419=0,\"\",'3 INCOME & EXPENSE'!E419)","v":""},{"$f":"T('3 INCOME & EXPENSE'!G419)","v":""},{"$f":"'3 INCOME & EXPENSE'!M419","v":{"v":0,"d":"0.0"}},{"$f":"'3 INCOME & EXPENSE'!N419","v":{"v":0,"d":"$0.00"}},{"$f":"'3 INCOME & EXPENSE'!O419","v":{"v":0,"d":"$0.00"}},546,{"$f":"'3 INCOME & EXPENSE'!Z419","v":31},31000,31031,0]
[null,null,{"$f":"IF('3 INCOME & EXPENSE'!E420=0,\"\",'3 INCOME & EXPENSE'!E420)","v":""},{"$f":"T('3 INCOME & EXPENSE'!G420)","v":""},{"$f":"'3 INCOME & EXPENSE'!M420","v":{"v":0,"d":"0.0"}},{"$f":"'3 INCOME & EXPENSE'!N420","v":{"v":0,"d":"$0.00"}},{"$f":"'3 INCOME & EXPENSE'!O420","v":{"v":0,"d":"$0.00"}},547,{"$f":"'3 INCOME & EXPENSE'!Z420","v":31},31000,31031,0]
[null,null,{"$f":"IF('3 INCOME & EXPENSE'!E421=0,\"\",'3 INCOME & EXPENSE'!E421)","v":""},{"$f":"T('3 INCOME & EXPENSE'!G421)","v":""},{"$f":"'3 INCOME & EXPENSE'!M421","v":{"v":0,"d":"0.0"}},{"$f":"'3 INCOME & EXPENSE'!N421","v":{"v":0,"d":"$0.00"}},{"$f":"'3 INCOME & EXPENSE'!O421","v":{"v":0,"d":"$0.00"}},548,{"$f":"'3 INCOME & EXPENSE'!Z421","v":31},31000,31031,0]
[null,null,{"$f":"IF('3 INCOME & EXPENSE'!E422=0,\"\",'3 INCOME & EXPENSE'!E422)","v":""},{"$f":"T('3 INCOME & EXPENSE'!G422)","v":""},{"$f":"'3 INCOME & EXPENSE'!M422","v":{"v":0,"d":"0.0"}},{"$f":"'3 INCOME & EXPENSE'!N422","v":{"v":0,"d":"$0.00"}},{"$f":"'3 INCOME & EXPENSE'!O422","v":{"v":0,"d":"$0.00"}},549,{"$f":"'3 INCOME & EXPENSE'!Z422","v":31},31000,31031,0]
[null,null,{"$f":"IF('3 INCOME & EXPENSE'!E423=0,\"\",'3 INCOME & EXPENSE'!E423)","v":""},{"$f":"T('3 INCOME & EXPENSE'!G423)","v":""},{"$f":"'3 INCOME & EXPENSE'!M423","v":{"v":0,"d":"0.0"}},{"$f":"'3 INCOME & EXPENSE'!N423","v":{"v":0,"d":"$0.00"}},{"$f":"'3 INCOME & EXPENSE'!O423","v":{"v":0,"d":"$0.00"}},550,{"$f":"'3 INCOME & EXPENSE'!Z423","v":31},31000,31031,0]
[null,null,{"$f":"IF('3 INCOME & EXPENSE'!E424=0,\"\",'3 INCOME & EXPENSE'!E424)","v":""},{"$f":"T('3 INCOME & EXPENSE'!G424)","v":""},{"$f":"'3 INCOME & EXPENSE'!M424","v":{"v":0,"d":"0.0"}},{"$f":"'3 INCOME & EXPENSE'!N424","v":{"v":0,"d":"$0.00"}},{"$f":"'3 INCOME & EXPENSE'!O424","v":{"v":0,"d":"$0.00"}},551,{"$f":"'3 INCOME & EXPENSE'!Z424","v":31},31000,31031,0]
[null,null,{"$f":"IF('3 INCOME & EXPENSE'!E425=0,\"\",'3 INCOME & EXPENSE'!E425)","v":""},{"$f":"T('3 INCOME & EXPENSE'!G425)","v":""},{"$f":"'3 INCOME & EXPENSE'!M425","v":{"v":0,"d":"0.0"}},{"$f":"'3 INCOME & EXPENSE'!N425","v":{"v":0,"d":"$0.00"}},{"$f":"'3 INCOME & EXPENSE'!O425","v":{"v":0,"d":"$0.00"}},552,{"$f":"'3 INCOME & EXPENSE'!Z425","v":31},31000,31031,0]
[null,null,{"$f":"IF('3 INCOME & EXPENSE'!E426=0,\"\",'3 INCOME & EXPENSE'!E426)","v":""},{"$f":"T('3 INCOME & EXPENSE'!G426)","v":""},{"$f":"'3 INCOME & EXPENSE'!M426","v":{"v":0,"d":"0.0"}},{"$f":"'3 INCOME & EXPENSE'!N426","v":{"v":0,"d":"$0.00"}},{"$f":"'3 INCOME & EXPENSE'!O426","v":{"v":0,"d":"$0.00"}},553,{"$f":"'3 INCOME & EXPENSE'!Z426","v":31},31000,31031,0]
[null,null,{"$f":"IF('3 INCOME & EXPENSE'!E427=0,\"\",'3 INCOME & EXPENSE'!E427)","v":""},{"$f":"T('3 INCOME & EXPENSE'!G427)","v":""},{"$f":"'3 INCOME & EXPENSE'!M427","v":{"v":0,"d":"0.0"}},{"$f":"'3 INCOME & EXPENSE'!N427","v":{"v":0,"d":"$0.00"}},{"$f":"'3 INCOME & EXPENSE'!O427","v":{"v":0,"d":"$0.00"}},554,{"$f":"'3 INCOME & EXPENSE'!Z427","v":31},31000,31031,0]
[null,null,{"$f":"IF('3 INCOME & EXPENSE'!E428=0,\"\",'3 INCOME & EXPENSE'!E428)","v":""},{"$f":"T('3 INCOME & EXPENSE'!G428)","v":""},{"$f":"'3 INCOME & EXPENSE'!M428","v":{"v":0,"d":"0.0"}},{"$f":"'3 INCOME & EXPENSE'!N428","v":{"v":0,"d":"$0.00"}},{"$f":"'3 INCOME & EXPENSE'!O428","v":{"v":0,"d":"$0.00"}},555,{"$f":"'3 INCOME & EXPENSE'!Z428","v":31},31000,31031,0]
[null,null,{"$f":"IF('3 INCOME & EXPENSE'!E429=0,\"\",'3 INCOME & EXPENSE'!E429)","v":""},{"$f":"T('3 INCOME & EXPENSE'!G429)","v":""},{"$f":"'3 INCOME & EXPENSE'!M429","v":{"v":0,"d":"0.0"}},{"$f":"'3 INCOME & EXPENSE'!N429","v":{"v":0,"d":"$0.00"}},{"$f":"'3 INCOME & EXPENSE'!O429","v":{"v":0,"d":"$0.00"}},556,{"$f":"'3 INCOME & EXPENSE'!Z429","v":31},31000,31031,0]
[null,null,{"$f":"IF('3 INCOME & EXPENSE'!E430=0,\"\",'3 INCOME & EXPENSE'!E430)","v":""},{"$f":"T('3 INCOME & EXPENSE'!G430)","v":""},{"$f":"'3 INCOME & EXPENSE'!M430","v":{"v":0,"d":"0.0"}},{"$f":"'3 INCOME & EXPENSE'!N430","v":{"v":0,"d":"$0.00"}},{"$f":"'3 INCOME & EXPENSE'!O430","v":{"v":0,"d":"$0.00"}},557,{"$f":"'3 INCOME & EXPENSE'!Z430","v":31},31000,31031,0]
[null,null,{"$f":"IF('3 INCOME & EXPENSE'!E431=0,\"\",'3 INCOME & EXPENSE'!E431)","v":""},{"$f":"T('3 INCOME & EXPENSE'!G431)","v":""},{"$f":"'3 INCOME & EXPENSE'!M431","v":{"v":0,"d":"0.0"}},{"$f":"'3 INCOME & EXPENSE'!N431","v":{"v":0,"d":"$0.00"}},{"$f":"'3 INCOME & EXPENSE'!O431","v":{"v":0,"d":"$0.00"}},558,{"$f":"'3 INCOME & EXPENSE'!Z431","v":31},31000,31031,0]
[null,null,{"$f":"IF('3 INCOME & EXPENSE'!E432=0,\"\",'3 INCOME & EXPENSE'!E432)","v":""},{"$f":"T('3 INCOME & EXPENSE'!G432)","v":""},{"$f":"'3 INCOME & EXPENSE'!M432","v":{"v":0,"d":"0.0"}},{"$f":"'3 INCOME & EXPENSE'!N432","v":{"v":0,"d":"$0.00"}},{"$f":"'3 INCOME & EXPENSE'!O432","v":{"v":0,"d":"$0.00"}},559,{"$f":"'3 INCOME & EXPENSE'!Z432","v":31},31000,31031,0]
[null,null,{"$f":"IF('3 INCOME & EXPENSE'!E433=0,\"\",'3 INCOME & EXPENSE'!E433)","v":""},{"$f":"T('3 INCOME & EXPENSE'!G433)","v":""},{"$f":"'3 INCOME & EXPENSE'!M433","v":{"v":0,"d":"0.0"}},{"$f":"'3 INCOME & EXPENSE'!N433","v":{"v":0,"d":"$0.00"}},{"$f":"'3 INCOME & EXPENSE'!O433","v":{"v":0,"d":"$0.00"}},560,{"$f":"'3 INCOME & EXPENSE'!Z433","v":31},31000,31031,0]
[null,null,{"$f":"IF('3 INCOME & EXPENSE'!E434=0,\"\",'3 INCOME & EXPENSE'!E434)","v":""},{"$f":"T('3 INCOME & EXPENSE'!G434)","v":""},{"$f":"'3 INCOME & EXPENSE'!M434","v":{"v":0,"d":"0.0"}},{"$f":"'3 INCOME & EXPENSE'!N434","v":{"v":0,"d":"$0.00"}},{"$f":"'3 INCOME & EXPENSE'!O434","v":{"v":0,"d":"$0.00"}},561,{"$f":"'3 INCOME & EXPENSE'!Z434","v":31},31000,31031,0]
[null,null,{"$f":"IF('3 INCOME & EXPENSE'!E435=0,\"\",'3 INCOME & EXPENSE'!E435)","v":""},{"$f":"T('3 INCOME & EXPENSE'!G435)","v":""},{"$f":"'3 INCOME & EXPENSE'!M435","v":{"v":0,"d":"0.0"}},{"$f":"'3 INCOME & EXPENSE'!N435","v":{"v":0,"d":"$0.00"}},{"$f":"'3 INCOME & EXPENSE'!O435","v":{"v":0,"d":"$0.00"}},562,{"$f":"'3 INCOME & EXPENSE'!Z435","v":31},31000,31031,0]
[null,null,{"$f":"IF('3 INCOME & EXPENSE'!E436=0,\"\",'3 INCOME & EXPENSE'!E436)","v":""},{"$f":"T('3 INCOME & EXPENSE'!G436)","v":""},{"$f":"'3 INCOME & EXPENSE'!M436","v":{"v":0,"d":"0.0"}},{"$f":"'3 INCOME & EXPENSE'!N436","v":{"v":0,"d":"$0.00"}},{"$f":"'3 INCOME & EXPENSE'!O436","v":{"v":0,"d":"$0.00"}},563,{"$f":"'3 INCOME & EXPENSE'!Z436","v":31},31000,31031,0]
[null,null,{"$f":"IF('3 INCOME & EXPENSE'!E437=0,\"\",'3 INCOME & EXPENSE'!E437)","v":""},{"$f":"T('3 INCOME & EXPENSE'!G437)","v":""},{"$f":"'3 INCOME & EXPENSE'!M437","v":{"v":0,"d":"0.0"}},{"$f":"'3 INCOME & EXPENSE'!N437","v":{"v":0,"d":"$0.00"}},{"$f":"'3 INCOME & EXPENSE'!O437","v":{"v":0,"d":"$0.00"}},564,{"$f":"'3 INCOME & EXPENSE'!Z437","v":31},31000,31031,0]
[null,null,{"$f":"IF('3 INCOME & EXPENSE'!E438=0,\"\",'3 INCOME & EXPENSE'!E438)","v":""},{"$f":"T('3 INCOME & EXPENSE'!G438)","v":""},{"$f":"'3 INCOME & EXPENSE'!M438","v":{"v":0,"d":"0.0"}},{"$f":"'3 INCOME & EXPENSE'!N438","v":{"v":0,"d":"$0.00"}},{"$f":"'3 INCOME & EXPENSE'!O438","v":{"v":0,"d":"$0.00"}},565,{"$f":"'3 INCOME & EXPENSE'!Z438","v":31},31000,31031,0]
[null,null,{"$f":"IF('3 INCOME & EXPENSE'!E439=0,\"\",'3 INCOME & EXPENSE'!E439)","v":""},{"$f":"T('3 INCOME & EXPENSE'!G439)","v":""},{"$f":"'3 INCOME & EXPENSE'!M439","v":{"v":0,"d":"0.0"}},{"$f":"'3 INCOME & EXPENSE'!N439","v":{"v":0,"d":"$0.00"}},{"$f":"'3 INCOME & EXPENSE'!O439","v":{"v":0,"d":"$0.00"}},566,{"$f":"'3 INCOME & EXPENSE'!Z439","v":31},31000,31031,0]
[null,null,{"$f":"IF('3 INCOME & EXPENSE'!E440=0,\"\",'3 INCOME & EXPENSE'!E440)","v":""},{"$f":"T('3 INCOME & EXPENSE'!G440)","v":""},{"$f":"'3 INCOME & EXPENSE'!M440","v":{"v":0,"d":"0.0"}},{"$f":"'3 INCOME & EXPENSE'!N440","v":{"v":0,"d":"$0.00"}},{"$f":"'3 INCOME & EXPENSE'!O440","v":{"v":0,"d":"$0.00"}},567,{"$f":"'3 INCOME & EXPENSE'!Z440","v":31},31000,31031,0]
[null,null,{"$f":"IF('3 INCOME & EXPENSE'!E441=0,\"\",'3 INCOME & EXPENSE'!E441)","v":""},{"$f":"T('3 INCOME & EXPENSE'!G441)","v":""},{"$f":"'3 INCOME & EXPENSE'!M441","v":{"v":0,"d":"0.0"}},{"$f":"'3 INCOME & EXPENSE'!N441","v":{"v":0,"d":"$0.00"}},{"$f":"'3 INCOME & EXPENSE'!O441","v":{"v":0,"d":"$0.00"}},568,{"$f":"'3 INCOME & EXPENSE'!Z441","v":31},31000,31031,0]
[null,null,{"$f":"IF('3 INCOME & EXPENSE'!E442=0,\"\",'3 INCOME & EXPENSE'!E442)","v":""},{"$f":"T('3 INCOME & EXPENSE'!G442)","v":""},{"$f":"'3 INCOME & EXPENSE'!M442","v":{"v":0,"d":"0.0"}},{"$f":"'3 INCOME & EXPENSE'!N442","v":{"v":0,"d":"$0.00"}},{"$f":"'3 INCOME & EXPENSE'!O442","v":{"v":0,"d":"$0.00"}},569,{"$f":"'3 INCOME & EXPENSE'!Z442","v":31},31000,31031,0]
[null,null,{"$f":"IF('3 INCOME & EXPENSE'!E443=0,\"\",'3 INCOME & EXPENSE'!E443)","v":""},{"$f":"T('3 INCOME & EXPENSE'!G443)","v":""},{"$f":"'3 INCOME & EXPENSE'!M443","v":{"v":0,"d":"0.0"}},{"$f":"'3 INCOME & EXPENSE'!N443","v":{"v":0,"d":"$0.00"}},{"$f":"'3 INCOME & EXPENSE'!O443","v":{"v":0,"d":"$0.00"}},570,{"$f":"'3 INCOME & EXPENSE'!Z443","v":31},31000,31031,0]
[null,null,{"$f":"IF('3 INCOME & EXPENSE'!E444=0,\"\",'3 INCOME & EXPENSE'!E444)","v":""},{"$f":"T('3 INCOME & EXPENSE'!G444)","v":""},{"$f":"'3 INCOME & EXPENSE'!M444","v":{"v":0,"d":"0.0"}},{"$f":"'3 INCOME & EXPENSE'!N444","v":{"v":0,"d":"$0.00"}},{"$f":"'3 INCOME & EXPENSE'!O444","v":{"v":0,"d":"$0.00"}},571,{"$f":"'3 INCOME & EXPENSE'!Z444","v":31},31000,31031,0]
[null,null,{"$f":"IF('3 INCOME & EXPENSE'!E445=0,\"\",'3 INCOME & EXPENSE'!E445)","v":""},{"$f":"T('3 INCOME & EXPENSE'!G445)","v":""},{"$f":"'3 INCOME & EXPENSE'!M445","v":{"v":0,"d":"0.0"}},{"$f":"'3 INCOME & EXPENSE'!N445","v":{"v":0,"d":"$0.00"}},{"$f":"'3 INCOME & EXPENSE'!O445","v":{"v":0,"d":"$0.00"}},572,{"$f":"'3 INCOME & EXPENSE'!Z445","v":31},31000,31031,0]
[null,null,{"$f":"IF('3 INCOME & EXPENSE'!E446=0,\"\",'3 INCOME & EXPENSE'!E446)","v":""},{"$f":"T('3 INCOME & EXPENSE'!G446)","v":""},{"$f":"'3 INCOME & EXPENSE'!M446","v":{"v":0,"d":"0.0"}},{"$f":"'3 INCOME & EXPENSE'!N446","v":{"v":0,"d":"$0.00"}},{"$f":"'3 INCOME & EXPENSE'!O446","v":{"v":0,"d":"$0.00"}},573,{"$f":"'3 INCOME & EXPENSE'!Z446","v":31},31000,31031,0]
[null,null,{"$f":"IF('3 INCOME & EXPENSE'!E447=0,\"\",'3 INCOME & EXPENSE'!E447)","v":""},{"$f":"T('3 INCOME & EXPENSE'!G447)","v":""},{"$f":"'3 INCOME & EXPENSE'!M447","v":{"v":0,"d":"0.0"}},{"$f":"'3 INCOME & EXPENSE'!N447","v":{"v":0,"d":"$0.00"}},{"$f":"'3 INCOME & EXPENSE'!O447","v":{"v":0,"d":"$0.00"}},574,{"$f":"'3 INCOME & EXPENSE'!Z447","v":31},31000,31031,0]
[null,null,{"$f":"IF('3 INCOME & EXPENSE'!E448=0,\"\",'3 INCOME & EXPENSE'!E448)","v":""},{"$f":"T('3 INCOME & EXPENSE'!G448)","v":""},{"$f":"'3 INCOME & EXPENSE'!M448","v":{"v":0,"d":"0.0"}},{"$f":"'3 INCOME & EXPENSE'!N448","v":{"v":0,"d":"$0.00"}},{"$f":"'3 INCOME & EXPENSE'!O448","v":{"v":0,"d":"$0.00"}},575,{"$f":"'3 INCOME & EXPENSE'!Z448","v":31},31000,31031,0]
[null,null,{"$f":"IF('3 INCOME & EXPENSE'!E449=0,\"\",'3 INCOME & EXPENSE'!E449)","v":""},{"$f":"T('3 INCOME & EXPENSE'!G449)","v":""},{"$f":"'3 INCOME & EXPENSE'!M449","v":{"v":0,"d":"0.0"}},{"$f":"'3 INCOME & EXPENSE'!N449","v":{"v":0,"d":"$0.00"}},{"$f":"'3 INCOME & EXPENSE'!O449","v":{"v":0,"d":"$0.00"}},576,{"$f":"'3 INCOME & EXPENSE'!Z449","v":31},31000,31031,0]
[null,null,{"$f":"IF('3 INCOME & EXPENSE'!E450=0,\"\",'3 INCOME & EXPENSE'!E450)","v":""},{"$f":"T('3 INCOME & EXPENSE'!G450)","v":""},{"$f":"'3 INCOME & EXPENSE'!M450","v":{"v":0,"d":"0.0"}},{"$f":"'3 INCOME & EXPENSE'!N450","v":{"v":0,"d":"$0.00"}},{"$f":"'3 INCOME & EXPENSE'!O450","v":{"v":0,"d":"$0.00"}},577,{"$f":"'3 INCOME & EXPENSE'!Z450","v":31},31000,{"$f":"I588+J588","v":31031},0]
[null,null,{"$f":"IF('3 INCOME & EXPENSE'!E451=0,\"\",'3 INCOME & EXPENSE'!E451)","v":""},{"$f":"T('3 INCOME & EXPENSE'!G451)","v":""},{"$f":"'3 INCOME & EXPENSE'!M451","v":{"v":0,"d":"0.0"}},{"$f":"'3 INCOME & EXPENSE'!N451","v":{"v":0,"d":"$0.00"}},{"$f":"'3 INCOME & EXPENSE'!O451","v":{"v":0,"d":"$0.00"}},578,{"$f":"'3 INCOME & EXPENSE'!Z451","v":31},31000,31031,0]
[null,null,{"$f":"IF('3 INCOME & EXPENSE'!E452=0,\"\",'3 INCOME & EXPENSE'!E452)","v":""},{"$f":"T('3 INCOME & EXPENSE'!G452)","v":""},{"$f":"'3 INCOME & EXPENSE'!M452","v":{"v":0,"d":"0.0"}},{"$f":"'3 INCOME & EXPENSE'!N452","v":{"v":0,"d":"$0.00"}},{"$f":"'3 INCOME & EXPENSE'!O452","v":{"v":0,"d":"$0.00"}},579,{"$f":"'3 INCOME & EXPENSE'!Z452","v":31},31000,31031,0]
[null,null,{"$f":"IF('3 INCOME & EXPENSE'!E453=0,\"\",'3 INCOME & EXPENSE'!E453)","v":""},{"$f":"T('3 INCOME & EXPENSE'!G453)","v":""},{"$f":"'3 INCOME & EXPENSE'!M453","v":{"v":0,"d":"0.0"}},{"$f":"'3 INCOME & EXPENSE'!N453","v":{"v":0,"d":"$0.00"}},{"$f":"'3 INCOME & EXPENSE'!O453","v":{"v":0,"d":"$0.00"}},580,{"$f":"'3 INCOME & EXPENSE'!Z453","v":31},31000,31031,0]
[null,null,{"$f":"IF('3 INCOME & EXPENSE'!E454=0,\"\",'3 INCOME & EXPENSE'!E454)","v":""},{"$f":"T('3 INCOME & EXPENSE'!G454)","v":""},{"$f":"'3 INCOME & EXPENSE'!M454","v":{"v":0,"d":"0.0"}},{"$f":"'3 INCOME & EXPENSE'!N454","v":{"v":0,"d":"$0.00"}},{"$f":"'3 INCOME & EXPENSE'!O454","v":{"v":0,"d":"$0.00"}},581,{"$f":"'3 INCOME & EXPENSE'!Z454","v":31},31000,31031,0]
[null,null,{"$f":"IF('3 INCOME & EXPENSE'!E455=0,\"\",'3 INCOME & EXPENSE'!E455)","v":""},{"$f":"T('3 INCOME & EXPENSE'!G455)","v":""},{"$f":"'3 INCOME & EXPENSE'!M455","v":{"v":0,"d":"0.0"}},{"$f":"'3 INCOME & EXPENSE'!N455","v":{"v":0,"d":"$0.00"}},{"$f":"'3 INCOME & EXPENSE'!O455","v":{"v":0,"d":"$0.00"}},582,{"$f":"'3 INCOME & EXPENSE'!Z455","v":31},31000,31031,0]
[null,null,{"$f":"IF('3 INCOME & EXPENSE'!E456=0,\"\",'3 INCOME & EXPENSE'!E456)","v":""},{"$f":"T('3 INCOME & EXPENSE'!G456)","v":""},{"$f":"'3 INCOME & EXPENSE'!M456","v":{"v":0,"d":"0.0"}},{"$f":"'3 INCOME & EXPENSE'!N456","v":{"v":0,"d":"$0.00"}},{"$f":"'3 INCOME & EXPENSE'!O456","v":{"v":0,"d":"$0.00"}},583,{"$f":"'3 INCOME & EXPENSE'!Z456","v":31},31000,31031,0]
[null,null,{"$f":"IF('3 INCOME & EXPENSE'!E457=0,\"\",'3 INCOME & EXPENSE'!E457)","v":""},{"$f":"T('3 INCOME & EXPENSE'!G457)","v":""},{"$f":"'3 INCOME & EXPENSE'!M457","v":{"v":0,"d":"0.0"}},{"$f":"'3 INCOME & EXPENSE'!N457","v":{"v":0,"d":"$0.00"}},{"$f":"'3 INCOME & EXPENSE'!O457","v":{"v":0,"d":"$0.00"}},584,{"$f":"'3 INCOME & EXPENSE'!Z457","v":31},31000,31031,0]
[null,null,{"$f":"IF('3 INCOME & EXPENSE'!E458=0,\"\",'3 INCOME & EXPENSE'!E458)","v":""},{"$f":"T('3 INCOME & EXPENSE'!G458)","v":""},{"$f":"'3 INCOME & EXPENSE'!M458","v":{"v":0,"d":"0.0"}},{"$f":"'3 INCOME & EXPENSE'!N458","v":{"v":0,"d":"$0.00"}},{"$f":"'3 INCOME & EXPENSE'!O458","v":{"v":0,"d":"$0.00"}},585,{"$f":"'3 INCOME & EXPENSE'!Z458","v":31},31000,31031,0]
[null,null,{"$f":"IF('3 INCOME & EXPENSE'!E459=0,\"\",'3 INCOME & EXPENSE'!E459)","v":""},{"$f":"T('3 INCOME & EXPENSE'!G459)","v":""},{"$f":"'3 INCOME & EXPENSE'!M459","v":{"v":0,"d":"0.0"}},{"$f":"'3 INCOME & EXPENSE'!N459","v":{"v":0,"d":"$0.00"}},{"$f":"'3 INCOME & EXPENSE'!O459","v":{"v":0,"d":"$0.00"}},586,{"$f":"'3 INCOME & EXPENSE'!Z459","v":31},31000,31031,0]
[null,null,{"$f":"IF('3 INCOME & EXPENSE'!E460=0,\"\",'3 INCOME & EXPENSE'!E460)","v":""},{"$f":"T('3 INCOME & EXPENSE'!G460)","v":""},{"$f":"'3 INCOME & EXPENSE'!M460","v":{"v":0,"d":"0.0"}},{"$f":"'3 INCOME & EXPENSE'!N460","v":{"v":0,"d":"$0.00"}},{"$f":"'3 INCOME & EXPENSE'!O460","v":{"v":0,"d":"$0.00"}},587,{"$f":"'3 INCOME & EXPENSE'!Z460","v":31},31000,31031,0]
[null,null,{"$f":"IF('3 INCOME & EXPENSE'!E461=0,\"\",'3 INCOME & EXPENSE'!E461)","v":""},{"$f":"T('3 INCOME & EXPENSE'!G461)","v":""},{"$f":"'3 INCOME & EXPENSE'!M461","v":{"v":0,"d":"0.0"}},{"$f":"'3 INCOME & EXPENSE'!N461","v":{"v":0,"d":"$0.00"}},{"$f":"'3 INCOME & EXPENSE'!O461","v":{"v":0,"d":"$0.00"}},588,{"$f":"'3 INCOME & EXPENSE'!Z461","v":31},31000,31031,0]
[null,null,{"$f":"IF('3 INCOME & EXPENSE'!E462=0,\"\",'3 INCOME & EXPENSE'!E462)","v":""},{"$f":"T('3 INCOME & EXPENSE'!G462)","v":""},{"$f":"'3 INCOME & EXPENSE'!M462","v":{"v":0,"d":"0.0"}},{"$f":"'3 INCOME & EXPENSE'!N462","v":{"v":0,"d":"$0.00"}},{"$f":"'3 INCOME & EXPENSE'!O462","v":{"v":0,"d":"$0.00"}},589,{"$f":"'3 INCOME & EXPENSE'!Z462","v":31},{"$f":"VLOOKUP(I600,$J$939:$K$969,2)","v":31000},31031,{"$f":"K600*E600","v":0}]
[null,null,{"$f":"IF('3 INCOME & EXPENSE'!E463=0,\"\",'3 INCOME & EXPENSE'!E463)","v":""},{"$f":"T('3 INCOME & EXPENSE'!G463)","v":""},{"$f":"'3 INCOME & EXPENSE'!M463","v":{"v":0,"d":"0.0"}},{"$f":"'3 INCOME & EXPENSE'!N463","v":{"v":0,"d":"$0.00"}},{"$f":"'3 INCOME & EXPENSE'!O463","v":{"v":0,"d":"$0.00"}},590,{"$f":"'3 INCOME & EXPENSE'!Z463","v":31},31000,31031,0]
[null,null,{"$f":"IF('3 INCOME & EXPENSE'!E464=0,\"\",'3 INCOME & EXPENSE'!E464)","v":""},{"$f":"T('3 INCOME & EXPENSE'!G464)","v":""},{"$f":"'3 INCOME & EXPENSE'!M464","v":{"v":0,"d":"0.0"}},{"$f":"'3 INCOME & EXPENSE'!N464","v":{"v":0,"d":"$0.00"}},{"$f":"'3 INCOME & EXPENSE'!O464","v":{"v":0,"d":"$0.00"}},591,{"$f":"'3 INCOME & EXPENSE'!Z464","v":31},31000,31031,0]
[null,null,{"$f":"IF('3 INCOME & EXPENSE'!E465=0,\"\",'3 INCOME & EXPENSE'!E465)","v":""},{"$f":"T('3 INCOME & EXPENSE'!G465)","v":""},{"$f":"'3 INCOME & EXPENSE'!M465","v":{"v":0,"d":"0.0"}},{"$f":"'3 INCOME & EXPENSE'!N465","v":{"v":0,"d":"$0.00"}},{"$f":"'3 INCOME & EXPENSE'!O465","v":{"v":0,"d":"$0.00"}},592,{"$f":"'3 INCOME & EXPENSE'!Z465","v":31},31000,31031,0]
[null,null,{"$f":"IF('3 INCOME & EXPENSE'!E466=0,\"\",'3 INCOME & EXPENSE'!E466)","v":""},{"$f":"T('3 INCOME & EXPENSE'!G466)","v":""},{"$f":"'3 INCOME & EXPENSE'!M466","v":{"v":0,"d":"0.0"}},{"$f":"'3 INCOME & EXPENSE'!N466","v":{"v":0,"d":"$0.00"}},{"$f":"'3 INCOME & EXPENSE'!O466","v":{"v":0,"d":"$0.00"}},593,{"$f":"'3 INCOME & EXPENSE'!Z466","v":31},31000,31031,0]
[null,null,{"$f":"IF('3 INCOME & EXPENSE'!E467=0,\"\",'3 INCOME & EXPENSE'!E467)","v":""},{"$f":"T('3 INCOME & EXPENSE'!G467)","v":""},{"$f":"'3 INCOME & EXPENSE'!M467","v":{"v":0,"d":"0.0"}},{"$f":"'3 INCOME & EXPENSE'!N467","v":{"v":0,"d":"$0.00"}},{"$f":"'3 INCOME & EXPENSE'!O467","v":{"v":0,"d":"$0.00"}},594,{"$f":"'3 INCOME & EXPENSE'!Z467","v":31},31000,31031,0]
[null,null,{"$f":"IF('3 INCOME & EXPENSE'!E468=0,\"\",'3 INCOME & EXPENSE'!E468)","v":""},{"$f":"T('3 INCOME & EXPENSE'!G468)","v":""},{"$f":"'3 INCOME & EXPENSE'!M468","v":{"v":0,"d":"0.0"}},{"$f":"'3 INCOME & EXPENSE'!N468","v":{"v":0,"d":"$0.00"}},{"$f":"'3 INCOME & EXPENSE'!O468","v":{"v":0,"d":"$0.00"}},595,{"$f":"'3 INCOME & EXPENSE'!Z468","v":31},31000,31031,0]
[null,null,{"$f":"IF('3 INCOME & EXPENSE'!E469=0,\"\",'3 INCOME & EXPENSE'!E469)","v":""},{"$f":"T('3 INCOME & EXPENSE'!G469)","v":""},{"$f":"'3 INCOME & EXPENSE'!M469","v":{"v":0,"d":"0.0"}},{"$f":"'3 INCOME & EXPENSE'!N469","v":{"v":0,"d":"$0.00"}},{"$f":"'3 INCOME & EXPENSE'!O469","v":{"v":0,"d":"$0.00"}},596,{"$f":"'3 INCOME & EXPENSE'!Z469","v":31},31000,31031,0]
[null,null,{"$f":"IF('3 INCOME & EXPENSE'!E470=0,\"\",'3 INCOME & EXPENSE'!E470)","v":""},{"$f":"T('3 INCOME & EXPENSE'!G470)","v":""},{"$f":"'3 INCOME & EXPENSE'!M470","v":{"v":0,"d":"0.0"}},{"$f":"'3 INCOME & EXPENSE'!N470","v":{"v":0,"d":"$0.00"}},{"$f":"'3 INCOME & EXPENSE'!O470","v":{"v":0,"d":"$0.00"}},597,{"$f":"'3 INCOME & EXPENSE'!Z470","v":31},31000,31031,0]
[null,null,{"$f":"IF('3 INCOME & EXPENSE'!E471=0,\"\",'3 INCOME & EXPENSE'!E471)","v":""},{"$f":"T('3 INCOME & EXPENSE'!G471)","v":""},{"$f":"'3 INCOME & EXPENSE'!M471","v":{"v":0,"d":"0.0"}},{"$f":"'3 INCOME & EXPENSE'!N471","v":{"v":0,"d":"$0.00"}},{"$f":"'3 INCOME & EXPENSE'!O471","v":{"v":0,"d":"$0.00"}},598,{"$f":"'3 INCOME & EXPENSE'!Z471","v":31},31000,31031,0]
[null,null,{"$f":"IF('3 INCOME & EXPENSE'!E472=0,\"\",'3 INCOME & EXPENSE'!E472)","v":""},{"$f":"T('3 INCOME & EXPENSE'!G472)","v":""},{"$f":"'3 INCOME & EXPENSE'!M472","v":{"v":0,"d":"0.0"}},{"$f":"'3 INCOME & EXPENSE'!N472","v":{"v":0,"d":"$0.00"}},{"$f":"'3 INCOME & EXPENSE'!O472","v":{"v":0,"d":"$0.00"}},599,{"$f":"'3 INCOME & EXPENSE'!Z472","v":31},31000,31031,0]
[null,null,{"$f":"IF('3 INCOME & EXPENSE'!E473=0,\"\",'3 INCOME & EXPENSE'!E473)","v":""},{"$f":"T('3 INCOME & EXPENSE'!G473)","v":""},{"$f":"'3 INCOME & EXPENSE'!M473","v":{"v":0,"d":"0.0"}},{"$f":"'3 INCOME & EXPENSE'!N473","v":{"v":0,"d":"$0.00"}},{"$f":"'3 INCOME & EXPENSE'!O473","v":{"v":0,"d":"$0.00"}},600,{"$f":"'3 INCOME & EXPENSE'!Z473","v":31},31000,31031,0]
[null,null,{"$f":"IF('3 INCOME & EXPENSE'!E474=0,\"\",'3 INCOME & EXPENSE'!E474)","v":""},{"$f":"T('3 INCOME & EXPENSE'!G474)","v":""},{"$f":"'3 INCOME & EXPENSE'!M474","v":{"v":0,"d":"0.0"}},{"$f":"'3 INCOME & EXPENSE'!N474","v":{"v":0,"d":"$0.00"}},{"$f":"'3 INCOME & EXPENSE'!O474","v":{"v":0,"d":"$0.00"}},601,{"$f":"'3 INCOME & EXPENSE'!Z474","v":31},31000,31031,0]
[null,null,{"$f":"IF('3 INCOME & EXPENSE'!E475=0,\"\",'3 INCOME & EXPENSE'!E475)","v":""},{"$f":"T('3 INCOME & EXPENSE'!G475)","v":""},{"$f":"'3 INCOME & EXPENSE'!M475","v":{"v":0,"d":"0.0"}},{"$f":"'3 INCOME & EXPENSE'!N475","v":{"v":0,"d":"$0.00"}},{"$f":"'3 INCOME & EXPENSE'!O475","v":{"v":0,"d":"$0.00"}},602,{"$f":"'3 INCOME & EXPENSE'!Z475","v":31},31000,31031,0]
[null,null,{"$f":"IF('3 INCOME & EXPENSE'!E476=0,\"\",'3 INCOME & EXPENSE'!E476)","v":""},{"$f":"T('3 INCOME & EXPENSE'!G476)","v":""},{"$f":"'3 INCOME & EXPENSE'!M476","v":{"v":0,"d":"0.0"}},{"$f":"'3 INCOME & EXPENSE'!N476","v":{"v":0,"d":"$0.00"}},{"$f":"'3 INCOME & EXPENSE'!O476","v":{"v":0,"d":"$0.00"}},603,{"$f":"'3 INCOME & EXPENSE'!Z476","v":31},31000,31031,0]
[null,null,{"$f":"IF('3 INCOME & EXPENSE'!E477=0,\"\",'3 INCOME & EXPENSE'!E477)","v":""},{"$f":"T('3 INCOME & EXPENSE'!G477)","v":""},{"$f":"'3 INCOME & EXPENSE'!M477","v":{"v":0,"d":"0.0"}},{"$f":"'3 INCOME & EXPENSE'!N477","v":{"v":0,"d":"$0.00"}},{"$f":"'3 INCOME & EXPENSE'!O477","v":{"v":0,"d":"$0.00"}},604,{"$f":"'3 INCOME & EXPENSE'!Z477","v":31},31000,31031,0]
[null,null,{"$f":"IF('3 INCOME & EXPENSE'!E478=0,\"\",'3 INCOME & EXPENSE'!E478)","v":""},{"$f":"T('3 INCOME & EXPENSE'!G478)","v":""},{"$f":"'3 INCOME & EXPENSE'!M478","v":{"v":0,"d":"0.0"}},{"$f":"'3 INCOME & EXPENSE'!N478","v":{"v":0,"d":"$0.00"}},{"$f":"'3 INCOME & EXPENSE'!O478","v":{"v":0,"d":"$0.00"}},605,{"$f":"'3 INCOME & EXPENSE'!Z478","v":31},31000,31031,0]
[null,null,{"$f":"IF('3 INCOME & EXPENSE'!E479=0,\"\",'3 INCOME & EXPENSE'!E479)","v":""},{"$f":"T('3 INCOME & EXPENSE'!G479)","v":""},{"$f":"'3 INCOME & EXPENSE'!M479","v":{"v":0,"d":"0.0"}},{"$f":"'3 INCOME & EXPENSE'!N479","v":{"v":0,"d":"$0.00"}},{"$f":"'3 INCOME & EXPENSE'!O479","v":{"v":0,"d":"$0.00"}},606,{"$f":"'3 INCOME & EXPENSE'!Z479","v":31},31000,31031,0]
[null,null,{"$f":"IF('3 INCOME & EXPENSE'!E480=0,\"\",'3 INCOME & EXPENSE'!E480)","v":""},{"$f":"T('3 INCOME & EXPENSE'!G480)","v":""},{"$f":"'3 INCOME & EXPENSE'!M480","v":{"v":0,"d":"0.0"}},{"$f":"'3 INCOME & EXPENSE'!N480","v":{"v":0,"d":"$0.00"}},{"$f":"'3 INCOME & EXPENSE'!O480","v":{"v":0,"d":"$0.00"}},607,{"$f":"'3 INCOME & EXPENSE'!Z480","v":31},31000,31031,0]
[null,null,{"$f":"IF('3 INCOME & EXPENSE'!E481=0,\"\",'3 INCOME & EXPENSE'!E481)","v":""},{"$f":"T('3 INCOME & EXPENSE'!G481)","v":""},{"$f":"'3 INCOME & EXPENSE'!M481","v":{"v":0,"d":"0.0"}},{"$f":"'3 INCOME & EXPENSE'!N481","v":{"v":0,"d":"$0.00"}},{"$f":"'3 INCOME & EXPENSE'!O481","v":{"v":0,"d":"$0.00"}},608,{"$f":"'3 INCOME & EXPENSE'!Z481","v":31},31000,31031,0]
[null,null,{"$f":"IF('3 INCOME & EXPENSE'!E482=0,\"\",'3 INCOME & EXPENSE'!E482)","v":""},{"$f":"T('3 INCOME & EXPENSE'!G482)","v":""},{"$f":"'3 INCOME & EXPENSE'!M482","v":{"v":0,"d":"0.0"}},{"$f":"'3 INCOME & EXPENSE'!N482","v":{"v":0,"d":"$0.00"}},{"$f":"'3 INCOME & EXPENSE'!O482","v":{"v":0,"d":"$0.00"}},609,{"$f":"'3 INCOME & EXPENSE'!Z482","v":31},31000,31031,0]
[null,null,{"$f":"IF('3 INCOME & EXPENSE'!E483=0,\"\",'3 INCOME & EXPENSE'!E483)","v":""},{"$f":"T('3 INCOME & EXPENSE'!G483)","v":""},{"$f":"'3 INCOME & EXPENSE'!M483","v":{"v":0,"d":"0.0"}},{"$f":"'3 INCOME & EXPENSE'!N483","v":{"v":0,"d":"$0.00"}},{"$f":"'3 INCOME & EXPENSE'!O483","v":{"v":0,"d":"$0.00"}},610,{"$f":"'3 INCOME & EXPENSE'!Z483","v":31},31000,31031,0]
[null,null,{"$f":"IF('3 INCOME & EXPENSE'!E484=0,\"\",'3 INCOME & EXPENSE'!E484)","v":""},{"$f":"T('3 INCOME & EXPENSE'!G484)","v":""},{"$f":"'3 INCOME & EXPENSE'!M484","v":{"v":0,"d":"0.0"}},{"$f":"'3 INCOME & EXPENSE'!N484","v":{"v":0,"d":"$0.00"}},{"$f":"'3 INCOME & EXPENSE'!O484","v":{"v":0,"d":"$0.00"}},611,{"$f":"'3 INCOME & EXPENSE'!Z484","v":31},31000,31031,0]
[null,null,{"$f":"IF('3 INCOME & EXPENSE'!E485=0,\"\",'3 INCOME & EXPENSE'!E485)","v":""},{"$f":"T('3 INCOME & EXPENSE'!G485)","v":""},{"$f":"'3 INCOME & EXPENSE'!M485","v":{"v":0,"d":"0.0"}},{"$f":"'3 INCOME & EXPENSE'!N485","v":{"v":0,"d":"$0.00"}},{"$f":"'3 INCOME & EXPENSE'!O485","v":{"v":0,"d":"$0.00"}},612,{"$f":"'3 INCOME & EXPENSE'!Z485","v":31},31000,31031,0]
[null,null,{"$f":"IF('3 INCOME & EXPENSE'!E486=0,\"\",'3 INCOME & EXPENSE'!E486)","v":""},{"$f":"T('3 INCOME & EXPENSE'!G486)","v":""},{"$f":"'3 INCOME & EXPENSE'!M486","v":{"v":0,"d":"0.0"}},{"$f":"'3 INCOME & EXPENSE'!N486","v":{"v":0,"d":"$0.00"}},{"$f":"'3 INCOME & EXPENSE'!O486","v":{"v":0,"d":"$0.00"}},613,{"$f":"'3 INCOME & EXPENSE'!Z486","v":31},31000,31031,0]
[null,null,{"$f":"IF('3 INCOME & EXPENSE'!E487=0,\"\",'3 INCOME & EXPENSE'!E487)","v":""},{"$f":"T('3 INCOME & EXPENSE'!G487)","v":""},{"$f":"'3 INCOME & EXPENSE'!M487","v":{"v":0,"d":"0.0"}},{"$f":"'3 INCOME & EXPENSE'!N487","v":{"v":0,"d":"$0.00"}},{"$f":"'3 INCOME & EXPENSE'!O487","v":{"v":0,"d":"$0.00"}},614,{"$f":"'3 INCOME & EXPENSE'!Z487","v":31},31000,31031,0]
[null,null,{"$f":"IF('3 INCOME & EXPENSE'!E488=0,\"\",'3 INCOME & EXPENSE'!E488)","v":""},{"$f":"T('3 INCOME & EXPENSE'!G488)","v":""},{"$f":"'3 INCOME & EXPENSE'!M488","v":{"v":0,"d":"0.0"}},{"$f":"'3 INCOME & EXPENSE'!N488","v":{"v":0,"d":"$0.00"}},{"$f":"'3 INCOME & EXPENSE'!O488","v":{"v":0,"d":"$0.00"}},615,{"$f":"'3 INCOME & EXPENSE'!Z488","v":31},31000,31031,0]
[null,null,{"$f":"IF('3 INCOME & EXPENSE'!E489=0,\"\",'3 INCOME & EXPENSE'!E489)","v":""},{"$f":"T('3 INCOME & EXPENSE'!G489)","v":""},{"$f":"'3 INCOME & EXPENSE'!M489","v":{"v":0,"d":"0.0"}},{"$f":"'3 INCOME & EXPENSE'!N489","v":{"v":0,"d":"$0.00"}},{"$f":"'3 INCOME & EXPENSE'!O489","v":{"v":0,"d":"$0.00"}},616,{"$f":"'3 INCOME & EXPENSE'!Z489","v":31},31000,31031,0]
[null,null,{"$f":"IF('3 INCOME & EXPENSE'!E490=0,\"\",'3 INCOME & EXPENSE'!E490)","v":""},{"$f":"T('3 INCOME & EXPENSE'!G490)","v":""},{"$f":"'3 INCOME & EXPENSE'!M490","v":{"v":0,"d":"0.0"}},{"$f":"'3 INCOME & EXPENSE'!N490","v":{"v":0,"d":"$0.00"}},{"$f":"'3 INCOME & EXPENSE'!O490","v":{"v":0,"d":"$0.00"}},617,{"$f":"'3 INCOME & EXPENSE'!Z490","v":31},31000,31031,0]
[null,null,{"$f":"IF('3 INCOME & EXPENSE'!E491=0,\"\",'3 INCOME & EXPENSE'!E491)","v":""},{"$f":"T('3 INCOME & EXPENSE'!G491)","v":""},{"$f":"'3 INCOME & EXPENSE'!M491","v":{"v":0,"d":"0.0"}},{"$f":"'3 INCOME & EXPENSE'!N491","v":{"v":0,"d":"$0.00"}},{"$f":"'3 INCOME & EXPENSE'!O491","v":{"v":0,"d":"$0.00"}},618,{"$f":"'3 INCOME & EXPENSE'!Z491","v":31},31000,31031,0]
[null,null,{"$f":"IF('3 INCOME & EXPENSE'!E492=0,\"\",'3 INCOME & EXPENSE'!E492)","v":""},{"$f":"T('3 INCOME & EXPENSE'!G492)","v":""},{"$f":"'3 INCOME & EXPENSE'!M492","v":{"v":0,"d":"0.0"}},{"$f":"'3 INCOME & EXPENSE'!N492","v":{"v":0,"d":"$0.00"}},{"$f":"'3 INCOME & EXPENSE'!O492","v":{"v":0,"d":"$0.00"}},619,{"$f":"'3 INCOME & EXPENSE'!Z492","v":31},31000,31031,0]
[null,null,{"$f":"IF('3 INCOME & EXPENSE'!E493=0,\"\",'3 INCOME & EXPENSE'!E493)","v":""},{"$f":"T('3 INCOME & EXPENSE'!G493)","v":""},{"$f":"'3 INCOME & EXPENSE'!M493","v":{"v":0,"d":"0.0"}},{"$f":"'3 INCOME & EXPENSE'!N493","v":{"v":0,"d":"$0.00"}},{"$f":"'3 INCOME & EXPENSE'!O493","v":{"v":0,"d":"$0.00"}},620,{"$f":"'3 INCOME & EXPENSE'!Z493","v":31},31000,31031,0]
[null,null,{"$f":"IF('3 INCOME & EXPENSE'!E494=0,\"\",'3 INCOME & EXPENSE'!E494)","v":""},{"$f":"T('3 INCOME & EXPENSE'!G494)","v":""},{"$f":"'3 INCOME & EXPENSE'!M494","v":{"v":0,"d":"0.0"}},{"$f":"'3 INCOME & EXPENSE'!N494","v":{"v":0,"d":"$0.00"}},{"$f":"'3 INCOME & EXPENSE'!O494","v":{"v":0,"d":"$0.00"}},621,{"$f":"'3 INCOME & EXPENSE'!Z494","v":31},31000,31031,0]
[null,null,{"$f":"IF('3 INCOME & EXPENSE'!E495=0,\"\",'3 INCOME & EXPENSE'!E495)","v":""},{"$f":"T('3 INCOME & EXPENSE'!G495)","v":""},{"$f":"'3 INCOME & EXPENSE'!M495","v":{"v":0,"d":"0.0"}},{"$f":"'3 INCOME & EXPENSE'!N495","v":{"v":0,"d":"$0.00"}},{"$f":"'3 INCOME & EXPENSE'!O495","v":{"v":0,"d":"$0.00"}},622,{"$f":"'3 INCOME & EXPENSE'!Z495","v":31},31000,31031,0]
[null,null,{"$f":"IF('3 INCOME & EXPENSE'!E496=0,\"\",'3 INCOME & EXPENSE'!E496)","v":""},{"$f":"T('3 INCOME & EXPENSE'!G496)","v":""},{"$f":"'3 INCOME & EXPENSE'!M496","v":{"v":0,"d":"0.0"}},{"$f":"'3 INCOME & EXPENSE'!N496","v":{"v":0,"d":"$0.00"}},{"$f":"'3 INCOME & EXPENSE'!O496","v":{"v":0,"d":"$0.00"}},623,{"$f":"'3 INCOME & EXPENSE'!Z496","v":31},31000,31031,0]
[null,null,{"$f":"IF('3 INCOME & EXPENSE'!E497=0,\"\",'3 INCOME & EXPENSE'!E497)","v":""},{"$f":"T('3 INCOME & EXPENSE'!G497)","v":""},{"$f":"'3 INCOME & EXPENSE'!M497","v":{"v":0,"d":"0.0"}},{"$f":"'3 INCOME & EXPENSE'!N497","v":{"v":0,"d":"$0.00"}},{"$f":"'3 INCOME & EXPENSE'!O497","v":{"v":0,"d":"$0.00"}},624,{"$f":"'3 INCOME & EXPENSE'!Z497","v":31},31000,31031,0]
[null,null,{"$f":"IF('3 INCOME & EXPENSE'!E498=0,\"\",'3 INCOME & EXPENSE'!E498)","v":""},{"$f":"T('3 INCOME & EXPENSE'!G498)","v":""},{"$f":"'3 INCOME & EXPENSE'!M498","v":{"v":0,"d":"0.0"}},{"$f":"'3 INCOME & EXPENSE'!N498","v":{"v":0,"d":"$0.00"}},{"$f":"'3 INCOME & EXPENSE'!O498","v":{"v":0,"d":"$0.00"}},625,{"$f":"'3 INCOME & EXPENSE'!Z498","v":31},31000,31031,0]
[null,null,{"$f":"IF('3 INCOME & EXPENSE'!E499=0,\"\",'3 INCOME & EXPENSE'!E499)","v":""},{"$f":"T('3 INCOME & EXPENSE'!G499)","v":""},{"$f":"'3 INCOME & EXPENSE'!M499","v":{"v":0,"d":"0.0"}},{"$f":"'3 INCOME & EXPENSE'!N499","v":{"v":0,"d":"$0.00"}},{"$f":"'3 INCOME & EXPENSE'!O499","v":{"v":0,"d":"$0.00"}},626,{"$f":"'3 INCOME & EXPENSE'!Z499","v":31},31000,31031,0]
[null,null,{"$f":"IF('3 INCOME & EXPENSE'!E500=0,\"\",'3 INCOME & EXPENSE'!E500)","v":""},{"$f":"T('3 INCOME & EXPENSE'!G500)","v":""},{"$f":"'3 INCOME & EXPENSE'!M500","v":{"v":0,"d":"0.0"}},{"$f":"'3 INCOME & EXPENSE'!N500","v":{"v":0,"d":"$0.00"}},{"$f":"'3 INCOME & EXPENSE'!O500","v":{"v":0,"d":"$0.00"}},627,{"$f":"'3 INCOME & EXPENSE'!Z500","v":31},31000,31031,0]
[null,null,{"$f":"IF('3 INCOME & EXPENSE'!E501=0,\"\",'3 INCOME & EXPENSE'!E501)","v":""},{"$f":"T('3 INCOME & EXPENSE'!G501)","v":""},{"$f":"'3 INCOME & EXPENSE'!M501","v":{"v":0,"d":"0.0"}},{"$f":"'3 INCOME & EXPENSE'!N501","v":{"v":0,"d":"$0.00"}},{"$f":"'3 INCOME & EXPENSE'!O501","v":{"v":0,"d":"$0.00"}},628,{"$f":"'3 INCOME & EXPENSE'!Z501","v":31},31000,31031,0]
[null,null,{"$f":"IF('3 INCOME & EXPENSE'!E502=0,\"\",'3 INCOME & EXPENSE'!E502)","v":""},{"$f":"T('3 INCOME & EXPENSE'!G502)","v":""},{"$f":"'3 INCOME & EXPENSE'!M502","v":{"v":0,"d":"0.0"}},{"$f":"'3 INCOME & EXPENSE'!N502","v":{"v":0,"d":"$0.00"}},{"$f":"'3 INCOME & EXPENSE'!O502","v":{"v":0,"d":"$0.00"}},629,{"$f":"'3 INCOME & EXPENSE'!Z502","v":31},31000,31031,0]
[null,null,{"$f":"IF('3 INCOME & EXPENSE'!E503=0,\"\",'3 INCOME & EXPENSE'!E503)","v":""},{"$f":"T('3 INCOME & EXPENSE'!G503)","v":""},{"$f":"'3 INCOME & EXPENSE'!M503","v":{"v":0,"d":"0.0"}},{"$f":"'3 INCOME & EXPENSE'!N503","v":{"v":0,"d":"$0.00"}},{"$f":"'3 INCOME & EXPENSE'!O503","v":{"v":0,"d":"$0.00"}},630,{"$f":"'3 INCOME & EXPENSE'!Z503","v":31},31000,31031,0]
[null,null,{"$f":"IF('3 INCOME & EXPENSE'!E504=0,\"\",'3 INCOME & EXPENSE'!E504)","v":""},{"$f":"T('3 INCOME & EXPENSE'!G504)","v":""},{"$f":"'3 INCOME & EXPENSE'!M504","v":{"v":0,"d":"0.0"}},{"$f":"'3 INCOME & EXPENSE'!N504","v":{"v":0,"d":"$0.00"}},{"$f":"'3 INCOME & EXPENSE'!O504","v":{"v":0,"d":"$0.00"}},631,{"$f":"'3 INCOME & EXPENSE'!Z504","v":31},31000,31031,0]
[null,null,{"$f":"IF('3 INCOME & EXPENSE'!E505=0,\"\",'3 INCOME & EXPENSE'!E505)","v":""},{"$f":"T('3 INCOME & EXPENSE'!G505)","v":""},{"$f":"'3 INCOME & EXPENSE'!M505","v":{"v":0,"d":"0.0"}},{"$f":"'3 INCOME & EXPENSE'!N505","v":{"v":0,"d":"$0.00"}},{"$f":"'3 INCOME & EXPENSE'!O505","v":{"v":0,"d":"$0.00"}},632,{"$f":"'3 INCOME & EXPENSE'!Z505","v":31},31000,31031,0]
[null,null,{"$f":"IF('3 INCOME & EXPENSE'!E506=0,\"\",'3 INCOME & EXPENSE'!E506)","v":""},{"$f":"T('3 INCOME & EXPENSE'!G506)","v":""},{"$f":"'3 INCOME & EXPENSE'!M506","v":{"v":0,"d":"0.0"}},{"$f":"'3 INCOME & EXPENSE'!N506","v":{"v":0,"d":"$0.00"}},{"$f":"'3 INCOME & EXPENSE'!O506","v":{"v":0,"d":"$0.00"}},633,{"$f":"'3 INCOME & EXPENSE'!Z506","v":31},31000,31031,0]
[null,null,{"$f":"IF('3 INCOME & EXPENSE'!E507=0,\"\",'3 INCOME & EXPENSE'!E507)","v":""},{"$f":"T('3 INCOME & EXPENSE'!G507)","v":""},{"$f":"'3 INCOME & EXPENSE'!M507","v":{"v":0,"d":"0.0"}},{"$f":"'3 INCOME & EXPENSE'!N507","v":{"v":0,"d":"$0.00"}},{"$f":"'3 INCOME & EXPENSE'!O507","v":{"v":0,"d":"$0.00"}},634,{"$f":"'3 INCOME & EXPENSE'!Z507","v":31},31000,31031,0]
[null,null,{"$f":"IF('3 INCOME & EXPENSE'!E508=0,\"\",'3 INCOME & EXPENSE'!E508)","v":""},{"$f":"T('3 INCOME & EXPENSE'!G508)","v":""},{"$f":"'3 INCOME & EXPENSE'!M508","v":{"v":0,"d":"0.0"}},{"$f":"'3 INCOME & EXPENSE'!N508","v":{"v":0,"d":"$0.00"}},{"$f":"'3 INCOME & EXPENSE'!O508","v":{"v":0,"d":"$0.00"}},635,{"$f":"'3 INCOME & EXPENSE'!Z508","v":31},31000,31031,0]
[null,null,{"$f":"IF('3 INCOME & EXPENSE'!E509=0,\"\",'3 INCOME & EXPENSE'!E509)","v":""},{"$f":"T('3 INCOME & EXPENSE'!G509)","v":""},{"$f":"'3 INCOME & EXPENSE'!M509","v":{"v":0,"d":"0.0"}},{"$f":"'3 INCOME & EXPENSE'!N509","v":{"v":0,"d":"$0.00"}},{"$f":"'3 INCOME & EXPENSE'!O509","v":{"v":0,"d":"$0.00"}},636,{"$f":"'3 INCOME & EXPENSE'!Z509","v":31},31000,31031,0]
[null,null,{"$f":"IF('3 INCOME & EXPENSE'!E510=0,\"\",'3 INCOME & EXPENSE'!E510)","v":""},{"$f":"T('3 INCOME & EXPENSE'!G510)","v":""},{"$f":"'3 INCOME & EXPENSE'!M510","v":{"v":0,"d":"0.0"}},{"$f":"'3 INCOME & EXPENSE'!N510","v":{"v":0,"d":"$0.00"}},{"$f":"'3 INCOME & EXPENSE'!O510","v":{"v":0,"d":"$0.00"}},637,{"$f":"'3 INCOME & EXPENSE'!Z510","v":31},31000,31031,0]
[null,null,{"$f":"IF('3 INCOME & EXPENSE'!E511=0,\"\",'3 INCOME & EXPENSE'!E511)","v":""},{"$f":"T('3 INCOME & EXPENSE'!G511)","v":""},{"$f":"'3 INCOME & EXPENSE'!M511","v":{"v":0,"d":"0.0"}},{"$f":"'3 INCOME & EXPENSE'!N511","v":{"v":0,"d":"$0.00"}},{"$f":"'3 INCOME & EXPENSE'!O511","v":{"v":0,"d":"$0.00"}},638,{"$f":"'3 INCOME & EXPENSE'!Z511","v":31},31000,31031,0]
[null,null,{"$f":"IF('3 INCOME & EXPENSE'!E512=0,\"\",'3 INCOME & EXPENSE'!E512)","v":""},{"$f":"T('3 INCOME & EXPENSE'!G512)","v":""},{"$f":"'3 INCOME & EXPENSE'!M512","v":{"v":0,"d":"0.0"}},{"$f":"'3 INCOME & EXPENSE'!N512","v":{"v":0,"d":"$0.00"}},{"$f":"'3 INCOME & EXPENSE'!O512","v":{"v":0,"d":"$0.00"}},639,{"$f":"'3 INCOME & EXPENSE'!Z512","v":31},31000,31031,0]
[null,null,{"$f":"IF('3 INCOME & EXPENSE'!E513=0,\"\",'3 INCOME & EXPENSE'!E513)","v":""},{"$f":"T('3 INCOME & EXPENSE'!G513)","v":""},{"$f":"'3 INCOME & EXPENSE'!M513","v":{"v":0,"d":"0.0"}},{"$f":"'3 INCOME & EXPENSE'!N513","v":{"v":0,"d":"$0.00"}},{"$f":"'3 INCOME & EXPENSE'!O513","v":{"v":0,"d":"$0.00"}},640,{"$f":"'3 INCOME & EXPENSE'!Z513","v":31},31000,31031,0]
[null,null,{"$f":"IF('3 INCOME & EXPENSE'!E514=0,\"\",'3 INCOME & EXPENSE'!E514)","v":""},{"$f":"T('3 INCOME & EXPENSE'!G514)","v":""},{"$f":"'3 INCOME & EXPENSE'!M514","v":{"v":0,"d":"0.0"}},{"$f":"'3 INCOME & EXPENSE'!N514","v":{"v":0,"d":"$0.00"}},{"$f":"'3 INCOME & EXPENSE'!O514","v":{"v":0,"d":"$0.00"}},641,{"$f":"'3 INCOME & EXPENSE'!Z514","v":31},31000,{"$f":"I652+J652","v":31031},0]
[null,null,{"$f":"IF('3 INCOME & EXPENSE'!E515=0,\"\",'3 INCOME & EXPENSE'!E515)","v":""},{"$f":"T('3 INCOME & EXPENSE'!G515)","v":""},{"$f":"'3 INCOME & EXPENSE'!M515","v":{"v":0,"d":"0.0"}},{"$f":"'3 INCOME & EXPENSE'!N515","v":{"v":0,"d":"$0.00"}},{"$f":"'3 INCOME & EXPENSE'!O515","v":{"v":0,"d":"$0.00"}},642,{"$f":"'3 INCOME & EXPENSE'!Z515","v":31},31000,31031,0]
[null,null,{"$f":"IF('3 INCOME & EXPENSE'!E516=0,\"\",'3 INCOME & EXPENSE'!E516)","v":""},{"$f":"T('3 INCOME & EXPENSE'!G516)","v":""},{"$f":"'3 INCOME & EXPENSE'!M516","v":{"v":0,"d":"0.0"}},{"$f":"'3 INCOME & EXPENSE'!N516","v":{"v":0,"d":"$0.00"}},{"$f":"'3 INCOME & EXPENSE'!O516","v":{"v":0,"d":"$0.00"}},643,{"$f":"'3 INCOME & EXPENSE'!Z516","v":31},31000,31031,0]
[null,null,{"$f":"IF('3 INCOME & EXPENSE'!E517=0,\"\",'3 INCOME & EXPENSE'!E517)","v":""},{"$f":"T('3 INCOME & EXPENSE'!G517)","v":""},{"$f":"'3 INCOME & EXPENSE'!M517","v":{"v":0,"d":"0.0"}},{"$f":"'3 INCOME & EXPENSE'!N517","v":{"v":0,"d":"$0.00"}},{"$f":"'3 INCOME & EXPENSE'!O517","v":{"v":0,"d":"$0.00"}},644,{"$f":"'3 INCOME & EXPENSE'!Z517","v":31},31000,31031,0]
[null,null,{"$f":"IF('3 INCOME & EXPENSE'!E518=0,\"\",'3 INCOME & EXPENSE'!E518)","v":""},{"$f":"T('3 INCOME & EXPENSE'!G518)","v":""},{"$f":"'3 INCOME & EXPENSE'!M518","v":{"v":0,"d":"0.0"}},{"$f":"'3 INCOME & EXPENSE'!N518","v":{"v":0,"d":"$0.00"}},{"$f":"'3 INCOME & EXPENSE'!O518","v":{"v":0,"d":"$0.00"}},645,{"$f":"'3 INCOME & EXPENSE'!Z518","v":31},31000,31031,0]
[null,null,{"$f":"IF('3 INCOME & EXPENSE'!E519=0,\"\",'3 INCOME & EXPENSE'!E519)","v":""},{"$f":"T('3 INCOME & EXPENSE'!G519)","v":""},{"$f":"'3 INCOME & EXPENSE'!M519","v":{"v":0,"d":"0.0"}},{"$f":"'3 INCOME & EXPENSE'!N519","v":{"v":0,"d":"$0.00"}},{"$f":"'3 INCOME & EXPENSE'!O519","v":{"v":0,"d":"$0.00"}},646,{"$f":"'3 INCOME & EXPENSE'!Z519","v":31},31000,31031,0]
[null,null,{"$f":"IF('3 INCOME & EXPENSE'!E520=0,\"\",'3 INCOME & EXPENSE'!E520)","v":""},{"$f":"T('3 INCOME & EXPENSE'!G520)","v":""},{"$f":"'3 INCOME & EXPENSE'!M520","v":{"v":0,"d":"0.0"}},{"$f":"'3 INCOME & EXPENSE'!N520","v":{"v":0,"d":"$0.00"}},{"$f":"'3 INCOME & EXPENSE'!O520","v":{"v":0,"d":"$0.00"}},647,{"$f":"'3 INCOME & EXPENSE'!Z520","v":31},31000,31031,0]
[null,null,{"$f":"IF('3 INCOME & EXPENSE'!E521=0,\"\",'3 INCOME & EXPENSE'!E521)","v":""},{"$f":"T('3 INCOME & EXPENSE'!G521)","v":""},{"$f":"'3 INCOME & EXPENSE'!M521","v":{"v":0,"d":"0.0"}},{"$f":"'3 INCOME & EXPENSE'!N521","v":{"v":0,"d":"$0.00"}},{"$f":"'3 INCOME & EXPENSE'!O521","v":{"v":0,"d":"$0.00"}},648,{"$f":"'3 INCOME & EXPENSE'!Z521","v":31},31000,31031,0]
[null,null,{"$f":"IF('3 INCOME & EXPENSE'!E522=0,\"\",'3 INCOME & EXPENSE'!E522)","v":""},{"$f":"T('3 INCOME & EXPENSE'!G522)","v":""},{"$f":"'3 INCOME & EXPENSE'!M522","v":{"v":0,"d":"0.0"}},{"$f":"'3 INCOME & EXPENSE'!N522","v":{"v":0,"d":"$0.00"}},{"$f":"'3 INCOME & EXPENSE'!O522","v":{"v":0,"d":"$0.00"}},649,{"$f":"'3 INCOME & EXPENSE'!Z522","v":31},31000,31031,0]
[null,null,{"$f":"IF('3 INCOME & EXPENSE'!E523=0,\"\",'3 INCOME & EXPENSE'!E523)","v":""},{"$f":"T('3 INCOME & EXPENSE'!G523)","v":""},{"$f":"'3 INCOME & EXPENSE'!M523","v":{"v":0,"d":"0.0"}},{"$f":"'3 INCOME & EXPENSE'!N523","v":{"v":0,"d":"$0.00"}},{"$f":"'3 INCOME & EXPENSE'!O523","v":{"v":0,"d":"$0.00"}},650,{"$f":"'3 INCOME & EXPENSE'!Z523","v":31},31000,31031,0]
[null,null,{"$f":"IF('3 INCOME & EXPENSE'!E524=0,\"\",'3 INCOME & EXPENSE'!E524)","v":""},{"$f":"T('3 INCOME & EXPENSE'!G524)","v":""},{"$f":"'3 INCOME & EXPENSE'!M524","v":{"v":0,"d":"0.0"}},{"$f":"'3 INCOME & EXPENSE'!N524","v":{"v":0,"d":"$0.00"}},{"$f":"'3 INCOME & EXPENSE'!O524","v":{"v":0,"d":"$0.00"}},651,{"$f":"'3 INCOME & EXPENSE'!Z524","v":31},31000,31031,0]
[null,null,{"$f":"IF('3 INCOME & EXPENSE'!E525=0,\"\",'3 INCOME & EXPENSE'!E525)","v":""},{"$f":"T('3 INCOME & EXPENSE'!G525)","v":""},{"$f":"'3 INCOME & EXPENSE'!M525","v":{"v":0,"d":"0.0"}},{"$f":"'3 INCOME & EXPENSE'!N525","v":{"v":0,"d":"$0.00"}},{"$f":"'3 INCOME & EXPENSE'!O525","v":{"v":0,"d":"$0.00"}},652,{"$f":"'3 INCOME & EXPENSE'!Z525","v":31},31000,31031,0]
[null,null,{"$f":"IF('3 INCOME & EXPENSE'!E526=0,\"\",'3 INCOME & EXPENSE'!E526)","v":""},{"$f":"T('3 INCOME & EXPENSE'!G526)","v":""},{"$f":"'3 INCOME & EXPENSE'!M526","v":{"v":0,"d":"0.0"}},{"$f":"'3 INCOME & EXPENSE'!N526","v":{"v":0,"d":"$0.00"}},{"$f":"'3 INCOME & EXPENSE'!O526","v":{"v":0,"d":"$0.00"}},653,{"$f":"'3 INCOME & EXPENSE'!Z526","v":31},{"$f":"VLOOKUP(I664,$J$939:$K$969,2)","v":31000},31031,{"$f":"K664*E664","v":0}]
[null,null,{"$f":"IF('3 INCOME & EXPENSE'!E527=0,\"\",'3 INCOME & EXPENSE'!E527)","v":""},{"$f":"T('3 INCOME & EXPENSE'!G527)","v":""},{"$f":"'3 INCOME & EXPENSE'!M527","v":{"v":0,"d":"0.0"}},{"$f":"'3 INCOME & EXPENSE'!N527","v":{"v":0,"d":"$0.00"}},{"$f":"'3 INCOME & EXPENSE'!O527","v":{"v":0,"d":"$0.00"}},654,{"$f":"'3 INCOME & EXPENSE'!Z527","v":31},31000,31031,0]
[null,null,{"$f":"IF('3 INCOME & EXPENSE'!E528=0,\"\",'3 INCOME & EXPENSE'!E528)","v":""},{"$f":"T('3 INCOME & EXPENSE'!G528)","v":""},{"$f":"'3 INCOME & EXPENSE'!M528","v":{"v":0,"d":"0.0"}},{"$f":"'3 INCOME & EXPENSE'!N528","v":{"v":0,"d":"$0.00"}},{"$f":"'3 INCOME & EXPENSE'!O528","v":{"v":0,"d":"$0.00"}},655,{"$f":"'3 INCOME & EXPENSE'!Z528","v":31},31000,31031,0]
[null,null,{"$f":"IF('3 INCOME & EXPENSE'!E529=0,\"\",'3 INCOME & EXPENSE'!E529)","v":""},{"$f":"T('3 INCOME & EXPENSE'!G529)","v":""},{"$f":"'3 INCOME & EXPENSE'!M529","v":{"v":0,"d":"0.0"}},{"$f":"'3 INCOME & EXPENSE'!N529","v":{"v":0,"d":"$0.00"}},{"$f":"'3 INCOME & EXPENSE'!O529","v":{"v":0,"d":"$0.00"}},656,{"$f":"'3 INCOME & EXPENSE'!Z529","v":31},31000,31031,0]
[null,null,{"$f":"IF('3 INCOME & EXPENSE'!E530=0,\"\",'3 INCOME & EXPENSE'!E530)","v":""},{"$f":"T('3 INCOME & EXPENSE'!G530)","v":""},{"$f":"'3 INCOME & EXPENSE'!M530","v":{"v":0,"d":"0.0"}},{"$f":"'3 INCOME & EXPENSE'!N530","v":{"v":0,"d":"$0.00"}},{"$f":"'3 INCOME & EXPENSE'!O530","v":{"v":0,"d":"$0.00"}},657,{"$f":"'3 INCOME & EXPENSE'!Z530","v":31},31000,31031,0]
[null,null,{"$f":"IF('3 INCOME & EXPENSE'!E531=0,\"\",'3 INCOME & EXPENSE'!E531)","v":""},{"$f":"T('3 INCOME & EXPENSE'!G531)","v":""},{"$f":"'3 INCOME & EXPENSE'!M531","v":{"v":0,"d":"0.0"}},{"$f":"'3 INCOME & EXPENSE'!N531","v":{"v":0,"d":"$0.00"}},{"$f":"'3 INCOME & EXPENSE'!O531","v":{"v":0,"d":"$0.00"}},658,{"$f":"'3 INCOME & EXPENSE'!Z531","v":31},31000,31031,0]
[null,null,{"$f":"IF('3 INCOME & EXPENSE'!E532=0,\"\",'3 INCOME & EXPENSE'!E532)","v":""},{"$f":"T('3 INCOME & EXPENSE'!G532)","v":""},{"$f":"'3 INCOME & EXPENSE'!M532","v":{"v":0,"d":"0.0"}},{"$f":"'3 INCOME & EXPENSE'!N532","v":{"v":0,"d":"$0.00"}},{"$f":"'3 INCOME & EXPENSE'!O532","v":{"v":0,"d":"$0.00"}},659,{"$f":"'3 INCOME & EXPENSE'!Z532","v":31},31000,31031,0]
[null,null,{"$f":"IF('3 INCOME & EXPENSE'!E533=0,\"\",'3 INCOME & EXPENSE'!E533)","v":""},{"$f":"T('3 INCOME & EXPENSE'!G533)","v":""},{"$f":"'3 INCOME & EXPENSE'!M533","v":{"v":0,"d":"0.0"}},{"$f":"'3 INCOME & EXPENSE'!N533","v":{"v":0,"d":"$0.00"}},{"$f":"'3 INCOME & EXPENSE'!O533","v":{"v":0,"d":"$0.00"}},660,{"$f":"'3 INCOME & EXPENSE'!Z533","v":31},31000,31031,0]
[null,null,{"$f":"IF('3 INCOME & EXPENSE'!E534=0,\"\",'3 INCOME & EXPENSE'!E534)","v":""},{"$f":"T('3 INCOME & EXPENSE'!G534)","v":""},{"$f":"'3 INCOME & EXPENSE'!M534","v":{"v":0,"d":"0.0"}},{"$f":"'3 INCOME & EXPENSE'!N534","v":{"v":0,"d":"$0.00"}},{"$f":"'3 INCOME & EXPENSE'!O534","v":{"v":0,"d":"$0.00"}},661,{"$f":"'3 INCOME & EXPENSE'!Z534","v":31},31000,31031,0]
[null,null,{"$f":"IF('3 INCOME & EXPENSE'!E535=0,\"\",'3 INCOME & EXPENSE'!E535)","v":""},{"$f":"T('3 INCOME & EXPENSE'!G535)","v":""},{"$f":"'3 INCOME & EXPENSE'!M535","v":{"v":0,"d":"0.0"}},{"$f":"'3 INCOME & EXPENSE'!N535","v":{"v":0,"d":"$0.00"}},{"$f":"'3 INCOME & EXPENSE'!O535","v":{"v":0,"d":"$0.00"}},662,{"$f":"'3 INCOME & EXPENSE'!Z535","v":31},31000,31031,0]
[null,null,{"$f":"IF('3 INCOME & EXPENSE'!E536=0,\"\",'3 INCOME & EXPENSE'!E536)","v":""},{"$f":"T('3 INCOME & EXPENSE'!G536)","v":""},{"$f":"'3 INCOME & EXPENSE'!M536","v":{"v":0,"d":"0.0"}},{"$f":"'3 INCOME & EXPENSE'!N536","v":{"v":0,"d":"$0.00"}},{"$f":"'3 INCOME & EXPENSE'!O536","v":{"v":0,"d":"$0.00"}},663,{"$f":"'3 INCOME & EXPENSE'!Z536","v":31},31000,31031,0]
[null,null,{"$f":"IF('3 INCOME & EXPENSE'!E537=0,\"\",'3 INCOME & EXPENSE'!E537)","v":""},{"$f":"T('3 INCOME & EXPENSE'!G537)","v":""},{"$f":"'3 INCOME & EXPENSE'!M537","v":{"v":0,"d":"0.0"}},{"$f":"'3 INCOME & EXPENSE'!N537","v":{"v":0,"d":"$0.00"}},{"$f":"'3 INCOME & EXPENSE'!O537","v":{"v":0,"d":"$0.00"}},664,{"$f":"'3 INCOME & EXPENSE'!Z537","v":31},31000,31031,0]
[null,null,{"$f":"IF('3 INCOME & EXPENSE'!E538=0,\"\",'3 INCOME & EXPENSE'!E538)","v":""},{"$f":"T('3 INCOME & EXPENSE'!G538)","v":""},{"$f":"'3 INCOME & EXPENSE'!M538","v":{"v":0,"d":"0.0"}},{"$f":"'3 INCOME & EXPENSE'!N538","v":{"v":0,"d":"$0.00"}},{"$f":"'3 INCOME & EXPENSE'!O538","v":{"v":0,"d":"$0.00"}},665,{"$f":"'3 INCOME & EXPENSE'!Z538","v":31},31000,31031,0]
[null,null,{"$f":"IF('3 INCOME & EXPENSE'!E539=0,\"\",'3 INCOME & EXPENSE'!E539)","v":""},{"$f":"T('3 INCOME & EXPENSE'!G539)","v":""},{"$f":"'3 INCOME & EXPENSE'!M539","v":{"v":0,"d":"0.0"}},{"$f":"'3 INCOME & EXPENSE'!N539","v":{"v":0,"d":"$0.00"}},{"$f":"'3 INCOME & EXPENSE'!O539","v":{"v":0,"d":"$0.00"}},666,{"$f":"'3 INCOME & EXPENSE'!Z539","v":31},31000,31031,0]
[null,null,{"$f":"IF('3 INCOME & EXPENSE'!E540=0,\"\",'3 INCOME & EXPENSE'!E540)","v":""},{"$f":"T('3 INCOME & EXPENSE'!G540)","v":""},{"$f":"'3 INCOME & EXPENSE'!M540","v":{"v":0,"d":"0.0"}},{"$f":"'3 INCOME & EXPENSE'!N540","v":{"v":0,"d":"$0.00"}},{"$f":"'3 INCOME & EXPENSE'!O540","v":{"v":0,"d":"$0.00"}},667,{"$f":"'3 INCOME & EXPENSE'!Z540","v":31},31000,31031,0]
[null,null,{"$f":"IF('3 INCOME & EXPENSE'!E541=0,\"\",'3 INCOME & EXPENSE'!E541)","v":""},{"$f":"T('3 INCOME & EXPENSE'!G541)","v":""},{"$f":"'3 INCOME & EXPENSE'!M541","v":{"v":0,"d":"0.0"}},{"$f":"'3 INCOME & EXPENSE'!N541","v":{"v":0,"d":"$0.00"}},{"$f":"'3 INCOME & EXPENSE'!O541","v":{"v":0,"d":"$0.00"}},668,{"$f":"'3 INCOME & EXPENSE'!Z541","v":31},31000,31031,0]
[null,null,{"$f":"IF('3 INCOME & EXPENSE'!E542=0,\"\",'3 INCOME & EXPENSE'!E542)","v":""},{"$f":"T('3 INCOME & EXPENSE'!G542)","v":""},{"$f":"'3 INCOME & EXPENSE'!M542","v":{"v":0,"d":"0.0"}},{"$f":"'3 INCOME & EXPENSE'!N542","v":{"v":0,"d":"$0.00"}},{"$f":"'3 INCOME & EXPENSE'!O542","v":{"v":0,"d":"$0.00"}},669,{"$f":"'3 INCOME & EXPENSE'!Z542","v":31},31000,31031,0]
[null,null,{"$f":"IF('3 INCOME & EXPENSE'!E543=0,\"\",'3 INCOME & EXPENSE'!E543)","v":""},{"$f":"T('3 INCOME & EXPENSE'!G543)","v":""},{"$f":"'3 INCOME & EXPENSE'!M543","v":{"v":0,"d":"0.0"}},{"$f":"'3 INCOME & EXPENSE'!N543","v":{"v":0,"d":"$0.00"}},{"$f":"'3 INCOME & EXPENSE'!O543","v":{"v":0,"d":"$0.00"}},670,{"$f":"'3 INCOME & EXPENSE'!Z543","v":31},31000,31031,0]
[null,null,{"$f":"IF('3 INCOME & EXPENSE'!E544=0,\"\",'3 INCOME & EXPENSE'!E544)","v":""},{"$f":"T('3 INCOME & EXPENSE'!G544)","v":""},{"$f":"'3 INCOME & EXPENSE'!M544","v":{"v":0,"d":"0.0"}},{"$f":"'3 INCOME & EXPENSE'!N544","v":{"v":0,"d":"$0.00"}},{"$f":"'3 INCOME & EXPENSE'!O544","v":{"v":0,"d":"$0.00"}},671,{"$f":"'3 INCOME & EXPENSE'!Z544","v":31},31000,31031,0]
[null,null,{"$f":"IF('3 INCOME & EXPENSE'!E545=0,\"\",'3 INCOME & EXPENSE'!E545)","v":""},{"$f":"T('3 INCOME & EXPENSE'!G545)","v":""},{"$f":"'3 INCOME & EXPENSE'!M545","v":{"v":0,"d":"0.0"}},{"$f":"'3 INCOME & EXPENSE'!N545","v":{"v":0,"d":"$0.00"}},{"$f":"'3 INCOME & EXPENSE'!O545","v":{"v":0,"d":"$0.00"}},672,{"$f":"'3 INCOME & EXPENSE'!Z545","v":31},31000,31031,0]
[null,null,{"$f":"IF('3 INCOME & EXPENSE'!E546=0,\"\",'3 INCOME & EXPENSE'!E546)","v":""},{"$f":"T('3 INCOME & EXPENSE'!G546)","v":""},{"$f":"'3 INCOME & EXPENSE'!M546","v":{"v":0,"d":"0.0"}},{"$f":"'3 INCOME & EXPENSE'!N546","v":{"v":0,"d":"$0.00"}},{"$f":"'3 INCOME & EXPENSE'!O546","v":{"v":0,"d":"$0.00"}},673,{"$f":"'3 INCOME & EXPENSE'!Z546","v":31},31000,31031,0]
[null,null,{"$f":"IF('3 INCOME & EXPENSE'!E547=0,\"\",'3 INCOME & EXPENSE'!E547)","v":""},{"$f":"T('3 INCOME & EXPENSE'!G547)","v":""},{"$f":"'3 INCOME & EXPENSE'!M547","v":{"v":0,"d":"0.0"}},{"$f":"'3 INCOME & EXPENSE'!N547","v":{"v":0,"d":"$0.00"}},{"$f":"'3 INCOME & EXPENSE'!O547","v":{"v":0,"d":"$0.00"}},674,{"$f":"'3 INCOME & EXPENSE'!Z547","v":31},31000,31031,0]
[null,null,{"$f":"IF('3 INCOME & EXPENSE'!E548=0,\"\",'3 INCOME & EXPENSE'!E548)","v":""},{"$f":"T('3 INCOME & EXPENSE'!G548)","v":""},{"$f":"'3 INCOME & EXPENSE'!M548","v":{"v":0,"d":"0.0"}},{"$f":"'3 INCOME & EXPENSE'!N548","v":{"v":0,"d":"$0.00"}},{"$f":"'3 INCOME & EXPENSE'!O548","v":{"v":0,"d":"$0.00"}},675,{"$f":"'3 INCOME & EXPENSE'!Z548","v":31},31000,31031,0]
[null,null,{"$f":"IF('3 INCOME & EXPENSE'!E549=0,\"\",'3 INCOME & EXPENSE'!E549)","v":""},{"$f":"T('3 INCOME & EXPENSE'!G549)","v":""},{"$f":"'3 INCOME & EXPENSE'!M549","v":{"v":0,"d":"0.0"}},{"$f":"'3 INCOME & EXPENSE'!N549","v":{"v":0,"d":"$0.00"}},{"$f":"'3 INCOME & EXPENSE'!O549","v":{"v":0,"d":"$0.00"}},676,{"$f":"'3 INCOME & EXPENSE'!Z549","v":31},31000,31031,0]
[null,null,{"$f":"IF('3 INCOME & EXPENSE'!E550=0,\"\",'3 INCOME & EXPENSE'!E550)","v":""},{"$f":"T('3 INCOME & EXPENSE'!G550)","v":""},{"$f":"'3 INCOME & EXPENSE'!M550","v":{"v":0,"d":"0.0"}},{"$f":"'3 INCOME & EXPENSE'!N550","v":{"v":0,"d":"$0.00"}},{"$f":"'3 INCOME & EXPENSE'!O550","v":{"v":0,"d":"$0.00"}},677,{"$f":"'3 INCOME & EXPENSE'!Z550","v":31},31000,31031,0]
[null,null,{"$f":"IF('3 INCOME & EXPENSE'!E551=0,\"\",'3 INCOME & EXPENSE'!E551)","v":""},{"$f":"T('3 INCOME & EXPENSE'!G551)","v":""},{"$f":"'3 INCOME & EXPENSE'!M551","v":{"v":0,"d":"0.0"}},{"$f":"'3 INCOME & EXPENSE'!N551","v":{"v":0,"d":"$0.00"}},{"$f":"'3 INCOME & EXPENSE'!O551","v":{"v":0,"d":"$0.00"}},678,{"$f":"'3 INCOME & EXPENSE'!Z551","v":31},31000,31031,0]
[null,null,{"$f":"IF('3 INCOME & EXPENSE'!E552=0,\"\",'3 INCOME & EXPENSE'!E552)","v":""},{"$f":"T('3 INCOME & EXPENSE'!G552)","v":""},{"$f":"'3 INCOME & EXPENSE'!M552","v":{"v":0,"d":"0.0"}},{"$f":"'3 INCOME & EXPENSE'!N552","v":{"v":0,"d":"$0.00"}},{"$f":"'3 INCOME & EXPENSE'!O552","v":{"v":0,"d":"$0.00"}},679,{"$f":"'3 INCOME & EXPENSE'!Z552","v":31},31000,31031,0]
[null,null,{"$f":"IF('3 INCOME & EXPENSE'!E553=0,\"\",'3 INCOME & EXPENSE'!E553)","v":""},{"$f":"T('3 INCOME & EXPENSE'!G553)","v":""},{"$f":"'3 INCOME & EXPENSE'!M553","v":{"v":0,"d":"0.0"}},{"$f":"'3 INCOME & EXPENSE'!N553","v":{"v":0,"d":"$0.00"}},{"$f":"'3 INCOME & EXPENSE'!O553","v":{"v":0,"d":"$0.00"}},680,{"$f":"'3 INCOME & EXPENSE'!Z553","v":31},31000,31031,0]
[null,null,{"$f":"IF('3 INCOME & EXPENSE'!E554=0,\"\",'3 INCOME & EXPENSE'!E554)","v":""},{"$f":"T('3 INCOME & EXPENSE'!G554)","v":""},{"$f":"'3 INCOME & EXPENSE'!M554","v":{"v":0,"d":"0.0"}},{"$f":"'3 INCOME & EXPENSE'!N554","v":{"v":0,"d":"$0.00"}},{"$f":"'3 INCOME & EXPENSE'!O554","v":{"v":0,"d":"$0.00"}},681,{"$f":"'3 INCOME & EXPENSE'!Z554","v":31},31000,31031,0]
[null,null,{"$f":"IF('3 INCOME & EXPENSE'!E555=0,\"\",'3 INCOME & EXPENSE'!E555)","v":""},{"$f":"T('3 INCOME & EXPENSE'!G555)","v":""},{"$f":"'3 INCOME & EXPENSE'!M555","v":{"v":0,"d":"0.0"}},{"$f":"'3 INCOME & EXPENSE'!N555","v":{"v":0,"d":"$0.00"}},{"$f":"'3 INCOME & EXPENSE'!O555","v":{"v":0,"d":"$0.00"}},682,{"$f":"'3 INCOME & EXPENSE'!Z555","v":31},31000,31031,0]
[null,null,{"$f":"IF('3 INCOME & EXPENSE'!E556=0,\"\",'3 INCOME & EXPENSE'!E556)","v":""},{"$f":"T('3 INCOME & EXPENSE'!G556)","v":""},{"$f":"'3 INCOME & EXPENSE'!M556","v":{"v":0,"d":"0.0"}},{"$f":"'3 INCOME & EXPENSE'!N556","v":{"v":0,"d":"$0.00"}},{"$f":"'3 INCOME & EXPENSE'!O556","v":{"v":0,"d":"$0.00"}},683,{"$f":"'3 INCOME & EXPENSE'!Z556","v":31},31000,31031,0]
[null,null,{"$f":"IF('3 INCOME & EXPENSE'!E557=0,\"\",'3 INCOME & EXPENSE'!E557)","v":""},{"$f":"T('3 INCOME & EXPENSE'!G557)","v":""},{"$f":"'3 INCOME & EXPENSE'!M557","v":{"v":0,"d":"0.0"}},{"$f":"'3 INCOME & EXPENSE'!N557","v":{"v":0,"d":"$0.00"}},{"$f":"'3 INCOME & EXPENSE'!O557","v":{"v":0,"d":"$0.00"}},684,{"$f":"'3 INCOME & EXPENSE'!Z557","v":31},31000,31031,0]
[null,null,{"$f":"IF('3 INCOME & EXPENSE'!E558=0,\"\",'3 INCOME & EXPENSE'!E558)","v":""},{"$f":"T('3 INCOME & EXPENSE'!G558)","v":""},{"$f":"'3 INCOME & EXPENSE'!M558","v":{"v":0,"d":"0.0"}},{"$f":"'3 INCOME & EXPENSE'!N558","v":{"v":0,"d":"$0.00"}},{"$f":"'3 INCOME & EXPENSE'!O558","v":{"v":0,"d":"$0.00"}},685,{"$f":"'3 INCOME & EXPENSE'!Z558","v":31},31000,31031,0]
[null,null,{"$f":"IF('3 INCOME & EXPENSE'!E559=0,\"\",'3 INCOME & EXPENSE'!E559)","v":""},{"$f":"T('3 INCOME & EXPENSE'!G559)","v":""},{"$f":"'3 INCOME & EXPENSE'!M559","v":{"v":0,"d":"0.0"}},{"$f":"'3 INCOME & EXPENSE'!N559","v":{"v":0,"d":"$0.00"}},{"$f":"'3 INCOME & EXPENSE'!O559","v":{"v":0,"d":"$0.00"}},686,{"$f":"'3 INCOME & EXPENSE'!Z559","v":31},31000,31031,0]
[null,null,{"$f":"IF('3 INCOME & EXPENSE'!E560=0,\"\",'3 INCOME & EXPENSE'!E560)","v":""},{"$f":"T('3 INCOME & EXPENSE'!G560)","v":""},{"$f":"'3 INCOME & EXPENSE'!M560","v":{"v":0,"d":"0.0"}},{"$f":"'3 INCOME & EXPENSE'!N560","v":{"v":0,"d":"$0.00"}},{"$f":"'3 INCOME & EXPENSE'!O560","v":{"v":0,"d":"$0.00"}},687,{"$f":"'3 INCOME & EXPENSE'!Z560","v":31},31000,31031,0]
[null,null,{"$f":"IF('3 INCOME & EXPENSE'!E561=0,\"\",'3 INCOME & EXPENSE'!E561)","v":""},{"$f":"T('3 INCOME & EXPENSE'!G561)","v":""},{"$f":"'3 INCOME & EXPENSE'!M561","v":{"v":0,"d":"0.0"}},{"$f":"'3 INCOME & EXPENSE'!N561","v":{"v":0,"d":"$0.00"}},{"$f":"'3 INCOME & EXPENSE'!O561","v":{"v":0,"d":"$0.00"}},688,{"$f":"'3 INCOME & EXPENSE'!Z561","v":31},31000,31031,0]
[null,null,{"$f":"IF('3 INCOME & EXPENSE'!E562=0,\"\",'3 INCOME & EXPENSE'!E562)","v":""},{"$f":"T('3 INCOME & EXPENSE'!G562)","v":""},{"$f":"'3 INCOME & EXPENSE'!M562","v":{"v":0,"d":"0.0"}},{"$f":"'3 INCOME & EXPENSE'!N562","v":{"v":0,"d":"$0.00"}},{"$f":"'3 INCOME & EXPENSE'!O562","v":{"v":0,"d":"$0.00"}},689,{"$f":"'3 INCOME & EXPENSE'!Z562","v":31},31000,31031,0]
[null,null,{"$f":"IF('3 INCOME & EXPENSE'!E563=0,\"\",'3 INCOME & EXPENSE'!E563)","v":""},{"$f":"T('3 INCOME & EXPENSE'!G563)","v":""},{"$f":"'3 INCOME & EXPENSE'!M563","v":{"v":0,"d":"0.0"}},{"$f":"'3 INCOME & EXPENSE'!N563","v":{"v":0,"d":"$0.00"}},{"$f":"'3 INCOME & EXPENSE'!O563","v":{"v":0,"d":"$0.00"}},690,{"$f":"'3 INCOME & EXPENSE'!Z563","v":31},31000,31031,0]
[null,null,{"$f":"IF('3 INCOME & EXPENSE'!E564=0,\"\",'3 INCOME & EXPENSE'!E564)","v":""},{"$f":"T('3 INCOME & EXPENSE'!G564)","v":""},{"$f":"'3 INCOME & EXPENSE'!M564","v":{"v":0,"d":"0.0"}},{"$f":"'3 INCOME & EXPENSE'!N564","v":{"v":0,"d":"$0.00"}},{"$f":"'3 INCOME & EXPENSE'!O564","v":{"v":0,"d":"$0.00"}},691,{"$f":"'3 INCOME & EXPENSE'!Z564","v":31},31000,31031,0]
[null,null,{"$f":"IF('3 INCOME & EXPENSE'!E565=0,\"\",'3 INCOME & EXPENSE'!E565)","v":""},{"$f":"T('3 INCOME & EXPENSE'!G565)","v":""},{"$f":"'3 INCOME & EXPENSE'!M565","v":{"v":0,"d":"0.0"}},{"$f":"'3 INCOME & EXPENSE'!N565","v":{"v":0,"d":"$0.00"}},{"$f":"'3 INCOME & EXPENSE'!O565","v":{"v":0,"d":"$0.00"}},692,{"$f":"'3 INCOME & EXPENSE'!Z565","v":31},31000,31031,0]
[null,null,{"$f":"IF('3 INCOME & EXPENSE'!E566=0,\"\",'3 INCOME & EXPENSE'!E566)","v":""},{"$f":"T('3 INCOME & EXPENSE'!G566)","v":""},{"$f":"'3 INCOME & EXPENSE'!M566","v":{"v":0,"d":"0.0"}},{"$f":"'3 INCOME & EXPENSE'!N566","v":{"v":0,"d":"$0.00"}},{"$f":"'3 INCOME & EXPENSE'!O566","v":{"v":0,"d":"$0.00"}},693,{"$f":"'3 INCOME & EXPENSE'!Z566","v":31},31000,31031,0]
[null,null,{"$f":"IF('3 INCOME & EXPENSE'!E567=0,\"\",'3 INCOME & EXPENSE'!E567)","v":""},{"$f":"T('3 INCOME & EXPENSE'!G567)","v":""},{"$f":"'3 INCOME & EXPENSE'!M567","v":{"v":0,"d":"0.0"}},{"$f":"'3 INCOME & EXPENSE'!N567","v":{"v":0,"d":"$0.00"}},{"$f":"'3 INCOME & EXPENSE'!O567","v":{"v":0,"d":"$0.00"}},694,{"$f":"'3 INCOME & EXPENSE'!Z567","v":31},31000,31031,0]
[null,null,{"$f":"IF('3 INCOME & EXPENSE'!E568=0,\"\",'3 INCOME & EXPENSE'!E568)","v":""},{"$f":"T('3 INCOME & EXPENSE'!G568)","v":""},{"$f":"'3 INCOME & EXPENSE'!M568","v":{"v":0,"d":"0.0"}},{"$f":"'3 INCOME & EXPENSE'!N568","v":{"v":0,"d":"$0.00"}},{"$f":"'3 INCOME & EXPENSE'!O568","v":{"v":0,"d":"$0.00"}},695,{"$f":"'3 INCOME & EXPENSE'!Z568","v":31},31000,31031,0]
[null,null,{"$f":"IF('3 INCOME & EXPENSE'!E569=0,\"\",'3 INCOME & EXPENSE'!E569)","v":""},{"$f":"T('3 INCOME & EXPENSE'!G569)","v":""},{"$f":"'3 INCOME & EXPENSE'!M569","v":{"v":0,"d":"0.0"}},{"$f":"'3 INCOME & EXPENSE'!N569","v":{"v":0,"d":"$0.00"}},{"$f":"'3 INCOME & EXPENSE'!O569","v":{"v":0,"d":"$0.00"}},696,{"$f":"'3 INCOME & EXPENSE'!Z569","v":31},31000,31031,0]
[null,null,{"$f":"IF('3 INCOME & EXPENSE'!E570=0,\"\",'3 INCOME & EXPENSE'!E570)","v":""},{"$f":"T('3 INCOME & EXPENSE'!G570)","v":""},{"$f":"'3 INCOME & EXPENSE'!M570","v":{"v":0,"d":"0.0"}},{"$f":"'3 INCOME & EXPENSE'!N570","v":{"v":0,"d":"$0.00"}},{"$f":"'3 INCOME & EXPENSE'!O570","v":{"v":0,"d":"$0.00"}},697,{"$f":"'3 INCOME & EXPENSE'!Z570","v":31},31000,31031,0]
[null,null,{"$f":"IF('3 INCOME & EXPENSE'!E571=0,\"\",'3 INCOME & EXPENSE'!E571)","v":""},{"$f":"T('3 INCOME & EXPENSE'!G571)","v":""},{"$f":"'3 INCOME & EXPENSE'!M571","v":{"v":0,"d":"0.0"}},{"$f":"'3 INCOME & EXPENSE'!N571","v":{"v":0,"d":"$0.00"}},{"$f":"'3 INCOME & EXPENSE'!O571","v":{"v":0,"d":"$0.00"}},698,{"$f":"'3 INCOME & EXPENSE'!Z571","v":31},31000,31031,0]
[null,null,{"$f":"IF('3 INCOME & EXPENSE'!E572=0,\"\",'3 INCOME & EXPENSE'!E572)","v":""},{"$f":"T('3 INCOME & EXPENSE'!G572)","v":""},{"$f":"'3 INCOME & EXPENSE'!M572","v":{"v":0,"d":"0.0"}},{"$f":"'3 INCOME & EXPENSE'!N572","v":{"v":0,"d":"$0.00"}},{"$f":"'3 INCOME & EXPENSE'!O572","v":{"v":0,"d":"$0.00"}},699,{"$f":"'3 INCOME & EXPENSE'!Z572","v":31},31000,31031,0]
[null,null,{"$f":"IF('3 INCOME & EXPENSE'!E573=0,\"\",'3 INCOME & EXPENSE'!E573)","v":""},{"$f":"T('3 INCOME & EXPENSE'!G573)","v":""},{"$f":"'3 INCOME & EXPENSE'!M573","v":{"v":0,"d":"0.0"}},{"$f":"'3 INCOME & EXPENSE'!N573","v":{"v":0,"d":"$0.00"}},{"$f":"'3 INCOME & EXPENSE'!O573","v":{"v":0,"d":"$0.00"}},700,{"$f":"'3 INCOME & EXPENSE'!Z573","v":31},31000,31031,0]
[null,null,{"$f":"IF('3 INCOME & EXPENSE'!E574=0,\"\",'3 INCOME & EXPENSE'!E574)","v":""},{"$f":"T('3 INCOME & EXPENSE'!G574)","v":""},{"$f":"'3 INCOME & EXPENSE'!M574","v":{"v":0,"d":"0.0"}},{"$f":"'3 INCOME & EXPENSE'!N574","v":{"v":0,"d":"$0.00"}},{"$f":"'3 INCOME & EXPENSE'!O574","v":{"v":0,"d":"$0.00"}},701,{"$f":"'3 INCOME & EXPENSE'!Z574","v":31},31000,31031,0]
[null,null,{"$f":"IF('3 INCOME & EXPENSE'!E575=0,\"\",'3 INCOME & EXPENSE'!E575)","v":""},{"$f":"T('3 INCOME & EXPENSE'!G575)","v":""},{"$f":"'3 INCOME & EXPENSE'!M575","v":{"v":0,"d":"0.0"}},{"$f":"'3 INCOME & EXPENSE'!N575","v":{"v":0,"d":"$0.00"}},{"$f":"'3 INCOME & EXPENSE'!O575","v":{"v":0,"d":"$0.00"}},702,{"$f":"'3 INCOME & EXPENSE'!Z575","v":31},31000,31031,0]
[null,null,{"$f":"IF('3 INCOME & EXPENSE'!E576=0,\"\",'3 INCOME & EXPENSE'!E576)","v":""},{"$f":"T('3 INCOME & EXPENSE'!G576)","v":""},{"$f":"'3 INCOME & EXPENSE'!M576","v":{"v":0,"d":"0.0"}},{"$f":"'3 INCOME & EXPENSE'!N576","v":{"v":0,"d":"$0.00"}},{"$f":"'3 INCOME & EXPENSE'!O576","v":{"v":0,"d":"$0.00"}},703,{"$f":"'3 INCOME & EXPENSE'!Z576","v":31},31000,31031,0]
[null,null,{"$f":"IF('3 INCOME & EXPENSE'!E577=0,\"\",'3 INCOME & EXPENSE'!E577)","v":""},{"$f":"T('3 INCOME & EXPENSE'!G577)","v":""},{"$f":"'3 INCOME & EXPENSE'!M577","v":{"v":0,"d":"0.0"}},{"$f":"'3 INCOME & EXPENSE'!N577","v":{"v":0,"d":"$0.00"}},{"$f":"'3 INCOME & EXPENSE'!O577","v":{"v":0,"d":"$0.00"}},704,{"$f":"'3 INCOME & EXPENSE'!Z577","v":31},31000,31031,0]
[null,null,{"$f":"IF('3 INCOME & EXPENSE'!E578=0,\"\",'3 INCOME & EXPENSE'!E578)","v":""},{"$f":"T('3 INCOME & EXPENSE'!G578)","v":""},{"$f":"'3 INCOME & EXPENSE'!M578","v":{"v":0,"d":"0.0"}},{"$f":"'3 INCOME & EXPENSE'!N578","v":{"v":0,"d":"$0.00"}},{"$f":"'3 INCOME & EXPENSE'!O578","v":{"v":0,"d":"$0.00"}},705,{"$f":"'3 INCOME & EXPENSE'!Z578","v":31},31000,{"$f":"I716+J716","v":31031},0]
[null,null,{"$f":"IF('3 INCOME & EXPENSE'!E579=0,\"\",'3 INCOME & EXPENSE'!E579)","v":""},{"$f":"T('3 INCOME & EXPENSE'!G579)","v":""},{"$f":"'3 INCOME & EXPENSE'!M579","v":{"v":0,"d":"0.0"}},{"$f":"'3 INCOME & EXPENSE'!N579","v":{"v":0,"d":"$0.00"}},{"$f":"'3 INCOME & EXPENSE'!O579","v":{"v":0,"d":"$0.00"}},706,{"$f":"'3 INCOME & EXPENSE'!Z579","v":31},31000,31031,0]
[null,null,{"$f":"IF('3 INCOME & EXPENSE'!E580=0,\"\",'3 INCOME & EXPENSE'!E580)","v":""},{"$f":"T('3 INCOME & EXPENSE'!G580)","v":""},{"$f":"'3 INCOME & EXPENSE'!M580","v":{"v":0,"d":"0.0"}},{"$f":"'3 INCOME & EXPENSE'!N580","v":{"v":0,"d":"$0.00"}},{"$f":"'3 INCOME & EXPENSE'!O580","v":{"v":0,"d":"$0.00"}},707,{"$f":"'3 INCOME & EXPENSE'!Z580","v":31},31000,31031,0]
[null,null,{"$f":"IF('3 INCOME & EXPENSE'!E581=0,\"\",'3 INCOME & EXPENSE'!E581)","v":""},{"$f":"T('3 INCOME & EXPENSE'!G581)","v":""},{"$f":"'3 INCOME & EXPENSE'!M581","v":{"v":0,"d":"0.0"}},{"$f":"'3 INCOME & EXPENSE'!N581","v":{"v":0,"d":"$0.00"}},{"$f":"'3 INCOME & EXPENSE'!O581","v":{"v":0,"d":"$0.00"}},708,{"$f":"'3 INCOME & EXPENSE'!Z581","v":31},31000,31031,0]
[null,null,{"$f":"IF('3 INCOME & EXPENSE'!E582=0,\"\",'3 INCOME & EXPENSE'!E582)","v":""},{"$f":"T('3 INCOME & EXPENSE'!G582)","v":""},{"$f":"'3 INCOME & EXPENSE'!M582","v":{"v":0,"d":"0.0"}},{"$f":"'3 INCOME & EXPENSE'!N582","v":{"v":0,"d":"$0.00"}},{"$f":"'3 INCOME & EXPENSE'!O582","v":{"v":0,"d":"$0.00"}},709,{"$f":"'3 INCOME & EXPENSE'!Z582","v":31},31000,31031,0]
[null,null,{"$f":"IF('3 INCOME & EXPENSE'!E583=0,\"\",'3 INCOME & EXPENSE'!E583)","v":""},{"$f":"T('3 INCOME & EXPENSE'!G583)","v":""},{"$f":"'3 INCOME & EXPENSE'!M583","v":{"v":0,"d":"0.0"}},{"$f":"'3 INCOME & EXPENSE'!N583","v":{"v":0,"d":"$0.00"}},{"$f":"'3 INCOME & EXPENSE'!O583","v":{"v":0,"d":"$0.00"}},710,{"$f":"'3 INCOME & EXPENSE'!Z583","v":31},31000,31031,0]
[null,null,{"$f":"IF('3 INCOME & EXPENSE'!E584=0,\"\",'3 INCOME & EXPENSE'!E584)","v":""},{"$f":"T('3 INCOME & EXPENSE'!G584)","v":""},{"$f":"'3 INCOME & EXPENSE'!M584","v":{"v":0,"d":"0.0"}},{"$f":"'3 INCOME & EXPENSE'!N584","v":{"v":0,"d":"$0.00"}},{"$f":"'3 INCOME & EXPENSE'!O584","v":{"v":0,"d":"$0.00"}},711,{"$f":"'3 INCOME & EXPENSE'!Z584","v":31},31000,31031,0]
[null,null,{"$f":"IF('3 INCOME & EXPENSE'!E585=0,\"\",'3 INCOME & EXPENSE'!E585)","v":""},{"$f":"T('3 INCOME & EXPENSE'!G585)","v":""},{"$f":"'3 INCOME & EXPENSE'!M585","v":{"v":0,"d":"0.0"}},{"$f":"'3 INCOME & EXPENSE'!N585","v":{"v":0,"d":"$0.00"}},{"$f":"'3 INCOME & EXPENSE'!O585","v":{"v":0,"d":"$0.00"}},712,{"$f":"'3 INCOME & EXPENSE'!Z585","v":31},31000,31031,0]
[null,null,{"$f":"IF('3 INCOME & EXPENSE'!E586=0,\"\",'3 INCOME & EXPENSE'!E586)","v":""},{"$f":"T('3 INCOME & EXPENSE'!G586)","v":""},{"$f":"'3 INCOME & EXPENSE'!M586","v":{"v":0,"d":"0.0"}},{"$f":"'3 INCOME & EXPENSE'!N586","v":{"v":0,"d":"$0.00"}},{"$f":"'3 INCOME & EXPENSE'!O586","v":{"v":0,"d":"$0.00"}},713,{"$f":"'3 INCOME & EXPENSE'!Z586","v":31},31000,31031,0]
[null,null,{"$f":"IF('3 INCOME & EXPENSE'!E587=0,\"\",'3 INCOME & EXPENSE'!E587)","v":""},{"$f":"T('3 INCOME & EXPENSE'!G587)","v":""},{"$f":"'3 INCOME & EXPENSE'!M587","v":{"v":0,"d":"0.0"}},{"$f":"'3 INCOME & EXPENSE'!N587","v":{"v":0,"d":"$0.00"}},{"$f":"'3 INCOME & EXPENSE'!O587","v":{"v":0,"d":"$0.00"}},714,{"$f":"'3 INCOME & EXPENSE'!Z587","v":31},31000,31031,0]
[null,null,{"$f":"IF('3 INCOME & EXPENSE'!E588=0,\"\",'3 INCOME & EXPENSE'!E588)","v":""},{"$f":"T('3 INCOME & EXPENSE'!G588)","v":""},{"$f":"'3 INCOME & EXPENSE'!M588","v":{"v":0,"d":"0.0"}},{"$f":"'3 INCOME & EXPENSE'!N588","v":{"v":0,"d":"$0.00"}},{"$f":"'3 INCOME & EXPENSE'!O588","v":{"v":0,"d":"$0.00"}},715,{"$f":"'3 INCOME & EXPENSE'!Z588","v":31},31000,31031,0]
[null,null,{"$f":"IF('3 INCOME & EXPENSE'!E589=0,\"\",'3 INCOME & EXPENSE'!E589)","v":""},{"$f":"T('3 INCOME & EXPENSE'!G589)","v":""},{"$f":"'3 INCOME & EXPENSE'!M589","v":{"v":0,"d":"0.0"}},{"$f":"'3 INCOME & EXPENSE'!N589","v":{"v":0,"d":"$0.00"}},{"$f":"'3 INCOME & EXPENSE'!O589","v":{"v":0,"d":"$0.00"}},716,{"$f":"'3 INCOME & EXPENSE'!Z589","v":31},31000,31031,0]
[null,null,{"$f":"IF('3 INCOME & EXPENSE'!E590=0,\"\",'3 INCOME & EXPENSE'!E590)","v":""},{"$f":"T('3 INCOME & EXPENSE'!G590)","v":""},{"$f":"'3 INCOME & EXPENSE'!M590","v":{"v":0,"d":"0.0"}},{"$f":"'3 INCOME & EXPENSE'!N590","v":{"v":0,"d":"$0.00"}},{"$f":"'3 INCOME & EXPENSE'!O590","v":{"v":0,"d":"$0.00"}},717,{"$f":"'3 INCOME & EXPENSE'!Z590","v":31},{"$f":"VLOOKUP(I728,$J$939:$K$969,2)","v":31000},31031,{"$f":"K728*E728","v":0}]
[null,null,{"$f":"IF('3 INCOME & EXPENSE'!E591=0,\"\",'3 INCOME & EXPENSE'!E591)","v":""},{"$f":"T('3 INCOME & EXPENSE'!G591)","v":""},{"$f":"'3 INCOME & EXPENSE'!M591","v":{"v":0,"d":"0.0"}},{"$f":"'3 INCOME & EXPENSE'!N591","v":{"v":0,"d":"$0.00"}},{"$f":"'3 INCOME & EXPENSE'!O591","v":{"v":0,"d":"$0.00"}},718,{"$f":"'3 INCOME & EXPENSE'!Z591","v":31},31000,31031,0]
[null,null,{"$f":"IF('3 INCOME & EXPENSE'!E592=0,\"\",'3 INCOME & EXPENSE'!E592)","v":""},{"$f":"T('3 INCOME & EXPENSE'!G592)","v":""},{"$f":"'3 INCOME & EXPENSE'!M592","v":{"v":0,"d":"0.0"}},{"$f":"'3 INCOME & EXPENSE'!N592","v":{"v":0,"d":"$0.00"}},{"$f":"'3 INCOME & EXPENSE'!O592","v":{"v":0,"d":"$0.00"}},719,{"$f":"'3 INCOME & EXPENSE'!Z592","v":31},31000,31031,0]
[null,null,{"$f":"IF('3 INCOME & EXPENSE'!E593=0,\"\",'3 INCOME & EXPENSE'!E593)","v":""},{"$f":"T('3 INCOME & EXPENSE'!G593)","v":""},{"$f":"'3 INCOME & EXPENSE'!M593","v":{"v":0,"d":"0.0"}},{"$f":"'3 INCOME & EXPENSE'!N593","v":{"v":0,"d":"$0.00"}},{"$f":"'3 INCOME & EXPENSE'!O593","v":{"v":0,"d":"$0.00"}},720,{"$f":"'3 INCOME & EXPENSE'!Z593","v":31},31000,31031,0]
[null,null,{"$f":"IF('3 INCOME & EXPENSE'!E594=0,\"\",'3 INCOME & EXPENSE'!E594)","v":""},{"$f":"T('3 INCOME & EXPENSE'!G594)","v":""},{"$f":"'3 INCOME & EXPENSE'!M594","v":{"v":0,"d":"0.0"}},{"$f":"'3 INCOME & EXPENSE'!N594","v":{"v":0,"d":"$0.00"}},{"$f":"'3 INCOME & EXPENSE'!O594","v":{"v":0,"d":"$0.00"}},721,{"$f":"'3 INCOME & EXPENSE'!Z594","v":31},31000,31031,0]
[null,null,{"$f":"IF('3 INCOME & EXPENSE'!E595=0,\"\",'3 INCOME & EXPENSE'!E595)","v":""},{"$f":"T('3 INCOME & EXPENSE'!G595)","v":""},{"$f":"'3 INCOME & EXPENSE'!M595","v":{"v":0,"d":"0.0"}},{"$f":"'3 INCOME & EXPENSE'!N595","v":{"v":0,"d":"$0.00"}},{"$f":"'3 INCOME & EXPENSE'!O595","v":{"v":0,"d":"$0.00"}},722,{"$f":"'3 INCOME & EXPENSE'!Z595","v":31},31000,31031,0]
[null,null,{"$f":"IF('3 INCOME & EXPENSE'!E596=0,\"\",'3 INCOME & EXPENSE'!E596)","v":""},{"$f":"T('3 INCOME & EXPENSE'!G596)","v":""},{"$f":"'3 INCOME & EXPENSE'!M596","v":{"v":0,"d":"0.0"}},{"$f":"'3 INCOME & EXPENSE'!N596","v":{"v":0,"d":"$0.00"}},{"$f":"'3 INCOME & EXPENSE'!O596","v":{"v":0,"d":"$0.00"}},723,{"$f":"'3 INCOME & EXPENSE'!Z596","v":31},31000,31031,0]
[null,null,{"$f":"IF('3 INCOME & EXPENSE'!E597=0,\"\",'3 INCOME & EXPENSE'!E597)","v":""},{"$f":"T('3 INCOME & EXPENSE'!G597)","v":""},{"$f":"'3 INCOME & EXPENSE'!M597","v":{"v":0,"d":"0.0"}},{"$f":"'3 INCOME & EXPENSE'!N597","v":{"v":0,"d":"$0.00"}},{"$f":"'3 INCOME & EXPENSE'!O597","v":{"v":0,"d":"$0.00"}},724,{"$f":"'3 INCOME & EXPENSE'!Z597","v":31},31000,31031,0]
[null,null,{"$f":"IF('3 INCOME & EXPENSE'!E598=0,\"\",'3 INCOME & EXPENSE'!E598)","v":""},{"$f":"T('3 INCOME & EXPENSE'!G598)","v":""},{"$f":"'3 INCOME & EXPENSE'!M598","v":{"v":0,"d":"0.0"}},{"$f":"'3 INCOME & EXPENSE'!N598","v":{"v":0,"d":"$0.00"}},{"$f":"'3 INCOME & EXPENSE'!O598","v":{"v":0,"d":"$0.00"}},725,{"$f":"'3 INCOME & EXPENSE'!Z598","v":31},31000,31031,0]
[null,null,{"$f":"IF('3 INCOME & EXPENSE'!E599=0,\"\",'3 INCOME & EXPENSE'!E599)","v":""},{"$f":"T('3 INCOME & EXPENSE'!G599)","v":""},{"$f":"'3 INCOME & EXPENSE'!M599","v":{"v":0,"d":"0.0"}},{"$f":"'3 INCOME & EXPENSE'!N599","v":{"v":0,"d":"$0.00"}},{"$f":"'3 INCOME & EXPENSE'!O599","v":{"v":0,"d":"$0.00"}},726,{"$f":"'3 INCOME & EXPENSE'!Z599","v":31},31000,31031,0]
[null,null,{"$f":"IF('3 INCOME & EXPENSE'!E600=0,\"\",'3 INCOME & EXPENSE'!E600)","v":""},{"$f":"T('3 INCOME & EXPENSE'!G600)","v":""},{"$f":"'3 INCOME & EXPENSE'!M600","v":{"v":0,"d":"0.0"}},{"$f":"'3 INCOME & EXPENSE'!N600","v":{"v":0,"d":"$0.00"}},{"$f":"'3 INCOME & EXPENSE'!O600","v":{"v":0,"d":"$0.00"}},727,{"$f":"'3 INCOME & EXPENSE'!Z600","v":31},31000,31031,0]
[null,null,{"$f":"IF('3 INCOME & EXPENSE'!E601=0,\"\",'3 INCOME & EXPENSE'!E601)","v":""},{"$f":"T('3 INCOME & EXPENSE'!G601)","v":""},{"$f":"'3 INCOME & EXPENSE'!M601","v":{"v":0,"d":"0.0"}},{"$f":"'3 INCOME & EXPENSE'!N601","v":{"v":0,"d":"$0.00"}},{"$f":"'3 INCOME & EXPENSE'!O601","v":{"v":0,"d":"$0.00"}},728,{"$f":"'3 INCOME & EXPENSE'!Z601","v":31},31000,31031,0]
[null,null,{"$f":"IF('3 INCOME & EXPENSE'!E602=0,\"\",'3 INCOME & EXPENSE'!E602)","v":""},{"$f":"T('3 INCOME & EXPENSE'!G602)","v":""},{"$f":"'3 INCOME & EXPENSE'!M602","v":{"v":0,"d":"0.0"}},{"$f":"'3 INCOME & EXPENSE'!N602","v":{"v":0,"d":"$0.00"}},{"$f":"'3 INCOME & EXPENSE'!O602","v":{"v":0,"d":"$0.00"}},729,{"$f":"'3 INCOME & EXPENSE'!Z602","v":31},31000,31031,0]
[null,null,{"$f":"IF('3 INCOME & EXPENSE'!E603=0,\"\",'3 INCOME & EXPENSE'!E603)","v":""},{"$f":"T('3 INCOME & EXPENSE'!G603)","v":""},{"$f":"'3 INCOME & EXPENSE'!M603","v":{"v":0,"d":"0.0"}},{"$f":"'3 INCOME & EXPENSE'!N603","v":{"v":0,"d":"$0.00"}},{"$f":"'3 INCOME & EXPENSE'!O603","v":{"v":0,"d":"$0.00"}},730,{"$f":"'3 INCOME & EXPENSE'!Z603","v":31},31000,31031,0]
[null,null,{"$f":"IF('3 INCOME & EXPENSE'!E604=0,\"\",'3 INCOME & EXPENSE'!E604)","v":""},{"$f":"T('3 INCOME & EXPENSE'!G604)","v":""},{"$f":"'3 INCOME & EXPENSE'!M604","v":{"v":0,"d":"0.0"}},{"$f":"'3 INCOME & EXPENSE'!N604","v":{"v":0,"d":"$0.00"}},{"$f":"'3 INCOME & EXPENSE'!O604","v":{"v":0,"d":"$0.00"}},731,{"$f":"'3 INCOME & EXPENSE'!Z604","v":31},31000,31031,0]
[null,null,{"$f":"IF('3 INCOME & EXPENSE'!E605=0,\"\",'3 INCOME & EXPENSE'!E605)","v":""},{"$f":"T('3 INCOME & EXPENSE'!G605)","v":""},{"$f":"'3 INCOME & EXPENSE'!M605","v":{"v":0,"d":"0.0"}},{"$f":"'3 INCOME & EXPENSE'!N605","v":{"v":0,"d":"$0.00"}},{"$f":"'3 INCOME & EXPENSE'!O605","v":{"v":0,"d":"$0.00"}},732,{"$f":"'3 INCOME & EXPENSE'!Z605","v":31},31000,31031,0]
[null,null,{"$f":"IF('3 INCOME & EXPENSE'!E606=0,\"\",'3 INCOME & EXPENSE'!E606)","v":""},{"$f":"T('3 INCOME & EXPENSE'!G606)","v":""},{"$f":"'3 INCOME & EXPENSE'!M606","v":{"v":0,"d":"0.0"}},{"$f":"'3 INCOME & EXPENSE'!N606","v":{"v":0,"d":"$0.00"}},{"$f":"'3 INCOME & EXPENSE'!O606","v":{"v":0,"d":"$0.00"}},733,{"$f":"'3 INCOME & EXPENSE'!Z606","v":31},31000,31031,0]
[null,null,{"$f":"IF('3 INCOME & EXPENSE'!E607=0,\"\",'3 INCOME & EXPENSE'!E607)","v":""},{"$f":"T('3 INCOME & EXPENSE'!G607)","v":""},{"$f":"'3 INCOME & EXPENSE'!M607","v":{"v":0,"d":"0.0"}},{"$f":"'3 INCOME & EXPENSE'!N607","v":{"v":0,"d":"$0.00"}},{"$f":"'3 INCOME & EXPENSE'!O607","v":{"v":0,"d":"$0.00"}},734,{"$f":"'3 INCOME & EXPENSE'!Z607","v":31},31000,31031,0]
[null,null,{"$f":"IF('3 INCOME & EXPENSE'!E608=0,\"\",'3 INCOME & EXPENSE'!E608)","v":""},{"$f":"T('3 INCOME & EXPENSE'!G608)","v":""},{"$f":"'3 INCOME & EXPENSE'!M608","v":{"v":0,"d":"0.0"}},{"$f":"'3 INCOME & EXPENSE'!N608","v":{"v":0,"d":"$0.00"}},{"$f":"'3 INCOME & EXPENSE'!O608","v":{"v":0,"d":"$0.00"}},735,{"$f":"'3 INCOME & EXPENSE'!Z608","v":31},31000,31031,0]
[null,null,{"$f":"IF('3 INCOME & EXPENSE'!E609=0,\"\",'3 INCOME & EXPENSE'!E609)","v":""},{"$f":"T('3 INCOME & EXPENSE'!G609)","v":""},{"$f":"'3 INCOME & EXPENSE'!M609","v":{"v":0,"d":"0.0"}},{"$f":"'3 INCOME & EXPENSE'!N609","v":{"v":0,"d":"$0.00"}},{"$f":"'3 INCOME & EXPENSE'!O609","v":{"v":0,"d":"$0.00"}},736,{"$f":"'3 INCOME & EXPENSE'!Z609","v":31},31000,31031,0]
[null,null,{"$f":"IF('3 INCOME & EXPENSE'!E610=0,\"\",'3 INCOME & EXPENSE'!E610)","v":""},{"$f":"T('3 INCOME & EXPENSE'!G610)","v":""},{"$f":"'3 INCOME & EXPENSE'!M610","v":{"v":0,"d":"0.0"}},{"$f":"'3 INCOME & EXPENSE'!N610","v":{"v":0,"d":"$0.00"}},{"$f":"'3 INCOME & EXPENSE'!O610","v":{"v":0,"d":"$0.00"}},737,{"$f":"'3 INCOME & EXPENSE'!Z610","v":31},31000,31031,0]
[null,null,{"$f":"IF('3 INCOME & EXPENSE'!E611=0,\"\",'3 INCOME & EXPENSE'!E611)","v":""},{"$f":"T('3 INCOME & EXPENSE'!G611)","v":""},{"$f":"'3 INCOME & EXPENSE'!M611","v":{"v":0,"d":"0.0"}},{"$f":"'3 INCOME & EXPENSE'!N611","v":{"v":0,"d":"$0.00"}},{"$f":"'3 INCOME & EXPENSE'!O611","v":{"v":0,"d":"$0.00"}},738,{"$f":"'3 INCOME & EXPENSE'!Z611","v":31},31000,31031,0]
[null,null,{"$f":"IF('3 INCOME & EXPENSE'!E612=0,\"\",'3 INCOME & EXPENSE'!E612)","v":""},{"$f":"T('3 INCOME & EXPENSE'!G612)","v":""},{"$f":"'3 INCOME & EXPENSE'!M612","v":{"v":0,"d":"0.0"}},{"$f":"'3 INCOME & EXPENSE'!N612","v":{"v":0,"d":"$0.00"}},{"$f":"'3 INCOME & EXPENSE'!O612","v":{"v":0,"d":"$0.00"}},739,{"$f":"'3 INCOME & EXPENSE'!Z612","v":31},31000,31031,0]
[null,null,{"$f":"IF('3 INCOME & EXPENSE'!E613=0,\"\",'3 INCOME & EXPENSE'!E613)","v":""},{"$f":"T('3 INCOME & EXPENSE'!G613)","v":""},{"$f":"'3 INCOME & EXPENSE'!M613","v":{"v":0,"d":"0.0"}},{"$f":"'3 INCOME & EXPENSE'!N613","v":{"v":0,"d":"$0.00"}},{"$f":"'3 INCOME & EXPENSE'!O613","v":{"v":0,"d":"$0.00"}},740,{"$f":"'3 INCOME & EXPENSE'!Z613","v":31},31000,31031,0]
[null,null,{"$f":"IF('3 INCOME & EXPENSE'!E614=0,\"\",'3 INCOME & EXPENSE'!E614)","v":""},{"$f":"T('3 INCOME & EXPENSE'!G614)","v":""},{"$f":"'3 INCOME & EXPENSE'!M614","v":{"v":0,"d":"0.0"}},{"$f":"'3 INCOME & EXPENSE'!N614","v":{"v":0,"d":"$0.00"}},{"$f":"'3 INCOME & EXPENSE'!O614","v":{"v":0,"d":"$0.00"}},741,{"$f":"'3 INCOME & EXPENSE'!Z614","v":31},31000,31031,0]
[null,null,{"$f":"IF('3 INCOME & EXPENSE'!E615=0,\"\",'3 INCOME & EXPENSE'!E615)","v":""},{"$f":"T('3 INCOME & EXPENSE'!G615)","v":""},{"$f":"'3 INCOME & EXPENSE'!M615","v":{"v":0,"d":"0.0"}},{"$f":"'3 INCOME & EXPENSE'!N615","v":{"v":0,"d":"$0.00"}},{"$f":"'3 INCOME & EXPENSE'!O615","v":{"v":0,"d":"$0.00"}},742,{"$f":"'3 INCOME & EXPENSE'!Z615","v":31},31000,31031,0]
[null,null,{"$f":"IF('3 INCOME & EXPENSE'!E616=0,\"\",'3 INCOME & EXPENSE'!E616)","v":""},{"$f":"T('3 INCOME & EXPENSE'!G616)","v":""},{"$f":"'3 INCOME & EXPENSE'!M616","v":{"v":0,"d":"0.0"}},{"$f":"'3 INCOME & EXPENSE'!N616","v":{"v":0,"d":"$0.00"}},{"$f":"'3 INCOME & EXPENSE'!O616","v":{"v":0,"d":"$0.00"}},743,{"$f":"'3 INCOME & EXPENSE'!Z616","v":31},31000,31031,0]
[null,null,{"$f":"IF('3 INCOME & EXPENSE'!E617=0,\"\",'3 INCOME & EXPENSE'!E617)","v":""},{"$f":"T('3 INCOME & EXPENSE'!G617)","v":""},{"$f":"'3 INCOME & EXPENSE'!M617","v":{"v":0,"d":"0.0"}},{"$f":"'3 INCOME & EXPENSE'!N617","v":{"v":0,"d":"$0.00"}},{"$f":"'3 INCOME & EXPENSE'!O617","v":{"v":0,"d":"$0.00"}},744,{"$f":"'3 INCOME & EXPENSE'!Z617","v":31},31000,31031,0]
[null,null,{"$f":"IF('3 INCOME & EXPENSE'!E618=0,\"\",'3 INCOME & EXPENSE'!E618)","v":""},{"$f":"T('3 INCOME & EXPENSE'!G618)","v":""},{"$f":"'3 INCOME & EXPENSE'!M618","v":{"v":0,"d":"0.0"}},{"$f":"'3 INCOME & EXPENSE'!N618","v":{"v":0,"d":"$0.00"}},{"$f":"'3 INCOME & EXPENSE'!O618","v":{"v":0,"d":"$0.00"}},745,{"$f":"'3 INCOME & EXPENSE'!Z618","v":31},31000,31031,0]
[null,null,{"$f":"IF('3 INCOME & EXPENSE'!E619=0,\"\",'3 INCOME & EXPENSE'!E619)","v":""},{"$f":"T('3 INCOME & EXPENSE'!G619)","v":""},{"$f":"'3 INCOME & EXPENSE'!M619","v":{"v":0,"d":"0.0"}},{"$f":"'3 INCOME & EXPENSE'!N619","v":{"v":0,"d":"$0.00"}},{"$f":"'3 INCOME & EXPENSE'!O619","v":{"v":0,"d":"$0.00"}},746,{"$f":"'3 INCOME & EXPENSE'!Z619","v":31},31000,31031,0]
[null,null,{"$f":"IF('3 INCOME & EXPENSE'!E620=0,\"\",'3 INCOME & EXPENSE'!E620)","v":""},{"$f":"T('3 INCOME & EXPENSE'!G620)","v":""},{"$f":"'3 INCOME & EXPENSE'!M620","v":{"v":0,"d":"0.0"}},{"$f":"'3 INCOME & EXPENSE'!N620","v":{"v":0,"d":"$0.00"}},{"$f":"'3 INCOME & EXPENSE'!O620","v":{"v":0,"d":"$0.00"}},747,{"$f":"'3 INCOME & EXPENSE'!Z620","v":31},31000,31031,0]
[null,null,{"$f":"IF('3 INCOME & EXPENSE'!E621=0,\"\",'3 INCOME & EXPENSE'!E621)","v":""},{"$f":"T('3 INCOME & EXPENSE'!G621)","v":""},{"$f":"'3 INCOME & EXPENSE'!M621","v":{"v":0,"d":"0.0"}},{"$f":"'3 INCOME & EXPENSE'!N621","v":{"v":0,"d":"$0.00"}},{"$f":"'3 INCOME & EXPENSE'!O621","v":{"v":0,"d":"$0.00"}},748,{"$f":"'3 INCOME & EXPENSE'!Z621","v":31},31000,31031,0]
[null,null,{"$f":"IF('3 INCOME & EXPENSE'!E622=0,\"\",'3 INCOME & EXPENSE'!E622)","v":""},{"$f":"T('3 INCOME & EXPENSE'!G622)","v":""},{"$f":"'3 INCOME & EXPENSE'!M622","v":{"v":0,"d":"0.0"}},{"$f":"'3 INCOME & EXPENSE'!N622","v":{"v":0,"d":"$0.00"}},{"$f":"'3 INCOME & EXPENSE'!O622","v":{"v":0,"d":"$0.00"}},749,{"$f":"'3 INCOME & EXPENSE'!Z622","v":31},31000,31031,0]
[null,null,{"$f":"IF('3 INCOME & EXPENSE'!E623=0,\"\",'3 INCOME & EXPENSE'!E623)","v":""},{"$f":"T('3 INCOME & EXPENSE'!G623)","v":""},{"$f":"'3 INCOME & EXPENSE'!M623","v":{"v":0,"d":"0.0"}},{"$f":"'3 INCOME & EXPENSE'!N623","v":{"v":0,"d":"$0.00"}},{"$f":"'3 INCOME & EXPENSE'!O623","v":{"v":0,"d":"$0.00"}},750,{"$f":"'3 INCOME & EXPENSE'!Z623","v":31},31000,31031,0]
[null,null,{"$f":"IF('3 INCOME & EXPENSE'!E624=0,\"\",'3 INCOME & EXPENSE'!E624)","v":""},{"$f":"T('3 INCOME & EXPENSE'!G624)","v":""},{"$f":"'3 INCOME & EXPENSE'!M624","v":{"v":0,"d":"0.0"}},{"$f":"'3 INCOME & EXPENSE'!N624","v":{"v":0,"d":"$0.00"}},{"$f":"'3 INCOME & EXPENSE'!O624","v":{"v":0,"d":"$0.00"}},751,{"$f":"'3 INCOME & EXPENSE'!Z624","v":31},31000,31031,0]
[null,null,{"$f":"IF('3 INCOME & EXPENSE'!E625=0,\"\",'3 INCOME & EXPENSE'!E625)","v":""},{"$f":"T('3 INCOME & EXPENSE'!G625)","v":""},{"$f":"'3 INCOME & EXPENSE'!M625","v":{"v":0,"d":"0.0"}},{"$f":"'3 INCOME & EXPENSE'!N625","v":{"v":0,"d":"$0.00"}},{"$f":"'3 INCOME & EXPENSE'!O625","v":{"v":0,"d":"$0.00"}},752,{"$f":"'3 INCOME & EXPENSE'!Z625","v":31},31000,31031,0]
[null,null,{"$f":"IF('3 INCOME & EXPENSE'!E626=0,\"\",'3 INCOME & EXPENSE'!E626)","v":""},{"$f":"T('3 INCOME & EXPENSE'!G626)","v":""},{"$f":"'3 INCOME & EXPENSE'!M626","v":{"v":0,"d":"0.0"}},{"$f":"'3 INCOME & EXPENSE'!N626","v":{"v":0,"d":"$0.00"}},{"$f":"'3 INCOME & EXPENSE'!O626","v":{"v":0,"d":"$0.00"}},753,{"$f":"'3 INCOME & EXPENSE'!Z626","v":31},31000,31031,0]
[null,null,{"$f":"IF('3 INCOME & EXPENSE'!E627=0,\"\",'3 INCOME & EXPENSE'!E627)","v":""},{"$f":"T('3 INCOME & EXPENSE'!G627)","v":""},{"$f":"'3 INCOME & EXPENSE'!M627","v":{"v":0,"d":"0.0"}},{"$f":"'3 INCOME & EXPENSE'!N627","v":{"v":0,"d":"$0.00"}},{"$f":"'3 INCOME & EXPENSE'!O627","v":{"v":0,"d":"$0.00"}},754,{"$f":"'3 INCOME & EXPENSE'!Z627","v":31},31000,31031,0]
[null,null,{"$f":"IF('3 INCOME & EXPENSE'!E628=0,\"\",'3 INCOME & EXPENSE'!E628)","v":""},{"$f":"T('3 INCOME & EXPENSE'!G628)","v":""},{"$f":"'3 INCOME & EXPENSE'!M628","v":{"v":0,"d":"0.0"}},{"$f":"'3 INCOME & EXPENSE'!N628","v":{"v":0,"d":"$0.00"}},{"$f":"'3 INCOME & EXPENSE'!O628","v":{"v":0,"d":"$0.00"}},755,{"$f":"'3 INCOME & EXPENSE'!Z628","v":31},31000,31031,0]
[null,null,{"$f":"IF('3 INCOME & EXPENSE'!E629=0,\"\",'3 INCOME & EXPENSE'!E629)","v":""},{"$f":"T('3 INCOME & EXPENSE'!G629)","v":""},{"$f":"'3 INCOME & EXPENSE'!M629","v":{"v":0,"d":"0.0"}},{"$f":"'3 INCOME & EXPENSE'!N629","v":{"v":0,"d":"$0.00"}},{"$f":"'3 INCOME & EXPENSE'!O629","v":{"v":0,"d":"$0.00"}},756,{"$f":"'3 INCOME & EXPENSE'!Z629","v":31},31000,31031,0]
[null,null,{"$f":"IF('3 INCOME & EXPENSE'!E630=0,\"\",'3 INCOME & EXPENSE'!E630)","v":""},{"$f":"T('3 INCOME & EXPENSE'!G630)","v":""},{"$f":"'3 INCOME & EXPENSE'!M630","v":{"v":0,"d":"0.0"}},{"$f":"'3 INCOME & EXPENSE'!N630","v":{"v":0,"d":"$0.00"}},{"$f":"'3 INCOME & EXPENSE'!O630","v":{"v":0,"d":"$0.00"}},757,{"$f":"'3 INCOME & EXPENSE'!Z630","v":31},31000,31031,0]
[null,null,{"$f":"IF('3 INCOME & EXPENSE'!E631=0,\"\",'3 INCOME & EXPENSE'!E631)","v":""},{"$f":"T('3 INCOME & EXPENSE'!G631)","v":""},{"$f":"'3 INCOME & EXPENSE'!M631","v":{"v":0,"d":"0.0"}},{"$f":"'3 INCOME & EXPENSE'!N631","v":{"v":0,"d":"$0.00"}},{"$f":"'3 INCOME & EXPENSE'!O631","v":{"v":0,"d":"$0.00"}},758,{"$f":"'3 INCOME & EXPENSE'!Z631","v":31},31000,31031,0]
[null,null,{"$f":"IF('3 INCOME & EXPENSE'!E632=0,\"\",'3 INCOME & EXPENSE'!E632)","v":""},{"$f":"T('3 INCOME & EXPENSE'!G632)","v":""},{"$f":"'3 INCOME & EXPENSE'!M632","v":{"v":0,"d":"0.0"}},{"$f":"'3 INCOME & EXPENSE'!N632","v":{"v":0,"d":"$0.00"}},{"$f":"'3 INCOME & EXPENSE'!O632","v":{"v":0,"d":"$0.00"}},759,{"$f":"'3 INCOME & EXPENSE'!Z632","v":31},31000,31031,0]
[null,null,{"$f":"IF('3 INCOME & EXPENSE'!E633=0,\"\",'3 INCOME & EXPENSE'!E633)","v":""},{"$f":"T('3 INCOME & EXPENSE'!G633)","v":""},{"$f":"'3 INCOME & EXPENSE'!M633","v":{"v":0,"d":"0.0"}},{"$f":"'3 INCOME & EXPENSE'!N633","v":{"v":0,"d":"$0.00"}},{"$f":"'3 INCOME & EXPENSE'!O633","v":{"v":0,"d":"$0.00"}},760,{"$f":"'3 INCOME & EXPENSE'!Z633","v":31},31000,31031,0]
[null,null,{"$f":"IF('3 INCOME & EXPENSE'!E634=0,\"\",'3 INCOME & EXPENSE'!E634)","v":""},{"$f":"T('3 INCOME & EXPENSE'!G634)","v":""},{"$f":"'3 INCOME & EXPENSE'!M634","v":{"v":0,"d":"0.0"}},{"$f":"'3 INCOME & EXPENSE'!N634","v":{"v":0,"d":"$0.00"}},{"$f":"'3 INCOME & EXPENSE'!O634","v":{"v":0,"d":"$0.00"}},761,{"$f":"'3 INCOME & EXPENSE'!Z634","v":31},31000,31031,0]
[null,null,{"$f":"IF('3 INCOME & EXPENSE'!E635=0,\"\",'3 INCOME & EXPENSE'!E635)","v":""},{"$f":"T('3 INCOME & EXPENSE'!G635)","v":""},{"$f":"'3 INCOME & EXPENSE'!M635","v":{"v":0,"d":"0.0"}},{"$f":"'3 INCOME & EXPENSE'!N635","v":{"v":0,"d":"$0.00"}},{"$f":"'3 INCOME & EXPENSE'!O635","v":{"v":0,"d":"$0.00"}},762,{"$f":"'3 INCOME & EXPENSE'!Z635","v":31},31000,31031,0]
[null,null,{"$f":"IF('3 INCOME & EXPENSE'!E636=0,\"\",'3 INCOME & EXPENSE'!E636)","v":""},{"$f":"T('3 INCOME & EXPENSE'!G636)","v":""},{"$f":"'3 INCOME & EXPENSE'!M636","v":{"v":0,"d":"0.0"}},{"$f":"'3 INCOME & EXPENSE'!N636","v":{"v":0,"d":"$0.00"}},{"$f":"'3 INCOME & EXPENSE'!O636","v":{"v":0,"d":"$0.00"}},763,{"$f":"'3 INCOME & EXPENSE'!Z636","v":31},31000,31031,0]
[null,null,{"$f":"IF('3 INCOME & EXPENSE'!E637=0,\"\",'3 INCOME & EXPENSE'!E637)","v":""},{"$f":"T('3 INCOME & EXPENSE'!G637)","v":""},{"$f":"'3 INCOME & EXPENSE'!M637","v":{"v":0,"d":"0.0"}},{"$f":"'3 INCOME & EXPENSE'!N637","v":{"v":0,"d":"$0.00"}},{"$f":"'3 INCOME & EXPENSE'!O637","v":{"v":0,"d":"$0.00"}},764,{"$f":"'3 INCOME & EXPENSE'!Z637","v":31},31000,31031,0]
[null,null,{"$f":"IF('3 INCOME & EXPENSE'!E638=0,\"\",'3 INCOME & EXPENSE'!E638)","v":""},{"$f":"T('3 INCOME & EXPENSE'!G638)","v":""},{"$f":"'3 INCOME & EXPENSE'!M638","v":{"v":0,"d":"0.0"}},{"$f":"'3 INCOME & EXPENSE'!N638","v":{"v":0,"d":"$0.00"}},{"$f":"'3 INCOME & EXPENSE'!O638","v":{"v":0,"d":"$0.00"}},765,{"$f":"'3 INCOME & EXPENSE'!Z638","v":31},31000,31031,0]
[null,null,{"$f":"IF('3 INCOME & EXPENSE'!E639=0,\"\",'3 INCOME & EXPENSE'!E639)","v":""},{"$f":"T('3 INCOME & EXPENSE'!G639)","v":""},{"$f":"'3 INCOME & EXPENSE'!M639","v":{"v":0,"d":"0.0"}},{"$f":"'3 INCOME & EXPENSE'!N639","v":{"v":0,"d":"$0.00"}},{"$f":"'3 INCOME & EXPENSE'!O639","v":{"v":0,"d":"$0.00"}},766,{"$f":"'3 INCOME & EXPENSE'!Z639","v":31},31000,31031,0]
[null,null,{"$f":"IF('3 INCOME & EXPENSE'!E640=0,\"\",'3 INCOME & EXPENSE'!E640)","v":""},{"$f":"T('3 INCOME & EXPENSE'!G640)","v":""},{"$f":"'3 INCOME & EXPENSE'!M640","v":{"v":0,"d":"0.0"}},{"$f":"'3 INCOME & EXPENSE'!N640","v":{"v":0,"d":"$0.00"}},{"$f":"'3 INCOME & EXPENSE'!O640","v":{"v":0,"d":"$0.00"}},767,{"$f":"'3 INCOME & EXPENSE'!Z640","v":31},31000,31031,0]
[null,null,{"$f":"IF('3 INCOME & EXPENSE'!E641=0,\"\",'3 INCOME & EXPENSE'!E641)","v":""},{"$f":"T('3 INCOME & EXPENSE'!G641)","v":""},{"$f":"'3 INCOME & EXPENSE'!M641","v":{"v":0,"d":"0.0"}},{"$f":"'3 INCOME & EXPENSE'!N641","v":{"v":0,"d":"$0.00"}},{"$f":"'3 INCOME & EXPENSE'!O641","v":{"v":0,"d":"$0.00"}},768,{"$f":"'3 INCOME & EXPENSE'!Z641","v":31},31000,31031,0]
[null,null,{"$f":"IF('3 INCOME & EXPENSE'!E642=0,\"\",'3 INCOME & EXPENSE'!E642)","v":""},{"$f":"T('3 INCOME & EXPENSE'!G642)","v":""},{"$f":"'3 INCOME & EXPENSE'!M642","v":{"v":0,"d":"0.0"}},{"$f":"'3 INCOME & EXPENSE'!N642","v":{"v":0,"d":"$0.00"}},{"$f":"'3 INCOME & EXPENSE'!O642","v":{"v":0,"d":"$0.00"}},769,{"$f":"'3 INCOME & EXPENSE'!Z642","v":31},31000,{"$f":"I780+J780","v":31031},0]
[null,null,{"$f":"IF('3 INCOME & EXPENSE'!E643=0,\"\",'3 INCOME & EXPENSE'!E643)","v":""},{"$f":"T('3 INCOME & EXPENSE'!G643)","v":""},{"$f":"'3 INCOME & EXPENSE'!M643","v":{"v":0,"d":"0.0"}},{"$f":"'3 INCOME & EXPENSE'!N643","v":{"v":0,"d":"$0.00"}},{"$f":"'3 INCOME & EXPENSE'!O643","v":{"v":0,"d":"$0.00"}},770,{"$f":"'3 INCOME & EXPENSE'!Z643","v":31},31000,31031,0]
[null,null,{"$f":"IF('3 INCOME & EXPENSE'!E644=0,\"\",'3 INCOME & EXPENSE'!E644)","v":""},{"$f":"T('3 INCOME & EXPENSE'!G644)","v":""},{"$f":"'3 INCOME & EXPENSE'!M644","v":{"v":0,"d":"0.0"}},{"$f":"'3 INCOME & EXPENSE'!N644","v":{"v":0,"d":"$0.00"}},{"$f":"'3 INCOME & EXPENSE'!O644","v":{"v":0,"d":"$0.00"}},771,{"$f":"'3 INCOME & EXPENSE'!Z644","v":31},31000,31031,0]
[null,null,{"$f":"IF('3 INCOME & EXPENSE'!E645=0,\"\",'3 INCOME & EXPENSE'!E645)","v":""},{"$f":"T('3 INCOME & EXPENSE'!G645)","v":""},{"$f":"'3 INCOME & EXPENSE'!M645","v":{"v":0,"d":"0.0"}},{"$f":"'3 INCOME & EXPENSE'!N645","v":{"v":0,"d":"$0.00"}},{"$f":"'3 INCOME & EXPENSE'!O645","v":{"v":0,"d":"$0.00"}},772,{"$f":"'3 INCOME & EXPENSE'!Z645","v":31},31000,31031,0]
[null,null,{"$f":"IF('3 INCOME & EXPENSE'!E646=0,\"\",'3 INCOME & EXPENSE'!E646)","v":""},{"$f":"T('3 INCOME & EXPENSE'!G646)","v":""},{"$f":"'3 INCOME & EXPENSE'!M646","v":{"v":0,"d":"0.0"}},{"$f":"'3 INCOME & EXPENSE'!N646","v":{"v":0,"d":"$0.00"}},{"$f":"'3 INCOME & EXPENSE'!O646","v":{"v":0,"d":"$0.00"}},773,{"$f":"'3 INCOME & EXPENSE'!Z646","v":31},31000,31031,0]
[null,null,{"$f":"IF('3 INCOME & EXPENSE'!E647=0,\"\",'3 INCOME & EXPENSE'!E647)","v":""},{"$f":"T('3 INCOME & EXPENSE'!G647)","v":""},{"$f":"'3 INCOME & EXPENSE'!M647","v":{"v":0,"d":"0.0"}},{"$f":"'3 INCOME & EXPENSE'!N647","v":{"v":0,"d":"$0.00"}},{"$f":"'3 INCOME & EXPENSE'!O647","v":{"v":0,"d":"$0.00"}},774,{"$f":"'3 INCOME & EXPENSE'!Z647","v":31},31000,31031,0]
[null,null,{"$f":"IF('3 INCOME & EXPENSE'!E648=0,\"\",'3 INCOME & EXPENSE'!E648)","v":""},{"$f":"T('3 INCOME & EXPENSE'!G648)","v":""},{"$f":"'3 INCOME & EXPENSE'!M648","v":{"v":0,"d":"0.0"}},{"$f":"'3 INCOME & EXPENSE'!N648","v":{"v":0,"d":"$0.00"}},{"$f":"'3 INCOME & EXPENSE'!O648","v":{"v":0,"d":"$0.00"}},775,{"$f":"'3 INCOME & EXPENSE'!Z648","v":31},31000,31031,0]
[null,null,{"$f":"IF('3 INCOME & EXPENSE'!E649=0,\"\",'3 INCOME & EXPENSE'!E649)","v":""},{"$f":"T('3 INCOME & EXPENSE'!G649)","v":""},{"$f":"'3 INCOME & EXPENSE'!M649","v":{"v":0,"d":"0.0"}},{"$f":"'3 INCOME & EXPENSE'!N649","v":{"v":0,"d":"$0.00"}},{"$f":"'3 INCOME & EXPENSE'!O649","v":{"v":0,"d":"$0.00"}},776,{"$f":"'3 INCOME & EXPENSE'!Z649","v":31},31000,31031,0]
[null,null,{"$f":"IF('3 INCOME & EXPENSE'!E650=0,\"\",'3 INCOME & EXPENSE'!E650)","v":""},{"$f":"T('3 INCOME & EXPENSE'!G650)","v":""},{"$f":"'3 INCOME & EXPENSE'!M650","v":{"v":0,"d":"0.0"}},{"$f":"'3 INCOME & EXPENSE'!N650","v":{"v":0,"d":"$0.00"}},{"$f":"'3 INCOME & EXPENSE'!O650","v":{"v":0,"d":"$0.00"}},777,{"$f":"'3 INCOME & EXPENSE'!Z650","v":31},31000,31031,0]
[null,null,{"$f":"IF('3 INCOME & EXPENSE'!E651=0,\"\",'3 INCOME & EXPENSE'!E651)","v":""},{"$f":"T('3 INCOME & EXPENSE'!G651)","v":""},{"$f":"'3 INCOME & EXPENSE'!M651","v":{"v":0,"d":"0.0"}},{"$f":"'3 INCOME & EXPENSE'!N651","v":{"v":0,"d":"$0.00"}},{"$f":"'3 INCOME & EXPENSE'!O651","v":{"v":0,"d":"$0.00"}},778,{"$f":"'3 INCOME & EXPENSE'!Z651","v":31},31000,31031,0]
[null,null,{"$f":"IF('3 INCOME & EXPENSE'!E652=0,\"\",'3 INCOME & EXPENSE'!E652)","v":""},{"$f":"T('3 INCOME & EXPENSE'!G652)","v":""},{"$f":"'3 INCOME & EXPENSE'!M652","v":{"v":0,"d":"0.0"}},{"$f":"'3 INCOME & EXPENSE'!N652","v":{"v":0,"d":"$0.00"}},{"$f":"'3 INCOME & EXPENSE'!O652","v":{"v":0,"d":"$0.00"}},779,{"$f":"'3 INCOME & EXPENSE'!Z652","v":31},31000,31031,0]
[null,null,{"$f":"IF('3 INCOME & EXPENSE'!E653=0,\"\",'3 INCOME & EXPENSE'!E653)","v":""},{"$f":"T('3 INCOME & EXPENSE'!G653)","v":""},{"$f":"'3 INCOME & EXPENSE'!M653","v":{"v":0,"d":"0.0"}},{"$f":"'3 INCOME & EXPENSE'!N653","v":{"v":0,"d":"$0.00"}},{"$f":"'3 INCOME & EXPENSE'!O653","v":{"v":0,"d":"$0.00"}},780,{"$f":"'3 INCOME & EXPENSE'!Z653","v":31},31000,31031,0]
[null,null,{"$f":"IF('3 INCOME & EXPENSE'!E654=0,\"\",'3 INCOME & EXPENSE'!E654)","v":""},{"$f":"T('3 INCOME & EXPENSE'!G654)","v":""},{"$f":"'3 INCOME & EXPENSE'!M654","v":{"v":0,"d":"0.0"}},{"$f":"'3 INCOME & EXPENSE'!N654","v":{"v":0,"d":"$0.00"}},{"$f":"'3 INCOME & EXPENSE'!O654","v":{"v":0,"d":"$0.00"}},781,{"$f":"'3 INCOME & EXPENSE'!Z654","v":31},{"$f":"VLOOKUP(I792,$J$939:$K$969,2)","v":31000},31031,{"$f":"K792*E792","v":0}]
[null,null,{"$f":"IF('3 INCOME & EXPENSE'!E655=0,\"\",'3 INCOME & EXPENSE'!E655)","v":""},{"$f":"T('3 INCOME & EXPENSE'!G655)","v":""},{"$f":"'3 INCOME & EXPENSE'!M655","v":{"v":0,"d":"0.0"}},{"$f":"'3 INCOME & EXPENSE'!N655","v":{"v":0,"d":"$0.00"}},{"$f":"'3 INCOME & EXPENSE'!O655","v":{"v":0,"d":"$0.00"}},782,{"$f":"'3 INCOME & EXPENSE'!Z655","v":31},31000,31031,0]
[null,null,{"$f":"IF('3 INCOME & EXPENSE'!E656=0,\"\",'3 INCOME & EXPENSE'!E656)","v":""},{"$f":"T('3 INCOME & EXPENSE'!G656)","v":""},{"$f":"'3 INCOME & EXPENSE'!M656","v":{"v":0,"d":"0.0"}},{"$f":"'3 INCOME & EXPENSE'!N656","v":{"v":0,"d":"$0.00"}},{"$f":"'3 INCOME & EXPENSE'!O656","v":{"v":0,"d":"$0.00"}},783,{"$f":"'3 INCOME & EXPENSE'!Z656","v":31},31000,31031,0]
[null,null,{"$f":"IF('3 INCOME & EXPENSE'!E657=0,\"\",'3 INCOME & EXPENSE'!E657)","v":""},{"$f":"T('3 INCOME & EXPENSE'!G657)","v":""},{"$f":"'3 INCOME & EXPENSE'!M657","v":{"v":0,"d":"0.0"}},{"$f":"'3 INCOME & EXPENSE'!N657","v":{"v":0,"d":"$0.00"}},{"$f":"'3 INCOME & EXPENSE'!O657","v":{"v":0,"d":"$0.00"}},784,{"$f":"'3 INCOME & EXPENSE'!Z657","v":31},31000,31031,0]
[null,null,{"$f":"IF('3 INCOME & EXPENSE'!E658=0,\"\",'3 INCOME & EXPENSE'!E658)","v":""},{"$f":"T('3 INCOME & EXPENSE'!G658)","v":""},{"$f":"'3 INCOME & EXPENSE'!M658","v":{"v":0,"d":"0.0"}},{"$f":"'3 INCOME & EXPENSE'!N658","v":{"v":0,"d":"$0.00"}},{"$f":"'3 INCOME & EXPENSE'!O658","v":{"v":0,"d":"$0.00"}},785,{"$f":"'3 INCOME & EXPENSE'!Z658","v":31},31000,31031,0]
[null,null,{"$f":"IF('3 INCOME & EXPENSE'!E659=0,\"\",'3 INCOME & EXPENSE'!E659)","v":""},{"$f":"T('3 INCOME & EXPENSE'!G659)","v":""},{"$f":"'3 INCOME & EXPENSE'!M659","v":{"v":0,"d":"0.0"}},{"$f":"'3 INCOME & EXPENSE'!N659","v":{"v":0,"d":"$0.00"}},{"$f":"'3 INCOME & EXPENSE'!O659","v":{"v":0,"d":"$0.00"}},786,{"$f":"'3 INCOME & EXPENSE'!Z659","v":31},31000,31031,0]
[null,null,{"$f":"IF('3 INCOME & EXPENSE'!E660=0,\"\",'3 INCOME & EXPENSE'!E660)","v":""},{"$f":"T('3 INCOME & EXPENSE'!G660)","v":""},{"$f":"'3 INCOME & EXPENSE'!M660","v":{"v":0,"d":"0.0"}},{"$f":"'3 INCOME & EXPENSE'!N660","v":{"v":0,"d":"$0.00"}},{"$f":"'3 INCOME & EXPENSE'!O660","v":{"v":0,"d":"$0.00"}},787,{"$f":"'3 INCOME & EXPENSE'!Z660","v":31},31000,31031,0]
[null,null,{"$f":"IF('3 INCOME & EXPENSE'!E661=0,\"\",'3 INCOME & EXPENSE'!E661)","v":""},{"$f":"T('3 INCOME & EXPENSE'!G661)","v":""},{"$f":"'3 INCOME & EXPENSE'!M661","v":{"v":0,"d":"0.0"}},{"$f":"'3 INCOME & EXPENSE'!N661","v":{"v":0,"d":"$0.00"}},{"$f":"'3 INCOME & EXPENSE'!O661","v":{"v":0,"d":"$0.00"}},788,{"$f":"'3 INCOME & EXPENSE'!Z661","v":31},31000,31031,0]
[null,null,{"$f":"IF('3 INCOME & EXPENSE'!E662=0,\"\",'3 INCOME & EXPENSE'!E662)","v":""},{"$f":"T('3 INCOME & EXPENSE'!G662)","v":""},{"$f":"'3 INCOME & EXPENSE'!M662","v":{"v":0,"d":"0.0"}},{"$f":"'3 INCOME & EXPENSE'!N662","v":{"v":0,"d":"$0.00"}},{"$f":"'3 INCOME & EXPENSE'!O662","v":{"v":0,"d":"$0.00"}},789,{"$f":"'3 INCOME & EXPENSE'!Z662","v":31},31000,31031,0]
[null,null,{"$f":"IF('3 INCOME & EXPENSE'!E663=0,\"\",'3 INCOME & EXPENSE'!E663)","v":""},{"$f":"T('3 INCOME & EXPENSE'!G663)","v":""},{"$f":"'3 INCOME & EXPENSE'!M663","v":{"v":0,"d":"0.0"}},{"$f":"'3 INCOME & EXPENSE'!N663","v":{"v":0,"d":"$0.00"}},{"$f":"'3 INCOME & EXPENSE'!O663","v":{"v":0,"d":"$0.00"}},790,{"$f":"'3 INCOME & EXPENSE'!Z663","v":31},31000,31031,0]
[null,null,{"$f":"IF('3 INCOME & EXPENSE'!E664=0,\"\",'3 INCOME & EXPENSE'!E664)","v":""},{"$f":"T('3 INCOME & EXPENSE'!G664)","v":""},{"$f":"'3 INCOME & EXPENSE'!M664","v":{"v":0,"d":"0.0"}},{"$f":"'3 INCOME & EXPENSE'!N664","v":{"v":0,"d":"$0.00"}},{"$f":"'3 INCOME & EXPENSE'!O664","v":{"v":0,"d":"$0.00"}},791,{"$f":"'3 INCOME & EXPENSE'!Z664","v":31},31000,31031,0]
[null,null,{"$f":"IF('3 INCOME & EXPENSE'!E665=0,\"\",'3 INCOME & EXPENSE'!E665)","v":""},{"$f":"T('3 INCOME & EXPENSE'!G665)","v":""},{"$f":"'3 INCOME & EXPENSE'!M665","v":{"v":0,"d":"0.0"}},{"$f":"'3 INCOME & EXPENSE'!N665","v":{"v":0,"d":"$0.00"}},{"$f":"'3 INCOME & EXPENSE'!O665","v":{"v":0,"d":"$0.00"}},792,{"$f":"'3 INCOME & EXPENSE'!Z665","v":31},31000,31031,0]
[null,null,{"$f":"IF('3 INCOME & EXPENSE'!E666=0,\"\",'3 INCOME & EXPENSE'!E666)","v":""},{"$f":"T('3 INCOME & EXPENSE'!G666)","v":""},{"$f":"'3 INCOME & EXPENSE'!M666","v":{"v":0,"d":"0.0"}},{"$f":"'3 INCOME & EXPENSE'!N666","v":{"v":0,"d":"$0.00"}},{"$f":"'3 INCOME & EXPENSE'!O666","v":{"v":0,"d":"$0.00"}},793,{"$f":"'3 INCOME & EXPENSE'!Z666","v":31},31000,31031,0]
[null,null,{"$f":"IF('3 INCOME & EXPENSE'!E667=0,\"\",'3 INCOME & EXPENSE'!E667)","v":""},{"$f":"T('3 INCOME & EXPENSE'!G667)","v":""},{"$f":"'3 INCOME & EXPENSE'!M667","v":{"v":0,"d":"0.0"}},{"$f":"'3 INCOME & EXPENSE'!N667","v":{"v":0,"d":"$0.00"}},{"$f":"'3 INCOME & EXPENSE'!O667","v":{"v":0,"d":"$0.00"}},794,{"$f":"'3 INCOME & EXPENSE'!Z667","v":31},31000,31031,0]
[null,null,{"$f":"IF('3 INCOME & EXPENSE'!E668=0,\"\",'3 INCOME & EXPENSE'!E668)","v":""},{"$f":"T('3 INCOME & EXPENSE'!G668)","v":""},{"$f":"'3 INCOME & EXPENSE'!M668","v":{"v":0,"d":"0.0"}},{"$f":"'3 INCOME & EXPENSE'!N668","v":{"v":0,"d":"$0.00"}},{"$f":"'3 INCOME & EXPENSE'!O668","v":{"v":0,"d":"$0.00"}},795,{"$f":"'3 INCOME & EXPENSE'!Z668","v":31},31000,31031,0]
[null,null,{"$f":"IF('3 INCOME & EXPENSE'!E669=0,\"\",'3 INCOME & EXPENSE'!E669)","v":""},{"$f":"T('3 INCOME & EXPENSE'!G669)","v":""},{"$f":"'3 INCOME & EXPENSE'!M669","v":{"v":0,"d":"0.0"}},{"$f":"'3 INCOME & EXPENSE'!N669","v":{"v":0,"d":"$0.00"}},{"$f":"'3 INCOME & EXPENSE'!O669","v":{"v":0,"d":"$0.00"}},796,{"$f":"'3 INCOME & EXPENSE'!Z669","v":31},31000,31031,0]
[null,null,{"$f":"IF('3 INCOME & EXPENSE'!E670=0,\"\",'3 INCOME & EXPENSE'!E670)","v":""},{"$f":"T('3 INCOME & EXPENSE'!G670)","v":""},{"$f":"'3 INCOME & EXPENSE'!M670","v":{"v":0,"d":"0.0"}},{"$f":"'3 INCOME & EXPENSE'!N670","v":{"v":0,"d":"$0.00"}},{"$f":"'3 INCOME & EXPENSE'!O670","v":{"v":0,"d":"$0.00"}},797,{"$f":"'3 INCOME & EXPENSE'!Z670","v":31},31000,31031,0]
[null,null,{"$f":"IF('3 INCOME & EXPENSE'!E671=0,\"\",'3 INCOME & EXPENSE'!E671)","v":""},{"$f":"T('3 INCOME & EXPENSE'!G671)","v":""},{"$f":"'3 INCOME & EXPENSE'!M671","v":{"v":0,"d":"0.0"}},{"$f":"'3 INCOME & EXPENSE'!N671","v":{"v":0,"d":"$0.00"}},{"$f":"'3 INCOME & EXPENSE'!O671","v":{"v":0,"d":"$0.00"}},798,{"$f":"'3 INCOME & EXPENSE'!Z671","v":31},31000,31031,0]
[null,null,{"$f":"IF('3 INCOME & EXPENSE'!E672=0,\"\",'3 INCOME & EXPENSE'!E672)","v":""},{"$f":"T('3 INCOME & EXPENSE'!G672)","v":""},{"$f":"'3 INCOME & EXPENSE'!M672","v":{"v":0,"d":"0.0"}},{"$f":"'3 INCOME & EXPENSE'!N672","v":{"v":0,"d":"$0.00"}},{"$f":"'3 INCOME & EXPENSE'!O672","v":{"v":0,"d":"$0.00"}},799,{"$f":"'3 INCOME & EXPENSE'!Z672","v":31},31000,31031,0]
[null,null,{"$f":"IF('3 INCOME & EXPENSE'!E673=0,\"\",'3 INCOME & EXPENSE'!E673)","v":""},{"$f":"T('3 INCOME & EXPENSE'!G673)","v":""},{"$f":"'3 INCOME & EXPENSE'!M673","v":{"v":0,"d":"0.0"}},{"$f":"'3 INCOME & EXPENSE'!N673","v":{"v":0,"d":"$0.00"}},{"$f":"'3 INCOME & EXPENSE'!O673","v":{"v":0,"d":"$0.00"}},800,{"$f":"'3 INCOME & EXPENSE'!Z673","v":31},31000,31031,0]
[null,null,{"$f":"IF('3 INCOME & EXPENSE'!E674=0,\"\",'3 INCOME & EXPENSE'!E674)","v":""},{"$f":"T('3 INCOME & EXPENSE'!G674)","v":""},{"$f":"'3 INCOME & EXPENSE'!M674","v":{"v":0,"d":"0.0"}},{"$f":"'3 INCOME & EXPENSE'!N674","v":{"v":0,"d":"$0.00"}},{"$f":"'3 INCOME & EXPENSE'!O674","v":{"v":0,"d":"$0.00"}},801,{"$f":"'3 INCOME & EXPENSE'!Z674","v":31},31000,31031,0]
[null,null,{"$f":"IF('3 INCOME & EXPENSE'!E675=0,\"\",'3 INCOME & EXPENSE'!E675)","v":""},{"$f":"T('3 INCOME & EXPENSE'!G675)","v":""},{"$f":"'3 INCOME & EXPENSE'!M675","v":{"v":0,"d":"0.0"}},{"$f":"'3 INCOME & EXPENSE'!N675","v":{"v":0,"d":"$0.00"}},{"$f":"'3 INCOME & EXPENSE'!O675","v":{"v":0,"d":"$0.00"}},802,{"$f":"'3 INCOME & EXPENSE'!Z675","v":31},31000,31031,0]
[null,null,{"$f":"IF('3 INCOME & EXPENSE'!E676=0,\"\",'3 INCOME & EXPENSE'!E676)","v":""},{"$f":"T('3 INCOME & EXPENSE'!G676)","v":""},{"$f":"'3 INCOME & EXPENSE'!M676","v":{"v":0,"d":"0.0"}},{"$f":"'3 INCOME & EXPENSE'!N676","v":{"v":0,"d":"$0.00"}},{"$f":"'3 INCOME & EXPENSE'!O676","v":{"v":0,"d":"$0.00"}},803,{"$f":"'3 INCOME & EXPENSE'!Z676","v":31},31000,31031,0]
[null,null,{"$f":"IF('3 INCOME & EXPENSE'!E677=0,\"\",'3 INCOME & EXPENSE'!E677)","v":""},{"$f":"T('3 INCOME & EXPENSE'!G677)","v":""},{"$f":"'3 INCOME & EXPENSE'!M677","v":{"v":0,"d":"0.0"}},{"$f":"'3 INCOME & EXPENSE'!N677","v":{"v":0,"d":"$0.00"}},{"$f":"'3 INCOME & EXPENSE'!O677","v":{"v":0,"d":"$0.00"}},804,{"$f":"'3 INCOME & EXPENSE'!Z677","v":31},31000,31031,0]
[null,null,{"$f":"IF('3 INCOME & EXPENSE'!E678=0,\"\",'3 INCOME & EXPENSE'!E678)","v":""},{"$f":"T('3 INCOME & EXPENSE'!G678)","v":""},{"$f":"'3 INCOME & EXPENSE'!M678","v":{"v":0,"d":"0.0"}},{"$f":"'3 INCOME & EXPENSE'!N678","v":{"v":0,"d":"$0.00"}},{"$f":"'3 INCOME & EXPENSE'!O678","v":{"v":0,"d":"$0.00"}},805,{"$f":"'3 INCOME & EXPENSE'!Z678","v":31},31000,31031,0]
[null,null,{"$f":"IF('3 INCOME & EXPENSE'!E679=0,\"\",'3 INCOME & EXPENSE'!E679)","v":""},{"$f":"T('3 INCOME & EXPENSE'!G679)","v":""},{"$f":"'3 INCOME & EXPENSE'!M679","v":{"v":0,"d":"0.0"}},{"$f":"'3 INCOME & EXPENSE'!N679","v":{"v":0,"d":"$0.00"}},{"$f":"'3 INCOME & EXPENSE'!O679","v":{"v":0,"d":"$0.00"}},806,{"$f":"'3 INCOME & EXPENSE'!Z679","v":31},31000,31031,0]
[null,null,{"$f":"IF('3 INCOME & EXPENSE'!E680=0,\"\",'3 INCOME & EXPENSE'!E680)","v":""},{"$f":"T('3 INCOME & EXPENSE'!G680)","v":""},{"$f":"'3 INCOME & EXPENSE'!M680","v":{"v":0,"d":"0.0"}},{"$f":"'3 INCOME & EXPENSE'!N680","v":{"v":0,"d":"$0.00"}},{"$f":"'3 INCOME & EXPENSE'!O680","v":{"v":0,"d":"$0.00"}},807,{"$f":"'3 INCOME & EXPENSE'!Z680","v":31},31000,31031,0]
[null,null,{"$f":"IF('3 INCOME & EXPENSE'!E681=0,\"\",'3 INCOME & EXPENSE'!E681)","v":""},{"$f":"T('3 INCOME & EXPENSE'!G681)","v":""},{"$f":"'3 INCOME & EXPENSE'!M681","v":{"v":0,"d":"0.0"}},{"$f":"'3 INCOME & EXPENSE'!N681","v":{"v":0,"d":"$0.00"}},{"$f":"'3 INCOME & EXPENSE'!O681","v":{"v":0,"d":"$0.00"}},808,{"$f":"'3 INCOME & EXPENSE'!Z681","v":31},31000,31031,0]
[null,null,{"$f":"IF('3 INCOME & EXPENSE'!E682=0,\"\",'3 INCOME & EXPENSE'!E682)","v":""},{"$f":"T('3 INCOME & EXPENSE'!G682)","v":""},{"$f":"'3 INCOME & EXPENSE'!M682","v":{"v":0,"d":"0.0"}},{"$f":"'3 INCOME & EXPENSE'!N682","v":{"v":0,"d":"$0.00"}},{"$f":"'3 INCOME & EXPENSE'!O682","v":{"v":0,"d":"$0.00"}},809,{"$f":"'3 INCOME & EXPENSE'!Z682","v":31},31000,31031,0]
[null,null,{"$f":"IF('3 INCOME & EXPENSE'!E683=0,\"\",'3 INCOME & EXPENSE'!E683)","v":""},{"$f":"T('3 INCOME & EXPENSE'!G683)","v":""},{"$f":"'3 INCOME & EXPENSE'!M683","v":{"v":0,"d":"0.0"}},{"$f":"'3 INCOME & EXPENSE'!N683","v":{"v":0,"d":"$0.00"}},{"$f":"'3 INCOME & EXPENSE'!O683","v":{"v":0,"d":"$0.00"}},810,{"$f":"'3 INCOME & EXPENSE'!Z683","v":31},31000,31031,0]
[null,null,{"$f":"IF('3 INCOME & EXPENSE'!E684=0,\"\",'3 INCOME & EXPENSE'!E684)","v":""},{"$f":"T('3 INCOME & EXPENSE'!G684)","v":""},{"$f":"'3 INCOME & EXPENSE'!M684","v":{"v":0,"d":"0.0"}},{"$f":"'3 INCOME & EXPENSE'!N684","v":{"v":0,"d":"$0.00"}},{"$f":"'3 INCOME & EXPENSE'!O684","v":{"v":0,"d":"$0.00"}},811,{"$f":"'3 INCOME & EXPENSE'!Z684","v":31},31000,31031,0]
[null,null,{"$f":"IF('3 INCOME & EXPENSE'!E685=0,\"\",'3 INCOME & EXPENSE'!E685)","v":""},{"$f":"T('3 INCOME & EXPENSE'!G685)","v":""},{"$f":"'3 INCOME & EXPENSE'!M685","v":{"v":0,"d":"0.0"}},{"$f":"'3 INCOME & EXPENSE'!N685","v":{"v":0,"d":"$0.00"}},{"$f":"'3 INCOME & EXPENSE'!O685","v":{"v":0,"d":"$0.00"}},812,{"$f":"'3 INCOME & EXPENSE'!Z685","v":31},31000,31031,0]
[null,null,{"$f":"IF('3 INCOME & EXPENSE'!E686=0,\"\",'3 INCOME & EXPENSE'!E686)","v":""},{"$f":"T('3 INCOME & EXPENSE'!G686)","v":""},{"$f":"'3 INCOME & EXPENSE'!M686","v":{"v":0,"d":"0.0"}},{"$f":"'3 INCOME & EXPENSE'!N686","v":{"v":0,"d":"$0.00"}},{"$f":"'3 INCOME & EXPENSE'!O686","v":{"v":0,"d":"$0.00"}},813,{"$f":"'3 INCOME & EXPENSE'!Z686","v":31},31000,31031,0]
[null,null,{"$f":"IF('3 INCOME & EXPENSE'!E687=0,\"\",'3 INCOME & EXPENSE'!E687)","v":""},{"$f":"T('3 INCOME & EXPENSE'!G687)","v":""},{"$f":"'3 INCOME & EXPENSE'!M687","v":{"v":0,"d":"0.0"}},{"$f":"'3 INCOME & EXPENSE'!N687","v":{"v":0,"d":"$0.00"}},{"$f":"'3 INCOME & EXPENSE'!O687","v":{"v":0,"d":"$0.00"}},814,{"$f":"'3 INCOME & EXPENSE'!Z687","v":31},31000,31031,0]
[null,null,{"$f":"IF('3 INCOME & EXPENSE'!E688=0,\"\",'3 INCOME & EXPENSE'!E688)","v":""},{"$f":"T('3 INCOME & EXPENSE'!G688)","v":""},{"$f":"'3 INCOME & EXPENSE'!M688","v":{"v":0,"d":"0.0"}},{"$f":"'3 INCOME & EXPENSE'!N688","v":{"v":0,"d":"$0.00"}},{"$f":"'3 INCOME & EXPENSE'!O688","v":{"v":0,"d":"$0.00"}},815,{"$f":"'3 INCOME & EXPENSE'!Z688","v":31},31000,31031,0]
[null,null,{"$f":"IF('3 INCOME & EXPENSE'!E689=0,\"\",'3 INCOME & EXPENSE'!E689)","v":""},{"$f":"T('3 INCOME & EXPENSE'!G689)","v":""},{"$f":"'3 INCOME & EXPENSE'!M689","v":{"v":0,"d":"0.0"}},{"$f":"'3 INCOME & EXPENSE'!N689","v":{"v":0,"d":"$0.00"}},{"$f":"'3 INCOME & EXPENSE'!O689","v":{"v":0,"d":"$0.00"}},816,{"$f":"'3 INCOME & EXPENSE'!Z689","v":31},31000,31031,0]
[null,null,{"$f":"IF('3 INCOME & EXPENSE'!E690=0,\"\",'3 INCOME & EXPENSE'!E690)","v":""},{"$f":"T('3 INCOME & EXPENSE'!G690)","v":""},{"$f":"'3 INCOME & EXPENSE'!M690","v":{"v":0,"d":"0.0"}},{"$f":"'3 INCOME & EXPENSE'!N690","v":{"v":0,"d":"$0.00"}},{"$f":"'3 INCOME & EXPENSE'!O690","v":{"v":0,"d":"$0.00"}},817,{"$f":"'3 INCOME & EXPENSE'!Z690","v":31},31000,31031,0]
[null,null,{"$f":"IF('3 INCOME & EXPENSE'!E691=0,\"\",'3 INCOME & EXPENSE'!E691)","v":""},{"$f":"T('3 INCOME & EXPENSE'!G691)","v":""},{"$f":"'3 INCOME & EXPENSE'!M691","v":{"v":0,"d":"0.0"}},{"$f":"'3 INCOME & EXPENSE'!N691","v":{"v":0,"d":"$0.00"}},{"$f":"'3 INCOME & EXPENSE'!O691","v":{"v":0,"d":"$0.00"}},818,{"$f":"'3 INCOME & EXPENSE'!Z691","v":31},31000,31031,0]
[null,null,{"$f":"IF('3 INCOME & EXPENSE'!E692=0,\"\",'3 INCOME & EXPENSE'!E692)","v":""},{"$f":"T('3 INCOME & EXPENSE'!G692)","v":""},{"$f":"'3 INCOME & EXPENSE'!M692","v":{"v":0,"d":"0.0"}},{"$f":"'3 INCOME & EXPENSE'!N692","v":{"v":0,"d":"$0.00"}},{"$f":"'3 INCOME & EXPENSE'!O692","v":{"v":0,"d":"$0.00"}},819,{"$f":"'3 INCOME & EXPENSE'!Z692","v":31},31000,31031,0]
[null,null,{"$f":"IF('3 INCOME & EXPENSE'!E693=0,\"\",'3 INCOME & EXPENSE'!E693)","v":""},{"$f":"T('3 INCOME & EXPENSE'!G693)","v":""},{"$f":"'3 INCOME & EXPENSE'!M693","v":{"v":0,"d":"0.0"}},{"$f":"'3 INCOME & EXPENSE'!N693","v":{"v":0,"d":"$0.00"}},{"$f":"'3 INCOME & EXPENSE'!O693","v":{"v":0,"d":"$0.00"}},820,{"$f":"'3 INCOME & EXPENSE'!Z693","v":31},31000,31031,0]
[null,null,{"$f":"IF('3 INCOME & EXPENSE'!E694=0,\"\",'3 INCOME & EXPENSE'!E694)","v":""},{"$f":"T('3 INCOME & EXPENSE'!G694)","v":""},{"$f":"'3 INCOME & EXPENSE'!M694","v":{"v":0,"d":"0.0"}},{"$f":"'3 INCOME & EXPENSE'!N694","v":{"v":0,"d":"$0.00"}},{"$f":"'3 INCOME & EXPENSE'!O694","v":{"v":0,"d":"$0.00"}},821,{"$f":"'3 INCOME & EXPENSE'!Z694","v":31},31000,31031,0]
[null,null,{"$f":"IF('3 INCOME & EXPENSE'!E695=0,\"\",'3 INCOME & EXPENSE'!E695)","v":""},{"$f":"T('3 INCOME & EXPENSE'!G695)","v":""},{"$f":"'3 INCOME & EXPENSE'!M695","v":{"v":0,"d":"0.0"}},{"$f":"'3 INCOME & EXPENSE'!N695","v":{"v":0,"d":"$0.00"}},{"$f":"'3 INCOME & EXPENSE'!O695","v":{"v":0,"d":"$0.00"}},822,{"$f":"'3 INCOME & EXPENSE'!Z695","v":31},31000,31031,0]
[null,null,{"$f":"IF('3 INCOME & EXPENSE'!E696=0,\"\",'3 INCOME & EXPENSE'!E696)","v":""},{"$f":"T('3 INCOME & EXPENSE'!G696)","v":""},{"$f":"'3 INCOME & EXPENSE'!M696","v":{"v":0,"d":"0.0"}},{"$f":"'3 INCOME & EXPENSE'!N696","v":{"v":0,"d":"$0.00"}},{"$f":"'3 INCOME & EXPENSE'!O696","v":{"v":0,"d":"$0.00"}},823,{"$f":"'3 INCOME & EXPENSE'!Z696","v":31},31000,31031,0]
[null,null,{"$f":"IF('3 INCOME & EXPENSE'!E697=0,\"\",'3 INCOME & EXPENSE'!E697)","v":""},{"$f":"T('3 INCOME & EXPENSE'!G697)","v":""},{"$f":"'3 INCOME & EXPENSE'!M697","v":{"v":0,"d":"0.0"}},{"$f":"'3 INCOME & EXPENSE'!N697","v":{"v":0,"d":"$0.00"}},{"$f":"'3 INCOME & EXPENSE'!O697","v":{"v":0,"d":"$0.00"}},824,{"$f":"'3 INCOME & EXPENSE'!Z697","v":31},31000,31031,0]
[null,null,{"$f":"IF('3 INCOME & EXPENSE'!E698=0,\"\",'3 INCOME & EXPENSE'!E698)","v":""},{"$f":"T('3 INCOME & EXPENSE'!G698)","v":""},{"$f":"'3 INCOME & EXPENSE'!M698","v":{"v":0,"d":"0.0"}},{"$f":"'3 INCOME & EXPENSE'!N698","v":{"v":0,"d":"$0.00"}},{"$f":"'3 INCOME & EXPENSE'!O698","v":{"v":0,"d":"$0.00"}},825,{"$f":"'3 INCOME & EXPENSE'!Z698","v":31},31000,31031,0]
[null,null,{"$f":"IF('3 INCOME & EXPENSE'!E699=0,\"\",'3 INCOME & EXPENSE'!E699)","v":""},{"$f":"T('3 INCOME & EXPENSE'!G699)","v":""},{"$f":"'3 INCOME & EXPENSE'!M699","v":{"v":0,"d":"0.0"}},{"$f":"'3 INCOME & EXPENSE'!N699","v":{"v":0,"d":"$0.00"}},{"$f":"'3 INCOME & EXPENSE'!O699","v":{"v":0,"d":"$0.00"}},826,{"$f":"'3 INCOME & EXPENSE'!Z699","v":31},31000,31031,0]
[null,null,{"$f":"IF('3 INCOME & EXPENSE'!E700=0,\"\",'3 INCOME & EXPENSE'!E700)","v":""},{"$f":"T('3 INCOME & EXPENSE'!G700)","v":""},{"$f":"'3 INCOME & EXPENSE'!M700","v":{"v":0,"d":"0.0"}},{"$f":"'3 INCOME & EXPENSE'!N700","v":{"v":0,"d":"$0.00"}},{"$f":"'3 INCOME & EXPENSE'!O700","v":{"v":0,"d":"$0.00"}},827,{"$f":"'3 INCOME & EXPENSE'!Z700","v":31},31000,31031,0]
[null,null,{"$f":"IF('3 INCOME & EXPENSE'!E701=0,\"\",'3 INCOME & EXPENSE'!E701)","v":""},{"$f":"T('3 INCOME & EXPENSE'!G701)","v":""},{"$f":"'3 INCOME & EXPENSE'!M701","v":{"v":0,"d":"0.0"}},{"$f":"'3 INCOME & EXPENSE'!N701","v":{"v":0,"d":"$0.00"}},{"$f":"'3 INCOME & EXPENSE'!O701","v":{"v":0,"d":"$0.00"}},828,{"$f":"'3 INCOME & EXPENSE'!Z701","v":31},31000,31031,0]
[null,null,{"$f":"IF('3 INCOME & EXPENSE'!E702=0,\"\",'3 INCOME & EXPENSE'!E702)","v":""},{"$f":"T('3 INCOME & EXPENSE'!G702)","v":""},{"$f":"'3 INCOME & EXPENSE'!M702","v":{"v":0,"d":"0.0"}},{"$f":"'3 INCOME & EXPENSE'!N702","v":{"v":0,"d":"$0.00"}},{"$f":"'3 INCOME & EXPENSE'!O702","v":{"v":0,"d":"$0.00"}},829,{"$f":"'3 INCOME & EXPENSE'!Z702","v":31},31000,31031,0]
[null,null,{"$f":"IF('3 INCOME & EXPENSE'!E703=0,\"\",'3 INCOME & EXPENSE'!E703)","v":""},{"$f":"T('3 INCOME & EXPENSE'!G703)","v":""},{"$f":"'3 INCOME & EXPENSE'!M703","v":{"v":0,"d":"0.0"}},{"$f":"'3 INCOME & EXPENSE'!N703","v":{"v":0,"d":"$0.00"}},{"$f":"'3 INCOME & EXPENSE'!O703","v":{"v":0,"d":"$0.00"}},830,{"$f":"'3 INCOME & EXPENSE'!Z703","v":31},31000,31031,0]
[null,null,{"$f":"IF('3 INCOME & EXPENSE'!E704=0,\"\",'3 INCOME & EXPENSE'!E704)","v":""},{"$f":"T('3 INCOME & EXPENSE'!G704)","v":""},{"$f":"'3 INCOME & EXPENSE'!M704","v":{"v":0,"d":"0.0"}},{"$f":"'3 INCOME & EXPENSE'!N704","v":{"v":0,"d":"$0.00"}},{"$f":"'3 INCOME & EXPENSE'!O704","v":{"v":0,"d":"$0.00"}},831,{"$f":"'3 INCOME & EXPENSE'!Z704","v":31},31000,31031,0]
[null,null,{"$f":"IF('3 INCOME & EXPENSE'!E705=0,\"\",'3 INCOME & EXPENSE'!E705)","v":""},{"$f":"T('3 INCOME & EXPENSE'!G705)","v":""},{"$f":"'3 INCOME & EXPENSE'!M705","v":{"v":0,"d":"0.0"}},{"$f":"'3 INCOME & EXPENSE'!N705","v":{"v":0,"d":"$0.00"}},{"$f":"'3 INCOME & EXPENSE'!O705","v":{"v":0,"d":"$0.00"}},832,{"$f":"'3 INCOME & EXPENSE'!Z705","v":31},31000,31031,0]
[null,null,{"$f":"IF('3 INCOME & EXPENSE'!E706=0,\"\",'3 INCOME & EXPENSE'!E706)","v":""},{"$f":"T('3 INCOME & EXPENSE'!G706)","v":""},{"$f":"'3 INCOME & EXPENSE'!M706","v":{"v":0,"d":"0.0"}},{"$f":"'3 INCOME & EXPENSE'!N706","v":{"v":0,"d":"$0.00"}},{"$f":"'3 INCOME & EXPENSE'!O706","v":{"v":0,"d":"$0.00"}},833,{"$f":"'3 INCOME & EXPENSE'!Z706","v":31},31000,{"$f":"I844+J844","v":31031},0]
[null,null,{"$f":"IF('3 INCOME & EXPENSE'!E707=0,\"\",'3 INCOME & EXPENSE'!E707)","v":""},{"$f":"T('3 INCOME & EXPENSE'!G707)","v":""},{"$f":"'3 INCOME & EXPENSE'!M707","v":{"v":0,"d":"0.0"}},{"$f":"'3 INCOME & EXPENSE'!N707","v":{"v":0,"d":"$0.00"}},{"$f":"'3 INCOME & EXPENSE'!O707","v":{"v":0,"d":"$0.00"}},834,{"$f":"'3 INCOME & EXPENSE'!Z707","v":31},31000,31031,0]
[null,null,{"$f":"IF('3 INCOME & EXPENSE'!E708=0,\"\",'3 INCOME & EXPENSE'!E708)","v":""},{"$f":"T('3 INCOME & EXPENSE'!G708)","v":""},{"$f":"'3 INCOME & EXPENSE'!M708","v":{"v":0,"d":"0.0"}},{"$f":"'3 INCOME & EXPENSE'!N708","v":{"v":0,"d":"$0.00"}},{"$f":"'3 INCOME & EXPENSE'!O708","v":{"v":0,"d":"$0.00"}},835,{"$f":"'3 INCOME & EXPENSE'!Z708","v":31},31000,31031,0]
[null,null,{"$f":"IF('3 INCOME & EXPENSE'!E709=0,\"\",'3 INCOME & EXPENSE'!E709)","v":""},{"$f":"T('3 INCOME & EXPENSE'!G709)","v":""},{"$f":"'3 INCOME & EXPENSE'!M709","v":{"v":0,"d":"0.0"}},{"$f":"'3 INCOME & EXPENSE'!N709","v":{"v":0,"d":"$0.00"}},{"$f":"'3 INCOME & EXPENSE'!O709","v":{"v":0,"d":"$0.00"}},836,{"$f":"'3 INCOME & EXPENSE'!Z709","v":31},31000,31031,0]
[null,null,{"$f":"IF('3 INCOME & EXPENSE'!E710=0,\"\",'3 INCOME & EXPENSE'!E710)","v":""},{"$f":"T('3 INCOME & EXPENSE'!G710)","v":""},{"$f":"'3 INCOME & EXPENSE'!M710","v":{"v":0,"d":"0.0"}},{"$f":"'3 INCOME & EXPENSE'!N710","v":{"v":0,"d":"$0.00"}},{"$f":"'3 INCOME & EXPENSE'!O710","v":{"v":0,"d":"$0.00"}},837,{"$f":"'3 INCOME & EXPENSE'!Z710","v":31},31000,31031,0]
[null,null,{"$f":"IF('3 INCOME & EXPENSE'!E711=0,\"\",'3 INCOME & EXPENSE'!E711)","v":""},{"$f":"T('3 INCOME & EXPENSE'!G711)","v":""},{"$f":"'3 INCOME & EXPENSE'!M711","v":{"v":0,"d":"0.0"}},{"$f":"'3 INCOME & EXPENSE'!N711","v":{"v":0,"d":"$0.00"}},{"$f":"'3 INCOME & EXPENSE'!O711","v":{"v":0,"d":"$0.00"}},838,{"$f":"'3 INCOME & EXPENSE'!Z711","v":31},31000,31031,0]
[null,null,{"$f":"IF('3 INCOME & EXPENSE'!E712=0,\"\",'3 INCOME & EXPENSE'!E712)","v":""},{"$f":"T('3 INCOME & EXPENSE'!G712)","v":""},{"$f":"'3 INCOME & EXPENSE'!M712","v":{"v":0,"d":"0.0"}},{"$f":"'3 INCOME & EXPENSE'!N712","v":{"v":0,"d":"$0.00"}},{"$f":"'3 INCOME & EXPENSE'!O712","v":{"v":0,"d":"$0.00"}},839,{"$f":"'3 INCOME & EXPENSE'!Z712","v":31},31000,31031,0]
[null,null,{"$f":"IF('3 INCOME & EXPENSE'!E713=0,\"\",'3 INCOME & EXPENSE'!E713)","v":""},{"$f":"T('3 INCOME & EXPENSE'!G713)","v":""},{"$f":"'3 INCOME & EXPENSE'!M713","v":{"v":0,"d":"0.0"}},{"$f":"'3 INCOME & EXPENSE'!N713","v":{"v":0,"d":"$0.00"}},{"$f":"'3 INCOME & EXPENSE'!O713","v":{"v":0,"d":"$0.00"}},840,{"$f":"'3 INCOME & EXPENSE'!Z713","v":31},31000,31031,0]
[null,null,{"$f":"IF('3 INCOME & EXPENSE'!E714=0,\"\",'3 INCOME & EXPENSE'!E714)","v":""},{"$f":"T('3 INCOME & EXPENSE'!G714)","v":""},{"$f":"'3 INCOME & EXPENSE'!M714","v":{"v":0,"d":"0.0"}},{"$f":"'3 INCOME & EXPENSE'!N714","v":{"v":0,"d":"$0.00"}},{"$f":"'3 INCOME & EXPENSE'!O714","v":{"v":0,"d":"$0.00"}},841,{"$f":"'3 INCOME & EXPENSE'!Z714","v":31},31000,31031,0]
[null,null,{"$f":"IF('3 INCOME & EXPENSE'!E715=0,\"\",'3 INCOME & EXPENSE'!E715)","v":""},{"$f":"T('3 INCOME & EXPENSE'!G715)","v":""},{"$f":"'3 INCOME & EXPENSE'!M715","v":{"v":0,"d":"0.0"}},{"$f":"'3 INCOME & EXPENSE'!N715","v":{"v":0,"d":"$0.00"}},{"$f":"'3 INCOME & EXPENSE'!O715","v":{"v":0,"d":"$0.00"}},842,{"$f":"'3 INCOME & EXPENSE'!Z715","v":31},31000,31031,0]
[null,null,{"$f":"IF('3 INCOME & EXPENSE'!E716=0,\"\",'3 INCOME & EXPENSE'!E716)","v":""},{"$f":"T('3 INCOME & EXPENSE'!G716)","v":""},{"$f":"'3 INCOME & EXPENSE'!M716","v":{"v":0,"d":"0.0"}},{"$f":"'3 INCOME & EXPENSE'!N716","v":{"v":0,"d":"$0.00"}},{"$f":"'3 INCOME & EXPENSE'!O716","v":{"v":0,"d":"$0.00"}},843,{"$f":"'3 INCOME & EXPENSE'!Z716","v":31},31000,31031,0]
[null,null,{"$f":"IF('3 INCOME & EXPENSE'!E717=0,\"\",'3 INCOME & EXPENSE'!E717)","v":""},{"$f":"T('3 INCOME & EXPENSE'!G717)","v":""},{"$f":"'3 INCOME & EXPENSE'!M717","v":{"v":0,"d":"0.0"}},{"$f":"'3 INCOME & EXPENSE'!N717","v":{"v":0,"d":"$0.00"}},{"$f":"'3 INCOME & EXPENSE'!O717","v":{"v":0,"d":"$0.00"}},844,{"$f":"'3 INCOME & EXPENSE'!Z717","v":31},31000,31031,0]
[null,null,{"$f":"IF('3 INCOME & EXPENSE'!E718=0,\"\",'3 INCOME & EXPENSE'!E718)","v":""},{"$f":"T('3 INCOME & EXPENSE'!G718)","v":""},{"$f":"'3 INCOME & EXPENSE'!M718","v":{"v":0,"d":"0.0"}},{"$f":"'3 INCOME & EXPENSE'!N718","v":{"v":0,"d":"$0.00"}},{"$f":"'3 INCOME & EXPENSE'!O718","v":{"v":0,"d":"$0.00"}},845,{"$f":"'3 INCOME & EXPENSE'!Z718","v":31},{"$f":"VLOOKUP(I856,$J$939:$K$969,2)","v":31000},31031,{"$f":"K856*E856","v":0}]
[null,null,{"$f":"IF('3 INCOME & EXPENSE'!E719=0,\"\",'3 INCOME & EXPENSE'!E719)","v":""},{"$f":"T('3 INCOME & EXPENSE'!G719)","v":""},{"$f":"'3 INCOME & EXPENSE'!M719","v":{"v":0,"d":"0.0"}},{"$f":"'3 INCOME & EXPENSE'!N719","v":{"v":0,"d":"$0.00"}},{"$f":"'3 INCOME & EXPENSE'!O719","v":{"v":0,"d":"$0.00"}},846,{"$f":"'3 INCOME & EXPENSE'!Z719","v":31},31000,31031,0]
[null,null,{"$f":"IF('3 INCOME & EXPENSE'!E720=0,\"\",'3 INCOME & EXPENSE'!E720)","v":""},{"$f":"T('3 INCOME & EXPENSE'!G720)","v":""},{"$f":"'3 INCOME & EXPENSE'!M720","v":{"v":0,"d":"0.0"}},{"$f":"'3 INCOME & EXPENSE'!N720","v":{"v":0,"d":"$0.00"}},{"$f":"'3 INCOME & EXPENSE'!O720","v":{"v":0,"d":"$0.00"}},847,{"$f":"'3 INCOME & EXPENSE'!Z720","v":31},31000,31031,0]
[null,null,{"$f":"IF('3 INCOME & EXPENSE'!E721=0,\"\",'3 INCOME & EXPENSE'!E721)","v":""},{"$f":"T('3 INCOME & EXPENSE'!G721)","v":""},{"$f":"'3 INCOME & EXPENSE'!M721","v":{"v":0,"d":"0.0"}},{"$f":"'3 INCOME & EXPENSE'!N721","v":{"v":0,"d":"$0.00"}},{"$f":"'3 INCOME & EXPENSE'!O721","v":{"v":0,"d":"$0.00"}},848,{"$f":"'3 INCOME & EXPENSE'!Z721","v":31},31000,31031,0]
[null,null,{"$f":"IF('3 INCOME & EXPENSE'!E722=0,\"\",'3 INCOME & EXPENSE'!E722)","v":""},{"$f":"T('3 INCOME & EXPENSE'!G722)","v":""},{"$f":"'3 INCOME & EXPENSE'!M722","v":{"v":0,"d":"0.0"}},{"$f":"'3 INCOME & EXPENSE'!N722","v":{"v":0,"d":"$0.00"}},{"$f":"'3 INCOME & EXPENSE'!O722","v":{"v":0,"d":"$0.00"}},849,{"$f":"'3 INCOME & EXPENSE'!Z722","v":31},31000,31031,0]
[null,null,{"$f":"IF('3 INCOME & EXPENSE'!E723=0,\"\",'3 INCOME & EXPENSE'!E723)","v":""},{"$f":"T('3 INCOME & EXPENSE'!G723)","v":""},{"$f":"'3 INCOME & EXPENSE'!M723","v":{"v":0,"d":"0.0"}},{"$f":"'3 INCOME & EXPENSE'!N723","v":{"v":0,"d":"$0.00"}},{"$f":"'3 INCOME & EXPENSE'!O723","v":{"v":0,"d":"$0.00"}},850,{"$f":"'3 INCOME & EXPENSE'!Z723","v":31},31000,31031,0]
[null,null,{"$f":"IF('3 INCOME & EXPENSE'!E724=0,\"\",'3 INCOME & EXPENSE'!E724)","v":""},{"$f":"T('3 INCOME & EXPENSE'!G724)","v":""},{"$f":"'3 INCOME & EXPENSE'!M724","v":{"v":0,"d":"0.0"}},{"$f":"'3 INCOME & EXPENSE'!N724","v":{"v":0,"d":"$0.00"}},{"$f":"'3 INCOME & EXPENSE'!O724","v":{"v":0,"d":"$0.00"}},851,{"$f":"'3 INCOME & EXPENSE'!Z724","v":31},31000,31031,0]
[null,null,{"$f":"IF('3 INCOME & EXPENSE'!E725=0,\"\",'3 INCOME & EXPENSE'!E725)","v":""},{"$f":"T('3 INCOME & EXPENSE'!G725)","v":""},{"$f":"'3 INCOME & EXPENSE'!M725","v":{"v":0,"d":"0.0"}},{"$f":"'3 INCOME & EXPENSE'!N725","v":{"v":0,"d":"$0.00"}},{"$f":"'3 INCOME & EXPENSE'!O725","v":{"v":0,"d":"$0.00"}},852,{"$f":"'3 INCOME & EXPENSE'!Z725","v":31},31000,31031,0]
[null,null,{"$f":"IF('3 INCOME & EXPENSE'!E726=0,\"\",'3 INCOME & EXPENSE'!E726)","v":""},{"$f":"T('3 INCOME & EXPENSE'!G726)","v":""},{"$f":"'3 INCOME & EXPENSE'!M726","v":{"v":0,"d":"0.0"}},{"$f":"'3 INCOME & EXPENSE'!N726","v":{"v":0,"d":"$0.00"}},{"$f":"'3 INCOME & EXPENSE'!O726","v":{"v":0,"d":"$0.00"}},853,{"$f":"'3 INCOME & EXPENSE'!Z726","v":31},31000,31031,0]
[null,null,{"$f":"IF('3 INCOME & EXPENSE'!E727=0,\"\",'3 INCOME & EXPENSE'!E727)","v":""},{"$f":"T('3 INCOME & EXPENSE'!G727)","v":""},{"$f":"'3 INCOME & EXPENSE'!M727","v":{"v":0,"d":"0.0"}},{"$f":"'3 INCOME & EXPENSE'!N727","v":{"v":0,"d":"$0.00"}},{"$f":"'3 INCOME & EXPENSE'!O727","v":{"v":0,"d":"$0.00"}},854,{"$f":"'3 INCOME & EXPENSE'!Z727","v":31},31000,31031,0]
[null,null,{"$f":"IF('3 INCOME & EXPENSE'!E728=0,\"\",'3 INCOME & EXPENSE'!E728)","v":""},{"$f":"T('3 INCOME & EXPENSE'!G728)","v":""},{"$f":"'3 INCOME & EXPENSE'!M728","v":{"v":0,"d":"0.0"}},{"$f":"'3 INCOME & EXPENSE'!N728","v":{"v":0,"d":"$0.00"}},{"$f":"'3 INCOME & EXPENSE'!O728","v":{"v":0,"d":"$0.00"}},855,{"$f":"'3 INCOME & EXPENSE'!Z728","v":31},31000,31031,0]
[null,null,{"$f":"IF('3 INCOME & EXPENSE'!E729=0,\"\",'3 INCOME & EXPENSE'!E729)","v":""},{"$f":"T('3 INCOME & EXPENSE'!G729)","v":""},{"$f":"'3 INCOME & EXPENSE'!M729","v":{"v":0,"d":"0.0"}},{"$f":"'3 INCOME & EXPENSE'!N729","v":{"v":0,"d":"$0.00"}},{"$f":"'3 INCOME & EXPENSE'!O729","v":{"v":0,"d":"$0.00"}},856,{"$f":"'3 INCOME & EXPENSE'!Z729","v":31},31000,31031,0]
[null,null,{"$f":"IF('3 INCOME & EXPENSE'!E730=0,\"\",'3 INCOME & EXPENSE'!E730)","v":""},{"$f":"T('3 INCOME & EXPENSE'!G730)","v":""},{"$f":"'3 INCOME & EXPENSE'!M730","v":{"v":0,"d":"0.0"}},{"$f":"'3 INCOME & EXPENSE'!N730","v":{"v":0,"d":"$0.00"}},{"$f":"'3 INCOME & EXPENSE'!O730","v":{"v":0,"d":"$0.00"}},857,{"$f":"'3 INCOME & EXPENSE'!Z730","v":31},31000,31031,0]
[null,null,{"$f":"IF('3 INCOME & EXPENSE'!E731=0,\"\",'3 INCOME & EXPENSE'!E731)","v":""},{"$f":"T('3 INCOME & EXPENSE'!G731)","v":""},{"$f":"'3 INCOME & EXPENSE'!M731","v":{"v":0,"d":"0.0"}},{"$f":"'3 INCOME & EXPENSE'!N731","v":{"v":0,"d":"$0.00"}},{"$f":"'3 INCOME & EXPENSE'!O731","v":{"v":0,"d":"$0.00"}},858,{"$f":"'3 INCOME & EXPENSE'!Z731","v":31},31000,31031,0]
[null,null,{"$f":"IF('3 INCOME & EXPENSE'!E732=0,\"\",'3 INCOME & EXPENSE'!E732)","v":""},{"$f":"T('3 INCOME & EXPENSE'!G732)","v":""},{"$f":"'3 INCOME & EXPENSE'!M732","v":{"v":0,"d":"0.0"}},{"$f":"'3 INCOME & EXPENSE'!N732","v":{"v":0,"d":"$0.00"}},{"$f":"'3 INCOME & EXPENSE'!O732","v":{"v":0,"d":"$0.00"}},859,{"$f":"'3 INCOME & EXPENSE'!Z732","v":31},31000,31031,0]
[null,null,{"$f":"IF('3 INCOME & EXPENSE'!E733=0,\"\",'3 INCOME & EXPENSE'!E733)","v":""},{"$f":"T('3 INCOME & EXPENSE'!G733)","v":""},{"$f":"'3 INCOME & EXPENSE'!M733","v":{"v":0,"d":"0.0"}},{"$f":"'3 INCOME & EXPENSE'!N733","v":{"v":0,"d":"$0.00"}},{"$f":"'3 INCOME & EXPENSE'!O733","v":{"v":0,"d":"$0.00"}},860,{"$f":"'3 INCOME & EXPENSE'!Z733","v":31},31000,31031,0]
[null,null,{"$f":"IF('3 INCOME & EXPENSE'!E734=0,\"\",'3 INCOME & EXPENSE'!E734)","v":""},{"$f":"T('3 INCOME & EXPENSE'!G734)","v":""},{"$f":"'3 INCOME & EXPENSE'!M734","v":{"v":0,"d":"0.0"}},{"$f":"'3 INCOME & EXPENSE'!N734","v":{"v":0,"d":"$0.00"}},{"$f":"'3 INCOME & EXPENSE'!O734","v":{"v":0,"d":"$0.00"}},861,{"$f":"'3 INCOME & EXPENSE'!Z734","v":31},31000,31031,0]
[null,null,{"$f":"IF('3 INCOME & EXPENSE'!E735=0,\"\",'3 INCOME & EXPENSE'!E735)","v":""},{"$f":"T('3 INCOME & EXPENSE'!G735)","v":""},{"$f":"'3 INCOME & EXPENSE'!M735","v":{"v":0,"d":"0.0"}},{"$f":"'3 INCOME & EXPENSE'!N735","v":{"v":0,"d":"$0.00"}},{"$f":"'3 INCOME & EXPENSE'!O735","v":{"v":0,"d":"$0.00"}},862,{"$f":"'3 INCOME & EXPENSE'!Z735","v":31},31000,31031,0]
[null,null,{"$f":"IF('3 INCOME & EXPENSE'!E736=0,\"\",'3 INCOME & EXPENSE'!E736)","v":""},{"$f":"T('3 INCOME & EXPENSE'!G736)","v":""},{"$f":"'3 INCOME & EXPENSE'!M736","v":{"v":0,"d":"0.0"}},{"$f":"'3 INCOME & EXPENSE'!N736","v":{"v":0,"d":"$0.00"}},{"$f":"'3 INCOME & EXPENSE'!O736","v":{"v":0,"d":"$0.00"}},863,{"$f":"'3 INCOME & EXPENSE'!Z736","v":31},31000,31031,0]
[null,null,{"$f":"IF('3 INCOME & EXPENSE'!E737=0,\"\",'3 INCOME & EXPENSE'!E737)","v":""},{"$f":"T('3 INCOME & EXPENSE'!G737)","v":""},{"$f":"'3 INCOME & EXPENSE'!M737","v":{"v":0,"d":"0.0"}},{"$f":"'3 INCOME & EXPENSE'!N737","v":{"v":0,"d":"$0.00"}},{"$f":"'3 INCOME & EXPENSE'!O737","v":{"v":0,"d":"$0.00"}},864,{"$f":"'3 INCOME & EXPENSE'!Z737","v":31},31000,31031,0]
[null,null,{"$f":"IF('3 INCOME & EXPENSE'!E738=0,\"\",'3 INCOME & EXPENSE'!E738)","v":""},{"$f":"T('3 INCOME & EXPENSE'!G738)","v":""},{"$f":"'3 INCOME & EXPENSE'!M738","v":{"v":0,"d":"0.0"}},{"$f":"'3 INCOME & EXPENSE'!N738","v":{"v":0,"d":"$0.00"}},{"$f":"'3 INCOME & EXPENSE'!O738","v":{"v":0,"d":"$0.00"}},865,{"$f":"'3 INCOME & EXPENSE'!Z738","v":31},31000,31031,0]
[null,null,{"$f":"IF('3 INCOME & EXPENSE'!E739=0,\"\",'3 INCOME & EXPENSE'!E739)","v":""},{"$f":"T('3 INCOME & EXPENSE'!G739)","v":""},{"$f":"'3 INCOME & EXPENSE'!M739","v":{"v":0,"d":"0.0"}},{"$f":"'3 INCOME & EXPENSE'!N739","v":{"v":0,"d":"$0.00"}},{"$f":"'3 INCOME & EXPENSE'!O739","v":{"v":0,"d":"$0.00"}},866,{"$f":"'3 INCOME & EXPENSE'!Z739","v":31},31000,31031,0]
[null,null,{"$f":"IF('3 INCOME & EXPENSE'!E740=0,\"\",'3 INCOME & EXPENSE'!E740)","v":""},{"$f":"T('3 INCOME & EXPENSE'!G740)","v":""},{"$f":"'3 INCOME & EXPENSE'!M740","v":{"v":0,"d":"0.0"}},{"$f":"'3 INCOME & EXPENSE'!N740","v":{"v":0,"d":"$0.00"}},{"$f":"'3 INCOME & EXPENSE'!O740","v":{"v":0,"d":"$0.00"}},867,{"$f":"'3 INCOME & EXPENSE'!Z740","v":31},31000,31031,0]
[null,null,{"$f":"IF('3 INCOME & EXPENSE'!E741=0,\"\",'3 INCOME & EXPENSE'!E741)","v":""},{"$f":"T('3 INCOME & EXPENSE'!G741)","v":""},{"$f":"'3 INCOME & EXPENSE'!M741","v":{"v":0,"d":"0.0"}},{"$f":"'3 INCOME & EXPENSE'!N741","v":{"v":0,"d":"$0.00"}},{"$f":"'3 INCOME & EXPENSE'!O741","v":{"v":0,"d":"$0.00"}},868,{"$f":"'3 INCOME & EXPENSE'!Z741","v":31},31000,31031,0]
[null,null,{"$f":"IF('3 INCOME & EXPENSE'!E742=0,\"\",'3 INCOME & EXPENSE'!E742)","v":""},{"$f":"T('3 INCOME & EXPENSE'!G742)","v":""},{"$f":"'3 INCOME & EXPENSE'!M742","v":{"v":0,"d":"0.0"}},{"$f":"'3 INCOME & EXPENSE'!N742","v":{"v":0,"d":"$0.00"}},{"$f":"'3 INCOME & EXPENSE'!O742","v":{"v":0,"d":"$0.00"}},869,{"$f":"'3 INCOME & EXPENSE'!Z742","v":31},31000,31031,0]
[null,null,{"$f":"IF('3 INCOME & EXPENSE'!E743=0,\"\",'3 INCOME & EXPENSE'!E743)","v":""},{"$f":"T('3 INCOME & EXPENSE'!G743)","v":""},{"$f":"'3 INCOME & EXPENSE'!M743","v":{"v":0,"d":"0.0"}},{"$f":"'3 INCOME & EXPENSE'!N743","v":{"v":0,"d":"$0.00"}},{"$f":"'3 INCOME & EXPENSE'!O743","v":{"v":0,"d":"$0.00"}},870,{"$f":"'3 INCOME & EXPENSE'!Z743","v":31},31000,31031,0]
[null,null,{"$f":"IF('3 INCOME & EXPENSE'!E744=0,\"\",'3 INCOME & EXPENSE'!E744)","v":""},{"$f":"T('3 INCOME & EXPENSE'!G744)","v":""},{"$f":"'3 INCOME & EXPENSE'!M744","v":{"v":0,"d":"0.0"}},{"$f":"'3 INCOME & EXPENSE'!N744","v":{"v":0,"d":"$0.00"}},{"$f":"'3 INCOME & EXPENSE'!O744","v":{"v":0,"d":"$0.00"}},871,{"$f":"'3 INCOME & EXPENSE'!Z744","v":31},31000,31031,0]
[null,null,{"$f":"IF('3 INCOME & EXPENSE'!E745=0,\"\",'3 INCOME & EXPENSE'!E745)","v":""},{"$f":"T('3 INCOME & EXPENSE'!G745)","v":""},{"$f":"'3 INCOME & EXPENSE'!M745","v":{"v":0,"d":"0.0"}},{"$f":"'3 INCOME & EXPENSE'!N745","v":{"v":0,"d":"$0.00"}},{"$f":"'3 INCOME & EXPENSE'!O745","v":{"v":0,"d":"$0.00"}},872,{"$f":"'3 INCOME & EXPENSE'!Z745","v":31},31000,31031,0]
[null,null,{"$f":"IF('3 INCOME & EXPENSE'!E746=0,\"\",'3 INCOME & EXPENSE'!E746)","v":""},{"$f":"T('3 INCOME & EXPENSE'!G746)","v":""},{"$f":"'3 INCOME & EXPENSE'!M746","v":{"v":0,"d":"0.0"}},{"$f":"'3 INCOME & EXPENSE'!N746","v":{"v":0,"d":"$0.00"}},{"$f":"'3 INCOME & EXPENSE'!O746","v":{"v":0,"d":"$0.00"}},873,{"$f":"'3 INCOME & EXPENSE'!Z746","v":31},31000,31031,0]
[null,null,{"$f":"IF('3 INCOME & EXPENSE'!E747=0,\"\",'3 INCOME & EXPENSE'!E747)","v":""},{"$f":"T('3 INCOME & EXPENSE'!G747)","v":""},{"$f":"'3 INCOME & EXPENSE'!M747","v":{"v":0,"d":"0.0"}},{"$f":"'3 INCOME & EXPENSE'!N747","v":{"v":0,"d":"$0.00"}},{"$f":"'3 INCOME & EXPENSE'!O747","v":{"v":0,"d":"$0.00"}},874,{"$f":"'3 INCOME & EXPENSE'!Z747","v":31},31000,31031,0]
[null,null,{"$f":"IF('3 INCOME & EXPENSE'!E748=0,\"\",'3 INCOME & EXPENSE'!E748)","v":""},{"$f":"T('3 INCOME & EXPENSE'!G748)","v":""},{"$f":"'3 INCOME & EXPENSE'!M748","v":{"v":0,"d":"0.0"}},{"$f":"'3 INCOME & EXPENSE'!N748","v":{"v":0,"d":"$0.00"}},{"$f":"'3 INCOME & EXPENSE'!O748","v":{"v":0,"d":"$0.00"}},875,{"$f":"'3 INCOME & EXPENSE'!Z748","v":31},31000,31031,0]
[null,null,{"$f":"IF('3 INCOME & EXPENSE'!E749=0,\"\",'3 INCOME & EXPENSE'!E749)","v":""},{"$f":"T('3 INCOME & EXPENSE'!G749)","v":""},{"$f":"'3 INCOME & EXPENSE'!M749","v":{"v":0,"d":"0.0"}},{"$f":"'3 INCOME & EXPENSE'!N749","v":{"v":0,"d":"$0.00"}},{"$f":"'3 INCOME & EXPENSE'!O749","v":{"v":0,"d":"$0.00"}},876,{"$f":"'3 INCOME & EXPENSE'!Z749","v":31},31000,31031,0]
[null,null,{"$f":"IF('3 INCOME & EXPENSE'!E750=0,\"\",'3 INCOME & EXPENSE'!E750)","v":""},{"$f":"T('3 INCOME & EXPENSE'!G750)","v":""},{"$f":"'3 INCOME & EXPENSE'!M750","v":{"v":0,"d":"0.0"}},{"$f":"'3 INCOME & EXPENSE'!N750","v":{"v":0,"d":"$0.00"}},{"$f":"'3 INCOME & EXPENSE'!O750","v":{"v":0,"d":"$0.00"}},877,{"$f":"'3 INCOME & EXPENSE'!Z750","v":31},31000,31031,0]
[null,null,{"$f":"IF('3 INCOME & EXPENSE'!E751=0,\"\",'3 INCOME & EXPENSE'!E751)","v":""},{"$f":"T('3 INCOME & EXPENSE'!G751)","v":""},{"$f":"'3 INCOME & EXPENSE'!M751","v":{"v":0,"d":"0.0"}},{"$f":"'3 INCOME & EXPENSE'!N751","v":{"v":0,"d":"$0.00"}},{"$f":"'3 INCOME & EXPENSE'!O751","v":{"v":0,"d":"$0.00"}},878,{"$f":"'3 INCOME & EXPENSE'!Z751","v":31},31000,31031,0]
[null,null,{"$f":"IF('3 INCOME & EXPENSE'!E752=0,\"\",'3 INCOME & EXPENSE'!E752)","v":""},{"$f":"T('3 INCOME & EXPENSE'!G752)","v":""},{"$f":"'3 INCOME & EXPENSE'!M752","v":{"v":0,"d":"0.0"}},{"$f":"'3 INCOME & EXPENSE'!N752","v":{"v":0,"d":"$0.00"}},{"$f":"'3 INCOME & EXPENSE'!O752","v":{"v":0,"d":"$0.00"}},879,{"$f":"'3 INCOME & EXPENSE'!Z752","v":31},31000,31031,0]
[null,null,{"$f":"IF('3 INCOME & EXPENSE'!E753=0,\"\",'3 INCOME & EXPENSE'!E753)","v":""},{"$f":"T('3 INCOME & EXPENSE'!G753)","v":""},{"$f":"'3 INCOME & EXPENSE'!M753","v":{"v":0,"d":"0.0"}},{"$f":"'3 INCOME & EXPENSE'!N753","v":{"v":0,"d":"$0.00"}},{"$f":"'3 INCOME & EXPENSE'!O753","v":{"v":0,"d":"$0.00"}},880,{"$f":"'3 INCOME & EXPENSE'!Z753","v":31},31000,31031,0]
[null,null,{"$f":"IF('3 INCOME & EXPENSE'!E754=0,\"\",'3 INCOME & EXPENSE'!E754)","v":""},{"$f":"T('3 INCOME & EXPENSE'!G754)","v":""},{"$f":"'3 INCOME & EXPENSE'!M754","v":{"v":0,"d":"0.0"}},{"$f":"'3 INCOME & EXPENSE'!N754","v":{"v":0,"d":"$0.00"}},{"$f":"'3 INCOME & EXPENSE'!O754","v":{"v":0,"d":"$0.00"}},881,{"$f":"'3 INCOME & EXPENSE'!Z754","v":31},31000,31031,0]
[null,null,{"$f":"IF('3 INCOME & EXPENSE'!E755=0,\"\",'3 INCOME & EXPENSE'!E755)","v":""},{"$f":"T('3 INCOME & EXPENSE'!G755)","v":""},{"$f":"'3 INCOME & EXPENSE'!M755","v":{"v":0,"d":"0.0"}},{"$f":"'3 INCOME & EXPENSE'!N755","v":{"v":0,"d":"$0.00"}},{"$f":"'3 INCOME & EXPENSE'!O755","v":{"v":0,"d":"$0.00"}},882,{"$f":"'3 INCOME & EXPENSE'!Z755","v":31},31000,31031,0]
[null,null,{"$f":"IF('3 INCOME & EXPENSE'!E756=0,\"\",'3 INCOME & EXPENSE'!E756)","v":""},{"$f":"T('3 INCOME & EXPENSE'!G756)","v":""},{"$f":"'3 INCOME & EXPENSE'!M756","v":{"v":0,"d":"0.0"}},{"$f":"'3 INCOME & EXPENSE'!N756","v":{"v":0,"d":"$0.00"}},{"$f":"'3 INCOME & EXPENSE'!O756","v":{"v":0,"d":"$0.00"}},883,{"$f":"'3 INCOME & EXPENSE'!Z756","v":31},31000,31031,0]
[null,null,{"$f":"IF('3 INCOME & EXPENSE'!E757=0,\"\",'3 INCOME & EXPENSE'!E757)","v":""},{"$f":"T('3 INCOME & EXPENSE'!G757)","v":""},{"$f":"'3 INCOME & EXPENSE'!M757","v":{"v":0,"d":"0.0"}},{"$f":"'3 INCOME & EXPENSE'!N757","v":{"v":0,"d":"$0.00"}},{"$f":"'3 INCOME & EXPENSE'!O757","v":{"v":0,"d":"$0.00"}},884,{"$f":"'3 INCOME & EXPENSE'!Z757","v":31},31000,31031,0]
[null,null,{"$f":"IF('3 INCOME & EXPENSE'!E758=0,\"\",'3 INCOME & EXPENSE'!E758)","v":""},{"$f":"T('3 INCOME & EXPENSE'!G758)","v":""},{"$f":"'3 INCOME & EXPENSE'!M758","v":{"v":0,"d":"0.0"}},{"$f":"'3 INCOME & EXPENSE'!N758","v":{"v":0,"d":"$0.00"}},{"$f":"'3 INCOME & EXPENSE'!O758","v":{"v":0,"d":"$0.00"}},885,{"$f":"'3 INCOME & EXPENSE'!Z758","v":31},31000,31031,0]
[null,null,{"$f":"IF('3 INCOME & EXPENSE'!E759=0,\"\",'3 INCOME & EXPENSE'!E759)","v":""},{"$f":"T('3 INCOME & EXPENSE'!G759)","v":""},{"$f":"'3 INCOME & EXPENSE'!M759","v":{"v":0,"d":"0.0"}},{"$f":"'3 INCOME & EXPENSE'!N759","v":{"v":0,"d":"$0.00"}},{"$f":"'3 INCOME & EXPENSE'!O759","v":{"v":0,"d":"$0.00"}},886,{"$f":"'3 INCOME & EXPENSE'!Z759","v":31},31000,31031,0]
[null,null,{"$f":"IF('3 INCOME & EXPENSE'!E760=0,\"\",'3 INCOME & EXPENSE'!E760)","v":""},{"$f":"T('3 INCOME & EXPENSE'!G760)","v":""},{"$f":"'3 INCOME & EXPENSE'!M760","v":{"v":0,"d":"0.0"}},{"$f":"'3 INCOME & EXPENSE'!N760","v":{"v":0,"d":"$0.00"}},{"$f":"'3 INCOME & EXPENSE'!O760","v":{"v":0,"d":"$0.00"}},887,{"$f":"'3 INCOME & EXPENSE'!Z760","v":31},31000,31031,0]
[null,null,{"$f":"IF('3 INCOME & EXPENSE'!E761=0,\"\",'3 INCOME & EXPENSE'!E761)","v":""},{"$f":"T('3 INCOME & EXPENSE'!G761)","v":""},{"$f":"'3 INCOME & EXPENSE'!M761","v":{"v":0,"d":"0.0"}},{"$f":"'3 INCOME & EXPENSE'!N761","v":{"v":0,"d":"$0.00"}},{"$f":"'3 INCOME & EXPENSE'!O761","v":{"v":0,"d":"$0.00"}},888,{"$f":"'3 INCOME & EXPENSE'!Z761","v":31},31000,31031,0]
[null,null,{"$f":"IF('3 INCOME & EXPENSE'!E762=0,\"\",'3 INCOME & EXPENSE'!E762)","v":""},{"$f":"T('3 INCOME & EXPENSE'!G762)","v":""},{"$f":"'3 INCOME & EXPENSE'!M762","v":{"v":0,"d":"0.0"}},{"$f":"'3 INCOME & EXPENSE'!N762","v":{"v":0,"d":"$0.00"}},{"$f":"'3 INCOME & EXPENSE'!O762","v":{"v":0,"d":"$0.00"}},889,{"$f":"'3 INCOME & EXPENSE'!Z762","v":31},31000,31031,0]
[null,null,{"$f":"IF('3 INCOME & EXPENSE'!E763=0,\"\",'3 INCOME & EXPENSE'!E763)","v":""},{"$f":"T('3 INCOME & EXPENSE'!G763)","v":""},{"$f":"'3 INCOME & EXPENSE'!M763","v":{"v":0,"d":"0.0"}},{"$f":"'3 INCOME & EXPENSE'!N763","v":{"v":0,"d":"$0.00"}},{"$f":"'3 INCOME & EXPENSE'!O763","v":{"v":0,"d":"$0.00"}},890,{"$f":"'3 INCOME & EXPENSE'!Z763","v":31},31000,31031,0]
[{"$nulls":5},"TOTAL EXPENSES",{"$f":"TOTAL_EXPENSES","v":{"v":76902.87999999999,"d":"$76,903"}},891,101,100000,100101,{"$f":"IF(G902>0,1,0)","v":1}]
[null,null,"© 2016 by Houseflippingspreadsheet.com. All rights reserved"]
[]
[]
[]
[{"$nulls":8},1,{"$f":"T('EXPENSE DATABASE'!E6)","v":"PURCHASE PRICE"},{"$f":"COUNTIF($I$152:$I$902,I907)","v":1},{"$f":"Purchase_Expense","v":{"v":52000,"d":"$52,000"}}]
[{"$nulls":8},2,{"$f":"T('EXPENSE DATABASE'!E7)","v":"BUYING COSTS"},{"$f":"COUNTIF($I$152:$I$902,I908)","v":2},{"$f":"Buying_Costs_Expenses","v":{"v":1060,"d":"$1,060"}}]
[{"$nulls":8},3,{"$f":"T('EXPENSE DATABASE'!E8)","v":"HOLDING COSTS"},0,{"$f":"Holding_Costs_Expenses","v":0}]
[{"$nulls":8},4,{"$f":"T('EXPENSE DATABASE'!E9)","v":"SELLING COSTS"},0,{"$f":"Selling_Costs_Expenses","v":0}]
[{"$nulls":8},5,{"$f":"T('EXPENSE DATABASE'!E10)","v":"FINANCING COSTS"},0,{"$f":"Financing_Cost_Expenses","v":0}]
[{"$nulls":8},6,{"$f":"T('EXPENSE DATABASE'!E11)","v":"GENERAL CONDITIONS"},0,{"$f":"General_Conditions_Expenses","v":0}]
[{"$nulls":8},7,{"$f":"T('EXPENSE DATABASE'!E12)","v":"DEMOLITION"},4,{"$f":"Demolition_Expenses","v":{"v":1740,"d":"$1,740"}}]
[{"$nulls":8},8,{"$f":"T('EXPENSE DATABASE'!E13)","v":"STRUCTURAL CONCRETE"},0,{"$f":"Structural_Concrete_Expenses","v":0}]
[{"$nulls":8},9,{"$f":"T('EXPENSE DATABASE'!E14)","v":"CONCRETE & FLATWORK"},0,{"$f":"Concrete_Flatwork_Expenses","v":0}]
[{"$nulls":8},10,{"$f":"T('EXPENSE DATABASE'!E15)","v":"MASONRY"},0,{"$f":"Masonry_Expenses","v":0}]
[{"$nulls":8},11,{"$f":"T('EXPENSE DATABASE'!E16)","v":"SIDING"},0,{"$f":"Siding_Expenses","v":0}]
[{"$nulls":8},12,{"$f":"T('EXPENSE DATABASE'!E17)","v":"DECKING AND PATIOS"},0,{"$f":"Decking_Expenses","v":0}]
[{"$nulls":8},13,{"$f":"T('EXPENSE DATABASE'!E18)","v":"ROOFING"},0,{"$f":"Roofing_Expenses","v":0}]
[{"$nulls":8},14,{"$f":"T('EXPENSE DATABASE'!E19)","v":"EXTERIOR DOORS & WINDOWS"},0,{"$f":"Doors_Windows_Expenses","v":0}]
[{"$nulls":8},15,{"$f":"T('EXPENSE DATABASE'!E20)","v":"GARAGE DOORS"},0,{"$f":"Garage_Doors_Expenses","v":0}]
[{"$nulls":8},16,{"$f":"T('EXPENSE DATABASE'!E21)","v":"LANDSCAPING"},0,{"$f":"Landscaping_Expenses","v":0}]
[{"$nulls":8},17,{"$f":"T('EXPENSE DATABASE'!E22)","v":"MISC. EXTERIOR ITEMS"},0,{"$f":"Misc_Ext_Expenses","v":0}]
[{"$nulls":8},18,{"$f":"T('EXPENSE DATABASE'!E23)","v":"FRAMING & DRYWALL"},1,{"$f":"Framing_Drywall_Expenses","v":{"v":500,"d":"$500"}}]
[{"$nulls":8},19,{"$f":"T('EXPENSE DATABASE'!E24)","v":"CABINETS & COUNTERTOPS"},0,{"$f":"Cabinets_Counters_Expenses","v":0}]
[{"$nulls":8},20,{"$f":"T('EXPENSE DATABASE'!E25)","v":"DOORS & TRIM"},3,{"$f":"Doors_Trim_Expenses","v":{"v":3339.3199999999997,"d":"$3,339"}}]
[{"$nulls":8},21,{"$f":"T('EXPENSE DATABASE'!E26)","v":"CARPET & RESILIENT"},0,{"$f":"Carpet_Expenses","v":0}]
[{"$nulls":8},22,{"$f":"T('EXPENSE DATABASE'!E27)","v":"HARDWOOD FLOORING"},1,{"$f":"Hardwood_Flooring_Expenses","v":{"v":567.2,"d":"$567"}}]
[{"$nulls":8},23,{"$f":"T('EXPENSE DATABASE'!E28)","v":"TILING"},2,{"$f":"Tiling_Expenses","v":{"v":2325.23,"d":"$2,325"}}]
[{"$nulls":8},24,{"$f":"T('EXPENSE DATABASE'!E29)","v":"PAINTING"},3,{"$f":"Painting_Expenses","v":{"v":4902.45,"d":"$4,902"}}]
[{"$nulls":8},25,{"$f":"T('EXPENSE DATABASE'!E30)","v":"APPLIANCES"},0,{"$f":"Appliances_Expenses","v":0}]
[{"$nulls":8},26,{"$f":"T('EXPENSE DATABASE'!E31)","v":"PLUMBING"},2,{"$f":"Plumbing_Expenses","v":{"v":3473.08,"d":"$3,473"}}]
[{"$nulls":8},27,{"$f":"T('EXPENSE DATABASE'!E32)","v":"HVAC"},0,{"$f":"HVAC_Expenses","v":0}]
[{"$nulls":8},28,{"$f":"T('EXPENSE DATABASE'!E33)","v":"ELECTRICAL"},2,{"$f":"Electrical_Expenses","v":{"v":2610,"d":"$2,610"}}]
[{"$nulls":8},29,{"$f":"T('EXPENSE DATABASE'!E34)","v":"MISCELLANEOUS"},0,{"$f":"Furnishings_Expenses","v":0}]
[{"$nulls":8},30,{"$f":"T('EXPENSE DATABASE'!E35)","v":"CHANGE ORDER"},{"$f":"COUNTIF($I$152:$I$902,I936)","v":0},{"$f":"Total_Change_Order_Expenses","v":0}]
[{"$nulls":8},31,"UNASSIGNED",729,{"$f":"'EXPENSE DATABASE'!J36","v":{"v":4385.599999999991,"d":"$4,386"}}]
[{"$nulls":10},0,{"$f":"IF(K938='3 INCOME & EXPENSE'!R765,0,1)","v":1}]
[{"$nulls":9},1,1000]
[{"$nulls":9},2,2000]
[{"$nulls":9},3,3000]
[{"$nulls":9},4,4000]
[{"$nulls":9},5,5000]
[{"$nulls":9},6,6000]
[{"$nulls":9},7,7000]
[{"$nulls":9},8,8000]
[{"$nulls":9},9,9000]
[{"$nulls":9},10,10000]
[{"$nulls":9},11,11000]
[{"$nulls":9},12,12000]
[{"$nulls":9},13,13000]
[{"$nulls":9},14,14000]
[{"$nulls":9},15,15000]
[{"$nulls":9},16,16000]
[{"$nulls":9},17,17000]
[{"$nulls":9},18,18000]
[{"$nulls":9},19,19000]
[{"$nulls":9},20,20000]
[{"$nulls":9},21,21000]
[{"$nulls":9},22,22000]
[{"$nulls":9},23,23000]
[{"$nulls":9},24,24000]
[{"$nulls":9},25,25000]
[{"$nulls":9},26,26000]
[{"$nulls":9},27,27000]
[{"$nulls":9},28,28000]
[{"$nulls":9},29,29000]
[{"$nulls":9},30,30000]
[{"$nulls":9},31,31000]

{"sheet":"EXPENSE BY VENDOR","index":53,"n_rows":1287,"n_cols":14,"rows_kept":1287,"hidden":true,"merged":[[1,0,1,1],[125,2,126,2],[125,3,126,3],[125,4,126,4],[125,5,126,5],[125,6,126,6],[1182,2,1182,6]]}
[]
["EXPENSE BY VENDOR",{"$nulls":6},"Shown","Shown",{"$f":"IF(AND(Expense_By_Vendor_Detail_Setting=\"Shown\",Expense_By_Vendor_Summary_Setting=\"Shown\"),\"Both Shown\",\"Other\")","v":"Both Shown"}]
{"$rows_empty":9}
[{"$nulls":8},"RAW","+DESC","TOTAL","QTY"]
[null,null,"VENDOR EXPENSE SUMMARY",{"$nulls":4},1,null,null,1,1]
[null,null,{"$f":"T(Street_Address)","v":"1234 Main St"},{"$nulls":4},2,null,null,2,1]
[null,null,{"$f":"T(City_State_Zip)","v":"Kansas City, MO 64116"},{"$nulls":4},3,null,null,3,1]
[{"$nulls":7},4,null,null,4,1]
[null,null,"VENDORS",null,"Totals",null,"% of Total",5,null,null,5,1]
[null,null,{"$f":"UPPER('EXPENSE DATABASE'!E69)","v":"FIRST 1 BANK"},null,{"$f":"'EXPENSE DATABASE'!F69","v":{"v":52565,"d":"$52,565"}},null,{"$f":"IFERROR(E18/$E$119,0)","v":{"v":0.6835244661838412,"d":"68.4%"}},6,null,null,6,{"$f":"IF(E18>0,1,0)","v":1}]
[null,null,{"$f":"UPPER('EXPENSE DATABASE'!E70)","v":"DEFENBAUGH INDUSTRIES"},null,{"$f":"'EXPENSE DATABASE'!F70","v":{"v":740,"d":"$740"}},null,{"v":0.00962252649055536,"d":"1.0%"},7,null,null,7,1]
[null,null,{"$f":"UPPER('EXPENSE DATABASE'!E71)","v":"DEMOLITION SERVICES INC."},null,{"$f":"'EXPENSE DATABASE'!F71","v":{"v":1000,"d":"$1,000"}},null,{"v":0.013003414176426161,"d":"1.3%"},8,null,null,8,1]
[null,null,{"$f":"UPPER('EXPENSE DATABASE'!E72)","v":"AFFORDABLE REHAB & REMODELING"},null,{"$f":"'EXPENSE DATABASE'!F72","v":{"v":6900,"d":"$6,900"}},null,{"v":0.08972355781734051,"d":"9.0%"},9,null,null,9,1]
[null,null,{"$f":"UPPER('EXPENSE DATABASE'!E73)","v":"LOWES"},null,{"$f":"'EXPENSE DATABASE'!F73","v":{"v":8543.91,"d":"$8,544"}},null,{"v":0.11110000041610925,"d":"11.1%"},10,null,null,10,1]
[null,null,{"$f":"UPPER('EXPENSE DATABASE'!E74)","v":"HOME DEPOT"},null,{"$f":"'EXPENSE DATABASE'!F74","v":{"v":2256.52,"d":"$2,257"}},null,{"v":0.029342464157389163,"d":"2.9%"},11,null,null,11,1]
[null,null,{"$f":"UPPER('EXPENSE DATABASE'!E75)","v":"ACE ELECTRIC"},null,{"$f":"'EXPENSE DATABASE'!F75","v":{"v":1750,"d":"$1,750"}},null,{"v":0.022755974808745784,"d":"2.3%"},12,null,null,12,1]
[null,null,{"$f":"UPPER('EXPENSE DATABASE'!E76)","v":"SHERWIN WILLIAMS"},null,{"$f":"'EXPENSE DATABASE'!F76","v":{"v":2652.45,"d":"$2,652"}},null,{"v":0.03449090593226157,"d":"3.4%"},13,null,null,13,1]
[null,null,{"$f":"UPPER('EXPENSE DATABASE'!E77)","v":"VENDOR 9"},null,{"$f":"'EXPENSE DATABASE'!F77","v":{"v":0,"d":"$0"}},null,{"v":0,"d":"0.0%"},14,null,null,14,0]
[null,null,{"$f":"UPPER('EXPENSE DATABASE'!E78)","v":"VENDOR 10"},null,{"$f":"'EXPENSE DATABASE'!F78","v":{"v":0,"d":"$0"}},null,{"v":0,"d":"0.0%"},15,null,null,15,0]
[null,null,{"$f":"UPPER('EXPENSE DATABASE'!E79)","v":"VENDOR 11"},null,{"$f":"'EXPENSE DATABASE'!F79","v":{"v":0,"d":"$0"}},null,{"v":0,"d":"0.0%"},16,null,null,16,0]
[null,null,{"$f":"UPPER('EXPENSE DATABASE'!E80)","v":"VENDOR 12"},null,{"$f":"'EXPENSE DATABASE'!F80","v":{"v":0,"d":"$0"}},null,{"v":0,"d":"0.0%"},17,null,null,17,0]
[null,null,{"$f":"UPPER('EXPENSE DATABASE'!E81)","v":"VENDOR 13"},null,{"$f":"'EXPENSE DATABASE'!F81","v":{"v":0,"d":"$0"}},null,{"v":0,"d":"0.0%"},18,null,null,18,0]
[null,null,{"$f":"UPPER('EXPENSE DATABASE'!E82)","v":"VENDOR 14"},null,{"$f":"'EXPENSE DATABASE'!F82","v":{"v":0,"d":"$0"}},null,{"v":0,"d":"0.0%"},19,null,null,19,0]
[null,null,{"$f":"UPPER('EXPENSE DATABASE'!E83)","v":"VENDOR 15"},null,{"$f":"'EXPENSE DATABASE'!F83","v":{"v":0,"d":"$0"}},null,{"v":0,"d":"0.0%"},20,null,null,20,0]
[null,null,{"$f":"UPPER('EXPENSE DATABASE'!E84)","v":"VENDOR 16"},null,{"$f":"'EXPENSE DATABASE'!F84","v":{"v":0,"d":"$0"}},null,{"v":0,"d":"0.0%"},21,null,null,21,0]
[null,null,{"$f":"UPPER('EXPENSE DATABASE'!E85)","v":"VENDOR 17"},null,{"$f":"'EXPENSE DATABASE'!F85","v":{"v":0,"d":"$0"}},null,{"v":0,"d":"0.0%"},22,null,null,22,0]
[null,null,{"$f":"UPPER('EXPENSE DATABASE'!E86)","v":"VENDOR 18"},null,{"$f":"'EXPENSE DATABASE'!F86","v":{"v":0,"d":"$0"}},null,{"v":0,"d":"0.0%"},23,null,null,23,0]
[null,null,{"$f":"UPPER('EXPENSE DATABASE'!E87)","v":"VENDOR 19"},null,{"$f":"'EXPENSE DATABASE'!F87","v":{"v":0,"d":"$0"}},null,{"v":0,"d":"0.0%"},24,null,null,24,0]
[null,null,{"$f":"UPPER('EXPENSE DATABASE'!E88)","v":"VENDOR 20"},null,{"$f":"'EXPENSE DATABASE'!F88","v":{"v":0,"d":"$0"}},null,{"v":0,"d":"0.0%"},25,null,null,25,0]
[null,null,{"$f":"UPPER('EXPENSE DATABASE'!E89)","v":"VENDOR 21"},null,{"$f":"'EXPENSE DATABASE'!F89","v":{"v":0,"d":"$0"}},null,{"v":0,"d":"0.0%"},26,null,null,26,0]
[null,null,{"$f":"UPPER('EXPENSE DATABASE'!E90)","v":"VENDOR 22"},null,{"$f":"'EXPENSE DATABASE'!F90","v":{"v":0,"d":"$0"}},null,{"v":0,"d":"0.0%"},27,null,null,27,0]
[null,null,{"$f":"UPPER('EXPENSE DATABASE'!E91)","v":"VENDOR 23"},null,{"$f":"'EXPENSE DATABASE'!F91","v":{"v":0,"d":"$0"}},null,{"v":0,"d":"0.0%"},28,null,null,28,0]
[null,null,{"$f":"UPPER('EXPENSE DATABASE'!E92)","v":"VENDOR 24"},null,{"$f":"'EXPENSE DATABASE'!F92","v":{"v":0,"d":"$0"}},null,{"v":0,"d":"0.0%"},29,null,null,29,0]
[null,null,{"$f":"UPPER('EXPENSE DATABASE'!E93)","v":"VENDOR 25"},null,{"$f":"'EXPENSE DATABASE'!F93","v":{"v":0,"d":"$0"}},null,{"v":0,"d":"0.0%"},30,null,null,30,0]
[null,null,{"$f":"UPPER('EXPENSE DATABASE'!E94)","v":"VENDOR 26"},null,{"$f":"'EXPENSE DATABASE'!F94","v":{"v":0,"d":"$0"}},null,{"v":0,"d":"0.0%"},31,null,null,31,0]
[null,null,{"$f":"UPPER('EXPENSE DATABASE'!E95)","v":"VENDOR 27"},null,{"$f":"'EXPENSE DATABASE'!F95","v":{"v":0,"d":"$0"}},null,{"v":0,"d":"0.0%"},32,null,null,32,0]
[null,null,{"$f":"UPPER('EXPENSE DATABASE'!E96)","v":"VENDOR 28"},null,{"$f":"'EXPENSE DATABASE'!F96","v":{"v":0,"d":"$0"}},null,{"v":0,"d":"0.0%"},33,null,null,33,0]
[null,null,{"$f":"UPPER('EXPENSE DATABASE'!E97)","v":"VENDOR 29"},null,{"$f":"'EXPENSE DATABASE'!F97","v":{"v":0,"d":"$0"}},null,{"v":0,"d":"0.0%"},34,null,null,34,0]
[null,null,{"$f":"UPPER('EXPENSE DATABASE'!E98)","v":"VENDOR 30"},null,{"$f":"'EXPENSE DATABASE'!F98","v":{"v":0,"d":"$0"}},null,{"v":0,"d":"0.0%"},35,null,null,35,0]
[null,null,{"$f":"UPPER('EXPENSE DATABASE'!E99)","v":"VENDOR 31"},null,{"$f":"'EXPENSE DATABASE'!F99","v":{"v":0,"d":"$0"}},null,{"v":0,"d":"0.0%"},36,null,null,36,0]
[null,null,{"$f":"UPPER('EXPENSE DATABASE'!E100)","v":"VENDOR 32"},null,{"$f":"'EXPENSE DATABASE'!F100","v":{"v":0,"d":"$0"}},null,{"v":0,"d":"0.0%"},37,null,null,37,0]
[null,null,{"$f":"UPPER('EXPENSE DATABASE'!E101)","v":"VENDOR 33"},null,{"$f":"'EXPENSE DATABASE'!F101","v":{"v":0,"d":"$0"}},null,{"$f":"IFERROR(E50/$E$119,0)","v":{"v":0,"d":"0.0%"}},38,null,null,38,{"$f":"IF(E50>0,1,0)","v":0}]
[null,null,{"$f":"UPPER('EXPENSE DATABASE'!E102)","v":"VENDOR 34"},null,{"$f":"'EXPENSE DATABASE'!F102","v":{"v":0,"d":"$0"}},null,{"v":0,"d":"0.0%"},39,null,null,39,0]
[null,null,{"$f":"UPPER('EXPENSE DATABASE'!E103)","v":"VENDOR 35"},null,{"$f":"'EXPENSE DATABASE'!F103","v":{"v":0,"d":"$0"}},null,{"v":0,"d":"0.0%"},40,null,null,40,0]
[null,null,{"$f":"UPPER('EXPENSE DATABASE'!E104)","v":"VENDOR 36"},null,{"$f":"'EXPENSE DATABASE'!F104","v":{"v":0,"d":"$0"}},null,{"v":0,"d":"0.0%"},41,null,null,41,0]
[null,null,{"$f":"UPPER('EXPENSE DATABASE'!E105)","v":"VENDOR 37"},null,{"$f":"'EXPENSE DATABASE'!F105","v":{"v":0,"d":"$0"}},null,{"v":0,"d":"0.0%"},42,null,null,42,0]
[null,null,{"$f":"UPPER('EXPENSE DATABASE'!E106)","v":"VENDOR 38"},null,{"$f":"'EXPENSE DATABASE'!F106","v":{"v":0,"d":"$0"}},null,{"v":0,"d":"0.0%"},43,null,null,43,0]
[null,null,{"$f":"UPPER('EXPENSE DATABASE'!E107)","v":"VENDOR 39"},null,{"$f":"'EXPENSE DATABASE'!F107","v":{"v":0,"d":"$0"}},null,{"v":0,"d":"0.0%"},44,null,null,44,0]
[null,null,{"$f":"UPPER('EXPENSE DATABASE'!E108)","v":"VENDOR 40"},null,{"$f":"'EXPENSE DATABASE'!F108","v":{"v":0,"d":"$0"}},null,{"v":0,"d":"0.0%"},45,null,null,45,0]
[null,null,{"$f":"UPPER('EXPENSE DATABASE'!E109)","v":"VENDOR 41"},null,{"$f":"'EXPENSE DATABASE'!F109","v":{"v":0,"d":"$0"}},null,{"v":0,"d":"0.0%"},46,null,null,46,0]
[null,null,{"$f":"UPPER('EXPENSE DATABASE'!E110)","v":"VENDOR 42"},null,{"$f":"'EXPENSE DATABASE'!F110","v":{"v":0,"d":"$0"}},null,{"v":0,"d":"0.0%"},47,null,null,47,0]
[null,null,{"$f":"UPPER('EXPENSE DATABASE'!E111)","v":{"$error":"#REF!"}},null,{"$f":"'EXPENSE DATABASE'!F111","v":{"v":0,"d":"$0"}},null,{"v":0,"d":"0.0%"},48,null,null,48,0]
[null,null,{"$f":"UPPER('EXPENSE DATABASE'!E112)","v":{"$error":"#REF!"}},null,{"$f":"'EXPENSE DATABASE'!F112","v":{"v":0,"d":"$0"}},null,{"v":0,"d":"0.0%"},49,null,null,49,0]
[null,null,{"$f":"UPPER('EXPENSE DATABASE'!E113)","v":{"$error":"#REF!"}},null,{"$f":"'EXPENSE DATABASE'!F113","v":{"v":0,"d":"$0"}},null,{"v":0,"d":"0.0%"},50,null,null,50,0]
[null,null,{"$f":"UPPER('EXPENSE DATABASE'!E114)","v":{"$error":"#REF!"}},null,{"$f":"'EXPENSE DATABASE'!F114","v":{"v":0,"d":"$0"}},null,{"v":0,"d":"0.0%"},51,null,null,51,0]
[null,null,{"$f":"UPPER('EXPENSE DATABASE'!E115)","v":{"$error":"#REF!"}},null,{"$f":"'EXPENSE DATABASE'!F115","v":{"v":0,"d":"$0"}},null,{"v":0,"d":"0.0%"},52,null,null,52,0]
[null,null,{"$f":"UPPER('EXPENSE DATABASE'!E116)","v":{"$error":"#REF!"}},null,{"$f":"'EXPENSE DATABASE'!F116","v":{"v":0,"d":"$0"}},null,{"v":0,"d":"0.0%"},53,null,null,53,0]
[null,null,{"$f":"UPPER('EXPENSE DATABASE'!E117)","v":{"$error":"#REF!"}},null,{"$f":"'EXPENSE DATABASE'!F117","v":{"v":0,"d":"$0"}},null,{"v":0,"d":"0.0%"},54,null,null,54,0]
[null,null,{"$f":"UPPER('EXPENSE DATABASE'!E118)","v":{"$error":"#REF!"}},null,{"$f":"'EXPENSE DATABASE'!F118","v":{"v":0,"d":"$0"}},null,{"v":0,"d":"0.0%"},55,null,null,55,0]
[null,null,{"$f":"UPPER('EXPENSE DATABASE'!E119)","v":{"$error":"#REF!"}},null,{"$f":"'EXPENSE DATABASE'!F119","v":{"v":0,"d":"$0"}},null,{"v":0,"d":"0.0%"},56,null,null,56,0]
[null,null,{"$f":"UPPER('EXPENSE DATABASE'!E120)","v":{"$error":"#REF!"}},null,{"$f":"'EXPENSE DATABASE'!F120","v":{"v":0,"d":"$0"}},null,{"v":0,"d":"0.0%"},57,null,null,57,0]
[null,null,{"$f":"UPPER('EXPENSE DATABASE'!E121)","v":{"$error":"#REF!"}},null,{"$f":"'EXPENSE DATABASE'!F121","v":{"v":0,"d":"$0"}},null,{"v":0,"d":"0.0%"},58,null,null,58,0]
[null,null,{"$f":"UPPER('EXPENSE DATABASE'!E122)","v":{"$error":"#REF!"}},null,{"$f":"'EXPENSE DATABASE'!F122","v":{"v":0,"d":"$0"}},null,{"v":0,"d":"0.0%"},59,null,null,59,0]
[null,null,{"$f":"UPPER('EXPENSE DATABASE'!E123)","v":"VENDOR 55"},null,{"$f":"'EXPENSE DATABASE'!F123","v":{"v":0,"d":"$0"}},null,{"v":0,"d":"0.0%"},60,null,null,60,0]
[null,null,{"$f":"UPPER('EXPENSE DATABASE'!E124)","v":"VENDOR 56"},null,{"$f":"'EXPENSE DATABASE'!F124","v":{"v":0,"d":"$0"}},null,{"v":0,"d":"0.0%"},61,null,null,61,0]
[null,null,{"$f":"UPPER('EXPENSE DATABASE'!E125)","v":"VENDOR 57"},null,{"$f":"'EXPENSE DATABASE'!F125","v":{"v":0,"d":"$0"}},null,{"v":0,"d":"0.0%"},62,null,null,62,0]
[null,null,{"$f":"UPPER('EXPENSE DATABASE'!E126)","v":"VENDOR 58"},null,{"$f":"'EXPENSE DATABASE'!F126","v":{"v":0,"d":"$0"}},null,{"v":0,"d":"0.0%"},63,null,null,63,0]
[null,null,{"$f":"UPPER('EXPENSE DATABASE'!E127)","v":"VENDOR 59"},null,{"$f":"'EXPENSE DATABASE'!F127","v":{"v":0,"d":"$0"}},null,{"v":0,"d":"0.0%"},64,null,null,64,0]
[null,null,{"$f":"UPPER('EXPENSE DATABASE'!E128)","v":"VENDOR 60"},null,{"$f":"'EXPENSE DATABASE'!F128","v":{"v":0,"d":"$0"}},null,{"v":0,"d":"0.0%"},65,null,null,65,0]
[null,null,{"$f":"UPPER('EXPENSE DATABASE'!E129)","v":"VENDOR 61"},null,{"$f":"'EXPENSE DATABASE'!F129","v":{"v":0,"d":"$0"}},null,{"v":0,"d":"0.0%"},66,null,null,66,0]
[null,null,{"$f":"UPPER('EXPENSE DATABASE'!E130)","v":"VENDOR 62"},null,{"$f":"'EXPENSE DATABASE'!F130","v":{"v":0,"d":"$0"}},null,{"v":0,"d":"0.0%"},67,null,null,67,0]
[null,null,{"$f":"UPPER('EXPENSE DATABASE'!E131)","v":"VENDOR 63"},null,{"$f":"'EXPENSE DATABASE'!F131","v":{"v":0,"d":"$0"}},null,{"v":0,"d":"0.0%"},68,null,null,68,0]
[null,null,{"$f":"UPPER('EXPENSE DATABASE'!E132)","v":"VENDOR 64"},null,{"$f":"'EXPENSE DATABASE'!F132","v":{"v":0,"d":"$0"}},null,{"v":0,"d":"0.0%"},69,null,null,69,0]
[null,null,{"$f":"UPPER('EXPENSE DATABASE'!E133)","v":"VENDOR 65"},null,{"$f":"'EXPENSE DATABASE'!F133","v":{"v":0,"d":"$0"}},null,{"$f":"IFERROR(E82/$E$119,0)","v":{"v":0,"d":"0.0%"}},70,null,null,70,{"$f":"IF(E82>0,1,0)","v":0}]
[null,null,{"$f":"UPPER('EXPENSE DATABASE'!E134)","v":"VENDOR 66"},null,{"$f":"'EXPENSE DATABASE'!F134","v":{"v":0,"d":"$0"}},null,{"v":0,"d":"0.0%"},71,null,null,71,0]
[null,null,{"$f":"UPPER('EXPENSE DATABASE'!E135)","v":"VENDOR 67"},null,{"$f":"'EXPENSE DATABASE'!F135","v":{"v":0,"d":"$0"}},null,{"v":0,"d":"0.0%"},72,null,null,72,0]
[null,null,{"$f":"UPPER('EXPENSE DATABASE'!E136)","v":"VENDOR 68"},null,{"$f":"'EXPENSE DATABASE'!F136","v":{"v":0,"d":"$0"}},null,{"v":0,"d":"0.0%"},73,null,null,73,0]
[null,null,{"$f":"UPPER('EXPENSE DATABASE'!E137)","v":"VENDOR 69"},null,{"$f":"'EXPENSE DATABASE'!F137","v":{"v":0,"d":"$0"}},null,{"v":0,"d":"0.0%"},74,null,null,74,0]
[null,null,{"$f":"UPPER('EXPENSE DATABASE'!E138)","v":"VENDOR 70"},null,{"$f":"'EXPENSE DATABASE'!F138","v":{"v":0,"d":"$0"}},null,{"v":0,"d":"0.0%"},75,null,null,75,0]
[null,null,{"$f":"UPPER('EXPENSE DATABASE'!E139)","v":"VENDOR 71"},null,{"$f":"'EXPENSE DATABASE'!F139","v":{"v":0,"d":"$0"}},null,{"v":0,"d":"0.0%"},76,null,null,76,0]
[null,null,{"$f":"UPPER('EXPENSE DATABASE'!E140)","v":"VENDOR 72"},null,{"$f":"'EXPENSE DATABASE'!F140","v":{"v":0,"d":"$0"}},null,{"v":0,"d":"0.0%"},77,null,null,77,0]
[null,null,{"$f":"UPPER('EXPENSE DATABASE'!E141)","v":"VENDOR 73"},null,{"$f":"'EXPENSE DATABASE'!F141","v":{"v":0,"d":"$0"}},null,{"v":0,"d":"0.0%"},78,null,null,78,0]
[null,null,{"$f":"UPPER('EXPENSE DATABASE'!E142)","v":"VENDOR 74"},null,{"$f":"'EXPENSE DATABASE'!F142","v":{"v":0,"d":"$0"}},null,{"v":0,"d":"0.0%"},79,null,null,79,0]
[null,null,{"$f":"UPPER('EXPENSE DATABASE'!E143)","v":"VENDOR 75"},null,{"$f":"'EXPENSE DATABASE'!F143","v":{"v":0,"d":"$0"}},null,{"v":0,"d":"0.0%"},80,null,null,80,0]
[null,null,{"$f":"UPPER('EXPENSE DATABASE'!E144)","v":"VENDOR 76"},null,{"$f":"'EXPENSE DATABASE'!F144","v":{"v":0,"d":"$0"}},null,{"v":0,"d":"0.0%"},81,null,null,81,0]
[null,null,{"$f":"UPPER('EXPENSE DATABASE'!E145)","v":"VENDOR 77"},null,{"$f":"'EXPENSE DATABASE'!F145","v":{"v":0,"d":"$0"}},null,{"v":0,"d":"0.0%"},82,null,null,82,0]
[null,null,{"$f":"UPPER('EXPENSE DATABASE'!E146)","v":"VENDOR 78"},null,{"$f":"'EXPENSE DATABASE'!F146","v":{"v":0,"d":"$0"}},null,{"v":0,"d":"0.0%"},83,null,null,83,0]
[null,null,{"$f":"UPPER('EXPENSE DATABASE'!E147)","v":"VENDOR 79"},null,{"$f":"'EXPENSE DATABASE'!F147","v":{"v":0,"d":"$0"}},null,{"v":0,"d":"0.0%"},84,null,null,84,0]
[null,null,{"$f":"UPPER('EXPENSE DATABASE'!E148)","v":"VENDOR 80"},null,{"$f":"'EXPENSE DATABASE'!F148","v":{"v":0,"d":"$0"}},null,{"v":0,"d":"0.0%"},85,null,null,85,0]
[null,null,{"$f":"UPPER('EXPENSE DATABASE'!E149)","v":"VENDOR 81"},null,{"$f":"'EXPENSE DATABASE'!F149","v":{"v":0,"d":"$0"}},null,{"v":0,"d":"0.0%"},86,null,null,86,0]
[null,null,{"$f":"UPPER('EXPENSE DATABASE'!E150)","v":"VENDOR 82"},null,{"$f":"'EXPENSE DATABASE'!F150","v":{"v":0,"d":"$0"}},null,{"v":0,"d":"0.0%"},87,null,null,87,0]
[null,null,{"$f":"UPPER('EXPENSE DATABASE'!E151)","v":"VENDOR 83"},null,{"$f":"'EXPENSE DATABASE'!F151","v":{"v":0,"d":"$0"}},null,{"v":0,"d":"0.0%"},88,null,null,88,0]
[null,null,{"$f":"UPPER('EXPENSE DATABASE'!E152)","v":"VENDOR 84"},null,{"$f":"'EXPENSE DATABASE'!F152","v":{"v":0,"d":"$0"}},null,{"v":0,"d":"0.0%"},89,null,null,89,0]
[null,null,{"$f":"UPPER('EXPENSE DATABASE'!E153)","v":"VENDOR 85"},null,{"$f":"'EXPENSE DATABASE'!F153","v":{"v":0,"d":"$0"}},null,{"v":0,"d":"0.0%"},90,null,null,90,0]
[null,null,{"$f":"UPPER('EXPENSE DATABASE'!E154)","v":"VENDOR 86"},null,{"$f":"'EXPENSE DATABASE'!F154","v":{"v":0,"d":"$0"}},null,{"v":0,"d":"0.0%"},91,null,null,91,0]
[null,null,{"$f":"UPPER('EXPENSE DATABASE'!E155)","v":"VENDOR 87"},null,{"$f":"'EXPENSE DATABASE'!F155","v":{"v":0,"d":"$0"}},null,{"v":0,"d":"0.0%"},92,null,null,92,0]
[null,null,{"$f":"UPPER('EXPENSE DATABASE'!E156)","v":"VENDOR 88"},null,{"$f":"'EXPENSE DATABASE'!F156","v":{"v":0,"d":"$0"}},null,{"v":0,"d":"0.0%"},93,null,null,93,0]
[null,null,{"$f":"UPPER('EXPENSE DATABASE'!E157)","v":"VENDOR 89"},null,{"$f":"'EXPENSE DATABASE'!F157","v":{"v":0,"d":"$0"}},null,{"v":0,"d":"0.0%"},94,null,null,94,0]
[null,null,{"$f":"UPPER('EXPENSE DATABASE'!E158)","v":"VENDOR 90"},null,{"$f":"'EXPENSE DATABASE'!F158","v":{"v":0,"d":"$0"}},null,{"v":0,"d":"0.0%"},95,null,null,95,0]
[null,null,{"$f":"UPPER('EXPENSE DATABASE'!E159)","v":"VENDOR 91"},null,{"$f":"'EXPENSE DATABASE'!F159","v":{"v":0,"d":"$0"}},null,{"v":0,"d":"0.0%"},96,null,null,96,0]
[null,null,{"$f":"UPPER('EXPENSE DATABASE'!E160)","v":"VENDOR 92"},null,{"$f":"'EXPENSE DATABASE'!F160","v":{"v":0,"d":"$0"}},null,{"v":0,"d":"0.0%"},97,null,null,97,0]
[null,null,{"$f":"UPPER('EXPENSE DATABASE'!E161)","v":"VENDOR 93"},null,{"$f":"'EXPENSE DATABASE'!F161","v":{"v":0,"d":"$0"}},null,{"v":0,"d":"0.0%"},98,null,null,98,0]
[null,null,{"$f":"UPPER('EXPENSE DATABASE'!E162)","v":"VENDOR 94"},null,{"$f":"'EXPENSE DATABASE'!F162","v":{"v":0,"d":"$0"}},null,{"v":0,"d":"0.0%"},99,null,null,99,0]
[null,null,{"$f":"UPPER('EXPENSE DATABASE'!E163)","v":"VENDOR 95"},null,{"$f":"'EXPENSE DATABASE'!F163","v":{"v":0,"d":"$0"}},null,{"v":0,"d":"0.0%"},100,null,null,100,0]
[null,null,{"$f":"UPPER('EXPENSE DATABASE'!E164)","v":"VENDOR 96"},null,{"$f":"'EXPENSE DATABASE'!F164","v":{"v":0,"d":"$0"}},null,{"v":0,"d":"0.0%"},101,null,null,101,0]
[null,null,{"$f":"UPPER('EXPENSE DATABASE'!E165)","v":"VENDOR 97"},null,{"$f":"'EXPENSE DATABASE'!F165","v":{"v":0,"d":"$0"}},null,{"v":0,"d":"0.0%"},102,null,null,102,{"$f":"IF(E114>0,1,0)","v":0}]
[null,null,{"$f":"UPPER('EXPENSE DATABASE'!E166)","v":"VENDOR 98"},null,{"$f":"'EXPENSE DATABASE'!F166","v":{"v":0,"d":"$0"}},null,{"v":0,"d":"0.0%"},103,null,null,103,0]
[null,null,{"$f":"UPPER('EXPENSE DATABASE'!E167)","v":"VENDOR 99"},null,{"$f":"'EXPENSE DATABASE'!F167","v":{"v":0,"d":"$0"}},null,{"v":0,"d":"0.0%"},104,null,null,104,0]
[null,null,{"$f":"UPPER('EXPENSE DATABASE'!E168)","v":"VENDOR 100"},null,{"$f":"'EXPENSE DATABASE'!F168","v":{"v":0,"d":"$0"}},null,{"v":0,"d":"0.0%"},105,null,null,105,0]
[null,null,{"$f":"UPPER('EXPENSE DATABASE'!E169)","v":"UNASSIGNED"},null,{"$f":"'EXPENSE DATABASE'!F169","v":{"v":495,"d":"$495"}},null,{"v":0.00643669001733095,"d":"0.6%"},106,null,null,106,1]
[{"$nulls":3},"TOTALS",{"$f":"SUM(E18:F118)","v":{"v":76902.88,"d":"$76,903"}},null,{"$f":"SUM(G18:G118)","v":{"v":1,"d":"100%"}},107,null,null,107,1]
[{"$nulls":7},108,null,null,108,1]
[null,null,"VENDOR EXPENSE DETAIL",{"$nulls":4},109,null,null,109,1]
[null,null,{"$f":"T(Street_Address)","v":"1234 Main St"},{"$nulls":4},110,null,null,111,1]
[null,null,{"$f":"T(City_State_Zip)","v":"Kansas City, MO 64116"},{"$nulls":4},111,null,null,113,1]
[{"$nulls":7},112,null,null,114,1]
[{"$nulls":7},113,null,null,115,1]
[null,null,"DATE","DESCRIPTION/MEMO","QTY","COST","TOTAL COST",114,null,null,116,1]
[{"$nulls":7},115,null,null,117,1]
[{"$nulls":7},116,null,null,118,1]
[{"$nulls":3},{"$f":"UPPER('ACCOUNTING SETUP'!AI9)","v":"FIRST 1 BANK"},{"$nulls":3},117,1000,null,{"$f":"I129+J129","v":1000},{"$f":"M1186","v":2}]
[{"$nulls":3},{"$f":"UPPER('ACCOUNTING SETUP'!AI10)","v":"DEFENBAUGH INDUSTRIES"},{"$nulls":3},118,2000,null,2000,2]
[{"$nulls":3},{"$f":"UPPER('ACCOUNTING SETUP'!AI11)","v":"DEMOLITION SERVICES INC."},{"$nulls":3},119,3000,null,3000,2]
[{"$nulls":3},{"$f":"UPPER('ACCOUNTING SETUP'!AI12)","v":"AFFORDABLE REHAB & REMODELING"},{"$nulls":3},120,4000,null,4000,8]
[{"$nulls":3},{"$f":"UPPER('ACCOUNTING SETUP'!AI13)","v":"LOWES"},{"$nulls":3},121,5000,null,5000,5]
[{"$nulls":3},{"$f":"UPPER('ACCOUNTING SETUP'!AI14)","v":"HOME DEPOT"},{"$nulls":3},122,6000,null,6000,2]
[{"$nulls":3},{"$f":"UPPER('ACCOUNTING SETUP'!AI15)","v":"ACE ELECTRIC"},{"$nulls":3},123,7000,null,7000,2]
[{"$nulls":3},{"$f":"UPPER('ACCOUNTING SETUP'!AI16)","v":"SHERWIN WILLIAMS"},{"$nulls":3},124,8000,null,8000,1]
[{"$nulls":3},{"$f":"UPPER('ACCOUNTING SETUP'!AI17)","v":"VENDOR 9"},{"$nulls":3},125,9000,null,9000,0]
[{"$nulls":3},{"$f":"UPPER('ACCOUNTING SETUP'!AI18)","v":"VENDOR 10"},{"$nulls":3},126,10000,null,10000,0]
[{"$nulls":3},{"$f":"UPPER('ACCOUNTING SETUP'!AI19)","v":"VENDOR 11"},{"$nulls":3},127,11000,null,11000,0]
[{"$nulls":3},{"$f":"UPPER('ACCOUNTING SETUP'!AI20)","v":"VENDOR 12"},{"$nulls":3},128,12000,null,12000,0]
[{"$nulls":3},{"$f":"UPPER('ACCOUNTING SETUP'!AI21)","v":"VENDOR 13"},{"$nulls":3},129,13000,null,13000,0]
[{"$nulls":3},{"$f":"UPPER('ACCOUNTING SETUP'!AI22)","v":"VENDOR 14"},{"$nulls":3},130,14000,null,14000,0]
[{"$nulls":3},{"$f":"UPPER('ACCOUNTING SETUP'!AI23)","v":"VENDOR 15"},{"$nulls":3},131,15000,null,15000,0]
[{"$nulls":3},{"$f":"UPPER('ACCOUNTING SETUP'!AI24)","v":"VENDOR 16"},{"$nulls":3},132,16000,null,16000,0]
[{"$nulls":3},{"$f":"UPPER('ACCOUNTING SETUP'!AI25)","v":"VENDOR 17"},{"$nulls":3},133,17000,null,17000,0]
[{"$nulls":3},{"$f":"UPPER('ACCOUNTING SETUP'!AI26)","v":"VENDOR 18"},{"$nulls":3},134,18000,null,18000,0]
[{"$nulls":3},{"$f":"UPPER('ACCOUNTING SETUP'!AI27)","v":"VENDOR 19"},{"$nulls":3},135,19000,null,19000,0]
[{"$nulls":3},{"$f":"UPPER('ACCOUNTING SETUP'!AI28)","v":"VENDOR 20"},{"$nulls":3},136,20000,null,20000,0]
[{"$nulls":3},{"$f":"UPPER('ACCOUNTING SETUP'!AI29)","v":"VENDOR 21"},{"$nulls":3},137,21000,null,21000,0]
[{"$nulls":3},{"$f":"UPPER('ACCOUNTING SETUP'!AI30)","v":"VENDOR 22"},{"$nulls":3},138,22000,null,22000,0]
[{"$nulls":3},{"$f":"UPPER('ACCOUNTING SETUP'!AI31)","v":"VENDOR 23"},{"$nulls":3},139,23000,null,23000,0]
[{"$nulls":3},{"$f":"UPPER('ACCOUNTING SETUP'!AI32)","v":"VENDOR 24"},{"$nulls":3},140,24000,null,24000,0]
[{"$nulls":3},{"$f":"UPPER('ACCOUNTING SETUP'!AI33)","v":"VENDOR 25"},{"$nulls":3},141,25000,null,25000,0]
[{"$nulls":3},{"$f":"UPPER('ACCOUNTING SETUP'!AI34)","v":"VENDOR 26"},{"$nulls":3},142,26000,null,26000,0]
[{"$nulls":3},{"$f":"UPPER('ACCOUNTING SETUP'!AI35)","v":"VENDOR 27"},{"$nulls":3},143,27000,null,27000,0]
[{"$nulls":3},{"$f":"UPPER('ACCOUNTING SETUP'!AI36)","v":"VENDOR 28"},{"$nulls":3},144,28000,null,28000,0]
[{"$nulls":3},{"$f":"UPPER('ACCOUNTING SETUP'!AI37)","v":"VENDOR 29"},{"$nulls":3},145,29000,null,29000,0]
[{"$nulls":3},{"$f":"UPPER('ACCOUNTING SETUP'!AI38)","v":"VENDOR 30"},{"$nulls":3},146,30000,null,30000,0]
[{"$nulls":3},{"$f":"UPPER('ACCOUNTING SETUP'!AI39)","v":"VENDOR 31"},{"$nulls":3},147,31000,null,31000,0]
[{"$nulls":3},{"$f":"UPPER('ACCOUNTING SETUP'!AI40)","v":"VENDOR 32"},{"$nulls":3},148,32000,null,32000,0]
[{"$nulls":3},{"$f":"UPPER('ACCOUNTING SETUP'!AI41)","v":"VENDOR 33"},{"$nulls":3},149,33000,null,33000,{"$f":"M1218","v":0}]
[{"$nulls":3},{"$f":"UPPER('ACCOUNTING SETUP'!AI42)","v":"VENDOR 34"},{"$nulls":3},150,34000,null,34000,0]
[{"$nulls":3},{"$f":"UPPER('ACCOUNTING SETUP'!AI43)","v":"VENDOR 35"},{"$nulls":3},151,35000,null,35000,0]
[{"$nulls":3},{"$f":"UPPER('ACCOUNTING SETUP'!AI44)","v":"VENDOR 36"},{"$nulls":3},152,36000,null,36000,0]
[{"$nulls":3},{"$f":"UPPER('ACCOUNTING SETUP'!AI45)","v":"VENDOR 37"},{"$nulls":3},153,37000,null,37000,0]
[{"$nulls":3},{"$f":"UPPER('ACCOUNTING SETUP'!AI46)","v":"VENDOR 38"},{"$nulls":3},154,38000,null,38000,0]
[{"$nulls":3},{"$f":"UPPER('ACCOUNTING SETUP'!AI47)","v":"VENDOR 39"},{"$nulls":3},155,39000,null,39000,0]
[{"$nulls":3},{"$f":"UPPER('ACCOUNTING SETUP'!AI48)","v":"VENDOR 40"},{"$nulls":3},156,40000,null,40000,0]
[{"$nulls":3},{"$f":"UPPER('ACCOUNTING SETUP'!AI49)","v":"VENDOR 41"},{"$nulls":3},157,41000,null,41000,0]
[{"$nulls":3},{"$f":"UPPER('ACCOUNTING SETUP'!AI50)","v":"VENDOR 42"},{"$nulls":3},158,42000,null,42000,0]
[{"$nulls":3},{"$f":"UPPER('ACCOUNTING SETUP'!#REF!)","v":{"$error":"#REF!"}},{"$nulls":3},159,43000,null,43000,0]
[{"$nulls":3},{"$f":"UPPER('ACCOUNTING SETUP'!#REF!)","v":{"$error":"#REF!"}},{"$nulls":3},160,44000,null,44000,0]
[{"$nulls":3},{"$f":"UPPER('ACCOUNTING SETUP'!#REF!)","v":{"$error":"#REF!"}},{"$nulls":3},161,45000,null,45000,0]
[{"$nulls":3},{"$f":"UPPER('ACCOUNTING SETUP'!#REF!)","v":{"$error":"#REF!"}},{"$nulls":3},162,46000,null,46000,0]
[{"$nulls":3},{"$f":"UPPER('ACCOUNTING SETUP'!#REF!)","v":{"$error":"#REF!"}},{"$nulls":3},163,47000,null,47000,0]
[{"$nulls":3},{"$f":"UPPER('ACCOUNTING SETUP'!#REF!)","v":{"$error":"#REF!"}},{"$nulls":3},164,48000,null,48000,0]
[{"$nulls":3},{"$f":"UPPER('ACCOUNTING SETUP'!#REF!)","v":{"$error":"#REF!"}},{"$nulls":3},165,49000,null,49000,0]
[{"$nulls":3},{"$f":"UPPER('ACCOUNTING SETUP'!#REF!)","v":{"$error":"#REF!"}},{"$nulls":3},166,50000,null,50000,0]
[{"$nulls":3},{"$f":"UPPER('ACCOUNTING SETUP'!#REF!)","v":{"$error":"#REF!"}},{"$nulls":3},167,51000,null,51000,0]
[{"$nulls":3},{"$f":"UPPER('ACCOUNTING SETUP'!#REF!)","v":{"$error":"#REF!"}},{"$nulls":3},168,52000,null,52000,0]
[{"$nulls":3},{"$f":"UPPER('ACCOUNTING SETUP'!#REF!)","v":{"$error":"#REF!"}},{"$nulls":3},169,53000,null,53000,0]
[{"$nulls":3},{"$f":"UPPER('ACCOUNTING SETUP'!#REF!)","v":{"$error":"#REF!"}},{"$nulls":3},170,54000,null,54000,0]
[{"$nulls":3},{"$f":"UPPER('ACCOUNTING SETUP'!AI51)","v":"VENDOR 55"},{"$nulls":3},171,55000,null,55000,0]
[{"$nulls":3},{"$f":"UPPER('ACCOUNTING SETUP'!AI52)","v":"VENDOR 56"},{"$nulls":3},172,56000,null,56000,0]
[{"$nulls":3},{"$f":"UPPER('ACCOUNTING SETUP'!AI53)","v":"VENDOR 57"},{"$nulls":3},173,57000,null,57000,0]
[{"$nulls":3},{"$f":"UPPER('ACCOUNTING SETUP'!AI54)","v":"VENDOR 58"},{"$nulls":3},174,58000,null,58000,0]
[{"$nulls":3},{"$f":"UPPER('ACCOUNTING SETUP'!AI55)","v":"VENDOR 59"},{"$nulls":3},175,59000,null,59000,0]
[{"$nulls":3},{"$f":"UPPER('ACCOUNTING SETUP'!AI56)","v":"VENDOR 60"},{"$nulls":3},176,60000,null,60000,0]
[{"$nulls":3},{"$f":"UPPER('ACCOUNTING SETUP'!AI57)","v":"VENDOR 61"},{"$nulls":3},177,61000,null,61000,0]
[{"$nulls":3},{"$f":"UPPER('ACCOUNTING SETUP'!AI58)","v":"VENDOR 62"},{"$nulls":3},178,62000,null,62000,0]
[{"$nulls":3},{"$f":"UPPER('ACCOUNTING SETUP'!AI59)","v":"VENDOR 63"},{"$nulls":3},179,63000,null,63000,0]
[{"$nulls":3},{"$f":"UPPER('ACCOUNTING SETUP'!AI60)","v":"VENDOR 64"},{"$nulls":3},180,64000,null,64000,0]
[{"$nulls":3},{"$f":"UPPER('ACCOUNTING SETUP'!AI61)","v":"VENDOR 65"},{"$nulls":3},181,65000,null,{"$f":"I193+J193","v":65000},{"$f":"M1250","v":0}]
[{"$nulls":3},{"$f":"UPPER('ACCOUNTING SETUP'!AI62)","v":"VENDOR 66"},{"$nulls":3},182,66000,null,66000,0]
[{"$nulls":3},{"$f":"UPPER('ACCOUNTING SETUP'!AI63)","v":"VENDOR 67"},{"$nulls":3},183,67000,null,67000,0]
[{"$nulls":3},{"$f":"UPPER('ACCOUNTING SETUP'!AI64)","v":"VENDOR 68"},{"$nulls":3},184,68000,null,68000,0]
[{"$nulls":3},{"$f":"UPPER('ACCOUNTING SETUP'!AI65)","v":"VENDOR 69"},{"$nulls":3},185,69000,null,69000,0]
[{"$nulls":3},{"$f":"UPPER('ACCOUNTING SETUP'!AI66)","v":"VENDOR 70"},{"$nulls":3},186,70000,null,70000,0]
[{"$nulls":3},{"$f":"UPPER('ACCOUNTING SETUP'!AI67)","v":"VENDOR 71"},{"$nulls":3},187,71000,null,71000,0]
[{"$nulls":3},{"$f":"UPPER('ACCOUNTING SETUP'!AI68)","v":"VENDOR 72"},{"$nulls":3},188,72000,null,72000,0]
[{"$nulls":3},{"$f":"UPPER('ACCOUNTING SETUP'!AI69)","v":"VENDOR 73"},{"$nulls":3},189,73000,null,73000,0]
[{"$nulls":3},{"$f":"UPPER('ACCOUNTING SETUP'!AI70)","v":"VENDOR 74"},{"$nulls":3},190,74000,null,74000,0]
[{"$nulls":3},{"$f":"UPPER('ACCOUNTING SETUP'!AI71)","v":"VENDOR 75"},{"$nulls":3},191,75000,null,75000,0]
[{"$nulls":3},{"$f":"UPPER('ACCOUNTING SETUP'!AI72)","v":"VENDOR 76"},{"$nulls":3},192,76000,null,76000,0]
[{"$nulls":3},{"$f":"UPPER('ACCOUNTING SETUP'!AI73)","v":"VENDOR 77"},{"$nulls":3},193,77000,null,77000,0]
[{"$nulls":3},{"$f":"UPPER('ACCOUNTING SETUP'!AI74)","v":"VENDOR 78"},{"$nulls":3},194,78000,null,78000,0]
[{"$nulls":3},{"$f":"UPPER('ACCOUNTING SETUP'!AI75)","v":"VENDOR 79"},{"$nulls":3},195,79000,null,79000,0]
[{"$nulls":3},{"$f":"UPPER('ACCOUNTING SETUP'!AI76)","v":"VENDOR 80"},{"$nulls":3},196,80000,null,80000,0]
[{"$nulls":3},{"$f":"UPPER('ACCOUNTING SETUP'!AI77)","v":"VENDOR 81"},{"$nulls":3},197,81000,null,81000,0]
[{"$nulls":3},{"$f":"UPPER('ACCOUNTING SETUP'!AI78)","v":"VENDOR 82"},{"$nulls":3},198,82000,null,82000,0]
[{"$nulls":3},{"$f":"UPPER('ACCOUNTING SETUP'!AI79)","v":"VENDOR 83"},{"$nulls":3},199,83000,null,83000,0]
[{"$nulls":3},{"$f":"UPPER('ACCOUNTING SETUP'!AI80)","v":"VENDOR 84"},{"$nulls":3},200,84000,null,84000,0]
[{"$nulls":3},{"$f":"UPPER('ACCOUNTING SETUP'!AI81)","v":"VENDOR 85"},{"$nulls":3},201,85000,null,85000,0]
[{"$nulls":3},{"$f":"UPPER('ACCOUNTING SETUP'!AI82)","v":"VENDOR 86"},{"$nulls":3},202,86000,null,86000,0]
[{"$nulls":3},{"$f":"UPPER('ACCOUNTING SETUP'!AI83)","v":"VENDOR 87"},{"$nulls":3},203,87000,null,87000,0]
[{"$nulls":3},{"$f":"UPPER('ACCOUNTING SETUP'!AI84)","v":"VENDOR 88"},{"$nulls":3},204,88000,null,88000,0]
[{"$nulls":3},{"$f":"UPPER('ACCOUNTING SETUP'!AI85)","v":"VENDOR 89"},{"$nulls":3},205,89000,null,89000,0]
[{"$nulls":3},{"$f":"UPPER('ACCOUNTING SETUP'!AI86)","v":"VENDOR 90"},{"$nulls":3},206,90000,null,90000,0]
[{"$nulls":3},{"$f":"UPPER('ACCOUNTING SETUP'!AI87)","v":"VENDOR 91"},{"$nulls":3},207,91000,null,91000,0]
[{"$nulls":3},{"$f":"UPPER('ACCOUNTING SETUP'!AI88)","v":"VENDOR 92"},{"$nulls":3},208,92000,null,92000,0]
[{"$nulls":3},{"$f":"UPPER('ACCOUNTING SETUP'!AI89)","v":"VENDOR 93"},{"$nulls":3},209,93000,null,93000,0]
[{"$nulls":3},{"$f":"UPPER('ACCOUNTING SETUP'!AI90)","v":"VENDOR 94"},{"$nulls":3},210,94000,null,94000,0]
[{"$nulls":3},{"$f":"UPPER('ACCOUNTING SETUP'!AI91)","v":"VENDOR 95"},{"$nulls":3},211,95000,null,95000,0]
[{"$nulls":3},{"$f":"UPPER('ACCOUNTING SETUP'!AI92)","v":"VENDOR 96"},{"$nulls":3},212,96000,null,96000,0]
[{"$nulls":3},{"$f":"UPPER('ACCOUNTING SETUP'!AI93)","v":"VENDOR 97"},{"$nulls":3},213,97000,null,97000,{"$f":"M1282","v":0}]
[{"$nulls":3},{"$f":"UPPER('ACCOUNTING SETUP'!AI94)","v":"VENDOR 98"},{"$nulls":3},214,98000,null,98000,{"$f":"M1283","v":0}]
[{"$nulls":3},{"$f":"UPPER('ACCOUNTING SETUP'!AI95)","v":"VENDOR 99"},{"$nulls":3},215,99000,null,99000,{"$f":"M1284","v":0}]
[{"$nulls":3},{"$f":"UPPER('ACCOUNTING SETUP'!AI96)","v":"VENDOR 100"},{"$nulls":3},216,100000,null,100000,{"$f":"M1285","v":0}]
[{"$nulls":3},"UNASSIGNED",{"$nulls":3},217,100001,null,100001,{"$f":"IF(N1287=1,1,0)","v":1}]
[{"$nulls":5},{"$f":"UPPER(CONCATENATE('ACCOUNTING SETUP'!AI9,\" \",\"Totals \"))","v":"FIRST 1 BANK TOTALS "},{"$f":"'EXPENSE DATABASE'!F69","v":{"v":52565,"d":"$52,565.00"}},218,1998,null,1998,{"$f":"M1186","v":2}]
[{"$nulls":7},219,1999,null,1999,{"$f":"L230","v":2}]
[{"$nulls":5},{"$f":"UPPER(CONCATENATE('ACCOUNTING SETUP'!AI10,\" \",\"Totals \"))","v":"DEFENBAUGH INDUSTRIES TOTALS "},{"$f":"'EXPENSE DATABASE'!F70","v":{"v":740,"d":"$740.00"}},220,2998,null,2998,{"$f":"M1187","v":2}]
[{"$nulls":7},221,2999,null,2999,{"$f":"L232","v":2}]
[{"$nulls":5},{"$f":"UPPER(CONCATENATE('ACCOUNTING SETUP'!AI11,\" \",\"Totals \"))","v":"DEMOLITION SERVICES INC. TOTALS "},{"$f":"'EXPENSE DATABASE'!F71","v":{"v":1000,"d":"$1,000.00"}},222,3998,null,3998,{"$f":"M1188","v":2}]
[{"$nulls":7},223,3999,null,3999,{"$f":"L234","v":2}]
[{"$nulls":5},{"$f":"UPPER(CONCATENATE('ACCOUNTING SETUP'!AI12,\" \",\"Totals \"))","v":"AFFORDABLE REHAB & REMODELING TOTALS "},{"$f":"'EXPENSE DATABASE'!F72","v":{"v":6900,"d":"$6,900.00"}},224,4998,null,4998,{"$f":"M1189","v":8}]
[{"$nulls":7},225,4999,null,4999,{"$f":"L236","v":8}]
[{"$nulls":5},{"$f":"UPPER(CONCATENATE('ACCOUNTING SETUP'!AI13,\" \",\"Totals \"))","v":"LOWES TOTALS "},{"$f":"'EXPENSE DATABASE'!F73","v":{"v":8543.91,"d":"$8,543.91"}},226,5998,null,5998,{"$f":"M1190","v":5}]
[{"$nulls":7},227,5999,null,5999,{"$f":"L238","v":5}]
[{"$nulls":5},{"$f":"UPPER(CONCATENATE('ACCOUNTING SETUP'!AI14,\" \",\"Totals \"))","v":"HOME DEPOT TOTALS "},{"$f":"'EXPENSE DATABASE'!F74","v":{"v":2256.52,"d":"$2,256.52"}},228,6998,null,6998,{"$f":"M1191","v":2}]
[{"$nulls":7},229,6999,null,6999,{"$f":"L240","v":2}]
[{"$nulls":5},{"$f":"UPPER(CONCATENATE('ACCOUNTING SETUP'!AI15,\" \",\"Totals \"))","v":"ACE ELECTRIC TOTALS "},{"$f":"'EXPENSE DATABASE'!F75","v":{"v":1750,"d":"$1,750.00"}},230,7998,null,7998,{"$f":"M1192","v":2}]
[{"$nulls":7},231,7999,null,7999,{"$f":"L242","v":2}]
[{"$nulls":5},{"$f":"UPPER(CONCATENATE('ACCOUNTING SETUP'!AI16,\" \",\"Totals \"))","v":"SHERWIN WILLIAMS TOTALS "},{"$f":"'EXPENSE DATABASE'!F76","v":{"v":2652.45,"d":"$2,652.45"}},232,8998,null,8998,{"$f":"M1193","v":1}]
[{"$nulls":7},233,8999,null,8999,{"$f":"L244","v":1}]
[{"$nulls":5},{"$f":"UPPER(CONCATENATE('ACCOUNTING SETUP'!AI17,\" \",\"Totals \"))","v":"VENDOR 9 TOTALS "},{"$f":"'EXPENSE DATABASE'!F77","v":{"v":0,"d":"$0.00"}},234,9998,null,9998,{"$f":"M1194","v":0}]
[{"$nulls":7},235,9999,null,9999,{"$f":"L246","v":0}]
[{"$nulls":5},{"$f":"UPPER(CONCATENATE('ACCOUNTING SETUP'!AI18,\" \",\"Totals \"))","v":"VENDOR 10 TOTALS "},{"$f":"'EXPENSE DATABASE'!F78","v":{"v":0,"d":"$0.00"}},236,10998,null,10998,{"$f":"M1195","v":0}]
[{"$nulls":7},237,10999,null,10999,{"$f":"L248","v":0}]
[{"$nulls":5},{"$f":"UPPER(CONCATENATE('ACCOUNTING SETUP'!AI19,\" \",\"Totals \"))","v":"VENDOR 11 TOTALS "},{"$f":"'EXPENSE DATABASE'!F79","v":{"v":0,"d":"$0.00"}},238,11998,null,11998,{"$f":"M1196","v":0}]
[{"$nulls":7},239,11999,null,11999,{"$f":"L250","v":0}]
[{"$nulls":5},{"$f":"UPPER(CONCATENATE('ACCOUNTING SETUP'!AI20,\" \",\"Totals \"))","v":"VENDOR 12 TOTALS "},{"$f":"'EXPENSE DATABASE'!F80","v":{"v":0,"d":"$0.00"}},240,12998,null,12998,{"$f":"M1197","v":0}]
[{"$nulls":7},241,12999,null,12999,{"$f":"L252","v":0}]
[{"$nulls":5},{"$f":"UPPER(CONCATENATE('ACCOUNTING SETUP'!AI21,\" \",\"Totals \"))","v":"VENDOR 13 TOTALS "},{"$f":"'EXPENSE DATABASE'!F81","v":{"v":0,"d":"$0.00"}},242,13998,null,13998,{"$f":"M1198","v":0}]
[{"$nulls":7},243,13999,null,13999,{"$f":"L254","v":0}]
[{"$nulls":5},{"$f":"UPPER(CONCATENATE('ACCOUNTING SETUP'!AI22,\" \",\"Totals \"))","v":"VENDOR 14 TOTALS "},{"$f":"'EXPENSE DATABASE'!F82","v":{"v":0,"d":"$0.00"}},244,14998,null,14998,{"$f":"M1199","v":0}]
[{"$nulls":7},245,14999,null,{"$f":"I257+J257","v":14999},{"$f":"L256","v":0}]
[{"$nulls":5},{"$f":"UPPER(CONCATENATE('ACCOUNTING SETUP'!AI23,\" \",\"Totals \"))","v":"VENDOR 15 TOTALS "},{"$f":"'EXPENSE DATABASE'!F83","v":{"v":0,"d":"$0.00"}},246,15998,null,15998,{"$f":"M1200","v":0}]
[{"$nulls":7},247,15999,null,15999,{"$f":"L258","v":0}]
[{"$nulls":5},{"$f":"UPPER(CONCATENATE('ACCOUNTING SETUP'!AI24,\" \",\"Totals \"))","v":"VENDOR 16 TOTALS "},{"$f":"'EXPENSE DATABASE'!F84","v":{"v":0,"d":"$0.00"}},248,16998,null,16998,{"$f":"M1201","v":0}]
[{"$nulls":7},249,16999,null,16999,{"$f":"L260","v":0}]
[{"$nulls":5},{"$f":"UPPER(CONCATENATE('ACCOUNTING SETUP'!AI25,\" \",\"Totals \"))","v":"VENDOR 17 TOTALS "},{"$f":"'EXPENSE DATABASE'!F85","v":{"v":0,"d":"$0.00"}},250,17998,null,17998,{"$f":"M1202","v":0}]
[{"$nulls":7},251,17999,null,17999,{"$f":"L262","v":0}]
[{"$nulls":5},{"$f":"UPPER(CONCATENATE('ACCOUNTING SETUP'!AI26,\" \",\"Totals \"))","v":"VENDOR 18 TOTALS "},{"$f":"'EXPENSE DATABASE'!F86","v":{"v":0,"d":"$0.00"}},252,18998,null,18998,{"$f":"M1203","v":0}]
[{"$nulls":7},253,18999,null,18999,{"$f":"L264","v":0}]
[{"$nulls":5},{"$f":"UPPER(CONCATENATE('ACCOUNTING SETUP'!AI27,\" \",\"Totals \"))","v":"VENDOR 19 TOTALS "},{"$f":"'EXPENSE DATABASE'!F87","v":{"v":0,"d":"$0.00"}},254,19998,null,19998,{"$f":"M1204","v":0}]
[{"$nulls":7},255,19999,null,19999,{"$f":"L266","v":0}]
[{"$nulls":5},{"$f":"UPPER(CONCATENATE('ACCOUNTING SETUP'!AI28,\" \",\"Totals \"))","v":"VENDOR 20 TOTALS "},{"$f":"'EXPENSE DATABASE'!F88","v":{"v":0,"d":"$0.00"}},256,20998,null,20998,{"$f":"M1205","v":0}]
[{"$nulls":7},257,20999,null,20999,{"$f":"L268","v":0}]
[{"$nulls":5},{"$f":"UPPER(CONCATENATE('ACCOUNTING SETUP'!AI29,\" \",\"Totals \"))","v":"VENDOR 21 TOTALS "},{"$f":"'EXPENSE DATABASE'!F89","v":{"v":0,"d":"$0.00"}},258,21998,null,21998,{"$f":"M1206","v":0}]
[{"$nulls":7},259,21999,null,21999,{"$f":"L270","v":0}]
[{"$nulls":5},{"$f":"UPPER(CONCATENATE('ACCOUNTING SETUP'!AI30,\" \",\"Totals \"))","v":"VENDOR 22 TOTALS "},{"$f":"'EXPENSE DATABASE'!F90","v":{"v":0,"d":"$0.00"}},260,22998,null,22998,{"$f":"M1207","v":0}]
[{"$nulls":7},261,22999,null,22999,{"$f":"L272","v":0}]
[{"$nulls":5},{"$f":"UPPER(CONCATENATE('ACCOUNTING SETUP'!AI31,\" \",\"Totals \"))","v":"VENDOR 23 TOTALS "},{"$f":"'EXPENSE DATABASE'!F91","v":{"v":0,"d":"$0.00"}},262,23998,null,23998,{"$f":"M1208","v":0}]
[{"$nulls":7},263,23999,null,23999,{"$f":"L274","v":0}]
[{"$nulls":5},{"$f":"UPPER(CONCATENATE('ACCOUNTING SETUP'!AI32,\" \",\"Totals \"))","v":"VENDOR 24 TOTALS "},{"$f":"'EXPENSE DATABASE'!F92","v":{"v":0,"d":"$0.00"}},264,24998,null,24998,{"$f":"M1209","v":0}]
[{"$nulls":7},265,24999,null,24999,{"$f":"L276","v":0}]
[{"$nulls":5},{"$f":"UPPER(CONCATENATE('ACCOUNTING SETUP'!AI33,\" \",\"Totals \"))","v":"VENDOR 25 TOTALS "},{"$f":"'EXPENSE DATABASE'!F93","v":{"v":0,"d":"$0.00"}},266,25998,null,25998,{"$f":"M1210","v":0}]
[{"$nulls":7},267,25999,null,25999,{"$f":"L278","v":0}]
[{"$nulls":5},{"$f":"UPPER(CONCATENATE('ACCOUNTING SETUP'!AI34,\" \",\"Totals \"))","v":"VENDOR 26 TOTALS "},{"$f":"'EXPENSE DATABASE'!F94","v":{"v":0,"d":"$0.00"}},268,26998,null,26998,{"$f":"M1211","v":0}]
[{"$nulls":7},269,26999,null,26999,{"$f":"L280","v":0}]
[{"$nulls":5},{"$f":"UPPER(CONCATENATE('ACCOUNTING SETUP'!AI35,\" \",\"Totals \"))","v":"VENDOR 27 TOTALS "},{"$f":"'EXPENSE DATABASE'!F95","v":{"v":0,"d":"$0.00"}},270,27998,null,27998,{"$f":"M1212","v":0}]
[{"$nulls":7},271,27999,null,27999,{"$f":"L282","v":0}]
[{"$nulls":5},{"$f":"UPPER(CONCATENATE('ACCOUNTING SETUP'!AI36,\" \",\"Totals \"))","v":"VENDOR 28 TOTALS "},{"$f":"'EXPENSE DATABASE'!F96","v":{"v":0,"d":"$0.00"}},272,28998,null,28998,{"$f":"M1213","v":0}]
[{"$nulls":7},273,28999,null,28999,{"$f":"L284","v":0}]
[{"$nulls":5},{"$f":"UPPER(CONCATENATE('ACCOUNTING SETUP'!AI37,\" \",\"Totals \"))","v":"VENDOR 29 TOTALS "},{"$f":"'EXPENSE DATABASE'!F97","v":{"v":0,"d":"$0.00"}},274,29998,null,29998,{"$f":"M1214","v":0}]
[{"$nulls":7},275,29999,null,29999,{"$f":"L286","v":0}]
[{"$nulls":5},{"$f":"UPPER(CONCATENATE('ACCOUNTING SETUP'!AI38,\" \",\"Totals \"))","v":"VENDOR 30 TOTALS "},{"$f":"'EXPENSE DATABASE'!F98","v":{"v":0,"d":"$0.00"}},276,30998,null,30998,{"$f":"M1215","v":0}]
[{"$nulls":7},277,30999,null,30999,{"$f":"L288","v":0}]
[{"$nulls":5},{"$f":"UPPER(CONCATENATE('ACCOUNTING SETUP'!AI39,\" \",\"Totals \"))","v":"VENDOR 31 TOTALS "},{"$f":"'EXPENSE DATABASE'!F99","v":{"v":0,"d":"$0.00"}},278,31998,null,31998,{"$f":"M1216","v":0}]
[{"$nulls":7},279,31999,null,31999,{"$f":"L290","v":0}]
[{"$nulls":5},{"$f":"UPPER(CONCATENATE('ACCOUNTING SETUP'!AI40,\" \",\"Totals \"))","v":"VENDOR 32 TOTALS "},{"$f":"'EXPENSE DATABASE'!F100","v":{"v":0,"d":"$0.00"}},280,32998,null,32998,{"$f":"M1217","v":0}]
[{"$nulls":7},281,32999,null,32999,{"$f":"L292","v":0}]
[{"$nulls":5},{"$f":"UPPER(CONCATENATE('ACCOUNTING SETUP'!AI41,\" \",\"Totals \"))","v":"VENDOR 33 TOTALS "},{"$f":"'EXPENSE DATABASE'!F101","v":{"v":0,"d":"$0.00"}},282,33998,null,33998,{"$f":"M1218","v":0}]
[{"$nulls":7},283,33999,null,33999,{"$f":"L294","v":0}]
[{"$nulls":5},{"$f":"UPPER(CONCATENATE('ACCOUNTING SETUP'!AI42,\" \",\"Totals \"))","v":"VENDOR 34 TOTALS "},{"$f":"'EXPENSE DATABASE'!F102","v":{"v":0,"d":"$0.00"}},284,34998,null,34998,{"$f":"M1219","v":0}]
[{"$nulls":7},285,34999,null,34999,{"$f":"L296","v":0}]
[{"$nulls":5},{"$f":"UPPER(CONCATENATE('ACCOUNTING SETUP'!AI43,\" \",\"Totals \"))","v":"VENDOR 35 TOTALS "},{"$f":"'EXPENSE DATABASE'!F103","v":{"v":0,"d":"$0.00"}},286,35998,null,35998,{"$f":"M1220","v":0}]
[{"$nulls":7},287,35999,null,35999,{"$f":"L298","v":0}]
[{"$nulls":5},{"$f":"UPPER(CONCATENATE('ACCOUNTING SETUP'!AI44,\" \",\"Totals \"))","v":"VENDOR 36 TOTALS "},{"$f":"'EXPENSE DATABASE'!F104","v":{"v":0,"d":"$0.00"}},288,36998,null,36998,{"$f":"M1221","v":0}]
[{"$nulls":7},289,36999,null,36999,{"$f":"L300","v":0}]
[{"$nulls":5},{"$f":"UPPER(CONCATENATE('ACCOUNTING SETUP'!AI45,\" \",\"Totals \"))","v":"VENDOR 37 TOTALS "},{"$f":"'EXPENSE DATABASE'!F105","v":{"v":0,"d":"$0.00"}},290,37998,null,37998,{"$f":"M1222","v":0}]
[{"$nulls":7},291,37999,null,37999,{"$f":"L302","v":0}]
[{"$nulls":5},{"$f":"UPPER(CONCATENATE('ACCOUNTING SETUP'!AI46,\" \",\"Totals \"))","v":"VENDOR 38 TOTALS "},{"$f":"'EXPENSE DATABASE'!F106","v":{"v":0,"d":"$0.00"}},292,38998,null,38998,{"$f":"M1223","v":0}]
[{"$nulls":7},293,38999,null,38999,{"$f":"L304","v":0}]
[{"$nulls":5},{"$f":"UPPER(CONCATENATE('ACCOUNTING SETUP'!AI47,\" \",\"Totals \"))","v":"VENDOR 39 TOTALS "},{"$f":"'EXPENSE DATABASE'!F107","v":{"v":0,"d":"$0.00"}},294,39998,null,39998,{"$f":"M1224","v":0}]
[{"$nulls":7},295,39999,null,39999,{"$f":"L306","v":0}]
[{"$nulls":5},{"$f":"UPPER(CONCATENATE('ACCOUNTING SETUP'!AI48,\" \",\"Totals \"))","v":"VENDOR 40 TOTALS "},{"$f":"'EXPENSE DATABASE'!F108","v":{"v":0,"d":"$0.00"}},296,40998,null,40998,{"$f":"M1225","v":0}]
[{"$nulls":7},297,40999,null,40999,{"$f":"L308","v":0}]
[{"$nulls":5},{"$f":"UPPER(CONCATENATE('ACCOUNTING SETUP'!AI49,\" \",\"Totals \"))","v":"VENDOR 41 TOTALS "},{"$f":"'EXPENSE DATABASE'!F109","v":{"v":0,"d":"$0.00"}},298,41998,null,41998,{"$f":"M1226","v":0}]
[{"$nulls":7},299,41999,null,41999,{"$f":"L310","v":0}]
[{"$nulls":5},{"$f":"UPPER(CONCATENATE('ACCOUNTING SETUP'!AI50,\" \",\"Totals \"))","v":"VENDOR 42 TOTALS "},{"$f":"'EXPENSE DATABASE'!F110","v":{"v":0,"d":"$0.00"}},300,42998,null,42998,{"$f":"M1227","v":0}]
[{"$nulls":7},301,42999,null,42999,{"$f":"L312","v":0}]
[{"$nulls":5},{"$f":"UPPER(CONCATENATE('ACCOUNTING SETUP'!#REF!,\" \",\"Totals \"))","v":{"$error":"#REF!"}},{"$f":"'EXPENSE DATABASE'!F111","v":{"v":0,"d":"$0.00"}},302,43998,null,43998,{"$f":"M1228","v":0}]
[{"$nulls":7},303,43999,null,43999,{"$f":"L314","v":0}]
[{"$nulls":5},{"$f":"UPPER(CONCATENATE('ACCOUNTING SETUP'!#REF!,\" \",\"Totals \"))","v":{"$error":"#REF!"}},{"$f":"'EXPENSE DATABASE'!F112","v":{"v":0,"d":"$0.00"}},304,44998,null,44998,{"$f":"M1229","v":0}]
[{"$nulls":7},305,44999,null,44999,{"$f":"L316","v":0}]
[{"$nulls":5},{"$f":"UPPER(CONCATENATE('ACCOUNTING SETUP'!#REF!,\" \",\"Totals \"))","v":{"$error":"#REF!"}},{"$f":"'EXPENSE DATABASE'!F113","v":{"v":0,"d":"$0.00"}},306,45998,null,45998,{"$f":"M1230","v":0}]
[{"$nulls":7},307,45999,null,45999,{"$f":"L318","v":0}]
[{"$nulls":5},{"$f":"UPPER(CONCATENATE('ACCOUNTING SETUP'!#REF!,\" \",\"Totals \"))","v":{"$error":"#REF!"}},{"$f":"'EXPENSE DATABASE'!F114","v":{"v":0,"d":"$0.00"}},308,46998,null,46998,{"$f":"M1231","v":0}]
[{"$nulls":7},309,46999,null,{"$f":"I321+J321","v":46999},{"$f":"L320","v":0}]
[{"$nulls":5},{"$f":"UPPER(CONCATENATE('ACCOUNTING SETUP'!#REF!,\" \",\"Totals \"))","v":{"$error":"#REF!"}},{"$f":"'EXPENSE DATABASE'!F115","v":{"v":0,"d":"$0.00"}},310,47998,null,47998,{"$f":"M1232","v":0}]
[{"$nulls":7},311,47999,null,47999,{"$f":"L322","v":0}]
[{"$nulls":5},{"$f":"UPPER(CONCATENATE('ACCOUNTING SETUP'!#REF!,\" \",\"Totals \"))","v":{"$error":"#REF!"}},{"$f":"'EXPENSE DATABASE'!F116","v":{"v":0,"d":"$0.00"}},312,48998,null,48998,{"$f":"M1233","v":0}]
[{"$nulls":7},313,48999,null,48999,{"$f":"L324","v":0}]
[{"$nulls":5},{"$f":"UPPER(CONCATENATE('ACCOUNTING SETUP'!#REF!,\" \",\"Totals \"))","v":{"$error":"#REF!"}},{"$f":"'EXPENSE DATABASE'!F117","v":{"v":0,"d":"$0.00"}},314,49998,null,49998,{"$f":"M1234","v":0}]
[{"$nulls":7},315,49999,null,49999,{"$f":"L326","v":0}]
[{"$nulls":5},{"$f":"UPPER(CONCATENATE('ACCOUNTING SETUP'!#REF!,\" \",\"Totals \"))","v":{"$error":"#REF!"}},{"$f":"'EXPENSE DATABASE'!F118","v":{"v":0,"d":"$0.00"}},316,50998,null,50998,{"$f":"M1235","v":0}]
[{"$nulls":7},317,50999,null,50999,{"$f":"L328","v":0}]
[{"$nulls":5},{"$f":"UPPER(CONCATENATE('ACCOUNTING SETUP'!#REF!,\" \",\"Totals \"))","v":{"$error":"#REF!"}},{"$f":"'EXPENSE DATABASE'!F119","v":{"v":0,"d":"$0.00"}},318,51998,null,51998,{"$f":"M1236","v":0}]
[{"$nulls":7},319,51999,null,51999,{"$f":"L330","v":0}]
[{"$nulls":5},{"$f":"UPPER(CONCATENATE('ACCOUNTING SETUP'!#REF!,\" \",\"Totals \"))","v":{"$error":"#REF!"}},{"$f":"'EXPENSE DATABASE'!F120","v":{"v":0,"d":"$0.00"}},320,52998,null,52998,{"$f":"M1237","v":0}]
[{"$nulls":7},321,52999,null,52999,{"$f":"L332","v":0}]
[{"$nulls":5},{"$f":"UPPER(CONCATENATE('ACCOUNTING SETUP'!#REF!,\" \",\"Totals \"))","v":{"$error":"#REF!"}},{"$f":"'EXPENSE DATABASE'!F121","v":{"v":0,"d":"$0.00"}},322,53998,null,53998,{"$f":"M1238","v":0}]
[{"$nulls":7},323,53999,null,53999,{"$f":"L334","v":0}]
[{"$nulls":5},{"$f":"UPPER(CONCATENATE('ACCOUNTING SETUP'!#REF!,\" \",\"Totals \"))","v":{"$error":"#REF!"}},{"$f":"'EXPENSE DATABASE'!F122","v":{"v":0,"d":"$0.00"}},324,54998,null,54998,{"$f":"M1239","v":0}]
[{"$nulls":7},325,54999,null,54999,{"$f":"L336","v":0}]
[{"$nulls":5},{"$f":"UPPER(CONCATENATE('ACCOUNTING SETUP'!AI51,\" \",\"Totals \"))","v":"VENDOR 55 TOTALS "},{"$f":"'EXPENSE DATABASE'!F123","v":{"v":0,"d":"$0.00"}},326,55998,null,55998,{"$f":"M1240","v":0}]
[{"$nulls":7},327,55999,null,55999,{"$f":"L338","v":0}]
[{"$nulls":5},{"$f":"UPPER(CONCATENATE('ACCOUNTING SETUP'!AI52,\" \",\"Totals \"))","v":"VENDOR 56 TOTALS "},{"$f":"'EXPENSE DATABASE'!F124","v":{"v":0,"d":"$0.00"}},328,56998,null,56998,{"$f":"M1241","v":0}]
[{"$nulls":7},329,56999,null,56999,{"$f":"L340","v":0}]
[{"$nulls":5},{"$f":"UPPER(CONCATENATE('ACCOUNTING SETUP'!AI53,\" \",\"Totals \"))","v":"VENDOR 57 TOTALS "},{"$f":"'EXPENSE DATABASE'!F125","v":{"v":0,"d":"$0.00"}},330,57998,null,57998,{"$f":"M1242","v":0}]
[{"$nulls":7},331,57999,null,57999,{"$f":"L342","v":0}]
[{"$nulls":5},{"$f":"UPPER(CONCATENATE('ACCOUNTING SETUP'!AI54,\" \",\"Totals \"))","v":"VENDOR 58 TOTALS "},{"$f":"'EXPENSE DATABASE'!F126","v":{"v":0,"d":"$0.00"}},332,58998,null,58998,{"$f":"M1243","v":0}]
[{"$nulls":7},333,58999,null,58999,{"$f":"L344","v":0}]
[{"$nulls":5},{"$f":"UPPER(CONCATENATE('ACCOUNTING SETUP'!AI55,\" \",\"Totals \"))","v":"VENDOR 59 TOTALS "},{"$f":"'EXPENSE DATABASE'!F127","v":{"v":0,"d":"$0.00"}},334,59998,null,59998,{"$f":"M1244","v":0}]
[{"$nulls":7},335,59999,null,59999,{"$f":"L346","v":0}]
[{"$nulls":5},{"$f":"UPPER(CONCATENATE('ACCOUNTING SETUP'!AI56,\" \",\"Totals \"))","v":"VENDOR 60 TOTALS "},{"$f":"'EXPENSE DATABASE'!F128","v":{"v":0,"d":"$0.00"}},336,60998,null,60998,{"$f":"M1245","v":0}]
[{"$nulls":7},337,60999,null,60999,{"$f":"L348","v":0}]
[{"$nulls":5},{"$f":"UPPER(CONCATENATE('ACCOUNTING SETUP'!AI57,\" \",\"Totals \"))","v":"VENDOR 61 TOTALS "},{"$f":"'EXPENSE DATABASE'!F129","v":{"v":0,"d":"$0.00"}},338,61998,null,61998,{"$f":"M1246","v":0}]
[{"$nulls":7},339,61999,null,61999,{"$f":"L350","v":0}]
[{"$nulls":5},{"$f":"UPPER(CONCATENATE('ACCOUNTING SETUP'!AI58,\" \",\"Totals \"))","v":"VENDOR 62 TOTALS "},{"$f":"'EXPENSE DATABASE'!F130","v":{"v":0,"d":"$0.00"}},340,62998,null,62998,{"$f":"M1247","v":0}]
[{"$nulls":7},341,62999,null,62999,{"$f":"L352","v":0}]
[{"$nulls":5},{"$f":"UPPER(CONCATENATE('ACCOUNTING SETUP'!AI59,\" \",\"Totals \"))","v":"VENDOR 63 TOTALS "},{"$f":"'EXPENSE DATABASE'!F131","v":{"v":0,"d":"$0.00"}},342,63998,null,63998,{"$f":"M1248","v":0}]
[{"$nulls":7},343,63999,null,63999,{"$f":"L354","v":0}]
[{"$nulls":5},{"$f":"UPPER(CONCATENATE('ACCOUNTING SETUP'!AI60,\" \",\"Totals \"))","v":"VENDOR 64 TOTALS "},{"$f":"'EXPENSE DATABASE'!F132","v":{"v":0,"d":"$0.00"}},344,64998,null,64998,{"$f":"M1249","v":0}]
[{"$nulls":7},345,64999,null,64999,{"$f":"L356","v":0}]
[{"$nulls":5},{"$f":"UPPER(CONCATENATE('ACCOUNTING SETUP'!AI61,\" \",\"Totals \"))","v":"VENDOR 65 TOTALS "},{"$f":"'EXPENSE DATABASE'!F133","v":{"v":0,"d":"$0.00"}},346,65998,null,65998,{"$f":"M1250","v":0}]
[{"$nulls":7},347,65999,null,65999,{"$f":"L358","v":0}]
[{"$nulls":5},{"$f":"UPPER(CONCATENATE('ACCOUNTING SETUP'!AI62,\" \",\"Totals \"))","v":"VENDOR 66 TOTALS "},{"$f":"'EXPENSE DATABASE'!F134","v":{"v":0,"d":"$0.00"}},348,66998,null,66998,{"$f":"M1251","v":0}]
[{"$nulls":7},349,66999,null,66999,{"$f":"L360","v":0}]
[{"$nulls":5},{"$f":"UPPER(CONCATENATE('ACCOUNTING SETUP'!AI63,\" \",\"Totals \"))","v":"VENDOR 67 TOTALS "},{"$f":"'EXPENSE DATABASE'!F135","v":{"v":0,"d":"$0.00"}},350,67998,null,67998,{"$f":"M1252","v":0}]
[{"$nulls":7},351,67999,null,67999,{"$f":"L362","v":0}]
[{"$nulls":5},{"$f":"UPPER(CONCATENATE('ACCOUNTING SETUP'!AI64,\" \",\"Totals \"))","v":"VENDOR 68 TOTALS "},{"$f":"'EXPENSE DATABASE'!F136","v":{"v":0,"d":"$0.00"}},352,68998,null,68998,{"$f":"M1253","v":0}]
[{"$nulls":7},353,68999,null,68999,{"$f":"L364","v":0}]
[{"$nulls":5},{"$f":"UPPER(CONCATENATE('ACCOUNTING SETUP'!AI65,\" \",\"Totals \"))","v":"VENDOR 69 TOTALS "},{"$f":"'EXPENSE DATABASE'!F137","v":{"v":0,"d":"$0.00"}},354,69998,null,69998,{"$f":"M1254","v":0}]
[{"$nulls":7},355,69999,null,69999,{"$f":"L366","v":0}]
[{"$nulls":5},{"$f":"UPPER(CONCATENATE('ACCOUNTING SETUP'!AI66,\" \",\"Totals \"))","v":"VENDOR 70 TOTALS "},{"$f":"'EXPENSE DATABASE'!F138","v":{"v":0,"d":"$0.00"}},356,70998,null,70998,{"$f":"M1255","v":0}]
[{"$nulls":7},357,70999,null,70999,{"$f":"L368","v":0}]
[{"$nulls":5},{"$f":"UPPER(CONCATENATE('ACCOUNTING SETUP'!AI67,\" \",\"Totals \"))","v":"VENDOR 71 TOTALS "},{"$f":"'EXPENSE DATABASE'!F139","v":{"v":0,"d":"$0.00"}},358,71998,null,71998,{"$f":"M1256","v":0}]
[{"$nulls":7},359,71999,null,71999,{"$f":"L370","v":0}]
[{"$nulls":5},{"$f":"UPPER(CONCATENATE('ACCOUNTING SETUP'!AI68,\" \",\"Totals \"))","v":"VENDOR 72 TOTALS "},{"$f":"'EXPENSE DATABASE'!F140","v":{"v":0,"d":"$0.00"}},360,72998,null,72998,{"$f":"M1257","v":0}]
[{"$nulls":7},361,72999,null,72999,{"$f":"L372","v":0}]
[{"$nulls":5},{"$f":"UPPER(CONCATENATE('ACCOUNTING SETUP'!AI69,\" \",\"Totals \"))","v":"VENDOR 73 TOTALS "},{"$f":"'EXPENSE DATABASE'!F141","v":{"v":0,"d":"$0.00"}},362,73998,null,73998,{"$f":"M1258","v":0}]
[{"$nulls":7},363,73999,null,73999,{"$f":"L374","v":0}]
[{"$nulls":5},{"$f":"UPPER(CONCATENATE('ACCOUNTING SETUP'!AI70,\" \",\"Totals \"))","v":"VENDOR 74 TOTALS "},{"$f":"'EXPENSE DATABASE'!F142","v":{"v":0,"d":"$0.00"}},364,74998,null,74998,{"$f":"M1259","v":0}]
[{"$nulls":7},365,74999,null,74999,{"$f":"L376","v":0}]
[{"$nulls":5},{"$f":"UPPER(CONCATENATE('ACCOUNTING SETUP'!AI71,\" \",\"Totals \"))","v":"VENDOR 75 TOTALS "},{"$f":"'EXPENSE DATABASE'!F143","v":{"v":0,"d":"$0.00"}},366,75998,null,75998,{"$f":"M1260","v":0}]
[{"$nulls":7},367,75999,null,75999,{"$f":"L378","v":0}]
[{"$nulls":5},{"$f":"UPPER(CONCATENATE('ACCOUNTING SETUP'!AI72,\" \",\"Totals \"))","v":"VENDOR 76 TOTALS "},{"$f":"'EXPENSE DATABASE'!F144","v":{"v":0,"d":"$0.00"}},368,76998,null,76998,{"$f":"M1261","v":0}]
[{"$nulls":7},369,76999,null,76999,{"$f":"L380","v":0}]
[{"$nulls":5},{"$f":"UPPER(CONCATENATE('ACCOUNTING SETUP'!AI73,\" \",\"Totals \"))","v":"VENDOR 77 TOTALS "},{"$f":"'EXPENSE DATABASE'!F145","v":{"v":0,"d":"$0.00"}},370,77998,null,77998,{"$f":"M1262","v":0}]
[{"$nulls":7},371,77999,null,77999,{"$f":"L382","v":0}]
[{"$nulls":5},{"$f":"UPPER(CONCATENATE('ACCOUNTING SETUP'!AI74,\" \",\"Totals \"))","v":"VENDOR 78 TOTALS "},{"$f":"'EXPENSE DATABASE'!F146","v":{"v":0,"d":"$0.00"}},372,78998,null,78998,{"$f":"M1263","v":0}]
[{"$nulls":7},373,78999,null,{"$f":"I385+J385","v":78999},{"$f":"L384","v":0}]
[{"$nulls":5},{"$f":"UPPER(CONCATENATE('ACCOUNTING SETUP'!AI75,\" \",\"Totals \"))","v":"VENDOR 79 TOTALS "},{"$f":"'EXPENSE DATABASE'!F147","v":{"v":0,"d":"$0.00"}},374,79998,null,79998,{"$f":"M1264","v":0}]
[{"$nulls":7},375,79999,null,79999,{"$f":"L386","v":0}]
[{"$nulls":5},{"$f":"UPPER(CONCATENATE('ACCOUNTING SETUP'!AI76,\" \",\"Totals \"))","v":"VENDOR 80 TOTALS "},{"$f":"'EXPENSE DATABASE'!F148","v":{"v":0,"d":"$0.00"}},376,80998,null,80998,{"$f":"M1265","v":0}]
[{"$nulls":7},377,80999,null,80999,{"$f":"L388","v":0}]
[{"$nulls":5},{"$f":"UPPER(CONCATENATE('ACCOUNTING SETUP'!AI77,\" \",\"Totals \"))","v":"VENDOR 81 TOTALS "},{"$f":"'EXPENSE DATABASE'!F149","v":{"v":0,"d":"$0.00"}},378,81998,null,81998,{"$f":"M1266","v":0}]
[{"$nulls":7},379,81999,null,81999,{"$f":"L390","v":0}]
[{"$nulls":5},{"$f":"UPPER(CONCATENATE('ACCOUNTING SETUP'!AI78,\" \",\"Totals \"))","v":"VENDOR 82 TOTALS "},{"$f":"'EXPENSE DATABASE'!F150","v":{"v":0,"d":"$0.00"}},380,82998,null,82998,{"$f":"M1267","v":0}]
[{"$nulls":7},381,82999,null,82999,{"$f":"L392","v":0}]
[{"$nulls":5},{"$f":"UPPER(CONCATENATE('ACCOUNTING SETUP'!AI79,\" \",\"Totals \"))","v":"VENDOR 83 TOTALS "},{"$f":"'EXPENSE DATABASE'!F151","v":{"v":0,"d":"$0.00"}},382,83998,null,83998,{"$f":"M1268","v":0}]
[{"$nulls":7},383,83999,null,83999,{"$f":"L394","v":0}]
[{"$nulls":5},{"$f":"UPPER(CONCATENATE('ACCOUNTING SETUP'!AI80,\" \",\"Totals \"))","v":"VENDOR 84 TOTALS "},{"$f":"'EXPENSE DATABASE'!F152","v":{"v":0,"d":"$0.00"}},384,84998,null,84998,{"$f":"M1269","v":0}]
[{"$nulls":7},385,84999,null,84999,{"$f":"L396","v":0}]
[{"$nulls":5},{"$f":"UPPER(CONCATENATE('ACCOUNTING SETUP'!AI81,\" \",\"Totals \"))","v":"VENDOR 85 TOTALS "},{"$f":"'EXPENSE DATABASE'!F153","v":{"v":0,"d":"$0.00"}},386,85998,null,85998,{"$f":"M1270","v":0}]
[{"$nulls":7},387,85999,null,85999,{"$f":"L398","v":0}]
[{"$nulls":5},{"$f":"UPPER(CONCATENATE('ACCOUNTING SETUP'!AI82,\" \",\"Totals \"))","v":"VENDOR 86 TOTALS "},{"$f":"'EXPENSE DATABASE'!F154","v":{"v":0,"d":"$0.00"}},388,86998,null,86998,{"$f":"M1271","v":0}]
[{"$nulls":7},389,86999,null,86999,{"$f":"L400","v":0}]
[{"$nulls":5},{"$f":"UPPER(CONCATENATE('ACCOUNTING SETUP'!AI83,\" \",\"Totals \"))","v":"VENDOR 87 TOTALS "},{"$f":"'EXPENSE DATABASE'!F155","v":{"v":0,"d":"$0.00"}},390,87998,null,87998,{"$f":"M1272","v":0}]
[{"$nulls":7},391,87999,null,87999,{"$f":"L402","v":0}]
[{"$nulls":5},{"$f":"UPPER(CONCATENATE('ACCOUNTING SETUP'!AI84,\" \",\"Totals \"))","v":"VENDOR 88 TOTALS "},{"$f":"'EXPENSE DATABASE'!F156","v":{"v":0,"d":"$0.00"}},392,88998,null,88998,{"$f":"M1273","v":0}]
[{"$nulls":7},393,88999,null,88999,{"$f":"L404","v":0}]
[{"$nulls":5},{"$f":"UPPER(CONCATENATE('ACCOUNTING SETUP'!AI85,\" \",\"Totals \"))","v":"VENDOR 89 TOTALS "},{"$f":"'EXPENSE DATABASE'!F157","v":{"v":0,"d":"$0.00"}},394,89998,null,89998,{"$f":"M1274","v":0}]
[{"$nulls":7},395,89999,null,89999,{"$f":"L406","v":0}]
[{"$nulls":5},{"$f":"UPPER(CONCATENATE('ACCOUNTING SETUP'!AI86,\" \",\"Totals \"))","v":"VENDOR 90 TOTALS "},{"$f":"'EXPENSE DATABASE'!F158","v":{"v":0,"d":"$0.00"}},396,90998,null,90998,{"$f":"M1275","v":0}]
[{"$nulls":7},397,90999,null,90999,{"$f":"L408","v":0}]
[{"$nulls":5},{"$f":"UPPER(CONCATENATE('ACCOUNTING SETUP'!AI87,\" \",\"Totals \"))","v":"VENDOR 91 TOTALS "},{"$f":"'EXPENSE DATABASE'!F159","v":{"v":0,"d":"$0.00"}},398,91998,null,91998,{"$f":"M1276","v":0}]
[{"$nulls":7},399,91999,null,91999,{"$f":"L410","v":0}]
[{"$nulls":5},{"$f":"UPPER(CONCATENATE('ACCOUNTING SETUP'!AI88,\" \",\"Totals \"))","v":"VENDOR 92 TOTALS "},{"$f":"'EXPENSE DATABASE'!F160","v":{"v":0,"d":"$0.00"}},400,92998,null,92998,{"$f":"M1277","v":0}]
[{"$nulls":7},401,92999,null,92999,{"$f":"L412","v":0}]
[{"$nulls":5},{"$f":"UPPER(CONCATENATE('ACCOUNTING SETUP'!AI89,\" \",\"Totals \"))","v":"VENDOR 93 TOTALS "},{"$f":"'EXPENSE DATABASE'!F161","v":{"v":0,"d":"$0.00"}},402,93998,null,93998,{"$f":"M1278","v":0}]
[{"$nulls":7},403,93999,null,93999,{"$f":"L414","v":0}]
[{"$nulls":5},{"$f":"UPPER(CONCATENATE('ACCOUNTING SETUP'!AI90,\" \",\"Totals \"))","v":"VENDOR 94 TOTALS "},{"$f":"'EXPENSE DATABASE'!F162","v":{"v":0,"d":"$0.00"}},404,94998,null,94998,{"$f":"M1279","v":0}]
[{"$nulls":7},405,94999,null,94999,{"$f":"L416","v":0}]
[{"$nulls":5},{"$f":"UPPER(CONCATENATE('ACCOUNTING SETUP'!AI91,\" \",\"Totals \"))","v":"VENDOR 95 TOTALS "},{"$f":"'EXPENSE DATABASE'!F163","v":{"v":0,"d":"$0.00"}},406,95998,null,95998,{"$f":"M1280","v":0}]
[{"$nulls":7},407,95999,null,95999,{"$f":"L418","v":0}]
[{"$nulls":5},{"$f":"UPPER(CONCATENATE('ACCOUNTING SETUP'!AI92,\" \",\"Totals \"))","v":"VENDOR 96 TOTALS "},{"$f":"'EXPENSE DATABASE'!F164","v":{"v":0,"d":"$0.00"}},408,96998,null,96998,{"$f":"M1281","v":0}]
[{"$nulls":7},409,96999,null,96999,{"$f":"L420","v":0}]
[{"$nulls":5},{"$f":"UPPER(CONCATENATE('ACCOUNTING SETUP'!AI93,\" \",\"Totals \"))","v":"VENDOR 97 TOTALS "},{"$f":"'EXPENSE DATABASE'!F165","v":{"v":0,"d":"$0.00"}},410,97998,null,97998,{"$f":"M1282","v":0}]
[{"$nulls":7},411,97999,null,97999,{"$f":"L422","v":0}]
[{"$nulls":5},{"$f":"UPPER(CONCATENATE('ACCOUNTING SETUP'!AI94,\" \",\"Totals \"))","v":"VENDOR 98 TOTALS "},{"$f":"'EXPENSE DATABASE'!F166","v":{"v":0,"d":"$0.00"}},412,98998,null,98998,{"$f":"M1283","v":0}]
[{"$nulls":7},413,98999,null,98999,{"$f":"L424","v":0}]
[{"$nulls":5},{"$f":"UPPER(CONCATENATE('ACCOUNTING SETUP'!AI95,\" \",\"Totals \"))","v":"VENDOR 99 TOTALS "},{"$f":"'EXPENSE DATABASE'!F167","v":{"v":0,"d":"$0.00"}},414,99998,null,99998,{"$f":"M1284","v":0}]
[{"$nulls":7},415,99999,null,99999,{"$f":"L426","v":0}]
[{"$nulls":5},{"$f":"UPPER(CONCATENATE('ACCOUNTING SETUP'!AI96,\" \",\"Totals \"))","v":"VENDOR 100 TOTALS "},{"$f":"'EXPENSE DATABASE'!F168","v":{"v":0,"d":"$0.00"}},416,100998,null,100998,{"$f":"M1285","v":0}]
[{"$nulls":7},417,100999,null,100999,{"$f":"L428","v":0}]
[{"$nulls":5},"UNASSIGNED",{"$f":"'EXPENSE DATABASE'!F169","v":{"v":495,"d":"$495.00"}},418,101998,null,101998,{"$f":"M1286","v":{"v":1,"d":"1.00"}}]
[{"$nulls":7},419,101999,null,101999,{"$f":"L430","v":1}]
[null,null,{"$f":"IF('3 INCOME & EXPENSE'!E14=0,\"\",'3 INCOME & EXPENSE'!E14)","v":"2014-07-20"},{"$f":"T('3 INCOME & EXPENSE'!G14)","v":"Purchase Price for Property - Reference HUD -1"},{"$f":"'3 INCOME & EXPENSE'!M14","v":{"v":1,"d":"1.0"}},{"$f":"'3 INCOME & EXPENSE'!N14","v":{"v":52000,"d":"$52,000.00"}},{"$f":"'3 INCOME & EXPENSE'!O14","v":{"v":52000,"d":"$52,000.00"}},420,{"$f":"'3 INCOME & EXPENSE'!X14","v":1},{"$f":"VLOOKUP(I432,$I$1186:$J$1287,2)","v":1000},1001,{"$f":"K432*E432","v":1001}]
[null,null,{"$f":"IF('3 INCOME & EXPENSE'!E15=0,\"\",'3 INCOME & EXPENSE'!E15)","v":"2014-07-20"},{"$f":"T('3 INCOME & EXPENSE'!G15)","v":"Buying Expenses for Property - Reference HUD-1"},{"$f":"'3 INCOME & EXPENSE'!M15","v":{"v":1,"d":"1.0"}},{"$f":"'3 INCOME & EXPENSE'!N15","v":{"v":565,"d":"$565.00"}},{"$f":"'3 INCOME & EXPENSE'!O15","v":{"v":565,"d":"$565.00"}},421,{"$f":"'3 INCOME & EXPENSE'!X15","v":1},1000,1001,1001]
[null,null,{"$f":"IF('3 INCOME & EXPENSE'!E16=0,\"\",'3 INCOME & EXPENSE'!E16)","v":"2014-07-21"},{"$f":"T('3 INCOME & EXPENSE'!G16)","v":"Property Inspection"},{"$f":"'3 INCOME & EXPENSE'!M16","v":{"v":1,"d":"1.0"}},{"$f":"'3 INCOME & EXPENSE'!N16","v":{"v":495,"d":"$495.00"}},{"$f":"'3 INCOME & EXPENSE'!O16","v":{"v":495,"d":"$495.00"}},422,{"$f":"'3 INCOME & EXPENSE'!X16","v":101},101000,101101,101101]
[null,null,{"$f":"IF('3 INCOME & EXPENSE'!E17=0,\"\",'3 INCOME & EXPENSE'!E17)","v":"2014-07-25"},{"$f":"T('3 INCOME & EXPENSE'!G17)","v":"Dumpster Rental"},{"$f":"'3 INCOME & EXPENSE'!M17","v":{"v":1,"d":"1.0"}},{"$f":"'3 INCOME & EXPENSE'!N17","v":{"v":370,"d":"$370.00"}},{"$f":"'3 INCOME & EXPENSE'!O17","v":{"v":370,"d":"$370.00"}},423,{"$f":"'3 INCOME & EXPENSE'!X17","v":2},2000,2002,2002]
[null,null,{"$f":"IF('3 INCOME & EXPENSE'!E18=0,\"\",'3 INCOME & EXPENSE'!E18)","v":"2014-07-28"},{"$f":"T('3 INCOME & EXPENSE'!G18)","v":"Demolition - 1st Payment"},{"$f":"'3 INCOME & EXPENSE'!M18","v":{"v":1,"d":"1.0"}},{"$f":"'3 INCOME & EXPENSE'!N18","v":{"v":500,"d":"$500.00"}},{"$f":"'3 INCOME & EXPENSE'!O18","v":{"v":500,"d":"$500.00"}},424,{"$f":"'3 INCOME & EXPENSE'!X18","v":3},3000,3003,3003]
[null,null,{"$f":"IF('3 INCOME & EXPENSE'!E19=0,\"\",'3 INCOME & EXPENSE'!E19)","v":"2014-08-01"},{"$f":"T('3 INCOME & EXPENSE'!G19)","v":"Demolition - 2nd Payment"},{"$f":"'3 INCOME & EXPENSE'!M19","v":{"v":1,"d":"1.0"}},{"$f":"'3 INCOME & EXPENSE'!N19","v":{"v":500,"d":"$500.00"}},{"$f":"'3 INCOME & EXPENSE'!O19","v":{"v":500,"d":"$500.00"}},425,{"$f":"'3 INCOME & EXPENSE'!X19","v":3},3000,3003,3003]
[null,null,{"$f":"IF('3 INCOME & EXPENSE'!E20=0,\"\",'3 INCOME & EXPENSE'!E20)","v":"2014-07-28"},{"$f":"T('3 INCOME & EXPENSE'!G20)","v":"Exterior doors and window material"},{"$f":"'3 INCOME & EXPENSE'!M20","v":{"v":1,"d":"1.0"}},{"$f":"'3 INCOME & EXPENSE'!N20","v":{"v":2635.6,"d":"$2,635.60"}},{"$f":"'3 INCOME & EXPENSE'!O20","v":{"v":2635.6,"d":"$2,635.60"}},426,{"$f":"'3 INCOME & EXPENSE'!X20","v":5},5000,5005,5005]
[null,null,{"$f":"IF('3 INCOME & EXPENSE'!E21=0,\"\",'3 INCOME & EXPENSE'!E21)","v":"2014-08-01"},{"$f":"T('3 INCOME & EXPENSE'!G21)","v":"Exterior Doors & Windows - 1st Payment"},{"$f":"'3 INCOME & EXPENSE'!M21","v":{"v":1,"d":"1.0"}},{"$f":"'3 INCOME & EXPENSE'!N21","v":{"v":750,"d":"$750.00"}},{"$f":"'3 INCOME & EXPENSE'!O21","v":{"v":750,"d":"$750.00"}},427,{"$f":"'3 INCOME & EXPENSE'!X21","v":4},4000,4004,4004]
[null,null,{"$f":"IF('3 INCOME & EXPENSE'!E22=0,\"\",'3 INCOME & EXPENSE'!E22)","v":"2014-08-05"},{"$f":"T('3 INCOME & EXPENSE'!G22)","v":"Exterior Doors & Windows - 2nd Payment"},{"$f":"'3 INCOME & EXPENSE'!M22","v":{"v":1,"d":"1.0"}},{"$f":"'3 INCOME & EXPENSE'!N22","v":{"v":500,"d":"$500.00"}},{"$f":"'3 INCOME & EXPENSE'!O22","v":{"v":500,"d":"$500.00"}},428,{"$f":"'3 INCOME & EXPENSE'!X22","v":4},4000,4004,4004]
[null,null,{"$f":"IF('3 INCOME & EXPENSE'!E23=0,\"\",'3 INCOME & EXPENSE'!E23)","v":"2014-08-08"},{"$f":"T('3 INCOME & EXPENSE'!G23)","v":"Plumbing Rough in - 1st Payment"},{"$f":"'3 INCOME & EXPENSE'!M23","v":{"v":1,"d":"1.0"}},{"$f":"'3 INCOME & EXPENSE'!N23","v":{"v":1250,"d":"$1,250.00"}},{"$f":"'3 INCOME & EXPENSE'!O23","v":{"v":1250,"d":"$1,250.00"}},429,{"$f":"'3 INCOME & EXPENSE'!X23","v":4},4000,4004,4004]
[null,null,{"$f":"IF('3 INCOME & EXPENSE'!E24=0,\"\",'3 INCOME & EXPENSE'!E24)","v":"2014-08-08"},{"$f":"T('3 INCOME & EXPENSE'!G24)","v":"Electrical Rough in - 1st Payment"},{"$f":"'3 INCOME & EXPENSE'!M24","v":{"v":1,"d":"1.0"}},{"$f":"'3 INCOME & EXPENSE'!N24","v":{"v":1250,"d":"$1,250.00"}},{"$f":"'3 INCOME & EXPENSE'!O24","v":{"v":1250,"d":"$1,250.00"}},430,{"$f":"'3 INCOME & EXPENSE'!X24","v":7},7000,7007,7007]
[null,null,{"$f":"IF('3 INCOME & EXPENSE'!E25=0,\"\",'3 INCOME & EXPENSE'!E25)","v":"2014-08-11"},{"$f":"T('3 INCOME & EXPENSE'!G25)","v":"Drywall Patching & Prep"},{"$f":"'3 INCOME & EXPENSE'!M25","v":{"v":1,"d":"1.0"}},{"$f":"'3 INCOME & EXPENSE'!N25","v":{"v":500,"d":"$500.00"}},{"$f":"'3 INCOME & EXPENSE'!O25","v":{"v":500,"d":"$500.00"}},431,{"$f":"'3 INCOME & EXPENSE'!X25","v":4},4000,4004,4004]
[null,null,{"$f":"IF('3 INCOME & EXPENSE'!E26=0,\"\",'3 INCOME & EXPENSE'!E26)","v":"2014-08-05"},{"$f":"T('3 INCOME & EXPENSE'!G26)","v":"Doors, Trim, Handrail - Home Depot"},{"$f":"'3 INCOME & EXPENSE'!M26","v":{"v":1,"d":"1.0"}},{"$f":"'3 INCOME & EXPENSE'!N26","v":{"v":1689.32,"d":"$1,689.32"}},{"$f":"'3 INCOME & EXPENSE'!O26","v":{"v":1689.32,"d":"$1,689.32"}},432,{"$f":"'3 INCOME & EXPENSE'!X26","v":6},6000,6006,6006]
[null,null,{"$f":"IF('3 INCOME & EXPENSE'!E27=0,\"\",'3 INCOME & EXPENSE'!E27)","v":"2014-08-11"},{"$f":"T('3 INCOME & EXPENSE'!G27)","v":"Doors & Trim Installation - 1st Payment"},{"$f":"'3 INCOME & EXPENSE'!M27","v":{"v":1,"d":"1.0"}},{"$f":"'3 INCOME & EXPENSE'!N27","v":{"v":825,"d":"$825.00"}},{"$f":"'3 INCOME & EXPENSE'!O27","v":{"v":825,"d":"$825.00"}},433,{"$f":"'3 INCOME & EXPENSE'!X27","v":4},4000,4004,4004]
[null,null,{"$f":"IF('3 INCOME & EXPENSE'!E28=0,\"\",'3 INCOME & EXPENSE'!E28)","v":"2014-08-14"},{"$f":"T('3 INCOME & EXPENSE'!G28)","v":"Electrical Fixtures"},{"$f":"'3 INCOME & EXPENSE'!M28","v":{"v":1,"d":"1.0"}},{"$f":"'3 INCOME & EXPENSE'!N28","v":{"v":1360,"d":"$1,360.00"}},{"$f":"'3 INCOME & EXPENSE'!O28","v":{"v":1360,"d":"$1,360.00"}},434,{"$f":"'3 INCOME & EXPENSE'!X28","v":5},5000,5005,5005]
[null,null,{"$f":"IF('3 INCOME & EXPENSE'!E29=0,\"\",'3 INCOME & EXPENSE'!E29)","v":"2014-08-14"},{"$f":"T('3 INCOME & EXPENSE'!G29)","v":"Plumbing Fixtures"},{"$f":"'3 INCOME & EXPENSE'!M29","v":{"v":1,"d":"1.0"}},{"$f":"'3 INCOME & EXPENSE'!N29","v":{"v":2223.08,"d":"$2,223.08"}},{"$f":"'3 INCOME & EXPENSE'!O29","v":{"v":2223.08,"d":"$2,223.08"}},435,{"$f":"'3 INCOME & EXPENSE'!X29","v":5},5000,5005,5005]
[null,null,{"$f":"IF('3 INCOME & EXPENSE'!E30=0,\"\",'3 INCOME & EXPENSE'!E30)","v":"2014-08-14"},{"$f":"T('3 INCOME & EXPENSE'!G30)","v":"Tiling Materials"},{"$f":"'3 INCOME & EXPENSE'!M30","v":{"v":1,"d":"1.0"}},{"$f":"'3 INCOME & EXPENSE'!N30","v":{"v":1675.23,"d":"$1,675.23"}},{"$f":"'3 INCOME & EXPENSE'!O30","v":{"v":1675.23,"d":"$1,675.23"}},436,{"$f":"'3 INCOME & EXPENSE'!X30","v":5},5000,5005,5005]
[null,null,{"$f":"IF('3 INCOME & EXPENSE'!E31=0,\"\",'3 INCOME & EXPENSE'!E31)","v":"2014-08-15"},{"$f":"T('3 INCOME & EXPENSE'!G31)","v":"Doors & Trim Installation - 2ndPayment"},{"$f":"'3 INCOME & EXPENSE'!M31","v":{"v":1,"d":"1.0"}},{"$f":"'3 INCOME & EXPENSE'!N31","v":{"v":825,"d":"$825.00"}},{"$f":"'3 INCOME & EXPENSE'!O31","v":{"v":825,"d":"$825.00"}},437,{"$f":"'3 INCOME & EXPENSE'!X31","v":4},4000,{"$f":"I449+J449","v":4004},4004]
[null,null,{"$f":"IF('3 INCOME & EXPENSE'!E32=0,\"\",'3 INCOME & EXPENSE'!E32)","v":"2014-08-18"},{"$f":"T('3 INCOME & EXPENSE'!G32)","v":"Paint Materials"},{"$f":"'3 INCOME & EXPENSE'!M32","v":{"v":1,"d":"1.0"}},{"$f":"'3 INCOME & EXPENSE'!N32","v":{"v":2652.45,"d":"$2,652.45"}},{"$f":"'3 INCOME & EXPENSE'!O32","v":{"v":2652.45,"d":"$2,652.45"}},438,{"$f":"'3 INCOME & EXPENSE'!X32","v":8},8000,8008,8008]
[null,null,{"$f":"IF('3 INCOME & EXPENSE'!E33=0,\"\",'3 INCOME & EXPENSE'!E33)","v":"2014-08-18"},{"$f":"T('3 INCOME & EXPENSE'!G33)","v":"Exterior Painting - 1st Payment"},{"$f":"'3 INCOME & EXPENSE'!M33","v":{"v":1,"d":"1.0"}},{"$f":"'3 INCOME & EXPENSE'!N33","v":{"v":1250,"d":"$1,250.00"}},{"$f":"'3 INCOME & EXPENSE'!O33","v":{"v":1250,"d":"$1,250.00"}},439,{"$f":"'3 INCOME & EXPENSE'!X33","v":4},4000,4004,4004]
[null,null,{"$f":"IF('3 INCOME & EXPENSE'!E34=0,\"\",'3 INCOME & EXPENSE'!E34)","v":"2014-08-18"},{"$f":"T('3 INCOME & EXPENSE'!G34)","v":"Interior Painting - 1st Payment"},{"$f":"'3 INCOME & EXPENSE'!M34","v":{"v":1,"d":"1.0"}},{"$f":"'3 INCOME & EXPENSE'!N34","v":{"v":1000,"d":"$1,000.00"}},{"$f":"'3 INCOME & EXPENSE'!O34","v":{"v":1000,"d":"$1,000.00"}},440,{"$f":"'3 INCOME & EXPENSE'!X34","v":4},4000,4004,4004]
[null,null,{"$f":"IF('3 INCOME & EXPENSE'!E35=0,\"\",'3 INCOME & EXPENSE'!E35)","v":"2014-08-25"},{"$f":"T('3 INCOME & EXPENSE'!G35)","v":"Tiling - 1st Payment"},{"$f":"'3 INCOME & EXPENSE'!M35","v":{"v":1,"d":"1.0"}},{"$f":"'3 INCOME & EXPENSE'!N35","v":{"v":650,"d":"$650.00"}},{"$f":"'3 INCOME & EXPENSE'!O35","v":{"v":650,"d":"$650.00"}},441,{"$f":"'3 INCOME & EXPENSE'!X35","v":5},5000,5005,5005]
[null,null,{"$f":"IF('3 INCOME & EXPENSE'!E36=0,\"\",'3 INCOME & EXPENSE'!E36)","v":"2014-08-25"},{"$f":"T('3 INCOME & EXPENSE'!G36)","v":"Hardwood flooring materials"},{"$f":"'3 INCOME & EXPENSE'!M36","v":{"v":1,"d":"1.0"}},{"$f":"'3 INCOME & EXPENSE'!N36","v":{"v":567.2,"d":"$567.20"}},{"$f":"'3 INCOME & EXPENSE'!O36","v":{"v":567.2,"d":"$567.20"}},442,{"$f":"'3 INCOME & EXPENSE'!X36","v":6},6000,6006,6006]
[null,null,{"$f":"IF('3 INCOME & EXPENSE'!E37=0,\"\",'3 INCOME & EXPENSE'!E37)","v":"2014-08-25"},{"$f":"T('3 INCOME & EXPENSE'!G37)","v":"Dumpster Rental"},{"$f":"'3 INCOME & EXPENSE'!M37","v":{"v":1,"d":"1.0"}},{"$f":"'3 INCOME & EXPENSE'!N37","v":{"v":370,"d":"$370.00"}},{"$f":"'3 INCOME & EXPENSE'!O37","v":{"v":370,"d":"$370.00"}},443,{"$f":"'3 INCOME & EXPENSE'!X37","v":2},2000,2002,2002]
[null,null,{"$f":"IF('3 INCOME & EXPENSE'!E38=0,\"\",'3 INCOME & EXPENSE'!E38)","v":"2014-08-25"},{"$f":"T('3 INCOME & EXPENSE'!G38)","v":"Electrical Change order"},{"$f":"'3 INCOME & EXPENSE'!M38","v":{"v":1,"d":"1.0"}},{"$f":"'3 INCOME & EXPENSE'!N38","v":{"v":500,"d":"$500.00"}},{"$f":"'3 INCOME & EXPENSE'!O38","v":{"v":500,"d":"$500.00"}},444,{"$f":"'3 INCOME & EXPENSE'!X38","v":7},7000,7007,7007]
[null,null,{"$f":"IF('3 INCOME & EXPENSE'!E39=0,\"\",'3 INCOME & EXPENSE'!E39)","v":""},{"$f":"T('3 INCOME & EXPENSE'!G39)","v":""},{"$f":"'3 INCOME & EXPENSE'!M39","v":{"v":0,"d":"0.0"}},{"$f":"'3 INCOME & EXPENSE'!N39","v":{"v":0,"d":"$0.00"}},{"$f":"'3 INCOME & EXPENSE'!O39","v":{"v":0,"d":"$0.00"}},445,{"$f":"'3 INCOME & EXPENSE'!X39","v":101},101000,101101,0]
[null,null,{"$f":"IF('3 INCOME & EXPENSE'!E40=0,\"\",'3 INCOME & EXPENSE'!E40)","v":""},{"$f":"T('3 INCOME & EXPENSE'!G40)","v":""},{"$f":"'3 INCOME & EXPENSE'!M40","v":{"v":0,"d":"0.0"}},{"$f":"'3 INCOME & EXPENSE'!N40","v":{"v":0,"d":"$0.00"}},{"$f":"'3 INCOME & EXPENSE'!O40","v":{"v":0,"d":"$0.00"}},446,{"$f":"'3 INCOME & EXPENSE'!X40","v":101},101000,101101,0]
[null,null,{"$f":"IF('3 INCOME & EXPENSE'!E41=0,\"\",'3 INCOME & EXPENSE'!E41)","v":""},{"$f":"T('3 INCOME & EXPENSE'!G41)","v":""},{"$f":"'3 INCOME & EXPENSE'!M41","v":{"v":0,"d":"0.0"}},{"$f":"'3 INCOME & EXPENSE'!N41","v":{"v":0,"d":"$0.00"}},{"$f":"'3 INCOME & EXPENSE'!O41","v":{"v":0,"d":"$0.00"}},447,{"$f":"'3 INCOME & EXPENSE'!X41","v":101},101000,101101,0]
[null,null,{"$f":"IF('3 INCOME & EXPENSE'!E42=0,\"\",'3 INCOME & EXPENSE'!E42)","v":""},{"$f":"T('3 INCOME & EXPENSE'!G42)","v":""},{"$f":"'3 INCOME & EXPENSE'!M42","v":{"v":0,"d":"0.0"}},{"$f":"'3 INCOME & EXPENSE'!N42","v":{"v":0,"d":"$0.00"}},{"$f":"'3 INCOME & EXPENSE'!O42","v":{"v":0,"d":"$0.00"}},448,{"$f":"'3 INCOME & EXPENSE'!X42","v":101},101000,101101,0]
[null,null,{"$f":"IF('3 INCOME & EXPENSE'!E43=0,\"\",'3 INCOME & EXPENSE'!E43)","v":""},{"$f":"T('3 INCOME & EXPENSE'!G43)","v":""},{"$f":"'3 INCOME & EXPENSE'!M43","v":{"v":0,"d":"0.0"}},{"$f":"'3 INCOME & EXPENSE'!N43","v":{"v":0,"d":"$0.00"}},{"$f":"'3 INCOME & EXPENSE'!O43","v":{"v":0,"d":"$0.00"}},449,{"$f":"'3 INCOME & EXPENSE'!X43","v":101},101000,101101,0]
[null,null,{"$f":"IF('3 INCOME & EXPENSE'!E44=0,\"\",'3 INCOME & EXPENSE'!E44)","v":""},{"$f":"T('3 INCOME & EXPENSE'!G44)","v":""},{"$f":"'3 INCOME & EXPENSE'!M44","v":{"v":0,"d":"0.0"}},{"$f":"'3 INCOME & EXPENSE'!N44","v":{"v":0,"d":"$0.00"}},{"$f":"'3 INCOME & EXPENSE'!O44","v":{"v":0,"d":"$0.00"}},450,{"$f":"'3 INCOME & EXPENSE'!X44","v":101},101000,101101,0]
[null,null,{"$f":"IF('3 INCOME & EXPENSE'!E45=0,\"\",'3 INCOME & EXPENSE'!E45)","v":""},{"$f":"T('3 INCOME & EXPENSE'!G45)","v":""},{"$f":"'3 INCOME & EXPENSE'!M45","v":{"v":0,"d":"0.0"}},{"$f":"'3 INCOME & EXPENSE'!N45","v":{"v":0,"d":"$0.00"}},{"$f":"'3 INCOME & EXPENSE'!O45","v":{"v":0,"d":"$0.00"}},451,{"$f":"'3 INCOME & EXPENSE'!X45","v":101},101000,101101,0]
[null,null,{"$f":"IF('3 INCOME & EXPENSE'!E46=0,\"\",'3 INCOME & EXPENSE'!E46)","v":""},{"$f":"T('3 INCOME & EXPENSE'!G46)","v":""},{"$f":"'3 INCOME & EXPENSE'!M46","v":{"v":0,"d":"0.0"}},{"$f":"'3 INCOME & EXPENSE'!N46","v":{"v":0,"d":"$0.00"}},{"$f":"'3 INCOME & EXPENSE'!O46","v":{"v":0,"d":"$0.00"}},452,{"$f":"'3 INCOME & EXPENSE'!X46","v":101},101000,101101,0]
[null,null,{"$f":"IF('3 INCOME & EXPENSE'!E47=0,\"\",'3 INCOME & EXPENSE'!E47)","v":""},{"$f":"T('3 INCOME & EXPENSE'!G47)","v":""},{"$f":"'3 INCOME & EXPENSE'!M47","v":{"v":0,"d":"0.0"}},{"$f":"'3 INCOME & EXPENSE'!N47","v":{"v":0,"d":"$0.00"}},{"$f":"'3 INCOME & EXPENSE'!O47","v":{"v":0,"d":"$0.00"}},453,{"$f":"'3 INCOME & EXPENSE'!X47","v":101},101000,101101,0]
[null,null,{"$f":"IF('3 INCOME & EXPENSE'!E48=0,\"\",'3 INCOME & EXPENSE'!E48)","v":""},{"$f":"T('3 INCOME & EXPENSE'!G48)","v":""},{"$f":"'3 INCOME & EXPENSE'!M48","v":{"v":0,"d":"0.0"}},{"$f":"'3 INCOME & EXPENSE'!N48","v":{"v":0,"d":"$0.00"}},{"$f":"'3 INCOME & EXPENSE'!O48","v":{"v":0,"d":"$0.00"}},454,{"$f":"'3 INCOME & EXPENSE'!X48","v":101},101000,101101,0]
[null,null,{"$f":"IF('3 INCOME & EXPENSE'!E49=0,\"\",'3 INCOME & EXPENSE'!E49)","v":""},{"$f":"T('3 INCOME & EXPENSE'!G49)","v":""},{"$f":"'3 INCOME & EXPENSE'!M49","v":{"v":0,"d":"0.0"}},{"$f":"'3 INCOME & EXPENSE'!N49","v":{"v":0,"d":"$0.00"}},{"$f":"'3 INCOME & EXPENSE'!O49","v":{"v":0,"d":"$0.00"}},455,{"$f":"'3 INCOME & EXPENSE'!X49","v":101},101000,101101,0]
[null,null,{"$f":"IF('3 INCOME & EXPENSE'!E50=0,\"\",'3 INCOME & EXPENSE'!E50)","v":""},{"$f":"T('3 INCOME & EXPENSE'!G50)","v":""},{"$f":"'3 INCOME & EXPENSE'!M50","v":{"v":0,"d":"0.0"}},{"$f":"'3 INCOME & EXPENSE'!N50","v":{"v":0,"d":"$0.00"}},{"$f":"'3 INCOME & EXPENSE'!O50","v":{"v":0,"d":"$0.00"}},456,{"$f":"'3 INCOME & EXPENSE'!X50","v":101},101000,101101,0]
[null,null,{"$f":"IF('3 INCOME & EXPENSE'!E51=0,\"\",'3 INCOME & EXPENSE'!E51)","v":""},{"$f":"T('3 INCOME & EXPENSE'!G51)","v":""},{"$f":"'3 INCOME & EXPENSE'!M51","v":{"v":0,"d":"0.0"}},{"$f":"'3 INCOME & EXPENSE'!N51","v":{"v":0,"d":"$0.00"}},{"$f":"'3 INCOME & EXPENSE'!O51","v":{"v":0,"d":"$0.00"}},457,{"$f":"'3 INCOME & EXPENSE'!X51","v":101},101000,101101,0]
[null,null,{"$f":"IF('3 INCOME & EXPENSE'!E52=0,\"\",'3 INCOME & EXPENSE'!E52)","v":""},{"$f":"T('3 INCOME & EXPENSE'!G52)","v":""},{"$f":"'3 INCOME & EXPENSE'!M52","v":{"v":0,"d":"0.0"}},{"$f":"'3 INCOME & EXPENSE'!N52","v":{"v":0,"d":"$0.00"}},{"$f":"'3 INCOME & EXPENSE'!O52","v":{"v":0,"d":"$0.00"}},458,{"$f":"'3 INCOME & EXPENSE'!X52","v":101},101000,101101,0]
[null,null,{"$f":"IF('3 INCOME & EXPENSE'!E53=0,\"\",'3 INCOME & EXPENSE'!E53)","v":""},{"$f":"T('3 INCOME & EXPENSE'!G53)","v":""},{"$f":"'3 INCOME & EXPENSE'!M53","v":{"v":0,"d":"0.0"}},{"$f":"'3 INCOME & EXPENSE'!N53","v":{"v":0,"d":"$0.00"}},{"$f":"'3 INCOME & EXPENSE'!O53","v":{"v":0,"d":"$0.00"}},459,{"$f":"'3 INCOME & EXPENSE'!X53","v":101},101000,101101,0]
[null,null,{"$f":"IF('3 INCOME & EXPENSE'!E54=0,\"\",'3 INCOME & EXPENSE'!E54)","v":""},{"$f":"T('3 INCOME & EXPENSE'!G54)","v":""},{"$f":"'3 INCOME & EXPENSE'!M54","v":{"v":0,"d":"0.0"}},{"$f":"'3 INCOME & EXPENSE'!N54","v":{"v":0,"d":"$0.00"}},{"$f":"'3 INCOME & EXPENSE'!O54","v":{"v":0,"d":"$0.00"}},460,{"$f":"'3 INCOME & EXPENSE'!X54","v":101},101000,101101,0]
[null,null,{"$f":"IF('3 INCOME & EXPENSE'!E55=0,\"\",'3 INCOME & EXPENSE'!E55)","v":""},{"$f":"T('3 INCOME & EXPENSE'!G55)","v":""},{"$f":"'3 INCOME & EXPENSE'!M55","v":{"v":0,"d":"0.0"}},{"$f":"'3 INCOME & EXPENSE'!N55","v":{"v":0,"d":"$0.00"}},{"$f":"'3 INCOME & EXPENSE'!O55","v":{"v":0,"d":"$0.00"}},461,{"$f":"'3 INCOME & EXPENSE'!X55","v":101},101000,101101,0]
[null,null,{"$f":"IF('3 INCOME & EXPENSE'!E56=0,\"\",'3 INCOME & EXPENSE'!E56)","v":""},{"$f":"T('3 INCOME & EXPENSE'!G56)","v":""},{"$f":"'3 INCOME & EXPENSE'!M56","v":{"v":0,"d":"0.0"}},{"$f":"'3 INCOME & EXPENSE'!N56","v":{"v":0,"d":"$0.00"}},{"$f":"'3 INCOME & EXPENSE'!O56","v":{"v":0,"d":"$0.00"}},462,{"$f":"'3 INCOME & EXPENSE'!X56","v":101},101000,101101,0]
[null,null,{"$f":"IF('3 INCOME & EXPENSE'!E57=0,\"\",'3 INCOME & EXPENSE'!E57)","v":""},{"$f":"T('3 INCOME & EXPENSE'!G57)","v":""},{"$f":"'3 INCOME & EXPENSE'!M57","v":{"v":0,"d":"0.0"}},{"$f":"'3 INCOME & EXPENSE'!N57","v":{"v":0,"d":"$0.00"}},{"$f":"'3 INCOME & EXPENSE'!O57","v":{"v":0,"d":"$0.00"}},463,{"$f":"'3 INCOME & EXPENSE'!X57","v":101},101000,101101,0]
[null,null,{"$f":"IF('3 INCOME & EXPENSE'!E58=0,\"\",'3 INCOME & EXPENSE'!E58)","v":""},{"$f":"T('3 INCOME & EXPENSE'!G58)","v":""},{"$f":"'3 INCOME & EXPENSE'!M58","v":{"v":0,"d":"0.0"}},{"$f":"'3 INCOME & EXPENSE'!N58","v":{"v":0,"d":"$0.00"}},{"$f":"'3 INCOME & EXPENSE'!O58","v":{"v":0,"d":"$0.00"}},464,{"$f":"'3 INCOME & EXPENSE'!X58","v":101},101000,101101,0]
[null,null,{"$f":"IF('3 INCOME & EXPENSE'!E59=0,\"\",'3 INCOME & EXPENSE'!E59)","v":""},{"$f":"T('3 INCOME & EXPENSE'!G59)","v":""},{"$f":"'3 INCOME & EXPENSE'!M59","v":{"v":0,"d":"0.0"}},{"$f":"'3 INCOME & EXPENSE'!N59","v":{"v":0,"d":"$0.00"}},{"$f":"'3 INCOME & EXPENSE'!O59","v":{"v":0,"d":"$0.00"}},465,{"$f":"'3 INCOME & EXPENSE'!X59","v":101},101000,101101,0]
[null,null,{"$f":"IF('3 INCOME & EXPENSE'!E60=0,\"\",'3 INCOME & EXPENSE'!E60)","v":""},{"$f":"T('3 INCOME & EXPENSE'!G60)","v":""},{"$f":"'3 INCOME & EXPENSE'!M60","v":{"v":0,"d":"0.0"}},{"$f":"'3 INCOME & EXPENSE'!N60","v":{"v":0,"d":"$0.00"}},{"$f":"'3 INCOME & EXPENSE'!O60","v":{"v":0,"d":"$0.00"}},466,{"$f":"'3 INCOME & EXPENSE'!X60","v":101},101000,101101,0]
[null,null,{"$f":"IF('3 INCOME & EXPENSE'!E61=0,\"\",'3 INCOME & EXPENSE'!E61)","v":""},{"$f":"T('3 INCOME & EXPENSE'!G61)","v":""},{"$f":"'3 INCOME & EXPENSE'!M61","v":{"v":0,"d":"0.0"}},{"$f":"'3 INCOME & EXPENSE'!N61","v":{"v":0,"d":"$0.00"}},{"$f":"'3 INCOME & EXPENSE'!O61","v":{"v":0,"d":"$0.00"}},467,{"$f":"'3 INCOME & EXPENSE'!X61","v":101},101000,101101,0]
[null,null,{"$f":"IF('3 INCOME & EXPENSE'!E62=0,\"\",'3 INCOME & EXPENSE'!E62)","v":""},{"$f":"T('3 INCOME & EXPENSE'!G62)","v":""},{"$f":"'3 INCOME & EXPENSE'!M62","v":{"v":0,"d":"0.0"}},{"$f":"'3 INCOME & EXPENSE'!N62","v":{"v":0,"d":"$0.00"}},{"$f":"'3 INCOME & EXPENSE'!O62","v":{"v":0,"d":"$0.00"}},468,{"$f":"'3 INCOME & EXPENSE'!X62","v":101},101000,101101,0]
[null,null,{"$f":"IF('3 INCOME & EXPENSE'!E63=0,\"\",'3 INCOME & EXPENSE'!E63)","v":""},{"$f":"T('3 INCOME & EXPENSE'!G63)","v":""},{"$f":"'3 INCOME & EXPENSE'!M63","v":{"v":0,"d":"0.0"}},{"$f":"'3 INCOME & EXPENSE'!N63","v":{"v":0,"d":"$0.00"}},{"$f":"'3 INCOME & EXPENSE'!O63","v":{"v":0,"d":"$0.00"}},469,{"$f":"'3 INCOME & EXPENSE'!X63","v":101},101000,101101,0]
[null,null,{"$f":"IF('3 INCOME & EXPENSE'!E64=0,\"\",'3 INCOME & EXPENSE'!E64)","v":""},{"$f":"T('3 INCOME & EXPENSE'!G64)","v":""},{"$f":"'3 INCOME & EXPENSE'!M64","v":{"v":0,"d":"0.0"}},{"$f":"'3 INCOME & EXPENSE'!N64","v":{"v":0,"d":"$0.00"}},{"$f":"'3 INCOME & EXPENSE'!O64","v":{"v":0,"d":"$0.00"}},470,{"$f":"'3 INCOME & EXPENSE'!X64","v":101},101000,101101,0]
[null,null,{"$f":"IF('3 INCOME & EXPENSE'!E65=0,\"\",'3 INCOME & EXPENSE'!E65)","v":""},{"$f":"T('3 INCOME & EXPENSE'!G65)","v":""},{"$f":"'3 INCOME & EXPENSE'!M65","v":{"v":0,"d":"0.0"}},{"$f":"'3 INCOME & EXPENSE'!N65","v":{"v":0,"d":"$0.00"}},{"$f":"'3 INCOME & EXPENSE'!O65","v":{"v":0,"d":"$0.00"}},471,{"$f":"'3 INCOME & EXPENSE'!X65","v":101},101000,101101,0]
[null,null,{"$f":"IF('3 INCOME & EXPENSE'!E66=0,\"\",'3 INCOME & EXPENSE'!E66)","v":""},{"$f":"T('3 INCOME & EXPENSE'!G66)","v":""},{"$f":"'3 INCOME & EXPENSE'!M66","v":{"v":0,"d":"0.0"}},{"$f":"'3 INCOME & EXPENSE'!N66","v":{"v":0,"d":"$0.00"}},{"$f":"'3 INCOME & EXPENSE'!O66","v":{"v":0,"d":"$0.00"}},472,{"$f":"'3 INCOME & EXPENSE'!X66","v":101},101000,101101,0]
[null,null,{"$f":"IF('3 INCOME & EXPENSE'!E67=0,\"\",'3 INCOME & EXPENSE'!E67)","v":""},{"$f":"T('3 INCOME & EXPENSE'!G67)","v":""},{"$f":"'3 INCOME & EXPENSE'!M67","v":{"v":0,"d":"0.0"}},{"$f":"'3 INCOME & EXPENSE'!N67","v":{"v":0,"d":"$0.00"}},{"$f":"'3 INCOME & EXPENSE'!O67","v":{"v":0,"d":"$0.00"}},473,{"$f":"'3 INCOME & EXPENSE'!X67","v":101},101000,101101,0]
[null,null,{"$f":"IF('3 INCOME & EXPENSE'!E68=0,\"\",'3 INCOME & EXPENSE'!E68)","v":""},{"$f":"T('3 INCOME & EXPENSE'!G68)","v":""},{"$f":"'3 INCOME & EXPENSE'!M68","v":{"v":0,"d":"0.0"}},{"$f":"'3 INCOME & EXPENSE'!N68","v":{"v":0,"d":"$0.00"}},{"$f":"'3 INCOME & EXPENSE'!O68","v":{"v":0,"d":"$0.00"}},474,{"$f":"'3 INCOME & EXPENSE'!X68","v":101},101000,101101,0]
[null,null,{"$f":"IF('3 INCOME & EXPENSE'!E69=0,\"\",'3 INCOME & EXPENSE'!E69)","v":""},{"$f":"T('3 INCOME & EXPENSE'!G69)","v":""},{"$f":"'3 INCOME & EXPENSE'!M69","v":{"v":0,"d":"0.0"}},{"$f":"'3 INCOME & EXPENSE'!N69","v":{"v":0,"d":"$0.00"}},{"$f":"'3 INCOME & EXPENSE'!O69","v":{"v":0,"d":"$0.00"}},475,{"$f":"'3 INCOME & EXPENSE'!X69","v":101},101000,101101,0]
[null,null,{"$f":"IF('3 INCOME & EXPENSE'!E70=0,\"\",'3 INCOME & EXPENSE'!E70)","v":""},{"$f":"T('3 INCOME & EXPENSE'!G70)","v":""},{"$f":"'3 INCOME & EXPENSE'!M70","v":{"v":0,"d":"0.0"}},{"$f":"'3 INCOME & EXPENSE'!N70","v":{"v":0,"d":"$0.00"}},{"$f":"'3 INCOME & EXPENSE'!O70","v":{"v":0,"d":"$0.00"}},476,{"$f":"'3 INCOME & EXPENSE'!X70","v":101},101000,101101,0]
[null,null,{"$f":"IF('3 INCOME & EXPENSE'!E71=0,\"\",'3 INCOME & EXPENSE'!E71)","v":""},{"$f":"T('3 INCOME & EXPENSE'!G71)","v":""},{"$f":"'3 INCOME & EXPENSE'!M71","v":{"v":0,"d":"0.0"}},{"$f":"'3 INCOME & EXPENSE'!N71","v":{"v":0,"d":"$0.00"}},{"$f":"'3 INCOME & EXPENSE'!O71","v":{"v":0,"d":"$0.00"}},477,{"$f":"'3 INCOME & EXPENSE'!X71","v":101},101000,101101,0]
[null,null,{"$f":"IF('3 INCOME & EXPENSE'!E72=0,\"\",'3 INCOME & EXPENSE'!E72)","v":""},{"$f":"T('3 INCOME & EXPENSE'!G72)","v":""},{"$f":"'3 INCOME & EXPENSE'!M72","v":{"v":0,"d":"0.0"}},{"$f":"'3 INCOME & EXPENSE'!N72","v":{"v":0,"d":"$0.00"}},{"$f":"'3 INCOME & EXPENSE'!O72","v":{"v":0,"d":"$0.00"}},478,{"$f":"'3 INCOME & EXPENSE'!X72","v":101},101000,101101,0]
[null,null,{"$f":"IF('3 INCOME & EXPENSE'!E73=0,\"\",'3 INCOME & EXPENSE'!E73)","v":""},{"$f":"T('3 INCOME & EXPENSE'!G73)","v":""},{"$f":"'3 INCOME & EXPENSE'!M73","v":{"v":0,"d":"0.0"}},{"$f":"'3 INCOME & EXPENSE'!N73","v":{"v":0,"d":"$0.00"}},{"$f":"'3 INCOME & EXPENSE'!O73","v":{"v":0,"d":"$0.00"}},479,{"$f":"'3 INCOME & EXPENSE'!X73","v":101},101000,101101,0]
[null,null,{"$f":"IF('3 INCOME & EXPENSE'!E74=0,\"\",'3 INCOME & EXPENSE'!E74)","v":""},{"$f":"T('3 INCOME & EXPENSE'!G74)","v":""},{"$f":"'3 INCOME & EXPENSE'!M74","v":{"v":0,"d":"0.0"}},{"$f":"'3 INCOME & EXPENSE'!N74","v":{"v":0,"d":"$0.00"}},{"$f":"'3 INCOME & EXPENSE'!O74","v":{"v":0,"d":"$0.00"}},480,{"$f":"'3 INCOME & EXPENSE'!X74","v":101},101000,101101,0]
[null,null,{"$f":"IF('3 INCOME & EXPENSE'!E75=0,\"\",'3 INCOME & EXPENSE'!E75)","v":""},{"$f":"T('3 INCOME & EXPENSE'!G75)","v":""},{"$f":"'3 INCOME & EXPENSE'!M75","v":{"v":0,"d":"0.0"}},{"$f":"'3 INCOME & EXPENSE'!N75","v":{"v":0,"d":"$0.00"}},{"$f":"'3 INCOME & EXPENSE'!O75","v":{"v":0,"d":"$0.00"}},481,{"$f":"'3 INCOME & EXPENSE'!X75","v":101},101000,101101,0]
[null,null,{"$f":"IF('3 INCOME & EXPENSE'!E76=0,\"\",'3 INCOME & EXPENSE'!E76)","v":""},{"$f":"T('3 INCOME & EXPENSE'!G76)","v":""},{"$f":"'3 INCOME & EXPENSE'!M76","v":{"v":0,"d":"0.0"}},{"$f":"'3 INCOME & EXPENSE'!N76","v":{"v":0,"d":"$0.00"}},{"$f":"'3 INCOME & EXPENSE'!O76","v":{"v":0,"d":"$0.00"}},482,{"$f":"'3 INCOME & EXPENSE'!X76","v":101},101000,101101,0]
[null,null,{"$f":"IF('3 INCOME & EXPENSE'!E77=0,\"\",'3 INCOME & EXPENSE'!E77)","v":""},{"$f":"T('3 INCOME & EXPENSE'!G77)","v":""},{"$f":"'3 INCOME & EXPENSE'!M77","v":{"v":0,"d":"0.0"}},{"$f":"'3 INCOME & EXPENSE'!N77","v":{"v":0,"d":"$0.00"}},{"$f":"'3 INCOME & EXPENSE'!O77","v":{"v":0,"d":"$0.00"}},483,{"$f":"'3 INCOME & EXPENSE'!X77","v":101},101000,101101,0]
[null,null,{"$f":"IF('3 INCOME & EXPENSE'!E78=0,\"\",'3 INCOME & EXPENSE'!E78)","v":""},{"$f":"T('3 INCOME & EXPENSE'!G78)","v":""},{"$f":"'3 INCOME & EXPENSE'!M78","v":{"v":0,"d":"0.0"}},{"$f":"'3 INCOME & EXPENSE'!N78","v":{"v":0,"d":"$0.00"}},{"$f":"'3 INCOME & EXPENSE'!O78","v":{"v":0,"d":"$0.00"}},484,{"$f":"'3 INCOME & EXPENSE'!X78","v":101},{"$f":"VLOOKUP(I496,$I$1186:$J$1287,2)","v":101000},101101,{"$f":"K496*E496","v":0}]
[null,null,{"$f":"IF('3 INCOME & EXPENSE'!E79=0,\"\",'3 INCOME & EXPENSE'!E79)","v":""},{"$f":"T('3 INCOME & EXPENSE'!G79)","v":""},{"$f":"'3 INCOME & EXPENSE'!M79","v":{"v":0,"d":"0.0"}},{"$f":"'3 INCOME & EXPENSE'!N79","v":{"v":0,"d":"$0.00"}},{"$f":"'3 INCOME & EXPENSE'!O79","v":{"v":0,"d":"$0.00"}},485,{"$f":"'3 INCOME & EXPENSE'!X79","v":101},101000,101101,0]
[null,null,{"$f":"IF('3 INCOME & EXPENSE'!E80=0,\"\",'3 INCOME & EXPENSE'!E80)","v":""},{"$f":"T('3 INCOME & EXPENSE'!G80)","v":""},{"$f":"'3 INCOME & EXPENSE'!M80","v":{"v":0,"d":"0.0"}},{"$f":"'3 INCOME & EXPENSE'!N80","v":{"v":0,"d":"$0.00"}},{"$f":"'3 INCOME & EXPENSE'!O80","v":{"v":0,"d":"$0.00"}},486,{"$f":"'3 INCOME & EXPENSE'!X80","v":101},101000,101101,0]
[null,null,{"$f":"IF('3 INCOME & EXPENSE'!E81=0,\"\",'3 INCOME & EXPENSE'!E81)","v":""},{"$f":"T('3 INCOME & EXPENSE'!G81)","v":""},{"$f":"'3 INCOME & EXPENSE'!M81","v":{"v":0,"d":"0.0"}},{"$f":"'3 INCOME & EXPENSE'!N81","v":{"v":0,"d":"$0.00"}},{"$f":"'3 INCOME & EXPENSE'!O81","v":{"v":0,"d":"$0.00"}},487,{"$f":"'3 INCOME & EXPENSE'!X81","v":101},101000,101101,0]
[null,null,{"$f":"IF('3 INCOME & EXPENSE'!E82=0,\"\",'3 INCOME & EXPENSE'!E82)","v":""},{"$f":"T('3 INCOME & EXPENSE'!G82)","v":""},{"$f":"'3 INCOME & EXPENSE'!M82","v":{"v":0,"d":"0.0"}},{"$f":"'3 INCOME & EXPENSE'!N82","v":{"v":0,"d":"$0.00"}},{"$f":"'3 INCOME & EXPENSE'!O82","v":{"v":0,"d":"$0.00"}},488,{"$f":"'3 INCOME & EXPENSE'!X82","v":101},101000,101101,0]
[null,null,{"$f":"IF('3 INCOME & EXPENSE'!E83=0,\"\",'3 INCOME & EXPENSE'!E83)","v":""},{"$f":"T('3 INCOME & EXPENSE'!G83)","v":""},{"$f":"'3 INCOME & EXPENSE'!M83","v":{"v":0,"d":"0.0"}},{"$f":"'3 INCOME & EXPENSE'!N83","v":{"v":0,"d":"$0.00"}},{"$f":"'3 INCOME & EXPENSE'!O83","v":{"v":0,"d":"$0.00"}},489,{"$f":"'3 INCOME & EXPENSE'!X83","v":101},101000,101101,0]
[null,null,{"$f":"IF('3 INCOME & EXPENSE'!E84=0,\"\",'3 INCOME & EXPENSE'!E84)","v":""},{"$f":"T('3 INCOME & EXPENSE'!G84)","v":""},{"$f":"'3 INCOME & EXPENSE'!M84","v":{"v":0,"d":"0.0"}},{"$f":"'3 INCOME & EXPENSE'!N84","v":{"v":0,"d":"$0.00"}},{"$f":"'3 INCOME & EXPENSE'!O84","v":{"v":0,"d":"$0.00"}},490,{"$f":"'3 INCOME & EXPENSE'!X84","v":101},101000,101101,0]
[null,null,{"$f":"IF('3 INCOME & EXPENSE'!E85=0,\"\",'3 INCOME & EXPENSE'!E85)","v":""},{"$f":"T('3 INCOME & EXPENSE'!G85)","v":""},{"$f":"'3 INCOME & EXPENSE'!M85","v":{"v":0,"d":"0.0"}},{"$f":"'3 INCOME & EXPENSE'!N85","v":{"v":0,"d":"$0.00"}},{"$f":"'3 INCOME & EXPENSE'!O85","v":{"v":0,"d":"$0.00"}},491,{"$f":"'3 INCOME & EXPENSE'!X85","v":101},101000,101101,0]
[null,null,{"$f":"IF('3 INCOME & EXPENSE'!E86=0,\"\",'3 INCOME & EXPENSE'!E86)","v":""},{"$f":"T('3 INCOME & EXPENSE'!G86)","v":""},{"$f":"'3 INCOME & EXPENSE'!M86","v":{"v":0,"d":"0.0"}},{"$f":"'3 INCOME & EXPENSE'!N86","v":{"v":0,"d":"$0.00"}},{"$f":"'3 INCOME & EXPENSE'!O86","v":{"v":0,"d":"$0.00"}},492,{"$f":"'3 INCOME & EXPENSE'!X86","v":101},101000,101101,0]
[null,null,{"$f":"IF('3 INCOME & EXPENSE'!E87=0,\"\",'3 INCOME & EXPENSE'!E87)","v":""},{"$f":"T('3 INCOME & EXPENSE'!G87)","v":""},{"$f":"'3 INCOME & EXPENSE'!M87","v":{"v":0,"d":"0.0"}},{"$f":"'3 INCOME & EXPENSE'!N87","v":{"v":0,"d":"$0.00"}},{"$f":"'3 INCOME & EXPENSE'!O87","v":{"v":0,"d":"$0.00"}},493,{"$f":"'3 INCOME & EXPENSE'!X87","v":101},101000,101101,0]
[null,null,{"$f":"IF('3 INCOME & EXPENSE'!E88=0,\"\",'3 INCOME & EXPENSE'!E88)","v":""},{"$f":"T('3 INCOME & EXPENSE'!G88)","v":""},{"$f":"'3 INCOME & EXPENSE'!M88","v":{"v":0,"d":"0.0"}},{"$f":"'3 INCOME & EXPENSE'!N88","v":{"v":0,"d":"$0.00"}},{"$f":"'3 INCOME & EXPENSE'!O88","v":{"v":0,"d":"$0.00"}},494,{"$f":"'3 INCOME & EXPENSE'!X88","v":101},101000,101101,0]
[null,null,{"$f":"IF('3 INCOME & EXPENSE'!E89=0,\"\",'3 INCOME & EXPENSE'!E89)","v":""},{"$f":"T('3 INCOME & EXPENSE'!G89)","v":""},{"$f":"'3 INCOME & EXPENSE'!M89","v":{"v":0,"d":"0.0"}},{"$f":"'3 INCOME & EXPENSE'!N89","v":{"v":0,"d":"$0.00"}},{"$f":"'3 INCOME & EXPENSE'!O89","v":{"v":0,"d":"$0.00"}},495,{"$f":"'3 INCOME & EXPENSE'!X89","v":101},101000,101101,0]
[null,null,{"$f":"IF('3 INCOME & EXPENSE'!E90=0,\"\",'3 INCOME & EXPENSE'!E90)","v":""},{"$f":"T('3 INCOME & EXPENSE'!G90)","v":""},{"$f":"'3 INCOME & EXPENSE'!M90","v":{"v":0,"d":"0.0"}},{"$f":"'3 INCOME & EXPENSE'!N90","v":{"v":0,"d":"$0.00"}},{"$f":"'3 INCOME & EXPENSE'!O90","v":{"v":0,"d":"$0.00"}},496,{"$f":"'3 INCOME & EXPENSE'!X90","v":101},101000,101101,0]
[null,null,{"$f":"IF('3 INCOME & EXPENSE'!E91=0,\"\",'3 INCOME & EXPENSE'!E91)","v":""},{"$f":"T('3 INCOME & EXPENSE'!G91)","v":""},{"$f":"'3 INCOME & EXPENSE'!M91","v":{"v":0,"d":"0.0"}},{"$f":"'3 INCOME & EXPENSE'!N91","v":{"v":0,"d":"$0.00"}},{"$f":"'3 INCOME & EXPENSE'!O91","v":{"v":0,"d":"$0.00"}},497,{"$f":"'3 INCOME & EXPENSE'!X91","v":101},101000,101101,0]
[null,null,{"$f":"IF('3 INCOME & EXPENSE'!E92=0,\"\",'3 INCOME & EXPENSE'!E92)","v":""},{"$f":"T('3 INCOME & EXPENSE'!G92)","v":""},{"$f":"'3 INCOME & EXPENSE'!M92","v":{"v":0,"d":"0.0"}},{"$f":"'3 INCOME & EXPENSE'!N92","v":{"v":0,"d":"$0.00"}},{"$f":"'3 INCOME & EXPENSE'!O92","v":{"v":0,"d":"$0.00"}},498,{"$f":"'3 INCOME & EXPENSE'!X92","v":101},101000,101101,0]
[null,null,{"$f":"IF('3 INCOME & EXPENSE'!E93=0,\"\",'3 INCOME & EXPENSE'!E93)","v":""},{"$f":"T('3 INCOME & EXPENSE'!G93)","v":""},{"$f":"'3 INCOME & EXPENSE'!M93","v":{"v":0,"d":"0.0"}},{"$f":"'3 INCOME & EXPENSE'!N93","v":{"v":0,"d":"$0.00"}},{"$f":"'3 INCOME & EXPENSE'!O93","v":{"v":0,"d":"$0.00"}},499,{"$f":"'3 INCOME & EXPENSE'!X93","v":101},101000,101101,0]
[null,null,{"$f":"IF('3 INCOME & EXPENSE'!E94=0,\"\",'3 INCOME & EXPENSE'!E94)","v":""},{"$f":"T('3 INCOME & EXPENSE'!G94)","v":""},{"$f":"'3 INCOME & EXPENSE'!M94","v":{"v":0,"d":"0.0"}},{"$f":"'3 INCOME & EXPENSE'!N94","v":{"v":0,"d":"$0.00"}},{"$f":"'3 INCOME & EXPENSE'!O94","v":{"v":0,"d":"$0.00"}},500,{"$f":"'3 INCOME & EXPENSE'!X94","v":101},101000,101101,0]
[null,null,{"$f":"IF('3 INCOME & EXPENSE'!E95=0,\"\",'3 INCOME & EXPENSE'!E95)","v":""},{"$f":"T('3 INCOME & EXPENSE'!G95)","v":""},{"$f":"'3 INCOME & EXPENSE'!M95","v":{"v":0,"d":"0.0"}},{"$f":"'3 INCOME & EXPENSE'!N95","v":{"v":0,"d":"$0.00"}},{"$f":"'3 INCOME & EXPENSE'!O95","v":{"v":0,"d":"$0.00"}},501,{"$f":"'3 INCOME & EXPENSE'!X95","v":101},101000,{"$f":"I513+J513","v":101101},0]
[null,null,{"$f":"IF('3 INCOME & EXPENSE'!E96=0,\"\",'3 INCOME & EXPENSE'!E96)","v":""},{"$f":"T('3 INCOME & EXPENSE'!G96)","v":""},{"$f":"'3 INCOME & EXPENSE'!M96","v":{"v":0,"d":"0.0"}},{"$f":"'3 INCOME & EXPENSE'!N96","v":{"v":0,"d":"$0.00"}},{"$f":"'3 INCOME & EXPENSE'!O96","v":{"v":0,"d":"$0.00"}},502,{"$f":"'3 INCOME & EXPENSE'!X96","v":101},101000,101101,0]
[null,null,{"$f":"IF('3 INCOME & EXPENSE'!E97=0,\"\",'3 INCOME & EXPENSE'!E97)","v":""},{"$f":"T('3 INCOME & EXPENSE'!G97)","v":""},{"$f":"'3 INCOME & EXPENSE'!M97","v":{"v":0,"d":"0.0"}},{"$f":"'3 INCOME & EXPENSE'!N97","v":{"v":0,"d":"$0.00"}},{"$f":"'3 INCOME & EXPENSE'!O97","v":{"v":0,"d":"$0.00"}},503,{"$f":"'3 INCOME & EXPENSE'!X97","v":101},101000,101101,0]
[null,null,{"$f":"IF('3 INCOME & EXPENSE'!E98=0,\"\",'3 INCOME & EXPENSE'!E98)","v":""},{"$f":"T('3 INCOME & EXPENSE'!G98)","v":""},{"$f":"'3 INCOME & EXPENSE'!M98","v":{"v":0,"d":"0.0"}},{"$f":"'3 INCOME & EXPENSE'!N98","v":{"v":0,"d":"$0.00"}},{"$f":"'3 INCOME & EXPENSE'!O98","v":{"v":0,"d":"$0.00"}},504,{"$f":"'3 INCOME & EXPENSE'!X98","v":101},101000,101101,0]
[null,null,{"$f":"IF('3 INCOME & EXPENSE'!E99=0,\"\",'3 INCOME & EXPENSE'!E99)","v":""},{"$f":"T('3 INCOME & EXPENSE'!G99)","v":""},{"$f":"'3 INCOME & EXPENSE'!M99","v":{"v":0,"d":"0.0"}},{"$f":"'3 INCOME & EXPENSE'!N99","v":{"v":0,"d":"$0.00"}},{"$f":"'3 INCOME & EXPENSE'!O99","v":{"v":0,"d":"$0.00"}},505,{"$f":"'3 INCOME & EXPENSE'!X99","v":101},101000,101101,0]
[null,null,{"$f":"IF('3 INCOME & EXPENSE'!E100=0,\"\",'3 INCOME & EXPENSE'!E100)","v":""},{"$f":"T('3 INCOME & EXPENSE'!G100)","v":""},{"$f":"'3 INCOME & EXPENSE'!M100","v":{"v":0,"d":"0.0"}},{"$f":"'3 INCOME & EXPENSE'!N100","v":{"v":0,"d":"$0.00"}},{"$f":"'3 INCOME & EXPENSE'!O100","v":{"v":0,"d":"$0.00"}},506,{"$f":"'3 INCOME & EXPENSE'!X100","v":101},101000,101101,0]
[null,null,{"$f":"IF('3 INCOME & EXPENSE'!E101=0,\"\",'3 INCOME & EXPENSE'!E101)","v":""},{"$f":"T('3 INCOME & EXPENSE'!G101)","v":""},{"$f":"'3 INCOME & EXPENSE'!M101","v":{"v":0,"d":"0.0"}},{"$f":"'3 INCOME & EXPENSE'!N101","v":{"v":0,"d":"$0.00"}},{"$f":"'3 INCOME & EXPENSE'!O101","v":{"v":0,"d":"$0.00"}},507,{"$f":"'3 INCOME & EXPENSE'!X101","v":101},101000,101101,0]
[null,null,{"$f":"IF('3 INCOME & EXPENSE'!E102=0,\"\",'3 INCOME & EXPENSE'!E102)","v":""},{"$f":"T('3 INCOME & EXPENSE'!G102)","v":""},{"$f":"'3 INCOME & EXPENSE'!M102","v":{"v":0,"d":"0.0"}},{"$f":"'3 INCOME & EXPENSE'!N102","v":{"v":0,"d":"$0.00"}},{"$f":"'3 INCOME & EXPENSE'!O102","v":{"v":0,"d":"$0.00"}},508,{"$f":"'3 INCOME & EXPENSE'!X102","v":101},101000,101101,0]
[null,null,{"$f":"IF('3 INCOME & EXPENSE'!E103=0,\"\",'3 INCOME & EXPENSE'!E103)","v":""},{"$f":"T('3 INCOME & EXPENSE'!G103)","v":""},{"$f":"'3 INCOME & EXPENSE'!M103","v":{"v":0,"d":"0.0"}},{"$f":"'3 INCOME & EXPENSE'!N103","v":{"v":0,"d":"$0.00"}},{"$f":"'3 INCOME & EXPENSE'!O103","v":{"v":0,"d":"$0.00"}},509,{"$f":"'3 INCOME & EXPENSE'!X103","v":101},101000,101101,0]
[null,null,{"$f":"IF('3 INCOME & EXPENSE'!E104=0,\"\",'3 INCOME & EXPENSE'!E104)","v":""},{"$f":"T('3 INCOME & EXPENSE'!G104)","v":""},{"$f":"'3 INCOME & EXPENSE'!M104","v":{"v":0,"d":"0.0"}},{"$f":"'3 INCOME & EXPENSE'!N104","v":{"v":0,"d":"$0.00"}},{"$f":"'3 INCOME & EXPENSE'!O104","v":{"v":0,"d":"$0.00"}},510,{"$f":"'3 INCOME & EXPENSE'!X104","v":101},101000,101101,0]
[null,null,{"$f":"IF('3 INCOME & EXPENSE'!E105=0,\"\",'3 INCOME & EXPENSE'!E105)","v":""},{"$f":"T('3 INCOME & EXPENSE'!G105)","v":""},{"$f":"'3 INCOME & EXPENSE'!M105","v":{"v":0,"d":"0.0"}},{"$f":"'3 INCOME & EXPENSE'!N105","v":{"v":0,"d":"$0.00"}},{"$f":"'3 INCOME & EXPENSE'!O105","v":{"v":0,"d":"$0.00"}},511,{"$f":"'3 INCOME & EXPENSE'!X105","v":101},101000,101101,0]
[null,null,{"$f":"IF('3 INCOME & EXPENSE'!E106=0,\"\",'3 INCOME & EXPENSE'!E106)","v":""},{"$f":"T('3 INCOME & EXPENSE'!G106)","v":""},{"$f":"'3 INCOME & EXPENSE'!M106","v":{"v":0,"d":"0.0"}},{"$f":"'3 INCOME & EXPENSE'!N106","v":{"v":0,"d":"$0.00"}},{"$f":"'3 INCOME & EXPENSE'!O106","v":{"v":0,"d":"$0.00"}},512,{"$f":"'3 INCOME & EXPENSE'!X106","v":101},101000,101101,0]
[null,null,{"$f":"IF('3 INCOME & EXPENSE'!E107=0,\"\",'3 INCOME & EXPENSE'!E107)","v":""},{"$f":"T('3 INCOME & EXPENSE'!G107)","v":""},{"$f":"'3 INCOME & EXPENSE'!M107","v":{"v":0,"d":"0.0"}},{"$f":"'3 INCOME & EXPENSE'!N107","v":{"v":0,"d":"$0.00"}},{"$f":"'3 INCOME & EXPENSE'!O107","v":{"v":0,"d":"$0.00"}},513,{"$f":"'3 INCOME & EXPENSE'!X107","v":101},101000,101101,0]
[null,null,{"$f":"IF('3 INCOME & EXPENSE'!E108=0,\"\",'3 INCOME & EXPENSE'!E108)","v":""},{"$f":"T('3 INCOME & EXPENSE'!G108)","v":""},{"$f":"'3 INCOME & EXPENSE'!M108","v":{"v":0,"d":"0.0"}},{"$f":"'3 INCOME & EXPENSE'!N108","v":{"v":0,"d":"$0.00"}},{"$f":"'3 INCOME & EXPENSE'!O108","v":{"v":0,"d":"$0.00"}},514,{"$f":"'3 INCOME & EXPENSE'!X108","v":101},101000,101101,0]
[null,null,{"$f":"IF('3 INCOME & EXPENSE'!E109=0,\"\",'3 INCOME & EXPENSE'!E109)","v":""},{"$f":"T('3 INCOME & EXPENSE'!G109)","v":""},{"$f":"'3 INCOME & EXPENSE'!M109","v":{"v":0,"d":"0.0"}},{"$f":"'3 INCOME & EXPENSE'!N109","v":{"v":0,"d":"$0.00"}},{"$f":"'3 INCOME & EXPENSE'!O109","v":{"v":0,"d":"$0.00"}},515,{"$f":"'3 INCOME & EXPENSE'!X109","v":101},101000,101101,0]
[null,null,{"$f":"IF('3 INCOME & EXPENSE'!E110=0,\"\",'3 INCOME & EXPENSE'!E110)","v":""},{"$f":"T('3 INCOME & EXPENSE'!G110)","v":""},{"$f":"'3 INCOME & EXPENSE'!M110","v":{"v":0,"d":"0.0"}},{"$f":"'3 INCOME & EXPENSE'!N110","v":{"v":0,"d":"$0.00"}},{"$f":"'3 INCOME & EXPENSE'!O110","v":{"v":0,"d":"$0.00"}},516,{"$f":"'3 INCOME & EXPENSE'!X110","v":101},101000,101101,0]
[null,null,{"$f":"IF('3 INCOME & EXPENSE'!E111=0,\"\",'3 INCOME & EXPENSE'!E111)","v":""},{"$f":"T('3 INCOME & EXPENSE'!G111)","v":""},{"$f":"'3 INCOME & EXPENSE'!M111","v":{"v":0,"d":"0.0"}},{"$f":"'3 INCOME & EXPENSE'!N111","v":{"v":0,"d":"$0.00"}},{"$f":"'3 INCOME & EXPENSE'!O111","v":{"v":0,"d":"$0.00"}},517,{"$f":"'3 INCOME & EXPENSE'!X111","v":101},101000,101101,0]
[null,null,{"$f":"IF('3 INCOME & EXPENSE'!E112=0,\"\",'3 INCOME & EXPENSE'!E112)","v":""},{"$f":"T('3 INCOME & EXPENSE'!G112)","v":""},{"$f":"'3 INCOME & EXPENSE'!M112","v":{"v":0,"d":"0.0"}},{"$f":"'3 INCOME & EXPENSE'!N112","v":{"v":0,"d":"$0.00"}},{"$f":"'3 INCOME & EXPENSE'!O112","v":{"v":0,"d":"$0.00"}},518,{"$f":"'3 INCOME & EXPENSE'!X112","v":101},101000,101101,0]
[null,null,{"$f":"IF('3 INCOME & EXPENSE'!E113=0,\"\",'3 INCOME & EXPENSE'!E113)","v":""},{"$f":"T('3 INCOME & EXPENSE'!G113)","v":""},{"$f":"'3 INCOME & EXPENSE'!M113","v":{"v":0,"d":"0.0"}},{"$f":"'3 INCOME & EXPENSE'!N113","v":{"v":0,"d":"$0.00"}},{"$f":"'3 INCOME & EXPENSE'!O113","v":{"v":0,"d":"$0.00"}},519,{"$f":"'3 INCOME & EXPENSE'!X113","v":101},101000,101101,0]
[null,null,{"$f":"IF('3 INCOME & EXPENSE'!E114=0,\"\",'3 INCOME & EXPENSE'!E114)","v":""},{"$f":"T('3 INCOME & EXPENSE'!G114)","v":""},{"$f":"'3 INCOME & EXPENSE'!M114","v":{"v":0,"d":"0.0"}},{"$f":"'3 INCOME & EXPENSE'!N114","v":{"v":0,"d":"$0.00"}},{"$f":"'3 INCOME & EXPENSE'!O114","v":{"v":0,"d":"$0.00"}},520,{"$f":"'3 INCOME & EXPENSE'!X114","v":101},101000,101101,0]
[null,null,{"$f":"IF('3 INCOME & EXPENSE'!E115=0,\"\",'3 INCOME & EXPENSE'!E115)","v":""},{"$f":"T('3 INCOME & EXPENSE'!G115)","v":""},{"$f":"'3 INCOME & EXPENSE'!M115","v":{"v":0,"d":"0.0"}},{"$f":"'3 INCOME & EXPENSE'!N115","v":{"v":0,"d":"$0.00"}},{"$f":"'3 INCOME & EXPENSE'!O115","v":{"v":0,"d":"$0.00"}},521,{"$f":"'3 INCOME & EXPENSE'!X115","v":101},101000,101101,0]
[null,null,{"$f":"IF('3 INCOME & EXPENSE'!E116=0,\"\",'3 INCOME & EXPENSE'!E116)","v":""},{"$f":"T('3 INCOME & EXPENSE'!G116)","v":""},{"$f":"'3 INCOME & EXPENSE'!M116","v":{"v":0,"d":"0.0"}},{"$f":"'3 INCOME & EXPENSE'!N116","v":{"v":0,"d":"$0.00"}},{"$f":"'3 INCOME & EXPENSE'!O116","v":{"v":0,"d":"$0.00"}},522,{"$f":"'3 INCOME & EXPENSE'!X116","v":101},101000,101101,0]
[null,null,{"$f":"IF('3 INCOME & EXPENSE'!E117=0,\"\",'3 INCOME & EXPENSE'!E117)","v":""},{"$f":"T('3 INCOME & EXPENSE'!G117)","v":""},{"$f":"'3 INCOME & EXPENSE'!M117","v":{"v":0,"d":"0.0"}},{"$f":"'3 INCOME & EXPENSE'!N117","v":{"v":0,"d":"$0.00"}},{"$f":"'3 INCOME & EXPENSE'!O117","v":{"v":0,"d":"$0.00"}},523,{"$f":"'3 INCOME & EXPENSE'!X117","v":101},101000,101101,0]
[null,null,{"$f":"IF('3 INCOME & EXPENSE'!E118=0,\"\",'3 INCOME & EXPENSE'!E118)","v":""},{"$f":"T('3 INCOME & EXPENSE'!G118)","v":""},{"$f":"'3 INCOME & EXPENSE'!M118","v":{"v":0,"d":"0.0"}},{"$f":"'3 INCOME & EXPENSE'!N118","v":{"v":0,"d":"$0.00"}},{"$f":"'3 INCOME & EXPENSE'!O118","v":{"v":0,"d":"$0.00"}},524,{"$f":"'3 INCOME & EXPENSE'!X118","v":101},101000,101101,0]
[null,null,{"$f":"IF('3 INCOME & EXPENSE'!E119=0,\"\",'3 INCOME & EXPENSE'!E119)","v":""},{"$f":"T('3 INCOME & EXPENSE'!G119)","v":""},{"$f":"'3 INCOME & EXPENSE'!M119","v":{"v":0,"d":"0.0"}},{"$f":"'3 INCOME & EXPENSE'!N119","v":{"v":0,"d":"$0.00"}},{"$f":"'3 INCOME & EXPENSE'!O119","v":{"v":0,"d":"$0.00"}},525,{"$f":"'3 INCOME & EXPENSE'!X119","v":101},101000,101101,0]
[null,null,{"$f":"IF('3 INCOME & EXPENSE'!E120=0,\"\",'3 INCOME & EXPENSE'!E120)","v":""},{"$f":"T('3 INCOME & EXPENSE'!G120)","v":""},{"$f":"'3 INCOME & EXPENSE'!M120","v":{"v":0,"d":"0.0"}},{"$f":"'3 INCOME & EXPENSE'!N120","v":{"v":0,"d":"$0.00"}},{"$f":"'3 INCOME & EXPENSE'!O120","v":{"v":0,"d":"$0.00"}},526,{"$f":"'3 INCOME & EXPENSE'!X120","v":101},101000,101101,0]
[null,null,{"$f":"IF('3 INCOME & EXPENSE'!E121=0,\"\",'3 INCOME & EXPENSE'!E121)","v":""},{"$f":"T('3 INCOME & EXPENSE'!G121)","v":""},{"$f":"'3 INCOME & EXPENSE'!M121","v":{"v":0,"d":"0.0"}},{"$f":"'3 INCOME & EXPENSE'!N121","v":{"v":0,"d":"$0.00"}},{"$f":"'3 INCOME & EXPENSE'!O121","v":{"v":0,"d":"$0.00"}},527,{"$f":"'3 INCOME & EXPENSE'!X121","v":101},101000,101101,0]
[null,null,{"$f":"IF('3 INCOME & EXPENSE'!E122=0,\"\",'3 INCOME & EXPENSE'!E122)","v":""},{"$f":"T('3 INCOME & EXPENSE'!G122)","v":""},{"$f":"'3 INCOME & EXPENSE'!M122","v":{"v":0,"d":"0.0"}},{"$f":"'3 INCOME & EXPENSE'!N122","v":{"v":0,"d":"$0.00"}},{"$f":"'3 INCOME & EXPENSE'!O122","v":{"v":0,"d":"$0.00"}},528,{"$f":"'3 INCOME & EXPENSE'!X122","v":101},101000,101101,0]
[null,null,{"$f":"IF('3 INCOME & EXPENSE'!E123=0,\"\",'3 INCOME & EXPENSE'!E123)","v":""},{"$f":"T('3 INCOME & EXPENSE'!G123)","v":""},{"$f":"'3 INCOME & EXPENSE'!M123","v":{"v":0,"d":"0.0"}},{"$f":"'3 INCOME & EXPENSE'!N123","v":{"v":0,"d":"$0.00"}},{"$f":"'3 INCOME & EXPENSE'!O123","v":{"v":0,"d":"$0.00"}},529,{"$f":"'3 INCOME & EXPENSE'!X123","v":101},101000,101101,0]
[null,null,{"$f":"IF('3 INCOME & EXPENSE'!E124=0,\"\",'3 INCOME & EXPENSE'!E124)","v":""},{"$f":"T('3 INCOME & EXPENSE'!G124)","v":""},{"$f":"'3 INCOME & EXPENSE'!M124","v":{"v":0,"d":"0.0"}},{"$f":"'3 INCOME & EXPENSE'!N124","v":{"v":0,"d":"$0.00"}},{"$f":"'3 INCOME & EXPENSE'!O124","v":{"v":0,"d":"$0.00"}},530,{"$f":"'3 INCOME & EXPENSE'!X124","v":101},101000,101101,0]
[null,null,{"$f":"IF('3 INCOME & EXPENSE'!E125=0,\"\",'3 INCOME & EXPENSE'!E125)","v":""},{"$f":"T('3 INCOME & EXPENSE'!G125)","v":""},{"$f":"'3 INCOME & EXPENSE'!M125","v":{"v":0,"d":"0.0"}},{"$f":"'3 INCOME & EXPENSE'!N125","v":{"v":0,"d":"$0.00"}},{"$f":"'3 INCOME & EXPENSE'!O125","v":{"v":0,"d":"$0.00"}},531,{"$f":"'3 INCOME & EXPENSE'!X125","v":101},101000,101101,0]
[null,null,{"$f":"IF('3 INCOME & EXPENSE'!E126=0,\"\",'3 INCOME & EXPENSE'!E126)","v":""},{"$f":"T('3 INCOME & EXPENSE'!G126)","v":""},{"$f":"'3 INCOME & EXPENSE'!M126","v":{"v":0,"d":"0.0"}},{"$f":"'3 INCOME & EXPENSE'!N126","v":{"v":0,"d":"$0.00"}},{"$f":"'3 INCOME & EXPENSE'!O126","v":{"v":0,"d":"$0.00"}},532,{"$f":"'3 INCOME & EXPENSE'!X126","v":101},101000,101101,0]
[null,null,{"$f":"IF('3 INCOME & EXPENSE'!E127=0,\"\",'3 INCOME & EXPENSE'!E127)","v":""},{"$f":"T('3 INCOME & EXPENSE'!G127)","v":""},{"$f":"'3 INCOME & EXPENSE'!M127","v":{"v":0,"d":"0.0"}},{"$f":"'3 INCOME & EXPENSE'!N127","v":{"v":0,"d":"$0.00"}},{"$f":"'3 INCOME & EXPENSE'!O127","v":{"v":0,"d":"$0.00"}},533,{"$f":"'3 INCOME & EXPENSE'!X127","v":101},101000,101101,0]
[null,null,{"$f":"IF('3 INCOME & EXPENSE'!E128=0,\"\",'3 INCOME & EXPENSE'!E128)","v":""},{"$f":"T('3 INCOME & EXPENSE'!G128)","v":""},{"$f":"'3 INCOME & EXPENSE'!M128","v":{"v":0,"d":"0.0"}},{"$f":"'3 INCOME & EXPENSE'!N128","v":{"v":0,"d":"$0.00"}},{"$f":"'3 INCOME & EXPENSE'!O128","v":{"v":0,"d":"$0.00"}},534,{"$f":"'3 INCOME & EXPENSE'!X128","v":101},101000,101101,0]
[null,null,{"$f":"IF('3 INCOME & EXPENSE'!E129=0,\"\",'3 INCOME & EXPENSE'!E129)","v":""},{"$f":"T('3 INCOME & EXPENSE'!G129)","v":""},{"$f":"'3 INCOME & EXPENSE'!M129","v":{"v":0,"d":"0.0"}},{"$f":"'3 INCOME & EXPENSE'!N129","v":{"v":0,"d":"$0.00"}},{"$f":"'3 INCOME & EXPENSE'!O129","v":{"v":0,"d":"$0.00"}},535,{"$f":"'3 INCOME & EXPENSE'!X129","v":101},101000,101101,0]
[null,null,{"$f":"IF('3 INCOME & EXPENSE'!E130=0,\"\",'3 INCOME & EXPENSE'!E130)","v":""},{"$f":"T('3 INCOME & EXPENSE'!G130)","v":""},{"$f":"'3 INCOME & EXPENSE'!M130","v":{"v":0,"d":"0.0"}},{"$f":"'3 INCOME & EXPENSE'!N130","v":{"v":0,"d":"$0.00"}},{"$f":"'3 INCOME & EXPENSE'!O130","v":{"v":0,"d":"$0.00"}},536,{"$f":"'3 INCOME & EXPENSE'!X130","v":101},101000,101101,0]
[null,null,{"$f":"IF('3 INCOME & EXPENSE'!E131=0,\"\",'3 INCOME & EXPENSE'!E131)","v":""},{"$f":"T('3 INCOME & EXPENSE'!G131)","v":""},{"$f":"'3 INCOME & EXPENSE'!M131","v":{"v":0,"d":"0.0"}},{"$f":"'3 INCOME & EXPENSE'!N131","v":{"v":0,"d":"$0.00"}},{"$f":"'3 INCOME & EXPENSE'!O131","v":{"v":0,"d":"$0.00"}},537,{"$f":"'3 INCOME & EXPENSE'!X131","v":101},101000,101101,0]
[null,null,{"$f":"IF('3 INCOME & EXPENSE'!E132=0,\"\",'3 INCOME & EXPENSE'!E132)","v":""},{"$f":"T('3 INCOME & EXPENSE'!G132)","v":""},{"$f":"'3 INCOME & EXPENSE'!M132","v":{"v":0,"d":"0.0"}},{"$f":"'3 INCOME & EXPENSE'!N132","v":{"v":0,"d":"$0.00"}},{"$f":"'3 INCOME & EXPENSE'!O132","v":{"v":0,"d":"$0.00"}},538,{"$f":"'3 INCOME & EXPENSE'!X132","v":101},101000,101101,0]
[null,null,{"$f":"IF('3 INCOME & EXPENSE'!E133=0,\"\",'3 INCOME & EXPENSE'!E133)","v":""},{"$f":"T('3 INCOME & EXPENSE'!G133)","v":""},{"$f":"'3 INCOME & EXPENSE'!M133","v":{"v":0,"d":"0.0"}},{"$f":"'3 INCOME & EXPENSE'!N133","v":{"v":0,"d":"$0.00"}},{"$f":"'3 INCOME & EXPENSE'!O133","v":{"v":0,"d":"$0.00"}},539,{"$f":"'3 INCOME & EXPENSE'!X133","v":101},101000,101101,0]
[null,null,{"$f":"IF('3 INCOME & EXPENSE'!E134=0,\"\",'3 INCOME & EXPENSE'!E134)","v":""},{"$f":"T('3 INCOME & EXPENSE'!G134)","v":""},{"$f":"'3 INCOME & EXPENSE'!M134","v":{"v":0,"d":"0.0"}},{"$f":"'3 INCOME & EXPENSE'!N134","v":{"v":0,"d":"$0.00"}},{"$f":"'3 INCOME & EXPENSE'!O134","v":{"v":0,"d":"$0.00"}},540,{"$f":"'3 INCOME & EXPENSE'!X134","v":101},101000,101101,0]
[null,null,{"$f":"IF('3 INCOME & EXPENSE'!E135=0,\"\",'3 INCOME & EXPENSE'!E135)","v":""},{"$f":"T('3 INCOME & EXPENSE'!G135)","v":""},{"$f":"'3 INCOME & EXPENSE'!M135","v":{"v":0,"d":"0.0"}},{"$f":"'3 INCOME & EXPENSE'!N135","v":{"v":0,"d":"$0.00"}},{"$f":"'3 INCOME & EXPENSE'!O135","v":{"v":0,"d":"$0.00"}},541,{"$f":"'3 INCOME & EXPENSE'!X135","v":101},101000,101101,0]
[null,null,{"$f":"IF('3 INCOME & EXPENSE'!E136=0,\"\",'3 INCOME & EXPENSE'!E136)","v":""},{"$f":"T('3 INCOME & EXPENSE'!G136)","v":""},{"$f":"'3 INCOME & EXPENSE'!M136","v":{"v":0,"d":"0.0"}},{"$f":"'3 INCOME & EXPENSE'!N136","v":{"v":0,"d":"$0.00"}},{"$f":"'3 INCOME & EXPENSE'!O136","v":{"v":0,"d":"$0.00"}},542,{"$f":"'3 INCOME & EXPENSE'!X136","v":101},101000,101101,0]
[null,null,{"$f":"IF('3 INCOME & EXPENSE'!E137=0,\"\",'3 INCOME & EXPENSE'!E137)","v":""},{"$f":"T('3 INCOME & EXPENSE'!G137)","v":""},{"$f":"'3 INCOME & EXPENSE'!M137","v":{"v":0,"d":"0.0"}},{"$f":"'3 INCOME & EXPENSE'!N137","v":{"v":0,"d":"$0.00"}},{"$f":"'3 INCOME & EXPENSE'!O137","v":{"v":0,"d":"$0.00"}},543,{"$f":"'3 INCOME & EXPENSE'!X137","v":101},101000,101101,0]
[null,null,{"$f":"IF('3 INCOME & EXPENSE'!E138=0,\"\",'3 INCOME & EXPENSE'!E138)","v":""},{"$f":"T('3 INCOME & EXPENSE'!G138)","v":""},{"$f":"'3 INCOME & EXPENSE'!M138","v":{"v":0,"d":"0.0"}},{"$f":"'3 INCOME & EXPENSE'!N138","v":{"v":0,"d":"$0.00"}},{"$f":"'3 INCOME & EXPENSE'!O138","v":{"v":0,"d":"$0.00"}},544,{"$f":"'3 INCOME & EXPENSE'!X138","v":101},101000,101101,0]
[null,null,{"$f":"IF('3 INCOME & EXPENSE'!E139=0,\"\",'3 INCOME & EXPENSE'!E139)","v":""},{"$f":"T('3 INCOME & EXPENSE'!G139)","v":""},{"$f":"'3 INCOME & EXPENSE'!M139","v":{"v":0,"d":"0.0"}},{"$f":"'3 INCOME & EXPENSE'!N139","v":{"v":0,"d":"$0.00"}},{"$f":"'3 INCOME & EXPENSE'!O139","v":{"v":0,"d":"$0.00"}},545,{"$f":"'3 INCOME & EXPENSE'!X139","v":101},101000,101101,0]
[null,null,{"$f":"IF('3 INCOME & EXPENSE'!E140=0,\"\",'3 INCOME & EXPENSE'!E140)","v":""},{"$f":"T('3 INCOME & EXPENSE'!G140)","v":""},{"$f":"'3 INCOME & EXPENSE'!M140","v":{"v":0,"d":"0.0"}},{"$f":"'3 INCOME & EXPENSE'!N140","v":{"v":0,"d":"$0.00"}},{"$f":"'3 INCOME & EXPENSE'!O140","v":{"v":0,"d":"$0.00"}},546,{"$f":"'3 INCOME & EXPENSE'!X140","v":101},101000,101101,0]
[null,null,{"$f":"IF('3 INCOME & EXPENSE'!E141=0,\"\",'3 INCOME & EXPENSE'!E141)","v":""},{"$f":"T('3 INCOME & EXPENSE'!G141)","v":""},{"$f":"'3 INCOME & EXPENSE'!M141","v":{"v":0,"d":"0.0"}},{"$f":"'3 INCOME & EXPENSE'!N141","v":{"v":0,"d":"$0.00"}},{"$f":"'3 INCOME & EXPENSE'!O141","v":{"v":0,"d":"$0.00"}},547,{"$f":"'3 INCOME & EXPENSE'!X141","v":101},101000,101101,0]
[null,null,{"$f":"IF('3 INCOME & EXPENSE'!E142=0,\"\",'3 INCOME & EXPENSE'!E142)","v":""},{"$f":"T('3 INCOME & EXPENSE'!G142)","v":""},{"$f":"'3 INCOME & EXPENSE'!M142","v":{"v":0,"d":"0.0"}},{"$f":"'3 INCOME & EXPENSE'!N142","v":{"v":0,"d":"$0.00"}},{"$f":"'3 INCOME & EXPENSE'!O142","v":{"v":0,"d":"$0.00"}},548,{"$f":"'3 INCOME & EXPENSE'!X142","v":101},{"$f":"VLOOKUP(I560,$I$1186:$J$1287,2)","v":101000},101101,{"$f":"K560*E560","v":0}]
[null,null,{"$f":"IF('3 INCOME & EXPENSE'!E143=0,\"\",'3 INCOME & EXPENSE'!E143)","v":""},{"$f":"T('3 INCOME & EXPENSE'!G143)","v":""},{"$f":"'3 INCOME & EXPENSE'!M143","v":{"v":0,"d":"0.0"}},{"$f":"'3 INCOME & EXPENSE'!N143","v":{"v":0,"d":"$0.00"}},{"$f":"'3 INCOME & EXPENSE'!O143","v":{"v":0,"d":"$0.00"}},549,{"$f":"'3 INCOME & EXPENSE'!X143","v":101},101000,101101,0]
[null,null,{"$f":"IF('3 INCOME & EXPENSE'!E144=0,\"\",'3 INCOME & EXPENSE'!E144)","v":""},{"$f":"T('3 INCOME & EXPENSE'!G144)","v":""},{"$f":"'3 INCOME & EXPENSE'!M144","v":{"v":0,"d":"0.0"}},{"$f":"'3 INCOME & EXPENSE'!N144","v":{"v":0,"d":"$0.00"}},{"$f":"'3 INCOME & EXPENSE'!O144","v":{"v":0,"d":"$0.00"}},550,{"$f":"'3 INCOME & EXPENSE'!X144","v":101},101000,101101,0]
[null,null,{"$f":"IF('3 INCOME & EXPENSE'!E145=0,\"\",'3 INCOME & EXPENSE'!E145)","v":""},{"$f":"T('3 INCOME & EXPENSE'!G145)","v":""},{"$f":"'3 INCOME & EXPENSE'!M145","v":{"v":0,"d":"0.0"}},{"$f":"'3 INCOME & EXPENSE'!N145","v":{"v":0,"d":"$0.00"}},{"$f":"'3 INCOME & EXPENSE'!O145","v":{"v":0,"d":"$0.00"}},551,{"$f":"'3 INCOME & EXPENSE'!X145","v":101},101000,101101,0]
[null,null,{"$f":"IF('3 INCOME & EXPENSE'!E146=0,\"\",'3 INCOME & EXPENSE'!E146)","v":""},{"$f":"T('3 INCOME & EXPENSE'!G146)","v":""},{"$f":"'3 INCOME & EXPENSE'!M146","v":{"v":0,"d":"0.0"}},{"$f":"'3 INCOME & EXPENSE'!N146","v":{"v":0,"d":"$0.00"}},{"$f":"'3 INCOME & EXPENSE'!O146","v":{"v":0,"d":"$0.00"}},552,{"$f":"'3 INCOME & EXPENSE'!X146","v":101},101000,101101,0]
[null,null,{"$f":"IF('3 INCOME & EXPENSE'!E147=0,\"\",'3 INCOME & EXPENSE'!E147)","v":""},{"$f":"T('3 INCOME & EXPENSE'!G147)","v":""},{"$f":"'3 INCOME & EXPENSE'!M147","v":{"v":0,"d":"0.0"}},{"$f":"'3 INCOME & EXPENSE'!N147","v":{"v":0,"d":"$0.00"}},{"$f":"'3 INCOME & EXPENSE'!O147","v":{"v":0,"d":"$0.00"}},553,{"$f":"'3 INCOME & EXPENSE'!X147","v":101},101000,101101,0]
[null,null,{"$f":"IF('3 INCOME & EXPENSE'!E148=0,\"\",'3 INCOME & EXPENSE'!E148)","v":""},{"$f":"T('3 INCOME & EXPENSE'!G148)","v":""},{"$f":"'3 INCOME & EXPENSE'!M148","v":{"v":0,"d":"0.0"}},{"$f":"'3 INCOME & EXPENSE'!N148","v":{"v":0,"d":"$0.00"}},{"$f":"'3 INCOME & EXPENSE'!O148","v":{"v":0,"d":"$0.00"}},554,{"$f":"'3 INCOME & EXPENSE'!X148","v":101},101000,101101,0]
[null,null,{"$f":"IF('3 INCOME & EXPENSE'!E149=0,\"\",'3 INCOME & EXPENSE'!E149)","v":""},{"$f":"T('3 INCOME & EXPENSE'!G149)","v":""},{"$f":"'3 INCOME & EXPENSE'!M149","v":{"v":0,"d":"0.0"}},{"$f":"'3 INCOME & EXPENSE'!N149","v":{"v":0,"d":"$0.00"}},{"$f":"'3 INCOME & EXPENSE'!O149","v":{"v":0,"d":"$0.00"}},555,{"$f":"'3 INCOME & EXPENSE'!X149","v":101},101000,101101,0]
[null,null,{"$f":"IF('3 INCOME & EXPENSE'!E150=0,\"\",'3 INCOME & EXPENSE'!E150)","v":""},{"$f":"T('3 INCOME & EXPENSE'!G150)","v":""},{"$f":"'3 INCOME & EXPENSE'!M150","v":{"v":0,"d":"0.0"}},{"$f":"'3 INCOME & EXPENSE'!N150","v":{"v":0,"d":"$0.00"}},{"$f":"'3 INCOME & EXPENSE'!O150","v":{"v":0,"d":"$0.00"}},556,{"$f":"'3 INCOME & EXPENSE'!X150","v":101},101000,101101,0]
[null,null,{"$f":"IF('3 INCOME & EXPENSE'!E151=0,\"\",'3 INCOME & EXPENSE'!E151)","v":""},{"$f":"T('3 INCOME & EXPENSE'!G151)","v":""},{"$f":"'3 INCOME & EXPENSE'!M151","v":{"v":0,"d":"0.0"}},{"$f":"'3 INCOME & EXPENSE'!N151","v":{"v":0,"d":"$0.00"}},{"$f":"'3 INCOME & EXPENSE'!O151","v":{"v":0,"d":"$0.00"}},557,{"$f":"'3 INCOME & EXPENSE'!X151","v":101},101000,101101,0]
[null,null,{"$f":"IF('3 INCOME & EXPENSE'!E152=0,\"\",'3 INCOME & EXPENSE'!E152)","v":""},{"$f":"T('3 INCOME & EXPENSE'!G152)","v":""},{"$f":"'3 INCOME & EXPENSE'!M152","v":{"v":0,"d":"0.0"}},{"$f":"'3 INCOME & EXPENSE'!N152","v":{"v":0,"d":"$0.00"}},{"$f":"'3 INCOME & EXPENSE'!O152","v":{"v":0,"d":"$0.00"}},558,{"$f":"'3 INCOME & EXPENSE'!X152","v":101},101000,101101,0]
[null,null,{"$f":"IF('3 INCOME & EXPENSE'!E153=0,\"\",'3 INCOME & EXPENSE'!E153)","v":""},{"$f":"T('3 INCOME & EXPENSE'!G153)","v":""},{"$f":"'3 INCOME & EXPENSE'!M153","v":{"v":0,"d":"0.0"}},{"$f":"'3 INCOME & EXPENSE'!N153","v":{"v":0,"d":"$0.00"}},{"$f":"'3 INCOME & EXPENSE'!O153","v":{"v":0,"d":"$0.00"}},559,{"$f":"'3 INCOME & EXPENSE'!X153","v":101},101000,101101,0]
[null,null,{"$f":"IF('3 INCOME & EXPENSE'!E154=0,\"\",'3 INCOME & EXPENSE'!E154)","v":""},{"$f":"T('3 INCOME & EXPENSE'!G154)","v":""},{"$f":"'3 INCOME & EXPENSE'!M154","v":{"v":0,"d":"0.0"}},{"$f":"'3 INCOME & EXPENSE'!N154","v":{"v":0,"d":"$0.00"}},{"$f":"'3 INCOME & EXPENSE'!O154","v":{"v":0,"d":"$0.00"}},560,{"$f":"'3 INCOME & EXPENSE'!X154","v":101},101000,101101,0]
[null,null,{"$f":"IF('3 INCOME & EXPENSE'!E155=0,\"\",'3 INCOME & EXPENSE'!E155)","v":""},{"$f":"T('3 INCOME & EXPENSE'!G155)","v":""},{"$f":"'3 INCOME & EXPENSE'!M155","v":{"v":0,"d":"0.0"}},{"$f":"'3 INCOME & EXPENSE'!N155","v":{"v":0,"d":"$0.00"}},{"$f":"'3 INCOME & EXPENSE'!O155","v":{"v":0,"d":"$0.00"}},561,{"$f":"'3 INCOME & EXPENSE'!X155","v":101},101000,101101,0]
[null,null,{"$f":"IF('3 INCOME & EXPENSE'!E156=0,\"\",'3 INCOME & EXPENSE'!E156)","v":""},{"$f":"T('3 INCOME & EXPENSE'!G156)","v":""},{"$f":"'3 INCOME & EXPENSE'!M156","v":{"v":0,"d":"0.0"}},{"$f":"'3 INCOME & EXPENSE'!N156","v":{"v":0,"d":"$0.00"}},{"$f":"'3 INCOME & EXPENSE'!O156","v":{"v":0,"d":"$0.00"}},562,{"$f":"'3 INCOME & EXPENSE'!X156","v":101},101000,101101,0]
[null,null,{"$f":"IF('3 INCOME & EXPENSE'!E157=0,\"\",'3 INCOME & EXPENSE'!E157)","v":""},{"$f":"T('3 INCOME & EXPENSE'!G157)","v":""},{"$f":"'3 INCOME & EXPENSE'!M157","v":{"v":0,"d":"0.0"}},{"$f":"'3 INCOME & EXPENSE'!N157","v":{"v":0,"d":"$0.00"}},{"$f":"'3 INCOME & EXPENSE'!O157","v":{"v":0,"d":"$0.00"}},563,{"$f":"'3 INCOME & EXPENSE'!X157","v":101},101000,101101,0]
[null,null,{"$f":"IF('3 INCOME & EXPENSE'!E158=0,\"\",'3 INCOME & EXPENSE'!E158)","v":""},{"$f":"T('3 INCOME & EXPENSE'!G158)","v":""},{"$f":"'3 INCOME & EXPENSE'!M158","v":{"v":0,"d":"0.0"}},{"$f":"'3 INCOME & EXPENSE'!N158","v":{"v":0,"d":"$0.00"}},{"$f":"'3 INCOME & EXPENSE'!O158","v":{"v":0,"d":"$0.00"}},564,{"$f":"'3 INCOME & EXPENSE'!X158","v":101},101000,101101,0]
[null,null,{"$f":"IF('3 INCOME & EXPENSE'!E159=0,\"\",'3 INCOME & EXPENSE'!E159)","v":""},{"$f":"T('3 INCOME & EXPENSE'!G159)","v":""},{"$f":"'3 INCOME & EXPENSE'!M159","v":{"v":0,"d":"0.0"}},{"$f":"'3 INCOME & EXPENSE'!N159","v":{"v":0,"d":"$0.00"}},{"$f":"'3 INCOME & EXPENSE'!O159","v":{"v":0,"d":"$0.00"}},565,{"$f":"'3 INCOME & EXPENSE'!X159","v":101},101000,{"$f":"I577+J577","v":101101},0]
[null,null,{"$f":"IF('3 INCOME & EXPENSE'!E160=0,\"\",'3 INCOME & EXPENSE'!E160)","v":""},{"$f":"T('3 INCOME & EXPENSE'!G160)","v":""},{"$f":"'3 INCOME & EXPENSE'!M160","v":{"v":0,"d":"0.0"}},{"$f":"'3 INCOME & EXPENSE'!N160","v":{"v":0,"d":"$0.00"}},{"$f":"'3 INCOME & EXPENSE'!O160","v":{"v":0,"d":"$0.00"}},566,{"$f":"'3 INCOME & EXPENSE'!X160","v":101},101000,101101,0]
[null,null,{"$f":"IF('3 INCOME & EXPENSE'!E161=0,\"\",'3 INCOME & EXPENSE'!E161)","v":""},{"$f":"T('3 INCOME & EXPENSE'!G161)","v":""},{"$f":"'3 INCOME & EXPENSE'!M161","v":{"v":0,"d":"0.0"}},{"$f":"'3 INCOME & EXPENSE'!N161","v":{"v":0,"d":"$0.00"}},{"$f":"'3 INCOME & EXPENSE'!O161","v":{"v":0,"d":"$0.00"}},567,{"$f":"'3 INCOME & EXPENSE'!X161","v":101},101000,101101,0]
[null,null,{"$f":"IF('3 INCOME & EXPENSE'!E162=0,\"\",'3 INCOME & EXPENSE'!E162)","v":""},{"$f":"T('3 INCOME & EXPENSE'!G162)","v":""},{"$f":"'3 INCOME & EXPENSE'!M162","v":{"v":0,"d":"0.0"}},{"$f":"'3 INCOME & EXPENSE'!N162","v":{"v":0,"d":"$0.00"}},{"$f":"'3 INCOME & EXPENSE'!O162","v":{"v":0,"d":"$0.00"}},568,{"$f":"'3 INCOME & EXPENSE'!X162","v":101},101000,101101,0]
[null,null,{"$f":"IF('3 INCOME & EXPENSE'!E163=0,\"\",'3 INCOME & EXPENSE'!E163)","v":""},{"$f":"T('3 INCOME & EXPENSE'!G163)","v":""},{"$f":"'3 INCOME & EXPENSE'!M163","v":{"v":0,"d":"0.0"}},{"$f":"'3 INCOME & EXPENSE'!N163","v":{"v":0,"d":"$0.00"}},{"$f":"'3 INCOME & EXPENSE'!O163","v":{"v":0,"d":"$0.00"}},569,{"$f":"'3 INCOME & EXPENSE'!X163","v":101},101000,101101,0]
[null,null,{"$f":"IF('3 INCOME & EXPENSE'!E164=0,\"\",'3 INCOME & EXPENSE'!E164)","v":""},{"$f":"T('3 INCOME & EXPENSE'!G164)","v":""},{"$f":"'3 INCOME & EXPENSE'!M164","v":{"v":0,"d":"0.0"}},{"$f":"'3 INCOME & EXPENSE'!N164","v":{"v":0,"d":"$0.00"}},{"$f":"'3 INCOME & EXPENSE'!O164","v":{"v":0,"d":"$0.00"}},570,{"$f":"'3 INCOME & EXPENSE'!X164","v":101},101000,101101,0]
[null,null,{"$f":"IF('3 INCOME & EXPENSE'!E165=0,\"\",'3 INCOME & EXPENSE'!E165)","v":""},{"$f":"T('3 INCOME & EXPENSE'!G165)","v":""},{"$f":"'3 INCOME & EXPENSE'!M165","v":{"v":0,"d":"0.0"}},{"$f":"'3 INCOME & EXPENSE'!N165","v":{"v":0,"d":"$0.00"}},{"$f":"'3 INCOME & EXPENSE'!O165","v":{"v":0,"d":"$0.00"}},571,{"$f":"'3 INCOME & EXPENSE'!X165","v":101},101000,101101,0]
[null,null,{"$f":"IF('3 INCOME & EXPENSE'!E166=0,\"\",'3 INCOME & EXPENSE'!E166)","v":""},{"$f":"T('3 INCOME & EXPENSE'!G166)","v":""},{"$f":"'3 INCOME & EXPENSE'!M166","v":{"v":0,"d":"0.0"}},{"$f":"'3 INCOME & EXPENSE'!N166","v":{"v":0,"d":"$0.00"}},{"$f":"'3 INCOME & EXPENSE'!O166","v":{"v":0,"d":"$0.00"}},572,{"$f":"'3 INCOME & EXPENSE'!X166","v":101},101000,101101,0]
[null,null,{"$f":"IF('3 INCOME & EXPENSE'!E167=0,\"\",'3 INCOME & EXPENSE'!E167)","v":""},{"$f":"T('3 INCOME & EXPENSE'!G167)","v":""},{"$f":"'3 INCOME & EXPENSE'!M167","v":{"v":0,"d":"0.0"}},{"$f":"'3 INCOME & EXPENSE'!N167","v":{"v":0,"d":"$0.00"}},{"$f":"'3 INCOME & EXPENSE'!O167","v":{"v":0,"d":"$0.00"}},573,{"$f":"'3 INCOME & EXPENSE'!X167","v":101},101000,101101,0]
[null,null,{"$f":"IF('3 INCOME & EXPENSE'!E168=0,\"\",'3 INCOME & EXPENSE'!E168)","v":""},{"$f":"T('3 INCOME & EXPENSE'!G168)","v":""},{"$f":"'3 INCOME & EXPENSE'!M168","v":{"v":0,"d":"0.0"}},{"$f":"'3 INCOME & EXPENSE'!N168","v":{"v":0,"d":"$0.00"}},{"$f":"'3 INCOME & EXPENSE'!O168","v":{"v":0,"d":"$0.00"}},574,{"$f":"'3 INCOME & EXPENSE'!X168","v":101},101000,101101,0]
[null,null,{"$f":"IF('3 INCOME & EXPENSE'!E169=0,\"\",'3 INCOME & EXPENSE'!E169)","v":""},{"$f":"T('3 INCOME & EXPENSE'!G169)","v":""},{"$f":"'3 INCOME & EXPENSE'!M169","v":{"v":0,"d":"0.0"}},{"$f":"'3 INCOME & EXPENSE'!N169","v":{"v":0,"d":"$0.00"}},{"$f":"'3 INCOME & EXPENSE'!O169","v":{"v":0,"d":"$0.00"}},575,{"$f":"'3 INCOME & EXPENSE'!X169","v":101},101000,101101,0]
[null,null,{"$f":"IF('3 INCOME & EXPENSE'!E170=0,\"\",'3 INCOME & EXPENSE'!E170)","v":""},{"$f":"T('3 INCOME & EXPENSE'!G170)","v":""},{"$f":"'3 INCOME & EXPENSE'!M170","v":{"v":0,"d":"0.0"}},{"$f":"'3 INCOME & EXPENSE'!N170","v":{"v":0,"d":"$0.00"}},{"$f":"'3 INCOME & EXPENSE'!O170","v":{"v":0,"d":"$0.00"}},576,{"$f":"'3 INCOME & EXPENSE'!X170","v":101},101000,101101,0]
[null,null,{"$f":"IF('3 INCOME & EXPENSE'!E171=0,\"\",'3 INCOME & EXPENSE'!E171)","v":""},{"$f":"T('3 INCOME & EXPENSE'!G171)","v":""},{"$f":"'3 INCOME & EXPENSE'!M171","v":{"v":0,"d":"0.0"}},{"$f":"'3 INCOME & EXPENSE'!N171","v":{"v":0,"d":"$0.00"}},{"$f":"'3 INCOME & EXPENSE'!O171","v":{"v":0,"d":"$0.00"}},577,{"$f":"'3 INCOME & EXPENSE'!X171","v":101},101000,101101,0]
[null,null,{"$f":"IF('3 INCOME & EXPENSE'!E172=0,\"\",'3 INCOME & EXPENSE'!E172)","v":""},{"$f":"T('3 INCOME & EXPENSE'!G172)","v":""},{"$f":"'3 INCOME & EXPENSE'!M172","v":{"v":0,"d":"0.0"}},{"$f":"'3 INCOME & EXPENSE'!N172","v":{"v":0,"d":"$0.00"}},{"$f":"'3 INCOME & EXPENSE'!O172","v":{"v":0,"d":"$0.00"}},578,{"$f":"'3 INCOME & EXPENSE'!X172","v":101},101000,101101,0]
[null,null,{"$f":"IF('3 INCOME & EXPENSE'!E173=0,\"\",'3 INCOME & EXPENSE'!E173)","v":""},{"$f":"T('3 INCOME & EXPENSE'!G173)","v":""},{"$f":"'3 INCOME & EXPENSE'!M173","v":{"v":0,"d":"0.0"}},{"$f":"'3 INCOME & EXPENSE'!N173","v":{"v":0,"d":"$0.00"}},{"$f":"'3 INCOME & EXPENSE'!O173","v":{"v":0,"d":"$0.00"}},579,{"$f":"'3 INCOME & EXPENSE'!X173","v":101},101000,101101,0]
[null,null,{"$f":"IF('3 INCOME & EXPENSE'!E174=0,\"\",'3 INCOME & EXPENSE'!E174)","v":""},{"$f":"T('3 INCOME & EXPENSE'!G174)","v":""},{"$f":"'3 INCOME & EXPENSE'!M174","v":{"v":0,"d":"0.0"}},{"$f":"'3 INCOME & EXPENSE'!N174","v":{"v":0,"d":"$0.00"}},{"$f":"'3 INCOME & EXPENSE'!O174","v":{"v":0,"d":"$0.00"}},580,{"$f":"'3 INCOME & EXPENSE'!X174","v":101},101000,101101,0]
[null,null,{"$f":"IF('3 INCOME & EXPENSE'!E175=0,\"\",'3 INCOME & EXPENSE'!E175)","v":""},{"$f":"T('3 INCOME & EXPENSE'!G175)","v":""},{"$f":"'3 INCOME & EXPENSE'!M175","v":{"v":0,"d":"0.0"}},{"$f":"'3 INCOME & EXPENSE'!N175","v":{"v":0,"d":"$0.00"}},{"$f":"'3 INCOME & EXPENSE'!O175","v":{"v":0,"d":"$0.00"}},581,{"$f":"'3 INCOME & EXPENSE'!X175","v":101},101000,101101,0]
[null,null,{"$f":"IF('3 INCOME & EXPENSE'!E176=0,\"\",'3 INCOME & EXPENSE'!E176)","v":""},{"$f":"T('3 INCOME & EXPENSE'!G176)","v":""},{"$f":"'3 INCOME & EXPENSE'!M176","v":{"v":0,"d":"0.0"}},{"$f":"'3 INCOME & EXPENSE'!N176","v":{"v":0,"d":"$0.00"}},{"$f":"'3 INCOME & EXPENSE'!O176","v":{"v":0,"d":"$0.00"}},582,{"$f":"'3 INCOME & EXPENSE'!X176","v":101},101000,101101,0]
[null,null,{"$f":"IF('3 INCOME & EXPENSE'!E177=0,\"\",'3 INCOME & EXPENSE'!E177)","v":""},{"$f":"T('3 INCOME & EXPENSE'!G177)","v":""},{"$f":"'3 INCOME & EXPENSE'!M177","v":{"v":0,"d":"0.0"}},{"$f":"'3 INCOME & EXPENSE'!N177","v":{"v":0,"d":"$0.00"}},{"$f":"'3 INCOME & EXPENSE'!O177","v":{"v":0,"d":"$0.00"}},583,{"$f":"'3 INCOME & EXPENSE'!X177","v":101},101000,101101,0]
[null,null,{"$f":"IF('3 INCOME & EXPENSE'!E178=0,\"\",'3 INCOME & EXPENSE'!E178)","v":""},{"$f":"T('3 INCOME & EXPENSE'!G178)","v":""},{"$f":"'3 INCOME & EXPENSE'!M178","v":{"v":0,"d":"0.0"}},{"$f":"'3 INCOME & EXPENSE'!N178","v":{"v":0,"d":"$0.00"}},{"$f":"'3 INCOME & EXPENSE'!O178","v":{"v":0,"d":"$0.00"}},584,{"$f":"'3 INCOME & EXPENSE'!X178","v":101},101000,101101,0]
[null,null,{"$f":"IF('3 INCOME & EXPENSE'!E179=0,\"\",'3 INCOME & EXPENSE'!E179)","v":""},{"$f":"T('3 INCOME & EXPENSE'!G179)","v":""},{"$f":"'3 INCOME & EXPENSE'!M179","v":{"v":0,"d":"0.0"}},{"$f":"'3 INCOME & EXPENSE'!N179","v":{"v":0,"d":"$0.00"}},{"$f":"'3 INCOME & EXPENSE'!O179","v":{"v":0,"d":"$0.00"}},585,{"$f":"'3 INCOME & EXPENSE'!X179","v":101},101000,101101,0]
[null,null,{"$f":"IF('3 INCOME & EXPENSE'!E180=0,\"\",'3 INCOME & EXPENSE'!E180)","v":""},{"$f":"T('3 INCOME & EXPENSE'!G180)","v":""},{"$f":"'3 INCOME & EXPENSE'!M180","v":{"v":0,"d":"0.0"}},{"$f":"'3 INCOME & EXPENSE'!N180","v":{"v":0,"d":"$0.00"}},{"$f":"'3 INCOME & EXPENSE'!O180","v":{"v":0,"d":"$0.00"}},586,{"$f":"'3 INCOME & EXPENSE'!X180","v":101},101000,101101,0]
[null,null,{"$f":"IF('3 INCOME & EXPENSE'!E181=0,\"\",'3 INCOME & EXPENSE'!E181)","v":""},{"$f":"T('3 INCOME & EXPENSE'!G181)","v":""},{"$f":"'3 INCOME & EXPENSE'!M181","v":{"v":0,"d":"0.0"}},{"$f":"'3 INCOME & EXPENSE'!N181","v":{"v":0,"d":"$0.00"}},{"$f":"'3 INCOME & EXPENSE'!O181","v":{"v":0,"d":"$0.00"}},587,{"$f":"'3 INCOME & EXPENSE'!X181","v":101},101000,101101,0]
[null,null,{"$f":"IF('3 INCOME & EXPENSE'!E182=0,\"\",'3 INCOME & EXPENSE'!E182)","v":""},{"$f":"T('3 INCOME & EXPENSE'!G182)","v":""},{"$f":"'3 INCOME & EXPENSE'!M182","v":{"v":0,"d":"0.0"}},{"$f":"'3 INCOME & EXPENSE'!N182","v":{"v":0,"d":"$0.00"}},{"$f":"'3 INCOME & EXPENSE'!O182","v":{"v":0,"d":"$0.00"}},588,{"$f":"'3 INCOME & EXPENSE'!X182","v":101},101000,101101,0]
[null,null,{"$f":"IF('3 INCOME & EXPENSE'!E183=0,\"\",'3 INCOME & EXPENSE'!E183)","v":""},{"$f":"T('3 INCOME & EXPENSE'!G183)","v":""},{"$f":"'3 INCOME & EXPENSE'!M183","v":{"v":0,"d":"0.0"}},{"$f":"'3 INCOME & EXPENSE'!N183","v":{"v":0,"d":"$0.00"}},{"$f":"'3 INCOME & EXPENSE'!O183","v":{"v":0,"d":"$0.00"}},589,{"$f":"'3 INCOME & EXPENSE'!X183","v":101},101000,101101,0]
[null,null,{"$f":"IF('3 INCOME & EXPENSE'!E184=0,\"\",'3 INCOME & EXPENSE'!E184)","v":""},{"$f":"T('3 INCOME & EXPENSE'!G184)","v":""},{"$f":"'3 INCOME & EXPENSE'!M184","v":{"v":0,"d":"0.0"}},{"$f":"'3 INCOME & EXPENSE'!N184","v":{"v":0,"d":"$0.00"}},{"$f":"'3 INCOME & EXPENSE'!O184","v":{"v":0,"d":"$0.00"}},590,{"$f":"'3 INCOME & EXPENSE'!X184","v":101},101000,101101,0]
[null,null,{"$f":"IF('3 INCOME & EXPENSE'!E185=0,\"\",'3 INCOME & EXPENSE'!E185)","v":""},{"$f":"T('3 INCOME & EXPENSE'!G185)","v":""},{"$f":"'3 INCOME & EXPENSE'!M185","v":{"v":0,"d":"0.0"}},{"$f":"'3 INCOME & EXPENSE'!N185","v":{"v":0,"d":"$0.00"}},{"$f":"'3 INCOME & EXPENSE'!O185","v":{"v":0,"d":"$0.00"}},591,{"$f":"'3 INCOME & EXPENSE'!X185","v":101},101000,101101,0]
[null,null,{"$f":"IF('3 INCOME & EXPENSE'!E186=0,\"\",'3 INCOME & EXPENSE'!E186)","v":""},{"$f":"T('3 INCOME & EXPENSE'!G186)","v":""},{"$f":"'3 INCOME & EXPENSE'!M186","v":{"v":0,"d":"0.0"}},{"$f":"'3 INCOME & EXPENSE'!N186","v":{"v":0,"d":"$0.00"}},{"$f":"'3 INCOME & EXPENSE'!O186","v":{"v":0,"d":"$0.00"}},592,{"$f":"'3 INCOME & EXPENSE'!X186","v":101},101000,101101,0]
[null,null,{"$f":"IF('3 INCOME & EXPENSE'!E187=0,\"\",'3 INCOME & EXPENSE'!E187)","v":""},{"$f":"T('3 INCOME & EXPENSE'!G187)","v":""},{"$f":"'3 INCOME & EXPENSE'!M187","v":{"v":0,"d":"0.0"}},{"$f":"'3 INCOME & EXPENSE'!N187","v":{"v":0,"d":"$0.00"}},{"$f":"'3 INCOME & EXPENSE'!O187","v":{"v":0,"d":"$0.00"}},593,{"$f":"'3 INCOME & EXPENSE'!X187","v":101},101000,101101,0]
[null,null,{"$f":"IF('3 INCOME & EXPENSE'!E188=0,\"\",'3 INCOME & EXPENSE'!E188)","v":""},{"$f":"T('3 INCOME & EXPENSE'!G188)","v":""},{"$f":"'3 INCOME & EXPENSE'!M188","v":{"v":0,"d":"0.0"}},{"$f":"'3 INCOME & EXPENSE'!N188","v":{"v":0,"d":"$0.00"}},{"$f":"'3 INCOME & EXPENSE'!O188","v":{"v":0,"d":"$0.00"}},594,{"$f":"'3 INCOME & EXPENSE'!X188","v":101},101000,101101,0]
[null,null,{"$f":"IF('3 INCOME & EXPENSE'!E189=0,\"\",'3 INCOME & EXPENSE'!E189)","v":""},{"$f":"T('3 INCOME & EXPENSE'!G189)","v":""},{"$f":"'3 INCOME & EXPENSE'!M189","v":{"v":0,"d":"0.0"}},{"$f":"'3 INCOME & EXPENSE'!N189","v":{"v":0,"d":"$0.00"}},{"$f":"'3 INCOME & EXPENSE'!O189","v":{"v":0,"d":"$0.00"}},595,{"$f":"'3 INCOME & EXPENSE'!X189","v":101},101000,101101,0]
[null,null,{"$f":"IF('3 INCOME & EXPENSE'!E190=0,\"\",'3 INCOME & EXPENSE'!E190)","v":""},{"$f":"T('3 INCOME & EXPENSE'!G190)","v":""},{"$f":"'3 INCOME & EXPENSE'!M190","v":{"v":0,"d":"0.0"}},{"$f":"'3 INCOME & EXPENSE'!N190","v":{"v":0,"d":"$0.00"}},{"$f":"'3 INCOME & EXPENSE'!O190","v":{"v":0,"d":"$0.00"}},596,{"$f":"'3 INCOME & EXPENSE'!X190","v":101},101000,101101,0]
[null,null,{"$f":"IF('3 INCOME & EXPENSE'!E191=0,\"\",'3 INCOME & EXPENSE'!E191)","v":""},{"$f":"T('3 INCOME & EXPENSE'!G191)","v":""},{"$f":"'3 INCOME & EXPENSE'!M191","v":{"v":0,"d":"0.0"}},{"$f":"'3 INCOME & EXPENSE'!N191","v":{"v":0,"d":"$0.00"}},{"$f":"'3 INCOME & EXPENSE'!O191","v":{"v":0,"d":"$0.00"}},597,{"$f":"'3 INCOME & EXPENSE'!X191","v":101},101000,101101,0]
[null,null,{"$f":"IF('3 INCOME & EXPENSE'!E192=0,\"\",'3 INCOME & EXPENSE'!E192)","v":""},{"$f":"T('3 INCOME & EXPENSE'!G192)","v":""},{"$f":"'3 INCOME & EXPENSE'!M192","v":{"v":0,"d":"0.0"}},{"$f":"'3 INCOME & EXPENSE'!N192","v":{"v":0,"d":"$0.00"}},{"$f":"'3 INCOME & EXPENSE'!O192","v":{"v":0,"d":"$0.00"}},598,{"$f":"'3 INCOME & EXPENSE'!X192","v":101},101000,101101,0]
[null,null,{"$f":"IF('3 INCOME & EXPENSE'!E193=0,\"\",'3 INCOME & EXPENSE'!E193)","v":""},{"$f":"T('3 INCOME & EXPENSE'!G193)","v":""},{"$f":"'3 INCOME & EXPENSE'!M193","v":{"v":0,"d":"0.0"}},{"$f":"'3 INCOME & EXPENSE'!N193","v":{"v":0,"d":"$0.00"}},{"$f":"'3 INCOME & EXPENSE'!O193","v":{"v":0,"d":"$0.00"}},599,{"$f":"'3 INCOME & EXPENSE'!X193","v":101},101000,101101,0]
[null,null,{"$f":"IF('3 INCOME & EXPENSE'!E194=0,\"\",'3 INCOME & EXPENSE'!E194)","v":""},{"$f":"T('3 INCOME & EXPENSE'!G194)","v":""},{"$f":"'3 INCOME & EXPENSE'!M194","v":{"v":0,"d":"0.0"}},{"$f":"'3 INCOME & EXPENSE'!N194","v":{"v":0,"d":"$0.00"}},{"$f":"'3 INCOME & EXPENSE'!O194","v":{"v":0,"d":"$0.00"}},600,{"$f":"'3 INCOME & EXPENSE'!X194","v":101},101000,101101,0]
[null,null,{"$f":"IF('3 INCOME & EXPENSE'!E195=0,\"\",'3 INCOME & EXPENSE'!E195)","v":""},{"$f":"T('3 INCOME & EXPENSE'!G195)","v":""},{"$f":"'3 INCOME & EXPENSE'!M195","v":{"v":0,"d":"0.0"}},{"$f":"'3 INCOME & EXPENSE'!N195","v":{"v":0,"d":"$0.00"}},{"$f":"'3 INCOME & EXPENSE'!O195","v":{"v":0,"d":"$0.00"}},601,{"$f":"'3 INCOME & EXPENSE'!X195","v":101},101000,101101,0]
[null,null,{"$f":"IF('3 INCOME & EXPENSE'!E196=0,\"\",'3 INCOME & EXPENSE'!E196)","v":""},{"$f":"T('3 INCOME & EXPENSE'!G196)","v":""},{"$f":"'3 INCOME & EXPENSE'!M196","v":{"v":0,"d":"0.0"}},{"$f":"'3 INCOME & EXPENSE'!N196","v":{"v":0,"d":"$0.00"}},{"$f":"'3 INCOME & EXPENSE'!O196","v":{"v":0,"d":"$0.00"}},602,{"$f":"'3 INCOME & EXPENSE'!X196","v":101},101000,101101,0]
[null,null,{"$f":"IF('3 INCOME & EXPENSE'!E197=0,\"\",'3 INCOME & EXPENSE'!E197)","v":""},{"$f":"T('3 INCOME & EXPENSE'!G197)","v":""},{"$f":"'3 INCOME & EXPENSE'!M197","v":{"v":0,"d":"0.0"}},{"$f":"'3 INCOME & EXPENSE'!N197","v":{"v":0,"d":"$0.00"}},{"$f":"'3 INCOME & EXPENSE'!O197","v":{"v":0,"d":"$0.00"}},603,{"$f":"'3 INCOME & EXPENSE'!X197","v":101},101000,101101,0]
[null,null,{"$f":"IF('3 INCOME & EXPENSE'!E198=0,\"\",'3 INCOME & EXPENSE'!E198)","v":""},{"$f":"T('3 INCOME & EXPENSE'!G198)","v":""},{"$f":"'3 INCOME & EXPENSE'!M198","v":{"v":0,"d":"0.0"}},{"$f":"'3 INCOME & EXPENSE'!N198","v":{"v":0,"d":"$0.00"}},{"$f":"'3 INCOME & EXPENSE'!O198","v":{"v":0,"d":"$0.00"}},604,{"$f":"'3 INCOME & EXPENSE'!X198","v":101},101000,101101,0]
[null,null,{"$f":"IF('3 INCOME & EXPENSE'!E199=0,\"\",'3 INCOME & EXPENSE'!E199)","v":""},{"$f":"T('3 INCOME & EXPENSE'!G199)","v":""},{"$f":"'3 INCOME & EXPENSE'!M199","v":{"v":0,"d":"0.0"}},{"$f":"'3 INCOME & EXPENSE'!N199","v":{"v":0,"d":"$0.00"}},{"$f":"'3 INCOME & EXPENSE'!O199","v":{"v":0,"d":"$0.00"}},605,{"$f":"'3 INCOME & EXPENSE'!X199","v":101},101000,101101,0]
[null,null,{"$f":"IF('3 INCOME & EXPENSE'!E200=0,\"\",'3 INCOME & EXPENSE'!E200)","v":""},{"$f":"T('3 INCOME & EXPENSE'!G200)","v":""},{"$f":"'3 INCOME & EXPENSE'!M200","v":{"v":0,"d":"0.0"}},{"$f":"'3 INCOME & EXPENSE'!N200","v":{"v":0,"d":"$0.00"}},{"$f":"'3 INCOME & EXPENSE'!O200","v":{"v":0,"d":"$0.00"}},606,{"$f":"'3 INCOME & EXPENSE'!X200","v":101},101000,101101,0]
[null,null,{"$f":"IF('3 INCOME & EXPENSE'!E201=0,\"\",'3 INCOME & EXPENSE'!E201)","v":""},{"$f":"T('3 INCOME & EXPENSE'!G201)","v":""},{"$f":"'3 INCOME & EXPENSE'!M201","v":{"v":0,"d":"0.0"}},{"$f":"'3 INCOME & EXPENSE'!N201","v":{"v":0,"d":"$0.00"}},{"$f":"'3 INCOME & EXPENSE'!O201","v":{"v":0,"d":"$0.00"}},607,{"$f":"'3 INCOME & EXPENSE'!X201","v":101},101000,101101,0]
[null,null,{"$f":"IF('3 INCOME & EXPENSE'!E202=0,\"\",'3 INCOME & EXPENSE'!E202)","v":""},{"$f":"T('3 INCOME & EXPENSE'!G202)","v":""},{"$f":"'3 INCOME & EXPENSE'!M202","v":{"v":0,"d":"0.0"}},{"$f":"'3 INCOME & EXPENSE'!N202","v":{"v":0,"d":"$0.00"}},{"$f":"'3 INCOME & EXPENSE'!O202","v":{"v":0,"d":"$0.00"}},608,{"$f":"'3 INCOME & EXPENSE'!X202","v":101},101000,101101,0]
[null,null,{"$f":"IF('3 INCOME & EXPENSE'!E203=0,\"\",'3 INCOME & EXPENSE'!E203)","v":""},{"$f":"T('3 INCOME & EXPENSE'!G203)","v":""},{"$f":"'3 INCOME & EXPENSE'!M203","v":{"v":0,"d":"0.0"}},{"$f":"'3 INCOME & EXPENSE'!N203","v":{"v":0,"d":"$0.00"}},{"$f":"'3 INCOME & EXPENSE'!O203","v":{"v":0,"d":"$0.00"}},609,{"$f":"'3 INCOME & EXPENSE'!X203","v":101},101000,101101,0]
[null,null,{"$f":"IF('3 INCOME & EXPENSE'!E204=0,\"\",'3 INCOME & EXPENSE'!E204)","v":""},{"$f":"T('3 INCOME & EXPENSE'!G204)","v":""},{"$f":"'3 INCOME & EXPENSE'!M204","v":{"v":0,"d":"0.0"}},{"$f":"'3 INCOME & EXPENSE'!N204","v":{"v":0,"d":"$0.00"}},{"$f":"'3 INCOME & EXPENSE'!O204","v":{"v":0,"d":"$0.00"}},610,{"$f":"'3 INCOME & EXPENSE'!X204","v":101},101000,101101,0]
[null,null,{"$f":"IF('3 INCOME & EXPENSE'!E205=0,\"\",'3 INCOME & EXPENSE'!E205)","v":""},{"$f":"T('3 INCOME & EXPENSE'!G205)","v":""},{"$f":"'3 INCOME & EXPENSE'!M205","v":{"v":0,"d":"0.0"}},{"$f":"'3 INCOME & EXPENSE'!N205","v":{"v":0,"d":"$0.00"}},{"$f":"'3 INCOME & EXPENSE'!O205","v":{"v":0,"d":"$0.00"}},611,{"$f":"'3 INCOME & EXPENSE'!X205","v":101},101000,101101,0]
[null,null,{"$f":"IF('3 INCOME & EXPENSE'!E206=0,\"\",'3 INCOME & EXPENSE'!E206)","v":""},{"$f":"T('3 INCOME & EXPENSE'!G206)","v":""},{"$f":"'3 INCOME & EXPENSE'!M206","v":{"v":0,"d":"0.0"}},{"$f":"'3 INCOME & EXPENSE'!N206","v":{"v":0,"d":"$0.00"}},{"$f":"'3 INCOME & EXPENSE'!O206","v":{"v":0,"d":"$0.00"}},612,{"$f":"'3 INCOME & EXPENSE'!X206","v":101},{"$f":"VLOOKUP(I624,$I$1186:$J$1287,2)","v":101000},101101,{"$f":"K624*E624","v":0}]
[null,null,{"$f":"IF('3 INCOME & EXPENSE'!E207=0,\"\",'3 INCOME & EXPENSE'!E207)","v":""},{"$f":"T('3 INCOME & EXPENSE'!G207)","v":""},{"$f":"'3 INCOME & EXPENSE'!M207","v":{"v":0,"d":"0.0"}},{"$f":"'3 INCOME & EXPENSE'!N207","v":{"v":0,"d":"$0.00"}},{"$f":"'3 INCOME & EXPENSE'!O207","v":{"v":0,"d":"$0.00"}},613,{"$f":"'3 INCOME & EXPENSE'!X207","v":101},101000,101101,0]
[null,null,{"$f":"IF('3 INCOME & EXPENSE'!E208=0,\"\",'3 INCOME & EXPENSE'!E208)","v":""},{"$f":"T('3 INCOME & EXPENSE'!G208)","v":""},{"$f":"'3 INCOME & EXPENSE'!M208","v":{"v":0,"d":"0.0"}},{"$f":"'3 INCOME & EXPENSE'!N208","v":{"v":0,"d":"$0.00"}},{"$f":"'3 INCOME & EXPENSE'!O208","v":{"v":0,"d":"$0.00"}},614,{"$f":"'3 INCOME & EXPENSE'!X208","v":101},101000,101101,0]
[null,null,{"$f":"IF('3 INCOME & EXPENSE'!E209=0,\"\",'3 INCOME & EXPENSE'!E209)","v":""},{"$f":"T('3 INCOME & EXPENSE'!G209)","v":""},{"$f":"'3 INCOME & EXPENSE'!M209","v":{"v":0,"d":"0.0"}},{"$f":"'3 INCOME & EXPENSE'!N209","v":{"v":0,"d":"$0.00"}},{"$f":"'3 INCOME & EXPENSE'!O209","v":{"v":0,"d":"$0.00"}},615,{"$f":"'3 INCOME & EXPENSE'!X209","v":101},101000,101101,0]
[null,null,{"$f":"IF('3 INCOME & EXPENSE'!E210=0,\"\",'3 INCOME & EXPENSE'!E210)","v":""},{"$f":"T('3 INCOME & EXPENSE'!G210)","v":""},{"$f":"'3 INCOME & EXPENSE'!M210","v":{"v":0,"d":"0.0"}},{"$f":"'3 INCOME & EXPENSE'!N210","v":{"v":0,"d":"$0.00"}},{"$f":"'3 INCOME & EXPENSE'!O210","v":{"v":0,"d":"$0.00"}},616,{"$f":"'3 INCOME & EXPENSE'!X210","v":101},101000,101101,0]
[null,null,{"$f":"IF('3 INCOME & EXPENSE'!E211=0,\"\",'3 INCOME & EXPENSE'!E211)","v":""},{"$f":"T('3 INCOME & EXPENSE'!G211)","v":""},{"$f":"'3 INCOME & EXPENSE'!M211","v":{"v":0,"d":"0.0"}},{"$f":"'3 INCOME & EXPENSE'!N211","v":{"v":0,"d":"$0.00"}},{"$f":"'3 INCOME & EXPENSE'!O211","v":{"v":0,"d":"$0.00"}},617,{"$f":"'3 INCOME & EXPENSE'!X211","v":101},101000,101101,0]
[null,null,{"$f":"IF('3 INCOME & EXPENSE'!E212=0,\"\",'3 INCOME & EXPENSE'!E212)","v":""},{"$f":"T('3 INCOME & EXPENSE'!G212)","v":""},{"$f":"'3 INCOME & EXPENSE'!M212","v":{"v":0,"d":"0.0"}},{"$f":"'3 INCOME & EXPENSE'!N212","v":{"v":0,"d":"$0.00"}},{"$f":"'3 INCOME & EXPENSE'!O212","v":{"v":0,"d":"$0.00"}},618,{"$f":"'3 INCOME & EXPENSE'!X212","v":101},101000,101101,0]
[null,null,{"$f":"IF('3 INCOME & EXPENSE'!E213=0,\"\",'3 INCOME & EXPENSE'!E213)","v":""},{"$f":"T('3 INCOME & EXPENSE'!G213)","v":""},{"$f":"'3 INCOME & EXPENSE'!M213","v":{"v":0,"d":"0.0"}},{"$f":"'3 INCOME & EXPENSE'!N213","v":{"v":0,"d":"$0.00"}},{"$f":"'3 INCOME & EXPENSE'!O213","v":{"v":0,"d":"$0.00"}},619,{"$f":"'3 INCOME & EXPENSE'!X213","v":101},101000,101101,0]
[null,null,{"$f":"IF('3 INCOME & EXPENSE'!E214=0,\"\",'3 INCOME & EXPENSE'!E214)","v":""},{"$f":"T('3 INCOME & EXPENSE'!G214)","v":""},{"$f":"'3 INCOME & EXPENSE'!M214","v":{"v":0,"d":"0.0"}},{"$f":"'3 INCOME & EXPENSE'!N214","v":{"v":0,"d":"$0.00"}},{"$f":"'3 INCOME & EXPENSE'!O214","v":{"v":0,"d":"$0.00"}},620,{"$f":"'3 INCOME & EXPENSE'!X214","v":101},101000,101101,0]
[null,null,{"$f":"IF('3 INCOME & EXPENSE'!E215=0,\"\",'3 INCOME & EXPENSE'!E215)","v":""},{"$f":"T('3 INCOME & EXPENSE'!G215)","v":""},{"$f":"'3 INCOME & EXPENSE'!M215","v":{"v":0,"d":"0.0"}},{"$f":"'3 INCOME & EXPENSE'!N215","v":{"v":0,"d":"$0.00"}},{"$f":"'3 INCOME & EXPENSE'!O215","v":{"v":0,"d":"$0.00"}},621,{"$f":"'3 INCOME & EXPENSE'!X215","v":101},101000,101101,0]
[null,null,{"$f":"IF('3 INCOME & EXPENSE'!E216=0,\"\",'3 INCOME & EXPENSE'!E216)","v":""},{"$f":"T('3 INCOME & EXPENSE'!G216)","v":""},{"$f":"'3 INCOME & EXPENSE'!M216","v":{"v":0,"d":"0.0"}},{"$f":"'3 INCOME & EXPENSE'!N216","v":{"v":0,"d":"$0.00"}},{"$f":"'3 INCOME & EXPENSE'!O216","v":{"v":0,"d":"$0.00"}},622,{"$f":"'3 INCOME & EXPENSE'!X216","v":101},101000,101101,0]
[null,null,{"$f":"IF('3 INCOME & EXPENSE'!E217=0,\"\",'3 INCOME & EXPENSE'!E217)","v":""},{"$f":"T('3 INCOME & EXPENSE'!G217)","v":""},{"$f":"'3 INCOME & EXPENSE'!M217","v":{"v":0,"d":"0.0"}},{"$f":"'3 INCOME & EXPENSE'!N217","v":{"v":0,"d":"$0.00"}},{"$f":"'3 INCOME & EXPENSE'!O217","v":{"v":0,"d":"$0.00"}},623,{"$f":"'3 INCOME & EXPENSE'!X217","v":101},101000,101101,0]
[null,null,{"$f":"IF('3 INCOME & EXPENSE'!E218=0,\"\",'3 INCOME & EXPENSE'!E218)","v":""},{"$f":"T('3 INCOME & EXPENSE'!G218)","v":""},{"$f":"'3 INCOME & EXPENSE'!M218","v":{"v":0,"d":"0.0"}},{"$f":"'3 INCOME & EXPENSE'!N218","v":{"v":0,"d":"$0.00"}},{"$f":"'3 INCOME & EXPENSE'!O218","v":{"v":0,"d":"$0.00"}},624,{"$f":"'3 INCOME & EXPENSE'!X218","v":101},101000,101101,0]
[null,null,{"$f":"IF('3 INCOME & EXPENSE'!E219=0,\"\",'3 INCOME & EXPENSE'!E219)","v":""},{"$f":"T('3 INCOME & EXPENSE'!G219)","v":""},{"$f":"'3 INCOME & EXPENSE'!M219","v":{"v":0,"d":"0.0"}},{"$f":"'3 INCOME & EXPENSE'!N219","v":{"v":0,"d":"$0.00"}},{"$f":"'3 INCOME & EXPENSE'!O219","v":{"v":0,"d":"$0.00"}},625,{"$f":"'3 INCOME & EXPENSE'!X219","v":101},101000,101101,0]
[null,null,{"$f":"IF('3 INCOME & EXPENSE'!E220=0,\"\",'3 INCOME & EXPENSE'!E220)","v":""},{"$f":"T('3 INCOME & EXPENSE'!G220)","v":""},{"$f":"'3 INCOME & EXPENSE'!M220","v":{"v":0,"d":"0.0"}},{"$f":"'3 INCOME & EXPENSE'!N220","v":{"v":0,"d":"$0.00"}},{"$f":"'3 INCOME & EXPENSE'!O220","v":{"v":0,"d":"$0.00"}},626,{"$f":"'3 INCOME & EXPENSE'!X220","v":101},101000,101101,0]
[null,null,{"$f":"IF('3 INCOME & EXPENSE'!E221=0,\"\",'3 INCOME & EXPENSE'!E221)","v":""},{"$f":"T('3 INCOME & EXPENSE'!G221)","v":""},{"$f":"'3 INCOME & EXPENSE'!M221","v":{"v":0,"d":"0.0"}},{"$f":"'3 INCOME & EXPENSE'!N221","v":{"v":0,"d":"$0.00"}},{"$f":"'3 INCOME & EXPENSE'!O221","v":{"v":0,"d":"$0.00"}},627,{"$f":"'3 INCOME & EXPENSE'!X221","v":101},101000,101101,0]
[null,null,{"$f":"IF('3 INCOME & EXPENSE'!E222=0,\"\",'3 INCOME & EXPENSE'!E222)","v":""},{"$f":"T('3 INCOME & EXPENSE'!G222)","v":""},{"$f":"'3 INCOME & EXPENSE'!M222","v":{"v":0,"d":"0.0"}},{"$f":"'3 INCOME & EXPENSE'!N222","v":{"v":0,"d":"$0.00"}},{"$f":"'3 INCOME & EXPENSE'!O222","v":{"v":0,"d":"$0.00"}},628,{"$f":"'3 INCOME & EXPENSE'!X222","v":101},101000,101101,0]
[null,null,{"$f":"IF('3 INCOME & EXPENSE'!E223=0,\"\",'3 INCOME & EXPENSE'!E223)","v":""},{"$f":"T('3 INCOME & EXPENSE'!G223)","v":""},{"$f":"'3 INCOME & EXPENSE'!M223","v":{"v":0,"d":"0.0"}},{"$f":"'3 INCOME & EXPENSE'!N223","v":{"v":0,"d":"$0.00"}},{"$f":"'3 INCOME & EXPENSE'!O223","v":{"v":0,"d":"$0.00"}},629,{"$f":"'3 INCOME & EXPENSE'!X223","v":101},101000,{"$f":"I641+J641","v":101101},0]
[null,null,{"$f":"IF('3 INCOME & EXPENSE'!E224=0,\"\",'3 INCOME & EXPENSE'!E224)","v":""},{"$f":"T('3 INCOME & EXPENSE'!G224)","v":""},{"$f":"'3 INCOME & EXPENSE'!M224","v":{"v":0,"d":"0.0"}},{"$f":"'3 INCOME & EXPENSE'!N224","v":{"v":0,"d":"$0.00"}},{"$f":"'3 INCOME & EXPENSE'!O224","v":{"v":0,"d":"$0.00"}},630,{"$f":"'3 INCOME & EXPENSE'!X224","v":101},101000,101101,0]
[null,null,{"$f":"IF('3 INCOME & EXPENSE'!E225=0,\"\",'3 INCOME & EXPENSE'!E225)","v":""},{"$f":"T('3 INCOME & EXPENSE'!G225)","v":""},{"$f":"'3 INCOME & EXPENSE'!M225","v":{"v":0,"d":"0.0"}},{"$f":"'3 INCOME & EXPENSE'!N225","v":{"v":0,"d":"$0.00"}},{"$f":"'3 INCOME & EXPENSE'!O225","v":{"v":0,"d":"$0.00"}},631,{"$f":"'3 INCOME & EXPENSE'!X225","v":101},101000,101101,0]
[null,null,{"$f":"IF('3 INCOME & EXPENSE'!E226=0,\"\",'3 INCOME & EXPENSE'!E226)","v":""},{"$f":"T('3 INCOME & EXPENSE'!G226)","v":""},{"$f":"'3 INCOME & EXPENSE'!M226","v":{"v":0,"d":"0.0"}},{"$f":"'3 INCOME & EXPENSE'!N226","v":{"v":0,"d":"$0.00"}},{"$f":"'3 INCOME & EXPENSE'!O226","v":{"v":0,"d":"$0.00"}},632,{"$f":"'3 INCOME & EXPENSE'!X226","v":101},101000,101101,0]
[null,null,{"$f":"IF('3 INCOME & EXPENSE'!E227=0,\"\",'3 INCOME & EXPENSE'!E227)","v":""},{"$f":"T('3 INCOME & EXPENSE'!G227)","v":""},{"$f":"'3 INCOME & EXPENSE'!M227","v":{"v":0,"d":"0.0"}},{"$f":"'3 INCOME & EXPENSE'!N227","v":{"v":0,"d":"$0.00"}},{"$f":"'3 INCOME & EXPENSE'!O227","v":{"v":0,"d":"$0.00"}},633,{"$f":"'3 INCOME & EXPENSE'!X227","v":101},101000,101101,0]
[null,null,{"$f":"IF('3 INCOME & EXPENSE'!E228=0,\"\",'3 INCOME & EXPENSE'!E228)","v":""},{"$f":"T('3 INCOME & EXPENSE'!G228)","v":""},{"$f":"'3 INCOME & EXPENSE'!M228","v":{"v":0,"d":"0.0"}},{"$f":"'3 INCOME & EXPENSE'!N228","v":{"v":0,"d":"$0.00"}},{"$f":"'3 INCOME & EXPENSE'!O228","v":{"v":0,"d":"$0.00"}},634,{"$f":"'3 INCOME & EXPENSE'!X228","v":101},101000,101101,0]
[null,null,{"$f":"IF('3 INCOME & EXPENSE'!E229=0,\"\",'3 INCOME & EXPENSE'!E229)","v":""},{"$f":"T('3 INCOME & EXPENSE'!G229)","v":""},{"$f":"'3 INCOME & EXPENSE'!M229","v":{"v":0,"d":"0.0"}},{"$f":"'3 INCOME & EXPENSE'!N229","v":{"v":0,"d":"$0.00"}},{"$f":"'3 INCOME & EXPENSE'!O229","v":{"v":0,"d":"$0.00"}},635,{"$f":"'3 INCOME & EXPENSE'!X229","v":101},101000,101101,0]
[null,null,{"$f":"IF('3 INCOME & EXPENSE'!E230=0,\"\",'3 INCOME & EXPENSE'!E230)","v":""},{"$f":"T('3 INCOME & EXPENSE'!G230)","v":""},{"$f":"'3 INCOME & EXPENSE'!M230","v":{"v":0,"d":"0.0"}},{"$f":"'3 INCOME & EXPENSE'!N230","v":{"v":0,"d":"$0.00"}},{"$f":"'3 INCOME & EXPENSE'!O230","v":{"v":0,"d":"$0.00"}},636,{"$f":"'3 INCOME & EXPENSE'!X230","v":101},101000,101101,0]
[null,null,{"$f":"IF('3 INCOME & EXPENSE'!E231=0,\"\",'3 INCOME & EXPENSE'!E231)","v":""},{"$f":"T('3 INCOME & EXPENSE'!G231)","v":""},{"$f":"'3 INCOME & EXPENSE'!M231","v":{"v":0,"d":"0.0"}},{"$f":"'3 INCOME & EXPENSE'!N231","v":{"v":0,"d":"$0.00"}},{"$f":"'3 INCOME & EXPENSE'!O231","v":{"v":0,"d":"$0.00"}},637,{"$f":"'3 INCOME & EXPENSE'!X231","v":101},101000,101101,0]
[null,null,{"$f":"IF('3 INCOME & EXPENSE'!E232=0,\"\",'3 INCOME & EXPENSE'!E232)","v":""},{"$f":"T('3 INCOME & EXPENSE'!G232)","v":""},{"$f":"'3 INCOME & EXPENSE'!M232","v":{"v":0,"d":"0.0"}},{"$f":"'3 INCOME & EXPENSE'!N232","v":{"v":0,"d":"$0.00"}},{"$f":"'3 INCOME & EXPENSE'!O232","v":{"v":0,"d":"$0.00"}},638,{"$f":"'3 INCOME & EXPENSE'!X232","v":101},101000,101101,0]
[null,null,{"$f":"IF('3 INCOME & EXPENSE'!E233=0,\"\",'3 INCOME & EXPENSE'!E233)","v":""},{"$f":"T('3 INCOME & EXPENSE'!G233)","v":""},{"$f":"'3 INCOME & EXPENSE'!M233","v":{"v":0,"d":"0.0"}},{"$f":"'3 INCOME & EXPENSE'!N233","v":{"v":0,"d":"$0.00"}},{"$f":"'3 INCOME & EXPENSE'!O233","v":{"v":0,"d":"$0.00"}},639,{"$f":"'3 INCOME & EXPENSE'!X233","v":101},101000,101101,0]
[null,null,{"$f":"IF('3 INCOME & EXPENSE'!E234=0,\"\",'3 INCOME & EXPENSE'!E234)","v":""},{"$f":"T('3 INCOME & EXPENSE'!G234)","v":""},{"$f":"'3 INCOME & EXPENSE'!M234","v":{"v":0,"d":"0.0"}},{"$f":"'3 INCOME & EXPENSE'!N234","v":{"v":0,"d":"$0.00"}},{"$f":"'3 INCOME & EXPENSE'!O234","v":{"v":0,"d":"$0.00"}},640,{"$f":"'3 INCOME & EXPENSE'!X234","v":101},101000,101101,0]
[null,null,{"$f":"IF('3 INCOME & EXPENSE'!E235=0,\"\",'3 INCOME & EXPENSE'!E235)","v":""},{"$f":"T('3 INCOME & EXPENSE'!G235)","v":""},{"$f":"'3 INCOME & EXPENSE'!M235","v":{"v":0,"d":"0.0"}},{"$f":"'3 INCOME & EXPENSE'!N235","v":{"v":0,"d":"$0.00"}},{"$f":"'3 INCOME & EXPENSE'!O235","v":{"v":0,"d":"$0.00"}},641,{"$f":"'3 INCOME & EXPENSE'!X235","v":101},101000,101101,0]
[null,null,{"$f":"IF('3 INCOME & EXPENSE'!E236=0,\"\",'3 INCOME & EXPENSE'!E236)","v":""},{"$f":"T('3 INCOME & EXPENSE'!G236)","v":""},{"$f":"'3 INCOME & EXPENSE'!M236","v":{"v":0,"d":"0.0"}},{"$f":"'3 INCOME & EXPENSE'!N236","v":{"v":0,"d":"$0.00"}},{"$f":"'3 INCOME & EXPENSE'!O236","v":{"v":0,"d":"$0.00"}},642,{"$f":"'3 INCOME & EXPENSE'!X236","v":101},101000,101101,0]
[null,null,{"$f":"IF('3 INCOME & EXPENSE'!E237=0,\"\",'3 INCOME & EXPENSE'!E237)","v":""},{"$f":"T('3 INCOME & EXPENSE'!G237)","v":""},{"$f":"'3 INCOME & EXPENSE'!M237","v":{"v":0,"d":"0.0"}},{"$f":"'3 INCOME & EXPENSE'!N237","v":{"v":0,"d":"$0.00"}},{"$f":"'3 INCOME & EXPENSE'!O237","v":{"v":0,"d":"$0.00"}},643,{"$f":"'3 INCOME & EXPENSE'!X237","v":101},101000,101101,0]
[null,null,{"$f":"IF('3 INCOME & EXPENSE'!E238=0,\"\",'3 INCOME & EXPENSE'!E238)","v":""},{"$f":"T('3 INCOME & EXPENSE'!G238)","v":""},{"$f":"'3 INCOME & EXPENSE'!M238","v":{"v":0,"d":"0.0"}},{"$f":"'3 INCOME & EXPENSE'!N238","v":{"v":0,"d":"$0.00"}},{"$f":"'3 INCOME & EXPENSE'!O238","v":{"v":0,"d":"$0.00"}},644,{"$f":"'3 INCOME & EXPENSE'!X238","v":101},101000,101101,0]
[null,null,{"$f":"IF('3 INCOME & EXPENSE'!E239=0,\"\",'3 INCOME & EXPENSE'!E239)","v":""},{"$f":"T('3 INCOME & EXPENSE'!G239)","v":""},{"$f":"'3 INCOME & EXPENSE'!M239","v":{"v":0,"d":"0.0"}},{"$f":"'3 INCOME & EXPENSE'!N239","v":{"v":0,"d":"$0.00"}},{"$f":"'3 INCOME & EXPENSE'!O239","v":{"v":0,"d":"$0.00"}},645,{"$f":"'3 INCOME & EXPENSE'!X239","v":101},101000,101101,0]
[null,null,{"$f":"IF('3 INCOME & EXPENSE'!E240=0,\"\",'3 INCOME & EXPENSE'!E240)","v":""},{"$f":"T('3 INCOME & EXPENSE'!G240)","v":""},{"$f":"'3 INCOME & EXPENSE'!M240","v":{"v":0,"d":"0.0"}},{"$f":"'3 INCOME & EXPENSE'!N240","v":{"v":0,"d":"$0.00"}},{"$f":"'3 INCOME & EXPENSE'!O240","v":{"v":0,"d":"$0.00"}},646,{"$f":"'3 INCOME & EXPENSE'!X240","v":101},101000,101101,0]
[null,null,{"$f":"IF('3 INCOME & EXPENSE'!E241=0,\"\",'3 INCOME & EXPENSE'!E241)","v":""},{"$f":"T('3 INCOME & EXPENSE'!G241)","v":""},{"$f":"'3 INCOME & EXPENSE'!M241","v":{"v":0,"d":"0.0"}},{"$f":"'3 INCOME & EXPENSE'!N241","v":{"v":0,"d":"$0.00"}},{"$f":"'3 INCOME & EXPENSE'!O241","v":{"v":0,"d":"$0.00"}},647,{"$f":"'3 INCOME & EXPENSE'!X241","v":101},101000,101101,0]
[null,null,{"$f":"IF('3 INCOME & EXPENSE'!E242=0,\"\",'3 INCOME & EXPENSE'!E242)","v":""},{"$f":"T('3 INCOME & EXPENSE'!G242)","v":""},{"$f":"'3 INCOME & EXPENSE'!M242","v":{"v":0,"d":"0.0"}},{"$f":"'3 INCOME & EXPENSE'!N242","v":{"v":0,"d":"$0.00"}},{"$f":"'3 INCOME & EXPENSE'!O242","v":{"v":0,"d":"$0.00"}},648,{"$f":"'3 INCOME & EXPENSE'!X242","v":101},101000,101101,0]
[null,null,{"$f":"IF('3 INCOME & EXPENSE'!E243=0,\"\",'3 INCOME & EXPENSE'!E243)","v":""},{"$f":"T('3 INCOME & EXPENSE'!G243)","v":""},{"$f":"'3 INCOME & EXPENSE'!M243","v":{"v":0,"d":"0.0"}},{"$f":"'3 INCOME & EXPENSE'!N243","v":{"v":0,"d":"$0.00"}},{"$f":"'3 INCOME & EXPENSE'!O243","v":{"v":0,"d":"$0.00"}},649,{"$f":"'3 INCOME & EXPENSE'!X243","v":101},101000,101101,0]
[null,null,{"$f":"IF('3 INCOME & EXPENSE'!E244=0,\"\",'3 INCOME & EXPENSE'!E244)","v":""},{"$f":"T('3 INCOME & EXPENSE'!G244)","v":""},{"$f":"'3 INCOME & EXPENSE'!M244","v":{"v":0,"d":"0.0"}},{"$f":"'3 INCOME & EXPENSE'!N244","v":{"v":0,"d":"$0.00"}},{"$f":"'3 INCOME & EXPENSE'!O244","v":{"v":0,"d":"$0.00"}},650,{"$f":"'3 INCOME & EXPENSE'!X244","v":101},101000,101101,0]
[null,null,{"$f":"IF('3 INCOME & EXPENSE'!E245=0,\"\",'3 INCOME & EXPENSE'!E245)","v":""},{"$f":"T('3 INCOME & EXPENSE'!G245)","v":""},{"$f":"'3 INCOME & EXPENSE'!M245","v":{"v":0,"d":"0.0"}},{"$f":"'3 INCOME & EXPENSE'!N245","v":{"v":0,"d":"$0.00"}},{"$f":"'3 INCOME & EXPENSE'!O245","v":{"v":0,"d":"$0.00"}},651,{"$f":"'3 INCOME & EXPENSE'!X245","v":101},101000,101101,0]
[null,null,{"$f":"IF('3 INCOME & EXPENSE'!E246=0,\"\",'3 INCOME & EXPENSE'!E246)","v":""},{"$f":"T('3 INCOME & EXPENSE'!G246)","v":""},{"$f":"'3 INCOME & EXPENSE'!M246","v":{"v":0,"d":"0.0"}},{"$f":"'3 INCOME & EXPENSE'!N246","v":{"v":0,"d":"$0.00"}},{"$f":"'3 INCOME & EXPENSE'!O246","v":{"v":0,"d":"$0.00"}},652,{"$f":"'3 INCOME & EXPENSE'!X246","v":101},101000,101101,0]
[null,null,{"$f":"IF('3 INCOME & EXPENSE'!E247=0,\"\",'3 INCOME & EXPENSE'!E247)","v":""},{"$f":"T('3 INCOME & EXPENSE'!G247)","v":""},{"$f":"'3 INCOME & EXPENSE'!M247","v":{"v":0,"d":"0.0"}},{"$f":"'3 INCOME & EXPENSE'!N247","v":{"v":0,"d":"$0.00"}},{"$f":"'3 INCOME & EXPENSE'!O247","v":{"v":0,"d":"$0.00"}},653,{"$f":"'3 INCOME & EXPENSE'!X247","v":101},101000,101101,0]
[null,null,{"$f":"IF('3 INCOME & EXPENSE'!E248=0,\"\",'3 INCOME & EXPENSE'!E248)","v":""},{"$f":"T('3 INCOME & EXPENSE'!G248)","v":""},{"$f":"'3 INCOME & EXPENSE'!M248","v":{"v":0,"d":"0.0"}},{"$f":"'3 INCOME & EXPENSE'!N248","v":{"v":0,"d":"$0.00"}},{"$f":"'3 INCOME & EXPENSE'!O248","v":{"v":0,"d":"$0.00"}},654,{"$f":"'3 INCOME & EXPENSE'!X248","v":101},101000,101101,0]
[null,null,{"$f":"IF('3 INCOME & EXPENSE'!E249=0,\"\",'3 INCOME & EXPENSE'!E249)","v":""},{"$f":"T('3 INCOME & EXPENSE'!G249)","v":""},{"$f":"'3 INCOME & EXPENSE'!M249","v":{"v":0,"d":"0.0"}},{"$f":"'3 INCOME & EXPENSE'!N249","v":{"v":0,"d":"$0.00"}},{"$f":"'3 INCOME & EXPENSE'!O249","v":{"v":0,"d":"$0.00"}},655,{"$f":"'3 INCOME & EXPENSE'!X249","v":101},101000,101101,0]
[null,null,{"$f":"IF('3 INCOME & EXPENSE'!E250=0,\"\",'3 INCOME & EXPENSE'!E250)","v":""},{"$f":"T('3 INCOME & EXPENSE'!G250)","v":""},{"$f":"'3 INCOME & EXPENSE'!M250","v":{"v":0,"d":"0.0"}},{"$f":"'3 INCOME & EXPENSE'!N250","v":{"v":0,"d":"$0.00"}},{"$f":"'3 INCOME & EXPENSE'!O250","v":{"v":0,"d":"$0.00"}},656,{"$f":"'3 INCOME & EXPENSE'!X250","v":101},101000,101101,0]
[null,null,{"$f":"IF('3 INCOME & EXPENSE'!E251=0,\"\",'3 INCOME & EXPENSE'!E251)","v":""},{"$f":"T('3 INCOME & EXPENSE'!G251)","v":""},{"$f":"'3 INCOME & EXPENSE'!M251","v":{"v":0,"d":"0.0"}},{"$f":"'3 INCOME & EXPENSE'!N251","v":{"v":0,"d":"$0.00"}},{"$f":"'3 INCOME & EXPENSE'!O251","v":{"v":0,"d":"$0.00"}},657,{"$f":"'3 INCOME & EXPENSE'!X251","v":101},101000,101101,0]
[null,null,{"$f":"IF('3 INCOME & EXPENSE'!E252=0,\"\",'3 INCOME & EXPENSE'!E252)","v":""},{"$f":"T('3 INCOME & EXPENSE'!G252)","v":""},{"$f":"'3 INCOME & EXPENSE'!M252","v":{"v":0,"d":"0.0"}},{"$f":"'3 INCOME & EXPENSE'!N252","v":{"v":0,"d":"$0.00"}},{"$f":"'3 INCOME & EXPENSE'!O252","v":{"v":0,"d":"$0.00"}},658,{"$f":"'3 INCOME & EXPENSE'!X252","v":101},101000,101101,0]
[null,null,{"$f":"IF('3 INCOME & EXPENSE'!E253=0,\"\",'3 INCOME & EXPENSE'!E253)","v":""},{"$f":"T('3 INCOME & EXPENSE'!G253)","v":""},{"$f":"'3 INCOME & EXPENSE'!M253","v":{"v":0,"d":"0.0"}},{"$f":"'3 INCOME & EXPENSE'!N253","v":{"v":0,"d":"$0.00"}},{"$f":"'3 INCOME & EXPENSE'!O253","v":{"v":0,"d":"$0.00"}},659,{"$f":"'3 INCOME & EXPENSE'!X253","v":101},101000,101101,0]
[null,null,{"$f":"IF('3 INCOME & EXPENSE'!E254=0,\"\",'3 INCOME & EXPENSE'!E254)","v":""},{"$f":"T('3 INCOME & EXPENSE'!G254)","v":""},{"$f":"'3 INCOME & EXPENSE'!M254","v":{"v":0,"d":"0.0"}},{"$f":"'3 INCOME & EXPENSE'!N254","v":{"v":0,"d":"$0.00"}},{"$f":"'3 INCOME & EXPENSE'!O254","v":{"v":0,"d":"$0.00"}},660,{"$f":"'3 INCOME & EXPENSE'!X254","v":101},101000,101101,0]
[null,null,{"$f":"IF('3 INCOME & EXPENSE'!E255=0,\"\",'3 INCOME & EXPENSE'!E255)","v":""},{"$f":"T('3 INCOME & EXPENSE'!G255)","v":""},{"$f":"'3 INCOME & EXPENSE'!M255","v":{"v":0,"d":"0.0"}},{"$f":"'3 INCOME & EXPENSE'!N255","v":{"v":0,"d":"$0.00"}},{"$f":"'3 INCOME & EXPENSE'!O255","v":{"v":0,"d":"$0.00"}},661,{"$f":"'3 INCOME & EXPENSE'!X255","v":101},101000,101101,0]
[null,null,{"$f":"IF('3 INCOME & EXPENSE'!E256=0,\"\",'3 INCOME & EXPENSE'!E256)","v":""},{"$f":"T('3 INCOME & EXPENSE'!G256)","v":""},{"$f":"'3 INCOME & EXPENSE'!M256","v":{"v":0,"d":"0.0"}},{"$f":"'3 INCOME & EXPENSE'!N256","v":{"v":0,"d":"$0.00"}},{"$f":"'3 INCOME & EXPENSE'!O256","v":{"v":0,"d":"$0.00"}},662,{"$f":"'3 INCOME & EXPENSE'!X256","v":101},101000,101101,0]
[null,null,{"$f":"IF('3 INCOME & EXPENSE'!E257=0,\"\",'3 INCOME & EXPENSE'!E257)","v":""},{"$f":"T('3 INCOME & EXPENSE'!G257)","v":""},{"$f":"'3 INCOME & EXPENSE'!M257","v":{"v":0,"d":"0.0"}},{"$f":"'3 INCOME & EXPENSE'!N257","v":{"v":0,"d":"$0.00"}},{"$f":"'3 INCOME & EXPENSE'!O257","v":{"v":0,"d":"$0.00"}},663,{"$f":"'3 INCOME & EXPENSE'!X257","v":101},101000,101101,0]
[null,null,{"$f":"IF('3 INCOME & EXPENSE'!E258=0,\"\",'3 INCOME & EXPENSE'!E258)","v":""},{"$f":"T('3 INCOME & EXPENSE'!G258)","v":""},{"$f":"'3 INCOME & EXPENSE'!M258","v":{"v":0,"d":"0.0"}},{"$f":"'3 INCOME & EXPENSE'!N258","v":{"v":0,"d":"$0.00"}},{"$f":"'3 INCOME & EXPENSE'!O258","v":{"v":0,"d":"$0.00"}},664,{"$f":"'3 INCOME & EXPENSE'!X258","v":101},101000,101101,0]
[null,null,{"$f":"IF('3 INCOME & EXPENSE'!E259=0,\"\",'3 INCOME & EXPENSE'!E259)","v":""},{"$f":"T('3 INCOME & EXPENSE'!G259)","v":""},{"$f":"'3 INCOME & EXPENSE'!M259","v":{"v":0,"d":"0.0"}},{"$f":"'3 INCOME & EXPENSE'!N259","v":{"v":0,"d":"$0.00"}},{"$f":"'3 INCOME & EXPENSE'!O259","v":{"v":0,"d":"$0.00"}},665,{"$f":"'3 INCOME & EXPENSE'!X259","v":101},101000,101101,0]
[null,null,{"$f":"IF('3 INCOME & EXPENSE'!E260=0,\"\",'3 INCOME & EXPENSE'!E260)","v":""},{"$f":"T('3 INCOME & EXPENSE'!G260)","v":""},{"$f":"'3 INCOME & EXPENSE'!M260","v":{"v":0,"d":"0.0"}},{"$f":"'3 INCOME & EXPENSE'!N260","v":{"v":0,"d":"$0.00"}},{"$f":"'3 INCOME & EXPENSE'!O260","v":{"v":0,"d":"$0.00"}},666,{"$f":"'3 INCOME & EXPENSE'!X260","v":101},101000,101101,0]
[null,null,{"$f":"IF('3 INCOME & EXPENSE'!E261=0,\"\",'3 INCOME & EXPENSE'!E261)","v":""},{"$f":"T('3 INCOME & EXPENSE'!G261)","v":""},{"$f":"'3 INCOME & EXPENSE'!M261","v":{"v":0,"d":"0.0"}},{"$f":"'3 INCOME & EXPENSE'!N261","v":{"v":0,"d":"$0.00"}},{"$f":"'3 INCOME & EXPENSE'!O261","v":{"v":0,"d":"$0.00"}},667,{"$f":"'3 INCOME & EXPENSE'!X261","v":101},101000,101101,0]
[null,null,{"$f":"IF('3 INCOME & EXPENSE'!E262=0,\"\",'3 INCOME & EXPENSE'!E262)","v":""},{"$f":"T('3 INCOME & EXPENSE'!G262)","v":""},{"$f":"'3 INCOME & EXPENSE'!M262","v":{"v":0,"d":"0.0"}},{"$f":"'3 INCOME & EXPENSE'!N262","v":{"v":0,"d":"$0.00"}},{"$f":"'3 INCOME & EXPENSE'!O262","v":{"v":0,"d":"$0.00"}},668,{"$f":"'3 INCOME & EXPENSE'!X262","v":101},101000,101101,0]
[null,null,{"$f":"IF('3 INCOME & EXPENSE'!E263=0,\"\",'3 INCOME & EXPENSE'!E263)","v":""},{"$f":"T('3 INCOME & EXPENSE'!G263)","v":""},{"$f":"'3 INCOME & EXPENSE'!M263","v":{"v":0,"d":"0.0"}},{"$f":"'3 INCOME & EXPENSE'!N263","v":{"v":0,"d":"$0.00"}},{"$f":"'3 INCOME & EXPENSE'!O263","v":{"v":0,"d":"$0.00"}},669,{"$f":"'3 INCOME & EXPENSE'!X263","v":101},101000,101101,0]
[null,null,{"$f":"IF('3 INCOME & EXPENSE'!E264=0,\"\",'3 INCOME & EXPENSE'!E264)","v":""},{"$f":"T('3 INCOME & EXPENSE'!G264)","v":""},{"$f":"'3 INCOME & EXPENSE'!M264","v":{"v":0,"d":"0.0"}},{"$f":"'3 INCOME & EXPENSE'!N264","v":{"v":0,"d":"$0.00"}},{"$f":"'3 INCOME & EXPENSE'!O264","v":{"v":0,"d":"$0.00"}},670,{"$f":"'3 INCOME & EXPENSE'!X264","v":101},101000,101101,0]
[null,null,{"$f":"IF('3 INCOME & EXPENSE'!E265=0,\"\",'3 INCOME & EXPENSE'!E265)","v":""},{"$f":"T('3 INCOME & EXPENSE'!G265)","v":""},{"$f":"'3 INCOME & EXPENSE'!M265","v":{"v":0,"d":"0.0"}},{"$f":"'3 INCOME & EXPENSE'!N265","v":{"v":0,"d":"$0.00"}},{"$f":"'3 INCOME & EXPENSE'!O265","v":{"v":0,"d":"$0.00"}},671,{"$f":"'3 INCOME & EXPENSE'!X265","v":101},101000,101101,0]
[null,null,{"$f":"IF('3 INCOME & EXPENSE'!E266=0,\"\",'3 INCOME & EXPENSE'!E266)","v":""},{"$f":"T('3 INCOME & EXPENSE'!G266)","v":""},{"$f":"'3 INCOME & EXPENSE'!M266","v":{"v":0,"d":"0.0"}},{"$f":"'3 INCOME & EXPENSE'!N266","v":{"v":0,"d":"$0.00"}},{"$f":"'3 INCOME & EXPENSE'!O266","v":{"v":0,"d":"$0.00"}},672,{"$f":"'3 INCOME & EXPENSE'!X266","v":101},101000,101101,0]
[null,null,{"$f":"IF('3 INCOME & EXPENSE'!E267=0,\"\",'3 INCOME & EXPENSE'!E267)","v":""},{"$f":"T('3 INCOME & EXPENSE'!G267)","v":""},{"$f":"'3 INCOME & EXPENSE'!M267","v":{"v":0,"d":"0.0"}},{"$f":"'3 INCOME & EXPENSE'!N267","v":{"v":0,"d":"$0.00"}},{"$f":"'3 INCOME & EXPENSE'!O267","v":{"v":0,"d":"$0.00"}},673,{"$f":"'3 INCOME & EXPENSE'!X267","v":101},101000,101101,0]
[null,null,{"$f":"IF('3 INCOME & EXPENSE'!E268=0,\"\",'3 INCOME & EXPENSE'!E268)","v":""},{"$f":"T('3 INCOME & EXPENSE'!G268)","v":""},{"$f":"'3 INCOME & EXPENSE'!M268","v":{"v":0,"d":"0.0"}},{"$f":"'3 INCOME & EXPENSE'!N268","v":{"v":0,"d":"$0.00"}},{"$f":"'3 INCOME & EXPENSE'!O268","v":{"v":0,"d":"$0.00"}},674,{"$f":"'3 INCOME & EXPENSE'!X268","v":101},101000,101101,0]
[null,null,{"$f":"IF('3 INCOME & EXPENSE'!E269=0,\"\",'3 INCOME & EXPENSE'!E269)","v":""},{"$f":"T('3 INCOME & EXPENSE'!G269)","v":""},{"$f":"'3 INCOME & EXPENSE'!M269","v":{"v":0,"d":"0.0"}},{"$f":"'3 INCOME & EXPENSE'!N269","v":{"v":0,"d":"$0.00"}},{"$f":"'3 INCOME & EXPENSE'!O269","v":{"v":0,"d":"$0.00"}},675,{"$f":"'3 INCOME & EXPENSE'!X269","v":101},101000,101101,0]
[null,null,{"$f":"IF('3 INCOME & EXPENSE'!E270=0,\"\",'3 INCOME & EXPENSE'!E270)","v":""},{"$f":"T('3 INCOME & EXPENSE'!G270)","v":""},{"$f":"'3 INCOME & EXPENSE'!M270","v":{"v":0,"d":"0.0"}},{"$f":"'3 INCOME & EXPENSE'!N270","v":{"v":0,"d":"$0.00"}},{"$f":"'3 INCOME & EXPENSE'!O270","v":{"v":0,"d":"$0.00"}},676,{"$f":"'3 INCOME & EXPENSE'!X270","v":101},{"$f":"VLOOKUP(I688,$I$1186:$J$1287,2)","v":101000},101101,{"$f":"K688*E688","v":0}]
[null,null,{"$f":"IF('3 INCOME & EXPENSE'!E271=0,\"\",'3 INCOME & EXPENSE'!E271)","v":""},{"$f":"T('3 INCOME & EXPENSE'!G271)","v":""},{"$f":"'3 INCOME & EXPENSE'!M271","v":{"v":0,"d":"0.0"}},{"$f":"'3 INCOME & EXPENSE'!N271","v":{"v":0,"d":"$0.00"}},{"$f":"'3 INCOME & EXPENSE'!O271","v":{"v":0,"d":"$0.00"}},677,{"$f":"'3 INCOME & EXPENSE'!X271","v":101},101000,101101,0]
[null,null,{"$f":"IF('3 INCOME & EXPENSE'!E272=0,\"\",'3 INCOME & EXPENSE'!E272)","v":""},{"$f":"T('3 INCOME & EXPENSE'!G272)","v":""},{"$f":"'3 INCOME & EXPENSE'!M272","v":{"v":0,"d":"0.0"}},{"$f":"'3 INCOME & EXPENSE'!N272","v":{"v":0,"d":"$0.00"}},{"$f":"'3 INCOME & EXPENSE'!O272","v":{"v":0,"d":"$0.00"}},678,{"$f":"'3 INCOME & EXPENSE'!X272","v":101},101000,101101,0]
[null,null,{"$f":"IF('3 INCOME & EXPENSE'!E273=0,\"\",'3 INCOME & EXPENSE'!E273)","v":""},{"$f":"T('3 INCOME & EXPENSE'!G273)","v":""},{"$f":"'3 INCOME & EXPENSE'!M273","v":{"v":0,"d":"0.0"}},{"$f":"'3 INCOME & EXPENSE'!N273","v":{"v":0,"d":"$0.00"}},{"$f":"'3 INCOME & EXPENSE'!O273","v":{"v":0,"d":"$0.00"}},679,{"$f":"'3 INCOME & EXPENSE'!X273","v":101},101000,101101,0]
[null,null,{"$f":"IF('3 INCOME & EXPENSE'!E274=0,\"\",'3 INCOME & EXPENSE'!E274)","v":""},{"$f":"T('3 INCOME & EXPENSE'!G274)","v":""},{"$f":"'3 INCOME & EXPENSE'!M274","v":{"v":0,"d":"0.0"}},{"$f":"'3 INCOME & EXPENSE'!N274","v":{"v":0,"d":"$0.00"}},{"$f":"'3 INCOME & EXPENSE'!O274","v":{"v":0,"d":"$0.00"}},680,{"$f":"'3 INCOME & EXPENSE'!X274","v":101},101000,101101,0]
[null,null,{"$f":"IF('3 INCOME & EXPENSE'!E275=0,\"\",'3 INCOME & EXPENSE'!E275)","v":""},{"$f":"T('3 INCOME & EXPENSE'!G275)","v":""},{"$f":"'3 INCOME & EXPENSE'!M275","v":{"v":0,"d":"0.0"}},{"$f":"'3 INCOME & EXPENSE'!N275","v":{"v":0,"d":"$0.00"}},{"$f":"'3 INCOME & EXPENSE'!O275","v":{"v":0,"d":"$0.00"}},681,{"$f":"'3 INCOME & EXPENSE'!X275","v":101},101000,101101,0]
[null,null,{"$f":"IF('3 INCOME & EXPENSE'!E276=0,\"\",'3 INCOME & EXPENSE'!E276)","v":""},{"$f":"T('3 INCOME & EXPENSE'!G276)","v":""},{"$f":"'3 INCOME & EXPENSE'!M276","v":{"v":0,"d":"0.0"}},{"$f":"'3 INCOME & EXPENSE'!N276","v":{"v":0,"d":"$0.00"}},{"$f":"'3 INCOME & EXPENSE'!O276","v":{"v":0,"d":"$0.00"}},682,{"$f":"'3 INCOME & EXPENSE'!X276","v":101},101000,101101,0]
[null,null,{"$f":"IF('3 INCOME & EXPENSE'!E277=0,\"\",'3 INCOME & EXPENSE'!E277)","v":""},{"$f":"T('3 INCOME & EXPENSE'!G277)","v":""},{"$f":"'3 INCOME & EXPENSE'!M277","v":{"v":0,"d":"0.0"}},{"$f":"'3 INCOME & EXPENSE'!N277","v":{"v":0,"d":"$0.00"}},{"$f":"'3 INCOME & EXPENSE'!O277","v":{"v":0,"d":"$0.00"}},683,{"$f":"'3 INCOME & EXPENSE'!X277","v":101},101000,101101,0]
[null,null,{"$f":"IF('3 INCOME & EXPENSE'!E278=0,\"\",'3 INCOME & EXPENSE'!E278)","v":""},{"$f":"T('3 INCOME & EXPENSE'!G278)","v":""},{"$f":"'3 INCOME & EXPENSE'!M278","v":{"v":0,"d":"0.0"}},{"$f":"'3 INCOME & EXPENSE'!N278","v":{"v":0,"d":"$0.00"}},{"$f":"'3 INCOME & EXPENSE'!O278","v":{"v":0,"d":"$0.00"}},684,{"$f":"'3 INCOME & EXPENSE'!X278","v":101},101000,101101,0]
[null,null,{"$f":"IF('3 INCOME & EXPENSE'!E279=0,\"\",'3 INCOME & EXPENSE'!E279)","v":""},{"$f":"T('3 INCOME & EXPENSE'!G279)","v":""},{"$f":"'3 INCOME & EXPENSE'!M279","v":{"v":0,"d":"0.0"}},{"$f":"'3 INCOME & EXPENSE'!N279","v":{"v":0,"d":"$0.00"}},{"$f":"'3 INCOME & EXPENSE'!O279","v":{"v":0,"d":"$0.00"}},685,{"$f":"'3 INCOME & EXPENSE'!X279","v":101},101000,101101,0]
[null,null,{"$f":"IF('3 INCOME & EXPENSE'!E280=0,\"\",'3 INCOME & EXPENSE'!E280)","v":""},{"$f":"T('3 INCOME & EXPENSE'!G280)","v":""},{"$f":"'3 INCOME & EXPENSE'!M280","v":{"v":0,"d":"0.0"}},{"$f":"'3 INCOME & EXPENSE'!N280","v":{"v":0,"d":"$0.00"}},{"$f":"'3 INCOME & EXPENSE'!O280","v":{"v":0,"d":"$0.00"}},686,{"$f":"'3 INCOME & EXPENSE'!X280","v":101},101000,101101,0]
[null,null,{"$f":"IF('3 INCOME & EXPENSE'!E281=0,\"\",'3 INCOME & EXPENSE'!E281)","v":""},{"$f":"T('3 INCOME & EXPENSE'!G281)","v":""},{"$f":"'3 INCOME & EXPENSE'!M281","v":{"v":0,"d":"0.0"}},{"$f":"'3 INCOME & EXPENSE'!N281","v":{"v":0,"d":"$0.00"}},{"$f":"'3 INCOME & EXPENSE'!O281","v":{"v":0,"d":"$0.00"}},687,{"$f":"'3 INCOME & EXPENSE'!X281","v":101},101000,101101,0]
[null,null,{"$f":"IF('3 INCOME & EXPENSE'!E282=0,\"\",'3 INCOME & EXPENSE'!E282)","v":""},{"$f":"T('3 INCOME & EXPENSE'!G282)","v":""},{"$f":"'3 INCOME & EXPENSE'!M282","v":{"v":0,"d":"0.0"}},{"$f":"'3 INCOME & EXPENSE'!N282","v":{"v":0,"d":"$0.00"}},{"$f":"'3 INCOME & EXPENSE'!O282","v":{"v":0,"d":"$0.00"}},688,{"$f":"'3 INCOME & EXPENSE'!X282","v":101},101000,101101,0]
[null,null,{"$f":"IF('3 INCOME & EXPENSE'!E283=0,\"\",'3 INCOME & EXPENSE'!E283)","v":""},{"$f":"T('3 INCOME & EXPENSE'!G283)","v":""},{"$f":"'3 INCOME & EXPENSE'!M283","v":{"v":0,"d":"0.0"}},{"$f":"'3 INCOME & EXPENSE'!N283","v":{"v":0,"d":"$0.00"}},{"$f":"'3 INCOME & EXPENSE'!O283","v":{"v":0,"d":"$0.00"}},689,{"$f":"'3 INCOME & EXPENSE'!X283","v":101},101000,101101,0]
[null,null,{"$f":"IF('3 INCOME & EXPENSE'!E284=0,\"\",'3 INCOME & EXPENSE'!E284)","v":""},{"$f":"T('3 INCOME & EXPENSE'!G284)","v":""},{"$f":"'3 INCOME & EXPENSE'!M284","v":{"v":0,"d":"0.0"}},{"$f":"'3 INCOME & EXPENSE'!N284","v":{"v":0,"d":"$0.00"}},{"$f":"'3 INCOME & EXPENSE'!O284","v":{"v":0,"d":"$0.00"}},690,{"$f":"'3 INCOME & EXPENSE'!X284","v":101},101000,101101,0]
[null,null,{"$f":"IF('3 INCOME & EXPENSE'!E285=0,\"\",'3 INCOME & EXPENSE'!E285)","v":""},{"$f":"T('3 INCOME & EXPENSE'!G285)","v":""},{"$f":"'3 INCOME & EXPENSE'!M285","v":{"v":0,"d":"0.0"}},{"$f":"'3 INCOME & EXPENSE'!N285","v":{"v":0,"d":"$0.00"}},{"$f":"'3 INCOME & EXPENSE'!O285","v":{"v":0,"d":"$0.00"}},691,{"$f":"'3 INCOME & EXPENSE'!X285","v":101},101000,101101,0]
[null,null,{"$f":"IF('3 INCOME & EXPENSE'!E286=0,\"\",'3 INCOME & EXPENSE'!E286)","v":""},{"$f":"T('3 INCOME & EXPENSE'!G286)","v":""},{"$f":"'3 INCOME & EXPENSE'!M286","v":{"v":0,"d":"0.0"}},{"$f":"'3 INCOME & EXPENSE'!N286","v":{"v":0,"d":"$0.00"}},{"$f":"'3 INCOME & EXPENSE'!O286","v":{"v":0,"d":"$0.00"}},692,{"$f":"'3 INCOME & EXPENSE'!X286","v":101},101000,101101,0]
[null,null,{"$f":"IF('3 INCOME & EXPENSE'!E287=0,\"\",'3 INCOME & EXPENSE'!E287)","v":""},{"$f":"T('3 INCOME & EXPENSE'!G287)","v":""},{"$f":"'3 INCOME & EXPENSE'!M287","v":{"v":0,"d":"0.0"}},{"$f":"'3 INCOME & EXPENSE'!N287","v":{"v":0,"d":"$0.00"}},{"$f":"'3 INCOME & EXPENSE'!O287","v":{"v":0,"d":"$0.00"}},693,{"$f":"'3 INCOME & EXPENSE'!X287","v":101},101000,{"$f":"I705+J705","v":101101},0]
[null,null,{"$f":"IF('3 INCOME & EXPENSE'!E288=0,\"\",'3 INCOME & EXPENSE'!E288)","v":""},{"$f":"T('3 INCOME & EXPENSE'!G288)","v":""},{"$f":"'3 INCOME & EXPENSE'!M288","v":{"v":0,"d":"0.0"}},{"$f":"'3 INCOME & EXPENSE'!N288","v":{"v":0,"d":"$0.00"}},{"$f":"'3 INCOME & EXPENSE'!O288","v":{"v":0,"d":"$0.00"}},694,{"$f":"'3 INCOME & EXPENSE'!X288","v":101},101000,101101,0]
[null,null,{"$f":"IF('3 INCOME & EXPENSE'!E289=0,\"\",'3 INCOME & EXPENSE'!E289)","v":""},{"$f":"T('3 INCOME & EXPENSE'!G289)","v":""},{"$f":"'3 INCOME & EXPENSE'!M289","v":{"v":0,"d":"0.0"}},{"$f":"'3 INCOME & EXPENSE'!N289","v":{"v":0,"d":"$0.00"}},{"$f":"'3 INCOME & EXPENSE'!O289","v":{"v":0,"d":"$0.00"}},695,{"$f":"'3 INCOME & EXPENSE'!X289","v":101},101000,101101,0]
[null,null,{"$f":"IF('3 INCOME & EXPENSE'!E290=0,\"\",'3 INCOME & EXPENSE'!E290)","v":""},{"$f":"T('3 INCOME & EXPENSE'!G290)","v":""},{"$f":"'3 INCOME & EXPENSE'!M290","v":{"v":0,"d":"0.0"}},{"$f":"'3 INCOME & EXPENSE'!N290","v":{"v":0,"d":"$0.00"}},{"$f":"'3 INCOME & EXPENSE'!O290","v":{"v":0,"d":"$0.00"}},696,{"$f":"'3 INCOME & EXPENSE'!X290","v":101},101000,101101,0]
[null,null,{"$f":"IF('3 INCOME & EXPENSE'!E291=0,\"\",'3 INCOME & EXPENSE'!E291)","v":""},{"$f":"T('3 INCOME & EXPENSE'!G291)","v":""},{"$f":"'3 INCOME & EXPENSE'!M291","v":{"v":0,"d":"0.0"}},{"$f":"'3 INCOME & EXPENSE'!N291","v":{"v":0,"d":"$0.00"}},{"$f":"'3 INCOME & EXPENSE'!O291","v":{"v":0,"d":"$0.00"}},697,{"$f":"'3 INCOME & EXPENSE'!X291","v":101},101000,101101,0]
[null,null,{"$f":"IF('3 INCOME & EXPENSE'!E292=0,\"\",'3 INCOME & EXPENSE'!E292)","v":""},{"$f":"T('3 INCOME & EXPENSE'!G292)","v":""},{"$f":"'3 INCOME & EXPENSE'!M292","v":{"v":0,"d":"0.0"}},{"$f":"'3 INCOME & EXPENSE'!N292","v":{"v":0,"d":"$0.00"}},{"$f":"'3 INCOME & EXPENSE'!O292","v":{"v":0,"d":"$0.00"}},698,{"$f":"'3 INCOME & EXPENSE'!X292","v":101},101000,101101,0]
[null,null,{"$f":"IF('3 INCOME & EXPENSE'!E293=0,\"\",'3 INCOME & EXPENSE'!E293)","v":""},{"$f":"T('3 INCOME & EXPENSE'!G293)","v":""},{"$f":"'3 INCOME & EXPENSE'!M293","v":{"v":0,"d":"0.0"}},{"$f":"'3 INCOME & EXPENSE'!N293","v":{"v":0,"d":"$0.00"}},{"$f":"'3 INCOME & EXPENSE'!O293","v":{"v":0,"d":"$0.00"}},699,{"$f":"'3 INCOME & EXPENSE'!X293","v":101},101000,101101,0]
[null,null,{"$f":"IF('3 INCOME & EXPENSE'!E294=0,\"\",'3 INCOME & EXPENSE'!E294)","v":""},{"$f":"T('3 INCOME & EXPENSE'!G294)","v":""},{"$f":"'3 INCOME & EXPENSE'!M294","v":{"v":0,"d":"0.0"}},{"$f":"'3 INCOME & EXPENSE'!N294","v":{"v":0,"d":"$0.00"}},{"$f":"'3 INCOME & EXPENSE'!O294","v":{"v":0,"d":"$0.00"}},700,{"$f":"'3 INCOME & EXPENSE'!X294","v":101},101000,101101,0]
[null,null,{"$f":"IF('3 INCOME & EXPENSE'!E295=0,\"\",'3 INCOME & EXPENSE'!E295)","v":""},{"$f":"T('3 INCOME & EXPENSE'!G295)","v":""},{"$f":"'3 INCOME & EXPENSE'!M295","v":{"v":0,"d":"0.0"}},{"$f":"'3 INCOME & EXPENSE'!N295","v":{"v":0,"d":"$0.00"}},{"$f":"'3 INCOME & EXPENSE'!O295","v":{"v":0,"d":"$0.00"}},701,{"$f":"'3 INCOME & EXPENSE'!X295","v":101},101000,101101,0]
[null,null,{"$f":"IF('3 INCOME & EXPENSE'!E296=0,\"\",'3 INCOME & EXPENSE'!E296)","v":""},{"$f":"T('3 INCOME & EXPENSE'!G296)","v":""},{"$f":"'3 INCOME & EXPENSE'!M296","v":{"v":0,"d":"0.0"}},{"$f":"'3 INCOME & EXPENSE'!N296","v":{"v":0,"d":"$0.00"}},{"$f":"'3 INCOME & EXPENSE'!O296","v":{"v":0,"d":"$0.00"}},702,{"$f":"'3 INCOME & EXPENSE'!X296","v":101},101000,101101,0]
[null,null,{"$f":"IF('3 INCOME & EXPENSE'!E297=0,\"\",'3 INCOME & EXPENSE'!E297)","v":""},{"$f":"T('3 INCOME & EXPENSE'!G297)","v":""},{"$f":"'3 INCOME & EXPENSE'!M297","v":{"v":0,"d":"0.0"}},{"$f":"'3 INCOME & EXPENSE'!N297","v":{"v":0,"d":"$0.00"}},{"$f":"'3 INCOME & EXPENSE'!O297","v":{"v":0,"d":"$0.00"}},703,{"$f":"'3 INCOME & EXPENSE'!X297","v":101},101000,101101,0]
[null,null,{"$f":"IF('3 INCOME & EXPENSE'!E298=0,\"\",'3 INCOME & EXPENSE'!E298)","v":""},{"$f":"T('3 INCOME & EXPENSE'!G298)","v":""},{"$f":"'3 INCOME & EXPENSE'!M298","v":{"v":0,"d":"0.0"}},{"$f":"'3 INCOME & EXPENSE'!N298","v":{"v":0,"d":"$0.00"}},{"$f":"'3 INCOME & EXPENSE'!O298","v":{"v":0,"d":"$0.00"}},704,{"$f":"'3 INCOME & EXPENSE'!X298","v":101},101000,101101,0]
[null,null,{"$f":"IF('3 INCOME & EXPENSE'!E299=0,\"\",'3 INCOME & EXPENSE'!E299)","v":""},{"$f":"T('3 INCOME & EXPENSE'!G299)","v":""},{"$f":"'3 INCOME & EXPENSE'!M299","v":{"v":0,"d":"0.0"}},{"$f":"'3 INCOME & EXPENSE'!N299","v":{"v":0,"d":"$0.00"}},{"$f":"'3 INCOME & EXPENSE'!O299","v":{"v":0,"d":"$0.00"}},705,{"$f":"'3 INCOME & EXPENSE'!X299","v":101},101000,101101,0]
[null,null,{"$f":"IF('3 INCOME & EXPENSE'!E300=0,\"\",'3 INCOME & EXPENSE'!E300)","v":""},{"$f":"T('3 INCOME & EXPENSE'!G300)","v":""},{"$f":"'3 INCOME & EXPENSE'!M300","v":{"v":0,"d":"0.0"}},{"$f":"'3 INCOME & EXPENSE'!N300","v":{"v":0,"d":"$0.00"}},{"$f":"'3 INCOME & EXPENSE'!O300","v":{"v":0,"d":"$0.00"}},706,{"$f":"'3 INCOME & EXPENSE'!X300","v":101},101000,101101,0]
[null,null,{"$f":"IF('3 INCOME & EXPENSE'!E301=0,\"\",'3 INCOME & EXPENSE'!E301)","v":""},{"$f":"T('3 INCOME & EXPENSE'!G301)","v":""},{"$f":"'3 INCOME & EXPENSE'!M301","v":{"v":0,"d":"0.0"}},{"$f":"'3 INCOME & EXPENSE'!N301","v":{"v":0,"d":"$0.00"}},{"$f":"'3 INCOME & EXPENSE'!O301","v":{"v":0,"d":"$0.00"}},707,{"$f":"'3 INCOME & EXPENSE'!X301","v":101},101000,101101,0]
[null,null,{"$f":"IF('3 INCOME & EXPENSE'!E302=0,\"\",'3 INCOME & EXPENSE'!E302)","v":""},{"$f":"T('3 INCOME & EXPENSE'!G302)","v":""},{"$f":"'3 INCOME & EXPENSE'!M302","v":{"v":0,"d":"0.0"}},{"$f":"'3 INCOME & EXPENSE'!N302","v":{"v":0,"d":"$0.00"}},{"$f":"'3 INCOME & EXPENSE'!O302","v":{"v":0,"d":"$0.00"}},708,{"$f":"'3 INCOME & EXPENSE'!X302","v":101},101000,101101,0]
[null,null,{"$f":"IF('3 INCOME & EXPENSE'!E303=0,\"\",'3 INCOME & EXPENSE'!E303)","v":""},{"$f":"T('3 INCOME & EXPENSE'!G303)","v":""},{"$f":"'3 INCOME & EXPENSE'!M303","v":{"v":0,"d":"0.0"}},{"$f":"'3 INCOME & EXPENSE'!N303","v":{"v":0,"d":"$0.00"}},{"$f":"'3 INCOME & EXPENSE'!O303","v":{"v":0,"d":"$0.00"}},709,{"$f":"'3 INCOME & EXPENSE'!X303","v":101},101000,101101,0]
[null,null,{"$f":"IF('3 INCOME & EXPENSE'!E304=0,\"\",'3 INCOME & EXPENSE'!E304)","v":""},{"$f":"T('3 INCOME & EXPENSE'!G304)","v":""},{"$f":"'3 INCOME & EXPENSE'!M304","v":{"v":0,"d":"0.0"}},{"$f":"'3 INCOME & EXPENSE'!N304","v":{"v":0,"d":"$0.00"}},{"$f":"'3 INCOME & EXPENSE'!O304","v":{"v":0,"d":"$0.00"}},710,{"$f":"'3 INCOME & EXPENSE'!X304","v":101},101000,101101,0]
[null,null,{"$f":"IF('3 INCOME & EXPENSE'!E305=0,\"\",'3 INCOME & EXPENSE'!E305)","v":""},{"$f":"T('3 INCOME & EXPENSE'!G305)","v":""},{"$f":"'3 INCOME & EXPENSE'!M305","v":{"v":0,"d":"0.0"}},{"$f":"'3 INCOME & EXPENSE'!N305","v":{"v":0,"d":"$0.00"}},{"$f":"'3 INCOME & EXPENSE'!O305","v":{"v":0,"d":"$0.00"}},711,{"$f":"'3 INCOME & EXPENSE'!X305","v":101},101000,101101,0]
[null,null,{"$f":"IF('3 INCOME & EXPENSE'!E306=0,\"\",'3 INCOME & EXPENSE'!E306)","v":""},{"$f":"T('3 INCOME & EXPENSE'!G306)","v":""},{"$f":"'3 INCOME & EXPENSE'!M306","v":{"v":0,"d":"0.0"}},{"$f":"'3 INCOME & EXPENSE'!N306","v":{"v":0,"d":"$0.00"}},{"$f":"'3 INCOME & EXPENSE'!O306","v":{"v":0,"d":"$0.00"}},712,{"$f":"'3 INCOME & EXPENSE'!X306","v":101},101000,101101,0]
[null,null,{"$f":"IF('3 INCOME & EXPENSE'!E307=0,\"\",'3 INCOME & EXPENSE'!E307)","v":""},{"$f":"T('3 INCOME & EXPENSE'!G307)","v":""},{"$f":"'3 INCOME & EXPENSE'!M307","v":{"v":0,"d":"0.0"}},{"$f":"'3 INCOME & EXPENSE'!N307","v":{"v":0,"d":"$0.00"}},{"$f":"'3 INCOME & EXPENSE'!O307","v":{"v":0,"d":"$0.00"}},713,{"$f":"'3 INCOME & EXPENSE'!X307","v":101},101000,101101,0]
[null,null,{"$f":"IF('3 INCOME & EXPENSE'!E308=0,\"\",'3 INCOME & EXPENSE'!E308)","v":""},{"$f":"T('3 INCOME & EXPENSE'!G308)","v":""},{"$f":"'3 INCOME & EXPENSE'!M308","v":{"v":0,"d":"0.0"}},{"$f":"'3 INCOME & EXPENSE'!N308","v":{"v":0,"d":"$0.00"}},{"$f":"'3 INCOME & EXPENSE'!O308","v":{"v":0,"d":"$0.00"}},714,{"$f":"'3 INCOME & EXPENSE'!X308","v":101},101000,101101,0]
[null,null,{"$f":"IF('3 INCOME & EXPENSE'!E309=0,\"\",'3 INCOME & EXPENSE'!E309)","v":""},{"$f":"T('3 INCOME & EXPENSE'!G309)","v":""},{"$f":"'3 INCOME & EXPENSE'!M309","v":{"v":0,"d":"0.0"}},{"$f":"'3 INCOME & EXPENSE'!N309","v":{"v":0,"d":"$0.00"}},{"$f":"'3 INCOME & EXPENSE'!O309","v":{"v":0,"d":"$0.00"}},715,{"$f":"'3 INCOME & EXPENSE'!X309","v":101},101000,101101,0]
[null,null,{"$f":"IF('3 INCOME & EXPENSE'!E310=0,\"\",'3 INCOME & EXPENSE'!E310)","v":""},{"$f":"T('3 INCOME & EXPENSE'!G310)","v":""},{"$f":"'3 INCOME & EXPENSE'!M310","v":{"v":0,"d":"0.0"}},{"$f":"'3 INCOME & EXPENSE'!N310","v":{"v":0,"d":"$0.00"}},{"$f":"'3 INCOME & EXPENSE'!O310","v":{"v":0,"d":"$0.00"}},716,{"$f":"'3 INCOME & EXPENSE'!X310","v":101},101000,101101,0]
[null,null,{"$f":"IF('3 INCOME & EXPENSE'!E311=0,\"\",'3 INCOME & EXPENSE'!E311)","v":""},{"$f":"T('3 INCOME & EXPENSE'!G311)","v":""},{"$f":"'3 INCOME & EXPENSE'!M311","v":{"v":0,"d":"0.0"}},{"$f":"'3 INCOME & EXPENSE'!N311","v":{"v":0,"d":"$0.00"}},{"$f":"'3 INCOME & EXPENSE'!O311","v":{"v":0,"d":"$0.00"}},717,{"$f":"'3 INCOME & EXPENSE'!X311","v":101},101000,101101,0]
[null,null,{"$f":"IF('3 INCOME & EXPENSE'!E312=0,\"\",'3 INCOME & EXPENSE'!E312)","v":""},{"$f":"T('3 INCOME & EXPENSE'!G312)","v":""},{"$f":"'3 INCOME & EXPENSE'!M312","v":{"v":0,"d":"0.0"}},{"$f":"'3 INCOME & EXPENSE'!N312","v":{"v":0,"d":"$0.00"}},{"$f":"'3 INCOME & EXPENSE'!O312","v":{"v":0,"d":"$0.00"}},718,{"$f":"'3 INCOME & EXPENSE'!X312","v":101},101000,101101,0]
[null,null,{"$f":"IF('3 INCOME & EXPENSE'!E313=0,\"\",'3 INCOME & EXPENSE'!E313)","v":""},{"$f":"T('3 INCOME & EXPENSE'!G313)","v":""},{"$f":"'3 INCOME & EXPENSE'!M313","v":{"v":0,"d":"0.0"}},{"$f":"'3 INCOME & EXPENSE'!N313","v":{"v":0,"d":"$0.00"}},{"$f":"'3 INCOME & EXPENSE'!O313","v":{"v":0,"d":"$0.00"}},719,{"$f":"'3 INCOME & EXPENSE'!X313","v":101},101000,101101,0]
[null,null,{"$f":"IF('3 INCOME & EXPENSE'!E314=0,\"\",'3 INCOME & EXPENSE'!E314)","v":""},{"$f":"T('3 INCOME & EXPENSE'!G314)","v":""},{"$f":"'3 INCOME & EXPENSE'!M314","v":{"v":0,"d":"0.0"}},{"$f":"'3 INCOME & EXPENSE'!N314","v":{"v":0,"d":"$0.00"}},{"$f":"'3 INCOME & EXPENSE'!O314","v":{"v":0,"d":"$0.00"}},720,{"$f":"'3 INCOME & EXPENSE'!X314","v":101},101000,101101,0]
[null,null,{"$f":"IF('3 INCOME & EXPENSE'!E315=0,\"\",'3 INCOME & EXPENSE'!E315)","v":""},{"$f":"T('3 INCOME & EXPENSE'!G315)","v":""},{"$f":"'3 INCOME & EXPENSE'!M315","v":{"v":0,"d":"0.0"}},{"$f":"'3 INCOME & EXPENSE'!N315","v":{"v":0,"d":"$0.00"}},{"$f":"'3 INCOME & EXPENSE'!O315","v":{"v":0,"d":"$0.00"}},721,{"$f":"'3 INCOME & EXPENSE'!X315","v":101},101000,101101,0]
[null,null,{"$f":"IF('3 INCOME & EXPENSE'!E316=0,\"\",'3 INCOME & EXPENSE'!E316)","v":""},{"$f":"T('3 INCOME & EXPENSE'!G316)","v":""},{"$f":"'3 INCOME & EXPENSE'!M316","v":{"v":0,"d":"0.0"}},{"$f":"'3 INCOME & EXPENSE'!N316","v":{"v":0,"d":"$0.00"}},{"$f":"'3 INCOME & EXPENSE'!O316","v":{"v":0,"d":"$0.00"}},722,{"$f":"'3 INCOME & EXPENSE'!X316","v":101},101000,101101,0]
[null,null,{"$f":"IF('3 INCOME & EXPENSE'!E317=0,\"\",'3 INCOME & EXPENSE'!E317)","v":""},{"$f":"T('3 INCOME & EXPENSE'!G317)","v":""},{"$f":"'3 INCOME & EXPENSE'!M317","v":{"v":0,"d":"0.0"}},{"$f":"'3 INCOME & EXPENSE'!N317","v":{"v":0,"d":"$0.00"}},{"$f":"'3 INCOME & EXPENSE'!O317","v":{"v":0,"d":"$0.00"}},723,{"$f":"'3 INCOME & EXPENSE'!X317","v":101},101000,101101,0]
[null,null,{"$f":"IF('3 INCOME & EXPENSE'!E318=0,\"\",'3 INCOME & EXPENSE'!E318)","v":""},{"$f":"T('3 INCOME & EXPENSE'!G318)","v":""},{"$f":"'3 INCOME & EXPENSE'!M318","v":{"v":0,"d":"0.0"}},{"$f":"'3 INCOME & EXPENSE'!N318","v":{"v":0,"d":"$0.00"}},{"$f":"'3 INCOME & EXPENSE'!O318","v":{"v":0,"d":"$0.00"}},724,{"$f":"'3 INCOME & EXPENSE'!X318","v":101},101000,101101,0]
[null,null,{"$f":"IF('3 INCOME & EXPENSE'!E319=0,\"\",'3 INCOME & EXPENSE'!E319)","v":""},{"$f":"T('3 INCOME & EXPENSE'!G319)","v":""},{"$f":"'3 INCOME & EXPENSE'!M319","v":{"v":0,"d":"0.0"}},{"$f":"'3 INCOME & EXPENSE'!N319","v":{"v":0,"d":"$0.00"}},{"$f":"'3 INCOME & EXPENSE'!O319","v":{"v":0,"d":"$0.00"}},725,{"$f":"'3 INCOME & EXPENSE'!X319","v":101},101000,101101,0]
[null,null,{"$f":"IF('3 INCOME & EXPENSE'!E320=0,\"\",'3 INCOME & EXPENSE'!E320)","v":""},{"$f":"T('3 INCOME & EXPENSE'!G320)","v":""},{"$f":"'3 INCOME & EXPENSE'!M320","v":{"v":0,"d":"0.0"}},{"$f":"'3 INCOME & EXPENSE'!N320","v":{"v":0,"d":"$0.00"}},{"$f":"'3 INCOME & EXPENSE'!O320","v":{"v":0,"d":"$0.00"}},726,{"$f":"'3 INCOME & EXPENSE'!X320","v":101},101000,101101,0]
[null,null,{"$f":"IF('3 INCOME & EXPENSE'!E321=0,\"\",'3 INCOME & EXPENSE'!E321)","v":""},{"$f":"T('3 INCOME & EXPENSE'!G321)","v":""},{"$f":"'3 INCOME & EXPENSE'!M321","v":{"v":0,"d":"0.0"}},{"$f":"'3 INCOME & EXPENSE'!N321","v":{"v":0,"d":"$0.00"}},{"$f":"'3 INCOME & EXPENSE'!O321","v":{"v":0,"d":"$0.00"}},727,{"$f":"'3 INCOME & EXPENSE'!X321","v":101},101000,101101,0]
[null,null,{"$f":"IF('3 INCOME & EXPENSE'!E322=0,\"\",'3 INCOME & EXPENSE'!E322)","v":""},{"$f":"T('3 INCOME & EXPENSE'!G322)","v":""},{"$f":"'3 INCOME & EXPENSE'!M322","v":{"v":0,"d":"0.0"}},{"$f":"'3 INCOME & EXPENSE'!N322","v":{"v":0,"d":"$0.00"}},{"$f":"'3 INCOME & EXPENSE'!O322","v":{"v":0,"d":"$0.00"}},728,{"$f":"'3 INCOME & EXPENSE'!X322","v":101},101000,101101,0]
[null,null,{"$f":"IF('3 INCOME & EXPENSE'!E323=0,\"\",'3 INCOME & EXPENSE'!E323)","v":""},{"$f":"T('3 INCOME & EXPENSE'!G323)","v":""},{"$f":"'3 INCOME & EXPENSE'!M323","v":{"v":0,"d":"0.0"}},{"$f":"'3 INCOME & EXPENSE'!N323","v":{"v":0,"d":"$0.00"}},{"$f":"'3 INCOME & EXPENSE'!O323","v":{"v":0,"d":"$0.00"}},729,{"$f":"'3 INCOME & EXPENSE'!X323","v":101},101000,101101,0]
[null,null,{"$f":"IF('3 INCOME & EXPENSE'!E324=0,\"\",'3 INCOME & EXPENSE'!E324)","v":""},{"$f":"T('3 INCOME & EXPENSE'!G324)","v":""},{"$f":"'3 INCOME & EXPENSE'!M324","v":{"v":0,"d":"0.0"}},{"$f":"'3 INCOME & EXPENSE'!N324","v":{"v":0,"d":"$0.00"}},{"$f":"'3 INCOME & EXPENSE'!O324","v":{"v":0,"d":"$0.00"}},730,{"$f":"'3 INCOME & EXPENSE'!X324","v":101},101000,101101,0]
[null,null,{"$f":"IF('3 INCOME & EXPENSE'!E325=0,\"\",'3 INCOME & EXPENSE'!E325)","v":""},{"$f":"T('3 INCOME & EXPENSE'!G325)","v":""},{"$f":"'3 INCOME & EXPENSE'!M325","v":{"v":0,"d":"0.0"}},{"$f":"'3 INCOME & EXPENSE'!N325","v":{"v":0,"d":"$0.00"}},{"$f":"'3 INCOME & EXPENSE'!O325","v":{"v":0,"d":"$0.00"}},731,{"$f":"'3 INCOME & EXPENSE'!X325","v":101},101000,101101,0]
[null,null,{"$f":"IF('3 INCOME & EXPENSE'!E326=0,\"\",'3 INCOME & EXPENSE'!E326)","v":""},{"$f":"T('3 INCOME & EXPENSE'!G326)","v":""},{"$f":"'3 INCOME & EXPENSE'!M326","v":{"v":0,"d":"0.0"}},{"$f":"'3 INCOME & EXPENSE'!N326","v":{"v":0,"d":"$0.00"}},{"$f":"'3 INCOME & EXPENSE'!O326","v":{"v":0,"d":"$0.00"}},732,{"$f":"'3 INCOME & EXPENSE'!X326","v":101},101000,101101,0]
[null,null,{"$f":"IF('3 INCOME & EXPENSE'!E327=0,\"\",'3 INCOME & EXPENSE'!E327)","v":""},{"$f":"T('3 INCOME & EXPENSE'!G327)","v":""},{"$f":"'3 INCOME & EXPENSE'!M327","v":{"v":0,"d":"0.0"}},{"$f":"'3 INCOME & EXPENSE'!N327","v":{"v":0,"d":"$0.00"}},{"$f":"'3 INCOME & EXPENSE'!O327","v":{"v":0,"d":"$0.00"}},733,{"$f":"'3 INCOME & EXPENSE'!X327","v":101},101000,101101,0]
[null,null,{"$f":"IF('3 INCOME & EXPENSE'!E328=0,\"\",'3 INCOME & EXPENSE'!E328)","v":""},{"$f":"T('3 INCOME & EXPENSE'!G328)","v":""},{"$f":"'3 INCOME & EXPENSE'!M328","v":{"v":0,"d":"0.0"}},{"$f":"'3 INCOME & EXPENSE'!N328","v":{"v":0,"d":"$0.00"}},{"$f":"'3 INCOME & EXPENSE'!O328","v":{"v":0,"d":"$0.00"}},734,{"$f":"'3 INCOME & EXPENSE'!X328","v":101},101000,101101,0]
[null,null,{"$f":"IF('3 INCOME & EXPENSE'!E329=0,\"\",'3 INCOME & EXPENSE'!E329)","v":""},{"$f":"T('3 INCOME & EXPENSE'!G329)","v":""},{"$f":"'3 INCOME & EXPENSE'!M329","v":{"v":0,"d":"0.0"}},{"$f":"'3 INCOME & EXPENSE'!N329","v":{"v":0,"d":"$0.00"}},{"$f":"'3 INCOME & EXPENSE'!O329","v":{"v":0,"d":"$0.00"}},735,{"$f":"'3 INCOME & EXPENSE'!X329","v":101},101000,101101,0]
[null,null,{"$f":"IF('3 INCOME & EXPENSE'!E330=0,\"\",'3 INCOME & EXPENSE'!E330)","v":""},{"$f":"T('3 INCOME & EXPENSE'!G330)","v":""},{"$f":"'3 INCOME & EXPENSE'!M330","v":{"v":0,"d":"0.0"}},{"$f":"'3 INCOME & EXPENSE'!N330","v":{"v":0,"d":"$0.00"}},{"$f":"'3 INCOME & EXPENSE'!O330","v":{"v":0,"d":"$0.00"}},736,{"$f":"'3 INCOME & EXPENSE'!X330","v":101},101000,101101,0]
[null,null,{"$f":"IF('3 INCOME & EXPENSE'!E331=0,\"\",'3 INCOME & EXPENSE'!E331)","v":""},{"$f":"T('3 INCOME & EXPENSE'!G331)","v":""},{"$f":"'3 INCOME & EXPENSE'!M331","v":{"v":0,"d":"0.0"}},{"$f":"'3 INCOME & EXPENSE'!N331","v":{"v":0,"d":"$0.00"}},{"$f":"'3 INCOME & EXPENSE'!O331","v":{"v":0,"d":"$0.00"}},737,{"$f":"'3 INCOME & EXPENSE'!X331","v":101},101000,101101,0]
[null,null,{"$f":"IF('3 INCOME & EXPENSE'!E332=0,\"\",'3 INCOME & EXPENSE'!E332)","v":""},{"$f":"T('3 INCOME & EXPENSE'!G332)","v":""},{"$f":"'3 INCOME & EXPENSE'!M332","v":{"v":0,"d":"0.0"}},{"$f":"'3 INCOME & EXPENSE'!N332","v":{"v":0,"d":"$0.00"}},{"$f":"'3 INCOME & EXPENSE'!O332","v":{"v":0,"d":"$0.00"}},738,{"$f":"'3 INCOME & EXPENSE'!X332","v":101},101000,101101,0]
[null,null,{"$f":"IF('3 INCOME & EXPENSE'!E333=0,\"\",'3 INCOME & EXPENSE'!E333)","v":""},{"$f":"T('3 INCOME & EXPENSE'!G333)","v":""},{"$f":"'3 INCOME & EXPENSE'!M333","v":{"v":0,"d":"0.0"}},{"$f":"'3 INCOME & EXPENSE'!N333","v":{"v":0,"d":"$0.00"}},{"$f":"'3 INCOME & EXPENSE'!O333","v":{"v":0,"d":"$0.00"}},739,{"$f":"'3 INCOME & EXPENSE'!X333","v":101},101000,101101,0]
[null,null,{"$f":"IF('3 INCOME & EXPENSE'!E334=0,\"\",'3 INCOME & EXPENSE'!E334)","v":""},{"$f":"T('3 INCOME & EXPENSE'!G334)","v":""},{"$f":"'3 INCOME & EXPENSE'!M334","v":{"v":0,"d":"0.0"}},{"$f":"'3 INCOME & EXPENSE'!N334","v":{"v":0,"d":"$0.00"}},{"$f":"'3 INCOME & EXPENSE'!O334","v":{"v":0,"d":"$0.00"}},740,{"$f":"'3 INCOME & EXPENSE'!X334","v":101},{"$f":"VLOOKUP(I752,$I$1186:$J$1287,2)","v":101000},101101,{"$f":"K752*E752","v":0}]
[null,null,{"$f":"IF('3 INCOME & EXPENSE'!E335=0,\"\",'3 INCOME & EXPENSE'!E335)","v":""},{"$f":"T('3 INCOME & EXPENSE'!G335)","v":""},{"$f":"'3 INCOME & EXPENSE'!M335","v":{"v":0,"d":"0.0"}},{"$f":"'3 INCOME & EXPENSE'!N335","v":{"v":0,"d":"$0.00"}},{"$f":"'3 INCOME & EXPENSE'!O335","v":{"v":0,"d":"$0.00"}},741,{"$f":"'3 INCOME & EXPENSE'!X335","v":101},101000,101101,0]
[null,null,{"$f":"IF('3 INCOME & EXPENSE'!E336=0,\"\",'3 INCOME & EXPENSE'!E336)","v":""},{"$f":"T('3 INCOME & EXPENSE'!G336)","v":""},{"$f":"'3 INCOME & EXPENSE'!M336","v":{"v":0,"d":"0.0"}},{"$f":"'3 INCOME & EXPENSE'!N336","v":{"v":0,"d":"$0.00"}},{"$f":"'3 INCOME & EXPENSE'!O336","v":{"v":0,"d":"$0.00"}},742,{"$f":"'3 INCOME & EXPENSE'!X336","v":101},101000,101101,0]
[null,null,{"$f":"IF('3 INCOME & EXPENSE'!E337=0,\"\",'3 INCOME & EXPENSE'!E337)","v":""},{"$f":"T('3 INCOME & EXPENSE'!G337)","v":""},{"$f":"'3 INCOME & EXPENSE'!M337","v":{"v":0,"d":"0.0"}},{"$f":"'3 INCOME & EXPENSE'!N337","v":{"v":0,"d":"$0.00"}},{"$f":"'3 INCOME & EXPENSE'!O337","v":{"v":0,"d":"$0.00"}},743,{"$f":"'3 INCOME & EXPENSE'!X337","v":101},101000,101101,0]
[null,null,{"$f":"IF('3 INCOME & EXPENSE'!E338=0,\"\",'3 INCOME & EXPENSE'!E338)","v":""},{"$f":"T('3 INCOME & EXPENSE'!G338)","v":""},{"$f":"'3 INCOME & EXPENSE'!M338","v":{"v":0,"d":"0.0"}},{"$f":"'3 INCOME & EXPENSE'!N338","v":{"v":0,"d":"$0.00"}},{"$f":"'3 INCOME & EXPENSE'!O338","v":{"v":0,"d":"$0.00"}},744,{"$f":"'3 INCOME & EXPENSE'!X338","v":101},101000,101101,0]
[null,null,{"$f":"IF('3 INCOME & EXPENSE'!E339=0,\"\",'3 INCOME & EXPENSE'!E339)","v":""},{"$f":"T('3 INCOME & EXPENSE'!G339)","v":""},{"$f":"'3 INCOME & EXPENSE'!M339","v":{"v":0,"d":"0.0"}},{"$f":"'3 INCOME & EXPENSE'!N339","v":{"v":0,"d":"$0.00"}},{"$f":"'3 INCOME & EXPENSE'!O339","v":{"v":0,"d":"$0.00"}},745,{"$f":"'3 INCOME & EXPENSE'!X339","v":101},101000,101101,0]
[null,null,{"$f":"IF('3 INCOME & EXPENSE'!E340=0,\"\",'3 INCOME & EXPENSE'!E340)","v":""},{"$f":"T('3 INCOME & EXPENSE'!G340)","v":""},{"$f":"'3 INCOME & EXPENSE'!M340","v":{"v":0,"d":"0.0"}},{"$f":"'3 INCOME & EXPENSE'!N340","v":{"v":0,"d":"$0.00"}},{"$f":"'3 INCOME & EXPENSE'!O340","v":{"v":0,"d":"$0.00"}},746,{"$f":"'3 INCOME & EXPENSE'!X340","v":101},101000,101101,0]
[null,null,{"$f":"IF('3 INCOME & EXPENSE'!E341=0,\"\",'3 INCOME & EXPENSE'!E341)","v":""},{"$f":"T('3 INCOME & EXPENSE'!G341)","v":""},{"$f":"'3 INCOME & EXPENSE'!M341","v":{"v":0,"d":"0.0"}},{"$f":"'3 INCOME & EXPENSE'!N341","v":{"v":0,"d":"$0.00"}},{"$f":"'3 INCOME & EXPENSE'!O341","v":{"v":0,"d":"$0.00"}},747,{"$f":"'3 INCOME & EXPENSE'!X341","v":101},101000,101101,0]
[null,null,{"$f":"IF('3 INCOME & EXPENSE'!E342=0,\"\",'3 INCOME & EXPENSE'!E342)","v":""},{"$f":"T('3 INCOME & EXPENSE'!G342)","v":""},{"$f":"'3 INCOME & EXPENSE'!M342","v":{"v":0,"d":"0.0"}},{"$f":"'3 INCOME & EXPENSE'!N342","v":{"v":0,"d":"$0.00"}},{"$f":"'3 INCOME & EXPENSE'!O342","v":{"v":0,"d":"$0.00"}},748,{"$f":"'3 INCOME & EXPENSE'!X342","v":101},101000,101101,0]
[null,null,{"$f":"IF('3 INCOME & EXPENSE'!E343=0,\"\",'3 INCOME & EXPENSE'!E343)","v":""},{"$f":"T('3 INCOME & EXPENSE'!G343)","v":""},{"$f":"'3 INCOME & EXPENSE'!M343","v":{"v":0,"d":"0.0"}},{"$f":"'3 INCOME & EXPENSE'!N343","v":{"v":0,"d":"$0.00"}},{"$f":"'3 INCOME & EXPENSE'!O343","v":{"v":0,"d":"$0.00"}},749,{"$f":"'3 INCOME & EXPENSE'!X343","v":101},101000,101101,0]
[null,null,{"$f":"IF('3 INCOME & EXPENSE'!E344=0,\"\",'3 INCOME & EXPENSE'!E344)","v":""},{"$f":"T('3 INCOME & EXPENSE'!G344)","v":""},{"$f":"'3 INCOME & EXPENSE'!M344","v":{"v":0,"d":"0.0"}},{"$f":"'3 INCOME & EXPENSE'!N344","v":{"v":0,"d":"$0.00"}},{"$f":"'3 INCOME & EXPENSE'!O344","v":{"v":0,"d":"$0.00"}},750,{"$f":"'3 INCOME & EXPENSE'!X344","v":101},101000,101101,0]
[null,null,{"$f":"IF('3 INCOME & EXPENSE'!E345=0,\"\",'3 INCOME & EXPENSE'!E345)","v":""},{"$f":"T('3 INCOME & EXPENSE'!G345)","v":""},{"$f":"'3 INCOME & EXPENSE'!M345","v":{"v":0,"d":"0.0"}},{"$f":"'3 INCOME & EXPENSE'!N345","v":{"v":0,"d":"$0.00"}},{"$f":"'3 INCOME & EXPENSE'!O345","v":{"v":0,"d":"$0.00"}},751,{"$f":"'3 INCOME & EXPENSE'!X345","v":101},101000,101101,0]
[null,null,{"$f":"IF('3 INCOME & EXPENSE'!E346=0,\"\",'3 INCOME & EXPENSE'!E346)","v":""},{"$f":"T('3 INCOME & EXPENSE'!G346)","v":""},{"$f":"'3 INCOME & EXPENSE'!M346","v":{"v":0,"d":"0.0"}},{"$f":"'3 INCOME & EXPENSE'!N346","v":{"v":0,"d":"$0.00"}},{"$f":"'3 INCOME & EXPENSE'!O346","v":{"v":0,"d":"$0.00"}},752,{"$f":"'3 INCOME & EXPENSE'!X346","v":101},101000,101101,0]
[null,null,{"$f":"IF('3 INCOME & EXPENSE'!E347=0,\"\",'3 INCOME & EXPENSE'!E347)","v":""},{"$f":"T('3 INCOME & EXPENSE'!G347)","v":""},{"$f":"'3 INCOME & EXPENSE'!M347","v":{"v":0,"d":"0.0"}},{"$f":"'3 INCOME & EXPENSE'!N347","v":{"v":0,"d":"$0.00"}},{"$f":"'3 INCOME & EXPENSE'!O347","v":{"v":0,"d":"$0.00"}},753,{"$f":"'3 INCOME & EXPENSE'!X347","v":101},101000,101101,0]
[null,null,{"$f":"IF('3 INCOME & EXPENSE'!E348=0,\"\",'3 INCOME & EXPENSE'!E348)","v":""},{"$f":"T('3 INCOME & EXPENSE'!G348)","v":""},{"$f":"'3 INCOME & EXPENSE'!M348","v":{"v":0,"d":"0.0"}},{"$f":"'3 INCOME & EXPENSE'!N348","v":{"v":0,"d":"$0.00"}},{"$f":"'3 INCOME & EXPENSE'!O348","v":{"v":0,"d":"$0.00"}},754,{"$f":"'3 INCOME & EXPENSE'!X348","v":101},101000,101101,0]
[null,null,{"$f":"IF('3 INCOME & EXPENSE'!E349=0,\"\",'3 INCOME & EXPENSE'!E349)","v":""},{"$f":"T('3 INCOME & EXPENSE'!G349)","v":""},{"$f":"'3 INCOME & EXPENSE'!M349","v":{"v":0,"d":"0.0"}},{"$f":"'3 INCOME & EXPENSE'!N349","v":{"v":0,"d":"$0.00"}},{"$f":"'3 INCOME & EXPENSE'!O349","v":{"v":0,"d":"$0.00"}},755,{"$f":"'3 INCOME & EXPENSE'!X349","v":101},101000,101101,0]
[null,null,{"$f":"IF('3 INCOME & EXPENSE'!E350=0,\"\",'3 INCOME & EXPENSE'!E350)","v":""},{"$f":"T('3 INCOME & EXPENSE'!G350)","v":""},{"$f":"'3 INCOME & EXPENSE'!M350","v":{"v":0,"d":"0.0"}},{"$f":"'3 INCOME & EXPENSE'!N350","v":{"v":0,"d":"$0.00"}},{"$f":"'3 INCOME & EXPENSE'!O350","v":{"v":0,"d":"$0.00"}},756,{"$f":"'3 INCOME & EXPENSE'!X350","v":101},101000,101101,0]
[null,null,{"$f":"IF('3 INCOME & EXPENSE'!E351=0,\"\",'3 INCOME & EXPENSE'!E351)","v":""},{"$f":"T('3 INCOME & EXPENSE'!G351)","v":""},{"$f":"'3 INCOME & EXPENSE'!M351","v":{"v":0,"d":"0.0"}},{"$f":"'3 INCOME & EXPENSE'!N351","v":{"v":0,"d":"$0.00"}},{"$f":"'3 INCOME & EXPENSE'!O351","v":{"v":0,"d":"$0.00"}},757,{"$f":"'3 INCOME & EXPENSE'!X351","v":101},101000,{"$f":"I769+J769","v":101101},0]
[null,null,{"$f":"IF('3 INCOME & EXPENSE'!E352=0,\"\",'3 INCOME & EXPENSE'!E352)","v":""},{"$f":"T('3 INCOME & EXPENSE'!G352)","v":""},{"$f":"'3 INCOME & EXPENSE'!M352","v":{"v":0,"d":"0.0"}},{"$f":"'3 INCOME & EXPENSE'!N352","v":{"v":0,"d":"$0.00"}},{"$f":"'3 INCOME & EXPENSE'!O352","v":{"v":0,"d":"$0.00"}},758,{"$f":"'3 INCOME & EXPENSE'!X352","v":101},101000,101101,0]
[null,null,{"$f":"IF('3 INCOME & EXPENSE'!E353=0,\"\",'3 INCOME & EXPENSE'!E353)","v":""},{"$f":"T('3 INCOME & EXPENSE'!G353)","v":""},{"$f":"'3 INCOME & EXPENSE'!M353","v":{"v":0,"d":"0.0"}},{"$f":"'3 INCOME & EXPENSE'!N353","v":{"v":0,"d":"$0.00"}},{"$f":"'3 INCOME & EXPENSE'!O353","v":{"v":0,"d":"$0.00"}},759,{"$f":"'3 INCOME & EXPENSE'!X353","v":101},101000,101101,0]
[null,null,{"$f":"IF('3 INCOME & EXPENSE'!E354=0,\"\",'3 INCOME & EXPENSE'!E354)","v":""},{"$f":"T('3 INCOME & EXPENSE'!G354)","v":""},{"$f":"'3 INCOME & EXPENSE'!M354","v":{"v":0,"d":"0.0"}},{"$f":"'3 INCOME & EXPENSE'!N354","v":{"v":0,"d":"$0.00"}},{"$f":"'3 INCOME & EXPENSE'!O354","v":{"v":0,"d":"$0.00"}},760,{"$f":"'3 INCOME & EXPENSE'!X354","v":101},101000,101101,0]
[null,null,{"$f":"IF('3 INCOME & EXPENSE'!E355=0,\"\",'3 INCOME & EXPENSE'!E355)","v":""},{"$f":"T('3 INCOME & EXPENSE'!G355)","v":""},{"$f":"'3 INCOME & EXPENSE'!M355","v":{"v":0,"d":"0.0"}},{"$f":"'3 INCOME & EXPENSE'!N355","v":{"v":0,"d":"$0.00"}},{"$f":"'3 INCOME & EXPENSE'!O355","v":{"v":0,"d":"$0.00"}},761,{"$f":"'3 INCOME & EXPENSE'!X355","v":101},101000,101101,0]
[null,null,{"$f":"IF('3 INCOME & EXPENSE'!E356=0,\"\",'3 INCOME & EXPENSE'!E356)","v":""},{"$f":"T('3 INCOME & EXPENSE'!G356)","v":""},{"$f":"'3 INCOME & EXPENSE'!M356","v":{"v":0,"d":"0.0"}},{"$f":"'3 INCOME & EXPENSE'!N356","v":{"v":0,"d":"$0.00"}},{"$f":"'3 INCOME & EXPENSE'!O356","v":{"v":0,"d":"$0.00"}},762,{"$f":"'3 INCOME & EXPENSE'!X356","v":101},101000,101101,0]
[null,null,{"$f":"IF('3 INCOME & EXPENSE'!E357=0,\"\",'3 INCOME & EXPENSE'!E357)","v":""},{"$f":"T('3 INCOME & EXPENSE'!G357)","v":""},{"$f":"'3 INCOME & EXPENSE'!M357","v":{"v":0,"d":"0.0"}},{"$f":"'3 INCOME & EXPENSE'!N357","v":{"v":0,"d":"$0.00"}},{"$f":"'3 INCOME & EXPENSE'!O357","v":{"v":0,"d":"$0.00"}},763,{"$f":"'3 INCOME & EXPENSE'!X357","v":101},101000,101101,0]
[null,null,{"$f":"IF('3 INCOME & EXPENSE'!E358=0,\"\",'3 INCOME & EXPENSE'!E358)","v":""},{"$f":"T('3 INCOME & EXPENSE'!G358)","v":""},{"$f":"'3 INCOME & EXPENSE'!M358","v":{"v":0,"d":"0.0"}},{"$f":"'3 INCOME & EXPENSE'!N358","v":{"v":0,"d":"$0.00"}},{"$f":"'3 INCOME & EXPENSE'!O358","v":{"v":0,"d":"$0.00"}},764,{"$f":"'3 INCOME & EXPENSE'!X358","v":101},101000,101101,0]
[null,null,{"$f":"IF('3 INCOME & EXPENSE'!E359=0,\"\",'3 INCOME & EXPENSE'!E359)","v":""},{"$f":"T('3 INCOME & EXPENSE'!G359)","v":""},{"$f":"'3 INCOME & EXPENSE'!M359","v":{"v":0,"d":"0.0"}},{"$f":"'3 INCOME & EXPENSE'!N359","v":{"v":0,"d":"$0.00"}},{"$f":"'3 INCOME & EXPENSE'!O359","v":{"v":0,"d":"$0.00"}},765,{"$f":"'3 INCOME & EXPENSE'!X359","v":101},101000,101101,0]
[null,null,{"$f":"IF('3 INCOME & EXPENSE'!E360=0,\"\",'3 INCOME & EXPENSE'!E360)","v":""},{"$f":"T('3 INCOME & EXPENSE'!G360)","v":""},{"$f":"'3 INCOME & EXPENSE'!M360","v":{"v":0,"d":"0.0"}},{"$f":"'3 INCOME & EXPENSE'!N360","v":{"v":0,"d":"$0.00"}},{"$f":"'3 INCOME & EXPENSE'!O360","v":{"v":0,"d":"$0.00"}},766,{"$f":"'3 INCOME & EXPENSE'!X360","v":101},101000,101101,0]
[null,null,{"$f":"IF('3 INCOME & EXPENSE'!E361=0,\"\",'3 INCOME & EXPENSE'!E361)","v":""},{"$f":"T('3 INCOME & EXPENSE'!G361)","v":""},{"$f":"'3 INCOME & EXPENSE'!M361","v":{"v":0,"d":"0.0"}},{"$f":"'3 INCOME & EXPENSE'!N361","v":{"v":0,"d":"$0.00"}},{"$f":"'3 INCOME & EXPENSE'!O361","v":{"v":0,"d":"$0.00"}},767,{"$f":"'3 INCOME & EXPENSE'!X361","v":101},101000,101101,0]
[null,null,{"$f":"IF('3 INCOME & EXPENSE'!E362=0,\"\",'3 INCOME & EXPENSE'!E362)","v":""},{"$f":"T('3 INCOME & EXPENSE'!G362)","v":""},{"$f":"'3 INCOME & EXPENSE'!M362","v":{"v":0,"d":"0.0"}},{"$f":"'3 INCOME & EXPENSE'!N362","v":{"v":0,"d":"$0.00"}},{"$f":"'3 INCOME & EXPENSE'!O362","v":{"v":0,"d":"$0.00"}},768,{"$f":"'3 INCOME & EXPENSE'!X362","v":101},101000,101101,0]
[null,null,{"$f":"IF('3 INCOME & EXPENSE'!E363=0,\"\",'3 INCOME & EXPENSE'!E363)","v":""},{"$f":"T('3 INCOME & EXPENSE'!G363)","v":""},{"$f":"'3 INCOME & EXPENSE'!M363","v":{"v":0,"d":"0.0"}},{"$f":"'3 INCOME & EXPENSE'!N363","v":{"v":0,"d":"$0.00"}},{"$f":"'3 INCOME & EXPENSE'!O363","v":{"v":0,"d":"$0.00"}},769,{"$f":"'3 INCOME & EXPENSE'!X363","v":101},101000,101101,0]
[null,null,{"$f":"IF('3 INCOME & EXPENSE'!E364=0,\"\",'3 INCOME & EXPENSE'!E364)","v":""},{"$f":"T('3 INCOME & EXPENSE'!G364)","v":""},{"$f":"'3 INCOME & EXPENSE'!M364","v":{"v":0,"d":"0.0"}},{"$f":"'3 INCOME & EXPENSE'!N364","v":{"v":0,"d":"$0.00"}},{"$f":"'3 INCOME & EXPENSE'!O364","v":{"v":0,"d":"$0.00"}},770,{"$f":"'3 INCOME & EXPENSE'!X364","v":101},101000,101101,0]
[null,null,{"$f":"IF('3 INCOME & EXPENSE'!E365=0,\"\",'3 INCOME & EXPENSE'!E365)","v":""},{"$f":"T('3 INCOME & EXPENSE'!G365)","v":""},{"$f":"'3 INCOME & EXPENSE'!M365","v":{"v":0,"d":"0.0"}},{"$f":"'3 INCOME & EXPENSE'!N365","v":{"v":0,"d":"$0.00"}},{"$f":"'3 INCOME & EXPENSE'!O365","v":{"v":0,"d":"$0.00"}},771,{"$f":"'3 INCOME & EXPENSE'!X365","v":101},101000,101101,0]
[null,null,{"$f":"IF('3 INCOME & EXPENSE'!E366=0,\"\",'3 INCOME & EXPENSE'!E366)","v":""},{"$f":"T('3 INCOME & EXPENSE'!G366)","v":""},{"$f":"'3 INCOME & EXPENSE'!M366","v":{"v":0,"d":"0.0"}},{"$f":"'3 INCOME & EXPENSE'!N366","v":{"v":0,"d":"$0.00"}},{"$f":"'3 INCOME & EXPENSE'!O366","v":{"v":0,"d":"$0.00"}},772,{"$f":"'3 INCOME & EXPENSE'!X366","v":101},101000,101101,0]
[null,null,{"$f":"IF('3 INCOME & EXPENSE'!E367=0,\"\",'3 INCOME & EXPENSE'!E367)","v":""},{"$f":"T('3 INCOME & EXPENSE'!G367)","v":""},{"$f":"'3 INCOME & EXPENSE'!M367","v":{"v":0,"d":"0.0"}},{"$f":"'3 INCOME & EXPENSE'!N367","v":{"v":0,"d":"$0.00"}},{"$f":"'3 INCOME & EXPENSE'!O367","v":{"v":0,"d":"$0.00"}},773,{"$f":"'3 INCOME & EXPENSE'!X367","v":101},101000,101101,0]
[null,null,{"$f":"IF('3 INCOME & EXPENSE'!E368=0,\"\",'3 INCOME & EXPENSE'!E368)","v":""},{"$f":"T('3 INCOME & EXPENSE'!G368)","v":""},{"$f":"'3 INCOME & EXPENSE'!M368","v":{"v":0,"d":"0.0"}},{"$f":"'3 INCOME & EXPENSE'!N368","v":{"v":0,"d":"$0.00"}},{"$f":"'3 INCOME & EXPENSE'!O368","v":{"v":0,"d":"$0.00"}},774,{"$f":"'3 INCOME & EXPENSE'!X368","v":101},101000,101101,0]
[null,null,{"$f":"IF('3 INCOME & EXPENSE'!E369=0,\"\",'3 INCOME & EXPENSE'!E369)","v":""},{"$f":"T('3 INCOME & EXPENSE'!G369)","v":""},{"$f":"'3 INCOME & EXPENSE'!M369","v":{"v":0,"d":"0.0"}},{"$f":"'3 INCOME & EXPENSE'!N369","v":{"v":0,"d":"$0.00"}},{"$f":"'3 INCOME & EXPENSE'!O369","v":{"v":0,"d":"$0.00"}},775,{"$f":"'3 INCOME & EXPENSE'!X369","v":101},101000,101101,0]
[null,null,{"$f":"IF('3 INCOME & EXPENSE'!E370=0,\"\",'3 INCOME & EXPENSE'!E370)","v":""},{"$f":"T('3 INCOME & EXPENSE'!G370)","v":""},{"$f":"'3 INCOME & EXPENSE'!M370","v":{"v":0,"d":"0.0"}},{"$f":"'3 INCOME & EXPENSE'!N370","v":{"v":0,"d":"$0.00"}},{"$f":"'3 INCOME & EXPENSE'!O370","v":{"v":0,"d":"$0.00"}},776,{"$f":"'3 INCOME & EXPENSE'!X370","v":101},101000,101101,0]
[null,null,{"$f":"IF('3 INCOME & EXPENSE'!E371=0,\"\",'3 INCOME & EXPENSE'!E371)","v":""},{"$f":"T('3 INCOME & EXPENSE'!G371)","v":""},{"$f":"'3 INCOME & EXPENSE'!M371","v":{"v":0,"d":"0.0"}},{"$f":"'3 INCOME & EXPENSE'!N371","v":{"v":0,"d":"$0.00"}},{"$f":"'3 INCOME & EXPENSE'!O371","v":{"v":0,"d":"$0.00"}},777,{"$f":"'3 INCOME & EXPENSE'!X371","v":101},101000,101101,0]
[null,null,{"$f":"IF('3 INCOME & EXPENSE'!E372=0,\"\",'3 INCOME & EXPENSE'!E372)","v":""},{"$f":"T('3 INCOME & EXPENSE'!G372)","v":""},{"$f":"'3 INCOME & EXPENSE'!M372","v":{"v":0,"d":"0.0"}},{"$f":"'3 INCOME & EXPENSE'!N372","v":{"v":0,"d":"$0.00"}},{"$f":"'3 INCOME & EXPENSE'!O372","v":{"v":0,"d":"$0.00"}},778,{"$f":"'3 INCOME & EXPENSE'!X372","v":101},101000,101101,0]
[null,null,{"$f":"IF('3 INCOME & EXPENSE'!E373=0,\"\",'3 INCOME & EXPENSE'!E373)","v":""},{"$f":"T('3 INCOME & EXPENSE'!G373)","v":""},{"$f":"'3 INCOME & EXPENSE'!M373","v":{"v":0,"d":"0.0"}},{"$f":"'3 INCOME & EXPENSE'!N373","v":{"v":0,"d":"$0.00"}},{"$f":"'3 INCOME & EXPENSE'!O373","v":{"v":0,"d":"$0.00"}},779,{"$f":"'3 INCOME & EXPENSE'!X373","v":101},101000,101101,0]
[null,null,{"$f":"IF('3 INCOME & EXPENSE'!E374=0,\"\",'3 INCOME & EXPENSE'!E374)","v":""},{"$f":"T('3 INCOME & EXPENSE'!G374)","v":""},{"$f":"'3 INCOME & EXPENSE'!M374","v":{"v":0,"d":"0.0"}},{"$f":"'3 INCOME & EXPENSE'!N374","v":{"v":0,"d":"$0.00"}},{"$f":"'3 INCOME & EXPENSE'!O374","v":{"v":0,"d":"$0.00"}},780,{"$f":"'3 INCOME & EXPENSE'!X374","v":101},101000,101101,0]
[null,null,{"$f":"IF('3 INCOME & EXPENSE'!E375=0,\"\",'3 INCOME & EXPENSE'!E375)","v":""},{"$f":"T('3 INCOME & EXPENSE'!G375)","v":""},{"$f":"'3 INCOME & EXPENSE'!M375","v":{"v":0,"d":"0.0"}},{"$f":"'3 INCOME & EXPENSE'!N375","v":{"v":0,"d":"$0.00"}},{"$f":"'3 INCOME & EXPENSE'!O375","v":{"v":0,"d":"$0.00"}},781,{"$f":"'3 INCOME & EXPENSE'!X375","v":101},101000,101101,0]
[null,null,{"$f":"IF('3 INCOME & EXPENSE'!E376=0,\"\",'3 INCOME & EXPENSE'!E376)","v":""},{"$f":"T('3 INCOME & EXPENSE'!G376)","v":""},{"$f":"'3 INCOME & EXPENSE'!M376","v":{"v":0,"d":"0.0"}},{"$f":"'3 INCOME & EXPENSE'!N376","v":{"v":0,"d":"$0.00"}},{"$f":"'3 INCOME & EXPENSE'!O376","v":{"v":0,"d":"$0.00"}},782,{"$f":"'3 INCOME & EXPENSE'!X376","v":101},101000,101101,0]
[null,null,{"$f":"IF('3 INCOME & EXPENSE'!E377=0,\"\",'3 INCOME & EXPENSE'!E377)","v":""},{"$f":"T('3 INCOME & EXPENSE'!G377)","v":""},{"$f":"'3 INCOME & EXPENSE'!M377","v":{"v":0,"d":"0.0"}},{"$f":"'3 INCOME & EXPENSE'!N377","v":{"v":0,"d":"$0.00"}},{"$f":"'3 INCOME & EXPENSE'!O377","v":{"v":0,"d":"$0.00"}},783,{"$f":"'3 INCOME & EXPENSE'!X377","v":101},101000,101101,0]
[null,null,{"$f":"IF('3 INCOME & EXPENSE'!E378=0,\"\",'3 INCOME & EXPENSE'!E378)","v":""},{"$f":"T('3 INCOME & EXPENSE'!G378)","v":""},{"$f":"'3 INCOME & EXPENSE'!M378","v":{"v":0,"d":"0.0"}},{"$f":"'3 INCOME & EXPENSE'!N378","v":{"v":0,"d":"$0.00"}},{"$f":"'3 INCOME & EXPENSE'!O378","v":{"v":0,"d":"$0.00"}},784,{"$f":"'3 INCOME & EXPENSE'!X378","v":101},101000,101101,0]
[null,null,{"$f":"IF('3 INCOME & EXPENSE'!E379=0,\"\",'3 INCOME & EXPENSE'!E379)","v":""},{"$f":"T('3 INCOME & EXPENSE'!G379)","v":""},{"$f":"'3 INCOME & EXPENSE'!M379","v":{"v":0,"d":"0.0"}},{"$f":"'3 INCOME & EXPENSE'!N379","v":{"v":0,"d":"$0.00"}},{"$f":"'3 INCOME & EXPENSE'!O379","v":{"v":0,"d":"$0.00"}},785,{"$f":"'3 INCOME & EXPENSE'!X379","v":101},101000,101101,0]
[null,null,{"$f":"IF('3 INCOME & EXPENSE'!E380=0,\"\",'3 INCOME & EXPENSE'!E380)","v":""},{"$f":"T('3 INCOME & EXPENSE'!G380)","v":""},{"$f":"'3 INCOME & EXPENSE'!M380","v":{"v":0,"d":"0.0"}},{"$f":"'3 INCOME & EXPENSE'!N380","v":{"v":0,"d":"$0.00"}},{"$f":"'3 INCOME & EXPENSE'!O380","v":{"v":0,"d":"$0.00"}},786,{"$f":"'3 INCOME & EXPENSE'!X380","v":101},101000,101101,0]
[null,null,{"$f":"IF('3 INCOME & EXPENSE'!E381=0,\"\",'3 INCOME & EXPENSE'!E381)","v":""},{"$f":"T('3 INCOME & EXPENSE'!G381)","v":""},{"$f":"'3 INCOME & EXPENSE'!M381","v":{"v":0,"d":"0.0"}},{"$f":"'3 INCOME & EXPENSE'!N381","v":{"v":0,"d":"$0.00"}},{"$f":"'3 INCOME & EXPENSE'!O381","v":{"v":0,"d":"$0.00"}},787,{"$f":"'3 INCOME & EXPENSE'!X381","v":101},101000,101101,0]
[null,null,{"$f":"IF('3 INCOME & EXPENSE'!E382=0,\"\",'3 INCOME & EXPENSE'!E382)","v":""},{"$f":"T('3 INCOME & EXPENSE'!G382)","v":""},{"$f":"'3 INCOME & EXPENSE'!M382","v":{"v":0,"d":"0.0"}},{"$f":"'3 INCOME & EXPENSE'!N382","v":{"v":0,"d":"$0.00"}},{"$f":"'3 INCOME & EXPENSE'!O382","v":{"v":0,"d":"$0.00"}},788,{"$f":"'3 INCOME & EXPENSE'!X382","v":101},101000,101101,0]
[null,null,{"$f":"IF('3 INCOME & EXPENSE'!E383=0,\"\",'3 INCOME & EXPENSE'!E383)","v":""},{"$f":"T('3 INCOME & EXPENSE'!G383)","v":""},{"$f":"'3 INCOME & EXPENSE'!M383","v":{"v":0,"d":"0.0"}},{"$f":"'3 INCOME & EXPENSE'!N383","v":{"v":0,"d":"$0.00"}},{"$f":"'3 INCOME & EXPENSE'!O383","v":{"v":0,"d":"$0.00"}},789,{"$f":"'3 INCOME & EXPENSE'!X383","v":101},101000,101101,0]
[null,null,{"$f":"IF('3 INCOME & EXPENSE'!E384=0,\"\",'3 INCOME & EXPENSE'!E384)","v":""},{"$f":"T('3 INCOME & EXPENSE'!G384)","v":""},{"$f":"'3 INCOME & EXPENSE'!M384","v":{"v":0,"d":"0.0"}},{"$f":"'3 INCOME & EXPENSE'!N384","v":{"v":0,"d":"$0.00"}},{"$f":"'3 INCOME & EXPENSE'!O384","v":{"v":0,"d":"$0.00"}},790,{"$f":"'3 INCOME & EXPENSE'!X384","v":101},101000,101101,0]
[null,null,{"$f":"IF('3 INCOME & EXPENSE'!E385=0,\"\",'3 INCOME & EXPENSE'!E385)","v":""},{"$f":"T('3 INCOME & EXPENSE'!G385)","v":""},{"$f":"'3 INCOME & EXPENSE'!M385","v":{"v":0,"d":"0.0"}},{"$f":"'3 INCOME & EXPENSE'!N385","v":{"v":0,"d":"$0.00"}},{"$f":"'3 INCOME & EXPENSE'!O385","v":{"v":0,"d":"$0.00"}},791,{"$f":"'3 INCOME & EXPENSE'!X385","v":101},101000,101101,0]
[null,null,{"$f":"IF('3 INCOME & EXPENSE'!E386=0,\"\",'3 INCOME & EXPENSE'!E386)","v":""},{"$f":"T('3 INCOME & EXPENSE'!G386)","v":""},{"$f":"'3 INCOME & EXPENSE'!M386","v":{"v":0,"d":"0.0"}},{"$f":"'3 INCOME & EXPENSE'!N386","v":{"v":0,"d":"$0.00"}},{"$f":"'3 INCOME & EXPENSE'!O386","v":{"v":0,"d":"$0.00"}},792,{"$f":"'3 INCOME & EXPENSE'!X386","v":101},101000,101101,0]
[null,null,{"$f":"IF('3 INCOME & EXPENSE'!E387=0,\"\",'3 INCOME & EXPENSE'!E387)","v":""},{"$f":"T('3 INCOME & EXPENSE'!G387)","v":""},{"$f":"'3 INCOME & EXPENSE'!M387","v":{"v":0,"d":"0.0"}},{"$f":"'3 INCOME & EXPENSE'!N387","v":{"v":0,"d":"$0.00"}},{"$f":"'3 INCOME & EXPENSE'!O387","v":{"v":0,"d":"$0.00"}},793,{"$f":"'3 INCOME & EXPENSE'!X387","v":101},101000,101101,0]
[null,null,{"$f":"IF('3 INCOME & EXPENSE'!E388=0,\"\",'3 INCOME & EXPENSE'!E388)","v":""},{"$f":"T('3 INCOME & EXPENSE'!G388)","v":""},{"$f":"'3 INCOME & EXPENSE'!M388","v":{"v":0,"d":"0.0"}},{"$f":"'3 INCOME & EXPENSE'!N388","v":{"v":0,"d":"$0.00"}},{"$f":"'3 INCOME & EXPENSE'!O388","v":{"v":0,"d":"$0.00"}},794,{"$f":"'3 INCOME & EXPENSE'!X388","v":101},101000,101101,0]
[null,null,{"$f":"IF('3 INCOME & EXPENSE'!E389=0,\"\",'3 INCOME & EXPENSE'!E389)","v":""},{"$f":"T('3 INCOME & EXPENSE'!G389)","v":""},{"$f":"'3 INCOME & EXPENSE'!M389","v":{"v":0,"d":"0.0"}},{"$f":"'3 INCOME & EXPENSE'!N389","v":{"v":0,"d":"$0.00"}},{"$f":"'3 INCOME & EXPENSE'!O389","v":{"v":0,"d":"$0.00"}},795,{"$f":"'3 INCOME & EXPENSE'!X389","v":101},101000,101101,0]
[null,null,{"$f":"IF('3 INCOME & EXPENSE'!E390=0,\"\",'3 INCOME & EXPENSE'!E390)","v":""},{"$f":"T('3 INCOME & EXPENSE'!G390)","v":""},{"$f":"'3 INCOME & EXPENSE'!M390","v":{"v":0,"d":"0.0"}},{"$f":"'3 INCOME & EXPENSE'!N390","v":{"v":0,"d":"$0.00"}},{"$f":"'3 INCOME & EXPENSE'!O390","v":{"v":0,"d":"$0.00"}},796,{"$f":"'3 INCOME & EXPENSE'!X390","v":101},101000,101101,0]
[null,null,{"$f":"IF('3 INCOME & EXPENSE'!E391=0,\"\",'3 INCOME & EXPENSE'!E391)","v":""},{"$f":"T('3 INCOME & EXPENSE'!G391)","v":""},{"$f":"'3 INCOME & EXPENSE'!M391","v":{"v":0,"d":"0.0"}},{"$f":"'3 INCOME & EXPENSE'!N391","v":{"v":0,"d":"$0.00"}},{"$f":"'3 INCOME & EXPENSE'!O391","v":{"v":0,"d":"$0.00"}},797,{"$f":"'3 INCOME & EXPENSE'!X391","v":101},101000,101101,0]
[null,null,{"$f":"IF('3 INCOME & EXPENSE'!E392=0,\"\",'3 INCOME & EXPENSE'!E392)","v":""},{"$f":"T('3 INCOME & EXPENSE'!G392)","v":""},{"$f":"'3 INCOME & EXPENSE'!M392","v":{"v":0,"d":"0.0"}},{"$f":"'3 INCOME & EXPENSE'!N392","v":{"v":0,"d":"$0.00"}},{"$f":"'3 INCOME & EXPENSE'!O392","v":{"v":0,"d":"$0.00"}},798,{"$f":"'3 INCOME & EXPENSE'!X392","v":101},101000,101101,0]
[null,null,{"$f":"IF('3 INCOME & EXPENSE'!E393=0,\"\",'3 INCOME & EXPENSE'!E393)","v":""},{"$f":"T('3 INCOME & EXPENSE'!G393)","v":""},{"$f":"'3 INCOME & EXPENSE'!M393","v":{"v":0,"d":"0.0"}},{"$f":"'3 INCOME & EXPENSE'!N393","v":{"v":0,"d":"$0.00"}},{"$f":"'3 INCOME & EXPENSE'!O393","v":{"v":0,"d":"$0.00"}},799,{"$f":"'3 INCOME & EXPENSE'!X393","v":101},101000,101101,0]
[null,null,{"$f":"IF('3 INCOME & EXPENSE'!E394=0,\"\",'3 INCOME & EXPENSE'!E394)","v":""},{"$f":"T('3 INCOME & EXPENSE'!G394)","v":""},{"$f":"'3 INCOME & EXPENSE'!M394","v":{"v":0,"d":"0.0"}},{"$f":"'3 INCOME & EXPENSE'!N394","v":{"v":0,"d":"$0.00"}},{"$f":"'3 INCOME & EXPENSE'!O394","v":{"v":0,"d":"$0.00"}},800,{"$f":"'3 INCOME & EXPENSE'!X394","v":101},101000,101101,0]
[null,null,{"$f":"IF('3 INCOME & EXPENSE'!E395=0,\"\",'3 INCOME & EXPENSE'!E395)","v":""},{"$f":"T('3 INCOME & EXPENSE'!G395)","v":""},{"$f":"'3 INCOME & EXPENSE'!M395","v":{"v":0,"d":"0.0"}},{"$f":"'3 INCOME & EXPENSE'!N395","v":{"v":0,"d":"$0.00"}},{"$f":"'3 INCOME & EXPENSE'!O395","v":{"v":0,"d":"$0.00"}},801,{"$f":"'3 INCOME & EXPENSE'!X395","v":101},101000,101101,0]
[null,null,{"$f":"IF('3 INCOME & EXPENSE'!E396=0,\"\",'3 INCOME & EXPENSE'!E396)","v":""},{"$f":"T('3 INCOME & EXPENSE'!G396)","v":""},{"$f":"'3 INCOME & EXPENSE'!M396","v":{"v":0,"d":"0.0"}},{"$f":"'3 INCOME & EXPENSE'!N396","v":{"v":0,"d":"$0.00"}},{"$f":"'3 INCOME & EXPENSE'!O396","v":{"v":0,"d":"$0.00"}},802,{"$f":"'3 INCOME & EXPENSE'!X396","v":101},101000,101101,0]
[null,null,{"$f":"IF('3 INCOME & EXPENSE'!E397=0,\"\",'3 INCOME & EXPENSE'!E397)","v":""},{"$f":"T('3 INCOME & EXPENSE'!G397)","v":""},{"$f":"'3 INCOME & EXPENSE'!M397","v":{"v":0,"d":"0.0"}},{"$f":"'3 INCOME & EXPENSE'!N397","v":{"v":0,"d":"$0.00"}},{"$f":"'3 INCOME & EXPENSE'!O397","v":{"v":0,"d":"$0.00"}},803,{"$f":"'3 INCOME & EXPENSE'!X397","v":101},101000,101101,0]
[null,null,{"$f":"IF('3 INCOME & EXPENSE'!E398=0,\"\",'3 INCOME & EXPENSE'!E398)","v":""},{"$f":"T('3 INCOME & EXPENSE'!G398)","v":""},{"$f":"'3 INCOME & EXPENSE'!M398","v":{"v":0,"d":"0.0"}},{"$f":"'3 INCOME & EXPENSE'!N398","v":{"v":0,"d":"$0.00"}},{"$f":"'3 INCOME & EXPENSE'!O398","v":{"v":0,"d":"$0.00"}},804,{"$f":"'3 INCOME & EXPENSE'!X398","v":101},{"$f":"VLOOKUP(I816,$I$1186:$J$1287,2)","v":101000},101101,{"$f":"K816*E816","v":0}]
[null,null,{"$f":"IF('3 INCOME & EXPENSE'!E399=0,\"\",'3 INCOME & EXPENSE'!E399)","v":""},{"$f":"T('3 INCOME & EXPENSE'!G399)","v":""},{"$f":"'3 INCOME & EXPENSE'!M399","v":{"v":0,"d":"0.0"}},{"$f":"'3 INCOME & EXPENSE'!N399","v":{"v":0,"d":"$0.00"}},{"$f":"'3 INCOME & EXPENSE'!O399","v":{"v":0,"d":"$0.00"}},805,{"$f":"'3 INCOME & EXPENSE'!X399","v":101},101000,101101,0]
[null,null,{"$f":"IF('3 INCOME & EXPENSE'!E400=0,\"\",'3 INCOME & EXPENSE'!E400)","v":""},{"$f":"T('3 INCOME & EXPENSE'!G400)","v":""},{"$f":"'3 INCOME & EXPENSE'!M400","v":{"v":0,"d":"0.0"}},{"$f":"'3 INCOME & EXPENSE'!N400","v":{"v":0,"d":"$0.00"}},{"$f":"'3 INCOME & EXPENSE'!O400","v":{"v":0,"d":"$0.00"}},806,{"$f":"'3 INCOME & EXPENSE'!X400","v":101},101000,101101,0]
[null,null,{"$f":"IF('3 INCOME & EXPENSE'!E401=0,\"\",'3 INCOME & EXPENSE'!E401)","v":""},{"$f":"T('3 INCOME & EXPENSE'!G401)","v":""},{"$f":"'3 INCOME & EXPENSE'!M401","v":{"v":0,"d":"0.0"}},{"$f":"'3 INCOME & EXPENSE'!N401","v":{"v":0,"d":"$0.00"}},{"$f":"'3 INCOME & EXPENSE'!O401","v":{"v":0,"d":"$0.00"}},807,{"$f":"'3 INCOME & EXPENSE'!X401","v":101},101000,101101,0]
[null,null,{"$f":"IF('3 INCOME & EXPENSE'!E402=0,\"\",'3 INCOME & EXPENSE'!E402)","v":""},{"$f":"T('3 INCOME & EXPENSE'!G402)","v":""},{"$f":"'3 INCOME & EXPENSE'!M402","v":{"v":0,"d":"0.0"}},{"$f":"'3 INCOME & EXPENSE'!N402","v":{"v":0,"d":"$0.00"}},{"$f":"'3 INCOME & EXPENSE'!O402","v":{"v":0,"d":"$0.00"}},808,{"$f":"'3 INCOME & EXPENSE'!X402","v":101},101000,101101,0]
[null,null,{"$f":"IF('3 INCOME & EXPENSE'!E403=0,\"\",'3 INCOME & EXPENSE'!E403)","v":""},{"$f":"T('3 INCOME & EXPENSE'!G403)","v":""},{"$f":"'3 INCOME & EXPENSE'!M403","v":{"v":0,"d":"0.0"}},{"$f":"'3 INCOME & EXPENSE'!N403","v":{"v":0,"d":"$0.00"}},{"$f":"'3 INCOME & EXPENSE'!O403","v":{"v":0,"d":"$0.00"}},809,{"$f":"'3 INCOME & EXPENSE'!X403","v":101},101000,101101,0]
[null,null,{"$f":"IF('3 INCOME & EXPENSE'!E404=0,\"\",'3 INCOME & EXPENSE'!E404)","v":""},{"$f":"T('3 INCOME & EXPENSE'!G404)","v":""},{"$f":"'3 INCOME & EXPENSE'!M404","v":{"v":0,"d":"0.0"}},{"$f":"'3 INCOME & EXPENSE'!N404","v":{"v":0,"d":"$0.00"}},{"$f":"'3 INCOME & EXPENSE'!O404","v":{"v":0,"d":"$0.00"}},810,{"$f":"'3 INCOME & EXPENSE'!X404","v":101},101000,101101,0]
[null,null,{"$f":"IF('3 INCOME & EXPENSE'!E405=0,\"\",'3 INCOME & EXPENSE'!E405)","v":""},{"$f":"T('3 INCOME & EXPENSE'!G405)","v":""},{"$f":"'3 INCOME & EXPENSE'!M405","v":{"v":0,"d":"0.0"}},{"$f":"'3 INCOME & EXPENSE'!N405","v":{"v":0,"d":"$0.00"}},{"$f":"'3 INCOME & EXPENSE'!O405","v":{"v":0,"d":"$0.00"}},811,{"$f":"'3 INCOME & EXPENSE'!X405","v":101},101000,101101,0]
[null,null,{"$f":"IF('3 INCOME & EXPENSE'!E406=0,\"\",'3 INCOME & EXPENSE'!E406)","v":""},{"$f":"T('3 INCOME & EXPENSE'!G406)","v":""},{"$f":"'3 INCOME & EXPENSE'!M406","v":{"v":0,"d":"0.0"}},{"$f":"'3 INCOME & EXPENSE'!N406","v":{"v":0,"d":"$0.00"}},{"$f":"'3 INCOME & EXPENSE'!O406","v":{"v":0,"d":"$0.00"}},812,{"$f":"'3 INCOME & EXPENSE'!X406","v":101},101000,101101,0]
[null,null,{"$f":"IF('3 INCOME & EXPENSE'!E407=0,\"\",'3 INCOME & EXPENSE'!E407)","v":""},{"$f":"T('3 INCOME & EXPENSE'!G407)","v":""},{"$f":"'3 INCOME & EXPENSE'!M407","v":{"v":0,"d":"0.0"}},{"$f":"'3 INCOME & EXPENSE'!N407","v":{"v":0,"d":"$0.00"}},{"$f":"'3 INCOME & EXPENSE'!O407","v":{"v":0,"d":"$0.00"}},813,{"$f":"'3 INCOME & EXPENSE'!X407","v":101},101000,101101,0]
[null,null,{"$f":"IF('3 INCOME & EXPENSE'!E408=0,\"\",'3 INCOME & EXPENSE'!E408)","v":""},{"$f":"T('3 INCOME & EXPENSE'!G408)","v":""},{"$f":"'3 INCOME & EXPENSE'!M408","v":{"v":0,"d":"0.0"}},{"$f":"'3 INCOME & EXPENSE'!N408","v":{"v":0,"d":"$0.00"}},{"$f":"'3 INCOME & EXPENSE'!O408","v":{"v":0,"d":"$0.00"}},814,{"$f":"'3 INCOME & EXPENSE'!X408","v":101},101000,101101,0]
[null,null,{"$f":"IF('3 INCOME & EXPENSE'!E409=0,\"\",'3 INCOME & EXPENSE'!E409)","v":""},{"$f":"T('3 INCOME & EXPENSE'!G409)","v":""},{"$f":"'3 INCOME & EXPENSE'!M409","v":{"v":0,"d":"0.0"}},{"$f":"'3 INCOME & EXPENSE'!N409","v":{"v":0,"d":"$0.00"}},{"$f":"'3 INCOME & EXPENSE'!O409","v":{"v":0,"d":"$0.00"}},815,{"$f":"'3 INCOME & EXPENSE'!X409","v":101},101000,101101,0]
[null,null,{"$f":"IF('3 INCOME & EXPENSE'!E410=0,\"\",'3 INCOME & EXPENSE'!E410)","v":""},{"$f":"T('3 INCOME & EXPENSE'!G410)","v":""},{"$f":"'3 INCOME & EXPENSE'!M410","v":{"v":0,"d":"0.0"}},{"$f":"'3 INCOME & EXPENSE'!N410","v":{"v":0,"d":"$0.00"}},{"$f":"'3 INCOME & EXPENSE'!O410","v":{"v":0,"d":"$0.00"}},816,{"$f":"'3 INCOME & EXPENSE'!X410","v":101},101000,101101,0]
[null,null,{"$f":"IF('3 INCOME & EXPENSE'!E411=0,\"\",'3 INCOME & EXPENSE'!E411)","v":""},{"$f":"T('3 INCOME & EXPENSE'!G411)","v":""},{"$f":"'3 INCOME & EXPENSE'!M411","v":{"v":0,"d":"0.0"}},{"$f":"'3 INCOME & EXPENSE'!N411","v":{"v":0,"d":"$0.00"}},{"$f":"'3 INCOME & EXPENSE'!O411","v":{"v":0,"d":"$0.00"}},817,{"$f":"'3 INCOME & EXPENSE'!X411","v":101},101000,101101,0]
[null,null,{"$f":"IF('3 INCOME & EXPENSE'!E412=0,\"\",'3 INCOME & EXPENSE'!E412)","v":""},{"$f":"T('3 INCOME & EXPENSE'!G412)","v":""},{"$f":"'3 INCOME & EXPENSE'!M412","v":{"v":0,"d":"0.0"}},{"$f":"'3 INCOME & EXPENSE'!N412","v":{"v":0,"d":"$0.00"}},{"$f":"'3 INCOME & EXPENSE'!O412","v":{"v":0,"d":"$0.00"}},818,{"$f":"'3 INCOME & EXPENSE'!X412","v":101},101000,101101,0]
[null,null,{"$f":"IF('3 INCOME & EXPENSE'!E413=0,\"\",'3 INCOME & EXPENSE'!E413)","v":""},{"$f":"T('3 INCOME & EXPENSE'!G413)","v":""},{"$f":"'3 INCOME & EXPENSE'!M413","v":{"v":0,"d":"0.0"}},{"$f":"'3 INCOME & EXPENSE'!N413","v":{"v":0,"d":"$0.00"}},{"$f":"'3 INCOME & EXPENSE'!O413","v":{"v":0,"d":"$0.00"}},819,{"$f":"'3 INCOME & EXPENSE'!X413","v":101},101000,101101,0]
[null,null,{"$f":"IF('3 INCOME & EXPENSE'!E414=0,\"\",'3 INCOME & EXPENSE'!E414)","v":""},{"$f":"T('3 INCOME & EXPENSE'!G414)","v":""},{"$f":"'3 INCOME & EXPENSE'!M414","v":{"v":0,"d":"0.0"}},{"$f":"'3 INCOME & EXPENSE'!N414","v":{"v":0,"d":"$0.00"}},{"$f":"'3 INCOME & EXPENSE'!O414","v":{"v":0,"d":"$0.00"}},820,{"$f":"'3 INCOME & EXPENSE'!X414","v":101},101000,101101,0]
[null,null,{"$f":"IF('3 INCOME & EXPENSE'!E415=0,\"\",'3 INCOME & EXPENSE'!E415)","v":""},{"$f":"T('3 INCOME & EXPENSE'!G415)","v":""},{"$f":"'3 INCOME & EXPENSE'!M415","v":{"v":0,"d":"0.0"}},{"$f":"'3 INCOME & EXPENSE'!N415","v":{"v":0,"d":"$0.00"}},{"$f":"'3 INCOME & EXPENSE'!O415","v":{"v":0,"d":"$0.00"}},821,{"$f":"'3 INCOME & EXPENSE'!X415","v":101},101000,{"$f":"I833+J833","v":101101},0]
[null,null,{"$f":"IF('3 INCOME & EXPENSE'!E416=0,\"\",'3 INCOME & EXPENSE'!E416)","v":""},{"$f":"T('3 INCOME & EXPENSE'!G416)","v":""},{"$f":"'3 INCOME & EXPENSE'!M416","v":{"v":0,"d":"0.0"}},{"$f":"'3 INCOME & EXPENSE'!N416","v":{"v":0,"d":"$0.00"}},{"$f":"'3 INCOME & EXPENSE'!O416","v":{"v":0,"d":"$0.00"}},822,{"$f":"'3 INCOME & EXPENSE'!X416","v":101},101000,101101,0]
[null,null,{"$f":"IF('3 INCOME & EXPENSE'!E417=0,\"\",'3 INCOME & EXPENSE'!E417)","v":""},{"$f":"T('3 INCOME & EXPENSE'!G417)","v":""},{"$f":"'3 INCOME & EXPENSE'!M417","v":{"v":0,"d":"0.0"}},{"$f":"'3 INCOME & EXPENSE'!N417","v":{"v":0,"d":"$0.00"}},{"$f":"'3 INCOME & EXPENSE'!O417","v":{"v":0,"d":"$0.00"}},823,{"$f":"'3 INCOME & EXPENSE'!X417","v":101},101000,101101,0]
[null,null,{"$f":"IF('3 INCOME & EXPENSE'!E418=0,\"\",'3 INCOME & EXPENSE'!E418)","v":""},{"$f":"T('3 INCOME & EXPENSE'!G418)","v":""},{"$f":"'3 INCOME & EXPENSE'!M418","v":{"v":0,"d":"0.0"}},{"$f":"'3 INCOME & EXPENSE'!N418","v":{"v":0,"d":"$0.00"}},{"$f":"'3 INCOME & EXPENSE'!O418","v":{"v":0,"d":"$0.00"}},824,{"$f":"'3 INCOME & EXPENSE'!X418","v":101},101000,101101,0]
[null,null,{"$f":"IF('3 INCOME & EXPENSE'!E419=0,\"\",'3 INCOME & EXPENSE'!E419)","v":""},{"$f":"T('3 INCOME & EXPENSE'!G419)","v":""},{"$f":"'3 INCOME & EXPENSE'!M419","v":{"v":0,"d":"0.0"}},{"$f":"'3 INCOME & EXPENSE'!N419","v":{"v":0,"d":"$0.00"}},{"$f":"'3 INCOME & EXPENSE'!O419","v":{"v":0,"d":"$0.00"}},825,{"$f":"'3 INCOME & EXPENSE'!X419","v":101},101000,101101,0]
[null,null,{"$f":"IF('3 INCOME & EXPENSE'!E420=0,\"\",'3 INCOME & EXPENSE'!E420)","v":""},{"$f":"T('3 INCOME & EXPENSE'!G420)","v":""},{"$f":"'3 INCOME & EXPENSE'!M420","v":{"v":0,"d":"0.0"}},{"$f":"'3 INCOME & EXPENSE'!N420","v":{"v":0,"d":"$0.00"}},{"$f":"'3 INCOME & EXPENSE'!O420","v":{"v":0,"d":"$0.00"}},826,{"$f":"'3 INCOME & EXPENSE'!X420","v":101},101000,101101,0]
[null,null,{"$f":"IF('3 INCOME & EXPENSE'!E421=0,\"\",'3 INCOME & EXPENSE'!E421)","v":""},{"$f":"T('3 INCOME & EXPENSE'!G421)","v":""},{"$f":"'3 INCOME & EXPENSE'!M421","v":{"v":0,"d":"0.0"}},{"$f":"'3 INCOME & EXPENSE'!N421","v":{"v":0,"d":"$0.00"}},{"$f":"'3 INCOME & EXPENSE'!O421","v":{"v":0,"d":"$0.00"}},827,{"$f":"'3 INCOME & EXPENSE'!X421","v":101},101000,101101,0]
[null,null,{"$f":"IF('3 INCOME & EXPENSE'!E422=0,\"\",'3 INCOME & EXPENSE'!E422)","v":""},{"$f":"T('3 INCOME & EXPENSE'!G422)","v":""},{"$f":"'3 INCOME & EXPENSE'!M422","v":{"v":0,"d":"0.0"}},{"$f":"'3 INCOME & EXPENSE'!N422","v":{"v":0,"d":"$0.00"}},{"$f":"'3 INCOME & EXPENSE'!O422","v":{"v":0,"d":"$0.00"}},828,{"$f":"'3 INCOME & EXPENSE'!X422","v":101},101000,101101,0]
[null,null,{"$f":"IF('3 INCOME & EXPENSE'!E423=0,\"\",'3 INCOME & EXPENSE'!E423)","v":""},{"$f":"T('3 INCOME & EXPENSE'!G423)","v":""},{"$f":"'3 INCOME & EXPENSE'!M423","v":{"v":0,"d":"0.0"}},{"$f":"'3 INCOME & EXPENSE'!N423","v":{"v":0,"d":"$0.00"}},{"$f":"'3 INCOME & EXPENSE'!O423","v":{"v":0,"d":"$0.00"}},829,{"$f":"'3 INCOME & EXPENSE'!X423","v":101},101000,101101,0]
[null,null,{"$f":"IF('3 INCOME & EXPENSE'!E424=0,\"\",'3 INCOME & EXPENSE'!E424)","v":""},{"$f":"T('3 INCOME & EXPENSE'!G424)","v":""},{"$f":"'3 INCOME & EXPENSE'!M424","v":{"v":0,"d":"0.0"}},{"$f":"'3 INCOME & EXPENSE'!N424","v":{"v":0,"d":"$0.00"}},{"$f":"'3 INCOME & EXPENSE'!O424","v":{"v":0,"d":"$0.00"}},830,{"$f":"'3 INCOME & EXPENSE'!X424","v":101},101000,101101,0]
[null,null,{"$f":"IF('3 INCOME & EXPENSE'!E425=0,\"\",'3 INCOME & EXPENSE'!E425)","v":""},{"$f":"T('3 INCOME & EXPENSE'!G425)","v":""},{"$f":"'3 INCOME & EXPENSE'!M425","v":{"v":0,"d":"0.0"}},{"$f":"'3 INCOME & EXPENSE'!N425","v":{"v":0,"d":"$0.00"}},{"$f":"'3 INCOME & EXPENSE'!O425","v":{"v":0,"d":"$0.00"}},831,{"$f":"'3 INCOME & EXPENSE'!X425","v":101},101000,101101,0]
[null,null,{"$f":"IF('3 INCOME & EXPENSE'!E426=0,\"\",'3 INCOME & EXPENSE'!E426)","v":""},{"$f":"T('3 INCOME & EXPENSE'!G426)","v":""},{"$f":"'3 INCOME & EXPENSE'!M426","v":{"v":0,"d":"0.0"}},{"$f":"'3 INCOME & EXPENSE'!N426","v":{"v":0,"d":"$0.00"}},{"$f":"'3 INCOME & EXPENSE'!O426","v":{"v":0,"d":"$0.00"}},832,{"$f":"'3 INCOME & EXPENSE'!X426","v":101},101000,101101,0]
[null,null,{"$f":"IF('3 INCOME & EXPENSE'!E427=0,\"\",'3 INCOME & EXPENSE'!E427)","v":""},{"$f":"T('3 INCOME & EXPENSE'!G427)","v":""},{"$f":"'3 INCOME & EXPENSE'!M427","v":{"v":0,"d":"0.0"}},{"$f":"'3 INCOME & EXPENSE'!N427","v":{"v":0,"d":"$0.00"}},{"$f":"'3 INCOME & EXPENSE'!O427","v":{"v":0,"d":"$0.00"}},833,{"$f":"'3 INCOME & EXPENSE'!X427","v":101},101000,101101,0]
[null,null,{"$f":"IF('3 INCOME & EXPENSE'!E428=0,\"\",'3 INCOME & EXPENSE'!E428)","v":""},{"$f":"T('3 INCOME & EXPENSE'!G428)","v":""},{"$f":"'3 INCOME & EXPENSE'!M428","v":{"v":0,"d":"0.0"}},{"$f":"'3 INCOME & EXPENSE'!N428","v":{"v":0,"d":"$0.00"}},{"$f":"'3 INCOME & EXPENSE'!O428","v":{"v":0,"d":"$0.00"}},834,{"$f":"'3 INCOME & EXPENSE'!X428","v":101},101000,101101,0]
[null,null,{"$f":"IF('3 INCOME & EXPENSE'!E429=0,\"\",'3 INCOME & EXPENSE'!E429)","v":""},{"$f":"T('3 INCOME & EXPENSE'!G429)","v":""},{"$f":"'3 INCOME & EXPENSE'!M429","v":{"v":0,"d":"0.0"}},{"$f":"'3 INCOME & EXPENSE'!N429","v":{"v":0,"d":"$0.00"}},{"$f":"'3 INCOME & EXPENSE'!O429","v":{"v":0,"d":"$0.00"}},835,{"$f":"'3 INCOME & EXPENSE'!X429","v":101},101000,101101,0]
[null,null,{"$f":"IF('3 INCOME & EXPENSE'!E430=0,\"\",'3 INCOME & EXPENSE'!E430)","v":""},{"$f":"T('3 INCOME & EXPENSE'!G430)","v":""},{"$f":"'3 INCOME & EXPENSE'!M430","v":{"v":0,"d":"0.0"}},{"$f":"'3 INCOME & EXPENSE'!N430","v":{"v":0,"d":"$0.00"}},{"$f":"'3 INCOME & EXPENSE'!O430","v":{"v":0,"d":"$0.00"}},836,{"$f":"'3 INCOME & EXPENSE'!X430","v":101},101000,101101,0]
[null,null,{"$f":"IF('3 INCOME & EXPENSE'!E431=0,\"\",'3 INCOME & EXPENSE'!E431)","v":""},{"$f":"T('3 INCOME & EXPENSE'!G431)","v":""},{"$f":"'3 INCOME & EXPENSE'!M431","v":{"v":0,"d":"0.0"}},{"$f":"'3 INCOME & EXPENSE'!N431","v":{"v":0,"d":"$0.00"}},{"$f":"'3 INCOME & EXPENSE'!O431","v":{"v":0,"d":"$0.00"}},837,{"$f":"'3 INCOME & EXPENSE'!X431","v":101},101000,101101,0]
[null,null,{"$f":"IF('3 INCOME & EXPENSE'!E432=0,\"\",'3 INCOME & EXPENSE'!E432)","v":""},{"$f":"T('3 INCOME & EXPENSE'!G432)","v":""},{"$f":"'3 INCOME & EXPENSE'!M432","v":{"v":0,"d":"0.0"}},{"$f":"'3 INCOME & EXPENSE'!N432","v":{"v":0,"d":"$0.00"}},{"$f":"'3 INCOME & EXPENSE'!O432","v":{"v":0,"d":"$0.00"}},838,{"$f":"'3 INCOME & EXPENSE'!X432","v":101},101000,101101,0]
[null,null,{"$f":"IF('3 INCOME & EXPENSE'!E433=0,\"\",'3 INCOME & EXPENSE'!E433)","v":""},{"$f":"T('3 INCOME & EXPENSE'!G433)","v":""},{"$f":"'3 INCOME & EXPENSE'!M433","v":{"v":0,"d":"0.0"}},{"$f":"'3 INCOME & EXPENSE'!N433","v":{"v":0,"d":"$0.00"}},{"$f":"'3 INCOME & EXPENSE'!O433","v":{"v":0,"d":"$0.00"}},839,{"$f":"'3 INCOME & EXPENSE'!X433","v":101},101000,101101,0]
[null,null,{"$f":"IF('3 INCOME & EXPENSE'!E434=0,\"\",'3 INCOME & EXPENSE'!E434)","v":""},{"$f":"T('3 INCOME & EXPENSE'!G434)","v":""},{"$f":"'3 INCOME & EXPENSE'!M434","v":{"v":0,"d":"0.0"}},{"$f":"'3 INCOME & EXPENSE'!N434","v":{"v":0,"d":"$0.00"}},{"$f":"'3 INCOME & EXPENSE'!O434","v":{"v":0,"d":"$0.00"}},840,{"$f":"'3 INCOME & EXPENSE'!X434","v":101},101000,101101,0]
[null,null,{"$f":"IF('3 INCOME & EXPENSE'!E435=0,\"\",'3 INCOME & EXPENSE'!E435)","v":""},{"$f":"T('3 INCOME & EXPENSE'!G435)","v":""},{"$f":"'3 INCOME & EXPENSE'!M435","v":{"v":0,"d":"0.0"}},{"$f":"'3 INCOME & EXPENSE'!N435","v":{"v":0,"d":"$0.00"}},{"$f":"'3 INCOME & EXPENSE'!O435","v":{"v":0,"d":"$0.00"}},841,{"$f":"'3 INCOME & EXPENSE'!X435","v":101},101000,101101,0]
[null,null,{"$f":"IF('3 INCOME & EXPENSE'!E436=0,\"\",'3 INCOME & EXPENSE'!E436)","v":""},{"$f":"T('3 INCOME & EXPENSE'!G436)","v":""},{"$f":"'3 INCOME & EXPENSE'!M436","v":{"v":0,"d":"0.0"}},{"$f":"'3 INCOME & EXPENSE'!N436","v":{"v":0,"d":"$0.00"}},{"$f":"'3 INCOME & EXPENSE'!O436","v":{"v":0,"d":"$0.00"}},842,{"$f":"'3 INCOME & EXPENSE'!X436","v":101},101000,101101,0]
[null,null,{"$f":"IF('3 INCOME & EXPENSE'!E437=0,\"\",'3 INCOME & EXPENSE'!E437)","v":""},{"$f":"T('3 INCOME & EXPENSE'!G437)","v":""},{"$f":"'3 INCOME & EXPENSE'!M437","v":{"v":0,"d":"0.0"}},{"$f":"'3 INCOME & EXPENSE'!N437","v":{"v":0,"d":"$0.00"}},{"$f":"'3 INCOME & EXPENSE'!O437","v":{"v":0,"d":"$0.00"}},843,{"$f":"'3 INCOME & EXPENSE'!X437","v":101},101000,101101,0]
[null,null,{"$f":"IF('3 INCOME & EXPENSE'!E438=0,\"\",'3 INCOME & EXPENSE'!E438)","v":""},{"$f":"T('3 INCOME & EXPENSE'!G438)","v":""},{"$f":"'3 INCOME & EXPENSE'!M438","v":{"v":0,"d":"0.0"}},{"$f":"'3 INCOME & EXPENSE'!N438","v":{"v":0,"d":"$0.00"}},{"$f":"'3 INCOME & EXPENSE'!O438","v":{"v":0,"d":"$0.00"}},844,{"$f":"'3 INCOME & EXPENSE'!X438","v":101},101000,101101,0]
[null,null,{"$f":"IF('3 INCOME & EXPENSE'!E439=0,\"\",'3 INCOME & EXPENSE'!E439)","v":""},{"$f":"T('3 INCOME & EXPENSE'!G439)","v":""},{"$f":"'3 INCOME & EXPENSE'!M439","v":{"v":0,"d":"0.0"}},{"$f":"'3 INCOME & EXPENSE'!N439","v":{"v":0,"d":"$0.00"}},{"$f":"'3 INCOME & EXPENSE'!O439","v":{"v":0,"d":"$0.00"}},845,{"$f":"'3 INCOME & EXPENSE'!X439","v":101},101000,101101,0]
[null,null,{"$f":"IF('3 INCOME & EXPENSE'!E440=0,\"\",'3 INCOME & EXPENSE'!E440)","v":""},{"$f":"T('3 INCOME & EXPENSE'!G440)","v":""},{"$f":"'3 INCOME & EXPENSE'!M440","v":{"v":0,"d":"0.0"}},{"$f":"'3 INCOME & EXPENSE'!N440","v":{"v":0,"d":"$0.00"}},{"$f":"'3 INCOME & EXPENSE'!O440","v":{"v":0,"d":"$0.00"}},846,{"$f":"'3 INCOME & EXPENSE'!X440","v":101},101000,101101,0]
[null,null,{"$f":"IF('3 INCOME & EXPENSE'!E441=0,\"\",'3 INCOME & EXPENSE'!E441)","v":""},{"$f":"T('3 INCOME & EXPENSE'!G441)","v":""},{"$f":"'3 INCOME & EXPENSE'!M441","v":{"v":0,"d":"0.0"}},{"$f":"'3 INCOME & EXPENSE'!N441","v":{"v":0,"d":"$0.00"}},{"$f":"'3 INCOME & EXPENSE'!O441","v":{"v":0,"d":"$0.00"}},847,{"$f":"'3 INCOME & EXPENSE'!X441","v":101},101000,101101,0]
[null,null,{"$f":"IF('3 INCOME & EXPENSE'!E442=0,\"\",'3 INCOME & EXPENSE'!E442)","v":""},{"$f":"T('3 INCOME & EXPENSE'!G442)","v":""},{"$f":"'3 INCOME & EXPENSE'!M442","v":{"v":0,"d":"0.0"}},{"$f":"'3 INCOME & EXPENSE'!N442","v":{"v":0,"d":"$0.00"}},{"$f":"'3 INCOME & EXPENSE'!O442","v":{"v":0,"d":"$0.00"}},848,{"$f":"'3 INCOME & EXPENSE'!X442","v":101},101000,101101,0]
[null,null,{"$f":"IF('3 INCOME & EXPENSE'!E443=0,\"\",'3 INCOME & EXPENSE'!E443)","v":""},{"$f":"T('3 INCOME & EXPENSE'!G443)","v":""},{"$f":"'3 INCOME & EXPENSE'!M443","v":{"v":0,"d":"0.0"}},{"$f":"'3 INCOME & EXPENSE'!N443","v":{"v":0,"d":"$0.00"}},{"$f":"'3 INCOME & EXPENSE'!O443","v":{"v":0,"d":"$0.00"}},849,{"$f":"'3 INCOME & EXPENSE'!X443","v":101},101000,101101,0]
[null,null,{"$f":"IF('3 INCOME & EXPENSE'!E444=0,\"\",'3 INCOME & EXPENSE'!E444)","v":""},{"$f":"T('3 INCOME & EXPENSE'!G444)","v":""},{"$f":"'3 INCOME & EXPENSE'!M444","v":{"v":0,"d":"0.0"}},{"$f":"'3 INCOME & EXPENSE'!N444","v":{"v":0,"d":"$0.00"}},{"$f":"'3 INCOME & EXPENSE'!O444","v":{"v":0,"d":"$0.00"}},850,{"$f":"'3 INCOME & EXPENSE'!X444","v":101},101000,101101,0]
[null,null,{"$f":"IF('3 INCOME & EXPENSE'!E445=0,\"\",'3 INCOME & EXPENSE'!E445)","v":""},{"$f":"T('3 INCOME & EXPENSE'!G445)","v":""},{"$f":"'3 INCOME & EXPENSE'!M445","v":{"v":0,"d":"0.0"}},{"$f":"'3 INCOME & EXPENSE'!N445","v":{"v":0,"d":"$0.00"}},{"$f":"'3 INCOME & EXPENSE'!O445","v":{"v":0,"d":"$0.00"}},851,{"$f":"'3 INCOME & EXPENSE'!X445","v":101},101000,101101,0]
[null,null,{"$f":"IF('3 INCOME & EXPENSE'!E446=0,\"\",'3 INCOME & EXPENSE'!E446)","v":""},{"$f":"T('3 INCOME & EXPENSE'!G446)","v":""},{"$f":"'3 INCOME & EXPENSE'!M446","v":{"v":0,"d":"0.0"}},{"$f":"'3 INCOME & EXPENSE'!N446","v":{"v":0,"d":"$0.00"}},{"$f":"'3 INCOME & EXPENSE'!O446","v":{"v":0,"d":"$0.00"}},852,{"$f":"'3 INCOME & EXPENSE'!X446","v":101},101000,101101,0]
[null,null,{"$f":"IF('3 INCOME & EXPENSE'!E447=0,\"\",'3 INCOME & EXPENSE'!E447)","v":""},{"$f":"T('3 INCOME & EXPENSE'!G447)","v":""},{"$f":"'3 INCOME & EXPENSE'!M447","v":{"v":0,"d":"0.0"}},{"$f":"'3 INCOME & EXPENSE'!N447","v":{"v":0,"d":"$0.00"}},{"$f":"'3 INCOME & EXPENSE'!O447","v":{"v":0,"d":"$0.00"}},853,{"$f":"'3 INCOME & EXPENSE'!X447","v":101},101000,101101,0]
[null,null,{"$f":"IF('3 INCOME & EXPENSE'!E448=0,\"\",'3 INCOME & EXPENSE'!E448)","v":""},{"$f":"T('3 INCOME & EXPENSE'!G448)","v":""},{"$f":"'3 INCOME & EXPENSE'!M448","v":{"v":0,"d":"0.0"}},{"$f":"'3 INCOME & EXPENSE'!N448","v":{"v":0,"d":"$0.00"}},{"$f":"'3 INCOME & EXPENSE'!O448","v":{"v":0,"d":"$0.00"}},854,{"$f":"'3 INCOME & EXPENSE'!X448","v":101},101000,101101,0]
[null,null,{"$f":"IF('3 INCOME & EXPENSE'!E449=0,\"\",'3 INCOME & EXPENSE'!E449)","v":""},{"$f":"T('3 INCOME & EXPENSE'!G449)","v":""},{"$f":"'3 INCOME & EXPENSE'!M449","v":{"v":0,"d":"0.0"}},{"$f":"'3 INCOME & EXPENSE'!N449","v":{"v":0,"d":"$0.00"}},{"$f":"'3 INCOME & EXPENSE'!O449","v":{"v":0,"d":"$0.00"}},855,{"$f":"'3 INCOME & EXPENSE'!X449","v":101},101000,101101,0]
[null,null,{"$f":"IF('3 INCOME & EXPENSE'!E450=0,\"\",'3 INCOME & EXPENSE'!E450)","v":""},{"$f":"T('3 INCOME & EXPENSE'!G450)","v":""},{"$f":"'3 INCOME & EXPENSE'!M450","v":{"v":0,"d":"0.0"}},{"$f":"'3 INCOME & EXPENSE'!N450","v":{"v":0,"d":"$0.00"}},{"$f":"'3 INCOME & EXPENSE'!O450","v":{"v":0,"d":"$0.00"}},856,{"$f":"'3 INCOME & EXPENSE'!X450","v":101},101000,101101,0]
[null,null,{"$f":"IF('3 INCOME & EXPENSE'!E451=0,\"\",'3 INCOME & EXPENSE'!E451)","v":""},{"$f":"T('3 INCOME & EXPENSE'!G451)","v":""},{"$f":"'3 INCOME & EXPENSE'!M451","v":{"v":0,"d":"0.0"}},{"$f":"'3 INCOME & EXPENSE'!N451","v":{"v":0,"d":"$0.00"}},{"$f":"'3 INCOME & EXPENSE'!O451","v":{"v":0,"d":"$0.00"}},857,{"$f":"'3 INCOME & EXPENSE'!X451","v":101},101000,101101,0]
[null,null,{"$f":"IF('3 INCOME & EXPENSE'!E452=0,\"\",'3 INCOME & EXPENSE'!E452)","v":""},{"$f":"T('3 INCOME & EXPENSE'!G452)","v":""},{"$f":"'3 INCOME & EXPENSE'!M452","v":{"v":0,"d":"0.0"}},{"$f":"'3 INCOME & EXPENSE'!N452","v":{"v":0,"d":"$0.00"}},{"$f":"'3 INCOME & EXPENSE'!O452","v":{"v":0,"d":"$0.00"}},858,{"$f":"'3 INCOME & EXPENSE'!X452","v":101},101000,101101,0]
[null,null,{"$f":"IF('3 INCOME & EXPENSE'!E453=0,\"\",'3 INCOME & EXPENSE'!E453)","v":""},{"$f":"T('3 INCOME & EXPENSE'!G453)","v":""},{"$f":"'3 INCOME & EXPENSE'!M453","v":{"v":0,"d":"0.0"}},{"$f":"'3 INCOME & EXPENSE'!N453","v":{"v":0,"d":"$0.00"}},{"$f":"'3 INCOME & EXPENSE'!O453","v":{"v":0,"d":"$0.00"}},859,{"$f":"'3 INCOME & EXPENSE'!X453","v":101},101000,101101,0]
[null,null,{"$f":"IF('3 INCOME & EXPENSE'!E454=0,\"\",'3 INCOME & EXPENSE'!E454)","v":""},{"$f":"T('3 INCOME & EXPENSE'!G454)","v":""},{"$f":"'3 INCOME & EXPENSE'!M454","v":{"v":0,"d":"0.0"}},{"$f":"'3 INCOME & EXPENSE'!N454","v":{"v":0,"d":"$0.00"}},{"$f":"'3 INCOME & EXPENSE'!O454","v":{"v":0,"d":"$0.00"}},860,{"$f":"'3 INCOME & EXPENSE'!X454","v":101},101000,101101,0]
[null,null,{"$f":"IF('3 INCOME & EXPENSE'!E455=0,\"\",'3 INCOME & EXPENSE'!E455)","v":""},{"$f":"T('3 INCOME & EXPENSE'!G455)","v":""},{"$f":"'3 INCOME & EXPENSE'!M455","v":{"v":0,"d":"0.0"}},{"$f":"'3 INCOME & EXPENSE'!N455","v":{"v":0,"d":"$0.00"}},{"$f":"'3 INCOME & EXPENSE'!O455","v":{"v":0,"d":"$0.00"}},861,{"$f":"'3 INCOME & EXPENSE'!X455","v":101},101000,101101,0]
[null,null,{"$f":"IF('3 INCOME & EXPENSE'!E456=0,\"\",'3 INCOME & EXPENSE'!E456)","v":""},{"$f":"T('3 INCOME & EXPENSE'!G456)","v":""},{"$f":"'3 INCOME & EXPENSE'!M456","v":{"v":0,"d":"0.0"}},{"$f":"'3 INCOME & EXPENSE'!N456","v":{"v":0,"d":"$0.00"}},{"$f":"'3 INCOME & EXPENSE'!O456","v":{"v":0,"d":"$0.00"}},862,{"$f":"'3 INCOME & EXPENSE'!X456","v":101},101000,101101,0]
[null,null,{"$f":"IF('3 INCOME & EXPENSE'!E457=0,\"\",'3 INCOME & EXPENSE'!E457)","v":""},{"$f":"T('3 INCOME & EXPENSE'!G457)","v":""},{"$f":"'3 INCOME & EXPENSE'!M457","v":{"v":0,"d":"0.0"}},{"$f":"'3 INCOME & EXPENSE'!N457","v":{"v":0,"d":"$0.00"}},{"$f":"'3 INCOME & EXPENSE'!O457","v":{"v":0,"d":"$0.00"}},863,{"$f":"'3 INCOME & EXPENSE'!X457","v":101},101000,101101,0]
[null,null,{"$f":"IF('3 INCOME & EXPENSE'!E458=0,\"\",'3 INCOME & EXPENSE'!E458)","v":""},{"$f":"T('3 INCOME & EXPENSE'!G458)","v":""},{"$f":"'3 INCOME & EXPENSE'!M458","v":{"v":0,"d":"0.0"}},{"$f":"'3 INCOME & EXPENSE'!N458","v":{"v":0,"d":"$0.00"}},{"$f":"'3 INCOME & EXPENSE'!O458","v":{"v":0,"d":"$0.00"}},864,{"$f":"'3 INCOME & EXPENSE'!X458","v":101},101000,101101,0]
[null,null,{"$f":"IF('3 INCOME & EXPENSE'!E459=0,\"\",'3 INCOME & EXPENSE'!E459)","v":""},{"$f":"T('3 INCOME & EXPENSE'!G459)","v":""},{"$f":"'3 INCOME & EXPENSE'!M459","v":{"v":0,"d":"0.0"}},{"$f":"'3 INCOME & EXPENSE'!N459","v":{"v":0,"d":"$0.00"}},{"$f":"'3 INCOME & EXPENSE'!O459","v":{"v":0,"d":"$0.00"}},865,{"$f":"'3 INCOME & EXPENSE'!X459","v":101},101000,101101,0]
[null,null,{"$f":"IF('3 INCOME & EXPENSE'!E460=0,\"\",'3 INCOME & EXPENSE'!E460)","v":""},{"$f":"T('3 INCOME & EXPENSE'!G460)","v":""},{"$f":"'3 INCOME & EXPENSE'!M460","v":{"v":0,"d":"0.0"}},{"$f":"'3 INCOME & EXPENSE'!N460","v":{"v":0,"d":"$0.00"}},{"$f":"'3 INCOME & EXPENSE'!O460","v":{"v":0,"d":"$0.00"}},866,{"$f":"'3 INCOME & EXPENSE'!X460","v":101},101000,101101,0]
[null,null,{"$f":"IF('3 INCOME & EXPENSE'!E461=0,\"\",'3 INCOME & EXPENSE'!E461)","v":""},{"$f":"T('3 INCOME & EXPENSE'!G461)","v":""},{"$f":"'3 INCOME & EXPENSE'!M461","v":{"v":0,"d":"0.0"}},{"$f":"'3 INCOME & EXPENSE'!N461","v":{"v":0,"d":"$0.00"}},{"$f":"'3 INCOME & EXPENSE'!O461","v":{"v":0,"d":"$0.00"}},867,{"$f":"'3 INCOME & EXPENSE'!X461","v":101},101000,101101,0]
[null,null,{"$f":"IF('3 INCOME & EXPENSE'!E462=0,\"\",'3 INCOME & EXPENSE'!E462)","v":""},{"$f":"T('3 INCOME & EXPENSE'!G462)","v":""},{"$f":"'3 INCOME & EXPENSE'!M462","v":{"v":0,"d":"0.0"}},{"$f":"'3 INCOME & EXPENSE'!N462","v":{"v":0,"d":"$0.00"}},{"$f":"'3 INCOME & EXPENSE'!O462","v":{"v":0,"d":"$0.00"}},868,{"$f":"'3 INCOME & EXPENSE'!X462","v":101},{"$f":"VLOOKUP(I880,$I$1186:$J$1287,2)","v":101000},101101,{"$f":"K880*E880","v":0}]
[null,null,{"$f":"IF('3 INCOME & EXPENSE'!E463=0,\"\",'3 INCOME & EXPENSE'!E463)","v":""},{"$f":"T('3 INCOME & EXPENSE'!G463)","v":""},{"$f":"'3 INCOME & EXPENSE'!M463","v":{"v":0,"d":"0.0"}},{"$f":"'3 INCOME & EXPENSE'!N463","v":{"v":0,"d":"$0.00"}},{"$f":"'3 INCOME & EXPENSE'!O463","v":{"v":0,"d":"$0.00"}},869,{"$f":"'3 INCOME & EXPENSE'!X463","v":101},101000,101101,0]
[null,null,{"$f":"IF('3 INCOME & EXPENSE'!E464=0,\"\",'3 INCOME & EXPENSE'!E464)","v":""},{"$f":"T('3 INCOME & EXPENSE'!G464)","v":""},{"$f":"'3 INCOME & EXPENSE'!M464","v":{"v":0,"d":"0.0"}},{"$f":"'3 INCOME & EXPENSE'!N464","v":{"v":0,"d":"$0.00"}},{"$f":"'3 INCOME & EXPENSE'!O464","v":{"v":0,"d":"$0.00"}},870,{"$f":"'3 INCOME & EXPENSE'!X464","v":101},101000,101101,0]
[null,null,{"$f":"IF('3 INCOME & EXPENSE'!E465=0,\"\",'3 INCOME & EXPENSE'!E465)","v":""},{"$f":"T('3 INCOME & EXPENSE'!G465)","v":""},{"$f":"'3 INCOME & EXPENSE'!M465","v":{"v":0,"d":"0.0"}},{"$f":"'3 INCOME & EXPENSE'!N465","v":{"v":0,"d":"$0.00"}},{"$f":"'3 INCOME & EXPENSE'!O465","v":{"v":0,"d":"$0.00"}},871,{"$f":"'3 INCOME & EXPENSE'!X465","v":101},101000,101101,0]
[null,null,{"$f":"IF('3 INCOME & EXPENSE'!E466=0,\"\",'3 INCOME & EXPENSE'!E466)","v":""},{"$f":"T('3 INCOME & EXPENSE'!G466)","v":""},{"$f":"'3 INCOME & EXPENSE'!M466","v":{"v":0,"d":"0.0"}},{"$f":"'3 INCOME & EXPENSE'!N466","v":{"v":0,"d":"$0.00"}},{"$f":"'3 INCOME & EXPENSE'!O466","v":{"v":0,"d":"$0.00"}},872,{"$f":"'3 INCOME & EXPENSE'!X466","v":101},101000,101101,0]
[null,null,{"$f":"IF('3 INCOME & EXPENSE'!E467=0,\"\",'3 INCOME & EXPENSE'!E467)","v":""},{"$f":"T('3 INCOME & EXPENSE'!G467)","v":""},{"$f":"'3 INCOME & EXPENSE'!M467","v":{"v":0,"d":"0.0"}},{"$f":"'3 INCOME & EXPENSE'!N467","v":{"v":0,"d":"$0.00"}},{"$f":"'3 INCOME & EXPENSE'!O467","v":{"v":0,"d":"$0.00"}},873,{"$f":"'3 INCOME & EXPENSE'!X467","v":101},101000,101101,0]
[null,null,{"$f":"IF('3 INCOME & EXPENSE'!E468=0,\"\",'3 INCOME & EXPENSE'!E468)","v":""},{"$f":"T('3 INCOME & EXPENSE'!G468)","v":""},{"$f":"'3 INCOME & EXPENSE'!M468","v":{"v":0,"d":"0.0"}},{"$f":"'3 INCOME & EXPENSE'!N468","v":{"v":0,"d":"$0.00"}},{"$f":"'3 INCOME & EXPENSE'!O468","v":{"v":0,"d":"$0.00"}},874,{"$f":"'3 INCOME & EXPENSE'!X468","v":101},101000,101101,0]
[null,null,{"$f":"IF('3 INCOME & EXPENSE'!E469=0,\"\",'3 INCOME & EXPENSE'!E469)","v":""},{"$f":"T('3 INCOME & EXPENSE'!G469)","v":""},{"$f":"'3 INCOME & EXPENSE'!M469","v":{"v":0,"d":"0.0"}},{"$f":"'3 INCOME & EXPENSE'!N469","v":{"v":0,"d":"$0.00"}},{"$f":"'3 INCOME & EXPENSE'!O469","v":{"v":0,"d":"$0.00"}},875,{"$f":"'3 INCOME & EXPENSE'!X469","v":101},101000,101101,0]
[null,null,{"$f":"IF('3 INCOME & EXPENSE'!E470=0,\"\",'3 INCOME & EXPENSE'!E470)","v":""},{"$f":"T('3 INCOME & EXPENSE'!G470)","v":""},{"$f":"'3 INCOME & EXPENSE'!M470","v":{"v":0,"d":"0.0"}},{"$f":"'3 INCOME & EXPENSE'!N470","v":{"v":0,"d":"$0.00"}},{"$f":"'3 INCOME & EXPENSE'!O470","v":{"v":0,"d":"$0.00"}},876,{"$f":"'3 INCOME & EXPENSE'!X470","v":101},101000,101101,0]
[null,null,{"$f":"IF('3 INCOME & EXPENSE'!E471=0,\"\",'3 INCOME & EXPENSE'!E471)","v":""},{"$f":"T('3 INCOME & EXPENSE'!G471)","v":""},{"$f":"'3 INCOME & EXPENSE'!M471","v":{"v":0,"d":"0.0"}},{"$f":"'3 INCOME & EXPENSE'!N471","v":{"v":0,"d":"$0.00"}},{"$f":"'3 INCOME & EXPENSE'!O471","v":{"v":0,"d":"$0.00"}},877,{"$f":"'3 INCOME & EXPENSE'!X471","v":101},101000,101101,0]
[null,null,{"$f":"IF('3 INCOME & EXPENSE'!E472=0,\"\",'3 INCOME & EXPENSE'!E472)","v":""},{"$f":"T('3 INCOME & EXPENSE'!G472)","v":""},{"$f":"'3 INCOME & EXPENSE'!M472","v":{"v":0,"d":"0.0"}},{"$f":"'3 INCOME & EXPENSE'!N472","v":{"v":0,"d":"$0.00"}},{"$f":"'3 INCOME & EXPENSE'!O472","v":{"v":0,"d":"$0.00"}},878,{"$f":"'3 INCOME & EXPENSE'!X472","v":101},101000,101101,0]
[null,null,{"$f":"IF('3 INCOME & EXPENSE'!E473=0,\"\",'3 INCOME & EXPENSE'!E473)","v":""},{"$f":"T('3 INCOME & EXPENSE'!G473)","v":""},{"$f":"'3 INCOME & EXPENSE'!M473","v":{"v":0,"d":"0.0"}},{"$f":"'3 INCOME & EXPENSE'!N473","v":{"v":0,"d":"$0.00"}},{"$f":"'3 INCOME & EXPENSE'!O473","v":{"v":0,"d":"$0.00"}},879,{"$f":"'3 INCOME & EXPENSE'!X473","v":101},101000,101101,0]
[null,null,{"$f":"IF('3 INCOME & EXPENSE'!E474=0,\"\",'3 INCOME & EXPENSE'!E474)","v":""},{"$f":"T('3 INCOME & EXPENSE'!G474)","v":""},{"$f":"'3 INCOME & EXPENSE'!M474","v":{"v":0,"d":"0.0"}},{"$f":"'3 INCOME & EXPENSE'!N474","v":{"v":0,"d":"$0.00"}},{"$f":"'3 INCOME & EXPENSE'!O474","v":{"v":0,"d":"$0.00"}},880,{"$f":"'3 INCOME & EXPENSE'!X474","v":101},101000,101101,0]
[null,null,{"$f":"IF('3 INCOME & EXPENSE'!E475=0,\"\",'3 INCOME & EXPENSE'!E475)","v":""},{"$f":"T('3 INCOME & EXPENSE'!G475)","v":""},{"$f":"'3 INCOME & EXPENSE'!M475","v":{"v":0,"d":"0.0"}},{"$f":"'3 INCOME & EXPENSE'!N475","v":{"v":0,"d":"$0.00"}},{"$f":"'3 INCOME & EXPENSE'!O475","v":{"v":0,"d":"$0.00"}},881,{"$f":"'3 INCOME & EXPENSE'!X475","v":101},101000,101101,0]
[null,null,{"$f":"IF('3 INCOME & EXPENSE'!E476=0,\"\",'3 INCOME & EXPENSE'!E476)","v":""},{"$f":"T('3 INCOME & EXPENSE'!G476)","v":""},{"$f":"'3 INCOME & EXPENSE'!M476","v":{"v":0,"d":"0.0"}},{"$f":"'3 INCOME & EXPENSE'!N476","v":{"v":0,"d":"$0.00"}},{"$f":"'3 INCOME & EXPENSE'!O476","v":{"v":0,"d":"$0.00"}},882,{"$f":"'3 INCOME & EXPENSE'!X476","v":101},101000,101101,0]
[null,null,{"$f":"IF('3 INCOME & EXPENSE'!E477=0,\"\",'3 INCOME & EXPENSE'!E477)","v":""},{"$f":"T('3 INCOME & EXPENSE'!G477)","v":""},{"$f":"'3 INCOME & EXPENSE'!M477","v":{"v":0,"d":"0.0"}},{"$f":"'3 INCOME & EXPENSE'!N477","v":{"v":0,"d":"$0.00"}},{"$f":"'3 INCOME & EXPENSE'!O477","v":{"v":0,"d":"$0.00"}},883,{"$f":"'3 INCOME & EXPENSE'!X477","v":101},101000,101101,0]
[null,null,{"$f":"IF('3 INCOME & EXPENSE'!E478=0,\"\",'3 INCOME & EXPENSE'!E478)","v":""},{"$f":"T('3 INCOME & EXPENSE'!G478)","v":""},{"$f":"'3 INCOME & EXPENSE'!M478","v":{"v":0,"d":"0.0"}},{"$f":"'3 INCOME & EXPENSE'!N478","v":{"v":0,"d":"$0.00"}},{"$f":"'3 INCOME & EXPENSE'!O478","v":{"v":0,"d":"$0.00"}},884,{"$f":"'3 INCOME & EXPENSE'!X478","v":101},101000,101101,0]
[null,null,{"$f":"IF('3 INCOME & EXPENSE'!E479=0,\"\",'3 INCOME & EXPENSE'!E479)","v":""},{"$f":"T('3 INCOME & EXPENSE'!G479)","v":""},{"$f":"'3 INCOME & EXPENSE'!M479","v":{"v":0,"d":"0.0"}},{"$f":"'3 INCOME & EXPENSE'!N479","v":{"v":0,"d":"$0.00"}},{"$f":"'3 INCOME & EXPENSE'!O479","v":{"v":0,"d":"$0.00"}},885,{"$f":"'3 INCOME & EXPENSE'!X479","v":101},101000,{"$f":"I897+J897","v":101101},0]
[null,null,{"$f":"IF('3 INCOME & EXPENSE'!E480=0,\"\",'3 INCOME & EXPENSE'!E480)","v":""},{"$f":"T('3 INCOME & EXPENSE'!G480)","v":""},{"$f":"'3 INCOME & EXPENSE'!M480","v":{"v":0,"d":"0.0"}},{"$f":"'3 INCOME & EXPENSE'!N480","v":{"v":0,"d":"$0.00"}},{"$f":"'3 INCOME & EXPENSE'!O480","v":{"v":0,"d":"$0.00"}},886,{"$f":"'3 INCOME & EXPENSE'!X480","v":101},101000,101101,0]
[null,null,{"$f":"IF('3 INCOME & EXPENSE'!E481=0,\"\",'3 INCOME & EXPENSE'!E481)","v":""},{"$f":"T('3 INCOME & EXPENSE'!G481)","v":""},{"$f":"'3 INCOME & EXPENSE'!M481","v":{"v":0,"d":"0.0"}},{"$f":"'3 INCOME & EXPENSE'!N481","v":{"v":0,"d":"$0.00"}},{"$f":"'3 INCOME & EXPENSE'!O481","v":{"v":0,"d":"$0.00"}},887,{"$f":"'3 INCOME & EXPENSE'!X481","v":101},101000,101101,0]
[null,null,{"$f":"IF('3 INCOME & EXPENSE'!E482=0,\"\",'3 INCOME & EXPENSE'!E482)","v":""},{"$f":"T('3 INCOME & EXPENSE'!G482)","v":""},{"$f":"'3 INCOME & EXPENSE'!M482","v":{"v":0,"d":"0.0"}},{"$f":"'3 INCOME & EXPENSE'!N482","v":{"v":0,"d":"$0.00"}},{"$f":"'3 INCOME & EXPENSE'!O482","v":{"v":0,"d":"$0.00"}},888,{"$f":"'3 INCOME & EXPENSE'!X482","v":101},101000,101101,0]
[null,null,{"$f":"IF('3 INCOME & EXPENSE'!E483=0,\"\",'3 INCOME & EXPENSE'!E483)","v":""},{"$f":"T('3 INCOME & EXPENSE'!G483)","v":""},{"$f":"'3 INCOME & EXPENSE'!M483","v":{"v":0,"d":"0.0"}},{"$f":"'3 INCOME & EXPENSE'!N483","v":{"v":0,"d":"$0.00"}},{"$f":"'3 INCOME & EXPENSE'!O483","v":{"v":0,"d":"$0.00"}},889,{"$f":"'3 INCOME & EXPENSE'!X483","v":101},101000,101101,0]
[null,null,{"$f":"IF('3 INCOME & EXPENSE'!E484=0,\"\",'3 INCOME & EXPENSE'!E484)","v":""},{"$f":"T('3 INCOME & EXPENSE'!G484)","v":""},{"$f":"'3 INCOME & EXPENSE'!M484","v":{"v":0,"d":"0.0"}},{"$f":"'3 INCOME & EXPENSE'!N484","v":{"v":0,"d":"$0.00"}},{"$f":"'3 INCOME & EXPENSE'!O484","v":{"v":0,"d":"$0.00"}},890,{"$f":"'3 INCOME & EXPENSE'!X484","v":101},101000,101101,0]
[null,null,{"$f":"IF('3 INCOME & EXPENSE'!E485=0,\"\",'3 INCOME & EXPENSE'!E485)","v":""},{"$f":"T('3 INCOME & EXPENSE'!G485)","v":""},{"$f":"'3 INCOME & EXPENSE'!M485","v":{"v":0,"d":"0.0"}},{"$f":"'3 INCOME & EXPENSE'!N485","v":{"v":0,"d":"$0.00"}},{"$f":"'3 INCOME & EXPENSE'!O485","v":{"v":0,"d":"$0.00"}},891,{"$f":"'3 INCOME & EXPENSE'!X485","v":101},101000,101101,0]
[null,null,{"$f":"IF('3 INCOME & EXPENSE'!E486=0,\"\",'3 INCOME & EXPENSE'!E486)","v":""},{"$f":"T('3 INCOME & EXPENSE'!G486)","v":""},{"$f":"'3 INCOME & EXPENSE'!M486","v":{"v":0,"d":"0.0"}},{"$f":"'3 INCOME & EXPENSE'!N486","v":{"v":0,"d":"$0.00"}},{"$f":"'3 INCOME & EXPENSE'!O486","v":{"v":0,"d":"$0.00"}},892,{"$f":"'3 INCOME & EXPENSE'!X486","v":101},101000,101101,0]
[null,null,{"$f":"IF('3 INCOME & EXPENSE'!E487=0,\"\",'3 INCOME & EXPENSE'!E487)","v":""},{"$f":"T('3 INCOME & EXPENSE'!G487)","v":""},{"$f":"'3 INCOME & EXPENSE'!M487","v":{"v":0,"d":"0.0"}},{"$f":"'3 INCOME & EXPENSE'!N487","v":{"v":0,"d":"$0.00"}},{"$f":"'3 INCOME & EXPENSE'!O487","v":{"v":0,"d":"$0.00"}},893,{"$f":"'3 INCOME & EXPENSE'!X487","v":101},101000,101101,0]
[null,null,{"$f":"IF('3 INCOME & EXPENSE'!E488=0,\"\",'3 INCOME & EXPENSE'!E488)","v":""},{"$f":"T('3 INCOME & EXPENSE'!G488)","v":""},{"$f":"'3 INCOME & EXPENSE'!M488","v":{"v":0,"d":"0.0"}},{"$f":"'3 INCOME & EXPENSE'!N488","v":{"v":0,"d":"$0.00"}},{"$f":"'3 INCOME & EXPENSE'!O488","v":{"v":0,"d":"$0.00"}},894,{"$f":"'3 INCOME & EXPENSE'!X488","v":101},101000,101101,0]
[null,null,{"$f":"IF('3 INCOME & EXPENSE'!E489=0,\"\",'3 INCOME & EXPENSE'!E489)","v":""},{"$f":"T('3 INCOME & EXPENSE'!G489)","v":""},{"$f":"'3 INCOME & EXPENSE'!M489","v":{"v":0,"d":"0.0"}},{"$f":"'3 INCOME & EXPENSE'!N489","v":{"v":0,"d":"$0.00"}},{"$f":"'3 INCOME & EXPENSE'!O489","v":{"v":0,"d":"$0.00"}},895,{"$f":"'3 INCOME & EXPENSE'!X489","v":101},101000,101101,0]
[null,null,{"$f":"IF('3 INCOME & EXPENSE'!E490=0,\"\",'3 INCOME & EXPENSE'!E490)","v":""},{"$f":"T('3 INCOME & EXPENSE'!G490)","v":""},{"$f":"'3 INCOME & EXPENSE'!M490","v":{"v":0,"d":"0.0"}},{"$f":"'3 INCOME & EXPENSE'!N490","v":{"v":0,"d":"$0.00"}},{"$f":"'3 INCOME & EXPENSE'!O490","v":{"v":0,"d":"$0.00"}},896,{"$f":"'3 INCOME & EXPENSE'!X490","v":101},101000,101101,0]
[null,null,{"$f":"IF('3 INCOME & EXPENSE'!E491=0,\"\",'3 INCOME & EXPENSE'!E491)","v":""},{"$f":"T('3 INCOME & EXPENSE'!G491)","v":""},{"$f":"'3 INCOME & EXPENSE'!M491","v":{"v":0,"d":"0.0"}},{"$f":"'3 INCOME & EXPENSE'!N491","v":{"v":0,"d":"$0.00"}},{"$f":"'3 INCOME & EXPENSE'!O491","v":{"v":0,"d":"$0.00"}},897,{"$f":"'3 INCOME & EXPENSE'!X491","v":101},101000,101101,0]
[null,null,{"$f":"IF('3 INCOME & EXPENSE'!E492=0,\"\",'3 INCOME & EXPENSE'!E492)","v":""},{"$f":"T('3 INCOME & EXPENSE'!G492)","v":""},{"$f":"'3 INCOME & EXPENSE'!M492","v":{"v":0,"d":"0.0"}},{"$f":"'3 INCOME & EXPENSE'!N492","v":{"v":0,"d":"$0.00"}},{"$f":"'3 INCOME & EXPENSE'!O492","v":{"v":0,"d":"$0.00"}},898,{"$f":"'3 INCOME & EXPENSE'!X492","v":101},101000,101101,0]
[null,null,{"$f":"IF('3 INCOME & EXPENSE'!E493=0,\"\",'3 INCOME & EXPENSE'!E493)","v":""},{"$f":"T('3 INCOME & EXPENSE'!G493)","v":""},{"$f":"'3 INCOME & EXPENSE'!M493","v":{"v":0,"d":"0.0"}},{"$f":"'3 INCOME & EXPENSE'!N493","v":{"v":0,"d":"$0.00"}},{"$f":"'3 INCOME & EXPENSE'!O493","v":{"v":0,"d":"$0.00"}},899,{"$f":"'3 INCOME & EXPENSE'!X493","v":101},101000,101101,0]
[null,null,{"$f":"IF('3 INCOME & EXPENSE'!E494=0,\"\",'3 INCOME & EXPENSE'!E494)","v":""},{"$f":"T('3 INCOME & EXPENSE'!G494)","v":""},{"$f":"'3 INCOME & EXPENSE'!M494","v":{"v":0,"d":"0.0"}},{"$f":"'3 INCOME & EXPENSE'!N494","v":{"v":0,"d":"$0.00"}},{"$f":"'3 INCOME & EXPENSE'!O494","v":{"v":0,"d":"$0.00"}},900,{"$f":"'3 INCOME & EXPENSE'!X494","v":101},101000,101101,0]
[null,null,{"$f":"IF('3 INCOME & EXPENSE'!E495=0,\"\",'3 INCOME & EXPENSE'!E495)","v":""},{"$f":"T('3 INCOME & EXPENSE'!G495)","v":""},{"$f":"'3 INCOME & EXPENSE'!M495","v":{"v":0,"d":"0.0"}},{"$f":"'3 INCOME & EXPENSE'!N495","v":{"v":0,"d":"$0.00"}},{"$f":"'3 INCOME & EXPENSE'!O495","v":{"v":0,"d":"$0.00"}},901,{"$f":"'3 INCOME & EXPENSE'!X495","v":101},101000,101101,0]
[null,null,{"$f":"IF('3 INCOME & EXPENSE'!E496=0,\"\",'3 INCOME & EXPENSE'!E496)","v":""},{"$f":"T('3 INCOME & EXPENSE'!G496)","v":""},{"$f":"'3 INCOME & EXPENSE'!M496","v":{"v":0,"d":"0.0"}},{"$f":"'3 INCOME & EXPENSE'!N496","v":{"v":0,"d":"$0.00"}},{"$f":"'3 INCOME & EXPENSE'!O496","v":{"v":0,"d":"$0.00"}},902,{"$f":"'3 INCOME & EXPENSE'!X496","v":101},101000,101101,0]
[null,null,{"$f":"IF('3 INCOME & EXPENSE'!E497=0,\"\",'3 INCOME & EXPENSE'!E497)","v":""},{"$f":"T('3 INCOME & EXPENSE'!G497)","v":""},{"$f":"'3 INCOME & EXPENSE'!M497","v":{"v":0,"d":"0.0"}},{"$f":"'3 INCOME & EXPENSE'!N497","v":{"v":0,"d":"$0.00"}},{"$f":"'3 INCOME & EXPENSE'!O497","v":{"v":0,"d":"$0.00"}},903,{"$f":"'3 INCOME & EXPENSE'!X497","v":101},101000,101101,0]
[null,null,{"$f":"IF('3 INCOME & EXPENSE'!E498=0,\"\",'3 INCOME & EXPENSE'!E498)","v":""},{"$f":"T('3 INCOME & EXPENSE'!G498)","v":""},{"$f":"'3 INCOME & EXPENSE'!M498","v":{"v":0,"d":"0.0"}},{"$f":"'3 INCOME & EXPENSE'!N498","v":{"v":0,"d":"$0.00"}},{"$f":"'3 INCOME & EXPENSE'!O498","v":{"v":0,"d":"$0.00"}},904,{"$f":"'3 INCOME & EXPENSE'!X498","v":101},101000,101101,0]
[null,null,{"$f":"IF('3 INCOME & EXPENSE'!E499=0,\"\",'3 INCOME & EXPENSE'!E499)","v":""},{"$f":"T('3 INCOME & EXPENSE'!G499)","v":""},{"$f":"'3 INCOME & EXPENSE'!M499","v":{"v":0,"d":"0.0"}},{"$f":"'3 INCOME & EXPENSE'!N499","v":{"v":0,"d":"$0.00"}},{"$f":"'3 INCOME & EXPENSE'!O499","v":{"v":0,"d":"$0.00"}},905,{"$f":"'3 INCOME & EXPENSE'!X499","v":101},101000,101101,0]
[null,null,{"$f":"IF('3 INCOME & EXPENSE'!E500=0,\"\",'3 INCOME & EXPENSE'!E500)","v":""},{"$f":"T('3 INCOME & EXPENSE'!G500)","v":""},{"$f":"'3 INCOME & EXPENSE'!M500","v":{"v":0,"d":"0.0"}},{"$f":"'3 INCOME & EXPENSE'!N500","v":{"v":0,"d":"$0.00"}},{"$f":"'3 INCOME & EXPENSE'!O500","v":{"v":0,"d":"$0.00"}},906,{"$f":"'3 INCOME & EXPENSE'!X500","v":101},101000,101101,0]
[null,null,{"$f":"IF('3 INCOME & EXPENSE'!E501=0,\"\",'3 INCOME & EXPENSE'!E501)","v":""},{"$f":"T('3 INCOME & EXPENSE'!G501)","v":""},{"$f":"'3 INCOME & EXPENSE'!M501","v":{"v":0,"d":"0.0"}},{"$f":"'3 INCOME & EXPENSE'!N501","v":{"v":0,"d":"$0.00"}},{"$f":"'3 INCOME & EXPENSE'!O501","v":{"v":0,"d":"$0.00"}},907,{"$f":"'3 INCOME & EXPENSE'!X501","v":101},101000,101101,0]
[null,null,{"$f":"IF('3 INCOME & EXPENSE'!E502=0,\"\",'3 INCOME & EXPENSE'!E502)","v":""},{"$f":"T('3 INCOME & EXPENSE'!G502)","v":""},{"$f":"'3 INCOME & EXPENSE'!M502","v":{"v":0,"d":"0.0"}},{"$f":"'3 INCOME & EXPENSE'!N502","v":{"v":0,"d":"$0.00"}},{"$f":"'3 INCOME & EXPENSE'!O502","v":{"v":0,"d":"$0.00"}},908,{"$f":"'3 INCOME & EXPENSE'!X502","v":101},101000,101101,0]
[null,null,{"$f":"IF('3 INCOME & EXPENSE'!E503=0,\"\",'3 INCOME & EXPENSE'!E503)","v":""},{"$f":"T('3 INCOME & EXPENSE'!G503)","v":""},{"$f":"'3 INCOME & EXPENSE'!M503","v":{"v":0,"d":"0.0"}},{"$f":"'3 INCOME & EXPENSE'!N503","v":{"v":0,"d":"$0.00"}},{"$f":"'3 INCOME & EXPENSE'!O503","v":{"v":0,"d":"$0.00"}},909,{"$f":"'3 INCOME & EXPENSE'!X503","v":101},101000,101101,0]
[null,null,{"$f":"IF('3 INCOME & EXPENSE'!E504=0,\"\",'3 INCOME & EXPENSE'!E504)","v":""},{"$f":"T('3 INCOME & EXPENSE'!G504)","v":""},{"$f":"'3 INCOME & EXPENSE'!M504","v":{"v":0,"d":"0.0"}},{"$f":"'3 INCOME & EXPENSE'!N504","v":{"v":0,"d":"$0.00"}},{"$f":"'3 INCOME & EXPENSE'!O504","v":{"v":0,"d":"$0.00"}},910,{"$f":"'3 INCOME & EXPENSE'!X504","v":101},101000,101101,0]
[null,null,{"$f":"IF('3 INCOME & EXPENSE'!E505=0,\"\",'3 INCOME & EXPENSE'!E505)","v":""},{"$f":"T('3 INCOME & EXPENSE'!G505)","v":""},{"$f":"'3 INCOME & EXPENSE'!M505","v":{"v":0,"d":"0.0"}},{"$f":"'3 INCOME & EXPENSE'!N505","v":{"v":0,"d":"$0.00"}},{"$f":"'3 INCOME & EXPENSE'!O505","v":{"v":0,"d":"$0.00"}},911,{"$f":"'3 INCOME & EXPENSE'!X505","v":101},101000,101101,0]
[null,null,{"$f":"IF('3 INCOME & EXPENSE'!E506=0,\"\",'3 INCOME & EXPENSE'!E506)","v":""},{"$f":"T('3 INCOME & EXPENSE'!G506)","v":""},{"$f":"'3 INCOME & EXPENSE'!M506","v":{"v":0,"d":"0.0"}},{"$f":"'3 INCOME & EXPENSE'!N506","v":{"v":0,"d":"$0.00"}},{"$f":"'3 INCOME & EXPENSE'!O506","v":{"v":0,"d":"$0.00"}},912,{"$f":"'3 INCOME & EXPENSE'!X506","v":101},101000,101101,0]
[null,null,{"$f":"IF('3 INCOME & EXPENSE'!E507=0,\"\",'3 INCOME & EXPENSE'!E507)","v":""},{"$f":"T('3 INCOME & EXPENSE'!G507)","v":""},{"$f":"'3 INCOME & EXPENSE'!M507","v":{"v":0,"d":"0.0"}},{"$f":"'3 INCOME & EXPENSE'!N507","v":{"v":0,"d":"$0.00"}},{"$f":"'3 INCOME & EXPENSE'!O507","v":{"v":0,"d":"$0.00"}},913,{"$f":"'3 INCOME & EXPENSE'!X507","v":101},101000,101101,0]
[null,null,{"$f":"IF('3 INCOME & EXPENSE'!E508=0,\"\",'3 INCOME & EXPENSE'!E508)","v":""},{"$f":"T('3 INCOME & EXPENSE'!G508)","v":""},{"$f":"'3 INCOME & EXPENSE'!M508","v":{"v":0,"d":"0.0"}},{"$f":"'3 INCOME & EXPENSE'!N508","v":{"v":0,"d":"$0.00"}},{"$f":"'3 INCOME & EXPENSE'!O508","v":{"v":0,"d":"$0.00"}},914,{"$f":"'3 INCOME & EXPENSE'!X508","v":101},101000,101101,0]
[null,null,{"$f":"IF('3 INCOME & EXPENSE'!E509=0,\"\",'3 INCOME & EXPENSE'!E509)","v":""},{"$f":"T('3 INCOME & EXPENSE'!G509)","v":""},{"$f":"'3 INCOME & EXPENSE'!M509","v":{"v":0,"d":"0.0"}},{"$f":"'3 INCOME & EXPENSE'!N509","v":{"v":0,"d":"$0.00"}},{"$f":"'3 INCOME & EXPENSE'!O509","v":{"v":0,"d":"$0.00"}},915,{"$f":"'3 INCOME & EXPENSE'!X509","v":101},101000,101101,0]
[null,null,{"$f":"IF('3 INCOME & EXPENSE'!E510=0,\"\",'3 INCOME & EXPENSE'!E510)","v":""},{"$f":"T('3 INCOME & EXPENSE'!G510)","v":""},{"$f":"'3 INCOME & EXPENSE'!M510","v":{"v":0,"d":"0.0"}},{"$f":"'3 INCOME & EXPENSE'!N510","v":{"v":0,"d":"$0.00"}},{"$f":"'3 INCOME & EXPENSE'!O510","v":{"v":0,"d":"$0.00"}},916,{"$f":"'3 INCOME & EXPENSE'!X510","v":101},101000,101101,0]
[null,null,{"$f":"IF('3 INCOME & EXPENSE'!E511=0,\"\",'3 INCOME & EXPENSE'!E511)","v":""},{"$f":"T('3 INCOME & EXPENSE'!G511)","v":""},{"$f":"'3 INCOME & EXPENSE'!M511","v":{"v":0,"d":"0.0"}},{"$f":"'3 INCOME & EXPENSE'!N511","v":{"v":0,"d":"$0.00"}},{"$f":"'3 INCOME & EXPENSE'!O511","v":{"v":0,"d":"$0.00"}},917,{"$f":"'3 INCOME & EXPENSE'!X511","v":101},101000,101101,0]
[null,null,{"$f":"IF('3 INCOME & EXPENSE'!E512=0,\"\",'3 INCOME & EXPENSE'!E512)","v":""},{"$f":"T('3 INCOME & EXPENSE'!G512)","v":""},{"$f":"'3 INCOME & EXPENSE'!M512","v":{"v":0,"d":"0.0"}},{"$f":"'3 INCOME & EXPENSE'!N512","v":{"v":0,"d":"$0.00"}},{"$f":"'3 INCOME & EXPENSE'!O512","v":{"v":0,"d":"$0.00"}},918,{"$f":"'3 INCOME & EXPENSE'!X512","v":101},101000,101101,0]
[null,null,{"$f":"IF('3 INCOME & EXPENSE'!E513=0,\"\",'3 INCOME & EXPENSE'!E513)","v":""},{"$f":"T('3 INCOME & EXPENSE'!G513)","v":""},{"$f":"'3 INCOME & EXPENSE'!M513","v":{"v":0,"d":"0.0"}},{"$f":"'3 INCOME & EXPENSE'!N513","v":{"v":0,"d":"$0.00"}},{"$f":"'3 INCOME & EXPENSE'!O513","v":{"v":0,"d":"$0.00"}},919,{"$f":"'3 INCOME & EXPENSE'!X513","v":101},101000,101101,0]
[null,null,{"$f":"IF('3 INCOME & EXPENSE'!E514=0,\"\",'3 INCOME & EXPENSE'!E514)","v":""},{"$f":"T('3 INCOME & EXPENSE'!G514)","v":""},{"$f":"'3 INCOME & EXPENSE'!M514","v":{"v":0,"d":"0.0"}},{"$f":"'3 INCOME & EXPENSE'!N514","v":{"v":0,"d":"$0.00"}},{"$f":"'3 INCOME & EXPENSE'!O514","v":{"v":0,"d":"$0.00"}},920,{"$f":"'3 INCOME & EXPENSE'!X514","v":101},101000,101101,0]
[null,null,{"$f":"IF('3 INCOME & EXPENSE'!E515=0,\"\",'3 INCOME & EXPENSE'!E515)","v":""},{"$f":"T('3 INCOME & EXPENSE'!G515)","v":""},{"$f":"'3 INCOME & EXPENSE'!M515","v":{"v":0,"d":"0.0"}},{"$f":"'3 INCOME & EXPENSE'!N515","v":{"v":0,"d":"$0.00"}},{"$f":"'3 INCOME & EXPENSE'!O515","v":{"v":0,"d":"$0.00"}},921,{"$f":"'3 INCOME & EXPENSE'!X515","v":101},101000,101101,0]
[null,null,{"$f":"IF('3 INCOME & EXPENSE'!E516=0,\"\",'3 INCOME & EXPENSE'!E516)","v":""},{"$f":"T('3 INCOME & EXPENSE'!G516)","v":""},{"$f":"'3 INCOME & EXPENSE'!M516","v":{"v":0,"d":"0.0"}},{"$f":"'3 INCOME & EXPENSE'!N516","v":{"v":0,"d":"$0.00"}},{"$f":"'3 INCOME & EXPENSE'!O516","v":{"v":0,"d":"$0.00"}},922,{"$f":"'3 INCOME & EXPENSE'!X516","v":101},101000,101101,0]
[null,null,{"$f":"IF('3 INCOME & EXPENSE'!E517=0,\"\",'3 INCOME & EXPENSE'!E517)","v":""},{"$f":"T('3 INCOME & EXPENSE'!G517)","v":""},{"$f":"'3 INCOME & EXPENSE'!M517","v":{"v":0,"d":"0.0"}},{"$f":"'3 INCOME & EXPENSE'!N517","v":{"v":0,"d":"$0.00"}},{"$f":"'3 INCOME & EXPENSE'!O517","v":{"v":0,"d":"$0.00"}},923,{"$f":"'3 INCOME & EXPENSE'!X517","v":101},101000,101101,0]
[null,null,{"$f":"IF('3 INCOME & EXPENSE'!E518=0,\"\",'3 INCOME & EXPENSE'!E518)","v":""},{"$f":"T('3 INCOME & EXPENSE'!G518)","v":""},{"$f":"'3 INCOME & EXPENSE'!M518","v":{"v":0,"d":"0.0"}},{"$f":"'3 INCOME & EXPENSE'!N518","v":{"v":0,"d":"$0.00"}},{"$f":"'3 INCOME & EXPENSE'!O518","v":{"v":0,"d":"$0.00"}},924,{"$f":"'3 INCOME & EXPENSE'!X518","v":101},101000,101101,0]
[null,null,{"$f":"IF('3 INCOME & EXPENSE'!E519=0,\"\",'3 INCOME & EXPENSE'!E519)","v":""},{"$f":"T('3 INCOME & EXPENSE'!G519)","v":""},{"$f":"'3 INCOME & EXPENSE'!M519","v":{"v":0,"d":"0.0"}},{"$f":"'3 INCOME & EXPENSE'!N519","v":{"v":0,"d":"$0.00"}},{"$f":"'3 INCOME & EXPENSE'!O519","v":{"v":0,"d":"$0.00"}},925,{"$f":"'3 INCOME & EXPENSE'!X519","v":101},101000,101101,0]
[null,null,{"$f":"IF('3 INCOME & EXPENSE'!E520=0,\"\",'3 INCOME & EXPENSE'!E520)","v":""},{"$f":"T('3 INCOME & EXPENSE'!G520)","v":""},{"$f":"'3 INCOME & EXPENSE'!M520","v":{"v":0,"d":"0.0"}},{"$f":"'3 INCOME & EXPENSE'!N520","v":{"v":0,"d":"$0.00"}},{"$f":"'3 INCOME & EXPENSE'!O520","v":{"v":0,"d":"$0.00"}},926,{"$f":"'3 INCOME & EXPENSE'!X520","v":101},101000,101101,0]
[null,null,{"$f":"IF('3 INCOME & EXPENSE'!E521=0,\"\",'3 INCOME & EXPENSE'!E521)","v":""},{"$f":"T('3 INCOME & EXPENSE'!G521)","v":""},{"$f":"'3 INCOME & EXPENSE'!M521","v":{"v":0,"d":"0.0"}},{"$f":"'3 INCOME & EXPENSE'!N521","v":{"v":0,"d":"$0.00"}},{"$f":"'3 INCOME & EXPENSE'!O521","v":{"v":0,"d":"$0.00"}},927,{"$f":"'3 INCOME & EXPENSE'!X521","v":101},101000,101101,0]
[null,null,{"$f":"IF('3 INCOME & EXPENSE'!E522=0,\"\",'3 INCOME & EXPENSE'!E522)","v":""},{"$f":"T('3 INCOME & EXPENSE'!G522)","v":""},{"$f":"'3 INCOME & EXPENSE'!M522","v":{"v":0,"d":"0.0"}},{"$f":"'3 INCOME & EXPENSE'!N522","v":{"v":0,"d":"$0.00"}},{"$f":"'3 INCOME & EXPENSE'!O522","v":{"v":0,"d":"$0.00"}},928,{"$f":"'3 INCOME & EXPENSE'!X522","v":101},101000,101101,0]
[null,null,{"$f":"IF('3 INCOME & EXPENSE'!E523=0,\"\",'3 INCOME & EXPENSE'!E523)","v":""},{"$f":"T('3 INCOME & EXPENSE'!G523)","v":""},{"$f":"'3 INCOME & EXPENSE'!M523","v":{"v":0,"d":"0.0"}},{"$f":"'3 INCOME & EXPENSE'!N523","v":{"v":0,"d":"$0.00"}},{"$f":"'3 INCOME & EXPENSE'!O523","v":{"v":0,"d":"$0.00"}},929,{"$f":"'3 INCOME & EXPENSE'!X523","v":101},101000,101101,0]
[null,null,{"$f":"IF('3 INCOME & EXPENSE'!E524=0,\"\",'3 INCOME & EXPENSE'!E524)","v":""},{"$f":"T('3 INCOME & EXPENSE'!G524)","v":""},{"$f":"'3 INCOME & EXPENSE'!M524","v":{"v":0,"d":"0.0"}},{"$f":"'3 INCOME & EXPENSE'!N524","v":{"v":0,"d":"$0.00"}},{"$f":"'3 INCOME & EXPENSE'!O524","v":{"v":0,"d":"$0.00"}},930,{"$f":"'3 INCOME & EXPENSE'!X524","v":101},101000,101101,0]
[null,null,{"$f":"IF('3 INCOME & EXPENSE'!E525=0,\"\",'3 INCOME & EXPENSE'!E525)","v":""},{"$f":"T('3 INCOME & EXPENSE'!G525)","v":""},{"$f":"'3 INCOME & EXPENSE'!M525","v":{"v":0,"d":"0.0"}},{"$f":"'3 INCOME & EXPENSE'!N525","v":{"v":0,"d":"$0.00"}},{"$f":"'3 INCOME & EXPENSE'!O525","v":{"v":0,"d":"$0.00"}},931,{"$f":"'3 INCOME & EXPENSE'!X525","v":101},101000,101101,0]
[null,null,{"$f":"IF('3 INCOME & EXPENSE'!E526=0,\"\",'3 INCOME & EXPENSE'!E526)","v":""},{"$f":"T('3 INCOME & EXPENSE'!G526)","v":""},{"$f":"'3 INCOME & EXPENSE'!M526","v":{"v":0,"d":"0.0"}},{"$f":"'3 INCOME & EXPENSE'!N526","v":{"v":0,"d":"$0.00"}},{"$f":"'3 INCOME & EXPENSE'!O526","v":{"v":0,"d":"$0.00"}},932,{"$f":"'3 INCOME & EXPENSE'!X526","v":101},{"$f":"VLOOKUP(I944,$I$1186:$J$1287,2)","v":101000},101101,{"$f":"K944*E944","v":0}]
[null,null,{"$f":"IF('3 INCOME & EXPENSE'!E527=0,\"\",'3 INCOME & EXPENSE'!E527)","v":""},{"$f":"T('3 INCOME & EXPENSE'!G527)","v":""},{"$f":"'3 INCOME & EXPENSE'!M527","v":{"v":0,"d":"0.0"}},{"$f":"'3 INCOME & EXPENSE'!N527","v":{"v":0,"d":"$0.00"}},{"$f":"'3 INCOME & EXPENSE'!O527","v":{"v":0,"d":"$0.00"}},933,{"$f":"'3 INCOME & EXPENSE'!X527","v":101},101000,101101,0]
[null,null,{"$f":"IF('3 INCOME & EXPENSE'!E528=0,\"\",'3 INCOME & EXPENSE'!E528)","v":""},{"$f":"T('3 INCOME & EXPENSE'!G528)","v":""},{"$f":"'3 INCOME & EXPENSE'!M528","v":{"v":0,"d":"0.0"}},{"$f":"'3 INCOME & EXPENSE'!N528","v":{"v":0,"d":"$0.00"}},{"$f":"'3 INCOME & EXPENSE'!O528","v":{"v":0,"d":"$0.00"}},934,{"$f":"'3 INCOME & EXPENSE'!X528","v":101},101000,101101,0]
[null,null,{"$f":"IF('3 INCOME & EXPENSE'!E529=0,\"\",'3 INCOME & EXPENSE'!E529)","v":""},{"$f":"T('3 INCOME & EXPENSE'!G529)","v":""},{"$f":"'3 INCOME & EXPENSE'!M529","v":{"v":0,"d":"0.0"}},{"$f":"'3 INCOME & EXPENSE'!N529","v":{"v":0,"d":"$0.00"}},{"$f":"'3 INCOME & EXPENSE'!O529","v":{"v":0,"d":"$0.00"}},935,{"$f":"'3 INCOME & EXPENSE'!X529","v":101},101000,101101,0]
[null,null,{"$f":"IF('3 INCOME & EXPENSE'!E530=0,\"\",'3 INCOME & EXPENSE'!E530)","v":""},{"$f":"T('3 INCOME & EXPENSE'!G530)","v":""},{"$f":"'3 INCOME & EXPENSE'!M530","v":{"v":0,"d":"0.0"}},{"$f":"'3 INCOME & EXPENSE'!N530","v":{"v":0,"d":"$0.00"}},{"$f":"'3 INCOME & EXPENSE'!O530","v":{"v":0,"d":"$0.00"}},936,{"$f":"'3 INCOME & EXPENSE'!X530","v":101},101000,101101,0]
[null,null,{"$f":"IF('3 INCOME & EXPENSE'!E531=0,\"\",'3 INCOME & EXPENSE'!E531)","v":""},{"$f":"T('3 INCOME & EXPENSE'!G531)","v":""},{"$f":"'3 INCOME & EXPENSE'!M531","v":{"v":0,"d":"0.0"}},{"$f":"'3 INCOME & EXPENSE'!N531","v":{"v":0,"d":"$0.00"}},{"$f":"'3 INCOME & EXPENSE'!O531","v":{"v":0,"d":"$0.00"}},937,{"$f":"'3 INCOME & EXPENSE'!X531","v":101},101000,101101,0]
[null,null,{"$f":"IF('3 INCOME & EXPENSE'!E532=0,\"\",'3 INCOME & EXPENSE'!E532)","v":""},{"$f":"T('3 INCOME & EXPENSE'!G532)","v":""},{"$f":"'3 INCOME & EXPENSE'!M532","v":{"v":0,"d":"0.0"}},{"$f":"'3 INCOME & EXPENSE'!N532","v":{"v":0,"d":"$0.00"}},{"$f":"'3 INCOME & EXPENSE'!O532","v":{"v":0,"d":"$0.00"}},938,{"$f":"'3 INCOME & EXPENSE'!X532","v":101},101000,101101,0]
[null,null,{"$f":"IF('3 INCOME & EXPENSE'!E533=0,\"\",'3 INCOME & EXPENSE'!E533)","v":""},{"$f":"T('3 INCOME & EXPENSE'!G533)","v":""},{"$f":"'3 INCOME & EXPENSE'!M533","v":{"v":0,"d":"0.0"}},{"$f":"'3 INCOME & EXPENSE'!N533","v":{"v":0,"d":"$0.00"}},{"$f":"'3 INCOME & EXPENSE'!O533","v":{"v":0,"d":"$0.00"}},939,{"$f":"'3 INCOME & EXPENSE'!X533","v":101},101000,101101,0]
[null,null,{"$f":"IF('3 INCOME & EXPENSE'!E534=0,\"\",'3 INCOME & EXPENSE'!E534)","v":""},{"$f":"T('3 INCOME & EXPENSE'!G534)","v":""},{"$f":"'3 INCOME & EXPENSE'!M534","v":{"v":0,"d":"0.0"}},{"$f":"'3 INCOME & EXPENSE'!N534","v":{"v":0,"d":"$0.00"}},{"$f":"'3 INCOME & EXPENSE'!O534","v":{"v":0,"d":"$0.00"}},940,{"$f":"'3 INCOME & EXPENSE'!X534","v":101},101000,101101,0]
[null,null,{"$f":"IF('3 INCOME & EXPENSE'!E535=0,\"\",'3 INCOME & EXPENSE'!E535)","v":""},{"$f":"T('3 INCOME & EXPENSE'!G535)","v":""},{"$f":"'3 INCOME & EXPENSE'!M535","v":{"v":0,"d":"0.0"}},{"$f":"'3 INCOME & EXPENSE'!N535","v":{"v":0,"d":"$0.00"}},{"$f":"'3 INCOME & EXPENSE'!O535","v":{"v":0,"d":"$0.00"}},941,{"$f":"'3 INCOME & EXPENSE'!X535","v":101},101000,101101,0]
[null,null,{"$f":"IF('3 INCOME & EXPENSE'!E536=0,\"\",'3 INCOME & EXPENSE'!E536)","v":""},{"$f":"T('3 INCOME & EXPENSE'!G536)","v":""},{"$f":"'3 INCOME & EXPENSE'!M536","v":{"v":0,"d":"0.0"}},{"$f":"'3 INCOME & EXPENSE'!N536","v":{"v":0,"d":"$0.00"}},{"$f":"'3 INCOME & EXPENSE'!O536","v":{"v":0,"d":"$0.00"}},942,{"$f":"'3 INCOME & EXPENSE'!X536","v":101},101000,101101,0]
[null,null,{"$f":"IF('3 INCOME & EXPENSE'!E537=0,\"\",'3 INCOME & EXPENSE'!E537)","v":""},{"$f":"T('3 INCOME & EXPENSE'!G537)","v":""},{"$f":"'3 INCOME & EXPENSE'!M537","v":{"v":0,"d":"0.0"}},{"$f":"'3 INCOME & EXPENSE'!N537","v":{"v":0,"d":"$0.00"}},{"$f":"'3 INCOME & EXPENSE'!O537","v":{"v":0,"d":"$0.00"}},943,{"$f":"'3 INCOME & EXPENSE'!X537","v":101},101000,101101,0]
[null,null,{"$f":"IF('3 INCOME & EXPENSE'!E538=0,\"\",'3 INCOME & EXPENSE'!E538)","v":""},{"$f":"T('3 INCOME & EXPENSE'!G538)","v":""},{"$f":"'3 INCOME & EXPENSE'!M538","v":{"v":0,"d":"0.0"}},{"$f":"'3 INCOME & EXPENSE'!N538","v":{"v":0,"d":"$0.00"}},{"$f":"'3 INCOME & EXPENSE'!O538","v":{"v":0,"d":"$0.00"}},944,{"$f":"'3 INCOME & EXPENSE'!X538","v":101},101000,101101,0]
[null,null,{"$f":"IF('3 INCOME & EXPENSE'!E539=0,\"\",'3 INCOME & EXPENSE'!E539)","v":""},{"$f":"T('3 INCOME & EXPENSE'!G539)","v":""},{"$f":"'3 INCOME & EXPENSE'!M539","v":{"v":0,"d":"0.0"}},{"$f":"'3 INCOME & EXPENSE'!N539","v":{"v":0,"d":"$0.00"}},{"$f":"'3 INCOME & EXPENSE'!O539","v":{"v":0,"d":"$0.00"}},945,{"$f":"'3 INCOME & EXPENSE'!X539","v":101},101000,101101,0]
[null,null,{"$f":"IF('3 INCOME & EXPENSE'!E540=0,\"\",'3 INCOME & EXPENSE'!E540)","v":""},{"$f":"T('3 INCOME & EXPENSE'!G540)","v":""},{"$f":"'3 INCOME & EXPENSE'!M540","v":{"v":0,"d":"0.0"}},{"$f":"'3 INCOME & EXPENSE'!N540","v":{"v":0,"d":"$0.00"}},{"$f":"'3 INCOME & EXPENSE'!O540","v":{"v":0,"d":"$0.00"}},946,{"$f":"'3 INCOME & EXPENSE'!X540","v":101},101000,101101,0]
[null,null,{"$f":"IF('3 INCOME & EXPENSE'!E541=0,\"\",'3 INCOME & EXPENSE'!E541)","v":""},{"$f":"T('3 INCOME & EXPENSE'!G541)","v":""},{"$f":"'3 INCOME & EXPENSE'!M541","v":{"v":0,"d":"0.0"}},{"$f":"'3 INCOME & EXPENSE'!N541","v":{"v":0,"d":"$0.00"}},{"$f":"'3 INCOME & EXPENSE'!O541","v":{"v":0,"d":"$0.00"}},947,{"$f":"'3 INCOME & EXPENSE'!X541","v":101},101000,101101,0]
[null,null,{"$f":"IF('3 INCOME & EXPENSE'!E542=0,\"\",'3 INCOME & EXPENSE'!E542)","v":""},{"$f":"T('3 INCOME & EXPENSE'!G542)","v":""},{"$f":"'3 INCOME & EXPENSE'!M542","v":{"v":0,"d":"0.0"}},{"$f":"'3 INCOME & EXPENSE'!N542","v":{"v":0,"d":"$0.00"}},{"$f":"'3 INCOME & EXPENSE'!O542","v":{"v":0,"d":"$0.00"}},948,{"$f":"'3 INCOME & EXPENSE'!X542","v":101},101000,101101,0]
[null,null,{"$f":"IF('3 INCOME & EXPENSE'!E543=0,\"\",'3 INCOME & EXPENSE'!E543)","v":""},{"$f":"T('3 INCOME & EXPENSE'!G543)","v":""},{"$f":"'3 INCOME & EXPENSE'!M543","v":{"v":0,"d":"0.0"}},{"$f":"'3 INCOME & EXPENSE'!N543","v":{"v":0,"d":"$0.00"}},{"$f":"'3 INCOME & EXPENSE'!O543","v":{"v":0,"d":"$0.00"}},949,{"$f":"'3 INCOME & EXPENSE'!X543","v":101},101000,{"$f":"I961+J961","v":101101},0]
[null,null,{"$f":"IF('3 INCOME & EXPENSE'!E544=0,\"\",'3 INCOME & EXPENSE'!E544)","v":""},{"$f":"T('3 INCOME & EXPENSE'!G544)","v":""},{"$f":"'3 INCOME & EXPENSE'!M544","v":{"v":0,"d":"0.0"}},{"$f":"'3 INCOME & EXPENSE'!N544","v":{"v":0,"d":"$0.00"}},{"$f":"'3 INCOME & EXPENSE'!O544","v":{"v":0,"d":"$0.00"}},950,{"$f":"'3 INCOME & EXPENSE'!X544","v":101},101000,101101,0]
[null,null,{"$f":"IF('3 INCOME & EXPENSE'!E545=0,\"\",'3 INCOME & EXPENSE'!E545)","v":""},{"$f":"T('3 INCOME & EXPENSE'!G545)","v":""},{"$f":"'3 INCOME & EXPENSE'!M545","v":{"v":0,"d":"0.0"}},{"$f":"'3 INCOME & EXPENSE'!N545","v":{"v":0,"d":"$0.00"}},{"$f":"'3 INCOME & EXPENSE'!O545","v":{"v":0,"d":"$0.00"}},951,{"$f":"'3 INCOME & EXPENSE'!X545","v":101},101000,101101,0]
[null,null,{"$f":"IF('3 INCOME & EXPENSE'!E546=0,\"\",'3 INCOME & EXPENSE'!E546)","v":""},{"$f":"T('3 INCOME & EXPENSE'!G546)","v":""},{"$f":"'3 INCOME & EXPENSE'!M546","v":{"v":0,"d":"0.0"}},{"$f":"'3 INCOME & EXPENSE'!N546","v":{"v":0,"d":"$0.00"}},{"$f":"'3 INCOME & EXPENSE'!O546","v":{"v":0,"d":"$0.00"}},952,{"$f":"'3 INCOME & EXPENSE'!X546","v":101},101000,101101,0]
[null,null,{"$f":"IF('3 INCOME & EXPENSE'!E547=0,\"\",'3 INCOME & EXPENSE'!E547)","v":""},{"$f":"T('3 INCOME & EXPENSE'!G547)","v":""},{"$f":"'3 INCOME & EXPENSE'!M547","v":{"v":0,"d":"0.0"}},{"$f":"'3 INCOME & EXPENSE'!N547","v":{"v":0,"d":"$0.00"}},{"$f":"'3 INCOME & EXPENSE'!O547","v":{"v":0,"d":"$0.00"}},953,{"$f":"'3 INCOME & EXPENSE'!X547","v":101},101000,101101,0]
[null,null,{"$f":"IF('3 INCOME & EXPENSE'!E548=0,\"\",'3 INCOME & EXPENSE'!E548)","v":""},{"$f":"T('3 INCOME & EXPENSE'!G548)","v":""},{"$f":"'3 INCOME & EXPENSE'!M548","v":{"v":0,"d":"0.0"}},{"$f":"'3 INCOME & EXPENSE'!N548","v":{"v":0,"d":"$0.00"}},{"$f":"'3 INCOME & EXPENSE'!O548","v":{"v":0,"d":"$0.00"}},954,{"$f":"'3 INCOME & EXPENSE'!X548","v":101},101000,101101,0]
[null,null,{"$f":"IF('3 INCOME & EXPENSE'!E549=0,\"\",'3 INCOME & EXPENSE'!E549)","v":""},{"$f":"T('3 INCOME & EXPENSE'!G549)","v":""},{"$f":"'3 INCOME & EXPENSE'!M549","v":{"v":0,"d":"0.0"}},{"$f":"'3 INCOME & EXPENSE'!N549","v":{"v":0,"d":"$0.00"}},{"$f":"'3 INCOME & EXPENSE'!O549","v":{"v":0,"d":"$0.00"}},955,{"$f":"'3 INCOME & EXPENSE'!X549","v":101},101000,101101,0]
[null,null,{"$f":"IF('3 INCOME & EXPENSE'!E550=0,\"\",'3 INCOME & EXPENSE'!E550)","v":""},{"$f":"T('3 INCOME & EXPENSE'!G550)","v":""},{"$f":"'3 INCOME & EXPENSE'!M550","v":{"v":0,"d":"0.0"}},{"$f":"'3 INCOME & EXPENSE'!N550","v":{"v":0,"d":"$0.00"}},{"$f":"'3 INCOME & EXPENSE'!O550","v":{"v":0,"d":"$0.00"}},956,{"$f":"'3 INCOME & EXPENSE'!X550","v":101},101000,101101,0]
[null,null,{"$f":"IF('3 INCOME & EXPENSE'!E551=0,\"\",'3 INCOME & EXPENSE'!E551)","v":""},{"$f":"T('3 INCOME & EXPENSE'!G551)","v":""},{"$f":"'3 INCOME & EXPENSE'!M551","v":{"v":0,"d":"0.0"}},{"$f":"'3 INCOME & EXPENSE'!N551","v":{"v":0,"d":"$0.00"}},{"$f":"'3 INCOME & EXPENSE'!O551","v":{"v":0,"d":"$0.00"}},957,{"$f":"'3 INCOME & EXPENSE'!X551","v":101},101000,101101,0]
[null,null,{"$f":"IF('3 INCOME & EXPENSE'!E552=0,\"\",'3 INCOME & EXPENSE'!E552)","v":""},{"$f":"T('3 INCOME & EXPENSE'!G552)","v":""},{"$f":"'3 INCOME & EXPENSE'!M552","v":{"v":0,"d":"0.0"}},{"$f":"'3 INCOME & EXPENSE'!N552","v":{"v":0,"d":"$0.00"}},{"$f":"'3 INCOME & EXPENSE'!O552","v":{"v":0,"d":"$0.00"}},958,{"$f":"'3 INCOME & EXPENSE'!X552","v":101},101000,101101,0]
[null,null,{"$f":"IF('3 INCOME & EXPENSE'!E553=0,\"\",'3 INCOME & EXPENSE'!E553)","v":""},{"$f":"T('3 INCOME & EXPENSE'!G553)","v":""},{"$f":"'3 INCOME & EXPENSE'!M553","v":{"v":0,"d":"0.0"}},{"$f":"'3 INCOME & EXPENSE'!N553","v":{"v":0,"d":"$0.00"}},{"$f":"'3 INCOME & EXPENSE'!O553","v":{"v":0,"d":"$0.00"}},959,{"$f":"'3 INCOME & EXPENSE'!X553","v":101},101000,101101,0]
[null,null,{"$f":"IF('3 INCOME & EXPENSE'!E554=0,\"\",'3 INCOME & EXPENSE'!E554)","v":""},{"$f":"T('3 INCOME & EXPENSE'!G554)","v":""},{"$f":"'3 INCOME & EXPENSE'!M554","v":{"v":0,"d":"0.0"}},{"$f":"'3 INCOME & EXPENSE'!N554","v":{"v":0,"d":"$0.00"}},{"$f":"'3 INCOME & EXPENSE'!O554","v":{"v":0,"d":"$0.00"}},960,{"$f":"'3 INCOME & EXPENSE'!X554","v":101},101000,101101,0]
[null,null,{"$f":"IF('3 INCOME & EXPENSE'!E555=0,\"\",'3 INCOME & EXPENSE'!E555)","v":""},{"$f":"T('3 INCOME & EXPENSE'!G555)","v":""},{"$f":"'3 INCOME & EXPENSE'!M555","v":{"v":0,"d":"0.0"}},{"$f":"'3 INCOME & EXPENSE'!N555","v":{"v":0,"d":"$0.00"}},{"$f":"'3 INCOME & EXPENSE'!O555","v":{"v":0,"d":"$0.00"}},961,{"$f":"'3 INCOME & EXPENSE'!X555","v":101},101000,101101,0]
[null,null,{"$f":"IF('3 INCOME & EXPENSE'!E556=0,\"\",'3 INCOME & EXPENSE'!E556)","v":""},{"$f":"T('3 INCOME & EXPENSE'!G556)","v":""},{"$f":"'3 INCOME & EXPENSE'!M556","v":{"v":0,"d":"0.0"}},{"$f":"'3 INCOME & EXPENSE'!N556","v":{"v":0,"d":"$0.00"}},{"$f":"'3 INCOME & EXPENSE'!O556","v":{"v":0,"d":"$0.00"}},962,{"$f":"'3 INCOME & EXPENSE'!X556","v":101},101000,101101,0]
[null,null,{"$f":"IF('3 INCOME & EXPENSE'!E557=0,\"\",'3 INCOME & EXPENSE'!E557)","v":""},{"$f":"T('3 INCOME & EXPENSE'!G557)","v":""},{"$f":"'3 INCOME & EXPENSE'!M557","v":{"v":0,"d":"0.0"}},{"$f":"'3 INCOME & EXPENSE'!N557","v":{"v":0,"d":"$0.00"}},{"$f":"'3 INCOME & EXPENSE'!O557","v":{"v":0,"d":"$0.00"}},963,{"$f":"'3 INCOME & EXPENSE'!X557","v":101},101000,101101,0]
[null,null,{"$f":"IF('3 INCOME & EXPENSE'!E558=0,\"\",'3 INCOME & EXPENSE'!E558)","v":""},{"$f":"T('3 INCOME & EXPENSE'!G558)","v":""},{"$f":"'3 INCOME & EXPENSE'!M558","v":{"v":0,"d":"0.0"}},{"$f":"'3 INCOME & EXPENSE'!N558","v":{"v":0,"d":"$0.00"}},{"$f":"'3 INCOME & EXPENSE'!O558","v":{"v":0,"d":"$0.00"}},964,{"$f":"'3 INCOME & EXPENSE'!X558","v":101},101000,101101,0]
[null,null,{"$f":"IF('3 INCOME & EXPENSE'!E559=0,\"\",'3 INCOME & EXPENSE'!E559)","v":""},{"$f":"T('3 INCOME & EXPENSE'!G559)","v":""},{"$f":"'3 INCOME & EXPENSE'!M559","v":{"v":0,"d":"0.0"}},{"$f":"'3 INCOME & EXPENSE'!N559","v":{"v":0,"d":"$0.00"}},{"$f":"'3 INCOME & EXPENSE'!O559","v":{"v":0,"d":"$0.00"}},965,{"$f":"'3 INCOME & EXPENSE'!X559","v":101},101000,101101,0]
[null,null,{"$f":"IF('3 INCOME & EXPENSE'!E560=0,\"\",'3 INCOME & EXPENSE'!E560)","v":""},{"$f":"T('3 INCOME & EXPENSE'!G560)","v":""},{"$f":"'3 INCOME & EXPENSE'!M560","v":{"v":0,"d":"0.0"}},{"$f":"'3 INCOME & EXPENSE'!N560","v":{"v":0,"d":"$0.00"}},{"$f":"'3 INCOME & EXPENSE'!O560","v":{"v":0,"d":"$0.00"}},966,{"$f":"'3 INCOME & EXPENSE'!X560","v":101},101000,101101,0]
[null,null,{"$f":"IF('3 INCOME & EXPENSE'!E561=0,\"\",'3 INCOME & EXPENSE'!E561)","v":""},{"$f":"T('3 INCOME & EXPENSE'!G561)","v":""},{"$f":"'3 INCOME & EXPENSE'!M561","v":{"v":0,"d":"0.0"}},{"$f":"'3 INCOME & EXPENSE'!N561","v":{"v":0,"d":"$0.00"}},{"$f":"'3 INCOME & EXPENSE'!O561","v":{"v":0,"d":"$0.00"}},967,{"$f":"'3 INCOME & EXPENSE'!X561","v":101},101000,101101,0]
[null,null,{"$f":"IF('3 INCOME & EXPENSE'!E562=0,\"\",'3 INCOME & EXPENSE'!E562)","v":""},{"$f":"T('3 INCOME & EXPENSE'!G562)","v":""},{"$f":"'3 INCOME & EXPENSE'!M562","v":{"v":0,"d":"0.0"}},{"$f":"'3 INCOME & EXPENSE'!N562","v":{"v":0,"d":"$0.00"}},{"$f":"'3 INCOME & EXPENSE'!O562","v":{"v":0,"d":"$0.00"}},968,{"$f":"'3 INCOME & EXPENSE'!X562","v":101},101000,101101,0]
[null,null,{"$f":"IF('3 INCOME & EXPENSE'!E563=0,\"\",'3 INCOME & EXPENSE'!E563)","v":""},{"$f":"T('3 INCOME & EXPENSE'!G563)","v":""},{"$f":"'3 INCOME & EXPENSE'!M563","v":{"v":0,"d":"0.0"}},{"$f":"'3 INCOME & EXPENSE'!N563","v":{"v":0,"d":"$0.00"}},{"$f":"'3 INCOME & EXPENSE'!O563","v":{"v":0,"d":"$0.00"}},969,{"$f":"'3 INCOME & EXPENSE'!X563","v":101},101000,101101,0]
[null,null,{"$f":"IF('3 INCOME & EXPENSE'!E564=0,\"\",'3 INCOME & EXPENSE'!E564)","v":""},{"$f":"T('3 INCOME & EXPENSE'!G564)","v":""},{"$f":"'3 INCOME & EXPENSE'!M564","v":{"v":0,"d":"0.0"}},{"$f":"'3 INCOME & EXPENSE'!N564","v":{"v":0,"d":"$0.00"}},{"$f":"'3 INCOME & EXPENSE'!O564","v":{"v":0,"d":"$0.00"}},970,{"$f":"'3 INCOME & EXPENSE'!X564","v":101},101000,101101,0]
[null,null,{"$f":"IF('3 INCOME & EXPENSE'!E565=0,\"\",'3 INCOME & EXPENSE'!E565)","v":""},{"$f":"T('3 INCOME & EXPENSE'!G565)","v":""},{"$f":"'3 INCOME & EXPENSE'!M565","v":{"v":0,"d":"0.0"}},{"$f":"'3 INCOME & EXPENSE'!N565","v":{"v":0,"d":"$0.00"}},{"$f":"'3 INCOME & EXPENSE'!O565","v":{"v":0,"d":"$0.00"}},971,{"$f":"'3 INCOME & EXPENSE'!X565","v":101},101000,101101,0]
[null,null,{"$f":"IF('3 INCOME & EXPENSE'!E566=0,\"\",'3 INCOME & EXPENSE'!E566)","v":""},{"$f":"T('3 INCOME & EXPENSE'!G566)","v":""},{"$f":"'3 INCOME & EXPENSE'!M566","v":{"v":0,"d":"0.0"}},{"$f":"'3 INCOME & EXPENSE'!N566","v":{"v":0,"d":"$0.00"}},{"$f":"'3 INCOME & EXPENSE'!O566","v":{"v":0,"d":"$0.00"}},972,{"$f":"'3 INCOME & EXPENSE'!X566","v":101},101000,101101,0]
[null,null,{"$f":"IF('3 INCOME & EXPENSE'!E567=0,\"\",'3 INCOME & EXPENSE'!E567)","v":""},{"$f":"T('3 INCOME & EXPENSE'!G567)","v":""},{"$f":"'3 INCOME & EXPENSE'!M567","v":{"v":0,"d":"0.0"}},{"$f":"'3 INCOME & EXPENSE'!N567","v":{"v":0,"d":"$0.00"}},{"$f":"'3 INCOME & EXPENSE'!O567","v":{"v":0,"d":"$0.00"}},973,{"$f":"'3 INCOME & EXPENSE'!X567","v":101},101000,101101,0]
[null,null,{"$f":"IF('3 INCOME & EXPENSE'!E568=0,\"\",'3 INCOME & EXPENSE'!E568)","v":""},{"$f":"T('3 INCOME & EXPENSE'!G568)","v":""},{"$f":"'3 INCOME & EXPENSE'!M568","v":{"v":0,"d":"0.0"}},{"$f":"'3 INCOME & EXPENSE'!N568","v":{"v":0,"d":"$0.00"}},{"$f":"'3 INCOME & EXPENSE'!O568","v":{"v":0,"d":"$0.00"}},974,{"$f":"'3 INCOME & EXPENSE'!X568","v":101},101000,101101,0]
[null,null,{"$f":"IF('3 INCOME & EXPENSE'!E569=0,\"\",'3 INCOME & EXPENSE'!E569)","v":""},{"$f":"T('3 INCOME & EXPENSE'!G569)","v":""},{"$f":"'3 INCOME & EXPENSE'!M569","v":{"v":0,"d":"0.0"}},{"$f":"'3 INCOME & EXPENSE'!N569","v":{"v":0,"d":"$0.00"}},{"$f":"'3 INCOME & EXPENSE'!O569","v":{"v":0,"d":"$0.00"}},975,{"$f":"'3 INCOME & EXPENSE'!X569","v":101},101000,101101,0]
[null,null,{"$f":"IF('3 INCOME & EXPENSE'!E570=0,\"\",'3 INCOME & EXPENSE'!E570)","v":""},{"$f":"T('3 INCOME & EXPENSE'!G570)","v":""},{"$f":"'3 INCOME & EXPENSE'!M570","v":{"v":0,"d":"0.0"}},{"$f":"'3 INCOME & EXPENSE'!N570","v":{"v":0,"d":"$0.00"}},{"$f":"'3 INCOME & EXPENSE'!O570","v":{"v":0,"d":"$0.00"}},976,{"$f":"'3 INCOME & EXPENSE'!X570","v":101},101000,101101,0]
[null,null,{"$f":"IF('3 INCOME & EXPENSE'!E571=0,\"\",'3 INCOME & EXPENSE'!E571)","v":""},{"$f":"T('3 INCOME & EXPENSE'!G571)","v":""},{"$f":"'3 INCOME & EXPENSE'!M571","v":{"v":0,"d":"0.0"}},{"$f":"'3 INCOME & EXPENSE'!N571","v":{"v":0,"d":"$0.00"}},{"$f":"'3 INCOME & EXPENSE'!O571","v":{"v":0,"d":"$0.00"}},977,{"$f":"'3 INCOME & EXPENSE'!X571","v":101},101000,101101,0]
[null,null,{"$f":"IF('3 INCOME & EXPENSE'!E572=0,\"\",'3 INCOME & EXPENSE'!E572)","v":""},{"$f":"T('3 INCOME & EXPENSE'!G572)","v":""},{"$f":"'3 INCOME & EXPENSE'!M572","v":{"v":0,"d":"0.0"}},{"$f":"'3 INCOME & EXPENSE'!N572","v":{"v":0,"d":"$0.00"}},{"$f":"'3 INCOME & EXPENSE'!O572","v":{"v":0,"d":"$0.00"}},978,{"$f":"'3 INCOME & EXPENSE'!X572","v":101},101000,101101,0]
[null,null,{"$f":"IF('3 INCOME & EXPENSE'!E573=0,\"\",'3 INCOME & EXPENSE'!E573)","v":""},{"$f":"T('3 INCOME & EXPENSE'!G573)","v":""},{"$f":"'3 INCOME & EXPENSE'!M573","v":{"v":0,"d":"0.0"}},{"$f":"'3 INCOME & EXPENSE'!N573","v":{"v":0,"d":"$0.00"}},{"$f":"'3 INCOME & EXPENSE'!O573","v":{"v":0,"d":"$0.00"}},979,{"$f":"'3 INCOME & EXPENSE'!X573","v":101},101000,101101,0]
[null,null,{"$f":"IF('3 INCOME & EXPENSE'!E574=0,\"\",'3 INCOME & EXPENSE'!E574)","v":""},{"$f":"T('3 INCOME & EXPENSE'!G574)","v":""},{"$f":"'3 INCOME & EXPENSE'!M574","v":{"v":0,"d":"0.0"}},{"$f":"'3 INCOME & EXPENSE'!N574","v":{"v":0,"d":"$0.00"}},{"$f":"'3 INCOME & EXPENSE'!O574","v":{"v":0,"d":"$0.00"}},980,{"$f":"'3 INCOME & EXPENSE'!X574","v":101},101000,101101,0]
[null,null,{"$f":"IF('3 INCOME & EXPENSE'!E575=0,\"\",'3 INCOME & EXPENSE'!E575)","v":""},{"$f":"T('3 INCOME & EXPENSE'!G575)","v":""},{"$f":"'3 INCOME & EXPENSE'!M575","v":{"v":0,"d":"0.0"}},{"$f":"'3 INCOME & EXPENSE'!N575","v":{"v":0,"d":"$0.00"}},{"$f":"'3 INCOME & EXPENSE'!O575","v":{"v":0,"d":"$0.00"}},981,{"$f":"'3 INCOME & EXPENSE'!X575","v":101},101000,101101,0]
[null,null,{"$f":"IF('3 INCOME & EXPENSE'!E576=0,\"\",'3 INCOME & EXPENSE'!E576)","v":""},{"$f":"T('3 INCOME & EXPENSE'!G576)","v":""},{"$f":"'3 INCOME & EXPENSE'!M576","v":{"v":0,"d":"0.0"}},{"$f":"'3 INCOME & EXPENSE'!N576","v":{"v":0,"d":"$0.00"}},{"$f":"'3 INCOME & EXPENSE'!O576","v":{"v":0,"d":"$0.00"}},982,{"$f":"'3 INCOME & EXPENSE'!X576","v":101},101000,101101,0]
[null,null,{"$f":"IF('3 INCOME & EXPENSE'!E577=0,\"\",'3 INCOME & EXPENSE'!E577)","v":""},{"$f":"T('3 INCOME & EXPENSE'!G577)","v":""},{"$f":"'3 INCOME & EXPENSE'!M577","v":{"v":0,"d":"0.0"}},{"$f":"'3 INCOME & EXPENSE'!N577","v":{"v":0,"d":"$0.00"}},{"$f":"'3 INCOME & EXPENSE'!O577","v":{"v":0,"d":"$0.00"}},983,{"$f":"'3 INCOME & EXPENSE'!X577","v":101},101000,101101,0]
[null,null,{"$f":"IF('3 INCOME & EXPENSE'!E578=0,\"\",'3 INCOME & EXPENSE'!E578)","v":""},{"$f":"T('3 INCOME & EXPENSE'!G578)","v":""},{"$f":"'3 INCOME & EXPENSE'!M578","v":{"v":0,"d":"0.0"}},{"$f":"'3 INCOME & EXPENSE'!N578","v":{"v":0,"d":"$0.00"}},{"$f":"'3 INCOME & EXPENSE'!O578","v":{"v":0,"d":"$0.00"}},984,{"$f":"'3 INCOME & EXPENSE'!X578","v":101},101000,101101,0]
[null,null,{"$f":"IF('3 INCOME & EXPENSE'!E579=0,\"\",'3 INCOME & EXPENSE'!E579)","v":""},{"$f":"T('3 INCOME & EXPENSE'!G579)","v":""},{"$f":"'3 INCOME & EXPENSE'!M579","v":{"v":0,"d":"0.0"}},{"$f":"'3 INCOME & EXPENSE'!N579","v":{"v":0,"d":"$0.00"}},{"$f":"'3 INCOME & EXPENSE'!O579","v":{"v":0,"d":"$0.00"}},985,{"$f":"'3 INCOME & EXPENSE'!X579","v":101},101000,101101,0]
[null,null,{"$f":"IF('3 INCOME & EXPENSE'!E580=0,\"\",'3 INCOME & EXPENSE'!E580)","v":""},{"$f":"T('3 INCOME & EXPENSE'!G580)","v":""},{"$f":"'3 INCOME & EXPENSE'!M580","v":{"v":0,"d":"0.0"}},{"$f":"'3 INCOME & EXPENSE'!N580","v":{"v":0,"d":"$0.00"}},{"$f":"'3 INCOME & EXPENSE'!O580","v":{"v":0,"d":"$0.00"}},986,{"$f":"'3 INCOME & EXPENSE'!X580","v":101},101000,101101,0]
[null,null,{"$f":"IF('3 INCOME & EXPENSE'!E581=0,\"\",'3 INCOME & EXPENSE'!E581)","v":""},{"$f":"T('3 INCOME & EXPENSE'!G581)","v":""},{"$f":"'3 INCOME & EXPENSE'!M581","v":{"v":0,"d":"0.0"}},{"$f":"'3 INCOME & EXPENSE'!N581","v":{"v":0,"d":"$0.00"}},{"$f":"'3 INCOME & EXPENSE'!O581","v":{"v":0,"d":"$0.00"}},987,{"$f":"'3 INCOME & EXPENSE'!X581","v":101},101000,101101,0]
[null,null,{"$f":"IF('3 INCOME & EXPENSE'!E582=0,\"\",'3 INCOME & EXPENSE'!E582)","v":""},{"$f":"T('3 INCOME & EXPENSE'!G582)","v":""},{"$f":"'3 INCOME & EXPENSE'!M582","v":{"v":0,"d":"0.0"}},{"$f":"'3 INCOME & EXPENSE'!N582","v":{"v":0,"d":"$0.00"}},{"$f":"'3 INCOME & EXPENSE'!O582","v":{"v":0,"d":"$0.00"}},988,{"$f":"'3 INCOME & EXPENSE'!X582","v":101},101000,101101,0]
[null,null,{"$f":"IF('3 INCOME & EXPENSE'!E583=0,\"\",'3 INCOME & EXPENSE'!E583)","v":""},{"$f":"T('3 INCOME & EXPENSE'!G583)","v":""},{"$f":"'3 INCOME & EXPENSE'!M583","v":{"v":0,"d":"0.0"}},{"$f":"'3 INCOME & EXPENSE'!N583","v":{"v":0,"d":"$0.00"}},{"$f":"'3 INCOME & EXPENSE'!O583","v":{"v":0,"d":"$0.00"}},989,{"$f":"'3 INCOME & EXPENSE'!X583","v":101},101000,101101,0]
[null,null,{"$f":"IF('3 INCOME & EXPENSE'!E584=0,\"\",'3 INCOME & EXPENSE'!E584)","v":""},{"$f":"T('3 INCOME & EXPENSE'!G584)","v":""},{"$f":"'3 INCOME & EXPENSE'!M584","v":{"v":0,"d":"0.0"}},{"$f":"'3 INCOME & EXPENSE'!N584","v":{"v":0,"d":"$0.00"}},{"$f":"'3 INCOME & EXPENSE'!O584","v":{"v":0,"d":"$0.00"}},990,{"$f":"'3 INCOME & EXPENSE'!X584","v":101},101000,101101,0]
[null,null,{"$f":"IF('3 INCOME & EXPENSE'!E585=0,\"\",'3 INCOME & EXPENSE'!E585)","v":""},{"$f":"T('3 INCOME & EXPENSE'!G585)","v":""},{"$f":"'3 INCOME & EXPENSE'!M585","v":{"v":0,"d":"0.0"}},{"$f":"'3 INCOME & EXPENSE'!N585","v":{"v":0,"d":"$0.00"}},{"$f":"'3 INCOME & EXPENSE'!O585","v":{"v":0,"d":"$0.00"}},991,{"$f":"'3 INCOME & EXPENSE'!X585","v":101},101000,101101,0]
[null,null,{"$f":"IF('3 INCOME & EXPENSE'!E586=0,\"\",'3 INCOME & EXPENSE'!E586)","v":""},{"$f":"T('3 INCOME & EXPENSE'!G586)","v":""},{"$f":"'3 INCOME & EXPENSE'!M586","v":{"v":0,"d":"0.0"}},{"$f":"'3 INCOME & EXPENSE'!N586","v":{"v":0,"d":"$0.00"}},{"$f":"'3 INCOME & EXPENSE'!O586","v":{"v":0,"d":"$0.00"}},992,{"$f":"'3 INCOME & EXPENSE'!X586","v":101},101000,101101,0]
[null,null,{"$f":"IF('3 INCOME & EXPENSE'!E587=0,\"\",'3 INCOME & EXPENSE'!E587)","v":""},{"$f":"T('3 INCOME & EXPENSE'!G587)","v":""},{"$f":"'3 INCOME & EXPENSE'!M587","v":{"v":0,"d":"0.0"}},{"$f":"'3 INCOME & EXPENSE'!N587","v":{"v":0,"d":"$0.00"}},{"$f":"'3 INCOME & EXPENSE'!O587","v":{"v":0,"d":"$0.00"}},993,{"$f":"'3 INCOME & EXPENSE'!X587","v":101},101000,101101,0]
[null,null,{"$f":"IF('3 INCOME & EXPENSE'!E588=0,\"\",'3 INCOME & EXPENSE'!E588)","v":""},{"$f":"T('3 INCOME & EXPENSE'!G588)","v":""},{"$f":"'3 INCOME & EXPENSE'!M588","v":{"v":0,"d":"0.0"}},{"$f":"'3 INCOME & EXPENSE'!N588","v":{"v":0,"d":"$0.00"}},{"$f":"'3 INCOME & EXPENSE'!O588","v":{"v":0,"d":"$0.00"}},994,{"$f":"'3 INCOME & EXPENSE'!X588","v":101},101000,101101,0]
[null,null,{"$f":"IF('3 INCOME & EXPENSE'!E589=0,\"\",'3 INCOME & EXPENSE'!E589)","v":""},{"$f":"T('3 INCOME & EXPENSE'!G589)","v":""},{"$f":"'3 INCOME & EXPENSE'!M589","v":{"v":0,"d":"0.0"}},{"$f":"'3 INCOME & EXPENSE'!N589","v":{"v":0,"d":"$0.00"}},{"$f":"'3 INCOME & EXPENSE'!O589","v":{"v":0,"d":"$0.00"}},995,{"$f":"'3 INCOME & EXPENSE'!X589","v":101},101000,101101,0]
[null,null,{"$f":"IF('3 INCOME & EXPENSE'!E590=0,\"\",'3 INCOME & EXPENSE'!E590)","v":""},{"$f":"T('3 INCOME & EXPENSE'!G590)","v":""},{"$f":"'3 INCOME & EXPENSE'!M590","v":{"v":0,"d":"0.0"}},{"$f":"'3 INCOME & EXPENSE'!N590","v":{"v":0,"d":"$0.00"}},{"$f":"'3 INCOME & EXPENSE'!O590","v":{"v":0,"d":"$0.00"}},996,{"$f":"'3 INCOME & EXPENSE'!X590","v":101},{"$f":"VLOOKUP(I1008,$I$1186:$J$1287,2)","v":101000},101101,{"$f":"K1008*E1008","v":0}]
[null,null,{"$f":"IF('3 INCOME & EXPENSE'!E591=0,\"\",'3 INCOME & EXPENSE'!E591)","v":""},{"$f":"T('3 INCOME & EXPENSE'!G591)","v":""},{"$f":"'3 INCOME & EXPENSE'!M591","v":{"v":0,"d":"0.0"}},{"$f":"'3 INCOME & EXPENSE'!N591","v":{"v":0,"d":"$0.00"}},{"$f":"'3 INCOME & EXPENSE'!O591","v":{"v":0,"d":"$0.00"}},997,{"$f":"'3 INCOME & EXPENSE'!X591","v":101},101000,101101,0]
[null,null,{"$f":"IF('3 INCOME & EXPENSE'!E592=0,\"\",'3 INCOME & EXPENSE'!E592)","v":""},{"$f":"T('3 INCOME & EXPENSE'!G592)","v":""},{"$f":"'3 INCOME & EXPENSE'!M592","v":{"v":0,"d":"0.0"}},{"$f":"'3 INCOME & EXPENSE'!N592","v":{"v":0,"d":"$0.00"}},{"$f":"'3 INCOME & EXPENSE'!O592","v":{"v":0,"d":"$0.00"}},998,{"$f":"'3 INCOME & EXPENSE'!X592","v":101},101000,101101,0]
[null,null,{"$f":"IF('3 INCOME & EXPENSE'!E593=0,\"\",'3 INCOME & EXPENSE'!E593)","v":""},{"$f":"T('3 INCOME & EXPENSE'!G593)","v":""},{"$f":"'3 INCOME & EXPENSE'!M593","v":{"v":0,"d":"0.0"}},{"$f":"'3 INCOME & EXPENSE'!N593","v":{"v":0,"d":"$0.00"}},{"$f":"'3 INCOME & EXPENSE'!O593","v":{"v":0,"d":"$0.00"}},999,{"$f":"'3 INCOME & EXPENSE'!X593","v":101},101000,101101,0]
[null,null,{"$f":"IF('3 INCOME & EXPENSE'!E594=0,\"\",'3 INCOME & EXPENSE'!E594)","v":""},{"$f":"T('3 INCOME & EXPENSE'!G594)","v":""},{"$f":"'3 INCOME & EXPENSE'!M594","v":{"v":0,"d":"0.0"}},{"$f":"'3 INCOME & EXPENSE'!N594","v":{"v":0,"d":"$0.00"}},{"$f":"'3 INCOME & EXPENSE'!O594","v":{"v":0,"d":"$0.00"}},1000,{"$f":"'3 INCOME & EXPENSE'!X594","v":101},101000,101101,0]
[null,null,{"$f":"IF('3 INCOME & EXPENSE'!E595=0,\"\",'3 INCOME & EXPENSE'!E595)","v":""},{"$f":"T('3 INCOME & EXPENSE'!G595)","v":""},{"$f":"'3 INCOME & EXPENSE'!M595","v":{"v":0,"d":"0.0"}},{"$f":"'3 INCOME & EXPENSE'!N595","v":{"v":0,"d":"$0.00"}},{"$f":"'3 INCOME & EXPENSE'!O595","v":{"v":0,"d":"$0.00"}},1001,{"$f":"'3 INCOME & EXPENSE'!X595","v":101},101000,101101,0]
[null,null,{"$f":"IF('3 INCOME & EXPENSE'!E596=0,\"\",'3 INCOME & EXPENSE'!E596)","v":""},{"$f":"T('3 INCOME & EXPENSE'!G596)","v":""},{"$f":"'3 INCOME & EXPENSE'!M596","v":{"v":0,"d":"0.0"}},{"$f":"'3 INCOME & EXPENSE'!N596","v":{"v":0,"d":"$0.00"}},{"$f":"'3 INCOME & EXPENSE'!O596","v":{"v":0,"d":"$0.00"}},1002,{"$f":"'3 INCOME & EXPENSE'!X596","v":101},101000,101101,0]
[null,null,{"$f":"IF('3 INCOME & EXPENSE'!E597=0,\"\",'3 INCOME & EXPENSE'!E597)","v":""},{"$f":"T('3 INCOME & EXPENSE'!G597)","v":""},{"$f":"'3 INCOME & EXPENSE'!M597","v":{"v":0,"d":"0.0"}},{"$f":"'3 INCOME & EXPENSE'!N597","v":{"v":0,"d":"$0.00"}},{"$f":"'3 INCOME & EXPENSE'!O597","v":{"v":0,"d":"$0.00"}},1003,{"$f":"'3 INCOME & EXPENSE'!X597","v":101},101000,101101,0]
[null,null,{"$f":"IF('3 INCOME & EXPENSE'!E598=0,\"\",'3 INCOME & EXPENSE'!E598)","v":""},{"$f":"T('3 INCOME & EXPENSE'!G598)","v":""},{"$f":"'3 INCOME & EXPENSE'!M598","v":{"v":0,"d":"0.0"}},{"$f":"'3 INCOME & EXPENSE'!N598","v":{"v":0,"d":"$0.00"}},{"$f":"'3 INCOME & EXPENSE'!O598","v":{"v":0,"d":"$0.00"}},1004,{"$f":"'3 INCOME & EXPENSE'!X598","v":101},101000,101101,0]
[null,null,{"$f":"IF('3 INCOME & EXPENSE'!E599=0,\"\",'3 INCOME & EXPENSE'!E599)","v":""},{"$f":"T('3 INCOME & EXPENSE'!G599)","v":""},{"$f":"'3 INCOME & EXPENSE'!M599","v":{"v":0,"d":"0.0"}},{"$f":"'3 INCOME & EXPENSE'!N599","v":{"v":0,"d":"$0.00"}},{"$f":"'3 INCOME & EXPENSE'!O599","v":{"v":0,"d":"$0.00"}},1005,{"$f":"'3 INCOME & EXPENSE'!X599","v":101},101000,101101,0]
[null,null,{"$f":"IF('3 INCOME & EXPENSE'!E600=0,\"\",'3 INCOME & EXPENSE'!E600)","v":""},{"$f":"T('3 INCOME & EXPENSE'!G600)","v":""},{"$f":"'3 INCOME & EXPENSE'!M600","v":{"v":0,"d":"0.0"}},{"$f":"'3 INCOME & EXPENSE'!N600","v":{"v":0,"d":"$0.00"}},{"$f":"'3 INCOME & EXPENSE'!O600","v":{"v":0,"d":"$0.00"}},1006,{"$f":"'3 INCOME & EXPENSE'!X600","v":101},101000,101101,0]
[null,null,{"$f":"IF('3 INCOME & EXPENSE'!E601=0,\"\",'3 INCOME & EXPENSE'!E601)","v":""},{"$f":"T('3 INCOME & EXPENSE'!G601)","v":""},{"$f":"'3 INCOME & EXPENSE'!M601","v":{"v":0,"d":"0.0"}},{"$f":"'3 INCOME & EXPENSE'!N601","v":{"v":0,"d":"$0.00"}},{"$f":"'3 INCOME & EXPENSE'!O601","v":{"v":0,"d":"$0.00"}},1007,{"$f":"'3 INCOME & EXPENSE'!X601","v":101},101000,101101,0]
[null,null,{"$f":"IF('3 INCOME & EXPENSE'!E602=0,\"\",'3 INCOME & EXPENSE'!E602)","v":""},{"$f":"T('3 INCOME & EXPENSE'!G602)","v":""},{"$f":"'3 INCOME & EXPENSE'!M602","v":{"v":0,"d":"0.0"}},{"$f":"'3 INCOME & EXPENSE'!N602","v":{"v":0,"d":"$0.00"}},{"$f":"'3 INCOME & EXPENSE'!O602","v":{"v":0,"d":"$0.00"}},1008,{"$f":"'3 INCOME & EXPENSE'!X602","v":101},101000,101101,0]
[null,null,{"$f":"IF('3 INCOME & EXPENSE'!E603=0,\"\",'3 INCOME & EXPENSE'!E603)","v":""},{"$f":"T('3 INCOME & EXPENSE'!G603)","v":""},{"$f":"'3 INCOME & EXPENSE'!M603","v":{"v":0,"d":"0.0"}},{"$f":"'3 INCOME & EXPENSE'!N603","v":{"v":0,"d":"$0.00"}},{"$f":"'3 INCOME & EXPENSE'!O603","v":{"v":0,"d":"$0.00"}},1009,{"$f":"'3 INCOME & EXPENSE'!X603","v":101},101000,101101,0]
[null,null,{"$f":"IF('3 INCOME & EXPENSE'!E604=0,\"\",'3 INCOME & EXPENSE'!E604)","v":""},{"$f":"T('3 INCOME & EXPENSE'!G604)","v":""},{"$f":"'3 INCOME & EXPENSE'!M604","v":{"v":0,"d":"0.0"}},{"$f":"'3 INCOME & EXPENSE'!N604","v":{"v":0,"d":"$0.00"}},{"$f":"'3 INCOME & EXPENSE'!O604","v":{"v":0,"d":"$0.00"}},1010,{"$f":"'3 INCOME & EXPENSE'!X604","v":101},101000,101101,0]
[null,null,{"$f":"IF('3 INCOME & EXPENSE'!E605=0,\"\",'3 INCOME & EXPENSE'!E605)","v":""},{"$f":"T('3 INCOME & EXPENSE'!G605)","v":""},{"$f":"'3 INCOME & EXPENSE'!M605","v":{"v":0,"d":"0.0"}},{"$f":"'3 INCOME & EXPENSE'!N605","v":{"v":0,"d":"$0.00"}},{"$f":"'3 INCOME & EXPENSE'!O605","v":{"v":0,"d":"$0.00"}},1011,{"$f":"'3 INCOME & EXPENSE'!X605","v":101},101000,101101,0]
[null,null,{"$f":"IF('3 INCOME & EXPENSE'!E606=0,\"\",'3 INCOME & EXPENSE'!E606)","v":""},{"$f":"T('3 INCOME & EXPENSE'!G606)","v":""},{"$f":"'3 INCOME & EXPENSE'!M606","v":{"v":0,"d":"0.0"}},{"$f":"'3 INCOME & EXPENSE'!N606","v":{"v":0,"d":"$0.00"}},{"$f":"'3 INCOME & EXPENSE'!O606","v":{"v":0,"d":"$0.00"}},1012,{"$f":"'3 INCOME & EXPENSE'!X606","v":101},101000,101101,0]
[null,null,{"$f":"IF('3 INCOME & EXPENSE'!E607=0,\"\",'3 INCOME & EXPENSE'!E607)","v":""},{"$f":"T('3 INCOME & EXPENSE'!G607)","v":""},{"$f":"'3 INCOME & EXPENSE'!M607","v":{"v":0,"d":"0.0"}},{"$f":"'3 INCOME & EXPENSE'!N607","v":{"v":0,"d":"$0.00"}},{"$f":"'3 INCOME & EXPENSE'!O607","v":{"v":0,"d":"$0.00"}},1013,{"$f":"'3 INCOME & EXPENSE'!X607","v":101},101000,{"$f":"I1025+J1025","v":101101},0]
[null,null,{"$f":"IF('3 INCOME & EXPENSE'!E608=0,\"\",'3 INCOME & EXPENSE'!E608)","v":""},{"$f":"T('3 INCOME & EXPENSE'!G608)","v":""},{"$f":"'3 INCOME & EXPENSE'!M608","v":{"v":0,"d":"0.0"}},{"$f":"'3 INCOME & EXPENSE'!N608","v":{"v":0,"d":"$0.00"}},{"$f":"'3 INCOME & EXPENSE'!O608","v":{"v":0,"d":"$0.00"}},1014,{"$f":"'3 INCOME & EXPENSE'!X608","v":101},101000,101101,0]
[null,null,{"$f":"IF('3 INCOME & EXPENSE'!E609=0,\"\",'3 INCOME & EXPENSE'!E609)","v":""},{"$f":"T('3 INCOME & EXPENSE'!G609)","v":""},{"$f":"'3 INCOME & EXPENSE'!M609","v":{"v":0,"d":"0.0"}},{"$f":"'3 INCOME & EXPENSE'!N609","v":{"v":0,"d":"$0.00"}},{"$f":"'3 INCOME & EXPENSE'!O609","v":{"v":0,"d":"$0.00"}},1015,{"$f":"'3 INCOME & EXPENSE'!X609","v":101},101000,101101,0]
[null,null,{"$f":"IF('3 INCOME & EXPENSE'!E610=0,\"\",'3 INCOME & EXPENSE'!E610)","v":""},{"$f":"T('3 INCOME & EXPENSE'!G610)","v":""},{"$f":"'3 INCOME & EXPENSE'!M610","v":{"v":0,"d":"0.0"}},{"$f":"'3 INCOME & EXPENSE'!N610","v":{"v":0,"d":"$0.00"}},{"$f":"'3 INCOME & EXPENSE'!O610","v":{"v":0,"d":"$0.00"}},1016,{"$f":"'3 INCOME & EXPENSE'!X610","v":101},101000,101101,0]
[null,null,{"$f":"IF('3 INCOME & EXPENSE'!E611=0,\"\",'3 INCOME & EXPENSE'!E611)","v":""},{"$f":"T('3 INCOME & EXPENSE'!G611)","v":""},{"$f":"'3 INCOME & EXPENSE'!M611","v":{"v":0,"d":"0.0"}},{"$f":"'3 INCOME & EXPENSE'!N611","v":{"v":0,"d":"$0.00"}},{"$f":"'3 INCOME & EXPENSE'!O611","v":{"v":0,"d":"$0.00"}},1017,{"$f":"'3 INCOME & EXPENSE'!X611","v":101},101000,101101,0]
[null,null,{"$f":"IF('3 INCOME & EXPENSE'!E612=0,\"\",'3 INCOME & EXPENSE'!E612)","v":""},{"$f":"T('3 INCOME & EXPENSE'!G612)","v":""},{"$f":"'3 INCOME & EXPENSE'!M612","v":{"v":0,"d":"0.0"}},{"$f":"'3 INCOME & EXPENSE'!N612","v":{"v":0,"d":"$0.00"}},{"$f":"'3 INCOME & EXPENSE'!O612","v":{"v":0,"d":"$0.00"}},1018,{"$f":"'3 INCOME & EXPENSE'!X612","v":101},101000,101101,0]
[null,null,{"$f":"IF('3 INCOME & EXPENSE'!E613=0,\"\",'3 INCOME & EXPENSE'!E613)","v":""},{"$f":"T('3 INCOME & EXPENSE'!G613)","v":""},{"$f":"'3 INCOME & EXPENSE'!M613","v":{"v":0,"d":"0.0"}},{"$f":"'3 INCOME & EXPENSE'!N613","v":{"v":0,"d":"$0.00"}},{"$f":"'3 INCOME & EXPENSE'!O613","v":{"v":0,"d":"$0.00"}},1019,{"$f":"'3 INCOME & EXPENSE'!X613","v":101},101000,101101,0]
[null,null,{"$f":"IF('3 INCOME & EXPENSE'!E614=0,\"\",'3 INCOME & EXPENSE'!E614)","v":""},{"$f":"T('3 INCOME & EXPENSE'!G614)","v":""},{"$f":"'3 INCOME & EXPENSE'!M614","v":{"v":0,"d":"0.0"}},{"$f":"'3 INCOME & EXPENSE'!N614","v":{"v":0,"d":"$0.00"}},{"$f":"'3 INCOME & EXPENSE'!O614","v":{"v":0,"d":"$0.00"}},1020,{"$f":"'3 INCOME & EXPENSE'!X614","v":101},101000,101101,0]
[null,null,{"$f":"IF('3 INCOME & EXPENSE'!E615=0,\"\",'3 INCOME & EXPENSE'!E615)","v":""},{"$f":"T('3 INCOME & EXPENSE'!G615)","v":""},{"$f":"'3 INCOME & EXPENSE'!M615","v":{"v":0,"d":"0.0"}},{"$f":"'3 INCOME & EXPENSE'!N615","v":{"v":0,"d":"$0.00"}},{"$f":"'3 INCOME & EXPENSE'!O615","v":{"v":0,"d":"$0.00"}},1021,{"$f":"'3 INCOME & EXPENSE'!X615","v":101},101000,101101,0]
[null,null,{"$f":"IF('3 INCOME & EXPENSE'!E616=0,\"\",'3 INCOME & EXPENSE'!E616)","v":""},{"$f":"T('3 INCOME & EXPENSE'!G616)","v":""},{"$f":"'3 INCOME & EXPENSE'!M616","v":{"v":0,"d":"0.0"}},{"$f":"'3 INCOME & EXPENSE'!N616","v":{"v":0,"d":"$0.00"}},{"$f":"'3 INCOME & EXPENSE'!O616","v":{"v":0,"d":"$0.00"}},1022,{"$f":"'3 INCOME & EXPENSE'!X616","v":101},101000,101101,0]
[null,null,{"$f":"IF('3 INCOME & EXPENSE'!E617=0,\"\",'3 INCOME & EXPENSE'!E617)","v":""},{"$f":"T('3 INCOME & EXPENSE'!G617)","v":""},{"$f":"'3 INCOME & EXPENSE'!M617","v":{"v":0,"d":"0.0"}},{"$f":"'3 INCOME & EXPENSE'!N617","v":{"v":0,"d":"$0.00"}},{"$f":"'3 INCOME & EXPENSE'!O617","v":{"v":0,"d":"$0.00"}},1023,{"$f":"'3 INCOME & EXPENSE'!X617","v":101},101000,101101,0]
[null,null,{"$f":"IF('3 INCOME & EXPENSE'!E618=0,\"\",'3 INCOME & EXPENSE'!E618)","v":""},{"$f":"T('3 INCOME & EXPENSE'!G618)","v":""},{"$f":"'3 INCOME & EXPENSE'!M618","v":{"v":0,"d":"0.0"}},{"$f":"'3 INCOME & EXPENSE'!N618","v":{"v":0,"d":"$0.00"}},{"$f":"'3 INCOME & EXPENSE'!O618","v":{"v":0,"d":"$0.00"}},1024,{"$f":"'3 INCOME & EXPENSE'!X618","v":101},101000,101101,0]
[null,null,{"$f":"IF('3 INCOME & EXPENSE'!E619=0,\"\",'3 INCOME & EXPENSE'!E619)","v":""},{"$f":"T('3 INCOME & EXPENSE'!G619)","v":""},{"$f":"'3 INCOME & EXPENSE'!M619","v":{"v":0,"d":"0.0"}},{"$f":"'3 INCOME & EXPENSE'!N619","v":{"v":0,"d":"$0.00"}},{"$f":"'3 INCOME & EXPENSE'!O619","v":{"v":0,"d":"$0.00"}},1025,{"$f":"'3 INCOME & EXPENSE'!X619","v":101},101000,101101,0]
[null,null,{"$f":"IF('3 INCOME & EXPENSE'!E620=0,\"\",'3 INCOME & EXPENSE'!E620)","v":""},{"$f":"T('3 INCOME & EXPENSE'!G620)","v":""},{"$f":"'3 INCOME & EXPENSE'!M620","v":{"v":0,"d":"0.0"}},{"$f":"'3 INCOME & EXPENSE'!N620","v":{"v":0,"d":"$0.00"}},{"$f":"'3 INCOME & EXPENSE'!O620","v":{"v":0,"d":"$0.00"}},1026,{"$f":"'3 INCOME & EXPENSE'!X620","v":101},101000,101101,0]
[null,null,{"$f":"IF('3 INCOME & EXPENSE'!E621=0,\"\",'3 INCOME & EXPENSE'!E621)","v":""},{"$f":"T('3 INCOME & EXPENSE'!G621)","v":""},{"$f":"'3 INCOME & EXPENSE'!M621","v":{"v":0,"d":"0.0"}},{"$f":"'3 INCOME & EXPENSE'!N621","v":{"v":0,"d":"$0.00"}},{"$f":"'3 INCOME & EXPENSE'!O621","v":{"v":0,"d":"$0.00"}},1027,{"$f":"'3 INCOME & EXPENSE'!X621","v":101},101000,101101,0]
[null,null,{"$f":"IF('3 INCOME & EXPENSE'!E622=0,\"\",'3 INCOME & EXPENSE'!E622)","v":""},{"$f":"T('3 INCOME & EXPENSE'!G622)","v":""},{"$f":"'3 INCOME & EXPENSE'!M622","v":{"v":0,"d":"0.0"}},{"$f":"'3 INCOME & EXPENSE'!N622","v":{"v":0,"d":"$0.00"}},{"$f":"'3 INCOME & EXPENSE'!O622","v":{"v":0,"d":"$0.00"}},1028,{"$f":"'3 INCOME & EXPENSE'!X622","v":101},101000,101101,0]
[null,null,{"$f":"IF('3 INCOME & EXPENSE'!E623=0,\"\",'3 INCOME & EXPENSE'!E623)","v":""},{"$f":"T('3 INCOME & EXPENSE'!G623)","v":""},{"$f":"'3 INCOME & EXPENSE'!M623","v":{"v":0,"d":"0.0"}},{"$f":"'3 INCOME & EXPENSE'!N623","v":{"v":0,"d":"$0.00"}},{"$f":"'3 INCOME & EXPENSE'!O623","v":{"v":0,"d":"$0.00"}},1029,{"$f":"'3 INCOME & EXPENSE'!X623","v":101},101000,101101,0]
[null,null,{"$f":"IF('3 INCOME & EXPENSE'!E624=0,\"\",'3 INCOME & EXPENSE'!E624)","v":""},{"$f":"T('3 INCOME & EXPENSE'!G624)","v":""},{"$f":"'3 INCOME & EXPENSE'!M624","v":{"v":0,"d":"0.0"}},{"$f":"'3 INCOME & EXPENSE'!N624","v":{"v":0,"d":"$0.00"}},{"$f":"'3 INCOME & EXPENSE'!O624","v":{"v":0,"d":"$0.00"}},1030,{"$f":"'3 INCOME & EXPENSE'!X624","v":101},101000,101101,0]
[null,null,{"$f":"IF('3 INCOME & EXPENSE'!E625=0,\"\",'3 INCOME & EXPENSE'!E625)","v":""},{"$f":"T('3 INCOME & EXPENSE'!G625)","v":""},{"$f":"'3 INCOME & EXPENSE'!M625","v":{"v":0,"d":"0.0"}},{"$f":"'3 INCOME & EXPENSE'!N625","v":{"v":0,"d":"$0.00"}},{"$f":"'3 INCOME & EXPENSE'!O625","v":{"v":0,"d":"$0.00"}},1031,{"$f":"'3 INCOME & EXPENSE'!X625","v":101},101000,101101,0]
[null,null,{"$f":"IF('3 INCOME & EXPENSE'!E626=0,\"\",'3 INCOME & EXPENSE'!E626)","v":""},{"$f":"T('3 INCOME & EXPENSE'!G626)","v":""},{"$f":"'3 INCOME & EXPENSE'!M626","v":{"v":0,"d":"0.0"}},{"$f":"'3 INCOME & EXPENSE'!N626","v":{"v":0,"d":"$0.00"}},{"$f":"'3 INCOME & EXPENSE'!O626","v":{"v":0,"d":"$0.00"}},1032,{"$f":"'3 INCOME & EXPENSE'!X626","v":101},101000,101101,0]
[null,null,{"$f":"IF('3 INCOME & EXPENSE'!E627=0,\"\",'3 INCOME & EXPENSE'!E627)","v":""},{"$f":"T('3 INCOME & EXPENSE'!G627)","v":""},{"$f":"'3 INCOME & EXPENSE'!M627","v":{"v":0,"d":"0.0"}},{"$f":"'3 INCOME & EXPENSE'!N627","v":{"v":0,"d":"$0.00"}},{"$f":"'3 INCOME & EXPENSE'!O627","v":{"v":0,"d":"$0.00"}},1033,{"$f":"'3 INCOME & EXPENSE'!X627","v":101},101000,101101,0]
[null,null,{"$f":"IF('3 INCOME & EXPENSE'!E628=0,\"\",'3 INCOME & EXPENSE'!E628)","v":""},{"$f":"T('3 INCOME & EXPENSE'!G628)","v":""},{"$f":"'3 INCOME & EXPENSE'!M628","v":{"v":0,"d":"0.0"}},{"$f":"'3 INCOME & EXPENSE'!N628","v":{"v":0,"d":"$0.00"}},{"$f":"'3 INCOME & EXPENSE'!O628","v":{"v":0,"d":"$0.00"}},1034,{"$f":"'3 INCOME & EXPENSE'!X628","v":101},101000,101101,0]
[null,null,{"$f":"IF('3 INCOME & EXPENSE'!E629=0,\"\",'3 INCOME & EXPENSE'!E629)","v":""},{"$f":"T('3 INCOME & EXPENSE'!G629)","v":""},{"$f":"'3 INCOME & EXPENSE'!M629","v":{"v":0,"d":"0.0"}},{"$f":"'3 INCOME & EXPENSE'!N629","v":{"v":0,"d":"$0.00"}},{"$f":"'3 INCOME & EXPENSE'!O629","v":{"v":0,"d":"$0.00"}},1035,{"$f":"'3 INCOME & EXPENSE'!X629","v":101},101000,101101,0]
[null,null,{"$f":"IF('3 INCOME & EXPENSE'!E630=0,\"\",'3 INCOME & EXPENSE'!E630)","v":""},{"$f":"T('3 INCOME & EXPENSE'!G630)","v":""},{"$f":"'3 INCOME & EXPENSE'!M630","v":{"v":0,"d":"0.0"}},{"$f":"'3 INCOME & EXPENSE'!N630","v":{"v":0,"d":"$0.00"}},{"$f":"'3 INCOME & EXPENSE'!O630","v":{"v":0,"d":"$0.00"}},1036,{"$f":"'3 INCOME & EXPENSE'!X630","v":101},101000,101101,0]
[null,null,{"$f":"IF('3 INCOME & EXPENSE'!E631=0,\"\",'3 INCOME & EXPENSE'!E631)","v":""},{"$f":"T('3 INCOME & EXPENSE'!G631)","v":""},{"$f":"'3 INCOME & EXPENSE'!M631","v":{"v":0,"d":"0.0"}},{"$f":"'3 INCOME & EXPENSE'!N631","v":{"v":0,"d":"$0.00"}},{"$f":"'3 INCOME & EXPENSE'!O631","v":{"v":0,"d":"$0.00"}},1037,{"$f":"'3 INCOME & EXPENSE'!X631","v":101},101000,101101,0]
[null,null,{"$f":"IF('3 INCOME & EXPENSE'!E632=0,\"\",'3 INCOME & EXPENSE'!E632)","v":""},{"$f":"T('3 INCOME & EXPENSE'!G632)","v":""},{"$f":"'3 INCOME & EXPENSE'!M632","v":{"v":0,"d":"0.0"}},{"$f":"'3 INCOME & EXPENSE'!N632","v":{"v":0,"d":"$0.00"}},{"$f":"'3 INCOME & EXPENSE'!O632","v":{"v":0,"d":"$0.00"}},1038,{"$f":"'3 INCOME & EXPENSE'!X632","v":101},101000,101101,0]
[null,null,{"$f":"IF('3 INCOME & EXPENSE'!E633=0,\"\",'3 INCOME & EXPENSE'!E633)","v":""},{"$f":"T('3 INCOME & EXPENSE'!G633)","v":""},{"$f":"'3 INCOME & EXPENSE'!M633","v":{"v":0,"d":"0.0"}},{"$f":"'3 INCOME & EXPENSE'!N633","v":{"v":0,"d":"$0.00"}},{"$f":"'3 INCOME & EXPENSE'!O633","v":{"v":0,"d":"$0.00"}},1039,{"$f":"'3 INCOME & EXPENSE'!X633","v":101},101000,101101,0]
[null,null,{"$f":"IF('3 INCOME & EXPENSE'!E634=0,\"\",'3 INCOME & EXPENSE'!E634)","v":""},{"$f":"T('3 INCOME & EXPENSE'!G634)","v":""},{"$f":"'3 INCOME & EXPENSE'!M634","v":{"v":0,"d":"0.0"}},{"$f":"'3 INCOME & EXPENSE'!N634","v":{"v":0,"d":"$0.00"}},{"$f":"'3 INCOME & EXPENSE'!O634","v":{"v":0,"d":"$0.00"}},1040,{"$f":"'3 INCOME & EXPENSE'!X634","v":101},101000,101101,0]
[null,null,{"$f":"IF('3 INCOME & EXPENSE'!E635=0,\"\",'3 INCOME & EXPENSE'!E635)","v":""},{"$f":"T('3 INCOME & EXPENSE'!G635)","v":""},{"$f":"'3 INCOME & EXPENSE'!M635","v":{"v":0,"d":"0.0"}},{"$f":"'3 INCOME & EXPENSE'!N635","v":{"v":0,"d":"$0.00"}},{"$f":"'3 INCOME & EXPENSE'!O635","v":{"v":0,"d":"$0.00"}},1041,{"$f":"'3 INCOME & EXPENSE'!X635","v":101},101000,101101,0]
[null,null,{"$f":"IF('3 INCOME & EXPENSE'!E636=0,\"\",'3 INCOME & EXPENSE'!E636)","v":""},{"$f":"T('3 INCOME & EXPENSE'!G636)","v":""},{"$f":"'3 INCOME & EXPENSE'!M636","v":{"v":0,"d":"0.0"}},{"$f":"'3 INCOME & EXPENSE'!N636","v":{"v":0,"d":"$0.00"}},{"$f":"'3 INCOME & EXPENSE'!O636","v":{"v":0,"d":"$0.00"}},1042,{"$f":"'3 INCOME & EXPENSE'!X636","v":101},101000,101101,0]
[null,null,{"$f":"IF('3 INCOME & EXPENSE'!E637=0,\"\",'3 INCOME & EXPENSE'!E637)","v":""},{"$f":"T('3 INCOME & EXPENSE'!G637)","v":""},{"$f":"'3 INCOME & EXPENSE'!M637","v":{"v":0,"d":"0.0"}},{"$f":"'3 INCOME & EXPENSE'!N637","v":{"v":0,"d":"$0.00"}},{"$f":"'3 INCOME & EXPENSE'!O637","v":{"v":0,"d":"$0.00"}},1043,{"$f":"'3 INCOME & EXPENSE'!X637","v":101},101000,101101,0]
[null,null,{"$f":"IF('3 INCOME & EXPENSE'!E638=0,\"\",'3 INCOME & EXPENSE'!E638)","v":""},{"$f":"T('3 INCOME & EXPENSE'!G638)","v":""},{"$f":"'3 INCOME & EXPENSE'!M638","v":{"v":0,"d":"0.0"}},{"$f":"'3 INCOME & EXPENSE'!N638","v":{"v":0,"d":"$0.00"}},{"$f":"'3 INCOME & EXPENSE'!O638","v":{"v":0,"d":"$0.00"}},1044,{"$f":"'3 INCOME & EXPENSE'!X638","v":101},101000,101101,0]
[null,null,{"$f":"IF('3 INCOME & EXPENSE'!E639=0,\"\",'3 INCOME & EXPENSE'!E639)","v":""},{"$f":"T('3 INCOME & EXPENSE'!G639)","v":""},{"$f":"'3 INCOME & EXPENSE'!M639","v":{"v":0,"d":"0.0"}},{"$f":"'3 INCOME & EXPENSE'!N639","v":{"v":0,"d":"$0.00"}},{"$f":"'3 INCOME & EXPENSE'!O639","v":{"v":0,"d":"$0.00"}},1045,{"$f":"'3 INCOME & EXPENSE'!X639","v":101},101000,101101,0]
[null,null,{"$f":"IF('3 INCOME & EXPENSE'!E640=0,\"\",'3 INCOME & EXPENSE'!E640)","v":""},{"$f":"T('3 INCOME & EXPENSE'!G640)","v":""},{"$f":"'3 INCOME & EXPENSE'!M640","v":{"v":0,"d":"0.0"}},{"$f":"'3 INCOME & EXPENSE'!N640","v":{"v":0,"d":"$0.00"}},{"$f":"'3 INCOME & EXPENSE'!O640","v":{"v":0,"d":"$0.00"}},1046,{"$f":"'3 INCOME & EXPENSE'!X640","v":101},101000,101101,0]
[null,null,{"$f":"IF('3 INCOME & EXPENSE'!E641=0,\"\",'3 INCOME & EXPENSE'!E641)","v":""},{"$f":"T('3 INCOME & EXPENSE'!G641)","v":""},{"$f":"'3 INCOME & EXPENSE'!M641","v":{"v":0,"d":"0.0"}},{"$f":"'3 INCOME & EXPENSE'!N641","v":{"v":0,"d":"$0.00"}},{"$f":"'3 INCOME & EXPENSE'!O641","v":{"v":0,"d":"$0.00"}},1047,{"$f":"'3 INCOME & EXPENSE'!X641","v":101},101000,101101,0]
[null,null,{"$f":"IF('3 INCOME & EXPENSE'!E642=0,\"\",'3 INCOME & EXPENSE'!E642)","v":""},{"$f":"T('3 INCOME & EXPENSE'!G642)","v":""},{"$f":"'3 INCOME & EXPENSE'!M642","v":{"v":0,"d":"0.0"}},{"$f":"'3 INCOME & EXPENSE'!N642","v":{"v":0,"d":"$0.00"}},{"$f":"'3 INCOME & EXPENSE'!O642","v":{"v":0,"d":"$0.00"}},1048,{"$f":"'3 INCOME & EXPENSE'!X642","v":101},101000,101101,0]
[null,null,{"$f":"IF('3 INCOME & EXPENSE'!E643=0,\"\",'3 INCOME & EXPENSE'!E643)","v":""},{"$f":"T('3 INCOME & EXPENSE'!G643)","v":""},{"$f":"'3 INCOME & EXPENSE'!M643","v":{"v":0,"d":"0.0"}},{"$f":"'3 INCOME & EXPENSE'!N643","v":{"v":0,"d":"$0.00"}},{"$f":"'3 INCOME & EXPENSE'!O643","v":{"v":0,"d":"$0.00"}},1049,{"$f":"'3 INCOME & EXPENSE'!X643","v":101},101000,101101,0]
[null,null,{"$f":"IF('3 INCOME & EXPENSE'!E644=0,\"\",'3 INCOME & EXPENSE'!E644)","v":""},{"$f":"T('3 INCOME & EXPENSE'!G644)","v":""},{"$f":"'3 INCOME & EXPENSE'!M644","v":{"v":0,"d":"0.0"}},{"$f":"'3 INCOME & EXPENSE'!N644","v":{"v":0,"d":"$0.00"}},{"$f":"'3 INCOME & EXPENSE'!O644","v":{"v":0,"d":"$0.00"}},1050,{"$f":"'3 INCOME & EXPENSE'!X644","v":101},101000,101101,0]
[null,null,{"$f":"IF('3 INCOME & EXPENSE'!E645=0,\"\",'3 INCOME & EXPENSE'!E645)","v":""},{"$f":"T('3 INCOME & EXPENSE'!G645)","v":""},{"$f":"'3 INCOME & EXPENSE'!M645","v":{"v":0,"d":"0.0"}},{"$f":"'3 INCOME & EXPENSE'!N645","v":{"v":0,"d":"$0.00"}},{"$f":"'3 INCOME & EXPENSE'!O645","v":{"v":0,"d":"$0.00"}},1051,{"$f":"'3 INCOME & EXPENSE'!X645","v":101},101000,101101,0]
[null,null,{"$f":"IF('3 INCOME & EXPENSE'!E646=0,\"\",'3 INCOME & EXPENSE'!E646)","v":""},{"$f":"T('3 INCOME & EXPENSE'!G646)","v":""},{"$f":"'3 INCOME & EXPENSE'!M646","v":{"v":0,"d":"0.0"}},{"$f":"'3 INCOME & EXPENSE'!N646","v":{"v":0,"d":"$0.00"}},{"$f":"'3 INCOME & EXPENSE'!O646","v":{"v":0,"d":"$0.00"}},1052,{"$f":"'3 INCOME & EXPENSE'!X646","v":101},101000,101101,0]
[null,null,{"$f":"IF('3 INCOME & EXPENSE'!E647=0,\"\",'3 INCOME & EXPENSE'!E647)","v":""},{"$f":"T('3 INCOME & EXPENSE'!G647)","v":""},{"$f":"'3 INCOME & EXPENSE'!M647","v":{"v":0,"d":"0.0"}},{"$f":"'3 INCOME & EXPENSE'!N647","v":{"v":0,"d":"$0.00"}},{"$f":"'3 INCOME & EXPENSE'!O647","v":{"v":0,"d":"$0.00"}},1053,{"$f":"'3 INCOME & EXPENSE'!X647","v":101},101000,101101,0]
[null,null,{"$f":"IF('3 INCOME & EXPENSE'!E648=0,\"\",'3 INCOME & EXPENSE'!E648)","v":""},{"$f":"T('3 INCOME & EXPENSE'!G648)","v":""},{"$f":"'3 INCOME & EXPENSE'!M648","v":{"v":0,"d":"0.0"}},{"$f":"'3 INCOME & EXPENSE'!N648","v":{"v":0,"d":"$0.00"}},{"$f":"'3 INCOME & EXPENSE'!O648","v":{"v":0,"d":"$0.00"}},1054,{"$f":"'3 INCOME & EXPENSE'!X648","v":101},101000,101101,0]
[null,null,{"$f":"IF('3 INCOME & EXPENSE'!E649=0,\"\",'3 INCOME & EXPENSE'!E649)","v":""},{"$f":"T('3 INCOME & EXPENSE'!G649)","v":""},{"$f":"'3 INCOME & EXPENSE'!M649","v":{"v":0,"d":"0.0"}},{"$f":"'3 INCOME & EXPENSE'!N649","v":{"v":0,"d":"$0.00"}},{"$f":"'3 INCOME & EXPENSE'!O649","v":{"v":0,"d":"$0.00"}},1055,{"$f":"'3 INCOME & EXPENSE'!X649","v":101},101000,101101,0]
[null,null,{"$f":"IF('3 INCOME & EXPENSE'!E650=0,\"\",'3 INCOME & EXPENSE'!E650)","v":""},{"$f":"T('3 INCOME & EXPENSE'!G650)","v":""},{"$f":"'3 INCOME & EXPENSE'!M650","v":{"v":0,"d":"0.0"}},{"$f":"'3 INCOME & EXPENSE'!N650","v":{"v":0,"d":"$0.00"}},{"$f":"'3 INCOME & EXPENSE'!O650","v":{"v":0,"d":"$0.00"}},1056,{"$f":"'3 INCOME & EXPENSE'!X650","v":101},101000,101101,0]
[null,null,{"$f":"IF('3 INCOME & EXPENSE'!E651=0,\"\",'3 INCOME & EXPENSE'!E651)","v":""},{"$f":"T('3 INCOME & EXPENSE'!G651)","v":""},{"$f":"'3 INCOME & EXPENSE'!M651","v":{"v":0,"d":"0.0"}},{"$f":"'3 INCOME & EXPENSE'!N651","v":{"v":0,"d":"$0.00"}},{"$f":"'3 INCOME & EXPENSE'!O651","v":{"v":0,"d":"$0.00"}},1057,{"$f":"'3 INCOME & EXPENSE'!X651","v":101},101000,101101,0]
[null,null,{"$f":"IF('3 INCOME & EXPENSE'!E652=0,\"\",'3 INCOME & EXPENSE'!E652)","v":""},{"$f":"T('3 INCOME & EXPENSE'!G652)","v":""},{"$f":"'3 INCOME & EXPENSE'!M652","v":{"v":0,"d":"0.0"}},{"$f":"'3 INCOME & EXPENSE'!N652","v":{"v":0,"d":"$0.00"}},{"$f":"'3 INCOME & EXPENSE'!O652","v":{"v":0,"d":"$0.00"}},1058,{"$f":"'3 INCOME & EXPENSE'!X652","v":101},101000,101101,0]
[null,null,{"$f":"IF('3 INCOME & EXPENSE'!E653=0,\"\",'3 INCOME & EXPENSE'!E653)","v":""},{"$f":"T('3 INCOME & EXPENSE'!G653)","v":""},{"$f":"'3 INCOME & EXPENSE'!M653","v":{"v":0,"d":"0.0"}},{"$f":"'3 INCOME & EXPENSE'!N653","v":{"v":0,"d":"$0.00"}},{"$f":"'3 INCOME & EXPENSE'!O653","v":{"v":0,"d":"$0.00"}},1059,{"$f":"'3 INCOME & EXPENSE'!X653","v":101},101000,101101,0]
[null,null,{"$f":"IF('3 INCOME & EXPENSE'!E654=0,\"\",'3 INCOME & EXPENSE'!E654)","v":""},{"$f":"T('3 INCOME & EXPENSE'!G654)","v":""},{"$f":"'3 INCOME & EXPENSE'!M654","v":{"v":0,"d":"0.0"}},{"$f":"'3 INCOME & EXPENSE'!N654","v":{"v":0,"d":"$0.00"}},{"$f":"'3 INCOME & EXPENSE'!O654","v":{"v":0,"d":"$0.00"}},1060,{"$f":"'3 INCOME & EXPENSE'!X654","v":101},{"$f":"VLOOKUP(I1072,$I$1186:$J$1287,2)","v":101000},101101,{"$f":"K1072*E1072","v":0}]
[null,null,{"$f":"IF('3 INCOME & EXPENSE'!E655=0,\"\",'3 INCOME & EXPENSE'!E655)","v":""},{"$f":"T('3 INCOME & EXPENSE'!G655)","v":""},{"$f":"'3 INCOME & EXPENSE'!M655","v":{"v":0,"d":"0.0"}},{"$f":"'3 INCOME & EXPENSE'!N655","v":{"v":0,"d":"$0.00"}},{"$f":"'3 INCOME & EXPENSE'!O655","v":{"v":0,"d":"$0.00"}},1061,{"$f":"'3 INCOME & EXPENSE'!X655","v":101},101000,101101,0]
[null,null,{"$f":"IF('3 INCOME & EXPENSE'!E656=0,\"\",'3 INCOME & EXPENSE'!E656)","v":""},{"$f":"T('3 INCOME & EXPENSE'!G656)","v":""},{"$f":"'3 INCOME & EXPENSE'!M656","v":{"v":0,"d":"0.0"}},{"$f":"'3 INCOME & EXPENSE'!N656","v":{"v":0,"d":"$0.00"}},{"$f":"'3 INCOME & EXPENSE'!O656","v":{"v":0,"d":"$0.00"}},1062,{"$f":"'3 INCOME & EXPENSE'!X656","v":101},101000,101101,0]
[null,null,{"$f":"IF('3 INCOME & EXPENSE'!E657=0,\"\",'3 INCOME & EXPENSE'!E657)","v":""},{"$f":"T('3 INCOME & EXPENSE'!G657)","v":""},{"$f":"'3 INCOME & EXPENSE'!M657","v":{"v":0,"d":"0.0"}},{"$f":"'3 INCOME & EXPENSE'!N657","v":{"v":0,"d":"$0.00"}},{"$f":"'3 INCOME & EXPENSE'!O657","v":{"v":0,"d":"$0.00"}},1063,{"$f":"'3 INCOME & EXPENSE'!X657","v":101},101000,101101,0]
[null,null,{"$f":"IF('3 INCOME & EXPENSE'!E658=0,\"\",'3 INCOME & EXPENSE'!E658)","v":""},{"$f":"T('3 INCOME & EXPENSE'!G658)","v":""},{"$f":"'3 INCOME & EXPENSE'!M658","v":{"v":0,"d":"0.0"}},{"$f":"'3 INCOME & EXPENSE'!N658","v":{"v":0,"d":"$0.00"}},{"$f":"'3 INCOME & EXPENSE'!O658","v":{"v":0,"d":"$0.00"}},1064,{"$f":"'3 INCOME & EXPENSE'!X658","v":101},101000,101101,0]
[null,null,{"$f":"IF('3 INCOME & EXPENSE'!E659=0,\"\",'3 INCOME & EXPENSE'!E659)","v":""},{"$f":"T('3 INCOME & EXPENSE'!G659)","v":""},{"$f":"'3 INCOME & EXPENSE'!M659","v":{"v":0,"d":"0.0"}},{"$f":"'3 INCOME & EXPENSE'!N659","v":{"v":0,"d":"$0.00"}},{"$f":"'3 INCOME & EXPENSE'!O659","v":{"v":0,"d":"$0.00"}},1065,{"$f":"'3 INCOME & EXPENSE'!X659","v":101},101000,101101,0]
[null,null,{"$f":"IF('3 INCOME & EXPENSE'!E660=0,\"\",'3 INCOME & EXPENSE'!E660)","v":""},{"$f":"T('3 INCOME & EXPENSE'!G660)","v":""},{"$f":"'3 INCOME & EXPENSE'!M660","v":{"v":0,"d":"0.0"}},{"$f":"'3 INCOME & EXPENSE'!N660","v":{"v":0,"d":"$0.00"}},{"$f":"'3 INCOME & EXPENSE'!O660","v":{"v":0,"d":"$0.00"}},1066,{"$f":"'3 INCOME & EXPENSE'!X660","v":101},101000,101101,0]
[null,null,{"$f":"IF('3 INCOME & EXPENSE'!E661=0,\"\",'3 INCOME & EXPENSE'!E661)","v":""},{"$f":"T('3 INCOME & EXPENSE'!G661)","v":""},{"$f":"'3 INCOME & EXPENSE'!M661","v":{"v":0,"d":"0.0"}},{"$f":"'3 INCOME & EXPENSE'!N661","v":{"v":0,"d":"$0.00"}},{"$f":"'3 INCOME & EXPENSE'!O661","v":{"v":0,"d":"$0.00"}},1067,{"$f":"'3 INCOME & EXPENSE'!X661","v":101},101000,101101,0]
[null,null,{"$f":"IF('3 INCOME & EXPENSE'!E662=0,\"\",'3 INCOME & EXPENSE'!E662)","v":""},{"$f":"T('3 INCOME & EXPENSE'!G662)","v":""},{"$f":"'3 INCOME & EXPENSE'!M662","v":{"v":0,"d":"0.0"}},{"$f":"'3 INCOME & EXPENSE'!N662","v":{"v":0,"d":"$0.00"}},{"$f":"'3 INCOME & EXPENSE'!O662","v":{"v":0,"d":"$0.00"}},1068,{"$f":"'3 INCOME & EXPENSE'!X662","v":101},101000,101101,0]
[null,null,{"$f":"IF('3 INCOME & EXPENSE'!E663=0,\"\",'3 INCOME & EXPENSE'!E663)","v":""},{"$f":"T('3 INCOME & EXPENSE'!G663)","v":""},{"$f":"'3 INCOME & EXPENSE'!M663","v":{"v":0,"d":"0.0"}},{"$f":"'3 INCOME & EXPENSE'!N663","v":{"v":0,"d":"$0.00"}},{"$f":"'3 INCOME & EXPENSE'!O663","v":{"v":0,"d":"$0.00"}},1069,{"$f":"'3 INCOME & EXPENSE'!X663","v":101},101000,101101,0]
[null,null,{"$f":"IF('3 INCOME & EXPENSE'!E664=0,\"\",'3 INCOME & EXPENSE'!E664)","v":""},{"$f":"T('3 INCOME & EXPENSE'!G664)","v":""},{"$f":"'3 INCOME & EXPENSE'!M664","v":{"v":0,"d":"0.0"}},{"$f":"'3 INCOME & EXPENSE'!N664","v":{"v":0,"d":"$0.00"}},{"$f":"'3 INCOME & EXPENSE'!O664","v":{"v":0,"d":"$0.00"}},1070,{"$f":"'3 INCOME & EXPENSE'!X664","v":101},101000,101101,0]
[null,null,{"$f":"IF('3 INCOME & EXPENSE'!E665=0,\"\",'3 INCOME & EXPENSE'!E665)","v":""},{"$f":"T('3 INCOME & EXPENSE'!G665)","v":""},{"$f":"'3 INCOME & EXPENSE'!M665","v":{"v":0,"d":"0.0"}},{"$f":"'3 INCOME & EXPENSE'!N665","v":{"v":0,"d":"$0.00"}},{"$f":"'3 INCOME & EXPENSE'!O665","v":{"v":0,"d":"$0.00"}},1071,{"$f":"'3 INCOME & EXPENSE'!X665","v":101},101000,101101,0]
[null,null,{"$f":"IF('3 INCOME & EXPENSE'!E666=0,\"\",'3 INCOME & EXPENSE'!E666)","v":""},{"$f":"T('3 INCOME & EXPENSE'!G666)","v":""},{"$f":"'3 INCOME & EXPENSE'!M666","v":{"v":0,"d":"0.0"}},{"$f":"'3 INCOME & EXPENSE'!N666","v":{"v":0,"d":"$0.00"}},{"$f":"'3 INCOME & EXPENSE'!O666","v":{"v":0,"d":"$0.00"}},1072,{"$f":"'3 INCOME & EXPENSE'!X666","v":101},101000,101101,0]
[null,null,{"$f":"IF('3 INCOME & EXPENSE'!E667=0,\"\",'3 INCOME & EXPENSE'!E667)","v":""},{"$f":"T('3 INCOME & EXPENSE'!G667)","v":""},{"$f":"'3 INCOME & EXPENSE'!M667","v":{"v":0,"d":"0.0"}},{"$f":"'3 INCOME & EXPENSE'!N667","v":{"v":0,"d":"$0.00"}},{"$f":"'3 INCOME & EXPENSE'!O667","v":{"v":0,"d":"$0.00"}},1073,{"$f":"'3 INCOME & EXPENSE'!X667","v":101},101000,101101,0]
[null,null,{"$f":"IF('3 INCOME & EXPENSE'!E668=0,\"\",'3 INCOME & EXPENSE'!E668)","v":""},{"$f":"T('3 INCOME & EXPENSE'!G668)","v":""},{"$f":"'3 INCOME & EXPENSE'!M668","v":{"v":0,"d":"0.0"}},{"$f":"'3 INCOME & EXPENSE'!N668","v":{"v":0,"d":"$0.00"}},{"$f":"'3 INCOME & EXPENSE'!O668","v":{"v":0,"d":"$0.00"}},1074,{"$f":"'3 INCOME & EXPENSE'!X668","v":101},101000,101101,0]
[null,null,{"$f":"IF('3 INCOME & EXPENSE'!E669=0,\"\",'3 INCOME & EXPENSE'!E669)","v":""},{"$f":"T('3 INCOME & EXPENSE'!G669)","v":""},{"$f":"'3 INCOME & EXPENSE'!M669","v":{"v":0,"d":"0.0"}},{"$f":"'3 INCOME & EXPENSE'!N669","v":{"v":0,"d":"$0.00"}},{"$f":"'3 INCOME & EXPENSE'!O669","v":{"v":0,"d":"$0.00"}},1075,{"$f":"'3 INCOME & EXPENSE'!X669","v":101},101000,101101,0]
[null,null,{"$f":"IF('3 INCOME & EXPENSE'!E670=0,\"\",'3 INCOME & EXPENSE'!E670)","v":""},{"$f":"T('3 INCOME & EXPENSE'!G670)","v":""},{"$f":"'3 INCOME & EXPENSE'!M670","v":{"v":0,"d":"0.0"}},{"$f":"'3 INCOME & EXPENSE'!N670","v":{"v":0,"d":"$0.00"}},{"$f":"'3 INCOME & EXPENSE'!O670","v":{"v":0,"d":"$0.00"}},1076,{"$f":"'3 INCOME & EXPENSE'!X670","v":101},101000,101101,0]
[null,null,{"$f":"IF('3 INCOME & EXPENSE'!E671=0,\"\",'3 INCOME & EXPENSE'!E671)","v":""},{"$f":"T('3 INCOME & EXPENSE'!G671)","v":""},{"$f":"'3 INCOME & EXPENSE'!M671","v":{"v":0,"d":"0.0"}},{"$f":"'3 INCOME & EXPENSE'!N671","v":{"v":0,"d":"$0.00"}},{"$f":"'3 INCOME & EXPENSE'!O671","v":{"v":0,"d":"$0.00"}},1077,{"$f":"'3 INCOME & EXPENSE'!X671","v":101},101000,{"$f":"I1089+J1089","v":101101},0]
[null,null,{"$f":"IF('3 INCOME & EXPENSE'!E672=0,\"\",'3 INCOME & EXPENSE'!E672)","v":""},{"$f":"T('3 INCOME & EXPENSE'!G672)","v":""},{"$f":"'3 INCOME & EXPENSE'!M672","v":{"v":0,"d":"0.0"}},{"$f":"'3 INCOME & EXPENSE'!N672","v":{"v":0,"d":"$0.00"}},{"$f":"'3 INCOME & EXPENSE'!O672","v":{"v":0,"d":"$0.00"}},1078,{"$f":"'3 INCOME & EXPENSE'!X672","v":101},101000,101101,0]
[null,null,{"$f":"IF('3 INCOME & EXPENSE'!E673=0,\"\",'3 INCOME & EXPENSE'!E673)","v":""},{"$f":"T('3 INCOME & EXPENSE'!G673)","v":""},{"$f":"'3 INCOME & EXPENSE'!M673","v":{"v":0,"d":"0.0"}},{"$f":"'3 INCOME & EXPENSE'!N673","v":{"v":0,"d":"$0.00"}},{"$f":"'3 INCOME & EXPENSE'!O673","v":{"v":0,"d":"$0.00"}},1079,{"$f":"'3 INCOME & EXPENSE'!X673","v":101},101000,101101,0]
[null,null,{"$f":"IF('3 INCOME & EXPENSE'!E674=0,\"\",'3 INCOME & EXPENSE'!E674)","v":""},{"$f":"T('3 INCOME & EXPENSE'!G674)","v":""},{"$f":"'3 INCOME & EXPENSE'!M674","v":{"v":0,"d":"0.0"}},{"$f":"'3 INCOME & EXPENSE'!N674","v":{"v":0,"d":"$0.00"}},{"$f":"'3 INCOME & EXPENSE'!O674","v":{"v":0,"d":"$0.00"}},1080,{"$f":"'3 INCOME & EXPENSE'!X674","v":101},101000,101101,0]
[null,null,{"$f":"IF('3 INCOME & EXPENSE'!E675=0,\"\",'3 INCOME & EXPENSE'!E675)","v":""},{"$f":"T('3 INCOME & EXPENSE'!G675)","v":""},{"$f":"'3 INCOME & EXPENSE'!M675","v":{"v":0,"d":"0.0"}},{"$f":"'3 INCOME & EXPENSE'!N675","v":{"v":0,"d":"$0.00"}},{"$f":"'3 INCOME & EXPENSE'!O675","v":{"v":0,"d":"$0.00"}},1081,{"$f":"'3 INCOME & EXPENSE'!X675","v":101},101000,101101,0]
[null,null,{"$f":"IF('3 INCOME & EXPENSE'!E676=0,\"\",'3 INCOME & EXPENSE'!E676)","v":""},{"$f":"T('3 INCOME & EXPENSE'!G676)","v":""},{"$f":"'3 INCOME & EXPENSE'!M676","v":{"v":0,"d":"0.0"}},{"$f":"'3 INCOME & EXPENSE'!N676","v":{"v":0,"d":"$0.00"}},{"$f":"'3 INCOME & EXPENSE'!O676","v":{"v":0,"d":"$0.00"}},1082,{"$f":"'3 INCOME & EXPENSE'!X676","v":101},101000,101101,0]
[null,null,{"$f":"IF('3 INCOME & EXPENSE'!E677=0,\"\",'3 INCOME & EXPENSE'!E677)","v":""},{"$f":"T('3 INCOME & EXPENSE'!G677)","v":""},{"$f":"'3 INCOME & EXPENSE'!M677","v":{"v":0,"d":"0.0"}},{"$f":"'3 INCOME & EXPENSE'!N677","v":{"v":0,"d":"$0.00"}},{"$f":"'3 INCOME & EXPENSE'!O677","v":{"v":0,"d":"$0.00"}},1083,{"$f":"'3 INCOME & EXPENSE'!X677","v":101},101000,101101,0]
[null,null,{"$f":"IF('3 INCOME & EXPENSE'!E678=0,\"\",'3 INCOME & EXPENSE'!E678)","v":""},{"$f":"T('3 INCOME & EXPENSE'!G678)","v":""},{"$f":"'3 INCOME & EXPENSE'!M678","v":{"v":0,"d":"0.0"}},{"$f":"'3 INCOME & EXPENSE'!N678","v":{"v":0,"d":"$0.00"}},{"$f":"'3 INCOME & EXPENSE'!O678","v":{"v":0,"d":"$0.00"}},1084,{"$f":"'3 INCOME & EXPENSE'!X678","v":101},101000,101101,0]
[null,null,{"$f":"IF('3 INCOME & EXPENSE'!E679=0,\"\",'3 INCOME & EXPENSE'!E679)","v":""},{"$f":"T('3 INCOME & EXPENSE'!G679)","v":""},{"$f":"'3 INCOME & EXPENSE'!M679","v":{"v":0,"d":"0.0"}},{"$f":"'3 INCOME & EXPENSE'!N679","v":{"v":0,"d":"$0.00"}},{"$f":"'3 INCOME & EXPENSE'!O679","v":{"v":0,"d":"$0.00"}},1085,{"$f":"'3 INCOME & EXPENSE'!X679","v":101},101000,101101,0]
[null,null,{"$f":"IF('3 INCOME & EXPENSE'!E680=0,\"\",'3 INCOME & EXPENSE'!E680)","v":""},{"$f":"T('3 INCOME & EXPENSE'!G680)","v":""},{"$f":"'3 INCOME & EXPENSE'!M680","v":{"v":0,"d":"0.0"}},{"$f":"'3 INCOME & EXPENSE'!N680","v":{"v":0,"d":"$0.00"}},{"$f":"'3 INCOME & EXPENSE'!O680","v":{"v":0,"d":"$0.00"}},1086,{"$f":"'3 INCOME & EXPENSE'!X680","v":101},101000,101101,0]
[null,null,{"$f":"IF('3 INCOME & EXPENSE'!E681=0,\"\",'3 INCOME & EXPENSE'!E681)","v":""},{"$f":"T('3 INCOME & EXPENSE'!G681)","v":""},{"$f":"'3 INCOME & EXPENSE'!M681","v":{"v":0,"d":"0.0"}},{"$f":"'3 INCOME & EXPENSE'!N681","v":{"v":0,"d":"$0.00"}},{"$f":"'3 INCOME & EXPENSE'!O681","v":{"v":0,"d":"$0.00"}},1087,{"$f":"'3 INCOME & EXPENSE'!X681","v":101},101000,101101,0]
[null,null,{"$f":"IF('3 INCOME & EXPENSE'!E682=0,\"\",'3 INCOME & EXPENSE'!E682)","v":""},{"$f":"T('3 INCOME & EXPENSE'!G682)","v":""},{"$f":"'3 INCOME & EXPENSE'!M682","v":{"v":0,"d":"0.0"}},{"$f":"'3 INCOME & EXPENSE'!N682","v":{"v":0,"d":"$0.00"}},{"$f":"'3 INCOME & EXPENSE'!O682","v":{"v":0,"d":"$0.00"}},1088,{"$f":"'3 INCOME & EXPENSE'!X682","v":101},101000,101101,0]
[null,null,{"$f":"IF('3 INCOME & EXPENSE'!E683=0,\"\",'3 INCOME & EXPENSE'!E683)","v":""},{"$f":"T('3 INCOME & EXPENSE'!G683)","v":""},{"$f":"'3 INCOME & EXPENSE'!M683","v":{"v":0,"d":"0.0"}},{"$f":"'3 INCOME & EXPENSE'!N683","v":{"v":0,"d":"$0.00"}},{"$f":"'3 INCOME & EXPENSE'!O683","v":{"v":0,"d":"$0.00"}},1089,{"$f":"'3 INCOME & EXPENSE'!X683","v":101},101000,101101,0]
[null,null,{"$f":"IF('3 INCOME & EXPENSE'!E684=0,\"\",'3 INCOME & EXPENSE'!E684)","v":""},{"$f":"T('3 INCOME & EXPENSE'!G684)","v":""},{"$f":"'3 INCOME & EXPENSE'!M684","v":{"v":0,"d":"0.0"}},{"$f":"'3 INCOME & EXPENSE'!N684","v":{"v":0,"d":"$0.00"}},{"$f":"'3 INCOME & EXPENSE'!O684","v":{"v":0,"d":"$0.00"}},1090,{"$f":"'3 INCOME & EXPENSE'!X684","v":101},101000,101101,0]
[null,null,{"$f":"IF('3 INCOME & EXPENSE'!E685=0,\"\",'3 INCOME & EXPENSE'!E685)","v":""},{"$f":"T('3 INCOME & EXPENSE'!G685)","v":""},{"$f":"'3 INCOME & EXPENSE'!M685","v":{"v":0,"d":"0.0"}},{"$f":"'3 INCOME & EXPENSE'!N685","v":{"v":0,"d":"$0.00"}},{"$f":"'3 INCOME & EXPENSE'!O685","v":{"v":0,"d":"$0.00"}},1091,{"$f":"'3 INCOME & EXPENSE'!X685","v":101},101000,101101,0]
[null,null,{"$f":"IF('3 INCOME & EXPENSE'!E686=0,\"\",'3 INCOME & EXPENSE'!E686)","v":""},{"$f":"T('3 INCOME & EXPENSE'!G686)","v":""},{"$f":"'3 INCOME & EXPENSE'!M686","v":{"v":0,"d":"0.0"}},{"$f":"'3 INCOME & EXPENSE'!N686","v":{"v":0,"d":"$0.00"}},{"$f":"'3 INCOME & EXPENSE'!O686","v":{"v":0,"d":"$0.00"}},1092,{"$f":"'3 INCOME & EXPENSE'!X686","v":101},101000,101101,0]
[null,null,{"$f":"IF('3 INCOME & EXPENSE'!E687=0,\"\",'3 INCOME & EXPENSE'!E687)","v":""},{"$f":"T('3 INCOME & EXPENSE'!G687)","v":""},{"$f":"'3 INCOME & EXPENSE'!M687","v":{"v":0,"d":"0.0"}},{"$f":"'3 INCOME & EXPENSE'!N687","v":{"v":0,"d":"$0.00"}},{"$f":"'3 INCOME & EXPENSE'!O687","v":{"v":0,"d":"$0.00"}},1093,{"$f":"'3 INCOME & EXPENSE'!X687","v":101},101000,101101,0]
[null,null,{"$f":"IF('3 INCOME & EXPENSE'!E688=0,\"\",'3 INCOME & EXPENSE'!E688)","v":""},{"$f":"T('3 INCOME & EXPENSE'!G688)","v":""},{"$f":"'3 INCOME & EXPENSE'!M688","v":{"v":0,"d":"0.0"}},{"$f":"'3 INCOME & EXPENSE'!N688","v":{"v":0,"d":"$0.00"}},{"$f":"'3 INCOME & EXPENSE'!O688","v":{"v":0,"d":"$0.00"}},1094,{"$f":"'3 INCOME & EXPENSE'!X688","v":101},101000,101101,0]
[null,null,{"$f":"IF('3 INCOME & EXPENSE'!E689=0,\"\",'3 INCOME & EXPENSE'!E689)","v":""},{"$f":"T('3 INCOME & EXPENSE'!G689)","v":""},{"$f":"'3 INCOME & EXPENSE'!M689","v":{"v":0,"d":"0.0"}},{"$f":"'3 INCOME & EXPENSE'!N689","v":{"v":0,"d":"$0.00"}},{"$f":"'3 INCOME & EXPENSE'!O689","v":{"v":0,"d":"$0.00"}},1095,{"$f":"'3 INCOME & EXPENSE'!X689","v":101},101000,101101,0]
[null,null,{"$f":"IF('3 INCOME & EXPENSE'!E690=0,\"\",'3 INCOME & EXPENSE'!E690)","v":""},{"$f":"T('3 INCOME & EXPENSE'!G690)","v":""},{"$f":"'3 INCOME & EXPENSE'!M690","v":{"v":0,"d":"0.0"}},{"$f":"'3 INCOME & EXPENSE'!N690","v":{"v":0,"d":"$0.00"}},{"$f":"'3 INCOME & EXPENSE'!O690","v":{"v":0,"d":"$0.00"}},1096,{"$f":"'3 INCOME & EXPENSE'!X690","v":101},101000,101101,0]
[null,null,{"$f":"IF('3 INCOME & EXPENSE'!E691=0,\"\",'3 INCOME & EXPENSE'!E691)","v":""},{"$f":"T('3 INCOME & EXPENSE'!G691)","v":""},{"$f":"'3 INCOME & EXPENSE'!M691","v":{"v":0,"d":"0.0"}},{"$f":"'3 INCOME & EXPENSE'!N691","v":{"v":0,"d":"$0.00"}},{"$f":"'3 INCOME & EXPENSE'!O691","v":{"v":0,"d":"$0.00"}},1097,{"$f":"'3 INCOME & EXPENSE'!X691","v":101},101000,101101,0]
[null,null,{"$f":"IF('3 INCOME & EXPENSE'!E692=0,\"\",'3 INCOME & EXPENSE'!E692)","v":""},{"$f":"T('3 INCOME & EXPENSE'!G692)","v":""},{"$f":"'3 INCOME & EXPENSE'!M692","v":{"v":0,"d":"0.0"}},{"$f":"'3 INCOME & EXPENSE'!N692","v":{"v":0,"d":"$0.00"}},{"$f":"'3 INCOME & EXPENSE'!O692","v":{"v":0,"d":"$0.00"}},1098,{"$f":"'3 INCOME & EXPENSE'!X692","v":101},101000,101101,0]
[null,null,{"$f":"IF('3 INCOME & EXPENSE'!E693=0,\"\",'3 INCOME & EXPENSE'!E693)","v":""},{"$f":"T('3 INCOME & EXPENSE'!G693)","v":""},{"$f":"'3 INCOME & EXPENSE'!M693","v":{"v":0,"d":"0.0"}},{"$f":"'3 INCOME & EXPENSE'!N693","v":{"v":0,"d":"$0.00"}},{"$f":"'3 INCOME & EXPENSE'!O693","v":{"v":0,"d":"$0.00"}},1099,{"$f":"'3 INCOME & EXPENSE'!X693","v":101},101000,101101,0]
[null,null,{"$f":"IF('3 INCOME & EXPENSE'!E694=0,\"\",'3 INCOME & EXPENSE'!E694)","v":""},{"$f":"T('3 INCOME & EXPENSE'!G694)","v":""},{"$f":"'3 INCOME & EXPENSE'!M694","v":{"v":0,"d":"0.0"}},{"$f":"'3 INCOME & EXPENSE'!N694","v":{"v":0,"d":"$0.00"}},{"$f":"'3 INCOME & EXPENSE'!O694","v":{"v":0,"d":"$0.00"}},1100,{"$f":"'3 INCOME & EXPENSE'!X694","v":101},101000,101101,0]
[null,null,{"$f":"IF('3 INCOME & EXPENSE'!E695=0,\"\",'3 INCOME & EXPENSE'!E695)","v":""},{"$f":"T('3 INCOME & EXPENSE'!G695)","v":""},{"$f":"'3 INCOME & EXPENSE'!M695","v":{"v":0,"d":"0.0"}},{"$f":"'3 INCOME & EXPENSE'!N695","v":{"v":0,"d":"$0.00"}},{"$f":"'3 INCOME & EXPENSE'!O695","v":{"v":0,"d":"$0.00"}},1101,{"$f":"'3 INCOME & EXPENSE'!X695","v":101},101000,101101,0]
[null,null,{"$f":"IF('3 INCOME & EXPENSE'!E696=0,\"\",'3 INCOME & EXPENSE'!E696)","v":""},{"$f":"T('3 INCOME & EXPENSE'!G696)","v":""},{"$f":"'3 INCOME & EXPENSE'!M696","v":{"v":0,"d":"0.0"}},{"$f":"'3 INCOME & EXPENSE'!N696","v":{"v":0,"d":"$0.00"}},{"$f":"'3 INCOME & EXPENSE'!O696","v":{"v":0,"d":"$0.00"}},1102,{"$f":"'3 INCOME & EXPENSE'!X696","v":101},101000,101101,0]
[null,null,{"$f":"IF('3 INCOME & EXPENSE'!E697=0,\"\",'3 INCOME & EXPENSE'!E697)","v":""},{"$f":"T('3 INCOME & EXPENSE'!G697)","v":""},{"$f":"'3 INCOME & EXPENSE'!M697","v":{"v":0,"d":"0.0"}},{"$f":"'3 INCOME & EXPENSE'!N697","v":{"v":0,"d":"$0.00"}},{"$f":"'3 INCOME & EXPENSE'!O697","v":{"v":0,"d":"$0.00"}},1103,{"$f":"'3 INCOME & EXPENSE'!X697","v":101},101000,101101,0]
[null,null,{"$f":"IF('3 INCOME & EXPENSE'!E698=0,\"\",'3 INCOME & EXPENSE'!E698)","v":""},{"$f":"T('3 INCOME & EXPENSE'!G698)","v":""},{"$f":"'3 INCOME & EXPENSE'!M698","v":{"v":0,"d":"0.0"}},{"$f":"'3 INCOME & EXPENSE'!N698","v":{"v":0,"d":"$0.00"}},{"$f":"'3 INCOME & EXPENSE'!O698","v":{"v":0,"d":"$0.00"}},1104,{"$f":"'3 INCOME & EXPENSE'!X698","v":101},101000,101101,0]
[null,null,{"$f":"IF('3 INCOME & EXPENSE'!E699=0,\"\",'3 INCOME & EXPENSE'!E699)","v":""},{"$f":"T('3 INCOME & EXPENSE'!G699)","v":""},{"$f":"'3 INCOME & EXPENSE'!M699","v":{"v":0,"d":"0.0"}},{"$f":"'3 INCOME & EXPENSE'!N699","v":{"v":0,"d":"$0.00"}},{"$f":"'3 INCOME & EXPENSE'!O699","v":{"v":0,"d":"$0.00"}},1105,{"$f":"'3 INCOME & EXPENSE'!X699","v":101},101000,101101,0]
[null,null,{"$f":"IF('3 INCOME & EXPENSE'!E700=0,\"\",'3 INCOME & EXPENSE'!E700)","v":""},{"$f":"T('3 INCOME & EXPENSE'!G700)","v":""},{"$f":"'3 INCOME & EXPENSE'!M700","v":{"v":0,"d":"0.0"}},{"$f":"'3 INCOME & EXPENSE'!N700","v":{"v":0,"d":"$0.00"}},{"$f":"'3 INCOME & EXPENSE'!O700","v":{"v":0,"d":"$0.00"}},1106,{"$f":"'3 INCOME & EXPENSE'!X700","v":101},101000,101101,0]
[null,null,{"$f":"IF('3 INCOME & EXPENSE'!E701=0,\"\",'3 INCOME & EXPENSE'!E701)","v":""},{"$f":"T('3 INCOME & EXPENSE'!G701)","v":""},{"$f":"'3 INCOME & EXPENSE'!M701","v":{"v":0,"d":"0.0"}},{"$f":"'3 INCOME & EXPENSE'!N701","v":{"v":0,"d":"$0.00"}},{"$f":"'3 INCOME & EXPENSE'!O701","v":{"v":0,"d":"$0.00"}},1107,{"$f":"'3 INCOME & EXPENSE'!X701","v":101},101000,101101,0]
[null,null,{"$f":"IF('3 INCOME & EXPENSE'!E702=0,\"\",'3 INCOME & EXPENSE'!E702)","v":""},{"$f":"T('3 INCOME & EXPENSE'!G702)","v":""},{"$f":"'3 INCOME & EXPENSE'!M702","v":{"v":0,"d":"0.0"}},{"$f":"'3 INCOME & EXPENSE'!N702","v":{"v":0,"d":"$0.00"}},{"$f":"'3 INCOME & EXPENSE'!O702","v":{"v":0,"d":"$0.00"}},1108,{"$f":"'3 INCOME & EXPENSE'!X702","v":101},101000,101101,0]
[null,null,{"$f":"IF('3 INCOME & EXPENSE'!E703=0,\"\",'3 INCOME & EXPENSE'!E703)","v":""},{"$f":"T('3 INCOME & EXPENSE'!G703)","v":""},{"$f":"'3 INCOME & EXPENSE'!M703","v":{"v":0,"d":"0.0"}},{"$f":"'3 INCOME & EXPENSE'!N703","v":{"v":0,"d":"$0.00"}},{"$f":"'3 INCOME & EXPENSE'!O703","v":{"v":0,"d":"$0.00"}},1109,{"$f":"'3 INCOME & EXPENSE'!X703","v":101},101000,101101,0]
[null,null,{"$f":"IF('3 INCOME & EXPENSE'!E704=0,\"\",'3 INCOME & EXPENSE'!E704)","v":""},{"$f":"T('3 INCOME & EXPENSE'!G704)","v":""},{"$f":"'3 INCOME & EXPENSE'!M704","v":{"v":0,"d":"0.0"}},{"$f":"'3 INCOME & EXPENSE'!N704","v":{"v":0,"d":"$0.00"}},{"$f":"'3 INCOME & EXPENSE'!O704","v":{"v":0,"d":"$0.00"}},1110,{"$f":"'3 INCOME & EXPENSE'!X704","v":101},101000,101101,0]
[null,null,{"$f":"IF('3 INCOME & EXPENSE'!E705=0,\"\",'3 INCOME & EXPENSE'!E705)","v":""},{"$f":"T('3 INCOME & EXPENSE'!G705)","v":""},{"$f":"'3 INCOME & EXPENSE'!M705","v":{"v":0,"d":"0.0"}},{"$f":"'3 INCOME & EXPENSE'!N705","v":{"v":0,"d":"$0.00"}},{"$f":"'3 INCOME & EXPENSE'!O705","v":{"v":0,"d":"$0.00"}},1111,{"$f":"'3 INCOME & EXPENSE'!X705","v":101},101000,101101,0]
[null,null,{"$f":"IF('3 INCOME & EXPENSE'!E706=0,\"\",'3 INCOME & EXPENSE'!E706)","v":""},{"$f":"T('3 INCOME & EXPENSE'!G706)","v":""},{"$f":"'3 INCOME & EXPENSE'!M706","v":{"v":0,"d":"0.0"}},{"$f":"'3 INCOME & EXPENSE'!N706","v":{"v":0,"d":"$0.00"}},{"$f":"'3 INCOME & EXPENSE'!O706","v":{"v":0,"d":"$0.00"}},1112,{"$f":"'3 INCOME & EXPENSE'!X706","v":101},101000,101101,0]
[null,null,{"$f":"IF('3 INCOME & EXPENSE'!E707=0,\"\",'3 INCOME & EXPENSE'!E707)","v":""},{"$f":"T('3 INCOME & EXPENSE'!G707)","v":""},{"$f":"'3 INCOME & EXPENSE'!M707","v":{"v":0,"d":"0.0"}},{"$f":"'3 INCOME & EXPENSE'!N707","v":{"v":0,"d":"$0.00"}},{"$f":"'3 INCOME & EXPENSE'!O707","v":{"v":0,"d":"$0.00"}},1113,{"$f":"'3 INCOME & EXPENSE'!X707","v":101},101000,101101,0]
[null,null,{"$f":"IF('3 INCOME & EXPENSE'!E708=0,\"\",'3 INCOME & EXPENSE'!E708)","v":""},{"$f":"T('3 INCOME & EXPENSE'!G708)","v":""},{"$f":"'3 INCOME & EXPENSE'!M708","v":{"v":0,"d":"0.0"}},{"$f":"'3 INCOME & EXPENSE'!N708","v":{"v":0,"d":"$0.00"}},{"$f":"'3 INCOME & EXPENSE'!O708","v":{"v":0,"d":"$0.00"}},1114,{"$f":"'3 INCOME & EXPENSE'!X708","v":101},101000,101101,0]
[null,null,{"$f":"IF('3 INCOME & EXPENSE'!E709=0,\"\",'3 INCOME & EXPENSE'!E709)","v":""},{"$f":"T('3 INCOME & EXPENSE'!G709)","v":""},{"$f":"'3 INCOME & EXPENSE'!M709","v":{"v":0,"d":"0.0"}},{"$f":"'3 INCOME & EXPENSE'!N709","v":{"v":0,"d":"$0.00"}},{"$f":"'3 INCOME & EXPENSE'!O709","v":{"v":0,"d":"$0.00"}},1115,{"$f":"'3 INCOME & EXPENSE'!X709","v":101},101000,101101,0]
[null,null,{"$f":"IF('3 INCOME & EXPENSE'!E710=0,\"\",'3 INCOME & EXPENSE'!E710)","v":""},{"$f":"T('3 INCOME & EXPENSE'!G710)","v":""},{"$f":"'3 INCOME & EXPENSE'!M710","v":{"v":0,"d":"0.0"}},{"$f":"'3 INCOME & EXPENSE'!N710","v":{"v":0,"d":"$0.00"}},{"$f":"'3 INCOME & EXPENSE'!O710","v":{"v":0,"d":"$0.00"}},1116,{"$f":"'3 INCOME & EXPENSE'!X710","v":101},101000,101101,0]
[null,null,{"$f":"IF('3 INCOME & EXPENSE'!E711=0,\"\",'3 INCOME & EXPENSE'!E711)","v":""},{"$f":"T('3 INCOME & EXPENSE'!G711)","v":""},{"$f":"'3 INCOME & EXPENSE'!M711","v":{"v":0,"d":"0.0"}},{"$f":"'3 INCOME & EXPENSE'!N711","v":{"v":0,"d":"$0.00"}},{"$f":"'3 INCOME & EXPENSE'!O711","v":{"v":0,"d":"$0.00"}},1117,{"$f":"'3 INCOME & EXPENSE'!X711","v":101},101000,101101,0]
[null,null,{"$f":"IF('3 INCOME & EXPENSE'!E712=0,\"\",'3 INCOME & EXPENSE'!E712)","v":""},{"$f":"T('3 INCOME & EXPENSE'!G712)","v":""},{"$f":"'3 INCOME & EXPENSE'!M712","v":{"v":0,"d":"0.0"}},{"$f":"'3 INCOME & EXPENSE'!N712","v":{"v":0,"d":"$0.00"}},{"$f":"'3 INCOME & EXPENSE'!O712","v":{"v":0,"d":"$0.00"}},1118,{"$f":"'3 INCOME & EXPENSE'!X712","v":101},101000,101101,0]
[null,null,{"$f":"IF('3 INCOME & EXPENSE'!E713=0,\"\",'3 INCOME & EXPENSE'!E713)","v":""},{"$f":"T('3 INCOME & EXPENSE'!G713)","v":""},{"$f":"'3 INCOME & EXPENSE'!M713","v":{"v":0,"d":"0.0"}},{"$f":"'3 INCOME & EXPENSE'!N713","v":{"v":0,"d":"$0.00"}},{"$f":"'3 INCOME & EXPENSE'!O713","v":{"v":0,"d":"$0.00"}},1119,{"$f":"'3 INCOME & EXPENSE'!X713","v":101},101000,101101,0]
[null,null,{"$f":"IF('3 INCOME & EXPENSE'!E714=0,\"\",'3 INCOME & EXPENSE'!E714)","v":""},{"$f":"T('3 INCOME & EXPENSE'!G714)","v":""},{"$f":"'3 INCOME & EXPENSE'!M714","v":{"v":0,"d":"0.0"}},{"$f":"'3 INCOME & EXPENSE'!N714","v":{"v":0,"d":"$0.00"}},{"$f":"'3 INCOME & EXPENSE'!O714","v":{"v":0,"d":"$0.00"}},1120,{"$f":"'3 INCOME & EXPENSE'!X714","v":101},101000,101101,0]
[null,null,{"$f":"IF('3 INCOME & EXPENSE'!E715=0,\"\",'3 INCOME & EXPENSE'!E715)","v":""},{"$f":"T('3 INCOME & EXPENSE'!G715)","v":""},{"$f":"'3 INCOME & EXPENSE'!M715","v":{"v":0,"d":"0.0"}},{"$f":"'3 INCOME & EXPENSE'!N715","v":{"v":0,"d":"$0.00"}},{"$f":"'3 INCOME & EXPENSE'!O715","v":{"v":0,"d":"$0.00"}},1121,{"$f":"'3 INCOME & EXPENSE'!X715","v":101},101000,101101,0]
[null,null,{"$f":"IF('3 INCOME & EXPENSE'!E716=0,\"\",'3 INCOME & EXPENSE'!E716)","v":""},{"$f":"T('3 INCOME & EXPENSE'!G716)","v":""},{"$f":"'3 INCOME & EXPENSE'!M716","v":{"v":0,"d":"0.0"}},{"$f":"'3 INCOME & EXPENSE'!N716","v":{"v":0,"d":"$0.00"}},{"$f":"'3 INCOME & EXPENSE'!O716","v":{"v":0,"d":"$0.00"}},1122,{"$f":"'3 INCOME & EXPENSE'!X716","v":101},101000,101101,0]
[null,null,{"$f":"IF('3 INCOME & EXPENSE'!E717=0,\"\",'3 INCOME & EXPENSE'!E717)","v":""},{"$f":"T('3 INCOME & EXPENSE'!G717)","v":""},{"$f":"'3 INCOME & EXPENSE'!M717","v":{"v":0,"d":"0.0"}},{"$f":"'3 INCOME & EXPENSE'!N717","v":{"v":0,"d":"$0.00"}},{"$f":"'3 INCOME & EXPENSE'!O717","v":{"v":0,"d":"$0.00"}},1123,{"$f":"'3 INCOME & EXPENSE'!X717","v":101},101000,101101,0]
[null,null,{"$f":"IF('3 INCOME & EXPENSE'!E718=0,\"\",'3 INCOME & EXPENSE'!E718)","v":""},{"$f":"T('3 INCOME & EXPENSE'!G718)","v":""},{"$f":"'3 INCOME & EXPENSE'!M718","v":{"v":0,"d":"0.0"}},{"$f":"'3 INCOME & EXPENSE'!N718","v":{"v":0,"d":"$0.00"}},{"$f":"'3 INCOME & EXPENSE'!O718","v":{"v":0,"d":"$0.00"}},1124,{"$f":"'3 INCOME & EXPENSE'!X718","v":101},{"$f":"VLOOKUP(I1136,$I$1186:$J$1287,2)","v":101000},101101,{"$f":"K1136*E1136","v":0}]
[null,null,{"$f":"IF('3 INCOME & EXPENSE'!E719=0,\"\",'3 INCOME & EXPENSE'!E719)","v":""},{"$f":"T('3 INCOME & EXPENSE'!G719)","v":""},{"$f":"'3 INCOME & EXPENSE'!M719","v":{"v":0,"d":"0.0"}},{"$f":"'3 INCOME & EXPENSE'!N719","v":{"v":0,"d":"$0.00"}},{"$f":"'3 INCOME & EXPENSE'!O719","v":{"v":0,"d":"$0.00"}},1125,{"$f":"'3 INCOME & EXPENSE'!X719","v":101},101000,101101,0]
[null,null,{"$f":"IF('3 INCOME & EXPENSE'!E720=0,\"\",'3 INCOME & EXPENSE'!E720)","v":""},{"$f":"T('3 INCOME & EXPENSE'!G720)","v":""},{"$f":"'3 INCOME & EXPENSE'!M720","v":{"v":0,"d":"0.0"}},{"$f":"'3 INCOME & EXPENSE'!N720","v":{"v":0,"d":"$0.00"}},{"$f":"'3 INCOME & EXPENSE'!O720","v":{"v":0,"d":"$0.00"}},1126,{"$f":"'3 INCOME & EXPENSE'!X720","v":101},101000,101101,0]
[null,null,{"$f":"IF('3 INCOME & EXPENSE'!E721=0,\"\",'3 INCOME & EXPENSE'!E721)","v":""},{"$f":"T('3 INCOME & EXPENSE'!G721)","v":""},{"$f":"'3 INCOME & EXPENSE'!M721","v":{"v":0,"d":"0.0"}},{"$f":"'3 INCOME & EXPENSE'!N721","v":{"v":0,"d":"$0.00"}},{"$f":"'3 INCOME & EXPENSE'!O721","v":{"v":0,"d":"$0.00"}},1127,{"$f":"'3 INCOME & EXPENSE'!X721","v":101},101000,101101,0]
[null,null,{"$f":"IF('3 INCOME & EXPENSE'!E722=0,\"\",'3 INCOME & EXPENSE'!E722)","v":""},{"$f":"T('3 INCOME & EXPENSE'!G722)","v":""},{"$f":"'3 INCOME & EXPENSE'!M722","v":{"v":0,"d":"0.0"}},{"$f":"'3 INCOME & EXPENSE'!N722","v":{"v":0,"d":"$0.00"}},{"$f":"'3 INCOME & EXPENSE'!O722","v":{"v":0,"d":"$0.00"}},1128,{"$f":"'3 INCOME & EXPENSE'!X722","v":101},101000,101101,0]
[null,null,{"$f":"IF('3 INCOME & EXPENSE'!E723=0,\"\",'3 INCOME & EXPENSE'!E723)","v":""},{"$f":"T('3 INCOME & EXPENSE'!G723)","v":""},{"$f":"'3 INCOME & EXPENSE'!M723","v":{"v":0,"d":"0.0"}},{"$f":"'3 INCOME & EXPENSE'!N723","v":{"v":0,"d":"$0.00"}},{"$f":"'3 INCOME & EXPENSE'!O723","v":{"v":0,"d":"$0.00"}},1129,{"$f":"'3 INCOME & EXPENSE'!X723","v":101},101000,101101,0]
[null,null,{"$f":"IF('3 INCOME & EXPENSE'!E724=0,\"\",'3 INCOME & EXPENSE'!E724)","v":""},{"$f":"T('3 INCOME & EXPENSE'!G724)","v":""},{"$f":"'3 INCOME & EXPENSE'!M724","v":{"v":0,"d":"0.0"}},{"$f":"'3 INCOME & EXPENSE'!N724","v":{"v":0,"d":"$0.00"}},{"$f":"'3 INCOME & EXPENSE'!O724","v":{"v":0,"d":"$0.00"}},1130,{"$f":"'3 INCOME & EXPENSE'!X724","v":101},101000,101101,0]
[null,null,{"$f":"IF('3 INCOME & EXPENSE'!E725=0,\"\",'3 INCOME & EXPENSE'!E725)","v":""},{"$f":"T('3 INCOME & EXPENSE'!G725)","v":""},{"$f":"'3 INCOME & EXPENSE'!M725","v":{"v":0,"d":"0.0"}},{"$f":"'3 INCOME & EXPENSE'!N725","v":{"v":0,"d":"$0.00"}},{"$f":"'3 INCOME & EXPENSE'!O725","v":{"v":0,"d":"$0.00"}},1131,{"$f":"'3 INCOME & EXPENSE'!X725","v":101},101000,101101,0]
[null,null,{"$f":"IF('3 INCOME & EXPENSE'!E726=0,\"\",'3 INCOME & EXPENSE'!E726)","v":""},{"$f":"T('3 INCOME & EXPENSE'!G726)","v":""},{"$f":"'3 INCOME & EXPENSE'!M726","v":{"v":0,"d":"0.0"}},{"$f":"'3 INCOME & EXPENSE'!N726","v":{"v":0,"d":"$0.00"}},{"$f":"'3 INCOME & EXPENSE'!O726","v":{"v":0,"d":"$0.00"}},1132,{"$f":"'3 INCOME & EXPENSE'!X726","v":101},101000,101101,0]
[null,null,{"$f":"IF('3 INCOME & EXPENSE'!E727=0,\"\",'3 INCOME & EXPENSE'!E727)","v":""},{"$f":"T('3 INCOME & EXPENSE'!G727)","v":""},{"$f":"'3 INCOME & EXPENSE'!M727","v":{"v":0,"d":"0.0"}},{"$f":"'3 INCOME & EXPENSE'!N727","v":{"v":0,"d":"$0.00"}},{"$f":"'3 INCOME & EXPENSE'!O727","v":{"v":0,"d":"$0.00"}},1133,{"$f":"'3 INCOME & EXPENSE'!X727","v":101},101000,101101,0]
[null,null,{"$f":"IF('3 INCOME & EXPENSE'!E728=0,\"\",'3 INCOME & EXPENSE'!E728)","v":""},{"$f":"T('3 INCOME & EXPENSE'!G728)","v":""},{"$f":"'3 INCOME & EXPENSE'!M728","v":{"v":0,"d":"0.0"}},{"$f":"'3 INCOME & EXPENSE'!N728","v":{"v":0,"d":"$0.00"}},{"$f":"'3 INCOME & EXPENSE'!O728","v":{"v":0,"d":"$0.00"}},1134,{"$f":"'3 INCOME & EXPENSE'!X728","v":101},101000,101101,0]
[null,null,{"$f":"IF('3 INCOME & EXPENSE'!E729=0,\"\",'3 INCOME & EXPENSE'!E729)","v":""},{"$f":"T('3 INCOME & EXPENSE'!G729)","v":""},{"$f":"'3 INCOME & EXPENSE'!M729","v":{"v":0,"d":"0.0"}},{"$f":"'3 INCOME & EXPENSE'!N729","v":{"v":0,"d":"$0.00"}},{"$f":"'3 INCOME & EXPENSE'!O729","v":{"v":0,"d":"$0.00"}},1135,{"$f":"'3 INCOME & EXPENSE'!X729","v":101},101000,101101,0]
[null,null,{"$f":"IF('3 INCOME & EXPENSE'!E730=0,\"\",'3 INCOME & EXPENSE'!E730)","v":""},{"$f":"T('3 INCOME & EXPENSE'!G730)","v":""},{"$f":"'3 INCOME & EXPENSE'!M730","v":{"v":0,"d":"0.0"}},{"$f":"'3 INCOME & EXPENSE'!N730","v":{"v":0,"d":"$0.00"}},{"$f":"'3 INCOME & EXPENSE'!O730","v":{"v":0,"d":"$0.00"}},1136,{"$f":"'3 INCOME & EXPENSE'!X730","v":101},101000,101101,0]
[null,null,{"$f":"IF('3 INCOME & EXPENSE'!E731=0,\"\",'3 INCOME & EXPENSE'!E731)","v":""},{"$f":"T('3 INCOME & EXPENSE'!G731)","v":""},{"$f":"'3 INCOME & EXPENSE'!M731","v":{"v":0,"d":"0.0"}},{"$f":"'3 INCOME & EXPENSE'!N731","v":{"v":0,"d":"$0.00"}},{"$f":"'3 INCOME & EXPENSE'!O731","v":{"v":0,"d":"$0.00"}},1137,{"$f":"'3 INCOME & EXPENSE'!X731","v":101},101000,101101,0]
[null,null,{"$f":"IF('3 INCOME & EXPENSE'!E732=0,\"\",'3 INCOME & EXPENSE'!E732)","v":""},{"$f":"T('3 INCOME & EXPENSE'!G732)","v":""},{"$f":"'3 INCOME & EXPENSE'!M732","v":{"v":0,"d":"0.0"}},{"$f":"'3 INCOME & EXPENSE'!N732","v":{"v":0,"d":"$0.00"}},{"$f":"'3 INCOME & EXPENSE'!O732","v":{"v":0,"d":"$0.00"}},1138,{"$f":"'3 INCOME & EXPENSE'!X732","v":101},101000,101101,0]
[null,null,{"$f":"IF('3 INCOME & EXPENSE'!E733=0,\"\",'3 INCOME & EXPENSE'!E733)","v":""},{"$f":"T('3 INCOME & EXPENSE'!G733)","v":""},{"$f":"'3 INCOME & EXPENSE'!M733","v":{"v":0,"d":"0.0"}},{"$f":"'3 INCOME & EXPENSE'!N733","v":{"v":0,"d":"$0.00"}},{"$f":"'3 INCOME & EXPENSE'!O733","v":{"v":0,"d":"$0.00"}},1139,{"$f":"'3 INCOME & EXPENSE'!X733","v":101},101000,101101,0]
[null,null,{"$f":"IF('3 INCOME & EXPENSE'!E734=0,\"\",'3 INCOME & EXPENSE'!E734)","v":""},{"$f":"T('3 INCOME & EXPENSE'!G734)","v":""},{"$f":"'3 INCOME & EXPENSE'!M734","v":{"v":0,"d":"0.0"}},{"$f":"'3 INCOME & EXPENSE'!N734","v":{"v":0,"d":"$0.00"}},{"$f":"'3 INCOME & EXPENSE'!O734","v":{"v":0,"d":"$0.00"}},1140,{"$f":"'3 INCOME & EXPENSE'!X734","v":101},101000,101101,0]
[null,null,{"$f":"IF('3 INCOME & EXPENSE'!E735=0,\"\",'3 INCOME & EXPENSE'!E735)","v":""},{"$f":"T('3 INCOME & EXPENSE'!G735)","v":""},{"$f":"'3 INCOME & EXPENSE'!M735","v":{"v":0,"d":"0.0"}},{"$f":"'3 INCOME & EXPENSE'!N735","v":{"v":0,"d":"$0.00"}},{"$f":"'3 INCOME & EXPENSE'!O735","v":{"v":0,"d":"$0.00"}},1141,{"$f":"'3 INCOME & EXPENSE'!X735","v":101},101000,{"$f":"I1153+J1153","v":101101},0]
[null,null,{"$f":"IF('3 INCOME & EXPENSE'!E736=0,\"\",'3 INCOME & EXPENSE'!E736)","v":""},{"$f":"T('3 INCOME & EXPENSE'!G736)","v":""},{"$f":"'3 INCOME & EXPENSE'!M736","v":{"v":0,"d":"0.0"}},{"$f":"'3 INCOME & EXPENSE'!N736","v":{"v":0,"d":"$0.00"}},{"$f":"'3 INCOME & EXPENSE'!O736","v":{"v":0,"d":"$0.00"}},1142,{"$f":"'3 INCOME & EXPENSE'!X736","v":101},101000,101101,0]
[null,null,{"$f":"IF('3 INCOME & EXPENSE'!E737=0,\"\",'3 INCOME & EXPENSE'!E737)","v":""},{"$f":"T('3 INCOME & EXPENSE'!G737)","v":""},{"$f":"'3 INCOME & EXPENSE'!M737","v":{"v":0,"d":"0.0"}},{"$f":"'3 INCOME & EXPENSE'!N737","v":{"v":0,"d":"$0.00"}},{"$f":"'3 INCOME & EXPENSE'!O737","v":{"v":0,"d":"$0.00"}},1143,{"$f":"'3 INCOME & EXPENSE'!X737","v":101},101000,101101,0]
[null,null,{"$f":"IF('3 INCOME & EXPENSE'!E738=0,\"\",'3 INCOME & EXPENSE'!E738)","v":""},{"$f":"T('3 INCOME & EXPENSE'!G738)","v":""},{"$f":"'3 INCOME & EXPENSE'!M738","v":{"v":0,"d":"0.0"}},{"$f":"'3 INCOME & EXPENSE'!N738","v":{"v":0,"d":"$0.00"}},{"$f":"'3 INCOME & EXPENSE'!O738","v":{"v":0,"d":"$0.00"}},1144,{"$f":"'3 INCOME & EXPENSE'!X738","v":101},101000,101101,0]
[null,null,{"$f":"IF('3 INCOME & EXPENSE'!E739=0,\"\",'3 INCOME & EXPENSE'!E739)","v":""},{"$f":"T('3 INCOME & EXPENSE'!G739)","v":""},{"$f":"'3 INCOME & EXPENSE'!M739","v":{"v":0,"d":"0.0"}},{"$f":"'3 INCOME & EXPENSE'!N739","v":{"v":0,"d":"$0.00"}},{"$f":"'3 INCOME & EXPENSE'!O739","v":{"v":0,"d":"$0.00"}},1145,{"$f":"'3 INCOME & EXPENSE'!X739","v":101},101000,101101,0]
[null,null,{"$f":"IF('3 INCOME & EXPENSE'!E740=0,\"\",'3 INCOME & EXPENSE'!E740)","v":""},{"$f":"T('3 INCOME & EXPENSE'!G740)","v":""},{"$f":"'3 INCOME & EXPENSE'!M740","v":{"v":0,"d":"0.0"}},{"$f":"'3 INCOME & EXPENSE'!N740","v":{"v":0,"d":"$0.00"}},{"$f":"'3 INCOME & EXPENSE'!O740","v":{"v":0,"d":"$0.00"}},1146,{"$f":"'3 INCOME & EXPENSE'!X740","v":101},101000,101101,0]
[null,null,{"$f":"IF('3 INCOME & EXPENSE'!E741=0,\"\",'3 INCOME & EXPENSE'!E741)","v":""},{"$f":"T('3 INCOME & EXPENSE'!G741)","v":""},{"$f":"'3 INCOME & EXPENSE'!M741","v":{"v":0,"d":"0.0"}},{"$f":"'3 INCOME & EXPENSE'!N741","v":{"v":0,"d":"$0.00"}},{"$f":"'3 INCOME & EXPENSE'!O741","v":{"v":0,"d":"$0.00"}},1147,{"$f":"'3 INCOME & EXPENSE'!X741","v":101},101000,101101,0]
[null,null,{"$f":"IF('3 INCOME & EXPENSE'!E742=0,\"\",'3 INCOME & EXPENSE'!E742)","v":""},{"$f":"T('3 INCOME & EXPENSE'!G742)","v":""},{"$f":"'3 INCOME & EXPENSE'!M742","v":{"v":0,"d":"0.0"}},{"$f":"'3 INCOME & EXPENSE'!N742","v":{"v":0,"d":"$0.00"}},{"$f":"'3 INCOME & EXPENSE'!O742","v":{"v":0,"d":"$0.00"}},1148,{"$f":"'3 INCOME & EXPENSE'!X742","v":101},101000,101101,0]
[null,null,{"$f":"IF('3 INCOME & EXPENSE'!E743=0,\"\",'3 INCOME & EXPENSE'!E743)","v":""},{"$f":"T('3 INCOME & EXPENSE'!G743)","v":""},{"$f":"'3 INCOME & EXPENSE'!M743","v":{"v":0,"d":"0.0"}},{"$f":"'3 INCOME & EXPENSE'!N743","v":{"v":0,"d":"$0.00"}},{"$f":"'3 INCOME & EXPENSE'!O743","v":{"v":0,"d":"$0.00"}},1149,{"$f":"'3 INCOME & EXPENSE'!X743","v":101},101000,101101,0]
[null,null,{"$f":"IF('3 INCOME & EXPENSE'!E744=0,\"\",'3 INCOME & EXPENSE'!E744)","v":""},{"$f":"T('3 INCOME & EXPENSE'!G744)","v":""},{"$f":"'3 INCOME & EXPENSE'!M744","v":{"v":0,"d":"0.0"}},{"$f":"'3 INCOME & EXPENSE'!N744","v":{"v":0,"d":"$0.00"}},{"$f":"'3 INCOME & EXPENSE'!O744","v":{"v":0,"d":"$0.00"}},1150,{"$f":"'3 INCOME & EXPENSE'!X744","v":101},101000,101101,0]
[null,null,{"$f":"IF('3 INCOME & EXPENSE'!E745=0,\"\",'3 INCOME & EXPENSE'!E745)","v":""},{"$f":"T('3 INCOME & EXPENSE'!G745)","v":""},{"$f":"'3 INCOME & EXPENSE'!M745","v":{"v":0,"d":"0.0"}},{"$f":"'3 INCOME & EXPENSE'!N745","v":{"v":0,"d":"$0.00"}},{"$f":"'3 INCOME & EXPENSE'!O745","v":{"v":0,"d":"$0.00"}},1151,{"$f":"'3 INCOME & EXPENSE'!X745","v":101},101000,101101,0]
[null,null,{"$f":"IF('3 INCOME & EXPENSE'!E746=0,\"\",'3 INCOME & EXPENSE'!E746)","v":""},{"$f":"T('3 INCOME & EXPENSE'!G746)","v":""},{"$f":"'3 INCOME & EXPENSE'!M746","v":{"v":0,"d":"0.0"}},{"$f":"'3 INCOME & EXPENSE'!N746","v":{"v":0,"d":"$0.00"}},{"$f":"'3 INCOME & EXPENSE'!O746","v":{"v":0,"d":"$0.00"}},1152,{"$f":"'3 INCOME & EXPENSE'!X746","v":101},101000,101101,0]
[null,null,{"$f":"IF('3 INCOME & EXPENSE'!E747=0,\"\",'3 INCOME & EXPENSE'!E747)","v":""},{"$f":"T('3 INCOME & EXPENSE'!G747)","v":""},{"$f":"'3 INCOME & EXPENSE'!M747","v":{"v":0,"d":"0.0"}},{"$f":"'3 INCOME & EXPENSE'!N747","v":{"v":0,"d":"$0.00"}},{"$f":"'3 INCOME & EXPENSE'!O747","v":{"v":0,"d":"$0.00"}},1153,{"$f":"'3 INCOME & EXPENSE'!X747","v":101},101000,101101,0]
[null,null,{"$f":"IF('3 INCOME & EXPENSE'!E748=0,\"\",'3 INCOME & EXPENSE'!E748)","v":""},{"$f":"T('3 INCOME & EXPENSE'!G748)","v":""},{"$f":"'3 INCOME & EXPENSE'!M748","v":{"v":0,"d":"0.0"}},{"$f":"'3 INCOME & EXPENSE'!N748","v":{"v":0,"d":"$0.00"}},{"$f":"'3 INCOME & EXPENSE'!O748","v":{"v":0,"d":"$0.00"}},1154,{"$f":"'3 INCOME & EXPENSE'!X748","v":101},101000,101101,0]
[null,null,{"$f":"IF('3 INCOME & EXPENSE'!E749=0,\"\",'3 INCOME & EXPENSE'!E749)","v":""},{"$f":"T('3 INCOME & EXPENSE'!G749)","v":""},{"$f":"'3 INCOME & EXPENSE'!M749","v":{"v":0,"d":"0.0"}},{"$f":"'3 INCOME & EXPENSE'!N749","v":{"v":0,"d":"$0.00"}},{"$f":"'3 INCOME & EXPENSE'!O749","v":{"v":0,"d":"$0.00"}},1155,{"$f":"'3 INCOME & EXPENSE'!X749","v":101},101000,101101,0]
[null,null,{"$f":"IF('3 INCOME & EXPENSE'!E750=0,\"\",'3 INCOME & EXPENSE'!E750)","v":""},{"$f":"T('3 INCOME & EXPENSE'!G750)","v":""},{"$f":"'3 INCOME & EXPENSE'!M750","v":{"v":0,"d":"0.0"}},{"$f":"'3 INCOME & EXPENSE'!N750","v":{"v":0,"d":"$0.00"}},{"$f":"'3 INCOME & EXPENSE'!O750","v":{"v":0,"d":"$0.00"}},1156,{"$f":"'3 INCOME & EXPENSE'!X750","v":101},101000,101101,0]
[null,null,{"$f":"IF('3 INCOME & EXPENSE'!E751=0,\"\",'3 INCOME & EXPENSE'!E751)","v":""},{"$f":"T('3 INCOME & EXPENSE'!G751)","v":""},{"$f":"'3 INCOME & EXPENSE'!M751","v":{"v":0,"d":"0.0"}},{"$f":"'3 INCOME & EXPENSE'!N751","v":{"v":0,"d":"$0.00"}},{"$f":"'3 INCOME & EXPENSE'!O751","v":{"v":0,"d":"$0.00"}},1157,{"$f":"'3 INCOME & EXPENSE'!X751","v":101},101000,101101,0]
[null,null,{"$f":"IF('3 INCOME & EXPENSE'!E752=0,\"\",'3 INCOME & EXPENSE'!E752)","v":""},{"$f":"T('3 INCOME & EXPENSE'!G752)","v":""},{"$f":"'3 INCOME & EXPENSE'!M752","v":{"v":0,"d":"0.0"}},{"$f":"'3 INCOME & EXPENSE'!N752","v":{"v":0,"d":"$0.00"}},{"$f":"'3 INCOME & EXPENSE'!O752","v":{"v":0,"d":"$0.00"}},1158,{"$f":"'3 INCOME & EXPENSE'!X752","v":101},101000,101101,0]
[null,null,{"$f":"IF('3 INCOME & EXPENSE'!E753=0,\"\",'3 INCOME & EXPENSE'!E753)","v":""},{"$f":"T('3 INCOME & EXPENSE'!G753)","v":""},{"$f":"'3 INCOME & EXPENSE'!M753","v":{"v":0,"d":"0.0"}},{"$f":"'3 INCOME & EXPENSE'!N753","v":{"v":0,"d":"$0.00"}},{"$f":"'3 INCOME & EXPENSE'!O753","v":{"v":0,"d":"$0.00"}},1159,{"$f":"'3 INCOME & EXPENSE'!X753","v":101},101000,101101,0]
[null,null,{"$f":"IF('3 INCOME & EXPENSE'!E754=0,\"\",'3 INCOME & EXPENSE'!E754)","v":""},{"$f":"T('3 INCOME & EXPENSE'!G754)","v":""},{"$f":"'3 INCOME & EXPENSE'!M754","v":{"v":0,"d":"0.0"}},{"$f":"'3 INCOME & EXPENSE'!N754","v":{"v":0,"d":"$0.00"}},{"$f":"'3 INCOME & EXPENSE'!O754","v":{"v":0,"d":"$0.00"}},1160,{"$f":"'3 INCOME & EXPENSE'!X754","v":101},101000,101101,0]
[null,null,{"$f":"IF('3 INCOME & EXPENSE'!E755=0,\"\",'3 INCOME & EXPENSE'!E755)","v":""},{"$f":"T('3 INCOME & EXPENSE'!G755)","v":""},{"$f":"'3 INCOME & EXPENSE'!M755","v":{"v":0,"d":"0.0"}},{"$f":"'3 INCOME & EXPENSE'!N755","v":{"v":0,"d":"$0.00"}},{"$f":"'3 INCOME & EXPENSE'!O755","v":{"v":0,"d":"$0.00"}},1161,{"$f":"'3 INCOME & EXPENSE'!X755","v":101},101000,101101,0]
[null,null,{"$f":"IF('3 INCOME & EXPENSE'!E756=0,\"\",'3 INCOME & EXPENSE'!E756)","v":""},{"$f":"T('3 INCOME & EXPENSE'!G756)","v":""},{"$f":"'3 INCOME & EXPENSE'!M756","v":{"v":0,"d":"0.0"}},{"$f":"'3 INCOME & EXPENSE'!N756","v":{"v":0,"d":"$0.00"}},{"$f":"'3 INCOME & EXPENSE'!O756","v":{"v":0,"d":"$0.00"}},1162,{"$f":"'3 INCOME & EXPENSE'!X756","v":101},101000,101101,0]
[null,null,{"$f":"IF('3 INCOME & EXPENSE'!E757=0,\"\",'3 INCOME & EXPENSE'!E757)","v":""},{"$f":"T('3 INCOME & EXPENSE'!G757)","v":""},{"$f":"'3 INCOME & EXPENSE'!M757","v":{"v":0,"d":"0.0"}},{"$f":"'3 INCOME & EXPENSE'!N757","v":{"v":0,"d":"$0.00"}},{"$f":"'3 INCOME & EXPENSE'!O757","v":{"v":0,"d":"$0.00"}},1163,{"$f":"'3 INCOME & EXPENSE'!X757","v":101},101000,101101,0]
[null,null,{"$f":"IF('3 INCOME & EXPENSE'!E758=0,\"\",'3 INCOME & EXPENSE'!E758)","v":""},{"$f":"T('3 INCOME & EXPENSE'!G758)","v":""},{"$f":"'3 INCOME & EXPENSE'!M758","v":{"v":0,"d":"0.0"}},{"$f":"'3 INCOME & EXPENSE'!N758","v":{"v":0,"d":"$0.00"}},{"$f":"'3 INCOME & EXPENSE'!O758","v":{"v":0,"d":"$0.00"}},1164,{"$f":"'3 INCOME & EXPENSE'!X758","v":101},101000,101101,0]
[null,null,{"$f":"IF('3 INCOME & EXPENSE'!E759=0,\"\",'3 INCOME & EXPENSE'!E759)","v":""},{"$f":"T('3 INCOME & EXPENSE'!G759)","v":""},{"$f":"'3 INCOME & EXPENSE'!M759","v":{"v":0,"d":"0.0"}},{"$f":"'3 INCOME & EXPENSE'!N759","v":{"v":0,"d":"$0.00"}},{"$f":"'3 INCOME & EXPENSE'!O759","v":{"v":0,"d":"$0.00"}},1165,{"$f":"'3 INCOME & EXPENSE'!X759","v":101},101000,101101,0]
[null,null,{"$f":"IF('3 INCOME & EXPENSE'!E760=0,\"\",'3 INCOME & EXPENSE'!E760)","v":""},{"$f":"T('3 INCOME & EXPENSE'!G760)","v":""},{"$f":"'3 INCOME & EXPENSE'!M760","v":{"v":0,"d":"0.0"}},{"$f":"'3 INCOME & EXPENSE'!N760","v":{"v":0,"d":"$0.00"}},{"$f":"'3 INCOME & EXPENSE'!O760","v":{"v":0,"d":"$0.00"}},1166,{"$f":"'3 INCOME & EXPENSE'!X760","v":101},101000,101101,0]
[null,null,{"$f":"IF('3 INCOME & EXPENSE'!E761=0,\"\",'3 INCOME & EXPENSE'!E761)","v":""},{"$f":"T('3 INCOME & EXPENSE'!G761)","v":""},{"$f":"'3 INCOME & EXPENSE'!M761","v":{"v":0,"d":"0.0"}},{"$f":"'3 INCOME & EXPENSE'!N761","v":{"v":0,"d":"$0.00"}},{"$f":"'3 INCOME & EXPENSE'!O761","v":{"v":0,"d":"$0.00"}},1167,{"$f":"'3 INCOME & EXPENSE'!X761","v":101},101000,101101,0]
[null,null,{"$f":"IF('3 INCOME & EXPENSE'!E762=0,\"\",'3 INCOME & EXPENSE'!E762)","v":""},{"$f":"T('3 INCOME & EXPENSE'!G762)","v":""},{"$f":"'3 INCOME & EXPENSE'!M762","v":{"v":0,"d":"0.0"}},{"$f":"'3 INCOME & EXPENSE'!N762","v":{"v":0,"d":"$0.00"}},{"$f":"'3 INCOME & EXPENSE'!O762","v":{"v":0,"d":"$0.00"}},1168,{"$f":"'3 INCOME & EXPENSE'!X762","v":101},101000,101101,0]
[null,null,{"$f":"IF('3 INCOME & EXPENSE'!E763=0,\"\",'3 INCOME & EXPENSE'!E763)","v":""},{"$f":"T('3 INCOME & EXPENSE'!G763)","v":""},{"$f":"'3 INCOME & EXPENSE'!M763","v":{"v":0,"d":"0.0"}},{"$f":"'3 INCOME & EXPENSE'!N763","v":{"v":0,"d":"$0.00"}},{"$f":"'3 INCOME & EXPENSE'!O763","v":{"v":0,"d":"$0.00"}},1169,{"$f":"'3 INCOME & EXPENSE'!X763","v":101},101000,101101,0]
[{"$nulls":5},"TOTAL EXPENSES",{"$f":"Total_Investment","v":{"v":76902.87999999999,"d":"$76,902.88"}},1170,200,200000,200200,{"$f":"IF(G1182>0,1,0)","v":1}]
[null,null,"© 2016 by Houseflippingspreadsheet.com. All rights reserved"]
[]
[]
[{"$nulls":8},1,1000,null,{"$f":"T('ACCOUNTING SETUP'!AI9)","v":"First 1 Bank"},{"$f":"COUNTIF($I$432:$I$1182,I1186)","v":2},{"$f":"'EXPENSE DATABASE'!F69","v":52565}]
[{"$nulls":8},2,2000,null,{"$f":"T('ACCOUNTING SETUP'!AI10)","v":"Defenbaugh Industries"},{"$f":"COUNTIF($I$432:$I$1182,I1187)","v":2},{"$f":"'EXPENSE DATABASE'!F70","v":740}]
[{"$nulls":8},3,3000,null,{"$f":"T('ACCOUNTING SETUP'!AI11)","v":"Demolition Services Inc."},2,{"$f":"'EXPENSE DATABASE'!F71","v":1000}]
[{"$nulls":8},4,4000,null,{"$f":"T('ACCOUNTING SETUP'!AI12)","v":"Affordable Rehab & Remodeling"},8,{"$f":"'EXPENSE DATABASE'!F72","v":6900}]
[{"$nulls":8},5,5000,null,{"$f":"T('ACCOUNTING SETUP'!AI13)","v":"Lowes"},5,{"$f":"'EXPENSE DATABASE'!F73","v":8543.91}]
[{"$nulls":8},6,6000,null,{"$f":"T('ACCOUNTING SETUP'!AI14)","v":"Home Depot"},2,{"$f":"'EXPENSE DATABASE'!F74","v":2256.52}]
[{"$nulls":8},7,7000,null,{"$f":"T('ACCOUNTING SETUP'!AI15)","v":"Ace Electric"},2,{"$f":"'EXPENSE DATABASE'!F75","v":1750}]
[{"$nulls":8},8,8000,null,{"$f":"T('ACCOUNTING SETUP'!AI16)","v":"Sherwin Williams"},1,{"$f":"'EXPENSE DATABASE'!F76","v":2652.45}]
[{"$nulls":8},9,9000,null,{"$f":"T('ACCOUNTING SETUP'!AI17)","v":"Vendor 9"},0,{"$f":"'EXPENSE DATABASE'!F77","v":0}]
[{"$nulls":8},10,10000,null,{"$f":"T('ACCOUNTING SETUP'!AI18)","v":"Vendor 10"},0,{"$f":"'EXPENSE DATABASE'!F78","v":0}]
[{"$nulls":8},11,11000,null,{"$f":"T('ACCOUNTING SETUP'!AI19)","v":"Vendor 11"},0,{"$f":"'EXPENSE DATABASE'!F79","v":0}]
[{"$nulls":8},12,12000,null,{"$f":"T('ACCOUNTING SETUP'!AI20)","v":"Vendor 12"},0,{"$f":"'EXPENSE DATABASE'!F80","v":0}]
[{"$nulls":8},13,13000,null,{"$f":"T('ACCOUNTING SETUP'!AI21)","v":"Vendor 13"},0,{"$f":"'EXPENSE DATABASE'!F81","v":0}]
[{"$nulls":8},14,14000,null,{"$f":"T('ACCOUNTING SETUP'!AI22)","v":"Vendor 14"},0,{"$f":"'EXPENSE DATABASE'!F82","v":0}]
[{"$nulls":8},15,15000,null,{"$f":"T('ACCOUNTING SETUP'!AI23)","v":"Vendor 15"},0,{"$f":"'EXPENSE DATABASE'!F83","v":0}]
[{"$nulls":8},16,16000,null,{"$f":"T('ACCOUNTING SETUP'!AI24)","v":"Vendor 16"},0,{"$f":"'EXPENSE DATABASE'!F84","v":0}]
[{"$nulls":8},17,17000,null,{"$f":"T('ACCOUNTING SETUP'!AI25)","v":"Vendor 17"},0,{"$f":"'EXPENSE DATABASE'!F85","v":0}]
[{"$nulls":8},18,18000,null,{"$f":"T('ACCOUNTING SETUP'!AI26)","v":"Vendor 18"},0,{"$f":"'EXPENSE DATABASE'!F86","v":0}]
[{"$nulls":8},19,19000,null,{"$f":"T('ACCOUNTING SETUP'!AI27)","v":"Vendor 19"},0,{"$f":"'EXPENSE DATABASE'!F87","v":0}]
[{"$nulls":8},20,20000,null,{"$f":"T('ACCOUNTING SETUP'!AI28)","v":"Vendor 20"},0,{"$f":"'EXPENSE DATABASE'!F88","v":0}]
[{"$nulls":8},21,21000,null,{"$f":"T('ACCOUNTING SETUP'!AI29)","v":"Vendor 21"},0,{"$f":"'EXPENSE DATABASE'!F89","v":0}]
[{"$nulls":8},22,22000,null,{"$f":"T('ACCOUNTING SETUP'!AI30)","v":"Vendor 22"},0,{"$f":"'EXPENSE DATABASE'!F90","v":0}]
[{"$nulls":8},23,23000,null,{"$f":"T('ACCOUNTING SETUP'!AI31)","v":"Vendor 23"},0,{"$f":"'EXPENSE DATABASE'!F91","v":0}]
[{"$nulls":8},24,24000,null,{"$f":"T('ACCOUNTING SETUP'!AI32)","v":"Vendor 24"},0,{"$f":"'EXPENSE DATABASE'!F92","v":0}]
[{"$nulls":8},25,25000,null,{"$f":"T('ACCOUNTING SETUP'!AI33)","v":"Vendor 25"},0,{"$f":"'EXPENSE DATABASE'!F93","v":0}]
[{"$nulls":8},26,26000,null,{"$f":"T('ACCOUNTING SETUP'!AI34)","v":"Vendor 26"},0,{"$f":"'EXPENSE DATABASE'!F94","v":0}]
[{"$nulls":8},27,27000,null,{"$f":"T('ACCOUNTING SETUP'!AI35)","v":"Vendor 27"},0,{"$f":"'EXPENSE DATABASE'!F95","v":0}]
[{"$nulls":8},28,28000,null,{"$f":"T('ACCOUNTING SETUP'!AI36)","v":"Vendor 28"},0,{"$f":"'EXPENSE DATABASE'!F96","v":0}]
[{"$nulls":8},29,29000,null,{"$f":"T('ACCOUNTING SETUP'!AI37)","v":"Vendor 29"},0,{"$f":"'EXPENSE DATABASE'!F97","v":0}]
[{"$nulls":8},30,30000,null,{"$f":"T('ACCOUNTING SETUP'!AI38)","v":"Vendor 30"},0,{"$f":"'EXPENSE DATABASE'!F98","v":0}]
[{"$nulls":8},31,31000,null,{"$f":"T('ACCOUNTING SETUP'!AI39)","v":"Vendor 31"},0,{"$f":"'EXPENSE DATABASE'!F99","v":0}]
[{"$nulls":8},32,32000,null,{"$f":"T('ACCOUNTING SETUP'!AI40)","v":"Vendor 32"},0,{"$f":"'EXPENSE DATABASE'!F100","v":0}]
[{"$nulls":8},33,33000,null,{"$f":"T('ACCOUNTING SETUP'!AI41)","v":"Vendor 33"},0,{"$f":"'EXPENSE DATABASE'!F101","v":0}]
[{"$nulls":8},34,34000,null,{"$f":"T('ACCOUNTING SETUP'!AI42)","v":"Vendor 34"},0,{"$f":"'EXPENSE DATABASE'!F102","v":0}]
[{"$nulls":8},35,35000,null,{"$f":"T('ACCOUNTING SETUP'!AI43)","v":"Vendor 35"},0,{"$f":"'EXPENSE DATABASE'!F103","v":0}]
[{"$nulls":8},36,36000,null,{"$f":"T('ACCOUNTING SETUP'!AI44)","v":"Vendor 36"},0,{"$f":"'EXPENSE DATABASE'!F104","v":0}]
[{"$nulls":8},37,37000,null,{"$f":"T('ACCOUNTING SETUP'!AI45)","v":"Vendor 37"},0,{"$f":"'EXPENSE DATABASE'!F105","v":0}]
[{"$nulls":8},38,38000,null,{"$f":"T('ACCOUNTING SETUP'!AI46)","v":"Vendor 38"},0,{"$f":"'EXPENSE DATABASE'!F106","v":0}]
[{"$nulls":8},39,39000,null,{"$f":"T('ACCOUNTING SETUP'!AI47)","v":"Vendor 39"},0,{"$f":"'EXPENSE DATABASE'!F107","v":0}]
[{"$nulls":8},40,40000,null,{"$f":"T('ACCOUNTING SETUP'!AI48)","v":"Vendor 40"},0,{"$f":"'EXPENSE DATABASE'!F108","v":0}]
[{"$nulls":8},41,41000,null,{"$f":"T('ACCOUNTING SETUP'!AI49)","v":"Vendor 41"},0,{"$f":"'EXPENSE DATABASE'!F109","v":0}]
[{"$nulls":8},42,42000,null,{"$f":"T('ACCOUNTING SETUP'!AI50)","v":"Vendor 42"},0,{"$f":"'EXPENSE DATABASE'!F110","v":0}]
[{"$nulls":8},43,43000,null,{"$f":"T('ACCOUNTING SETUP'!#REF!)","v":{"$error":"#REF!"}},0,{"$f":"'EXPENSE DATABASE'!F111","v":0}]
[{"$nulls":8},44,44000,null,{"$f":"T('ACCOUNTING SETUP'!#REF!)","v":{"$error":"#REF!"}},0,{"$f":"'EXPENSE DATABASE'!F112","v":0}]
[{"$nulls":8},45,45000,null,{"$f":"T('ACCOUNTING SETUP'!#REF!)","v":{"$error":"#REF!"}},0,{"$f":"'EXPENSE DATABASE'!F113","v":0}]
[{"$nulls":8},46,46000,null,{"$f":"T('ACCOUNTING SETUP'!#REF!)","v":{"$error":"#REF!"}},0,{"$f":"'EXPENSE DATABASE'!F114","v":0}]
[{"$nulls":8},47,47000,null,{"$f":"T('ACCOUNTING SETUP'!#REF!)","v":{"$error":"#REF!"}},0,{"$f":"'EXPENSE DATABASE'!F115","v":0}]
[{"$nulls":8},48,48000,null,{"$f":"T('ACCOUNTING SETUP'!#REF!)","v":{"$error":"#REF!"}},0,{"$f":"'EXPENSE DATABASE'!F116","v":0}]
[{"$nulls":8},49,49000,null,{"$f":"T('ACCOUNTING SETUP'!#REF!)","v":{"$error":"#REF!"}},0,{"$f":"'EXPENSE DATABASE'!F117","v":0}]
[{"$nulls":8},50,50000,null,{"$f":"T('ACCOUNTING SETUP'!#REF!)","v":{"$error":"#REF!"}},0,{"$f":"'EXPENSE DATABASE'!F118","v":0}]
[{"$nulls":8},51,51000,null,{"$f":"T('ACCOUNTING SETUP'!#REF!)","v":{"$error":"#REF!"}},0,{"$f":"'EXPENSE DATABASE'!F119","v":0}]
[{"$nulls":8},52,52000,null,{"$f":"T('ACCOUNTING SETUP'!#REF!)","v":{"$error":"#REF!"}},0,{"$f":"'EXPENSE DATABASE'!F120","v":0}]
[{"$nulls":8},53,53000,null,{"$f":"T('ACCOUNTING SETUP'!#REF!)","v":{"$error":"#REF!"}},0,{"$f":"'EXPENSE DATABASE'!F121","v":0}]
[{"$nulls":8},54,54000,null,{"$f":"T('ACCOUNTING SETUP'!#REF!)","v":{"$error":"#REF!"}},0,{"$f":"'EXPENSE DATABASE'!F122","v":0}]
[{"$nulls":8},55,55000,null,{"$f":"T('ACCOUNTING SETUP'!AI51)","v":"Vendor 55"},0,{"$f":"'EXPENSE DATABASE'!F123","v":0}]
[{"$nulls":8},56,56000,null,{"$f":"T('ACCOUNTING SETUP'!AI52)","v":"Vendor 56"},0,{"$f":"'EXPENSE DATABASE'!F124","v":0}]
[{"$nulls":8},57,57000,null,{"$f":"T('ACCOUNTING SETUP'!AI53)","v":"Vendor 57"},0,{"$f":"'EXPENSE DATABASE'!F125","v":0}]
[{"$nulls":8},58,58000,null,{"$f":"T('ACCOUNTING SETUP'!AI54)","v":"Vendor 58"},0,{"$f":"'EXPENSE DATABASE'!F126","v":0}]
[{"$nulls":8},59,59000,null,{"$f":"T('ACCOUNTING SETUP'!AI55)","v":"Vendor 59"},0,{"$f":"'EXPENSE DATABASE'!F127","v":0}]
[{"$nulls":8},60,60000,null,{"$f":"T('ACCOUNTING SETUP'!AI56)","v":"Vendor 60"},0,{"$f":"'EXPENSE DATABASE'!F128","v":0}]
[{"$nulls":8},61,61000,null,{"$f":"T('ACCOUNTING SETUP'!AI57)","v":"Vendor 61"},0,{"$f":"'EXPENSE DATABASE'!F129","v":0}]
[{"$nulls":8},62,62000,null,{"$f":"T('ACCOUNTING SETUP'!AI58)","v":"Vendor 62"},0,{"$f":"'EXPENSE DATABASE'!F130","v":0}]
[{"$nulls":8},63,63000,null,{"$f":"T('ACCOUNTING SETUP'!AI59)","v":"Vendor 63"},0,{"$f":"'EXPENSE DATABASE'!F131","v":0}]
[{"$nulls":8},64,64000,null,{"$f":"T('ACCOUNTING SETUP'!AI60)","v":"Vendor 64"},0,{"$f":"'EXPENSE DATABASE'!F132","v":0}]
[{"$nulls":8},65,65000,null,{"$f":"T('ACCOUNTING SETUP'!AI61)","v":"Vendor 65"},0,{"$f":"'EXPENSE DATABASE'!F133","v":0}]
[{"$nulls":8},66,66000,null,{"$f":"T('ACCOUNTING SETUP'!AI62)","v":"Vendor 66"},{"$f":"COUNTIF($I$432:$I$1182,I1251)","v":0},{"$f":"'EXPENSE DATABASE'!F134","v":0}]
[{"$nulls":8},67,67000,null,{"$f":"T('ACCOUNTING SETUP'!AI63)","v":"Vendor 67"},0,{"$f":"'EXPENSE DATABASE'!F135","v":0}]
[{"$nulls":8},68,68000,null,{"$f":"T('ACCOUNTING SETUP'!AI64)","v":"Vendor 68"},0,{"$f":"'EXPENSE DATABASE'!F136","v":0}]
[{"$nulls":8},69,69000,null,{"$f":"T('ACCOUNTING SETUP'!AI65)","v":"Vendor 69"},0,{"$f":"'EXPENSE DATABASE'!F137","v":0}]
[{"$nulls":8},70,70000,null,{"$f":"T('ACCOUNTING SETUP'!AI66)","v":"Vendor 70"},0,{"$f":"'EXPENSE DATABASE'!F138","v":0}]
[{"$nulls":8},71,71000,null,{"$f":"T('ACCOUNTING SETUP'!AI67)","v":"Vendor 71"},0,{"$f":"'EXPENSE DATABASE'!F139","v":0}]
[{"$nulls":8},72,72000,null,{"$f":"T('ACCOUNTING SETUP'!AI68)","v":"Vendor 72"},0,{"$f":"'EXPENSE DATABASE'!F140","v":0}]
[{"$nulls":8},73,73000,null,{"$f":"T('ACCOUNTING SETUP'!AI69)","v":"Vendor 73"},0,{"$f":"'EXPENSE DATABASE'!F141","v":0}]
[{"$nulls":8},74,74000,null,{"$f":"T('ACCOUNTING SETUP'!AI70)","v":"Vendor 74"},0,{"$f":"'EXPENSE DATABASE'!F142","v":0}]
[{"$nulls":8},75,75000,null,{"$f":"T('ACCOUNTING SETUP'!AI71)","v":"Vendor 75"},0,{"$f":"'EXPENSE DATABASE'!F143","v":0}]
[{"$nulls":8},76,76000,null,{"$f":"T('ACCOUNTING SETUP'!AI72)","v":"Vendor 76"},0,{"$f":"'EXPENSE DATABASE'!F144","v":0}]
[{"$nulls":8},77,77000,null,{"$f":"T('ACCOUNTING SETUP'!AI73)","v":"Vendor 77"},0,{"$f":"'EXPENSE DATABASE'!F145","v":0}]
[{"$nulls":8},78,78000,null,{"$f":"T('ACCOUNTING SETUP'!AI74)","v":"Vendor 78"},0,{"$f":"'EXPENSE DATABASE'!F146","v":0}]
[{"$nulls":8},79,79000,null,{"$f":"T('ACCOUNTING SETUP'!AI75)","v":"Vendor 79"},0,{"$f":"'EXPENSE DATABASE'!F147","v":0}]
[{"$nulls":8},80,80000,null,{"$f":"T('ACCOUNTING SETUP'!AI76)","v":"Vendor 80"},0,{"$f":"'EXPENSE DATABASE'!F148","v":0}]
[{"$nulls":8},81,81000,null,{"$f":"T('ACCOUNTING SETUP'!AI77)","v":"Vendor 81"},0,{"$f":"'EXPENSE DATABASE'!F149","v":0}]
[{"$nulls":8},82,82000,null,{"$f":"T('ACCOUNTING SETUP'!AI78)","v":"Vendor 82"},0,{"$f":"'EXPENSE DATABASE'!F150","v":0}]
[{"$nulls":8},83,83000,null,{"$f":"T('ACCOUNTING SETUP'!AI79)","v":"Vendor 83"},0,{"$f":"'EXPENSE DATABASE'!F151","v":0}]
[{"$nulls":8},84,84000,null,{"$f":"T('ACCOUNTING SETUP'!AI80)","v":"Vendor 84"},0,{"$f":"'EXPENSE DATABASE'!F152","v":0}]
[{"$nulls":8},85,85000,null,{"$f":"T('ACCOUNTING SETUP'!AI81)","v":"Vendor 85"},0,{"$f":"'EXPENSE DATABASE'!F153","v":0}]
[{"$nulls":8},86,86000,null,{"$f":"T('ACCOUNTING SETUP'!AI82)","v":"Vendor 86"},0,{"$f":"'EXPENSE DATABASE'!F154","v":0}]
[{"$nulls":8},87,87000,null,{"$f":"T('ACCOUNTING SETUP'!AI83)","v":"Vendor 87"},0,{"$f":"'EXPENSE DATABASE'!F155","v":0}]
[{"$nulls":8},88,88000,null,{"$f":"T('ACCOUNTING SETUP'!AI84)","v":"Vendor 88"},0,{"$f":"'EXPENSE DATABASE'!F156","v":0}]
[{"$nulls":8},89,89000,null,{"$f":"T('ACCOUNTING SETUP'!AI85)","v":"Vendor 89"},0,{"$f":"'EXPENSE DATABASE'!F157","v":0}]
[{"$nulls":8},90,90000,null,{"$f":"T('ACCOUNTING SETUP'!AI86)","v":"Vendor 90"},0,{"$f":"'EXPENSE DATABASE'!F158","v":0}]
[{"$nulls":8},91,91000,null,{"$f":"T('ACCOUNTING SETUP'!AI87)","v":"Vendor 91"},0,{"$f":"'EXPENSE DATABASE'!F159","v":0}]
[{"$nulls":8},92,92000,null,{"$f":"T('ACCOUNTING SETUP'!AI88)","v":"Vendor 92"},0,{"$f":"'EXPENSE DATABASE'!F160","v":0}]
[{"$nulls":8},93,93000,null,{"$f":"T('ACCOUNTING SETUP'!AI89)","v":"Vendor 93"},0,{"$f":"'EXPENSE DATABASE'!F161","v":0}]
[{"$nulls":8},94,94000,null,{"$f":"T('ACCOUNTING SETUP'!AI90)","v":"Vendor 94"},0,{"$f":"'EXPENSE DATABASE'!F162","v":0}]
[{"$nulls":8},95,95000,null,{"$f":"T('ACCOUNTING SETUP'!AI91)","v":"Vendor 95"},0,{"$f":"'EXPENSE DATABASE'!F163","v":0}]
[{"$nulls":8},96,96000,null,{"$f":"T('ACCOUNTING SETUP'!AI92)","v":"Vendor 96"},0,{"$f":"'EXPENSE DATABASE'!F164","v":0}]
[{"$nulls":8},97,97000,null,{"$f":"T('ACCOUNTING SETUP'!AI93)","v":"Vendor 97"},0,{"$f":"'EXPENSE DATABASE'!F165","v":0}]
[{"$nulls":8},98,98000,null,{"$f":"T('ACCOUNTING SETUP'!AI94)","v":"Vendor 98"},0,{"$f":"'EXPENSE DATABASE'!F166","v":0}]
[{"$nulls":8},99,99000,null,{"$f":"T('ACCOUNTING SETUP'!AI95)","v":"Vendor 99"},0,{"$f":"'EXPENSE DATABASE'!F167","v":0}]
[{"$nulls":8},100,100000,null,{"$f":"T('ACCOUNTING SETUP'!AI96)","v":"Vendor 100"},0,{"$f":"'EXPENSE DATABASE'!F168","v":0}]
[{"$nulls":8},101,101000,null,"Unassigned",{"$f":"IF('EXPENSE DATABASE'!F169>0,1,0)","v":1},{"$f":"'EXPENSE DATABASE'!F169","v":495}]
[{"$nulls":8},200,200000,null,null,{"$f":"'3 INCOME & EXPENSE'!X765","v":{"v":24,"d":"24.00"}},{"$f":"IF(M1287='3 INCOME & EXPENSE'!R765,0,1)","v":{"v":1,"d":"1.00"}}]

{"sheet":"EXPENSE BY ACCOUNT","index":54,"n_rows":906,"n_cols":14,"rows_kept":906,"hidden":true,"merged":[[1,0,1,1],[47,2,48,2],[47,3,48,3],[47,4,48,4],[47,5,48,5],[47,6,48,6],[877,2,877,6]]}
[]
["EXPENSE BY ACCOUNT REPORT",{"$nulls":8},"Shown","Shown"]
{"$rows_empty":8}
[{"$nulls":8},"RAW","+DESC","TOTAL","QTY"]
[null,null,"ACCOUNT EXPENSE SUMMARY",{"$nulls":4},1,null,null,1,1]
[null,null,{"$f":"T(Street_Address)","v":"1234 Main St"},{"$nulls":4},2,null,null,2,1]
[null,null,{"$f":"T(City_State_Zip)","v":"Kansas City, MO 64116"},{"$nulls":4},3,null,null,3,1]
[{"$nulls":7},4,null,null,4,1]
[null,null,"ACCOUNT",null,"Totals",null,"$/SF",5,null,null,5,1]
[null,null,{"$f":"UPPER('EXPENSE DATABASE'!E41)","v":"HFS REI CHECKING ACCOUNT"},null,{"$f":"'EXPENSE DATABASE'!F41","v":{"v":62865,"d":"$62,865"}},null,{"$f":"IFERROR(E17/Square_Feet,0)","v":{"v":41.91,"d":"$42 /sf"}},6,null,null,6,{"$f":"IF(E17>0,1,0)","v":1}]
[null,null,{"$f":"UPPER('EXPENSE DATABASE'!E42)","v":"CHASE SW CREDIT CARD"},null,{"$f":"'EXPENSE DATABASE'!F42","v":{"v":5247.45,"d":"$5,247"}},null,{"v":3.4983,"d":"$3 /sf"},7,null,null,7,1]
[null,null,{"$f":"UPPER('EXPENSE DATABASE'!E43)","v":"HOME DEPOT CREDIT CARD"},null,{"$f":"'EXPENSE DATABASE'!F43","v":{"v":4324.92,"d":"$4,325"}},null,{"v":2.88328,"d":"$3 /sf"},8,null,null,8,1]
[null,null,{"$f":"UPPER('EXPENSE DATABASE'!E44)","v":"LOWES CREDIT CARD"},null,{"$f":"'EXPENSE DATABASE'!F44","v":{"v":4465.51,"d":"$4,466"}},null,{"v":2.977006666666667,"d":"$3 /sf"},9,null,null,9,1]
[null,null,{"$f":"UPPER('EXPENSE DATABASE'!E45)","v":"ACCOUNT 5"},null,{"$f":"'EXPENSE DATABASE'!F45","v":{"v":0,"d":"$0"}},null,{"v":0,"d":"$0 /sf"},10,null,null,10,0]
[null,null,{"$f":"UPPER('EXPENSE DATABASE'!E46)","v":"ACCOUNT 6"},null,{"$f":"'EXPENSE DATABASE'!F46","v":{"v":0,"d":"$0"}},null,{"v":0,"d":"$0 /sf"},11,null,null,11,0]
[null,null,{"$f":"UPPER('EXPENSE DATABASE'!E47)","v":"ACCOUNT 7"},null,{"$f":"'EXPENSE DATABASE'!F47","v":{"v":0,"d":"$0"}},null,{"v":0,"d":"$0 /sf"},12,null,null,12,0]
[null,null,{"$f":"UPPER('EXPENSE DATABASE'!E48)","v":"ACCOUNT 8"},null,{"$f":"'EXPENSE DATABASE'!F48","v":{"v":0,"d":"$0"}},null,{"v":0,"d":"$0 /sf"},13,null,null,13,0]
[null,null,{"$f":"UPPER('EXPENSE DATABASE'!E49)","v":"ACCOUNT 9"},null,{"$f":"'EXPENSE DATABASE'!F49","v":{"v":0,"d":"$0"}},null,{"v":0,"d":"$0 /sf"},14,null,null,14,0]
[null,null,{"$f":"UPPER('EXPENSE DATABASE'!E50)","v":"ACCOUNT 10"},null,{"$f":"'EXPENSE DATABASE'!F50","v":{"v":0,"d":"$0"}},null,{"v":0,"d":"$0 /sf"},15,null,null,15,0]
[null,null,{"$f":"UPPER('EXPENSE DATABASE'!E51)","v":"ACCOUNT 11"},null,{"$f":"'EXPENSE DATABASE'!F51","v":{"v":0,"d":"$0"}},null,{"v":0,"d":"$0 /sf"},16,null,null,16,0]
[null,null,{"$f":"UPPER('EXPENSE DATABASE'!E52)","v":"ACCOUNT 12"},null,{"$f":"'EXPENSE DATABASE'!F52","v":{"v":0,"d":"$0"}},null,{"v":0,"d":"$0 /sf"},17,null,null,17,0]
[null,null,{"$f":"UPPER('EXPENSE DATABASE'!E53)","v":"ACCOUNT 13"},null,{"$f":"'EXPENSE DATABASE'!F53","v":{"v":0,"d":"$0"}},null,{"v":0,"d":"$0 /sf"},18,null,null,18,0]
[null,null,{"$f":"UPPER('EXPENSE DATABASE'!E54)","v":"ACCOUNT 14"},null,{"$f":"'EXPENSE DATABASE'!F54","v":{"v":0,"d":"$0"}},null,{"v":0,"d":"$0 /sf"},19,null,null,19,0]
[null,null,{"$f":"UPPER('EXPENSE DATABASE'!E55)","v":"ACCOUNT 15"},null,{"$f":"'EXPENSE DATABASE'!F55","v":{"v":0,"d":"$0"}},null,{"v":0,"d":"$0 /sf"},20,null,null,20,0]
[null,null,{"$f":"UPPER('EXPENSE DATABASE'!E56)","v":"ACCOUNT 16"},null,{"$f":"'EXPENSE DATABASE'!F56","v":{"v":0,"d":"$0"}},null,{"v":0,"d":"$0 /sf"},21,null,null,21,0]
[null,null,{"$f":"UPPER('EXPENSE DATABASE'!E57)","v":"ACCOUNT 17"},null,{"$f":"'EXPENSE DATABASE'!F57","v":{"v":0,"d":"$0"}},null,{"v":0,"d":"$0 /sf"},22,null,null,22,0]
[null,null,{"$f":"UPPER('EXPENSE DATABASE'!E58)","v":"ACCOUNT 18"},null,{"$f":"'EXPENSE DATABASE'!F58","v":{"v":0,"d":"$0"}},null,{"v":0,"d":"$0 /sf"},23,null,null,23,0]
[null,null,{"$f":"UPPER('EXPENSE DATABASE'!E59)","v":"ACCOUNT 19"},null,{"$f":"'EXPENSE DATABASE'!F59","v":{"v":0,"d":"$0"}},null,{"v":0,"d":"$0 /sf"},24,null,null,24,0]
[null,null,{"$f":"UPPER('EXPENSE DATABASE'!E60)","v":"ACCOUNT 20"},null,{"$f":"'EXPENSE DATABASE'!F60","v":{"v":0,"d":"$0"}},null,{"v":0,"d":"$0 /sf"},25,null,null,25,0]
[null,null,{"$f":"UPPER('EXPENSE DATABASE'!E61)","v":"ACCOUNT 21"},null,{"$f":"'EXPENSE DATABASE'!F61","v":{"v":0,"d":"$0"}},null,{"v":0,"d":"$0 /sf"},26,null,null,26,0]
[null,null,{"$f":"UPPER('EXPENSE DATABASE'!E62)","v":"ACCOUNT 22"},null,{"$f":"'EXPENSE DATABASE'!F62","v":{"v":0,"d":"$0"}},null,{"v":0,"d":"$0 /sf"},27,null,null,27,0]
[null,null,{"$f":"UPPER('EXPENSE DATABASE'!E63)","v":"ACCOUNT 23"},null,{"$f":"'EXPENSE DATABASE'!F63","v":{"v":0,"d":"$0"}},null,{"v":0,"d":"$0 /sf"},28,null,null,28,0]
[null,null,{"$f":"UPPER('EXPENSE DATABASE'!E64)","v":"ACCOUNT 24"},null,{"$f":"'EXPENSE DATABASE'!F64","v":{"v":0,"d":"$0"}},null,{"v":0,"d":"$0 /sf"},29,null,null,29,0]
[null,null,{"$f":"UPPER('EXPENSE DATABASE'!E65)","v":"ACCOUNT 25"},null,{"$f":"'EXPENSE DATABASE'!F65","v":{"v":0,"d":"$0"}},null,{"v":0,"d":"$0 /sf"},30,null,null,30,0]
[null,null,{"$f":"UPPER('EXPENSE DATABASE'!E66)","v":"UNASSIGNED"},null,{"$f":"'EXPENSE DATABASE'!F66","v":{"v":0,"d":"$0"}},null,{"v":0,"d":"$0 /sf"},31,null,null,31,0]
[{"$nulls":3},"TOTALS",{"$f":"SUM(E17:F42)","v":{"v":76902.87999999999,"d":"$76,903"}},null,{"$f":"SUM(G17:G42)","v":{"v":51.268586666666664,"d":"$51 /sf"}},32,null,null,32,1]
[null,null,"ACCOUNT EXPENSE DETAIL",{"$nulls":4},33,null,null,33,1]
[null,null,{"$f":"T(Street_Address)","v":"1234 Main St"},{"$nulls":4},34,null,null,34,1]
[null,null,{"$f":"T(City_State_Zip)","v":"Kansas City, MO 64116"},{"$nulls":4},35,null,null,35,1]
[{"$nulls":7},36,null,null,36,1]
[null,null,"DATE","DESCRIPTION/MEMO","QTY","COST","TOTAL COST",37,null,null,37,1]
[{"$nulls":7},38,null,null,38,1]
[{"$nulls":7},39,null,null,39,1]
[{"$nulls":3},{"$f":"T('ACCOUNTING SETUP'!L9)","v":"HFS REI Checking Account"},{"$nulls":3},40,1000,null,{"$f":"I51+J51","v":1000},{"$f":"M880","v":15}]
[{"$nulls":3},{"$f":"T('ACCOUNTING SETUP'!L10)","v":"Chase SW Credit Card"},{"$nulls":3},41,2000,null,2000,5]
[{"$nulls":3},{"$f":"T('ACCOUNTING SETUP'!L11)","v":"Home Depot Credit Card"},{"$nulls":3},42,3000,null,3000,2]
[{"$nulls":3},{"$f":"T('ACCOUNTING SETUP'!L12)","v":"Lowes Credit Card"},{"$nulls":3},43,4000,null,4000,3]
[{"$nulls":3},{"$f":"T('ACCOUNTING SETUP'!L13)","v":"Account 5"},{"$nulls":3},44,5000,null,5000,0]
[{"$nulls":3},{"$f":"T('ACCOUNTING SETUP'!L14)","v":"Account 6"},{"$nulls":3},45,6000,null,6000,0]
[{"$nulls":3},{"$f":"T('ACCOUNTING SETUP'!L15)","v":"Account 7"},{"$nulls":3},46,7000,null,7000,0]
[{"$nulls":3},{"$f":"T('ACCOUNTING SETUP'!L16)","v":"Account 8"},{"$nulls":3},47,8000,null,8000,0]
[{"$nulls":3},{"$f":"T('ACCOUNTING SETUP'!L17)","v":"Account 9"},{"$nulls":3},48,9000,null,9000,0]
[{"$nulls":3},{"$f":"T('ACCOUNTING SETUP'!L18)","v":"Account 10"},{"$nulls":3},49,10000,null,10000,0]
[{"$nulls":3},{"$f":"T('ACCOUNTING SETUP'!L19)","v":"Account 11"},{"$nulls":3},50,11000,null,11000,0]
[{"$nulls":3},{"$f":"T('ACCOUNTING SETUP'!L20)","v":"Account 12"},{"$nulls":3},51,12000,null,12000,0]
[{"$nulls":3},{"$f":"T('ACCOUNTING SETUP'!L21)","v":"Account 13"},{"$nulls":3},52,13000,null,13000,0]
[{"$nulls":3},{"$f":"T('ACCOUNTING SETUP'!L22)","v":"Account 14"},{"$nulls":3},53,14000,null,14000,0]
[{"$nulls":3},{"$f":"T('ACCOUNTING SETUP'!L23)","v":"Account 15"},{"$nulls":3},54,15000,null,15000,0]
[{"$nulls":3},{"$f":"T('ACCOUNTING SETUP'!L24)","v":"Account 16"},{"$nulls":3},55,16000,null,16000,0]
[{"$nulls":3},{"$f":"T('ACCOUNTING SETUP'!L25)","v":"Account 17"},{"$nulls":3},56,17000,null,17000,0]
[{"$nulls":3},{"$f":"T('ACCOUNTING SETUP'!L26)","v":"Account 18"},{"$nulls":3},57,18000,null,18000,0]
[{"$nulls":3},{"$f":"T('ACCOUNTING SETUP'!L27)","v":"Account 19"},{"$nulls":3},58,19000,null,19000,0]
[{"$nulls":3},{"$f":"T('ACCOUNTING SETUP'!L28)","v":"Account 20"},{"$nulls":3},59,20000,null,20000,0]
[{"$nulls":3},{"$f":"T('ACCOUNTING SETUP'!L29)","v":"Account 21"},{"$nulls":3},60,21000,null,21000,0]
[{"$nulls":3},{"$f":"T('ACCOUNTING SETUP'!L30)","v":"Account 22"},{"$nulls":3},61,22000,null,22000,0]
[{"$nulls":3},{"$f":"T('ACCOUNTING SETUP'!L31)","v":"Account 23"},{"$nulls":3},62,23000,null,23000,0]
[{"$nulls":3},{"$f":"T('ACCOUNTING SETUP'!L32)","v":"Account 24"},{"$nulls":3},63,24000,null,24000,0]
[{"$nulls":3},{"$f":"T('ACCOUNTING SETUP'!L33)","v":"Account 25"},{"$nulls":3},64,25000,null,25000,0]
[{"$nulls":3},"UNASSIGNED",{"$nulls":3},65,26000,null,26000,{"$f":"M906","v":{"v":0,"d":"0.00"}}]
[{"$nulls":5},{"$f":"CONCATENATE('ACCOUNTING SETUP'!L9,\" \",\"Totals\")","v":"HFS REI Checking Account Totals"},{"$f":"'EXPENSE DATABASE'!F41","v":{"v":62865,"d":"$62,865.00"}},66,1998,null,1998,{"$f":"M880","v":15}]
[{"$nulls":7},67,1999,null,1999,{"$f":"L77","v":15}]
[{"$nulls":5},{"$f":"CONCATENATE('ACCOUNTING SETUP'!L10,\" \",\"Totals\")","v":"Chase SW Credit Card Totals"},{"$f":"'EXPENSE DATABASE'!F42","v":{"v":5247.45,"d":"$5,247.45"}},68,2998,null,2998,{"$f":"M881","v":5}]
[{"$nulls":7},69,2999,null,2999,{"$f":"L79","v":5}]
[{"$nulls":5},{"$f":"CONCATENATE('ACCOUNTING SETUP'!L11,\" \",\"Totals\")","v":"Home Depot Credit Card Totals"},{"$f":"'EXPENSE DATABASE'!F43","v":{"v":4324.92,"d":"$4,324.92"}},70,3998,null,3998,{"$f":"M882","v":2}]
[{"$nulls":7},71,3999,null,3999,{"$f":"L81","v":2}]
[{"$nulls":5},{"$f":"CONCATENATE('ACCOUNTING SETUP'!L12,\" \",\"Totals\")","v":"Lowes Credit Card Totals"},{"$f":"'EXPENSE DATABASE'!F44","v":{"v":4465.51,"d":"$4,465.51"}},72,4998,null,4998,{"$f":"M883","v":3}]
[{"$nulls":7},73,4999,null,4999,{"$f":"L83","v":3}]
[{"$nulls":5},{"$f":"CONCATENATE('ACCOUNTING SETUP'!L13,\" \",\"Totals\")","v":"Account 5 Totals"},{"$f":"'EXPENSE DATABASE'!F45","v":{"v":0,"d":"$0.00"}},74,5998,null,5998,{"$f":"M884","v":0}]
[{"$nulls":7},75,5999,null,5999,{"$f":"L85","v":0}]
[{"$nulls":5},{"$f":"CONCATENATE('ACCOUNTING SETUP'!L14,\" \",\"Totals\")","v":"Account 6 Totals"},{"$f":"'EXPENSE DATABASE'!F46","v":{"v":0,"d":"$0.00"}},76,6998,null,6998,{"$f":"M885","v":0}]
[{"$nulls":7},77,6999,null,6999,{"$f":"L87","v":0}]
[{"$nulls":5},{"$f":"CONCATENATE('ACCOUNTING SETUP'!L15,\" \",\"Totals\")","v":"Account 7 Totals"},{"$f":"'EXPENSE DATABASE'!F47","v":{"v":0,"d":"$0.00"}},78,7998,null,7998,{"$f":"M886","v":0}]
[{"$nulls":7},79,7999,null,7999,{"$f":"L89","v":0}]
[{"$nulls":5},{"$f":"CONCATENATE('ACCOUNTING SETUP'!L16,\" \",\"Totals\")","v":"Account 8 Totals"},{"$f":"'EXPENSE DATABASE'!F48","v":{"v":0,"d":"$0.00"}},80,8998,null,8998,{"$f":"M887","v":0}]
[{"$nulls":7},81,8999,null,8999,{"$f":"L91","v":0}]
[{"$nulls":5},{"$f":"CONCATENATE('ACCOUNTING SETUP'!L17,\" \",\"Totals\")","v":"Account 9 Totals"},{"$f":"'EXPENSE DATABASE'!F49","v":{"v":0,"d":"$0.00"}},82,9998,null,9998,{"$f":"M888","v":0}]
[{"$nulls":7},83,9999,null,9999,{"$f":"L93","v":0}]
[{"$nulls":5},{"$f":"CONCATENATE('ACCOUNTING SETUP'!L18,\" \",\"Totals\")","v":"Account 10 Totals"},{"$f":"'EXPENSE DATABASE'!F50","v":{"v":0,"d":"$0.00"}},84,10998,null,10998,{"$f":"M889","v":0}]
[{"$nulls":7},85,10999,null,10999,{"$f":"L95","v":0}]
[{"$nulls":5},{"$f":"CONCATENATE('ACCOUNTING SETUP'!L19,\" \",\"Totals\")","v":"Account 11 Totals"},{"$f":"'EXPENSE DATABASE'!F51","v":{"v":0,"d":"$0.00"}},86,11998,null,11998,{"$f":"M890","v":0}]
[{"$nulls":7},87,11999,null,11999,{"$f":"L97","v":0}]
[{"$nulls":5},{"$f":"CONCATENATE('ACCOUNTING SETUP'!L20,\" \",\"Totals\")","v":"Account 12 Totals"},{"$f":"'EXPENSE DATABASE'!F52","v":{"v":0,"d":"$0.00"}},88,12998,null,12998,{"$f":"M891","v":0}]
[{"$nulls":7},89,12999,null,12999,{"$f":"L99","v":0}]
[{"$nulls":5},{"$f":"CONCATENATE('ACCOUNTING SETUP'!L21,\" \",\"Totals\")","v":"Account 13 Totals"},{"$f":"'EXPENSE DATABASE'!F53","v":{"v":0,"d":"$0.00"}},90,13998,null,13998,{"$f":"M892","v":0}]
[{"$nulls":7},91,13999,null,13999,{"$f":"L101","v":0}]
[{"$nulls":5},{"$f":"CONCATENATE('ACCOUNTING SETUP'!L22,\" \",\"Totals\")","v":"Account 14 Totals"},{"$f":"'EXPENSE DATABASE'!F54","v":{"v":0,"d":"$0.00"}},92,14998,null,14998,{"$f":"M893","v":0}]
[{"$nulls":7},93,14999,null,14999,{"$f":"L103","v":0}]
[{"$nulls":5},{"$f":"CONCATENATE('ACCOUNTING SETUP'!L23,\" \",\"Totals\")","v":"Account 15 Totals"},{"$f":"'EXPENSE DATABASE'!F55","v":{"v":0,"d":"$0.00"}},94,15998,null,15998,{"$f":"M894","v":0}]
[{"$nulls":7},95,15999,null,15999,{"$f":"L105","v":0}]
[{"$nulls":5},{"$f":"CONCATENATE('ACCOUNTING SETUP'!L24,\" \",\"Totals\")","v":"Account 16 Totals"},{"$f":"'EXPENSE DATABASE'!F56","v":{"v":0,"d":"$0.00"}},96,16998,null,16998,{"$f":"M895","v":0}]
[{"$nulls":7},97,16999,null,16999,{"$f":"L107","v":0}]
[{"$nulls":5},{"$f":"CONCATENATE('ACCOUNTING SETUP'!L25,\" \",\"Totals\")","v":"Account 17 Totals"},{"$f":"'EXPENSE DATABASE'!F57","v":{"v":0,"d":"$0.00"}},98,17998,null,17998,{"$f":"M896","v":{"v":0,"d":"$0"}}]
[{"$nulls":7},99,17999,null,17999,{"$f":"L109","v":0}]
[{"$nulls":5},{"$f":"CONCATENATE('ACCOUNTING SETUP'!L26,\" \",\"Totals\")","v":"Account 18 Totals"},{"$f":"'EXPENSE DATABASE'!F58","v":{"v":0,"d":"$0.00"}},100,18998,null,18998,{"$f":"M897","v":0}]
[{"$nulls":7},101,18999,null,18999,{"$f":"L111","v":0}]
[{"$nulls":5},{"$f":"CONCATENATE('ACCOUNTING SETUP'!L27,\" \",\"Totals\")","v":"Account 19 Totals"},{"$f":"'EXPENSE DATABASE'!F59","v":{"v":0,"d":"$0.00"}},102,19998,null,19998,{"$f":"M898","v":0}]
[{"$nulls":7},103,19999,null,19999,{"$f":"L113","v":0}]
[{"$nulls":5},{"$f":"CONCATENATE('ACCOUNTING SETUP'!L28,\" \",\"Totals\")","v":"Account 20 Totals"},{"$f":"'EXPENSE DATABASE'!F60","v":{"v":0,"d":"$0.00"}},104,20998,null,{"$f":"I115+J115","v":20998},{"$f":"M899","v":0}]
[{"$nulls":7},105,20999,null,20999,{"$f":"L115","v":0}]
[{"$nulls":5},{"$f":"CONCATENATE('ACCOUNTING SETUP'!L29,\" \",\"Totals\")","v":"Account 21 Totals"},{"$f":"'EXPENSE DATABASE'!F61","v":{"v":0,"d":"$0.00"}},106,21998,null,21998,{"$f":"M900","v":0}]
[{"$nulls":7},107,21999,null,21999,{"$f":"L117","v":0}]
[{"$nulls":5},{"$f":"CONCATENATE('ACCOUNTING SETUP'!L30,\" \",\"Totals\")","v":"Account 22 Totals"},{"$f":"'EXPENSE DATABASE'!F62","v":{"v":0,"d":"$0.00"}},108,22998,null,22998,{"$f":"M901","v":0}]
[{"$nulls":7},109,22999,null,22999,{"$f":"L119","v":0}]
[{"$nulls":5},{"$f":"CONCATENATE('ACCOUNTING SETUP'!L31,\" \",\"Totals\")","v":"Account 23 Totals"},{"$f":"'EXPENSE DATABASE'!F63","v":{"v":0,"d":"$0.00"}},110,23998,null,23998,{"$f":"M902","v":0}]
[{"$nulls":7},111,23999,null,23999,{"$f":"L121","v":0}]
[{"$nulls":5},{"$f":"CONCATENATE('ACCOUNTING SETUP'!L32,\" \",\"Totals\")","v":"Account 24 Totals"},{"$f":"'EXPENSE DATABASE'!F64","v":{"v":0,"d":"$0.00"}},112,24998,null,24998,{"$f":"M903","v":0}]
[{"$nulls":7},113,24999,null,24999,{"$f":"L123","v":0}]
[{"$nulls":5},{"$f":"CONCATENATE('ACCOUNTING SETUP'!L33,\" \",\"Totals\")","v":"Account 25 Totals"},{"$f":"'EXPENSE DATABASE'!F65","v":{"v":0,"d":"$0.00"}},114,25998,null,25998,{"$f":"M904","v":0}]
[{"$nulls":7},115,25999,null,25999,{"$f":"L125","v":0}]
[null,null,{"$f":"IF('3 INCOME & EXPENSE'!E14=0,\"\",'3 INCOME & EXPENSE'!E14)","v":"2014-07-20"},{"$f":"T('3 INCOME & EXPENSE'!G14)","v":"Purchase Price for Property - Reference HUD -1"},{"$f":"'3 INCOME & EXPENSE'!M14","v":{"v":1,"d":"1.0"}},{"$f":"'3 INCOME & EXPENSE'!N14","v":{"v":52000,"d":"$52,000.00"}},{"$f":"'3 INCOME & EXPENSE'!O14","v":{"v":52000,"d":"$52,000.00"}},116,{"$f":"'3 INCOME & EXPENSE'!V14","v":1},{"$f":"VLOOKUP(I127,$I$880:$J$905,2)","v":1000},1001,{"$f":"K127*E127","v":1001}]
[null,null,{"$f":"IF('3 INCOME & EXPENSE'!E15=0,\"\",'3 INCOME & EXPENSE'!E15)","v":"2014-07-20"},{"$f":"T('3 INCOME & EXPENSE'!G15)","v":"Buying Expenses for Property - Reference HUD-1"},{"$f":"'3 INCOME & EXPENSE'!M15","v":{"v":1,"d":"1.0"}},{"$f":"'3 INCOME & EXPENSE'!N15","v":{"v":565,"d":"$565.00"}},{"$f":"'3 INCOME & EXPENSE'!O15","v":{"v":565,"d":"$565.00"}},117,{"$f":"'3 INCOME & EXPENSE'!V15","v":1},1000,1001,1001]
[null,null,{"$f":"IF('3 INCOME & EXPENSE'!E16=0,\"\",'3 INCOME & EXPENSE'!E16)","v":"2014-07-21"},{"$f":"T('3 INCOME & EXPENSE'!G16)","v":"Property Inspection"},{"$f":"'3 INCOME & EXPENSE'!M16","v":{"v":1,"d":"1.0"}},{"$f":"'3 INCOME & EXPENSE'!N16","v":{"v":495,"d":"$495.00"}},{"$f":"'3 INCOME & EXPENSE'!O16","v":{"v":495,"d":"$495.00"}},118,{"$f":"'3 INCOME & EXPENSE'!V16","v":2},2000,2002,2002]
[null,null,{"$f":"IF('3 INCOME & EXPENSE'!E17=0,\"\",'3 INCOME & EXPENSE'!E17)","v":"2014-07-25"},{"$f":"T('3 INCOME & EXPENSE'!G17)","v":"Dumpster Rental"},{"$f":"'3 INCOME & EXPENSE'!M17","v":{"v":1,"d":"1.0"}},{"$f":"'3 INCOME & EXPENSE'!N17","v":{"v":370,"d":"$370.00"}},{"$f":"'3 INCOME & EXPENSE'!O17","v":{"v":370,"d":"$370.00"}},119,{"$f":"'3 INCOME & EXPENSE'!V17","v":2},2000,2002,2002]
[null,null,{"$f":"IF('3 INCOME & EXPENSE'!E18=0,\"\",'3 INCOME & EXPENSE'!E18)","v":"2014-07-28"},{"$f":"T('3 INCOME & EXPENSE'!G18)","v":"Demolition - 1st Payment"},{"$f":"'3 INCOME & EXPENSE'!M18","v":{"v":1,"d":"1.0"}},{"$f":"'3 INCOME & EXPENSE'!N18","v":{"v":500,"d":"$500.00"}},{"$f":"'3 INCOME & EXPENSE'!O18","v":{"v":500,"d":"$500.00"}},120,{"$f":"'3 INCOME & EXPENSE'!V18","v":1},1000,1001,1001]
[null,null,{"$f":"IF('3 INCOME & EXPENSE'!E19=0,\"\",'3 INCOME & EXPENSE'!E19)","v":"2014-08-01"},{"$f":"T('3 INCOME & EXPENSE'!G19)","v":"Demolition - 2nd Payment"},{"$f":"'3 INCOME & EXPENSE'!M19","v":{"v":1,"d":"1.0"}},{"$f":"'3 INCOME & EXPENSE'!N19","v":{"v":500,"d":"$500.00"}},{"$f":"'3 INCOME & EXPENSE'!O19","v":{"v":500,"d":"$500.00"}},121,{"$f":"'3 INCOME & EXPENSE'!V19","v":1},1000,1001,1001]
[null,null,{"$f":"IF('3 INCOME & EXPENSE'!E20=0,\"\",'3 INCOME & EXPENSE'!E20)","v":"2014-07-28"},{"$f":"T('3 INCOME & EXPENSE'!G20)","v":"Exterior doors and window material"},{"$f":"'3 INCOME & EXPENSE'!M20","v":{"v":1,"d":"1.0"}},{"$f":"'3 INCOME & EXPENSE'!N20","v":{"v":2635.6,"d":"$2,635.60"}},{"$f":"'3 INCOME & EXPENSE'!O20","v":{"v":2635.6,"d":"$2,635.60"}},122,{"$f":"'3 INCOME & EXPENSE'!V20","v":3},3000,3003,3003]
[null,null,{"$f":"IF('3 INCOME & EXPENSE'!E21=0,\"\",'3 INCOME & EXPENSE'!E21)","v":"2014-08-01"},{"$f":"T('3 INCOME & EXPENSE'!G21)","v":"Exterior Doors & Windows - 1st Payment"},{"$f":"'3 INCOME & EXPENSE'!M21","v":{"v":1,"d":"1.0"}},{"$f":"'3 INCOME & EXPENSE'!N21","v":{"v":750,"d":"$750.00"}},{"$f":"'3 INCOME & EXPENSE'!O21","v":{"v":750,"d":"$750.00"}},123,{"$f":"'3 INCOME & EXPENSE'!V21","v":1},1000,1001,1001]
[null,null,{"$f":"IF('3 INCOME & EXPENSE'!E22=0,\"\",'3 INCOME & EXPENSE'!E22)","v":"2014-08-05"},{"$f":"T('3 INCOME & EXPENSE'!G22)","v":"Exterior Doors & Windows - 2nd Payment"},{"$f":"'3 INCOME & EXPENSE'!M22","v":{"v":1,"d":"1.0"}},{"$f":"'3 INCOME & EXPENSE'!N22","v":{"v":500,"d":"$500.00"}},{"$f":"'3 INCOME & EXPENSE'!O22","v":{"v":500,"d":"$500.00"}},124,{"$f":"'3 INCOME & EXPENSE'!V22","v":1},1000,1001,1001]
[null,null,{"$f":"IF('3 INCOME & EXPENSE'!E23=0,\"\",'3 INCOME & EXPENSE'!E23)","v":"2014-08-08"},{"$f":"T('3 INCOME & EXPENSE'!G23)","v":"Plumbing Rough in - 1st Payment"},{"$f":"'3 INCOME & EXPENSE'!M23","v":{"v":1,"d":"1.0"}},{"$f":"'3 INCOME & EXPENSE'!N23","v":{"v":1250,"d":"$1,250.00"}},{"$f":"'3 INCOME & EXPENSE'!O23","v":{"v":1250,"d":"$1,250.00"}},125,{"$f":"'3 INCOME & EXPENSE'!V23","v":1},1000,1001,1001]
[null,null,{"$f":"IF('3 INCOME & EXPENSE'!E24=0,\"\",'3 INCOME & EXPENSE'!E24)","v":"2014-08-08"},{"$f":"T('3 INCOME & EXPENSE'!G24)","v":"Electrical Rough in - 1st Payment"},{"$f":"'3 INCOME & EXPENSE'!M24","v":{"v":1,"d":"1.0"}},{"$f":"'3 INCOME & EXPENSE'!N24","v":{"v":1250,"d":"$1,250.00"}},{"$f":"'3 INCOME & EXPENSE'!O24","v":{"v":1250,"d":"$1,250.00"}},126,{"$f":"'3 INCOME & EXPENSE'!V24","v":1},1000,1001,1001]
[null,null,{"$f":"IF('3 INCOME & EXPENSE'!E25=0,\"\",'3 INCOME & EXPENSE'!E25)","v":"2014-08-11"},{"$f":"T('3 INCOME & EXPENSE'!G25)","v":"Drywall Patching & Prep"},{"$f":"'3 INCOME & EXPENSE'!M25","v":{"v":1,"d":"1.0"}},{"$f":"'3 INCOME & EXPENSE'!N25","v":{"v":500,"d":"$500.00"}},{"$f":"'3 INCOME & EXPENSE'!O25","v":{"v":500,"d":"$500.00"}},127,{"$f":"'3 INCOME & EXPENSE'!V25","v":1},1000,1001,1001]
[null,null,{"$f":"IF('3 INCOME & EXPENSE'!E26=0,\"\",'3 INCOME & EXPENSE'!E26)","v":"2014-08-05"},{"$f":"T('3 INCOME & EXPENSE'!G26)","v":"Doors, Trim, Handrail - Home Depot"},{"$f":"'3 INCOME & EXPENSE'!M26","v":{"v":1,"d":"1.0"}},{"$f":"'3 INCOME & EXPENSE'!N26","v":{"v":1689.32,"d":"$1,689.32"}},{"$f":"'3 INCOME & EXPENSE'!O26","v":{"v":1689.32,"d":"$1,689.32"}},128,{"$f":"'3 INCOME & EXPENSE'!V26","v":3},3000,3003,3003]
[null,null,{"$f":"IF('3 INCOME & EXPENSE'!E27=0,\"\",'3 INCOME & EXPENSE'!E27)","v":"2014-08-11"},{"$f":"T('3 INCOME & EXPENSE'!G27)","v":"Doors & Trim Installation - 1st Payment"},{"$f":"'3 INCOME & EXPENSE'!M27","v":{"v":1,"d":"1.0"}},{"$f":"'3 INCOME & EXPENSE'!N27","v":{"v":825,"d":"$825.00"}},{"$f":"'3 INCOME & EXPENSE'!O27","v":{"v":825,"d":"$825.00"}},129,{"$f":"'3 INCOME & EXPENSE'!V27","v":1},1000,1001,1001]
[null,null,{"$f":"IF('3 INCOME & EXPENSE'!E28=0,\"\",'3 INCOME & EXPENSE'!E28)","v":"2014-08-14"},{"$f":"T('3 INCOME & EXPENSE'!G28)","v":"Electrical Fixtures"},{"$f":"'3 INCOME & EXPENSE'!M28","v":{"v":1,"d":"1.0"}},{"$f":"'3 INCOME & EXPENSE'!N28","v":{"v":1360,"d":"$1,360.00"}},{"$f":"'3 INCOME & EXPENSE'!O28","v":{"v":1360,"d":"$1,360.00"}},130,{"$f":"'3 INCOME & EXPENSE'!V28","v":2},2000,2002,2002]
[null,null,{"$f":"IF('3 INCOME & EXPENSE'!E29=0,\"\",'3 INCOME & EXPENSE'!E29)","v":"2014-08-14"},{"$f":"T('3 INCOME & EXPENSE'!G29)","v":"Plumbing Fixtures"},{"$f":"'3 INCOME & EXPENSE'!M29","v":{"v":1,"d":"1.0"}},{"$f":"'3 INCOME & EXPENSE'!N29","v":{"v":2223.08,"d":"$2,223.08"}},{"$f":"'3 INCOME & EXPENSE'!O29","v":{"v":2223.08,"d":"$2,223.08"}},131,{"$f":"'3 INCOME & EXPENSE'!V29","v":4},4000,4004,4004]
[null,null,{"$f":"IF('3 INCOME & EXPENSE'!E30=0,\"\",'3 INCOME & EXPENSE'!E30)","v":"2014-08-14"},{"$f":"T('3 INCOME & EXPENSE'!G30)","v":"Tiling Materials"},{"$f":"'3 INCOME & EXPENSE'!M30","v":{"v":1,"d":"1.0"}},{"$f":"'3 INCOME & EXPENSE'!N30","v":{"v":1675.23,"d":"$1,675.23"}},{"$f":"'3 INCOME & EXPENSE'!O30","v":{"v":1675.23,"d":"$1,675.23"}},132,{"$f":"'3 INCOME & EXPENSE'!V30","v":4},4000,4004,4004]
[null,null,{"$f":"IF('3 INCOME & EXPENSE'!E31=0,\"\",'3 INCOME & EXPENSE'!E31)","v":"2014-08-15"},{"$f":"T('3 INCOME & EXPENSE'!G31)","v":"Doors & Trim Installation - 2ndPayment"},{"$f":"'3 INCOME & EXPENSE'!M31","v":{"v":1,"d":"1.0"}},{"$f":"'3 INCOME & EXPENSE'!N31","v":{"v":825,"d":"$825.00"}},{"$f":"'3 INCOME & EXPENSE'!O31","v":{"v":825,"d":"$825.00"}},133,{"$f":"'3 INCOME & EXPENSE'!V31","v":1},1000,1001,1001]
[null,null,{"$f":"IF('3 INCOME & EXPENSE'!E32=0,\"\",'3 INCOME & EXPENSE'!E32)","v":"2014-08-18"},{"$f":"T('3 INCOME & EXPENSE'!G32)","v":"Paint Materials"},{"$f":"'3 INCOME & EXPENSE'!M32","v":{"v":1,"d":"1.0"}},{"$f":"'3 INCOME & EXPENSE'!N32","v":{"v":2652.45,"d":"$2,652.45"}},{"$f":"'3 INCOME & EXPENSE'!O32","v":{"v":2652.45,"d":"$2,652.45"}},134,{"$f":"'3 INCOME & EXPENSE'!V32","v":2},2000,2002,2002]
[null,null,{"$f":"IF('3 INCOME & EXPENSE'!E33=0,\"\",'3 INCOME & EXPENSE'!E33)","v":"2014-08-18"},{"$f":"T('3 INCOME & EXPENSE'!G33)","v":"Exterior Painting - 1st Payment"},{"$f":"'3 INCOME & EXPENSE'!M33","v":{"v":1,"d":"1.0"}},{"$f":"'3 INCOME & EXPENSE'!N33","v":{"v":1250,"d":"$1,250.00"}},{"$f":"'3 INCOME & EXPENSE'!O33","v":{"v":1250,"d":"$1,250.00"}},135,{"$f":"'3 INCOME & EXPENSE'!V33","v":1},1000,1001,1001]
[null,null,{"$f":"IF('3 INCOME & EXPENSE'!E34=0,\"\",'3 INCOME & EXPENSE'!E34)","v":"2014-08-18"},{"$f":"T('3 INCOME & EXPENSE'!G34)","v":"Interior Painting - 1st Payment"},{"$f":"'3 INCOME & EXPENSE'!M34","v":{"v":1,"d":"1.0"}},{"$f":"'3 INCOME & EXPENSE'!N34","v":{"v":1000,"d":"$1,000.00"}},{"$f":"'3 INCOME & EXPENSE'!O34","v":{"v":1000,"d":"$1,000.00"}},136,{"$f":"'3 INCOME & EXPENSE'!V34","v":1},1000,1001,1001]
[null,null,{"$f":"IF('3 INCOME & EXPENSE'!E35=0,\"\",'3 INCOME & EXPENSE'!E35)","v":"2014-08-25"},{"$f":"T('3 INCOME & EXPENSE'!G35)","v":"Tiling - 1st Payment"},{"$f":"'3 INCOME & EXPENSE'!M35","v":{"v":1,"d":"1.0"}},{"$f":"'3 INCOME & EXPENSE'!N35","v":{"v":650,"d":"$650.00"}},{"$f":"'3 INCOME & EXPENSE'!O35","v":{"v":650,"d":"$650.00"}},137,{"$f":"'3 INCOME & EXPENSE'!V35","v":1},1000,1001,1001]
[null,null,{"$f":"IF('3 INCOME & EXPENSE'!E36=0,\"\",'3 INCOME & EXPENSE'!E36)","v":"2014-08-25"},{"$f":"T('3 INCOME & EXPENSE'!G36)","v":"Hardwood flooring materials"},{"$f":"'3 INCOME & EXPENSE'!M36","v":{"v":1,"d":"1.0"}},{"$f":"'3 INCOME & EXPENSE'!N36","v":{"v":567.2,"d":"$567.20"}},{"$f":"'3 INCOME & EXPENSE'!O36","v":{"v":567.2,"d":"$567.20"}},138,{"$f":"'3 INCOME & EXPENSE'!V36","v":4},4000,4004,4004]
[null,null,{"$f":"IF('3 INCOME & EXPENSE'!E37=0,\"\",'3 INCOME & EXPENSE'!E37)","v":"2014-08-25"},{"$f":"T('3 INCOME & EXPENSE'!G37)","v":"Dumpster Rental"},{"$f":"'3 INCOME & EXPENSE'!M37","v":{"v":1,"d":"1.0"}},{"$f":"'3 INCOME & EXPENSE'!N37","v":{"v":370,"d":"$370.00"}},{"$f":"'3 INCOME & EXPENSE'!O37","v":{"v":370,"d":"$370.00"}},139,{"$f":"'3 INCOME & EXPENSE'!V37","v":2},2000,2002,2002]
[null,null,{"$f":"IF('3 INCOME & EXPENSE'!E38=0,\"\",'3 INCOME & EXPENSE'!E38)","v":"2014-08-25"},{"$f":"T('3 INCOME & EXPENSE'!G38)","v":"Electrical Change order"},{"$f":"'3 INCOME & EXPENSE'!M38","v":{"v":1,"d":"1.0"}},{"$f":"'3 INCOME & EXPENSE'!N38","v":{"v":500,"d":"$500.00"}},{"$f":"'3 INCOME & EXPENSE'!O38","v":{"v":500,"d":"$500.00"}},140,{"$f":"'3 INCOME & EXPENSE'!V38","v":1},1000,1001,1001]
[null,null,{"$f":"IF('3 INCOME & EXPENSE'!E39=0,\"\",'3 INCOME & EXPENSE'!E39)","v":""},{"$f":"T('3 INCOME & EXPENSE'!G39)","v":""},{"$f":"'3 INCOME & EXPENSE'!M39","v":{"v":0,"d":"0.0"}},{"$f":"'3 INCOME & EXPENSE'!N39","v":{"v":0,"d":"$0.00"}},{"$f":"'3 INCOME & EXPENSE'!O39","v":{"v":0,"d":"$0.00"}},141,{"$f":"'3 INCOME & EXPENSE'!V39","v":100},26000,26100,0]
[null,null,{"$f":"IF('3 INCOME & EXPENSE'!E40=0,\"\",'3 INCOME & EXPENSE'!E40)","v":""},{"$f":"T('3 INCOME & EXPENSE'!G40)","v":""},{"$f":"'3 INCOME & EXPENSE'!M40","v":{"v":0,"d":"0.0"}},{"$f":"'3 INCOME & EXPENSE'!N40","v":{"v":0,"d":"$0.00"}},{"$f":"'3 INCOME & EXPENSE'!O40","v":{"v":0,"d":"$0.00"}},142,{"$f":"'3 INCOME & EXPENSE'!V40","v":100},26000,26100,0]
[null,null,{"$f":"IF('3 INCOME & EXPENSE'!E41=0,\"\",'3 INCOME & EXPENSE'!E41)","v":""},{"$f":"T('3 INCOME & EXPENSE'!G41)","v":""},{"$f":"'3 INCOME & EXPENSE'!M41","v":{"v":0,"d":"0.0"}},{"$f":"'3 INCOME & EXPENSE'!N41","v":{"v":0,"d":"$0.00"}},{"$f":"'3 INCOME & EXPENSE'!O41","v":{"v":0,"d":"$0.00"}},143,{"$f":"'3 INCOME & EXPENSE'!V41","v":100},26000,26100,0]
[null,null,{"$f":"IF('3 INCOME & EXPENSE'!E42=0,\"\",'3 INCOME & EXPENSE'!E42)","v":""},{"$f":"T('3 INCOME & EXPENSE'!G42)","v":""},{"$f":"'3 INCOME & EXPENSE'!M42","v":{"v":0,"d":"0.0"}},{"$f":"'3 INCOME & EXPENSE'!N42","v":{"v":0,"d":"$0.00"}},{"$f":"'3 INCOME & EXPENSE'!O42","v":{"v":0,"d":"$0.00"}},144,{"$f":"'3 INCOME & EXPENSE'!V42","v":100},26000,26100,0]
[null,null,{"$f":"IF('3 INCOME & EXPENSE'!E43=0,\"\",'3 INCOME & EXPENSE'!E43)","v":""},{"$f":"T('3 INCOME & EXPENSE'!G43)","v":""},{"$f":"'3 INCOME & EXPENSE'!M43","v":{"v":0,"d":"0.0"}},{"$f":"'3 INCOME & EXPENSE'!N43","v":{"v":0,"d":"$0.00"}},{"$f":"'3 INCOME & EXPENSE'!O43","v":{"v":0,"d":"$0.00"}},145,{"$f":"'3 INCOME & EXPENSE'!V43","v":100},26000,26100,0]
[null,null,{"$f":"IF('3 INCOME & EXPENSE'!E44=0,\"\",'3 INCOME & EXPENSE'!E44)","v":""},{"$f":"T('3 INCOME & EXPENSE'!G44)","v":""},{"$f":"'3 INCOME & EXPENSE'!M44","v":{"v":0,"d":"0.0"}},{"$f":"'3 INCOME & EXPENSE'!N44","v":{"v":0,"d":"$0.00"}},{"$f":"'3 INCOME & EXPENSE'!O44","v":{"v":0,"d":"$0.00"}},146,{"$f":"'3 INCOME & EXPENSE'!V44","v":100},26000,26100,0]
[null,null,{"$f":"IF('3 INCOME & EXPENSE'!E45=0,\"\",'3 INCOME & EXPENSE'!E45)","v":""},{"$f":"T('3 INCOME & EXPENSE'!G45)","v":""},{"$f":"'3 INCOME & EXPENSE'!M45","v":{"v":0,"d":"0.0"}},{"$f":"'3 INCOME & EXPENSE'!N45","v":{"v":0,"d":"$0.00"}},{"$f":"'3 INCOME & EXPENSE'!O45","v":{"v":0,"d":"$0.00"}},147,{"$f":"'3 INCOME & EXPENSE'!V45","v":100},26000,26100,0]
[null,null,{"$f":"IF('3 INCOME & EXPENSE'!E46=0,\"\",'3 INCOME & EXPENSE'!E46)","v":""},{"$f":"T('3 INCOME & EXPENSE'!G46)","v":""},{"$f":"'3 INCOME & EXPENSE'!M46","v":{"v":0,"d":"0.0"}},{"$f":"'3 INCOME & EXPENSE'!N46","v":{"v":0,"d":"$0.00"}},{"$f":"'3 INCOME & EXPENSE'!O46","v":{"v":0,"d":"$0.00"}},148,{"$f":"'3 INCOME & EXPENSE'!V46","v":100},26000,26100,0]
[null,null,{"$f":"IF('3 INCOME & EXPENSE'!E47=0,\"\",'3 INCOME & EXPENSE'!E47)","v":""},{"$f":"T('3 INCOME & EXPENSE'!G47)","v":""},{"$f":"'3 INCOME & EXPENSE'!M47","v":{"v":0,"d":"0.0"}},{"$f":"'3 INCOME & EXPENSE'!N47","v":{"v":0,"d":"$0.00"}},{"$f":"'3 INCOME & EXPENSE'!O47","v":{"v":0,"d":"$0.00"}},149,{"$f":"'3 INCOME & EXPENSE'!V47","v":100},26000,26100,0]
[null,null,{"$f":"IF('3 INCOME & EXPENSE'!E48=0,\"\",'3 INCOME & EXPENSE'!E48)","v":""},{"$f":"T('3 INCOME & EXPENSE'!G48)","v":""},{"$f":"'3 INCOME & EXPENSE'!M48","v":{"v":0,"d":"0.0"}},{"$f":"'3 INCOME & EXPENSE'!N48","v":{"v":0,"d":"$0.00"}},{"$f":"'3 INCOME & EXPENSE'!O48","v":{"v":0,"d":"$0.00"}},150,{"$f":"'3 INCOME & EXPENSE'!V48","v":100},26000,26100,0]
[null,null,{"$f":"IF('3 INCOME & EXPENSE'!E49=0,\"\",'3 INCOME & EXPENSE'!E49)","v":""},{"$f":"T('3 INCOME & EXPENSE'!G49)","v":""},{"$f":"'3 INCOME & EXPENSE'!M49","v":{"v":0,"d":"0.0"}},{"$f":"'3 INCOME & EXPENSE'!N49","v":{"v":0,"d":"$0.00"}},{"$f":"'3 INCOME & EXPENSE'!O49","v":{"v":0,"d":"$0.00"}},151,{"$f":"'3 INCOME & EXPENSE'!V49","v":100},26000,26100,0]
[null,null,{"$f":"IF('3 INCOME & EXPENSE'!E50=0,\"\",'3 INCOME & EXPENSE'!E50)","v":""},{"$f":"T('3 INCOME & EXPENSE'!G50)","v":""},{"$f":"'3 INCOME & EXPENSE'!M50","v":{"v":0,"d":"0.0"}},{"$f":"'3 INCOME & EXPENSE'!N50","v":{"v":0,"d":"$0.00"}},{"$f":"'3 INCOME & EXPENSE'!O50","v":{"v":0,"d":"$0.00"}},152,{"$f":"'3 INCOME & EXPENSE'!V50","v":100},26000,26100,0]
[null,null,{"$f":"IF('3 INCOME & EXPENSE'!E51=0,\"\",'3 INCOME & EXPENSE'!E51)","v":""},{"$f":"T('3 INCOME & EXPENSE'!G51)","v":""},{"$f":"'3 INCOME & EXPENSE'!M51","v":{"v":0,"d":"0.0"}},{"$f":"'3 INCOME & EXPENSE'!N51","v":{"v":0,"d":"$0.00"}},{"$f":"'3 INCOME & EXPENSE'!O51","v":{"v":0,"d":"$0.00"}},153,{"$f":"'3 INCOME & EXPENSE'!V51","v":100},26000,26100,0]
[null,null,{"$f":"IF('3 INCOME & EXPENSE'!E52=0,\"\",'3 INCOME & EXPENSE'!E52)","v":""},{"$f":"T('3 INCOME & EXPENSE'!G52)","v":""},{"$f":"'3 INCOME & EXPENSE'!M52","v":{"v":0,"d":"0.0"}},{"$f":"'3 INCOME & EXPENSE'!N52","v":{"v":0,"d":"$0.00"}},{"$f":"'3 INCOME & EXPENSE'!O52","v":{"v":0,"d":"$0.00"}},154,{"$f":"'3 INCOME & EXPENSE'!V52","v":100},26000,26100,0]
[null,null,{"$f":"IF('3 INCOME & EXPENSE'!E53=0,\"\",'3 INCOME & EXPENSE'!E53)","v":""},{"$f":"T('3 INCOME & EXPENSE'!G53)","v":""},{"$f":"'3 INCOME & EXPENSE'!M53","v":{"v":0,"d":"0.0"}},{"$f":"'3 INCOME & EXPENSE'!N53","v":{"v":0,"d":"$0.00"}},{"$f":"'3 INCOME & EXPENSE'!O53","v":{"v":0,"d":"$0.00"}},155,{"$f":"'3 INCOME & EXPENSE'!V53","v":100},26000,26100,0]
[null,null,{"$f":"IF('3 INCOME & EXPENSE'!E54=0,\"\",'3 INCOME & EXPENSE'!E54)","v":""},{"$f":"T('3 INCOME & EXPENSE'!G54)","v":""},{"$f":"'3 INCOME & EXPENSE'!M54","v":{"v":0,"d":"0.0"}},{"$f":"'3 INCOME & EXPENSE'!N54","v":{"v":0,"d":"$0.00"}},{"$f":"'3 INCOME & EXPENSE'!O54","v":{"v":0,"d":"$0.00"}},156,{"$f":"'3 INCOME & EXPENSE'!V54","v":100},26000,26100,0]
[null,null,{"$f":"IF('3 INCOME & EXPENSE'!E55=0,\"\",'3 INCOME & EXPENSE'!E55)","v":""},{"$f":"T('3 INCOME & EXPENSE'!G55)","v":""},{"$f":"'3 INCOME & EXPENSE'!M55","v":{"v":0,"d":"0.0"}},{"$f":"'3 INCOME & EXPENSE'!N55","v":{"v":0,"d":"$0.00"}},{"$f":"'3 INCOME & EXPENSE'!O55","v":{"v":0,"d":"$0.00"}},157,{"$f":"'3 INCOME & EXPENSE'!V55","v":100},26000,26100,0]
[null,null,{"$f":"IF('3 INCOME & EXPENSE'!E56=0,\"\",'3 INCOME & EXPENSE'!E56)","v":""},{"$f":"T('3 INCOME & EXPENSE'!G56)","v":""},{"$f":"'3 INCOME & EXPENSE'!M56","v":{"v":0,"d":"0.0"}},{"$f":"'3 INCOME & EXPENSE'!N56","v":{"v":0,"d":"$0.00"}},{"$f":"'3 INCOME & EXPENSE'!O56","v":{"v":0,"d":"$0.00"}},158,{"$f":"'3 INCOME & EXPENSE'!V56","v":100},26000,26100,0]
[null,null,{"$f":"IF('3 INCOME & EXPENSE'!E57=0,\"\",'3 INCOME & EXPENSE'!E57)","v":""},{"$f":"T('3 INCOME & EXPENSE'!G57)","v":""},{"$f":"'3 INCOME & EXPENSE'!M57","v":{"v":0,"d":"0.0"}},{"$f":"'3 INCOME & EXPENSE'!N57","v":{"v":0,"d":"$0.00"}},{"$f":"'3 INCOME & EXPENSE'!O57","v":{"v":0,"d":"$0.00"}},159,{"$f":"'3 INCOME & EXPENSE'!V57","v":100},26000,26100,0]
[null,null,{"$f":"IF('3 INCOME & EXPENSE'!E58=0,\"\",'3 INCOME & EXPENSE'!E58)","v":""},{"$f":"T('3 INCOME & EXPENSE'!G58)","v":""},{"$f":"'3 INCOME & EXPENSE'!M58","v":{"v":0,"d":"0.0"}},{"$f":"'3 INCOME & EXPENSE'!N58","v":{"v":0,"d":"$0.00"}},{"$f":"'3 INCOME & EXPENSE'!O58","v":{"v":0,"d":"$0.00"}},160,{"$f":"'3 INCOME & EXPENSE'!V58","v":100},26000,26100,0]
[null,null,{"$f":"IF('3 INCOME & EXPENSE'!E59=0,\"\",'3 INCOME & EXPENSE'!E59)","v":""},{"$f":"T('3 INCOME & EXPENSE'!G59)","v":""},{"$f":"'3 INCOME & EXPENSE'!M59","v":{"v":0,"d":"0.0"}},{"$f":"'3 INCOME & EXPENSE'!N59","v":{"v":0,"d":"$0.00"}},{"$f":"'3 INCOME & EXPENSE'!O59","v":{"v":0,"d":"$0.00"}},161,{"$f":"'3 INCOME & EXPENSE'!V59","v":100},26000,26100,0]
[null,null,{"$f":"IF('3 INCOME & EXPENSE'!E60=0,\"\",'3 INCOME & EXPENSE'!E60)","v":""},{"$f":"T('3 INCOME & EXPENSE'!G60)","v":""},{"$f":"'3 INCOME & EXPENSE'!M60","v":{"v":0,"d":"0.0"}},{"$f":"'3 INCOME & EXPENSE'!N60","v":{"v":0,"d":"$0.00"}},{"$f":"'3 INCOME & EXPENSE'!O60","v":{"v":0,"d":"$0.00"}},162,{"$f":"'3 INCOME & EXPENSE'!V60","v":100},26000,26100,0]
[null,null,{"$f":"IF('3 INCOME & EXPENSE'!E61=0,\"\",'3 INCOME & EXPENSE'!E61)","v":""},{"$f":"T('3 INCOME & EXPENSE'!G61)","v":""},{"$f":"'3 INCOME & EXPENSE'!M61","v":{"v":0,"d":"0.0"}},{"$f":"'3 INCOME & EXPENSE'!N61","v":{"v":0,"d":"$0.00"}},{"$f":"'3 INCOME & EXPENSE'!O61","v":{"v":0,"d":"$0.00"}},163,{"$f":"'3 INCOME & EXPENSE'!V61","v":100},26000,26100,0]
[null,null,{"$f":"IF('3 INCOME & EXPENSE'!E62=0,\"\",'3 INCOME & EXPENSE'!E62)","v":""},{"$f":"T('3 INCOME & EXPENSE'!G62)","v":""},{"$f":"'3 INCOME & EXPENSE'!M62","v":{"v":0,"d":"0.0"}},{"$f":"'3 INCOME & EXPENSE'!N62","v":{"v":0,"d":"$0.00"}},{"$f":"'3 INCOME & EXPENSE'!O62","v":{"v":0,"d":"$0.00"}},164,{"$f":"'3 INCOME & EXPENSE'!V62","v":100},26000,26100,0]
[null,null,{"$f":"IF('3 INCOME & EXPENSE'!E63=0,\"\",'3 INCOME & EXPENSE'!E63)","v":""},{"$f":"T('3 INCOME & EXPENSE'!G63)","v":""},{"$f":"'3 INCOME & EXPENSE'!M63","v":{"v":0,"d":"0.0"}},{"$f":"'3 INCOME & EXPENSE'!N63","v":{"v":0,"d":"$0.00"}},{"$f":"'3 INCOME & EXPENSE'!O63","v":{"v":0,"d":"$0.00"}},165,{"$f":"'3 INCOME & EXPENSE'!V63","v":100},26000,26100,0]
[null,null,{"$f":"IF('3 INCOME & EXPENSE'!E64=0,\"\",'3 INCOME & EXPENSE'!E64)","v":""},{"$f":"T('3 INCOME & EXPENSE'!G64)","v":""},{"$f":"'3 INCOME & EXPENSE'!M64","v":{"v":0,"d":"0.0"}},{"$f":"'3 INCOME & EXPENSE'!N64","v":{"v":0,"d":"$0.00"}},{"$f":"'3 INCOME & EXPENSE'!O64","v":{"v":0,"d":"$0.00"}},166,{"$f":"'3 INCOME & EXPENSE'!V64","v":100},26000,26100,0]
[null,null,{"$f":"IF('3 INCOME & EXPENSE'!E65=0,\"\",'3 INCOME & EXPENSE'!E65)","v":""},{"$f":"T('3 INCOME & EXPENSE'!G65)","v":""},{"$f":"'3 INCOME & EXPENSE'!M65","v":{"v":0,"d":"0.0"}},{"$f":"'3 INCOME & EXPENSE'!N65","v":{"v":0,"d":"$0.00"}},{"$f":"'3 INCOME & EXPENSE'!O65","v":{"v":0,"d":"$0.00"}},167,{"$f":"'3 INCOME & EXPENSE'!V65","v":100},26000,26100,0]
[null,null,{"$f":"IF('3 INCOME & EXPENSE'!E66=0,\"\",'3 INCOME & EXPENSE'!E66)","v":""},{"$f":"T('3 INCOME & EXPENSE'!G66)","v":""},{"$f":"'3 INCOME & EXPENSE'!M66","v":{"v":0,"d":"0.0"}},{"$f":"'3 INCOME & EXPENSE'!N66","v":{"v":0,"d":"$0.00"}},{"$f":"'3 INCOME & EXPENSE'!O66","v":{"v":0,"d":"$0.00"}},168,{"$f":"'3 INCOME & EXPENSE'!V66","v":100},26000,{"$f":"I179+J179","v":26100},0]
[null,null,{"$f":"IF('3 INCOME & EXPENSE'!E67=0,\"\",'3 INCOME & EXPENSE'!E67)","v":""},{"$f":"T('3 INCOME & EXPENSE'!G67)","v":""},{"$f":"'3 INCOME & EXPENSE'!M67","v":{"v":0,"d":"0.0"}},{"$f":"'3 INCOME & EXPENSE'!N67","v":{"v":0,"d":"$0.00"}},{"$f":"'3 INCOME & EXPENSE'!O67","v":{"v":0,"d":"$0.00"}},169,{"$f":"'3 INCOME & EXPENSE'!V67","v":100},26000,26100,0]
[null,null,{"$f":"IF('3 INCOME & EXPENSE'!E68=0,\"\",'3 INCOME & EXPENSE'!E68)","v":""},{"$f":"T('3 INCOME & EXPENSE'!G68)","v":""},{"$f":"'3 INCOME & EXPENSE'!M68","v":{"v":0,"d":"0.0"}},{"$f":"'3 INCOME & EXPENSE'!N68","v":{"v":0,"d":"$0.00"}},{"$f":"'3 INCOME & EXPENSE'!O68","v":{"v":0,"d":"$0.00"}},170,{"$f":"'3 INCOME & EXPENSE'!V68","v":100},26000,26100,0]
[null,null,{"$f":"IF('3 INCOME & EXPENSE'!E69=0,\"\",'3 INCOME & EXPENSE'!E69)","v":""},{"$f":"T('3 INCOME & EXPENSE'!G69)","v":""},{"$f":"'3 INCOME & EXPENSE'!M69","v":{"v":0,"d":"0.0"}},{"$f":"'3 INCOME & EXPENSE'!N69","v":{"v":0,"d":"$0.00"}},{"$f":"'3 INCOME & EXPENSE'!O69","v":{"v":0,"d":"$0.00"}},171,{"$f":"'3 INCOME & EXPENSE'!V69","v":100},26000,26100,0]
[null,null,{"$f":"IF('3 INCOME & EXPENSE'!E70=0,\"\",'3 INCOME & EXPENSE'!E70)","v":""},{"$f":"T('3 INCOME & EXPENSE'!G70)","v":""},{"$f":"'3 INCOME & EXPENSE'!M70","v":{"v":0,"d":"0.0"}},{"$f":"'3 INCOME & EXPENSE'!N70","v":{"v":0,"d":"$0.00"}},{"$f":"'3 INCOME & EXPENSE'!O70","v":{"v":0,"d":"$0.00"}},172,{"$f":"'3 INCOME & EXPENSE'!V70","v":100},26000,26100,0]
[null,null,{"$f":"IF('3 INCOME & EXPENSE'!E71=0,\"\",'3 INCOME & EXPENSE'!E71)","v":""},{"$f":"T('3 INCOME & EXPENSE'!G71)","v":""},{"$f":"'3 INCOME & EXPENSE'!M71","v":{"v":0,"d":"0.0"}},{"$f":"'3 INCOME & EXPENSE'!N71","v":{"v":0,"d":"$0.00"}},{"$f":"'3 INCOME & EXPENSE'!O71","v":{"v":0,"d":"$0.00"}},173,{"$f":"'3 INCOME & EXPENSE'!V71","v":100},26000,26100,0]
[null,null,{"$f":"IF('3 INCOME & EXPENSE'!E72=0,\"\",'3 INCOME & EXPENSE'!E72)","v":""},{"$f":"T('3 INCOME & EXPENSE'!G72)","v":""},{"$f":"'3 INCOME & EXPENSE'!M72","v":{"v":0,"d":"0.0"}},{"$f":"'3 INCOME & EXPENSE'!N72","v":{"v":0,"d":"$0.00"}},{"$f":"'3 INCOME & EXPENSE'!O72","v":{"v":0,"d":"$0.00"}},174,{"$f":"'3 INCOME & EXPENSE'!V72","v":100},26000,26100,0]
[null,null,{"$f":"IF('3 INCOME & EXPENSE'!E73=0,\"\",'3 INCOME & EXPENSE'!E73)","v":""},{"$f":"T('3 INCOME & EXPENSE'!G73)","v":""},{"$f":"'3 INCOME & EXPENSE'!M73","v":{"v":0,"d":"0.0"}},{"$f":"'3 INCOME & EXPENSE'!N73","v":{"v":0,"d":"$0.00"}},{"$f":"'3 INCOME & EXPENSE'!O73","v":{"v":0,"d":"$0.00"}},175,{"$f":"'3 INCOME & EXPENSE'!V73","v":100},26000,26100,0]
[null,null,{"$f":"IF('3 INCOME & EXPENSE'!E74=0,\"\",'3 INCOME & EXPENSE'!E74)","v":""},{"$f":"T('3 INCOME & EXPENSE'!G74)","v":""},{"$f":"'3 INCOME & EXPENSE'!M74","v":{"v":0,"d":"0.0"}},{"$f":"'3 INCOME & EXPENSE'!N74","v":{"v":0,"d":"$0.00"}},{"$f":"'3 INCOME & EXPENSE'!O74","v":{"v":0,"d":"$0.00"}},176,{"$f":"'3 INCOME & EXPENSE'!V74","v":100},26000,26100,0]
[null,null,{"$f":"IF('3 INCOME & EXPENSE'!E75=0,\"\",'3 INCOME & EXPENSE'!E75)","v":""},{"$f":"T('3 INCOME & EXPENSE'!G75)","v":""},{"$f":"'3 INCOME & EXPENSE'!M75","v":{"v":0,"d":"0.0"}},{"$f":"'3 INCOME & EXPENSE'!N75","v":{"v":0,"d":"$0.00"}},{"$f":"'3 INCOME & EXPENSE'!O75","v":{"v":0,"d":"$0.00"}},177,{"$f":"'3 INCOME & EXPENSE'!V75","v":100},26000,26100,0]
[null,null,{"$f":"IF('3 INCOME & EXPENSE'!E76=0,\"\",'3 INCOME & EXPENSE'!E76)","v":""},{"$f":"T('3 INCOME & EXPENSE'!G76)","v":""},{"$f":"'3 INCOME & EXPENSE'!M76","v":{"v":0,"d":"0.0"}},{"$f":"'3 INCOME & EXPENSE'!N76","v":{"v":0,"d":"$0.00"}},{"$f":"'3 INCOME & EXPENSE'!O76","v":{"v":0,"d":"$0.00"}},178,{"$f":"'3 INCOME & EXPENSE'!V76","v":100},26000,26100,0]
[null,null,{"$f":"IF('3 INCOME & EXPENSE'!E77=0,\"\",'3 INCOME & EXPENSE'!E77)","v":""},{"$f":"T('3 INCOME & EXPENSE'!G77)","v":""},{"$f":"'3 INCOME & EXPENSE'!M77","v":{"v":0,"d":"0.0"}},{"$f":"'3 INCOME & EXPENSE'!N77","v":{"v":0,"d":"$0.00"}},{"$f":"'3 INCOME & EXPENSE'!O77","v":{"v":0,"d":"$0.00"}},179,{"$f":"'3 INCOME & EXPENSE'!V77","v":100},26000,26100,0]
[null,null,{"$f":"IF('3 INCOME & EXPENSE'!E78=0,\"\",'3 INCOME & EXPENSE'!E78)","v":""},{"$f":"T('3 INCOME & EXPENSE'!G78)","v":""},{"$f":"'3 INCOME & EXPENSE'!M78","v":{"v":0,"d":"0.0"}},{"$f":"'3 INCOME & EXPENSE'!N78","v":{"v":0,"d":"$0.00"}},{"$f":"'3 INCOME & EXPENSE'!O78","v":{"v":0,"d":"$0.00"}},180,{"$f":"'3 INCOME & EXPENSE'!V78","v":100},{"$f":"VLOOKUP(I191,$I$880:$J$905,2)","v":26000},26100,{"$f":"K191*E191","v":0}]
[null,null,{"$f":"IF('3 INCOME & EXPENSE'!E79=0,\"\",'3 INCOME & EXPENSE'!E79)","v":""},{"$f":"T('3 INCOME & EXPENSE'!G79)","v":""},{"$f":"'3 INCOME & EXPENSE'!M79","v":{"v":0,"d":"0.0"}},{"$f":"'3 INCOME & EXPENSE'!N79","v":{"v":0,"d":"$0.00"}},{"$f":"'3 INCOME & EXPENSE'!O79","v":{"v":0,"d":"$0.00"}},181,{"$f":"'3 INCOME & EXPENSE'!V79","v":100},26000,26100,0]
[null,null,{"$f":"IF('3 INCOME & EXPENSE'!E80=0,\"\",'3 INCOME & EXPENSE'!E80)","v":""},{"$f":"T('3 INCOME & EXPENSE'!G80)","v":""},{"$f":"'3 INCOME & EXPENSE'!M80","v":{"v":0,"d":"0.0"}},{"$f":"'3 INCOME & EXPENSE'!N80","v":{"v":0,"d":"$0.00"}},{"$f":"'3 INCOME & EXPENSE'!O80","v":{"v":0,"d":"$0.00"}},182,{"$f":"'3 INCOME & EXPENSE'!V80","v":100},26000,26100,0]
[null,null,{"$f":"IF('3 INCOME & EXPENSE'!E81=0,\"\",'3 INCOME & EXPENSE'!E81)","v":""},{"$f":"T('3 INCOME & EXPENSE'!G81)","v":""},{"$f":"'3 INCOME & EXPENSE'!M81","v":{"v":0,"d":"0.0"}},{"$f":"'3 INCOME & EXPENSE'!N81","v":{"v":0,"d":"$0.00"}},{"$f":"'3 INCOME & EXPENSE'!O81","v":{"v":0,"d":"$0.00"}},183,{"$f":"'3 INCOME & EXPENSE'!V81","v":100},26000,26100,0]
[null,null,{"$f":"IF('3 INCOME & EXPENSE'!E82=0,\"\",'3 INCOME & EXPENSE'!E82)","v":""},{"$f":"T('3 INCOME & EXPENSE'!G82)","v":""},{"$f":"'3 INCOME & EXPENSE'!M82","v":{"v":0,"d":"0.0"}},{"$f":"'3 INCOME & EXPENSE'!N82","v":{"v":0,"d":"$0.00"}},{"$f":"'3 INCOME & EXPENSE'!O82","v":{"v":0,"d":"$0.00"}},184,{"$f":"'3 INCOME & EXPENSE'!V82","v":100},26000,26100,0]
[null,null,{"$f":"IF('3 INCOME & EXPENSE'!E83=0,\"\",'3 INCOME & EXPENSE'!E83)","v":""},{"$f":"T('3 INCOME & EXPENSE'!G83)","v":""},{"$f":"'3 INCOME & EXPENSE'!M83","v":{"v":0,"d":"0.0"}},{"$f":"'3 INCOME & EXPENSE'!N83","v":{"v":0,"d":"$0.00"}},{"$f":"'3 INCOME & EXPENSE'!O83","v":{"v":0,"d":"$0.00"}},185,{"$f":"'3 INCOME & EXPENSE'!V83","v":100},26000,26100,0]
[null,null,{"$f":"IF('3 INCOME & EXPENSE'!E84=0,\"\",'3 INCOME & EXPENSE'!E84)","v":""},{"$f":"T('3 INCOME & EXPENSE'!G84)","v":""},{"$f":"'3 INCOME & EXPENSE'!M84","v":{"v":0,"d":"0.0"}},{"$f":"'3 INCOME & EXPENSE'!N84","v":{"v":0,"d":"$0.00"}},{"$f":"'3 INCOME & EXPENSE'!O84","v":{"v":0,"d":"$0.00"}},186,{"$f":"'3 INCOME & EXPENSE'!V84","v":100},26000,26100,0]
[null,null,{"$f":"IF('3 INCOME & EXPENSE'!E85=0,\"\",'3 INCOME & EXPENSE'!E85)","v":""},{"$f":"T('3 INCOME & EXPENSE'!G85)","v":""},{"$f":"'3 INCOME & EXPENSE'!M85","v":{"v":0,"d":"0.0"}},{"$f":"'3 INCOME & EXPENSE'!N85","v":{"v":0,"d":"$0.00"}},{"$f":"'3 INCOME & EXPENSE'!O85","v":{"v":0,"d":"$0.00"}},187,{"$f":"'3 INCOME & EXPENSE'!V85","v":100},26000,26100,0]
[null,null,{"$f":"IF('3 INCOME & EXPENSE'!E86=0,\"\",'3 INCOME & EXPENSE'!E86)","v":""},{"$f":"T('3 INCOME & EXPENSE'!G86)","v":""},{"$f":"'3 INCOME & EXPENSE'!M86","v":{"v":0,"d":"0.0"}},{"$f":"'3 INCOME & EXPENSE'!N86","v":{"v":0,"d":"$0.00"}},{"$f":"'3 INCOME & EXPENSE'!O86","v":{"v":0,"d":"$0.00"}},188,{"$f":"'3 INCOME & EXPENSE'!V86","v":100},26000,26100,0]
[null,null,{"$f":"IF('3 INCOME & EXPENSE'!E87=0,\"\",'3 INCOME & EXPENSE'!E87)","v":""},{"$f":"T('3 INCOME & EXPENSE'!G87)","v":""},{"$f":"'3 INCOME & EXPENSE'!M87","v":{"v":0,"d":"0.0"}},{"$f":"'3 INCOME & EXPENSE'!N87","v":{"v":0,"d":"$0.00"}},{"$f":"'3 INCOME & EXPENSE'!O87","v":{"v":0,"d":"$0.00"}},189,{"$f":"'3 INCOME & EXPENSE'!V87","v":100},26000,26100,0]
[null,null,{"$f":"IF('3 INCOME & EXPENSE'!E88=0,\"\",'3 INCOME & EXPENSE'!E88)","v":""},{"$f":"T('3 INCOME & EXPENSE'!G88)","v":""},{"$f":"'3 INCOME & EXPENSE'!M88","v":{"v":0,"d":"0.0"}},{"$f":"'3 INCOME & EXPENSE'!N88","v":{"v":0,"d":"$0.00"}},{"$f":"'3 INCOME & EXPENSE'!O88","v":{"v":0,"d":"$0.00"}},190,{"$f":"'3 INCOME & EXPENSE'!V88","v":100},26000,26100,0]
[null,null,{"$f":"IF('3 INCOME & EXPENSE'!E89=0,\"\",'3 INCOME & EXPENSE'!E89)","v":""},{"$f":"T('3 INCOME & EXPENSE'!G89)","v":""},{"$f":"'3 INCOME & EXPENSE'!M89","v":{"v":0,"d":"0.0"}},{"$f":"'3 INCOME & EXPENSE'!N89","v":{"v":0,"d":"$0.00"}},{"$f":"'3 INCOME & EXPENSE'!O89","v":{"v":0,"d":"$0.00"}},191,{"$f":"'3 INCOME & EXPENSE'!V89","v":100},26000,26100,0]
[null,null,{"$f":"IF('3 INCOME & EXPENSE'!E90=0,\"\",'3 INCOME & EXPENSE'!E90)","v":""},{"$f":"T('3 INCOME & EXPENSE'!G90)","v":""},{"$f":"'3 INCOME & EXPENSE'!M90","v":{"v":0,"d":"0.0"}},{"$f":"'3 INCOME & EXPENSE'!N90","v":{"v":0,"d":"$0.00"}},{"$f":"'3 INCOME & EXPENSE'!O90","v":{"v":0,"d":"$0.00"}},192,{"$f":"'3 INCOME & EXPENSE'!V90","v":100},26000,26100,0]
[null,null,{"$f":"IF('3 INCOME & EXPENSE'!E91=0,\"\",'3 INCOME & EXPENSE'!E91)","v":""},{"$f":"T('3 INCOME & EXPENSE'!G91)","v":""},{"$f":"'3 INCOME & EXPENSE'!M91","v":{"v":0,"d":"0.0"}},{"$f":"'3 INCOME & EXPENSE'!N91","v":{"v":0,"d":"$0.00"}},{"$f":"'3 INCOME & EXPENSE'!O91","v":{"v":0,"d":"$0.00"}},193,{"$f":"'3 INCOME & EXPENSE'!V91","v":100},26000,26100,0]
[null,null,{"$f":"IF('3 INCOME & EXPENSE'!E92=0,\"\",'3 INCOME & EXPENSE'!E92)","v":""},{"$f":"T('3 INCOME & EXPENSE'!G92)","v":""},{"$f":"'3 INCOME & EXPENSE'!M92","v":{"v":0,"d":"0.0"}},{"$f":"'3 INCOME & EXPENSE'!N92","v":{"v":0,"d":"$0.00"}},{"$f":"'3 INCOME & EXPENSE'!O92","v":{"v":0,"d":"$0.00"}},194,{"$f":"'3 INCOME & EXPENSE'!V92","v":100},26000,26100,0]
[null,null,{"$f":"IF('3 INCOME & EXPENSE'!E93=0,\"\",'3 INCOME & EXPENSE'!E93)","v":""},{"$f":"T('3 INCOME & EXPENSE'!G93)","v":""},{"$f":"'3 INCOME & EXPENSE'!M93","v":{"v":0,"d":"0.0"}},{"$f":"'3 INCOME & EXPENSE'!N93","v":{"v":0,"d":"$0.00"}},{"$f":"'3 INCOME & EXPENSE'!O93","v":{"v":0,"d":"$0.00"}},195,{"$f":"'3 INCOME & EXPENSE'!V93","v":100},26000,26100,0]
[null,null,{"$f":"IF('3 INCOME & EXPENSE'!E94=0,\"\",'3 INCOME & EXPENSE'!E94)","v":""},{"$f":"T('3 INCOME & EXPENSE'!G94)","v":""},{"$f":"'3 INCOME & EXPENSE'!M94","v":{"v":0,"d":"0.0"}},{"$f":"'3 INCOME & EXPENSE'!N94","v":{"v":0,"d":"$0.00"}},{"$f":"'3 INCOME & EXPENSE'!O94","v":{"v":0,"d":"$0.00"}},196,{"$f":"'3 INCOME & EXPENSE'!V94","v":100},26000,26100,0]
[null,null,{"$f":"IF('3 INCOME & EXPENSE'!E95=0,\"\",'3 INCOME & EXPENSE'!E95)","v":""},{"$f":"T('3 INCOME & EXPENSE'!G95)","v":""},{"$f":"'3 INCOME & EXPENSE'!M95","v":{"v":0,"d":"0.0"}},{"$f":"'3 INCOME & EXPENSE'!N95","v":{"v":0,"d":"$0.00"}},{"$f":"'3 INCOME & EXPENSE'!O95","v":{"v":0,"d":"$0.00"}},197,{"$f":"'3 INCOME & EXPENSE'!V95","v":100},26000,26100,0]
[null,null,{"$f":"IF('3 INCOME & EXPENSE'!E96=0,\"\",'3 INCOME & EXPENSE'!E96)","v":""},{"$f":"T('3 INCOME & EXPENSE'!G96)","v":""},{"$f":"'3 INCOME & EXPENSE'!M96","v":{"v":0,"d":"0.0"}},{"$f":"'3 INCOME & EXPENSE'!N96","v":{"v":0,"d":"$0.00"}},{"$f":"'3 INCOME & EXPENSE'!O96","v":{"v":0,"d":"$0.00"}},198,{"$f":"'3 INCOME & EXPENSE'!V96","v":100},26000,26100,0]
[null,null,{"$f":"IF('3 INCOME & EXPENSE'!E97=0,\"\",'3 INCOME & EXPENSE'!E97)","v":""},{"$f":"T('3 INCOME & EXPENSE'!G97)","v":""},{"$f":"'3 INCOME & EXPENSE'!M97","v":{"v":0,"d":"0.0"}},{"$f":"'3 INCOME & EXPENSE'!N97","v":{"v":0,"d":"$0.00"}},{"$f":"'3 INCOME & EXPENSE'!O97","v":{"v":0,"d":"$0.00"}},199,{"$f":"'3 INCOME & EXPENSE'!V97","v":100},26000,26100,0]
[null,null,{"$f":"IF('3 INCOME & EXPENSE'!E98=0,\"\",'3 INCOME & EXPENSE'!E98)","v":""},{"$f":"T('3 INCOME & EXPENSE'!G98)","v":""},{"$f":"'3 INCOME & EXPENSE'!M98","v":{"v":0,"d":"0.0"}},{"$f":"'3 INCOME & EXPENSE'!N98","v":{"v":0,"d":"$0.00"}},{"$f":"'3 INCOME & EXPENSE'!O98","v":{"v":0,"d":"$0.00"}},200,{"$f":"'3 INCOME & EXPENSE'!V98","v":100},26000,26100,0]
[null,null,{"$f":"IF('3 INCOME & EXPENSE'!E99=0,\"\",'3 INCOME & EXPENSE'!E99)","v":""},{"$f":"T('3 INCOME & EXPENSE'!G99)","v":""},{"$f":"'3 INCOME & EXPENSE'!M99","v":{"v":0,"d":"0.0"}},{"$f":"'3 INCOME & EXPENSE'!N99","v":{"v":0,"d":"$0.00"}},{"$f":"'3 INCOME & EXPENSE'!O99","v":{"v":0,"d":"$0.00"}},201,{"$f":"'3 INCOME & EXPENSE'!V99","v":100},26000,26100,0]
[null,null,{"$f":"IF('3 INCOME & EXPENSE'!E100=0,\"\",'3 INCOME & EXPENSE'!E100)","v":""},{"$f":"T('3 INCOME & EXPENSE'!G100)","v":""},{"$f":"'3 INCOME & EXPENSE'!M100","v":{"v":0,"d":"0.0"}},{"$f":"'3 INCOME & EXPENSE'!N100","v":{"v":0,"d":"$0.00"}},{"$f":"'3 INCOME & EXPENSE'!O100","v":{"v":0,"d":"$0.00"}},202,{"$f":"'3 INCOME & EXPENSE'!V100","v":100},26000,26100,0]
[null,null,{"$f":"IF('3 INCOME & EXPENSE'!E101=0,\"\",'3 INCOME & EXPENSE'!E101)","v":""},{"$f":"T('3 INCOME & EXPENSE'!G101)","v":""},{"$f":"'3 INCOME & EXPENSE'!M101","v":{"v":0,"d":"0.0"}},{"$f":"'3 INCOME & EXPENSE'!N101","v":{"v":0,"d":"$0.00"}},{"$f":"'3 INCOME & EXPENSE'!O101","v":{"v":0,"d":"$0.00"}},203,{"$f":"'3 INCOME & EXPENSE'!V101","v":100},26000,26100,0]
[null,null,{"$f":"IF('3 INCOME & EXPENSE'!E102=0,\"\",'3 INCOME & EXPENSE'!E102)","v":""},{"$f":"T('3 INCOME & EXPENSE'!G102)","v":""},{"$f":"'3 INCOME & EXPENSE'!M102","v":{"v":0,"d":"0.0"}},{"$f":"'3 INCOME & EXPENSE'!N102","v":{"v":0,"d":"$0.00"}},{"$f":"'3 INCOME & EXPENSE'!O102","v":{"v":0,"d":"$0.00"}},204,{"$f":"'3 INCOME & EXPENSE'!V102","v":100},26000,26100,0]
[null,null,{"$f":"IF('3 INCOME & EXPENSE'!E103=0,\"\",'3 INCOME & EXPENSE'!E103)","v":""},{"$f":"T('3 INCOME & EXPENSE'!G103)","v":""},{"$f":"'3 INCOME & EXPENSE'!M103","v":{"v":0,"d":"0.0"}},{"$f":"'3 INCOME & EXPENSE'!N103","v":{"v":0,"d":"$0.00"}},{"$f":"'3 INCOME & EXPENSE'!O103","v":{"v":0,"d":"$0.00"}},205,{"$f":"'3 INCOME & EXPENSE'!V103","v":100},26000,26100,0]
[null,null,{"$f":"IF('3 INCOME & EXPENSE'!E104=0,\"\",'3 INCOME & EXPENSE'!E104)","v":""},{"$f":"T('3 INCOME & EXPENSE'!G104)","v":""},{"$f":"'3 INCOME & EXPENSE'!M104","v":{"v":0,"d":"0.0"}},{"$f":"'3 INCOME & EXPENSE'!N104","v":{"v":0,"d":"$0.00"}},{"$f":"'3 INCOME & EXPENSE'!O104","v":{"v":0,"d":"$0.00"}},206,{"$f":"'3 INCOME & EXPENSE'!V104","v":100},26000,26100,0]
[null,null,{"$f":"IF('3 INCOME & EXPENSE'!E105=0,\"\",'3 INCOME & EXPENSE'!E105)","v":""},{"$f":"T('3 INCOME & EXPENSE'!G105)","v":""},{"$f":"'3 INCOME & EXPENSE'!M105","v":{"v":0,"d":"0.0"}},{"$f":"'3 INCOME & EXPENSE'!N105","v":{"v":0,"d":"$0.00"}},{"$f":"'3 INCOME & EXPENSE'!O105","v":{"v":0,"d":"$0.00"}},207,{"$f":"'3 INCOME & EXPENSE'!V105","v":100},26000,26100,0]
[null,null,{"$f":"IF('3 INCOME & EXPENSE'!E106=0,\"\",'3 INCOME & EXPENSE'!E106)","v":""},{"$f":"T('3 INCOME & EXPENSE'!G106)","v":""},{"$f":"'3 INCOME & EXPENSE'!M106","v":{"v":0,"d":"0.0"}},{"$f":"'3 INCOME & EXPENSE'!N106","v":{"v":0,"d":"$0.00"}},{"$f":"'3 INCOME & EXPENSE'!O106","v":{"v":0,"d":"$0.00"}},208,{"$f":"'3 INCOME & EXPENSE'!V106","v":100},26000,26100,0]
[null,null,{"$f":"IF('3 INCOME & EXPENSE'!E107=0,\"\",'3 INCOME & EXPENSE'!E107)","v":""},{"$f":"T('3 INCOME & EXPENSE'!G107)","v":""},{"$f":"'3 INCOME & EXPENSE'!M107","v":{"v":0,"d":"0.0"}},{"$f":"'3 INCOME & EXPENSE'!N107","v":{"v":0,"d":"$0.00"}},{"$f":"'3 INCOME & EXPENSE'!O107","v":{"v":0,"d":"$0.00"}},209,{"$f":"'3 INCOME & EXPENSE'!V107","v":100},26000,26100,0]
[null,null,{"$f":"IF('3 INCOME & EXPENSE'!E108=0,\"\",'3 INCOME & EXPENSE'!E108)","v":""},{"$f":"T('3 INCOME & EXPENSE'!G108)","v":""},{"$f":"'3 INCOME & EXPENSE'!M108","v":{"v":0,"d":"0.0"}},{"$f":"'3 INCOME & EXPENSE'!N108","v":{"v":0,"d":"$0.00"}},{"$f":"'3 INCOME & EXPENSE'!O108","v":{"v":0,"d":"$0.00"}},210,{"$f":"'3 INCOME & EXPENSE'!V108","v":100},26000,26100,0]
[null,null,{"$f":"IF('3 INCOME & EXPENSE'!E109=0,\"\",'3 INCOME & EXPENSE'!E109)","v":""},{"$f":"T('3 INCOME & EXPENSE'!G109)","v":""},{"$f":"'3 INCOME & EXPENSE'!M109","v":{"v":0,"d":"0.0"}},{"$f":"'3 INCOME & EXPENSE'!N109","v":{"v":0,"d":"$0.00"}},{"$f":"'3 INCOME & EXPENSE'!O109","v":{"v":0,"d":"$0.00"}},211,{"$f":"'3 INCOME & EXPENSE'!V109","v":100},26000,26100,0]
[null,null,{"$f":"IF('3 INCOME & EXPENSE'!E110=0,\"\",'3 INCOME & EXPENSE'!E110)","v":""},{"$f":"T('3 INCOME & EXPENSE'!G110)","v":""},{"$f":"'3 INCOME & EXPENSE'!M110","v":{"v":0,"d":"0.0"}},{"$f":"'3 INCOME & EXPENSE'!N110","v":{"v":0,"d":"$0.00"}},{"$f":"'3 INCOME & EXPENSE'!O110","v":{"v":0,"d":"$0.00"}},212,{"$f":"'3 INCOME & EXPENSE'!V110","v":100},26000,26100,0]
[null,null,{"$f":"IF('3 INCOME & EXPENSE'!E111=0,\"\",'3 INCOME & EXPENSE'!E111)","v":""},{"$f":"T('3 INCOME & EXPENSE'!G111)","v":""},{"$f":"'3 INCOME & EXPENSE'!M111","v":{"v":0,"d":"0.0"}},{"$f":"'3 INCOME & EXPENSE'!N111","v":{"v":0,"d":"$0.00"}},{"$f":"'3 INCOME & EXPENSE'!O111","v":{"v":0,"d":"$0.00"}},213,{"$f":"'3 INCOME & EXPENSE'!V111","v":100},26000,26100,0]
[null,null,{"$f":"IF('3 INCOME & EXPENSE'!E112=0,\"\",'3 INCOME & EXPENSE'!E112)","v":""},{"$f":"T('3 INCOME & EXPENSE'!G112)","v":""},{"$f":"'3 INCOME & EXPENSE'!M112","v":{"v":0,"d":"0.0"}},{"$f":"'3 INCOME & EXPENSE'!N112","v":{"v":0,"d":"$0.00"}},{"$f":"'3 INCOME & EXPENSE'!O112","v":{"v":0,"d":"$0.00"}},214,{"$f":"'3 INCOME & EXPENSE'!V112","v":100},26000,26100,0]
[null,null,{"$f":"IF('3 INCOME & EXPENSE'!E113=0,\"\",'3 INCOME & EXPENSE'!E113)","v":""},{"$f":"T('3 INCOME & EXPENSE'!G113)","v":""},{"$f":"'3 INCOME & EXPENSE'!M113","v":{"v":0,"d":"0.0"}},{"$f":"'3 INCOME & EXPENSE'!N113","v":{"v":0,"d":"$0.00"}},{"$f":"'3 INCOME & EXPENSE'!O113","v":{"v":0,"d":"$0.00"}},215,{"$f":"'3 INCOME & EXPENSE'!V113","v":100},26000,26100,0]
[null,null,{"$f":"IF('3 INCOME & EXPENSE'!E114=0,\"\",'3 INCOME & EXPENSE'!E114)","v":""},{"$f":"T('3 INCOME & EXPENSE'!G114)","v":""},{"$f":"'3 INCOME & EXPENSE'!M114","v":{"v":0,"d":"0.0"}},{"$f":"'3 INCOME & EXPENSE'!N114","v":{"v":0,"d":"$0.00"}},{"$f":"'3 INCOME & EXPENSE'!O114","v":{"v":0,"d":"$0.00"}},216,{"$f":"'3 INCOME & EXPENSE'!V114","v":100},26000,26100,0]
[null,null,{"$f":"IF('3 INCOME & EXPENSE'!E115=0,\"\",'3 INCOME & EXPENSE'!E115)","v":""},{"$f":"T('3 INCOME & EXPENSE'!G115)","v":""},{"$f":"'3 INCOME & EXPENSE'!M115","v":{"v":0,"d":"0.0"}},{"$f":"'3 INCOME & EXPENSE'!N115","v":{"v":0,"d":"$0.00"}},{"$f":"'3 INCOME & EXPENSE'!O115","v":{"v":0,"d":"$0.00"}},217,{"$f":"'3 INCOME & EXPENSE'!V115","v":100},26000,26100,0]
[null,null,{"$f":"IF('3 INCOME & EXPENSE'!E116=0,\"\",'3 INCOME & EXPENSE'!E116)","v":""},{"$f":"T('3 INCOME & EXPENSE'!G116)","v":""},{"$f":"'3 INCOME & EXPENSE'!M116","v":{"v":0,"d":"0.0"}},{"$f":"'3 INCOME & EXPENSE'!N116","v":{"v":0,"d":"$0.00"}},{"$f":"'3 INCOME & EXPENSE'!O116","v":{"v":0,"d":"$0.00"}},218,{"$f":"'3 INCOME & EXPENSE'!V116","v":100},26000,26100,0]
[null,null,{"$f":"IF('3 INCOME & EXPENSE'!E117=0,\"\",'3 INCOME & EXPENSE'!E117)","v":""},{"$f":"T('3 INCOME & EXPENSE'!G117)","v":""},{"$f":"'3 INCOME & EXPENSE'!M117","v":{"v":0,"d":"0.0"}},{"$f":"'3 INCOME & EXPENSE'!N117","v":{"v":0,"d":"$0.00"}},{"$f":"'3 INCOME & EXPENSE'!O117","v":{"v":0,"d":"$0.00"}},219,{"$f":"'3 INCOME & EXPENSE'!V117","v":100},26000,26100,0]
[null,null,{"$f":"IF('3 INCOME & EXPENSE'!E118=0,\"\",'3 INCOME & EXPENSE'!E118)","v":""},{"$f":"T('3 INCOME & EXPENSE'!G118)","v":""},{"$f":"'3 INCOME & EXPENSE'!M118","v":{"v":0,"d":"0.0"}},{"$f":"'3 INCOME & EXPENSE'!N118","v":{"v":0,"d":"$0.00"}},{"$f":"'3 INCOME & EXPENSE'!O118","v":{"v":0,"d":"$0.00"}},220,{"$f":"'3 INCOME & EXPENSE'!V118","v":100},26000,26100,0]
[null,null,{"$f":"IF('3 INCOME & EXPENSE'!E119=0,\"\",'3 INCOME & EXPENSE'!E119)","v":""},{"$f":"T('3 INCOME & EXPENSE'!G119)","v":""},{"$f":"'3 INCOME & EXPENSE'!M119","v":{"v":0,"d":"0.0"}},{"$f":"'3 INCOME & EXPENSE'!N119","v":{"v":0,"d":"$0.00"}},{"$f":"'3 INCOME & EXPENSE'!O119","v":{"v":0,"d":"$0.00"}},221,{"$f":"'3 INCOME & EXPENSE'!V119","v":100},26000,26100,0]
[null,null,{"$f":"IF('3 INCOME & EXPENSE'!E120=0,\"\",'3 INCOME & EXPENSE'!E120)","v":""},{"$f":"T('3 INCOME & EXPENSE'!G120)","v":""},{"$f":"'3 INCOME & EXPENSE'!M120","v":{"v":0,"d":"0.0"}},{"$f":"'3 INCOME & EXPENSE'!N120","v":{"v":0,"d":"$0.00"}},{"$f":"'3 INCOME & EXPENSE'!O120","v":{"v":0,"d":"$0.00"}},222,{"$f":"'3 INCOME & EXPENSE'!V120","v":100},26000,26100,0]
[null,null,{"$f":"IF('3 INCOME & EXPENSE'!E121=0,\"\",'3 INCOME & EXPENSE'!E121)","v":""},{"$f":"T('3 INCOME & EXPENSE'!G121)","v":""},{"$f":"'3 INCOME & EXPENSE'!M121","v":{"v":0,"d":"0.0"}},{"$f":"'3 INCOME & EXPENSE'!N121","v":{"v":0,"d":"$0.00"}},{"$f":"'3 INCOME & EXPENSE'!O121","v":{"v":0,"d":"$0.00"}},223,{"$f":"'3 INCOME & EXPENSE'!V121","v":100},26000,26100,0]
[null,null,{"$f":"IF('3 INCOME & EXPENSE'!E122=0,\"\",'3 INCOME & EXPENSE'!E122)","v":""},{"$f":"T('3 INCOME & EXPENSE'!G122)","v":""},{"$f":"'3 INCOME & EXPENSE'!M122","v":{"v":0,"d":"0.0"}},{"$f":"'3 INCOME & EXPENSE'!N122","v":{"v":0,"d":"$0.00"}},{"$f":"'3 INCOME & EXPENSE'!O122","v":{"v":0,"d":"$0.00"}},224,{"$f":"'3 INCOME & EXPENSE'!V122","v":100},26000,26100,0]
[null,null,{"$f":"IF('3 INCOME & EXPENSE'!E123=0,\"\",'3 INCOME & EXPENSE'!E123)","v":""},{"$f":"T('3 INCOME & EXPENSE'!G123)","v":""},{"$f":"'3 INCOME & EXPENSE'!M123","v":{"v":0,"d":"0.0"}},{"$f":"'3 INCOME & EXPENSE'!N123","v":{"v":0,"d":"$0.00"}},{"$f":"'3 INCOME & EXPENSE'!O123","v":{"v":0,"d":"$0.00"}},225,{"$f":"'3 INCOME & EXPENSE'!V123","v":100},26000,26100,0]
[null,null,{"$f":"IF('3 INCOME & EXPENSE'!E124=0,\"\",'3 INCOME & EXPENSE'!E124)","v":""},{"$f":"T('3 INCOME & EXPENSE'!G124)","v":""},{"$f":"'3 INCOME & EXPENSE'!M124","v":{"v":0,"d":"0.0"}},{"$f":"'3 INCOME & EXPENSE'!N124","v":{"v":0,"d":"$0.00"}},{"$f":"'3 INCOME & EXPENSE'!O124","v":{"v":0,"d":"$0.00"}},226,{"$f":"'3 INCOME & EXPENSE'!V124","v":100},26000,26100,0]
[null,null,{"$f":"IF('3 INCOME & EXPENSE'!E125=0,\"\",'3 INCOME & EXPENSE'!E125)","v":""},{"$f":"T('3 INCOME & EXPENSE'!G125)","v":""},{"$f":"'3 INCOME & EXPENSE'!M125","v":{"v":0,"d":"0.0"}},{"$f":"'3 INCOME & EXPENSE'!N125","v":{"v":0,"d":"$0.00"}},{"$f":"'3 INCOME & EXPENSE'!O125","v":{"v":0,"d":"$0.00"}},227,{"$f":"'3 INCOME & EXPENSE'!V125","v":100},26000,26100,0]
[null,null,{"$f":"IF('3 INCOME & EXPENSE'!E126=0,\"\",'3 INCOME & EXPENSE'!E126)","v":""},{"$f":"T('3 INCOME & EXPENSE'!G126)","v":""},{"$f":"'3 INCOME & EXPENSE'!M126","v":{"v":0,"d":"0.0"}},{"$f":"'3 INCOME & EXPENSE'!N126","v":{"v":0,"d":"$0.00"}},{"$f":"'3 INCOME & EXPENSE'!O126","v":{"v":0,"d":"$0.00"}},228,{"$f":"'3 INCOME & EXPENSE'!V126","v":100},26000,26100,0]
[null,null,{"$f":"IF('3 INCOME & EXPENSE'!E127=0,\"\",'3 INCOME & EXPENSE'!E127)","v":""},{"$f":"T('3 INCOME & EXPENSE'!G127)","v":""},{"$f":"'3 INCOME & EXPENSE'!M127","v":{"v":0,"d":"0.0"}},{"$f":"'3 INCOME & EXPENSE'!N127","v":{"v":0,"d":"$0.00"}},{"$f":"'3 INCOME & EXPENSE'!O127","v":{"v":0,"d":"$0.00"}},229,{"$f":"'3 INCOME & EXPENSE'!V127","v":100},26000,26100,0]
[null,null,{"$f":"IF('3 INCOME & EXPENSE'!E128=0,\"\",'3 INCOME & EXPENSE'!E128)","v":""},{"$f":"T('3 INCOME & EXPENSE'!G128)","v":""},{"$f":"'3 INCOME & EXPENSE'!M128","v":{"v":0,"d":"0.0"}},{"$f":"'3 INCOME & EXPENSE'!N128","v":{"v":0,"d":"$0.00"}},{"$f":"'3 INCOME & EXPENSE'!O128","v":{"v":0,"d":"$0.00"}},230,{"$f":"'3 INCOME & EXPENSE'!V128","v":100},26000,26100,0]
[null,null,{"$f":"IF('3 INCOME & EXPENSE'!E129=0,\"\",'3 INCOME & EXPENSE'!E129)","v":""},{"$f":"T('3 INCOME & EXPENSE'!G129)","v":""},{"$f":"'3 INCOME & EXPENSE'!M129","v":{"v":0,"d":"0.0"}},{"$f":"'3 INCOME & EXPENSE'!N129","v":{"v":0,"d":"$0.00"}},{"$f":"'3 INCOME & EXPENSE'!O129","v":{"v":0,"d":"$0.00"}},231,{"$f":"'3 INCOME & EXPENSE'!V129","v":100},26000,26100,0]
[null,null,{"$f":"IF('3 INCOME & EXPENSE'!E130=0,\"\",'3 INCOME & EXPENSE'!E130)","v":""},{"$f":"T('3 INCOME & EXPENSE'!G130)","v":""},{"$f":"'3 INCOME & EXPENSE'!M130","v":{"v":0,"d":"0.0"}},{"$f":"'3 INCOME & EXPENSE'!N130","v":{"v":0,"d":"$0.00"}},{"$f":"'3 INCOME & EXPENSE'!O130","v":{"v":0,"d":"$0.00"}},232,{"$f":"'3 INCOME & EXPENSE'!V130","v":100},26000,{"$f":"I243+J243","v":26100},0]
[null,null,{"$f":"IF('3 INCOME & EXPENSE'!E131=0,\"\",'3 INCOME & EXPENSE'!E131)","v":""},{"$f":"T('3 INCOME & EXPENSE'!G131)","v":""},{"$f":"'3 INCOME & EXPENSE'!M131","v":{"v":0,"d":"0.0"}},{"$f":"'3 INCOME & EXPENSE'!N131","v":{"v":0,"d":"$0.00"}},{"$f":"'3 INCOME & EXPENSE'!O131","v":{"v":0,"d":"$0.00"}},233,{"$f":"'3 INCOME & EXPENSE'!V131","v":100},26000,26100,0]
[null,null,{"$f":"IF('3 INCOME & EXPENSE'!E132=0,\"\",'3 INCOME & EXPENSE'!E132)","v":""},{"$f":"T('3 INCOME & EXPENSE'!G132)","v":""},{"$f":"'3 INCOME & EXPENSE'!M132","v":{"v":0,"d":"0.0"}},{"$f":"'3 INCOME & EXPENSE'!N132","v":{"v":0,"d":"$0.00"}},{"$f":"'3 INCOME & EXPENSE'!O132","v":{"v":0,"d":"$0.00"}},234,{"$f":"'3 INCOME & EXPENSE'!V132","v":100},26000,26100,0]
[null,null,{"$f":"IF('3 INCOME & EXPENSE'!E133=0,\"\",'3 INCOME & EXPENSE'!E133)","v":""},{"$f":"T('3 INCOME & EXPENSE'!G133)","v":""},{"$f":"'3 INCOME & EXPENSE'!M133","v":{"v":0,"d":"0.0"}},{"$f":"'3 INCOME & EXPENSE'!N133","v":{"v":0,"d":"$0.00"}},{"$f":"'3 INCOME & EXPENSE'!O133","v":{"v":0,"d":"$0.00"}},235,{"$f":"'3 INCOME & EXPENSE'!V133","v":100},26000,26100,0]
[null,null,{"$f":"IF('3 INCOME & EXPENSE'!E134=0,\"\",'3 INCOME & EXPENSE'!E134)","v":""},{"$f":"T('3 INCOME & EXPENSE'!G134)","v":""},{"$f":"'3 INCOME & EXPENSE'!M134","v":{"v":0,"d":"0.0"}},{"$f":"'3 INCOME & EXPENSE'!N134","v":{"v":0,"d":"$0.00"}},{"$f":"'3 INCOME & EXPENSE'!O134","v":{"v":0,"d":"$0.00"}},236,{"$f":"'3 INCOME & EXPENSE'!V134","v":100},26000,26100,0]
[null,null,{"$f":"IF('3 INCOME & EXPENSE'!E135=0,\"\",'3 INCOME & EXPENSE'!E135)","v":""},{"$f":"T('3 INCOME & EXPENSE'!G135)","v":""},{"$f":"'3 INCOME & EXPENSE'!M135","v":{"v":0,"d":"0.0"}},{"$f":"'3 INCOME & EXPENSE'!N135","v":{"v":0,"d":"$0.00"}},{"$f":"'3 INCOME & EXPENSE'!O135","v":{"v":0,"d":"$0.00"}},237,{"$f":"'3 INCOME & EXPENSE'!V135","v":100},26000,26100,0]
[null,null,{"$f":"IF('3 INCOME & EXPENSE'!E136=0,\"\",'3 INCOME & EXPENSE'!E136)","v":""},{"$f":"T('3 INCOME & EXPENSE'!G136)","v":""},{"$f":"'3 INCOME & EXPENSE'!M136","v":{"v":0,"d":"0.0"}},{"$f":"'3 INCOME & EXPENSE'!N136","v":{"v":0,"d":"$0.00"}},{"$f":"'3 INCOME & EXPENSE'!O136","v":{"v":0,"d":"$0.00"}},238,{"$f":"'3 INCOME & EXPENSE'!V136","v":100},26000,26100,0]
[null,null,{"$f":"IF('3 INCOME & EXPENSE'!E137=0,\"\",'3 INCOME & EXPENSE'!E137)","v":""},{"$f":"T('3 INCOME & EXPENSE'!G137)","v":""},{"$f":"'3 INCOME & EXPENSE'!M137","v":{"v":0,"d":"0.0"}},{"$f":"'3 INCOME & EXPENSE'!N137","v":{"v":0,"d":"$0.00"}},{"$f":"'3 INCOME & EXPENSE'!O137","v":{"v":0,"d":"$0.00"}},239,{"$f":"'3 INCOME & EXPENSE'!V137","v":100},26000,26100,0]
[null,null,{"$f":"IF('3 INCOME & EXPENSE'!E138=0,\"\",'3 INCOME & EXPENSE'!E138)","v":""},{"$f":"T('3 INCOME & EXPENSE'!G138)","v":""},{"$f":"'3 INCOME & EXPENSE'!M138","v":{"v":0,"d":"0.0"}},{"$f":"'3 INCOME & EXPENSE'!N138","v":{"v":0,"d":"$0.00"}},{"$f":"'3 INCOME & EXPENSE'!O138","v":{"v":0,"d":"$0.00"}},240,{"$f":"'3 INCOME & EXPENSE'!V138","v":100},26000,26100,0]
[null,null,{"$f":"IF('3 INCOME & EXPENSE'!E139=0,\"\",'3 INCOME & EXPENSE'!E139)","v":""},{"$f":"T('3 INCOME & EXPENSE'!G139)","v":""},{"$f":"'3 INCOME & EXPENSE'!M139","v":{"v":0,"d":"0.0"}},{"$f":"'3 INCOME & EXPENSE'!N139","v":{"v":0,"d":"$0.00"}},{"$f":"'3 INCOME & EXPENSE'!O139","v":{"v":0,"d":"$0.00"}},241,{"$f":"'3 INCOME & EXPENSE'!V139","v":100},26000,26100,0]
[null,null,{"$f":"IF('3 INCOME & EXPENSE'!E140=0,\"\",'3 INCOME & EXPENSE'!E140)","v":""},{"$f":"T('3 INCOME & EXPENSE'!G140)","v":""},{"$f":"'3 INCOME & EXPENSE'!M140","v":{"v":0,"d":"0.0"}},{"$f":"'3 INCOME & EXPENSE'!N140","v":{"v":0,"d":"$0.00"}},{"$f":"'3 INCOME & EXPENSE'!O140","v":{"v":0,"d":"$0.00"}},242,{"$f":"'3 INCOME & EXPENSE'!V140","v":100},26000,26100,0]
[null,null,{"$f":"IF('3 INCOME & EXPENSE'!E141=0,\"\",'3 INCOME & EXPENSE'!E141)","v":""},{"$f":"T('3 INCOME & EXPENSE'!G141)","v":""},{"$f":"'3 INCOME & EXPENSE'!M141","v":{"v":0,"d":"0.0"}},{"$f":"'3 INCOME & EXPENSE'!N141","v":{"v":0,"d":"$0.00"}},{"$f":"'3 INCOME & EXPENSE'!O141","v":{"v":0,"d":"$0.00"}},243,{"$f":"'3 INCOME & EXPENSE'!V141","v":100},26000,26100,0]
[null,null,{"$f":"IF('3 INCOME & EXPENSE'!E142=0,\"\",'3 INCOME & EXPENSE'!E142)","v":""},{"$f":"T('3 INCOME & EXPENSE'!G142)","v":""},{"$f":"'3 INCOME & EXPENSE'!M142","v":{"v":0,"d":"0.0"}},{"$f":"'3 INCOME & EXPENSE'!N142","v":{"v":0,"d":"$0.00"}},{"$f":"'3 INCOME & EXPENSE'!O142","v":{"v":0,"d":"$0.00"}},244,{"$f":"'3 INCOME & EXPENSE'!V142","v":100},{"$f":"VLOOKUP(I255,$I$880:$J$905,2)","v":26000},26100,{"$f":"K255*E255","v":0}]
[null,null,{"$f":"IF('3 INCOME & EXPENSE'!E143=0,\"\",'3 INCOME & EXPENSE'!E143)","v":""},{"$f":"T('3 INCOME & EXPENSE'!G143)","v":""},{"$f":"'3 INCOME & EXPENSE'!M143","v":{"v":0,"d":"0.0"}},{"$f":"'3 INCOME & EXPENSE'!N143","v":{"v":0,"d":"$0.00"}},{"$f":"'3 INCOME & EXPENSE'!O143","v":{"v":0,"d":"$0.00"}},245,{"$f":"'3 INCOME & EXPENSE'!V143","v":100},26000,26100,0]
[null,null,{"$f":"IF('3 INCOME & EXPENSE'!E144=0,\"\",'3 INCOME & EXPENSE'!E144)","v":""},{"$f":"T('3 INCOME & EXPENSE'!G144)","v":""},{"$f":"'3 INCOME & EXPENSE'!M144","v":{"v":0,"d":"0.0"}},{"$f":"'3 INCOME & EXPENSE'!N144","v":{"v":0,"d":"$0.00"}},{"$f":"'3 INCOME & EXPENSE'!O144","v":{"v":0,"d":"$0.00"}},246,{"$f":"'3 INCOME & EXPENSE'!V144","v":100},26000,26100,0]
[null,null,{"$f":"IF('3 INCOME & EXPENSE'!E145=0,\"\",'3 INCOME & EXPENSE'!E145)","v":""},{"$f":"T('3 INCOME & EXPENSE'!G145)","v":""},{"$f":"'3 INCOME & EXPENSE'!M145","v":{"v":0,"d":"0.0"}},{"$f":"'3 INCOME & EXPENSE'!N145","v":{"v":0,"d":"$0.00"}},{"$f":"'3 INCOME & EXPENSE'!O145","v":{"v":0,"d":"$0.00"}},247,{"$f":"'3 INCOME & EXPENSE'!V145","v":100},26000,26100,0]
[null,null,{"$f":"IF('3 INCOME & EXPENSE'!E146=0,\"\",'3 INCOME & EXPENSE'!E146)","v":""},{"$f":"T('3 INCOME & EXPENSE'!G146)","v":""},{"$f":"'3 INCOME & EXPENSE'!M146","v":{"v":0,"d":"0.0"}},{"$f":"'3 INCOME & EXPENSE'!N146","v":{"v":0,"d":"$0.00"}},{"$f":"'3 INCOME & EXPENSE'!O146","v":{"v":0,"d":"$0.00"}},248,{"$f":"'3 INCOME & EXPENSE'!V146","v":100},26000,26100,0]
[null,null,{"$f":"IF('3 INCOME & EXPENSE'!E147=0,\"\",'3 INCOME & EXPENSE'!E147)","v":""},{"$f":"T('3 INCOME & EXPENSE'!G147)","v":""},{"$f":"'3 INCOME & EXPENSE'!M147","v":{"v":0,"d":"0.0"}},{"$f":"'3 INCOME & EXPENSE'!N147","v":{"v":0,"d":"$0.00"}},{"$f":"'3 INCOME & EXPENSE'!O147","v":{"v":0,"d":"$0.00"}},249,{"$f":"'3 INCOME & EXPENSE'!V147","v":100},26000,26100,0]
[null,null,{"$f":"IF('3 INCOME & EXPENSE'!E148=0,\"\",'3 INCOME & EXPENSE'!E148)","v":""},{"$f":"T('3 INCOME & EXPENSE'!G148)","v":""},{"$f":"'3 INCOME & EXPENSE'!M148","v":{"v":0,"d":"0.0"}},{"$f":"'3 INCOME & EXPENSE'!N148","v":{"v":0,"d":"$0.00"}},{"$f":"'3 INCOME & EXPENSE'!O148","v":{"v":0,"d":"$0.00"}},250,{"$f":"'3 INCOME & EXPENSE'!V148","v":100},26000,26100,0]
[null,null,{"$f":"IF('3 INCOME & EXPENSE'!E149=0,\"\",'3 INCOME & EXPENSE'!E149)","v":""},{"$f":"T('3 INCOME & EXPENSE'!G149)","v":""},{"$f":"'3 INCOME & EXPENSE'!M149","v":{"v":0,"d":"0.0"}},{"$f":"'3 INCOME & EXPENSE'!N149","v":{"v":0,"d":"$0.00"}},{"$f":"'3 INCOME & EXPENSE'!O149","v":{"v":0,"d":"$0.00"}},251,{"$f":"'3 INCOME & EXPENSE'!V149","v":100},26000,26100,0]
[null,null,{"$f":"IF('3 INCOME & EXPENSE'!E150=0,\"\",'3 INCOME & EXPENSE'!E150)","v":""},{"$f":"T('3 INCOME & EXPENSE'!G150)","v":""},{"$f":"'3 INCOME & EXPENSE'!M150","v":{"v":0,"d":"0.0"}},{"$f":"'3 INCOME & EXPENSE'!N150","v":{"v":0,"d":"$0.00"}},{"$f":"'3 INCOME & EXPENSE'!O150","v":{"v":0,"d":"$0.00"}},252,{"$f":"'3 INCOME & EXPENSE'!V150","v":100},26000,26100,0]
[null,null,{"$f":"IF('3 INCOME & EXPENSE'!E151=0,\"\",'3 INCOME & EXPENSE'!E151)","v":""},{"$f":"T('3 INCOME & EXPENSE'!G151)","v":""},{"$f":"'3 INCOME & EXPENSE'!M151","v":{"v":0,"d":"0.0"}},{"$f":"'3 INCOME & EXPENSE'!N151","v":{"v":0,"d":"$0.00"}},{"$f":"'3 INCOME & EXPENSE'!O151","v":{"v":0,"d":"$0.00"}},253,{"$f":"'3 INCOME & EXPENSE'!V151","v":100},26000,26100,0]
[null,null,{"$f":"IF('3 INCOME & EXPENSE'!E152=0,\"\",'3 INCOME & EXPENSE'!E152)","v":""},{"$f":"T('3 INCOME & EXPENSE'!G152)","v":""},{"$f":"'3 INCOME & EXPENSE'!M152","v":{"v":0,"d":"0.0"}},{"$f":"'3 INCOME & EXPENSE'!N152","v":{"v":0,"d":"$0.00"}},{"$f":"'3 INCOME & EXPENSE'!O152","v":{"v":0,"d":"$0.00"}},254,{"$f":"'3 INCOME & EXPENSE'!V152","v":100},26000,26100,0]
[null,null,{"$f":"IF('3 INCOME & EXPENSE'!E153=0,\"\",'3 INCOME & EXPENSE'!E153)","v":""},{"$f":"T('3 INCOME & EXPENSE'!G153)","v":""},{"$f":"'3 INCOME & EXPENSE'!M153","v":{"v":0,"d":"0.0"}},{"$f":"'3 INCOME & EXPENSE'!N153","v":{"v":0,"d":"$0.00"}},{"$f":"'3 INCOME & EXPENSE'!O153","v":{"v":0,"d":"$0.00"}},255,{"$f":"'3 INCOME & EXPENSE'!V153","v":100},26000,26100,0]
[null,null,{"$f":"IF('3 INCOME & EXPENSE'!E154=0,\"\",'3 INCOME & EXPENSE'!E154)","v":""},{"$f":"T('3 INCOME & EXPENSE'!G154)","v":""},{"$f":"'3 INCOME & EXPENSE'!M154","v":{"v":0,"d":"0.0"}},{"$f":"'3 INCOME & EXPENSE'!N154","v":{"v":0,"d":"$0.00"}},{"$f":"'3 INCOME & EXPENSE'!O154","v":{"v":0,"d":"$0.00"}},256,{"$f":"'3 INCOME & EXPENSE'!V154","v":100},26000,26100,0]
[null,null,{"$f":"IF('3 INCOME & EXPENSE'!E155=0,\"\",'3 INCOME & EXPENSE'!E155)","v":""},{"$f":"T('3 INCOME & EXPENSE'!G155)","v":""},{"$f":"'3 INCOME & EXPENSE'!M155","v":{"v":0,"d":"0.0"}},{"$f":"'3 INCOME & EXPENSE'!N155","v":{"v":0,"d":"$0.00"}},{"$f":"'3 INCOME & EXPENSE'!O155","v":{"v":0,"d":"$0.00"}},257,{"$f":"'3 INCOME & EXPENSE'!V155","v":100},26000,26100,0]
[null,null,{"$f":"IF('3 INCOME & EXPENSE'!E156=0,\"\",'3 INCOME & EXPENSE'!E156)","v":""},{"$f":"T('3 INCOME & EXPENSE'!G156)","v":""},{"$f":"'3 INCOME & EXPENSE'!M156","v":{"v":0,"d":"0.0"}},{"$f":"'3 INCOME & EXPENSE'!N156","v":{"v":0,"d":"$0.00"}},{"$f":"'3 INCOME & EXPENSE'!O156","v":{"v":0,"d":"$0.00"}},258,{"$f":"'3 INCOME & EXPENSE'!V156","v":100},26000,26100,0]
[null,null,{"$f":"IF('3 INCOME & EXPENSE'!E157=0,\"\",'3 INCOME & EXPENSE'!E157)","v":""},{"$f":"T('3 INCOME & EXPENSE'!G157)","v":""},{"$f":"'3 INCOME & EXPENSE'!M157","v":{"v":0,"d":"0.0"}},{"$f":"'3 INCOME & EXPENSE'!N157","v":{"v":0,"d":"$0.00"}},{"$f":"'3 INCOME & EXPENSE'!O157","v":{"v":0,"d":"$0.00"}},259,{"$f":"'3 INCOME & EXPENSE'!V157","v":100},26000,26100,0]
[null,null,{"$f":"IF('3 INCOME & EXPENSE'!E158=0,\"\",'3 INCOME & EXPENSE'!E158)","v":""},{"$f":"T('3 INCOME & EXPENSE'!G158)","v":""},{"$f":"'3 INCOME & EXPENSE'!M158","v":{"v":0,"d":"0.0"}},{"$f":"'3 INCOME & EXPENSE'!N158","v":{"v":0,"d":"$0.00"}},{"$f":"'3 INCOME & EXPENSE'!O158","v":{"v":0,"d":"$0.00"}},260,{"$f":"'3 INCOME & EXPENSE'!V158","v":100},26000,26100,0]
[null,null,{"$f":"IF('3 INCOME & EXPENSE'!E159=0,\"\",'3 INCOME & EXPENSE'!E159)","v":""},{"$f":"T('3 INCOME & EXPENSE'!G159)","v":""},{"$f":"'3 INCOME & EXPENSE'!M159","v":{"v":0,"d":"0.0"}},{"$f":"'3 INCOME & EXPENSE'!N159","v":{"v":0,"d":"$0.00"}},{"$f":"'3 INCOME & EXPENSE'!O159","v":{"v":0,"d":"$0.00"}},261,{"$f":"'3 INCOME & EXPENSE'!V159","v":100},26000,26100,0]
[null,null,{"$f":"IF('3 INCOME & EXPENSE'!E160=0,\"\",'3 INCOME & EXPENSE'!E160)","v":""},{"$f":"T('3 INCOME & EXPENSE'!G160)","v":""},{"$f":"'3 INCOME & EXPENSE'!M160","v":{"v":0,"d":"0.0"}},{"$f":"'3 INCOME & EXPENSE'!N160","v":{"v":0,"d":"$0.00"}},{"$f":"'3 INCOME & EXPENSE'!O160","v":{"v":0,"d":"$0.00"}},262,{"$f":"'3 INCOME & EXPENSE'!V160","v":100},26000,26100,0]
[null,null,{"$f":"IF('3 INCOME & EXPENSE'!E161=0,\"\",'3 INCOME & EXPENSE'!E161)","v":""},{"$f":"T('3 INCOME & EXPENSE'!G161)","v":""},{"$f":"'3 INCOME & EXPENSE'!M161","v":{"v":0,"d":"0.0"}},{"$f":"'3 INCOME & EXPENSE'!N161","v":{"v":0,"d":"$0.00"}},{"$f":"'3 INCOME & EXPENSE'!O161","v":{"v":0,"d":"$0.00"}},263,{"$f":"'3 INCOME & EXPENSE'!V161","v":100},26000,26100,0]
[null,null,{"$f":"IF('3 INCOME & EXPENSE'!E162=0,\"\",'3 INCOME & EXPENSE'!E162)","v":""},{"$f":"T('3 INCOME & EXPENSE'!G162)","v":""},{"$f":"'3 INCOME & EXPENSE'!M162","v":{"v":0,"d":"0.0"}},{"$f":"'3 INCOME & EXPENSE'!N162","v":{"v":0,"d":"$0.00"}},{"$f":"'3 INCOME & EXPENSE'!O162","v":{"v":0,"d":"$0.00"}},264,{"$f":"'3 INCOME & EXPENSE'!V162","v":100},26000,26100,0]
[null,null,{"$f":"IF('3 INCOME & EXPENSE'!E163=0,\"\",'3 INCOME & EXPENSE'!E163)","v":""},{"$f":"T('3 INCOME & EXPENSE'!G163)","v":""},{"$f":"'3 INCOME & EXPENSE'!M163","v":{"v":0,"d":"0.0"}},{"$f":"'3 INCOME & EXPENSE'!N163","v":{"v":0,"d":"$0.00"}},{"$f":"'3 INCOME & EXPENSE'!O163","v":{"v":0,"d":"$0.00"}},265,{"$f":"'3 INCOME & EXPENSE'!V163","v":100},26000,26100,0]
[null,null,{"$f":"IF('3 INCOME & EXPENSE'!E164=0,\"\",'3 INCOME & EXPENSE'!E164)","v":""},{"$f":"T('3 INCOME & EXPENSE'!G164)","v":""},{"$f":"'3 INCOME & EXPENSE'!M164","v":{"v":0,"d":"0.0"}},{"$f":"'3 INCOME & EXPENSE'!N164","v":{"v":0,"d":"$0.00"}},{"$f":"'3 INCOME & EXPENSE'!O164","v":{"v":0,"d":"$0.00"}},266,{"$f":"'3 INCOME & EXPENSE'!V164","v":100},26000,26100,0]
[null,null,{"$f":"IF('3 INCOME & EXPENSE'!E165=0,\"\",'3 INCOME & EXPENSE'!E165)","v":""},{"$f":"T('3 INCOME & EXPENSE'!G165)","v":""},{"$f":"'3 INCOME & EXPENSE'!M165","v":{"v":0,"d":"0.0"}},{"$f":"'3 INCOME & EXPENSE'!N165","v":{"v":0,"d":"$0.00"}},{"$f":"'3 INCOME & EXPENSE'!O165","v":{"v":0,"d":"$0.00"}},267,{"$f":"'3 INCOME & EXPENSE'!V165","v":100},26000,26100,0]
[null,null,{"$f":"IF('3 INCOME & EXPENSE'!E166=0,\"\",'3 INCOME & EXPENSE'!E166)","v":""},{"$f":"T('3 INCOME & EXPENSE'!G166)","v":""},{"$f":"'3 INCOME & EXPENSE'!M166","v":{"v":0,"d":"0.0"}},{"$f":"'3 INCOME & EXPENSE'!N166","v":{"v":0,"d":"$0.00"}},{"$f":"'3 INCOME & EXPENSE'!O166","v":{"v":0,"d":"$0.00"}},268,{"$f":"'3 INCOME & EXPENSE'!V166","v":100},26000,26100,0]
[null,null,{"$f":"IF('3 INCOME & EXPENSE'!E167=0,\"\",'3 INCOME & EXPENSE'!E167)","v":""},{"$f":"T('3 INCOME & EXPENSE'!G167)","v":""},{"$f":"'3 INCOME & EXPENSE'!M167","v":{"v":0,"d":"0.0"}},{"$f":"'3 INCOME & EXPENSE'!N167","v":{"v":0,"d":"$0.00"}},{"$f":"'3 INCOME & EXPENSE'!O167","v":{"v":0,"d":"$0.00"}},269,{"$f":"'3 INCOME & EXPENSE'!V167","v":100},26000,26100,0]
[null,null,{"$f":"IF('3 INCOME & EXPENSE'!E168=0,\"\",'3 INCOME & EXPENSE'!E168)","v":""},{"$f":"T('3 INCOME & EXPENSE'!G168)","v":""},{"$f":"'3 INCOME & EXPENSE'!M168","v":{"v":0,"d":"0.0"}},{"$f":"'3 INCOME & EXPENSE'!N168","v":{"v":0,"d":"$0.00"}},{"$f":"'3 INCOME & EXPENSE'!O168","v":{"v":0,"d":"$0.00"}},270,{"$f":"'3 INCOME & EXPENSE'!V168","v":100},26000,26100,0]
[null,null,{"$f":"IF('3 INCOME & EXPENSE'!E169=0,\"\",'3 INCOME & EXPENSE'!E169)","v":""},{"$f":"T('3 INCOME & EXPENSE'!G169)","v":""},{"$f":"'3 INCOME & EXPENSE'!M169","v":{"v":0,"d":"0.0"}},{"$f":"'3 INCOME & EXPENSE'!N169","v":{"v":0,"d":"$0.00"}},{"$f":"'3 INCOME & EXPENSE'!O169","v":{"v":0,"d":"$0.00"}},271,{"$f":"'3 INCOME & EXPENSE'!V169","v":100},26000,26100,0]
[null,null,{"$f":"IF('3 INCOME & EXPENSE'!E170=0,\"\",'3 INCOME & EXPENSE'!E170)","v":""},{"$f":"T('3 INCOME & EXPENSE'!G170)","v":""},{"$f":"'3 INCOME & EXPENSE'!M170","v":{"v":0,"d":"0.0"}},{"$f":"'3 INCOME & EXPENSE'!N170","v":{"v":0,"d":"$0.00"}},{"$f":"'3 INCOME & EXPENSE'!O170","v":{"v":0,"d":"$0.00"}},272,{"$f":"'3 INCOME & EXPENSE'!V170","v":100},26000,26100,0]
[null,null,{"$f":"IF('3 INCOME & EXPENSE'!E171=0,\"\",'3 INCOME & EXPENSE'!E171)","v":""},{"$f":"T('3 INCOME & EXPENSE'!G171)","v":""},{"$f":"'3 INCOME & EXPENSE'!M171","v":{"v":0,"d":"0.0"}},{"$f":"'3 INCOME & EXPENSE'!N171","v":{"v":0,"d":"$0.00"}},{"$f":"'3 INCOME & EXPENSE'!O171","v":{"v":0,"d":"$0.00"}},273,{"$f":"'3 INCOME & EXPENSE'!V171","v":100},26000,26100,0]
[null,null,{"$f":"IF('3 INCOME & EXPENSE'!E172=0,\"\",'3 INCOME & EXPENSE'!E172)","v":""},{"$f":"T('3 INCOME & EXPENSE'!G172)","v":""},{"$f":"'3 INCOME & EXPENSE'!M172","v":{"v":0,"d":"0.0"}},{"$f":"'3 INCOME & EXPENSE'!N172","v":{"v":0,"d":"$0.00"}},{"$f":"'3 INCOME & EXPENSE'!O172","v":{"v":0,"d":"$0.00"}},274,{"$f":"'3 INCOME & EXPENSE'!V172","v":100},26000,26100,0]
[null,null,{"$f":"IF('3 INCOME & EXPENSE'!E173=0,\"\",'3 INCOME & EXPENSE'!E173)","v":""},{"$f":"T('3 INCOME & EXPENSE'!G173)","v":""},{"$f":"'3 INCOME & EXPENSE'!M173","v":{"v":0,"d":"0.0"}},{"$f":"'3 INCOME & EXPENSE'!N173","v":{"v":0,"d":"$0.00"}},{"$f":"'3 INCOME & EXPENSE'!O173","v":{"v":0,"d":"$0.00"}},275,{"$f":"'3 INCOME & EXPENSE'!V173","v":100},26000,26100,0]
[null,null,{"$f":"IF('3 INCOME & EXPENSE'!E174=0,\"\",'3 INCOME & EXPENSE'!E174)","v":""},{"$f":"T('3 INCOME & EXPENSE'!G174)","v":""},{"$f":"'3 INCOME & EXPENSE'!M174","v":{"v":0,"d":"0.0"}},{"$f":"'3 INCOME & EXPENSE'!N174","v":{"v":0,"d":"$0.00"}},{"$f":"'3 INCOME & EXPENSE'!O174","v":{"v":0,"d":"$0.00"}},276,{"$f":"'3 INCOME & EXPENSE'!V174","v":100},26000,26100,0]
[null,null,{"$f":"IF('3 INCOME & EXPENSE'!E175=0,\"\",'3 INCOME & EXPENSE'!E175)","v":""},{"$f":"T('3 INCOME & EXPENSE'!G175)","v":""},{"$f":"'3 INCOME & EXPENSE'!M175","v":{"v":0,"d":"0.0"}},{"$f":"'3 INCOME & EXPENSE'!N175","v":{"v":0,"d":"$0.00"}},{"$f":"'3 INCOME & EXPENSE'!O175","v":{"v":0,"d":"$0.00"}},277,{"$f":"'3 INCOME & EXPENSE'!V175","v":100},26000,26100,0]
[null,null,{"$f":"IF('3 INCOME & EXPENSE'!E176=0,\"\",'3 INCOME & EXPENSE'!E176)","v":""},{"$f":"T('3 INCOME & EXPENSE'!G176)","v":""},{"$f":"'3 INCOME & EXPENSE'!M176","v":{"v":0,"d":"0.0"}},{"$f":"'3 INCOME & EXPENSE'!N176","v":{"v":0,"d":"$0.00"}},{"$f":"'3 INCOME & EXPENSE'!O176","v":{"v":0,"d":"$0.00"}},278,{"$f":"'3 INCOME & EXPENSE'!V176","v":100},26000,26100,0]
[null,null,{"$f":"IF('3 INCOME & EXPENSE'!E177=0,\"\",'3 INCOME & EXPENSE'!E177)","v":""},{"$f":"T('3 INCOME & EXPENSE'!G177)","v":""},{"$f":"'3 INCOME & EXPENSE'!M177","v":{"v":0,"d":"0.0"}},{"$f":"'3 INCOME & EXPENSE'!N177","v":{"v":0,"d":"$0.00"}},{"$f":"'3 INCOME & EXPENSE'!O177","v":{"v":0,"d":"$0.00"}},279,{"$f":"'3 INCOME & EXPENSE'!V177","v":100},26000,26100,0]
[null,null,{"$f":"IF('3 INCOME & EXPENSE'!E178=0,\"\",'3 INCOME & EXPENSE'!E178)","v":""},{"$f":"T('3 INCOME & EXPENSE'!G178)","v":""},{"$f":"'3 INCOME & EXPENSE'!M178","v":{"v":0,"d":"0.0"}},{"$f":"'3 INCOME & EXPENSE'!N178","v":{"v":0,"d":"$0.00"}},{"$f":"'3 INCOME & EXPENSE'!O178","v":{"v":0,"d":"$0.00"}},280,{"$f":"'3 INCOME & EXPENSE'!V178","v":100},26000,26100,0]
[null,null,{"$f":"IF('3 INCOME & EXPENSE'!E179=0,\"\",'3 INCOME & EXPENSE'!E179)","v":""},{"$f":"T('3 INCOME & EXPENSE'!G179)","v":""},{"$f":"'3 INCOME & EXPENSE'!M179","v":{"v":0,"d":"0.0"}},{"$f":"'3 INCOME & EXPENSE'!N179","v":{"v":0,"d":"$0.00"}},{"$f":"'3 INCOME & EXPENSE'!O179","v":{"v":0,"d":"$0.00"}},281,{"$f":"'3 INCOME & EXPENSE'!V179","v":100},26000,26100,0]
[null,null,{"$f":"IF('3 INCOME & EXPENSE'!E180=0,\"\",'3 INCOME & EXPENSE'!E180)","v":""},{"$f":"T('3 INCOME & EXPENSE'!G180)","v":""},{"$f":"'3 INCOME & EXPENSE'!M180","v":{"v":0,"d":"0.0"}},{"$f":"'3 INCOME & EXPENSE'!N180","v":{"v":0,"d":"$0.00"}},{"$f":"'3 INCOME & EXPENSE'!O180","v":{"v":0,"d":"$0.00"}},282,{"$f":"'3 INCOME & EXPENSE'!V180","v":100},26000,26100,0]
[null,null,{"$f":"IF('3 INCOME & EXPENSE'!E181=0,\"\",'3 INCOME & EXPENSE'!E181)","v":""},{"$f":"T('3 INCOME & EXPENSE'!G181)","v":""},{"$f":"'3 INCOME & EXPENSE'!M181","v":{"v":0,"d":"0.0"}},{"$f":"'3 INCOME & EXPENSE'!N181","v":{"v":0,"d":"$0.00"}},{"$f":"'3 INCOME & EXPENSE'!O181","v":{"v":0,"d":"$0.00"}},283,{"$f":"'3 INCOME & EXPENSE'!V181","v":100},26000,26100,0]
[null,null,{"$f":"IF('3 INCOME & EXPENSE'!E182=0,\"\",'3 INCOME & EXPENSE'!E182)","v":""},{"$f":"T('3 INCOME & EXPENSE'!G182)","v":""},{"$f":"'3 INCOME & EXPENSE'!M182","v":{"v":0,"d":"0.0"}},{"$f":"'3 INCOME & EXPENSE'!N182","v":{"v":0,"d":"$0.00"}},{"$f":"'3 INCOME & EXPENSE'!O182","v":{"v":0,"d":"$0.00"}},284,{"$f":"'3 INCOME & EXPENSE'!V182","v":100},26000,26100,0]
[null,null,{"$f":"IF('3 INCOME & EXPENSE'!E183=0,\"\",'3 INCOME & EXPENSE'!E183)","v":""},{"$f":"T('3 INCOME & EXPENSE'!G183)","v":""},{"$f":"'3 INCOME & EXPENSE'!M183","v":{"v":0,"d":"0.0"}},{"$f":"'3 INCOME & EXPENSE'!N183","v":{"v":0,"d":"$0.00"}},{"$f":"'3 INCOME & EXPENSE'!O183","v":{"v":0,"d":"$0.00"}},285,{"$f":"'3 INCOME & EXPENSE'!V183","v":100},26000,26100,0]
[null,null,{"$f":"IF('3 INCOME & EXPENSE'!E184=0,\"\",'3 INCOME & EXPENSE'!E184)","v":""},{"$f":"T('3 INCOME & EXPENSE'!G184)","v":""},{"$f":"'3 INCOME & EXPENSE'!M184","v":{"v":0,"d":"0.0"}},{"$f":"'3 INCOME & EXPENSE'!N184","v":{"v":0,"d":"$0.00"}},{"$f":"'3 INCOME & EXPENSE'!O184","v":{"v":0,"d":"$0.00"}},286,{"$f":"'3 INCOME & EXPENSE'!V184","v":100},26000,26100,0]
[null,null,{"$f":"IF('3 INCOME & EXPENSE'!E185=0,\"\",'3 INCOME & EXPENSE'!E185)","v":""},{"$f":"T('3 INCOME & EXPENSE'!G185)","v":""},{"$f":"'3 INCOME & EXPENSE'!M185","v":{"v":0,"d":"0.0"}},{"$f":"'3 INCOME & EXPENSE'!N185","v":{"v":0,"d":"$0.00"}},{"$f":"'3 INCOME & EXPENSE'!O185","v":{"v":0,"d":"$0.00"}},287,{"$f":"'3 INCOME & EXPENSE'!V185","v":100},26000,26100,0]
[null,null,{"$f":"IF('3 INCOME & EXPENSE'!E186=0,\"\",'3 INCOME & EXPENSE'!E186)","v":""},{"$f":"T('3 INCOME & EXPENSE'!G186)","v":""},{"$f":"'3 INCOME & EXPENSE'!M186","v":{"v":0,"d":"0.0"}},{"$f":"'3 INCOME & EXPENSE'!N186","v":{"v":0,"d":"$0.00"}},{"$f":"'3 INCOME & EXPENSE'!O186","v":{"v":0,"d":"$0.00"}},288,{"$f":"'3 INCOME & EXPENSE'!V186","v":100},26000,26100,0]
[null,null,{"$f":"IF('3 INCOME & EXPENSE'!E187=0,\"\",'3 INCOME & EXPENSE'!E187)","v":""},{"$f":"T('3 INCOME & EXPENSE'!G187)","v":""},{"$f":"'3 INCOME & EXPENSE'!M187","v":{"v":0,"d":"0.0"}},{"$f":"'3 INCOME & EXPENSE'!N187","v":{"v":0,"d":"$0.00"}},{"$f":"'3 INCOME & EXPENSE'!O187","v":{"v":0,"d":"$0.00"}},289,{"$f":"'3 INCOME & EXPENSE'!V187","v":100},26000,26100,0]
[null,null,{"$f":"IF('3 INCOME & EXPENSE'!E188=0,\"\",'3 INCOME & EXPENSE'!E188)","v":""},{"$f":"T('3 INCOME & EXPENSE'!G188)","v":""},{"$f":"'3 INCOME & EXPENSE'!M188","v":{"v":0,"d":"0.0"}},{"$f":"'3 INCOME & EXPENSE'!N188","v":{"v":0,"d":"$0.00"}},{"$f":"'3 INCOME & EXPENSE'!O188","v":{"v":0,"d":"$0.00"}},290,{"$f":"'3 INCOME & EXPENSE'!V188","v":100},26000,26100,0]
[null,null,{"$f":"IF('3 INCOME & EXPENSE'!E189=0,\"\",'3 INCOME & EXPENSE'!E189)","v":""},{"$f":"T('3 INCOME & EXPENSE'!G189)","v":""},{"$f":"'3 INCOME & EXPENSE'!M189","v":{"v":0,"d":"0.0"}},{"$f":"'3 INCOME & EXPENSE'!N189","v":{"v":0,"d":"$0.00"}},{"$f":"'3 INCOME & EXPENSE'!O189","v":{"v":0,"d":"$0.00"}},291,{"$f":"'3 INCOME & EXPENSE'!V189","v":100},26000,26100,0]
[null,null,{"$f":"IF('3 INCOME & EXPENSE'!E190=0,\"\",'3 INCOME & EXPENSE'!E190)","v":""},{"$f":"T('3 INCOME & EXPENSE'!G190)","v":""},{"$f":"'3 INCOME & EXPENSE'!M190","v":{"v":0,"d":"0.0"}},{"$f":"'3 INCOME & EXPENSE'!N190","v":{"v":0,"d":"$0.00"}},{"$f":"'3 INCOME & EXPENSE'!O190","v":{"v":0,"d":"$0.00"}},292,{"$f":"'3 INCOME & EXPENSE'!V190","v":100},26000,26100,0]
[null,null,{"$f":"IF('3 INCOME & EXPENSE'!E191=0,\"\",'3 INCOME & EXPENSE'!E191)","v":""},{"$f":"T('3 INCOME & EXPENSE'!G191)","v":""},{"$f":"'3 INCOME & EXPENSE'!M191","v":{"v":0,"d":"0.0"}},{"$f":"'3 INCOME & EXPENSE'!N191","v":{"v":0,"d":"$0.00"}},{"$f":"'3 INCOME & EXPENSE'!O191","v":{"v":0,"d":"$0.00"}},293,{"$f":"'3 INCOME & EXPENSE'!V191","v":100},26000,26100,0]
[null,null,{"$f":"IF('3 INCOME & EXPENSE'!E192=0,\"\",'3 INCOME & EXPENSE'!E192)","v":""},{"$f":"T('3 INCOME & EXPENSE'!G192)","v":""},{"$f":"'3 INCOME & EXPENSE'!M192","v":{"v":0,"d":"0.0"}},{"$f":"'3 INCOME & EXPENSE'!N192","v":{"v":0,"d":"$0.00"}},{"$f":"'3 INCOME & EXPENSE'!O192","v":{"v":0,"d":"$0.00"}},294,{"$f":"'3 INCOME & EXPENSE'!V192","v":100},26000,26100,0]
[null,null,{"$f":"IF('3 INCOME & EXPENSE'!E193=0,\"\",'3 INCOME & EXPENSE'!E193)","v":""},{"$f":"T('3 INCOME & EXPENSE'!G193)","v":""},{"$f":"'3 INCOME & EXPENSE'!M193","v":{"v":0,"d":"0.0"}},{"$f":"'3 INCOME & EXPENSE'!N193","v":{"v":0,"d":"$0.00"}},{"$f":"'3 INCOME & EXPENSE'!O193","v":{"v":0,"d":"$0.00"}},295,{"$f":"'3 INCOME & EXPENSE'!V193","v":100},26000,26100,0]
[null,null,{"$f":"IF('3 INCOME & EXPENSE'!E194=0,\"\",'3 INCOME & EXPENSE'!E194)","v":""},{"$f":"T('3 INCOME & EXPENSE'!G194)","v":""},{"$f":"'3 INCOME & EXPENSE'!M194","v":{"v":0,"d":"0.0"}},{"$f":"'3 INCOME & EXPENSE'!N194","v":{"v":0,"d":"$0.00"}},{"$f":"'3 INCOME & EXPENSE'!O194","v":{"v":0,"d":"$0.00"}},296,{"$f":"'3 INCOME & EXPENSE'!V194","v":100},26000,{"$f":"I307+J307","v":26100},0]
[null,null,{"$f":"IF('3 INCOME & EXPENSE'!E195=0,\"\",'3 INCOME & EXPENSE'!E195)","v":""},{"$f":"T('3 INCOME & EXPENSE'!G195)","v":""},{"$f":"'3 INCOME & EXPENSE'!M195","v":{"v":0,"d":"0.0"}},{"$f":"'3 INCOME & EXPENSE'!N195","v":{"v":0,"d":"$0.00"}},{"$f":"'3 INCOME & EXPENSE'!O195","v":{"v":0,"d":"$0.00"}},297,{"$f":"'3 INCOME & EXPENSE'!V195","v":100},26000,26100,0]
[null,null,{"$f":"IF('3 INCOME & EXPENSE'!E196=0,\"\",'3 INCOME & EXPENSE'!E196)","v":""},{"$f":"T('3 INCOME & EXPENSE'!G196)","v":""},{"$f":"'3 INCOME & EXPENSE'!M196","v":{"v":0,"d":"0.0"}},{"$f":"'3 INCOME & EXPENSE'!N196","v":{"v":0,"d":"$0.00"}},{"$f":"'3 INCOME & EXPENSE'!O196","v":{"v":0,"d":"$0.00"}},298,{"$f":"'3 INCOME & EXPENSE'!V196","v":100},26000,26100,0]
[null,null,{"$f":"IF('3 INCOME & EXPENSE'!E197=0,\"\",'3 INCOME & EXPENSE'!E197)","v":""},{"$f":"T('3 INCOME & EXPENSE'!G197)","v":""},{"$f":"'3 INCOME & EXPENSE'!M197","v":{"v":0,"d":"0.0"}},{"$f":"'3 INCOME & EXPENSE'!N197","v":{"v":0,"d":"$0.00"}},{"$f":"'3 INCOME & EXPENSE'!O197","v":{"v":0,"d":"$0.00"}},299,{"$f":"'3 INCOME & EXPENSE'!V197","v":100},26000,26100,0]
[null,null,{"$f":"IF('3 INCOME & EXPENSE'!E198=0,\"\",'3 INCOME & EXPENSE'!E198)","v":""},{"$f":"T('3 INCOME & EXPENSE'!G198)","v":""},{"$f":"'3 INCOME & EXPENSE'!M198","v":{"v":0,"d":"0.0"}},{"$f":"'3 INCOME & EXPENSE'!N198","v":{"v":0,"d":"$0.00"}},{"$f":"'3 INCOME & EXPENSE'!O198","v":{"v":0,"d":"$0.00"}},300,{"$f":"'3 INCOME & EXPENSE'!V198","v":100},26000,26100,0]
[null,null,{"$f":"IF('3 INCOME & EXPENSE'!E199=0,\"\",'3 INCOME & EXPENSE'!E199)","v":""},{"$f":"T('3 INCOME & EXPENSE'!G199)","v":""},{"$f":"'3 INCOME & EXPENSE'!M199","v":{"v":0,"d":"0.0"}},{"$f":"'3 INCOME & EXPENSE'!N199","v":{"v":0,"d":"$0.00"}},{"$f":"'3 INCOME & EXPENSE'!O199","v":{"v":0,"d":"$0.00"}},301,{"$f":"'3 INCOME & EXPENSE'!V199","v":100},26000,26100,0]
[null,null,{"$f":"IF('3 INCOME & EXPENSE'!E200=0,\"\",'3 INCOME & EXPENSE'!E200)","v":""},{"$f":"T('3 INCOME & EXPENSE'!G200)","v":""},{"$f":"'3 INCOME & EXPENSE'!M200","v":{"v":0,"d":"0.0"}},{"$f":"'3 INCOME & EXPENSE'!N200","v":{"v":0,"d":"$0.00"}},{"$f":"'3 INCOME & EXPENSE'!O200","v":{"v":0,"d":"$0.00"}},302,{"$f":"'3 INCOME & EXPENSE'!V200","v":100},26000,26100,0]
[null,null,{"$f":"IF('3 INCOME & EXPENSE'!E201=0,\"\",'3 INCOME & EXPENSE'!E201)","v":""},{"$f":"T('3 INCOME & EXPENSE'!G201)","v":""},{"$f":"'3 INCOME & EXPENSE'!M201","v":{"v":0,"d":"0.0"}},{"$f":"'3 INCOME & EXPENSE'!N201","v":{"v":0,"d":"$0.00"}},{"$f":"'3 INCOME & EXPENSE'!O201","v":{"v":0,"d":"$0.00"}},303,{"$f":"'3 INCOME & EXPENSE'!V201","v":100},26000,26100,0]
[null,null,{"$f":"IF('3 INCOME & EXPENSE'!E202=0,\"\",'3 INCOME & EXPENSE'!E202)","v":""},{"$f":"T('3 INCOME & EXPENSE'!G202)","v":""},{"$f":"'3 INCOME & EXPENSE'!M202","v":{"v":0,"d":"0.0"}},{"$f":"'3 INCOME & EXPENSE'!N202","v":{"v":0,"d":"$0.00"}},{"$f":"'3 INCOME & EXPENSE'!O202","v":{"v":0,"d":"$0.00"}},304,{"$f":"'3 INCOME & EXPENSE'!V202","v":100},26000,26100,0]
[null,null,{"$f":"IF('3 INCOME & EXPENSE'!E203=0,\"\",'3 INCOME & EXPENSE'!E203)","v":""},{"$f":"T('3 INCOME & EXPENSE'!G203)","v":""},{"$f":"'3 INCOME & EXPENSE'!M203","v":{"v":0,"d":"0.0"}},{"$f":"'3 INCOME & EXPENSE'!N203","v":{"v":0,"d":"$0.00"}},{"$f":"'3 INCOME & EXPENSE'!O203","v":{"v":0,"d":"$0.00"}},305,{"$f":"'3 INCOME & EXPENSE'!V203","v":100},26000,26100,0]
[null,null,{"$f":"IF('3 INCOME & EXPENSE'!E204=0,\"\",'3 INCOME & EXPENSE'!E204)","v":""},{"$f":"T('3 INCOME & EXPENSE'!G204)","v":""},{"$f":"'3 INCOME & EXPENSE'!M204","v":{"v":0,"d":"0.0"}},{"$f":"'3 INCOME & EXPENSE'!N204","v":{"v":0,"d":"$0.00"}},{"$f":"'3 INCOME & EXPENSE'!O204","v":{"v":0,"d":"$0.00"}},306,{"$f":"'3 INCOME & EXPENSE'!V204","v":100},26000,26100,0]
[null,null,{"$f":"IF('3 INCOME & EXPENSE'!E205=0,\"\",'3 INCOME & EXPENSE'!E205)","v":""},{"$f":"T('3 INCOME & EXPENSE'!G205)","v":""},{"$f":"'3 INCOME & EXPENSE'!M205","v":{"v":0,"d":"0.0"}},{"$f":"'3 INCOME & EXPENSE'!N205","v":{"v":0,"d":"$0.00"}},{"$f":"'3 INCOME & EXPENSE'!O205","v":{"v":0,"d":"$0.00"}},307,{"$f":"'3 INCOME & EXPENSE'!V205","v":100},26000,26100,0]
[null,null,{"$f":"IF('3 INCOME & EXPENSE'!E206=0,\"\",'3 INCOME & EXPENSE'!E206)","v":""},{"$f":"T('3 INCOME & EXPENSE'!G206)","v":""},{"$f":"'3 INCOME & EXPENSE'!M206","v":{"v":0,"d":"0.0"}},{"$f":"'3 INCOME & EXPENSE'!N206","v":{"v":0,"d":"$0.00"}},{"$f":"'3 INCOME & EXPENSE'!O206","v":{"v":0,"d":"$0.00"}},308,{"$f":"'3 INCOME & EXPENSE'!V206","v":100},{"$f":"VLOOKUP(I319,$I$880:$J$905,2)","v":26000},26100,{"$f":"K319*E319","v":0}]
[null,null,{"$f":"IF('3 INCOME & EXPENSE'!E207=0,\"\",'3 INCOME & EXPENSE'!E207)","v":""},{"$f":"T('3 INCOME & EXPENSE'!G207)","v":""},{"$f":"'3 INCOME & EXPENSE'!M207","v":{"v":0,"d":"0.0"}},{"$f":"'3 INCOME & EXPENSE'!N207","v":{"v":0,"d":"$0.00"}},{"$f":"'3 INCOME & EXPENSE'!O207","v":{"v":0,"d":"$0.00"}},309,{"$f":"'3 INCOME & EXPENSE'!V207","v":100},26000,26100,0]
[null,null,{"$f":"IF('3 INCOME & EXPENSE'!E208=0,\"\",'3 INCOME & EXPENSE'!E208)","v":""},{"$f":"T('3 INCOME & EXPENSE'!G208)","v":""},{"$f":"'3 INCOME & EXPENSE'!M208","v":{"v":0,"d":"0.0"}},{"$f":"'3 INCOME & EXPENSE'!N208","v":{"v":0,"d":"$0.00"}},{"$f":"'3 INCOME & EXPENSE'!O208","v":{"v":0,"d":"$0.00"}},310,{"$f":"'3 INCOME & EXPENSE'!V208","v":100},26000,26100,0]
[null,null,{"$f":"IF('3 INCOME & EXPENSE'!E209=0,\"\",'3 INCOME & EXPENSE'!E209)","v":""},{"$f":"T('3 INCOME & EXPENSE'!G209)","v":""},{"$f":"'3 INCOME & EXPENSE'!M209","v":{"v":0,"d":"0.0"}},{"$f":"'3 INCOME & EXPENSE'!N209","v":{"v":0,"d":"$0.00"}},{"$f":"'3 INCOME & EXPENSE'!O209","v":{"v":0,"d":"$0.00"}},311,{"$f":"'3 INCOME & EXPENSE'!V209","v":100},26000,26100,0]
[null,null,{"$f":"IF('3 INCOME & EXPENSE'!E210=0,\"\",'3 INCOME & EXPENSE'!E210)","v":""},{"$f":"T('3 INCOME & EXPENSE'!G210)","v":""},{"$f":"'3 INCOME & EXPENSE'!M210","v":{"v":0,"d":"0.0"}},{"$f":"'3 INCOME & EXPENSE'!N210","v":{"v":0,"d":"$0.00"}},{"$f":"'3 INCOME & EXPENSE'!O210","v":{"v":0,"d":"$0.00"}},312,{"$f":"'3 INCOME & EXPENSE'!V210","v":100},26000,26100,0]
[null,null,{"$f":"IF('3 INCOME & EXPENSE'!E211=0,\"\",'3 INCOME & EXPENSE'!E211)","v":""},{"$f":"T('3 INCOME & EXPENSE'!G211)","v":""},{"$f":"'3 INCOME & EXPENSE'!M211","v":{"v":0,"d":"0.0"}},{"$f":"'3 INCOME & EXPENSE'!N211","v":{"v":0,"d":"$0.00"}},{"$f":"'3 INCOME & EXPENSE'!O211","v":{"v":0,"d":"$0.00"}},313,{"$f":"'3 INCOME & EXPENSE'!V211","v":100},26000,26100,0]
[null,null,{"$f":"IF('3 INCOME & EXPENSE'!E212=0,\"\",'3 INCOME & EXPENSE'!E212)","v":""},{"$f":"T('3 INCOME & EXPENSE'!G212)","v":""},{"$f":"'3 INCOME & EXPENSE'!M212","v":{"v":0,"d":"0.0"}},{"$f":"'3 INCOME & EXPENSE'!N212","v":{"v":0,"d":"$0.00"}},{"$f":"'3 INCOME & EXPENSE'!O212","v":{"v":0,"d":"$0.00"}},314,{"$f":"'3 INCOME & EXPENSE'!V212","v":100},26000,26100,0]
[null,null,{"$f":"IF('3 INCOME & EXPENSE'!E213=0,\"\",'3 INCOME & EXPENSE'!E213)","v":""},{"$f":"T('3 INCOME & EXPENSE'!G213)","v":""},{"$f":"'3 INCOME & EXPENSE'!M213","v":{"v":0,"d":"0.0"}},{"$f":"'3 INCOME & EXPENSE'!N213","v":{"v":0,"d":"$0.00"}},{"$f":"'3 INCOME & EXPENSE'!O213","v":{"v":0,"d":"$0.00"}},315,{"$f":"'3 INCOME & EXPENSE'!V213","v":100},26000,26100,0]
[null,null,{"$f":"IF('3 INCOME & EXPENSE'!E214=0,\"\",'3 INCOME & EXPENSE'!E214)","v":""},{"$f":"T('3 INCOME & EXPENSE'!G214)","v":""},{"$f":"'3 INCOME & EXPENSE'!M214","v":{"v":0,"d":"0.0"}},{"$f":"'3 INCOME & EXPENSE'!N214","v":{"v":0,"d":"$0.00"}},{"$f":"'3 INCOME & EXPENSE'!O214","v":{"v":0,"d":"$0.00"}},316,{"$f":"'3 INCOME & EXPENSE'!V214","v":100},26000,26100,0]
[null,null,{"$f":"IF('3 INCOME & EXPENSE'!E215=0,\"\",'3 INCOME & EXPENSE'!E215)","v":""},{"$f":"T('3 INCOME & EXPENSE'!G215)","v":""},{"$f":"'3 INCOME & EXPENSE'!M215","v":{"v":0,"d":"0.0"}},{"$f":"'3 INCOME & EXPENSE'!N215","v":{"v":0,"d":"$0.00"}},{"$f":"'3 INCOME & EXPENSE'!O215","v":{"v":0,"d":"$0.00"}},317,{"$f":"'3 INCOME & EXPENSE'!V215","v":100},26000,26100,0]
[null,null,{"$f":"IF('3 INCOME & EXPENSE'!E216=0,\"\",'3 INCOME & EXPENSE'!E216)","v":""},{"$f":"T('3 INCOME & EXPENSE'!G216)","v":""},{"$f":"'3 INCOME & EXPENSE'!M216","v":{"v":0,"d":"0.0"}},{"$f":"'3 INCOME & EXPENSE'!N216","v":{"v":0,"d":"$0.00"}},{"$f":"'3 INCOME & EXPENSE'!O216","v":{"v":0,"d":"$0.00"}},318,{"$f":"'3 INCOME & EXPENSE'!V216","v":100},26000,26100,0]
[null,null,{"$f":"IF('3 INCOME & EXPENSE'!E217=0,\"\",'3 INCOME & EXPENSE'!E217)","v":""},{"$f":"T('3 INCOME & EXPENSE'!G217)","v":""},{"$f":"'3 INCOME & EXPENSE'!M217","v":{"v":0,"d":"0.0"}},{"$f":"'3 INCOME & EXPENSE'!N217","v":{"v":0,"d":"$0.00"}},{"$f":"'3 INCOME & EXPENSE'!O217","v":{"v":0,"d":"$0.00"}},319,{"$f":"'3 INCOME & EXPENSE'!V217","v":100},26000,26100,0]
[null,null,{"$f":"IF('3 INCOME & EXPENSE'!E218=0,\"\",'3 INCOME & EXPENSE'!E218)","v":""},{"$f":"T('3 INCOME & EXPENSE'!G218)","v":""},{"$f":"'3 INCOME & EXPENSE'!M218","v":{"v":0,"d":"0.0"}},{"$f":"'3 INCOME & EXPENSE'!N218","v":{"v":0,"d":"$0.00"}},{"$f":"'3 INCOME & EXPENSE'!O218","v":{"v":0,"d":"$0.00"}},320,{"$f":"'3 INCOME & EXPENSE'!V218","v":100},26000,26100,0]
[null,null,{"$f":"IF('3 INCOME & EXPENSE'!E219=0,\"\",'3 INCOME & EXPENSE'!E219)","v":""},{"$f":"T('3 INCOME & EXPENSE'!G219)","v":""},{"$f":"'3 INCOME & EXPENSE'!M219","v":{"v":0,"d":"0.0"}},{"$f":"'3 INCOME & EXPENSE'!N219","v":{"v":0,"d":"$0.00"}},{"$f":"'3 INCOME & EXPENSE'!O219","v":{"v":0,"d":"$0.00"}},321,{"$f":"'3 INCOME & EXPENSE'!V219","v":100},26000,26100,0]
[null,null,{"$f":"IF('3 INCOME & EXPENSE'!E220=0,\"\",'3 INCOME & EXPENSE'!E220)","v":""},{"$f":"T('3 INCOME & EXPENSE'!G220)","v":""},{"$f":"'3 INCOME & EXPENSE'!M220","v":{"v":0,"d":"0.0"}},{"$f":"'3 INCOME & EXPENSE'!N220","v":{"v":0,"d":"$0.00"}},{"$f":"'3 INCOME & EXPENSE'!O220","v":{"v":0,"d":"$0.00"}},322,{"$f":"'3 INCOME & EXPENSE'!V220","v":100},26000,26100,0]
[null,null,{"$f":"IF('3 INCOME & EXPENSE'!E221=0,\"\",'3 INCOME & EXPENSE'!E221)","v":""},{"$f":"T('3 INCOME & EXPENSE'!G221)","v":""},{"$f":"'3 INCOME & EXPENSE'!M221","v":{"v":0,"d":"0.0"}},{"$f":"'3 INCOME & EXPENSE'!N221","v":{"v":0,"d":"$0.00"}},{"$f":"'3 INCOME & EXPENSE'!O221","v":{"v":0,"d":"$0.00"}},323,{"$f":"'3 INCOME & EXPENSE'!V221","v":100},26000,26100,0]
[null,null,{"$f":"IF('3 INCOME & EXPENSE'!E222=0,\"\",'3 INCOME & EXPENSE'!E222)","v":""},{"$f":"T('3 INCOME & EXPENSE'!G222)","v":""},{"$f":"'3 INCOME & EXPENSE'!M222","v":{"v":0,"d":"0.0"}},{"$f":"'3 INCOME & EXPENSE'!N222","v":{"v":0,"d":"$0.00"}},{"$f":"'3 INCOME & EXPENSE'!O222","v":{"v":0,"d":"$0.00"}},324,{"$f":"'3 INCOME & EXPENSE'!V222","v":100},26000,26100,0]
[null,null,{"$f":"IF('3 INCOME & EXPENSE'!E223=0,\"\",'3 INCOME & EXPENSE'!E223)","v":""},{"$f":"T('3 INCOME & EXPENSE'!G223)","v":""},{"$f":"'3 INCOME & EXPENSE'!M223","v":{"v":0,"d":"0.0"}},{"$f":"'3 INCOME & EXPENSE'!N223","v":{"v":0,"d":"$0.00"}},{"$f":"'3 INCOME & EXPENSE'!O223","v":{"v":0,"d":"$0.00"}},325,{"$f":"'3 INCOME & EXPENSE'!V223","v":100},26000,26100,0]
[null,null,{"$f":"IF('3 INCOME & EXPENSE'!E224=0,\"\",'3 INCOME & EXPENSE'!E224)","v":""},{"$f":"T('3 INCOME & EXPENSE'!G224)","v":""},{"$f":"'3 INCOME & EXPENSE'!M224","v":{"v":0,"d":"0.0"}},{"$f":"'3 INCOME & EXPENSE'!N224","v":{"v":0,"d":"$0.00"}},{"$f":"'3 INCOME & EXPENSE'!O224","v":{"v":0,"d":"$0.00"}},326,{"$f":"'3 INCOME & EXPENSE'!V224","v":100},26000,26100,0]
[null,null,{"$f":"IF('3 INCOME & EXPENSE'!E225=0,\"\",'3 INCOME & EXPENSE'!E225)","v":""},{"$f":"T('3 INCOME & EXPENSE'!G225)","v":""},{"$f":"'3 INCOME & EXPENSE'!M225","v":{"v":0,"d":"0.0"}},{"$f":"'3 INCOME & EXPENSE'!N225","v":{"v":0,"d":"$0.00"}},{"$f":"'3 INCOME & EXPENSE'!O225","v":{"v":0,"d":"$0.00"}},327,{"$f":"'3 INCOME & EXPENSE'!V225","v":100},26000,26100,0]
[null,null,{"$f":"IF('3 INCOME & EXPENSE'!E226=0,\"\",'3 INCOME & EXPENSE'!E226)","v":""},{"$f":"T('3 INCOME & EXPENSE'!G226)","v":""},{"$f":"'3 INCOME & EXPENSE'!M226","v":{"v":0,"d":"0.0"}},{"$f":"'3 INCOME & EXPENSE'!N226","v":{"v":0,"d":"$0.00"}},{"$f":"'3 INCOME & EXPENSE'!O226","v":{"v":0,"d":"$0.00"}},328,{"$f":"'3 INCOME & EXPENSE'!V226","v":100},26000,26100,0]
[null,null,{"$f":"IF('3 INCOME & EXPENSE'!E227=0,\"\",'3 INCOME & EXPENSE'!E227)","v":""},{"$f":"T('3 INCOME & EXPENSE'!G227)","v":""},{"$f":"'3 INCOME & EXPENSE'!M227","v":{"v":0,"d":"0.0"}},{"$f":"'3 INCOME & EXPENSE'!N227","v":{"v":0,"d":"$0.00"}},{"$f":"'3 INCOME & EXPENSE'!O227","v":{"v":0,"d":"$0.00"}},329,{"$f":"'3 INCOME & EXPENSE'!V227","v":100},26000,26100,0]
[null,null,{"$f":"IF('3 INCOME & EXPENSE'!E228=0,\"\",'3 INCOME & EXPENSE'!E228)","v":""},{"$f":"T('3 INCOME & EXPENSE'!G228)","v":""},{"$f":"'3 INCOME & EXPENSE'!M228","v":{"v":0,"d":"0.0"}},{"$f":"'3 INCOME & EXPENSE'!N228","v":{"v":0,"d":"$0.00"}},{"$f":"'3 INCOME & EXPENSE'!O228","v":{"v":0,"d":"$0.00"}},330,{"$f":"'3 INCOME & EXPENSE'!V228","v":100},26000,26100,0]
[null,null,{"$f":"IF('3 INCOME & EXPENSE'!E229=0,\"\",'3 INCOME & EXPENSE'!E229)","v":""},{"$f":"T('3 INCOME & EXPENSE'!G229)","v":""},{"$f":"'3 INCOME & EXPENSE'!M229","v":{"v":0,"d":"0.0"}},{"$f":"'3 INCOME & EXPENSE'!N229","v":{"v":0,"d":"$0.00"}},{"$f":"'3 INCOME & EXPENSE'!O229","v":{"v":0,"d":"$0.00"}},331,{"$f":"'3 INCOME & EXPENSE'!V229","v":100},26000,26100,0]
[null,null,{"$f":"IF('3 INCOME & EXPENSE'!E230=0,\"\",'3 INCOME & EXPENSE'!E230)","v":""},{"$f":"T('3 INCOME & EXPENSE'!G230)","v":""},{"$f":"'3 INCOME & EXPENSE'!M230","v":{"v":0,"d":"0.0"}},{"$f":"'3 INCOME & EXPENSE'!N230","v":{"v":0,"d":"$0.00"}},{"$f":"'3 INCOME & EXPENSE'!O230","v":{"v":0,"d":"$0.00"}},332,{"$f":"'3 INCOME & EXPENSE'!V230","v":100},26000,26100,0]
[null,null,{"$f":"IF('3 INCOME & EXPENSE'!E231=0,\"\",'3 INCOME & EXPENSE'!E231)","v":""},{"$f":"T('3 INCOME & EXPENSE'!G231)","v":""},{"$f":"'3 INCOME & EXPENSE'!M231","v":{"v":0,"d":"0.0"}},{"$f":"'3 INCOME & EXPENSE'!N231","v":{"v":0,"d":"$0.00"}},{"$f":"'3 INCOME & EXPENSE'!O231","v":{"v":0,"d":"$0.00"}},333,{"$f":"'3 INCOME & EXPENSE'!V231","v":100},26000,26100,0]
[null,null,{"$f":"IF('3 INCOME & EXPENSE'!E232=0,\"\",'3 INCOME & EXPENSE'!E232)","v":""},{"$f":"T('3 INCOME & EXPENSE'!G232)","v":""},{"$f":"'3 INCOME & EXPENSE'!M232","v":{"v":0,"d":"0.0"}},{"$f":"'3 INCOME & EXPENSE'!N232","v":{"v":0,"d":"$0.00"}},{"$f":"'3 INCOME & EXPENSE'!O232","v":{"v":0,"d":"$0.00"}},334,{"$f":"'3 INCOME & EXPENSE'!V232","v":100},26000,26100,0]
[null,null,{"$f":"IF('3 INCOME & EXPENSE'!E233=0,\"\",'3 INCOME & EXPENSE'!E233)","v":""},{"$f":"T('3 INCOME & EXPENSE'!G233)","v":""},{"$f":"'3 INCOME & EXPENSE'!M233","v":{"v":0,"d":"0.0"}},{"$f":"'3 INCOME & EXPENSE'!N233","v":{"v":0,"d":"$0.00"}},{"$f":"'3 INCOME & EXPENSE'!O233","v":{"v":0,"d":"$0.00"}},335,{"$f":"'3 INCOME & EXPENSE'!V233","v":100},26000,26100,0]
[null,null,{"$f":"IF('3 INCOME & EXPENSE'!E234=0,\"\",'3 INCOME & EXPENSE'!E234)","v":""},{"$f":"T('3 INCOME & EXPENSE'!G234)","v":""},{"$f":"'3 INCOME & EXPENSE'!M234","v":{"v":0,"d":"0.0"}},{"$f":"'3 INCOME & EXPENSE'!N234","v":{"v":0,"d":"$0.00"}},{"$f":"'3 INCOME & EXPENSE'!O234","v":{"v":0,"d":"$0.00"}},336,{"$f":"'3 INCOME & EXPENSE'!V234","v":100},26000,26100,0]
[null,null,{"$f":"IF('3 INCOME & EXPENSE'!E235=0,\"\",'3 INCOME & EXPENSE'!E235)","v":""},{"$f":"T('3 INCOME & EXPENSE'!G235)","v":""},{"$f":"'3 INCOME & EXPENSE'!M235","v":{"v":0,"d":"0.0"}},{"$f":"'3 INCOME & EXPENSE'!N235","v":{"v":0,"d":"$0.00"}},{"$f":"'3 INCOME & EXPENSE'!O235","v":{"v":0,"d":"$0.00"}},337,{"$f":"'3 INCOME & EXPENSE'!V235","v":100},26000,26100,0]
[null,null,{"$f":"IF('3 INCOME & EXPENSE'!E236=0,\"\",'3 INCOME & EXPENSE'!E236)","v":""},{"$f":"T('3 INCOME & EXPENSE'!G236)","v":""},{"$f":"'3 INCOME & EXPENSE'!M236","v":{"v":0,"d":"0.0"}},{"$f":"'3 INCOME & EXPENSE'!N236","v":{"v":0,"d":"$0.00"}},{"$f":"'3 INCOME & EXPENSE'!O236","v":{"v":0,"d":"$0.00"}},338,{"$f":"'3 INCOME & EXPENSE'!V236","v":100},26000,26100,0]
[null,null,{"$f":"IF('3 INCOME & EXPENSE'!E237=0,\"\",'3 INCOME & EXPENSE'!E237)","v":""},{"$f":"T('3 INCOME & EXPENSE'!G237)","v":""},{"$f":"'3 INCOME & EXPENSE'!M237","v":{"v":0,"d":"0.0"}},{"$f":"'3 INCOME & EXPENSE'!N237","v":{"v":0,"d":"$0.00"}},{"$f":"'3 INCOME & EXPENSE'!O237","v":{"v":0,"d":"$0.00"}},339,{"$f":"'3 INCOME & EXPENSE'!V237","v":100},26000,26100,0]
[null,null,{"$f":"IF('3 INCOME & EXPENSE'!E238=0,\"\",'3 INCOME & EXPENSE'!E238)","v":""},{"$f":"T('3 INCOME & EXPENSE'!G238)","v":""},{"$f":"'3 INCOME & EXPENSE'!M238","v":{"v":0,"d":"0.0"}},{"$f":"'3 INCOME & EXPENSE'!N238","v":{"v":0,"d":"$0.00"}},{"$f":"'3 INCOME & EXPENSE'!O238","v":{"v":0,"d":"$0.00"}},340,{"$f":"'3 INCOME & EXPENSE'!V238","v":100},26000,26100,0]
[null,null,{"$f":"IF('3 INCOME & EXPENSE'!E239=0,\"\",'3 INCOME & EXPENSE'!E239)","v":""},{"$f":"T('3 INCOME & EXPENSE'!G239)","v":""},{"$f":"'3 INCOME & EXPENSE'!M239","v":{"v":0,"d":"0.0"}},{"$f":"'3 INCOME & EXPENSE'!N239","v":{"v":0,"d":"$0.00"}},{"$f":"'3 INCOME & EXPENSE'!O239","v":{"v":0,"d":"$0.00"}},341,{"$f":"'3 INCOME & EXPENSE'!V239","v":100},26000,26100,0]
[null,null,{"$f":"IF('3 INCOME & EXPENSE'!E240=0,\"\",'3 INCOME & EXPENSE'!E240)","v":""},{"$f":"T('3 INCOME & EXPENSE'!G240)","v":""},{"$f":"'3 INCOME & EXPENSE'!M240","v":{"v":0,"d":"0.0"}},{"$f":"'3 INCOME & EXPENSE'!N240","v":{"v":0,"d":"$0.00"}},{"$f":"'3 INCOME & EXPENSE'!O240","v":{"v":0,"d":"$0.00"}},342,{"$f":"'3 INCOME & EXPENSE'!V240","v":100},26000,26100,0]
[null,null,{"$f":"IF('3 INCOME & EXPENSE'!E241=0,\"\",'3 INCOME & EXPENSE'!E241)","v":""},{"$f":"T('3 INCOME & EXPENSE'!G241)","v":""},{"$f":"'3 INCOME & EXPENSE'!M241","v":{"v":0,"d":"0.0"}},{"$f":"'3 INCOME & EXPENSE'!N241","v":{"v":0,"d":"$0.00"}},{"$f":"'3 INCOME & EXPENSE'!O241","v":{"v":0,"d":"$0.00"}},343,{"$f":"'3 INCOME & EXPENSE'!V241","v":100},26000,26100,0]
[null,null,{"$f":"IF('3 INCOME & EXPENSE'!E242=0,\"\",'3 INCOME & EXPENSE'!E242)","v":""},{"$f":"T('3 INCOME & EXPENSE'!G242)","v":""},{"$f":"'3 INCOME & EXPENSE'!M242","v":{"v":0,"d":"0.0"}},{"$f":"'3 INCOME & EXPENSE'!N242","v":{"v":0,"d":"$0.00"}},{"$f":"'3 INCOME & EXPENSE'!O242","v":{"v":0,"d":"$0.00"}},344,{"$f":"'3 INCOME & EXPENSE'!V242","v":100},26000,26100,0]
[null,null,{"$f":"IF('3 INCOME & EXPENSE'!E243=0,\"\",'3 INCOME & EXPENSE'!E243)","v":""},{"$f":"T('3 INCOME & EXPENSE'!G243)","v":""},{"$f":"'3 INCOME & EXPENSE'!M243","v":{"v":0,"d":"0.0"}},{"$f":"'3 INCOME & EXPENSE'!N243","v":{"v":0,"d":"$0.00"}},{"$f":"'3 INCOME & EXPENSE'!O243","v":{"v":0,"d":"$0.00"}},345,{"$f":"'3 INCOME & EXPENSE'!V243","v":100},26000,26100,0]
[null,null,{"$f":"IF('3 INCOME & EXPENSE'!E244=0,\"\",'3 INCOME & EXPENSE'!E244)","v":""},{"$f":"T('3 INCOME & EXPENSE'!G244)","v":""},{"$f":"'3 INCOME & EXPENSE'!M244","v":{"v":0,"d":"0.0"}},{"$f":"'3 INCOME & EXPENSE'!N244","v":{"v":0,"d":"$0.00"}},{"$f":"'3 INCOME & EXPENSE'!O244","v":{"v":0,"d":"$0.00"}},346,{"$f":"'3 INCOME & EXPENSE'!V244","v":100},26000,26100,0]
[null,null,{"$f":"IF('3 INCOME & EXPENSE'!E245=0,\"\",'3 INCOME & EXPENSE'!E245)","v":""},{"$f":"T('3 INCOME & EXPENSE'!G245)","v":""},{"$f":"'3 INCOME & EXPENSE'!M245","v":{"v":0,"d":"0.0"}},{"$f":"'3 INCOME & EXPENSE'!N245","v":{"v":0,"d":"$0.00"}},{"$f":"'3 INCOME & EXPENSE'!O245","v":{"v":0,"d":"$0.00"}},347,{"$f":"'3 INCOME & EXPENSE'!V245","v":100},26000,26100,0]
[null,null,{"$f":"IF('3 INCOME & EXPENSE'!E246=0,\"\",'3 INCOME & EXPENSE'!E246)","v":""},{"$f":"T('3 INCOME & EXPENSE'!G246)","v":""},{"$f":"'3 INCOME & EXPENSE'!M246","v":{"v":0,"d":"0.0"}},{"$f":"'3 INCOME & EXPENSE'!N246","v":{"v":0,"d":"$0.00"}},{"$f":"'3 INCOME & EXPENSE'!O246","v":{"v":0,"d":"$0.00"}},348,{"$f":"'3 INCOME & EXPENSE'!V246","v":100},26000,26100,0]
[null,null,{"$f":"IF('3 INCOME & EXPENSE'!E247=0,\"\",'3 INCOME & EXPENSE'!E247)","v":""},{"$f":"T('3 INCOME & EXPENSE'!G247)","v":""},{"$f":"'3 INCOME & EXPENSE'!M247","v":{"v":0,"d":"0.0"}},{"$f":"'3 INCOME & EXPENSE'!N247","v":{"v":0,"d":"$0.00"}},{"$f":"'3 INCOME & EXPENSE'!O247","v":{"v":0,"d":"$0.00"}},349,{"$f":"'3 INCOME & EXPENSE'!V247","v":100},26000,26100,0]
[null,null,{"$f":"IF('3 INCOME & EXPENSE'!E248=0,\"\",'3 INCOME & EXPENSE'!E248)","v":""},{"$f":"T('3 INCOME & EXPENSE'!G248)","v":""},{"$f":"'3 INCOME & EXPENSE'!M248","v":{"v":0,"d":"0.0"}},{"$f":"'3 INCOME & EXPENSE'!N248","v":{"v":0,"d":"$0.00"}},{"$f":"'3 INCOME & EXPENSE'!O248","v":{"v":0,"d":"$0.00"}},350,{"$f":"'3 INCOME & EXPENSE'!V248","v":100},26000,26100,0]
[null,null,{"$f":"IF('3 INCOME & EXPENSE'!E249=0,\"\",'3 INCOME & EXPENSE'!E249)","v":""},{"$f":"T('3 INCOME & EXPENSE'!G249)","v":""},{"$f":"'3 INCOME & EXPENSE'!M249","v":{"v":0,"d":"0.0"}},{"$f":"'3 INCOME & EXPENSE'!N249","v":{"v":0,"d":"$0.00"}},{"$f":"'3 INCOME & EXPENSE'!O249","v":{"v":0,"d":"$0.00"}},351,{"$f":"'3 INCOME & EXPENSE'!V249","v":100},26000,26100,0]
[null,null,{"$f":"IF('3 INCOME & EXPENSE'!E250=0,\"\",'3 INCOME & EXPENSE'!E250)","v":""},{"$f":"T('3 INCOME & EXPENSE'!G250)","v":""},{"$f":"'3 INCOME & EXPENSE'!M250","v":{"v":0,"d":"0.0"}},{"$f":"'3 INCOME & EXPENSE'!N250","v":{"v":0,"d":"$0.00"}},{"$f":"'3 INCOME & EXPENSE'!O250","v":{"v":0,"d":"$0.00"}},352,{"$f":"'3 INCOME & EXPENSE'!V250","v":100},26000,26100,0]
[null,null,{"$f":"IF('3 INCOME & EXPENSE'!E251=0,\"\",'3 INCOME & EXPENSE'!E251)","v":""},{"$f":"T('3 INCOME & EXPENSE'!G251)","v":""},{"$f":"'3 INCOME & EXPENSE'!M251","v":{"v":0,"d":"0.0"}},{"$f":"'3 INCOME & EXPENSE'!N251","v":{"v":0,"d":"$0.00"}},{"$f":"'3 INCOME & EXPENSE'!O251","v":{"v":0,"d":"$0.00"}},353,{"$f":"'3 INCOME & EXPENSE'!V251","v":100},26000,26100,0]
[null,null,{"$f":"IF('3 INCOME & EXPENSE'!E252=0,\"\",'3 INCOME & EXPENSE'!E252)","v":""},{"$f":"T('3 INCOME & EXPENSE'!G252)","v":""},{"$f":"'3 INCOME & EXPENSE'!M252","v":{"v":0,"d":"0.0"}},{"$f":"'3 INCOME & EXPENSE'!N252","v":{"v":0,"d":"$0.00"}},{"$f":"'3 INCOME & EXPENSE'!O252","v":{"v":0,"d":"$0.00"}},354,{"$f":"'3 INCOME & EXPENSE'!V252","v":100},26000,26100,0]
[null,null,{"$f":"IF('3 INCOME & EXPENSE'!E253=0,\"\",'3 INCOME & EXPENSE'!E253)","v":""},{"$f":"T('3 INCOME & EXPENSE'!G253)","v":""},{"$f":"'3 INCOME & EXPENSE'!M253","v":{"v":0,"d":"0.0"}},{"$f":"'3 INCOME & EXPENSE'!N253","v":{"v":0,"d":"$0.00"}},{"$f":"'3 INCOME & EXPENSE'!O253","v":{"v":0,"d":"$0.00"}},355,{"$f":"'3 INCOME & EXPENSE'!V253","v":100},26000,26100,0]
[null,null,{"$f":"IF('3 INCOME & EXPENSE'!E254=0,\"\",'3 INCOME & EXPENSE'!E254)","v":""},{"$f":"T('3 INCOME & EXPENSE'!G254)","v":""},{"$f":"'3 INCOME & EXPENSE'!M254","v":{"v":0,"d":"0.0"}},{"$f":"'3 INCOME & EXPENSE'!N254","v":{"v":0,"d":"$0.00"}},{"$f":"'3 INCOME & EXPENSE'!O254","v":{"v":0,"d":"$0.00"}},356,{"$f":"'3 INCOME & EXPENSE'!V254","v":100},26000,26100,0]
[null,null,{"$f":"IF('3 INCOME & EXPENSE'!E255=0,\"\",'3 INCOME & EXPENSE'!E255)","v":""},{"$f":"T('3 INCOME & EXPENSE'!G255)","v":""},{"$f":"'3 INCOME & EXPENSE'!M255","v":{"v":0,"d":"0.0"}},{"$f":"'3 INCOME & EXPENSE'!N255","v":{"v":0,"d":"$0.00"}},{"$f":"'3 INCOME & EXPENSE'!O255","v":{"v":0,"d":"$0.00"}},357,{"$f":"'3 INCOME & EXPENSE'!V255","v":100},26000,26100,0]
[null,null,{"$f":"IF('3 INCOME & EXPENSE'!E256=0,\"\",'3 INCOME & EXPENSE'!E256)","v":""},{"$f":"T('3 INCOME & EXPENSE'!G256)","v":""},{"$f":"'3 INCOME & EXPENSE'!M256","v":{"v":0,"d":"0.0"}},{"$f":"'3 INCOME & EXPENSE'!N256","v":{"v":0,"d":"$0.00"}},{"$f":"'3 INCOME & EXPENSE'!O256","v":{"v":0,"d":"$0.00"}},358,{"$f":"'3 INCOME & EXPENSE'!V256","v":100},26000,26100,0]
[null,null,{"$f":"IF('3 INCOME & EXPENSE'!E257=0,\"\",'3 INCOME & EXPENSE'!E257)","v":""},{"$f":"T('3 INCOME & EXPENSE'!G257)","v":""},{"$f":"'3 INCOME & EXPENSE'!M257","v":{"v":0,"d":"0.0"}},{"$f":"'3 INCOME & EXPENSE'!N257","v":{"v":0,"d":"$0.00"}},{"$f":"'3 INCOME & EXPENSE'!O257","v":{"v":0,"d":"$0.00"}},359,{"$f":"'3 INCOME & EXPENSE'!V257","v":100},26000,26100,0]
[null,null,{"$f":"IF('3 INCOME & EXPENSE'!E258=0,\"\",'3 INCOME & EXPENSE'!E258)","v":""},{"$f":"T('3 INCOME & EXPENSE'!G258)","v":""},{"$f":"'3 INCOME & EXPENSE'!M258","v":{"v":0,"d":"0.0"}},{"$f":"'3 INCOME & EXPENSE'!N258","v":{"v":0,"d":"$0.00"}},{"$f":"'3 INCOME & EXPENSE'!O258","v":{"v":0,"d":"$0.00"}},360,{"$f":"'3 INCOME & EXPENSE'!V258","v":100},26000,{"$f":"I371+J371","v":26100},0]
[null,null,{"$f":"IF('3 INCOME & EXPENSE'!E259=0,\"\",'3 INCOME & EXPENSE'!E259)","v":""},{"$f":"T('3 INCOME & EXPENSE'!G259)","v":""},{"$f":"'3 INCOME & EXPENSE'!M259","v":{"v":0,"d":"0.0"}},{"$f":"'3 INCOME & EXPENSE'!N259","v":{"v":0,"d":"$0.00"}},{"$f":"'3 INCOME & EXPENSE'!O259","v":{"v":0,"d":"$0.00"}},361,{"$f":"'3 INCOME & EXPENSE'!V259","v":100},26000,26100,0]
[null,null,{"$f":"IF('3 INCOME & EXPENSE'!E260=0,\"\",'3 INCOME & EXPENSE'!E260)","v":""},{"$f":"T('3 INCOME & EXPENSE'!G260)","v":""},{"$f":"'3 INCOME & EXPENSE'!M260","v":{"v":0,"d":"0.0"}},{"$f":"'3 INCOME & EXPENSE'!N260","v":{"v":0,"d":"$0.00"}},{"$f":"'3 INCOME & EXPENSE'!O260","v":{"v":0,"d":"$0.00"}},362,{"$f":"'3 INCOME & EXPENSE'!V260","v":100},26000,26100,0]
[null,null,{"$f":"IF('3 INCOME & EXPENSE'!E261=0,\"\",'3 INCOME & EXPENSE'!E261)","v":""},{"$f":"T('3 INCOME & EXPENSE'!G261)","v":""},{"$f":"'3 INCOME & EXPENSE'!M261","v":{"v":0,"d":"0.0"}},{"$f":"'3 INCOME & EXPENSE'!N261","v":{"v":0,"d":"$0.00"}},{"$f":"'3 INCOME & EXPENSE'!O261","v":{"v":0,"d":"$0.00"}},363,{"$f":"'3 INCOME & EXPENSE'!V261","v":100},26000,26100,0]
[null,null,{"$f":"IF('3 INCOME & EXPENSE'!E262=0,\"\",'3 INCOME & EXPENSE'!E262)","v":""},{"$f":"T('3 INCOME & EXPENSE'!G262)","v":""},{"$f":"'3 INCOME & EXPENSE'!M262","v":{"v":0,"d":"0.0"}},{"$f":"'3 INCOME & EXPENSE'!N262","v":{"v":0,"d":"$0.00"}},{"$f":"'3 INCOME & EXPENSE'!O262","v":{"v":0,"d":"$0.00"}},364,{"$f":"'3 INCOME & EXPENSE'!V262","v":100},26000,26100,0]
[null,null,{"$f":"IF('3 INCOME & EXPENSE'!E263=0,\"\",'3 INCOME & EXPENSE'!E263)","v":""},{"$f":"T('3 INCOME & EXPENSE'!G263)","v":""},{"$f":"'3 INCOME & EXPENSE'!M263","v":{"v":0,"d":"0.0"}},{"$f":"'3 INCOME & EXPENSE'!N263","v":{"v":0,"d":"$0.00"}},{"$f":"'3 INCOME & EXPENSE'!O263","v":{"v":0,"d":"$0.00"}},365,{"$f":"'3 INCOME & EXPENSE'!V263","v":100},26000,26100,0]
[null,null,{"$f":"IF('3 INCOME & EXPENSE'!E264=0,\"\",'3 INCOME & EXPENSE'!E264)","v":""},{"$f":"T('3 INCOME & EXPENSE'!G264)","v":""},{"$f":"'3 INCOME & EXPENSE'!M264","v":{"v":0,"d":"0.0"}},{"$f":"'3 INCOME & EXPENSE'!N264","v":{"v":0,"d":"$0.00"}},{"$f":"'3 INCOME & EXPENSE'!O264","v":{"v":0,"d":"$0.00"}},366,{"$f":"'3 INCOME & EXPENSE'!V264","v":100},26000,26100,0]
[null,null,{"$f":"IF('3 INCOME & EXPENSE'!E265=0,\"\",'3 INCOME & EXPENSE'!E265)","v":""},{"$f":"T('3 INCOME & EXPENSE'!G265)","v":""},{"$f":"'3 INCOME & EXPENSE'!M265","v":{"v":0,"d":"0.0"}},{"$f":"'3 INCOME & EXPENSE'!N265","v":{"v":0,"d":"$0.00"}},{"$f":"'3 INCOME & EXPENSE'!O265","v":{"v":0,"d":"$0.00"}},367,{"$f":"'3 INCOME & EXPENSE'!V265","v":100},26000,26100,0]
[null,null,{"$f":"IF('3 INCOME & EXPENSE'!E266=0,\"\",'3 INCOME & EXPENSE'!E266)","v":""},{"$f":"T('3 INCOME & EXPENSE'!G266)","v":""},{"$f":"'3 INCOME & EXPENSE'!M266","v":{"v":0,"d":"0.0"}},{"$f":"'3 INCOME & EXPENSE'!N266","v":{"v":0,"d":"$0.00"}},{"$f":"'3 INCOME & EXPENSE'!O266","v":{"v":0,"d":"$0.00"}},368,{"$f":"'3 INCOME & EXPENSE'!V266","v":100},26000,26100,0]
[null,null,{"$f":"IF('3 INCOME & EXPENSE'!E267=0,\"\",'3 INCOME & EXPENSE'!E267)","v":""},{"$f":"T('3 INCOME & EXPENSE'!G267)","v":""},{"$f":"'3 INCOME & EXPENSE'!M267","v":{"v":0,"d":"0.0"}},{"$f":"'3 INCOME & EXPENSE'!N267","v":{"v":0,"d":"$0.00"}},{"$f":"'3 INCOME & EXPENSE'!O267","v":{"v":0,"d":"$0.00"}},369,{"$f":"'3 INCOME & EXPENSE'!V267","v":100},26000,26100,0]
[null,null,{"$f":"IF('3 INCOME & EXPENSE'!E268=0,\"\",'3 INCOME & EXPENSE'!E268)","v":""},{"$f":"T('3 INCOME & EXPENSE'!G268)","v":""},{"$f":"'3 INCOME & EXPENSE'!M268","v":{"v":0,"d":"0.0"}},{"$f":"'3 INCOME & EXPENSE'!N268","v":{"v":0,"d":"$0.00"}},{"$f":"'3 INCOME & EXPENSE'!O268","v":{"v":0,"d":"$0.00"}},370,{"$f":"'3 INCOME & EXPENSE'!V268","v":100},26000,26100,0]
[null,null,{"$f":"IF('3 INCOME & EXPENSE'!E269=0,\"\",'3 INCOME & EXPENSE'!E269)","v":""},{"$f":"T('3 INCOME & EXPENSE'!G269)","v":""},{"$f":"'3 INCOME & EXPENSE'!M269","v":{"v":0,"d":"0.0"}},{"$f":"'3 INCOME & EXPENSE'!N269","v":{"v":0,"d":"$0.00"}},{"$f":"'3 INCOME & EXPENSE'!O269","v":{"v":0,"d":"$0.00"}},371,{"$f":"'3 INCOME & EXPENSE'!V269","v":100},26000,26100,0]
[null,null,{"$f":"IF('3 INCOME & EXPENSE'!E270=0,\"\",'3 INCOME & EXPENSE'!E270)","v":""},{"$f":"T('3 INCOME & EXPENSE'!G270)","v":""},{"$f":"'3 INCOME & EXPENSE'!M270","v":{"v":0,"d":"0.0"}},{"$f":"'3 INCOME & EXPENSE'!N270","v":{"v":0,"d":"$0.00"}},{"$f":"'3 INCOME & EXPENSE'!O270","v":{"v":0,"d":"$0.00"}},372,{"$f":"'3 INCOME & EXPENSE'!V270","v":100},{"$f":"VLOOKUP(I383,$I$880:$J$905,2)","v":26000},26100,{"$f":"K383*E383","v":0}]
[null,null,{"$f":"IF('3 INCOME & EXPENSE'!E271=0,\"\",'3 INCOME & EXPENSE'!E271)","v":""},{"$f":"T('3 INCOME & EXPENSE'!G271)","v":""},{"$f":"'3 INCOME & EXPENSE'!M271","v":{"v":0,"d":"0.0"}},{"$f":"'3 INCOME & EXPENSE'!N271","v":{"v":0,"d":"$0.00"}},{"$f":"'3 INCOME & EXPENSE'!O271","v":{"v":0,"d":"$0.00"}},373,{"$f":"'3 INCOME & EXPENSE'!V271","v":100},26000,26100,0]
[null,null,{"$f":"IF('3 INCOME & EXPENSE'!E272=0,\"\",'3 INCOME & EXPENSE'!E272)","v":""},{"$f":"T('3 INCOME & EXPENSE'!G272)","v":""},{"$f":"'3 INCOME & EXPENSE'!M272","v":{"v":0,"d":"0.0"}},{"$f":"'3 INCOME & EXPENSE'!N272","v":{"v":0,"d":"$0.00"}},{"$f":"'3 INCOME & EXPENSE'!O272","v":{"v":0,"d":"$0.00"}},374,{"$f":"'3 INCOME & EXPENSE'!V272","v":100},26000,26100,0]
[null,null,{"$f":"IF('3 INCOME & EXPENSE'!E273=0,\"\",'3 INCOME & EXPENSE'!E273)","v":""},{"$f":"T('3 INCOME & EXPENSE'!G273)","v":""},{"$f":"'3 INCOME & EXPENSE'!M273","v":{"v":0,"d":"0.0"}},{"$f":"'3 INCOME & EXPENSE'!N273","v":{"v":0,"d":"$0.00"}},{"$f":"'3 INCOME & EXPENSE'!O273","v":{"v":0,"d":"$0.00"}},375,{"$f":"'3 INCOME & EXPENSE'!V273","v":100},26000,26100,0]
[null,null,{"$f":"IF('3 INCOME & EXPENSE'!E274=0,\"\",'3 INCOME & EXPENSE'!E274)","v":""},{"$f":"T('3 INCOME & EXPENSE'!G274)","v":""},{"$f":"'3 INCOME & EXPENSE'!M274","v":{"v":0,"d":"0.0"}},{"$f":"'3 INCOME & EXPENSE'!N274","v":{"v":0,"d":"$0.00"}},{"$f":"'3 INCOME & EXPENSE'!O274","v":{"v":0,"d":"$0.00"}},376,{"$f":"'3 INCOME & EXPENSE'!V274","v":100},26000,26100,0]
[null,null,{"$f":"IF('3 INCOME & EXPENSE'!E275=0,\"\",'3 INCOME & EXPENSE'!E275)","v":""},{"$f":"T('3 INCOME & EXPENSE'!G275)","v":""},{"$f":"'3 INCOME & EXPENSE'!M275","v":{"v":0,"d":"0.0"}},{"$f":"'3 INCOME & EXPENSE'!N275","v":{"v":0,"d":"$0.00"}},{"$f":"'3 INCOME & EXPENSE'!O275","v":{"v":0,"d":"$0.00"}},377,{"$f":"'3 INCOME & EXPENSE'!V275","v":100},26000,26100,0]
[null,null,{"$f":"IF('3 INCOME & EXPENSE'!E276=0,\"\",'3 INCOME & EXPENSE'!E276)","v":""},{"$f":"T('3 INCOME & EXPENSE'!G276)","v":""},{"$f":"'3 INCOME & EXPENSE'!M276","v":{"v":0,"d":"0.0"}},{"$f":"'3 INCOME & EXPENSE'!N276","v":{"v":0,"d":"$0.00"}},{"$f":"'3 INCOME & EXPENSE'!O276","v":{"v":0,"d":"$0.00"}},378,{"$f":"'3 INCOME & EXPENSE'!V276","v":100},26000,26100,0]
[null,null,{"$f":"IF('3 INCOME & EXPENSE'!E277=0,\"\",'3 INCOME & EXPENSE'!E277)","v":""},{"$f":"T('3 INCOME & EXPENSE'!G277)","v":""},{"$f":"'3 INCOME & EXPENSE'!M277","v":{"v":0,"d":"0.0"}},{"$f":"'3 INCOME & EXPENSE'!N277","v":{"v":0,"d":"$0.00"}},{"$f":"'3 INCOME & EXPENSE'!O277","v":{"v":0,"d":"$0.00"}},379,{"$f":"'3 INCOME & EXPENSE'!V277","v":100},26000,26100,0]
[null,null,{"$f":"IF('3 INCOME & EXPENSE'!E278=0,\"\",'3 INCOME & EXPENSE'!E278)","v":""},{"$f":"T('3 INCOME & EXPENSE'!G278)","v":""},{"$f":"'3 INCOME & EXPENSE'!M278","v":{"v":0,"d":"0.0"}},{"$f":"'3 INCOME & EXPENSE'!N278","v":{"v":0,"d":"$0.00"}},{"$f":"'3 INCOME & EXPENSE'!O278","v":{"v":0,"d":"$0.00"}},380,{"$f":"'3 INCOME & EXPENSE'!V278","v":100},26000,26100,0]
[null,null,{"$f":"IF('3 INCOME & EXPENSE'!E279=0,\"\",'3 INCOME & EXPENSE'!E279)","v":""},{"$f":"T('3 INCOME & EXPENSE'!G279)","v":""},{"$f":"'3 INCOME & EXPENSE'!M279","v":{"v":0,"d":"0.0"}},{"$f":"'3 INCOME & EXPENSE'!N279","v":{"v":0,"d":"$0.00"}},{"$f":"'3 INCOME & EXPENSE'!O279","v":{"v":0,"d":"$0.00"}},381,{"$f":"'3 INCOME & EXPENSE'!V279","v":100},26000,26100,0]
[null,null,{"$f":"IF('3 INCOME & EXPENSE'!E280=0,\"\",'3 INCOME & EXPENSE'!E280)","v":""},{"$f":"T('3 INCOME & EXPENSE'!G280)","v":""},{"$f":"'3 INCOME & EXPENSE'!M280","v":{"v":0,"d":"0.0"}},{"$f":"'3 INCOME & EXPENSE'!N280","v":{"v":0,"d":"$0.00"}},{"$f":"'3 INCOME & EXPENSE'!O280","v":{"v":0,"d":"$0.00"}},382,{"$f":"'3 INCOME & EXPENSE'!V280","v":100},26000,26100,0]
[null,null,{"$f":"IF('3 INCOME & EXPENSE'!E281=0,\"\",'3 INCOME & EXPENSE'!E281)","v":""},{"$f":"T('3 INCOME & EXPENSE'!G281)","v":""},{"$f":"'3 INCOME & EXPENSE'!M281","v":{"v":0,"d":"0.0"}},{"$f":"'3 INCOME & EXPENSE'!N281","v":{"v":0,"d":"$0.00"}},{"$f":"'3 INCOME & EXPENSE'!O281","v":{"v":0,"d":"$0.00"}},383,{"$f":"'3 INCOME & EXPENSE'!V281","v":100},26000,26100,0]
[null,null,{"$f":"IF('3 INCOME & EXPENSE'!E282=0,\"\",'3 INCOME & EXPENSE'!E282)","v":""},{"$f":"T('3 INCOME & EXPENSE'!G282)","v":""},{"$f":"'3 INCOME & EXPENSE'!M282","v":{"v":0,"d":"0.0"}},{"$f":"'3 INCOME & EXPENSE'!N282","v":{"v":0,"d":"$0.00"}},{"$f":"'3 INCOME & EXPENSE'!O282","v":{"v":0,"d":"$0.00"}},384,{"$f":"'3 INCOME & EXPENSE'!V282","v":100},26000,26100,0]
[null,null,{"$f":"IF('3 INCOME & EXPENSE'!E283=0,\"\",'3 INCOME & EXPENSE'!E283)","v":""},{"$f":"T('3 INCOME & EXPENSE'!G283)","v":""},{"$f":"'3 INCOME & EXPENSE'!M283","v":{"v":0,"d":"0.0"}},{"$f":"'3 INCOME & EXPENSE'!N283","v":{"v":0,"d":"$0.00"}},{"$f":"'3 INCOME & EXPENSE'!O283","v":{"v":0,"d":"$0.00"}},385,{"$f":"'3 INCOME & EXPENSE'!V283","v":100},26000,26100,0]
[null,null,{"$f":"IF('3 INCOME & EXPENSE'!E284=0,\"\",'3 INCOME & EXPENSE'!E284)","v":""},{"$f":"T('3 INCOME & EXPENSE'!G284)","v":""},{"$f":"'3 INCOME & EXPENSE'!M284","v":{"v":0,"d":"0.0"}},{"$f":"'3 INCOME & EXPENSE'!N284","v":{"v":0,"d":"$0.00"}},{"$f":"'3 INCOME & EXPENSE'!O284","v":{"v":0,"d":"$0.00"}},386,{"$f":"'3 INCOME & EXPENSE'!V284","v":100},26000,26100,0]
[null,null,{"$f":"IF('3 INCOME & EXPENSE'!E285=0,\"\",'3 INCOME & EXPENSE'!E285)","v":""},{"$f":"T('3 INCOME & EXPENSE'!G285)","v":""},{"$f":"'3 INCOME & EXPENSE'!M285","v":{"v":0,"d":"0.0"}},{"$f":"'3 INCOME & EXPENSE'!N285","v":{"v":0,"d":"$0.00"}},{"$f":"'3 INCOME & EXPENSE'!O285","v":{"v":0,"d":"$0.00"}},387,{"$f":"'3 INCOME & EXPENSE'!V285","v":100},26000,26100,0]
[null,null,{"$f":"IF('3 INCOME & EXPENSE'!E286=0,\"\",'3 INCOME & EXPENSE'!E286)","v":""},{"$f":"T('3 INCOME & EXPENSE'!G286)","v":""},{"$f":"'3 INCOME & EXPENSE'!M286","v":{"v":0,"d":"0.0"}},{"$f":"'3 INCOME & EXPENSE'!N286","v":{"v":0,"d":"$0.00"}},{"$f":"'3 INCOME & EXPENSE'!O286","v":{"v":0,"d":"$0.00"}},388,{"$f":"'3 INCOME & EXPENSE'!V286","v":100},26000,26100,0]
[null,null,{"$f":"IF('3 INCOME & EXPENSE'!E287=0,\"\",'3 INCOME & EXPENSE'!E287)","v":""},{"$f":"T('3 INCOME & EXPENSE'!G287)","v":""},{"$f":"'3 INCOME & EXPENSE'!M287","v":{"v":0,"d":"0.0"}},{"$f":"'3 INCOME & EXPENSE'!N287","v":{"v":0,"d":"$0.00"}},{"$f":"'3 INCOME & EXPENSE'!O287","v":{"v":0,"d":"$0.00"}},389,{"$f":"'3 INCOME & EXPENSE'!V287","v":100},26000,26100,0]
[null,null,{"$f":"IF('3 INCOME & EXPENSE'!E288=0,\"\",'3 INCOME & EXPENSE'!E288)","v":""},{"$f":"T('3 INCOME & EXPENSE'!G288)","v":""},{"$f":"'3 INCOME & EXPENSE'!M288","v":{"v":0,"d":"0.0"}},{"$f":"'3 INCOME & EXPENSE'!N288","v":{"v":0,"d":"$0.00"}},{"$f":"'3 INCOME & EXPENSE'!O288","v":{"v":0,"d":"$0.00"}},390,{"$f":"'3 INCOME & EXPENSE'!V288","v":100},26000,26100,0]
[null,null,{"$f":"IF('3 INCOME & EXPENSE'!E289=0,\"\",'3 INCOME & EXPENSE'!E289)","v":""},{"$f":"T('3 INCOME & EXPENSE'!G289)","v":""},{"$f":"'3 INCOME & EXPENSE'!M289","v":{"v":0,"d":"0.0"}},{"$f":"'3 INCOME & EXPENSE'!N289","v":{"v":0,"d":"$0.00"}},{"$f":"'3 INCOME & EXPENSE'!O289","v":{"v":0,"d":"$0.00"}},391,{"$f":"'3 INCOME & EXPENSE'!V289","v":100},26000,26100,0]
[null,null,{"$f":"IF('3 INCOME & EXPENSE'!E290=0,\"\",'3 INCOME & EXPENSE'!E290)","v":""},{"$f":"T('3 INCOME & EXPENSE'!G290)","v":""},{"$f":"'3 INCOME & EXPENSE'!M290","v":{"v":0,"d":"0.0"}},{"$f":"'3 INCOME & EXPENSE'!N290","v":{"v":0,"d":"$0.00"}},{"$f":"'3 INCOME & EXPENSE'!O290","v":{"v":0,"d":"$0.00"}},392,{"$f":"'3 INCOME & EXPENSE'!V290","v":100},26000,26100,0]
[null,null,{"$f":"IF('3 INCOME & EXPENSE'!E291=0,\"\",'3 INCOME & EXPENSE'!E291)","v":""},{"$f":"T('3 INCOME & EXPENSE'!G291)","v":""},{"$f":"'3 INCOME & EXPENSE'!M291","v":{"v":0,"d":"0.0"}},{"$f":"'3 INCOME & EXPENSE'!N291","v":{"v":0,"d":"$0.00"}},{"$f":"'3 INCOME & EXPENSE'!O291","v":{"v":0,"d":"$0.00"}},393,{"$f":"'3 INCOME & EXPENSE'!V291","v":100},26000,26100,0]
[null,null,{"$f":"IF('3 INCOME & EXPENSE'!E292=0,\"\",'3 INCOME & EXPENSE'!E292)","v":""},{"$f":"T('3 INCOME & EXPENSE'!G292)","v":""},{"$f":"'3 INCOME & EXPENSE'!M292","v":{"v":0,"d":"0.0"}},{"$f":"'3 INCOME & EXPENSE'!N292","v":{"v":0,"d":"$0.00"}},{"$f":"'3 INCOME & EXPENSE'!O292","v":{"v":0,"d":"$0.00"}},394,{"$f":"'3 INCOME & EXPENSE'!V292","v":100},26000,26100,0]
[null,null,{"$f":"IF('3 INCOME & EXPENSE'!E293=0,\"\",'3 INCOME & EXPENSE'!E293)","v":""},{"$f":"T('3 INCOME & EXPENSE'!G293)","v":""},{"$f":"'3 INCOME & EXPENSE'!M293","v":{"v":0,"d":"0.0"}},{"$f":"'3 INCOME & EXPENSE'!N293","v":{"v":0,"d":"$0.00"}},{"$f":"'3 INCOME & EXPENSE'!O293","v":{"v":0,"d":"$0.00"}},395,{"$f":"'3 INCOME & EXPENSE'!V293","v":100},26000,26100,0]
[null,null,{"$f":"IF('3 INCOME & EXPENSE'!E294=0,\"\",'3 INCOME & EXPENSE'!E294)","v":""},{"$f":"T('3 INCOME & EXPENSE'!G294)","v":""},{"$f":"'3 INCOME & EXPENSE'!M294","v":{"v":0,"d":"0.0"}},{"$f":"'3 INCOME & EXPENSE'!N294","v":{"v":0,"d":"$0.00"}},{"$f":"'3 INCOME & EXPENSE'!O294","v":{"v":0,"d":"$0.00"}},396,{"$f":"'3 INCOME & EXPENSE'!V294","v":100},26000,26100,0]
[null,null,{"$f":"IF('3 INCOME & EXPENSE'!E295=0,\"\",'3 INCOME & EXPENSE'!E295)","v":""},{"$f":"T('3 INCOME & EXPENSE'!G295)","v":""},{"$f":"'3 INCOME & EXPENSE'!M295","v":{"v":0,"d":"0.0"}},{"$f":"'3 INCOME & EXPENSE'!N295","v":{"v":0,"d":"$0.00"}},{"$f":"'3 INCOME & EXPENSE'!O295","v":{"v":0,"d":"$0.00"}},397,{"$f":"'3 INCOME & EXPENSE'!V295","v":100},26000,26100,0]
[null,null,{"$f":"IF('3 INCOME & EXPENSE'!E296=0,\"\",'3 INCOME & EXPENSE'!E296)","v":""},{"$f":"T('3 INCOME & EXPENSE'!G296)","v":""},{"$f":"'3 INCOME & EXPENSE'!M296","v":{"v":0,"d":"0.0"}},{"$f":"'3 INCOME & EXPENSE'!N296","v":{"v":0,"d":"$0.00"}},{"$f":"'3 INCOME & EXPENSE'!O296","v":{"v":0,"d":"$0.00"}},398,{"$f":"'3 INCOME & EXPENSE'!V296","v":100},26000,26100,0]
[null,null,{"$f":"IF('3 INCOME & EXPENSE'!E297=0,\"\",'3 INCOME & EXPENSE'!E297)","v":""},{"$f":"T('3 INCOME & EXPENSE'!G297)","v":""},{"$f":"'3 INCOME & EXPENSE'!M297","v":{"v":0,"d":"0.0"}},{"$f":"'3 INCOME & EXPENSE'!N297","v":{"v":0,"d":"$0.00"}},{"$f":"'3 INCOME & EXPENSE'!O297","v":{"v":0,"d":"$0.00"}},399,{"$f":"'3 INCOME & EXPENSE'!V297","v":100},26000,26100,0]
[null,null,{"$f":"IF('3 INCOME & EXPENSE'!E298=0,\"\",'3 INCOME & EXPENSE'!E298)","v":""},{"$f":"T('3 INCOME & EXPENSE'!G298)","v":""},{"$f":"'3 INCOME & EXPENSE'!M298","v":{"v":0,"d":"0.0"}},{"$f":"'3 INCOME & EXPENSE'!N298","v":{"v":0,"d":"$0.00"}},{"$f":"'3 INCOME & EXPENSE'!O298","v":{"v":0,"d":"$0.00"}},400,{"$f":"'3 INCOME & EXPENSE'!V298","v":100},26000,26100,0]
[null,null,{"$f":"IF('3 INCOME & EXPENSE'!E299=0,\"\",'3 INCOME & EXPENSE'!E299)","v":""},{"$f":"T('3 INCOME & EXPENSE'!G299)","v":""},{"$f":"'3 INCOME & EXPENSE'!M299","v":{"v":0,"d":"0.0"}},{"$f":"'3 INCOME & EXPENSE'!N299","v":{"v":0,"d":"$0.00"}},{"$f":"'3 INCOME & EXPENSE'!O299","v":{"v":0,"d":"$0.00"}},401,{"$f":"'3 INCOME & EXPENSE'!V299","v":100},26000,26100,0]
[null,null,{"$f":"IF('3 INCOME & EXPENSE'!E300=0,\"\",'3 INCOME & EXPENSE'!E300)","v":""},{"$f":"T('3 INCOME & EXPENSE'!G300)","v":""},{"$f":"'3 INCOME & EXPENSE'!M300","v":{"v":0,"d":"0.0"}},{"$f":"'3 INCOME & EXPENSE'!N300","v":{"v":0,"d":"$0.00"}},{"$f":"'3 INCOME & EXPENSE'!O300","v":{"v":0,"d":"$0.00"}},402,{"$f":"'3 INCOME & EXPENSE'!V300","v":100},26000,26100,0]
[null,null,{"$f":"IF('3 INCOME & EXPENSE'!E301=0,\"\",'3 INCOME & EXPENSE'!E301)","v":""},{"$f":"T('3 INCOME & EXPENSE'!G301)","v":""},{"$f":"'3 INCOME & EXPENSE'!M301","v":{"v":0,"d":"0.0"}},{"$f":"'3 INCOME & EXPENSE'!N301","v":{"v":0,"d":"$0.00"}},{"$f":"'3 INCOME & EXPENSE'!O301","v":{"v":0,"d":"$0.00"}},403,{"$f":"'3 INCOME & EXPENSE'!V301","v":100},26000,26100,0]
[null,null,{"$f":"IF('3 INCOME & EXPENSE'!E302=0,\"\",'3 INCOME & EXPENSE'!E302)","v":""},{"$f":"T('3 INCOME & EXPENSE'!G302)","v":""},{"$f":"'3 INCOME & EXPENSE'!M302","v":{"v":0,"d":"0.0"}},{"$f":"'3 INCOME & EXPENSE'!N302","v":{"v":0,"d":"$0.00"}},{"$f":"'3 INCOME & EXPENSE'!O302","v":{"v":0,"d":"$0.00"}},404,{"$f":"'3 INCOME & EXPENSE'!V302","v":100},26000,26100,0]
[null,null,{"$f":"IF('3 INCOME & EXPENSE'!E303=0,\"\",'3 INCOME & EXPENSE'!E303)","v":""},{"$f":"T('3 INCOME & EXPENSE'!G303)","v":""},{"$f":"'3 INCOME & EXPENSE'!M303","v":{"v":0,"d":"0.0"}},{"$f":"'3 INCOME & EXPENSE'!N303","v":{"v":0,"d":"$0.00"}},{"$f":"'3 INCOME & EXPENSE'!O303","v":{"v":0,"d":"$0.00"}},405,{"$f":"'3 INCOME & EXPENSE'!V303","v":100},26000,26100,0]
[null,null,{"$f":"IF('3 INCOME & EXPENSE'!E304=0,\"\",'3 INCOME & EXPENSE'!E304)","v":""},{"$f":"T('3 INCOME & EXPENSE'!G304)","v":""},{"$f":"'3 INCOME & EXPENSE'!M304","v":{"v":0,"d":"0.0"}},{"$f":"'3 INCOME & EXPENSE'!N304","v":{"v":0,"d":"$0.00"}},{"$f":"'3 INCOME & EXPENSE'!O304","v":{"v":0,"d":"$0.00"}},406,{"$f":"'3 INCOME & EXPENSE'!V304","v":100},26000,26100,0]
[null,null,{"$f":"IF('3 INCOME & EXPENSE'!E305=0,\"\",'3 INCOME & EXPENSE'!E305)","v":""},{"$f":"T('3 INCOME & EXPENSE'!G305)","v":""},{"$f":"'3 INCOME & EXPENSE'!M305","v":{"v":0,"d":"0.0"}},{"$f":"'3 INCOME & EXPENSE'!N305","v":{"v":0,"d":"$0.00"}},{"$f":"'3 INCOME & EXPENSE'!O305","v":{"v":0,"d":"$0.00"}},407,{"$f":"'3 INCOME & EXPENSE'!V305","v":100},26000,26100,0]
[null,null,{"$f":"IF('3 INCOME & EXPENSE'!E306=0,\"\",'3 INCOME & EXPENSE'!E306)","v":""},{"$f":"T('3 INCOME & EXPENSE'!G306)","v":""},{"$f":"'3 INCOME & EXPENSE'!M306","v":{"v":0,"d":"0.0"}},{"$f":"'3 INCOME & EXPENSE'!N306","v":{"v":0,"d":"$0.00"}},{"$f":"'3 INCOME & EXPENSE'!O306","v":{"v":0,"d":"$0.00"}},408,{"$f":"'3 INCOME & EXPENSE'!V306","v":100},26000,26100,0]
[null,null,{"$f":"IF('3 INCOME & EXPENSE'!E307=0,\"\",'3 INCOME & EXPENSE'!E307)","v":""},{"$f":"T('3 INCOME & EXPENSE'!G307)","v":""},{"$f":"'3 INCOME & EXPENSE'!M307","v":{"v":0,"d":"0.0"}},{"$f":"'3 INCOME & EXPENSE'!N307","v":{"v":0,"d":"$0.00"}},{"$f":"'3 INCOME & EXPENSE'!O307","v":{"v":0,"d":"$0.00"}},409,{"$f":"'3 INCOME & EXPENSE'!V307","v":100},26000,26100,0]
[null,null,{"$f":"IF('3 INCOME & EXPENSE'!E308=0,\"\",'3 INCOME & EXPENSE'!E308)","v":""},{"$f":"T('3 INCOME & EXPENSE'!G308)","v":""},{"$f":"'3 INCOME & EXPENSE'!M308","v":{"v":0,"d":"0.0"}},{"$f":"'3 INCOME & EXPENSE'!N308","v":{"v":0,"d":"$0.00"}},{"$f":"'3 INCOME & EXPENSE'!O308","v":{"v":0,"d":"$0.00"}},410,{"$f":"'3 INCOME & EXPENSE'!V308","v":100},26000,26100,0]
[null,null,{"$f":"IF('3 INCOME & EXPENSE'!E309=0,\"\",'3 INCOME & EXPENSE'!E309)","v":""},{"$f":"T('3 INCOME & EXPENSE'!G309)","v":""},{"$f":"'3 INCOME & EXPENSE'!M309","v":{"v":0,"d":"0.0"}},{"$f":"'3 INCOME & EXPENSE'!N309","v":{"v":0,"d":"$0.00"}},{"$f":"'3 INCOME & EXPENSE'!O309","v":{"v":0,"d":"$0.00"}},411,{"$f":"'3 INCOME & EXPENSE'!V309","v":100},26000,26100,0]
[null,null,{"$f":"IF('3 INCOME & EXPENSE'!E310=0,\"\",'3 INCOME & EXPENSE'!E310)","v":""},{"$f":"T('3 INCOME & EXPENSE'!G310)","v":""},{"$f":"'3 INCOME & EXPENSE'!M310","v":{"v":0,"d":"0.0"}},{"$f":"'3 INCOME & EXPENSE'!N310","v":{"v":0,"d":"$0.00"}},{"$f":"'3 INCOME & EXPENSE'!O310","v":{"v":0,"d":"$0.00"}},412,{"$f":"'3 INCOME & EXPENSE'!V310","v":100},26000,26100,0]
[null,null,{"$f":"IF('3 INCOME & EXPENSE'!E311=0,\"\",'3 INCOME & EXPENSE'!E311)","v":""},{"$f":"T('3 INCOME & EXPENSE'!G311)","v":""},{"$f":"'3 INCOME & EXPENSE'!M311","v":{"v":0,"d":"0.0"}},{"$f":"'3 INCOME & EXPENSE'!N311","v":{"v":0,"d":"$0.00"}},{"$f":"'3 INCOME & EXPENSE'!O311","v":{"v":0,"d":"$0.00"}},413,{"$f":"'3 INCOME & EXPENSE'!V311","v":100},26000,26100,0]
[null,null,{"$f":"IF('3 INCOME & EXPENSE'!E312=0,\"\",'3 INCOME & EXPENSE'!E312)","v":""},{"$f":"T('3 INCOME & EXPENSE'!G312)","v":""},{"$f":"'3 INCOME & EXPENSE'!M312","v":{"v":0,"d":"0.0"}},{"$f":"'3 INCOME & EXPENSE'!N312","v":{"v":0,"d":"$0.00"}},{"$f":"'3 INCOME & EXPENSE'!O312","v":{"v":0,"d":"$0.00"}},414,{"$f":"'3 INCOME & EXPENSE'!V312","v":100},26000,26100,0]
[null,null,{"$f":"IF('3 INCOME & EXPENSE'!E313=0,\"\",'3 INCOME & EXPENSE'!E313)","v":""},{"$f":"T('3 INCOME & EXPENSE'!G313)","v":""},{"$f":"'3 INCOME & EXPENSE'!M313","v":{"v":0,"d":"0.0"}},{"$f":"'3 INCOME & EXPENSE'!N313","v":{"v":0,"d":"$0.00"}},{"$f":"'3 INCOME & EXPENSE'!O313","v":{"v":0,"d":"$0.00"}},415,{"$f":"'3 INCOME & EXPENSE'!V313","v":100},26000,26100,0]
[null,null,{"$f":"IF('3 INCOME & EXPENSE'!E314=0,\"\",'3 INCOME & EXPENSE'!E314)","v":""},{"$f":"T('3 INCOME & EXPENSE'!G314)","v":""},{"$f":"'3 INCOME & EXPENSE'!M314","v":{"v":0,"d":"0.0"}},{"$f":"'3 INCOME & EXPENSE'!N314","v":{"v":0,"d":"$0.00"}},{"$f":"'3 INCOME & EXPENSE'!O314","v":{"v":0,"d":"$0.00"}},416,{"$f":"'3 INCOME & EXPENSE'!V314","v":100},26000,26100,0]
[null,null,{"$f":"IF('3 INCOME & EXPENSE'!E315=0,\"\",'3 INCOME & EXPENSE'!E315)","v":""},{"$f":"T('3 INCOME & EXPENSE'!G315)","v":""},{"$f":"'3 INCOME & EXPENSE'!M315","v":{"v":0,"d":"0.0"}},{"$f":"'3 INCOME & EXPENSE'!N315","v":{"v":0,"d":"$0.00"}},{"$f":"'3 INCOME & EXPENSE'!O315","v":{"v":0,"d":"$0.00"}},417,{"$f":"'3 INCOME & EXPENSE'!V315","v":100},26000,26100,0]
[null,null,{"$f":"IF('3 INCOME & EXPENSE'!E316=0,\"\",'3 INCOME & EXPENSE'!E316)","v":""},{"$f":"T('3 INCOME & EXPENSE'!G316)","v":""},{"$f":"'3 INCOME & EXPENSE'!M316","v":{"v":0,"d":"0.0"}},{"$f":"'3 INCOME & EXPENSE'!N316","v":{"v":0,"d":"$0.00"}},{"$f":"'3 INCOME & EXPENSE'!O316","v":{"v":0,"d":"$0.00"}},418,{"$f":"'3 INCOME & EXPENSE'!V316","v":100},26000,26100,0]
[null,null,{"$f":"IF('3 INCOME & EXPENSE'!E317=0,\"\",'3 INCOME & EXPENSE'!E317)","v":""},{"$f":"T('3 INCOME & EXPENSE'!G317)","v":""},{"$f":"'3 INCOME & EXPENSE'!M317","v":{"v":0,"d":"0.0"}},{"$f":"'3 INCOME & EXPENSE'!N317","v":{"v":0,"d":"$0.00"}},{"$f":"'3 INCOME & EXPENSE'!O317","v":{"v":0,"d":"$0.00"}},419,{"$f":"'3 INCOME & EXPENSE'!V317","v":100},26000,26100,0]
[null,null,{"$f":"IF('3 INCOME & EXPENSE'!E318=0,\"\",'3 INCOME & EXPENSE'!E318)","v":""},{"$f":"T('3 INCOME & EXPENSE'!G318)","v":""},{"$f":"'3 INCOME & EXPENSE'!M318","v":{"v":0,"d":"0.0"}},{"$f":"'3 INCOME & EXPENSE'!N318","v":{"v":0,"d":"$0.00"}},{"$f":"'3 INCOME & EXPENSE'!O318","v":{"v":0,"d":"$0.00"}},420,{"$f":"'3 INCOME & EXPENSE'!V318","v":100},26000,26100,0]
[null,null,{"$f":"IF('3 INCOME & EXPENSE'!E319=0,\"\",'3 INCOME & EXPENSE'!E319)","v":""},{"$f":"T('3 INCOME & EXPENSE'!G319)","v":""},{"$f":"'3 INCOME & EXPENSE'!M319","v":{"v":0,"d":"0.0"}},{"$f":"'3 INCOME & EXPENSE'!N319","v":{"v":0,"d":"$0.00"}},{"$f":"'3 INCOME & EXPENSE'!O319","v":{"v":0,"d":"$0.00"}},421,{"$f":"'3 INCOME & EXPENSE'!V319","v":100},26000,26100,0]
[null,null,{"$f":"IF('3 INCOME & EXPENSE'!E320=0,\"\",'3 INCOME & EXPENSE'!E320)","v":""},{"$f":"T('3 INCOME & EXPENSE'!G320)","v":""},{"$f":"'3 INCOME & EXPENSE'!M320","v":{"v":0,"d":"0.0"}},{"$f":"'3 INCOME & EXPENSE'!N320","v":{"v":0,"d":"$0.00"}},{"$f":"'3 INCOME & EXPENSE'!O320","v":{"v":0,"d":"$0.00"}},422,{"$f":"'3 INCOME & EXPENSE'!V320","v":100},26000,26100,0]
[null,null,{"$f":"IF('3 INCOME & EXPENSE'!E321=0,\"\",'3 INCOME & EXPENSE'!E321)","v":""},{"$f":"T('3 INCOME & EXPENSE'!G321)","v":""},{"$f":"'3 INCOME & EXPENSE'!M321","v":{"v":0,"d":"0.0"}},{"$f":"'3 INCOME & EXPENSE'!N321","v":{"v":0,"d":"$0.00"}},{"$f":"'3 INCOME & EXPENSE'!O321","v":{"v":0,"d":"$0.00"}},423,{"$f":"'3 INCOME & EXPENSE'!V321","v":100},26000,26100,0]
[null,null,{"$f":"IF('3 INCOME & EXPENSE'!E322=0,\"\",'3 INCOME & EXPENSE'!E322)","v":""},{"$f":"T('3 INCOME & EXPENSE'!G322)","v":""},{"$f":"'3 INCOME & EXPENSE'!M322","v":{"v":0,"d":"0.0"}},{"$f":"'3 INCOME & EXPENSE'!N322","v":{"v":0,"d":"$0.00"}},{"$f":"'3 INCOME & EXPENSE'!O322","v":{"v":0,"d":"$0.00"}},424,{"$f":"'3 INCOME & EXPENSE'!V322","v":100},26000,{"$f":"I435+J435","v":26100},0]
[null,null,{"$f":"IF('3 INCOME & EXPENSE'!E323=0,\"\",'3 INCOME & EXPENSE'!E323)","v":""},{"$f":"T('3 INCOME & EXPENSE'!G323)","v":""},{"$f":"'3 INCOME & EXPENSE'!M323","v":{"v":0,"d":"0.0"}},{"$f":"'3 INCOME & EXPENSE'!N323","v":{"v":0,"d":"$0.00"}},{"$f":"'3 INCOME & EXPENSE'!O323","v":{"v":0,"d":"$0.00"}},425,{"$f":"'3 INCOME & EXPENSE'!V323","v":100},26000,26100,0]
[null,null,{"$f":"IF('3 INCOME & EXPENSE'!E324=0,\"\",'3 INCOME & EXPENSE'!E324)","v":""},{"$f":"T('3 INCOME & EXPENSE'!G324)","v":""},{"$f":"'3 INCOME & EXPENSE'!M324","v":{"v":0,"d":"0.0"}},{"$f":"'3 INCOME & EXPENSE'!N324","v":{"v":0,"d":"$0.00"}},{"$f":"'3 INCOME & EXPENSE'!O324","v":{"v":0,"d":"$0.00"}},426,{"$f":"'3 INCOME & EXPENSE'!V324","v":100},26000,26100,0]
[null,null,{"$f":"IF('3 INCOME & EXPENSE'!E325=0,\"\",'3 INCOME & EXPENSE'!E325)","v":""},{"$f":"T('3 INCOME & EXPENSE'!G325)","v":""},{"$f":"'3 INCOME & EXPENSE'!M325","v":{"v":0,"d":"0.0"}},{"$f":"'3 INCOME & EXPENSE'!N325","v":{"v":0,"d":"$0.00"}},{"$f":"'3 INCOME & EXPENSE'!O325","v":{"v":0,"d":"$0.00"}},427,{"$f":"'3 INCOME & EXPENSE'!V325","v":100},26000,26100,0]
[null,null,{"$f":"IF('3 INCOME & EXPENSE'!E326=0,\"\",'3 INCOME & EXPENSE'!E326)","v":""},{"$f":"T('3 INCOME & EXPENSE'!G326)","v":""},{"$f":"'3 INCOME & EXPENSE'!M326","v":{"v":0,"d":"0.0"}},{"$f":"'3 INCOME & EXPENSE'!N326","v":{"v":0,"d":"$0.00"}},{"$f":"'3 INCOME & EXPENSE'!O326","v":{"v":0,"d":"$0.00"}},428,{"$f":"'3 INCOME & EXPENSE'!V326","v":100},26000,26100,0]
[null,null,{"$f":"IF('3 INCOME & EXPENSE'!E327=0,\"\",'3 INCOME & EXPENSE'!E327)","v":""},{"$f":"T('3 INCOME & EXPENSE'!G327)","v":""},{"$f":"'3 INCOME & EXPENSE'!M327","v":{"v":0,"d":"0.0"}},{"$f":"'3 INCOME & EXPENSE'!N327","v":{"v":0,"d":"$0.00"}},{"$f":"'3 INCOME & EXPENSE'!O327","v":{"v":0,"d":"$0.00"}},429,{"$f":"'3 INCOME & EXPENSE'!V327","v":100},26000,26100,0]
[null,null,{"$f":"IF('3 INCOME & EXPENSE'!E328=0,\"\",'3 INCOME & EXPENSE'!E328)","v":""},{"$f":"T('3 INCOME & EXPENSE'!G328)","v":""},{"$f":"'3 INCOME & EXPENSE'!M328","v":{"v":0,"d":"0.0"}},{"$f":"'3 INCOME & EXPENSE'!N328","v":{"v":0,"d":"$0.00"}},{"$f":"'3 INCOME & EXPENSE'!O328","v":{"v":0,"d":"$0.00"}},430,{"$f":"'3 INCOME & EXPENSE'!V328","v":100},26000,26100,0]
[null,null,{"$f":"IF('3 INCOME & EXPENSE'!E329=0,\"\",'3 INCOME & EXPENSE'!E329)","v":""},{"$f":"T('3 INCOME & EXPENSE'!G329)","v":""},{"$f":"'3 INCOME & EXPENSE'!M329","v":{"v":0,"d":"0.0"}},{"$f":"'3 INCOME & EXPENSE'!N329","v":{"v":0,"d":"$0.00"}},{"$f":"'3 INCOME & EXPENSE'!O329","v":{"v":0,"d":"$0.00"}},431,{"$f":"'3 INCOME & EXPENSE'!V329","v":100},26000,26100,0]
[null,null,{"$f":"IF('3 INCOME & EXPENSE'!E330=0,\"\",'3 INCOME & EXPENSE'!E330)","v":""},{"$f":"T('3 INCOME & EXPENSE'!G330)","v":""},{"$f":"'3 INCOME & EXPENSE'!M330","v":{"v":0,"d":"0.0"}},{"$f":"'3 INCOME & EXPENSE'!N330","v":{"v":0,"d":"$0.00"}},{"$f":"'3 INCOME & EXPENSE'!O330","v":{"v":0,"d":"$0.00"}},432,{"$f":"'3 INCOME & EXPENSE'!V330","v":100},26000,26100,0]
[null,null,{"$f":"IF('3 INCOME & EXPENSE'!E331=0,\"\",'3 INCOME & EXPENSE'!E331)","v":""},{"$f":"T('3 INCOME & EXPENSE'!G331)","v":""},{"$f":"'3 INCOME & EXPENSE'!M331","v":{"v":0,"d":"0.0"}},{"$f":"'3 INCOME & EXPENSE'!N331","v":{"v":0,"d":"$0.00"}},{"$f":"'3 INCOME & EXPENSE'!O331","v":{"v":0,"d":"$0.00"}},433,{"$f":"'3 INCOME & EXPENSE'!V331","v":100},26000,26100,0]
[null,null,{"$f":"IF('3 INCOME & EXPENSE'!E332=0,\"\",'3 INCOME & EXPENSE'!E332)","v":""},{"$f":"T('3 INCOME & EXPENSE'!G332)","v":""},{"$f":"'3 INCOME & EXPENSE'!M332","v":{"v":0,"d":"0.0"}},{"$f":"'3 INCOME & EXPENSE'!N332","v":{"v":0,"d":"$0.00"}},{"$f":"'3 INCOME & EXPENSE'!O332","v":{"v":0,"d":"$0.00"}},434,{"$f":"'3 INCOME & EXPENSE'!V332","v":100},26000,26100,0]
[null,null,{"$f":"IF('3 INCOME & EXPENSE'!E333=0,\"\",'3 INCOME & EXPENSE'!E333)","v":""},{"$f":"T('3 INCOME & EXPENSE'!G333)","v":""},{"$f":"'3 INCOME & EXPENSE'!M333","v":{"v":0,"d":"0.0"}},{"$f":"'3 INCOME & EXPENSE'!N333","v":{"v":0,"d":"$0.00"}},{"$f":"'3 INCOME & EXPENSE'!O333","v":{"v":0,"d":"$0.00"}},435,{"$f":"'3 INCOME & EXPENSE'!V333","v":100},26000,26100,0]
[null,null,{"$f":"IF('3 INCOME & EXPENSE'!E334=0,\"\",'3 INCOME & EXPENSE'!E334)","v":""},{"$f":"T('3 INCOME & EXPENSE'!G334)","v":""},{"$f":"'3 INCOME & EXPENSE'!M334","v":{"v":0,"d":"0.0"}},{"$f":"'3 INCOME & EXPENSE'!N334","v":{"v":0,"d":"$0.00"}},{"$f":"'3 INCOME & EXPENSE'!O334","v":{"v":0,"d":"$0.00"}},436,{"$f":"'3 INCOME & EXPENSE'!V334","v":100},{"$f":"VLOOKUP(I447,$I$880:$J$905,2)","v":26000},26100,{"$f":"K447*E447","v":0}]
[null,null,{"$f":"IF('3 INCOME & EXPENSE'!E335=0,\"\",'3 INCOME & EXPENSE'!E335)","v":""},{"$f":"T('3 INCOME & EXPENSE'!G335)","v":""},{"$f":"'3 INCOME & EXPENSE'!M335","v":{"v":0,"d":"0.0"}},{"$f":"'3 INCOME & EXPENSE'!N335","v":{"v":0,"d":"$0.00"}},{"$f":"'3 INCOME & EXPENSE'!O335","v":{"v":0,"d":"$0.00"}},437,{"$f":"'3 INCOME & EXPENSE'!V335","v":100},26000,26100,0]
[null,null,{"$f":"IF('3 INCOME & EXPENSE'!E336=0,\"\",'3 INCOME & EXPENSE'!E336)","v":""},{"$f":"T('3 INCOME & EXPENSE'!G336)","v":""},{"$f":"'3 INCOME & EXPENSE'!M336","v":{"v":0,"d":"0.0"}},{"$f":"'3 INCOME & EXPENSE'!N336","v":{"v":0,"d":"$0.00"}},{"$f":"'3 INCOME & EXPENSE'!O336","v":{"v":0,"d":"$0.00"}},438,{"$f":"'3 INCOME & EXPENSE'!V336","v":100},26000,26100,0]
[null,null,{"$f":"IF('3 INCOME & EXPENSE'!E337=0,\"\",'3 INCOME & EXPENSE'!E337)","v":""},{"$f":"T('3 INCOME & EXPENSE'!G337)","v":""},{"$f":"'3 INCOME & EXPENSE'!M337","v":{"v":0,"d":"0.0"}},{"$f":"'3 INCOME & EXPENSE'!N337","v":{"v":0,"d":"$0.00"}},{"$f":"'3 INCOME & EXPENSE'!O337","v":{"v":0,"d":"$0.00"}},439,{"$f":"'3 INCOME & EXPENSE'!V337","v":100},26000,26100,0]
[null,null,{"$f":"IF('3 INCOME & EXPENSE'!E338=0,\"\",'3 INCOME & EXPENSE'!E338)","v":""},{"$f":"T('3 INCOME & EXPENSE'!G338)","v":""},{"$f":"'3 INCOME & EXPENSE'!M338","v":{"v":0,"d":"0.0"}},{"$f":"'3 INCOME & EXPENSE'!N338","v":{"v":0,"d":"$0.00"}},{"$f":"'3 INCOME & EXPENSE'!O338","v":{"v":0,"d":"$0.00"}},440,{"$f":"'3 INCOME & EXPENSE'!V338","v":100},26000,26100,0]
[null,null,{"$f":"IF('3 INCOME & EXPENSE'!E339=0,\"\",'3 INCOME & EXPENSE'!E339)","v":""},{"$f":"T('3 INCOME & EXPENSE'!G339)","v":""},{"$f":"'3 INCOME & EXPENSE'!M339","v":{"v":0,"d":"0.0"}},{"$f":"'3 INCOME & EXPENSE'!N339","v":{"v":0,"d":"$0.00"}},{"$f":"'3 INCOME & EXPENSE'!O339","v":{"v":0,"d":"$0.00"}},441,{"$f":"'3 INCOME & EXPENSE'!V339","v":100},26000,26100,0]
[null,null,{"$f":"IF('3 INCOME & EXPENSE'!E340=0,\"\",'3 INCOME & EXPENSE'!E340)","v":""},{"$f":"T('3 INCOME & EXPENSE'!G340)","v":""},{"$f":"'3 INCOME & EXPENSE'!M340","v":{"v":0,"d":"0.0"}},{"$f":"'3 INCOME & EXPENSE'!N340","v":{"v":0,"d":"$0.00"}},{"$f":"'3 INCOME & EXPENSE'!O340","v":{"v":0,"d":"$0.00"}},442,{"$f":"'3 INCOME & EXPENSE'!V340","v":100},26000,26100,0]
[null,null,{"$f":"IF('3 INCOME & EXPENSE'!E341=0,\"\",'3 INCOME & EXPENSE'!E341)","v":""},{"$f":"T('3 INCOME & EXPENSE'!G341)","v":""},{"$f":"'3 INCOME & EXPENSE'!M341","v":{"v":0,"d":"0.0"}},{"$f":"'3 INCOME & EXPENSE'!N341","v":{"v":0,"d":"$0.00"}},{"$f":"'3 INCOME & EXPENSE'!O341","v":{"v":0,"d":"$0.00"}},443,{"$f":"'3 INCOME & EXPENSE'!V341","v":100},26000,26100,0]
[null,null,{"$f":"IF('3 INCOME & EXPENSE'!E342=0,\"\",'3 INCOME & EXPENSE'!E342)","v":""},{"$f":"T('3 INCOME & EXPENSE'!G342)","v":""},{"$f":"'3 INCOME & EXPENSE'!M342","v":{"v":0,"d":"0.0"}},{"$f":"'3 INCOME & EXPENSE'!N342","v":{"v":0,"d":"$0.00"}},{"$f":"'3 INCOME & EXPENSE'!O342","v":{"v":0,"d":"$0.00"}},444,{"$f":"'3 INCOME & EXPENSE'!V342","v":100},26000,26100,0]
[null,null,{"$f":"IF('3 INCOME & EXPENSE'!E343=0,\"\",'3 INCOME & EXPENSE'!E343)","v":""},{"$f":"T('3 INCOME & EXPENSE'!G343)","v":""},{"$f":"'3 INCOME & EXPENSE'!M343","v":{"v":0,"d":"0.0"}},{"$f":"'3 INCOME & EXPENSE'!N343","v":{"v":0,"d":"$0.00"}},{"$f":"'3 INCOME & EXPENSE'!O343","v":{"v":0,"d":"$0.00"}},445,{"$f":"'3 INCOME & EXPENSE'!V343","v":100},26000,26100,0]
[null,null,{"$f":"IF('3 INCOME & EXPENSE'!E344=0,\"\",'3 INCOME & EXPENSE'!E344)","v":""},{"$f":"T('3 INCOME & EXPENSE'!G344)","v":""},{"$f":"'3 INCOME & EXPENSE'!M344","v":{"v":0,"d":"0.0"}},{"$f":"'3 INCOME & EXPENSE'!N344","v":{"v":0,"d":"$0.00"}},{"$f":"'3 INCOME & EXPENSE'!O344","v":{"v":0,"d":"$0.00"}},446,{"$f":"'3 INCOME & EXPENSE'!V344","v":100},26000,26100,0]
[null,null,{"$f":"IF('3 INCOME & EXPENSE'!E345=0,\"\",'3 INCOME & EXPENSE'!E345)","v":""},{"$f":"T('3 INCOME & EXPENSE'!G345)","v":""},{"$f":"'3 INCOME & EXPENSE'!M345","v":{"v":0,"d":"0.0"}},{"$f":"'3 INCOME & EXPENSE'!N345","v":{"v":0,"d":"$0.00"}},{"$f":"'3 INCOME & EXPENSE'!O345","v":{"v":0,"d":"$0.00"}},447,{"$f":"'3 INCOME & EXPENSE'!V345","v":100},26000,26100,0]
[null,null,{"$f":"IF('3 INCOME & EXPENSE'!E346=0,\"\",'3 INCOME & EXPENSE'!E346)","v":""},{"$f":"T('3 INCOME & EXPENSE'!G346)","v":""},{"$f":"'3 INCOME & EXPENSE'!M346","v":{"v":0,"d":"0.0"}},{"$f":"'3 INCOME & EXPENSE'!N346","v":{"v":0,"d":"$0.00"}},{"$f":"'3 INCOME & EXPENSE'!O346","v":{"v":0,"d":"$0.00"}},448,{"$f":"'3 INCOME & EXPENSE'!V346","v":100},26000,26100,0]
[null,null,{"$f":"IF('3 INCOME & EXPENSE'!E347=0,\"\",'3 INCOME & EXPENSE'!E347)","v":""},{"$f":"T('3 INCOME & EXPENSE'!G347)","v":""},{"$f":"'3 INCOME & EXPENSE'!M347","v":{"v":0,"d":"0.0"}},{"$f":"'3 INCOME & EXPENSE'!N347","v":{"v":0,"d":"$0.00"}},{"$f":"'3 INCOME & EXPENSE'!O347","v":{"v":0,"d":"$0.00"}},449,{"$f":"'3 INCOME & EXPENSE'!V347","v":100},26000,26100,0]
[null,null,{"$f":"IF('3 INCOME & EXPENSE'!E348=0,\"\",'3 INCOME & EXPENSE'!E348)","v":""},{"$f":"T('3 INCOME & EXPENSE'!G348)","v":""},{"$f":"'3 INCOME & EXPENSE'!M348","v":{"v":0,"d":"0.0"}},{"$f":"'3 INCOME & EXPENSE'!N348","v":{"v":0,"d":"$0.00"}},{"$f":"'3 INCOME & EXPENSE'!O348","v":{"v":0,"d":"$0.00"}},450,{"$f":"'3 INCOME & EXPENSE'!V348","v":100},26000,26100,0]
[null,null,{"$f":"IF('3 INCOME & EXPENSE'!E349=0,\"\",'3 INCOME & EXPENSE'!E349)","v":""},{"$f":"T('3 INCOME & EXPENSE'!G349)","v":""},{"$f":"'3 INCOME & EXPENSE'!M349","v":{"v":0,"d":"0.0"}},{"$f":"'3 INCOME & EXPENSE'!N349","v":{"v":0,"d":"$0.00"}},{"$f":"'3 INCOME & EXPENSE'!O349","v":{"v":0,"d":"$0.00"}},451,{"$f":"'3 INCOME & EXPENSE'!V349","v":100},26000,26100,0]
[null,null,{"$f":"IF('3 INCOME & EXPENSE'!E350=0,\"\",'3 INCOME & EXPENSE'!E350)","v":""},{"$f":"T('3 INCOME & EXPENSE'!G350)","v":""},{"$f":"'3 INCOME & EXPENSE'!M350","v":{"v":0,"d":"0.0"}},{"$f":"'3 INCOME & EXPENSE'!N350","v":{"v":0,"d":"$0.00"}},{"$f":"'3 INCOME & EXPENSE'!O350","v":{"v":0,"d":"$0.00"}},452,{"$f":"'3 INCOME & EXPENSE'!V350","v":100},26000,26100,0]
[null,null,{"$f":"IF('3 INCOME & EXPENSE'!E351=0,\"\",'3 INCOME & EXPENSE'!E351)","v":""},{"$f":"T('3 INCOME & EXPENSE'!G351)","v":""},{"$f":"'3 INCOME & EXPENSE'!M351","v":{"v":0,"d":"0.0"}},{"$f":"'3 INCOME & EXPENSE'!N351","v":{"v":0,"d":"$0.00"}},{"$f":"'3 INCOME & EXPENSE'!O351","v":{"v":0,"d":"$0.00"}},453,{"$f":"'3 INCOME & EXPENSE'!V351","v":100},26000,26100,0]
[null,null,{"$f":"IF('3 INCOME & EXPENSE'!E352=0,\"\",'3 INCOME & EXPENSE'!E352)","v":""},{"$f":"T('3 INCOME & EXPENSE'!G352)","v":""},{"$f":"'3 INCOME & EXPENSE'!M352","v":{"v":0,"d":"0.0"}},{"$f":"'3 INCOME & EXPENSE'!N352","v":{"v":0,"d":"$0.00"}},{"$f":"'3 INCOME & EXPENSE'!O352","v":{"v":0,"d":"$0.00"}},454,{"$f":"'3 INCOME & EXPENSE'!V352","v":100},26000,26100,0]
[null,null,{"$f":"IF('3 INCOME & EXPENSE'!E353=0,\"\",'3 INCOME & EXPENSE'!E353)","v":""},{"$f":"T('3 INCOME & EXPENSE'!G353)","v":""},{"$f":"'3 INCOME & EXPENSE'!M353","v":{"v":0,"d":"0.0"}},{"$f":"'3 INCOME & EXPENSE'!N353","v":{"v":0,"d":"$0.00"}},{"$f":"'3 INCOME & EXPENSE'!O353","v":{"v":0,"d":"$0.00"}},455,{"$f":"'3 INCOME & EXPENSE'!V353","v":100},26000,26100,0]
[null,null,{"$f":"IF('3 INCOME & EXPENSE'!E354=0,\"\",'3 INCOME & EXPENSE'!E354)","v":""},{"$f":"T('3 INCOME & EXPENSE'!G354)","v":""},{"$f":"'3 INCOME & EXPENSE'!M354","v":{"v":0,"d":"0.0"}},{"$f":"'3 INCOME & EXPENSE'!N354","v":{"v":0,"d":"$0.00"}},{"$f":"'3 INCOME & EXPENSE'!O354","v":{"v":0,"d":"$0.00"}},456,{"$f":"'3 INCOME & EXPENSE'!V354","v":100},26000,26100,0]
[null,null,{"$f":"IF('3 INCOME & EXPENSE'!E355=0,\"\",'3 INCOME & EXPENSE'!E355)","v":""},{"$f":"T('3 INCOME & EXPENSE'!G355)","v":""},{"$f":"'3 INCOME & EXPENSE'!M355","v":{"v":0,"d":"0.0"}},{"$f":"'3 INCOME & EXPENSE'!N355","v":{"v":0,"d":"$0.00"}},{"$f":"'3 INCOME & EXPENSE'!O355","v":{"v":0,"d":"$0.00"}},457,{"$f":"'3 INCOME & EXPENSE'!V355","v":100},26000,26100,0]
[null,null,{"$f":"IF('3 INCOME & EXPENSE'!E356=0,\"\",'3 INCOME & EXPENSE'!E356)","v":""},{"$f":"T('3 INCOME & EXPENSE'!G356)","v":""},{"$f":"'3 INCOME & EXPENSE'!M356","v":{"v":0,"d":"0.0"}},{"$f":"'3 INCOME & EXPENSE'!N356","v":{"v":0,"d":"$0.00"}},{"$f":"'3 INCOME & EXPENSE'!O356","v":{"v":0,"d":"$0.00"}},458,{"$f":"'3 INCOME & EXPENSE'!V356","v":100},26000,26100,0]
[null,null,{"$f":"IF('3 INCOME & EXPENSE'!E357=0,\"\",'3 INCOME & EXPENSE'!E357)","v":""},{"$f":"T('3 INCOME & EXPENSE'!G357)","v":""},{"$f":"'3 INCOME & EXPENSE'!M357","v":{"v":0,"d":"0.0"}},{"$f":"'3 INCOME & EXPENSE'!N357","v":{"v":0,"d":"$0.00"}},{"$f":"'3 INCOME & EXPENSE'!O357","v":{"v":0,"d":"$0.00"}},459,{"$f":"'3 INCOME & EXPENSE'!V357","v":100},26000,26100,0]
[null,null,{"$f":"IF('3 INCOME & EXPENSE'!E358=0,\"\",'3 INCOME & EXPENSE'!E358)","v":""},{"$f":"T('3 INCOME & EXPENSE'!G358)","v":""},{"$f":"'3 INCOME & EXPENSE'!M358","v":{"v":0,"d":"0.0"}},{"$f":"'3 INCOME & EXPENSE'!N358","v":{"v":0,"d":"$0.00"}},{"$f":"'3 INCOME & EXPENSE'!O358","v":{"v":0,"d":"$0.00"}},460,{"$f":"'3 INCOME & EXPENSE'!V358","v":100},26000,26100,0]
[null,null,{"$f":"IF('3 INCOME & EXPENSE'!E359=0,\"\",'3 INCOME & EXPENSE'!E359)","v":""},{"$f":"T('3 INCOME & EXPENSE'!G359)","v":""},{"$f":"'3 INCOME & EXPENSE'!M359","v":{"v":0,"d":"0.0"}},{"$f":"'3 INCOME & EXPENSE'!N359","v":{"v":0,"d":"$0.00"}},{"$f":"'3 INCOME & EXPENSE'!O359","v":{"v":0,"d":"$0.00"}},461,{"$f":"'3 INCOME & EXPENSE'!V359","v":100},26000,26100,0]
[null,null,{"$f":"IF('3 INCOME & EXPENSE'!E360=0,\"\",'3 INCOME & EXPENSE'!E360)","v":""},{"$f":"T('3 INCOME & EXPENSE'!G360)","v":""},{"$f":"'3 INCOME & EXPENSE'!M360","v":{"v":0,"d":"0.0"}},{"$f":"'3 INCOME & EXPENSE'!N360","v":{"v":0,"d":"$0.00"}},{"$f":"'3 INCOME & EXPENSE'!O360","v":{"v":0,"d":"$0.00"}},462,{"$f":"'3 INCOME & EXPENSE'!V360","v":100},26000,26100,0]
[null,null,{"$f":"IF('3 INCOME & EXPENSE'!E361=0,\"\",'3 INCOME & EXPENSE'!E361)","v":""},{"$f":"T('3 INCOME & EXPENSE'!G361)","v":""},{"$f":"'3 INCOME & EXPENSE'!M361","v":{"v":0,"d":"0.0"}},{"$f":"'3 INCOME & EXPENSE'!N361","v":{"v":0,"d":"$0.00"}},{"$f":"'3 INCOME & EXPENSE'!O361","v":{"v":0,"d":"$0.00"}},463,{"$f":"'3 INCOME & EXPENSE'!V361","v":100},26000,26100,0]
[null,null,{"$f":"IF('3 INCOME & EXPENSE'!E362=0,\"\",'3 INCOME & EXPENSE'!E362)","v":""},{"$f":"T('3 INCOME & EXPENSE'!G362)","v":""},{"$f":"'3 INCOME & EXPENSE'!M362","v":{"v":0,"d":"0.0"}},{"$f":"'3 INCOME & EXPENSE'!N362","v":{"v":0,"d":"$0.00"}},{"$f":"'3 INCOME & EXPENSE'!O362","v":{"v":0,"d":"$0.00"}},464,{"$f":"'3 INCOME & EXPENSE'!V362","v":100},26000,26100,0]
[null,null,{"$f":"IF('3 INCOME & EXPENSE'!E363=0,\"\",'3 INCOME & EXPENSE'!E363)","v":""},{"$f":"T('3 INCOME & EXPENSE'!G363)","v":""},{"$f":"'3 INCOME & EXPENSE'!M363","v":{"v":0,"d":"0.0"}},{"$f":"'3 INCOME & EXPENSE'!N363","v":{"v":0,"d":"$0.00"}},{"$f":"'3 INCOME & EXPENSE'!O363","v":{"v":0,"d":"$0.00"}},465,{"$f":"'3 INCOME & EXPENSE'!V363","v":100},26000,26100,0]
[null,null,{"$f":"IF('3 INCOME & EXPENSE'!E364=0,\"\",'3 INCOME & EXPENSE'!E364)","v":""},{"$f":"T('3 INCOME & EXPENSE'!G364)","v":""},{"$f":"'3 INCOME & EXPENSE'!M364","v":{"v":0,"d":"0.0"}},{"$f":"'3 INCOME & EXPENSE'!N364","v":{"v":0,"d":"$0.00"}},{"$f":"'3 INCOME & EXPENSE'!O364","v":{"v":0,"d":"$0.00"}},466,{"$f":"'3 INCOME & EXPENSE'!V364","v":100},26000,26100,0]
[null,null,{"$f":"IF('3 INCOME & EXPENSE'!E365=0,\"\",'3 INCOME & EXPENSE'!E365)","v":""},{"$f":"T('3 INCOME & EXPENSE'!G365)","v":""},{"$f":"'3 INCOME & EXPENSE'!M365","v":{"v":0,"d":"0.0"}},{"$f":"'3 INCOME & EXPENSE'!N365","v":{"v":0,"d":"$0.00"}},{"$f":"'3 INCOME & EXPENSE'!O365","v":{"v":0,"d":"$0.00"}},467,{"$f":"'3 INCOME & EXPENSE'!V365","v":100},26000,26100,0]
[null,null,{"$f":"IF('3 INCOME & EXPENSE'!E366=0,\"\",'3 INCOME & EXPENSE'!E366)","v":""},{"$f":"T('3 INCOME & EXPENSE'!G366)","v":""},{"$f":"'3 INCOME & EXPENSE'!M366","v":{"v":0,"d":"0.0"}},{"$f":"'3 INCOME & EXPENSE'!N366","v":{"v":0,"d":"$0.00"}},{"$f":"'3 INCOME & EXPENSE'!O366","v":{"v":0,"d":"$0.00"}},468,{"$f":"'3 INCOME & EXPENSE'!V366","v":100},26000,26100,0]
[null,null,{"$f":"IF('3 INCOME & EXPENSE'!E367=0,\"\",'3 INCOME & EXPENSE'!E367)","v":""},{"$f":"T('3 INCOME & EXPENSE'!G367)","v":""},{"$f":"'3 INCOME & EXPENSE'!M367","v":{"v":0,"d":"0.0"}},{"$f":"'3 INCOME & EXPENSE'!N367","v":{"v":0,"d":"$0.00"}},{"$f":"'3 INCOME & EXPENSE'!O367","v":{"v":0,"d":"$0.00"}},469,{"$f":"'3 INCOME & EXPENSE'!V367","v":100},26000,26100,0]
[null,null,{"$f":"IF('3 INCOME & EXPENSE'!E368=0,\"\",'3 INCOME & EXPENSE'!E368)","v":""},{"$f":"T('3 INCOME & EXPENSE'!G368)","v":""},{"$f":"'3 INCOME & EXPENSE'!M368","v":{"v":0,"d":"0.0"}},{"$f":"'3 INCOME & EXPENSE'!N368","v":{"v":0,"d":"$0.00"}},{"$f":"'3 INCOME & EXPENSE'!O368","v":{"v":0,"d":"$0.00"}},470,{"$f":"'3 INCOME & EXPENSE'!V368","v":100},26000,26100,0]
[null,null,{"$f":"IF('3 INCOME & EXPENSE'!E369=0,\"\",'3 INCOME & EXPENSE'!E369)","v":""},{"$f":"T('3 INCOME & EXPENSE'!G369)","v":""},{"$f":"'3 INCOME & EXPENSE'!M369","v":{"v":0,"d":"0.0"}},{"$f":"'3 INCOME & EXPENSE'!N369","v":{"v":0,"d":"$0.00"}},{"$f":"'3 INCOME & EXPENSE'!O369","v":{"v":0,"d":"$0.00"}},471,{"$f":"'3 INCOME & EXPENSE'!V369","v":100},26000,26100,0]
[null,null,{"$f":"IF('3 INCOME & EXPENSE'!E370=0,\"\",'3 INCOME & EXPENSE'!E370)","v":""},{"$f":"T('3 INCOME & EXPENSE'!G370)","v":""},{"$f":"'3 INCOME & EXPENSE'!M370","v":{"v":0,"d":"0.0"}},{"$f":"'3 INCOME & EXPENSE'!N370","v":{"v":0,"d":"$0.00"}},{"$f":"'3 INCOME & EXPENSE'!O370","v":{"v":0,"d":"$0.00"}},472,{"$f":"'3 INCOME & EXPENSE'!V370","v":100},26000,26100,0]
[null,null,{"$f":"IF('3 INCOME & EXPENSE'!E371=0,\"\",'3 INCOME & EXPENSE'!E371)","v":""},{"$f":"T('3 INCOME & EXPENSE'!G371)","v":""},{"$f":"'3 INCOME & EXPENSE'!M371","v":{"v":0,"d":"0.0"}},{"$f":"'3 INCOME & EXPENSE'!N371","v":{"v":0,"d":"$0.00"}},{"$f":"'3 INCOME & EXPENSE'!O371","v":{"v":0,"d":"$0.00"}},473,{"$f":"'3 INCOME & EXPENSE'!V371","v":100},26000,26100,0]
[null,null,{"$f":"IF('3 INCOME & EXPENSE'!E372=0,\"\",'3 INCOME & EXPENSE'!E372)","v":""},{"$f":"T('3 INCOME & EXPENSE'!G372)","v":""},{"$f":"'3 INCOME & EXPENSE'!M372","v":{"v":0,"d":"0.0"}},{"$f":"'3 INCOME & EXPENSE'!N372","v":{"v":0,"d":"$0.00"}},{"$f":"'3 INCOME & EXPENSE'!O372","v":{"v":0,"d":"$0.00"}},474,{"$f":"'3 INCOME & EXPENSE'!V372","v":100},26000,26100,0]
[null,null,{"$f":"IF('3 INCOME & EXPENSE'!E373=0,\"\",'3 INCOME & EXPENSE'!E373)","v":""},{"$f":"T('3 INCOME & EXPENSE'!G373)","v":""},{"$f":"'3 INCOME & EXPENSE'!M373","v":{"v":0,"d":"0.0"}},{"$f":"'3 INCOME & EXPENSE'!N373","v":{"v":0,"d":"$0.00"}},{"$f":"'3 INCOME & EXPENSE'!O373","v":{"v":0,"d":"$0.00"}},475,{"$f":"'3 INCOME & EXPENSE'!V373","v":100},26000,26100,0]
[null,null,{"$f":"IF('3 INCOME & EXPENSE'!E374=0,\"\",'3 INCOME & EXPENSE'!E374)","v":""},{"$f":"T('3 INCOME & EXPENSE'!G374)","v":""},{"$f":"'3 INCOME & EXPENSE'!M374","v":{"v":0,"d":"0.0"}},{"$f":"'3 INCOME & EXPENSE'!N374","v":{"v":0,"d":"$0.00"}},{"$f":"'3 INCOME & EXPENSE'!O374","v":{"v":0,"d":"$0.00"}},476,{"$f":"'3 INCOME & EXPENSE'!V374","v":100},26000,26100,0]
[null,null,{"$f":"IF('3 INCOME & EXPENSE'!E375=0,\"\",'3 INCOME & EXPENSE'!E375)","v":""},{"$f":"T('3 INCOME & EXPENSE'!G375)","v":""},{"$f":"'3 INCOME & EXPENSE'!M375","v":{"v":0,"d":"0.0"}},{"$f":"'3 INCOME & EXPENSE'!N375","v":{"v":0,"d":"$0.00"}},{"$f":"'3 INCOME & EXPENSE'!O375","v":{"v":0,"d":"$0.00"}},477,{"$f":"'3 INCOME & EXPENSE'!V375","v":100},26000,26100,0]
[null,null,{"$f":"IF('3 INCOME & EXPENSE'!E376=0,\"\",'3 INCOME & EXPENSE'!E376)","v":""},{"$f":"T('3 INCOME & EXPENSE'!G376)","v":""},{"$f":"'3 INCOME & EXPENSE'!M376","v":{"v":0,"d":"0.0"}},{"$f":"'3 INCOME & EXPENSE'!N376","v":{"v":0,"d":"$0.00"}},{"$f":"'3 INCOME & EXPENSE'!O376","v":{"v":0,"d":"$0.00"}},478,{"$f":"'3 INCOME & EXPENSE'!V376","v":100},26000,26100,0]
[null,null,{"$f":"IF('3 INCOME & EXPENSE'!E377=0,\"\",'3 INCOME & EXPENSE'!E377)","v":""},{"$f":"T('3 INCOME & EXPENSE'!G377)","v":""},{"$f":"'3 INCOME & EXPENSE'!M377","v":{"v":0,"d":"0.0"}},{"$f":"'3 INCOME & EXPENSE'!N377","v":{"v":0,"d":"$0.00"}},{"$f":"'3 INCOME & EXPENSE'!O377","v":{"v":0,"d":"$0.00"}},479,{"$f":"'3 INCOME & EXPENSE'!V377","v":100},26000,26100,0]
[null,null,{"$f":"IF('3 INCOME & EXPENSE'!E378=0,\"\",'3 INCOME & EXPENSE'!E378)","v":""},{"$f":"T('3 INCOME & EXPENSE'!G378)","v":""},{"$f":"'3 INCOME & EXPENSE'!M378","v":{"v":0,"d":"0.0"}},{"$f":"'3 INCOME & EXPENSE'!N378","v":{"v":0,"d":"$0.00"}},{"$f":"'3 INCOME & EXPENSE'!O378","v":{"v":0,"d":"$0.00"}},480,{"$f":"'3 INCOME & EXPENSE'!V378","v":100},26000,26100,0]
[null,null,{"$f":"IF('3 INCOME & EXPENSE'!E379=0,\"\",'3 INCOME & EXPENSE'!E379)","v":""},{"$f":"T('3 INCOME & EXPENSE'!G379)","v":""},{"$f":"'3 INCOME & EXPENSE'!M379","v":{"v":0,"d":"0.0"}},{"$f":"'3 INCOME & EXPENSE'!N379","v":{"v":0,"d":"$0.00"}},{"$f":"'3 INCOME & EXPENSE'!O379","v":{"v":0,"d":"$0.00"}},481,{"$f":"'3 INCOME & EXPENSE'!V379","v":100},26000,26100,0]
[null,null,{"$f":"IF('3 INCOME & EXPENSE'!E380=0,\"\",'3 INCOME & EXPENSE'!E380)","v":""},{"$f":"T('3 INCOME & EXPENSE'!G380)","v":""},{"$f":"'3 INCOME & EXPENSE'!M380","v":{"v":0,"d":"0.0"}},{"$f":"'3 INCOME & EXPENSE'!N380","v":{"v":0,"d":"$0.00"}},{"$f":"'3 INCOME & EXPENSE'!O380","v":{"v":0,"d":"$0.00"}},482,{"$f":"'3 INCOME & EXPENSE'!V380","v":100},26000,26100,0]
[null,null,{"$f":"IF('3 INCOME & EXPENSE'!E381=0,\"\",'3 INCOME & EXPENSE'!E381)","v":""},{"$f":"T('3 INCOME & EXPENSE'!G381)","v":""},{"$f":"'3 INCOME & EXPENSE'!M381","v":{"v":0,"d":"0.0"}},{"$f":"'3 INCOME & EXPENSE'!N381","v":{"v":0,"d":"$0.00"}},{"$f":"'3 INCOME & EXPENSE'!O381","v":{"v":0,"d":"$0.00"}},483,{"$f":"'3 INCOME & EXPENSE'!V381","v":100},26000,26100,0]
[null,null,{"$f":"IF('3 INCOME & EXPENSE'!E382=0,\"\",'3 INCOME & EXPENSE'!E382)","v":""},{"$f":"T('3 INCOME & EXPENSE'!G382)","v":""},{"$f":"'3 INCOME & EXPENSE'!M382","v":{"v":0,"d":"0.0"}},{"$f":"'3 INCOME & EXPENSE'!N382","v":{"v":0,"d":"$0.00"}},{"$f":"'3 INCOME & EXPENSE'!O382","v":{"v":0,"d":"$0.00"}},484,{"$f":"'3 INCOME & EXPENSE'!V382","v":100},26000,26100,0]
[null,null,{"$f":"IF('3 INCOME & EXPENSE'!E383=0,\"\",'3 INCOME & EXPENSE'!E383)","v":""},{"$f":"T('3 INCOME & EXPENSE'!G383)","v":""},{"$f":"'3 INCOME & EXPENSE'!M383","v":{"v":0,"d":"0.0"}},{"$f":"'3 INCOME & EXPENSE'!N383","v":{"v":0,"d":"$0.00"}},{"$f":"'3 INCOME & EXPENSE'!O383","v":{"v":0,"d":"$0.00"}},485,{"$f":"'3 INCOME & EXPENSE'!V383","v":100},26000,26100,0]
[null,null,{"$f":"IF('3 INCOME & EXPENSE'!E384=0,\"\",'3 INCOME & EXPENSE'!E384)","v":""},{"$f":"T('3 INCOME & EXPENSE'!G384)","v":""},{"$f":"'3 INCOME & EXPENSE'!M384","v":{"v":0,"d":"0.0"}},{"$f":"'3 INCOME & EXPENSE'!N384","v":{"v":0,"d":"$0.00"}},{"$f":"'3 INCOME & EXPENSE'!O384","v":{"v":0,"d":"$0.00"}},486,{"$f":"'3 INCOME & EXPENSE'!V384","v":100},26000,26100,0]
[null,null,{"$f":"IF('3 INCOME & EXPENSE'!E385=0,\"\",'3 INCOME & EXPENSE'!E385)","v":""},{"$f":"T('3 INCOME & EXPENSE'!G385)","v":""},{"$f":"'3 INCOME & EXPENSE'!M385","v":{"v":0,"d":"0.0"}},{"$f":"'3 INCOME & EXPENSE'!N385","v":{"v":0,"d":"$0.00"}},{"$f":"'3 INCOME & EXPENSE'!O385","v":{"v":0,"d":"$0.00"}},487,{"$f":"'3 INCOME & EXPENSE'!V385","v":100},26000,26100,0]
[null,null,{"$f":"IF('3 INCOME & EXPENSE'!E386=0,\"\",'3 INCOME & EXPENSE'!E386)","v":""},{"$f":"T('3 INCOME & EXPENSE'!G386)","v":""},{"$f":"'3 INCOME & EXPENSE'!M386","v":{"v":0,"d":"0.0"}},{"$f":"'3 INCOME & EXPENSE'!N386","v":{"v":0,"d":"$0.00"}},{"$f":"'3 INCOME & EXPENSE'!O386","v":{"v":0,"d":"$0.00"}},488,{"$f":"'3 INCOME & EXPENSE'!V386","v":100},26000,{"$f":"I499+J499","v":26100},0]
[null,null,{"$f":"IF('3 INCOME & EXPENSE'!E387=0,\"\",'3 INCOME & EXPENSE'!E387)","v":""},{"$f":"T('3 INCOME & EXPENSE'!G387)","v":""},{"$f":"'3 INCOME & EXPENSE'!M387","v":{"v":0,"d":"0.0"}},{"$f":"'3 INCOME & EXPENSE'!N387","v":{"v":0,"d":"$0.00"}},{"$f":"'3 INCOME & EXPENSE'!O387","v":{"v":0,"d":"$0.00"}},489,{"$f":"'3 INCOME & EXPENSE'!V387","v":100},26000,26100,0]
[null,null,{"$f":"IF('3 INCOME & EXPENSE'!E388=0,\"\",'3 INCOME & EXPENSE'!E388)","v":""},{"$f":"T('3 INCOME & EXPENSE'!G388)","v":""},{"$f":"'3 INCOME & EXPENSE'!M388","v":{"v":0,"d":"0.0"}},{"$f":"'3 INCOME & EXPENSE'!N388","v":{"v":0,"d":"$0.00"}},{"$f":"'3 INCOME & EXPENSE'!O388","v":{"v":0,"d":"$0.00"}},490,{"$f":"'3 INCOME & EXPENSE'!V388","v":100},26000,26100,0]
[null,null,{"$f":"IF('3 INCOME & EXPENSE'!E389=0,\"\",'3 INCOME & EXPENSE'!E389)","v":""},{"$f":"T('3 INCOME & EXPENSE'!G389)","v":""},{"$f":"'3 INCOME & EXPENSE'!M389","v":{"v":0,"d":"0.0"}},{"$f":"'3 INCOME & EXPENSE'!N389","v":{"v":0,"d":"$0.00"}},{"$f":"'3 INCOME & EXPENSE'!O389","v":{"v":0,"d":"$0.00"}},491,{"$f":"'3 INCOME & EXPENSE'!V389","v":100},26000,26100,0]
[null,null,{"$f":"IF('3 INCOME & EXPENSE'!E390=0,\"\",'3 INCOME & EXPENSE'!E390)","v":""},{"$f":"T('3 INCOME & EXPENSE'!G390)","v":""},{"$f":"'3 INCOME & EXPENSE'!M390","v":{"v":0,"d":"0.0"}},{"$f":"'3 INCOME & EXPENSE'!N390","v":{"v":0,"d":"$0.00"}},{"$f":"'3 INCOME & EXPENSE'!O390","v":{"v":0,"d":"$0.00"}},492,{"$f":"'3 INCOME & EXPENSE'!V390","v":100},26000,26100,0]
[null,null,{"$f":"IF('3 INCOME & EXPENSE'!E391=0,\"\",'3 INCOME & EXPENSE'!E391)","v":""},{"$f":"T('3 INCOME & EXPENSE'!G391)","v":""},{"$f":"'3 INCOME & EXPENSE'!M391","v":{"v":0,"d":"0.0"}},{"$f":"'3 INCOME & EXPENSE'!N391","v":{"v":0,"d":"$0.00"}},{"$f":"'3 INCOME & EXPENSE'!O391","v":{"v":0,"d":"$0.00"}},493,{"$f":"'3 INCOME & EXPENSE'!V391","v":100},26000,26100,0]
[null,null,{"$f":"IF('3 INCOME & EXPENSE'!E392=0,\"\",'3 INCOME & EXPENSE'!E392)","v":""},{"$f":"T('3 INCOME & EXPENSE'!G392)","v":""},{"$f":"'3 INCOME & EXPENSE'!M392","v":{"v":0,"d":"0.0"}},{"$f":"'3 INCOME & EXPENSE'!N392","v":{"v":0,"d":"$0.00"}},{"$f":"'3 INCOME & EXPENSE'!O392","v":{"v":0,"d":"$0.00"}},494,{"$f":"'3 INCOME & EXPENSE'!V392","v":100},26000,26100,0]
[null,null,{"$f":"IF('3 INCOME & EXPENSE'!E393=0,\"\",'3 INCOME & EXPENSE'!E393)","v":""},{"$f":"T('3 INCOME & EXPENSE'!G393)","v":""},{"$f":"'3 INCOME & EXPENSE'!M393","v":{"v":0,"d":"0.0"}},{"$f":"'3 INCOME & EXPENSE'!N393","v":{"v":0,"d":"$0.00"}},{"$f":"'3 INCOME & EXPENSE'!O393","v":{"v":0,"d":"$0.00"}},495,{"$f":"'3 INCOME & EXPENSE'!V393","v":100},26000,26100,0]
[null,null,{"$f":"IF('3 INCOME & EXPENSE'!E394=0,\"\",'3 INCOME & EXPENSE'!E394)","v":""},{"$f":"T('3 INCOME & EXPENSE'!G394)","v":""},{"$f":"'3 INCOME & EXPENSE'!M394","v":{"v":0,"d":"0.0"}},{"$f":"'3 INCOME & EXPENSE'!N394","v":{"v":0,"d":"$0.00"}},{"$f":"'3 INCOME & EXPENSE'!O394","v":{"v":0,"d":"$0.00"}},496,{"$f":"'3 INCOME & EXPENSE'!V394","v":100},26000,26100,0]
[null,null,{"$f":"IF('3 INCOME & EXPENSE'!E395=0,\"\",'3 INCOME & EXPENSE'!E395)","v":""},{"$f":"T('3 INCOME & EXPENSE'!G395)","v":""},{"$f":"'3 INCOME & EXPENSE'!M395","v":{"v":0,"d":"0.0"}},{"$f":"'3 INCOME & EXPENSE'!N395","v":{"v":0,"d":"$0.00"}},{"$f":"'3 INCOME & EXPENSE'!O395","v":{"v":0,"d":"$0.00"}},497,{"$f":"'3 INCOME & EXPENSE'!V395","v":100},26000,26100,0]
[null,null,{"$f":"IF('3 INCOME & EXPENSE'!E396=0,\"\",'3 INCOME & EXPENSE'!E396)","v":""},{"$f":"T('3 INCOME & EXPENSE'!G396)","v":""},{"$f":"'3 INCOME & EXPENSE'!M396","v":{"v":0,"d":"0.0"}},{"$f":"'3 INCOME & EXPENSE'!N396","v":{"v":0,"d":"$0.00"}},{"$f":"'3 INCOME & EXPENSE'!O396","v":{"v":0,"d":"$0.00"}},498,{"$f":"'3 INCOME & EXPENSE'!V396","v":100},26000,26100,0]
[null,null,{"$f":"IF('3 INCOME & EXPENSE'!E397=0,\"\",'3 INCOME & EXPENSE'!E397)","v":""},{"$f":"T('3 INCOME & EXPENSE'!G397)","v":""},{"$f":"'3 INCOME & EXPENSE'!M397","v":{"v":0,"d":"0.0"}},{"$f":"'3 INCOME & EXPENSE'!N397","v":{"v":0,"d":"$0.00"}},{"$f":"'3 INCOME & EXPENSE'!O397","v":{"v":0,"d":"$0.00"}},499,{"$f":"'3 INCOME & EXPENSE'!V397","v":100},26000,26100,0]
[null,null,{"$f":"IF('3 INCOME & EXPENSE'!E398=0,\"\",'3 INCOME & EXPENSE'!E398)","v":""},{"$f":"T('3 INCOME & EXPENSE'!G398)","v":""},{"$f":"'3 INCOME & EXPENSE'!M398","v":{"v":0,"d":"0.0"}},{"$f":"'3 INCOME & EXPENSE'!N398","v":{"v":0,"d":"$0.00"}},{"$f":"'3 INCOME & EXPENSE'!O398","v":{"v":0,"d":"$0.00"}},500,{"$f":"'3 INCOME & EXPENSE'!V398","v":100},{"$f":"VLOOKUP(I511,$I$880:$J$905,2)","v":26000},26100,{"$f":"K511*E511","v":0}]
[null,null,{"$f":"IF('3 INCOME & EXPENSE'!E399=0,\"\",'3 INCOME & EXPENSE'!E399)","v":""},{"$f":"T('3 INCOME & EXPENSE'!G399)","v":""},{"$f":"'3 INCOME & EXPENSE'!M399","v":{"v":0,"d":"0.0"}},{"$f":"'3 INCOME & EXPENSE'!N399","v":{"v":0,"d":"$0.00"}},{"$f":"'3 INCOME & EXPENSE'!O399","v":{"v":0,"d":"$0.00"}},501,{"$f":"'3 INCOME & EXPENSE'!V399","v":100},26000,26100,0]
[null,null,{"$f":"IF('3 INCOME & EXPENSE'!E400=0,\"\",'3 INCOME & EXPENSE'!E400)","v":""},{"$f":"T('3 INCOME & EXPENSE'!G400)","v":""},{"$f":"'3 INCOME & EXPENSE'!M400","v":{"v":0,"d":"0.0"}},{"$f":"'3 INCOME & EXPENSE'!N400","v":{"v":0,"d":"$0.00"}},{"$f":"'3 INCOME & EXPENSE'!O400","v":{"v":0,"d":"$0.00"}},502,{"$f":"'3 INCOME & EXPENSE'!V400","v":100},26000,26100,0]
[null,null,{"$f":"IF('3 INCOME & EXPENSE'!E401=0,\"\",'3 INCOME & EXPENSE'!E401)","v":""},{"$f":"T('3 INCOME & EXPENSE'!G401)","v":""},{"$f":"'3 INCOME & EXPENSE'!M401","v":{"v":0,"d":"0.0"}},{"$f":"'3 INCOME & EXPENSE'!N401","v":{"v":0,"d":"$0.00"}},{"$f":"'3 INCOME & EXPENSE'!O401","v":{"v":0,"d":"$0.00"}},503,{"$f":"'3 INCOME & EXPENSE'!V401","v":100},26000,26100,0]
[null,null,{"$f":"IF('3 INCOME & EXPENSE'!E402=0,\"\",'3 INCOME & EXPENSE'!E402)","v":""},{"$f":"T('3 INCOME & EXPENSE'!G402)","v":""},{"$f":"'3 INCOME & EXPENSE'!M402","v":{"v":0,"d":"0.0"}},{"$f":"'3 INCOME & EXPENSE'!N402","v":{"v":0,"d":"$0.00"}},{"$f":"'3 INCOME & EXPENSE'!O402","v":{"v":0,"d":"$0.00"}},504,{"$f":"'3 INCOME & EXPENSE'!V402","v":100},26000,26100,0]
[null,null,{"$f":"IF('3 INCOME & EXPENSE'!E403=0,\"\",'3 INCOME & EXPENSE'!E403)","v":""},{"$f":"T('3 INCOME & EXPENSE'!G403)","v":""},{"$f":"'3 INCOME & EXPENSE'!M403","v":{"v":0,"d":"0.0"}},{"$f":"'3 INCOME & EXPENSE'!N403","v":{"v":0,"d":"$0.00"}},{"$f":"'3 INCOME & EXPENSE'!O403","v":{"v":0,"d":"$0.00"}},505,{"$f":"'3 INCOME & EXPENSE'!V403","v":100},26000,26100,0]
[null,null,{"$f":"IF('3 INCOME & EXPENSE'!E404=0,\"\",'3 INCOME & EXPENSE'!E404)","v":""},{"$f":"T('3 INCOME & EXPENSE'!G404)","v":""},{"$f":"'3 INCOME & EXPENSE'!M404","v":{"v":0,"d":"0.0"}},{"$f":"'3 INCOME & EXPENSE'!N404","v":{"v":0,"d":"$0.00"}},{"$f":"'3 INCOME & EXPENSE'!O404","v":{"v":0,"d":"$0.00"}},506,{"$f":"'3 INCOME & EXPENSE'!V404","v":100},26000,26100,0]
[null,null,{"$f":"IF('3 INCOME & EXPENSE'!E405=0,\"\",'3 INCOME & EXPENSE'!E405)","v":""},{"$f":"T('3 INCOME & EXPENSE'!G405)","v":""},{"$f":"'3 INCOME & EXPENSE'!M405","v":{"v":0,"d":"0.0"}},{"$f":"'3 INCOME & EXPENSE'!N405","v":{"v":0,"d":"$0.00"}},{"$f":"'3 INCOME & EXPENSE'!O405","v":{"v":0,"d":"$0.00"}},507,{"$f":"'3 INCOME & EXPENSE'!V405","v":100},26000,26100,0]
[null,null,{"$f":"IF('3 INCOME & EXPENSE'!E406=0,\"\",'3 INCOME & EXPENSE'!E406)","v":""},{"$f":"T('3 INCOME & EXPENSE'!G406)","v":""},{"$f":"'3 INCOME & EXPENSE'!M406","v":{"v":0,"d":"0.0"}},{"$f":"'3 INCOME & EXPENSE'!N406","v":{"v":0,"d":"$0.00"}},{"$f":"'3 INCOME & EXPENSE'!O406","v":{"v":0,"d":"$0.00"}},508,{"$f":"'3 INCOME & EXPENSE'!V406","v":100},26000,26100,0]
[null,null,{"$f":"IF('3 INCOME & EXPENSE'!E407=0,\"\",'3 INCOME & EXPENSE'!E407)","v":""},{"$f":"T('3 INCOME & EXPENSE'!G407)","v":""},{"$f":"'3 INCOME & EXPENSE'!M407","v":{"v":0,"d":"0.0"}},{"$f":"'3 INCOME & EXPENSE'!N407","v":{"v":0,"d":"$0.00"}},{"$f":"'3 INCOME & EXPENSE'!O407","v":{"v":0,"d":"$0.00"}},509,{"$f":"'3 INCOME & EXPENSE'!V407","v":100},26000,26100,0]
[null,null,{"$f":"IF('3 INCOME & EXPENSE'!E408=0,\"\",'3 INCOME & EXPENSE'!E408)","v":""},{"$f":"T('3 INCOME & EXPENSE'!G408)","v":""},{"$f":"'3 INCOME & EXPENSE'!M408","v":{"v":0,"d":"0.0"}},{"$f":"'3 INCOME & EXPENSE'!N408","v":{"v":0,"d":"$0.00"}},{"$f":"'3 INCOME & EXPENSE'!O408","v":{"v":0,"d":"$0.00"}},510,{"$f":"'3 INCOME & EXPENSE'!V408","v":100},26000,26100,0]
[null,null,{"$f":"IF('3 INCOME & EXPENSE'!E409=0,\"\",'3 INCOME & EXPENSE'!E409)","v":""},{"$f":"T('3 INCOME & EXPENSE'!G409)","v":""},{"$f":"'3 INCOME & EXPENSE'!M409","v":{"v":0,"d":"0.0"}},{"$f":"'3 INCOME & EXPENSE'!N409","v":{"v":0,"d":"$0.00"}},{"$f":"'3 INCOME & EXPENSE'!O409","v":{"v":0,"d":"$0.00"}},511,{"$f":"'3 INCOME & EXPENSE'!V409","v":100},26000,26100,0]
[null,null,{"$f":"IF('3 INCOME & EXPENSE'!E410=0,\"\",'3 INCOME & EXPENSE'!E410)","v":""},{"$f":"T('3 INCOME & EXPENSE'!G410)","v":""},{"$f":"'3 INCOME & EXPENSE'!M410","v":{"v":0,"d":"0.0"}},{"$f":"'3 INCOME & EXPENSE'!N410","v":{"v":0,"d":"$0.00"}},{"$f":"'3 INCOME & EXPENSE'!O410","v":{"v":0,"d":"$0.00"}},512,{"$f":"'3 INCOME & EXPENSE'!V410","v":100},26000,26100,0]
[null,null,{"$f":"IF('3 INCOME & EXPENSE'!E411=0,\"\",'3 INCOME & EXPENSE'!E411)","v":""},{"$f":"T('3 INCOME & EXPENSE'!G411)","v":""},{"$f":"'3 INCOME & EXPENSE'!M411","v":{"v":0,"d":"0.0"}},{"$f":"'3 INCOME & EXPENSE'!N411","v":{"v":0,"d":"$0.00"}},{"$f":"'3 INCOME & EXPENSE'!O411","v":{"v":0,"d":"$0.00"}},513,{"$f":"'3 INCOME & EXPENSE'!V411","v":100},26000,26100,0]
[null,null,{"$f":"IF('3 INCOME & EXPENSE'!E412=0,\"\",'3 INCOME & EXPENSE'!E412)","v":""},{"$f":"T('3 INCOME & EXPENSE'!G412)","v":""},{"$f":"'3 INCOME & EXPENSE'!M412","v":{"v":0,"d":"0.0"}},{"$f":"'3 INCOME & EXPENSE'!N412","v":{"v":0,"d":"$0.00"}},{"$f":"'3 INCOME & EXPENSE'!O412","v":{"v":0,"d":"$0.00"}},514,{"$f":"'3 INCOME & EXPENSE'!V412","v":100},26000,26100,0]
[null,null,{"$f":"IF('3 INCOME & EXPENSE'!E413=0,\"\",'3 INCOME & EXPENSE'!E413)","v":""},{"$f":"T('3 INCOME & EXPENSE'!G413)","v":""},{"$f":"'3 INCOME & EXPENSE'!M413","v":{"v":0,"d":"0.0"}},{"$f":"'3 INCOME & EXPENSE'!N413","v":{"v":0,"d":"$0.00"}},{"$f":"'3 INCOME & EXPENSE'!O413","v":{"v":0,"d":"$0.00"}},515,{"$f":"'3 INCOME & EXPENSE'!V413","v":100},26000,26100,0]
[null,null,{"$f":"IF('3 INCOME & EXPENSE'!E414=0,\"\",'3 INCOME & EXPENSE'!E414)","v":""},{"$f":"T('3 INCOME & EXPENSE'!G414)","v":""},{"$f":"'3 INCOME & EXPENSE'!M414","v":{"v":0,"d":"0.0"}},{"$f":"'3 INCOME & EXPENSE'!N414","v":{"v":0,"d":"$0.00"}},{"$f":"'3 INCOME & EXPENSE'!O414","v":{"v":0,"d":"$0.00"}},516,{"$f":"'3 INCOME & EXPENSE'!V414","v":100},26000,26100,0]
[null,null,{"$f":"IF('3 INCOME & EXPENSE'!E415=0,\"\",'3 INCOME & EXPENSE'!E415)","v":""},{"$f":"T('3 INCOME & EXPENSE'!G415)","v":""},{"$f":"'3 INCOME & EXPENSE'!M415","v":{"v":0,"d":"0.0"}},{"$f":"'3 INCOME & EXPENSE'!N415","v":{"v":0,"d":"$0.00"}},{"$f":"'3 INCOME & EXPENSE'!O415","v":{"v":0,"d":"$0.00"}},517,{"$f":"'3 INCOME & EXPENSE'!V415","v":100},26000,26100,0]
[null,null,{"$f":"IF('3 INCOME & EXPENSE'!E416=0,\"\",'3 INCOME & EXPENSE'!E416)","v":""},{"$f":"T('3 INCOME & EXPENSE'!G416)","v":""},{"$f":"'3 INCOME & EXPENSE'!M416","v":{"v":0,"d":"0.0"}},{"$f":"'3 INCOME & EXPENSE'!N416","v":{"v":0,"d":"$0.00"}},{"$f":"'3 INCOME & EXPENSE'!O416","v":{"v":0,"d":"$0.00"}},518,{"$f":"'3 INCOME & EXPENSE'!V416","v":100},26000,26100,0]
[null,null,{"$f":"IF('3 INCOME & EXPENSE'!E417=0,\"\",'3 INCOME & EXPENSE'!E417)","v":""},{"$f":"T('3 INCOME & EXPENSE'!G417)","v":""},{"$f":"'3 INCOME & EXPENSE'!M417","v":{"v":0,"d":"0.0"}},{"$f":"'3 INCOME & EXPENSE'!N417","v":{"v":0,"d":"$0.00"}},{"$f":"'3 INCOME & EXPENSE'!O417","v":{"v":0,"d":"$0.00"}},519,{"$f":"'3 INCOME & EXPENSE'!V417","v":100},26000,26100,0]
[null,null,{"$f":"IF('3 INCOME & EXPENSE'!E418=0,\"\",'3 INCOME & EXPENSE'!E418)","v":""},{"$f":"T('3 INCOME & EXPENSE'!G418)","v":""},{"$f":"'3 INCOME & EXPENSE'!M418","v":{"v":0,"d":"0.0"}},{"$f":"'3 INCOME & EXPENSE'!N418","v":{"v":0,"d":"$0.00"}},{"$f":"'3 INCOME & EXPENSE'!O418","v":{"v":0,"d":"$0.00"}},520,{"$f":"'3 INCOME & EXPENSE'!V418","v":100},26000,26100,0]
[null,null,{"$f":"IF('3 INCOME & EXPENSE'!E419=0,\"\",'3 INCOME & EXPENSE'!E419)","v":""},{"$f":"T('3 INCOME & EXPENSE'!G419)","v":""},{"$f":"'3 INCOME & EXPENSE'!M419","v":{"v":0,"d":"0.0"}},{"$f":"'3 INCOME & EXPENSE'!N419","v":{"v":0,"d":"$0.00"}},{"$f":"'3 INCOME & EXPENSE'!O419","v":{"v":0,"d":"$0.00"}},521,{"$f":"'3 INCOME & EXPENSE'!V419","v":100},26000,26100,0]
[null,null,{"$f":"IF('3 INCOME & EXPENSE'!E420=0,\"\",'3 INCOME & EXPENSE'!E420)","v":""},{"$f":"T('3 INCOME & EXPENSE'!G420)","v":""},{"$f":"'3 INCOME & EXPENSE'!M420","v":{"v":0,"d":"0.0"}},{"$f":"'3 INCOME & EXPENSE'!N420","v":{"v":0,"d":"$0.00"}},{"$f":"'3 INCOME & EXPENSE'!O420","v":{"v":0,"d":"$0.00"}},522,{"$f":"'3 INCOME & EXPENSE'!V420","v":100},26000,26100,0]
[null,null,{"$f":"IF('3 INCOME & EXPENSE'!E421=0,\"\",'3 INCOME & EXPENSE'!E421)","v":""},{"$f":"T('3 INCOME & EXPENSE'!G421)","v":""},{"$f":"'3 INCOME & EXPENSE'!M421","v":{"v":0,"d":"0.0"}},{"$f":"'3 INCOME & EXPENSE'!N421","v":{"v":0,"d":"$0.00"}},{"$f":"'3 INCOME & EXPENSE'!O421","v":{"v":0,"d":"$0.00"}},523,{"$f":"'3 INCOME & EXPENSE'!V421","v":100},26000,26100,0]
[null,null,{"$f":"IF('3 INCOME & EXPENSE'!E422=0,\"\",'3 INCOME & EXPENSE'!E422)","v":""},{"$f":"T('3 INCOME & EXPENSE'!G422)","v":""},{"$f":"'3 INCOME & EXPENSE'!M422","v":{"v":0,"d":"0.0"}},{"$f":"'3 INCOME & EXPENSE'!N422","v":{"v":0,"d":"$0.00"}},{"$f":"'3 INCOME & EXPENSE'!O422","v":{"v":0,"d":"$0.00"}},524,{"$f":"'3 INCOME & EXPENSE'!V422","v":100},26000,26100,0]
[null,null,{"$f":"IF('3 INCOME & EXPENSE'!E423=0,\"\",'3 INCOME & EXPENSE'!E423)","v":""},{"$f":"T('3 INCOME & EXPENSE'!G423)","v":""},{"$f":"'3 INCOME & EXPENSE'!M423","v":{"v":0,"d":"0.0"}},{"$f":"'3 INCOME & EXPENSE'!N423","v":{"v":0,"d":"$0.00"}},{"$f":"'3 INCOME & EXPENSE'!O423","v":{"v":0,"d":"$0.00"}},525,{"$f":"'3 INCOME & EXPENSE'!V423","v":100},26000,26100,0]
[null,null,{"$f":"IF('3 INCOME & EXPENSE'!E424=0,\"\",'3 INCOME & EXPENSE'!E424)","v":""},{"$f":"T('3 INCOME & EXPENSE'!G424)","v":""},{"$f":"'3 INCOME & EXPENSE'!M424","v":{"v":0,"d":"0.0"}},{"$f":"'3 INCOME & EXPENSE'!N424","v":{"v":0,"d":"$0.00"}},{"$f":"'3 INCOME & EXPENSE'!O424","v":{"v":0,"d":"$0.00"}},526,{"$f":"'3 INCOME & EXPENSE'!V424","v":100},26000,26100,0]
[null,null,{"$f":"IF('3 INCOME & EXPENSE'!E425=0,\"\",'3 INCOME & EXPENSE'!E425)","v":""},{"$f":"T('3 INCOME & EXPENSE'!G425)","v":""},{"$f":"'3 INCOME & EXPENSE'!M425","v":{"v":0,"d":"0.0"}},{"$f":"'3 INCOME & EXPENSE'!N425","v":{"v":0,"d":"$0.00"}},{"$f":"'3 INCOME & EXPENSE'!O425","v":{"v":0,"d":"$0.00"}},527,{"$f":"'3 INCOME & EXPENSE'!V425","v":100},26000,26100,0]
[null,null,{"$f":"IF('3 INCOME & EXPENSE'!E426=0,\"\",'3 INCOME & EXPENSE'!E426)","v":""},{"$f":"T('3 INCOME & EXPENSE'!G426)","v":""},{"$f":"'3 INCOME & EXPENSE'!M426","v":{"v":0,"d":"0.0"}},{"$f":"'3 INCOME & EXPENSE'!N426","v":{"v":0,"d":"$0.00"}},{"$f":"'3 INCOME & EXPENSE'!O426","v":{"v":0,"d":"$0.00"}},528,{"$f":"'3 INCOME & EXPENSE'!V426","v":100},26000,26100,0]
[null,null,{"$f":"IF('3 INCOME & EXPENSE'!E427=0,\"\",'3 INCOME & EXPENSE'!E427)","v":""},{"$f":"T('3 INCOME & EXPENSE'!G427)","v":""},{"$f":"'3 INCOME & EXPENSE'!M427","v":{"v":0,"d":"0.0"}},{"$f":"'3 INCOME & EXPENSE'!N427","v":{"v":0,"d":"$0.00"}},{"$f":"'3 INCOME & EXPENSE'!O427","v":{"v":0,"d":"$0.00"}},529,{"$f":"'3 INCOME & EXPENSE'!V427","v":100},26000,26100,0]
[null,null,{"$f":"IF('3 INCOME & EXPENSE'!E428=0,\"\",'3 INCOME & EXPENSE'!E428)","v":""},{"$f":"T('3 INCOME & EXPENSE'!G428)","v":""},{"$f":"'3 INCOME & EXPENSE'!M428","v":{"v":0,"d":"0.0"}},{"$f":"'3 INCOME & EXPENSE'!N428","v":{"v":0,"d":"$0.00"}},{"$f":"'3 INCOME & EXPENSE'!O428","v":{"v":0,"d":"$0.00"}},530,{"$f":"'3 INCOME & EXPENSE'!V428","v":100},26000,26100,0]
[null,null,{"$f":"IF('3 INCOME & EXPENSE'!E429=0,\"\",'3 INCOME & EXPENSE'!E429)","v":""},{"$f":"T('3 INCOME & EXPENSE'!G429)","v":""},{"$f":"'3 INCOME & EXPENSE'!M429","v":{"v":0,"d":"0.0"}},{"$f":"'3 INCOME & EXPENSE'!N429","v":{"v":0,"d":"$0.00"}},{"$f":"'3 INCOME & EXPENSE'!O429","v":{"v":0,"d":"$0.00"}},531,{"$f":"'3 INCOME & EXPENSE'!V429","v":100},26000,26100,0]
[null,null,{"$f":"IF('3 INCOME & EXPENSE'!E430=0,\"\",'3 INCOME & EXPENSE'!E430)","v":""},{"$f":"T('3 INCOME & EXPENSE'!G430)","v":""},{"$f":"'3 INCOME & EXPENSE'!M430","v":{"v":0,"d":"0.0"}},{"$f":"'3 INCOME & EXPENSE'!N430","v":{"v":0,"d":"$0.00"}},{"$f":"'3 INCOME & EXPENSE'!O430","v":{"v":0,"d":"$0.00"}},532,{"$f":"'3 INCOME & EXPENSE'!V430","v":100},26000,26100,0]
[null,null,{"$f":"IF('3 INCOME & EXPENSE'!E431=0,\"\",'3 INCOME & EXPENSE'!E431)","v":""},{"$f":"T('3 INCOME & EXPENSE'!G431)","v":""},{"$f":"'3 INCOME & EXPENSE'!M431","v":{"v":0,"d":"0.0"}},{"$f":"'3 INCOME & EXPENSE'!N431","v":{"v":0,"d":"$0.00"}},{"$f":"'3 INCOME & EXPENSE'!O431","v":{"v":0,"d":"$0.00"}},533,{"$f":"'3 INCOME & EXPENSE'!V431","v":100},26000,26100,0]
[null,null,{"$f":"IF('3 INCOME & EXPENSE'!E432=0,\"\",'3 INCOME & EXPENSE'!E432)","v":""},{"$f":"T('3 INCOME & EXPENSE'!G432)","v":""},{"$f":"'3 INCOME & EXPENSE'!M432","v":{"v":0,"d":"0.0"}},{"$f":"'3 INCOME & EXPENSE'!N432","v":{"v":0,"d":"$0.00"}},{"$f":"'3 INCOME & EXPENSE'!O432","v":{"v":0,"d":"$0.00"}},534,{"$f":"'3 INCOME & EXPENSE'!V432","v":100},26000,26100,0]
[null,null,{"$f":"IF('3 INCOME & EXPENSE'!E433=0,\"\",'3 INCOME & EXPENSE'!E433)","v":""},{"$f":"T('3 INCOME & EXPENSE'!G433)","v":""},{"$f":"'3 INCOME & EXPENSE'!M433","v":{"v":0,"d":"0.0"}},{"$f":"'3 INCOME & EXPENSE'!N433","v":{"v":0,"d":"$0.00"}},{"$f":"'3 INCOME & EXPENSE'!O433","v":{"v":0,"d":"$0.00"}},535,{"$f":"'3 INCOME & EXPENSE'!V433","v":100},26000,26100,0]
[null,null,{"$f":"IF('3 INCOME & EXPENSE'!E434=0,\"\",'3 INCOME & EXPENSE'!E434)","v":""},{"$f":"T('3 INCOME & EXPENSE'!G434)","v":""},{"$f":"'3 INCOME & EXPENSE'!M434","v":{"v":0,"d":"0.0"}},{"$f":"'3 INCOME & EXPENSE'!N434","v":{"v":0,"d":"$0.00"}},{"$f":"'3 INCOME & EXPENSE'!O434","v":{"v":0,"d":"$0.00"}},536,{"$f":"'3 INCOME & EXPENSE'!V434","v":100},26000,26100,0]
[null,null,{"$f":"IF('3 INCOME & EXPENSE'!E435=0,\"\",'3 INCOME & EXPENSE'!E435)","v":""},{"$f":"T('3 INCOME & EXPENSE'!G435)","v":""},{"$f":"'3 INCOME & EXPENSE'!M435","v":{"v":0,"d":"0.0"}},{"$f":"'3 INCOME & EXPENSE'!N435","v":{"v":0,"d":"$0.00"}},{"$f":"'3 INCOME & EXPENSE'!O435","v":{"v":0,"d":"$0.00"}},537,{"$f":"'3 INCOME & EXPENSE'!V435","v":100},26000,26100,0]
[null,null,{"$f":"IF('3 INCOME & EXPENSE'!E436=0,\"\",'3 INCOME & EXPENSE'!E436)","v":""},{"$f":"T('3 INCOME & EXPENSE'!G436)","v":""},{"$f":"'3 INCOME & EXPENSE'!M436","v":{"v":0,"d":"0.0"}},{"$f":"'3 INCOME & EXPENSE'!N436","v":{"v":0,"d":"$0.00"}},{"$f":"'3 INCOME & EXPENSE'!O436","v":{"v":0,"d":"$0.00"}},538,{"$f":"'3 INCOME & EXPENSE'!V436","v":100},26000,26100,0]
[null,null,{"$f":"IF('3 INCOME & EXPENSE'!E437=0,\"\",'3 INCOME & EXPENSE'!E437)","v":""},{"$f":"T('3 INCOME & EXPENSE'!G437)","v":""},{"$f":"'3 INCOME & EXPENSE'!M437","v":{"v":0,"d":"0.0"}},{"$f":"'3 INCOME & EXPENSE'!N437","v":{"v":0,"d":"$0.00"}},{"$f":"'3 INCOME & EXPENSE'!O437","v":{"v":0,"d":"$0.00"}},539,{"$f":"'3 INCOME & EXPENSE'!V437","v":100},26000,26100,0]
[null,null,{"$f":"IF('3 INCOME & EXPENSE'!E438=0,\"\",'3 INCOME & EXPENSE'!E438)","v":""},{"$f":"T('3 INCOME & EXPENSE'!G438)","v":""},{"$f":"'3 INCOME & EXPENSE'!M438","v":{"v":0,"d":"0.0"}},{"$f":"'3 INCOME & EXPENSE'!N438","v":{"v":0,"d":"$0.00"}},{"$f":"'3 INCOME & EXPENSE'!O438","v":{"v":0,"d":"$0.00"}},540,{"$f":"'3 INCOME & EXPENSE'!V438","v":100},26000,26100,0]
[null,null,{"$f":"IF('3 INCOME & EXPENSE'!E439=0,\"\",'3 INCOME & EXPENSE'!E439)","v":""},{"$f":"T('3 INCOME & EXPENSE'!G439)","v":""},{"$f":"'3 INCOME & EXPENSE'!M439","v":{"v":0,"d":"0.0"}},{"$f":"'3 INCOME & EXPENSE'!N439","v":{"v":0,"d":"$0.00"}},{"$f":"'3 INCOME & EXPENSE'!O439","v":{"v":0,"d":"$0.00"}},541,{"$f":"'3 INCOME & EXPENSE'!V439","v":100},26000,26100,0]
[null,null,{"$f":"IF('3 INCOME & EXPENSE'!E440=0,\"\",'3 INCOME & EXPENSE'!E440)","v":""},{"$f":"T('3 INCOME & EXPENSE'!G440)","v":""},{"$f":"'3 INCOME & EXPENSE'!M440","v":{"v":0,"d":"0.0"}},{"$f":"'3 INCOME & EXPENSE'!N440","v":{"v":0,"d":"$0.00"}},{"$f":"'3 INCOME & EXPENSE'!O440","v":{"v":0,"d":"$0.00"}},542,{"$f":"'3 INCOME & EXPENSE'!V440","v":100},26000,26100,0]
[null,null,{"$f":"IF('3 INCOME & EXPENSE'!E441=0,\"\",'3 INCOME & EXPENSE'!E441)","v":""},{"$f":"T('3 INCOME & EXPENSE'!G441)","v":""},{"$f":"'3 INCOME & EXPENSE'!M441","v":{"v":0,"d":"0.0"}},{"$f":"'3 INCOME & EXPENSE'!N441","v":{"v":0,"d":"$0.00"}},{"$f":"'3 INCOME & EXPENSE'!O441","v":{"v":0,"d":"$0.00"}},543,{"$f":"'3 INCOME & EXPENSE'!V441","v":100},26000,26100,0]
[null,null,{"$f":"IF('3 INCOME & EXPENSE'!E442=0,\"\",'3 INCOME & EXPENSE'!E442)","v":""},{"$f":"T('3 INCOME & EXPENSE'!G442)","v":""},{"$f":"'3 INCOME & EXPENSE'!M442","v":{"v":0,"d":"0.0"}},{"$f":"'3 INCOME & EXPENSE'!N442","v":{"v":0,"d":"$0.00"}},{"$f":"'3 INCOME & EXPENSE'!O442","v":{"v":0,"d":"$0.00"}},544,{"$f":"'3 INCOME & EXPENSE'!V442","v":100},26000,26100,0]
[null,null,{"$f":"IF('3 INCOME & EXPENSE'!E443=0,\"\",'3 INCOME & EXPENSE'!E443)","v":""},{"$f":"T('3 INCOME & EXPENSE'!G443)","v":""},{"$f":"'3 INCOME & EXPENSE'!M443","v":{"v":0,"d":"0.0"}},{"$f":"'3 INCOME & EXPENSE'!N443","v":{"v":0,"d":"$0.00"}},{"$f":"'3 INCOME & EXPENSE'!O443","v":{"v":0,"d":"$0.00"}},545,{"$f":"'3 INCOME & EXPENSE'!V443","v":100},26000,26100,0]
[null,null,{"$f":"IF('3 INCOME & EXPENSE'!E444=0,\"\",'3 INCOME & EXPENSE'!E444)","v":""},{"$f":"T('3 INCOME & EXPENSE'!G444)","v":""},{"$f":"'3 INCOME & EXPENSE'!M444","v":{"v":0,"d":"0.0"}},{"$f":"'3 INCOME & EXPENSE'!N444","v":{"v":0,"d":"$0.00"}},{"$f":"'3 INCOME & EXPENSE'!O444","v":{"v":0,"d":"$0.00"}},546,{"$f":"'3 INCOME & EXPENSE'!V444","v":100},26000,26100,0]
[null,null,{"$f":"IF('3 INCOME & EXPENSE'!E445=0,\"\",'3 INCOME & EXPENSE'!E445)","v":""},{"$f":"T('3 INCOME & EXPENSE'!G445)","v":""},{"$f":"'3 INCOME & EXPENSE'!M445","v":{"v":0,"d":"0.0"}},{"$f":"'3 INCOME & EXPENSE'!N445","v":{"v":0,"d":"$0.00"}},{"$f":"'3 INCOME & EXPENSE'!O445","v":{"v":0,"d":"$0.00"}},547,{"$f":"'3 INCOME & EXPENSE'!V445","v":100},26000,26100,0]
[null,null,{"$f":"IF('3 INCOME & EXPENSE'!E446=0,\"\",'3 INCOME & EXPENSE'!E446)","v":""},{"$f":"T('3 INCOME & EXPENSE'!G446)","v":""},{"$f":"'3 INCOME & EXPENSE'!M446","v":{"v":0,"d":"0.0"}},{"$f":"'3 INCOME & EXPENSE'!N446","v":{"v":0,"d":"$0.00"}},{"$f":"'3 INCOME & EXPENSE'!O446","v":{"v":0,"d":"$0.00"}},548,{"$f":"'3 INCOME & EXPENSE'!V446","v":100},26000,26100,0]
[null,null,{"$f":"IF('3 INCOME & EXPENSE'!E447=0,\"\",'3 INCOME & EXPENSE'!E447)","v":""},{"$f":"T('3 INCOME & EXPENSE'!G447)","v":""},{"$f":"'3 INCOME & EXPENSE'!M447","v":{"v":0,"d":"0.0"}},{"$f":"'3 INCOME & EXPENSE'!N447","v":{"v":0,"d":"$0.00"}},{"$f":"'3 INCOME & EXPENSE'!O447","v":{"v":0,"d":"$0.00"}},549,{"$f":"'3 INCOME & EXPENSE'!V447","v":100},26000,26100,0]
[null,null,{"$f":"IF('3 INCOME & EXPENSE'!E448=0,\"\",'3 INCOME & EXPENSE'!E448)","v":""},{"$f":"T('3 INCOME & EXPENSE'!G448)","v":""},{"$f":"'3 INCOME & EXPENSE'!M448","v":{"v":0,"d":"0.0"}},{"$f":"'3 INCOME & EXPENSE'!N448","v":{"v":0,"d":"$0.00"}},{"$f":"'3 INCOME & EXPENSE'!O448","v":{"v":0,"d":"$0.00"}},550,{"$f":"'3 INCOME & EXPENSE'!V448","v":100},26000,26100,0]
[null,null,{"$f":"IF('3 INCOME & EXPENSE'!E449=0,\"\",'3 INCOME & EXPENSE'!E449)","v":""},{"$f":"T('3 INCOME & EXPENSE'!G449)","v":""},{"$f":"'3 INCOME & EXPENSE'!M449","v":{"v":0,"d":"0.0"}},{"$f":"'3 INCOME & EXPENSE'!N449","v":{"v":0,"d":"$0.00"}},{"$f":"'3 INCOME & EXPENSE'!O449","v":{"v":0,"d":"$0.00"}},551,{"$f":"'3 INCOME & EXPENSE'!V449","v":100},26000,26100,0]
[null,null,{"$f":"IF('3 INCOME & EXPENSE'!E450=0,\"\",'3 INCOME & EXPENSE'!E450)","v":""},{"$f":"T('3 INCOME & EXPENSE'!G450)","v":""},{"$f":"'3 INCOME & EXPENSE'!M450","v":{"v":0,"d":"0.0"}},{"$f":"'3 INCOME & EXPENSE'!N450","v":{"v":0,"d":"$0.00"}},{"$f":"'3 INCOME & EXPENSE'!O450","v":{"v":0,"d":"$0.00"}},552,{"$f":"'3 INCOME & EXPENSE'!V450","v":100},26000,{"$f":"I563+J563","v":26100},0]
[null,null,{"$f":"IF('3 INCOME & EXPENSE'!E451=0,\"\",'3 INCOME & EXPENSE'!E451)","v":""},{"$f":"T('3 INCOME & EXPENSE'!G451)","v":""},{"$f":"'3 INCOME & EXPENSE'!M451","v":{"v":0,"d":"0.0"}},{"$f":"'3 INCOME & EXPENSE'!N451","v":{"v":0,"d":"$0.00"}},{"$f":"'3 INCOME & EXPENSE'!O451","v":{"v":0,"d":"$0.00"}},553,{"$f":"'3 INCOME & EXPENSE'!V451","v":100},26000,26100,0]
[null,null,{"$f":"IF('3 INCOME & EXPENSE'!E452=0,\"\",'3 INCOME & EXPENSE'!E452)","v":""},{"$f":"T('3 INCOME & EXPENSE'!G452)","v":""},{"$f":"'3 INCOME & EXPENSE'!M452","v":{"v":0,"d":"0.0"}},{"$f":"'3 INCOME & EXPENSE'!N452","v":{"v":0,"d":"$0.00"}},{"$f":"'3 INCOME & EXPENSE'!O452","v":{"v":0,"d":"$0.00"}},554,{"$f":"'3 INCOME & EXPENSE'!V452","v":100},26000,26100,0]
[null,null,{"$f":"IF('3 INCOME & EXPENSE'!E453=0,\"\",'3 INCOME & EXPENSE'!E453)","v":""},{"$f":"T('3 INCOME & EXPENSE'!G453)","v":""},{"$f":"'3 INCOME & EXPENSE'!M453","v":{"v":0,"d":"0.0"}},{"$f":"'3 INCOME & EXPENSE'!N453","v":{"v":0,"d":"$0.00"}},{"$f":"'3 INCOME & EXPENSE'!O453","v":{"v":0,"d":"$0.00"}},555,{"$f":"'3 INCOME & EXPENSE'!V453","v":100},26000,26100,0]
[null,null,{"$f":"IF('3 INCOME & EXPENSE'!E454=0,\"\",'3 INCOME & EXPENSE'!E454)","v":""},{"$f":"T('3 INCOME & EXPENSE'!G454)","v":""},{"$f":"'3 INCOME & EXPENSE'!M454","v":{"v":0,"d":"0.0"}},{"$f":"'3 INCOME & EXPENSE'!N454","v":{"v":0,"d":"$0.00"}},{"$f":"'3 INCOME & EXPENSE'!O454","v":{"v":0,"d":"$0.00"}},556,{"$f":"'3 INCOME & EXPENSE'!V454","v":100},26000,26100,0]
[null,null,{"$f":"IF('3 INCOME & EXPENSE'!E455=0,\"\",'3 INCOME & EXPENSE'!E455)","v":""},{"$f":"T('3 INCOME & EXPENSE'!G455)","v":""},{"$f":"'3 INCOME & EXPENSE'!M455","v":{"v":0,"d":"0.0"}},{"$f":"'3 INCOME & EXPENSE'!N455","v":{"v":0,"d":"$0.00"}},{"$f":"'3 INCOME & EXPENSE'!O455","v":{"v":0,"d":"$0.00"}},557,{"$f":"'3 INCOME & EXPENSE'!V455","v":100},26000,26100,0]
[null,null,{"$f":"IF('3 INCOME & EXPENSE'!E456=0,\"\",'3 INCOME & EXPENSE'!E456)","v":""},{"$f":"T('3 INCOME & EXPENSE'!G456)","v":""},{"$f":"'3 INCOME & EXPENSE'!M456","v":{"v":0,"d":"0.0"}},{"$f":"'3 INCOME & EXPENSE'!N456","v":{"v":0,"d":"$0.00"}},{"$f":"'3 INCOME & EXPENSE'!O456","v":{"v":0,"d":"$0.00"}},558,{"$f":"'3 INCOME & EXPENSE'!V456","v":100},26000,26100,0]
[null,null,{"$f":"IF('3 INCOME & EXPENSE'!E457=0,\"\",'3 INCOME & EXPENSE'!E457)","v":""},{"$f":"T('3 INCOME & EXPENSE'!G457)","v":""},{"$f":"'3 INCOME & EXPENSE'!M457","v":{"v":0,"d":"0.0"}},{"$f":"'3 INCOME & EXPENSE'!N457","v":{"v":0,"d":"$0.00"}},{"$f":"'3 INCOME & EXPENSE'!O457","v":{"v":0,"d":"$0.00"}},559,{"$f":"'3 INCOME & EXPENSE'!V457","v":100},26000,26100,0]
[null,null,{"$f":"IF('3 INCOME & EXPENSE'!E458=0,\"\",'3 INCOME & EXPENSE'!E458)","v":""},{"$f":"T('3 INCOME & EXPENSE'!G458)","v":""},{"$f":"'3 INCOME & EXPENSE'!M458","v":{"v":0,"d":"0.0"}},{"$f":"'3 INCOME & EXPENSE'!N458","v":{"v":0,"d":"$0.00"}},{"$f":"'3 INCOME & EXPENSE'!O458","v":{"v":0,"d":"$0.00"}},560,{"$f":"'3 INCOME & EXPENSE'!V458","v":100},26000,26100,0]
[null,null,{"$f":"IF('3 INCOME & EXPENSE'!E459=0,\"\",'3 INCOME & EXPENSE'!E459)","v":""},{"$f":"T('3 INCOME & EXPENSE'!G459)","v":""},{"$f":"'3 INCOME & EXPENSE'!M459","v":{"v":0,"d":"0.0"}},{"$f":"'3 INCOME & EXPENSE'!N459","v":{"v":0,"d":"$0.00"}},{"$f":"'3 INCOME & EXPENSE'!O459","v":{"v":0,"d":"$0.00"}},561,{"$f":"'3 INCOME & EXPENSE'!V459","v":100},26000,26100,0]
[null,null,{"$f":"IF('3 INCOME & EXPENSE'!E460=0,\"\",'3 INCOME & EXPENSE'!E460)","v":""},{"$f":"T('3 INCOME & EXPENSE'!G460)","v":""},{"$f":"'3 INCOME & EXPENSE'!M460","v":{"v":0,"d":"0.0"}},{"$f":"'3 INCOME & EXPENSE'!N460","v":{"v":0,"d":"$0.00"}},{"$f":"'3 INCOME & EXPENSE'!O460","v":{"v":0,"d":"$0.00"}},562,{"$f":"'3 INCOME & EXPENSE'!V460","v":100},26000,26100,0]
[null,null,{"$f":"IF('3 INCOME & EXPENSE'!E461=0,\"\",'3 INCOME & EXPENSE'!E461)","v":""},{"$f":"T('3 INCOME & EXPENSE'!G461)","v":""},{"$f":"'3 INCOME & EXPENSE'!M461","v":{"v":0,"d":"0.0"}},{"$f":"'3 INCOME & EXPENSE'!N461","v":{"v":0,"d":"$0.00"}},{"$f":"'3 INCOME & EXPENSE'!O461","v":{"v":0,"d":"$0.00"}},563,{"$f":"'3 INCOME & EXPENSE'!V461","v":100},26000,26100,0]
[null,null,{"$f":"IF('3 INCOME & EXPENSE'!E462=0,\"\",'3 INCOME & EXPENSE'!E462)","v":""},{"$f":"T('3 INCOME & EXPENSE'!G462)","v":""},{"$f":"'3 INCOME & EXPENSE'!M462","v":{"v":0,"d":"0.0"}},{"$f":"'3 INCOME & EXPENSE'!N462","v":{"v":0,"d":"$0.00"}},{"$f":"'3 INCOME & EXPENSE'!O462","v":{"v":0,"d":"$0.00"}},564,{"$f":"'3 INCOME & EXPENSE'!V462","v":100},{"$f":"VLOOKUP(I575,$I$880:$J$905,2)","v":26000},26100,{"$f":"K575*E575","v":0}]
[null,null,{"$f":"IF('3 INCOME & EXPENSE'!E463=0,\"\",'3 INCOME & EXPENSE'!E463)","v":""},{"$f":"T('3 INCOME & EXPENSE'!G463)","v":""},{"$f":"'3 INCOME & EXPENSE'!M463","v":{"v":0,"d":"0.0"}},{"$f":"'3 INCOME & EXPENSE'!N463","v":{"v":0,"d":"$0.00"}},{"$f":"'3 INCOME & EXPENSE'!O463","v":{"v":0,"d":"$0.00"}},565,{"$f":"'3 INCOME & EXPENSE'!V463","v":100},26000,26100,0]
[null,null,{"$f":"IF('3 INCOME & EXPENSE'!E464=0,\"\",'3 INCOME & EXPENSE'!E464)","v":""},{"$f":"T('3 INCOME & EXPENSE'!G464)","v":""},{"$f":"'3 INCOME & EXPENSE'!M464","v":{"v":0,"d":"0.0"}},{"$f":"'3 INCOME & EXPENSE'!N464","v":{"v":0,"d":"$0.00"}},{"$f":"'3 INCOME & EXPENSE'!O464","v":{"v":0,"d":"$0.00"}},566,{"$f":"'3 INCOME & EXPENSE'!V464","v":100},26000,26100,0]
[null,null,{"$f":"IF('3 INCOME & EXPENSE'!E465=0,\"\",'3 INCOME & EXPENSE'!E465)","v":""},{"$f":"T('3 INCOME & EXPENSE'!G465)","v":""},{"$f":"'3 INCOME & EXPENSE'!M465","v":{"v":0,"d":"0.0"}},{"$f":"'3 INCOME & EXPENSE'!N465","v":{"v":0,"d":"$0.00"}},{"$f":"'3 INCOME & EXPENSE'!O465","v":{"v":0,"d":"$0.00"}},567,{"$f":"'3 INCOME & EXPENSE'!V465","v":100},26000,26100,0]
[null,null,{"$f":"IF('3 INCOME & EXPENSE'!E466=0,\"\",'3 INCOME & EXPENSE'!E466)","v":""},{"$f":"T('3 INCOME & EXPENSE'!G466)","v":""},{"$f":"'3 INCOME & EXPENSE'!M466","v":{"v":0,"d":"0.0"}},{"$f":"'3 INCOME & EXPENSE'!N466","v":{"v":0,"d":"$0.00"}},{"$f":"'3 INCOME & EXPENSE'!O466","v":{"v":0,"d":"$0.00"}},568,{"$f":"'3 INCOME & EXPENSE'!V466","v":100},26000,26100,0]
[null,null,{"$f":"IF('3 INCOME & EXPENSE'!E467=0,\"\",'3 INCOME & EXPENSE'!E467)","v":""},{"$f":"T('3 INCOME & EXPENSE'!G467)","v":""},{"$f":"'3 INCOME & EXPENSE'!M467","v":{"v":0,"d":"0.0"}},{"$f":"'3 INCOME & EXPENSE'!N467","v":{"v":0,"d":"$0.00"}},{"$f":"'3 INCOME & EXPENSE'!O467","v":{"v":0,"d":"$0.00"}},569,{"$f":"'3 INCOME & EXPENSE'!V467","v":100},26000,26100,0]
[null,null,{"$f":"IF('3 INCOME & EXPENSE'!E468=0,\"\",'3 INCOME & EXPENSE'!E468)","v":""},{"$f":"T('3 INCOME & EXPENSE'!G468)","v":""},{"$f":"'3 INCOME & EXPENSE'!M468","v":{"v":0,"d":"0.0"}},{"$f":"'3 INCOME & EXPENSE'!N468","v":{"v":0,"d":"$0.00"}},{"$f":"'3 INCOME & EXPENSE'!O468","v":{"v":0,"d":"$0.00"}},570,{"$f":"'3 INCOME & EXPENSE'!V468","v":100},26000,26100,0]
[null,null,{"$f":"IF('3 INCOME & EXPENSE'!E469=0,\"\",'3 INCOME & EXPENSE'!E469)","v":""},{"$f":"T('3 INCOME & EXPENSE'!G469)","v":""},{"$f":"'3 INCOME & EXPENSE'!M469","v":{"v":0,"d":"0.0"}},{"$f":"'3 INCOME & EXPENSE'!N469","v":{"v":0,"d":"$0.00"}},{"$f":"'3 INCOME & EXPENSE'!O469","v":{"v":0,"d":"$0.00"}},571,{"$f":"'3 INCOME & EXPENSE'!V469","v":100},26000,26100,0]
[null,null,{"$f":"IF('3 INCOME & EXPENSE'!E470=0,\"\",'3 INCOME & EXPENSE'!E470)","v":""},{"$f":"T('3 INCOME & EXPENSE'!G470)","v":""},{"$f":"'3 INCOME & EXPENSE'!M470","v":{"v":0,"d":"0.0"}},{"$f":"'3 INCOME & EXPENSE'!N470","v":{"v":0,"d":"$0.00"}},{"$f":"'3 INCOME & EXPENSE'!O470","v":{"v":0,"d":"$0.00"}},572,{"$f":"'3 INCOME & EXPENSE'!V470","v":100},26000,26100,0]
[null,null,{"$f":"IF('3 INCOME & EXPENSE'!E471=0,\"\",'3 INCOME & EXPENSE'!E471)","v":""},{"$f":"T('3 INCOME & EXPENSE'!G471)","v":""},{"$f":"'3 INCOME & EXPENSE'!M471","v":{"v":0,"d":"0.0"}},{"$f":"'3 INCOME & EXPENSE'!N471","v":{"v":0,"d":"$0.00"}},{"$f":"'3 INCOME & EXPENSE'!O471","v":{"v":0,"d":"$0.00"}},573,{"$f":"'3 INCOME & EXPENSE'!V471","v":100},26000,26100,0]
[null,null,{"$f":"IF('3 INCOME & EXPENSE'!E472=0,\"\",'3 INCOME & EXPENSE'!E472)","v":""},{"$f":"T('3 INCOME & EXPENSE'!G472)","v":""},{"$f":"'3 INCOME & EXPENSE'!M472","v":{"v":0,"d":"0.0"}},{"$f":"'3 INCOME & EXPENSE'!N472","v":{"v":0,"d":"$0.00"}},{"$f":"'3 INCOME & EXPENSE'!O472","v":{"v":0,"d":"$0.00"}},574,{"$f":"'3 INCOME & EXPENSE'!V472","v":100},26000,26100,0]
[null,null,{"$f":"IF('3 INCOME & EXPENSE'!E473=0,\"\",'3 INCOME & EXPENSE'!E473)","v":""},{"$f":"T('3 INCOME & EXPENSE'!G473)","v":""},{"$f":"'3 INCOME & EXPENSE'!M473","v":{"v":0,"d":"0.0"}},{"$f":"'3 INCOME & EXPENSE'!N473","v":{"v":0,"d":"$0.00"}},{"$f":"'3 INCOME & EXPENSE'!O473","v":{"v":0,"d":"$0.00"}},575,{"$f":"'3 INCOME & EXPENSE'!V473","v":100},26000,26100,0]
[null,null,{"$f":"IF('3 INCOME & EXPENSE'!E474=0,\"\",'3 INCOME & EXPENSE'!E474)","v":""},{"$f":"T('3 INCOME & EXPENSE'!G474)","v":""},{"$f":"'3 INCOME & EXPENSE'!M474","v":{"v":0,"d":"0.0"}},{"$f":"'3 INCOME & EXPENSE'!N474","v":{"v":0,"d":"$0.00"}},{"$f":"'3 INCOME & EXPENSE'!O474","v":{"v":0,"d":"$0.00"}},576,{"$f":"'3 INCOME & EXPENSE'!V474","v":100},26000,26100,0]
[null,null,{"$f":"IF('3 INCOME & EXPENSE'!E475=0,\"\",'3 INCOME & EXPENSE'!E475)","v":""},{"$f":"T('3 INCOME & EXPENSE'!G475)","v":""},{"$f":"'3 INCOME & EXPENSE'!M475","v":{"v":0,"d":"0.0"}},{"$f":"'3 INCOME & EXPENSE'!N475","v":{"v":0,"d":"$0.00"}},{"$f":"'3 INCOME & EXPENSE'!O475","v":{"v":0,"d":"$0.00"}},577,{"$f":"'3 INCOME & EXPENSE'!V475","v":100},26000,26100,0]
[null,null,{"$f":"IF('3 INCOME & EXPENSE'!E476=0,\"\",'3 INCOME & EXPENSE'!E476)","v":""},{"$f":"T('3 INCOME & EXPENSE'!G476)","v":""},{"$f":"'3 INCOME & EXPENSE'!M476","v":{"v":0,"d":"0.0"}},{"$f":"'3 INCOME & EXPENSE'!N476","v":{"v":0,"d":"$0.00"}},{"$f":"'3 INCOME & EXPENSE'!O476","v":{"v":0,"d":"$0.00"}},578,{"$f":"'3 INCOME & EXPENSE'!V476","v":100},26000,26100,0]
[null,null,{"$f":"IF('3 INCOME & EXPENSE'!E477=0,\"\",'3 INCOME & EXPENSE'!E477)","v":""},{"$f":"T('3 INCOME & EXPENSE'!G477)","v":""},{"$f":"'3 INCOME & EXPENSE'!M477","v":{"v":0,"d":"0.0"}},{"$f":"'3 INCOME & EXPENSE'!N477","v":{"v":0,"d":"$0.00"}},{"$f":"'3 INCOME & EXPENSE'!O477","v":{"v":0,"d":"$0.00"}},579,{"$f":"'3 INCOME & EXPENSE'!V477","v":100},26000,26100,0]
[null,null,{"$f":"IF('3 INCOME & EXPENSE'!E478=0,\"\",'3 INCOME & EXPENSE'!E478)","v":""},{"$f":"T('3 INCOME & EXPENSE'!G478)","v":""},{"$f":"'3 INCOME & EXPENSE'!M478","v":{"v":0,"d":"0.0"}},{"$f":"'3 INCOME & EXPENSE'!N478","v":{"v":0,"d":"$0.00"}},{"$f":"'3 INCOME & EXPENSE'!O478","v":{"v":0,"d":"$0.00"}},580,{"$f":"'3 INCOME & EXPENSE'!V478","v":100},26000,26100,0]
[null,null,{"$f":"IF('3 INCOME & EXPENSE'!E479=0,\"\",'3 INCOME & EXPENSE'!E479)","v":""},{"$f":"T('3 INCOME & EXPENSE'!G479)","v":""},{"$f":"'3 INCOME & EXPENSE'!M479","v":{"v":0,"d":"0.0"}},{"$f":"'3 INCOME & EXPENSE'!N479","v":{"v":0,"d":"$0.00"}},{"$f":"'3 INCOME & EXPENSE'!O479","v":{"v":0,"d":"$0.00"}},581,{"$f":"'3 INCOME & EXPENSE'!V479","v":100},26000,26100,0]
[null,null,{"$f":"IF('3 INCOME & EXPENSE'!E480=0,\"\",'3 INCOME & EXPENSE'!E480)","v":""},{"$f":"T('3 INCOME & EXPENSE'!G480)","v":""},{"$f":"'3 INCOME & EXPENSE'!M480","v":{"v":0,"d":"0.0"}},{"$f":"'3 INCOME & EXPENSE'!N480","v":{"v":0,"d":"$0.00"}},{"$f":"'3 INCOME & EXPENSE'!O480","v":{"v":0,"d":"$0.00"}},582,{"$f":"'3 INCOME & EXPENSE'!V480","v":100},26000,26100,0]
[null,null,{"$f":"IF('3 INCOME & EXPENSE'!E481=0,\"\",'3 INCOME & EXPENSE'!E481)","v":""},{"$f":"T('3 INCOME & EXPENSE'!G481)","v":""},{"$f":"'3 INCOME & EXPENSE'!M481","v":{"v":0,"d":"0.0"}},{"$f":"'3 INCOME & EXPENSE'!N481","v":{"v":0,"d":"$0.00"}},{"$f":"'3 INCOME & EXPENSE'!O481","v":{"v":0,"d":"$0.00"}},583,{"$f":"'3 INCOME & EXPENSE'!V481","v":100},26000,26100,0]
[null,null,{"$f":"IF('3 INCOME & EXPENSE'!E482=0,\"\",'3 INCOME & EXPENSE'!E482)","v":""},{"$f":"T('3 INCOME & EXPENSE'!G482)","v":""},{"$f":"'3 INCOME & EXPENSE'!M482","v":{"v":0,"d":"0.0"}},{"$f":"'3 INCOME & EXPENSE'!N482","v":{"v":0,"d":"$0.00"}},{"$f":"'3 INCOME & EXPENSE'!O482","v":{"v":0,"d":"$0.00"}},584,{"$f":"'3 INCOME & EXPENSE'!V482","v":100},26000,26100,0]
[null,null,{"$f":"IF('3 INCOME & EXPENSE'!E483=0,\"\",'3 INCOME & EXPENSE'!E483)","v":""},{"$f":"T('3 INCOME & EXPENSE'!G483)","v":""},{"$f":"'3 INCOME & EXPENSE'!M483","v":{"v":0,"d":"0.0"}},{"$f":"'3 INCOME & EXPENSE'!N483","v":{"v":0,"d":"$0.00"}},{"$f":"'3 INCOME & EXPENSE'!O483","v":{"v":0,"d":"$0.00"}},585,{"$f":"'3 INCOME & EXPENSE'!V483","v":100},26000,26100,0]
[null,null,{"$f":"IF('3 INCOME & EXPENSE'!E484=0,\"\",'3 INCOME & EXPENSE'!E484)","v":""},{"$f":"T('3 INCOME & EXPENSE'!G484)","v":""},{"$f":"'3 INCOME & EXPENSE'!M484","v":{"v":0,"d":"0.0"}},{"$f":"'3 INCOME & EXPENSE'!N484","v":{"v":0,"d":"$0.00"}},{"$f":"'3 INCOME & EXPENSE'!O484","v":{"v":0,"d":"$0.00"}},586,{"$f":"'3 INCOME & EXPENSE'!V484","v":100},26000,26100,0]
[null,null,{"$f":"IF('3 INCOME & EXPENSE'!E485=0,\"\",'3 INCOME & EXPENSE'!E485)","v":""},{"$f":"T('3 INCOME & EXPENSE'!G485)","v":""},{"$f":"'3 INCOME & EXPENSE'!M485","v":{"v":0,"d":"0.0"}},{"$f":"'3 INCOME & EXPENSE'!N485","v":{"v":0,"d":"$0.00"}},{"$f":"'3 INCOME & EXPENSE'!O485","v":{"v":0,"d":"$0.00"}},587,{"$f":"'3 INCOME & EXPENSE'!V485","v":100},26000,26100,0]
[null,null,{"$f":"IF('3 INCOME & EXPENSE'!E486=0,\"\",'3 INCOME & EXPENSE'!E486)","v":""},{"$f":"T('3 INCOME & EXPENSE'!G486)","v":""},{"$f":"'3 INCOME & EXPENSE'!M486","v":{"v":0,"d":"0.0"}},{"$f":"'3 INCOME & EXPENSE'!N486","v":{"v":0,"d":"$0.00"}},{"$f":"'3 INCOME & EXPENSE'!O486","v":{"v":0,"d":"$0.00"}},588,{"$f":"'3 INCOME & EXPENSE'!V486","v":100},26000,26100,0]
[null,null,{"$f":"IF('3 INCOME & EXPENSE'!E487=0,\"\",'3 INCOME & EXPENSE'!E487)","v":""},{"$f":"T('3 INCOME & EXPENSE'!G487)","v":""},{"$f":"'3 INCOME & EXPENSE'!M487","v":{"v":0,"d":"0.0"}},{"$f":"'3 INCOME & EXPENSE'!N487","v":{"v":0,"d":"$0.00"}},{"$f":"'3 INCOME & EXPENSE'!O487","v":{"v":0,"d":"$0.00"}},589,{"$f":"'3 INCOME & EXPENSE'!V487","v":100},26000,26100,0]
[null,null,{"$f":"IF('3 INCOME & EXPENSE'!E488=0,\"\",'3 INCOME & EXPENSE'!E488)","v":""},{"$f":"T('3 INCOME & EXPENSE'!G488)","v":""},{"$f":"'3 INCOME & EXPENSE'!M488","v":{"v":0,"d":"0.0"}},{"$f":"'3 INCOME & EXPENSE'!N488","v":{"v":0,"d":"$0.00"}},{"$f":"'3 INCOME & EXPENSE'!O488","v":{"v":0,"d":"$0.00"}},590,{"$f":"'3 INCOME & EXPENSE'!V488","v":100},26000,26100,0]
[null,null,{"$f":"IF('3 INCOME & EXPENSE'!E489=0,\"\",'3 INCOME & EXPENSE'!E489)","v":""},{"$f":"T('3 INCOME & EXPENSE'!G489)","v":""},{"$f":"'3 INCOME & EXPENSE'!M489","v":{"v":0,"d":"0.0"}},{"$f":"'3 INCOME & EXPENSE'!N489","v":{"v":0,"d":"$0.00"}},{"$f":"'3 INCOME & EXPENSE'!O489","v":{"v":0,"d":"$0.00"}},591,{"$f":"'3 INCOME & EXPENSE'!V489","v":100},26000,26100,0]
[null,null,{"$f":"IF('3 INCOME & EXPENSE'!E490=0,\"\",'3 INCOME & EXPENSE'!E490)","v":""},{"$f":"T('3 INCOME & EXPENSE'!G490)","v":""},{"$f":"'3 INCOME & EXPENSE'!M490","v":{"v":0,"d":"0.0"}},{"$f":"'3 INCOME & EXPENSE'!N490","v":{"v":0,"d":"$0.00"}},{"$f":"'3 INCOME & EXPENSE'!O490","v":{"v":0,"d":"$0.00"}},592,{"$f":"'3 INCOME & EXPENSE'!V490","v":100},26000,26100,0]
[null,null,{"$f":"IF('3 INCOME & EXPENSE'!E491=0,\"\",'3 INCOME & EXPENSE'!E491)","v":""},{"$f":"T('3 INCOME & EXPENSE'!G491)","v":""},{"$f":"'3 INCOME & EXPENSE'!M491","v":{"v":0,"d":"0.0"}},{"$f":"'3 INCOME & EXPENSE'!N491","v":{"v":0,"d":"$0.00"}},{"$f":"'3 INCOME & EXPENSE'!O491","v":{"v":0,"d":"$0.00"}},593,{"$f":"'3 INCOME & EXPENSE'!V491","v":100},26000,26100,0]
[null,null,{"$f":"IF('3 INCOME & EXPENSE'!E492=0,\"\",'3 INCOME & EXPENSE'!E492)","v":""},{"$f":"T('3 INCOME & EXPENSE'!G492)","v":""},{"$f":"'3 INCOME & EXPENSE'!M492","v":{"v":0,"d":"0.0"}},{"$f":"'3 INCOME & EXPENSE'!N492","v":{"v":0,"d":"$0.00"}},{"$f":"'3 INCOME & EXPENSE'!O492","v":{"v":0,"d":"$0.00"}},594,{"$f":"'3 INCOME & EXPENSE'!V492","v":100},26000,26100,0]
[null,null,{"$f":"IF('3 INCOME & EXPENSE'!E493=0,\"\",'3 INCOME & EXPENSE'!E493)","v":""},{"$f":"T('3 INCOME & EXPENSE'!G493)","v":""},{"$f":"'3 INCOME & EXPENSE'!M493","v":{"v":0,"d":"0.0"}},{"$f":"'3 INCOME & EXPENSE'!N493","v":{"v":0,"d":"$0.00"}},{"$f":"'3 INCOME & EXPENSE'!O493","v":{"v":0,"d":"$0.00"}},595,{"$f":"'3 INCOME & EXPENSE'!V493","v":100},26000,26100,0]
[null,null,{"$f":"IF('3 INCOME & EXPENSE'!E494=0,\"\",'3 INCOME & EXPENSE'!E494)","v":""},{"$f":"T('3 INCOME & EXPENSE'!G494)","v":""},{"$f":"'3 INCOME & EXPENSE'!M494","v":{"v":0,"d":"0.0"}},{"$f":"'3 INCOME & EXPENSE'!N494","v":{"v":0,"d":"$0.00"}},{"$f":"'3 INCOME & EXPENSE'!O494","v":{"v":0,"d":"$0.00"}},596,{"$f":"'3 INCOME & EXPENSE'!V494","v":100},26000,26100,0]
[null,null,{"$f":"IF('3 INCOME & EXPENSE'!E495=0,\"\",'3 INCOME & EXPENSE'!E495)","v":""},{"$f":"T('3 INCOME & EXPENSE'!G495)","v":""},{"$f":"'3 INCOME & EXPENSE'!M495","v":{"v":0,"d":"0.0"}},{"$f":"'3 INCOME & EXPENSE'!N495","v":{"v":0,"d":"$0.00"}},{"$f":"'3 INCOME & EXPENSE'!O495","v":{"v":0,"d":"$0.00"}},597,{"$f":"'3 INCOME & EXPENSE'!V495","v":100},26000,26100,0]
[null,null,{"$f":"IF('3 INCOME & EXPENSE'!E496=0,\"\",'3 INCOME & EXPENSE'!E496)","v":""},{"$f":"T('3 INCOME & EXPENSE'!G496)","v":""},{"$f":"'3 INCOME & EXPENSE'!M496","v":{"v":0,"d":"0.0"}},{"$f":"'3 INCOME & EXPENSE'!N496","v":{"v":0,"d":"$0.00"}},{"$f":"'3 INCOME & EXPENSE'!O496","v":{"v":0,"d":"$0.00"}},598,{"$f":"'3 INCOME & EXPENSE'!V496","v":100},26000,26100,0]
[null,null,{"$f":"IF('3 INCOME & EXPENSE'!E497=0,\"\",'3 INCOME & EXPENSE'!E497)","v":""},{"$f":"T('3 INCOME & EXPENSE'!G497)","v":""},{"$f":"'3 INCOME & EXPENSE'!M497","v":{"v":0,"d":"0.0"}},{"$f":"'3 INCOME & EXPENSE'!N497","v":{"v":0,"d":"$0.00"}},{"$f":"'3 INCOME & EXPENSE'!O497","v":{"v":0,"d":"$0.00"}},599,{"$f":"'3 INCOME & EXPENSE'!V497","v":100},26000,26100,0]
[null,null,{"$f":"IF('3 INCOME & EXPENSE'!E498=0,\"\",'3 INCOME & EXPENSE'!E498)","v":""},{"$f":"T('3 INCOME & EXPENSE'!G498)","v":""},{"$f":"'3 INCOME & EXPENSE'!M498","v":{"v":0,"d":"0.0"}},{"$f":"'3 INCOME & EXPENSE'!N498","v":{"v":0,"d":"$0.00"}},{"$f":"'3 INCOME & EXPENSE'!O498","v":{"v":0,"d":"$0.00"}},600,{"$f":"'3 INCOME & EXPENSE'!V498","v":100},26000,26100,0]
[null,null,{"$f":"IF('3 INCOME & EXPENSE'!E499=0,\"\",'3 INCOME & EXPENSE'!E499)","v":""},{"$f":"T('3 INCOME & EXPENSE'!G499)","v":""},{"$f":"'3 INCOME & EXPENSE'!M499","v":{"v":0,"d":"0.0"}},{"$f":"'3 INCOME & EXPENSE'!N499","v":{"v":0,"d":"$0.00"}},{"$f":"'3 INCOME & EXPENSE'!O499","v":{"v":0,"d":"$0.00"}},601,{"$f":"'3 INCOME & EXPENSE'!V499","v":100},26000,26100,0]
[null,null,{"$f":"IF('3 INCOME & EXPENSE'!E500=0,\"\",'3 INCOME & EXPENSE'!E500)","v":""},{"$f":"T('3 INCOME & EXPENSE'!G500)","v":""},{"$f":"'3 INCOME & EXPENSE'!M500","v":{"v":0,"d":"0.0"}},{"$f":"'3 INCOME & EXPENSE'!N500","v":{"v":0,"d":"$0.00"}},{"$f":"'3 INCOME & EXPENSE'!O500","v":{"v":0,"d":"$0.00"}},602,{"$f":"'3 INCOME & EXPENSE'!V500","v":100},26000,26100,0]
[null,null,{"$f":"IF('3 INCOME & EXPENSE'!E501=0,\"\",'3 INCOME & EXPENSE'!E501)","v":""},{"$f":"T('3 INCOME & EXPENSE'!G501)","v":""},{"$f":"'3 INCOME & EXPENSE'!M501","v":{"v":0,"d":"0.0"}},{"$f":"'3 INCOME & EXPENSE'!N501","v":{"v":0,"d":"$0.00"}},{"$f":"'3 INCOME & EXPENSE'!O501","v":{"v":0,"d":"$0.00"}},603,{"$f":"'3 INCOME & EXPENSE'!V501","v":100},26000,26100,0]
[null,null,{"$f":"IF('3 INCOME & EXPENSE'!E502=0,\"\",'3 INCOME & EXPENSE'!E502)","v":""},{"$f":"T('3 INCOME & EXPENSE'!G502)","v":""},{"$f":"'3 INCOME & EXPENSE'!M502","v":{"v":0,"d":"0.0"}},{"$f":"'3 INCOME & EXPENSE'!N502","v":{"v":0,"d":"$0.00"}},{"$f":"'3 INCOME & EXPENSE'!O502","v":{"v":0,"d":"$0.00"}},604,{"$f":"'3 INCOME & EXPENSE'!V502","v":100},26000,26100,0]
[null,null,{"$f":"IF('3 INCOME & EXPENSE'!E503=0,\"\",'3 INCOME & EXPENSE'!E503)","v":""},{"$f":"T('3 INCOME & EXPENSE'!G503)","v":""},{"$f":"'3 INCOME & EXPENSE'!M503","v":{"v":0,"d":"0.0"}},{"$f":"'3 INCOME & EXPENSE'!N503","v":{"v":0,"d":"$0.00"}},{"$f":"'3 INCOME & EXPENSE'!O503","v":{"v":0,"d":"$0.00"}},605,{"$f":"'3 INCOME & EXPENSE'!V503","v":100},26000,26100,0]
[null,null,{"$f":"IF('3 INCOME & EXPENSE'!E504=0,\"\",'3 INCOME & EXPENSE'!E504)","v":""},{"$f":"T('3 INCOME & EXPENSE'!G504)","v":""},{"$f":"'3 INCOME & EXPENSE'!M504","v":{"v":0,"d":"0.0"}},{"$f":"'3 INCOME & EXPENSE'!N504","v":{"v":0,"d":"$0.00"}},{"$f":"'3 INCOME & EXPENSE'!O504","v":{"v":0,"d":"$0.00"}},606,{"$f":"'3 INCOME & EXPENSE'!V504","v":100},26000,26100,0]
[null,null,{"$f":"IF('3 INCOME & EXPENSE'!E505=0,\"\",'3 INCOME & EXPENSE'!E505)","v":""},{"$f":"T('3 INCOME & EXPENSE'!G505)","v":""},{"$f":"'3 INCOME & EXPENSE'!M505","v":{"v":0,"d":"0.0"}},{"$f":"'3 INCOME & EXPENSE'!N505","v":{"v":0,"d":"$0.00"}},{"$f":"'3 INCOME & EXPENSE'!O505","v":{"v":0,"d":"$0.00"}},607,{"$f":"'3 INCOME & EXPENSE'!V505","v":100},26000,26100,0]
[null,null,{"$f":"IF('3 INCOME & EXPENSE'!E506=0,\"\",'3 INCOME & EXPENSE'!E506)","v":""},{"$f":"T('3 INCOME & EXPENSE'!G506)","v":""},{"$f":"'3 INCOME & EXPENSE'!M506","v":{"v":0,"d":"0.0"}},{"$f":"'3 INCOME & EXPENSE'!N506","v":{"v":0,"d":"$0.00"}},{"$f":"'3 INCOME & EXPENSE'!O506","v":{"v":0,"d":"$0.00"}},608,{"$f":"'3 INCOME & EXPENSE'!V506","v":100},26000,26100,0]
[null,null,{"$f":"IF('3 INCOME & EXPENSE'!E507=0,\"\",'3 INCOME & EXPENSE'!E507)","v":""},{"$f":"T('3 INCOME & EXPENSE'!G507)","v":""},{"$f":"'3 INCOME & EXPENSE'!M507","v":{"v":0,"d":"0.0"}},{"$f":"'3 INCOME & EXPENSE'!N507","v":{"v":0,"d":"$0.00"}},{"$f":"'3 INCOME & EXPENSE'!O507","v":{"v":0,"d":"$0.00"}},609,{"$f":"'3 INCOME & EXPENSE'!V507","v":100},26000,26100,0]
[null,null,{"$f":"IF('3 INCOME & EXPENSE'!E508=0,\"\",'3 INCOME & EXPENSE'!E508)","v":""},{"$f":"T('3 INCOME & EXPENSE'!G508)","v":""},{"$f":"'3 INCOME & EXPENSE'!M508","v":{"v":0,"d":"0.0"}},{"$f":"'3 INCOME & EXPENSE'!N508","v":{"v":0,"d":"$0.00"}},{"$f":"'3 INCOME & EXPENSE'!O508","v":{"v":0,"d":"$0.00"}},610,{"$f":"'3 INCOME & EXPENSE'!V508","v":100},26000,26100,0]
[null,null,{"$f":"IF('3 INCOME & EXPENSE'!E509=0,\"\",'3 INCOME & EXPENSE'!E509)","v":""},{"$f":"T('3 INCOME & EXPENSE'!G509)","v":""},{"$f":"'3 INCOME & EXPENSE'!M509","v":{"v":0,"d":"0.0"}},{"$f":"'3 INCOME & EXPENSE'!N509","v":{"v":0,"d":"$0.00"}},{"$f":"'3 INCOME & EXPENSE'!O509","v":{"v":0,"d":"$0.00"}},611,{"$f":"'3 INCOME & EXPENSE'!V509","v":100},26000,26100,0]
[null,null,{"$f":"IF('3 INCOME & EXPENSE'!E510=0,\"\",'3 INCOME & EXPENSE'!E510)","v":""},{"$f":"T('3 INCOME & EXPENSE'!G510)","v":""},{"$f":"'3 INCOME & EXPENSE'!M510","v":{"v":0,"d":"0.0"}},{"$f":"'3 INCOME & EXPENSE'!N510","v":{"v":0,"d":"$0.00"}},{"$f":"'3 INCOME & EXPENSE'!O510","v":{"v":0,"d":"$0.00"}},612,{"$f":"'3 INCOME & EXPENSE'!V510","v":100},26000,26100,0]
[null,null,{"$f":"IF('3 INCOME & EXPENSE'!E511=0,\"\",'3 INCOME & EXPENSE'!E511)","v":""},{"$f":"T('3 INCOME & EXPENSE'!G511)","v":""},{"$f":"'3 INCOME & EXPENSE'!M511","v":{"v":0,"d":"0.0"}},{"$f":"'3 INCOME & EXPENSE'!N511","v":{"v":0,"d":"$0.00"}},{"$f":"'3 INCOME & EXPENSE'!O511","v":{"v":0,"d":"$0.00"}},613,{"$f":"'3 INCOME & EXPENSE'!V511","v":100},26000,26100,0]
[null,null,{"$f":"IF('3 INCOME & EXPENSE'!E512=0,\"\",'3 INCOME & EXPENSE'!E512)","v":""},{"$f":"T('3 INCOME & EXPENSE'!G512)","v":""},{"$f":"'3 INCOME & EXPENSE'!M512","v":{"v":0,"d":"0.0"}},{"$f":"'3 INCOME & EXPENSE'!N512","v":{"v":0,"d":"$0.00"}},{"$f":"'3 INCOME & EXPENSE'!O512","v":{"v":0,"d":"$0.00"}},614,{"$f":"'3 INCOME & EXPENSE'!V512","v":100},26000,26100,0]
[null,null,{"$f":"IF('3 INCOME & EXPENSE'!E513=0,\"\",'3 INCOME & EXPENSE'!E513)","v":""},{"$f":"T('3 INCOME & EXPENSE'!G513)","v":""},{"$f":"'3 INCOME & EXPENSE'!M513","v":{"v":0,"d":"0.0"}},{"$f":"'3 INCOME & EXPENSE'!N513","v":{"v":0,"d":"$0.00"}},{"$f":"'3 INCOME & EXPENSE'!O513","v":{"v":0,"d":"$0.00"}},615,{"$f":"'3 INCOME & EXPENSE'!V513","v":100},26000,26100,0]
[null,null,{"$f":"IF('3 INCOME & EXPENSE'!E514=0,\"\",'3 INCOME & EXPENSE'!E514)","v":""},{"$f":"T('3 INCOME & EXPENSE'!G514)","v":""},{"$f":"'3 INCOME & EXPENSE'!M514","v":{"v":0,"d":"0.0"}},{"$f":"'3 INCOME & EXPENSE'!N514","v":{"v":0,"d":"$0.00"}},{"$f":"'3 INCOME & EXPENSE'!O514","v":{"v":0,"d":"$0.00"}},616,{"$f":"'3 INCOME & EXPENSE'!V514","v":100},26000,{"$f":"I627+J627","v":26100},0]
[null,null,{"$f":"IF('3 INCOME & EXPENSE'!E515=0,\"\",'3 INCOME & EXPENSE'!E515)","v":""},{"$f":"T('3 INCOME & EXPENSE'!G515)","v":""},{"$f":"'3 INCOME & EXPENSE'!M515","v":{"v":0,"d":"0.0"}},{"$f":"'3 INCOME & EXPENSE'!N515","v":{"v":0,"d":"$0.00"}},{"$f":"'3 INCOME & EXPENSE'!O515","v":{"v":0,"d":"$0.00"}},617,{"$f":"'3 INCOME & EXPENSE'!V515","v":100},26000,26100,0]
[null,null,{"$f":"IF('3 INCOME & EXPENSE'!E516=0,\"\",'3 INCOME & EXPENSE'!E516)","v":""},{"$f":"T('3 INCOME & EXPENSE'!G516)","v":""},{"$f":"'3 INCOME & EXPENSE'!M516","v":{"v":0,"d":"0.0"}},{"$f":"'3 INCOME & EXPENSE'!N516","v":{"v":0,"d":"$0.00"}},{"$f":"'3 INCOME & EXPENSE'!O516","v":{"v":0,"d":"$0.00"}},618,{"$f":"'3 INCOME & EXPENSE'!V516","v":100},26000,26100,0]
[null,null,{"$f":"IF('3 INCOME & EXPENSE'!E517=0,\"\",'3 INCOME & EXPENSE'!E517)","v":""},{"$f":"T('3 INCOME & EXPENSE'!G517)","v":""},{"$f":"'3 INCOME & EXPENSE'!M517","v":{"v":0,"d":"0.0"}},{"$f":"'3 INCOME & EXPENSE'!N517","v":{"v":0,"d":"$0.00"}},{"$f":"'3 INCOME & EXPENSE'!O517","v":{"v":0,"d":"$0.00"}},619,{"$f":"'3 INCOME & EXPENSE'!V517","v":100},26000,26100,0]
[null,null,{"$f":"IF('3 INCOME & EXPENSE'!E518=0,\"\",'3 INCOME & EXPENSE'!E518)","v":""},{"$f":"T('3 INCOME & EXPENSE'!G518)","v":""},{"$f":"'3 INCOME & EXPENSE'!M518","v":{"v":0,"d":"0.0"}},{"$f":"'3 INCOME & EXPENSE'!N518","v":{"v":0,"d":"$0.00"}},{"$f":"'3 INCOME & EXPENSE'!O518","v":{"v":0,"d":"$0.00"}},620,{"$f":"'3 INCOME & EXPENSE'!V518","v":100},26000,26100,0]
[null,null,{"$f":"IF('3 INCOME & EXPENSE'!E519=0,\"\",'3 INCOME & EXPENSE'!E519)","v":""},{"$f":"T('3 INCOME & EXPENSE'!G519)","v":""},{"$f":"'3 INCOME & EXPENSE'!M519","v":{"v":0,"d":"0.0"}},{"$f":"'3 INCOME & EXPENSE'!N519","v":{"v":0,"d":"$0.00"}},{"$f":"'3 INCOME & EXPENSE'!O519","v":{"v":0,"d":"$0.00"}},621,{"$f":"'3 INCOME & EXPENSE'!V519","v":100},26000,26100,0]
[null,null,{"$f":"IF('3 INCOME & EXPENSE'!E520=0,\"\",'3 INCOME & EXPENSE'!E520)","v":""},{"$f":"T('3 INCOME & EXPENSE'!G520)","v":""},{"$f":"'3 INCOME & EXPENSE'!M520","v":{"v":0,"d":"0.0"}},{"$f":"'3 INCOME & EXPENSE'!N520","v":{"v":0,"d":"$0.00"}},{"$f":"'3 INCOME & EXPENSE'!O520","v":{"v":0,"d":"$0.00"}},622,{"$f":"'3 INCOME & EXPENSE'!V520","v":100},26000,26100,0]
[null,null,{"$f":"IF('3 INCOME & EXPENSE'!E521=0,\"\",'3 INCOME & EXPENSE'!E521)","v":""},{"$f":"T('3 INCOME & EXPENSE'!G521)","v":""},{"$f":"'3 INCOME & EXPENSE'!M521","v":{"v":0,"d":"0.0"}},{"$f":"'3 INCOME & EXPENSE'!N521","v":{"v":0,"d":"$0.00"}},{"$f":"'3 INCOME & EXPENSE'!O521","v":{"v":0,"d":"$0.00"}},623,{"$f":"'3 INCOME & EXPENSE'!V521","v":100},26000,26100,0]
[null,null,{"$f":"IF('3 INCOME & EXPENSE'!E522=0,\"\",'3 INCOME & EXPENSE'!E522)","v":""},{"$f":"T('3 INCOME & EXPENSE'!G522)","v":""},{"$f":"'3 INCOME & EXPENSE'!M522","v":{"v":0,"d":"0.0"}},{"$f":"'3 INCOME & EXPENSE'!N522","v":{"v":0,"d":"$0.00"}},{"$f":"'3 INCOME & EXPENSE'!O522","v":{"v":0,"d":"$0.00"}},624,{"$f":"'3 INCOME & EXPENSE'!V522","v":100},26000,26100,0]
[null,null,{"$f":"IF('3 INCOME & EXPENSE'!E523=0,\"\",'3 INCOME & EXPENSE'!E523)","v":""},{"$f":"T('3 INCOME & EXPENSE'!G523)","v":""},{"$f":"'3 INCOME & EXPENSE'!M523","v":{"v":0,"d":"0.0"}},{"$f":"'3 INCOME & EXPENSE'!N523","v":{"v":0,"d":"$0.00"}},{"$f":"'3 INCOME & EXPENSE'!O523","v":{"v":0,"d":"$0.00"}},625,{"$f":"'3 INCOME & EXPENSE'!V523","v":100},26000,26100,0]
[null,null,{"$f":"IF('3 INCOME & EXPENSE'!E524=0,\"\",'3 INCOME & EXPENSE'!E524)","v":""},{"$f":"T('3 INCOME & EXPENSE'!G524)","v":""},{"$f":"'3 INCOME & EXPENSE'!M524","v":{"v":0,"d":"0.0"}},{"$f":"'3 INCOME & EXPENSE'!N524","v":{"v":0,"d":"$0.00"}},{"$f":"'3 INCOME & EXPENSE'!O524","v":{"v":0,"d":"$0.00"}},626,{"$f":"'3 INCOME & EXPENSE'!V524","v":100},26000,26100,0]
[null,null,{"$f":"IF('3 INCOME & EXPENSE'!E525=0,\"\",'3 INCOME & EXPENSE'!E525)","v":""},{"$f":"T('3 INCOME & EXPENSE'!G525)","v":""},{"$f":"'3 INCOME & EXPENSE'!M525","v":{"v":0,"d":"0.0"}},{"$f":"'3 INCOME & EXPENSE'!N525","v":{"v":0,"d":"$0.00"}},{"$f":"'3 INCOME & EXPENSE'!O525","v":{"v":0,"d":"$0.00"}},627,{"$f":"'3 INCOME & EXPENSE'!V525","v":100},26000,26100,0]
[null,null,{"$f":"IF('3 INCOME & EXPENSE'!E526=0,\"\",'3 INCOME & EXPENSE'!E526)","v":""},{"$f":"T('3 INCOME & EXPENSE'!G526)","v":""},{"$f":"'3 INCOME & EXPENSE'!M526","v":{"v":0,"d":"0.0"}},{"$f":"'3 INCOME & EXPENSE'!N526","v":{"v":0,"d":"$0.00"}},{"$f":"'3 INCOME & EXPENSE'!O526","v":{"v":0,"d":"$0.00"}},628,{"$f":"'3 INCOME & EXPENSE'!V526","v":100},{"$f":"VLOOKUP(I639,$I$880:$J$905,2)","v":26000},26100,{"$f":"K639*E639","v":0}]
[null,null,{"$f":"IF('3 INCOME & EXPENSE'!E527=0,\"\",'3 INCOME & EXPENSE'!E527)","v":""},{"$f":"T('3 INCOME & EXPENSE'!G527)","v":""},{"$f":"'3 INCOME & EXPENSE'!M527","v":{"v":0,"d":"0.0"}},{"$f":"'3 INCOME & EXPENSE'!N527","v":{"v":0,"d":"$0.00"}},{"$f":"'3 INCOME & EXPENSE'!O527","v":{"v":0,"d":"$0.00"}},629,{"$f":"'3 INCOME & EXPENSE'!V527","v":100},26000,26100,0]
[null,null,{"$f":"IF('3 INCOME & EXPENSE'!E528=0,\"\",'3 INCOME & EXPENSE'!E528)","v":""},{"$f":"T('3 INCOME & EXPENSE'!G528)","v":""},{"$f":"'3 INCOME & EXPENSE'!M528","v":{"v":0,"d":"0.0"}},{"$f":"'3 INCOME & EXPENSE'!N528","v":{"v":0,"d":"$0.00"}},{"$f":"'3 INCOME & EXPENSE'!O528","v":{"v":0,"d":"$0.00"}},630,{"$f":"'3 INCOME & EXPENSE'!V528","v":100},26000,26100,0]
[null,null,{"$f":"IF('3 INCOME & EXPENSE'!E529=0,\"\",'3 INCOME & EXPENSE'!E529)","v":""},{"$f":"T('3 INCOME & EXPENSE'!G529)","v":""},{"$f":"'3 INCOME & EXPENSE'!M529","v":{"v":0,"d":"0.0"}},{"$f":"'3 INCOME & EXPENSE'!N529","v":{"v":0,"d":"$0.00"}},{"$f":"'3 INCOME & EXPENSE'!O529","v":{"v":0,"d":"$0.00"}},631,{"$f":"'3 INCOME & EXPENSE'!V529","v":100},26000,26100,0]
[null,null,{"$f":"IF('3 INCOME & EXPENSE'!E530=0,\"\",'3 INCOME & EXPENSE'!E530)","v":""},{"$f":"T('3 INCOME & EXPENSE'!G530)","v":""},{"$f":"'3 INCOME & EXPENSE'!M530","v":{"v":0,"d":"0.0"}},{"$f":"'3 INCOME & EXPENSE'!N530","v":{"v":0,"d":"$0.00"}},{"$f":"'3 INCOME & EXPENSE'!O530","v":{"v":0,"d":"$0.00"}},632,{"$f":"'3 INCOME & EXPENSE'!V530","v":100},26000,26100,0]
[null,null,{"$f":"IF('3 INCOME & EXPENSE'!E531=0,\"\",'3 INCOME & EXPENSE'!E531)","v":""},{"$f":"T('3 INCOME & EXPENSE'!G531)","v":""},{"$f":"'3 INCOME & EXPENSE'!M531","v":{"v":0,"d":"0.0"}},{"$f":"'3 INCOME & EXPENSE'!N531","v":{"v":0,"d":"$0.00"}},{"$f":"'3 INCOME & EXPENSE'!O531","v":{"v":0,"d":"$0.00"}},633,{"$f":"'3 INCOME & EXPENSE'!V531","v":100},26000,26100,0]
[null,null,{"$f":"IF('3 INCOME & EXPENSE'!E532=0,\"\",'3 INCOME & EXPENSE'!E532)","v":""},{"$f":"T('3 INCOME & EXPENSE'!G532)","v":""},{"$f":"'3 INCOME & EXPENSE'!M532","v":{"v":0,"d":"0.0"}},{"$f":"'3 INCOME & EXPENSE'!N532","v":{"v":0,"d":"$0.00"}},{"$f":"'3 INCOME & EXPENSE'!O532","v":{"v":0,"d":"$0.00"}},634,{"$f":"'3 INCOME & EXPENSE'!V532","v":100},26000,26100,0]
[null,null,{"$f":"IF('3 INCOME & EXPENSE'!E533=0,\"\",'3 INCOME & EXPENSE'!E533)","v":""},{"$f":"T('3 INCOME & EXPENSE'!G533)","v":""},{"$f":"'3 INCOME & EXPENSE'!M533","v":{"v":0,"d":"0.0"}},{"$f":"'3 INCOME & EXPENSE'!N533","v":{"v":0,"d":"$0.00"}},{"$f":"'3 INCOME & EXPENSE'!O533","v":{"v":0,"d":"$0.00"}},635,{"$f":"'3 INCOME & EXPENSE'!V533","v":100},26000,26100,0]
[null,null,{"$f":"IF('3 INCOME & EXPENSE'!E534=0,\"\",'3 INCOME & EXPENSE'!E534)","v":""},{"$f":"T('3 INCOME & EXPENSE'!G534)","v":""},{"$f":"'3 INCOME & EXPENSE'!M534","v":{"v":0,"d":"0.0"}},{"$f":"'3 INCOME & EXPENSE'!N534","v":{"v":0,"d":"$0.00"}},{"$f":"'3 INCOME & EXPENSE'!O534","v":{"v":0,"d":"$0.00"}},636,{"$f":"'3 INCOME & EXPENSE'!V534","v":100},26000,26100,0]
[null,null,{"$f":"IF('3 INCOME & EXPENSE'!E535=0,\"\",'3 INCOME & EXPENSE'!E535)","v":""},{"$f":"T('3 INCOME & EXPENSE'!G535)","v":""},{"$f":"'3 INCOME & EXPENSE'!M535","v":{"v":0,"d":"0.0"}},{"$f":"'3 INCOME & EXPENSE'!N535","v":{"v":0,"d":"$0.00"}},{"$f":"'3 INCOME & EXPENSE'!O535","v":{"v":0,"d":"$0.00"}},637,{"$f":"'3 INCOME & EXPENSE'!V535","v":100},26000,26100,0]
[null,null,{"$f":"IF('3 INCOME & EXPENSE'!E536=0,\"\",'3 INCOME & EXPENSE'!E536)","v":""},{"$f":"T('3 INCOME & EXPENSE'!G536)","v":""},{"$f":"'3 INCOME & EXPENSE'!M536","v":{"v":0,"d":"0.0"}},{"$f":"'3 INCOME & EXPENSE'!N536","v":{"v":0,"d":"$0.00"}},{"$f":"'3 INCOME & EXPENSE'!O536","v":{"v":0,"d":"$0.00"}},638,{"$f":"'3 INCOME & EXPENSE'!V536","v":100},26000,26100,0]
[null,null,{"$f":"IF('3 INCOME & EXPENSE'!E537=0,\"\",'3 INCOME & EXPENSE'!E537)","v":""},{"$f":"T('3 INCOME & EXPENSE'!G537)","v":""},{"$f":"'3 INCOME & EXPENSE'!M537","v":{"v":0,"d":"0.0"}},{"$f":"'3 INCOME & EXPENSE'!N537","v":{"v":0,"d":"$0.00"}},{"$f":"'3 INCOME & EXPENSE'!O537","v":{"v":0,"d":"$0.00"}},639,{"$f":"'3 INCOME & EXPENSE'!V537","v":100},26000,26100,0]
[null,null,{"$f":"IF('3 INCOME & EXPENSE'!E538=0,\"\",'3 INCOME & EXPENSE'!E538)","v":""},{"$f":"T('3 INCOME & EXPENSE'!G538)","v":""},{"$f":"'3 INCOME & EXPENSE'!M538","v":{"v":0,"d":"0.0"}},{"$f":"'3 INCOME & EXPENSE'!N538","v":{"v":0,"d":"$0.00"}},{"$f":"'3 INCOME & EXPENSE'!O538","v":{"v":0,"d":"$0.00"}},640,{"$f":"'3 INCOME & EXPENSE'!V538","v":100},26000,26100,0]
[null,null,{"$f":"IF('3 INCOME & EXPENSE'!E539=0,\"\",'3 INCOME & EXPENSE'!E539)","v":""},{"$f":"T('3 INCOME & EXPENSE'!G539)","v":""},{"$f":"'3 INCOME & EXPENSE'!M539","v":{"v":0,"d":"0.0"}},{"$f":"'3 INCOME & EXPENSE'!N539","v":{"v":0,"d":"$0.00"}},{"$f":"'3 INCOME & EXPENSE'!O539","v":{"v":0,"d":"$0.00"}},641,{"$f":"'3 INCOME & EXPENSE'!V539","v":100},26000,26100,0]
[null,null,{"$f":"IF('3 INCOME & EXPENSE'!E540=0,\"\",'3 INCOME & EXPENSE'!E540)","v":""},{"$f":"T('3 INCOME & EXPENSE'!G540)","v":""},{"$f":"'3 INCOME & EXPENSE'!M540","v":{"v":0,"d":"0.0"}},{"$f":"'3 INCOME & EXPENSE'!N540","v":{"v":0,"d":"$0.00"}},{"$f":"'3 INCOME & EXPENSE'!O540","v":{"v":0,"d":"$0.00"}},642,{"$f":"'3 INCOME & EXPENSE'!V540","v":100},26000,26100,0]
[null,null,{"$f":"IF('3 INCOME & EXPENSE'!E541=0,\"\",'3 INCOME & EXPENSE'!E541)","v":""},{"$f":"T('3 INCOME & EXPENSE'!G541)","v":""},{"$f":"'3 INCOME & EXPENSE'!M541","v":{"v":0,"d":"0.0"}},{"$f":"'3 INCOME & EXPENSE'!N541","v":{"v":0,"d":"$0.00"}},{"$f":"'3 INCOME & EXPENSE'!O541","v":{"v":0,"d":"$0.00"}},643,{"$f":"'3 INCOME & EXPENSE'!V541","v":100},26000,26100,0]
[null,null,{"$f":"IF('3 INCOME & EXPENSE'!E542=0,\"\",'3 INCOME & EXPENSE'!E542)","v":""},{"$f":"T('3 INCOME & EXPENSE'!G542)","v":""},{"$f":"'3 INCOME & EXPENSE'!M542","v":{"v":0,"d":"0.0"}},{"$f":"'3 INCOME & EXPENSE'!N542","v":{"v":0,"d":"$0.00"}},{"$f":"'3 INCOME & EXPENSE'!O542","v":{"v":0,"d":"$0.00"}},644,{"$f":"'3 INCOME & EXPENSE'!V542","v":100},26000,26100,0]
[null,null,{"$f":"IF('3 INCOME & EXPENSE'!E543=0,\"\",'3 INCOME & EXPENSE'!E543)","v":""},{"$f":"T('3 INCOME & EXPENSE'!G543)","v":""},{"$f":"'3 INCOME & EXPENSE'!M543","v":{"v":0,"d":"0.0"}},{"$f":"'3 INCOME & EXPENSE'!N543","v":{"v":0,"d":"$0.00"}},{"$f":"'3 INCOME & EXPENSE'!O543","v":{"v":0,"d":"$0.00"}},645,{"$f":"'3 INCOME & EXPENSE'!V543","v":100},26000,26100,0]
[null,null,{"$f":"IF('3 INCOME & EXPENSE'!E544=0,\"\",'3 INCOME & EXPENSE'!E544)","v":""},{"$f":"T('3 INCOME & EXPENSE'!G544)","v":""},{"$f":"'3 INCOME & EXPENSE'!M544","v":{"v":0,"d":"0.0"}},{"$f":"'3 INCOME & EXPENSE'!N544","v":{"v":0,"d":"$0.00"}},{"$f":"'3 INCOME & EXPENSE'!O544","v":{"v":0,"d":"$0.00"}},646,{"$f":"'3 INCOME & EXPENSE'!V544","v":100},26000,26100,0]
[null,null,{"$f":"IF('3 INCOME & EXPENSE'!E545=0,\"\",'3 INCOME & EXPENSE'!E545)","v":""},{"$f":"T('3 INCOME & EXPENSE'!G545)","v":""},{"$f":"'3 INCOME & EXPENSE'!M545","v":{"v":0,"d":"0.0"}},{"$f":"'3 INCOME & EXPENSE'!N545","v":{"v":0,"d":"$0.00"}},{"$f":"'3 INCOME & EXPENSE'!O545","v":{"v":0,"d":"$0.00"}},647,{"$f":"'3 INCOME & EXPENSE'!V545","v":100},26000,26100,0]
[null,null,{"$f":"IF('3 INCOME & EXPENSE'!E546=0,\"\",'3 INCOME & EXPENSE'!E546)","v":""},{"$f":"T('3 INCOME & EXPENSE'!G546)","v":""},{"$f":"'3 INCOME & EXPENSE'!M546","v":{"v":0,"d":"0.0"}},{"$f":"'3 INCOME & EXPENSE'!N546","v":{"v":0,"d":"$0.00"}},{"$f":"'3 INCOME & EXPENSE'!O546","v":{"v":0,"d":"$0.00"}},648,{"$f":"'3 INCOME & EXPENSE'!V546","v":100},26000,26100,0]
[null,null,{"$f":"IF('3 INCOME & EXPENSE'!E547=0,\"\",'3 INCOME & EXPENSE'!E547)","v":""},{"$f":"T('3 INCOME & EXPENSE'!G547)","v":""},{"$f":"'3 INCOME & EXPENSE'!M547","v":{"v":0,"d":"0.0"}},{"$f":"'3 INCOME & EXPENSE'!N547","v":{"v":0,"d":"$0.00"}},{"$f":"'3 INCOME & EXPENSE'!O547","v":{"v":0,"d":"$0.00"}},649,{"$f":"'3 INCOME & EXPENSE'!V547","v":100},26000,26100,0]
[null,null,{"$f":"IF('3 INCOME & EXPENSE'!E548=0,\"\",'3 INCOME & EXPENSE'!E548)","v":""},{"$f":"T('3 INCOME & EXPENSE'!G548)","v":""},{"$f":"'3 INCOME & EXPENSE'!M548","v":{"v":0,"d":"0.0"}},{"$f":"'3 INCOME & EXPENSE'!N548","v":{"v":0,"d":"$0.00"}},{"$f":"'3 INCOME & EXPENSE'!O548","v":{"v":0,"d":"$0.00"}},650,{"$f":"'3 INCOME & EXPENSE'!V548","v":100},26000,26100,0]
[null,null,{"$f":"IF('3 INCOME & EXPENSE'!E549=0,\"\",'3 INCOME & EXPENSE'!E549)","v":""},{"$f":"T('3 INCOME & EXPENSE'!G549)","v":""},{"$f":"'3 INCOME & EXPENSE'!M549","v":{"v":0,"d":"0.0"}},{"$f":"'3 INCOME & EXPENSE'!N549","v":{"v":0,"d":"$0.00"}},{"$f":"'3 INCOME & EXPENSE'!O549","v":{"v":0,"d":"$0.00"}},651,{"$f":"'3 INCOME & EXPENSE'!V549","v":100},26000,26100,0]
[null,null,{"$f":"IF('3 INCOME & EXPENSE'!E550=0,\"\",'3 INCOME & EXPENSE'!E550)","v":""},{"$f":"T('3 INCOME & EXPENSE'!G550)","v":""},{"$f":"'3 INCOME & EXPENSE'!M550","v":{"v":0,"d":"0.0"}},{"$f":"'3 INCOME & EXPENSE'!N550","v":{"v":0,"d":"$0.00"}},{"$f":"'3 INCOME & EXPENSE'!O550","v":{"v":0,"d":"$0.00"}},652,{"$f":"'3 INCOME & EXPENSE'!V550","v":100},26000,26100,0]
[null,null,{"$f":"IF('3 INCOME & EXPENSE'!E551=0,\"\",'3 INCOME & EXPENSE'!E551)","v":""},{"$f":"T('3 INCOME & EXPENSE'!G551)","v":""},{"$f":"'3 INCOME & EXPENSE'!M551","v":{"v":0,"d":"0.0"}},{"$f":"'3 INCOME & EXPENSE'!N551","v":{"v":0,"d":"$0.00"}},{"$f":"'3 INCOME & EXPENSE'!O551","v":{"v":0,"d":"$0.00"}},653,{"$f":"'3 INCOME & EXPENSE'!V551","v":100},26000,26100,0]
[null,null,{"$f":"IF('3 INCOME & EXPENSE'!E552=0,\"\",'3 INCOME & EXPENSE'!E552)","v":""},{"$f":"T('3 INCOME & EXPENSE'!G552)","v":""},{"$f":"'3 INCOME & EXPENSE'!M552","v":{"v":0,"d":"0.0"}},{"$f":"'3 INCOME & EXPENSE'!N552","v":{"v":0,"d":"$0.00"}},{"$f":"'3 INCOME & EXPENSE'!O552","v":{"v":0,"d":"$0.00"}},654,{"$f":"'3 INCOME & EXPENSE'!V552","v":100},26000,26100,0]
[null,null,{"$f":"IF('3 INCOME & EXPENSE'!E553=0,\"\",'3 INCOME & EXPENSE'!E553)","v":""},{"$f":"T('3 INCOME & EXPENSE'!G553)","v":""},{"$f":"'3 INCOME & EXPENSE'!M553","v":{"v":0,"d":"0.0"}},{"$f":"'3 INCOME & EXPENSE'!N553","v":{"v":0,"d":"$0.00"}},{"$f":"'3 INCOME & EXPENSE'!O553","v":{"v":0,"d":"$0.00"}},655,{"$f":"'3 INCOME & EXPENSE'!V553","v":100},26000,26100,0]
[null,null,{"$f":"IF('3 INCOME & EXPENSE'!E554=0,\"\",'3 INCOME & EXPENSE'!E554)","v":""},{"$f":"T('3 INCOME & EXPENSE'!G554)","v":""},{"$f":"'3 INCOME & EXPENSE'!M554","v":{"v":0,"d":"0.0"}},{"$f":"'3 INCOME & EXPENSE'!N554","v":{"v":0,"d":"$0.00"}},{"$f":"'3 INCOME & EXPENSE'!O554","v":{"v":0,"d":"$0.00"}},656,{"$f":"'3 INCOME & EXPENSE'!V554","v":100},26000,26100,0]
[null,null,{"$f":"IF('3 INCOME & EXPENSE'!E555=0,\"\",'3 INCOME & EXPENSE'!E555)","v":""},{"$f":"T('3 INCOME & EXPENSE'!G555)","v":""},{"$f":"'3 INCOME & EXPENSE'!M555","v":{"v":0,"d":"0.0"}},{"$f":"'3 INCOME & EXPENSE'!N555","v":{"v":0,"d":"$0.00"}},{"$f":"'3 INCOME & EXPENSE'!O555","v":{"v":0,"d":"$0.00"}},657,{"$f":"'3 INCOME & EXPENSE'!V555","v":100},26000,26100,0]
[null,null,{"$f":"IF('3 INCOME & EXPENSE'!E556=0,\"\",'3 INCOME & EXPENSE'!E556)","v":""},{"$f":"T('3 INCOME & EXPENSE'!G556)","v":""},{"$f":"'3 INCOME & EXPENSE'!M556","v":{"v":0,"d":"0.0"}},{"$f":"'3 INCOME & EXPENSE'!N556","v":{"v":0,"d":"$0.00"}},{"$f":"'3 INCOME & EXPENSE'!O556","v":{"v":0,"d":"$0.00"}},658,{"$f":"'3 INCOME & EXPENSE'!V556","v":100},26000,26100,0]
[null,null,{"$f":"IF('3 INCOME & EXPENSE'!E557=0,\"\",'3 INCOME & EXPENSE'!E557)","v":""},{"$f":"T('3 INCOME & EXPENSE'!G557)","v":""},{"$f":"'3 INCOME & EXPENSE'!M557","v":{"v":0,"d":"0.0"}},{"$f":"'3 INCOME & EXPENSE'!N557","v":{"v":0,"d":"$0.00"}},{"$f":"'3 INCOME & EXPENSE'!O557","v":{"v":0,"d":"$0.00"}},659,{"$f":"'3 INCOME & EXPENSE'!V557","v":100},26000,26100,0]
[null,null,{"$f":"IF('3 INCOME & EXPENSE'!E558=0,\"\",'3 INCOME & EXPENSE'!E558)","v":""},{"$f":"T('3 INCOME & EXPENSE'!G558)","v":""},{"$f":"'3 INCOME & EXPENSE'!M558","v":{"v":0,"d":"0.0"}},{"$f":"'3 INCOME & EXPENSE'!N558","v":{"v":0,"d":"$0.00"}},{"$f":"'3 INCOME & EXPENSE'!O558","v":{"v":0,"d":"$0.00"}},660,{"$f":"'3 INCOME & EXPENSE'!V558","v":100},26000,26100,0]
[null,null,{"$f":"IF('3 INCOME & EXPENSE'!E559=0,\"\",'3 INCOME & EXPENSE'!E559)","v":""},{"$f":"T('3 INCOME & EXPENSE'!G559)","v":""},{"$f":"'3 INCOME & EXPENSE'!M559","v":{"v":0,"d":"0.0"}},{"$f":"'3 INCOME & EXPENSE'!N559","v":{"v":0,"d":"$0.00"}},{"$f":"'3 INCOME & EXPENSE'!O559","v":{"v":0,"d":"$0.00"}},661,{"$f":"'3 INCOME & EXPENSE'!V559","v":100},26000,26100,0]
[null,null,{"$f":"IF('3 INCOME & EXPENSE'!E560=0,\"\",'3 INCOME & EXPENSE'!E560)","v":""},{"$f":"T('3 INCOME & EXPENSE'!G560)","v":""},{"$f":"'3 INCOME & EXPENSE'!M560","v":{"v":0,"d":"0.0"}},{"$f":"'3 INCOME & EXPENSE'!N560","v":{"v":0,"d":"$0.00"}},{"$f":"'3 INCOME & EXPENSE'!O560","v":{"v":0,"d":"$0.00"}},662,{"$f":"'3 INCOME & EXPENSE'!V560","v":100},26000,26100,0]
[null,null,{"$f":"IF('3 INCOME & EXPENSE'!E561=0,\"\",'3 INCOME & EXPENSE'!E561)","v":""},{"$f":"T('3 INCOME & EXPENSE'!G561)","v":""},{"$f":"'3 INCOME & EXPENSE'!M561","v":{"v":0,"d":"0.0"}},{"$f":"'3 INCOME & EXPENSE'!N561","v":{"v":0,"d":"$0.00"}},{"$f":"'3 INCOME & EXPENSE'!O561","v":{"v":0,"d":"$0.00"}},663,{"$f":"'3 INCOME & EXPENSE'!V561","v":100},26000,26100,0]
[null,null,{"$f":"IF('3 INCOME & EXPENSE'!E562=0,\"\",'3 INCOME & EXPENSE'!E562)","v":""},{"$f":"T('3 INCOME & EXPENSE'!G562)","v":""},{"$f":"'3 INCOME & EXPENSE'!M562","v":{"v":0,"d":"0.0"}},{"$f":"'3 INCOME & EXPENSE'!N562","v":{"v":0,"d":"$0.00"}},{"$f":"'3 INCOME & EXPENSE'!O562","v":{"v":0,"d":"$0.00"}},664,{"$f":"'3 INCOME & EXPENSE'!V562","v":100},26000,26100,0]
[null,null,{"$f":"IF('3 INCOME & EXPENSE'!E563=0,\"\",'3 INCOME & EXPENSE'!E563)","v":""},{"$f":"T('3 INCOME & EXPENSE'!G563)","v":""},{"$f":"'3 INCOME & EXPENSE'!M563","v":{"v":0,"d":"0.0"}},{"$f":"'3 INCOME & EXPENSE'!N563","v":{"v":0,"d":"$0.00"}},{"$f":"'3 INCOME & EXPENSE'!O563","v":{"v":0,"d":"$0.00"}},665,{"$f":"'3 INCOME & EXPENSE'!V563","v":100},26000,26100,0]
[null,null,{"$f":"IF('3 INCOME & EXPENSE'!E564=0,\"\",'3 INCOME & EXPENSE'!E564)","v":""},{"$f":"T('3 INCOME & EXPENSE'!G564)","v":""},{"$f":"'3 INCOME & EXPENSE'!M564","v":{"v":0,"d":"0.0"}},{"$f":"'3 INCOME & EXPENSE'!N564","v":{"v":0,"d":"$0.00"}},{"$f":"'3 INCOME & EXPENSE'!O564","v":{"v":0,"d":"$0.00"}},666,{"$f":"'3 INCOME & EXPENSE'!V564","v":100},26000,26100,0]
[null,null,{"$f":"IF('3 INCOME & EXPENSE'!E565=0,\"\",'3 INCOME & EXPENSE'!E565)","v":""},{"$f":"T('3 INCOME & EXPENSE'!G565)","v":""},{"$f":"'3 INCOME & EXPENSE'!M565","v":{"v":0,"d":"0.0"}},{"$f":"'3 INCOME & EXPENSE'!N565","v":{"v":0,"d":"$0.00"}},{"$f":"'3 INCOME & EXPENSE'!O565","v":{"v":0,"d":"$0.00"}},667,{"$f":"'3 INCOME & EXPENSE'!V565","v":100},26000,26100,0]
[null,null,{"$f":"IF('3 INCOME & EXPENSE'!E566=0,\"\",'3 INCOME & EXPENSE'!E566)","v":""},{"$f":"T('3 INCOME & EXPENSE'!G566)","v":""},{"$f":"'3 INCOME & EXPENSE'!M566","v":{"v":0,"d":"0.0"}},{"$f":"'3 INCOME & EXPENSE'!N566","v":{"v":0,"d":"$0.00"}},{"$f":"'3 INCOME & EXPENSE'!O566","v":{"v":0,"d":"$0.00"}},668,{"$f":"'3 INCOME & EXPENSE'!V566","v":100},26000,26100,0]
[null,null,{"$f":"IF('3 INCOME & EXPENSE'!E567=0,\"\",'3 INCOME & EXPENSE'!E567)","v":""},{"$f":"T('3 INCOME & EXPENSE'!G567)","v":""},{"$f":"'3 INCOME & EXPENSE'!M567","v":{"v":0,"d":"0.0"}},{"$f":"'3 INCOME & EXPENSE'!N567","v":{"v":0,"d":"$0.00"}},{"$f":"'3 INCOME & EXPENSE'!O567","v":{"v":0,"d":"$0.00"}},669,{"$f":"'3 INCOME & EXPENSE'!V567","v":100},26000,26100,0]
[null,null,{"$f":"IF('3 INCOME & EXPENSE'!E568=0,\"\",'3 INCOME & EXPENSE'!E568)","v":""},{"$f":"T('3 INCOME & EXPENSE'!G568)","v":""},{"$f":"'3 INCOME & EXPENSE'!M568","v":{"v":0,"d":"0.0"}},{"$f":"'3 INCOME & EXPENSE'!N568","v":{"v":0,"d":"$0.00"}},{"$f":"'3 INCOME & EXPENSE'!O568","v":{"v":0,"d":"$0.00"}},670,{"$f":"'3 INCOME & EXPENSE'!V568","v":100},26000,26100,0]
[null,null,{"$f":"IF('3 INCOME & EXPENSE'!E569=0,\"\",'3 INCOME & EXPENSE'!E569)","v":""},{"$f":"T('3 INCOME & EXPENSE'!G569)","v":""},{"$f":"'3 INCOME & EXPENSE'!M569","v":{"v":0,"d":"0.0"}},{"$f":"'3 INCOME & EXPENSE'!N569","v":{"v":0,"d":"$0.00"}},{"$f":"'3 INCOME & EXPENSE'!O569","v":{"v":0,"d":"$0.00"}},671,{"$f":"'3 INCOME & EXPENSE'!V569","v":100},26000,26100,0]
[null,null,{"$f":"IF('3 INCOME & EXPENSE'!E570=0,\"\",'3 INCOME & EXPENSE'!E570)","v":""},{"$f":"T('3 INCOME & EXPENSE'!G570)","v":""},{"$f":"'3 INCOME & EXPENSE'!M570","v":{"v":0,"d":"0.0"}},{"$f":"'3 INCOME & EXPENSE'!N570","v":{"v":0,"d":"$0.00"}},{"$f":"'3 INCOME & EXPENSE'!O570","v":{"v":0,"d":"$0.00"}},672,{"$f":"'3 INCOME & EXPENSE'!V570","v":100},26000,26100,0]
[null,null,{"$f":"IF('3 INCOME & EXPENSE'!E571=0,\"\",'3 INCOME & EXPENSE'!E571)","v":""},{"$f":"T('3 INCOME & EXPENSE'!G571)","v":""},{"$f":"'3 INCOME & EXPENSE'!M571","v":{"v":0,"d":"0.0"}},{"$f":"'3 INCOME & EXPENSE'!N571","v":{"v":0,"d":"$0.00"}},{"$f":"'3 INCOME & EXPENSE'!O571","v":{"v":0,"d":"$0.00"}},673,{"$f":"'3 INCOME & EXPENSE'!V571","v":100},26000,26100,0]
[null,null,{"$f":"IF('3 INCOME & EXPENSE'!E572=0,\"\",'3 INCOME & EXPENSE'!E572)","v":""},{"$f":"T('3 INCOME & EXPENSE'!G572)","v":""},{"$f":"'3 INCOME & EXPENSE'!M572","v":{"v":0,"d":"0.0"}},{"$f":"'3 INCOME & EXPENSE'!N572","v":{"v":0,"d":"$0.00"}},{"$f":"'3 INCOME & EXPENSE'!O572","v":{"v":0,"d":"$0.00"}},674,{"$f":"'3 INCOME & EXPENSE'!V572","v":100},26000,26100,0]
[null,null,{"$f":"IF('3 INCOME & EXPENSE'!E573=0,\"\",'3 INCOME & EXPENSE'!E573)","v":""},{"$f":"T('3 INCOME & EXPENSE'!G573)","v":""},{"$f":"'3 INCOME & EXPENSE'!M573","v":{"v":0,"d":"0.0"}},{"$f":"'3 INCOME & EXPENSE'!N573","v":{"v":0,"d":"$0.00"}},{"$f":"'3 INCOME & EXPENSE'!O573","v":{"v":0,"d":"$0.00"}},675,{"$f":"'3 INCOME & EXPENSE'!V573","v":100},26000,26100,0]
[null,null,{"$f":"IF('3 INCOME & EXPENSE'!E574=0,\"\",'3 INCOME & EXPENSE'!E574)","v":""},{"$f":"T('3 INCOME & EXPENSE'!G574)","v":""},{"$f":"'3 INCOME & EXPENSE'!M574","v":{"v":0,"d":"0.0"}},{"$f":"'3 INCOME & EXPENSE'!N574","v":{"v":0,"d":"$0.00"}},{"$f":"'3 INCOME & EXPENSE'!O574","v":{"v":0,"d":"$0.00"}},676,{"$f":"'3 INCOME & EXPENSE'!V574","v":100},26000,26100,0]
[null,null,{"$f":"IF('3 INCOME & EXPENSE'!E575=0,\"\",'3 INCOME & EXPENSE'!E575)","v":""},{"$f":"T('3 INCOME & EXPENSE'!G575)","v":""},{"$f":"'3 INCOME & EXPENSE'!M575","v":{"v":0,"d":"0.0"}},{"$f":"'3 INCOME & EXPENSE'!N575","v":{"v":0,"d":"$0.00"}},{"$f":"'3 INCOME & EXPENSE'!O575","v":{"v":0,"d":"$0.00"}},677,{"$f":"'3 INCOME & EXPENSE'!V575","v":100},26000,26100,0]
[null,null,{"$f":"IF('3 INCOME & EXPENSE'!E576=0,\"\",'3 INCOME & EXPENSE'!E576)","v":""},{"$f":"T('3 INCOME & EXPENSE'!G576)","v":""},{"$f":"'3 INCOME & EXPENSE'!M576","v":{"v":0,"d":"0.0"}},{"$f":"'3 INCOME & EXPENSE'!N576","v":{"v":0,"d":"$0.00"}},{"$f":"'3 INCOME & EXPENSE'!O576","v":{"v":0,"d":"$0.00"}},678,{"$f":"'3 INCOME & EXPENSE'!V576","v":100},26000,26100,0]
[null,null,{"$f":"IF('3 INCOME & EXPENSE'!E577=0,\"\",'3 INCOME & EXPENSE'!E577)","v":""},{"$f":"T('3 INCOME & EXPENSE'!G577)","v":""},{"$f":"'3 INCOME & EXPENSE'!M577","v":{"v":0,"d":"0.0"}},{"$f":"'3 INCOME & EXPENSE'!N577","v":{"v":0,"d":"$0.00"}},{"$f":"'3 INCOME & EXPENSE'!O577","v":{"v":0,"d":"$0.00"}},679,{"$f":"'3 INCOME & EXPENSE'!V577","v":100},26000,26100,0]
[null,null,{"$f":"IF('3 INCOME & EXPENSE'!E578=0,\"\",'3 INCOME & EXPENSE'!E578)","v":""},{"$f":"T('3 INCOME & EXPENSE'!G578)","v":""},{"$f":"'3 INCOME & EXPENSE'!M578","v":{"v":0,"d":"0.0"}},{"$f":"'3 INCOME & EXPENSE'!N578","v":{"v":0,"d":"$0.00"}},{"$f":"'3 INCOME & EXPENSE'!O578","v":{"v":0,"d":"$0.00"}},680,{"$f":"'3 INCOME & EXPENSE'!V578","v":100},26000,{"$f":"I691+J691","v":26100},0]
[null,null,{"$f":"IF('3 INCOME & EXPENSE'!E579=0,\"\",'3 INCOME & EXPENSE'!E579)","v":""},{"$f":"T('3 INCOME & EXPENSE'!G579)","v":""},{"$f":"'3 INCOME & EXPENSE'!M579","v":{"v":0,"d":"0.0"}},{"$f":"'3 INCOME & EXPENSE'!N579","v":{"v":0,"d":"$0.00"}},{"$f":"'3 INCOME & EXPENSE'!O579","v":{"v":0,"d":"$0.00"}},681,{"$f":"'3 INCOME & EXPENSE'!V579","v":100},26000,26100,0]
[null,null,{"$f":"IF('3 INCOME & EXPENSE'!E580=0,\"\",'3 INCOME & EXPENSE'!E580)","v":""},{"$f":"T('3 INCOME & EXPENSE'!G580)","v":""},{"$f":"'3 INCOME & EXPENSE'!M580","v":{"v":0,"d":"0.0"}},{"$f":"'3 INCOME & EXPENSE'!N580","v":{"v":0,"d":"$0.00"}},{"$f":"'3 INCOME & EXPENSE'!O580","v":{"v":0,"d":"$0.00"}},682,{"$f":"'3 INCOME & EXPENSE'!V580","v":100},26000,26100,0]
[null,null,{"$f":"IF('3 INCOME & EXPENSE'!E581=0,\"\",'3 INCOME & EXPENSE'!E581)","v":""},{"$f":"T('3 INCOME & EXPENSE'!G581)","v":""},{"$f":"'3 INCOME & EXPENSE'!M581","v":{"v":0,"d":"0.0"}},{"$f":"'3 INCOME & EXPENSE'!N581","v":{"v":0,"d":"$0.00"}},{"$f":"'3 INCOME & EXPENSE'!O581","v":{"v":0,"d":"$0.00"}},683,{"$f":"'3 INCOME & EXPENSE'!V581","v":100},26000,26100,0]
[null,null,{"$f":"IF('3 INCOME & EXPENSE'!E582=0,\"\",'3 INCOME & EXPENSE'!E582)","v":""},{"$f":"T('3 INCOME & EXPENSE'!G582)","v":""},{"$f":"'3 INCOME & EXPENSE'!M582","v":{"v":0,"d":"0.0"}},{"$f":"'3 INCOME & EXPENSE'!N582","v":{"v":0,"d":"$0.00"}},{"$f":"'3 INCOME & EXPENSE'!O582","v":{"v":0,"d":"$0.00"}},684,{"$f":"'3 INCOME & EXPENSE'!V582","v":100},26000,26100,0]
[null,null,{"$f":"IF('3 INCOME & EXPENSE'!E583=0,\"\",'3 INCOME & EXPENSE'!E583)","v":""},{"$f":"T('3 INCOME & EXPENSE'!G583)","v":""},{"$f":"'3 INCOME & EXPENSE'!M583","v":{"v":0,"d":"0.0"}},{"$f":"'3 INCOME & EXPENSE'!N583","v":{"v":0,"d":"$0.00"}},{"$f":"'3 INCOME & EXPENSE'!O583","v":{"v":0,"d":"$0.00"}},685,{"$f":"'3 INCOME & EXPENSE'!V583","v":100},26000,26100,0]
[null,null,{"$f":"IF('3 INCOME & EXPENSE'!E584=0,\"\",'3 INCOME & EXPENSE'!E584)","v":""},{"$f":"T('3 INCOME & EXPENSE'!G584)","v":""},{"$f":"'3 INCOME & EXPENSE'!M584","v":{"v":0,"d":"0.0"}},{"$f":"'3 INCOME & EXPENSE'!N584","v":{"v":0,"d":"$0.00"}},{"$f":"'3 INCOME & EXPENSE'!O584","v":{"v":0,"d":"$0.00"}},686,{"$f":"'3 INCOME & EXPENSE'!V584","v":100},26000,26100,0]
[null,null,{"$f":"IF('3 INCOME & EXPENSE'!E585=0,\"\",'3 INCOME & EXPENSE'!E585)","v":""},{"$f":"T('3 INCOME & EXPENSE'!G585)","v":""},{"$f":"'3 INCOME & EXPENSE'!M585","v":{"v":0,"d":"0.0"}},{"$f":"'3 INCOME & EXPENSE'!N585","v":{"v":0,"d":"$0.00"}},{"$f":"'3 INCOME & EXPENSE'!O585","v":{"v":0,"d":"$0.00"}},687,{"$f":"'3 INCOME & EXPENSE'!V585","v":100},26000,26100,0]
[null,null,{"$f":"IF('3 INCOME & EXPENSE'!E586=0,\"\",'3 INCOME & EXPENSE'!E586)","v":""},{"$f":"T('3 INCOME & EXPENSE'!G586)","v":""},{"$f":"'3 INCOME & EXPENSE'!M586","v":{"v":0,"d":"0.0"}},{"$f":"'3 INCOME & EXPENSE'!N586","v":{"v":0,"d":"$0.00"}},{"$f":"'3 INCOME & EXPENSE'!O586","v":{"v":0,"d":"$0.00"}},688,{"$f":"'3 INCOME & EXPENSE'!V586","v":100},26000,26100,0]
[null,null,{"$f":"IF('3 INCOME & EXPENSE'!E587=0,\"\",'3 INCOME & EXPENSE'!E587)","v":""},{"$f":"T('3 INCOME & EXPENSE'!G587)","v":""},{"$f":"'3 INCOME & EXPENSE'!M587","v":{"v":0,"d":"0.0"}},{"$f":"'3 INCOME & EXPENSE'!N587","v":{"v":0,"d":"$0.00"}},{"$f":"'3 INCOME & EXPENSE'!O587","v":{"v":0,"d":"$0.00"}},689,{"$f":"'3 INCOME & EXPENSE'!V587","v":100},26000,26100,0]
[null,null,{"$f":"IF('3 INCOME & EXPENSE'!E588=0,\"\",'3 INCOME & EXPENSE'!E588)","v":""},{"$f":"T('3 INCOME & EXPENSE'!G588)","v":""},{"$f":"'3 INCOME & EXPENSE'!M588","v":{"v":0,"d":"0.0"}},{"$f":"'3 INCOME & EXPENSE'!N588","v":{"v":0,"d":"$0.00"}},{"$f":"'3 INCOME & EXPENSE'!O588","v":{"v":0,"d":"$0.00"}},690,{"$f":"'3 INCOME & EXPENSE'!V588","v":100},26000,26100,0]
[null,null,{"$f":"IF('3 INCOME & EXPENSE'!E589=0,\"\",'3 INCOME & EXPENSE'!E589)","v":""},{"$f":"T('3 INCOME & EXPENSE'!G589)","v":""},{"$f":"'3 INCOME & EXPENSE'!M589","v":{"v":0,"d":"0.0"}},{"$f":"'3 INCOME & EXPENSE'!N589","v":{"v":0,"d":"$0.00"}},{"$f":"'3 INCOME & EXPENSE'!O589","v":{"v":0,"d":"$0.00"}},691,{"$f":"'3 INCOME & EXPENSE'!V589","v":100},26000,26100,0]
[null,null,{"$f":"IF('3 INCOME & EXPENSE'!E590=0,\"\",'3 INCOME & EXPENSE'!E590)","v":""},{"$f":"T('3 INCOME & EXPENSE'!G590)","v":""},{"$f":"'3 INCOME & EXPENSE'!M590","v":{"v":0,"d":"0.0"}},{"$f":"'3 INCOME & EXPENSE'!N590","v":{"v":0,"d":"$0.00"}},{"$f":"'3 INCOME & EXPENSE'!O590","v":{"v":0,"d":"$0.00"}},692,{"$f":"'3 INCOME & EXPENSE'!V590","v":100},{"$f":"VLOOKUP(I703,$I$880:$J$905,2)","v":26000},26100,{"$f":"K703*E703","v":0}]
[null,null,{"$f":"IF('3 INCOME & EXPENSE'!E591=0,\"\",'3 INCOME & EXPENSE'!E591)","v":""},{"$f":"T('3 INCOME & EXPENSE'!G591)","v":""},{"$f":"'3 INCOME & EXPENSE'!M591","v":{"v":0,"d":"0.0"}},{"$f":"'3 INCOME & EXPENSE'!N591","v":{"v":0,"d":"$0.00"}},{"$f":"'3 INCOME & EXPENSE'!O591","v":{"v":0,"d":"$0.00"}},693,{"$f":"'3 INCOME & EXPENSE'!V591","v":100},26000,26100,0]
[null,null,{"$f":"IF('3 INCOME & EXPENSE'!E592=0,\"\",'3 INCOME & EXPENSE'!E592)","v":""},{"$f":"T('3 INCOME & EXPENSE'!G592)","v":""},{"$f":"'3 INCOME & EXPENSE'!M592","v":{"v":0,"d":"0.0"}},{"$f":"'3 INCOME & EXPENSE'!N592","v":{"v":0,"d":"$0.00"}},{"$f":"'3 INCOME & EXPENSE'!O592","v":{"v":0,"d":"$0.00"}},694,{"$f":"'3 INCOME & EXPENSE'!V592","v":100},26000,26100,0]
[null,null,{"$f":"IF('3 INCOME & EXPENSE'!E593=0,\"\",'3 INCOME & EXPENSE'!E593)","v":""},{"$f":"T('3 INCOME & EXPENSE'!G593)","v":""},{"$f":"'3 INCOME & EXPENSE'!M593","v":{"v":0,"d":"0.0"}},{"$f":"'3 INCOME & EXPENSE'!N593","v":{"v":0,"d":"$0.00"}},{"$f":"'3 INCOME & EXPENSE'!O593","v":{"v":0,"d":"$0.00"}},695,{"$f":"'3 INCOME & EXPENSE'!V593","v":100},26000,26100,0]
[null,null,{"$f":"IF('3 INCOME & EXPENSE'!E594=0,\"\",'3 INCOME & EXPENSE'!E594)","v":""},{"$f":"T('3 INCOME & EXPENSE'!G594)","v":""},{"$f":"'3 INCOME & EXPENSE'!M594","v":{"v":0,"d":"0.0"}},{"$f":"'3 INCOME & EXPENSE'!N594","v":{"v":0,"d":"$0.00"}},{"$f":"'3 INCOME & EXPENSE'!O594","v":{"v":0,"d":"$0.00"}},696,{"$f":"'3 INCOME & EXPENSE'!V594","v":100},26000,26100,0]
[null,null,{"$f":"IF('3 INCOME & EXPENSE'!E595=0,\"\",'3 INCOME & EXPENSE'!E595)","v":""},{"$f":"T('3 INCOME & EXPENSE'!G595)","v":""},{"$f":"'3 INCOME & EXPENSE'!M595","v":{"v":0,"d":"0.0"}},{"$f":"'3 INCOME & EXPENSE'!N595","v":{"v":0,"d":"$0.00"}},{"$f":"'3 INCOME & EXPENSE'!O595","v":{"v":0,"d":"$0.00"}},697,{"$f":"'3 INCOME & EXPENSE'!V595","v":100},26000,26100,0]
[null,null,{"$f":"IF('3 INCOME & EXPENSE'!E596=0,\"\",'3 INCOME & EXPENSE'!E596)","v":""},{"$f":"T('3 INCOME & EXPENSE'!G596)","v":""},{"$f":"'3 INCOME & EXPENSE'!M596","v":{"v":0,"d":"0.0"}},{"$f":"'3 INCOME & EXPENSE'!N596","v":{"v":0,"d":"$0.00"}},{"$f":"'3 INCOME & EXPENSE'!O596","v":{"v":0,"d":"$0.00"}},698,{"$f":"'3 INCOME & EXPENSE'!V596","v":100},26000,26100,0]
[null,null,{"$f":"IF('3 INCOME & EXPENSE'!E597=0,\"\",'3 INCOME & EXPENSE'!E597)","v":""},{"$f":"T('3 INCOME & EXPENSE'!G597)","v":""},{"$f":"'3 INCOME & EXPENSE'!M597","v":{"v":0,"d":"0.0"}},{"$f":"'3 INCOME & EXPENSE'!N597","v":{"v":0,"d":"$0.00"}},{"$f":"'3 INCOME & EXPENSE'!O597","v":{"v":0,"d":"$0.00"}},699,{"$f":"'3 INCOME & EXPENSE'!V597","v":100},26000,26100,0]
[null,null,{"$f":"IF('3 INCOME & EXPENSE'!E598=0,\"\",'3 INCOME & EXPENSE'!E598)","v":""},{"$f":"T('3 INCOME & EXPENSE'!G598)","v":""},{"$f":"'3 INCOME & EXPENSE'!M598","v":{"v":0,"d":"0.0"}},{"$f":"'3 INCOME & EXPENSE'!N598","v":{"v":0,"d":"$0.00"}},{"$f":"'3 INCOME & EXPENSE'!O598","v":{"v":0,"d":"$0.00"}},700,{"$f":"'3 INCOME & EXPENSE'!V598","v":100},26000,26100,0]
[null,null,{"$f":"IF('3 INCOME & EXPENSE'!E599=0,\"\",'3 INCOME & EXPENSE'!E599)","v":""},{"$f":"T('3 INCOME & EXPENSE'!G599)","v":""},{"$f":"'3 INCOME & EXPENSE'!M599","v":{"v":0,"d":"0.0"}},{"$f":"'3 INCOME & EXPENSE'!N599","v":{"v":0,"d":"$0.00"}},{"$f":"'3 INCOME & EXPENSE'!O599","v":{"v":0,"d":"$0.00"}},701,{"$f":"'3 INCOME & EXPENSE'!V599","v":100},26000,26100,0]
[null,null,{"$f":"IF('3 INCOME & EXPENSE'!E600=0,\"\",'3 INCOME & EXPENSE'!E600)","v":""},{"$f":"T('3 INCOME & EXPENSE'!G600)","v":""},{"$f":"'3 INCOME & EXPENSE'!M600","v":{"v":0,"d":"0.0"}},{"$f":"'3 INCOME & EXPENSE'!N600","v":{"v":0,"d":"$0.00"}},{"$f":"'3 INCOME & EXPENSE'!O600","v":{"v":0,"d":"$0.00"}},702,{"$f":"'3 INCOME & EXPENSE'!V600","v":100},26000,26100,0]
[null,null,{"$f":"IF('3 INCOME & EXPENSE'!E601=0,\"\",'3 INCOME & EXPENSE'!E601)","v":""},{"$f":"T('3 INCOME & EXPENSE'!G601)","v":""},{"$f":"'3 INCOME & EXPENSE'!M601","v":{"v":0,"d":"0.0"}},{"$f":"'3 INCOME & EXPENSE'!N601","v":{"v":0,"d":"$0.00"}},{"$f":"'3 INCOME & EXPENSE'!O601","v":{"v":0,"d":"$0.00"}},703,{"$f":"'3 INCOME & EXPENSE'!V601","v":100},26000,26100,0]
[null,null,{"$f":"IF('3 INCOME & EXPENSE'!E602=0,\"\",'3 INCOME & EXPENSE'!E602)","v":""},{"$f":"T('3 INCOME & EXPENSE'!G602)","v":""},{"$f":"'3 INCOME & EXPENSE'!M602","v":{"v":0,"d":"0.0"}},{"$f":"'3 INCOME & EXPENSE'!N602","v":{"v":0,"d":"$0.00"}},{"$f":"'3 INCOME & EXPENSE'!O602","v":{"v":0,"d":"$0.00"}},704,{"$f":"'3 INCOME & EXPENSE'!V602","v":100},26000,26100,0]
[null,null,{"$f":"IF('3 INCOME & EXPENSE'!E603=0,\"\",'3 INCOME & EXPENSE'!E603)","v":""},{"$f":"T('3 INCOME & EXPENSE'!G603)","v":""},{"$f":"'3 INCOME & EXPENSE'!M603","v":{"v":0,"d":"0.0"}},{"$f":"'3 INCOME & EXPENSE'!N603","v":{"v":0,"d":"$0.00"}},{"$f":"'3 INCOME & EXPENSE'!O603","v":{"v":0,"d":"$0.00"}},705,{"$f":"'3 INCOME & EXPENSE'!V603","v":100},26000,26100,0]
[null,null,{"$f":"IF('3 INCOME & EXPENSE'!E604=0,\"\",'3 INCOME & EXPENSE'!E604)","v":""},{"$f":"T('3 INCOME & EXPENSE'!G604)","v":""},{"$f":"'3 INCOME & EXPENSE'!M604","v":{"v":0,"d":"0.0"}},{"$f":"'3 INCOME & EXPENSE'!N604","v":{"v":0,"d":"$0.00"}},{"$f":"'3 INCOME & EXPENSE'!O604","v":{"v":0,"d":"$0.00"}},706,{"$f":"'3 INCOME & EXPENSE'!V604","v":100},26000,26100,0]
[null,null,{"$f":"IF('3 INCOME & EXPENSE'!E605=0,\"\",'3 INCOME & EXPENSE'!E605)","v":""},{"$f":"T('3 INCOME & EXPENSE'!G605)","v":""},{"$f":"'3 INCOME & EXPENSE'!M605","v":{"v":0,"d":"0.0"}},{"$f":"'3 INCOME & EXPENSE'!N605","v":{"v":0,"d":"$0.00"}},{"$f":"'3 INCOME & EXPENSE'!O605","v":{"v":0,"d":"$0.00"}},707,{"$f":"'3 INCOME & EXPENSE'!V605","v":100},26000,26100,0]
[null,null,{"$f":"IF('3 INCOME & EXPENSE'!E606=0,\"\",'3 INCOME & EXPENSE'!E606)","v":""},{"$f":"T('3 INCOME & EXPENSE'!G606)","v":""},{"$f":"'3 INCOME & EXPENSE'!M606","v":{"v":0,"d":"0.0"}},{"$f":"'3 INCOME & EXPENSE'!N606","v":{"v":0,"d":"$0.00"}},{"$f":"'3 INCOME & EXPENSE'!O606","v":{"v":0,"d":"$0.00"}},708,{"$f":"'3 INCOME & EXPENSE'!V606","v":100},26000,26100,0]
[null,null,{"$f":"IF('3 INCOME & EXPENSE'!E607=0,\"\",'3 INCOME & EXPENSE'!E607)","v":""},{"$f":"T('3 INCOME & EXPENSE'!G607)","v":""},{"$f":"'3 INCOME & EXPENSE'!M607","v":{"v":0,"d":"0.0"}},{"$f":"'3 INCOME & EXPENSE'!N607","v":{"v":0,"d":"$0.00"}},{"$f":"'3 INCOME & EXPENSE'!O607","v":{"v":0,"d":"$0.00"}},709,{"$f":"'3 INCOME & EXPENSE'!V607","v":100},26000,26100,0]
[null,null,{"$f":"IF('3 INCOME & EXPENSE'!E608=0,\"\",'3 INCOME & EXPENSE'!E608)","v":""},{"$f":"T('3 INCOME & EXPENSE'!G608)","v":""},{"$f":"'3 INCOME & EXPENSE'!M608","v":{"v":0,"d":"0.0"}},{"$f":"'3 INCOME & EXPENSE'!N608","v":{"v":0,"d":"$0.00"}},{"$f":"'3 INCOME & EXPENSE'!O608","v":{"v":0,"d":"$0.00"}},710,{"$f":"'3 INCOME & EXPENSE'!V608","v":100},26000,26100,0]
[null,null,{"$f":"IF('3 INCOME & EXPENSE'!E609=0,\"\",'3 INCOME & EXPENSE'!E609)","v":""},{"$f":"T('3 INCOME & EXPENSE'!G609)","v":""},{"$f":"'3 INCOME & EXPENSE'!M609","v":{"v":0,"d":"0.0"}},{"$f":"'3 INCOME & EXPENSE'!N609","v":{"v":0,"d":"$0.00"}},{"$f":"'3 INCOME & EXPENSE'!O609","v":{"v":0,"d":"$0.00"}},711,{"$f":"'3 INCOME & EXPENSE'!V609","v":100},26000,26100,0]
[null,null,{"$f":"IF('3 INCOME & EXPENSE'!E610=0,\"\",'3 INCOME & EXPENSE'!E610)","v":""},{"$f":"T('3 INCOME & EXPENSE'!G610)","v":""},{"$f":"'3 INCOME & EXPENSE'!M610","v":{"v":0,"d":"0.0"}},{"$f":"'3 INCOME & EXPENSE'!N610","v":{"v":0,"d":"$0.00"}},{"$f":"'3 INCOME & EXPENSE'!O610","v":{"v":0,"d":"$0.00"}},712,{"$f":"'3 INCOME & EXPENSE'!V610","v":100},26000,26100,0]
[null,null,{"$f":"IF('3 INCOME & EXPENSE'!E611=0,\"\",'3 INCOME & EXPENSE'!E611)","v":""},{"$f":"T('3 INCOME & EXPENSE'!G611)","v":""},{"$f":"'3 INCOME & EXPENSE'!M611","v":{"v":0,"d":"0.0"}},{"$f":"'3 INCOME & EXPENSE'!N611","v":{"v":0,"d":"$0.00"}},{"$f":"'3 INCOME & EXPENSE'!O611","v":{"v":0,"d":"$0.00"}},713,{"$f":"'3 INCOME & EXPENSE'!V611","v":100},26000,26100,0]
[null,null,{"$f":"IF('3 INCOME & EXPENSE'!E612=0,\"\",'3 INCOME & EXPENSE'!E612)","v":""},{"$f":"T('3 INCOME & EXPENSE'!G612)","v":""},{"$f":"'3 INCOME & EXPENSE'!M612","v":{"v":0,"d":"0.0"}},{"$f":"'3 INCOME & EXPENSE'!N612","v":{"v":0,"d":"$0.00"}},{"$f":"'3 INCOME & EXPENSE'!O612","v":{"v":0,"d":"$0.00"}},714,{"$f":"'3 INCOME & EXPENSE'!V612","v":100},26000,26100,0]
[null,null,{"$f":"IF('3 INCOME & EXPENSE'!E613=0,\"\",'3 INCOME & EXPENSE'!E613)","v":""},{"$f":"T('3 INCOME & EXPENSE'!G613)","v":""},{"$f":"'3 INCOME & EXPENSE'!M613","v":{"v":0,"d":"0.0"}},{"$f":"'3 INCOME & EXPENSE'!N613","v":{"v":0,"d":"$0.00"}},{"$f":"'3 INCOME & EXPENSE'!O613","v":{"v":0,"d":"$0.00"}},715,{"$f":"'3 INCOME & EXPENSE'!V613","v":100},26000,26100,0]
[null,null,{"$f":"IF('3 INCOME & EXPENSE'!E614=0,\"\",'3 INCOME & EXPENSE'!E614)","v":""},{"$f":"T('3 INCOME & EXPENSE'!G614)","v":""},{"$f":"'3 INCOME & EXPENSE'!M614","v":{"v":0,"d":"0.0"}},{"$f":"'3 INCOME & EXPENSE'!N614","v":{"v":0,"d":"$0.00"}},{"$f":"'3 INCOME & EXPENSE'!O614","v":{"v":0,"d":"$0.00"}},716,{"$f":"'3 INCOME & EXPENSE'!V614","v":100},26000,26100,0]
[null,null,{"$f":"IF('3 INCOME & EXPENSE'!E615=0,\"\",'3 INCOME & EXPENSE'!E615)","v":""},{"$f":"T('3 INCOME & EXPENSE'!G615)","v":""},{"$f":"'3 INCOME & EXPENSE'!M615","v":{"v":0,"d":"0.0"}},{"$f":"'3 INCOME & EXPENSE'!N615","v":{"v":0,"d":"$0.00"}},{"$f":"'3 INCOME & EXPENSE'!O615","v":{"v":0,"d":"$0.00"}},717,{"$f":"'3 INCOME & EXPENSE'!V615","v":100},26000,26100,0]
[null,null,{"$f":"IF('3 INCOME & EXPENSE'!E616=0,\"\",'3 INCOME & EXPENSE'!E616)","v":""},{"$f":"T('3 INCOME & EXPENSE'!G616)","v":""},{"$f":"'3 INCOME & EXPENSE'!M616","v":{"v":0,"d":"0.0"}},{"$f":"'3 INCOME & EXPENSE'!N616","v":{"v":0,"d":"$0.00"}},{"$f":"'3 INCOME & EXPENSE'!O616","v":{"v":0,"d":"$0.00"}},718,{"$f":"'3 INCOME & EXPENSE'!V616","v":100},26000,26100,0]
[null,null,{"$f":"IF('3 INCOME & EXPENSE'!E617=0,\"\",'3 INCOME & EXPENSE'!E617)","v":""},{"$f":"T('3 INCOME & EXPENSE'!G617)","v":""},{"$f":"'3 INCOME & EXPENSE'!M617","v":{"v":0,"d":"0.0"}},{"$f":"'3 INCOME & EXPENSE'!N617","v":{"v":0,"d":"$0.00"}},{"$f":"'3 INCOME & EXPENSE'!O617","v":{"v":0,"d":"$0.00"}},719,{"$f":"'3 INCOME & EXPENSE'!V617","v":100},26000,26100,0]
[null,null,{"$f":"IF('3 INCOME & EXPENSE'!E618=0,\"\",'3 INCOME & EXPENSE'!E618)","v":""},{"$f":"T('3 INCOME & EXPENSE'!G618)","v":""},{"$f":"'3 INCOME & EXPENSE'!M618","v":{"v":0,"d":"0.0"}},{"$f":"'3 INCOME & EXPENSE'!N618","v":{"v":0,"d":"$0.00"}},{"$f":"'3 INCOME & EXPENSE'!O618","v":{"v":0,"d":"$0.00"}},720,{"$f":"'3 INCOME & EXPENSE'!V618","v":100},26000,26100,0]
[null,null,{"$f":"IF('3 INCOME & EXPENSE'!E619=0,\"\",'3 INCOME & EXPENSE'!E619)","v":""},{"$f":"T('3 INCOME & EXPENSE'!G619)","v":""},{"$f":"'3 INCOME & EXPENSE'!M619","v":{"v":0,"d":"0.0"}},{"$f":"'3 INCOME & EXPENSE'!N619","v":{"v":0,"d":"$0.00"}},{"$f":"'3 INCOME & EXPENSE'!O619","v":{"v":0,"d":"$0.00"}},721,{"$f":"'3 INCOME & EXPENSE'!V619","v":100},26000,26100,0]
[null,null,{"$f":"IF('3 INCOME & EXPENSE'!E620=0,\"\",'3 INCOME & EXPENSE'!E620)","v":""},{"$f":"T('3 INCOME & EXPENSE'!G620)","v":""},{"$f":"'3 INCOME & EXPENSE'!M620","v":{"v":0,"d":"0.0"}},{"$f":"'3 INCOME & EXPENSE'!N620","v":{"v":0,"d":"$0.00"}},{"$f":"'3 INCOME & EXPENSE'!O620","v":{"v":0,"d":"$0.00"}},722,{"$f":"'3 INCOME & EXPENSE'!V620","v":100},26000,26100,0]
[null,null,{"$f":"IF('3 INCOME & EXPENSE'!E621=0,\"\",'3 INCOME & EXPENSE'!E621)","v":""},{"$f":"T('3 INCOME & EXPENSE'!G621)","v":""},{"$f":"'3 INCOME & EXPENSE'!M621","v":{"v":0,"d":"0.0"}},{"$f":"'3 INCOME & EXPENSE'!N621","v":{"v":0,"d":"$0.00"}},{"$f":"'3 INCOME & EXPENSE'!O621","v":{"v":0,"d":"$0.00"}},723,{"$f":"'3 INCOME & EXPENSE'!V621","v":100},26000,26100,0]
[null,null,{"$f":"IF('3 INCOME & EXPENSE'!E622=0,\"\",'3 INCOME & EXPENSE'!E622)","v":""},{"$f":"T('3 INCOME & EXPENSE'!G622)","v":""},{"$f":"'3 INCOME & EXPENSE'!M622","v":{"v":0,"d":"0.0"}},{"$f":"'3 INCOME & EXPENSE'!N622","v":{"v":0,"d":"$0.00"}},{"$f":"'3 INCOME & EXPENSE'!O622","v":{"v":0,"d":"$0.00"}},724,{"$f":"'3 INCOME & EXPENSE'!V622","v":100},26000,26100,0]
[null,null,{"$f":"IF('3 INCOME & EXPENSE'!E623=0,\"\",'3 INCOME & EXPENSE'!E623)","v":""},{"$f":"T('3 INCOME & EXPENSE'!G623)","v":""},{"$f":"'3 INCOME & EXPENSE'!M623","v":{"v":0,"d":"0.0"}},{"$f":"'3 INCOME & EXPENSE'!N623","v":{"v":0,"d":"$0.00"}},{"$f":"'3 INCOME & EXPENSE'!O623","v":{"v":0,"d":"$0.00"}},725,{"$f":"'3 INCOME & EXPENSE'!V623","v":100},26000,26100,0]
[null,null,{"$f":"IF('3 INCOME & EXPENSE'!E624=0,\"\",'3 INCOME & EXPENSE'!E624)","v":""},{"$f":"T('3 INCOME & EXPENSE'!G624)","v":""},{"$f":"'3 INCOME & EXPENSE'!M624","v":{"v":0,"d":"0.0"}},{"$f":"'3 INCOME & EXPENSE'!N624","v":{"v":0,"d":"$0.00"}},{"$f":"'3 INCOME & EXPENSE'!O624","v":{"v":0,"d":"$0.00"}},726,{"$f":"'3 INCOME & EXPENSE'!V624","v":100},26000,26100,0]
[null,null,{"$f":"IF('3 INCOME & EXPENSE'!E625=0,\"\",'3 INCOME & EXPENSE'!E625)","v":""},{"$f":"T('3 INCOME & EXPENSE'!G625)","v":""},{"$f":"'3 INCOME & EXPENSE'!M625","v":{"v":0,"d":"0.0"}},{"$f":"'3 INCOME & EXPENSE'!N625","v":{"v":0,"d":"$0.00"}},{"$f":"'3 INCOME & EXPENSE'!O625","v":{"v":0,"d":"$0.00"}},727,{"$f":"'3 INCOME & EXPENSE'!V625","v":100},26000,26100,0]
[null,null,{"$f":"IF('3 INCOME & EXPENSE'!E626=0,\"\",'3 INCOME & EXPENSE'!E626)","v":""},{"$f":"T('3 INCOME & EXPENSE'!G626)","v":""},{"$f":"'3 INCOME & EXPENSE'!M626","v":{"v":0,"d":"0.0"}},{"$f":"'3 INCOME & EXPENSE'!N626","v":{"v":0,"d":"$0.00"}},{"$f":"'3 INCOME & EXPENSE'!O626","v":{"v":0,"d":"$0.00"}},728,{"$f":"'3 INCOME & EXPENSE'!V626","v":100},26000,26100,0]
[null,null,{"$f":"IF('3 INCOME & EXPENSE'!E627=0,\"\",'3 INCOME & EXPENSE'!E627)","v":""},{"$f":"T('3 INCOME & EXPENSE'!G627)","v":""},{"$f":"'3 INCOME & EXPENSE'!M627","v":{"v":0,"d":"0.0"}},{"$f":"'3 INCOME & EXPENSE'!N627","v":{"v":0,"d":"$0.00"}},{"$f":"'3 INCOME & EXPENSE'!O627","v":{"v":0,"d":"$0.00"}},729,{"$f":"'3 INCOME & EXPENSE'!V627","v":100},26000,26100,0]
[null,null,{"$f":"IF('3 INCOME & EXPENSE'!E628=0,\"\",'3 INCOME & EXPENSE'!E628)","v":""},{"$f":"T('3 INCOME & EXPENSE'!G628)","v":""},{"$f":"'3 INCOME & EXPENSE'!M628","v":{"v":0,"d":"0.0"}},{"$f":"'3 INCOME & EXPENSE'!N628","v":{"v":0,"d":"$0.00"}},{"$f":"'3 INCOME & EXPENSE'!O628","v":{"v":0,"d":"$0.00"}},730,{"$f":"'3 INCOME & EXPENSE'!V628","v":100},26000,26100,0]
[null,null,{"$f":"IF('3 INCOME & EXPENSE'!E629=0,\"\",'3 INCOME & EXPENSE'!E629)","v":""},{"$f":"T('3 INCOME & EXPENSE'!G629)","v":""},{"$f":"'3 INCOME & EXPENSE'!M629","v":{"v":0,"d":"0.0"}},{"$f":"'3 INCOME & EXPENSE'!N629","v":{"v":0,"d":"$0.00"}},{"$f":"'3 INCOME & EXPENSE'!O629","v":{"v":0,"d":"$0.00"}},731,{"$f":"'3 INCOME & EXPENSE'!V629","v":100},26000,26100,0]
[null,null,{"$f":"IF('3 INCOME & EXPENSE'!E630=0,\"\",'3 INCOME & EXPENSE'!E630)","v":""},{"$f":"T('3 INCOME & EXPENSE'!G630)","v":""},{"$f":"'3 INCOME & EXPENSE'!M630","v":{"v":0,"d":"0.0"}},{"$f":"'3 INCOME & EXPENSE'!N630","v":{"v":0,"d":"$0.00"}},{"$f":"'3 INCOME & EXPENSE'!O630","v":{"v":0,"d":"$0.00"}},732,{"$f":"'3 INCOME & EXPENSE'!V630","v":100},26000,26100,0]
[null,null,{"$f":"IF('3 INCOME & EXPENSE'!E631=0,\"\",'3 INCOME & EXPENSE'!E631)","v":""},{"$f":"T('3 INCOME & EXPENSE'!G631)","v":""},{"$f":"'3 INCOME & EXPENSE'!M631","v":{"v":0,"d":"0.0"}},{"$f":"'3 INCOME & EXPENSE'!N631","v":{"v":0,"d":"$0.00"}},{"$f":"'3 INCOME & EXPENSE'!O631","v":{"v":0,"d":"$0.00"}},733,{"$f":"'3 INCOME & EXPENSE'!V631","v":100},26000,26100,0]
[null,null,{"$f":"IF('3 INCOME & EXPENSE'!E632=0,\"\",'3 INCOME & EXPENSE'!E632)","v":""},{"$f":"T('3 INCOME & EXPENSE'!G632)","v":""},{"$f":"'3 INCOME & EXPENSE'!M632","v":{"v":0,"d":"0.0"}},{"$f":"'3 INCOME & EXPENSE'!N632","v":{"v":0,"d":"$0.00"}},{"$f":"'3 INCOME & EXPENSE'!O632","v":{"v":0,"d":"$0.00"}},734,{"$f":"'3 INCOME & EXPENSE'!V632","v":100},26000,26100,0]
[null,null,{"$f":"IF('3 INCOME & EXPENSE'!E633=0,\"\",'3 INCOME & EXPENSE'!E633)","v":""},{"$f":"T('3 INCOME & EXPENSE'!G633)","v":""},{"$f":"'3 INCOME & EXPENSE'!M633","v":{"v":0,"d":"0.0"}},{"$f":"'3 INCOME & EXPENSE'!N633","v":{"v":0,"d":"$0.00"}},{"$f":"'3 INCOME & EXPENSE'!O633","v":{"v":0,"d":"$0.00"}},735,{"$f":"'3 INCOME & EXPENSE'!V633","v":100},26000,26100,0]
[null,null,{"$f":"IF('3 INCOME & EXPENSE'!E634=0,\"\",'3 INCOME & EXPENSE'!E634)","v":""},{"$f":"T('3 INCOME & EXPENSE'!G634)","v":""},{"$f":"'3 INCOME & EXPENSE'!M634","v":{"v":0,"d":"0.0"}},{"$f":"'3 INCOME & EXPENSE'!N634","v":{"v":0,"d":"$0.00"}},{"$f":"'3 INCOME & EXPENSE'!O634","v":{"v":0,"d":"$0.00"}},736,{"$f":"'3 INCOME & EXPENSE'!V634","v":100},26000,26100,0]
[null,null,{"$f":"IF('3 INCOME & EXPENSE'!E635=0,\"\",'3 INCOME & EXPENSE'!E635)","v":""},{"$f":"T('3 INCOME & EXPENSE'!G635)","v":""},{"$f":"'3 INCOME & EXPENSE'!M635","v":{"v":0,"d":"0.0"}},{"$f":"'3 INCOME & EXPENSE'!N635","v":{"v":0,"d":"$0.00"}},{"$f":"'3 INCOME & EXPENSE'!O635","v":{"v":0,"d":"$0.00"}},737,{"$f":"'3 INCOME & EXPENSE'!V635","v":100},26000,26100,0]
[null,null,{"$f":"IF('3 INCOME & EXPENSE'!E636=0,\"\",'3 INCOME & EXPENSE'!E636)","v":""},{"$f":"T('3 INCOME & EXPENSE'!G636)","v":""},{"$f":"'3 INCOME & EXPENSE'!M636","v":{"v":0,"d":"0.0"}},{"$f":"'3 INCOME & EXPENSE'!N636","v":{"v":0,"d":"$0.00"}},{"$f":"'3 INCOME & EXPENSE'!O636","v":{"v":0,"d":"$0.00"}},738,{"$f":"'3 INCOME & EXPENSE'!V636","v":100},26000,26100,0]
[null,null,{"$f":"IF('3 INCOME & EXPENSE'!E637=0,\"\",'3 INCOME & EXPENSE'!E637)","v":""},{"$f":"T('3 INCOME & EXPENSE'!G637)","v":""},{"$f":"'3 INCOME & EXPENSE'!M637","v":{"v":0,"d":"0.0"}},{"$f":"'3 INCOME & EXPENSE'!N637","v":{"v":0,"d":"$0.00"}},{"$f":"'3 INCOME & EXPENSE'!O637","v":{"v":0,"d":"$0.00"}},739,{"$f":"'3 INCOME & EXPENSE'!V637","v":100},26000,26100,0]
[null,null,{"$f":"IF('3 INCOME & EXPENSE'!E638=0,\"\",'3 INCOME & EXPENSE'!E638)","v":""},{"$f":"T('3 INCOME & EXPENSE'!G638)","v":""},{"$f":"'3 INCOME & EXPENSE'!M638","v":{"v":0,"d":"0.0"}},{"$f":"'3 INCOME & EXPENSE'!N638","v":{"v":0,"d":"$0.00"}},{"$f":"'3 INCOME & EXPENSE'!O638","v":{"v":0,"d":"$0.00"}},740,{"$f":"'3 INCOME & EXPENSE'!V638","v":100},26000,26100,0]
[null,null,{"$f":"IF('3 INCOME & EXPENSE'!E639=0,\"\",'3 INCOME & EXPENSE'!E639)","v":""},{"$f":"T('3 INCOME & EXPENSE'!G639)","v":""},{"$f":"'3 INCOME & EXPENSE'!M639","v":{"v":0,"d":"0.0"}},{"$f":"'3 INCOME & EXPENSE'!N639","v":{"v":0,"d":"$0.00"}},{"$f":"'3 INCOME & EXPENSE'!O639","v":{"v":0,"d":"$0.00"}},741,{"$f":"'3 INCOME & EXPENSE'!V639","v":100},26000,26100,0]
[null,null,{"$f":"IF('3 INCOME & EXPENSE'!E640=0,\"\",'3 INCOME & EXPENSE'!E640)","v":""},{"$f":"T('3 INCOME & EXPENSE'!G640)","v":""},{"$f":"'3 INCOME & EXPENSE'!M640","v":{"v":0,"d":"0.0"}},{"$f":"'3 INCOME & EXPENSE'!N640","v":{"v":0,"d":"$0.00"}},{"$f":"'3 INCOME & EXPENSE'!O640","v":{"v":0,"d":"$0.00"}},742,{"$f":"'3 INCOME & EXPENSE'!V640","v":100},26000,26100,0]
[null,null,{"$f":"IF('3 INCOME & EXPENSE'!E641=0,\"\",'3 INCOME & EXPENSE'!E641)","v":""},{"$f":"T('3 INCOME & EXPENSE'!G641)","v":""},{"$f":"'3 INCOME & EXPENSE'!M641","v":{"v":0,"d":"0.0"}},{"$f":"'3 INCOME & EXPENSE'!N641","v":{"v":0,"d":"$0.00"}},{"$f":"'3 INCOME & EXPENSE'!O641","v":{"v":0,"d":"$0.00"}},743,{"$f":"'3 INCOME & EXPENSE'!V641","v":100},26000,26100,0]
[null,null,{"$f":"IF('3 INCOME & EXPENSE'!E642=0,\"\",'3 INCOME & EXPENSE'!E642)","v":""},{"$f":"T('3 INCOME & EXPENSE'!G642)","v":""},{"$f":"'3 INCOME & EXPENSE'!M642","v":{"v":0,"d":"0.0"}},{"$f":"'3 INCOME & EXPENSE'!N642","v":{"v":0,"d":"$0.00"}},{"$f":"'3 INCOME & EXPENSE'!O642","v":{"v":0,"d":"$0.00"}},744,{"$f":"'3 INCOME & EXPENSE'!V642","v":100},26000,{"$f":"I755+J755","v":26100},0]
[null,null,{"$f":"IF('3 INCOME & EXPENSE'!E643=0,\"\",'3 INCOME & EXPENSE'!E643)","v":""},{"$f":"T('3 INCOME & EXPENSE'!G643)","v":""},{"$f":"'3 INCOME & EXPENSE'!M643","v":{"v":0,"d":"0.0"}},{"$f":"'3 INCOME & EXPENSE'!N643","v":{"v":0,"d":"$0.00"}},{"$f":"'3 INCOME & EXPENSE'!O643","v":{"v":0,"d":"$0.00"}},745,{"$f":"'3 INCOME & EXPENSE'!V643","v":100},26000,26100,0]
[null,null,{"$f":"IF('3 INCOME & EXPENSE'!E644=0,\"\",'3 INCOME & EXPENSE'!E644)","v":""},{"$f":"T('3 INCOME & EXPENSE'!G644)","v":""},{"$f":"'3 INCOME & EXPENSE'!M644","v":{"v":0,"d":"0.0"}},{"$f":"'3 INCOME & EXPENSE'!N644","v":{"v":0,"d":"$0.00"}},{"$f":"'3 INCOME & EXPENSE'!O644","v":{"v":0,"d":"$0.00"}},746,{"$f":"'3 INCOME & EXPENSE'!V644","v":100},26000,26100,0]
[null,null,{"$f":"IF('3 INCOME & EXPENSE'!E645=0,\"\",'3 INCOME & EXPENSE'!E645)","v":""},{"$f":"T('3 INCOME & EXPENSE'!G645)","v":""},{"$f":"'3 INCOME & EXPENSE'!M645","v":{"v":0,"d":"0.0"}},{"$f":"'3 INCOME & EXPENSE'!N645","v":{"v":0,"d":"$0.00"}},{"$f":"'3 INCOME & EXPENSE'!O645","v":{"v":0,"d":"$0.00"}},747,{"$f":"'3 INCOME & EXPENSE'!V645","v":100},26000,26100,0]
[null,null,{"$f":"IF('3 INCOME & EXPENSE'!E646=0,\"\",'3 INCOME & EXPENSE'!E646)","v":""},{"$f":"T('3 INCOME & EXPENSE'!G646)","v":""},{"$f":"'3 INCOME & EXPENSE'!M646","v":{"v":0,"d":"0.0"}},{"$f":"'3 INCOME & EXPENSE'!N646","v":{"v":0,"d":"$0.00"}},{"$f":"'3 INCOME & EXPENSE'!O646","v":{"v":0,"d":"$0.00"}},748,{"$f":"'3 INCOME & EXPENSE'!V646","v":100},26000,26100,0]
[null,null,{"$f":"IF('3 INCOME & EXPENSE'!E647=0,\"\",'3 INCOME & EXPENSE'!E647)","v":""},{"$f":"T('3 INCOME & EXPENSE'!G647)","v":""},{"$f":"'3 INCOME & EXPENSE'!M647","v":{"v":0,"d":"0.0"}},{"$f":"'3 INCOME & EXPENSE'!N647","v":{"v":0,"d":"$0.00"}},{"$f":"'3 INCOME & EXPENSE'!O647","v":{"v":0,"d":"$0.00"}},749,{"$f":"'3 INCOME & EXPENSE'!V647","v":100},26000,26100,0]
[null,null,{"$f":"IF('3 INCOME & EXPENSE'!E648=0,\"\",'3 INCOME & EXPENSE'!E648)","v":""},{"$f":"T('3 INCOME & EXPENSE'!G648)","v":""},{"$f":"'3 INCOME & EXPENSE'!M648","v":{"v":0,"d":"0.0"}},{"$f":"'3 INCOME & EXPENSE'!N648","v":{"v":0,"d":"$0.00"}},{"$f":"'3 INCOME & EXPENSE'!O648","v":{"v":0,"d":"$0.00"}},750,{"$f":"'3 INCOME & EXPENSE'!V648","v":100},26000,26100,0]
[null,null,{"$f":"IF('3 INCOME & EXPENSE'!E649=0,\"\",'3 INCOME & EXPENSE'!E649)","v":""},{"$f":"T('3 INCOME & EXPENSE'!G649)","v":""},{"$f":"'3 INCOME & EXPENSE'!M649","v":{"v":0,"d":"0.0"}},{"$f":"'3 INCOME & EXPENSE'!N649","v":{"v":0,"d":"$0.00"}},{"$f":"'3 INCOME & EXPENSE'!O649","v":{"v":0,"d":"$0.00"}},751,{"$f":"'3 INCOME & EXPENSE'!V649","v":100},26000,26100,0]
[null,null,{"$f":"IF('3 INCOME & EXPENSE'!E650=0,\"\",'3 INCOME & EXPENSE'!E650)","v":""},{"$f":"T('3 INCOME & EXPENSE'!G650)","v":""},{"$f":"'3 INCOME & EXPENSE'!M650","v":{"v":0,"d":"0.0"}},{"$f":"'3 INCOME & EXPENSE'!N650","v":{"v":0,"d":"$0.00"}},{"$f":"'3 INCOME & EXPENSE'!O650","v":{"v":0,"d":"$0.00"}},752,{"$f":"'3 INCOME & EXPENSE'!V650","v":100},26000,26100,0]
[null,null,{"$f":"IF('3 INCOME & EXPENSE'!E651=0,\"\",'3 INCOME & EXPENSE'!E651)","v":""},{"$f":"T('3 INCOME & EXPENSE'!G651)","v":""},{"$f":"'3 INCOME & EXPENSE'!M651","v":{"v":0,"d":"0.0"}},{"$f":"'3 INCOME & EXPENSE'!N651","v":{"v":0,"d":"$0.00"}},{"$f":"'3 INCOME & EXPENSE'!O651","v":{"v":0,"d":"$0.00"}},753,{"$f":"'3 INCOME & EXPENSE'!V651","v":100},26000,26100,0]
[null,null,{"$f":"IF('3 INCOME & EXPENSE'!E652=0,\"\",'3 INCOME & EXPENSE'!E652)","v":""},{"$f":"T('3 INCOME & EXPENSE'!G652)","v":""},{"$f":"'3 INCOME & EXPENSE'!M652","v":{"v":0,"d":"0.0"}},{"$f":"'3 INCOME & EXPENSE'!N652","v":{"v":0,"d":"$0.00"}},{"$f":"'3 INCOME & EXPENSE'!O652","v":{"v":0,"d":"$0.00"}},754,{"$f":"'3 INCOME & EXPENSE'!V652","v":100},26000,26100,0]
[null,null,{"$f":"IF('3 INCOME & EXPENSE'!E653=0,\"\",'3 INCOME & EXPENSE'!E653)","v":""},{"$f":"T('3 INCOME & EXPENSE'!G653)","v":""},{"$f":"'3 INCOME & EXPENSE'!M653","v":{"v":0,"d":"0.0"}},{"$f":"'3 INCOME & EXPENSE'!N653","v":{"v":0,"d":"$0.00"}},{"$f":"'3 INCOME & EXPENSE'!O653","v":{"v":0,"d":"$0.00"}},755,{"$f":"'3 INCOME & EXPENSE'!V653","v":100},26000,26100,0]
[null,null,{"$f":"IF('3 INCOME & EXPENSE'!E654=0,\"\",'3 INCOME & EXPENSE'!E654)","v":""},{"$f":"T('3 INCOME & EXPENSE'!G654)","v":""},{"$f":"'3 INCOME & EXPENSE'!M654","v":{"v":0,"d":"0.0"}},{"$f":"'3 INCOME & EXPENSE'!N654","v":{"v":0,"d":"$0.00"}},{"$f":"'3 INCOME & EXPENSE'!O654","v":{"v":0,"d":"$0.00"}},756,{"$f":"'3 INCOME & EXPENSE'!V654","v":100},{"$f":"VLOOKUP(I767,$I$880:$J$905,2)","v":26000},26100,{"$f":"K767*E767","v":0}]
[null,null,{"$f":"IF('3 INCOME & EXPENSE'!E655=0,\"\",'3 INCOME & EXPENSE'!E655)","v":""},{"$f":"T('3 INCOME & EXPENSE'!G655)","v":""},{"$f":"'3 INCOME & EXPENSE'!M655","v":{"v":0,"d":"0.0"}},{"$f":"'3 INCOME & EXPENSE'!N655","v":{"v":0,"d":"$0.00"}},{"$f":"'3 INCOME & EXPENSE'!O655","v":{"v":0,"d":"$0.00"}},757,{"$f":"'3 INCOME & EXPENSE'!V655","v":100},26000,26100,0]
[null,null,{"$f":"IF('3 INCOME & EXPENSE'!E656=0,\"\",'3 INCOME & EXPENSE'!E656)","v":""},{"$f":"T('3 INCOME & EXPENSE'!G656)","v":""},{"$f":"'3 INCOME & EXPENSE'!M656","v":{"v":0,"d":"0.0"}},{"$f":"'3 INCOME & EXPENSE'!N656","v":{"v":0,"d":"$0.00"}},{"$f":"'3 INCOME & EXPENSE'!O656","v":{"v":0,"d":"$0.00"}},758,{"$f":"'3 INCOME & EXPENSE'!V656","v":100},26000,26100,0]
[null,null,{"$f":"IF('3 INCOME & EXPENSE'!E657=0,\"\",'3 INCOME & EXPENSE'!E657)","v":""},{"$f":"T('3 INCOME & EXPENSE'!G657)","v":""},{"$f":"'3 INCOME & EXPENSE'!M657","v":{"v":0,"d":"0.0"}},{"$f":"'3 INCOME & EXPENSE'!N657","v":{"v":0,"d":"$0.00"}},{"$f":"'3 INCOME & EXPENSE'!O657","v":{"v":0,"d":"$0.00"}},759,{"$f":"'3 INCOME & EXPENSE'!V657","v":100},26000,26100,0]
[null,null,{"$f":"IF('3 INCOME & EXPENSE'!E658=0,\"\",'3 INCOME & EXPENSE'!E658)","v":""},{"$f":"T('3 INCOME & EXPENSE'!G658)","v":""},{"$f":"'3 INCOME & EXPENSE'!M658","v":{"v":0,"d":"0.0"}},{"$f":"'3 INCOME & EXPENSE'!N658","v":{"v":0,"d":"$0.00"}},{"$f":"'3 INCOME & EXPENSE'!O658","v":{"v":0,"d":"$0.00"}},760,{"$f":"'3 INCOME & EXPENSE'!V658","v":100},26000,26100,0]
[null,null,{"$f":"IF('3 INCOME & EXPENSE'!E659=0,\"\",'3 INCOME & EXPENSE'!E659)","v":""},{"$f":"T('3 INCOME & EXPENSE'!G659)","v":""},{"$f":"'3 INCOME & EXPENSE'!M659","v":{"v":0,"d":"0.0"}},{"$f":"'3 INCOME & EXPENSE'!N659","v":{"v":0,"d":"$0.00"}},{"$f":"'3 INCOME & EXPENSE'!O659","v":{"v":0,"d":"$0.00"}},761,{"$f":"'3 INCOME & EXPENSE'!V659","v":100},26000,26100,0]
[null,null,{"$f":"IF('3 INCOME & EXPENSE'!E660=0,\"\",'3 INCOME & EXPENSE'!E660)","v":""},{"$f":"T('3 INCOME & EXPENSE'!G660)","v":""},{"$f":"'3 INCOME & EXPENSE'!M660","v":{"v":0,"d":"0.0"}},{"$f":"'3 INCOME & EXPENSE'!N660","v":{"v":0,"d":"$0.00"}},{"$f":"'3 INCOME & EXPENSE'!O660","v":{"v":0,"d":"$0.00"}},762,{"$f":"'3 INCOME & EXPENSE'!V660","v":100},26000,26100,0]
[null,null,{"$f":"IF('3 INCOME & EXPENSE'!E661=0,\"\",'3 INCOME & EXPENSE'!E661)","v":""},{"$f":"T('3 INCOME & EXPENSE'!G661)","v":""},{"$f":"'3 INCOME & EXPENSE'!M661","v":{"v":0,"d":"0.0"}},{"$f":"'3 INCOME & EXPENSE'!N661","v":{"v":0,"d":"$0.00"}},{"$f":"'3 INCOME & EXPENSE'!O661","v":{"v":0,"d":"$0.00"}},763,{"$f":"'3 INCOME & EXPENSE'!V661","v":100},26000,26100,0]
[null,null,{"$f":"IF('3 INCOME & EXPENSE'!E662=0,\"\",'3 INCOME & EXPENSE'!E662)","v":""},{"$f":"T('3 INCOME & EXPENSE'!G662)","v":""},{"$f":"'3 INCOME & EXPENSE'!M662","v":{"v":0,"d":"0.0"}},{"$f":"'3 INCOME & EXPENSE'!N662","v":{"v":0,"d":"$0.00"}},{"$f":"'3 INCOME & EXPENSE'!O662","v":{"v":0,"d":"$0.00"}},764,{"$f":"'3 INCOME & EXPENSE'!V662","v":100},26000,26100,0]
[null,null,{"$f":"IF('3 INCOME & EXPENSE'!E663=0,\"\",'3 INCOME & EXPENSE'!E663)","v":""},{"$f":"T('3 INCOME & EXPENSE'!G663)","v":""},{"$f":"'3 INCOME & EXPENSE'!M663","v":{"v":0,"d":"0.0"}},{"$f":"'3 INCOME & EXPENSE'!N663","v":{"v":0,"d":"$0.00"}},{"$f":"'3 INCOME & EXPENSE'!O663","v":{"v":0,"d":"$0.00"}},765,{"$f":"'3 INCOME & EXPENSE'!V663","v":100},26000,26100,0]
[null,null,{"$f":"IF('3 INCOME & EXPENSE'!E664=0,\"\",'3 INCOME & EXPENSE'!E664)","v":""},{"$f":"T('3 INCOME & EXPENSE'!G664)","v":""},{"$f":"'3 INCOME & EXPENSE'!M664","v":{"v":0,"d":"0.0"}},{"$f":"'3 INCOME & EXPENSE'!N664","v":{"v":0,"d":"$0.00"}},{"$f":"'3 INCOME & EXPENSE'!O664","v":{"v":0,"d":"$0.00"}},766,{"$f":"'3 INCOME & EXPENSE'!V664","v":100},26000,26100,0]
[null,null,{"$f":"IF('3 INCOME & EXPENSE'!E665=0,\"\",'3 INCOME & EXPENSE'!E665)","v":""},{"$f":"T('3 INCOME & EXPENSE'!G665)","v":""},{"$f":"'3 INCOME & EXPENSE'!M665","v":{"v":0,"d":"0.0"}},{"$f":"'3 INCOME & EXPENSE'!N665","v":{"v":0,"d":"$0.00"}},{"$f":"'3 INCOME & EXPENSE'!O665","v":{"v":0,"d":"$0.00"}},767,{"$f":"'3 INCOME & EXPENSE'!V665","v":100},26000,26100,0]
[null,null,{"$f":"IF('3 INCOME & EXPENSE'!E666=0,\"\",'3 INCOME & EXPENSE'!E666)","v":""},{"$f":"T('3 INCOME & EXPENSE'!G666)","v":""},{"$f":"'3 INCOME & EXPENSE'!M666","v":{"v":0,"d":"0.0"}},{"$f":"'3 INCOME & EXPENSE'!N666","v":{"v":0,"d":"$0.00"}},{"$f":"'3 INCOME & EXPENSE'!O666","v":{"v":0,"d":"$0.00"}},768,{"$f":"'3 INCOME & EXPENSE'!V666","v":100},26000,26100,0]
[null,null,{"$f":"IF('3 INCOME & EXPENSE'!E667=0,\"\",'3 INCOME & EXPENSE'!E667)","v":""},{"$f":"T('3 INCOME & EXPENSE'!G667)","v":""},{"$f":"'3 INCOME & EXPENSE'!M667","v":{"v":0,"d":"0.0"}},{"$f":"'3 INCOME & EXPENSE'!N667","v":{"v":0,"d":"$0.00"}},{"$f":"'3 INCOME & EXPENSE'!O667","v":{"v":0,"d":"$0.00"}},769,{"$f":"'3 INCOME & EXPENSE'!V667","v":100},26000,26100,0]
[null,null,{"$f":"IF('3 INCOME & EXPENSE'!E668=0,\"\",'3 INCOME & EXPENSE'!E668)","v":""},{"$f":"T('3 INCOME & EXPENSE'!G668)","v":""},{"$f":"'3 INCOME & EXPENSE'!M668","v":{"v":0,"d":"0.0"}},{"$f":"'3 INCOME & EXPENSE'!N668","v":{"v":0,"d":"$0.00"}},{"$f":"'3 INCOME & EXPENSE'!O668","v":{"v":0,"d":"$0.00"}},770,{"$f":"'3 INCOME & EXPENSE'!V668","v":100},26000,26100,0]
[null,null,{"$f":"IF('3 INCOME & EXPENSE'!E669=0,\"\",'3 INCOME & EXPENSE'!E669)","v":""},{"$f":"T('3 INCOME & EXPENSE'!G669)","v":""},{"$f":"'3 INCOME & EXPENSE'!M669","v":{"v":0,"d":"0.0"}},{"$f":"'3 INCOME & EXPENSE'!N669","v":{"v":0,"d":"$0.00"}},{"$f":"'3 INCOME & EXPENSE'!O669","v":{"v":0,"d":"$0.00"}},771,{"$f":"'3 INCOME & EXPENSE'!V669","v":100},26000,26100,0]
[null,null,{"$f":"IF('3 INCOME & EXPENSE'!E670=0,\"\",'3 INCOME & EXPENSE'!E670)","v":""},{"$f":"T('3 INCOME & EXPENSE'!G670)","v":""},{"$f":"'3 INCOME & EXPENSE'!M670","v":{"v":0,"d":"0.0"}},{"$f":"'3 INCOME & EXPENSE'!N670","v":{"v":0,"d":"$0.00"}},{"$f":"'3 INCOME & EXPENSE'!O670","v":{"v":0,"d":"$0.00"}},772,{"$f":"'3 INCOME & EXPENSE'!V670","v":100},26000,26100,0]
[null,null,{"$f":"IF('3 INCOME & EXPENSE'!E671=0,\"\",'3 INCOME & EXPENSE'!E671)","v":""},{"$f":"T('3 INCOME & EXPENSE'!G671)","v":""},{"$f":"'3 INCOME & EXPENSE'!M671","v":{"v":0,"d":"0.0"}},{"$f":"'3 INCOME & EXPENSE'!N671","v":{"v":0,"d":"$0.00"}},{"$f":"'3 INCOME & EXPENSE'!O671","v":{"v":0,"d":"$0.00"}},773,{"$f":"'3 INCOME & EXPENSE'!V671","v":100},26000,26100,0]
[null,null,{"$f":"IF('3 INCOME & EXPENSE'!E672=0,\"\",'3 INCOME & EXPENSE'!E672)","v":""},{"$f":"T('3 INCOME & EXPENSE'!G672)","v":""},{"$f":"'3 INCOME & EXPENSE'!M672","v":{"v":0,"d":"0.0"}},{"$f":"'3 INCOME & EXPENSE'!N672","v":{"v":0,"d":"$0.00"}},{"$f":"'3 INCOME & EXPENSE'!O672","v":{"v":0,"d":"$0.00"}},774,{"$f":"'3 INCOME & EXPENSE'!V672","v":100},26000,26100,0]
[null,null,{"$f":"IF('3 INCOME & EXPENSE'!E673=0,\"\",'3 INCOME & EXPENSE'!E673)","v":""},{"$f":"T('3 INCOME & EXPENSE'!G673)","v":""},{"$f":"'3 INCOME & EXPENSE'!M673","v":{"v":0,"d":"0.0"}},{"$f":"'3 INCOME & EXPENSE'!N673","v":{"v":0,"d":"$0.00"}},{"$f":"'3 INCOME & EXPENSE'!O673","v":{"v":0,"d":"$0.00"}},775,{"$f":"'3 INCOME & EXPENSE'!V673","v":100},26000,26100,0]
[null,null,{"$f":"IF('3 INCOME & EXPENSE'!E674=0,\"\",'3 INCOME & EXPENSE'!E674)","v":""},{"$f":"T('3 INCOME & EXPENSE'!G674)","v":""},{"$f":"'3 INCOME & EXPENSE'!M674","v":{"v":0,"d":"0.0"}},{"$f":"'3 INCOME & EXPENSE'!N674","v":{"v":0,"d":"$0.00"}},{"$f":"'3 INCOME & EXPENSE'!O674","v":{"v":0,"d":"$0.00"}},776,{"$f":"'3 INCOME & EXPENSE'!V674","v":100},26000,26100,0]
[null,null,{"$f":"IF('3 INCOME & EXPENSE'!E675=0,\"\",'3 INCOME & EXPENSE'!E675)","v":""},{"$f":"T('3 INCOME & EXPENSE'!G675)","v":""},{"$f":"'3 INCOME & EXPENSE'!M675","v":{"v":0,"d":"0.0"}},{"$f":"'3 INCOME & EXPENSE'!N675","v":{"v":0,"d":"$0.00"}},{"$f":"'3 INCOME & EXPENSE'!O675","v":{"v":0,"d":"$0.00"}},777,{"$f":"'3 INCOME & EXPENSE'!V675","v":100},26000,26100,0]
[null,null,{"$f":"IF('3 INCOME & EXPENSE'!E676=0,\"\",'3 INCOME & EXPENSE'!E676)","v":""},{"$f":"T('3 INCOME & EXPENSE'!G676)","v":""},{"$f":"'3 INCOME & EXPENSE'!M676","v":{"v":0,"d":"0.0"}},{"$f":"'3 INCOME & EXPENSE'!N676","v":{"v":0,"d":"$0.00"}},{"$f":"'3 INCOME & EXPENSE'!O676","v":{"v":0,"d":"$0.00"}},778,{"$f":"'3 INCOME & EXPENSE'!V676","v":100},26000,26100,0]
[null,null,{"$f":"IF('3 INCOME & EXPENSE'!E677=0,\"\",'3 INCOME & EXPENSE'!E677)","v":""},{"$f":"T('3 INCOME & EXPENSE'!G677)","v":""},{"$f":"'3 INCOME & EXPENSE'!M677","v":{"v":0,"d":"0.0"}},{"$f":"'3 INCOME & EXPENSE'!N677","v":{"v":0,"d":"$0.00"}},{"$f":"'3 INCOME & EXPENSE'!O677","v":{"v":0,"d":"$0.00"}},779,{"$f":"'3 INCOME & EXPENSE'!V677","v":100},26000,26100,0]
[null,null,{"$f":"IF('3 INCOME & EXPENSE'!E678=0,\"\",'3 INCOME & EXPENSE'!E678)","v":""},{"$f":"T('3 INCOME & EXPENSE'!G678)","v":""},{"$f":"'3 INCOME & EXPENSE'!M678","v":{"v":0,"d":"0.0"}},{"$f":"'3 INCOME & EXPENSE'!N678","v":{"v":0,"d":"$0.00"}},{"$f":"'3 INCOME & EXPENSE'!O678","v":{"v":0,"d":"$0.00"}},780,{"$f":"'3 INCOME & EXPENSE'!V678","v":100},26000,26100,0]
[null,null,{"$f":"IF('3 INCOME & EXPENSE'!E679=0,\"\",'3 INCOME & EXPENSE'!E679)","v":""},{"$f":"T('3 INCOME & EXPENSE'!G679)","v":""},{"$f":"'3 INCOME & EXPENSE'!M679","v":{"v":0,"d":"0.0"}},{"$f":"'3 INCOME & EXPENSE'!N679","v":{"v":0,"d":"$0.00"}},{"$f":"'3 INCOME & EXPENSE'!O679","v":{"v":0,"d":"$0.00"}},781,{"$f":"'3 INCOME & EXPENSE'!V679","v":100},26000,26100,0]
[null,null,{"$f":"IF('3 INCOME & EXPENSE'!E680=0,\"\",'3 INCOME & EXPENSE'!E680)","v":""},{"$f":"T('3 INCOME & EXPENSE'!G680)","v":""},{"$f":"'3 INCOME & EXPENSE'!M680","v":{"v":0,"d":"0.0"}},{"$f":"'3 INCOME & EXPENSE'!N680","v":{"v":0,"d":"$0.00"}},{"$f":"'3 INCOME & EXPENSE'!O680","v":{"v":0,"d":"$0.00"}},782,{"$f":"'3 INCOME & EXPENSE'!V680","v":100},26000,26100,0]
[null,null,{"$f":"IF('3 INCOME & EXPENSE'!E681=0,\"\",'3 INCOME & EXPENSE'!E681)","v":""},{"$f":"T('3 INCOME & EXPENSE'!G681)","v":""},{"$f":"'3 INCOME & EXPENSE'!M681","v":{"v":0,"d":"0.0"}},{"$f":"'3 INCOME & EXPENSE'!N681","v":{"v":0,"d":"$0.00"}},{"$f":"'3 INCOME & EXPENSE'!O681","v":{"v":0,"d":"$0.00"}},783,{"$f":"'3 INCOME & EXPENSE'!V681","v":100},26000,26100,0]
[null,null,{"$f":"IF('3 INCOME & EXPENSE'!E682=0,\"\",'3 INCOME & EXPENSE'!E682)","v":""},{"$f":"T('3 INCOME & EXPENSE'!G682)","v":""},{"$f":"'3 INCOME & EXPENSE'!M682","v":{"v":0,"d":"0.0"}},{"$f":"'3 INCOME & EXPENSE'!N682","v":{"v":0,"d":"$0.00"}},{"$f":"'3 INCOME & EXPENSE'!O682","v":{"v":0,"d":"$0.00"}},784,{"$f":"'3 INCOME & EXPENSE'!V682","v":100},26000,26100,0]
[null,null,{"$f":"IF('3 INCOME & EXPENSE'!E683=0,\"\",'3 INCOME & EXPENSE'!E683)","v":""},{"$f":"T('3 INCOME & EXPENSE'!G683)","v":""},{"$f":"'3 INCOME & EXPENSE'!M683","v":{"v":0,"d":"0.0"}},{"$f":"'3 INCOME & EXPENSE'!N683","v":{"v":0,"d":"$0.00"}},{"$f":"'3 INCOME & EXPENSE'!O683","v":{"v":0,"d":"$0.00"}},785,{"$f":"'3 INCOME & EXPENSE'!V683","v":100},26000,26100,0]
[null,null,{"$f":"IF('3 INCOME & EXPENSE'!E684=0,\"\",'3 INCOME & EXPENSE'!E684)","v":""},{"$f":"T('3 INCOME & EXPENSE'!G684)","v":""},{"$f":"'3 INCOME & EXPENSE'!M684","v":{"v":0,"d":"0.0"}},{"$f":"'3 INCOME & EXPENSE'!N684","v":{"v":0,"d":"$0.00"}},{"$f":"'3 INCOME & EXPENSE'!O684","v":{"v":0,"d":"$0.00"}},786,{"$f":"'3 INCOME & EXPENSE'!V684","v":100},26000,26100,0]
[null,null,{"$f":"IF('3 INCOME & EXPENSE'!E685=0,\"\",'3 INCOME & EXPENSE'!E685)","v":""},{"$f":"T('3 INCOME & EXPENSE'!G685)","v":""},{"$f":"'3 INCOME & EXPENSE'!M685","v":{"v":0,"d":"0.0"}},{"$f":"'3 INCOME & EXPENSE'!N685","v":{"v":0,"d":"$0.00"}},{"$f":"'3 INCOME & EXPENSE'!O685","v":{"v":0,"d":"$0.00"}},787,{"$f":"'3 INCOME & EXPENSE'!V685","v":100},26000,26100,0]
[null,null,{"$f":"IF('3 INCOME & EXPENSE'!E686=0,\"\",'3 INCOME & EXPENSE'!E686)","v":""},{"$f":"T('3 INCOME & EXPENSE'!G686)","v":""},{"$f":"'3 INCOME & EXPENSE'!M686","v":{"v":0,"d":"0.0"}},{"$f":"'3 INCOME & EXPENSE'!N686","v":{"v":0,"d":"$0.00"}},{"$f":"'3 INCOME & EXPENSE'!O686","v":{"v":0,"d":"$0.00"}},788,{"$f":"'3 INCOME & EXPENSE'!V686","v":100},26000,26100,0]
[null,null,{"$f":"IF('3 INCOME & EXPENSE'!E687=0,\"\",'3 INCOME & EXPENSE'!E687)","v":""},{"$f":"T('3 INCOME & EXPENSE'!G687)","v":""},{"$f":"'3 INCOME & EXPENSE'!M687","v":{"v":0,"d":"0.0"}},{"$f":"'3 INCOME & EXPENSE'!N687","v":{"v":0,"d":"$0.00"}},{"$f":"'3 INCOME & EXPENSE'!O687","v":{"v":0,"d":"$0.00"}},789,{"$f":"'3 INCOME & EXPENSE'!V687","v":100},26000,26100,0]
[null,null,{"$f":"IF('3 INCOME & EXPENSE'!E688=0,\"\",'3 INCOME & EXPENSE'!E688)","v":""},{"$f":"T('3 INCOME & EXPENSE'!G688)","v":""},{"$f":"'3 INCOME & EXPENSE'!M688","v":{"v":0,"d":"0.0"}},{"$f":"'3 INCOME & EXPENSE'!N688","v":{"v":0,"d":"$0.00"}},{"$f":"'3 INCOME & EXPENSE'!O688","v":{"v":0,"d":"$0.00"}},790,{"$f":"'3 INCOME & EXPENSE'!V688","v":100},26000,26100,0]
[null,null,{"$f":"IF('3 INCOME & EXPENSE'!E689=0,\"\",'3 INCOME & EXPENSE'!E689)","v":""},{"$f":"T('3 INCOME & EXPENSE'!G689)","v":""},{"$f":"'3 INCOME & EXPENSE'!M689","v":{"v":0,"d":"0.0"}},{"$f":"'3 INCOME & EXPENSE'!N689","v":{"v":0,"d":"$0.00"}},{"$f":"'3 INCOME & EXPENSE'!O689","v":{"v":0,"d":"$0.00"}},791,{"$f":"'3 INCOME & EXPENSE'!V689","v":100},26000,26100,0]
[null,null,{"$f":"IF('3 INCOME & EXPENSE'!E690=0,\"\",'3 INCOME & EXPENSE'!E690)","v":""},{"$f":"T('3 INCOME & EXPENSE'!G690)","v":""},{"$f":"'3 INCOME & EXPENSE'!M690","v":{"v":0,"d":"0.0"}},{"$f":"'3 INCOME & EXPENSE'!N690","v":{"v":0,"d":"$0.00"}},{"$f":"'3 INCOME & EXPENSE'!O690","v":{"v":0,"d":"$0.00"}},792,{"$f":"'3 INCOME & EXPENSE'!V690","v":100},26000,26100,0]
[null,null,{"$f":"IF('3 INCOME & EXPENSE'!E691=0,\"\",'3 INCOME & EXPENSE'!E691)","v":""},{"$f":"T('3 INCOME & EXPENSE'!G691)","v":""},{"$f":"'3 INCOME & EXPENSE'!M691","v":{"v":0,"d":"0.0"}},{"$f":"'3 INCOME & EXPENSE'!N691","v":{"v":0,"d":"$0.00"}},{"$f":"'3 INCOME & EXPENSE'!O691","v":{"v":0,"d":"$0.00"}},793,{"$f":"'3 INCOME & EXPENSE'!V691","v":100},26000,26100,0]
[null,null,{"$f":"IF('3 INCOME & EXPENSE'!E692=0,\"\",'3 INCOME & EXPENSE'!E692)","v":""},{"$f":"T('3 INCOME & EXPENSE'!G692)","v":""},{"$f":"'3 INCOME & EXPENSE'!M692","v":{"v":0,"d":"0.0"}},{"$f":"'3 INCOME & EXPENSE'!N692","v":{"v":0,"d":"$0.00"}},{"$f":"'3 INCOME & EXPENSE'!O692","v":{"v":0,"d":"$0.00"}},794,{"$f":"'3 INCOME & EXPENSE'!V692","v":100},26000,26100,0]
[null,null,{"$f":"IF('3 INCOME & EXPENSE'!E693=0,\"\",'3 INCOME & EXPENSE'!E693)","v":""},{"$f":"T('3 INCOME & EXPENSE'!G693)","v":""},{"$f":"'3 INCOME & EXPENSE'!M693","v":{"v":0,"d":"0.0"}},{"$f":"'3 INCOME & EXPENSE'!N693","v":{"v":0,"d":"$0.00"}},{"$f":"'3 INCOME & EXPENSE'!O693","v":{"v":0,"d":"$0.00"}},795,{"$f":"'3 INCOME & EXPENSE'!V693","v":100},26000,26100,0]
[null,null,{"$f":"IF('3 INCOME & EXPENSE'!E694=0,\"\",'3 INCOME & EXPENSE'!E694)","v":""},{"$f":"T('3 INCOME & EXPENSE'!G694)","v":""},{"$f":"'3 INCOME & EXPENSE'!M694","v":{"v":0,"d":"0.0"}},{"$f":"'3 INCOME & EXPENSE'!N694","v":{"v":0,"d":"$0.00"}},{"$f":"'3 INCOME & EXPENSE'!O694","v":{"v":0,"d":"$0.00"}},796,{"$f":"'3 INCOME & EXPENSE'!V694","v":100},26000,26100,0]
[null,null,{"$f":"IF('3 INCOME & EXPENSE'!E695=0,\"\",'3 INCOME & EXPENSE'!E695)","v":""},{"$f":"T('3 INCOME & EXPENSE'!G695)","v":""},{"$f":"'3 INCOME & EXPENSE'!M695","v":{"v":0,"d":"0.0"}},{"$f":"'3 INCOME & EXPENSE'!N695","v":{"v":0,"d":"$0.00"}},{"$f":"'3 INCOME & EXPENSE'!O695","v":{"v":0,"d":"$0.00"}},797,{"$f":"'3 INCOME & EXPENSE'!V695","v":100},26000,26100,0]
[null,null,{"$f":"IF('3 INCOME & EXPENSE'!E696=0,\"\",'3 INCOME & EXPENSE'!E696)","v":""},{"$f":"T('3 INCOME & EXPENSE'!G696)","v":""},{"$f":"'3 INCOME & EXPENSE'!M696","v":{"v":0,"d":"0.0"}},{"$f":"'3 INCOME & EXPENSE'!N696","v":{"v":0,"d":"$0.00"}},{"$f":"'3 INCOME & EXPENSE'!O696","v":{"v":0,"d":"$0.00"}},798,{"$f":"'3 INCOME & EXPENSE'!V696","v":100},26000,26100,0]
[null,null,{"$f":"IF('3 INCOME & EXPENSE'!E697=0,\"\",'3 INCOME & EXPENSE'!E697)","v":""},{"$f":"T('3 INCOME & EXPENSE'!G697)","v":""},{"$f":"'3 INCOME & EXPENSE'!M697","v":{"v":0,"d":"0.0"}},{"$f":"'3 INCOME & EXPENSE'!N697","v":{"v":0,"d":"$0.00"}},{"$f":"'3 INCOME & EXPENSE'!O697","v":{"v":0,"d":"$0.00"}},799,{"$f":"'3 INCOME & EXPENSE'!V697","v":100},26000,26100,0]
[null,null,{"$f":"IF('3 INCOME & EXPENSE'!E698=0,\"\",'3 INCOME & EXPENSE'!E698)","v":""},{"$f":"T('3 INCOME & EXPENSE'!G698)","v":""},{"$f":"'3 INCOME & EXPENSE'!M698","v":{"v":0,"d":"0.0"}},{"$f":"'3 INCOME & EXPENSE'!N698","v":{"v":0,"d":"$0.00"}},{"$f":"'3 INCOME & EXPENSE'!O698","v":{"v":0,"d":"$0.00"}},800,{"$f":"'3 INCOME & EXPENSE'!V698","v":100},26000,26100,0]
[null,null,{"$f":"IF('3 INCOME & EXPENSE'!E699=0,\"\",'3 INCOME & EXPENSE'!E699)","v":""},{"$f":"T('3 INCOME & EXPENSE'!G699)","v":""},{"$f":"'3 INCOME & EXPENSE'!M699","v":{"v":0,"d":"0.0"}},{"$f":"'3 INCOME & EXPENSE'!N699","v":{"v":0,"d":"$0.00"}},{"$f":"'3 INCOME & EXPENSE'!O699","v":{"v":0,"d":"$0.00"}},801,{"$f":"'3 INCOME & EXPENSE'!V699","v":100},26000,26100,0]
[null,null,{"$f":"IF('3 INCOME & EXPENSE'!E700=0,\"\",'3 INCOME & EXPENSE'!E700)","v":""},{"$f":"T('3 INCOME & EXPENSE'!G700)","v":""},{"$f":"'3 INCOME & EXPENSE'!M700","v":{"v":0,"d":"0.0"}},{"$f":"'3 INCOME & EXPENSE'!N700","v":{"v":0,"d":"$0.00"}},{"$f":"'3 INCOME & EXPENSE'!O700","v":{"v":0,"d":"$0.00"}},802,{"$f":"'3 INCOME & EXPENSE'!V700","v":100},26000,26100,0]
[null,null,{"$f":"IF('3 INCOME & EXPENSE'!E701=0,\"\",'3 INCOME & EXPENSE'!E701)","v":""},{"$f":"T('3 INCOME & EXPENSE'!G701)","v":""},{"$f":"'3 INCOME & EXPENSE'!M701","v":{"v":0,"d":"0.0"}},{"$f":"'3 INCOME & EXPENSE'!N701","v":{"v":0,"d":"$0.00"}},{"$f":"'3 INCOME & EXPENSE'!O701","v":{"v":0,"d":"$0.00"}},803,{"$f":"'3 INCOME & EXPENSE'!V701","v":100},26000,26100,0]
[null,null,{"$f":"IF('3 INCOME & EXPENSE'!E702=0,\"\",'3 INCOME & EXPENSE'!E702)","v":""},{"$f":"T('3 INCOME & EXPENSE'!G702)","v":""},{"$f":"'3 INCOME & EXPENSE'!M702","v":{"v":0,"d":"0.0"}},{"$f":"'3 INCOME & EXPENSE'!N702","v":{"v":0,"d":"$0.00"}},{"$f":"'3 INCOME & EXPENSE'!O702","v":{"v":0,"d":"$0.00"}},804,{"$f":"'3 INCOME & EXPENSE'!V702","v":100},26000,26100,0]
[null,null,{"$f":"IF('3 INCOME & EXPENSE'!E703=0,\"\",'3 INCOME & EXPENSE'!E703)","v":""},{"$f":"T('3 INCOME & EXPENSE'!G703)","v":""},{"$f":"'3 INCOME & EXPENSE'!M703","v":{"v":0,"d":"0.0"}},{"$f":"'3 INCOME & EXPENSE'!N703","v":{"v":0,"d":"$0.00"}},{"$f":"'3 INCOME & EXPENSE'!O703","v":{"v":0,"d":"$0.00"}},805,{"$f":"'3 INCOME & EXPENSE'!V703","v":100},26000,26100,0]
[null,null,{"$f":"IF('3 INCOME & EXPENSE'!E704=0,\"\",'3 INCOME & EXPENSE'!E704)","v":""},{"$f":"T('3 INCOME & EXPENSE'!G704)","v":""},{"$f":"'3 INCOME & EXPENSE'!M704","v":{"v":0,"d":"0.0"}},{"$f":"'3 INCOME & EXPENSE'!N704","v":{"v":0,"d":"$0.00"}},{"$f":"'3 INCOME & EXPENSE'!O704","v":{"v":0,"d":"$0.00"}},806,{"$f":"'3 INCOME & EXPENSE'!V704","v":100},26000,26100,0]
[null,null,{"$f":"IF('3 INCOME & EXPENSE'!E705=0,\"\",'3 INCOME & EXPENSE'!E705)","v":""},{"$f":"T('3 INCOME & EXPENSE'!G705)","v":""},{"$f":"'3 INCOME & EXPENSE'!M705","v":{"v":0,"d":"0.0"}},{"$f":"'3 INCOME & EXPENSE'!N705","v":{"v":0,"d":"$0.00"}},{"$f":"'3 INCOME & EXPENSE'!O705","v":{"v":0,"d":"$0.00"}},807,{"$f":"'3 INCOME & EXPENSE'!V705","v":100},26000,26100,0]
[null,null,{"$f":"IF('3 INCOME & EXPENSE'!E706=0,\"\",'3 INCOME & EXPENSE'!E706)","v":""},{"$f":"T('3 INCOME & EXPENSE'!G706)","v":""},{"$f":"'3 INCOME & EXPENSE'!M706","v":{"v":0,"d":"0.0"}},{"$f":"'3 INCOME & EXPENSE'!N706","v":{"v":0,"d":"$0.00"}},{"$f":"'3 INCOME & EXPENSE'!O706","v":{"v":0,"d":"$0.00"}},808,{"$f":"'3 INCOME & EXPENSE'!V706","v":100},26000,{"$f":"I819+J819","v":26100},0]
[null,null,{"$f":"IF('3 INCOME & EXPENSE'!E707=0,\"\",'3 INCOME & EXPENSE'!E707)","v":""},{"$f":"T('3 INCOME & EXPENSE'!G707)","v":""},{"$f":"'3 INCOME & EXPENSE'!M707","v":{"v":0,"d":"0.0"}},{"$f":"'3 INCOME & EXPENSE'!N707","v":{"v":0,"d":"$0.00"}},{"$f":"'3 INCOME & EXPENSE'!O707","v":{"v":0,"d":"$0.00"}},809,{"$f":"'3 INCOME & EXPENSE'!V707","v":100},26000,26100,0]
[null,null,{"$f":"IF('3 INCOME & EXPENSE'!E708=0,\"\",'3 INCOME & EXPENSE'!E708)","v":""},{"$f":"T('3 INCOME & EXPENSE'!G708)","v":""},{"$f":"'3 INCOME & EXPENSE'!M708","v":{"v":0,"d":"0.0"}},{"$f":"'3 INCOME & EXPENSE'!N708","v":{"v":0,"d":"$0.00"}},{"$f":"'3 INCOME & EXPENSE'!O708","v":{"v":0,"d":"$0.00"}},810,{"$f":"'3 INCOME & EXPENSE'!V708","v":100},26000,26100,0]
[null,null,{"$f":"IF('3 INCOME & EXPENSE'!E709=0,\"\",'3 INCOME & EXPENSE'!E709)","v":""},{"$f":"T('3 INCOME & EXPENSE'!G709)","v":""},{"$f":"'3 INCOME & EXPENSE'!M709","v":{"v":0,"d":"0.0"}},{"$f":"'3 INCOME & EXPENSE'!N709","v":{"v":0,"d":"$0.00"}},{"$f":"'3 INCOME & EXPENSE'!O709","v":{"v":0,"d":"$0.00"}},811,{"$f":"'3 INCOME & EXPENSE'!V709","v":100},26000,26100,0]
[null,null,{"$f":"IF('3 INCOME & EXPENSE'!E710=0,\"\",'3 INCOME & EXPENSE'!E710)","v":""},{"$f":"T('3 INCOME & EXPENSE'!G710)","v":""},{"$f":"'3 INCOME & EXPENSE'!M710","v":{"v":0,"d":"0.0"}},{"$f":"'3 INCOME & EXPENSE'!N710","v":{"v":0,"d":"$0.00"}},{"$f":"'3 INCOME & EXPENSE'!O710","v":{"v":0,"d":"$0.00"}},812,{"$f":"'3 INCOME & EXPENSE'!V710","v":100},26000,26100,0]
[null,null,{"$f":"IF('3 INCOME & EXPENSE'!E711=0,\"\",'3 INCOME & EXPENSE'!E711)","v":""},{"$f":"T('3 INCOME & EXPENSE'!G711)","v":""},{"$f":"'3 INCOME & EXPENSE'!M711","v":{"v":0,"d":"0.0"}},{"$f":"'3 INCOME & EXPENSE'!N711","v":{"v":0,"d":"$0.00"}},{"$f":"'3 INCOME & EXPENSE'!O711","v":{"v":0,"d":"$0.00"}},813,{"$f":"'3 INCOME & EXPENSE'!V711","v":100},26000,26100,0]
[null,null,{"$f":"IF('3 INCOME & EXPENSE'!E712=0,\"\",'3 INCOME & EXPENSE'!E712)","v":""},{"$f":"T('3 INCOME & EXPENSE'!G712)","v":""},{"$f":"'3 INCOME & EXPENSE'!M712","v":{"v":0,"d":"0.0"}},{"$f":"'3 INCOME & EXPENSE'!N712","v":{"v":0,"d":"$0.00"}},{"$f":"'3 INCOME & EXPENSE'!O712","v":{"v":0,"d":"$0.00"}},814,{"$f":"'3 INCOME & EXPENSE'!V712","v":100},26000,26100,0]
[null,null,{"$f":"IF('3 INCOME & EXPENSE'!E713=0,\"\",'3 INCOME & EXPENSE'!E713)","v":""},{"$f":"T('3 INCOME & EXPENSE'!G713)","v":""},{"$f":"'3 INCOME & EXPENSE'!M713","v":{"v":0,"d":"0.0"}},{"$f":"'3 INCOME & EXPENSE'!N713","v":{"v":0,"d":"$0.00"}},{"$f":"'3 INCOME & EXPENSE'!O713","v":{"v":0,"d":"$0.00"}},815,{"$f":"'3 INCOME & EXPENSE'!V713","v":100},26000,26100,0]
[null,null,{"$f":"IF('3 INCOME & EXPENSE'!E714=0,\"\",'3 INCOME & EXPENSE'!E714)","v":""},{"$f":"T('3 INCOME & EXPENSE'!G714)","v":""},{"$f":"'3 INCOME & EXPENSE'!M714","v":{"v":0,"d":"0.0"}},{"$f":"'3 INCOME & EXPENSE'!N714","v":{"v":0,"d":"$0.00"}},{"$f":"'3 INCOME & EXPENSE'!O714","v":{"v":0,"d":"$0.00"}},816,{"$f":"'3 INCOME & EXPENSE'!V714","v":100},26000,26100,0]
[null,null,{"$f":"IF('3 INCOME & EXPENSE'!E715=0,\"\",'3 INCOME & EXPENSE'!E715)","v":""},{"$f":"T('3 INCOME & EXPENSE'!G715)","v":""},{"$f":"'3 INCOME & EXPENSE'!M715","v":{"v":0,"d":"0.0"}},{"$f":"'3 INCOME & EXPENSE'!N715","v":{"v":0,"d":"$0.00"}},{"$f":"'3 INCOME & EXPENSE'!O715","v":{"v":0,"d":"$0.00"}},817,{"$f":"'3 INCOME & EXPENSE'!V715","v":100},26000,26100,0]
[null,null,{"$f":"IF('3 INCOME & EXPENSE'!E716=0,\"\",'3 INCOME & EXPENSE'!E716)","v":""},{"$f":"T('3 INCOME & EXPENSE'!G716)","v":""},{"$f":"'3 INCOME & EXPENSE'!M716","v":{"v":0,"d":"0.0"}},{"$f":"'3 INCOME & EXPENSE'!N716","v":{"v":0,"d":"$0.00"}},{"$f":"'3 INCOME & EXPENSE'!O716","v":{"v":0,"d":"$0.00"}},818,{"$f":"'3 INCOME & EXPENSE'!V716","v":100},26000,26100,0]
[null,null,{"$f":"IF('3 INCOME & EXPENSE'!E717=0,\"\",'3 INCOME & EXPENSE'!E717)","v":""},{"$f":"T('3 INCOME & EXPENSE'!G717)","v":""},{"$f":"'3 INCOME & EXPENSE'!M717","v":{"v":0,"d":"0.0"}},{"$f":"'3 INCOME & EXPENSE'!N717","v":{"v":0,"d":"$0.00"}},{"$f":"'3 INCOME & EXPENSE'!O717","v":{"v":0,"d":"$0.00"}},819,{"$f":"'3 INCOME & EXPENSE'!V717","v":100},26000,26100,0]
[null,null,{"$f":"IF('3 INCOME & EXPENSE'!E718=0,\"\",'3 INCOME & EXPENSE'!E718)","v":""},{"$f":"T('3 INCOME & EXPENSE'!G718)","v":""},{"$f":"'3 INCOME & EXPENSE'!M718","v":{"v":0,"d":"0.0"}},{"$f":"'3 INCOME & EXPENSE'!N718","v":{"v":0,"d":"$0.00"}},{"$f":"'3 INCOME & EXPENSE'!O718","v":{"v":0,"d":"$0.00"}},820,{"$f":"'3 INCOME & EXPENSE'!V718","v":100},{"$f":"VLOOKUP(I831,$I$880:$J$905,2)","v":26000},26100,{"$f":"K831*E831","v":0}]
[null,null,{"$f":"IF('3 INCOME & EXPENSE'!E719=0,\"\",'3 INCOME & EXPENSE'!E719)","v":""},{"$f":"T('3 INCOME & EXPENSE'!G719)","v":""},{"$f":"'3 INCOME & EXPENSE'!M719","v":{"v":0,"d":"0.0"}},{"$f":"'3 INCOME & EXPENSE'!N719","v":{"v":0,"d":"$0.00"}},{"$f":"'3 INCOME & EXPENSE'!O719","v":{"v":0,"d":"$0.00"}},821,{"$f":"'3 INCOME & EXPENSE'!V719","v":100},26000,26100,0]
[null,null,{"$f":"IF('3 INCOME & EXPENSE'!E720=0,\"\",'3 INCOME & EXPENSE'!E720)","v":""},{"$f":"T('3 INCOME & EXPENSE'!G720)","v":""},{"$f":"'3 INCOME & EXPENSE'!M720","v":{"v":0,"d":"0.0"}},{"$f":"'3 INCOME & EXPENSE'!N720","v":{"v":0,"d":"$0.00"}},{"$f":"'3 INCOME & EXPENSE'!O720","v":{"v":0,"d":"$0.00"}},822,{"$f":"'3 INCOME & EXPENSE'!V720","v":100},26000,26100,0]
[null,null,{"$f":"IF('3 INCOME & EXPENSE'!E721=0,\"\",'3 INCOME & EXPENSE'!E721)","v":""},{"$f":"T('3 INCOME & EXPENSE'!G721)","v":""},{"$f":"'3 INCOME & EXPENSE'!M721","v":{"v":0,"d":"0.0"}},{"$f":"'3 INCOME & EXPENSE'!N721","v":{"v":0,"d":"$0.00"}},{"$f":"'3 INCOME & EXPENSE'!O721","v":{"v":0,"d":"$0.00"}},823,{"$f":"'3 INCOME & EXPENSE'!V721","v":100},26000,26100,0]
[null,null,{"$f":"IF('3 INCOME & EXPENSE'!E722=0,\"\",'3 INCOME & EXPENSE'!E722)","v":""},{"$f":"T('3 INCOME & EXPENSE'!G722)","v":""},{"$f":"'3 INCOME & EXPENSE'!M722","v":{"v":0,"d":"0.0"}},{"$f":"'3 INCOME & EXPENSE'!N722","v":{"v":0,"d":"$0.00"}},{"$f":"'3 INCOME & EXPENSE'!O722","v":{"v":0,"d":"$0.00"}},824,{"$f":"'3 INCOME & EXPENSE'!V722","v":100},26000,26100,0]
[null,null,{"$f":"IF('3 INCOME & EXPENSE'!E723=0,\"\",'3 INCOME & EXPENSE'!E723)","v":""},{"$f":"T('3 INCOME & EXPENSE'!G723)","v":""},{"$f":"'3 INCOME & EXPENSE'!M723","v":{"v":0,"d":"0.0"}},{"$f":"'3 INCOME & EXPENSE'!N723","v":{"v":0,"d":"$0.00"}},{"$f":"'3 INCOME & EXPENSE'!O723","v":{"v":0,"d":"$0.00"}},825,{"$f":"'3 INCOME & EXPENSE'!V723","v":100},26000,26100,0]
[null,null,{"$f":"IF('3 INCOME & EXPENSE'!E724=0,\"\",'3 INCOME & EXPENSE'!E724)","v":""},{"$f":"T('3 INCOME & EXPENSE'!G724)","v":""},{"$f":"'3 INCOME & EXPENSE'!M724","v":{"v":0,"d":"0.0"}},{"$f":"'3 INCOME & EXPENSE'!N724","v":{"v":0,"d":"$0.00"}},{"$f":"'3 INCOME & EXPENSE'!O724","v":{"v":0,"d":"$0.00"}},826,{"$f":"'3 INCOME & EXPENSE'!V724","v":100},26000,26100,0]
[null,null,{"$f":"IF('3 INCOME & EXPENSE'!E725=0,\"\",'3 INCOME & EXPENSE'!E725)","v":""},{"$f":"T('3 INCOME & EXPENSE'!G725)","v":""},{"$f":"'3 INCOME & EXPENSE'!M725","v":{"v":0,"d":"0.0"}},{"$f":"'3 INCOME & EXPENSE'!N725","v":{"v":0,"d":"$0.00"}},{"$f":"'3 INCOME & EXPENSE'!O725","v":{"v":0,"d":"$0.00"}},827,{"$f":"'3 INCOME & EXPENSE'!V725","v":100},26000,26100,0]
[null,null,{"$f":"IF('3 INCOME & EXPENSE'!E726=0,\"\",'3 INCOME & EXPENSE'!E726)","v":""},{"$f":"T('3 INCOME & EXPENSE'!G726)","v":""},{"$f":"'3 INCOME & EXPENSE'!M726","v":{"v":0,"d":"0.0"}},{"$f":"'3 INCOME & EXPENSE'!N726","v":{"v":0,"d":"$0.00"}},{"$f":"'3 INCOME & EXPENSE'!O726","v":{"v":0,"d":"$0.00"}},828,{"$f":"'3 INCOME & EXPENSE'!V726","v":100},26000,26100,0]
[null,null,{"$f":"IF('3 INCOME & EXPENSE'!E727=0,\"\",'3 INCOME & EXPENSE'!E727)","v":""},{"$f":"T('3 INCOME & EXPENSE'!G727)","v":""},{"$f":"'3 INCOME & EXPENSE'!M727","v":{"v":0,"d":"0.0"}},{"$f":"'3 INCOME & EXPENSE'!N727","v":{"v":0,"d":"$0.00"}},{"$f":"'3 INCOME & EXPENSE'!O727","v":{"v":0,"d":"$0.00"}},829,{"$f":"'3 INCOME & EXPENSE'!V727","v":100},26000,26100,0]
[null,null,{"$f":"IF('3 INCOME & EXPENSE'!E728=0,\"\",'3 INCOME & EXPENSE'!E728)","v":""},{"$f":"T('3 INCOME & EXPENSE'!G728)","v":""},{"$f":"'3 INCOME & EXPENSE'!M728","v":{"v":0,"d":"0.0"}},{"$f":"'3 INCOME & EXPENSE'!N728","v":{"v":0,"d":"$0.00"}},{"$f":"'3 INCOME & EXPENSE'!O728","v":{"v":0,"d":"$0.00"}},830,{"$f":"'3 INCOME & EXPENSE'!V728","v":100},26000,26100,0]
[null,null,{"$f":"IF('3 INCOME & EXPENSE'!E729=0,\"\",'3 INCOME & EXPENSE'!E729)","v":""},{"$f":"T('3 INCOME & EXPENSE'!G729)","v":""},{"$f":"'3 INCOME & EXPENSE'!M729","v":{"v":0,"d":"0.0"}},{"$f":"'3 INCOME & EXPENSE'!N729","v":{"v":0,"d":"$0.00"}},{"$f":"'3 INCOME & EXPENSE'!O729","v":{"v":0,"d":"$0.00"}},831,{"$f":"'3 INCOME & EXPENSE'!V729","v":100},26000,26100,0]
[null,null,{"$f":"IF('3 INCOME & EXPENSE'!E730=0,\"\",'3 INCOME & EXPENSE'!E730)","v":""},{"$f":"T('3 INCOME & EXPENSE'!G730)","v":""},{"$f":"'3 INCOME & EXPENSE'!M730","v":{"v":0,"d":"0.0"}},{"$f":"'3 INCOME & EXPENSE'!N730","v":{"v":0,"d":"$0.00"}},{"$f":"'3 INCOME & EXPENSE'!O730","v":{"v":0,"d":"$0.00"}},832,{"$f":"'3 INCOME & EXPENSE'!V730","v":100},26000,26100,0]
[null,null,{"$f":"IF('3 INCOME & EXPENSE'!E731=0,\"\",'3 INCOME & EXPENSE'!E731)","v":""},{"$f":"T('3 INCOME & EXPENSE'!G731)","v":""},{"$f":"'3 INCOME & EXPENSE'!M731","v":{"v":0,"d":"0.0"}},{"$f":"'3 INCOME & EXPENSE'!N731","v":{"v":0,"d":"$0.00"}},{"$f":"'3 INCOME & EXPENSE'!O731","v":{"v":0,"d":"$0.00"}},833,{"$f":"'3 INCOME & EXPENSE'!V731","v":100},26000,26100,0]
[null,null,{"$f":"IF('3 INCOME & EXPENSE'!E732=0,\"\",'3 INCOME & EXPENSE'!E732)","v":""},{"$f":"T('3 INCOME & EXPENSE'!G732)","v":""},{"$f":"'3 INCOME & EXPENSE'!M732","v":{"v":0,"d":"0.0"}},{"$f":"'3 INCOME & EXPENSE'!N732","v":{"v":0,"d":"$0.00"}},{"$f":"'3 INCOME & EXPENSE'!O732","v":{"v":0,"d":"$0.00"}},834,{"$f":"'3 INCOME & EXPENSE'!V732","v":100},26000,26100,0]
[null,null,{"$f":"IF('3 INCOME & EXPENSE'!E733=0,\"\",'3 INCOME & EXPENSE'!E733)","v":""},{"$f":"T('3 INCOME & EXPENSE'!G733)","v":""},{"$f":"'3 INCOME & EXPENSE'!M733","v":{"v":0,"d":"0.0"}},{"$f":"'3 INCOME & EXPENSE'!N733","v":{"v":0,"d":"$0.00"}},{"$f":"'3 INCOME & EXPENSE'!O733","v":{"v":0,"d":"$0.00"}},835,{"$f":"'3 INCOME & EXPENSE'!V733","v":100},26000,26100,0]
[null,null,{"$f":"IF('3 INCOME & EXPENSE'!E734=0,\"\",'3 INCOME & EXPENSE'!E734)","v":""},{"$f":"T('3 INCOME & EXPENSE'!G734)","v":""},{"$f":"'3 INCOME & EXPENSE'!M734","v":{"v":0,"d":"0.0"}},{"$f":"'3 INCOME & EXPENSE'!N734","v":{"v":0,"d":"$0.00"}},{"$f":"'3 INCOME & EXPENSE'!O734","v":{"v":0,"d":"$0.00"}},836,{"$f":"'3 INCOME & EXPENSE'!V734","v":100},26000,26100,0]
[null,null,{"$f":"IF('3 INCOME & EXPENSE'!E735=0,\"\",'3 INCOME & EXPENSE'!E735)","v":""},{"$f":"T('3 INCOME & EXPENSE'!G735)","v":""},{"$f":"'3 INCOME & EXPENSE'!M735","v":{"v":0,"d":"0.0"}},{"$f":"'3 INCOME & EXPENSE'!N735","v":{"v":0,"d":"$0.00"}},{"$f":"'3 INCOME & EXPENSE'!O735","v":{"v":0,"d":"$0.00"}},837,{"$f":"'3 INCOME & EXPENSE'!V735","v":100},26000,26100,0]
[null,null,{"$f":"IF('3 INCOME & EXPENSE'!E736=0,\"\",'3 INCOME & EXPENSE'!E736)","v":""},{"$f":"T('3 INCOME & EXPENSE'!G736)","v":""},{"$f":"'3 INCOME & EXPENSE'!M736","v":{"v":0,"d":"0.0"}},{"$f":"'3 INCOME & EXPENSE'!N736","v":{"v":0,"d":"$0.00"}},{"$f":"'3 INCOME & EXPENSE'!O736","v":{"v":0,"d":"$0.00"}},838,{"$f":"'3 INCOME & EXPENSE'!V736","v":100},26000,26100,0]
[null,null,{"$f":"IF('3 INCOME & EXPENSE'!E737=0,\"\",'3 INCOME & EXPENSE'!E737)","v":""},{"$f":"T('3 INCOME & EXPENSE'!G737)","v":""},{"$f":"'3 INCOME & EXPENSE'!M737","v":{"v":0,"d":"0.0"}},{"$f":"'3 INCOME & EXPENSE'!N737","v":{"v":0,"d":"$0.00"}},{"$f":"'3 INCOME & EXPENSE'!O737","v":{"v":0,"d":"$0.00"}},839,{"$f":"'3 INCOME & EXPENSE'!V737","v":100},26000,26100,0]
[null,null,{"$f":"IF('3 INCOME & EXPENSE'!E738=0,\"\",'3 INCOME & EXPENSE'!E738)","v":""},{"$f":"T('3 INCOME & EXPENSE'!G738)","v":""},{"$f":"'3 INCOME & EXPENSE'!M738","v":{"v":0,"d":"0.0"}},{"$f":"'3 INCOME & EXPENSE'!N738","v":{"v":0,"d":"$0.00"}},{"$f":"'3 INCOME & EXPENSE'!O738","v":{"v":0,"d":"$0.00"}},840,{"$f":"'3 INCOME & EXPENSE'!V738","v":100},26000,26100,0]
[null,null,{"$f":"IF('3 INCOME & EXPENSE'!E739=0,\"\",'3 INCOME & EXPENSE'!E739)","v":""},{"$f":"T('3 INCOME & EXPENSE'!G739)","v":""},{"$f":"'3 INCOME & EXPENSE'!M739","v":{"v":0,"d":"0.0"}},{"$f":"'3 INCOME & EXPENSE'!N739","v":{"v":0,"d":"$0.00"}},{"$f":"'3 INCOME & EXPENSE'!O739","v":{"v":0,"d":"$0.00"}},841,{"$f":"'3 INCOME & EXPENSE'!V739","v":100},26000,26100,0]
[null,null,{"$f":"IF('3 INCOME & EXPENSE'!E740=0,\"\",'3 INCOME & EXPENSE'!E740)","v":""},{"$f":"T('3 INCOME & EXPENSE'!G740)","v":""},{"$f":"'3 INCOME & EXPENSE'!M740","v":{"v":0,"d":"0.0"}},{"$f":"'3 INCOME & EXPENSE'!N740","v":{"v":0,"d":"$0.00"}},{"$f":"'3 INCOME & EXPENSE'!O740","v":{"v":0,"d":"$0.00"}},842,{"$f":"'3 INCOME & EXPENSE'!V740","v":100},26000,26100,0]
[null,null,{"$f":"IF('3 INCOME & EXPENSE'!E741=0,\"\",'3 INCOME & EXPENSE'!E741)","v":""},{"$f":"T('3 INCOME & EXPENSE'!G741)","v":""},{"$f":"'3 INCOME & EXPENSE'!M741","v":{"v":0,"d":"0.0"}},{"$f":"'3 INCOME & EXPENSE'!N741","v":{"v":0,"d":"$0.00"}},{"$f":"'3 INCOME & EXPENSE'!O741","v":{"v":0,"d":"$0.00"}},843,{"$f":"'3 INCOME & EXPENSE'!V741","v":100},26000,26100,0]
[null,null,{"$f":"IF('3 INCOME & EXPENSE'!E742=0,\"\",'3 INCOME & EXPENSE'!E742)","v":""},{"$f":"T('3 INCOME & EXPENSE'!G742)","v":""},{"$f":"'3 INCOME & EXPENSE'!M742","v":{"v":0,"d":"0.0"}},{"$f":"'3 INCOME & EXPENSE'!N742","v":{"v":0,"d":"$0.00"}},{"$f":"'3 INCOME & EXPENSE'!O742","v":{"v":0,"d":"$0.00"}},844,{"$f":"'3 INCOME & EXPENSE'!V742","v":100},26000,26100,0]
[null,null,{"$f":"IF('3 INCOME & EXPENSE'!E743=0,\"\",'3 INCOME & EXPENSE'!E743)","v":""},{"$f":"T('3 INCOME & EXPENSE'!G743)","v":""},{"$f":"'3 INCOME & EXPENSE'!M743","v":{"v":0,"d":"0.0"}},{"$f":"'3 INCOME & EXPENSE'!N743","v":{"v":0,"d":"$0.00"}},{"$f":"'3 INCOME & EXPENSE'!O743","v":{"v":0,"d":"$0.00"}},845,{"$f":"'3 INCOME & EXPENSE'!V743","v":100},26000,26100,0]
[null,null,{"$f":"IF('3 INCOME & EXPENSE'!E744=0,\"\",'3 INCOME & EXPENSE'!E744)","v":""},{"$f":"T('3 INCOME & EXPENSE'!G744)","v":""},{"$f":"'3 INCOME & EXPENSE'!M744","v":{"v":0,"d":"0.0"}},{"$f":"'3 INCOME & EXPENSE'!N744","v":{"v":0,"d":"$0.00"}},{"$f":"'3 INCOME & EXPENSE'!O744","v":{"v":0,"d":"$0.00"}},846,{"$f":"'3 INCOME & EXPENSE'!V744","v":100},26000,26100,0]
[null,null,{"$f":"IF('3 INCOME & EXPENSE'!E745=0,\"\",'3 INCOME & EXPENSE'!E745)","v":""},{"$f":"T('3 INCOME & EXPENSE'!G745)","v":""},{"$f":"'3 INCOME & EXPENSE'!M745","v":{"v":0,"d":"0.0"}},{"$f":"'3 INCOME & EXPENSE'!N745","v":{"v":0,"d":"$0.00"}},{"$f":"'3 INCOME & EXPENSE'!O745","v":{"v":0,"d":"$0.00"}},847,{"$f":"'3 INCOME & EXPENSE'!V745","v":100},26000,26100,0]
[null,null,{"$f":"IF('3 INCOME & EXPENSE'!E746=0,\"\",'3 INCOME & EXPENSE'!E746)","v":""},{"$f":"T('3 INCOME & EXPENSE'!G746)","v":""},{"$f":"'3 INCOME & EXPENSE'!M746","v":{"v":0,"d":"0.0"}},{"$f":"'3 INCOME & EXPENSE'!N746","v":{"v":0,"d":"$0.00"}},{"$f":"'3 INCOME & EXPENSE'!O746","v":{"v":0,"d":"$0.00"}},848,{"$f":"'3 INCOME & EXPENSE'!V746","v":100},26000,26100,0]
[null,null,{"$f":"IF('3 INCOME & EXPENSE'!E747=0,\"\",'3 INCOME & EXPENSE'!E747)","v":""},{"$f":"T('3 INCOME & EXPENSE'!G747)","v":""},{"$f":"'3 INCOME & EXPENSE'!M747","v":{"v":0,"d":"0.0"}},{"$f":"'3 INCOME & EXPENSE'!N747","v":{"v":0,"d":"$0.00"}},{"$f":"'3 INCOME & EXPENSE'!O747","v":{"v":0,"d":"$0.00"}},849,{"$f":"'3 INCOME & EXPENSE'!V747","v":100},26000,26100,0]
[null,null,{"$f":"IF('3 INCOME & EXPENSE'!E748=0,\"\",'3 INCOME & EXPENSE'!E748)","v":""},{"$f":"T('3 INCOME & EXPENSE'!G748)","v":""},{"$f":"'3 INCOME & EXPENSE'!M748","v":{"v":0,"d":"0.0"}},{"$f":"'3 INCOME & EXPENSE'!N748","v":{"v":0,"d":"$0.00"}},{"$f":"'3 INCOME & EXPENSE'!O748","v":{"v":0,"d":"$0.00"}},850,{"$f":"'3 INCOME & EXPENSE'!V748","v":100},26000,26100,0]
[null,null,{"$f":"IF('3 INCOME & EXPENSE'!E749=0,\"\",'3 INCOME & EXPENSE'!E749)","v":""},{"$f":"T('3 INCOME & EXPENSE'!G749)","v":""},{"$f":"'3 INCOME & EXPENSE'!M749","v":{"v":0,"d":"0.0"}},{"$f":"'3 INCOME & EXPENSE'!N749","v":{"v":0,"d":"$0.00"}},{"$f":"'3 INCOME & EXPENSE'!O749","v":{"v":0,"d":"$0.00"}},851,{"$f":"'3 INCOME & EXPENSE'!V749","v":100},26000,26100,0]
[null,null,{"$f":"IF('3 INCOME & EXPENSE'!E750=0,\"\",'3 INCOME & EXPENSE'!E750)","v":""},{"$f":"T('3 INCOME & EXPENSE'!G750)","v":""},{"$f":"'3 INCOME & EXPENSE'!M750","v":{"v":0,"d":"0.0"}},{"$f":"'3 INCOME & EXPENSE'!N750","v":{"v":0,"d":"$0.00"}},{"$f":"'3 INCOME & EXPENSE'!O750","v":{"v":0,"d":"$0.00"}},852,{"$f":"'3 INCOME & EXPENSE'!V750","v":100},26000,26100,0]
[null,null,{"$f":"IF('3 INCOME & EXPENSE'!E751=0,\"\",'3 INCOME & EXPENSE'!E751)","v":""},{"$f":"T('3 INCOME & EXPENSE'!G751)","v":""},{"$f":"'3 INCOME & EXPENSE'!M751","v":{"v":0,"d":"0.0"}},{"$f":"'3 INCOME & EXPENSE'!N751","v":{"v":0,"d":"$0.00"}},{"$f":"'3 INCOME & EXPENSE'!O751","v":{"v":0,"d":"$0.00"}},853,{"$f":"'3 INCOME & EXPENSE'!V751","v":100},26000,26100,0]
[null,null,{"$f":"IF('3 INCOME & EXPENSE'!E752=0,\"\",'3 INCOME & EXPENSE'!E752)","v":""},{"$f":"T('3 INCOME & EXPENSE'!G752)","v":""},{"$f":"'3 INCOME & EXPENSE'!M752","v":{"v":0,"d":"0.0"}},{"$f":"'3 INCOME & EXPENSE'!N752","v":{"v":0,"d":"$0.00"}},{"$f":"'3 INCOME & EXPENSE'!O752","v":{"v":0,"d":"$0.00"}},854,{"$f":"'3 INCOME & EXPENSE'!V752","v":100},26000,26100,0]
[null,null,{"$f":"IF('3 INCOME & EXPENSE'!E753=0,\"\",'3 INCOME & EXPENSE'!E753)","v":""},{"$f":"T('3 INCOME & EXPENSE'!G753)","v":""},{"$f":"'3 INCOME & EXPENSE'!M753","v":{"v":0,"d":"0.0"}},{"$f":"'3 INCOME & EXPENSE'!N753","v":{"v":0,"d":"$0.00"}},{"$f":"'3 INCOME & EXPENSE'!O753","v":{"v":0,"d":"$0.00"}},855,{"$f":"'3 INCOME & EXPENSE'!V753","v":100},26000,26100,0]
[null,null,{"$f":"IF('3 INCOME & EXPENSE'!E754=0,\"\",'3 INCOME & EXPENSE'!E754)","v":""},{"$f":"T('3 INCOME & EXPENSE'!G754)","v":""},{"$f":"'3 INCOME & EXPENSE'!M754","v":{"v":0,"d":"0.0"}},{"$f":"'3 INCOME & EXPENSE'!N754","v":{"v":0,"d":"$0.00"}},{"$f":"'3 INCOME & EXPENSE'!O754","v":{"v":0,"d":"$0.00"}},856,{"$f":"'3 INCOME & EXPENSE'!V754","v":100},26000,26100,0]
[null,null,{"$f":"IF('3 INCOME & EXPENSE'!E755=0,\"\",'3 INCOME & EXPENSE'!E755)","v":""},{"$f":"T('3 INCOME & EXPENSE'!G755)","v":""},{"$f":"'3 INCOME & EXPENSE'!M755","v":{"v":0,"d":"0.0"}},{"$f":"'3 INCOME & EXPENSE'!N755","v":{"v":0,"d":"$0.00"}},{"$f":"'3 INCOME & EXPENSE'!O755","v":{"v":0,"d":"$0.00"}},857,{"$f":"'3 INCOME & EXPENSE'!V755","v":100},26000,26100,0]
[null,null,{"$f":"IF('3 INCOME & EXPENSE'!E756=0,\"\",'3 INCOME & EXPENSE'!E756)","v":""},{"$f":"T('3 INCOME & EXPENSE'!G756)","v":""},{"$f":"'3 INCOME & EXPENSE'!M756","v":{"v":0,"d":"0.0"}},{"$f":"'3 INCOME & EXPENSE'!N756","v":{"v":0,"d":"$0.00"}},{"$f":"'3 INCOME & EXPENSE'!O756","v":{"v":0,"d":"$0.00"}},858,{"$f":"'3 INCOME & EXPENSE'!V756","v":100},26000,26100,0]
[null,null,{"$f":"IF('3 INCOME & EXPENSE'!E757=0,\"\",'3 INCOME & EXPENSE'!E757)","v":""},{"$f":"T('3 INCOME & EXPENSE'!G757)","v":""},{"$f":"'3 INCOME & EXPENSE'!M757","v":{"v":0,"d":"0.0"}},{"$f":"'3 INCOME & EXPENSE'!N757","v":{"v":0,"d":"$0.00"}},{"$f":"'3 INCOME & EXPENSE'!O757","v":{"v":0,"d":"$0.00"}},859,{"$f":"'3 INCOME & EXPENSE'!V757","v":100},26000,26100,0]
[null,null,{"$f":"IF('3 INCOME & EXPENSE'!E758=0,\"\",'3 INCOME & EXPENSE'!E758)","v":""},{"$f":"T('3 INCOME & EXPENSE'!G758)","v":""},{"$f":"'3 INCOME & EXPENSE'!M758","v":{"v":0,"d":"0.0"}},{"$f":"'3 INCOME & EXPENSE'!N758","v":{"v":0,"d":"$0.00"}},{"$f":"'3 INCOME & EXPENSE'!O758","v":{"v":0,"d":"$0.00"}},860,{"$f":"'3 INCOME & EXPENSE'!V758","v":100},26000,26100,0]
[null,null,{"$f":"IF('3 INCOME & EXPENSE'!E759=0,\"\",'3 INCOME & EXPENSE'!E759)","v":""},{"$f":"T('3 INCOME & EXPENSE'!G759)","v":""},{"$f":"'3 INCOME & EXPENSE'!M759","v":{"v":0,"d":"0.0"}},{"$f":"'3 INCOME & EXPENSE'!N759","v":{"v":0,"d":"$0.00"}},{"$f":"'3 INCOME & EXPENSE'!O759","v":{"v":0,"d":"$0.00"}},861,{"$f":"'3 INCOME & EXPENSE'!V759","v":100},26000,26100,0]
[null,null,{"$f":"IF('3 INCOME & EXPENSE'!E760=0,\"\",'3 INCOME & EXPENSE'!E760)","v":""},{"$f":"T('3 INCOME & EXPENSE'!G760)","v":""},{"$f":"'3 INCOME & EXPENSE'!M760","v":{"v":0,"d":"0.0"}},{"$f":"'3 INCOME & EXPENSE'!N760","v":{"v":0,"d":"$0.00"}},{"$f":"'3 INCOME & EXPENSE'!O760","v":{"v":0,"d":"$0.00"}},862,{"$f":"'3 INCOME & EXPENSE'!V760","v":100},26000,26100,0]
[null,null,{"$f":"IF('3 INCOME & EXPENSE'!E761=0,\"\",'3 INCOME & EXPENSE'!E761)","v":""},{"$f":"T('3 INCOME & EXPENSE'!G761)","v":""},{"$f":"'3 INCOME & EXPENSE'!M761","v":{"v":0,"d":"0.0"}},{"$f":"'3 INCOME & EXPENSE'!N761","v":{"v":0,"d":"$0.00"}},{"$f":"'3 INCOME & EXPENSE'!O761","v":{"v":0,"d":"$0.00"}},863,{"$f":"'3 INCOME & EXPENSE'!V761","v":100},26000,26100,0]
[null,null,{"$f":"IF('3 INCOME & EXPENSE'!E762=0,\"\",'3 INCOME & EXPENSE'!E762)","v":""},{"$f":"T('3 INCOME & EXPENSE'!G762)","v":""},{"$f":"'3 INCOME & EXPENSE'!M762","v":{"v":0,"d":"0.0"}},{"$f":"'3 INCOME & EXPENSE'!N762","v":{"v":0,"d":"$0.00"}},{"$f":"'3 INCOME & EXPENSE'!O762","v":{"v":0,"d":"$0.00"}},864,{"$f":"'3 INCOME & EXPENSE'!V762","v":100},26000,26100,0]
[null,null,{"$f":"IF('3 INCOME & EXPENSE'!E763=0,\"\",'3 INCOME & EXPENSE'!E763)","v":""},{"$f":"T('3 INCOME & EXPENSE'!G763)","v":""},{"$f":"'3 INCOME & EXPENSE'!M763","v":{"v":0,"d":"0.0"}},{"$f":"'3 INCOME & EXPENSE'!N763","v":{"v":0,"d":"$0.00"}},{"$f":"'3 INCOME & EXPENSE'!O763","v":{"v":0,"d":"$0.00"}},865,{"$f":"'3 INCOME & EXPENSE'!V763","v":100},26000,26100,0]
[{"$nulls":5},"TOTAL EXPENSES",{"$f":"Total_Investment","v":{"v":76902.87999999999,"d":"$76,902.88"}},866,101,26000,26101,{"$f":"IF(G877>0,1,0)","v":1}]
[null,null,"© 2016 by Houseflippingspreadsheet.com. All rights reserved"]
[]
[{"$nulls":8},1,1000,1,{"$f":"'EXPENSE DATABASE'!E41","v":"HFS REI Checking Account"},{"$f":"COUNTIF($I$127:$I$877,K880)","v":15},{"$f":"'EXPENSE DATABASE'!F41","v":62865}]
[{"$nulls":8},2,2000,2,{"$f":"'EXPENSE DATABASE'!E42","v":"Chase SW Credit Card"},{"$f":"COUNTIF($I$127:$I$877,K881)","v":5},{"$f":"'EXPENSE DATABASE'!F42","v":5247.45}]
[{"$nulls":8},3,3000,3,{"$f":"'EXPENSE DATABASE'!E43","v":"Home Depot Credit Card"},2,{"$f":"'EXPENSE DATABASE'!F43","v":4324.92}]
[{"$nulls":8},4,4000,4,{"$f":"'EXPENSE DATABASE'!E44","v":"Lowes Credit Card"},3,{"$f":"'EXPENSE DATABASE'!F44","v":4465.51}]
[{"$nulls":8},5,5000,5,{"$f":"'EXPENSE DATABASE'!E45","v":"Account 5"},0,{"$f":"'EXPENSE DATABASE'!F45","v":0}]
[{"$nulls":8},6,6000,6,{"$f":"'EXPENSE DATABASE'!E46","v":"Account 6"},0,{"$f":"'EXPENSE DATABASE'!F46","v":0}]
[{"$nulls":8},7,7000,7,{"$f":"'EXPENSE DATABASE'!E47","v":"Account 7"},0,{"$f":"'EXPENSE DATABASE'!F47","v":0}]
[{"$nulls":8},8,8000,8,{"$f":"'EXPENSE DATABASE'!E48","v":"Account 8"},0,{"$f":"'EXPENSE DATABASE'!F48","v":0}]
[{"$nulls":8},9,9000,9,{"$f":"'EXPENSE DATABASE'!E49","v":"Account 9"},0,{"$f":"'EXPENSE DATABASE'!F49","v":0}]
[{"$nulls":8},10,10000,10,{"$f":"'EXPENSE DATABASE'!E50","v":"Account 10"},0,{"$f":"'EXPENSE DATABASE'!F50","v":0}]
[{"$nulls":8},11,11000,11,{"$f":"'EXPENSE DATABASE'!E51","v":"Account 11"},0,{"$f":"'EXPENSE DATABASE'!F51","v":0}]
[{"$nulls":8},12,12000,12,{"$f":"'EXPENSE DATABASE'!E52","v":"Account 12"},0,{"$f":"'EXPENSE DATABASE'!F52","v":0}]
[{"$nulls":8},13,13000,13,{"$f":"'EXPENSE DATABASE'!E53","v":"Account 13"},0,{"$f":"'EXPENSE DATABASE'!F53","v":0}]
[{"$nulls":8},14,14000,14,{"$f":"'EXPENSE DATABASE'!E54","v":"Account 14"},0,{"$f":"'EXPENSE DATABASE'!F54","v":0}]
[{"$nulls":8},15,15000,15,{"$f":"'EXPENSE DATABASE'!E55","v":"Account 15"},0,{"$f":"'EXPENSE DATABASE'!F55","v":0}]
[{"$nulls":8},16,16000,16,{"$f":"'EXPENSE DATABASE'!E56","v":"Account 16"},0,{"$f":"'EXPENSE DATABASE'!F56","v":0}]
[{"$nulls":8},17,17000,17,{"$f":"'EXPENSE DATABASE'!E57","v":"Account 17"},0,{"$f":"'EXPENSE DATABASE'!F57","v":0}]
[{"$nulls":8},18,18000,18,{"$f":"'EXPENSE DATABASE'!E58","v":"Account 18"},0,{"$f":"'EXPENSE DATABASE'!F58","v":0}]
[{"$nulls":8},19,19000,19,{"$f":"'EXPENSE DATABASE'!E59","v":"Account 19"},0,{"$f":"'EXPENSE DATABASE'!F59","v":0}]
[{"$nulls":8},20,20000,20,{"$f":"'EXPENSE DATABASE'!E60","v":"Account 20"},0,{"$f":"'EXPENSE DATABASE'!F60","v":0}]
[{"$nulls":8},21,21000,21,{"$f":"'EXPENSE DATABASE'!E61","v":"Account 21"},0,{"$f":"'EXPENSE DATABASE'!F61","v":0}]
[{"$nulls":8},22,22000,22,{"$f":"'EXPENSE DATABASE'!E62","v":"Account 22"},0,{"$f":"'EXPENSE DATABASE'!F62","v":0}]
[{"$nulls":8},23,23000,23,{"$f":"'EXPENSE DATABASE'!E63","v":"Account 23"},0,{"$f":"'EXPENSE DATABASE'!F63","v":0}]
[{"$nulls":8},24,24000,24,{"$f":"'EXPENSE DATABASE'!E64","v":"Account 24"},0,{"$f":"'EXPENSE DATABASE'!F64","v":0}]
[{"$nulls":8},25,25000,25,{"$f":"'EXPENSE DATABASE'!E65","v":"Account 25"},0,{"$f":"'EXPENSE DATABASE'!F65","v":0}]
[{"$nulls":8},100,26000,null,"Unassigned"]
[{"$nulls":12},{"$f":"IF('3 INCOME & EXPENSE'!R765='3 INCOME & EXPENSE'!V765,0,1)","v":{"v":0,"d":"0.00"}},{"$f":"SUM(N880:N905)","v":76902.87999999999}]

{"sheet":"EXPENSE SUMMARY REPORT","index":55,"n_rows":61,"n_cols":23,"rows_kept":61,"hidden":true,"merged":[[1,0,1,4],[3,9,5,21],[7,7,7,23],[8,7,9,15],[11,7,12,17],[11,18,12,21],[11,22,12,23],[14,7,14,17],[14,18,14,21],[14,22,14,23],[15,7,16,17],[15,18,16,21],[15,22,16,23],[18,7,18,17],[18,18,18,21],[18,22,18,23],[19,7,19,17],[19,18,19,21],[19,22,19,23],[20,7,20,17],[20,18,20,21],[20,22,20,23],[21,7,21,17],[21,18,21,21],[21,22,21,23],[22,7,22,17],[22,18,22,21],[22,22,22,23],[23,7,24,17],[23,18,24,21],[23,22,24,23],[26,7,26,17],[26,18,26,21],[26,22,26,23],[27,7,27,17],[27,18,27,21],[27,22,27,23],[28,7,28,17],[28,18,28,21],[28,22,28,23],[29,7,29,17],[29,18,29,21],[29,22,29,23],[30,7,30,17],[30,18,30,21],[30,22,30,23],[31,7,31,17],[31,18,31,21],[31,22,31,23],[32,7,32,17],[32,18,32,21],[32,22,32,23],[33,7,33,17],[33,18,33,21],[33,22,33,23],[34,7,34,17],[34,18,34,21],[34,22,34,23],[35,7,35,17],[35,18,35,21],[35,22,35,23],[36,7,36,17],[36,18,36,21],[36,22,36,23],[37,7,37,17],[37,18,37,21],[37,22,37,23],[38,7,38,17],[38,18,38,21],[38,22,38,23],[39,7,39,17],[39,18,39,21],[39,22,39,23],[40,7,40,17],[40,18,40,21],[40,22,40,23],[41,7,41,17],[41,18,41,21],[41,22,41,23],[42,7,42,17],[42,18,42,21],[42,22,42,23],[43,7,43,17],[43,18,43,21],[43,22,43,23],[44,7,44,17],[44,18,44,21],[44,22,44,23],[45,7,45,17],[45,18,45,21],[45,22,45,23],[46,7,46,17],[46,18,46,21],[46,22,46,23],[47,7,47,17],[47,18,47,21],[47,22,47,23],[48,7,48,17],[48,18,48,21],[48,22,48,23],[49,7,49,17],[49,18,49,21],[49,22,49,23],[50,7,50,17],[50,18,50,21],[50,22,50,23],[51,7,51,17],[51,18,51,21],[51,22,51,23],[52,7,52,17],[52,18,52,21],[52,22,52,23],[53,18,53,21],[54,7,54,17],[54,18,54,21],[54,22,54,23],[56,7,56,17],[56,18,56,21],[56,22,56,23],[58,7,58,23],[59,7,59,10],[59,11,59,13],[59,14,59,18],[59,19,59,23],[60,7,61,23]]}
[]
["EXPENSE SUMMARY REPORT"]
[]
[{"$nulls":9},"The Expense Summary Report summarizes your Total Project Expenses that inputted in the Expense Tracker.  "]
[]
[]
[]
[{"$nulls":7},{"$f":"CONCATENATE(Street_Address,\", \",City_State_Zip)","v":"1234 Main St, Kansas City, MO 64116"}]
[{"$nulls":7},"EXPENSE SUMMARY REPORT"]
[]
[]
[{"$nulls":7},"PROJECT BREAKDOWN",{"$nulls":10},"Amount",{"$nulls":3},"% of Total"]
[]
[]
[{"$nulls":7},"Purchase Expense",{"$nulls":10},{"$f":"-'2 PROJECT BUDGETER'!D8","v":{"v":-52000,"d":"($52,000)"}},{"$nulls":3},{"$f":"S15/$S$57","v":{"v":0.6761775371741605,"d":"67.6%"}}]
[{"$nulls":7},"FIXED COSTS",{"$nulls":10},"Amount",{"$nulls":3},"% of Total"]
[]
[]
[{"$nulls":7},"Buying Costs",{"$nulls":10},{"$f":"-'2 PROJECT BUDGETER'!D11","v":{"v":-1060,"d":"($1,060)"}},{"$nulls":3},{"$f":"S19/$S$57","v":{"v":0.013783619027011734,"d":"1.4%"}}]
[{"$nulls":7},"Holding Costs",{"$nulls":10},{"$f":"-'2 PROJECT BUDGETER'!D12","v":{"v":0,"d":"$0"}},{"$nulls":3},{"$f":"S20/$S$57","v":{"v":0,"d":"0.0%"}}]
[{"$nulls":7},"Selling Costs",{"$nulls":10},{"$f":"-'2 PROJECT BUDGETER'!D13","v":{"v":0,"d":"$0"}},{"$nulls":3},{"$f":"S21/$S$57","v":{"v":0,"d":"0.0%"}}]
[{"$nulls":7},"Financing Costs",{"$nulls":10},{"$f":"-'2 PROJECT BUDGETER'!D14","v":{"v":0,"d":"$0"}},{"$nulls":3},{"$f":"S22/$S$57","v":{"v":0,"d":"0.0%"}}]
[{"$nulls":7},"TOTAL FIXED COST EXPENSES",{"$nulls":10},{"$f":"SUM(S19:V22)","v":{"v":-1060,"d":"($1,060)"}},{"$nulls":3},{"$f":"SUM(W19:X22)","v":{"v":0.013783619027011734,"d":"1.4%"}}]
[{"$nulls":7},"REPAIR COSTS",{"$nulls":10},"Amount",{"$nulls":3},"% of Total"]
[]
[]
[{"$nulls":7},{"$f":"PROPER('2 PROJECT BUDGETER'!B18)","v":"General Conditions"},{"$nulls":10},{"$f":"-'2 PROJECT BUDGETER'!D18","v":{"v":0,"d":"$0"}},{"$nulls":3},{"$f":"S27/$S$57","v":{"v":0,"d":"0.0%"}}]
[{"$nulls":7},{"$f":"PROPER('2 PROJECT BUDGETER'!B19)","v":"Demolition"},{"$nulls":10},{"$f":"-'2 PROJECT BUDGETER'!D19","v":{"v":-1740,"d":"($1,740)"}},{"$nulls":3},{"v":0.022625940666981526,"d":"2.3%"}]
[{"$nulls":7},{"$f":"PROPER('2 PROJECT BUDGETER'!B20)","v":"Structural Concrete"},{"$nulls":10},{"$f":"-'2 PROJECT BUDGETER'!D20","v":{"v":0,"d":"$0"}},{"$nulls":3},{"v":0,"d":"0.0%"}]
[{"$nulls":7},{"$f":"PROPER('2 PROJECT BUDGETER'!B21)","v":"Concrete & Flatwork"},{"$nulls":10},{"$f":"-'2 PROJECT BUDGETER'!D21","v":{"v":0,"d":"$0"}},{"$nulls":3},{"v":0,"d":"0.0%"}]
[{"$nulls":7},{"$f":"PROPER('2 PROJECT BUDGETER'!B22)","v":"Masonry"},{"$nulls":10},{"$f":"-'2 PROJECT BUDGETER'!D22","v":{"v":0,"d":"$0"}},{"$nulls":3},{"v":0,"d":"0.0%"}]
[{"$nulls":7},{"$f":"PROPER('2 PROJECT BUDGETER'!B23)","v":"Siding"},{"$nulls":10},{"$f":"-'2 PROJECT BUDGETER'!D23","v":{"v":0,"d":"$0"}},{"$nulls":3},{"v":0,"d":"0.0%"}]
[{"$nulls":7},{"$f":"PROPER('2 PROJECT BUDGETER'!B24)","v":"Decking And Patios"},{"$nulls":10},{"$f":"-'2 PROJECT BUDGETER'!D24","v":{"v":0,"d":"$0"}},{"$nulls":3},{"v":0,"d":"0.0%"}]
[{"$nulls":7},{"$f":"PROPER('2 PROJECT BUDGETER'!B25)","v":"Roofing"},{"$nulls":10},{"$f":"-'2 PROJECT BUDGETER'!D25","v":{"v":0,"d":"$0"}},{"$nulls":3},{"v":0,"d":"0.0%"}]
[{"$nulls":7},{"$f":"PROPER('2 PROJECT BUDGETER'!B26)","v":"Exterior Doors & Windows"},{"$nulls":10},{"$f":"-'2 PROJECT BUDGETER'!D26","v":{"v":0,"d":"$0"}},{"$nulls":3},{"v":0,"d":"0.0%"}]
[{"$nulls":7},{"$f":"PROPER('2 PROJECT BUDGETER'!B27)","v":"Garage Doors"},{"$nulls":10},{"$f":"-'2 PROJECT BUDGETER'!D27","v":{"v":0,"d":"$0"}},{"$nulls":3},{"v":0,"d":"0.0%"}]
[{"$nulls":7},{"$f":"PROPER('2 PROJECT BUDGETER'!B28)","v":"Landscaping"},{"$nulls":10},{"$f":"-'2 PROJECT BUDGETER'!D28","v":{"v":0,"d":"$0"}},{"$nulls":3},{"v":0,"d":"0.0%"}]
[{"$nulls":7},{"$f":"PROPER('2 PROJECT BUDGETER'!B29)","v":"Misc. Exterior Items"},{"$nulls":10},{"$f":"-'2 PROJECT BUDGETER'!D29","v":{"v":0,"d":"$0"}},{"$nulls":3},{"v":0,"d":"0.0%"}]
[{"$nulls":7},{"$f":"PROPER('2 PROJECT BUDGETER'!B30)","v":"Framing & Drywall"},{"$nulls":10},{"$f":"-'2 PROJECT BUDGETER'!D30","v":{"v":-500,"d":"($500)"}},{"$nulls":3},{"v":6.5017070882130825E-3,"d":"0.7%"}]
[{"$nulls":7},{"$f":"PROPER('2 PROJECT BUDGETER'!B31)","v":"Cabinets & Countertops"},{"$nulls":10},{"$f":"-'2 PROJECT BUDGETER'!D31","v":{"v":0,"d":"$0"}},{"$nulls":3},{"v":0,"d":"0.0%"}]
[{"$nulls":7},{"$f":"PROPER('2 PROJECT BUDGETER'!B32)","v":"Doors & Trim"},{"$nulls":10},{"$f":"-'2 PROJECT BUDGETER'!D32","v":{"v":-3339.3199999999997,"d":"($3,339)"}},{"$nulls":3},{"v":0.043422561027623416,"d":"4.3%"}]
[{"$nulls":7},{"$f":"PROPER('2 PROJECT BUDGETER'!B33)","v":"Carpet & Resilient"},{"$nulls":10},{"$f":"-'2 PROJECT BUDGETER'!D33","v":{"v":0,"d":"$0"}},{"$nulls":3},{"v":0,"d":"0.0%"}]
[{"$nulls":7},{"$f":"PROPER('2 PROJECT BUDGETER'!B34)","v":"Hardwood Flooring"},{"$nulls":10},{"$f":"-'2 PROJECT BUDGETER'!D34","v":{"v":-567.2,"d":"($567)"}},{"$nulls":3},{"v":0.007375536520868921,"d":"0.7%"}]
[{"$nulls":7},{"$f":"PROPER('2 PROJECT BUDGETER'!B35)","v":"Tiling"},{"$nulls":10},{"$f":"-'2 PROJECT BUDGETER'!D35","v":{"v":-2325.23,"d":"($2,325)"}},{"$nulls":3},{"v":0.03023592874545141,"d":"3.0%"}]
[{"$nulls":7},{"$f":"PROPER('2 PROJECT BUDGETER'!B36)","v":"Painting"},{"$nulls":10},{"$f":"-'2 PROJECT BUDGETER'!D36","v":{"v":-4902.45,"d":"($4,902)"}},{"$nulls":3},{"v":0.06374858782922045,"d":"6.4%"}]
[{"$nulls":7},{"$f":"PROPER('2 PROJECT BUDGETER'!B37)","v":"Appliances"},{"$nulls":10},{"$f":"-'2 PROJECT BUDGETER'!D37","v":{"v":0,"d":"$0"}},{"$nulls":3},{"v":0,"d":"0.0%"}]
[{"$nulls":7},{"$f":"PROPER('2 PROJECT BUDGETER'!B38)","v":"Plumbing"},{"$nulls":10},{"$f":"-'2 PROJECT BUDGETER'!D38","v":{"v":-3473.08,"d":"($3,473)"}},{"$nulls":3},{"v":0.04516189770786218,"d":"4.5%"}]
[{"$nulls":7},{"$f":"PROPER('2 PROJECT BUDGETER'!B39)","v":"Hvac"},{"$nulls":10},{"$f":"-'2 PROJECT BUDGETER'!D39","v":{"v":0,"d":"$0"}},{"$nulls":3},{"v":0,"d":"0.0%"}]
[{"$nulls":7},{"$f":"PROPER('2 PROJECT BUDGETER'!B40)","v":"Electrical"},{"$nulls":10},{"$f":"-'2 PROJECT BUDGETER'!D40","v":{"v":-2610,"d":"($2,610)"}},{"$nulls":3},{"v":0.03393891100047229,"d":"3.4%"}]
[{"$nulls":7},{"$f":"PROPER('2 PROJECT BUDGETER'!B41)","v":"Miscellaneous"},{"$nulls":10},{"$f":"-'2 PROJECT BUDGETER'!D41","v":{"v":0,"d":"$0"}},{"$nulls":3},{"v":0,"d":"0.0%"}]
[{"$nulls":7},"SUBTOTAL REPAIR EXPENSES",{"$nulls":10},{"$f":"SUM(S27:V50)","v":{"v":-19457.28,"d":"($19,457)"}},{"$nulls":3},{"v":0.25301107058669325,"d":"25.3%"}]
[{"$nulls":7},{"$f":"PROPER('2 PROJECT BUDGETER'!B43)","v":"Adders/Contingency/Change Orders"},{"$nulls":10},{"$f":"-'2 PROJECT BUDGETER'!D43","v":{"v":0,"d":"$0"}},{"$nulls":3},{"v":0,"d":"0.0%"}]
[{"$nulls":7},"TOTAL REPAIR EXPENSES",{"$nulls":10},{"$f":"S51+S52","v":{"v":-19457.28,"d":"($19,457)"}},{"$nulls":3},{"v":0.25301107058669325,"d":"25.3%"}]
[]
[{"$nulls":7},"Unassigned Expenses",{"$nulls":10},{"$f":"-'2 PROJECT BUDGETER'!D45","v":{"v":-4385.599999999991,"d":"($4,386)"}},{"$nulls":3},{"$f":"S55/$S$57","v":{"v":0.057027773212134474,"d":"5.7%"}}]
[]
[{"$nulls":7},"TOTAL PROJECT EXPENSES",{"$nulls":10},{"$f":"S15+S23+S53+S55","v":{"v":-76902.87999999999,"d":"($76,903)"}}]
[]
[]
[{"$nulls":7},{"$f":"T(Company_Name)","v":"Dave Inc"},{"$nulls":3},{"$f":"(Company_Phone)","v":8161234567},null,null,{"$f":"T(Company_Email)","v":"dave@venturesheets.com"},{"$nulls":4},{"$f":"T(Company_Website)","v":"www.venturesheets.com"}]
[{"$nulls":7},"© 2018 by Houseflippingspreadsheet.com. All rights reserved"]

{"sheet":"PROJECTIONS REPORT","index":56,"n_rows":68,"n_cols":24,"rows_kept":68,"hidden":true,"merged":[[1,0,1,4],[3,9,6,22],[10,7,10,24],[11,7,12,15],[14,12,15,14],[14,15,15,17],[14,18,15,20],[14,21,15,22],[14,23,15,24],[17,12,17,14],[17,15,17,17],[17,18,17,20],[17,21,17,22],[17,23,17,24],[19,12,20,14],[19,15,20,17],[19,18,20,20],[19,21,20,22],[19,23,20,24],[22,12,22,14],[22,15,22,17],[22,18,22,20],[22,21,22,22],[22,23,22,24],[23,12,23,14],[23,15,23,17],[23,18,23,20],[23,21,23,22],[23,23,23,24],[24,12,24,14],[24,15,24,17],[24,18,24,20],[24,21,24,22],[24,23,24,24],[25,12,25,14],[25,15,25,17],[25,18,25,20],[25,21,25,22],[25,23,25,24],[26,12,26,14],[26,15,26,17],[26,18,26,20],[26,21,26,22],[26,23,26,24],[28,12,29,14],[28,15,29,17],[28,18,29,20],[28,21,29,22],[28,23,29,24],[31,12,31,14],[31,15,31,17],[31,18,31,20],[31,21,31,22],[31,23,31,24],[32,12,32,14],[32,15,32,17],[32,18,32,20],[32,21,32,22],[32,23,32,24],[33,12,33,14],[33,15,33,17],[33,18,33,20],[33,21,33,22],[33,23,33,24],[34,12,34,14],[34,15,34,17],[34,18,34,20],[34,21,34,22],[34,23,34,24],[35,12,35,14],[35,15,35,17],[35,18,35,20],[35,21,35,22],[35,23,35,24],[36,12,36,14],[36,15,36,17],[36,18,36,20],[36,21,36,22],[36,23,36,24],[37,12,37,14],[37,15,37,17],[37,18,37,20],[37,21,37,22],[37,23,37,24],[38,12,38,14],[38,15,38,17],[38,18,38,20],[38,21,38,22],[38,23,38,24],[39,12,39,14],[39,15,39,17],[39,18,39,20],[39,21,39,22],[39,23,39,24],[40,12,40,14],[40,15,40,17],[40,18,40,20],[40,21,40,22],[40,23,40,24],[41,12,41,14],[41,15,41,17],[41,18,41,20],[41,21,41,22],[41,23,41,24],[42,12,42,14],[42,15,42,17],[42,18,42,20],[42,21,42,22],[42,23,42,24],[43,12,43,14],[43,15,43,17],[43,18,43,20],[43,21,43,22],[43,23,43,24],[44,12,44,14],[44,15,44,17],[44,18,44,20],[44,21,44,22],[44,23,44,24],[45,12,45,14],[45,15,45,17],[45,18,45,20],[45,21,45,22],[45,23,45,24],[46,12,46,14],[46,15,46,17],[46,18,46,20],[46,21,46,22],[46,23,46,24],[47,12,47,14],[47,15,47,17],[47,18,47,20],[47,21,47,22],[47,23,47,24],[48,12,48,14],[48,15,48,17],[48,18,48,20],[48,21,48,22],[48,23,48,24],[49,12,49,14],[49,15,49,17],[49,18,49,20],[49,21,49,22],[49,23,49,24],[50,12,50,14],[50,15,50,17],[50,18,50,20],[50,21,50,22],[50,23,50,24],[51,12,51,14],[51,15,51,17],[51,18,51,20],[51,21,51,22],[51,23,51,24],[52,12,52,14],[52,15,52,17],[52,18,52,20],[52,21,52,22],[52,23,52,24],[53,12,53,14],[53,15,53,17],[53,18,53,20],[53,21,53,22],[53,23,53,24],[54,12,54,14],[54,15,54,17],[54,18,54,20],[54,21,54,22],[54,23,54,24],[55,12,55,14],[55,15,55,17],[55,18,55,20],[55,21,55,22],[55,23,55,24],[56,12,56,14],[56,15,56,17],[56,18,56,20],[56,21,56,22],[56,23,56,24],[57,12,57,14],[57,15,57,17],[57,18,57,20],[57,21,57,22],[57,23,57,24],[58,12,58,14],[58,15,58,17],[58,18,58,20],[58,21,58,22],[59,12,59,14],[59,15,59,17],[59,18,59,20],[59,21,59,22],[59,23,59,24],[61,12,61,14],[61,15,61,17],[61,18,61,20],[61,21,61,22],[61,23,61,24],[62,12,62,14],[62,15,62,17],[62,18,62,20],[62,21,62,22],[62,23,62,24],[63,12,63,14],[63,15,63,17],[63,18,63,20],[63,21,63,22],[63,23,63,24],[65,7,65,24],[66,7,66,10],[66,11,66,13],[66,14,66,17],[66,18,66,24],[67,7,68,24]]}
[]
["PROJECTIONS REPORT"]
[]
[{"$nulls":9},"The Financial Projections report is summarizes your project budget, expenses to date and forecasts future project costs to ultimately forecast your project's profitability."]
[]
[]
[]
[]
[]
[]
[{"$nulls":7},{"$f":"CONCATENATE(Street_Address,\", \",City_State_Zip)","v":"1234 Main St, Kansas City, MO 64116"}]
[{"$nulls":7},"PROJECT FORECAST REPORT"]
[]
[]
[{"$nulls":7},"BUDGET BREAKDOWN",{"$nulls":4},"Budgeted",null,null,"Spent To Date",null,null,"Projected",null,null,"Variance",null,"% of Total"]
[]
[]
[{"$nulls":7},"Purchase Price",{"$nulls":4},{"$f":"'2 PROJECT BUDGETER'!C8","v":{"v":61836.912500000006,"d":"$61,837"}},null,null,{"$f":"'2 PROJECT BUDGETER'!D8","v":{"v":52000,"d":"$52,000"}},null,null,{"$f":"'2 PROJECT BUDGETER'!F8","v":{"v":52000,"d":"$52,000"}},null,null,{"$f":"'2 PROJECT BUDGETER'!H8","v":{"v":-9836.912500000006,"d":"($9,837)"}},null,{"$f":"IFERROR(V18/M18,0)","v":{"v":-0.15907832558748797,"d":"-15.9%"}}]
[]
[{"$nulls":7},"FIXED COSTS",{"$nulls":4},"Budgeted",null,null,"Spent To Date",null,null,"Projected",null,null,"Variance",null,"% of Total"]
[]
[]
[{"$nulls":7},"Buying Costs",{"$nulls":4},{"$f":"'2 PROJECT BUDGETER'!C11","v":{"v":1000,"d":"$1,000"}},null,null,{"$f":"'2 PROJECT BUDGETER'!D11","v":{"v":1060,"d":"$1,060"}},null,null,{"$f":"'2 PROJECT BUDGETER'!F11","v":{"v":1060,"d":"$1,060"}},null,null,{"$f":"'2 PROJECT BUDGETER'!H11","v":{"v":60,"d":"$60"}},null,{"$f":"IFERROR(V23/M23,0)","v":{"v":0.06,"d":"6.0%"}}]
[{"$nulls":7},"Holding Costs",{"$nulls":4},{"$f":"'2 PROJECT BUDGETER'!C12","v":{"v":3000,"d":"$3,000"}},null,null,{"$f":"'2 PROJECT BUDGETER'!D12","v":{"v":0,"d":"$0"}},null,null,{"$f":"'2 PROJECT BUDGETER'!F12","v":{"v":3000,"d":"$3,000"}},null,null,{"$f":"'2 PROJECT BUDGETER'!H12","v":{"v":0,"d":"$0"}},null,{"$f":"IFERROR(V24/M24,0)","v":{"v":0,"d":"0.0%"}}]
[{"$nulls":7},"Selling Costs",{"$nulls":4},{"$f":"'2 PROJECT BUDGETER'!C13","v":{"v":10850,"d":"$10,850"}},null,null,{"$f":"'2 PROJECT BUDGETER'!D13","v":{"v":0,"d":"$0"}},null,null,{"$f":"'2 PROJECT BUDGETER'!F13","v":{"v":10850,"d":"$10,850"}},null,null,{"$f":"'2 PROJECT BUDGETER'!H13","v":{"v":0,"d":"$0"}},null,{"$f":"IFERROR(V25/M25,0)","v":{"v":0,"d":"0.0%"}}]
[{"$nulls":7},"Financing Costs",{"$nulls":4},{"$f":"'2 PROJECT BUDGETER'!C14","v":{"v":0,"d":"$0"}},null,null,{"$f":"'2 PROJECT BUDGETER'!D14","v":{"v":0,"d":"$0"}},null,null,{"$f":"'2 PROJECT BUDGETER'!F14","v":{"v":0,"d":"$0"}},null,null,{"$f":"'2 PROJECT BUDGETER'!H14","v":{"v":0,"d":"$0"}},null,{"$f":"IFERROR(V26/M26,0)","v":{"v":0,"d":"0.0%"}}]
[{"$nulls":7},"TOTAL FIXED COST BUDGET",{"$nulls":4},{"$f":"SUM(M23:O26)","v":{"v":14850,"d":"$14,850"}},null,null,{"$f":"SUM(P23:R26)","v":{"v":1060,"d":"$1,060"}},null,null,{"$f":"SUM(S23:U26)","v":{"v":14910,"d":"$14,910"}},null,null,{"$f":"'2 PROJECT BUDGETER'!H15","v":{"v":60,"d":"$60"}},null,{"$f":"IFERROR(V27/M27,0)","v":{"v":0.00404040404040404,"d":"0.4%"}}]
[]
[{"$nulls":7},"REPAIR COSTS",{"$nulls":4},"Budgeted",null,null,"Spent To Date",null,null,"Projected",null,null,"Variance",null,"% of Total"]
[]
[]
[{"$nulls":7},{"$f":"PROPER('2 PROJECT BUDGETER'!B18)","v":"General Conditions"},{"$nulls":4},{"$f":"'2 PROJECT BUDGETER'!C18","v":{"v":750,"d":"$750"}},null,null,{"$f":"'2 PROJECT BUDGETER'!D18","v":{"v":0,"d":"$0"}},null,null,{"$f":"'2 PROJECT BUDGETER'!F18","v":{"v":750,"d":"$750"}},null,null,{"$f":"'2 PROJECT BUDGETER'!H18","v":{"v":0,"d":"$0"}},null,{"$f":"IFERROR(V32/M32,0)","v":{"v":0,"d":"0.0%"}}]
[{"$nulls":7},{"$f":"PROPER('2 PROJECT BUDGETER'!B19)","v":"Demolition"},{"$nulls":4},{"$f":"'2 PROJECT BUDGETER'!C19","v":{"v":1000,"d":"$1,000"}},null,null,{"$f":"'2 PROJECT BUDGETER'!D19","v":{"v":1740,"d":"$1,740"}},null,null,{"$f":"'2 PROJECT BUDGETER'!F19","v":{"v":1740,"d":"$1,740"}},null,null,{"$f":"'2 PROJECT BUDGETER'!H19","v":{"v":740,"d":"$740"}},null,{"v":0.74,"d":"74.0%"}]
[{"$nulls":7},{"$f":"PROPER('2 PROJECT BUDGETER'!B20)","v":"Structural Concrete"},{"$nulls":4},{"$f":"'2 PROJECT BUDGETER'!C20","v":{"v":0,"d":"$0"}},null,null,{"$f":"'2 PROJECT BUDGETER'!D20","v":{"v":0,"d":"$0"}},null,null,{"$f":"'2 PROJECT BUDGETER'!F20","v":{"v":0,"d":"$0"}},null,null,{"$f":"'2 PROJECT BUDGETER'!H20","v":{"v":0,"d":"$0"}},null,{"v":0,"d":"0.0%"}]
[{"$nulls":7},{"$f":"PROPER('2 PROJECT BUDGETER'!B21)","v":"Concrete & Flatwork"},{"$nulls":4},{"$f":"'2 PROJECT BUDGETER'!C21","v":{"v":0,"d":"$0"}},null,null,{"$f":"'2 PROJECT BUDGETER'!D21","v":{"v":0,"d":"$0"}},null,null,{"$f":"'2 PROJECT BUDGETER'!F21","v":{"v":0,"d":"$0"}},null,null,{"$f":"'2 PROJECT BUDGETER'!H21","v":{"v":0,"d":"$0"}},null,{"v":0,"d":"0.0%"}]
[{"$nulls":7},{"$f":"PROPER('2 PROJECT BUDGETER'!B22)","v":"Masonry"},{"$nulls":4},{"$f":"'2 PROJECT BUDGETER'!C22","v":{"v":0,"d":"$0"}},null,null,{"$f":"'2 PROJECT BUDGETER'!D22","v":{"v":0,"d":"$0"}},null,null,{"$f":"'2 PROJECT BUDGETER'!F22","v":{"v":0,"d":"$0"}},null,null,{"$f":"'2 PROJECT BUDGETER'!H22","v":{"v":0,"d":"$0"}},null,{"v":0,"d":"0.0%"}]
[{"$nulls":7},{"$f":"PROPER('2 PROJECT BUDGETER'!B23)","v":"Siding"},{"$nulls":4},{"$f":"'2 PROJECT BUDGETER'!C23","v":{"v":0,"d":"$0"}},null,null,{"$f":"'2 PROJECT BUDGETER'!D23","v":{"v":0,"d":"$0"}},null,null,{"$f":"'2 PROJECT BUDGETER'!F23","v":{"v":0,"d":"$0"}},null,null,{"$f":"'2 PROJECT BUDGETER'!H23","v":{"v":0,"d":"$0"}},null,{"v":0,"d":"0.0%"}]
[{"$nulls":7},{"$f":"PROPER('2 PROJECT BUDGETER'!B24)","v":"Decking And Patios"},{"$nulls":4},{"$f":"'2 PROJECT BUDGETER'!C24","v":{"v":5000,"d":"$5,000"}},null,null,{"$f":"'2 PROJECT BUDGETER'!D24","v":{"v":0,"d":"$0"}},null,null,{"$f":"'2 PROJECT BUDGETER'!F24","v":{"v":5000,"d":"$5,000"}},null,null,{"$f":"'2 PROJECT BUDGETER'!H24","v":{"v":0,"d":"$0"}},null,{"v":0,"d":"0.0%"}]
[{"$nulls":7},{"$f":"PROPER('2 PROJECT BUDGETER'!B25)","v":"Roofing"},{"$nulls":4},{"$f":"'2 PROJECT BUDGETER'!C25","v":{"v":5500,"d":"$5,500"}},null,null,{"$f":"'2 PROJECT BUDGETER'!D25","v":{"v":0,"d":"$0"}},null,null,{"$f":"'2 PROJECT BUDGETER'!F25","v":{"v":5500,"d":"$5,500"}},null,null,{"$f":"'2 PROJECT BUDGETER'!H25","v":{"v":0,"d":"$0"}},null,{"v":0,"d":"0.0%"}]
[{"$nulls":7},{"$f":"PROPER('2 PROJECT BUDGETER'!B26)","v":"Exterior Doors & Windows"},{"$nulls":4},{"$f":"'2 PROJECT BUDGETER'!C26","v":{"v":2000,"d":"$2,000"}},null,null,{"$f":"'2 PROJECT BUDGETER'!D26","v":{"v":0,"d":"$0"}},null,null,{"$f":"'2 PROJECT BUDGETER'!F26","v":{"v":2000,"d":"$2,000"}},null,null,{"$f":"'2 PROJECT BUDGETER'!H26","v":{"v":0,"d":"$0"}},null,{"v":0,"d":"0.0%"}]
[{"$nulls":7},{"$f":"PROPER('2 PROJECT BUDGETER'!B27)","v":"Garage Doors"},{"$nulls":4},{"$f":"'2 PROJECT BUDGETER'!C27","v":{"v":1250,"d":"$1,250"}},null,null,{"$f":"'2 PROJECT BUDGETER'!D27","v":{"v":0,"d":"$0"}},null,null,{"$f":"'2 PROJECT BUDGETER'!F27","v":{"v":1250,"d":"$1,250"}},null,null,{"$f":"'2 PROJECT BUDGETER'!H27","v":{"v":0,"d":"$0"}},null,{"v":0,"d":"0.0%"}]
[{"$nulls":7},{"$f":"PROPER('2 PROJECT BUDGETER'!B28)","v":"Landscaping"},{"$nulls":4},{"$f":"'2 PROJECT BUDGETER'!C28","v":{"v":500,"d":"$500"}},null,null,{"$f":"'2 PROJECT BUDGETER'!D28","v":{"v":0,"d":"$0"}},null,null,{"$f":"'2 PROJECT BUDGETER'!F28","v":{"v":500,"d":"$500"}},null,null,{"$f":"'2 PROJECT BUDGETER'!H28","v":{"v":0,"d":"$0"}},null,{"v":0,"d":"0.0%"}]
[{"$nulls":7},{"$f":"PROPER('2 PROJECT BUDGETER'!B29)","v":"Misc. Exterior Items"},{"$nulls":4},{"$f":"'2 PROJECT BUDGETER'!C29","v":{"v":0,"d":"$0"}},null,null,{"$f":"'2 PROJECT BUDGETER'!D29","v":{"v":0,"d":"$0"}},null,null,{"$f":"'2 PROJECT BUDGETER'!F29","v":{"v":0,"d":"$0"}},null,null,{"$f":"'2 PROJECT BUDGETER'!H29","v":{"v":0,"d":"$0"}},null,{"v":0,"d":"0.0%"}]
[{"$nulls":7},{"$f":"PROPER('2 PROJECT BUDGETER'!B30)","v":"Framing & Drywall"},{"$nulls":4},{"$f":"'2 PROJECT BUDGETER'!C30","v":{"v":500,"d":"$500"}},null,null,{"$f":"'2 PROJECT BUDGETER'!D30","v":{"v":500,"d":"$500"}},null,null,{"$f":"'2 PROJECT BUDGETER'!F30","v":{"v":500,"d":"$500"}},null,null,{"$f":"'2 PROJECT BUDGETER'!H30","v":{"v":0,"d":"$0"}},null,{"v":0,"d":"0.0%"}]
[{"$nulls":7},{"$f":"PROPER('2 PROJECT BUDGETER'!B31)","v":"Cabinets & Countertops"},{"$nulls":4},{"$f":"'2 PROJECT BUDGETER'!C31","v":{"v":7500,"d":"$7,500"}},null,null,{"$f":"'2 PROJECT BUDGETER'!D31","v":{"v":0,"d":"$0"}},null,null,{"$f":"'2 PROJECT BUDGETER'!F31","v":{"v":7500,"d":"$7,500"}},null,null,{"$f":"'2 PROJECT BUDGETER'!H31","v":{"v":0,"d":"$0"}},null,{"v":0,"d":"0.0%"}]
[{"$nulls":7},{"$f":"PROPER('2 PROJECT BUDGETER'!B32)","v":"Doors & Trim"},{"$nulls":4},{"$f":"'2 PROJECT BUDGETER'!C32","v":{"v":3000,"d":"$3,000"}},null,null,{"$f":"'2 PROJECT BUDGETER'!D32","v":{"v":3339.3199999999997,"d":"$3,339"}},null,null,{"$f":"'2 PROJECT BUDGETER'!F32","v":{"v":3339.3199999999997,"d":"$3,339"}},null,null,{"$f":"'2 PROJECT BUDGETER'!H32","v":{"v":339.3199999999997,"d":"$339"}},null,{"v":0.11310666666666656,"d":"11.3%"}]
[{"$nulls":7},{"$f":"PROPER('2 PROJECT BUDGETER'!B33)","v":"Carpet & Resilient"},{"$nulls":4},{"$f":"'2 PROJECT BUDGETER'!C33","v":{"v":3000,"d":"$3,000"}},null,null,{"$f":"'2 PROJECT BUDGETER'!D33","v":{"v":0,"d":"$0"}},null,null,{"$f":"'2 PROJECT BUDGETER'!F33","v":{"v":3000,"d":"$3,000"}},null,null,{"$f":"'2 PROJECT BUDGETER'!H33","v":{"v":0,"d":"$0"}},null,{"v":0,"d":"0.0%"}]
[{"$nulls":7},{"$f":"PROPER('2 PROJECT BUDGETER'!B34)","v":"Hardwood Flooring"},{"$nulls":4},{"$f":"'2 PROJECT BUDGETER'!C34","v":{"v":2500,"d":"$2,500"}},null,null,{"$f":"'2 PROJECT BUDGETER'!D34","v":{"v":567.2,"d":"$567"}},null,null,{"$f":"'2 PROJECT BUDGETER'!F34","v":{"v":2268.8,"d":"$2,269"}},null,null,{"$f":"'2 PROJECT BUDGETER'!H34","v":{"v":-231.19999999999982,"d":"($231)"}},null,{"v":-0.09247999999999992,"d":"-9.2%"}]
[{"$nulls":7},{"$f":"PROPER('2 PROJECT BUDGETER'!B35)","v":"Tiling"},{"$nulls":4},{"$f":"'2 PROJECT BUDGETER'!C35","v":{"v":3000,"d":"$3,000"}},null,null,{"$f":"'2 PROJECT BUDGETER'!D35","v":{"v":2325.23,"d":"$2,325"}},null,null,{"$f":"'2 PROJECT BUDGETER'!F35","v":{"v":2325.23,"d":"$2,325"}},null,null,{"$f":"'2 PROJECT BUDGETER'!H35","v":{"v":-674.77,"d":"($675)"}},null,{"v":-0.22492333333333334,"d":"-22.5%"}]
[{"$nulls":7},{"$f":"PROPER('2 PROJECT BUDGETER'!B36)","v":"Painting"},{"$nulls":4},{"$f":"'2 PROJECT BUDGETER'!C36","v":{"v":5000,"d":"$5,000"}},null,null,{"$f":"'2 PROJECT BUDGETER'!D36","v":{"v":4902.45,"d":"$4,902"}},null,null,{"$f":"'2 PROJECT BUDGETER'!F36","v":{"v":4902.45,"d":"$4,902"}},null,null,{"$f":"'2 PROJECT BUDGETER'!H36","v":{"v":-97.55000000000018,"d":"($98)"}},null,{"v":-0.019510000000000038,"d":"-2.0%"}]
[{"$nulls":7},{"$f":"PROPER('2 PROJECT BUDGETER'!B37)","v":"Appliances"},{"$nulls":4},{"$f":"'2 PROJECT BUDGETER'!C37","v":{"v":2500,"d":"$2,500"}},null,null,{"$f":"'2 PROJECT BUDGETER'!D37","v":{"v":0,"d":"$0"}},null,null,{"$f":"'2 PROJECT BUDGETER'!F37","v":{"v":2500,"d":"$2,500"}},null,null,{"$f":"'2 PROJECT BUDGETER'!H37","v":{"v":0,"d":"$0"}},null,{"v":0,"d":"0.0%"}]
[{"$nulls":7},{"$f":"PROPER('2 PROJECT BUDGETER'!B38)","v":"Plumbing"},{"$nulls":4},{"$f":"'2 PROJECT BUDGETER'!C38","v":{"v":3000,"d":"$3,000"}},null,null,{"$f":"'2 PROJECT BUDGETER'!D38","v":{"v":3473.08,"d":"$3,473"}},null,null,{"$f":"'2 PROJECT BUDGETER'!F38","v":{"v":3473.08,"d":"$3,473"}},null,null,{"$f":"'2 PROJECT BUDGETER'!H38","v":{"v":473.0799999999999,"d":"$473"}},null,{"v":0.1576933333333333,"d":"15.8%"}]
[{"$nulls":7},{"$f":"PROPER('2 PROJECT BUDGETER'!B39)","v":"Hvac"},{"$nulls":4},{"$f":"'2 PROJECT BUDGETER'!C39","v":{"v":250,"d":"$250"}},null,null,{"$f":"'2 PROJECT BUDGETER'!D39","v":{"v":0,"d":"$0"}},null,null,{"$f":"'2 PROJECT BUDGETER'!F39","v":{"v":250,"d":"$250"}},null,null,{"$f":"'2 PROJECT BUDGETER'!H39","v":{"v":0,"d":"$0"}},null,{"v":0,"d":"0.0%"}]
[{"$nulls":7},{"$f":"PROPER('2 PROJECT BUDGETER'!B40)","v":"Electrical"},{"$nulls":4},{"$f":"'2 PROJECT BUDGETER'!C40","v":{"v":3500,"d":"$3,500"}},null,null,{"$f":"'2 PROJECT BUDGETER'!D40","v":{"v":2610,"d":"$2,610"}},null,null,{"$f":"'2 PROJECT BUDGETER'!F40","v":{"v":2610,"d":"$2,610"}},null,null,{"$f":"'2 PROJECT BUDGETER'!H40","v":{"v":-890,"d":"($890)"}},null,{"v":-0.2542857142857143,"d":"-25.4%"}]
[{"$nulls":7},{"$f":"PROPER('2 PROJECT BUDGETER'!B41)","v":"Miscellaneous"},{"$nulls":4},{"$f":"'2 PROJECT BUDGETER'!C41","v":{"v":0,"d":"$0"}},null,null,{"$f":"'2 PROJECT BUDGETER'!D41","v":{"v":0,"d":"$0"}},null,null,{"$f":"'2 PROJECT BUDGETER'!F41","v":{"v":0,"d":"$0"}},null,null,{"$f":"'2 PROJECT BUDGETER'!H41","v":{"v":0,"d":"$0"}},null,{"v":0,"d":"0.0%"}]
[{"$nulls":7},"SUBTOTAL REPAIR BUDGET",{"$nulls":4},{"$f":"'2 PROJECT BUDGETER'!C42","v":{"v":49750,"d":"$49,750"}},null,null,{"$f":"'2 PROJECT BUDGETER'!D42","v":{"v":19457.28,"d":"$19,457"}},null,null,{"$f":"'2 PROJECT BUDGETER'!F42","v":{"v":49408.880000000005,"d":"$49,409"}},null,null,{"$f":"'2 PROJECT BUDGETER'!H42","v":{"v":-341.12000000000035,"d":"($341)"}},null,{"v":-6.8566834170854345E-3,"d":"-0.7%"}]
[{"$nulls":7},{"$f":"PROPER('2 PROJECT BUDGETER'!B43)","v":"Adders/Contingency/Change Orders"},{"$nulls":4},{"$f":"'2 PROJECT BUDGETER'!C43","v":{"v":13813.0875,"d":"$13,813"}},null,null,{"$f":"'2 PROJECT BUDGETER'!D43","v":{"v":0,"d":"$0"}},null,null,{"$f":"'2 PROJECT BUDGETER'!F43","v":{"v":13813.0875,"d":"$13,813"}},null,null,{"$f":"'2 PROJECT BUDGETER'!H43","v":{"v":0,"d":"$0"}},null,{"v":0,"d":"0.0%"}]
[{"$nulls":7},"TOTAL REPAIR BUDGET",{"$nulls":4},{"$f":"M56+M57","v":{"v":63563.0875,"d":"$63,563"}},null,null,{"$f":"P56+P57","v":{"v":19457.28,"d":"$19,457"}},null,null,{"$f":"S56+S57","v":{"v":63221.967500000006,"d":"$63,222"}},null,null,{"$f":"V56+V57","v":{"v":-341.12000000000035,"d":"($341)"}},null,{"v":-0.005366636729218044,"d":"-0.5%"}]
[]
[{"$nulls":7},"Unassigned Costs",{"$nulls":4},{"$f":"'2 PROJECT BUDGETER'!C45","v":{"v":0,"d":"$0"}},null,null,{"$f":"'2 PROJECT BUDGETER'!D45","v":{"v":4385.599999999991,"d":"$4,386"}},null,null,{"$f":"'2 PROJECT BUDGETER'!F45","v":{"v":4385.599999999991,"d":"$4,386"}},null,null,{"$f":"'2 PROJECT BUDGETER'!H45","v":{"v":4385.599999999991,"d":"$4,386"}},null,{"$f":"IFERROR(V60/M60,0)","v":{"v":0,"d":"0.0%"}}]
[]
[{"$nulls":7},"RESALE VALUE",{"$nulls":4},{"$f":"'2 PROJECT BUDGETER'!C49","v":{"v":165000,"d":"$165,000"}},null,null,{"$f":"'2 PROJECT BUDGETER'!D49","v":{"v":175000,"d":"$175,000"}},null,null,{"$f":"'2 PROJECT BUDGETER'!F49","v":{"v":175000,"d":"$175,000"}},null,null,{"$f":"'2 PROJECT BUDGETER'!H49","v":{"v":10000,"d":"$10,000"}},null,{"$f":"IFERROR(V62/M62,0)","v":{"v":0.06060606060606061,"d":"6%"}}]
[{"$nulls":7},"PROJECT COSTS",{"$nulls":4},{"$f":"(M18+M27+M58+M60)","v":{"v":140250,"d":"$140,250"}},null,null,{"$f":"(P18+P27+P58+P60)","v":{"v":76902.87999999999,"d":"$76,903"}},null,null,{"$f":"(S18+S27+S58+S60)","v":{"v":134517.5675,"d":"$134,518"}},null,null,{"$f":"'2 PROJECT BUDGETER'!H46","v":{"v":-5732.432500000015,"d":"($5,732)"}},null,{"$f":"IFERROR(V63/M63,0)","v":{"v":-0.040872959001782644,"d":"-4%"}}]
[{"$nulls":7},"PROFIT",{"$nulls":4},{"$f":"M62-M63","v":{"v":24750,"d":"$24,750"}},null,null,{"$f":"P62-P63","v":{"v":98097.12000000001,"d":"$98,097"}},null,null,{"$f":"S62-S63","v":{"v":40482.432499999995,"d":"$40,482"}},null,null,{"$f":"V62-V63","v":{"v":15732.432500000015,"d":"$15,732"}},null,{"$f":"IFERROR(V64/M64,0)","v":{"v":0.635653838383839,"d":"64%"}}]
[]
[]
[{"$nulls":7},{"$f":"T(Company_Name)","v":"Dave Inc"},{"$nulls":3},{"$f":"(Company_Phone)","v":8161234567},null,null,{"$f":"T(Company_Email)","v":"dave@venturesheets.com"},{"$nulls":3},{"$f":"T(Company_Website)","v":"www.venturesheets.com"}]
[{"$nulls":7},"© 2018 by Houseflippingspreadsheet.com. All rights reserved"]

{"sheet":"VENDOR TAX & INSUR","index":57,"n_rows":121,"n_cols":9,"rows_kept":121,"hidden":true,"merged":[[10,1,14,2],[15,1,17,2],[18,1,19,1],[18,2,19,2],[121,3,123,4]]}
[]
["VENDOR TAX & INSURANCE REPORT"]
{"$rows_empty":8}
[null,"VENDOR TAX & INSURANCE"]
[]
[]
[]
[]
[null,{"$f":"TODAY()","v":"2019-06-23"}]
[]
[]
[null,"COMPANY NAME","TAX ID","WORK COMP","GEN LIAB",{"$nulls":3},{"$f":"TODAY()","v":"2019-06-23"}]
[{"$nulls":3},"EXP DATE","EXP DATE"]
[]
[null,{"$f":"T('ACCOUNTING SETUP'!AI9)","v":"First 1 Bank"},{"$f":"IF('ACCOUNTING SETUP'!AB9=0,\"\",'ACCOUNTING SETUP'!AB9)","v":""},{"$f":"IF('ACCOUNTING SETUP'!AD9=0,\"\",'ACCOUNTING SETUP'!AD9)","v":""},{"$f":"IF('ACCOUNTING SETUP'!AE9=0,\"\",'ACCOUNTING SETUP'!AE9)","v":""},{"$f":"IF(OR(C22<>\"\",D22<>\"\",E22<>\"\"),1,0)","v":0}]
[null,{"$f":"T('ACCOUNTING SETUP'!AI10)","v":"Defenbaugh Industries"},{"$f":"IF('ACCOUNTING SETUP'!AB10=0,\"\",'ACCOUNTING SETUP'!AB10)","v":""},{"$f":"IF('ACCOUNTING SETUP'!AD10=0,\"\",'ACCOUNTING SETUP'!AD10)","v":""},{"$f":"IF('ACCOUNTING SETUP'!AE10=0,\"\",'ACCOUNTING SETUP'!AE10)","v":""},{"$f":"IF(OR(C23<>\"\",D23<>\"\",E23<>\"\"),1,0)","v":0}]
[null,{"$f":"T('ACCOUNTING SETUP'!AI11)","v":"Demolition Services Inc."},{"$f":"IF('ACCOUNTING SETUP'!AB11=0,\"\",'ACCOUNTING SETUP'!AB11)","v":""},{"$f":"IF('ACCOUNTING SETUP'!AD11=0,\"\",'ACCOUNTING SETUP'!AD11)","v":""},{"$f":"IF('ACCOUNTING SETUP'!AE11=0,\"\",'ACCOUNTING SETUP'!AE11)","v":""},{"$f":"IF(OR(C24<>\"\",D24<>\"\",E24<>\"\"),1,0)","v":0}]
[null,{"$f":"T('ACCOUNTING SETUP'!AI12)","v":"Affordable Rehab & Remodeling"},{"$f":"IF('ACCOUNTING SETUP'!AB12=0,\"\",'ACCOUNTING SETUP'!AB12)","v":""},{"$f":"IF('ACCOUNTING SETUP'!AD12=0,\"\",'ACCOUNTING SETUP'!AD12)","v":""},{"$f":"IF('ACCOUNTING SETUP'!AE12=0,\"\",'ACCOUNTING SETUP'!AE12)","v":""},0]
[null,{"$f":"T('ACCOUNTING SETUP'!AI13)","v":"Lowes"},{"$f":"IF('ACCOUNTING SETUP'!AB13=0,\"\",'ACCOUNTING SETUP'!AB13)","v":""},{"$f":"IF('ACCOUNTING SETUP'!AD13=0,\"\",'ACCOUNTING SETUP'!AD13)","v":""},{"$f":"IF('ACCOUNTING SETUP'!AE13=0,\"\",'ACCOUNTING SETUP'!AE13)","v":""},0]
[null,{"$f":"T('ACCOUNTING SETUP'!AI14)","v":"Home Depot"},{"$f":"IF('ACCOUNTING SETUP'!AB14=0,\"\",'ACCOUNTING SETUP'!AB14)","v":""},{"$f":"IF('ACCOUNTING SETUP'!AD14=0,\"\",'ACCOUNTING SETUP'!AD14)","v":""},{"$f":"IF('ACCOUNTING SETUP'!AE14=0,\"\",'ACCOUNTING SETUP'!AE14)","v":""},0]
[null,{"$f":"T('ACCOUNTING SETUP'!AI15)","v":"Ace Electric"},{"$f":"IF('ACCOUNTING SETUP'!AB15=0,\"\",'ACCOUNTING SETUP'!AB15)","v":""},{"$f":"IF('ACCOUNTING SETUP'!AD15=0,\"\",'ACCOUNTING SETUP'!AD15)","v":""},{"$f":"IF('ACCOUNTING SETUP'!AE15=0,\"\",'ACCOUNTING SETUP'!AE15)","v":""},0]
[null,{"$f":"T('ACCOUNTING SETUP'!AI16)","v":"Sherwin Williams"},{"$f":"IF('ACCOUNTING SETUP'!AB16=0,\"\",'ACCOUNTING SETUP'!AB16)","v":""},{"$f":"IF('ACCOUNTING SETUP'!AD16=0,\"\",'ACCOUNTING SETUP'!AD16)","v":""},{"$f":"IF('ACCOUNTING SETUP'!AE16=0,\"\",'ACCOUNTING SETUP'!AE16)","v":""},0]
[null,{"$f":"T('ACCOUNTING SETUP'!AI17)","v":"Vendor 9"},{"$f":"IF('ACCOUNTING SETUP'!AB17=0,\"\",'ACCOUNTING SETUP'!AB17)","v":""},{"$f":"IF('ACCOUNTING SETUP'!AD17=0,\"\",'ACCOUNTING SETUP'!AD17)","v":""},{"$f":"IF('ACCOUNTING SETUP'!AE17=0,\"\",'ACCOUNTING SETUP'!AE17)","v":""},0]
[null,{"$f":"T('ACCOUNTING SETUP'!AI18)","v":"Vendor 10"},{"$f":"IF('ACCOUNTING SETUP'!AB18=0,\"\",'ACCOUNTING SETUP'!AB18)","v":""},{"$f":"IF('ACCOUNTING SETUP'!AD18=0,\"\",'ACCOUNTING SETUP'!AD18)","v":""},{"$f":"IF('ACCOUNTING SETUP'!AE18=0,\"\",'ACCOUNTING SETUP'!AE18)","v":""},0]
[null,{"$f":"T('ACCOUNTING SETUP'!AI19)","v":"Vendor 11"},{"$f":"IF('ACCOUNTING SETUP'!AB19=0,\"\",'ACCOUNTING SETUP'!AB19)","v":""},{"$f":"IF('ACCOUNTING SETUP'!AD19=0,\"\",'ACCOUNTING SETUP'!AD19)","v":""},{"$f":"IF('ACCOUNTING SETUP'!AE19=0,\"\",'ACCOUNTING SETUP'!AE19)","v":""},0]
[null,{"$f":"T('ACCOUNTING SETUP'!AI20)","v":"Vendor 12"},{"$f":"IF('ACCOUNTING SETUP'!AB20=0,\"\",'ACCOUNTING SETUP'!AB20)","v":""},{"$f":"IF('ACCOUNTING SETUP'!AD20=0,\"\",'ACCOUNTING SETUP'!AD20)","v":""},{"$f":"IF('ACCOUNTING SETUP'!AE20=0,\"\",'ACCOUNTING SETUP'!AE20)","v":""},0]
[null,{"$f":"T('ACCOUNTING SETUP'!AI21)","v":"Vendor 13"},{"$f":"IF('ACCOUNTING SETUP'!AB21=0,\"\",'ACCOUNTING SETUP'!AB21)","v":""},{"$f":"IF('ACCOUNTING SETUP'!AD21=0,\"\",'ACCOUNTING SETUP'!AD21)","v":""},{"$f":"IF('ACCOUNTING SETUP'!AE21=0,\"\",'ACCOUNTING SETUP'!AE21)","v":""},0]
[null,{"$f":"T('ACCOUNTING SETUP'!AI22)","v":"Vendor 14"},{"$f":"IF('ACCOUNTING SETUP'!AB22=0,\"\",'ACCOUNTING SETUP'!AB22)","v":""},{"$f":"IF('ACCOUNTING SETUP'!AD22=0,\"\",'ACCOUNTING SETUP'!AD22)","v":""},{"$f":"IF('ACCOUNTING SETUP'!AE22=0,\"\",'ACCOUNTING SETUP'!AE22)","v":""},0]
[null,{"$f":"T('ACCOUNTING SETUP'!AI23)","v":"Vendor 15"},{"$f":"IF('ACCOUNTING SETUP'!AB23=0,\"\",'ACCOUNTING SETUP'!AB23)","v":""},{"$f":"IF('ACCOUNTING SETUP'!AD23=0,\"\",'ACCOUNTING SETUP'!AD23)","v":""},{"$f":"IF('ACCOUNTING SETUP'!AE23=0,\"\",'ACCOUNTING SETUP'!AE23)","v":""},0]
[null,{"$f":"T('ACCOUNTING SETUP'!AI24)","v":"Vendor 16"},{"$f":"IF('ACCOUNTING SETUP'!AB24=0,\"\",'ACCOUNTING SETUP'!AB24)","v":""},{"$f":"IF('ACCOUNTING SETUP'!AD24=0,\"\",'ACCOUNTING SETUP'!AD24)","v":""},{"$f":"IF('ACCOUNTING SETUP'!AE24=0,\"\",'ACCOUNTING SETUP'!AE24)","v":""},0]
[null,{"$f":"T('ACCOUNTING SETUP'!AI25)","v":"Vendor 17"},{"$f":"IF('ACCOUNTING SETUP'!AB25=0,\"\",'ACCOUNTING SETUP'!AB25)","v":""},{"$f":"IF('ACCOUNTING SETUP'!AD25=0,\"\",'ACCOUNTING SETUP'!AD25)","v":""},{"$f":"IF('ACCOUNTING SETUP'!AE25=0,\"\",'ACCOUNTING SETUP'!AE25)","v":""},0]
[null,{"$f":"T('ACCOUNTING SETUP'!AI26)","v":"Vendor 18"},{"$f":"IF('ACCOUNTING SETUP'!AB26=0,\"\",'ACCOUNTING SETUP'!AB26)","v":""},{"$f":"IF('ACCOUNTING SETUP'!AD26=0,\"\",'ACCOUNTING SETUP'!AD26)","v":""},{"$f":"IF('ACCOUNTING SETUP'!AE26=0,\"\",'ACCOUNTING SETUP'!AE26)","v":""},0]
[null,{"$f":"T('ACCOUNTING SETUP'!AI27)","v":"Vendor 19"},{"$f":"IF('ACCOUNTING SETUP'!AB27=0,\"\",'ACCOUNTING SETUP'!AB27)","v":""},{"$f":"IF('ACCOUNTING SETUP'!AD27=0,\"\",'ACCOUNTING SETUP'!AD27)","v":""},{"$f":"IF('ACCOUNTING SETUP'!AE27=0,\"\",'ACCOUNTING SETUP'!AE27)","v":""},0]
[null,{"$f":"T('ACCOUNTING SETUP'!AI28)","v":"Vendor 20"},{"$f":"IF('ACCOUNTING SETUP'!AB28=0,\"\",'ACCOUNTING SETUP'!AB28)","v":""},{"$f":"IF('ACCOUNTING SETUP'!AD28=0,\"\",'ACCOUNTING SETUP'!AD28)","v":""},{"$f":"IF('ACCOUNTING SETUP'!AE28=0,\"\",'ACCOUNTING SETUP'!AE28)","v":""},0]
[null,{"$f":"T('ACCOUNTING SETUP'!AI29)","v":"Vendor 21"},{"$f":"IF('ACCOUNTING SETUP'!AB29=0,\"\",'ACCOUNTING SETUP'!AB29)","v":""},{"$f":"IF('ACCOUNTING SETUP'!AD29=0,\"\",'ACCOUNTING SETUP'!AD29)","v":""},{"$f":"IF('ACCOUNTING SETUP'!AE29=0,\"\",'ACCOUNTING SETUP'!AE29)","v":""},0]
[null,{"$f":"T('ACCOUNTING SETUP'!AI30)","v":"Vendor 22"},{"$f":"IF('ACCOUNTING SETUP'!AB30=0,\"\",'ACCOUNTING SETUP'!AB30)","v":""},{"$f":"IF('ACCOUNTING SETUP'!AD30=0,\"\",'ACCOUNTING SETUP'!AD30)","v":""},{"$f":"IF('ACCOUNTING SETUP'!AE30=0,\"\",'ACCOUNTING SETUP'!AE30)","v":""},0]
[null,{"$f":"T('ACCOUNTING SETUP'!AI31)","v":"Vendor 23"},{"$f":"IF('ACCOUNTING SETUP'!AB31=0,\"\",'ACCOUNTING SETUP'!AB31)","v":""},{"$f":"IF('ACCOUNTING SETUP'!AD31=0,\"\",'ACCOUNTING SETUP'!AD31)","v":""},{"$f":"IF('ACCOUNTING SETUP'!AE31=0,\"\",'ACCOUNTING SETUP'!AE31)","v":""},0]
[null,{"$f":"T('ACCOUNTING SETUP'!AI32)","v":"Vendor 24"},{"$f":"IF('ACCOUNTING SETUP'!AB32=0,\"\",'ACCOUNTING SETUP'!AB32)","v":""},{"$f":"IF('ACCOUNTING SETUP'!AD32=0,\"\",'ACCOUNTING SETUP'!AD32)","v":""},{"$f":"IF('ACCOUNTING SETUP'!AE32=0,\"\",'ACCOUNTING SETUP'!AE32)","v":""},0]
[null,{"$f":"T('ACCOUNTING SETUP'!AI33)","v":"Vendor 25"},{"$f":"IF('ACCOUNTING SETUP'!AB33=0,\"\",'ACCOUNTING SETUP'!AB33)","v":""},{"$f":"IF('ACCOUNTING SETUP'!AD33=0,\"\",'ACCOUNTING SETUP'!AD33)","v":""},{"$f":"IF('ACCOUNTING SETUP'!AE33=0,\"\",'ACCOUNTING SETUP'!AE33)","v":""},0]
[null,{"$f":"T('ACCOUNTING SETUP'!AI34)","v":"Vendor 26"},{"$f":"IF('ACCOUNTING SETUP'!AB34=0,\"\",'ACCOUNTING SETUP'!AB34)","v":""},{"$f":"IF('ACCOUNTING SETUP'!AD34=0,\"\",'ACCOUNTING SETUP'!AD34)","v":""},{"$f":"IF('ACCOUNTING SETUP'!AE34=0,\"\",'ACCOUNTING SETUP'!AE34)","v":""},0]
[null,{"$f":"T('ACCOUNTING SETUP'!AI35)","v":"Vendor 27"},{"$f":"IF('ACCOUNTING SETUP'!AB35=0,\"\",'ACCOUNTING SETUP'!AB35)","v":""},{"$f":"IF('ACCOUNTING SETUP'!AD35=0,\"\",'ACCOUNTING SETUP'!AD35)","v":""},{"$f":"IF('ACCOUNTING SETUP'!AE35=0,\"\",'ACCOUNTING SETUP'!AE35)","v":""},0]
[null,{"$f":"T('ACCOUNTING SETUP'!AI36)","v":"Vendor 28"},{"$f":"IF('ACCOUNTING SETUP'!AB36=0,\"\",'ACCOUNTING SETUP'!AB36)","v":""},{"$f":"IF('ACCOUNTING SETUP'!AD36=0,\"\",'ACCOUNTING SETUP'!AD36)","v":""},{"$f":"IF('ACCOUNTING SETUP'!AE36=0,\"\",'ACCOUNTING SETUP'!AE36)","v":""},0]
[null,{"$f":"T('ACCOUNTING SETUP'!AI37)","v":"Vendor 29"},{"$f":"IF('ACCOUNTING SETUP'!AB37=0,\"\",'ACCOUNTING SETUP'!AB37)","v":""},{"$f":"IF('ACCOUNTING SETUP'!AD37=0,\"\",'ACCOUNTING SETUP'!AD37)","v":""},{"$f":"IF('ACCOUNTING SETUP'!AE37=0,\"\",'ACCOUNTING SETUP'!AE37)","v":""},0]
[null,{"$f":"T('ACCOUNTING SETUP'!AI38)","v":"Vendor 30"},{"$f":"IF('ACCOUNTING SETUP'!AB38=0,\"\",'ACCOUNTING SETUP'!AB38)","v":""},{"$f":"IF('ACCOUNTING SETUP'!AD38=0,\"\",'ACCOUNTING SETUP'!AD38)","v":""},{"$f":"IF('ACCOUNTING SETUP'!AE38=0,\"\",'ACCOUNTING SETUP'!AE38)","v":""},0]
[null,{"$f":"T('ACCOUNTING SETUP'!AI39)","v":"Vendor 31"},{"$f":"IF('ACCOUNTING SETUP'!AB39=0,\"\",'ACCOUNTING SETUP'!AB39)","v":""},{"$f":"IF('ACCOUNTING SETUP'!AD39=0,\"\",'ACCOUNTING SETUP'!AD39)","v":""},{"$f":"IF('ACCOUNTING SETUP'!AE39=0,\"\",'ACCOUNTING SETUP'!AE39)","v":""},0]
[null,{"$f":"T('ACCOUNTING SETUP'!AI40)","v":"Vendor 32"},{"$f":"IF('ACCOUNTING SETUP'!AB40=0,\"\",'ACCOUNTING SETUP'!AB40)","v":""},{"$f":"IF('ACCOUNTING SETUP'!AD40=0,\"\",'ACCOUNTING SETUP'!AD40)","v":""},{"$f":"IF('ACCOUNTING SETUP'!AE40=0,\"\",'ACCOUNTING SETUP'!AE40)","v":""},0]
[null,{"$f":"T('ACCOUNTING SETUP'!AI41)","v":"Vendor 33"},{"$f":"IF('ACCOUNTING SETUP'!AB41=0,\"\",'ACCOUNTING SETUP'!AB41)","v":""},{"$f":"IF('ACCOUNTING SETUP'!AD41=0,\"\",'ACCOUNTING SETUP'!AD41)","v":""},{"$f":"IF('ACCOUNTING SETUP'!AE41=0,\"\",'ACCOUNTING SETUP'!AE41)","v":""},0]
[null,{"$f":"T('ACCOUNTING SETUP'!AI42)","v":"Vendor 34"},{"$f":"IF('ACCOUNTING SETUP'!AB42=0,\"\",'ACCOUNTING SETUP'!AB42)","v":""},{"$f":"IF('ACCOUNTING SETUP'!AD42=0,\"\",'ACCOUNTING SETUP'!AD42)","v":""},{"$f":"IF('ACCOUNTING SETUP'!AE42=0,\"\",'ACCOUNTING SETUP'!AE42)","v":""},0]
[null,{"$f":"T('ACCOUNTING SETUP'!AI43)","v":"Vendor 35"},{"$f":"IF('ACCOUNTING SETUP'!AB43=0,\"\",'ACCOUNTING SETUP'!AB43)","v":""},{"$f":"IF('ACCOUNTING SETUP'!AD43=0,\"\",'ACCOUNTING SETUP'!AD43)","v":""},{"$f":"IF('ACCOUNTING SETUP'!AE43=0,\"\",'ACCOUNTING SETUP'!AE43)","v":""},0]
[null,{"$f":"T('ACCOUNTING SETUP'!AI44)","v":"Vendor 36"},{"$f":"IF('ACCOUNTING SETUP'!AB44=0,\"\",'ACCOUNTING SETUP'!AB44)","v":""},{"$f":"IF('ACCOUNTING SETUP'!AD44=0,\"\",'ACCOUNTING SETUP'!AD44)","v":""},{"$f":"IF('ACCOUNTING SETUP'!AE44=0,\"\",'ACCOUNTING SETUP'!AE44)","v":""},0]
[null,{"$f":"T('ACCOUNTING SETUP'!AI45)","v":"Vendor 37"},{"$f":"IF('ACCOUNTING SETUP'!AB45=0,\"\",'ACCOUNTING SETUP'!AB45)","v":""},{"$f":"IF('ACCOUNTING SETUP'!AD45=0,\"\",'ACCOUNTING SETUP'!AD45)","v":""},{"$f":"IF('ACCOUNTING SETUP'!AE45=0,\"\",'ACCOUNTING SETUP'!AE45)","v":""},0]
[null,{"$f":"T('ACCOUNTING SETUP'!AI46)","v":"Vendor 38"},{"$f":"IF('ACCOUNTING SETUP'!AB46=0,\"\",'ACCOUNTING SETUP'!AB46)","v":""},{"$f":"IF('ACCOUNTING SETUP'!AD46=0,\"\",'ACCOUNTING SETUP'!AD46)","v":""},{"$f":"IF('ACCOUNTING SETUP'!AE46=0,\"\",'ACCOUNTING SETUP'!AE46)","v":""},0]
[null,{"$f":"T('ACCOUNTING SETUP'!AI47)","v":"Vendor 39"},{"$f":"IF('ACCOUNTING SETUP'!AB47=0,\"\",'ACCOUNTING SETUP'!AB47)","v":""},{"$f":"IF('ACCOUNTING SETUP'!AD47=0,\"\",'ACCOUNTING SETUP'!AD47)","v":""},{"$f":"IF('ACCOUNTING SETUP'!AE47=0,\"\",'ACCOUNTING SETUP'!AE47)","v":""},0]
[null,{"$f":"T('ACCOUNTING SETUP'!AI48)","v":"Vendor 40"},{"$f":"IF('ACCOUNTING SETUP'!AB48=0,\"\",'ACCOUNTING SETUP'!AB48)","v":""},{"$f":"IF('ACCOUNTING SETUP'!AD48=0,\"\",'ACCOUNTING SETUP'!AD48)","v":""},{"$f":"IF('ACCOUNTING SETUP'!AE48=0,\"\",'ACCOUNTING SETUP'!AE48)","v":""},0]
[null,{"$f":"T('ACCOUNTING SETUP'!AI49)","v":"Vendor 41"},{"$f":"IF('ACCOUNTING SETUP'!AB49=0,\"\",'ACCOUNTING SETUP'!AB49)","v":""},{"$f":"IF('ACCOUNTING SETUP'!AD49=0,\"\",'ACCOUNTING SETUP'!AD49)","v":""},{"$f":"IF('ACCOUNTING SETUP'!AE49=0,\"\",'ACCOUNTING SETUP'!AE49)","v":""},0]
[null,{"$f":"T('ACCOUNTING SETUP'!AI50)","v":"Vendor 42"},{"$f":"IF('ACCOUNTING SETUP'!AB50=0,\"\",'ACCOUNTING SETUP'!AB50)","v":""},{"$f":"IF('ACCOUNTING SETUP'!AD50=0,\"\",'ACCOUNTING SETUP'!AD50)","v":""},{"$f":"IF('ACCOUNTING SETUP'!AE50=0,\"\",'ACCOUNTING SETUP'!AE50)","v":""},0]
[null,{"$f":"T('ACCOUNTING SETUP'!#REF!)","v":{"$error":"#REF!"}},{"$f":"IF('ACCOUNTING SETUP'!#REF!=0,\"\",'ACCOUNTING SETUP'!#REF!)","v":{"$error":"#REF!"}},{"$f":"IF('ACCOUNTING SETUP'!#REF!=0,\"\",'ACCOUNTING SETUP'!#REF!)","v":{"$error":"#REF!"}},{"$f":"IF('ACCOUNTING SETUP'!#REF!=0,\"\",'ACCOUNTING SETUP'!#REF!)","v":{"$error":"#REF!"}},{"$error":"#REF!"}]
[null,{"$f":"T('ACCOUNTING SETUP'!#REF!)","v":{"$error":"#REF!"}},{"$f":"IF('ACCOUNTING SETUP'!#REF!=0,\"\",'ACCOUNTING SETUP'!#REF!)","v":{"$error":"#REF!"}},{"$f":"IF('ACCOUNTING SETUP'!#REF!=0,\"\",'ACCOUNTING SETUP'!#REF!)","v":{"$error":"#REF!"}},{"$f":"IF('ACCOUNTING SETUP'!#REF!=0,\"\",'ACCOUNTING SETUP'!#REF!)","v":{"$error":"#REF!"}},{"$error":"#REF!"}]
[null,{"$f":"T('ACCOUNTING SETUP'!#REF!)","v":{"$error":"#REF!"}},{"$f":"IF('ACCOUNTING SETUP'!#REF!=0,\"\",'ACCOUNTING SETUP'!#REF!)","v":{"$error":"#REF!"}},{"$f":"IF('ACCOUNTING SETUP'!#REF!=0,\"\",'ACCOUNTING SETUP'!#REF!)","v":{"$error":"#REF!"}},{"$f":"IF('ACCOUNTING SETUP'!#REF!=0,\"\",'ACCOUNTING SETUP'!#REF!)","v":{"$error":"#REF!"}},{"$error":"#REF!"}]
[null,{"$f":"T('ACCOUNTING SETUP'!#REF!)","v":{"$error":"#REF!"}},{"$f":"IF('ACCOUNTING SETUP'!#REF!=0,\"\",'ACCOUNTING SETUP'!#REF!)","v":{"$error":"#REF!"}},{"$f":"IF('ACCOUNTING SETUP'!#REF!=0,\"\",'ACCOUNTING SETUP'!#REF!)","v":{"$error":"#REF!"}},{"$f":"IF('ACCOUNTING SETUP'!#REF!=0,\"\",'ACCOUNTING SETUP'!#REF!)","v":{"$error":"#REF!"}},{"$error":"#REF!"}]
[null,{"$f":"T('ACCOUNTING SETUP'!#REF!)","v":{"$error":"#REF!"}},{"$f":"IF('ACCOUNTING SETUP'!#REF!=0,\"\",'ACCOUNTING SETUP'!#REF!)","v":{"$error":"#REF!"}},{"$f":"IF('ACCOUNTING SETUP'!#REF!=0,\"\",'ACCOUNTING SETUP'!#REF!)","v":{"$error":"#REF!"}},{"$f":"IF('ACCOUNTING SETUP'!#REF!=0,\"\",'ACCOUNTING SETUP'!#REF!)","v":{"$error":"#REF!"}},{"$error":"#REF!"}]
[null,{"$f":"T('ACCOUNTING SETUP'!#REF!)","v":{"$error":"#REF!"}},{"$f":"IF('ACCOUNTING SETUP'!#REF!=0,\"\",'ACCOUNTING SETUP'!#REF!)","v":{"$error":"#REF!"}},{"$f":"IF('ACCOUNTING SETUP'!#REF!=0,\"\",'ACCOUNTING SETUP'!#REF!)","v":{"$error":"#REF!"}},{"$f":"IF('ACCOUNTING SETUP'!#REF!=0,\"\",'ACCOUNTING SETUP'!#REF!)","v":{"$error":"#REF!"}},{"$error":"#REF!"}]
[null,{"$f":"T('ACCOUNTING SETUP'!#REF!)","v":{"$error":"#REF!"}},{"$f":"IF('ACCOUNTING SETUP'!#REF!=0,\"\",'ACCOUNTING SETUP'!#REF!)","v":{"$error":"#REF!"}},{"$f":"IF('ACCOUNTING SETUP'!#REF!=0,\"\",'ACCOUNTING SETUP'!#REF!)","v":{"$error":"#REF!"}},{"$f":"IF('ACCOUNTING SETUP'!#REF!=0,\"\",'ACCOUNTING SETUP'!#REF!)","v":{"$error":"#REF!"}},{"$error":"#REF!"}]
[null,{"$f":"T('ACCOUNTING SETUP'!#REF!)","v":{"$error":"#REF!"}},{"$f":"IF('ACCOUNTING SETUP'!#REF!=0,\"\",'ACCOUNTING SETUP'!#REF!)","v":{"$error":"#REF!"}},{"$f":"IF('ACCOUNTING SETUP'!#REF!=0,\"\",'ACCOUNTING SETUP'!#REF!)","v":{"$error":"#REF!"}},{"$f":"IF('ACCOUNTING SETUP'!#REF!=0,\"\",'ACCOUNTING SETUP'!#REF!)","v":{"$error":"#REF!"}},{"$error":"#REF!"}]
[null,{"$f":"T('ACCOUNTING SETUP'!#REF!)","v":{"$error":"#REF!"}},{"$f":"IF('ACCOUNTING SETUP'!#REF!=0,\"\",'ACCOUNTING SETUP'!#REF!)","v":{"$error":"#REF!"}},{"$f":"IF('ACCOUNTING SETUP'!#REF!=0,\"\",'ACCOUNTING SETUP'!#REF!)","v":{"$error":"#REF!"}},{"$f":"IF('ACCOUNTING SETUP'!#REF!=0,\"\",'ACCOUNTING SETUP'!#REF!)","v":{"$error":"#REF!"}},{"$error":"#REF!"}]
[null,{"$f":"T('ACCOUNTING SETUP'!#REF!)","v":{"$error":"#REF!"}},{"$f":"IF('ACCOUNTING SETUP'!#REF!=0,\"\",'ACCOUNTING SETUP'!#REF!)","v":{"$error":"#REF!"}},{"$f":"IF('ACCOUNTING SETUP'!#REF!=0,\"\",'ACCOUNTING SETUP'!#REF!)","v":{"$error":"#REF!"}},{"$f":"IF('ACCOUNTING SETUP'!#REF!=0,\"\",'ACCOUNTING SETUP'!#REF!)","v":{"$error":"#REF!"}},{"$error":"#REF!"}]
[null,{"$f":"T('ACCOUNTING SETUP'!#REF!)","v":{"$error":"#REF!"}},{"$f":"IF('ACCOUNTING SETUP'!#REF!=0,\"\",'ACCOUNTING SETUP'!#REF!)","v":{"$error":"#REF!"}},{"$f":"IF('ACCOUNTING SETUP'!#REF!=0,\"\",'ACCOUNTING SETUP'!#REF!)","v":{"$error":"#REF!"}},{"$f":"IF('ACCOUNTING SETUP'!#REF!=0,\"\",'ACCOUNTING SETUP'!#REF!)","v":{"$error":"#REF!"}},{"$error":"#REF!"}]
[null,{"$f":"T('ACCOUNTING SETUP'!#REF!)","v":{"$error":"#REF!"}},{"$f":"IF('ACCOUNTING SETUP'!#REF!=0,\"\",'ACCOUNTING SETUP'!#REF!)","v":{"$error":"#REF!"}},{"$f":"IF('ACCOUNTING SETUP'!#REF!=0,\"\",'ACCOUNTING SETUP'!#REF!)","v":{"$error":"#REF!"}},{"$f":"IF('ACCOUNTING SETUP'!#REF!=0,\"\",'ACCOUNTING SETUP'!#REF!)","v":{"$error":"#REF!"}},{"$error":"#REF!"}]
[null,{"$f":"T('ACCOUNTING SETUP'!AI51)","v":"Vendor 55"},{"$f":"IF('ACCOUNTING SETUP'!AB51=0,\"\",'ACCOUNTING SETUP'!AB51)","v":""},{"$f":"IF('ACCOUNTING SETUP'!AD51=0,\"\",'ACCOUNTING SETUP'!AD51)","v":""},{"$f":"IF('ACCOUNTING SETUP'!AE51=0,\"\",'ACCOUNTING SETUP'!AE51)","v":""},0]
[null,{"$f":"T('ACCOUNTING SETUP'!AI52)","v":"Vendor 56"},{"$f":"IF('ACCOUNTING SETUP'!AB52=0,\"\",'ACCOUNTING SETUP'!AB52)","v":""},{"$f":"IF('ACCOUNTING SETUP'!AD52=0,\"\",'ACCOUNTING SETUP'!AD52)","v":""},{"$f":"IF('ACCOUNTING SETUP'!AE52=0,\"\",'ACCOUNTING SETUP'!AE52)","v":""},0]
[null,{"$f":"T('ACCOUNTING SETUP'!AI53)","v":"Vendor 57"},{"$f":"IF('ACCOUNTING SETUP'!AB53=0,\"\",'ACCOUNTING SETUP'!AB53)","v":""},{"$f":"IF('ACCOUNTING SETUP'!AD53=0,\"\",'ACCOUNTING SETUP'!AD53)","v":""},{"$f":"IF('ACCOUNTING SETUP'!AE53=0,\"\",'ACCOUNTING SETUP'!AE53)","v":""},0]
[null,{"$f":"T('ACCOUNTING SETUP'!AI54)","v":"Vendor 58"},{"$f":"IF('ACCOUNTING SETUP'!AB54=0,\"\",'ACCOUNTING SETUP'!AB54)","v":""},{"$f":"IF('ACCOUNTING SETUP'!AD54=0,\"\",'ACCOUNTING SETUP'!AD54)","v":""},{"$f":"IF('ACCOUNTING SETUP'!AE54=0,\"\",'ACCOUNTING SETUP'!AE54)","v":""},0]
[null,{"$f":"T('ACCOUNTING SETUP'!AI55)","v":"Vendor 59"},{"$f":"IF('ACCOUNTING SETUP'!AB55=0,\"\",'ACCOUNTING SETUP'!AB55)","v":""},{"$f":"IF('ACCOUNTING SETUP'!AD55=0,\"\",'ACCOUNTING SETUP'!AD55)","v":""},{"$f":"IF('ACCOUNTING SETUP'!AE55=0,\"\",'ACCOUNTING SETUP'!AE55)","v":""},0]
[null,{"$f":"T('ACCOUNTING SETUP'!AI56)","v":"Vendor 60"},{"$f":"IF('ACCOUNTING SETUP'!AB56=0,\"\",'ACCOUNTING SETUP'!AB56)","v":""},{"$f":"IF('ACCOUNTING SETUP'!AD56=0,\"\",'ACCOUNTING SETUP'!AD56)","v":""},{"$f":"IF('ACCOUNTING SETUP'!AE56=0,\"\",'ACCOUNTING SETUP'!AE56)","v":""},0]
[null,{"$f":"T('ACCOUNTING SETUP'!AI57)","v":"Vendor 61"},{"$f":"IF('ACCOUNTING SETUP'!AB57=0,\"\",'ACCOUNTING SETUP'!AB57)","v":""},{"$f":"IF('ACCOUNTING SETUP'!AD57=0,\"\",'ACCOUNTING SETUP'!AD57)","v":""},{"$f":"IF('ACCOUNTING SETUP'!AE57=0,\"\",'ACCOUNTING SETUP'!AE57)","v":""},0]
[null,{"$f":"T('ACCOUNTING SETUP'!AI58)","v":"Vendor 62"},{"$f":"IF('ACCOUNTING SETUP'!AB58=0,\"\",'ACCOUNTING SETUP'!AB58)","v":""},{"$f":"IF('ACCOUNTING SETUP'!AD58=0,\"\",'ACCOUNTING SETUP'!AD58)","v":""},{"$f":"IF('ACCOUNTING SETUP'!AE58=0,\"\",'ACCOUNTING SETUP'!AE58)","v":""},0]
[null,{"$f":"T('ACCOUNTING SETUP'!AI59)","v":"Vendor 63"},{"$f":"IF('ACCOUNTING SETUP'!AB59=0,\"\",'ACCOUNTING SETUP'!AB59)","v":""},{"$f":"IF('ACCOUNTING SETUP'!AD59=0,\"\",'ACCOUNTING SETUP'!AD59)","v":""},{"$f":"IF('ACCOUNTING SETUP'!AE59=0,\"\",'ACCOUNTING SETUP'!AE59)","v":""},0]
[null,{"$f":"T('ACCOUNTING SETUP'!AI60)","v":"Vendor 64"},{"$f":"IF('ACCOUNTING SETUP'!AB60=0,\"\",'ACCOUNTING SETUP'!AB60)","v":""},{"$f":"IF('ACCOUNTING SETUP'!AD60=0,\"\",'ACCOUNTING SETUP'!AD60)","v":""},{"$f":"IF('ACCOUNTING SETUP'!AE60=0,\"\",'ACCOUNTING SETUP'!AE60)","v":""},0]
[null,{"$f":"T('ACCOUNTING SETUP'!AI61)","v":"Vendor 65"},{"$f":"IF('ACCOUNTING SETUP'!AB61=0,\"\",'ACCOUNTING SETUP'!AB61)","v":""},{"$f":"IF('ACCOUNTING SETUP'!AD61=0,\"\",'ACCOUNTING SETUP'!AD61)","v":""},{"$f":"IF('ACCOUNTING SETUP'!AE61=0,\"\",'ACCOUNTING SETUP'!AE61)","v":""},0]
[null,{"$f":"T('ACCOUNTING SETUP'!AI62)","v":"Vendor 66"},{"$f":"IF('ACCOUNTING SETUP'!AB62=0,\"\",'ACCOUNTING SETUP'!AB62)","v":""},{"$f":"IF('ACCOUNTING SETUP'!AD62=0,\"\",'ACCOUNTING SETUP'!AD62)","v":""},{"$f":"IF('ACCOUNTING SETUP'!AE62=0,\"\",'ACCOUNTING SETUP'!AE62)","v":""},0]
[null,{"$f":"T('ACCOUNTING SETUP'!AI63)","v":"Vendor 67"},{"$f":"IF('ACCOUNTING SETUP'!AB63=0,\"\",'ACCOUNTING SETUP'!AB63)","v":""},{"$f":"IF('ACCOUNTING SETUP'!AD63=0,\"\",'ACCOUNTING SETUP'!AD63)","v":""},{"$f":"IF('ACCOUNTING SETUP'!AE63=0,\"\",'ACCOUNTING SETUP'!AE63)","v":""},{"$f":"IF(OR(C88<>\"\",D88<>\"\",E88<>\"\"),1,0)","v":0}]
[null,{"$f":"T('ACCOUNTING SETUP'!AI64)","v":"Vendor 68"},{"$f":"IF('ACCOUNTING SETUP'!AB64=0,\"\",'ACCOUNTING SETUP'!AB64)","v":""},{"$f":"IF('ACCOUNTING SETUP'!AD64=0,\"\",'ACCOUNTING SETUP'!AD64)","v":""},{"$f":"IF('ACCOUNTING SETUP'!AE64=0,\"\",'ACCOUNTING SETUP'!AE64)","v":""},0]
[null,{"$f":"T('ACCOUNTING SETUP'!AI65)","v":"Vendor 69"},{"$f":"IF('ACCOUNTING SETUP'!AB65=0,\"\",'ACCOUNTING SETUP'!AB65)","v":""},{"$f":"IF('ACCOUNTING SETUP'!AD65=0,\"\",'ACCOUNTING SETUP'!AD65)","v":""},{"$f":"IF('ACCOUNTING SETUP'!AE65=0,\"\",'ACCOUNTING SETUP'!AE65)","v":""},0]
[null,{"$f":"T('ACCOUNTING SETUP'!AI66)","v":"Vendor 70"},{"$f":"IF('ACCOUNTING SETUP'!AB66=0,\"\",'ACCOUNTING SETUP'!AB66)","v":""},{"$f":"IF('ACCOUNTING SETUP'!AD66=0,\"\",'ACCOUNTING SETUP'!AD66)","v":""},{"$f":"IF('ACCOUNTING SETUP'!AE66=0,\"\",'ACCOUNTING SETUP'!AE66)","v":""},0]
[null,{"$f":"T('ACCOUNTING SETUP'!AI67)","v":"Vendor 71"},{"$f":"IF('ACCOUNTING SETUP'!AB67=0,\"\",'ACCOUNTING SETUP'!AB67)","v":""},{"$f":"IF('ACCOUNTING SETUP'!AD67=0,\"\",'ACCOUNTING SETUP'!AD67)","v":""},{"$f":"IF('ACCOUNTING SETUP'!AE67=0,\"\",'ACCOUNTING SETUP'!AE67)","v":""},0]
[null,{"$f":"T('ACCOUNTING SETUP'!AI68)","v":"Vendor 72"},{"$f":"IF('ACCOUNTING SETUP'!AB68=0,\"\",'ACCOUNTING SETUP'!AB68)","v":""},{"$f":"IF('ACCOUNTING SETUP'!AD68=0,\"\",'ACCOUNTING SETUP'!AD68)","v":""},{"$f":"IF('ACCOUNTING SETUP'!AE68=0,\"\",'ACCOUNTING SETUP'!AE68)","v":""},0]
[null,{"$f":"T('ACCOUNTING SETUP'!AI69)","v":"Vendor 73"},{"$f":"IF('ACCOUNTING SETUP'!AB69=0,\"\",'ACCOUNTING SETUP'!AB69)","v":""},{"$f":"IF('ACCOUNTING SETUP'!AD69=0,\"\",'ACCOUNTING SETUP'!AD69)","v":""},{"$f":"IF('ACCOUNTING SETUP'!AE69=0,\"\",'ACCOUNTING SETUP'!AE69)","v":""},0]
[null,{"$f":"T('ACCOUNTING SETUP'!AI70)","v":"Vendor 74"},{"$f":"IF('ACCOUNTING SETUP'!AB70=0,\"\",'ACCOUNTING SETUP'!AB70)","v":""},{"$f":"IF('ACCOUNTING SETUP'!AD70=0,\"\",'ACCOUNTING SETUP'!AD70)","v":""},{"$f":"IF('ACCOUNTING SETUP'!AE70=0,\"\",'ACCOUNTING SETUP'!AE70)","v":""},0]
[null,{"$f":"T('ACCOUNTING SETUP'!AI71)","v":"Vendor 75"},{"$f":"IF('ACCOUNTING SETUP'!AB71=0,\"\",'ACCOUNTING SETUP'!AB71)","v":""},{"$f":"IF('ACCOUNTING SETUP'!AD71=0,\"\",'ACCOUNTING SETUP'!AD71)","v":""},{"$f":"IF('ACCOUNTING SETUP'!AE71=0,\"\",'ACCOUNTING SETUP'!AE71)","v":""},0]
[null,{"$f":"T('ACCOUNTING SETUP'!AI72)","v":"Vendor 76"},{"$f":"IF('ACCOUNTING SETUP'!AB72=0,\"\",'ACCOUNTING SETUP'!AB72)","v":""},{"$f":"IF('ACCOUNTING SETUP'!AD72=0,\"\",'ACCOUNTING SETUP'!AD72)","v":""},{"$f":"IF('ACCOUNTING SETUP'!AE72=0,\"\",'ACCOUNTING SETUP'!AE72)","v":""},0]
[null,{"$f":"T('ACCOUNTING SETUP'!AI73)","v":"Vendor 77"},{"$f":"IF('ACCOUNTING SETUP'!AB73=0,\"\",'ACCOUNTING SETUP'!AB73)","v":""},{"$f":"IF('ACCOUNTING SETUP'!AD73=0,\"\",'ACCOUNTING SETUP'!AD73)","v":""},{"$f":"IF('ACCOUNTING SETUP'!AE73=0,\"\",'ACCOUNTING SETUP'!AE73)","v":""},0]
[null,{"$f":"T('ACCOUNTING SETUP'!AI74)","v":"Vendor 78"},{"$f":"IF('ACCOUNTING SETUP'!AB74=0,\"\",'ACCOUNTING SETUP'!AB74)","v":""},{"$f":"IF('ACCOUNTING SETUP'!AD74=0,\"\",'ACCOUNTING SETUP'!AD74)","v":""},{"$f":"IF('ACCOUNTING SETUP'!AE74=0,\"\",'ACCOUNTING SETUP'!AE74)","v":""},0]
[null,{"$f":"T('ACCOUNTING SETUP'!AI75)","v":"Vendor 79"},{"$f":"IF('ACCOUNTING SETUP'!AB75=0,\"\",'ACCOUNTING SETUP'!AB75)","v":""},{"$f":"IF('ACCOUNTING SETUP'!AD75=0,\"\",'ACCOUNTING SETUP'!AD75)","v":""},{"$f":"IF('ACCOUNTING SETUP'!AE75=0,\"\",'ACCOUNTING SETUP'!AE75)","v":""},0]
[null,{"$f":"T('ACCOUNTING SETUP'!AI76)","v":"Vendor 80"},{"$f":"IF('ACCOUNTING SETUP'!AB76=0,\"\",'ACCOUNTING SETUP'!AB76)","v":""},{"$f":"IF('ACCOUNTING SETUP'!AD76=0,\"\",'ACCOUNTING SETUP'!AD76)","v":""},{"$f":"IF('ACCOUNTING SETUP'!AE76=0,\"\",'ACCOUNTING SETUP'!AE76)","v":""},0]
[null,{"$f":"T('ACCOUNTING SETUP'!AI77)","v":"Vendor 81"},{"$f":"IF('ACCOUNTING SETUP'!AB77=0,\"\",'ACCOUNTING SETUP'!AB77)","v":""},{"$f":"IF('ACCOUNTING SETUP'!AD77=0,\"\",'ACCOUNTING SETUP'!AD77)","v":""},{"$f":"IF('ACCOUNTING SETUP'!AE77=0,\"\",'ACCOUNTING SETUP'!AE77)","v":""},0]
[null,{"$f":"T('ACCOUNTING SETUP'!AI78)","v":"Vendor 82"},{"$f":"IF('ACCOUNTING SETUP'!AB78=0,\"\",'ACCOUNTING SETUP'!AB78)","v":""},{"$f":"IF('ACCOUNTING SETUP'!AD78=0,\"\",'ACCOUNTING SETUP'!AD78)","v":""},{"$f":"IF('ACCOUNTING SETUP'!AE78=0,\"\",'ACCOUNTING SETUP'!AE78)","v":""},0]
[null,{"$f":"T('ACCOUNTING SETUP'!AI79)","v":"Vendor 83"},{"$f":"IF('ACCOUNTING SETUP'!AB79=0,\"\",'ACCOUNTING SETUP'!AB79)","v":""},{"$f":"IF('ACCOUNTING SETUP'!AD79=0,\"\",'ACCOUNTING SETUP'!AD79)","v":""},{"$f":"IF('ACCOUNTING SETUP'!AE79=0,\"\",'ACCOUNTING SETUP'!AE79)","v":""},0]
[null,{"$f":"T('ACCOUNTING SETUP'!AI80)","v":"Vendor 84"},{"$f":"IF('ACCOUNTING SETUP'!AB80=0,\"\",'ACCOUNTING SETUP'!AB80)","v":""},{"$f":"IF('ACCOUNTING SETUP'!AD80=0,\"\",'ACCOUNTING SETUP'!AD80)","v":""},{"$f":"IF('ACCOUNTING SETUP'!AE80=0,\"\",'ACCOUNTING SETUP'!AE80)","v":""},0]
[null,{"$f":"T('ACCOUNTING SETUP'!AI81)","v":"Vendor 85"},{"$f":"IF('ACCOUNTING SETUP'!AB81=0,\"\",'ACCOUNTING SETUP'!AB81)","v":""},{"$f":"IF('ACCOUNTING SETUP'!AD81=0,\"\",'ACCOUNTING SETUP'!AD81)","v":""},{"$f":"IF('ACCOUNTING SETUP'!AE81=0,\"\",'ACCOUNTING SETUP'!AE81)","v":""},0]
[null,{"$f":"T('ACCOUNTING SETUP'!AI82)","v":"Vendor 86"},{"$f":"IF('ACCOUNTING SETUP'!AB82=0,\"\",'ACCOUNTING SETUP'!AB82)","v":""},{"$f":"IF('ACCOUNTING SETUP'!AD82=0,\"\",'ACCOUNTING SETUP'!AD82)","v":""},{"$f":"IF('ACCOUNTING SETUP'!AE82=0,\"\",'ACCOUNTING SETUP'!AE82)","v":""},0]
[null,{"$f":"T('ACCOUNTING SETUP'!AI83)","v":"Vendor 87"},{"$f":"IF('ACCOUNTING SETUP'!AB83=0,\"\",'ACCOUNTING SETUP'!AB83)","v":""},{"$f":"IF('ACCOUNTING SETUP'!AD83=0,\"\",'ACCOUNTING SETUP'!AD83)","v":""},{"$f":"IF('ACCOUNTING SETUP'!AE83=0,\"\",'ACCOUNTING SETUP'!AE83)","v":""},0]
[null,{"$f":"T('ACCOUNTING SETUP'!AI84)","v":"Vendor 88"},{"$f":"IF('ACCOUNTING SETUP'!AB84=0,\"\",'ACCOUNTING SETUP'!AB84)","v":""},{"$f":"IF('ACCOUNTING SETUP'!AD84=0,\"\",'ACCOUNTING SETUP'!AD84)","v":""},{"$f":"IF('ACCOUNTING SETUP'!AE84=0,\"\",'ACCOUNTING SETUP'!AE84)","v":""},0]
[null,{"$f":"T('ACCOUNTING SETUP'!AI85)","v":"Vendor 89"},{"$f":"IF('ACCOUNTING SETUP'!AB85=0,\"\",'ACCOUNTING SETUP'!AB85)","v":""},{"$f":"IF('ACCOUNTING SETUP'!AD85=0,\"\",'ACCOUNTING SETUP'!AD85)","v":""},{"$f":"IF('ACCOUNTING SETUP'!AE85=0,\"\",'ACCOUNTING SETUP'!AE85)","v":""},0]
[null,{"$f":"T('ACCOUNTING SETUP'!AI86)","v":"Vendor 90"},{"$f":"IF('ACCOUNTING SETUP'!AB86=0,\"\",'ACCOUNTING SETUP'!AB86)","v":""},{"$f":"IF('ACCOUNTING SETUP'!AD86=0,\"\",'ACCOUNTING SETUP'!AD86)","v":""},{"$f":"IF('ACCOUNTING SETUP'!AE86=0,\"\",'ACCOUNTING SETUP'!AE86)","v":""},0]
[null,{"$f":"T('ACCOUNTING SETUP'!AI87)","v":"Vendor 91"},{"$f":"IF('ACCOUNTING SETUP'!AB87=0,\"\",'ACCOUNTING SETUP'!AB87)","v":""},{"$f":"IF('ACCOUNTING SETUP'!AD87=0,\"\",'ACCOUNTING SETUP'!AD87)","v":""},{"$f":"IF('ACCOUNTING SETUP'!AE87=0,\"\",'ACCOUNTING SETUP'!AE87)","v":""},0]
[null,{"$f":"T('ACCOUNTING SETUP'!AI88)","v":"Vendor 92"},{"$f":"IF('ACCOUNTING SETUP'!AB88=0,\"\",'ACCOUNTING SETUP'!AB88)","v":""},{"$f":"IF('ACCOUNTING SETUP'!AD88=0,\"\",'ACCOUNTING SETUP'!AD88)","v":""},{"$f":"IF('ACCOUNTING SETUP'!AE88=0,\"\",'ACCOUNTING SETUP'!AE88)","v":""},0]
[null,{"$f":"T('ACCOUNTING SETUP'!AI89)","v":"Vendor 93"},{"$f":"IF('ACCOUNTING SETUP'!AB89=0,\"\",'ACCOUNTING SETUP'!AB89)","v":""},{"$f":"IF('ACCOUNTING SETUP'!AD89=0,\"\",'ACCOUNTING SETUP'!AD89)","v":""},{"$f":"IF('ACCOUNTING SETUP'!AE89=0,\"\",'ACCOUNTING SETUP'!AE89)","v":""},0]
[null,{"$f":"T('ACCOUNTING SETUP'!AI90)","v":"Vendor 94"},{"$f":"IF('ACCOUNTING SETUP'!AB90=0,\"\",'ACCOUNTING SETUP'!AB90)","v":""},{"$f":"IF('ACCOUNTING SETUP'!AD90=0,\"\",'ACCOUNTING SETUP'!AD90)","v":""},{"$f":"IF('ACCOUNTING SETUP'!AE90=0,\"\",'ACCOUNTING SETUP'!AE90)","v":""},0]
[null,{"$f":"T('ACCOUNTING SETUP'!AI91)","v":"Vendor 95"},{"$f":"IF('ACCOUNTING SETUP'!AB91=0,\"\",'ACCOUNTING SETUP'!AB91)","v":""},{"$f":"IF('ACCOUNTING SETUP'!AD91=0,\"\",'ACCOUNTING SETUP'!AD91)","v":""},{"$f":"IF('ACCOUNTING SETUP'!AE91=0,\"\",'ACCOUNTING SETUP'!AE91)","v":""},0]
[null,{"$f":"T('ACCOUNTING SETUP'!AI92)","v":"Vendor 96"},{"$f":"IF('ACCOUNTING SETUP'!AB92=0,\"\",'ACCOUNTING SETUP'!AB92)","v":""},{"$f":"IF('ACCOUNTING SETUP'!AD92=0,\"\",'ACCOUNTING SETUP'!AD92)","v":""},{"$f":"IF('ACCOUNTING SETUP'!AE92=0,\"\",'ACCOUNTING SETUP'!AE92)","v":""},0]
[null,{"$f":"T('ACCOUNTING SETUP'!AI93)","v":"Vendor 97"},{"$f":"IF('ACCOUNTING SETUP'!AB93=0,\"\",'ACCOUNTING SETUP'!AB93)","v":""},{"$f":"IF('ACCOUNTING SETUP'!AD93=0,\"\",'ACCOUNTING SETUP'!AD93)","v":""},{"$f":"IF('ACCOUNTING SETUP'!AE93=0,\"\",'ACCOUNTING SETUP'!AE93)","v":""},0]
[null,{"$f":"T('ACCOUNTING SETUP'!AI94)","v":"Vendor 98"},{"$f":"IF('ACCOUNTING SETUP'!AB94=0,\"\",'ACCOUNTING SETUP'!AB94)","v":""},{"$f":"IF('ACCOUNTING SETUP'!AD94=0,\"\",'ACCOUNTING SETUP'!AD94)","v":""},{"$f":"IF('ACCOUNTING SETUP'!AE94=0,\"\",'ACCOUNTING SETUP'!AE94)","v":""},0]
[null,{"$f":"T('ACCOUNTING SETUP'!AI95)","v":"Vendor 99"},{"$f":"IF('ACCOUNTING SETUP'!AB95=0,\"\",'ACCOUNTING SETUP'!AB95)","v":""},{"$f":"IF('ACCOUNTING SETUP'!AD95=0,\"\",'ACCOUNTING SETUP'!AD95)","v":""},{"$f":"IF('ACCOUNTING SETUP'!AE95=0,\"\",'ACCOUNTING SETUP'!AE95)","v":""},0]
[null,{"$f":"T('ACCOUNTING SETUP'!AI96)","v":"Vendor 100"},{"$f":"IF('ACCOUNTING SETUP'!AB96=0,\"\",'ACCOUNTING SETUP'!AB96)","v":""},{"$f":"IF('ACCOUNTING SETUP'!AD96=0,\"\",'ACCOUNTING SETUP'!AD96)","v":""},{"$f":"IF('ACCOUNTING SETUP'!AE96=0,\"\",'ACCOUNTING SETUP'!AE96)","v":""},0]

{"sheet":"VENDOR 1099","index":58,"n_rows":126,"n_cols":67,"rows_kept":126,"hidden":true,"merged":[[1,8,1,18],[10,22,14,37],[15,22,17,37],[18,22,18,57],[18,58,19,65],[19,22,19,35],[19,36,19,42],[19,43,19,50],[19,51,19,57],[20,22,20,35],[20,36,20,42],[20,43,20,50],[20,51,20,57],[20,58,20,65],[21,22,21,35],[21,36,21,42],[21,43,21,50],[21,51,21,57],[21,58,21,65],[22,22,22,35],[22,36,22,42],[22,43,22,50],[22,51,22,57],[22,58,22,65],[23,22,23,35],[23,36,23,42],[23,43,23,50],[23,51,23,57],[23,58,23,65],[24,22,24,35],[24,36,24,42],[24,43,24,50],[24,51,24,57],[24,58,24,65],[25,22,25,35],[25,36,25,42],[25,43,25,50],[25,51,25,57],[25,58,25,65],[26,22,26,35],[26,36,26,42],[26,43,26,50],[26,51,26,57],[26,58,26,65],[27,22,27,35],[27,36,27,42],[27,43,27,50],[27,51,27,57],[27,58,27,65],[28,22,28,35],[28,36,28,42],[28,43,28,50],[28,51,28,57],[28,58,28,65],[29,22,29,35],[29,36,29,42],[29,43,29,50],[29,51,29,57],[29,58,29,65],[30,22,30,35],[30,36,30,42],[30,43,30,50],[30,51,30,57],[30,58,30,65],[31,22,31,35],[31,36,31,42],[31,43,31,50],[31,51,31,57],[31,58,31,65],[32,22,32,35],[32,36,32,42],[32,43,32,50],[32,51,32,57],[32,58,32,65],[33,22,33,35],[33,36,33,42],[33,43,33,50],[33,51,33,57],[33,58,33,65],[34,22,34,35],[34,36,34,42],[34,43,34,50],[34,51,34,57],[34,58,34,65],[35,22,35,35],[35,36,35,42],[35,43,35,50],[35,51,35,57],[35,58,35,65],[36,22,36,35],[36,36,36,42],[36,43,36,50],[36,51,36,57],[36,58,36,65],[37,22,37,35],[37,36,37,42],[37,43,37,50],[37,51,37,57],[37,58,37,65],[38,22,38,35],[38,36,38,42],[38,43,38,50],[38,51,38,57],[38,58,38,65],[39,22,39,35],[39,36,39,42],[39,43,39,50],[39,51,39,57],[39,58,39,65],[40,22,40,35],[40,36,40,42],[40,43,40,50],[40,51,40,57],[40,58,40,65],[41,22,41,35],[41,36,41,42],[41,43,41,50],[41,51,41,57],[41,58,41,65],[42,22,42,35],[42,36,42,42],[42,43,42,50],[42,51,42,57],[42,58,42,65],[43,22,43,35],[43,36,43,42],[43,43,43,50],[43,51,43,57],[43,58,43,65],[44,22,44,35],[44,36,44,42],[44,43,44,50],[44,51,44,57],[44,58,44,65],[45,22,45,35],[45,36,45,42],[45,43,45,50],[45,51,45,57],[45,58,45,65],[46,22,46,35],[46,36,46,42],[46,43,46,50],[46,51,46,57],[46,58,46,65],[47,22,47,35],[47,36,47,42],[47,43,47,50],[47,51,47,57],[47,58,47,65],[48,22,48,35],[48,36,48,42],[48,43,48,50],[48,51,48,57],[48,58,48,65],[49,22,49,35],[49,36,49,42],[49,43,49,50],[49,51,49,57],[49,58,49,65],[50,22,50,35],[50,36,50,42],[50,43,50,50],[50,51,50,57],[50,58,50,65],[51,22,51,35],[51,36,51,42],[51,43,51,50],[51,51,51,57],[51,58,51,65],[52,22,52,35],[52,36,52,42],[52,43,52,50],[52,51,52,57],[52,58,52,65],[53,22,53,35],[53,36,53,42],[53,43,53,50],[53,51,53,57],[53,58,53,65],[54,22,54,35],[54,36,54,42],[54,43,54,50],[54,51,54,57],[54,58,54,65],[55,22,55,35],[55,36,55,42],[55,43,55,50],[55,51,55,57],[55,58,55,65],[56,22,56,35],[56,36,56,42],[56,43,56,50],[56,51,56,57],[56,58,56,65],[57,22,57,35],[57,36,57,42],[57,43,57,50],[57,51,57,57],[57,58,57,65],[58,22,58,35],[58,36,58,42],[58,43,58,50],[58,51,58,57],[58,58,58,65],[59,22,59,35],[59,36,59,42],[59,43,59,50],[59,51,59,57],[59,58,59,65],[60,22,60,35],[60,36,60,42],[60,43,60,50],[60,51,60,57],[60,58,60,65],[61,22,61,35],[61,36,61,42],[61,43,61,50],[61,51,61,57],[61,58,61,65],[62,22,62,35],[62,36,62,42],[62,43,62,50],[62,51,62,57],[62,58,62,65],[63,22,63,35],[63,36,63,42],[63,43,63,50],[63,51,63,57],[63,58,63,65],[64,22,64,35],[64,36,64,42],[64,43,64,50],[64,51,64,57],[64,58,64,65],[65,22,65,35],[65,36,65,42],[65,43,65,50],[65,51,65,57],[65,58,65,65],[66,22,66,35],[66,36,66,42],[66,43,66,50],[66,51,66,57],[66,58,66,65],[67,22,67,35],[67,36,67,42],[67,43,67,50],[67,51,67,57],[67,58,67,65],[68,22,68,35],[68,36,68,42],[68,43,68,50],[68,51,68,57],[68,58,68,65],[69,22,69,35],[69,36,69,42],[69,43,69,50],[69,51,69,57],[69,58,69,65],[70,22,70,35],[70,36,70,42],[70,43,70,50],[70,51,70,57],[70,58,70,65],[71,22,71,35],[71,36,71,42],[71,43,71,50],[71,51,71,57],[71,58,71,65],[72,22,72,35],[72,36,72,42],[72,43,72,50],[72,51,72,57],[72,58,72,65],[73,22,73,35],[73,36,73,42],[73,43,73,50],[73,51,73,57],[73,58,73,65],[74,22,74,35],[74,36,74,42],[74,43,74,50],[74,51,74,57],[74,58,74,65],[75,22,75,35],[75,36,75,42],[75,43,75,50],[75,51,75,57],[75,58,75,65],[76,22,76,35],[76,36,76,42],[76,43,76,50],[76,51,76,57],[76,58,76,65],[77,22,77,35],[77,36,77,42],[77,43,77,50],[77,51,77,57],[77,58,77,65],[78,22,78,35],[78,36,78,42],[78,43,78,50],[78,51,78,57],[78,58,78,65],[79,22,79,35],[79,36,79,42],[79,43,79,50],[79,51,79,57],[79,58,79,65],[80,22,80,35],[80,36,80,42],[80,43,80,50],[80,51,80,57],[80,58,80,65],[81,22,81,35],[81,36,81,42],[81,43,81,50],[81,51,81,57],[81,58,81,65],[82,22,82,35],[82,36,82,42],[82,43,82,50],[82,51,82,57],[82,58,82,65],[83,22,83,35],[83,36,83,42],[83,43,83,50],[83,51,83,57],[83,58,83,65],[84,22,84,35],[84,36,84,42],[84,43,84,50],[84,51,84,57],[84,58,84,65],[85,22,85,35],[85,36,85,42],[85,43,85,50],[85,51,85,57],[85,58,85,65],[86,22,86,35],[86,36,86,42],[86,43,86,50],[86,51,86,57],[86,58,86,65],[87,22,87,35],[87,36,87,42],[87,43,87,50],[87,51,87,57],[87,58,87,65],[88,22,88,35],[88,36,88,42],[88,43,88,50],[88,51,88,57],[88,58,88,65],[89,22,89,35],[89,36,89,42],[89,43,89,50],[89,51,89,57],[89,58,89,65],[90,22,90,35],[90,36,90,42],[90,43,90,50],[90,51,90,57],[90,58,90,65],[91,22,91,35],[91,36,91,42],[91,43,91,50],[91,51,91,57],[91,58,91,65],[92,22,92,35],[92,36,92,42],[92,43,92,50],[92,51,92,57],[92,58,92,65],[93,22,93,35],[93,36,93,42],[93,43,93,50],[93,51,93,57],[93,58,93,65],[94,22,94,35],[94,36,94,42],[94,43,94,50],[94,51,94,57],[94,58,94,65],[95,22,95,35],[95,36,95,42],[95,43,95,50],[95,51,95,57],[95,58,95,65],[96,22,96,35],[96,36,96,42],[96,43,96,50],[96,51,96,57],[96,58,96,65],[97,22,97,35],[97,36,97,42],[97,43,97,50],[97,51,97,57],[97,58,97,65],[98,22,98,35],[98,36,98,42],[98,43,98,50],[98,51,98,57],[98,58,98,65],[99,22,99,35],[99,36,99,42],[99,43,99,50],[99,51,99,57],[99,58,99,65],[100,22,100,35],[100,36,100,42],[100,43,100,50],[100,51,100,57],[100,58,100,65],[101,22,101,35],[101,36,101,42],[101,43,101,50],[101,51,101,57],[101,58,101,65],[102,22,102,35],[102,36,102,42],[102,43,102,50],[102,51,102,57],[102,58,102,65],[103,22,103,35],[103,36,103,42],[103,43,103,50],[103,51,103,57],[103,58,103,65],[104,22,104,35],[104,36,104,42],[104,43,104,50],[104,51,104,57],[104,58,104,65],[105,22,105,35],[105,36,105,42],[105,43,105,50],[105,51,105,57],[105,58,105,65],[106,22,106,35],[106,36,106,42],[106,43,106,50],[106,51,106,57],[106,58,106,65],[107,22,107,35],[107,36,107,42],[107,43,107,50],[107,51,107,57],[107,58,107,65],[108,22,108,35],[108,36,108,42],[108,43,108,50],[108,51,108,57],[108,58,108,65],[109,22,109,35],[109,36,109,42],[109,43,109,50],[109,51,109,57],[109,58,109,65],[110,22,110,35],[110,36,110,42],[110,43,110,50],[110,51,110,57],[110,58,110,65],[111,22,111,35],[111,36,111,42],[111,43,111,50],[111,51,111,57],[111,58,111,65],[112,22,112,35],[112,36,112,42],[112,43,112,50],[112,51,112,57],[112,58,112,65],[113,22,113,35],[113,36,113,42],[113,43,113,50],[113,51,113,57],[113,58,113,65],[114,22,114,35],[114,36,114,42],[114,43,114,50],[114,51,114,57],[114,58,114,65],[115,22,115,35],[115,36,115,42],[115,43,115,50],[115,51,115,57],[115,58,115,65],[116,22,116,35],[116,36,116,42],[116,43,116,50],[116,51,116,57],[116,58,116,65],[117,22,117,35],[117,36,117,42],[117,43,117,50],[117,51,117,57],[117,58,117,65],[118,22,118,35],[118,36,118,42],[118,43,118,50],[118,51,118,57],[118,58,118,65],[119,22,119,35],[119,36,119,42],[119,43,119,50],[119,51,119,57],[119,58,119,65],[120,22,120,35],[120,36,120,42],[120,43,120,50],[120,51,120,57],[120,58,120,65],[121,22,121,35],[121,36,121,42],[121,43,121,50],[121,51,121,57],[121,58,121,65],[123,22,123,57],[123,58,123,65],[125,22,126,65]]}
[]
[{"$nulls":8},"VENDOR 1099"]
{"$rows_empty":8}
[{"$nulls":22},"VENDOR 1099s"]
[]
[]
[]
[]
[{"$nulls":22},{"$f":"TODAY()","v":"2019-06-23"}]
[]
[]
[{"$nulls":22},"COMPANY INFORMATION",{"$nulls":35},"TOTAL COMPENSATION"]
[{"$nulls":22},"COMPANY NAME",{"$nulls":13},"FIRST NAME",{"$nulls":6},"LAST NAME",{"$nulls":7},"TAX ID"]
[]
[{"$nulls":22},{"$f":"T('ACCOUNTING SETUP'!AI9)","v":"First 1 Bank"},{"$nulls":13},{"$f":"T('ACCOUNTING SETUP'!W9)","v":""},{"$nulls":6},{"$f":"T('ACCOUNTING SETUP'!X9)","v":""},{"$nulls":7},{"$f":"IF('ACCOUNTING SETUP'!AB9>0,'ACCOUNTING SETUP'!AB9,\"\")","v":""},{"$nulls":6},{"$f":"'EXPENSE DATABASE'!F69","v":{"v":52565,"d":"$52,565.00"}},{"$nulls":7},{"$f":"IF(BG22>0,1,0)","v":1}]
[{"$nulls":22},{"$f":"T('ACCOUNTING SETUP'!AI10)","v":"Defenbaugh Industries"},{"$nulls":13},{"$f":"T('ACCOUNTING SETUP'!W10)","v":""},{"$nulls":6},{"$f":"T('ACCOUNTING SETUP'!X10)","v":""},{"$nulls":7},{"$f":"IF('ACCOUNTING SETUP'!AB10>0,'ACCOUNTING SETUP'!AB10,\"\")","v":""},{"$nulls":6},{"$f":"'EXPENSE DATABASE'!F70","v":{"v":740,"d":"$740.00"}},{"$nulls":7},{"$f":"IF(BG23>0,1,0)","v":1}]
[{"$nulls":22},{"$f":"T('ACCOUNTING SETUP'!AI11)","v":"Demolition Services Inc."},{"$nulls":13},{"$f":"T('ACCOUNTING SETUP'!W11)","v":""},{"$nulls":6},{"$f":"T('ACCOUNTING SETUP'!X11)","v":""},{"$nulls":7},{"$f":"IF('ACCOUNTING SETUP'!AB11>0,'ACCOUNTING SETUP'!AB11,\"\")","v":""},{"$nulls":6},{"$f":"'EXPENSE DATABASE'!F71","v":{"v":1000,"d":"$1,000.00"}},{"$nulls":7},1]
[{"$nulls":22},{"$f":"T('ACCOUNTING SETUP'!AI12)","v":"Affordable Rehab & Remodeling"},{"$nulls":13},{"$f":"T('ACCOUNTING SETUP'!W12)","v":""},{"$nulls":6},{"$f":"T('ACCOUNTING SETUP'!X12)","v":""},{"$nulls":7},{"$f":"IF('ACCOUNTING SETUP'!AB12>0,'ACCOUNTING SETUP'!AB12,\"\")","v":""},{"$nulls":6},{"$f":"'EXPENSE DATABASE'!F72","v":{"v":6900,"d":"$6,900.00"}},{"$nulls":7},1]
[{"$nulls":22},{"$f":"T('ACCOUNTING SETUP'!AI13)","v":"Lowes"},{"$nulls":13},{"$f":"T('ACCOUNTING SETUP'!W13)","v":""},{"$nulls":6},{"$f":"T('ACCOUNTING SETUP'!X13)","v":""},{"$nulls":7},{"$f":"IF('ACCOUNTING SETUP'!AB13>0,'ACCOUNTING SETUP'!AB13,\"\")","v":""},{"$nulls":6},{"$f":"'EXPENSE DATABASE'!F73","v":{"v":8543.91,"d":"$8,543.91"}},{"$nulls":7},1]
[{"$nulls":22},{"$f":"T('ACCOUNTING SETUP'!AI14)","v":"Home Depot"},{"$nulls":13},{"$f":"T('ACCOUNTING SETUP'!W14)","v":""},{"$nulls":6},{"$f":"T('ACCOUNTING SETUP'!X14)","v":""},{"$nulls":7},{"$f":"IF('ACCOUNTING SETUP'!AB14>0,'ACCOUNTING SETUP'!AB14,\"\")","v":""},{"$nulls":6},{"$f":"'EXPENSE DATABASE'!F74","v":{"v":2256.52,"d":"$2,256.52"}},{"$nulls":7},1]
[{"$nulls":22},{"$f":"T('ACCOUNTING SETUP'!AI15)","v":"Ace Electric"},{"$nulls":13},{"$f":"T('ACCOUNTING SETUP'!W15)","v":""},{"$nulls":6},{"$f":"T('ACCOUNTING SETUP'!X15)","v":""},{"$nulls":7},{"$f":"IF('ACCOUNTING SETUP'!AB15>0,'ACCOUNTING SETUP'!AB15,\"\")","v":""},{"$nulls":6},{"$f":"'EXPENSE DATABASE'!F75","v":{"v":1750,"d":"$1,750.00"}},{"$nulls":7},1]
[{"$nulls":22},{"$f":"T('ACCOUNTING SETUP'!AI16)","v":"Sherwin Williams"},{"$nulls":13},{"$f":"T('ACCOUNTING SETUP'!W16)","v":""},{"$nulls":6},{"$f":"T('ACCOUNTING SETUP'!X16)","v":""},{"$nulls":7},{"$f":"IF('ACCOUNTING SETUP'!AB16>0,'ACCOUNTING SETUP'!AB16,\"\")","v":""},{"$nulls":6},{"$f":"'EXPENSE DATABASE'!F76","v":{"v":2652.45,"d":"$2,652.45"}},{"$nulls":7},1]
[{"$nulls":22},{"$f":"T('ACCOUNTING SETUP'!AI17)","v":"Vendor 9"},{"$nulls":13},{"$f":"T('ACCOUNTING SETUP'!W17)","v":""},{"$nulls":6},{"$f":"T('ACCOUNTING SETUP'!X17)","v":""},{"$nulls":7},{"$f":"IF('ACCOUNTING SETUP'!AB17>0,'ACCOUNTING SETUP'!AB17,\"\")","v":""},{"$nulls":6},{"$f":"'EXPENSE DATABASE'!F77","v":{"v":0,"d":"$0.00"}},{"$nulls":7},0]
[{"$nulls":22},{"$f":"T('ACCOUNTING SETUP'!AI18)","v":"Vendor 10"},{"$nulls":13},{"$f":"T('ACCOUNTING SETUP'!W18)","v":""},{"$nulls":6},{"$f":"T('ACCOUNTING SETUP'!X18)","v":""},{"$nulls":7},{"$f":"IF('ACCOUNTING SETUP'!AB18>0,'ACCOUNTING SETUP'!AB18,\"\")","v":""},{"$nulls":6},{"$f":"'EXPENSE DATABASE'!F78","v":{"v":0,"d":"$0.00"}},{"$nulls":7},0]
[{"$nulls":22},{"$f":"T('ACCOUNTING SETUP'!AI19)","v":"Vendor 11"},{"$nulls":13},{"$f":"T('ACCOUNTING SETUP'!W19)","v":""},{"$nulls":6},{"$f":"T('ACCOUNTING SETUP'!X19)","v":""},{"$nulls":7},{"$f":"IF('ACCOUNTING SETUP'!AB19>0,'ACCOUNTING SETUP'!AB19,\"\")","v":""},{"$nulls":6},{"$f":"'EXPENSE DATABASE'!F79","v":{"v":0,"d":"$0.00"}},{"$nulls":7},0]
[{"$nulls":22},{"$f":"T('ACCOUNTING SETUP'!AI20)","v":"Vendor 12"},{"$nulls":13},{"$f":"T('ACCOUNTING SETUP'!W20)","v":""},{"$nulls":6},{"$f":"T('ACCOUNTING SETUP'!X20)","v":""},{"$nulls":7},{"$f":"IF('ACCOUNTING SETUP'!AB20>0,'ACCOUNTING SETUP'!AB20,\"\")","v":""},{"$nulls":6},{"$f":"'EXPENSE DATABASE'!F80","v":{"v":0,"d":"$0.00"}},{"$nulls":7},0]
[{"$nulls":22},{"$f":"T('ACCOUNTING SETUP'!AI21)","v":"Vendor 13"},{"$nulls":13},{"$f":"T('ACCOUNTING SETUP'!W21)","v":""},{"$nulls":6},{"$f":"T('ACCOUNTING SETUP'!X21)","v":""},{"$nulls":7},{"$f":"IF('ACCOUNTING SETUP'!AB21>0,'ACCOUNTING SETUP'!AB21,\"\")","v":""},{"$nulls":6},{"$f":"'EXPENSE DATABASE'!F81","v":{"v":0,"d":"$0.00"}},{"$nulls":7},0]
[{"$nulls":22},{"$f":"T('ACCOUNTING SETUP'!AI22)","v":"Vendor 14"},{"$nulls":13},{"$f":"T('ACCOUNTING SETUP'!W22)","v":""},{"$nulls":6},{"$f":"T('ACCOUNTING SETUP'!X22)","v":""},{"$nulls":7},{"$f":"IF('ACCOUNTING SETUP'!AB22>0,'ACCOUNTING SETUP'!AB22,\"\")","v":""},{"$nulls":6},{"$f":"'EXPENSE DATABASE'!F82","v":{"v":0,"d":"$0.00"}},{"$nulls":7},0]
[{"$nulls":22},{"$f":"T('ACCOUNTING SETUP'!AI23)","v":"Vendor 15"},{"$nulls":13},{"$f":"T('ACCOUNTING SETUP'!W23)","v":""},{"$nulls":6},{"$f":"T('ACCOUNTING SETUP'!X23)","v":""},{"$nulls":7},{"$f":"IF('ACCOUNTING SETUP'!AB23>0,'ACCOUNTING SETUP'!AB23,\"\")","v":""},{"$nulls":6},{"$f":"'EXPENSE DATABASE'!F83","v":{"v":0,"d":"$0.00"}},{"$nulls":7},0]
[{"$nulls":22},{"$f":"T('ACCOUNTING SETUP'!AI24)","v":"Vendor 16"},{"$nulls":13},{"$f":"T('ACCOUNTING SETUP'!W24)","v":""},{"$nulls":6},{"$f":"T('ACCOUNTING SETUP'!X24)","v":""},{"$nulls":7},{"$f":"IF('ACCOUNTING SETUP'!AB24>0,'ACCOUNTING SETUP'!AB24,\"\")","v":""},{"$nulls":6},{"$f":"'EXPENSE DATABASE'!F84","v":{"v":0,"d":"$0.00"}},{"$nulls":7},0]
[{"$nulls":22},{"$f":"T('ACCOUNTING SETUP'!AI25)","v":"Vendor 17"},{"$nulls":13},{"$f":"T('ACCOUNTING SETUP'!W25)","v":""},{"$nulls":6},{"$f":"T('ACCOUNTING SETUP'!X25)","v":""},{"$nulls":7},{"$f":"IF('ACCOUNTING SETUP'!AB25>0,'ACCOUNTING SETUP'!AB25,\"\")","v":""},{"$nulls":6},{"$f":"'EXPENSE DATABASE'!F85","v":{"v":0,"d":"$0.00"}},{"$nulls":7},0]
[{"$nulls":22},{"$f":"T('ACCOUNTING SETUP'!AI26)","v":"Vendor 18"},{"$nulls":13},{"$f":"T('ACCOUNTING SETUP'!W26)","v":""},{"$nulls":6},{"$f":"T('ACCOUNTING SETUP'!X26)","v":""},{"$nulls":7},{"$f":"IF('ACCOUNTING SETUP'!AB26>0,'ACCOUNTING SETUP'!AB26,\"\")","v":""},{"$nulls":6},{"$f":"'EXPENSE DATABASE'!F86","v":{"v":0,"d":"$0.00"}},{"$nulls":7},0]
[{"$nulls":22},{"$f":"T('ACCOUNTING SETUP'!AI27)","v":"Vendor 19"},{"$nulls":13},{"$f":"T('ACCOUNTING SETUP'!W27)","v":""},{"$nulls":6},{"$f":"T('ACCOUNTING SETUP'!X27)","v":""},{"$nulls":7},{"$f":"IF('ACCOUNTING SETUP'!AB27>0,'ACCOUNTING SETUP'!AB27,\"\")","v":""},{"$nulls":6},{"$f":"'EXPENSE DATABASE'!F87","v":{"v":0,"d":"$0.00"}},{"$nulls":7},0]
[{"$nulls":22},{"$f":"T('ACCOUNTING SETUP'!AI28)","v":"Vendor 20"},{"$nulls":13},{"$f":"T('ACCOUNTING SETUP'!W28)","v":""},{"$nulls":6},{"$f":"T('ACCOUNTING SETUP'!X28)","v":""},{"$nulls":7},{"$f":"IF('ACCOUNTING SETUP'!AB28>0,'ACCOUNTING SETUP'!AB28,\"\")","v":""},{"$nulls":6},{"$f":"'EXPENSE DATABASE'!F88","v":{"v":0,"d":"$0.00"}},{"$nulls":7},0]
[{"$nulls":22},{"$f":"T('ACCOUNTING SETUP'!AI29)","v":"Vendor 21"},{"$nulls":13},{"$f":"T('ACCOUNTING SETUP'!W29)","v":""},{"$nulls":6},{"$f":"T('ACCOUNTING SETUP'!X29)","v":""},{"$nulls":7},{"$f":"IF('ACCOUNTING SETUP'!AB29>0,'ACCOUNTING SETUP'!AB29,\"\")","v":""},{"$nulls":6},{"$f":"'EXPENSE DATABASE'!F89","v":{"v":0,"d":"$0.00"}},{"$nulls":7},0]
[{"$nulls":22},{"$f":"T('ACCOUNTING SETUP'!AI30)","v":"Vendor 22"},{"$nulls":13},{"$f":"T('ACCOUNTING SETUP'!W30)","v":""},{"$nulls":6},{"$f":"T('ACCOUNTING SETUP'!X30)","v":""},{"$nulls":7},{"$f":"IF('ACCOUNTING SETUP'!AB30>0,'ACCOUNTING SETUP'!AB30,\"\")","v":""},{"$nulls":6},{"$f":"'EXPENSE DATABASE'!F90","v":{"v":0,"d":"$0.00"}},{"$nulls":7},0]
[{"$nulls":22},{"$f":"T('ACCOUNTING SETUP'!AI31)","v":"Vendor 23"},{"$nulls":13},{"$f":"T('ACCOUNTING SETUP'!W31)","v":""},{"$nulls":6},{"$f":"T('ACCOUNTING SETUP'!X31)","v":""},{"$nulls":7},{"$f":"IF('ACCOUNTING SETUP'!AB31>0,'ACCOUNTING SETUP'!AB31,\"\")","v":""},{"$nulls":6},{"$f":"'EXPENSE DATABASE'!F91","v":{"v":0,"d":"$0.00"}},{"$nulls":7},0]
[{"$nulls":22},{"$f":"T('ACCOUNTING SETUP'!AI32)","v":"Vendor 24"},{"$nulls":13},{"$f":"T('ACCOUNTING SETUP'!W32)","v":""},{"$nulls":6},{"$f":"T('ACCOUNTING SETUP'!X32)","v":""},{"$nulls":7},{"$f":"IF('ACCOUNTING SETUP'!AB32>0,'ACCOUNTING SETUP'!AB32,\"\")","v":""},{"$nulls":6},{"$f":"'EXPENSE DATABASE'!F92","v":{"v":0,"d":"$0.00"}},{"$nulls":7},0]
[{"$nulls":22},{"$f":"T('ACCOUNTING SETUP'!AI33)","v":"Vendor 25"},{"$nulls":13},{"$f":"T('ACCOUNTING SETUP'!W33)","v":""},{"$nulls":6},{"$f":"T('ACCOUNTING SETUP'!X33)","v":""},{"$nulls":7},{"$f":"IF('ACCOUNTING SETUP'!AB33>0,'ACCOUNTING SETUP'!AB33,\"\")","v":""},{"$nulls":6},{"$f":"'EXPENSE DATABASE'!F93","v":{"v":0,"d":"$0.00"}},{"$nulls":7},0]
[{"$nulls":22},{"$f":"T('ACCOUNTING SETUP'!AI34)","v":"Vendor 26"},{"$nulls":13},{"$f":"T('ACCOUNTING SETUP'!W34)","v":""},{"$nulls":6},{"$f":"T('ACCOUNTING SETUP'!X34)","v":""},{"$nulls":7},{"$f":"IF('ACCOUNTING SETUP'!AB34>0,'ACCOUNTING SETUP'!AB34,\"\")","v":""},{"$nulls":6},{"$f":"'EXPENSE DATABASE'!F94","v":{"v":0,"d":"$0.00"}},{"$nulls":7},0]
[{"$nulls":22},{"$f":"T('ACCOUNTING SETUP'!AI35)","v":"Vendor 27"},{"$nulls":13},{"$f":"T('ACCOUNTING SETUP'!W35)","v":""},{"$nulls":6},{"$f":"T('ACCOUNTING SETUP'!X35)","v":""},{"$nulls":7},{"$f":"IF('ACCOUNTING SETUP'!AB35>0,'ACCOUNTING SETUP'!AB35,\"\")","v":""},{"$nulls":6},{"$f":"'EXPENSE DATABASE'!F95","v":{"v":0,"d":"$0.00"}},{"$nulls":7},0]
[{"$nulls":22},{"$f":"T('ACCOUNTING SETUP'!AI36)","v":"Vendor 28"},{"$nulls":13},{"$f":"T('ACCOUNTING SETUP'!W36)","v":""},{"$nulls":6},{"$f":"T('ACCOUNTING SETUP'!X36)","v":""},{"$nulls":7},{"$f":"IF('ACCOUNTING SETUP'!AB36>0,'ACCOUNTING SETUP'!AB36,\"\")","v":""},{"$nulls":6},{"$f":"'EXPENSE DATABASE'!F96","v":{"v":0,"d":"$0.00"}},{"$nulls":7},0]
[{"$nulls":22},{"$f":"T('ACCOUNTING SETUP'!AI37)","v":"Vendor 29"},{"$nulls":13},{"$f":"T('ACCOUNTING SETUP'!W37)","v":""},{"$nulls":6},{"$f":"T('ACCOUNTING SETUP'!X37)","v":""},{"$nulls":7},{"$f":"IF('ACCOUNTING SETUP'!AB37>0,'ACCOUNTING SETUP'!AB37,\"\")","v":""},{"$nulls":6},{"$f":"'EXPENSE DATABASE'!F97","v":{"v":0,"d":"$0.00"}},{"$nulls":7},0]
[{"$nulls":22},{"$f":"T('ACCOUNTING SETUP'!AI38)","v":"Vendor 30"},{"$nulls":13},{"$f":"T('ACCOUNTING SETUP'!W38)","v":""},{"$nulls":6},{"$f":"T('ACCOUNTING SETUP'!X38)","v":""},{"$nulls":7},{"$f":"IF('ACCOUNTING SETUP'!AB38>0,'ACCOUNTING SETUP'!AB38,\"\")","v":""},{"$nulls":6},{"$f":"'EXPENSE DATABASE'!F98","v":{"v":0,"d":"$0.00"}},{"$nulls":7},0]
[{"$nulls":22},{"$f":"T('ACCOUNTING SETUP'!AI39)","v":"Vendor 31"},{"$nulls":13},{"$f":"T('ACCOUNTING SETUP'!W39)","v":""},{"$nulls":6},{"$f":"T('ACCOUNTING SETUP'!X39)","v":""},{"$nulls":7},{"$f":"IF('ACCOUNTING SETUP'!AB39>0,'ACCOUNTING SETUP'!AB39,\"\")","v":""},{"$nulls":6},{"$f":"'EXPENSE DATABASE'!F99","v":{"v":0,"d":"$0.00"}},{"$nulls":7},0]
[{"$nulls":22},{"$f":"T('ACCOUNTING SETUP'!AI40)","v":"Vendor 32"},{"$nulls":13},{"$f":"T('ACCOUNTING SETUP'!W40)","v":""},{"$nulls":6},{"$f":"T('ACCOUNTING SETUP'!X40)","v":""},{"$nulls":7},{"$f":"IF('ACCOUNTING SETUP'!AB40>0,'ACCOUNTING SETUP'!AB40,\"\")","v":""},{"$nulls":6},{"$f":"'EXPENSE DATABASE'!F100","v":{"v":0,"d":"$0.00"}},{"$nulls":7},0]
[{"$nulls":22},{"$f":"T('ACCOUNTING SETUP'!AI41)","v":"Vendor 33"},{"$nulls":13},{"$f":"T('ACCOUNTING SETUP'!W41)","v":""},{"$nulls":6},{"$f":"T('ACCOUNTING SETUP'!X41)","v":""},{"$nulls":7},{"$f":"IF('ACCOUNTING SETUP'!AB41>0,'ACCOUNTING SETUP'!AB41,\"\")","v":""},{"$nulls":6},{"$f":"'EXPENSE DATABASE'!F101","v":{"v":0,"d":"$0.00"}},{"$nulls":7},0]
[{"$nulls":22},{"$f":"T('ACCOUNTING SETUP'!AI42)","v":"Vendor 34"},{"$nulls":13},{"$f":"T('ACCOUNTING SETUP'!W42)","v":""},{"$nulls":6},{"$f":"T('ACCOUNTING SETUP'!X42)","v":""},{"$nulls":7},{"$f":"IF('ACCOUNTING SETUP'!AB42>0,'ACCOUNTING SETUP'!AB42,\"\")","v":""},{"$nulls":6},{"$f":"'EXPENSE DATABASE'!F102","v":{"v":0,"d":"$0.00"}},{"$nulls":7},0]
[{"$nulls":22},{"$f":"T('ACCOUNTING SETUP'!AI43)","v":"Vendor 35"},{"$nulls":13},{"$f":"T('ACCOUNTING SETUP'!W43)","v":""},{"$nulls":6},{"$f":"T('ACCOUNTING SETUP'!X43)","v":""},{"$nulls":7},{"$f":"IF('ACCOUNTING SETUP'!AB43>0,'ACCOUNTING SETUP'!AB43,\"\")","v":""},{"$nulls":6},{"$f":"'EXPENSE DATABASE'!F103","v":{"v":0,"d":"$0.00"}},{"$nulls":7},0]
[{"$nulls":22},{"$f":"T('ACCOUNTING SETUP'!AI44)","v":"Vendor 36"},{"$nulls":13},{"$f":"T('ACCOUNTING SETUP'!W44)","v":""},{"$nulls":6},{"$f":"T('ACCOUNTING SETUP'!X44)","v":""},{"$nulls":7},{"$f":"IF('ACCOUNTING SETUP'!AB44>0,'ACCOUNTING SETUP'!AB44,\"\")","v":""},{"$nulls":6},{"$f":"'EXPENSE DATABASE'!F104","v":{"v":0,"d":"$0.00"}},{"$nulls":7},0]
[{"$nulls":22},{"$f":"T('ACCOUNTING SETUP'!AI45)","v":"Vendor 37"},{"$nulls":13},{"$f":"T('ACCOUNTING SETUP'!W45)","v":""},{"$nulls":6},{"$f":"T('ACCOUNTING SETUP'!X45)","v":""},{"$nulls":7},{"$f":"IF('ACCOUNTING SETUP'!AB45>0,'ACCOUNTING SETUP'!AB45,\"\")","v":""},{"$nulls":6},{"$f":"'EXPENSE DATABASE'!F105","v":{"v":0,"d":"$0.00"}},{"$nulls":7},0]
[{"$nulls":22},{"$f":"T('ACCOUNTING SETUP'!AI46)","v":"Vendor 38"},{"$nulls":13},{"$f":"T('ACCOUNTING SETUP'!W46)","v":""},{"$nulls":6},{"$f":"T('ACCOUNTING SETUP'!X46)","v":""},{"$nulls":7},{"$f":"IF('ACCOUNTING SETUP'!AB46>0,'ACCOUNTING SETUP'!AB46,\"\")","v":""},{"$nulls":6},{"$f":"'EXPENSE DATABASE'!F106","v":{"v":0,"d":"$0.00"}},{"$nulls":7},0]
[{"$nulls":22},{"$f":"T('ACCOUNTING SETUP'!AI47)","v":"Vendor 39"},{"$nulls":13},{"$f":"T('ACCOUNTING SETUP'!W47)","v":""},{"$nulls":6},{"$f":"T('ACCOUNTING SETUP'!X47)","v":""},{"$nulls":7},{"$f":"IF('ACCOUNTING SETUP'!AB47>0,'ACCOUNTING SETUP'!AB47,\"\")","v":""},{"$nulls":6},{"$f":"'EXPENSE DATABASE'!F107","v":{"v":0,"d":"$0.00"}},{"$nulls":7},0]
[{"$nulls":22},{"$f":"T('ACCOUNTING SETUP'!AI48)","v":"Vendor 40"},{"$nulls":13},{"$f":"T('ACCOUNTING SETUP'!W48)","v":""},{"$nulls":6},{"$f":"T('ACCOUNTING SETUP'!X48)","v":""},{"$nulls":7},{"$f":"IF('ACCOUNTING SETUP'!AB48>0,'ACCOUNTING SETUP'!AB48,\"\")","v":""},{"$nulls":6},{"$f":"'EXPENSE DATABASE'!F108","v":{"v":0,"d":"$0.00"}},{"$nulls":7},0]
[{"$nulls":22},{"$f":"T('ACCOUNTING SETUP'!AI49)","v":"Vendor 41"},{"$nulls":13},{"$f":"T('ACCOUNTING SETUP'!W49)","v":""},{"$nulls":6},{"$f":"T('ACCOUNTING SETUP'!X49)","v":""},{"$nulls":7},{"$f":"IF('ACCOUNTING SETUP'!AB49>0,'ACCOUNTING SETUP'!AB49,\"\")","v":""},{"$nulls":6},{"$f":"'EXPENSE DATABASE'!F109","v":{"v":0,"d":"$0.00"}},{"$nulls":7},0]
[{"$nulls":22},{"$f":"T('ACCOUNTING SETUP'!AI50)","v":"Vendor 42"},{"$nulls":13},{"$f":"T('ACCOUNTING SETUP'!W50)","v":""},{"$nulls":6},{"$f":"T('ACCOUNTING SETUP'!X50)","v":""},{"$nulls":7},{"$f":"IF('ACCOUNTING SETUP'!AB50>0,'ACCOUNTING SETUP'!AB50,\"\")","v":""},{"$nulls":6},{"$f":"'EXPENSE DATABASE'!F110","v":{"v":0,"d":"$0.00"}},{"$nulls":7},0]
[{"$nulls":22},{"$f":"T('ACCOUNTING SETUP'!#REF!)","v":{"$error":"#REF!"}},{"$nulls":13},{"$f":"T('ACCOUNTING SETUP'!#REF!)","v":{"$error":"#REF!"}},{"$nulls":6},{"$f":"T('ACCOUNTING SETUP'!#REF!)","v":{"$error":"#REF!"}},{"$nulls":7},{"$f":"IF('ACCOUNTING SETUP'!#REF!>0,'ACCOUNTING SETUP'!#REF!,\"\")","v":{"$error":"#REF!"}},{"$nulls":6},{"$f":"'EXPENSE DATABASE'!F111","v":{"v":0,"d":"$0.00"}},{"$nulls":7},0]
[{"$nulls":22},{"$f":"T('ACCOUNTING SETUP'!#REF!)","v":{"$error":"#REF!"}},{"$nulls":13},{"$f":"T('ACCOUNTING SETUP'!#REF!)","v":{"$error":"#REF!"}},{"$nulls":6},{"$f":"T('ACCOUNTING SETUP'!#REF!)","v":{"$error":"#REF!"}},{"$nulls":7},{"$f":"IF('ACCOUNTING SETUP'!#REF!>0,'ACCOUNTING SETUP'!#REF!,\"\")","v":{"$error":"#REF!"}},{"$nulls":6},{"$f":"'EXPENSE DATABASE'!F112","v":{"v":0,"d":"$0.00"}},{"$nulls":7},0]
[{"$nulls":22},{"$f":"T('ACCOUNTING SETUP'!#REF!)","v":{"$error":"#REF!"}},{"$nulls":13},{"$f":"T('ACCOUNTING SETUP'!#REF!)","v":{"$error":"#REF!"}},{"$nulls":6},{"$f":"T('ACCOUNTING SETUP'!#REF!)","v":{"$error":"#REF!"}},{"$nulls":7},{"$f":"IF('ACCOUNTING SETUP'!#REF!>0,'ACCOUNTING SETUP'!#REF!,\"\")","v":{"$error":"#REF!"}},{"$nulls":6},{"$f":"'EXPENSE DATABASE'!F113","v":{"v":0,"d":"$0.00"}},{"$nulls":7},0]
[{"$nulls":22},{"$f":"T('ACCOUNTING SETUP'!#REF!)","v":{"$error":"#REF!"}},{"$nulls":13},{"$f":"T('ACCOUNTING SETUP'!#REF!)","v":{"$error":"#REF!"}},{"$nulls":6},{"$f":"T('ACCOUNTING SETUP'!#REF!)","v":{"$error":"#REF!"}},{"$nulls":7},{"$f":"IF('ACCOUNTING SETUP'!#REF!>0,'ACCOUNTING SETUP'!#REF!,\"\")","v":{"$error":"#REF!"}},{"$nulls":6},{"$f":"'EXPENSE DATABASE'!F114","v":{"v":0,"d":"$0.00"}},{"$nulls":7},0]
[{"$nulls":22},{"$f":"T('ACCOUNTING SETUP'!#REF!)","v":{"$error":"#REF!"}},{"$nulls":13},{"$f":"T('ACCOUNTING SETUP'!#REF!)","v":{"$error":"#REF!"}},{"$nulls":6},{"$f":"T('ACCOUNTING SETUP'!#REF!)","v":{"$error":"#REF!"}},{"$nulls":7},{"$f":"IF('ACCOUNTING SETUP'!#REF!>0,'ACCOUNTING SETUP'!#REF!,\"\")","v":{"$error":"#REF!"}},{"$nulls":6},{"$f":"'EXPENSE DATABASE'!F115","v":{"v":0,"d":"$0.00"}},{"$nulls":7},0]
[{"$nulls":22},{"$f":"T('ACCOUNTING SETUP'!#REF!)","v":{"$error":"#REF!"}},{"$nulls":13},{"$f":"T('ACCOUNTING SETUP'!#REF!)","v":{"$error":"#REF!"}},{"$nulls":6},{"$f":"T('ACCOUNTING SETUP'!#REF!)","v":{"$error":"#REF!"}},{"$nulls":7},{"$f":"IF('ACCOUNTING SETUP'!#REF!>0,'ACCOUNTING SETUP'!#REF!,\"\")","v":{"$error":"#REF!"}},{"$nulls":6},{"$f":"'EXPENSE DATABASE'!F116","v":{"v":0,"d":"$0.00"}},{"$nulls":7},0]
[{"$nulls":22},{"$f":"T('ACCOUNTING SETUP'!#REF!)","v":{"$error":"#REF!"}},{"$nulls":13},{"$f":"T('ACCOUNTING SETUP'!#REF!)","v":{"$error":"#REF!"}},{"$nulls":6},{"$f":"T('ACCOUNTING SETUP'!#REF!)","v":{"$error":"#REF!"}},{"$nulls":7},{"$f":"IF('ACCOUNTING SETUP'!#REF!>0,'ACCOUNTING SETUP'!#REF!,\"\")","v":{"$error":"#REF!"}},{"$nulls":6},{"$f":"'EXPENSE DATABASE'!F117","v":{"v":0,"d":"$0.00"}},{"$nulls":7},0]
[{"$nulls":22},{"$f":"T('ACCOUNTING SETUP'!#REF!)","v":{"$error":"#REF!"}},{"$nulls":13},{"$f":"T('ACCOUNTING SETUP'!#REF!)","v":{"$error":"#REF!"}},{"$nulls":6},{"$f":"T('ACCOUNTING SETUP'!#REF!)","v":{"$error":"#REF!"}},{"$nulls":7},{"$f":"IF('ACCOUNTING SETUP'!#REF!>0,'ACCOUNTING SETUP'!#REF!,\"\")","v":{"$error":"#REF!"}},{"$nulls":6},{"$f":"'EXPENSE DATABASE'!F118","v":{"v":0,"d":"$0.00"}},{"$nulls":7},0]
[{"$nulls":22},{"$f":"T('ACCOUNTING SETUP'!#REF!)","v":{"$error":"#REF!"}},{"$nulls":13},{"$f":"T('ACCOUNTING SETUP'!#REF!)","v":{"$error":"#REF!"}},{"$nulls":6},{"$f":"T('ACCOUNTING SETUP'!#REF!)","v":{"$error":"#REF!"}},{"$nulls":7},{"$f":"IF('ACCOUNTING SETUP'!#REF!>0,'ACCOUNTING SETUP'!#REF!,\"\")","v":{"$error":"#REF!"}},{"$nulls":6},{"$f":"'EXPENSE DATABASE'!F119","v":{"v":0,"d":"$0.00"}},{"$nulls":7},0]
[{"$nulls":22},{"$f":"T('ACCOUNTING SETUP'!#REF!)","v":{"$error":"#REF!"}},{"$nulls":13},{"$f":"T('ACCOUNTING SETUP'!#REF!)","v":{"$error":"#REF!"}},{"$nulls":6},{"$f":"T('ACCOUNTING SETUP'!#REF!)","v":{"$error":"#REF!"}},{"$nulls":7},{"$f":"IF('ACCOUNTING SETUP'!#REF!>0,'ACCOUNTING SETUP'!#REF!,\"\")","v":{"$error":"#REF!"}},{"$nulls":6},{"$f":"'EXPENSE DATABASE'!F120","v":{"v":0,"d":"$0.00"}},{"$nulls":7},0]
[{"$nulls":22},{"$f":"T('ACCOUNTING SETUP'!#REF!)","v":{"$error":"#REF!"}},{"$nulls":13},{"$f":"T('ACCOUNTING SETUP'!#REF!)","v":{"$error":"#REF!"}},{"$nulls":6},{"$f":"T('ACCOUNTING SETUP'!#REF!)","v":{"$error":"#REF!"}},{"$nulls":7},{"$f":"IF('ACCOUNTING SETUP'!#REF!>0,'ACCOUNTING SETUP'!#REF!,\"\")","v":{"$error":"#REF!"}},{"$nulls":6},{"$f":"'EXPENSE DATABASE'!F121","v":{"v":0,"d":"$0.00"}},{"$nulls":7},0]
[{"$nulls":22},{"$f":"T('ACCOUNTING SETUP'!#REF!)","v":{"$error":"#REF!"}},{"$nulls":13},{"$f":"T('ACCOUNTING SETUP'!#REF!)","v":{"$error":"#REF!"}},{"$nulls":6},{"$f":"T('ACCOUNTING SETUP'!#REF!)","v":{"$error":"#REF!"}},{"$nulls":7},{"$f":"IF('ACCOUNTING SETUP'!#REF!>0,'ACCOUNTING SETUP'!#REF!,\"\")","v":{"$error":"#REF!"}},{"$nulls":6},{"$f":"'EXPENSE DATABASE'!F122","v":{"v":0,"d":"$0.00"}},{"$nulls":7},0]
[{"$nulls":22},{"$f":"T('ACCOUNTING SETUP'!AI51)","v":"Vendor 55"},{"$nulls":13},{"$f":"T('ACCOUNTING SETUP'!W51)","v":""},{"$nulls":6},{"$f":"T('ACCOUNTING SETUP'!X51)","v":""},{"$nulls":7},{"$f":"IF('ACCOUNTING SETUP'!AB51>0,'ACCOUNTING SETUP'!AB51,\"\")","v":""},{"$nulls":6},{"$f":"'EXPENSE DATABASE'!F123","v":{"v":0,"d":"$0.00"}},{"$nulls":7},0]
[{"$nulls":22},{"$f":"T('ACCOUNTING SETUP'!AI52)","v":"Vendor 56"},{"$nulls":13},{"$f":"T('ACCOUNTING SETUP'!W52)","v":""},{"$nulls":6},{"$f":"T('ACCOUNTING SETUP'!X52)","v":""},{"$nulls":7},{"$f":"IF('ACCOUNTING SETUP'!AB52>0,'ACCOUNTING SETUP'!AB52,\"\")","v":""},{"$nulls":6},{"$f":"'EXPENSE DATABASE'!F124","v":{"v":0,"d":"$0.00"}},{"$nulls":7},0]
[{"$nulls":22},{"$f":"T('ACCOUNTING SETUP'!AI53)","v":"Vendor 57"},{"$nulls":13},{"$f":"T('ACCOUNTING SETUP'!W53)","v":""},{"$nulls":6},{"$f":"T('ACCOUNTING SETUP'!X53)","v":""},{"$nulls":7},{"$f":"IF('ACCOUNTING SETUP'!AB53>0,'ACCOUNTING SETUP'!AB53,\"\")","v":""},{"$nulls":6},{"$f":"'EXPENSE DATABASE'!F125","v":{"v":0,"d":"$0.00"}},{"$nulls":7},0]
[{"$nulls":22},{"$f":"T('ACCOUNTING SETUP'!AI54)","v":"Vendor 58"},{"$nulls":13},{"$f":"T('ACCOUNTING SETUP'!W54)","v":""},{"$nulls":6},{"$f":"T('ACCOUNTING SETUP'!X54)","v":""},{"$nulls":7},{"$f":"IF('ACCOUNTING SETUP'!AB54>0,'ACCOUNTING SETUP'!AB54,\"\")","v":""},{"$nulls":6},{"$f":"'EXPENSE DATABASE'!F126","v":{"v":0,"d":"$0.00"}},{"$nulls":7},0]
[{"$nulls":22},{"$f":"T('ACCOUNTING SETUP'!AI55)","v":"Vendor 59"},{"$nulls":13},{"$f":"T('ACCOUNTING SETUP'!W55)","v":""},{"$nulls":6},{"$f":"T('ACCOUNTING SETUP'!X55)","v":""},{"$nulls":7},{"$f":"IF('ACCOUNTING SETUP'!AB55>0,'ACCOUNTING SETUP'!AB55,\"\")","v":""},{"$nulls":6},{"$f":"'EXPENSE DATABASE'!F127","v":{"v":0,"d":"$0.00"}},{"$nulls":7},0]
[{"$nulls":22},{"$f":"T('ACCOUNTING SETUP'!AI56)","v":"Vendor 60"},{"$nulls":13},{"$f":"T('ACCOUNTING SETUP'!W56)","v":""},{"$nulls":6},{"$f":"T('ACCOUNTING SETUP'!X56)","v":""},{"$nulls":7},{"$f":"IF('ACCOUNTING SETUP'!AB56>0,'ACCOUNTING SETUP'!AB56,\"\")","v":""},{"$nulls":6},{"$f":"'EXPENSE DATABASE'!F128","v":{"v":0,"d":"$0.00"}},{"$nulls":7},0]
[{"$nulls":22},{"$f":"T('ACCOUNTING SETUP'!AI57)","v":"Vendor 61"},{"$nulls":13},{"$f":"T('ACCOUNTING SETUP'!W57)","v":""},{"$nulls":6},{"$f":"T('ACCOUNTING SETUP'!X57)","v":""},{"$nulls":7},{"$f":"IF('ACCOUNTING SETUP'!AB57>0,'ACCOUNTING SETUP'!AB57,\"\")","v":""},{"$nulls":6},{"$f":"'EXPENSE DATABASE'!F129","v":{"v":0,"d":"$0.00"}},{"$nulls":7},0]
[{"$nulls":22},{"$f":"T('ACCOUNTING SETUP'!AI58)","v":"Vendor 62"},{"$nulls":13},{"$f":"T('ACCOUNTING SETUP'!W58)","v":""},{"$nulls":6},{"$f":"T('ACCOUNTING SETUP'!X58)","v":""},{"$nulls":7},{"$f":"IF('ACCOUNTING SETUP'!AB58>0,'ACCOUNTING SETUP'!AB58,\"\")","v":""},{"$nulls":6},{"$f":"'EXPENSE DATABASE'!F130","v":{"v":0,"d":"$0.00"}},{"$nulls":7},0]
[{"$nulls":22},{"$f":"T('ACCOUNTING SETUP'!AI59)","v":"Vendor 63"},{"$nulls":13},{"$f":"T('ACCOUNTING SETUP'!W59)","v":""},{"$nulls":6},{"$f":"T('ACCOUNTING SETUP'!X59)","v":""},{"$nulls":7},{"$f":"IF('ACCOUNTING SETUP'!AB59>0,'ACCOUNTING SETUP'!AB59,\"\")","v":""},{"$nulls":6},{"$f":"'EXPENSE DATABASE'!F131","v":{"v":0,"d":"$0.00"}},{"$nulls":7},0]
[{"$nulls":22},{"$f":"T('ACCOUNTING SETUP'!AI60)","v":"Vendor 64"},{"$nulls":13},{"$f":"T('ACCOUNTING SETUP'!W60)","v":""},{"$nulls":6},{"$f":"T('ACCOUNTING SETUP'!X60)","v":""},{"$nulls":7},{"$f":"IF('ACCOUNTING SETUP'!AB60>0,'ACCOUNTING SETUP'!AB60,\"\")","v":""},{"$nulls":6},{"$f":"'EXPENSE DATABASE'!F132","v":{"v":0,"d":"$0.00"}},{"$nulls":7},0]
[{"$nulls":22},{"$f":"T('ACCOUNTING SETUP'!AI61)","v":"Vendor 65"},{"$nulls":13},{"$f":"T('ACCOUNTING SETUP'!W61)","v":""},{"$nulls":6},{"$f":"T('ACCOUNTING SETUP'!X61)","v":""},{"$nulls":7},{"$f":"IF('ACCOUNTING SETUP'!AB61>0,'ACCOUNTING SETUP'!AB61,\"\")","v":""},{"$nulls":6},{"$f":"'EXPENSE DATABASE'!F133","v":{"v":0,"d":"$0.00"}},{"$nulls":7},0]
[{"$nulls":22},{"$f":"T('ACCOUNTING SETUP'!AI62)","v":"Vendor 66"},{"$nulls":13},{"$f":"T('ACCOUNTING SETUP'!W62)","v":""},{"$nulls":6},{"$f":"T('ACCOUNTING SETUP'!X62)","v":""},{"$nulls":7},{"$f":"IF('ACCOUNTING SETUP'!AB62>0,'ACCOUNTING SETUP'!AB62,\"\")","v":""},{"$nulls":6},{"$f":"'EXPENSE DATABASE'!F134","v":{"v":0,"d":"$0.00"}},{"$nulls":7},{"$f":"IF(BG87>0,1,0)","v":0}]
[{"$nulls":22},{"$f":"T('ACCOUNTING SETUP'!AI63)","v":"Vendor 67"},{"$nulls":13},{"$f":"T('ACCOUNTING SETUP'!W63)","v":""},{"$nulls":6},{"$f":"T('ACCOUNTING SETUP'!X63)","v":""},{"$nulls":7},{"$f":"IF('ACCOUNTING SETUP'!AB63>0,'ACCOUNTING SETUP'!AB63,\"\")","v":""},{"$nulls":6},{"$f":"'EXPENSE DATABASE'!F135","v":{"v":0,"d":"$0.00"}},{"$nulls":7},0]
[{"$nulls":22},{"$f":"T('ACCOUNTING SETUP'!AI64)","v":"Vendor 68"},{"$nulls":13},{"$f":"T('ACCOUNTING SETUP'!W64)","v":""},{"$nulls":6},{"$f":"T('ACCOUNTING SETUP'!X64)","v":""},{"$nulls":7},{"$f":"IF('ACCOUNTING SETUP'!AB64>0,'ACCOUNTING SETUP'!AB64,\"\")","v":""},{"$nulls":6},{"$f":"'EXPENSE DATABASE'!F136","v":{"v":0,"d":"$0.00"}},{"$nulls":7},0]
[{"$nulls":22},{"$f":"T('ACCOUNTING SETUP'!AI65)","v":"Vendor 69"},{"$nulls":13},{"$f":"T('ACCOUNTING SETUP'!W65)","v":""},{"$nulls":6},{"$f":"T('ACCOUNTING SETUP'!X65)","v":""},{"$nulls":7},{"$f":"IF('ACCOUNTING SETUP'!AB65>0,'ACCOUNTING SETUP'!AB65,\"\")","v":""},{"$nulls":6},{"$f":"'EXPENSE DATABASE'!F137","v":{"v":0,"d":"$0.00"}},{"$nulls":7},0]
[{"$nulls":22},{"$f":"T('ACCOUNTING SETUP'!AI66)","v":"Vendor 70"},{"$nulls":13},{"$f":"T('ACCOUNTING SETUP'!W66)","v":""},{"$nulls":6},{"$f":"T('ACCOUNTING SETUP'!X66)","v":""},{"$nulls":7},{"$f":"IF('ACCOUNTING SETUP'!AB66>0,'ACCOUNTING SETUP'!AB66,\"\")","v":""},{"$nulls":6},{"$f":"'EXPENSE DATABASE'!F138","v":{"v":0,"d":"$0.00"}},{"$nulls":7},0]
[{"$nulls":22},{"$f":"T('ACCOUNTING SETUP'!AI67)","v":"Vendor 71"},{"$nulls":13},{"$f":"T('ACCOUNTING SETUP'!W67)","v":""},{"$nulls":6},{"$f":"T('ACCOUNTING SETUP'!X67)","v":""},{"$nulls":7},{"$f":"IF('ACCOUNTING SETUP'!AB67>0,'ACCOUNTING SETUP'!AB67,\"\")","v":""},{"$nulls":6},{"$f":"'EXPENSE DATABASE'!F139","v":{"v":0,"d":"$0.00"}},{"$nulls":7},0]
[{"$nulls":22},{"$f":"T('ACCOUNTING SETUP'!AI68)","v":"Vendor 72"},{"$nulls":13},{"$f":"T('ACCOUNTING SETUP'!W68)","v":""},{"$nulls":6},{"$f":"T('ACCOUNTING SETUP'!X68)","v":""},{"$nulls":7},{"$f":"IF('ACCOUNTING SETUP'!AB68>0,'ACCOUNTING SETUP'!AB68,\"\")","v":""},{"$nulls":6},{"$f":"'EXPENSE DATABASE'!F140","v":{"v":0,"d":"$0.00"}},{"$nulls":7},0]
[{"$nulls":22},{"$f":"T('ACCOUNTING SETUP'!AI69)","v":"Vendor 73"},{"$nulls":13},{"$f":"T('ACCOUNTING SETUP'!W69)","v":""},{"$nulls":6},{"$f":"T('ACCOUNTING SETUP'!X69)","v":""},{"$nulls":7},{"$f":"IF('ACCOUNTING SETUP'!AB69>0,'ACCOUNTING SETUP'!AB69,\"\")","v":""},{"$nulls":6},{"$f":"'EXPENSE DATABASE'!F141","v":{"v":0,"d":"$0.00"}},{"$nulls":7},0]
[{"$nulls":22},{"$f":"T('ACCOUNTING SETUP'!AI70)","v":"Vendor 74"},{"$nulls":13},{"$f":"T('ACCOUNTING SETUP'!W70)","v":""},{"$nulls":6},{"$f":"T('ACCOUNTING SETUP'!X70)","v":""},{"$nulls":7},{"$f":"IF('ACCOUNTING SETUP'!AB70>0,'ACCOUNTING SETUP'!AB70,\"\")","v":""},{"$nulls":6},{"$f":"'EXPENSE DATABASE'!F142","v":{"v":0,"d":"$0.00"}},{"$nulls":7},0]
[{"$nulls":22},{"$f":"T('ACCOUNTING SETUP'!AI71)","v":"Vendor 75"},{"$nulls":13},{"$f":"T('ACCOUNTING SETUP'!W71)","v":""},{"$nulls":6},{"$f":"T('ACCOUNTING SETUP'!X71)","v":""},{"$nulls":7},{"$f":"IF('ACCOUNTING SETUP'!AB71>0,'ACCOUNTING SETUP'!AB71,\"\")","v":""},{"$nulls":6},{"$f":"'EXPENSE DATABASE'!F143","v":{"v":0,"d":"$0.00"}},{"$nulls":7},0]
[{"$nulls":22},{"$f":"T('ACCOUNTING SETUP'!AI72)","v":"Vendor 76"},{"$nulls":13},{"$f":"T('ACCOUNTING SETUP'!W72)","v":""},{"$nulls":6},{"$f":"T('ACCOUNTING SETUP'!X72)","v":""},{"$nulls":7},{"$f":"IF('ACCOUNTING SETUP'!AB72>0,'ACCOUNTING SETUP'!AB72,\"\")","v":""},{"$nulls":6},{"$f":"'EXPENSE DATABASE'!F144","v":{"v":0,"d":"$0.00"}},{"$nulls":7},0]
[{"$nulls":22},{"$f":"T('ACCOUNTING SETUP'!AI73)","v":"Vendor 77"},{"$nulls":13},{"$f":"T('ACCOUNTING SETUP'!W73)","v":""},{"$nulls":6},{"$f":"T('ACCOUNTING SETUP'!X73)","v":""},{"$nulls":7},{"$f":"IF('ACCOUNTING SETUP'!AB73>0,'ACCOUNTING SETUP'!AB73,\"\")","v":""},{"$nulls":6},{"$f":"'EXPENSE DATABASE'!F145","v":{"v":0,"d":"$0.00"}},{"$nulls":7},0]
[{"$nulls":22},{"$f":"T('ACCOUNTING SETUP'!AI74)","v":"Vendor 78"},{"$nulls":13},{"$f":"T('ACCOUNTING SETUP'!W74)","v":""},{"$nulls":6},{"$f":"T('ACCOUNTING SETUP'!X74)","v":""},{"$nulls":7},{"$f":"IF('ACCOUNTING SETUP'!AB74>0,'ACCOUNTING SETUP'!AB74,\"\")","v":""},{"$nulls":6},{"$f":"'EXPENSE DATABASE'!F146","v":{"v":0,"d":"$0.00"}},{"$nulls":7},0]
[{"$nulls":22},{"$f":"T('ACCOUNTING SETUP'!AI75)","v":"Vendor 79"},{"$nulls":13},{"$f":"T('ACCOUNTING SETUP'!W75)","v":""},{"$nulls":6},{"$f":"T('ACCOUNTING SETUP'!X75)","v":""},{"$nulls":7},{"$f":"IF('ACCOUNTING SETUP'!AB75>0,'ACCOUNTING SETUP'!AB75,\"\")","v":""},{"$nulls":6},{"$f":"'EXPENSE DATABASE'!F147","v":{"v":0,"d":"$0.00"}},{"$nulls":7},0]
[{"$nulls":22},{"$f":"T('ACCOUNTING SETUP'!AI76)","v":"Vendor 80"},{"$nulls":13},{"$f":"T('ACCOUNTING SETUP'!W76)","v":""},{"$nulls":6},{"$f":"T('ACCOUNTING SETUP'!X76)","v":""},{"$nulls":7},{"$f":"IF('ACCOUNTING SETUP'!AB76>0,'ACCOUNTING SETUP'!AB76,\"\")","v":""},{"$nulls":6},{"$f":"'EXPENSE DATABASE'!F148","v":{"v":0,"d":"$0.00"}},{"$nulls":7},0]
[{"$nulls":22},{"$f":"T('ACCOUNTING SETUP'!AI77)","v":"Vendor 81"},{"$nulls":13},{"$f":"T('ACCOUNTING SETUP'!W77)","v":""},{"$nulls":6},{"$f":"T('ACCOUNTING SETUP'!X77)","v":""},{"$nulls":7},{"$f":"IF('ACCOUNTING SETUP'!AB77>0,'ACCOUNTING SETUP'!AB77,\"\")","v":""},{"$nulls":6},{"$f":"'EXPENSE DATABASE'!F149","v":{"v":0,"d":"$0.00"}},{"$nulls":7},0]
[{"$nulls":22},{"$f":"T('ACCOUNTING SETUP'!AI78)","v":"Vendor 82"},{"$nulls":13},{"$f":"T('ACCOUNTING SETUP'!W78)","v":""},{"$nulls":6},{"$f":"T('ACCOUNTING SETUP'!X78)","v":""},{"$nulls":7},{"$f":"IF('ACCOUNTING SETUP'!AB78>0,'ACCOUNTING SETUP'!AB78,\"\")","v":""},{"$nulls":6},{"$f":"'EXPENSE DATABASE'!F150","v":{"v":0,"d":"$0.00"}},{"$nulls":7},0]
[{"$nulls":22},{"$f":"T('ACCOUNTING SETUP'!AI79)","v":"Vendor 83"},{"$nulls":13},{"$f":"T('ACCOUNTING SETUP'!W79)","v":""},{"$nulls":6},{"$f":"T('ACCOUNTING SETUP'!X79)","v":""},{"$nulls":7},{"$f":"IF('ACCOUNTING SETUP'!AB79>0,'ACCOUNTING SETUP'!AB79,\"\")","v":""},{"$nulls":6},{"$f":"'EXPENSE DATABASE'!F151","v":{"v":0,"d":"$0.00"}},{"$nulls":7},0]
[{"$nulls":22},{"$f":"T('ACCOUNTING SETUP'!AI80)","v":"Vendor 84"},{"$nulls":13},{"$f":"T('ACCOUNTING SETUP'!W80)","v":""},{"$nulls":6},{"$f":"T('ACCOUNTING SETUP'!X80)","v":""},{"$nulls":7},{"$f":"IF('ACCOUNTING SETUP'!AB80>0,'ACCOUNTING SETUP'!AB80,\"\")","v":""},{"$nulls":6},{"$f":"'EXPENSE DATABASE'!F152","v":{"v":0,"d":"$0.00"}},{"$nulls":7},0]
[{"$nulls":22},{"$f":"T('ACCOUNTING SETUP'!AI81)","v":"Vendor 85"},{"$nulls":13},{"$f":"T('ACCOUNTING SETUP'!W81)","v":""},{"$nulls":6},{"$f":"T('ACCOUNTING SETUP'!X81)","v":""},{"$nulls":7},{"$f":"IF('ACCOUNTING SETUP'!AB81>0,'ACCOUNTING SETUP'!AB81,\"\")","v":""},{"$nulls":6},{"$f":"'EXPENSE DATABASE'!F153","v":{"v":0,"d":"$0.00"}},{"$nulls":7},0]
[{"$nulls":22},{"$f":"T('ACCOUNTING SETUP'!AI82)","v":"Vendor 86"},{"$nulls":13},{"$f":"T('ACCOUNTING SETUP'!W82)","v":""},{"$nulls":6},{"$f":"T('ACCOUNTING SETUP'!X82)","v":""},{"$nulls":7},{"$f":"IF('ACCOUNTING SETUP'!AB82>0,'ACCOUNTING SETUP'!AB82,\"\")","v":""},{"$nulls":6},{"$f":"'EXPENSE DATABASE'!F154","v":{"v":0,"d":"$0.00"}},{"$nulls":7},0]
[{"$nulls":22},{"$f":"T('ACCOUNTING SETUP'!AI83)","v":"Vendor 87"},{"$nulls":13},{"$f":"T('ACCOUNTING SETUP'!W83)","v":""},{"$nulls":6},{"$f":"T('ACCOUNTING SETUP'!X83)","v":""},{"$nulls":7},{"$f":"IF('ACCOUNTING SETUP'!AB83>0,'ACCOUNTING SETUP'!AB83,\"\")","v":""},{"$nulls":6},{"$f":"'EXPENSE DATABASE'!F155","v":{"v":0,"d":"$0.00"}},{"$nulls":7},0]
[{"$nulls":22},{"$f":"T('ACCOUNTING SETUP'!AI84)","v":"Vendor 88"},{"$nulls":13},{"$f":"T('ACCOUNTING SETUP'!W84)","v":""},{"$nulls":6},{"$f":"T('ACCOUNTING SETUP'!X84)","v":""},{"$nulls":7},{"$f":"IF('ACCOUNTING SETUP'!AB84>0,'ACCOUNTING SETUP'!AB84,\"\")","v":""},{"$nulls":6},{"$f":"'EXPENSE DATABASE'!F156","v":{"v":0,"d":"$0.00"}},{"$nulls":7},0]
[{"$nulls":22},{"$f":"T('ACCOUNTING SETUP'!AI85)","v":"Vendor 89"},{"$nulls":13},{"$f":"T('ACCOUNTING SETUP'!W85)","v":""},{"$nulls":6},{"$f":"T('ACCOUNTING SETUP'!X85)","v":""},{"$nulls":7},{"$f":"IF('ACCOUNTING SETUP'!AB85>0,'ACCOUNTING SETUP'!AB85,\"\")","v":""},{"$nulls":6},{"$f":"'EXPENSE DATABASE'!F157","v":{"v":0,"d":"$0.00"}},{"$nulls":7},0]
[{"$nulls":22},{"$f":"T('ACCOUNTING SETUP'!AI86)","v":"Vendor 90"},{"$nulls":13},{"$f":"T('ACCOUNTING SETUP'!W86)","v":""},{"$nulls":6},{"$f":"T('ACCOUNTING SETUP'!X86)","v":""},{"$nulls":7},{"$f":"IF('ACCOUNTING SETUP'!AB86>0,'ACCOUNTING SETUP'!AB86,\"\")","v":""},{"$nulls":6},{"$f":"'EXPENSE DATABASE'!F158","v":{"v":0,"d":"$0.00"}},{"$nulls":7},0]
[{"$nulls":22},{"$f":"T('ACCOUNTING SETUP'!AI87)","v":"Vendor 91"},{"$nulls":13},{"$f":"T('ACCOUNTING SETUP'!W87)","v":""},{"$nulls":6},{"$f":"T('ACCOUNTING SETUP'!X87)","v":""},{"$nulls":7},{"$f":"IF('ACCOUNTING SETUP'!AB87>0,'ACCOUNTING SETUP'!AB87,\"\")","v":""},{"$nulls":6},{"$f":"'EXPENSE DATABASE'!F159","v":{"v":0,"d":"$0.00"}},{"$nulls":7},0]
[{"$nulls":22},{"$f":"T('ACCOUNTING SETUP'!AI88)","v":"Vendor 92"},{"$nulls":13},{"$f":"T('ACCOUNTING SETUP'!W88)","v":""},{"$nulls":6},{"$f":"T('ACCOUNTING SETUP'!X88)","v":""},{"$nulls":7},{"$f":"IF('ACCOUNTING SETUP'!AB88>0,'ACCOUNTING SETUP'!AB88,\"\")","v":""},{"$nulls":6},{"$f":"'EXPENSE DATABASE'!F160","v":{"v":0,"d":"$0.00"}},{"$nulls":7},0]
[{"$nulls":22},{"$f":"T('ACCOUNTING SETUP'!AI89)","v":"Vendor 93"},{"$nulls":13},{"$f":"T('ACCOUNTING SETUP'!W89)","v":""},{"$nulls":6},{"$f":"T('ACCOUNTING SETUP'!X89)","v":""},{"$nulls":7},{"$f":"IF('ACCOUNTING SETUP'!AB89>0,'ACCOUNTING SETUP'!AB89,\"\")","v":""},{"$nulls":6},{"$f":"'EXPENSE DATABASE'!F161","v":{"v":0,"d":"$0.00"}},{"$nulls":7},0]
[{"$nulls":22},{"$f":"T('ACCOUNTING SETUP'!AI90)","v":"Vendor 94"},{"$nulls":13},{"$f":"T('ACCOUNTING SETUP'!W90)","v":""},{"$nulls":6},{"$f":"T('ACCOUNTING SETUP'!X90)","v":""},{"$nulls":7},{"$f":"IF('ACCOUNTING SETUP'!AB90>0,'ACCOUNTING SETUP'!AB90,\"\")","v":""},{"$nulls":6},{"$f":"'EXPENSE DATABASE'!F162","v":{"v":0,"d":"$0.00"}},{"$nulls":7},0]
[{"$nulls":22},{"$f":"T('ACCOUNTING SETUP'!AI91)","v":"Vendor 95"},{"$nulls":13},{"$f":"T('ACCOUNTING SETUP'!W91)","v":""},{"$nulls":6},{"$f":"T('ACCOUNTING SETUP'!X91)","v":""},{"$nulls":7},{"$f":"IF('ACCOUNTING SETUP'!AB91>0,'ACCOUNTING SETUP'!AB91,\"\")","v":""},{"$nulls":6},{"$f":"'EXPENSE DATABASE'!F163","v":{"v":0,"d":"$0.00"}},{"$nulls":7},0]
[{"$nulls":22},{"$f":"T('ACCOUNTING SETUP'!AI92)","v":"Vendor 96"},{"$nulls":13},{"$f":"T('ACCOUNTING SETUP'!W92)","v":""},{"$nulls":6},{"$f":"T('ACCOUNTING SETUP'!X92)","v":""},{"$nulls":7},{"$f":"IF('ACCOUNTING SETUP'!AB92>0,'ACCOUNTING SETUP'!AB92,\"\")","v":""},{"$nulls":6},{"$f":"'EXPENSE DATABASE'!F164","v":{"v":0,"d":"$0.00"}},{"$nulls":7},0]
[{"$nulls":22},{"$f":"T('ACCOUNTING SETUP'!AI93)","v":"Vendor 97"},{"$nulls":13},{"$f":"T('ACCOUNTING SETUP'!W93)","v":""},{"$nulls":6},{"$f":"T('ACCOUNTING SETUP'!X93)","v":""},{"$nulls":7},{"$f":"IF('ACCOUNTING SETUP'!AB93>0,'ACCOUNTING SETUP'!AB93,\"\")","v":""},{"$nulls":6},{"$f":"'EXPENSE DATABASE'!F165","v":{"v":0,"d":"$0.00"}},{"$nulls":7},0]
[{"$nulls":22},{"$f":"T('ACCOUNTING SETUP'!AI94)","v":"Vendor 98"},{"$nulls":13},{"$f":"T('ACCOUNTING SETUP'!W94)","v":""},{"$nulls":6},{"$f":"T('ACCOUNTING SETUP'!X94)","v":""},{"$nulls":7},{"$f":"IF('ACCOUNTING SETUP'!AB94>0,'ACCOUNTING SETUP'!AB94,\"\")","v":""},{"$nulls":6},{"$f":"'EXPENSE DATABASE'!F166","v":{"v":0,"d":"$0.00"}},{"$nulls":7},0]
[{"$nulls":22},{"$f":"T('ACCOUNTING SETUP'!AI95)","v":"Vendor 99"},{"$nulls":13},{"$f":"T('ACCOUNTING SETUP'!W95)","v":""},{"$nulls":6},{"$f":"T('ACCOUNTING SETUP'!X95)","v":""},{"$nulls":7},{"$f":"IF('ACCOUNTING SETUP'!AB95>0,'ACCOUNTING SETUP'!AB95,\"\")","v":""},{"$nulls":6},{"$f":"'EXPENSE DATABASE'!F167","v":{"v":0,"d":"$0.00"}},{"$nulls":7},0]
[{"$nulls":22},{"$f":"T('ACCOUNTING SETUP'!AI96)","v":"Vendor 100"},{"$nulls":13},{"$f":"T('ACCOUNTING SETUP'!W96)","v":""},{"$nulls":14},{"$f":"IF('ACCOUNTING SETUP'!AB96>0,'ACCOUNTING SETUP'!AB96,\"\")","v":""},{"$nulls":6},{"$f":"'EXPENSE DATABASE'!F168","v":{"v":0,"d":"$0.00"}},{"$nulls":7},0]
[{"$nulls":22},"UNASSIGNED",{"$nulls":13},{"$f":"T('ACCOUNTING SETUP'!W98)","v":""},{"$nulls":14},{"$f":"IF('ACCOUNTING SETUP'!AB98>0,'ACCOUNTING SETUP'!AB98,\"\")","v":""},{"$nulls":6},{"$f":"'EXPENSE DATABASE'!F169","v":{"v":495,"d":"$495.00"}},{"$nulls":7},1]
[{"$nulls":66},1]
[{"$nulls":22},"TOTAL COMPENSATION",{"$nulls":35},{"$f":"SUBTOTAL(9,BG22:BN123)","v":{"v":495,"d":"$495"}},{"$nulls":7},{"$f":"IF(BG124>0,1,0)","v":1}]
[{"$nulls":66},1]
[{"$nulls":22},"© 2016 by Houseflippingspreadsheet.com. All rights reserved"]

{"sheet":"FINAL PROFIT REPORT","index":59,"n_rows":69,"n_cols":23,"rows_kept":69,"hidden":true,"merged":[[1,0,1,4],[3,9,6,21],[10,7,10,23],[11,7,12,15],[14,7,15,17],[14,18,15,21],[14,22,15,23],[17,7,17,17],[17,18,17,21],[17,22,17,23],[19,7,19,17],[19,18,19,21],[19,22,19,23],[20,7,21,17],[20,18,21,21],[20,22,21,23],[23,7,23,17],[23,18,23,21],[23,22,23,23],[24,7,24,17],[24,18,24,21],[24,22,24,23],[25,7,25,17],[25,18,25,21],[25,22,25,23],[26,7,26,17],[26,18,26,21],[26,22,26,23],[27,7,27,17],[27,18,27,21],[27,22,27,23],[28,7,29,17],[28,18,29,21],[28,22,29,23],[31,7,31,17],[31,18,31,21],[31,22,31,23],[32,7,32,17],[32,18,32,21],[32,22,32,23],[33,7,33,17],[33,18,33,21],[33,22,33,23],[34,7,34,17],[34,18,34,21],[34,22,34,23],[35,7,35,17],[35,18,35,21],[35,22,35,23],[36,7,36,17],[36,18,36,21],[36,22,36,23],[37,7,37,17],[37,18,37,21],[37,22,37,23],[38,7,38,17],[38,18,38,21],[38,22,38,23],[39,7,39,17],[39,18,39,21],[39,22,39,23],[40,7,40,17],[40,18,40,21],[40,22,40,23],[41,7,41,17],[41,18,41,21],[41,22,41,23],[42,7,42,17],[42,18,42,21],[42,22,42,23],[43,7,43,17],[43,18,43,21],[43,22,43,23],[44,7,44,17],[44,18,44,21],[44,22,44,23],[45,7,45,17],[45,18,45,21],[45,22,45,23],[46,7,46,17],[46,18,46,21],[46,22,46,23],[47,7,47,17],[47,18,47,21],[47,22,47,23],[48,7,48,17],[48,18,48,21],[48,22,48,23],[49,7,49,17],[49,18,49,21],[49,22,49,23],[50,7,50,17],[50,18,50,21],[50,22,50,23],[51,7,51,17],[51,18,51,21],[51,22,51,23],[52,7,52,17],[52,18,52,21],[52,22,52,23],[53,7,53,17],[53,18,53,21],[53,22,53,23],[54,7,54,17],[54,18,54,21],[54,22,54,23],[55,7,55,17],[55,18,55,21],[55,22,55,23],[56,7,56,17],[56,18,56,21],[56,22,56,23],[57,7,57,17],[57,18,57,21],[57,22,57,23],[58,18,58,21],[59,7,59,17],[59,18,59,21],[59,22,59,23],[61,7,61,12],[62,7,62,17],[62,18,62,21],[62,22,62,23],[63,7,63,17],[63,18,63,21],[63,22,63,23],[64,7,64,17],[64,18,64,21],[64,22,64,23],[66,7,66,23],[67,7,67,10],[67,11,67,13],[67,14,67,18],[67,19,67,23],[68,7,69,23]]}
[]
["FINAL PROFIT REPORT"]
[]
[{"$nulls":9},"The Final Profit Statement summarizes your Total Project Revenues, Expenses and Net Income earned from your rehab project.  The Final Profit Statement can be used to provide an end of year profit statement for tax purposes."]
[]
[]
[]
[]
[]
[]
[{"$nulls":7},{"$f":"CONCATENATE(Street_Address,\", \",City_State_Zip)","v":"1234 Main St, Kansas City, MO 64116"}]
[{"$nulls":7},"FINAL PROFIT REPORT"]
[]
[]
[{"$nulls":7},"PROJECT BREAKDOWN",{"$nulls":10},"Amount",{"$nulls":3},"% of Total"]
[]
[]
[{"$nulls":7},"After Repair Value",{"$nulls":10},{"$f":"'2 PROJECT BUDGETER'!D49","v":{"v":175000,"d":"$175,000"}}]
[]
[{"$nulls":7},"Purchase Price",{"$nulls":10},{"$f":"-'2 PROJECT BUDGETER'!D8","v":{"v":-52000,"d":"($52,000)"}},{"$nulls":3},{"$f":"IFERROR(S20/$S$64,0)","v":{"v":0.6761775371741605,"d":"67.6%"}}]
[{"$nulls":7},"FIXED COSTS",{"$nulls":10},"Amount",{"$nulls":3},"% of Total"]
[]
[]
[{"$nulls":7},"Buying Costs",{"$nulls":10},{"$f":"-'2 PROJECT BUDGETER'!D11","v":{"v":-1060,"d":"($1,060)"}},{"$nulls":3},{"$f":"IFERROR(S24/$S$64,0)","v":{"v":0.013783619027011734,"d":"1.4%"}}]
[{"$nulls":7},"Holding Costs",{"$nulls":10},{"$f":"-'2 PROJECT BUDGETER'!D12","v":{"v":0,"d":"$0"}},{"$nulls":3},{"$f":"IFERROR(S25/$S$64,0)","v":{"v":0,"d":"0.0%"}}]
[{"$nulls":7},"Selling Costs",{"$nulls":10},{"$f":"-'2 PROJECT BUDGETER'!D13","v":{"v":0,"d":"$0"}},{"$nulls":3},{"$f":"IFERROR(S26/$S$64,0)","v":{"v":0,"d":"0.0%"}}]
[{"$nulls":7},"Financing Costs",{"$nulls":10},{"$f":"-'2 PROJECT BUDGETER'!D14","v":{"v":0,"d":"$0"}},{"$nulls":3},{"$f":"IFERROR(S27/$S$64,0)","v":{"v":0,"d":"0.0%"}}]
[{"$nulls":7},"TOTAL FIXED COST EXPENSES",{"$nulls":10},{"$f":"SUM(S24:V27)","v":{"v":-1060,"d":"($1,060)"}},{"$nulls":3},{"$f":"IFERROR(S28/$S$64,0)","v":{"v":0.013783619027011734,"d":"1.4%"}}]
[{"$nulls":7},"REPAIR COSTS",{"$nulls":10},"Amount",{"$nulls":3},"% of Total"]
[]
[]
[{"$nulls":7},{"$f":"PROPER('2 PROJECT BUDGETER'!B18)","v":"General Conditions"},{"$nulls":10},{"$f":"-'2 PROJECT BUDGETER'!D18","v":{"v":0,"d":"$0"}},{"$nulls":3},{"$f":"IFERROR(S32/$S$64,0)","v":{"v":0,"d":"0.0%"}}]
[{"$nulls":7},{"$f":"PROPER('2 PROJECT BUDGETER'!B19)","v":"Demolition"},{"$nulls":10},{"$f":"-'2 PROJECT BUDGETER'!D19","v":{"v":-1740,"d":"($1,740)"}},{"$nulls":3},{"v":0.022625940666981526,"d":"2.3%"}]
[{"$nulls":7},{"$f":"PROPER('2 PROJECT BUDGETER'!B20)","v":"Structural Concrete"},{"$nulls":10},{"$f":"-'2 PROJECT BUDGETER'!D20","v":{"v":0,"d":"$0"}},{"$nulls":3},{"v":0,"d":"0.0%"}]
[{"$nulls":7},{"$f":"PROPER('2 PROJECT BUDGETER'!B21)","v":"Concrete & Flatwork"},{"$nulls":10},{"$f":"-'2 PROJECT BUDGETER'!D21","v":{"v":0,"d":"$0"}},{"$nulls":3},{"v":0,"d":"0.0%"}]
[{"$nulls":7},{"$f":"PROPER('2 PROJECT BUDGETER'!B22)","v":"Masonry"},{"$nulls":10},{"$f":"-'2 PROJECT BUDGETER'!D22","v":{"v":0,"d":"$0"}},{"$nulls":3},{"v":0,"d":"0.0%"}]
[{"$nulls":7},{"$f":"PROPER('2 PROJECT BUDGETER'!B23)","v":"Siding"},{"$nulls":10},{"$f":"-'2 PROJECT BUDGETER'!D23","v":{"v":0,"d":"$0"}},{"$nulls":3},{"v":0,"d":"0.0%"}]
[{"$nulls":7},{"$f":"PROPER('2 PROJECT BUDGETER'!B24)","v":"Decking And Patios"},{"$nulls":10},{"$f":"-'2 PROJECT BUDGETER'!D24","v":{"v":0,"d":"$0"}},{"$nulls":3},{"v":0,"d":"0.0%"}]
[{"$nulls":7},{"$f":"PROPER('2 PROJECT BUDGETER'!B25)","v":"Roofing"},{"$nulls":10},{"$f":"-'2 PROJECT BUDGETER'!D25","v":{"v":0,"d":"$0"}},{"$nulls":3},{"v":0,"d":"0.0%"}]
[{"$nulls":7},{"$f":"PROPER('2 PROJECT BUDGETER'!B26)","v":"Exterior Doors & Windows"},{"$nulls":10},{"$f":"-'2 PROJECT BUDGETER'!D26","v":{"v":0,"d":"$0"}},{"$nulls":3},{"v":0,"d":"0.0%"}]
[{"$nulls":7},{"$f":"PROPER('2 PROJECT BUDGETER'!B27)","v":"Garage Doors"},{"$nulls":10},{"$f":"-'2 PROJECT BUDGETER'!D27","v":{"v":0,"d":"$0"}},{"$nulls":3},{"v":0,"d":"0.0%"}]
[{"$nulls":7},{"$f":"PROPER('2 PROJECT BUDGETER'!B28)","v":"Landscaping"},{"$nulls":10},{"$f":"-'2 PROJECT BUDGETER'!D28","v":{"v":0,"d":"$0"}},{"$nulls":3},{"v":0,"d":"0.0%"}]
[{"$nulls":7},{"$f":"PROPER('2 PROJECT BUDGETER'!B29)","v":"Misc. Exterior Items"},{"$nulls":10},{"$f":"-'2 PROJECT BUDGETER'!D29","v":{"v":0,"d":"$0"}},{"$nulls":3},{"v":0,"d":"0.0%"}]
[{"$nulls":7},{"$f":"PROPER('2 PROJECT BUDGETER'!B30)","v":"Framing & Drywall"},{"$nulls":10},{"$f":"-'2 PROJECT BUDGETER'!D30","v":{"v":-500,"d":"($500)"}},{"$nulls":3},{"v":6.5017070882130825E-3,"d":"0.7%"}]
[{"$nulls":7},{"$f":"PROPER('2 PROJECT BUDGETER'!B31)","v":"Cabinets & Countertops"},{"$nulls":10},{"$f":"-'2 PROJECT BUDGETER'!D31","v":{"v":0,"d":"$0"}},{"$nulls":3},{"v":0,"d":"0.0%"}]
[{"$nulls":7},{"$f":"PROPER('2 PROJECT BUDGETER'!B32)","v":"Doors & Trim"},{"$nulls":10},{"$f":"-'2 PROJECT BUDGETER'!D32","v":{"v":-3339.3199999999997,"d":"($3,339)"}},{"$nulls":3},{"v":0.043422561027623416,"d":"4.3%"}]
[{"$nulls":7},{"$f":"PROPER('2 PROJECT BUDGETER'!B33)","v":"Carpet & Resilient"},{"$nulls":10},{"$f":"-'2 PROJECT BUDGETER'!D33","v":{"v":0,"d":"$0"}},{"$nulls":3},{"v":0,"d":"0.0%"}]
[{"$nulls":7},{"$f":"PROPER('2 PROJECT BUDGETER'!B34)","v":"Hardwood Flooring"},{"$nulls":10},{"$f":"-'2 PROJECT BUDGETER'!D34","v":{"v":-567.2,"d":"($567)"}},{"$nulls":3},{"v":0.007375536520868921,"d":"0.7%"}]
[{"$nulls":7},{"$f":"PROPER('2 PROJECT BUDGETER'!B35)","v":"Tiling"},{"$nulls":10},{"$f":"-'2 PROJECT BUDGETER'!D35","v":{"v":-2325.23,"d":"($2,325)"}},{"$nulls":3},{"v":0.03023592874545141,"d":"3.0%"}]
[{"$nulls":7},{"$f":"PROPER('2 PROJECT BUDGETER'!B36)","v":"Painting"},{"$nulls":10},{"$f":"-'2 PROJECT BUDGETER'!D36","v":{"v":-4902.45,"d":"($4,902)"}},{"$nulls":3},{"v":0.06374858782922045,"d":"6.4%"}]
[{"$nulls":7},{"$f":"PROPER('2 PROJECT BUDGETER'!B37)","v":"Appliances"},{"$nulls":10},{"$f":"-'2 PROJECT BUDGETER'!D37","v":{"v":0,"d":"$0"}},{"$nulls":3},{"v":0,"d":"0.0%"}]
[{"$nulls":7},{"$f":"PROPER('2 PROJECT BUDGETER'!B38)","v":"Plumbing"},{"$nulls":10},{"$f":"-'2 PROJECT BUDGETER'!D38","v":{"v":-3473.08,"d":"($3,473)"}},{"$nulls":3},{"v":0.04516189770786218,"d":"4.5%"}]
[{"$nulls":7},{"$f":"PROPER('2 PROJECT BUDGETER'!B39)","v":"Hvac"},{"$nulls":10},{"$f":"-'2 PROJECT BUDGETER'!D39","v":{"v":0,"d":"$0"}},{"$nulls":3},{"v":0,"d":"0.0%"}]
[{"$nulls":7},{"$f":"PROPER('2 PROJECT BUDGETER'!B40)","v":"Electrical"},{"$nulls":10},{"$f":"-'2 PROJECT BUDGETER'!D40","v":{"v":-2610,"d":"($2,610)"}},{"$nulls":3},{"v":0.03393891100047229,"d":"3.4%"}]
[{"$nulls":7},{"$f":"PROPER('2 PROJECT BUDGETER'!B41)","v":"Miscellaneous"},{"$nulls":10},{"$f":"-'2 PROJECT BUDGETER'!D41","v":{"v":0,"d":"$0"}},{"$nulls":3},{"v":0,"d":"0.0%"}]
[{"$nulls":7},"SUBTOTAL REPAIR EXPENSES",{"$nulls":10},{"$f":"SUM(S32:V55)","v":{"v":-19457.28,"d":"($19,457)"}},{"$nulls":3},{"v":0.25301107058669325,"d":"25.3%"}]
[{"$nulls":7},{"$f":"PROPER('2 PROJECT BUDGETER'!B43)","v":"Adders/Contingency/Change Orders"},{"$nulls":10},{"$f":"-'2 PROJECT BUDGETER'!D43","v":{"v":0,"d":"$0"}},{"$nulls":3},{"v":0,"d":"0.0%"}]
[{"$nulls":7},"TOTAL REPAIR EXPENSES",{"$nulls":10},{"$f":"S56+S57","v":{"v":-19457.28,"d":"($19,457)"}},{"$nulls":3},{"v":0.25301107058669325,"d":"25.3%"}]
[]
[{"$nulls":7},"Unassigned Expenses",{"$nulls":10},{"$f":"-'2 PROJECT BUDGETER'!D45","v":{"v":-4385.599999999991,"d":"($4,386)"}},{"$nulls":3},{"$f":"IFERROR(S60/$S$64,0)","v":{"v":0.057027773212134474,"d":"5.7%"}}]
[]
[{"$nulls":7},"FINANCIAL RESULTS"]
[{"$nulls":7},"REVENUE",{"$nulls":10},{"$f":"S18","v":{"v":175000,"d":"$175,000"}}]
[{"$nulls":7},"- LESS PROJECT EXPENSES",{"$nulls":10},{"$f":"S20+S28+S58+S60","v":{"v":-76902.87999999999,"d":"($76,903)"}}]
[{"$nulls":7},"PROFIT",{"$nulls":10},{"$f":"S63+S64","v":{"v":98097.12000000001,"d":"$98,097"}}]
[]
[]
[{"$nulls":7},{"$f":"T(Company_Name)","v":"Dave Inc"},{"$nulls":3},{"$f":"(Company_Phone)","v":8161234567},null,null,{"$f":"T(Company_Email)","v":"dave@venturesheets.com"},{"$nulls":4},{"$f":"T(Company_Website)","v":"www.venturesheets.com"}]
[{"$nulls":7},"© 2018 by Houseflippingspreadsheet.com. All rights reserved"]

{"sheet":"PORTFOLIO REPORT","index":60,"n_rows":109,"n_cols":27,"rows_kept":109,"hidden":true,"merged":[[1,1,1,4],[3,8,8,20],[12,6,13,14],[60,6,60,9],[60,10,60,12],[60,13,60,17],[60,18,60,22],[61,6,61,14],[62,6,63,14],[107,6,107,9],[107,10,107,12],[107,13,107,17],[107,18,107,22],[108,6,109,22]]}
[]
[null,"PORTFOLIO REPORT",{"$nulls":23},"Shown","Shown"]
[]
[{"$nulls":8},"The Project Portfolio report can be used to highlight the project's Scope of Work, Project Schedule, & Financial Results and be given to business partners and lenders to showcase your company's project experience."]
[]
[]
[]
[]
[]
[]
[{"$nulls":6},"PROJECT PORTFOLIO"]
[{"$nulls":6},{"$f":"T(Street_Address)","v":"1234 Main St"}]
[{"$nulls":6},{"$f":"T(City_State_Zip)","v":"Kansas City, MO 64116"}]
{"$rows_empty":33}
[{"$nulls":25},"Purchase Price",{"$f":"Purchase_Expense","v":{"v":52000,"d":"$52,000"}}]
[{"$nulls":25},"RehabCosts",{"$f":"Total_Repair_Expenses","v":{"v":19457.28,"d":"$19,457"}}]
[{"$nulls":25},"Fixed Costs",{"$f":"Total_Fixed_Expenses","v":{"v":1060,"d":"$1,060"}}]
[{"$nulls":25},"Total Investment",{"$f":"SUM(AA47:AA49)+Total_Other_Expenses+'EXPENSE DATABASE'!J36","v":{"v":76902.87999999999,"d":"$76,903"}}]
[{"$nulls":25},"Sold For",{"$f":"Resale_To_Date","v":{"v":175000,"d":"$175,000"}}]
[{"$nulls":25},"Profit",{"$f":"AA51-AA50","v":{"v":98097.12000000001,"d":"$98,097"}}]
[{"$nulls":25},"Cash Investment",{"$f":"AA50","v":{"v":76902.87999999999,"d":"$76,903"}}]
[{"$nulls":25},"ROI",{"$f":"IFERROR(AA52/AA53,0)","v":{"v":1.2755974808745787,"d":"128%"}}]
[]
[]
[]
[]
[]
[]
[{"$nulls":6},{"$f":"T(Company_Name)","v":"Dave Inc"},{"$nulls":3},{"$f":"(Company_Phone)","v":8161234567},null,null,{"$f":"T(Company_Email)","v":"dave@venturesheets.com"},{"$nulls":4},{"$f":"T(Company_Website)","v":"www.venturesheets.com"}]
[{"$nulls":6},{"$f":"T(Street_Address)","v":"1234 Main St"}]
[{"$nulls":6},{"$f":"T(City_State_Zip)","v":"Kansas City, MO 64116"}]
{"$rows_empty":44}
[{"$nulls":6},{"$f":"T(Company_Name)","v":"Dave Inc"},{"$nulls":3},{"$f":"(Company_Phone)","v":8161234567},null,null,{"$f":"T(Company_Email)","v":"dave@venturesheets.com"},{"$nulls":4},{"$f":"T(Company_Website)","v":"www.venturesheets.com"}]
[{"$nulls":6},"© 2016 by Houseflippingspreadsheet.com. All rights reserved"]